{"text_format":"1","workbook":"xlsx","n_sheets":15,"sheets":["M&A","Measures","Sheet1","HESP Summary","RIP Summary","DIP non-lighting Summary","LI Summary","DIP Lighting Summary","C&I Non-Lighting","EV Summary","AESC 2018 Avoided Costs Res","AESC 2018 Avoided Costs Com","AESC 2021 Avoided Costs Res","AESC 2021 Avoided Costs Com","NECoC"],"not_rendered":{"charts":0,"images":0,"macros":1,"external_links":2,"defined_names":58,"comments":6,"pivot_tables":0},"unopened":[],"bounds":{"document_bytes":16777216,"sheet_cells":100000,"rows_first":2000,"rows_last":500,"rows_between":2000,"halvings":0,"cell_chars":16384,"cell_head_chars":4096},"cells_cut":0,"cells_raw":0,"read":"whole","date_system":"1900"}

{"sheet":"M&A","index":0,"n_rows":31,"n_cols":5,"rows_kept":31,"cut":false,"hidden":false,"merged":[]}
["Avoided Cost Data Set",null,"Options"]
["AESC 2021",null,"AESC 2021","AESC 2018"]
[]
["Net or Gross"]
["Gross",null,"Net","Gross"]
[]
["Include Incentives to Freeriders as Cost"]
["No",null,"Yes","No"]
[]
["Year 1"]
[2022,null,">=2018"]
[]
["Default Discount Rate",null,"PUC","AESC","10 yr + 2% - inflation"]
[2.8,null,6.5,2.4300000000000002,2.8]
["Avoided Costs are in Real Dollars.  Discount Rates must be enter as real discount rate."]
["RGGI Discount Rate"]
[2.8]
["Avoided Costs are in Real Dollars.  Discount Rates must be enter as real discount rate."]
[]
["Include Non-Embeded Cost of Carbon"]
[1,null,"1 to include, 0 to exclude"]
[]
[]
[]
["Emissions Factors"]
["Fuel","LB CO2/MMBtu or LB CO2/kWh"]
["NG",116.977]
["Kerosene",159.416]
["Propane",139.04599999999999]
["Oil",161.268]
["Electric",0.64800000000000002]

{"sheet":"Measures","index":1,"n_rows":244,"n_cols":260,"rows_kept":244,"cut":false,"hidden":false,"merged":[[1,97,1,98],[1,99,1,100],[1,28,1,41],[1,5,1,27],[1,78,1,79],[1,43,1,62],[1,63,1,77],[1,80,1,95]]}
[null,null,null,null,null,null,null,null,null,null,null,null,null,null,null,null,null,null,null,null,null,null,null,null,null,null,null,null,null,null,null,null,null,null,null,null,null,null,null,null,null,null,null,null,null,null,null,null,null,null,null,null,null,null,{"$f":"$AF1","v":0},null,{"$f":"$AG1","v":0},null,null,null,null,null,null,null,null,null,null,null,null,"AF<row>","AG<row>",null,null,null,null,null,null,null,null,null,null,null,null,null,null,null,null,null,null,null,null,null,null,null,null,null,null,null,null,null,null,null,null,null,null,null,null,null,null,null,null,null,null,null,null,null,null,null,null,null,null,null,null,null,1,2,3,4,5,6,7,8,9,10,null,null,1,2,3,4,5,6,7,8,9,10,1,2,3,4,5,6,7,8,9,10,1,2,3,4,5,6,7,8,9,10,1,2,3,4,5,6,7,8,9,10,1,2,3,4,5,6,7,8,9,10,1,2,3,4,5,6,7,8,9,10,1,2,3,4,5,6,7,8,9,10,1,2,3,4,5,6,7,8,9,10,1,2,3,4,5,6,7,8,9,10,1,2,3,4,5,6,7,8,9,10,1,2,3,4,5,6,7,8,9,10,1,2,3,4,5,6,7,8,9,10]
[null,null,null,null,null,"Formula",null,null,null,null,null,null,null,null,null,null,null,null,null,null,null,null,null,null,null,null,null,null,"Factors",null,null,null,null,null,null,null,null,null,null,null,null,null,null,"Representative Parameters",null,null,null,null,null,null,null,null,null,null,null,null,null,null,null,null,null,null,null,"Representative Savings",null,null,null,null,null,null,null,null,null,null,null,null,null,null,"Avoided Cost",null,"Respresentative Benefits and Costs (adjusted gross)",null,null,null,null,null,null,null,null,null,null,null,null,null,null,null,"NTG","Measure Screening",null,"Incentive Budgets",null,null,null,null,null,null,null,null,null,null,null,null,null,null,null,null,null,null,null,null,null,null,"AF","AG","AS","AU","AW","AY","BA","BC","BE","BG","BI","BK"]
["Program Name","Measure Name","Measure Code","Pricing Effective Date","Pricing Effective End Date","Measure Cost Method","Measure Cost","Measure Cost Cap","Incentive Method","Incentive","Incentive Cap","Savings Effective Date","Savings Effective End Date","Savings Method","kWh","kWh Min","kWh Max","kW","kW Min","kW Max","Winter kW","Summer kW","Therms","Propane","Heating Oil","Kerosene","Wood","Water","Factor Effective Date","Factor Effective End Date","Useful Life","Winter CF","Summer CF","EPF Winter Peak","EPF Winter Off Peak","EPF Summer Peak","EPF Summer Off Peak","ISR","RRe","RRd","FR","SO",null,"Name","Value","Name","Value","Name","Value","Name","Value","Name","Value","Name","Value","Name","Value","Name","Value","Name","Value","Name","Value","kWh",null,null,"kW",null,null,"Winter kW","Summer kW","Therms","Propane","Heating Oil","Kerosene","Wood","Water","Gasoline","Customer Type (Res/Com)","Discount Rate","Electric Energy Benefit","Electric Demand Benefit","NG Benefit","Oil Benefit","Kerosene Benefit","Propane Benefit","Wood Benefit","Water Benefit","Gasoline","Energy & Water Benefits","Fuel Costs","Non-energy Benefits","Measure Cost","Discounted Future O&M (decreased future O&M entered as a negative value)","Discounted future replacement costs (decreased future replacement cost entered as a negative value)","Fuel + Measure Cost","NTG = 1 if Gross,  NTG = 1-FR+SO if Net",{"$f":"IF(NetOrGross=\"Gross\",\"BCR_Gross\",\"BCR_Net\")","v":"BCR_Gross"},"Include (1 - yes, 0 - no)","Incentive Per Unit","% (if applicable)","Funding","effRT measure?",null,"Measure Cost","Incentive","kWh",null,null,"kW",null,null,"Winter kW","Summer kW","Therms","Propane","Heating Oil","Kerosene","Wood","Water",null,null,null,null,null,null,null,null,null,null,null,null,null,null,null,null,null,null,null,null,null,null,null,null,null,null,null,null,null,null,null,null,null,null,null,null,null,null,null,null,null,null,null,null,null,null,null,null,null,null,null,null,null,null,null,null,null,null,null,null,null,null,null,null,null,null,null,null,null,null,null,null,null,null,null,null,null,null,null,null,null,null,null,null,null,null,null,null,null,null,null,null,null,null,null,null,null,null,null,null,null,null,null,null,null,null,null,null,null,null,null,null,null,null,null,null,null,null,null,null,null,null,null,null,null,null,null,null,null,null,null,null,null,null,null,null,null,{"$f":"MAX(IX5:IX236)","v":0}]
["AAA","Reference Calcs",null,null,null,null,null,null,null,null,null,null,null,null,null,null,null,null,null,null,null,null,null,null,null,null,null,null,null,null,10,1,1,0.25,0.25,0.25,0.25,1,1,1,0,0,null,{"$f":"DU4","v":""},null,{"$f":"DV4","v":""},null,{"$f":"DW4","v":""},null,{"$f":"DX4","v":""},null,{"$f":"DY4","v":""},null,{"$f":"DZ4","v":""},null,{"$f":"EA4","v":""},null,{"$f":"EB4","v":""},null,{"$f":"EC4","v":""},null,{"$f":"ED4","v":""},null,100,0,0,0,0,0,0,0,0,0,0,0,0,0,null,"Res","Default DR",{"$f":"Benefits(BL4,BR4,BS4,BT4,BU4,BV4,BW4,BX4,BY4,BZ4,AE4,AH4,AI4,AJ4,AK4,AL4,AM4,AN4,AO4,AP4,CA4,CB4)","v":96.325050634100648},0,0,0,0,0,0,0,0,{"$f":"(--(CC4>0))*CC4+(--(CD4>0))*CD4+(--(CE4>0))*CE4+(--(CF4>0))*CF4+(--(CG4>0))*CG4+(--(CH4>0))*CH4+(--(CI4>0))*CI4+(--(CJ4>0))*CJ4","v":96.325050634100648},{"$f":"(--(CC4<0))*-CC4+(--(CD4<0))*-CD4+(--(CE4<0))*-CE4+(--(CF4<0))*-CF4+(--(CG4<0))*-CG4+(--(CH4<0))*-CH4+(--(CI4<0))*-CI4+(--(CJ4<0))*-CJ4","v":0},null,10,null,null,{"$f":"CM4+CO4","v":10},{"$f":"IF(NetOrGross=\"Net\",(1-AO4+AP4),1)","v":1},{"$f":"(SUMPRODUCT(CC4:CJ4,--(CC4:CJ4>0))+CN4)*CS4/((-SUMPRODUCT(CC4:CJ4,--(CC4:CJ4<0))+MAX(CO4,CV4)+CP4+CQ4)*CS4+IF(FRIncentives=\"Yes\",CV4*(1-CS4),0))","v":9.6325050634100648},null,{"$f":"CO4*CW4","v":0},null,null,"y",null,{"$f":"IF(F4=\"Manual Entry\",\"Manual\",IF(G4=\"\",0,\"X=\"&SUBSTITUTE(SUBSTITUTE(SUBSTITUTE(SUBSTITUTE(SUBSTITUTE(SUBSTITUTE(SUBSTITUTE(SUBSTITUTE(SUBSTITUTE(SUBSTITUTE(SUBSTITUTE(SUBSTITUTE(G4,$ED4,$ED$2&ROW($ED4)),$EC4,$EC$2&ROW($EC4)),$EB4,$EB$2&ROW($EB4)),$EA4,$EA$2&ROW($EA4)),$DZ4,$DZ$2&ROW($DZ4)),$DY4,$DY$2&ROW($DY4)),$DX4,$DX$2&ROW($DX4)),$DW4,$DW$2&ROW($DW4)),$DV4,$DV$2&ROW($DV4)),$DU4,$DU$2&ROW($DU4)),$DT4,$DT$2&ROW($DT4)),$DS4,$DS$2&ROW($DS4))))","v":0},0,{"$f":"IF(O4=\"\",0,\"X=\"&SUBSTITUTE(SUBSTITUTE(SUBSTITUTE(SUBSTITUTE(SUBSTITUTE(SUBSTITUTE(SUBSTITUTE(SUBSTITUTE(SUBSTITUTE(SUBSTITUTE(SUBSTITUTE(SUBSTITUTE(O4,$ED4,$ED$2&ROW($ED4)),$EC4,$EC$2&ROW($EC4)),$EB4,$EB$2&ROW($EB4)),$EA4,$EA$2&ROW($EA4)),$DZ4,$DZ$2&ROW($DZ4)),$DY4,$DY$2&ROW($DY4)),$DX4,$DX$2&ROW($DX4)),$DW4,$DW$2&ROW($DW4)),$DV4,$DV$2&ROW($DV4)),$DU4,$DU$2&ROW($DU4)),$DT4,$DT$2&ROW($DT4)),$DS4,$DS$2&ROW($DS4)))","v":0},{"$f":"IF(P4=\"\",0,\"X=\"&SUBSTITUTE(SUBSTITUTE(SUBSTITUTE(SUBSTITUTE(SUBSTITUTE(SUBSTITUTE(SUBSTITUTE(SUBSTITUTE(SUBSTITUTE(SUBSTITUTE(SUBSTITUTE(SUBSTITUTE(P4,$ED4,$ED$2&ROW($ED4)),$EC4,$EC$2&ROW($EC4)),$EB4,$EB$2&ROW($EB4)),$EA4,$EA$2&ROW($EA4)),$DZ4,$DZ$2&ROW($DZ4)),$DY4,$DY$2&ROW($DY4)),$DX4,$DX$2&ROW($DX4)),$DW4,$DW$2&ROW($DW4)),$DV4,$DV$2&ROW($DV4)),$DU4,$DU$2&ROW($DU4)),$DT4,$DT$2&ROW($DT4)),$DS4,$DS$2&ROW($DS4)))","v":0},{"$f":"IF(Q4=\"\",0,\"X=\"&SUBSTITUTE(SUBSTITUTE(SUBSTITUTE(SUBSTITUTE(SUBSTITUTE(SUBSTITUTE(SUBSTITUTE(SUBSTITUTE(SUBSTITUTE(SUBSTITUTE(SUBSTITUTE(SUBSTITUTE(Q4,$ED4,$ED$2&ROW($ED4)),$EC4,$EC$2&ROW($EC4)),$EB4,$EB$2&ROW($EB4)),$EA4,$EA$2&ROW($EA4)),$DZ4,$DZ$2&ROW($DZ4)),$DY4,$DY$2&ROW($DY4)),$DX4,$DX$2&ROW($DX4)),$DW4,$DW$2&ROW($DW4)),$DV4,$DV$2&ROW($DV4)),$DU4,$DU$2&ROW($DU4)),$DT4,$DT$2&ROW($DT4)),$DS4,$DS$2&ROW($DS4)))","v":0},{"$f":"IF(R4=\"\",0,\"X=\"&SUBSTITUTE(SUBSTITUTE(SUBSTITUTE(SUBSTITUTE(SUBSTITUTE(SUBSTITUTE(SUBSTITUTE(SUBSTITUTE(SUBSTITUTE(SUBSTITUTE(SUBSTITUTE(SUBSTITUTE(R4,$ED4,$ED$2&ROW($ED4)),$EC4,$EC$2&ROW($EC4)),$EB4,$EB$2&ROW($EB4)),$EA4,$EA$2&ROW($EA4)),$DZ4,$DZ$2&ROW($DZ4)),$DY4,$DY$2&ROW($DY4)),$DX4,$DX$2&ROW($DX4)),$DW4,$DW$2&ROW($DW4)),$DV4,$DV$2&ROW($DV4)),$DU4,$DU$2&ROW($DU4)),$DT4,$DT$2&ROW($DT4)),$DS4,$DS$2&ROW($DS4)))","v":0},{"$f":"IF(S4=\"\",0,\"X=\"&SUBSTITUTE(SUBSTITUTE(SUBSTITUTE(SUBSTITUTE(SUBSTITUTE(SUBSTITUTE(SUBSTITUTE(SUBSTITUTE(SUBSTITUTE(SUBSTITUTE(SUBSTITUTE(SUBSTITUTE(S4,$ED4,$ED$2&ROW($ED4)),$EC4,$EC$2&ROW($EC4)),$EB4,$EB$2&ROW($EB4)),$EA4,$EA$2&ROW($EA4)),$DZ4,$DZ$2&ROW($DZ4)),$DY4,$DY$2&ROW($DY4)),$DX4,$DX$2&ROW($DX4)),$DW4,$DW$2&ROW($DW4)),$DV4,$DV$2&ROW($DV4)),$DU4,$DU$2&ROW($DU4)),$DT4,$DT$2&ROW($DT4)),$DS4,$DS$2&ROW($DS4)))","v":0},{"$f":"IF(T4=\"\",0,\"X=\"&SUBSTITUTE(SUBSTITUTE(SUBSTITUTE(SUBSTITUTE(SUBSTITUTE(SUBSTITUTE(SUBSTITUTE(SUBSTITUTE(SUBSTITUTE(SUBSTITUTE(SUBSTITUTE(SUBSTITUTE(T4,$ED4,$ED$2&ROW($ED4)),$EC4,$EC$2&ROW($EC4)),$EB4,$EB$2&ROW($EB4)),$EA4,$EA$2&ROW($EA4)),$DZ4,$DZ$2&ROW($DZ4)),$DY4,$DY$2&ROW($DY4)),$DX4,$DX$2&ROW($DX4)),$DW4,$DW$2&ROW($DW4)),$DV4,$DV$2&ROW($DV4)),$DU4,$DU$2&ROW($DU4)),$DT4,$DT$2&ROW($DT4)),$DS4,$DS$2&ROW($DS4)))","v":0},{"$f":"IF(U4=\"\",0,\"X=\"&SUBSTITUTE(SUBSTITUTE(SUBSTITUTE(SUBSTITUTE(SUBSTITUTE(SUBSTITUTE(SUBSTITUTE(SUBSTITUTE(SUBSTITUTE(SUBSTITUTE(SUBSTITUTE(SUBSTITUTE(U4,$ED4,$ED$2&ROW($ED4)),$EC4,$EC$2&ROW($EC4)),$EB4,$EB$2&ROW($EB4)),$EA4,$EA$2&ROW($EA4)),$DZ4,$DZ$2&ROW($DZ4)),$DY4,$DY$2&ROW($DY4)),$DX4,$DX$2&ROW($DX4)),$DW4,$DW$2&ROW($DW4)),$DV4,$DV$2&ROW($DV4)),$DU4,$DU$2&ROW($DU4)),$DT4,$DT$2&ROW($DT4)),$DS4,$DS$2&ROW($DS4)))","v":0},{"$f":"IF(V4=\"\",0,\"X=\"&SUBSTITUTE(SUBSTITUTE(SUBSTITUTE(SUBSTITUTE(SUBSTITUTE(SUBSTITUTE(SUBSTITUTE(SUBSTITUTE(SUBSTITUTE(SUBSTITUTE(SUBSTITUTE(SUBSTITUTE(V4,$ED4,$ED$2&ROW($ED4)),$EC4,$EC$2&ROW($EC4)),$EB4,$EB$2&ROW($EB4)),$EA4,$EA$2&ROW($EA4)),$DZ4,$DZ$2&ROW($DZ4)),$DY4,$DY$2&ROW($DY4)),$DX4,$DX$2&ROW($DX4)),$DW4,$DW$2&ROW($DW4)),$DV4,$DV$2&ROW($DV4)),$DU4,$DU$2&ROW($DU4)),$DT4,$DT$2&ROW($DT4)),$DS4,$DS$2&ROW($DS4)))","v":0},{"$f":"IF(W4=\"\",0,\"X=\"&SUBSTITUTE(SUBSTITUTE(SUBSTITUTE(SUBSTITUTE(SUBSTITUTE(SUBSTITUTE(SUBSTITUTE(SUBSTITUTE(SUBSTITUTE(SUBSTITUTE(SUBSTITUTE(SUBSTITUTE(W4,$ED4,$ED$2&ROW($ED4)),$EC4,$EC$2&ROW($EC4)),$EB4,$EB$2&ROW($EB4)),$EA4,$EA$2&ROW($EA4)),$DZ4,$DZ$2&ROW($DZ4)),$DY4,$DY$2&ROW($DY4)),$DX4,$DX$2&ROW($DX4)),$DW4,$DW$2&ROW($DW4)),$DV4,$DV$2&ROW($DV4)),$DU4,$DU$2&ROW($DU4)),$DT4,$DT$2&ROW($DT4)),$DS4,$DS$2&ROW($DS4)))","v":0},{"$f":"IF(X4=\"\",0,\"X=\"&SUBSTITUTE(SUBSTITUTE(SUBSTITUTE(SUBSTITUTE(SUBSTITUTE(SUBSTITUTE(SUBSTITUTE(SUBSTITUTE(SUBSTITUTE(SUBSTITUTE(SUBSTITUTE(SUBSTITUTE(X4,$ED4,$ED$2&ROW($ED4)),$EC4,$EC$2&ROW($EC4)),$EB4,$EB$2&ROW($EB4)),$EA4,$EA$2&ROW($EA4)),$DZ4,$DZ$2&ROW($DZ4)),$DY4,$DY$2&ROW($DY4)),$DX4,$DX$2&ROW($DX4)),$DW4,$DW$2&ROW($DW4)),$DV4,$DV$2&ROW($DV4)),$DU4,$DU$2&ROW($DU4)),$DT4,$DT$2&ROW($DT4)),$DS4,$DS$2&ROW($DS4)))","v":0},{"$f":"IF(Y4=\"\",0,\"X=\"&SUBSTITUTE(SUBSTITUTE(SUBSTITUTE(SUBSTITUTE(SUBSTITUTE(SUBSTITUTE(SUBSTITUTE(SUBSTITUTE(SUBSTITUTE(SUBSTITUTE(SUBSTITUTE(SUBSTITUTE(Y4,$ED4,$ED$2&ROW($ED4)),$EC4,$EC$2&ROW($EC4)),$EB4,$EB$2&ROW($EB4)),$EA4,$EA$2&ROW($EA4)),$DZ4,$DZ$2&ROW($DZ4)),$DY4,$DY$2&ROW($DY4)),$DX4,$DX$2&ROW($DX4)),$DW4,$DW$2&ROW($DW4)),$DV4,$DV$2&ROW($DV4)),$DU4,$DU$2&ROW($DU4)),$DT4,$DT$2&ROW($DT4)),$DS4,$DS$2&ROW($DS4)))","v":0},{"$f":"IF(Z4=\"\",0,\"X=\"&SUBSTITUTE(SUBSTITUTE(SUBSTITUTE(SUBSTITUTE(SUBSTITUTE(SUBSTITUTE(SUBSTITUTE(SUBSTITUTE(SUBSTITUTE(SUBSTITUTE(SUBSTITUTE(SUBSTITUTE(Z4,$ED4,$ED$2&ROW($ED4)),$EC4,$EC$2&ROW($EC4)),$EB4,$EB$2&ROW($EB4)),$EA4,$EA$2&ROW($EA4)),$DZ4,$DZ$2&ROW($DZ4)),$DY4,$DY$2&ROW($DY4)),$DX4,$DX$2&ROW($DX4)),$DW4,$DW$2&ROW($DW4)),$DV4,$DV$2&ROW($DV4)),$DU4,$DU$2&ROW($DU4)),$DT4,$DT$2&ROW($DT4)),$DS4,$DS$2&ROW($DS4)))","v":0},{"$f":"IF(AA4=\"\",0,\"X=\"&SUBSTITUTE(SUBSTITUTE(SUBSTITUTE(SUBSTITUTE(SUBSTITUTE(SUBSTITUTE(SUBSTITUTE(SUBSTITUTE(SUBSTITUTE(SUBSTITUTE(SUBSTITUTE(SUBSTITUTE(AA4,$ED4,$ED$2&ROW($ED4)),$EC4,$EC$2&ROW($EC4)),$EB4,$EB$2&ROW($EB4)),$EA4,$EA$2&ROW($EA4)),$DZ4,$DZ$2&ROW($DZ4)),$DY4,$DY$2&ROW($DY4)),$DX4,$DX$2&ROW($DX4)),$DW4,$DW$2&ROW($DW4)),$DV4,$DV$2&ROW($DV4)),$DU4,$DU$2&ROW($DU4)),$DT4,$DT$2&ROW($DT4)),$DS4,$DS$2&ROW($DS4)))","v":0},{"$f":"IF(AB4=\"\",0,\"X=\"&SUBSTITUTE(SUBSTITUTE(SUBSTITUTE(SUBSTITUTE(SUBSTITUTE(SUBSTITUTE(SUBSTITUTE(SUBSTITUTE(SUBSTITUTE(SUBSTITUTE(SUBSTITUTE(SUBSTITUTE(AB4,$ED4,$ED$2&ROW($ED4)),$EC4,$EC$2&ROW($EC4)),$EB4,$EB$2&ROW($EB4)),$EA4,$EA$2&ROW($EA4)),$DZ4,$DZ$2&ROW($DZ4)),$DY4,$DY$2&ROW($DY4)),$DX4,$DX$2&ROW($DX4)),$DW4,$DW$2&ROW($DW4)),$DV4,$DV$2&ROW($DV4)),$DU4,$DU$2&ROW($DU4)),$DT4,$DT$2&ROW($DT4)),$DS4,$DS$2&ROW($DS4)))","v":0},{"$f":"SUBSTITUTE(AB4,$EA4,$EA$2&ROW($EA4))","v":""},null,null,null,{"$f":"IFERROR(INDEX($EG4:$IT4,MATCH(0,COUNTIF($DR4:DT4,$EG4:$IT4),0)),\"\")","v":""},{"$f":"IFERROR(INDEX($EG4:$IT4,MATCH(0,COUNTIF($DR4:DU4,$EG4:$IT4),0)),\"\")","v":""},{"$f":"IFERROR(INDEX($EG4:$IT4,MATCH(0,COUNTIF($DR4:DV4,$EG4:$IT4),0)),\"\")","v":""},{"$f":"IFERROR(INDEX($EG4:$IT4,MATCH(0,COUNTIF($DR4:DW4,$EG4:$IT4),0)),\"\")","v":""},{"$f":"IFERROR(INDEX($EG4:$IT4,MATCH(0,COUNTIF($DR4:DX4,$EG4:$IT4),0)),\"\")","v":""},{"$f":"IFERROR(INDEX($EG4:$IT4,MATCH(0,COUNTIF($DR4:DY4,$EG4:$IT4),0)),\"\")","v":""},{"$f":"IFERROR(INDEX($EG4:$IT4,MATCH(0,COUNTIF($DR4:DZ4,$EG4:$IT4),0)),\"\")","v":""},{"$f":"IFERROR(INDEX($EG4:$IT4,MATCH(0,COUNTIF($DR4:EA4,$EG4:$IT4),0)),\"\")","v":""},{"$f":"IFERROR(INDEX($EG4:$IT4,MATCH(0,COUNTIF($DR4:EB4,$EG4:$IT4),0)),\"\")","v":""},{"$f":"IFERROR(INDEX($EG4:$IT4,MATCH(0,COUNTIF($DR4:EC4,$EG4:$IT4),0)),\"\")","v":""},null,null,{"$f":"IFERROR(MID($G4,FIND(CHAR(160),SUBSTITUTE($G4,\"{\",CHAR(160),EG$1)),FIND(CHAR(160),SUBSTITUTE($G4,\"}\",CHAR(160),EG$1))-FIND(CHAR(160),SUBSTITUTE($G4,\"{\",CHAR(160),EG$1))+1),\"\")","v":""},{"$f":"IFERROR(MID($G4,FIND(CHAR(160),SUBSTITUTE($G4,\"{\",CHAR(160),EH$1)),FIND(CHAR(160),SUBSTITUTE($G4,\"}\",CHAR(160),EH$1))-FIND(CHAR(160),SUBSTITUTE($G4,\"{\",CHAR(160),EH$1))+1),\"\")","v":""},{"$f":"IFERROR(MID($G4,FIND(CHAR(160),SUBSTITUTE($G4,\"{\",CHAR(160),EI$1)),FIND(CHAR(160),SUBSTITUTE($G4,\"}\",CHAR(160),EI$1))-FIND(CHAR(160),SUBSTITUTE($G4,\"{\",CHAR(160),EI$1))+1),\"\")","v":""},{"$f":"IFERROR(MID($G4,FIND(CHAR(160),SUBSTITUTE($G4,\"{\",CHAR(160),EJ$1)),FIND(CHAR(160),SUBSTITUTE($G4,\"}\",CHAR(160),EJ$1))-FIND(CHAR(160),SUBSTITUTE($G4,\"{\",CHAR(160),EJ$1))+1),\"\")","v":""},{"$f":"IFERROR(MID($G4,FIND(CHAR(160),SUBSTITUTE($G4,\"{\",CHAR(160),EK$1)),FIND(CHAR(160),SUBSTITUTE($G4,\"}\",CHAR(160),EK$1))-FIND(CHAR(160),SUBSTITUTE($G4,\"{\",CHAR(160),EK$1))+1),\"\")","v":""},{"$f":"IFERROR(MID($G4,FIND(CHAR(160),SUBSTITUTE($G4,\"{\",CHAR(160),EL$1)),FIND(CHAR(160),SUBSTITUTE($G4,\"}\",CHAR(160),EL$1))-FIND(CHAR(160),SUBSTITUTE($G4,\"{\",CHAR(160),EL$1))+1),\"\")","v":""},{"$f":"IFERROR(MID($G4,FIND(CHAR(160),SUBSTITUTE($G4,\"{\",CHAR(160),EM$1)),FIND(CHAR(160),SUBSTITUTE($G4,\"}\",CHAR(160),EM$1))-FIND(CHAR(160),SUBSTITUTE($G4,\"{\",CHAR(160),EM$1))+1),\"\")","v":""},{"$f":"IFERROR(MID($G4,FIND(CHAR(160),SUBSTITUTE($G4,\"{\",CHAR(160),EN$1)),FIND(CHAR(160),SUBSTITUTE($G4,\"}\",CHAR(160),EN$1))-FIND(CHAR(160),SUBSTITUTE($G4,\"{\",CHAR(160),EN$1))+1),\"\")","v":""},{"$f":"IFERROR(MID($G4,FIND(CHAR(160),SUBSTITUTE($G4,\"{\",CHAR(160),EO$1)),FIND(CHAR(160),SUBSTITUTE($G4,\"}\",CHAR(160),EO$1))-FIND(CHAR(160),SUBSTITUTE($G4,\"{\",CHAR(160),EO$1))+1),\"\")","v":""},{"$f":"IFERROR(MID($G4,FIND(CHAR(160),SUBSTITUTE($G4,\"{\",CHAR(160),EP$1)),FIND(CHAR(160),SUBSTITUTE($G4,\"}\",CHAR(160),EP$1))-FIND(CHAR(160),SUBSTITUTE($G4,\"{\",CHAR(160),EP$1))+1),\"\")","v":""},{"$f":"IFERROR(MID($J4,FIND(CHAR(160),SUBSTITUTE($J4,\"{\",CHAR(160),EQ$1)),FIND(CHAR(160),SUBSTITUTE($J4,\"}\",CHAR(160),EQ$1))-FIND(CHAR(160),SUBSTITUTE($J4,\"{\",CHAR(160),EQ$1))+1),\"\")","v":""},{"$f":"IFERROR(MID($J4,FIND(CHAR(160),SUBSTITUTE($J4,\"{\",CHAR(160),ER$1)),FIND(CHAR(160),SUBSTITUTE($J4,\"}\",CHAR(160),ER$1))-FIND(CHAR(160),SUBSTITUTE($J4,\"{\",CHAR(160),ER$1))+1),\"\")","v":""},{"$f":"IFERROR(MID($J4,FIND(CHAR(160),SUBSTITUTE($J4,\"{\",CHAR(160),ES$1)),FIND(CHAR(160),SUBSTITUTE($J4,\"}\",CHAR(160),ES$1))-FIND(CHAR(160),SUBSTITUTE($J4,\"{\",CHAR(160),ES$1))+1),\"\")","v":""},{"$f":"IFERROR(MID($J4,FIND(CHAR(160),SUBSTITUTE($J4,\"{\",CHAR(160),ET$1)),FIND(CHAR(160),SUBSTITUTE($J4,\"}\",CHAR(160),ET$1))-FIND(CHAR(160),SUBSTITUTE($J4,\"{\",CHAR(160),ET$1))+1),\"\")","v":""},{"$f":"IFERROR(MID($J4,FIND(CHAR(160),SUBSTITUTE($J4,\"{\",CHAR(160),EU$1)),FIND(CHAR(160),SUBSTITUTE($J4,\"}\",CHAR(160),EU$1))-FIND(CHAR(160),SUBSTITUTE($J4,\"{\",CHAR(160),EU$1))+1),\"\")","v":""},{"$f":"IFERROR(MID($J4,FIND(CHAR(160),SUBSTITUTE($J4,\"{\",CHAR(160),EV$1)),FIND(CHAR(160),SUBSTITUTE($J4,\"}\",CHAR(160),EV$1))-FIND(CHAR(160),SUBSTITUTE($J4,\"{\",CHAR(160),EV$1))+1),\"\")","v":""},{"$f":"IFERROR(MID($J4,FIND(CHAR(160),SUBSTITUTE($J4,\"{\",CHAR(160),EW$1)),FIND(CHAR(160),SUBSTITUTE($J4,\"}\",CHAR(160),EW$1))-FIND(CHAR(160),SUBSTITUTE($J4,\"{\",CHAR(160),EW$1))+1),\"\")","v":""},{"$f":"IFERROR(MID($J4,FIND(CHAR(160),SUBSTITUTE($J4,\"{\",CHAR(160),EX$1)),FIND(CHAR(160),SUBSTITUTE($J4,\"}\",CHAR(160),EX$1))-FIND(CHAR(160),SUBSTITUTE($J4,\"{\",CHAR(160),EX$1))+1),\"\")","v":""},{"$f":"IFERROR(MID($J4,FIND(CHAR(160),SUBSTITUTE($J4,\"{\",CHAR(160),EY$1)),FIND(CHAR(160),SUBSTITUTE($J4,\"}\",CHAR(160),EY$1))-FIND(CHAR(160),SUBSTITUTE($J4,\"{\",CHAR(160),EY$1))+1),\"\")","v":""},{"$f":"IFERROR(MID($J4,FIND(CHAR(160),SUBSTITUTE($J4,\"{\",CHAR(160),EZ$1)),FIND(CHAR(160),SUBSTITUTE($J4,\"}\",CHAR(160),EZ$1))-FIND(CHAR(160),SUBSTITUTE($J4,\"{\",CHAR(160),EZ$1))+1),\"\")","v":""},{"$f":"IFERROR(MID($O4,FIND(CHAR(160),SUBSTITUTE($O4,\"{\",CHAR(160),FA$1)),FIND(CHAR(160),SUBSTITUTE($O4,\"}\",CHAR(160),FA$1))-FIND(CHAR(160),SUBSTITUTE($O4,\"{\",CHAR(160),FA$1))+1),\"\")","v":""},{"$f":"IFERROR(MID($O4,FIND(CHAR(160),SUBSTITUTE($O4,\"{\",CHAR(160),FB$1)),FIND(CHAR(160),SUBSTITUTE($O4,\"}\",CHAR(160),FB$1))-FIND(CHAR(160),SUBSTITUTE($O4,\"{\",CHAR(160),FB$1))+1),\"\")","v":""},{"$f":"IFERROR(MID($O4,FIND(CHAR(160),SUBSTITUTE($O4,\"{\",CHAR(160),FC$1)),FIND(CHAR(160),SUBSTITUTE($O4,\"}\",CHAR(160),FC$1))-FIND(CHAR(160),SUBSTITUTE($O4,\"{\",CHAR(160),FC$1))+1),\"\")","v":""},{"$f":"IFERROR(MID($O4,FIND(CHAR(160),SUBSTITUTE($O4,\"{\",CHAR(160),FD$1)),FIND(CHAR(160),SUBSTITUTE($O4,\"}\",CHAR(160),FD$1))-FIND(CHAR(160),SUBSTITUTE($O4,\"{\",CHAR(160),FD$1))+1),\"\")","v":""},{"$f":"IFERROR(MID($O4,FIND(CHAR(160),SUBSTITUTE($O4,\"{\",CHAR(160),FE$1)),FIND(CHAR(160),SUBSTITUTE($O4,\"}\",CHAR(160),FE$1))-FIND(CHAR(160),SUBSTITUTE($O4,\"{\",CHAR(160),FE$1))+1),\"\")","v":""},{"$f":"IFERROR(MID($O4,FIND(CHAR(160),SUBSTITUTE($O4,\"{\",CHAR(160),FF$1)),FIND(CHAR(160),SUBSTITUTE($O4,\"}\",CHAR(160),FF$1))-FIND(CHAR(160),SUBSTITUTE($O4,\"{\",CHAR(160),FF$1))+1),\"\")","v":""},{"$f":"IFERROR(MID($O4,FIND(CHAR(160),SUBSTITUTE($O4,\"{\",CHAR(160),FG$1)),FIND(CHAR(160),SUBSTITUTE($O4,\"}\",CHAR(160),FG$1))-FIND(CHAR(160),SUBSTITUTE($O4,\"{\",CHAR(160),FG$1))+1),\"\")","v":""},{"$f":"IFERROR(MID($O4,FIND(CHAR(160),SUBSTITUTE($O4,\"{\",CHAR(160),FH$1)),FIND(CHAR(160),SUBSTITUTE($O4,\"}\",CHAR(160),FH$1))-FIND(CHAR(160),SUBSTITUTE($O4,\"{\",CHAR(160),FH$1))+1),\"\")","v":""},{"$f":"IFERROR(MID($O4,FIND(CHAR(160),SUBSTITUTE($O4,\"{\",CHAR(160),FI$1)),FIND(CHAR(160),SUBSTITUTE($O4,\"}\",CHAR(160),FI$1))-FIND(CHAR(160),SUBSTITUTE($O4,\"{\",CHAR(160),FI$1))+1),\"\")","v":""},{"$f":"IFERROR(MID($O4,FIND(CHAR(160),SUBSTITUTE($O4,\"{\",CHAR(160),FJ$1)),FIND(CHAR(160),SUBSTITUTE($O4,\"}\",CHAR(160),FJ$1))-FIND(CHAR(160),SUBSTITUTE($O4,\"{\",CHAR(160),FJ$1))+1),\"\")","v":""},{"$f":"IFERROR(MID($R4,FIND(CHAR(160),SUBSTITUTE($R4,\"{\",CHAR(160),FK$1)),FIND(CHAR(160),SUBSTITUTE($R4,\"}\",CHAR(160),FK$1))-FIND(CHAR(160),SUBSTITUTE($R4,\"{\",CHAR(160),FK$1))+1),\"\")","v":""},{"$f":"IFERROR(MID($R4,FIND(CHAR(160),SUBSTITUTE($R4,\"{\",CHAR(160),FL$1)),FIND(CHAR(160),SUBSTITUTE($R4,\"}\",CHAR(160),FL$1))-FIND(CHAR(160),SUBSTITUTE($R4,\"{\",CHAR(160),FL$1))+1),\"\")","v":""},{"$f":"IFERROR(MID($R4,FIND(CHAR(160),SUBSTITUTE($R4,\"{\",CHAR(160),FM$1)),FIND(CHAR(160),SUBSTITUTE($R4,\"}\",CHAR(160),FM$1))-FIND(CHAR(160),SUBSTITUTE($R4,\"{\",CHAR(160),FM$1))+1),\"\")","v":""},{"$f":"IFERROR(MID($R4,FIND(CHAR(160),SUBSTITUTE($R4,\"{\",CHAR(160),FN$1)),FIND(CHAR(160),SUBSTITUTE($R4,\"}\",CHAR(160),FN$1))-FIND(CHAR(160),SUBSTITUTE($R4,\"{\",CHAR(160),FN$1))+1),\"\")","v":""},{"$f":"IFERROR(MID($R4,FIND(CHAR(160),SUBSTITUTE($R4,\"{\",CHAR(160),FO$1)),FIND(CHAR(160),SUBSTITUTE($R4,\"}\",CHAR(160),FO$1))-FIND(CHAR(160),SUBSTITUTE($R4,\"{\",CHAR(160),FO$1))+1),\"\")","v":""},{"$f":"IFERROR(MID($R4,FIND(CHAR(160),SUBSTITUTE($R4,\"{\",CHAR(160),FP$1)),FIND(CHAR(160),SUBSTITUTE($R4,\"}\",CHAR(160),FP$1))-FIND(CHAR(160),SUBSTITUTE($R4,\"{\",CHAR(160),FP$1))+1),\"\")","v":""},{"$f":"IFERROR(MID($R4,FIND(CHAR(160),SUBSTITUTE($R4,\"{\",CHAR(160),FQ$1)),FIND(CHAR(160),SUBSTITUTE($R4,\"}\",CHAR(160),FQ$1))-FIND(CHAR(160),SUBSTITUTE($R4,\"{\",CHAR(160),FQ$1))+1),\"\")","v":""},{"$f":"IFERROR(MID($R4,FIND(CHAR(160),SUBSTITUTE($R4,\"{\",CHAR(160),FR$1)),FIND(CHAR(160),SUBSTITUTE($R4,\"}\",CHAR(160),FR$1))-FIND(CHAR(160),SUBSTITUTE($R4,\"{\",CHAR(160),FR$1))+1),\"\")","v":""},{"$f":"IFERROR(MID($R4,FIND(CHAR(160),SUBSTITUTE($R4,\"{\",CHAR(160),FS$1)),FIND(CHAR(160),SUBSTITUTE($R4,\"}\",CHAR(160),FS$1))-FIND(CHAR(160),SUBSTITUTE($R4,\"{\",CHAR(160),FS$1))+1),\"\")","v":""},{"$f":"IFERROR(MID($R4,FIND(CHAR(160),SUBSTITUTE($R4,\"{\",CHAR(160),FT$1)),FIND(CHAR(160),SUBSTITUTE($R4,\"}\",CHAR(160),FT$1))-FIND(CHAR(160),SUBSTITUTE($R4,\"{\",CHAR(160),FT$1))+1),\"\")","v":""},{"$f":"IFERROR(MID($U4,FIND(CHAR(160),SUBSTITUTE($U4,\"{\",CHAR(160),FU$1)),FIND(CHAR(160),SUBSTITUTE($U4,\"}\",CHAR(160),FU$1))-FIND(CHAR(160),SUBSTITUTE($U4,\"{\",CHAR(160),FU$1))+1),\"\")","v":""},{"$f":"IFERROR(MID($U4,FIND(CHAR(160),SUBSTITUTE($U4,\"{\",CHAR(160),FV$1)),FIND(CHAR(160),SUBSTITUTE($U4,\"}\",CHAR(160),FV$1))-FIND(CHAR(160),SUBSTITUTE($U4,\"{\",CHAR(160),FV$1))+1),\"\")","v":""},{"$f":"IFERROR(MID($U4,FIND(CHAR(160),SUBSTITUTE($U4,\"{\",CHAR(160),FW$1)),FIND(CHAR(160),SUBSTITUTE($U4,\"}\",CHAR(160),FW$1))-FIND(CHAR(160),SUBSTITUTE($U4,\"{\",CHAR(160),FW$1))+1),\"\")","v":""},{"$f":"IFERROR(MID($U4,FIND(CHAR(160),SUBSTITUTE($U4,\"{\",CHAR(160),FX$1)),FIND(CHAR(160),SUBSTITUTE($U4,\"}\",CHAR(160),FX$1))-FIND(CHAR(160),SUBSTITUTE($U4,\"{\",CHAR(160),FX$1))+1),\"\")","v":""},{"$f":"IFERROR(MID($U4,FIND(CHAR(160),SUBSTITUTE($U4,\"{\",CHAR(160),FY$1)),FIND(CHAR(160),SUBSTITUTE($U4,\"}\",CHAR(160),FY$1))-FIND(CHAR(160),SUBSTITUTE($U4,\"{\",CHAR(160),FY$1))+1),\"\")","v":""},{"$f":"IFERROR(MID($U4,FIND(CHAR(160),SUBSTITUTE($U4,\"{\",CHAR(160),FZ$1)),FIND(CHAR(160),SUBSTITUTE($U4,\"}\",CHAR(160),FZ$1))-FIND(CHAR(160),SUBSTITUTE($U4,\"{\",CHAR(160),FZ$1))+1),\"\")","v":""},{"$f":"IFERROR(MID($U4,FIND(CHAR(160),SUBSTITUTE($U4,\"{\",CHAR(160),GA$1)),FIND(CHAR(160),SUBSTITUTE($U4,\"}\",CHAR(160),GA$1))-FIND(CHAR(160),SUBSTITUTE($U4,\"{\",CHAR(160),GA$1))+1),\"\")","v":""},{"$f":"IFERROR(MID($U4,FIND(CHAR(160),SUBSTITUTE($U4,\"{\",CHAR(160),GB$1)),FIND(CHAR(160),SUBSTITUTE($U4,\"}\",CHAR(160),GB$1))-FIND(CHAR(160),SUBSTITUTE($U4,\"{\",CHAR(160),GB$1))+1),\"\")","v":""},{"$f":"IFERROR(MID($U4,FIND(CHAR(160),SUBSTITUTE($U4,\"{\",CHAR(160),GC$1)),FIND(CHAR(160),SUBSTITUTE($U4,\"}\",CHAR(160),GC$1))-FIND(CHAR(160),SUBSTITUTE($U4,\"{\",CHAR(160),GC$1))+1),\"\")","v":""},{"$f":"IFERROR(MID($U4,FIND(CHAR(160),SUBSTITUTE($U4,\"{\",CHAR(160),GD$1)),FIND(CHAR(160),SUBSTITUTE($U4,\"}\",CHAR(160),GD$1))-FIND(CHAR(160),SUBSTITUTE($U4,\"{\",CHAR(160),GD$1))+1),\"\")","v":""},{"$f":"IFERROR(MID($V4,FIND(CHAR(160),SUBSTITUTE($V4,\"{\",CHAR(160),GE$1)),FIND(CHAR(160),SUBSTITUTE($V4,\"}\",CHAR(160),GE$1))-FIND(CHAR(160),SUBSTITUTE($V4,\"{\",CHAR(160),GE$1))+1),\"\")","v":""},{"$f":"IFERROR(MID($V4,FIND(CHAR(160),SUBSTITUTE($V4,\"{\",CHAR(160),GF$1)),FIND(CHAR(160),SUBSTITUTE($V4,\"}\",CHAR(160),GF$1))-FIND(CHAR(160),SUBSTITUTE($V4,\"{\",CHAR(160),GF$1))+1),\"\")","v":""},{"$f":"IFERROR(MID($V4,FIND(CHAR(160),SUBSTITUTE($V4,\"{\",CHAR(160),GG$1)),FIND(CHAR(160),SUBSTITUTE($V4,\"}\",CHAR(160),GG$1))-FIND(CHAR(160),SUBSTITUTE($V4,\"{\",CHAR(160),GG$1))+1),\"\")","v":""},{"$f":"IFERROR(MID($V4,FIND(CHAR(160),SUBSTITUTE($V4,\"{\",CHAR(160),GH$1)),FIND(CHAR(160),SUBSTITUTE($V4,\"}\",CHAR(160),GH$1))-FIND(CHAR(160),SUBSTITUTE($V4,\"{\",CHAR(160),GH$1))+1),\"\")","v":""},{"$f":"IFERROR(MID($V4,FIND(CHAR(160),SUBSTITUTE($V4,\"{\",CHAR(160),GI$1)),FIND(CHAR(160),SUBSTITUTE($V4,\"}\",CHAR(160),GI$1))-FIND(CHAR(160),SUBSTITUTE($V4,\"{\",CHAR(160),GI$1))+1),\"\")","v":""},{"$f":"IFERROR(MID($V4,FIND(CHAR(160),SUBSTITUTE($V4,\"{\",CHAR(160),GJ$1)),FIND(CHAR(160),SUBSTITUTE($V4,\"}\",CHAR(160),GJ$1))-FIND(CHAR(160),SUBSTITUTE($V4,\"{\",CHAR(160),GJ$1))+1),\"\")","v":""},{"$f":"IFERROR(MID($V4,FIND(CHAR(160),SUBSTITUTE($V4,\"{\",CHAR(160),GK$1)),FIND(CHAR(160),SUBSTITUTE($V4,\"}\",CHAR(160),GK$1))-FIND(CHAR(160),SUBSTITUTE($V4,\"{\",CHAR(160),GK$1))+1),\"\")","v":""},{"$f":"IFERROR(MID($V4,FIND(CHAR(160),SUBSTITUTE($V4,\"{\",CHAR(160),GL$1)),FIND(CHAR(160),SUBSTITUTE($V4,\"}\",CHAR(160),GL$1))-FIND(CHAR(160),SUBSTITUTE($V4,\"{\",CHAR(160),GL$1))+1),\"\")","v":""},{"$f":"IFERROR(MID($V4,FIND(CHAR(160),SUBSTITUTE($V4,\"{\",CHAR(160),GM$1)),FIND(CHAR(160),SUBSTITUTE($V4,\"}\",CHAR(160),GM$1))-FIND(CHAR(160),SUBSTITUTE($V4,\"{\",CHAR(160),GM$1))+1),\"\")","v":""},{"$f":"IFERROR(MID($V4,FIND(CHAR(160),SUBSTITUTE($V4,\"{\",CHAR(160),GN$1)),FIND(CHAR(160),SUBSTITUTE($V4,\"}\",CHAR(160),GN$1))-FIND(CHAR(160),SUBSTITUTE($V4,\"{\",CHAR(160),GN$1))+1),\"\")","v":""},{"$f":"IFERROR(MID($W4,FIND(CHAR(160),SUBSTITUTE($W4,\"{\",CHAR(160),GO$1)),FIND(CHAR(160),SUBSTITUTE($W4,\"}\",CHAR(160),GO$1))-FIND(CHAR(160),SUBSTITUTE($W4,\"{\",CHAR(160),GO$1))+1),\"\")","v":""},{"$f":"IFERROR(MID($W4,FIND(CHAR(160),SUBSTITUTE($W4,\"{\",CHAR(160),GP$1)),FIND(CHAR(160),SUBSTITUTE($W4,\"}\",CHAR(160),GP$1))-FIND(CHAR(160),SUBSTITUTE($W4,\"{\",CHAR(160),GP$1))+1),\"\")","v":""},{"$f":"IFERROR(MID($W4,FIND(CHAR(160),SUBSTITUTE($W4,\"{\",CHAR(160),GQ$1)),FIND(CHAR(160),SUBSTITUTE($W4,\"}\",CHAR(160),GQ$1))-FIND(CHAR(160),SUBSTITUTE($W4,\"{\",CHAR(160),GQ$1))+1),\"\")","v":""},{"$f":"IFERROR(MID($W4,FIND(CHAR(160),SUBSTITUTE($W4,\"{\",CHAR(160),GR$1)),FIND(CHAR(160),SUBSTITUTE($W4,\"}\",CHAR(160),GR$1))-FIND(CHAR(160),SUBSTITUTE($W4,\"{\",CHAR(160),GR$1))+1),\"\")","v":""},{"$f":"IFERROR(MID($W4,FIND(CHAR(160),SUBSTITUTE($W4,\"{\",CHAR(160),GS$1)),FIND(CHAR(160),SUBSTITUTE($W4,\"}\",CHAR(160),GS$1))-FIND(CHAR(160),SUBSTITUTE($W4,\"{\",CHAR(160),GS$1))+1),\"\")","v":""},{"$f":"IFERROR(MID($W4,FIND(CHAR(160),SUBSTITUTE($W4,\"{\",CHAR(160),GT$1)),FIND(CHAR(160),SUBSTITUTE($W4,\"}\",CHAR(160),GT$1))-FIND(CHAR(160),SUBSTITUTE($W4,\"{\",CHAR(160),GT$1))+1),\"\")","v":""},{"$f":"IFERROR(MID($W4,FIND(CHAR(160),SUBSTITUTE($W4,\"{\",CHAR(160),GU$1)),FIND(CHAR(160),SUBSTITUTE($W4,\"}\",CHAR(160),GU$1))-FIND(CHAR(160),SUBSTITUTE($W4,\"{\",CHAR(160),GU$1))+1),\"\")","v":""},{"$f":"IFERROR(MID($W4,FIND(CHAR(160),SUBSTITUTE($W4,\"{\",CHAR(160),GV$1)),FIND(CHAR(160),SUBSTITUTE($W4,\"}\",CHAR(160),GV$1))-FIND(CHAR(160),SUBSTITUTE($W4,\"{\",CHAR(160),GV$1))+1),\"\")","v":""},{"$f":"IFERROR(MID($W4,FIND(CHAR(160),SUBSTITUTE($W4,\"{\",CHAR(160),GW$1)),FIND(CHAR(160),SUBSTITUTE($W4,\"}\",CHAR(160),GW$1))-FIND(CHAR(160),SUBSTITUTE($W4,\"{\",CHAR(160),GW$1))+1),\"\")","v":""},{"$f":"IFERROR(MID($W4,FIND(CHAR(160),SUBSTITUTE($W4,\"{\",CHAR(160),GX$1)),FIND(CHAR(160),SUBSTITUTE($W4,\"}\",CHAR(160),GX$1))-FIND(CHAR(160),SUBSTITUTE($W4,\"{\",CHAR(160),GX$1))+1),\"\")","v":""},{"$f":"IFERROR(MID($X4,FIND(CHAR(160),SUBSTITUTE($X4,\"{\",CHAR(160),GY$1)),FIND(CHAR(160),SUBSTITUTE($X4,\"}\",CHAR(160),GY$1))-FIND(CHAR(160),SUBSTITUTE($X4,\"{\",CHAR(160),GY$1))+1),\"\")","v":""},{"$f":"IFERROR(MID($X4,FIND(CHAR(160),SUBSTITUTE($X4,\"{\",CHAR(160),GZ$1)),FIND(CHAR(160),SUBSTITUTE($X4,\"}\",CHAR(160),GZ$1))-FIND(CHAR(160),SUBSTITUTE($X4,\"{\",CHAR(160),GZ$1))+1),\"\")","v":""},{"$f":"IFERROR(MID($X4,FIND(CHAR(160),SUBSTITUTE($X4,\"{\",CHAR(160),HA$1)),FIND(CHAR(160),SUBSTITUTE($X4,\"}\",CHAR(160),HA$1))-FIND(CHAR(160),SUBSTITUTE($X4,\"{\",CHAR(160),HA$1))+1),\"\")","v":""},{"$f":"IFERROR(MID($X4,FIND(CHAR(160),SUBSTITUTE($X4,\"{\",CHAR(160),HB$1)),FIND(CHAR(160),SUBSTITUTE($X4,\"}\",CHAR(160),HB$1))-FIND(CHAR(160),SUBSTITUTE($X4,\"{\",CHAR(160),HB$1))+1),\"\")","v":""},{"$f":"IFERROR(MID($X4,FIND(CHAR(160),SUBSTITUTE($X4,\"{\",CHAR(160),HC$1)),FIND(CHAR(160),SUBSTITUTE($X4,\"}\",CHAR(160),HC$1))-FIND(CHAR(160),SUBSTITUTE($X4,\"{\",CHAR(160),HC$1))+1),\"\")","v":""},{"$f":"IFERROR(MID($X4,FIND(CHAR(160),SUBSTITUTE($X4,\"{\",CHAR(160),HD$1)),FIND(CHAR(160),SUBSTITUTE($X4,\"}\",CHAR(160),HD$1))-FIND(CHAR(160),SUBSTITUTE($X4,\"{\",CHAR(160),HD$1))+1),\"\")","v":""},{"$f":"IFERROR(MID($X4,FIND(CHAR(160),SUBSTITUTE($X4,\"{\",CHAR(160),HE$1)),FIND(CHAR(160),SUBSTITUTE($X4,\"}\",CHAR(160),HE$1))-FIND(CHAR(160),SUBSTITUTE($X4,\"{\",CHAR(160),HE$1))+1),\"\")","v":""},{"$f":"IFERROR(MID($X4,FIND(CHAR(160),SUBSTITUTE($X4,\"{\",CHAR(160),HF$1)),FIND(CHAR(160),SUBSTITUTE($X4,\"}\",CHAR(160),HF$1))-FIND(CHAR(160),SUBSTITUTE($X4,\"{\",CHAR(160),HF$1))+1),\"\")","v":""},{"$f":"IFERROR(MID($X4,FIND(CHAR(160),SUBSTITUTE($X4,\"{\",CHAR(160),HG$1)),FIND(CHAR(160),SUBSTITUTE($X4,\"}\",CHAR(160),HG$1))-FIND(CHAR(160),SUBSTITUTE($X4,\"{\",CHAR(160),HG$1))+1),\"\")","v":""},{"$f":"IFERROR(MID($X4,FIND(CHAR(160),SUBSTITUTE($X4,\"{\",CHAR(160),HH$1)),FIND(CHAR(160),SUBSTITUTE($X4,\"}\",CHAR(160),HH$1))-FIND(CHAR(160),SUBSTITUTE($X4,\"{\",CHAR(160),HH$1))+1),\"\")","v":""},{"$f":"IFERROR(MID($Y4,FIND(CHAR(160),SUBSTITUTE($Y4,\"{\",CHAR(160),HI$1)),FIND(CHAR(160),SUBSTITUTE($Y4,\"}\",CHAR(160),HI$1))-FIND(CHAR(160),SUBSTITUTE($Y4,\"{\",CHAR(160),HI$1))+1),\"\")","v":""},{"$f":"IFERROR(MID($Y4,FIND(CHAR(160),SUBSTITUTE($Y4,\"{\",CHAR(160),HJ$1)),FIND(CHAR(160),SUBSTITUTE($Y4,\"}\",CHAR(160),HJ$1))-FIND(CHAR(160),SUBSTITUTE($Y4,\"{\",CHAR(160),HJ$1))+1),\"\")","v":""},{"$f":"IFERROR(MID($Y4,FIND(CHAR(160),SUBSTITUTE($Y4,\"{\",CHAR(160),HK$1)),FIND(CHAR(160),SUBSTITUTE($Y4,\"}\",CHAR(160),HK$1))-FIND(CHAR(160),SUBSTITUTE($Y4,\"{\",CHAR(160),HK$1))+1),\"\")","v":""},{"$f":"IFERROR(MID($Y4,FIND(CHAR(160),SUBSTITUTE($Y4,\"{\",CHAR(160),HL$1)),FIND(CHAR(160),SUBSTITUTE($Y4,\"}\",CHAR(160),HL$1))-FIND(CHAR(160),SUBSTITUTE($Y4,\"{\",CHAR(160),HL$1))+1),\"\")","v":""},{"$f":"IFERROR(MID($Y4,FIND(CHAR(160),SUBSTITUTE($Y4,\"{\",CHAR(160),HM$1)),FIND(CHAR(160),SUBSTITUTE($Y4,\"}\",CHAR(160),HM$1))-FIND(CHAR(160),SUBSTITUTE($Y4,\"{\",CHAR(160),HM$1))+1),\"\")","v":""},{"$f":"IFERROR(MID($Y4,FIND(CHAR(160),SUBSTITUTE($Y4,\"{\",CHAR(160),HN$1)),FIND(CHAR(160),SUBSTITUTE($Y4,\"}\",CHAR(160),HN$1))-FIND(CHAR(160),SUBSTITUTE($Y4,\"{\",CHAR(160),HN$1))+1),\"\")","v":""},{"$f":"IFERROR(MID($Y4,FIND(CHAR(160),SUBSTITUTE($Y4,\"{\",CHAR(160),HO$1)),FIND(CHAR(160),SUBSTITUTE($Y4,\"}\",CHAR(160),HO$1))-FIND(CHAR(160),SUBSTITUTE($Y4,\"{\",CHAR(160),HO$1))+1),\"\")","v":""},{"$f":"IFERROR(MID($Y4,FIND(CHAR(160),SUBSTITUTE($Y4,\"{\",CHAR(160),HP$1)),FIND(CHAR(160),SUBSTITUTE($Y4,\"}\",CHAR(160),HP$1))-FIND(CHAR(160),SUBSTITUTE($Y4,\"{\",CHAR(160),HP$1))+1),\"\")","v":""},{"$f":"IFERROR(MID($Y4,FIND(CHAR(160),SUBSTITUTE($Y4,\"{\",CHAR(160),HQ$1)),FIND(CHAR(160),SUBSTITUTE($Y4,\"}\",CHAR(160),HQ$1))-FIND(CHAR(160),SUBSTITUTE($Y4,\"{\",CHAR(160),HQ$1))+1),\"\")","v":""},{"$f":"IFERROR(MID($Y4,FIND(CHAR(160),SUBSTITUTE($Y4,\"{\",CHAR(160),HR$1)),FIND(CHAR(160),SUBSTITUTE($Y4,\"}\",CHAR(160),HR$1))-FIND(CHAR(160),SUBSTITUTE($Y4,\"{\",CHAR(160),HR$1))+1),\"\")","v":""},{"$f":"IFERROR(MID($Z4,FIND(CHAR(160),SUBSTITUTE($Z4,\"{\",CHAR(160),HS$1)),FIND(CHAR(160),SUBSTITUTE($Z4,\"}\",CHAR(160),HS$1))-FIND(CHAR(160),SUBSTITUTE($Z4,\"{\",CHAR(160),HS$1))+1),\"\")","v":""},{"$f":"IFERROR(MID($Z4,FIND(CHAR(160),SUBSTITUTE($Z4,\"{\",CHAR(160),HT$1)),FIND(CHAR(160),SUBSTITUTE($Z4,\"}\",CHAR(160),HT$1))-FIND(CHAR(160),SUBSTITUTE($Z4,\"{\",CHAR(160),HT$1))+1),\"\")","v":""},{"$f":"IFERROR(MID($Z4,FIND(CHAR(160),SUBSTITUTE($Z4,\"{\",CHAR(160),HU$1)),FIND(CHAR(160),SUBSTITUTE($Z4,\"}\",CHAR(160),HU$1))-FIND(CHAR(160),SUBSTITUTE($Z4,\"{\",CHAR(160),HU$1))+1),\"\")","v":""},{"$f":"IFERROR(MID($Z4,FIND(CHAR(160),SUBSTITUTE($Z4,\"{\",CHAR(160),HV$1)),FIND(CHAR(160),SUBSTITUTE($Z4,\"}\",CHAR(160),HV$1))-FIND(CHAR(160),SUBSTITUTE($Z4,\"{\",CHAR(160),HV$1))+1),\"\")","v":""},{"$f":"IFERROR(MID($Z4,FIND(CHAR(160),SUBSTITUTE($Z4,\"{\",CHAR(160),HW$1)),FIND(CHAR(160),SUBSTITUTE($Z4,\"}\",CHAR(160),HW$1))-FIND(CHAR(160),SUBSTITUTE($Z4,\"{\",CHAR(160),HW$1))+1),\"\")","v":""},{"$f":"IFERROR(MID($Z4,FIND(CHAR(160),SUBSTITUTE($Z4,\"{\",CHAR(160),HX$1)),FIND(CHAR(160),SUBSTITUTE($Z4,\"}\",CHAR(160),HX$1))-FIND(CHAR(160),SUBSTITUTE($Z4,\"{\",CHAR(160),HX$1))+1),\"\")","v":""},{"$f":"IFERROR(MID($Z4,FIND(CHAR(160),SUBSTITUTE($Z4,\"{\",CHAR(160),HY$1)),FIND(CHAR(160),SUBSTITUTE($Z4,\"}\",CHAR(160),HY$1))-FIND(CHAR(160),SUBSTITUTE($Z4,\"{\",CHAR(160),HY$1))+1),\"\")","v":""},{"$f":"IFERROR(MID($Z4,FIND(CHAR(160),SUBSTITUTE($Z4,\"{\",CHAR(160),HZ$1)),FIND(CHAR(160),SUBSTITUTE($Z4,\"}\",CHAR(160),HZ$1))-FIND(CHAR(160),SUBSTITUTE($Z4,\"{\",CHAR(160),HZ$1))+1),\"\")","v":""},{"$f":"IFERROR(MID($Z4,FIND(CHAR(160),SUBSTITUTE($Z4,\"{\",CHAR(160),IA$1)),FIND(CHAR(160),SUBSTITUTE($Z4,\"}\",CHAR(160),IA$1))-FIND(CHAR(160),SUBSTITUTE($Z4,\"{\",CHAR(160),IA$1))+1),\"\")","v":""},{"$f":"IFERROR(MID($Z4,FIND(CHAR(160),SUBSTITUTE($Z4,\"{\",CHAR(160),IB$1)),FIND(CHAR(160),SUBSTITUTE($Z4,\"}\",CHAR(160),IB$1))-FIND(CHAR(160),SUBSTITUTE($Z4,\"{\",CHAR(160),IB$1))+1),\"\")","v":""},{"$f":"IFERROR(MID($AA4,FIND(CHAR(160),SUBSTITUTE($AA4,\"{\",CHAR(160),IC$1)),FIND(CHAR(160),SUBSTITUTE($AA4,\"}\",CHAR(160),IC$1))-FIND(CHAR(160),SUBSTITUTE($AA4,\"{\",CHAR(160),IC$1))+1),\"\")","v":""},{"$f":"IFERROR(MID($AA4,FIND(CHAR(160),SUBSTITUTE($AA4,\"{\",CHAR(160),ID$1)),FIND(CHAR(160),SUBSTITUTE($AA4,\"}\",CHAR(160),ID$1))-FIND(CHAR(160),SUBSTITUTE($AA4,\"{\",CHAR(160),ID$1))+1),\"\")","v":""},{"$f":"IFERROR(MID($AA4,FIND(CHAR(160),SUBSTITUTE($AA4,\"{\",CHAR(160),IE$1)),FIND(CHAR(160),SUBSTITUTE($AA4,\"}\",CHAR(160),IE$1))-FIND(CHAR(160),SUBSTITUTE($AA4,\"{\",CHAR(160),IE$1))+1),\"\")","v":""},{"$f":"IFERROR(MID($AA4,FIND(CHAR(160),SUBSTITUTE($AA4,\"{\",CHAR(160),IF$1)),FIND(CHAR(160),SUBSTITUTE($AA4,\"}\",CHAR(160),IF$1))-FIND(CHAR(160),SUBSTITUTE($AA4,\"{\",CHAR(160),IF$1))+1),\"\")","v":""},{"$f":"IFERROR(MID($AA4,FIND(CHAR(160),SUBSTITUTE($AA4,\"{\",CHAR(160),IG$1)),FIND(CHAR(160),SUBSTITUTE($AA4,\"}\",CHAR(160),IG$1))-FIND(CHAR(160),SUBSTITUTE($AA4,\"{\",CHAR(160),IG$1))+1),\"\")","v":""},{"$f":"IFERROR(MID($AA4,FIND(CHAR(160),SUBSTITUTE($AA4,\"{\",CHAR(160),IH$1)),FIND(CHAR(160),SUBSTITUTE($AA4,\"}\",CHAR(160),IH$1))-FIND(CHAR(160),SUBSTITUTE($AA4,\"{\",CHAR(160),IH$1))+1),\"\")","v":""},{"$f":"IFERROR(MID($AA4,FIND(CHAR(160),SUBSTITUTE($AA4,\"{\",CHAR(160),II$1)),FIND(CHAR(160),SUBSTITUTE($AA4,\"}\",CHAR(160),II$1))-FIND(CHAR(160),SUBSTITUTE($AA4,\"{\",CHAR(160),II$1))+1),\"\")","v":""},{"$f":"IFERROR(MID($AA4,FIND(CHAR(160),SUBSTITUTE($AA4,\"{\",CHAR(160),IJ$1)),FIND(CHAR(160),SUBSTITUTE($AA4,\"}\",CHAR(160),IJ$1))-FIND(CHAR(160),SUBSTITUTE($AA4,\"{\",CHAR(160),IJ$1))+1),\"\")","v":""},{"$f":"IFERROR(MID($AA4,FIND(CHAR(160),SUBSTITUTE($AA4,\"{\",CHAR(160),IK$1)),FIND(CHAR(160),SUBSTITUTE($AA4,\"}\",CHAR(160),IK$1))-FIND(CHAR(160),SUBSTITUTE($AA4,\"{\",CHAR(160),IK$1))+1),\"\")","v":""},{"$f":"IFERROR(MID($AA4,FIND(CHAR(160),SUBSTITUTE($AA4,\"{\",CHAR(160),IL$1)),FIND(CHAR(160),SUBSTITUTE($AA4,\"}\",CHAR(160),IL$1))-FIND(CHAR(160),SUBSTITUTE($AA4,\"{\",CHAR(160),IL$1))+1),\"\")","v":""},{"$f":"IFERROR(MID($AB4,FIND(CHAR(160),SUBSTITUTE($AB4,\"{\",CHAR(160),IM$1)),FIND(CHAR(160),SUBSTITUTE($AB4,\"}\",CHAR(160),IM$1))-FIND(CHAR(160),SUBSTITUTE($AB4,\"{\",CHAR(160),IM$1))+1),\"\")","v":""},{"$f":"IFERROR(MID($AB4,FIND(CHAR(160),SUBSTITUTE($AB4,\"{\",CHAR(160),IN$1)),FIND(CHAR(160),SUBSTITUTE($AB4,\"}\",CHAR(160),IN$1))-FIND(CHAR(160),SUBSTITUTE($AB4,\"{\",CHAR(160),IN$1))+1),\"\")","v":""},{"$f":"IFERROR(MID($AB4,FIND(CHAR(160),SUBSTITUTE($AB4,\"{\",CHAR(160),IO$1)),FIND(CHAR(160),SUBSTITUTE($AB4,\"}\",CHAR(160),IO$1))-FIND(CHAR(160),SUBSTITUTE($AB4,\"{\",CHAR(160),IO$1))+1),\"\")","v":""},{"$f":"IFERROR(MID($AB4,FIND(CHAR(160),SUBSTITUTE($AB4,\"{\",CHAR(160),IP$1)),FIND(CHAR(160),SUBSTITUTE($AB4,\"}\",CHAR(160),IP$1))-FIND(CHAR(160),SUBSTITUTE($AB4,\"{\",CHAR(160),IP$1))+1),\"\")","v":""},{"$f":"IFERROR(MID($AB4,FIND(CHAR(160),SUBSTITUTE($AB4,\"{\",CHAR(160),IQ$1)),FIND(CHAR(160),SUBSTITUTE($AB4,\"}\",CHAR(160),IQ$1))-FIND(CHAR(160),SUBSTITUTE($AB4,\"{\",CHAR(160),IQ$1))+1),\"\")","v":""},{"$f":"IFERROR(MID($AB4,FIND(CHAR(160),SUBSTITUTE($AB4,\"{\",CHAR(160),IR$1)),FIND(CHAR(160),SUBSTITUTE($AB4,\"}\",CHAR(160),IR$1))-FIND(CHAR(160),SUBSTITUTE($AB4,\"{\",CHAR(160),IR$1))+1),\"\")","v":""},{"$f":"IFERROR(MID($AB4,FIND(CHAR(160),SUBSTITUTE($AB4,\"{\",CHAR(160),IS$1)),FIND(CHAR(160),SUBSTITUTE($AB4,\"}\",CHAR(160),IS$1))-FIND(CHAR(160),SUBSTITUTE($AB4,\"{\",CHAR(160),IS$1))+1),\"\")","v":""},{"$f":"IFERROR(MID($AB4,FIND(CHAR(160),SUBSTITUTE($AB4,\"{\",CHAR(160),IT$1)),FIND(CHAR(160),SUBSTITUTE($AB4,\"}\",CHAR(160),IT$1))-FIND(CHAR(160),SUBSTITUTE($AB4,\"{\",CHAR(160),IT$1))+1),\"\")","v":""},{"$f":"IFERROR(MID($AB4,FIND(CHAR(160),SUBSTITUTE($AB4,\"{\",CHAR(160),IU$1)),FIND(CHAR(160),SUBSTITUTE($AB4,\"}\",CHAR(160),IU$1))-FIND(CHAR(160),SUBSTITUTE($AB4,\"{\",CHAR(160),IU$1))+1),\"\")","v":""},{"$f":"IFERROR(MID($AB4,FIND(CHAR(160),SUBSTITUTE($AB4,\"{\",CHAR(160),IV$1)),FIND(CHAR(160),SUBSTITUTE($AB4,\"}\",CHAR(160),IV$1))-FIND(CHAR(160),SUBSTITUTE($AB4,\"{\",CHAR(160),IV$1))+1),\"\")","v":""},null,{"$f":"10-COUNTIF(DU4:ED4,\"\")","v":0}]
["Affordable Heat Initiative - Heat Pumps","MiniSplit HP Property Assessed","LCHA","2021-07-01","2022-06-30","Calculated","{Cost}*{Measure:Quantity}",0,"Calculated","2000.00*{Measure:Quantity}",2000,"2021-07-01","2022-06-30","Calculated","if({Primary heating type}=6,5379,if({Primary heating type}=0,-2581.54,-2744))",null,null,null,null,null,"if({Primary heating type}=6,1.046,if({Primary heating type}=0,-0.562,-0.595))",3.1E-2,"10*if({Primary heating type}=1,1,if({Primary heating type}=0,0,0))*31.72","if({Primary heating type}=2,1,if({Primary heating type}=0,0.06,0))*31.72","if({Primary heating type}=3,1,if({Primary heating type}=0,0.79,0))*31.72","if({Primary heating type}=4,1,if({Primary heating type}=0,0.06,0))*31.72","if({Primary heating type}=5,1,if({Primary heating type}=0,0.07,0))*31.72",0,"2019-07-01","2022-06-30",18,1,1,0.373,0.52800000000000002,5.2999999999999999E-2,4.5999999999999999E-2,1,1,1,0,0,null,{"$f":"DU5","v":"{Cost}"},2500,{"$f":"DV5","v":"{Measure:Quantity}"},1,{"$f":"DW5","v":"{Primary heating type}"},0,{"$f":"DX5","v":""},null,{"$f":"DY5","v":""},null,{"$f":"DZ5","v":""},null,{"$f":"EA5","v":""},null,{"$f":"EB5","v":""},null,{"$f":"EC5","v":""},null,{"$f":"ED5","v":""},null,{"$f":"IF(AW5=6,5379,IF(AW5=0,-2581.54,-2744))","v":-2581.54},0,0,0,0,0,{"$f":"IF(AW5=6,1.046,IF(AW5=0,-0.562,-0.595))","v":-0.56200000000000006},{"$f":"0.031","v":3.1E-2},{"$f":"10*IF(AW5=1,1,IF(AW5=0,0,0))*31.72","v":0},{"$f":"IF(AW5=2,1,IF(AW5=0,0.06,0))*31.72","v":1.9031999999999998},{"$f":"IF(AW5=3,1,IF(AW5=0,0.79,0))*31.72","v":25.058800000000002},{"$f":"IF(AW5=4,1,IF(AW5=0,0.06,0))*31.72","v":1.9031999999999998},{"$f":"IF(AW5=5,1,IF(AW5=0,0.07,0))*31.72","v":2.2204000000000002},{"$f":"0","v":0},null,"Res","Default DR",{"$f":"Benefits(BL5,BR5,BS5,BT5,BU5,BV5,BW5,BX5,BY5,BZ5,AE5,AH5,AI5,AJ5,AK5,AL5,AM5,AN5,AO5,AP5,CA5,CB5)","v":-4060.1156773569869},-2378.4162261572933,0,12106.480064238687,1072.5073941911157,1289.6563878927213,684.80354014575971,0,0,{"$f":"SUMPRODUCT(CC5:CK5,--(CC5:CK5>0))","v":15153.447386468284},{"$f":"-SUMPRODUCT(CC5:CK5,--(CC5:CK5<0))","v":6438.5319035142802},null,{"$f":"AS5*AU5","v":2500},null,null,{"$f":"CM5+CO5","v":8938.5319035142802},{"$f":"IF(NetOrGross=\"Net\",(1-AO5+AP5),1)","v":1},{"$f":"(SUMPRODUCT(CC5:CJ5,--(CC5:CJ5>0))+CN5)*CS5/((-SUMPRODUCT(CC5:CJ5,--(CC5:CJ5<0))+MAX(CO5,CV5)+CP5+CQ5)*CS5+IF(FRIncentives=\"Yes\",CV5*(1-CS5),0))","v":1.6952948817591111},1,{"$f":"2000*AU5","v":2000},null,"Electric","y",1,{"$f":"IF(F5=\"Manual Entry\",\"Manual\",IF(G5=\"\",0,\"X=\"&SUBSTITUTE(SUBSTITUTE(SUBSTITUTE(SUBSTITUTE(SUBSTITUTE(SUBSTITUTE(SUBSTITUTE(SUBSTITUTE(SUBSTITUTE(SUBSTITUTE(SUBSTITUTE(SUBSTITUTE(G5,$ED5,$ED$2&ROW($ED5)),$EC5,$EC$2&ROW($EC5)),$EB5,$EB$2&ROW($EB5)),$EA5,$EA$2&ROW($EA5)),$DZ5,$DZ$2&ROW($DZ5)),$DY5,$DY$2&ROW($DY5)),$DX5,$DX$2&ROW($DX5)),$DW5,$DW$2&ROW($DW5)),$DV5,$DV$2&ROW($DV5)),$DU5,$DU$2&ROW($DU5)),$DT5,$DT$2&ROW($DT5)),$DS5,$DS$2&ROW($DS5))))","v":"X=AS5*AU5"},{"$f":"IF(I5=\"Manual Entry\",\"Manual\",IF(J5=\"\",0,\"X=\"&SUBSTITUTE(SUBSTITUTE(SUBSTITUTE(SUBSTITUTE(SUBSTITUTE(SUBSTITUTE(SUBSTITUTE(SUBSTITUTE(SUBSTITUTE(SUBSTITUTE(SUBSTITUTE(SUBSTITUTE(J5,$ED5,$ED$2&ROW($ED5)),$EC5,$EC$2&ROW($EC5)),$EB5,$EB$2&ROW($EB5)),$EA5,$EA$2&ROW($EA5)),$DZ5,$DZ$2&ROW($DZ5)),$DY5,$DY$2&ROW($DY5)),$DX5,$DX$2&ROW($DX5)),$DW5,$DW$2&ROW($DW5)),$DV5,$DV$2&ROW($DV5)),$DU5,$DU$2&ROW($DU5)),$DT5,$DT$2&ROW($DT5)),$DS5,$DS$2&ROW($DS5))))","v":"X=2000.00*AU5"},{"$f":"IF(O5=\"\",0,\"X=\"&SUBSTITUTE(SUBSTITUTE(SUBSTITUTE(SUBSTITUTE(SUBSTITUTE(SUBSTITUTE(SUBSTITUTE(SUBSTITUTE(SUBSTITUTE(SUBSTITUTE(SUBSTITUTE(SUBSTITUTE(O5,$ED5,$ED$2&ROW($ED5)),$EC5,$EC$2&ROW($EC5)),$EB5,$EB$2&ROW($EB5)),$EA5,$EA$2&ROW($EA5)),$DZ5,$DZ$2&ROW($DZ5)),$DY5,$DY$2&ROW($DY5)),$DX5,$DX$2&ROW($DX5)),$DW5,$DW$2&ROW($DW5)),$DV5,$DV$2&ROW($DV5)),$DU5,$DU$2&ROW($DU5)),$DT5,$DT$2&ROW($DT5)),$DS5,$DS$2&ROW($DS5)))","v":"X=if(AW5=6,5379,if(AW5=0,-2581.54,-2744))"},{"$f":"IF(P5=\"\",0,\"X=\"&SUBSTITUTE(SUBSTITUTE(SUBSTITUTE(SUBSTITUTE(SUBSTITUTE(SUBSTITUTE(SUBSTITUTE(SUBSTITUTE(SUBSTITUTE(SUBSTITUTE(SUBSTITUTE(SUBSTITUTE(P5,$ED5,$ED$2&ROW($ED5)),$EC5,$EC$2&ROW($EC5)),$EB5,$EB$2&ROW($EB5)),$EA5,$EA$2&ROW($EA5)),$DZ5,$DZ$2&ROW($DZ5)),$DY5,$DY$2&ROW($DY5)),$DX5,$DX$2&ROW($DX5)),$DW5,$DW$2&ROW($DW5)),$DV5,$DV$2&ROW($DV5)),$DU5,$DU$2&ROW($DU5)),$DT5,$DT$2&ROW($DT5)),$DS5,$DS$2&ROW($DS5)))","v":0},{"$f":"IF(Q5=\"\",0,\"X=\"&SUBSTITUTE(SUBSTITUTE(SUBSTITUTE(SUBSTITUTE(SUBSTITUTE(SUBSTITUTE(SUBSTITUTE(SUBSTITUTE(SUBSTITUTE(SUBSTITUTE(SUBSTITUTE(SUBSTITUTE(Q5,$ED5,$ED$2&ROW($ED5)),$EC5,$EC$2&ROW($EC5)),$EB5,$EB$2&ROW($EB5)),$EA5,$EA$2&ROW($EA5)),$DZ5,$DZ$2&ROW($DZ5)),$DY5,$DY$2&ROW($DY5)),$DX5,$DX$2&ROW($DX5)),$DW5,$DW$2&ROW($DW5)),$DV5,$DV$2&ROW($DV5)),$DU5,$DU$2&ROW($DU5)),$DT5,$DT$2&ROW($DT5)),$DS5,$DS$2&ROW($DS5)))","v":0},{"$f":"IF(R5=\"\",0,\"X=\"&SUBSTITUTE(SUBSTITUTE(SUBSTITUTE(SUBSTITUTE(SUBSTITUTE(SUBSTITUTE(SUBSTITUTE(SUBSTITUTE(SUBSTITUTE(SUBSTITUTE(SUBSTITUTE(SUBSTITUTE(R5,$ED5,$ED$2&ROW($ED5)),$EC5,$EC$2&ROW($EC5)),$EB5,$EB$2&ROW($EB5)),$EA5,$EA$2&ROW($EA5)),$DZ5,$DZ$2&ROW($DZ5)),$DY5,$DY$2&ROW($DY5)),$DX5,$DX$2&ROW($DX5)),$DW5,$DW$2&ROW($DW5)),$DV5,$DV$2&ROW($DV5)),$DU5,$DU$2&ROW($DU5)),$DT5,$DT$2&ROW($DT5)),$DS5,$DS$2&ROW($DS5)))","v":0},{"$f":"IF(S5=\"\",0,\"X=\"&SUBSTITUTE(SUBSTITUTE(SUBSTITUTE(SUBSTITUTE(SUBSTITUTE(SUBSTITUTE(SUBSTITUTE(SUBSTITUTE(SUBSTITUTE(SUBSTITUTE(SUBSTITUTE(SUBSTITUTE(S5,$ED5,$ED$2&ROW($ED5)),$EC5,$EC$2&ROW($EC5)),$EB5,$EB$2&ROW($EB5)),$EA5,$EA$2&ROW($EA5)),$DZ5,$DZ$2&ROW($DZ5)),$DY5,$DY$2&ROW($DY5)),$DX5,$DX$2&ROW($DX5)),$DW5,$DW$2&ROW($DW5)),$DV5,$DV$2&ROW($DV5)),$DU5,$DU$2&ROW($DU5)),$DT5,$DT$2&ROW($DT5)),$DS5,$DS$2&ROW($DS5)))","v":0},{"$f":"IF(T5=\"\",0,\"X=\"&SUBSTITUTE(SUBSTITUTE(SUBSTITUTE(SUBSTITUTE(SUBSTITUTE(SUBSTITUTE(SUBSTITUTE(SUBSTITUTE(SUBSTITUTE(SUBSTITUTE(SUBSTITUTE(SUBSTITUTE(T5,$ED5,$ED$2&ROW($ED5)),$EC5,$EC$2&ROW($EC5)),$EB5,$EB$2&ROW($EB5)),$EA5,$EA$2&ROW($EA5)),$DZ5,$DZ$2&ROW($DZ5)),$DY5,$DY$2&ROW($DY5)),$DX5,$DX$2&ROW($DX5)),$DW5,$DW$2&ROW($DW5)),$DV5,$DV$2&ROW($DV5)),$DU5,$DU$2&ROW($DU5)),$DT5,$DT$2&ROW($DT5)),$DS5,$DS$2&ROW($DS5)))","v":0},{"$f":"IF(U5=\"\",0,\"X=\"&SUBSTITUTE(SUBSTITUTE(SUBSTITUTE(SUBSTITUTE(SUBSTITUTE(SUBSTITUTE(SUBSTITUTE(SUBSTITUTE(SUBSTITUTE(SUBSTITUTE(SUBSTITUTE(SUBSTITUTE(U5,$ED5,$ED$2&ROW($ED5)),$EC5,$EC$2&ROW($EC5)),$EB5,$EB$2&ROW($EB5)),$EA5,$EA$2&ROW($EA5)),$DZ5,$DZ$2&ROW($DZ5)),$DY5,$DY$2&ROW($DY5)),$DX5,$DX$2&ROW($DX5)),$DW5,$DW$2&ROW($DW5)),$DV5,$DV$2&ROW($DV5)),$DU5,$DU$2&ROW($DU5)),$DT5,$DT$2&ROW($DT5)),$DS5,$DS$2&ROW($DS5)))","v":"X=if(AW5=6,1.046,if(AW5=0,-0.562,-0.595))"},{"$f":"IF(V5=\"\",0,\"X=\"&SUBSTITUTE(SUBSTITUTE(SUBSTITUTE(SUBSTITUTE(SUBSTITUTE(SUBSTITUTE(SUBSTITUTE(SUBSTITUTE(SUBSTITUTE(SUBSTITUTE(SUBSTITUTE(SUBSTITUTE(V5,$ED5,$ED$2&ROW($ED5)),$EC5,$EC$2&ROW($EC5)),$EB5,$EB$2&ROW($EB5)),$EA5,$EA$2&ROW($EA5)),$DZ5,$DZ$2&ROW($DZ5)),$DY5,$DY$2&ROW($DY5)),$DX5,$DX$2&ROW($DX5)),$DW5,$DW$2&ROW($DW5)),$DV5,$DV$2&ROW($DV5)),$DU5,$DU$2&ROW($DU5)),$DT5,$DT$2&ROW($DT5)),$DS5,$DS$2&ROW($DS5)))","v":"X=0.031"},{"$f":"IF(W5=\"\",0,\"X=\"&SUBSTITUTE(SUBSTITUTE(SUBSTITUTE(SUBSTITUTE(SUBSTITUTE(SUBSTITUTE(SUBSTITUTE(SUBSTITUTE(SUBSTITUTE(SUBSTITUTE(SUBSTITUTE(SUBSTITUTE(W5,$ED5,$ED$2&ROW($ED5)),$EC5,$EC$2&ROW($EC5)),$EB5,$EB$2&ROW($EB5)),$EA5,$EA$2&ROW($EA5)),$DZ5,$DZ$2&ROW($DZ5)),$DY5,$DY$2&ROW($DY5)),$DX5,$DX$2&ROW($DX5)),$DW5,$DW$2&ROW($DW5)),$DV5,$DV$2&ROW($DV5)),$DU5,$DU$2&ROW($DU5)),$DT5,$DT$2&ROW($DT5)),$DS5,$DS$2&ROW($DS5)))","v":"X=10*if(AW5=1,1,if(AW5=0,0,0))*31.72"},{"$f":"IF(X5=\"\",0,\"X=\"&SUBSTITUTE(SUBSTITUTE(SUBSTITUTE(SUBSTITUTE(SUBSTITUTE(SUBSTITUTE(SUBSTITUTE(SUBSTITUTE(SUBSTITUTE(SUBSTITUTE(SUBSTITUTE(SUBSTITUTE(X5,$ED5,$ED$2&ROW($ED5)),$EC5,$EC$2&ROW($EC5)),$EB5,$EB$2&ROW($EB5)),$EA5,$EA$2&ROW($EA5)),$DZ5,$DZ$2&ROW($DZ5)),$DY5,$DY$2&ROW($DY5)),$DX5,$DX$2&ROW($DX5)),$DW5,$DW$2&ROW($DW5)),$DV5,$DV$2&ROW($DV5)),$DU5,$DU$2&ROW($DU5)),$DT5,$DT$2&ROW($DT5)),$DS5,$DS$2&ROW($DS5)))","v":"X=if(AW5=2,1,if(AW5=0,0.06,0))*31.72"},{"$f":"IF(Y5=\"\",0,\"X=\"&SUBSTITUTE(SUBSTITUTE(SUBSTITUTE(SUBSTITUTE(SUBSTITUTE(SUBSTITUTE(SUBSTITUTE(SUBSTITUTE(SUBSTITUTE(SUBSTITUTE(SUBSTITUTE(SUBSTITUTE(Y5,$ED5,$ED$2&ROW($ED5)),$EC5,$EC$2&ROW($EC5)),$EB5,$EB$2&ROW($EB5)),$EA5,$EA$2&ROW($EA5)),$DZ5,$DZ$2&ROW($DZ5)),$DY5,$DY$2&ROW($DY5)),$DX5,$DX$2&ROW($DX5)),$DW5,$DW$2&ROW($DW5)),$DV5,$DV$2&ROW($DV5)),$DU5,$DU$2&ROW($DU5)),$DT5,$DT$2&ROW($DT5)),$DS5,$DS$2&ROW($DS5)))","v":"X=if(AW5=3,1,if(AW5=0,0.79,0))*31.72"},{"$f":"IF(Z5=\"\",0,\"X=\"&SUBSTITUTE(SUBSTITUTE(SUBSTITUTE(SUBSTITUTE(SUBSTITUTE(SUBSTITUTE(SUBSTITUTE(SUBSTITUTE(SUBSTITUTE(SUBSTITUTE(SUBSTITUTE(SUBSTITUTE(Z5,$ED5,$ED$2&ROW($ED5)),$EC5,$EC$2&ROW($EC5)),$EB5,$EB$2&ROW($EB5)),$EA5,$EA$2&ROW($EA5)),$DZ5,$DZ$2&ROW($DZ5)),$DY5,$DY$2&ROW($DY5)),$DX5,$DX$2&ROW($DX5)),$DW5,$DW$2&ROW($DW5)),$DV5,$DV$2&ROW($DV5)),$DU5,$DU$2&ROW($DU5)),$DT5,$DT$2&ROW($DT5)),$DS5,$DS$2&ROW($DS5)))","v":"X=if(AW5=4,1,if(AW5=0,0.06,0))*31.72"},{"$f":"IF(AA5=\"\",0,\"X=\"&SUBSTITUTE(SUBSTITUTE(SUBSTITUTE(SUBSTITUTE(SUBSTITUTE(SUBSTITUTE(SUBSTITUTE(SUBSTITUTE(SUBSTITUTE(SUBSTITUTE(SUBSTITUTE(SUBSTITUTE(AA5,$ED5,$ED$2&ROW($ED5)),$EC5,$EC$2&ROW($EC5)),$EB5,$EB$2&ROW($EB5)),$EA5,$EA$2&ROW($EA5)),$DZ5,$DZ$2&ROW($DZ5)),$DY5,$DY$2&ROW($DY5)),$DX5,$DX$2&ROW($DX5)),$DW5,$DW$2&ROW($DW5)),$DV5,$DV$2&ROW($DV5)),$DU5,$DU$2&ROW($DU5)),$DT5,$DT$2&ROW($DT5)),$DS5,$DS$2&ROW($DS5)))","v":"X=if(AW5=5,1,if(AW5=0,0.07,0))*31.72"},{"$f":"IF(AB5=\"\",0,\"X=\"&SUBSTITUTE(SUBSTITUTE(SUBSTITUTE(SUBSTITUTE(SUBSTITUTE(SUBSTITUTE(SUBSTITUTE(SUBSTITUTE(SUBSTITUTE(SUBSTITUTE(SUBSTITUTE(SUBSTITUTE(AB5,$ED5,$ED$2&ROW($ED5)),$EC5,$EC$2&ROW($EC5)),$EB5,$EB$2&ROW($EB5)),$EA5,$EA$2&ROW($EA5)),$DZ5,$DZ$2&ROW($DZ5)),$DY5,$DY$2&ROW($DY5)),$DX5,$DX$2&ROW($DX5)),$DW5,$DW$2&ROW($DW5)),$DV5,$DV$2&ROW($DV5)),$DU5,$DU$2&ROW($DU5)),$DT5,$DT$2&ROW($DT5)),$DS5,$DS$2&ROW($DS5)))","v":"X=0"},null,null,"{Factor:WinterCF}","{Factor:SummerCF}",{"$f":"IFERROR(INDEX($EG5:$IV5,MATCH(0,COUNTIF($DR5:DT5,$EG5:$IV5),0)),\"\")","v":"{Cost}"},{"$f":"IFERROR(INDEX($EG5:$IV5,MATCH(0,COUNTIF($DR5:DU5,$EG5:$IV5),0)),\"\")","v":"{Measure:Quantity}"},{"$f":"IFERROR(INDEX($EG5:$IV5,MATCH(0,COUNTIF($DR5:DV5,$EG5:$IV5),0)),\"\")","v":"{Primary heating type}"},{"$f":"IFERROR(INDEX($EG5:$IV5,MATCH(0,COUNTIF($DR5:DW5,$EG5:$IV5),0)),\"\")","v":""},{"$f":"IFERROR(INDEX($EG5:$IV5,MATCH(0,COUNTIF($DR5:DX5,$EG5:$IV5),0)),\"\")","v":""},{"$f":"IFERROR(INDEX($EG5:$IV5,MATCH(0,COUNTIF($DR5:DY5,$EG5:$IV5),0)),\"\")","v":""},{"$f":"IFERROR(INDEX($EG5:$IV5,MATCH(0,COUNTIF($DR5:DZ5,$EG5:$IV5),0)),\"\")","v":""},{"$f":"IFERROR(INDEX($EG5:$IV5,MATCH(0,COUNTIF($DR5:EA5,$EG5:$IV5),0)),\"\")","v":""},{"$f":"IFERROR(INDEX($EG5:$IV5,MATCH(0,COUNTIF($DR5:EB5,$EG5:$IV5),0)),\"\")","v":""},{"$f":"IFERROR(INDEX($EG5:$IV5,MATCH(0,COUNTIF($DR5:EC5,$EG5:$IV5),0)),\"\")","v":""},null,null,{"$f":"IFERROR(MID($G5,FIND(CHAR(160),SUBSTITUTE($G5,\"{\",CHAR(160),EG$1)),FIND(CHAR(160),SUBSTITUTE($G5,\"}\",CHAR(160),EG$1))-FIND(CHAR(160),SUBSTITUTE($G5,\"{\",CHAR(160),EG$1))+1),\"\")","v":"{Cost}"},{"$f":"IFERROR(MID($G5,FIND(CHAR(160),SUBSTITUTE($G5,\"{\",CHAR(160),EH$1)),FIND(CHAR(160),SUBSTITUTE($G5,\"}\",CHAR(160),EH$1))-FIND(CHAR(160),SUBSTITUTE($G5,\"{\",CHAR(160),EH$1))+1),\"\")","v":"{Measure:Quantity}"},{"$f":"IFERROR(MID($G5,FIND(CHAR(160),SUBSTITUTE($G5,\"{\",CHAR(160),EI$1)),FIND(CHAR(160),SUBSTITUTE($G5,\"}\",CHAR(160),EI$1))-FIND(CHAR(160),SUBSTITUTE($G5,\"{\",CHAR(160),EI$1))+1),\"\")","v":""},{"$f":"IFERROR(MID($G5,FIND(CHAR(160),SUBSTITUTE($G5,\"{\",CHAR(160),EJ$1)),FIND(CHAR(160),SUBSTITUTE($G5,\"}\",CHAR(160),EJ$1))-FIND(CHAR(160),SUBSTITUTE($G5,\"{\",CHAR(160),EJ$1))+1),\"\")","v":""},{"$f":"IFERROR(MID($G5,FIND(CHAR(160),SUBSTITUTE($G5,\"{\",CHAR(160),EK$1)),FIND(CHAR(160),SUBSTITUTE($G5,\"}\",CHAR(160),EK$1))-FIND(CHAR(160),SUBSTITUTE($G5,\"{\",CHAR(160),EK$1))+1),\"\")","v":""},{"$f":"IFERROR(MID($G5,FIND(CHAR(160),SUBSTITUTE($G5,\"{\",CHAR(160),EL$1)),FIND(CHAR(160),SUBSTITUTE($G5,\"}\",CHAR(160),EL$1))-FIND(CHAR(160),SUBSTITUTE($G5,\"{\",CHAR(160),EL$1))+1),\"\")","v":""},{"$f":"IFERROR(MID($G5,FIND(CHAR(160),SUBSTITUTE($G5,\"{\",CHAR(160),EM$1)),FIND(CHAR(160),SUBSTITUTE($G5,\"}\",CHAR(160),EM$1))-FIND(CHAR(160),SUBSTITUTE($G5,\"{\",CHAR(160),EM$1))+1),\"\")","v":""},{"$f":"IFERROR(MID($G5,FIND(CHAR(160),SUBSTITUTE($G5,\"{\",CHAR(160),EN$1)),FIND(CHAR(160),SUBSTITUTE($G5,\"}\",CHAR(160),EN$1))-FIND(CHAR(160),SUBSTITUTE($G5,\"{\",CHAR(160),EN$1))+1),\"\")","v":""},{"$f":"IFERROR(MID($G5,FIND(CHAR(160),SUBSTITUTE($G5,\"{\",CHAR(160),EO$1)),FIND(CHAR(160),SUBSTITUTE($G5,\"}\",CHAR(160),EO$1))-FIND(CHAR(160),SUBSTITUTE($G5,\"{\",CHAR(160),EO$1))+1),\"\")","v":""},{"$f":"IFERROR(MID($G5,FIND(CHAR(160),SUBSTITUTE($G5,\"{\",CHAR(160),EP$1)),FIND(CHAR(160),SUBSTITUTE($G5,\"}\",CHAR(160),EP$1))-FIND(CHAR(160),SUBSTITUTE($G5,\"{\",CHAR(160),EP$1))+1),\"\")","v":""},{"$f":"IFERROR(MID($J5,FIND(CHAR(160),SUBSTITUTE($J5,\"{\",CHAR(160),EQ$1)),FIND(CHAR(160),SUBSTITUTE($J5,\"}\",CHAR(160),EQ$1))-FIND(CHAR(160),SUBSTITUTE($J5,\"{\",CHAR(160),EQ$1))+1),\"\")","v":"{Measure:Quantity}"},{"$f":"IFERROR(MID($J5,FIND(CHAR(160),SUBSTITUTE($J5,\"{\",CHAR(160),ER$1)),FIND(CHAR(160),SUBSTITUTE($J5,\"}\",CHAR(160),ER$1))-FIND(CHAR(160),SUBSTITUTE($J5,\"{\",CHAR(160),ER$1))+1),\"\")","v":""},{"$f":"IFERROR(MID($J5,FIND(CHAR(160),SUBSTITUTE($J5,\"{\",CHAR(160),ES$1)),FIND(CHAR(160),SUBSTITUTE($J5,\"}\",CHAR(160),ES$1))-FIND(CHAR(160),SUBSTITUTE($J5,\"{\",CHAR(160),ES$1))+1),\"\")","v":""},{"$f":"IFERROR(MID($J5,FIND(CHAR(160),SUBSTITUTE($J5,\"{\",CHAR(160),ET$1)),FIND(CHAR(160),SUBSTITUTE($J5,\"}\",CHAR(160),ET$1))-FIND(CHAR(160),SUBSTITUTE($J5,\"{\",CHAR(160),ET$1))+1),\"\")","v":""},{"$f":"IFERROR(MID($J5,FIND(CHAR(160),SUBSTITUTE($J5,\"{\",CHAR(160),EU$1)),FIND(CHAR(160),SUBSTITUTE($J5,\"}\",CHAR(160),EU$1))-FIND(CHAR(160),SUBSTITUTE($J5,\"{\",CHAR(160),EU$1))+1),\"\")","v":""},{"$f":"IFERROR(MID($J5,FIND(CHAR(160),SUBSTITUTE($J5,\"{\",CHAR(160),EV$1)),FIND(CHAR(160),SUBSTITUTE($J5,\"}\",CHAR(160),EV$1))-FIND(CHAR(160),SUBSTITUTE($J5,\"{\",CHAR(160),EV$1))+1),\"\")","v":""},{"$f":"IFERROR(MID($J5,FIND(CHAR(160),SUBSTITUTE($J5,\"{\",CHAR(160),EW$1)),FIND(CHAR(160),SUBSTITUTE($J5,\"}\",CHAR(160),EW$1))-FIND(CHAR(160),SUBSTITUTE($J5,\"{\",CHAR(160),EW$1))+1),\"\")","v":""},{"$f":"IFERROR(MID($J5,FIND(CHAR(160),SUBSTITUTE($J5,\"{\",CHAR(160),EX$1)),FIND(CHAR(160),SUBSTITUTE($J5,\"}\",CHAR(160),EX$1))-FIND(CHAR(160),SUBSTITUTE($J5,\"{\",CHAR(160),EX$1))+1),\"\")","v":""},{"$f":"IFERROR(MID($J5,FIND(CHAR(160),SUBSTITUTE($J5,\"{\",CHAR(160),EY$1)),FIND(CHAR(160),SUBSTITUTE($J5,\"}\",CHAR(160),EY$1))-FIND(CHAR(160),SUBSTITUTE($J5,\"{\",CHAR(160),EY$1))+1),\"\")","v":""},{"$f":"IFERROR(MID($J5,FIND(CHAR(160),SUBSTITUTE($J5,\"{\",CHAR(160),EZ$1)),FIND(CHAR(160),SUBSTITUTE($J5,\"}\",CHAR(160),EZ$1))-FIND(CHAR(160),SUBSTITUTE($J5,\"{\",CHAR(160),EZ$1))+1),\"\")","v":""},{"$f":"IFERROR(MID($J5,FIND(CHAR(160),SUBSTITUTE($J5,\"{\",CHAR(160),FA$1)),FIND(CHAR(160),SUBSTITUTE($J5,\"}\",CHAR(160),FA$1))-FIND(CHAR(160),SUBSTITUTE($J5,\"{\",CHAR(160),FA$1))+1),\"\")","v":"{Measure:Quantity}"},{"$f":"IFERROR(MID($J5,FIND(CHAR(160),SUBSTITUTE($J5,\"{\",CHAR(160),FB$1)),FIND(CHAR(160),SUBSTITUTE($J5,\"}\",CHAR(160),FB$1))-FIND(CHAR(160),SUBSTITUTE($J5,\"{\",CHAR(160),FB$1))+1),\"\")","v":""},{"$f":"IFERROR(MID($O5,FIND(CHAR(160),SUBSTITUTE($O5,\"{\",CHAR(160),FC$1)),FIND(CHAR(160),SUBSTITUTE($O5,\"}\",CHAR(160),FC$1))-FIND(CHAR(160),SUBSTITUTE($O5,\"{\",CHAR(160),FC$1))+1),\"\")","v":""},{"$f":"IFERROR(MID($O5,FIND(CHAR(160),SUBSTITUTE($O5,\"{\",CHAR(160),FD$1)),FIND(CHAR(160),SUBSTITUTE($O5,\"}\",CHAR(160),FD$1))-FIND(CHAR(160),SUBSTITUTE($O5,\"{\",CHAR(160),FD$1))+1),\"\")","v":""},{"$f":"IFERROR(MID($O5,FIND(CHAR(160),SUBSTITUTE($O5,\"{\",CHAR(160),FE$1)),FIND(CHAR(160),SUBSTITUTE($O5,\"}\",CHAR(160),FE$1))-FIND(CHAR(160),SUBSTITUTE($O5,\"{\",CHAR(160),FE$1))+1),\"\")","v":""},{"$f":"IFERROR(MID($O5,FIND(CHAR(160),SUBSTITUTE($O5,\"{\",CHAR(160),FF$1)),FIND(CHAR(160),SUBSTITUTE($O5,\"}\",CHAR(160),FF$1))-FIND(CHAR(160),SUBSTITUTE($O5,\"{\",CHAR(160),FF$1))+1),\"\")","v":""},{"$f":"IFERROR(MID($O5,FIND(CHAR(160),SUBSTITUTE($O5,\"{\",CHAR(160),FG$1)),FIND(CHAR(160),SUBSTITUTE($O5,\"}\",CHAR(160),FG$1))-FIND(CHAR(160),SUBSTITUTE($O5,\"{\",CHAR(160),FG$1))+1),\"\")","v":""},{"$f":"IFERROR(MID($O5,FIND(CHAR(160),SUBSTITUTE($O5,\"{\",CHAR(160),FH$1)),FIND(CHAR(160),SUBSTITUTE($O5,\"}\",CHAR(160),FH$1))-FIND(CHAR(160),SUBSTITUTE($O5,\"{\",CHAR(160),FH$1))+1),\"\")","v":""},{"$f":"IFERROR(MID($O5,FIND(CHAR(160),SUBSTITUTE($O5,\"{\",CHAR(160),FI$1)),FIND(CHAR(160),SUBSTITUTE($O5,\"}\",CHAR(160),FI$1))-FIND(CHAR(160),SUBSTITUTE($O5,\"{\",CHAR(160),FI$1))+1),\"\")","v":""},{"$f":"IFERROR(MID($O5,FIND(CHAR(160),SUBSTITUTE($O5,\"{\",CHAR(160),FJ$1)),FIND(CHAR(160),SUBSTITUTE($O5,\"}\",CHAR(160),FJ$1))-FIND(CHAR(160),SUBSTITUTE($O5,\"{\",CHAR(160),FJ$1))+1),\"\")","v":""},{"$f":"IFERROR(MID($O5,FIND(CHAR(160),SUBSTITUTE($O5,\"{\",CHAR(160),FK$1)),FIND(CHAR(160),SUBSTITUTE($O5,\"}\",CHAR(160),FK$1))-FIND(CHAR(160),SUBSTITUTE($O5,\"{\",CHAR(160),FK$1))+1),\"\")","v":"{Primary heating type}"},{"$f":"IFERROR(MID($O5,FIND(CHAR(160),SUBSTITUTE($O5,\"{\",CHAR(160),FL$1)),FIND(CHAR(160),SUBSTITUTE($O5,\"}\",CHAR(160),FL$1))-FIND(CHAR(160),SUBSTITUTE($O5,\"{\",CHAR(160),FL$1))+1),\"\")","v":"{Primary heating type}"},{"$f":"IFERROR(MID($R5,FIND(CHAR(160),SUBSTITUTE($R5,\"{\",CHAR(160),FM$1)),FIND(CHAR(160),SUBSTITUTE($R5,\"}\",CHAR(160),FM$1))-FIND(CHAR(160),SUBSTITUTE($R5,\"{\",CHAR(160),FM$1))+1),\"\")","v":""},{"$f":"IFERROR(MID($R5,FIND(CHAR(160),SUBSTITUTE($R5,\"{\",CHAR(160),FN$1)),FIND(CHAR(160),SUBSTITUTE($R5,\"}\",CHAR(160),FN$1))-FIND(CHAR(160),SUBSTITUTE($R5,\"{\",CHAR(160),FN$1))+1),\"\")","v":""},{"$f":"IFERROR(MID($R5,FIND(CHAR(160),SUBSTITUTE($R5,\"{\",CHAR(160),FO$1)),FIND(CHAR(160),SUBSTITUTE($R5,\"}\",CHAR(160),FO$1))-FIND(CHAR(160),SUBSTITUTE($R5,\"{\",CHAR(160),FO$1))+1),\"\")","v":""},{"$f":"IFERROR(MID($R5,FIND(CHAR(160),SUBSTITUTE($R5,\"{\",CHAR(160),FP$1)),FIND(CHAR(160),SUBSTITUTE($R5,\"}\",CHAR(160),FP$1))-FIND(CHAR(160),SUBSTITUTE($R5,\"{\",CHAR(160),FP$1))+1),\"\")","v":""},{"$f":"IFERROR(MID($R5,FIND(CHAR(160),SUBSTITUTE($R5,\"{\",CHAR(160),FQ$1)),FIND(CHAR(160),SUBSTITUTE($R5,\"}\",CHAR(160),FQ$1))-FIND(CHAR(160),SUBSTITUTE($R5,\"{\",CHAR(160),FQ$1))+1),\"\")","v":""},{"$f":"IFERROR(MID($R5,FIND(CHAR(160),SUBSTITUTE($R5,\"{\",CHAR(160),FR$1)),FIND(CHAR(160),SUBSTITUTE($R5,\"}\",CHAR(160),FR$1))-FIND(CHAR(160),SUBSTITUTE($R5,\"{\",CHAR(160),FR$1))+1),\"\")","v":""},{"$f":"IFERROR(MID($R5,FIND(CHAR(160),SUBSTITUTE($R5,\"{\",CHAR(160),FS$1)),FIND(CHAR(160),SUBSTITUTE($R5,\"}\",CHAR(160),FS$1))-FIND(CHAR(160),SUBSTITUTE($R5,\"{\",CHAR(160),FS$1))+1),\"\")","v":""},{"$f":"IFERROR(MID($R5,FIND(CHAR(160),SUBSTITUTE($R5,\"{\",CHAR(160),FT$1)),FIND(CHAR(160),SUBSTITUTE($R5,\"}\",CHAR(160),FT$1))-FIND(CHAR(160),SUBSTITUTE($R5,\"{\",CHAR(160),FT$1))+1),\"\")","v":""},{"$f":"IFERROR(MID($R5,FIND(CHAR(160),SUBSTITUTE($R5,\"{\",CHAR(160),FU$1)),FIND(CHAR(160),SUBSTITUTE($R5,\"}\",CHAR(160),FU$1))-FIND(CHAR(160),SUBSTITUTE($R5,\"{\",CHAR(160),FU$1))+1),\"\")","v":""},{"$f":"IFERROR(MID($R5,FIND(CHAR(160),SUBSTITUTE($R5,\"{\",CHAR(160),FV$1)),FIND(CHAR(160),SUBSTITUTE($R5,\"}\",CHAR(160),FV$1))-FIND(CHAR(160),SUBSTITUTE($R5,\"{\",CHAR(160),FV$1))+1),\"\")","v":""},{"$f":"IFERROR(MID($U5,FIND(CHAR(160),SUBSTITUTE($U5,\"{\",CHAR(160),FW$1)),FIND(CHAR(160),SUBSTITUTE($U5,\"}\",CHAR(160),FW$1))-FIND(CHAR(160),SUBSTITUTE($U5,\"{\",CHAR(160),FW$1))+1),\"\")","v":""},{"$f":"IFERROR(MID($U5,FIND(CHAR(160),SUBSTITUTE($U5,\"{\",CHAR(160),FX$1)),FIND(CHAR(160),SUBSTITUTE($U5,\"}\",CHAR(160),FX$1))-FIND(CHAR(160),SUBSTITUTE($U5,\"{\",CHAR(160),FX$1))+1),\"\")","v":""},{"$f":"IFERROR(MID($U5,FIND(CHAR(160),SUBSTITUTE($U5,\"{\",CHAR(160),FY$1)),FIND(CHAR(160),SUBSTITUTE($U5,\"}\",CHAR(160),FY$1))-FIND(CHAR(160),SUBSTITUTE($U5,\"{\",CHAR(160),FY$1))+1),\"\")","v":""},{"$f":"IFERROR(MID($U5,FIND(CHAR(160),SUBSTITUTE($U5,\"{\",CHAR(160),FZ$1)),FIND(CHAR(160),SUBSTITUTE($U5,\"}\",CHAR(160),FZ$1))-FIND(CHAR(160),SUBSTITUTE($U5,\"{\",CHAR(160),FZ$1))+1),\"\")","v":""},{"$f":"IFERROR(MID($U5,FIND(CHAR(160),SUBSTITUTE($U5,\"{\",CHAR(160),GA$1)),FIND(CHAR(160),SUBSTITUTE($U5,\"}\",CHAR(160),GA$1))-FIND(CHAR(160),SUBSTITUTE($U5,\"{\",CHAR(160),GA$1))+1),\"\")","v":""},{"$f":"IFERROR(MID($U5,FIND(CHAR(160),SUBSTITUTE($U5,\"{\",CHAR(160),GB$1)),FIND(CHAR(160),SUBSTITUTE($U5,\"}\",CHAR(160),GB$1))-FIND(CHAR(160),SUBSTITUTE($U5,\"{\",CHAR(160),GB$1))+1),\"\")","v":""},{"$f":"IFERROR(MID($U5,FIND(CHAR(160),SUBSTITUTE($U5,\"{\",CHAR(160),GC$1)),FIND(CHAR(160),SUBSTITUTE($U5,\"}\",CHAR(160),GC$1))-FIND(CHAR(160),SUBSTITUTE($U5,\"{\",CHAR(160),GC$1))+1),\"\")","v":""},{"$f":"IFERROR(MID($U5,FIND(CHAR(160),SUBSTITUTE($U5,\"{\",CHAR(160),GD$1)),FIND(CHAR(160),SUBSTITUTE($U5,\"}\",CHAR(160),GD$1))-FIND(CHAR(160),SUBSTITUTE($U5,\"{\",CHAR(160),GD$1))+1),\"\")","v":""},{"$f":"IFERROR(MID($U5,FIND(CHAR(160),SUBSTITUTE($U5,\"{\",CHAR(160),GE$1)),FIND(CHAR(160),SUBSTITUTE($U5,\"}\",CHAR(160),GE$1))-FIND(CHAR(160),SUBSTITUTE($U5,\"{\",CHAR(160),GE$1))+1),\"\")","v":"{Primary heating type}"},{"$f":"IFERROR(MID($U5,FIND(CHAR(160),SUBSTITUTE($U5,\"{\",CHAR(160),GF$1)),FIND(CHAR(160),SUBSTITUTE($U5,\"}\",CHAR(160),GF$1))-FIND(CHAR(160),SUBSTITUTE($U5,\"{\",CHAR(160),GF$1))+1),\"\")","v":"{Primary heating type}"},{"$f":"IFERROR(MID($V5,FIND(CHAR(160),SUBSTITUTE($V5,\"{\",CHAR(160),GG$1)),FIND(CHAR(160),SUBSTITUTE($V5,\"}\",CHAR(160),GG$1))-FIND(CHAR(160),SUBSTITUTE($V5,\"{\",CHAR(160),GG$1))+1),\"\")","v":""},{"$f":"IFERROR(MID($V5,FIND(CHAR(160),SUBSTITUTE($V5,\"{\",CHAR(160),GH$1)),FIND(CHAR(160),SUBSTITUTE($V5,\"}\",CHAR(160),GH$1))-FIND(CHAR(160),SUBSTITUTE($V5,\"{\",CHAR(160),GH$1))+1),\"\")","v":""},{"$f":"IFERROR(MID($V5,FIND(CHAR(160),SUBSTITUTE($V5,\"{\",CHAR(160),GI$1)),FIND(CHAR(160),SUBSTITUTE($V5,\"}\",CHAR(160),GI$1))-FIND(CHAR(160),SUBSTITUTE($V5,\"{\",CHAR(160),GI$1))+1),\"\")","v":""},{"$f":"IFERROR(MID($V5,FIND(CHAR(160),SUBSTITUTE($V5,\"{\",CHAR(160),GJ$1)),FIND(CHAR(160),SUBSTITUTE($V5,\"}\",CHAR(160),GJ$1))-FIND(CHAR(160),SUBSTITUTE($V5,\"{\",CHAR(160),GJ$1))+1),\"\")","v":""},{"$f":"IFERROR(MID($V5,FIND(CHAR(160),SUBSTITUTE($V5,\"{\",CHAR(160),GK$1)),FIND(CHAR(160),SUBSTITUTE($V5,\"}\",CHAR(160),GK$1))-FIND(CHAR(160),SUBSTITUTE($V5,\"{\",CHAR(160),GK$1))+1),\"\")","v":""},{"$f":"IFERROR(MID($V5,FIND(CHAR(160),SUBSTITUTE($V5,\"{\",CHAR(160),GL$1)),FIND(CHAR(160),SUBSTITUTE($V5,\"}\",CHAR(160),GL$1))-FIND(CHAR(160),SUBSTITUTE($V5,\"{\",CHAR(160),GL$1))+1),\"\")","v":""},{"$f":"IFERROR(MID($V5,FIND(CHAR(160),SUBSTITUTE($V5,\"{\",CHAR(160),GM$1)),FIND(CHAR(160),SUBSTITUTE($V5,\"}\",CHAR(160),GM$1))-FIND(CHAR(160),SUBSTITUTE($V5,\"{\",CHAR(160),GM$1))+1),\"\")","v":""},{"$f":"IFERROR(MID($V5,FIND(CHAR(160),SUBSTITUTE($V5,\"{\",CHAR(160),GN$1)),FIND(CHAR(160),SUBSTITUTE($V5,\"}\",CHAR(160),GN$1))-FIND(CHAR(160),SUBSTITUTE($V5,\"{\",CHAR(160),GN$1))+1),\"\")","v":""},{"$f":"IFERROR(MID($V5,FIND(CHAR(160),SUBSTITUTE($V5,\"{\",CHAR(160),GO$1)),FIND(CHAR(160),SUBSTITUTE($V5,\"}\",CHAR(160),GO$1))-FIND(CHAR(160),SUBSTITUTE($V5,\"{\",CHAR(160),GO$1))+1),\"\")","v":""},{"$f":"IFERROR(MID($V5,FIND(CHAR(160),SUBSTITUTE($V5,\"{\",CHAR(160),GP$1)),FIND(CHAR(160),SUBSTITUTE($V5,\"}\",CHAR(160),GP$1))-FIND(CHAR(160),SUBSTITUTE($V5,\"{\",CHAR(160),GP$1))+1),\"\")","v":""},{"$f":"IFERROR(MID($W5,FIND(CHAR(160),SUBSTITUTE($W5,\"{\",CHAR(160),GQ$1)),FIND(CHAR(160),SUBSTITUTE($W5,\"}\",CHAR(160),GQ$1))-FIND(CHAR(160),SUBSTITUTE($W5,\"{\",CHAR(160),GQ$1))+1),\"\")","v":""},{"$f":"IFERROR(MID($W5,FIND(CHAR(160),SUBSTITUTE($W5,\"{\",CHAR(160),GR$1)),FIND(CHAR(160),SUBSTITUTE($W5,\"}\",CHAR(160),GR$1))-FIND(CHAR(160),SUBSTITUTE($W5,\"{\",CHAR(160),GR$1))+1),\"\")","v":""},{"$f":"IFERROR(MID($W5,FIND(CHAR(160),SUBSTITUTE($W5,\"{\",CHAR(160),GS$1)),FIND(CHAR(160),SUBSTITUTE($W5,\"}\",CHAR(160),GS$1))-FIND(CHAR(160),SUBSTITUTE($W5,\"{\",CHAR(160),GS$1))+1),\"\")","v":""},{"$f":"IFERROR(MID($W5,FIND(CHAR(160),SUBSTITUTE($W5,\"{\",CHAR(160),GT$1)),FIND(CHAR(160),SUBSTITUTE($W5,\"}\",CHAR(160),GT$1))-FIND(CHAR(160),SUBSTITUTE($W5,\"{\",CHAR(160),GT$1))+1),\"\")","v":""},{"$f":"IFERROR(MID($W5,FIND(CHAR(160),SUBSTITUTE($W5,\"{\",CHAR(160),GU$1)),FIND(CHAR(160),SUBSTITUTE($W5,\"}\",CHAR(160),GU$1))-FIND(CHAR(160),SUBSTITUTE($W5,\"{\",CHAR(160),GU$1))+1),\"\")","v":""},{"$f":"IFERROR(MID($W5,FIND(CHAR(160),SUBSTITUTE($W5,\"{\",CHAR(160),GV$1)),FIND(CHAR(160),SUBSTITUTE($W5,\"}\",CHAR(160),GV$1))-FIND(CHAR(160),SUBSTITUTE($W5,\"{\",CHAR(160),GV$1))+1),\"\")","v":""},{"$f":"IFERROR(MID($W5,FIND(CHAR(160),SUBSTITUTE($W5,\"{\",CHAR(160),GW$1)),FIND(CHAR(160),SUBSTITUTE($W5,\"}\",CHAR(160),GW$1))-FIND(CHAR(160),SUBSTITUTE($W5,\"{\",CHAR(160),GW$1))+1),\"\")","v":""},{"$f":"IFERROR(MID($W5,FIND(CHAR(160),SUBSTITUTE($W5,\"{\",CHAR(160),GX$1)),FIND(CHAR(160),SUBSTITUTE($W5,\"}\",CHAR(160),GX$1))-FIND(CHAR(160),SUBSTITUTE($W5,\"{\",CHAR(160),GX$1))+1),\"\")","v":""},{"$f":"IFERROR(MID($W5,FIND(CHAR(160),SUBSTITUTE($W5,\"{\",CHAR(160),GY$1)),FIND(CHAR(160),SUBSTITUTE($W5,\"}\",CHAR(160),GY$1))-FIND(CHAR(160),SUBSTITUTE($W5,\"{\",CHAR(160),GY$1))+1),\"\")","v":"{Primary heating type}"},{"$f":"IFERROR(MID($W5,FIND(CHAR(160),SUBSTITUTE($W5,\"{\",CHAR(160),GZ$1)),FIND(CHAR(160),SUBSTITUTE($W5,\"}\",CHAR(160),GZ$1))-FIND(CHAR(160),SUBSTITUTE($W5,\"{\",CHAR(160),GZ$1))+1),\"\")","v":"{Primary heating type}"},{"$f":"IFERROR(MID($X5,FIND(CHAR(160),SUBSTITUTE($X5,\"{\",CHAR(160),HA$1)),FIND(CHAR(160),SUBSTITUTE($X5,\"}\",CHAR(160),HA$1))-FIND(CHAR(160),SUBSTITUTE($X5,\"{\",CHAR(160),HA$1))+1),\"\")","v":""},{"$f":"IFERROR(MID($X5,FIND(CHAR(160),SUBSTITUTE($X5,\"{\",CHAR(160),HB$1)),FIND(CHAR(160),SUBSTITUTE($X5,\"}\",CHAR(160),HB$1))-FIND(CHAR(160),SUBSTITUTE($X5,\"{\",CHAR(160),HB$1))+1),\"\")","v":""},{"$f":"IFERROR(MID($X5,FIND(CHAR(160),SUBSTITUTE($X5,\"{\",CHAR(160),HC$1)),FIND(CHAR(160),SUBSTITUTE($X5,\"}\",CHAR(160),HC$1))-FIND(CHAR(160),SUBSTITUTE($X5,\"{\",CHAR(160),HC$1))+1),\"\")","v":""},{"$f":"IFERROR(MID($X5,FIND(CHAR(160),SUBSTITUTE($X5,\"{\",CHAR(160),HD$1)),FIND(CHAR(160),SUBSTITUTE($X5,\"}\",CHAR(160),HD$1))-FIND(CHAR(160),SUBSTITUTE($X5,\"{\",CHAR(160),HD$1))+1),\"\")","v":""},{"$f":"IFERROR(MID($X5,FIND(CHAR(160),SUBSTITUTE($X5,\"{\",CHAR(160),HE$1)),FIND(CHAR(160),SUBSTITUTE($X5,\"}\",CHAR(160),HE$1))-FIND(CHAR(160),SUBSTITUTE($X5,\"{\",CHAR(160),HE$1))+1),\"\")","v":""},{"$f":"IFERROR(MID($X5,FIND(CHAR(160),SUBSTITUTE($X5,\"{\",CHAR(160),HF$1)),FIND(CHAR(160),SUBSTITUTE($X5,\"}\",CHAR(160),HF$1))-FIND(CHAR(160),SUBSTITUTE($X5,\"{\",CHAR(160),HF$1))+1),\"\")","v":""},{"$f":"IFERROR(MID($X5,FIND(CHAR(160),SUBSTITUTE($X5,\"{\",CHAR(160),HG$1)),FIND(CHAR(160),SUBSTITUTE($X5,\"}\",CHAR(160),HG$1))-FIND(CHAR(160),SUBSTITUTE($X5,\"{\",CHAR(160),HG$1))+1),\"\")","v":""},{"$f":"IFERROR(MID($X5,FIND(CHAR(160),SUBSTITUTE($X5,\"{\",CHAR(160),HH$1)),FIND(CHAR(160),SUBSTITUTE($X5,\"}\",CHAR(160),HH$1))-FIND(CHAR(160),SUBSTITUTE($X5,\"{\",CHAR(160),HH$1))+1),\"\")","v":""},{"$f":"IFERROR(MID($X5,FIND(CHAR(160),SUBSTITUTE($X5,\"{\",CHAR(160),HI$1)),FIND(CHAR(160),SUBSTITUTE($X5,\"}\",CHAR(160),HI$1))-FIND(CHAR(160),SUBSTITUTE($X5,\"{\",CHAR(160),HI$1))+1),\"\")","v":"{Primary heating type}"},{"$f":"IFERROR(MID($X5,FIND(CHAR(160),SUBSTITUTE($X5,\"{\",CHAR(160),HJ$1)),FIND(CHAR(160),SUBSTITUTE($X5,\"}\",CHAR(160),HJ$1))-FIND(CHAR(160),SUBSTITUTE($X5,\"{\",CHAR(160),HJ$1))+1),\"\")","v":"{Primary heating type}"},{"$f":"IFERROR(MID($Y5,FIND(CHAR(160),SUBSTITUTE($Y5,\"{\",CHAR(160),HK$1)),FIND(CHAR(160),SUBSTITUTE($Y5,\"}\",CHAR(160),HK$1))-FIND(CHAR(160),SUBSTITUTE($Y5,\"{\",CHAR(160),HK$1))+1),\"\")","v":""},{"$f":"IFERROR(MID($Y5,FIND(CHAR(160),SUBSTITUTE($Y5,\"{\",CHAR(160),HL$1)),FIND(CHAR(160),SUBSTITUTE($Y5,\"}\",CHAR(160),HL$1))-FIND(CHAR(160),SUBSTITUTE($Y5,\"{\",CHAR(160),HL$1))+1),\"\")","v":""},{"$f":"IFERROR(MID($Y5,FIND(CHAR(160),SUBSTITUTE($Y5,\"{\",CHAR(160),HM$1)),FIND(CHAR(160),SUBSTITUTE($Y5,\"}\",CHAR(160),HM$1))-FIND(CHAR(160),SUBSTITUTE($Y5,\"{\",CHAR(160),HM$1))+1),\"\")","v":""},{"$f":"IFERROR(MID($Y5,FIND(CHAR(160),SUBSTITUTE($Y5,\"{\",CHAR(160),HN$1)),FIND(CHAR(160),SUBSTITUTE($Y5,\"}\",CHAR(160),HN$1))-FIND(CHAR(160),SUBSTITUTE($Y5,\"{\",CHAR(160),HN$1))+1),\"\")","v":""},{"$f":"IFERROR(MID($Y5,FIND(CHAR(160),SUBSTITUTE($Y5,\"{\",CHAR(160),HO$1)),FIND(CHAR(160),SUBSTITUTE($Y5,\"}\",CHAR(160),HO$1))-FIND(CHAR(160),SUBSTITUTE($Y5,\"{\",CHAR(160),HO$1))+1),\"\")","v":""},{"$f":"IFERROR(MID($Y5,FIND(CHAR(160),SUBSTITUTE($Y5,\"{\",CHAR(160),HP$1)),FIND(CHAR(160),SUBSTITUTE($Y5,\"}\",CHAR(160),HP$1))-FIND(CHAR(160),SUBSTITUTE($Y5,\"{\",CHAR(160),HP$1))+1),\"\")","v":""},{"$f":"IFERROR(MID($Y5,FIND(CHAR(160),SUBSTITUTE($Y5,\"{\",CHAR(160),HQ$1)),FIND(CHAR(160),SUBSTITUTE($Y5,\"}\",CHAR(160),HQ$1))-FIND(CHAR(160),SUBSTITUTE($Y5,\"{\",CHAR(160),HQ$1))+1),\"\")","v":""},{"$f":"IFERROR(MID($Y5,FIND(CHAR(160),SUBSTITUTE($Y5,\"{\",CHAR(160),HR$1)),FIND(CHAR(160),SUBSTITUTE($Y5,\"}\",CHAR(160),HR$1))-FIND(CHAR(160),SUBSTITUTE($Y5,\"{\",CHAR(160),HR$1))+1),\"\")","v":""},{"$f":"IFERROR(MID($Y5,FIND(CHAR(160),SUBSTITUTE($Y5,\"{\",CHAR(160),HS$1)),FIND(CHAR(160),SUBSTITUTE($Y5,\"}\",CHAR(160),HS$1))-FIND(CHAR(160),SUBSTITUTE($Y5,\"{\",CHAR(160),HS$1))+1),\"\")","v":"{Primary heating type}"},{"$f":"IFERROR(MID($Y5,FIND(CHAR(160),SUBSTITUTE($Y5,\"{\",CHAR(160),HT$1)),FIND(CHAR(160),SUBSTITUTE($Y5,\"}\",CHAR(160),HT$1))-FIND(CHAR(160),SUBSTITUTE($Y5,\"{\",CHAR(160),HT$1))+1),\"\")","v":"{Primary heating type}"},{"$f":"IFERROR(MID($Z5,FIND(CHAR(160),SUBSTITUTE($Z5,\"{\",CHAR(160),HU$1)),FIND(CHAR(160),SUBSTITUTE($Z5,\"}\",CHAR(160),HU$1))-FIND(CHAR(160),SUBSTITUTE($Z5,\"{\",CHAR(160),HU$1))+1),\"\")","v":""},{"$f":"IFERROR(MID($Z5,FIND(CHAR(160),SUBSTITUTE($Z5,\"{\",CHAR(160),HV$1)),FIND(CHAR(160),SUBSTITUTE($Z5,\"}\",CHAR(160),HV$1))-FIND(CHAR(160),SUBSTITUTE($Z5,\"{\",CHAR(160),HV$1))+1),\"\")","v":""},{"$f":"IFERROR(MID($Z5,FIND(CHAR(160),SUBSTITUTE($Z5,\"{\",CHAR(160),HW$1)),FIND(CHAR(160),SUBSTITUTE($Z5,\"}\",CHAR(160),HW$1))-FIND(CHAR(160),SUBSTITUTE($Z5,\"{\",CHAR(160),HW$1))+1),\"\")","v":""},{"$f":"IFERROR(MID($Z5,FIND(CHAR(160),SUBSTITUTE($Z5,\"{\",CHAR(160),HX$1)),FIND(CHAR(160),SUBSTITUTE($Z5,\"}\",CHAR(160),HX$1))-FIND(CHAR(160),SUBSTITUTE($Z5,\"{\",CHAR(160),HX$1))+1),\"\")","v":""},{"$f":"IFERROR(MID($Z5,FIND(CHAR(160),SUBSTITUTE($Z5,\"{\",CHAR(160),HY$1)),FIND(CHAR(160),SUBSTITUTE($Z5,\"}\",CHAR(160),HY$1))-FIND(CHAR(160),SUBSTITUTE($Z5,\"{\",CHAR(160),HY$1))+1),\"\")","v":""},{"$f":"IFERROR(MID($Z5,FIND(CHAR(160),SUBSTITUTE($Z5,\"{\",CHAR(160),HZ$1)),FIND(CHAR(160),SUBSTITUTE($Z5,\"}\",CHAR(160),HZ$1))-FIND(CHAR(160),SUBSTITUTE($Z5,\"{\",CHAR(160),HZ$1))+1),\"\")","v":""},{"$f":"IFERROR(MID($Z5,FIND(CHAR(160),SUBSTITUTE($Z5,\"{\",CHAR(160),IA$1)),FIND(CHAR(160),SUBSTITUTE($Z5,\"}\",CHAR(160),IA$1))-FIND(CHAR(160),SUBSTITUTE($Z5,\"{\",CHAR(160),IA$1))+1),\"\")","v":""},{"$f":"IFERROR(MID($Z5,FIND(CHAR(160),SUBSTITUTE($Z5,\"{\",CHAR(160),IB$1)),FIND(CHAR(160),SUBSTITUTE($Z5,\"}\",CHAR(160),IB$1))-FIND(CHAR(160),SUBSTITUTE($Z5,\"{\",CHAR(160),IB$1))+1),\"\")","v":""},{"$f":"IFERROR(MID($Z5,FIND(CHAR(160),SUBSTITUTE($Z5,\"{\",CHAR(160),IC$1)),FIND(CHAR(160),SUBSTITUTE($Z5,\"}\",CHAR(160),IC$1))-FIND(CHAR(160),SUBSTITUTE($Z5,\"{\",CHAR(160),IC$1))+1),\"\")","v":"{Primary heating type}"},{"$f":"IFERROR(MID($Z5,FIND(CHAR(160),SUBSTITUTE($Z5,\"{\",CHAR(160),ID$1)),FIND(CHAR(160),SUBSTITUTE($Z5,\"}\",CHAR(160),ID$1))-FIND(CHAR(160),SUBSTITUTE($Z5,\"{\",CHAR(160),ID$1))+1),\"\")","v":"{Primary heating type}"},{"$f":"IFERROR(MID($AA5,FIND(CHAR(160),SUBSTITUTE($AA5,\"{\",CHAR(160),IE$1)),FIND(CHAR(160),SUBSTITUTE($AA5,\"}\",CHAR(160),IE$1))-FIND(CHAR(160),SUBSTITUTE($AA5,\"{\",CHAR(160),IE$1))+1),\"\")","v":""},{"$f":"IFERROR(MID($AA5,FIND(CHAR(160),SUBSTITUTE($AA5,\"{\",CHAR(160),IF$1)),FIND(CHAR(160),SUBSTITUTE($AA5,\"}\",CHAR(160),IF$1))-FIND(CHAR(160),SUBSTITUTE($AA5,\"{\",CHAR(160),IF$1))+1),\"\")","v":""},{"$f":"IFERROR(MID($AA5,FIND(CHAR(160),SUBSTITUTE($AA5,\"{\",CHAR(160),IG$1)),FIND(CHAR(160),SUBSTITUTE($AA5,\"}\",CHAR(160),IG$1))-FIND(CHAR(160),SUBSTITUTE($AA5,\"{\",CHAR(160),IG$1))+1),\"\")","v":""},{"$f":"IFERROR(MID($AA5,FIND(CHAR(160),SUBSTITUTE($AA5,\"{\",CHAR(160),IH$1)),FIND(CHAR(160),SUBSTITUTE($AA5,\"}\",CHAR(160),IH$1))-FIND(CHAR(160),SUBSTITUTE($AA5,\"{\",CHAR(160),IH$1))+1),\"\")","v":""},{"$f":"IFERROR(MID($AA5,FIND(CHAR(160),SUBSTITUTE($AA5,\"{\",CHAR(160),II$1)),FIND(CHAR(160),SUBSTITUTE($AA5,\"}\",CHAR(160),II$1))-FIND(CHAR(160),SUBSTITUTE($AA5,\"{\",CHAR(160),II$1))+1),\"\")","v":""},{"$f":"IFERROR(MID($AA5,FIND(CHAR(160),SUBSTITUTE($AA5,\"{\",CHAR(160),IJ$1)),FIND(CHAR(160),SUBSTITUTE($AA5,\"}\",CHAR(160),IJ$1))-FIND(CHAR(160),SUBSTITUTE($AA5,\"{\",CHAR(160),IJ$1))+1),\"\")","v":""},{"$f":"IFERROR(MID($AA5,FIND(CHAR(160),SUBSTITUTE($AA5,\"{\",CHAR(160),IK$1)),FIND(CHAR(160),SUBSTITUTE($AA5,\"}\",CHAR(160),IK$1))-FIND(CHAR(160),SUBSTITUTE($AA5,\"{\",CHAR(160),IK$1))+1),\"\")","v":""},{"$f":"IFERROR(MID($AA5,FIND(CHAR(160),SUBSTITUTE($AA5,\"{\",CHAR(160),IL$1)),FIND(CHAR(160),SUBSTITUTE($AA5,\"}\",CHAR(160),IL$1))-FIND(CHAR(160),SUBSTITUTE($AA5,\"{\",CHAR(160),IL$1))+1),\"\")","v":""},{"$f":"IFERROR(MID($AA5,FIND(CHAR(160),SUBSTITUTE($AA5,\"{\",CHAR(160),IM$1)),FIND(CHAR(160),SUBSTITUTE($AA5,\"}\",CHAR(160),IM$1))-FIND(CHAR(160),SUBSTITUTE($AA5,\"{\",CHAR(160),IM$1))+1),\"\")","v":"{Primary heating type}"},{"$f":"IFERROR(MID($AA5,FIND(CHAR(160),SUBSTITUTE($AA5,\"{\",CHAR(160),IN$1)),FIND(CHAR(160),SUBSTITUTE($AA5,\"}\",CHAR(160),IN$1))-FIND(CHAR(160),SUBSTITUTE($AA5,\"{\",CHAR(160),IN$1))+1),\"\")","v":"{Primary heating type}"},{"$f":"IFERROR(MID($AB5,FIND(CHAR(160),SUBSTITUTE($AB5,\"{\",CHAR(160),IO$1)),FIND(CHAR(160),SUBSTITUTE($AB5,\"}\",CHAR(160),IO$1))-FIND(CHAR(160),SUBSTITUTE($AB5,\"{\",CHAR(160),IO$1))+1),\"\")","v":""},{"$f":"IFERROR(MID($AB5,FIND(CHAR(160),SUBSTITUTE($AB5,\"{\",CHAR(160),IP$1)),FIND(CHAR(160),SUBSTITUTE($AB5,\"}\",CHAR(160),IP$1))-FIND(CHAR(160),SUBSTITUTE($AB5,\"{\",CHAR(160),IP$1))+1),\"\")","v":""},{"$f":"IFERROR(MID($AB5,FIND(CHAR(160),SUBSTITUTE($AB5,\"{\",CHAR(160),IQ$1)),FIND(CHAR(160),SUBSTITUTE($AB5,\"}\",CHAR(160),IQ$1))-FIND(CHAR(160),SUBSTITUTE($AB5,\"{\",CHAR(160),IQ$1))+1),\"\")","v":""},{"$f":"IFERROR(MID($AB5,FIND(CHAR(160),SUBSTITUTE($AB5,\"{\",CHAR(160),IR$1)),FIND(CHAR(160),SUBSTITUTE($AB5,\"}\",CHAR(160),IR$1))-FIND(CHAR(160),SUBSTITUTE($AB5,\"{\",CHAR(160),IR$1))+1),\"\")","v":""},{"$f":"IFERROR(MID($AB5,FIND(CHAR(160),SUBSTITUTE($AB5,\"{\",CHAR(160),IS$1)),FIND(CHAR(160),SUBSTITUTE($AB5,\"}\",CHAR(160),IS$1))-FIND(CHAR(160),SUBSTITUTE($AB5,\"{\",CHAR(160),IS$1))+1),\"\")","v":""},{"$f":"IFERROR(MID($AB5,FIND(CHAR(160),SUBSTITUTE($AB5,\"{\",CHAR(160),IT$1)),FIND(CHAR(160),SUBSTITUTE($AB5,\"}\",CHAR(160),IT$1))-FIND(CHAR(160),SUBSTITUTE($AB5,\"{\",CHAR(160),IT$1))+1),\"\")","v":""},{"$f":"IFERROR(MID($AB5,FIND(CHAR(160),SUBSTITUTE($AB5,\"{\",CHAR(160),IU$1)),FIND(CHAR(160),SUBSTITUTE($AB5,\"}\",CHAR(160),IU$1))-FIND(CHAR(160),SUBSTITUTE($AB5,\"{\",CHAR(160),IU$1))+1),\"\")","v":""},{"$f":"IFERROR(MID($AB5,FIND(CHAR(160),SUBSTITUTE($AB5,\"{\",CHAR(160),IV$1)),FIND(CHAR(160),SUBSTITUTE($AB5,\"}\",CHAR(160),IV$1))-FIND(CHAR(160),SUBSTITUTE($AB5,\"{\",CHAR(160),IV$1))+1),\"\")","v":""},{"$f":"IFERROR(MID($AB5,FIND(CHAR(160),SUBSTITUTE($AB5,\"{\",CHAR(160),IW$1)),FIND(CHAR(160),SUBSTITUTE($AB5,\"}\",CHAR(160),IW$1))-FIND(CHAR(160),SUBSTITUTE($AB5,\"{\",CHAR(160),IW$1))+1),\"\")","v":""},{"$f":"IFERROR(MID($AB5,FIND(CHAR(160),SUBSTITUTE($AB5,\"{\",CHAR(160),IX$1)),FIND(CHAR(160),SUBSTITUTE($AB5,\"}\",CHAR(160),IX$1))-FIND(CHAR(160),SUBSTITUTE($AB5,\"{\",CHAR(160),IX$1))+1),\"\")","v":""},null,{"$f":"10-COUNTIF(DU5:ED5,\"\")","v":3}]
["Affordable Heat Initiative - Heat Pumps","MiniSplit HP LIHEAP","LCHL","2021-07-01","2022-06-30","Calculated","{Cost}*{Measure:Quantity}",0,"Calculated","2000.00*{Measure:Quantity}",2000,"2021-07-01","2022-06-30","Calculated","if({Primary heating type}=6,5379,if({Primary heating type}=0,-2581.54,-2744))",null,null,null,null,null,"if({Primary heating type}=6,1.046,if({Primary heating type}=0,-0.562,-0.595))",3.1E-2,"10*if({Primary heating type}=1,1,if({Primary heating type}=0,0,0))*31.72","if({Primary heating type}=2,1,if({Primary heating type}=0,0.06,0))*31.72","if({Primary heating type}=3,1,if({Primary heating type}=0,0.79,0))*31.72","if({Primary heating type}=4,1,if({Primary heating type}=0,0.06,0))*31.72","if({Primary heating type}=5,1,if({Primary heating type}=0,0.07,0))*31.72",0,"2019-07-01","2022-06-30",18,1,1,0.373,0.52800000000000002,5.2999999999999999E-2,4.5999999999999999E-2,1,1,1,0,0,null,{"$f":"DU6","v":"{Cost}"},2500,{"$f":"DV6","v":"{Measure:Quantity}"},1,{"$f":"DW6","v":"{Primary heating type}"},0,{"$f":"DX6","v":""},null,{"$f":"DY6","v":""},null,{"$f":"DZ6","v":""},null,{"$f":"EA6","v":""},null,{"$f":"EB6","v":""},null,{"$f":"EC6","v":""},null,{"$f":"ED6","v":""},null,{"$f":"IF(AW6=6,5379,IF(AW6=0,-2581.54,-2744))","v":-2581.54},0,0,0,0,0,{"$f":"IF(AW6=6,1.046,IF(AW6=0,-0.562,-0.595))","v":-0.56200000000000006},{"$f":"0.031","v":3.1E-2},{"$f":"10*IF(AW6=1,1,IF(AW6=0,0,0))*31.72","v":0},{"$f":"IF(AW6=2,1,IF(AW6=0,0.06,0))*31.72","v":1.9031999999999998},{"$f":"IF(AW6=3,1,IF(AW6=0,0.79,0))*31.72","v":25.058800000000002},{"$f":"IF(AW6=4,1,IF(AW6=0,0.06,0))*31.72","v":1.9031999999999998},{"$f":"IF(AW6=5,1,IF(AW6=0,0.07,0))*31.72","v":2.2204000000000002},{"$f":"0","v":0},null,"Res","Default DR",{"$f":"Benefits(BL6,BR6,BS6,BT6,BU6,BV6,BW6,BX6,BY6,BZ6,AE6,AH6,AI6,AJ6,AK6,AL6,AM6,AN6,AO6,AP6,CA6,CB6)","v":-4060.1156773569869},-2378.4162261572933,0,12106.480064238687,1072.5073941911157,1289.6563878927213,684.80354014575971,0,0,{"$f":"SUMPRODUCT(CC6:CK6,--(CC6:CK6>0))","v":15153.447386468284},{"$f":"-SUMPRODUCT(CC6:CK6,--(CC6:CK6<0))","v":6438.5319035142802},null,{"$f":"AS6*AU6","v":2500},null,null,{"$f":"CM6+CO6","v":8938.5319035142802},{"$f":"IF(NetOrGross=\"Net\",(1-AO6+AP6),1)","v":1},{"$f":"(SUMPRODUCT(CC6:CJ6,--(CC6:CJ6>0))+CN6)*CS6/((-SUMPRODUCT(CC6:CJ6,--(CC6:CJ6<0))+MAX(CO6,CV6)+CP6+CQ6)*CS6+IF(FRIncentives=\"Yes\",CV6*(1-CS6),0))","v":1.6952948817591111},1,{"$f":"2000*AU6","v":2000},null,"Electric","y",1,{"$f":"IF(F6=\"Manual Entry\",\"Manual\",IF(G6=\"\",0,\"X=\"&SUBSTITUTE(SUBSTITUTE(SUBSTITUTE(SUBSTITUTE(SUBSTITUTE(SUBSTITUTE(SUBSTITUTE(SUBSTITUTE(SUBSTITUTE(SUBSTITUTE(SUBSTITUTE(SUBSTITUTE(G6,$ED6,$ED$2&ROW($ED6)),$EC6,$EC$2&ROW($EC6)),$EB6,$EB$2&ROW($EB6)),$EA6,$EA$2&ROW($EA6)),$DZ6,$DZ$2&ROW($DZ6)),$DY6,$DY$2&ROW($DY6)),$DX6,$DX$2&ROW($DX6)),$DW6,$DW$2&ROW($DW6)),$DV6,$DV$2&ROW($DV6)),$DU6,$DU$2&ROW($DU6)),$DT6,$DT$2&ROW($DT6)),$DS6,$DS$2&ROW($DS6))))","v":"X=AS6*AU6"},{"$f":"IF(I6=\"Manual Entry\",\"Manual\",IF(J6=\"\",0,\"X=\"&SUBSTITUTE(SUBSTITUTE(SUBSTITUTE(SUBSTITUTE(SUBSTITUTE(SUBSTITUTE(SUBSTITUTE(SUBSTITUTE(SUBSTITUTE(SUBSTITUTE(SUBSTITUTE(SUBSTITUTE(J6,$ED6,$ED$2&ROW($ED6)),$EC6,$EC$2&ROW($EC6)),$EB6,$EB$2&ROW($EB6)),$EA6,$EA$2&ROW($EA6)),$DZ6,$DZ$2&ROW($DZ6)),$DY6,$DY$2&ROW($DY6)),$DX6,$DX$2&ROW($DX6)),$DW6,$DW$2&ROW($DW6)),$DV6,$DV$2&ROW($DV6)),$DU6,$DU$2&ROW($DU6)),$DT6,$DT$2&ROW($DT6)),$DS6,$DS$2&ROW($DS6))))","v":"X=2000.00*AU6"},{"$f":"IF(O6=\"\",0,\"X=\"&SUBSTITUTE(SUBSTITUTE(SUBSTITUTE(SUBSTITUTE(SUBSTITUTE(SUBSTITUTE(SUBSTITUTE(SUBSTITUTE(SUBSTITUTE(SUBSTITUTE(SUBSTITUTE(SUBSTITUTE(O6,$ED6,$ED$2&ROW($ED6)),$EC6,$EC$2&ROW($EC6)),$EB6,$EB$2&ROW($EB6)),$EA6,$EA$2&ROW($EA6)),$DZ6,$DZ$2&ROW($DZ6)),$DY6,$DY$2&ROW($DY6)),$DX6,$DX$2&ROW($DX6)),$DW6,$DW$2&ROW($DW6)),$DV6,$DV$2&ROW($DV6)),$DU6,$DU$2&ROW($DU6)),$DT6,$DT$2&ROW($DT6)),$DS6,$DS$2&ROW($DS6)))","v":"X=if(AW6=6,5379,if(AW6=0,-2581.54,-2744))"},{"$f":"IF(P6=\"\",0,\"X=\"&SUBSTITUTE(SUBSTITUTE(SUBSTITUTE(SUBSTITUTE(SUBSTITUTE(SUBSTITUTE(SUBSTITUTE(SUBSTITUTE(SUBSTITUTE(SUBSTITUTE(SUBSTITUTE(SUBSTITUTE(P6,$ED6,$ED$2&ROW($ED6)),$EC6,$EC$2&ROW($EC6)),$EB6,$EB$2&ROW($EB6)),$EA6,$EA$2&ROW($EA6)),$DZ6,$DZ$2&ROW($DZ6)),$DY6,$DY$2&ROW($DY6)),$DX6,$DX$2&ROW($DX6)),$DW6,$DW$2&ROW($DW6)),$DV6,$DV$2&ROW($DV6)),$DU6,$DU$2&ROW($DU6)),$DT6,$DT$2&ROW($DT6)),$DS6,$DS$2&ROW($DS6)))","v":0},{"$f":"IF(Q6=\"\",0,\"X=\"&SUBSTITUTE(SUBSTITUTE(SUBSTITUTE(SUBSTITUTE(SUBSTITUTE(SUBSTITUTE(SUBSTITUTE(SUBSTITUTE(SUBSTITUTE(SUBSTITUTE(SUBSTITUTE(SUBSTITUTE(Q6,$ED6,$ED$2&ROW($ED6)),$EC6,$EC$2&ROW($EC6)),$EB6,$EB$2&ROW($EB6)),$EA6,$EA$2&ROW($EA6)),$DZ6,$DZ$2&ROW($DZ6)),$DY6,$DY$2&ROW($DY6)),$DX6,$DX$2&ROW($DX6)),$DW6,$DW$2&ROW($DW6)),$DV6,$DV$2&ROW($DV6)),$DU6,$DU$2&ROW($DU6)),$DT6,$DT$2&ROW($DT6)),$DS6,$DS$2&ROW($DS6)))","v":0},{"$f":"IF(R6=\"\",0,\"X=\"&SUBSTITUTE(SUBSTITUTE(SUBSTITUTE(SUBSTITUTE(SUBSTITUTE(SUBSTITUTE(SUBSTITUTE(SUBSTITUTE(SUBSTITUTE(SUBSTITUTE(SUBSTITUTE(SUBSTITUTE(R6,$ED6,$ED$2&ROW($ED6)),$EC6,$EC$2&ROW($EC6)),$EB6,$EB$2&ROW($EB6)),$EA6,$EA$2&ROW($EA6)),$DZ6,$DZ$2&ROW($DZ6)),$DY6,$DY$2&ROW($DY6)),$DX6,$DX$2&ROW($DX6)),$DW6,$DW$2&ROW($DW6)),$DV6,$DV$2&ROW($DV6)),$DU6,$DU$2&ROW($DU6)),$DT6,$DT$2&ROW($DT6)),$DS6,$DS$2&ROW($DS6)))","v":0},{"$f":"IF(S6=\"\",0,\"X=\"&SUBSTITUTE(SUBSTITUTE(SUBSTITUTE(SUBSTITUTE(SUBSTITUTE(SUBSTITUTE(SUBSTITUTE(SUBSTITUTE(SUBSTITUTE(SUBSTITUTE(SUBSTITUTE(SUBSTITUTE(S6,$ED6,$ED$2&ROW($ED6)),$EC6,$EC$2&ROW($EC6)),$EB6,$EB$2&ROW($EB6)),$EA6,$EA$2&ROW($EA6)),$DZ6,$DZ$2&ROW($DZ6)),$DY6,$DY$2&ROW($DY6)),$DX6,$DX$2&ROW($DX6)),$DW6,$DW$2&ROW($DW6)),$DV6,$DV$2&ROW($DV6)),$DU6,$DU$2&ROW($DU6)),$DT6,$DT$2&ROW($DT6)),$DS6,$DS$2&ROW($DS6)))","v":0},{"$f":"IF(T6=\"\",0,\"X=\"&SUBSTITUTE(SUBSTITUTE(SUBSTITUTE(SUBSTITUTE(SUBSTITUTE(SUBSTITUTE(SUBSTITUTE(SUBSTITUTE(SUBSTITUTE(SUBSTITUTE(SUBSTITUTE(SUBSTITUTE(T6,$ED6,$ED$2&ROW($ED6)),$EC6,$EC$2&ROW($EC6)),$EB6,$EB$2&ROW($EB6)),$EA6,$EA$2&ROW($EA6)),$DZ6,$DZ$2&ROW($DZ6)),$DY6,$DY$2&ROW($DY6)),$DX6,$DX$2&ROW($DX6)),$DW6,$DW$2&ROW($DW6)),$DV6,$DV$2&ROW($DV6)),$DU6,$DU$2&ROW($DU6)),$DT6,$DT$2&ROW($DT6)),$DS6,$DS$2&ROW($DS6)))","v":0},{"$f":"IF(U6=\"\",0,\"X=\"&SUBSTITUTE(SUBSTITUTE(SUBSTITUTE(SUBSTITUTE(SUBSTITUTE(SUBSTITUTE(SUBSTITUTE(SUBSTITUTE(SUBSTITUTE(SUBSTITUTE(SUBSTITUTE(SUBSTITUTE(U6,$ED6,$ED$2&ROW($ED6)),$EC6,$EC$2&ROW($EC6)),$EB6,$EB$2&ROW($EB6)),$EA6,$EA$2&ROW($EA6)),$DZ6,$DZ$2&ROW($DZ6)),$DY6,$DY$2&ROW($DY6)),$DX6,$DX$2&ROW($DX6)),$DW6,$DW$2&ROW($DW6)),$DV6,$DV$2&ROW($DV6)),$DU6,$DU$2&ROW($DU6)),$DT6,$DT$2&ROW($DT6)),$DS6,$DS$2&ROW($DS6)))","v":"X=if(AW6=6,1.046,if(AW6=0,-0.562,-0.595))"},{"$f":"IF(V6=\"\",0,\"X=\"&SUBSTITUTE(SUBSTITUTE(SUBSTITUTE(SUBSTITUTE(SUBSTITUTE(SUBSTITUTE(SUBSTITUTE(SUBSTITUTE(SUBSTITUTE(SUBSTITUTE(SUBSTITUTE(SUBSTITUTE(V6,$ED6,$ED$2&ROW($ED6)),$EC6,$EC$2&ROW($EC6)),$EB6,$EB$2&ROW($EB6)),$EA6,$EA$2&ROW($EA6)),$DZ6,$DZ$2&ROW($DZ6)),$DY6,$DY$2&ROW($DY6)),$DX6,$DX$2&ROW($DX6)),$DW6,$DW$2&ROW($DW6)),$DV6,$DV$2&ROW($DV6)),$DU6,$DU$2&ROW($DU6)),$DT6,$DT$2&ROW($DT6)),$DS6,$DS$2&ROW($DS6)))","v":"X=0.031"},{"$f":"IF(W6=\"\",0,\"X=\"&SUBSTITUTE(SUBSTITUTE(SUBSTITUTE(SUBSTITUTE(SUBSTITUTE(SUBSTITUTE(SUBSTITUTE(SUBSTITUTE(SUBSTITUTE(SUBSTITUTE(SUBSTITUTE(SUBSTITUTE(W6,$ED6,$ED$2&ROW($ED6)),$EC6,$EC$2&ROW($EC6)),$EB6,$EB$2&ROW($EB6)),$EA6,$EA$2&ROW($EA6)),$DZ6,$DZ$2&ROW($DZ6)),$DY6,$DY$2&ROW($DY6)),$DX6,$DX$2&ROW($DX6)),$DW6,$DW$2&ROW($DW6)),$DV6,$DV$2&ROW($DV6)),$DU6,$DU$2&ROW($DU6)),$DT6,$DT$2&ROW($DT6)),$DS6,$DS$2&ROW($DS6)))","v":"X=10*if(AW6=1,1,if(AW6=0,0,0))*31.72"},{"$f":"IF(X6=\"\",0,\"X=\"&SUBSTITUTE(SUBSTITUTE(SUBSTITUTE(SUBSTITUTE(SUBSTITUTE(SUBSTITUTE(SUBSTITUTE(SUBSTITUTE(SUBSTITUTE(SUBSTITUTE(SUBSTITUTE(SUBSTITUTE(X6,$ED6,$ED$2&ROW($ED6)),$EC6,$EC$2&ROW($EC6)),$EB6,$EB$2&ROW($EB6)),$EA6,$EA$2&ROW($EA6)),$DZ6,$DZ$2&ROW($DZ6)),$DY6,$DY$2&ROW($DY6)),$DX6,$DX$2&ROW($DX6)),$DW6,$DW$2&ROW($DW6)),$DV6,$DV$2&ROW($DV6)),$DU6,$DU$2&ROW($DU6)),$DT6,$DT$2&ROW($DT6)),$DS6,$DS$2&ROW($DS6)))","v":"X=if(AW6=2,1,if(AW6=0,0.06,0))*31.72"},{"$f":"IF(Y6=\"\",0,\"X=\"&SUBSTITUTE(SUBSTITUTE(SUBSTITUTE(SUBSTITUTE(SUBSTITUTE(SUBSTITUTE(SUBSTITUTE(SUBSTITUTE(SUBSTITUTE(SUBSTITUTE(SUBSTITUTE(SUBSTITUTE(Y6,$ED6,$ED$2&ROW($ED6)),$EC6,$EC$2&ROW($EC6)),$EB6,$EB$2&ROW($EB6)),$EA6,$EA$2&ROW($EA6)),$DZ6,$DZ$2&ROW($DZ6)),$DY6,$DY$2&ROW($DY6)),$DX6,$DX$2&ROW($DX6)),$DW6,$DW$2&ROW($DW6)),$DV6,$DV$2&ROW($DV6)),$DU6,$DU$2&ROW($DU6)),$DT6,$DT$2&ROW($DT6)),$DS6,$DS$2&ROW($DS6)))","v":"X=if(AW6=3,1,if(AW6=0,0.79,0))*31.72"},{"$f":"IF(Z6=\"\",0,\"X=\"&SUBSTITUTE(SUBSTITUTE(SUBSTITUTE(SUBSTITUTE(SUBSTITUTE(SUBSTITUTE(SUBSTITUTE(SUBSTITUTE(SUBSTITUTE(SUBSTITUTE(SUBSTITUTE(SUBSTITUTE(Z6,$ED6,$ED$2&ROW($ED6)),$EC6,$EC$2&ROW($EC6)),$EB6,$EB$2&ROW($EB6)),$EA6,$EA$2&ROW($EA6)),$DZ6,$DZ$2&ROW($DZ6)),$DY6,$DY$2&ROW($DY6)),$DX6,$DX$2&ROW($DX6)),$DW6,$DW$2&ROW($DW6)),$DV6,$DV$2&ROW($DV6)),$DU6,$DU$2&ROW($DU6)),$DT6,$DT$2&ROW($DT6)),$DS6,$DS$2&ROW($DS6)))","v":"X=if(AW6=4,1,if(AW6=0,0.06,0))*31.72"},{"$f":"IF(AA6=\"\",0,\"X=\"&SUBSTITUTE(SUBSTITUTE(SUBSTITUTE(SUBSTITUTE(SUBSTITUTE(SUBSTITUTE(SUBSTITUTE(SUBSTITUTE(SUBSTITUTE(SUBSTITUTE(SUBSTITUTE(SUBSTITUTE(AA6,$ED6,$ED$2&ROW($ED6)),$EC6,$EC$2&ROW($EC6)),$EB6,$EB$2&ROW($EB6)),$EA6,$EA$2&ROW($EA6)),$DZ6,$DZ$2&ROW($DZ6)),$DY6,$DY$2&ROW($DY6)),$DX6,$DX$2&ROW($DX6)),$DW6,$DW$2&ROW($DW6)),$DV6,$DV$2&ROW($DV6)),$DU6,$DU$2&ROW($DU6)),$DT6,$DT$2&ROW($DT6)),$DS6,$DS$2&ROW($DS6)))","v":"X=if(AW6=5,1,if(AW6=0,0.07,0))*31.72"},{"$f":"IF(AB6=\"\",0,\"X=\"&SUBSTITUTE(SUBSTITUTE(SUBSTITUTE(SUBSTITUTE(SUBSTITUTE(SUBSTITUTE(SUBSTITUTE(SUBSTITUTE(SUBSTITUTE(SUBSTITUTE(SUBSTITUTE(SUBSTITUTE(AB6,$ED6,$ED$2&ROW($ED6)),$EC6,$EC$2&ROW($EC6)),$EB6,$EB$2&ROW($EB6)),$EA6,$EA$2&ROW($EA6)),$DZ6,$DZ$2&ROW($DZ6)),$DY6,$DY$2&ROW($DY6)),$DX6,$DX$2&ROW($DX6)),$DW6,$DW$2&ROW($DW6)),$DV6,$DV$2&ROW($DV6)),$DU6,$DU$2&ROW($DU6)),$DT6,$DT$2&ROW($DT6)),$DS6,$DS$2&ROW($DS6)))","v":"X=0"},null,null,"{Factor:WinterCF}","{Factor:SummerCF}",{"$f":"IFERROR(INDEX($EG6:$IV6,MATCH(0,COUNTIF($DR6:DT6,$EG6:$IV6),0)),\"\")","v":"{Cost}"},{"$f":"IFERROR(INDEX($EG6:$IV6,MATCH(0,COUNTIF($DR6:DU6,$EG6:$IV6),0)),\"\")","v":"{Measure:Quantity}"},{"$f":"IFERROR(INDEX($EG6:$IV6,MATCH(0,COUNTIF($DR6:DV6,$EG6:$IV6),0)),\"\")","v":"{Primary heating type}"},{"$f":"IFERROR(INDEX($EG6:$IV6,MATCH(0,COUNTIF($DR6:DW6,$EG6:$IV6),0)),\"\")","v":""},{"$f":"IFERROR(INDEX($EG6:$IV6,MATCH(0,COUNTIF($DR6:DX6,$EG6:$IV6),0)),\"\")","v":""},{"$f":"IFERROR(INDEX($EG6:$IV6,MATCH(0,COUNTIF($DR6:DY6,$EG6:$IV6),0)),\"\")","v":""},{"$f":"IFERROR(INDEX($EG6:$IV6,MATCH(0,COUNTIF($DR6:DZ6,$EG6:$IV6),0)),\"\")","v":""},{"$f":"IFERROR(INDEX($EG6:$IV6,MATCH(0,COUNTIF($DR6:EA6,$EG6:$IV6),0)),\"\")","v":""},{"$f":"IFERROR(INDEX($EG6:$IV6,MATCH(0,COUNTIF($DR6:EB6,$EG6:$IV6),0)),\"\")","v":""},{"$f":"IFERROR(INDEX($EG6:$IV6,MATCH(0,COUNTIF($DR6:EC6,$EG6:$IV6),0)),\"\")","v":""},null,null,{"$f":"IFERROR(MID($G6,FIND(CHAR(160),SUBSTITUTE($G6,\"{\",CHAR(160),EG$1)),FIND(CHAR(160),SUBSTITUTE($G6,\"}\",CHAR(160),EG$1))-FIND(CHAR(160),SUBSTITUTE($G6,\"{\",CHAR(160),EG$1))+1),\"\")","v":"{Cost}"},{"$f":"IFERROR(MID($G6,FIND(CHAR(160),SUBSTITUTE($G6,\"{\",CHAR(160),EH$1)),FIND(CHAR(160),SUBSTITUTE($G6,\"}\",CHAR(160),EH$1))-FIND(CHAR(160),SUBSTITUTE($G6,\"{\",CHAR(160),EH$1))+1),\"\")","v":"{Measure:Quantity}"},{"$f":"IFERROR(MID($G6,FIND(CHAR(160),SUBSTITUTE($G6,\"{\",CHAR(160),EI$1)),FIND(CHAR(160),SUBSTITUTE($G6,\"}\",CHAR(160),EI$1))-FIND(CHAR(160),SUBSTITUTE($G6,\"{\",CHAR(160),EI$1))+1),\"\")","v":""},{"$f":"IFERROR(MID($G6,FIND(CHAR(160),SUBSTITUTE($G6,\"{\",CHAR(160),EJ$1)),FIND(CHAR(160),SUBSTITUTE($G6,\"}\",CHAR(160),EJ$1))-FIND(CHAR(160),SUBSTITUTE($G6,\"{\",CHAR(160),EJ$1))+1),\"\")","v":""},{"$f":"IFERROR(MID($G6,FIND(CHAR(160),SUBSTITUTE($G6,\"{\",CHAR(160),EK$1)),FIND(CHAR(160),SUBSTITUTE($G6,\"}\",CHAR(160),EK$1))-FIND(CHAR(160),SUBSTITUTE($G6,\"{\",CHAR(160),EK$1))+1),\"\")","v":""},{"$f":"IFERROR(MID($G6,FIND(CHAR(160),SUBSTITUTE($G6,\"{\",CHAR(160),EL$1)),FIND(CHAR(160),SUBSTITUTE($G6,\"}\",CHAR(160),EL$1))-FIND(CHAR(160),SUBSTITUTE($G6,\"{\",CHAR(160),EL$1))+1),\"\")","v":""},{"$f":"IFERROR(MID($G6,FIND(CHAR(160),SUBSTITUTE($G6,\"{\",CHAR(160),EM$1)),FIND(CHAR(160),SUBSTITUTE($G6,\"}\",CHAR(160),EM$1))-FIND(CHAR(160),SUBSTITUTE($G6,\"{\",CHAR(160),EM$1))+1),\"\")","v":""},{"$f":"IFERROR(MID($G6,FIND(CHAR(160),SUBSTITUTE($G6,\"{\",CHAR(160),EN$1)),FIND(CHAR(160),SUBSTITUTE($G6,\"}\",CHAR(160),EN$1))-FIND(CHAR(160),SUBSTITUTE($G6,\"{\",CHAR(160),EN$1))+1),\"\")","v":""},{"$f":"IFERROR(MID($G6,FIND(CHAR(160),SUBSTITUTE($G6,\"{\",CHAR(160),EO$1)),FIND(CHAR(160),SUBSTITUTE($G6,\"}\",CHAR(160),EO$1))-FIND(CHAR(160),SUBSTITUTE($G6,\"{\",CHAR(160),EO$1))+1),\"\")","v":""},{"$f":"IFERROR(MID($G6,FIND(CHAR(160),SUBSTITUTE($G6,\"{\",CHAR(160),EP$1)),FIND(CHAR(160),SUBSTITUTE($G6,\"}\",CHAR(160),EP$1))-FIND(CHAR(160),SUBSTITUTE($G6,\"{\",CHAR(160),EP$1))+1),\"\")","v":""},{"$f":"IFERROR(MID($J6,FIND(CHAR(160),SUBSTITUTE($J6,\"{\",CHAR(160),EQ$1)),FIND(CHAR(160),SUBSTITUTE($J6,\"}\",CHAR(160),EQ$1))-FIND(CHAR(160),SUBSTITUTE($J6,\"{\",CHAR(160),EQ$1))+1),\"\")","v":"{Measure:Quantity}"},{"$f":"IFERROR(MID($J6,FIND(CHAR(160),SUBSTITUTE($J6,\"{\",CHAR(160),ER$1)),FIND(CHAR(160),SUBSTITUTE($J6,\"}\",CHAR(160),ER$1))-FIND(CHAR(160),SUBSTITUTE($J6,\"{\",CHAR(160),ER$1))+1),\"\")","v":""},{"$f":"IFERROR(MID($J6,FIND(CHAR(160),SUBSTITUTE($J6,\"{\",CHAR(160),ES$1)),FIND(CHAR(160),SUBSTITUTE($J6,\"}\",CHAR(160),ES$1))-FIND(CHAR(160),SUBSTITUTE($J6,\"{\",CHAR(160),ES$1))+1),\"\")","v":""},{"$f":"IFERROR(MID($J6,FIND(CHAR(160),SUBSTITUTE($J6,\"{\",CHAR(160),ET$1)),FIND(CHAR(160),SUBSTITUTE($J6,\"}\",CHAR(160),ET$1))-FIND(CHAR(160),SUBSTITUTE($J6,\"{\",CHAR(160),ET$1))+1),\"\")","v":""},{"$f":"IFERROR(MID($J6,FIND(CHAR(160),SUBSTITUTE($J6,\"{\",CHAR(160),EU$1)),FIND(CHAR(160),SUBSTITUTE($J6,\"}\",CHAR(160),EU$1))-FIND(CHAR(160),SUBSTITUTE($J6,\"{\",CHAR(160),EU$1))+1),\"\")","v":""},{"$f":"IFERROR(MID($J6,FIND(CHAR(160),SUBSTITUTE($J6,\"{\",CHAR(160),EV$1)),FIND(CHAR(160),SUBSTITUTE($J6,\"}\",CHAR(160),EV$1))-FIND(CHAR(160),SUBSTITUTE($J6,\"{\",CHAR(160),EV$1))+1),\"\")","v":""},{"$f":"IFERROR(MID($J6,FIND(CHAR(160),SUBSTITUTE($J6,\"{\",CHAR(160),EW$1)),FIND(CHAR(160),SUBSTITUTE($J6,\"}\",CHAR(160),EW$1))-FIND(CHAR(160),SUBSTITUTE($J6,\"{\",CHAR(160),EW$1))+1),\"\")","v":""},{"$f":"IFERROR(MID($J6,FIND(CHAR(160),SUBSTITUTE($J6,\"{\",CHAR(160),EX$1)),FIND(CHAR(160),SUBSTITUTE($J6,\"}\",CHAR(160),EX$1))-FIND(CHAR(160),SUBSTITUTE($J6,\"{\",CHAR(160),EX$1))+1),\"\")","v":""},{"$f":"IFERROR(MID($J6,FIND(CHAR(160),SUBSTITUTE($J6,\"{\",CHAR(160),EY$1)),FIND(CHAR(160),SUBSTITUTE($J6,\"}\",CHAR(160),EY$1))-FIND(CHAR(160),SUBSTITUTE($J6,\"{\",CHAR(160),EY$1))+1),\"\")","v":""},{"$f":"IFERROR(MID($J6,FIND(CHAR(160),SUBSTITUTE($J6,\"{\",CHAR(160),EZ$1)),FIND(CHAR(160),SUBSTITUTE($J6,\"}\",CHAR(160),EZ$1))-FIND(CHAR(160),SUBSTITUTE($J6,\"{\",CHAR(160),EZ$1))+1),\"\")","v":""},{"$f":"IFERROR(MID($J6,FIND(CHAR(160),SUBSTITUTE($J6,\"{\",CHAR(160),FA$1)),FIND(CHAR(160),SUBSTITUTE($J6,\"}\",CHAR(160),FA$1))-FIND(CHAR(160),SUBSTITUTE($J6,\"{\",CHAR(160),FA$1))+1),\"\")","v":"{Measure:Quantity}"},{"$f":"IFERROR(MID($J6,FIND(CHAR(160),SUBSTITUTE($J6,\"{\",CHAR(160),FB$1)),FIND(CHAR(160),SUBSTITUTE($J6,\"}\",CHAR(160),FB$1))-FIND(CHAR(160),SUBSTITUTE($J6,\"{\",CHAR(160),FB$1))+1),\"\")","v":""},{"$f":"IFERROR(MID($O6,FIND(CHAR(160),SUBSTITUTE($O6,\"{\",CHAR(160),FC$1)),FIND(CHAR(160),SUBSTITUTE($O6,\"}\",CHAR(160),FC$1))-FIND(CHAR(160),SUBSTITUTE($O6,\"{\",CHAR(160),FC$1))+1),\"\")","v":""},{"$f":"IFERROR(MID($O6,FIND(CHAR(160),SUBSTITUTE($O6,\"{\",CHAR(160),FD$1)),FIND(CHAR(160),SUBSTITUTE($O6,\"}\",CHAR(160),FD$1))-FIND(CHAR(160),SUBSTITUTE($O6,\"{\",CHAR(160),FD$1))+1),\"\")","v":""},{"$f":"IFERROR(MID($O6,FIND(CHAR(160),SUBSTITUTE($O6,\"{\",CHAR(160),FE$1)),FIND(CHAR(160),SUBSTITUTE($O6,\"}\",CHAR(160),FE$1))-FIND(CHAR(160),SUBSTITUTE($O6,\"{\",CHAR(160),FE$1))+1),\"\")","v":""},{"$f":"IFERROR(MID($O6,FIND(CHAR(160),SUBSTITUTE($O6,\"{\",CHAR(160),FF$1)),FIND(CHAR(160),SUBSTITUTE($O6,\"}\",CHAR(160),FF$1))-FIND(CHAR(160),SUBSTITUTE($O6,\"{\",CHAR(160),FF$1))+1),\"\")","v":""},{"$f":"IFERROR(MID($O6,FIND(CHAR(160),SUBSTITUTE($O6,\"{\",CHAR(160),FG$1)),FIND(CHAR(160),SUBSTITUTE($O6,\"}\",CHAR(160),FG$1))-FIND(CHAR(160),SUBSTITUTE($O6,\"{\",CHAR(160),FG$1))+1),\"\")","v":""},{"$f":"IFERROR(MID($O6,FIND(CHAR(160),SUBSTITUTE($O6,\"{\",CHAR(160),FH$1)),FIND(CHAR(160),SUBSTITUTE($O6,\"}\",CHAR(160),FH$1))-FIND(CHAR(160),SUBSTITUTE($O6,\"{\",CHAR(160),FH$1))+1),\"\")","v":""},{"$f":"IFERROR(MID($O6,FIND(CHAR(160),SUBSTITUTE($O6,\"{\",CHAR(160),FI$1)),FIND(CHAR(160),SUBSTITUTE($O6,\"}\",CHAR(160),FI$1))-FIND(CHAR(160),SUBSTITUTE($O6,\"{\",CHAR(160),FI$1))+1),\"\")","v":""},{"$f":"IFERROR(MID($O6,FIND(CHAR(160),SUBSTITUTE($O6,\"{\",CHAR(160),FJ$1)),FIND(CHAR(160),SUBSTITUTE($O6,\"}\",CHAR(160),FJ$1))-FIND(CHAR(160),SUBSTITUTE($O6,\"{\",CHAR(160),FJ$1))+1),\"\")","v":""},{"$f":"IFERROR(MID($O6,FIND(CHAR(160),SUBSTITUTE($O6,\"{\",CHAR(160),FK$1)),FIND(CHAR(160),SUBSTITUTE($O6,\"}\",CHAR(160),FK$1))-FIND(CHAR(160),SUBSTITUTE($O6,\"{\",CHAR(160),FK$1))+1),\"\")","v":"{Primary heating type}"},{"$f":"IFERROR(MID($O6,FIND(CHAR(160),SUBSTITUTE($O6,\"{\",CHAR(160),FL$1)),FIND(CHAR(160),SUBSTITUTE($O6,\"}\",CHAR(160),FL$1))-FIND(CHAR(160),SUBSTITUTE($O6,\"{\",CHAR(160),FL$1))+1),\"\")","v":"{Primary heating type}"},{"$f":"IFERROR(MID($R6,FIND(CHAR(160),SUBSTITUTE($R6,\"{\",CHAR(160),FM$1)),FIND(CHAR(160),SUBSTITUTE($R6,\"}\",CHAR(160),FM$1))-FIND(CHAR(160),SUBSTITUTE($R6,\"{\",CHAR(160),FM$1))+1),\"\")","v":""},{"$f":"IFERROR(MID($R6,FIND(CHAR(160),SUBSTITUTE($R6,\"{\",CHAR(160),FN$1)),FIND(CHAR(160),SUBSTITUTE($R6,\"}\",CHAR(160),FN$1))-FIND(CHAR(160),SUBSTITUTE($R6,\"{\",CHAR(160),FN$1))+1),\"\")","v":""},{"$f":"IFERROR(MID($R6,FIND(CHAR(160),SUBSTITUTE($R6,\"{\",CHAR(160),FO$1)),FIND(CHAR(160),SUBSTITUTE($R6,\"}\",CHAR(160),FO$1))-FIND(CHAR(160),SUBSTITUTE($R6,\"{\",CHAR(160),FO$1))+1),\"\")","v":""},{"$f":"IFERROR(MID($R6,FIND(CHAR(160),SUBSTITUTE($R6,\"{\",CHAR(160),FP$1)),FIND(CHAR(160),SUBSTITUTE($R6,\"}\",CHAR(160),FP$1))-FIND(CHAR(160),SUBSTITUTE($R6,\"{\",CHAR(160),FP$1))+1),\"\")","v":""},{"$f":"IFERROR(MID($R6,FIND(CHAR(160),SUBSTITUTE($R6,\"{\",CHAR(160),FQ$1)),FIND(CHAR(160),SUBSTITUTE($R6,\"}\",CHAR(160),FQ$1))-FIND(CHAR(160),SUBSTITUTE($R6,\"{\",CHAR(160),FQ$1))+1),\"\")","v":""},{"$f":"IFERROR(MID($R6,FIND(CHAR(160),SUBSTITUTE($R6,\"{\",CHAR(160),FR$1)),FIND(CHAR(160),SUBSTITUTE($R6,\"}\",CHAR(160),FR$1))-FIND(CHAR(160),SUBSTITUTE($R6,\"{\",CHAR(160),FR$1))+1),\"\")","v":""},{"$f":"IFERROR(MID($R6,FIND(CHAR(160),SUBSTITUTE($R6,\"{\",CHAR(160),FS$1)),FIND(CHAR(160),SUBSTITUTE($R6,\"}\",CHAR(160),FS$1))-FIND(CHAR(160),SUBSTITUTE($R6,\"{\",CHAR(160),FS$1))+1),\"\")","v":""},{"$f":"IFERROR(MID($R6,FIND(CHAR(160),SUBSTITUTE($R6,\"{\",CHAR(160),FT$1)),FIND(CHAR(160),SUBSTITUTE($R6,\"}\",CHAR(160),FT$1))-FIND(CHAR(160),SUBSTITUTE($R6,\"{\",CHAR(160),FT$1))+1),\"\")","v":""},{"$f":"IFERROR(MID($R6,FIND(CHAR(160),SUBSTITUTE($R6,\"{\",CHAR(160),FU$1)),FIND(CHAR(160),SUBSTITUTE($R6,\"}\",CHAR(160),FU$1))-FIND(CHAR(160),SUBSTITUTE($R6,\"{\",CHAR(160),FU$1))+1),\"\")","v":""},{"$f":"IFERROR(MID($R6,FIND(CHAR(160),SUBSTITUTE($R6,\"{\",CHAR(160),FV$1)),FIND(CHAR(160),SUBSTITUTE($R6,\"}\",CHAR(160),FV$1))-FIND(CHAR(160),SUBSTITUTE($R6,\"{\",CHAR(160),FV$1))+1),\"\")","v":""},{"$f":"IFERROR(MID($U6,FIND(CHAR(160),SUBSTITUTE($U6,\"{\",CHAR(160),FW$1)),FIND(CHAR(160),SUBSTITUTE($U6,\"}\",CHAR(160),FW$1))-FIND(CHAR(160),SUBSTITUTE($U6,\"{\",CHAR(160),FW$1))+1),\"\")","v":""},{"$f":"IFERROR(MID($U6,FIND(CHAR(160),SUBSTITUTE($U6,\"{\",CHAR(160),FX$1)),FIND(CHAR(160),SUBSTITUTE($U6,\"}\",CHAR(160),FX$1))-FIND(CHAR(160),SUBSTITUTE($U6,\"{\",CHAR(160),FX$1))+1),\"\")","v":""},{"$f":"IFERROR(MID($U6,FIND(CHAR(160),SUBSTITUTE($U6,\"{\",CHAR(160),FY$1)),FIND(CHAR(160),SUBSTITUTE($U6,\"}\",CHAR(160),FY$1))-FIND(CHAR(160),SUBSTITUTE($U6,\"{\",CHAR(160),FY$1))+1),\"\")","v":""},{"$f":"IFERROR(MID($U6,FIND(CHAR(160),SUBSTITUTE($U6,\"{\",CHAR(160),FZ$1)),FIND(CHAR(160),SUBSTITUTE($U6,\"}\",CHAR(160),FZ$1))-FIND(CHAR(160),SUBSTITUTE($U6,\"{\",CHAR(160),FZ$1))+1),\"\")","v":""},{"$f":"IFERROR(MID($U6,FIND(CHAR(160),SUBSTITUTE($U6,\"{\",CHAR(160),GA$1)),FIND(CHAR(160),SUBSTITUTE($U6,\"}\",CHAR(160),GA$1))-FIND(CHAR(160),SUBSTITUTE($U6,\"{\",CHAR(160),GA$1))+1),\"\")","v":""},{"$f":"IFERROR(MID($U6,FIND(CHAR(160),SUBSTITUTE($U6,\"{\",CHAR(160),GB$1)),FIND(CHAR(160),SUBSTITUTE($U6,\"}\",CHAR(160),GB$1))-FIND(CHAR(160),SUBSTITUTE($U6,\"{\",CHAR(160),GB$1))+1),\"\")","v":""},{"$f":"IFERROR(MID($U6,FIND(CHAR(160),SUBSTITUTE($U6,\"{\",CHAR(160),GC$1)),FIND(CHAR(160),SUBSTITUTE($U6,\"}\",CHAR(160),GC$1))-FIND(CHAR(160),SUBSTITUTE($U6,\"{\",CHAR(160),GC$1))+1),\"\")","v":""},{"$f":"IFERROR(MID($U6,FIND(CHAR(160),SUBSTITUTE($U6,\"{\",CHAR(160),GD$1)),FIND(CHAR(160),SUBSTITUTE($U6,\"}\",CHAR(160),GD$1))-FIND(CHAR(160),SUBSTITUTE($U6,\"{\",CHAR(160),GD$1))+1),\"\")","v":""},{"$f":"IFERROR(MID($U6,FIND(CHAR(160),SUBSTITUTE($U6,\"{\",CHAR(160),GE$1)),FIND(CHAR(160),SUBSTITUTE($U6,\"}\",CHAR(160),GE$1))-FIND(CHAR(160),SUBSTITUTE($U6,\"{\",CHAR(160),GE$1))+1),\"\")","v":"{Primary heating type}"},{"$f":"IFERROR(MID($U6,FIND(CHAR(160),SUBSTITUTE($U6,\"{\",CHAR(160),GF$1)),FIND(CHAR(160),SUBSTITUTE($U6,\"}\",CHAR(160),GF$1))-FIND(CHAR(160),SUBSTITUTE($U6,\"{\",CHAR(160),GF$1))+1),\"\")","v":"{Primary heating type}"},{"$f":"IFERROR(MID($V6,FIND(CHAR(160),SUBSTITUTE($V6,\"{\",CHAR(160),GG$1)),FIND(CHAR(160),SUBSTITUTE($V6,\"}\",CHAR(160),GG$1))-FIND(CHAR(160),SUBSTITUTE($V6,\"{\",CHAR(160),GG$1))+1),\"\")","v":""},{"$f":"IFERROR(MID($V6,FIND(CHAR(160),SUBSTITUTE($V6,\"{\",CHAR(160),GH$1)),FIND(CHAR(160),SUBSTITUTE($V6,\"}\",CHAR(160),GH$1))-FIND(CHAR(160),SUBSTITUTE($V6,\"{\",CHAR(160),GH$1))+1),\"\")","v":""},{"$f":"IFERROR(MID($V6,FIND(CHAR(160),SUBSTITUTE($V6,\"{\",CHAR(160),GI$1)),FIND(CHAR(160),SUBSTITUTE($V6,\"}\",CHAR(160),GI$1))-FIND(CHAR(160),SUBSTITUTE($V6,\"{\",CHAR(160),GI$1))+1),\"\")","v":""},{"$f":"IFERROR(MID($V6,FIND(CHAR(160),SUBSTITUTE($V6,\"{\",CHAR(160),GJ$1)),FIND(CHAR(160),SUBSTITUTE($V6,\"}\",CHAR(160),GJ$1))-FIND(CHAR(160),SUBSTITUTE($V6,\"{\",CHAR(160),GJ$1))+1),\"\")","v":""},{"$f":"IFERROR(MID($V6,FIND(CHAR(160),SUBSTITUTE($V6,\"{\",CHAR(160),GK$1)),FIND(CHAR(160),SUBSTITUTE($V6,\"}\",CHAR(160),GK$1))-FIND(CHAR(160),SUBSTITUTE($V6,\"{\",CHAR(160),GK$1))+1),\"\")","v":""},{"$f":"IFERROR(MID($V6,FIND(CHAR(160),SUBSTITUTE($V6,\"{\",CHAR(160),GL$1)),FIND(CHAR(160),SUBSTITUTE($V6,\"}\",CHAR(160),GL$1))-FIND(CHAR(160),SUBSTITUTE($V6,\"{\",CHAR(160),GL$1))+1),\"\")","v":""},{"$f":"IFERROR(MID($V6,FIND(CHAR(160),SUBSTITUTE($V6,\"{\",CHAR(160),GM$1)),FIND(CHAR(160),SUBSTITUTE($V6,\"}\",CHAR(160),GM$1))-FIND(CHAR(160),SUBSTITUTE($V6,\"{\",CHAR(160),GM$1))+1),\"\")","v":""},{"$f":"IFERROR(MID($V6,FIND(CHAR(160),SUBSTITUTE($V6,\"{\",CHAR(160),GN$1)),FIND(CHAR(160),SUBSTITUTE($V6,\"}\",CHAR(160),GN$1))-FIND(CHAR(160),SUBSTITUTE($V6,\"{\",CHAR(160),GN$1))+1),\"\")","v":""},{"$f":"IFERROR(MID($V6,FIND(CHAR(160),SUBSTITUTE($V6,\"{\",CHAR(160),GO$1)),FIND(CHAR(160),SUBSTITUTE($V6,\"}\",CHAR(160),GO$1))-FIND(CHAR(160),SUBSTITUTE($V6,\"{\",CHAR(160),GO$1))+1),\"\")","v":""},{"$f":"IFERROR(MID($V6,FIND(CHAR(160),SUBSTITUTE($V6,\"{\",CHAR(160),GP$1)),FIND(CHAR(160),SUBSTITUTE($V6,\"}\",CHAR(160),GP$1))-FIND(CHAR(160),SUBSTITUTE($V6,\"{\",CHAR(160),GP$1))+1),\"\")","v":""},{"$f":"IFERROR(MID($W6,FIND(CHAR(160),SUBSTITUTE($W6,\"{\",CHAR(160),GQ$1)),FIND(CHAR(160),SUBSTITUTE($W6,\"}\",CHAR(160),GQ$1))-FIND(CHAR(160),SUBSTITUTE($W6,\"{\",CHAR(160),GQ$1))+1),\"\")","v":""},{"$f":"IFERROR(MID($W6,FIND(CHAR(160),SUBSTITUTE($W6,\"{\",CHAR(160),GR$1)),FIND(CHAR(160),SUBSTITUTE($W6,\"}\",CHAR(160),GR$1))-FIND(CHAR(160),SUBSTITUTE($W6,\"{\",CHAR(160),GR$1))+1),\"\")","v":""},{"$f":"IFERROR(MID($W6,FIND(CHAR(160),SUBSTITUTE($W6,\"{\",CHAR(160),GS$1)),FIND(CHAR(160),SUBSTITUTE($W6,\"}\",CHAR(160),GS$1))-FIND(CHAR(160),SUBSTITUTE($W6,\"{\",CHAR(160),GS$1))+1),\"\")","v":""},{"$f":"IFERROR(MID($W6,FIND(CHAR(160),SUBSTITUTE($W6,\"{\",CHAR(160),GT$1)),FIND(CHAR(160),SUBSTITUTE($W6,\"}\",CHAR(160),GT$1))-FIND(CHAR(160),SUBSTITUTE($W6,\"{\",CHAR(160),GT$1))+1),\"\")","v":""},{"$f":"IFERROR(MID($W6,FIND(CHAR(160),SUBSTITUTE($W6,\"{\",CHAR(160),GU$1)),FIND(CHAR(160),SUBSTITUTE($W6,\"}\",CHAR(160),GU$1))-FIND(CHAR(160),SUBSTITUTE($W6,\"{\",CHAR(160),GU$1))+1),\"\")","v":""},{"$f":"IFERROR(MID($W6,FIND(CHAR(160),SUBSTITUTE($W6,\"{\",CHAR(160),GV$1)),FIND(CHAR(160),SUBSTITUTE($W6,\"}\",CHAR(160),GV$1))-FIND(CHAR(160),SUBSTITUTE($W6,\"{\",CHAR(160),GV$1))+1),\"\")","v":""},{"$f":"IFERROR(MID($W6,FIND(CHAR(160),SUBSTITUTE($W6,\"{\",CHAR(160),GW$1)),FIND(CHAR(160),SUBSTITUTE($W6,\"}\",CHAR(160),GW$1))-FIND(CHAR(160),SUBSTITUTE($W6,\"{\",CHAR(160),GW$1))+1),\"\")","v":""},{"$f":"IFERROR(MID($W6,FIND(CHAR(160),SUBSTITUTE($W6,\"{\",CHAR(160),GX$1)),FIND(CHAR(160),SUBSTITUTE($W6,\"}\",CHAR(160),GX$1))-FIND(CHAR(160),SUBSTITUTE($W6,\"{\",CHAR(160),GX$1))+1),\"\")","v":""},{"$f":"IFERROR(MID($W6,FIND(CHAR(160),SUBSTITUTE($W6,\"{\",CHAR(160),GY$1)),FIND(CHAR(160),SUBSTITUTE($W6,\"}\",CHAR(160),GY$1))-FIND(CHAR(160),SUBSTITUTE($W6,\"{\",CHAR(160),GY$1))+1),\"\")","v":"{Primary heating type}"},{"$f":"IFERROR(MID($W6,FIND(CHAR(160),SUBSTITUTE($W6,\"{\",CHAR(160),GZ$1)),FIND(CHAR(160),SUBSTITUTE($W6,\"}\",CHAR(160),GZ$1))-FIND(CHAR(160),SUBSTITUTE($W6,\"{\",CHAR(160),GZ$1))+1),\"\")","v":"{Primary heating type}"},{"$f":"IFERROR(MID($X6,FIND(CHAR(160),SUBSTITUTE($X6,\"{\",CHAR(160),HA$1)),FIND(CHAR(160),SUBSTITUTE($X6,\"}\",CHAR(160),HA$1))-FIND(CHAR(160),SUBSTITUTE($X6,\"{\",CHAR(160),HA$1))+1),\"\")","v":""},{"$f":"IFERROR(MID($X6,FIND(CHAR(160),SUBSTITUTE($X6,\"{\",CHAR(160),HB$1)),FIND(CHAR(160),SUBSTITUTE($X6,\"}\",CHAR(160),HB$1))-FIND(CHAR(160),SUBSTITUTE($X6,\"{\",CHAR(160),HB$1))+1),\"\")","v":""},{"$f":"IFERROR(MID($X6,FIND(CHAR(160),SUBSTITUTE($X6,\"{\",CHAR(160),HC$1)),FIND(CHAR(160),SUBSTITUTE($X6,\"}\",CHAR(160),HC$1))-FIND(CHAR(160),SUBSTITUTE($X6,\"{\",CHAR(160),HC$1))+1),\"\")","v":""},{"$f":"IFERROR(MID($X6,FIND(CHAR(160),SUBSTITUTE($X6,\"{\",CHAR(160),HD$1)),FIND(CHAR(160),SUBSTITUTE($X6,\"}\",CHAR(160),HD$1))-FIND(CHAR(160),SUBSTITUTE($X6,\"{\",CHAR(160),HD$1))+1),\"\")","v":""},{"$f":"IFERROR(MID($X6,FIND(CHAR(160),SUBSTITUTE($X6,\"{\",CHAR(160),HE$1)),FIND(CHAR(160),SUBSTITUTE($X6,\"}\",CHAR(160),HE$1))-FIND(CHAR(160),SUBSTITUTE($X6,\"{\",CHAR(160),HE$1))+1),\"\")","v":""},{"$f":"IFERROR(MID($X6,FIND(CHAR(160),SUBSTITUTE($X6,\"{\",CHAR(160),HF$1)),FIND(CHAR(160),SUBSTITUTE($X6,\"}\",CHAR(160),HF$1))-FIND(CHAR(160),SUBSTITUTE($X6,\"{\",CHAR(160),HF$1))+1),\"\")","v":""},{"$f":"IFERROR(MID($X6,FIND(CHAR(160),SUBSTITUTE($X6,\"{\",CHAR(160),HG$1)),FIND(CHAR(160),SUBSTITUTE($X6,\"}\",CHAR(160),HG$1))-FIND(CHAR(160),SUBSTITUTE($X6,\"{\",CHAR(160),HG$1))+1),\"\")","v":""},{"$f":"IFERROR(MID($X6,FIND(CHAR(160),SUBSTITUTE($X6,\"{\",CHAR(160),HH$1)),FIND(CHAR(160),SUBSTITUTE($X6,\"}\",CHAR(160),HH$1))-FIND(CHAR(160),SUBSTITUTE($X6,\"{\",CHAR(160),HH$1))+1),\"\")","v":""},{"$f":"IFERROR(MID($X6,FIND(CHAR(160),SUBSTITUTE($X6,\"{\",CHAR(160),HI$1)),FIND(CHAR(160),SUBSTITUTE($X6,\"}\",CHAR(160),HI$1))-FIND(CHAR(160),SUBSTITUTE($X6,\"{\",CHAR(160),HI$1))+1),\"\")","v":"{Primary heating type}"},{"$f":"IFERROR(MID($X6,FIND(CHAR(160),SUBSTITUTE($X6,\"{\",CHAR(160),HJ$1)),FIND(CHAR(160),SUBSTITUTE($X6,\"}\",CHAR(160),HJ$1))-FIND(CHAR(160),SUBSTITUTE($X6,\"{\",CHAR(160),HJ$1))+1),\"\")","v":"{Primary heating type}"},{"$f":"IFERROR(MID($Y6,FIND(CHAR(160),SUBSTITUTE($Y6,\"{\",CHAR(160),HK$1)),FIND(CHAR(160),SUBSTITUTE($Y6,\"}\",CHAR(160),HK$1))-FIND(CHAR(160),SUBSTITUTE($Y6,\"{\",CHAR(160),HK$1))+1),\"\")","v":""},{"$f":"IFERROR(MID($Y6,FIND(CHAR(160),SUBSTITUTE($Y6,\"{\",CHAR(160),HL$1)),FIND(CHAR(160),SUBSTITUTE($Y6,\"}\",CHAR(160),HL$1))-FIND(CHAR(160),SUBSTITUTE($Y6,\"{\",CHAR(160),HL$1))+1),\"\")","v":""},{"$f":"IFERROR(MID($Y6,FIND(CHAR(160),SUBSTITUTE($Y6,\"{\",CHAR(160),HM$1)),FIND(CHAR(160),SUBSTITUTE($Y6,\"}\",CHAR(160),HM$1))-FIND(CHAR(160),SUBSTITUTE($Y6,\"{\",CHAR(160),HM$1))+1),\"\")","v":""},{"$f":"IFERROR(MID($Y6,FIND(CHAR(160),SUBSTITUTE($Y6,\"{\",CHAR(160),HN$1)),FIND(CHAR(160),SUBSTITUTE($Y6,\"}\",CHAR(160),HN$1))-FIND(CHAR(160),SUBSTITUTE($Y6,\"{\",CHAR(160),HN$1))+1),\"\")","v":""},{"$f":"IFERROR(MID($Y6,FIND(CHAR(160),SUBSTITUTE($Y6,\"{\",CHAR(160),HO$1)),FIND(CHAR(160),SUBSTITUTE($Y6,\"}\",CHAR(160),HO$1))-FIND(CHAR(160),SUBSTITUTE($Y6,\"{\",CHAR(160),HO$1))+1),\"\")","v":""},{"$f":"IFERROR(MID($Y6,FIND(CHAR(160),SUBSTITUTE($Y6,\"{\",CHAR(160),HP$1)),FIND(CHAR(160),SUBSTITUTE($Y6,\"}\",CHAR(160),HP$1))-FIND(CHAR(160),SUBSTITUTE($Y6,\"{\",CHAR(160),HP$1))+1),\"\")","v":""},{"$f":"IFERROR(MID($Y6,FIND(CHAR(160),SUBSTITUTE($Y6,\"{\",CHAR(160),HQ$1)),FIND(CHAR(160),SUBSTITUTE($Y6,\"}\",CHAR(160),HQ$1))-FIND(CHAR(160),SUBSTITUTE($Y6,\"{\",CHAR(160),HQ$1))+1),\"\")","v":""},{"$f":"IFERROR(MID($Y6,FIND(CHAR(160),SUBSTITUTE($Y6,\"{\",CHAR(160),HR$1)),FIND(CHAR(160),SUBSTITUTE($Y6,\"}\",CHAR(160),HR$1))-FIND(CHAR(160),SUBSTITUTE($Y6,\"{\",CHAR(160),HR$1))+1),\"\")","v":""},{"$f":"IFERROR(MID($Y6,FIND(CHAR(160),SUBSTITUTE($Y6,\"{\",CHAR(160),HS$1)),FIND(CHAR(160),SUBSTITUTE($Y6,\"}\",CHAR(160),HS$1))-FIND(CHAR(160),SUBSTITUTE($Y6,\"{\",CHAR(160),HS$1))+1),\"\")","v":"{Primary heating type}"},{"$f":"IFERROR(MID($Y6,FIND(CHAR(160),SUBSTITUTE($Y6,\"{\",CHAR(160),HT$1)),FIND(CHAR(160),SUBSTITUTE($Y6,\"}\",CHAR(160),HT$1))-FIND(CHAR(160),SUBSTITUTE($Y6,\"{\",CHAR(160),HT$1))+1),\"\")","v":"{Primary heating type}"},{"$f":"IFERROR(MID($Z6,FIND(CHAR(160),SUBSTITUTE($Z6,\"{\",CHAR(160),HU$1)),FIND(CHAR(160),SUBSTITUTE($Z6,\"}\",CHAR(160),HU$1))-FIND(CHAR(160),SUBSTITUTE($Z6,\"{\",CHAR(160),HU$1))+1),\"\")","v":""},{"$f":"IFERROR(MID($Z6,FIND(CHAR(160),SUBSTITUTE($Z6,\"{\",CHAR(160),HV$1)),FIND(CHAR(160),SUBSTITUTE($Z6,\"}\",CHAR(160),HV$1))-FIND(CHAR(160),SUBSTITUTE($Z6,\"{\",CHAR(160),HV$1))+1),\"\")","v":""},{"$f":"IFERROR(MID($Z6,FIND(CHAR(160),SUBSTITUTE($Z6,\"{\",CHAR(160),HW$1)),FIND(CHAR(160),SUBSTITUTE($Z6,\"}\",CHAR(160),HW$1))-FIND(CHAR(160),SUBSTITUTE($Z6,\"{\",CHAR(160),HW$1))+1),\"\")","v":""},{"$f":"IFERROR(MID($Z6,FIND(CHAR(160),SUBSTITUTE($Z6,\"{\",CHAR(160),HX$1)),FIND(CHAR(160),SUBSTITUTE($Z6,\"}\",CHAR(160),HX$1))-FIND(CHAR(160),SUBSTITUTE($Z6,\"{\",CHAR(160),HX$1))+1),\"\")","v":""},{"$f":"IFERROR(MID($Z6,FIND(CHAR(160),SUBSTITUTE($Z6,\"{\",CHAR(160),HY$1)),FIND(CHAR(160),SUBSTITUTE($Z6,\"}\",CHAR(160),HY$1))-FIND(CHAR(160),SUBSTITUTE($Z6,\"{\",CHAR(160),HY$1))+1),\"\")","v":""},{"$f":"IFERROR(MID($Z6,FIND(CHAR(160),SUBSTITUTE($Z6,\"{\",CHAR(160),HZ$1)),FIND(CHAR(160),SUBSTITUTE($Z6,\"}\",CHAR(160),HZ$1))-FIND(CHAR(160),SUBSTITUTE($Z6,\"{\",CHAR(160),HZ$1))+1),\"\")","v":""},{"$f":"IFERROR(MID($Z6,FIND(CHAR(160),SUBSTITUTE($Z6,\"{\",CHAR(160),IA$1)),FIND(CHAR(160),SUBSTITUTE($Z6,\"}\",CHAR(160),IA$1))-FIND(CHAR(160),SUBSTITUTE($Z6,\"{\",CHAR(160),IA$1))+1),\"\")","v":""},{"$f":"IFERROR(MID($Z6,FIND(CHAR(160),SUBSTITUTE($Z6,\"{\",CHAR(160),IB$1)),FIND(CHAR(160),SUBSTITUTE($Z6,\"}\",CHAR(160),IB$1))-FIND(CHAR(160),SUBSTITUTE($Z6,\"{\",CHAR(160),IB$1))+1),\"\")","v":""},{"$f":"IFERROR(MID($Z6,FIND(CHAR(160),SUBSTITUTE($Z6,\"{\",CHAR(160),IC$1)),FIND(CHAR(160),SUBSTITUTE($Z6,\"}\",CHAR(160),IC$1))-FIND(CHAR(160),SUBSTITUTE($Z6,\"{\",CHAR(160),IC$1))+1),\"\")","v":"{Primary heating type}"},{"$f":"IFERROR(MID($Z6,FIND(CHAR(160),SUBSTITUTE($Z6,\"{\",CHAR(160),ID$1)),FIND(CHAR(160),SUBSTITUTE($Z6,\"}\",CHAR(160),ID$1))-FIND(CHAR(160),SUBSTITUTE($Z6,\"{\",CHAR(160),ID$1))+1),\"\")","v":"{Primary heating type}"},{"$f":"IFERROR(MID($AA6,FIND(CHAR(160),SUBSTITUTE($AA6,\"{\",CHAR(160),IE$1)),FIND(CHAR(160),SUBSTITUTE($AA6,\"}\",CHAR(160),IE$1))-FIND(CHAR(160),SUBSTITUTE($AA6,\"{\",CHAR(160),IE$1))+1),\"\")","v":""},{"$f":"IFERROR(MID($AA6,FIND(CHAR(160),SUBSTITUTE($AA6,\"{\",CHAR(160),IF$1)),FIND(CHAR(160),SUBSTITUTE($AA6,\"}\",CHAR(160),IF$1))-FIND(CHAR(160),SUBSTITUTE($AA6,\"{\",CHAR(160),IF$1))+1),\"\")","v":""},{"$f":"IFERROR(MID($AA6,FIND(CHAR(160),SUBSTITUTE($AA6,\"{\",CHAR(160),IG$1)),FIND(CHAR(160),SUBSTITUTE($AA6,\"}\",CHAR(160),IG$1))-FIND(CHAR(160),SUBSTITUTE($AA6,\"{\",CHAR(160),IG$1))+1),\"\")","v":""},{"$f":"IFERROR(MID($AA6,FIND(CHAR(160),SUBSTITUTE($AA6,\"{\",CHAR(160),IH$1)),FIND(CHAR(160),SUBSTITUTE($AA6,\"}\",CHAR(160),IH$1))-FIND(CHAR(160),SUBSTITUTE($AA6,\"{\",CHAR(160),IH$1))+1),\"\")","v":""},{"$f":"IFERROR(MID($AA6,FIND(CHAR(160),SUBSTITUTE($AA6,\"{\",CHAR(160),II$1)),FIND(CHAR(160),SUBSTITUTE($AA6,\"}\",CHAR(160),II$1))-FIND(CHAR(160),SUBSTITUTE($AA6,\"{\",CHAR(160),II$1))+1),\"\")","v":""},{"$f":"IFERROR(MID($AA6,FIND(CHAR(160),SUBSTITUTE($AA6,\"{\",CHAR(160),IJ$1)),FIND(CHAR(160),SUBSTITUTE($AA6,\"}\",CHAR(160),IJ$1))-FIND(CHAR(160),SUBSTITUTE($AA6,\"{\",CHAR(160),IJ$1))+1),\"\")","v":""},{"$f":"IFERROR(MID($AA6,FIND(CHAR(160),SUBSTITUTE($AA6,\"{\",CHAR(160),IK$1)),FIND(CHAR(160),SUBSTITUTE($AA6,\"}\",CHAR(160),IK$1))-FIND(CHAR(160),SUBSTITUTE($AA6,\"{\",CHAR(160),IK$1))+1),\"\")","v":""},{"$f":"IFERROR(MID($AA6,FIND(CHAR(160),SUBSTITUTE($AA6,\"{\",CHAR(160),IL$1)),FIND(CHAR(160),SUBSTITUTE($AA6,\"}\",CHAR(160),IL$1))-FIND(CHAR(160),SUBSTITUTE($AA6,\"{\",CHAR(160),IL$1))+1),\"\")","v":""},{"$f":"IFERROR(MID($AA6,FIND(CHAR(160),SUBSTITUTE($AA6,\"{\",CHAR(160),IM$1)),FIND(CHAR(160),SUBSTITUTE($AA6,\"}\",CHAR(160),IM$1))-FIND(CHAR(160),SUBSTITUTE($AA6,\"{\",CHAR(160),IM$1))+1),\"\")","v":"{Primary heating type}"},{"$f":"IFERROR(MID($AA6,FIND(CHAR(160),SUBSTITUTE($AA6,\"{\",CHAR(160),IN$1)),FIND(CHAR(160),SUBSTITUTE($AA6,\"}\",CHAR(160),IN$1))-FIND(CHAR(160),SUBSTITUTE($AA6,\"{\",CHAR(160),IN$1))+1),\"\")","v":"{Primary heating type}"},{"$f":"IFERROR(MID($AB6,FIND(CHAR(160),SUBSTITUTE($AB6,\"{\",CHAR(160),IO$1)),FIND(CHAR(160),SUBSTITUTE($AB6,\"}\",CHAR(160),IO$1))-FIND(CHAR(160),SUBSTITUTE($AB6,\"{\",CHAR(160),IO$1))+1),\"\")","v":""},{"$f":"IFERROR(MID($AB6,FIND(CHAR(160),SUBSTITUTE($AB6,\"{\",CHAR(160),IP$1)),FIND(CHAR(160),SUBSTITUTE($AB6,\"}\",CHAR(160),IP$1))-FIND(CHAR(160),SUBSTITUTE($AB6,\"{\",CHAR(160),IP$1))+1),\"\")","v":""},{"$f":"IFERROR(MID($AB6,FIND(CHAR(160),SUBSTITUTE($AB6,\"{\",CHAR(160),IQ$1)),FIND(CHAR(160),SUBSTITUTE($AB6,\"}\",CHAR(160),IQ$1))-FIND(CHAR(160),SUBSTITUTE($AB6,\"{\",CHAR(160),IQ$1))+1),\"\")","v":""},{"$f":"IFERROR(MID($AB6,FIND(CHAR(160),SUBSTITUTE($AB6,\"{\",CHAR(160),IR$1)),FIND(CHAR(160),SUBSTITUTE($AB6,\"}\",CHAR(160),IR$1))-FIND(CHAR(160),SUBSTITUTE($AB6,\"{\",CHAR(160),IR$1))+1),\"\")","v":""},{"$f":"IFERROR(MID($AB6,FIND(CHAR(160),SUBSTITUTE($AB6,\"{\",CHAR(160),IS$1)),FIND(CHAR(160),SUBSTITUTE($AB6,\"}\",CHAR(160),IS$1))-FIND(CHAR(160),SUBSTITUTE($AB6,\"{\",CHAR(160),IS$1))+1),\"\")","v":""},{"$f":"IFERROR(MID($AB6,FIND(CHAR(160),SUBSTITUTE($AB6,\"{\",CHAR(160),IT$1)),FIND(CHAR(160),SUBSTITUTE($AB6,\"}\",CHAR(160),IT$1))-FIND(CHAR(160),SUBSTITUTE($AB6,\"{\",CHAR(160),IT$1))+1),\"\")","v":""},{"$f":"IFERROR(MID($AB6,FIND(CHAR(160),SUBSTITUTE($AB6,\"{\",CHAR(160),IU$1)),FIND(CHAR(160),SUBSTITUTE($AB6,\"}\",CHAR(160),IU$1))-FIND(CHAR(160),SUBSTITUTE($AB6,\"{\",CHAR(160),IU$1))+1),\"\")","v":""},{"$f":"IFERROR(MID($AB6,FIND(CHAR(160),SUBSTITUTE($AB6,\"{\",CHAR(160),IV$1)),FIND(CHAR(160),SUBSTITUTE($AB6,\"}\",CHAR(160),IV$1))-FIND(CHAR(160),SUBSTITUTE($AB6,\"{\",CHAR(160),IV$1))+1),\"\")","v":""},{"$f":"IFERROR(MID($AB6,FIND(CHAR(160),SUBSTITUTE($AB6,\"{\",CHAR(160),IW$1)),FIND(CHAR(160),SUBSTITUTE($AB6,\"}\",CHAR(160),IW$1))-FIND(CHAR(160),SUBSTITUTE($AB6,\"{\",CHAR(160),IW$1))+1),\"\")","v":""},{"$f":"IFERROR(MID($AB6,FIND(CHAR(160),SUBSTITUTE($AB6,\"{\",CHAR(160),IX$1)),FIND(CHAR(160),SUBSTITUTE($AB6,\"}\",CHAR(160),IX$1))-FIND(CHAR(160),SUBSTITUTE($AB6,\"{\",CHAR(160),IX$1))+1),\"\")","v":""},null,{"$f":"10-COUNTIF(DU6:ED6,\"\")","v":3}]
["Affordable Heat Initiative - Natural Gas","Basement Insulation LIHESP","LBB","2021-07-01","2022-06-30","Calculated","{Cost}*{Measure:Quantity}",0,"Calculated","if({Cost}*0.80>2000,2000,Round({Cost}*0.80,2))*{Measure:Quantity}",0,"2020-07-01","2022-06-30","Calculated","if({Primary heating type}=6,2672,if({Primary heating type}=0,102,0))",null,null,0,null,null,"if({Primary heating type}=6,0.663,if({Primary heating type}=0,0.025,0))",0,"if({Primary heating type}=1,10.986,if({Primary heating type}=0,0.989,0))*10","if({Primary heating type}=2,10.986,if({Primary heating type} = 0,1.439,0))","if({Primary heating type}=3,10.986,if({Primary heating type} = 0,7.514,0))","if({Primary heating type}=4,10.986,if({Primary heating type} = 0,0.154,0))","if({Primary heating type}=5,10.986,if({Primary heating type} = 0,0.472,0))",0,"2019-07-01","2022-06-30",25,1,1,0,0,0,0,1,1,1,0,0,null,"{Cost}",2326,"{Measure:Quantity}",1,"{Primary heating type}",1,"",null,"",null,"",null,"",null,"",null,"",null,"",null,{"$f":"IF(AW7=6,2672,IF(AW7=0,102,0))","v":0},0,0,{"$f":"0","v":0},0,0,{"$f":"IF(AW7=6,0.663,IF(AW7=0,0.025,0))","v":0},{"$f":"0","v":0},{"$f":"IF(AW7=1,10.986,IF(AW7=0,0.989,0))*10","v":109.86000000000001},{"$f":"IF(AW7=2,10.986,IF(AW7 = 0,1.439,0))","v":0},{"$f":"IF(AW7=3,10.986,IF(AW7 = 0,7.514,0))","v":0},{"$f":"IF(AW7=4,10.986,IF(AW7 = 0,0.154,0))","v":0},{"$f":"IF(AW7=5,10.986,IF(AW7 = 0,0.472,0))","v":0},{"$f":"0","v":0},null,"Res","RGGI DR",{"$f":"Benefits(BL7,BR7,BS7,BT7,BU7,BV7,BW7,BX7,BY7,BZ7,AE7,AH7,AI7,AJ7,AK7,AL7,AM7,AN7,AO7,AP7,CA7,CB7)","v":0},0,2939.7680855847125,0,0,0,0,0,0,{"$f":"SUMPRODUCT(CC7:CK7,--(CC7:CK7>0))","v":2939.7680855847125},{"$f":"-SUMPRODUCT(CC7:CK7,--(CC7:CK7<0))","v":0},null,{"$f":"AS7*AU7","v":2326},null,null,{"$f":"CM7+CO7","v":2326},{"$f":"IF(NetOrGross=\"Net\",(1-AO7+AP7),1)","v":1},{"$f":"(SUMPRODUCT(CC7:CJ7,--(CC7:CJ7>0))+CN7)*CS7/((-SUMPRODUCT(CC7:CJ7,--(CC7:CJ7<0))+MAX(CO7,CV7)+CP7+CQ7)*CS7+IF(FRIncentives=\"Yes\",CV7*(1-CS7),0))","v":1.2638727797010803},1,{"$f":"IF(AS7*0.8>2000,2000,ROUND(AS7*0.8,2))*AU7","v":1860.8},null,"RGGI","y",null,{"$f":"IF(F7=\"Manual Entry\",\"Manual\",IF(G7=\"\",0,\"X=\"&SUBSTITUTE(SUBSTITUTE(SUBSTITUTE(SUBSTITUTE(SUBSTITUTE(SUBSTITUTE(SUBSTITUTE(SUBSTITUTE(SUBSTITUTE(SUBSTITUTE(SUBSTITUTE(SUBSTITUTE(G7,$ED7,$ED$2&ROW($ED7)),$EC7,$EC$2&ROW($EC7)),$EB7,$EB$2&ROW($EB7)),$EA7,$EA$2&ROW($EA7)),$DZ7,$DZ$2&ROW($DZ7)),$DY7,$DY$2&ROW($DY7)),$DX7,$DX$2&ROW($DX7)),$DW7,$DW$2&ROW($DW7)),$DV7,$DV$2&ROW($DV7)),$DU7,$DU$2&ROW($DU7)),$DT7,$DT$2&ROW($DT7)),$DS7,$DS$2&ROW($DS7))))","v":"X=AS7*AU7"},{"$f":"IF(I7=\"Manual Entry\",\"Manual\",IF(J7=\"\",0,\"X=\"&SUBSTITUTE(SUBSTITUTE(SUBSTITUTE(SUBSTITUTE(SUBSTITUTE(SUBSTITUTE(SUBSTITUTE(SUBSTITUTE(SUBSTITUTE(SUBSTITUTE(SUBSTITUTE(SUBSTITUTE(J7,$ED7,$ED$2&ROW($ED7)),$EC7,$EC$2&ROW($EC7)),$EB7,$EB$2&ROW($EB7)),$EA7,$EA$2&ROW($EA7)),$DZ7,$DZ$2&ROW($DZ7)),$DY7,$DY$2&ROW($DY7)),$DX7,$DX$2&ROW($DX7)),$DW7,$DW$2&ROW($DW7)),$DV7,$DV$2&ROW($DV7)),$DU7,$DU$2&ROW($DU7)),$DT7,$DT$2&ROW($DT7)),$DS7,$DS$2&ROW($DS7))))","v":"X=if(AS7*0.80>2000,2000,Round(AS7*0.80,2))*AU7"},{"$f":"IF(O7=\"\",0,\"X=\"&SUBSTITUTE(SUBSTITUTE(SUBSTITUTE(SUBSTITUTE(SUBSTITUTE(SUBSTITUTE(SUBSTITUTE(SUBSTITUTE(SUBSTITUTE(SUBSTITUTE(SUBSTITUTE(SUBSTITUTE(O7,$ED7,$ED$2&ROW($ED7)),$EC7,$EC$2&ROW($EC7)),$EB7,$EB$2&ROW($EB7)),$EA7,$EA$2&ROW($EA7)),$DZ7,$DZ$2&ROW($DZ7)),$DY7,$DY$2&ROW($DY7)),$DX7,$DX$2&ROW($DX7)),$DW7,$DW$2&ROW($DW7)),$DV7,$DV$2&ROW($DV7)),$DU7,$DU$2&ROW($DU7)),$DT7,$DT$2&ROW($DT7)),$DS7,$DS$2&ROW($DS7)))","v":"X=if(AW7=6,2672,if(AW7=0,102,0))"},{"$f":"IF(P7=\"\",0,\"X=\"&SUBSTITUTE(SUBSTITUTE(SUBSTITUTE(SUBSTITUTE(SUBSTITUTE(SUBSTITUTE(SUBSTITUTE(SUBSTITUTE(SUBSTITUTE(SUBSTITUTE(SUBSTITUTE(SUBSTITUTE(P7,$ED7,$ED$2&ROW($ED7)),$EC7,$EC$2&ROW($EC7)),$EB7,$EB$2&ROW($EB7)),$EA7,$EA$2&ROW($EA7)),$DZ7,$DZ$2&ROW($DZ7)),$DY7,$DY$2&ROW($DY7)),$DX7,$DX$2&ROW($DX7)),$DW7,$DW$2&ROW($DW7)),$DV7,$DV$2&ROW($DV7)),$DU7,$DU$2&ROW($DU7)),$DT7,$DT$2&ROW($DT7)),$DS7,$DS$2&ROW($DS7)))","v":0},{"$f":"IF(Q7=\"\",0,\"X=\"&SUBSTITUTE(SUBSTITUTE(SUBSTITUTE(SUBSTITUTE(SUBSTITUTE(SUBSTITUTE(SUBSTITUTE(SUBSTITUTE(SUBSTITUTE(SUBSTITUTE(SUBSTITUTE(SUBSTITUTE(Q7,$ED7,$ED$2&ROW($ED7)),$EC7,$EC$2&ROW($EC7)),$EB7,$EB$2&ROW($EB7)),$EA7,$EA$2&ROW($EA7)),$DZ7,$DZ$2&ROW($DZ7)),$DY7,$DY$2&ROW($DY7)),$DX7,$DX$2&ROW($DX7)),$DW7,$DW$2&ROW($DW7)),$DV7,$DV$2&ROW($DV7)),$DU7,$DU$2&ROW($DU7)),$DT7,$DT$2&ROW($DT7)),$DS7,$DS$2&ROW($DS7)))","v":0},{"$f":"IF(R7=\"\",0,\"X=\"&SUBSTITUTE(SUBSTITUTE(SUBSTITUTE(SUBSTITUTE(SUBSTITUTE(SUBSTITUTE(SUBSTITUTE(SUBSTITUTE(SUBSTITUTE(SUBSTITUTE(SUBSTITUTE(SUBSTITUTE(R7,$ED7,$ED$2&ROW($ED7)),$EC7,$EC$2&ROW($EC7)),$EB7,$EB$2&ROW($EB7)),$EA7,$EA$2&ROW($EA7)),$DZ7,$DZ$2&ROW($DZ7)),$DY7,$DY$2&ROW($DY7)),$DX7,$DX$2&ROW($DX7)),$DW7,$DW$2&ROW($DW7)),$DV7,$DV$2&ROW($DV7)),$DU7,$DU$2&ROW($DU7)),$DT7,$DT$2&ROW($DT7)),$DS7,$DS$2&ROW($DS7)))","v":"X=0"},{"$f":"IF(S7=\"\",0,\"X=\"&SUBSTITUTE(SUBSTITUTE(SUBSTITUTE(SUBSTITUTE(SUBSTITUTE(SUBSTITUTE(SUBSTITUTE(SUBSTITUTE(SUBSTITUTE(SUBSTITUTE(SUBSTITUTE(SUBSTITUTE(S7,$ED7,$ED$2&ROW($ED7)),$EC7,$EC$2&ROW($EC7)),$EB7,$EB$2&ROW($EB7)),$EA7,$EA$2&ROW($EA7)),$DZ7,$DZ$2&ROW($DZ7)),$DY7,$DY$2&ROW($DY7)),$DX7,$DX$2&ROW($DX7)),$DW7,$DW$2&ROW($DW7)),$DV7,$DV$2&ROW($DV7)),$DU7,$DU$2&ROW($DU7)),$DT7,$DT$2&ROW($DT7)),$DS7,$DS$2&ROW($DS7)))","v":0},{"$f":"IF(T7=\"\",0,\"X=\"&SUBSTITUTE(SUBSTITUTE(SUBSTITUTE(SUBSTITUTE(SUBSTITUTE(SUBSTITUTE(SUBSTITUTE(SUBSTITUTE(SUBSTITUTE(SUBSTITUTE(SUBSTITUTE(SUBSTITUTE(T7,$ED7,$ED$2&ROW($ED7)),$EC7,$EC$2&ROW($EC7)),$EB7,$EB$2&ROW($EB7)),$EA7,$EA$2&ROW($EA7)),$DZ7,$DZ$2&ROW($DZ7)),$DY7,$DY$2&ROW($DY7)),$DX7,$DX$2&ROW($DX7)),$DW7,$DW$2&ROW($DW7)),$DV7,$DV$2&ROW($DV7)),$DU7,$DU$2&ROW($DU7)),$DT7,$DT$2&ROW($DT7)),$DS7,$DS$2&ROW($DS7)))","v":0},{"$f":"IF(U7=\"\",0,\"X=\"&SUBSTITUTE(SUBSTITUTE(SUBSTITUTE(SUBSTITUTE(SUBSTITUTE(SUBSTITUTE(SUBSTITUTE(SUBSTITUTE(SUBSTITUTE(SUBSTITUTE(SUBSTITUTE(SUBSTITUTE(U7,$ED7,$ED$2&ROW($ED7)),$EC7,$EC$2&ROW($EC7)),$EB7,$EB$2&ROW($EB7)),$EA7,$EA$2&ROW($EA7)),$DZ7,$DZ$2&ROW($DZ7)),$DY7,$DY$2&ROW($DY7)),$DX7,$DX$2&ROW($DX7)),$DW7,$DW$2&ROW($DW7)),$DV7,$DV$2&ROW($DV7)),$DU7,$DU$2&ROW($DU7)),$DT7,$DT$2&ROW($DT7)),$DS7,$DS$2&ROW($DS7)))","v":"X=if(AW7=6,0.663,if(AW7=0,0.025,0))"},{"$f":"IF(V7=\"\",0,\"X=\"&SUBSTITUTE(SUBSTITUTE(SUBSTITUTE(SUBSTITUTE(SUBSTITUTE(SUBSTITUTE(SUBSTITUTE(SUBSTITUTE(SUBSTITUTE(SUBSTITUTE(SUBSTITUTE(SUBSTITUTE(V7,$ED7,$ED$2&ROW($ED7)),$EC7,$EC$2&ROW($EC7)),$EB7,$EB$2&ROW($EB7)),$EA7,$EA$2&ROW($EA7)),$DZ7,$DZ$2&ROW($DZ7)),$DY7,$DY$2&ROW($DY7)),$DX7,$DX$2&ROW($DX7)),$DW7,$DW$2&ROW($DW7)),$DV7,$DV$2&ROW($DV7)),$DU7,$DU$2&ROW($DU7)),$DT7,$DT$2&ROW($DT7)),$DS7,$DS$2&ROW($DS7)))","v":"X=0"},{"$f":"IF(W7=\"\",0,\"X=\"&SUBSTITUTE(SUBSTITUTE(SUBSTITUTE(SUBSTITUTE(SUBSTITUTE(SUBSTITUTE(SUBSTITUTE(SUBSTITUTE(SUBSTITUTE(SUBSTITUTE(SUBSTITUTE(SUBSTITUTE(W7,$ED7,$ED$2&ROW($ED7)),$EC7,$EC$2&ROW($EC7)),$EB7,$EB$2&ROW($EB7)),$EA7,$EA$2&ROW($EA7)),$DZ7,$DZ$2&ROW($DZ7)),$DY7,$DY$2&ROW($DY7)),$DX7,$DX$2&ROW($DX7)),$DW7,$DW$2&ROW($DW7)),$DV7,$DV$2&ROW($DV7)),$DU7,$DU$2&ROW($DU7)),$DT7,$DT$2&ROW($DT7)),$DS7,$DS$2&ROW($DS7)))","v":"X=if(AW7=1,10.986,if(AW7=0,0.989,0))*10"},{"$f":"IF(X7=\"\",0,\"X=\"&SUBSTITUTE(SUBSTITUTE(SUBSTITUTE(SUBSTITUTE(SUBSTITUTE(SUBSTITUTE(SUBSTITUTE(SUBSTITUTE(SUBSTITUTE(SUBSTITUTE(SUBSTITUTE(SUBSTITUTE(X7,$ED7,$ED$2&ROW($ED7)),$EC7,$EC$2&ROW($EC7)),$EB7,$EB$2&ROW($EB7)),$EA7,$EA$2&ROW($EA7)),$DZ7,$DZ$2&ROW($DZ7)),$DY7,$DY$2&ROW($DY7)),$DX7,$DX$2&ROW($DX7)),$DW7,$DW$2&ROW($DW7)),$DV7,$DV$2&ROW($DV7)),$DU7,$DU$2&ROW($DU7)),$DT7,$DT$2&ROW($DT7)),$DS7,$DS$2&ROW($DS7)))","v":"X=if(AW7=2,10.986,if(AW7 = 0,1.439,0))"},{"$f":"IF(Y7=\"\",0,\"X=\"&SUBSTITUTE(SUBSTITUTE(SUBSTITUTE(SUBSTITUTE(SUBSTITUTE(SUBSTITUTE(SUBSTITUTE(SUBSTITUTE(SUBSTITUTE(SUBSTITUTE(SUBSTITUTE(SUBSTITUTE(Y7,$ED7,$ED$2&ROW($ED7)),$EC7,$EC$2&ROW($EC7)),$EB7,$EB$2&ROW($EB7)),$EA7,$EA$2&ROW($EA7)),$DZ7,$DZ$2&ROW($DZ7)),$DY7,$DY$2&ROW($DY7)),$DX7,$DX$2&ROW($DX7)),$DW7,$DW$2&ROW($DW7)),$DV7,$DV$2&ROW($DV7)),$DU7,$DU$2&ROW($DU7)),$DT7,$DT$2&ROW($DT7)),$DS7,$DS$2&ROW($DS7)))","v":"X=if(AW7=3,10.986,if(AW7 = 0,7.514,0))"},{"$f":"IF(Z7=\"\",0,\"X=\"&SUBSTITUTE(SUBSTITUTE(SUBSTITUTE(SUBSTITUTE(SUBSTITUTE(SUBSTITUTE(SUBSTITUTE(SUBSTITUTE(SUBSTITUTE(SUBSTITUTE(SUBSTITUTE(SUBSTITUTE(Z7,$ED7,$ED$2&ROW($ED7)),$EC7,$EC$2&ROW($EC7)),$EB7,$EB$2&ROW($EB7)),$EA7,$EA$2&ROW($EA7)),$DZ7,$DZ$2&ROW($DZ7)),$DY7,$DY$2&ROW($DY7)),$DX7,$DX$2&ROW($DX7)),$DW7,$DW$2&ROW($DW7)),$DV7,$DV$2&ROW($DV7)),$DU7,$DU$2&ROW($DU7)),$DT7,$DT$2&ROW($DT7)),$DS7,$DS$2&ROW($DS7)))","v":"X=if(AW7=4,10.986,if(AW7 = 0,0.154,0))"},{"$f":"IF(AA7=\"\",0,\"X=\"&SUBSTITUTE(SUBSTITUTE(SUBSTITUTE(SUBSTITUTE(SUBSTITUTE(SUBSTITUTE(SUBSTITUTE(SUBSTITUTE(SUBSTITUTE(SUBSTITUTE(SUBSTITUTE(SUBSTITUTE(AA7,$ED7,$ED$2&ROW($ED7)),$EC7,$EC$2&ROW($EC7)),$EB7,$EB$2&ROW($EB7)),$EA7,$EA$2&ROW($EA7)),$DZ7,$DZ$2&ROW($DZ7)),$DY7,$DY$2&ROW($DY7)),$DX7,$DX$2&ROW($DX7)),$DW7,$DW$2&ROW($DW7)),$DV7,$DV$2&ROW($DV7)),$DU7,$DU$2&ROW($DU7)),$DT7,$DT$2&ROW($DT7)),$DS7,$DS$2&ROW($DS7)))","v":"X=if(AW7=5,10.986,if(AW7 = 0,0.472,0))"},{"$f":"IF(AB7=\"\",0,\"X=\"&SUBSTITUTE(SUBSTITUTE(SUBSTITUTE(SUBSTITUTE(SUBSTITUTE(SUBSTITUTE(SUBSTITUTE(SUBSTITUTE(SUBSTITUTE(SUBSTITUTE(SUBSTITUTE(SUBSTITUTE(AB7,$ED7,$ED$2&ROW($ED7)),$EC7,$EC$2&ROW($EC7)),$EB7,$EB$2&ROW($EB7)),$EA7,$EA$2&ROW($EA7)),$DZ7,$DZ$2&ROW($DZ7)),$DY7,$DY$2&ROW($DY7)),$DX7,$DX$2&ROW($DX7)),$DW7,$DW$2&ROW($DW7)),$DV7,$DV$2&ROW($DV7)),$DU7,$DU$2&ROW($DU7)),$DT7,$DT$2&ROW($DT7)),$DS7,$DS$2&ROW($DS7)))","v":"X=0"},null,null,"{Factor:WinterCF}","{Factor:SummerCF}",{"$f":"IFERROR(INDEX($EG7:$IV7,MATCH(0,COUNTIF($DR7:DT7,$EG7:$IV7),0)),\"\")","v":"{Cost}"},{"$f":"IFERROR(INDEX($EG7:$IV7,MATCH(0,COUNTIF($DR7:DU7,$EG7:$IV7),0)),\"\")","v":"{Measure:Quantity}"},{"$f":"IFERROR(INDEX($EG7:$IV7,MATCH(0,COUNTIF($DR7:DV7,$EG7:$IV7),0)),\"\")","v":"{Primary heating type}"},{"$f":"IFERROR(INDEX($EG7:$IV7,MATCH(0,COUNTIF($DR7:DW7,$EG7:$IV7),0)),\"\")","v":""},{"$f":"IFERROR(INDEX($EG7:$IV7,MATCH(0,COUNTIF($DR7:DX7,$EG7:$IV7),0)),\"\")","v":""},{"$f":"IFERROR(INDEX($EG7:$IV7,MATCH(0,COUNTIF($DR7:DY7,$EG7:$IV7),0)),\"\")","v":""},{"$f":"IFERROR(INDEX($EG7:$IV7,MATCH(0,COUNTIF($DR7:DZ7,$EG7:$IV7),0)),\"\")","v":""},{"$f":"IFERROR(INDEX($EG7:$IV7,MATCH(0,COUNTIF($DR7:EA7,$EG7:$IV7),0)),\"\")","v":""},{"$f":"IFERROR(INDEX($EG7:$IV7,MATCH(0,COUNTIF($DR7:EB7,$EG7:$IV7),0)),\"\")","v":""},{"$f":"IFERROR(INDEX($EG7:$IV7,MATCH(0,COUNTIF($DR7:EC7,$EG7:$IV7),0)),\"\")","v":""},null,null,"{Cost}","{Measure:Quantity}","","","","","","","","","{Cost}","{Cost}","{Measure:Quantity}","","","","","","","","{Cost}","{Cost}","","","","","","","","","{Primary heating type}","{Primary heating type}","","","","","","","","","","","","","","","","","","","{Primary heating type}","{Primary heating type}","","","","","","","","","","","","","","","","","","","{Primary heating type}","{Primary heating type}","","","","","","","","","{Primary heating type}","{Primary heating type}","","","","","","","","","{Primary heating type}","{Primary heating type}","","","","","","","","","{Primary heating type}","{Primary heating type}","","","","","","","","","{Primary heating type}","{Primary heating type}","","","","","","","","","","",null,3]
["Affordable Heat Initiative - Natural Gas","Air Sealing LIHESP","LAA","2021-07-01","2022-06-30","Calculated","{Cost}*{Measure:Quantity}",0,"Calculated","$600.00*{Measure:Quantity}",600,"2020-07-01","2022-06-30","Calculated","if({Primary heating type}=6,1514,if({Primary heating type}=0,67,10))",null,null,"if({Primary heating type}=6,0.026,if({Primary heating type}=0,0.026,0.026))",null,null,"if({Primary heating type}=6,0.331,if({Primary heating type}=0,0.013,0))","if({Primary heating type}=6,0.026,if({Primary heating type}=0,0.026,0.026))","if({Primary heating type}=1,6.184,if({Primary heating type}=0,0.557,0))*10","if({Primary heating type}=2,6.184,if({Primary heating type} = 0,0.810,0))","if({Primary heating type}=3,6.184,if({Primary heating type} = 0,4.230,0))","if({Primary heating type}=4,6.184,if({Primary heating type} = 0,0.087,0))","if({Primary heating type}=5,6.184,if({Primary heating type} = 0,0.266,0))",0,"2019-07-01","2022-06-30",15,1,1,0,0,0.66600000000000004,0.30099999999999999,1,1,1,0,0,null,"{Cost}",622,"{Measure:Quantity}",1,"{Primary heating type}",1,"",null,"",null,"",null,"",null,"",null,"",null,"",null,{"$f":"IF(AW8=6,1514,IF(AW8=0,67,10))","v":10},0,0,{"$f":"IF(AW8=6,0.026,IF(AW8=0,0.026,0.026))","v":2.5999999999999999E-2},0,0,{"$f":"IF(AW8=6,0.331,IF(AW8=0,0.013,0))","v":0},{"$f":"IF(AW8=6,0.026,IF(AW8=0,0.026,0.026))","v":2.5999999999999999E-2},{"$f":"IF(AW8=1,6.184,IF(AW8=0,0.557,0))*10","v":61.84},{"$f":"IF(AW8=2,6.184,IF(AW8 = 0,0.81,0))","v":0},{"$f":"IF(AW8=3,6.184,IF(AW8 = 0,4.23,0))","v":0},{"$f":"IF(AW8=4,6.184,IF(AW8 = 0,0.087,0))","v":0},{"$f":"IF(AW8=5,6.184,IF(AW8 = 0,0.266,0))","v":0},{"$f":"0","v":0},null,"Res","RGGI DR",{"$f":"Benefits(BL8,BR8,BS8,BT8,BU8,BV8,BW8,BX8,BY8,BZ8,AE8,AH8,AI8,AJ8,AK8,AL8,AM8,AN8,AO8,AP8,CA8,CB8)","v":11.517280873528332},48.953263455880382,1222.9002451057875,0,0,0,0,0,0,{"$f":"SUMPRODUCT(CC8:CK8,--(CC8:CK8>0))","v":1283.3707894351962},{"$f":"-SUMPRODUCT(CC8:CK8,--(CC8:CK8<0))","v":0},null,{"$f":"AS8*AU8","v":622},null,null,{"$f":"CM8+CO8","v":622},{"$f":"IF(NetOrGross=\"Net\",(1-AO8+AP8),1)","v":1},{"$f":"(SUMPRODUCT(CC8:CJ8,--(CC8:CJ8>0))+CN8)*CS8/((-SUMPRODUCT(CC8:CJ8,--(CC8:CJ8<0))+MAX(CO8,CV8)+CP8+CQ8)*CS8+IF(FRIncentives=\"Yes\",CV8*(1-CS8),0))","v":2.0632970891241098},1,{"$f":"600*AU8","v":600},null,"RGGI","y",null,{"$f":"IF(F8=\"Manual Entry\",\"Manual\",IF(G8=\"\",0,\"X=\"&SUBSTITUTE(SUBSTITUTE(SUBSTITUTE(SUBSTITUTE(SUBSTITUTE(SUBSTITUTE(SUBSTITUTE(SUBSTITUTE(SUBSTITUTE(SUBSTITUTE(SUBSTITUTE(SUBSTITUTE(G8,$ED8,$ED$2&ROW($ED8)),$EC8,$EC$2&ROW($EC8)),$EB8,$EB$2&ROW($EB8)),$EA8,$EA$2&ROW($EA8)),$DZ8,$DZ$2&ROW($DZ8)),$DY8,$DY$2&ROW($DY8)),$DX8,$DX$2&ROW($DX8)),$DW8,$DW$2&ROW($DW8)),$DV8,$DV$2&ROW($DV8)),$DU8,$DU$2&ROW($DU8)),$DT8,$DT$2&ROW($DT8)),$DS8,$DS$2&ROW($DS8))))","v":"X=AS8*AU8"},{"$f":"IF(I8=\"Manual Entry\",\"Manual\",IF(J8=\"\",0,\"X=\"&SUBSTITUTE(SUBSTITUTE(SUBSTITUTE(SUBSTITUTE(SUBSTITUTE(SUBSTITUTE(SUBSTITUTE(SUBSTITUTE(SUBSTITUTE(SUBSTITUTE(SUBSTITUTE(SUBSTITUTE(J8,$ED8,$ED$2&ROW($ED8)),$EC8,$EC$2&ROW($EC8)),$EB8,$EB$2&ROW($EB8)),$EA8,$EA$2&ROW($EA8)),$DZ8,$DZ$2&ROW($DZ8)),$DY8,$DY$2&ROW($DY8)),$DX8,$DX$2&ROW($DX8)),$DW8,$DW$2&ROW($DW8)),$DV8,$DV$2&ROW($DV8)),$DU8,$DU$2&ROW($DU8)),$DT8,$DT$2&ROW($DT8)),$DS8,$DS$2&ROW($DS8))))","v":"X=$600.00*AU8"},{"$f":"IF(O8=\"\",0,\"X=\"&SUBSTITUTE(SUBSTITUTE(SUBSTITUTE(SUBSTITUTE(SUBSTITUTE(SUBSTITUTE(SUBSTITUTE(SUBSTITUTE(SUBSTITUTE(SUBSTITUTE(SUBSTITUTE(SUBSTITUTE(O8,$ED8,$ED$2&ROW($ED8)),$EC8,$EC$2&ROW($EC8)),$EB8,$EB$2&ROW($EB8)),$EA8,$EA$2&ROW($EA8)),$DZ8,$DZ$2&ROW($DZ8)),$DY8,$DY$2&ROW($DY8)),$DX8,$DX$2&ROW($DX8)),$DW8,$DW$2&ROW($DW8)),$DV8,$DV$2&ROW($DV8)),$DU8,$DU$2&ROW($DU8)),$DT8,$DT$2&ROW($DT8)),$DS8,$DS$2&ROW($DS8)))","v":"X=if(AW8=6,1514,if(AW8=0,67,10))"},{"$f":"IF(P8=\"\",0,\"X=\"&SUBSTITUTE(SUBSTITUTE(SUBSTITUTE(SUBSTITUTE(SUBSTITUTE(SUBSTITUTE(SUBSTITUTE(SUBSTITUTE(SUBSTITUTE(SUBSTITUTE(SUBSTITUTE(SUBSTITUTE(P8,$ED8,$ED$2&ROW($ED8)),$EC8,$EC$2&ROW($EC8)),$EB8,$EB$2&ROW($EB8)),$EA8,$EA$2&ROW($EA8)),$DZ8,$DZ$2&ROW($DZ8)),$DY8,$DY$2&ROW($DY8)),$DX8,$DX$2&ROW($DX8)),$DW8,$DW$2&ROW($DW8)),$DV8,$DV$2&ROW($DV8)),$DU8,$DU$2&ROW($DU8)),$DT8,$DT$2&ROW($DT8)),$DS8,$DS$2&ROW($DS8)))","v":0},{"$f":"IF(Q8=\"\",0,\"X=\"&SUBSTITUTE(SUBSTITUTE(SUBSTITUTE(SUBSTITUTE(SUBSTITUTE(SUBSTITUTE(SUBSTITUTE(SUBSTITUTE(SUBSTITUTE(SUBSTITUTE(SUBSTITUTE(SUBSTITUTE(Q8,$ED8,$ED$2&ROW($ED8)),$EC8,$EC$2&ROW($EC8)),$EB8,$EB$2&ROW($EB8)),$EA8,$EA$2&ROW($EA8)),$DZ8,$DZ$2&ROW($DZ8)),$DY8,$DY$2&ROW($DY8)),$DX8,$DX$2&ROW($DX8)),$DW8,$DW$2&ROW($DW8)),$DV8,$DV$2&ROW($DV8)),$DU8,$DU$2&ROW($DU8)),$DT8,$DT$2&ROW($DT8)),$DS8,$DS$2&ROW($DS8)))","v":0},{"$f":"IF(R8=\"\",0,\"X=\"&SUBSTITUTE(SUBSTITUTE(SUBSTITUTE(SUBSTITUTE(SUBSTITUTE(SUBSTITUTE(SUBSTITUTE(SUBSTITUTE(SUBSTITUTE(SUBSTITUTE(SUBSTITUTE(SUBSTITUTE(R8,$ED8,$ED$2&ROW($ED8)),$EC8,$EC$2&ROW($EC8)),$EB8,$EB$2&ROW($EB8)),$EA8,$EA$2&ROW($EA8)),$DZ8,$DZ$2&ROW($DZ8)),$DY8,$DY$2&ROW($DY8)),$DX8,$DX$2&ROW($DX8)),$DW8,$DW$2&ROW($DW8)),$DV8,$DV$2&ROW($DV8)),$DU8,$DU$2&ROW($DU8)),$DT8,$DT$2&ROW($DT8)),$DS8,$DS$2&ROW($DS8)))","v":"X=if(AW8=6,0.026,if(AW8=0,0.026,0.026))"},{"$f":"IF(S8=\"\",0,\"X=\"&SUBSTITUTE(SUBSTITUTE(SUBSTITUTE(SUBSTITUTE(SUBSTITUTE(SUBSTITUTE(SUBSTITUTE(SUBSTITUTE(SUBSTITUTE(SUBSTITUTE(SUBSTITUTE(SUBSTITUTE(S8,$ED8,$ED$2&ROW($ED8)),$EC8,$EC$2&ROW($EC8)),$EB8,$EB$2&ROW($EB8)),$EA8,$EA$2&ROW($EA8)),$DZ8,$DZ$2&ROW($DZ8)),$DY8,$DY$2&ROW($DY8)),$DX8,$DX$2&ROW($DX8)),$DW8,$DW$2&ROW($DW8)),$DV8,$DV$2&ROW($DV8)),$DU8,$DU$2&ROW($DU8)),$DT8,$DT$2&ROW($DT8)),$DS8,$DS$2&ROW($DS8)))","v":0},{"$f":"IF(T8=\"\",0,\"X=\"&SUBSTITUTE(SUBSTITUTE(SUBSTITUTE(SUBSTITUTE(SUBSTITUTE(SUBSTITUTE(SUBSTITUTE(SUBSTITUTE(SUBSTITUTE(SUBSTITUTE(SUBSTITUTE(SUBSTITUTE(T8,$ED8,$ED$2&ROW($ED8)),$EC8,$EC$2&ROW($EC8)),$EB8,$EB$2&ROW($EB8)),$EA8,$EA$2&ROW($EA8)),$DZ8,$DZ$2&ROW($DZ8)),$DY8,$DY$2&ROW($DY8)),$DX8,$DX$2&ROW($DX8)),$DW8,$DW$2&ROW($DW8)),$DV8,$DV$2&ROW($DV8)),$DU8,$DU$2&ROW($DU8)),$DT8,$DT$2&ROW($DT8)),$DS8,$DS$2&ROW($DS8)))","v":0},{"$f":"IF(U8=\"\",0,\"X=\"&SUBSTITUTE(SUBSTITUTE(SUBSTITUTE(SUBSTITUTE(SUBSTITUTE(SUBSTITUTE(SUBSTITUTE(SUBSTITUTE(SUBSTITUTE(SUBSTITUTE(SUBSTITUTE(SUBSTITUTE(U8,$ED8,$ED$2&ROW($ED8)),$EC8,$EC$2&ROW($EC8)),$EB8,$EB$2&ROW($EB8)),$EA8,$EA$2&ROW($EA8)),$DZ8,$DZ$2&ROW($DZ8)),$DY8,$DY$2&ROW($DY8)),$DX8,$DX$2&ROW($DX8)),$DW8,$DW$2&ROW($DW8)),$DV8,$DV$2&ROW($DV8)),$DU8,$DU$2&ROW($DU8)),$DT8,$DT$2&ROW($DT8)),$DS8,$DS$2&ROW($DS8)))","v":"X=if(AW8=6,0.331,if(AW8=0,0.013,0))"},{"$f":"IF(V8=\"\",0,\"X=\"&SUBSTITUTE(SUBSTITUTE(SUBSTITUTE(SUBSTITUTE(SUBSTITUTE(SUBSTITUTE(SUBSTITUTE(SUBSTITUTE(SUBSTITUTE(SUBSTITUTE(SUBSTITUTE(SUBSTITUTE(V8,$ED8,$ED$2&ROW($ED8)),$EC8,$EC$2&ROW($EC8)),$EB8,$EB$2&ROW($EB8)),$EA8,$EA$2&ROW($EA8)),$DZ8,$DZ$2&ROW($DZ8)),$DY8,$DY$2&ROW($DY8)),$DX8,$DX$2&ROW($DX8)),$DW8,$DW$2&ROW($DW8)),$DV8,$DV$2&ROW($DV8)),$DU8,$DU$2&ROW($DU8)),$DT8,$DT$2&ROW($DT8)),$DS8,$DS$2&ROW($DS8)))","v":"X=if(AW8=6,0.026,if(AW8=0,0.026,0.026))"},{"$f":"IF(W8=\"\",0,\"X=\"&SUBSTITUTE(SUBSTITUTE(SUBSTITUTE(SUBSTITUTE(SUBSTITUTE(SUBSTITUTE(SUBSTITUTE(SUBSTITUTE(SUBSTITUTE(SUBSTITUTE(SUBSTITUTE(SUBSTITUTE(W8,$ED8,$ED$2&ROW($ED8)),$EC8,$EC$2&ROW($EC8)),$EB8,$EB$2&ROW($EB8)),$EA8,$EA$2&ROW($EA8)),$DZ8,$DZ$2&ROW($DZ8)),$DY8,$DY$2&ROW($DY8)),$DX8,$DX$2&ROW($DX8)),$DW8,$DW$2&ROW($DW8)),$DV8,$DV$2&ROW($DV8)),$DU8,$DU$2&ROW($DU8)),$DT8,$DT$2&ROW($DT8)),$DS8,$DS$2&ROW($DS8)))","v":"X=if(AW8=1,6.184,if(AW8=0,0.557,0))*10"},{"$f":"IF(X8=\"\",0,\"X=\"&SUBSTITUTE(SUBSTITUTE(SUBSTITUTE(SUBSTITUTE(SUBSTITUTE(SUBSTITUTE(SUBSTITUTE(SUBSTITUTE(SUBSTITUTE(SUBSTITUTE(SUBSTITUTE(SUBSTITUTE(X8,$ED8,$ED$2&ROW($ED8)),$EC8,$EC$2&ROW($EC8)),$EB8,$EB$2&ROW($EB8)),$EA8,$EA$2&ROW($EA8)),$DZ8,$DZ$2&ROW($DZ8)),$DY8,$DY$2&ROW($DY8)),$DX8,$DX$2&ROW($DX8)),$DW8,$DW$2&ROW($DW8)),$DV8,$DV$2&ROW($DV8)),$DU8,$DU$2&ROW($DU8)),$DT8,$DT$2&ROW($DT8)),$DS8,$DS$2&ROW($DS8)))","v":"X=if(AW8=2,6.184,if(AW8 = 0,0.810,0))"},{"$f":"IF(Y8=\"\",0,\"X=\"&SUBSTITUTE(SUBSTITUTE(SUBSTITUTE(SUBSTITUTE(SUBSTITUTE(SUBSTITUTE(SUBSTITUTE(SUBSTITUTE(SUBSTITUTE(SUBSTITUTE(SUBSTITUTE(SUBSTITUTE(Y8,$ED8,$ED$2&ROW($ED8)),$EC8,$EC$2&ROW($EC8)),$EB8,$EB$2&ROW($EB8)),$EA8,$EA$2&ROW($EA8)),$DZ8,$DZ$2&ROW($DZ8)),$DY8,$DY$2&ROW($DY8)),$DX8,$DX$2&ROW($DX8)),$DW8,$DW$2&ROW($DW8)),$DV8,$DV$2&ROW($DV8)),$DU8,$DU$2&ROW($DU8)),$DT8,$DT$2&ROW($DT8)),$DS8,$DS$2&ROW($DS8)))","v":"X=if(AW8=3,6.184,if(AW8 = 0,4.230,0))"},{"$f":"IF(Z8=\"\",0,\"X=\"&SUBSTITUTE(SUBSTITUTE(SUBSTITUTE(SUBSTITUTE(SUBSTITUTE(SUBSTITUTE(SUBSTITUTE(SUBSTITUTE(SUBSTITUTE(SUBSTITUTE(SUBSTITUTE(SUBSTITUTE(Z8,$ED8,$ED$2&ROW($ED8)),$EC8,$EC$2&ROW($EC8)),$EB8,$EB$2&ROW($EB8)),$EA8,$EA$2&ROW($EA8)),$DZ8,$DZ$2&ROW($DZ8)),$DY8,$DY$2&ROW($DY8)),$DX8,$DX$2&ROW($DX8)),$DW8,$DW$2&ROW($DW8)),$DV8,$DV$2&ROW($DV8)),$DU8,$DU$2&ROW($DU8)),$DT8,$DT$2&ROW($DT8)),$DS8,$DS$2&ROW($DS8)))","v":"X=if(AW8=4,6.184,if(AW8 = 0,0.087,0))"},{"$f":"IF(AA8=\"\",0,\"X=\"&SUBSTITUTE(SUBSTITUTE(SUBSTITUTE(SUBSTITUTE(SUBSTITUTE(SUBSTITUTE(SUBSTITUTE(SUBSTITUTE(SUBSTITUTE(SUBSTITUTE(SUBSTITUTE(SUBSTITUTE(AA8,$ED8,$ED$2&ROW($ED8)),$EC8,$EC$2&ROW($EC8)),$EB8,$EB$2&ROW($EB8)),$EA8,$EA$2&ROW($EA8)),$DZ8,$DZ$2&ROW($DZ8)),$DY8,$DY$2&ROW($DY8)),$DX8,$DX$2&ROW($DX8)),$DW8,$DW$2&ROW($DW8)),$DV8,$DV$2&ROW($DV8)),$DU8,$DU$2&ROW($DU8)),$DT8,$DT$2&ROW($DT8)),$DS8,$DS$2&ROW($DS8)))","v":"X=if(AW8=5,6.184,if(AW8 = 0,0.266,0))"},{"$f":"IF(AB8=\"\",0,\"X=\"&SUBSTITUTE(SUBSTITUTE(SUBSTITUTE(SUBSTITUTE(SUBSTITUTE(SUBSTITUTE(SUBSTITUTE(SUBSTITUTE(SUBSTITUTE(SUBSTITUTE(SUBSTITUTE(SUBSTITUTE(AB8,$ED8,$ED$2&ROW($ED8)),$EC8,$EC$2&ROW($EC8)),$EB8,$EB$2&ROW($EB8)),$EA8,$EA$2&ROW($EA8)),$DZ8,$DZ$2&ROW($DZ8)),$DY8,$DY$2&ROW($DY8)),$DX8,$DX$2&ROW($DX8)),$DW8,$DW$2&ROW($DW8)),$DV8,$DV$2&ROW($DV8)),$DU8,$DU$2&ROW($DU8)),$DT8,$DT$2&ROW($DT8)),$DS8,$DS$2&ROW($DS8)))","v":"X=0"},null,null,"{Factor:WinterCF}","{Factor:SummerCF}",{"$f":"IFERROR(INDEX($EG8:$IV8,MATCH(0,COUNTIF($DR8:DT8,$EG8:$IV8),0)),\"\")","v":"{Cost}"},{"$f":"IFERROR(INDEX($EG8:$IV8,MATCH(0,COUNTIF($DR8:DU8,$EG8:$IV8),0)),\"\")","v":"{Measure:Quantity}"},{"$f":"IFERROR(INDEX($EG8:$IV8,MATCH(0,COUNTIF($DR8:DV8,$EG8:$IV8),0)),\"\")","v":"{Primary heating type}"},{"$f":"IFERROR(INDEX($EG8:$IV8,MATCH(0,COUNTIF($DR8:DW8,$EG8:$IV8),0)),\"\")","v":""},{"$f":"IFERROR(INDEX($EG8:$IV8,MATCH(0,COUNTIF($DR8:DX8,$EG8:$IV8),0)),\"\")","v":""},{"$f":"IFERROR(INDEX($EG8:$IV8,MATCH(0,COUNTIF($DR8:DY8,$EG8:$IV8),0)),\"\")","v":""},{"$f":"IFERROR(INDEX($EG8:$IV8,MATCH(0,COUNTIF($DR8:DZ8,$EG8:$IV8),0)),\"\")","v":""},{"$f":"IFERROR(INDEX($EG8:$IV8,MATCH(0,COUNTIF($DR8:EA8,$EG8:$IV8),0)),\"\")","v":""},{"$f":"IFERROR(INDEX($EG8:$IV8,MATCH(0,COUNTIF($DR8:EB8,$EG8:$IV8),0)),\"\")","v":""},{"$f":"IFERROR(INDEX($EG8:$IV8,MATCH(0,COUNTIF($DR8:EC8,$EG8:$IV8),0)),\"\")","v":""},null,null,"{Cost}","{Measure:Quantity}","","","","","","","","","{Measure:Quantity}","","","","","","","","","","{Measure:Quantity}","","","","","","","","","","{Primary heating type}","{Primary heating type}","","","","","","","","","{Primary heating type}","{Primary heating type}","","","","","","","","","{Primary heating type}","{Primary heating type}","","","","","","","","","{Primary heating type}","{Primary heating type}","","","","","","","","","{Primary heating type}","{Primary heating type}","","","","","","","","","{Primary heating type}","{Primary heating type}","","","","","","","","","{Primary heating type}","{Primary heating type}","","","","","","","","","{Primary heating type}","{Primary heating type}","","","","","","","","","{Primary heating type}","{Primary heating type}","","","","","","","","","","",null,3]
["Affordable Heat Initiative - Natural Gas","Wall Insulation LIHESP","LBW","2021-07-01","2022-06-30","Calculated","{Cost}*{Measure:Quantity}",0,"Calculated","if({Cost}*0.80>2000,2000,Round({Cost}*0.80,2))*{Measure:Quantity}",0,"2020-07-01","2022-06-30","Calculated","if({Primary heating type}=6,4879,if({Primary heating type}=0,216,32))",null,null,"if({Primary heating type}=6,0.068,if({Primary heating type}=0,0.068,0.068))",null,null,"if({Primary heating type}=6,1.202,if({Primary heating type}=0,0.046,0))","if({Primary heating type}=6,0.068,if({Primary heating type}=0,0.068,0.068))","if({Primary heating type}=1,20.034,if({Primary heating type}=0,1.793,0))*10","if({Primary heating type}=2,20.034,if({Primary heating type} = 0,2.610,0))","if({Primary heating type}=3,20.034,if({Primary heating type} = 0,13.628,0))","if({Primary heating type}=4,20.034,if({Primary heating type} = 0,0.279,0))","if({Primary heating type}=5,20.034,if({Primary heating type} = 0,0.857,0))",0,"2019-07-01","2022-06-30",25,1,1,0,0,0.66600000000000004,0.30099999999999999,1,1,1,0,0,null,"{Cost}",2574,"{Measure:Quantity}",1,"{Primary heating type}",1,"",null,"",null,"",null,"",null,"",null,"",null,"",null,{"$f":"IF(AW9=6,4879,IF(AW9=0,216,32))","v":32},0,0,{"$f":"IF(AW9=6,0.068,IF(AW9=0,0.068,0.068))","v":6.8000000000000005E-2},0,0,{"$f":"IF(AW9=6,1.202,IF(AW9=0,0.046,0))","v":0},{"$f":"IF(AW9=6,0.068,IF(AW9=0,0.068,0.068))","v":6.8000000000000005E-2},{"$f":"IF(AW9=1,20.034,IF(AW9=0,1.793,0))*10","v":200.33999999999997},{"$f":"IF(AW9=2,20.034,IF(AW9 = 0,2.61,0))","v":0},{"$f":"IF(AW9=3,20.034,IF(AW9 = 0,13.628,0))","v":0},{"$f":"IF(AW9=4,20.034,IF(AW9 = 0,0.279,0))","v":0},{"$f":"IF(AW9=5,20.034,IF(AW9 = 0,0.857,0))","v":0},{"$f":"0","v":0},null,"Res","RGGI DR",{"$f":"Benefits(BL9,BR9,BS9,BT9,BU9,BV9,BW9,BX9,BY9,BZ9,AE9,AH9,AI9,AJ9,AK9,AL9,AM9,AN9,AO9,AP9,CA9,CB9)","v":52.163731189655394},189.00922569169614,5360.9424564540441,0,0,0,0,0,0,{"$f":"SUMPRODUCT(CC9:CK9,--(CC9:CK9>0))","v":5602.1154133353957},{"$f":"-SUMPRODUCT(CC9:CK9,--(CC9:CK9<0))","v":0},null,{"$f":"AS9*AU9","v":2574},null,null,{"$f":"CM9+CO9","v":2574},{"$f":"IF(NetOrGross=\"Net\",(1-AO9+AP9),1)","v":1},{"$f":"(SUMPRODUCT(CC9:CJ9,--(CC9:CJ9>0))+CN9)*CS9/((-SUMPRODUCT(CC9:CJ9,--(CC9:CJ9<0))+MAX(CO9,CV9)+CP9+CQ9)*CS9+IF(FRIncentives=\"Yes\",CV9*(1-CS9),0))","v":2.1764240145048159},1,{"$f":"IF(AS9*0.8>2000,2000,ROUND(AS9*0.8,2))*AU9","v":2000},null,"RGGI","y",null,{"$f":"IF(F9=\"Manual Entry\",\"Manual\",IF(G9=\"\",0,\"X=\"&SUBSTITUTE(SUBSTITUTE(SUBSTITUTE(SUBSTITUTE(SUBSTITUTE(SUBSTITUTE(SUBSTITUTE(SUBSTITUTE(SUBSTITUTE(SUBSTITUTE(SUBSTITUTE(SUBSTITUTE(G9,$ED9,$ED$2&ROW($ED9)),$EC9,$EC$2&ROW($EC9)),$EB9,$EB$2&ROW($EB9)),$EA9,$EA$2&ROW($EA9)),$DZ9,$DZ$2&ROW($DZ9)),$DY9,$DY$2&ROW($DY9)),$DX9,$DX$2&ROW($DX9)),$DW9,$DW$2&ROW($DW9)),$DV9,$DV$2&ROW($DV9)),$DU9,$DU$2&ROW($DU9)),$DT9,$DT$2&ROW($DT9)),$DS9,$DS$2&ROW($DS9))))","v":"X=AS9*AU9"},{"$f":"IF(I9=\"Manual Entry\",\"Manual\",IF(J9=\"\",0,\"X=\"&SUBSTITUTE(SUBSTITUTE(SUBSTITUTE(SUBSTITUTE(SUBSTITUTE(SUBSTITUTE(SUBSTITUTE(SUBSTITUTE(SUBSTITUTE(SUBSTITUTE(SUBSTITUTE(SUBSTITUTE(J9,$ED9,$ED$2&ROW($ED9)),$EC9,$EC$2&ROW($EC9)),$EB9,$EB$2&ROW($EB9)),$EA9,$EA$2&ROW($EA9)),$DZ9,$DZ$2&ROW($DZ9)),$DY9,$DY$2&ROW($DY9)),$DX9,$DX$2&ROW($DX9)),$DW9,$DW$2&ROW($DW9)),$DV9,$DV$2&ROW($DV9)),$DU9,$DU$2&ROW($DU9)),$DT9,$DT$2&ROW($DT9)),$DS9,$DS$2&ROW($DS9))))","v":"X=if(AS9*0.80>2000,2000,Round(AS9*0.80,2))*AU9"},{"$f":"IF(O9=\"\",0,\"X=\"&SUBSTITUTE(SUBSTITUTE(SUBSTITUTE(SUBSTITUTE(SUBSTITUTE(SUBSTITUTE(SUBSTITUTE(SUBSTITUTE(SUBSTITUTE(SUBSTITUTE(SUBSTITUTE(SUBSTITUTE(O9,$ED9,$ED$2&ROW($ED9)),$EC9,$EC$2&ROW($EC9)),$EB9,$EB$2&ROW($EB9)),$EA9,$EA$2&ROW($EA9)),$DZ9,$DZ$2&ROW($DZ9)),$DY9,$DY$2&ROW($DY9)),$DX9,$DX$2&ROW($DX9)),$DW9,$DW$2&ROW($DW9)),$DV9,$DV$2&ROW($DV9)),$DU9,$DU$2&ROW($DU9)),$DT9,$DT$2&ROW($DT9)),$DS9,$DS$2&ROW($DS9)))","v":"X=if(AW9=6,4879,if(AW9=0,216,32))"},{"$f":"IF(P9=\"\",0,\"X=\"&SUBSTITUTE(SUBSTITUTE(SUBSTITUTE(SUBSTITUTE(SUBSTITUTE(SUBSTITUTE(SUBSTITUTE(SUBSTITUTE(SUBSTITUTE(SUBSTITUTE(SUBSTITUTE(SUBSTITUTE(P9,$ED9,$ED$2&ROW($ED9)),$EC9,$EC$2&ROW($EC9)),$EB9,$EB$2&ROW($EB9)),$EA9,$EA$2&ROW($EA9)),$DZ9,$DZ$2&ROW($DZ9)),$DY9,$DY$2&ROW($DY9)),$DX9,$DX$2&ROW($DX9)),$DW9,$DW$2&ROW($DW9)),$DV9,$DV$2&ROW($DV9)),$DU9,$DU$2&ROW($DU9)),$DT9,$DT$2&ROW($DT9)),$DS9,$DS$2&ROW($DS9)))","v":0},{"$f":"IF(Q9=\"\",0,\"X=\"&SUBSTITUTE(SUBSTITUTE(SUBSTITUTE(SUBSTITUTE(SUBSTITUTE(SUBSTITUTE(SUBSTITUTE(SUBSTITUTE(SUBSTITUTE(SUBSTITUTE(SUBSTITUTE(SUBSTITUTE(Q9,$ED9,$ED$2&ROW($ED9)),$EC9,$EC$2&ROW($EC9)),$EB9,$EB$2&ROW($EB9)),$EA9,$EA$2&ROW($EA9)),$DZ9,$DZ$2&ROW($DZ9)),$DY9,$DY$2&ROW($DY9)),$DX9,$DX$2&ROW($DX9)),$DW9,$DW$2&ROW($DW9)),$DV9,$DV$2&ROW($DV9)),$DU9,$DU$2&ROW($DU9)),$DT9,$DT$2&ROW($DT9)),$DS9,$DS$2&ROW($DS9)))","v":0},{"$f":"IF(R9=\"\",0,\"X=\"&SUBSTITUTE(SUBSTITUTE(SUBSTITUTE(SUBSTITUTE(SUBSTITUTE(SUBSTITUTE(SUBSTITUTE(SUBSTITUTE(SUBSTITUTE(SUBSTITUTE(SUBSTITUTE(SUBSTITUTE(R9,$ED9,$ED$2&ROW($ED9)),$EC9,$EC$2&ROW($EC9)),$EB9,$EB$2&ROW($EB9)),$EA9,$EA$2&ROW($EA9)),$DZ9,$DZ$2&ROW($DZ9)),$DY9,$DY$2&ROW($DY9)),$DX9,$DX$2&ROW($DX9)),$DW9,$DW$2&ROW($DW9)),$DV9,$DV$2&ROW($DV9)),$DU9,$DU$2&ROW($DU9)),$DT9,$DT$2&ROW($DT9)),$DS9,$DS$2&ROW($DS9)))","v":"X=if(AW9=6,0.068,if(AW9=0,0.068,0.068))"},{"$f":"IF(S9=\"\",0,\"X=\"&SUBSTITUTE(SUBSTITUTE(SUBSTITUTE(SUBSTITUTE(SUBSTITUTE(SUBSTITUTE(SUBSTITUTE(SUBSTITUTE(SUBSTITUTE(SUBSTITUTE(SUBSTITUTE(SUBSTITUTE(S9,$ED9,$ED$2&ROW($ED9)),$EC9,$EC$2&ROW($EC9)),$EB9,$EB$2&ROW($EB9)),$EA9,$EA$2&ROW($EA9)),$DZ9,$DZ$2&ROW($DZ9)),$DY9,$DY$2&ROW($DY9)),$DX9,$DX$2&ROW($DX9)),$DW9,$DW$2&ROW($DW9)),$DV9,$DV$2&ROW($DV9)),$DU9,$DU$2&ROW($DU9)),$DT9,$DT$2&ROW($DT9)),$DS9,$DS$2&ROW($DS9)))","v":0},{"$f":"IF(T9=\"\",0,\"X=\"&SUBSTITUTE(SUBSTITUTE(SUBSTITUTE(SUBSTITUTE(SUBSTITUTE(SUBSTITUTE(SUBSTITUTE(SUBSTITUTE(SUBSTITUTE(SUBSTITUTE(SUBSTITUTE(SUBSTITUTE(T9,$ED9,$ED$2&ROW($ED9)),$EC9,$EC$2&ROW($EC9)),$EB9,$EB$2&ROW($EB9)),$EA9,$EA$2&ROW($EA9)),$DZ9,$DZ$2&ROW($DZ9)),$DY9,$DY$2&ROW($DY9)),$DX9,$DX$2&ROW($DX9)),$DW9,$DW$2&ROW($DW9)),$DV9,$DV$2&ROW($DV9)),$DU9,$DU$2&ROW($DU9)),$DT9,$DT$2&ROW($DT9)),$DS9,$DS$2&ROW($DS9)))","v":0},{"$f":"IF(U9=\"\",0,\"X=\"&SUBSTITUTE(SUBSTITUTE(SUBSTITUTE(SUBSTITUTE(SUBSTITUTE(SUBSTITUTE(SUBSTITUTE(SUBSTITUTE(SUBSTITUTE(SUBSTITUTE(SUBSTITUTE(SUBSTITUTE(U9,$ED9,$ED$2&ROW($ED9)),$EC9,$EC$2&ROW($EC9)),$EB9,$EB$2&ROW($EB9)),$EA9,$EA$2&ROW($EA9)),$DZ9,$DZ$2&ROW($DZ9)),$DY9,$DY$2&ROW($DY9)),$DX9,$DX$2&ROW($DX9)),$DW9,$DW$2&ROW($DW9)),$DV9,$DV$2&ROW($DV9)),$DU9,$DU$2&ROW($DU9)),$DT9,$DT$2&ROW($DT9)),$DS9,$DS$2&ROW($DS9)))","v":"X=if(AW9=6,1.202,if(AW9=0,0.046,0))"},{"$f":"IF(V9=\"\",0,\"X=\"&SUBSTITUTE(SUBSTITUTE(SUBSTITUTE(SUBSTITUTE(SUBSTITUTE(SUBSTITUTE(SUBSTITUTE(SUBSTITUTE(SUBSTITUTE(SUBSTITUTE(SUBSTITUTE(SUBSTITUTE(V9,$ED9,$ED$2&ROW($ED9)),$EC9,$EC$2&ROW($EC9)),$EB9,$EB$2&ROW($EB9)),$EA9,$EA$2&ROW($EA9)),$DZ9,$DZ$2&ROW($DZ9)),$DY9,$DY$2&ROW($DY9)),$DX9,$DX$2&ROW($DX9)),$DW9,$DW$2&ROW($DW9)),$DV9,$DV$2&ROW($DV9)),$DU9,$DU$2&ROW($DU9)),$DT9,$DT$2&ROW($DT9)),$DS9,$DS$2&ROW($DS9)))","v":"X=if(AW9=6,0.068,if(AW9=0,0.068,0.068))"},{"$f":"IF(W9=\"\",0,\"X=\"&SUBSTITUTE(SUBSTITUTE(SUBSTITUTE(SUBSTITUTE(SUBSTITUTE(SUBSTITUTE(SUBSTITUTE(SUBSTITUTE(SUBSTITUTE(SUBSTITUTE(SUBSTITUTE(SUBSTITUTE(W9,$ED9,$ED$2&ROW($ED9)),$EC9,$EC$2&ROW($EC9)),$EB9,$EB$2&ROW($EB9)),$EA9,$EA$2&ROW($EA9)),$DZ9,$DZ$2&ROW($DZ9)),$DY9,$DY$2&ROW($DY9)),$DX9,$DX$2&ROW($DX9)),$DW9,$DW$2&ROW($DW9)),$DV9,$DV$2&ROW($DV9)),$DU9,$DU$2&ROW($DU9)),$DT9,$DT$2&ROW($DT9)),$DS9,$DS$2&ROW($DS9)))","v":"X=if(AW9=1,20.034,if(AW9=0,1.793,0))*10"},{"$f":"IF(X9=\"\",0,\"X=\"&SUBSTITUTE(SUBSTITUTE(SUBSTITUTE(SUBSTITUTE(SUBSTITUTE(SUBSTITUTE(SUBSTITUTE(SUBSTITUTE(SUBSTITUTE(SUBSTITUTE(SUBSTITUTE(SUBSTITUTE(X9,$ED9,$ED$2&ROW($ED9)),$EC9,$EC$2&ROW($EC9)),$EB9,$EB$2&ROW($EB9)),$EA9,$EA$2&ROW($EA9)),$DZ9,$DZ$2&ROW($DZ9)),$DY9,$DY$2&ROW($DY9)),$DX9,$DX$2&ROW($DX9)),$DW9,$DW$2&ROW($DW9)),$DV9,$DV$2&ROW($DV9)),$DU9,$DU$2&ROW($DU9)),$DT9,$DT$2&ROW($DT9)),$DS9,$DS$2&ROW($DS9)))","v":"X=if(AW9=2,20.034,if(AW9 = 0,2.610,0))"},{"$f":"IF(Y9=\"\",0,\"X=\"&SUBSTITUTE(SUBSTITUTE(SUBSTITUTE(SUBSTITUTE(SUBSTITUTE(SUBSTITUTE(SUBSTITUTE(SUBSTITUTE(SUBSTITUTE(SUBSTITUTE(SUBSTITUTE(SUBSTITUTE(Y9,$ED9,$ED$2&ROW($ED9)),$EC9,$EC$2&ROW($EC9)),$EB9,$EB$2&ROW($EB9)),$EA9,$EA$2&ROW($EA9)),$DZ9,$DZ$2&ROW($DZ9)),$DY9,$DY$2&ROW($DY9)),$DX9,$DX$2&ROW($DX9)),$DW9,$DW$2&ROW($DW9)),$DV9,$DV$2&ROW($DV9)),$DU9,$DU$2&ROW($DU9)),$DT9,$DT$2&ROW($DT9)),$DS9,$DS$2&ROW($DS9)))","v":"X=if(AW9=3,20.034,if(AW9 = 0,13.628,0))"},{"$f":"IF(Z9=\"\",0,\"X=\"&SUBSTITUTE(SUBSTITUTE(SUBSTITUTE(SUBSTITUTE(SUBSTITUTE(SUBSTITUTE(SUBSTITUTE(SUBSTITUTE(SUBSTITUTE(SUBSTITUTE(SUBSTITUTE(SUBSTITUTE(Z9,$ED9,$ED$2&ROW($ED9)),$EC9,$EC$2&ROW($EC9)),$EB9,$EB$2&ROW($EB9)),$EA9,$EA$2&ROW($EA9)),$DZ9,$DZ$2&ROW($DZ9)),$DY9,$DY$2&ROW($DY9)),$DX9,$DX$2&ROW($DX9)),$DW9,$DW$2&ROW($DW9)),$DV9,$DV$2&ROW($DV9)),$DU9,$DU$2&ROW($DU9)),$DT9,$DT$2&ROW($DT9)),$DS9,$DS$2&ROW($DS9)))","v":"X=if(AW9=4,20.034,if(AW9 = 0,0.279,0))"},{"$f":"IF(AA9=\"\",0,\"X=\"&SUBSTITUTE(SUBSTITUTE(SUBSTITUTE(SUBSTITUTE(SUBSTITUTE(SUBSTITUTE(SUBSTITUTE(SUBSTITUTE(SUBSTITUTE(SUBSTITUTE(SUBSTITUTE(SUBSTITUTE(AA9,$ED9,$ED$2&ROW($ED9)),$EC9,$EC$2&ROW($EC9)),$EB9,$EB$2&ROW($EB9)),$EA9,$EA$2&ROW($EA9)),$DZ9,$DZ$2&ROW($DZ9)),$DY9,$DY$2&ROW($DY9)),$DX9,$DX$2&ROW($DX9)),$DW9,$DW$2&ROW($DW9)),$DV9,$DV$2&ROW($DV9)),$DU9,$DU$2&ROW($DU9)),$DT9,$DT$2&ROW($DT9)),$DS9,$DS$2&ROW($DS9)))","v":"X=if(AW9=5,20.034,if(AW9 = 0,0.857,0))"},{"$f":"IF(AB9=\"\",0,\"X=\"&SUBSTITUTE(SUBSTITUTE(SUBSTITUTE(SUBSTITUTE(SUBSTITUTE(SUBSTITUTE(SUBSTITUTE(SUBSTITUTE(SUBSTITUTE(SUBSTITUTE(SUBSTITUTE(SUBSTITUTE(AB9,$ED9,$ED$2&ROW($ED9)),$EC9,$EC$2&ROW($EC9)),$EB9,$EB$2&ROW($EB9)),$EA9,$EA$2&ROW($EA9)),$DZ9,$DZ$2&ROW($DZ9)),$DY9,$DY$2&ROW($DY9)),$DX9,$DX$2&ROW($DX9)),$DW9,$DW$2&ROW($DW9)),$DV9,$DV$2&ROW($DV9)),$DU9,$DU$2&ROW($DU9)),$DT9,$DT$2&ROW($DT9)),$DS9,$DS$2&ROW($DS9)))","v":"X=0"},null,null,"{Factor:WinterCF}","{Factor:SummerCF}",{"$f":"IFERROR(INDEX($EG9:$IV9,MATCH(0,COUNTIF($DR9:DT9,$EG9:$IV9),0)),\"\")","v":"{Cost}"},{"$f":"IFERROR(INDEX($EG9:$IV9,MATCH(0,COUNTIF($DR9:DU9,$EG9:$IV9),0)),\"\")","v":"{Measure:Quantity}"},{"$f":"IFERROR(INDEX($EG9:$IV9,MATCH(0,COUNTIF($DR9:DV9,$EG9:$IV9),0)),\"\")","v":"{Primary heating type}"},{"$f":"IFERROR(INDEX($EG9:$IV9,MATCH(0,COUNTIF($DR9:DW9,$EG9:$IV9),0)),\"\")","v":""},{"$f":"IFERROR(INDEX($EG9:$IV9,MATCH(0,COUNTIF($DR9:DX9,$EG9:$IV9),0)),\"\")","v":""},{"$f":"IFERROR(INDEX($EG9:$IV9,MATCH(0,COUNTIF($DR9:DY9,$EG9:$IV9),0)),\"\")","v":""},{"$f":"IFERROR(INDEX($EG9:$IV9,MATCH(0,COUNTIF($DR9:DZ9,$EG9:$IV9),0)),\"\")","v":""},{"$f":"IFERROR(INDEX($EG9:$IV9,MATCH(0,COUNTIF($DR9:EA9,$EG9:$IV9),0)),\"\")","v":""},{"$f":"IFERROR(INDEX($EG9:$IV9,MATCH(0,COUNTIF($DR9:EB9,$EG9:$IV9),0)),\"\")","v":""},{"$f":"IFERROR(INDEX($EG9:$IV9,MATCH(0,COUNTIF($DR9:EC9,$EG9:$IV9),0)),\"\")","v":""},null,null,"{Cost}","{Measure:Quantity}","","","","","","","","","{Cost}","{Cost}","{Measure:Quantity}","","","","","","","","{Cost}","{Cost}","","","","","","","","","{Primary heating type}","{Primary heating type}","","","","","","","","","{Primary heating type}","{Primary heating type}","","","","","","","","","{Primary heating type}","{Primary heating type}","","","","","","","","","{Primary heating type}","{Primary heating type}","","","","","","","","","{Primary heating type}","{Primary heating type}","","","","","","","","","{Primary heating type}","{Primary heating type}","","","","","","","","","{Primary heating type}","{Primary heating type}","","","","","","","","","{Primary heating type}","{Primary heating type}","","","","","","","","","{Primary heating type}","{Primary heating type}","","","","","","","","","","",null,3]
["Affordable Heat Initiative - Natural Gas","Attic Insulation LIHESP","LBA","2021-07-01","2022-06-30","Calculated","{Cost}*{Measure:Quantity}",0,"Calculated","if({Cost}*0.80>2000,2000,Round({Cost}*0.80,2))*{Measure:Quantity}",0,"2020-07-01","2022-06-30","Calculated","if({Primary heating type}=6,3101,if({Primary heating type}=0,117,20))",null,null,"if({Primary heating type}=6,0.053,if({Primary heating type}=0,0.053,0.053))",null,null,"if({Primary heating type}=6,0.678,if({Primary heating type}=0,0.026,0))","if({Primary heating type}=6,0.053,if({Primary heating type}=0,0.053,0.053))","if({Primary heating type}=1,12.663,if({Primary heating type}=0,1.140,0))*10","if({Primary heating type}=2,12.663,if({Primary heating type}=0,1.659,0))","if({Primary heating type}=3,12.663,if({Primary heating type} = 0,8.661,0))","if({Primary heating type}=4,12.663,if({Primary heating type} = 0,0.177,0))","if({Primary heating type}=5,12.663,if({Primary heating type} = 0,0.545,0))",0,"2019-07-01","2022-06-30",25,1,1,0,0,0.66600000000000004,0.30099999999999999,1,1,1,0,0,null,"{Cost}",1962,"{Measure:Quantity}",1,"{Primary heating type}",1,"",null,"",null,"",null,"",null,"",null,"",null,"",null,{"$f":"IF(AW10=6,3101,IF(AW10=0,117,IF(AW10=1,33,20)))","v":33},0,0,{"$f":"IF(AW10=6,0.053,IF(AW10=0,0.053,0.053))","v":5.2999999999999999E-2},0,0,{"$f":"IF(AW10=6,0.678,IF(AW10=0,0.026,0))","v":0},{"$f":"IF(AW10=6,0.053,IF(AW10=1,0.086,0.053))","v":8.5999999999999993E-2},{"$f":"IF(AW10=1,20.634,IF(AW10=0,1.14,0))*10","v":206.34},{"$f":"IF(AW10=2,12.663,IF(AW10=0,1.659,0))","v":0},{"$f":"IF(AW10=3,12.663,IF(AW10 = 0,8.661,0))","v":0},{"$f":"IF(AW10=4,12.663,IF(AW10 = 0,0.177,0))","v":0},{"$f":"IF(AW10=5,12.663,IF(AW10 = 0,0.545,0))","v":0},{"$f":"0","v":0},null,"Res","RGGI DR",{"$f":"Benefits(BL10,BR10,BS10,BT10,BU10,BV10,BW10,BX10,BY10,BZ10,AE10,AH10,AI10,AJ10,AK10,AL10,AM10,AN10,AO10,AP10,CA10,CB10)","v":53.793847789332133},239.04107955126278,5521.4977860872905,0,0,0,0,0,0,{"$f":"SUMPRODUCT(CC10:CK10,--(CC10:CK10>0))","v":5814.3327134278852},{"$f":"-SUMPRODUCT(CC10:CK10,--(CC10:CK10<0))","v":0},null,{"$f":"AS10*AU10","v":1962},null,null,{"$f":"CM10+CO10","v":1962},{"$f":"IF(NetOrGross=\"Net\",(1-AO10+AP10),1)","v":1},{"$f":"(SUMPRODUCT(CC10:CJ10,--(CC10:CJ10>0))+CN10)*CS10/((-SUMPRODUCT(CC10:CJ10,--(CC10:CJ10<0))+MAX(CO10,CV10)+CP10+CQ10)*CS10+IF(FRIncentives=\"Yes\",CV10*(1-CS10),0))","v":2.9634723310029996},1,{"$f":"IF(AS10*0.8>2000,2000,ROUND(AS10*0.8,2))*AU10","v":1569.6},null,"RGGI","y",null,{"$f":"IF(F10=\"Manual Entry\",\"Manual\",IF(G10=\"\",0,\"X=\"&SUBSTITUTE(SUBSTITUTE(SUBSTITUTE(SUBSTITUTE(SUBSTITUTE(SUBSTITUTE(SUBSTITUTE(SUBSTITUTE(SUBSTITUTE(SUBSTITUTE(SUBSTITUTE(SUBSTITUTE(G10,$ED10,$ED$2&ROW($ED10)),$EC10,$EC$2&ROW($EC10)),$EB10,$EB$2&ROW($EB10)),$EA10,$EA$2&ROW($EA10)),$DZ10,$DZ$2&ROW($DZ10)),$DY10,$DY$2&ROW($DY10)),$DX10,$DX$2&ROW($DX10)),$DW10,$DW$2&ROW($DW10)),$DV10,$DV$2&ROW($DV10)),$DU10,$DU$2&ROW($DU10)),$DT10,$DT$2&ROW($DT10)),$DS10,$DS$2&ROW($DS10))))","v":"X=AS10*AU10"},{"$f":"IF(I10=\"Manual Entry\",\"Manual\",IF(J10=\"\",0,\"X=\"&SUBSTITUTE(SUBSTITUTE(SUBSTITUTE(SUBSTITUTE(SUBSTITUTE(SUBSTITUTE(SUBSTITUTE(SUBSTITUTE(SUBSTITUTE(SUBSTITUTE(SUBSTITUTE(SUBSTITUTE(J10,$ED10,$ED$2&ROW($ED10)),$EC10,$EC$2&ROW($EC10)),$EB10,$EB$2&ROW($EB10)),$EA10,$EA$2&ROW($EA10)),$DZ10,$DZ$2&ROW($DZ10)),$DY10,$DY$2&ROW($DY10)),$DX10,$DX$2&ROW($DX10)),$DW10,$DW$2&ROW($DW10)),$DV10,$DV$2&ROW($DV10)),$DU10,$DU$2&ROW($DU10)),$DT10,$DT$2&ROW($DT10)),$DS10,$DS$2&ROW($DS10))))","v":"X=if(AS10*0.80>2000,2000,Round(AS10*0.80,2))*AU10"},{"$f":"IF(O10=\"\",0,\"X=\"&SUBSTITUTE(SUBSTITUTE(SUBSTITUTE(SUBSTITUTE(SUBSTITUTE(SUBSTITUTE(SUBSTITUTE(SUBSTITUTE(SUBSTITUTE(SUBSTITUTE(SUBSTITUTE(SUBSTITUTE(O10,$ED10,$ED$2&ROW($ED10)),$EC10,$EC$2&ROW($EC10)),$EB10,$EB$2&ROW($EB10)),$EA10,$EA$2&ROW($EA10)),$DZ10,$DZ$2&ROW($DZ10)),$DY10,$DY$2&ROW($DY10)),$DX10,$DX$2&ROW($DX10)),$DW10,$DW$2&ROW($DW10)),$DV10,$DV$2&ROW($DV10)),$DU10,$DU$2&ROW($DU10)),$DT10,$DT$2&ROW($DT10)),$DS10,$DS$2&ROW($DS10)))","v":"X=if(AW10=6,3101,if(AW10=0,117,20))"},{"$f":"IF(P10=\"\",0,\"X=\"&SUBSTITUTE(SUBSTITUTE(SUBSTITUTE(SUBSTITUTE(SUBSTITUTE(SUBSTITUTE(SUBSTITUTE(SUBSTITUTE(SUBSTITUTE(SUBSTITUTE(SUBSTITUTE(SUBSTITUTE(P10,$ED10,$ED$2&ROW($ED10)),$EC10,$EC$2&ROW($EC10)),$EB10,$EB$2&ROW($EB10)),$EA10,$EA$2&ROW($EA10)),$DZ10,$DZ$2&ROW($DZ10)),$DY10,$DY$2&ROW($DY10)),$DX10,$DX$2&ROW($DX10)),$DW10,$DW$2&ROW($DW10)),$DV10,$DV$2&ROW($DV10)),$DU10,$DU$2&ROW($DU10)),$DT10,$DT$2&ROW($DT10)),$DS10,$DS$2&ROW($DS10)))","v":0},{"$f":"IF(Q10=\"\",0,\"X=\"&SUBSTITUTE(SUBSTITUTE(SUBSTITUTE(SUBSTITUTE(SUBSTITUTE(SUBSTITUTE(SUBSTITUTE(SUBSTITUTE(SUBSTITUTE(SUBSTITUTE(SUBSTITUTE(SUBSTITUTE(Q10,$ED10,$ED$2&ROW($ED10)),$EC10,$EC$2&ROW($EC10)),$EB10,$EB$2&ROW($EB10)),$EA10,$EA$2&ROW($EA10)),$DZ10,$DZ$2&ROW($DZ10)),$DY10,$DY$2&ROW($DY10)),$DX10,$DX$2&ROW($DX10)),$DW10,$DW$2&ROW($DW10)),$DV10,$DV$2&ROW($DV10)),$DU10,$DU$2&ROW($DU10)),$DT10,$DT$2&ROW($DT10)),$DS10,$DS$2&ROW($DS10)))","v":0},{"$f":"IF(R10=\"\",0,\"X=\"&SUBSTITUTE(SUBSTITUTE(SUBSTITUTE(SUBSTITUTE(SUBSTITUTE(SUBSTITUTE(SUBSTITUTE(SUBSTITUTE(SUBSTITUTE(SUBSTITUTE(SUBSTITUTE(SUBSTITUTE(R10,$ED10,$ED$2&ROW($ED10)),$EC10,$EC$2&ROW($EC10)),$EB10,$EB$2&ROW($EB10)),$EA10,$EA$2&ROW($EA10)),$DZ10,$DZ$2&ROW($DZ10)),$DY10,$DY$2&ROW($DY10)),$DX10,$DX$2&ROW($DX10)),$DW10,$DW$2&ROW($DW10)),$DV10,$DV$2&ROW($DV10)),$DU10,$DU$2&ROW($DU10)),$DT10,$DT$2&ROW($DT10)),$DS10,$DS$2&ROW($DS10)))","v":"X=if(AW10=6,0.053,if(AW10=0,0.053,0.053))"},{"$f":"IF(S10=\"\",0,\"X=\"&SUBSTITUTE(SUBSTITUTE(SUBSTITUTE(SUBSTITUTE(SUBSTITUTE(SUBSTITUTE(SUBSTITUTE(SUBSTITUTE(SUBSTITUTE(SUBSTITUTE(SUBSTITUTE(SUBSTITUTE(S10,$ED10,$ED$2&ROW($ED10)),$EC10,$EC$2&ROW($EC10)),$EB10,$EB$2&ROW($EB10)),$EA10,$EA$2&ROW($EA10)),$DZ10,$DZ$2&ROW($DZ10)),$DY10,$DY$2&ROW($DY10)),$DX10,$DX$2&ROW($DX10)),$DW10,$DW$2&ROW($DW10)),$DV10,$DV$2&ROW($DV10)),$DU10,$DU$2&ROW($DU10)),$DT10,$DT$2&ROW($DT10)),$DS10,$DS$2&ROW($DS10)))","v":0},{"$f":"IF(T10=\"\",0,\"X=\"&SUBSTITUTE(SUBSTITUTE(SUBSTITUTE(SUBSTITUTE(SUBSTITUTE(SUBSTITUTE(SUBSTITUTE(SUBSTITUTE(SUBSTITUTE(SUBSTITUTE(SUBSTITUTE(SUBSTITUTE(T10,$ED10,$ED$2&ROW($ED10)),$EC10,$EC$2&ROW($EC10)),$EB10,$EB$2&ROW($EB10)),$EA10,$EA$2&ROW($EA10)),$DZ10,$DZ$2&ROW($DZ10)),$DY10,$DY$2&ROW($DY10)),$DX10,$DX$2&ROW($DX10)),$DW10,$DW$2&ROW($DW10)),$DV10,$DV$2&ROW($DV10)),$DU10,$DU$2&ROW($DU10)),$DT10,$DT$2&ROW($DT10)),$DS10,$DS$2&ROW($DS10)))","v":0},{"$f":"IF(U10=\"\",0,\"X=\"&SUBSTITUTE(SUBSTITUTE(SUBSTITUTE(SUBSTITUTE(SUBSTITUTE(SUBSTITUTE(SUBSTITUTE(SUBSTITUTE(SUBSTITUTE(SUBSTITUTE(SUBSTITUTE(SUBSTITUTE(U10,$ED10,$ED$2&ROW($ED10)),$EC10,$EC$2&ROW($EC10)),$EB10,$EB$2&ROW($EB10)),$EA10,$EA$2&ROW($EA10)),$DZ10,$DZ$2&ROW($DZ10)),$DY10,$DY$2&ROW($DY10)),$DX10,$DX$2&ROW($DX10)),$DW10,$DW$2&ROW($DW10)),$DV10,$DV$2&ROW($DV10)),$DU10,$DU$2&ROW($DU10)),$DT10,$DT$2&ROW($DT10)),$DS10,$DS$2&ROW($DS10)))","v":"X=if(AW10=6,0.678,if(AW10=0,0.026,0))"},{"$f":"IF(V10=\"\",0,\"X=\"&SUBSTITUTE(SUBSTITUTE(SUBSTITUTE(SUBSTITUTE(SUBSTITUTE(SUBSTITUTE(SUBSTITUTE(SUBSTITUTE(SUBSTITUTE(SUBSTITUTE(SUBSTITUTE(SUBSTITUTE(V10,$ED10,$ED$2&ROW($ED10)),$EC10,$EC$2&ROW($EC10)),$EB10,$EB$2&ROW($EB10)),$EA10,$EA$2&ROW($EA10)),$DZ10,$DZ$2&ROW($DZ10)),$DY10,$DY$2&ROW($DY10)),$DX10,$DX$2&ROW($DX10)),$DW10,$DW$2&ROW($DW10)),$DV10,$DV$2&ROW($DV10)),$DU10,$DU$2&ROW($DU10)),$DT10,$DT$2&ROW($DT10)),$DS10,$DS$2&ROW($DS10)))","v":"X=if(AW10=6,0.053,if(AW10=0,0.053,0.053))"},{"$f":"IF(W10=\"\",0,\"X=\"&SUBSTITUTE(SUBSTITUTE(SUBSTITUTE(SUBSTITUTE(SUBSTITUTE(SUBSTITUTE(SUBSTITUTE(SUBSTITUTE(SUBSTITUTE(SUBSTITUTE(SUBSTITUTE(SUBSTITUTE(W10,$ED10,$ED$2&ROW($ED10)),$EC10,$EC$2&ROW($EC10)),$EB10,$EB$2&ROW($EB10)),$EA10,$EA$2&ROW($EA10)),$DZ10,$DZ$2&ROW($DZ10)),$DY10,$DY$2&ROW($DY10)),$DX10,$DX$2&ROW($DX10)),$DW10,$DW$2&ROW($DW10)),$DV10,$DV$2&ROW($DV10)),$DU10,$DU$2&ROW($DU10)),$DT10,$DT$2&ROW($DT10)),$DS10,$DS$2&ROW($DS10)))","v":"X=if(AW10=1,12.663,if(AW10=0,1.140,0))*10"},{"$f":"IF(X10=\"\",0,\"X=\"&SUBSTITUTE(SUBSTITUTE(SUBSTITUTE(SUBSTITUTE(SUBSTITUTE(SUBSTITUTE(SUBSTITUTE(SUBSTITUTE(SUBSTITUTE(SUBSTITUTE(SUBSTITUTE(SUBSTITUTE(X10,$ED10,$ED$2&ROW($ED10)),$EC10,$EC$2&ROW($EC10)),$EB10,$EB$2&ROW($EB10)),$EA10,$EA$2&ROW($EA10)),$DZ10,$DZ$2&ROW($DZ10)),$DY10,$DY$2&ROW($DY10)),$DX10,$DX$2&ROW($DX10)),$DW10,$DW$2&ROW($DW10)),$DV10,$DV$2&ROW($DV10)),$DU10,$DU$2&ROW($DU10)),$DT10,$DT$2&ROW($DT10)),$DS10,$DS$2&ROW($DS10)))","v":"X=if(AW10=2,12.663,if(AW10=0,1.659,0))"},{"$f":"IF(Y10=\"\",0,\"X=\"&SUBSTITUTE(SUBSTITUTE(SUBSTITUTE(SUBSTITUTE(SUBSTITUTE(SUBSTITUTE(SUBSTITUTE(SUBSTITUTE(SUBSTITUTE(SUBSTITUTE(SUBSTITUTE(SUBSTITUTE(Y10,$ED10,$ED$2&ROW($ED10)),$EC10,$EC$2&ROW($EC10)),$EB10,$EB$2&ROW($EB10)),$EA10,$EA$2&ROW($EA10)),$DZ10,$DZ$2&ROW($DZ10)),$DY10,$DY$2&ROW($DY10)),$DX10,$DX$2&ROW($DX10)),$DW10,$DW$2&ROW($DW10)),$DV10,$DV$2&ROW($DV10)),$DU10,$DU$2&ROW($DU10)),$DT10,$DT$2&ROW($DT10)),$DS10,$DS$2&ROW($DS10)))","v":"X=if(AW10=3,12.663,if(AW10 = 0,8.661,0))"},{"$f":"IF(Z10=\"\",0,\"X=\"&SUBSTITUTE(SUBSTITUTE(SUBSTITUTE(SUBSTITUTE(SUBSTITUTE(SUBSTITUTE(SUBSTITUTE(SUBSTITUTE(SUBSTITUTE(SUBSTITUTE(SUBSTITUTE(SUBSTITUTE(Z10,$ED10,$ED$2&ROW($ED10)),$EC10,$EC$2&ROW($EC10)),$EB10,$EB$2&ROW($EB10)),$EA10,$EA$2&ROW($EA10)),$DZ10,$DZ$2&ROW($DZ10)),$DY10,$DY$2&ROW($DY10)),$DX10,$DX$2&ROW($DX10)),$DW10,$DW$2&ROW($DW10)),$DV10,$DV$2&ROW($DV10)),$DU10,$DU$2&ROW($DU10)),$DT10,$DT$2&ROW($DT10)),$DS10,$DS$2&ROW($DS10)))","v":"X=if(AW10=4,12.663,if(AW10 = 0,0.177,0))"},{"$f":"IF(AA10=\"\",0,\"X=\"&SUBSTITUTE(SUBSTITUTE(SUBSTITUTE(SUBSTITUTE(SUBSTITUTE(SUBSTITUTE(SUBSTITUTE(SUBSTITUTE(SUBSTITUTE(SUBSTITUTE(SUBSTITUTE(SUBSTITUTE(AA10,$ED10,$ED$2&ROW($ED10)),$EC10,$EC$2&ROW($EC10)),$EB10,$EB$2&ROW($EB10)),$EA10,$EA$2&ROW($EA10)),$DZ10,$DZ$2&ROW($DZ10)),$DY10,$DY$2&ROW($DY10)),$DX10,$DX$2&ROW($DX10)),$DW10,$DW$2&ROW($DW10)),$DV10,$DV$2&ROW($DV10)),$DU10,$DU$2&ROW($DU10)),$DT10,$DT$2&ROW($DT10)),$DS10,$DS$2&ROW($DS10)))","v":"X=if(AW10=5,12.663,if(AW10 = 0,0.545,0))"},{"$f":"IF(AB10=\"\",0,\"X=\"&SUBSTITUTE(SUBSTITUTE(SUBSTITUTE(SUBSTITUTE(SUBSTITUTE(SUBSTITUTE(SUBSTITUTE(SUBSTITUTE(SUBSTITUTE(SUBSTITUTE(SUBSTITUTE(SUBSTITUTE(AB10,$ED10,$ED$2&ROW($ED10)),$EC10,$EC$2&ROW($EC10)),$EB10,$EB$2&ROW($EB10)),$EA10,$EA$2&ROW($EA10)),$DZ10,$DZ$2&ROW($DZ10)),$DY10,$DY$2&ROW($DY10)),$DX10,$DX$2&ROW($DX10)),$DW10,$DW$2&ROW($DW10)),$DV10,$DV$2&ROW($DV10)),$DU10,$DU$2&ROW($DU10)),$DT10,$DT$2&ROW($DT10)),$DS10,$DS$2&ROW($DS10)))","v":"X=0"},null,null,"{Factor:WinterCF}","{Factor:SummerCF}",{"$f":"IFERROR(INDEX($EG10:$IV10,MATCH(0,COUNTIF($DR10:DT10,$EG10:$IV10),0)),\"\")","v":"{Cost}"},{"$f":"IFERROR(INDEX($EG10:$IV10,MATCH(0,COUNTIF($DR10:DU10,$EG10:$IV10),0)),\"\")","v":"{Measure:Quantity}"},{"$f":"IFERROR(INDEX($EG10:$IV10,MATCH(0,COUNTIF($DR10:DV10,$EG10:$IV10),0)),\"\")","v":"{Primary heating type}"},{"$f":"IFERROR(INDEX($EG10:$IV10,MATCH(0,COUNTIF($DR10:DW10,$EG10:$IV10),0)),\"\")","v":""},{"$f":"IFERROR(INDEX($EG10:$IV10,MATCH(0,COUNTIF($DR10:DX10,$EG10:$IV10),0)),\"\")","v":""},{"$f":"IFERROR(INDEX($EG10:$IV10,MATCH(0,COUNTIF($DR10:DY10,$EG10:$IV10),0)),\"\")","v":""},{"$f":"IFERROR(INDEX($EG10:$IV10,MATCH(0,COUNTIF($DR10:DZ10,$EG10:$IV10),0)),\"\")","v":""},{"$f":"IFERROR(INDEX($EG10:$IV10,MATCH(0,COUNTIF($DR10:EA10,$EG10:$IV10),0)),\"\")","v":""},{"$f":"IFERROR(INDEX($EG10:$IV10,MATCH(0,COUNTIF($DR10:EB10,$EG10:$IV10),0)),\"\")","v":""},{"$f":"IFERROR(INDEX($EG10:$IV10,MATCH(0,COUNTIF($DR10:EC10,$EG10:$IV10),0)),\"\")","v":""},null,null,"{Cost}","{Measure:Quantity}","","","","","","","","","{Cost}","{Cost}","{Measure:Quantity}","","","","","","","","{Cost}","{Cost}","","","","","","","","","{Primary heating type}","{Primary heating type}","","","","","","","","","{Primary heating type}","{Primary heating type}","","","","","","","","","{Primary heating type}","{Primary heating type}","","","","","","","","","{Primary heating type}","{Primary heating type}","","","","","","","","","{Primary heating type}","{Primary heating type}","","","","","","","","","{Primary heating type}","{Primary heating type}","","","","","","","","","{Primary heating type}","{Primary heating type}","","","","","","","","","{Primary heating type}","{Primary heating type}","","","","","","","","","{Primary heating type}","{Primary heating type}","","","","","","","","","","",null,3]
["Affordable Heat Initiative - NECEC Funds","MiniSplit HP Property Assessed","LCHA","2021-07-01","2022-06-30","Calculated","{Cost}*{Measure:Quantity}",0,"Calculated","if({Primary heating type}=2,2000,0)*{Measure:Quantity}",2000,"2020-07-01","2022-06-30","Calculated","if({Primary heating type}=6,5379,if({Primary heating type}=0,-2581.54,-2744))",null,null,null,null,null,"if({Primary heating type}=6,1.046,if({Primary heating type}=0,-0.562,-0.595))",3.1E-2,"10*if({Primary heating type}=1,1,if({Primary heating type}=0,0,0))*31.72","if({Primary heating type}=2,1,if({Primary heating type}=0,0.06,0))*31.72","if({Primary heating type}=3,1,if({Primary heating type}=0,0.79,0))*31.72","if({Primary heating type}=4,1,if({Primary heating type}=0,0.06,0))*31.72","if({Primary heating type}=5,1,if({Primary heating type}=0,0.07,0))*31.72",0,"2019-07-01","2022-06-30",18,1,1,0.373,0.52800000000000002,5.2999999999999999E-2,4.5999999999999999E-2,1,1,1,0,0,null,{"$f":"DU11","v":"{Cost}"},2500,{"$f":"DV11","v":"{Measure:Quantity}"},1,{"$f":"DW11","v":"{Primary heating type}"},2,{"$f":"DX11","v":""},null,{"$f":"DY11","v":""},null,{"$f":"DZ11","v":""},null,{"$f":"EA11","v":""},null,{"$f":"EB11","v":""},null,{"$f":"EC11","v":""},null,{"$f":"ED11","v":""},null,{"$f":"IF(AW11=6,5379,IF(AW11=0,-2581.54,-2744))","v":-2744},0,0,0,0,0,{"$f":"IF(AW11=6,1.046,IF(AW11=0,-0.562,-0.595))","v":-0.59499999999999997},{"$f":"0.031","v":3.1E-2},{"$f":"10*IF(AW11=1,1,IF(AW11=0,0,0))*31.72","v":0},{"$f":"IF(AW11=2,1,IF(AW11=0,0.06,0))*31.72","v":31.72},{"$f":"IF(AW11=3,1,IF(AW11=0,0.79,0))*31.72","v":0},{"$f":"IF(AW11=4,1,IF(AW11=0,0.06,0))*31.72","v":0},{"$f":"IF(AW11=5,1,IF(AW11=0,0.07,0))*31.72","v":0},{"$f":"0","v":0},null,"Res","Default DR",{"$f":"Benefits(BL11,BR11,BS11,BT11,BU11,BV11,BW11,BX11,BY11,BZ11,AE11,AH11,AI11,AJ11,AK11,AL11,AM11,AN11,AO11,AP11,CA11,CB11)","v":-4315.624556918573},-2522.0351382582817,0,0,0,21494.27313154536,0,0,0,{"$f":"SUMPRODUCT(CC11:CK11,--(CC11:CK11>0))","v":21494.27313154536},{"$f":"-SUMPRODUCT(CC11:CK11,--(CC11:CK11<0))","v":6837.6596951768552},null,{"$f":"AS11*AU11","v":2500},null,null,{"$f":"CM11+CO11","v":9337.6596951768552},{"$f":"IF(NetOrGross=\"Net\",(1-AO11+AP11),1)","v":1},{"$f":"(SUMPRODUCT(CC11:CJ11,--(CC11:CJ11>0))+CN11)*CS11/((-SUMPRODUCT(CC11:CJ11,--(CC11:CJ11<0))+MAX(CO11,CV11)+CP11+CQ11)*CS11+IF(FRIncentives=\"Yes\",CV11*(1-CS11),0))","v":2.3018908198858128},1,{"$f":"IF(AW11=2,2000,0)*AU11","v":2000},null,"RGGI","y",1,{"$f":"IF(F11=\"Manual Entry\",\"Manual\",IF(G11=\"\",0,\"X=\"&SUBSTITUTE(SUBSTITUTE(SUBSTITUTE(SUBSTITUTE(SUBSTITUTE(SUBSTITUTE(SUBSTITUTE(SUBSTITUTE(SUBSTITUTE(SUBSTITUTE(SUBSTITUTE(SUBSTITUTE(G11,$ED11,$ED$2&ROW($ED11)),$EC11,$EC$2&ROW($EC11)),$EB11,$EB$2&ROW($EB11)),$EA11,$EA$2&ROW($EA11)),$DZ11,$DZ$2&ROW($DZ11)),$DY11,$DY$2&ROW($DY11)),$DX11,$DX$2&ROW($DX11)),$DW11,$DW$2&ROW($DW11)),$DV11,$DV$2&ROW($DV11)),$DU11,$DU$2&ROW($DU11)),$DT11,$DT$2&ROW($DT11)),$DS11,$DS$2&ROW($DS11))))","v":"X=AS11*AU11"},{"$f":"IF(I11=\"Manual Entry\",\"Manual\",IF(J11=\"\",0,\"X=\"&SUBSTITUTE(SUBSTITUTE(SUBSTITUTE(SUBSTITUTE(SUBSTITUTE(SUBSTITUTE(SUBSTITUTE(SUBSTITUTE(SUBSTITUTE(SUBSTITUTE(SUBSTITUTE(SUBSTITUTE(J11,$ED11,$ED$2&ROW($ED11)),$EC11,$EC$2&ROW($EC11)),$EB11,$EB$2&ROW($EB11)),$EA11,$EA$2&ROW($EA11)),$DZ11,$DZ$2&ROW($DZ11)),$DY11,$DY$2&ROW($DY11)),$DX11,$DX$2&ROW($DX11)),$DW11,$DW$2&ROW($DW11)),$DV11,$DV$2&ROW($DV11)),$DU11,$DU$2&ROW($DU11)),$DT11,$DT$2&ROW($DT11)),$DS11,$DS$2&ROW($DS11))))","v":"X=if(AW11=2,2000,0)*AU11"},{"$f":"IF(O11=\"\",0,\"X=\"&SUBSTITUTE(SUBSTITUTE(SUBSTITUTE(SUBSTITUTE(SUBSTITUTE(SUBSTITUTE(SUBSTITUTE(SUBSTITUTE(SUBSTITUTE(SUBSTITUTE(SUBSTITUTE(SUBSTITUTE(O11,$ED11,$ED$2&ROW($ED11)),$EC11,$EC$2&ROW($EC11)),$EB11,$EB$2&ROW($EB11)),$EA11,$EA$2&ROW($EA11)),$DZ11,$DZ$2&ROW($DZ11)),$DY11,$DY$2&ROW($DY11)),$DX11,$DX$2&ROW($DX11)),$DW11,$DW$2&ROW($DW11)),$DV11,$DV$2&ROW($DV11)),$DU11,$DU$2&ROW($DU11)),$DT11,$DT$2&ROW($DT11)),$DS11,$DS$2&ROW($DS11)))","v":"X=if(AW11=6,5379,if(AW11=0,-2581.54,-2744))"},{"$f":"IF(P11=\"\",0,\"X=\"&SUBSTITUTE(SUBSTITUTE(SUBSTITUTE(SUBSTITUTE(SUBSTITUTE(SUBSTITUTE(SUBSTITUTE(SUBSTITUTE(SUBSTITUTE(SUBSTITUTE(SUBSTITUTE(SUBSTITUTE(P11,$ED11,$ED$2&ROW($ED11)),$EC11,$EC$2&ROW($EC11)),$EB11,$EB$2&ROW($EB11)),$EA11,$EA$2&ROW($EA11)),$DZ11,$DZ$2&ROW($DZ11)),$DY11,$DY$2&ROW($DY11)),$DX11,$DX$2&ROW($DX11)),$DW11,$DW$2&ROW($DW11)),$DV11,$DV$2&ROW($DV11)),$DU11,$DU$2&ROW($DU11)),$DT11,$DT$2&ROW($DT11)),$DS11,$DS$2&ROW($DS11)))","v":0},{"$f":"IF(Q11=\"\",0,\"X=\"&SUBSTITUTE(SUBSTITUTE(SUBSTITUTE(SUBSTITUTE(SUBSTITUTE(SUBSTITUTE(SUBSTITUTE(SUBSTITUTE(SUBSTITUTE(SUBSTITUTE(SUBSTITUTE(SUBSTITUTE(Q11,$ED11,$ED$2&ROW($ED11)),$EC11,$EC$2&ROW($EC11)),$EB11,$EB$2&ROW($EB11)),$EA11,$EA$2&ROW($EA11)),$DZ11,$DZ$2&ROW($DZ11)),$DY11,$DY$2&ROW($DY11)),$DX11,$DX$2&ROW($DX11)),$DW11,$DW$2&ROW($DW11)),$DV11,$DV$2&ROW($DV11)),$DU11,$DU$2&ROW($DU11)),$DT11,$DT$2&ROW($DT11)),$DS11,$DS$2&ROW($DS11)))","v":0},{"$f":"IF(R11=\"\",0,\"X=\"&SUBSTITUTE(SUBSTITUTE(SUBSTITUTE(SUBSTITUTE(SUBSTITUTE(SUBSTITUTE(SUBSTITUTE(SUBSTITUTE(SUBSTITUTE(SUBSTITUTE(SUBSTITUTE(SUBSTITUTE(R11,$ED11,$ED$2&ROW($ED11)),$EC11,$EC$2&ROW($EC11)),$EB11,$EB$2&ROW($EB11)),$EA11,$EA$2&ROW($EA11)),$DZ11,$DZ$2&ROW($DZ11)),$DY11,$DY$2&ROW($DY11)),$DX11,$DX$2&ROW($DX11)),$DW11,$DW$2&ROW($DW11)),$DV11,$DV$2&ROW($DV11)),$DU11,$DU$2&ROW($DU11)),$DT11,$DT$2&ROW($DT11)),$DS11,$DS$2&ROW($DS11)))","v":0},{"$f":"IF(S11=\"\",0,\"X=\"&SUBSTITUTE(SUBSTITUTE(SUBSTITUTE(SUBSTITUTE(SUBSTITUTE(SUBSTITUTE(SUBSTITUTE(SUBSTITUTE(SUBSTITUTE(SUBSTITUTE(SUBSTITUTE(SUBSTITUTE(S11,$ED11,$ED$2&ROW($ED11)),$EC11,$EC$2&ROW($EC11)),$EB11,$EB$2&ROW($EB11)),$EA11,$EA$2&ROW($EA11)),$DZ11,$DZ$2&ROW($DZ11)),$DY11,$DY$2&ROW($DY11)),$DX11,$DX$2&ROW($DX11)),$DW11,$DW$2&ROW($DW11)),$DV11,$DV$2&ROW($DV11)),$DU11,$DU$2&ROW($DU11)),$DT11,$DT$2&ROW($DT11)),$DS11,$DS$2&ROW($DS11)))","v":0},{"$f":"IF(T11=\"\",0,\"X=\"&SUBSTITUTE(SUBSTITUTE(SUBSTITUTE(SUBSTITUTE(SUBSTITUTE(SUBSTITUTE(SUBSTITUTE(SUBSTITUTE(SUBSTITUTE(SUBSTITUTE(SUBSTITUTE(SUBSTITUTE(T11,$ED11,$ED$2&ROW($ED11)),$EC11,$EC$2&ROW($EC11)),$EB11,$EB$2&ROW($EB11)),$EA11,$EA$2&ROW($EA11)),$DZ11,$DZ$2&ROW($DZ11)),$DY11,$DY$2&ROW($DY11)),$DX11,$DX$2&ROW($DX11)),$DW11,$DW$2&ROW($DW11)),$DV11,$DV$2&ROW($DV11)),$DU11,$DU$2&ROW($DU11)),$DT11,$DT$2&ROW($DT11)),$DS11,$DS$2&ROW($DS11)))","v":0},{"$f":"IF(U11=\"\",0,\"X=\"&SUBSTITUTE(SUBSTITUTE(SUBSTITUTE(SUBSTITUTE(SUBSTITUTE(SUBSTITUTE(SUBSTITUTE(SUBSTITUTE(SUBSTITUTE(SUBSTITUTE(SUBSTITUTE(SUBSTITUTE(U11,$ED11,$ED$2&ROW($ED11)),$EC11,$EC$2&ROW($EC11)),$EB11,$EB$2&ROW($EB11)),$EA11,$EA$2&ROW($EA11)),$DZ11,$DZ$2&ROW($DZ11)),$DY11,$DY$2&ROW($DY11)),$DX11,$DX$2&ROW($DX11)),$DW11,$DW$2&ROW($DW11)),$DV11,$DV$2&ROW($DV11)),$DU11,$DU$2&ROW($DU11)),$DT11,$DT$2&ROW($DT11)),$DS11,$DS$2&ROW($DS11)))","v":"X=if(AW11=6,1.046,if(AW11=0,-0.562,-0.595))"},{"$f":"IF(V11=\"\",0,\"X=\"&SUBSTITUTE(SUBSTITUTE(SUBSTITUTE(SUBSTITUTE(SUBSTITUTE(SUBSTITUTE(SUBSTITUTE(SUBSTITUTE(SUBSTITUTE(SUBSTITUTE(SUBSTITUTE(SUBSTITUTE(V11,$ED11,$ED$2&ROW($ED11)),$EC11,$EC$2&ROW($EC11)),$EB11,$EB$2&ROW($EB11)),$EA11,$EA$2&ROW($EA11)),$DZ11,$DZ$2&ROW($DZ11)),$DY11,$DY$2&ROW($DY11)),$DX11,$DX$2&ROW($DX11)),$DW11,$DW$2&ROW($DW11)),$DV11,$DV$2&ROW($DV11)),$DU11,$DU$2&ROW($DU11)),$DT11,$DT$2&ROW($DT11)),$DS11,$DS$2&ROW($DS11)))","v":"X=0.031"},{"$f":"IF(W11=\"\",0,\"X=\"&SUBSTITUTE(SUBSTITUTE(SUBSTITUTE(SUBSTITUTE(SUBSTITUTE(SUBSTITUTE(SUBSTITUTE(SUBSTITUTE(SUBSTITUTE(SUBSTITUTE(SUBSTITUTE(SUBSTITUTE(W11,$ED11,$ED$2&ROW($ED11)),$EC11,$EC$2&ROW($EC11)),$EB11,$EB$2&ROW($EB11)),$EA11,$EA$2&ROW($EA11)),$DZ11,$DZ$2&ROW($DZ11)),$DY11,$DY$2&ROW($DY11)),$DX11,$DX$2&ROW($DX11)),$DW11,$DW$2&ROW($DW11)),$DV11,$DV$2&ROW($DV11)),$DU11,$DU$2&ROW($DU11)),$DT11,$DT$2&ROW($DT11)),$DS11,$DS$2&ROW($DS11)))","v":"X=10*if(AW11=1,1,if(AW11=0,0,0))*31.72"},{"$f":"IF(X11=\"\",0,\"X=\"&SUBSTITUTE(SUBSTITUTE(SUBSTITUTE(SUBSTITUTE(SUBSTITUTE(SUBSTITUTE(SUBSTITUTE(SUBSTITUTE(SUBSTITUTE(SUBSTITUTE(SUBSTITUTE(SUBSTITUTE(X11,$ED11,$ED$2&ROW($ED11)),$EC11,$EC$2&ROW($EC11)),$EB11,$EB$2&ROW($EB11)),$EA11,$EA$2&ROW($EA11)),$DZ11,$DZ$2&ROW($DZ11)),$DY11,$DY$2&ROW($DY11)),$DX11,$DX$2&ROW($DX11)),$DW11,$DW$2&ROW($DW11)),$DV11,$DV$2&ROW($DV11)),$DU11,$DU$2&ROW($DU11)),$DT11,$DT$2&ROW($DT11)),$DS11,$DS$2&ROW($DS11)))","v":"X=if(AW11=2,1,if(AW11=0,0.06,0))*31.72"},{"$f":"IF(Y11=\"\",0,\"X=\"&SUBSTITUTE(SUBSTITUTE(SUBSTITUTE(SUBSTITUTE(SUBSTITUTE(SUBSTITUTE(SUBSTITUTE(SUBSTITUTE(SUBSTITUTE(SUBSTITUTE(SUBSTITUTE(SUBSTITUTE(Y11,$ED11,$ED$2&ROW($ED11)),$EC11,$EC$2&ROW($EC11)),$EB11,$EB$2&ROW($EB11)),$EA11,$EA$2&ROW($EA11)),$DZ11,$DZ$2&ROW($DZ11)),$DY11,$DY$2&ROW($DY11)),$DX11,$DX$2&ROW($DX11)),$DW11,$DW$2&ROW($DW11)),$DV11,$DV$2&ROW($DV11)),$DU11,$DU$2&ROW($DU11)),$DT11,$DT$2&ROW($DT11)),$DS11,$DS$2&ROW($DS11)))","v":"X=if(AW11=3,1,if(AW11=0,0.79,0))*31.72"},{"$f":"IF(Z11=\"\",0,\"X=\"&SUBSTITUTE(SUBSTITUTE(SUBSTITUTE(SUBSTITUTE(SUBSTITUTE(SUBSTITUTE(SUBSTITUTE(SUBSTITUTE(SUBSTITUTE(SUBSTITUTE(SUBSTITUTE(SUBSTITUTE(Z11,$ED11,$ED$2&ROW($ED11)),$EC11,$EC$2&ROW($EC11)),$EB11,$EB$2&ROW($EB11)),$EA11,$EA$2&ROW($EA11)),$DZ11,$DZ$2&ROW($DZ11)),$DY11,$DY$2&ROW($DY11)),$DX11,$DX$2&ROW($DX11)),$DW11,$DW$2&ROW($DW11)),$DV11,$DV$2&ROW($DV11)),$DU11,$DU$2&ROW($DU11)),$DT11,$DT$2&ROW($DT11)),$DS11,$DS$2&ROW($DS11)))","v":"X=if(AW11=4,1,if(AW11=0,0.06,0))*31.72"},{"$f":"IF(AA11=\"\",0,\"X=\"&SUBSTITUTE(SUBSTITUTE(SUBSTITUTE(SUBSTITUTE(SUBSTITUTE(SUBSTITUTE(SUBSTITUTE(SUBSTITUTE(SUBSTITUTE(SUBSTITUTE(SUBSTITUTE(SUBSTITUTE(AA11,$ED11,$ED$2&ROW($ED11)),$EC11,$EC$2&ROW($EC11)),$EB11,$EB$2&ROW($EB11)),$EA11,$EA$2&ROW($EA11)),$DZ11,$DZ$2&ROW($DZ11)),$DY11,$DY$2&ROW($DY11)),$DX11,$DX$2&ROW($DX11)),$DW11,$DW$2&ROW($DW11)),$DV11,$DV$2&ROW($DV11)),$DU11,$DU$2&ROW($DU11)),$DT11,$DT$2&ROW($DT11)),$DS11,$DS$2&ROW($DS11)))","v":"X=if(AW11=5,1,if(AW11=0,0.07,0))*31.72"},{"$f":"IF(AB11=\"\",0,\"X=\"&SUBSTITUTE(SUBSTITUTE(SUBSTITUTE(SUBSTITUTE(SUBSTITUTE(SUBSTITUTE(SUBSTITUTE(SUBSTITUTE(SUBSTITUTE(SUBSTITUTE(SUBSTITUTE(SUBSTITUTE(AB11,$ED11,$ED$2&ROW($ED11)),$EC11,$EC$2&ROW($EC11)),$EB11,$EB$2&ROW($EB11)),$EA11,$EA$2&ROW($EA11)),$DZ11,$DZ$2&ROW($DZ11)),$DY11,$DY$2&ROW($DY11)),$DX11,$DX$2&ROW($DX11)),$DW11,$DW$2&ROW($DW11)),$DV11,$DV$2&ROW($DV11)),$DU11,$DU$2&ROW($DU11)),$DT11,$DT$2&ROW($DT11)),$DS11,$DS$2&ROW($DS11)))","v":"X=0"},null,null,"{Factor:WinterCF}","{Factor:SummerCF}",{"$f":"IFERROR(INDEX($EG11:$IV11,MATCH(0,COUNTIF($DR11:DT11,$EG11:$IV11),0)),\"\")","v":"{Cost}"},{"$f":"IFERROR(INDEX($EG11:$IV11,MATCH(0,COUNTIF($DR11:DU11,$EG11:$IV11),0)),\"\")","v":"{Measure:Quantity}"},{"$f":"IFERROR(INDEX($EG11:$IV11,MATCH(0,COUNTIF($DR11:DV11,$EG11:$IV11),0)),\"\")","v":"{Primary heating type}"},{"$f":"IFERROR(INDEX($EG11:$IV11,MATCH(0,COUNTIF($DR11:DW11,$EG11:$IV11),0)),\"\")","v":""},{"$f":"IFERROR(INDEX($EG11:$IV11,MATCH(0,COUNTIF($DR11:DX11,$EG11:$IV11),0)),\"\")","v":""},{"$f":"IFERROR(INDEX($EG11:$IV11,MATCH(0,COUNTIF($DR11:DY11,$EG11:$IV11),0)),\"\")","v":""},{"$f":"IFERROR(INDEX($EG11:$IV11,MATCH(0,COUNTIF($DR11:DZ11,$EG11:$IV11),0)),\"\")","v":""},{"$f":"IFERROR(INDEX($EG11:$IV11,MATCH(0,COUNTIF($DR11:EA11,$EG11:$IV11),0)),\"\")","v":""},{"$f":"IFERROR(INDEX($EG11:$IV11,MATCH(0,COUNTIF($DR11:EB11,$EG11:$IV11),0)),\"\")","v":""},{"$f":"IFERROR(INDEX($EG11:$IV11,MATCH(0,COUNTIF($DR11:EC11,$EG11:$IV11),0)),\"\")","v":""},null,null,{"$f":"IFERROR(MID($G11,FIND(CHAR(160),SUBSTITUTE($G11,\"{\",CHAR(160),EG$1)),FIND(CHAR(160),SUBSTITUTE($G11,\"}\",CHAR(160),EG$1))-FIND(CHAR(160),SUBSTITUTE($G11,\"{\",CHAR(160),EG$1))+1),\"\")","v":"{Cost}"},{"$f":"IFERROR(MID($G11,FIND(CHAR(160),SUBSTITUTE($G11,\"{\",CHAR(160),EH$1)),FIND(CHAR(160),SUBSTITUTE($G11,\"}\",CHAR(160),EH$1))-FIND(CHAR(160),SUBSTITUTE($G11,\"{\",CHAR(160),EH$1))+1),\"\")","v":"{Measure:Quantity}"},{"$f":"IFERROR(MID($G11,FIND(CHAR(160),SUBSTITUTE($G11,\"{\",CHAR(160),EI$1)),FIND(CHAR(160),SUBSTITUTE($G11,\"}\",CHAR(160),EI$1))-FIND(CHAR(160),SUBSTITUTE($G11,\"{\",CHAR(160),EI$1))+1),\"\")","v":""},{"$f":"IFERROR(MID($G11,FIND(CHAR(160),SUBSTITUTE($G11,\"{\",CHAR(160),EJ$1)),FIND(CHAR(160),SUBSTITUTE($G11,\"}\",CHAR(160),EJ$1))-FIND(CHAR(160),SUBSTITUTE($G11,\"{\",CHAR(160),EJ$1))+1),\"\")","v":""},{"$f":"IFERROR(MID($G11,FIND(CHAR(160),SUBSTITUTE($G11,\"{\",CHAR(160),EK$1)),FIND(CHAR(160),SUBSTITUTE($G11,\"}\",CHAR(160),EK$1))-FIND(CHAR(160),SUBSTITUTE($G11,\"{\",CHAR(160),EK$1))+1),\"\")","v":""},{"$f":"IFERROR(MID($G11,FIND(CHAR(160),SUBSTITUTE($G11,\"{\",CHAR(160),EL$1)),FIND(CHAR(160),SUBSTITUTE($G11,\"}\",CHAR(160),EL$1))-FIND(CHAR(160),SUBSTITUTE($G11,\"{\",CHAR(160),EL$1))+1),\"\")","v":""},{"$f":"IFERROR(MID($G11,FIND(CHAR(160),SUBSTITUTE($G11,\"{\",CHAR(160),EM$1)),FIND(CHAR(160),SUBSTITUTE($G11,\"}\",CHAR(160),EM$1))-FIND(CHAR(160),SUBSTITUTE($G11,\"{\",CHAR(160),EM$1))+1),\"\")","v":""},{"$f":"IFERROR(MID($G11,FIND(CHAR(160),SUBSTITUTE($G11,\"{\",CHAR(160),EN$1)),FIND(CHAR(160),SUBSTITUTE($G11,\"}\",CHAR(160),EN$1))-FIND(CHAR(160),SUBSTITUTE($G11,\"{\",CHAR(160),EN$1))+1),\"\")","v":""},{"$f":"IFERROR(MID($G11,FIND(CHAR(160),SUBSTITUTE($G11,\"{\",CHAR(160),EO$1)),FIND(CHAR(160),SUBSTITUTE($G11,\"}\",CHAR(160),EO$1))-FIND(CHAR(160),SUBSTITUTE($G11,\"{\",CHAR(160),EO$1))+1),\"\")","v":""},{"$f":"IFERROR(MID($G11,FIND(CHAR(160),SUBSTITUTE($G11,\"{\",CHAR(160),EP$1)),FIND(CHAR(160),SUBSTITUTE($G11,\"}\",CHAR(160),EP$1))-FIND(CHAR(160),SUBSTITUTE($G11,\"{\",CHAR(160),EP$1))+1),\"\")","v":""},{"$f":"IFERROR(MID($J11,FIND(CHAR(160),SUBSTITUTE($J11,\"{\",CHAR(160),EQ$1)),FIND(CHAR(160),SUBSTITUTE($J11,\"}\",CHAR(160),EQ$1))-FIND(CHAR(160),SUBSTITUTE($J11,\"{\",CHAR(160),EQ$1))+1),\"\")","v":"{Primary heating type}"},{"$f":"IFERROR(MID($J11,FIND(CHAR(160),SUBSTITUTE($J11,\"{\",CHAR(160),ER$1)),FIND(CHAR(160),SUBSTITUTE($J11,\"}\",CHAR(160),ER$1))-FIND(CHAR(160),SUBSTITUTE($J11,\"{\",CHAR(160),ER$1))+1),\"\")","v":"{Measure:Quantity}"},{"$f":"IFERROR(MID($J11,FIND(CHAR(160),SUBSTITUTE($J11,\"{\",CHAR(160),ES$1)),FIND(CHAR(160),SUBSTITUTE($J11,\"}\",CHAR(160),ES$1))-FIND(CHAR(160),SUBSTITUTE($J11,\"{\",CHAR(160),ES$1))+1),\"\")","v":""},{"$f":"IFERROR(MID($J11,FIND(CHAR(160),SUBSTITUTE($J11,\"{\",CHAR(160),ET$1)),FIND(CHAR(160),SUBSTITUTE($J11,\"}\",CHAR(160),ET$1))-FIND(CHAR(160),SUBSTITUTE($J11,\"{\",CHAR(160),ET$1))+1),\"\")","v":""},{"$f":"IFERROR(MID($J11,FIND(CHAR(160),SUBSTITUTE($J11,\"{\",CHAR(160),EU$1)),FIND(CHAR(160),SUBSTITUTE($J11,\"}\",CHAR(160),EU$1))-FIND(CHAR(160),SUBSTITUTE($J11,\"{\",CHAR(160),EU$1))+1),\"\")","v":""},{"$f":"IFERROR(MID($J11,FIND(CHAR(160),SUBSTITUTE($J11,\"{\",CHAR(160),EV$1)),FIND(CHAR(160),SUBSTITUTE($J11,\"}\",CHAR(160),EV$1))-FIND(CHAR(160),SUBSTITUTE($J11,\"{\",CHAR(160),EV$1))+1),\"\")","v":""},{"$f":"IFERROR(MID($J11,FIND(CHAR(160),SUBSTITUTE($J11,\"{\",CHAR(160),EW$1)),FIND(CHAR(160),SUBSTITUTE($J11,\"}\",CHAR(160),EW$1))-FIND(CHAR(160),SUBSTITUTE($J11,\"{\",CHAR(160),EW$1))+1),\"\")","v":""},{"$f":"IFERROR(MID($J11,FIND(CHAR(160),SUBSTITUTE($J11,\"{\",CHAR(160),EX$1)),FIND(CHAR(160),SUBSTITUTE($J11,\"}\",CHAR(160),EX$1))-FIND(CHAR(160),SUBSTITUTE($J11,\"{\",CHAR(160),EX$1))+1),\"\")","v":""},{"$f":"IFERROR(MID($J11,FIND(CHAR(160),SUBSTITUTE($J11,\"{\",CHAR(160),EY$1)),FIND(CHAR(160),SUBSTITUTE($J11,\"}\",CHAR(160),EY$1))-FIND(CHAR(160),SUBSTITUTE($J11,\"{\",CHAR(160),EY$1))+1),\"\")","v":""},{"$f":"IFERROR(MID($J11,FIND(CHAR(160),SUBSTITUTE($J11,\"{\",CHAR(160),EZ$1)),FIND(CHAR(160),SUBSTITUTE($J11,\"}\",CHAR(160),EZ$1))-FIND(CHAR(160),SUBSTITUTE($J11,\"{\",CHAR(160),EZ$1))+1),\"\")","v":""},{"$f":"IFERROR(MID($J11,FIND(CHAR(160),SUBSTITUTE($J11,\"{\",CHAR(160),FA$1)),FIND(CHAR(160),SUBSTITUTE($J11,\"}\",CHAR(160),FA$1))-FIND(CHAR(160),SUBSTITUTE($J11,\"{\",CHAR(160),FA$1))+1),\"\")","v":"{Primary heating type}"},{"$f":"IFERROR(MID($J11,FIND(CHAR(160),SUBSTITUTE($J11,\"{\",CHAR(160),FB$1)),FIND(CHAR(160),SUBSTITUTE($J11,\"}\",CHAR(160),FB$1))-FIND(CHAR(160),SUBSTITUTE($J11,\"{\",CHAR(160),FB$1))+1),\"\")","v":"{Measure:Quantity}"},{"$f":"IFERROR(MID($O11,FIND(CHAR(160),SUBSTITUTE($O11,\"{\",CHAR(160),FC$1)),FIND(CHAR(160),SUBSTITUTE($O11,\"}\",CHAR(160),FC$1))-FIND(CHAR(160),SUBSTITUTE($O11,\"{\",CHAR(160),FC$1))+1),\"\")","v":""},{"$f":"IFERROR(MID($O11,FIND(CHAR(160),SUBSTITUTE($O11,\"{\",CHAR(160),FD$1)),FIND(CHAR(160),SUBSTITUTE($O11,\"}\",CHAR(160),FD$1))-FIND(CHAR(160),SUBSTITUTE($O11,\"{\",CHAR(160),FD$1))+1),\"\")","v":""},{"$f":"IFERROR(MID($O11,FIND(CHAR(160),SUBSTITUTE($O11,\"{\",CHAR(160),FE$1)),FIND(CHAR(160),SUBSTITUTE($O11,\"}\",CHAR(160),FE$1))-FIND(CHAR(160),SUBSTITUTE($O11,\"{\",CHAR(160),FE$1))+1),\"\")","v":""},{"$f":"IFERROR(MID($O11,FIND(CHAR(160),SUBSTITUTE($O11,\"{\",CHAR(160),FF$1)),FIND(CHAR(160),SUBSTITUTE($O11,\"}\",CHAR(160),FF$1))-FIND(CHAR(160),SUBSTITUTE($O11,\"{\",CHAR(160),FF$1))+1),\"\")","v":""},{"$f":"IFERROR(MID($O11,FIND(CHAR(160),SUBSTITUTE($O11,\"{\",CHAR(160),FG$1)),FIND(CHAR(160),SUBSTITUTE($O11,\"}\",CHAR(160),FG$1))-FIND(CHAR(160),SUBSTITUTE($O11,\"{\",CHAR(160),FG$1))+1),\"\")","v":""},{"$f":"IFERROR(MID($O11,FIND(CHAR(160),SUBSTITUTE($O11,\"{\",CHAR(160),FH$1)),FIND(CHAR(160),SUBSTITUTE($O11,\"}\",CHAR(160),FH$1))-FIND(CHAR(160),SUBSTITUTE($O11,\"{\",CHAR(160),FH$1))+1),\"\")","v":""},{"$f":"IFERROR(MID($O11,FIND(CHAR(160),SUBSTITUTE($O11,\"{\",CHAR(160),FI$1)),FIND(CHAR(160),SUBSTITUTE($O11,\"}\",CHAR(160),FI$1))-FIND(CHAR(160),SUBSTITUTE($O11,\"{\",CHAR(160),FI$1))+1),\"\")","v":""},{"$f":"IFERROR(MID($O11,FIND(CHAR(160),SUBSTITUTE($O11,\"{\",CHAR(160),FJ$1)),FIND(CHAR(160),SUBSTITUTE($O11,\"}\",CHAR(160),FJ$1))-FIND(CHAR(160),SUBSTITUTE($O11,\"{\",CHAR(160),FJ$1))+1),\"\")","v":""},{"$f":"IFERROR(MID($O11,FIND(CHAR(160),SUBSTITUTE($O11,\"{\",CHAR(160),FK$1)),FIND(CHAR(160),SUBSTITUTE($O11,\"}\",CHAR(160),FK$1))-FIND(CHAR(160),SUBSTITUTE($O11,\"{\",CHAR(160),FK$1))+1),\"\")","v":"{Primary heating type}"},{"$f":"IFERROR(MID($O11,FIND(CHAR(160),SUBSTITUTE($O11,\"{\",CHAR(160),FL$1)),FIND(CHAR(160),SUBSTITUTE($O11,\"}\",CHAR(160),FL$1))-FIND(CHAR(160),SUBSTITUTE($O11,\"{\",CHAR(160),FL$1))+1),\"\")","v":"{Primary heating type}"},{"$f":"IFERROR(MID($R11,FIND(CHAR(160),SUBSTITUTE($R11,\"{\",CHAR(160),FM$1)),FIND(CHAR(160),SUBSTITUTE($R11,\"}\",CHAR(160),FM$1))-FIND(CHAR(160),SUBSTITUTE($R11,\"{\",CHAR(160),FM$1))+1),\"\")","v":""},{"$f":"IFERROR(MID($R11,FIND(CHAR(160),SUBSTITUTE($R11,\"{\",CHAR(160),FN$1)),FIND(CHAR(160),SUBSTITUTE($R11,\"}\",CHAR(160),FN$1))-FIND(CHAR(160),SUBSTITUTE($R11,\"{\",CHAR(160),FN$1))+1),\"\")","v":""},{"$f":"IFERROR(MID($R11,FIND(CHAR(160),SUBSTITUTE($R11,\"{\",CHAR(160),FO$1)),FIND(CHAR(160),SUBSTITUTE($R11,\"}\",CHAR(160),FO$1))-FIND(CHAR(160),SUBSTITUTE($R11,\"{\",CHAR(160),FO$1))+1),\"\")","v":""},{"$f":"IFERROR(MID($R11,FIND(CHAR(160),SUBSTITUTE($R11,\"{\",CHAR(160),FP$1)),FIND(CHAR(160),SUBSTITUTE($R11,\"}\",CHAR(160),FP$1))-FIND(CHAR(160),SUBSTITUTE($R11,\"{\",CHAR(160),FP$1))+1),\"\")","v":""},{"$f":"IFERROR(MID($R11,FIND(CHAR(160),SUBSTITUTE($R11,\"{\",CHAR(160),FQ$1)),FIND(CHAR(160),SUBSTITUTE($R11,\"}\",CHAR(160),FQ$1))-FIND(CHAR(160),SUBSTITUTE($R11,\"{\",CHAR(160),FQ$1))+1),\"\")","v":""},{"$f":"IFERROR(MID($R11,FIND(CHAR(160),SUBSTITUTE($R11,\"{\",CHAR(160),FR$1)),FIND(CHAR(160),SUBSTITUTE($R11,\"}\",CHAR(160),FR$1))-FIND(CHAR(160),SUBSTITUTE($R11,\"{\",CHAR(160),FR$1))+1),\"\")","v":""},{"$f":"IFERROR(MID($R11,FIND(CHAR(160),SUBSTITUTE($R11,\"{\",CHAR(160),FS$1)),FIND(CHAR(160),SUBSTITUTE($R11,\"}\",CHAR(160),FS$1))-FIND(CHAR(160),SUBSTITUTE($R11,\"{\",CHAR(160),FS$1))+1),\"\")","v":""},{"$f":"IFERROR(MID($R11,FIND(CHAR(160),SUBSTITUTE($R11,\"{\",CHAR(160),FT$1)),FIND(CHAR(160),SUBSTITUTE($R11,\"}\",CHAR(160),FT$1))-FIND(CHAR(160),SUBSTITUTE($R11,\"{\",CHAR(160),FT$1))+1),\"\")","v":""},{"$f":"IFERROR(MID($R11,FIND(CHAR(160),SUBSTITUTE($R11,\"{\",CHAR(160),FU$1)),FIND(CHAR(160),SUBSTITUTE($R11,\"}\",CHAR(160),FU$1))-FIND(CHAR(160),SUBSTITUTE($R11,\"{\",CHAR(160),FU$1))+1),\"\")","v":""},{"$f":"IFERROR(MID($R11,FIND(CHAR(160),SUBSTITUTE($R11,\"{\",CHAR(160),FV$1)),FIND(CHAR(160),SUBSTITUTE($R11,\"}\",CHAR(160),FV$1))-FIND(CHAR(160),SUBSTITUTE($R11,\"{\",CHAR(160),FV$1))+1),\"\")","v":""},{"$f":"IFERROR(MID($U11,FIND(CHAR(160),SUBSTITUTE($U11,\"{\",CHAR(160),FW$1)),FIND(CHAR(160),SUBSTITUTE($U11,\"}\",CHAR(160),FW$1))-FIND(CHAR(160),SUBSTITUTE($U11,\"{\",CHAR(160),FW$1))+1),\"\")","v":""},{"$f":"IFERROR(MID($U11,FIND(CHAR(160),SUBSTITUTE($U11,\"{\",CHAR(160),FX$1)),FIND(CHAR(160),SUBSTITUTE($U11,\"}\",CHAR(160),FX$1))-FIND(CHAR(160),SUBSTITUTE($U11,\"{\",CHAR(160),FX$1))+1),\"\")","v":""},{"$f":"IFERROR(MID($U11,FIND(CHAR(160),SUBSTITUTE($U11,\"{\",CHAR(160),FY$1)),FIND(CHAR(160),SUBSTITUTE($U11,\"}\",CHAR(160),FY$1))-FIND(CHAR(160),SUBSTITUTE($U11,\"{\",CHAR(160),FY$1))+1),\"\")","v":""},{"$f":"IFERROR(MID($U11,FIND(CHAR(160),SUBSTITUTE($U11,\"{\",CHAR(160),FZ$1)),FIND(CHAR(160),SUBSTITUTE($U11,\"}\",CHAR(160),FZ$1))-FIND(CHAR(160),SUBSTITUTE($U11,\"{\",CHAR(160),FZ$1))+1),\"\")","v":""},{"$f":"IFERROR(MID($U11,FIND(CHAR(160),SUBSTITUTE($U11,\"{\",CHAR(160),GA$1)),FIND(CHAR(160),SUBSTITUTE($U11,\"}\",CHAR(160),GA$1))-FIND(CHAR(160),SUBSTITUTE($U11,\"{\",CHAR(160),GA$1))+1),\"\")","v":""},{"$f":"IFERROR(MID($U11,FIND(CHAR(160),SUBSTITUTE($U11,\"{\",CHAR(160),GB$1)),FIND(CHAR(160),SUBSTITUTE($U11,\"}\",CHAR(160),GB$1))-FIND(CHAR(160),SUBSTITUTE($U11,\"{\",CHAR(160),GB$1))+1),\"\")","v":""},{"$f":"IFERROR(MID($U11,FIND(CHAR(160),SUBSTITUTE($U11,\"{\",CHAR(160),GC$1)),FIND(CHAR(160),SUBSTITUTE($U11,\"}\",CHAR(160),GC$1))-FIND(CHAR(160),SUBSTITUTE($U11,\"{\",CHAR(160),GC$1))+1),\"\")","v":""},{"$f":"IFERROR(MID($U11,FIND(CHAR(160),SUBSTITUTE($U11,\"{\",CHAR(160),GD$1)),FIND(CHAR(160),SUBSTITUTE($U11,\"}\",CHAR(160),GD$1))-FIND(CHAR(160),SUBSTITUTE($U11,\"{\",CHAR(160),GD$1))+1),\"\")","v":""},{"$f":"IFERROR(MID($U11,FIND(CHAR(160),SUBSTITUTE($U11,\"{\",CHAR(160),GE$1)),FIND(CHAR(160),SUBSTITUTE($U11,\"}\",CHAR(160),GE$1))-FIND(CHAR(160),SUBSTITUTE($U11,\"{\",CHAR(160),GE$1))+1),\"\")","v":"{Primary heating type}"},{"$f":"IFERROR(MID($U11,FIND(CHAR(160),SUBSTITUTE($U11,\"{\",CHAR(160),GF$1)),FIND(CHAR(160),SUBSTITUTE($U11,\"}\",CHAR(160),GF$1))-FIND(CHAR(160),SUBSTITUTE($U11,\"{\",CHAR(160),GF$1))+1),\"\")","v":"{Primary heating type}"},{"$f":"IFERROR(MID($V11,FIND(CHAR(160),SUBSTITUTE($V11,\"{\",CHAR(160),GG$1)),FIND(CHAR(160),SUBSTITUTE($V11,\"}\",CHAR(160),GG$1))-FIND(CHAR(160),SUBSTITUTE($V11,\"{\",CHAR(160),GG$1))+1),\"\")","v":""},{"$f":"IFERROR(MID($V11,FIND(CHAR(160),SUBSTITUTE($V11,\"{\",CHAR(160),GH$1)),FIND(CHAR(160),SUBSTITUTE($V11,\"}\",CHAR(160),GH$1))-FIND(CHAR(160),SUBSTITUTE($V11,\"{\",CHAR(160),GH$1))+1),\"\")","v":""},{"$f":"IFERROR(MID($V11,FIND(CHAR(160),SUBSTITUTE($V11,\"{\",CHAR(160),GI$1)),FIND(CHAR(160),SUBSTITUTE($V11,\"}\",CHAR(160),GI$1))-FIND(CHAR(160),SUBSTITUTE($V11,\"{\",CHAR(160),GI$1))+1),\"\")","v":""},{"$f":"IFERROR(MID($V11,FIND(CHAR(160),SUBSTITUTE($V11,\"{\",CHAR(160),GJ$1)),FIND(CHAR(160),SUBSTITUTE($V11,\"}\",CHAR(160),GJ$1))-FIND(CHAR(160),SUBSTITUTE($V11,\"{\",CHAR(160),GJ$1))+1),\"\")","v":""},{"$f":"IFERROR(MID($V11,FIND(CHAR(160),SUBSTITUTE($V11,\"{\",CHAR(160),GK$1)),FIND(CHAR(160),SUBSTITUTE($V11,\"}\",CHAR(160),GK$1))-FIND(CHAR(160),SUBSTITUTE($V11,\"{\",CHAR(160),GK$1))+1),\"\")","v":""},{"$f":"IFERROR(MID($V11,FIND(CHAR(160),SUBSTITUTE($V11,\"{\",CHAR(160),GL$1)),FIND(CHAR(160),SUBSTITUTE($V11,\"}\",CHAR(160),GL$1))-FIND(CHAR(160),SUBSTITUTE($V11,\"{\",CHAR(160),GL$1))+1),\"\")","v":""},{"$f":"IFERROR(MID($V11,FIND(CHAR(160),SUBSTITUTE($V11,\"{\",CHAR(160),GM$1)),FIND(CHAR(160),SUBSTITUTE($V11,\"}\",CHAR(160),GM$1))-FIND(CHAR(160),SUBSTITUTE($V11,\"{\",CHAR(160),GM$1))+1),\"\")","v":""},{"$f":"IFERROR(MID($V11,FIND(CHAR(160),SUBSTITUTE($V11,\"{\",CHAR(160),GN$1)),FIND(CHAR(160),SUBSTITUTE($V11,\"}\",CHAR(160),GN$1))-FIND(CHAR(160),SUBSTITUTE($V11,\"{\",CHAR(160),GN$1))+1),\"\")","v":""},{"$f":"IFERROR(MID($V11,FIND(CHAR(160),SUBSTITUTE($V11,\"{\",CHAR(160),GO$1)),FIND(CHAR(160),SUBSTITUTE($V11,\"}\",CHAR(160),GO$1))-FIND(CHAR(160),SUBSTITUTE($V11,\"{\",CHAR(160),GO$1))+1),\"\")","v":""},{"$f":"IFERROR(MID($V11,FIND(CHAR(160),SUBSTITUTE($V11,\"{\",CHAR(160),GP$1)),FIND(CHAR(160),SUBSTITUTE($V11,\"}\",CHAR(160),GP$1))-FIND(CHAR(160),SUBSTITUTE($V11,\"{\",CHAR(160),GP$1))+1),\"\")","v":""},{"$f":"IFERROR(MID($W11,FIND(CHAR(160),SUBSTITUTE($W11,\"{\",CHAR(160),GQ$1)),FIND(CHAR(160),SUBSTITUTE($W11,\"}\",CHAR(160),GQ$1))-FIND(CHAR(160),SUBSTITUTE($W11,\"{\",CHAR(160),GQ$1))+1),\"\")","v":""},{"$f":"IFERROR(MID($W11,FIND(CHAR(160),SUBSTITUTE($W11,\"{\",CHAR(160),GR$1)),FIND(CHAR(160),SUBSTITUTE($W11,\"}\",CHAR(160),GR$1))-FIND(CHAR(160),SUBSTITUTE($W11,\"{\",CHAR(160),GR$1))+1),\"\")","v":""},{"$f":"IFERROR(MID($W11,FIND(CHAR(160),SUBSTITUTE($W11,\"{\",CHAR(160),GS$1)),FIND(CHAR(160),SUBSTITUTE($W11,\"}\",CHAR(160),GS$1))-FIND(CHAR(160),SUBSTITUTE($W11,\"{\",CHAR(160),GS$1))+1),\"\")","v":""},{"$f":"IFERROR(MID($W11,FIND(CHAR(160),SUBSTITUTE($W11,\"{\",CHAR(160),GT$1)),FIND(CHAR(160),SUBSTITUTE($W11,\"}\",CHAR(160),GT$1))-FIND(CHAR(160),SUBSTITUTE($W11,\"{\",CHAR(160),GT$1))+1),\"\")","v":""},{"$f":"IFERROR(MID($W11,FIND(CHAR(160),SUBSTITUTE($W11,\"{\",CHAR(160),GU$1)),FIND(CHAR(160),SUBSTITUTE($W11,\"}\",CHAR(160),GU$1))-FIND(CHAR(160),SUBSTITUTE($W11,\"{\",CHAR(160),GU$1))+1),\"\")","v":""},{"$f":"IFERROR(MID($W11,FIND(CHAR(160),SUBSTITUTE($W11,\"{\",CHAR(160),GV$1)),FIND(CHAR(160),SUBSTITUTE($W11,\"}\",CHAR(160),GV$1))-FIND(CHAR(160),SUBSTITUTE($W11,\"{\",CHAR(160),GV$1))+1),\"\")","v":""},{"$f":"IFERROR(MID($W11,FIND(CHAR(160),SUBSTITUTE($W11,\"{\",CHAR(160),GW$1)),FIND(CHAR(160),SUBSTITUTE($W11,\"}\",CHAR(160),GW$1))-FIND(CHAR(160),SUBSTITUTE($W11,\"{\",CHAR(160),GW$1))+1),\"\")","v":""},{"$f":"IFERROR(MID($W11,FIND(CHAR(160),SUBSTITUTE($W11,\"{\",CHAR(160),GX$1)),FIND(CHAR(160),SUBSTITUTE($W11,\"}\",CHAR(160),GX$1))-FIND(CHAR(160),SUBSTITUTE($W11,\"{\",CHAR(160),GX$1))+1),\"\")","v":""},{"$f":"IFERROR(MID($W11,FIND(CHAR(160),SUBSTITUTE($W11,\"{\",CHAR(160),GY$1)),FIND(CHAR(160),SUBSTITUTE($W11,\"}\",CHAR(160),GY$1))-FIND(CHAR(160),SUBSTITUTE($W11,\"{\",CHAR(160),GY$1))+1),\"\")","v":"{Primary heating type}"},{"$f":"IFERROR(MID($W11,FIND(CHAR(160),SUBSTITUTE($W11,\"{\",CHAR(160),GZ$1)),FIND(CHAR(160),SUBSTITUTE($W11,\"}\",CHAR(160),GZ$1))-FIND(CHAR(160),SUBSTITUTE($W11,\"{\",CHAR(160),GZ$1))+1),\"\")","v":"{Primary heating type}"},{"$f":"IFERROR(MID($X11,FIND(CHAR(160),SUBSTITUTE($X11,\"{\",CHAR(160),HA$1)),FIND(CHAR(160),SUBSTITUTE($X11,\"}\",CHAR(160),HA$1))-FIND(CHAR(160),SUBSTITUTE($X11,\"{\",CHAR(160),HA$1))+1),\"\")","v":""},{"$f":"IFERROR(MID($X11,FIND(CHAR(160),SUBSTITUTE($X11,\"{\",CHAR(160),HB$1)),FIND(CHAR(160),SUBSTITUTE($X11,\"}\",CHAR(160),HB$1))-FIND(CHAR(160),SUBSTITUTE($X11,\"{\",CHAR(160),HB$1))+1),\"\")","v":""},{"$f":"IFERROR(MID($X11,FIND(CHAR(160),SUBSTITUTE($X11,\"{\",CHAR(160),HC$1)),FIND(CHAR(160),SUBSTITUTE($X11,\"}\",CHAR(160),HC$1))-FIND(CHAR(160),SUBSTITUTE($X11,\"{\",CHAR(160),HC$1))+1),\"\")","v":""},{"$f":"IFERROR(MID($X11,FIND(CHAR(160),SUBSTITUTE($X11,\"{\",CHAR(160),HD$1)),FIND(CHAR(160),SUBSTITUTE($X11,\"}\",CHAR(160),HD$1))-FIND(CHAR(160),SUBSTITUTE($X11,\"{\",CHAR(160),HD$1))+1),\"\")","v":""},{"$f":"IFERROR(MID($X11,FIND(CHAR(160),SUBSTITUTE($X11,\"{\",CHAR(160),HE$1)),FIND(CHAR(160),SUBSTITUTE($X11,\"}\",CHAR(160),HE$1))-FIND(CHAR(160),SUBSTITUTE($X11,\"{\",CHAR(160),HE$1))+1),\"\")","v":""},{"$f":"IFERROR(MID($X11,FIND(CHAR(160),SUBSTITUTE($X11,\"{\",CHAR(160),HF$1)),FIND(CHAR(160),SUBSTITUTE($X11,\"}\",CHAR(160),HF$1))-FIND(CHAR(160),SUBSTITUTE($X11,\"{\",CHAR(160),HF$1))+1),\"\")","v":""},{"$f":"IFERROR(MID($X11,FIND(CHAR(160),SUBSTITUTE($X11,\"{\",CHAR(160),HG$1)),FIND(CHAR(160),SUBSTITUTE($X11,\"}\",CHAR(160),HG$1))-FIND(CHAR(160),SUBSTITUTE($X11,\"{\",CHAR(160),HG$1))+1),\"\")","v":""},{"$f":"IFERROR(MID($X11,FIND(CHAR(160),SUBSTITUTE($X11,\"{\",CHAR(160),HH$1)),FIND(CHAR(160),SUBSTITUTE($X11,\"}\",CHAR(160),HH$1))-FIND(CHAR(160),SUBSTITUTE($X11,\"{\",CHAR(160),HH$1))+1),\"\")","v":""},{"$f":"IFERROR(MID($X11,FIND(CHAR(160),SUBSTITUTE($X11,\"{\",CHAR(160),HI$1)),FIND(CHAR(160),SUBSTITUTE($X11,\"}\",CHAR(160),HI$1))-FIND(CHAR(160),SUBSTITUTE($X11,\"{\",CHAR(160),HI$1))+1),\"\")","v":"{Primary heating type}"},{"$f":"IFERROR(MID($X11,FIND(CHAR(160),SUBSTITUTE($X11,\"{\",CHAR(160),HJ$1)),FIND(CHAR(160),SUBSTITUTE($X11,\"}\",CHAR(160),HJ$1))-FIND(CHAR(160),SUBSTITUTE($X11,\"{\",CHAR(160),HJ$1))+1),\"\")","v":"{Primary heating type}"},{"$f":"IFERROR(MID($Y11,FIND(CHAR(160),SUBSTITUTE($Y11,\"{\",CHAR(160),HK$1)),FIND(CHAR(160),SUBSTITUTE($Y11,\"}\",CHAR(160),HK$1))-FIND(CHAR(160),SUBSTITUTE($Y11,\"{\",CHAR(160),HK$1))+1),\"\")","v":""},{"$f":"IFERROR(MID($Y11,FIND(CHAR(160),SUBSTITUTE($Y11,\"{\",CHAR(160),HL$1)),FIND(CHAR(160),SUBSTITUTE($Y11,\"}\",CHAR(160),HL$1))-FIND(CHAR(160),SUBSTITUTE($Y11,\"{\",CHAR(160),HL$1))+1),\"\")","v":""},{"$f":"IFERROR(MID($Y11,FIND(CHAR(160),SUBSTITUTE($Y11,\"{\",CHAR(160),HM$1)),FIND(CHAR(160),SUBSTITUTE($Y11,\"}\",CHAR(160),HM$1))-FIND(CHAR(160),SUBSTITUTE($Y11,\"{\",CHAR(160),HM$1))+1),\"\")","v":""},{"$f":"IFERROR(MID($Y11,FIND(CHAR(160),SUBSTITUTE($Y11,\"{\",CHAR(160),HN$1)),FIND(CHAR(160),SUBSTITUTE($Y11,\"}\",CHAR(160),HN$1))-FIND(CHAR(160),SUBSTITUTE($Y11,\"{\",CHAR(160),HN$1))+1),\"\")","v":""},{"$f":"IFERROR(MID($Y11,FIND(CHAR(160),SUBSTITUTE($Y11,\"{\",CHAR(160),HO$1)),FIND(CHAR(160),SUBSTITUTE($Y11,\"}\",CHAR(160),HO$1))-FIND(CHAR(160),SUBSTITUTE($Y11,\"{\",CHAR(160),HO$1))+1),\"\")","v":""},{"$f":"IFERROR(MID($Y11,FIND(CHAR(160),SUBSTITUTE($Y11,\"{\",CHAR(160),HP$1)),FIND(CHAR(160),SUBSTITUTE($Y11,\"}\",CHAR(160),HP$1))-FIND(CHAR(160),SUBSTITUTE($Y11,\"{\",CHAR(160),HP$1))+1),\"\")","v":""},{"$f":"IFERROR(MID($Y11,FIND(CHAR(160),SUBSTITUTE($Y11,\"{\",CHAR(160),HQ$1)),FIND(CHAR(160),SUBSTITUTE($Y11,\"}\",CHAR(160),HQ$1))-FIND(CHAR(160),SUBSTITUTE($Y11,\"{\",CHAR(160),HQ$1))+1),\"\")","v":""},{"$f":"IFERROR(MID($Y11,FIND(CHAR(160),SUBSTITUTE($Y11,\"{\",CHAR(160),HR$1)),FIND(CHAR(160),SUBSTITUTE($Y11,\"}\",CHAR(160),HR$1))-FIND(CHAR(160),SUBSTITUTE($Y11,\"{\",CHAR(160),HR$1))+1),\"\")","v":""},{"$f":"IFERROR(MID($Y11,FIND(CHAR(160),SUBSTITUTE($Y11,\"{\",CHAR(160),HS$1)),FIND(CHAR(160),SUBSTITUTE($Y11,\"}\",CHAR(160),HS$1))-FIND(CHAR(160),SUBSTITUTE($Y11,\"{\",CHAR(160),HS$1))+1),\"\")","v":"{Primary heating type}"},{"$f":"IFERROR(MID($Y11,FIND(CHAR(160),SUBSTITUTE($Y11,\"{\",CHAR(160),HT$1)),FIND(CHAR(160),SUBSTITUTE($Y11,\"}\",CHAR(160),HT$1))-FIND(CHAR(160),SUBSTITUTE($Y11,\"{\",CHAR(160),HT$1))+1),\"\")","v":"{Primary heating type}"},{"$f":"IFERROR(MID($Z11,FIND(CHAR(160),SUBSTITUTE($Z11,\"{\",CHAR(160),HU$1)),FIND(CHAR(160),SUBSTITUTE($Z11,\"}\",CHAR(160),HU$1))-FIND(CHAR(160),SUBSTITUTE($Z11,\"{\",CHAR(160),HU$1))+1),\"\")","v":""},{"$f":"IFERROR(MID($Z11,FIND(CHAR(160),SUBSTITUTE($Z11,\"{\",CHAR(160),HV$1)),FIND(CHAR(160),SUBSTITUTE($Z11,\"}\",CHAR(160),HV$1))-FIND(CHAR(160),SUBSTITUTE($Z11,\"{\",CHAR(160),HV$1))+1),\"\")","v":""},{"$f":"IFERROR(MID($Z11,FIND(CHAR(160),SUBSTITUTE($Z11,\"{\",CHAR(160),HW$1)),FIND(CHAR(160),SUBSTITUTE($Z11,\"}\",CHAR(160),HW$1))-FIND(CHAR(160),SUBSTITUTE($Z11,\"{\",CHAR(160),HW$1))+1),\"\")","v":""},{"$f":"IFERROR(MID($Z11,FIND(CHAR(160),SUBSTITUTE($Z11,\"{\",CHAR(160),HX$1)),FIND(CHAR(160),SUBSTITUTE($Z11,\"}\",CHAR(160),HX$1))-FIND(CHAR(160),SUBSTITUTE($Z11,\"{\",CHAR(160),HX$1))+1),\"\")","v":""},{"$f":"IFERROR(MID($Z11,FIND(CHAR(160),SUBSTITUTE($Z11,\"{\",CHAR(160),HY$1)),FIND(CHAR(160),SUBSTITUTE($Z11,\"}\",CHAR(160),HY$1))-FIND(CHAR(160),SUBSTITUTE($Z11,\"{\",CHAR(160),HY$1))+1),\"\")","v":""},{"$f":"IFERROR(MID($Z11,FIND(CHAR(160),SUBSTITUTE($Z11,\"{\",CHAR(160),HZ$1)),FIND(CHAR(160),SUBSTITUTE($Z11,\"}\",CHAR(160),HZ$1))-FIND(CHAR(160),SUBSTITUTE($Z11,\"{\",CHAR(160),HZ$1))+1),\"\")","v":""},{"$f":"IFERROR(MID($Z11,FIND(CHAR(160),SUBSTITUTE($Z11,\"{\",CHAR(160),IA$1)),FIND(CHAR(160),SUBSTITUTE($Z11,\"}\",CHAR(160),IA$1))-FIND(CHAR(160),SUBSTITUTE($Z11,\"{\",CHAR(160),IA$1))+1),\"\")","v":""},{"$f":"IFERROR(MID($Z11,FIND(CHAR(160),SUBSTITUTE($Z11,\"{\",CHAR(160),IB$1)),FIND(CHAR(160),SUBSTITUTE($Z11,\"}\",CHAR(160),IB$1))-FIND(CHAR(160),SUBSTITUTE($Z11,\"{\",CHAR(160),IB$1))+1),\"\")","v":""},{"$f":"IFERROR(MID($Z11,FIND(CHAR(160),SUBSTITUTE($Z11,\"{\",CHAR(160),IC$1)),FIND(CHAR(160),SUBSTITUTE($Z11,\"}\",CHAR(160),IC$1))-FIND(CHAR(160),SUBSTITUTE($Z11,\"{\",CHAR(160),IC$1))+1),\"\")","v":"{Primary heating type}"},{"$f":"IFERROR(MID($Z11,FIND(CHAR(160),SUBSTITUTE($Z11,\"{\",CHAR(160),ID$1)),FIND(CHAR(160),SUBSTITUTE($Z11,\"}\",CHAR(160),ID$1))-FIND(CHAR(160),SUBSTITUTE($Z11,\"{\",CHAR(160),ID$1))+1),\"\")","v":"{Primary heating type}"},{"$f":"IFERROR(MID($AA11,FIND(CHAR(160),SUBSTITUTE($AA11,\"{\",CHAR(160),IE$1)),FIND(CHAR(160),SUBSTITUTE($AA11,\"}\",CHAR(160),IE$1))-FIND(CHAR(160),SUBSTITUTE($AA11,\"{\",CHAR(160),IE$1))+1),\"\")","v":""},{"$f":"IFERROR(MID($AA11,FIND(CHAR(160),SUBSTITUTE($AA11,\"{\",CHAR(160),IF$1)),FIND(CHAR(160),SUBSTITUTE($AA11,\"}\",CHAR(160),IF$1))-FIND(CHAR(160),SUBSTITUTE($AA11,\"{\",CHAR(160),IF$1))+1),\"\")","v":""},{"$f":"IFERROR(MID($AA11,FIND(CHAR(160),SUBSTITUTE($AA11,\"{\",CHAR(160),IG$1)),FIND(CHAR(160),SUBSTITUTE($AA11,\"}\",CHAR(160),IG$1))-FIND(CHAR(160),SUBSTITUTE($AA11,\"{\",CHAR(160),IG$1))+1),\"\")","v":""},{"$f":"IFERROR(MID($AA11,FIND(CHAR(160),SUBSTITUTE($AA11,\"{\",CHAR(160),IH$1)),FIND(CHAR(160),SUBSTITUTE($AA11,\"}\",CHAR(160),IH$1))-FIND(CHAR(160),SUBSTITUTE($AA11,\"{\",CHAR(160),IH$1))+1),\"\")","v":""},{"$f":"IFERROR(MID($AA11,FIND(CHAR(160),SUBSTITUTE($AA11,\"{\",CHAR(160),II$1)),FIND(CHAR(160),SUBSTITUTE($AA11,\"}\",CHAR(160),II$1))-FIND(CHAR(160),SUBSTITUTE($AA11,\"{\",CHAR(160),II$1))+1),\"\")","v":""},{"$f":"IFERROR(MID($AA11,FIND(CHAR(160),SUBSTITUTE($AA11,\"{\",CHAR(160),IJ$1)),FIND(CHAR(160),SUBSTITUTE($AA11,\"}\",CHAR(160),IJ$1))-FIND(CHAR(160),SUBSTITUTE($AA11,\"{\",CHAR(160),IJ$1))+1),\"\")","v":""},{"$f":"IFERROR(MID($AA11,FIND(CHAR(160),SUBSTITUTE($AA11,\"{\",CHAR(160),IK$1)),FIND(CHAR(160),SUBSTITUTE($AA11,\"}\",CHAR(160),IK$1))-FIND(CHAR(160),SUBSTITUTE($AA11,\"{\",CHAR(160),IK$1))+1),\"\")","v":""},{"$f":"IFERROR(MID($AA11,FIND(CHAR(160),SUBSTITUTE($AA11,\"{\",CHAR(160),IL$1)),FIND(CHAR(160),SUBSTITUTE($AA11,\"}\",CHAR(160),IL$1))-FIND(CHAR(160),SUBSTITUTE($AA11,\"{\",CHAR(160),IL$1))+1),\"\")","v":""},{"$f":"IFERROR(MID($AA11,FIND(CHAR(160),SUBSTITUTE($AA11,\"{\",CHAR(160),IM$1)),FIND(CHAR(160),SUBSTITUTE($AA11,\"}\",CHAR(160),IM$1))-FIND(CHAR(160),SUBSTITUTE($AA11,\"{\",CHAR(160),IM$1))+1),\"\")","v":"{Primary heating type}"},{"$f":"IFERROR(MID($AA11,FIND(CHAR(160),SUBSTITUTE($AA11,\"{\",CHAR(160),IN$1)),FIND(CHAR(160),SUBSTITUTE($AA11,\"}\",CHAR(160),IN$1))-FIND(CHAR(160),SUBSTITUTE($AA11,\"{\",CHAR(160),IN$1))+1),\"\")","v":"{Primary heating type}"},{"$f":"IFERROR(MID($AB11,FIND(CHAR(160),SUBSTITUTE($AB11,\"{\",CHAR(160),IO$1)),FIND(CHAR(160),SUBSTITUTE($AB11,\"}\",CHAR(160),IO$1))-FIND(CHAR(160),SUBSTITUTE($AB11,\"{\",CHAR(160),IO$1))+1),\"\")","v":""},{"$f":"IFERROR(MID($AB11,FIND(CHAR(160),SUBSTITUTE($AB11,\"{\",CHAR(160),IP$1)),FIND(CHAR(160),SUBSTITUTE($AB11,\"}\",CHAR(160),IP$1))-FIND(CHAR(160),SUBSTITUTE($AB11,\"{\",CHAR(160),IP$1))+1),\"\")","v":""},{"$f":"IFERROR(MID($AB11,FIND(CHAR(160),SUBSTITUTE($AB11,\"{\",CHAR(160),IQ$1)),FIND(CHAR(160),SUBSTITUTE($AB11,\"}\",CHAR(160),IQ$1))-FIND(CHAR(160),SUBSTITUTE($AB11,\"{\",CHAR(160),IQ$1))+1),\"\")","v":""},{"$f":"IFERROR(MID($AB11,FIND(CHAR(160),SUBSTITUTE($AB11,\"{\",CHAR(160),IR$1)),FIND(CHAR(160),SUBSTITUTE($AB11,\"}\",CHAR(160),IR$1))-FIND(CHAR(160),SUBSTITUTE($AB11,\"{\",CHAR(160),IR$1))+1),\"\")","v":""},{"$f":"IFERROR(MID($AB11,FIND(CHAR(160),SUBSTITUTE($AB11,\"{\",CHAR(160),IS$1)),FIND(CHAR(160),SUBSTITUTE($AB11,\"}\",CHAR(160),IS$1))-FIND(CHAR(160),SUBSTITUTE($AB11,\"{\",CHAR(160),IS$1))+1),\"\")","v":""},{"$f":"IFERROR(MID($AB11,FIND(CHAR(160),SUBSTITUTE($AB11,\"{\",CHAR(160),IT$1)),FIND(CHAR(160),SUBSTITUTE($AB11,\"}\",CHAR(160),IT$1))-FIND(CHAR(160),SUBSTITUTE($AB11,\"{\",CHAR(160),IT$1))+1),\"\")","v":""},{"$f":"IFERROR(MID($AB11,FIND(CHAR(160),SUBSTITUTE($AB11,\"{\",CHAR(160),IU$1)),FIND(CHAR(160),SUBSTITUTE($AB11,\"}\",CHAR(160),IU$1))-FIND(CHAR(160),SUBSTITUTE($AB11,\"{\",CHAR(160),IU$1))+1),\"\")","v":""},{"$f":"IFERROR(MID($AB11,FIND(CHAR(160),SUBSTITUTE($AB11,\"{\",CHAR(160),IV$1)),FIND(CHAR(160),SUBSTITUTE($AB11,\"}\",CHAR(160),IV$1))-FIND(CHAR(160),SUBSTITUTE($AB11,\"{\",CHAR(160),IV$1))+1),\"\")","v":""},{"$f":"IFERROR(MID($AB11,FIND(CHAR(160),SUBSTITUTE($AB11,\"{\",CHAR(160),IW$1)),FIND(CHAR(160),SUBSTITUTE($AB11,\"}\",CHAR(160),IW$1))-FIND(CHAR(160),SUBSTITUTE($AB11,\"{\",CHAR(160),IW$1))+1),\"\")","v":""},{"$f":"IFERROR(MID($AB11,FIND(CHAR(160),SUBSTITUTE($AB11,\"{\",CHAR(160),IX$1)),FIND(CHAR(160),SUBSTITUTE($AB11,\"}\",CHAR(160),IX$1))-FIND(CHAR(160),SUBSTITUTE($AB11,\"{\",CHAR(160),IX$1))+1),\"\")","v":""},null,{"$f":"10-COUNTIF(DU11:ED11,\"\")","v":3}]
["Affordable Heat Initiative - NECEC Funds","MiniSplit HP LIHEAP","LCHL","2021-07-01","2022-06-30","Calculated","{Cost}*{Measure:Quantity}",0,"Calculated","if({Primary heating type}=2,2000,0)*{Measure:Quantity}",2000,"2020-07-01","2022-06-30","Calculated","if({Primary heating type}=6,5379,if({Primary heating type}=0,-2581.54,-2744))",null,null,null,null,null,"if({Primary heating type}=6,1.046,if({Primary heating type}=0,-0.562,-0.595))",3.1E-2,"10*if({Primary heating type}=1,1,if({Primary heating type}=0,0,0))*31.72","if({Primary heating type}=2,1,if({Primary heating type}=0,0.06,0))*31.72","if({Primary heating type}=3,1,if({Primary heating type}=0,0.79,0))*31.72","if({Primary heating type}=4,1,if({Primary heating type}=0,0.06,0))*31.72","if({Primary heating type}=5,1,if({Primary heating type}=0,0.07,0))*31.72",0,"2019-07-01","2022-06-30",18,1,1,0.373,0.52800000000000002,5.2999999999999999E-2,4.5999999999999999E-2,1,1,1,0,0,null,{"$f":"DU12","v":"{Cost}"},2500,{"$f":"DV12","v":"{Measure:Quantity}"},1,{"$f":"DW12","v":"{Primary heating type}"},2,{"$f":"DX12","v":""},null,{"$f":"DY12","v":""},null,{"$f":"DZ12","v":""},null,{"$f":"EA12","v":""},null,{"$f":"EB12","v":""},null,{"$f":"EC12","v":""},null,{"$f":"ED12","v":""},null,{"$f":"IF(AW12=6,5379,IF(AW12=0,-2581.54,-2744))","v":-2744},0,0,0,0,0,{"$f":"IF(AW12=6,1.046,IF(AW12=0,-0.562,-0.595))","v":-0.59499999999999997},{"$f":"0.031","v":3.1E-2},{"$f":"10*IF(AW12=1,1,IF(AW12=0,0,0))*31.72","v":0},{"$f":"IF(AW12=2,1,IF(AW12=0,0.06,0))*31.72","v":31.72},{"$f":"IF(AW12=3,1,IF(AW12=0,0.79,0))*31.72","v":0},{"$f":"IF(AW12=4,1,IF(AW12=0,0.06,0))*31.72","v":0},{"$f":"IF(AW12=5,1,IF(AW12=0,0.07,0))*31.72","v":0},{"$f":"0","v":0},null,"Res","Default DR",{"$f":"Benefits(BL12,BR12,BS12,BT12,BU12,BV12,BW12,BX12,BY12,BZ12,AE12,AH12,AI12,AJ12,AK12,AL12,AM12,AN12,AO12,AP12,CA12,CB12)","v":-4315.624556918573},-2522.0351382582817,0,0,0,21494.27313154536,0,0,0,{"$f":"SUMPRODUCT(CC12:CK12,--(CC12:CK12>0))","v":21494.27313154536},{"$f":"-SUMPRODUCT(CC12:CK12,--(CC12:CK12<0))","v":6837.6596951768552},null,{"$f":"AS12*AU12","v":2500},null,null,{"$f":"CM12+CO12","v":9337.6596951768552},{"$f":"IF(NetOrGross=\"Net\",(1-AO12+AP12),1)","v":1},{"$f":"(SUMPRODUCT(CC12:CJ12,--(CC12:CJ12>0))+CN12)*CS12/((-SUMPRODUCT(CC12:CJ12,--(CC12:CJ12<0))+MAX(CO12,CV12)+CP12+CQ12)*CS12+IF(FRIncentives=\"Yes\",CV12*(1-CS12),0))","v":2.3018908198858128},1,{"$f":"IF(AW12=2,2000,0)*AU12","v":2000},null,"RGGI","y",1,{"$f":"IF(F12=\"Manual Entry\",\"Manual\",IF(G12=\"\",0,\"X=\"&SUBSTITUTE(SUBSTITUTE(SUBSTITUTE(SUBSTITUTE(SUBSTITUTE(SUBSTITUTE(SUBSTITUTE(SUBSTITUTE(SUBSTITUTE(SUBSTITUTE(SUBSTITUTE(SUBSTITUTE(G12,$ED12,$ED$2&ROW($ED12)),$EC12,$EC$2&ROW($EC12)),$EB12,$EB$2&ROW($EB12)),$EA12,$EA$2&ROW($EA12)),$DZ12,$DZ$2&ROW($DZ12)),$DY12,$DY$2&ROW($DY12)),$DX12,$DX$2&ROW($DX12)),$DW12,$DW$2&ROW($DW12)),$DV12,$DV$2&ROW($DV12)),$DU12,$DU$2&ROW($DU12)),$DT12,$DT$2&ROW($DT12)),$DS12,$DS$2&ROW($DS12))))","v":"X=AS12*AU12"},{"$f":"IF(I12=\"Manual Entry\",\"Manual\",IF(J12=\"\",0,\"X=\"&SUBSTITUTE(SUBSTITUTE(SUBSTITUTE(SUBSTITUTE(SUBSTITUTE(SUBSTITUTE(SUBSTITUTE(SUBSTITUTE(SUBSTITUTE(SUBSTITUTE(SUBSTITUTE(SUBSTITUTE(J12,$ED12,$ED$2&ROW($ED12)),$EC12,$EC$2&ROW($EC12)),$EB12,$EB$2&ROW($EB12)),$EA12,$EA$2&ROW($EA12)),$DZ12,$DZ$2&ROW($DZ12)),$DY12,$DY$2&ROW($DY12)),$DX12,$DX$2&ROW($DX12)),$DW12,$DW$2&ROW($DW12)),$DV12,$DV$2&ROW($DV12)),$DU12,$DU$2&ROW($DU12)),$DT12,$DT$2&ROW($DT12)),$DS12,$DS$2&ROW($DS12))))","v":"X=if(AW12=2,2000,0)*AU12"},{"$f":"IF(O12=\"\",0,\"X=\"&SUBSTITUTE(SUBSTITUTE(SUBSTITUTE(SUBSTITUTE(SUBSTITUTE(SUBSTITUTE(SUBSTITUTE(SUBSTITUTE(SUBSTITUTE(SUBSTITUTE(SUBSTITUTE(SUBSTITUTE(O12,$ED12,$ED$2&ROW($ED12)),$EC12,$EC$2&ROW($EC12)),$EB12,$EB$2&ROW($EB12)),$EA12,$EA$2&ROW($EA12)),$DZ12,$DZ$2&ROW($DZ12)),$DY12,$DY$2&ROW($DY12)),$DX12,$DX$2&ROW($DX12)),$DW12,$DW$2&ROW($DW12)),$DV12,$DV$2&ROW($DV12)),$DU12,$DU$2&ROW($DU12)),$DT12,$DT$2&ROW($DT12)),$DS12,$DS$2&ROW($DS12)))","v":"X=if(AW12=6,5379,if(AW12=0,-2581.54,-2744))"},{"$f":"IF(P12=\"\",0,\"X=\"&SUBSTITUTE(SUBSTITUTE(SUBSTITUTE(SUBSTITUTE(SUBSTITUTE(SUBSTITUTE(SUBSTITUTE(SUBSTITUTE(SUBSTITUTE(SUBSTITUTE(SUBSTITUTE(SUBSTITUTE(P12,$ED12,$ED$2&ROW($ED12)),$EC12,$EC$2&ROW($EC12)),$EB12,$EB$2&ROW($EB12)),$EA12,$EA$2&ROW($EA12)),$DZ12,$DZ$2&ROW($DZ12)),$DY12,$DY$2&ROW($DY12)),$DX12,$DX$2&ROW($DX12)),$DW12,$DW$2&ROW($DW12)),$DV12,$DV$2&ROW($DV12)),$DU12,$DU$2&ROW($DU12)),$DT12,$DT$2&ROW($DT12)),$DS12,$DS$2&ROW($DS12)))","v":0},{"$f":"IF(Q12=\"\",0,\"X=\"&SUBSTITUTE(SUBSTITUTE(SUBSTITUTE(SUBSTITUTE(SUBSTITUTE(SUBSTITUTE(SUBSTITUTE(SUBSTITUTE(SUBSTITUTE(SUBSTITUTE(SUBSTITUTE(SUBSTITUTE(Q12,$ED12,$ED$2&ROW($ED12)),$EC12,$EC$2&ROW($EC12)),$EB12,$EB$2&ROW($EB12)),$EA12,$EA$2&ROW($EA12)),$DZ12,$DZ$2&ROW($DZ12)),$DY12,$DY$2&ROW($DY12)),$DX12,$DX$2&ROW($DX12)),$DW12,$DW$2&ROW($DW12)),$DV12,$DV$2&ROW($DV12)),$DU12,$DU$2&ROW($DU12)),$DT12,$DT$2&ROW($DT12)),$DS12,$DS$2&ROW($DS12)))","v":0},{"$f":"IF(R12=\"\",0,\"X=\"&SUBSTITUTE(SUBSTITUTE(SUBSTITUTE(SUBSTITUTE(SUBSTITUTE(SUBSTITUTE(SUBSTITUTE(SUBSTITUTE(SUBSTITUTE(SUBSTITUTE(SUBSTITUTE(SUBSTITUTE(R12,$ED12,$ED$2&ROW($ED12)),$EC12,$EC$2&ROW($EC12)),$EB12,$EB$2&ROW($EB12)),$EA12,$EA$2&ROW($EA12)),$DZ12,$DZ$2&ROW($DZ12)),$DY12,$DY$2&ROW($DY12)),$DX12,$DX$2&ROW($DX12)),$DW12,$DW$2&ROW($DW12)),$DV12,$DV$2&ROW($DV12)),$DU12,$DU$2&ROW($DU12)),$DT12,$DT$2&ROW($DT12)),$DS12,$DS$2&ROW($DS12)))","v":0},{"$f":"IF(S12=\"\",0,\"X=\"&SUBSTITUTE(SUBSTITUTE(SUBSTITUTE(SUBSTITUTE(SUBSTITUTE(SUBSTITUTE(SUBSTITUTE(SUBSTITUTE(SUBSTITUTE(SUBSTITUTE(SUBSTITUTE(SUBSTITUTE(S12,$ED12,$ED$2&ROW($ED12)),$EC12,$EC$2&ROW($EC12)),$EB12,$EB$2&ROW($EB12)),$EA12,$EA$2&ROW($EA12)),$DZ12,$DZ$2&ROW($DZ12)),$DY12,$DY$2&ROW($DY12)),$DX12,$DX$2&ROW($DX12)),$DW12,$DW$2&ROW($DW12)),$DV12,$DV$2&ROW($DV12)),$DU12,$DU$2&ROW($DU12)),$DT12,$DT$2&ROW($DT12)),$DS12,$DS$2&ROW($DS12)))","v":0},{"$f":"IF(T12=\"\",0,\"X=\"&SUBSTITUTE(SUBSTITUTE(SUBSTITUTE(SUBSTITUTE(SUBSTITUTE(SUBSTITUTE(SUBSTITUTE(SUBSTITUTE(SUBSTITUTE(SUBSTITUTE(SUBSTITUTE(SUBSTITUTE(T12,$ED12,$ED$2&ROW($ED12)),$EC12,$EC$2&ROW($EC12)),$EB12,$EB$2&ROW($EB12)),$EA12,$EA$2&ROW($EA12)),$DZ12,$DZ$2&ROW($DZ12)),$DY12,$DY$2&ROW($DY12)),$DX12,$DX$2&ROW($DX12)),$DW12,$DW$2&ROW($DW12)),$DV12,$DV$2&ROW($DV12)),$DU12,$DU$2&ROW($DU12)),$DT12,$DT$2&ROW($DT12)),$DS12,$DS$2&ROW($DS12)))","v":0},{"$f":"IF(U12=\"\",0,\"X=\"&SUBSTITUTE(SUBSTITUTE(SUBSTITUTE(SUBSTITUTE(SUBSTITUTE(SUBSTITUTE(SUBSTITUTE(SUBSTITUTE(SUBSTITUTE(SUBSTITUTE(SUBSTITUTE(SUBSTITUTE(U12,$ED12,$ED$2&ROW($ED12)),$EC12,$EC$2&ROW($EC12)),$EB12,$EB$2&ROW($EB12)),$EA12,$EA$2&ROW($EA12)),$DZ12,$DZ$2&ROW($DZ12)),$DY12,$DY$2&ROW($DY12)),$DX12,$DX$2&ROW($DX12)),$DW12,$DW$2&ROW($DW12)),$DV12,$DV$2&ROW($DV12)),$DU12,$DU$2&ROW($DU12)),$DT12,$DT$2&ROW($DT12)),$DS12,$DS$2&ROW($DS12)))","v":"X=if(AW12=6,1.046,if(AW12=0,-0.562,-0.595))"},{"$f":"IF(V12=\"\",0,\"X=\"&SUBSTITUTE(SUBSTITUTE(SUBSTITUTE(SUBSTITUTE(SUBSTITUTE(SUBSTITUTE(SUBSTITUTE(SUBSTITUTE(SUBSTITUTE(SUBSTITUTE(SUBSTITUTE(SUBSTITUTE(V12,$ED12,$ED$2&ROW($ED12)),$EC12,$EC$2&ROW($EC12)),$EB12,$EB$2&ROW($EB12)),$EA12,$EA$2&ROW($EA12)),$DZ12,$DZ$2&ROW($DZ12)),$DY12,$DY$2&ROW($DY12)),$DX12,$DX$2&ROW($DX12)),$DW12,$DW$2&ROW($DW12)),$DV12,$DV$2&ROW($DV12)),$DU12,$DU$2&ROW($DU12)),$DT12,$DT$2&ROW($DT12)),$DS12,$DS$2&ROW($DS12)))","v":"X=0.031"},{"$f":"IF(W12=\"\",0,\"X=\"&SUBSTITUTE(SUBSTITUTE(SUBSTITUTE(SUBSTITUTE(SUBSTITUTE(SUBSTITUTE(SUBSTITUTE(SUBSTITUTE(SUBSTITUTE(SUBSTITUTE(SUBSTITUTE(SUBSTITUTE(W12,$ED12,$ED$2&ROW($ED12)),$EC12,$EC$2&ROW($EC12)),$EB12,$EB$2&ROW($EB12)),$EA12,$EA$2&ROW($EA12)),$DZ12,$DZ$2&ROW($DZ12)),$DY12,$DY$2&ROW($DY12)),$DX12,$DX$2&ROW($DX12)),$DW12,$DW$2&ROW($DW12)),$DV12,$DV$2&ROW($DV12)),$DU12,$DU$2&ROW($DU12)),$DT12,$DT$2&ROW($DT12)),$DS12,$DS$2&ROW($DS12)))","v":"X=10*if(AW12=1,1,if(AW12=0,0,0))*31.72"},{"$f":"IF(X12=\"\",0,\"X=\"&SUBSTITUTE(SUBSTITUTE(SUBSTITUTE(SUBSTITUTE(SUBSTITUTE(SUBSTITUTE(SUBSTITUTE(SUBSTITUTE(SUBSTITUTE(SUBSTITUTE(SUBSTITUTE(SUBSTITUTE(X12,$ED12,$ED$2&ROW($ED12)),$EC12,$EC$2&ROW($EC12)),$EB12,$EB$2&ROW($EB12)),$EA12,$EA$2&ROW($EA12)),$DZ12,$DZ$2&ROW($DZ12)),$DY12,$DY$2&ROW($DY12)),$DX12,$DX$2&ROW($DX12)),$DW12,$DW$2&ROW($DW12)),$DV12,$DV$2&ROW($DV12)),$DU12,$DU$2&ROW($DU12)),$DT12,$DT$2&ROW($DT12)),$DS12,$DS$2&ROW($DS12)))","v":"X=if(AW12=2,1,if(AW12=0,0.06,0))*31.72"},{"$f":"IF(Y12=\"\",0,\"X=\"&SUBSTITUTE(SUBSTITUTE(SUBSTITUTE(SUBSTITUTE(SUBSTITUTE(SUBSTITUTE(SUBSTITUTE(SUBSTITUTE(SUBSTITUTE(SUBSTITUTE(SUBSTITUTE(SUBSTITUTE(Y12,$ED12,$ED$2&ROW($ED12)),$EC12,$EC$2&ROW($EC12)),$EB12,$EB$2&ROW($EB12)),$EA12,$EA$2&ROW($EA12)),$DZ12,$DZ$2&ROW($DZ12)),$DY12,$DY$2&ROW($DY12)),$DX12,$DX$2&ROW($DX12)),$DW12,$DW$2&ROW($DW12)),$DV12,$DV$2&ROW($DV12)),$DU12,$DU$2&ROW($DU12)),$DT12,$DT$2&ROW($DT12)),$DS12,$DS$2&ROW($DS12)))","v":"X=if(AW12=3,1,if(AW12=0,0.79,0))*31.72"},{"$f":"IF(Z12=\"\",0,\"X=\"&SUBSTITUTE(SUBSTITUTE(SUBSTITUTE(SUBSTITUTE(SUBSTITUTE(SUBSTITUTE(SUBSTITUTE(SUBSTITUTE(SUBSTITUTE(SUBSTITUTE(SUBSTITUTE(SUBSTITUTE(Z12,$ED12,$ED$2&ROW($ED12)),$EC12,$EC$2&ROW($EC12)),$EB12,$EB$2&ROW($EB12)),$EA12,$EA$2&ROW($EA12)),$DZ12,$DZ$2&ROW($DZ12)),$DY12,$DY$2&ROW($DY12)),$DX12,$DX$2&ROW($DX12)),$DW12,$DW$2&ROW($DW12)),$DV12,$DV$2&ROW($DV12)),$DU12,$DU$2&ROW($DU12)),$DT12,$DT$2&ROW($DT12)),$DS12,$DS$2&ROW($DS12)))","v":"X=if(AW12=4,1,if(AW12=0,0.06,0))*31.72"},{"$f":"IF(AA12=\"\",0,\"X=\"&SUBSTITUTE(SUBSTITUTE(SUBSTITUTE(SUBSTITUTE(SUBSTITUTE(SUBSTITUTE(SUBSTITUTE(SUBSTITUTE(SUBSTITUTE(SUBSTITUTE(SUBSTITUTE(SUBSTITUTE(AA12,$ED12,$ED$2&ROW($ED12)),$EC12,$EC$2&ROW($EC12)),$EB12,$EB$2&ROW($EB12)),$EA12,$EA$2&ROW($EA12)),$DZ12,$DZ$2&ROW($DZ12)),$DY12,$DY$2&ROW($DY12)),$DX12,$DX$2&ROW($DX12)),$DW12,$DW$2&ROW($DW12)),$DV12,$DV$2&ROW($DV12)),$DU12,$DU$2&ROW($DU12)),$DT12,$DT$2&ROW($DT12)),$DS12,$DS$2&ROW($DS12)))","v":"X=if(AW12=5,1,if(AW12=0,0.07,0))*31.72"},{"$f":"IF(AB12=\"\",0,\"X=\"&SUBSTITUTE(SUBSTITUTE(SUBSTITUTE(SUBSTITUTE(SUBSTITUTE(SUBSTITUTE(SUBSTITUTE(SUBSTITUTE(SUBSTITUTE(SUBSTITUTE(SUBSTITUTE(SUBSTITUTE(AB12,$ED12,$ED$2&ROW($ED12)),$EC12,$EC$2&ROW($EC12)),$EB12,$EB$2&ROW($EB12)),$EA12,$EA$2&ROW($EA12)),$DZ12,$DZ$2&ROW($DZ12)),$DY12,$DY$2&ROW($DY12)),$DX12,$DX$2&ROW($DX12)),$DW12,$DW$2&ROW($DW12)),$DV12,$DV$2&ROW($DV12)),$DU12,$DU$2&ROW($DU12)),$DT12,$DT$2&ROW($DT12)),$DS12,$DS$2&ROW($DS12)))","v":"X=0"},null,null,"{Factor:WinterCF}","{Factor:SummerCF}",{"$f":"IFERROR(INDEX($EG12:$IV12,MATCH(0,COUNTIF($DR12:DT12,$EG12:$IV12),0)),\"\")","v":"{Cost}"},{"$f":"IFERROR(INDEX($EG12:$IV12,MATCH(0,COUNTIF($DR12:DU12,$EG12:$IV12),0)),\"\")","v":"{Measure:Quantity}"},{"$f":"IFERROR(INDEX($EG12:$IV12,MATCH(0,COUNTIF($DR12:DV12,$EG12:$IV12),0)),\"\")","v":"{Primary heating type}"},{"$f":"IFERROR(INDEX($EG12:$IV12,MATCH(0,COUNTIF($DR12:DW12,$EG12:$IV12),0)),\"\")","v":""},{"$f":"IFERROR(INDEX($EG12:$IV12,MATCH(0,COUNTIF($DR12:DX12,$EG12:$IV12),0)),\"\")","v":""},{"$f":"IFERROR(INDEX($EG12:$IV12,MATCH(0,COUNTIF($DR12:DY12,$EG12:$IV12),0)),\"\")","v":""},{"$f":"IFERROR(INDEX($EG12:$IV12,MATCH(0,COUNTIF($DR12:DZ12,$EG12:$IV12),0)),\"\")","v":""},{"$f":"IFERROR(INDEX($EG12:$IV12,MATCH(0,COUNTIF($DR12:EA12,$EG12:$IV12),0)),\"\")","v":""},{"$f":"IFERROR(INDEX($EG12:$IV12,MATCH(0,COUNTIF($DR12:EB12,$EG12:$IV12),0)),\"\")","v":""},{"$f":"IFERROR(INDEX($EG12:$IV12,MATCH(0,COUNTIF($DR12:EC12,$EG12:$IV12),0)),\"\")","v":""},null,null,{"$f":"IFERROR(MID($G12,FIND(CHAR(160),SUBSTITUTE($G12,\"{\",CHAR(160),EG$1)),FIND(CHAR(160),SUBSTITUTE($G12,\"}\",CHAR(160),EG$1))-FIND(CHAR(160),SUBSTITUTE($G12,\"{\",CHAR(160),EG$1))+1),\"\")","v":"{Cost}"},{"$f":"IFERROR(MID($G12,FIND(CHAR(160),SUBSTITUTE($G12,\"{\",CHAR(160),EH$1)),FIND(CHAR(160),SUBSTITUTE($G12,\"}\",CHAR(160),EH$1))-FIND(CHAR(160),SUBSTITUTE($G12,\"{\",CHAR(160),EH$1))+1),\"\")","v":"{Measure:Quantity}"},{"$f":"IFERROR(MID($G12,FIND(CHAR(160),SUBSTITUTE($G12,\"{\",CHAR(160),EI$1)),FIND(CHAR(160),SUBSTITUTE($G12,\"}\",CHAR(160),EI$1))-FIND(CHAR(160),SUBSTITUTE($G12,\"{\",CHAR(160),EI$1))+1),\"\")","v":""},{"$f":"IFERROR(MID($G12,FIND(CHAR(160),SUBSTITUTE($G12,\"{\",CHAR(160),EJ$1)),FIND(CHAR(160),SUBSTITUTE($G12,\"}\",CHAR(160),EJ$1))-FIND(CHAR(160),SUBSTITUTE($G12,\"{\",CHAR(160),EJ$1))+1),\"\")","v":""},{"$f":"IFERROR(MID($G12,FIND(CHAR(160),SUBSTITUTE($G12,\"{\",CHAR(160),EK$1)),FIND(CHAR(160),SUBSTITUTE($G12,\"}\",CHAR(160),EK$1))-FIND(CHAR(160),SUBSTITUTE($G12,\"{\",CHAR(160),EK$1))+1),\"\")","v":""},{"$f":"IFERROR(MID($G12,FIND(CHAR(160),SUBSTITUTE($G12,\"{\",CHAR(160),EL$1)),FIND(CHAR(160),SUBSTITUTE($G12,\"}\",CHAR(160),EL$1))-FIND(CHAR(160),SUBSTITUTE($G12,\"{\",CHAR(160),EL$1))+1),\"\")","v":""},{"$f":"IFERROR(MID($G12,FIND(CHAR(160),SUBSTITUTE($G12,\"{\",CHAR(160),EM$1)),FIND(CHAR(160),SUBSTITUTE($G12,\"}\",CHAR(160),EM$1))-FIND(CHAR(160),SUBSTITUTE($G12,\"{\",CHAR(160),EM$1))+1),\"\")","v":""},{"$f":"IFERROR(MID($G12,FIND(CHAR(160),SUBSTITUTE($G12,\"{\",CHAR(160),EN$1)),FIND(CHAR(160),SUBSTITUTE($G12,\"}\",CHAR(160),EN$1))-FIND(CHAR(160),SUBSTITUTE($G12,\"{\",CHAR(160),EN$1))+1),\"\")","v":""},{"$f":"IFERROR(MID($G12,FIND(CHAR(160),SUBSTITUTE($G12,\"{\",CHAR(160),EO$1)),FIND(CHAR(160),SUBSTITUTE($G12,\"}\",CHAR(160),EO$1))-FIND(CHAR(160),SUBSTITUTE($G12,\"{\",CHAR(160),EO$1))+1),\"\")","v":""},{"$f":"IFERROR(MID($G12,FIND(CHAR(160),SUBSTITUTE($G12,\"{\",CHAR(160),EP$1)),FIND(CHAR(160),SUBSTITUTE($G12,\"}\",CHAR(160),EP$1))-FIND(CHAR(160),SUBSTITUTE($G12,\"{\",CHAR(160),EP$1))+1),\"\")","v":""},{"$f":"IFERROR(MID($J12,FIND(CHAR(160),SUBSTITUTE($J12,\"{\",CHAR(160),EQ$1)),FIND(CHAR(160),SUBSTITUTE($J12,\"}\",CHAR(160),EQ$1))-FIND(CHAR(160),SUBSTITUTE($J12,\"{\",CHAR(160),EQ$1))+1),\"\")","v":"{Primary heating type}"},{"$f":"IFERROR(MID($J12,FIND(CHAR(160),SUBSTITUTE($J12,\"{\",CHAR(160),ER$1)),FIND(CHAR(160),SUBSTITUTE($J12,\"}\",CHAR(160),ER$1))-FIND(CHAR(160),SUBSTITUTE($J12,\"{\",CHAR(160),ER$1))+1),\"\")","v":"{Measure:Quantity}"},{"$f":"IFERROR(MID($J12,FIND(CHAR(160),SUBSTITUTE($J12,\"{\",CHAR(160),ES$1)),FIND(CHAR(160),SUBSTITUTE($J12,\"}\",CHAR(160),ES$1))-FIND(CHAR(160),SUBSTITUTE($J12,\"{\",CHAR(160),ES$1))+1),\"\")","v":""},{"$f":"IFERROR(MID($J12,FIND(CHAR(160),SUBSTITUTE($J12,\"{\",CHAR(160),ET$1)),FIND(CHAR(160),SUBSTITUTE($J12,\"}\",CHAR(160),ET$1))-FIND(CHAR(160),SUBSTITUTE($J12,\"{\",CHAR(160),ET$1))+1),\"\")","v":""},{"$f":"IFERROR(MID($J12,FIND(CHAR(160),SUBSTITUTE($J12,\"{\",CHAR(160),EU$1)),FIND(CHAR(160),SUBSTITUTE($J12,\"}\",CHAR(160),EU$1))-FIND(CHAR(160),SUBSTITUTE($J12,\"{\",CHAR(160),EU$1))+1),\"\")","v":""},{"$f":"IFERROR(MID($J12,FIND(CHAR(160),SUBSTITUTE($J12,\"{\",CHAR(160),EV$1)),FIND(CHAR(160),SUBSTITUTE($J12,\"}\",CHAR(160),EV$1))-FIND(CHAR(160),SUBSTITUTE($J12,\"{\",CHAR(160),EV$1))+1),\"\")","v":""},{"$f":"IFERROR(MID($J12,FIND(CHAR(160),SUBSTITUTE($J12,\"{\",CHAR(160),EW$1)),FIND(CHAR(160),SUBSTITUTE($J12,\"}\",CHAR(160),EW$1))-FIND(CHAR(160),SUBSTITUTE($J12,\"{\",CHAR(160),EW$1))+1),\"\")","v":""},{"$f":"IFERROR(MID($J12,FIND(CHAR(160),SUBSTITUTE($J12,\"{\",CHAR(160),EX$1)),FIND(CHAR(160),SUBSTITUTE($J12,\"}\",CHAR(160),EX$1))-FIND(CHAR(160),SUBSTITUTE($J12,\"{\",CHAR(160),EX$1))+1),\"\")","v":""},{"$f":"IFERROR(MID($J12,FIND(CHAR(160),SUBSTITUTE($J12,\"{\",CHAR(160),EY$1)),FIND(CHAR(160),SUBSTITUTE($J12,\"}\",CHAR(160),EY$1))-FIND(CHAR(160),SUBSTITUTE($J12,\"{\",CHAR(160),EY$1))+1),\"\")","v":""},{"$f":"IFERROR(MID($J12,FIND(CHAR(160),SUBSTITUTE($J12,\"{\",CHAR(160),EZ$1)),FIND(CHAR(160),SUBSTITUTE($J12,\"}\",CHAR(160),EZ$1))-FIND(CHAR(160),SUBSTITUTE($J12,\"{\",CHAR(160),EZ$1))+1),\"\")","v":""},{"$f":"IFERROR(MID($J12,FIND(CHAR(160),SUBSTITUTE($J12,\"{\",CHAR(160),FA$1)),FIND(CHAR(160),SUBSTITUTE($J12,\"}\",CHAR(160),FA$1))-FIND(CHAR(160),SUBSTITUTE($J12,\"{\",CHAR(160),FA$1))+1),\"\")","v":"{Primary heating type}"},{"$f":"IFERROR(MID($J12,FIND(CHAR(160),SUBSTITUTE($J12,\"{\",CHAR(160),FB$1)),FIND(CHAR(160),SUBSTITUTE($J12,\"}\",CHAR(160),FB$1))-FIND(CHAR(160),SUBSTITUTE($J12,\"{\",CHAR(160),FB$1))+1),\"\")","v":"{Measure:Quantity}"},{"$f":"IFERROR(MID($O12,FIND(CHAR(160),SUBSTITUTE($O12,\"{\",CHAR(160),FC$1)),FIND(CHAR(160),SUBSTITUTE($O12,\"}\",CHAR(160),FC$1))-FIND(CHAR(160),SUBSTITUTE($O12,\"{\",CHAR(160),FC$1))+1),\"\")","v":""},{"$f":"IFERROR(MID($O12,FIND(CHAR(160),SUBSTITUTE($O12,\"{\",CHAR(160),FD$1)),FIND(CHAR(160),SUBSTITUTE($O12,\"}\",CHAR(160),FD$1))-FIND(CHAR(160),SUBSTITUTE($O12,\"{\",CHAR(160),FD$1))+1),\"\")","v":""},{"$f":"IFERROR(MID($O12,FIND(CHAR(160),SUBSTITUTE($O12,\"{\",CHAR(160),FE$1)),FIND(CHAR(160),SUBSTITUTE($O12,\"}\",CHAR(160),FE$1))-FIND(CHAR(160),SUBSTITUTE($O12,\"{\",CHAR(160),FE$1))+1),\"\")","v":""},{"$f":"IFERROR(MID($O12,FIND(CHAR(160),SUBSTITUTE($O12,\"{\",CHAR(160),FF$1)),FIND(CHAR(160),SUBSTITUTE($O12,\"}\",CHAR(160),FF$1))-FIND(CHAR(160),SUBSTITUTE($O12,\"{\",CHAR(160),FF$1))+1),\"\")","v":""},{"$f":"IFERROR(MID($O12,FIND(CHAR(160),SUBSTITUTE($O12,\"{\",CHAR(160),FG$1)),FIND(CHAR(160),SUBSTITUTE($O12,\"}\",CHAR(160),FG$1))-FIND(CHAR(160),SUBSTITUTE($O12,\"{\",CHAR(160),FG$1))+1),\"\")","v":""},{"$f":"IFERROR(MID($O12,FIND(CHAR(160),SUBSTITUTE($O12,\"{\",CHAR(160),FH$1)),FIND(CHAR(160),SUBSTITUTE($O12,\"}\",CHAR(160),FH$1))-FIND(CHAR(160),SUBSTITUTE($O12,\"{\",CHAR(160),FH$1))+1),\"\")","v":""},{"$f":"IFERROR(MID($O12,FIND(CHAR(160),SUBSTITUTE($O12,\"{\",CHAR(160),FI$1)),FIND(CHAR(160),SUBSTITUTE($O12,\"}\",CHAR(160),FI$1))-FIND(CHAR(160),SUBSTITUTE($O12,\"{\",CHAR(160),FI$1))+1),\"\")","v":""},{"$f":"IFERROR(MID($O12,FIND(CHAR(160),SUBSTITUTE($O12,\"{\",CHAR(160),FJ$1)),FIND(CHAR(160),SUBSTITUTE($O12,\"}\",CHAR(160),FJ$1))-FIND(CHAR(160),SUBSTITUTE($O12,\"{\",CHAR(160),FJ$1))+1),\"\")","v":""},{"$f":"IFERROR(MID($O12,FIND(CHAR(160),SUBSTITUTE($O12,\"{\",CHAR(160),FK$1)),FIND(CHAR(160),SUBSTITUTE($O12,\"}\",CHAR(160),FK$1))-FIND(CHAR(160),SUBSTITUTE($O12,\"{\",CHAR(160),FK$1))+1),\"\")","v":"{Primary heating type}"},{"$f":"IFERROR(MID($O12,FIND(CHAR(160),SUBSTITUTE($O12,\"{\",CHAR(160),FL$1)),FIND(CHAR(160),SUBSTITUTE($O12,\"}\",CHAR(160),FL$1))-FIND(CHAR(160),SUBSTITUTE($O12,\"{\",CHAR(160),FL$1))+1),\"\")","v":"{Primary heating type}"},{"$f":"IFERROR(MID($R12,FIND(CHAR(160),SUBSTITUTE($R12,\"{\",CHAR(160),FM$1)),FIND(CHAR(160),SUBSTITUTE($R12,\"}\",CHAR(160),FM$1))-FIND(CHAR(160),SUBSTITUTE($R12,\"{\",CHAR(160),FM$1))+1),\"\")","v":""},{"$f":"IFERROR(MID($R12,FIND(CHAR(160),SUBSTITUTE($R12,\"{\",CHAR(160),FN$1)),FIND(CHAR(160),SUBSTITUTE($R12,\"}\",CHAR(160),FN$1))-FIND(CHAR(160),SUBSTITUTE($R12,\"{\",CHAR(160),FN$1))+1),\"\")","v":""},{"$f":"IFERROR(MID($R12,FIND(CHAR(160),SUBSTITUTE($R12,\"{\",CHAR(160),FO$1)),FIND(CHAR(160),SUBSTITUTE($R12,\"}\",CHAR(160),FO$1))-FIND(CHAR(160),SUBSTITUTE($R12,\"{\",CHAR(160),FO$1))+1),\"\")","v":""},{"$f":"IFERROR(MID($R12,FIND(CHAR(160),SUBSTITUTE($R12,\"{\",CHAR(160),FP$1)),FIND(CHAR(160),SUBSTITUTE($R12,\"}\",CHAR(160),FP$1))-FIND(CHAR(160),SUBSTITUTE($R12,\"{\",CHAR(160),FP$1))+1),\"\")","v":""},{"$f":"IFERROR(MID($R12,FIND(CHAR(160),SUBSTITUTE($R12,\"{\",CHAR(160),FQ$1)),FIND(CHAR(160),SUBSTITUTE($R12,\"}\",CHAR(160),FQ$1))-FIND(CHAR(160),SUBSTITUTE($R12,\"{\",CHAR(160),FQ$1))+1),\"\")","v":""},{"$f":"IFERROR(MID($R12,FIND(CHAR(160),SUBSTITUTE($R12,\"{\",CHAR(160),FR$1)),FIND(CHAR(160),SUBSTITUTE($R12,\"}\",CHAR(160),FR$1))-FIND(CHAR(160),SUBSTITUTE($R12,\"{\",CHAR(160),FR$1))+1),\"\")","v":""},{"$f":"IFERROR(MID($R12,FIND(CHAR(160),SUBSTITUTE($R12,\"{\",CHAR(160),FS$1)),FIND(CHAR(160),SUBSTITUTE($R12,\"}\",CHAR(160),FS$1))-FIND(CHAR(160),SUBSTITUTE($R12,\"{\",CHAR(160),FS$1))+1),\"\")","v":""},{"$f":"IFERROR(MID($R12,FIND(CHAR(160),SUBSTITUTE($R12,\"{\",CHAR(160),FT$1)),FIND(CHAR(160),SUBSTITUTE($R12,\"}\",CHAR(160),FT$1))-FIND(CHAR(160),SUBSTITUTE($R12,\"{\",CHAR(160),FT$1))+1),\"\")","v":""},{"$f":"IFERROR(MID($R12,FIND(CHAR(160),SUBSTITUTE($R12,\"{\",CHAR(160),FU$1)),FIND(CHAR(160),SUBSTITUTE($R12,\"}\",CHAR(160),FU$1))-FIND(CHAR(160),SUBSTITUTE($R12,\"{\",CHAR(160),FU$1))+1),\"\")","v":""},{"$f":"IFERROR(MID($R12,FIND(CHAR(160),SUBSTITUTE($R12,\"{\",CHAR(160),FV$1)),FIND(CHAR(160),SUBSTITUTE($R12,\"}\",CHAR(160),FV$1))-FIND(CHAR(160),SUBSTITUTE($R12,\"{\",CHAR(160),FV$1))+1),\"\")","v":""},{"$f":"IFERROR(MID($U12,FIND(CHAR(160),SUBSTITUTE($U12,\"{\",CHAR(160),FW$1)),FIND(CHAR(160),SUBSTITUTE($U12,\"}\",CHAR(160),FW$1))-FIND(CHAR(160),SUBSTITUTE($U12,\"{\",CHAR(160),FW$1))+1),\"\")","v":""},{"$f":"IFERROR(MID($U12,FIND(CHAR(160),SUBSTITUTE($U12,\"{\",CHAR(160),FX$1)),FIND(CHAR(160),SUBSTITUTE($U12,\"}\",CHAR(160),FX$1))-FIND(CHAR(160),SUBSTITUTE($U12,\"{\",CHAR(160),FX$1))+1),\"\")","v":""},{"$f":"IFERROR(MID($U12,FIND(CHAR(160),SUBSTITUTE($U12,\"{\",CHAR(160),FY$1)),FIND(CHAR(160),SUBSTITUTE($U12,\"}\",CHAR(160),FY$1))-FIND(CHAR(160),SUBSTITUTE($U12,\"{\",CHAR(160),FY$1))+1),\"\")","v":""},{"$f":"IFERROR(MID($U12,FIND(CHAR(160),SUBSTITUTE($U12,\"{\",CHAR(160),FZ$1)),FIND(CHAR(160),SUBSTITUTE($U12,\"}\",CHAR(160),FZ$1))-FIND(CHAR(160),SUBSTITUTE($U12,\"{\",CHAR(160),FZ$1))+1),\"\")","v":""},{"$f":"IFERROR(MID($U12,FIND(CHAR(160),SUBSTITUTE($U12,\"{\",CHAR(160),GA$1)),FIND(CHAR(160),SUBSTITUTE($U12,\"}\",CHAR(160),GA$1))-FIND(CHAR(160),SUBSTITUTE($U12,\"{\",CHAR(160),GA$1))+1),\"\")","v":""},{"$f":"IFERROR(MID($U12,FIND(CHAR(160),SUBSTITUTE($U12,\"{\",CHAR(160),GB$1)),FIND(CHAR(160),SUBSTITUTE($U12,\"}\",CHAR(160),GB$1))-FIND(CHAR(160),SUBSTITUTE($U12,\"{\",CHAR(160),GB$1))+1),\"\")","v":""},{"$f":"IFERROR(MID($U12,FIND(CHAR(160),SUBSTITUTE($U12,\"{\",CHAR(160),GC$1)),FIND(CHAR(160),SUBSTITUTE($U12,\"}\",CHAR(160),GC$1))-FIND(CHAR(160),SUBSTITUTE($U12,\"{\",CHAR(160),GC$1))+1),\"\")","v":""},{"$f":"IFERROR(MID($U12,FIND(CHAR(160),SUBSTITUTE($U12,\"{\",CHAR(160),GD$1)),FIND(CHAR(160),SUBSTITUTE($U12,\"}\",CHAR(160),GD$1))-FIND(CHAR(160),SUBSTITUTE($U12,\"{\",CHAR(160),GD$1))+1),\"\")","v":""},{"$f":"IFERROR(MID($U12,FIND(CHAR(160),SUBSTITUTE($U12,\"{\",CHAR(160),GE$1)),FIND(CHAR(160),SUBSTITUTE($U12,\"}\",CHAR(160),GE$1))-FIND(CHAR(160),SUBSTITUTE($U12,\"{\",CHAR(160),GE$1))+1),\"\")","v":"{Primary heating type}"},{"$f":"IFERROR(MID($U12,FIND(CHAR(160),SUBSTITUTE($U12,\"{\",CHAR(160),GF$1)),FIND(CHAR(160),SUBSTITUTE($U12,\"}\",CHAR(160),GF$1))-FIND(CHAR(160),SUBSTITUTE($U12,\"{\",CHAR(160),GF$1))+1),\"\")","v":"{Primary heating type}"},{"$f":"IFERROR(MID($V12,FIND(CHAR(160),SUBSTITUTE($V12,\"{\",CHAR(160),GG$1)),FIND(CHAR(160),SUBSTITUTE($V12,\"}\",CHAR(160),GG$1))-FIND(CHAR(160),SUBSTITUTE($V12,\"{\",CHAR(160),GG$1))+1),\"\")","v":""},{"$f":"IFERROR(MID($V12,FIND(CHAR(160),SUBSTITUTE($V12,\"{\",CHAR(160),GH$1)),FIND(CHAR(160),SUBSTITUTE($V12,\"}\",CHAR(160),GH$1))-FIND(CHAR(160),SUBSTITUTE($V12,\"{\",CHAR(160),GH$1))+1),\"\")","v":""},{"$f":"IFERROR(MID($V12,FIND(CHAR(160),SUBSTITUTE($V12,\"{\",CHAR(160),GI$1)),FIND(CHAR(160),SUBSTITUTE($V12,\"}\",CHAR(160),GI$1))-FIND(CHAR(160),SUBSTITUTE($V12,\"{\",CHAR(160),GI$1))+1),\"\")","v":""},{"$f":"IFERROR(MID($V12,FIND(CHAR(160),SUBSTITUTE($V12,\"{\",CHAR(160),GJ$1)),FIND(CHAR(160),SUBSTITUTE($V12,\"}\",CHAR(160),GJ$1))-FIND(CHAR(160),SUBSTITUTE($V12,\"{\",CHAR(160),GJ$1))+1),\"\")","v":""},{"$f":"IFERROR(MID($V12,FIND(CHAR(160),SUBSTITUTE($V12,\"{\",CHAR(160),GK$1)),FIND(CHAR(160),SUBSTITUTE($V12,\"}\",CHAR(160),GK$1))-FIND(CHAR(160),SUBSTITUTE($V12,\"{\",CHAR(160),GK$1))+1),\"\")","v":""},{"$f":"IFERROR(MID($V12,FIND(CHAR(160),SUBSTITUTE($V12,\"{\",CHAR(160),GL$1)),FIND(CHAR(160),SUBSTITUTE($V12,\"}\",CHAR(160),GL$1))-FIND(CHAR(160),SUBSTITUTE($V12,\"{\",CHAR(160),GL$1))+1),\"\")","v":""},{"$f":"IFERROR(MID($V12,FIND(CHAR(160),SUBSTITUTE($V12,\"{\",CHAR(160),GM$1)),FIND(CHAR(160),SUBSTITUTE($V12,\"}\",CHAR(160),GM$1))-FIND(CHAR(160),SUBSTITUTE($V12,\"{\",CHAR(160),GM$1))+1),\"\")","v":""},{"$f":"IFERROR(MID($V12,FIND(CHAR(160),SUBSTITUTE($V12,\"{\",CHAR(160),GN$1)),FIND(CHAR(160),SUBSTITUTE($V12,\"}\",CHAR(160),GN$1))-FIND(CHAR(160),SUBSTITUTE($V12,\"{\",CHAR(160),GN$1))+1),\"\")","v":""},{"$f":"IFERROR(MID($V12,FIND(CHAR(160),SUBSTITUTE($V12,\"{\",CHAR(160),GO$1)),FIND(CHAR(160),SUBSTITUTE($V12,\"}\",CHAR(160),GO$1))-FIND(CHAR(160),SUBSTITUTE($V12,\"{\",CHAR(160),GO$1))+1),\"\")","v":""},{"$f":"IFERROR(MID($V12,FIND(CHAR(160),SUBSTITUTE($V12,\"{\",CHAR(160),GP$1)),FIND(CHAR(160),SUBSTITUTE($V12,\"}\",CHAR(160),GP$1))-FIND(CHAR(160),SUBSTITUTE($V12,\"{\",CHAR(160),GP$1))+1),\"\")","v":""},{"$f":"IFERROR(MID($W12,FIND(CHAR(160),SUBSTITUTE($W12,\"{\",CHAR(160),GQ$1)),FIND(CHAR(160),SUBSTITUTE($W12,\"}\",CHAR(160),GQ$1))-FIND(CHAR(160),SUBSTITUTE($W12,\"{\",CHAR(160),GQ$1))+1),\"\")","v":""},{"$f":"IFERROR(MID($W12,FIND(CHAR(160),SUBSTITUTE($W12,\"{\",CHAR(160),GR$1)),FIND(CHAR(160),SUBSTITUTE($W12,\"}\",CHAR(160),GR$1))-FIND(CHAR(160),SUBSTITUTE($W12,\"{\",CHAR(160),GR$1))+1),\"\")","v":""},{"$f":"IFERROR(MID($W12,FIND(CHAR(160),SUBSTITUTE($W12,\"{\",CHAR(160),GS$1)),FIND(CHAR(160),SUBSTITUTE($W12,\"}\",CHAR(160),GS$1))-FIND(CHAR(160),SUBSTITUTE($W12,\"{\",CHAR(160),GS$1))+1),\"\")","v":""},{"$f":"IFERROR(MID($W12,FIND(CHAR(160),SUBSTITUTE($W12,\"{\",CHAR(160),GT$1)),FIND(CHAR(160),SUBSTITUTE($W12,\"}\",CHAR(160),GT$1))-FIND(CHAR(160),SUBSTITUTE($W12,\"{\",CHAR(160),GT$1))+1),\"\")","v":""},{"$f":"IFERROR(MID($W12,FIND(CHAR(160),SUBSTITUTE($W12,\"{\",CHAR(160),GU$1)),FIND(CHAR(160),SUBSTITUTE($W12,\"}\",CHAR(160),GU$1))-FIND(CHAR(160),SUBSTITUTE($W12,\"{\",CHAR(160),GU$1))+1),\"\")","v":""},{"$f":"IFERROR(MID($W12,FIND(CHAR(160),SUBSTITUTE($W12,\"{\",CHAR(160),GV$1)),FIND(CHAR(160),SUBSTITUTE($W12,\"}\",CHAR(160),GV$1))-FIND(CHAR(160),SUBSTITUTE($W12,\"{\",CHAR(160),GV$1))+1),\"\")","v":""},{"$f":"IFERROR(MID($W12,FIND(CHAR(160),SUBSTITUTE($W12,\"{\",CHAR(160),GW$1)),FIND(CHAR(160),SUBSTITUTE($W12,\"}\",CHAR(160),GW$1))-FIND(CHAR(160),SUBSTITUTE($W12,\"{\",CHAR(160),GW$1))+1),\"\")","v":""},{"$f":"IFERROR(MID($W12,FIND(CHAR(160),SUBSTITUTE($W12,\"{\",CHAR(160),GX$1)),FIND(CHAR(160),SUBSTITUTE($W12,\"}\",CHAR(160),GX$1))-FIND(CHAR(160),SUBSTITUTE($W12,\"{\",CHAR(160),GX$1))+1),\"\")","v":""},{"$f":"IFERROR(MID($W12,FIND(CHAR(160),SUBSTITUTE($W12,\"{\",CHAR(160),GY$1)),FIND(CHAR(160),SUBSTITUTE($W12,\"}\",CHAR(160),GY$1))-FIND(CHAR(160),SUBSTITUTE($W12,\"{\",CHAR(160),GY$1))+1),\"\")","v":"{Primary heating type}"},{"$f":"IFERROR(MID($W12,FIND(CHAR(160),SUBSTITUTE($W12,\"{\",CHAR(160),GZ$1)),FIND(CHAR(160),SUBSTITUTE($W12,\"}\",CHAR(160),GZ$1))-FIND(CHAR(160),SUBSTITUTE($W12,\"{\",CHAR(160),GZ$1))+1),\"\")","v":"{Primary heating type}"},{"$f":"IFERROR(MID($X12,FIND(CHAR(160),SUBSTITUTE($X12,\"{\",CHAR(160),HA$1)),FIND(CHAR(160),SUBSTITUTE($X12,\"}\",CHAR(160),HA$1))-FIND(CHAR(160),SUBSTITUTE($X12,\"{\",CHAR(160),HA$1))+1),\"\")","v":""},{"$f":"IFERROR(MID($X12,FIND(CHAR(160),SUBSTITUTE($X12,\"{\",CHAR(160),HB$1)),FIND(CHAR(160),SUBSTITUTE($X12,\"}\",CHAR(160),HB$1))-FIND(CHAR(160),SUBSTITUTE($X12,\"{\",CHAR(160),HB$1))+1),\"\")","v":""},{"$f":"IFERROR(MID($X12,FIND(CHAR(160),SUBSTITUTE($X12,\"{\",CHAR(160),HC$1)),FIND(CHAR(160),SUBSTITUTE($X12,\"}\",CHAR(160),HC$1))-FIND(CHAR(160),SUBSTITUTE($X12,\"{\",CHAR(160),HC$1))+1),\"\")","v":""},{"$f":"IFERROR(MID($X12,FIND(CHAR(160),SUBSTITUTE($X12,\"{\",CHAR(160),HD$1)),FIND(CHAR(160),SUBSTITUTE($X12,\"}\",CHAR(160),HD$1))-FIND(CHAR(160),SUBSTITUTE($X12,\"{\",CHAR(160),HD$1))+1),\"\")","v":""},{"$f":"IFERROR(MID($X12,FIND(CHAR(160),SUBSTITUTE($X12,\"{\",CHAR(160),HE$1)),FIND(CHAR(160),SUBSTITUTE($X12,\"}\",CHAR(160),HE$1))-FIND(CHAR(160),SUBSTITUTE($X12,\"{\",CHAR(160),HE$1))+1),\"\")","v":""},{"$f":"IFERROR(MID($X12,FIND(CHAR(160),SUBSTITUTE($X12,\"{\",CHAR(160),HF$1)),FIND(CHAR(160),SUBSTITUTE($X12,\"}\",CHAR(160),HF$1))-FIND(CHAR(160),SUBSTITUTE($X12,\"{\",CHAR(160),HF$1))+1),\"\")","v":""},{"$f":"IFERROR(MID($X12,FIND(CHAR(160),SUBSTITUTE($X12,\"{\",CHAR(160),HG$1)),FIND(CHAR(160),SUBSTITUTE($X12,\"}\",CHAR(160),HG$1))-FIND(CHAR(160),SUBSTITUTE($X12,\"{\",CHAR(160),HG$1))+1),\"\")","v":""},{"$f":"IFERROR(MID($X12,FIND(CHAR(160),SUBSTITUTE($X12,\"{\",CHAR(160),HH$1)),FIND(CHAR(160),SUBSTITUTE($X12,\"}\",CHAR(160),HH$1))-FIND(CHAR(160),SUBSTITUTE($X12,\"{\",CHAR(160),HH$1))+1),\"\")","v":""},{"$f":"IFERROR(MID($X12,FIND(CHAR(160),SUBSTITUTE($X12,\"{\",CHAR(160),HI$1)),FIND(CHAR(160),SUBSTITUTE($X12,\"}\",CHAR(160),HI$1))-FIND(CHAR(160),SUBSTITUTE($X12,\"{\",CHAR(160),HI$1))+1),\"\")","v":"{Primary heating type}"},{"$f":"IFERROR(MID($X12,FIND(CHAR(160),SUBSTITUTE($X12,\"{\",CHAR(160),HJ$1)),FIND(CHAR(160),SUBSTITUTE($X12,\"}\",CHAR(160),HJ$1))-FIND(CHAR(160),SUBSTITUTE($X12,\"{\",CHAR(160),HJ$1))+1),\"\")","v":"{Primary heating type}"},{"$f":"IFERROR(MID($Y12,FIND(CHAR(160),SUBSTITUTE($Y12,\"{\",CHAR(160),HK$1)),FIND(CHAR(160),SUBSTITUTE($Y12,\"}\",CHAR(160),HK$1))-FIND(CHAR(160),SUBSTITUTE($Y12,\"{\",CHAR(160),HK$1))+1),\"\")","v":""},{"$f":"IFERROR(MID($Y12,FIND(CHAR(160),SUBSTITUTE($Y12,\"{\",CHAR(160),HL$1)),FIND(CHAR(160),SUBSTITUTE($Y12,\"}\",CHAR(160),HL$1))-FIND(CHAR(160),SUBSTITUTE($Y12,\"{\",CHAR(160),HL$1))+1),\"\")","v":""},{"$f":"IFERROR(MID($Y12,FIND(CHAR(160),SUBSTITUTE($Y12,\"{\",CHAR(160),HM$1)),FIND(CHAR(160),SUBSTITUTE($Y12,\"}\",CHAR(160),HM$1))-FIND(CHAR(160),SUBSTITUTE($Y12,\"{\",CHAR(160),HM$1))+1),\"\")","v":""},{"$f":"IFERROR(MID($Y12,FIND(CHAR(160),SUBSTITUTE($Y12,\"{\",CHAR(160),HN$1)),FIND(CHAR(160),SUBSTITUTE($Y12,\"}\",CHAR(160),HN$1))-FIND(CHAR(160),SUBSTITUTE($Y12,\"{\",CHAR(160),HN$1))+1),\"\")","v":""},{"$f":"IFERROR(MID($Y12,FIND(CHAR(160),SUBSTITUTE($Y12,\"{\",CHAR(160),HO$1)),FIND(CHAR(160),SUBSTITUTE($Y12,\"}\",CHAR(160),HO$1))-FIND(CHAR(160),SUBSTITUTE($Y12,\"{\",CHAR(160),HO$1))+1),\"\")","v":""},{"$f":"IFERROR(MID($Y12,FIND(CHAR(160),SUBSTITUTE($Y12,\"{\",CHAR(160),HP$1)),FIND(CHAR(160),SUBSTITUTE($Y12,\"}\",CHAR(160),HP$1))-FIND(CHAR(160),SUBSTITUTE($Y12,\"{\",CHAR(160),HP$1))+1),\"\")","v":""},{"$f":"IFERROR(MID($Y12,FIND(CHAR(160),SUBSTITUTE($Y12,\"{\",CHAR(160),HQ$1)),FIND(CHAR(160),SUBSTITUTE($Y12,\"}\",CHAR(160),HQ$1))-FIND(CHAR(160),SUBSTITUTE($Y12,\"{\",CHAR(160),HQ$1))+1),\"\")","v":""},{"$f":"IFERROR(MID($Y12,FIND(CHAR(160),SUBSTITUTE($Y12,\"{\",CHAR(160),HR$1)),FIND(CHAR(160),SUBSTITUTE($Y12,\"}\",CHAR(160),HR$1))-FIND(CHAR(160),SUBSTITUTE($Y12,\"{\",CHAR(160),HR$1))+1),\"\")","v":""},{"$f":"IFERROR(MID($Y12,FIND(CHAR(160),SUBSTITUTE($Y12,\"{\",CHAR(160),HS$1)),FIND(CHAR(160),SUBSTITUTE($Y12,\"}\",CHAR(160),HS$1))-FIND(CHAR(160),SUBSTITUTE($Y12,\"{\",CHAR(160),HS$1))+1),\"\")","v":"{Primary heating type}"},{"$f":"IFERROR(MID($Y12,FIND(CHAR(160),SUBSTITUTE($Y12,\"{\",CHAR(160),HT$1)),FIND(CHAR(160),SUBSTITUTE($Y12,\"}\",CHAR(160),HT$1))-FIND(CHAR(160),SUBSTITUTE($Y12,\"{\",CHAR(160),HT$1))+1),\"\")","v":"{Primary heating type}"},{"$f":"IFERROR(MID($Z12,FIND(CHAR(160),SUBSTITUTE($Z12,\"{\",CHAR(160),HU$1)),FIND(CHAR(160),SUBSTITUTE($Z12,\"}\",CHAR(160),HU$1))-FIND(CHAR(160),SUBSTITUTE($Z12,\"{\",CHAR(160),HU$1))+1),\"\")","v":""},{"$f":"IFERROR(MID($Z12,FIND(CHAR(160),SUBSTITUTE($Z12,\"{\",CHAR(160),HV$1)),FIND(CHAR(160),SUBSTITUTE($Z12,\"}\",CHAR(160),HV$1))-FIND(CHAR(160),SUBSTITUTE($Z12,\"{\",CHAR(160),HV$1))+1),\"\")","v":""},{"$f":"IFERROR(MID($Z12,FIND(CHAR(160),SUBSTITUTE($Z12,\"{\",CHAR(160),HW$1)),FIND(CHAR(160),SUBSTITUTE($Z12,\"}\",CHAR(160),HW$1))-FIND(CHAR(160),SUBSTITUTE($Z12,\"{\",CHAR(160),HW$1))+1),\"\")","v":""},{"$f":"IFERROR(MID($Z12,FIND(CHAR(160),SUBSTITUTE($Z12,\"{\",CHAR(160),HX$1)),FIND(CHAR(160),SUBSTITUTE($Z12,\"}\",CHAR(160),HX$1))-FIND(CHAR(160),SUBSTITUTE($Z12,\"{\",CHAR(160),HX$1))+1),\"\")","v":""},{"$f":"IFERROR(MID($Z12,FIND(CHAR(160),SUBSTITUTE($Z12,\"{\",CHAR(160),HY$1)),FIND(CHAR(160),SUBSTITUTE($Z12,\"}\",CHAR(160),HY$1))-FIND(CHAR(160),SUBSTITUTE($Z12,\"{\",CHAR(160),HY$1))+1),\"\")","v":""},{"$f":"IFERROR(MID($Z12,FIND(CHAR(160),SUBSTITUTE($Z12,\"{\",CHAR(160),HZ$1)),FIND(CHAR(160),SUBSTITUTE($Z12,\"}\",CHAR(160),HZ$1))-FIND(CHAR(160),SUBSTITUTE($Z12,\"{\",CHAR(160),HZ$1))+1),\"\")","v":""},{"$f":"IFERROR(MID($Z12,FIND(CHAR(160),SUBSTITUTE($Z12,\"{\",CHAR(160),IA$1)),FIND(CHAR(160),SUBSTITUTE($Z12,\"}\",CHAR(160),IA$1))-FIND(CHAR(160),SUBSTITUTE($Z12,\"{\",CHAR(160),IA$1))+1),\"\")","v":""},{"$f":"IFERROR(MID($Z12,FIND(CHAR(160),SUBSTITUTE($Z12,\"{\",CHAR(160),IB$1)),FIND(CHAR(160),SUBSTITUTE($Z12,\"}\",CHAR(160),IB$1))-FIND(CHAR(160),SUBSTITUTE($Z12,\"{\",CHAR(160),IB$1))+1),\"\")","v":""},{"$f":"IFERROR(MID($Z12,FIND(CHAR(160),SUBSTITUTE($Z12,\"{\",CHAR(160),IC$1)),FIND(CHAR(160),SUBSTITUTE($Z12,\"}\",CHAR(160),IC$1))-FIND(CHAR(160),SUBSTITUTE($Z12,\"{\",CHAR(160),IC$1))+1),\"\")","v":"{Primary heating type}"},{"$f":"IFERROR(MID($Z12,FIND(CHAR(160),SUBSTITUTE($Z12,\"{\",CHAR(160),ID$1)),FIND(CHAR(160),SUBSTITUTE($Z12,\"}\",CHAR(160),ID$1))-FIND(CHAR(160),SUBSTITUTE($Z12,\"{\",CHAR(160),ID$1))+1),\"\")","v":"{Primary heating type}"},{"$f":"IFERROR(MID($AA12,FIND(CHAR(160),SUBSTITUTE($AA12,\"{\",CHAR(160),IE$1)),FIND(CHAR(160),SUBSTITUTE($AA12,\"}\",CHAR(160),IE$1))-FIND(CHAR(160),SUBSTITUTE($AA12,\"{\",CHAR(160),IE$1))+1),\"\")","v":""},{"$f":"IFERROR(MID($AA12,FIND(CHAR(160),SUBSTITUTE($AA12,\"{\",CHAR(160),IF$1)),FIND(CHAR(160),SUBSTITUTE($AA12,\"}\",CHAR(160),IF$1))-FIND(CHAR(160),SUBSTITUTE($AA12,\"{\",CHAR(160),IF$1))+1),\"\")","v":""},{"$f":"IFERROR(MID($AA12,FIND(CHAR(160),SUBSTITUTE($AA12,\"{\",CHAR(160),IG$1)),FIND(CHAR(160),SUBSTITUTE($AA12,\"}\",CHAR(160),IG$1))-FIND(CHAR(160),SUBSTITUTE($AA12,\"{\",CHAR(160),IG$1))+1),\"\")","v":""},{"$f":"IFERROR(MID($AA12,FIND(CHAR(160),SUBSTITUTE($AA12,\"{\",CHAR(160),IH$1)),FIND(CHAR(160),SUBSTITUTE($AA12,\"}\",CHAR(160),IH$1))-FIND(CHAR(160),SUBSTITUTE($AA12,\"{\",CHAR(160),IH$1))+1),\"\")","v":""},{"$f":"IFERROR(MID($AA12,FIND(CHAR(160),SUBSTITUTE($AA12,\"{\",CHAR(160),II$1)),FIND(CHAR(160),SUBSTITUTE($AA12,\"}\",CHAR(160),II$1))-FIND(CHAR(160),SUBSTITUTE($AA12,\"{\",CHAR(160),II$1))+1),\"\")","v":""},{"$f":"IFERROR(MID($AA12,FIND(CHAR(160),SUBSTITUTE($AA12,\"{\",CHAR(160),IJ$1)),FIND(CHAR(160),SUBSTITUTE($AA12,\"}\",CHAR(160),IJ$1))-FIND(CHAR(160),SUBSTITUTE($AA12,\"{\",CHAR(160),IJ$1))+1),\"\")","v":""},{"$f":"IFERROR(MID($AA12,FIND(CHAR(160),SUBSTITUTE($AA12,\"{\",CHAR(160),IK$1)),FIND(CHAR(160),SUBSTITUTE($AA12,\"}\",CHAR(160),IK$1))-FIND(CHAR(160),SUBSTITUTE($AA12,\"{\",CHAR(160),IK$1))+1),\"\")","v":""},{"$f":"IFERROR(MID($AA12,FIND(CHAR(160),SUBSTITUTE($AA12,\"{\",CHAR(160),IL$1)),FIND(CHAR(160),SUBSTITUTE($AA12,\"}\",CHAR(160),IL$1))-FIND(CHAR(160),SUBSTITUTE($AA12,\"{\",CHAR(160),IL$1))+1),\"\")","v":""},{"$f":"IFERROR(MID($AA12,FIND(CHAR(160),SUBSTITUTE($AA12,\"{\",CHAR(160),IM$1)),FIND(CHAR(160),SUBSTITUTE($AA12,\"}\",CHAR(160),IM$1))-FIND(CHAR(160),SUBSTITUTE($AA12,\"{\",CHAR(160),IM$1))+1),\"\")","v":"{Primary heating type}"},{"$f":"IFERROR(MID($AA12,FIND(CHAR(160),SUBSTITUTE($AA12,\"{\",CHAR(160),IN$1)),FIND(CHAR(160),SUBSTITUTE($AA12,\"}\",CHAR(160),IN$1))-FIND(CHAR(160),SUBSTITUTE($AA12,\"{\",CHAR(160),IN$1))+1),\"\")","v":"{Primary heating type}"},{"$f":"IFERROR(MID($AB12,FIND(CHAR(160),SUBSTITUTE($AB12,\"{\",CHAR(160),IO$1)),FIND(CHAR(160),SUBSTITUTE($AB12,\"}\",CHAR(160),IO$1))-FIND(CHAR(160),SUBSTITUTE($AB12,\"{\",CHAR(160),IO$1))+1),\"\")","v":""},{"$f":"IFERROR(MID($AB12,FIND(CHAR(160),SUBSTITUTE($AB12,\"{\",CHAR(160),IP$1)),FIND(CHAR(160),SUBSTITUTE($AB12,\"}\",CHAR(160),IP$1))-FIND(CHAR(160),SUBSTITUTE($AB12,\"{\",CHAR(160),IP$1))+1),\"\")","v":""},{"$f":"IFERROR(MID($AB12,FIND(CHAR(160),SUBSTITUTE($AB12,\"{\",CHAR(160),IQ$1)),FIND(CHAR(160),SUBSTITUTE($AB12,\"}\",CHAR(160),IQ$1))-FIND(CHAR(160),SUBSTITUTE($AB12,\"{\",CHAR(160),IQ$1))+1),\"\")","v":""},{"$f":"IFERROR(MID($AB12,FIND(CHAR(160),SUBSTITUTE($AB12,\"{\",CHAR(160),IR$1)),FIND(CHAR(160),SUBSTITUTE($AB12,\"}\",CHAR(160),IR$1))-FIND(CHAR(160),SUBSTITUTE($AB12,\"{\",CHAR(160),IR$1))+1),\"\")","v":""},{"$f":"IFERROR(MID($AB12,FIND(CHAR(160),SUBSTITUTE($AB12,\"{\",CHAR(160),IS$1)),FIND(CHAR(160),SUBSTITUTE($AB12,\"}\",CHAR(160),IS$1))-FIND(CHAR(160),SUBSTITUTE($AB12,\"{\",CHAR(160),IS$1))+1),\"\")","v":""},{"$f":"IFERROR(MID($AB12,FIND(CHAR(160),SUBSTITUTE($AB12,\"{\",CHAR(160),IT$1)),FIND(CHAR(160),SUBSTITUTE($AB12,\"}\",CHAR(160),IT$1))-FIND(CHAR(160),SUBSTITUTE($AB12,\"{\",CHAR(160),IT$1))+1),\"\")","v":""},{"$f":"IFERROR(MID($AB12,FIND(CHAR(160),SUBSTITUTE($AB12,\"{\",CHAR(160),IU$1)),FIND(CHAR(160),SUBSTITUTE($AB12,\"}\",CHAR(160),IU$1))-FIND(CHAR(160),SUBSTITUTE($AB12,\"{\",CHAR(160),IU$1))+1),\"\")","v":""},{"$f":"IFERROR(MID($AB12,FIND(CHAR(160),SUBSTITUTE($AB12,\"{\",CHAR(160),IV$1)),FIND(CHAR(160),SUBSTITUTE($AB12,\"}\",CHAR(160),IV$1))-FIND(CHAR(160),SUBSTITUTE($AB12,\"{\",CHAR(160),IV$1))+1),\"\")","v":""},{"$f":"IFERROR(MID($AB12,FIND(CHAR(160),SUBSTITUTE($AB12,\"{\",CHAR(160),IW$1)),FIND(CHAR(160),SUBSTITUTE($AB12,\"}\",CHAR(160),IW$1))-FIND(CHAR(160),SUBSTITUTE($AB12,\"{\",CHAR(160),IW$1))+1),\"\")","v":""},{"$f":"IFERROR(MID($AB12,FIND(CHAR(160),SUBSTITUTE($AB12,\"{\",CHAR(160),IX$1)),FIND(CHAR(160),SUBSTITUTE($AB12,\"}\",CHAR(160),IX$1))-FIND(CHAR(160),SUBSTITUTE($AB12,\"{\",CHAR(160),IX$1))+1),\"\")","v":""},null,{"$f":"10-COUNTIF(DU12:ED12,\"\")","v":3}]
["Affordable Heat Initiative - Other Fuels","Basement Insulation LIHESP","LBB","2021-07-01","2022-06-30","Calculated","{Cost}*{Measure:Quantity}",0,"Calculated","if({Cost}*0.80>2000,2000,Round({Cost}*0.80,2))*{Measure:Quantity}",0,"2020-07-01","2022-06-30","Calculated","if({Primary heating type}=6,2672,if({Primary heating type}=0,102,0))",null,null,0,null,null,"if({Primary heating type}=6,0.663,if({Primary heating type}=0,0.025,0))",0,"if({Primary heating type}=1,10.986,if({Primary heating type}=0,0.989,0))*10","if({Primary heating type}=2,10.986,if({Primary heating type} = 0,1.439,0))","if({Primary heating type}=3,10.986,if({Primary heating type} = 0,7.514,0))","if({Primary heating type}=4,10.986,if({Primary heating type} = 0,0.154,0))","if({Primary heating type}=5,10.986,if({Primary heating type} = 0,0.472,0))",0,"2019-07-01","2022-06-30",25,1,1,0,0,0,0,1,1,1,0,0,null,{"$f":"DU13","v":"{Cost}"},2326,{"$f":"DV13","v":"{Measure:Quantity}"},1,{"$f":"DW13","v":"{Primary heating type}"},0,{"$f":"DX13","v":""},null,{"$f":"DY13","v":""},null,{"$f":"DZ13","v":""},null,{"$f":"EA13","v":""},null,{"$f":"EB13","v":""},null,{"$f":"EC13","v":""},null,{"$f":"ED13","v":""},null,{"$f":"IF(AW13=6,2672,IF(AW13=0,102,0))","v":102},0,0,{"$f":"0","v":0},0,0,{"$f":"IF(AW13=6,0.663,IF(AW13=0,0.025,0))","v":2.5000000000000001E-2},{"$f":"0","v":0},{"$f":"IF(AW13=1,10.986,IF(AW13=0,0.989,0))*10","v":9.89},{"$f":"IF(AW13=2,10.986,IF(AW13 = 0,1.439,0))","v":1.4390000000000001},{"$f":"IF(AW13=3,10.986,IF(AW13 = 0,7.514,0))","v":7.5140000000000002},{"$f":"IF(AW13=4,10.986,IF(AW13 = 0,0.154,0))","v":0.154},{"$f":"IF(AW13=5,10.986,IF(AW13 = 0,0.472,0))","v":0.47199999999999998},{"$f":"0","v":0},null,"Res","RGGI DR",{"$f":"Benefits(BL13,BR13,BS13,BT13,BU13,BV13,BW13,BX13,BY13,BZ13,AE13,AH13,AI13,AJ13,AK13,AL13,AM13,AN13,AO13,AP13,CA13,CB13)","v":0},138.97737183212951,264.6487016787986,4544.2075883310908,109.37766713862811,1230.8694300669279,190.3596225717649,0,0,{"$f":"SUMPRODUCT(CC13:CK13,--(CC13:CK13>0))","v":6478.4403816193399},{"$f":"-SUMPRODUCT(CC13:CK13,--(CC13:CK13<0))","v":0},null,{"$f":"AS13*AU13","v":2326},null,null,{"$f":"CM13+CO13","v":2326},{"$f":"IF(NetOrGross=\"Net\",(1-AO13+AP13),1)","v":1},{"$f":"(SUMPRODUCT(CC13:CJ13,--(CC13:CJ13>0))+CN13)*CS13/((-SUMPRODUCT(CC13:CJ13,--(CC13:CJ13<0))+MAX(CO13,CV13)+CP13+CQ13)*CS13+IF(FRIncentives=\"Yes\",CV13*(1-CS13),0))","v":2.7852280230521669},1,{"$f":"IF(AS13*0.8>2000,2000,ROUND(AS13*0.8,2))*AU13","v":1860.8},null,"RGGI","y",null,{"$f":"IF(F13=\"Manual Entry\",\"Manual\",IF(G13=\"\",0,\"X=\"&SUBSTITUTE(SUBSTITUTE(SUBSTITUTE(SUBSTITUTE(SUBSTITUTE(SUBSTITUTE(SUBSTITUTE(SUBSTITUTE(SUBSTITUTE(SUBSTITUTE(SUBSTITUTE(SUBSTITUTE(G13,$ED13,$ED$2&ROW($ED13)),$EC13,$EC$2&ROW($EC13)),$EB13,$EB$2&ROW($EB13)),$EA13,$EA$2&ROW($EA13)),$DZ13,$DZ$2&ROW($DZ13)),$DY13,$DY$2&ROW($DY13)),$DX13,$DX$2&ROW($DX13)),$DW13,$DW$2&ROW($DW13)),$DV13,$DV$2&ROW($DV13)),$DU13,$DU$2&ROW($DU13)),$DT13,$DT$2&ROW($DT13)),$DS13,$DS$2&ROW($DS13))))","v":"X=AS13*AU13"},{"$f":"IF(I13=\"Manual Entry\",\"Manual\",IF(J13=\"\",0,\"X=\"&SUBSTITUTE(SUBSTITUTE(SUBSTITUTE(SUBSTITUTE(SUBSTITUTE(SUBSTITUTE(SUBSTITUTE(SUBSTITUTE(SUBSTITUTE(SUBSTITUTE(SUBSTITUTE(SUBSTITUTE(J13,$ED13,$ED$2&ROW($ED13)),$EC13,$EC$2&ROW($EC13)),$EB13,$EB$2&ROW($EB13)),$EA13,$EA$2&ROW($EA13)),$DZ13,$DZ$2&ROW($DZ13)),$DY13,$DY$2&ROW($DY13)),$DX13,$DX$2&ROW($DX13)),$DW13,$DW$2&ROW($DW13)),$DV13,$DV$2&ROW($DV13)),$DU13,$DU$2&ROW($DU13)),$DT13,$DT$2&ROW($DT13)),$DS13,$DS$2&ROW($DS13))))","v":"X=if(AS13*0.80>2000,2000,Round(AS13*0.80,2))*AU13"},{"$f":"IF(O13=\"\",0,\"X=\"&SUBSTITUTE(SUBSTITUTE(SUBSTITUTE(SUBSTITUTE(SUBSTITUTE(SUBSTITUTE(SUBSTITUTE(SUBSTITUTE(SUBSTITUTE(SUBSTITUTE(SUBSTITUTE(SUBSTITUTE(O13,$ED13,$ED$2&ROW($ED13)),$EC13,$EC$2&ROW($EC13)),$EB13,$EB$2&ROW($EB13)),$EA13,$EA$2&ROW($EA13)),$DZ13,$DZ$2&ROW($DZ13)),$DY13,$DY$2&ROW($DY13)),$DX13,$DX$2&ROW($DX13)),$DW13,$DW$2&ROW($DW13)),$DV13,$DV$2&ROW($DV13)),$DU13,$DU$2&ROW($DU13)),$DT13,$DT$2&ROW($DT13)),$DS13,$DS$2&ROW($DS13)))","v":"X=if(AW13=6,2672,if(AW13=0,102,0))"},{"$f":"IF(P13=\"\",0,\"X=\"&SUBSTITUTE(SUBSTITUTE(SUBSTITUTE(SUBSTITUTE(SUBSTITUTE(SUBSTITUTE(SUBSTITUTE(SUBSTITUTE(SUBSTITUTE(SUBSTITUTE(SUBSTITUTE(SUBSTITUTE(P13,$ED13,$ED$2&ROW($ED13)),$EC13,$EC$2&ROW($EC13)),$EB13,$EB$2&ROW($EB13)),$EA13,$EA$2&ROW($EA13)),$DZ13,$DZ$2&ROW($DZ13)),$DY13,$DY$2&ROW($DY13)),$DX13,$DX$2&ROW($DX13)),$DW13,$DW$2&ROW($DW13)),$DV13,$DV$2&ROW($DV13)),$DU13,$DU$2&ROW($DU13)),$DT13,$DT$2&ROW($DT13)),$DS13,$DS$2&ROW($DS13)))","v":0},{"$f":"IF(Q13=\"\",0,\"X=\"&SUBSTITUTE(SUBSTITUTE(SUBSTITUTE(SUBSTITUTE(SUBSTITUTE(SUBSTITUTE(SUBSTITUTE(SUBSTITUTE(SUBSTITUTE(SUBSTITUTE(SUBSTITUTE(SUBSTITUTE(Q13,$ED13,$ED$2&ROW($ED13)),$EC13,$EC$2&ROW($EC13)),$EB13,$EB$2&ROW($EB13)),$EA13,$EA$2&ROW($EA13)),$DZ13,$DZ$2&ROW($DZ13)),$DY13,$DY$2&ROW($DY13)),$DX13,$DX$2&ROW($DX13)),$DW13,$DW$2&ROW($DW13)),$DV13,$DV$2&ROW($DV13)),$DU13,$DU$2&ROW($DU13)),$DT13,$DT$2&ROW($DT13)),$DS13,$DS$2&ROW($DS13)))","v":0},{"$f":"IF(R13=\"\",0,\"X=\"&SUBSTITUTE(SUBSTITUTE(SUBSTITUTE(SUBSTITUTE(SUBSTITUTE(SUBSTITUTE(SUBSTITUTE(SUBSTITUTE(SUBSTITUTE(SUBSTITUTE(SUBSTITUTE(SUBSTITUTE(R13,$ED13,$ED$2&ROW($ED13)),$EC13,$EC$2&ROW($EC13)),$EB13,$EB$2&ROW($EB13)),$EA13,$EA$2&ROW($EA13)),$DZ13,$DZ$2&ROW($DZ13)),$DY13,$DY$2&ROW($DY13)),$DX13,$DX$2&ROW($DX13)),$DW13,$DW$2&ROW($DW13)),$DV13,$DV$2&ROW($DV13)),$DU13,$DU$2&ROW($DU13)),$DT13,$DT$2&ROW($DT13)),$DS13,$DS$2&ROW($DS13)))","v":"X=0"},{"$f":"IF(S13=\"\",0,\"X=\"&SUBSTITUTE(SUBSTITUTE(SUBSTITUTE(SUBSTITUTE(SUBSTITUTE(SUBSTITUTE(SUBSTITUTE(SUBSTITUTE(SUBSTITUTE(SUBSTITUTE(SUBSTITUTE(SUBSTITUTE(S13,$ED13,$ED$2&ROW($ED13)),$EC13,$EC$2&ROW($EC13)),$EB13,$EB$2&ROW($EB13)),$EA13,$EA$2&ROW($EA13)),$DZ13,$DZ$2&ROW($DZ13)),$DY13,$DY$2&ROW($DY13)),$DX13,$DX$2&ROW($DX13)),$DW13,$DW$2&ROW($DW13)),$DV13,$DV$2&ROW($DV13)),$DU13,$DU$2&ROW($DU13)),$DT13,$DT$2&ROW($DT13)),$DS13,$DS$2&ROW($DS13)))","v":0},{"$f":"IF(T13=\"\",0,\"X=\"&SUBSTITUTE(SUBSTITUTE(SUBSTITUTE(SUBSTITUTE(SUBSTITUTE(SUBSTITUTE(SUBSTITUTE(SUBSTITUTE(SUBSTITUTE(SUBSTITUTE(SUBSTITUTE(SUBSTITUTE(T13,$ED13,$ED$2&ROW($ED13)),$EC13,$EC$2&ROW($EC13)),$EB13,$EB$2&ROW($EB13)),$EA13,$EA$2&ROW($EA13)),$DZ13,$DZ$2&ROW($DZ13)),$DY13,$DY$2&ROW($DY13)),$DX13,$DX$2&ROW($DX13)),$DW13,$DW$2&ROW($DW13)),$DV13,$DV$2&ROW($DV13)),$DU13,$DU$2&ROW($DU13)),$DT13,$DT$2&ROW($DT13)),$DS13,$DS$2&ROW($DS13)))","v":0},{"$f":"IF(U13=\"\",0,\"X=\"&SUBSTITUTE(SUBSTITUTE(SUBSTITUTE(SUBSTITUTE(SUBSTITUTE(SUBSTITUTE(SUBSTITUTE(SUBSTITUTE(SUBSTITUTE(SUBSTITUTE(SUBSTITUTE(SUBSTITUTE(U13,$ED13,$ED$2&ROW($ED13)),$EC13,$EC$2&ROW($EC13)),$EB13,$EB$2&ROW($EB13)),$EA13,$EA$2&ROW($EA13)),$DZ13,$DZ$2&ROW($DZ13)),$DY13,$DY$2&ROW($DY13)),$DX13,$DX$2&ROW($DX13)),$DW13,$DW$2&ROW($DW13)),$DV13,$DV$2&ROW($DV13)),$DU13,$DU$2&ROW($DU13)),$DT13,$DT$2&ROW($DT13)),$DS13,$DS$2&ROW($DS13)))","v":"X=if(AW13=6,0.663,if(AW13=0,0.025,0))"},{"$f":"IF(V13=\"\",0,\"X=\"&SUBSTITUTE(SUBSTITUTE(SUBSTITUTE(SUBSTITUTE(SUBSTITUTE(SUBSTITUTE(SUBSTITUTE(SUBSTITUTE(SUBSTITUTE(SUBSTITUTE(SUBSTITUTE(SUBSTITUTE(V13,$ED13,$ED$2&ROW($ED13)),$EC13,$EC$2&ROW($EC13)),$EB13,$EB$2&ROW($EB13)),$EA13,$EA$2&ROW($EA13)),$DZ13,$DZ$2&ROW($DZ13)),$DY13,$DY$2&ROW($DY13)),$DX13,$DX$2&ROW($DX13)),$DW13,$DW$2&ROW($DW13)),$DV13,$DV$2&ROW($DV13)),$DU13,$DU$2&ROW($DU13)),$DT13,$DT$2&ROW($DT13)),$DS13,$DS$2&ROW($DS13)))","v":"X=0"},{"$f":"IF(W13=\"\",0,\"X=\"&SUBSTITUTE(SUBSTITUTE(SUBSTITUTE(SUBSTITUTE(SUBSTITUTE(SUBSTITUTE(SUBSTITUTE(SUBSTITUTE(SUBSTITUTE(SUBSTITUTE(SUBSTITUTE(SUBSTITUTE(W13,$ED13,$ED$2&ROW($ED13)),$EC13,$EC$2&ROW($EC13)),$EB13,$EB$2&ROW($EB13)),$EA13,$EA$2&ROW($EA13)),$DZ13,$DZ$2&ROW($DZ13)),$DY13,$DY$2&ROW($DY13)),$DX13,$DX$2&ROW($DX13)),$DW13,$DW$2&ROW($DW13)),$DV13,$DV$2&ROW($DV13)),$DU13,$DU$2&ROW($DU13)),$DT13,$DT$2&ROW($DT13)),$DS13,$DS$2&ROW($DS13)))","v":"X=if(AW13=1,10.986,if(AW13=0,0.989,0))*10"},{"$f":"IF(X13=\"\",0,\"X=\"&SUBSTITUTE(SUBSTITUTE(SUBSTITUTE(SUBSTITUTE(SUBSTITUTE(SUBSTITUTE(SUBSTITUTE(SUBSTITUTE(SUBSTITUTE(SUBSTITUTE(SUBSTITUTE(SUBSTITUTE(X13,$ED13,$ED$2&ROW($ED13)),$EC13,$EC$2&ROW($EC13)),$EB13,$EB$2&ROW($EB13)),$EA13,$EA$2&ROW($EA13)),$DZ13,$DZ$2&ROW($DZ13)),$DY13,$DY$2&ROW($DY13)),$DX13,$DX$2&ROW($DX13)),$DW13,$DW$2&ROW($DW13)),$DV13,$DV$2&ROW($DV13)),$DU13,$DU$2&ROW($DU13)),$DT13,$DT$2&ROW($DT13)),$DS13,$DS$2&ROW($DS13)))","v":"X=if(AW13=2,10.986,if(AW13 = 0,1.439,0))"},{"$f":"IF(Y13=\"\",0,\"X=\"&SUBSTITUTE(SUBSTITUTE(SUBSTITUTE(SUBSTITUTE(SUBSTITUTE(SUBSTITUTE(SUBSTITUTE(SUBSTITUTE(SUBSTITUTE(SUBSTITUTE(SUBSTITUTE(SUBSTITUTE(Y13,$ED13,$ED$2&ROW($ED13)),$EC13,$EC$2&ROW($EC13)),$EB13,$EB$2&ROW($EB13)),$EA13,$EA$2&ROW($EA13)),$DZ13,$DZ$2&ROW($DZ13)),$DY13,$DY$2&ROW($DY13)),$DX13,$DX$2&ROW($DX13)),$DW13,$DW$2&ROW($DW13)),$DV13,$DV$2&ROW($DV13)),$DU13,$DU$2&ROW($DU13)),$DT13,$DT$2&ROW($DT13)),$DS13,$DS$2&ROW($DS13)))","v":"X=if(AW13=3,10.986,if(AW13 = 0,7.514,0))"},{"$f":"IF(Z13=\"\",0,\"X=\"&SUBSTITUTE(SUBSTITUTE(SUBSTITUTE(SUBSTITUTE(SUBSTITUTE(SUBSTITUTE(SUBSTITUTE(SUBSTITUTE(SUBSTITUTE(SUBSTITUTE(SUBSTITUTE(SUBSTITUTE(Z13,$ED13,$ED$2&ROW($ED13)),$EC13,$EC$2&ROW($EC13)),$EB13,$EB$2&ROW($EB13)),$EA13,$EA$2&ROW($EA13)),$DZ13,$DZ$2&ROW($DZ13)),$DY13,$DY$2&ROW($DY13)),$DX13,$DX$2&ROW($DX13)),$DW13,$DW$2&ROW($DW13)),$DV13,$DV$2&ROW($DV13)),$DU13,$DU$2&ROW($DU13)),$DT13,$DT$2&ROW($DT13)),$DS13,$DS$2&ROW($DS13)))","v":"X=if(AW13=4,10.986,if(AW13 = 0,0.154,0))"},{"$f":"IF(AA13=\"\",0,\"X=\"&SUBSTITUTE(SUBSTITUTE(SUBSTITUTE(SUBSTITUTE(SUBSTITUTE(SUBSTITUTE(SUBSTITUTE(SUBSTITUTE(SUBSTITUTE(SUBSTITUTE(SUBSTITUTE(SUBSTITUTE(AA13,$ED13,$ED$2&ROW($ED13)),$EC13,$EC$2&ROW($EC13)),$EB13,$EB$2&ROW($EB13)),$EA13,$EA$2&ROW($EA13)),$DZ13,$DZ$2&ROW($DZ13)),$DY13,$DY$2&ROW($DY13)),$DX13,$DX$2&ROW($DX13)),$DW13,$DW$2&ROW($DW13)),$DV13,$DV$2&ROW($DV13)),$DU13,$DU$2&ROW($DU13)),$DT13,$DT$2&ROW($DT13)),$DS13,$DS$2&ROW($DS13)))","v":"X=if(AW13=5,10.986,if(AW13 = 0,0.472,0))"},{"$f":"IF(AB13=\"\",0,\"X=\"&SUBSTITUTE(SUBSTITUTE(SUBSTITUTE(SUBSTITUTE(SUBSTITUTE(SUBSTITUTE(SUBSTITUTE(SUBSTITUTE(SUBSTITUTE(SUBSTITUTE(SUBSTITUTE(SUBSTITUTE(AB13,$ED13,$ED$2&ROW($ED13)),$EC13,$EC$2&ROW($EC13)),$EB13,$EB$2&ROW($EB13)),$EA13,$EA$2&ROW($EA13)),$DZ13,$DZ$2&ROW($DZ13)),$DY13,$DY$2&ROW($DY13)),$DX13,$DX$2&ROW($DX13)),$DW13,$DW$2&ROW($DW13)),$DV13,$DV$2&ROW($DV13)),$DU13,$DU$2&ROW($DU13)),$DT13,$DT$2&ROW($DT13)),$DS13,$DS$2&ROW($DS13)))","v":"X=0"},null,null,"{Factor:WinterCF}","{Factor:SummerCF}",{"$f":"IFERROR(INDEX($EG13:$IV13,MATCH(0,COUNTIF($DR13:DT13,$EG13:$IV13),0)),\"\")","v":"{Cost}"},{"$f":"IFERROR(INDEX($EG13:$IV13,MATCH(0,COUNTIF($DR13:DU13,$EG13:$IV13),0)),\"\")","v":"{Measure:Quantity}"},{"$f":"IFERROR(INDEX($EG13:$IV13,MATCH(0,COUNTIF($DR13:DV13,$EG13:$IV13),0)),\"\")","v":"{Primary heating type}"},{"$f":"IFERROR(INDEX($EG13:$IV13,MATCH(0,COUNTIF($DR13:DW13,$EG13:$IV13),0)),\"\")","v":""},{"$f":"IFERROR(INDEX($EG13:$IV13,MATCH(0,COUNTIF($DR13:DX13,$EG13:$IV13),0)),\"\")","v":""},{"$f":"IFERROR(INDEX($EG13:$IV13,MATCH(0,COUNTIF($DR13:DY13,$EG13:$IV13),0)),\"\")","v":""},{"$f":"IFERROR(INDEX($EG13:$IV13,MATCH(0,COUNTIF($DR13:DZ13,$EG13:$IV13),0)),\"\")","v":""},{"$f":"IFERROR(INDEX($EG13:$IV13,MATCH(0,COUNTIF($DR13:EA13,$EG13:$IV13),0)),\"\")","v":""},{"$f":"IFERROR(INDEX($EG13:$IV13,MATCH(0,COUNTIF($DR13:EB13,$EG13:$IV13),0)),\"\")","v":""},{"$f":"IFERROR(INDEX($EG13:$IV13,MATCH(0,COUNTIF($DR13:EC13,$EG13:$IV13),0)),\"\")","v":""},null,null,{"$f":"IFERROR(MID($G13,FIND(CHAR(160),SUBSTITUTE($G13,\"{\",CHAR(160),EG$1)),FIND(CHAR(160),SUBSTITUTE($G13,\"}\",CHAR(160),EG$1))-FIND(CHAR(160),SUBSTITUTE($G13,\"{\",CHAR(160),EG$1))+1),\"\")","v":"{Cost}"},{"$f":"IFERROR(MID($G13,FIND(CHAR(160),SUBSTITUTE($G13,\"{\",CHAR(160),EH$1)),FIND(CHAR(160),SUBSTITUTE($G13,\"}\",CHAR(160),EH$1))-FIND(CHAR(160),SUBSTITUTE($G13,\"{\",CHAR(160),EH$1))+1),\"\")","v":"{Measure:Quantity}"},{"$f":"IFERROR(MID($G13,FIND(CHAR(160),SUBSTITUTE($G13,\"{\",CHAR(160),EI$1)),FIND(CHAR(160),SUBSTITUTE($G13,\"}\",CHAR(160),EI$1))-FIND(CHAR(160),SUBSTITUTE($G13,\"{\",CHAR(160),EI$1))+1),\"\")","v":""},{"$f":"IFERROR(MID($G13,FIND(CHAR(160),SUBSTITUTE($G13,\"{\",CHAR(160),EJ$1)),FIND(CHAR(160),SUBSTITUTE($G13,\"}\",CHAR(160),EJ$1))-FIND(CHAR(160),SUBSTITUTE($G13,\"{\",CHAR(160),EJ$1))+1),\"\")","v":""},{"$f":"IFERROR(MID($G13,FIND(CHAR(160),SUBSTITUTE($G13,\"{\",CHAR(160),EK$1)),FIND(CHAR(160),SUBSTITUTE($G13,\"}\",CHAR(160),EK$1))-FIND(CHAR(160),SUBSTITUTE($G13,\"{\",CHAR(160),EK$1))+1),\"\")","v":""},{"$f":"IFERROR(MID($G13,FIND(CHAR(160),SUBSTITUTE($G13,\"{\",CHAR(160),EL$1)),FIND(CHAR(160),SUBSTITUTE($G13,\"}\",CHAR(160),EL$1))-FIND(CHAR(160),SUBSTITUTE($G13,\"{\",CHAR(160),EL$1))+1),\"\")","v":""},{"$f":"IFERROR(MID($G13,FIND(CHAR(160),SUBSTITUTE($G13,\"{\",CHAR(160),EM$1)),FIND(CHAR(160),SUBSTITUTE($G13,\"}\",CHAR(160),EM$1))-FIND(CHAR(160),SUBSTITUTE($G13,\"{\",CHAR(160),EM$1))+1),\"\")","v":""},{"$f":"IFERROR(MID($G13,FIND(CHAR(160),SUBSTITUTE($G13,\"{\",CHAR(160),EN$1)),FIND(CHAR(160),SUBSTITUTE($G13,\"}\",CHAR(160),EN$1))-FIND(CHAR(160),SUBSTITUTE($G13,\"{\",CHAR(160),EN$1))+1),\"\")","v":""},{"$f":"IFERROR(MID($G13,FIND(CHAR(160),SUBSTITUTE($G13,\"{\",CHAR(160),EO$1)),FIND(CHAR(160),SUBSTITUTE($G13,\"}\",CHAR(160),EO$1))-FIND(CHAR(160),SUBSTITUTE($G13,\"{\",CHAR(160),EO$1))+1),\"\")","v":""},{"$f":"IFERROR(MID($G13,FIND(CHAR(160),SUBSTITUTE($G13,\"{\",CHAR(160),EP$1)),FIND(CHAR(160),SUBSTITUTE($G13,\"}\",CHAR(160),EP$1))-FIND(CHAR(160),SUBSTITUTE($G13,\"{\",CHAR(160),EP$1))+1),\"\")","v":""},{"$f":"IFERROR(MID($J13,FIND(CHAR(160),SUBSTITUTE($J13,\"{\",CHAR(160),EQ$1)),FIND(CHAR(160),SUBSTITUTE($J13,\"}\",CHAR(160),EQ$1))-FIND(CHAR(160),SUBSTITUTE($J13,\"{\",CHAR(160),EQ$1))+1),\"\")","v":"{Cost}"},{"$f":"IFERROR(MID($J13,FIND(CHAR(160),SUBSTITUTE($J13,\"{\",CHAR(160),ER$1)),FIND(CHAR(160),SUBSTITUTE($J13,\"}\",CHAR(160),ER$1))-FIND(CHAR(160),SUBSTITUTE($J13,\"{\",CHAR(160),ER$1))+1),\"\")","v":"{Cost}"},{"$f":"IFERROR(MID($J13,FIND(CHAR(160),SUBSTITUTE($J13,\"{\",CHAR(160),ES$1)),FIND(CHAR(160),SUBSTITUTE($J13,\"}\",CHAR(160),ES$1))-FIND(CHAR(160),SUBSTITUTE($J13,\"{\",CHAR(160),ES$1))+1),\"\")","v":"{Measure:Quantity}"},{"$f":"IFERROR(MID($J13,FIND(CHAR(160),SUBSTITUTE($J13,\"{\",CHAR(160),ET$1)),FIND(CHAR(160),SUBSTITUTE($J13,\"}\",CHAR(160),ET$1))-FIND(CHAR(160),SUBSTITUTE($J13,\"{\",CHAR(160),ET$1))+1),\"\")","v":""},{"$f":"IFERROR(MID($J13,FIND(CHAR(160),SUBSTITUTE($J13,\"{\",CHAR(160),EU$1)),FIND(CHAR(160),SUBSTITUTE($J13,\"}\",CHAR(160),EU$1))-FIND(CHAR(160),SUBSTITUTE($J13,\"{\",CHAR(160),EU$1))+1),\"\")","v":""},{"$f":"IFERROR(MID($J13,FIND(CHAR(160),SUBSTITUTE($J13,\"{\",CHAR(160),EV$1)),FIND(CHAR(160),SUBSTITUTE($J13,\"}\",CHAR(160),EV$1))-FIND(CHAR(160),SUBSTITUTE($J13,\"{\",CHAR(160),EV$1))+1),\"\")","v":""},{"$f":"IFERROR(MID($J13,FIND(CHAR(160),SUBSTITUTE($J13,\"{\",CHAR(160),EW$1)),FIND(CHAR(160),SUBSTITUTE($J13,\"}\",CHAR(160),EW$1))-FIND(CHAR(160),SUBSTITUTE($J13,\"{\",CHAR(160),EW$1))+1),\"\")","v":""},{"$f":"IFERROR(MID($J13,FIND(CHAR(160),SUBSTITUTE($J13,\"{\",CHAR(160),EX$1)),FIND(CHAR(160),SUBSTITUTE($J13,\"}\",CHAR(160),EX$1))-FIND(CHAR(160),SUBSTITUTE($J13,\"{\",CHAR(160),EX$1))+1),\"\")","v":""},{"$f":"IFERROR(MID($J13,FIND(CHAR(160),SUBSTITUTE($J13,\"{\",CHAR(160),EY$1)),FIND(CHAR(160),SUBSTITUTE($J13,\"}\",CHAR(160),EY$1))-FIND(CHAR(160),SUBSTITUTE($J13,\"{\",CHAR(160),EY$1))+1),\"\")","v":""},{"$f":"IFERROR(MID($J13,FIND(CHAR(160),SUBSTITUTE($J13,\"{\",CHAR(160),EZ$1)),FIND(CHAR(160),SUBSTITUTE($J13,\"}\",CHAR(160),EZ$1))-FIND(CHAR(160),SUBSTITUTE($J13,\"{\",CHAR(160),EZ$1))+1),\"\")","v":""},{"$f":"IFERROR(MID($J13,FIND(CHAR(160),SUBSTITUTE($J13,\"{\",CHAR(160),FA$1)),FIND(CHAR(160),SUBSTITUTE($J13,\"}\",CHAR(160),FA$1))-FIND(CHAR(160),SUBSTITUTE($J13,\"{\",CHAR(160),FA$1))+1),\"\")","v":"{Cost}"},{"$f":"IFERROR(MID($J13,FIND(CHAR(160),SUBSTITUTE($J13,\"{\",CHAR(160),FB$1)),FIND(CHAR(160),SUBSTITUTE($J13,\"}\",CHAR(160),FB$1))-FIND(CHAR(160),SUBSTITUTE($J13,\"{\",CHAR(160),FB$1))+1),\"\")","v":"{Cost}"},{"$f":"IFERROR(MID($O13,FIND(CHAR(160),SUBSTITUTE($O13,\"{\",CHAR(160),FC$1)),FIND(CHAR(160),SUBSTITUTE($O13,\"}\",CHAR(160),FC$1))-FIND(CHAR(160),SUBSTITUTE($O13,\"{\",CHAR(160),FC$1))+1),\"\")","v":""},{"$f":"IFERROR(MID($O13,FIND(CHAR(160),SUBSTITUTE($O13,\"{\",CHAR(160),FD$1)),FIND(CHAR(160),SUBSTITUTE($O13,\"}\",CHAR(160),FD$1))-FIND(CHAR(160),SUBSTITUTE($O13,\"{\",CHAR(160),FD$1))+1),\"\")","v":""},{"$f":"IFERROR(MID($O13,FIND(CHAR(160),SUBSTITUTE($O13,\"{\",CHAR(160),FE$1)),FIND(CHAR(160),SUBSTITUTE($O13,\"}\",CHAR(160),FE$1))-FIND(CHAR(160),SUBSTITUTE($O13,\"{\",CHAR(160),FE$1))+1),\"\")","v":""},{"$f":"IFERROR(MID($O13,FIND(CHAR(160),SUBSTITUTE($O13,\"{\",CHAR(160),FF$1)),FIND(CHAR(160),SUBSTITUTE($O13,\"}\",CHAR(160),FF$1))-FIND(CHAR(160),SUBSTITUTE($O13,\"{\",CHAR(160),FF$1))+1),\"\")","v":""},{"$f":"IFERROR(MID($O13,FIND(CHAR(160),SUBSTITUTE($O13,\"{\",CHAR(160),FG$1)),FIND(CHAR(160),SUBSTITUTE($O13,\"}\",CHAR(160),FG$1))-FIND(CHAR(160),SUBSTITUTE($O13,\"{\",CHAR(160),FG$1))+1),\"\")","v":""},{"$f":"IFERROR(MID($O13,FIND(CHAR(160),SUBSTITUTE($O13,\"{\",CHAR(160),FH$1)),FIND(CHAR(160),SUBSTITUTE($O13,\"}\",CHAR(160),FH$1))-FIND(CHAR(160),SUBSTITUTE($O13,\"{\",CHAR(160),FH$1))+1),\"\")","v":""},{"$f":"IFERROR(MID($O13,FIND(CHAR(160),SUBSTITUTE($O13,\"{\",CHAR(160),FI$1)),FIND(CHAR(160),SUBSTITUTE($O13,\"}\",CHAR(160),FI$1))-FIND(CHAR(160),SUBSTITUTE($O13,\"{\",CHAR(160),FI$1))+1),\"\")","v":""},{"$f":"IFERROR(MID($O13,FIND(CHAR(160),SUBSTITUTE($O13,\"{\",CHAR(160),FJ$1)),FIND(CHAR(160),SUBSTITUTE($O13,\"}\",CHAR(160),FJ$1))-FIND(CHAR(160),SUBSTITUTE($O13,\"{\",CHAR(160),FJ$1))+1),\"\")","v":""},{"$f":"IFERROR(MID($O13,FIND(CHAR(160),SUBSTITUTE($O13,\"{\",CHAR(160),FK$1)),FIND(CHAR(160),SUBSTITUTE($O13,\"}\",CHAR(160),FK$1))-FIND(CHAR(160),SUBSTITUTE($O13,\"{\",CHAR(160),FK$1))+1),\"\")","v":"{Primary heating type}"},{"$f":"IFERROR(MID($O13,FIND(CHAR(160),SUBSTITUTE($O13,\"{\",CHAR(160),FL$1)),FIND(CHAR(160),SUBSTITUTE($O13,\"}\",CHAR(160),FL$1))-FIND(CHAR(160),SUBSTITUTE($O13,\"{\",CHAR(160),FL$1))+1),\"\")","v":"{Primary heating type}"},{"$f":"IFERROR(MID($R13,FIND(CHAR(160),SUBSTITUTE($R13,\"{\",CHAR(160),FM$1)),FIND(CHAR(160),SUBSTITUTE($R13,\"}\",CHAR(160),FM$1))-FIND(CHAR(160),SUBSTITUTE($R13,\"{\",CHAR(160),FM$1))+1),\"\")","v":""},{"$f":"IFERROR(MID($R13,FIND(CHAR(160),SUBSTITUTE($R13,\"{\",CHAR(160),FN$1)),FIND(CHAR(160),SUBSTITUTE($R13,\"}\",CHAR(160),FN$1))-FIND(CHAR(160),SUBSTITUTE($R13,\"{\",CHAR(160),FN$1))+1),\"\")","v":""},{"$f":"IFERROR(MID($R13,FIND(CHAR(160),SUBSTITUTE($R13,\"{\",CHAR(160),FO$1)),FIND(CHAR(160),SUBSTITUTE($R13,\"}\",CHAR(160),FO$1))-FIND(CHAR(160),SUBSTITUTE($R13,\"{\",CHAR(160),FO$1))+1),\"\")","v":""},{"$f":"IFERROR(MID($R13,FIND(CHAR(160),SUBSTITUTE($R13,\"{\",CHAR(160),FP$1)),FIND(CHAR(160),SUBSTITUTE($R13,\"}\",CHAR(160),FP$1))-FIND(CHAR(160),SUBSTITUTE($R13,\"{\",CHAR(160),FP$1))+1),\"\")","v":""},{"$f":"IFERROR(MID($R13,FIND(CHAR(160),SUBSTITUTE($R13,\"{\",CHAR(160),FQ$1)),FIND(CHAR(160),SUBSTITUTE($R13,\"}\",CHAR(160),FQ$1))-FIND(CHAR(160),SUBSTITUTE($R13,\"{\",CHAR(160),FQ$1))+1),\"\")","v":""},{"$f":"IFERROR(MID($R13,FIND(CHAR(160),SUBSTITUTE($R13,\"{\",CHAR(160),FR$1)),FIND(CHAR(160),SUBSTITUTE($R13,\"}\",CHAR(160),FR$1))-FIND(CHAR(160),SUBSTITUTE($R13,\"{\",CHAR(160),FR$1))+1),\"\")","v":""},{"$f":"IFERROR(MID($R13,FIND(CHAR(160),SUBSTITUTE($R13,\"{\",CHAR(160),FS$1)),FIND(CHAR(160),SUBSTITUTE($R13,\"}\",CHAR(160),FS$1))-FIND(CHAR(160),SUBSTITUTE($R13,\"{\",CHAR(160),FS$1))+1),\"\")","v":""},{"$f":"IFERROR(MID($R13,FIND(CHAR(160),SUBSTITUTE($R13,\"{\",CHAR(160),FT$1)),FIND(CHAR(160),SUBSTITUTE($R13,\"}\",CHAR(160),FT$1))-FIND(CHAR(160),SUBSTITUTE($R13,\"{\",CHAR(160),FT$1))+1),\"\")","v":""},{"$f":"IFERROR(MID($R13,FIND(CHAR(160),SUBSTITUTE($R13,\"{\",CHAR(160),FU$1)),FIND(CHAR(160),SUBSTITUTE($R13,\"}\",CHAR(160),FU$1))-FIND(CHAR(160),SUBSTITUTE($R13,\"{\",CHAR(160),FU$1))+1),\"\")","v":""},{"$f":"IFERROR(MID($R13,FIND(CHAR(160),SUBSTITUTE($R13,\"{\",CHAR(160),FV$1)),FIND(CHAR(160),SUBSTITUTE($R13,\"}\",CHAR(160),FV$1))-FIND(CHAR(160),SUBSTITUTE($R13,\"{\",CHAR(160),FV$1))+1),\"\")","v":""},{"$f":"IFERROR(MID($U13,FIND(CHAR(160),SUBSTITUTE($U13,\"{\",CHAR(160),FW$1)),FIND(CHAR(160),SUBSTITUTE($U13,\"}\",CHAR(160),FW$1))-FIND(CHAR(160),SUBSTITUTE($U13,\"{\",CHAR(160),FW$1))+1),\"\")","v":""},{"$f":"IFERROR(MID($U13,FIND(CHAR(160),SUBSTITUTE($U13,\"{\",CHAR(160),FX$1)),FIND(CHAR(160),SUBSTITUTE($U13,\"}\",CHAR(160),FX$1))-FIND(CHAR(160),SUBSTITUTE($U13,\"{\",CHAR(160),FX$1))+1),\"\")","v":""},{"$f":"IFERROR(MID($U13,FIND(CHAR(160),SUBSTITUTE($U13,\"{\",CHAR(160),FY$1)),FIND(CHAR(160),SUBSTITUTE($U13,\"}\",CHAR(160),FY$1))-FIND(CHAR(160),SUBSTITUTE($U13,\"{\",CHAR(160),FY$1))+1),\"\")","v":""},{"$f":"IFERROR(MID($U13,FIND(CHAR(160),SUBSTITUTE($U13,\"{\",CHAR(160),FZ$1)),FIND(CHAR(160),SUBSTITUTE($U13,\"}\",CHAR(160),FZ$1))-FIND(CHAR(160),SUBSTITUTE($U13,\"{\",CHAR(160),FZ$1))+1),\"\")","v":""},{"$f":"IFERROR(MID($U13,FIND(CHAR(160),SUBSTITUTE($U13,\"{\",CHAR(160),GA$1)),FIND(CHAR(160),SUBSTITUTE($U13,\"}\",CHAR(160),GA$1))-FIND(CHAR(160),SUBSTITUTE($U13,\"{\",CHAR(160),GA$1))+1),\"\")","v":""},{"$f":"IFERROR(MID($U13,FIND(CHAR(160),SUBSTITUTE($U13,\"{\",CHAR(160),GB$1)),FIND(CHAR(160),SUBSTITUTE($U13,\"}\",CHAR(160),GB$1))-FIND(CHAR(160),SUBSTITUTE($U13,\"{\",CHAR(160),GB$1))+1),\"\")","v":""},{"$f":"IFERROR(MID($U13,FIND(CHAR(160),SUBSTITUTE($U13,\"{\",CHAR(160),GC$1)),FIND(CHAR(160),SUBSTITUTE($U13,\"}\",CHAR(160),GC$1))-FIND(CHAR(160),SUBSTITUTE($U13,\"{\",CHAR(160),GC$1))+1),\"\")","v":""},{"$f":"IFERROR(MID($U13,FIND(CHAR(160),SUBSTITUTE($U13,\"{\",CHAR(160),GD$1)),FIND(CHAR(160),SUBSTITUTE($U13,\"}\",CHAR(160),GD$1))-FIND(CHAR(160),SUBSTITUTE($U13,\"{\",CHAR(160),GD$1))+1),\"\")","v":""},{"$f":"IFERROR(MID($U13,FIND(CHAR(160),SUBSTITUTE($U13,\"{\",CHAR(160),GE$1)),FIND(CHAR(160),SUBSTITUTE($U13,\"}\",CHAR(160),GE$1))-FIND(CHAR(160),SUBSTITUTE($U13,\"{\",CHAR(160),GE$1))+1),\"\")","v":"{Primary heating type}"},{"$f":"IFERROR(MID($U13,FIND(CHAR(160),SUBSTITUTE($U13,\"{\",CHAR(160),GF$1)),FIND(CHAR(160),SUBSTITUTE($U13,\"}\",CHAR(160),GF$1))-FIND(CHAR(160),SUBSTITUTE($U13,\"{\",CHAR(160),GF$1))+1),\"\")","v":"{Primary heating type}"},{"$f":"IFERROR(MID($V13,FIND(CHAR(160),SUBSTITUTE($V13,\"{\",CHAR(160),GG$1)),FIND(CHAR(160),SUBSTITUTE($V13,\"}\",CHAR(160),GG$1))-FIND(CHAR(160),SUBSTITUTE($V13,\"{\",CHAR(160),GG$1))+1),\"\")","v":""},{"$f":"IFERROR(MID($V13,FIND(CHAR(160),SUBSTITUTE($V13,\"{\",CHAR(160),GH$1)),FIND(CHAR(160),SUBSTITUTE($V13,\"}\",CHAR(160),GH$1))-FIND(CHAR(160),SUBSTITUTE($V13,\"{\",CHAR(160),GH$1))+1),\"\")","v":""},{"$f":"IFERROR(MID($V13,FIND(CHAR(160),SUBSTITUTE($V13,\"{\",CHAR(160),GI$1)),FIND(CHAR(160),SUBSTITUTE($V13,\"}\",CHAR(160),GI$1))-FIND(CHAR(160),SUBSTITUTE($V13,\"{\",CHAR(160),GI$1))+1),\"\")","v":""},{"$f":"IFERROR(MID($V13,FIND(CHAR(160),SUBSTITUTE($V13,\"{\",CHAR(160),GJ$1)),FIND(CHAR(160),SUBSTITUTE($V13,\"}\",CHAR(160),GJ$1))-FIND(CHAR(160),SUBSTITUTE($V13,\"{\",CHAR(160),GJ$1))+1),\"\")","v":""},{"$f":"IFERROR(MID($V13,FIND(CHAR(160),SUBSTITUTE($V13,\"{\",CHAR(160),GK$1)),FIND(CHAR(160),SUBSTITUTE($V13,\"}\",CHAR(160),GK$1))-FIND(CHAR(160),SUBSTITUTE($V13,\"{\",CHAR(160),GK$1))+1),\"\")","v":""},{"$f":"IFERROR(MID($V13,FIND(CHAR(160),SUBSTITUTE($V13,\"{\",CHAR(160),GL$1)),FIND(CHAR(160),SUBSTITUTE($V13,\"}\",CHAR(160),GL$1))-FIND(CHAR(160),SUBSTITUTE($V13,\"{\",CHAR(160),GL$1))+1),\"\")","v":""},{"$f":"IFERROR(MID($V13,FIND(CHAR(160),SUBSTITUTE($V13,\"{\",CHAR(160),GM$1)),FIND(CHAR(160),SUBSTITUTE($V13,\"}\",CHAR(160),GM$1))-FIND(CHAR(160),SUBSTITUTE($V13,\"{\",CHAR(160),GM$1))+1),\"\")","v":""},{"$f":"IFERROR(MID($V13,FIND(CHAR(160),SUBSTITUTE($V13,\"{\",CHAR(160),GN$1)),FIND(CHAR(160),SUBSTITUTE($V13,\"}\",CHAR(160),GN$1))-FIND(CHAR(160),SUBSTITUTE($V13,\"{\",CHAR(160),GN$1))+1),\"\")","v":""},{"$f":"IFERROR(MID($V13,FIND(CHAR(160),SUBSTITUTE($V13,\"{\",CHAR(160),GO$1)),FIND(CHAR(160),SUBSTITUTE($V13,\"}\",CHAR(160),GO$1))-FIND(CHAR(160),SUBSTITUTE($V13,\"{\",CHAR(160),GO$1))+1),\"\")","v":""},{"$f":"IFERROR(MID($V13,FIND(CHAR(160),SUBSTITUTE($V13,\"{\",CHAR(160),GP$1)),FIND(CHAR(160),SUBSTITUTE($V13,\"}\",CHAR(160),GP$1))-FIND(CHAR(160),SUBSTITUTE($V13,\"{\",CHAR(160),GP$1))+1),\"\")","v":""},{"$f":"IFERROR(MID($W13,FIND(CHAR(160),SUBSTITUTE($W13,\"{\",CHAR(160),GQ$1)),FIND(CHAR(160),SUBSTITUTE($W13,\"}\",CHAR(160),GQ$1))-FIND(CHAR(160),SUBSTITUTE($W13,\"{\",CHAR(160),GQ$1))+1),\"\")","v":""},{"$f":"IFERROR(MID($W13,FIND(CHAR(160),SUBSTITUTE($W13,\"{\",CHAR(160),GR$1)),FIND(CHAR(160),SUBSTITUTE($W13,\"}\",CHAR(160),GR$1))-FIND(CHAR(160),SUBSTITUTE($W13,\"{\",CHAR(160),GR$1))+1),\"\")","v":""},{"$f":"IFERROR(MID($W13,FIND(CHAR(160),SUBSTITUTE($W13,\"{\",CHAR(160),GS$1)),FIND(CHAR(160),SUBSTITUTE($W13,\"}\",CHAR(160),GS$1))-FIND(CHAR(160),SUBSTITUTE($W13,\"{\",CHAR(160),GS$1))+1),\"\")","v":""},{"$f":"IFERROR(MID($W13,FIND(CHAR(160),SUBSTITUTE($W13,\"{\",CHAR(160),GT$1)),FIND(CHAR(160),SUBSTITUTE($W13,\"}\",CHAR(160),GT$1))-FIND(CHAR(160),SUBSTITUTE($W13,\"{\",CHAR(160),GT$1))+1),\"\")","v":""},{"$f":"IFERROR(MID($W13,FIND(CHAR(160),SUBSTITUTE($W13,\"{\",CHAR(160),GU$1)),FIND(CHAR(160),SUBSTITUTE($W13,\"}\",CHAR(160),GU$1))-FIND(CHAR(160),SUBSTITUTE($W13,\"{\",CHAR(160),GU$1))+1),\"\")","v":""},{"$f":"IFERROR(MID($W13,FIND(CHAR(160),SUBSTITUTE($W13,\"{\",CHAR(160),GV$1)),FIND(CHAR(160),SUBSTITUTE($W13,\"}\",CHAR(160),GV$1))-FIND(CHAR(160),SUBSTITUTE($W13,\"{\",CHAR(160),GV$1))+1),\"\")","v":""},{"$f":"IFERROR(MID($W13,FIND(CHAR(160),SUBSTITUTE($W13,\"{\",CHAR(160),GW$1)),FIND(CHAR(160),SUBSTITUTE($W13,\"}\",CHAR(160),GW$1))-FIND(CHAR(160),SUBSTITUTE($W13,\"{\",CHAR(160),GW$1))+1),\"\")","v":""},{"$f":"IFERROR(MID($W13,FIND(CHAR(160),SUBSTITUTE($W13,\"{\",CHAR(160),GX$1)),FIND(CHAR(160),SUBSTITUTE($W13,\"}\",CHAR(160),GX$1))-FIND(CHAR(160),SUBSTITUTE($W13,\"{\",CHAR(160),GX$1))+1),\"\")","v":""},{"$f":"IFERROR(MID($W13,FIND(CHAR(160),SUBSTITUTE($W13,\"{\",CHAR(160),GY$1)),FIND(CHAR(160),SUBSTITUTE($W13,\"}\",CHAR(160),GY$1))-FIND(CHAR(160),SUBSTITUTE($W13,\"{\",CHAR(160),GY$1))+1),\"\")","v":"{Primary heating type}"},{"$f":"IFERROR(MID($W13,FIND(CHAR(160),SUBSTITUTE($W13,\"{\",CHAR(160),GZ$1)),FIND(CHAR(160),SUBSTITUTE($W13,\"}\",CHAR(160),GZ$1))-FIND(CHAR(160),SUBSTITUTE($W13,\"{\",CHAR(160),GZ$1))+1),\"\")","v":"{Primary heating type}"},{"$f":"IFERROR(MID($X13,FIND(CHAR(160),SUBSTITUTE($X13,\"{\",CHAR(160),HA$1)),FIND(CHAR(160),SUBSTITUTE($X13,\"}\",CHAR(160),HA$1))-FIND(CHAR(160),SUBSTITUTE($X13,\"{\",CHAR(160),HA$1))+1),\"\")","v":""},{"$f":"IFERROR(MID($X13,FIND(CHAR(160),SUBSTITUTE($X13,\"{\",CHAR(160),HB$1)),FIND(CHAR(160),SUBSTITUTE($X13,\"}\",CHAR(160),HB$1))-FIND(CHAR(160),SUBSTITUTE($X13,\"{\",CHAR(160),HB$1))+1),\"\")","v":""},{"$f":"IFERROR(MID($X13,FIND(CHAR(160),SUBSTITUTE($X13,\"{\",CHAR(160),HC$1)),FIND(CHAR(160),SUBSTITUTE($X13,\"}\",CHAR(160),HC$1))-FIND(CHAR(160),SUBSTITUTE($X13,\"{\",CHAR(160),HC$1))+1),\"\")","v":""},{"$f":"IFERROR(MID($X13,FIND(CHAR(160),SUBSTITUTE($X13,\"{\",CHAR(160),HD$1)),FIND(CHAR(160),SUBSTITUTE($X13,\"}\",CHAR(160),HD$1))-FIND(CHAR(160),SUBSTITUTE($X13,\"{\",CHAR(160),HD$1))+1),\"\")","v":""},{"$f":"IFERROR(MID($X13,FIND(CHAR(160),SUBSTITUTE($X13,\"{\",CHAR(160),HE$1)),FIND(CHAR(160),SUBSTITUTE($X13,\"}\",CHAR(160),HE$1))-FIND(CHAR(160),SUBSTITUTE($X13,\"{\",CHAR(160),HE$1))+1),\"\")","v":""},{"$f":"IFERROR(MID($X13,FIND(CHAR(160),SUBSTITUTE($X13,\"{\",CHAR(160),HF$1)),FIND(CHAR(160),SUBSTITUTE($X13,\"}\",CHAR(160),HF$1))-FIND(CHAR(160),SUBSTITUTE($X13,\"{\",CHAR(160),HF$1))+1),\"\")","v":""},{"$f":"IFERROR(MID($X13,FIND(CHAR(160),SUBSTITUTE($X13,\"{\",CHAR(160),HG$1)),FIND(CHAR(160),SUBSTITUTE($X13,\"}\",CHAR(160),HG$1))-FIND(CHAR(160),SUBSTITUTE($X13,\"{\",CHAR(160),HG$1))+1),\"\")","v":""},{"$f":"IFERROR(MID($X13,FIND(CHAR(160),SUBSTITUTE($X13,\"{\",CHAR(160),HH$1)),FIND(CHAR(160),SUBSTITUTE($X13,\"}\",CHAR(160),HH$1))-FIND(CHAR(160),SUBSTITUTE($X13,\"{\",CHAR(160),HH$1))+1),\"\")","v":""},{"$f":"IFERROR(MID($X13,FIND(CHAR(160),SUBSTITUTE($X13,\"{\",CHAR(160),HI$1)),FIND(CHAR(160),SUBSTITUTE($X13,\"}\",CHAR(160),HI$1))-FIND(CHAR(160),SUBSTITUTE($X13,\"{\",CHAR(160),HI$1))+1),\"\")","v":"{Primary heating type}"},{"$f":"IFERROR(MID($X13,FIND(CHAR(160),SUBSTITUTE($X13,\"{\",CHAR(160),HJ$1)),FIND(CHAR(160),SUBSTITUTE($X13,\"}\",CHAR(160),HJ$1))-FIND(CHAR(160),SUBSTITUTE($X13,\"{\",CHAR(160),HJ$1))+1),\"\")","v":"{Primary heating type}"},{"$f":"IFERROR(MID($Y13,FIND(CHAR(160),SUBSTITUTE($Y13,\"{\",CHAR(160),HK$1)),FIND(CHAR(160),SUBSTITUTE($Y13,\"}\",CHAR(160),HK$1))-FIND(CHAR(160),SUBSTITUTE($Y13,\"{\",CHAR(160),HK$1))+1),\"\")","v":""},{"$f":"IFERROR(MID($Y13,FIND(CHAR(160),SUBSTITUTE($Y13,\"{\",CHAR(160),HL$1)),FIND(CHAR(160),SUBSTITUTE($Y13,\"}\",CHAR(160),HL$1))-FIND(CHAR(160),SUBSTITUTE($Y13,\"{\",CHAR(160),HL$1))+1),\"\")","v":""},{"$f":"IFERROR(MID($Y13,FIND(CHAR(160),SUBSTITUTE($Y13,\"{\",CHAR(160),HM$1)),FIND(CHAR(160),SUBSTITUTE($Y13,\"}\",CHAR(160),HM$1))-FIND(CHAR(160),SUBSTITUTE($Y13,\"{\",CHAR(160),HM$1))+1),\"\")","v":""},{"$f":"IFERROR(MID($Y13,FIND(CHAR(160),SUBSTITUTE($Y13,\"{\",CHAR(160),HN$1)),FIND(CHAR(160),SUBSTITUTE($Y13,\"}\",CHAR(160),HN$1))-FIND(CHAR(160),SUBSTITUTE($Y13,\"{\",CHAR(160),HN$1))+1),\"\")","v":""},{"$f":"IFERROR(MID($Y13,FIND(CHAR(160),SUBSTITUTE($Y13,\"{\",CHAR(160),HO$1)),FIND(CHAR(160),SUBSTITUTE($Y13,\"}\",CHAR(160),HO$1))-FIND(CHAR(160),SUBSTITUTE($Y13,\"{\",CHAR(160),HO$1))+1),\"\")","v":""},{"$f":"IFERROR(MID($Y13,FIND(CHAR(160),SUBSTITUTE($Y13,\"{\",CHAR(160),HP$1)),FIND(CHAR(160),SUBSTITUTE($Y13,\"}\",CHAR(160),HP$1))-FIND(CHAR(160),SUBSTITUTE($Y13,\"{\",CHAR(160),HP$1))+1),\"\")","v":""},{"$f":"IFERROR(MID($Y13,FIND(CHAR(160),SUBSTITUTE($Y13,\"{\",CHAR(160),HQ$1)),FIND(CHAR(160),SUBSTITUTE($Y13,\"}\",CHAR(160),HQ$1))-FIND(CHAR(160),SUBSTITUTE($Y13,\"{\",CHAR(160),HQ$1))+1),\"\")","v":""},{"$f":"IFERROR(MID($Y13,FIND(CHAR(160),SUBSTITUTE($Y13,\"{\",CHAR(160),HR$1)),FIND(CHAR(160),SUBSTITUTE($Y13,\"}\",CHAR(160),HR$1))-FIND(CHAR(160),SUBSTITUTE($Y13,\"{\",CHAR(160),HR$1))+1),\"\")","v":""},{"$f":"IFERROR(MID($Y13,FIND(CHAR(160),SUBSTITUTE($Y13,\"{\",CHAR(160),HS$1)),FIND(CHAR(160),SUBSTITUTE($Y13,\"}\",CHAR(160),HS$1))-FIND(CHAR(160),SUBSTITUTE($Y13,\"{\",CHAR(160),HS$1))+1),\"\")","v":"{Primary heating type}"},{"$f":"IFERROR(MID($Y13,FIND(CHAR(160),SUBSTITUTE($Y13,\"{\",CHAR(160),HT$1)),FIND(CHAR(160),SUBSTITUTE($Y13,\"}\",CHAR(160),HT$1))-FIND(CHAR(160),SUBSTITUTE($Y13,\"{\",CHAR(160),HT$1))+1),\"\")","v":"{Primary heating type}"},{"$f":"IFERROR(MID($Z13,FIND(CHAR(160),SUBSTITUTE($Z13,\"{\",CHAR(160),HU$1)),FIND(CHAR(160),SUBSTITUTE($Z13,\"}\",CHAR(160),HU$1))-FIND(CHAR(160),SUBSTITUTE($Z13,\"{\",CHAR(160),HU$1))+1),\"\")","v":""},{"$f":"IFERROR(MID($Z13,FIND(CHAR(160),SUBSTITUTE($Z13,\"{\",CHAR(160),HV$1)),FIND(CHAR(160),SUBSTITUTE($Z13,\"}\",CHAR(160),HV$1))-FIND(CHAR(160),SUBSTITUTE($Z13,\"{\",CHAR(160),HV$1))+1),\"\")","v":""},{"$f":"IFERROR(MID($Z13,FIND(CHAR(160),SUBSTITUTE($Z13,\"{\",CHAR(160),HW$1)),FIND(CHAR(160),SUBSTITUTE($Z13,\"}\",CHAR(160),HW$1))-FIND(CHAR(160),SUBSTITUTE($Z13,\"{\",CHAR(160),HW$1))+1),\"\")","v":""},{"$f":"IFERROR(MID($Z13,FIND(CHAR(160),SUBSTITUTE($Z13,\"{\",CHAR(160),HX$1)),FIND(CHAR(160),SUBSTITUTE($Z13,\"}\",CHAR(160),HX$1))-FIND(CHAR(160),SUBSTITUTE($Z13,\"{\",CHAR(160),HX$1))+1),\"\")","v":""},{"$f":"IFERROR(MID($Z13,FIND(CHAR(160),SUBSTITUTE($Z13,\"{\",CHAR(160),HY$1)),FIND(CHAR(160),SUBSTITUTE($Z13,\"}\",CHAR(160),HY$1))-FIND(CHAR(160),SUBSTITUTE($Z13,\"{\",CHAR(160),HY$1))+1),\"\")","v":""},{"$f":"IFERROR(MID($Z13,FIND(CHAR(160),SUBSTITUTE($Z13,\"{\",CHAR(160),HZ$1)),FIND(CHAR(160),SUBSTITUTE($Z13,\"}\",CHAR(160),HZ$1))-FIND(CHAR(160),SUBSTITUTE($Z13,\"{\",CHAR(160),HZ$1))+1),\"\")","v":""},{"$f":"IFERROR(MID($Z13,FIND(CHAR(160),SUBSTITUTE($Z13,\"{\",CHAR(160),IA$1)),FIND(CHAR(160),SUBSTITUTE($Z13,\"}\",CHAR(160),IA$1))-FIND(CHAR(160),SUBSTITUTE($Z13,\"{\",CHAR(160),IA$1))+1),\"\")","v":""},{"$f":"IFERROR(MID($Z13,FIND(CHAR(160),SUBSTITUTE($Z13,\"{\",CHAR(160),IB$1)),FIND(CHAR(160),SUBSTITUTE($Z13,\"}\",CHAR(160),IB$1))-FIND(CHAR(160),SUBSTITUTE($Z13,\"{\",CHAR(160),IB$1))+1),\"\")","v":""},{"$f":"IFERROR(MID($Z13,FIND(CHAR(160),SUBSTITUTE($Z13,\"{\",CHAR(160),IC$1)),FIND(CHAR(160),SUBSTITUTE($Z13,\"}\",CHAR(160),IC$1))-FIND(CHAR(160),SUBSTITUTE($Z13,\"{\",CHAR(160),IC$1))+1),\"\")","v":"{Primary heating type}"},{"$f":"IFERROR(MID($Z13,FIND(CHAR(160),SUBSTITUTE($Z13,\"{\",CHAR(160),ID$1)),FIND(CHAR(160),SUBSTITUTE($Z13,\"}\",CHAR(160),ID$1))-FIND(CHAR(160),SUBSTITUTE($Z13,\"{\",CHAR(160),ID$1))+1),\"\")","v":"{Primary heating type}"},{"$f":"IFERROR(MID($AA13,FIND(CHAR(160),SUBSTITUTE($AA13,\"{\",CHAR(160),IE$1)),FIND(CHAR(160),SUBSTITUTE($AA13,\"}\",CHAR(160),IE$1))-FIND(CHAR(160),SUBSTITUTE($AA13,\"{\",CHAR(160),IE$1))+1),\"\")","v":""},{"$f":"IFERROR(MID($AA13,FIND(CHAR(160),SUBSTITUTE($AA13,\"{\",CHAR(160),IF$1)),FIND(CHAR(160),SUBSTITUTE($AA13,\"}\",CHAR(160),IF$1))-FIND(CHAR(160),SUBSTITUTE($AA13,\"{\",CHAR(160),IF$1))+1),\"\")","v":""},{"$f":"IFERROR(MID($AA13,FIND(CHAR(160),SUBSTITUTE($AA13,\"{\",CHAR(160),IG$1)),FIND(CHAR(160),SUBSTITUTE($AA13,\"}\",CHAR(160),IG$1))-FIND(CHAR(160),SUBSTITUTE($AA13,\"{\",CHAR(160),IG$1))+1),\"\")","v":""},{"$f":"IFERROR(MID($AA13,FIND(CHAR(160),SUBSTITUTE($AA13,\"{\",CHAR(160),IH$1)),FIND(CHAR(160),SUBSTITUTE($AA13,\"}\",CHAR(160),IH$1))-FIND(CHAR(160),SUBSTITUTE($AA13,\"{\",CHAR(160),IH$1))+1),\"\")","v":""},{"$f":"IFERROR(MID($AA13,FIND(CHAR(160),SUBSTITUTE($AA13,\"{\",CHAR(160),II$1)),FIND(CHAR(160),SUBSTITUTE($AA13,\"}\",CHAR(160),II$1))-FIND(CHAR(160),SUBSTITUTE($AA13,\"{\",CHAR(160),II$1))+1),\"\")","v":""},{"$f":"IFERROR(MID($AA13,FIND(CHAR(160),SUBSTITUTE($AA13,\"{\",CHAR(160),IJ$1)),FIND(CHAR(160),SUBSTITUTE($AA13,\"}\",CHAR(160),IJ$1))-FIND(CHAR(160),SUBSTITUTE($AA13,\"{\",CHAR(160),IJ$1))+1),\"\")","v":""},{"$f":"IFERROR(MID($AA13,FIND(CHAR(160),SUBSTITUTE($AA13,\"{\",CHAR(160),IK$1)),FIND(CHAR(160),SUBSTITUTE($AA13,\"}\",CHAR(160),IK$1))-FIND(CHAR(160),SUBSTITUTE($AA13,\"{\",CHAR(160),IK$1))+1),\"\")","v":""},{"$f":"IFERROR(MID($AA13,FIND(CHAR(160),SUBSTITUTE($AA13,\"{\",CHAR(160),IL$1)),FIND(CHAR(160),SUBSTITUTE($AA13,\"}\",CHAR(160),IL$1))-FIND(CHAR(160),SUBSTITUTE($AA13,\"{\",CHAR(160),IL$1))+1),\"\")","v":""},{"$f":"IFERROR(MID($AA13,FIND(CHAR(160),SUBSTITUTE($AA13,\"{\",CHAR(160),IM$1)),FIND(CHAR(160),SUBSTITUTE($AA13,\"}\",CHAR(160),IM$1))-FIND(CHAR(160),SUBSTITUTE($AA13,\"{\",CHAR(160),IM$1))+1),\"\")","v":"{Primary heating type}"},{"$f":"IFERROR(MID($AA13,FIND(CHAR(160),SUBSTITUTE($AA13,\"{\",CHAR(160),IN$1)),FIND(CHAR(160),SUBSTITUTE($AA13,\"}\",CHAR(160),IN$1))-FIND(CHAR(160),SUBSTITUTE($AA13,\"{\",CHAR(160),IN$1))+1),\"\")","v":"{Primary heating type}"},{"$f":"IFERROR(MID($AB13,FIND(CHAR(160),SUBSTITUTE($AB13,\"{\",CHAR(160),IO$1)),FIND(CHAR(160),SUBSTITUTE($AB13,\"}\",CHAR(160),IO$1))-FIND(CHAR(160),SUBSTITUTE($AB13,\"{\",CHAR(160),IO$1))+1),\"\")","v":""},{"$f":"IFERROR(MID($AB13,FIND(CHAR(160),SUBSTITUTE($AB13,\"{\",CHAR(160),IP$1)),FIND(CHAR(160),SUBSTITUTE($AB13,\"}\",CHAR(160),IP$1))-FIND(CHAR(160),SUBSTITUTE($AB13,\"{\",CHAR(160),IP$1))+1),\"\")","v":""},{"$f":"IFERROR(MID($AB13,FIND(CHAR(160),SUBSTITUTE($AB13,\"{\",CHAR(160),IQ$1)),FIND(CHAR(160),SUBSTITUTE($AB13,\"}\",CHAR(160),IQ$1))-FIND(CHAR(160),SUBSTITUTE($AB13,\"{\",CHAR(160),IQ$1))+1),\"\")","v":""},{"$f":"IFERROR(MID($AB13,FIND(CHAR(160),SUBSTITUTE($AB13,\"{\",CHAR(160),IR$1)),FIND(CHAR(160),SUBSTITUTE($AB13,\"}\",CHAR(160),IR$1))-FIND(CHAR(160),SUBSTITUTE($AB13,\"{\",CHAR(160),IR$1))+1),\"\")","v":""},{"$f":"IFERROR(MID($AB13,FIND(CHAR(160),SUBSTITUTE($AB13,\"{\",CHAR(160),IS$1)),FIND(CHAR(160),SUBSTITUTE($AB13,\"}\",CHAR(160),IS$1))-FIND(CHAR(160),SUBSTITUTE($AB13,\"{\",CHAR(160),IS$1))+1),\"\")","v":""},{"$f":"IFERROR(MID($AB13,FIND(CHAR(160),SUBSTITUTE($AB13,\"{\",CHAR(160),IT$1)),FIND(CHAR(160),SUBSTITUTE($AB13,\"}\",CHAR(160),IT$1))-FIND(CHAR(160),SUBSTITUTE($AB13,\"{\",CHAR(160),IT$1))+1),\"\")","v":""},{"$f":"IFERROR(MID($AB13,FIND(CHAR(160),SUBSTITUTE($AB13,\"{\",CHAR(160),IU$1)),FIND(CHAR(160),SUBSTITUTE($AB13,\"}\",CHAR(160),IU$1))-FIND(CHAR(160),SUBSTITUTE($AB13,\"{\",CHAR(160),IU$1))+1),\"\")","v":""},{"$f":"IFERROR(MID($AB13,FIND(CHAR(160),SUBSTITUTE($AB13,\"{\",CHAR(160),IV$1)),FIND(CHAR(160),SUBSTITUTE($AB13,\"}\",CHAR(160),IV$1))-FIND(CHAR(160),SUBSTITUTE($AB13,\"{\",CHAR(160),IV$1))+1),\"\")","v":""},{"$f":"IFERROR(MID($AB13,FIND(CHAR(160),SUBSTITUTE($AB13,\"{\",CHAR(160),IW$1)),FIND(CHAR(160),SUBSTITUTE($AB13,\"}\",CHAR(160),IW$1))-FIND(CHAR(160),SUBSTITUTE($AB13,\"{\",CHAR(160),IW$1))+1),\"\")","v":""},{"$f":"IFERROR(MID($AB13,FIND(CHAR(160),SUBSTITUTE($AB13,\"{\",CHAR(160),IX$1)),FIND(CHAR(160),SUBSTITUTE($AB13,\"}\",CHAR(160),IX$1))-FIND(CHAR(160),SUBSTITUTE($AB13,\"{\",CHAR(160),IX$1))+1),\"\")","v":""},null,{"$f":"10-COUNTIF(DU13:ED13,\"\")","v":3}]
["Affordable Heat Initiative - Other Fuels","Attic Insulation LIHESP","LBA","2021-07-01","2022-06-30","Calculated","{Cost}*{Measure:Quantity}",0,"Calculated","if({Cost}*0.80>2000,2000,Round({Cost}*0.80,2))*{Measure:Quantity}",0,"2020-07-01","2022-06-30","Calculated","if({Primary heating type}=6,3101,if({Primary heating type}=0,117,20))",null,null,"if({Primary heating type}=6,0.053,if({Primary heating type}=0,0.053,0.053))",null,null,"if({Primary heating type}=6,0.678,if({Primary heating type}=0,0.026,0))","if({Primary heating type}=6,0.053,if({Primary heating type}=0,0.053,0.053))","if({Primary heating type}=1,12.663,if({Primary heating type}=0,1.140,0))*10","if({Primary heating type}=2,12.663,if({Primary heating type}=0,1.659,0))","if({Primary heating type}=3,12.663,if({Primary heating type} = 0,8.661,0))","if({Primary heating type}=4,12.663,if({Primary heating type} = 0,0.177,0))","if({Primary heating type}=5,12.663,if({Primary heating type} = 0,0.545,0))",0,"2019-07-01","2022-06-30",25,1,1,0,0,0.66600000000000004,0.30099999999999999,1,1,1,0,0,null,{"$f":"DU14","v":"{Cost}"},1962,{"$f":"DV14","v":"{Measure:Quantity}"},1,{"$f":"DW14","v":"{Primary heating type}"},0,{"$f":"DX14","v":""},null,{"$f":"DY14","v":""},null,{"$f":"DZ14","v":""},null,{"$f":"EA14","v":""},null,{"$f":"EB14","v":""},null,{"$f":"EC14","v":""},null,{"$f":"ED14","v":""},null,{"$f":"IF(AW14=6,3101,IF(AW14=0,117,20))","v":117},0,0,{"$f":"IF(AW14=6,0.053,IF(AW14=0,0.053,0.053))","v":5.2999999999999999E-2},0,0,{"$f":"IF(AW14=6,0.678,IF(AW14=0,0.026,0))","v":2.5999999999999999E-2},{"$f":"IF(AW14=6,0.053,IF(AW14=0,0.053,0.053))","v":5.2999999999999999E-2},{"$f":"IF(AW14=1,12.663,IF(AW14=0,1.14,0))*10","v":11.399999999999999},{"$f":"IF(AW14=2,12.663,IF(AW14=0,1.659,0))","v":1.659},{"$f":"IF(AW14=3,12.663,IF(AW14 = 0,8.661,0))","v":8.6609999999999996},{"$f":"IF(AW14=4,12.663,IF(AW14 = 0,0.177,0))","v":0.17699999999999999},{"$f":"IF(AW14=5,12.663,IF(AW14 = 0,0.545,0))","v":0.54500000000000004},{"$f":"0","v":0},null,"Res","RGGI DR",{"$f":"Benefits(BL14,BR14,BS14,BT14,BU14,BV14,BW14,BX14,BY14,BZ14,AE14,AH14,AI14,AJ14,AK14,AL14,AM14,AN14,AO14,AP14,CA14,CB14)","v":190.72364216217761},291.85248084747201,305.05512630316508,5237.8735590278902,125.71329275024139,1419.0496070055824,219.80083538477092,0,0,{"$f":"SUMPRODUCT(CC14:CK14,--(CC14:CK14>0))","v":7790.0685434812995},{"$f":"-SUMPRODUCT(CC14:CK14,--(CC14:CK14<0))","v":0},null,{"$f":"AS14*AU14","v":1962},null,null,{"$f":"CM14+CO14","v":1962},{"$f":"IF(NetOrGross=\"Net\",(1-AO14+AP14),1)","v":1},{"$f":"(SUMPRODUCT(CC14:CJ14,--(CC14:CJ14>0))+CN14)*CS14/((-SUMPRODUCT(CC14:CJ14,--(CC14:CJ14<0))+MAX(CO14,CV14)+CP14+CQ14)*CS14+IF(FRIncentives=\"Yes\",CV14*(1-CS14),0))","v":3.9704732637519364},1,{"$f":"IF(AS14*0.8>2000,2000,ROUND(AS14*0.8,2))*AU14","v":1569.6},null,"RGGI","y",null,{"$f":"IF(F14=\"Manual Entry\",\"Manual\",IF(G14=\"\",0,\"X=\"&SUBSTITUTE(SUBSTITUTE(SUBSTITUTE(SUBSTITUTE(SUBSTITUTE(SUBSTITUTE(SUBSTITUTE(SUBSTITUTE(SUBSTITUTE(SUBSTITUTE(SUBSTITUTE(SUBSTITUTE(G14,$ED14,$ED$2&ROW($ED14)),$EC14,$EC$2&ROW($EC14)),$EB14,$EB$2&ROW($EB14)),$EA14,$EA$2&ROW($EA14)),$DZ14,$DZ$2&ROW($DZ14)),$DY14,$DY$2&ROW($DY14)),$DX14,$DX$2&ROW($DX14)),$DW14,$DW$2&ROW($DW14)),$DV14,$DV$2&ROW($DV14)),$DU14,$DU$2&ROW($DU14)),$DT14,$DT$2&ROW($DT14)),$DS14,$DS$2&ROW($DS14))))","v":"X=AS14*AU14"},{"$f":"IF(I14=\"Manual Entry\",\"Manual\",IF(J14=\"\",0,\"X=\"&SUBSTITUTE(SUBSTITUTE(SUBSTITUTE(SUBSTITUTE(SUBSTITUTE(SUBSTITUTE(SUBSTITUTE(SUBSTITUTE(SUBSTITUTE(SUBSTITUTE(SUBSTITUTE(SUBSTITUTE(J14,$ED14,$ED$2&ROW($ED14)),$EC14,$EC$2&ROW($EC14)),$EB14,$EB$2&ROW($EB14)),$EA14,$EA$2&ROW($EA14)),$DZ14,$DZ$2&ROW($DZ14)),$DY14,$DY$2&ROW($DY14)),$DX14,$DX$2&ROW($DX14)),$DW14,$DW$2&ROW($DW14)),$DV14,$DV$2&ROW($DV14)),$DU14,$DU$2&ROW($DU14)),$DT14,$DT$2&ROW($DT14)),$DS14,$DS$2&ROW($DS14))))","v":"X=if(AS14*0.80>2000,2000,Round(AS14*0.80,2))*AU14"},{"$f":"IF(O14=\"\",0,\"X=\"&SUBSTITUTE(SUBSTITUTE(SUBSTITUTE(SUBSTITUTE(SUBSTITUTE(SUBSTITUTE(SUBSTITUTE(SUBSTITUTE(SUBSTITUTE(SUBSTITUTE(SUBSTITUTE(SUBSTITUTE(O14,$ED14,$ED$2&ROW($ED14)),$EC14,$EC$2&ROW($EC14)),$EB14,$EB$2&ROW($EB14)),$EA14,$EA$2&ROW($EA14)),$DZ14,$DZ$2&ROW($DZ14)),$DY14,$DY$2&ROW($DY14)),$DX14,$DX$2&ROW($DX14)),$DW14,$DW$2&ROW($DW14)),$DV14,$DV$2&ROW($DV14)),$DU14,$DU$2&ROW($DU14)),$DT14,$DT$2&ROW($DT14)),$DS14,$DS$2&ROW($DS14)))","v":"X=if(AW14=6,3101,if(AW14=0,117,20))"},{"$f":"IF(P14=\"\",0,\"X=\"&SUBSTITUTE(SUBSTITUTE(SUBSTITUTE(SUBSTITUTE(SUBSTITUTE(SUBSTITUTE(SUBSTITUTE(SUBSTITUTE(SUBSTITUTE(SUBSTITUTE(SUBSTITUTE(SUBSTITUTE(P14,$ED14,$ED$2&ROW($ED14)),$EC14,$EC$2&ROW($EC14)),$EB14,$EB$2&ROW($EB14)),$EA14,$EA$2&ROW($EA14)),$DZ14,$DZ$2&ROW($DZ14)),$DY14,$DY$2&ROW($DY14)),$DX14,$DX$2&ROW($DX14)),$DW14,$DW$2&ROW($DW14)),$DV14,$DV$2&ROW($DV14)),$DU14,$DU$2&ROW($DU14)),$DT14,$DT$2&ROW($DT14)),$DS14,$DS$2&ROW($DS14)))","v":0},{"$f":"IF(Q14=\"\",0,\"X=\"&SUBSTITUTE(SUBSTITUTE(SUBSTITUTE(SUBSTITUTE(SUBSTITUTE(SUBSTITUTE(SUBSTITUTE(SUBSTITUTE(SUBSTITUTE(SUBSTITUTE(SUBSTITUTE(SUBSTITUTE(Q14,$ED14,$ED$2&ROW($ED14)),$EC14,$EC$2&ROW($EC14)),$EB14,$EB$2&ROW($EB14)),$EA14,$EA$2&ROW($EA14)),$DZ14,$DZ$2&ROW($DZ14)),$DY14,$DY$2&ROW($DY14)),$DX14,$DX$2&ROW($DX14)),$DW14,$DW$2&ROW($DW14)),$DV14,$DV$2&ROW($DV14)),$DU14,$DU$2&ROW($DU14)),$DT14,$DT$2&ROW($DT14)),$DS14,$DS$2&ROW($DS14)))","v":0},{"$f":"IF(R14=\"\",0,\"X=\"&SUBSTITUTE(SUBSTITUTE(SUBSTITUTE(SUBSTITUTE(SUBSTITUTE(SUBSTITUTE(SUBSTITUTE(SUBSTITUTE(SUBSTITUTE(SUBSTITUTE(SUBSTITUTE(SUBSTITUTE(R14,$ED14,$ED$2&ROW($ED14)),$EC14,$EC$2&ROW($EC14)),$EB14,$EB$2&ROW($EB14)),$EA14,$EA$2&ROW($EA14)),$DZ14,$DZ$2&ROW($DZ14)),$DY14,$DY$2&ROW($DY14)),$DX14,$DX$2&ROW($DX14)),$DW14,$DW$2&ROW($DW14)),$DV14,$DV$2&ROW($DV14)),$DU14,$DU$2&ROW($DU14)),$DT14,$DT$2&ROW($DT14)),$DS14,$DS$2&ROW($DS14)))","v":"X=if(AW14=6,0.053,if(AW14=0,0.053,0.053))"},{"$f":"IF(S14=\"\",0,\"X=\"&SUBSTITUTE(SUBSTITUTE(SUBSTITUTE(SUBSTITUTE(SUBSTITUTE(SUBSTITUTE(SUBSTITUTE(SUBSTITUTE(SUBSTITUTE(SUBSTITUTE(SUBSTITUTE(SUBSTITUTE(S14,$ED14,$ED$2&ROW($ED14)),$EC14,$EC$2&ROW($EC14)),$EB14,$EB$2&ROW($EB14)),$EA14,$EA$2&ROW($EA14)),$DZ14,$DZ$2&ROW($DZ14)),$DY14,$DY$2&ROW($DY14)),$DX14,$DX$2&ROW($DX14)),$DW14,$DW$2&ROW($DW14)),$DV14,$DV$2&ROW($DV14)),$DU14,$DU$2&ROW($DU14)),$DT14,$DT$2&ROW($DT14)),$DS14,$DS$2&ROW($DS14)))","v":0},{"$f":"IF(T14=\"\",0,\"X=\"&SUBSTITUTE(SUBSTITUTE(SUBSTITUTE(SUBSTITUTE(SUBSTITUTE(SUBSTITUTE(SUBSTITUTE(SUBSTITUTE(SUBSTITUTE(SUBSTITUTE(SUBSTITUTE(SUBSTITUTE(T14,$ED14,$ED$2&ROW($ED14)),$EC14,$EC$2&ROW($EC14)),$EB14,$EB$2&ROW($EB14)),$EA14,$EA$2&ROW($EA14)),$DZ14,$DZ$2&ROW($DZ14)),$DY14,$DY$2&ROW($DY14)),$DX14,$DX$2&ROW($DX14)),$DW14,$DW$2&ROW($DW14)),$DV14,$DV$2&ROW($DV14)),$DU14,$DU$2&ROW($DU14)),$DT14,$DT$2&ROW($DT14)),$DS14,$DS$2&ROW($DS14)))","v":0},{"$f":"IF(U14=\"\",0,\"X=\"&SUBSTITUTE(SUBSTITUTE(SUBSTITUTE(SUBSTITUTE(SUBSTITUTE(SUBSTITUTE(SUBSTITUTE(SUBSTITUTE(SUBSTITUTE(SUBSTITUTE(SUBSTITUTE(SUBSTITUTE(U14,$ED14,$ED$2&ROW($ED14)),$EC14,$EC$2&ROW($EC14)),$EB14,$EB$2&ROW($EB14)),$EA14,$EA$2&ROW($EA14)),$DZ14,$DZ$2&ROW($DZ14)),$DY14,$DY$2&ROW($DY14)),$DX14,$DX$2&ROW($DX14)),$DW14,$DW$2&ROW($DW14)),$DV14,$DV$2&ROW($DV14)),$DU14,$DU$2&ROW($DU14)),$DT14,$DT$2&ROW($DT14)),$DS14,$DS$2&ROW($DS14)))","v":"X=if(AW14=6,0.678,if(AW14=0,0.026,0))"},{"$f":"IF(V14=\"\",0,\"X=\"&SUBSTITUTE(SUBSTITUTE(SUBSTITUTE(SUBSTITUTE(SUBSTITUTE(SUBSTITUTE(SUBSTITUTE(SUBSTITUTE(SUBSTITUTE(SUBSTITUTE(SUBSTITUTE(SUBSTITUTE(V14,$ED14,$ED$2&ROW($ED14)),$EC14,$EC$2&ROW($EC14)),$EB14,$EB$2&ROW($EB14)),$EA14,$EA$2&ROW($EA14)),$DZ14,$DZ$2&ROW($DZ14)),$DY14,$DY$2&ROW($DY14)),$DX14,$DX$2&ROW($DX14)),$DW14,$DW$2&ROW($DW14)),$DV14,$DV$2&ROW($DV14)),$DU14,$DU$2&ROW($DU14)),$DT14,$DT$2&ROW($DT14)),$DS14,$DS$2&ROW($DS14)))","v":"X=if(AW14=6,0.053,if(AW14=0,0.053,0.053))"},{"$f":"IF(W14=\"\",0,\"X=\"&SUBSTITUTE(SUBSTITUTE(SUBSTITUTE(SUBSTITUTE(SUBSTITUTE(SUBSTITUTE(SUBSTITUTE(SUBSTITUTE(SUBSTITUTE(SUBSTITUTE(SUBSTITUTE(SUBSTITUTE(W14,$ED14,$ED$2&ROW($ED14)),$EC14,$EC$2&ROW($EC14)),$EB14,$EB$2&ROW($EB14)),$EA14,$EA$2&ROW($EA14)),$DZ14,$DZ$2&ROW($DZ14)),$DY14,$DY$2&ROW($DY14)),$DX14,$DX$2&ROW($DX14)),$DW14,$DW$2&ROW($DW14)),$DV14,$DV$2&ROW($DV14)),$DU14,$DU$2&ROW($DU14)),$DT14,$DT$2&ROW($DT14)),$DS14,$DS$2&ROW($DS14)))","v":"X=if(AW14=1,12.663,if(AW14=0,1.140,0))*10"},{"$f":"IF(X14=\"\",0,\"X=\"&SUBSTITUTE(SUBSTITUTE(SUBSTITUTE(SUBSTITUTE(SUBSTITUTE(SUBSTITUTE(SUBSTITUTE(SUBSTITUTE(SUBSTITUTE(SUBSTITUTE(SUBSTITUTE(SUBSTITUTE(X14,$ED14,$ED$2&ROW($ED14)),$EC14,$EC$2&ROW($EC14)),$EB14,$EB$2&ROW($EB14)),$EA14,$EA$2&ROW($EA14)),$DZ14,$DZ$2&ROW($DZ14)),$DY14,$DY$2&ROW($DY14)),$DX14,$DX$2&ROW($DX14)),$DW14,$DW$2&ROW($DW14)),$DV14,$DV$2&ROW($DV14)),$DU14,$DU$2&ROW($DU14)),$DT14,$DT$2&ROW($DT14)),$DS14,$DS$2&ROW($DS14)))","v":"X=if(AW14=2,12.663,if(AW14=0,1.659,0))"},{"$f":"IF(Y14=\"\",0,\"X=\"&SUBSTITUTE(SUBSTITUTE(SUBSTITUTE(SUBSTITUTE(SUBSTITUTE(SUBSTITUTE(SUBSTITUTE(SUBSTITUTE(SUBSTITUTE(SUBSTITUTE(SUBSTITUTE(SUBSTITUTE(Y14,$ED14,$ED$2&ROW($ED14)),$EC14,$EC$2&ROW($EC14)),$EB14,$EB$2&ROW($EB14)),$EA14,$EA$2&ROW($EA14)),$DZ14,$DZ$2&ROW($DZ14)),$DY14,$DY$2&ROW($DY14)),$DX14,$DX$2&ROW($DX14)),$DW14,$DW$2&ROW($DW14)),$DV14,$DV$2&ROW($DV14)),$DU14,$DU$2&ROW($DU14)),$DT14,$DT$2&ROW($DT14)),$DS14,$DS$2&ROW($DS14)))","v":"X=if(AW14=3,12.663,if(AW14 = 0,8.661,0))"},{"$f":"IF(Z14=\"\",0,\"X=\"&SUBSTITUTE(SUBSTITUTE(SUBSTITUTE(SUBSTITUTE(SUBSTITUTE(SUBSTITUTE(SUBSTITUTE(SUBSTITUTE(SUBSTITUTE(SUBSTITUTE(SUBSTITUTE(SUBSTITUTE(Z14,$ED14,$ED$2&ROW($ED14)),$EC14,$EC$2&ROW($EC14)),$EB14,$EB$2&ROW($EB14)),$EA14,$EA$2&ROW($EA14)),$DZ14,$DZ$2&ROW($DZ14)),$DY14,$DY$2&ROW($DY14)),$DX14,$DX$2&ROW($DX14)),$DW14,$DW$2&ROW($DW14)),$DV14,$DV$2&ROW($DV14)),$DU14,$DU$2&ROW($DU14)),$DT14,$DT$2&ROW($DT14)),$DS14,$DS$2&ROW($DS14)))","v":"X=if(AW14=4,12.663,if(AW14 = 0,0.177,0))"},{"$f":"IF(AA14=\"\",0,\"X=\"&SUBSTITUTE(SUBSTITUTE(SUBSTITUTE(SUBSTITUTE(SUBSTITUTE(SUBSTITUTE(SUBSTITUTE(SUBSTITUTE(SUBSTITUTE(SUBSTITUTE(SUBSTITUTE(SUBSTITUTE(AA14,$ED14,$ED$2&ROW($ED14)),$EC14,$EC$2&ROW($EC14)),$EB14,$EB$2&ROW($EB14)),$EA14,$EA$2&ROW($EA14)),$DZ14,$DZ$2&ROW($DZ14)),$DY14,$DY$2&ROW($DY14)),$DX14,$DX$2&ROW($DX14)),$DW14,$DW$2&ROW($DW14)),$DV14,$DV$2&ROW($DV14)),$DU14,$DU$2&ROW($DU14)),$DT14,$DT$2&ROW($DT14)),$DS14,$DS$2&ROW($DS14)))","v":"X=if(AW14=5,12.663,if(AW14 = 0,0.545,0))"},{"$f":"IF(AB14=\"\",0,\"X=\"&SUBSTITUTE(SUBSTITUTE(SUBSTITUTE(SUBSTITUTE(SUBSTITUTE(SUBSTITUTE(SUBSTITUTE(SUBSTITUTE(SUBSTITUTE(SUBSTITUTE(SUBSTITUTE(SUBSTITUTE(AB14,$ED14,$ED$2&ROW($ED14)),$EC14,$EC$2&ROW($EC14)),$EB14,$EB$2&ROW($EB14)),$EA14,$EA$2&ROW($EA14)),$DZ14,$DZ$2&ROW($DZ14)),$DY14,$DY$2&ROW($DY14)),$DX14,$DX$2&ROW($DX14)),$DW14,$DW$2&ROW($DW14)),$DV14,$DV$2&ROW($DV14)),$DU14,$DU$2&ROW($DU14)),$DT14,$DT$2&ROW($DT14)),$DS14,$DS$2&ROW($DS14)))","v":"X=0"},null,null,"{Factor:WinterCF}","{Factor:SummerCF}",{"$f":"IFERROR(INDEX($EG14:$IV14,MATCH(0,COUNTIF($DR14:DT14,$EG14:$IV14),0)),\"\")","v":"{Cost}"},{"$f":"IFERROR(INDEX($EG14:$IV14,MATCH(0,COUNTIF($DR14:DU14,$EG14:$IV14),0)),\"\")","v":"{Measure:Quantity}"},{"$f":"IFERROR(INDEX($EG14:$IV14,MATCH(0,COUNTIF($DR14:DV14,$EG14:$IV14),0)),\"\")","v":"{Primary heating type}"},{"$f":"IFERROR(INDEX($EG14:$IV14,MATCH(0,COUNTIF($DR14:DW14,$EG14:$IV14),0)),\"\")","v":""},{"$f":"IFERROR(INDEX($EG14:$IV14,MATCH(0,COUNTIF($DR14:DX14,$EG14:$IV14),0)),\"\")","v":""},{"$f":"IFERROR(INDEX($EG14:$IV14,MATCH(0,COUNTIF($DR14:DY14,$EG14:$IV14),0)),\"\")","v":""},{"$f":"IFERROR(INDEX($EG14:$IV14,MATCH(0,COUNTIF($DR14:DZ14,$EG14:$IV14),0)),\"\")","v":""},{"$f":"IFERROR(INDEX($EG14:$IV14,MATCH(0,COUNTIF($DR14:EA14,$EG14:$IV14),0)),\"\")","v":""},{"$f":"IFERROR(INDEX($EG14:$IV14,MATCH(0,COUNTIF($DR14:EB14,$EG14:$IV14),0)),\"\")","v":""},{"$f":"IFERROR(INDEX($EG14:$IV14,MATCH(0,COUNTIF($DR14:EC14,$EG14:$IV14),0)),\"\")","v":""},null,null,{"$f":"IFERROR(MID($G14,FIND(CHAR(160),SUBSTITUTE($G14,\"{\",CHAR(160),EG$1)),FIND(CHAR(160),SUBSTITUTE($G14,\"}\",CHAR(160),EG$1))-FIND(CHAR(160),SUBSTITUTE($G14,\"{\",CHAR(160),EG$1))+1),\"\")","v":"{Cost}"},{"$f":"IFERROR(MID($G14,FIND(CHAR(160),SUBSTITUTE($G14,\"{\",CHAR(160),EH$1)),FIND(CHAR(160),SUBSTITUTE($G14,\"}\",CHAR(160),EH$1))-FIND(CHAR(160),SUBSTITUTE($G14,\"{\",CHAR(160),EH$1))+1),\"\")","v":"{Measure:Quantity}"},{"$f":"IFERROR(MID($G14,FIND(CHAR(160),SUBSTITUTE($G14,\"{\",CHAR(160),EI$1)),FIND(CHAR(160),SUBSTITUTE($G14,\"}\",CHAR(160),EI$1))-FIND(CHAR(160),SUBSTITUTE($G14,\"{\",CHAR(160),EI$1))+1),\"\")","v":""},{"$f":"IFERROR(MID($G14,FIND(CHAR(160),SUBSTITUTE($G14,\"{\",CHAR(160),EJ$1)),FIND(CHAR(160),SUBSTITUTE($G14,\"}\",CHAR(160),EJ$1))-FIND(CHAR(160),SUBSTITUTE($G14,\"{\",CHAR(160),EJ$1))+1),\"\")","v":""},{"$f":"IFERROR(MID($G14,FIND(CHAR(160),SUBSTITUTE($G14,\"{\",CHAR(160),EK$1)),FIND(CHAR(160),SUBSTITUTE($G14,\"}\",CHAR(160),EK$1))-FIND(CHAR(160),SUBSTITUTE($G14,\"{\",CHAR(160),EK$1))+1),\"\")","v":""},{"$f":"IFERROR(MID($G14,FIND(CHAR(160),SUBSTITUTE($G14,\"{\",CHAR(160),EL$1)),FIND(CHAR(160),SUBSTITUTE($G14,\"}\",CHAR(160),EL$1))-FIND(CHAR(160),SUBSTITUTE($G14,\"{\",CHAR(160),EL$1))+1),\"\")","v":""},{"$f":"IFERROR(MID($G14,FIND(CHAR(160),SUBSTITUTE($G14,\"{\",CHAR(160),EM$1)),FIND(CHAR(160),SUBSTITUTE($G14,\"}\",CHAR(160),EM$1))-FIND(CHAR(160),SUBSTITUTE($G14,\"{\",CHAR(160),EM$1))+1),\"\")","v":""},{"$f":"IFERROR(MID($G14,FIND(CHAR(160),SUBSTITUTE($G14,\"{\",CHAR(160),EN$1)),FIND(CHAR(160),SUBSTITUTE($G14,\"}\",CHAR(160),EN$1))-FIND(CHAR(160),SUBSTITUTE($G14,\"{\",CHAR(160),EN$1))+1),\"\")","v":""},{"$f":"IFERROR(MID($G14,FIND(CHAR(160),SUBSTITUTE($G14,\"{\",CHAR(160),EO$1)),FIND(CHAR(160),SUBSTITUTE($G14,\"}\",CHAR(160),EO$1))-FIND(CHAR(160),SUBSTITUTE($G14,\"{\",CHAR(160),EO$1))+1),\"\")","v":""},{"$f":"IFERROR(MID($G14,FIND(CHAR(160),SUBSTITUTE($G14,\"{\",CHAR(160),EP$1)),FIND(CHAR(160),SUBSTITUTE($G14,\"}\",CHAR(160),EP$1))-FIND(CHAR(160),SUBSTITUTE($G14,\"{\",CHAR(160),EP$1))+1),\"\")","v":""},{"$f":"IFERROR(MID($J14,FIND(CHAR(160),SUBSTITUTE($J14,\"{\",CHAR(160),EQ$1)),FIND(CHAR(160),SUBSTITUTE($J14,\"}\",CHAR(160),EQ$1))-FIND(CHAR(160),SUBSTITUTE($J14,\"{\",CHAR(160),EQ$1))+1),\"\")","v":"{Cost}"},{"$f":"IFERROR(MID($J14,FIND(CHAR(160),SUBSTITUTE($J14,\"{\",CHAR(160),ER$1)),FIND(CHAR(160),SUBSTITUTE($J14,\"}\",CHAR(160),ER$1))-FIND(CHAR(160),SUBSTITUTE($J14,\"{\",CHAR(160),ER$1))+1),\"\")","v":"{Cost}"},{"$f":"IFERROR(MID($J14,FIND(CHAR(160),SUBSTITUTE($J14,\"{\",CHAR(160),ES$1)),FIND(CHAR(160),SUBSTITUTE($J14,\"}\",CHAR(160),ES$1))-FIND(CHAR(160),SUBSTITUTE($J14,\"{\",CHAR(160),ES$1))+1),\"\")","v":"{Measure:Quantity}"},{"$f":"IFERROR(MID($J14,FIND(CHAR(160),SUBSTITUTE($J14,\"{\",CHAR(160),ET$1)),FIND(CHAR(160),SUBSTITUTE($J14,\"}\",CHAR(160),ET$1))-FIND(CHAR(160),SUBSTITUTE($J14,\"{\",CHAR(160),ET$1))+1),\"\")","v":""},{"$f":"IFERROR(MID($J14,FIND(CHAR(160),SUBSTITUTE($J14,\"{\",CHAR(160),EU$1)),FIND(CHAR(160),SUBSTITUTE($J14,\"}\",CHAR(160),EU$1))-FIND(CHAR(160),SUBSTITUTE($J14,\"{\",CHAR(160),EU$1))+1),\"\")","v":""},{"$f":"IFERROR(MID($J14,FIND(CHAR(160),SUBSTITUTE($J14,\"{\",CHAR(160),EV$1)),FIND(CHAR(160),SUBSTITUTE($J14,\"}\",CHAR(160),EV$1))-FIND(CHAR(160),SUBSTITUTE($J14,\"{\",CHAR(160),EV$1))+1),\"\")","v":""},{"$f":"IFERROR(MID($J14,FIND(CHAR(160),SUBSTITUTE($J14,\"{\",CHAR(160),EW$1)),FIND(CHAR(160),SUBSTITUTE($J14,\"}\",CHAR(160),EW$1))-FIND(CHAR(160),SUBSTITUTE($J14,\"{\",CHAR(160),EW$1))+1),\"\")","v":""},{"$f":"IFERROR(MID($J14,FIND(CHAR(160),SUBSTITUTE($J14,\"{\",CHAR(160),EX$1)),FIND(CHAR(160),SUBSTITUTE($J14,\"}\",CHAR(160),EX$1))-FIND(CHAR(160),SUBSTITUTE($J14,\"{\",CHAR(160),EX$1))+1),\"\")","v":""},{"$f":"IFERROR(MID($J14,FIND(CHAR(160),SUBSTITUTE($J14,\"{\",CHAR(160),EY$1)),FIND(CHAR(160),SUBSTITUTE($J14,\"}\",CHAR(160),EY$1))-FIND(CHAR(160),SUBSTITUTE($J14,\"{\",CHAR(160),EY$1))+1),\"\")","v":""},{"$f":"IFERROR(MID($J14,FIND(CHAR(160),SUBSTITUTE($J14,\"{\",CHAR(160),EZ$1)),FIND(CHAR(160),SUBSTITUTE($J14,\"}\",CHAR(160),EZ$1))-FIND(CHAR(160),SUBSTITUTE($J14,\"{\",CHAR(160),EZ$1))+1),\"\")","v":""},{"$f":"IFERROR(MID($J14,FIND(CHAR(160),SUBSTITUTE($J14,\"{\",CHAR(160),FA$1)),FIND(CHAR(160),SUBSTITUTE($J14,\"}\",CHAR(160),FA$1))-FIND(CHAR(160),SUBSTITUTE($J14,\"{\",CHAR(160),FA$1))+1),\"\")","v":"{Cost}"},{"$f":"IFERROR(MID($J14,FIND(CHAR(160),SUBSTITUTE($J14,\"{\",CHAR(160),FB$1)),FIND(CHAR(160),SUBSTITUTE($J14,\"}\",CHAR(160),FB$1))-FIND(CHAR(160),SUBSTITUTE($J14,\"{\",CHAR(160),FB$1))+1),\"\")","v":"{Cost}"},{"$f":"IFERROR(MID($O14,FIND(CHAR(160),SUBSTITUTE($O14,\"{\",CHAR(160),FC$1)),FIND(CHAR(160),SUBSTITUTE($O14,\"}\",CHAR(160),FC$1))-FIND(CHAR(160),SUBSTITUTE($O14,\"{\",CHAR(160),FC$1))+1),\"\")","v":""},{"$f":"IFERROR(MID($O14,FIND(CHAR(160),SUBSTITUTE($O14,\"{\",CHAR(160),FD$1)),FIND(CHAR(160),SUBSTITUTE($O14,\"}\",CHAR(160),FD$1))-FIND(CHAR(160),SUBSTITUTE($O14,\"{\",CHAR(160),FD$1))+1),\"\")","v":""},{"$f":"IFERROR(MID($O14,FIND(CHAR(160),SUBSTITUTE($O14,\"{\",CHAR(160),FE$1)),FIND(CHAR(160),SUBSTITUTE($O14,\"}\",CHAR(160),FE$1))-FIND(CHAR(160),SUBSTITUTE($O14,\"{\",CHAR(160),FE$1))+1),\"\")","v":""},{"$f":"IFERROR(MID($O14,FIND(CHAR(160),SUBSTITUTE($O14,\"{\",CHAR(160),FF$1)),FIND(CHAR(160),SUBSTITUTE($O14,\"}\",CHAR(160),FF$1))-FIND(CHAR(160),SUBSTITUTE($O14,\"{\",CHAR(160),FF$1))+1),\"\")","v":""},{"$f":"IFERROR(MID($O14,FIND(CHAR(160),SUBSTITUTE($O14,\"{\",CHAR(160),FG$1)),FIND(CHAR(160),SUBSTITUTE($O14,\"}\",CHAR(160),FG$1))-FIND(CHAR(160),SUBSTITUTE($O14,\"{\",CHAR(160),FG$1))+1),\"\")","v":""},{"$f":"IFERROR(MID($O14,FIND(CHAR(160),SUBSTITUTE($O14,\"{\",CHAR(160),FH$1)),FIND(CHAR(160),SUBSTITUTE($O14,\"}\",CHAR(160),FH$1))-FIND(CHAR(160),SUBSTITUTE($O14,\"{\",CHAR(160),FH$1))+1),\"\")","v":""},{"$f":"IFERROR(MID($O14,FIND(CHAR(160),SUBSTITUTE($O14,\"{\",CHAR(160),FI$1)),FIND(CHAR(160),SUBSTITUTE($O14,\"}\",CHAR(160),FI$1))-FIND(CHAR(160),SUBSTITUTE($O14,\"{\",CHAR(160),FI$1))+1),\"\")","v":""},{"$f":"IFERROR(MID($O14,FIND(CHAR(160),SUBSTITUTE($O14,\"{\",CHAR(160),FJ$1)),FIND(CHAR(160),SUBSTITUTE($O14,\"}\",CHAR(160),FJ$1))-FIND(CHAR(160),SUBSTITUTE($O14,\"{\",CHAR(160),FJ$1))+1),\"\")","v":""},{"$f":"IFERROR(MID($O14,FIND(CHAR(160),SUBSTITUTE($O14,\"{\",CHAR(160),FK$1)),FIND(CHAR(160),SUBSTITUTE($O14,\"}\",CHAR(160),FK$1))-FIND(CHAR(160),SUBSTITUTE($O14,\"{\",CHAR(160),FK$1))+1),\"\")","v":"{Primary heating type}"},{"$f":"IFERROR(MID($O14,FIND(CHAR(160),SUBSTITUTE($O14,\"{\",CHAR(160),FL$1)),FIND(CHAR(160),SUBSTITUTE($O14,\"}\",CHAR(160),FL$1))-FIND(CHAR(160),SUBSTITUTE($O14,\"{\",CHAR(160),FL$1))+1),\"\")","v":"{Primary heating type}"},{"$f":"IFERROR(MID($R14,FIND(CHAR(160),SUBSTITUTE($R14,\"{\",CHAR(160),FM$1)),FIND(CHAR(160),SUBSTITUTE($R14,\"}\",CHAR(160),FM$1))-FIND(CHAR(160),SUBSTITUTE($R14,\"{\",CHAR(160),FM$1))+1),\"\")","v":""},{"$f":"IFERROR(MID($R14,FIND(CHAR(160),SUBSTITUTE($R14,\"{\",CHAR(160),FN$1)),FIND(CHAR(160),SUBSTITUTE($R14,\"}\",CHAR(160),FN$1))-FIND(CHAR(160),SUBSTITUTE($R14,\"{\",CHAR(160),FN$1))+1),\"\")","v":""},{"$f":"IFERROR(MID($R14,FIND(CHAR(160),SUBSTITUTE($R14,\"{\",CHAR(160),FO$1)),FIND(CHAR(160),SUBSTITUTE($R14,\"}\",CHAR(160),FO$1))-FIND(CHAR(160),SUBSTITUTE($R14,\"{\",CHAR(160),FO$1))+1),\"\")","v":""},{"$f":"IFERROR(MID($R14,FIND(CHAR(160),SUBSTITUTE($R14,\"{\",CHAR(160),FP$1)),FIND(CHAR(160),SUBSTITUTE($R14,\"}\",CHAR(160),FP$1))-FIND(CHAR(160),SUBSTITUTE($R14,\"{\",CHAR(160),FP$1))+1),\"\")","v":""},{"$f":"IFERROR(MID($R14,FIND(CHAR(160),SUBSTITUTE($R14,\"{\",CHAR(160),FQ$1)),FIND(CHAR(160),SUBSTITUTE($R14,\"}\",CHAR(160),FQ$1))-FIND(CHAR(160),SUBSTITUTE($R14,\"{\",CHAR(160),FQ$1))+1),\"\")","v":""},{"$f":"IFERROR(MID($R14,FIND(CHAR(160),SUBSTITUTE($R14,\"{\",CHAR(160),FR$1)),FIND(CHAR(160),SUBSTITUTE($R14,\"}\",CHAR(160),FR$1))-FIND(CHAR(160),SUBSTITUTE($R14,\"{\",CHAR(160),FR$1))+1),\"\")","v":""},{"$f":"IFERROR(MID($R14,FIND(CHAR(160),SUBSTITUTE($R14,\"{\",CHAR(160),FS$1)),FIND(CHAR(160),SUBSTITUTE($R14,\"}\",CHAR(160),FS$1))-FIND(CHAR(160),SUBSTITUTE($R14,\"{\",CHAR(160),FS$1))+1),\"\")","v":""},{"$f":"IFERROR(MID($R14,FIND(CHAR(160),SUBSTITUTE($R14,\"{\",CHAR(160),FT$1)),FIND(CHAR(160),SUBSTITUTE($R14,\"}\",CHAR(160),FT$1))-FIND(CHAR(160),SUBSTITUTE($R14,\"{\",CHAR(160),FT$1))+1),\"\")","v":""},{"$f":"IFERROR(MID($R14,FIND(CHAR(160),SUBSTITUTE($R14,\"{\",CHAR(160),FU$1)),FIND(CHAR(160),SUBSTITUTE($R14,\"}\",CHAR(160),FU$1))-FIND(CHAR(160),SUBSTITUTE($R14,\"{\",CHAR(160),FU$1))+1),\"\")","v":"{Primary heating type}"},{"$f":"IFERROR(MID($R14,FIND(CHAR(160),SUBSTITUTE($R14,\"{\",CHAR(160),FV$1)),FIND(CHAR(160),SUBSTITUTE($R14,\"}\",CHAR(160),FV$1))-FIND(CHAR(160),SUBSTITUTE($R14,\"{\",CHAR(160),FV$1))+1),\"\")","v":"{Primary heating type}"},{"$f":"IFERROR(MID($U14,FIND(CHAR(160),SUBSTITUTE($U14,\"{\",CHAR(160),FW$1)),FIND(CHAR(160),SUBSTITUTE($U14,\"}\",CHAR(160),FW$1))-FIND(CHAR(160),SUBSTITUTE($U14,\"{\",CHAR(160),FW$1))+1),\"\")","v":""},{"$f":"IFERROR(MID($U14,FIND(CHAR(160),SUBSTITUTE($U14,\"{\",CHAR(160),FX$1)),FIND(CHAR(160),SUBSTITUTE($U14,\"}\",CHAR(160),FX$1))-FIND(CHAR(160),SUBSTITUTE($U14,\"{\",CHAR(160),FX$1))+1),\"\")","v":""},{"$f":"IFERROR(MID($U14,FIND(CHAR(160),SUBSTITUTE($U14,\"{\",CHAR(160),FY$1)),FIND(CHAR(160),SUBSTITUTE($U14,\"}\",CHAR(160),FY$1))-FIND(CHAR(160),SUBSTITUTE($U14,\"{\",CHAR(160),FY$1))+1),\"\")","v":""},{"$f":"IFERROR(MID($U14,FIND(CHAR(160),SUBSTITUTE($U14,\"{\",CHAR(160),FZ$1)),FIND(CHAR(160),SUBSTITUTE($U14,\"}\",CHAR(160),FZ$1))-FIND(CHAR(160),SUBSTITUTE($U14,\"{\",CHAR(160),FZ$1))+1),\"\")","v":""},{"$f":"IFERROR(MID($U14,FIND(CHAR(160),SUBSTITUTE($U14,\"{\",CHAR(160),GA$1)),FIND(CHAR(160),SUBSTITUTE($U14,\"}\",CHAR(160),GA$1))-FIND(CHAR(160),SUBSTITUTE($U14,\"{\",CHAR(160),GA$1))+1),\"\")","v":""},{"$f":"IFERROR(MID($U14,FIND(CHAR(160),SUBSTITUTE($U14,\"{\",CHAR(160),GB$1)),FIND(CHAR(160),SUBSTITUTE($U14,\"}\",CHAR(160),GB$1))-FIND(CHAR(160),SUBSTITUTE($U14,\"{\",CHAR(160),GB$1))+1),\"\")","v":""},{"$f":"IFERROR(MID($U14,FIND(CHAR(160),SUBSTITUTE($U14,\"{\",CHAR(160),GC$1)),FIND(CHAR(160),SUBSTITUTE($U14,\"}\",CHAR(160),GC$1))-FIND(CHAR(160),SUBSTITUTE($U14,\"{\",CHAR(160),GC$1))+1),\"\")","v":""},{"$f":"IFERROR(MID($U14,FIND(CHAR(160),SUBSTITUTE($U14,\"{\",CHAR(160),GD$1)),FIND(CHAR(160),SUBSTITUTE($U14,\"}\",CHAR(160),GD$1))-FIND(CHAR(160),SUBSTITUTE($U14,\"{\",CHAR(160),GD$1))+1),\"\")","v":""},{"$f":"IFERROR(MID($U14,FIND(CHAR(160),SUBSTITUTE($U14,\"{\",CHAR(160),GE$1)),FIND(CHAR(160),SUBSTITUTE($U14,\"}\",CHAR(160),GE$1))-FIND(CHAR(160),SUBSTITUTE($U14,\"{\",CHAR(160),GE$1))+1),\"\")","v":"{Primary heating type}"},{"$f":"IFERROR(MID($U14,FIND(CHAR(160),SUBSTITUTE($U14,\"{\",CHAR(160),GF$1)),FIND(CHAR(160),SUBSTITUTE($U14,\"}\",CHAR(160),GF$1))-FIND(CHAR(160),SUBSTITUTE($U14,\"{\",CHAR(160),GF$1))+1),\"\")","v":"{Primary heating type}"},{"$f":"IFERROR(MID($V14,FIND(CHAR(160),SUBSTITUTE($V14,\"{\",CHAR(160),GG$1)),FIND(CHAR(160),SUBSTITUTE($V14,\"}\",CHAR(160),GG$1))-FIND(CHAR(160),SUBSTITUTE($V14,\"{\",CHAR(160),GG$1))+1),\"\")","v":""},{"$f":"IFERROR(MID($V14,FIND(CHAR(160),SUBSTITUTE($V14,\"{\",CHAR(160),GH$1)),FIND(CHAR(160),SUBSTITUTE($V14,\"}\",CHAR(160),GH$1))-FIND(CHAR(160),SUBSTITUTE($V14,\"{\",CHAR(160),GH$1))+1),\"\")","v":""},{"$f":"IFERROR(MID($V14,FIND(CHAR(160),SUBSTITUTE($V14,\"{\",CHAR(160),GI$1)),FIND(CHAR(160),SUBSTITUTE($V14,\"}\",CHAR(160),GI$1))-FIND(CHAR(160),SUBSTITUTE($V14,\"{\",CHAR(160),GI$1))+1),\"\")","v":""},{"$f":"IFERROR(MID($V14,FIND(CHAR(160),SUBSTITUTE($V14,\"{\",CHAR(160),GJ$1)),FIND(CHAR(160),SUBSTITUTE($V14,\"}\",CHAR(160),GJ$1))-FIND(CHAR(160),SUBSTITUTE($V14,\"{\",CHAR(160),GJ$1))+1),\"\")","v":""},{"$f":"IFERROR(MID($V14,FIND(CHAR(160),SUBSTITUTE($V14,\"{\",CHAR(160),GK$1)),FIND(CHAR(160),SUBSTITUTE($V14,\"}\",CHAR(160),GK$1))-FIND(CHAR(160),SUBSTITUTE($V14,\"{\",CHAR(160),GK$1))+1),\"\")","v":""},{"$f":"IFERROR(MID($V14,FIND(CHAR(160),SUBSTITUTE($V14,\"{\",CHAR(160),GL$1)),FIND(CHAR(160),SUBSTITUTE($V14,\"}\",CHAR(160),GL$1))-FIND(CHAR(160),SUBSTITUTE($V14,\"{\",CHAR(160),GL$1))+1),\"\")","v":""},{"$f":"IFERROR(MID($V14,FIND(CHAR(160),SUBSTITUTE($V14,\"{\",CHAR(160),GM$1)),FIND(CHAR(160),SUBSTITUTE($V14,\"}\",CHAR(160),GM$1))-FIND(CHAR(160),SUBSTITUTE($V14,\"{\",CHAR(160),GM$1))+1),\"\")","v":""},{"$f":"IFERROR(MID($V14,FIND(CHAR(160),SUBSTITUTE($V14,\"{\",CHAR(160),GN$1)),FIND(CHAR(160),SUBSTITUTE($V14,\"}\",CHAR(160),GN$1))-FIND(CHAR(160),SUBSTITUTE($V14,\"{\",CHAR(160),GN$1))+1),\"\")","v":""},{"$f":"IFERROR(MID($V14,FIND(CHAR(160),SUBSTITUTE($V14,\"{\",CHAR(160),GO$1)),FIND(CHAR(160),SUBSTITUTE($V14,\"}\",CHAR(160),GO$1))-FIND(CHAR(160),SUBSTITUTE($V14,\"{\",CHAR(160),GO$1))+1),\"\")","v":"{Primary heating type}"},{"$f":"IFERROR(MID($V14,FIND(CHAR(160),SUBSTITUTE($V14,\"{\",CHAR(160),GP$1)),FIND(CHAR(160),SUBSTITUTE($V14,\"}\",CHAR(160),GP$1))-FIND(CHAR(160),SUBSTITUTE($V14,\"{\",CHAR(160),GP$1))+1),\"\")","v":"{Primary heating type}"},{"$f":"IFERROR(MID($W14,FIND(CHAR(160),SUBSTITUTE($W14,\"{\",CHAR(160),GQ$1)),FIND(CHAR(160),SUBSTITUTE($W14,\"}\",CHAR(160),GQ$1))-FIND(CHAR(160),SUBSTITUTE($W14,\"{\",CHAR(160),GQ$1))+1),\"\")","v":""},{"$f":"IFERROR(MID($W14,FIND(CHAR(160),SUBSTITUTE($W14,\"{\",CHAR(160),GR$1)),FIND(CHAR(160),SUBSTITUTE($W14,\"}\",CHAR(160),GR$1))-FIND(CHAR(160),SUBSTITUTE($W14,\"{\",CHAR(160),GR$1))+1),\"\")","v":""},{"$f":"IFERROR(MID($W14,FIND(CHAR(160),SUBSTITUTE($W14,\"{\",CHAR(160),GS$1)),FIND(CHAR(160),SUBSTITUTE($W14,\"}\",CHAR(160),GS$1))-FIND(CHAR(160),SUBSTITUTE($W14,\"{\",CHAR(160),GS$1))+1),\"\")","v":""},{"$f":"IFERROR(MID($W14,FIND(CHAR(160),SUBSTITUTE($W14,\"{\",CHAR(160),GT$1)),FIND(CHAR(160),SUBSTITUTE($W14,\"}\",CHAR(160),GT$1))-FIND(CHAR(160),SUBSTITUTE($W14,\"{\",CHAR(160),GT$1))+1),\"\")","v":""},{"$f":"IFERROR(MID($W14,FIND(CHAR(160),SUBSTITUTE($W14,\"{\",CHAR(160),GU$1)),FIND(CHAR(160),SUBSTITUTE($W14,\"}\",CHAR(160),GU$1))-FIND(CHAR(160),SUBSTITUTE($W14,\"{\",CHAR(160),GU$1))+1),\"\")","v":""},{"$f":"IFERROR(MID($W14,FIND(CHAR(160),SUBSTITUTE($W14,\"{\",CHAR(160),GV$1)),FIND(CHAR(160),SUBSTITUTE($W14,\"}\",CHAR(160),GV$1))-FIND(CHAR(160),SUBSTITUTE($W14,\"{\",CHAR(160),GV$1))+1),\"\")","v":""},{"$f":"IFERROR(MID($W14,FIND(CHAR(160),SUBSTITUTE($W14,\"{\",CHAR(160),GW$1)),FIND(CHAR(160),SUBSTITUTE($W14,\"}\",CHAR(160),GW$1))-FIND(CHAR(160),SUBSTITUTE($W14,\"{\",CHAR(160),GW$1))+1),\"\")","v":""},{"$f":"IFERROR(MID($W14,FIND(CHAR(160),SUBSTITUTE($W14,\"{\",CHAR(160),GX$1)),FIND(CHAR(160),SUBSTITUTE($W14,\"}\",CHAR(160),GX$1))-FIND(CHAR(160),SUBSTITUTE($W14,\"{\",CHAR(160),GX$1))+1),\"\")","v":""},{"$f":"IFERROR(MID($W14,FIND(CHAR(160),SUBSTITUTE($W14,\"{\",CHAR(160),GY$1)),FIND(CHAR(160),SUBSTITUTE($W14,\"}\",CHAR(160),GY$1))-FIND(CHAR(160),SUBSTITUTE($W14,\"{\",CHAR(160),GY$1))+1),\"\")","v":"{Primary heating type}"},{"$f":"IFERROR(MID($W14,FIND(CHAR(160),SUBSTITUTE($W14,\"{\",CHAR(160),GZ$1)),FIND(CHAR(160),SUBSTITUTE($W14,\"}\",CHAR(160),GZ$1))-FIND(CHAR(160),SUBSTITUTE($W14,\"{\",CHAR(160),GZ$1))+1),\"\")","v":"{Primary heating type}"},{"$f":"IFERROR(MID($X14,FIND(CHAR(160),SUBSTITUTE($X14,\"{\",CHAR(160),HA$1)),FIND(CHAR(160),SUBSTITUTE($X14,\"}\",CHAR(160),HA$1))-FIND(CHAR(160),SUBSTITUTE($X14,\"{\",CHAR(160),HA$1))+1),\"\")","v":""},{"$f":"IFERROR(MID($X14,FIND(CHAR(160),SUBSTITUTE($X14,\"{\",CHAR(160),HB$1)),FIND(CHAR(160),SUBSTITUTE($X14,\"}\",CHAR(160),HB$1))-FIND(CHAR(160),SUBSTITUTE($X14,\"{\",CHAR(160),HB$1))+1),\"\")","v":""},{"$f":"IFERROR(MID($X14,FIND(CHAR(160),SUBSTITUTE($X14,\"{\",CHAR(160),HC$1)),FIND(CHAR(160),SUBSTITUTE($X14,\"}\",CHAR(160),HC$1))-FIND(CHAR(160),SUBSTITUTE($X14,\"{\",CHAR(160),HC$1))+1),\"\")","v":""},{"$f":"IFERROR(MID($X14,FIND(CHAR(160),SUBSTITUTE($X14,\"{\",CHAR(160),HD$1)),FIND(CHAR(160),SUBSTITUTE($X14,\"}\",CHAR(160),HD$1))-FIND(CHAR(160),SUBSTITUTE($X14,\"{\",CHAR(160),HD$1))+1),\"\")","v":""},{"$f":"IFERROR(MID($X14,FIND(CHAR(160),SUBSTITUTE($X14,\"{\",CHAR(160),HE$1)),FIND(CHAR(160),SUBSTITUTE($X14,\"}\",CHAR(160),HE$1))-FIND(CHAR(160),SUBSTITUTE($X14,\"{\",CHAR(160),HE$1))+1),\"\")","v":""},{"$f":"IFERROR(MID($X14,FIND(CHAR(160),SUBSTITUTE($X14,\"{\",CHAR(160),HF$1)),FIND(CHAR(160),SUBSTITUTE($X14,\"}\",CHAR(160),HF$1))-FIND(CHAR(160),SUBSTITUTE($X14,\"{\",CHAR(160),HF$1))+1),\"\")","v":""},{"$f":"IFERROR(MID($X14,FIND(CHAR(160),SUBSTITUTE($X14,\"{\",CHAR(160),HG$1)),FIND(CHAR(160),SUBSTITUTE($X14,\"}\",CHAR(160),HG$1))-FIND(CHAR(160),SUBSTITUTE($X14,\"{\",CHAR(160),HG$1))+1),\"\")","v":""},{"$f":"IFERROR(MID($X14,FIND(CHAR(160),SUBSTITUTE($X14,\"{\",CHAR(160),HH$1)),FIND(CHAR(160),SUBSTITUTE($X14,\"}\",CHAR(160),HH$1))-FIND(CHAR(160),SUBSTITUTE($X14,\"{\",CHAR(160),HH$1))+1),\"\")","v":""},{"$f":"IFERROR(MID($X14,FIND(CHAR(160),SUBSTITUTE($X14,\"{\",CHAR(160),HI$1)),FIND(CHAR(160),SUBSTITUTE($X14,\"}\",CHAR(160),HI$1))-FIND(CHAR(160),SUBSTITUTE($X14,\"{\",CHAR(160),HI$1))+1),\"\")","v":"{Primary heating type}"},{"$f":"IFERROR(MID($X14,FIND(CHAR(160),SUBSTITUTE($X14,\"{\",CHAR(160),HJ$1)),FIND(CHAR(160),SUBSTITUTE($X14,\"}\",CHAR(160),HJ$1))-FIND(CHAR(160),SUBSTITUTE($X14,\"{\",CHAR(160),HJ$1))+1),\"\")","v":"{Primary heating type}"},{"$f":"IFERROR(MID($Y14,FIND(CHAR(160),SUBSTITUTE($Y14,\"{\",CHAR(160),HK$1)),FIND(CHAR(160),SUBSTITUTE($Y14,\"}\",CHAR(160),HK$1))-FIND(CHAR(160),SUBSTITUTE($Y14,\"{\",CHAR(160),HK$1))+1),\"\")","v":""},{"$f":"IFERROR(MID($Y14,FIND(CHAR(160),SUBSTITUTE($Y14,\"{\",CHAR(160),HL$1)),FIND(CHAR(160),SUBSTITUTE($Y14,\"}\",CHAR(160),HL$1))-FIND(CHAR(160),SUBSTITUTE($Y14,\"{\",CHAR(160),HL$1))+1),\"\")","v":""},{"$f":"IFERROR(MID($Y14,FIND(CHAR(160),SUBSTITUTE($Y14,\"{\",CHAR(160),HM$1)),FIND(CHAR(160),SUBSTITUTE($Y14,\"}\",CHAR(160),HM$1))-FIND(CHAR(160),SUBSTITUTE($Y14,\"{\",CHAR(160),HM$1))+1),\"\")","v":""},{"$f":"IFERROR(MID($Y14,FIND(CHAR(160),SUBSTITUTE($Y14,\"{\",CHAR(160),HN$1)),FIND(CHAR(160),SUBSTITUTE($Y14,\"}\",CHAR(160),HN$1))-FIND(CHAR(160),SUBSTITUTE($Y14,\"{\",CHAR(160),HN$1))+1),\"\")","v":""},{"$f":"IFERROR(MID($Y14,FIND(CHAR(160),SUBSTITUTE($Y14,\"{\",CHAR(160),HO$1)),FIND(CHAR(160),SUBSTITUTE($Y14,\"}\",CHAR(160),HO$1))-FIND(CHAR(160),SUBSTITUTE($Y14,\"{\",CHAR(160),HO$1))+1),\"\")","v":""},{"$f":"IFERROR(MID($Y14,FIND(CHAR(160),SUBSTITUTE($Y14,\"{\",CHAR(160),HP$1)),FIND(CHAR(160),SUBSTITUTE($Y14,\"}\",CHAR(160),HP$1))-FIND(CHAR(160),SUBSTITUTE($Y14,\"{\",CHAR(160),HP$1))+1),\"\")","v":""},{"$f":"IFERROR(MID($Y14,FIND(CHAR(160),SUBSTITUTE($Y14,\"{\",CHAR(160),HQ$1)),FIND(CHAR(160),SUBSTITUTE($Y14,\"}\",CHAR(160),HQ$1))-FIND(CHAR(160),SUBSTITUTE($Y14,\"{\",CHAR(160),HQ$1))+1),\"\")","v":""},{"$f":"IFERROR(MID($Y14,FIND(CHAR(160),SUBSTITUTE($Y14,\"{\",CHAR(160),HR$1)),FIND(CHAR(160),SUBSTITUTE($Y14,\"}\",CHAR(160),HR$1))-FIND(CHAR(160),SUBSTITUTE($Y14,\"{\",CHAR(160),HR$1))+1),\"\")","v":""},{"$f":"IFERROR(MID($Y14,FIND(CHAR(160),SUBSTITUTE($Y14,\"{\",CHAR(160),HS$1)),FIND(CHAR(160),SUBSTITUTE($Y14,\"}\",CHAR(160),HS$1))-FIND(CHAR(160),SUBSTITUTE($Y14,\"{\",CHAR(160),HS$1))+1),\"\")","v":"{Primary heating type}"},{"$f":"IFERROR(MID($Y14,FIND(CHAR(160),SUBSTITUTE($Y14,\"{\",CHAR(160),HT$1)),FIND(CHAR(160),SUBSTITUTE($Y14,\"}\",CHAR(160),HT$1))-FIND(CHAR(160),SUBSTITUTE($Y14,\"{\",CHAR(160),HT$1))+1),\"\")","v":"{Primary heating type}"},{"$f":"IFERROR(MID($Z14,FIND(CHAR(160),SUBSTITUTE($Z14,\"{\",CHAR(160),HU$1)),FIND(CHAR(160),SUBSTITUTE($Z14,\"}\",CHAR(160),HU$1))-FIND(CHAR(160),SUBSTITUTE($Z14,\"{\",CHAR(160),HU$1))+1),\"\")","v":""},{"$f":"IFERROR(MID($Z14,FIND(CHAR(160),SUBSTITUTE($Z14,\"{\",CHAR(160),HV$1)),FIND(CHAR(160),SUBSTITUTE($Z14,\"}\",CHAR(160),HV$1))-FIND(CHAR(160),SUBSTITUTE($Z14,\"{\",CHAR(160),HV$1))+1),\"\")","v":""},{"$f":"IFERROR(MID($Z14,FIND(CHAR(160),SUBSTITUTE($Z14,\"{\",CHAR(160),HW$1)),FIND(CHAR(160),SUBSTITUTE($Z14,\"}\",CHAR(160),HW$1))-FIND(CHAR(160),SUBSTITUTE($Z14,\"{\",CHAR(160),HW$1))+1),\"\")","v":""},{"$f":"IFERROR(MID($Z14,FIND(CHAR(160),SUBSTITUTE($Z14,\"{\",CHAR(160),HX$1)),FIND(CHAR(160),SUBSTITUTE($Z14,\"}\",CHAR(160),HX$1))-FIND(CHAR(160),SUBSTITUTE($Z14,\"{\",CHAR(160),HX$1))+1),\"\")","v":""},{"$f":"IFERROR(MID($Z14,FIND(CHAR(160),SUBSTITUTE($Z14,\"{\",CHAR(160),HY$1)),FIND(CHAR(160),SUBSTITUTE($Z14,\"}\",CHAR(160),HY$1))-FIND(CHAR(160),SUBSTITUTE($Z14,\"{\",CHAR(160),HY$1))+1),\"\")","v":""},{"$f":"IFERROR(MID($Z14,FIND(CHAR(160),SUBSTITUTE($Z14,\"{\",CHAR(160),HZ$1)),FIND(CHAR(160),SUBSTITUTE($Z14,\"}\",CHAR(160),HZ$1))-FIND(CHAR(160),SUBSTITUTE($Z14,\"{\",CHAR(160),HZ$1))+1),\"\")","v":""},{"$f":"IFERROR(MID($Z14,FIND(CHAR(160),SUBSTITUTE($Z14,\"{\",CHAR(160),IA$1)),FIND(CHAR(160),SUBSTITUTE($Z14,\"}\",CHAR(160),IA$1))-FIND(CHAR(160),SUBSTITUTE($Z14,\"{\",CHAR(160),IA$1))+1),\"\")","v":""},{"$f":"IFERROR(MID($Z14,FIND(CHAR(160),SUBSTITUTE($Z14,\"{\",CHAR(160),IB$1)),FIND(CHAR(160),SUBSTITUTE($Z14,\"}\",CHAR(160),IB$1))-FIND(CHAR(160),SUBSTITUTE($Z14,\"{\",CHAR(160),IB$1))+1),\"\")","v":""},{"$f":"IFERROR(MID($Z14,FIND(CHAR(160),SUBSTITUTE($Z14,\"{\",CHAR(160),IC$1)),FIND(CHAR(160),SUBSTITUTE($Z14,\"}\",CHAR(160),IC$1))-FIND(CHAR(160),SUBSTITUTE($Z14,\"{\",CHAR(160),IC$1))+1),\"\")","v":"{Primary heating type}"},{"$f":"IFERROR(MID($Z14,FIND(CHAR(160),SUBSTITUTE($Z14,\"{\",CHAR(160),ID$1)),FIND(CHAR(160),SUBSTITUTE($Z14,\"}\",CHAR(160),ID$1))-FIND(CHAR(160),SUBSTITUTE($Z14,\"{\",CHAR(160),ID$1))+1),\"\")","v":"{Primary heating type}"},{"$f":"IFERROR(MID($AA14,FIND(CHAR(160),SUBSTITUTE($AA14,\"{\",CHAR(160),IE$1)),FIND(CHAR(160),SUBSTITUTE($AA14,\"}\",CHAR(160),IE$1))-FIND(CHAR(160),SUBSTITUTE($AA14,\"{\",CHAR(160),IE$1))+1),\"\")","v":""},{"$f":"IFERROR(MID($AA14,FIND(CHAR(160),SUBSTITUTE($AA14,\"{\",CHAR(160),IF$1)),FIND(CHAR(160),SUBSTITUTE($AA14,\"}\",CHAR(160),IF$1))-FIND(CHAR(160),SUBSTITUTE($AA14,\"{\",CHAR(160),IF$1))+1),\"\")","v":""},{"$f":"IFERROR(MID($AA14,FIND(CHAR(160),SUBSTITUTE($AA14,\"{\",CHAR(160),IG$1)),FIND(CHAR(160),SUBSTITUTE($AA14,\"}\",CHAR(160),IG$1))-FIND(CHAR(160),SUBSTITUTE($AA14,\"{\",CHAR(160),IG$1))+1),\"\")","v":""},{"$f":"IFERROR(MID($AA14,FIND(CHAR(160),SUBSTITUTE($AA14,\"{\",CHAR(160),IH$1)),FIND(CHAR(160),SUBSTITUTE($AA14,\"}\",CHAR(160),IH$1))-FIND(CHAR(160),SUBSTITUTE($AA14,\"{\",CHAR(160),IH$1))+1),\"\")","v":""},{"$f":"IFERROR(MID($AA14,FIND(CHAR(160),SUBSTITUTE($AA14,\"{\",CHAR(160),II$1)),FIND(CHAR(160),SUBSTITUTE($AA14,\"}\",CHAR(160),II$1))-FIND(CHAR(160),SUBSTITUTE($AA14,\"{\",CHAR(160),II$1))+1),\"\")","v":""},{"$f":"IFERROR(MID($AA14,FIND(CHAR(160),SUBSTITUTE($AA14,\"{\",CHAR(160),IJ$1)),FIND(CHAR(160),SUBSTITUTE($AA14,\"}\",CHAR(160),IJ$1))-FIND(CHAR(160),SUBSTITUTE($AA14,\"{\",CHAR(160),IJ$1))+1),\"\")","v":""},{"$f":"IFERROR(MID($AA14,FIND(CHAR(160),SUBSTITUTE($AA14,\"{\",CHAR(160),IK$1)),FIND(CHAR(160),SUBSTITUTE($AA14,\"}\",CHAR(160),IK$1))-FIND(CHAR(160),SUBSTITUTE($AA14,\"{\",CHAR(160),IK$1))+1),\"\")","v":""},{"$f":"IFERROR(MID($AA14,FIND(CHAR(160),SUBSTITUTE($AA14,\"{\",CHAR(160),IL$1)),FIND(CHAR(160),SUBSTITUTE($AA14,\"}\",CHAR(160),IL$1))-FIND(CHAR(160),SUBSTITUTE($AA14,\"{\",CHAR(160),IL$1))+1),\"\")","v":""},{"$f":"IFERROR(MID($AA14,FIND(CHAR(160),SUBSTITUTE($AA14,\"{\",CHAR(160),IM$1)),FIND(CHAR(160),SUBSTITUTE($AA14,\"}\",CHAR(160),IM$1))-FIND(CHAR(160),SUBSTITUTE($AA14,\"{\",CHAR(160),IM$1))+1),\"\")","v":"{Primary heating type}"},{"$f":"IFERROR(MID($AA14,FIND(CHAR(160),SUBSTITUTE($AA14,\"{\",CHAR(160),IN$1)),FIND(CHAR(160),SUBSTITUTE($AA14,\"}\",CHAR(160),IN$1))-FIND(CHAR(160),SUBSTITUTE($AA14,\"{\",CHAR(160),IN$1))+1),\"\")","v":"{Primary heating type}"},{"$f":"IFERROR(MID($AB14,FIND(CHAR(160),SUBSTITUTE($AB14,\"{\",CHAR(160),IO$1)),FIND(CHAR(160),SUBSTITUTE($AB14,\"}\",CHAR(160),IO$1))-FIND(CHAR(160),SUBSTITUTE($AB14,\"{\",CHAR(160),IO$1))+1),\"\")","v":""},{"$f":"IFERROR(MID($AB14,FIND(CHAR(160),SUBSTITUTE($AB14,\"{\",CHAR(160),IP$1)),FIND(CHAR(160),SUBSTITUTE($AB14,\"}\",CHAR(160),IP$1))-FIND(CHAR(160),SUBSTITUTE($AB14,\"{\",CHAR(160),IP$1))+1),\"\")","v":""},{"$f":"IFERROR(MID($AB14,FIND(CHAR(160),SUBSTITUTE($AB14,\"{\",CHAR(160),IQ$1)),FIND(CHAR(160),SUBSTITUTE($AB14,\"}\",CHAR(160),IQ$1))-FIND(CHAR(160),SUBSTITUTE($AB14,\"{\",CHAR(160),IQ$1))+1),\"\")","v":""},{"$f":"IFERROR(MID($AB14,FIND(CHAR(160),SUBSTITUTE($AB14,\"{\",CHAR(160),IR$1)),FIND(CHAR(160),SUBSTITUTE($AB14,\"}\",CHAR(160),IR$1))-FIND(CHAR(160),SUBSTITUTE($AB14,\"{\",CHAR(160),IR$1))+1),\"\")","v":""},{"$f":"IFERROR(MID($AB14,FIND(CHAR(160),SUBSTITUTE($AB14,\"{\",CHAR(160),IS$1)),FIND(CHAR(160),SUBSTITUTE($AB14,\"}\",CHAR(160),IS$1))-FIND(CHAR(160),SUBSTITUTE($AB14,\"{\",CHAR(160),IS$1))+1),\"\")","v":""},{"$f":"IFERROR(MID($AB14,FIND(CHAR(160),SUBSTITUTE($AB14,\"{\",CHAR(160),IT$1)),FIND(CHAR(160),SUBSTITUTE($AB14,\"}\",CHAR(160),IT$1))-FIND(CHAR(160),SUBSTITUTE($AB14,\"{\",CHAR(160),IT$1))+1),\"\")","v":""},{"$f":"IFERROR(MID($AB14,FIND(CHAR(160),SUBSTITUTE($AB14,\"{\",CHAR(160),IU$1)),FIND(CHAR(160),SUBSTITUTE($AB14,\"}\",CHAR(160),IU$1))-FIND(CHAR(160),SUBSTITUTE($AB14,\"{\",CHAR(160),IU$1))+1),\"\")","v":""},{"$f":"IFERROR(MID($AB14,FIND(CHAR(160),SUBSTITUTE($AB14,\"{\",CHAR(160),IV$1)),FIND(CHAR(160),SUBSTITUTE($AB14,\"}\",CHAR(160),IV$1))-FIND(CHAR(160),SUBSTITUTE($AB14,\"{\",CHAR(160),IV$1))+1),\"\")","v":""},{"$f":"IFERROR(MID($AB14,FIND(CHAR(160),SUBSTITUTE($AB14,\"{\",CHAR(160),IW$1)),FIND(CHAR(160),SUBSTITUTE($AB14,\"}\",CHAR(160),IW$1))-FIND(CHAR(160),SUBSTITUTE($AB14,\"{\",CHAR(160),IW$1))+1),\"\")","v":""},{"$f":"IFERROR(MID($AB14,FIND(CHAR(160),SUBSTITUTE($AB14,\"{\",CHAR(160),IX$1)),FIND(CHAR(160),SUBSTITUTE($AB14,\"}\",CHAR(160),IX$1))-FIND(CHAR(160),SUBSTITUTE($AB14,\"{\",CHAR(160),IX$1))+1),\"\")","v":""},null,{"$f":"10-COUNTIF(DU14:ED14,\"\")","v":3}]
["Affordable Heat Initiative - Other Fuels","Air Sealing LIHESP","LAA","2021-07-01","2022-06-30","Calculated","{Cost}*{Measure:Quantity}",0,"Calculated","$600.00*{Measure:Quantity}",600,"2020-07-01","2022-06-30","Calculated","if({Primary heating type}=6,1514,if({Primary heating type}=0,67,10))",null,null,"if({Primary heating type}=6,0.026,if({Primary heating type}=0,0.026,0.026))",null,null,"if({Primary heating type}=6,0.331,if({Primary heating type}=0,0.013,0))","if({Primary heating type}=6,0.026,if({Primary heating type}=0,0.026,0.026))","if({Primary heating type}=1,6.184,if({Primary heating type}=0,0.557,0))*10","if({Primary heating type}=2,6.184,if({Primary heating type} = 0,0.810,0))","if({Primary heating type}=3,6.184,if({Primary heating type} = 0,4.230,0))","if({Primary heating type}=4,6.184,if({Primary heating type} = 0,0.087,0))","if({Primary heating type}=5,6.184,if({Primary heating type} = 0,0.266,0))",0,"2019-07-01","2022-06-30",15,1,1,0,0,0.66600000000000004,0.30099999999999999,1,1,1,0,0,null,{"$f":"DU15","v":"{Cost}"},622,{"$f":"DV15","v":"{Measure:Quantity}"},1,{"$f":"DW15","v":"{Primary heating type}"},0,{"$f":"DX15","v":""},null,{"$f":"DY15","v":""},null,{"$f":"DZ15","v":""},null,{"$f":"EA15","v":""},null,{"$f":"EB15","v":""},null,{"$f":"EC15","v":""},null,{"$f":"ED15","v":""},null,{"$f":"IF(AW15=6,1514,IF(AW15=0,67,10))","v":67},0,0,{"$f":"IF(AW15=6,0.026,IF(AW15=0,0.026,0.026))","v":2.5999999999999999E-2},0,0,{"$f":"IF(AW15=6,0.331,IF(AW15=0,0.013,0))","v":1.2999999999999999E-2},{"$f":"IF(AW15=6,0.026,IF(AW15=0,0.026,0.026))","v":2.5999999999999999E-2},{"$f":"IF(AW15=1,6.184,IF(AW15=0,0.557,0))*10","v":5.57},{"$f":"IF(AW15=2,6.184,IF(AW15 = 0,0.81,0))","v":0.81},{"$f":"IF(AW15=3,6.184,IF(AW15 = 0,4.23,0))","v":4.2300000000000004},{"$f":"IF(AW15=4,6.184,IF(AW15 = 0,0.087,0))","v":8.6999999999999994E-2},{"$f":"IF(AW15=5,6.184,IF(AW15 = 0,0.266,0))","v":0.26600000000000001},{"$f":"0","v":0},null,"Res","RGGI DR",{"$f":"Benefits(BL15,BR15,BS15,BT15,BU15,BV15,BW15,BX15,BY15,BZ15,AE15,AH15,AI15,AJ15,AK15,AL15,AM15,AN15,AO15,AP15,CA15,CB15)","v":77.165781852639839},97.906526911760764,110.14803307307949,1784.6840484314644,42.666554401781305,477.28541099151329,70.021102837021118,0,0,{"$f":"SUMPRODUCT(CC15:CK15,--(CC15:CK15>0))","v":2659.8774584992607},{"$f":"-SUMPRODUCT(CC15:CK15,--(CC15:CK15<0))","v":0},null,{"$f":"AS15*AU15","v":622},null,null,{"$f":"CM15+CO15","v":622},{"$f":"IF(NetOrGross=\"Net\",(1-AO15+AP15),1)","v":1},{"$f":"(SUMPRODUCT(CC15:CJ15,--(CC15:CJ15>0))+CN15)*CS15/((-SUMPRODUCT(CC15:CJ15,--(CC15:CJ15<0))+MAX(CO15,CV15)+CP15+CQ15)*CS15+IF(FRIncentives=\"Yes\",CV15*(1-CS15),0))","v":4.2763303191306443},1,{"$f":"600*AU15","v":600},null,"RGGI","y",null,{"$f":"IF(F15=\"Manual Entry\",\"Manual\",IF(G15=\"\",0,\"X=\"&SUBSTITUTE(SUBSTITUTE(SUBSTITUTE(SUBSTITUTE(SUBSTITUTE(SUBSTITUTE(SUBSTITUTE(SUBSTITUTE(SUBSTITUTE(SUBSTITUTE(SUBSTITUTE(SUBSTITUTE(G15,$ED15,$ED$2&ROW($ED15)),$EC15,$EC$2&ROW($EC15)),$EB15,$EB$2&ROW($EB15)),$EA15,$EA$2&ROW($EA15)),$DZ15,$DZ$2&ROW($DZ15)),$DY15,$DY$2&ROW($DY15)),$DX15,$DX$2&ROW($DX15)),$DW15,$DW$2&ROW($DW15)),$DV15,$DV$2&ROW($DV15)),$DU15,$DU$2&ROW($DU15)),$DT15,$DT$2&ROW($DT15)),$DS15,$DS$2&ROW($DS15))))","v":"X=AS15*AU15"},{"$f":"IF(I15=\"Manual Entry\",\"Manual\",IF(J15=\"\",0,\"X=\"&SUBSTITUTE(SUBSTITUTE(SUBSTITUTE(SUBSTITUTE(SUBSTITUTE(SUBSTITUTE(SUBSTITUTE(SUBSTITUTE(SUBSTITUTE(SUBSTITUTE(SUBSTITUTE(SUBSTITUTE(J15,$ED15,$ED$2&ROW($ED15)),$EC15,$EC$2&ROW($EC15)),$EB15,$EB$2&ROW($EB15)),$EA15,$EA$2&ROW($EA15)),$DZ15,$DZ$2&ROW($DZ15)),$DY15,$DY$2&ROW($DY15)),$DX15,$DX$2&ROW($DX15)),$DW15,$DW$2&ROW($DW15)),$DV15,$DV$2&ROW($DV15)),$DU15,$DU$2&ROW($DU15)),$DT15,$DT$2&ROW($DT15)),$DS15,$DS$2&ROW($DS15))))","v":"X=$600.00*AU15"},{"$f":"IF(O15=\"\",0,\"X=\"&SUBSTITUTE(SUBSTITUTE(SUBSTITUTE(SUBSTITUTE(SUBSTITUTE(SUBSTITUTE(SUBSTITUTE(SUBSTITUTE(SUBSTITUTE(SUBSTITUTE(SUBSTITUTE(SUBSTITUTE(O15,$ED15,$ED$2&ROW($ED15)),$EC15,$EC$2&ROW($EC15)),$EB15,$EB$2&ROW($EB15)),$EA15,$EA$2&ROW($EA15)),$DZ15,$DZ$2&ROW($DZ15)),$DY15,$DY$2&ROW($DY15)),$DX15,$DX$2&ROW($DX15)),$DW15,$DW$2&ROW($DW15)),$DV15,$DV$2&ROW($DV15)),$DU15,$DU$2&ROW($DU15)),$DT15,$DT$2&ROW($DT15)),$DS15,$DS$2&ROW($DS15)))","v":"X=if(AW15=6,1514,if(AW15=0,67,10))"},{"$f":"IF(P15=\"\",0,\"X=\"&SUBSTITUTE(SUBSTITUTE(SUBSTITUTE(SUBSTITUTE(SUBSTITUTE(SUBSTITUTE(SUBSTITUTE(SUBSTITUTE(SUBSTITUTE(SUBSTITUTE(SUBSTITUTE(SUBSTITUTE(P15,$ED15,$ED$2&ROW($ED15)),$EC15,$EC$2&ROW($EC15)),$EB15,$EB$2&ROW($EB15)),$EA15,$EA$2&ROW($EA15)),$DZ15,$DZ$2&ROW($DZ15)),$DY15,$DY$2&ROW($DY15)),$DX15,$DX$2&ROW($DX15)),$DW15,$DW$2&ROW($DW15)),$DV15,$DV$2&ROW($DV15)),$DU15,$DU$2&ROW($DU15)),$DT15,$DT$2&ROW($DT15)),$DS15,$DS$2&ROW($DS15)))","v":0},{"$f":"IF(Q15=\"\",0,\"X=\"&SUBSTITUTE(SUBSTITUTE(SUBSTITUTE(SUBSTITUTE(SUBSTITUTE(SUBSTITUTE(SUBSTITUTE(SUBSTITUTE(SUBSTITUTE(SUBSTITUTE(SUBSTITUTE(SUBSTITUTE(Q15,$ED15,$ED$2&ROW($ED15)),$EC15,$EC$2&ROW($EC15)),$EB15,$EB$2&ROW($EB15)),$EA15,$EA$2&ROW($EA15)),$DZ15,$DZ$2&ROW($DZ15)),$DY15,$DY$2&ROW($DY15)),$DX15,$DX$2&ROW($DX15)),$DW15,$DW$2&ROW($DW15)),$DV15,$DV$2&ROW($DV15)),$DU15,$DU$2&ROW($DU15)),$DT15,$DT$2&ROW($DT15)),$DS15,$DS$2&ROW($DS15)))","v":0},{"$f":"IF(R15=\"\",0,\"X=\"&SUBSTITUTE(SUBSTITUTE(SUBSTITUTE(SUBSTITUTE(SUBSTITUTE(SUBSTITUTE(SUBSTITUTE(SUBSTITUTE(SUBSTITUTE(SUBSTITUTE(SUBSTITUTE(SUBSTITUTE(R15,$ED15,$ED$2&ROW($ED15)),$EC15,$EC$2&ROW($EC15)),$EB15,$EB$2&ROW($EB15)),$EA15,$EA$2&ROW($EA15)),$DZ15,$DZ$2&ROW($DZ15)),$DY15,$DY$2&ROW($DY15)),$DX15,$DX$2&ROW($DX15)),$DW15,$DW$2&ROW($DW15)),$DV15,$DV$2&ROW($DV15)),$DU15,$DU$2&ROW($DU15)),$DT15,$DT$2&ROW($DT15)),$DS15,$DS$2&ROW($DS15)))","v":"X=if(AW15=6,0.026,if(AW15=0,0.026,0.026))"},{"$f":"IF(S15=\"\",0,\"X=\"&SUBSTITUTE(SUBSTITUTE(SUBSTITUTE(SUBSTITUTE(SUBSTITUTE(SUBSTITUTE(SUBSTITUTE(SUBSTITUTE(SUBSTITUTE(SUBSTITUTE(SUBSTITUTE(SUBSTITUTE(S15,$ED15,$ED$2&ROW($ED15)),$EC15,$EC$2&ROW($EC15)),$EB15,$EB$2&ROW($EB15)),$EA15,$EA$2&ROW($EA15)),$DZ15,$DZ$2&ROW($DZ15)),$DY15,$DY$2&ROW($DY15)),$DX15,$DX$2&ROW($DX15)),$DW15,$DW$2&ROW($DW15)),$DV15,$DV$2&ROW($DV15)),$DU15,$DU$2&ROW($DU15)),$DT15,$DT$2&ROW($DT15)),$DS15,$DS$2&ROW($DS15)))","v":0},{"$f":"IF(T15=\"\",0,\"X=\"&SUBSTITUTE(SUBSTITUTE(SUBSTITUTE(SUBSTITUTE(SUBSTITUTE(SUBSTITUTE(SUBSTITUTE(SUBSTITUTE(SUBSTITUTE(SUBSTITUTE(SUBSTITUTE(SUBSTITUTE(T15,$ED15,$ED$2&ROW($ED15)),$EC15,$EC$2&ROW($EC15)),$EB15,$EB$2&ROW($EB15)),$EA15,$EA$2&ROW($EA15)),$DZ15,$DZ$2&ROW($DZ15)),$DY15,$DY$2&ROW($DY15)),$DX15,$DX$2&ROW($DX15)),$DW15,$DW$2&ROW($DW15)),$DV15,$DV$2&ROW($DV15)),$DU15,$DU$2&ROW($DU15)),$DT15,$DT$2&ROW($DT15)),$DS15,$DS$2&ROW($DS15)))","v":0},{"$f":"IF(U15=\"\",0,\"X=\"&SUBSTITUTE(SUBSTITUTE(SUBSTITUTE(SUBSTITUTE(SUBSTITUTE(SUBSTITUTE(SUBSTITUTE(SUBSTITUTE(SUBSTITUTE(SUBSTITUTE(SUBSTITUTE(SUBSTITUTE(U15,$ED15,$ED$2&ROW($ED15)),$EC15,$EC$2&ROW($EC15)),$EB15,$EB$2&ROW($EB15)),$EA15,$EA$2&ROW($EA15)),$DZ15,$DZ$2&ROW($DZ15)),$DY15,$DY$2&ROW($DY15)),$DX15,$DX$2&ROW($DX15)),$DW15,$DW$2&ROW($DW15)),$DV15,$DV$2&ROW($DV15)),$DU15,$DU$2&ROW($DU15)),$DT15,$DT$2&ROW($DT15)),$DS15,$DS$2&ROW($DS15)))","v":"X=if(AW15=6,0.331,if(AW15=0,0.013,0))"},{"$f":"IF(V15=\"\",0,\"X=\"&SUBSTITUTE(SUBSTITUTE(SUBSTITUTE(SUBSTITUTE(SUBSTITUTE(SUBSTITUTE(SUBSTITUTE(SUBSTITUTE(SUBSTITUTE(SUBSTITUTE(SUBSTITUTE(SUBSTITUTE(V15,$ED15,$ED$2&ROW($ED15)),$EC15,$EC$2&ROW($EC15)),$EB15,$EB$2&ROW($EB15)),$EA15,$EA$2&ROW($EA15)),$DZ15,$DZ$2&ROW($DZ15)),$DY15,$DY$2&ROW($DY15)),$DX15,$DX$2&ROW($DX15)),$DW15,$DW$2&ROW($DW15)),$DV15,$DV$2&ROW($DV15)),$DU15,$DU$2&ROW($DU15)),$DT15,$DT$2&ROW($DT15)),$DS15,$DS$2&ROW($DS15)))","v":"X=if(AW15=6,0.026,if(AW15=0,0.026,0.026))"},{"$f":"IF(W15=\"\",0,\"X=\"&SUBSTITUTE(SUBSTITUTE(SUBSTITUTE(SUBSTITUTE(SUBSTITUTE(SUBSTITUTE(SUBSTITUTE(SUBSTITUTE(SUBSTITUTE(SUBSTITUTE(SUBSTITUTE(SUBSTITUTE(W15,$ED15,$ED$2&ROW($ED15)),$EC15,$EC$2&ROW($EC15)),$EB15,$EB$2&ROW($EB15)),$EA15,$EA$2&ROW($EA15)),$DZ15,$DZ$2&ROW($DZ15)),$DY15,$DY$2&ROW($DY15)),$DX15,$DX$2&ROW($DX15)),$DW15,$DW$2&ROW($DW15)),$DV15,$DV$2&ROW($DV15)),$DU15,$DU$2&ROW($DU15)),$DT15,$DT$2&ROW($DT15)),$DS15,$DS$2&ROW($DS15)))","v":"X=if(AW15=1,6.184,if(AW15=0,0.557,0))*10"},{"$f":"IF(X15=\"\",0,\"X=\"&SUBSTITUTE(SUBSTITUTE(SUBSTITUTE(SUBSTITUTE(SUBSTITUTE(SUBSTITUTE(SUBSTITUTE(SUBSTITUTE(SUBSTITUTE(SUBSTITUTE(SUBSTITUTE(SUBSTITUTE(X15,$ED15,$ED$2&ROW($ED15)),$EC15,$EC$2&ROW($EC15)),$EB15,$EB$2&ROW($EB15)),$EA15,$EA$2&ROW($EA15)),$DZ15,$DZ$2&ROW($DZ15)),$DY15,$DY$2&ROW($DY15)),$DX15,$DX$2&ROW($DX15)),$DW15,$DW$2&ROW($DW15)),$DV15,$DV$2&ROW($DV15)),$DU15,$DU$2&ROW($DU15)),$DT15,$DT$2&ROW($DT15)),$DS15,$DS$2&ROW($DS15)))","v":"X=if(AW15=2,6.184,if(AW15 = 0,0.810,0))"},{"$f":"IF(Y15=\"\",0,\"X=\"&SUBSTITUTE(SUBSTITUTE(SUBSTITUTE(SUBSTITUTE(SUBSTITUTE(SUBSTITUTE(SUBSTITUTE(SUBSTITUTE(SUBSTITUTE(SUBSTITUTE(SUBSTITUTE(SUBSTITUTE(Y15,$ED15,$ED$2&ROW($ED15)),$EC15,$EC$2&ROW($EC15)),$EB15,$EB$2&ROW($EB15)),$EA15,$EA$2&ROW($EA15)),$DZ15,$DZ$2&ROW($DZ15)),$DY15,$DY$2&ROW($DY15)),$DX15,$DX$2&ROW($DX15)),$DW15,$DW$2&ROW($DW15)),$DV15,$DV$2&ROW($DV15)),$DU15,$DU$2&ROW($DU15)),$DT15,$DT$2&ROW($DT15)),$DS15,$DS$2&ROW($DS15)))","v":"X=if(AW15=3,6.184,if(AW15 = 0,4.230,0))"},{"$f":"IF(Z15=\"\",0,\"X=\"&SUBSTITUTE(SUBSTITUTE(SUBSTITUTE(SUBSTITUTE(SUBSTITUTE(SUBSTITUTE(SUBSTITUTE(SUBSTITUTE(SUBSTITUTE(SUBSTITUTE(SUBSTITUTE(SUBSTITUTE(Z15,$ED15,$ED$2&ROW($ED15)),$EC15,$EC$2&ROW($EC15)),$EB15,$EB$2&ROW($EB15)),$EA15,$EA$2&ROW($EA15)),$DZ15,$DZ$2&ROW($DZ15)),$DY15,$DY$2&ROW($DY15)),$DX15,$DX$2&ROW($DX15)),$DW15,$DW$2&ROW($DW15)),$DV15,$DV$2&ROW($DV15)),$DU15,$DU$2&ROW($DU15)),$DT15,$DT$2&ROW($DT15)),$DS15,$DS$2&ROW($DS15)))","v":"X=if(AW15=4,6.184,if(AW15 = 0,0.087,0))"},{"$f":"IF(AA15=\"\",0,\"X=\"&SUBSTITUTE(SUBSTITUTE(SUBSTITUTE(SUBSTITUTE(SUBSTITUTE(SUBSTITUTE(SUBSTITUTE(SUBSTITUTE(SUBSTITUTE(SUBSTITUTE(SUBSTITUTE(SUBSTITUTE(AA15,$ED15,$ED$2&ROW($ED15)),$EC15,$EC$2&ROW($EC15)),$EB15,$EB$2&ROW($EB15)),$EA15,$EA$2&ROW($EA15)),$DZ15,$DZ$2&ROW($DZ15)),$DY15,$DY$2&ROW($DY15)),$DX15,$DX$2&ROW($DX15)),$DW15,$DW$2&ROW($DW15)),$DV15,$DV$2&ROW($DV15)),$DU15,$DU$2&ROW($DU15)),$DT15,$DT$2&ROW($DT15)),$DS15,$DS$2&ROW($DS15)))","v":"X=if(AW15=5,6.184,if(AW15 = 0,0.266,0))"},{"$f":"IF(AB15=\"\",0,\"X=\"&SUBSTITUTE(SUBSTITUTE(SUBSTITUTE(SUBSTITUTE(SUBSTITUTE(SUBSTITUTE(SUBSTITUTE(SUBSTITUTE(SUBSTITUTE(SUBSTITUTE(SUBSTITUTE(SUBSTITUTE(AB15,$ED15,$ED$2&ROW($ED15)),$EC15,$EC$2&ROW($EC15)),$EB15,$EB$2&ROW($EB15)),$EA15,$EA$2&ROW($EA15)),$DZ15,$DZ$2&ROW($DZ15)),$DY15,$DY$2&ROW($DY15)),$DX15,$DX$2&ROW($DX15)),$DW15,$DW$2&ROW($DW15)),$DV15,$DV$2&ROW($DV15)),$DU15,$DU$2&ROW($DU15)),$DT15,$DT$2&ROW($DT15)),$DS15,$DS$2&ROW($DS15)))","v":"X=0"},null,null,"{Factor:WinterCF}","{Factor:SummerCF}",{"$f":"IFERROR(INDEX($EG15:$IV15,MATCH(0,COUNTIF($DR15:DT15,$EG15:$IV15),0)),\"\")","v":"{Cost}"},{"$f":"IFERROR(INDEX($EG15:$IV15,MATCH(0,COUNTIF($DR15:DU15,$EG15:$IV15),0)),\"\")","v":"{Measure:Quantity}"},{"$f":"IFERROR(INDEX($EG15:$IV15,MATCH(0,COUNTIF($DR15:DV15,$EG15:$IV15),0)),\"\")","v":"{Primary heating type}"},{"$f":"IFERROR(INDEX($EG15:$IV15,MATCH(0,COUNTIF($DR15:DW15,$EG15:$IV15),0)),\"\")","v":""},{"$f":"IFERROR(INDEX($EG15:$IV15,MATCH(0,COUNTIF($DR15:DX15,$EG15:$IV15),0)),\"\")","v":""},{"$f":"IFERROR(INDEX($EG15:$IV15,MATCH(0,COUNTIF($DR15:DY15,$EG15:$IV15),0)),\"\")","v":""},{"$f":"IFERROR(INDEX($EG15:$IV15,MATCH(0,COUNTIF($DR15:DZ15,$EG15:$IV15),0)),\"\")","v":""},{"$f":"IFERROR(INDEX($EG15:$IV15,MATCH(0,COUNTIF($DR15:EA15,$EG15:$IV15),0)),\"\")","v":""},{"$f":"IFERROR(INDEX($EG15:$IV15,MATCH(0,COUNTIF($DR15:EB15,$EG15:$IV15),0)),\"\")","v":""},{"$f":"IFERROR(INDEX($EG15:$IV15,MATCH(0,COUNTIF($DR15:EC15,$EG15:$IV15),0)),\"\")","v":""},null,null,{"$f":"IFERROR(MID($G15,FIND(CHAR(160),SUBSTITUTE($G15,\"{\",CHAR(160),EG$1)),FIND(CHAR(160),SUBSTITUTE($G15,\"}\",CHAR(160),EG$1))-FIND(CHAR(160),SUBSTITUTE($G15,\"{\",CHAR(160),EG$1))+1),\"\")","v":"{Cost}"},{"$f":"IFERROR(MID($G15,FIND(CHAR(160),SUBSTITUTE($G15,\"{\",CHAR(160),EH$1)),FIND(CHAR(160),SUBSTITUTE($G15,\"}\",CHAR(160),EH$1))-FIND(CHAR(160),SUBSTITUTE($G15,\"{\",CHAR(160),EH$1))+1),\"\")","v":"{Measure:Quantity}"},{"$f":"IFERROR(MID($G15,FIND(CHAR(160),SUBSTITUTE($G15,\"{\",CHAR(160),EI$1)),FIND(CHAR(160),SUBSTITUTE($G15,\"}\",CHAR(160),EI$1))-FIND(CHAR(160),SUBSTITUTE($G15,\"{\",CHAR(160),EI$1))+1),\"\")","v":""},{"$f":"IFERROR(MID($G15,FIND(CHAR(160),SUBSTITUTE($G15,\"{\",CHAR(160),EJ$1)),FIND(CHAR(160),SUBSTITUTE($G15,\"}\",CHAR(160),EJ$1))-FIND(CHAR(160),SUBSTITUTE($G15,\"{\",CHAR(160),EJ$1))+1),\"\")","v":""},{"$f":"IFERROR(MID($G15,FIND(CHAR(160),SUBSTITUTE($G15,\"{\",CHAR(160),EK$1)),FIND(CHAR(160),SUBSTITUTE($G15,\"}\",CHAR(160),EK$1))-FIND(CHAR(160),SUBSTITUTE($G15,\"{\",CHAR(160),EK$1))+1),\"\")","v":""},{"$f":"IFERROR(MID($G15,FIND(CHAR(160),SUBSTITUTE($G15,\"{\",CHAR(160),EL$1)),FIND(CHAR(160),SUBSTITUTE($G15,\"}\",CHAR(160),EL$1))-FIND(CHAR(160),SUBSTITUTE($G15,\"{\",CHAR(160),EL$1))+1),\"\")","v":""},{"$f":"IFERROR(MID($G15,FIND(CHAR(160),SUBSTITUTE($G15,\"{\",CHAR(160),EM$1)),FIND(CHAR(160),SUBSTITUTE($G15,\"}\",CHAR(160),EM$1))-FIND(CHAR(160),SUBSTITUTE($G15,\"{\",CHAR(160),EM$1))+1),\"\")","v":""},{"$f":"IFERROR(MID($G15,FIND(CHAR(160),SUBSTITUTE($G15,\"{\",CHAR(160),EN$1)),FIND(CHAR(160),SUBSTITUTE($G15,\"}\",CHAR(160),EN$1))-FIND(CHAR(160),SUBSTITUTE($G15,\"{\",CHAR(160),EN$1))+1),\"\")","v":""},{"$f":"IFERROR(MID($G15,FIND(CHAR(160),SUBSTITUTE($G15,\"{\",CHAR(160),EO$1)),FIND(CHAR(160),SUBSTITUTE($G15,\"}\",CHAR(160),EO$1))-FIND(CHAR(160),SUBSTITUTE($G15,\"{\",CHAR(160),EO$1))+1),\"\")","v":""},{"$f":"IFERROR(MID($G15,FIND(CHAR(160),SUBSTITUTE($G15,\"{\",CHAR(160),EP$1)),FIND(CHAR(160),SUBSTITUTE($G15,\"}\",CHAR(160),EP$1))-FIND(CHAR(160),SUBSTITUTE($G15,\"{\",CHAR(160),EP$1))+1),\"\")","v":""},{"$f":"IFERROR(MID($J15,FIND(CHAR(160),SUBSTITUTE($J15,\"{\",CHAR(160),EQ$1)),FIND(CHAR(160),SUBSTITUTE($J15,\"}\",CHAR(160),EQ$1))-FIND(CHAR(160),SUBSTITUTE($J15,\"{\",CHAR(160),EQ$1))+1),\"\")","v":"{Measure:Quantity}"},{"$f":"IFERROR(MID($J15,FIND(CHAR(160),SUBSTITUTE($J15,\"{\",CHAR(160),ER$1)),FIND(CHAR(160),SUBSTITUTE($J15,\"}\",CHAR(160),ER$1))-FIND(CHAR(160),SUBSTITUTE($J15,\"{\",CHAR(160),ER$1))+1),\"\")","v":""},{"$f":"IFERROR(MID($J15,FIND(CHAR(160),SUBSTITUTE($J15,\"{\",CHAR(160),ES$1)),FIND(CHAR(160),SUBSTITUTE($J15,\"}\",CHAR(160),ES$1))-FIND(CHAR(160),SUBSTITUTE($J15,\"{\",CHAR(160),ES$1))+1),\"\")","v":""},{"$f":"IFERROR(MID($J15,FIND(CHAR(160),SUBSTITUTE($J15,\"{\",CHAR(160),ET$1)),FIND(CHAR(160),SUBSTITUTE($J15,\"}\",CHAR(160),ET$1))-FIND(CHAR(160),SUBSTITUTE($J15,\"{\",CHAR(160),ET$1))+1),\"\")","v":""},{"$f":"IFERROR(MID($J15,FIND(CHAR(160),SUBSTITUTE($J15,\"{\",CHAR(160),EU$1)),FIND(CHAR(160),SUBSTITUTE($J15,\"}\",CHAR(160),EU$1))-FIND(CHAR(160),SUBSTITUTE($J15,\"{\",CHAR(160),EU$1))+1),\"\")","v":""},{"$f":"IFERROR(MID($J15,FIND(CHAR(160),SUBSTITUTE($J15,\"{\",CHAR(160),EV$1)),FIND(CHAR(160),SUBSTITUTE($J15,\"}\",CHAR(160),EV$1))-FIND(CHAR(160),SUBSTITUTE($J15,\"{\",CHAR(160),EV$1))+1),\"\")","v":""},{"$f":"IFERROR(MID($J15,FIND(CHAR(160),SUBSTITUTE($J15,\"{\",CHAR(160),EW$1)),FIND(CHAR(160),SUBSTITUTE($J15,\"}\",CHAR(160),EW$1))-FIND(CHAR(160),SUBSTITUTE($J15,\"{\",CHAR(160),EW$1))+1),\"\")","v":""},{"$f":"IFERROR(MID($J15,FIND(CHAR(160),SUBSTITUTE($J15,\"{\",CHAR(160),EX$1)),FIND(CHAR(160),SUBSTITUTE($J15,\"}\",CHAR(160),EX$1))-FIND(CHAR(160),SUBSTITUTE($J15,\"{\",CHAR(160),EX$1))+1),\"\")","v":""},{"$f":"IFERROR(MID($J15,FIND(CHAR(160),SUBSTITUTE($J15,\"{\",CHAR(160),EY$1)),FIND(CHAR(160),SUBSTITUTE($J15,\"}\",CHAR(160),EY$1))-FIND(CHAR(160),SUBSTITUTE($J15,\"{\",CHAR(160),EY$1))+1),\"\")","v":""},{"$f":"IFERROR(MID($J15,FIND(CHAR(160),SUBSTITUTE($J15,\"{\",CHAR(160),EZ$1)),FIND(CHAR(160),SUBSTITUTE($J15,\"}\",CHAR(160),EZ$1))-FIND(CHAR(160),SUBSTITUTE($J15,\"{\",CHAR(160),EZ$1))+1),\"\")","v":""},{"$f":"IFERROR(MID($J15,FIND(CHAR(160),SUBSTITUTE($J15,\"{\",CHAR(160),FA$1)),FIND(CHAR(160),SUBSTITUTE($J15,\"}\",CHAR(160),FA$1))-FIND(CHAR(160),SUBSTITUTE($J15,\"{\",CHAR(160),FA$1))+1),\"\")","v":"{Measure:Quantity}"},{"$f":"IFERROR(MID($J15,FIND(CHAR(160),SUBSTITUTE($J15,\"{\",CHAR(160),FB$1)),FIND(CHAR(160),SUBSTITUTE($J15,\"}\",CHAR(160),FB$1))-FIND(CHAR(160),SUBSTITUTE($J15,\"{\",CHAR(160),FB$1))+1),\"\")","v":""},{"$f":"IFERROR(MID($O15,FIND(CHAR(160),SUBSTITUTE($O15,\"{\",CHAR(160),FC$1)),FIND(CHAR(160),SUBSTITUTE($O15,\"}\",CHAR(160),FC$1))-FIND(CHAR(160),SUBSTITUTE($O15,\"{\",CHAR(160),FC$1))+1),\"\")","v":""},{"$f":"IFERROR(MID($O15,FIND(CHAR(160),SUBSTITUTE($O15,\"{\",CHAR(160),FD$1)),FIND(CHAR(160),SUBSTITUTE($O15,\"}\",CHAR(160),FD$1))-FIND(CHAR(160),SUBSTITUTE($O15,\"{\",CHAR(160),FD$1))+1),\"\")","v":""},{"$f":"IFERROR(MID($O15,FIND(CHAR(160),SUBSTITUTE($O15,\"{\",CHAR(160),FE$1)),FIND(CHAR(160),SUBSTITUTE($O15,\"}\",CHAR(160),FE$1))-FIND(CHAR(160),SUBSTITUTE($O15,\"{\",CHAR(160),FE$1))+1),\"\")","v":""},{"$f":"IFERROR(MID($O15,FIND(CHAR(160),SUBSTITUTE($O15,\"{\",CHAR(160),FF$1)),FIND(CHAR(160),SUBSTITUTE($O15,\"}\",CHAR(160),FF$1))-FIND(CHAR(160),SUBSTITUTE($O15,\"{\",CHAR(160),FF$1))+1),\"\")","v":""},{"$f":"IFERROR(MID($O15,FIND(CHAR(160),SUBSTITUTE($O15,\"{\",CHAR(160),FG$1)),FIND(CHAR(160),SUBSTITUTE($O15,\"}\",CHAR(160),FG$1))-FIND(CHAR(160),SUBSTITUTE($O15,\"{\",CHAR(160),FG$1))+1),\"\")","v":""},{"$f":"IFERROR(MID($O15,FIND(CHAR(160),SUBSTITUTE($O15,\"{\",CHAR(160),FH$1)),FIND(CHAR(160),SUBSTITUTE($O15,\"}\",CHAR(160),FH$1))-FIND(CHAR(160),SUBSTITUTE($O15,\"{\",CHAR(160),FH$1))+1),\"\")","v":""},{"$f":"IFERROR(MID($O15,FIND(CHAR(160),SUBSTITUTE($O15,\"{\",CHAR(160),FI$1)),FIND(CHAR(160),SUBSTITUTE($O15,\"}\",CHAR(160),FI$1))-FIND(CHAR(160),SUBSTITUTE($O15,\"{\",CHAR(160),FI$1))+1),\"\")","v":""},{"$f":"IFERROR(MID($O15,FIND(CHAR(160),SUBSTITUTE($O15,\"{\",CHAR(160),FJ$1)),FIND(CHAR(160),SUBSTITUTE($O15,\"}\",CHAR(160),FJ$1))-FIND(CHAR(160),SUBSTITUTE($O15,\"{\",CHAR(160),FJ$1))+1),\"\")","v":""},{"$f":"IFERROR(MID($O15,FIND(CHAR(160),SUBSTITUTE($O15,\"{\",CHAR(160),FK$1)),FIND(CHAR(160),SUBSTITUTE($O15,\"}\",CHAR(160),FK$1))-FIND(CHAR(160),SUBSTITUTE($O15,\"{\",CHAR(160),FK$1))+1),\"\")","v":"{Primary heating type}"},{"$f":"IFERROR(MID($O15,FIND(CHAR(160),SUBSTITUTE($O15,\"{\",CHAR(160),FL$1)),FIND(CHAR(160),SUBSTITUTE($O15,\"}\",CHAR(160),FL$1))-FIND(CHAR(160),SUBSTITUTE($O15,\"{\",CHAR(160),FL$1))+1),\"\")","v":"{Primary heating type}"},{"$f":"IFERROR(MID($R15,FIND(CHAR(160),SUBSTITUTE($R15,\"{\",CHAR(160),FM$1)),FIND(CHAR(160),SUBSTITUTE($R15,\"}\",CHAR(160),FM$1))-FIND(CHAR(160),SUBSTITUTE($R15,\"{\",CHAR(160),FM$1))+1),\"\")","v":""},{"$f":"IFERROR(MID($R15,FIND(CHAR(160),SUBSTITUTE($R15,\"{\",CHAR(160),FN$1)),FIND(CHAR(160),SUBSTITUTE($R15,\"}\",CHAR(160),FN$1))-FIND(CHAR(160),SUBSTITUTE($R15,\"{\",CHAR(160),FN$1))+1),\"\")","v":""},{"$f":"IFERROR(MID($R15,FIND(CHAR(160),SUBSTITUTE($R15,\"{\",CHAR(160),FO$1)),FIND(CHAR(160),SUBSTITUTE($R15,\"}\",CHAR(160),FO$1))-FIND(CHAR(160),SUBSTITUTE($R15,\"{\",CHAR(160),FO$1))+1),\"\")","v":""},{"$f":"IFERROR(MID($R15,FIND(CHAR(160),SUBSTITUTE($R15,\"{\",CHAR(160),FP$1)),FIND(CHAR(160),SUBSTITUTE($R15,\"}\",CHAR(160),FP$1))-FIND(CHAR(160),SUBSTITUTE($R15,\"{\",CHAR(160),FP$1))+1),\"\")","v":""},{"$f":"IFERROR(MID($R15,FIND(CHAR(160),SUBSTITUTE($R15,\"{\",CHAR(160),FQ$1)),FIND(CHAR(160),SUBSTITUTE($R15,\"}\",CHAR(160),FQ$1))-FIND(CHAR(160),SUBSTITUTE($R15,\"{\",CHAR(160),FQ$1))+1),\"\")","v":""},{"$f":"IFERROR(MID($R15,FIND(CHAR(160),SUBSTITUTE($R15,\"{\",CHAR(160),FR$1)),FIND(CHAR(160),SUBSTITUTE($R15,\"}\",CHAR(160),FR$1))-FIND(CHAR(160),SUBSTITUTE($R15,\"{\",CHAR(160),FR$1))+1),\"\")","v":""},{"$f":"IFERROR(MID($R15,FIND(CHAR(160),SUBSTITUTE($R15,\"{\",CHAR(160),FS$1)),FIND(CHAR(160),SUBSTITUTE($R15,\"}\",CHAR(160),FS$1))-FIND(CHAR(160),SUBSTITUTE($R15,\"{\",CHAR(160),FS$1))+1),\"\")","v":""},{"$f":"IFERROR(MID($R15,FIND(CHAR(160),SUBSTITUTE($R15,\"{\",CHAR(160),FT$1)),FIND(CHAR(160),SUBSTITUTE($R15,\"}\",CHAR(160),FT$1))-FIND(CHAR(160),SUBSTITUTE($R15,\"{\",CHAR(160),FT$1))+1),\"\")","v":""},{"$f":"IFERROR(MID($R15,FIND(CHAR(160),SUBSTITUTE($R15,\"{\",CHAR(160),FU$1)),FIND(CHAR(160),SUBSTITUTE($R15,\"}\",CHAR(160),FU$1))-FIND(CHAR(160),SUBSTITUTE($R15,\"{\",CHAR(160),FU$1))+1),\"\")","v":"{Primary heating type}"},{"$f":"IFERROR(MID($R15,FIND(CHAR(160),SUBSTITUTE($R15,\"{\",CHAR(160),FV$1)),FIND(CHAR(160),SUBSTITUTE($R15,\"}\",CHAR(160),FV$1))-FIND(CHAR(160),SUBSTITUTE($R15,\"{\",CHAR(160),FV$1))+1),\"\")","v":"{Primary heating type}"},{"$f":"IFERROR(MID($U15,FIND(CHAR(160),SUBSTITUTE($U15,\"{\",CHAR(160),FW$1)),FIND(CHAR(160),SUBSTITUTE($U15,\"}\",CHAR(160),FW$1))-FIND(CHAR(160),SUBSTITUTE($U15,\"{\",CHAR(160),FW$1))+1),\"\")","v":""},{"$f":"IFERROR(MID($U15,FIND(CHAR(160),SUBSTITUTE($U15,\"{\",CHAR(160),FX$1)),FIND(CHAR(160),SUBSTITUTE($U15,\"}\",CHAR(160),FX$1))-FIND(CHAR(160),SUBSTITUTE($U15,\"{\",CHAR(160),FX$1))+1),\"\")","v":""},{"$f":"IFERROR(MID($U15,FIND(CHAR(160),SUBSTITUTE($U15,\"{\",CHAR(160),FY$1)),FIND(CHAR(160),SUBSTITUTE($U15,\"}\",CHAR(160),FY$1))-FIND(CHAR(160),SUBSTITUTE($U15,\"{\",CHAR(160),FY$1))+1),\"\")","v":""},{"$f":"IFERROR(MID($U15,FIND(CHAR(160),SUBSTITUTE($U15,\"{\",CHAR(160),FZ$1)),FIND(CHAR(160),SUBSTITUTE($U15,\"}\",CHAR(160),FZ$1))-FIND(CHAR(160),SUBSTITUTE($U15,\"{\",CHAR(160),FZ$1))+1),\"\")","v":""},{"$f":"IFERROR(MID($U15,FIND(CHAR(160),SUBSTITUTE($U15,\"{\",CHAR(160),GA$1)),FIND(CHAR(160),SUBSTITUTE($U15,\"}\",CHAR(160),GA$1))-FIND(CHAR(160),SUBSTITUTE($U15,\"{\",CHAR(160),GA$1))+1),\"\")","v":""},{"$f":"IFERROR(MID($U15,FIND(CHAR(160),SUBSTITUTE($U15,\"{\",CHAR(160),GB$1)),FIND(CHAR(160),SUBSTITUTE($U15,\"}\",CHAR(160),GB$1))-FIND(CHAR(160),SUBSTITUTE($U15,\"{\",CHAR(160),GB$1))+1),\"\")","v":""},{"$f":"IFERROR(MID($U15,FIND(CHAR(160),SUBSTITUTE($U15,\"{\",CHAR(160),GC$1)),FIND(CHAR(160),SUBSTITUTE($U15,\"}\",CHAR(160),GC$1))-FIND(CHAR(160),SUBSTITUTE($U15,\"{\",CHAR(160),GC$1))+1),\"\")","v":""},{"$f":"IFERROR(MID($U15,FIND(CHAR(160),SUBSTITUTE($U15,\"{\",CHAR(160),GD$1)),FIND(CHAR(160),SUBSTITUTE($U15,\"}\",CHAR(160),GD$1))-FIND(CHAR(160),SUBSTITUTE($U15,\"{\",CHAR(160),GD$1))+1),\"\")","v":""},{"$f":"IFERROR(MID($U15,FIND(CHAR(160),SUBSTITUTE($U15,\"{\",CHAR(160),GE$1)),FIND(CHAR(160),SUBSTITUTE($U15,\"}\",CHAR(160),GE$1))-FIND(CHAR(160),SUBSTITUTE($U15,\"{\",CHAR(160),GE$1))+1),\"\")","v":"{Primary heating type}"},{"$f":"IFERROR(MID($U15,FIND(CHAR(160),SUBSTITUTE($U15,\"{\",CHAR(160),GF$1)),FIND(CHAR(160),SUBSTITUTE($U15,\"}\",CHAR(160),GF$1))-FIND(CHAR(160),SUBSTITUTE($U15,\"{\",CHAR(160),GF$1))+1),\"\")","v":"{Primary heating type}"},{"$f":"IFERROR(MID($V15,FIND(CHAR(160),SUBSTITUTE($V15,\"{\",CHAR(160),GG$1)),FIND(CHAR(160),SUBSTITUTE($V15,\"}\",CHAR(160),GG$1))-FIND(CHAR(160),SUBSTITUTE($V15,\"{\",CHAR(160),GG$1))+1),\"\")","v":""},{"$f":"IFERROR(MID($V15,FIND(CHAR(160),SUBSTITUTE($V15,\"{\",CHAR(160),GH$1)),FIND(CHAR(160),SUBSTITUTE($V15,\"}\",CHAR(160),GH$1))-FIND(CHAR(160),SUBSTITUTE($V15,\"{\",CHAR(160),GH$1))+1),\"\")","v":""},{"$f":"IFERROR(MID($V15,FIND(CHAR(160),SUBSTITUTE($V15,\"{\",CHAR(160),GI$1)),FIND(CHAR(160),SUBSTITUTE($V15,\"}\",CHAR(160),GI$1))-FIND(CHAR(160),SUBSTITUTE($V15,\"{\",CHAR(160),GI$1))+1),\"\")","v":""},{"$f":"IFERROR(MID($V15,FIND(CHAR(160),SUBSTITUTE($V15,\"{\",CHAR(160),GJ$1)),FIND(CHAR(160),SUBSTITUTE($V15,\"}\",CHAR(160),GJ$1))-FIND(CHAR(160),SUBSTITUTE($V15,\"{\",CHAR(160),GJ$1))+1),\"\")","v":""},{"$f":"IFERROR(MID($V15,FIND(CHAR(160),SUBSTITUTE($V15,\"{\",CHAR(160),GK$1)),FIND(CHAR(160),SUBSTITUTE($V15,\"}\",CHAR(160),GK$1))-FIND(CHAR(160),SUBSTITUTE($V15,\"{\",CHAR(160),GK$1))+1),\"\")","v":""},{"$f":"IFERROR(MID($V15,FIND(CHAR(160),SUBSTITUTE($V15,\"{\",CHAR(160),GL$1)),FIND(CHAR(160),SUBSTITUTE($V15,\"}\",CHAR(160),GL$1))-FIND(CHAR(160),SUBSTITUTE($V15,\"{\",CHAR(160),GL$1))+1),\"\")","v":""},{"$f":"IFERROR(MID($V15,FIND(CHAR(160),SUBSTITUTE($V15,\"{\",CHAR(160),GM$1)),FIND(CHAR(160),SUBSTITUTE($V15,\"}\",CHAR(160),GM$1))-FIND(CHAR(160),SUBSTITUTE($V15,\"{\",CHAR(160),GM$1))+1),\"\")","v":""},{"$f":"IFERROR(MID($V15,FIND(CHAR(160),SUBSTITUTE($V15,\"{\",CHAR(160),GN$1)),FIND(CHAR(160),SUBSTITUTE($V15,\"}\",CHAR(160),GN$1))-FIND(CHAR(160),SUBSTITUTE($V15,\"{\",CHAR(160),GN$1))+1),\"\")","v":""},{"$f":"IFERROR(MID($V15,FIND(CHAR(160),SUBSTITUTE($V15,\"{\",CHAR(160),GO$1)),FIND(CHAR(160),SUBSTITUTE($V15,\"}\",CHAR(160),GO$1))-FIND(CHAR(160),SUBSTITUTE($V15,\"{\",CHAR(160),GO$1))+1),\"\")","v":"{Primary heating type}"},{"$f":"IFERROR(MID($V15,FIND(CHAR(160),SUBSTITUTE($V15,\"{\",CHAR(160),GP$1)),FIND(CHAR(160),SUBSTITUTE($V15,\"}\",CHAR(160),GP$1))-FIND(CHAR(160),SUBSTITUTE($V15,\"{\",CHAR(160),GP$1))+1),\"\")","v":"{Primary heating type}"},{"$f":"IFERROR(MID($W15,FIND(CHAR(160),SUBSTITUTE($W15,\"{\",CHAR(160),GQ$1)),FIND(CHAR(160),SUBSTITUTE($W15,\"}\",CHAR(160),GQ$1))-FIND(CHAR(160),SUBSTITUTE($W15,\"{\",CHAR(160),GQ$1))+1),\"\")","v":""},{"$f":"IFERROR(MID($W15,FIND(CHAR(160),SUBSTITUTE($W15,\"{\",CHAR(160),GR$1)),FIND(CHAR(160),SUBSTITUTE($W15,\"}\",CHAR(160),GR$1))-FIND(CHAR(160),SUBSTITUTE($W15,\"{\",CHAR(160),GR$1))+1),\"\")","v":""},{"$f":"IFERROR(MID($W15,FIND(CHAR(160),SUBSTITUTE($W15,\"{\",CHAR(160),GS$1)),FIND(CHAR(160),SUBSTITUTE($W15,\"}\",CHAR(160),GS$1))-FIND(CHAR(160),SUBSTITUTE($W15,\"{\",CHAR(160),GS$1))+1),\"\")","v":""},{"$f":"IFERROR(MID($W15,FIND(CHAR(160),SUBSTITUTE($W15,\"{\",CHAR(160),GT$1)),FIND(CHAR(160),SUBSTITUTE($W15,\"}\",CHAR(160),GT$1))-FIND(CHAR(160),SUBSTITUTE($W15,\"{\",CHAR(160),GT$1))+1),\"\")","v":""},{"$f":"IFERROR(MID($W15,FIND(CHAR(160),SUBSTITUTE($W15,\"{\",CHAR(160),GU$1)),FIND(CHAR(160),SUBSTITUTE($W15,\"}\",CHAR(160),GU$1))-FIND(CHAR(160),SUBSTITUTE($W15,\"{\",CHAR(160),GU$1))+1),\"\")","v":""},{"$f":"IFERROR(MID($W15,FIND(CHAR(160),SUBSTITUTE($W15,\"{\",CHAR(160),GV$1)),FIND(CHAR(160),SUBSTITUTE($W15,\"}\",CHAR(160),GV$1))-FIND(CHAR(160),SUBSTITUTE($W15,\"{\",CHAR(160),GV$1))+1),\"\")","v":""},{"$f":"IFERROR(MID($W15,FIND(CHAR(160),SUBSTITUTE($W15,\"{\",CHAR(160),GW$1)),FIND(CHAR(160),SUBSTITUTE($W15,\"}\",CHAR(160),GW$1))-FIND(CHAR(160),SUBSTITUTE($W15,\"{\",CHAR(160),GW$1))+1),\"\")","v":""},{"$f":"IFERROR(MID($W15,FIND(CHAR(160),SUBSTITUTE($W15,\"{\",CHAR(160),GX$1)),FIND(CHAR(160),SUBSTITUTE($W15,\"}\",CHAR(160),GX$1))-FIND(CHAR(160),SUBSTITUTE($W15,\"{\",CHAR(160),GX$1))+1),\"\")","v":""},{"$f":"IFERROR(MID($W15,FIND(CHAR(160),SUBSTITUTE($W15,\"{\",CHAR(160),GY$1)),FIND(CHAR(160),SUBSTITUTE($W15,\"}\",CHAR(160),GY$1))-FIND(CHAR(160),SUBSTITUTE($W15,\"{\",CHAR(160),GY$1))+1),\"\")","v":"{Primary heating type}"},{"$f":"IFERROR(MID($W15,FIND(CHAR(160),SUBSTITUTE($W15,\"{\",CHAR(160),GZ$1)),FIND(CHAR(160),SUBSTITUTE($W15,\"}\",CHAR(160),GZ$1))-FIND(CHAR(160),SUBSTITUTE($W15,\"{\",CHAR(160),GZ$1))+1),\"\")","v":"{Primary heating type}"},{"$f":"IFERROR(MID($X15,FIND(CHAR(160),SUBSTITUTE($X15,\"{\",CHAR(160),HA$1)),FIND(CHAR(160),SUBSTITUTE($X15,\"}\",CHAR(160),HA$1))-FIND(CHAR(160),SUBSTITUTE($X15,\"{\",CHAR(160),HA$1))+1),\"\")","v":""},{"$f":"IFERROR(MID($X15,FIND(CHAR(160),SUBSTITUTE($X15,\"{\",CHAR(160),HB$1)),FIND(CHAR(160),SUBSTITUTE($X15,\"}\",CHAR(160),HB$1))-FIND(CHAR(160),SUBSTITUTE($X15,\"{\",CHAR(160),HB$1))+1),\"\")","v":""},{"$f":"IFERROR(MID($X15,FIND(CHAR(160),SUBSTITUTE($X15,\"{\",CHAR(160),HC$1)),FIND(CHAR(160),SUBSTITUTE($X15,\"}\",CHAR(160),HC$1))-FIND(CHAR(160),SUBSTITUTE($X15,\"{\",CHAR(160),HC$1))+1),\"\")","v":""},{"$f":"IFERROR(MID($X15,FIND(CHAR(160),SUBSTITUTE($X15,\"{\",CHAR(160),HD$1)),FIND(CHAR(160),SUBSTITUTE($X15,\"}\",CHAR(160),HD$1))-FIND(CHAR(160),SUBSTITUTE($X15,\"{\",CHAR(160),HD$1))+1),\"\")","v":""},{"$f":"IFERROR(MID($X15,FIND(CHAR(160),SUBSTITUTE($X15,\"{\",CHAR(160),HE$1)),FIND(CHAR(160),SUBSTITUTE($X15,\"}\",CHAR(160),HE$1))-FIND(CHAR(160),SUBSTITUTE($X15,\"{\",CHAR(160),HE$1))+1),\"\")","v":""},{"$f":"IFERROR(MID($X15,FIND(CHAR(160),SUBSTITUTE($X15,\"{\",CHAR(160),HF$1)),FIND(CHAR(160),SUBSTITUTE($X15,\"}\",CHAR(160),HF$1))-FIND(CHAR(160),SUBSTITUTE($X15,\"{\",CHAR(160),HF$1))+1),\"\")","v":""},{"$f":"IFERROR(MID($X15,FIND(CHAR(160),SUBSTITUTE($X15,\"{\",CHAR(160),HG$1)),FIND(CHAR(160),SUBSTITUTE($X15,\"}\",CHAR(160),HG$1))-FIND(CHAR(160),SUBSTITUTE($X15,\"{\",CHAR(160),HG$1))+1),\"\")","v":""},{"$f":"IFERROR(MID($X15,FIND(CHAR(160),SUBSTITUTE($X15,\"{\",CHAR(160),HH$1)),FIND(CHAR(160),SUBSTITUTE($X15,\"}\",CHAR(160),HH$1))-FIND(CHAR(160),SUBSTITUTE($X15,\"{\",CHAR(160),HH$1))+1),\"\")","v":""},{"$f":"IFERROR(MID($X15,FIND(CHAR(160),SUBSTITUTE($X15,\"{\",CHAR(160),HI$1)),FIND(CHAR(160),SUBSTITUTE($X15,\"}\",CHAR(160),HI$1))-FIND(CHAR(160),SUBSTITUTE($X15,\"{\",CHAR(160),HI$1))+1),\"\")","v":"{Primary heating type}"},{"$f":"IFERROR(MID($X15,FIND(CHAR(160),SUBSTITUTE($X15,\"{\",CHAR(160),HJ$1)),FIND(CHAR(160),SUBSTITUTE($X15,\"}\",CHAR(160),HJ$1))-FIND(CHAR(160),SUBSTITUTE($X15,\"{\",CHAR(160),HJ$1))+1),\"\")","v":"{Primary heating type}"},{"$f":"IFERROR(MID($Y15,FIND(CHAR(160),SUBSTITUTE($Y15,\"{\",CHAR(160),HK$1)),FIND(CHAR(160),SUBSTITUTE($Y15,\"}\",CHAR(160),HK$1))-FIND(CHAR(160),SUBSTITUTE($Y15,\"{\",CHAR(160),HK$1))+1),\"\")","v":""},{"$f":"IFERROR(MID($Y15,FIND(CHAR(160),SUBSTITUTE($Y15,\"{\",CHAR(160),HL$1)),FIND(CHAR(160),SUBSTITUTE($Y15,\"}\",CHAR(160),HL$1))-FIND(CHAR(160),SUBSTITUTE($Y15,\"{\",CHAR(160),HL$1))+1),\"\")","v":""},{"$f":"IFERROR(MID($Y15,FIND(CHAR(160),SUBSTITUTE($Y15,\"{\",CHAR(160),HM$1)),FIND(CHAR(160),SUBSTITUTE($Y15,\"}\",CHAR(160),HM$1))-FIND(CHAR(160),SUBSTITUTE($Y15,\"{\",CHAR(160),HM$1))+1),\"\")","v":""},{"$f":"IFERROR(MID($Y15,FIND(CHAR(160),SUBSTITUTE($Y15,\"{\",CHAR(160),HN$1)),FIND(CHAR(160),SUBSTITUTE($Y15,\"}\",CHAR(160),HN$1))-FIND(CHAR(160),SUBSTITUTE($Y15,\"{\",CHAR(160),HN$1))+1),\"\")","v":""},{"$f":"IFERROR(MID($Y15,FIND(CHAR(160),SUBSTITUTE($Y15,\"{\",CHAR(160),HO$1)),FIND(CHAR(160),SUBSTITUTE($Y15,\"}\",CHAR(160),HO$1))-FIND(CHAR(160),SUBSTITUTE($Y15,\"{\",CHAR(160),HO$1))+1),\"\")","v":""},{"$f":"IFERROR(MID($Y15,FIND(CHAR(160),SUBSTITUTE($Y15,\"{\",CHAR(160),HP$1)),FIND(CHAR(160),SUBSTITUTE($Y15,\"}\",CHAR(160),HP$1))-FIND(CHAR(160),SUBSTITUTE($Y15,\"{\",CHAR(160),HP$1))+1),\"\")","v":""},{"$f":"IFERROR(MID($Y15,FIND(CHAR(160),SUBSTITUTE($Y15,\"{\",CHAR(160),HQ$1)),FIND(CHAR(160),SUBSTITUTE($Y15,\"}\",CHAR(160),HQ$1))-FIND(CHAR(160),SUBSTITUTE($Y15,\"{\",CHAR(160),HQ$1))+1),\"\")","v":""},{"$f":"IFERROR(MID($Y15,FIND(CHAR(160),SUBSTITUTE($Y15,\"{\",CHAR(160),HR$1)),FIND(CHAR(160),SUBSTITUTE($Y15,\"}\",CHAR(160),HR$1))-FIND(CHAR(160),SUBSTITUTE($Y15,\"{\",CHAR(160),HR$1))+1),\"\")","v":""},{"$f":"IFERROR(MID($Y15,FIND(CHAR(160),SUBSTITUTE($Y15,\"{\",CHAR(160),HS$1)),FIND(CHAR(160),SUBSTITUTE($Y15,\"}\",CHAR(160),HS$1))-FIND(CHAR(160),SUBSTITUTE($Y15,\"{\",CHAR(160),HS$1))+1),\"\")","v":"{Primary heating type}"},{"$f":"IFERROR(MID($Y15,FIND(CHAR(160),SUBSTITUTE($Y15,\"{\",CHAR(160),HT$1)),FIND(CHAR(160),SUBSTITUTE($Y15,\"}\",CHAR(160),HT$1))-FIND(CHAR(160),SUBSTITUTE($Y15,\"{\",CHAR(160),HT$1))+1),\"\")","v":"{Primary heating type}"},{"$f":"IFERROR(MID($Z15,FIND(CHAR(160),SUBSTITUTE($Z15,\"{\",CHAR(160),HU$1)),FIND(CHAR(160),SUBSTITUTE($Z15,\"}\",CHAR(160),HU$1))-FIND(CHAR(160),SUBSTITUTE($Z15,\"{\",CHAR(160),HU$1))+1),\"\")","v":""},{"$f":"IFERROR(MID($Z15,FIND(CHAR(160),SUBSTITUTE($Z15,\"{\",CHAR(160),HV$1)),FIND(CHAR(160),SUBSTITUTE($Z15,\"}\",CHAR(160),HV$1))-FIND(CHAR(160),SUBSTITUTE($Z15,\"{\",CHAR(160),HV$1))+1),\"\")","v":""},{"$f":"IFERROR(MID($Z15,FIND(CHAR(160),SUBSTITUTE($Z15,\"{\",CHAR(160),HW$1)),FIND(CHAR(160),SUBSTITUTE($Z15,\"}\",CHAR(160),HW$1))-FIND(CHAR(160),SUBSTITUTE($Z15,\"{\",CHAR(160),HW$1))+1),\"\")","v":""},{"$f":"IFERROR(MID($Z15,FIND(CHAR(160),SUBSTITUTE($Z15,\"{\",CHAR(160),HX$1)),FIND(CHAR(160),SUBSTITUTE($Z15,\"}\",CHAR(160),HX$1))-FIND(CHAR(160),SUBSTITUTE($Z15,\"{\",CHAR(160),HX$1))+1),\"\")","v":""},{"$f":"IFERROR(MID($Z15,FIND(CHAR(160),SUBSTITUTE($Z15,\"{\",CHAR(160),HY$1)),FIND(CHAR(160),SUBSTITUTE($Z15,\"}\",CHAR(160),HY$1))-FIND(CHAR(160),SUBSTITUTE($Z15,\"{\",CHAR(160),HY$1))+1),\"\")","v":""},{"$f":"IFERROR(MID($Z15,FIND(CHAR(160),SUBSTITUTE($Z15,\"{\",CHAR(160),HZ$1)),FIND(CHAR(160),SUBSTITUTE($Z15,\"}\",CHAR(160),HZ$1))-FIND(CHAR(160),SUBSTITUTE($Z15,\"{\",CHAR(160),HZ$1))+1),\"\")","v":""},{"$f":"IFERROR(MID($Z15,FIND(CHAR(160),SUBSTITUTE($Z15,\"{\",CHAR(160),IA$1)),FIND(CHAR(160),SUBSTITUTE($Z15,\"}\",CHAR(160),IA$1))-FIND(CHAR(160),SUBSTITUTE($Z15,\"{\",CHAR(160),IA$1))+1),\"\")","v":""},{"$f":"IFERROR(MID($Z15,FIND(CHAR(160),SUBSTITUTE($Z15,\"{\",CHAR(160),IB$1)),FIND(CHAR(160),SUBSTITUTE($Z15,\"}\",CHAR(160),IB$1))-FIND(CHAR(160),SUBSTITUTE($Z15,\"{\",CHAR(160),IB$1))+1),\"\")","v":""},{"$f":"IFERROR(MID($Z15,FIND(CHAR(160),SUBSTITUTE($Z15,\"{\",CHAR(160),IC$1)),FIND(CHAR(160),SUBSTITUTE($Z15,\"}\",CHAR(160),IC$1))-FIND(CHAR(160),SUBSTITUTE($Z15,\"{\",CHAR(160),IC$1))+1),\"\")","v":"{Primary heating type}"},{"$f":"IFERROR(MID($Z15,FIND(CHAR(160),SUBSTITUTE($Z15,\"{\",CHAR(160),ID$1)),FIND(CHAR(160),SUBSTITUTE($Z15,\"}\",CHAR(160),ID$1))-FIND(CHAR(160),SUBSTITUTE($Z15,\"{\",CHAR(160),ID$1))+1),\"\")","v":"{Primary heating type}"},{"$f":"IFERROR(MID($AA15,FIND(CHAR(160),SUBSTITUTE($AA15,\"{\",CHAR(160),IE$1)),FIND(CHAR(160),SUBSTITUTE($AA15,\"}\",CHAR(160),IE$1))-FIND(CHAR(160),SUBSTITUTE($AA15,\"{\",CHAR(160),IE$1))+1),\"\")","v":""},{"$f":"IFERROR(MID($AA15,FIND(CHAR(160),SUBSTITUTE($AA15,\"{\",CHAR(160),IF$1)),FIND(CHAR(160),SUBSTITUTE($AA15,\"}\",CHAR(160),IF$1))-FIND(CHAR(160),SUBSTITUTE($AA15,\"{\",CHAR(160),IF$1))+1),\"\")","v":""},{"$f":"IFERROR(MID($AA15,FIND(CHAR(160),SUBSTITUTE($AA15,\"{\",CHAR(160),IG$1)),FIND(CHAR(160),SUBSTITUTE($AA15,\"}\",CHAR(160),IG$1))-FIND(CHAR(160),SUBSTITUTE($AA15,\"{\",CHAR(160),IG$1))+1),\"\")","v":""},{"$f":"IFERROR(MID($AA15,FIND(CHAR(160),SUBSTITUTE($AA15,\"{\",CHAR(160),IH$1)),FIND(CHAR(160),SUBSTITUTE($AA15,\"}\",CHAR(160),IH$1))-FIND(CHAR(160),SUBSTITUTE($AA15,\"{\",CHAR(160),IH$1))+1),\"\")","v":""},{"$f":"IFERROR(MID($AA15,FIND(CHAR(160),SUBSTITUTE($AA15,\"{\",CHAR(160),II$1)),FIND(CHAR(160),SUBSTITUTE($AA15,\"}\",CHAR(160),II$1))-FIND(CHAR(160),SUBSTITUTE($AA15,\"{\",CHAR(160),II$1))+1),\"\")","v":""},{"$f":"IFERROR(MID($AA15,FIND(CHAR(160),SUBSTITUTE($AA15,\"{\",CHAR(160),IJ$1)),FIND(CHAR(160),SUBSTITUTE($AA15,\"}\",CHAR(160),IJ$1))-FIND(CHAR(160),SUBSTITUTE($AA15,\"{\",CHAR(160),IJ$1))+1),\"\")","v":""},{"$f":"IFERROR(MID($AA15,FIND(CHAR(160),SUBSTITUTE($AA15,\"{\",CHAR(160),IK$1)),FIND(CHAR(160),SUBSTITUTE($AA15,\"}\",CHAR(160),IK$1))-FIND(CHAR(160),SUBSTITUTE($AA15,\"{\",CHAR(160),IK$1))+1),\"\")","v":""},{"$f":"IFERROR(MID($AA15,FIND(CHAR(160),SUBSTITUTE($AA15,\"{\",CHAR(160),IL$1)),FIND(CHAR(160),SUBSTITUTE($AA15,\"}\",CHAR(160),IL$1))-FIND(CHAR(160),SUBSTITUTE($AA15,\"{\",CHAR(160),IL$1))+1),\"\")","v":""},{"$f":"IFERROR(MID($AA15,FIND(CHAR(160),SUBSTITUTE($AA15,\"{\",CHAR(160),IM$1)),FIND(CHAR(160),SUBSTITUTE($AA15,\"}\",CHAR(160),IM$1))-FIND(CHAR(160),SUBSTITUTE($AA15,\"{\",CHAR(160),IM$1))+1),\"\")","v":"{Primary heating type}"},{"$f":"IFERROR(MID($AA15,FIND(CHAR(160),SUBSTITUTE($AA15,\"{\",CHAR(160),IN$1)),FIND(CHAR(160),SUBSTITUTE($AA15,\"}\",CHAR(160),IN$1))-FIND(CHAR(160),SUBSTITUTE($AA15,\"{\",CHAR(160),IN$1))+1),\"\")","v":"{Primary heating type}"},{"$f":"IFERROR(MID($AB15,FIND(CHAR(160),SUBSTITUTE($AB15,\"{\",CHAR(160),IO$1)),FIND(CHAR(160),SUBSTITUTE($AB15,\"}\",CHAR(160),IO$1))-FIND(CHAR(160),SUBSTITUTE($AB15,\"{\",CHAR(160),IO$1))+1),\"\")","v":""},{"$f":"IFERROR(MID($AB15,FIND(CHAR(160),SUBSTITUTE($AB15,\"{\",CHAR(160),IP$1)),FIND(CHAR(160),SUBSTITUTE($AB15,\"}\",CHAR(160),IP$1))-FIND(CHAR(160),SUBSTITUTE($AB15,\"{\",CHAR(160),IP$1))+1),\"\")","v":""},{"$f":"IFERROR(MID($AB15,FIND(CHAR(160),SUBSTITUTE($AB15,\"{\",CHAR(160),IQ$1)),FIND(CHAR(160),SUBSTITUTE($AB15,\"}\",CHAR(160),IQ$1))-FIND(CHAR(160),SUBSTITUTE($AB15,\"{\",CHAR(160),IQ$1))+1),\"\")","v":""},{"$f":"IFERROR(MID($AB15,FIND(CHAR(160),SUBSTITUTE($AB15,\"{\",CHAR(160),IR$1)),FIND(CHAR(160),SUBSTITUTE($AB15,\"}\",CHAR(160),IR$1))-FIND(CHAR(160),SUBSTITUTE($AB15,\"{\",CHAR(160),IR$1))+1),\"\")","v":""},{"$f":"IFERROR(MID($AB15,FIND(CHAR(160),SUBSTITUTE($AB15,\"{\",CHAR(160),IS$1)),FIND(CHAR(160),SUBSTITUTE($AB15,\"}\",CHAR(160),IS$1))-FIND(CHAR(160),SUBSTITUTE($AB15,\"{\",CHAR(160),IS$1))+1),\"\")","v":""},{"$f":"IFERROR(MID($AB15,FIND(CHAR(160),SUBSTITUTE($AB15,\"{\",CHAR(160),IT$1)),FIND(CHAR(160),SUBSTITUTE($AB15,\"}\",CHAR(160),IT$1))-FIND(CHAR(160),SUBSTITUTE($AB15,\"{\",CHAR(160),IT$1))+1),\"\")","v":""},{"$f":"IFERROR(MID($AB15,FIND(CHAR(160),SUBSTITUTE($AB15,\"{\",CHAR(160),IU$1)),FIND(CHAR(160),SUBSTITUTE($AB15,\"}\",CHAR(160),IU$1))-FIND(CHAR(160),SUBSTITUTE($AB15,\"{\",CHAR(160),IU$1))+1),\"\")","v":""},{"$f":"IFERROR(MID($AB15,FIND(CHAR(160),SUBSTITUTE($AB15,\"{\",CHAR(160),IV$1)),FIND(CHAR(160),SUBSTITUTE($AB15,\"}\",CHAR(160),IV$1))-FIND(CHAR(160),SUBSTITUTE($AB15,\"{\",CHAR(160),IV$1))+1),\"\")","v":""},{"$f":"IFERROR(MID($AB15,FIND(CHAR(160),SUBSTITUTE($AB15,\"{\",CHAR(160),IW$1)),FIND(CHAR(160),SUBSTITUTE($AB15,\"}\",CHAR(160),IW$1))-FIND(CHAR(160),SUBSTITUTE($AB15,\"{\",CHAR(160),IW$1))+1),\"\")","v":""},{"$f":"IFERROR(MID($AB15,FIND(CHAR(160),SUBSTITUTE($AB15,\"{\",CHAR(160),IX$1)),FIND(CHAR(160),SUBSTITUTE($AB15,\"}\",CHAR(160),IX$1))-FIND(CHAR(160),SUBSTITUTE($AB15,\"{\",CHAR(160),IX$1))+1),\"\")","v":""},null,{"$f":"10-COUNTIF(DU15:ED15,\"\")","v":3}]
["Affordable Heat Initiative - Other Fuels","Wall Insulation LIHESP","LBW","2021-07-01","2022-06-30","Calculated","{Cost}*{Measure:Quantity}",0,"Calculated","if({Cost}*0.80>2000,2000,Round({Cost}*0.80,2))*{Measure:Quantity}",0,"2020-07-01","2022-06-30","Calculated","if({Primary heating type}=6,4879,if({Primary heating type}=0,216,32))",null,null,"if({Primary heating type}=6,0.068,if({Primary heating type}=0,0.068,0.068))",null,null,"if({Primary heating type}=6,1.202,if({Primary heating type}=0,0.046,0))","if({Primary heating type}=6,0.068,if({Primary heating type}=0,0.068,0.068))","if({Primary heating type}=1,20.034,if({Primary heating type}=0,1.793,0))*10","if({Primary heating type}=2,20.034,if({Primary heating type} = 0,2.610,0))","if({Primary heating type}=3,20.034,if({Primary heating type} = 0,13.628,0))","if({Primary heating type}=4,20.034,if({Primary heating type} = 0,0.279,0))","if({Primary heating type}=5,20.034,if({Primary heating type} = 0,0.857,0))",0,"2019-07-01","2022-06-30",25,1,1,0,0,0.66600000000000004,0.30099999999999999,1,1,1,0,0,null,{"$f":"DU16","v":"{Cost}"},2574,{"$f":"DV16","v":"{Measure:Quantity}"},1,{"$f":"DW16","v":"{Primary heating type}"},0,{"$f":"DX16","v":""},null,{"$f":"DY16","v":""},null,{"$f":"DZ16","v":""},null,{"$f":"EA16","v":""},null,{"$f":"EB16","v":""},null,{"$f":"EC16","v":""},null,{"$f":"ED16","v":""},null,{"$f":"IF(AW16=6,4879,IF(AW16=0,216,32))","v":216},0,0,{"$f":"IF(AW16=6,0.068,IF(AW16=0,0.068,0.068))","v":6.8000000000000005E-2},0,0,{"$f":"IF(AW16=6,1.202,IF(AW16=0,0.046,0))","v":4.5999999999999999E-2},{"$f":"IF(AW16=6,0.068,IF(AW16=0,0.068,0.068))","v":6.8000000000000005E-2},{"$f":"IF(AW16=1,20.034,IF(AW16=0,1.793,0))*10","v":17.93},{"$f":"IF(AW16=2,20.034,IF(AW16 = 0,2.61,0))","v":2.61},{"$f":"IF(AW16=3,20.034,IF(AW16 = 0,13.628,0))","v":13.628},{"$f":"IF(AW16=4,20.034,IF(AW16 = 0,0.279,0))","v":0.27900000000000003},{"$f":"IF(AW16=5,20.034,IF(AW16 = 0,0.857,0))","v":0.85699999999999998},{"$f":"0","v":0},null,"Res","RGGI DR",{"$f":"Benefits(BL16,BR16,BS16,BT16,BU16,BV16,BW16,BX16,BY16,BZ16,AE16,AH16,AI16,AJ16,AK16,AL16,AM16,AN16,AO16,AP16,CA16,CB16)","v":352.10518553017397},444.72758986281451,479.79284338734652,8241.7435472153447,198.15824111478724,2232.501190044949,345.63177233898824,0,0,{"$f":"SUMPRODUCT(CC16:CK16,--(CC16:CK16>0))","v":12294.660369494402},{"$f":"-SUMPRODUCT(CC16:CK16,--(CC16:CK16<0))","v":0},null,{"$f":"AS16*AU16","v":2574},null,null,{"$f":"CM16+CO16","v":2574},{"$f":"IF(NetOrGross=\"Net\",(1-AO16+AP16),1)","v":1},{"$f":"(SUMPRODUCT(CC16:CJ16,--(CC16:CJ16>0))+CN16)*CS16/((-SUMPRODUCT(CC16:CJ16,--(CC16:CJ16<0))+MAX(CO16,CV16)+CP16+CQ16)*CS16+IF(FRIncentives=\"Yes\",CV16*(1-CS16),0))","v":4.7764803300289049},1,{"$f":"IF(AS16*0.8>2000,2000,ROUND(AS16*0.8,2))*AU16","v":2000},null,"RGGI","y",null,{"$f":"IF(F16=\"Manual Entry\",\"Manual\",IF(G16=\"\",0,\"X=\"&SUBSTITUTE(SUBSTITUTE(SUBSTITUTE(SUBSTITUTE(SUBSTITUTE(SUBSTITUTE(SUBSTITUTE(SUBSTITUTE(SUBSTITUTE(SUBSTITUTE(SUBSTITUTE(SUBSTITUTE(G16,$ED16,$ED$2&ROW($ED16)),$EC16,$EC$2&ROW($EC16)),$EB16,$EB$2&ROW($EB16)),$EA16,$EA$2&ROW($EA16)),$DZ16,$DZ$2&ROW($DZ16)),$DY16,$DY$2&ROW($DY16)),$DX16,$DX$2&ROW($DX16)),$DW16,$DW$2&ROW($DW16)),$DV16,$DV$2&ROW($DV16)),$DU16,$DU$2&ROW($DU16)),$DT16,$DT$2&ROW($DT16)),$DS16,$DS$2&ROW($DS16))))","v":"X=AS16*AU16"},{"$f":"IF(I16=\"Manual Entry\",\"Manual\",IF(J16=\"\",0,\"X=\"&SUBSTITUTE(SUBSTITUTE(SUBSTITUTE(SUBSTITUTE(SUBSTITUTE(SUBSTITUTE(SUBSTITUTE(SUBSTITUTE(SUBSTITUTE(SUBSTITUTE(SUBSTITUTE(SUBSTITUTE(J16,$ED16,$ED$2&ROW($ED16)),$EC16,$EC$2&ROW($EC16)),$EB16,$EB$2&ROW($EB16)),$EA16,$EA$2&ROW($EA16)),$DZ16,$DZ$2&ROW($DZ16)),$DY16,$DY$2&ROW($DY16)),$DX16,$DX$2&ROW($DX16)),$DW16,$DW$2&ROW($DW16)),$DV16,$DV$2&ROW($DV16)),$DU16,$DU$2&ROW($DU16)),$DT16,$DT$2&ROW($DT16)),$DS16,$DS$2&ROW($DS16))))","v":"X=if(AS16*0.80>2000,2000,Round(AS16*0.80,2))*AU16"},{"$f":"IF(O16=\"\",0,\"X=\"&SUBSTITUTE(SUBSTITUTE(SUBSTITUTE(SUBSTITUTE(SUBSTITUTE(SUBSTITUTE(SUBSTITUTE(SUBSTITUTE(SUBSTITUTE(SUBSTITUTE(SUBSTITUTE(SUBSTITUTE(O16,$ED16,$ED$2&ROW($ED16)),$EC16,$EC$2&ROW($EC16)),$EB16,$EB$2&ROW($EB16)),$EA16,$EA$2&ROW($EA16)),$DZ16,$DZ$2&ROW($DZ16)),$DY16,$DY$2&ROW($DY16)),$DX16,$DX$2&ROW($DX16)),$DW16,$DW$2&ROW($DW16)),$DV16,$DV$2&ROW($DV16)),$DU16,$DU$2&ROW($DU16)),$DT16,$DT$2&ROW($DT16)),$DS16,$DS$2&ROW($DS16)))","v":"X=if(AW16=6,4879,if(AW16=0,216,32))"},{"$f":"IF(P16=\"\",0,\"X=\"&SUBSTITUTE(SUBSTITUTE(SUBSTITUTE(SUBSTITUTE(SUBSTITUTE(SUBSTITUTE(SUBSTITUTE(SUBSTITUTE(SUBSTITUTE(SUBSTITUTE(SUBSTITUTE(SUBSTITUTE(P16,$ED16,$ED$2&ROW($ED16)),$EC16,$EC$2&ROW($EC16)),$EB16,$EB$2&ROW($EB16)),$EA16,$EA$2&ROW($EA16)),$DZ16,$DZ$2&ROW($DZ16)),$DY16,$DY$2&ROW($DY16)),$DX16,$DX$2&ROW($DX16)),$DW16,$DW$2&ROW($DW16)),$DV16,$DV$2&ROW($DV16)),$DU16,$DU$2&ROW($DU16)),$DT16,$DT$2&ROW($DT16)),$DS16,$DS$2&ROW($DS16)))","v":0},{"$f":"IF(Q16=\"\",0,\"X=\"&SUBSTITUTE(SUBSTITUTE(SUBSTITUTE(SUBSTITUTE(SUBSTITUTE(SUBSTITUTE(SUBSTITUTE(SUBSTITUTE(SUBSTITUTE(SUBSTITUTE(SUBSTITUTE(SUBSTITUTE(Q16,$ED16,$ED$2&ROW($ED16)),$EC16,$EC$2&ROW($EC16)),$EB16,$EB$2&ROW($EB16)),$EA16,$EA$2&ROW($EA16)),$DZ16,$DZ$2&ROW($DZ16)),$DY16,$DY$2&ROW($DY16)),$DX16,$DX$2&ROW($DX16)),$DW16,$DW$2&ROW($DW16)),$DV16,$DV$2&ROW($DV16)),$DU16,$DU$2&ROW($DU16)),$DT16,$DT$2&ROW($DT16)),$DS16,$DS$2&ROW($DS16)))","v":0},{"$f":"IF(R16=\"\",0,\"X=\"&SUBSTITUTE(SUBSTITUTE(SUBSTITUTE(SUBSTITUTE(SUBSTITUTE(SUBSTITUTE(SUBSTITUTE(SUBSTITUTE(SUBSTITUTE(SUBSTITUTE(SUBSTITUTE(SUBSTITUTE(R16,$ED16,$ED$2&ROW($ED16)),$EC16,$EC$2&ROW($EC16)),$EB16,$EB$2&ROW($EB16)),$EA16,$EA$2&ROW($EA16)),$DZ16,$DZ$2&ROW($DZ16)),$DY16,$DY$2&ROW($DY16)),$DX16,$DX$2&ROW($DX16)),$DW16,$DW$2&ROW($DW16)),$DV16,$DV$2&ROW($DV16)),$DU16,$DU$2&ROW($DU16)),$DT16,$DT$2&ROW($DT16)),$DS16,$DS$2&ROW($DS16)))","v":"X=if(AW16=6,0.068,if(AW16=0,0.068,0.068))"},{"$f":"IF(S16=\"\",0,\"X=\"&SUBSTITUTE(SUBSTITUTE(SUBSTITUTE(SUBSTITUTE(SUBSTITUTE(SUBSTITUTE(SUBSTITUTE(SUBSTITUTE(SUBSTITUTE(SUBSTITUTE(SUBSTITUTE(SUBSTITUTE(S16,$ED16,$ED$2&ROW($ED16)),$EC16,$EC$2&ROW($EC16)),$EB16,$EB$2&ROW($EB16)),$EA16,$EA$2&ROW($EA16)),$DZ16,$DZ$2&ROW($DZ16)),$DY16,$DY$2&ROW($DY16)),$DX16,$DX$2&ROW($DX16)),$DW16,$DW$2&ROW($DW16)),$DV16,$DV$2&ROW($DV16)),$DU16,$DU$2&ROW($DU16)),$DT16,$DT$2&ROW($DT16)),$DS16,$DS$2&ROW($DS16)))","v":0},{"$f":"IF(T16=\"\",0,\"X=\"&SUBSTITUTE(SUBSTITUTE(SUBSTITUTE(SUBSTITUTE(SUBSTITUTE(SUBSTITUTE(SUBSTITUTE(SUBSTITUTE(SUBSTITUTE(SUBSTITUTE(SUBSTITUTE(SUBSTITUTE(T16,$ED16,$ED$2&ROW($ED16)),$EC16,$EC$2&ROW($EC16)),$EB16,$EB$2&ROW($EB16)),$EA16,$EA$2&ROW($EA16)),$DZ16,$DZ$2&ROW($DZ16)),$DY16,$DY$2&ROW($DY16)),$DX16,$DX$2&ROW($DX16)),$DW16,$DW$2&ROW($DW16)),$DV16,$DV$2&ROW($DV16)),$DU16,$DU$2&ROW($DU16)),$DT16,$DT$2&ROW($DT16)),$DS16,$DS$2&ROW($DS16)))","v":0},{"$f":"IF(U16=\"\",0,\"X=\"&SUBSTITUTE(SUBSTITUTE(SUBSTITUTE(SUBSTITUTE(SUBSTITUTE(SUBSTITUTE(SUBSTITUTE(SUBSTITUTE(SUBSTITUTE(SUBSTITUTE(SUBSTITUTE(SUBSTITUTE(U16,$ED16,$ED$2&ROW($ED16)),$EC16,$EC$2&ROW($EC16)),$EB16,$EB$2&ROW($EB16)),$EA16,$EA$2&ROW($EA16)),$DZ16,$DZ$2&ROW($DZ16)),$DY16,$DY$2&ROW($DY16)),$DX16,$DX$2&ROW($DX16)),$DW16,$DW$2&ROW($DW16)),$DV16,$DV$2&ROW($DV16)),$DU16,$DU$2&ROW($DU16)),$DT16,$DT$2&ROW($DT16)),$DS16,$DS$2&ROW($DS16)))","v":"X=if(AW16=6,1.202,if(AW16=0,0.046,0))"},{"$f":"IF(V16=\"\",0,\"X=\"&SUBSTITUTE(SUBSTITUTE(SUBSTITUTE(SUBSTITUTE(SUBSTITUTE(SUBSTITUTE(SUBSTITUTE(SUBSTITUTE(SUBSTITUTE(SUBSTITUTE(SUBSTITUTE(SUBSTITUTE(V16,$ED16,$ED$2&ROW($ED16)),$EC16,$EC$2&ROW($EC16)),$EB16,$EB$2&ROW($EB16)),$EA16,$EA$2&ROW($EA16)),$DZ16,$DZ$2&ROW($DZ16)),$DY16,$DY$2&ROW($DY16)),$DX16,$DX$2&ROW($DX16)),$DW16,$DW$2&ROW($DW16)),$DV16,$DV$2&ROW($DV16)),$DU16,$DU$2&ROW($DU16)),$DT16,$DT$2&ROW($DT16)),$DS16,$DS$2&ROW($DS16)))","v":"X=if(AW16=6,0.068,if(AW16=0,0.068,0.068))"},{"$f":"IF(W16=\"\",0,\"X=\"&SUBSTITUTE(SUBSTITUTE(SUBSTITUTE(SUBSTITUTE(SUBSTITUTE(SUBSTITUTE(SUBSTITUTE(SUBSTITUTE(SUBSTITUTE(SUBSTITUTE(SUBSTITUTE(SUBSTITUTE(W16,$ED16,$ED$2&ROW($ED16)),$EC16,$EC$2&ROW($EC16)),$EB16,$EB$2&ROW($EB16)),$EA16,$EA$2&ROW($EA16)),$DZ16,$DZ$2&ROW($DZ16)),$DY16,$DY$2&ROW($DY16)),$DX16,$DX$2&ROW($DX16)),$DW16,$DW$2&ROW($DW16)),$DV16,$DV$2&ROW($DV16)),$DU16,$DU$2&ROW($DU16)),$DT16,$DT$2&ROW($DT16)),$DS16,$DS$2&ROW($DS16)))","v":"X=if(AW16=1,20.034,if(AW16=0,1.793,0))*10"},{"$f":"IF(X16=\"\",0,\"X=\"&SUBSTITUTE(SUBSTITUTE(SUBSTITUTE(SUBSTITUTE(SUBSTITUTE(SUBSTITUTE(SUBSTITUTE(SUBSTITUTE(SUBSTITUTE(SUBSTITUTE(SUBSTITUTE(SUBSTITUTE(X16,$ED16,$ED$2&ROW($ED16)),$EC16,$EC$2&ROW($EC16)),$EB16,$EB$2&ROW($EB16)),$EA16,$EA$2&ROW($EA16)),$DZ16,$DZ$2&ROW($DZ16)),$DY16,$DY$2&ROW($DY16)),$DX16,$DX$2&ROW($DX16)),$DW16,$DW$2&ROW($DW16)),$DV16,$DV$2&ROW($DV16)),$DU16,$DU$2&ROW($DU16)),$DT16,$DT$2&ROW($DT16)),$DS16,$DS$2&ROW($DS16)))","v":"X=if(AW16=2,20.034,if(AW16 = 0,2.610,0))"},{"$f":"IF(Y16=\"\",0,\"X=\"&SUBSTITUTE(SUBSTITUTE(SUBSTITUTE(SUBSTITUTE(SUBSTITUTE(SUBSTITUTE(SUBSTITUTE(SUBSTITUTE(SUBSTITUTE(SUBSTITUTE(SUBSTITUTE(SUBSTITUTE(Y16,$ED16,$ED$2&ROW($ED16)),$EC16,$EC$2&ROW($EC16)),$EB16,$EB$2&ROW($EB16)),$EA16,$EA$2&ROW($EA16)),$DZ16,$DZ$2&ROW($DZ16)),$DY16,$DY$2&ROW($DY16)),$DX16,$DX$2&ROW($DX16)),$DW16,$DW$2&ROW($DW16)),$DV16,$DV$2&ROW($DV16)),$DU16,$DU$2&ROW($DU16)),$DT16,$DT$2&ROW($DT16)),$DS16,$DS$2&ROW($DS16)))","v":"X=if(AW16=3,20.034,if(AW16 = 0,13.628,0))"},{"$f":"IF(Z16=\"\",0,\"X=\"&SUBSTITUTE(SUBSTITUTE(SUBSTITUTE(SUBSTITUTE(SUBSTITUTE(SUBSTITUTE(SUBSTITUTE(SUBSTITUTE(SUBSTITUTE(SUBSTITUTE(SUBSTITUTE(SUBSTITUTE(Z16,$ED16,$ED$2&ROW($ED16)),$EC16,$EC$2&ROW($EC16)),$EB16,$EB$2&ROW($EB16)),$EA16,$EA$2&ROW($EA16)),$DZ16,$DZ$2&ROW($DZ16)),$DY16,$DY$2&ROW($DY16)),$DX16,$DX$2&ROW($DX16)),$DW16,$DW$2&ROW($DW16)),$DV16,$DV$2&ROW($DV16)),$DU16,$DU$2&ROW($DU16)),$DT16,$DT$2&ROW($DT16)),$DS16,$DS$2&ROW($DS16)))","v":"X=if(AW16=4,20.034,if(AW16 = 0,0.279,0))"},{"$f":"IF(AA16=\"\",0,\"X=\"&SUBSTITUTE(SUBSTITUTE(SUBSTITUTE(SUBSTITUTE(SUBSTITUTE(SUBSTITUTE(SUBSTITUTE(SUBSTITUTE(SUBSTITUTE(SUBSTITUTE(SUBSTITUTE(SUBSTITUTE(AA16,$ED16,$ED$2&ROW($ED16)),$EC16,$EC$2&ROW($EC16)),$EB16,$EB$2&ROW($EB16)),$EA16,$EA$2&ROW($EA16)),$DZ16,$DZ$2&ROW($DZ16)),$DY16,$DY$2&ROW($DY16)),$DX16,$DX$2&ROW($DX16)),$DW16,$DW$2&ROW($DW16)),$DV16,$DV$2&ROW($DV16)),$DU16,$DU$2&ROW($DU16)),$DT16,$DT$2&ROW($DT16)),$DS16,$DS$2&ROW($DS16)))","v":"X=if(AW16=5,20.034,if(AW16 = 0,0.857,0))"},{"$f":"IF(AB16=\"\",0,\"X=\"&SUBSTITUTE(SUBSTITUTE(SUBSTITUTE(SUBSTITUTE(SUBSTITUTE(SUBSTITUTE(SUBSTITUTE(SUBSTITUTE(SUBSTITUTE(SUBSTITUTE(SUBSTITUTE(SUBSTITUTE(AB16,$ED16,$ED$2&ROW($ED16)),$EC16,$EC$2&ROW($EC16)),$EB16,$EB$2&ROW($EB16)),$EA16,$EA$2&ROW($EA16)),$DZ16,$DZ$2&ROW($DZ16)),$DY16,$DY$2&ROW($DY16)),$DX16,$DX$2&ROW($DX16)),$DW16,$DW$2&ROW($DW16)),$DV16,$DV$2&ROW($DV16)),$DU16,$DU$2&ROW($DU16)),$DT16,$DT$2&ROW($DT16)),$DS16,$DS$2&ROW($DS16)))","v":"X=0"},null,null,"{Factor:WinterCF}","{Factor:SummerCF}",{"$f":"IFERROR(INDEX($EG16:$IV16,MATCH(0,COUNTIF($DR16:DT16,$EG16:$IV16),0)),\"\")","v":"{Cost}"},{"$f":"IFERROR(INDEX($EG16:$IV16,MATCH(0,COUNTIF($DR16:DU16,$EG16:$IV16),0)),\"\")","v":"{Measure:Quantity}"},{"$f":"IFERROR(INDEX($EG16:$IV16,MATCH(0,COUNTIF($DR16:DV16,$EG16:$IV16),0)),\"\")","v":"{Primary heating type}"},{"$f":"IFERROR(INDEX($EG16:$IV16,MATCH(0,COUNTIF($DR16:DW16,$EG16:$IV16),0)),\"\")","v":""},{"$f":"IFERROR(INDEX($EG16:$IV16,MATCH(0,COUNTIF($DR16:DX16,$EG16:$IV16),0)),\"\")","v":""},{"$f":"IFERROR(INDEX($EG16:$IV16,MATCH(0,COUNTIF($DR16:DY16,$EG16:$IV16),0)),\"\")","v":""},{"$f":"IFERROR(INDEX($EG16:$IV16,MATCH(0,COUNTIF($DR16:DZ16,$EG16:$IV16),0)),\"\")","v":""},{"$f":"IFERROR(INDEX($EG16:$IV16,MATCH(0,COUNTIF($DR16:EA16,$EG16:$IV16),0)),\"\")","v":""},{"$f":"IFERROR(INDEX($EG16:$IV16,MATCH(0,COUNTIF($DR16:EB16,$EG16:$IV16),0)),\"\")","v":""},{"$f":"IFERROR(INDEX($EG16:$IV16,MATCH(0,COUNTIF($DR16:EC16,$EG16:$IV16),0)),\"\")","v":""},null,null,{"$f":"IFERROR(MID($G16,FIND(CHAR(160),SUBSTITUTE($G16,\"{\",CHAR(160),EG$1)),FIND(CHAR(160),SUBSTITUTE($G16,\"}\",CHAR(160),EG$1))-FIND(CHAR(160),SUBSTITUTE($G16,\"{\",CHAR(160),EG$1))+1),\"\")","v":"{Cost}"},{"$f":"IFERROR(MID($G16,FIND(CHAR(160),SUBSTITUTE($G16,\"{\",CHAR(160),EH$1)),FIND(CHAR(160),SUBSTITUTE($G16,\"}\",CHAR(160),EH$1))-FIND(CHAR(160),SUBSTITUTE($G16,\"{\",CHAR(160),EH$1))+1),\"\")","v":"{Measure:Quantity}"},{"$f":"IFERROR(MID($G16,FIND(CHAR(160),SUBSTITUTE($G16,\"{\",CHAR(160),EI$1)),FIND(CHAR(160),SUBSTITUTE($G16,\"}\",CHAR(160),EI$1))-FIND(CHAR(160),SUBSTITUTE($G16,\"{\",CHAR(160),EI$1))+1),\"\")","v":""},{"$f":"IFERROR(MID($G16,FIND(CHAR(160),SUBSTITUTE($G16,\"{\",CHAR(160),EJ$1)),FIND(CHAR(160),SUBSTITUTE($G16,\"}\",CHAR(160),EJ$1))-FIND(CHAR(160),SUBSTITUTE($G16,\"{\",CHAR(160),EJ$1))+1),\"\")","v":""},{"$f":"IFERROR(MID($G16,FIND(CHAR(160),SUBSTITUTE($G16,\"{\",CHAR(160),EK$1)),FIND(CHAR(160),SUBSTITUTE($G16,\"}\",CHAR(160),EK$1))-FIND(CHAR(160),SUBSTITUTE($G16,\"{\",CHAR(160),EK$1))+1),\"\")","v":""},{"$f":"IFERROR(MID($G16,FIND(CHAR(160),SUBSTITUTE($G16,\"{\",CHAR(160),EL$1)),FIND(CHAR(160),SUBSTITUTE($G16,\"}\",CHAR(160),EL$1))-FIND(CHAR(160),SUBSTITUTE($G16,\"{\",CHAR(160),EL$1))+1),\"\")","v":""},{"$f":"IFERROR(MID($G16,FIND(CHAR(160),SUBSTITUTE($G16,\"{\",CHAR(160),EM$1)),FIND(CHAR(160),SUBSTITUTE($G16,\"}\",CHAR(160),EM$1))-FIND(CHAR(160),SUBSTITUTE($G16,\"{\",CHAR(160),EM$1))+1),\"\")","v":""},{"$f":"IFERROR(MID($G16,FIND(CHAR(160),SUBSTITUTE($G16,\"{\",CHAR(160),EN$1)),FIND(CHAR(160),SUBSTITUTE($G16,\"}\",CHAR(160),EN$1))-FIND(CHAR(160),SUBSTITUTE($G16,\"{\",CHAR(160),EN$1))+1),\"\")","v":""},{"$f":"IFERROR(MID($G16,FIND(CHAR(160),SUBSTITUTE($G16,\"{\",CHAR(160),EO$1)),FIND(CHAR(160),SUBSTITUTE($G16,\"}\",CHAR(160),EO$1))-FIND(CHAR(160),SUBSTITUTE($G16,\"{\",CHAR(160),EO$1))+1),\"\")","v":""},{"$f":"IFERROR(MID($G16,FIND(CHAR(160),SUBSTITUTE($G16,\"{\",CHAR(160),EP$1)),FIND(CHAR(160),SUBSTITUTE($G16,\"}\",CHAR(160),EP$1))-FIND(CHAR(160),SUBSTITUTE($G16,\"{\",CHAR(160),EP$1))+1),\"\")","v":""},{"$f":"IFERROR(MID($J16,FIND(CHAR(160),SUBSTITUTE($J16,\"{\",CHAR(160),EQ$1)),FIND(CHAR(160),SUBSTITUTE($J16,\"}\",CHAR(160),EQ$1))-FIND(CHAR(160),SUBSTITUTE($J16,\"{\",CHAR(160),EQ$1))+1),\"\")","v":"{Cost}"},{"$f":"IFERROR(MID($J16,FIND(CHAR(160),SUBSTITUTE($J16,\"{\",CHAR(160),ER$1)),FIND(CHAR(160),SUBSTITUTE($J16,\"}\",CHAR(160),ER$1))-FIND(CHAR(160),SUBSTITUTE($J16,\"{\",CHAR(160),ER$1))+1),\"\")","v":"{Cost}"},{"$f":"IFERROR(MID($J16,FIND(CHAR(160),SUBSTITUTE($J16,\"{\",CHAR(160),ES$1)),FIND(CHAR(160),SUBSTITUTE($J16,\"}\",CHAR(160),ES$1))-FIND(CHAR(160),SUBSTITUTE($J16,\"{\",CHAR(160),ES$1))+1),\"\")","v":"{Measure:Quantity}"},{"$f":"IFERROR(MID($J16,FIND(CHAR(160),SUBSTITUTE($J16,\"{\",CHAR(160),ET$1)),FIND(CHAR(160),SUBSTITUTE($J16,\"}\",CHAR(160),ET$1))-FIND(CHAR(160),SUBSTITUTE($J16,\"{\",CHAR(160),ET$1))+1),\"\")","v":""},{"$f":"IFERROR(MID($J16,FIND(CHAR(160),SUBSTITUTE($J16,\"{\",CHAR(160),EU$1)),FIND(CHAR(160),SUBSTITUTE($J16,\"}\",CHAR(160),EU$1))-FIND(CHAR(160),SUBSTITUTE($J16,\"{\",CHAR(160),EU$1))+1),\"\")","v":""},{"$f":"IFERROR(MID($J16,FIND(CHAR(160),SUBSTITUTE($J16,\"{\",CHAR(160),EV$1)),FIND(CHAR(160),SUBSTITUTE($J16,\"}\",CHAR(160),EV$1))-FIND(CHAR(160),SUBSTITUTE($J16,\"{\",CHAR(160),EV$1))+1),\"\")","v":""},{"$f":"IFERROR(MID($J16,FIND(CHAR(160),SUBSTITUTE($J16,\"{\",CHAR(160),EW$1)),FIND(CHAR(160),SUBSTITUTE($J16,\"}\",CHAR(160),EW$1))-FIND(CHAR(160),SUBSTITUTE($J16,\"{\",CHAR(160),EW$1))+1),\"\")","v":""},{"$f":"IFERROR(MID($J16,FIND(CHAR(160),SUBSTITUTE($J16,\"{\",CHAR(160),EX$1)),FIND(CHAR(160),SUBSTITUTE($J16,\"}\",CHAR(160),EX$1))-FIND(CHAR(160),SUBSTITUTE($J16,\"{\",CHAR(160),EX$1))+1),\"\")","v":""},{"$f":"IFERROR(MID($J16,FIND(CHAR(160),SUBSTITUTE($J16,\"{\",CHAR(160),EY$1)),FIND(CHAR(160),SUBSTITUTE($J16,\"}\",CHAR(160),EY$1))-FIND(CHAR(160),SUBSTITUTE($J16,\"{\",CHAR(160),EY$1))+1),\"\")","v":""},{"$f":"IFERROR(MID($J16,FIND(CHAR(160),SUBSTITUTE($J16,\"{\",CHAR(160),EZ$1)),FIND(CHAR(160),SUBSTITUTE($J16,\"}\",CHAR(160),EZ$1))-FIND(CHAR(160),SUBSTITUTE($J16,\"{\",CHAR(160),EZ$1))+1),\"\")","v":""},{"$f":"IFERROR(MID($J16,FIND(CHAR(160),SUBSTITUTE($J16,\"{\",CHAR(160),FA$1)),FIND(CHAR(160),SUBSTITUTE($J16,\"}\",CHAR(160),FA$1))-FIND(CHAR(160),SUBSTITUTE($J16,\"{\",CHAR(160),FA$1))+1),\"\")","v":"{Cost}"},{"$f":"IFERROR(MID($J16,FIND(CHAR(160),SUBSTITUTE($J16,\"{\",CHAR(160),FB$1)),FIND(CHAR(160),SUBSTITUTE($J16,\"}\",CHAR(160),FB$1))-FIND(CHAR(160),SUBSTITUTE($J16,\"{\",CHAR(160),FB$1))+1),\"\")","v":"{Cost}"},{"$f":"IFERROR(MID($O16,FIND(CHAR(160),SUBSTITUTE($O16,\"{\",CHAR(160),FC$1)),FIND(CHAR(160),SUBSTITUTE($O16,\"}\",CHAR(160),FC$1))-FIND(CHAR(160),SUBSTITUTE($O16,\"{\",CHAR(160),FC$1))+1),\"\")","v":""},{"$f":"IFERROR(MID($O16,FIND(CHAR(160),SUBSTITUTE($O16,\"{\",CHAR(160),FD$1)),FIND(CHAR(160),SUBSTITUTE($O16,\"}\",CHAR(160),FD$1))-FIND(CHAR(160),SUBSTITUTE($O16,\"{\",CHAR(160),FD$1))+1),\"\")","v":""},{"$f":"IFERROR(MID($O16,FIND(CHAR(160),SUBSTITUTE($O16,\"{\",CHAR(160),FE$1)),FIND(CHAR(160),SUBSTITUTE($O16,\"}\",CHAR(160),FE$1))-FIND(CHAR(160),SUBSTITUTE($O16,\"{\",CHAR(160),FE$1))+1),\"\")","v":""},{"$f":"IFERROR(MID($O16,FIND(CHAR(160),SUBSTITUTE($O16,\"{\",CHAR(160),FF$1)),FIND(CHAR(160),SUBSTITUTE($O16,\"}\",CHAR(160),FF$1))-FIND(CHAR(160),SUBSTITUTE($O16,\"{\",CHAR(160),FF$1))+1),\"\")","v":""},{"$f":"IFERROR(MID($O16,FIND(CHAR(160),SUBSTITUTE($O16,\"{\",CHAR(160),FG$1)),FIND(CHAR(160),SUBSTITUTE($O16,\"}\",CHAR(160),FG$1))-FIND(CHAR(160),SUBSTITUTE($O16,\"{\",CHAR(160),FG$1))+1),\"\")","v":""},{"$f":"IFERROR(MID($O16,FIND(CHAR(160),SUBSTITUTE($O16,\"{\",CHAR(160),FH$1)),FIND(CHAR(160),SUBSTITUTE($O16,\"}\",CHAR(160),FH$1))-FIND(CHAR(160),SUBSTITUTE($O16,\"{\",CHAR(160),FH$1))+1),\"\")","v":""},{"$f":"IFERROR(MID($O16,FIND(CHAR(160),SUBSTITUTE($O16,\"{\",CHAR(160),FI$1)),FIND(CHAR(160),SUBSTITUTE($O16,\"}\",CHAR(160),FI$1))-FIND(CHAR(160),SUBSTITUTE($O16,\"{\",CHAR(160),FI$1))+1),\"\")","v":""},{"$f":"IFERROR(MID($O16,FIND(CHAR(160),SUBSTITUTE($O16,\"{\",CHAR(160),FJ$1)),FIND(CHAR(160),SUBSTITUTE($O16,\"}\",CHAR(160),FJ$1))-FIND(CHAR(160),SUBSTITUTE($O16,\"{\",CHAR(160),FJ$1))+1),\"\")","v":""},{"$f":"IFERROR(MID($O16,FIND(CHAR(160),SUBSTITUTE($O16,\"{\",CHAR(160),FK$1)),FIND(CHAR(160),SUBSTITUTE($O16,\"}\",CHAR(160),FK$1))-FIND(CHAR(160),SUBSTITUTE($O16,\"{\",CHAR(160),FK$1))+1),\"\")","v":"{Primary heating type}"},{"$f":"IFERROR(MID($O16,FIND(CHAR(160),SUBSTITUTE($O16,\"{\",CHAR(160),FL$1)),FIND(CHAR(160),SUBSTITUTE($O16,\"}\",CHAR(160),FL$1))-FIND(CHAR(160),SUBSTITUTE($O16,\"{\",CHAR(160),FL$1))+1),\"\")","v":"{Primary heating type}"},{"$f":"IFERROR(MID($R16,FIND(CHAR(160),SUBSTITUTE($R16,\"{\",CHAR(160),FM$1)),FIND(CHAR(160),SUBSTITUTE($R16,\"}\",CHAR(160),FM$1))-FIND(CHAR(160),SUBSTITUTE($R16,\"{\",CHAR(160),FM$1))+1),\"\")","v":""},{"$f":"IFERROR(MID($R16,FIND(CHAR(160),SUBSTITUTE($R16,\"{\",CHAR(160),FN$1)),FIND(CHAR(160),SUBSTITUTE($R16,\"}\",CHAR(160),FN$1))-FIND(CHAR(160),SUBSTITUTE($R16,\"{\",CHAR(160),FN$1))+1),\"\")","v":""},{"$f":"IFERROR(MID($R16,FIND(CHAR(160),SUBSTITUTE($R16,\"{\",CHAR(160),FO$1)),FIND(CHAR(160),SUBSTITUTE($R16,\"}\",CHAR(160),FO$1))-FIND(CHAR(160),SUBSTITUTE($R16,\"{\",CHAR(160),FO$1))+1),\"\")","v":""},{"$f":"IFERROR(MID($R16,FIND(CHAR(160),SUBSTITUTE($R16,\"{\",CHAR(160),FP$1)),FIND(CHAR(160),SUBSTITUTE($R16,\"}\",CHAR(160),FP$1))-FIND(CHAR(160),SUBSTITUTE($R16,\"{\",CHAR(160),FP$1))+1),\"\")","v":""},{"$f":"IFERROR(MID($R16,FIND(CHAR(160),SUBSTITUTE($R16,\"{\",CHAR(160),FQ$1)),FIND(CHAR(160),SUBSTITUTE($R16,\"}\",CHAR(160),FQ$1))-FIND(CHAR(160),SUBSTITUTE($R16,\"{\",CHAR(160),FQ$1))+1),\"\")","v":""},{"$f":"IFERROR(MID($R16,FIND(CHAR(160),SUBSTITUTE($R16,\"{\",CHAR(160),FR$1)),FIND(CHAR(160),SUBSTITUTE($R16,\"}\",CHAR(160),FR$1))-FIND(CHAR(160),SUBSTITUTE($R16,\"{\",CHAR(160),FR$1))+1),\"\")","v":""},{"$f":"IFERROR(MID($R16,FIND(CHAR(160),SUBSTITUTE($R16,\"{\",CHAR(160),FS$1)),FIND(CHAR(160),SUBSTITUTE($R16,\"}\",CHAR(160),FS$1))-FIND(CHAR(160),SUBSTITUTE($R16,\"{\",CHAR(160),FS$1))+1),\"\")","v":""},{"$f":"IFERROR(MID($R16,FIND(CHAR(160),SUBSTITUTE($R16,\"{\",CHAR(160),FT$1)),FIND(CHAR(160),SUBSTITUTE($R16,\"}\",CHAR(160),FT$1))-FIND(CHAR(160),SUBSTITUTE($R16,\"{\",CHAR(160),FT$1))+1),\"\")","v":""},{"$f":"IFERROR(MID($R16,FIND(CHAR(160),SUBSTITUTE($R16,\"{\",CHAR(160),FU$1)),FIND(CHAR(160),SUBSTITUTE($R16,\"}\",CHAR(160),FU$1))-FIND(CHAR(160),SUBSTITUTE($R16,\"{\",CHAR(160),FU$1))+1),\"\")","v":"{Primary heating type}"},{"$f":"IFERROR(MID($R16,FIND(CHAR(160),SUBSTITUTE($R16,\"{\",CHAR(160),FV$1)),FIND(CHAR(160),SUBSTITUTE($R16,\"}\",CHAR(160),FV$1))-FIND(CHAR(160),SUBSTITUTE($R16,\"{\",CHAR(160),FV$1))+1),\"\")","v":"{Primary heating type}"},{"$f":"IFERROR(MID($U16,FIND(CHAR(160),SUBSTITUTE($U16,\"{\",CHAR(160),FW$1)),FIND(CHAR(160),SUBSTITUTE($U16,\"}\",CHAR(160),FW$1))-FIND(CHAR(160),SUBSTITUTE($U16,\"{\",CHAR(160),FW$1))+1),\"\")","v":""},{"$f":"IFERROR(MID($U16,FIND(CHAR(160),SUBSTITUTE($U16,\"{\",CHAR(160),FX$1)),FIND(CHAR(160),SUBSTITUTE($U16,\"}\",CHAR(160),FX$1))-FIND(CHAR(160),SUBSTITUTE($U16,\"{\",CHAR(160),FX$1))+1),\"\")","v":""},{"$f":"IFERROR(MID($U16,FIND(CHAR(160),SUBSTITUTE($U16,\"{\",CHAR(160),FY$1)),FIND(CHAR(160),SUBSTITUTE($U16,\"}\",CHAR(160),FY$1))-FIND(CHAR(160),SUBSTITUTE($U16,\"{\",CHAR(160),FY$1))+1),\"\")","v":""},{"$f":"IFERROR(MID($U16,FIND(CHAR(160),SUBSTITUTE($U16,\"{\",CHAR(160),FZ$1)),FIND(CHAR(160),SUBSTITUTE($U16,\"}\",CHAR(160),FZ$1))-FIND(CHAR(160),SUBSTITUTE($U16,\"{\",CHAR(160),FZ$1))+1),\"\")","v":""},{"$f":"IFERROR(MID($U16,FIND(CHAR(160),SUBSTITUTE($U16,\"{\",CHAR(160),GA$1)),FIND(CHAR(160),SUBSTITUTE($U16,\"}\",CHAR(160),GA$1))-FIND(CHAR(160),SUBSTITUTE($U16,\"{\",CHAR(160),GA$1))+1),\"\")","v":""},{"$f":"IFERROR(MID($U16,FIND(CHAR(160),SUBSTITUTE($U16,\"{\",CHAR(160),GB$1)),FIND(CHAR(160),SUBSTITUTE($U16,\"}\",CHAR(160),GB$1))-FIND(CHAR(160),SUBSTITUTE($U16,\"{\",CHAR(160),GB$1))+1),\"\")","v":""},{"$f":"IFERROR(MID($U16,FIND(CHAR(160),SUBSTITUTE($U16,\"{\",CHAR(160),GC$1)),FIND(CHAR(160),SUBSTITUTE($U16,\"}\",CHAR(160),GC$1))-FIND(CHAR(160),SUBSTITUTE($U16,\"{\",CHAR(160),GC$1))+1),\"\")","v":""},{"$f":"IFERROR(MID($U16,FIND(CHAR(160),SUBSTITUTE($U16,\"{\",CHAR(160),GD$1)),FIND(CHAR(160),SUBSTITUTE($U16,\"}\",CHAR(160),GD$1))-FIND(CHAR(160),SUBSTITUTE($U16,\"{\",CHAR(160),GD$1))+1),\"\")","v":""},{"$f":"IFERROR(MID($U16,FIND(CHAR(160),SUBSTITUTE($U16,\"{\",CHAR(160),GE$1)),FIND(CHAR(160),SUBSTITUTE($U16,\"}\",CHAR(160),GE$1))-FIND(CHAR(160),SUBSTITUTE($U16,\"{\",CHAR(160),GE$1))+1),\"\")","v":"{Primary heating type}"},{"$f":"IFERROR(MID($U16,FIND(CHAR(160),SUBSTITUTE($U16,\"{\",CHAR(160),GF$1)),FIND(CHAR(160),SUBSTITUTE($U16,\"}\",CHAR(160),GF$1))-FIND(CHAR(160),SUBSTITUTE($U16,\"{\",CHAR(160),GF$1))+1),\"\")","v":"{Primary heating type}"},{"$f":"IFERROR(MID($V16,FIND(CHAR(160),SUBSTITUTE($V16,\"{\",CHAR(160),GG$1)),FIND(CHAR(160),SUBSTITUTE($V16,\"}\",CHAR(160),GG$1))-FIND(CHAR(160),SUBSTITUTE($V16,\"{\",CHAR(160),GG$1))+1),\"\")","v":""},{"$f":"IFERROR(MID($V16,FIND(CHAR(160),SUBSTITUTE($V16,\"{\",CHAR(160),GH$1)),FIND(CHAR(160),SUBSTITUTE($V16,\"}\",CHAR(160),GH$1))-FIND(CHAR(160),SUBSTITUTE($V16,\"{\",CHAR(160),GH$1))+1),\"\")","v":""},{"$f":"IFERROR(MID($V16,FIND(CHAR(160),SUBSTITUTE($V16,\"{\",CHAR(160),GI$1)),FIND(CHAR(160),SUBSTITUTE($V16,\"}\",CHAR(160),GI$1))-FIND(CHAR(160),SUBSTITUTE($V16,\"{\",CHAR(160),GI$1))+1),\"\")","v":""},{"$f":"IFERROR(MID($V16,FIND(CHAR(160),SUBSTITUTE($V16,\"{\",CHAR(160),GJ$1)),FIND(CHAR(160),SUBSTITUTE($V16,\"}\",CHAR(160),GJ$1))-FIND(CHAR(160),SUBSTITUTE($V16,\"{\",CHAR(160),GJ$1))+1),\"\")","v":""},{"$f":"IFERROR(MID($V16,FIND(CHAR(160),SUBSTITUTE($V16,\"{\",CHAR(160),GK$1)),FIND(CHAR(160),SUBSTITUTE($V16,\"}\",CHAR(160),GK$1))-FIND(CHAR(160),SUBSTITUTE($V16,\"{\",CHAR(160),GK$1))+1),\"\")","v":""},{"$f":"IFERROR(MID($V16,FIND(CHAR(160),SUBSTITUTE($V16,\"{\",CHAR(160),GL$1)),FIND(CHAR(160),SUBSTITUTE($V16,\"}\",CHAR(160),GL$1))-FIND(CHAR(160),SUBSTITUTE($V16,\"{\",CHAR(160),GL$1))+1),\"\")","v":""},{"$f":"IFERROR(MID($V16,FIND(CHAR(160),SUBSTITUTE($V16,\"{\",CHAR(160),GM$1)),FIND(CHAR(160),SUBSTITUTE($V16,\"}\",CHAR(160),GM$1))-FIND(CHAR(160),SUBSTITUTE($V16,\"{\",CHAR(160),GM$1))+1),\"\")","v":""},{"$f":"IFERROR(MID($V16,FIND(CHAR(160),SUBSTITUTE($V16,\"{\",CHAR(160),GN$1)),FIND(CHAR(160),SUBSTITUTE($V16,\"}\",CHAR(160),GN$1))-FIND(CHAR(160),SUBSTITUTE($V16,\"{\",CHAR(160),GN$1))+1),\"\")","v":""},{"$f":"IFERROR(MID($V16,FIND(CHAR(160),SUBSTITUTE($V16,\"{\",CHAR(160),GO$1)),FIND(CHAR(160),SUBSTITUTE($V16,\"}\",CHAR(160),GO$1))-FIND(CHAR(160),SUBSTITUTE($V16,\"{\",CHAR(160),GO$1))+1),\"\")","v":"{Primary heating type}"},{"$f":"IFERROR(MID($V16,FIND(CHAR(160),SUBSTITUTE($V16,\"{\",CHAR(160),GP$1)),FIND(CHAR(160),SUBSTITUTE($V16,\"}\",CHAR(160),GP$1))-FIND(CHAR(160),SUBSTITUTE($V16,\"{\",CHAR(160),GP$1))+1),\"\")","v":"{Primary heating type}"},{"$f":"IFERROR(MID($W16,FIND(CHAR(160),SUBSTITUTE($W16,\"{\",CHAR(160),GQ$1)),FIND(CHAR(160),SUBSTITUTE($W16,\"}\",CHAR(160),GQ$1))-FIND(CHAR(160),SUBSTITUTE($W16,\"{\",CHAR(160),GQ$1))+1),\"\")","v":""},{"$f":"IFERROR(MID($W16,FIND(CHAR(160),SUBSTITUTE($W16,\"{\",CHAR(160),GR$1)),FIND(CHAR(160),SUBSTITUTE($W16,\"}\",CHAR(160),GR$1))-FIND(CHAR(160),SUBSTITUTE($W16,\"{\",CHAR(160),GR$1))+1),\"\")","v":""},{"$f":"IFERROR(MID($W16,FIND(CHAR(160),SUBSTITUTE($W16,\"{\",CHAR(160),GS$1)),FIND(CHAR(160),SUBSTITUTE($W16,\"}\",CHAR(160),GS$1))-FIND(CHAR(160),SUBSTITUTE($W16,\"{\",CHAR(160),GS$1))+1),\"\")","v":""},{"$f":"IFERROR(MID($W16,FIND(CHAR(160),SUBSTITUTE($W16,\"{\",CHAR(160),GT$1)),FIND(CHAR(160),SUBSTITUTE($W16,\"}\",CHAR(160),GT$1))-FIND(CHAR(160),SUBSTITUTE($W16,\"{\",CHAR(160),GT$1))+1),\"\")","v":""},{"$f":"IFERROR(MID($W16,FIND(CHAR(160),SUBSTITUTE($W16,\"{\",CHAR(160),GU$1)),FIND(CHAR(160),SUBSTITUTE($W16,\"}\",CHAR(160),GU$1))-FIND(CHAR(160),SUBSTITUTE($W16,\"{\",CHAR(160),GU$1))+1),\"\")","v":""},{"$f":"IFERROR(MID($W16,FIND(CHAR(160),SUBSTITUTE($W16,\"{\",CHAR(160),GV$1)),FIND(CHAR(160),SUBSTITUTE($W16,\"}\",CHAR(160),GV$1))-FIND(CHAR(160),SUBSTITUTE($W16,\"{\",CHAR(160),GV$1))+1),\"\")","v":""},{"$f":"IFERROR(MID($W16,FIND(CHAR(160),SUBSTITUTE($W16,\"{\",CHAR(160),GW$1)),FIND(CHAR(160),SUBSTITUTE($W16,\"}\",CHAR(160),GW$1))-FIND(CHAR(160),SUBSTITUTE($W16,\"{\",CHAR(160),GW$1))+1),\"\")","v":""},{"$f":"IFERROR(MID($W16,FIND(CHAR(160),SUBSTITUTE($W16,\"{\",CHAR(160),GX$1)),FIND(CHAR(160),SUBSTITUTE($W16,\"}\",CHAR(160),GX$1))-FIND(CHAR(160),SUBSTITUTE($W16,\"{\",CHAR(160),GX$1))+1),\"\")","v":""},{"$f":"IFERROR(MID($W16,FIND(CHAR(160),SUBSTITUTE($W16,\"{\",CHAR(160),GY$1)),FIND(CHAR(160),SUBSTITUTE($W16,\"}\",CHAR(160),GY$1))-FIND(CHAR(160),SUBSTITUTE($W16,\"{\",CHAR(160),GY$1))+1),\"\")","v":"{Primary heating type}"},{"$f":"IFERROR(MID($W16,FIND(CHAR(160),SUBSTITUTE($W16,\"{\",CHAR(160),GZ$1)),FIND(CHAR(160),SUBSTITUTE($W16,\"}\",CHAR(160),GZ$1))-FIND(CHAR(160),SUBSTITUTE($W16,\"{\",CHAR(160),GZ$1))+1),\"\")","v":"{Primary heating type}"},{"$f":"IFERROR(MID($X16,FIND(CHAR(160),SUBSTITUTE($X16,\"{\",CHAR(160),HA$1)),FIND(CHAR(160),SUBSTITUTE($X16,\"}\",CHAR(160),HA$1))-FIND(CHAR(160),SUBSTITUTE($X16,\"{\",CHAR(160),HA$1))+1),\"\")","v":""},{"$f":"IFERROR(MID($X16,FIND(CHAR(160),SUBSTITUTE($X16,\"{\",CHAR(160),HB$1)),FIND(CHAR(160),SUBSTITUTE($X16,\"}\",CHAR(160),HB$1))-FIND(CHAR(160),SUBSTITUTE($X16,\"{\",CHAR(160),HB$1))+1),\"\")","v":""},{"$f":"IFERROR(MID($X16,FIND(CHAR(160),SUBSTITUTE($X16,\"{\",CHAR(160),HC$1)),FIND(CHAR(160),SUBSTITUTE($X16,\"}\",CHAR(160),HC$1))-FIND(CHAR(160),SUBSTITUTE($X16,\"{\",CHAR(160),HC$1))+1),\"\")","v":""},{"$f":"IFERROR(MID($X16,FIND(CHAR(160),SUBSTITUTE($X16,\"{\",CHAR(160),HD$1)),FIND(CHAR(160),SUBSTITUTE($X16,\"}\",CHAR(160),HD$1))-FIND(CHAR(160),SUBSTITUTE($X16,\"{\",CHAR(160),HD$1))+1),\"\")","v":""},{"$f":"IFERROR(MID($X16,FIND(CHAR(160),SUBSTITUTE($X16,\"{\",CHAR(160),HE$1)),FIND(CHAR(160),SUBSTITUTE($X16,\"}\",CHAR(160),HE$1))-FIND(CHAR(160),SUBSTITUTE($X16,\"{\",CHAR(160),HE$1))+1),\"\")","v":""},{"$f":"IFERROR(MID($X16,FIND(CHAR(160),SUBSTITUTE($X16,\"{\",CHAR(160),HF$1)),FIND(CHAR(160),SUBSTITUTE($X16,\"}\",CHAR(160),HF$1))-FIND(CHAR(160),SUBSTITUTE($X16,\"{\",CHAR(160),HF$1))+1),\"\")","v":""},{"$f":"IFERROR(MID($X16,FIND(CHAR(160),SUBSTITUTE($X16,\"{\",CHAR(160),HG$1)),FIND(CHAR(160),SUBSTITUTE($X16,\"}\",CHAR(160),HG$1))-FIND(CHAR(160),SUBSTITUTE($X16,\"{\",CHAR(160),HG$1))+1),\"\")","v":""},{"$f":"IFERROR(MID($X16,FIND(CHAR(160),SUBSTITUTE($X16,\"{\",CHAR(160),HH$1)),FIND(CHAR(160),SUBSTITUTE($X16,\"}\",CHAR(160),HH$1))-FIND(CHAR(160),SUBSTITUTE($X16,\"{\",CHAR(160),HH$1))+1),\"\")","v":""},{"$f":"IFERROR(MID($X16,FIND(CHAR(160),SUBSTITUTE($X16,\"{\",CHAR(160),HI$1)),FIND(CHAR(160),SUBSTITUTE($X16,\"}\",CHAR(160),HI$1))-FIND(CHAR(160),SUBSTITUTE($X16,\"{\",CHAR(160),HI$1))+1),\"\")","v":"{Primary heating type}"},{"$f":"IFERROR(MID($X16,FIND(CHAR(160),SUBSTITUTE($X16,\"{\",CHAR(160),HJ$1)),FIND(CHAR(160),SUBSTITUTE($X16,\"}\",CHAR(160),HJ$1))-FIND(CHAR(160),SUBSTITUTE($X16,\"{\",CHAR(160),HJ$1))+1),\"\")","v":"{Primary heating type}"},{"$f":"IFERROR(MID($Y16,FIND(CHAR(160),SUBSTITUTE($Y16,\"{\",CHAR(160),HK$1)),FIND(CHAR(160),SUBSTITUTE($Y16,\"}\",CHAR(160),HK$1))-FIND(CHAR(160),SUBSTITUTE($Y16,\"{\",CHAR(160),HK$1))+1),\"\")","v":""},{"$f":"IFERROR(MID($Y16,FIND(CHAR(160),SUBSTITUTE($Y16,\"{\",CHAR(160),HL$1)),FIND(CHAR(160),SUBSTITUTE($Y16,\"}\",CHAR(160),HL$1))-FIND(CHAR(160),SUBSTITUTE($Y16,\"{\",CHAR(160),HL$1))+1),\"\")","v":""},{"$f":"IFERROR(MID($Y16,FIND(CHAR(160),SUBSTITUTE($Y16,\"{\",CHAR(160),HM$1)),FIND(CHAR(160),SUBSTITUTE($Y16,\"}\",CHAR(160),HM$1))-FIND(CHAR(160),SUBSTITUTE($Y16,\"{\",CHAR(160),HM$1))+1),\"\")","v":""},{"$f":"IFERROR(MID($Y16,FIND(CHAR(160),SUBSTITUTE($Y16,\"{\",CHAR(160),HN$1)),FIND(CHAR(160),SUBSTITUTE($Y16,\"}\",CHAR(160),HN$1))-FIND(CHAR(160),SUBSTITUTE($Y16,\"{\",CHAR(160),HN$1))+1),\"\")","v":""},{"$f":"IFERROR(MID($Y16,FIND(CHAR(160),SUBSTITUTE($Y16,\"{\",CHAR(160),HO$1)),FIND(CHAR(160),SUBSTITUTE($Y16,\"}\",CHAR(160),HO$1))-FIND(CHAR(160),SUBSTITUTE($Y16,\"{\",CHAR(160),HO$1))+1),\"\")","v":""},{"$f":"IFERROR(MID($Y16,FIND(CHAR(160),SUBSTITUTE($Y16,\"{\",CHAR(160),HP$1)),FIND(CHAR(160),SUBSTITUTE($Y16,\"}\",CHAR(160),HP$1))-FIND(CHAR(160),SUBSTITUTE($Y16,\"{\",CHAR(160),HP$1))+1),\"\")","v":""},{"$f":"IFERROR(MID($Y16,FIND(CHAR(160),SUBSTITUTE($Y16,\"{\",CHAR(160),HQ$1)),FIND(CHAR(160),SUBSTITUTE($Y16,\"}\",CHAR(160),HQ$1))-FIND(CHAR(160),SUBSTITUTE($Y16,\"{\",CHAR(160),HQ$1))+1),\"\")","v":""},{"$f":"IFERROR(MID($Y16,FIND(CHAR(160),SUBSTITUTE($Y16,\"{\",CHAR(160),HR$1)),FIND(CHAR(160),SUBSTITUTE($Y16,\"}\",CHAR(160),HR$1))-FIND(CHAR(160),SUBSTITUTE($Y16,\"{\",CHAR(160),HR$1))+1),\"\")","v":""},{"$f":"IFERROR(MID($Y16,FIND(CHAR(160),SUBSTITUTE($Y16,\"{\",CHAR(160),HS$1)),FIND(CHAR(160),SUBSTITUTE($Y16,\"}\",CHAR(160),HS$1))-FIND(CHAR(160),SUBSTITUTE($Y16,\"{\",CHAR(160),HS$1))+1),\"\")","v":"{Primary heating type}"},{"$f":"IFERROR(MID($Y16,FIND(CHAR(160),SUBSTITUTE($Y16,\"{\",CHAR(160),HT$1)),FIND(CHAR(160),SUBSTITUTE($Y16,\"}\",CHAR(160),HT$1))-FIND(CHAR(160),SUBSTITUTE($Y16,\"{\",CHAR(160),HT$1))+1),\"\")","v":"{Primary heating type}"},{"$f":"IFERROR(MID($Z16,FIND(CHAR(160),SUBSTITUTE($Z16,\"{\",CHAR(160),HU$1)),FIND(CHAR(160),SUBSTITUTE($Z16,\"}\",CHAR(160),HU$1))-FIND(CHAR(160),SUBSTITUTE($Z16,\"{\",CHAR(160),HU$1))+1),\"\")","v":""},{"$f":"IFERROR(MID($Z16,FIND(CHAR(160),SUBSTITUTE($Z16,\"{\",CHAR(160),HV$1)),FIND(CHAR(160),SUBSTITUTE($Z16,\"}\",CHAR(160),HV$1))-FIND(CHAR(160),SUBSTITUTE($Z16,\"{\",CHAR(160),HV$1))+1),\"\")","v":""},{"$f":"IFERROR(MID($Z16,FIND(CHAR(160),SUBSTITUTE($Z16,\"{\",CHAR(160),HW$1)),FIND(CHAR(160),SUBSTITUTE($Z16,\"}\",CHAR(160),HW$1))-FIND(CHAR(160),SUBSTITUTE($Z16,\"{\",CHAR(160),HW$1))+1),\"\")","v":""},{"$f":"IFERROR(MID($Z16,FIND(CHAR(160),SUBSTITUTE($Z16,\"{\",CHAR(160),HX$1)),FIND(CHAR(160),SUBSTITUTE($Z16,\"}\",CHAR(160),HX$1))-FIND(CHAR(160),SUBSTITUTE($Z16,\"{\",CHAR(160),HX$1))+1),\"\")","v":""},{"$f":"IFERROR(MID($Z16,FIND(CHAR(160),SUBSTITUTE($Z16,\"{\",CHAR(160),HY$1)),FIND(CHAR(160),SUBSTITUTE($Z16,\"}\",CHAR(160),HY$1))-FIND(CHAR(160),SUBSTITUTE($Z16,\"{\",CHAR(160),HY$1))+1),\"\")","v":""},{"$f":"IFERROR(MID($Z16,FIND(CHAR(160),SUBSTITUTE($Z16,\"{\",CHAR(160),HZ$1)),FIND(CHAR(160),SUBSTITUTE($Z16,\"}\",CHAR(160),HZ$1))-FIND(CHAR(160),SUBSTITUTE($Z16,\"{\",CHAR(160),HZ$1))+1),\"\")","v":""},{"$f":"IFERROR(MID($Z16,FIND(CHAR(160),SUBSTITUTE($Z16,\"{\",CHAR(160),IA$1)),FIND(CHAR(160),SUBSTITUTE($Z16,\"}\",CHAR(160),IA$1))-FIND(CHAR(160),SUBSTITUTE($Z16,\"{\",CHAR(160),IA$1))+1),\"\")","v":""},{"$f":"IFERROR(MID($Z16,FIND(CHAR(160),SUBSTITUTE($Z16,\"{\",CHAR(160),IB$1)),FIND(CHAR(160),SUBSTITUTE($Z16,\"}\",CHAR(160),IB$1))-FIND(CHAR(160),SUBSTITUTE($Z16,\"{\",CHAR(160),IB$1))+1),\"\")","v":""},{"$f":"IFERROR(MID($Z16,FIND(CHAR(160),SUBSTITUTE($Z16,\"{\",CHAR(160),IC$1)),FIND(CHAR(160),SUBSTITUTE($Z16,\"}\",CHAR(160),IC$1))-FIND(CHAR(160),SUBSTITUTE($Z16,\"{\",CHAR(160),IC$1))+1),\"\")","v":"{Primary heating type}"},{"$f":"IFERROR(MID($Z16,FIND(CHAR(160),SUBSTITUTE($Z16,\"{\",CHAR(160),ID$1)),FIND(CHAR(160),SUBSTITUTE($Z16,\"}\",CHAR(160),ID$1))-FIND(CHAR(160),SUBSTITUTE($Z16,\"{\",CHAR(160),ID$1))+1),\"\")","v":"{Primary heating type}"},{"$f":"IFERROR(MID($AA16,FIND(CHAR(160),SUBSTITUTE($AA16,\"{\",CHAR(160),IE$1)),FIND(CHAR(160),SUBSTITUTE($AA16,\"}\",CHAR(160),IE$1))-FIND(CHAR(160),SUBSTITUTE($AA16,\"{\",CHAR(160),IE$1))+1),\"\")","v":""},{"$f":"IFERROR(MID($AA16,FIND(CHAR(160),SUBSTITUTE($AA16,\"{\",CHAR(160),IF$1)),FIND(CHAR(160),SUBSTITUTE($AA16,\"}\",CHAR(160),IF$1))-FIND(CHAR(160),SUBSTITUTE($AA16,\"{\",CHAR(160),IF$1))+1),\"\")","v":""},{"$f":"IFERROR(MID($AA16,FIND(CHAR(160),SUBSTITUTE($AA16,\"{\",CHAR(160),IG$1)),FIND(CHAR(160),SUBSTITUTE($AA16,\"}\",CHAR(160),IG$1))-FIND(CHAR(160),SUBSTITUTE($AA16,\"{\",CHAR(160),IG$1))+1),\"\")","v":""},{"$f":"IFERROR(MID($AA16,FIND(CHAR(160),SUBSTITUTE($AA16,\"{\",CHAR(160),IH$1)),FIND(CHAR(160),SUBSTITUTE($AA16,\"}\",CHAR(160),IH$1))-FIND(CHAR(160),SUBSTITUTE($AA16,\"{\",CHAR(160),IH$1))+1),\"\")","v":""},{"$f":"IFERROR(MID($AA16,FIND(CHAR(160),SUBSTITUTE($AA16,\"{\",CHAR(160),II$1)),FIND(CHAR(160),SUBSTITUTE($AA16,\"}\",CHAR(160),II$1))-FIND(CHAR(160),SUBSTITUTE($AA16,\"{\",CHAR(160),II$1))+1),\"\")","v":""},{"$f":"IFERROR(MID($AA16,FIND(CHAR(160),SUBSTITUTE($AA16,\"{\",CHAR(160),IJ$1)),FIND(CHAR(160),SUBSTITUTE($AA16,\"}\",CHAR(160),IJ$1))-FIND(CHAR(160),SUBSTITUTE($AA16,\"{\",CHAR(160),IJ$1))+1),\"\")","v":""},{"$f":"IFERROR(MID($AA16,FIND(CHAR(160),SUBSTITUTE($AA16,\"{\",CHAR(160),IK$1)),FIND(CHAR(160),SUBSTITUTE($AA16,\"}\",CHAR(160),IK$1))-FIND(CHAR(160),SUBSTITUTE($AA16,\"{\",CHAR(160),IK$1))+1),\"\")","v":""},{"$f":"IFERROR(MID($AA16,FIND(CHAR(160),SUBSTITUTE($AA16,\"{\",CHAR(160),IL$1)),FIND(CHAR(160),SUBSTITUTE($AA16,\"}\",CHAR(160),IL$1))-FIND(CHAR(160),SUBSTITUTE($AA16,\"{\",CHAR(160),IL$1))+1),\"\")","v":""},{"$f":"IFERROR(MID($AA16,FIND(CHAR(160),SUBSTITUTE($AA16,\"{\",CHAR(160),IM$1)),FIND(CHAR(160),SUBSTITUTE($AA16,\"}\",CHAR(160),IM$1))-FIND(CHAR(160),SUBSTITUTE($AA16,\"{\",CHAR(160),IM$1))+1),\"\")","v":"{Primary heating type}"},{"$f":"IFERROR(MID($AA16,FIND(CHAR(160),SUBSTITUTE($AA16,\"{\",CHAR(160),IN$1)),FIND(CHAR(160),SUBSTITUTE($AA16,\"}\",CHAR(160),IN$1))-FIND(CHAR(160),SUBSTITUTE($AA16,\"{\",CHAR(160),IN$1))+1),\"\")","v":"{Primary heating type}"},{"$f":"IFERROR(MID($AB16,FIND(CHAR(160),SUBSTITUTE($AB16,\"{\",CHAR(160),IO$1)),FIND(CHAR(160),SUBSTITUTE($AB16,\"}\",CHAR(160),IO$1))-FIND(CHAR(160),SUBSTITUTE($AB16,\"{\",CHAR(160),IO$1))+1),\"\")","v":""},{"$f":"IFERROR(MID($AB16,FIND(CHAR(160),SUBSTITUTE($AB16,\"{\",CHAR(160),IP$1)),FIND(CHAR(160),SUBSTITUTE($AB16,\"}\",CHAR(160),IP$1))-FIND(CHAR(160),SUBSTITUTE($AB16,\"{\",CHAR(160),IP$1))+1),\"\")","v":""},{"$f":"IFERROR(MID($AB16,FIND(CHAR(160),SUBSTITUTE($AB16,\"{\",CHAR(160),IQ$1)),FIND(CHAR(160),SUBSTITUTE($AB16,\"}\",CHAR(160),IQ$1))-FIND(CHAR(160),SUBSTITUTE($AB16,\"{\",CHAR(160),IQ$1))+1),\"\")","v":""},{"$f":"IFERROR(MID($AB16,FIND(CHAR(160),SUBSTITUTE($AB16,\"{\",CHAR(160),IR$1)),FIND(CHAR(160),SUBSTITUTE($AB16,\"}\",CHAR(160),IR$1))-FIND(CHAR(160),SUBSTITUTE($AB16,\"{\",CHAR(160),IR$1))+1),\"\")","v":""},{"$f":"IFERROR(MID($AB16,FIND(CHAR(160),SUBSTITUTE($AB16,\"{\",CHAR(160),IS$1)),FIND(CHAR(160),SUBSTITUTE($AB16,\"}\",CHAR(160),IS$1))-FIND(CHAR(160),SUBSTITUTE($AB16,\"{\",CHAR(160),IS$1))+1),\"\")","v":""},{"$f":"IFERROR(MID($AB16,FIND(CHAR(160),SUBSTITUTE($AB16,\"{\",CHAR(160),IT$1)),FIND(CHAR(160),SUBSTITUTE($AB16,\"}\",CHAR(160),IT$1))-FIND(CHAR(160),SUBSTITUTE($AB16,\"{\",CHAR(160),IT$1))+1),\"\")","v":""},{"$f":"IFERROR(MID($AB16,FIND(CHAR(160),SUBSTITUTE($AB16,\"{\",CHAR(160),IU$1)),FIND(CHAR(160),SUBSTITUTE($AB16,\"}\",CHAR(160),IU$1))-FIND(CHAR(160),SUBSTITUTE($AB16,\"{\",CHAR(160),IU$1))+1),\"\")","v":""},{"$f":"IFERROR(MID($AB16,FIND(CHAR(160),SUBSTITUTE($AB16,\"{\",CHAR(160),IV$1)),FIND(CHAR(160),SUBSTITUTE($AB16,\"}\",CHAR(160),IV$1))-FIND(CHAR(160),SUBSTITUTE($AB16,\"{\",CHAR(160),IV$1))+1),\"\")","v":""},{"$f":"IFERROR(MID($AB16,FIND(CHAR(160),SUBSTITUTE($AB16,\"{\",CHAR(160),IW$1)),FIND(CHAR(160),SUBSTITUTE($AB16,\"}\",CHAR(160),IW$1))-FIND(CHAR(160),SUBSTITUTE($AB16,\"{\",CHAR(160),IW$1))+1),\"\")","v":""},{"$f":"IFERROR(MID($AB16,FIND(CHAR(160),SUBSTITUTE($AB16,\"{\",CHAR(160),IX$1)),FIND(CHAR(160),SUBSTITUTE($AB16,\"}\",CHAR(160),IX$1))-FIND(CHAR(160),SUBSTITUTE($AB16,\"{\",CHAR(160),IX$1))+1),\"\")","v":""},null,{"$f":"10-COUNTIF(DU16:ED16,\"\")","v":3}]
["Appliance Rebate","Room Air Purifier","RAP","2021-07-01","2022-06-30","Per Measure",24.82,0,"Calculated","{Measure:Quantity}*if({Retail Price}<{Rebate Amount},{Retail Price},{Rebate Amount})",50,"2021-07-01","2022-06-30","Calculated","{Measure:Quantity} * 63",null,null,"{Measure:Quantity} * .011",null,null,"{Measure:Quantity} * .011 * {Factor:WinterCF}","{Measure:Quantity} * .011 * {Factor:SummerCF}",null,null,null,null,null,null,"2020-07-01","2022-06-30",9,0.66700000000000004,0.66700000000000004,0.30399999999999999,0.36199999999999999,0.156,0.17899999999999999,1,1,1,0.65500000000000003,3.3000000000000002E-2,null,{"$f":"DU17","v":"{Measure:Quantity}"},1,{"$f":"DV17","v":"{Retail Price}"},60,{"$f":"DW17","v":"{Rebate Amount}"},50,{"$f":"DX17","v":""},null,{"$f":"DY17","v":""},null,{"$f":"DZ17","v":""},null,{"$f":"EA17","v":""},null,{"$f":"EB17","v":""},null,{"$f":"EC17","v":""},null,{"$f":"ED17","v":""},null,{"$f":"AS17 * 63","v":63},0,0,{"$f":"AS17 * 0.011","v":1.0999999999999999E-2},0,0,{"$f":"AS17 * 0.011 * AF17","v":7.3369999999999998E-3},{"$f":"AS17 * 0.011 * AG17","v":7.3369999999999998E-3},0,0,0,0,0,0,null,"Res","Default DR",{"$f":"Benefits(BL17,BR17,BS17,BT17,BU17,BV17,BW17,BX17,BY17,BZ17,AE17,AH17,AI17,AJ17,AK17,AL17,AM17,AN17,AO17,AP17,CA17,CB17)","v":57.298660978582966},26.759925497016273,0,0,0,0,0,0,0,{"$f":"SUMPRODUCT(CC17:CK17,--(CC17:CK17>0))","v":84.058586475599242},{"$f":"-SUMPRODUCT(CC17:CK17,--(CC17:CK17<0))","v":0},null,{"$f":"24.82","v":24.82},null,null,{"$f":"CM17+CO17","v":24.82},{"$f":"IF(NetOrGross=\"Net\",(1-AO17+AP17),1)","v":1},{"$f":"(SUMPRODUCT(CC17:CJ17,--(CC17:CJ17>0))+CN17)*CS17/((-SUMPRODUCT(CC17:CJ17,--(CC17:CJ17<0))+MAX(CO17,CV17)+CP17+CQ17)*CS17+IF(FRIncentives=\"Yes\",CV17*(1-CS17),0))","v":1.6811717295119848},1,{"$f":"AS17*IF(AU17<AW17,AU17,AW17)","v":50},null,"Electric","y",{"$f":"CL17-CR17","v":59.238586475599242},{"$f":"IF(F17=\"Manual Entry\",\"Manual\",IF(G17=\"\",0,\"X=\"&SUBSTITUTE(SUBSTITUTE(SUBSTITUTE(SUBSTITUTE(SUBSTITUTE(SUBSTITUTE(SUBSTITUTE(SUBSTITUTE(SUBSTITUTE(SUBSTITUTE(SUBSTITUTE(SUBSTITUTE(G17,$ED17,$ED$2&ROW($ED17)),$EC17,$EC$2&ROW($EC17)),$EB17,$EB$2&ROW($EB17)),$EA17,$EA$2&ROW($EA17)),$DZ17,$DZ$2&ROW($DZ17)),$DY17,$DY$2&ROW($DY17)),$DX17,$DX$2&ROW($DX17)),$DW17,$DW$2&ROW($DW17)),$DV17,$DV$2&ROW($DV17)),$DU17,$DU$2&ROW($DU17)),$DT17,$DT$2&ROW($DT17)),$DS17,$DS$2&ROW($DS17))))","v":"X=24.82"},{"$f":"IF(I17=\"Manual Entry\",\"Manual\",IF(J17=\"\",0,\"X=\"&SUBSTITUTE(SUBSTITUTE(SUBSTITUTE(SUBSTITUTE(SUBSTITUTE(SUBSTITUTE(SUBSTITUTE(SUBSTITUTE(SUBSTITUTE(SUBSTITUTE(SUBSTITUTE(SUBSTITUTE(J17,$ED17,$ED$2&ROW($ED17)),$EC17,$EC$2&ROW($EC17)),$EB17,$EB$2&ROW($EB17)),$EA17,$EA$2&ROW($EA17)),$DZ17,$DZ$2&ROW($DZ17)),$DY17,$DY$2&ROW($DY17)),$DX17,$DX$2&ROW($DX17)),$DW17,$DW$2&ROW($DW17)),$DV17,$DV$2&ROW($DV17)),$DU17,$DU$2&ROW($DU17)),$DT17,$DT$2&ROW($DT17)),$DS17,$DS$2&ROW($DS17))))","v":"X=AS17*if(AU17<AW17,AU17,AW17)"},{"$f":"IF(O17=\"\",0,\"X=\"&SUBSTITUTE(SUBSTITUTE(SUBSTITUTE(SUBSTITUTE(SUBSTITUTE(SUBSTITUTE(SUBSTITUTE(SUBSTITUTE(SUBSTITUTE(SUBSTITUTE(SUBSTITUTE(SUBSTITUTE(O17,$ED17,$ED$2&ROW($ED17)),$EC17,$EC$2&ROW($EC17)),$EB17,$EB$2&ROW($EB17)),$EA17,$EA$2&ROW($EA17)),$DZ17,$DZ$2&ROW($DZ17)),$DY17,$DY$2&ROW($DY17)),$DX17,$DX$2&ROW($DX17)),$DW17,$DW$2&ROW($DW17)),$DV17,$DV$2&ROW($DV17)),$DU17,$DU$2&ROW($DU17)),$DT17,$DT$2&ROW($DT17)),$DS17,$DS$2&ROW($DS17)))","v":"X=AS17 * 63"},{"$f":"IF(P17=\"\",0,\"X=\"&SUBSTITUTE(SUBSTITUTE(SUBSTITUTE(SUBSTITUTE(SUBSTITUTE(SUBSTITUTE(SUBSTITUTE(SUBSTITUTE(SUBSTITUTE(SUBSTITUTE(SUBSTITUTE(SUBSTITUTE(P17,$ED17,$ED$2&ROW($ED17)),$EC17,$EC$2&ROW($EC17)),$EB17,$EB$2&ROW($EB17)),$EA17,$EA$2&ROW($EA17)),$DZ17,$DZ$2&ROW($DZ17)),$DY17,$DY$2&ROW($DY17)),$DX17,$DX$2&ROW($DX17)),$DW17,$DW$2&ROW($DW17)),$DV17,$DV$2&ROW($DV17)),$DU17,$DU$2&ROW($DU17)),$DT17,$DT$2&ROW($DT17)),$DS17,$DS$2&ROW($DS17)))","v":0},{"$f":"IF(Q17=\"\",0,\"X=\"&SUBSTITUTE(SUBSTITUTE(SUBSTITUTE(SUBSTITUTE(SUBSTITUTE(SUBSTITUTE(SUBSTITUTE(SUBSTITUTE(SUBSTITUTE(SUBSTITUTE(SUBSTITUTE(SUBSTITUTE(Q17,$ED17,$ED$2&ROW($ED17)),$EC17,$EC$2&ROW($EC17)),$EB17,$EB$2&ROW($EB17)),$EA17,$EA$2&ROW($EA17)),$DZ17,$DZ$2&ROW($DZ17)),$DY17,$DY$2&ROW($DY17)),$DX17,$DX$2&ROW($DX17)),$DW17,$DW$2&ROW($DW17)),$DV17,$DV$2&ROW($DV17)),$DU17,$DU$2&ROW($DU17)),$DT17,$DT$2&ROW($DT17)),$DS17,$DS$2&ROW($DS17)))","v":0},{"$f":"IF(R17=\"\",0,\"X=\"&SUBSTITUTE(SUBSTITUTE(SUBSTITUTE(SUBSTITUTE(SUBSTITUTE(SUBSTITUTE(SUBSTITUTE(SUBSTITUTE(SUBSTITUTE(SUBSTITUTE(SUBSTITUTE(SUBSTITUTE(R17,$ED17,$ED$2&ROW($ED17)),$EC17,$EC$2&ROW($EC17)),$EB17,$EB$2&ROW($EB17)),$EA17,$EA$2&ROW($EA17)),$DZ17,$DZ$2&ROW($DZ17)),$DY17,$DY$2&ROW($DY17)),$DX17,$DX$2&ROW($DX17)),$DW17,$DW$2&ROW($DW17)),$DV17,$DV$2&ROW($DV17)),$DU17,$DU$2&ROW($DU17)),$DT17,$DT$2&ROW($DT17)),$DS17,$DS$2&ROW($DS17)))","v":"X=AS17 * .011"},{"$f":"IF(S17=\"\",0,\"X=\"&SUBSTITUTE(SUBSTITUTE(SUBSTITUTE(SUBSTITUTE(SUBSTITUTE(SUBSTITUTE(SUBSTITUTE(SUBSTITUTE(SUBSTITUTE(SUBSTITUTE(SUBSTITUTE(SUBSTITUTE(S17,$ED17,$ED$2&ROW($ED17)),$EC17,$EC$2&ROW($EC17)),$EB17,$EB$2&ROW($EB17)),$EA17,$EA$2&ROW($EA17)),$DZ17,$DZ$2&ROW($DZ17)),$DY17,$DY$2&ROW($DY17)),$DX17,$DX$2&ROW($DX17)),$DW17,$DW$2&ROW($DW17)),$DV17,$DV$2&ROW($DV17)),$DU17,$DU$2&ROW($DU17)),$DT17,$DT$2&ROW($DT17)),$DS17,$DS$2&ROW($DS17)))","v":0},{"$f":"IF(T17=\"\",0,\"X=\"&SUBSTITUTE(SUBSTITUTE(SUBSTITUTE(SUBSTITUTE(SUBSTITUTE(SUBSTITUTE(SUBSTITUTE(SUBSTITUTE(SUBSTITUTE(SUBSTITUTE(SUBSTITUTE(SUBSTITUTE(T17,$ED17,$ED$2&ROW($ED17)),$EC17,$EC$2&ROW($EC17)),$EB17,$EB$2&ROW($EB17)),$EA17,$EA$2&ROW($EA17)),$DZ17,$DZ$2&ROW($DZ17)),$DY17,$DY$2&ROW($DY17)),$DX17,$DX$2&ROW($DX17)),$DW17,$DW$2&ROW($DW17)),$DV17,$DV$2&ROW($DV17)),$DU17,$DU$2&ROW($DU17)),$DT17,$DT$2&ROW($DT17)),$DS17,$DS$2&ROW($DS17)))","v":0},{"$f":"IF(U17=\"\",0,\"X=\"&SUBSTITUTE(SUBSTITUTE(SUBSTITUTE(SUBSTITUTE(SUBSTITUTE(SUBSTITUTE(SUBSTITUTE(SUBSTITUTE(SUBSTITUTE(SUBSTITUTE(SUBSTITUTE(SUBSTITUTE(U17,$ED17,$ED$2&ROW($ED17)),$EC17,$EC$2&ROW($EC17)),$EB17,$EB$2&ROW($EB17)),$EA17,$EA$2&ROW($EA17)),$DZ17,$DZ$2&ROW($DZ17)),$DY17,$DY$2&ROW($DY17)),$DX17,$DX$2&ROW($DX17)),$DW17,$DW$2&ROW($DW17)),$DV17,$DV$2&ROW($DV17)),$DU17,$DU$2&ROW($DU17)),$DT17,$DT$2&ROW($DT17)),$DS17,$DS$2&ROW($DS17)))","v":"X=AS17 * .011 * AF17"},{"$f":"IF(V17=\"\",0,\"X=\"&SUBSTITUTE(SUBSTITUTE(SUBSTITUTE(SUBSTITUTE(SUBSTITUTE(SUBSTITUTE(SUBSTITUTE(SUBSTITUTE(SUBSTITUTE(SUBSTITUTE(SUBSTITUTE(SUBSTITUTE(V17,$ED17,$ED$2&ROW($ED17)),$EC17,$EC$2&ROW($EC17)),$EB17,$EB$2&ROW($EB17)),$EA17,$EA$2&ROW($EA17)),$DZ17,$DZ$2&ROW($DZ17)),$DY17,$DY$2&ROW($DY17)),$DX17,$DX$2&ROW($DX17)),$DW17,$DW$2&ROW($DW17)),$DV17,$DV$2&ROW($DV17)),$DU17,$DU$2&ROW($DU17)),$DT17,$DT$2&ROW($DT17)),$DS17,$DS$2&ROW($DS17)))","v":"X=AS17 * .011 * AG17"},{"$f":"IF(W17=\"\",0,\"X=\"&SUBSTITUTE(SUBSTITUTE(SUBSTITUTE(SUBSTITUTE(SUBSTITUTE(SUBSTITUTE(SUBSTITUTE(SUBSTITUTE(SUBSTITUTE(SUBSTITUTE(SUBSTITUTE(SUBSTITUTE(W17,$ED17,$ED$2&ROW($ED17)),$EC17,$EC$2&ROW($EC17)),$EB17,$EB$2&ROW($EB17)),$EA17,$EA$2&ROW($EA17)),$DZ17,$DZ$2&ROW($DZ17)),$DY17,$DY$2&ROW($DY17)),$DX17,$DX$2&ROW($DX17)),$DW17,$DW$2&ROW($DW17)),$DV17,$DV$2&ROW($DV17)),$DU17,$DU$2&ROW($DU17)),$DT17,$DT$2&ROW($DT17)),$DS17,$DS$2&ROW($DS17)))","v":0},{"$f":"IF(X17=\"\",0,\"X=\"&SUBSTITUTE(SUBSTITUTE(SUBSTITUTE(SUBSTITUTE(SUBSTITUTE(SUBSTITUTE(SUBSTITUTE(SUBSTITUTE(SUBSTITUTE(SUBSTITUTE(SUBSTITUTE(SUBSTITUTE(X17,$ED17,$ED$2&ROW($ED17)),$EC17,$EC$2&ROW($EC17)),$EB17,$EB$2&ROW($EB17)),$EA17,$EA$2&ROW($EA17)),$DZ17,$DZ$2&ROW($DZ17)),$DY17,$DY$2&ROW($DY17)),$DX17,$DX$2&ROW($DX17)),$DW17,$DW$2&ROW($DW17)),$DV17,$DV$2&ROW($DV17)),$DU17,$DU$2&ROW($DU17)),$DT17,$DT$2&ROW($DT17)),$DS17,$DS$2&ROW($DS17)))","v":0},{"$f":"IF(Y17=\"\",0,\"X=\"&SUBSTITUTE(SUBSTITUTE(SUBSTITUTE(SUBSTITUTE(SUBSTITUTE(SUBSTITUTE(SUBSTITUTE(SUBSTITUTE(SUBSTITUTE(SUBSTITUTE(SUBSTITUTE(SUBSTITUTE(Y17,$ED17,$ED$2&ROW($ED17)),$EC17,$EC$2&ROW($EC17)),$EB17,$EB$2&ROW($EB17)),$EA17,$EA$2&ROW($EA17)),$DZ17,$DZ$2&ROW($DZ17)),$DY17,$DY$2&ROW($DY17)),$DX17,$DX$2&ROW($DX17)),$DW17,$DW$2&ROW($DW17)),$DV17,$DV$2&ROW($DV17)),$DU17,$DU$2&ROW($DU17)),$DT17,$DT$2&ROW($DT17)),$DS17,$DS$2&ROW($DS17)))","v":0},{"$f":"IF(Z17=\"\",0,\"X=\"&SUBSTITUTE(SUBSTITUTE(SUBSTITUTE(SUBSTITUTE(SUBSTITUTE(SUBSTITUTE(SUBSTITUTE(SUBSTITUTE(SUBSTITUTE(SUBSTITUTE(SUBSTITUTE(SUBSTITUTE(Z17,$ED17,$ED$2&ROW($ED17)),$EC17,$EC$2&ROW($EC17)),$EB17,$EB$2&ROW($EB17)),$EA17,$EA$2&ROW($EA17)),$DZ17,$DZ$2&ROW($DZ17)),$DY17,$DY$2&ROW($DY17)),$DX17,$DX$2&ROW($DX17)),$DW17,$DW$2&ROW($DW17)),$DV17,$DV$2&ROW($DV17)),$DU17,$DU$2&ROW($DU17)),$DT17,$DT$2&ROW($DT17)),$DS17,$DS$2&ROW($DS17)))","v":0},{"$f":"IF(AA17=\"\",0,\"X=\"&SUBSTITUTE(SUBSTITUTE(SUBSTITUTE(SUBSTITUTE(SUBSTITUTE(SUBSTITUTE(SUBSTITUTE(SUBSTITUTE(SUBSTITUTE(SUBSTITUTE(SUBSTITUTE(SUBSTITUTE(AA17,$ED17,$ED$2&ROW($ED17)),$EC17,$EC$2&ROW($EC17)),$EB17,$EB$2&ROW($EB17)),$EA17,$EA$2&ROW($EA17)),$DZ17,$DZ$2&ROW($DZ17)),$DY17,$DY$2&ROW($DY17)),$DX17,$DX$2&ROW($DX17)),$DW17,$DW$2&ROW($DW17)),$DV17,$DV$2&ROW($DV17)),$DU17,$DU$2&ROW($DU17)),$DT17,$DT$2&ROW($DT17)),$DS17,$DS$2&ROW($DS17)))","v":0},{"$f":"IF(AB17=\"\",0,\"X=\"&SUBSTITUTE(SUBSTITUTE(SUBSTITUTE(SUBSTITUTE(SUBSTITUTE(SUBSTITUTE(SUBSTITUTE(SUBSTITUTE(SUBSTITUTE(SUBSTITUTE(SUBSTITUTE(SUBSTITUTE(AB17,$ED17,$ED$2&ROW($ED17)),$EC17,$EC$2&ROW($EC17)),$EB17,$EB$2&ROW($EB17)),$EA17,$EA$2&ROW($EA17)),$DZ17,$DZ$2&ROW($DZ17)),$DY17,$DY$2&ROW($DY17)),$DX17,$DX$2&ROW($DX17)),$DW17,$DW$2&ROW($DW17)),$DV17,$DV$2&ROW($DV17)),$DU17,$DU$2&ROW($DU17)),$DT17,$DT$2&ROW($DT17)),$DS17,$DS$2&ROW($DS17)))","v":0},null,null,"{Factor:WinterCF}","{Factor:SummerCF}",{"$f":"IFERROR(INDEX($EG17:$IV17,MATCH(0,COUNTIF($DR17:DT17,$EG17:$IV17),0)),\"\")","v":"{Measure:Quantity}"},{"$f":"IFERROR(INDEX($EG17:$IV17,MATCH(0,COUNTIF($DR17:DU17,$EG17:$IV17),0)),\"\")","v":"{Retail Price}"},{"$f":"IFERROR(INDEX($EG17:$IV17,MATCH(0,COUNTIF($DR17:DV17,$EG17:$IV17),0)),\"\")","v":"{Rebate Amount}"},{"$f":"IFERROR(INDEX($EG17:$IV17,MATCH(0,COUNTIF($DR17:DW17,$EG17:$IV17),0)),\"\")","v":""},{"$f":"IFERROR(INDEX($EG17:$IV17,MATCH(0,COUNTIF($DR17:DX17,$EG17:$IV17),0)),\"\")","v":""},{"$f":"IFERROR(INDEX($EG17:$IV17,MATCH(0,COUNTIF($DR17:DY17,$EG17:$IV17),0)),\"\")","v":""},{"$f":"IFERROR(INDEX($EG17:$IV17,MATCH(0,COUNTIF($DR17:DZ17,$EG17:$IV17),0)),\"\")","v":""},{"$f":"IFERROR(INDEX($EG17:$IV17,MATCH(0,COUNTIF($DR17:EA17,$EG17:$IV17),0)),\"\")","v":""},{"$f":"IFERROR(INDEX($EG17:$IV17,MATCH(0,COUNTIF($DR17:EB17,$EG17:$IV17),0)),\"\")","v":""},{"$f":"IFERROR(INDEX($EG17:$IV17,MATCH(0,COUNTIF($DR17:EC17,$EG17:$IV17),0)),\"\")","v":""},null,null,{"$f":"IFERROR(MID($G17,FIND(CHAR(160),SUBSTITUTE($G17,\"{\",CHAR(160),EG$1)),FIND(CHAR(160),SUBSTITUTE($G17,\"}\",CHAR(160),EG$1))-FIND(CHAR(160),SUBSTITUTE($G17,\"{\",CHAR(160),EG$1))+1),\"\")","v":""},{"$f":"IFERROR(MID($G17,FIND(CHAR(160),SUBSTITUTE($G17,\"{\",CHAR(160),EH$1)),FIND(CHAR(160),SUBSTITUTE($G17,\"}\",CHAR(160),EH$1))-FIND(CHAR(160),SUBSTITUTE($G17,\"{\",CHAR(160),EH$1))+1),\"\")","v":""},{"$f":"IFERROR(MID($G17,FIND(CHAR(160),SUBSTITUTE($G17,\"{\",CHAR(160),EI$1)),FIND(CHAR(160),SUBSTITUTE($G17,\"}\",CHAR(160),EI$1))-FIND(CHAR(160),SUBSTITUTE($G17,\"{\",CHAR(160),EI$1))+1),\"\")","v":""},{"$f":"IFERROR(MID($G17,FIND(CHAR(160),SUBSTITUTE($G17,\"{\",CHAR(160),EJ$1)),FIND(CHAR(160),SUBSTITUTE($G17,\"}\",CHAR(160),EJ$1))-FIND(CHAR(160),SUBSTITUTE($G17,\"{\",CHAR(160),EJ$1))+1),\"\")","v":""},{"$f":"IFERROR(MID($G17,FIND(CHAR(160),SUBSTITUTE($G17,\"{\",CHAR(160),EK$1)),FIND(CHAR(160),SUBSTITUTE($G17,\"}\",CHAR(160),EK$1))-FIND(CHAR(160),SUBSTITUTE($G17,\"{\",CHAR(160),EK$1))+1),\"\")","v":""},{"$f":"IFERROR(MID($G17,FIND(CHAR(160),SUBSTITUTE($G17,\"{\",CHAR(160),EL$1)),FIND(CHAR(160),SUBSTITUTE($G17,\"}\",CHAR(160),EL$1))-FIND(CHAR(160),SUBSTITUTE($G17,\"{\",CHAR(160),EL$1))+1),\"\")","v":""},{"$f":"IFERROR(MID($G17,FIND(CHAR(160),SUBSTITUTE($G17,\"{\",CHAR(160),EM$1)),FIND(CHAR(160),SUBSTITUTE($G17,\"}\",CHAR(160),EM$1))-FIND(CHAR(160),SUBSTITUTE($G17,\"{\",CHAR(160),EM$1))+1),\"\")","v":""},{"$f":"IFERROR(MID($G17,FIND(CHAR(160),SUBSTITUTE($G17,\"{\",CHAR(160),EN$1)),FIND(CHAR(160),SUBSTITUTE($G17,\"}\",CHAR(160),EN$1))-FIND(CHAR(160),SUBSTITUTE($G17,\"{\",CHAR(160),EN$1))+1),\"\")","v":""},{"$f":"IFERROR(MID($G17,FIND(CHAR(160),SUBSTITUTE($G17,\"{\",CHAR(160),EO$1)),FIND(CHAR(160),SUBSTITUTE($G17,\"}\",CHAR(160),EO$1))-FIND(CHAR(160),SUBSTITUTE($G17,\"{\",CHAR(160),EO$1))+1),\"\")","v":""},{"$f":"IFERROR(MID($G17,FIND(CHAR(160),SUBSTITUTE($G17,\"{\",CHAR(160),EP$1)),FIND(CHAR(160),SUBSTITUTE($G17,\"}\",CHAR(160),EP$1))-FIND(CHAR(160),SUBSTITUTE($G17,\"{\",CHAR(160),EP$1))+1),\"\")","v":""},{"$f":"IFERROR(MID($J17,FIND(CHAR(160),SUBSTITUTE($J17,\"{\",CHAR(160),EQ$1)),FIND(CHAR(160),SUBSTITUTE($J17,\"}\",CHAR(160),EQ$1))-FIND(CHAR(160),SUBSTITUTE($J17,\"{\",CHAR(160),EQ$1))+1),\"\")","v":"{Measure:Quantity}"},{"$f":"IFERROR(MID($J17,FIND(CHAR(160),SUBSTITUTE($J17,\"{\",CHAR(160),ER$1)),FIND(CHAR(160),SUBSTITUTE($J17,\"}\",CHAR(160),ER$1))-FIND(CHAR(160),SUBSTITUTE($J17,\"{\",CHAR(160),ER$1))+1),\"\")","v":"{Retail Price}"},{"$f":"IFERROR(MID($J17,FIND(CHAR(160),SUBSTITUTE($J17,\"{\",CHAR(160),ES$1)),FIND(CHAR(160),SUBSTITUTE($J17,\"}\",CHAR(160),ES$1))-FIND(CHAR(160),SUBSTITUTE($J17,\"{\",CHAR(160),ES$1))+1),\"\")","v":"{Rebate Amount}"},{"$f":"IFERROR(MID($J17,FIND(CHAR(160),SUBSTITUTE($J17,\"{\",CHAR(160),ET$1)),FIND(CHAR(160),SUBSTITUTE($J17,\"}\",CHAR(160),ET$1))-FIND(CHAR(160),SUBSTITUTE($J17,\"{\",CHAR(160),ET$1))+1),\"\")","v":"{Retail Price}"},{"$f":"IFERROR(MID($J17,FIND(CHAR(160),SUBSTITUTE($J17,\"{\",CHAR(160),EU$1)),FIND(CHAR(160),SUBSTITUTE($J17,\"}\",CHAR(160),EU$1))-FIND(CHAR(160),SUBSTITUTE($J17,\"{\",CHAR(160),EU$1))+1),\"\")","v":"{Rebate Amount}"},{"$f":"IFERROR(MID($J17,FIND(CHAR(160),SUBSTITUTE($J17,\"{\",CHAR(160),EV$1)),FIND(CHAR(160),SUBSTITUTE($J17,\"}\",CHAR(160),EV$1))-FIND(CHAR(160),SUBSTITUTE($J17,\"{\",CHAR(160),EV$1))+1),\"\")","v":""},{"$f":"IFERROR(MID($J17,FIND(CHAR(160),SUBSTITUTE($J17,\"{\",CHAR(160),EW$1)),FIND(CHAR(160),SUBSTITUTE($J17,\"}\",CHAR(160),EW$1))-FIND(CHAR(160),SUBSTITUTE($J17,\"{\",CHAR(160),EW$1))+1),\"\")","v":""},{"$f":"IFERROR(MID($J17,FIND(CHAR(160),SUBSTITUTE($J17,\"{\",CHAR(160),EX$1)),FIND(CHAR(160),SUBSTITUTE($J17,\"}\",CHAR(160),EX$1))-FIND(CHAR(160),SUBSTITUTE($J17,\"{\",CHAR(160),EX$1))+1),\"\")","v":""},{"$f":"IFERROR(MID($J17,FIND(CHAR(160),SUBSTITUTE($J17,\"{\",CHAR(160),EY$1)),FIND(CHAR(160),SUBSTITUTE($J17,\"}\",CHAR(160),EY$1))-FIND(CHAR(160),SUBSTITUTE($J17,\"{\",CHAR(160),EY$1))+1),\"\")","v":""},{"$f":"IFERROR(MID($J17,FIND(CHAR(160),SUBSTITUTE($J17,\"{\",CHAR(160),EZ$1)),FIND(CHAR(160),SUBSTITUTE($J17,\"}\",CHAR(160),EZ$1))-FIND(CHAR(160),SUBSTITUTE($J17,\"{\",CHAR(160),EZ$1))+1),\"\")","v":""},{"$f":"IFERROR(MID($J17,FIND(CHAR(160),SUBSTITUTE($J17,\"{\",CHAR(160),FA$1)),FIND(CHAR(160),SUBSTITUTE($J17,\"}\",CHAR(160),FA$1))-FIND(CHAR(160),SUBSTITUTE($J17,\"{\",CHAR(160),FA$1))+1),\"\")","v":"{Measure:Quantity}"},{"$f":"IFERROR(MID($J17,FIND(CHAR(160),SUBSTITUTE($J17,\"{\",CHAR(160),FB$1)),FIND(CHAR(160),SUBSTITUTE($J17,\"}\",CHAR(160),FB$1))-FIND(CHAR(160),SUBSTITUTE($J17,\"{\",CHAR(160),FB$1))+1),\"\")","v":"{Retail Price}"},{"$f":"IFERROR(MID($O17,FIND(CHAR(160),SUBSTITUTE($O17,\"{\",CHAR(160),FC$1)),FIND(CHAR(160),SUBSTITUTE($O17,\"}\",CHAR(160),FC$1))-FIND(CHAR(160),SUBSTITUTE($O17,\"{\",CHAR(160),FC$1))+1),\"\")","v":""},{"$f":"IFERROR(MID($O17,FIND(CHAR(160),SUBSTITUTE($O17,\"{\",CHAR(160),FD$1)),FIND(CHAR(160),SUBSTITUTE($O17,\"}\",CHAR(160),FD$1))-FIND(CHAR(160),SUBSTITUTE($O17,\"{\",CHAR(160),FD$1))+1),\"\")","v":""},{"$f":"IFERROR(MID($O17,FIND(CHAR(160),SUBSTITUTE($O17,\"{\",CHAR(160),FE$1)),FIND(CHAR(160),SUBSTITUTE($O17,\"}\",CHAR(160),FE$1))-FIND(CHAR(160),SUBSTITUTE($O17,\"{\",CHAR(160),FE$1))+1),\"\")","v":""},{"$f":"IFERROR(MID($O17,FIND(CHAR(160),SUBSTITUTE($O17,\"{\",CHAR(160),FF$1)),FIND(CHAR(160),SUBSTITUTE($O17,\"}\",CHAR(160),FF$1))-FIND(CHAR(160),SUBSTITUTE($O17,\"{\",CHAR(160),FF$1))+1),\"\")","v":""},{"$f":"IFERROR(MID($O17,FIND(CHAR(160),SUBSTITUTE($O17,\"{\",CHAR(160),FG$1)),FIND(CHAR(160),SUBSTITUTE($O17,\"}\",CHAR(160),FG$1))-FIND(CHAR(160),SUBSTITUTE($O17,\"{\",CHAR(160),FG$1))+1),\"\")","v":""},{"$f":"IFERROR(MID($O17,FIND(CHAR(160),SUBSTITUTE($O17,\"{\",CHAR(160),FH$1)),FIND(CHAR(160),SUBSTITUTE($O17,\"}\",CHAR(160),FH$1))-FIND(CHAR(160),SUBSTITUTE($O17,\"{\",CHAR(160),FH$1))+1),\"\")","v":""},{"$f":"IFERROR(MID($O17,FIND(CHAR(160),SUBSTITUTE($O17,\"{\",CHAR(160),FI$1)),FIND(CHAR(160),SUBSTITUTE($O17,\"}\",CHAR(160),FI$1))-FIND(CHAR(160),SUBSTITUTE($O17,\"{\",CHAR(160),FI$1))+1),\"\")","v":""},{"$f":"IFERROR(MID($O17,FIND(CHAR(160),SUBSTITUTE($O17,\"{\",CHAR(160),FJ$1)),FIND(CHAR(160),SUBSTITUTE($O17,\"}\",CHAR(160),FJ$1))-FIND(CHAR(160),SUBSTITUTE($O17,\"{\",CHAR(160),FJ$1))+1),\"\")","v":""},{"$f":"IFERROR(MID($O17,FIND(CHAR(160),SUBSTITUTE($O17,\"{\",CHAR(160),FK$1)),FIND(CHAR(160),SUBSTITUTE($O17,\"}\",CHAR(160),FK$1))-FIND(CHAR(160),SUBSTITUTE($O17,\"{\",CHAR(160),FK$1))+1),\"\")","v":"{Measure:Quantity}"},{"$f":"IFERROR(MID($O17,FIND(CHAR(160),SUBSTITUTE($O17,\"{\",CHAR(160),FL$1)),FIND(CHAR(160),SUBSTITUTE($O17,\"}\",CHAR(160),FL$1))-FIND(CHAR(160),SUBSTITUTE($O17,\"{\",CHAR(160),FL$1))+1),\"\")","v":""},{"$f":"IFERROR(MID($R17,FIND(CHAR(160),SUBSTITUTE($R17,\"{\",CHAR(160),FM$1)),FIND(CHAR(160),SUBSTITUTE($R17,\"}\",CHAR(160),FM$1))-FIND(CHAR(160),SUBSTITUTE($R17,\"{\",CHAR(160),FM$1))+1),\"\")","v":""},{"$f":"IFERROR(MID($R17,FIND(CHAR(160),SUBSTITUTE($R17,\"{\",CHAR(160),FN$1)),FIND(CHAR(160),SUBSTITUTE($R17,\"}\",CHAR(160),FN$1))-FIND(CHAR(160),SUBSTITUTE($R17,\"{\",CHAR(160),FN$1))+1),\"\")","v":""},{"$f":"IFERROR(MID($R17,FIND(CHAR(160),SUBSTITUTE($R17,\"{\",CHAR(160),FO$1)),FIND(CHAR(160),SUBSTITUTE($R17,\"}\",CHAR(160),FO$1))-FIND(CHAR(160),SUBSTITUTE($R17,\"{\",CHAR(160),FO$1))+1),\"\")","v":""},{"$f":"IFERROR(MID($R17,FIND(CHAR(160),SUBSTITUTE($R17,\"{\",CHAR(160),FP$1)),FIND(CHAR(160),SUBSTITUTE($R17,\"}\",CHAR(160),FP$1))-FIND(CHAR(160),SUBSTITUTE($R17,\"{\",CHAR(160),FP$1))+1),\"\")","v":""},{"$f":"IFERROR(MID($R17,FIND(CHAR(160),SUBSTITUTE($R17,\"{\",CHAR(160),FQ$1)),FIND(CHAR(160),SUBSTITUTE($R17,\"}\",CHAR(160),FQ$1))-FIND(CHAR(160),SUBSTITUTE($R17,\"{\",CHAR(160),FQ$1))+1),\"\")","v":""},{"$f":"IFERROR(MID($R17,FIND(CHAR(160),SUBSTITUTE($R17,\"{\",CHAR(160),FR$1)),FIND(CHAR(160),SUBSTITUTE($R17,\"}\",CHAR(160),FR$1))-FIND(CHAR(160),SUBSTITUTE($R17,\"{\",CHAR(160),FR$1))+1),\"\")","v":""},{"$f":"IFERROR(MID($R17,FIND(CHAR(160),SUBSTITUTE($R17,\"{\",CHAR(160),FS$1)),FIND(CHAR(160),SUBSTITUTE($R17,\"}\",CHAR(160),FS$1))-FIND(CHAR(160),SUBSTITUTE($R17,\"{\",CHAR(160),FS$1))+1),\"\")","v":""},{"$f":"IFERROR(MID($R17,FIND(CHAR(160),SUBSTITUTE($R17,\"{\",CHAR(160),FT$1)),FIND(CHAR(160),SUBSTITUTE($R17,\"}\",CHAR(160),FT$1))-FIND(CHAR(160),SUBSTITUTE($R17,\"{\",CHAR(160),FT$1))+1),\"\")","v":""},{"$f":"IFERROR(MID($R17,FIND(CHAR(160),SUBSTITUTE($R17,\"{\",CHAR(160),FU$1)),FIND(CHAR(160),SUBSTITUTE($R17,\"}\",CHAR(160),FU$1))-FIND(CHAR(160),SUBSTITUTE($R17,\"{\",CHAR(160),FU$1))+1),\"\")","v":"{Measure:Quantity}"},{"$f":"IFERROR(MID($R17,FIND(CHAR(160),SUBSTITUTE($R17,\"{\",CHAR(160),FV$1)),FIND(CHAR(160),SUBSTITUTE($R17,\"}\",CHAR(160),FV$1))-FIND(CHAR(160),SUBSTITUTE($R17,\"{\",CHAR(160),FV$1))+1),\"\")","v":""},{"$f":"IFERROR(MID($U17,FIND(CHAR(160),SUBSTITUTE($U17,\"{\",CHAR(160),FW$1)),FIND(CHAR(160),SUBSTITUTE($U17,\"}\",CHAR(160),FW$1))-FIND(CHAR(160),SUBSTITUTE($U17,\"{\",CHAR(160),FW$1))+1),\"\")","v":""},{"$f":"IFERROR(MID($U17,FIND(CHAR(160),SUBSTITUTE($U17,\"{\",CHAR(160),FX$1)),FIND(CHAR(160),SUBSTITUTE($U17,\"}\",CHAR(160),FX$1))-FIND(CHAR(160),SUBSTITUTE($U17,\"{\",CHAR(160),FX$1))+1),\"\")","v":""},{"$f":"IFERROR(MID($U17,FIND(CHAR(160),SUBSTITUTE($U17,\"{\",CHAR(160),FY$1)),FIND(CHAR(160),SUBSTITUTE($U17,\"}\",CHAR(160),FY$1))-FIND(CHAR(160),SUBSTITUTE($U17,\"{\",CHAR(160),FY$1))+1),\"\")","v":""},{"$f":"IFERROR(MID($U17,FIND(CHAR(160),SUBSTITUTE($U17,\"{\",CHAR(160),FZ$1)),FIND(CHAR(160),SUBSTITUTE($U17,\"}\",CHAR(160),FZ$1))-FIND(CHAR(160),SUBSTITUTE($U17,\"{\",CHAR(160),FZ$1))+1),\"\")","v":""},{"$f":"IFERROR(MID($U17,FIND(CHAR(160),SUBSTITUTE($U17,\"{\",CHAR(160),GA$1)),FIND(CHAR(160),SUBSTITUTE($U17,\"}\",CHAR(160),GA$1))-FIND(CHAR(160),SUBSTITUTE($U17,\"{\",CHAR(160),GA$1))+1),\"\")","v":""},{"$f":"IFERROR(MID($U17,FIND(CHAR(160),SUBSTITUTE($U17,\"{\",CHAR(160),GB$1)),FIND(CHAR(160),SUBSTITUTE($U17,\"}\",CHAR(160),GB$1))-FIND(CHAR(160),SUBSTITUTE($U17,\"{\",CHAR(160),GB$1))+1),\"\")","v":""},{"$f":"IFERROR(MID($U17,FIND(CHAR(160),SUBSTITUTE($U17,\"{\",CHAR(160),GC$1)),FIND(CHAR(160),SUBSTITUTE($U17,\"}\",CHAR(160),GC$1))-FIND(CHAR(160),SUBSTITUTE($U17,\"{\",CHAR(160),GC$1))+1),\"\")","v":""},{"$f":"IFERROR(MID($U17,FIND(CHAR(160),SUBSTITUTE($U17,\"{\",CHAR(160),GD$1)),FIND(CHAR(160),SUBSTITUTE($U17,\"}\",CHAR(160),GD$1))-FIND(CHAR(160),SUBSTITUTE($U17,\"{\",CHAR(160),GD$1))+1),\"\")","v":""},{"$f":"IFERROR(MID($U17,FIND(CHAR(160),SUBSTITUTE($U17,\"{\",CHAR(160),GE$1)),FIND(CHAR(160),SUBSTITUTE($U17,\"}\",CHAR(160),GE$1))-FIND(CHAR(160),SUBSTITUTE($U17,\"{\",CHAR(160),GE$1))+1),\"\")","v":"{Measure:Quantity}"},{"$f":"IFERROR(MID($U17,FIND(CHAR(160),SUBSTITUTE($U17,\"{\",CHAR(160),GF$1)),FIND(CHAR(160),SUBSTITUTE($U17,\"}\",CHAR(160),GF$1))-FIND(CHAR(160),SUBSTITUTE($U17,\"{\",CHAR(160),GF$1))+1),\"\")","v":"{Factor:WinterCF}"},{"$f":"IFERROR(MID($V17,FIND(CHAR(160),SUBSTITUTE($V17,\"{\",CHAR(160),GG$1)),FIND(CHAR(160),SUBSTITUTE($V17,\"}\",CHAR(160),GG$1))-FIND(CHAR(160),SUBSTITUTE($V17,\"{\",CHAR(160),GG$1))+1),\"\")","v":""},{"$f":"IFERROR(MID($V17,FIND(CHAR(160),SUBSTITUTE($V17,\"{\",CHAR(160),GH$1)),FIND(CHAR(160),SUBSTITUTE($V17,\"}\",CHAR(160),GH$1))-FIND(CHAR(160),SUBSTITUTE($V17,\"{\",CHAR(160),GH$1))+1),\"\")","v":""},{"$f":"IFERROR(MID($V17,FIND(CHAR(160),SUBSTITUTE($V17,\"{\",CHAR(160),GI$1)),FIND(CHAR(160),SUBSTITUTE($V17,\"}\",CHAR(160),GI$1))-FIND(CHAR(160),SUBSTITUTE($V17,\"{\",CHAR(160),GI$1))+1),\"\")","v":""},{"$f":"IFERROR(MID($V17,FIND(CHAR(160),SUBSTITUTE($V17,\"{\",CHAR(160),GJ$1)),FIND(CHAR(160),SUBSTITUTE($V17,\"}\",CHAR(160),GJ$1))-FIND(CHAR(160),SUBSTITUTE($V17,\"{\",CHAR(160),GJ$1))+1),\"\")","v":""},{"$f":"IFERROR(MID($V17,FIND(CHAR(160),SUBSTITUTE($V17,\"{\",CHAR(160),GK$1)),FIND(CHAR(160),SUBSTITUTE($V17,\"}\",CHAR(160),GK$1))-FIND(CHAR(160),SUBSTITUTE($V17,\"{\",CHAR(160),GK$1))+1),\"\")","v":""},{"$f":"IFERROR(MID($V17,FIND(CHAR(160),SUBSTITUTE($V17,\"{\",CHAR(160),GL$1)),FIND(CHAR(160),SUBSTITUTE($V17,\"}\",CHAR(160),GL$1))-FIND(CHAR(160),SUBSTITUTE($V17,\"{\",CHAR(160),GL$1))+1),\"\")","v":""},{"$f":"IFERROR(MID($V17,FIND(CHAR(160),SUBSTITUTE($V17,\"{\",CHAR(160),GM$1)),FIND(CHAR(160),SUBSTITUTE($V17,\"}\",CHAR(160),GM$1))-FIND(CHAR(160),SUBSTITUTE($V17,\"{\",CHAR(160),GM$1))+1),\"\")","v":""},{"$f":"IFERROR(MID($V17,FIND(CHAR(160),SUBSTITUTE($V17,\"{\",CHAR(160),GN$1)),FIND(CHAR(160),SUBSTITUTE($V17,\"}\",CHAR(160),GN$1))-FIND(CHAR(160),SUBSTITUTE($V17,\"{\",CHAR(160),GN$1))+1),\"\")","v":""},{"$f":"IFERROR(MID($V17,FIND(CHAR(160),SUBSTITUTE($V17,\"{\",CHAR(160),GO$1)),FIND(CHAR(160),SUBSTITUTE($V17,\"}\",CHAR(160),GO$1))-FIND(CHAR(160),SUBSTITUTE($V17,\"{\",CHAR(160),GO$1))+1),\"\")","v":"{Measure:Quantity}"},{"$f":"IFERROR(MID($V17,FIND(CHAR(160),SUBSTITUTE($V17,\"{\",CHAR(160),GP$1)),FIND(CHAR(160),SUBSTITUTE($V17,\"}\",CHAR(160),GP$1))-FIND(CHAR(160),SUBSTITUTE($V17,\"{\",CHAR(160),GP$1))+1),\"\")","v":"{Factor:SummerCF}"},{"$f":"IFERROR(MID($W17,FIND(CHAR(160),SUBSTITUTE($W17,\"{\",CHAR(160),GQ$1)),FIND(CHAR(160),SUBSTITUTE($W17,\"}\",CHAR(160),GQ$1))-FIND(CHAR(160),SUBSTITUTE($W17,\"{\",CHAR(160),GQ$1))+1),\"\")","v":""},{"$f":"IFERROR(MID($W17,FIND(CHAR(160),SUBSTITUTE($W17,\"{\",CHAR(160),GR$1)),FIND(CHAR(160),SUBSTITUTE($W17,\"}\",CHAR(160),GR$1))-FIND(CHAR(160),SUBSTITUTE($W17,\"{\",CHAR(160),GR$1))+1),\"\")","v":""},{"$f":"IFERROR(MID($W17,FIND(CHAR(160),SUBSTITUTE($W17,\"{\",CHAR(160),GS$1)),FIND(CHAR(160),SUBSTITUTE($W17,\"}\",CHAR(160),GS$1))-FIND(CHAR(160),SUBSTITUTE($W17,\"{\",CHAR(160),GS$1))+1),\"\")","v":""},{"$f":"IFERROR(MID($W17,FIND(CHAR(160),SUBSTITUTE($W17,\"{\",CHAR(160),GT$1)),FIND(CHAR(160),SUBSTITUTE($W17,\"}\",CHAR(160),GT$1))-FIND(CHAR(160),SUBSTITUTE($W17,\"{\",CHAR(160),GT$1))+1),\"\")","v":""},{"$f":"IFERROR(MID($W17,FIND(CHAR(160),SUBSTITUTE($W17,\"{\",CHAR(160),GU$1)),FIND(CHAR(160),SUBSTITUTE($W17,\"}\",CHAR(160),GU$1))-FIND(CHAR(160),SUBSTITUTE($W17,\"{\",CHAR(160),GU$1))+1),\"\")","v":""},{"$f":"IFERROR(MID($W17,FIND(CHAR(160),SUBSTITUTE($W17,\"{\",CHAR(160),GV$1)),FIND(CHAR(160),SUBSTITUTE($W17,\"}\",CHAR(160),GV$1))-FIND(CHAR(160),SUBSTITUTE($W17,\"{\",CHAR(160),GV$1))+1),\"\")","v":""},{"$f":"IFERROR(MID($W17,FIND(CHAR(160),SUBSTITUTE($W17,\"{\",CHAR(160),GW$1)),FIND(CHAR(160),SUBSTITUTE($W17,\"}\",CHAR(160),GW$1))-FIND(CHAR(160),SUBSTITUTE($W17,\"{\",CHAR(160),GW$1))+1),\"\")","v":""},{"$f":"IFERROR(MID($W17,FIND(CHAR(160),SUBSTITUTE($W17,\"{\",CHAR(160),GX$1)),FIND(CHAR(160),SUBSTITUTE($W17,\"}\",CHAR(160),GX$1))-FIND(CHAR(160),SUBSTITUTE($W17,\"{\",CHAR(160),GX$1))+1),\"\")","v":""},{"$f":"IFERROR(MID($W17,FIND(CHAR(160),SUBSTITUTE($W17,\"{\",CHAR(160),GY$1)),FIND(CHAR(160),SUBSTITUTE($W17,\"}\",CHAR(160),GY$1))-FIND(CHAR(160),SUBSTITUTE($W17,\"{\",CHAR(160),GY$1))+1),\"\")","v":""},{"$f":"IFERROR(MID($W17,FIND(CHAR(160),SUBSTITUTE($W17,\"{\",CHAR(160),GZ$1)),FIND(CHAR(160),SUBSTITUTE($W17,\"}\",CHAR(160),GZ$1))-FIND(CHAR(160),SUBSTITUTE($W17,\"{\",CHAR(160),GZ$1))+1),\"\")","v":""},{"$f":"IFERROR(MID($X17,FIND(CHAR(160),SUBSTITUTE($X17,\"{\",CHAR(160),HA$1)),FIND(CHAR(160),SUBSTITUTE($X17,\"}\",CHAR(160),HA$1))-FIND(CHAR(160),SUBSTITUTE($X17,\"{\",CHAR(160),HA$1))+1),\"\")","v":""},{"$f":"IFERROR(MID($X17,FIND(CHAR(160),SUBSTITUTE($X17,\"{\",CHAR(160),HB$1)),FIND(CHAR(160),SUBSTITUTE($X17,\"}\",CHAR(160),HB$1))-FIND(CHAR(160),SUBSTITUTE($X17,\"{\",CHAR(160),HB$1))+1),\"\")","v":""},{"$f":"IFERROR(MID($X17,FIND(CHAR(160),SUBSTITUTE($X17,\"{\",CHAR(160),HC$1)),FIND(CHAR(160),SUBSTITUTE($X17,\"}\",CHAR(160),HC$1))-FIND(CHAR(160),SUBSTITUTE($X17,\"{\",CHAR(160),HC$1))+1),\"\")","v":""},{"$f":"IFERROR(MID($X17,FIND(CHAR(160),SUBSTITUTE($X17,\"{\",CHAR(160),HD$1)),FIND(CHAR(160),SUBSTITUTE($X17,\"}\",CHAR(160),HD$1))-FIND(CHAR(160),SUBSTITUTE($X17,\"{\",CHAR(160),HD$1))+1),\"\")","v":""},{"$f":"IFERROR(MID($X17,FIND(CHAR(160),SUBSTITUTE($X17,\"{\",CHAR(160),HE$1)),FIND(CHAR(160),SUBSTITUTE($X17,\"}\",CHAR(160),HE$1))-FIND(CHAR(160),SUBSTITUTE($X17,\"{\",CHAR(160),HE$1))+1),\"\")","v":""},{"$f":"IFERROR(MID($X17,FIND(CHAR(160),SUBSTITUTE($X17,\"{\",CHAR(160),HF$1)),FIND(CHAR(160),SUBSTITUTE($X17,\"}\",CHAR(160),HF$1))-FIND(CHAR(160),SUBSTITUTE($X17,\"{\",CHAR(160),HF$1))+1),\"\")","v":""},{"$f":"IFERROR(MID($X17,FIND(CHAR(160),SUBSTITUTE($X17,\"{\",CHAR(160),HG$1)),FIND(CHAR(160),SUBSTITUTE($X17,\"}\",CHAR(160),HG$1))-FIND(CHAR(160),SUBSTITUTE($X17,\"{\",CHAR(160),HG$1))+1),\"\")","v":""},{"$f":"IFERROR(MID($X17,FIND(CHAR(160),SUBSTITUTE($X17,\"{\",CHAR(160),HH$1)),FIND(CHAR(160),SUBSTITUTE($X17,\"}\",CHAR(160),HH$1))-FIND(CHAR(160),SUBSTITUTE($X17,\"{\",CHAR(160),HH$1))+1),\"\")","v":""},{"$f":"IFERROR(MID($X17,FIND(CHAR(160),SUBSTITUTE($X17,\"{\",CHAR(160),HI$1)),FIND(CHAR(160),SUBSTITUTE($X17,\"}\",CHAR(160),HI$1))-FIND(CHAR(160),SUBSTITUTE($X17,\"{\",CHAR(160),HI$1))+1),\"\")","v":""},{"$f":"IFERROR(MID($X17,FIND(CHAR(160),SUBSTITUTE($X17,\"{\",CHAR(160),HJ$1)),FIND(CHAR(160),SUBSTITUTE($X17,\"}\",CHAR(160),HJ$1))-FIND(CHAR(160),SUBSTITUTE($X17,\"{\",CHAR(160),HJ$1))+1),\"\")","v":""},{"$f":"IFERROR(MID($Y17,FIND(CHAR(160),SUBSTITUTE($Y17,\"{\",CHAR(160),HK$1)),FIND(CHAR(160),SUBSTITUTE($Y17,\"}\",CHAR(160),HK$1))-FIND(CHAR(160),SUBSTITUTE($Y17,\"{\",CHAR(160),HK$1))+1),\"\")","v":""},{"$f":"IFERROR(MID($Y17,FIND(CHAR(160),SUBSTITUTE($Y17,\"{\",CHAR(160),HL$1)),FIND(CHAR(160),SUBSTITUTE($Y17,\"}\",CHAR(160),HL$1))-FIND(CHAR(160),SUBSTITUTE($Y17,\"{\",CHAR(160),HL$1))+1),\"\")","v":""},{"$f":"IFERROR(MID($Y17,FIND(CHAR(160),SUBSTITUTE($Y17,\"{\",CHAR(160),HM$1)),FIND(CHAR(160),SUBSTITUTE($Y17,\"}\",CHAR(160),HM$1))-FIND(CHAR(160),SUBSTITUTE($Y17,\"{\",CHAR(160),HM$1))+1),\"\")","v":""},{"$f":"IFERROR(MID($Y17,FIND(CHAR(160),SUBSTITUTE($Y17,\"{\",CHAR(160),HN$1)),FIND(CHAR(160),SUBSTITUTE($Y17,\"}\",CHAR(160),HN$1))-FIND(CHAR(160),SUBSTITUTE($Y17,\"{\",CHAR(160),HN$1))+1),\"\")","v":""},{"$f":"IFERROR(MID($Y17,FIND(CHAR(160),SUBSTITUTE($Y17,\"{\",CHAR(160),HO$1)),FIND(CHAR(160),SUBSTITUTE($Y17,\"}\",CHAR(160),HO$1))-FIND(CHAR(160),SUBSTITUTE($Y17,\"{\",CHAR(160),HO$1))+1),\"\")","v":""},{"$f":"IFERROR(MID($Y17,FIND(CHAR(160),SUBSTITUTE($Y17,\"{\",CHAR(160),HP$1)),FIND(CHAR(160),SUBSTITUTE($Y17,\"}\",CHAR(160),HP$1))-FIND(CHAR(160),SUBSTITUTE($Y17,\"{\",CHAR(160),HP$1))+1),\"\")","v":""},{"$f":"IFERROR(MID($Y17,FIND(CHAR(160),SUBSTITUTE($Y17,\"{\",CHAR(160),HQ$1)),FIND(CHAR(160),SUBSTITUTE($Y17,\"}\",CHAR(160),HQ$1))-FIND(CHAR(160),SUBSTITUTE($Y17,\"{\",CHAR(160),HQ$1))+1),\"\")","v":""},{"$f":"IFERROR(MID($Y17,FIND(CHAR(160),SUBSTITUTE($Y17,\"{\",CHAR(160),HR$1)),FIND(CHAR(160),SUBSTITUTE($Y17,\"}\",CHAR(160),HR$1))-FIND(CHAR(160),SUBSTITUTE($Y17,\"{\",CHAR(160),HR$1))+1),\"\")","v":""},{"$f":"IFERROR(MID($Y17,FIND(CHAR(160),SUBSTITUTE($Y17,\"{\",CHAR(160),HS$1)),FIND(CHAR(160),SUBSTITUTE($Y17,\"}\",CHAR(160),HS$1))-FIND(CHAR(160),SUBSTITUTE($Y17,\"{\",CHAR(160),HS$1))+1),\"\")","v":""},{"$f":"IFERROR(MID($Y17,FIND(CHAR(160),SUBSTITUTE($Y17,\"{\",CHAR(160),HT$1)),FIND(CHAR(160),SUBSTITUTE($Y17,\"}\",CHAR(160),HT$1))-FIND(CHAR(160),SUBSTITUTE($Y17,\"{\",CHAR(160),HT$1))+1),\"\")","v":""},{"$f":"IFERROR(MID($Z17,FIND(CHAR(160),SUBSTITUTE($Z17,\"{\",CHAR(160),HU$1)),FIND(CHAR(160),SUBSTITUTE($Z17,\"}\",CHAR(160),HU$1))-FIND(CHAR(160),SUBSTITUTE($Z17,\"{\",CHAR(160),HU$1))+1),\"\")","v":""},{"$f":"IFERROR(MID($Z17,FIND(CHAR(160),SUBSTITUTE($Z17,\"{\",CHAR(160),HV$1)),FIND(CHAR(160),SUBSTITUTE($Z17,\"}\",CHAR(160),HV$1))-FIND(CHAR(160),SUBSTITUTE($Z17,\"{\",CHAR(160),HV$1))+1),\"\")","v":""},{"$f":"IFERROR(MID($Z17,FIND(CHAR(160),SUBSTITUTE($Z17,\"{\",CHAR(160),HW$1)),FIND(CHAR(160),SUBSTITUTE($Z17,\"}\",CHAR(160),HW$1))-FIND(CHAR(160),SUBSTITUTE($Z17,\"{\",CHAR(160),HW$1))+1),\"\")","v":""},{"$f":"IFERROR(MID($Z17,FIND(CHAR(160),SUBSTITUTE($Z17,\"{\",CHAR(160),HX$1)),FIND(CHAR(160),SUBSTITUTE($Z17,\"}\",CHAR(160),HX$1))-FIND(CHAR(160),SUBSTITUTE($Z17,\"{\",CHAR(160),HX$1))+1),\"\")","v":""},{"$f":"IFERROR(MID($Z17,FIND(CHAR(160),SUBSTITUTE($Z17,\"{\",CHAR(160),HY$1)),FIND(CHAR(160),SUBSTITUTE($Z17,\"}\",CHAR(160),HY$1))-FIND(CHAR(160),SUBSTITUTE($Z17,\"{\",CHAR(160),HY$1))+1),\"\")","v":""},{"$f":"IFERROR(MID($Z17,FIND(CHAR(160),SUBSTITUTE($Z17,\"{\",CHAR(160),HZ$1)),FIND(CHAR(160),SUBSTITUTE($Z17,\"}\",CHAR(160),HZ$1))-FIND(CHAR(160),SUBSTITUTE($Z17,\"{\",CHAR(160),HZ$1))+1),\"\")","v":""},{"$f":"IFERROR(MID($Z17,FIND(CHAR(160),SUBSTITUTE($Z17,\"{\",CHAR(160),IA$1)),FIND(CHAR(160),SUBSTITUTE($Z17,\"}\",CHAR(160),IA$1))-FIND(CHAR(160),SUBSTITUTE($Z17,\"{\",CHAR(160),IA$1))+1),\"\")","v":""},{"$f":"IFERROR(MID($Z17,FIND(CHAR(160),SUBSTITUTE($Z17,\"{\",CHAR(160),IB$1)),FIND(CHAR(160),SUBSTITUTE($Z17,\"}\",CHAR(160),IB$1))-FIND(CHAR(160),SUBSTITUTE($Z17,\"{\",CHAR(160),IB$1))+1),\"\")","v":""},{"$f":"IFERROR(MID($Z17,FIND(CHAR(160),SUBSTITUTE($Z17,\"{\",CHAR(160),IC$1)),FIND(CHAR(160),SUBSTITUTE($Z17,\"}\",CHAR(160),IC$1))-FIND(CHAR(160),SUBSTITUTE($Z17,\"{\",CHAR(160),IC$1))+1),\"\")","v":""},{"$f":"IFERROR(MID($Z17,FIND(CHAR(160),SUBSTITUTE($Z17,\"{\",CHAR(160),ID$1)),FIND(CHAR(160),SUBSTITUTE($Z17,\"}\",CHAR(160),ID$1))-FIND(CHAR(160),SUBSTITUTE($Z17,\"{\",CHAR(160),ID$1))+1),\"\")","v":""},{"$f":"IFERROR(MID($AA17,FIND(CHAR(160),SUBSTITUTE($AA17,\"{\",CHAR(160),IE$1)),FIND(CHAR(160),SUBSTITUTE($AA17,\"}\",CHAR(160),IE$1))-FIND(CHAR(160),SUBSTITUTE($AA17,\"{\",CHAR(160),IE$1))+1),\"\")","v":""},{"$f":"IFERROR(MID($AA17,FIND(CHAR(160),SUBSTITUTE($AA17,\"{\",CHAR(160),IF$1)),FIND(CHAR(160),SUBSTITUTE($AA17,\"}\",CHAR(160),IF$1))-FIND(CHAR(160),SUBSTITUTE($AA17,\"{\",CHAR(160),IF$1))+1),\"\")","v":""},{"$f":"IFERROR(MID($AA17,FIND(CHAR(160),SUBSTITUTE($AA17,\"{\",CHAR(160),IG$1)),FIND(CHAR(160),SUBSTITUTE($AA17,\"}\",CHAR(160),IG$1))-FIND(CHAR(160),SUBSTITUTE($AA17,\"{\",CHAR(160),IG$1))+1),\"\")","v":""},{"$f":"IFERROR(MID($AA17,FIND(CHAR(160),SUBSTITUTE($AA17,\"{\",CHAR(160),IH$1)),FIND(CHAR(160),SUBSTITUTE($AA17,\"}\",CHAR(160),IH$1))-FIND(CHAR(160),SUBSTITUTE($AA17,\"{\",CHAR(160),IH$1))+1),\"\")","v":""},{"$f":"IFERROR(MID($AA17,FIND(CHAR(160),SUBSTITUTE($AA17,\"{\",CHAR(160),II$1)),FIND(CHAR(160),SUBSTITUTE($AA17,\"}\",CHAR(160),II$1))-FIND(CHAR(160),SUBSTITUTE($AA17,\"{\",CHAR(160),II$1))+1),\"\")","v":""},{"$f":"IFERROR(MID($AA17,FIND(CHAR(160),SUBSTITUTE($AA17,\"{\",CHAR(160),IJ$1)),FIND(CHAR(160),SUBSTITUTE($AA17,\"}\",CHAR(160),IJ$1))-FIND(CHAR(160),SUBSTITUTE($AA17,\"{\",CHAR(160),IJ$1))+1),\"\")","v":""},{"$f":"IFERROR(MID($AA17,FIND(CHAR(160),SUBSTITUTE($AA17,\"{\",CHAR(160),IK$1)),FIND(CHAR(160),SUBSTITUTE($AA17,\"}\",CHAR(160),IK$1))-FIND(CHAR(160),SUBSTITUTE($AA17,\"{\",CHAR(160),IK$1))+1),\"\")","v":""},{"$f":"IFERROR(MID($AA17,FIND(CHAR(160),SUBSTITUTE($AA17,\"{\",CHAR(160),IL$1)),FIND(CHAR(160),SUBSTITUTE($AA17,\"}\",CHAR(160),IL$1))-FIND(CHAR(160),SUBSTITUTE($AA17,\"{\",CHAR(160),IL$1))+1),\"\")","v":""},{"$f":"IFERROR(MID($AA17,FIND(CHAR(160),SUBSTITUTE($AA17,\"{\",CHAR(160),IM$1)),FIND(CHAR(160),SUBSTITUTE($AA17,\"}\",CHAR(160),IM$1))-FIND(CHAR(160),SUBSTITUTE($AA17,\"{\",CHAR(160),IM$1))+1),\"\")","v":""},{"$f":"IFERROR(MID($AA17,FIND(CHAR(160),SUBSTITUTE($AA17,\"{\",CHAR(160),IN$1)),FIND(CHAR(160),SUBSTITUTE($AA17,\"}\",CHAR(160),IN$1))-FIND(CHAR(160),SUBSTITUTE($AA17,\"{\",CHAR(160),IN$1))+1),\"\")","v":""},{"$f":"IFERROR(MID($AB17,FIND(CHAR(160),SUBSTITUTE($AB17,\"{\",CHAR(160),IO$1)),FIND(CHAR(160),SUBSTITUTE($AB17,\"}\",CHAR(160),IO$1))-FIND(CHAR(160),SUBSTITUTE($AB17,\"{\",CHAR(160),IO$1))+1),\"\")","v":""},{"$f":"IFERROR(MID($AB17,FIND(CHAR(160),SUBSTITUTE($AB17,\"{\",CHAR(160),IP$1)),FIND(CHAR(160),SUBSTITUTE($AB17,\"}\",CHAR(160),IP$1))-FIND(CHAR(160),SUBSTITUTE($AB17,\"{\",CHAR(160),IP$1))+1),\"\")","v":""},{"$f":"IFERROR(MID($AB17,FIND(CHAR(160),SUBSTITUTE($AB17,\"{\",CHAR(160),IQ$1)),FIND(CHAR(160),SUBSTITUTE($AB17,\"}\",CHAR(160),IQ$1))-FIND(CHAR(160),SUBSTITUTE($AB17,\"{\",CHAR(160),IQ$1))+1),\"\")","v":""},{"$f":"IFERROR(MID($AB17,FIND(CHAR(160),SUBSTITUTE($AB17,\"{\",CHAR(160),IR$1)),FIND(CHAR(160),SUBSTITUTE($AB17,\"}\",CHAR(160),IR$1))-FIND(CHAR(160),SUBSTITUTE($AB17,\"{\",CHAR(160),IR$1))+1),\"\")","v":""},{"$f":"IFERROR(MID($AB17,FIND(CHAR(160),SUBSTITUTE($AB17,\"{\",CHAR(160),IS$1)),FIND(CHAR(160),SUBSTITUTE($AB17,\"}\",CHAR(160),IS$1))-FIND(CHAR(160),SUBSTITUTE($AB17,\"{\",CHAR(160),IS$1))+1),\"\")","v":""},{"$f":"IFERROR(MID($AB17,FIND(CHAR(160),SUBSTITUTE($AB17,\"{\",CHAR(160),IT$1)),FIND(CHAR(160),SUBSTITUTE($AB17,\"}\",CHAR(160),IT$1))-FIND(CHAR(160),SUBSTITUTE($AB17,\"{\",CHAR(160),IT$1))+1),\"\")","v":""},{"$f":"IFERROR(MID($AB17,FIND(CHAR(160),SUBSTITUTE($AB17,\"{\",CHAR(160),IU$1)),FIND(CHAR(160),SUBSTITUTE($AB17,\"}\",CHAR(160),IU$1))-FIND(CHAR(160),SUBSTITUTE($AB17,\"{\",CHAR(160),IU$1))+1),\"\")","v":""},{"$f":"IFERROR(MID($AB17,FIND(CHAR(160),SUBSTITUTE($AB17,\"{\",CHAR(160),IV$1)),FIND(CHAR(160),SUBSTITUTE($AB17,\"}\",CHAR(160),IV$1))-FIND(CHAR(160),SUBSTITUTE($AB17,\"{\",CHAR(160),IV$1))+1),\"\")","v":""},{"$f":"IFERROR(MID($AB17,FIND(CHAR(160),SUBSTITUTE($AB17,\"{\",CHAR(160),IW$1)),FIND(CHAR(160),SUBSTITUTE($AB17,\"}\",CHAR(160),IW$1))-FIND(CHAR(160),SUBSTITUTE($AB17,\"{\",CHAR(160),IW$1))+1),\"\")","v":""},{"$f":"IFERROR(MID($AB17,FIND(CHAR(160),SUBSTITUTE($AB17,\"{\",CHAR(160),IX$1)),FIND(CHAR(160),SUBSTITUTE($AB17,\"}\",CHAR(160),IX$1))-FIND(CHAR(160),SUBSTITUTE($AB17,\"{\",CHAR(160),IX$1))+1),\"\")","v":""},null,{"$f":"10-COUNTIF(DU17:ED17,\"\")","v":3}]
["Appliance Rebate","Heat Pump Water Heater","HPWHI","2021-07-01","2022-06-30","Per Measure",1021,0,"Calculated","{Measure:Quantity}*({Rebate Amount}+{Bonus Amount})",0,"2021-07-01","2022-06-30","Calculated","{Measure:Quantity} * 738",null,null,null,null,null,"({Measure:Quantity} * .129)","({Measure:Quantity} * .080)","({Measure:Quantity} * 0.26 * 10)","({Measure:Quantity} * 0.9)","({Measure:Quantity} * 4.34)","({Measure:Quantity} *0.13)",null,null,"2020-07-01","2022-06-30",13,1,1,0.35799999999999998,0.308,0.17899999999999999,0.155,1,1,1,0.08,0,null,{"$f":"DU18","v":"{Measure:Quantity}"},1,{"$f":"DV18","v":"{Rebate Amount}"},750,{"$f":"DW18","v":"{Bonus Amount}"},0,{"$f":"DX18","v":""},null,{"$f":"DY18","v":""},null,{"$f":"DZ18","v":""},null,{"$f":"EA18","v":""},null,{"$f":"EB18","v":""},null,{"$f":"EC18","v":""},null,{"$f":"ED18","v":""},null,{"$f":"AS18 * 738","v":738},0,0,0,0,0,{"$f":"(AS18 * 0.129)","v":0.129},{"$f":"(AS18 * 0.08)","v":0.08},{"$f":"(AS18 * 0.26 * 10)","v":2.6},{"$f":"(AS18 * 0.9)","v":0.9},{"$f":"(AS18 * 4.34)","v":4.34},{"$f":"(AS18 *0.13)","v":0.13},0,0,null,"Res","Default DR",{"$f":"Benefits(BL18,BR18,BS18,BT18,BU18,BV18,BW18,BX18,BY18,BZ18,AE18,AH18,AI18,AJ18,AK18,AL18,AM18,AN18,AO18,AP18,CA18,CB18)","v":887.14134793483663},565.98695473927182,46.62566843473823,1637.0746028179831,56.85868278198982,472.80577778783635,0,0,0,{"$f":"SUMPRODUCT(CC18:CK18,--(CC18:CK18>0))","v":3666.4930344966556},{"$f":"-SUMPRODUCT(CC18:CK18,--(CC18:CK18<0))","v":0},null,{"$f":"1021","v":1021},null,null,{"$f":"CM18+CO18","v":1021},{"$f":"IF(NetOrGross=\"Net\",(1-AO18+AP18),1)","v":1},{"$f":"(SUMPRODUCT(CC18:CJ18,--(CC18:CJ18>0))+CN18)*CS18/((-SUMPRODUCT(CC18:CJ18,--(CC18:CJ18<0))+MAX(CO18,CV18)+CP18+CQ18)*CS18+IF(FRIncentives=\"Yes\",CV18*(1-CS18),0))","v":3.5910803472053434},1,{"$f":"AS18*(AU18+AW18)","v":750},null,"Electric","y",{"$f":"CL18-CR18","v":2645.4930344966556},{"$f":"IF(F18=\"Manual Entry\",\"Manual\",IF(G18=\"\",0,\"X=\"&SUBSTITUTE(SUBSTITUTE(SUBSTITUTE(SUBSTITUTE(SUBSTITUTE(SUBSTITUTE(SUBSTITUTE(SUBSTITUTE(SUBSTITUTE(SUBSTITUTE(SUBSTITUTE(SUBSTITUTE(G18,$ED18,$ED$2&ROW($ED18)),$EC18,$EC$2&ROW($EC18)),$EB18,$EB$2&ROW($EB18)),$EA18,$EA$2&ROW($EA18)),$DZ18,$DZ$2&ROW($DZ18)),$DY18,$DY$2&ROW($DY18)),$DX18,$DX$2&ROW($DX18)),$DW18,$DW$2&ROW($DW18)),$DV18,$DV$2&ROW($DV18)),$DU18,$DU$2&ROW($DU18)),$DT18,$DT$2&ROW($DT18)),$DS18,$DS$2&ROW($DS18))))","v":"X=1021"},{"$f":"IF(I18=\"Manual Entry\",\"Manual\",IF(J18=\"\",0,\"X=\"&SUBSTITUTE(SUBSTITUTE(SUBSTITUTE(SUBSTITUTE(SUBSTITUTE(SUBSTITUTE(SUBSTITUTE(SUBSTITUTE(SUBSTITUTE(SUBSTITUTE(SUBSTITUTE(SUBSTITUTE(J18,$ED18,$ED$2&ROW($ED18)),$EC18,$EC$2&ROW($EC18)),$EB18,$EB$2&ROW($EB18)),$EA18,$EA$2&ROW($EA18)),$DZ18,$DZ$2&ROW($DZ18)),$DY18,$DY$2&ROW($DY18)),$DX18,$DX$2&ROW($DX18)),$DW18,$DW$2&ROW($DW18)),$DV18,$DV$2&ROW($DV18)),$DU18,$DU$2&ROW($DU18)),$DT18,$DT$2&ROW($DT18)),$DS18,$DS$2&ROW($DS18))))","v":"X=AS18*(AU18+AW18)"},{"$f":"IF(O18=\"\",0,\"X=\"&SUBSTITUTE(SUBSTITUTE(SUBSTITUTE(SUBSTITUTE(SUBSTITUTE(SUBSTITUTE(SUBSTITUTE(SUBSTITUTE(SUBSTITUTE(SUBSTITUTE(SUBSTITUTE(SUBSTITUTE(O18,$ED18,$ED$2&ROW($ED18)),$EC18,$EC$2&ROW($EC18)),$EB18,$EB$2&ROW($EB18)),$EA18,$EA$2&ROW($EA18)),$DZ18,$DZ$2&ROW($DZ18)),$DY18,$DY$2&ROW($DY18)),$DX18,$DX$2&ROW($DX18)),$DW18,$DW$2&ROW($DW18)),$DV18,$DV$2&ROW($DV18)),$DU18,$DU$2&ROW($DU18)),$DT18,$DT$2&ROW($DT18)),$DS18,$DS$2&ROW($DS18)))","v":"X=AS18 * 738"},{"$f":"IF(P18=\"\",0,\"X=\"&SUBSTITUTE(SUBSTITUTE(SUBSTITUTE(SUBSTITUTE(SUBSTITUTE(SUBSTITUTE(SUBSTITUTE(SUBSTITUTE(SUBSTITUTE(SUBSTITUTE(SUBSTITUTE(SUBSTITUTE(P18,$ED18,$ED$2&ROW($ED18)),$EC18,$EC$2&ROW($EC18)),$EB18,$EB$2&ROW($EB18)),$EA18,$EA$2&ROW($EA18)),$DZ18,$DZ$2&ROW($DZ18)),$DY18,$DY$2&ROW($DY18)),$DX18,$DX$2&ROW($DX18)),$DW18,$DW$2&ROW($DW18)),$DV18,$DV$2&ROW($DV18)),$DU18,$DU$2&ROW($DU18)),$DT18,$DT$2&ROW($DT18)),$DS18,$DS$2&ROW($DS18)))","v":0},{"$f":"IF(Q18=\"\",0,\"X=\"&SUBSTITUTE(SUBSTITUTE(SUBSTITUTE(SUBSTITUTE(SUBSTITUTE(SUBSTITUTE(SUBSTITUTE(SUBSTITUTE(SUBSTITUTE(SUBSTITUTE(SUBSTITUTE(SUBSTITUTE(Q18,$ED18,$ED$2&ROW($ED18)),$EC18,$EC$2&ROW($EC18)),$EB18,$EB$2&ROW($EB18)),$EA18,$EA$2&ROW($EA18)),$DZ18,$DZ$2&ROW($DZ18)),$DY18,$DY$2&ROW($DY18)),$DX18,$DX$2&ROW($DX18)),$DW18,$DW$2&ROW($DW18)),$DV18,$DV$2&ROW($DV18)),$DU18,$DU$2&ROW($DU18)),$DT18,$DT$2&ROW($DT18)),$DS18,$DS$2&ROW($DS18)))","v":0},{"$f":"IF(R18=\"\",0,\"X=\"&SUBSTITUTE(SUBSTITUTE(SUBSTITUTE(SUBSTITUTE(SUBSTITUTE(SUBSTITUTE(SUBSTITUTE(SUBSTITUTE(SUBSTITUTE(SUBSTITUTE(SUBSTITUTE(SUBSTITUTE(R18,$ED18,$ED$2&ROW($ED18)),$EC18,$EC$2&ROW($EC18)),$EB18,$EB$2&ROW($EB18)),$EA18,$EA$2&ROW($EA18)),$DZ18,$DZ$2&ROW($DZ18)),$DY18,$DY$2&ROW($DY18)),$DX18,$DX$2&ROW($DX18)),$DW18,$DW$2&ROW($DW18)),$DV18,$DV$2&ROW($DV18)),$DU18,$DU$2&ROW($DU18)),$DT18,$DT$2&ROW($DT18)),$DS18,$DS$2&ROW($DS18)))","v":0},{"$f":"IF(S18=\"\",0,\"X=\"&SUBSTITUTE(SUBSTITUTE(SUBSTITUTE(SUBSTITUTE(SUBSTITUTE(SUBSTITUTE(SUBSTITUTE(SUBSTITUTE(SUBSTITUTE(SUBSTITUTE(SUBSTITUTE(SUBSTITUTE(S18,$ED18,$ED$2&ROW($ED18)),$EC18,$EC$2&ROW($EC18)),$EB18,$EB$2&ROW($EB18)),$EA18,$EA$2&ROW($EA18)),$DZ18,$DZ$2&ROW($DZ18)),$DY18,$DY$2&ROW($DY18)),$DX18,$DX$2&ROW($DX18)),$DW18,$DW$2&ROW($DW18)),$DV18,$DV$2&ROW($DV18)),$DU18,$DU$2&ROW($DU18)),$DT18,$DT$2&ROW($DT18)),$DS18,$DS$2&ROW($DS18)))","v":0},{"$f":"IF(T18=\"\",0,\"X=\"&SUBSTITUTE(SUBSTITUTE(SUBSTITUTE(SUBSTITUTE(SUBSTITUTE(SUBSTITUTE(SUBSTITUTE(SUBSTITUTE(SUBSTITUTE(SUBSTITUTE(SUBSTITUTE(SUBSTITUTE(T18,$ED18,$ED$2&ROW($ED18)),$EC18,$EC$2&ROW($EC18)),$EB18,$EB$2&ROW($EB18)),$EA18,$EA$2&ROW($EA18)),$DZ18,$DZ$2&ROW($DZ18)),$DY18,$DY$2&ROW($DY18)),$DX18,$DX$2&ROW($DX18)),$DW18,$DW$2&ROW($DW18)),$DV18,$DV$2&ROW($DV18)),$DU18,$DU$2&ROW($DU18)),$DT18,$DT$2&ROW($DT18)),$DS18,$DS$2&ROW($DS18)))","v":0},{"$f":"IF(U18=\"\",0,\"X=\"&SUBSTITUTE(SUBSTITUTE(SUBSTITUTE(SUBSTITUTE(SUBSTITUTE(SUBSTITUTE(SUBSTITUTE(SUBSTITUTE(SUBSTITUTE(SUBSTITUTE(SUBSTITUTE(SUBSTITUTE(U18,$ED18,$ED$2&ROW($ED18)),$EC18,$EC$2&ROW($EC18)),$EB18,$EB$2&ROW($EB18)),$EA18,$EA$2&ROW($EA18)),$DZ18,$DZ$2&ROW($DZ18)),$DY18,$DY$2&ROW($DY18)),$DX18,$DX$2&ROW($DX18)),$DW18,$DW$2&ROW($DW18)),$DV18,$DV$2&ROW($DV18)),$DU18,$DU$2&ROW($DU18)),$DT18,$DT$2&ROW($DT18)),$DS18,$DS$2&ROW($DS18)))","v":"X=(AS18 * .129)"},{"$f":"IF(V18=\"\",0,\"X=\"&SUBSTITUTE(SUBSTITUTE(SUBSTITUTE(SUBSTITUTE(SUBSTITUTE(SUBSTITUTE(SUBSTITUTE(SUBSTITUTE(SUBSTITUTE(SUBSTITUTE(SUBSTITUTE(SUBSTITUTE(V18,$ED18,$ED$2&ROW($ED18)),$EC18,$EC$2&ROW($EC18)),$EB18,$EB$2&ROW($EB18)),$EA18,$EA$2&ROW($EA18)),$DZ18,$DZ$2&ROW($DZ18)),$DY18,$DY$2&ROW($DY18)),$DX18,$DX$2&ROW($DX18)),$DW18,$DW$2&ROW($DW18)),$DV18,$DV$2&ROW($DV18)),$DU18,$DU$2&ROW($DU18)),$DT18,$DT$2&ROW($DT18)),$DS18,$DS$2&ROW($DS18)))","v":"X=(AS18 * .080)"},{"$f":"IF(W18=\"\",0,\"X=\"&SUBSTITUTE(SUBSTITUTE(SUBSTITUTE(SUBSTITUTE(SUBSTITUTE(SUBSTITUTE(SUBSTITUTE(SUBSTITUTE(SUBSTITUTE(SUBSTITUTE(SUBSTITUTE(SUBSTITUTE(W18,$ED18,$ED$2&ROW($ED18)),$EC18,$EC$2&ROW($EC18)),$EB18,$EB$2&ROW($EB18)),$EA18,$EA$2&ROW($EA18)),$DZ18,$DZ$2&ROW($DZ18)),$DY18,$DY$2&ROW($DY18)),$DX18,$DX$2&ROW($DX18)),$DW18,$DW$2&ROW($DW18)),$DV18,$DV$2&ROW($DV18)),$DU18,$DU$2&ROW($DU18)),$DT18,$DT$2&ROW($DT18)),$DS18,$DS$2&ROW($DS18)))","v":"X=(AS18 * 0.26 * 10)"},{"$f":"IF(X18=\"\",0,\"X=\"&SUBSTITUTE(SUBSTITUTE(SUBSTITUTE(SUBSTITUTE(SUBSTITUTE(SUBSTITUTE(SUBSTITUTE(SUBSTITUTE(SUBSTITUTE(SUBSTITUTE(SUBSTITUTE(SUBSTITUTE(X18,$ED18,$ED$2&ROW($ED18)),$EC18,$EC$2&ROW($EC18)),$EB18,$EB$2&ROW($EB18)),$EA18,$EA$2&ROW($EA18)),$DZ18,$DZ$2&ROW($DZ18)),$DY18,$DY$2&ROW($DY18)),$DX18,$DX$2&ROW($DX18)),$DW18,$DW$2&ROW($DW18)),$DV18,$DV$2&ROW($DV18)),$DU18,$DU$2&ROW($DU18)),$DT18,$DT$2&ROW($DT18)),$DS18,$DS$2&ROW($DS18)))","v":"X=(AS18 * 0.9)"},{"$f":"IF(Y18=\"\",0,\"X=\"&SUBSTITUTE(SUBSTITUTE(SUBSTITUTE(SUBSTITUTE(SUBSTITUTE(SUBSTITUTE(SUBSTITUTE(SUBSTITUTE(SUBSTITUTE(SUBSTITUTE(SUBSTITUTE(SUBSTITUTE(Y18,$ED18,$ED$2&ROW($ED18)),$EC18,$EC$2&ROW($EC18)),$EB18,$EB$2&ROW($EB18)),$EA18,$EA$2&ROW($EA18)),$DZ18,$DZ$2&ROW($DZ18)),$DY18,$DY$2&ROW($DY18)),$DX18,$DX$2&ROW($DX18)),$DW18,$DW$2&ROW($DW18)),$DV18,$DV$2&ROW($DV18)),$DU18,$DU$2&ROW($DU18)),$DT18,$DT$2&ROW($DT18)),$DS18,$DS$2&ROW($DS18)))","v":"X=(AS18 * 4.34)"},{"$f":"IF(Z18=\"\",0,\"X=\"&SUBSTITUTE(SUBSTITUTE(SUBSTITUTE(SUBSTITUTE(SUBSTITUTE(SUBSTITUTE(SUBSTITUTE(SUBSTITUTE(SUBSTITUTE(SUBSTITUTE(SUBSTITUTE(SUBSTITUTE(Z18,$ED18,$ED$2&ROW($ED18)),$EC18,$EC$2&ROW($EC18)),$EB18,$EB$2&ROW($EB18)),$EA18,$EA$2&ROW($EA18)),$DZ18,$DZ$2&ROW($DZ18)),$DY18,$DY$2&ROW($DY18)),$DX18,$DX$2&ROW($DX18)),$DW18,$DW$2&ROW($DW18)),$DV18,$DV$2&ROW($DV18)),$DU18,$DU$2&ROW($DU18)),$DT18,$DT$2&ROW($DT18)),$DS18,$DS$2&ROW($DS18)))","v":"X=(AS18 *0.13)"},{"$f":"IF(AA18=\"\",0,\"X=\"&SUBSTITUTE(SUBSTITUTE(SUBSTITUTE(SUBSTITUTE(SUBSTITUTE(SUBSTITUTE(SUBSTITUTE(SUBSTITUTE(SUBSTITUTE(SUBSTITUTE(SUBSTITUTE(SUBSTITUTE(AA18,$ED18,$ED$2&ROW($ED18)),$EC18,$EC$2&ROW($EC18)),$EB18,$EB$2&ROW($EB18)),$EA18,$EA$2&ROW($EA18)),$DZ18,$DZ$2&ROW($DZ18)),$DY18,$DY$2&ROW($DY18)),$DX18,$DX$2&ROW($DX18)),$DW18,$DW$2&ROW($DW18)),$DV18,$DV$2&ROW($DV18)),$DU18,$DU$2&ROW($DU18)),$DT18,$DT$2&ROW($DT18)),$DS18,$DS$2&ROW($DS18)))","v":0},{"$f":"IF(AB18=\"\",0,\"X=\"&SUBSTITUTE(SUBSTITUTE(SUBSTITUTE(SUBSTITUTE(SUBSTITUTE(SUBSTITUTE(SUBSTITUTE(SUBSTITUTE(SUBSTITUTE(SUBSTITUTE(SUBSTITUTE(SUBSTITUTE(AB18,$ED18,$ED$2&ROW($ED18)),$EC18,$EC$2&ROW($EC18)),$EB18,$EB$2&ROW($EB18)),$EA18,$EA$2&ROW($EA18)),$DZ18,$DZ$2&ROW($DZ18)),$DY18,$DY$2&ROW($DY18)),$DX18,$DX$2&ROW($DX18)),$DW18,$DW$2&ROW($DW18)),$DV18,$DV$2&ROW($DV18)),$DU18,$DU$2&ROW($DU18)),$DT18,$DT$2&ROW($DT18)),$DS18,$DS$2&ROW($DS18)))","v":0},null,null,"{Factor:WinterCF}","{Factor:SummerCF}",{"$f":"IFERROR(INDEX($EG18:$IV18,MATCH(0,COUNTIF($DR18:DT18,$EG18:$IV18),0)),\"\")","v":"{Measure:Quantity}"},{"$f":"IFERROR(INDEX($EG18:$IV18,MATCH(0,COUNTIF($DR18:DU18,$EG18:$IV18),0)),\"\")","v":"{Rebate Amount}"},{"$f":"IFERROR(INDEX($EG18:$IV18,MATCH(0,COUNTIF($DR18:DV18,$EG18:$IV18),0)),\"\")","v":"{Bonus Amount}"},{"$f":"IFERROR(INDEX($EG18:$IV18,MATCH(0,COUNTIF($DR18:DW18,$EG18:$IV18),0)),\"\")","v":""},{"$f":"IFERROR(INDEX($EG18:$IV18,MATCH(0,COUNTIF($DR18:DX18,$EG18:$IV18),0)),\"\")","v":""},{"$f":"IFERROR(INDEX($EG18:$IV18,MATCH(0,COUNTIF($DR18:DY18,$EG18:$IV18),0)),\"\")","v":""},{"$f":"IFERROR(INDEX($EG18:$IV18,MATCH(0,COUNTIF($DR18:DZ18,$EG18:$IV18),0)),\"\")","v":""},{"$f":"IFERROR(INDEX($EG18:$IV18,MATCH(0,COUNTIF($DR18:EA18,$EG18:$IV18),0)),\"\")","v":""},{"$f":"IFERROR(INDEX($EG18:$IV18,MATCH(0,COUNTIF($DR18:EB18,$EG18:$IV18),0)),\"\")","v":""},{"$f":"IFERROR(INDEX($EG18:$IV18,MATCH(0,COUNTIF($DR18:EC18,$EG18:$IV18),0)),\"\")","v":""},null,null,{"$f":"IFERROR(MID($G18,FIND(CHAR(160),SUBSTITUTE($G18,\"{\",CHAR(160),EG$1)),FIND(CHAR(160),SUBSTITUTE($G18,\"}\",CHAR(160),EG$1))-FIND(CHAR(160),SUBSTITUTE($G18,\"{\",CHAR(160),EG$1))+1),\"\")","v":""},{"$f":"IFERROR(MID($G18,FIND(CHAR(160),SUBSTITUTE($G18,\"{\",CHAR(160),EH$1)),FIND(CHAR(160),SUBSTITUTE($G18,\"}\",CHAR(160),EH$1))-FIND(CHAR(160),SUBSTITUTE($G18,\"{\",CHAR(160),EH$1))+1),\"\")","v":""},{"$f":"IFERROR(MID($G18,FIND(CHAR(160),SUBSTITUTE($G18,\"{\",CHAR(160),EI$1)),FIND(CHAR(160),SUBSTITUTE($G18,\"}\",CHAR(160),EI$1))-FIND(CHAR(160),SUBSTITUTE($G18,\"{\",CHAR(160),EI$1))+1),\"\")","v":""},{"$f":"IFERROR(MID($G18,FIND(CHAR(160),SUBSTITUTE($G18,\"{\",CHAR(160),EJ$1)),FIND(CHAR(160),SUBSTITUTE($G18,\"}\",CHAR(160),EJ$1))-FIND(CHAR(160),SUBSTITUTE($G18,\"{\",CHAR(160),EJ$1))+1),\"\")","v":""},{"$f":"IFERROR(MID($G18,FIND(CHAR(160),SUBSTITUTE($G18,\"{\",CHAR(160),EK$1)),FIND(CHAR(160),SUBSTITUTE($G18,\"}\",CHAR(160),EK$1))-FIND(CHAR(160),SUBSTITUTE($G18,\"{\",CHAR(160),EK$1))+1),\"\")","v":""},{"$f":"IFERROR(MID($G18,FIND(CHAR(160),SUBSTITUTE($G18,\"{\",CHAR(160),EL$1)),FIND(CHAR(160),SUBSTITUTE($G18,\"}\",CHAR(160),EL$1))-FIND(CHAR(160),SUBSTITUTE($G18,\"{\",CHAR(160),EL$1))+1),\"\")","v":""},{"$f":"IFERROR(MID($G18,FIND(CHAR(160),SUBSTITUTE($G18,\"{\",CHAR(160),EM$1)),FIND(CHAR(160),SUBSTITUTE($G18,\"}\",CHAR(160),EM$1))-FIND(CHAR(160),SUBSTITUTE($G18,\"{\",CHAR(160),EM$1))+1),\"\")","v":""},{"$f":"IFERROR(MID($G18,FIND(CHAR(160),SUBSTITUTE($G18,\"{\",CHAR(160),EN$1)),FIND(CHAR(160),SUBSTITUTE($G18,\"}\",CHAR(160),EN$1))-FIND(CHAR(160),SUBSTITUTE($G18,\"{\",CHAR(160),EN$1))+1),\"\")","v":""},{"$f":"IFERROR(MID($G18,FIND(CHAR(160),SUBSTITUTE($G18,\"{\",CHAR(160),EO$1)),FIND(CHAR(160),SUBSTITUTE($G18,\"}\",CHAR(160),EO$1))-FIND(CHAR(160),SUBSTITUTE($G18,\"{\",CHAR(160),EO$1))+1),\"\")","v":""},{"$f":"IFERROR(MID($G18,FIND(CHAR(160),SUBSTITUTE($G18,\"{\",CHAR(160),EP$1)),FIND(CHAR(160),SUBSTITUTE($G18,\"}\",CHAR(160),EP$1))-FIND(CHAR(160),SUBSTITUTE($G18,\"{\",CHAR(160),EP$1))+1),\"\")","v":""},{"$f":"IFERROR(MID($J18,FIND(CHAR(160),SUBSTITUTE($J18,\"{\",CHAR(160),EQ$1)),FIND(CHAR(160),SUBSTITUTE($J18,\"}\",CHAR(160),EQ$1))-FIND(CHAR(160),SUBSTITUTE($J18,\"{\",CHAR(160),EQ$1))+1),\"\")","v":"{Measure:Quantity}"},{"$f":"IFERROR(MID($J18,FIND(CHAR(160),SUBSTITUTE($J18,\"{\",CHAR(160),ER$1)),FIND(CHAR(160),SUBSTITUTE($J18,\"}\",CHAR(160),ER$1))-FIND(CHAR(160),SUBSTITUTE($J18,\"{\",CHAR(160),ER$1))+1),\"\")","v":"{Rebate Amount}"},{"$f":"IFERROR(MID($J18,FIND(CHAR(160),SUBSTITUTE($J18,\"{\",CHAR(160),ES$1)),FIND(CHAR(160),SUBSTITUTE($J18,\"}\",CHAR(160),ES$1))-FIND(CHAR(160),SUBSTITUTE($J18,\"{\",CHAR(160),ES$1))+1),\"\")","v":"{Bonus Amount}"},{"$f":"IFERROR(MID($J18,FIND(CHAR(160),SUBSTITUTE($J18,\"{\",CHAR(160),ET$1)),FIND(CHAR(160),SUBSTITUTE($J18,\"}\",CHAR(160),ET$1))-FIND(CHAR(160),SUBSTITUTE($J18,\"{\",CHAR(160),ET$1))+1),\"\")","v":""},{"$f":"IFERROR(MID($J18,FIND(CHAR(160),SUBSTITUTE($J18,\"{\",CHAR(160),EU$1)),FIND(CHAR(160),SUBSTITUTE($J18,\"}\",CHAR(160),EU$1))-FIND(CHAR(160),SUBSTITUTE($J18,\"{\",CHAR(160),EU$1))+1),\"\")","v":""},{"$f":"IFERROR(MID($J18,FIND(CHAR(160),SUBSTITUTE($J18,\"{\",CHAR(160),EV$1)),FIND(CHAR(160),SUBSTITUTE($J18,\"}\",CHAR(160),EV$1))-FIND(CHAR(160),SUBSTITUTE($J18,\"{\",CHAR(160),EV$1))+1),\"\")","v":""},{"$f":"IFERROR(MID($J18,FIND(CHAR(160),SUBSTITUTE($J18,\"{\",CHAR(160),EW$1)),FIND(CHAR(160),SUBSTITUTE($J18,\"}\",CHAR(160),EW$1))-FIND(CHAR(160),SUBSTITUTE($J18,\"{\",CHAR(160),EW$1))+1),\"\")","v":""},{"$f":"IFERROR(MID($J18,FIND(CHAR(160),SUBSTITUTE($J18,\"{\",CHAR(160),EX$1)),FIND(CHAR(160),SUBSTITUTE($J18,\"}\",CHAR(160),EX$1))-FIND(CHAR(160),SUBSTITUTE($J18,\"{\",CHAR(160),EX$1))+1),\"\")","v":""},{"$f":"IFERROR(MID($J18,FIND(CHAR(160),SUBSTITUTE($J18,\"{\",CHAR(160),EY$1)),FIND(CHAR(160),SUBSTITUTE($J18,\"}\",CHAR(160),EY$1))-FIND(CHAR(160),SUBSTITUTE($J18,\"{\",CHAR(160),EY$1))+1),\"\")","v":""},{"$f":"IFERROR(MID($J18,FIND(CHAR(160),SUBSTITUTE($J18,\"{\",CHAR(160),EZ$1)),FIND(CHAR(160),SUBSTITUTE($J18,\"}\",CHAR(160),EZ$1))-FIND(CHAR(160),SUBSTITUTE($J18,\"{\",CHAR(160),EZ$1))+1),\"\")","v":""},{"$f":"IFERROR(MID($J18,FIND(CHAR(160),SUBSTITUTE($J18,\"{\",CHAR(160),FA$1)),FIND(CHAR(160),SUBSTITUTE($J18,\"}\",CHAR(160),FA$1))-FIND(CHAR(160),SUBSTITUTE($J18,\"{\",CHAR(160),FA$1))+1),\"\")","v":"{Measure:Quantity}"},{"$f":"IFERROR(MID($J18,FIND(CHAR(160),SUBSTITUTE($J18,\"{\",CHAR(160),FB$1)),FIND(CHAR(160),SUBSTITUTE($J18,\"}\",CHAR(160),FB$1))-FIND(CHAR(160),SUBSTITUTE($J18,\"{\",CHAR(160),FB$1))+1),\"\")","v":"{Rebate Amount}"},{"$f":"IFERROR(MID($O18,FIND(CHAR(160),SUBSTITUTE($O18,\"{\",CHAR(160),FC$1)),FIND(CHAR(160),SUBSTITUTE($O18,\"}\",CHAR(160),FC$1))-FIND(CHAR(160),SUBSTITUTE($O18,\"{\",CHAR(160),FC$1))+1),\"\")","v":""},{"$f":"IFERROR(MID($O18,FIND(CHAR(160),SUBSTITUTE($O18,\"{\",CHAR(160),FD$1)),FIND(CHAR(160),SUBSTITUTE($O18,\"}\",CHAR(160),FD$1))-FIND(CHAR(160),SUBSTITUTE($O18,\"{\",CHAR(160),FD$1))+1),\"\")","v":""},{"$f":"IFERROR(MID($O18,FIND(CHAR(160),SUBSTITUTE($O18,\"{\",CHAR(160),FE$1)),FIND(CHAR(160),SUBSTITUTE($O18,\"}\",CHAR(160),FE$1))-FIND(CHAR(160),SUBSTITUTE($O18,\"{\",CHAR(160),FE$1))+1),\"\")","v":""},{"$f":"IFERROR(MID($O18,FIND(CHAR(160),SUBSTITUTE($O18,\"{\",CHAR(160),FF$1)),FIND(CHAR(160),SUBSTITUTE($O18,\"}\",CHAR(160),FF$1))-FIND(CHAR(160),SUBSTITUTE($O18,\"{\",CHAR(160),FF$1))+1),\"\")","v":""},{"$f":"IFERROR(MID($O18,FIND(CHAR(160),SUBSTITUTE($O18,\"{\",CHAR(160),FG$1)),FIND(CHAR(160),SUBSTITUTE($O18,\"}\",CHAR(160),FG$1))-FIND(CHAR(160),SUBSTITUTE($O18,\"{\",CHAR(160),FG$1))+1),\"\")","v":""},{"$f":"IFERROR(MID($O18,FIND(CHAR(160),SUBSTITUTE($O18,\"{\",CHAR(160),FH$1)),FIND(CHAR(160),SUBSTITUTE($O18,\"}\",CHAR(160),FH$1))-FIND(CHAR(160),SUBSTITUTE($O18,\"{\",CHAR(160),FH$1))+1),\"\")","v":""},{"$f":"IFERROR(MID($O18,FIND(CHAR(160),SUBSTITUTE($O18,\"{\",CHAR(160),FI$1)),FIND(CHAR(160),SUBSTITUTE($O18,\"}\",CHAR(160),FI$1))-FIND(CHAR(160),SUBSTITUTE($O18,\"{\",CHAR(160),FI$1))+1),\"\")","v":""},{"$f":"IFERROR(MID($O18,FIND(CHAR(160),SUBSTITUTE($O18,\"{\",CHAR(160),FJ$1)),FIND(CHAR(160),SUBSTITUTE($O18,\"}\",CHAR(160),FJ$1))-FIND(CHAR(160),SUBSTITUTE($O18,\"{\",CHAR(160),FJ$1))+1),\"\")","v":""},{"$f":"IFERROR(MID($O18,FIND(CHAR(160),SUBSTITUTE($O18,\"{\",CHAR(160),FK$1)),FIND(CHAR(160),SUBSTITUTE($O18,\"}\",CHAR(160),FK$1))-FIND(CHAR(160),SUBSTITUTE($O18,\"{\",CHAR(160),FK$1))+1),\"\")","v":"{Measure:Quantity}"},{"$f":"IFERROR(MID($O18,FIND(CHAR(160),SUBSTITUTE($O18,\"{\",CHAR(160),FL$1)),FIND(CHAR(160),SUBSTITUTE($O18,\"}\",CHAR(160),FL$1))-FIND(CHAR(160),SUBSTITUTE($O18,\"{\",CHAR(160),FL$1))+1),\"\")","v":""},{"$f":"IFERROR(MID($R18,FIND(CHAR(160),SUBSTITUTE($R18,\"{\",CHAR(160),FM$1)),FIND(CHAR(160),SUBSTITUTE($R18,\"}\",CHAR(160),FM$1))-FIND(CHAR(160),SUBSTITUTE($R18,\"{\",CHAR(160),FM$1))+1),\"\")","v":""},{"$f":"IFERROR(MID($R18,FIND(CHAR(160),SUBSTITUTE($R18,\"{\",CHAR(160),FN$1)),FIND(CHAR(160),SUBSTITUTE($R18,\"}\",CHAR(160),FN$1))-FIND(CHAR(160),SUBSTITUTE($R18,\"{\",CHAR(160),FN$1))+1),\"\")","v":""},{"$f":"IFERROR(MID($R18,FIND(CHAR(160),SUBSTITUTE($R18,\"{\",CHAR(160),FO$1)),FIND(CHAR(160),SUBSTITUTE($R18,\"}\",CHAR(160),FO$1))-FIND(CHAR(160),SUBSTITUTE($R18,\"{\",CHAR(160),FO$1))+1),\"\")","v":""},{"$f":"IFERROR(MID($R18,FIND(CHAR(160),SUBSTITUTE($R18,\"{\",CHAR(160),FP$1)),FIND(CHAR(160),SUBSTITUTE($R18,\"}\",CHAR(160),FP$1))-FIND(CHAR(160),SUBSTITUTE($R18,\"{\",CHAR(160),FP$1))+1),\"\")","v":""},{"$f":"IFERROR(MID($R18,FIND(CHAR(160),SUBSTITUTE($R18,\"{\",CHAR(160),FQ$1)),FIND(CHAR(160),SUBSTITUTE($R18,\"}\",CHAR(160),FQ$1))-FIND(CHAR(160),SUBSTITUTE($R18,\"{\",CHAR(160),FQ$1))+1),\"\")","v":""},{"$f":"IFERROR(MID($R18,FIND(CHAR(160),SUBSTITUTE($R18,\"{\",CHAR(160),FR$1)),FIND(CHAR(160),SUBSTITUTE($R18,\"}\",CHAR(160),FR$1))-FIND(CHAR(160),SUBSTITUTE($R18,\"{\",CHAR(160),FR$1))+1),\"\")","v":""},{"$f":"IFERROR(MID($R18,FIND(CHAR(160),SUBSTITUTE($R18,\"{\",CHAR(160),FS$1)),FIND(CHAR(160),SUBSTITUTE($R18,\"}\",CHAR(160),FS$1))-FIND(CHAR(160),SUBSTITUTE($R18,\"{\",CHAR(160),FS$1))+1),\"\")","v":""},{"$f":"IFERROR(MID($R18,FIND(CHAR(160),SUBSTITUTE($R18,\"{\",CHAR(160),FT$1)),FIND(CHAR(160),SUBSTITUTE($R18,\"}\",CHAR(160),FT$1))-FIND(CHAR(160),SUBSTITUTE($R18,\"{\",CHAR(160),FT$1))+1),\"\")","v":""},{"$f":"IFERROR(MID($R18,FIND(CHAR(160),SUBSTITUTE($R18,\"{\",CHAR(160),FU$1)),FIND(CHAR(160),SUBSTITUTE($R18,\"}\",CHAR(160),FU$1))-FIND(CHAR(160),SUBSTITUTE($R18,\"{\",CHAR(160),FU$1))+1),\"\")","v":""},{"$f":"IFERROR(MID($R18,FIND(CHAR(160),SUBSTITUTE($R18,\"{\",CHAR(160),FV$1)),FIND(CHAR(160),SUBSTITUTE($R18,\"}\",CHAR(160),FV$1))-FIND(CHAR(160),SUBSTITUTE($R18,\"{\",CHAR(160),FV$1))+1),\"\")","v":""},{"$f":"IFERROR(MID($U18,FIND(CHAR(160),SUBSTITUTE($U18,\"{\",CHAR(160),FW$1)),FIND(CHAR(160),SUBSTITUTE($U18,\"}\",CHAR(160),FW$1))-FIND(CHAR(160),SUBSTITUTE($U18,\"{\",CHAR(160),FW$1))+1),\"\")","v":""},{"$f":"IFERROR(MID($U18,FIND(CHAR(160),SUBSTITUTE($U18,\"{\",CHAR(160),FX$1)),FIND(CHAR(160),SUBSTITUTE($U18,\"}\",CHAR(160),FX$1))-FIND(CHAR(160),SUBSTITUTE($U18,\"{\",CHAR(160),FX$1))+1),\"\")","v":""},{"$f":"IFERROR(MID($U18,FIND(CHAR(160),SUBSTITUTE($U18,\"{\",CHAR(160),FY$1)),FIND(CHAR(160),SUBSTITUTE($U18,\"}\",CHAR(160),FY$1))-FIND(CHAR(160),SUBSTITUTE($U18,\"{\",CHAR(160),FY$1))+1),\"\")","v":""},{"$f":"IFERROR(MID($U18,FIND(CHAR(160),SUBSTITUTE($U18,\"{\",CHAR(160),FZ$1)),FIND(CHAR(160),SUBSTITUTE($U18,\"}\",CHAR(160),FZ$1))-FIND(CHAR(160),SUBSTITUTE($U18,\"{\",CHAR(160),FZ$1))+1),\"\")","v":""},{"$f":"IFERROR(MID($U18,FIND(CHAR(160),SUBSTITUTE($U18,\"{\",CHAR(160),GA$1)),FIND(CHAR(160),SUBSTITUTE($U18,\"}\",CHAR(160),GA$1))-FIND(CHAR(160),SUBSTITUTE($U18,\"{\",CHAR(160),GA$1))+1),\"\")","v":""},{"$f":"IFERROR(MID($U18,FIND(CHAR(160),SUBSTITUTE($U18,\"{\",CHAR(160),GB$1)),FIND(CHAR(160),SUBSTITUTE($U18,\"}\",CHAR(160),GB$1))-FIND(CHAR(160),SUBSTITUTE($U18,\"{\",CHAR(160),GB$1))+1),\"\")","v":""},{"$f":"IFERROR(MID($U18,FIND(CHAR(160),SUBSTITUTE($U18,\"{\",CHAR(160),GC$1)),FIND(CHAR(160),SUBSTITUTE($U18,\"}\",CHAR(160),GC$1))-FIND(CHAR(160),SUBSTITUTE($U18,\"{\",CHAR(160),GC$1))+1),\"\")","v":""},{"$f":"IFERROR(MID($U18,FIND(CHAR(160),SUBSTITUTE($U18,\"{\",CHAR(160),GD$1)),FIND(CHAR(160),SUBSTITUTE($U18,\"}\",CHAR(160),GD$1))-FIND(CHAR(160),SUBSTITUTE($U18,\"{\",CHAR(160),GD$1))+1),\"\")","v":""},{"$f":"IFERROR(MID($U18,FIND(CHAR(160),SUBSTITUTE($U18,\"{\",CHAR(160),GE$1)),FIND(CHAR(160),SUBSTITUTE($U18,\"}\",CHAR(160),GE$1))-FIND(CHAR(160),SUBSTITUTE($U18,\"{\",CHAR(160),GE$1))+1),\"\")","v":"{Measure:Quantity}"},{"$f":"IFERROR(MID($U18,FIND(CHAR(160),SUBSTITUTE($U18,\"{\",CHAR(160),GF$1)),FIND(CHAR(160),SUBSTITUTE($U18,\"}\",CHAR(160),GF$1))-FIND(CHAR(160),SUBSTITUTE($U18,\"{\",CHAR(160),GF$1))+1),\"\")","v":""},{"$f":"IFERROR(MID($V18,FIND(CHAR(160),SUBSTITUTE($V18,\"{\",CHAR(160),GG$1)),FIND(CHAR(160),SUBSTITUTE($V18,\"}\",CHAR(160),GG$1))-FIND(CHAR(160),SUBSTITUTE($V18,\"{\",CHAR(160),GG$1))+1),\"\")","v":""},{"$f":"IFERROR(MID($V18,FIND(CHAR(160),SUBSTITUTE($V18,\"{\",CHAR(160),GH$1)),FIND(CHAR(160),SUBSTITUTE($V18,\"}\",CHAR(160),GH$1))-FIND(CHAR(160),SUBSTITUTE($V18,\"{\",CHAR(160),GH$1))+1),\"\")","v":""},{"$f":"IFERROR(MID($V18,FIND(CHAR(160),SUBSTITUTE($V18,\"{\",CHAR(160),GI$1)),FIND(CHAR(160),SUBSTITUTE($V18,\"}\",CHAR(160),GI$1))-FIND(CHAR(160),SUBSTITUTE($V18,\"{\",CHAR(160),GI$1))+1),\"\")","v":""},{"$f":"IFERROR(MID($V18,FIND(CHAR(160),SUBSTITUTE($V18,\"{\",CHAR(160),GJ$1)),FIND(CHAR(160),SUBSTITUTE($V18,\"}\",CHAR(160),GJ$1))-FIND(CHAR(160),SUBSTITUTE($V18,\"{\",CHAR(160),GJ$1))+1),\"\")","v":""},{"$f":"IFERROR(MID($V18,FIND(CHAR(160),SUBSTITUTE($V18,\"{\",CHAR(160),GK$1)),FIND(CHAR(160),SUBSTITUTE($V18,\"}\",CHAR(160),GK$1))-FIND(CHAR(160),SUBSTITUTE($V18,\"{\",CHAR(160),GK$1))+1),\"\")","v":""},{"$f":"IFERROR(MID($V18,FIND(CHAR(160),SUBSTITUTE($V18,\"{\",CHAR(160),GL$1)),FIND(CHAR(160),SUBSTITUTE($V18,\"}\",CHAR(160),GL$1))-FIND(CHAR(160),SUBSTITUTE($V18,\"{\",CHAR(160),GL$1))+1),\"\")","v":""},{"$f":"IFERROR(MID($V18,FIND(CHAR(160),SUBSTITUTE($V18,\"{\",CHAR(160),GM$1)),FIND(CHAR(160),SUBSTITUTE($V18,\"}\",CHAR(160),GM$1))-FIND(CHAR(160),SUBSTITUTE($V18,\"{\",CHAR(160),GM$1))+1),\"\")","v":""},{"$f":"IFERROR(MID($V18,FIND(CHAR(160),SUBSTITUTE($V18,\"{\",CHAR(160),GN$1)),FIND(CHAR(160),SUBSTITUTE($V18,\"}\",CHAR(160),GN$1))-FIND(CHAR(160),SUBSTITUTE($V18,\"{\",CHAR(160),GN$1))+1),\"\")","v":""},{"$f":"IFERROR(MID($V18,FIND(CHAR(160),SUBSTITUTE($V18,\"{\",CHAR(160),GO$1)),FIND(CHAR(160),SUBSTITUTE($V18,\"}\",CHAR(160),GO$1))-FIND(CHAR(160),SUBSTITUTE($V18,\"{\",CHAR(160),GO$1))+1),\"\")","v":"{Measure:Quantity}"},{"$f":"IFERROR(MID($V18,FIND(CHAR(160),SUBSTITUTE($V18,\"{\",CHAR(160),GP$1)),FIND(CHAR(160),SUBSTITUTE($V18,\"}\",CHAR(160),GP$1))-FIND(CHAR(160),SUBSTITUTE($V18,\"{\",CHAR(160),GP$1))+1),\"\")","v":""},{"$f":"IFERROR(MID($W18,FIND(CHAR(160),SUBSTITUTE($W18,\"{\",CHAR(160),GQ$1)),FIND(CHAR(160),SUBSTITUTE($W18,\"}\",CHAR(160),GQ$1))-FIND(CHAR(160),SUBSTITUTE($W18,\"{\",CHAR(160),GQ$1))+1),\"\")","v":""},{"$f":"IFERROR(MID($W18,FIND(CHAR(160),SUBSTITUTE($W18,\"{\",CHAR(160),GR$1)),FIND(CHAR(160),SUBSTITUTE($W18,\"}\",CHAR(160),GR$1))-FIND(CHAR(160),SUBSTITUTE($W18,\"{\",CHAR(160),GR$1))+1),\"\")","v":""},{"$f":"IFERROR(MID($W18,FIND(CHAR(160),SUBSTITUTE($W18,\"{\",CHAR(160),GS$1)),FIND(CHAR(160),SUBSTITUTE($W18,\"}\",CHAR(160),GS$1))-FIND(CHAR(160),SUBSTITUTE($W18,\"{\",CHAR(160),GS$1))+1),\"\")","v":""},{"$f":"IFERROR(MID($W18,FIND(CHAR(160),SUBSTITUTE($W18,\"{\",CHAR(160),GT$1)),FIND(CHAR(160),SUBSTITUTE($W18,\"}\",CHAR(160),GT$1))-FIND(CHAR(160),SUBSTITUTE($W18,\"{\",CHAR(160),GT$1))+1),\"\")","v":""},{"$f":"IFERROR(MID($W18,FIND(CHAR(160),SUBSTITUTE($W18,\"{\",CHAR(160),GU$1)),FIND(CHAR(160),SUBSTITUTE($W18,\"}\",CHAR(160),GU$1))-FIND(CHAR(160),SUBSTITUTE($W18,\"{\",CHAR(160),GU$1))+1),\"\")","v":""},{"$f":"IFERROR(MID($W18,FIND(CHAR(160),SUBSTITUTE($W18,\"{\",CHAR(160),GV$1)),FIND(CHAR(160),SUBSTITUTE($W18,\"}\",CHAR(160),GV$1))-FIND(CHAR(160),SUBSTITUTE($W18,\"{\",CHAR(160),GV$1))+1),\"\")","v":""},{"$f":"IFERROR(MID($W18,FIND(CHAR(160),SUBSTITUTE($W18,\"{\",CHAR(160),GW$1)),FIND(CHAR(160),SUBSTITUTE($W18,\"}\",CHAR(160),GW$1))-FIND(CHAR(160),SUBSTITUTE($W18,\"{\",CHAR(160),GW$1))+1),\"\")","v":""},{"$f":"IFERROR(MID($W18,FIND(CHAR(160),SUBSTITUTE($W18,\"{\",CHAR(160),GX$1)),FIND(CHAR(160),SUBSTITUTE($W18,\"}\",CHAR(160),GX$1))-FIND(CHAR(160),SUBSTITUTE($W18,\"{\",CHAR(160),GX$1))+1),\"\")","v":""},{"$f":"IFERROR(MID($W18,FIND(CHAR(160),SUBSTITUTE($W18,\"{\",CHAR(160),GY$1)),FIND(CHAR(160),SUBSTITUTE($W18,\"}\",CHAR(160),GY$1))-FIND(CHAR(160),SUBSTITUTE($W18,\"{\",CHAR(160),GY$1))+1),\"\")","v":"{Measure:Quantity}"},{"$f":"IFERROR(MID($W18,FIND(CHAR(160),SUBSTITUTE($W18,\"{\",CHAR(160),GZ$1)),FIND(CHAR(160),SUBSTITUTE($W18,\"}\",CHAR(160),GZ$1))-FIND(CHAR(160),SUBSTITUTE($W18,\"{\",CHAR(160),GZ$1))+1),\"\")","v":""},{"$f":"IFERROR(MID($X18,FIND(CHAR(160),SUBSTITUTE($X18,\"{\",CHAR(160),HA$1)),FIND(CHAR(160),SUBSTITUTE($X18,\"}\",CHAR(160),HA$1))-FIND(CHAR(160),SUBSTITUTE($X18,\"{\",CHAR(160),HA$1))+1),\"\")","v":""},{"$f":"IFERROR(MID($X18,FIND(CHAR(160),SUBSTITUTE($X18,\"{\",CHAR(160),HB$1)),FIND(CHAR(160),SUBSTITUTE($X18,\"}\",CHAR(160),HB$1))-FIND(CHAR(160),SUBSTITUTE($X18,\"{\",CHAR(160),HB$1))+1),\"\")","v":""},{"$f":"IFERROR(MID($X18,FIND(CHAR(160),SUBSTITUTE($X18,\"{\",CHAR(160),HC$1)),FIND(CHAR(160),SUBSTITUTE($X18,\"}\",CHAR(160),HC$1))-FIND(CHAR(160),SUBSTITUTE($X18,\"{\",CHAR(160),HC$1))+1),\"\")","v":""},{"$f":"IFERROR(MID($X18,FIND(CHAR(160),SUBSTITUTE($X18,\"{\",CHAR(160),HD$1)),FIND(CHAR(160),SUBSTITUTE($X18,\"}\",CHAR(160),HD$1))-FIND(CHAR(160),SUBSTITUTE($X18,\"{\",CHAR(160),HD$1))+1),\"\")","v":""},{"$f":"IFERROR(MID($X18,FIND(CHAR(160),SUBSTITUTE($X18,\"{\",CHAR(160),HE$1)),FIND(CHAR(160),SUBSTITUTE($X18,\"}\",CHAR(160),HE$1))-FIND(CHAR(160),SUBSTITUTE($X18,\"{\",CHAR(160),HE$1))+1),\"\")","v":""},{"$f":"IFERROR(MID($X18,FIND(CHAR(160),SUBSTITUTE($X18,\"{\",CHAR(160),HF$1)),FIND(CHAR(160),SUBSTITUTE($X18,\"}\",CHAR(160),HF$1))-FIND(CHAR(160),SUBSTITUTE($X18,\"{\",CHAR(160),HF$1))+1),\"\")","v":""},{"$f":"IFERROR(MID($X18,FIND(CHAR(160),SUBSTITUTE($X18,\"{\",CHAR(160),HG$1)),FIND(CHAR(160),SUBSTITUTE($X18,\"}\",CHAR(160),HG$1))-FIND(CHAR(160),SUBSTITUTE($X18,\"{\",CHAR(160),HG$1))+1),\"\")","v":""},{"$f":"IFERROR(MID($X18,FIND(CHAR(160),SUBSTITUTE($X18,\"{\",CHAR(160),HH$1)),FIND(CHAR(160),SUBSTITUTE($X18,\"}\",CHAR(160),HH$1))-FIND(CHAR(160),SUBSTITUTE($X18,\"{\",CHAR(160),HH$1))+1),\"\")","v":""},{"$f":"IFERROR(MID($X18,FIND(CHAR(160),SUBSTITUTE($X18,\"{\",CHAR(160),HI$1)),FIND(CHAR(160),SUBSTITUTE($X18,\"}\",CHAR(160),HI$1))-FIND(CHAR(160),SUBSTITUTE($X18,\"{\",CHAR(160),HI$1))+1),\"\")","v":"{Measure:Quantity}"},{"$f":"IFERROR(MID($X18,FIND(CHAR(160),SUBSTITUTE($X18,\"{\",CHAR(160),HJ$1)),FIND(CHAR(160),SUBSTITUTE($X18,\"}\",CHAR(160),HJ$1))-FIND(CHAR(160),SUBSTITUTE($X18,\"{\",CHAR(160),HJ$1))+1),\"\")","v":""},{"$f":"IFERROR(MID($Y18,FIND(CHAR(160),SUBSTITUTE($Y18,\"{\",CHAR(160),HK$1)),FIND(CHAR(160),SUBSTITUTE($Y18,\"}\",CHAR(160),HK$1))-FIND(CHAR(160),SUBSTITUTE($Y18,\"{\",CHAR(160),HK$1))+1),\"\")","v":""},{"$f":"IFERROR(MID($Y18,FIND(CHAR(160),SUBSTITUTE($Y18,\"{\",CHAR(160),HL$1)),FIND(CHAR(160),SUBSTITUTE($Y18,\"}\",CHAR(160),HL$1))-FIND(CHAR(160),SUBSTITUTE($Y18,\"{\",CHAR(160),HL$1))+1),\"\")","v":""},{"$f":"IFERROR(MID($Y18,FIND(CHAR(160),SUBSTITUTE($Y18,\"{\",CHAR(160),HM$1)),FIND(CHAR(160),SUBSTITUTE($Y18,\"}\",CHAR(160),HM$1))-FIND(CHAR(160),SUBSTITUTE($Y18,\"{\",CHAR(160),HM$1))+1),\"\")","v":""},{"$f":"IFERROR(MID($Y18,FIND(CHAR(160),SUBSTITUTE($Y18,\"{\",CHAR(160),HN$1)),FIND(CHAR(160),SUBSTITUTE($Y18,\"}\",CHAR(160),HN$1))-FIND(CHAR(160),SUBSTITUTE($Y18,\"{\",CHAR(160),HN$1))+1),\"\")","v":""},{"$f":"IFERROR(MID($Y18,FIND(CHAR(160),SUBSTITUTE($Y18,\"{\",CHAR(160),HO$1)),FIND(CHAR(160),SUBSTITUTE($Y18,\"}\",CHAR(160),HO$1))-FIND(CHAR(160),SUBSTITUTE($Y18,\"{\",CHAR(160),HO$1))+1),\"\")","v":""},{"$f":"IFERROR(MID($Y18,FIND(CHAR(160),SUBSTITUTE($Y18,\"{\",CHAR(160),HP$1)),FIND(CHAR(160),SUBSTITUTE($Y18,\"}\",CHAR(160),HP$1))-FIND(CHAR(160),SUBSTITUTE($Y18,\"{\",CHAR(160),HP$1))+1),\"\")","v":""},{"$f":"IFERROR(MID($Y18,FIND(CHAR(160),SUBSTITUTE($Y18,\"{\",CHAR(160),HQ$1)),FIND(CHAR(160),SUBSTITUTE($Y18,\"}\",CHAR(160),HQ$1))-FIND(CHAR(160),SUBSTITUTE($Y18,\"{\",CHAR(160),HQ$1))+1),\"\")","v":""},{"$f":"IFERROR(MID($Y18,FIND(CHAR(160),SUBSTITUTE($Y18,\"{\",CHAR(160),HR$1)),FIND(CHAR(160),SUBSTITUTE($Y18,\"}\",CHAR(160),HR$1))-FIND(CHAR(160),SUBSTITUTE($Y18,\"{\",CHAR(160),HR$1))+1),\"\")","v":""},{"$f":"IFERROR(MID($Y18,FIND(CHAR(160),SUBSTITUTE($Y18,\"{\",CHAR(160),HS$1)),FIND(CHAR(160),SUBSTITUTE($Y18,\"}\",CHAR(160),HS$1))-FIND(CHAR(160),SUBSTITUTE($Y18,\"{\",CHAR(160),HS$1))+1),\"\")","v":"{Measure:Quantity}"},{"$f":"IFERROR(MID($Y18,FIND(CHAR(160),SUBSTITUTE($Y18,\"{\",CHAR(160),HT$1)),FIND(CHAR(160),SUBSTITUTE($Y18,\"}\",CHAR(160),HT$1))-FIND(CHAR(160),SUBSTITUTE($Y18,\"{\",CHAR(160),HT$1))+1),\"\")","v":""},{"$f":"IFERROR(MID($Z18,FIND(CHAR(160),SUBSTITUTE($Z18,\"{\",CHAR(160),HU$1)),FIND(CHAR(160),SUBSTITUTE($Z18,\"}\",CHAR(160),HU$1))-FIND(CHAR(160),SUBSTITUTE($Z18,\"{\",CHAR(160),HU$1))+1),\"\")","v":""},{"$f":"IFERROR(MID($Z18,FIND(CHAR(160),SUBSTITUTE($Z18,\"{\",CHAR(160),HV$1)),FIND(CHAR(160),SUBSTITUTE($Z18,\"}\",CHAR(160),HV$1))-FIND(CHAR(160),SUBSTITUTE($Z18,\"{\",CHAR(160),HV$1))+1),\"\")","v":""},{"$f":"IFERROR(MID($Z18,FIND(CHAR(160),SUBSTITUTE($Z18,\"{\",CHAR(160),HW$1)),FIND(CHAR(160),SUBSTITUTE($Z18,\"}\",CHAR(160),HW$1))-FIND(CHAR(160),SUBSTITUTE($Z18,\"{\",CHAR(160),HW$1))+1),\"\")","v":""},{"$f":"IFERROR(MID($Z18,FIND(CHAR(160),SUBSTITUTE($Z18,\"{\",CHAR(160),HX$1)),FIND(CHAR(160),SUBSTITUTE($Z18,\"}\",CHAR(160),HX$1))-FIND(CHAR(160),SUBSTITUTE($Z18,\"{\",CHAR(160),HX$1))+1),\"\")","v":""},{"$f":"IFERROR(MID($Z18,FIND(CHAR(160),SUBSTITUTE($Z18,\"{\",CHAR(160),HY$1)),FIND(CHAR(160),SUBSTITUTE($Z18,\"}\",CHAR(160),HY$1))-FIND(CHAR(160),SUBSTITUTE($Z18,\"{\",CHAR(160),HY$1))+1),\"\")","v":""},{"$f":"IFERROR(MID($Z18,FIND(CHAR(160),SUBSTITUTE($Z18,\"{\",CHAR(160),HZ$1)),FIND(CHAR(160),SUBSTITUTE($Z18,\"}\",CHAR(160),HZ$1))-FIND(CHAR(160),SUBSTITUTE($Z18,\"{\",CHAR(160),HZ$1))+1),\"\")","v":""},{"$f":"IFERROR(MID($Z18,FIND(CHAR(160),SUBSTITUTE($Z18,\"{\",CHAR(160),IA$1)),FIND(CHAR(160),SUBSTITUTE($Z18,\"}\",CHAR(160),IA$1))-FIND(CHAR(160),SUBSTITUTE($Z18,\"{\",CHAR(160),IA$1))+1),\"\")","v":""},{"$f":"IFERROR(MID($Z18,FIND(CHAR(160),SUBSTITUTE($Z18,\"{\",CHAR(160),IB$1)),FIND(CHAR(160),SUBSTITUTE($Z18,\"}\",CHAR(160),IB$1))-FIND(CHAR(160),SUBSTITUTE($Z18,\"{\",CHAR(160),IB$1))+1),\"\")","v":""},{"$f":"IFERROR(MID($Z18,FIND(CHAR(160),SUBSTITUTE($Z18,\"{\",CHAR(160),IC$1)),FIND(CHAR(160),SUBSTITUTE($Z18,\"}\",CHAR(160),IC$1))-FIND(CHAR(160),SUBSTITUTE($Z18,\"{\",CHAR(160),IC$1))+1),\"\")","v":"{Measure:Quantity}"},{"$f":"IFERROR(MID($Z18,FIND(CHAR(160),SUBSTITUTE($Z18,\"{\",CHAR(160),ID$1)),FIND(CHAR(160),SUBSTITUTE($Z18,\"}\",CHAR(160),ID$1))-FIND(CHAR(160),SUBSTITUTE($Z18,\"{\",CHAR(160),ID$1))+1),\"\")","v":""},{"$f":"IFERROR(MID($AA18,FIND(CHAR(160),SUBSTITUTE($AA18,\"{\",CHAR(160),IE$1)),FIND(CHAR(160),SUBSTITUTE($AA18,\"}\",CHAR(160),IE$1))-FIND(CHAR(160),SUBSTITUTE($AA18,\"{\",CHAR(160),IE$1))+1),\"\")","v":""},{"$f":"IFERROR(MID($AA18,FIND(CHAR(160),SUBSTITUTE($AA18,\"{\",CHAR(160),IF$1)),FIND(CHAR(160),SUBSTITUTE($AA18,\"}\",CHAR(160),IF$1))-FIND(CHAR(160),SUBSTITUTE($AA18,\"{\",CHAR(160),IF$1))+1),\"\")","v":""},{"$f":"IFERROR(MID($AA18,FIND(CHAR(160),SUBSTITUTE($AA18,\"{\",CHAR(160),IG$1)),FIND(CHAR(160),SUBSTITUTE($AA18,\"}\",CHAR(160),IG$1))-FIND(CHAR(160),SUBSTITUTE($AA18,\"{\",CHAR(160),IG$1))+1),\"\")","v":""},{"$f":"IFERROR(MID($AA18,FIND(CHAR(160),SUBSTITUTE($AA18,\"{\",CHAR(160),IH$1)),FIND(CHAR(160),SUBSTITUTE($AA18,\"}\",CHAR(160),IH$1))-FIND(CHAR(160),SUBSTITUTE($AA18,\"{\",CHAR(160),IH$1))+1),\"\")","v":""},{"$f":"IFERROR(MID($AA18,FIND(CHAR(160),SUBSTITUTE($AA18,\"{\",CHAR(160),II$1)),FIND(CHAR(160),SUBSTITUTE($AA18,\"}\",CHAR(160),II$1))-FIND(CHAR(160),SUBSTITUTE($AA18,\"{\",CHAR(160),II$1))+1),\"\")","v":""},{"$f":"IFERROR(MID($AA18,FIND(CHAR(160),SUBSTITUTE($AA18,\"{\",CHAR(160),IJ$1)),FIND(CHAR(160),SUBSTITUTE($AA18,\"}\",CHAR(160),IJ$1))-FIND(CHAR(160),SUBSTITUTE($AA18,\"{\",CHAR(160),IJ$1))+1),\"\")","v":""},{"$f":"IFERROR(MID($AA18,FIND(CHAR(160),SUBSTITUTE($AA18,\"{\",CHAR(160),IK$1)),FIND(CHAR(160),SUBSTITUTE($AA18,\"}\",CHAR(160),IK$1))-FIND(CHAR(160),SUBSTITUTE($AA18,\"{\",CHAR(160),IK$1))+1),\"\")","v":""},{"$f":"IFERROR(MID($AA18,FIND(CHAR(160),SUBSTITUTE($AA18,\"{\",CHAR(160),IL$1)),FIND(CHAR(160),SUBSTITUTE($AA18,\"}\",CHAR(160),IL$1))-FIND(CHAR(160),SUBSTITUTE($AA18,\"{\",CHAR(160),IL$1))+1),\"\")","v":""},{"$f":"IFERROR(MID($AA18,FIND(CHAR(160),SUBSTITUTE($AA18,\"{\",CHAR(160),IM$1)),FIND(CHAR(160),SUBSTITUTE($AA18,\"}\",CHAR(160),IM$1))-FIND(CHAR(160),SUBSTITUTE($AA18,\"{\",CHAR(160),IM$1))+1),\"\")","v":""},{"$f":"IFERROR(MID($AA18,FIND(CHAR(160),SUBSTITUTE($AA18,\"{\",CHAR(160),IN$1)),FIND(CHAR(160),SUBSTITUTE($AA18,\"}\",CHAR(160),IN$1))-FIND(CHAR(160),SUBSTITUTE($AA18,\"{\",CHAR(160),IN$1))+1),\"\")","v":""},{"$f":"IFERROR(MID($AB18,FIND(CHAR(160),SUBSTITUTE($AB18,\"{\",CHAR(160),IO$1)),FIND(CHAR(160),SUBSTITUTE($AB18,\"}\",CHAR(160),IO$1))-FIND(CHAR(160),SUBSTITUTE($AB18,\"{\",CHAR(160),IO$1))+1),\"\")","v":""},{"$f":"IFERROR(MID($AB18,FIND(CHAR(160),SUBSTITUTE($AB18,\"{\",CHAR(160),IP$1)),FIND(CHAR(160),SUBSTITUTE($AB18,\"}\",CHAR(160),IP$1))-FIND(CHAR(160),SUBSTITUTE($AB18,\"{\",CHAR(160),IP$1))+1),\"\")","v":""},{"$f":"IFERROR(MID($AB18,FIND(CHAR(160),SUBSTITUTE($AB18,\"{\",CHAR(160),IQ$1)),FIND(CHAR(160),SUBSTITUTE($AB18,\"}\",CHAR(160),IQ$1))-FIND(CHAR(160),SUBSTITUTE($AB18,\"{\",CHAR(160),IQ$1))+1),\"\")","v":""},{"$f":"IFERROR(MID($AB18,FIND(CHAR(160),SUBSTITUTE($AB18,\"{\",CHAR(160),IR$1)),FIND(CHAR(160),SUBSTITUTE($AB18,\"}\",CHAR(160),IR$1))-FIND(CHAR(160),SUBSTITUTE($AB18,\"{\",CHAR(160),IR$1))+1),\"\")","v":""},{"$f":"IFERROR(MID($AB18,FIND(CHAR(160),SUBSTITUTE($AB18,\"{\",CHAR(160),IS$1)),FIND(CHAR(160),SUBSTITUTE($AB18,\"}\",CHAR(160),IS$1))-FIND(CHAR(160),SUBSTITUTE($AB18,\"{\",CHAR(160),IS$1))+1),\"\")","v":""},{"$f":"IFERROR(MID($AB18,FIND(CHAR(160),SUBSTITUTE($AB18,\"{\",CHAR(160),IT$1)),FIND(CHAR(160),SUBSTITUTE($AB18,\"}\",CHAR(160),IT$1))-FIND(CHAR(160),SUBSTITUTE($AB18,\"{\",CHAR(160),IT$1))+1),\"\")","v":""},{"$f":"IFERROR(MID($AB18,FIND(CHAR(160),SUBSTITUTE($AB18,\"{\",CHAR(160),IU$1)),FIND(CHAR(160),SUBSTITUTE($AB18,\"}\",CHAR(160),IU$1))-FIND(CHAR(160),SUBSTITUTE($AB18,\"{\",CHAR(160),IU$1))+1),\"\")","v":""},{"$f":"IFERROR(MID($AB18,FIND(CHAR(160),SUBSTITUTE($AB18,\"{\",CHAR(160),IV$1)),FIND(CHAR(160),SUBSTITUTE($AB18,\"}\",CHAR(160),IV$1))-FIND(CHAR(160),SUBSTITUTE($AB18,\"{\",CHAR(160),IV$1))+1),\"\")","v":""},{"$f":"IFERROR(MID($AB18,FIND(CHAR(160),SUBSTITUTE($AB18,\"{\",CHAR(160),IW$1)),FIND(CHAR(160),SUBSTITUTE($AB18,\"}\",CHAR(160),IW$1))-FIND(CHAR(160),SUBSTITUTE($AB18,\"{\",CHAR(160),IW$1))+1),\"\")","v":""},{"$f":"IFERROR(MID($AB18,FIND(CHAR(160),SUBSTITUTE($AB18,\"{\",CHAR(160),IX$1)),FIND(CHAR(160),SUBSTITUTE($AB18,\"}\",CHAR(160),IX$1))-FIND(CHAR(160),SUBSTITUTE($AB18,\"{\",CHAR(160),IX$1))+1),\"\")","v":""},null,{"$f":"10-COUNTIF(DU18:ED18,\"\")","v":3}]
["Appliance Rebate","Heat Pump Water Heater - Mail-In","HPWHM","2021-07-01","2022-06-30","Per Measure",1021,0,"Calculated","{Measure:Quantity}*if({Retail Price}<{Rebate Level},{Retail Price},{Rebate Level})",850,"2021-07-01","2022-06-30","Calculated","{Measure:Quantity} * 738",null,null,null,null,null,"({Measure:Quantity} * .129)","({Measure:Quantity} * .080)","({Measure:Quantity} * 0.26 * 10)","({Measure:Quantity} * 0.9)","({Measure:Quantity} * 4.34)","({Measure:Quantity} *0.13)",null,null,"2020-07-01","2022-06-30",13,1,1,0.35799999999999998,0.308,0.17899999999999999,0.155,1,1,1,0.08,0,null,{"$f":"DU19","v":"{Measure:Quantity}"},1,{"$f":"DV19","v":"{Retail Price}"},1300,{"$f":"DW19","v":"{Rebate Level}"},1,{"$f":"DX19","v":""},null,{"$f":"DY19","v":""},null,{"$f":"DZ19","v":""},null,{"$f":"EA19","v":""},null,{"$f":"EB19","v":""},null,{"$f":"EC19","v":""},null,{"$f":"ED19","v":""},null,{"$f":"AS19 * 738","v":738},0,0,0,0,0,{"$f":"(AS19 * 0.129)","v":0.129},{"$f":"(AS19 * 0.08)","v":0.08},{"$f":"(AS19 * 0.26 * 10)","v":2.6},{"$f":"(AS19 * 0.9)","v":0.9},{"$f":"(AS19 * 4.34)","v":4.34},{"$f":"(AS19 *0.13)","v":0.13},0,0,null,"Res","Default DR",{"$f":"Benefits(BL19,BR19,BS19,BT19,BU19,BV19,BW19,BX19,BY19,BZ19,AE19,AH19,AI19,AJ19,AK19,AL19,AM19,AN19,AO19,AP19,CA19,CB19)","v":887.14134793483663},565.98695473927182,46.62566843473823,1637.0746028179831,56.85868278198982,472.80577778783635,0,0,0,{"$f":"SUMPRODUCT(CC19:CK19,--(CC19:CK19>0))","v":3666.4930344966556},{"$f":"-SUMPRODUCT(CC19:CK19,--(CC19:CK19<0))","v":0},null,{"$f":"1021","v":1021},null,null,{"$f":"CM19+CO19","v":1021},{"$f":"IF(NetOrGross=\"Net\",(1-AO19+AP19),1)","v":1},{"$f":"(SUMPRODUCT(CC19:CJ19,--(CC19:CJ19>0))+CN19)*CS19/((-SUMPRODUCT(CC19:CJ19,--(CC19:CJ19<0))+MAX(CO19,CV19)+CP19+CQ19)*CS19+IF(FRIncentives=\"Yes\",CV19*(1-CS19),0))","v":3.5910803472053434},1,{"$f":"AS19*IF(AU19<AW19,AU19,AW19)","v":1},null,"RGGI","y",null,{"$f":"IF(F19=\"Manual Entry\",\"Manual\",IF(G19=\"\",0,\"X=\"&SUBSTITUTE(SUBSTITUTE(SUBSTITUTE(SUBSTITUTE(SUBSTITUTE(SUBSTITUTE(SUBSTITUTE(SUBSTITUTE(SUBSTITUTE(SUBSTITUTE(SUBSTITUTE(SUBSTITUTE(G19,$ED19,$ED$2&ROW($ED19)),$EC19,$EC$2&ROW($EC19)),$EB19,$EB$2&ROW($EB19)),$EA19,$EA$2&ROW($EA19)),$DZ19,$DZ$2&ROW($DZ19)),$DY19,$DY$2&ROW($DY19)),$DX19,$DX$2&ROW($DX19)),$DW19,$DW$2&ROW($DW19)),$DV19,$DV$2&ROW($DV19)),$DU19,$DU$2&ROW($DU19)),$DT19,$DT$2&ROW($DT19)),$DS19,$DS$2&ROW($DS19))))","v":"X=1021"},{"$f":"IF(I19=\"Manual Entry\",\"Manual\",IF(J19=\"\",0,\"X=\"&SUBSTITUTE(SUBSTITUTE(SUBSTITUTE(SUBSTITUTE(SUBSTITUTE(SUBSTITUTE(SUBSTITUTE(SUBSTITUTE(SUBSTITUTE(SUBSTITUTE(SUBSTITUTE(SUBSTITUTE(J19,$ED19,$ED$2&ROW($ED19)),$EC19,$EC$2&ROW($EC19)),$EB19,$EB$2&ROW($EB19)),$EA19,$EA$2&ROW($EA19)),$DZ19,$DZ$2&ROW($DZ19)),$DY19,$DY$2&ROW($DY19)),$DX19,$DX$2&ROW($DX19)),$DW19,$DW$2&ROW($DW19)),$DV19,$DV$2&ROW($DV19)),$DU19,$DU$2&ROW($DU19)),$DT19,$DT$2&ROW($DT19)),$DS19,$DS$2&ROW($DS19))))","v":"X=AS19*if(AU19<AW19,AU19,AW19)"},{"$f":"IF(O19=\"\",0,\"X=\"&SUBSTITUTE(SUBSTITUTE(SUBSTITUTE(SUBSTITUTE(SUBSTITUTE(SUBSTITUTE(SUBSTITUTE(SUBSTITUTE(SUBSTITUTE(SUBSTITUTE(SUBSTITUTE(SUBSTITUTE(O19,$ED19,$ED$2&ROW($ED19)),$EC19,$EC$2&ROW($EC19)),$EB19,$EB$2&ROW($EB19)),$EA19,$EA$2&ROW($EA19)),$DZ19,$DZ$2&ROW($DZ19)),$DY19,$DY$2&ROW($DY19)),$DX19,$DX$2&ROW($DX19)),$DW19,$DW$2&ROW($DW19)),$DV19,$DV$2&ROW($DV19)),$DU19,$DU$2&ROW($DU19)),$DT19,$DT$2&ROW($DT19)),$DS19,$DS$2&ROW($DS19)))","v":"X=AS19 * 738"},{"$f":"IF(P19=\"\",0,\"X=\"&SUBSTITUTE(SUBSTITUTE(SUBSTITUTE(SUBSTITUTE(SUBSTITUTE(SUBSTITUTE(SUBSTITUTE(SUBSTITUTE(SUBSTITUTE(SUBSTITUTE(SUBSTITUTE(SUBSTITUTE(P19,$ED19,$ED$2&ROW($ED19)),$EC19,$EC$2&ROW($EC19)),$EB19,$EB$2&ROW($EB19)),$EA19,$EA$2&ROW($EA19)),$DZ19,$DZ$2&ROW($DZ19)),$DY19,$DY$2&ROW($DY19)),$DX19,$DX$2&ROW($DX19)),$DW19,$DW$2&ROW($DW19)),$DV19,$DV$2&ROW($DV19)),$DU19,$DU$2&ROW($DU19)),$DT19,$DT$2&ROW($DT19)),$DS19,$DS$2&ROW($DS19)))","v":0},{"$f":"IF(Q19=\"\",0,\"X=\"&SUBSTITUTE(SUBSTITUTE(SUBSTITUTE(SUBSTITUTE(SUBSTITUTE(SUBSTITUTE(SUBSTITUTE(SUBSTITUTE(SUBSTITUTE(SUBSTITUTE(SUBSTITUTE(SUBSTITUTE(Q19,$ED19,$ED$2&ROW($ED19)),$EC19,$EC$2&ROW($EC19)),$EB19,$EB$2&ROW($EB19)),$EA19,$EA$2&ROW($EA19)),$DZ19,$DZ$2&ROW($DZ19)),$DY19,$DY$2&ROW($DY19)),$DX19,$DX$2&ROW($DX19)),$DW19,$DW$2&ROW($DW19)),$DV19,$DV$2&ROW($DV19)),$DU19,$DU$2&ROW($DU19)),$DT19,$DT$2&ROW($DT19)),$DS19,$DS$2&ROW($DS19)))","v":0},{"$f":"IF(R19=\"\",0,\"X=\"&SUBSTITUTE(SUBSTITUTE(SUBSTITUTE(SUBSTITUTE(SUBSTITUTE(SUBSTITUTE(SUBSTITUTE(SUBSTITUTE(SUBSTITUTE(SUBSTITUTE(SUBSTITUTE(SUBSTITUTE(R19,$ED19,$ED$2&ROW($ED19)),$EC19,$EC$2&ROW($EC19)),$EB19,$EB$2&ROW($EB19)),$EA19,$EA$2&ROW($EA19)),$DZ19,$DZ$2&ROW($DZ19)),$DY19,$DY$2&ROW($DY19)),$DX19,$DX$2&ROW($DX19)),$DW19,$DW$2&ROW($DW19)),$DV19,$DV$2&ROW($DV19)),$DU19,$DU$2&ROW($DU19)),$DT19,$DT$2&ROW($DT19)),$DS19,$DS$2&ROW($DS19)))","v":0},{"$f":"IF(S19=\"\",0,\"X=\"&SUBSTITUTE(SUBSTITUTE(SUBSTITUTE(SUBSTITUTE(SUBSTITUTE(SUBSTITUTE(SUBSTITUTE(SUBSTITUTE(SUBSTITUTE(SUBSTITUTE(SUBSTITUTE(SUBSTITUTE(S19,$ED19,$ED$2&ROW($ED19)),$EC19,$EC$2&ROW($EC19)),$EB19,$EB$2&ROW($EB19)),$EA19,$EA$2&ROW($EA19)),$DZ19,$DZ$2&ROW($DZ19)),$DY19,$DY$2&ROW($DY19)),$DX19,$DX$2&ROW($DX19)),$DW19,$DW$2&ROW($DW19)),$DV19,$DV$2&ROW($DV19)),$DU19,$DU$2&ROW($DU19)),$DT19,$DT$2&ROW($DT19)),$DS19,$DS$2&ROW($DS19)))","v":0},{"$f":"IF(T19=\"\",0,\"X=\"&SUBSTITUTE(SUBSTITUTE(SUBSTITUTE(SUBSTITUTE(SUBSTITUTE(SUBSTITUTE(SUBSTITUTE(SUBSTITUTE(SUBSTITUTE(SUBSTITUTE(SUBSTITUTE(SUBSTITUTE(T19,$ED19,$ED$2&ROW($ED19)),$EC19,$EC$2&ROW($EC19)),$EB19,$EB$2&ROW($EB19)),$EA19,$EA$2&ROW($EA19)),$DZ19,$DZ$2&ROW($DZ19)),$DY19,$DY$2&ROW($DY19)),$DX19,$DX$2&ROW($DX19)),$DW19,$DW$2&ROW($DW19)),$DV19,$DV$2&ROW($DV19)),$DU19,$DU$2&ROW($DU19)),$DT19,$DT$2&ROW($DT19)),$DS19,$DS$2&ROW($DS19)))","v":0},{"$f":"IF(U19=\"\",0,\"X=\"&SUBSTITUTE(SUBSTITUTE(SUBSTITUTE(SUBSTITUTE(SUBSTITUTE(SUBSTITUTE(SUBSTITUTE(SUBSTITUTE(SUBSTITUTE(SUBSTITUTE(SUBSTITUTE(SUBSTITUTE(U19,$ED19,$ED$2&ROW($ED19)),$EC19,$EC$2&ROW($EC19)),$EB19,$EB$2&ROW($EB19)),$EA19,$EA$2&ROW($EA19)),$DZ19,$DZ$2&ROW($DZ19)),$DY19,$DY$2&ROW($DY19)),$DX19,$DX$2&ROW($DX19)),$DW19,$DW$2&ROW($DW19)),$DV19,$DV$2&ROW($DV19)),$DU19,$DU$2&ROW($DU19)),$DT19,$DT$2&ROW($DT19)),$DS19,$DS$2&ROW($DS19)))","v":"X=(AS19 * .129)"},{"$f":"IF(V19=\"\",0,\"X=\"&SUBSTITUTE(SUBSTITUTE(SUBSTITUTE(SUBSTITUTE(SUBSTITUTE(SUBSTITUTE(SUBSTITUTE(SUBSTITUTE(SUBSTITUTE(SUBSTITUTE(SUBSTITUTE(SUBSTITUTE(V19,$ED19,$ED$2&ROW($ED19)),$EC19,$EC$2&ROW($EC19)),$EB19,$EB$2&ROW($EB19)),$EA19,$EA$2&ROW($EA19)),$DZ19,$DZ$2&ROW($DZ19)),$DY19,$DY$2&ROW($DY19)),$DX19,$DX$2&ROW($DX19)),$DW19,$DW$2&ROW($DW19)),$DV19,$DV$2&ROW($DV19)),$DU19,$DU$2&ROW($DU19)),$DT19,$DT$2&ROW($DT19)),$DS19,$DS$2&ROW($DS19)))","v":"X=(AS19 * .080)"},{"$f":"IF(W19=\"\",0,\"X=\"&SUBSTITUTE(SUBSTITUTE(SUBSTITUTE(SUBSTITUTE(SUBSTITUTE(SUBSTITUTE(SUBSTITUTE(SUBSTITUTE(SUBSTITUTE(SUBSTITUTE(SUBSTITUTE(SUBSTITUTE(W19,$ED19,$ED$2&ROW($ED19)),$EC19,$EC$2&ROW($EC19)),$EB19,$EB$2&ROW($EB19)),$EA19,$EA$2&ROW($EA19)),$DZ19,$DZ$2&ROW($DZ19)),$DY19,$DY$2&ROW($DY19)),$DX19,$DX$2&ROW($DX19)),$DW19,$DW$2&ROW($DW19)),$DV19,$DV$2&ROW($DV19)),$DU19,$DU$2&ROW($DU19)),$DT19,$DT$2&ROW($DT19)),$DS19,$DS$2&ROW($DS19)))","v":"X=(AS19 * 0.26 * 10)"},{"$f":"IF(X19=\"\",0,\"X=\"&SUBSTITUTE(SUBSTITUTE(SUBSTITUTE(SUBSTITUTE(SUBSTITUTE(SUBSTITUTE(SUBSTITUTE(SUBSTITUTE(SUBSTITUTE(SUBSTITUTE(SUBSTITUTE(SUBSTITUTE(X19,$ED19,$ED$2&ROW($ED19)),$EC19,$EC$2&ROW($EC19)),$EB19,$EB$2&ROW($EB19)),$EA19,$EA$2&ROW($EA19)),$DZ19,$DZ$2&ROW($DZ19)),$DY19,$DY$2&ROW($DY19)),$DX19,$DX$2&ROW($DX19)),$DW19,$DW$2&ROW($DW19)),$DV19,$DV$2&ROW($DV19)),$DU19,$DU$2&ROW($DU19)),$DT19,$DT$2&ROW($DT19)),$DS19,$DS$2&ROW($DS19)))","v":"X=(AS19 * 0.9)"},{"$f":"IF(Y19=\"\",0,\"X=\"&SUBSTITUTE(SUBSTITUTE(SUBSTITUTE(SUBSTITUTE(SUBSTITUTE(SUBSTITUTE(SUBSTITUTE(SUBSTITUTE(SUBSTITUTE(SUBSTITUTE(SUBSTITUTE(SUBSTITUTE(Y19,$ED19,$ED$2&ROW($ED19)),$EC19,$EC$2&ROW($EC19)),$EB19,$EB$2&ROW($EB19)),$EA19,$EA$2&ROW($EA19)),$DZ19,$DZ$2&ROW($DZ19)),$DY19,$DY$2&ROW($DY19)),$DX19,$DX$2&ROW($DX19)),$DW19,$DW$2&ROW($DW19)),$DV19,$DV$2&ROW($DV19)),$DU19,$DU$2&ROW($DU19)),$DT19,$DT$2&ROW($DT19)),$DS19,$DS$2&ROW($DS19)))","v":"X=(AS19 * 4.34)"},{"$f":"IF(Z19=\"\",0,\"X=\"&SUBSTITUTE(SUBSTITUTE(SUBSTITUTE(SUBSTITUTE(SUBSTITUTE(SUBSTITUTE(SUBSTITUTE(SUBSTITUTE(SUBSTITUTE(SUBSTITUTE(SUBSTITUTE(SUBSTITUTE(Z19,$ED19,$ED$2&ROW($ED19)),$EC19,$EC$2&ROW($EC19)),$EB19,$EB$2&ROW($EB19)),$EA19,$EA$2&ROW($EA19)),$DZ19,$DZ$2&ROW($DZ19)),$DY19,$DY$2&ROW($DY19)),$DX19,$DX$2&ROW($DX19)),$DW19,$DW$2&ROW($DW19)),$DV19,$DV$2&ROW($DV19)),$DU19,$DU$2&ROW($DU19)),$DT19,$DT$2&ROW($DT19)),$DS19,$DS$2&ROW($DS19)))","v":"X=(AS19 *0.13)"},{"$f":"IF(AA19=\"\",0,\"X=\"&SUBSTITUTE(SUBSTITUTE(SUBSTITUTE(SUBSTITUTE(SUBSTITUTE(SUBSTITUTE(SUBSTITUTE(SUBSTITUTE(SUBSTITUTE(SUBSTITUTE(SUBSTITUTE(SUBSTITUTE(AA19,$ED19,$ED$2&ROW($ED19)),$EC19,$EC$2&ROW($EC19)),$EB19,$EB$2&ROW($EB19)),$EA19,$EA$2&ROW($EA19)),$DZ19,$DZ$2&ROW($DZ19)),$DY19,$DY$2&ROW($DY19)),$DX19,$DX$2&ROW($DX19)),$DW19,$DW$2&ROW($DW19)),$DV19,$DV$2&ROW($DV19)),$DU19,$DU$2&ROW($DU19)),$DT19,$DT$2&ROW($DT19)),$DS19,$DS$2&ROW($DS19)))","v":0},{"$f":"IF(AB19=\"\",0,\"X=\"&SUBSTITUTE(SUBSTITUTE(SUBSTITUTE(SUBSTITUTE(SUBSTITUTE(SUBSTITUTE(SUBSTITUTE(SUBSTITUTE(SUBSTITUTE(SUBSTITUTE(SUBSTITUTE(SUBSTITUTE(AB19,$ED19,$ED$2&ROW($ED19)),$EC19,$EC$2&ROW($EC19)),$EB19,$EB$2&ROW($EB19)),$EA19,$EA$2&ROW($EA19)),$DZ19,$DZ$2&ROW($DZ19)),$DY19,$DY$2&ROW($DY19)),$DX19,$DX$2&ROW($DX19)),$DW19,$DW$2&ROW($DW19)),$DV19,$DV$2&ROW($DV19)),$DU19,$DU$2&ROW($DU19)),$DT19,$DT$2&ROW($DT19)),$DS19,$DS$2&ROW($DS19)))","v":0},null,null,"{Factor:WinterCF}","{Factor:SummerCF}",{"$f":"IFERROR(INDEX($EG19:$IV19,MATCH(0,COUNTIF($DR19:DT19,$EG19:$IV19),0)),\"\")","v":"{Measure:Quantity}"},{"$f":"IFERROR(INDEX($EG19:$IV19,MATCH(0,COUNTIF($DR19:DU19,$EG19:$IV19),0)),\"\")","v":"{Retail Price}"},{"$f":"IFERROR(INDEX($EG19:$IV19,MATCH(0,COUNTIF($DR19:DV19,$EG19:$IV19),0)),\"\")","v":"{Rebate Level}"},{"$f":"IFERROR(INDEX($EG19:$IV19,MATCH(0,COUNTIF($DR19:DW19,$EG19:$IV19),0)),\"\")","v":""},{"$f":"IFERROR(INDEX($EG19:$IV19,MATCH(0,COUNTIF($DR19:DX19,$EG19:$IV19),0)),\"\")","v":""},{"$f":"IFERROR(INDEX($EG19:$IV19,MATCH(0,COUNTIF($DR19:DY19,$EG19:$IV19),0)),\"\")","v":""},{"$f":"IFERROR(INDEX($EG19:$IV19,MATCH(0,COUNTIF($DR19:DZ19,$EG19:$IV19),0)),\"\")","v":""},{"$f":"IFERROR(INDEX($EG19:$IV19,MATCH(0,COUNTIF($DR19:EA19,$EG19:$IV19),0)),\"\")","v":""},{"$f":"IFERROR(INDEX($EG19:$IV19,MATCH(0,COUNTIF($DR19:EB19,$EG19:$IV19),0)),\"\")","v":""},{"$f":"IFERROR(INDEX($EG19:$IV19,MATCH(0,COUNTIF($DR19:EC19,$EG19:$IV19),0)),\"\")","v":""},null,null,{"$f":"IFERROR(MID($G19,FIND(CHAR(160),SUBSTITUTE($G19,\"{\",CHAR(160),EG$1)),FIND(CHAR(160),SUBSTITUTE($G19,\"}\",CHAR(160),EG$1))-FIND(CHAR(160),SUBSTITUTE($G19,\"{\",CHAR(160),EG$1))+1),\"\")","v":""},{"$f":"IFERROR(MID($G19,FIND(CHAR(160),SUBSTITUTE($G19,\"{\",CHAR(160),EH$1)),FIND(CHAR(160),SUBSTITUTE($G19,\"}\",CHAR(160),EH$1))-FIND(CHAR(160),SUBSTITUTE($G19,\"{\",CHAR(160),EH$1))+1),\"\")","v":""},{"$f":"IFERROR(MID($G19,FIND(CHAR(160),SUBSTITUTE($G19,\"{\",CHAR(160),EI$1)),FIND(CHAR(160),SUBSTITUTE($G19,\"}\",CHAR(160),EI$1))-FIND(CHAR(160),SUBSTITUTE($G19,\"{\",CHAR(160),EI$1))+1),\"\")","v":""},{"$f":"IFERROR(MID($G19,FIND(CHAR(160),SUBSTITUTE($G19,\"{\",CHAR(160),EJ$1)),FIND(CHAR(160),SUBSTITUTE($G19,\"}\",CHAR(160),EJ$1))-FIND(CHAR(160),SUBSTITUTE($G19,\"{\",CHAR(160),EJ$1))+1),\"\")","v":""},{"$f":"IFERROR(MID($G19,FIND(CHAR(160),SUBSTITUTE($G19,\"{\",CHAR(160),EK$1)),FIND(CHAR(160),SUBSTITUTE($G19,\"}\",CHAR(160),EK$1))-FIND(CHAR(160),SUBSTITUTE($G19,\"{\",CHAR(160),EK$1))+1),\"\")","v":""},{"$f":"IFERROR(MID($G19,FIND(CHAR(160),SUBSTITUTE($G19,\"{\",CHAR(160),EL$1)),FIND(CHAR(160),SUBSTITUTE($G19,\"}\",CHAR(160),EL$1))-FIND(CHAR(160),SUBSTITUTE($G19,\"{\",CHAR(160),EL$1))+1),\"\")","v":""},{"$f":"IFERROR(MID($G19,FIND(CHAR(160),SUBSTITUTE($G19,\"{\",CHAR(160),EM$1)),FIND(CHAR(160),SUBSTITUTE($G19,\"}\",CHAR(160),EM$1))-FIND(CHAR(160),SUBSTITUTE($G19,\"{\",CHAR(160),EM$1))+1),\"\")","v":""},{"$f":"IFERROR(MID($G19,FIND(CHAR(160),SUBSTITUTE($G19,\"{\",CHAR(160),EN$1)),FIND(CHAR(160),SUBSTITUTE($G19,\"}\",CHAR(160),EN$1))-FIND(CHAR(160),SUBSTITUTE($G19,\"{\",CHAR(160),EN$1))+1),\"\")","v":""},{"$f":"IFERROR(MID($G19,FIND(CHAR(160),SUBSTITUTE($G19,\"{\",CHAR(160),EO$1)),FIND(CHAR(160),SUBSTITUTE($G19,\"}\",CHAR(160),EO$1))-FIND(CHAR(160),SUBSTITUTE($G19,\"{\",CHAR(160),EO$1))+1),\"\")","v":""},{"$f":"IFERROR(MID($G19,FIND(CHAR(160),SUBSTITUTE($G19,\"{\",CHAR(160),EP$1)),FIND(CHAR(160),SUBSTITUTE($G19,\"}\",CHAR(160),EP$1))-FIND(CHAR(160),SUBSTITUTE($G19,\"{\",CHAR(160),EP$1))+1),\"\")","v":""},{"$f":"IFERROR(MID($J19,FIND(CHAR(160),SUBSTITUTE($J19,\"{\",CHAR(160),EQ$1)),FIND(CHAR(160),SUBSTITUTE($J19,\"}\",CHAR(160),EQ$1))-FIND(CHAR(160),SUBSTITUTE($J19,\"{\",CHAR(160),EQ$1))+1),\"\")","v":"{Measure:Quantity}"},{"$f":"IFERROR(MID($J19,FIND(CHAR(160),SUBSTITUTE($J19,\"{\",CHAR(160),ER$1)),FIND(CHAR(160),SUBSTITUTE($J19,\"}\",CHAR(160),ER$1))-FIND(CHAR(160),SUBSTITUTE($J19,\"{\",CHAR(160),ER$1))+1),\"\")","v":"{Retail Price}"},{"$f":"IFERROR(MID($J19,FIND(CHAR(160),SUBSTITUTE($J19,\"{\",CHAR(160),ES$1)),FIND(CHAR(160),SUBSTITUTE($J19,\"}\",CHAR(160),ES$1))-FIND(CHAR(160),SUBSTITUTE($J19,\"{\",CHAR(160),ES$1))+1),\"\")","v":"{Rebate Level}"},{"$f":"IFERROR(MID($J19,FIND(CHAR(160),SUBSTITUTE($J19,\"{\",CHAR(160),ET$1)),FIND(CHAR(160),SUBSTITUTE($J19,\"}\",CHAR(160),ET$1))-FIND(CHAR(160),SUBSTITUTE($J19,\"{\",CHAR(160),ET$1))+1),\"\")","v":"{Retail Price}"},{"$f":"IFERROR(MID($J19,FIND(CHAR(160),SUBSTITUTE($J19,\"{\",CHAR(160),EU$1)),FIND(CHAR(160),SUBSTITUTE($J19,\"}\",CHAR(160),EU$1))-FIND(CHAR(160),SUBSTITUTE($J19,\"{\",CHAR(160),EU$1))+1),\"\")","v":"{Rebate Level}"},{"$f":"IFERROR(MID($J19,FIND(CHAR(160),SUBSTITUTE($J19,\"{\",CHAR(160),EV$1)),FIND(CHAR(160),SUBSTITUTE($J19,\"}\",CHAR(160),EV$1))-FIND(CHAR(160),SUBSTITUTE($J19,\"{\",CHAR(160),EV$1))+1),\"\")","v":""},{"$f":"IFERROR(MID($J19,FIND(CHAR(160),SUBSTITUTE($J19,\"{\",CHAR(160),EW$1)),FIND(CHAR(160),SUBSTITUTE($J19,\"}\",CHAR(160),EW$1))-FIND(CHAR(160),SUBSTITUTE($J19,\"{\",CHAR(160),EW$1))+1),\"\")","v":""},{"$f":"IFERROR(MID($J19,FIND(CHAR(160),SUBSTITUTE($J19,\"{\",CHAR(160),EX$1)),FIND(CHAR(160),SUBSTITUTE($J19,\"}\",CHAR(160),EX$1))-FIND(CHAR(160),SUBSTITUTE($J19,\"{\",CHAR(160),EX$1))+1),\"\")","v":""},{"$f":"IFERROR(MID($J19,FIND(CHAR(160),SUBSTITUTE($J19,\"{\",CHAR(160),EY$1)),FIND(CHAR(160),SUBSTITUTE($J19,\"}\",CHAR(160),EY$1))-FIND(CHAR(160),SUBSTITUTE($J19,\"{\",CHAR(160),EY$1))+1),\"\")","v":""},{"$f":"IFERROR(MID($J19,FIND(CHAR(160),SUBSTITUTE($J19,\"{\",CHAR(160),EZ$1)),FIND(CHAR(160),SUBSTITUTE($J19,\"}\",CHAR(160),EZ$1))-FIND(CHAR(160),SUBSTITUTE($J19,\"{\",CHAR(160),EZ$1))+1),\"\")","v":""},{"$f":"IFERROR(MID($J19,FIND(CHAR(160),SUBSTITUTE($J19,\"{\",CHAR(160),FA$1)),FIND(CHAR(160),SUBSTITUTE($J19,\"}\",CHAR(160),FA$1))-FIND(CHAR(160),SUBSTITUTE($J19,\"{\",CHAR(160),FA$1))+1),\"\")","v":"{Measure:Quantity}"},{"$f":"IFERROR(MID($J19,FIND(CHAR(160),SUBSTITUTE($J19,\"{\",CHAR(160),FB$1)),FIND(CHAR(160),SUBSTITUTE($J19,\"}\",CHAR(160),FB$1))-FIND(CHAR(160),SUBSTITUTE($J19,\"{\",CHAR(160),FB$1))+1),\"\")","v":"{Retail Price}"},{"$f":"IFERROR(MID($O19,FIND(CHAR(160),SUBSTITUTE($O19,\"{\",CHAR(160),FC$1)),FIND(CHAR(160),SUBSTITUTE($O19,\"}\",CHAR(160),FC$1))-FIND(CHAR(160),SUBSTITUTE($O19,\"{\",CHAR(160),FC$1))+1),\"\")","v":""},{"$f":"IFERROR(MID($O19,FIND(CHAR(160),SUBSTITUTE($O19,\"{\",CHAR(160),FD$1)),FIND(CHAR(160),SUBSTITUTE($O19,\"}\",CHAR(160),FD$1))-FIND(CHAR(160),SUBSTITUTE($O19,\"{\",CHAR(160),FD$1))+1),\"\")","v":""},{"$f":"IFERROR(MID($O19,FIND(CHAR(160),SUBSTITUTE($O19,\"{\",CHAR(160),FE$1)),FIND(CHAR(160),SUBSTITUTE($O19,\"}\",CHAR(160),FE$1))-FIND(CHAR(160),SUBSTITUTE($O19,\"{\",CHAR(160),FE$1))+1),\"\")","v":""},{"$f":"IFERROR(MID($O19,FIND(CHAR(160),SUBSTITUTE($O19,\"{\",CHAR(160),FF$1)),FIND(CHAR(160),SUBSTITUTE($O19,\"}\",CHAR(160),FF$1))-FIND(CHAR(160),SUBSTITUTE($O19,\"{\",CHAR(160),FF$1))+1),\"\")","v":""},{"$f":"IFERROR(MID($O19,FIND(CHAR(160),SUBSTITUTE($O19,\"{\",CHAR(160),FG$1)),FIND(CHAR(160),SUBSTITUTE($O19,\"}\",CHAR(160),FG$1))-FIND(CHAR(160),SUBSTITUTE($O19,\"{\",CHAR(160),FG$1))+1),\"\")","v":""},{"$f":"IFERROR(MID($O19,FIND(CHAR(160),SUBSTITUTE($O19,\"{\",CHAR(160),FH$1)),FIND(CHAR(160),SUBSTITUTE($O19,\"}\",CHAR(160),FH$1))-FIND(CHAR(160),SUBSTITUTE($O19,\"{\",CHAR(160),FH$1))+1),\"\")","v":""},{"$f":"IFERROR(MID($O19,FIND(CHAR(160),SUBSTITUTE($O19,\"{\",CHAR(160),FI$1)),FIND(CHAR(160),SUBSTITUTE($O19,\"}\",CHAR(160),FI$1))-FIND(CHAR(160),SUBSTITUTE($O19,\"{\",CHAR(160),FI$1))+1),\"\")","v":""},{"$f":"IFERROR(MID($O19,FIND(CHAR(160),SUBSTITUTE($O19,\"{\",CHAR(160),FJ$1)),FIND(CHAR(160),SUBSTITUTE($O19,\"}\",CHAR(160),FJ$1))-FIND(CHAR(160),SUBSTITUTE($O19,\"{\",CHAR(160),FJ$1))+1),\"\")","v":""},{"$f":"IFERROR(MID($O19,FIND(CHAR(160),SUBSTITUTE($O19,\"{\",CHAR(160),FK$1)),FIND(CHAR(160),SUBSTITUTE($O19,\"}\",CHAR(160),FK$1))-FIND(CHAR(160),SUBSTITUTE($O19,\"{\",CHAR(160),FK$1))+1),\"\")","v":"{Measure:Quantity}"},{"$f":"IFERROR(MID($O19,FIND(CHAR(160),SUBSTITUTE($O19,\"{\",CHAR(160),FL$1)),FIND(CHAR(160),SUBSTITUTE($O19,\"}\",CHAR(160),FL$1))-FIND(CHAR(160),SUBSTITUTE($O19,\"{\",CHAR(160),FL$1))+1),\"\")","v":""},{"$f":"IFERROR(MID($R19,FIND(CHAR(160),SUBSTITUTE($R19,\"{\",CHAR(160),FM$1)),FIND(CHAR(160),SUBSTITUTE($R19,\"}\",CHAR(160),FM$1))-FIND(CHAR(160),SUBSTITUTE($R19,\"{\",CHAR(160),FM$1))+1),\"\")","v":""},{"$f":"IFERROR(MID($R19,FIND(CHAR(160),SUBSTITUTE($R19,\"{\",CHAR(160),FN$1)),FIND(CHAR(160),SUBSTITUTE($R19,\"}\",CHAR(160),FN$1))-FIND(CHAR(160),SUBSTITUTE($R19,\"{\",CHAR(160),FN$1))+1),\"\")","v":""},{"$f":"IFERROR(MID($R19,FIND(CHAR(160),SUBSTITUTE($R19,\"{\",CHAR(160),FO$1)),FIND(CHAR(160),SUBSTITUTE($R19,\"}\",CHAR(160),FO$1))-FIND(CHAR(160),SUBSTITUTE($R19,\"{\",CHAR(160),FO$1))+1),\"\")","v":""},{"$f":"IFERROR(MID($R19,FIND(CHAR(160),SUBSTITUTE($R19,\"{\",CHAR(160),FP$1)),FIND(CHAR(160),SUBSTITUTE($R19,\"}\",CHAR(160),FP$1))-FIND(CHAR(160),SUBSTITUTE($R19,\"{\",CHAR(160),FP$1))+1),\"\")","v":""},{"$f":"IFERROR(MID($R19,FIND(CHAR(160),SUBSTITUTE($R19,\"{\",CHAR(160),FQ$1)),FIND(CHAR(160),SUBSTITUTE($R19,\"}\",CHAR(160),FQ$1))-FIND(CHAR(160),SUBSTITUTE($R19,\"{\",CHAR(160),FQ$1))+1),\"\")","v":""},{"$f":"IFERROR(MID($R19,FIND(CHAR(160),SUBSTITUTE($R19,\"{\",CHAR(160),FR$1)),FIND(CHAR(160),SUBSTITUTE($R19,\"}\",CHAR(160),FR$1))-FIND(CHAR(160),SUBSTITUTE($R19,\"{\",CHAR(160),FR$1))+1),\"\")","v":""},{"$f":"IFERROR(MID($R19,FIND(CHAR(160),SUBSTITUTE($R19,\"{\",CHAR(160),FS$1)),FIND(CHAR(160),SUBSTITUTE($R19,\"}\",CHAR(160),FS$1))-FIND(CHAR(160),SUBSTITUTE($R19,\"{\",CHAR(160),FS$1))+1),\"\")","v":""},{"$f":"IFERROR(MID($R19,FIND(CHAR(160),SUBSTITUTE($R19,\"{\",CHAR(160),FT$1)),FIND(CHAR(160),SUBSTITUTE($R19,\"}\",CHAR(160),FT$1))-FIND(CHAR(160),SUBSTITUTE($R19,\"{\",CHAR(160),FT$1))+1),\"\")","v":""},{"$f":"IFERROR(MID($R19,FIND(CHAR(160),SUBSTITUTE($R19,\"{\",CHAR(160),FU$1)),FIND(CHAR(160),SUBSTITUTE($R19,\"}\",CHAR(160),FU$1))-FIND(CHAR(160),SUBSTITUTE($R19,\"{\",CHAR(160),FU$1))+1),\"\")","v":""},{"$f":"IFERROR(MID($R19,FIND(CHAR(160),SUBSTITUTE($R19,\"{\",CHAR(160),FV$1)),FIND(CHAR(160),SUBSTITUTE($R19,\"}\",CHAR(160),FV$1))-FIND(CHAR(160),SUBSTITUTE($R19,\"{\",CHAR(160),FV$1))+1),\"\")","v":""},{"$f":"IFERROR(MID($U19,FIND(CHAR(160),SUBSTITUTE($U19,\"{\",CHAR(160),FW$1)),FIND(CHAR(160),SUBSTITUTE($U19,\"}\",CHAR(160),FW$1))-FIND(CHAR(160),SUBSTITUTE($U19,\"{\",CHAR(160),FW$1))+1),\"\")","v":""},{"$f":"IFERROR(MID($U19,FIND(CHAR(160),SUBSTITUTE($U19,\"{\",CHAR(160),FX$1)),FIND(CHAR(160),SUBSTITUTE($U19,\"}\",CHAR(160),FX$1))-FIND(CHAR(160),SUBSTITUTE($U19,\"{\",CHAR(160),FX$1))+1),\"\")","v":""},{"$f":"IFERROR(MID($U19,FIND(CHAR(160),SUBSTITUTE($U19,\"{\",CHAR(160),FY$1)),FIND(CHAR(160),SUBSTITUTE($U19,\"}\",CHAR(160),FY$1))-FIND(CHAR(160),SUBSTITUTE($U19,\"{\",CHAR(160),FY$1))+1),\"\")","v":""},{"$f":"IFERROR(MID($U19,FIND(CHAR(160),SUBSTITUTE($U19,\"{\",CHAR(160),FZ$1)),FIND(CHAR(160),SUBSTITUTE($U19,\"}\",CHAR(160),FZ$1))-FIND(CHAR(160),SUBSTITUTE($U19,\"{\",CHAR(160),FZ$1))+1),\"\")","v":""},{"$f":"IFERROR(MID($U19,FIND(CHAR(160),SUBSTITUTE($U19,\"{\",CHAR(160),GA$1)),FIND(CHAR(160),SUBSTITUTE($U19,\"}\",CHAR(160),GA$1))-FIND(CHAR(160),SUBSTITUTE($U19,\"{\",CHAR(160),GA$1))+1),\"\")","v":""},{"$f":"IFERROR(MID($U19,FIND(CHAR(160),SUBSTITUTE($U19,\"{\",CHAR(160),GB$1)),FIND(CHAR(160),SUBSTITUTE($U19,\"}\",CHAR(160),GB$1))-FIND(CHAR(160),SUBSTITUTE($U19,\"{\",CHAR(160),GB$1))+1),\"\")","v":""},{"$f":"IFERROR(MID($U19,FIND(CHAR(160),SUBSTITUTE($U19,\"{\",CHAR(160),GC$1)),FIND(CHAR(160),SUBSTITUTE($U19,\"}\",CHAR(160),GC$1))-FIND(CHAR(160),SUBSTITUTE($U19,\"{\",CHAR(160),GC$1))+1),\"\")","v":""},{"$f":"IFERROR(MID($U19,FIND(CHAR(160),SUBSTITUTE($U19,\"{\",CHAR(160),GD$1)),FIND(CHAR(160),SUBSTITUTE($U19,\"}\",CHAR(160),GD$1))-FIND(CHAR(160),SUBSTITUTE($U19,\"{\",CHAR(160),GD$1))+1),\"\")","v":""},{"$f":"IFERROR(MID($U19,FIND(CHAR(160),SUBSTITUTE($U19,\"{\",CHAR(160),GE$1)),FIND(CHAR(160),SUBSTITUTE($U19,\"}\",CHAR(160),GE$1))-FIND(CHAR(160),SUBSTITUTE($U19,\"{\",CHAR(160),GE$1))+1),\"\")","v":"{Measure:Quantity}"},{"$f":"IFERROR(MID($U19,FIND(CHAR(160),SUBSTITUTE($U19,\"{\",CHAR(160),GF$1)),FIND(CHAR(160),SUBSTITUTE($U19,\"}\",CHAR(160),GF$1))-FIND(CHAR(160),SUBSTITUTE($U19,\"{\",CHAR(160),GF$1))+1),\"\")","v":""},{"$f":"IFERROR(MID($V19,FIND(CHAR(160),SUBSTITUTE($V19,\"{\",CHAR(160),GG$1)),FIND(CHAR(160),SUBSTITUTE($V19,\"}\",CHAR(160),GG$1))-FIND(CHAR(160),SUBSTITUTE($V19,\"{\",CHAR(160),GG$1))+1),\"\")","v":""},{"$f":"IFERROR(MID($V19,FIND(CHAR(160),SUBSTITUTE($V19,\"{\",CHAR(160),GH$1)),FIND(CHAR(160),SUBSTITUTE($V19,\"}\",CHAR(160),GH$1))-FIND(CHAR(160),SUBSTITUTE($V19,\"{\",CHAR(160),GH$1))+1),\"\")","v":""},{"$f":"IFERROR(MID($V19,FIND(CHAR(160),SUBSTITUTE($V19,\"{\",CHAR(160),GI$1)),FIND(CHAR(160),SUBSTITUTE($V19,\"}\",CHAR(160),GI$1))-FIND(CHAR(160),SUBSTITUTE($V19,\"{\",CHAR(160),GI$1))+1),\"\")","v":""},{"$f":"IFERROR(MID($V19,FIND(CHAR(160),SUBSTITUTE($V19,\"{\",CHAR(160),GJ$1)),FIND(CHAR(160),SUBSTITUTE($V19,\"}\",CHAR(160),GJ$1))-FIND(CHAR(160),SUBSTITUTE($V19,\"{\",CHAR(160),GJ$1))+1),\"\")","v":""},{"$f":"IFERROR(MID($V19,FIND(CHAR(160),SUBSTITUTE($V19,\"{\",CHAR(160),GK$1)),FIND(CHAR(160),SUBSTITUTE($V19,\"}\",CHAR(160),GK$1))-FIND(CHAR(160),SUBSTITUTE($V19,\"{\",CHAR(160),GK$1))+1),\"\")","v":""},{"$f":"IFERROR(MID($V19,FIND(CHAR(160),SUBSTITUTE($V19,\"{\",CHAR(160),GL$1)),FIND(CHAR(160),SUBSTITUTE($V19,\"}\",CHAR(160),GL$1))-FIND(CHAR(160),SUBSTITUTE($V19,\"{\",CHAR(160),GL$1))+1),\"\")","v":""},{"$f":"IFERROR(MID($V19,FIND(CHAR(160),SUBSTITUTE($V19,\"{\",CHAR(160),GM$1)),FIND(CHAR(160),SUBSTITUTE($V19,\"}\",CHAR(160),GM$1))-FIND(CHAR(160),SUBSTITUTE($V19,\"{\",CHAR(160),GM$1))+1),\"\")","v":""},{"$f":"IFERROR(MID($V19,FIND(CHAR(160),SUBSTITUTE($V19,\"{\",CHAR(160),GN$1)),FIND(CHAR(160),SUBSTITUTE($V19,\"}\",CHAR(160),GN$1))-FIND(CHAR(160),SUBSTITUTE($V19,\"{\",CHAR(160),GN$1))+1),\"\")","v":""},{"$f":"IFERROR(MID($V19,FIND(CHAR(160),SUBSTITUTE($V19,\"{\",CHAR(160),GO$1)),FIND(CHAR(160),SUBSTITUTE($V19,\"}\",CHAR(160),GO$1))-FIND(CHAR(160),SUBSTITUTE($V19,\"{\",CHAR(160),GO$1))+1),\"\")","v":"{Measure:Quantity}"},{"$f":"IFERROR(MID($V19,FIND(CHAR(160),SUBSTITUTE($V19,\"{\",CHAR(160),GP$1)),FIND(CHAR(160),SUBSTITUTE($V19,\"}\",CHAR(160),GP$1))-FIND(CHAR(160),SUBSTITUTE($V19,\"{\",CHAR(160),GP$1))+1),\"\")","v":""},{"$f":"IFERROR(MID($W19,FIND(CHAR(160),SUBSTITUTE($W19,\"{\",CHAR(160),GQ$1)),FIND(CHAR(160),SUBSTITUTE($W19,\"}\",CHAR(160),GQ$1))-FIND(CHAR(160),SUBSTITUTE($W19,\"{\",CHAR(160),GQ$1))+1),\"\")","v":""},{"$f":"IFERROR(MID($W19,FIND(CHAR(160),SUBSTITUTE($W19,\"{\",CHAR(160),GR$1)),FIND(CHAR(160),SUBSTITUTE($W19,\"}\",CHAR(160),GR$1))-FIND(CHAR(160),SUBSTITUTE($W19,\"{\",CHAR(160),GR$1))+1),\"\")","v":""},{"$f":"IFERROR(MID($W19,FIND(CHAR(160),SUBSTITUTE($W19,\"{\",CHAR(160),GS$1)),FIND(CHAR(160),SUBSTITUTE($W19,\"}\",CHAR(160),GS$1))-FIND(CHAR(160),SUBSTITUTE($W19,\"{\",CHAR(160),GS$1))+1),\"\")","v":""},{"$f":"IFERROR(MID($W19,FIND(CHAR(160),SUBSTITUTE($W19,\"{\",CHAR(160),GT$1)),FIND(CHAR(160),SUBSTITUTE($W19,\"}\",CHAR(160),GT$1))-FIND(CHAR(160),SUBSTITUTE($W19,\"{\",CHAR(160),GT$1))+1),\"\")","v":""},{"$f":"IFERROR(MID($W19,FIND(CHAR(160),SUBSTITUTE($W19,\"{\",CHAR(160),GU$1)),FIND(CHAR(160),SUBSTITUTE($W19,\"}\",CHAR(160),GU$1))-FIND(CHAR(160),SUBSTITUTE($W19,\"{\",CHAR(160),GU$1))+1),\"\")","v":""},{"$f":"IFERROR(MID($W19,FIND(CHAR(160),SUBSTITUTE($W19,\"{\",CHAR(160),GV$1)),FIND(CHAR(160),SUBSTITUTE($W19,\"}\",CHAR(160),GV$1))-FIND(CHAR(160),SUBSTITUTE($W19,\"{\",CHAR(160),GV$1))+1),\"\")","v":""},{"$f":"IFERROR(MID($W19,FIND(CHAR(160),SUBSTITUTE($W19,\"{\",CHAR(160),GW$1)),FIND(CHAR(160),SUBSTITUTE($W19,\"}\",CHAR(160),GW$1))-FIND(CHAR(160),SUBSTITUTE($W19,\"{\",CHAR(160),GW$1))+1),\"\")","v":""},{"$f":"IFERROR(MID($W19,FIND(CHAR(160),SUBSTITUTE($W19,\"{\",CHAR(160),GX$1)),FIND(CHAR(160),SUBSTITUTE($W19,\"}\",CHAR(160),GX$1))-FIND(CHAR(160),SUBSTITUTE($W19,\"{\",CHAR(160),GX$1))+1),\"\")","v":""},{"$f":"IFERROR(MID($W19,FIND(CHAR(160),SUBSTITUTE($W19,\"{\",CHAR(160),GY$1)),FIND(CHAR(160),SUBSTITUTE($W19,\"}\",CHAR(160),GY$1))-FIND(CHAR(160),SUBSTITUTE($W19,\"{\",CHAR(160),GY$1))+1),\"\")","v":"{Measure:Quantity}"},{"$f":"IFERROR(MID($W19,FIND(CHAR(160),SUBSTITUTE($W19,\"{\",CHAR(160),GZ$1)),FIND(CHAR(160),SUBSTITUTE($W19,\"}\",CHAR(160),GZ$1))-FIND(CHAR(160),SUBSTITUTE($W19,\"{\",CHAR(160),GZ$1))+1),\"\")","v":""},{"$f":"IFERROR(MID($X19,FIND(CHAR(160),SUBSTITUTE($X19,\"{\",CHAR(160),HA$1)),FIND(CHAR(160),SUBSTITUTE($X19,\"}\",CHAR(160),HA$1))-FIND(CHAR(160),SUBSTITUTE($X19,\"{\",CHAR(160),HA$1))+1),\"\")","v":""},{"$f":"IFERROR(MID($X19,FIND(CHAR(160),SUBSTITUTE($X19,\"{\",CHAR(160),HB$1)),FIND(CHAR(160),SUBSTITUTE($X19,\"}\",CHAR(160),HB$1))-FIND(CHAR(160),SUBSTITUTE($X19,\"{\",CHAR(160),HB$1))+1),\"\")","v":""},{"$f":"IFERROR(MID($X19,FIND(CHAR(160),SUBSTITUTE($X19,\"{\",CHAR(160),HC$1)),FIND(CHAR(160),SUBSTITUTE($X19,\"}\",CHAR(160),HC$1))-FIND(CHAR(160),SUBSTITUTE($X19,\"{\",CHAR(160),HC$1))+1),\"\")","v":""},{"$f":"IFERROR(MID($X19,FIND(CHAR(160),SUBSTITUTE($X19,\"{\",CHAR(160),HD$1)),FIND(CHAR(160),SUBSTITUTE($X19,\"}\",CHAR(160),HD$1))-FIND(CHAR(160),SUBSTITUTE($X19,\"{\",CHAR(160),HD$1))+1),\"\")","v":""},{"$f":"IFERROR(MID($X19,FIND(CHAR(160),SUBSTITUTE($X19,\"{\",CHAR(160),HE$1)),FIND(CHAR(160),SUBSTITUTE($X19,\"}\",CHAR(160),HE$1))-FIND(CHAR(160),SUBSTITUTE($X19,\"{\",CHAR(160),HE$1))+1),\"\")","v":""},{"$f":"IFERROR(MID($X19,FIND(CHAR(160),SUBSTITUTE($X19,\"{\",CHAR(160),HF$1)),FIND(CHAR(160),SUBSTITUTE($X19,\"}\",CHAR(160),HF$1))-FIND(CHAR(160),SUBSTITUTE($X19,\"{\",CHAR(160),HF$1))+1),\"\")","v":""},{"$f":"IFERROR(MID($X19,FIND(CHAR(160),SUBSTITUTE($X19,\"{\",CHAR(160),HG$1)),FIND(CHAR(160),SUBSTITUTE($X19,\"}\",CHAR(160),HG$1))-FIND(CHAR(160),SUBSTITUTE($X19,\"{\",CHAR(160),HG$1))+1),\"\")","v":""},{"$f":"IFERROR(MID($X19,FIND(CHAR(160),SUBSTITUTE($X19,\"{\",CHAR(160),HH$1)),FIND(CHAR(160),SUBSTITUTE($X19,\"}\",CHAR(160),HH$1))-FIND(CHAR(160),SUBSTITUTE($X19,\"{\",CHAR(160),HH$1))+1),\"\")","v":""},{"$f":"IFERROR(MID($X19,FIND(CHAR(160),SUBSTITUTE($X19,\"{\",CHAR(160),HI$1)),FIND(CHAR(160),SUBSTITUTE($X19,\"}\",CHAR(160),HI$1))-FIND(CHAR(160),SUBSTITUTE($X19,\"{\",CHAR(160),HI$1))+1),\"\")","v":"{Measure:Quantity}"},{"$f":"IFERROR(MID($X19,FIND(CHAR(160),SUBSTITUTE($X19,\"{\",CHAR(160),HJ$1)),FIND(CHAR(160),SUBSTITUTE($X19,\"}\",CHAR(160),HJ$1))-FIND(CHAR(160),SUBSTITUTE($X19,\"{\",CHAR(160),HJ$1))+1),\"\")","v":""},{"$f":"IFERROR(MID($Y19,FIND(CHAR(160),SUBSTITUTE($Y19,\"{\",CHAR(160),HK$1)),FIND(CHAR(160),SUBSTITUTE($Y19,\"}\",CHAR(160),HK$1))-FIND(CHAR(160),SUBSTITUTE($Y19,\"{\",CHAR(160),HK$1))+1),\"\")","v":""},{"$f":"IFERROR(MID($Y19,FIND(CHAR(160),SUBSTITUTE($Y19,\"{\",CHAR(160),HL$1)),FIND(CHAR(160),SUBSTITUTE($Y19,\"}\",CHAR(160),HL$1))-FIND(CHAR(160),SUBSTITUTE($Y19,\"{\",CHAR(160),HL$1))+1),\"\")","v":""},{"$f":"IFERROR(MID($Y19,FIND(CHAR(160),SUBSTITUTE($Y19,\"{\",CHAR(160),HM$1)),FIND(CHAR(160),SUBSTITUTE($Y19,\"}\",CHAR(160),HM$1))-FIND(CHAR(160),SUBSTITUTE($Y19,\"{\",CHAR(160),HM$1))+1),\"\")","v":""},{"$f":"IFERROR(MID($Y19,FIND(CHAR(160),SUBSTITUTE($Y19,\"{\",CHAR(160),HN$1)),FIND(CHAR(160),SUBSTITUTE($Y19,\"}\",CHAR(160),HN$1))-FIND(CHAR(160),SUBSTITUTE($Y19,\"{\",CHAR(160),HN$1))+1),\"\")","v":""},{"$f":"IFERROR(MID($Y19,FIND(CHAR(160),SUBSTITUTE($Y19,\"{\",CHAR(160),HO$1)),FIND(CHAR(160),SUBSTITUTE($Y19,\"}\",CHAR(160),HO$1))-FIND(CHAR(160),SUBSTITUTE($Y19,\"{\",CHAR(160),HO$1))+1),\"\")","v":""},{"$f":"IFERROR(MID($Y19,FIND(CHAR(160),SUBSTITUTE($Y19,\"{\",CHAR(160),HP$1)),FIND(CHAR(160),SUBSTITUTE($Y19,\"}\",CHAR(160),HP$1))-FIND(CHAR(160),SUBSTITUTE($Y19,\"{\",CHAR(160),HP$1))+1),\"\")","v":""},{"$f":"IFERROR(MID($Y19,FIND(CHAR(160),SUBSTITUTE($Y19,\"{\",CHAR(160),HQ$1)),FIND(CHAR(160),SUBSTITUTE($Y19,\"}\",CHAR(160),HQ$1))-FIND(CHAR(160),SUBSTITUTE($Y19,\"{\",CHAR(160),HQ$1))+1),\"\")","v":""},{"$f":"IFERROR(MID($Y19,FIND(CHAR(160),SUBSTITUTE($Y19,\"{\",CHAR(160),HR$1)),FIND(CHAR(160),SUBSTITUTE($Y19,\"}\",CHAR(160),HR$1))-FIND(CHAR(160),SUBSTITUTE($Y19,\"{\",CHAR(160),HR$1))+1),\"\")","v":""},{"$f":"IFERROR(MID($Y19,FIND(CHAR(160),SUBSTITUTE($Y19,\"{\",CHAR(160),HS$1)),FIND(CHAR(160),SUBSTITUTE($Y19,\"}\",CHAR(160),HS$1))-FIND(CHAR(160),SUBSTITUTE($Y19,\"{\",CHAR(160),HS$1))+1),\"\")","v":"{Measure:Quantity}"},{"$f":"IFERROR(MID($Y19,FIND(CHAR(160),SUBSTITUTE($Y19,\"{\",CHAR(160),HT$1)),FIND(CHAR(160),SUBSTITUTE($Y19,\"}\",CHAR(160),HT$1))-FIND(CHAR(160),SUBSTITUTE($Y19,\"{\",CHAR(160),HT$1))+1),\"\")","v":""},{"$f":"IFERROR(MID($Z19,FIND(CHAR(160),SUBSTITUTE($Z19,\"{\",CHAR(160),HU$1)),FIND(CHAR(160),SUBSTITUTE($Z19,\"}\",CHAR(160),HU$1))-FIND(CHAR(160),SUBSTITUTE($Z19,\"{\",CHAR(160),HU$1))+1),\"\")","v":""},{"$f":"IFERROR(MID($Z19,FIND(CHAR(160),SUBSTITUTE($Z19,\"{\",CHAR(160),HV$1)),FIND(CHAR(160),SUBSTITUTE($Z19,\"}\",CHAR(160),HV$1))-FIND(CHAR(160),SUBSTITUTE($Z19,\"{\",CHAR(160),HV$1))+1),\"\")","v":""},{"$f":"IFERROR(MID($Z19,FIND(CHAR(160),SUBSTITUTE($Z19,\"{\",CHAR(160),HW$1)),FIND(CHAR(160),SUBSTITUTE($Z19,\"}\",CHAR(160),HW$1))-FIND(CHAR(160),SUBSTITUTE($Z19,\"{\",CHAR(160),HW$1))+1),\"\")","v":""},{"$f":"IFERROR(MID($Z19,FIND(CHAR(160),SUBSTITUTE($Z19,\"{\",CHAR(160),HX$1)),FIND(CHAR(160),SUBSTITUTE($Z19,\"}\",CHAR(160),HX$1))-FIND(CHAR(160),SUBSTITUTE($Z19,\"{\",CHAR(160),HX$1))+1),\"\")","v":""},{"$f":"IFERROR(MID($Z19,FIND(CHAR(160),SUBSTITUTE($Z19,\"{\",CHAR(160),HY$1)),FIND(CHAR(160),SUBSTITUTE($Z19,\"}\",CHAR(160),HY$1))-FIND(CHAR(160),SUBSTITUTE($Z19,\"{\",CHAR(160),HY$1))+1),\"\")","v":""},{"$f":"IFERROR(MID($Z19,FIND(CHAR(160),SUBSTITUTE($Z19,\"{\",CHAR(160),HZ$1)),FIND(CHAR(160),SUBSTITUTE($Z19,\"}\",CHAR(160),HZ$1))-FIND(CHAR(160),SUBSTITUTE($Z19,\"{\",CHAR(160),HZ$1))+1),\"\")","v":""},{"$f":"IFERROR(MID($Z19,FIND(CHAR(160),SUBSTITUTE($Z19,\"{\",CHAR(160),IA$1)),FIND(CHAR(160),SUBSTITUTE($Z19,\"}\",CHAR(160),IA$1))-FIND(CHAR(160),SUBSTITUTE($Z19,\"{\",CHAR(160),IA$1))+1),\"\")","v":""},{"$f":"IFERROR(MID($Z19,FIND(CHAR(160),SUBSTITUTE($Z19,\"{\",CHAR(160),IB$1)),FIND(CHAR(160),SUBSTITUTE($Z19,\"}\",CHAR(160),IB$1))-FIND(CHAR(160),SUBSTITUTE($Z19,\"{\",CHAR(160),IB$1))+1),\"\")","v":""},{"$f":"IFERROR(MID($Z19,FIND(CHAR(160),SUBSTITUTE($Z19,\"{\",CHAR(160),IC$1)),FIND(CHAR(160),SUBSTITUTE($Z19,\"}\",CHAR(160),IC$1))-FIND(CHAR(160),SUBSTITUTE($Z19,\"{\",CHAR(160),IC$1))+1),\"\")","v":"{Measure:Quantity}"},{"$f":"IFERROR(MID($Z19,FIND(CHAR(160),SUBSTITUTE($Z19,\"{\",CHAR(160),ID$1)),FIND(CHAR(160),SUBSTITUTE($Z19,\"}\",CHAR(160),ID$1))-FIND(CHAR(160),SUBSTITUTE($Z19,\"{\",CHAR(160),ID$1))+1),\"\")","v":""},{"$f":"IFERROR(MID($AA19,FIND(CHAR(160),SUBSTITUTE($AA19,\"{\",CHAR(160),IE$1)),FIND(CHAR(160),SUBSTITUTE($AA19,\"}\",CHAR(160),IE$1))-FIND(CHAR(160),SUBSTITUTE($AA19,\"{\",CHAR(160),IE$1))+1),\"\")","v":""},{"$f":"IFERROR(MID($AA19,FIND(CHAR(160),SUBSTITUTE($AA19,\"{\",CHAR(160),IF$1)),FIND(CHAR(160),SUBSTITUTE($AA19,\"}\",CHAR(160),IF$1))-FIND(CHAR(160),SUBSTITUTE($AA19,\"{\",CHAR(160),IF$1))+1),\"\")","v":""},{"$f":"IFERROR(MID($AA19,FIND(CHAR(160),SUBSTITUTE($AA19,\"{\",CHAR(160),IG$1)),FIND(CHAR(160),SUBSTITUTE($AA19,\"}\",CHAR(160),IG$1))-FIND(CHAR(160),SUBSTITUTE($AA19,\"{\",CHAR(160),IG$1))+1),\"\")","v":""},{"$f":"IFERROR(MID($AA19,FIND(CHAR(160),SUBSTITUTE($AA19,\"{\",CHAR(160),IH$1)),FIND(CHAR(160),SUBSTITUTE($AA19,\"}\",CHAR(160),IH$1))-FIND(CHAR(160),SUBSTITUTE($AA19,\"{\",CHAR(160),IH$1))+1),\"\")","v":""},{"$f":"IFERROR(MID($AA19,FIND(CHAR(160),SUBSTITUTE($AA19,\"{\",CHAR(160),II$1)),FIND(CHAR(160),SUBSTITUTE($AA19,\"}\",CHAR(160),II$1))-FIND(CHAR(160),SUBSTITUTE($AA19,\"{\",CHAR(160),II$1))+1),\"\")","v":""},{"$f":"IFERROR(MID($AA19,FIND(CHAR(160),SUBSTITUTE($AA19,\"{\",CHAR(160),IJ$1)),FIND(CHAR(160),SUBSTITUTE($AA19,\"}\",CHAR(160),IJ$1))-FIND(CHAR(160),SUBSTITUTE($AA19,\"{\",CHAR(160),IJ$1))+1),\"\")","v":""},{"$f":"IFERROR(MID($AA19,FIND(CHAR(160),SUBSTITUTE($AA19,\"{\",CHAR(160),IK$1)),FIND(CHAR(160),SUBSTITUTE($AA19,\"}\",CHAR(160),IK$1))-FIND(CHAR(160),SUBSTITUTE($AA19,\"{\",CHAR(160),IK$1))+1),\"\")","v":""},{"$f":"IFERROR(MID($AA19,FIND(CHAR(160),SUBSTITUTE($AA19,\"{\",CHAR(160),IL$1)),FIND(CHAR(160),SUBSTITUTE($AA19,\"}\",CHAR(160),IL$1))-FIND(CHAR(160),SUBSTITUTE($AA19,\"{\",CHAR(160),IL$1))+1),\"\")","v":""},{"$f":"IFERROR(MID($AA19,FIND(CHAR(160),SUBSTITUTE($AA19,\"{\",CHAR(160),IM$1)),FIND(CHAR(160),SUBSTITUTE($AA19,\"}\",CHAR(160),IM$1))-FIND(CHAR(160),SUBSTITUTE($AA19,\"{\",CHAR(160),IM$1))+1),\"\")","v":""},{"$f":"IFERROR(MID($AA19,FIND(CHAR(160),SUBSTITUTE($AA19,\"{\",CHAR(160),IN$1)),FIND(CHAR(160),SUBSTITUTE($AA19,\"}\",CHAR(160),IN$1))-FIND(CHAR(160),SUBSTITUTE($AA19,\"{\",CHAR(160),IN$1))+1),\"\")","v":""},{"$f":"IFERROR(MID($AB19,FIND(CHAR(160),SUBSTITUTE($AB19,\"{\",CHAR(160),IO$1)),FIND(CHAR(160),SUBSTITUTE($AB19,\"}\",CHAR(160),IO$1))-FIND(CHAR(160),SUBSTITUTE($AB19,\"{\",CHAR(160),IO$1))+1),\"\")","v":""},{"$f":"IFERROR(MID($AB19,FIND(CHAR(160),SUBSTITUTE($AB19,\"{\",CHAR(160),IP$1)),FIND(CHAR(160),SUBSTITUTE($AB19,\"}\",CHAR(160),IP$1))-FIND(CHAR(160),SUBSTITUTE($AB19,\"{\",CHAR(160),IP$1))+1),\"\")","v":""},{"$f":"IFERROR(MID($AB19,FIND(CHAR(160),SUBSTITUTE($AB19,\"{\",CHAR(160),IQ$1)),FIND(CHAR(160),SUBSTITUTE($AB19,\"}\",CHAR(160),IQ$1))-FIND(CHAR(160),SUBSTITUTE($AB19,\"{\",CHAR(160),IQ$1))+1),\"\")","v":""},{"$f":"IFERROR(MID($AB19,FIND(CHAR(160),SUBSTITUTE($AB19,\"{\",CHAR(160),IR$1)),FIND(CHAR(160),SUBSTITUTE($AB19,\"}\",CHAR(160),IR$1))-FIND(CHAR(160),SUBSTITUTE($AB19,\"{\",CHAR(160),IR$1))+1),\"\")","v":""},{"$f":"IFERROR(MID($AB19,FIND(CHAR(160),SUBSTITUTE($AB19,\"{\",CHAR(160),IS$1)),FIND(CHAR(160),SUBSTITUTE($AB19,\"}\",CHAR(160),IS$1))-FIND(CHAR(160),SUBSTITUTE($AB19,\"{\",CHAR(160),IS$1))+1),\"\")","v":""},{"$f":"IFERROR(MID($AB19,FIND(CHAR(160),SUBSTITUTE($AB19,\"{\",CHAR(160),IT$1)),FIND(CHAR(160),SUBSTITUTE($AB19,\"}\",CHAR(160),IT$1))-FIND(CHAR(160),SUBSTITUTE($AB19,\"{\",CHAR(160),IT$1))+1),\"\")","v":""},{"$f":"IFERROR(MID($AB19,FIND(CHAR(160),SUBSTITUTE($AB19,\"{\",CHAR(160),IU$1)),FIND(CHAR(160),SUBSTITUTE($AB19,\"}\",CHAR(160),IU$1))-FIND(CHAR(160),SUBSTITUTE($AB19,\"{\",CHAR(160),IU$1))+1),\"\")","v":""},{"$f":"IFERROR(MID($AB19,FIND(CHAR(160),SUBSTITUTE($AB19,\"{\",CHAR(160),IV$1)),FIND(CHAR(160),SUBSTITUTE($AB19,\"}\",CHAR(160),IV$1))-FIND(CHAR(160),SUBSTITUTE($AB19,\"{\",CHAR(160),IV$1))+1),\"\")","v":""},{"$f":"IFERROR(MID($AB19,FIND(CHAR(160),SUBSTITUTE($AB19,\"{\",CHAR(160),IW$1)),FIND(CHAR(160),SUBSTITUTE($AB19,\"}\",CHAR(160),IW$1))-FIND(CHAR(160),SUBSTITUTE($AB19,\"{\",CHAR(160),IW$1))+1),\"\")","v":""},{"$f":"IFERROR(MID($AB19,FIND(CHAR(160),SUBSTITUTE($AB19,\"{\",CHAR(160),IX$1)),FIND(CHAR(160),SUBSTITUTE($AB19,\"}\",CHAR(160),IX$1))-FIND(CHAR(160),SUBSTITUTE($AB19,\"{\",CHAR(160),IX$1))+1),\"\")","v":""},null,{"$f":"10-COUNTIF(DU19:ED19,\"\")","v":3}]
["Appliance Rebate","Clothes Washer","CW","2021-07-01","2022-06-30","Per Measure",92,0,"Calculated","{Measure:Quantity}*if({Retail Price}<50,{Retail Price},50)",50,"2021-07-01","2022-06-30","Calculated","{Measure:Quantity} * 183",null,null,"{Measure:Quantity} * 0.57",null,null,"{Measure:Quantity} * 0.57 * {Factor:WinterCF}","{Measure:Quantity} * 0.57 * {Factor:SummerCF}","{Measure:Quantity} * 0.114 * 10","{Measure:Quantity} * 0.074","{Measure:Quantity} * 0.338",null,null,"{Measure:Quantity} * 3438","2020-07-01","2022-06-30",11,6.3E-2,4.8000000000000001E-2,0.4,0.26600000000000001,0.20100000000000001,0.13300000000000001,1,1,1,0.56699999999999995,3.3000000000000002E-2,null,{"$f":"DU20","v":"{Measure:Quantity}"},1,{"$f":"DV20","v":"{Retail Price}"},750,{"$f":"DW20","v":""},null,{"$f":"DX20","v":""},null,{"$f":"DY20","v":""},null,{"$f":"DZ20","v":""},null,{"$f":"EA20","v":""},null,{"$f":"EB20","v":""},null,{"$f":"EC20","v":""},null,{"$f":"ED20","v":""},null,{"$f":"AS20 * 183","v":183},0,0,{"$f":"AS20 * 0.57","v":0.56999999999999995},0,0,{"$f":"AS20 * 0.57 * AF20","v":3.5909999999999997E-2},{"$f":"AS20 * 0.57 * AG20","v":2.7359999999999999E-2},{"$f":"AS20 * 0.114 * 10","v":1.1400000000000001},{"$f":"AS20 * 0.074","v":7.3999999999999996E-2},{"$f":"AS20 * 0.338","v":0.33800000000000002},0,0,{"$f":"AS20 * 3438","v":3438},null,"Res","Default DR",{"$f":"Benefits(BL20,BR20,BS20,BT20,BU20,BV20,BW20,BX20,BY20,BZ20,AE20,AH20,AI20,AJ20,AK20,AL20,AM20,AN20,AO20,AP20,CA20,CB20)","v":194.30594413216164},143.74823811977737,18.082035341493778,111.06307616942256,0,33.793868878785048,0,223.68563188300763,0,{"$f":"SUMPRODUCT(CC20:CK20,--(CC20:CK20>0))","v":724.67879452464808},{"$f":"-SUMPRODUCT(CC20:CK20,--(CC20:CK20<0))","v":0},null,{"$f":"92","v":92},null,null,{"$f":"CM20+CO20","v":92},{"$f":"IF(NetOrGross=\"Net\",(1-AO20+AP20),1)","v":1},{"$f":"(SUMPRODUCT(CC20:CJ20,--(CC20:CJ20>0))+CN20)*CS20/((-SUMPRODUCT(CC20:CJ20,--(CC20:CJ20<0))+MAX(CO20,CV20)+CP20+CQ20)*CS20+IF(FRIncentives=\"Yes\",CV20*(1-CS20),0))","v":7.8769434187461744},1,{"$f":"AS20*IF(AU20<50,AU20,50)","v":50},null,"Electric","y",{"$f":"CL20-CR20","v":632.67879452464808},{"$f":"IF(F20=\"Manual Entry\",\"Manual\",IF(G20=\"\",0,\"X=\"&SUBSTITUTE(SUBSTITUTE(SUBSTITUTE(SUBSTITUTE(SUBSTITUTE(SUBSTITUTE(SUBSTITUTE(SUBSTITUTE(SUBSTITUTE(SUBSTITUTE(SUBSTITUTE(SUBSTITUTE(G20,$ED20,$ED$2&ROW($ED20)),$EC20,$EC$2&ROW($EC20)),$EB20,$EB$2&ROW($EB20)),$EA20,$EA$2&ROW($EA20)),$DZ20,$DZ$2&ROW($DZ20)),$DY20,$DY$2&ROW($DY20)),$DX20,$DX$2&ROW($DX20)),$DW20,$DW$2&ROW($DW20)),$DV20,$DV$2&ROW($DV20)),$DU20,$DU$2&ROW($DU20)),$DT20,$DT$2&ROW($DT20)),$DS20,$DS$2&ROW($DS20))))","v":"X=92"},{"$f":"IF(I20=\"Manual Entry\",\"Manual\",IF(J20=\"\",0,\"X=\"&SUBSTITUTE(SUBSTITUTE(SUBSTITUTE(SUBSTITUTE(SUBSTITUTE(SUBSTITUTE(SUBSTITUTE(SUBSTITUTE(SUBSTITUTE(SUBSTITUTE(SUBSTITUTE(SUBSTITUTE(J20,$ED20,$ED$2&ROW($ED20)),$EC20,$EC$2&ROW($EC20)),$EB20,$EB$2&ROW($EB20)),$EA20,$EA$2&ROW($EA20)),$DZ20,$DZ$2&ROW($DZ20)),$DY20,$DY$2&ROW($DY20)),$DX20,$DX$2&ROW($DX20)),$DW20,$DW$2&ROW($DW20)),$DV20,$DV$2&ROW($DV20)),$DU20,$DU$2&ROW($DU20)),$DT20,$DT$2&ROW($DT20)),$DS20,$DS$2&ROW($DS20))))","v":"X=AS20*if(AU20<50,AU20,50)"},{"$f":"IF(O20=\"\",0,\"X=\"&SUBSTITUTE(SUBSTITUTE(SUBSTITUTE(SUBSTITUTE(SUBSTITUTE(SUBSTITUTE(SUBSTITUTE(SUBSTITUTE(SUBSTITUTE(SUBSTITUTE(SUBSTITUTE(SUBSTITUTE(O20,$ED20,$ED$2&ROW($ED20)),$EC20,$EC$2&ROW($EC20)),$EB20,$EB$2&ROW($EB20)),$EA20,$EA$2&ROW($EA20)),$DZ20,$DZ$2&ROW($DZ20)),$DY20,$DY$2&ROW($DY20)),$DX20,$DX$2&ROW($DX20)),$DW20,$DW$2&ROW($DW20)),$DV20,$DV$2&ROW($DV20)),$DU20,$DU$2&ROW($DU20)),$DT20,$DT$2&ROW($DT20)),$DS20,$DS$2&ROW($DS20)))","v":"X=AS20 * 183"},{"$f":"IF(P20=\"\",0,\"X=\"&SUBSTITUTE(SUBSTITUTE(SUBSTITUTE(SUBSTITUTE(SUBSTITUTE(SUBSTITUTE(SUBSTITUTE(SUBSTITUTE(SUBSTITUTE(SUBSTITUTE(SUBSTITUTE(SUBSTITUTE(P20,$ED20,$ED$2&ROW($ED20)),$EC20,$EC$2&ROW($EC20)),$EB20,$EB$2&ROW($EB20)),$EA20,$EA$2&ROW($EA20)),$DZ20,$DZ$2&ROW($DZ20)),$DY20,$DY$2&ROW($DY20)),$DX20,$DX$2&ROW($DX20)),$DW20,$DW$2&ROW($DW20)),$DV20,$DV$2&ROW($DV20)),$DU20,$DU$2&ROW($DU20)),$DT20,$DT$2&ROW($DT20)),$DS20,$DS$2&ROW($DS20)))","v":0},{"$f":"IF(Q20=\"\",0,\"X=\"&SUBSTITUTE(SUBSTITUTE(SUBSTITUTE(SUBSTITUTE(SUBSTITUTE(SUBSTITUTE(SUBSTITUTE(SUBSTITUTE(SUBSTITUTE(SUBSTITUTE(SUBSTITUTE(SUBSTITUTE(Q20,$ED20,$ED$2&ROW($ED20)),$EC20,$EC$2&ROW($EC20)),$EB20,$EB$2&ROW($EB20)),$EA20,$EA$2&ROW($EA20)),$DZ20,$DZ$2&ROW($DZ20)),$DY20,$DY$2&ROW($DY20)),$DX20,$DX$2&ROW($DX20)),$DW20,$DW$2&ROW($DW20)),$DV20,$DV$2&ROW($DV20)),$DU20,$DU$2&ROW($DU20)),$DT20,$DT$2&ROW($DT20)),$DS20,$DS$2&ROW($DS20)))","v":0},{"$f":"IF(R20=\"\",0,\"X=\"&SUBSTITUTE(SUBSTITUTE(SUBSTITUTE(SUBSTITUTE(SUBSTITUTE(SUBSTITUTE(SUBSTITUTE(SUBSTITUTE(SUBSTITUTE(SUBSTITUTE(SUBSTITUTE(SUBSTITUTE(R20,$ED20,$ED$2&ROW($ED20)),$EC20,$EC$2&ROW($EC20)),$EB20,$EB$2&ROW($EB20)),$EA20,$EA$2&ROW($EA20)),$DZ20,$DZ$2&ROW($DZ20)),$DY20,$DY$2&ROW($DY20)),$DX20,$DX$2&ROW($DX20)),$DW20,$DW$2&ROW($DW20)),$DV20,$DV$2&ROW($DV20)),$DU20,$DU$2&ROW($DU20)),$DT20,$DT$2&ROW($DT20)),$DS20,$DS$2&ROW($DS20)))","v":"X=AS20 * 0.57"},{"$f":"IF(S20=\"\",0,\"X=\"&SUBSTITUTE(SUBSTITUTE(SUBSTITUTE(SUBSTITUTE(SUBSTITUTE(SUBSTITUTE(SUBSTITUTE(SUBSTITUTE(SUBSTITUTE(SUBSTITUTE(SUBSTITUTE(SUBSTITUTE(S20,$ED20,$ED$2&ROW($ED20)),$EC20,$EC$2&ROW($EC20)),$EB20,$EB$2&ROW($EB20)),$EA20,$EA$2&ROW($EA20)),$DZ20,$DZ$2&ROW($DZ20)),$DY20,$DY$2&ROW($DY20)),$DX20,$DX$2&ROW($DX20)),$DW20,$DW$2&ROW($DW20)),$DV20,$DV$2&ROW($DV20)),$DU20,$DU$2&ROW($DU20)),$DT20,$DT$2&ROW($DT20)),$DS20,$DS$2&ROW($DS20)))","v":0},{"$f":"IF(T20=\"\",0,\"X=\"&SUBSTITUTE(SUBSTITUTE(SUBSTITUTE(SUBSTITUTE(SUBSTITUTE(SUBSTITUTE(SUBSTITUTE(SUBSTITUTE(SUBSTITUTE(SUBSTITUTE(SUBSTITUTE(SUBSTITUTE(T20,$ED20,$ED$2&ROW($ED20)),$EC20,$EC$2&ROW($EC20)),$EB20,$EB$2&ROW($EB20)),$EA20,$EA$2&ROW($EA20)),$DZ20,$DZ$2&ROW($DZ20)),$DY20,$DY$2&ROW($DY20)),$DX20,$DX$2&ROW($DX20)),$DW20,$DW$2&ROW($DW20)),$DV20,$DV$2&ROW($DV20)),$DU20,$DU$2&ROW($DU20)),$DT20,$DT$2&ROW($DT20)),$DS20,$DS$2&ROW($DS20)))","v":0},{"$f":"IF(U20=\"\",0,\"X=\"&SUBSTITUTE(SUBSTITUTE(SUBSTITUTE(SUBSTITUTE(SUBSTITUTE(SUBSTITUTE(SUBSTITUTE(SUBSTITUTE(SUBSTITUTE(SUBSTITUTE(SUBSTITUTE(SUBSTITUTE(U20,$ED20,$ED$2&ROW($ED20)),$EC20,$EC$2&ROW($EC20)),$EB20,$EB$2&ROW($EB20)),$EA20,$EA$2&ROW($EA20)),$DZ20,$DZ$2&ROW($DZ20)),$DY20,$DY$2&ROW($DY20)),$DX20,$DX$2&ROW($DX20)),$DW20,$DW$2&ROW($DW20)),$DV20,$DV$2&ROW($DV20)),$DU20,$DU$2&ROW($DU20)),$DT20,$DT$2&ROW($DT20)),$DS20,$DS$2&ROW($DS20)))","v":"X=AS20 * 0.57 * AF20"},{"$f":"IF(V20=\"\",0,\"X=\"&SUBSTITUTE(SUBSTITUTE(SUBSTITUTE(SUBSTITUTE(SUBSTITUTE(SUBSTITUTE(SUBSTITUTE(SUBSTITUTE(SUBSTITUTE(SUBSTITUTE(SUBSTITUTE(SUBSTITUTE(V20,$ED20,$ED$2&ROW($ED20)),$EC20,$EC$2&ROW($EC20)),$EB20,$EB$2&ROW($EB20)),$EA20,$EA$2&ROW($EA20)),$DZ20,$DZ$2&ROW($DZ20)),$DY20,$DY$2&ROW($DY20)),$DX20,$DX$2&ROW($DX20)),$DW20,$DW$2&ROW($DW20)),$DV20,$DV$2&ROW($DV20)),$DU20,$DU$2&ROW($DU20)),$DT20,$DT$2&ROW($DT20)),$DS20,$DS$2&ROW($DS20)))","v":"X=AS20 * 0.57 * AG20"},{"$f":"IF(W20=\"\",0,\"X=\"&SUBSTITUTE(SUBSTITUTE(SUBSTITUTE(SUBSTITUTE(SUBSTITUTE(SUBSTITUTE(SUBSTITUTE(SUBSTITUTE(SUBSTITUTE(SUBSTITUTE(SUBSTITUTE(SUBSTITUTE(W20,$ED20,$ED$2&ROW($ED20)),$EC20,$EC$2&ROW($EC20)),$EB20,$EB$2&ROW($EB20)),$EA20,$EA$2&ROW($EA20)),$DZ20,$DZ$2&ROW($DZ20)),$DY20,$DY$2&ROW($DY20)),$DX20,$DX$2&ROW($DX20)),$DW20,$DW$2&ROW($DW20)),$DV20,$DV$2&ROW($DV20)),$DU20,$DU$2&ROW($DU20)),$DT20,$DT$2&ROW($DT20)),$DS20,$DS$2&ROW($DS20)))","v":"X=AS20 * 0.114 * 10"},{"$f":"IF(X20=\"\",0,\"X=\"&SUBSTITUTE(SUBSTITUTE(SUBSTITUTE(SUBSTITUTE(SUBSTITUTE(SUBSTITUTE(SUBSTITUTE(SUBSTITUTE(SUBSTITUTE(SUBSTITUTE(SUBSTITUTE(SUBSTITUTE(X20,$ED20,$ED$2&ROW($ED20)),$EC20,$EC$2&ROW($EC20)),$EB20,$EB$2&ROW($EB20)),$EA20,$EA$2&ROW($EA20)),$DZ20,$DZ$2&ROW($DZ20)),$DY20,$DY$2&ROW($DY20)),$DX20,$DX$2&ROW($DX20)),$DW20,$DW$2&ROW($DW20)),$DV20,$DV$2&ROW($DV20)),$DU20,$DU$2&ROW($DU20)),$DT20,$DT$2&ROW($DT20)),$DS20,$DS$2&ROW($DS20)))","v":"X=AS20 * 0.074"},{"$f":"IF(Y20=\"\",0,\"X=\"&SUBSTITUTE(SUBSTITUTE(SUBSTITUTE(SUBSTITUTE(SUBSTITUTE(SUBSTITUTE(SUBSTITUTE(SUBSTITUTE(SUBSTITUTE(SUBSTITUTE(SUBSTITUTE(SUBSTITUTE(Y20,$ED20,$ED$2&ROW($ED20)),$EC20,$EC$2&ROW($EC20)),$EB20,$EB$2&ROW($EB20)),$EA20,$EA$2&ROW($EA20)),$DZ20,$DZ$2&ROW($DZ20)),$DY20,$DY$2&ROW($DY20)),$DX20,$DX$2&ROW($DX20)),$DW20,$DW$2&ROW($DW20)),$DV20,$DV$2&ROW($DV20)),$DU20,$DU$2&ROW($DU20)),$DT20,$DT$2&ROW($DT20)),$DS20,$DS$2&ROW($DS20)))","v":"X=AS20 * 0.338"},{"$f":"IF(Z20=\"\",0,\"X=\"&SUBSTITUTE(SUBSTITUTE(SUBSTITUTE(SUBSTITUTE(SUBSTITUTE(SUBSTITUTE(SUBSTITUTE(SUBSTITUTE(SUBSTITUTE(SUBSTITUTE(SUBSTITUTE(SUBSTITUTE(Z20,$ED20,$ED$2&ROW($ED20)),$EC20,$EC$2&ROW($EC20)),$EB20,$EB$2&ROW($EB20)),$EA20,$EA$2&ROW($EA20)),$DZ20,$DZ$2&ROW($DZ20)),$DY20,$DY$2&ROW($DY20)),$DX20,$DX$2&ROW($DX20)),$DW20,$DW$2&ROW($DW20)),$DV20,$DV$2&ROW($DV20)),$DU20,$DU$2&ROW($DU20)),$DT20,$DT$2&ROW($DT20)),$DS20,$DS$2&ROW($DS20)))","v":0},{"$f":"IF(AA20=\"\",0,\"X=\"&SUBSTITUTE(SUBSTITUTE(SUBSTITUTE(SUBSTITUTE(SUBSTITUTE(SUBSTITUTE(SUBSTITUTE(SUBSTITUTE(SUBSTITUTE(SUBSTITUTE(SUBSTITUTE(SUBSTITUTE(AA20,$ED20,$ED$2&ROW($ED20)),$EC20,$EC$2&ROW($EC20)),$EB20,$EB$2&ROW($EB20)),$EA20,$EA$2&ROW($EA20)),$DZ20,$DZ$2&ROW($DZ20)),$DY20,$DY$2&ROW($DY20)),$DX20,$DX$2&ROW($DX20)),$DW20,$DW$2&ROW($DW20)),$DV20,$DV$2&ROW($DV20)),$DU20,$DU$2&ROW($DU20)),$DT20,$DT$2&ROW($DT20)),$DS20,$DS$2&ROW($DS20)))","v":0},{"$f":"IF(AB20=\"\",0,\"X=\"&SUBSTITUTE(SUBSTITUTE(SUBSTITUTE(SUBSTITUTE(SUBSTITUTE(SUBSTITUTE(SUBSTITUTE(SUBSTITUTE(SUBSTITUTE(SUBSTITUTE(SUBSTITUTE(SUBSTITUTE(AB20,$ED20,$ED$2&ROW($ED20)),$EC20,$EC$2&ROW($EC20)),$EB20,$EB$2&ROW($EB20)),$EA20,$EA$2&ROW($EA20)),$DZ20,$DZ$2&ROW($DZ20)),$DY20,$DY$2&ROW($DY20)),$DX20,$DX$2&ROW($DX20)),$DW20,$DW$2&ROW($DW20)),$DV20,$DV$2&ROW($DV20)),$DU20,$DU$2&ROW($DU20)),$DT20,$DT$2&ROW($DT20)),$DS20,$DS$2&ROW($DS20)))","v":"X=AS20 * 3438"},null,null,"{Factor:WinterCF}","{Factor:SummerCF}",{"$f":"IFERROR(INDEX($EG20:$IV20,MATCH(0,COUNTIF($DR20:DT20,$EG20:$IV20),0)),\"\")","v":"{Measure:Quantity}"},{"$f":"IFERROR(INDEX($EG20:$IV20,MATCH(0,COUNTIF($DR20:DU20,$EG20:$IV20),0)),\"\")","v":"{Retail Price}"},{"$f":"IFERROR(INDEX($EG20:$IV20,MATCH(0,COUNTIF($DR20:DV20,$EG20:$IV20),0)),\"\")","v":""},{"$f":"IFERROR(INDEX($EG20:$IV20,MATCH(0,COUNTIF($DR20:DW20,$EG20:$IV20),0)),\"\")","v":""},{"$f":"IFERROR(INDEX($EG20:$IV20,MATCH(0,COUNTIF($DR20:DX20,$EG20:$IV20),0)),\"\")","v":""},{"$f":"IFERROR(INDEX($EG20:$IV20,MATCH(0,COUNTIF($DR20:DY20,$EG20:$IV20),0)),\"\")","v":""},{"$f":"IFERROR(INDEX($EG20:$IV20,MATCH(0,COUNTIF($DR20:DZ20,$EG20:$IV20),0)),\"\")","v":""},{"$f":"IFERROR(INDEX($EG20:$IV20,MATCH(0,COUNTIF($DR20:EA20,$EG20:$IV20),0)),\"\")","v":""},{"$f":"IFERROR(INDEX($EG20:$IV20,MATCH(0,COUNTIF($DR20:EB20,$EG20:$IV20),0)),\"\")","v":""},{"$f":"IFERROR(INDEX($EG20:$IV20,MATCH(0,COUNTIF($DR20:EC20,$EG20:$IV20),0)),\"\")","v":""},null,null,{"$f":"IFERROR(MID($G20,FIND(CHAR(160),SUBSTITUTE($G20,\"{\",CHAR(160),EG$1)),FIND(CHAR(160),SUBSTITUTE($G20,\"}\",CHAR(160),EG$1))-FIND(CHAR(160),SUBSTITUTE($G20,\"{\",CHAR(160),EG$1))+1),\"\")","v":""},{"$f":"IFERROR(MID($G20,FIND(CHAR(160),SUBSTITUTE($G20,\"{\",CHAR(160),EH$1)),FIND(CHAR(160),SUBSTITUTE($G20,\"}\",CHAR(160),EH$1))-FIND(CHAR(160),SUBSTITUTE($G20,\"{\",CHAR(160),EH$1))+1),\"\")","v":""},{"$f":"IFERROR(MID($G20,FIND(CHAR(160),SUBSTITUTE($G20,\"{\",CHAR(160),EI$1)),FIND(CHAR(160),SUBSTITUTE($G20,\"}\",CHAR(160),EI$1))-FIND(CHAR(160),SUBSTITUTE($G20,\"{\",CHAR(160),EI$1))+1),\"\")","v":""},{"$f":"IFERROR(MID($G20,FIND(CHAR(160),SUBSTITUTE($G20,\"{\",CHAR(160),EJ$1)),FIND(CHAR(160),SUBSTITUTE($G20,\"}\",CHAR(160),EJ$1))-FIND(CHAR(160),SUBSTITUTE($G20,\"{\",CHAR(160),EJ$1))+1),\"\")","v":""},{"$f":"IFERROR(MID($G20,FIND(CHAR(160),SUBSTITUTE($G20,\"{\",CHAR(160),EK$1)),FIND(CHAR(160),SUBSTITUTE($G20,\"}\",CHAR(160),EK$1))-FIND(CHAR(160),SUBSTITUTE($G20,\"{\",CHAR(160),EK$1))+1),\"\")","v":""},{"$f":"IFERROR(MID($G20,FIND(CHAR(160),SUBSTITUTE($G20,\"{\",CHAR(160),EL$1)),FIND(CHAR(160),SUBSTITUTE($G20,\"}\",CHAR(160),EL$1))-FIND(CHAR(160),SUBSTITUTE($G20,\"{\",CHAR(160),EL$1))+1),\"\")","v":""},{"$f":"IFERROR(MID($G20,FIND(CHAR(160),SUBSTITUTE($G20,\"{\",CHAR(160),EM$1)),FIND(CHAR(160),SUBSTITUTE($G20,\"}\",CHAR(160),EM$1))-FIND(CHAR(160),SUBSTITUTE($G20,\"{\",CHAR(160),EM$1))+1),\"\")","v":""},{"$f":"IFERROR(MID($G20,FIND(CHAR(160),SUBSTITUTE($G20,\"{\",CHAR(160),EN$1)),FIND(CHAR(160),SUBSTITUTE($G20,\"}\",CHAR(160),EN$1))-FIND(CHAR(160),SUBSTITUTE($G20,\"{\",CHAR(160),EN$1))+1),\"\")","v":""},{"$f":"IFERROR(MID($G20,FIND(CHAR(160),SUBSTITUTE($G20,\"{\",CHAR(160),EO$1)),FIND(CHAR(160),SUBSTITUTE($G20,\"}\",CHAR(160),EO$1))-FIND(CHAR(160),SUBSTITUTE($G20,\"{\",CHAR(160),EO$1))+1),\"\")","v":""},{"$f":"IFERROR(MID($G20,FIND(CHAR(160),SUBSTITUTE($G20,\"{\",CHAR(160),EP$1)),FIND(CHAR(160),SUBSTITUTE($G20,\"}\",CHAR(160),EP$1))-FIND(CHAR(160),SUBSTITUTE($G20,\"{\",CHAR(160),EP$1))+1),\"\")","v":""},{"$f":"IFERROR(MID($J20,FIND(CHAR(160),SUBSTITUTE($J20,\"{\",CHAR(160),EQ$1)),FIND(CHAR(160),SUBSTITUTE($J20,\"}\",CHAR(160),EQ$1))-FIND(CHAR(160),SUBSTITUTE($J20,\"{\",CHAR(160),EQ$1))+1),\"\")","v":"{Measure:Quantity}"},{"$f":"IFERROR(MID($J20,FIND(CHAR(160),SUBSTITUTE($J20,\"{\",CHAR(160),ER$1)),FIND(CHAR(160),SUBSTITUTE($J20,\"}\",CHAR(160),ER$1))-FIND(CHAR(160),SUBSTITUTE($J20,\"{\",CHAR(160),ER$1))+1),\"\")","v":"{Retail Price}"},{"$f":"IFERROR(MID($J20,FIND(CHAR(160),SUBSTITUTE($J20,\"{\",CHAR(160),ES$1)),FIND(CHAR(160),SUBSTITUTE($J20,\"}\",CHAR(160),ES$1))-FIND(CHAR(160),SUBSTITUTE($J20,\"{\",CHAR(160),ES$1))+1),\"\")","v":"{Retail Price}"},{"$f":"IFERROR(MID($J20,FIND(CHAR(160),SUBSTITUTE($J20,\"{\",CHAR(160),ET$1)),FIND(CHAR(160),SUBSTITUTE($J20,\"}\",CHAR(160),ET$1))-FIND(CHAR(160),SUBSTITUTE($J20,\"{\",CHAR(160),ET$1))+1),\"\")","v":""},{"$f":"IFERROR(MID($J20,FIND(CHAR(160),SUBSTITUTE($J20,\"{\",CHAR(160),EU$1)),FIND(CHAR(160),SUBSTITUTE($J20,\"}\",CHAR(160),EU$1))-FIND(CHAR(160),SUBSTITUTE($J20,\"{\",CHAR(160),EU$1))+1),\"\")","v":""},{"$f":"IFERROR(MID($J20,FIND(CHAR(160),SUBSTITUTE($J20,\"{\",CHAR(160),EV$1)),FIND(CHAR(160),SUBSTITUTE($J20,\"}\",CHAR(160),EV$1))-FIND(CHAR(160),SUBSTITUTE($J20,\"{\",CHAR(160),EV$1))+1),\"\")","v":""},{"$f":"IFERROR(MID($J20,FIND(CHAR(160),SUBSTITUTE($J20,\"{\",CHAR(160),EW$1)),FIND(CHAR(160),SUBSTITUTE($J20,\"}\",CHAR(160),EW$1))-FIND(CHAR(160),SUBSTITUTE($J20,\"{\",CHAR(160),EW$1))+1),\"\")","v":""},{"$f":"IFERROR(MID($J20,FIND(CHAR(160),SUBSTITUTE($J20,\"{\",CHAR(160),EX$1)),FIND(CHAR(160),SUBSTITUTE($J20,\"}\",CHAR(160),EX$1))-FIND(CHAR(160),SUBSTITUTE($J20,\"{\",CHAR(160),EX$1))+1),\"\")","v":""},{"$f":"IFERROR(MID($J20,FIND(CHAR(160),SUBSTITUTE($J20,\"{\",CHAR(160),EY$1)),FIND(CHAR(160),SUBSTITUTE($J20,\"}\",CHAR(160),EY$1))-FIND(CHAR(160),SUBSTITUTE($J20,\"{\",CHAR(160),EY$1))+1),\"\")","v":""},{"$f":"IFERROR(MID($J20,FIND(CHAR(160),SUBSTITUTE($J20,\"{\",CHAR(160),EZ$1)),FIND(CHAR(160),SUBSTITUTE($J20,\"}\",CHAR(160),EZ$1))-FIND(CHAR(160),SUBSTITUTE($J20,\"{\",CHAR(160),EZ$1))+1),\"\")","v":""},{"$f":"IFERROR(MID($J20,FIND(CHAR(160),SUBSTITUTE($J20,\"{\",CHAR(160),FA$1)),FIND(CHAR(160),SUBSTITUTE($J20,\"}\",CHAR(160),FA$1))-FIND(CHAR(160),SUBSTITUTE($J20,\"{\",CHAR(160),FA$1))+1),\"\")","v":"{Measure:Quantity}"},{"$f":"IFERROR(MID($J20,FIND(CHAR(160),SUBSTITUTE($J20,\"{\",CHAR(160),FB$1)),FIND(CHAR(160),SUBSTITUTE($J20,\"}\",CHAR(160),FB$1))-FIND(CHAR(160),SUBSTITUTE($J20,\"{\",CHAR(160),FB$1))+1),\"\")","v":"{Retail Price}"},{"$f":"IFERROR(MID($O20,FIND(CHAR(160),SUBSTITUTE($O20,\"{\",CHAR(160),FC$1)),FIND(CHAR(160),SUBSTITUTE($O20,\"}\",CHAR(160),FC$1))-FIND(CHAR(160),SUBSTITUTE($O20,\"{\",CHAR(160),FC$1))+1),\"\")","v":""},{"$f":"IFERROR(MID($O20,FIND(CHAR(160),SUBSTITUTE($O20,\"{\",CHAR(160),FD$1)),FIND(CHAR(160),SUBSTITUTE($O20,\"}\",CHAR(160),FD$1))-FIND(CHAR(160),SUBSTITUTE($O20,\"{\",CHAR(160),FD$1))+1),\"\")","v":""},{"$f":"IFERROR(MID($O20,FIND(CHAR(160),SUBSTITUTE($O20,\"{\",CHAR(160),FE$1)),FIND(CHAR(160),SUBSTITUTE($O20,\"}\",CHAR(160),FE$1))-FIND(CHAR(160),SUBSTITUTE($O20,\"{\",CHAR(160),FE$1))+1),\"\")","v":""},{"$f":"IFERROR(MID($O20,FIND(CHAR(160),SUBSTITUTE($O20,\"{\",CHAR(160),FF$1)),FIND(CHAR(160),SUBSTITUTE($O20,\"}\",CHAR(160),FF$1))-FIND(CHAR(160),SUBSTITUTE($O20,\"{\",CHAR(160),FF$1))+1),\"\")","v":""},{"$f":"IFERROR(MID($O20,FIND(CHAR(160),SUBSTITUTE($O20,\"{\",CHAR(160),FG$1)),FIND(CHAR(160),SUBSTITUTE($O20,\"}\",CHAR(160),FG$1))-FIND(CHAR(160),SUBSTITUTE($O20,\"{\",CHAR(160),FG$1))+1),\"\")","v":""},{"$f":"IFERROR(MID($O20,FIND(CHAR(160),SUBSTITUTE($O20,\"{\",CHAR(160),FH$1)),FIND(CHAR(160),SUBSTITUTE($O20,\"}\",CHAR(160),FH$1))-FIND(CHAR(160),SUBSTITUTE($O20,\"{\",CHAR(160),FH$1))+1),\"\")","v":""},{"$f":"IFERROR(MID($O20,FIND(CHAR(160),SUBSTITUTE($O20,\"{\",CHAR(160),FI$1)),FIND(CHAR(160),SUBSTITUTE($O20,\"}\",CHAR(160),FI$1))-FIND(CHAR(160),SUBSTITUTE($O20,\"{\",CHAR(160),FI$1))+1),\"\")","v":""},{"$f":"IFERROR(MID($O20,FIND(CHAR(160),SUBSTITUTE($O20,\"{\",CHAR(160),FJ$1)),FIND(CHAR(160),SUBSTITUTE($O20,\"}\",CHAR(160),FJ$1))-FIND(CHAR(160),SUBSTITUTE($O20,\"{\",CHAR(160),FJ$1))+1),\"\")","v":""},{"$f":"IFERROR(MID($O20,FIND(CHAR(160),SUBSTITUTE($O20,\"{\",CHAR(160),FK$1)),FIND(CHAR(160),SUBSTITUTE($O20,\"}\",CHAR(160),FK$1))-FIND(CHAR(160),SUBSTITUTE($O20,\"{\",CHAR(160),FK$1))+1),\"\")","v":"{Measure:Quantity}"},{"$f":"IFERROR(MID($O20,FIND(CHAR(160),SUBSTITUTE($O20,\"{\",CHAR(160),FL$1)),FIND(CHAR(160),SUBSTITUTE($O20,\"}\",CHAR(160),FL$1))-FIND(CHAR(160),SUBSTITUTE($O20,\"{\",CHAR(160),FL$1))+1),\"\")","v":""},{"$f":"IFERROR(MID($R20,FIND(CHAR(160),SUBSTITUTE($R20,\"{\",CHAR(160),FM$1)),FIND(CHAR(160),SUBSTITUTE($R20,\"}\",CHAR(160),FM$1))-FIND(CHAR(160),SUBSTITUTE($R20,\"{\",CHAR(160),FM$1))+1),\"\")","v":""},{"$f":"IFERROR(MID($R20,FIND(CHAR(160),SUBSTITUTE($R20,\"{\",CHAR(160),FN$1)),FIND(CHAR(160),SUBSTITUTE($R20,\"}\",CHAR(160),FN$1))-FIND(CHAR(160),SUBSTITUTE($R20,\"{\",CHAR(160),FN$1))+1),\"\")","v":""},{"$f":"IFERROR(MID($R20,FIND(CHAR(160),SUBSTITUTE($R20,\"{\",CHAR(160),FO$1)),FIND(CHAR(160),SUBSTITUTE($R20,\"}\",CHAR(160),FO$1))-FIND(CHAR(160),SUBSTITUTE($R20,\"{\",CHAR(160),FO$1))+1),\"\")","v":""},{"$f":"IFERROR(MID($R20,FIND(CHAR(160),SUBSTITUTE($R20,\"{\",CHAR(160),FP$1)),FIND(CHAR(160),SUBSTITUTE($R20,\"}\",CHAR(160),FP$1))-FIND(CHAR(160),SUBSTITUTE($R20,\"{\",CHAR(160),FP$1))+1),\"\")","v":""},{"$f":"IFERROR(MID($R20,FIND(CHAR(160),SUBSTITUTE($R20,\"{\",CHAR(160),FQ$1)),FIND(CHAR(160),SUBSTITUTE($R20,\"}\",CHAR(160),FQ$1))-FIND(CHAR(160),SUBSTITUTE($R20,\"{\",CHAR(160),FQ$1))+1),\"\")","v":""},{"$f":"IFERROR(MID($R20,FIND(CHAR(160),SUBSTITUTE($R20,\"{\",CHAR(160),FR$1)),FIND(CHAR(160),SUBSTITUTE($R20,\"}\",CHAR(160),FR$1))-FIND(CHAR(160),SUBSTITUTE($R20,\"{\",CHAR(160),FR$1))+1),\"\")","v":""},{"$f":"IFERROR(MID($R20,FIND(CHAR(160),SUBSTITUTE($R20,\"{\",CHAR(160),FS$1)),FIND(CHAR(160),SUBSTITUTE($R20,\"}\",CHAR(160),FS$1))-FIND(CHAR(160),SUBSTITUTE($R20,\"{\",CHAR(160),FS$1))+1),\"\")","v":""},{"$f":"IFERROR(MID($R20,FIND(CHAR(160),SUBSTITUTE($R20,\"{\",CHAR(160),FT$1)),FIND(CHAR(160),SUBSTITUTE($R20,\"}\",CHAR(160),FT$1))-FIND(CHAR(160),SUBSTITUTE($R20,\"{\",CHAR(160),FT$1))+1),\"\")","v":""},{"$f":"IFERROR(MID($R20,FIND(CHAR(160),SUBSTITUTE($R20,\"{\",CHAR(160),FU$1)),FIND(CHAR(160),SUBSTITUTE($R20,\"}\",CHAR(160),FU$1))-FIND(CHAR(160),SUBSTITUTE($R20,\"{\",CHAR(160),FU$1))+1),\"\")","v":"{Measure:Quantity}"},{"$f":"IFERROR(MID($R20,FIND(CHAR(160),SUBSTITUTE($R20,\"{\",CHAR(160),FV$1)),FIND(CHAR(160),SUBSTITUTE($R20,\"}\",CHAR(160),FV$1))-FIND(CHAR(160),SUBSTITUTE($R20,\"{\",CHAR(160),FV$1))+1),\"\")","v":""},{"$f":"IFERROR(MID($U20,FIND(CHAR(160),SUBSTITUTE($U20,\"{\",CHAR(160),FW$1)),FIND(CHAR(160),SUBSTITUTE($U20,\"}\",CHAR(160),FW$1))-FIND(CHAR(160),SUBSTITUTE($U20,\"{\",CHAR(160),FW$1))+1),\"\")","v":""},{"$f":"IFERROR(MID($U20,FIND(CHAR(160),SUBSTITUTE($U20,\"{\",CHAR(160),FX$1)),FIND(CHAR(160),SUBSTITUTE($U20,\"}\",CHAR(160),FX$1))-FIND(CHAR(160),SUBSTITUTE($U20,\"{\",CHAR(160),FX$1))+1),\"\")","v":""},{"$f":"IFERROR(MID($U20,FIND(CHAR(160),SUBSTITUTE($U20,\"{\",CHAR(160),FY$1)),FIND(CHAR(160),SUBSTITUTE($U20,\"}\",CHAR(160),FY$1))-FIND(CHAR(160),SUBSTITUTE($U20,\"{\",CHAR(160),FY$1))+1),\"\")","v":""},{"$f":"IFERROR(MID($U20,FIND(CHAR(160),SUBSTITUTE($U20,\"{\",CHAR(160),FZ$1)),FIND(CHAR(160),SUBSTITUTE($U20,\"}\",CHAR(160),FZ$1))-FIND(CHAR(160),SUBSTITUTE($U20,\"{\",CHAR(160),FZ$1))+1),\"\")","v":""},{"$f":"IFERROR(MID($U20,FIND(CHAR(160),SUBSTITUTE($U20,\"{\",CHAR(160),GA$1)),FIND(CHAR(160),SUBSTITUTE($U20,\"}\",CHAR(160),GA$1))-FIND(CHAR(160),SUBSTITUTE($U20,\"{\",CHAR(160),GA$1))+1),\"\")","v":""},{"$f":"IFERROR(MID($U20,FIND(CHAR(160),SUBSTITUTE($U20,\"{\",CHAR(160),GB$1)),FIND(CHAR(160),SUBSTITUTE($U20,\"}\",CHAR(160),GB$1))-FIND(CHAR(160),SUBSTITUTE($U20,\"{\",CHAR(160),GB$1))+1),\"\")","v":""},{"$f":"IFERROR(MID($U20,FIND(CHAR(160),SUBSTITUTE($U20,\"{\",CHAR(160),GC$1)),FIND(CHAR(160),SUBSTITUTE($U20,\"}\",CHAR(160),GC$1))-FIND(CHAR(160),SUBSTITUTE($U20,\"{\",CHAR(160),GC$1))+1),\"\")","v":""},{"$f":"IFERROR(MID($U20,FIND(CHAR(160),SUBSTITUTE($U20,\"{\",CHAR(160),GD$1)),FIND(CHAR(160),SUBSTITUTE($U20,\"}\",CHAR(160),GD$1))-FIND(CHAR(160),SUBSTITUTE($U20,\"{\",CHAR(160),GD$1))+1),\"\")","v":""},{"$f":"IFERROR(MID($U20,FIND(CHAR(160),SUBSTITUTE($U20,\"{\",CHAR(160),GE$1)),FIND(CHAR(160),SUBSTITUTE($U20,\"}\",CHAR(160),GE$1))-FIND(CHAR(160),SUBSTITUTE($U20,\"{\",CHAR(160),GE$1))+1),\"\")","v":"{Measure:Quantity}"},{"$f":"IFERROR(MID($U20,FIND(CHAR(160),SUBSTITUTE($U20,\"{\",CHAR(160),GF$1)),FIND(CHAR(160),SUBSTITUTE($U20,\"}\",CHAR(160),GF$1))-FIND(CHAR(160),SUBSTITUTE($U20,\"{\",CHAR(160),GF$1))+1),\"\")","v":"{Factor:WinterCF}"},{"$f":"IFERROR(MID($V20,FIND(CHAR(160),SUBSTITUTE($V20,\"{\",CHAR(160),GG$1)),FIND(CHAR(160),SUBSTITUTE($V20,\"}\",CHAR(160),GG$1))-FIND(CHAR(160),SUBSTITUTE($V20,\"{\",CHAR(160),GG$1))+1),\"\")","v":""},{"$f":"IFERROR(MID($V20,FIND(CHAR(160),SUBSTITUTE($V20,\"{\",CHAR(160),GH$1)),FIND(CHAR(160),SUBSTITUTE($V20,\"}\",CHAR(160),GH$1))-FIND(CHAR(160),SUBSTITUTE($V20,\"{\",CHAR(160),GH$1))+1),\"\")","v":""},{"$f":"IFERROR(MID($V20,FIND(CHAR(160),SUBSTITUTE($V20,\"{\",CHAR(160),GI$1)),FIND(CHAR(160),SUBSTITUTE($V20,\"}\",CHAR(160),GI$1))-FIND(CHAR(160),SUBSTITUTE($V20,\"{\",CHAR(160),GI$1))+1),\"\")","v":""},{"$f":"IFERROR(MID($V20,FIND(CHAR(160),SUBSTITUTE($V20,\"{\",CHAR(160),GJ$1)),FIND(CHAR(160),SUBSTITUTE($V20,\"}\",CHAR(160),GJ$1))-FIND(CHAR(160),SUBSTITUTE($V20,\"{\",CHAR(160),GJ$1))+1),\"\")","v":""},{"$f":"IFERROR(MID($V20,FIND(CHAR(160),SUBSTITUTE($V20,\"{\",CHAR(160),GK$1)),FIND(CHAR(160),SUBSTITUTE($V20,\"}\",CHAR(160),GK$1))-FIND(CHAR(160),SUBSTITUTE($V20,\"{\",CHAR(160),GK$1))+1),\"\")","v":""},{"$f":"IFERROR(MID($V20,FIND(CHAR(160),SUBSTITUTE($V20,\"{\",CHAR(160),GL$1)),FIND(CHAR(160),SUBSTITUTE($V20,\"}\",CHAR(160),GL$1))-FIND(CHAR(160),SUBSTITUTE($V20,\"{\",CHAR(160),GL$1))+1),\"\")","v":""},{"$f":"IFERROR(MID($V20,FIND(CHAR(160),SUBSTITUTE($V20,\"{\",CHAR(160),GM$1)),FIND(CHAR(160),SUBSTITUTE($V20,\"}\",CHAR(160),GM$1))-FIND(CHAR(160),SUBSTITUTE($V20,\"{\",CHAR(160),GM$1))+1),\"\")","v":""},{"$f":"IFERROR(MID($V20,FIND(CHAR(160),SUBSTITUTE($V20,\"{\",CHAR(160),GN$1)),FIND(CHAR(160),SUBSTITUTE($V20,\"}\",CHAR(160),GN$1))-FIND(CHAR(160),SUBSTITUTE($V20,\"{\",CHAR(160),GN$1))+1),\"\")","v":""},{"$f":"IFERROR(MID($V20,FIND(CHAR(160),SUBSTITUTE($V20,\"{\",CHAR(160),GO$1)),FIND(CHAR(160),SUBSTITUTE($V20,\"}\",CHAR(160),GO$1))-FIND(CHAR(160),SUBSTITUTE($V20,\"{\",CHAR(160),GO$1))+1),\"\")","v":"{Measure:Quantity}"},{"$f":"IFERROR(MID($V20,FIND(CHAR(160),SUBSTITUTE($V20,\"{\",CHAR(160),GP$1)),FIND(CHAR(160),SUBSTITUTE($V20,\"}\",CHAR(160),GP$1))-FIND(CHAR(160),SUBSTITUTE($V20,\"{\",CHAR(160),GP$1))+1),\"\")","v":"{Factor:SummerCF}"},{"$f":"IFERROR(MID($W20,FIND(CHAR(160),SUBSTITUTE($W20,\"{\",CHAR(160),GQ$1)),FIND(CHAR(160),SUBSTITUTE($W20,\"}\",CHAR(160),GQ$1))-FIND(CHAR(160),SUBSTITUTE($W20,\"{\",CHAR(160),GQ$1))+1),\"\")","v":""},{"$f":"IFERROR(MID($W20,FIND(CHAR(160),SUBSTITUTE($W20,\"{\",CHAR(160),GR$1)),FIND(CHAR(160),SUBSTITUTE($W20,\"}\",CHAR(160),GR$1))-FIND(CHAR(160),SUBSTITUTE($W20,\"{\",CHAR(160),GR$1))+1),\"\")","v":""},{"$f":"IFERROR(MID($W20,FIND(CHAR(160),SUBSTITUTE($W20,\"{\",CHAR(160),GS$1)),FIND(CHAR(160),SUBSTITUTE($W20,\"}\",CHAR(160),GS$1))-FIND(CHAR(160),SUBSTITUTE($W20,\"{\",CHAR(160),GS$1))+1),\"\")","v":""},{"$f":"IFERROR(MID($W20,FIND(CHAR(160),SUBSTITUTE($W20,\"{\",CHAR(160),GT$1)),FIND(CHAR(160),SUBSTITUTE($W20,\"}\",CHAR(160),GT$1))-FIND(CHAR(160),SUBSTITUTE($W20,\"{\",CHAR(160),GT$1))+1),\"\")","v":""},{"$f":"IFERROR(MID($W20,FIND(CHAR(160),SUBSTITUTE($W20,\"{\",CHAR(160),GU$1)),FIND(CHAR(160),SUBSTITUTE($W20,\"}\",CHAR(160),GU$1))-FIND(CHAR(160),SUBSTITUTE($W20,\"{\",CHAR(160),GU$1))+1),\"\")","v":""},{"$f":"IFERROR(MID($W20,FIND(CHAR(160),SUBSTITUTE($W20,\"{\",CHAR(160),GV$1)),FIND(CHAR(160),SUBSTITUTE($W20,\"}\",CHAR(160),GV$1))-FIND(CHAR(160),SUBSTITUTE($W20,\"{\",CHAR(160),GV$1))+1),\"\")","v":""},{"$f":"IFERROR(MID($W20,FIND(CHAR(160),SUBSTITUTE($W20,\"{\",CHAR(160),GW$1)),FIND(CHAR(160),SUBSTITUTE($W20,\"}\",CHAR(160),GW$1))-FIND(CHAR(160),SUBSTITUTE($W20,\"{\",CHAR(160),GW$1))+1),\"\")","v":""},{"$f":"IFERROR(MID($W20,FIND(CHAR(160),SUBSTITUTE($W20,\"{\",CHAR(160),GX$1)),FIND(CHAR(160),SUBSTITUTE($W20,\"}\",CHAR(160),GX$1))-FIND(CHAR(160),SUBSTITUTE($W20,\"{\",CHAR(160),GX$1))+1),\"\")","v":""},{"$f":"IFERROR(MID($W20,FIND(CHAR(160),SUBSTITUTE($W20,\"{\",CHAR(160),GY$1)),FIND(CHAR(160),SUBSTITUTE($W20,\"}\",CHAR(160),GY$1))-FIND(CHAR(160),SUBSTITUTE($W20,\"{\",CHAR(160),GY$1))+1),\"\")","v":"{Measure:Quantity}"},{"$f":"IFERROR(MID($W20,FIND(CHAR(160),SUBSTITUTE($W20,\"{\",CHAR(160),GZ$1)),FIND(CHAR(160),SUBSTITUTE($W20,\"}\",CHAR(160),GZ$1))-FIND(CHAR(160),SUBSTITUTE($W20,\"{\",CHAR(160),GZ$1))+1),\"\")","v":""},{"$f":"IFERROR(MID($X20,FIND(CHAR(160),SUBSTITUTE($X20,\"{\",CHAR(160),HA$1)),FIND(CHAR(160),SUBSTITUTE($X20,\"}\",CHAR(160),HA$1))-FIND(CHAR(160),SUBSTITUTE($X20,\"{\",CHAR(160),HA$1))+1),\"\")","v":""},{"$f":"IFERROR(MID($X20,FIND(CHAR(160),SUBSTITUTE($X20,\"{\",CHAR(160),HB$1)),FIND(CHAR(160),SUBSTITUTE($X20,\"}\",CHAR(160),HB$1))-FIND(CHAR(160),SUBSTITUTE($X20,\"{\",CHAR(160),HB$1))+1),\"\")","v":""},{"$f":"IFERROR(MID($X20,FIND(CHAR(160),SUBSTITUTE($X20,\"{\",CHAR(160),HC$1)),FIND(CHAR(160),SUBSTITUTE($X20,\"}\",CHAR(160),HC$1))-FIND(CHAR(160),SUBSTITUTE($X20,\"{\",CHAR(160),HC$1))+1),\"\")","v":""},{"$f":"IFERROR(MID($X20,FIND(CHAR(160),SUBSTITUTE($X20,\"{\",CHAR(160),HD$1)),FIND(CHAR(160),SUBSTITUTE($X20,\"}\",CHAR(160),HD$1))-FIND(CHAR(160),SUBSTITUTE($X20,\"{\",CHAR(160),HD$1))+1),\"\")","v":""},{"$f":"IFERROR(MID($X20,FIND(CHAR(160),SUBSTITUTE($X20,\"{\",CHAR(160),HE$1)),FIND(CHAR(160),SUBSTITUTE($X20,\"}\",CHAR(160),HE$1))-FIND(CHAR(160),SUBSTITUTE($X20,\"{\",CHAR(160),HE$1))+1),\"\")","v":""},{"$f":"IFERROR(MID($X20,FIND(CHAR(160),SUBSTITUTE($X20,\"{\",CHAR(160),HF$1)),FIND(CHAR(160),SUBSTITUTE($X20,\"}\",CHAR(160),HF$1))-FIND(CHAR(160),SUBSTITUTE($X20,\"{\",CHAR(160),HF$1))+1),\"\")","v":""},{"$f":"IFERROR(MID($X20,FIND(CHAR(160),SUBSTITUTE($X20,\"{\",CHAR(160),HG$1)),FIND(CHAR(160),SUBSTITUTE($X20,\"}\",CHAR(160),HG$1))-FIND(CHAR(160),SUBSTITUTE($X20,\"{\",CHAR(160),HG$1))+1),\"\")","v":""},{"$f":"IFERROR(MID($X20,FIND(CHAR(160),SUBSTITUTE($X20,\"{\",CHAR(160),HH$1)),FIND(CHAR(160),SUBSTITUTE($X20,\"}\",CHAR(160),HH$1))-FIND(CHAR(160),SUBSTITUTE($X20,\"{\",CHAR(160),HH$1))+1),\"\")","v":""},{"$f":"IFERROR(MID($X20,FIND(CHAR(160),SUBSTITUTE($X20,\"{\",CHAR(160),HI$1)),FIND(CHAR(160),SUBSTITUTE($X20,\"}\",CHAR(160),HI$1))-FIND(CHAR(160),SUBSTITUTE($X20,\"{\",CHAR(160),HI$1))+1),\"\")","v":"{Measure:Quantity}"},{"$f":"IFERROR(MID($X20,FIND(CHAR(160),SUBSTITUTE($X20,\"{\",CHAR(160),HJ$1)),FIND(CHAR(160),SUBSTITUTE($X20,\"}\",CHAR(160),HJ$1))-FIND(CHAR(160),SUBSTITUTE($X20,\"{\",CHAR(160),HJ$1))+1),\"\")","v":""},{"$f":"IFERROR(MID($Y20,FIND(CHAR(160),SUBSTITUTE($Y20,\"{\",CHAR(160),HK$1)),FIND(CHAR(160),SUBSTITUTE($Y20,\"}\",CHAR(160),HK$1))-FIND(CHAR(160),SUBSTITUTE($Y20,\"{\",CHAR(160),HK$1))+1),\"\")","v":""},{"$f":"IFERROR(MID($Y20,FIND(CHAR(160),SUBSTITUTE($Y20,\"{\",CHAR(160),HL$1)),FIND(CHAR(160),SUBSTITUTE($Y20,\"}\",CHAR(160),HL$1))-FIND(CHAR(160),SUBSTITUTE($Y20,\"{\",CHAR(160),HL$1))+1),\"\")","v":""},{"$f":"IFERROR(MID($Y20,FIND(CHAR(160),SUBSTITUTE($Y20,\"{\",CHAR(160),HM$1)),FIND(CHAR(160),SUBSTITUTE($Y20,\"}\",CHAR(160),HM$1))-FIND(CHAR(160),SUBSTITUTE($Y20,\"{\",CHAR(160),HM$1))+1),\"\")","v":""},{"$f":"IFERROR(MID($Y20,FIND(CHAR(160),SUBSTITUTE($Y20,\"{\",CHAR(160),HN$1)),FIND(CHAR(160),SUBSTITUTE($Y20,\"}\",CHAR(160),HN$1))-FIND(CHAR(160),SUBSTITUTE($Y20,\"{\",CHAR(160),HN$1))+1),\"\")","v":""},{"$f":"IFERROR(MID($Y20,FIND(CHAR(160),SUBSTITUTE($Y20,\"{\",CHAR(160),HO$1)),FIND(CHAR(160),SUBSTITUTE($Y20,\"}\",CHAR(160),HO$1))-FIND(CHAR(160),SUBSTITUTE($Y20,\"{\",CHAR(160),HO$1))+1),\"\")","v":""},{"$f":"IFERROR(MID($Y20,FIND(CHAR(160),SUBSTITUTE($Y20,\"{\",CHAR(160),HP$1)),FIND(CHAR(160),SUBSTITUTE($Y20,\"}\",CHAR(160),HP$1))-FIND(CHAR(160),SUBSTITUTE($Y20,\"{\",CHAR(160),HP$1))+1),\"\")","v":""},{"$f":"IFERROR(MID($Y20,FIND(CHAR(160),SUBSTITUTE($Y20,\"{\",CHAR(160),HQ$1)),FIND(CHAR(160),SUBSTITUTE($Y20,\"}\",CHAR(160),HQ$1))-FIND(CHAR(160),SUBSTITUTE($Y20,\"{\",CHAR(160),HQ$1))+1),\"\")","v":""},{"$f":"IFERROR(MID($Y20,FIND(CHAR(160),SUBSTITUTE($Y20,\"{\",CHAR(160),HR$1)),FIND(CHAR(160),SUBSTITUTE($Y20,\"}\",CHAR(160),HR$1))-FIND(CHAR(160),SUBSTITUTE($Y20,\"{\",CHAR(160),HR$1))+1),\"\")","v":""},{"$f":"IFERROR(MID($Y20,FIND(CHAR(160),SUBSTITUTE($Y20,\"{\",CHAR(160),HS$1)),FIND(CHAR(160),SUBSTITUTE($Y20,\"}\",CHAR(160),HS$1))-FIND(CHAR(160),SUBSTITUTE($Y20,\"{\",CHAR(160),HS$1))+1),\"\")","v":"{Measure:Quantity}"},{"$f":"IFERROR(MID($Y20,FIND(CHAR(160),SUBSTITUTE($Y20,\"{\",CHAR(160),HT$1)),FIND(CHAR(160),SUBSTITUTE($Y20,\"}\",CHAR(160),HT$1))-FIND(CHAR(160),SUBSTITUTE($Y20,\"{\",CHAR(160),HT$1))+1),\"\")","v":""},{"$f":"IFERROR(MID($Z20,FIND(CHAR(160),SUBSTITUTE($Z20,\"{\",CHAR(160),HU$1)),FIND(CHAR(160),SUBSTITUTE($Z20,\"}\",CHAR(160),HU$1))-FIND(CHAR(160),SUBSTITUTE($Z20,\"{\",CHAR(160),HU$1))+1),\"\")","v":""},{"$f":"IFERROR(MID($Z20,FIND(CHAR(160),SUBSTITUTE($Z20,\"{\",CHAR(160),HV$1)),FIND(CHAR(160),SUBSTITUTE($Z20,\"}\",CHAR(160),HV$1))-FIND(CHAR(160),SUBSTITUTE($Z20,\"{\",CHAR(160),HV$1))+1),\"\")","v":""},{"$f":"IFERROR(MID($Z20,FIND(CHAR(160),SUBSTITUTE($Z20,\"{\",CHAR(160),HW$1)),FIND(CHAR(160),SUBSTITUTE($Z20,\"}\",CHAR(160),HW$1))-FIND(CHAR(160),SUBSTITUTE($Z20,\"{\",CHAR(160),HW$1))+1),\"\")","v":""},{"$f":"IFERROR(MID($Z20,FIND(CHAR(160),SUBSTITUTE($Z20,\"{\",CHAR(160),HX$1)),FIND(CHAR(160),SUBSTITUTE($Z20,\"}\",CHAR(160),HX$1))-FIND(CHAR(160),SUBSTITUTE($Z20,\"{\",CHAR(160),HX$1))+1),\"\")","v":""},{"$f":"IFERROR(MID($Z20,FIND(CHAR(160),SUBSTITUTE($Z20,\"{\",CHAR(160),HY$1)),FIND(CHAR(160),SUBSTITUTE($Z20,\"}\",CHAR(160),HY$1))-FIND(CHAR(160),SUBSTITUTE($Z20,\"{\",CHAR(160),HY$1))+1),\"\")","v":""},{"$f":"IFERROR(MID($Z20,FIND(CHAR(160),SUBSTITUTE($Z20,\"{\",CHAR(160),HZ$1)),FIND(CHAR(160),SUBSTITUTE($Z20,\"}\",CHAR(160),HZ$1))-FIND(CHAR(160),SUBSTITUTE($Z20,\"{\",CHAR(160),HZ$1))+1),\"\")","v":""},{"$f":"IFERROR(MID($Z20,FIND(CHAR(160),SUBSTITUTE($Z20,\"{\",CHAR(160),IA$1)),FIND(CHAR(160),SUBSTITUTE($Z20,\"}\",CHAR(160),IA$1))-FIND(CHAR(160),SUBSTITUTE($Z20,\"{\",CHAR(160),IA$1))+1),\"\")","v":""},{"$f":"IFERROR(MID($Z20,FIND(CHAR(160),SUBSTITUTE($Z20,\"{\",CHAR(160),IB$1)),FIND(CHAR(160),SUBSTITUTE($Z20,\"}\",CHAR(160),IB$1))-FIND(CHAR(160),SUBSTITUTE($Z20,\"{\",CHAR(160),IB$1))+1),\"\")","v":""},{"$f":"IFERROR(MID($Z20,FIND(CHAR(160),SUBSTITUTE($Z20,\"{\",CHAR(160),IC$1)),FIND(CHAR(160),SUBSTITUTE($Z20,\"}\",CHAR(160),IC$1))-FIND(CHAR(160),SUBSTITUTE($Z20,\"{\",CHAR(160),IC$1))+1),\"\")","v":""},{"$f":"IFERROR(MID($Z20,FIND(CHAR(160),SUBSTITUTE($Z20,\"{\",CHAR(160),ID$1)),FIND(CHAR(160),SUBSTITUTE($Z20,\"}\",CHAR(160),ID$1))-FIND(CHAR(160),SUBSTITUTE($Z20,\"{\",CHAR(160),ID$1))+1),\"\")","v":""},{"$f":"IFERROR(MID($AA20,FIND(CHAR(160),SUBSTITUTE($AA20,\"{\",CHAR(160),IE$1)),FIND(CHAR(160),SUBSTITUTE($AA20,\"}\",CHAR(160),IE$1))-FIND(CHAR(160),SUBSTITUTE($AA20,\"{\",CHAR(160),IE$1))+1),\"\")","v":""},{"$f":"IFERROR(MID($AA20,FIND(CHAR(160),SUBSTITUTE($AA20,\"{\",CHAR(160),IF$1)),FIND(CHAR(160),SUBSTITUTE($AA20,\"}\",CHAR(160),IF$1))-FIND(CHAR(160),SUBSTITUTE($AA20,\"{\",CHAR(160),IF$1))+1),\"\")","v":""},{"$f":"IFERROR(MID($AA20,FIND(CHAR(160),SUBSTITUTE($AA20,\"{\",CHAR(160),IG$1)),FIND(CHAR(160),SUBSTITUTE($AA20,\"}\",CHAR(160),IG$1))-FIND(CHAR(160),SUBSTITUTE($AA20,\"{\",CHAR(160),IG$1))+1),\"\")","v":""},{"$f":"IFERROR(MID($AA20,FIND(CHAR(160),SUBSTITUTE($AA20,\"{\",CHAR(160),IH$1)),FIND(CHAR(160),SUBSTITUTE($AA20,\"}\",CHAR(160),IH$1))-FIND(CHAR(160),SUBSTITUTE($AA20,\"{\",CHAR(160),IH$1))+1),\"\")","v":""},{"$f":"IFERROR(MID($AA20,FIND(CHAR(160),SUBSTITUTE($AA20,\"{\",CHAR(160),II$1)),FIND(CHAR(160),SUBSTITUTE($AA20,\"}\",CHAR(160),II$1))-FIND(CHAR(160),SUBSTITUTE($AA20,\"{\",CHAR(160),II$1))+1),\"\")","v":""},{"$f":"IFERROR(MID($AA20,FIND(CHAR(160),SUBSTITUTE($AA20,\"{\",CHAR(160),IJ$1)),FIND(CHAR(160),SUBSTITUTE($AA20,\"}\",CHAR(160),IJ$1))-FIND(CHAR(160),SUBSTITUTE($AA20,\"{\",CHAR(160),IJ$1))+1),\"\")","v":""},{"$f":"IFERROR(MID($AA20,FIND(CHAR(160),SUBSTITUTE($AA20,\"{\",CHAR(160),IK$1)),FIND(CHAR(160),SUBSTITUTE($AA20,\"}\",CHAR(160),IK$1))-FIND(CHAR(160),SUBSTITUTE($AA20,\"{\",CHAR(160),IK$1))+1),\"\")","v":""},{"$f":"IFERROR(MID($AA20,FIND(CHAR(160),SUBSTITUTE($AA20,\"{\",CHAR(160),IL$1)),FIND(CHAR(160),SUBSTITUTE($AA20,\"}\",CHAR(160),IL$1))-FIND(CHAR(160),SUBSTITUTE($AA20,\"{\",CHAR(160),IL$1))+1),\"\")","v":""},{"$f":"IFERROR(MID($AA20,FIND(CHAR(160),SUBSTITUTE($AA20,\"{\",CHAR(160),IM$1)),FIND(CHAR(160),SUBSTITUTE($AA20,\"}\",CHAR(160),IM$1))-FIND(CHAR(160),SUBSTITUTE($AA20,\"{\",CHAR(160),IM$1))+1),\"\")","v":""},{"$f":"IFERROR(MID($AA20,FIND(CHAR(160),SUBSTITUTE($AA20,\"{\",CHAR(160),IN$1)),FIND(CHAR(160),SUBSTITUTE($AA20,\"}\",CHAR(160),IN$1))-FIND(CHAR(160),SUBSTITUTE($AA20,\"{\",CHAR(160),IN$1))+1),\"\")","v":""},{"$f":"IFERROR(MID($AB20,FIND(CHAR(160),SUBSTITUTE($AB20,\"{\",CHAR(160),IO$1)),FIND(CHAR(160),SUBSTITUTE($AB20,\"}\",CHAR(160),IO$1))-FIND(CHAR(160),SUBSTITUTE($AB20,\"{\",CHAR(160),IO$1))+1),\"\")","v":""},{"$f":"IFERROR(MID($AB20,FIND(CHAR(160),SUBSTITUTE($AB20,\"{\",CHAR(160),IP$1)),FIND(CHAR(160),SUBSTITUTE($AB20,\"}\",CHAR(160),IP$1))-FIND(CHAR(160),SUBSTITUTE($AB20,\"{\",CHAR(160),IP$1))+1),\"\")","v":""},{"$f":"IFERROR(MID($AB20,FIND(CHAR(160),SUBSTITUTE($AB20,\"{\",CHAR(160),IQ$1)),FIND(CHAR(160),SUBSTITUTE($AB20,\"}\",CHAR(160),IQ$1))-FIND(CHAR(160),SUBSTITUTE($AB20,\"{\",CHAR(160),IQ$1))+1),\"\")","v":""},{"$f":"IFERROR(MID($AB20,FIND(CHAR(160),SUBSTITUTE($AB20,\"{\",CHAR(160),IR$1)),FIND(CHAR(160),SUBSTITUTE($AB20,\"}\",CHAR(160),IR$1))-FIND(CHAR(160),SUBSTITUTE($AB20,\"{\",CHAR(160),IR$1))+1),\"\")","v":""},{"$f":"IFERROR(MID($AB20,FIND(CHAR(160),SUBSTITUTE($AB20,\"{\",CHAR(160),IS$1)),FIND(CHAR(160),SUBSTITUTE($AB20,\"}\",CHAR(160),IS$1))-FIND(CHAR(160),SUBSTITUTE($AB20,\"{\",CHAR(160),IS$1))+1),\"\")","v":""},{"$f":"IFERROR(MID($AB20,FIND(CHAR(160),SUBSTITUTE($AB20,\"{\",CHAR(160),IT$1)),FIND(CHAR(160),SUBSTITUTE($AB20,\"}\",CHAR(160),IT$1))-FIND(CHAR(160),SUBSTITUTE($AB20,\"{\",CHAR(160),IT$1))+1),\"\")","v":""},{"$f":"IFERROR(MID($AB20,FIND(CHAR(160),SUBSTITUTE($AB20,\"{\",CHAR(160),IU$1)),FIND(CHAR(160),SUBSTITUTE($AB20,\"}\",CHAR(160),IU$1))-FIND(CHAR(160),SUBSTITUTE($AB20,\"{\",CHAR(160),IU$1))+1),\"\")","v":""},{"$f":"IFERROR(MID($AB20,FIND(CHAR(160),SUBSTITUTE($AB20,\"{\",CHAR(160),IV$1)),FIND(CHAR(160),SUBSTITUTE($AB20,\"}\",CHAR(160),IV$1))-FIND(CHAR(160),SUBSTITUTE($AB20,\"{\",CHAR(160),IV$1))+1),\"\")","v":""},{"$f":"IFERROR(MID($AB20,FIND(CHAR(160),SUBSTITUTE($AB20,\"{\",CHAR(160),IW$1)),FIND(CHAR(160),SUBSTITUTE($AB20,\"}\",CHAR(160),IW$1))-FIND(CHAR(160),SUBSTITUTE($AB20,\"{\",CHAR(160),IW$1))+1),\"\")","v":""},{"$f":"IFERROR(MID($AB20,FIND(CHAR(160),SUBSTITUTE($AB20,\"{\",CHAR(160),IX$1)),FIND(CHAR(160),SUBSTITUTE($AB20,\"}\",CHAR(160),IX$1))-FIND(CHAR(160),SUBSTITUTE($AB20,\"{\",CHAR(160),IX$1))+1),\"\")","v":""},null,{"$f":"10-COUNTIF(DU20:ED20,\"\")","v":2}]
["Arrearage Management Program","LED Low Income Standard Bulb Short Life","LILEDSTANS","2021-07-01","2022-06-30","Per Measure",2.5,0,"Per Measure",2.5,0,"2021-07-01","2022-06-30","Calculated","{Measure:Quantity}*if({Wattage}>13,42,26)",null,null,"{Measure:Quantity}*if({Wattage}>13,0.058,0.036)",null,null,"{Measure:Quantity}*if({Wattage}>13,0.009,0.006)","{Measure:Quantity}*if({Wattage}>13,0.004,0.003)","{Measure:Quantity}*if({Wattage}>13,-0.005,-0.003)","{Measure:Quantity}*if({Wattage}>13,-0.004,-0.003)","{Measure:Quantity}*if({Wattage}>13,-0.035,-0.022)","{Measure:Quantity}*if({Wattage}>13,-0.001,-0.001)","{Measure:Quantity}*if({Wattage}>13,-0.007,-0.005)",null,"2021-07-01","2022-06-30",3,0.17199999999999999,7.2999999999999995E-2,0.34899999999999998,0.33500000000000002,0.155,0.161,0.77,1,1,0,0,null,{"$f":"DU21","v":"{Measure:Quantity}"},1,{"$f":"DV21","v":"{Wattage}"},9,{"$f":"DW21","v":""},null,{"$f":"DX21","v":""},null,{"$f":"DY21","v":""},null,{"$f":"DZ21","v":""},null,{"$f":"EA21","v":""},null,{"$f":"EB21","v":""},null,{"$f":"EC21","v":""},null,{"$f":"ED21","v":""},null,{"$f":"AS21*IF(AU21>13,42,26)","v":26},0,0,{"$f":"AS21*IF(AU21>13,0.058,0.036)","v":3.5999999999999997E-2},0,0,{"$f":"AS21*IF(AU21>13,0.009,0.006)","v":6.0000000000000001E-3},{"$f":"AS21*IF(AU21>13,0.004,0.003)","v":3.0000000000000001E-3},{"$f":"AS21*IF(AU21>13,-0.005,-0.003)","v":-3.0000000000000001E-3},{"$f":"AS21*IF(AU21>13,-0.004,-0.003)","v":-3.0000000000000001E-3},{"$f":"AS21*IF(AU21>13,-0.035,-0.022)","v":-2.1999999999999999E-2},{"$f":"AS21*IF(AU21>13,-0.001,-0.001)","v":-1E-3},{"$f":"AS21*IF(AU21>13,-0.007,-0.005)","v":-5.0000000000000001E-3},0,null,"Res","Default DR",{"$f":"Benefits(BL21,BR21,BS21,BT21,BU21,BV21,BW21,BX21,BY21,BZ21,AE21,AH21,AI21,AJ21,AK21,AL21,AM21,AN21,AO21,AP21,CA21,CB21)","v":7.0137108153147958},5.1047136842770087,-1.1997321744538107E-2,-1.6468106038623445,-8.5413391341473771E-2,-0.31264763381232114,-0.20501871264757987,0,0,{"$f":"SUMPRODUCT(CC21:CK21,--(CC21:CK21>0))","v":12.118424499591804},{"$f":"-SUMPRODUCT(CC21:CK21,--(CC21:CK21<0))","v":2.2618876634082574},null,{"$f":"2.5","v":2.5},null,null,{"$f":"CM21+CO21","v":4.7618876634082579},{"$f":"IF(NetOrGross=\"Net\",(1-AO21+AP21),1)","v":1},{"$f":"(SUMPRODUCT(CC21:CJ21,--(CC21:CJ21>0))+CN21)*CS21/((-SUMPRODUCT(CC21:CJ21,--(CC21:CJ21<0))+MAX(CO21,CV21)+CP21+CQ21)*CS21+IF(FRIncentives=\"Yes\",CV21*(1-CS21),0))","v":2.5448782827686873},1,{"$f":"2.5","v":2.5},null,"Electric","y",null,{"$f":"IF(F21=\"Manual Entry\",\"Manual\",IF(G21=\"\",0,\"X=\"&SUBSTITUTE(SUBSTITUTE(SUBSTITUTE(SUBSTITUTE(SUBSTITUTE(SUBSTITUTE(SUBSTITUTE(SUBSTITUTE(SUBSTITUTE(SUBSTITUTE(SUBSTITUTE(SUBSTITUTE(G21,$ED21,$ED$2&ROW($ED21)),$EC21,$EC$2&ROW($EC21)),$EB21,$EB$2&ROW($EB21)),$EA21,$EA$2&ROW($EA21)),$DZ21,$DZ$2&ROW($DZ21)),$DY21,$DY$2&ROW($DY21)),$DX21,$DX$2&ROW($DX21)),$DW21,$DW$2&ROW($DW21)),$DV21,$DV$2&ROW($DV21)),$DU21,$DU$2&ROW($DU21)),$DT21,$DT$2&ROW($DT21)),$DS21,$DS$2&ROW($DS21))))","v":"X=2.5"},{"$f":"IF(I21=\"Manual Entry\",\"Manual\",IF(J21=\"\",0,\"X=\"&SUBSTITUTE(SUBSTITUTE(SUBSTITUTE(SUBSTITUTE(SUBSTITUTE(SUBSTITUTE(SUBSTITUTE(SUBSTITUTE(SUBSTITUTE(SUBSTITUTE(SUBSTITUTE(SUBSTITUTE(J21,$ED21,$ED$2&ROW($ED21)),$EC21,$EC$2&ROW($EC21)),$EB21,$EB$2&ROW($EB21)),$EA21,$EA$2&ROW($EA21)),$DZ21,$DZ$2&ROW($DZ21)),$DY21,$DY$2&ROW($DY21)),$DX21,$DX$2&ROW($DX21)),$DW21,$DW$2&ROW($DW21)),$DV21,$DV$2&ROW($DV21)),$DU21,$DU$2&ROW($DU21)),$DT21,$DT$2&ROW($DT21)),$DS21,$DS$2&ROW($DS21))))","v":"X=2.5"},{"$f":"IF(O21=\"\",0,\"X=\"&SUBSTITUTE(SUBSTITUTE(SUBSTITUTE(SUBSTITUTE(SUBSTITUTE(SUBSTITUTE(SUBSTITUTE(SUBSTITUTE(SUBSTITUTE(SUBSTITUTE(SUBSTITUTE(SUBSTITUTE(O21,$ED21,$ED$2&ROW($ED21)),$EC21,$EC$2&ROW($EC21)),$EB21,$EB$2&ROW($EB21)),$EA21,$EA$2&ROW($EA21)),$DZ21,$DZ$2&ROW($DZ21)),$DY21,$DY$2&ROW($DY21)),$DX21,$DX$2&ROW($DX21)),$DW21,$DW$2&ROW($DW21)),$DV21,$DV$2&ROW($DV21)),$DU21,$DU$2&ROW($DU21)),$DT21,$DT$2&ROW($DT21)),$DS21,$DS$2&ROW($DS21)))","v":"X=AS21*if(AU21>13,42,26)"},{"$f":"IF(P21=\"\",0,\"X=\"&SUBSTITUTE(SUBSTITUTE(SUBSTITUTE(SUBSTITUTE(SUBSTITUTE(SUBSTITUTE(SUBSTITUTE(SUBSTITUTE(SUBSTITUTE(SUBSTITUTE(SUBSTITUTE(SUBSTITUTE(P21,$ED21,$ED$2&ROW($ED21)),$EC21,$EC$2&ROW($EC21)),$EB21,$EB$2&ROW($EB21)),$EA21,$EA$2&ROW($EA21)),$DZ21,$DZ$2&ROW($DZ21)),$DY21,$DY$2&ROW($DY21)),$DX21,$DX$2&ROW($DX21)),$DW21,$DW$2&ROW($DW21)),$DV21,$DV$2&ROW($DV21)),$DU21,$DU$2&ROW($DU21)),$DT21,$DT$2&ROW($DT21)),$DS21,$DS$2&ROW($DS21)))","v":0},{"$f":"IF(Q21=\"\",0,\"X=\"&SUBSTITUTE(SUBSTITUTE(SUBSTITUTE(SUBSTITUTE(SUBSTITUTE(SUBSTITUTE(SUBSTITUTE(SUBSTITUTE(SUBSTITUTE(SUBSTITUTE(SUBSTITUTE(SUBSTITUTE(Q21,$ED21,$ED$2&ROW($ED21)),$EC21,$EC$2&ROW($EC21)),$EB21,$EB$2&ROW($EB21)),$EA21,$EA$2&ROW($EA21)),$DZ21,$DZ$2&ROW($DZ21)),$DY21,$DY$2&ROW($DY21)),$DX21,$DX$2&ROW($DX21)),$DW21,$DW$2&ROW($DW21)),$DV21,$DV$2&ROW($DV21)),$DU21,$DU$2&ROW($DU21)),$DT21,$DT$2&ROW($DT21)),$DS21,$DS$2&ROW($DS21)))","v":0},{"$f":"IF(R21=\"\",0,\"X=\"&SUBSTITUTE(SUBSTITUTE(SUBSTITUTE(SUBSTITUTE(SUBSTITUTE(SUBSTITUTE(SUBSTITUTE(SUBSTITUTE(SUBSTITUTE(SUBSTITUTE(SUBSTITUTE(SUBSTITUTE(R21,$ED21,$ED$2&ROW($ED21)),$EC21,$EC$2&ROW($EC21)),$EB21,$EB$2&ROW($EB21)),$EA21,$EA$2&ROW($EA21)),$DZ21,$DZ$2&ROW($DZ21)),$DY21,$DY$2&ROW($DY21)),$DX21,$DX$2&ROW($DX21)),$DW21,$DW$2&ROW($DW21)),$DV21,$DV$2&ROW($DV21)),$DU21,$DU$2&ROW($DU21)),$DT21,$DT$2&ROW($DT21)),$DS21,$DS$2&ROW($DS21)))","v":"X=AS21*if(AU21>13,0.058,0.036)"},{"$f":"IF(S21=\"\",0,\"X=\"&SUBSTITUTE(SUBSTITUTE(SUBSTITUTE(SUBSTITUTE(SUBSTITUTE(SUBSTITUTE(SUBSTITUTE(SUBSTITUTE(SUBSTITUTE(SUBSTITUTE(SUBSTITUTE(SUBSTITUTE(S21,$ED21,$ED$2&ROW($ED21)),$EC21,$EC$2&ROW($EC21)),$EB21,$EB$2&ROW($EB21)),$EA21,$EA$2&ROW($EA21)),$DZ21,$DZ$2&ROW($DZ21)),$DY21,$DY$2&ROW($DY21)),$DX21,$DX$2&ROW($DX21)),$DW21,$DW$2&ROW($DW21)),$DV21,$DV$2&ROW($DV21)),$DU21,$DU$2&ROW($DU21)),$DT21,$DT$2&ROW($DT21)),$DS21,$DS$2&ROW($DS21)))","v":0},{"$f":"IF(T21=\"\",0,\"X=\"&SUBSTITUTE(SUBSTITUTE(SUBSTITUTE(SUBSTITUTE(SUBSTITUTE(SUBSTITUTE(SUBSTITUTE(SUBSTITUTE(SUBSTITUTE(SUBSTITUTE(SUBSTITUTE(SUBSTITUTE(T21,$ED21,$ED$2&ROW($ED21)),$EC21,$EC$2&ROW($EC21)),$EB21,$EB$2&ROW($EB21)),$EA21,$EA$2&ROW($EA21)),$DZ21,$DZ$2&ROW($DZ21)),$DY21,$DY$2&ROW($DY21)),$DX21,$DX$2&ROW($DX21)),$DW21,$DW$2&ROW($DW21)),$DV21,$DV$2&ROW($DV21)),$DU21,$DU$2&ROW($DU21)),$DT21,$DT$2&ROW($DT21)),$DS21,$DS$2&ROW($DS21)))","v":0},{"$f":"IF(U21=\"\",0,\"X=\"&SUBSTITUTE(SUBSTITUTE(SUBSTITUTE(SUBSTITUTE(SUBSTITUTE(SUBSTITUTE(SUBSTITUTE(SUBSTITUTE(SUBSTITUTE(SUBSTITUTE(SUBSTITUTE(SUBSTITUTE(U21,$ED21,$ED$2&ROW($ED21)),$EC21,$EC$2&ROW($EC21)),$EB21,$EB$2&ROW($EB21)),$EA21,$EA$2&ROW($EA21)),$DZ21,$DZ$2&ROW($DZ21)),$DY21,$DY$2&ROW($DY21)),$DX21,$DX$2&ROW($DX21)),$DW21,$DW$2&ROW($DW21)),$DV21,$DV$2&ROW($DV21)),$DU21,$DU$2&ROW($DU21)),$DT21,$DT$2&ROW($DT21)),$DS21,$DS$2&ROW($DS21)))","v":"X=AS21*if(AU21>13,0.009,0.006)"},{"$f":"IF(V21=\"\",0,\"X=\"&SUBSTITUTE(SUBSTITUTE(SUBSTITUTE(SUBSTITUTE(SUBSTITUTE(SUBSTITUTE(SUBSTITUTE(SUBSTITUTE(SUBSTITUTE(SUBSTITUTE(SUBSTITUTE(SUBSTITUTE(V21,$ED21,$ED$2&ROW($ED21)),$EC21,$EC$2&ROW($EC21)),$EB21,$EB$2&ROW($EB21)),$EA21,$EA$2&ROW($EA21)),$DZ21,$DZ$2&ROW($DZ21)),$DY21,$DY$2&ROW($DY21)),$DX21,$DX$2&ROW($DX21)),$DW21,$DW$2&ROW($DW21)),$DV21,$DV$2&ROW($DV21)),$DU21,$DU$2&ROW($DU21)),$DT21,$DT$2&ROW($DT21)),$DS21,$DS$2&ROW($DS21)))","v":"X=AS21*if(AU21>13,0.004,0.003)"},{"$f":"IF(W21=\"\",0,\"X=\"&SUBSTITUTE(SUBSTITUTE(SUBSTITUTE(SUBSTITUTE(SUBSTITUTE(SUBSTITUTE(SUBSTITUTE(SUBSTITUTE(SUBSTITUTE(SUBSTITUTE(SUBSTITUTE(SUBSTITUTE(W21,$ED21,$ED$2&ROW($ED21)),$EC21,$EC$2&ROW($EC21)),$EB21,$EB$2&ROW($EB21)),$EA21,$EA$2&ROW($EA21)),$DZ21,$DZ$2&ROW($DZ21)),$DY21,$DY$2&ROW($DY21)),$DX21,$DX$2&ROW($DX21)),$DW21,$DW$2&ROW($DW21)),$DV21,$DV$2&ROW($DV21)),$DU21,$DU$2&ROW($DU21)),$DT21,$DT$2&ROW($DT21)),$DS21,$DS$2&ROW($DS21)))","v":"X=AS21*if(AU21>13,-0.005,-0.003)"},{"$f":"IF(X21=\"\",0,\"X=\"&SUBSTITUTE(SUBSTITUTE(SUBSTITUTE(SUBSTITUTE(SUBSTITUTE(SUBSTITUTE(SUBSTITUTE(SUBSTITUTE(SUBSTITUTE(SUBSTITUTE(SUBSTITUTE(SUBSTITUTE(X21,$ED21,$ED$2&ROW($ED21)),$EC21,$EC$2&ROW($EC21)),$EB21,$EB$2&ROW($EB21)),$EA21,$EA$2&ROW($EA21)),$DZ21,$DZ$2&ROW($DZ21)),$DY21,$DY$2&ROW($DY21)),$DX21,$DX$2&ROW($DX21)),$DW21,$DW$2&ROW($DW21)),$DV21,$DV$2&ROW($DV21)),$DU21,$DU$2&ROW($DU21)),$DT21,$DT$2&ROW($DT21)),$DS21,$DS$2&ROW($DS21)))","v":"X=AS21*if(AU21>13,-0.004,-0.003)"},{"$f":"IF(Y21=\"\",0,\"X=\"&SUBSTITUTE(SUBSTITUTE(SUBSTITUTE(SUBSTITUTE(SUBSTITUTE(SUBSTITUTE(SUBSTITUTE(SUBSTITUTE(SUBSTITUTE(SUBSTITUTE(SUBSTITUTE(SUBSTITUTE(Y21,$ED21,$ED$2&ROW($ED21)),$EC21,$EC$2&ROW($EC21)),$EB21,$EB$2&ROW($EB21)),$EA21,$EA$2&ROW($EA21)),$DZ21,$DZ$2&ROW($DZ21)),$DY21,$DY$2&ROW($DY21)),$DX21,$DX$2&ROW($DX21)),$DW21,$DW$2&ROW($DW21)),$DV21,$DV$2&ROW($DV21)),$DU21,$DU$2&ROW($DU21)),$DT21,$DT$2&ROW($DT21)),$DS21,$DS$2&ROW($DS21)))","v":"X=AS21*if(AU21>13,-0.035,-0.022)"},{"$f":"IF(Z21=\"\",0,\"X=\"&SUBSTITUTE(SUBSTITUTE(SUBSTITUTE(SUBSTITUTE(SUBSTITUTE(SUBSTITUTE(SUBSTITUTE(SUBSTITUTE(SUBSTITUTE(SUBSTITUTE(SUBSTITUTE(SUBSTITUTE(Z21,$ED21,$ED$2&ROW($ED21)),$EC21,$EC$2&ROW($EC21)),$EB21,$EB$2&ROW($EB21)),$EA21,$EA$2&ROW($EA21)),$DZ21,$DZ$2&ROW($DZ21)),$DY21,$DY$2&ROW($DY21)),$DX21,$DX$2&ROW($DX21)),$DW21,$DW$2&ROW($DW21)),$DV21,$DV$2&ROW($DV21)),$DU21,$DU$2&ROW($DU21)),$DT21,$DT$2&ROW($DT21)),$DS21,$DS$2&ROW($DS21)))","v":"X=AS21*if(AU21>13,-0.001,-0.001)"},{"$f":"IF(AA21=\"\",0,\"X=\"&SUBSTITUTE(SUBSTITUTE(SUBSTITUTE(SUBSTITUTE(SUBSTITUTE(SUBSTITUTE(SUBSTITUTE(SUBSTITUTE(SUBSTITUTE(SUBSTITUTE(SUBSTITUTE(SUBSTITUTE(AA21,$ED21,$ED$2&ROW($ED21)),$EC21,$EC$2&ROW($EC21)),$EB21,$EB$2&ROW($EB21)),$EA21,$EA$2&ROW($EA21)),$DZ21,$DZ$2&ROW($DZ21)),$DY21,$DY$2&ROW($DY21)),$DX21,$DX$2&ROW($DX21)),$DW21,$DW$2&ROW($DW21)),$DV21,$DV$2&ROW($DV21)),$DU21,$DU$2&ROW($DU21)),$DT21,$DT$2&ROW($DT21)),$DS21,$DS$2&ROW($DS21)))","v":"X=AS21*if(AU21>13,-0.007,-0.005)"},{"$f":"IF(AB21=\"\",0,\"X=\"&SUBSTITUTE(SUBSTITUTE(SUBSTITUTE(SUBSTITUTE(SUBSTITUTE(SUBSTITUTE(SUBSTITUTE(SUBSTITUTE(SUBSTITUTE(SUBSTITUTE(SUBSTITUTE(SUBSTITUTE(AB21,$ED21,$ED$2&ROW($ED21)),$EC21,$EC$2&ROW($EC21)),$EB21,$EB$2&ROW($EB21)),$EA21,$EA$2&ROW($EA21)),$DZ21,$DZ$2&ROW($DZ21)),$DY21,$DY$2&ROW($DY21)),$DX21,$DX$2&ROW($DX21)),$DW21,$DW$2&ROW($DW21)),$DV21,$DV$2&ROW($DV21)),$DU21,$DU$2&ROW($DU21)),$DT21,$DT$2&ROW($DT21)),$DS21,$DS$2&ROW($DS21)))","v":0},null,null,"{Factor:WinterCF}","{Factor:SummerCF}",{"$f":"IFERROR(INDEX($EG21:$IV21,MATCH(0,COUNTIF($DR21:DT21,$EG21:$IV21),0)),\"\")","v":"{Measure:Quantity}"},{"$f":"IFERROR(INDEX($EG21:$IV21,MATCH(0,COUNTIF($DR21:DU21,$EG21:$IV21),0)),\"\")","v":"{Wattage}"},{"$f":"IFERROR(INDEX($EG21:$IV21,MATCH(0,COUNTIF($DR21:DV21,$EG21:$IV21),0)),\"\")","v":""},{"$f":"IFERROR(INDEX($EG21:$IV21,MATCH(0,COUNTIF($DR21:DW21,$EG21:$IV21),0)),\"\")","v":""},{"$f":"IFERROR(INDEX($EG21:$IV21,MATCH(0,COUNTIF($DR21:DX21,$EG21:$IV21),0)),\"\")","v":""},{"$f":"IFERROR(INDEX($EG21:$IV21,MATCH(0,COUNTIF($DR21:DY21,$EG21:$IV21),0)),\"\")","v":""},{"$f":"IFERROR(INDEX($EG21:$IV21,MATCH(0,COUNTIF($DR21:DZ21,$EG21:$IV21),0)),\"\")","v":""},{"$f":"IFERROR(INDEX($EG21:$IV21,MATCH(0,COUNTIF($DR21:EA21,$EG21:$IV21),0)),\"\")","v":""},{"$f":"IFERROR(INDEX($EG21:$IV21,MATCH(0,COUNTIF($DR21:EB21,$EG21:$IV21),0)),\"\")","v":""},{"$f":"IFERROR(INDEX($EG21:$IV21,MATCH(0,COUNTIF($DR21:EC21,$EG21:$IV21),0)),\"\")","v":""},null,null,{"$f":"IFERROR(MID($G21,FIND(CHAR(160),SUBSTITUTE($G21,\"{\",CHAR(160),EG$1)),FIND(CHAR(160),SUBSTITUTE($G21,\"}\",CHAR(160),EG$1))-FIND(CHAR(160),SUBSTITUTE($G21,\"{\",CHAR(160),EG$1))+1),\"\")","v":""},{"$f":"IFERROR(MID($G21,FIND(CHAR(160),SUBSTITUTE($G21,\"{\",CHAR(160),EH$1)),FIND(CHAR(160),SUBSTITUTE($G21,\"}\",CHAR(160),EH$1))-FIND(CHAR(160),SUBSTITUTE($G21,\"{\",CHAR(160),EH$1))+1),\"\")","v":""},{"$f":"IFERROR(MID($G21,FIND(CHAR(160),SUBSTITUTE($G21,\"{\",CHAR(160),EI$1)),FIND(CHAR(160),SUBSTITUTE($G21,\"}\",CHAR(160),EI$1))-FIND(CHAR(160),SUBSTITUTE($G21,\"{\",CHAR(160),EI$1))+1),\"\")","v":""},{"$f":"IFERROR(MID($G21,FIND(CHAR(160),SUBSTITUTE($G21,\"{\",CHAR(160),EJ$1)),FIND(CHAR(160),SUBSTITUTE($G21,\"}\",CHAR(160),EJ$1))-FIND(CHAR(160),SUBSTITUTE($G21,\"{\",CHAR(160),EJ$1))+1),\"\")","v":""},{"$f":"IFERROR(MID($G21,FIND(CHAR(160),SUBSTITUTE($G21,\"{\",CHAR(160),EK$1)),FIND(CHAR(160),SUBSTITUTE($G21,\"}\",CHAR(160),EK$1))-FIND(CHAR(160),SUBSTITUTE($G21,\"{\",CHAR(160),EK$1))+1),\"\")","v":""},{"$f":"IFERROR(MID($G21,FIND(CHAR(160),SUBSTITUTE($G21,\"{\",CHAR(160),EL$1)),FIND(CHAR(160),SUBSTITUTE($G21,\"}\",CHAR(160),EL$1))-FIND(CHAR(160),SUBSTITUTE($G21,\"{\",CHAR(160),EL$1))+1),\"\")","v":""},{"$f":"IFERROR(MID($G21,FIND(CHAR(160),SUBSTITUTE($G21,\"{\",CHAR(160),EM$1)),FIND(CHAR(160),SUBSTITUTE($G21,\"}\",CHAR(160),EM$1))-FIND(CHAR(160),SUBSTITUTE($G21,\"{\",CHAR(160),EM$1))+1),\"\")","v":""},{"$f":"IFERROR(MID($G21,FIND(CHAR(160),SUBSTITUTE($G21,\"{\",CHAR(160),EN$1)),FIND(CHAR(160),SUBSTITUTE($G21,\"}\",CHAR(160),EN$1))-FIND(CHAR(160),SUBSTITUTE($G21,\"{\",CHAR(160),EN$1))+1),\"\")","v":""},{"$f":"IFERROR(MID($G21,FIND(CHAR(160),SUBSTITUTE($G21,\"{\",CHAR(160),EO$1)),FIND(CHAR(160),SUBSTITUTE($G21,\"}\",CHAR(160),EO$1))-FIND(CHAR(160),SUBSTITUTE($G21,\"{\",CHAR(160),EO$1))+1),\"\")","v":""},{"$f":"IFERROR(MID($G21,FIND(CHAR(160),SUBSTITUTE($G21,\"{\",CHAR(160),EP$1)),FIND(CHAR(160),SUBSTITUTE($G21,\"}\",CHAR(160),EP$1))-FIND(CHAR(160),SUBSTITUTE($G21,\"{\",CHAR(160),EP$1))+1),\"\")","v":""},{"$f":"IFERROR(MID($J21,FIND(CHAR(160),SUBSTITUTE($J21,\"{\",CHAR(160),EQ$1)),FIND(CHAR(160),SUBSTITUTE($J21,\"}\",CHAR(160),EQ$1))-FIND(CHAR(160),SUBSTITUTE($J21,\"{\",CHAR(160),EQ$1))+1),\"\")","v":""},{"$f":"IFERROR(MID($J21,FIND(CHAR(160),SUBSTITUTE($J21,\"{\",CHAR(160),ER$1)),FIND(CHAR(160),SUBSTITUTE($J21,\"}\",CHAR(160),ER$1))-FIND(CHAR(160),SUBSTITUTE($J21,\"{\",CHAR(160),ER$1))+1),\"\")","v":""},{"$f":"IFERROR(MID($J21,FIND(CHAR(160),SUBSTITUTE($J21,\"{\",CHAR(160),ES$1)),FIND(CHAR(160),SUBSTITUTE($J21,\"}\",CHAR(160),ES$1))-FIND(CHAR(160),SUBSTITUTE($J21,\"{\",CHAR(160),ES$1))+1),\"\")","v":""},{"$f":"IFERROR(MID($J21,FIND(CHAR(160),SUBSTITUTE($J21,\"{\",CHAR(160),ET$1)),FIND(CHAR(160),SUBSTITUTE($J21,\"}\",CHAR(160),ET$1))-FIND(CHAR(160),SUBSTITUTE($J21,\"{\",CHAR(160),ET$1))+1),\"\")","v":""},{"$f":"IFERROR(MID($J21,FIND(CHAR(160),SUBSTITUTE($J21,\"{\",CHAR(160),EU$1)),FIND(CHAR(160),SUBSTITUTE($J21,\"}\",CHAR(160),EU$1))-FIND(CHAR(160),SUBSTITUTE($J21,\"{\",CHAR(160),EU$1))+1),\"\")","v":""},{"$f":"IFERROR(MID($J21,FIND(CHAR(160),SUBSTITUTE($J21,\"{\",CHAR(160),EV$1)),FIND(CHAR(160),SUBSTITUTE($J21,\"}\",CHAR(160),EV$1))-FIND(CHAR(160),SUBSTITUTE($J21,\"{\",CHAR(160),EV$1))+1),\"\")","v":""},{"$f":"IFERROR(MID($J21,FIND(CHAR(160),SUBSTITUTE($J21,\"{\",CHAR(160),EW$1)),FIND(CHAR(160),SUBSTITUTE($J21,\"}\",CHAR(160),EW$1))-FIND(CHAR(160),SUBSTITUTE($J21,\"{\",CHAR(160),EW$1))+1),\"\")","v":""},{"$f":"IFERROR(MID($J21,FIND(CHAR(160),SUBSTITUTE($J21,\"{\",CHAR(160),EX$1)),FIND(CHAR(160),SUBSTITUTE($J21,\"}\",CHAR(160),EX$1))-FIND(CHAR(160),SUBSTITUTE($J21,\"{\",CHAR(160),EX$1))+1),\"\")","v":""},{"$f":"IFERROR(MID($J21,FIND(CHAR(160),SUBSTITUTE($J21,\"{\",CHAR(160),EY$1)),FIND(CHAR(160),SUBSTITUTE($J21,\"}\",CHAR(160),EY$1))-FIND(CHAR(160),SUBSTITUTE($J21,\"{\",CHAR(160),EY$1))+1),\"\")","v":""},{"$f":"IFERROR(MID($J21,FIND(CHAR(160),SUBSTITUTE($J21,\"{\",CHAR(160),EZ$1)),FIND(CHAR(160),SUBSTITUTE($J21,\"}\",CHAR(160),EZ$1))-FIND(CHAR(160),SUBSTITUTE($J21,\"{\",CHAR(160),EZ$1))+1),\"\")","v":""},{"$f":"IFERROR(MID($J21,FIND(CHAR(160),SUBSTITUTE($J21,\"{\",CHAR(160),FA$1)),FIND(CHAR(160),SUBSTITUTE($J21,\"}\",CHAR(160),FA$1))-FIND(CHAR(160),SUBSTITUTE($J21,\"{\",CHAR(160),FA$1))+1),\"\")","v":""},{"$f":"IFERROR(MID($J21,FIND(CHAR(160),SUBSTITUTE($J21,\"{\",CHAR(160),FB$1)),FIND(CHAR(160),SUBSTITUTE($J21,\"}\",CHAR(160),FB$1))-FIND(CHAR(160),SUBSTITUTE($J21,\"{\",CHAR(160),FB$1))+1),\"\")","v":""},{"$f":"IFERROR(MID($O21,FIND(CHAR(160),SUBSTITUTE($O21,\"{\",CHAR(160),FC$1)),FIND(CHAR(160),SUBSTITUTE($O21,\"}\",CHAR(160),FC$1))-FIND(CHAR(160),SUBSTITUTE($O21,\"{\",CHAR(160),FC$1))+1),\"\")","v":""},{"$f":"IFERROR(MID($O21,FIND(CHAR(160),SUBSTITUTE($O21,\"{\",CHAR(160),FD$1)),FIND(CHAR(160),SUBSTITUTE($O21,\"}\",CHAR(160),FD$1))-FIND(CHAR(160),SUBSTITUTE($O21,\"{\",CHAR(160),FD$1))+1),\"\")","v":""},{"$f":"IFERROR(MID($O21,FIND(CHAR(160),SUBSTITUTE($O21,\"{\",CHAR(160),FE$1)),FIND(CHAR(160),SUBSTITUTE($O21,\"}\",CHAR(160),FE$1))-FIND(CHAR(160),SUBSTITUTE($O21,\"{\",CHAR(160),FE$1))+1),\"\")","v":""},{"$f":"IFERROR(MID($O21,FIND(CHAR(160),SUBSTITUTE($O21,\"{\",CHAR(160),FF$1)),FIND(CHAR(160),SUBSTITUTE($O21,\"}\",CHAR(160),FF$1))-FIND(CHAR(160),SUBSTITUTE($O21,\"{\",CHAR(160),FF$1))+1),\"\")","v":""},{"$f":"IFERROR(MID($O21,FIND(CHAR(160),SUBSTITUTE($O21,\"{\",CHAR(160),FG$1)),FIND(CHAR(160),SUBSTITUTE($O21,\"}\",CHAR(160),FG$1))-FIND(CHAR(160),SUBSTITUTE($O21,\"{\",CHAR(160),FG$1))+1),\"\")","v":""},{"$f":"IFERROR(MID($O21,FIND(CHAR(160),SUBSTITUTE($O21,\"{\",CHAR(160),FH$1)),FIND(CHAR(160),SUBSTITUTE($O21,\"}\",CHAR(160),FH$1))-FIND(CHAR(160),SUBSTITUTE($O21,\"{\",CHAR(160),FH$1))+1),\"\")","v":""},{"$f":"IFERROR(MID($O21,FIND(CHAR(160),SUBSTITUTE($O21,\"{\",CHAR(160),FI$1)),FIND(CHAR(160),SUBSTITUTE($O21,\"}\",CHAR(160),FI$1))-FIND(CHAR(160),SUBSTITUTE($O21,\"{\",CHAR(160),FI$1))+1),\"\")","v":""},{"$f":"IFERROR(MID($O21,FIND(CHAR(160),SUBSTITUTE($O21,\"{\",CHAR(160),FJ$1)),FIND(CHAR(160),SUBSTITUTE($O21,\"}\",CHAR(160),FJ$1))-FIND(CHAR(160),SUBSTITUTE($O21,\"{\",CHAR(160),FJ$1))+1),\"\")","v":""},{"$f":"IFERROR(MID($O21,FIND(CHAR(160),SUBSTITUTE($O21,\"{\",CHAR(160),FK$1)),FIND(CHAR(160),SUBSTITUTE($O21,\"}\",CHAR(160),FK$1))-FIND(CHAR(160),SUBSTITUTE($O21,\"{\",CHAR(160),FK$1))+1),\"\")","v":"{Measure:Quantity}"},{"$f":"IFERROR(MID($O21,FIND(CHAR(160),SUBSTITUTE($O21,\"{\",CHAR(160),FL$1)),FIND(CHAR(160),SUBSTITUTE($O21,\"}\",CHAR(160),FL$1))-FIND(CHAR(160),SUBSTITUTE($O21,\"{\",CHAR(160),FL$1))+1),\"\")","v":"{Wattage}"},{"$f":"IFERROR(MID($R21,FIND(CHAR(160),SUBSTITUTE($R21,\"{\",CHAR(160),FM$1)),FIND(CHAR(160),SUBSTITUTE($R21,\"}\",CHAR(160),FM$1))-FIND(CHAR(160),SUBSTITUTE($R21,\"{\",CHAR(160),FM$1))+1),\"\")","v":""},{"$f":"IFERROR(MID($R21,FIND(CHAR(160),SUBSTITUTE($R21,\"{\",CHAR(160),FN$1)),FIND(CHAR(160),SUBSTITUTE($R21,\"}\",CHAR(160),FN$1))-FIND(CHAR(160),SUBSTITUTE($R21,\"{\",CHAR(160),FN$1))+1),\"\")","v":""},{"$f":"IFERROR(MID($R21,FIND(CHAR(160),SUBSTITUTE($R21,\"{\",CHAR(160),FO$1)),FIND(CHAR(160),SUBSTITUTE($R21,\"}\",CHAR(160),FO$1))-FIND(CHAR(160),SUBSTITUTE($R21,\"{\",CHAR(160),FO$1))+1),\"\")","v":""},{"$f":"IFERROR(MID($R21,FIND(CHAR(160),SUBSTITUTE($R21,\"{\",CHAR(160),FP$1)),FIND(CHAR(160),SUBSTITUTE($R21,\"}\",CHAR(160),FP$1))-FIND(CHAR(160),SUBSTITUTE($R21,\"{\",CHAR(160),FP$1))+1),\"\")","v":""},{"$f":"IFERROR(MID($R21,FIND(CHAR(160),SUBSTITUTE($R21,\"{\",CHAR(160),FQ$1)),FIND(CHAR(160),SUBSTITUTE($R21,\"}\",CHAR(160),FQ$1))-FIND(CHAR(160),SUBSTITUTE($R21,\"{\",CHAR(160),FQ$1))+1),\"\")","v":""},{"$f":"IFERROR(MID($R21,FIND(CHAR(160),SUBSTITUTE($R21,\"{\",CHAR(160),FR$1)),FIND(CHAR(160),SUBSTITUTE($R21,\"}\",CHAR(160),FR$1))-FIND(CHAR(160),SUBSTITUTE($R21,\"{\",CHAR(160),FR$1))+1),\"\")","v":""},{"$f":"IFERROR(MID($R21,FIND(CHAR(160),SUBSTITUTE($R21,\"{\",CHAR(160),FS$1)),FIND(CHAR(160),SUBSTITUTE($R21,\"}\",CHAR(160),FS$1))-FIND(CHAR(160),SUBSTITUTE($R21,\"{\",CHAR(160),FS$1))+1),\"\")","v":""},{"$f":"IFERROR(MID($R21,FIND(CHAR(160),SUBSTITUTE($R21,\"{\",CHAR(160),FT$1)),FIND(CHAR(160),SUBSTITUTE($R21,\"}\",CHAR(160),FT$1))-FIND(CHAR(160),SUBSTITUTE($R21,\"{\",CHAR(160),FT$1))+1),\"\")","v":""},{"$f":"IFERROR(MID($R21,FIND(CHAR(160),SUBSTITUTE($R21,\"{\",CHAR(160),FU$1)),FIND(CHAR(160),SUBSTITUTE($R21,\"}\",CHAR(160),FU$1))-FIND(CHAR(160),SUBSTITUTE($R21,\"{\",CHAR(160),FU$1))+1),\"\")","v":"{Measure:Quantity}"},{"$f":"IFERROR(MID($R21,FIND(CHAR(160),SUBSTITUTE($R21,\"{\",CHAR(160),FV$1)),FIND(CHAR(160),SUBSTITUTE($R21,\"}\",CHAR(160),FV$1))-FIND(CHAR(160),SUBSTITUTE($R21,\"{\",CHAR(160),FV$1))+1),\"\")","v":"{Wattage}"},{"$f":"IFERROR(MID($U21,FIND(CHAR(160),SUBSTITUTE($U21,\"{\",CHAR(160),FW$1)),FIND(CHAR(160),SUBSTITUTE($U21,\"}\",CHAR(160),FW$1))-FIND(CHAR(160),SUBSTITUTE($U21,\"{\",CHAR(160),FW$1))+1),\"\")","v":""},{"$f":"IFERROR(MID($U21,FIND(CHAR(160),SUBSTITUTE($U21,\"{\",CHAR(160),FX$1)),FIND(CHAR(160),SUBSTITUTE($U21,\"}\",CHAR(160),FX$1))-FIND(CHAR(160),SUBSTITUTE($U21,\"{\",CHAR(160),FX$1))+1),\"\")","v":""},{"$f":"IFERROR(MID($U21,FIND(CHAR(160),SUBSTITUTE($U21,\"{\",CHAR(160),FY$1)),FIND(CHAR(160),SUBSTITUTE($U21,\"}\",CHAR(160),FY$1))-FIND(CHAR(160),SUBSTITUTE($U21,\"{\",CHAR(160),FY$1))+1),\"\")","v":""},{"$f":"IFERROR(MID($U21,FIND(CHAR(160),SUBSTITUTE($U21,\"{\",CHAR(160),FZ$1)),FIND(CHAR(160),SUBSTITUTE($U21,\"}\",CHAR(160),FZ$1))-FIND(CHAR(160),SUBSTITUTE($U21,\"{\",CHAR(160),FZ$1))+1),\"\")","v":""},{"$f":"IFERROR(MID($U21,FIND(CHAR(160),SUBSTITUTE($U21,\"{\",CHAR(160),GA$1)),FIND(CHAR(160),SUBSTITUTE($U21,\"}\",CHAR(160),GA$1))-FIND(CHAR(160),SUBSTITUTE($U21,\"{\",CHAR(160),GA$1))+1),\"\")","v":""},{"$f":"IFERROR(MID($U21,FIND(CHAR(160),SUBSTITUTE($U21,\"{\",CHAR(160),GB$1)),FIND(CHAR(160),SUBSTITUTE($U21,\"}\",CHAR(160),GB$1))-FIND(CHAR(160),SUBSTITUTE($U21,\"{\",CHAR(160),GB$1))+1),\"\")","v":""},{"$f":"IFERROR(MID($U21,FIND(CHAR(160),SUBSTITUTE($U21,\"{\",CHAR(160),GC$1)),FIND(CHAR(160),SUBSTITUTE($U21,\"}\",CHAR(160),GC$1))-FIND(CHAR(160),SUBSTITUTE($U21,\"{\",CHAR(160),GC$1))+1),\"\")","v":""},{"$f":"IFERROR(MID($U21,FIND(CHAR(160),SUBSTITUTE($U21,\"{\",CHAR(160),GD$1)),FIND(CHAR(160),SUBSTITUTE($U21,\"}\",CHAR(160),GD$1))-FIND(CHAR(160),SUBSTITUTE($U21,\"{\",CHAR(160),GD$1))+1),\"\")","v":""},{"$f":"IFERROR(MID($U21,FIND(CHAR(160),SUBSTITUTE($U21,\"{\",CHAR(160),GE$1)),FIND(CHAR(160),SUBSTITUTE($U21,\"}\",CHAR(160),GE$1))-FIND(CHAR(160),SUBSTITUTE($U21,\"{\",CHAR(160),GE$1))+1),\"\")","v":"{Measure:Quantity}"},{"$f":"IFERROR(MID($U21,FIND(CHAR(160),SUBSTITUTE($U21,\"{\",CHAR(160),GF$1)),FIND(CHAR(160),SUBSTITUTE($U21,\"}\",CHAR(160),GF$1))-FIND(CHAR(160),SUBSTITUTE($U21,\"{\",CHAR(160),GF$1))+1),\"\")","v":"{Wattage}"},{"$f":"IFERROR(MID($V21,FIND(CHAR(160),SUBSTITUTE($V21,\"{\",CHAR(160),GG$1)),FIND(CHAR(160),SUBSTITUTE($V21,\"}\",CHAR(160),GG$1))-FIND(CHAR(160),SUBSTITUTE($V21,\"{\",CHAR(160),GG$1))+1),\"\")","v":""},{"$f":"IFERROR(MID($V21,FIND(CHAR(160),SUBSTITUTE($V21,\"{\",CHAR(160),GH$1)),FIND(CHAR(160),SUBSTITUTE($V21,\"}\",CHAR(160),GH$1))-FIND(CHAR(160),SUBSTITUTE($V21,\"{\",CHAR(160),GH$1))+1),\"\")","v":""},{"$f":"IFERROR(MID($V21,FIND(CHAR(160),SUBSTITUTE($V21,\"{\",CHAR(160),GI$1)),FIND(CHAR(160),SUBSTITUTE($V21,\"}\",CHAR(160),GI$1))-FIND(CHAR(160),SUBSTITUTE($V21,\"{\",CHAR(160),GI$1))+1),\"\")","v":""},{"$f":"IFERROR(MID($V21,FIND(CHAR(160),SUBSTITUTE($V21,\"{\",CHAR(160),GJ$1)),FIND(CHAR(160),SUBSTITUTE($V21,\"}\",CHAR(160),GJ$1))-FIND(CHAR(160),SUBSTITUTE($V21,\"{\",CHAR(160),GJ$1))+1),\"\")","v":""},{"$f":"IFERROR(MID($V21,FIND(CHAR(160),SUBSTITUTE($V21,\"{\",CHAR(160),GK$1)),FIND(CHAR(160),SUBSTITUTE($V21,\"}\",CHAR(160),GK$1))-FIND(CHAR(160),SUBSTITUTE($V21,\"{\",CHAR(160),GK$1))+1),\"\")","v":""},{"$f":"IFERROR(MID($V21,FIND(CHAR(160),SUBSTITUTE($V21,\"{\",CHAR(160),GL$1)),FIND(CHAR(160),SUBSTITUTE($V21,\"}\",CHAR(160),GL$1))-FIND(CHAR(160),SUBSTITUTE($V21,\"{\",CHAR(160),GL$1))+1),\"\")","v":""},{"$f":"IFERROR(MID($V21,FIND(CHAR(160),SUBSTITUTE($V21,\"{\",CHAR(160),GM$1)),FIND(CHAR(160),SUBSTITUTE($V21,\"}\",CHAR(160),GM$1))-FIND(CHAR(160),SUBSTITUTE($V21,\"{\",CHAR(160),GM$1))+1),\"\")","v":""},{"$f":"IFERROR(MID($V21,FIND(CHAR(160),SUBSTITUTE($V21,\"{\",CHAR(160),GN$1)),FIND(CHAR(160),SUBSTITUTE($V21,\"}\",CHAR(160),GN$1))-FIND(CHAR(160),SUBSTITUTE($V21,\"{\",CHAR(160),GN$1))+1),\"\")","v":""},{"$f":"IFERROR(MID($V21,FIND(CHAR(160),SUBSTITUTE($V21,\"{\",CHAR(160),GO$1)),FIND(CHAR(160),SUBSTITUTE($V21,\"}\",CHAR(160),GO$1))-FIND(CHAR(160),SUBSTITUTE($V21,\"{\",CHAR(160),GO$1))+1),\"\")","v":"{Measure:Quantity}"},{"$f":"IFERROR(MID($V21,FIND(CHAR(160),SUBSTITUTE($V21,\"{\",CHAR(160),GP$1)),FIND(CHAR(160),SUBSTITUTE($V21,\"}\",CHAR(160),GP$1))-FIND(CHAR(160),SUBSTITUTE($V21,\"{\",CHAR(160),GP$1))+1),\"\")","v":"{Wattage}"},{"$f":"IFERROR(MID($W21,FIND(CHAR(160),SUBSTITUTE($W21,\"{\",CHAR(160),GQ$1)),FIND(CHAR(160),SUBSTITUTE($W21,\"}\",CHAR(160),GQ$1))-FIND(CHAR(160),SUBSTITUTE($W21,\"{\",CHAR(160),GQ$1))+1),\"\")","v":""},{"$f":"IFERROR(MID($W21,FIND(CHAR(160),SUBSTITUTE($W21,\"{\",CHAR(160),GR$1)),FIND(CHAR(160),SUBSTITUTE($W21,\"}\",CHAR(160),GR$1))-FIND(CHAR(160),SUBSTITUTE($W21,\"{\",CHAR(160),GR$1))+1),\"\")","v":""},{"$f":"IFERROR(MID($W21,FIND(CHAR(160),SUBSTITUTE($W21,\"{\",CHAR(160),GS$1)),FIND(CHAR(160),SUBSTITUTE($W21,\"}\",CHAR(160),GS$1))-FIND(CHAR(160),SUBSTITUTE($W21,\"{\",CHAR(160),GS$1))+1),\"\")","v":""},{"$f":"IFERROR(MID($W21,FIND(CHAR(160),SUBSTITUTE($W21,\"{\",CHAR(160),GT$1)),FIND(CHAR(160),SUBSTITUTE($W21,\"}\",CHAR(160),GT$1))-FIND(CHAR(160),SUBSTITUTE($W21,\"{\",CHAR(160),GT$1))+1),\"\")","v":""},{"$f":"IFERROR(MID($W21,FIND(CHAR(160),SUBSTITUTE($W21,\"{\",CHAR(160),GU$1)),FIND(CHAR(160),SUBSTITUTE($W21,\"}\",CHAR(160),GU$1))-FIND(CHAR(160),SUBSTITUTE($W21,\"{\",CHAR(160),GU$1))+1),\"\")","v":""},{"$f":"IFERROR(MID($W21,FIND(CHAR(160),SUBSTITUTE($W21,\"{\",CHAR(160),GV$1)),FIND(CHAR(160),SUBSTITUTE($W21,\"}\",CHAR(160),GV$1))-FIND(CHAR(160),SUBSTITUTE($W21,\"{\",CHAR(160),GV$1))+1),\"\")","v":""},{"$f":"IFERROR(MID($W21,FIND(CHAR(160),SUBSTITUTE($W21,\"{\",CHAR(160),GW$1)),FIND(CHAR(160),SUBSTITUTE($W21,\"}\",CHAR(160),GW$1))-FIND(CHAR(160),SUBSTITUTE($W21,\"{\",CHAR(160),GW$1))+1),\"\")","v":""},{"$f":"IFERROR(MID($W21,FIND(CHAR(160),SUBSTITUTE($W21,\"{\",CHAR(160),GX$1)),FIND(CHAR(160),SUBSTITUTE($W21,\"}\",CHAR(160),GX$1))-FIND(CHAR(160),SUBSTITUTE($W21,\"{\",CHAR(160),GX$1))+1),\"\")","v":""},{"$f":"IFERROR(MID($W21,FIND(CHAR(160),SUBSTITUTE($W21,\"{\",CHAR(160),GY$1)),FIND(CHAR(160),SUBSTITUTE($W21,\"}\",CHAR(160),GY$1))-FIND(CHAR(160),SUBSTITUTE($W21,\"{\",CHAR(160),GY$1))+1),\"\")","v":"{Measure:Quantity}"},{"$f":"IFERROR(MID($W21,FIND(CHAR(160),SUBSTITUTE($W21,\"{\",CHAR(160),GZ$1)),FIND(CHAR(160),SUBSTITUTE($W21,\"}\",CHAR(160),GZ$1))-FIND(CHAR(160),SUBSTITUTE($W21,\"{\",CHAR(160),GZ$1))+1),\"\")","v":"{Wattage}"},{"$f":"IFERROR(MID($X21,FIND(CHAR(160),SUBSTITUTE($X21,\"{\",CHAR(160),HA$1)),FIND(CHAR(160),SUBSTITUTE($X21,\"}\",CHAR(160),HA$1))-FIND(CHAR(160),SUBSTITUTE($X21,\"{\",CHAR(160),HA$1))+1),\"\")","v":""},{"$f":"IFERROR(MID($X21,FIND(CHAR(160),SUBSTITUTE($X21,\"{\",CHAR(160),HB$1)),FIND(CHAR(160),SUBSTITUTE($X21,\"}\",CHAR(160),HB$1))-FIND(CHAR(160),SUBSTITUTE($X21,\"{\",CHAR(160),HB$1))+1),\"\")","v":""},{"$f":"IFERROR(MID($X21,FIND(CHAR(160),SUBSTITUTE($X21,\"{\",CHAR(160),HC$1)),FIND(CHAR(160),SUBSTITUTE($X21,\"}\",CHAR(160),HC$1))-FIND(CHAR(160),SUBSTITUTE($X21,\"{\",CHAR(160),HC$1))+1),\"\")","v":""},{"$f":"IFERROR(MID($X21,FIND(CHAR(160),SUBSTITUTE($X21,\"{\",CHAR(160),HD$1)),FIND(CHAR(160),SUBSTITUTE($X21,\"}\",CHAR(160),HD$1))-FIND(CHAR(160),SUBSTITUTE($X21,\"{\",CHAR(160),HD$1))+1),\"\")","v":""},{"$f":"IFERROR(MID($X21,FIND(CHAR(160),SUBSTITUTE($X21,\"{\",CHAR(160),HE$1)),FIND(CHAR(160),SUBSTITUTE($X21,\"}\",CHAR(160),HE$1))-FIND(CHAR(160),SUBSTITUTE($X21,\"{\",CHAR(160),HE$1))+1),\"\")","v":""},{"$f":"IFERROR(MID($X21,FIND(CHAR(160),SUBSTITUTE($X21,\"{\",CHAR(160),HF$1)),FIND(CHAR(160),SUBSTITUTE($X21,\"}\",CHAR(160),HF$1))-FIND(CHAR(160),SUBSTITUTE($X21,\"{\",CHAR(160),HF$1))+1),\"\")","v":""},{"$f":"IFERROR(MID($X21,FIND(CHAR(160),SUBSTITUTE($X21,\"{\",CHAR(160),HG$1)),FIND(CHAR(160),SUBSTITUTE($X21,\"}\",CHAR(160),HG$1))-FIND(CHAR(160),SUBSTITUTE($X21,\"{\",CHAR(160),HG$1))+1),\"\")","v":""},{"$f":"IFERROR(MID($X21,FIND(CHAR(160),SUBSTITUTE($X21,\"{\",CHAR(160),HH$1)),FIND(CHAR(160),SUBSTITUTE($X21,\"}\",CHAR(160),HH$1))-FIND(CHAR(160),SUBSTITUTE($X21,\"{\",CHAR(160),HH$1))+1),\"\")","v":""},{"$f":"IFERROR(MID($X21,FIND(CHAR(160),SUBSTITUTE($X21,\"{\",CHAR(160),HI$1)),FIND(CHAR(160),SUBSTITUTE($X21,\"}\",CHAR(160),HI$1))-FIND(CHAR(160),SUBSTITUTE($X21,\"{\",CHAR(160),HI$1))+1),\"\")","v":"{Measure:Quantity}"},{"$f":"IFERROR(MID($X21,FIND(CHAR(160),SUBSTITUTE($X21,\"{\",CHAR(160),HJ$1)),FIND(CHAR(160),SUBSTITUTE($X21,\"}\",CHAR(160),HJ$1))-FIND(CHAR(160),SUBSTITUTE($X21,\"{\",CHAR(160),HJ$1))+1),\"\")","v":"{Wattage}"},{"$f":"IFERROR(MID($Y21,FIND(CHAR(160),SUBSTITUTE($Y21,\"{\",CHAR(160),HK$1)),FIND(CHAR(160),SUBSTITUTE($Y21,\"}\",CHAR(160),HK$1))-FIND(CHAR(160),SUBSTITUTE($Y21,\"{\",CHAR(160),HK$1))+1),\"\")","v":""},{"$f":"IFERROR(MID($Y21,FIND(CHAR(160),SUBSTITUTE($Y21,\"{\",CHAR(160),HL$1)),FIND(CHAR(160),SUBSTITUTE($Y21,\"}\",CHAR(160),HL$1))-FIND(CHAR(160),SUBSTITUTE($Y21,\"{\",CHAR(160),HL$1))+1),\"\")","v":""},{"$f":"IFERROR(MID($Y21,FIND(CHAR(160),SUBSTITUTE($Y21,\"{\",CHAR(160),HM$1)),FIND(CHAR(160),SUBSTITUTE($Y21,\"}\",CHAR(160),HM$1))-FIND(CHAR(160),SUBSTITUTE($Y21,\"{\",CHAR(160),HM$1))+1),\"\")","v":""},{"$f":"IFERROR(MID($Y21,FIND(CHAR(160),SUBSTITUTE($Y21,\"{\",CHAR(160),HN$1)),FIND(CHAR(160),SUBSTITUTE($Y21,\"}\",CHAR(160),HN$1))-FIND(CHAR(160),SUBSTITUTE($Y21,\"{\",CHAR(160),HN$1))+1),\"\")","v":""},{"$f":"IFERROR(MID($Y21,FIND(CHAR(160),SUBSTITUTE($Y21,\"{\",CHAR(160),HO$1)),FIND(CHAR(160),SUBSTITUTE($Y21,\"}\",CHAR(160),HO$1))-FIND(CHAR(160),SUBSTITUTE($Y21,\"{\",CHAR(160),HO$1))+1),\"\")","v":""},{"$f":"IFERROR(MID($Y21,FIND(CHAR(160),SUBSTITUTE($Y21,\"{\",CHAR(160),HP$1)),FIND(CHAR(160),SUBSTITUTE($Y21,\"}\",CHAR(160),HP$1))-FIND(CHAR(160),SUBSTITUTE($Y21,\"{\",CHAR(160),HP$1))+1),\"\")","v":""},{"$f":"IFERROR(MID($Y21,FIND(CHAR(160),SUBSTITUTE($Y21,\"{\",CHAR(160),HQ$1)),FIND(CHAR(160),SUBSTITUTE($Y21,\"}\",CHAR(160),HQ$1))-FIND(CHAR(160),SUBSTITUTE($Y21,\"{\",CHAR(160),HQ$1))+1),\"\")","v":""},{"$f":"IFERROR(MID($Y21,FIND(CHAR(160),SUBSTITUTE($Y21,\"{\",CHAR(160),HR$1)),FIND(CHAR(160),SUBSTITUTE($Y21,\"}\",CHAR(160),HR$1))-FIND(CHAR(160),SUBSTITUTE($Y21,\"{\",CHAR(160),HR$1))+1),\"\")","v":""},{"$f":"IFERROR(MID($Y21,FIND(CHAR(160),SUBSTITUTE($Y21,\"{\",CHAR(160),HS$1)),FIND(CHAR(160),SUBSTITUTE($Y21,\"}\",CHAR(160),HS$1))-FIND(CHAR(160),SUBSTITUTE($Y21,\"{\",CHAR(160),HS$1))+1),\"\")","v":"{Measure:Quantity}"},{"$f":"IFERROR(MID($Y21,FIND(CHAR(160),SUBSTITUTE($Y21,\"{\",CHAR(160),HT$1)),FIND(CHAR(160),SUBSTITUTE($Y21,\"}\",CHAR(160),HT$1))-FIND(CHAR(160),SUBSTITUTE($Y21,\"{\",CHAR(160),HT$1))+1),\"\")","v":"{Wattage}"},{"$f":"IFERROR(MID($Z21,FIND(CHAR(160),SUBSTITUTE($Z21,\"{\",CHAR(160),HU$1)),FIND(CHAR(160),SUBSTITUTE($Z21,\"}\",CHAR(160),HU$1))-FIND(CHAR(160),SUBSTITUTE($Z21,\"{\",CHAR(160),HU$1))+1),\"\")","v":""},{"$f":"IFERROR(MID($Z21,FIND(CHAR(160),SUBSTITUTE($Z21,\"{\",CHAR(160),HV$1)),FIND(CHAR(160),SUBSTITUTE($Z21,\"}\",CHAR(160),HV$1))-FIND(CHAR(160),SUBSTITUTE($Z21,\"{\",CHAR(160),HV$1))+1),\"\")","v":""},{"$f":"IFERROR(MID($Z21,FIND(CHAR(160),SUBSTITUTE($Z21,\"{\",CHAR(160),HW$1)),FIND(CHAR(160),SUBSTITUTE($Z21,\"}\",CHAR(160),HW$1))-FIND(CHAR(160),SUBSTITUTE($Z21,\"{\",CHAR(160),HW$1))+1),\"\")","v":""},{"$f":"IFERROR(MID($Z21,FIND(CHAR(160),SUBSTITUTE($Z21,\"{\",CHAR(160),HX$1)),FIND(CHAR(160),SUBSTITUTE($Z21,\"}\",CHAR(160),HX$1))-FIND(CHAR(160),SUBSTITUTE($Z21,\"{\",CHAR(160),HX$1))+1),\"\")","v":""},{"$f":"IFERROR(MID($Z21,FIND(CHAR(160),SUBSTITUTE($Z21,\"{\",CHAR(160),HY$1)),FIND(CHAR(160),SUBSTITUTE($Z21,\"}\",CHAR(160),HY$1))-FIND(CHAR(160),SUBSTITUTE($Z21,\"{\",CHAR(160),HY$1))+1),\"\")","v":""},{"$f":"IFERROR(MID($Z21,FIND(CHAR(160),SUBSTITUTE($Z21,\"{\",CHAR(160),HZ$1)),FIND(CHAR(160),SUBSTITUTE($Z21,\"}\",CHAR(160),HZ$1))-FIND(CHAR(160),SUBSTITUTE($Z21,\"{\",CHAR(160),HZ$1))+1),\"\")","v":""},{"$f":"IFERROR(MID($Z21,FIND(CHAR(160),SUBSTITUTE($Z21,\"{\",CHAR(160),IA$1)),FIND(CHAR(160),SUBSTITUTE($Z21,\"}\",CHAR(160),IA$1))-FIND(CHAR(160),SUBSTITUTE($Z21,\"{\",CHAR(160),IA$1))+1),\"\")","v":""},{"$f":"IFERROR(MID($Z21,FIND(CHAR(160),SUBSTITUTE($Z21,\"{\",CHAR(160),IB$1)),FIND(CHAR(160),SUBSTITUTE($Z21,\"}\",CHAR(160),IB$1))-FIND(CHAR(160),SUBSTITUTE($Z21,\"{\",CHAR(160),IB$1))+1),\"\")","v":""},{"$f":"IFERROR(MID($Z21,FIND(CHAR(160),SUBSTITUTE($Z21,\"{\",CHAR(160),IC$1)),FIND(CHAR(160),SUBSTITUTE($Z21,\"}\",CHAR(160),IC$1))-FIND(CHAR(160),SUBSTITUTE($Z21,\"{\",CHAR(160),IC$1))+1),\"\")","v":"{Measure:Quantity}"},{"$f":"IFERROR(MID($Z21,FIND(CHAR(160),SUBSTITUTE($Z21,\"{\",CHAR(160),ID$1)),FIND(CHAR(160),SUBSTITUTE($Z21,\"}\",CHAR(160),ID$1))-FIND(CHAR(160),SUBSTITUTE($Z21,\"{\",CHAR(160),ID$1))+1),\"\")","v":"{Wattage}"},{"$f":"IFERROR(MID($AA21,FIND(CHAR(160),SUBSTITUTE($AA21,\"{\",CHAR(160),IE$1)),FIND(CHAR(160),SUBSTITUTE($AA21,\"}\",CHAR(160),IE$1))-FIND(CHAR(160),SUBSTITUTE($AA21,\"{\",CHAR(160),IE$1))+1),\"\")","v":""},{"$f":"IFERROR(MID($AA21,FIND(CHAR(160),SUBSTITUTE($AA21,\"{\",CHAR(160),IF$1)),FIND(CHAR(160),SUBSTITUTE($AA21,\"}\",CHAR(160),IF$1))-FIND(CHAR(160),SUBSTITUTE($AA21,\"{\",CHAR(160),IF$1))+1),\"\")","v":""},{"$f":"IFERROR(MID($AA21,FIND(CHAR(160),SUBSTITUTE($AA21,\"{\",CHAR(160),IG$1)),FIND(CHAR(160),SUBSTITUTE($AA21,\"}\",CHAR(160),IG$1))-FIND(CHAR(160),SUBSTITUTE($AA21,\"{\",CHAR(160),IG$1))+1),\"\")","v":""},{"$f":"IFERROR(MID($AA21,FIND(CHAR(160),SUBSTITUTE($AA21,\"{\",CHAR(160),IH$1)),FIND(CHAR(160),SUBSTITUTE($AA21,\"}\",CHAR(160),IH$1))-FIND(CHAR(160),SUBSTITUTE($AA21,\"{\",CHAR(160),IH$1))+1),\"\")","v":""},{"$f":"IFERROR(MID($AA21,FIND(CHAR(160),SUBSTITUTE($AA21,\"{\",CHAR(160),II$1)),FIND(CHAR(160),SUBSTITUTE($AA21,\"}\",CHAR(160),II$1))-FIND(CHAR(160),SUBSTITUTE($AA21,\"{\",CHAR(160),II$1))+1),\"\")","v":""},{"$f":"IFERROR(MID($AA21,FIND(CHAR(160),SUBSTITUTE($AA21,\"{\",CHAR(160),IJ$1)),FIND(CHAR(160),SUBSTITUTE($AA21,\"}\",CHAR(160),IJ$1))-FIND(CHAR(160),SUBSTITUTE($AA21,\"{\",CHAR(160),IJ$1))+1),\"\")","v":""},{"$f":"IFERROR(MID($AA21,FIND(CHAR(160),SUBSTITUTE($AA21,\"{\",CHAR(160),IK$1)),FIND(CHAR(160),SUBSTITUTE($AA21,\"}\",CHAR(160),IK$1))-FIND(CHAR(160),SUBSTITUTE($AA21,\"{\",CHAR(160),IK$1))+1),\"\")","v":""},{"$f":"IFERROR(MID($AA21,FIND(CHAR(160),SUBSTITUTE($AA21,\"{\",CHAR(160),IL$1)),FIND(CHAR(160),SUBSTITUTE($AA21,\"}\",CHAR(160),IL$1))-FIND(CHAR(160),SUBSTITUTE($AA21,\"{\",CHAR(160),IL$1))+1),\"\")","v":""},{"$f":"IFERROR(MID($AA21,FIND(CHAR(160),SUBSTITUTE($AA21,\"{\",CHAR(160),IM$1)),FIND(CHAR(160),SUBSTITUTE($AA21,\"}\",CHAR(160),IM$1))-FIND(CHAR(160),SUBSTITUTE($AA21,\"{\",CHAR(160),IM$1))+1),\"\")","v":"{Measure:Quantity}"},{"$f":"IFERROR(MID($AA21,FIND(CHAR(160),SUBSTITUTE($AA21,\"{\",CHAR(160),IN$1)),FIND(CHAR(160),SUBSTITUTE($AA21,\"}\",CHAR(160),IN$1))-FIND(CHAR(160),SUBSTITUTE($AA21,\"{\",CHAR(160),IN$1))+1),\"\")","v":"{Wattage}"},{"$f":"IFERROR(MID($AB21,FIND(CHAR(160),SUBSTITUTE($AB21,\"{\",CHAR(160),IO$1)),FIND(CHAR(160),SUBSTITUTE($AB21,\"}\",CHAR(160),IO$1))-FIND(CHAR(160),SUBSTITUTE($AB21,\"{\",CHAR(160),IO$1))+1),\"\")","v":""},{"$f":"IFERROR(MID($AB21,FIND(CHAR(160),SUBSTITUTE($AB21,\"{\",CHAR(160),IP$1)),FIND(CHAR(160),SUBSTITUTE($AB21,\"}\",CHAR(160),IP$1))-FIND(CHAR(160),SUBSTITUTE($AB21,\"{\",CHAR(160),IP$1))+1),\"\")","v":""},{"$f":"IFERROR(MID($AB21,FIND(CHAR(160),SUBSTITUTE($AB21,\"{\",CHAR(160),IQ$1)),FIND(CHAR(160),SUBSTITUTE($AB21,\"}\",CHAR(160),IQ$1))-FIND(CHAR(160),SUBSTITUTE($AB21,\"{\",CHAR(160),IQ$1))+1),\"\")","v":""},{"$f":"IFERROR(MID($AB21,FIND(CHAR(160),SUBSTITUTE($AB21,\"{\",CHAR(160),IR$1)),FIND(CHAR(160),SUBSTITUTE($AB21,\"}\",CHAR(160),IR$1))-FIND(CHAR(160),SUBSTITUTE($AB21,\"{\",CHAR(160),IR$1))+1),\"\")","v":""},{"$f":"IFERROR(MID($AB21,FIND(CHAR(160),SUBSTITUTE($AB21,\"{\",CHAR(160),IS$1)),FIND(CHAR(160),SUBSTITUTE($AB21,\"}\",CHAR(160),IS$1))-FIND(CHAR(160),SUBSTITUTE($AB21,\"{\",CHAR(160),IS$1))+1),\"\")","v":""},{"$f":"IFERROR(MID($AB21,FIND(CHAR(160),SUBSTITUTE($AB21,\"{\",CHAR(160),IT$1)),FIND(CHAR(160),SUBSTITUTE($AB21,\"}\",CHAR(160),IT$1))-FIND(CHAR(160),SUBSTITUTE($AB21,\"{\",CHAR(160),IT$1))+1),\"\")","v":""},{"$f":"IFERROR(MID($AB21,FIND(CHAR(160),SUBSTITUTE($AB21,\"{\",CHAR(160),IU$1)),FIND(CHAR(160),SUBSTITUTE($AB21,\"}\",CHAR(160),IU$1))-FIND(CHAR(160),SUBSTITUTE($AB21,\"{\",CHAR(160),IU$1))+1),\"\")","v":""},{"$f":"IFERROR(MID($AB21,FIND(CHAR(160),SUBSTITUTE($AB21,\"{\",CHAR(160),IV$1)),FIND(CHAR(160),SUBSTITUTE($AB21,\"}\",CHAR(160),IV$1))-FIND(CHAR(160),SUBSTITUTE($AB21,\"{\",CHAR(160),IV$1))+1),\"\")","v":""},{"$f":"IFERROR(MID($AB21,FIND(CHAR(160),SUBSTITUTE($AB21,\"{\",CHAR(160),IW$1)),FIND(CHAR(160),SUBSTITUTE($AB21,\"}\",CHAR(160),IW$1))-FIND(CHAR(160),SUBSTITUTE($AB21,\"{\",CHAR(160),IW$1))+1),\"\")","v":""},{"$f":"IFERROR(MID($AB21,FIND(CHAR(160),SUBSTITUTE($AB21,\"{\",CHAR(160),IX$1)),FIND(CHAR(160),SUBSTITUTE($AB21,\"}\",CHAR(160),IX$1))-FIND(CHAR(160),SUBSTITUTE($AB21,\"{\",CHAR(160),IX$1))+1),\"\")","v":""},null,{"$f":"10-COUNTIF(DU21:ED21,\"\")","v":2}]
["Arrearage Management Program","LED Low Income Specialty Bulb Short Life","LILEDSPECS","2021-07-01","2022-06-30","Per Measure",2.95,0,"Per Measure",2.95,0,"2021-07-01","2022-06-30","Calculated","{Measure:Quantity}*41",null,null,"{Measure:Quantity}*0.057",null,null,"{Measure:Quantity}*0.009","{Measure:Quantity}*0.004","{Measure:Quantity}*-0.005","{Measure:Quantity}*-0.004","{Measure:Quantity}*-0.035","{Measure:Quantity}*-0.001","{Measure:Quantity}*-0.007",null,"2021-07-01","2022-06-30",4,0.17199999999999999,7.2999999999999995E-2,0.34899999999999998,0.33500000000000002,0.155,0.161,0.77,1,1,0,0,null,{"$f":"DU22","v":"{Measure:Quantity}"},1,{"$f":"DV22","v":""},null,{"$f":"DW22","v":""},null,{"$f":"DX22","v":""},null,{"$f":"DY22","v":""},null,{"$f":"DZ22","v":""},null,{"$f":"EA22","v":""},null,{"$f":"EB22","v":""},null,{"$f":"EC22","v":""},null,{"$f":"ED22","v":""},null,{"$f":"AS22*41","v":41},0,0,{"$f":"AS22*0.057","v":5.7000000000000002E-2},0,0,{"$f":"AS22*0.009","v":8.9999999999999993E-3},{"$f":"AS22*0.004","v":4.0000000000000001E-3},{"$f":"AS22*-0.005","v":-5.0000000000000001E-3},{"$f":"AS22*-0.004","v":-4.0000000000000001E-3},{"$f":"AS22*-0.035","v":-3.5000000000000003E-2},{"$f":"AS22*-0.001","v":-1E-3},{"$f":"AS22*-0.007","v":-7.0000000000000001E-3},0,null,"Res","Default DR",{"$f":"Benefits(BL22,BR22,BS22,BT22,BU22,BV22,BW22,BX22,BY22,BZ22,AE22,AH22,AI22,AJ22,AK22,AL22,AM22,AN22,AO22,AP22,CA22,CB22)","v":14.364119477561875},9.7947972705671784,-2.5858250316384574E-2,-3.4588814173466984,-0.11311640736518638,-0.55049375180912552,-0.3877324073856892,0,0,{"$f":"SUMPRODUCT(CC22:CK22,--(CC22:CK22>0))","v":24.158916748129052},{"$f":"-SUMPRODUCT(CC22:CK22,--(CC22:CK22<0))","v":4.536082234223084},null,{"$f":"2.95","v":2.95},null,null,{"$f":"CM22+CO22","v":7.4860822342230842},{"$f":"IF(NetOrGross=\"Net\",(1-AO22+AP22),1)","v":1},{"$f":"(SUMPRODUCT(CC22:CJ22,--(CC22:CJ22>0))+CN22)*CS22/((-SUMPRODUCT(CC22:CJ22,--(CC22:CJ22<0))+MAX(CO22,CV22)+CP22+CQ22)*CS22+IF(FRIncentives=\"Yes\",CV22*(1-CS22),0))","v":3.2271775799743532},1,{"$f":"2.95","v":2.95},null,"Electric","y",null,{"$f":"IF(F22=\"Manual Entry\",\"Manual\",IF(G22=\"\",0,\"X=\"&SUBSTITUTE(SUBSTITUTE(SUBSTITUTE(SUBSTITUTE(SUBSTITUTE(SUBSTITUTE(SUBSTITUTE(SUBSTITUTE(SUBSTITUTE(SUBSTITUTE(SUBSTITUTE(SUBSTITUTE(G22,$ED22,$ED$2&ROW($ED22)),$EC22,$EC$2&ROW($EC22)),$EB22,$EB$2&ROW($EB22)),$EA22,$EA$2&ROW($EA22)),$DZ22,$DZ$2&ROW($DZ22)),$DY22,$DY$2&ROW($DY22)),$DX22,$DX$2&ROW($DX22)),$DW22,$DW$2&ROW($DW22)),$DV22,$DV$2&ROW($DV22)),$DU22,$DU$2&ROW($DU22)),$DT22,$DT$2&ROW($DT22)),$DS22,$DS$2&ROW($DS22))))","v":"X=2.95"},{"$f":"IF(I22=\"Manual Entry\",\"Manual\",IF(J22=\"\",0,\"X=\"&SUBSTITUTE(SUBSTITUTE(SUBSTITUTE(SUBSTITUTE(SUBSTITUTE(SUBSTITUTE(SUBSTITUTE(SUBSTITUTE(SUBSTITUTE(SUBSTITUTE(SUBSTITUTE(SUBSTITUTE(J22,$ED22,$ED$2&ROW($ED22)),$EC22,$EC$2&ROW($EC22)),$EB22,$EB$2&ROW($EB22)),$EA22,$EA$2&ROW($EA22)),$DZ22,$DZ$2&ROW($DZ22)),$DY22,$DY$2&ROW($DY22)),$DX22,$DX$2&ROW($DX22)),$DW22,$DW$2&ROW($DW22)),$DV22,$DV$2&ROW($DV22)),$DU22,$DU$2&ROW($DU22)),$DT22,$DT$2&ROW($DT22)),$DS22,$DS$2&ROW($DS22))))","v":"X=2.95"},{"$f":"IF(O22=\"\",0,\"X=\"&SUBSTITUTE(SUBSTITUTE(SUBSTITUTE(SUBSTITUTE(SUBSTITUTE(SUBSTITUTE(SUBSTITUTE(SUBSTITUTE(SUBSTITUTE(SUBSTITUTE(SUBSTITUTE(SUBSTITUTE(O22,$ED22,$ED$2&ROW($ED22)),$EC22,$EC$2&ROW($EC22)),$EB22,$EB$2&ROW($EB22)),$EA22,$EA$2&ROW($EA22)),$DZ22,$DZ$2&ROW($DZ22)),$DY22,$DY$2&ROW($DY22)),$DX22,$DX$2&ROW($DX22)),$DW22,$DW$2&ROW($DW22)),$DV22,$DV$2&ROW($DV22)),$DU22,$DU$2&ROW($DU22)),$DT22,$DT$2&ROW($DT22)),$DS22,$DS$2&ROW($DS22)))","v":"X=AS22*41"},{"$f":"IF(P22=\"\",0,\"X=\"&SUBSTITUTE(SUBSTITUTE(SUBSTITUTE(SUBSTITUTE(SUBSTITUTE(SUBSTITUTE(SUBSTITUTE(SUBSTITUTE(SUBSTITUTE(SUBSTITUTE(SUBSTITUTE(SUBSTITUTE(P22,$ED22,$ED$2&ROW($ED22)),$EC22,$EC$2&ROW($EC22)),$EB22,$EB$2&ROW($EB22)),$EA22,$EA$2&ROW($EA22)),$DZ22,$DZ$2&ROW($DZ22)),$DY22,$DY$2&ROW($DY22)),$DX22,$DX$2&ROW($DX22)),$DW22,$DW$2&ROW($DW22)),$DV22,$DV$2&ROW($DV22)),$DU22,$DU$2&ROW($DU22)),$DT22,$DT$2&ROW($DT22)),$DS22,$DS$2&ROW($DS22)))","v":0},{"$f":"IF(Q22=\"\",0,\"X=\"&SUBSTITUTE(SUBSTITUTE(SUBSTITUTE(SUBSTITUTE(SUBSTITUTE(SUBSTITUTE(SUBSTITUTE(SUBSTITUTE(SUBSTITUTE(SUBSTITUTE(SUBSTITUTE(SUBSTITUTE(Q22,$ED22,$ED$2&ROW($ED22)),$EC22,$EC$2&ROW($EC22)),$EB22,$EB$2&ROW($EB22)),$EA22,$EA$2&ROW($EA22)),$DZ22,$DZ$2&ROW($DZ22)),$DY22,$DY$2&ROW($DY22)),$DX22,$DX$2&ROW($DX22)),$DW22,$DW$2&ROW($DW22)),$DV22,$DV$2&ROW($DV22)),$DU22,$DU$2&ROW($DU22)),$DT22,$DT$2&ROW($DT22)),$DS22,$DS$2&ROW($DS22)))","v":0},{"$f":"IF(R22=\"\",0,\"X=\"&SUBSTITUTE(SUBSTITUTE(SUBSTITUTE(SUBSTITUTE(SUBSTITUTE(SUBSTITUTE(SUBSTITUTE(SUBSTITUTE(SUBSTITUTE(SUBSTITUTE(SUBSTITUTE(SUBSTITUTE(R22,$ED22,$ED$2&ROW($ED22)),$EC22,$EC$2&ROW($EC22)),$EB22,$EB$2&ROW($EB22)),$EA22,$EA$2&ROW($EA22)),$DZ22,$DZ$2&ROW($DZ22)),$DY22,$DY$2&ROW($DY22)),$DX22,$DX$2&ROW($DX22)),$DW22,$DW$2&ROW($DW22)),$DV22,$DV$2&ROW($DV22)),$DU22,$DU$2&ROW($DU22)),$DT22,$DT$2&ROW($DT22)),$DS22,$DS$2&ROW($DS22)))","v":"X=AS22*0.057"},{"$f":"IF(S22=\"\",0,\"X=\"&SUBSTITUTE(SUBSTITUTE(SUBSTITUTE(SUBSTITUTE(SUBSTITUTE(SUBSTITUTE(SUBSTITUTE(SUBSTITUTE(SUBSTITUTE(SUBSTITUTE(SUBSTITUTE(SUBSTITUTE(S22,$ED22,$ED$2&ROW($ED22)),$EC22,$EC$2&ROW($EC22)),$EB22,$EB$2&ROW($EB22)),$EA22,$EA$2&ROW($EA22)),$DZ22,$DZ$2&ROW($DZ22)),$DY22,$DY$2&ROW($DY22)),$DX22,$DX$2&ROW($DX22)),$DW22,$DW$2&ROW($DW22)),$DV22,$DV$2&ROW($DV22)),$DU22,$DU$2&ROW($DU22)),$DT22,$DT$2&ROW($DT22)),$DS22,$DS$2&ROW($DS22)))","v":0},{"$f":"IF(T22=\"\",0,\"X=\"&SUBSTITUTE(SUBSTITUTE(SUBSTITUTE(SUBSTITUTE(SUBSTITUTE(SUBSTITUTE(SUBSTITUTE(SUBSTITUTE(SUBSTITUTE(SUBSTITUTE(SUBSTITUTE(SUBSTITUTE(T22,$ED22,$ED$2&ROW($ED22)),$EC22,$EC$2&ROW($EC22)),$EB22,$EB$2&ROW($EB22)),$EA22,$EA$2&ROW($EA22)),$DZ22,$DZ$2&ROW($DZ22)),$DY22,$DY$2&ROW($DY22)),$DX22,$DX$2&ROW($DX22)),$DW22,$DW$2&ROW($DW22)),$DV22,$DV$2&ROW($DV22)),$DU22,$DU$2&ROW($DU22)),$DT22,$DT$2&ROW($DT22)),$DS22,$DS$2&ROW($DS22)))","v":0},{"$f":"IF(U22=\"\",0,\"X=\"&SUBSTITUTE(SUBSTITUTE(SUBSTITUTE(SUBSTITUTE(SUBSTITUTE(SUBSTITUTE(SUBSTITUTE(SUBSTITUTE(SUBSTITUTE(SUBSTITUTE(SUBSTITUTE(SUBSTITUTE(U22,$ED22,$ED$2&ROW($ED22)),$EC22,$EC$2&ROW($EC22)),$EB22,$EB$2&ROW($EB22)),$EA22,$EA$2&ROW($EA22)),$DZ22,$DZ$2&ROW($DZ22)),$DY22,$DY$2&ROW($DY22)),$DX22,$DX$2&ROW($DX22)),$DW22,$DW$2&ROW($DW22)),$DV22,$DV$2&ROW($DV22)),$DU22,$DU$2&ROW($DU22)),$DT22,$DT$2&ROW($DT22)),$DS22,$DS$2&ROW($DS22)))","v":"X=AS22*0.009"},{"$f":"IF(V22=\"\",0,\"X=\"&SUBSTITUTE(SUBSTITUTE(SUBSTITUTE(SUBSTITUTE(SUBSTITUTE(SUBSTITUTE(SUBSTITUTE(SUBSTITUTE(SUBSTITUTE(SUBSTITUTE(SUBSTITUTE(SUBSTITUTE(V22,$ED22,$ED$2&ROW($ED22)),$EC22,$EC$2&ROW($EC22)),$EB22,$EB$2&ROW($EB22)),$EA22,$EA$2&ROW($EA22)),$DZ22,$DZ$2&ROW($DZ22)),$DY22,$DY$2&ROW($DY22)),$DX22,$DX$2&ROW($DX22)),$DW22,$DW$2&ROW($DW22)),$DV22,$DV$2&ROW($DV22)),$DU22,$DU$2&ROW($DU22)),$DT22,$DT$2&ROW($DT22)),$DS22,$DS$2&ROW($DS22)))","v":"X=AS22*0.004"},{"$f":"IF(W22=\"\",0,\"X=\"&SUBSTITUTE(SUBSTITUTE(SUBSTITUTE(SUBSTITUTE(SUBSTITUTE(SUBSTITUTE(SUBSTITUTE(SUBSTITUTE(SUBSTITUTE(SUBSTITUTE(SUBSTITUTE(SUBSTITUTE(W22,$ED22,$ED$2&ROW($ED22)),$EC22,$EC$2&ROW($EC22)),$EB22,$EB$2&ROW($EB22)),$EA22,$EA$2&ROW($EA22)),$DZ22,$DZ$2&ROW($DZ22)),$DY22,$DY$2&ROW($DY22)),$DX22,$DX$2&ROW($DX22)),$DW22,$DW$2&ROW($DW22)),$DV22,$DV$2&ROW($DV22)),$DU22,$DU$2&ROW($DU22)),$DT22,$DT$2&ROW($DT22)),$DS22,$DS$2&ROW($DS22)))","v":"X=AS22*-0.005"},{"$f":"IF(X22=\"\",0,\"X=\"&SUBSTITUTE(SUBSTITUTE(SUBSTITUTE(SUBSTITUTE(SUBSTITUTE(SUBSTITUTE(SUBSTITUTE(SUBSTITUTE(SUBSTITUTE(SUBSTITUTE(SUBSTITUTE(SUBSTITUTE(X22,$ED22,$ED$2&ROW($ED22)),$EC22,$EC$2&ROW($EC22)),$EB22,$EB$2&ROW($EB22)),$EA22,$EA$2&ROW($EA22)),$DZ22,$DZ$2&ROW($DZ22)),$DY22,$DY$2&ROW($DY22)),$DX22,$DX$2&ROW($DX22)),$DW22,$DW$2&ROW($DW22)),$DV22,$DV$2&ROW($DV22)),$DU22,$DU$2&ROW($DU22)),$DT22,$DT$2&ROW($DT22)),$DS22,$DS$2&ROW($DS22)))","v":"X=AS22*-0.004"},{"$f":"IF(Y22=\"\",0,\"X=\"&SUBSTITUTE(SUBSTITUTE(SUBSTITUTE(SUBSTITUTE(SUBSTITUTE(SUBSTITUTE(SUBSTITUTE(SUBSTITUTE(SUBSTITUTE(SUBSTITUTE(SUBSTITUTE(SUBSTITUTE(Y22,$ED22,$ED$2&ROW($ED22)),$EC22,$EC$2&ROW($EC22)),$EB22,$EB$2&ROW($EB22)),$EA22,$EA$2&ROW($EA22)),$DZ22,$DZ$2&ROW($DZ22)),$DY22,$DY$2&ROW($DY22)),$DX22,$DX$2&ROW($DX22)),$DW22,$DW$2&ROW($DW22)),$DV22,$DV$2&ROW($DV22)),$DU22,$DU$2&ROW($DU22)),$DT22,$DT$2&ROW($DT22)),$DS22,$DS$2&ROW($DS22)))","v":"X=AS22*-0.035"},{"$f":"IF(Z22=\"\",0,\"X=\"&SUBSTITUTE(SUBSTITUTE(SUBSTITUTE(SUBSTITUTE(SUBSTITUTE(SUBSTITUTE(SUBSTITUTE(SUBSTITUTE(SUBSTITUTE(SUBSTITUTE(SUBSTITUTE(SUBSTITUTE(Z22,$ED22,$ED$2&ROW($ED22)),$EC22,$EC$2&ROW($EC22)),$EB22,$EB$2&ROW($EB22)),$EA22,$EA$2&ROW($EA22)),$DZ22,$DZ$2&ROW($DZ22)),$DY22,$DY$2&ROW($DY22)),$DX22,$DX$2&ROW($DX22)),$DW22,$DW$2&ROW($DW22)),$DV22,$DV$2&ROW($DV22)),$DU22,$DU$2&ROW($DU22)),$DT22,$DT$2&ROW($DT22)),$DS22,$DS$2&ROW($DS22)))","v":"X=AS22*-0.001"},{"$f":"IF(AA22=\"\",0,\"X=\"&SUBSTITUTE(SUBSTITUTE(SUBSTITUTE(SUBSTITUTE(SUBSTITUTE(SUBSTITUTE(SUBSTITUTE(SUBSTITUTE(SUBSTITUTE(SUBSTITUTE(SUBSTITUTE(SUBSTITUTE(AA22,$ED22,$ED$2&ROW($ED22)),$EC22,$EC$2&ROW($EC22)),$EB22,$EB$2&ROW($EB22)),$EA22,$EA$2&ROW($EA22)),$DZ22,$DZ$2&ROW($DZ22)),$DY22,$DY$2&ROW($DY22)),$DX22,$DX$2&ROW($DX22)),$DW22,$DW$2&ROW($DW22)),$DV22,$DV$2&ROW($DV22)),$DU22,$DU$2&ROW($DU22)),$DT22,$DT$2&ROW($DT22)),$DS22,$DS$2&ROW($DS22)))","v":"X=AS22*-0.007"},{"$f":"IF(AB22=\"\",0,\"X=\"&SUBSTITUTE(SUBSTITUTE(SUBSTITUTE(SUBSTITUTE(SUBSTITUTE(SUBSTITUTE(SUBSTITUTE(SUBSTITUTE(SUBSTITUTE(SUBSTITUTE(SUBSTITUTE(SUBSTITUTE(AB22,$ED22,$ED$2&ROW($ED22)),$EC22,$EC$2&ROW($EC22)),$EB22,$EB$2&ROW($EB22)),$EA22,$EA$2&ROW($EA22)),$DZ22,$DZ$2&ROW($DZ22)),$DY22,$DY$2&ROW($DY22)),$DX22,$DX$2&ROW($DX22)),$DW22,$DW$2&ROW($DW22)),$DV22,$DV$2&ROW($DV22)),$DU22,$DU$2&ROW($DU22)),$DT22,$DT$2&ROW($DT22)),$DS22,$DS$2&ROW($DS22)))","v":0},null,null,"{Factor:WinterCF}","{Factor:SummerCF}",{"$f":"IFERROR(INDEX($EG22:$IV22,MATCH(0,COUNTIF($DR22:DT22,$EG22:$IV22),0)),\"\")","v":"{Measure:Quantity}"},{"$f":"IFERROR(INDEX($EG22:$IV22,MATCH(0,COUNTIF($DR22:DU22,$EG22:$IV22),0)),\"\")","v":""},{"$f":"IFERROR(INDEX($EG22:$IV22,MATCH(0,COUNTIF($DR22:DV22,$EG22:$IV22),0)),\"\")","v":""},{"$f":"IFERROR(INDEX($EG22:$IV22,MATCH(0,COUNTIF($DR22:DW22,$EG22:$IV22),0)),\"\")","v":""},{"$f":"IFERROR(INDEX($EG22:$IV22,MATCH(0,COUNTIF($DR22:DX22,$EG22:$IV22),0)),\"\")","v":""},{"$f":"IFERROR(INDEX($EG22:$IV22,MATCH(0,COUNTIF($DR22:DY22,$EG22:$IV22),0)),\"\")","v":""},{"$f":"IFERROR(INDEX($EG22:$IV22,MATCH(0,COUNTIF($DR22:DZ22,$EG22:$IV22),0)),\"\")","v":""},{"$f":"IFERROR(INDEX($EG22:$IV22,MATCH(0,COUNTIF($DR22:EA22,$EG22:$IV22),0)),\"\")","v":""},{"$f":"IFERROR(INDEX($EG22:$IV22,MATCH(0,COUNTIF($DR22:EB22,$EG22:$IV22),0)),\"\")","v":""},{"$f":"IFERROR(INDEX($EG22:$IV22,MATCH(0,COUNTIF($DR22:EC22,$EG22:$IV22),0)),\"\")","v":""},null,null,{"$f":"IFERROR(MID($G22,FIND(CHAR(160),SUBSTITUTE($G22,\"{\",CHAR(160),EG$1)),FIND(CHAR(160),SUBSTITUTE($G22,\"}\",CHAR(160),EG$1))-FIND(CHAR(160),SUBSTITUTE($G22,\"{\",CHAR(160),EG$1))+1),\"\")","v":""},{"$f":"IFERROR(MID($G22,FIND(CHAR(160),SUBSTITUTE($G22,\"{\",CHAR(160),EH$1)),FIND(CHAR(160),SUBSTITUTE($G22,\"}\",CHAR(160),EH$1))-FIND(CHAR(160),SUBSTITUTE($G22,\"{\",CHAR(160),EH$1))+1),\"\")","v":""},{"$f":"IFERROR(MID($G22,FIND(CHAR(160),SUBSTITUTE($G22,\"{\",CHAR(160),EI$1)),FIND(CHAR(160),SUBSTITUTE($G22,\"}\",CHAR(160),EI$1))-FIND(CHAR(160),SUBSTITUTE($G22,\"{\",CHAR(160),EI$1))+1),\"\")","v":""},{"$f":"IFERROR(MID($G22,FIND(CHAR(160),SUBSTITUTE($G22,\"{\",CHAR(160),EJ$1)),FIND(CHAR(160),SUBSTITUTE($G22,\"}\",CHAR(160),EJ$1))-FIND(CHAR(160),SUBSTITUTE($G22,\"{\",CHAR(160),EJ$1))+1),\"\")","v":""},{"$f":"IFERROR(MID($G22,FIND(CHAR(160),SUBSTITUTE($G22,\"{\",CHAR(160),EK$1)),FIND(CHAR(160),SUBSTITUTE($G22,\"}\",CHAR(160),EK$1))-FIND(CHAR(160),SUBSTITUTE($G22,\"{\",CHAR(160),EK$1))+1),\"\")","v":""},{"$f":"IFERROR(MID($G22,FIND(CHAR(160),SUBSTITUTE($G22,\"{\",CHAR(160),EL$1)),FIND(CHAR(160),SUBSTITUTE($G22,\"}\",CHAR(160),EL$1))-FIND(CHAR(160),SUBSTITUTE($G22,\"{\",CHAR(160),EL$1))+1),\"\")","v":""},{"$f":"IFERROR(MID($G22,FIND(CHAR(160),SUBSTITUTE($G22,\"{\",CHAR(160),EM$1)),FIND(CHAR(160),SUBSTITUTE($G22,\"}\",CHAR(160),EM$1))-FIND(CHAR(160),SUBSTITUTE($G22,\"{\",CHAR(160),EM$1))+1),\"\")","v":""},{"$f":"IFERROR(MID($G22,FIND(CHAR(160),SUBSTITUTE($G22,\"{\",CHAR(160),EN$1)),FIND(CHAR(160),SUBSTITUTE($G22,\"}\",CHAR(160),EN$1))-FIND(CHAR(160),SUBSTITUTE($G22,\"{\",CHAR(160),EN$1))+1),\"\")","v":""},{"$f":"IFERROR(MID($G22,FIND(CHAR(160),SUBSTITUTE($G22,\"{\",CHAR(160),EO$1)),FIND(CHAR(160),SUBSTITUTE($G22,\"}\",CHAR(160),EO$1))-FIND(CHAR(160),SUBSTITUTE($G22,\"{\",CHAR(160),EO$1))+1),\"\")","v":""},{"$f":"IFERROR(MID($G22,FIND(CHAR(160),SUBSTITUTE($G22,\"{\",CHAR(160),EP$1)),FIND(CHAR(160),SUBSTITUTE($G22,\"}\",CHAR(160),EP$1))-FIND(CHAR(160),SUBSTITUTE($G22,\"{\",CHAR(160),EP$1))+1),\"\")","v":""},{"$f":"IFERROR(MID($J22,FIND(CHAR(160),SUBSTITUTE($J22,\"{\",CHAR(160),EQ$1)),FIND(CHAR(160),SUBSTITUTE($J22,\"}\",CHAR(160),EQ$1))-FIND(CHAR(160),SUBSTITUTE($J22,\"{\",CHAR(160),EQ$1))+1),\"\")","v":""},{"$f":"IFERROR(MID($J22,FIND(CHAR(160),SUBSTITUTE($J22,\"{\",CHAR(160),ER$1)),FIND(CHAR(160),SUBSTITUTE($J22,\"}\",CHAR(160),ER$1))-FIND(CHAR(160),SUBSTITUTE($J22,\"{\",CHAR(160),ER$1))+1),\"\")","v":""},{"$f":"IFERROR(MID($J22,FIND(CHAR(160),SUBSTITUTE($J22,\"{\",CHAR(160),ES$1)),FIND(CHAR(160),SUBSTITUTE($J22,\"}\",CHAR(160),ES$1))-FIND(CHAR(160),SUBSTITUTE($J22,\"{\",CHAR(160),ES$1))+1),\"\")","v":""},{"$f":"IFERROR(MID($J22,FIND(CHAR(160),SUBSTITUTE($J22,\"{\",CHAR(160),ET$1)),FIND(CHAR(160),SUBSTITUTE($J22,\"}\",CHAR(160),ET$1))-FIND(CHAR(160),SUBSTITUTE($J22,\"{\",CHAR(160),ET$1))+1),\"\")","v":""},{"$f":"IFERROR(MID($J22,FIND(CHAR(160),SUBSTITUTE($J22,\"{\",CHAR(160),EU$1)),FIND(CHAR(160),SUBSTITUTE($J22,\"}\",CHAR(160),EU$1))-FIND(CHAR(160),SUBSTITUTE($J22,\"{\",CHAR(160),EU$1))+1),\"\")","v":""},{"$f":"IFERROR(MID($J22,FIND(CHAR(160),SUBSTITUTE($J22,\"{\",CHAR(160),EV$1)),FIND(CHAR(160),SUBSTITUTE($J22,\"}\",CHAR(160),EV$1))-FIND(CHAR(160),SUBSTITUTE($J22,\"{\",CHAR(160),EV$1))+1),\"\")","v":""},{"$f":"IFERROR(MID($J22,FIND(CHAR(160),SUBSTITUTE($J22,\"{\",CHAR(160),EW$1)),FIND(CHAR(160),SUBSTITUTE($J22,\"}\",CHAR(160),EW$1))-FIND(CHAR(160),SUBSTITUTE($J22,\"{\",CHAR(160),EW$1))+1),\"\")","v":""},{"$f":"IFERROR(MID($J22,FIND(CHAR(160),SUBSTITUTE($J22,\"{\",CHAR(160),EX$1)),FIND(CHAR(160),SUBSTITUTE($J22,\"}\",CHAR(160),EX$1))-FIND(CHAR(160),SUBSTITUTE($J22,\"{\",CHAR(160),EX$1))+1),\"\")","v":""},{"$f":"IFERROR(MID($J22,FIND(CHAR(160),SUBSTITUTE($J22,\"{\",CHAR(160),EY$1)),FIND(CHAR(160),SUBSTITUTE($J22,\"}\",CHAR(160),EY$1))-FIND(CHAR(160),SUBSTITUTE($J22,\"{\",CHAR(160),EY$1))+1),\"\")","v":""},{"$f":"IFERROR(MID($J22,FIND(CHAR(160),SUBSTITUTE($J22,\"{\",CHAR(160),EZ$1)),FIND(CHAR(160),SUBSTITUTE($J22,\"}\",CHAR(160),EZ$1))-FIND(CHAR(160),SUBSTITUTE($J22,\"{\",CHAR(160),EZ$1))+1),\"\")","v":""},{"$f":"IFERROR(MID($J22,FIND(CHAR(160),SUBSTITUTE($J22,\"{\",CHAR(160),FA$1)),FIND(CHAR(160),SUBSTITUTE($J22,\"}\",CHAR(160),FA$1))-FIND(CHAR(160),SUBSTITUTE($J22,\"{\",CHAR(160),FA$1))+1),\"\")","v":""},{"$f":"IFERROR(MID($J22,FIND(CHAR(160),SUBSTITUTE($J22,\"{\",CHAR(160),FB$1)),FIND(CHAR(160),SUBSTITUTE($J22,\"}\",CHAR(160),FB$1))-FIND(CHAR(160),SUBSTITUTE($J22,\"{\",CHAR(160),FB$1))+1),\"\")","v":""},{"$f":"IFERROR(MID($O22,FIND(CHAR(160),SUBSTITUTE($O22,\"{\",CHAR(160),FC$1)),FIND(CHAR(160),SUBSTITUTE($O22,\"}\",CHAR(160),FC$1))-FIND(CHAR(160),SUBSTITUTE($O22,\"{\",CHAR(160),FC$1))+1),\"\")","v":""},{"$f":"IFERROR(MID($O22,FIND(CHAR(160),SUBSTITUTE($O22,\"{\",CHAR(160),FD$1)),FIND(CHAR(160),SUBSTITUTE($O22,\"}\",CHAR(160),FD$1))-FIND(CHAR(160),SUBSTITUTE($O22,\"{\",CHAR(160),FD$1))+1),\"\")","v":""},{"$f":"IFERROR(MID($O22,FIND(CHAR(160),SUBSTITUTE($O22,\"{\",CHAR(160),FE$1)),FIND(CHAR(160),SUBSTITUTE($O22,\"}\",CHAR(160),FE$1))-FIND(CHAR(160),SUBSTITUTE($O22,\"{\",CHAR(160),FE$1))+1),\"\")","v":""},{"$f":"IFERROR(MID($O22,FIND(CHAR(160),SUBSTITUTE($O22,\"{\",CHAR(160),FF$1)),FIND(CHAR(160),SUBSTITUTE($O22,\"}\",CHAR(160),FF$1))-FIND(CHAR(160),SUBSTITUTE($O22,\"{\",CHAR(160),FF$1))+1),\"\")","v":""},{"$f":"IFERROR(MID($O22,FIND(CHAR(160),SUBSTITUTE($O22,\"{\",CHAR(160),FG$1)),FIND(CHAR(160),SUBSTITUTE($O22,\"}\",CHAR(160),FG$1))-FIND(CHAR(160),SUBSTITUTE($O22,\"{\",CHAR(160),FG$1))+1),\"\")","v":""},{"$f":"IFERROR(MID($O22,FIND(CHAR(160),SUBSTITUTE($O22,\"{\",CHAR(160),FH$1)),FIND(CHAR(160),SUBSTITUTE($O22,\"}\",CHAR(160),FH$1))-FIND(CHAR(160),SUBSTITUTE($O22,\"{\",CHAR(160),FH$1))+1),\"\")","v":""},{"$f":"IFERROR(MID($O22,FIND(CHAR(160),SUBSTITUTE($O22,\"{\",CHAR(160),FI$1)),FIND(CHAR(160),SUBSTITUTE($O22,\"}\",CHAR(160),FI$1))-FIND(CHAR(160),SUBSTITUTE($O22,\"{\",CHAR(160),FI$1))+1),\"\")","v":""},{"$f":"IFERROR(MID($O22,FIND(CHAR(160),SUBSTITUTE($O22,\"{\",CHAR(160),FJ$1)),FIND(CHAR(160),SUBSTITUTE($O22,\"}\",CHAR(160),FJ$1))-FIND(CHAR(160),SUBSTITUTE($O22,\"{\",CHAR(160),FJ$1))+1),\"\")","v":""},{"$f":"IFERROR(MID($O22,FIND(CHAR(160),SUBSTITUTE($O22,\"{\",CHAR(160),FK$1)),FIND(CHAR(160),SUBSTITUTE($O22,\"}\",CHAR(160),FK$1))-FIND(CHAR(160),SUBSTITUTE($O22,\"{\",CHAR(160),FK$1))+1),\"\")","v":"{Measure:Quantity}"},{"$f":"IFERROR(MID($O22,FIND(CHAR(160),SUBSTITUTE($O22,\"{\",CHAR(160),FL$1)),FIND(CHAR(160),SUBSTITUTE($O22,\"}\",CHAR(160),FL$1))-FIND(CHAR(160),SUBSTITUTE($O22,\"{\",CHAR(160),FL$1))+1),\"\")","v":""},{"$f":"IFERROR(MID($R22,FIND(CHAR(160),SUBSTITUTE($R22,\"{\",CHAR(160),FM$1)),FIND(CHAR(160),SUBSTITUTE($R22,\"}\",CHAR(160),FM$1))-FIND(CHAR(160),SUBSTITUTE($R22,\"{\",CHAR(160),FM$1))+1),\"\")","v":""},{"$f":"IFERROR(MID($R22,FIND(CHAR(160),SUBSTITUTE($R22,\"{\",CHAR(160),FN$1)),FIND(CHAR(160),SUBSTITUTE($R22,\"}\",CHAR(160),FN$1))-FIND(CHAR(160),SUBSTITUTE($R22,\"{\",CHAR(160),FN$1))+1),\"\")","v":""},{"$f":"IFERROR(MID($R22,FIND(CHAR(160),SUBSTITUTE($R22,\"{\",CHAR(160),FO$1)),FIND(CHAR(160),SUBSTITUTE($R22,\"}\",CHAR(160),FO$1))-FIND(CHAR(160),SUBSTITUTE($R22,\"{\",CHAR(160),FO$1))+1),\"\")","v":""},{"$f":"IFERROR(MID($R22,FIND(CHAR(160),SUBSTITUTE($R22,\"{\",CHAR(160),FP$1)),FIND(CHAR(160),SUBSTITUTE($R22,\"}\",CHAR(160),FP$1))-FIND(CHAR(160),SUBSTITUTE($R22,\"{\",CHAR(160),FP$1))+1),\"\")","v":""},{"$f":"IFERROR(MID($R22,FIND(CHAR(160),SUBSTITUTE($R22,\"{\",CHAR(160),FQ$1)),FIND(CHAR(160),SUBSTITUTE($R22,\"}\",CHAR(160),FQ$1))-FIND(CHAR(160),SUBSTITUTE($R22,\"{\",CHAR(160),FQ$1))+1),\"\")","v":""},{"$f":"IFERROR(MID($R22,FIND(CHAR(160),SUBSTITUTE($R22,\"{\",CHAR(160),FR$1)),FIND(CHAR(160),SUBSTITUTE($R22,\"}\",CHAR(160),FR$1))-FIND(CHAR(160),SUBSTITUTE($R22,\"{\",CHAR(160),FR$1))+1),\"\")","v":""},{"$f":"IFERROR(MID($R22,FIND(CHAR(160),SUBSTITUTE($R22,\"{\",CHAR(160),FS$1)),FIND(CHAR(160),SUBSTITUTE($R22,\"}\",CHAR(160),FS$1))-FIND(CHAR(160),SUBSTITUTE($R22,\"{\",CHAR(160),FS$1))+1),\"\")","v":""},{"$f":"IFERROR(MID($R22,FIND(CHAR(160),SUBSTITUTE($R22,\"{\",CHAR(160),FT$1)),FIND(CHAR(160),SUBSTITUTE($R22,\"}\",CHAR(160),FT$1))-FIND(CHAR(160),SUBSTITUTE($R22,\"{\",CHAR(160),FT$1))+1),\"\")","v":""},{"$f":"IFERROR(MID($R22,FIND(CHAR(160),SUBSTITUTE($R22,\"{\",CHAR(160),FU$1)),FIND(CHAR(160),SUBSTITUTE($R22,\"}\",CHAR(160),FU$1))-FIND(CHAR(160),SUBSTITUTE($R22,\"{\",CHAR(160),FU$1))+1),\"\")","v":"{Measure:Quantity}"},{"$f":"IFERROR(MID($R22,FIND(CHAR(160),SUBSTITUTE($R22,\"{\",CHAR(160),FV$1)),FIND(CHAR(160),SUBSTITUTE($R22,\"}\",CHAR(160),FV$1))-FIND(CHAR(160),SUBSTITUTE($R22,\"{\",CHAR(160),FV$1))+1),\"\")","v":""},{"$f":"IFERROR(MID($U22,FIND(CHAR(160),SUBSTITUTE($U22,\"{\",CHAR(160),FW$1)),FIND(CHAR(160),SUBSTITUTE($U22,\"}\",CHAR(160),FW$1))-FIND(CHAR(160),SUBSTITUTE($U22,\"{\",CHAR(160),FW$1))+1),\"\")","v":""},{"$f":"IFERROR(MID($U22,FIND(CHAR(160),SUBSTITUTE($U22,\"{\",CHAR(160),FX$1)),FIND(CHAR(160),SUBSTITUTE($U22,\"}\",CHAR(160),FX$1))-FIND(CHAR(160),SUBSTITUTE($U22,\"{\",CHAR(160),FX$1))+1),\"\")","v":""},{"$f":"IFERROR(MID($U22,FIND(CHAR(160),SUBSTITUTE($U22,\"{\",CHAR(160),FY$1)),FIND(CHAR(160),SUBSTITUTE($U22,\"}\",CHAR(160),FY$1))-FIND(CHAR(160),SUBSTITUTE($U22,\"{\",CHAR(160),FY$1))+1),\"\")","v":""},{"$f":"IFERROR(MID($U22,FIND(CHAR(160),SUBSTITUTE($U22,\"{\",CHAR(160),FZ$1)),FIND(CHAR(160),SUBSTITUTE($U22,\"}\",CHAR(160),FZ$1))-FIND(CHAR(160),SUBSTITUTE($U22,\"{\",CHAR(160),FZ$1))+1),\"\")","v":""},{"$f":"IFERROR(MID($U22,FIND(CHAR(160),SUBSTITUTE($U22,\"{\",CHAR(160),GA$1)),FIND(CHAR(160),SUBSTITUTE($U22,\"}\",CHAR(160),GA$1))-FIND(CHAR(160),SUBSTITUTE($U22,\"{\",CHAR(160),GA$1))+1),\"\")","v":""},{"$f":"IFERROR(MID($U22,FIND(CHAR(160),SUBSTITUTE($U22,\"{\",CHAR(160),GB$1)),FIND(CHAR(160),SUBSTITUTE($U22,\"}\",CHAR(160),GB$1))-FIND(CHAR(160),SUBSTITUTE($U22,\"{\",CHAR(160),GB$1))+1),\"\")","v":""},{"$f":"IFERROR(MID($U22,FIND(CHAR(160),SUBSTITUTE($U22,\"{\",CHAR(160),GC$1)),FIND(CHAR(160),SUBSTITUTE($U22,\"}\",CHAR(160),GC$1))-FIND(CHAR(160),SUBSTITUTE($U22,\"{\",CHAR(160),GC$1))+1),\"\")","v":""},{"$f":"IFERROR(MID($U22,FIND(CHAR(160),SUBSTITUTE($U22,\"{\",CHAR(160),GD$1)),FIND(CHAR(160),SUBSTITUTE($U22,\"}\",CHAR(160),GD$1))-FIND(CHAR(160),SUBSTITUTE($U22,\"{\",CHAR(160),GD$1))+1),\"\")","v":""},{"$f":"IFERROR(MID($U22,FIND(CHAR(160),SUBSTITUTE($U22,\"{\",CHAR(160),GE$1)),FIND(CHAR(160),SUBSTITUTE($U22,\"}\",CHAR(160),GE$1))-FIND(CHAR(160),SUBSTITUTE($U22,\"{\",CHAR(160),GE$1))+1),\"\")","v":"{Measure:Quantity}"},{"$f":"IFERROR(MID($U22,FIND(CHAR(160),SUBSTITUTE($U22,\"{\",CHAR(160),GF$1)),FIND(CHAR(160),SUBSTITUTE($U22,\"}\",CHAR(160),GF$1))-FIND(CHAR(160),SUBSTITUTE($U22,\"{\",CHAR(160),GF$1))+1),\"\")","v":""},{"$f":"IFERROR(MID($V22,FIND(CHAR(160),SUBSTITUTE($V22,\"{\",CHAR(160),GG$1)),FIND(CHAR(160),SUBSTITUTE($V22,\"}\",CHAR(160),GG$1))-FIND(CHAR(160),SUBSTITUTE($V22,\"{\",CHAR(160),GG$1))+1),\"\")","v":""},{"$f":"IFERROR(MID($V22,FIND(CHAR(160),SUBSTITUTE($V22,\"{\",CHAR(160),GH$1)),FIND(CHAR(160),SUBSTITUTE($V22,\"}\",CHAR(160),GH$1))-FIND(CHAR(160),SUBSTITUTE($V22,\"{\",CHAR(160),GH$1))+1),\"\")","v":""},{"$f":"IFERROR(MID($V22,FIND(CHAR(160),SUBSTITUTE($V22,\"{\",CHAR(160),GI$1)),FIND(CHAR(160),SUBSTITUTE($V22,\"}\",CHAR(160),GI$1))-FIND(CHAR(160),SUBSTITUTE($V22,\"{\",CHAR(160),GI$1))+1),\"\")","v":""},{"$f":"IFERROR(MID($V22,FIND(CHAR(160),SUBSTITUTE($V22,\"{\",CHAR(160),GJ$1)),FIND(CHAR(160),SUBSTITUTE($V22,\"}\",CHAR(160),GJ$1))-FIND(CHAR(160),SUBSTITUTE($V22,\"{\",CHAR(160),GJ$1))+1),\"\")","v":""},{"$f":"IFERROR(MID($V22,FIND(CHAR(160),SUBSTITUTE($V22,\"{\",CHAR(160),GK$1)),FIND(CHAR(160),SUBSTITUTE($V22,\"}\",CHAR(160),GK$1))-FIND(CHAR(160),SUBSTITUTE($V22,\"{\",CHAR(160),GK$1))+1),\"\")","v":""},{"$f":"IFERROR(MID($V22,FIND(CHAR(160),SUBSTITUTE($V22,\"{\",CHAR(160),GL$1)),FIND(CHAR(160),SUBSTITUTE($V22,\"}\",CHAR(160),GL$1))-FIND(CHAR(160),SUBSTITUTE($V22,\"{\",CHAR(160),GL$1))+1),\"\")","v":""},{"$f":"IFERROR(MID($V22,FIND(CHAR(160),SUBSTITUTE($V22,\"{\",CHAR(160),GM$1)),FIND(CHAR(160),SUBSTITUTE($V22,\"}\",CHAR(160),GM$1))-FIND(CHAR(160),SUBSTITUTE($V22,\"{\",CHAR(160),GM$1))+1),\"\")","v":""},{"$f":"IFERROR(MID($V22,FIND(CHAR(160),SUBSTITUTE($V22,\"{\",CHAR(160),GN$1)),FIND(CHAR(160),SUBSTITUTE($V22,\"}\",CHAR(160),GN$1))-FIND(CHAR(160),SUBSTITUTE($V22,\"{\",CHAR(160),GN$1))+1),\"\")","v":""},{"$f":"IFERROR(MID($V22,FIND(CHAR(160),SUBSTITUTE($V22,\"{\",CHAR(160),GO$1)),FIND(CHAR(160),SUBSTITUTE($V22,\"}\",CHAR(160),GO$1))-FIND(CHAR(160),SUBSTITUTE($V22,\"{\",CHAR(160),GO$1))+1),\"\")","v":"{Measure:Quantity}"},{"$f":"IFERROR(MID($V22,FIND(CHAR(160),SUBSTITUTE($V22,\"{\",CHAR(160),GP$1)),FIND(CHAR(160),SUBSTITUTE($V22,\"}\",CHAR(160),GP$1))-FIND(CHAR(160),SUBSTITUTE($V22,\"{\",CHAR(160),GP$1))+1),\"\")","v":""},{"$f":"IFERROR(MID($W22,FIND(CHAR(160),SUBSTITUTE($W22,\"{\",CHAR(160),GQ$1)),FIND(CHAR(160),SUBSTITUTE($W22,\"}\",CHAR(160),GQ$1))-FIND(CHAR(160),SUBSTITUTE($W22,\"{\",CHAR(160),GQ$1))+1),\"\")","v":""},{"$f":"IFERROR(MID($W22,FIND(CHAR(160),SUBSTITUTE($W22,\"{\",CHAR(160),GR$1)),FIND(CHAR(160),SUBSTITUTE($W22,\"}\",CHAR(160),GR$1))-FIND(CHAR(160),SUBSTITUTE($W22,\"{\",CHAR(160),GR$1))+1),\"\")","v":""},{"$f":"IFERROR(MID($W22,FIND(CHAR(160),SUBSTITUTE($W22,\"{\",CHAR(160),GS$1)),FIND(CHAR(160),SUBSTITUTE($W22,\"}\",CHAR(160),GS$1))-FIND(CHAR(160),SUBSTITUTE($W22,\"{\",CHAR(160),GS$1))+1),\"\")","v":""},{"$f":"IFERROR(MID($W22,FIND(CHAR(160),SUBSTITUTE($W22,\"{\",CHAR(160),GT$1)),FIND(CHAR(160),SUBSTITUTE($W22,\"}\",CHAR(160),GT$1))-FIND(CHAR(160),SUBSTITUTE($W22,\"{\",CHAR(160),GT$1))+1),\"\")","v":""},{"$f":"IFERROR(MID($W22,FIND(CHAR(160),SUBSTITUTE($W22,\"{\",CHAR(160),GU$1)),FIND(CHAR(160),SUBSTITUTE($W22,\"}\",CHAR(160),GU$1))-FIND(CHAR(160),SUBSTITUTE($W22,\"{\",CHAR(160),GU$1))+1),\"\")","v":""},{"$f":"IFERROR(MID($W22,FIND(CHAR(160),SUBSTITUTE($W22,\"{\",CHAR(160),GV$1)),FIND(CHAR(160),SUBSTITUTE($W22,\"}\",CHAR(160),GV$1))-FIND(CHAR(160),SUBSTITUTE($W22,\"{\",CHAR(160),GV$1))+1),\"\")","v":""},{"$f":"IFERROR(MID($W22,FIND(CHAR(160),SUBSTITUTE($W22,\"{\",CHAR(160),GW$1)),FIND(CHAR(160),SUBSTITUTE($W22,\"}\",CHAR(160),GW$1))-FIND(CHAR(160),SUBSTITUTE($W22,\"{\",CHAR(160),GW$1))+1),\"\")","v":""},{"$f":"IFERROR(MID($W22,FIND(CHAR(160),SUBSTITUTE($W22,\"{\",CHAR(160),GX$1)),FIND(CHAR(160),SUBSTITUTE($W22,\"}\",CHAR(160),GX$1))-FIND(CHAR(160),SUBSTITUTE($W22,\"{\",CHAR(160),GX$1))+1),\"\")","v":""},{"$f":"IFERROR(MID($W22,FIND(CHAR(160),SUBSTITUTE($W22,\"{\",CHAR(160),GY$1)),FIND(CHAR(160),SUBSTITUTE($W22,\"}\",CHAR(160),GY$1))-FIND(CHAR(160),SUBSTITUTE($W22,\"{\",CHAR(160),GY$1))+1),\"\")","v":"{Measure:Quantity}"},{"$f":"IFERROR(MID($W22,FIND(CHAR(160),SUBSTITUTE($W22,\"{\",CHAR(160),GZ$1)),FIND(CHAR(160),SUBSTITUTE($W22,\"}\",CHAR(160),GZ$1))-FIND(CHAR(160),SUBSTITUTE($W22,\"{\",CHAR(160),GZ$1))+1),\"\")","v":""},{"$f":"IFERROR(MID($X22,FIND(CHAR(160),SUBSTITUTE($X22,\"{\",CHAR(160),HA$1)),FIND(CHAR(160),SUBSTITUTE($X22,\"}\",CHAR(160),HA$1))-FIND(CHAR(160),SUBSTITUTE($X22,\"{\",CHAR(160),HA$1))+1),\"\")","v":""},{"$f":"IFERROR(MID($X22,FIND(CHAR(160),SUBSTITUTE($X22,\"{\",CHAR(160),HB$1)),FIND(CHAR(160),SUBSTITUTE($X22,\"}\",CHAR(160),HB$1))-FIND(CHAR(160),SUBSTITUTE($X22,\"{\",CHAR(160),HB$1))+1),\"\")","v":""},{"$f":"IFERROR(MID($X22,FIND(CHAR(160),SUBSTITUTE($X22,\"{\",CHAR(160),HC$1)),FIND(CHAR(160),SUBSTITUTE($X22,\"}\",CHAR(160),HC$1))-FIND(CHAR(160),SUBSTITUTE($X22,\"{\",CHAR(160),HC$1))+1),\"\")","v":""},{"$f":"IFERROR(MID($X22,FIND(CHAR(160),SUBSTITUTE($X22,\"{\",CHAR(160),HD$1)),FIND(CHAR(160),SUBSTITUTE($X22,\"}\",CHAR(160),HD$1))-FIND(CHAR(160),SUBSTITUTE($X22,\"{\",CHAR(160),HD$1))+1),\"\")","v":""},{"$f":"IFERROR(MID($X22,FIND(CHAR(160),SUBSTITUTE($X22,\"{\",CHAR(160),HE$1)),FIND(CHAR(160),SUBSTITUTE($X22,\"}\",CHAR(160),HE$1))-FIND(CHAR(160),SUBSTITUTE($X22,\"{\",CHAR(160),HE$1))+1),\"\")","v":""},{"$f":"IFERROR(MID($X22,FIND(CHAR(160),SUBSTITUTE($X22,\"{\",CHAR(160),HF$1)),FIND(CHAR(160),SUBSTITUTE($X22,\"}\",CHAR(160),HF$1))-FIND(CHAR(160),SUBSTITUTE($X22,\"{\",CHAR(160),HF$1))+1),\"\")","v":""},{"$f":"IFERROR(MID($X22,FIND(CHAR(160),SUBSTITUTE($X22,\"{\",CHAR(160),HG$1)),FIND(CHAR(160),SUBSTITUTE($X22,\"}\",CHAR(160),HG$1))-FIND(CHAR(160),SUBSTITUTE($X22,\"{\",CHAR(160),HG$1))+1),\"\")","v":""},{"$f":"IFERROR(MID($X22,FIND(CHAR(160),SUBSTITUTE($X22,\"{\",CHAR(160),HH$1)),FIND(CHAR(160),SUBSTITUTE($X22,\"}\",CHAR(160),HH$1))-FIND(CHAR(160),SUBSTITUTE($X22,\"{\",CHAR(160),HH$1))+1),\"\")","v":""},{"$f":"IFERROR(MID($X22,FIND(CHAR(160),SUBSTITUTE($X22,\"{\",CHAR(160),HI$1)),FIND(CHAR(160),SUBSTITUTE($X22,\"}\",CHAR(160),HI$1))-FIND(CHAR(160),SUBSTITUTE($X22,\"{\",CHAR(160),HI$1))+1),\"\")","v":"{Measure:Quantity}"},{"$f":"IFERROR(MID($X22,FIND(CHAR(160),SUBSTITUTE($X22,\"{\",CHAR(160),HJ$1)),FIND(CHAR(160),SUBSTITUTE($X22,\"}\",CHAR(160),HJ$1))-FIND(CHAR(160),SUBSTITUTE($X22,\"{\",CHAR(160),HJ$1))+1),\"\")","v":""},{"$f":"IFERROR(MID($Y22,FIND(CHAR(160),SUBSTITUTE($Y22,\"{\",CHAR(160),HK$1)),FIND(CHAR(160),SUBSTITUTE($Y22,\"}\",CHAR(160),HK$1))-FIND(CHAR(160),SUBSTITUTE($Y22,\"{\",CHAR(160),HK$1))+1),\"\")","v":""},{"$f":"IFERROR(MID($Y22,FIND(CHAR(160),SUBSTITUTE($Y22,\"{\",CHAR(160),HL$1)),FIND(CHAR(160),SUBSTITUTE($Y22,\"}\",CHAR(160),HL$1))-FIND(CHAR(160),SUBSTITUTE($Y22,\"{\",CHAR(160),HL$1))+1),\"\")","v":""},{"$f":"IFERROR(MID($Y22,FIND(CHAR(160),SUBSTITUTE($Y22,\"{\",CHAR(160),HM$1)),FIND(CHAR(160),SUBSTITUTE($Y22,\"}\",CHAR(160),HM$1))-FIND(CHAR(160),SUBSTITUTE($Y22,\"{\",CHAR(160),HM$1))+1),\"\")","v":""},{"$f":"IFERROR(MID($Y22,FIND(CHAR(160),SUBSTITUTE($Y22,\"{\",CHAR(160),HN$1)),FIND(CHAR(160),SUBSTITUTE($Y22,\"}\",CHAR(160),HN$1))-FIND(CHAR(160),SUBSTITUTE($Y22,\"{\",CHAR(160),HN$1))+1),\"\")","v":""},{"$f":"IFERROR(MID($Y22,FIND(CHAR(160),SUBSTITUTE($Y22,\"{\",CHAR(160),HO$1)),FIND(CHAR(160),SUBSTITUTE($Y22,\"}\",CHAR(160),HO$1))-FIND(CHAR(160),SUBSTITUTE($Y22,\"{\",CHAR(160),HO$1))+1),\"\")","v":""},{"$f":"IFERROR(MID($Y22,FIND(CHAR(160),SUBSTITUTE($Y22,\"{\",CHAR(160),HP$1)),FIND(CHAR(160),SUBSTITUTE($Y22,\"}\",CHAR(160),HP$1))-FIND(CHAR(160),SUBSTITUTE($Y22,\"{\",CHAR(160),HP$1))+1),\"\")","v":""},{"$f":"IFERROR(MID($Y22,FIND(CHAR(160),SUBSTITUTE($Y22,\"{\",CHAR(160),HQ$1)),FIND(CHAR(160),SUBSTITUTE($Y22,\"}\",CHAR(160),HQ$1))-FIND(CHAR(160),SUBSTITUTE($Y22,\"{\",CHAR(160),HQ$1))+1),\"\")","v":""},{"$f":"IFERROR(MID($Y22,FIND(CHAR(160),SUBSTITUTE($Y22,\"{\",CHAR(160),HR$1)),FIND(CHAR(160),SUBSTITUTE($Y22,\"}\",CHAR(160),HR$1))-FIND(CHAR(160),SUBSTITUTE($Y22,\"{\",CHAR(160),HR$1))+1),\"\")","v":""},{"$f":"IFERROR(MID($Y22,FIND(CHAR(160),SUBSTITUTE($Y22,\"{\",CHAR(160),HS$1)),FIND(CHAR(160),SUBSTITUTE($Y22,\"}\",CHAR(160),HS$1))-FIND(CHAR(160),SUBSTITUTE($Y22,\"{\",CHAR(160),HS$1))+1),\"\")","v":"{Measure:Quantity}"},{"$f":"IFERROR(MID($Y22,FIND(CHAR(160),SUBSTITUTE($Y22,\"{\",CHAR(160),HT$1)),FIND(CHAR(160),SUBSTITUTE($Y22,\"}\",CHAR(160),HT$1))-FIND(CHAR(160),SUBSTITUTE($Y22,\"{\",CHAR(160),HT$1))+1),\"\")","v":""},{"$f":"IFERROR(MID($Z22,FIND(CHAR(160),SUBSTITUTE($Z22,\"{\",CHAR(160),HU$1)),FIND(CHAR(160),SUBSTITUTE($Z22,\"}\",CHAR(160),HU$1))-FIND(CHAR(160),SUBSTITUTE($Z22,\"{\",CHAR(160),HU$1))+1),\"\")","v":""},{"$f":"IFERROR(MID($Z22,FIND(CHAR(160),SUBSTITUTE($Z22,\"{\",CHAR(160),HV$1)),FIND(CHAR(160),SUBSTITUTE($Z22,\"}\",CHAR(160),HV$1))-FIND(CHAR(160),SUBSTITUTE($Z22,\"{\",CHAR(160),HV$1))+1),\"\")","v":""},{"$f":"IFERROR(MID($Z22,FIND(CHAR(160),SUBSTITUTE($Z22,\"{\",CHAR(160),HW$1)),FIND(CHAR(160),SUBSTITUTE($Z22,\"}\",CHAR(160),HW$1))-FIND(CHAR(160),SUBSTITUTE($Z22,\"{\",CHAR(160),HW$1))+1),\"\")","v":""},{"$f":"IFERROR(MID($Z22,FIND(CHAR(160),SUBSTITUTE($Z22,\"{\",CHAR(160),HX$1)),FIND(CHAR(160),SUBSTITUTE($Z22,\"}\",CHAR(160),HX$1))-FIND(CHAR(160),SUBSTITUTE($Z22,\"{\",CHAR(160),HX$1))+1),\"\")","v":""},{"$f":"IFERROR(MID($Z22,FIND(CHAR(160),SUBSTITUTE($Z22,\"{\",CHAR(160),HY$1)),FIND(CHAR(160),SUBSTITUTE($Z22,\"}\",CHAR(160),HY$1))-FIND(CHAR(160),SUBSTITUTE($Z22,\"{\",CHAR(160),HY$1))+1),\"\")","v":""},{"$f":"IFERROR(MID($Z22,FIND(CHAR(160),SUBSTITUTE($Z22,\"{\",CHAR(160),HZ$1)),FIND(CHAR(160),SUBSTITUTE($Z22,\"}\",CHAR(160),HZ$1))-FIND(CHAR(160),SUBSTITUTE($Z22,\"{\",CHAR(160),HZ$1))+1),\"\")","v":""},{"$f":"IFERROR(MID($Z22,FIND(CHAR(160),SUBSTITUTE($Z22,\"{\",CHAR(160),IA$1)),FIND(CHAR(160),SUBSTITUTE($Z22,\"}\",CHAR(160),IA$1))-FIND(CHAR(160),SUBSTITUTE($Z22,\"{\",CHAR(160),IA$1))+1),\"\")","v":""},{"$f":"IFERROR(MID($Z22,FIND(CHAR(160),SUBSTITUTE($Z22,\"{\",CHAR(160),IB$1)),FIND(CHAR(160),SUBSTITUTE($Z22,\"}\",CHAR(160),IB$1))-FIND(CHAR(160),SUBSTITUTE($Z22,\"{\",CHAR(160),IB$1))+1),\"\")","v":""},{"$f":"IFERROR(MID($Z22,FIND(CHAR(160),SUBSTITUTE($Z22,\"{\",CHAR(160),IC$1)),FIND(CHAR(160),SUBSTITUTE($Z22,\"}\",CHAR(160),IC$1))-FIND(CHAR(160),SUBSTITUTE($Z22,\"{\",CHAR(160),IC$1))+1),\"\")","v":"{Measure:Quantity}"},{"$f":"IFERROR(MID($Z22,FIND(CHAR(160),SUBSTITUTE($Z22,\"{\",CHAR(160),ID$1)),FIND(CHAR(160),SUBSTITUTE($Z22,\"}\",CHAR(160),ID$1))-FIND(CHAR(160),SUBSTITUTE($Z22,\"{\",CHAR(160),ID$1))+1),\"\")","v":""},{"$f":"IFERROR(MID($AA22,FIND(CHAR(160),SUBSTITUTE($AA22,\"{\",CHAR(160),IE$1)),FIND(CHAR(160),SUBSTITUTE($AA22,\"}\",CHAR(160),IE$1))-FIND(CHAR(160),SUBSTITUTE($AA22,\"{\",CHAR(160),IE$1))+1),\"\")","v":""},{"$f":"IFERROR(MID($AA22,FIND(CHAR(160),SUBSTITUTE($AA22,\"{\",CHAR(160),IF$1)),FIND(CHAR(160),SUBSTITUTE($AA22,\"}\",CHAR(160),IF$1))-FIND(CHAR(160),SUBSTITUTE($AA22,\"{\",CHAR(160),IF$1))+1),\"\")","v":""},{"$f":"IFERROR(MID($AA22,FIND(CHAR(160),SUBSTITUTE($AA22,\"{\",CHAR(160),IG$1)),FIND(CHAR(160),SUBSTITUTE($AA22,\"}\",CHAR(160),IG$1))-FIND(CHAR(160),SUBSTITUTE($AA22,\"{\",CHAR(160),IG$1))+1),\"\")","v":""},{"$f":"IFERROR(MID($AA22,FIND(CHAR(160),SUBSTITUTE($AA22,\"{\",CHAR(160),IH$1)),FIND(CHAR(160),SUBSTITUTE($AA22,\"}\",CHAR(160),IH$1))-FIND(CHAR(160),SUBSTITUTE($AA22,\"{\",CHAR(160),IH$1))+1),\"\")","v":""},{"$f":"IFERROR(MID($AA22,FIND(CHAR(160),SUBSTITUTE($AA22,\"{\",CHAR(160),II$1)),FIND(CHAR(160),SUBSTITUTE($AA22,\"}\",CHAR(160),II$1))-FIND(CHAR(160),SUBSTITUTE($AA22,\"{\",CHAR(160),II$1))+1),\"\")","v":""},{"$f":"IFERROR(MID($AA22,FIND(CHAR(160),SUBSTITUTE($AA22,\"{\",CHAR(160),IJ$1)),FIND(CHAR(160),SUBSTITUTE($AA22,\"}\",CHAR(160),IJ$1))-FIND(CHAR(160),SUBSTITUTE($AA22,\"{\",CHAR(160),IJ$1))+1),\"\")","v":""},{"$f":"IFERROR(MID($AA22,FIND(CHAR(160),SUBSTITUTE($AA22,\"{\",CHAR(160),IK$1)),FIND(CHAR(160),SUBSTITUTE($AA22,\"}\",CHAR(160),IK$1))-FIND(CHAR(160),SUBSTITUTE($AA22,\"{\",CHAR(160),IK$1))+1),\"\")","v":""},{"$f":"IFERROR(MID($AA22,FIND(CHAR(160),SUBSTITUTE($AA22,\"{\",CHAR(160),IL$1)),FIND(CHAR(160),SUBSTITUTE($AA22,\"}\",CHAR(160),IL$1))-FIND(CHAR(160),SUBSTITUTE($AA22,\"{\",CHAR(160),IL$1))+1),\"\")","v":""},{"$f":"IFERROR(MID($AA22,FIND(CHAR(160),SUBSTITUTE($AA22,\"{\",CHAR(160),IM$1)),FIND(CHAR(160),SUBSTITUTE($AA22,\"}\",CHAR(160),IM$1))-FIND(CHAR(160),SUBSTITUTE($AA22,\"{\",CHAR(160),IM$1))+1),\"\")","v":"{Measure:Quantity}"},{"$f":"IFERROR(MID($AA22,FIND(CHAR(160),SUBSTITUTE($AA22,\"{\",CHAR(160),IN$1)),FIND(CHAR(160),SUBSTITUTE($AA22,\"}\",CHAR(160),IN$1))-FIND(CHAR(160),SUBSTITUTE($AA22,\"{\",CHAR(160),IN$1))+1),\"\")","v":""},{"$f":"IFERROR(MID($AB22,FIND(CHAR(160),SUBSTITUTE($AB22,\"{\",CHAR(160),IO$1)),FIND(CHAR(160),SUBSTITUTE($AB22,\"}\",CHAR(160),IO$1))-FIND(CHAR(160),SUBSTITUTE($AB22,\"{\",CHAR(160),IO$1))+1),\"\")","v":""},{"$f":"IFERROR(MID($AB22,FIND(CHAR(160),SUBSTITUTE($AB22,\"{\",CHAR(160),IP$1)),FIND(CHAR(160),SUBSTITUTE($AB22,\"}\",CHAR(160),IP$1))-FIND(CHAR(160),SUBSTITUTE($AB22,\"{\",CHAR(160),IP$1))+1),\"\")","v":""},{"$f":"IFERROR(MID($AB22,FIND(CHAR(160),SUBSTITUTE($AB22,\"{\",CHAR(160),IQ$1)),FIND(CHAR(160),SUBSTITUTE($AB22,\"}\",CHAR(160),IQ$1))-FIND(CHAR(160),SUBSTITUTE($AB22,\"{\",CHAR(160),IQ$1))+1),\"\")","v":""},{"$f":"IFERROR(MID($AB22,FIND(CHAR(160),SUBSTITUTE($AB22,\"{\",CHAR(160),IR$1)),FIND(CHAR(160),SUBSTITUTE($AB22,\"}\",CHAR(160),IR$1))-FIND(CHAR(160),SUBSTITUTE($AB22,\"{\",CHAR(160),IR$1))+1),\"\")","v":""},{"$f":"IFERROR(MID($AB22,FIND(CHAR(160),SUBSTITUTE($AB22,\"{\",CHAR(160),IS$1)),FIND(CHAR(160),SUBSTITUTE($AB22,\"}\",CHAR(160),IS$1))-FIND(CHAR(160),SUBSTITUTE($AB22,\"{\",CHAR(160),IS$1))+1),\"\")","v":""},{"$f":"IFERROR(MID($AB22,FIND(CHAR(160),SUBSTITUTE($AB22,\"{\",CHAR(160),IT$1)),FIND(CHAR(160),SUBSTITUTE($AB22,\"}\",CHAR(160),IT$1))-FIND(CHAR(160),SUBSTITUTE($AB22,\"{\",CHAR(160),IT$1))+1),\"\")","v":""},{"$f":"IFERROR(MID($AB22,FIND(CHAR(160),SUBSTITUTE($AB22,\"{\",CHAR(160),IU$1)),FIND(CHAR(160),SUBSTITUTE($AB22,\"}\",CHAR(160),IU$1))-FIND(CHAR(160),SUBSTITUTE($AB22,\"{\",CHAR(160),IU$1))+1),\"\")","v":""},{"$f":"IFERROR(MID($AB22,FIND(CHAR(160),SUBSTITUTE($AB22,\"{\",CHAR(160),IV$1)),FIND(CHAR(160),SUBSTITUTE($AB22,\"}\",CHAR(160),IV$1))-FIND(CHAR(160),SUBSTITUTE($AB22,\"{\",CHAR(160),IV$1))+1),\"\")","v":""},{"$f":"IFERROR(MID($AB22,FIND(CHAR(160),SUBSTITUTE($AB22,\"{\",CHAR(160),IW$1)),FIND(CHAR(160),SUBSTITUTE($AB22,\"}\",CHAR(160),IW$1))-FIND(CHAR(160),SUBSTITUTE($AB22,\"{\",CHAR(160),IW$1))+1),\"\")","v":""},{"$f":"IFERROR(MID($AB22,FIND(CHAR(160),SUBSTITUTE($AB22,\"{\",CHAR(160),IX$1)),FIND(CHAR(160),SUBSTITUTE($AB22,\"}\",CHAR(160),IX$1))-FIND(CHAR(160),SUBSTITUTE($AB22,\"{\",CHAR(160),IX$1))+1),\"\")","v":""},null,{"$f":"10-COUNTIF(DU22:ED22,\"\")","v":1}]
["Arrearage Management Program","Low Flow Handheld Shower Head Direct Install","LILHSH","2021-07-01","2022-06-30","Per Measure",32.44,0,"Per Measure",32.44,0,"2021-07-01","2022-06-30","Calculated","{Measure:Quantity}*if({Measure:Quantity}=0,0,442)",null,null,null,null,null,"{Measure:Quantity}*if({Measure:Quantity}=0,0,0.044)","{Measure:Quantity}*if({Measure:Quantity}=0,0,0.035)",null,null,null,null,null,"if({Measure:Quantity}=0,0,{Measure:Quantity}*3153)","2021-07-01","2022-06-30",10,8.0000000000000002E-3,5.0000000000000001E-3,0.35499999999999998,0.311,0.18099999999999999,0.153,0.88,1,1,0,0,null,{"$f":"DU23","v":"{Measure:Quantity}"},1,{"$f":"DV23","v":""},null,{"$f":"DW23","v":""},null,{"$f":"DX23","v":""},null,{"$f":"DY23","v":""},null,{"$f":"DZ23","v":""},null,{"$f":"EA23","v":""},null,{"$f":"EB23","v":""},null,{"$f":"EC23","v":""},null,{"$f":"ED23","v":""},null,{"$f":"AS23*IF(AS23=0,0,442)","v":442},0,0,0,0,0,{"$f":"AS23*IF(AS23=0,0,0.044)","v":4.3999999999999997E-2},{"$f":"AS23*IF(AS23=0,0,0.035)","v":3.5000000000000003E-2},0,0,0,0,0,{"$f":"IF(AS23=0,0,AS23*3153)","v":3153},null,"Res","Default DR",{"$f":"Benefits(BL23,BR23,BS23,BT23,BU23,BV23,BW23,BX23,BY23,BZ23,AE23,AH23,AI23,AJ23,AK23,AL23,AM23,AN23,AO23,AP23,CA23,CB23)","v":384.29816499516784},144.36705647454559,0,0,0,0,0,187.20144922985645,0,{"$f":"SUMPRODUCT(CC23:CK23,--(CC23:CK23>0))","v":715.8666706995698},{"$f":"-SUMPRODUCT(CC23:CK23,--(CC23:CK23<0))","v":0},null,{"$f":"32.44","v":32.44},null,null,{"$f":"CM23+CO23","v":32.44},{"$f":"IF(NetOrGross=\"Net\",(1-AO23+AP23),1)","v":1},{"$f":"(SUMPRODUCT(CC23:CJ23,--(CC23:CJ23>0))+CN23)*CS23/((-SUMPRODUCT(CC23:CJ23,--(CC23:CJ23<0))+MAX(CO23,CV23)+CP23+CQ23)*CS23+IF(FRIncentives=\"Yes\",CV23*(1-CS23),0))","v":22.067406618359119},1,{"$f":"32.44","v":32.44},null,"Electric","y",null,{"$f":"IF(F23=\"Manual Entry\",\"Manual\",IF(G23=\"\",0,\"X=\"&SUBSTITUTE(SUBSTITUTE(SUBSTITUTE(SUBSTITUTE(SUBSTITUTE(SUBSTITUTE(SUBSTITUTE(SUBSTITUTE(SUBSTITUTE(SUBSTITUTE(SUBSTITUTE(SUBSTITUTE(G23,$ED23,$ED$2&ROW($ED23)),$EC23,$EC$2&ROW($EC23)),$EB23,$EB$2&ROW($EB23)),$EA23,$EA$2&ROW($EA23)),$DZ23,$DZ$2&ROW($DZ23)),$DY23,$DY$2&ROW($DY23)),$DX23,$DX$2&ROW($DX23)),$DW23,$DW$2&ROW($DW23)),$DV23,$DV$2&ROW($DV23)),$DU23,$DU$2&ROW($DU23)),$DT23,$DT$2&ROW($DT23)),$DS23,$DS$2&ROW($DS23))))","v":"X=32.44"},{"$f":"IF(I23=\"Manual Entry\",\"Manual\",IF(J23=\"\",0,\"X=\"&SUBSTITUTE(SUBSTITUTE(SUBSTITUTE(SUBSTITUTE(SUBSTITUTE(SUBSTITUTE(SUBSTITUTE(SUBSTITUTE(SUBSTITUTE(SUBSTITUTE(SUBSTITUTE(SUBSTITUTE(J23,$ED23,$ED$2&ROW($ED23)),$EC23,$EC$2&ROW($EC23)),$EB23,$EB$2&ROW($EB23)),$EA23,$EA$2&ROW($EA23)),$DZ23,$DZ$2&ROW($DZ23)),$DY23,$DY$2&ROW($DY23)),$DX23,$DX$2&ROW($DX23)),$DW23,$DW$2&ROW($DW23)),$DV23,$DV$2&ROW($DV23)),$DU23,$DU$2&ROW($DU23)),$DT23,$DT$2&ROW($DT23)),$DS23,$DS$2&ROW($DS23))))","v":"X=32.44"},{"$f":"IF(O23=\"\",0,\"X=\"&SUBSTITUTE(SUBSTITUTE(SUBSTITUTE(SUBSTITUTE(SUBSTITUTE(SUBSTITUTE(SUBSTITUTE(SUBSTITUTE(SUBSTITUTE(SUBSTITUTE(SUBSTITUTE(SUBSTITUTE(O23,$ED23,$ED$2&ROW($ED23)),$EC23,$EC$2&ROW($EC23)),$EB23,$EB$2&ROW($EB23)),$EA23,$EA$2&ROW($EA23)),$DZ23,$DZ$2&ROW($DZ23)),$DY23,$DY$2&ROW($DY23)),$DX23,$DX$2&ROW($DX23)),$DW23,$DW$2&ROW($DW23)),$DV23,$DV$2&ROW($DV23)),$DU23,$DU$2&ROW($DU23)),$DT23,$DT$2&ROW($DT23)),$DS23,$DS$2&ROW($DS23)))","v":"X=AS23*if(AS23=0,0,442)"},{"$f":"IF(P23=\"\",0,\"X=\"&SUBSTITUTE(SUBSTITUTE(SUBSTITUTE(SUBSTITUTE(SUBSTITUTE(SUBSTITUTE(SUBSTITUTE(SUBSTITUTE(SUBSTITUTE(SUBSTITUTE(SUBSTITUTE(SUBSTITUTE(P23,$ED23,$ED$2&ROW($ED23)),$EC23,$EC$2&ROW($EC23)),$EB23,$EB$2&ROW($EB23)),$EA23,$EA$2&ROW($EA23)),$DZ23,$DZ$2&ROW($DZ23)),$DY23,$DY$2&ROW($DY23)),$DX23,$DX$2&ROW($DX23)),$DW23,$DW$2&ROW($DW23)),$DV23,$DV$2&ROW($DV23)),$DU23,$DU$2&ROW($DU23)),$DT23,$DT$2&ROW($DT23)),$DS23,$DS$2&ROW($DS23)))","v":0},{"$f":"IF(Q23=\"\",0,\"X=\"&SUBSTITUTE(SUBSTITUTE(SUBSTITUTE(SUBSTITUTE(SUBSTITUTE(SUBSTITUTE(SUBSTITUTE(SUBSTITUTE(SUBSTITUTE(SUBSTITUTE(SUBSTITUTE(SUBSTITUTE(Q23,$ED23,$ED$2&ROW($ED23)),$EC23,$EC$2&ROW($EC23)),$EB23,$EB$2&ROW($EB23)),$EA23,$EA$2&ROW($EA23)),$DZ23,$DZ$2&ROW($DZ23)),$DY23,$DY$2&ROW($DY23)),$DX23,$DX$2&ROW($DX23)),$DW23,$DW$2&ROW($DW23)),$DV23,$DV$2&ROW($DV23)),$DU23,$DU$2&ROW($DU23)),$DT23,$DT$2&ROW($DT23)),$DS23,$DS$2&ROW($DS23)))","v":0},{"$f":"IF(R23=\"\",0,\"X=\"&SUBSTITUTE(SUBSTITUTE(SUBSTITUTE(SUBSTITUTE(SUBSTITUTE(SUBSTITUTE(SUBSTITUTE(SUBSTITUTE(SUBSTITUTE(SUBSTITUTE(SUBSTITUTE(SUBSTITUTE(R23,$ED23,$ED$2&ROW($ED23)),$EC23,$EC$2&ROW($EC23)),$EB23,$EB$2&ROW($EB23)),$EA23,$EA$2&ROW($EA23)),$DZ23,$DZ$2&ROW($DZ23)),$DY23,$DY$2&ROW($DY23)),$DX23,$DX$2&ROW($DX23)),$DW23,$DW$2&ROW($DW23)),$DV23,$DV$2&ROW($DV23)),$DU23,$DU$2&ROW($DU23)),$DT23,$DT$2&ROW($DT23)),$DS23,$DS$2&ROW($DS23)))","v":0},{"$f":"IF(S23=\"\",0,\"X=\"&SUBSTITUTE(SUBSTITUTE(SUBSTITUTE(SUBSTITUTE(SUBSTITUTE(SUBSTITUTE(SUBSTITUTE(SUBSTITUTE(SUBSTITUTE(SUBSTITUTE(SUBSTITUTE(SUBSTITUTE(S23,$ED23,$ED$2&ROW($ED23)),$EC23,$EC$2&ROW($EC23)),$EB23,$EB$2&ROW($EB23)),$EA23,$EA$2&ROW($EA23)),$DZ23,$DZ$2&ROW($DZ23)),$DY23,$DY$2&ROW($DY23)),$DX23,$DX$2&ROW($DX23)),$DW23,$DW$2&ROW($DW23)),$DV23,$DV$2&ROW($DV23)),$DU23,$DU$2&ROW($DU23)),$DT23,$DT$2&ROW($DT23)),$DS23,$DS$2&ROW($DS23)))","v":0},{"$f":"IF(T23=\"\",0,\"X=\"&SUBSTITUTE(SUBSTITUTE(SUBSTITUTE(SUBSTITUTE(SUBSTITUTE(SUBSTITUTE(SUBSTITUTE(SUBSTITUTE(SUBSTITUTE(SUBSTITUTE(SUBSTITUTE(SUBSTITUTE(T23,$ED23,$ED$2&ROW($ED23)),$EC23,$EC$2&ROW($EC23)),$EB23,$EB$2&ROW($EB23)),$EA23,$EA$2&ROW($EA23)),$DZ23,$DZ$2&ROW($DZ23)),$DY23,$DY$2&ROW($DY23)),$DX23,$DX$2&ROW($DX23)),$DW23,$DW$2&ROW($DW23)),$DV23,$DV$2&ROW($DV23)),$DU23,$DU$2&ROW($DU23)),$DT23,$DT$2&ROW($DT23)),$DS23,$DS$2&ROW($DS23)))","v":0},{"$f":"IF(U23=\"\",0,\"X=\"&SUBSTITUTE(SUBSTITUTE(SUBSTITUTE(SUBSTITUTE(SUBSTITUTE(SUBSTITUTE(SUBSTITUTE(SUBSTITUTE(SUBSTITUTE(SUBSTITUTE(SUBSTITUTE(SUBSTITUTE(U23,$ED23,$ED$2&ROW($ED23)),$EC23,$EC$2&ROW($EC23)),$EB23,$EB$2&ROW($EB23)),$EA23,$EA$2&ROW($EA23)),$DZ23,$DZ$2&ROW($DZ23)),$DY23,$DY$2&ROW($DY23)),$DX23,$DX$2&ROW($DX23)),$DW23,$DW$2&ROW($DW23)),$DV23,$DV$2&ROW($DV23)),$DU23,$DU$2&ROW($DU23)),$DT23,$DT$2&ROW($DT23)),$DS23,$DS$2&ROW($DS23)))","v":"X=AS23*if(AS23=0,0,0.044)"},{"$f":"IF(V23=\"\",0,\"X=\"&SUBSTITUTE(SUBSTITUTE(SUBSTITUTE(SUBSTITUTE(SUBSTITUTE(SUBSTITUTE(SUBSTITUTE(SUBSTITUTE(SUBSTITUTE(SUBSTITUTE(SUBSTITUTE(SUBSTITUTE(V23,$ED23,$ED$2&ROW($ED23)),$EC23,$EC$2&ROW($EC23)),$EB23,$EB$2&ROW($EB23)),$EA23,$EA$2&ROW($EA23)),$DZ23,$DZ$2&ROW($DZ23)),$DY23,$DY$2&ROW($DY23)),$DX23,$DX$2&ROW($DX23)),$DW23,$DW$2&ROW($DW23)),$DV23,$DV$2&ROW($DV23)),$DU23,$DU$2&ROW($DU23)),$DT23,$DT$2&ROW($DT23)),$DS23,$DS$2&ROW($DS23)))","v":"X=AS23*if(AS23=0,0,0.035)"},{"$f":"IF(W23=\"\",0,\"X=\"&SUBSTITUTE(SUBSTITUTE(SUBSTITUTE(SUBSTITUTE(SUBSTITUTE(SUBSTITUTE(SUBSTITUTE(SUBSTITUTE(SUBSTITUTE(SUBSTITUTE(SUBSTITUTE(SUBSTITUTE(W23,$ED23,$ED$2&ROW($ED23)),$EC23,$EC$2&ROW($EC23)),$EB23,$EB$2&ROW($EB23)),$EA23,$EA$2&ROW($EA23)),$DZ23,$DZ$2&ROW($DZ23)),$DY23,$DY$2&ROW($DY23)),$DX23,$DX$2&ROW($DX23)),$DW23,$DW$2&ROW($DW23)),$DV23,$DV$2&ROW($DV23)),$DU23,$DU$2&ROW($DU23)),$DT23,$DT$2&ROW($DT23)),$DS23,$DS$2&ROW($DS23)))","v":0},{"$f":"IF(X23=\"\",0,\"X=\"&SUBSTITUTE(SUBSTITUTE(SUBSTITUTE(SUBSTITUTE(SUBSTITUTE(SUBSTITUTE(SUBSTITUTE(SUBSTITUTE(SUBSTITUTE(SUBSTITUTE(SUBSTITUTE(SUBSTITUTE(X23,$ED23,$ED$2&ROW($ED23)),$EC23,$EC$2&ROW($EC23)),$EB23,$EB$2&ROW($EB23)),$EA23,$EA$2&ROW($EA23)),$DZ23,$DZ$2&ROW($DZ23)),$DY23,$DY$2&ROW($DY23)),$DX23,$DX$2&ROW($DX23)),$DW23,$DW$2&ROW($DW23)),$DV23,$DV$2&ROW($DV23)),$DU23,$DU$2&ROW($DU23)),$DT23,$DT$2&ROW($DT23)),$DS23,$DS$2&ROW($DS23)))","v":0},{"$f":"IF(Y23=\"\",0,\"X=\"&SUBSTITUTE(SUBSTITUTE(SUBSTITUTE(SUBSTITUTE(SUBSTITUTE(SUBSTITUTE(SUBSTITUTE(SUBSTITUTE(SUBSTITUTE(SUBSTITUTE(SUBSTITUTE(SUBSTITUTE(Y23,$ED23,$ED$2&ROW($ED23)),$EC23,$EC$2&ROW($EC23)),$EB23,$EB$2&ROW($EB23)),$EA23,$EA$2&ROW($EA23)),$DZ23,$DZ$2&ROW($DZ23)),$DY23,$DY$2&ROW($DY23)),$DX23,$DX$2&ROW($DX23)),$DW23,$DW$2&ROW($DW23)),$DV23,$DV$2&ROW($DV23)),$DU23,$DU$2&ROW($DU23)),$DT23,$DT$2&ROW($DT23)),$DS23,$DS$2&ROW($DS23)))","v":0},{"$f":"IF(Z23=\"\",0,\"X=\"&SUBSTITUTE(SUBSTITUTE(SUBSTITUTE(SUBSTITUTE(SUBSTITUTE(SUBSTITUTE(SUBSTITUTE(SUBSTITUTE(SUBSTITUTE(SUBSTITUTE(SUBSTITUTE(SUBSTITUTE(Z23,$ED23,$ED$2&ROW($ED23)),$EC23,$EC$2&ROW($EC23)),$EB23,$EB$2&ROW($EB23)),$EA23,$EA$2&ROW($EA23)),$DZ23,$DZ$2&ROW($DZ23)),$DY23,$DY$2&ROW($DY23)),$DX23,$DX$2&ROW($DX23)),$DW23,$DW$2&ROW($DW23)),$DV23,$DV$2&ROW($DV23)),$DU23,$DU$2&ROW($DU23)),$DT23,$DT$2&ROW($DT23)),$DS23,$DS$2&ROW($DS23)))","v":0},{"$f":"IF(AA23=\"\",0,\"X=\"&SUBSTITUTE(SUBSTITUTE(SUBSTITUTE(SUBSTITUTE(SUBSTITUTE(SUBSTITUTE(SUBSTITUTE(SUBSTITUTE(SUBSTITUTE(SUBSTITUTE(SUBSTITUTE(SUBSTITUTE(AA23,$ED23,$ED$2&ROW($ED23)),$EC23,$EC$2&ROW($EC23)),$EB23,$EB$2&ROW($EB23)),$EA23,$EA$2&ROW($EA23)),$DZ23,$DZ$2&ROW($DZ23)),$DY23,$DY$2&ROW($DY23)),$DX23,$DX$2&ROW($DX23)),$DW23,$DW$2&ROW($DW23)),$DV23,$DV$2&ROW($DV23)),$DU23,$DU$2&ROW($DU23)),$DT23,$DT$2&ROW($DT23)),$DS23,$DS$2&ROW($DS23)))","v":0},{"$f":"IF(AB23=\"\",0,\"X=\"&SUBSTITUTE(SUBSTITUTE(SUBSTITUTE(SUBSTITUTE(SUBSTITUTE(SUBSTITUTE(SUBSTITUTE(SUBSTITUTE(SUBSTITUTE(SUBSTITUTE(SUBSTITUTE(SUBSTITUTE(AB23,$ED23,$ED$2&ROW($ED23)),$EC23,$EC$2&ROW($EC23)),$EB23,$EB$2&ROW($EB23)),$EA23,$EA$2&ROW($EA23)),$DZ23,$DZ$2&ROW($DZ23)),$DY23,$DY$2&ROW($DY23)),$DX23,$DX$2&ROW($DX23)),$DW23,$DW$2&ROW($DW23)),$DV23,$DV$2&ROW($DV23)),$DU23,$DU$2&ROW($DU23)),$DT23,$DT$2&ROW($DT23)),$DS23,$DS$2&ROW($DS23)))","v":"X=if(AS23=0,0,AS23*3153)"},null,null,"{Factor:WinterCF}","{Factor:SummerCF}",{"$f":"IFERROR(INDEX($EG23:$IV23,MATCH(0,COUNTIF($DR23:DT23,$EG23:$IV23),0)),\"\")","v":"{Measure:Quantity}"},{"$f":"IFERROR(INDEX($EG23:$IV23,MATCH(0,COUNTIF($DR23:DU23,$EG23:$IV23),0)),\"\")","v":""},{"$f":"IFERROR(INDEX($EG23:$IV23,MATCH(0,COUNTIF($DR23:DV23,$EG23:$IV23),0)),\"\")","v":""},{"$f":"IFERROR(INDEX($EG23:$IV23,MATCH(0,COUNTIF($DR23:DW23,$EG23:$IV23),0)),\"\")","v":""},{"$f":"IFERROR(INDEX($EG23:$IV23,MATCH(0,COUNTIF($DR23:DX23,$EG23:$IV23),0)),\"\")","v":""},{"$f":"IFERROR(INDEX($EG23:$IV23,MATCH(0,COUNTIF($DR23:DY23,$EG23:$IV23),0)),\"\")","v":""},{"$f":"IFERROR(INDEX($EG23:$IV23,MATCH(0,COUNTIF($DR23:DZ23,$EG23:$IV23),0)),\"\")","v":""},{"$f":"IFERROR(INDEX($EG23:$IV23,MATCH(0,COUNTIF($DR23:EA23,$EG23:$IV23),0)),\"\")","v":""},{"$f":"IFERROR(INDEX($EG23:$IV23,MATCH(0,COUNTIF($DR23:EB23,$EG23:$IV23),0)),\"\")","v":""},{"$f":"IFERROR(INDEX($EG23:$IV23,MATCH(0,COUNTIF($DR23:EC23,$EG23:$IV23),0)),\"\")","v":""},null,null,{"$f":"IFERROR(MID($G23,FIND(CHAR(160),SUBSTITUTE($G23,\"{\",CHAR(160),EG$1)),FIND(CHAR(160),SUBSTITUTE($G23,\"}\",CHAR(160),EG$1))-FIND(CHAR(160),SUBSTITUTE($G23,\"{\",CHAR(160),EG$1))+1),\"\")","v":""},{"$f":"IFERROR(MID($G23,FIND(CHAR(160),SUBSTITUTE($G23,\"{\",CHAR(160),EH$1)),FIND(CHAR(160),SUBSTITUTE($G23,\"}\",CHAR(160),EH$1))-FIND(CHAR(160),SUBSTITUTE($G23,\"{\",CHAR(160),EH$1))+1),\"\")","v":""},{"$f":"IFERROR(MID($G23,FIND(CHAR(160),SUBSTITUTE($G23,\"{\",CHAR(160),EI$1)),FIND(CHAR(160),SUBSTITUTE($G23,\"}\",CHAR(160),EI$1))-FIND(CHAR(160),SUBSTITUTE($G23,\"{\",CHAR(160),EI$1))+1),\"\")","v":""},{"$f":"IFERROR(MID($G23,FIND(CHAR(160),SUBSTITUTE($G23,\"{\",CHAR(160),EJ$1)),FIND(CHAR(160),SUBSTITUTE($G23,\"}\",CHAR(160),EJ$1))-FIND(CHAR(160),SUBSTITUTE($G23,\"{\",CHAR(160),EJ$1))+1),\"\")","v":""},{"$f":"IFERROR(MID($G23,FIND(CHAR(160),SUBSTITUTE($G23,\"{\",CHAR(160),EK$1)),FIND(CHAR(160),SUBSTITUTE($G23,\"}\",CHAR(160),EK$1))-FIND(CHAR(160),SUBSTITUTE($G23,\"{\",CHAR(160),EK$1))+1),\"\")","v":""},{"$f":"IFERROR(MID($G23,FIND(CHAR(160),SUBSTITUTE($G23,\"{\",CHAR(160),EL$1)),FIND(CHAR(160),SUBSTITUTE($G23,\"}\",CHAR(160),EL$1))-FIND(CHAR(160),SUBSTITUTE($G23,\"{\",CHAR(160),EL$1))+1),\"\")","v":""},{"$f":"IFERROR(MID($G23,FIND(CHAR(160),SUBSTITUTE($G23,\"{\",CHAR(160),EM$1)),FIND(CHAR(160),SUBSTITUTE($G23,\"}\",CHAR(160),EM$1))-FIND(CHAR(160),SUBSTITUTE($G23,\"{\",CHAR(160),EM$1))+1),\"\")","v":""},{"$f":"IFERROR(MID($G23,FIND(CHAR(160),SUBSTITUTE($G23,\"{\",CHAR(160),EN$1)),FIND(CHAR(160),SUBSTITUTE($G23,\"}\",CHAR(160),EN$1))-FIND(CHAR(160),SUBSTITUTE($G23,\"{\",CHAR(160),EN$1))+1),\"\")","v":""},{"$f":"IFERROR(MID($G23,FIND(CHAR(160),SUBSTITUTE($G23,\"{\",CHAR(160),EO$1)),FIND(CHAR(160),SUBSTITUTE($G23,\"}\",CHAR(160),EO$1))-FIND(CHAR(160),SUBSTITUTE($G23,\"{\",CHAR(160),EO$1))+1),\"\")","v":""},{"$f":"IFERROR(MID($G23,FIND(CHAR(160),SUBSTITUTE($G23,\"{\",CHAR(160),EP$1)),FIND(CHAR(160),SUBSTITUTE($G23,\"}\",CHAR(160),EP$1))-FIND(CHAR(160),SUBSTITUTE($G23,\"{\",CHAR(160),EP$1))+1),\"\")","v":""},{"$f":"IFERROR(MID($J23,FIND(CHAR(160),SUBSTITUTE($J23,\"{\",CHAR(160),EQ$1)),FIND(CHAR(160),SUBSTITUTE($J23,\"}\",CHAR(160),EQ$1))-FIND(CHAR(160),SUBSTITUTE($J23,\"{\",CHAR(160),EQ$1))+1),\"\")","v":""},{"$f":"IFERROR(MID($J23,FIND(CHAR(160),SUBSTITUTE($J23,\"{\",CHAR(160),ER$1)),FIND(CHAR(160),SUBSTITUTE($J23,\"}\",CHAR(160),ER$1))-FIND(CHAR(160),SUBSTITUTE($J23,\"{\",CHAR(160),ER$1))+1),\"\")","v":""},{"$f":"IFERROR(MID($J23,FIND(CHAR(160),SUBSTITUTE($J23,\"{\",CHAR(160),ES$1)),FIND(CHAR(160),SUBSTITUTE($J23,\"}\",CHAR(160),ES$1))-FIND(CHAR(160),SUBSTITUTE($J23,\"{\",CHAR(160),ES$1))+1),\"\")","v":""},{"$f":"IFERROR(MID($J23,FIND(CHAR(160),SUBSTITUTE($J23,\"{\",CHAR(160),ET$1)),FIND(CHAR(160),SUBSTITUTE($J23,\"}\",CHAR(160),ET$1))-FIND(CHAR(160),SUBSTITUTE($J23,\"{\",CHAR(160),ET$1))+1),\"\")","v":""},{"$f":"IFERROR(MID($J23,FIND(CHAR(160),SUBSTITUTE($J23,\"{\",CHAR(160),EU$1)),FIND(CHAR(160),SUBSTITUTE($J23,\"}\",CHAR(160),EU$1))-FIND(CHAR(160),SUBSTITUTE($J23,\"{\",CHAR(160),EU$1))+1),\"\")","v":""},{"$f":"IFERROR(MID($J23,FIND(CHAR(160),SUBSTITUTE($J23,\"{\",CHAR(160),EV$1)),FIND(CHAR(160),SUBSTITUTE($J23,\"}\",CHAR(160),EV$1))-FIND(CHAR(160),SUBSTITUTE($J23,\"{\",CHAR(160),EV$1))+1),\"\")","v":""},{"$f":"IFERROR(MID($J23,FIND(CHAR(160),SUBSTITUTE($J23,\"{\",CHAR(160),EW$1)),FIND(CHAR(160),SUBSTITUTE($J23,\"}\",CHAR(160),EW$1))-FIND(CHAR(160),SUBSTITUTE($J23,\"{\",CHAR(160),EW$1))+1),\"\")","v":""},{"$f":"IFERROR(MID($J23,FIND(CHAR(160),SUBSTITUTE($J23,\"{\",CHAR(160),EX$1)),FIND(CHAR(160),SUBSTITUTE($J23,\"}\",CHAR(160),EX$1))-FIND(CHAR(160),SUBSTITUTE($J23,\"{\",CHAR(160),EX$1))+1),\"\")","v":""},{"$f":"IFERROR(MID($J23,FIND(CHAR(160),SUBSTITUTE($J23,\"{\",CHAR(160),EY$1)),FIND(CHAR(160),SUBSTITUTE($J23,\"}\",CHAR(160),EY$1))-FIND(CHAR(160),SUBSTITUTE($J23,\"{\",CHAR(160),EY$1))+1),\"\")","v":""},{"$f":"IFERROR(MID($J23,FIND(CHAR(160),SUBSTITUTE($J23,\"{\",CHAR(160),EZ$1)),FIND(CHAR(160),SUBSTITUTE($J23,\"}\",CHAR(160),EZ$1))-FIND(CHAR(160),SUBSTITUTE($J23,\"{\",CHAR(160),EZ$1))+1),\"\")","v":""},{"$f":"IFERROR(MID($J23,FIND(CHAR(160),SUBSTITUTE($J23,\"{\",CHAR(160),FA$1)),FIND(CHAR(160),SUBSTITUTE($J23,\"}\",CHAR(160),FA$1))-FIND(CHAR(160),SUBSTITUTE($J23,\"{\",CHAR(160),FA$1))+1),\"\")","v":""},{"$f":"IFERROR(MID($J23,FIND(CHAR(160),SUBSTITUTE($J23,\"{\",CHAR(160),FB$1)),FIND(CHAR(160),SUBSTITUTE($J23,\"}\",CHAR(160),FB$1))-FIND(CHAR(160),SUBSTITUTE($J23,\"{\",CHAR(160),FB$1))+1),\"\")","v":""},{"$f":"IFERROR(MID($O23,FIND(CHAR(160),SUBSTITUTE($O23,\"{\",CHAR(160),FC$1)),FIND(CHAR(160),SUBSTITUTE($O23,\"}\",CHAR(160),FC$1))-FIND(CHAR(160),SUBSTITUTE($O23,\"{\",CHAR(160),FC$1))+1),\"\")","v":""},{"$f":"IFERROR(MID($O23,FIND(CHAR(160),SUBSTITUTE($O23,\"{\",CHAR(160),FD$1)),FIND(CHAR(160),SUBSTITUTE($O23,\"}\",CHAR(160),FD$1))-FIND(CHAR(160),SUBSTITUTE($O23,\"{\",CHAR(160),FD$1))+1),\"\")","v":""},{"$f":"IFERROR(MID($O23,FIND(CHAR(160),SUBSTITUTE($O23,\"{\",CHAR(160),FE$1)),FIND(CHAR(160),SUBSTITUTE($O23,\"}\",CHAR(160),FE$1))-FIND(CHAR(160),SUBSTITUTE($O23,\"{\",CHAR(160),FE$1))+1),\"\")","v":""},{"$f":"IFERROR(MID($O23,FIND(CHAR(160),SUBSTITUTE($O23,\"{\",CHAR(160),FF$1)),FIND(CHAR(160),SUBSTITUTE($O23,\"}\",CHAR(160),FF$1))-FIND(CHAR(160),SUBSTITUTE($O23,\"{\",CHAR(160),FF$1))+1),\"\")","v":""},{"$f":"IFERROR(MID($O23,FIND(CHAR(160),SUBSTITUTE($O23,\"{\",CHAR(160),FG$1)),FIND(CHAR(160),SUBSTITUTE($O23,\"}\",CHAR(160),FG$1))-FIND(CHAR(160),SUBSTITUTE($O23,\"{\",CHAR(160),FG$1))+1),\"\")","v":""},{"$f":"IFERROR(MID($O23,FIND(CHAR(160),SUBSTITUTE($O23,\"{\",CHAR(160),FH$1)),FIND(CHAR(160),SUBSTITUTE($O23,\"}\",CHAR(160),FH$1))-FIND(CHAR(160),SUBSTITUTE($O23,\"{\",CHAR(160),FH$1))+1),\"\")","v":""},{"$f":"IFERROR(MID($O23,FIND(CHAR(160),SUBSTITUTE($O23,\"{\",CHAR(160),FI$1)),FIND(CHAR(160),SUBSTITUTE($O23,\"}\",CHAR(160),FI$1))-FIND(CHAR(160),SUBSTITUTE($O23,\"{\",CHAR(160),FI$1))+1),\"\")","v":""},{"$f":"IFERROR(MID($O23,FIND(CHAR(160),SUBSTITUTE($O23,\"{\",CHAR(160),FJ$1)),FIND(CHAR(160),SUBSTITUTE($O23,\"}\",CHAR(160),FJ$1))-FIND(CHAR(160),SUBSTITUTE($O23,\"{\",CHAR(160),FJ$1))+1),\"\")","v":""},{"$f":"IFERROR(MID($O23,FIND(CHAR(160),SUBSTITUTE($O23,\"{\",CHAR(160),FK$1)),FIND(CHAR(160),SUBSTITUTE($O23,\"}\",CHAR(160),FK$1))-FIND(CHAR(160),SUBSTITUTE($O23,\"{\",CHAR(160),FK$1))+1),\"\")","v":"{Measure:Quantity}"},{"$f":"IFERROR(MID($O23,FIND(CHAR(160),SUBSTITUTE($O23,\"{\",CHAR(160),FL$1)),FIND(CHAR(160),SUBSTITUTE($O23,\"}\",CHAR(160),FL$1))-FIND(CHAR(160),SUBSTITUTE($O23,\"{\",CHAR(160),FL$1))+1),\"\")","v":"{Measure:Quantity}"},{"$f":"IFERROR(MID($R23,FIND(CHAR(160),SUBSTITUTE($R23,\"{\",CHAR(160),FM$1)),FIND(CHAR(160),SUBSTITUTE($R23,\"}\",CHAR(160),FM$1))-FIND(CHAR(160),SUBSTITUTE($R23,\"{\",CHAR(160),FM$1))+1),\"\")","v":""},{"$f":"IFERROR(MID($R23,FIND(CHAR(160),SUBSTITUTE($R23,\"{\",CHAR(160),FN$1)),FIND(CHAR(160),SUBSTITUTE($R23,\"}\",CHAR(160),FN$1))-FIND(CHAR(160),SUBSTITUTE($R23,\"{\",CHAR(160),FN$1))+1),\"\")","v":""},{"$f":"IFERROR(MID($R23,FIND(CHAR(160),SUBSTITUTE($R23,\"{\",CHAR(160),FO$1)),FIND(CHAR(160),SUBSTITUTE($R23,\"}\",CHAR(160),FO$1))-FIND(CHAR(160),SUBSTITUTE($R23,\"{\",CHAR(160),FO$1))+1),\"\")","v":""},{"$f":"IFERROR(MID($R23,FIND(CHAR(160),SUBSTITUTE($R23,\"{\",CHAR(160),FP$1)),FIND(CHAR(160),SUBSTITUTE($R23,\"}\",CHAR(160),FP$1))-FIND(CHAR(160),SUBSTITUTE($R23,\"{\",CHAR(160),FP$1))+1),\"\")","v":""},{"$f":"IFERROR(MID($R23,FIND(CHAR(160),SUBSTITUTE($R23,\"{\",CHAR(160),FQ$1)),FIND(CHAR(160),SUBSTITUTE($R23,\"}\",CHAR(160),FQ$1))-FIND(CHAR(160),SUBSTITUTE($R23,\"{\",CHAR(160),FQ$1))+1),\"\")","v":""},{"$f":"IFERROR(MID($R23,FIND(CHAR(160),SUBSTITUTE($R23,\"{\",CHAR(160),FR$1)),FIND(CHAR(160),SUBSTITUTE($R23,\"}\",CHAR(160),FR$1))-FIND(CHAR(160),SUBSTITUTE($R23,\"{\",CHAR(160),FR$1))+1),\"\")","v":""},{"$f":"IFERROR(MID($R23,FIND(CHAR(160),SUBSTITUTE($R23,\"{\",CHAR(160),FS$1)),FIND(CHAR(160),SUBSTITUTE($R23,\"}\",CHAR(160),FS$1))-FIND(CHAR(160),SUBSTITUTE($R23,\"{\",CHAR(160),FS$1))+1),\"\")","v":""},{"$f":"IFERROR(MID($R23,FIND(CHAR(160),SUBSTITUTE($R23,\"{\",CHAR(160),FT$1)),FIND(CHAR(160),SUBSTITUTE($R23,\"}\",CHAR(160),FT$1))-FIND(CHAR(160),SUBSTITUTE($R23,\"{\",CHAR(160),FT$1))+1),\"\")","v":""},{"$f":"IFERROR(MID($R23,FIND(CHAR(160),SUBSTITUTE($R23,\"{\",CHAR(160),FU$1)),FIND(CHAR(160),SUBSTITUTE($R23,\"}\",CHAR(160),FU$1))-FIND(CHAR(160),SUBSTITUTE($R23,\"{\",CHAR(160),FU$1))+1),\"\")","v":""},{"$f":"IFERROR(MID($R23,FIND(CHAR(160),SUBSTITUTE($R23,\"{\",CHAR(160),FV$1)),FIND(CHAR(160),SUBSTITUTE($R23,\"}\",CHAR(160),FV$1))-FIND(CHAR(160),SUBSTITUTE($R23,\"{\",CHAR(160),FV$1))+1),\"\")","v":""},{"$f":"IFERROR(MID($U23,FIND(CHAR(160),SUBSTITUTE($U23,\"{\",CHAR(160),FW$1)),FIND(CHAR(160),SUBSTITUTE($U23,\"}\",CHAR(160),FW$1))-FIND(CHAR(160),SUBSTITUTE($U23,\"{\",CHAR(160),FW$1))+1),\"\")","v":""},{"$f":"IFERROR(MID($U23,FIND(CHAR(160),SUBSTITUTE($U23,\"{\",CHAR(160),FX$1)),FIND(CHAR(160),SUBSTITUTE($U23,\"}\",CHAR(160),FX$1))-FIND(CHAR(160),SUBSTITUTE($U23,\"{\",CHAR(160),FX$1))+1),\"\")","v":""},{"$f":"IFERROR(MID($U23,FIND(CHAR(160),SUBSTITUTE($U23,\"{\",CHAR(160),FY$1)),FIND(CHAR(160),SUBSTITUTE($U23,\"}\",CHAR(160),FY$1))-FIND(CHAR(160),SUBSTITUTE($U23,\"{\",CHAR(160),FY$1))+1),\"\")","v":""},{"$f":"IFERROR(MID($U23,FIND(CHAR(160),SUBSTITUTE($U23,\"{\",CHAR(160),FZ$1)),FIND(CHAR(160),SUBSTITUTE($U23,\"}\",CHAR(160),FZ$1))-FIND(CHAR(160),SUBSTITUTE($U23,\"{\",CHAR(160),FZ$1))+1),\"\")","v":""},{"$f":"IFERROR(MID($U23,FIND(CHAR(160),SUBSTITUTE($U23,\"{\",CHAR(160),GA$1)),FIND(CHAR(160),SUBSTITUTE($U23,\"}\",CHAR(160),GA$1))-FIND(CHAR(160),SUBSTITUTE($U23,\"{\",CHAR(160),GA$1))+1),\"\")","v":""},{"$f":"IFERROR(MID($U23,FIND(CHAR(160),SUBSTITUTE($U23,\"{\",CHAR(160),GB$1)),FIND(CHAR(160),SUBSTITUTE($U23,\"}\",CHAR(160),GB$1))-FIND(CHAR(160),SUBSTITUTE($U23,\"{\",CHAR(160),GB$1))+1),\"\")","v":""},{"$f":"IFERROR(MID($U23,FIND(CHAR(160),SUBSTITUTE($U23,\"{\",CHAR(160),GC$1)),FIND(CHAR(160),SUBSTITUTE($U23,\"}\",CHAR(160),GC$1))-FIND(CHAR(160),SUBSTITUTE($U23,\"{\",CHAR(160),GC$1))+1),\"\")","v":""},{"$f":"IFERROR(MID($U23,FIND(CHAR(160),SUBSTITUTE($U23,\"{\",CHAR(160),GD$1)),FIND(CHAR(160),SUBSTITUTE($U23,\"}\",CHAR(160),GD$1))-FIND(CHAR(160),SUBSTITUTE($U23,\"{\",CHAR(160),GD$1))+1),\"\")","v":""},{"$f":"IFERROR(MID($U23,FIND(CHAR(160),SUBSTITUTE($U23,\"{\",CHAR(160),GE$1)),FIND(CHAR(160),SUBSTITUTE($U23,\"}\",CHAR(160),GE$1))-FIND(CHAR(160),SUBSTITUTE($U23,\"{\",CHAR(160),GE$1))+1),\"\")","v":"{Measure:Quantity}"},{"$f":"IFERROR(MID($U23,FIND(CHAR(160),SUBSTITUTE($U23,\"{\",CHAR(160),GF$1)),FIND(CHAR(160),SUBSTITUTE($U23,\"}\",CHAR(160),GF$1))-FIND(CHAR(160),SUBSTITUTE($U23,\"{\",CHAR(160),GF$1))+1),\"\")","v":"{Measure:Quantity}"},{"$f":"IFERROR(MID($V23,FIND(CHAR(160),SUBSTITUTE($V23,\"{\",CHAR(160),GG$1)),FIND(CHAR(160),SUBSTITUTE($V23,\"}\",CHAR(160),GG$1))-FIND(CHAR(160),SUBSTITUTE($V23,\"{\",CHAR(160),GG$1))+1),\"\")","v":""},{"$f":"IFERROR(MID($V23,FIND(CHAR(160),SUBSTITUTE($V23,\"{\",CHAR(160),GH$1)),FIND(CHAR(160),SUBSTITUTE($V23,\"}\",CHAR(160),GH$1))-FIND(CHAR(160),SUBSTITUTE($V23,\"{\",CHAR(160),GH$1))+1),\"\")","v":""},{"$f":"IFERROR(MID($V23,FIND(CHAR(160),SUBSTITUTE($V23,\"{\",CHAR(160),GI$1)),FIND(CHAR(160),SUBSTITUTE($V23,\"}\",CHAR(160),GI$1))-FIND(CHAR(160),SUBSTITUTE($V23,\"{\",CHAR(160),GI$1))+1),\"\")","v":""},{"$f":"IFERROR(MID($V23,FIND(CHAR(160),SUBSTITUTE($V23,\"{\",CHAR(160),GJ$1)),FIND(CHAR(160),SUBSTITUTE($V23,\"}\",CHAR(160),GJ$1))-FIND(CHAR(160),SUBSTITUTE($V23,\"{\",CHAR(160),GJ$1))+1),\"\")","v":""},{"$f":"IFERROR(MID($V23,FIND(CHAR(160),SUBSTITUTE($V23,\"{\",CHAR(160),GK$1)),FIND(CHAR(160),SUBSTITUTE($V23,\"}\",CHAR(160),GK$1))-FIND(CHAR(160),SUBSTITUTE($V23,\"{\",CHAR(160),GK$1))+1),\"\")","v":""},{"$f":"IFERROR(MID($V23,FIND(CHAR(160),SUBSTITUTE($V23,\"{\",CHAR(160),GL$1)),FIND(CHAR(160),SUBSTITUTE($V23,\"}\",CHAR(160),GL$1))-FIND(CHAR(160),SUBSTITUTE($V23,\"{\",CHAR(160),GL$1))+1),\"\")","v":""},{"$f":"IFERROR(MID($V23,FIND(CHAR(160),SUBSTITUTE($V23,\"{\",CHAR(160),GM$1)),FIND(CHAR(160),SUBSTITUTE($V23,\"}\",CHAR(160),GM$1))-FIND(CHAR(160),SUBSTITUTE($V23,\"{\",CHAR(160),GM$1))+1),\"\")","v":""},{"$f":"IFERROR(MID($V23,FIND(CHAR(160),SUBSTITUTE($V23,\"{\",CHAR(160),GN$1)),FIND(CHAR(160),SUBSTITUTE($V23,\"}\",CHAR(160),GN$1))-FIND(CHAR(160),SUBSTITUTE($V23,\"{\",CHAR(160),GN$1))+1),\"\")","v":""},{"$f":"IFERROR(MID($V23,FIND(CHAR(160),SUBSTITUTE($V23,\"{\",CHAR(160),GO$1)),FIND(CHAR(160),SUBSTITUTE($V23,\"}\",CHAR(160),GO$1))-FIND(CHAR(160),SUBSTITUTE($V23,\"{\",CHAR(160),GO$1))+1),\"\")","v":"{Measure:Quantity}"},{"$f":"IFERROR(MID($V23,FIND(CHAR(160),SUBSTITUTE($V23,\"{\",CHAR(160),GP$1)),FIND(CHAR(160),SUBSTITUTE($V23,\"}\",CHAR(160),GP$1))-FIND(CHAR(160),SUBSTITUTE($V23,\"{\",CHAR(160),GP$1))+1),\"\")","v":"{Measure:Quantity}"},{"$f":"IFERROR(MID($W23,FIND(CHAR(160),SUBSTITUTE($W23,\"{\",CHAR(160),GQ$1)),FIND(CHAR(160),SUBSTITUTE($W23,\"}\",CHAR(160),GQ$1))-FIND(CHAR(160),SUBSTITUTE($W23,\"{\",CHAR(160),GQ$1))+1),\"\")","v":""},{"$f":"IFERROR(MID($W23,FIND(CHAR(160),SUBSTITUTE($W23,\"{\",CHAR(160),GR$1)),FIND(CHAR(160),SUBSTITUTE($W23,\"}\",CHAR(160),GR$1))-FIND(CHAR(160),SUBSTITUTE($W23,\"{\",CHAR(160),GR$1))+1),\"\")","v":""},{"$f":"IFERROR(MID($W23,FIND(CHAR(160),SUBSTITUTE($W23,\"{\",CHAR(160),GS$1)),FIND(CHAR(160),SUBSTITUTE($W23,\"}\",CHAR(160),GS$1))-FIND(CHAR(160),SUBSTITUTE($W23,\"{\",CHAR(160),GS$1))+1),\"\")","v":""},{"$f":"IFERROR(MID($W23,FIND(CHAR(160),SUBSTITUTE($W23,\"{\",CHAR(160),GT$1)),FIND(CHAR(160),SUBSTITUTE($W23,\"}\",CHAR(160),GT$1))-FIND(CHAR(160),SUBSTITUTE($W23,\"{\",CHAR(160),GT$1))+1),\"\")","v":""},{"$f":"IFERROR(MID($W23,FIND(CHAR(160),SUBSTITUTE($W23,\"{\",CHAR(160),GU$1)),FIND(CHAR(160),SUBSTITUTE($W23,\"}\",CHAR(160),GU$1))-FIND(CHAR(160),SUBSTITUTE($W23,\"{\",CHAR(160),GU$1))+1),\"\")","v":""},{"$f":"IFERROR(MID($W23,FIND(CHAR(160),SUBSTITUTE($W23,\"{\",CHAR(160),GV$1)),FIND(CHAR(160),SUBSTITUTE($W23,\"}\",CHAR(160),GV$1))-FIND(CHAR(160),SUBSTITUTE($W23,\"{\",CHAR(160),GV$1))+1),\"\")","v":""},{"$f":"IFERROR(MID($W23,FIND(CHAR(160),SUBSTITUTE($W23,\"{\",CHAR(160),GW$1)),FIND(CHAR(160),SUBSTITUTE($W23,\"}\",CHAR(160),GW$1))-FIND(CHAR(160),SUBSTITUTE($W23,\"{\",CHAR(160),GW$1))+1),\"\")","v":""},{"$f":"IFERROR(MID($W23,FIND(CHAR(160),SUBSTITUTE($W23,\"{\",CHAR(160),GX$1)),FIND(CHAR(160),SUBSTITUTE($W23,\"}\",CHAR(160),GX$1))-FIND(CHAR(160),SUBSTITUTE($W23,\"{\",CHAR(160),GX$1))+1),\"\")","v":""},{"$f":"IFERROR(MID($W23,FIND(CHAR(160),SUBSTITUTE($W23,\"{\",CHAR(160),GY$1)),FIND(CHAR(160),SUBSTITUTE($W23,\"}\",CHAR(160),GY$1))-FIND(CHAR(160),SUBSTITUTE($W23,\"{\",CHAR(160),GY$1))+1),\"\")","v":""},{"$f":"IFERROR(MID($W23,FIND(CHAR(160),SUBSTITUTE($W23,\"{\",CHAR(160),GZ$1)),FIND(CHAR(160),SUBSTITUTE($W23,\"}\",CHAR(160),GZ$1))-FIND(CHAR(160),SUBSTITUTE($W23,\"{\",CHAR(160),GZ$1))+1),\"\")","v":""},{"$f":"IFERROR(MID($X23,FIND(CHAR(160),SUBSTITUTE($X23,\"{\",CHAR(160),HA$1)),FIND(CHAR(160),SUBSTITUTE($X23,\"}\",CHAR(160),HA$1))-FIND(CHAR(160),SUBSTITUTE($X23,\"{\",CHAR(160),HA$1))+1),\"\")","v":""},{"$f":"IFERROR(MID($X23,FIND(CHAR(160),SUBSTITUTE($X23,\"{\",CHAR(160),HB$1)),FIND(CHAR(160),SUBSTITUTE($X23,\"}\",CHAR(160),HB$1))-FIND(CHAR(160),SUBSTITUTE($X23,\"{\",CHAR(160),HB$1))+1),\"\")","v":""},{"$f":"IFERROR(MID($X23,FIND(CHAR(160),SUBSTITUTE($X23,\"{\",CHAR(160),HC$1)),FIND(CHAR(160),SUBSTITUTE($X23,\"}\",CHAR(160),HC$1))-FIND(CHAR(160),SUBSTITUTE($X23,\"{\",CHAR(160),HC$1))+1),\"\")","v":""},{"$f":"IFERROR(MID($X23,FIND(CHAR(160),SUBSTITUTE($X23,\"{\",CHAR(160),HD$1)),FIND(CHAR(160),SUBSTITUTE($X23,\"}\",CHAR(160),HD$1))-FIND(CHAR(160),SUBSTITUTE($X23,\"{\",CHAR(160),HD$1))+1),\"\")","v":""},{"$f":"IFERROR(MID($X23,FIND(CHAR(160),SUBSTITUTE($X23,\"{\",CHAR(160),HE$1)),FIND(CHAR(160),SUBSTITUTE($X23,\"}\",CHAR(160),HE$1))-FIND(CHAR(160),SUBSTITUTE($X23,\"{\",CHAR(160),HE$1))+1),\"\")","v":""},{"$f":"IFERROR(MID($X23,FIND(CHAR(160),SUBSTITUTE($X23,\"{\",CHAR(160),HF$1)),FIND(CHAR(160),SUBSTITUTE($X23,\"}\",CHAR(160),HF$1))-FIND(CHAR(160),SUBSTITUTE($X23,\"{\",CHAR(160),HF$1))+1),\"\")","v":""},{"$f":"IFERROR(MID($X23,FIND(CHAR(160),SUBSTITUTE($X23,\"{\",CHAR(160),HG$1)),FIND(CHAR(160),SUBSTITUTE($X23,\"}\",CHAR(160),HG$1))-FIND(CHAR(160),SUBSTITUTE($X23,\"{\",CHAR(160),HG$1))+1),\"\")","v":""},{"$f":"IFERROR(MID($X23,FIND(CHAR(160),SUBSTITUTE($X23,\"{\",CHAR(160),HH$1)),FIND(CHAR(160),SUBSTITUTE($X23,\"}\",CHAR(160),HH$1))-FIND(CHAR(160),SUBSTITUTE($X23,\"{\",CHAR(160),HH$1))+1),\"\")","v":""},{"$f":"IFERROR(MID($X23,FIND(CHAR(160),SUBSTITUTE($X23,\"{\",CHAR(160),HI$1)),FIND(CHAR(160),SUBSTITUTE($X23,\"}\",CHAR(160),HI$1))-FIND(CHAR(160),SUBSTITUTE($X23,\"{\",CHAR(160),HI$1))+1),\"\")","v":""},{"$f":"IFERROR(MID($X23,FIND(CHAR(160),SUBSTITUTE($X23,\"{\",CHAR(160),HJ$1)),FIND(CHAR(160),SUBSTITUTE($X23,\"}\",CHAR(160),HJ$1))-FIND(CHAR(160),SUBSTITUTE($X23,\"{\",CHAR(160),HJ$1))+1),\"\")","v":""},{"$f":"IFERROR(MID($Y23,FIND(CHAR(160),SUBSTITUTE($Y23,\"{\",CHAR(160),HK$1)),FIND(CHAR(160),SUBSTITUTE($Y23,\"}\",CHAR(160),HK$1))-FIND(CHAR(160),SUBSTITUTE($Y23,\"{\",CHAR(160),HK$1))+1),\"\")","v":""},{"$f":"IFERROR(MID($Y23,FIND(CHAR(160),SUBSTITUTE($Y23,\"{\",CHAR(160),HL$1)),FIND(CHAR(160),SUBSTITUTE($Y23,\"}\",CHAR(160),HL$1))-FIND(CHAR(160),SUBSTITUTE($Y23,\"{\",CHAR(160),HL$1))+1),\"\")","v":""},{"$f":"IFERROR(MID($Y23,FIND(CHAR(160),SUBSTITUTE($Y23,\"{\",CHAR(160),HM$1)),FIND(CHAR(160),SUBSTITUTE($Y23,\"}\",CHAR(160),HM$1))-FIND(CHAR(160),SUBSTITUTE($Y23,\"{\",CHAR(160),HM$1))+1),\"\")","v":""},{"$f":"IFERROR(MID($Y23,FIND(CHAR(160),SUBSTITUTE($Y23,\"{\",CHAR(160),HN$1)),FIND(CHAR(160),SUBSTITUTE($Y23,\"}\",CHAR(160),HN$1))-FIND(CHAR(160),SUBSTITUTE($Y23,\"{\",CHAR(160),HN$1))+1),\"\")","v":""},{"$f":"IFERROR(MID($Y23,FIND(CHAR(160),SUBSTITUTE($Y23,\"{\",CHAR(160),HO$1)),FIND(CHAR(160),SUBSTITUTE($Y23,\"}\",CHAR(160),HO$1))-FIND(CHAR(160),SUBSTITUTE($Y23,\"{\",CHAR(160),HO$1))+1),\"\")","v":""},{"$f":"IFERROR(MID($Y23,FIND(CHAR(160),SUBSTITUTE($Y23,\"{\",CHAR(160),HP$1)),FIND(CHAR(160),SUBSTITUTE($Y23,\"}\",CHAR(160),HP$1))-FIND(CHAR(160),SUBSTITUTE($Y23,\"{\",CHAR(160),HP$1))+1),\"\")","v":""},{"$f":"IFERROR(MID($Y23,FIND(CHAR(160),SUBSTITUTE($Y23,\"{\",CHAR(160),HQ$1)),FIND(CHAR(160),SUBSTITUTE($Y23,\"}\",CHAR(160),HQ$1))-FIND(CHAR(160),SUBSTITUTE($Y23,\"{\",CHAR(160),HQ$1))+1),\"\")","v":""},{"$f":"IFERROR(MID($Y23,FIND(CHAR(160),SUBSTITUTE($Y23,\"{\",CHAR(160),HR$1)),FIND(CHAR(160),SUBSTITUTE($Y23,\"}\",CHAR(160),HR$1))-FIND(CHAR(160),SUBSTITUTE($Y23,\"{\",CHAR(160),HR$1))+1),\"\")","v":""},{"$f":"IFERROR(MID($Y23,FIND(CHAR(160),SUBSTITUTE($Y23,\"{\",CHAR(160),HS$1)),FIND(CHAR(160),SUBSTITUTE($Y23,\"}\",CHAR(160),HS$1))-FIND(CHAR(160),SUBSTITUTE($Y23,\"{\",CHAR(160),HS$1))+1),\"\")","v":""},{"$f":"IFERROR(MID($Y23,FIND(CHAR(160),SUBSTITUTE($Y23,\"{\",CHAR(160),HT$1)),FIND(CHAR(160),SUBSTITUTE($Y23,\"}\",CHAR(160),HT$1))-FIND(CHAR(160),SUBSTITUTE($Y23,\"{\",CHAR(160),HT$1))+1),\"\")","v":""},{"$f":"IFERROR(MID($Z23,FIND(CHAR(160),SUBSTITUTE($Z23,\"{\",CHAR(160),HU$1)),FIND(CHAR(160),SUBSTITUTE($Z23,\"}\",CHAR(160),HU$1))-FIND(CHAR(160),SUBSTITUTE($Z23,\"{\",CHAR(160),HU$1))+1),\"\")","v":""},{"$f":"IFERROR(MID($Z23,FIND(CHAR(160),SUBSTITUTE($Z23,\"{\",CHAR(160),HV$1)),FIND(CHAR(160),SUBSTITUTE($Z23,\"}\",CHAR(160),HV$1))-FIND(CHAR(160),SUBSTITUTE($Z23,\"{\",CHAR(160),HV$1))+1),\"\")","v":""},{"$f":"IFERROR(MID($Z23,FIND(CHAR(160),SUBSTITUTE($Z23,\"{\",CHAR(160),HW$1)),FIND(CHAR(160),SUBSTITUTE($Z23,\"}\",CHAR(160),HW$1))-FIND(CHAR(160),SUBSTITUTE($Z23,\"{\",CHAR(160),HW$1))+1),\"\")","v":""},{"$f":"IFERROR(MID($Z23,FIND(CHAR(160),SUBSTITUTE($Z23,\"{\",CHAR(160),HX$1)),FIND(CHAR(160),SUBSTITUTE($Z23,\"}\",CHAR(160),HX$1))-FIND(CHAR(160),SUBSTITUTE($Z23,\"{\",CHAR(160),HX$1))+1),\"\")","v":""},{"$f":"IFERROR(MID($Z23,FIND(CHAR(160),SUBSTITUTE($Z23,\"{\",CHAR(160),HY$1)),FIND(CHAR(160),SUBSTITUTE($Z23,\"}\",CHAR(160),HY$1))-FIND(CHAR(160),SUBSTITUTE($Z23,\"{\",CHAR(160),HY$1))+1),\"\")","v":""},{"$f":"IFERROR(MID($Z23,FIND(CHAR(160),SUBSTITUTE($Z23,\"{\",CHAR(160),HZ$1)),FIND(CHAR(160),SUBSTITUTE($Z23,\"}\",CHAR(160),HZ$1))-FIND(CHAR(160),SUBSTITUTE($Z23,\"{\",CHAR(160),HZ$1))+1),\"\")","v":""},{"$f":"IFERROR(MID($Z23,FIND(CHAR(160),SUBSTITUTE($Z23,\"{\",CHAR(160),IA$1)),FIND(CHAR(160),SUBSTITUTE($Z23,\"}\",CHAR(160),IA$1))-FIND(CHAR(160),SUBSTITUTE($Z23,\"{\",CHAR(160),IA$1))+1),\"\")","v":""},{"$f":"IFERROR(MID($Z23,FIND(CHAR(160),SUBSTITUTE($Z23,\"{\",CHAR(160),IB$1)),FIND(CHAR(160),SUBSTITUTE($Z23,\"}\",CHAR(160),IB$1))-FIND(CHAR(160),SUBSTITUTE($Z23,\"{\",CHAR(160),IB$1))+1),\"\")","v":""},{"$f":"IFERROR(MID($Z23,FIND(CHAR(160),SUBSTITUTE($Z23,\"{\",CHAR(160),IC$1)),FIND(CHAR(160),SUBSTITUTE($Z23,\"}\",CHAR(160),IC$1))-FIND(CHAR(160),SUBSTITUTE($Z23,\"{\",CHAR(160),IC$1))+1),\"\")","v":""},{"$f":"IFERROR(MID($Z23,FIND(CHAR(160),SUBSTITUTE($Z23,\"{\",CHAR(160),ID$1)),FIND(CHAR(160),SUBSTITUTE($Z23,\"}\",CHAR(160),ID$1))-FIND(CHAR(160),SUBSTITUTE($Z23,\"{\",CHAR(160),ID$1))+1),\"\")","v":""},{"$f":"IFERROR(MID($AA23,FIND(CHAR(160),SUBSTITUTE($AA23,\"{\",CHAR(160),IE$1)),FIND(CHAR(160),SUBSTITUTE($AA23,\"}\",CHAR(160),IE$1))-FIND(CHAR(160),SUBSTITUTE($AA23,\"{\",CHAR(160),IE$1))+1),\"\")","v":""},{"$f":"IFERROR(MID($AA23,FIND(CHAR(160),SUBSTITUTE($AA23,\"{\",CHAR(160),IF$1)),FIND(CHAR(160),SUBSTITUTE($AA23,\"}\",CHAR(160),IF$1))-FIND(CHAR(160),SUBSTITUTE($AA23,\"{\",CHAR(160),IF$1))+1),\"\")","v":""},{"$f":"IFERROR(MID($AA23,FIND(CHAR(160),SUBSTITUTE($AA23,\"{\",CHAR(160),IG$1)),FIND(CHAR(160),SUBSTITUTE($AA23,\"}\",CHAR(160),IG$1))-FIND(CHAR(160),SUBSTITUTE($AA23,\"{\",CHAR(160),IG$1))+1),\"\")","v":""},{"$f":"IFERROR(MID($AA23,FIND(CHAR(160),SUBSTITUTE($AA23,\"{\",CHAR(160),IH$1)),FIND(CHAR(160),SUBSTITUTE($AA23,\"}\",CHAR(160),IH$1))-FIND(CHAR(160),SUBSTITUTE($AA23,\"{\",CHAR(160),IH$1))+1),\"\")","v":""},{"$f":"IFERROR(MID($AA23,FIND(CHAR(160),SUBSTITUTE($AA23,\"{\",CHAR(160),II$1)),FIND(CHAR(160),SUBSTITUTE($AA23,\"}\",CHAR(160),II$1))-FIND(CHAR(160),SUBSTITUTE($AA23,\"{\",CHAR(160),II$1))+1),\"\")","v":""},{"$f":"IFERROR(MID($AA23,FIND(CHAR(160),SUBSTITUTE($AA23,\"{\",CHAR(160),IJ$1)),FIND(CHAR(160),SUBSTITUTE($AA23,\"}\",CHAR(160),IJ$1))-FIND(CHAR(160),SUBSTITUTE($AA23,\"{\",CHAR(160),IJ$1))+1),\"\")","v":""},{"$f":"IFERROR(MID($AA23,FIND(CHAR(160),SUBSTITUTE($AA23,\"{\",CHAR(160),IK$1)),FIND(CHAR(160),SUBSTITUTE($AA23,\"}\",CHAR(160),IK$1))-FIND(CHAR(160),SUBSTITUTE($AA23,\"{\",CHAR(160),IK$1))+1),\"\")","v":""},{"$f":"IFERROR(MID($AA23,FIND(CHAR(160),SUBSTITUTE($AA23,\"{\",CHAR(160),IL$1)),FIND(CHAR(160),SUBSTITUTE($AA23,\"}\",CHAR(160),IL$1))-FIND(CHAR(160),SUBSTITUTE($AA23,\"{\",CHAR(160),IL$1))+1),\"\")","v":""},{"$f":"IFERROR(MID($AA23,FIND(CHAR(160),SUBSTITUTE($AA23,\"{\",CHAR(160),IM$1)),FIND(CHAR(160),SUBSTITUTE($AA23,\"}\",CHAR(160),IM$1))-FIND(CHAR(160),SUBSTITUTE($AA23,\"{\",CHAR(160),IM$1))+1),\"\")","v":""},{"$f":"IFERROR(MID($AA23,FIND(CHAR(160),SUBSTITUTE($AA23,\"{\",CHAR(160),IN$1)),FIND(CHAR(160),SUBSTITUTE($AA23,\"}\",CHAR(160),IN$1))-FIND(CHAR(160),SUBSTITUTE($AA23,\"{\",CHAR(160),IN$1))+1),\"\")","v":""},{"$f":"IFERROR(MID($AB23,FIND(CHAR(160),SUBSTITUTE($AB23,\"{\",CHAR(160),IO$1)),FIND(CHAR(160),SUBSTITUTE($AB23,\"}\",CHAR(160),IO$1))-FIND(CHAR(160),SUBSTITUTE($AB23,\"{\",CHAR(160),IO$1))+1),\"\")","v":""},{"$f":"IFERROR(MID($AB23,FIND(CHAR(160),SUBSTITUTE($AB23,\"{\",CHAR(160),IP$1)),FIND(CHAR(160),SUBSTITUTE($AB23,\"}\",CHAR(160),IP$1))-FIND(CHAR(160),SUBSTITUTE($AB23,\"{\",CHAR(160),IP$1))+1),\"\")","v":""},{"$f":"IFERROR(MID($AB23,FIND(CHAR(160),SUBSTITUTE($AB23,\"{\",CHAR(160),IQ$1)),FIND(CHAR(160),SUBSTITUTE($AB23,\"}\",CHAR(160),IQ$1))-FIND(CHAR(160),SUBSTITUTE($AB23,\"{\",CHAR(160),IQ$1))+1),\"\")","v":""},{"$f":"IFERROR(MID($AB23,FIND(CHAR(160),SUBSTITUTE($AB23,\"{\",CHAR(160),IR$1)),FIND(CHAR(160),SUBSTITUTE($AB23,\"}\",CHAR(160),IR$1))-FIND(CHAR(160),SUBSTITUTE($AB23,\"{\",CHAR(160),IR$1))+1),\"\")","v":""},{"$f":"IFERROR(MID($AB23,FIND(CHAR(160),SUBSTITUTE($AB23,\"{\",CHAR(160),IS$1)),FIND(CHAR(160),SUBSTITUTE($AB23,\"}\",CHAR(160),IS$1))-FIND(CHAR(160),SUBSTITUTE($AB23,\"{\",CHAR(160),IS$1))+1),\"\")","v":""},{"$f":"IFERROR(MID($AB23,FIND(CHAR(160),SUBSTITUTE($AB23,\"{\",CHAR(160),IT$1)),FIND(CHAR(160),SUBSTITUTE($AB23,\"}\",CHAR(160),IT$1))-FIND(CHAR(160),SUBSTITUTE($AB23,\"{\",CHAR(160),IT$1))+1),\"\")","v":""},{"$f":"IFERROR(MID($AB23,FIND(CHAR(160),SUBSTITUTE($AB23,\"{\",CHAR(160),IU$1)),FIND(CHAR(160),SUBSTITUTE($AB23,\"}\",CHAR(160),IU$1))-FIND(CHAR(160),SUBSTITUTE($AB23,\"{\",CHAR(160),IU$1))+1),\"\")","v":""},{"$f":"IFERROR(MID($AB23,FIND(CHAR(160),SUBSTITUTE($AB23,\"{\",CHAR(160),IV$1)),FIND(CHAR(160),SUBSTITUTE($AB23,\"}\",CHAR(160),IV$1))-FIND(CHAR(160),SUBSTITUTE($AB23,\"{\",CHAR(160),IV$1))+1),\"\")","v":""},{"$f":"IFERROR(MID($AB23,FIND(CHAR(160),SUBSTITUTE($AB23,\"{\",CHAR(160),IW$1)),FIND(CHAR(160),SUBSTITUTE($AB23,\"}\",CHAR(160),IW$1))-FIND(CHAR(160),SUBSTITUTE($AB23,\"{\",CHAR(160),IW$1))+1),\"\")","v":""},{"$f":"IFERROR(MID($AB23,FIND(CHAR(160),SUBSTITUTE($AB23,\"{\",CHAR(160),IX$1)),FIND(CHAR(160),SUBSTITUTE($AB23,\"}\",CHAR(160),IX$1))-FIND(CHAR(160),SUBSTITUTE($AB23,\"{\",CHAR(160),IX$1))+1),\"\")","v":""},null,{"$f":"10-COUNTIF(DU23:ED23,\"\")","v":1}]
["Arrearage Management Program","Low Flow Wall Mounted Shower Head Direct Install","LILWSH","2021-07-01","2022-06-30","Per Measure",26.5,0,"Per Measure",26.5,0,"2021-07-01","2022-06-30","Calculated","{Measure:Quantity}*if({Measure:Quantity}=0,0,442)",null,null,null,null,null,"{Measure:Quantity}*if({Measure:Quantity}=0,0,0.044)","{Measure:Quantity}*if({Measure:Quantity}=0,0,0.035)",null,null,null,null,null,"if({Measure:Quantity}=0,0,{Measure:Quantity}*3153)","2021-07-01","2022-06-30",10,8.0000000000000002E-3,5.0000000000000001E-3,0.35499999999999998,0.311,0.18099999999999999,0.153,0.88,1,1,0,0,null,{"$f":"DU24","v":"{Measure:Quantity}"},1,{"$f":"DV24","v":""},null,{"$f":"DW24","v":""},null,{"$f":"DX24","v":""},null,{"$f":"DY24","v":""},null,{"$f":"DZ24","v":""},null,{"$f":"EA24","v":""},null,{"$f":"EB24","v":""},null,{"$f":"EC24","v":""},null,{"$f":"ED24","v":""},null,{"$f":"AS24*IF(AS24=0,0,442)","v":442},0,0,0,0,0,{"$f":"AS24*IF(AS24=0,0,0.044)","v":4.3999999999999997E-2},{"$f":"AS24*IF(AS24=0,0,0.035)","v":3.5000000000000003E-2},0,0,0,0,0,{"$f":"IF(AS24=0,0,AS24*3153)","v":3153},null,"Res","Default DR",{"$f":"Benefits(BL24,BR24,BS24,BT24,BU24,BV24,BW24,BX24,BY24,BZ24,AE24,AH24,AI24,AJ24,AK24,AL24,AM24,AN24,AO24,AP24,CA24,CB24)","v":384.29816499516784},144.36705647454559,0,0,0,0,0,187.20144922985645,0,{"$f":"SUMPRODUCT(CC24:CK24,--(CC24:CK24>0))","v":715.8666706995698},{"$f":"-SUMPRODUCT(CC24:CK24,--(CC24:CK24<0))","v":0},null,{"$f":"26.5","v":26.5},null,null,{"$f":"CM24+CO24","v":26.5},{"$f":"IF(NetOrGross=\"Net\",(1-AO24+AP24),1)","v":1},{"$f":"(SUMPRODUCT(CC24:CJ24,--(CC24:CJ24>0))+CN24)*CS24/((-SUMPRODUCT(CC24:CJ24,--(CC24:CJ24<0))+MAX(CO24,CV24)+CP24+CQ24)*CS24+IF(FRIncentives=\"Yes\",CV24*(1-CS24),0))","v":27.013836630172445},1,{"$f":"26.5","v":26.5},null,"Electric","y",null,{"$f":"IF(F24=\"Manual Entry\",\"Manual\",IF(G24=\"\",0,\"X=\"&SUBSTITUTE(SUBSTITUTE(SUBSTITUTE(SUBSTITUTE(SUBSTITUTE(SUBSTITUTE(SUBSTITUTE(SUBSTITUTE(SUBSTITUTE(SUBSTITUTE(SUBSTITUTE(SUBSTITUTE(G24,$ED24,$ED$2&ROW($ED24)),$EC24,$EC$2&ROW($EC24)),$EB24,$EB$2&ROW($EB24)),$EA24,$EA$2&ROW($EA24)),$DZ24,$DZ$2&ROW($DZ24)),$DY24,$DY$2&ROW($DY24)),$DX24,$DX$2&ROW($DX24)),$DW24,$DW$2&ROW($DW24)),$DV24,$DV$2&ROW($DV24)),$DU24,$DU$2&ROW($DU24)),$DT24,$DT$2&ROW($DT24)),$DS24,$DS$2&ROW($DS24))))","v":"X=26.5"},{"$f":"IF(I24=\"Manual Entry\",\"Manual\",IF(J24=\"\",0,\"X=\"&SUBSTITUTE(SUBSTITUTE(SUBSTITUTE(SUBSTITUTE(SUBSTITUTE(SUBSTITUTE(SUBSTITUTE(SUBSTITUTE(SUBSTITUTE(SUBSTITUTE(SUBSTITUTE(SUBSTITUTE(J24,$ED24,$ED$2&ROW($ED24)),$EC24,$EC$2&ROW($EC24)),$EB24,$EB$2&ROW($EB24)),$EA24,$EA$2&ROW($EA24)),$DZ24,$DZ$2&ROW($DZ24)),$DY24,$DY$2&ROW($DY24)),$DX24,$DX$2&ROW($DX24)),$DW24,$DW$2&ROW($DW24)),$DV24,$DV$2&ROW($DV24)),$DU24,$DU$2&ROW($DU24)),$DT24,$DT$2&ROW($DT24)),$DS24,$DS$2&ROW($DS24))))","v":"X=26.5"},{"$f":"IF(O24=\"\",0,\"X=\"&SUBSTITUTE(SUBSTITUTE(SUBSTITUTE(SUBSTITUTE(SUBSTITUTE(SUBSTITUTE(SUBSTITUTE(SUBSTITUTE(SUBSTITUTE(SUBSTITUTE(SUBSTITUTE(SUBSTITUTE(O24,$ED24,$ED$2&ROW($ED24)),$EC24,$EC$2&ROW($EC24)),$EB24,$EB$2&ROW($EB24)),$EA24,$EA$2&ROW($EA24)),$DZ24,$DZ$2&ROW($DZ24)),$DY24,$DY$2&ROW($DY24)),$DX24,$DX$2&ROW($DX24)),$DW24,$DW$2&ROW($DW24)),$DV24,$DV$2&ROW($DV24)),$DU24,$DU$2&ROW($DU24)),$DT24,$DT$2&ROW($DT24)),$DS24,$DS$2&ROW($DS24)))","v":"X=AS24*if(AS24=0,0,442)"},{"$f":"IF(P24=\"\",0,\"X=\"&SUBSTITUTE(SUBSTITUTE(SUBSTITUTE(SUBSTITUTE(SUBSTITUTE(SUBSTITUTE(SUBSTITUTE(SUBSTITUTE(SUBSTITUTE(SUBSTITUTE(SUBSTITUTE(SUBSTITUTE(P24,$ED24,$ED$2&ROW($ED24)),$EC24,$EC$2&ROW($EC24)),$EB24,$EB$2&ROW($EB24)),$EA24,$EA$2&ROW($EA24)),$DZ24,$DZ$2&ROW($DZ24)),$DY24,$DY$2&ROW($DY24)),$DX24,$DX$2&ROW($DX24)),$DW24,$DW$2&ROW($DW24)),$DV24,$DV$2&ROW($DV24)),$DU24,$DU$2&ROW($DU24)),$DT24,$DT$2&ROW($DT24)),$DS24,$DS$2&ROW($DS24)))","v":0},{"$f":"IF(Q24=\"\",0,\"X=\"&SUBSTITUTE(SUBSTITUTE(SUBSTITUTE(SUBSTITUTE(SUBSTITUTE(SUBSTITUTE(SUBSTITUTE(SUBSTITUTE(SUBSTITUTE(SUBSTITUTE(SUBSTITUTE(SUBSTITUTE(Q24,$ED24,$ED$2&ROW($ED24)),$EC24,$EC$2&ROW($EC24)),$EB24,$EB$2&ROW($EB24)),$EA24,$EA$2&ROW($EA24)),$DZ24,$DZ$2&ROW($DZ24)),$DY24,$DY$2&ROW($DY24)),$DX24,$DX$2&ROW($DX24)),$DW24,$DW$2&ROW($DW24)),$DV24,$DV$2&ROW($DV24)),$DU24,$DU$2&ROW($DU24)),$DT24,$DT$2&ROW($DT24)),$DS24,$DS$2&ROW($DS24)))","v":0},{"$f":"IF(R24=\"\",0,\"X=\"&SUBSTITUTE(SUBSTITUTE(SUBSTITUTE(SUBSTITUTE(SUBSTITUTE(SUBSTITUTE(SUBSTITUTE(SUBSTITUTE(SUBSTITUTE(SUBSTITUTE(SUBSTITUTE(SUBSTITUTE(R24,$ED24,$ED$2&ROW($ED24)),$EC24,$EC$2&ROW($EC24)),$EB24,$EB$2&ROW($EB24)),$EA24,$EA$2&ROW($EA24)),$DZ24,$DZ$2&ROW($DZ24)),$DY24,$DY$2&ROW($DY24)),$DX24,$DX$2&ROW($DX24)),$DW24,$DW$2&ROW($DW24)),$DV24,$DV$2&ROW($DV24)),$DU24,$DU$2&ROW($DU24)),$DT24,$DT$2&ROW($DT24)),$DS24,$DS$2&ROW($DS24)))","v":0},{"$f":"IF(S24=\"\",0,\"X=\"&SUBSTITUTE(SUBSTITUTE(SUBSTITUTE(SUBSTITUTE(SUBSTITUTE(SUBSTITUTE(SUBSTITUTE(SUBSTITUTE(SUBSTITUTE(SUBSTITUTE(SUBSTITUTE(SUBSTITUTE(S24,$ED24,$ED$2&ROW($ED24)),$EC24,$EC$2&ROW($EC24)),$EB24,$EB$2&ROW($EB24)),$EA24,$EA$2&ROW($EA24)),$DZ24,$DZ$2&ROW($DZ24)),$DY24,$DY$2&ROW($DY24)),$DX24,$DX$2&ROW($DX24)),$DW24,$DW$2&ROW($DW24)),$DV24,$DV$2&ROW($DV24)),$DU24,$DU$2&ROW($DU24)),$DT24,$DT$2&ROW($DT24)),$DS24,$DS$2&ROW($DS24)))","v":0},{"$f":"IF(T24=\"\",0,\"X=\"&SUBSTITUTE(SUBSTITUTE(SUBSTITUTE(SUBSTITUTE(SUBSTITUTE(SUBSTITUTE(SUBSTITUTE(SUBSTITUTE(SUBSTITUTE(SUBSTITUTE(SUBSTITUTE(SUBSTITUTE(T24,$ED24,$ED$2&ROW($ED24)),$EC24,$EC$2&ROW($EC24)),$EB24,$EB$2&ROW($EB24)),$EA24,$EA$2&ROW($EA24)),$DZ24,$DZ$2&ROW($DZ24)),$DY24,$DY$2&ROW($DY24)),$DX24,$DX$2&ROW($DX24)),$DW24,$DW$2&ROW($DW24)),$DV24,$DV$2&ROW($DV24)),$DU24,$DU$2&ROW($DU24)),$DT24,$DT$2&ROW($DT24)),$DS24,$DS$2&ROW($DS24)))","v":0},{"$f":"IF(U24=\"\",0,\"X=\"&SUBSTITUTE(SUBSTITUTE(SUBSTITUTE(SUBSTITUTE(SUBSTITUTE(SUBSTITUTE(SUBSTITUTE(SUBSTITUTE(SUBSTITUTE(SUBSTITUTE(SUBSTITUTE(SUBSTITUTE(U24,$ED24,$ED$2&ROW($ED24)),$EC24,$EC$2&ROW($EC24)),$EB24,$EB$2&ROW($EB24)),$EA24,$EA$2&ROW($EA24)),$DZ24,$DZ$2&ROW($DZ24)),$DY24,$DY$2&ROW($DY24)),$DX24,$DX$2&ROW($DX24)),$DW24,$DW$2&ROW($DW24)),$DV24,$DV$2&ROW($DV24)),$DU24,$DU$2&ROW($DU24)),$DT24,$DT$2&ROW($DT24)),$DS24,$DS$2&ROW($DS24)))","v":"X=AS24*if(AS24=0,0,0.044)"},{"$f":"IF(V24=\"\",0,\"X=\"&SUBSTITUTE(SUBSTITUTE(SUBSTITUTE(SUBSTITUTE(SUBSTITUTE(SUBSTITUTE(SUBSTITUTE(SUBSTITUTE(SUBSTITUTE(SUBSTITUTE(SUBSTITUTE(SUBSTITUTE(V24,$ED24,$ED$2&ROW($ED24)),$EC24,$EC$2&ROW($EC24)),$EB24,$EB$2&ROW($EB24)),$EA24,$EA$2&ROW($EA24)),$DZ24,$DZ$2&ROW($DZ24)),$DY24,$DY$2&ROW($DY24)),$DX24,$DX$2&ROW($DX24)),$DW24,$DW$2&ROW($DW24)),$DV24,$DV$2&ROW($DV24)),$DU24,$DU$2&ROW($DU24)),$DT24,$DT$2&ROW($DT24)),$DS24,$DS$2&ROW($DS24)))","v":"X=AS24*if(AS24=0,0,0.035)"},{"$f":"IF(W24=\"\",0,\"X=\"&SUBSTITUTE(SUBSTITUTE(SUBSTITUTE(SUBSTITUTE(SUBSTITUTE(SUBSTITUTE(SUBSTITUTE(SUBSTITUTE(SUBSTITUTE(SUBSTITUTE(SUBSTITUTE(SUBSTITUTE(W24,$ED24,$ED$2&ROW($ED24)),$EC24,$EC$2&ROW($EC24)),$EB24,$EB$2&ROW($EB24)),$EA24,$EA$2&ROW($EA24)),$DZ24,$DZ$2&ROW($DZ24)),$DY24,$DY$2&ROW($DY24)),$DX24,$DX$2&ROW($DX24)),$DW24,$DW$2&ROW($DW24)),$DV24,$DV$2&ROW($DV24)),$DU24,$DU$2&ROW($DU24)),$DT24,$DT$2&ROW($DT24)),$DS24,$DS$2&ROW($DS24)))","v":0},{"$f":"IF(X24=\"\",0,\"X=\"&SUBSTITUTE(SUBSTITUTE(SUBSTITUTE(SUBSTITUTE(SUBSTITUTE(SUBSTITUTE(SUBSTITUTE(SUBSTITUTE(SUBSTITUTE(SUBSTITUTE(SUBSTITUTE(SUBSTITUTE(X24,$ED24,$ED$2&ROW($ED24)),$EC24,$EC$2&ROW($EC24)),$EB24,$EB$2&ROW($EB24)),$EA24,$EA$2&ROW($EA24)),$DZ24,$DZ$2&ROW($DZ24)),$DY24,$DY$2&ROW($DY24)),$DX24,$DX$2&ROW($DX24)),$DW24,$DW$2&ROW($DW24)),$DV24,$DV$2&ROW($DV24)),$DU24,$DU$2&ROW($DU24)),$DT24,$DT$2&ROW($DT24)),$DS24,$DS$2&ROW($DS24)))","v":0},{"$f":"IF(Y24=\"\",0,\"X=\"&SUBSTITUTE(SUBSTITUTE(SUBSTITUTE(SUBSTITUTE(SUBSTITUTE(SUBSTITUTE(SUBSTITUTE(SUBSTITUTE(SUBSTITUTE(SUBSTITUTE(SUBSTITUTE(SUBSTITUTE(Y24,$ED24,$ED$2&ROW($ED24)),$EC24,$EC$2&ROW($EC24)),$EB24,$EB$2&ROW($EB24)),$EA24,$EA$2&ROW($EA24)),$DZ24,$DZ$2&ROW($DZ24)),$DY24,$DY$2&ROW($DY24)),$DX24,$DX$2&ROW($DX24)),$DW24,$DW$2&ROW($DW24)),$DV24,$DV$2&ROW($DV24)),$DU24,$DU$2&ROW($DU24)),$DT24,$DT$2&ROW($DT24)),$DS24,$DS$2&ROW($DS24)))","v":0},{"$f":"IF(Z24=\"\",0,\"X=\"&SUBSTITUTE(SUBSTITUTE(SUBSTITUTE(SUBSTITUTE(SUBSTITUTE(SUBSTITUTE(SUBSTITUTE(SUBSTITUTE(SUBSTITUTE(SUBSTITUTE(SUBSTITUTE(SUBSTITUTE(Z24,$ED24,$ED$2&ROW($ED24)),$EC24,$EC$2&ROW($EC24)),$EB24,$EB$2&ROW($EB24)),$EA24,$EA$2&ROW($EA24)),$DZ24,$DZ$2&ROW($DZ24)),$DY24,$DY$2&ROW($DY24)),$DX24,$DX$2&ROW($DX24)),$DW24,$DW$2&ROW($DW24)),$DV24,$DV$2&ROW($DV24)),$DU24,$DU$2&ROW($DU24)),$DT24,$DT$2&ROW($DT24)),$DS24,$DS$2&ROW($DS24)))","v":0},{"$f":"IF(AA24=\"\",0,\"X=\"&SUBSTITUTE(SUBSTITUTE(SUBSTITUTE(SUBSTITUTE(SUBSTITUTE(SUBSTITUTE(SUBSTITUTE(SUBSTITUTE(SUBSTITUTE(SUBSTITUTE(SUBSTITUTE(SUBSTITUTE(AA24,$ED24,$ED$2&ROW($ED24)),$EC24,$EC$2&ROW($EC24)),$EB24,$EB$2&ROW($EB24)),$EA24,$EA$2&ROW($EA24)),$DZ24,$DZ$2&ROW($DZ24)),$DY24,$DY$2&ROW($DY24)),$DX24,$DX$2&ROW($DX24)),$DW24,$DW$2&ROW($DW24)),$DV24,$DV$2&ROW($DV24)),$DU24,$DU$2&ROW($DU24)),$DT24,$DT$2&ROW($DT24)),$DS24,$DS$2&ROW($DS24)))","v":0},{"$f":"IF(AB24=\"\",0,\"X=\"&SUBSTITUTE(SUBSTITUTE(SUBSTITUTE(SUBSTITUTE(SUBSTITUTE(SUBSTITUTE(SUBSTITUTE(SUBSTITUTE(SUBSTITUTE(SUBSTITUTE(SUBSTITUTE(SUBSTITUTE(AB24,$ED24,$ED$2&ROW($ED24)),$EC24,$EC$2&ROW($EC24)),$EB24,$EB$2&ROW($EB24)),$EA24,$EA$2&ROW($EA24)),$DZ24,$DZ$2&ROW($DZ24)),$DY24,$DY$2&ROW($DY24)),$DX24,$DX$2&ROW($DX24)),$DW24,$DW$2&ROW($DW24)),$DV24,$DV$2&ROW($DV24)),$DU24,$DU$2&ROW($DU24)),$DT24,$DT$2&ROW($DT24)),$DS24,$DS$2&ROW($DS24)))","v":"X=if(AS24=0,0,AS24*3153)"},null,null,"{Factor:WinterCF}","{Factor:SummerCF}",{"$f":"IFERROR(INDEX($EG24:$IV24,MATCH(0,COUNTIF($DR24:DT24,$EG24:$IV24),0)),\"\")","v":"{Measure:Quantity}"},{"$f":"IFERROR(INDEX($EG24:$IV24,MATCH(0,COUNTIF($DR24:DU24,$EG24:$IV24),0)),\"\")","v":""},{"$f":"IFERROR(INDEX($EG24:$IV24,MATCH(0,COUNTIF($DR24:DV24,$EG24:$IV24),0)),\"\")","v":""},{"$f":"IFERROR(INDEX($EG24:$IV24,MATCH(0,COUNTIF($DR24:DW24,$EG24:$IV24),0)),\"\")","v":""},{"$f":"IFERROR(INDEX($EG24:$IV24,MATCH(0,COUNTIF($DR24:DX24,$EG24:$IV24),0)),\"\")","v":""},{"$f":"IFERROR(INDEX($EG24:$IV24,MATCH(0,COUNTIF($DR24:DY24,$EG24:$IV24),0)),\"\")","v":""},{"$f":"IFERROR(INDEX($EG24:$IV24,MATCH(0,COUNTIF($DR24:DZ24,$EG24:$IV24),0)),\"\")","v":""},{"$f":"IFERROR(INDEX($EG24:$IV24,MATCH(0,COUNTIF($DR24:EA24,$EG24:$IV24),0)),\"\")","v":""},{"$f":"IFERROR(INDEX($EG24:$IV24,MATCH(0,COUNTIF($DR24:EB24,$EG24:$IV24),0)),\"\")","v":""},{"$f":"IFERROR(INDEX($EG24:$IV24,MATCH(0,COUNTIF($DR24:EC24,$EG24:$IV24),0)),\"\")","v":""},null,null,{"$f":"IFERROR(MID($G24,FIND(CHAR(160),SUBSTITUTE($G24,\"{\",CHAR(160),EG$1)),FIND(CHAR(160),SUBSTITUTE($G24,\"}\",CHAR(160),EG$1))-FIND(CHAR(160),SUBSTITUTE($G24,\"{\",CHAR(160),EG$1))+1),\"\")","v":""},{"$f":"IFERROR(MID($G24,FIND(CHAR(160),SUBSTITUTE($G24,\"{\",CHAR(160),EH$1)),FIND(CHAR(160),SUBSTITUTE($G24,\"}\",CHAR(160),EH$1))-FIND(CHAR(160),SUBSTITUTE($G24,\"{\",CHAR(160),EH$1))+1),\"\")","v":""},{"$f":"IFERROR(MID($G24,FIND(CHAR(160),SUBSTITUTE($G24,\"{\",CHAR(160),EI$1)),FIND(CHAR(160),SUBSTITUTE($G24,\"}\",CHAR(160),EI$1))-FIND(CHAR(160),SUBSTITUTE($G24,\"{\",CHAR(160),EI$1))+1),\"\")","v":""},{"$f":"IFERROR(MID($G24,FIND(CHAR(160),SUBSTITUTE($G24,\"{\",CHAR(160),EJ$1)),FIND(CHAR(160),SUBSTITUTE($G24,\"}\",CHAR(160),EJ$1))-FIND(CHAR(160),SUBSTITUTE($G24,\"{\",CHAR(160),EJ$1))+1),\"\")","v":""},{"$f":"IFERROR(MID($G24,FIND(CHAR(160),SUBSTITUTE($G24,\"{\",CHAR(160),EK$1)),FIND(CHAR(160),SUBSTITUTE($G24,\"}\",CHAR(160),EK$1))-FIND(CHAR(160),SUBSTITUTE($G24,\"{\",CHAR(160),EK$1))+1),\"\")","v":""},{"$f":"IFERROR(MID($G24,FIND(CHAR(160),SUBSTITUTE($G24,\"{\",CHAR(160),EL$1)),FIND(CHAR(160),SUBSTITUTE($G24,\"}\",CHAR(160),EL$1))-FIND(CHAR(160),SUBSTITUTE($G24,\"{\",CHAR(160),EL$1))+1),\"\")","v":""},{"$f":"IFERROR(MID($G24,FIND(CHAR(160),SUBSTITUTE($G24,\"{\",CHAR(160),EM$1)),FIND(CHAR(160),SUBSTITUTE($G24,\"}\",CHAR(160),EM$1))-FIND(CHAR(160),SUBSTITUTE($G24,\"{\",CHAR(160),EM$1))+1),\"\")","v":""},{"$f":"IFERROR(MID($G24,FIND(CHAR(160),SUBSTITUTE($G24,\"{\",CHAR(160),EN$1)),FIND(CHAR(160),SUBSTITUTE($G24,\"}\",CHAR(160),EN$1))-FIND(CHAR(160),SUBSTITUTE($G24,\"{\",CHAR(160),EN$1))+1),\"\")","v":""},{"$f":"IFERROR(MID($G24,FIND(CHAR(160),SUBSTITUTE($G24,\"{\",CHAR(160),EO$1)),FIND(CHAR(160),SUBSTITUTE($G24,\"}\",CHAR(160),EO$1))-FIND(CHAR(160),SUBSTITUTE($G24,\"{\",CHAR(160),EO$1))+1),\"\")","v":""},{"$f":"IFERROR(MID($G24,FIND(CHAR(160),SUBSTITUTE($G24,\"{\",CHAR(160),EP$1)),FIND(CHAR(160),SUBSTITUTE($G24,\"}\",CHAR(160),EP$1))-FIND(CHAR(160),SUBSTITUTE($G24,\"{\",CHAR(160),EP$1))+1),\"\")","v":""},{"$f":"IFERROR(MID($J24,FIND(CHAR(160),SUBSTITUTE($J24,\"{\",CHAR(160),EQ$1)),FIND(CHAR(160),SUBSTITUTE($J24,\"}\",CHAR(160),EQ$1))-FIND(CHAR(160),SUBSTITUTE($J24,\"{\",CHAR(160),EQ$1))+1),\"\")","v":""},{"$f":"IFERROR(MID($J24,FIND(CHAR(160),SUBSTITUTE($J24,\"{\",CHAR(160),ER$1)),FIND(CHAR(160),SUBSTITUTE($J24,\"}\",CHAR(160),ER$1))-FIND(CHAR(160),SUBSTITUTE($J24,\"{\",CHAR(160),ER$1))+1),\"\")","v":""},{"$f":"IFERROR(MID($J24,FIND(CHAR(160),SUBSTITUTE($J24,\"{\",CHAR(160),ES$1)),FIND(CHAR(160),SUBSTITUTE($J24,\"}\",CHAR(160),ES$1))-FIND(CHAR(160),SUBSTITUTE($J24,\"{\",CHAR(160),ES$1))+1),\"\")","v":""},{"$f":"IFERROR(MID($J24,FIND(CHAR(160),SUBSTITUTE($J24,\"{\",CHAR(160),ET$1)),FIND(CHAR(160),SUBSTITUTE($J24,\"}\",CHAR(160),ET$1))-FIND(CHAR(160),SUBSTITUTE($J24,\"{\",CHAR(160),ET$1))+1),\"\")","v":""},{"$f":"IFERROR(MID($J24,FIND(CHAR(160),SUBSTITUTE($J24,\"{\",CHAR(160),EU$1)),FIND(CHAR(160),SUBSTITUTE($J24,\"}\",CHAR(160),EU$1))-FIND(CHAR(160),SUBSTITUTE($J24,\"{\",CHAR(160),EU$1))+1),\"\")","v":""},{"$f":"IFERROR(MID($J24,FIND(CHAR(160),SUBSTITUTE($J24,\"{\",CHAR(160),EV$1)),FIND(CHAR(160),SUBSTITUTE($J24,\"}\",CHAR(160),EV$1))-FIND(CHAR(160),SUBSTITUTE($J24,\"{\",CHAR(160),EV$1))+1),\"\")","v":""},{"$f":"IFERROR(MID($J24,FIND(CHAR(160),SUBSTITUTE($J24,\"{\",CHAR(160),EW$1)),FIND(CHAR(160),SUBSTITUTE($J24,\"}\",CHAR(160),EW$1))-FIND(CHAR(160),SUBSTITUTE($J24,\"{\",CHAR(160),EW$1))+1),\"\")","v":""},{"$f":"IFERROR(MID($J24,FIND(CHAR(160),SUBSTITUTE($J24,\"{\",CHAR(160),EX$1)),FIND(CHAR(160),SUBSTITUTE($J24,\"}\",CHAR(160),EX$1))-FIND(CHAR(160),SUBSTITUTE($J24,\"{\",CHAR(160),EX$1))+1),\"\")","v":""},{"$f":"IFERROR(MID($J24,FIND(CHAR(160),SUBSTITUTE($J24,\"{\",CHAR(160),EY$1)),FIND(CHAR(160),SUBSTITUTE($J24,\"}\",CHAR(160),EY$1))-FIND(CHAR(160),SUBSTITUTE($J24,\"{\",CHAR(160),EY$1))+1),\"\")","v":""},{"$f":"IFERROR(MID($J24,FIND(CHAR(160),SUBSTITUTE($J24,\"{\",CHAR(160),EZ$1)),FIND(CHAR(160),SUBSTITUTE($J24,\"}\",CHAR(160),EZ$1))-FIND(CHAR(160),SUBSTITUTE($J24,\"{\",CHAR(160),EZ$1))+1),\"\")","v":""},{"$f":"IFERROR(MID($J24,FIND(CHAR(160),SUBSTITUTE($J24,\"{\",CHAR(160),FA$1)),FIND(CHAR(160),SUBSTITUTE($J24,\"}\",CHAR(160),FA$1))-FIND(CHAR(160),SUBSTITUTE($J24,\"{\",CHAR(160),FA$1))+1),\"\")","v":""},{"$f":"IFERROR(MID($J24,FIND(CHAR(160),SUBSTITUTE($J24,\"{\",CHAR(160),FB$1)),FIND(CHAR(160),SUBSTITUTE($J24,\"}\",CHAR(160),FB$1))-FIND(CHAR(160),SUBSTITUTE($J24,\"{\",CHAR(160),FB$1))+1),\"\")","v":""},{"$f":"IFERROR(MID($O24,FIND(CHAR(160),SUBSTITUTE($O24,\"{\",CHAR(160),FC$1)),FIND(CHAR(160),SUBSTITUTE($O24,\"}\",CHAR(160),FC$1))-FIND(CHAR(160),SUBSTITUTE($O24,\"{\",CHAR(160),FC$1))+1),\"\")","v":""},{"$f":"IFERROR(MID($O24,FIND(CHAR(160),SUBSTITUTE($O24,\"{\",CHAR(160),FD$1)),FIND(CHAR(160),SUBSTITUTE($O24,\"}\",CHAR(160),FD$1))-FIND(CHAR(160),SUBSTITUTE($O24,\"{\",CHAR(160),FD$1))+1),\"\")","v":""},{"$f":"IFERROR(MID($O24,FIND(CHAR(160),SUBSTITUTE($O24,\"{\",CHAR(160),FE$1)),FIND(CHAR(160),SUBSTITUTE($O24,\"}\",CHAR(160),FE$1))-FIND(CHAR(160),SUBSTITUTE($O24,\"{\",CHAR(160),FE$1))+1),\"\")","v":""},{"$f":"IFERROR(MID($O24,FIND(CHAR(160),SUBSTITUTE($O24,\"{\",CHAR(160),FF$1)),FIND(CHAR(160),SUBSTITUTE($O24,\"}\",CHAR(160),FF$1))-FIND(CHAR(160),SUBSTITUTE($O24,\"{\",CHAR(160),FF$1))+1),\"\")","v":""},{"$f":"IFERROR(MID($O24,FIND(CHAR(160),SUBSTITUTE($O24,\"{\",CHAR(160),FG$1)),FIND(CHAR(160),SUBSTITUTE($O24,\"}\",CHAR(160),FG$1))-FIND(CHAR(160),SUBSTITUTE($O24,\"{\",CHAR(160),FG$1))+1),\"\")","v":""},{"$f":"IFERROR(MID($O24,FIND(CHAR(160),SUBSTITUTE($O24,\"{\",CHAR(160),FH$1)),FIND(CHAR(160),SUBSTITUTE($O24,\"}\",CHAR(160),FH$1))-FIND(CHAR(160),SUBSTITUTE($O24,\"{\",CHAR(160),FH$1))+1),\"\")","v":""},{"$f":"IFERROR(MID($O24,FIND(CHAR(160),SUBSTITUTE($O24,\"{\",CHAR(160),FI$1)),FIND(CHAR(160),SUBSTITUTE($O24,\"}\",CHAR(160),FI$1))-FIND(CHAR(160),SUBSTITUTE($O24,\"{\",CHAR(160),FI$1))+1),\"\")","v":""},{"$f":"IFERROR(MID($O24,FIND(CHAR(160),SUBSTITUTE($O24,\"{\",CHAR(160),FJ$1)),FIND(CHAR(160),SUBSTITUTE($O24,\"}\",CHAR(160),FJ$1))-FIND(CHAR(160),SUBSTITUTE($O24,\"{\",CHAR(160),FJ$1))+1),\"\")","v":""},{"$f":"IFERROR(MID($O24,FIND(CHAR(160),SUBSTITUTE($O24,\"{\",CHAR(160),FK$1)),FIND(CHAR(160),SUBSTITUTE($O24,\"}\",CHAR(160),FK$1))-FIND(CHAR(160),SUBSTITUTE($O24,\"{\",CHAR(160),FK$1))+1),\"\")","v":"{Measure:Quantity}"},{"$f":"IFERROR(MID($O24,FIND(CHAR(160),SUBSTITUTE($O24,\"{\",CHAR(160),FL$1)),FIND(CHAR(160),SUBSTITUTE($O24,\"}\",CHAR(160),FL$1))-FIND(CHAR(160),SUBSTITUTE($O24,\"{\",CHAR(160),FL$1))+1),\"\")","v":"{Measure:Quantity}"},{"$f":"IFERROR(MID($R24,FIND(CHAR(160),SUBSTITUTE($R24,\"{\",CHAR(160),FM$1)),FIND(CHAR(160),SUBSTITUTE($R24,\"}\",CHAR(160),FM$1))-FIND(CHAR(160),SUBSTITUTE($R24,\"{\",CHAR(160),FM$1))+1),\"\")","v":""},{"$f":"IFERROR(MID($R24,FIND(CHAR(160),SUBSTITUTE($R24,\"{\",CHAR(160),FN$1)),FIND(CHAR(160),SUBSTITUTE($R24,\"}\",CHAR(160),FN$1))-FIND(CHAR(160),SUBSTITUTE($R24,\"{\",CHAR(160),FN$1))+1),\"\")","v":""},{"$f":"IFERROR(MID($R24,FIND(CHAR(160),SUBSTITUTE($R24,\"{\",CHAR(160),FO$1)),FIND(CHAR(160),SUBSTITUTE($R24,\"}\",CHAR(160),FO$1))-FIND(CHAR(160),SUBSTITUTE($R24,\"{\",CHAR(160),FO$1))+1),\"\")","v":""},{"$f":"IFERROR(MID($R24,FIND(CHAR(160),SUBSTITUTE($R24,\"{\",CHAR(160),FP$1)),FIND(CHAR(160),SUBSTITUTE($R24,\"}\",CHAR(160),FP$1))-FIND(CHAR(160),SUBSTITUTE($R24,\"{\",CHAR(160),FP$1))+1),\"\")","v":""},{"$f":"IFERROR(MID($R24,FIND(CHAR(160),SUBSTITUTE($R24,\"{\",CHAR(160),FQ$1)),FIND(CHAR(160),SUBSTITUTE($R24,\"}\",CHAR(160),FQ$1))-FIND(CHAR(160),SUBSTITUTE($R24,\"{\",CHAR(160),FQ$1))+1),\"\")","v":""},{"$f":"IFERROR(MID($R24,FIND(CHAR(160),SUBSTITUTE($R24,\"{\",CHAR(160),FR$1)),FIND(CHAR(160),SUBSTITUTE($R24,\"}\",CHAR(160),FR$1))-FIND(CHAR(160),SUBSTITUTE($R24,\"{\",CHAR(160),FR$1))+1),\"\")","v":""},{"$f":"IFERROR(MID($R24,FIND(CHAR(160),SUBSTITUTE($R24,\"{\",CHAR(160),FS$1)),FIND(CHAR(160),SUBSTITUTE($R24,\"}\",CHAR(160),FS$1))-FIND(CHAR(160),SUBSTITUTE($R24,\"{\",CHAR(160),FS$1))+1),\"\")","v":""},{"$f":"IFERROR(MID($R24,FIND(CHAR(160),SUBSTITUTE($R24,\"{\",CHAR(160),FT$1)),FIND(CHAR(160),SUBSTITUTE($R24,\"}\",CHAR(160),FT$1))-FIND(CHAR(160),SUBSTITUTE($R24,\"{\",CHAR(160),FT$1))+1),\"\")","v":""},{"$f":"IFERROR(MID($R24,FIND(CHAR(160),SUBSTITUTE($R24,\"{\",CHAR(160),FU$1)),FIND(CHAR(160),SUBSTITUTE($R24,\"}\",CHAR(160),FU$1))-FIND(CHAR(160),SUBSTITUTE($R24,\"{\",CHAR(160),FU$1))+1),\"\")","v":""},{"$f":"IFERROR(MID($R24,FIND(CHAR(160),SUBSTITUTE($R24,\"{\",CHAR(160),FV$1)),FIND(CHAR(160),SUBSTITUTE($R24,\"}\",CHAR(160),FV$1))-FIND(CHAR(160),SUBSTITUTE($R24,\"{\",CHAR(160),FV$1))+1),\"\")","v":""},{"$f":"IFERROR(MID($U24,FIND(CHAR(160),SUBSTITUTE($U24,\"{\",CHAR(160),FW$1)),FIND(CHAR(160),SUBSTITUTE($U24,\"}\",CHAR(160),FW$1))-FIND(CHAR(160),SUBSTITUTE($U24,\"{\",CHAR(160),FW$1))+1),\"\")","v":""},{"$f":"IFERROR(MID($U24,FIND(CHAR(160),SUBSTITUTE($U24,\"{\",CHAR(160),FX$1)),FIND(CHAR(160),SUBSTITUTE($U24,\"}\",CHAR(160),FX$1))-FIND(CHAR(160),SUBSTITUTE($U24,\"{\",CHAR(160),FX$1))+1),\"\")","v":""},{"$f":"IFERROR(MID($U24,FIND(CHAR(160),SUBSTITUTE($U24,\"{\",CHAR(160),FY$1)),FIND(CHAR(160),SUBSTITUTE($U24,\"}\",CHAR(160),FY$1))-FIND(CHAR(160),SUBSTITUTE($U24,\"{\",CHAR(160),FY$1))+1),\"\")","v":""},{"$f":"IFERROR(MID($U24,FIND(CHAR(160),SUBSTITUTE($U24,\"{\",CHAR(160),FZ$1)),FIND(CHAR(160),SUBSTITUTE($U24,\"}\",CHAR(160),FZ$1))-FIND(CHAR(160),SUBSTITUTE($U24,\"{\",CHAR(160),FZ$1))+1),\"\")","v":""},{"$f":"IFERROR(MID($U24,FIND(CHAR(160),SUBSTITUTE($U24,\"{\",CHAR(160),GA$1)),FIND(CHAR(160),SUBSTITUTE($U24,\"}\",CHAR(160),GA$1))-FIND(CHAR(160),SUBSTITUTE($U24,\"{\",CHAR(160),GA$1))+1),\"\")","v":""},{"$f":"IFERROR(MID($U24,FIND(CHAR(160),SUBSTITUTE($U24,\"{\",CHAR(160),GB$1)),FIND(CHAR(160),SUBSTITUTE($U24,\"}\",CHAR(160),GB$1))-FIND(CHAR(160),SUBSTITUTE($U24,\"{\",CHAR(160),GB$1))+1),\"\")","v":""},{"$f":"IFERROR(MID($U24,FIND(CHAR(160),SUBSTITUTE($U24,\"{\",CHAR(160),GC$1)),FIND(CHAR(160),SUBSTITUTE($U24,\"}\",CHAR(160),GC$1))-FIND(CHAR(160),SUBSTITUTE($U24,\"{\",CHAR(160),GC$1))+1),\"\")","v":""},{"$f":"IFERROR(MID($U24,FIND(CHAR(160),SUBSTITUTE($U24,\"{\",CHAR(160),GD$1)),FIND(CHAR(160),SUBSTITUTE($U24,\"}\",CHAR(160),GD$1))-FIND(CHAR(160),SUBSTITUTE($U24,\"{\",CHAR(160),GD$1))+1),\"\")","v":""},{"$f":"IFERROR(MID($U24,FIND(CHAR(160),SUBSTITUTE($U24,\"{\",CHAR(160),GE$1)),FIND(CHAR(160),SUBSTITUTE($U24,\"}\",CHAR(160),GE$1))-FIND(CHAR(160),SUBSTITUTE($U24,\"{\",CHAR(160),GE$1))+1),\"\")","v":"{Measure:Quantity}"},{"$f":"IFERROR(MID($U24,FIND(CHAR(160),SUBSTITUTE($U24,\"{\",CHAR(160),GF$1)),FIND(CHAR(160),SUBSTITUTE($U24,\"}\",CHAR(160),GF$1))-FIND(CHAR(160),SUBSTITUTE($U24,\"{\",CHAR(160),GF$1))+1),\"\")","v":"{Measure:Quantity}"},{"$f":"IFERROR(MID($V24,FIND(CHAR(160),SUBSTITUTE($V24,\"{\",CHAR(160),GG$1)),FIND(CHAR(160),SUBSTITUTE($V24,\"}\",CHAR(160),GG$1))-FIND(CHAR(160),SUBSTITUTE($V24,\"{\",CHAR(160),GG$1))+1),\"\")","v":""},{"$f":"IFERROR(MID($V24,FIND(CHAR(160),SUBSTITUTE($V24,\"{\",CHAR(160),GH$1)),FIND(CHAR(160),SUBSTITUTE($V24,\"}\",CHAR(160),GH$1))-FIND(CHAR(160),SUBSTITUTE($V24,\"{\",CHAR(160),GH$1))+1),\"\")","v":""},{"$f":"IFERROR(MID($V24,FIND(CHAR(160),SUBSTITUTE($V24,\"{\",CHAR(160),GI$1)),FIND(CHAR(160),SUBSTITUTE($V24,\"}\",CHAR(160),GI$1))-FIND(CHAR(160),SUBSTITUTE($V24,\"{\",CHAR(160),GI$1))+1),\"\")","v":""},{"$f":"IFERROR(MID($V24,FIND(CHAR(160),SUBSTITUTE($V24,\"{\",CHAR(160),GJ$1)),FIND(CHAR(160),SUBSTITUTE($V24,\"}\",CHAR(160),GJ$1))-FIND(CHAR(160),SUBSTITUTE($V24,\"{\",CHAR(160),GJ$1))+1),\"\")","v":""},{"$f":"IFERROR(MID($V24,FIND(CHAR(160),SUBSTITUTE($V24,\"{\",CHAR(160),GK$1)),FIND(CHAR(160),SUBSTITUTE($V24,\"}\",CHAR(160),GK$1))-FIND(CHAR(160),SUBSTITUTE($V24,\"{\",CHAR(160),GK$1))+1),\"\")","v":""},{"$f":"IFERROR(MID($V24,FIND(CHAR(160),SUBSTITUTE($V24,\"{\",CHAR(160),GL$1)),FIND(CHAR(160),SUBSTITUTE($V24,\"}\",CHAR(160),GL$1))-FIND(CHAR(160),SUBSTITUTE($V24,\"{\",CHAR(160),GL$1))+1),\"\")","v":""},{"$f":"IFERROR(MID($V24,FIND(CHAR(160),SUBSTITUTE($V24,\"{\",CHAR(160),GM$1)),FIND(CHAR(160),SUBSTITUTE($V24,\"}\",CHAR(160),GM$1))-FIND(CHAR(160),SUBSTITUTE($V24,\"{\",CHAR(160),GM$1))+1),\"\")","v":""},{"$f":"IFERROR(MID($V24,FIND(CHAR(160),SUBSTITUTE($V24,\"{\",CHAR(160),GN$1)),FIND(CHAR(160),SUBSTITUTE($V24,\"}\",CHAR(160),GN$1))-FIND(CHAR(160),SUBSTITUTE($V24,\"{\",CHAR(160),GN$1))+1),\"\")","v":""},{"$f":"IFERROR(MID($V24,FIND(CHAR(160),SUBSTITUTE($V24,\"{\",CHAR(160),GO$1)),FIND(CHAR(160),SUBSTITUTE($V24,\"}\",CHAR(160),GO$1))-FIND(CHAR(160),SUBSTITUTE($V24,\"{\",CHAR(160),GO$1))+1),\"\")","v":"{Measure:Quantity}"},{"$f":"IFERROR(MID($V24,FIND(CHAR(160),SUBSTITUTE($V24,\"{\",CHAR(160),GP$1)),FIND(CHAR(160),SUBSTITUTE($V24,\"}\",CHAR(160),GP$1))-FIND(CHAR(160),SUBSTITUTE($V24,\"{\",CHAR(160),GP$1))+1),\"\")","v":"{Measure:Quantity}"},{"$f":"IFERROR(MID($W24,FIND(CHAR(160),SUBSTITUTE($W24,\"{\",CHAR(160),GQ$1)),FIND(CHAR(160),SUBSTITUTE($W24,\"}\",CHAR(160),GQ$1))-FIND(CHAR(160),SUBSTITUTE($W24,\"{\",CHAR(160),GQ$1))+1),\"\")","v":""},{"$f":"IFERROR(MID($W24,FIND(CHAR(160),SUBSTITUTE($W24,\"{\",CHAR(160),GR$1)),FIND(CHAR(160),SUBSTITUTE($W24,\"}\",CHAR(160),GR$1))-FIND(CHAR(160),SUBSTITUTE($W24,\"{\",CHAR(160),GR$1))+1),\"\")","v":""},{"$f":"IFERROR(MID($W24,FIND(CHAR(160),SUBSTITUTE($W24,\"{\",CHAR(160),GS$1)),FIND(CHAR(160),SUBSTITUTE($W24,\"}\",CHAR(160),GS$1))-FIND(CHAR(160),SUBSTITUTE($W24,\"{\",CHAR(160),GS$1))+1),\"\")","v":""},{"$f":"IFERROR(MID($W24,FIND(CHAR(160),SUBSTITUTE($W24,\"{\",CHAR(160),GT$1)),FIND(CHAR(160),SUBSTITUTE($W24,\"}\",CHAR(160),GT$1))-FIND(CHAR(160),SUBSTITUTE($W24,\"{\",CHAR(160),GT$1))+1),\"\")","v":""},{"$f":"IFERROR(MID($W24,FIND(CHAR(160),SUBSTITUTE($W24,\"{\",CHAR(160),GU$1)),FIND(CHAR(160),SUBSTITUTE($W24,\"}\",CHAR(160),GU$1))-FIND(CHAR(160),SUBSTITUTE($W24,\"{\",CHAR(160),GU$1))+1),\"\")","v":""},{"$f":"IFERROR(MID($W24,FIND(CHAR(160),SUBSTITUTE($W24,\"{\",CHAR(160),GV$1)),FIND(CHAR(160),SUBSTITUTE($W24,\"}\",CHAR(160),GV$1))-FIND(CHAR(160),SUBSTITUTE($W24,\"{\",CHAR(160),GV$1))+1),\"\")","v":""},{"$f":"IFERROR(MID($W24,FIND(CHAR(160),SUBSTITUTE($W24,\"{\",CHAR(160),GW$1)),FIND(CHAR(160),SUBSTITUTE($W24,\"}\",CHAR(160),GW$1))-FIND(CHAR(160),SUBSTITUTE($W24,\"{\",CHAR(160),GW$1))+1),\"\")","v":""},{"$f":"IFERROR(MID($W24,FIND(CHAR(160),SUBSTITUTE($W24,\"{\",CHAR(160),GX$1)),FIND(CHAR(160),SUBSTITUTE($W24,\"}\",CHAR(160),GX$1))-FIND(CHAR(160),SUBSTITUTE($W24,\"{\",CHAR(160),GX$1))+1),\"\")","v":""},{"$f":"IFERROR(MID($W24,FIND(CHAR(160),SUBSTITUTE($W24,\"{\",CHAR(160),GY$1)),FIND(CHAR(160),SUBSTITUTE($W24,\"}\",CHAR(160),GY$1))-FIND(CHAR(160),SUBSTITUTE($W24,\"{\",CHAR(160),GY$1))+1),\"\")","v":""},{"$f":"IFERROR(MID($W24,FIND(CHAR(160),SUBSTITUTE($W24,\"{\",CHAR(160),GZ$1)),FIND(CHAR(160),SUBSTITUTE($W24,\"}\",CHAR(160),GZ$1))-FIND(CHAR(160),SUBSTITUTE($W24,\"{\",CHAR(160),GZ$1))+1),\"\")","v":""},{"$f":"IFERROR(MID($X24,FIND(CHAR(160),SUBSTITUTE($X24,\"{\",CHAR(160),HA$1)),FIND(CHAR(160),SUBSTITUTE($X24,\"}\",CHAR(160),HA$1))-FIND(CHAR(160),SUBSTITUTE($X24,\"{\",CHAR(160),HA$1))+1),\"\")","v":""},{"$f":"IFERROR(MID($X24,FIND(CHAR(160),SUBSTITUTE($X24,\"{\",CHAR(160),HB$1)),FIND(CHAR(160),SUBSTITUTE($X24,\"}\",CHAR(160),HB$1))-FIND(CHAR(160),SUBSTITUTE($X24,\"{\",CHAR(160),HB$1))+1),\"\")","v":""},{"$f":"IFERROR(MID($X24,FIND(CHAR(160),SUBSTITUTE($X24,\"{\",CHAR(160),HC$1)),FIND(CHAR(160),SUBSTITUTE($X24,\"}\",CHAR(160),HC$1))-FIND(CHAR(160),SUBSTITUTE($X24,\"{\",CHAR(160),HC$1))+1),\"\")","v":""},{"$f":"IFERROR(MID($X24,FIND(CHAR(160),SUBSTITUTE($X24,\"{\",CHAR(160),HD$1)),FIND(CHAR(160),SUBSTITUTE($X24,\"}\",CHAR(160),HD$1))-FIND(CHAR(160),SUBSTITUTE($X24,\"{\",CHAR(160),HD$1))+1),\"\")","v":""},{"$f":"IFERROR(MID($X24,FIND(CHAR(160),SUBSTITUTE($X24,\"{\",CHAR(160),HE$1)),FIND(CHAR(160),SUBSTITUTE($X24,\"}\",CHAR(160),HE$1))-FIND(CHAR(160),SUBSTITUTE($X24,\"{\",CHAR(160),HE$1))+1),\"\")","v":""},{"$f":"IFERROR(MID($X24,FIND(CHAR(160),SUBSTITUTE($X24,\"{\",CHAR(160),HF$1)),FIND(CHAR(160),SUBSTITUTE($X24,\"}\",CHAR(160),HF$1))-FIND(CHAR(160),SUBSTITUTE($X24,\"{\",CHAR(160),HF$1))+1),\"\")","v":""},{"$f":"IFERROR(MID($X24,FIND(CHAR(160),SUBSTITUTE($X24,\"{\",CHAR(160),HG$1)),FIND(CHAR(160),SUBSTITUTE($X24,\"}\",CHAR(160),HG$1))-FIND(CHAR(160),SUBSTITUTE($X24,\"{\",CHAR(160),HG$1))+1),\"\")","v":""},{"$f":"IFERROR(MID($X24,FIND(CHAR(160),SUBSTITUTE($X24,\"{\",CHAR(160),HH$1)),FIND(CHAR(160),SUBSTITUTE($X24,\"}\",CHAR(160),HH$1))-FIND(CHAR(160),SUBSTITUTE($X24,\"{\",CHAR(160),HH$1))+1),\"\")","v":""},{"$f":"IFERROR(MID($X24,FIND(CHAR(160),SUBSTITUTE($X24,\"{\",CHAR(160),HI$1)),FIND(CHAR(160),SUBSTITUTE($X24,\"}\",CHAR(160),HI$1))-FIND(CHAR(160),SUBSTITUTE($X24,\"{\",CHAR(160),HI$1))+1),\"\")","v":""},{"$f":"IFERROR(MID($X24,FIND(CHAR(160),SUBSTITUTE($X24,\"{\",CHAR(160),HJ$1)),FIND(CHAR(160),SUBSTITUTE($X24,\"}\",CHAR(160),HJ$1))-FIND(CHAR(160),SUBSTITUTE($X24,\"{\",CHAR(160),HJ$1))+1),\"\")","v":""},{"$f":"IFERROR(MID($Y24,FIND(CHAR(160),SUBSTITUTE($Y24,\"{\",CHAR(160),HK$1)),FIND(CHAR(160),SUBSTITUTE($Y24,\"}\",CHAR(160),HK$1))-FIND(CHAR(160),SUBSTITUTE($Y24,\"{\",CHAR(160),HK$1))+1),\"\")","v":""},{"$f":"IFERROR(MID($Y24,FIND(CHAR(160),SUBSTITUTE($Y24,\"{\",CHAR(160),HL$1)),FIND(CHAR(160),SUBSTITUTE($Y24,\"}\",CHAR(160),HL$1))-FIND(CHAR(160),SUBSTITUTE($Y24,\"{\",CHAR(160),HL$1))+1),\"\")","v":""},{"$f":"IFERROR(MID($Y24,FIND(CHAR(160),SUBSTITUTE($Y24,\"{\",CHAR(160),HM$1)),FIND(CHAR(160),SUBSTITUTE($Y24,\"}\",CHAR(160),HM$1))-FIND(CHAR(160),SUBSTITUTE($Y24,\"{\",CHAR(160),HM$1))+1),\"\")","v":""},{"$f":"IFERROR(MID($Y24,FIND(CHAR(160),SUBSTITUTE($Y24,\"{\",CHAR(160),HN$1)),FIND(CHAR(160),SUBSTITUTE($Y24,\"}\",CHAR(160),HN$1))-FIND(CHAR(160),SUBSTITUTE($Y24,\"{\",CHAR(160),HN$1))+1),\"\")","v":""},{"$f":"IFERROR(MID($Y24,FIND(CHAR(160),SUBSTITUTE($Y24,\"{\",CHAR(160),HO$1)),FIND(CHAR(160),SUBSTITUTE($Y24,\"}\",CHAR(160),HO$1))-FIND(CHAR(160),SUBSTITUTE($Y24,\"{\",CHAR(160),HO$1))+1),\"\")","v":""},{"$f":"IFERROR(MID($Y24,FIND(CHAR(160),SUBSTITUTE($Y24,\"{\",CHAR(160),HP$1)),FIND(CHAR(160),SUBSTITUTE($Y24,\"}\",CHAR(160),HP$1))-FIND(CHAR(160),SUBSTITUTE($Y24,\"{\",CHAR(160),HP$1))+1),\"\")","v":""},{"$f":"IFERROR(MID($Y24,FIND(CHAR(160),SUBSTITUTE($Y24,\"{\",CHAR(160),HQ$1)),FIND(CHAR(160),SUBSTITUTE($Y24,\"}\",CHAR(160),HQ$1))-FIND(CHAR(160),SUBSTITUTE($Y24,\"{\",CHAR(160),HQ$1))+1),\"\")","v":""},{"$f":"IFERROR(MID($Y24,FIND(CHAR(160),SUBSTITUTE($Y24,\"{\",CHAR(160),HR$1)),FIND(CHAR(160),SUBSTITUTE($Y24,\"}\",CHAR(160),HR$1))-FIND(CHAR(160),SUBSTITUTE($Y24,\"{\",CHAR(160),HR$1))+1),\"\")","v":""},{"$f":"IFERROR(MID($Y24,FIND(CHAR(160),SUBSTITUTE($Y24,\"{\",CHAR(160),HS$1)),FIND(CHAR(160),SUBSTITUTE($Y24,\"}\",CHAR(160),HS$1))-FIND(CHAR(160),SUBSTITUTE($Y24,\"{\",CHAR(160),HS$1))+1),\"\")","v":""},{"$f":"IFERROR(MID($Y24,FIND(CHAR(160),SUBSTITUTE($Y24,\"{\",CHAR(160),HT$1)),FIND(CHAR(160),SUBSTITUTE($Y24,\"}\",CHAR(160),HT$1))-FIND(CHAR(160),SUBSTITUTE($Y24,\"{\",CHAR(160),HT$1))+1),\"\")","v":""},{"$f":"IFERROR(MID($Z24,FIND(CHAR(160),SUBSTITUTE($Z24,\"{\",CHAR(160),HU$1)),FIND(CHAR(160),SUBSTITUTE($Z24,\"}\",CHAR(160),HU$1))-FIND(CHAR(160),SUBSTITUTE($Z24,\"{\",CHAR(160),HU$1))+1),\"\")","v":""},{"$f":"IFERROR(MID($Z24,FIND(CHAR(160),SUBSTITUTE($Z24,\"{\",CHAR(160),HV$1)),FIND(CHAR(160),SUBSTITUTE($Z24,\"}\",CHAR(160),HV$1))-FIND(CHAR(160),SUBSTITUTE($Z24,\"{\",CHAR(160),HV$1))+1),\"\")","v":""},{"$f":"IFERROR(MID($Z24,FIND(CHAR(160),SUBSTITUTE($Z24,\"{\",CHAR(160),HW$1)),FIND(CHAR(160),SUBSTITUTE($Z24,\"}\",CHAR(160),HW$1))-FIND(CHAR(160),SUBSTITUTE($Z24,\"{\",CHAR(160),HW$1))+1),\"\")","v":""},{"$f":"IFERROR(MID($Z24,FIND(CHAR(160),SUBSTITUTE($Z24,\"{\",CHAR(160),HX$1)),FIND(CHAR(160),SUBSTITUTE($Z24,\"}\",CHAR(160),HX$1))-FIND(CHAR(160),SUBSTITUTE($Z24,\"{\",CHAR(160),HX$1))+1),\"\")","v":""},{"$f":"IFERROR(MID($Z24,FIND(CHAR(160),SUBSTITUTE($Z24,\"{\",CHAR(160),HY$1)),FIND(CHAR(160),SUBSTITUTE($Z24,\"}\",CHAR(160),HY$1))-FIND(CHAR(160),SUBSTITUTE($Z24,\"{\",CHAR(160),HY$1))+1),\"\")","v":""},{"$f":"IFERROR(MID($Z24,FIND(CHAR(160),SUBSTITUTE($Z24,\"{\",CHAR(160),HZ$1)),FIND(CHAR(160),SUBSTITUTE($Z24,\"}\",CHAR(160),HZ$1))-FIND(CHAR(160),SUBSTITUTE($Z24,\"{\",CHAR(160),HZ$1))+1),\"\")","v":""},{"$f":"IFERROR(MID($Z24,FIND(CHAR(160),SUBSTITUTE($Z24,\"{\",CHAR(160),IA$1)),FIND(CHAR(160),SUBSTITUTE($Z24,\"}\",CHAR(160),IA$1))-FIND(CHAR(160),SUBSTITUTE($Z24,\"{\",CHAR(160),IA$1))+1),\"\")","v":""},{"$f":"IFERROR(MID($Z24,FIND(CHAR(160),SUBSTITUTE($Z24,\"{\",CHAR(160),IB$1)),FIND(CHAR(160),SUBSTITUTE($Z24,\"}\",CHAR(160),IB$1))-FIND(CHAR(160),SUBSTITUTE($Z24,\"{\",CHAR(160),IB$1))+1),\"\")","v":""},{"$f":"IFERROR(MID($Z24,FIND(CHAR(160),SUBSTITUTE($Z24,\"{\",CHAR(160),IC$1)),FIND(CHAR(160),SUBSTITUTE($Z24,\"}\",CHAR(160),IC$1))-FIND(CHAR(160),SUBSTITUTE($Z24,\"{\",CHAR(160),IC$1))+1),\"\")","v":""},{"$f":"IFERROR(MID($Z24,FIND(CHAR(160),SUBSTITUTE($Z24,\"{\",CHAR(160),ID$1)),FIND(CHAR(160),SUBSTITUTE($Z24,\"}\",CHAR(160),ID$1))-FIND(CHAR(160),SUBSTITUTE($Z24,\"{\",CHAR(160),ID$1))+1),\"\")","v":""},{"$f":"IFERROR(MID($AA24,FIND(CHAR(160),SUBSTITUTE($AA24,\"{\",CHAR(160),IE$1)),FIND(CHAR(160),SUBSTITUTE($AA24,\"}\",CHAR(160),IE$1))-FIND(CHAR(160),SUBSTITUTE($AA24,\"{\",CHAR(160),IE$1))+1),\"\")","v":""},{"$f":"IFERROR(MID($AA24,FIND(CHAR(160),SUBSTITUTE($AA24,\"{\",CHAR(160),IF$1)),FIND(CHAR(160),SUBSTITUTE($AA24,\"}\",CHAR(160),IF$1))-FIND(CHAR(160),SUBSTITUTE($AA24,\"{\",CHAR(160),IF$1))+1),\"\")","v":""},{"$f":"IFERROR(MID($AA24,FIND(CHAR(160),SUBSTITUTE($AA24,\"{\",CHAR(160),IG$1)),FIND(CHAR(160),SUBSTITUTE($AA24,\"}\",CHAR(160),IG$1))-FIND(CHAR(160),SUBSTITUTE($AA24,\"{\",CHAR(160),IG$1))+1),\"\")","v":""},{"$f":"IFERROR(MID($AA24,FIND(CHAR(160),SUBSTITUTE($AA24,\"{\",CHAR(160),IH$1)),FIND(CHAR(160),SUBSTITUTE($AA24,\"}\",CHAR(160),IH$1))-FIND(CHAR(160),SUBSTITUTE($AA24,\"{\",CHAR(160),IH$1))+1),\"\")","v":""},{"$f":"IFERROR(MID($AA24,FIND(CHAR(160),SUBSTITUTE($AA24,\"{\",CHAR(160),II$1)),FIND(CHAR(160),SUBSTITUTE($AA24,\"}\",CHAR(160),II$1))-FIND(CHAR(160),SUBSTITUTE($AA24,\"{\",CHAR(160),II$1))+1),\"\")","v":""},{"$f":"IFERROR(MID($AA24,FIND(CHAR(160),SUBSTITUTE($AA24,\"{\",CHAR(160),IJ$1)),FIND(CHAR(160),SUBSTITUTE($AA24,\"}\",CHAR(160),IJ$1))-FIND(CHAR(160),SUBSTITUTE($AA24,\"{\",CHAR(160),IJ$1))+1),\"\")","v":""},{"$f":"IFERROR(MID($AA24,FIND(CHAR(160),SUBSTITUTE($AA24,\"{\",CHAR(160),IK$1)),FIND(CHAR(160),SUBSTITUTE($AA24,\"}\",CHAR(160),IK$1))-FIND(CHAR(160),SUBSTITUTE($AA24,\"{\",CHAR(160),IK$1))+1),\"\")","v":""},{"$f":"IFERROR(MID($AA24,FIND(CHAR(160),SUBSTITUTE($AA24,\"{\",CHAR(160),IL$1)),FIND(CHAR(160),SUBSTITUTE($AA24,\"}\",CHAR(160),IL$1))-FIND(CHAR(160),SUBSTITUTE($AA24,\"{\",CHAR(160),IL$1))+1),\"\")","v":""},{"$f":"IFERROR(MID($AA24,FIND(CHAR(160),SUBSTITUTE($AA24,\"{\",CHAR(160),IM$1)),FIND(CHAR(160),SUBSTITUTE($AA24,\"}\",CHAR(160),IM$1))-FIND(CHAR(160),SUBSTITUTE($AA24,\"{\",CHAR(160),IM$1))+1),\"\")","v":""},{"$f":"IFERROR(MID($AA24,FIND(CHAR(160),SUBSTITUTE($AA24,\"{\",CHAR(160),IN$1)),FIND(CHAR(160),SUBSTITUTE($AA24,\"}\",CHAR(160),IN$1))-FIND(CHAR(160),SUBSTITUTE($AA24,\"{\",CHAR(160),IN$1))+1),\"\")","v":""},{"$f":"IFERROR(MID($AB24,FIND(CHAR(160),SUBSTITUTE($AB24,\"{\",CHAR(160),IO$1)),FIND(CHAR(160),SUBSTITUTE($AB24,\"}\",CHAR(160),IO$1))-FIND(CHAR(160),SUBSTITUTE($AB24,\"{\",CHAR(160),IO$1))+1),\"\")","v":""},{"$f":"IFERROR(MID($AB24,FIND(CHAR(160),SUBSTITUTE($AB24,\"{\",CHAR(160),IP$1)),FIND(CHAR(160),SUBSTITUTE($AB24,\"}\",CHAR(160),IP$1))-FIND(CHAR(160),SUBSTITUTE($AB24,\"{\",CHAR(160),IP$1))+1),\"\")","v":""},{"$f":"IFERROR(MID($AB24,FIND(CHAR(160),SUBSTITUTE($AB24,\"{\",CHAR(160),IQ$1)),FIND(CHAR(160),SUBSTITUTE($AB24,\"}\",CHAR(160),IQ$1))-FIND(CHAR(160),SUBSTITUTE($AB24,\"{\",CHAR(160),IQ$1))+1),\"\")","v":""},{"$f":"IFERROR(MID($AB24,FIND(CHAR(160),SUBSTITUTE($AB24,\"{\",CHAR(160),IR$1)),FIND(CHAR(160),SUBSTITUTE($AB24,\"}\",CHAR(160),IR$1))-FIND(CHAR(160),SUBSTITUTE($AB24,\"{\",CHAR(160),IR$1))+1),\"\")","v":""},{"$f":"IFERROR(MID($AB24,FIND(CHAR(160),SUBSTITUTE($AB24,\"{\",CHAR(160),IS$1)),FIND(CHAR(160),SUBSTITUTE($AB24,\"}\",CHAR(160),IS$1))-FIND(CHAR(160),SUBSTITUTE($AB24,\"{\",CHAR(160),IS$1))+1),\"\")","v":""},{"$f":"IFERROR(MID($AB24,FIND(CHAR(160),SUBSTITUTE($AB24,\"{\",CHAR(160),IT$1)),FIND(CHAR(160),SUBSTITUTE($AB24,\"}\",CHAR(160),IT$1))-FIND(CHAR(160),SUBSTITUTE($AB24,\"{\",CHAR(160),IT$1))+1),\"\")","v":""},{"$f":"IFERROR(MID($AB24,FIND(CHAR(160),SUBSTITUTE($AB24,\"{\",CHAR(160),IU$1)),FIND(CHAR(160),SUBSTITUTE($AB24,\"}\",CHAR(160),IU$1))-FIND(CHAR(160),SUBSTITUTE($AB24,\"{\",CHAR(160),IU$1))+1),\"\")","v":""},{"$f":"IFERROR(MID($AB24,FIND(CHAR(160),SUBSTITUTE($AB24,\"{\",CHAR(160),IV$1)),FIND(CHAR(160),SUBSTITUTE($AB24,\"}\",CHAR(160),IV$1))-FIND(CHAR(160),SUBSTITUTE($AB24,\"{\",CHAR(160),IV$1))+1),\"\")","v":""},{"$f":"IFERROR(MID($AB24,FIND(CHAR(160),SUBSTITUTE($AB24,\"{\",CHAR(160),IW$1)),FIND(CHAR(160),SUBSTITUTE($AB24,\"}\",CHAR(160),IW$1))-FIND(CHAR(160),SUBSTITUTE($AB24,\"{\",CHAR(160),IW$1))+1),\"\")","v":""},{"$f":"IFERROR(MID($AB24,FIND(CHAR(160),SUBSTITUTE($AB24,\"{\",CHAR(160),IX$1)),FIND(CHAR(160),SUBSTITUTE($AB24,\"}\",CHAR(160),IX$1))-FIND(CHAR(160),SUBSTITUTE($AB24,\"{\",CHAR(160),IX$1))+1),\"\")","v":""},null,{"$f":"10-COUNTIF(DU24:ED24,\"\")","v":1}]
["Arrearage Management Program","Low Flow Bathroom Aerator Direct Install","LILFBA","2021-07-01","2022-06-30","Per Measure",0.49,0,"Per Measure",0.49,0,"2021-07-01","2022-06-30","Calculated","{Measure:Quantity}*if({Measure:Quantity}=0,0,29)",null,null,null,null,null,"{Measure:Quantity}*if({Measure:Quantity}=0,0,0.0044)","{Measure:Quantity}*if({Measure:Quantity}=0,0,0.0035)",null,null,null,null,null,"if({Measure:Quantity}=0,0,{Measure:Quantity}*333)","2021-07-01","2022-06-30",10,4.0000000000000001E-3,3.0000000000000001E-3,0.39700000000000002,0.26800000000000002,0.20300000000000001,0.13100000000000001,0.77,1,1,0,0,null,{"$f":"DU25","v":"{Measure:Quantity}"},1,{"$f":"DV25","v":""},null,{"$f":"DW25","v":""},null,{"$f":"DX25","v":""},null,{"$f":"DY25","v":""},null,{"$f":"DZ25","v":""},null,{"$f":"EA25","v":""},null,{"$f":"EB25","v":""},null,{"$f":"EC25","v":""},null,{"$f":"ED25","v":""},null,{"$f":"AS25*IF(AS25=0,0,29)","v":29},0,0,0,0,0,{"$f":"AS25*IF(AS25=0,0,0.0044)","v":4.4000000000000003E-3},{"$f":"AS25*IF(AS25=0,0,0.0035)","v":3.5000000000000001E-3},0,0,0,0,0,{"$f":"IF(AS25=0,0,AS25*333)","v":333},null,"Res","Default DR",{"$f":"Benefits(BL25,BR25,BS25,BT25,BU25,BV25,BW25,BX25,BY25,BZ25,AE25,AH25,AI25,AJ25,AK25,AL25,AM25,AN25,AO25,AP25,CA25,CB25)","v":21.996280898549266},12.632117441522738,0,0,0,0,0,19.771037930079988,0,{"$f":"SUMPRODUCT(CC25:CK25,--(CC25:CK25>0))","v":54.399436270151995},{"$f":"-SUMPRODUCT(CC25:CK25,--(CC25:CK25<0))","v":0},null,{"$f":"0.49","v":0.49},null,null,{"$f":"CM25+CO25","v":0.49},{"$f":"IF(NetOrGross=\"Net\",(1-AO25+AP25),1)","v":1},{"$f":"(SUMPRODUCT(CC25:CJ25,--(CC25:CJ25>0))+CN25)*CS25/((-SUMPRODUCT(CC25:CJ25,--(CC25:CJ25<0))+MAX(CO25,CV25)+CP25+CQ25)*CS25+IF(FRIncentives=\"Yes\",CV25*(1-CS25),0))","v":111.01925769418774},1,{"$f":"0.49","v":0.49},null,"Electric","y",null,{"$f":"IF(F25=\"Manual Entry\",\"Manual\",IF(G25=\"\",0,\"X=\"&SUBSTITUTE(SUBSTITUTE(SUBSTITUTE(SUBSTITUTE(SUBSTITUTE(SUBSTITUTE(SUBSTITUTE(SUBSTITUTE(SUBSTITUTE(SUBSTITUTE(SUBSTITUTE(SUBSTITUTE(G25,$ED25,$ED$2&ROW($ED25)),$EC25,$EC$2&ROW($EC25)),$EB25,$EB$2&ROW($EB25)),$EA25,$EA$2&ROW($EA25)),$DZ25,$DZ$2&ROW($DZ25)),$DY25,$DY$2&ROW($DY25)),$DX25,$DX$2&ROW($DX25)),$DW25,$DW$2&ROW($DW25)),$DV25,$DV$2&ROW($DV25)),$DU25,$DU$2&ROW($DU25)),$DT25,$DT$2&ROW($DT25)),$DS25,$DS$2&ROW($DS25))))","v":"X=0.49"},{"$f":"IF(I25=\"Manual Entry\",\"Manual\",IF(J25=\"\",0,\"X=\"&SUBSTITUTE(SUBSTITUTE(SUBSTITUTE(SUBSTITUTE(SUBSTITUTE(SUBSTITUTE(SUBSTITUTE(SUBSTITUTE(SUBSTITUTE(SUBSTITUTE(SUBSTITUTE(SUBSTITUTE(J25,$ED25,$ED$2&ROW($ED25)),$EC25,$EC$2&ROW($EC25)),$EB25,$EB$2&ROW($EB25)),$EA25,$EA$2&ROW($EA25)),$DZ25,$DZ$2&ROW($DZ25)),$DY25,$DY$2&ROW($DY25)),$DX25,$DX$2&ROW($DX25)),$DW25,$DW$2&ROW($DW25)),$DV25,$DV$2&ROW($DV25)),$DU25,$DU$2&ROW($DU25)),$DT25,$DT$2&ROW($DT25)),$DS25,$DS$2&ROW($DS25))))","v":"X=0.49"},{"$f":"IF(O25=\"\",0,\"X=\"&SUBSTITUTE(SUBSTITUTE(SUBSTITUTE(SUBSTITUTE(SUBSTITUTE(SUBSTITUTE(SUBSTITUTE(SUBSTITUTE(SUBSTITUTE(SUBSTITUTE(SUBSTITUTE(SUBSTITUTE(O25,$ED25,$ED$2&ROW($ED25)),$EC25,$EC$2&ROW($EC25)),$EB25,$EB$2&ROW($EB25)),$EA25,$EA$2&ROW($EA25)),$DZ25,$DZ$2&ROW($DZ25)),$DY25,$DY$2&ROW($DY25)),$DX25,$DX$2&ROW($DX25)),$DW25,$DW$2&ROW($DW25)),$DV25,$DV$2&ROW($DV25)),$DU25,$DU$2&ROW($DU25)),$DT25,$DT$2&ROW($DT25)),$DS25,$DS$2&ROW($DS25)))","v":"X=AS25*if(AS25=0,0,29)"},{"$f":"IF(P25=\"\",0,\"X=\"&SUBSTITUTE(SUBSTITUTE(SUBSTITUTE(SUBSTITUTE(SUBSTITUTE(SUBSTITUTE(SUBSTITUTE(SUBSTITUTE(SUBSTITUTE(SUBSTITUTE(SUBSTITUTE(SUBSTITUTE(P25,$ED25,$ED$2&ROW($ED25)),$EC25,$EC$2&ROW($EC25)),$EB25,$EB$2&ROW($EB25)),$EA25,$EA$2&ROW($EA25)),$DZ25,$DZ$2&ROW($DZ25)),$DY25,$DY$2&ROW($DY25)),$DX25,$DX$2&ROW($DX25)),$DW25,$DW$2&ROW($DW25)),$DV25,$DV$2&ROW($DV25)),$DU25,$DU$2&ROW($DU25)),$DT25,$DT$2&ROW($DT25)),$DS25,$DS$2&ROW($DS25)))","v":0},{"$f":"IF(Q25=\"\",0,\"X=\"&SUBSTITUTE(SUBSTITUTE(SUBSTITUTE(SUBSTITUTE(SUBSTITUTE(SUBSTITUTE(SUBSTITUTE(SUBSTITUTE(SUBSTITUTE(SUBSTITUTE(SUBSTITUTE(SUBSTITUTE(Q25,$ED25,$ED$2&ROW($ED25)),$EC25,$EC$2&ROW($EC25)),$EB25,$EB$2&ROW($EB25)),$EA25,$EA$2&ROW($EA25)),$DZ25,$DZ$2&ROW($DZ25)),$DY25,$DY$2&ROW($DY25)),$DX25,$DX$2&ROW($DX25)),$DW25,$DW$2&ROW($DW25)),$DV25,$DV$2&ROW($DV25)),$DU25,$DU$2&ROW($DU25)),$DT25,$DT$2&ROW($DT25)),$DS25,$DS$2&ROW($DS25)))","v":0},{"$f":"IF(R25=\"\",0,\"X=\"&SUBSTITUTE(SUBSTITUTE(SUBSTITUTE(SUBSTITUTE(SUBSTITUTE(SUBSTITUTE(SUBSTITUTE(SUBSTITUTE(SUBSTITUTE(SUBSTITUTE(SUBSTITUTE(SUBSTITUTE(R25,$ED25,$ED$2&ROW($ED25)),$EC25,$EC$2&ROW($EC25)),$EB25,$EB$2&ROW($EB25)),$EA25,$EA$2&ROW($EA25)),$DZ25,$DZ$2&ROW($DZ25)),$DY25,$DY$2&ROW($DY25)),$DX25,$DX$2&ROW($DX25)),$DW25,$DW$2&ROW($DW25)),$DV25,$DV$2&ROW($DV25)),$DU25,$DU$2&ROW($DU25)),$DT25,$DT$2&ROW($DT25)),$DS25,$DS$2&ROW($DS25)))","v":0},{"$f":"IF(S25=\"\",0,\"X=\"&SUBSTITUTE(SUBSTITUTE(SUBSTITUTE(SUBSTITUTE(SUBSTITUTE(SUBSTITUTE(SUBSTITUTE(SUBSTITUTE(SUBSTITUTE(SUBSTITUTE(SUBSTITUTE(SUBSTITUTE(S25,$ED25,$ED$2&ROW($ED25)),$EC25,$EC$2&ROW($EC25)),$EB25,$EB$2&ROW($EB25)),$EA25,$EA$2&ROW($EA25)),$DZ25,$DZ$2&ROW($DZ25)),$DY25,$DY$2&ROW($DY25)),$DX25,$DX$2&ROW($DX25)),$DW25,$DW$2&ROW($DW25)),$DV25,$DV$2&ROW($DV25)),$DU25,$DU$2&ROW($DU25)),$DT25,$DT$2&ROW($DT25)),$DS25,$DS$2&ROW($DS25)))","v":0},{"$f":"IF(T25=\"\",0,\"X=\"&SUBSTITUTE(SUBSTITUTE(SUBSTITUTE(SUBSTITUTE(SUBSTITUTE(SUBSTITUTE(SUBSTITUTE(SUBSTITUTE(SUBSTITUTE(SUBSTITUTE(SUBSTITUTE(SUBSTITUTE(T25,$ED25,$ED$2&ROW($ED25)),$EC25,$EC$2&ROW($EC25)),$EB25,$EB$2&ROW($EB25)),$EA25,$EA$2&ROW($EA25)),$DZ25,$DZ$2&ROW($DZ25)),$DY25,$DY$2&ROW($DY25)),$DX25,$DX$2&ROW($DX25)),$DW25,$DW$2&ROW($DW25)),$DV25,$DV$2&ROW($DV25)),$DU25,$DU$2&ROW($DU25)),$DT25,$DT$2&ROW($DT25)),$DS25,$DS$2&ROW($DS25)))","v":0},{"$f":"IF(U25=\"\",0,\"X=\"&SUBSTITUTE(SUBSTITUTE(SUBSTITUTE(SUBSTITUTE(SUBSTITUTE(SUBSTITUTE(SUBSTITUTE(SUBSTITUTE(SUBSTITUTE(SUBSTITUTE(SUBSTITUTE(SUBSTITUTE(U25,$ED25,$ED$2&ROW($ED25)),$EC25,$EC$2&ROW($EC25)),$EB25,$EB$2&ROW($EB25)),$EA25,$EA$2&ROW($EA25)),$DZ25,$DZ$2&ROW($DZ25)),$DY25,$DY$2&ROW($DY25)),$DX25,$DX$2&ROW($DX25)),$DW25,$DW$2&ROW($DW25)),$DV25,$DV$2&ROW($DV25)),$DU25,$DU$2&ROW($DU25)),$DT25,$DT$2&ROW($DT25)),$DS25,$DS$2&ROW($DS25)))","v":"X=AS25*if(AS25=0,0,0.0044)"},{"$f":"IF(V25=\"\",0,\"X=\"&SUBSTITUTE(SUBSTITUTE(SUBSTITUTE(SUBSTITUTE(SUBSTITUTE(SUBSTITUTE(SUBSTITUTE(SUBSTITUTE(SUBSTITUTE(SUBSTITUTE(SUBSTITUTE(SUBSTITUTE(V25,$ED25,$ED$2&ROW($ED25)),$EC25,$EC$2&ROW($EC25)),$EB25,$EB$2&ROW($EB25)),$EA25,$EA$2&ROW($EA25)),$DZ25,$DZ$2&ROW($DZ25)),$DY25,$DY$2&ROW($DY25)),$DX25,$DX$2&ROW($DX25)),$DW25,$DW$2&ROW($DW25)),$DV25,$DV$2&ROW($DV25)),$DU25,$DU$2&ROW($DU25)),$DT25,$DT$2&ROW($DT25)),$DS25,$DS$2&ROW($DS25)))","v":"X=AS25*if(AS25=0,0,0.0035)"},{"$f":"IF(W25=\"\",0,\"X=\"&SUBSTITUTE(SUBSTITUTE(SUBSTITUTE(SUBSTITUTE(SUBSTITUTE(SUBSTITUTE(SUBSTITUTE(SUBSTITUTE(SUBSTITUTE(SUBSTITUTE(SUBSTITUTE(SUBSTITUTE(W25,$ED25,$ED$2&ROW($ED25)),$EC25,$EC$2&ROW($EC25)),$EB25,$EB$2&ROW($EB25)),$EA25,$EA$2&ROW($EA25)),$DZ25,$DZ$2&ROW($DZ25)),$DY25,$DY$2&ROW($DY25)),$DX25,$DX$2&ROW($DX25)),$DW25,$DW$2&ROW($DW25)),$DV25,$DV$2&ROW($DV25)),$DU25,$DU$2&ROW($DU25)),$DT25,$DT$2&ROW($DT25)),$DS25,$DS$2&ROW($DS25)))","v":0},{"$f":"IF(X25=\"\",0,\"X=\"&SUBSTITUTE(SUBSTITUTE(SUBSTITUTE(SUBSTITUTE(SUBSTITUTE(SUBSTITUTE(SUBSTITUTE(SUBSTITUTE(SUBSTITUTE(SUBSTITUTE(SUBSTITUTE(SUBSTITUTE(X25,$ED25,$ED$2&ROW($ED25)),$EC25,$EC$2&ROW($EC25)),$EB25,$EB$2&ROW($EB25)),$EA25,$EA$2&ROW($EA25)),$DZ25,$DZ$2&ROW($DZ25)),$DY25,$DY$2&ROW($DY25)),$DX25,$DX$2&ROW($DX25)),$DW25,$DW$2&ROW($DW25)),$DV25,$DV$2&ROW($DV25)),$DU25,$DU$2&ROW($DU25)),$DT25,$DT$2&ROW($DT25)),$DS25,$DS$2&ROW($DS25)))","v":0},{"$f":"IF(Y25=\"\",0,\"X=\"&SUBSTITUTE(SUBSTITUTE(SUBSTITUTE(SUBSTITUTE(SUBSTITUTE(SUBSTITUTE(SUBSTITUTE(SUBSTITUTE(SUBSTITUTE(SUBSTITUTE(SUBSTITUTE(SUBSTITUTE(Y25,$ED25,$ED$2&ROW($ED25)),$EC25,$EC$2&ROW($EC25)),$EB25,$EB$2&ROW($EB25)),$EA25,$EA$2&ROW($EA25)),$DZ25,$DZ$2&ROW($DZ25)),$DY25,$DY$2&ROW($DY25)),$DX25,$DX$2&ROW($DX25)),$DW25,$DW$2&ROW($DW25)),$DV25,$DV$2&ROW($DV25)),$DU25,$DU$2&ROW($DU25)),$DT25,$DT$2&ROW($DT25)),$DS25,$DS$2&ROW($DS25)))","v":0},{"$f":"IF(Z25=\"\",0,\"X=\"&SUBSTITUTE(SUBSTITUTE(SUBSTITUTE(SUBSTITUTE(SUBSTITUTE(SUBSTITUTE(SUBSTITUTE(SUBSTITUTE(SUBSTITUTE(SUBSTITUTE(SUBSTITUTE(SUBSTITUTE(Z25,$ED25,$ED$2&ROW($ED25)),$EC25,$EC$2&ROW($EC25)),$EB25,$EB$2&ROW($EB25)),$EA25,$EA$2&ROW($EA25)),$DZ25,$DZ$2&ROW($DZ25)),$DY25,$DY$2&ROW($DY25)),$DX25,$DX$2&ROW($DX25)),$DW25,$DW$2&ROW($DW25)),$DV25,$DV$2&ROW($DV25)),$DU25,$DU$2&ROW($DU25)),$DT25,$DT$2&ROW($DT25)),$DS25,$DS$2&ROW($DS25)))","v":0},{"$f":"IF(AA25=\"\",0,\"X=\"&SUBSTITUTE(SUBSTITUTE(SUBSTITUTE(SUBSTITUTE(SUBSTITUTE(SUBSTITUTE(SUBSTITUTE(SUBSTITUTE(SUBSTITUTE(SUBSTITUTE(SUBSTITUTE(SUBSTITUTE(AA25,$ED25,$ED$2&ROW($ED25)),$EC25,$EC$2&ROW($EC25)),$EB25,$EB$2&ROW($EB25)),$EA25,$EA$2&ROW($EA25)),$DZ25,$DZ$2&ROW($DZ25)),$DY25,$DY$2&ROW($DY25)),$DX25,$DX$2&ROW($DX25)),$DW25,$DW$2&ROW($DW25)),$DV25,$DV$2&ROW($DV25)),$DU25,$DU$2&ROW($DU25)),$DT25,$DT$2&ROW($DT25)),$DS25,$DS$2&ROW($DS25)))","v":0},{"$f":"IF(AB25=\"\",0,\"X=\"&SUBSTITUTE(SUBSTITUTE(SUBSTITUTE(SUBSTITUTE(SUBSTITUTE(SUBSTITUTE(SUBSTITUTE(SUBSTITUTE(SUBSTITUTE(SUBSTITUTE(SUBSTITUTE(SUBSTITUTE(AB25,$ED25,$ED$2&ROW($ED25)),$EC25,$EC$2&ROW($EC25)),$EB25,$EB$2&ROW($EB25)),$EA25,$EA$2&ROW($EA25)),$DZ25,$DZ$2&ROW($DZ25)),$DY25,$DY$2&ROW($DY25)),$DX25,$DX$2&ROW($DX25)),$DW25,$DW$2&ROW($DW25)),$DV25,$DV$2&ROW($DV25)),$DU25,$DU$2&ROW($DU25)),$DT25,$DT$2&ROW($DT25)),$DS25,$DS$2&ROW($DS25)))","v":"X=if(AS25=0,0,AS25*333)"},null,null,"{Factor:WinterCF}","{Factor:SummerCF}",{"$f":"IFERROR(INDEX($EG25:$IV25,MATCH(0,COUNTIF($DR25:DT25,$EG25:$IV25),0)),\"\")","v":"{Measure:Quantity}"},{"$f":"IFERROR(INDEX($EG25:$IV25,MATCH(0,COUNTIF($DR25:DU25,$EG25:$IV25),0)),\"\")","v":""},{"$f":"IFERROR(INDEX($EG25:$IV25,MATCH(0,COUNTIF($DR25:DV25,$EG25:$IV25),0)),\"\")","v":""},{"$f":"IFERROR(INDEX($EG25:$IV25,MATCH(0,COUNTIF($DR25:DW25,$EG25:$IV25),0)),\"\")","v":""},{"$f":"IFERROR(INDEX($EG25:$IV25,MATCH(0,COUNTIF($DR25:DX25,$EG25:$IV25),0)),\"\")","v":""},{"$f":"IFERROR(INDEX($EG25:$IV25,MATCH(0,COUNTIF($DR25:DY25,$EG25:$IV25),0)),\"\")","v":""},{"$f":"IFERROR(INDEX($EG25:$IV25,MATCH(0,COUNTIF($DR25:DZ25,$EG25:$IV25),0)),\"\")","v":""},{"$f":"IFERROR(INDEX($EG25:$IV25,MATCH(0,COUNTIF($DR25:EA25,$EG25:$IV25),0)),\"\")","v":""},{"$f":"IFERROR(INDEX($EG25:$IV25,MATCH(0,COUNTIF($DR25:EB25,$EG25:$IV25),0)),\"\")","v":""},{"$f":"IFERROR(INDEX($EG25:$IV25,MATCH(0,COUNTIF($DR25:EC25,$EG25:$IV25),0)),\"\")","v":""},null,null,{"$f":"IFERROR(MID($G25,FIND(CHAR(160),SUBSTITUTE($G25,\"{\",CHAR(160),EG$1)),FIND(CHAR(160),SUBSTITUTE($G25,\"}\",CHAR(160),EG$1))-FIND(CHAR(160),SUBSTITUTE($G25,\"{\",CHAR(160),EG$1))+1),\"\")","v":""},{"$f":"IFERROR(MID($G25,FIND(CHAR(160),SUBSTITUTE($G25,\"{\",CHAR(160),EH$1)),FIND(CHAR(160),SUBSTITUTE($G25,\"}\",CHAR(160),EH$1))-FIND(CHAR(160),SUBSTITUTE($G25,\"{\",CHAR(160),EH$1))+1),\"\")","v":""},{"$f":"IFERROR(MID($G25,FIND(CHAR(160),SUBSTITUTE($G25,\"{\",CHAR(160),EI$1)),FIND(CHAR(160),SUBSTITUTE($G25,\"}\",CHAR(160),EI$1))-FIND(CHAR(160),SUBSTITUTE($G25,\"{\",CHAR(160),EI$1))+1),\"\")","v":""},{"$f":"IFERROR(MID($G25,FIND(CHAR(160),SUBSTITUTE($G25,\"{\",CHAR(160),EJ$1)),FIND(CHAR(160),SUBSTITUTE($G25,\"}\",CHAR(160),EJ$1))-FIND(CHAR(160),SUBSTITUTE($G25,\"{\",CHAR(160),EJ$1))+1),\"\")","v":""},{"$f":"IFERROR(MID($G25,FIND(CHAR(160),SUBSTITUTE($G25,\"{\",CHAR(160),EK$1)),FIND(CHAR(160),SUBSTITUTE($G25,\"}\",CHAR(160),EK$1))-FIND(CHAR(160),SUBSTITUTE($G25,\"{\",CHAR(160),EK$1))+1),\"\")","v":""},{"$f":"IFERROR(MID($G25,FIND(CHAR(160),SUBSTITUTE($G25,\"{\",CHAR(160),EL$1)),FIND(CHAR(160),SUBSTITUTE($G25,\"}\",CHAR(160),EL$1))-FIND(CHAR(160),SUBSTITUTE($G25,\"{\",CHAR(160),EL$1))+1),\"\")","v":""},{"$f":"IFERROR(MID($G25,FIND(CHAR(160),SUBSTITUTE($G25,\"{\",CHAR(160),EM$1)),FIND(CHAR(160),SUBSTITUTE($G25,\"}\",CHAR(160),EM$1))-FIND(CHAR(160),SUBSTITUTE($G25,\"{\",CHAR(160),EM$1))+1),\"\")","v":""},{"$f":"IFERROR(MID($G25,FIND(CHAR(160),SUBSTITUTE($G25,\"{\",CHAR(160),EN$1)),FIND(CHAR(160),SUBSTITUTE($G25,\"}\",CHAR(160),EN$1))-FIND(CHAR(160),SUBSTITUTE($G25,\"{\",CHAR(160),EN$1))+1),\"\")","v":""},{"$f":"IFERROR(MID($G25,FIND(CHAR(160),SUBSTITUTE($G25,\"{\",CHAR(160),EO$1)),FIND(CHAR(160),SUBSTITUTE($G25,\"}\",CHAR(160),EO$1))-FIND(CHAR(160),SUBSTITUTE($G25,\"{\",CHAR(160),EO$1))+1),\"\")","v":""},{"$f":"IFERROR(MID($G25,FIND(CHAR(160),SUBSTITUTE($G25,\"{\",CHAR(160),EP$1)),FIND(CHAR(160),SUBSTITUTE($G25,\"}\",CHAR(160),EP$1))-FIND(CHAR(160),SUBSTITUTE($G25,\"{\",CHAR(160),EP$1))+1),\"\")","v":""},{"$f":"IFERROR(MID($J25,FIND(CHAR(160),SUBSTITUTE($J25,\"{\",CHAR(160),EQ$1)),FIND(CHAR(160),SUBSTITUTE($J25,\"}\",CHAR(160),EQ$1))-FIND(CHAR(160),SUBSTITUTE($J25,\"{\",CHAR(160),EQ$1))+1),\"\")","v":""},{"$f":"IFERROR(MID($J25,FIND(CHAR(160),SUBSTITUTE($J25,\"{\",CHAR(160),ER$1)),FIND(CHAR(160),SUBSTITUTE($J25,\"}\",CHAR(160),ER$1))-FIND(CHAR(160),SUBSTITUTE($J25,\"{\",CHAR(160),ER$1))+1),\"\")","v":""},{"$f":"IFERROR(MID($J25,FIND(CHAR(160),SUBSTITUTE($J25,\"{\",CHAR(160),ES$1)),FIND(CHAR(160),SUBSTITUTE($J25,\"}\",CHAR(160),ES$1))-FIND(CHAR(160),SUBSTITUTE($J25,\"{\",CHAR(160),ES$1))+1),\"\")","v":""},{"$f":"IFERROR(MID($J25,FIND(CHAR(160),SUBSTITUTE($J25,\"{\",CHAR(160),ET$1)),FIND(CHAR(160),SUBSTITUTE($J25,\"}\",CHAR(160),ET$1))-FIND(CHAR(160),SUBSTITUTE($J25,\"{\",CHAR(160),ET$1))+1),\"\")","v":""},{"$f":"IFERROR(MID($J25,FIND(CHAR(160),SUBSTITUTE($J25,\"{\",CHAR(160),EU$1)),FIND(CHAR(160),SUBSTITUTE($J25,\"}\",CHAR(160),EU$1))-FIND(CHAR(160),SUBSTITUTE($J25,\"{\",CHAR(160),EU$1))+1),\"\")","v":""},{"$f":"IFERROR(MID($J25,FIND(CHAR(160),SUBSTITUTE($J25,\"{\",CHAR(160),EV$1)),FIND(CHAR(160),SUBSTITUTE($J25,\"}\",CHAR(160),EV$1))-FIND(CHAR(160),SUBSTITUTE($J25,\"{\",CHAR(160),EV$1))+1),\"\")","v":""},{"$f":"IFERROR(MID($J25,FIND(CHAR(160),SUBSTITUTE($J25,\"{\",CHAR(160),EW$1)),FIND(CHAR(160),SUBSTITUTE($J25,\"}\",CHAR(160),EW$1))-FIND(CHAR(160),SUBSTITUTE($J25,\"{\",CHAR(160),EW$1))+1),\"\")","v":""},{"$f":"IFERROR(MID($J25,FIND(CHAR(160),SUBSTITUTE($J25,\"{\",CHAR(160),EX$1)),FIND(CHAR(160),SUBSTITUTE($J25,\"}\",CHAR(160),EX$1))-FIND(CHAR(160),SUBSTITUTE($J25,\"{\",CHAR(160),EX$1))+1),\"\")","v":""},{"$f":"IFERROR(MID($J25,FIND(CHAR(160),SUBSTITUTE($J25,\"{\",CHAR(160),EY$1)),FIND(CHAR(160),SUBSTITUTE($J25,\"}\",CHAR(160),EY$1))-FIND(CHAR(160),SUBSTITUTE($J25,\"{\",CHAR(160),EY$1))+1),\"\")","v":""},{"$f":"IFERROR(MID($J25,FIND(CHAR(160),SUBSTITUTE($J25,\"{\",CHAR(160),EZ$1)),FIND(CHAR(160),SUBSTITUTE($J25,\"}\",CHAR(160),EZ$1))-FIND(CHAR(160),SUBSTITUTE($J25,\"{\",CHAR(160),EZ$1))+1),\"\")","v":""},{"$f":"IFERROR(MID($J25,FIND(CHAR(160),SUBSTITUTE($J25,\"{\",CHAR(160),FA$1)),FIND(CHAR(160),SUBSTITUTE($J25,\"}\",CHAR(160),FA$1))-FIND(CHAR(160),SUBSTITUTE($J25,\"{\",CHAR(160),FA$1))+1),\"\")","v":""},{"$f":"IFERROR(MID($J25,FIND(CHAR(160),SUBSTITUTE($J25,\"{\",CHAR(160),FB$1)),FIND(CHAR(160),SUBSTITUTE($J25,\"}\",CHAR(160),FB$1))-FIND(CHAR(160),SUBSTITUTE($J25,\"{\",CHAR(160),FB$1))+1),\"\")","v":""},{"$f":"IFERROR(MID($O25,FIND(CHAR(160),SUBSTITUTE($O25,\"{\",CHAR(160),FC$1)),FIND(CHAR(160),SUBSTITUTE($O25,\"}\",CHAR(160),FC$1))-FIND(CHAR(160),SUBSTITUTE($O25,\"{\",CHAR(160),FC$1))+1),\"\")","v":""},{"$f":"IFERROR(MID($O25,FIND(CHAR(160),SUBSTITUTE($O25,\"{\",CHAR(160),FD$1)),FIND(CHAR(160),SUBSTITUTE($O25,\"}\",CHAR(160),FD$1))-FIND(CHAR(160),SUBSTITUTE($O25,\"{\",CHAR(160),FD$1))+1),\"\")","v":""},{"$f":"IFERROR(MID($O25,FIND(CHAR(160),SUBSTITUTE($O25,\"{\",CHAR(160),FE$1)),FIND(CHAR(160),SUBSTITUTE($O25,\"}\",CHAR(160),FE$1))-FIND(CHAR(160),SUBSTITUTE($O25,\"{\",CHAR(160),FE$1))+1),\"\")","v":""},{"$f":"IFERROR(MID($O25,FIND(CHAR(160),SUBSTITUTE($O25,\"{\",CHAR(160),FF$1)),FIND(CHAR(160),SUBSTITUTE($O25,\"}\",CHAR(160),FF$1))-FIND(CHAR(160),SUBSTITUTE($O25,\"{\",CHAR(160),FF$1))+1),\"\")","v":""},{"$f":"IFERROR(MID($O25,FIND(CHAR(160),SUBSTITUTE($O25,\"{\",CHAR(160),FG$1)),FIND(CHAR(160),SUBSTITUTE($O25,\"}\",CHAR(160),FG$1))-FIND(CHAR(160),SUBSTITUTE($O25,\"{\",CHAR(160),FG$1))+1),\"\")","v":""},{"$f":"IFERROR(MID($O25,FIND(CHAR(160),SUBSTITUTE($O25,\"{\",CHAR(160),FH$1)),FIND(CHAR(160),SUBSTITUTE($O25,\"}\",CHAR(160),FH$1))-FIND(CHAR(160),SUBSTITUTE($O25,\"{\",CHAR(160),FH$1))+1),\"\")","v":""},{"$f":"IFERROR(MID($O25,FIND(CHAR(160),SUBSTITUTE($O25,\"{\",CHAR(160),FI$1)),FIND(CHAR(160),SUBSTITUTE($O25,\"}\",CHAR(160),FI$1))-FIND(CHAR(160),SUBSTITUTE($O25,\"{\",CHAR(160),FI$1))+1),\"\")","v":""},{"$f":"IFERROR(MID($O25,FIND(CHAR(160),SUBSTITUTE($O25,\"{\",CHAR(160),FJ$1)),FIND(CHAR(160),SUBSTITUTE($O25,\"}\",CHAR(160),FJ$1))-FIND(CHAR(160),SUBSTITUTE($O25,\"{\",CHAR(160),FJ$1))+1),\"\")","v":""},{"$f":"IFERROR(MID($O25,FIND(CHAR(160),SUBSTITUTE($O25,\"{\",CHAR(160),FK$1)),FIND(CHAR(160),SUBSTITUTE($O25,\"}\",CHAR(160),FK$1))-FIND(CHAR(160),SUBSTITUTE($O25,\"{\",CHAR(160),FK$1))+1),\"\")","v":"{Measure:Quantity}"},{"$f":"IFERROR(MID($O25,FIND(CHAR(160),SUBSTITUTE($O25,\"{\",CHAR(160),FL$1)),FIND(CHAR(160),SUBSTITUTE($O25,\"}\",CHAR(160),FL$1))-FIND(CHAR(160),SUBSTITUTE($O25,\"{\",CHAR(160),FL$1))+1),\"\")","v":"{Measure:Quantity}"},{"$f":"IFERROR(MID($R25,FIND(CHAR(160),SUBSTITUTE($R25,\"{\",CHAR(160),FM$1)),FIND(CHAR(160),SUBSTITUTE($R25,\"}\",CHAR(160),FM$1))-FIND(CHAR(160),SUBSTITUTE($R25,\"{\",CHAR(160),FM$1))+1),\"\")","v":""},{"$f":"IFERROR(MID($R25,FIND(CHAR(160),SUBSTITUTE($R25,\"{\",CHAR(160),FN$1)),FIND(CHAR(160),SUBSTITUTE($R25,\"}\",CHAR(160),FN$1))-FIND(CHAR(160),SUBSTITUTE($R25,\"{\",CHAR(160),FN$1))+1),\"\")","v":""},{"$f":"IFERROR(MID($R25,FIND(CHAR(160),SUBSTITUTE($R25,\"{\",CHAR(160),FO$1)),FIND(CHAR(160),SUBSTITUTE($R25,\"}\",CHAR(160),FO$1))-FIND(CHAR(160),SUBSTITUTE($R25,\"{\",CHAR(160),FO$1))+1),\"\")","v":""},{"$f":"IFERROR(MID($R25,FIND(CHAR(160),SUBSTITUTE($R25,\"{\",CHAR(160),FP$1)),FIND(CHAR(160),SUBSTITUTE($R25,\"}\",CHAR(160),FP$1))-FIND(CHAR(160),SUBSTITUTE($R25,\"{\",CHAR(160),FP$1))+1),\"\")","v":""},{"$f":"IFERROR(MID($R25,FIND(CHAR(160),SUBSTITUTE($R25,\"{\",CHAR(160),FQ$1)),FIND(CHAR(160),SUBSTITUTE($R25,\"}\",CHAR(160),FQ$1))-FIND(CHAR(160),SUBSTITUTE($R25,\"{\",CHAR(160),FQ$1))+1),\"\")","v":""},{"$f":"IFERROR(MID($R25,FIND(CHAR(160),SUBSTITUTE($R25,\"{\",CHAR(160),FR$1)),FIND(CHAR(160),SUBSTITUTE($R25,\"}\",CHAR(160),FR$1))-FIND(CHAR(160),SUBSTITUTE($R25,\"{\",CHAR(160),FR$1))+1),\"\")","v":""},{"$f":"IFERROR(MID($R25,FIND(CHAR(160),SUBSTITUTE($R25,\"{\",CHAR(160),FS$1)),FIND(CHAR(160),SUBSTITUTE($R25,\"}\",CHAR(160),FS$1))-FIND(CHAR(160),SUBSTITUTE($R25,\"{\",CHAR(160),FS$1))+1),\"\")","v":""},{"$f":"IFERROR(MID($R25,FIND(CHAR(160),SUBSTITUTE($R25,\"{\",CHAR(160),FT$1)),FIND(CHAR(160),SUBSTITUTE($R25,\"}\",CHAR(160),FT$1))-FIND(CHAR(160),SUBSTITUTE($R25,\"{\",CHAR(160),FT$1))+1),\"\")","v":""},{"$f":"IFERROR(MID($R25,FIND(CHAR(160),SUBSTITUTE($R25,\"{\",CHAR(160),FU$1)),FIND(CHAR(160),SUBSTITUTE($R25,\"}\",CHAR(160),FU$1))-FIND(CHAR(160),SUBSTITUTE($R25,\"{\",CHAR(160),FU$1))+1),\"\")","v":""},{"$f":"IFERROR(MID($R25,FIND(CHAR(160),SUBSTITUTE($R25,\"{\",CHAR(160),FV$1)),FIND(CHAR(160),SUBSTITUTE($R25,\"}\",CHAR(160),FV$1))-FIND(CHAR(160),SUBSTITUTE($R25,\"{\",CHAR(160),FV$1))+1),\"\")","v":""},{"$f":"IFERROR(MID($U25,FIND(CHAR(160),SUBSTITUTE($U25,\"{\",CHAR(160),FW$1)),FIND(CHAR(160),SUBSTITUTE($U25,\"}\",CHAR(160),FW$1))-FIND(CHAR(160),SUBSTITUTE($U25,\"{\",CHAR(160),FW$1))+1),\"\")","v":""},{"$f":"IFERROR(MID($U25,FIND(CHAR(160),SUBSTITUTE($U25,\"{\",CHAR(160),FX$1)),FIND(CHAR(160),SUBSTITUTE($U25,\"}\",CHAR(160),FX$1))-FIND(CHAR(160),SUBSTITUTE($U25,\"{\",CHAR(160),FX$1))+1),\"\")","v":""},{"$f":"IFERROR(MID($U25,FIND(CHAR(160),SUBSTITUTE($U25,\"{\",CHAR(160),FY$1)),FIND(CHAR(160),SUBSTITUTE($U25,\"}\",CHAR(160),FY$1))-FIND(CHAR(160),SUBSTITUTE($U25,\"{\",CHAR(160),FY$1))+1),\"\")","v":""},{"$f":"IFERROR(MID($U25,FIND(CHAR(160),SUBSTITUTE($U25,\"{\",CHAR(160),FZ$1)),FIND(CHAR(160),SUBSTITUTE($U25,\"}\",CHAR(160),FZ$1))-FIND(CHAR(160),SUBSTITUTE($U25,\"{\",CHAR(160),FZ$1))+1),\"\")","v":""},{"$f":"IFERROR(MID($U25,FIND(CHAR(160),SUBSTITUTE($U25,\"{\",CHAR(160),GA$1)),FIND(CHAR(160),SUBSTITUTE($U25,\"}\",CHAR(160),GA$1))-FIND(CHAR(160),SUBSTITUTE($U25,\"{\",CHAR(160),GA$1))+1),\"\")","v":""},{"$f":"IFERROR(MID($U25,FIND(CHAR(160),SUBSTITUTE($U25,\"{\",CHAR(160),GB$1)),FIND(CHAR(160),SUBSTITUTE($U25,\"}\",CHAR(160),GB$1))-FIND(CHAR(160),SUBSTITUTE($U25,\"{\",CHAR(160),GB$1))+1),\"\")","v":""},{"$f":"IFERROR(MID($U25,FIND(CHAR(160),SUBSTITUTE($U25,\"{\",CHAR(160),GC$1)),FIND(CHAR(160),SUBSTITUTE($U25,\"}\",CHAR(160),GC$1))-FIND(CHAR(160),SUBSTITUTE($U25,\"{\",CHAR(160),GC$1))+1),\"\")","v":""},{"$f":"IFERROR(MID($U25,FIND(CHAR(160),SUBSTITUTE($U25,\"{\",CHAR(160),GD$1)),FIND(CHAR(160),SUBSTITUTE($U25,\"}\",CHAR(160),GD$1))-FIND(CHAR(160),SUBSTITUTE($U25,\"{\",CHAR(160),GD$1))+1),\"\")","v":""},{"$f":"IFERROR(MID($U25,FIND(CHAR(160),SUBSTITUTE($U25,\"{\",CHAR(160),GE$1)),FIND(CHAR(160),SUBSTITUTE($U25,\"}\",CHAR(160),GE$1))-FIND(CHAR(160),SUBSTITUTE($U25,\"{\",CHAR(160),GE$1))+1),\"\")","v":"{Measure:Quantity}"},{"$f":"IFERROR(MID($U25,FIND(CHAR(160),SUBSTITUTE($U25,\"{\",CHAR(160),GF$1)),FIND(CHAR(160),SUBSTITUTE($U25,\"}\",CHAR(160),GF$1))-FIND(CHAR(160),SUBSTITUTE($U25,\"{\",CHAR(160),GF$1))+1),\"\")","v":"{Measure:Quantity}"},{"$f":"IFERROR(MID($V25,FIND(CHAR(160),SUBSTITUTE($V25,\"{\",CHAR(160),GG$1)),FIND(CHAR(160),SUBSTITUTE($V25,\"}\",CHAR(160),GG$1))-FIND(CHAR(160),SUBSTITUTE($V25,\"{\",CHAR(160),GG$1))+1),\"\")","v":""},{"$f":"IFERROR(MID($V25,FIND(CHAR(160),SUBSTITUTE($V25,\"{\",CHAR(160),GH$1)),FIND(CHAR(160),SUBSTITUTE($V25,\"}\",CHAR(160),GH$1))-FIND(CHAR(160),SUBSTITUTE($V25,\"{\",CHAR(160),GH$1))+1),\"\")","v":""},{"$f":"IFERROR(MID($V25,FIND(CHAR(160),SUBSTITUTE($V25,\"{\",CHAR(160),GI$1)),FIND(CHAR(160),SUBSTITUTE($V25,\"}\",CHAR(160),GI$1))-FIND(CHAR(160),SUBSTITUTE($V25,\"{\",CHAR(160),GI$1))+1),\"\")","v":""},{"$f":"IFERROR(MID($V25,FIND(CHAR(160),SUBSTITUTE($V25,\"{\",CHAR(160),GJ$1)),FIND(CHAR(160),SUBSTITUTE($V25,\"}\",CHAR(160),GJ$1))-FIND(CHAR(160),SUBSTITUTE($V25,\"{\",CHAR(160),GJ$1))+1),\"\")","v":""},{"$f":"IFERROR(MID($V25,FIND(CHAR(160),SUBSTITUTE($V25,\"{\",CHAR(160),GK$1)),FIND(CHAR(160),SUBSTITUTE($V25,\"}\",CHAR(160),GK$1))-FIND(CHAR(160),SUBSTITUTE($V25,\"{\",CHAR(160),GK$1))+1),\"\")","v":""},{"$f":"IFERROR(MID($V25,FIND(CHAR(160),SUBSTITUTE($V25,\"{\",CHAR(160),GL$1)),FIND(CHAR(160),SUBSTITUTE($V25,\"}\",CHAR(160),GL$1))-FIND(CHAR(160),SUBSTITUTE($V25,\"{\",CHAR(160),GL$1))+1),\"\")","v":""},{"$f":"IFERROR(MID($V25,FIND(CHAR(160),SUBSTITUTE($V25,\"{\",CHAR(160),GM$1)),FIND(CHAR(160),SUBSTITUTE($V25,\"}\",CHAR(160),GM$1))-FIND(CHAR(160),SUBSTITUTE($V25,\"{\",CHAR(160),GM$1))+1),\"\")","v":""},{"$f":"IFERROR(MID($V25,FIND(CHAR(160),SUBSTITUTE($V25,\"{\",CHAR(160),GN$1)),FIND(CHAR(160),SUBSTITUTE($V25,\"}\",CHAR(160),GN$1))-FIND(CHAR(160),SUBSTITUTE($V25,\"{\",CHAR(160),GN$1))+1),\"\")","v":""},{"$f":"IFERROR(MID($V25,FIND(CHAR(160),SUBSTITUTE($V25,\"{\",CHAR(160),GO$1)),FIND(CHAR(160),SUBSTITUTE($V25,\"}\",CHAR(160),GO$1))-FIND(CHAR(160),SUBSTITUTE($V25,\"{\",CHAR(160),GO$1))+1),\"\")","v":"{Measure:Quantity}"},{"$f":"IFERROR(MID($V25,FIND(CHAR(160),SUBSTITUTE($V25,\"{\",CHAR(160),GP$1)),FIND(CHAR(160),SUBSTITUTE($V25,\"}\",CHAR(160),GP$1))-FIND(CHAR(160),SUBSTITUTE($V25,\"{\",CHAR(160),GP$1))+1),\"\")","v":"{Measure:Quantity}"},{"$f":"IFERROR(MID($W25,FIND(CHAR(160),SUBSTITUTE($W25,\"{\",CHAR(160),GQ$1)),FIND(CHAR(160),SUBSTITUTE($W25,\"}\",CHAR(160),GQ$1))-FIND(CHAR(160),SUBSTITUTE($W25,\"{\",CHAR(160),GQ$1))+1),\"\")","v":""},{"$f":"IFERROR(MID($W25,FIND(CHAR(160),SUBSTITUTE($W25,\"{\",CHAR(160),GR$1)),FIND(CHAR(160),SUBSTITUTE($W25,\"}\",CHAR(160),GR$1))-FIND(CHAR(160),SUBSTITUTE($W25,\"{\",CHAR(160),GR$1))+1),\"\")","v":""},{"$f":"IFERROR(MID($W25,FIND(CHAR(160),SUBSTITUTE($W25,\"{\",CHAR(160),GS$1)),FIND(CHAR(160),SUBSTITUTE($W25,\"}\",CHAR(160),GS$1))-FIND(CHAR(160),SUBSTITUTE($W25,\"{\",CHAR(160),GS$1))+1),\"\")","v":""},{"$f":"IFERROR(MID($W25,FIND(CHAR(160),SUBSTITUTE($W25,\"{\",CHAR(160),GT$1)),FIND(CHAR(160),SUBSTITUTE($W25,\"}\",CHAR(160),GT$1))-FIND(CHAR(160),SUBSTITUTE($W25,\"{\",CHAR(160),GT$1))+1),\"\")","v":""},{"$f":"IFERROR(MID($W25,FIND(CHAR(160),SUBSTITUTE($W25,\"{\",CHAR(160),GU$1)),FIND(CHAR(160),SUBSTITUTE($W25,\"}\",CHAR(160),GU$1))-FIND(CHAR(160),SUBSTITUTE($W25,\"{\",CHAR(160),GU$1))+1),\"\")","v":""},{"$f":"IFERROR(MID($W25,FIND(CHAR(160),SUBSTITUTE($W25,\"{\",CHAR(160),GV$1)),FIND(CHAR(160),SUBSTITUTE($W25,\"}\",CHAR(160),GV$1))-FIND(CHAR(160),SUBSTITUTE($W25,\"{\",CHAR(160),GV$1))+1),\"\")","v":""},{"$f":"IFERROR(MID($W25,FIND(CHAR(160),SUBSTITUTE($W25,\"{\",CHAR(160),GW$1)),FIND(CHAR(160),SUBSTITUTE($W25,\"}\",CHAR(160),GW$1))-FIND(CHAR(160),SUBSTITUTE($W25,\"{\",CHAR(160),GW$1))+1),\"\")","v":""},{"$f":"IFERROR(MID($W25,FIND(CHAR(160),SUBSTITUTE($W25,\"{\",CHAR(160),GX$1)),FIND(CHAR(160),SUBSTITUTE($W25,\"}\",CHAR(160),GX$1))-FIND(CHAR(160),SUBSTITUTE($W25,\"{\",CHAR(160),GX$1))+1),\"\")","v":""},{"$f":"IFERROR(MID($W25,FIND(CHAR(160),SUBSTITUTE($W25,\"{\",CHAR(160),GY$1)),FIND(CHAR(160),SUBSTITUTE($W25,\"}\",CHAR(160),GY$1))-FIND(CHAR(160),SUBSTITUTE($W25,\"{\",CHAR(160),GY$1))+1),\"\")","v":""},{"$f":"IFERROR(MID($W25,FIND(CHAR(160),SUBSTITUTE($W25,\"{\",CHAR(160),GZ$1)),FIND(CHAR(160),SUBSTITUTE($W25,\"}\",CHAR(160),GZ$1))-FIND(CHAR(160),SUBSTITUTE($W25,\"{\",CHAR(160),GZ$1))+1),\"\")","v":""},{"$f":"IFERROR(MID($X25,FIND(CHAR(160),SUBSTITUTE($X25,\"{\",CHAR(160),HA$1)),FIND(CHAR(160),SUBSTITUTE($X25,\"}\",CHAR(160),HA$1))-FIND(CHAR(160),SUBSTITUTE($X25,\"{\",CHAR(160),HA$1))+1),\"\")","v":""},{"$f":"IFERROR(MID($X25,FIND(CHAR(160),SUBSTITUTE($X25,\"{\",CHAR(160),HB$1)),FIND(CHAR(160),SUBSTITUTE($X25,\"}\",CHAR(160),HB$1))-FIND(CHAR(160),SUBSTITUTE($X25,\"{\",CHAR(160),HB$1))+1),\"\")","v":""},{"$f":"IFERROR(MID($X25,FIND(CHAR(160),SUBSTITUTE($X25,\"{\",CHAR(160),HC$1)),FIND(CHAR(160),SUBSTITUTE($X25,\"}\",CHAR(160),HC$1))-FIND(CHAR(160),SUBSTITUTE($X25,\"{\",CHAR(160),HC$1))+1),\"\")","v":""},{"$f":"IFERROR(MID($X25,FIND(CHAR(160),SUBSTITUTE($X25,\"{\",CHAR(160),HD$1)),FIND(CHAR(160),SUBSTITUTE($X25,\"}\",CHAR(160),HD$1))-FIND(CHAR(160),SUBSTITUTE($X25,\"{\",CHAR(160),HD$1))+1),\"\")","v":""},{"$f":"IFERROR(MID($X25,FIND(CHAR(160),SUBSTITUTE($X25,\"{\",CHAR(160),HE$1)),FIND(CHAR(160),SUBSTITUTE($X25,\"}\",CHAR(160),HE$1))-FIND(CHAR(160),SUBSTITUTE($X25,\"{\",CHAR(160),HE$1))+1),\"\")","v":""},{"$f":"IFERROR(MID($X25,FIND(CHAR(160),SUBSTITUTE($X25,\"{\",CHAR(160),HF$1)),FIND(CHAR(160),SUBSTITUTE($X25,\"}\",CHAR(160),HF$1))-FIND(CHAR(160),SUBSTITUTE($X25,\"{\",CHAR(160),HF$1))+1),\"\")","v":""},{"$f":"IFERROR(MID($X25,FIND(CHAR(160),SUBSTITUTE($X25,\"{\",CHAR(160),HG$1)),FIND(CHAR(160),SUBSTITUTE($X25,\"}\",CHAR(160),HG$1))-FIND(CHAR(160),SUBSTITUTE($X25,\"{\",CHAR(160),HG$1))+1),\"\")","v":""},{"$f":"IFERROR(MID($X25,FIND(CHAR(160),SUBSTITUTE($X25,\"{\",CHAR(160),HH$1)),FIND(CHAR(160),SUBSTITUTE($X25,\"}\",CHAR(160),HH$1))-FIND(CHAR(160),SUBSTITUTE($X25,\"{\",CHAR(160),HH$1))+1),\"\")","v":""},{"$f":"IFERROR(MID($X25,FIND(CHAR(160),SUBSTITUTE($X25,\"{\",CHAR(160),HI$1)),FIND(CHAR(160),SUBSTITUTE($X25,\"}\",CHAR(160),HI$1))-FIND(CHAR(160),SUBSTITUTE($X25,\"{\",CHAR(160),HI$1))+1),\"\")","v":""},{"$f":"IFERROR(MID($X25,FIND(CHAR(160),SUBSTITUTE($X25,\"{\",CHAR(160),HJ$1)),FIND(CHAR(160),SUBSTITUTE($X25,\"}\",CHAR(160),HJ$1))-FIND(CHAR(160),SUBSTITUTE($X25,\"{\",CHAR(160),HJ$1))+1),\"\")","v":""},{"$f":"IFERROR(MID($Y25,FIND(CHAR(160),SUBSTITUTE($Y25,\"{\",CHAR(160),HK$1)),FIND(CHAR(160),SUBSTITUTE($Y25,\"}\",CHAR(160),HK$1))-FIND(CHAR(160),SUBSTITUTE($Y25,\"{\",CHAR(160),HK$1))+1),\"\")","v":""},{"$f":"IFERROR(MID($Y25,FIND(CHAR(160),SUBSTITUTE($Y25,\"{\",CHAR(160),HL$1)),FIND(CHAR(160),SUBSTITUTE($Y25,\"}\",CHAR(160),HL$1))-FIND(CHAR(160),SUBSTITUTE($Y25,\"{\",CHAR(160),HL$1))+1),\"\")","v":""},{"$f":"IFERROR(MID($Y25,FIND(CHAR(160),SUBSTITUTE($Y25,\"{\",CHAR(160),HM$1)),FIND(CHAR(160),SUBSTITUTE($Y25,\"}\",CHAR(160),HM$1))-FIND(CHAR(160),SUBSTITUTE($Y25,\"{\",CHAR(160),HM$1))+1),\"\")","v":""},{"$f":"IFERROR(MID($Y25,FIND(CHAR(160),SUBSTITUTE($Y25,\"{\",CHAR(160),HN$1)),FIND(CHAR(160),SUBSTITUTE($Y25,\"}\",CHAR(160),HN$1))-FIND(CHAR(160),SUBSTITUTE($Y25,\"{\",CHAR(160),HN$1))+1),\"\")","v":""},{"$f":"IFERROR(MID($Y25,FIND(CHAR(160),SUBSTITUTE($Y25,\"{\",CHAR(160),HO$1)),FIND(CHAR(160),SUBSTITUTE($Y25,\"}\",CHAR(160),HO$1))-FIND(CHAR(160),SUBSTITUTE($Y25,\"{\",CHAR(160),HO$1))+1),\"\")","v":""},{"$f":"IFERROR(MID($Y25,FIND(CHAR(160),SUBSTITUTE($Y25,\"{\",CHAR(160),HP$1)),FIND(CHAR(160),SUBSTITUTE($Y25,\"}\",CHAR(160),HP$1))-FIND(CHAR(160),SUBSTITUTE($Y25,\"{\",CHAR(160),HP$1))+1),\"\")","v":""},{"$f":"IFERROR(MID($Y25,FIND(CHAR(160),SUBSTITUTE($Y25,\"{\",CHAR(160),HQ$1)),FIND(CHAR(160),SUBSTITUTE($Y25,\"}\",CHAR(160),HQ$1))-FIND(CHAR(160),SUBSTITUTE($Y25,\"{\",CHAR(160),HQ$1))+1),\"\")","v":""},{"$f":"IFERROR(MID($Y25,FIND(CHAR(160),SUBSTITUTE($Y25,\"{\",CHAR(160),HR$1)),FIND(CHAR(160),SUBSTITUTE($Y25,\"}\",CHAR(160),HR$1))-FIND(CHAR(160),SUBSTITUTE($Y25,\"{\",CHAR(160),HR$1))+1),\"\")","v":""},{"$f":"IFERROR(MID($Y25,FIND(CHAR(160),SUBSTITUTE($Y25,\"{\",CHAR(160),HS$1)),FIND(CHAR(160),SUBSTITUTE($Y25,\"}\",CHAR(160),HS$1))-FIND(CHAR(160),SUBSTITUTE($Y25,\"{\",CHAR(160),HS$1))+1),\"\")","v":""},{"$f":"IFERROR(MID($Y25,FIND(CHAR(160),SUBSTITUTE($Y25,\"{\",CHAR(160),HT$1)),FIND(CHAR(160),SUBSTITUTE($Y25,\"}\",CHAR(160),HT$1))-FIND(CHAR(160),SUBSTITUTE($Y25,\"{\",CHAR(160),HT$1))+1),\"\")","v":""},{"$f":"IFERROR(MID($Z25,FIND(CHAR(160),SUBSTITUTE($Z25,\"{\",CHAR(160),HU$1)),FIND(CHAR(160),SUBSTITUTE($Z25,\"}\",CHAR(160),HU$1))-FIND(CHAR(160),SUBSTITUTE($Z25,\"{\",CHAR(160),HU$1))+1),\"\")","v":""},{"$f":"IFERROR(MID($Z25,FIND(CHAR(160),SUBSTITUTE($Z25,\"{\",CHAR(160),HV$1)),FIND(CHAR(160),SUBSTITUTE($Z25,\"}\",CHAR(160),HV$1))-FIND(CHAR(160),SUBSTITUTE($Z25,\"{\",CHAR(160),HV$1))+1),\"\")","v":""},{"$f":"IFERROR(MID($Z25,FIND(CHAR(160),SUBSTITUTE($Z25,\"{\",CHAR(160),HW$1)),FIND(CHAR(160),SUBSTITUTE($Z25,\"}\",CHAR(160),HW$1))-FIND(CHAR(160),SUBSTITUTE($Z25,\"{\",CHAR(160),HW$1))+1),\"\")","v":""},{"$f":"IFERROR(MID($Z25,FIND(CHAR(160),SUBSTITUTE($Z25,\"{\",CHAR(160),HX$1)),FIND(CHAR(160),SUBSTITUTE($Z25,\"}\",CHAR(160),HX$1))-FIND(CHAR(160),SUBSTITUTE($Z25,\"{\",CHAR(160),HX$1))+1),\"\")","v":""},{"$f":"IFERROR(MID($Z25,FIND(CHAR(160),SUBSTITUTE($Z25,\"{\",CHAR(160),HY$1)),FIND(CHAR(160),SUBSTITUTE($Z25,\"}\",CHAR(160),HY$1))-FIND(CHAR(160),SUBSTITUTE($Z25,\"{\",CHAR(160),HY$1))+1),\"\")","v":""},{"$f":"IFERROR(MID($Z25,FIND(CHAR(160),SUBSTITUTE($Z25,\"{\",CHAR(160),HZ$1)),FIND(CHAR(160),SUBSTITUTE($Z25,\"}\",CHAR(160),HZ$1))-FIND(CHAR(160),SUBSTITUTE($Z25,\"{\",CHAR(160),HZ$1))+1),\"\")","v":""},{"$f":"IFERROR(MID($Z25,FIND(CHAR(160),SUBSTITUTE($Z25,\"{\",CHAR(160),IA$1)),FIND(CHAR(160),SUBSTITUTE($Z25,\"}\",CHAR(160),IA$1))-FIND(CHAR(160),SUBSTITUTE($Z25,\"{\",CHAR(160),IA$1))+1),\"\")","v":""},{"$f":"IFERROR(MID($Z25,FIND(CHAR(160),SUBSTITUTE($Z25,\"{\",CHAR(160),IB$1)),FIND(CHAR(160),SUBSTITUTE($Z25,\"}\",CHAR(160),IB$1))-FIND(CHAR(160),SUBSTITUTE($Z25,\"{\",CHAR(160),IB$1))+1),\"\")","v":""},{"$f":"IFERROR(MID($Z25,FIND(CHAR(160),SUBSTITUTE($Z25,\"{\",CHAR(160),IC$1)),FIND(CHAR(160),SUBSTITUTE($Z25,\"}\",CHAR(160),IC$1))-FIND(CHAR(160),SUBSTITUTE($Z25,\"{\",CHAR(160),IC$1))+1),\"\")","v":""},{"$f":"IFERROR(MID($Z25,FIND(CHAR(160),SUBSTITUTE($Z25,\"{\",CHAR(160),ID$1)),FIND(CHAR(160),SUBSTITUTE($Z25,\"}\",CHAR(160),ID$1))-FIND(CHAR(160),SUBSTITUTE($Z25,\"{\",CHAR(160),ID$1))+1),\"\")","v":""},{"$f":"IFERROR(MID($AA25,FIND(CHAR(160),SUBSTITUTE($AA25,\"{\",CHAR(160),IE$1)),FIND(CHAR(160),SUBSTITUTE($AA25,\"}\",CHAR(160),IE$1))-FIND(CHAR(160),SUBSTITUTE($AA25,\"{\",CHAR(160),IE$1))+1),\"\")","v":""},{"$f":"IFERROR(MID($AA25,FIND(CHAR(160),SUBSTITUTE($AA25,\"{\",CHAR(160),IF$1)),FIND(CHAR(160),SUBSTITUTE($AA25,\"}\",CHAR(160),IF$1))-FIND(CHAR(160),SUBSTITUTE($AA25,\"{\",CHAR(160),IF$1))+1),\"\")","v":""},{"$f":"IFERROR(MID($AA25,FIND(CHAR(160),SUBSTITUTE($AA25,\"{\",CHAR(160),IG$1)),FIND(CHAR(160),SUBSTITUTE($AA25,\"}\",CHAR(160),IG$1))-FIND(CHAR(160),SUBSTITUTE($AA25,\"{\",CHAR(160),IG$1))+1),\"\")","v":""},{"$f":"IFERROR(MID($AA25,FIND(CHAR(160),SUBSTITUTE($AA25,\"{\",CHAR(160),IH$1)),FIND(CHAR(160),SUBSTITUTE($AA25,\"}\",CHAR(160),IH$1))-FIND(CHAR(160),SUBSTITUTE($AA25,\"{\",CHAR(160),IH$1))+1),\"\")","v":""},{"$f":"IFERROR(MID($AA25,FIND(CHAR(160),SUBSTITUTE($AA25,\"{\",CHAR(160),II$1)),FIND(CHAR(160),SUBSTITUTE($AA25,\"}\",CHAR(160),II$1))-FIND(CHAR(160),SUBSTITUTE($AA25,\"{\",CHAR(160),II$1))+1),\"\")","v":""},{"$f":"IFERROR(MID($AA25,FIND(CHAR(160),SUBSTITUTE($AA25,\"{\",CHAR(160),IJ$1)),FIND(CHAR(160),SUBSTITUTE($AA25,\"}\",CHAR(160),IJ$1))-FIND(CHAR(160),SUBSTITUTE($AA25,\"{\",CHAR(160),IJ$1))+1),\"\")","v":""},{"$f":"IFERROR(MID($AA25,FIND(CHAR(160),SUBSTITUTE($AA25,\"{\",CHAR(160),IK$1)),FIND(CHAR(160),SUBSTITUTE($AA25,\"}\",CHAR(160),IK$1))-FIND(CHAR(160),SUBSTITUTE($AA25,\"{\",CHAR(160),IK$1))+1),\"\")","v":""},{"$f":"IFERROR(MID($AA25,FIND(CHAR(160),SUBSTITUTE($AA25,\"{\",CHAR(160),IL$1)),FIND(CHAR(160),SUBSTITUTE($AA25,\"}\",CHAR(160),IL$1))-FIND(CHAR(160),SUBSTITUTE($AA25,\"{\",CHAR(160),IL$1))+1),\"\")","v":""},{"$f":"IFERROR(MID($AA25,FIND(CHAR(160),SUBSTITUTE($AA25,\"{\",CHAR(160),IM$1)),FIND(CHAR(160),SUBSTITUTE($AA25,\"}\",CHAR(160),IM$1))-FIND(CHAR(160),SUBSTITUTE($AA25,\"{\",CHAR(160),IM$1))+1),\"\")","v":""},{"$f":"IFERROR(MID($AA25,FIND(CHAR(160),SUBSTITUTE($AA25,\"{\",CHAR(160),IN$1)),FIND(CHAR(160),SUBSTITUTE($AA25,\"}\",CHAR(160),IN$1))-FIND(CHAR(160),SUBSTITUTE($AA25,\"{\",CHAR(160),IN$1))+1),\"\")","v":""},{"$f":"IFERROR(MID($AB25,FIND(CHAR(160),SUBSTITUTE($AB25,\"{\",CHAR(160),IO$1)),FIND(CHAR(160),SUBSTITUTE($AB25,\"}\",CHAR(160),IO$1))-FIND(CHAR(160),SUBSTITUTE($AB25,\"{\",CHAR(160),IO$1))+1),\"\")","v":""},{"$f":"IFERROR(MID($AB25,FIND(CHAR(160),SUBSTITUTE($AB25,\"{\",CHAR(160),IP$1)),FIND(CHAR(160),SUBSTITUTE($AB25,\"}\",CHAR(160),IP$1))-FIND(CHAR(160),SUBSTITUTE($AB25,\"{\",CHAR(160),IP$1))+1),\"\")","v":""},{"$f":"IFERROR(MID($AB25,FIND(CHAR(160),SUBSTITUTE($AB25,\"{\",CHAR(160),IQ$1)),FIND(CHAR(160),SUBSTITUTE($AB25,\"}\",CHAR(160),IQ$1))-FIND(CHAR(160),SUBSTITUTE($AB25,\"{\",CHAR(160),IQ$1))+1),\"\")","v":""},{"$f":"IFERROR(MID($AB25,FIND(CHAR(160),SUBSTITUTE($AB25,\"{\",CHAR(160),IR$1)),FIND(CHAR(160),SUBSTITUTE($AB25,\"}\",CHAR(160),IR$1))-FIND(CHAR(160),SUBSTITUTE($AB25,\"{\",CHAR(160),IR$1))+1),\"\")","v":""},{"$f":"IFERROR(MID($AB25,FIND(CHAR(160),SUBSTITUTE($AB25,\"{\",CHAR(160),IS$1)),FIND(CHAR(160),SUBSTITUTE($AB25,\"}\",CHAR(160),IS$1))-FIND(CHAR(160),SUBSTITUTE($AB25,\"{\",CHAR(160),IS$1))+1),\"\")","v":""},{"$f":"IFERROR(MID($AB25,FIND(CHAR(160),SUBSTITUTE($AB25,\"{\",CHAR(160),IT$1)),FIND(CHAR(160),SUBSTITUTE($AB25,\"}\",CHAR(160),IT$1))-FIND(CHAR(160),SUBSTITUTE($AB25,\"{\",CHAR(160),IT$1))+1),\"\")","v":""},{"$f":"IFERROR(MID($AB25,FIND(CHAR(160),SUBSTITUTE($AB25,\"{\",CHAR(160),IU$1)),FIND(CHAR(160),SUBSTITUTE($AB25,\"}\",CHAR(160),IU$1))-FIND(CHAR(160),SUBSTITUTE($AB25,\"{\",CHAR(160),IU$1))+1),\"\")","v":""},{"$f":"IFERROR(MID($AB25,FIND(CHAR(160),SUBSTITUTE($AB25,\"{\",CHAR(160),IV$1)),FIND(CHAR(160),SUBSTITUTE($AB25,\"}\",CHAR(160),IV$1))-FIND(CHAR(160),SUBSTITUTE($AB25,\"{\",CHAR(160),IV$1))+1),\"\")","v":""},{"$f":"IFERROR(MID($AB25,FIND(CHAR(160),SUBSTITUTE($AB25,\"{\",CHAR(160),IW$1)),FIND(CHAR(160),SUBSTITUTE($AB25,\"}\",CHAR(160),IW$1))-FIND(CHAR(160),SUBSTITUTE($AB25,\"{\",CHAR(160),IW$1))+1),\"\")","v":""},{"$f":"IFERROR(MID($AB25,FIND(CHAR(160),SUBSTITUTE($AB25,\"{\",CHAR(160),IX$1)),FIND(CHAR(160),SUBSTITUTE($AB25,\"}\",CHAR(160),IX$1))-FIND(CHAR(160),SUBSTITUTE($AB25,\"{\",CHAR(160),IX$1))+1),\"\")","v":""},null,{"$f":"10-COUNTIF(DU25:ED25,\"\")","v":1}]
["Arrearage Management Program","Low Flow Kitchen Aerator Direct Install","LILFKA","2021-07-01","2022-06-30","Per Measure",1.77,0,"Per Measure",1.77,0,"2021-07-01","2022-06-30","Calculated","{Measure:Quantity}*if({Measure:Quantity}=0,0,283)",null,null,null,null,null,"{Measure:Quantity}*if({Measure:Quantity}=0,0,0.043)","{Measure:Quantity}*if({Measure:Quantity}=0,0,0.034)",null,null,null,null,null,"if({Measure:Quantity}=0,0,{Measure:Quantity}*2696)","2021-07-01","2022-06-30",10,1.2E-2,8.0000000000000002E-3,0.39700000000000002,0.26800000000000002,0.20300000000000001,0.13100000000000001,0.85,1,1,0,0,null,{"$f":"DU26","v":"{Measure:Quantity}"},1,{"$f":"DV26","v":""},null,{"$f":"DW26","v":""},null,{"$f":"DX26","v":""},null,{"$f":"DY26","v":""},null,{"$f":"DZ26","v":""},null,{"$f":"EA26","v":""},null,{"$f":"EB26","v":""},null,{"$f":"EC26","v":""},null,{"$f":"ED26","v":""},null,{"$f":"AS26*IF(AS26=0,0,283)","v":283},0,0,0,0,0,{"$f":"AS26*IF(AS26=0,0,0.043)","v":4.2999999999999997E-2},{"$f":"AS26*IF(AS26=0,0,0.034)","v":3.4000000000000002E-2},0,0,0,0,0,{"$f":"IF(AS26=0,0,AS26*2696)","v":2696},null,"Res","Default DR",{"$f":"Benefits(BL26,BR26,BS26,BT26,BU26,BV26,BW26,BX26,BY26,BZ26,AE26,AH26,AI26,AJ26,AK26,AL26,AM26,AN26,AO26,AP26,CA26,CB26)","v":236.95500985875617},136.04434368443876,0,0,0,0,0,160.06822300148838,0,{"$f":"SUMPRODUCT(CC26:CK26,--(CC26:CK26>0))","v":533.06757654468333},{"$f":"-SUMPRODUCT(CC26:CK26,--(CC26:CK26<0))","v":0},null,{"$f":"1.77","v":1.77},null,null,{"$f":"CM26+CO26","v":1.77},{"$f":"IF(NetOrGross=\"Net\",(1-AO26+AP26),1)","v":1},{"$f":"(SUMPRODUCT(CC26:CJ26,--(CC26:CJ26>0))+CN26)*CS26/((-SUMPRODUCT(CC26:CJ26,--(CC26:CJ26<0))+MAX(CO26,CV26)+CP26+CQ26)*CS26+IF(FRIncentives=\"Yes\",CV26*(1-CS26),0))","v":301.16812234162899},1,{"$f":"1.77","v":1.77},null,"Electric","y",null,{"$f":"IF(F26=\"Manual Entry\",\"Manual\",IF(G26=\"\",0,\"X=\"&SUBSTITUTE(SUBSTITUTE(SUBSTITUTE(SUBSTITUTE(SUBSTITUTE(SUBSTITUTE(SUBSTITUTE(SUBSTITUTE(SUBSTITUTE(SUBSTITUTE(SUBSTITUTE(SUBSTITUTE(G26,$ED26,$ED$2&ROW($ED26)),$EC26,$EC$2&ROW($EC26)),$EB26,$EB$2&ROW($EB26)),$EA26,$EA$2&ROW($EA26)),$DZ26,$DZ$2&ROW($DZ26)),$DY26,$DY$2&ROW($DY26)),$DX26,$DX$2&ROW($DX26)),$DW26,$DW$2&ROW($DW26)),$DV26,$DV$2&ROW($DV26)),$DU26,$DU$2&ROW($DU26)),$DT26,$DT$2&ROW($DT26)),$DS26,$DS$2&ROW($DS26))))","v":"X=1.77"},{"$f":"IF(I26=\"Manual Entry\",\"Manual\",IF(J26=\"\",0,\"X=\"&SUBSTITUTE(SUBSTITUTE(SUBSTITUTE(SUBSTITUTE(SUBSTITUTE(SUBSTITUTE(SUBSTITUTE(SUBSTITUTE(SUBSTITUTE(SUBSTITUTE(SUBSTITUTE(SUBSTITUTE(J26,$ED26,$ED$2&ROW($ED26)),$EC26,$EC$2&ROW($EC26)),$EB26,$EB$2&ROW($EB26)),$EA26,$EA$2&ROW($EA26)),$DZ26,$DZ$2&ROW($DZ26)),$DY26,$DY$2&ROW($DY26)),$DX26,$DX$2&ROW($DX26)),$DW26,$DW$2&ROW($DW26)),$DV26,$DV$2&ROW($DV26)),$DU26,$DU$2&ROW($DU26)),$DT26,$DT$2&ROW($DT26)),$DS26,$DS$2&ROW($DS26))))","v":"X=1.77"},{"$f":"IF(O26=\"\",0,\"X=\"&SUBSTITUTE(SUBSTITUTE(SUBSTITUTE(SUBSTITUTE(SUBSTITUTE(SUBSTITUTE(SUBSTITUTE(SUBSTITUTE(SUBSTITUTE(SUBSTITUTE(SUBSTITUTE(SUBSTITUTE(O26,$ED26,$ED$2&ROW($ED26)),$EC26,$EC$2&ROW($EC26)),$EB26,$EB$2&ROW($EB26)),$EA26,$EA$2&ROW($EA26)),$DZ26,$DZ$2&ROW($DZ26)),$DY26,$DY$2&ROW($DY26)),$DX26,$DX$2&ROW($DX26)),$DW26,$DW$2&ROW($DW26)),$DV26,$DV$2&ROW($DV26)),$DU26,$DU$2&ROW($DU26)),$DT26,$DT$2&ROW($DT26)),$DS26,$DS$2&ROW($DS26)))","v":"X=AS26*if(AS26=0,0,283)"},{"$f":"IF(P26=\"\",0,\"X=\"&SUBSTITUTE(SUBSTITUTE(SUBSTITUTE(SUBSTITUTE(SUBSTITUTE(SUBSTITUTE(SUBSTITUTE(SUBSTITUTE(SUBSTITUTE(SUBSTITUTE(SUBSTITUTE(SUBSTITUTE(P26,$ED26,$ED$2&ROW($ED26)),$EC26,$EC$2&ROW($EC26)),$EB26,$EB$2&ROW($EB26)),$EA26,$EA$2&ROW($EA26)),$DZ26,$DZ$2&ROW($DZ26)),$DY26,$DY$2&ROW($DY26)),$DX26,$DX$2&ROW($DX26)),$DW26,$DW$2&ROW($DW26)),$DV26,$DV$2&ROW($DV26)),$DU26,$DU$2&ROW($DU26)),$DT26,$DT$2&ROW($DT26)),$DS26,$DS$2&ROW($DS26)))","v":0},{"$f":"IF(Q26=\"\",0,\"X=\"&SUBSTITUTE(SUBSTITUTE(SUBSTITUTE(SUBSTITUTE(SUBSTITUTE(SUBSTITUTE(SUBSTITUTE(SUBSTITUTE(SUBSTITUTE(SUBSTITUTE(SUBSTITUTE(SUBSTITUTE(Q26,$ED26,$ED$2&ROW($ED26)),$EC26,$EC$2&ROW($EC26)),$EB26,$EB$2&ROW($EB26)),$EA26,$EA$2&ROW($EA26)),$DZ26,$DZ$2&ROW($DZ26)),$DY26,$DY$2&ROW($DY26)),$DX26,$DX$2&ROW($DX26)),$DW26,$DW$2&ROW($DW26)),$DV26,$DV$2&ROW($DV26)),$DU26,$DU$2&ROW($DU26)),$DT26,$DT$2&ROW($DT26)),$DS26,$DS$2&ROW($DS26)))","v":0},{"$f":"IF(R26=\"\",0,\"X=\"&SUBSTITUTE(SUBSTITUTE(SUBSTITUTE(SUBSTITUTE(SUBSTITUTE(SUBSTITUTE(SUBSTITUTE(SUBSTITUTE(SUBSTITUTE(SUBSTITUTE(SUBSTITUTE(SUBSTITUTE(R26,$ED26,$ED$2&ROW($ED26)),$EC26,$EC$2&ROW($EC26)),$EB26,$EB$2&ROW($EB26)),$EA26,$EA$2&ROW($EA26)),$DZ26,$DZ$2&ROW($DZ26)),$DY26,$DY$2&ROW($DY26)),$DX26,$DX$2&ROW($DX26)),$DW26,$DW$2&ROW($DW26)),$DV26,$DV$2&ROW($DV26)),$DU26,$DU$2&ROW($DU26)),$DT26,$DT$2&ROW($DT26)),$DS26,$DS$2&ROW($DS26)))","v":0},{"$f":"IF(S26=\"\",0,\"X=\"&SUBSTITUTE(SUBSTITUTE(SUBSTITUTE(SUBSTITUTE(SUBSTITUTE(SUBSTITUTE(SUBSTITUTE(SUBSTITUTE(SUBSTITUTE(SUBSTITUTE(SUBSTITUTE(SUBSTITUTE(S26,$ED26,$ED$2&ROW($ED26)),$EC26,$EC$2&ROW($EC26)),$EB26,$EB$2&ROW($EB26)),$EA26,$EA$2&ROW($EA26)),$DZ26,$DZ$2&ROW($DZ26)),$DY26,$DY$2&ROW($DY26)),$DX26,$DX$2&ROW($DX26)),$DW26,$DW$2&ROW($DW26)),$DV26,$DV$2&ROW($DV26)),$DU26,$DU$2&ROW($DU26)),$DT26,$DT$2&ROW($DT26)),$DS26,$DS$2&ROW($DS26)))","v":0},{"$f":"IF(T26=\"\",0,\"X=\"&SUBSTITUTE(SUBSTITUTE(SUBSTITUTE(SUBSTITUTE(SUBSTITUTE(SUBSTITUTE(SUBSTITUTE(SUBSTITUTE(SUBSTITUTE(SUBSTITUTE(SUBSTITUTE(SUBSTITUTE(T26,$ED26,$ED$2&ROW($ED26)),$EC26,$EC$2&ROW($EC26)),$EB26,$EB$2&ROW($EB26)),$EA26,$EA$2&ROW($EA26)),$DZ26,$DZ$2&ROW($DZ26)),$DY26,$DY$2&ROW($DY26)),$DX26,$DX$2&ROW($DX26)),$DW26,$DW$2&ROW($DW26)),$DV26,$DV$2&ROW($DV26)),$DU26,$DU$2&ROW($DU26)),$DT26,$DT$2&ROW($DT26)),$DS26,$DS$2&ROW($DS26)))","v":0},{"$f":"IF(U26=\"\",0,\"X=\"&SUBSTITUTE(SUBSTITUTE(SUBSTITUTE(SUBSTITUTE(SUBSTITUTE(SUBSTITUTE(SUBSTITUTE(SUBSTITUTE(SUBSTITUTE(SUBSTITUTE(SUBSTITUTE(SUBSTITUTE(U26,$ED26,$ED$2&ROW($ED26)),$EC26,$EC$2&ROW($EC26)),$EB26,$EB$2&ROW($EB26)),$EA26,$EA$2&ROW($EA26)),$DZ26,$DZ$2&ROW($DZ26)),$DY26,$DY$2&ROW($DY26)),$DX26,$DX$2&ROW($DX26)),$DW26,$DW$2&ROW($DW26)),$DV26,$DV$2&ROW($DV26)),$DU26,$DU$2&ROW($DU26)),$DT26,$DT$2&ROW($DT26)),$DS26,$DS$2&ROW($DS26)))","v":"X=AS26*if(AS26=0,0,0.043)"},{"$f":"IF(V26=\"\",0,\"X=\"&SUBSTITUTE(SUBSTITUTE(SUBSTITUTE(SUBSTITUTE(SUBSTITUTE(SUBSTITUTE(SUBSTITUTE(SUBSTITUTE(SUBSTITUTE(SUBSTITUTE(SUBSTITUTE(SUBSTITUTE(V26,$ED26,$ED$2&ROW($ED26)),$EC26,$EC$2&ROW($EC26)),$EB26,$EB$2&ROW($EB26)),$EA26,$EA$2&ROW($EA26)),$DZ26,$DZ$2&ROW($DZ26)),$DY26,$DY$2&ROW($DY26)),$DX26,$DX$2&ROW($DX26)),$DW26,$DW$2&ROW($DW26)),$DV26,$DV$2&ROW($DV26)),$DU26,$DU$2&ROW($DU26)),$DT26,$DT$2&ROW($DT26)),$DS26,$DS$2&ROW($DS26)))","v":"X=AS26*if(AS26=0,0,0.034)"},{"$f":"IF(W26=\"\",0,\"X=\"&SUBSTITUTE(SUBSTITUTE(SUBSTITUTE(SUBSTITUTE(SUBSTITUTE(SUBSTITUTE(SUBSTITUTE(SUBSTITUTE(SUBSTITUTE(SUBSTITUTE(SUBSTITUTE(SUBSTITUTE(W26,$ED26,$ED$2&ROW($ED26)),$EC26,$EC$2&ROW($EC26)),$EB26,$EB$2&ROW($EB26)),$EA26,$EA$2&ROW($EA26)),$DZ26,$DZ$2&ROW($DZ26)),$DY26,$DY$2&ROW($DY26)),$DX26,$DX$2&ROW($DX26)),$DW26,$DW$2&ROW($DW26)),$DV26,$DV$2&ROW($DV26)),$DU26,$DU$2&ROW($DU26)),$DT26,$DT$2&ROW($DT26)),$DS26,$DS$2&ROW($DS26)))","v":0},{"$f":"IF(X26=\"\",0,\"X=\"&SUBSTITUTE(SUBSTITUTE(SUBSTITUTE(SUBSTITUTE(SUBSTITUTE(SUBSTITUTE(SUBSTITUTE(SUBSTITUTE(SUBSTITUTE(SUBSTITUTE(SUBSTITUTE(SUBSTITUTE(X26,$ED26,$ED$2&ROW($ED26)),$EC26,$EC$2&ROW($EC26)),$EB26,$EB$2&ROW($EB26)),$EA26,$EA$2&ROW($EA26)),$DZ26,$DZ$2&ROW($DZ26)),$DY26,$DY$2&ROW($DY26)),$DX26,$DX$2&ROW($DX26)),$DW26,$DW$2&ROW($DW26)),$DV26,$DV$2&ROW($DV26)),$DU26,$DU$2&ROW($DU26)),$DT26,$DT$2&ROW($DT26)),$DS26,$DS$2&ROW($DS26)))","v":0},{"$f":"IF(Y26=\"\",0,\"X=\"&SUBSTITUTE(SUBSTITUTE(SUBSTITUTE(SUBSTITUTE(SUBSTITUTE(SUBSTITUTE(SUBSTITUTE(SUBSTITUTE(SUBSTITUTE(SUBSTITUTE(SUBSTITUTE(SUBSTITUTE(Y26,$ED26,$ED$2&ROW($ED26)),$EC26,$EC$2&ROW($EC26)),$EB26,$EB$2&ROW($EB26)),$EA26,$EA$2&ROW($EA26)),$DZ26,$DZ$2&ROW($DZ26)),$DY26,$DY$2&ROW($DY26)),$DX26,$DX$2&ROW($DX26)),$DW26,$DW$2&ROW($DW26)),$DV26,$DV$2&ROW($DV26)),$DU26,$DU$2&ROW($DU26)),$DT26,$DT$2&ROW($DT26)),$DS26,$DS$2&ROW($DS26)))","v":0},{"$f":"IF(Z26=\"\",0,\"X=\"&SUBSTITUTE(SUBSTITUTE(SUBSTITUTE(SUBSTITUTE(SUBSTITUTE(SUBSTITUTE(SUBSTITUTE(SUBSTITUTE(SUBSTITUTE(SUBSTITUTE(SUBSTITUTE(SUBSTITUTE(Z26,$ED26,$ED$2&ROW($ED26)),$EC26,$EC$2&ROW($EC26)),$EB26,$EB$2&ROW($EB26)),$EA26,$EA$2&ROW($EA26)),$DZ26,$DZ$2&ROW($DZ26)),$DY26,$DY$2&ROW($DY26)),$DX26,$DX$2&ROW($DX26)),$DW26,$DW$2&ROW($DW26)),$DV26,$DV$2&ROW($DV26)),$DU26,$DU$2&ROW($DU26)),$DT26,$DT$2&ROW($DT26)),$DS26,$DS$2&ROW($DS26)))","v":0},{"$f":"IF(AA26=\"\",0,\"X=\"&SUBSTITUTE(SUBSTITUTE(SUBSTITUTE(SUBSTITUTE(SUBSTITUTE(SUBSTITUTE(SUBSTITUTE(SUBSTITUTE(SUBSTITUTE(SUBSTITUTE(SUBSTITUTE(SUBSTITUTE(AA26,$ED26,$ED$2&ROW($ED26)),$EC26,$EC$2&ROW($EC26)),$EB26,$EB$2&ROW($EB26)),$EA26,$EA$2&ROW($EA26)),$DZ26,$DZ$2&ROW($DZ26)),$DY26,$DY$2&ROW($DY26)),$DX26,$DX$2&ROW($DX26)),$DW26,$DW$2&ROW($DW26)),$DV26,$DV$2&ROW($DV26)),$DU26,$DU$2&ROW($DU26)),$DT26,$DT$2&ROW($DT26)),$DS26,$DS$2&ROW($DS26)))","v":0},{"$f":"IF(AB26=\"\",0,\"X=\"&SUBSTITUTE(SUBSTITUTE(SUBSTITUTE(SUBSTITUTE(SUBSTITUTE(SUBSTITUTE(SUBSTITUTE(SUBSTITUTE(SUBSTITUTE(SUBSTITUTE(SUBSTITUTE(SUBSTITUTE(AB26,$ED26,$ED$2&ROW($ED26)),$EC26,$EC$2&ROW($EC26)),$EB26,$EB$2&ROW($EB26)),$EA26,$EA$2&ROW($EA26)),$DZ26,$DZ$2&ROW($DZ26)),$DY26,$DY$2&ROW($DY26)),$DX26,$DX$2&ROW($DX26)),$DW26,$DW$2&ROW($DW26)),$DV26,$DV$2&ROW($DV26)),$DU26,$DU$2&ROW($DU26)),$DT26,$DT$2&ROW($DT26)),$DS26,$DS$2&ROW($DS26)))","v":"X=if(AS26=0,0,AS26*2696)"},null,null,"{Factor:WinterCF}","{Factor:SummerCF}",{"$f":"IFERROR(INDEX($EG26:$IV26,MATCH(0,COUNTIF($DR26:DT26,$EG26:$IV26),0)),\"\")","v":"{Measure:Quantity}"},{"$f":"IFERROR(INDEX($EG26:$IV26,MATCH(0,COUNTIF($DR26:DU26,$EG26:$IV26),0)),\"\")","v":""},{"$f":"IFERROR(INDEX($EG26:$IV26,MATCH(0,COUNTIF($DR26:DV26,$EG26:$IV26),0)),\"\")","v":""},{"$f":"IFERROR(INDEX($EG26:$IV26,MATCH(0,COUNTIF($DR26:DW26,$EG26:$IV26),0)),\"\")","v":""},{"$f":"IFERROR(INDEX($EG26:$IV26,MATCH(0,COUNTIF($DR26:DX26,$EG26:$IV26),0)),\"\")","v":""},{"$f":"IFERROR(INDEX($EG26:$IV26,MATCH(0,COUNTIF($DR26:DY26,$EG26:$IV26),0)),\"\")","v":""},{"$f":"IFERROR(INDEX($EG26:$IV26,MATCH(0,COUNTIF($DR26:DZ26,$EG26:$IV26),0)),\"\")","v":""},{"$f":"IFERROR(INDEX($EG26:$IV26,MATCH(0,COUNTIF($DR26:EA26,$EG26:$IV26),0)),\"\")","v":""},{"$f":"IFERROR(INDEX($EG26:$IV26,MATCH(0,COUNTIF($DR26:EB26,$EG26:$IV26),0)),\"\")","v":""},{"$f":"IFERROR(INDEX($EG26:$IV26,MATCH(0,COUNTIF($DR26:EC26,$EG26:$IV26),0)),\"\")","v":""},null,null,{"$f":"IFERROR(MID($G26,FIND(CHAR(160),SUBSTITUTE($G26,\"{\",CHAR(160),EG$1)),FIND(CHAR(160),SUBSTITUTE($G26,\"}\",CHAR(160),EG$1))-FIND(CHAR(160),SUBSTITUTE($G26,\"{\",CHAR(160),EG$1))+1),\"\")","v":""},{"$f":"IFERROR(MID($G26,FIND(CHAR(160),SUBSTITUTE($G26,\"{\",CHAR(160),EH$1)),FIND(CHAR(160),SUBSTITUTE($G26,\"}\",CHAR(160),EH$1))-FIND(CHAR(160),SUBSTITUTE($G26,\"{\",CHAR(160),EH$1))+1),\"\")","v":""},{"$f":"IFERROR(MID($G26,FIND(CHAR(160),SUBSTITUTE($G26,\"{\",CHAR(160),EI$1)),FIND(CHAR(160),SUBSTITUTE($G26,\"}\",CHAR(160),EI$1))-FIND(CHAR(160),SUBSTITUTE($G26,\"{\",CHAR(160),EI$1))+1),\"\")","v":""},{"$f":"IFERROR(MID($G26,FIND(CHAR(160),SUBSTITUTE($G26,\"{\",CHAR(160),EJ$1)),FIND(CHAR(160),SUBSTITUTE($G26,\"}\",CHAR(160),EJ$1))-FIND(CHAR(160),SUBSTITUTE($G26,\"{\",CHAR(160),EJ$1))+1),\"\")","v":""},{"$f":"IFERROR(MID($G26,FIND(CHAR(160),SUBSTITUTE($G26,\"{\",CHAR(160),EK$1)),FIND(CHAR(160),SUBSTITUTE($G26,\"}\",CHAR(160),EK$1))-FIND(CHAR(160),SUBSTITUTE($G26,\"{\",CHAR(160),EK$1))+1),\"\")","v":""},{"$f":"IFERROR(MID($G26,FIND(CHAR(160),SUBSTITUTE($G26,\"{\",CHAR(160),EL$1)),FIND(CHAR(160),SUBSTITUTE($G26,\"}\",CHAR(160),EL$1))-FIND(CHAR(160),SUBSTITUTE($G26,\"{\",CHAR(160),EL$1))+1),\"\")","v":""},{"$f":"IFERROR(MID($G26,FIND(CHAR(160),SUBSTITUTE($G26,\"{\",CHAR(160),EM$1)),FIND(CHAR(160),SUBSTITUTE($G26,\"}\",CHAR(160),EM$1))-FIND(CHAR(160),SUBSTITUTE($G26,\"{\",CHAR(160),EM$1))+1),\"\")","v":""},{"$f":"IFERROR(MID($G26,FIND(CHAR(160),SUBSTITUTE($G26,\"{\",CHAR(160),EN$1)),FIND(CHAR(160),SUBSTITUTE($G26,\"}\",CHAR(160),EN$1))-FIND(CHAR(160),SUBSTITUTE($G26,\"{\",CHAR(160),EN$1))+1),\"\")","v":""},{"$f":"IFERROR(MID($G26,FIND(CHAR(160),SUBSTITUTE($G26,\"{\",CHAR(160),EO$1)),FIND(CHAR(160),SUBSTITUTE($G26,\"}\",CHAR(160),EO$1))-FIND(CHAR(160),SUBSTITUTE($G26,\"{\",CHAR(160),EO$1))+1),\"\")","v":""},{"$f":"IFERROR(MID($G26,FIND(CHAR(160),SUBSTITUTE($G26,\"{\",CHAR(160),EP$1)),FIND(CHAR(160),SUBSTITUTE($G26,\"}\",CHAR(160),EP$1))-FIND(CHAR(160),SUBSTITUTE($G26,\"{\",CHAR(160),EP$1))+1),\"\")","v":""},{"$f":"IFERROR(MID($J26,FIND(CHAR(160),SUBSTITUTE($J26,\"{\",CHAR(160),EQ$1)),FIND(CHAR(160),SUBSTITUTE($J26,\"}\",CHAR(160),EQ$1))-FIND(CHAR(160),SUBSTITUTE($J26,\"{\",CHAR(160),EQ$1))+1),\"\")","v":""},{"$f":"IFERROR(MID($J26,FIND(CHAR(160),SUBSTITUTE($J26,\"{\",CHAR(160),ER$1)),FIND(CHAR(160),SUBSTITUTE($J26,\"}\",CHAR(160),ER$1))-FIND(CHAR(160),SUBSTITUTE($J26,\"{\",CHAR(160),ER$1))+1),\"\")","v":""},{"$f":"IFERROR(MID($J26,FIND(CHAR(160),SUBSTITUTE($J26,\"{\",CHAR(160),ES$1)),FIND(CHAR(160),SUBSTITUTE($J26,\"}\",CHAR(160),ES$1))-FIND(CHAR(160),SUBSTITUTE($J26,\"{\",CHAR(160),ES$1))+1),\"\")","v":""},{"$f":"IFERROR(MID($J26,FIND(CHAR(160),SUBSTITUTE($J26,\"{\",CHAR(160),ET$1)),FIND(CHAR(160),SUBSTITUTE($J26,\"}\",CHAR(160),ET$1))-FIND(CHAR(160),SUBSTITUTE($J26,\"{\",CHAR(160),ET$1))+1),\"\")","v":""},{"$f":"IFERROR(MID($J26,FIND(CHAR(160),SUBSTITUTE($J26,\"{\",CHAR(160),EU$1)),FIND(CHAR(160),SUBSTITUTE($J26,\"}\",CHAR(160),EU$1))-FIND(CHAR(160),SUBSTITUTE($J26,\"{\",CHAR(160),EU$1))+1),\"\")","v":""},{"$f":"IFERROR(MID($J26,FIND(CHAR(160),SUBSTITUTE($J26,\"{\",CHAR(160),EV$1)),FIND(CHAR(160),SUBSTITUTE($J26,\"}\",CHAR(160),EV$1))-FIND(CHAR(160),SUBSTITUTE($J26,\"{\",CHAR(160),EV$1))+1),\"\")","v":""},{"$f":"IFERROR(MID($J26,FIND(CHAR(160),SUBSTITUTE($J26,\"{\",CHAR(160),EW$1)),FIND(CHAR(160),SUBSTITUTE($J26,\"}\",CHAR(160),EW$1))-FIND(CHAR(160),SUBSTITUTE($J26,\"{\",CHAR(160),EW$1))+1),\"\")","v":""},{"$f":"IFERROR(MID($J26,FIND(CHAR(160),SUBSTITUTE($J26,\"{\",CHAR(160),EX$1)),FIND(CHAR(160),SUBSTITUTE($J26,\"}\",CHAR(160),EX$1))-FIND(CHAR(160),SUBSTITUTE($J26,\"{\",CHAR(160),EX$1))+1),\"\")","v":""},{"$f":"IFERROR(MID($J26,FIND(CHAR(160),SUBSTITUTE($J26,\"{\",CHAR(160),EY$1)),FIND(CHAR(160),SUBSTITUTE($J26,\"}\",CHAR(160),EY$1))-FIND(CHAR(160),SUBSTITUTE($J26,\"{\",CHAR(160),EY$1))+1),\"\")","v":""},{"$f":"IFERROR(MID($J26,FIND(CHAR(160),SUBSTITUTE($J26,\"{\",CHAR(160),EZ$1)),FIND(CHAR(160),SUBSTITUTE($J26,\"}\",CHAR(160),EZ$1))-FIND(CHAR(160),SUBSTITUTE($J26,\"{\",CHAR(160),EZ$1))+1),\"\")","v":""},{"$f":"IFERROR(MID($J26,FIND(CHAR(160),SUBSTITUTE($J26,\"{\",CHAR(160),FA$1)),FIND(CHAR(160),SUBSTITUTE($J26,\"}\",CHAR(160),FA$1))-FIND(CHAR(160),SUBSTITUTE($J26,\"{\",CHAR(160),FA$1))+1),\"\")","v":""},{"$f":"IFERROR(MID($J26,FIND(CHAR(160),SUBSTITUTE($J26,\"{\",CHAR(160),FB$1)),FIND(CHAR(160),SUBSTITUTE($J26,\"}\",CHAR(160),FB$1))-FIND(CHAR(160),SUBSTITUTE($J26,\"{\",CHAR(160),FB$1))+1),\"\")","v":""},{"$f":"IFERROR(MID($O26,FIND(CHAR(160),SUBSTITUTE($O26,\"{\",CHAR(160),FC$1)),FIND(CHAR(160),SUBSTITUTE($O26,\"}\",CHAR(160),FC$1))-FIND(CHAR(160),SUBSTITUTE($O26,\"{\",CHAR(160),FC$1))+1),\"\")","v":""},{"$f":"IFERROR(MID($O26,FIND(CHAR(160),SUBSTITUTE($O26,\"{\",CHAR(160),FD$1)),FIND(CHAR(160),SUBSTITUTE($O26,\"}\",CHAR(160),FD$1))-FIND(CHAR(160),SUBSTITUTE($O26,\"{\",CHAR(160),FD$1))+1),\"\")","v":""},{"$f":"IFERROR(MID($O26,FIND(CHAR(160),SUBSTITUTE($O26,\"{\",CHAR(160),FE$1)),FIND(CHAR(160),SUBSTITUTE($O26,\"}\",CHAR(160),FE$1))-FIND(CHAR(160),SUBSTITUTE($O26,\"{\",CHAR(160),FE$1))+1),\"\")","v":""},{"$f":"IFERROR(MID($O26,FIND(CHAR(160),SUBSTITUTE($O26,\"{\",CHAR(160),FF$1)),FIND(CHAR(160),SUBSTITUTE($O26,\"}\",CHAR(160),FF$1))-FIND(CHAR(160),SUBSTITUTE($O26,\"{\",CHAR(160),FF$1))+1),\"\")","v":""},{"$f":"IFERROR(MID($O26,FIND(CHAR(160),SUBSTITUTE($O26,\"{\",CHAR(160),FG$1)),FIND(CHAR(160),SUBSTITUTE($O26,\"}\",CHAR(160),FG$1))-FIND(CHAR(160),SUBSTITUTE($O26,\"{\",CHAR(160),FG$1))+1),\"\")","v":""},{"$f":"IFERROR(MID($O26,FIND(CHAR(160),SUBSTITUTE($O26,\"{\",CHAR(160),FH$1)),FIND(CHAR(160),SUBSTITUTE($O26,\"}\",CHAR(160),FH$1))-FIND(CHAR(160),SUBSTITUTE($O26,\"{\",CHAR(160),FH$1))+1),\"\")","v":""},{"$f":"IFERROR(MID($O26,FIND(CHAR(160),SUBSTITUTE($O26,\"{\",CHAR(160),FI$1)),FIND(CHAR(160),SUBSTITUTE($O26,\"}\",CHAR(160),FI$1))-FIND(CHAR(160),SUBSTITUTE($O26,\"{\",CHAR(160),FI$1))+1),\"\")","v":""},{"$f":"IFERROR(MID($O26,FIND(CHAR(160),SUBSTITUTE($O26,\"{\",CHAR(160),FJ$1)),FIND(CHAR(160),SUBSTITUTE($O26,\"}\",CHAR(160),FJ$1))-FIND(CHAR(160),SUBSTITUTE($O26,\"{\",CHAR(160),FJ$1))+1),\"\")","v":""},{"$f":"IFERROR(MID($O26,FIND(CHAR(160),SUBSTITUTE($O26,\"{\",CHAR(160),FK$1)),FIND(CHAR(160),SUBSTITUTE($O26,\"}\",CHAR(160),FK$1))-FIND(CHAR(160),SUBSTITUTE($O26,\"{\",CHAR(160),FK$1))+1),\"\")","v":"{Measure:Quantity}"},{"$f":"IFERROR(MID($O26,FIND(CHAR(160),SUBSTITUTE($O26,\"{\",CHAR(160),FL$1)),FIND(CHAR(160),SUBSTITUTE($O26,\"}\",CHAR(160),FL$1))-FIND(CHAR(160),SUBSTITUTE($O26,\"{\",CHAR(160),FL$1))+1),\"\")","v":"{Measure:Quantity}"},{"$f":"IFERROR(MID($R26,FIND(CHAR(160),SUBSTITUTE($R26,\"{\",CHAR(160),FM$1)),FIND(CHAR(160),SUBSTITUTE($R26,\"}\",CHAR(160),FM$1))-FIND(CHAR(160),SUBSTITUTE($R26,\"{\",CHAR(160),FM$1))+1),\"\")","v":""},{"$f":"IFERROR(MID($R26,FIND(CHAR(160),SUBSTITUTE($R26,\"{\",CHAR(160),FN$1)),FIND(CHAR(160),SUBSTITUTE($R26,\"}\",CHAR(160),FN$1))-FIND(CHAR(160),SUBSTITUTE($R26,\"{\",CHAR(160),FN$1))+1),\"\")","v":""},{"$f":"IFERROR(MID($R26,FIND(CHAR(160),SUBSTITUTE($R26,\"{\",CHAR(160),FO$1)),FIND(CHAR(160),SUBSTITUTE($R26,\"}\",CHAR(160),FO$1))-FIND(CHAR(160),SUBSTITUTE($R26,\"{\",CHAR(160),FO$1))+1),\"\")","v":""},{"$f":"IFERROR(MID($R26,FIND(CHAR(160),SUBSTITUTE($R26,\"{\",CHAR(160),FP$1)),FIND(CHAR(160),SUBSTITUTE($R26,\"}\",CHAR(160),FP$1))-FIND(CHAR(160),SUBSTITUTE($R26,\"{\",CHAR(160),FP$1))+1),\"\")","v":""},{"$f":"IFERROR(MID($R26,FIND(CHAR(160),SUBSTITUTE($R26,\"{\",CHAR(160),FQ$1)),FIND(CHAR(160),SUBSTITUTE($R26,\"}\",CHAR(160),FQ$1))-FIND(CHAR(160),SUBSTITUTE($R26,\"{\",CHAR(160),FQ$1))+1),\"\")","v":""},{"$f":"IFERROR(MID($R26,FIND(CHAR(160),SUBSTITUTE($R26,\"{\",CHAR(160),FR$1)),FIND(CHAR(160),SUBSTITUTE($R26,\"}\",CHAR(160),FR$1))-FIND(CHAR(160),SUBSTITUTE($R26,\"{\",CHAR(160),FR$1))+1),\"\")","v":""},{"$f":"IFERROR(MID($R26,FIND(CHAR(160),SUBSTITUTE($R26,\"{\",CHAR(160),FS$1)),FIND(CHAR(160),SUBSTITUTE($R26,\"}\",CHAR(160),FS$1))-FIND(CHAR(160),SUBSTITUTE($R26,\"{\",CHAR(160),FS$1))+1),\"\")","v":""},{"$f":"IFERROR(MID($R26,FIND(CHAR(160),SUBSTITUTE($R26,\"{\",CHAR(160),FT$1)),FIND(CHAR(160),SUBSTITUTE($R26,\"}\",CHAR(160),FT$1))-FIND(CHAR(160),SUBSTITUTE($R26,\"{\",CHAR(160),FT$1))+1),\"\")","v":""},{"$f":"IFERROR(MID($R26,FIND(CHAR(160),SUBSTITUTE($R26,\"{\",CHAR(160),FU$1)),FIND(CHAR(160),SUBSTITUTE($R26,\"}\",CHAR(160),FU$1))-FIND(CHAR(160),SUBSTITUTE($R26,\"{\",CHAR(160),FU$1))+1),\"\")","v":""},{"$f":"IFERROR(MID($R26,FIND(CHAR(160),SUBSTITUTE($R26,\"{\",CHAR(160),FV$1)),FIND(CHAR(160),SUBSTITUTE($R26,\"}\",CHAR(160),FV$1))-FIND(CHAR(160),SUBSTITUTE($R26,\"{\",CHAR(160),FV$1))+1),\"\")","v":""},{"$f":"IFERROR(MID($U26,FIND(CHAR(160),SUBSTITUTE($U26,\"{\",CHAR(160),FW$1)),FIND(CHAR(160),SUBSTITUTE($U26,\"}\",CHAR(160),FW$1))-FIND(CHAR(160),SUBSTITUTE($U26,\"{\",CHAR(160),FW$1))+1),\"\")","v":""},{"$f":"IFERROR(MID($U26,FIND(CHAR(160),SUBSTITUTE($U26,\"{\",CHAR(160),FX$1)),FIND(CHAR(160),SUBSTITUTE($U26,\"}\",CHAR(160),FX$1))-FIND(CHAR(160),SUBSTITUTE($U26,\"{\",CHAR(160),FX$1))+1),\"\")","v":""},{"$f":"IFERROR(MID($U26,FIND(CHAR(160),SUBSTITUTE($U26,\"{\",CHAR(160),FY$1)),FIND(CHAR(160),SUBSTITUTE($U26,\"}\",CHAR(160),FY$1))-FIND(CHAR(160),SUBSTITUTE($U26,\"{\",CHAR(160),FY$1))+1),\"\")","v":""},{"$f":"IFERROR(MID($U26,FIND(CHAR(160),SUBSTITUTE($U26,\"{\",CHAR(160),FZ$1)),FIND(CHAR(160),SUBSTITUTE($U26,\"}\",CHAR(160),FZ$1))-FIND(CHAR(160),SUBSTITUTE($U26,\"{\",CHAR(160),FZ$1))+1),\"\")","v":""},{"$f":"IFERROR(MID($U26,FIND(CHAR(160),SUBSTITUTE($U26,\"{\",CHAR(160),GA$1)),FIND(CHAR(160),SUBSTITUTE($U26,\"}\",CHAR(160),GA$1))-FIND(CHAR(160),SUBSTITUTE($U26,\"{\",CHAR(160),GA$1))+1),\"\")","v":""},{"$f":"IFERROR(MID($U26,FIND(CHAR(160),SUBSTITUTE($U26,\"{\",CHAR(160),GB$1)),FIND(CHAR(160),SUBSTITUTE($U26,\"}\",CHAR(160),GB$1))-FIND(CHAR(160),SUBSTITUTE($U26,\"{\",CHAR(160),GB$1))+1),\"\")","v":""},{"$f":"IFERROR(MID($U26,FIND(CHAR(160),SUBSTITUTE($U26,\"{\",CHAR(160),GC$1)),FIND(CHAR(160),SUBSTITUTE($U26,\"}\",CHAR(160),GC$1))-FIND(CHAR(160),SUBSTITUTE($U26,\"{\",CHAR(160),GC$1))+1),\"\")","v":""},{"$f":"IFERROR(MID($U26,FIND(CHAR(160),SUBSTITUTE($U26,\"{\",CHAR(160),GD$1)),FIND(CHAR(160),SUBSTITUTE($U26,\"}\",CHAR(160),GD$1))-FIND(CHAR(160),SUBSTITUTE($U26,\"{\",CHAR(160),GD$1))+1),\"\")","v":""},{"$f":"IFERROR(MID($U26,FIND(CHAR(160),SUBSTITUTE($U26,\"{\",CHAR(160),GE$1)),FIND(CHAR(160),SUBSTITUTE($U26,\"}\",CHAR(160),GE$1))-FIND(CHAR(160),SUBSTITUTE($U26,\"{\",CHAR(160),GE$1))+1),\"\")","v":"{Measure:Quantity}"},{"$f":"IFERROR(MID($U26,FIND(CHAR(160),SUBSTITUTE($U26,\"{\",CHAR(160),GF$1)),FIND(CHAR(160),SUBSTITUTE($U26,\"}\",CHAR(160),GF$1))-FIND(CHAR(160),SUBSTITUTE($U26,\"{\",CHAR(160),GF$1))+1),\"\")","v":"{Measure:Quantity}"},{"$f":"IFERROR(MID($V26,FIND(CHAR(160),SUBSTITUTE($V26,\"{\",CHAR(160),GG$1)),FIND(CHAR(160),SUBSTITUTE($V26,\"}\",CHAR(160),GG$1))-FIND(CHAR(160),SUBSTITUTE($V26,\"{\",CHAR(160),GG$1))+1),\"\")","v":""},{"$f":"IFERROR(MID($V26,FIND(CHAR(160),SUBSTITUTE($V26,\"{\",CHAR(160),GH$1)),FIND(CHAR(160),SUBSTITUTE($V26,\"}\",CHAR(160),GH$1))-FIND(CHAR(160),SUBSTITUTE($V26,\"{\",CHAR(160),GH$1))+1),\"\")","v":""},{"$f":"IFERROR(MID($V26,FIND(CHAR(160),SUBSTITUTE($V26,\"{\",CHAR(160),GI$1)),FIND(CHAR(160),SUBSTITUTE($V26,\"}\",CHAR(160),GI$1))-FIND(CHAR(160),SUBSTITUTE($V26,\"{\",CHAR(160),GI$1))+1),\"\")","v":""},{"$f":"IFERROR(MID($V26,FIND(CHAR(160),SUBSTITUTE($V26,\"{\",CHAR(160),GJ$1)),FIND(CHAR(160),SUBSTITUTE($V26,\"}\",CHAR(160),GJ$1))-FIND(CHAR(160),SUBSTITUTE($V26,\"{\",CHAR(160),GJ$1))+1),\"\")","v":""},{"$f":"IFERROR(MID($V26,FIND(CHAR(160),SUBSTITUTE($V26,\"{\",CHAR(160),GK$1)),FIND(CHAR(160),SUBSTITUTE($V26,\"}\",CHAR(160),GK$1))-FIND(CHAR(160),SUBSTITUTE($V26,\"{\",CHAR(160),GK$1))+1),\"\")","v":""},{"$f":"IFERROR(MID($V26,FIND(CHAR(160),SUBSTITUTE($V26,\"{\",CHAR(160),GL$1)),FIND(CHAR(160),SUBSTITUTE($V26,\"}\",CHAR(160),GL$1))-FIND(CHAR(160),SUBSTITUTE($V26,\"{\",CHAR(160),GL$1))+1),\"\")","v":""},{"$f":"IFERROR(MID($V26,FIND(CHAR(160),SUBSTITUTE($V26,\"{\",CHAR(160),GM$1)),FIND(CHAR(160),SUBSTITUTE($V26,\"}\",CHAR(160),GM$1))-FIND(CHAR(160),SUBSTITUTE($V26,\"{\",CHAR(160),GM$1))+1),\"\")","v":""},{"$f":"IFERROR(MID($V26,FIND(CHAR(160),SUBSTITUTE($V26,\"{\",CHAR(160),GN$1)),FIND(CHAR(160),SUBSTITUTE($V26,\"}\",CHAR(160),GN$1))-FIND(CHAR(160),SUBSTITUTE($V26,\"{\",CHAR(160),GN$1))+1),\"\")","v":""},{"$f":"IFERROR(MID($V26,FIND(CHAR(160),SUBSTITUTE($V26,\"{\",CHAR(160),GO$1)),FIND(CHAR(160),SUBSTITUTE($V26,\"}\",CHAR(160),GO$1))-FIND(CHAR(160),SUBSTITUTE($V26,\"{\",CHAR(160),GO$1))+1),\"\")","v":"{Measure:Quantity}"},{"$f":"IFERROR(MID($V26,FIND(CHAR(160),SUBSTITUTE($V26,\"{\",CHAR(160),GP$1)),FIND(CHAR(160),SUBSTITUTE($V26,\"}\",CHAR(160),GP$1))-FIND(CHAR(160),SUBSTITUTE($V26,\"{\",CHAR(160),GP$1))+1),\"\")","v":"{Measure:Quantity}"},{"$f":"IFERROR(MID($W26,FIND(CHAR(160),SUBSTITUTE($W26,\"{\",CHAR(160),GQ$1)),FIND(CHAR(160),SUBSTITUTE($W26,\"}\",CHAR(160),GQ$1))-FIND(CHAR(160),SUBSTITUTE($W26,\"{\",CHAR(160),GQ$1))+1),\"\")","v":""},{"$f":"IFERROR(MID($W26,FIND(CHAR(160),SUBSTITUTE($W26,\"{\",CHAR(160),GR$1)),FIND(CHAR(160),SUBSTITUTE($W26,\"}\",CHAR(160),GR$1))-FIND(CHAR(160),SUBSTITUTE($W26,\"{\",CHAR(160),GR$1))+1),\"\")","v":""},{"$f":"IFERROR(MID($W26,FIND(CHAR(160),SUBSTITUTE($W26,\"{\",CHAR(160),GS$1)),FIND(CHAR(160),SUBSTITUTE($W26,\"}\",CHAR(160),GS$1))-FIND(CHAR(160),SUBSTITUTE($W26,\"{\",CHAR(160),GS$1))+1),\"\")","v":""},{"$f":"IFERROR(MID($W26,FIND(CHAR(160),SUBSTITUTE($W26,\"{\",CHAR(160),GT$1)),FIND(CHAR(160),SUBSTITUTE($W26,\"}\",CHAR(160),GT$1))-FIND(CHAR(160),SUBSTITUTE($W26,\"{\",CHAR(160),GT$1))+1),\"\")","v":""},{"$f":"IFERROR(MID($W26,FIND(CHAR(160),SUBSTITUTE($W26,\"{\",CHAR(160),GU$1)),FIND(CHAR(160),SUBSTITUTE($W26,\"}\",CHAR(160),GU$1))-FIND(CHAR(160),SUBSTITUTE($W26,\"{\",CHAR(160),GU$1))+1),\"\")","v":""},{"$f":"IFERROR(MID($W26,FIND(CHAR(160),SUBSTITUTE($W26,\"{\",CHAR(160),GV$1)),FIND(CHAR(160),SUBSTITUTE($W26,\"}\",CHAR(160),GV$1))-FIND(CHAR(160),SUBSTITUTE($W26,\"{\",CHAR(160),GV$1))+1),\"\")","v":""},{"$f":"IFERROR(MID($W26,FIND(CHAR(160),SUBSTITUTE($W26,\"{\",CHAR(160),GW$1)),FIND(CHAR(160),SUBSTITUTE($W26,\"}\",CHAR(160),GW$1))-FIND(CHAR(160),SUBSTITUTE($W26,\"{\",CHAR(160),GW$1))+1),\"\")","v":""},{"$f":"IFERROR(MID($W26,FIND(CHAR(160),SUBSTITUTE($W26,\"{\",CHAR(160),GX$1)),FIND(CHAR(160),SUBSTITUTE($W26,\"}\",CHAR(160),GX$1))-FIND(CHAR(160),SUBSTITUTE($W26,\"{\",CHAR(160),GX$1))+1),\"\")","v":""},{"$f":"IFERROR(MID($W26,FIND(CHAR(160),SUBSTITUTE($W26,\"{\",CHAR(160),GY$1)),FIND(CHAR(160),SUBSTITUTE($W26,\"}\",CHAR(160),GY$1))-FIND(CHAR(160),SUBSTITUTE($W26,\"{\",CHAR(160),GY$1))+1),\"\")","v":""},{"$f":"IFERROR(MID($W26,FIND(CHAR(160),SUBSTITUTE($W26,\"{\",CHAR(160),GZ$1)),FIND(CHAR(160),SUBSTITUTE($W26,\"}\",CHAR(160),GZ$1))-FIND(CHAR(160),SUBSTITUTE($W26,\"{\",CHAR(160),GZ$1))+1),\"\")","v":""},{"$f":"IFERROR(MID($X26,FIND(CHAR(160),SUBSTITUTE($X26,\"{\",CHAR(160),HA$1)),FIND(CHAR(160),SUBSTITUTE($X26,\"}\",CHAR(160),HA$1))-FIND(CHAR(160),SUBSTITUTE($X26,\"{\",CHAR(160),HA$1))+1),\"\")","v":""},{"$f":"IFERROR(MID($X26,FIND(CHAR(160),SUBSTITUTE($X26,\"{\",CHAR(160),HB$1)),FIND(CHAR(160),SUBSTITUTE($X26,\"}\",CHAR(160),HB$1))-FIND(CHAR(160),SUBSTITUTE($X26,\"{\",CHAR(160),HB$1))+1),\"\")","v":""},{"$f":"IFERROR(MID($X26,FIND(CHAR(160),SUBSTITUTE($X26,\"{\",CHAR(160),HC$1)),FIND(CHAR(160),SUBSTITUTE($X26,\"}\",CHAR(160),HC$1))-FIND(CHAR(160),SUBSTITUTE($X26,\"{\",CHAR(160),HC$1))+1),\"\")","v":""},{"$f":"IFERROR(MID($X26,FIND(CHAR(160),SUBSTITUTE($X26,\"{\",CHAR(160),HD$1)),FIND(CHAR(160),SUBSTITUTE($X26,\"}\",CHAR(160),HD$1))-FIND(CHAR(160),SUBSTITUTE($X26,\"{\",CHAR(160),HD$1))+1),\"\")","v":""},{"$f":"IFERROR(MID($X26,FIND(CHAR(160),SUBSTITUTE($X26,\"{\",CHAR(160),HE$1)),FIND(CHAR(160),SUBSTITUTE($X26,\"}\",CHAR(160),HE$1))-FIND(CHAR(160),SUBSTITUTE($X26,\"{\",CHAR(160),HE$1))+1),\"\")","v":""},{"$f":"IFERROR(MID($X26,FIND(CHAR(160),SUBSTITUTE($X26,\"{\",CHAR(160),HF$1)),FIND(CHAR(160),SUBSTITUTE($X26,\"}\",CHAR(160),HF$1))-FIND(CHAR(160),SUBSTITUTE($X26,\"{\",CHAR(160),HF$1))+1),\"\")","v":""},{"$f":"IFERROR(MID($X26,FIND(CHAR(160),SUBSTITUTE($X26,\"{\",CHAR(160),HG$1)),FIND(CHAR(160),SUBSTITUTE($X26,\"}\",CHAR(160),HG$1))-FIND(CHAR(160),SUBSTITUTE($X26,\"{\",CHAR(160),HG$1))+1),\"\")","v":""},{"$f":"IFERROR(MID($X26,FIND(CHAR(160),SUBSTITUTE($X26,\"{\",CHAR(160),HH$1)),FIND(CHAR(160),SUBSTITUTE($X26,\"}\",CHAR(160),HH$1))-FIND(CHAR(160),SUBSTITUTE($X26,\"{\",CHAR(160),HH$1))+1),\"\")","v":""},{"$f":"IFERROR(MID($X26,FIND(CHAR(160),SUBSTITUTE($X26,\"{\",CHAR(160),HI$1)),FIND(CHAR(160),SUBSTITUTE($X26,\"}\",CHAR(160),HI$1))-FIND(CHAR(160),SUBSTITUTE($X26,\"{\",CHAR(160),HI$1))+1),\"\")","v":""},{"$f":"IFERROR(MID($X26,FIND(CHAR(160),SUBSTITUTE($X26,\"{\",CHAR(160),HJ$1)),FIND(CHAR(160),SUBSTITUTE($X26,\"}\",CHAR(160),HJ$1))-FIND(CHAR(160),SUBSTITUTE($X26,\"{\",CHAR(160),HJ$1))+1),\"\")","v":""},{"$f":"IFERROR(MID($Y26,FIND(CHAR(160),SUBSTITUTE($Y26,\"{\",CHAR(160),HK$1)),FIND(CHAR(160),SUBSTITUTE($Y26,\"}\",CHAR(160),HK$1))-FIND(CHAR(160),SUBSTITUTE($Y26,\"{\",CHAR(160),HK$1))+1),\"\")","v":""},{"$f":"IFERROR(MID($Y26,FIND(CHAR(160),SUBSTITUTE($Y26,\"{\",CHAR(160),HL$1)),FIND(CHAR(160),SUBSTITUTE($Y26,\"}\",CHAR(160),HL$1))-FIND(CHAR(160),SUBSTITUTE($Y26,\"{\",CHAR(160),HL$1))+1),\"\")","v":""},{"$f":"IFERROR(MID($Y26,FIND(CHAR(160),SUBSTITUTE($Y26,\"{\",CHAR(160),HM$1)),FIND(CHAR(160),SUBSTITUTE($Y26,\"}\",CHAR(160),HM$1))-FIND(CHAR(160),SUBSTITUTE($Y26,\"{\",CHAR(160),HM$1))+1),\"\")","v":""},{"$f":"IFERROR(MID($Y26,FIND(CHAR(160),SUBSTITUTE($Y26,\"{\",CHAR(160),HN$1)),FIND(CHAR(160),SUBSTITUTE($Y26,\"}\",CHAR(160),HN$1))-FIND(CHAR(160),SUBSTITUTE($Y26,\"{\",CHAR(160),HN$1))+1),\"\")","v":""},{"$f":"IFERROR(MID($Y26,FIND(CHAR(160),SUBSTITUTE($Y26,\"{\",CHAR(160),HO$1)),FIND(CHAR(160),SUBSTITUTE($Y26,\"}\",CHAR(160),HO$1))-FIND(CHAR(160),SUBSTITUTE($Y26,\"{\",CHAR(160),HO$1))+1),\"\")","v":""},{"$f":"IFERROR(MID($Y26,FIND(CHAR(160),SUBSTITUTE($Y26,\"{\",CHAR(160),HP$1)),FIND(CHAR(160),SUBSTITUTE($Y26,\"}\",CHAR(160),HP$1))-FIND(CHAR(160),SUBSTITUTE($Y26,\"{\",CHAR(160),HP$1))+1),\"\")","v":""},{"$f":"IFERROR(MID($Y26,FIND(CHAR(160),SUBSTITUTE($Y26,\"{\",CHAR(160),HQ$1)),FIND(CHAR(160),SUBSTITUTE($Y26,\"}\",CHAR(160),HQ$1))-FIND(CHAR(160),SUBSTITUTE($Y26,\"{\",CHAR(160),HQ$1))+1),\"\")","v":""},{"$f":"IFERROR(MID($Y26,FIND(CHAR(160),SUBSTITUTE($Y26,\"{\",CHAR(160),HR$1)),FIND(CHAR(160),SUBSTITUTE($Y26,\"}\",CHAR(160),HR$1))-FIND(CHAR(160),SUBSTITUTE($Y26,\"{\",CHAR(160),HR$1))+1),\"\")","v":""},{"$f":"IFERROR(MID($Y26,FIND(CHAR(160),SUBSTITUTE($Y26,\"{\",CHAR(160),HS$1)),FIND(CHAR(160),SUBSTITUTE($Y26,\"}\",CHAR(160),HS$1))-FIND(CHAR(160),SUBSTITUTE($Y26,\"{\",CHAR(160),HS$1))+1),\"\")","v":""},{"$f":"IFERROR(MID($Y26,FIND(CHAR(160),SUBSTITUTE($Y26,\"{\",CHAR(160),HT$1)),FIND(CHAR(160),SUBSTITUTE($Y26,\"}\",CHAR(160),HT$1))-FIND(CHAR(160),SUBSTITUTE($Y26,\"{\",CHAR(160),HT$1))+1),\"\")","v":""},{"$f":"IFERROR(MID($Z26,FIND(CHAR(160),SUBSTITUTE($Z26,\"{\",CHAR(160),HU$1)),FIND(CHAR(160),SUBSTITUTE($Z26,\"}\",CHAR(160),HU$1))-FIND(CHAR(160),SUBSTITUTE($Z26,\"{\",CHAR(160),HU$1))+1),\"\")","v":""},{"$f":"IFERROR(MID($Z26,FIND(CHAR(160),SUBSTITUTE($Z26,\"{\",CHAR(160),HV$1)),FIND(CHAR(160),SUBSTITUTE($Z26,\"}\",CHAR(160),HV$1))-FIND(CHAR(160),SUBSTITUTE($Z26,\"{\",CHAR(160),HV$1))+1),\"\")","v":""},{"$f":"IFERROR(MID($Z26,FIND(CHAR(160),SUBSTITUTE($Z26,\"{\",CHAR(160),HW$1)),FIND(CHAR(160),SUBSTITUTE($Z26,\"}\",CHAR(160),HW$1))-FIND(CHAR(160),SUBSTITUTE($Z26,\"{\",CHAR(160),HW$1))+1),\"\")","v":""},{"$f":"IFERROR(MID($Z26,FIND(CHAR(160),SUBSTITUTE($Z26,\"{\",CHAR(160),HX$1)),FIND(CHAR(160),SUBSTITUTE($Z26,\"}\",CHAR(160),HX$1))-FIND(CHAR(160),SUBSTITUTE($Z26,\"{\",CHAR(160),HX$1))+1),\"\")","v":""},{"$f":"IFERROR(MID($Z26,FIND(CHAR(160),SUBSTITUTE($Z26,\"{\",CHAR(160),HY$1)),FIND(CHAR(160),SUBSTITUTE($Z26,\"}\",CHAR(160),HY$1))-FIND(CHAR(160),SUBSTITUTE($Z26,\"{\",CHAR(160),HY$1))+1),\"\")","v":""},{"$f":"IFERROR(MID($Z26,FIND(CHAR(160),SUBSTITUTE($Z26,\"{\",CHAR(160),HZ$1)),FIND(CHAR(160),SUBSTITUTE($Z26,\"}\",CHAR(160),HZ$1))-FIND(CHAR(160),SUBSTITUTE($Z26,\"{\",CHAR(160),HZ$1))+1),\"\")","v":""},{"$f":"IFERROR(MID($Z26,FIND(CHAR(160),SUBSTITUTE($Z26,\"{\",CHAR(160),IA$1)),FIND(CHAR(160),SUBSTITUTE($Z26,\"}\",CHAR(160),IA$1))-FIND(CHAR(160),SUBSTITUTE($Z26,\"{\",CHAR(160),IA$1))+1),\"\")","v":""},{"$f":"IFERROR(MID($Z26,FIND(CHAR(160),SUBSTITUTE($Z26,\"{\",CHAR(160),IB$1)),FIND(CHAR(160),SUBSTITUTE($Z26,\"}\",CHAR(160),IB$1))-FIND(CHAR(160),SUBSTITUTE($Z26,\"{\",CHAR(160),IB$1))+1),\"\")","v":""},{"$f":"IFERROR(MID($Z26,FIND(CHAR(160),SUBSTITUTE($Z26,\"{\",CHAR(160),IC$1)),FIND(CHAR(160),SUBSTITUTE($Z26,\"}\",CHAR(160),IC$1))-FIND(CHAR(160),SUBSTITUTE($Z26,\"{\",CHAR(160),IC$1))+1),\"\")","v":""},{"$f":"IFERROR(MID($Z26,FIND(CHAR(160),SUBSTITUTE($Z26,\"{\",CHAR(160),ID$1)),FIND(CHAR(160),SUBSTITUTE($Z26,\"}\",CHAR(160),ID$1))-FIND(CHAR(160),SUBSTITUTE($Z26,\"{\",CHAR(160),ID$1))+1),\"\")","v":""},{"$f":"IFERROR(MID($AA26,FIND(CHAR(160),SUBSTITUTE($AA26,\"{\",CHAR(160),IE$1)),FIND(CHAR(160),SUBSTITUTE($AA26,\"}\",CHAR(160),IE$1))-FIND(CHAR(160),SUBSTITUTE($AA26,\"{\",CHAR(160),IE$1))+1),\"\")","v":""},{"$f":"IFERROR(MID($AA26,FIND(CHAR(160),SUBSTITUTE($AA26,\"{\",CHAR(160),IF$1)),FIND(CHAR(160),SUBSTITUTE($AA26,\"}\",CHAR(160),IF$1))-FIND(CHAR(160),SUBSTITUTE($AA26,\"{\",CHAR(160),IF$1))+1),\"\")","v":""},{"$f":"IFERROR(MID($AA26,FIND(CHAR(160),SUBSTITUTE($AA26,\"{\",CHAR(160),IG$1)),FIND(CHAR(160),SUBSTITUTE($AA26,\"}\",CHAR(160),IG$1))-FIND(CHAR(160),SUBSTITUTE($AA26,\"{\",CHAR(160),IG$1))+1),\"\")","v":""},{"$f":"IFERROR(MID($AA26,FIND(CHAR(160),SUBSTITUTE($AA26,\"{\",CHAR(160),IH$1)),FIND(CHAR(160),SUBSTITUTE($AA26,\"}\",CHAR(160),IH$1))-FIND(CHAR(160),SUBSTITUTE($AA26,\"{\",CHAR(160),IH$1))+1),\"\")","v":""},{"$f":"IFERROR(MID($AA26,FIND(CHAR(160),SUBSTITUTE($AA26,\"{\",CHAR(160),II$1)),FIND(CHAR(160),SUBSTITUTE($AA26,\"}\",CHAR(160),II$1))-FIND(CHAR(160),SUBSTITUTE($AA26,\"{\",CHAR(160),II$1))+1),\"\")","v":""},{"$f":"IFERROR(MID($AA26,FIND(CHAR(160),SUBSTITUTE($AA26,\"{\",CHAR(160),IJ$1)),FIND(CHAR(160),SUBSTITUTE($AA26,\"}\",CHAR(160),IJ$1))-FIND(CHAR(160),SUBSTITUTE($AA26,\"{\",CHAR(160),IJ$1))+1),\"\")","v":""},{"$f":"IFERROR(MID($AA26,FIND(CHAR(160),SUBSTITUTE($AA26,\"{\",CHAR(160),IK$1)),FIND(CHAR(160),SUBSTITUTE($AA26,\"}\",CHAR(160),IK$1))-FIND(CHAR(160),SUBSTITUTE($AA26,\"{\",CHAR(160),IK$1))+1),\"\")","v":""},{"$f":"IFERROR(MID($AA26,FIND(CHAR(160),SUBSTITUTE($AA26,\"{\",CHAR(160),IL$1)),FIND(CHAR(160),SUBSTITUTE($AA26,\"}\",CHAR(160),IL$1))-FIND(CHAR(160),SUBSTITUTE($AA26,\"{\",CHAR(160),IL$1))+1),\"\")","v":""},{"$f":"IFERROR(MID($AA26,FIND(CHAR(160),SUBSTITUTE($AA26,\"{\",CHAR(160),IM$1)),FIND(CHAR(160),SUBSTITUTE($AA26,\"}\",CHAR(160),IM$1))-FIND(CHAR(160),SUBSTITUTE($AA26,\"{\",CHAR(160),IM$1))+1),\"\")","v":""},{"$f":"IFERROR(MID($AA26,FIND(CHAR(160),SUBSTITUTE($AA26,\"{\",CHAR(160),IN$1)),FIND(CHAR(160),SUBSTITUTE($AA26,\"}\",CHAR(160),IN$1))-FIND(CHAR(160),SUBSTITUTE($AA26,\"{\",CHAR(160),IN$1))+1),\"\")","v":""},{"$f":"IFERROR(MID($AB26,FIND(CHAR(160),SUBSTITUTE($AB26,\"{\",CHAR(160),IO$1)),FIND(CHAR(160),SUBSTITUTE($AB26,\"}\",CHAR(160),IO$1))-FIND(CHAR(160),SUBSTITUTE($AB26,\"{\",CHAR(160),IO$1))+1),\"\")","v":""},{"$f":"IFERROR(MID($AB26,FIND(CHAR(160),SUBSTITUTE($AB26,\"{\",CHAR(160),IP$1)),FIND(CHAR(160),SUBSTITUTE($AB26,\"}\",CHAR(160),IP$1))-FIND(CHAR(160),SUBSTITUTE($AB26,\"{\",CHAR(160),IP$1))+1),\"\")","v":""},{"$f":"IFERROR(MID($AB26,FIND(CHAR(160),SUBSTITUTE($AB26,\"{\",CHAR(160),IQ$1)),FIND(CHAR(160),SUBSTITUTE($AB26,\"}\",CHAR(160),IQ$1))-FIND(CHAR(160),SUBSTITUTE($AB26,\"{\",CHAR(160),IQ$1))+1),\"\")","v":""},{"$f":"IFERROR(MID($AB26,FIND(CHAR(160),SUBSTITUTE($AB26,\"{\",CHAR(160),IR$1)),FIND(CHAR(160),SUBSTITUTE($AB26,\"}\",CHAR(160),IR$1))-FIND(CHAR(160),SUBSTITUTE($AB26,\"{\",CHAR(160),IR$1))+1),\"\")","v":""},{"$f":"IFERROR(MID($AB26,FIND(CHAR(160),SUBSTITUTE($AB26,\"{\",CHAR(160),IS$1)),FIND(CHAR(160),SUBSTITUTE($AB26,\"}\",CHAR(160),IS$1))-FIND(CHAR(160),SUBSTITUTE($AB26,\"{\",CHAR(160),IS$1))+1),\"\")","v":""},{"$f":"IFERROR(MID($AB26,FIND(CHAR(160),SUBSTITUTE($AB26,\"{\",CHAR(160),IT$1)),FIND(CHAR(160),SUBSTITUTE($AB26,\"}\",CHAR(160),IT$1))-FIND(CHAR(160),SUBSTITUTE($AB26,\"{\",CHAR(160),IT$1))+1),\"\")","v":""},{"$f":"IFERROR(MID($AB26,FIND(CHAR(160),SUBSTITUTE($AB26,\"{\",CHAR(160),IU$1)),FIND(CHAR(160),SUBSTITUTE($AB26,\"}\",CHAR(160),IU$1))-FIND(CHAR(160),SUBSTITUTE($AB26,\"{\",CHAR(160),IU$1))+1),\"\")","v":""},{"$f":"IFERROR(MID($AB26,FIND(CHAR(160),SUBSTITUTE($AB26,\"{\",CHAR(160),IV$1)),FIND(CHAR(160),SUBSTITUTE($AB26,\"}\",CHAR(160),IV$1))-FIND(CHAR(160),SUBSTITUTE($AB26,\"{\",CHAR(160),IV$1))+1),\"\")","v":""},{"$f":"IFERROR(MID($AB26,FIND(CHAR(160),SUBSTITUTE($AB26,\"{\",CHAR(160),IW$1)),FIND(CHAR(160),SUBSTITUTE($AB26,\"}\",CHAR(160),IW$1))-FIND(CHAR(160),SUBSTITUTE($AB26,\"{\",CHAR(160),IW$1))+1),\"\")","v":""},{"$f":"IFERROR(MID($AB26,FIND(CHAR(160),SUBSTITUTE($AB26,\"{\",CHAR(160),IX$1)),FIND(CHAR(160),SUBSTITUTE($AB26,\"}\",CHAR(160),IX$1))-FIND(CHAR(160),SUBSTITUTE($AB26,\"{\",CHAR(160),IX$1))+1),\"\")","v":""},null,{"$f":"10-COUNTIF(DU26:ED26,\"\")","v":1}]
["C&I Agricultural Solutions","MILK: Vacuum Pump with Adjustable Speed Drive Package - 7.5 HP","AMVP - VP7.5","2021-07-01","2022-06-30","Per Measure",5322,0,"Per Measure",2000,0,"2016-07-01","2022-06-30","Calculated","{Measure:Quantity} * (((7.5*0.746*.75/({Motor Efficiency}/100)) - (.0495*(2*{# of Milking Units})+1.7729))*{Daily Run Time}*365)",1E-4,null,"{Measure:Quantity} * ((7.5*0.746*.75/({Motor Efficiency}/100)) - (.0495*(2*{# of Milking Units})+1.7729))",null,null,"({Measure:Quantity} * ((7.5*0.746*.75/({Motor Efficiency}/100)) - (.0495*(2*{# of Milking Units})+1.7729)))*{Factor:WinterCF}","({Measure:Quantity} * ((7.5*0.746*.75/({Motor Efficiency}/100)) - (.0495*(2*{# of Milking Units})+1.7729)))*{Factor:SummerCF}",null,null,null,null,null,null,"2020-04-01","2022-06-30",15,0.46700000000000003,0.27500000000000002,0.36899999999999999,0.30099999999999999,0.182,0.14799999999999999,1,1.1220000000000001,1,0.52,1.6E-2,null,{"$f":"DU27","v":"{# of Milking Units}"},1,{"$f":"DV27","v":"{Daily Run Time}"},91.7,{"$f":"DW27","v":"{Measure:Quantity}"},10,{"$f":"DX27","v":"{Motor Efficiency}"},2,{"$f":"DY27","v":""},null,{"$f":"DZ27","v":""},null,{"$f":"EA27","v":""},null,{"$f":"EB27","v":""},null,{"$f":"EC27","v":""},null,{"$f":"ED27","v":""},null,{"$f":"AS27 * (((7.5*0.746*0.75/(AU27/100)) - (0.0495*(2*AW27)+1.7729))*AY27*365)","v":1323.6091723009813},{"$f":"0.0001","v":1E-4},0,{"$f":"AS27 * ((7.5*0.746*0.75/(AU27/100)) - (0.0495*(2*AW27)+1.7729))","v":1.8131632497273715},0,0,{"$f":"(AS27 * ((7.5*0.746*0.75/(AU27/100)) - (0.0495*(2*AW27)+1.7729)))*AF27","v":0.84674723762268256},{"$f":"(AS27 * ((7.5*0.746*0.75/(AU27/100)) - (0.0495*(2*AW27)+1.7729)))*AG27","v":0.49861989367502724},0,0,0,0,0,0,null,"Res","Default DR",{"$f":"Benefits(BL27,BR27,BS27,BT27,BU27,BV27,BW27,BX27,BY27,BZ27,AE27,AH27,AI27,AJ27,AK27,AL27,AM27,AN27,AO27,AP27,CA27,CB27)","v":1982.1800676671837},4127.3520087377283,0,0,0,0,0,0,0,{"$f":"SUMPRODUCT(CC27:CK27,--(CC27:CK27>0))","v":6109.532076404912},{"$f":"-SUMPRODUCT(CC27:CK27,--(CC27:CK27<0))","v":0},null,{"$f":"5322","v":5322},null,null,{"$f":"CM27+CO27","v":5322},{"$f":"IF(NetOrGross=\"Net\",(1-AO27+AP27),1)","v":1},{"$f":"(SUMPRODUCT(CC27:CJ27,--(CC27:CJ27>0))+CN27)*CS27/((-SUMPRODUCT(CC27:CJ27,--(CC27:CJ27<0))+MAX(CO27,CV27)+CP27+CQ27)*CS27+IF(FRIncentives=\"Yes\",CV27*(1-CS27),0))","v":1.1479767148449667},1,{"$f":"2000","v":2000},null,"Electric","y",null,{"$f":"IF(F27=\"Manual Entry\",\"Manual\",IF(G27=\"\",0,\"X=\"&SUBSTITUTE(SUBSTITUTE(SUBSTITUTE(SUBSTITUTE(SUBSTITUTE(SUBSTITUTE(SUBSTITUTE(SUBSTITUTE(SUBSTITUTE(SUBSTITUTE(SUBSTITUTE(SUBSTITUTE(G27,$ED27,$ED$2&ROW($ED27)),$EC27,$EC$2&ROW($EC27)),$EB27,$EB$2&ROW($EB27)),$EA27,$EA$2&ROW($EA27)),$DZ27,$DZ$2&ROW($DZ27)),$DY27,$DY$2&ROW($DY27)),$DX27,$DX$2&ROW($DX27)),$DW27,$DW$2&ROW($DW27)),$DV27,$DV$2&ROW($DV27)),$DU27,$DU$2&ROW($DU27)),$DT27,$DT$2&ROW($DT27)),$DS27,$DS$2&ROW($DS27))))","v":"X=5322"},{"$f":"IF(I27=\"Manual Entry\",\"Manual\",IF(J27=\"\",0,\"X=\"&SUBSTITUTE(SUBSTITUTE(SUBSTITUTE(SUBSTITUTE(SUBSTITUTE(SUBSTITUTE(SUBSTITUTE(SUBSTITUTE(SUBSTITUTE(SUBSTITUTE(SUBSTITUTE(SUBSTITUTE(J27,$ED27,$ED$2&ROW($ED27)),$EC27,$EC$2&ROW($EC27)),$EB27,$EB$2&ROW($EB27)),$EA27,$EA$2&ROW($EA27)),$DZ27,$DZ$2&ROW($DZ27)),$DY27,$DY$2&ROW($DY27)),$DX27,$DX$2&ROW($DX27)),$DW27,$DW$2&ROW($DW27)),$DV27,$DV$2&ROW($DV27)),$DU27,$DU$2&ROW($DU27)),$DT27,$DT$2&ROW($DT27)),$DS27,$DS$2&ROW($DS27))))","v":"X=2000"},{"$f":"IF(O27=\"\",0,\"X=\"&SUBSTITUTE(SUBSTITUTE(SUBSTITUTE(SUBSTITUTE(SUBSTITUTE(SUBSTITUTE(SUBSTITUTE(SUBSTITUTE(SUBSTITUTE(SUBSTITUTE(SUBSTITUTE(SUBSTITUTE(O27,$ED27,$ED$2&ROW($ED27)),$EC27,$EC$2&ROW($EC27)),$EB27,$EB$2&ROW($EB27)),$EA27,$EA$2&ROW($EA27)),$DZ27,$DZ$2&ROW($DZ27)),$DY27,$DY$2&ROW($DY27)),$DX27,$DX$2&ROW($DX27)),$DW27,$DW$2&ROW($DW27)),$DV27,$DV$2&ROW($DV27)),$DU27,$DU$2&ROW($DU27)),$DT27,$DT$2&ROW($DT27)),$DS27,$DS$2&ROW($DS27)))","v":"X=AW27 * (((7.5*0.746*.75/(AY27/100)) - (.0495*(2*AS27)+1.7729))*AU27*365)"},{"$f":"IF(P27=\"\",0,\"X=\"&SUBSTITUTE(SUBSTITUTE(SUBSTITUTE(SUBSTITUTE(SUBSTITUTE(SUBSTITUTE(SUBSTITUTE(SUBSTITUTE(SUBSTITUTE(SUBSTITUTE(SUBSTITUTE(SUBSTITUTE(P27,$ED27,$ED$2&ROW($ED27)),$EC27,$EC$2&ROW($EC27)),$EB27,$EB$2&ROW($EB27)),$EA27,$EA$2&ROW($EA27)),$DZ27,$DZ$2&ROW($DZ27)),$DY27,$DY$2&ROW($DY27)),$DX27,$DX$2&ROW($DX27)),$DW27,$DW$2&ROW($DW27)),$DV27,$DV$2&ROW($DV27)),$DU27,$DU$2&ROW($DU27)),$DT27,$DT$2&ROW($DT27)),$DS27,$DS$2&ROW($DS27)))","v":"X=0.0001"},{"$f":"IF(Q27=\"\",0,\"X=\"&SUBSTITUTE(SUBSTITUTE(SUBSTITUTE(SUBSTITUTE(SUBSTITUTE(SUBSTITUTE(SUBSTITUTE(SUBSTITUTE(SUBSTITUTE(SUBSTITUTE(SUBSTITUTE(SUBSTITUTE(Q27,$ED27,$ED$2&ROW($ED27)),$EC27,$EC$2&ROW($EC27)),$EB27,$EB$2&ROW($EB27)),$EA27,$EA$2&ROW($EA27)),$DZ27,$DZ$2&ROW($DZ27)),$DY27,$DY$2&ROW($DY27)),$DX27,$DX$2&ROW($DX27)),$DW27,$DW$2&ROW($DW27)),$DV27,$DV$2&ROW($DV27)),$DU27,$DU$2&ROW($DU27)),$DT27,$DT$2&ROW($DT27)),$DS27,$DS$2&ROW($DS27)))","v":0},{"$f":"IF(R27=\"\",0,\"X=\"&SUBSTITUTE(SUBSTITUTE(SUBSTITUTE(SUBSTITUTE(SUBSTITUTE(SUBSTITUTE(SUBSTITUTE(SUBSTITUTE(SUBSTITUTE(SUBSTITUTE(SUBSTITUTE(SUBSTITUTE(R27,$ED27,$ED$2&ROW($ED27)),$EC27,$EC$2&ROW($EC27)),$EB27,$EB$2&ROW($EB27)),$EA27,$EA$2&ROW($EA27)),$DZ27,$DZ$2&ROW($DZ27)),$DY27,$DY$2&ROW($DY27)),$DX27,$DX$2&ROW($DX27)),$DW27,$DW$2&ROW($DW27)),$DV27,$DV$2&ROW($DV27)),$DU27,$DU$2&ROW($DU27)),$DT27,$DT$2&ROW($DT27)),$DS27,$DS$2&ROW($DS27)))","v":"X=AW27 * ((7.5*0.746*.75/(AY27/100)) - (.0495*(2*AS27)+1.7729))"},{"$f":"IF(S27=\"\",0,\"X=\"&SUBSTITUTE(SUBSTITUTE(SUBSTITUTE(SUBSTITUTE(SUBSTITUTE(SUBSTITUTE(SUBSTITUTE(SUBSTITUTE(SUBSTITUTE(SUBSTITUTE(SUBSTITUTE(SUBSTITUTE(S27,$ED27,$ED$2&ROW($ED27)),$EC27,$EC$2&ROW($EC27)),$EB27,$EB$2&ROW($EB27)),$EA27,$EA$2&ROW($EA27)),$DZ27,$DZ$2&ROW($DZ27)),$DY27,$DY$2&ROW($DY27)),$DX27,$DX$2&ROW($DX27)),$DW27,$DW$2&ROW($DW27)),$DV27,$DV$2&ROW($DV27)),$DU27,$DU$2&ROW($DU27)),$DT27,$DT$2&ROW($DT27)),$DS27,$DS$2&ROW($DS27)))","v":0},{"$f":"IF(T27=\"\",0,\"X=\"&SUBSTITUTE(SUBSTITUTE(SUBSTITUTE(SUBSTITUTE(SUBSTITUTE(SUBSTITUTE(SUBSTITUTE(SUBSTITUTE(SUBSTITUTE(SUBSTITUTE(SUBSTITUTE(SUBSTITUTE(T27,$ED27,$ED$2&ROW($ED27)),$EC27,$EC$2&ROW($EC27)),$EB27,$EB$2&ROW($EB27)),$EA27,$EA$2&ROW($EA27)),$DZ27,$DZ$2&ROW($DZ27)),$DY27,$DY$2&ROW($DY27)),$DX27,$DX$2&ROW($DX27)),$DW27,$DW$2&ROW($DW27)),$DV27,$DV$2&ROW($DV27)),$DU27,$DU$2&ROW($DU27)),$DT27,$DT$2&ROW($DT27)),$DS27,$DS$2&ROW($DS27)))","v":0},{"$f":"IF(U27=\"\",0,\"X=\"&SUBSTITUTE(SUBSTITUTE(SUBSTITUTE(SUBSTITUTE(SUBSTITUTE(SUBSTITUTE(SUBSTITUTE(SUBSTITUTE(SUBSTITUTE(SUBSTITUTE(SUBSTITUTE(SUBSTITUTE(U27,$ED27,$ED$2&ROW($ED27)),$EC27,$EC$2&ROW($EC27)),$EB27,$EB$2&ROW($EB27)),$EA27,$EA$2&ROW($EA27)),$DZ27,$DZ$2&ROW($DZ27)),$DY27,$DY$2&ROW($DY27)),$DX27,$DX$2&ROW($DX27)),$DW27,$DW$2&ROW($DW27)),$DV27,$DV$2&ROW($DV27)),$DU27,$DU$2&ROW($DU27)),$DT27,$DT$2&ROW($DT27)),$DS27,$DS$2&ROW($DS27)))","v":"X=(AW27 * ((7.5*0.746*.75/(AY27/100)) - (.0495*(2*AS27)+1.7729)))*AF27"},{"$f":"IF(V27=\"\",0,\"X=\"&SUBSTITUTE(SUBSTITUTE(SUBSTITUTE(SUBSTITUTE(SUBSTITUTE(SUBSTITUTE(SUBSTITUTE(SUBSTITUTE(SUBSTITUTE(SUBSTITUTE(SUBSTITUTE(SUBSTITUTE(V27,$ED27,$ED$2&ROW($ED27)),$EC27,$EC$2&ROW($EC27)),$EB27,$EB$2&ROW($EB27)),$EA27,$EA$2&ROW($EA27)),$DZ27,$DZ$2&ROW($DZ27)),$DY27,$DY$2&ROW($DY27)),$DX27,$DX$2&ROW($DX27)),$DW27,$DW$2&ROW($DW27)),$DV27,$DV$2&ROW($DV27)),$DU27,$DU$2&ROW($DU27)),$DT27,$DT$2&ROW($DT27)),$DS27,$DS$2&ROW($DS27)))","v":"X=(AW27 * ((7.5*0.746*.75/(AY27/100)) - (.0495*(2*AS27)+1.7729)))*AG27"},{"$f":"IF(W27=\"\",0,\"X=\"&SUBSTITUTE(SUBSTITUTE(SUBSTITUTE(SUBSTITUTE(SUBSTITUTE(SUBSTITUTE(SUBSTITUTE(SUBSTITUTE(SUBSTITUTE(SUBSTITUTE(SUBSTITUTE(SUBSTITUTE(W27,$ED27,$ED$2&ROW($ED27)),$EC27,$EC$2&ROW($EC27)),$EB27,$EB$2&ROW($EB27)),$EA27,$EA$2&ROW($EA27)),$DZ27,$DZ$2&ROW($DZ27)),$DY27,$DY$2&ROW($DY27)),$DX27,$DX$2&ROW($DX27)),$DW27,$DW$2&ROW($DW27)),$DV27,$DV$2&ROW($DV27)),$DU27,$DU$2&ROW($DU27)),$DT27,$DT$2&ROW($DT27)),$DS27,$DS$2&ROW($DS27)))","v":0},{"$f":"IF(X27=\"\",0,\"X=\"&SUBSTITUTE(SUBSTITUTE(SUBSTITUTE(SUBSTITUTE(SUBSTITUTE(SUBSTITUTE(SUBSTITUTE(SUBSTITUTE(SUBSTITUTE(SUBSTITUTE(SUBSTITUTE(SUBSTITUTE(X27,$ED27,$ED$2&ROW($ED27)),$EC27,$EC$2&ROW($EC27)),$EB27,$EB$2&ROW($EB27)),$EA27,$EA$2&ROW($EA27)),$DZ27,$DZ$2&ROW($DZ27)),$DY27,$DY$2&ROW($DY27)),$DX27,$DX$2&ROW($DX27)),$DW27,$DW$2&ROW($DW27)),$DV27,$DV$2&ROW($DV27)),$DU27,$DU$2&ROW($DU27)),$DT27,$DT$2&ROW($DT27)),$DS27,$DS$2&ROW($DS27)))","v":0},{"$f":"IF(Y27=\"\",0,\"X=\"&SUBSTITUTE(SUBSTITUTE(SUBSTITUTE(SUBSTITUTE(SUBSTITUTE(SUBSTITUTE(SUBSTITUTE(SUBSTITUTE(SUBSTITUTE(SUBSTITUTE(SUBSTITUTE(SUBSTITUTE(Y27,$ED27,$ED$2&ROW($ED27)),$EC27,$EC$2&ROW($EC27)),$EB27,$EB$2&ROW($EB27)),$EA27,$EA$2&ROW($EA27)),$DZ27,$DZ$2&ROW($DZ27)),$DY27,$DY$2&ROW($DY27)),$DX27,$DX$2&ROW($DX27)),$DW27,$DW$2&ROW($DW27)),$DV27,$DV$2&ROW($DV27)),$DU27,$DU$2&ROW($DU27)),$DT27,$DT$2&ROW($DT27)),$DS27,$DS$2&ROW($DS27)))","v":0},{"$f":"IF(Z27=\"\",0,\"X=\"&SUBSTITUTE(SUBSTITUTE(SUBSTITUTE(SUBSTITUTE(SUBSTITUTE(SUBSTITUTE(SUBSTITUTE(SUBSTITUTE(SUBSTITUTE(SUBSTITUTE(SUBSTITUTE(SUBSTITUTE(Z27,$ED27,$ED$2&ROW($ED27)),$EC27,$EC$2&ROW($EC27)),$EB27,$EB$2&ROW($EB27)),$EA27,$EA$2&ROW($EA27)),$DZ27,$DZ$2&ROW($DZ27)),$DY27,$DY$2&ROW($DY27)),$DX27,$DX$2&ROW($DX27)),$DW27,$DW$2&ROW($DW27)),$DV27,$DV$2&ROW($DV27)),$DU27,$DU$2&ROW($DU27)),$DT27,$DT$2&ROW($DT27)),$DS27,$DS$2&ROW($DS27)))","v":0},{"$f":"IF(AA27=\"\",0,\"X=\"&SUBSTITUTE(SUBSTITUTE(SUBSTITUTE(SUBSTITUTE(SUBSTITUTE(SUBSTITUTE(SUBSTITUTE(SUBSTITUTE(SUBSTITUTE(SUBSTITUTE(SUBSTITUTE(SUBSTITUTE(AA27,$ED27,$ED$2&ROW($ED27)),$EC27,$EC$2&ROW($EC27)),$EB27,$EB$2&ROW($EB27)),$EA27,$EA$2&ROW($EA27)),$DZ27,$DZ$2&ROW($DZ27)),$DY27,$DY$2&ROW($DY27)),$DX27,$DX$2&ROW($DX27)),$DW27,$DW$2&ROW($DW27)),$DV27,$DV$2&ROW($DV27)),$DU27,$DU$2&ROW($DU27)),$DT27,$DT$2&ROW($DT27)),$DS27,$DS$2&ROW($DS27)))","v":0},{"$f":"IF(AB27=\"\",0,\"X=\"&SUBSTITUTE(SUBSTITUTE(SUBSTITUTE(SUBSTITUTE(SUBSTITUTE(SUBSTITUTE(SUBSTITUTE(SUBSTITUTE(SUBSTITUTE(SUBSTITUTE(SUBSTITUTE(SUBSTITUTE(AB27,$ED27,$ED$2&ROW($ED27)),$EC27,$EC$2&ROW($EC27)),$EB27,$EB$2&ROW($EB27)),$EA27,$EA$2&ROW($EA27)),$DZ27,$DZ$2&ROW($DZ27)),$DY27,$DY$2&ROW($DY27)),$DX27,$DX$2&ROW($DX27)),$DW27,$DW$2&ROW($DW27)),$DV27,$DV$2&ROW($DV27)),$DU27,$DU$2&ROW($DU27)),$DT27,$DT$2&ROW($DT27)),$DS27,$DS$2&ROW($DS27)))","v":0},null,null,"{Factor:WinterCF}","{Factor:SummerCF}",{"$f":"IFERROR(INDEX($EG27:$IV27,MATCH(0,COUNTIF($DR27:DT27,$EG27:$IV27),0)),\"\")","v":"{# of Milking Units}"},{"$f":"IFERROR(INDEX($EG27:$IV27,MATCH(0,COUNTIF($DR27:DU27,$EG27:$IV27),0)),\"\")","v":"{Daily Run Time}"},{"$f":"IFERROR(INDEX($EG27:$IV27,MATCH(0,COUNTIF($DR27:DV27,$EG27:$IV27),0)),\"\")","v":"{Measure:Quantity}"},{"$f":"IFERROR(INDEX($EG27:$IV27,MATCH(0,COUNTIF($DR27:DW27,$EG27:$IV27),0)),\"\")","v":"{Motor Efficiency}"},{"$f":"IFERROR(INDEX($EG27:$IV27,MATCH(0,COUNTIF($DR27:DX27,$EG27:$IV27),0)),\"\")","v":""},{"$f":"IFERROR(INDEX($EG27:$IV27,MATCH(0,COUNTIF($DR27:DY27,$EG27:$IV27),0)),\"\")","v":""},{"$f":"IFERROR(INDEX($EG27:$IV27,MATCH(0,COUNTIF($DR27:DZ27,$EG27:$IV27),0)),\"\")","v":""},{"$f":"IFERROR(INDEX($EG27:$IV27,MATCH(0,COUNTIF($DR27:EA27,$EG27:$IV27),0)),\"\")","v":""},{"$f":"IFERROR(INDEX($EG27:$IV27,MATCH(0,COUNTIF($DR27:EB27,$EG27:$IV27),0)),\"\")","v":""},{"$f":"IFERROR(INDEX($EG27:$IV27,MATCH(0,COUNTIF($DR27:EC27,$EG27:$IV27),0)),\"\")","v":""},null,null,{"$f":"IFERROR(MID($G27,FIND(CHAR(160),SUBSTITUTE($G27,\"{\",CHAR(160),EG$1)),FIND(CHAR(160),SUBSTITUTE($G27,\"}\",CHAR(160),EG$1))-FIND(CHAR(160),SUBSTITUTE($G27,\"{\",CHAR(160),EG$1))+1),\"\")","v":""},{"$f":"IFERROR(MID($G27,FIND(CHAR(160),SUBSTITUTE($G27,\"{\",CHAR(160),EH$1)),FIND(CHAR(160),SUBSTITUTE($G27,\"}\",CHAR(160),EH$1))-FIND(CHAR(160),SUBSTITUTE($G27,\"{\",CHAR(160),EH$1))+1),\"\")","v":""},{"$f":"IFERROR(MID($G27,FIND(CHAR(160),SUBSTITUTE($G27,\"{\",CHAR(160),EI$1)),FIND(CHAR(160),SUBSTITUTE($G27,\"}\",CHAR(160),EI$1))-FIND(CHAR(160),SUBSTITUTE($G27,\"{\",CHAR(160),EI$1))+1),\"\")","v":""},{"$f":"IFERROR(MID($G27,FIND(CHAR(160),SUBSTITUTE($G27,\"{\",CHAR(160),EJ$1)),FIND(CHAR(160),SUBSTITUTE($G27,\"}\",CHAR(160),EJ$1))-FIND(CHAR(160),SUBSTITUTE($G27,\"{\",CHAR(160),EJ$1))+1),\"\")","v":""},{"$f":"IFERROR(MID($G27,FIND(CHAR(160),SUBSTITUTE($G27,\"{\",CHAR(160),EK$1)),FIND(CHAR(160),SUBSTITUTE($G27,\"}\",CHAR(160),EK$1))-FIND(CHAR(160),SUBSTITUTE($G27,\"{\",CHAR(160),EK$1))+1),\"\")","v":""},{"$f":"IFERROR(MID($G27,FIND(CHAR(160),SUBSTITUTE($G27,\"{\",CHAR(160),EL$1)),FIND(CHAR(160),SUBSTITUTE($G27,\"}\",CHAR(160),EL$1))-FIND(CHAR(160),SUBSTITUTE($G27,\"{\",CHAR(160),EL$1))+1),\"\")","v":""},{"$f":"IFERROR(MID($G27,FIND(CHAR(160),SUBSTITUTE($G27,\"{\",CHAR(160),EM$1)),FIND(CHAR(160),SUBSTITUTE($G27,\"}\",CHAR(160),EM$1))-FIND(CHAR(160),SUBSTITUTE($G27,\"{\",CHAR(160),EM$1))+1),\"\")","v":""},{"$f":"IFERROR(MID($G27,FIND(CHAR(160),SUBSTITUTE($G27,\"{\",CHAR(160),EN$1)),FIND(CHAR(160),SUBSTITUTE($G27,\"}\",CHAR(160),EN$1))-FIND(CHAR(160),SUBSTITUTE($G27,\"{\",CHAR(160),EN$1))+1),\"\")","v":""},{"$f":"IFERROR(MID($G27,FIND(CHAR(160),SUBSTITUTE($G27,\"{\",CHAR(160),EO$1)),FIND(CHAR(160),SUBSTITUTE($G27,\"}\",CHAR(160),EO$1))-FIND(CHAR(160),SUBSTITUTE($G27,\"{\",CHAR(160),EO$1))+1),\"\")","v":""},{"$f":"IFERROR(MID($G27,FIND(CHAR(160),SUBSTITUTE($G27,\"{\",CHAR(160),EP$1)),FIND(CHAR(160),SUBSTITUTE($G27,\"}\",CHAR(160),EP$1))-FIND(CHAR(160),SUBSTITUTE($G27,\"{\",CHAR(160),EP$1))+1),\"\")","v":""},{"$f":"IFERROR(MID($J27,FIND(CHAR(160),SUBSTITUTE($J27,\"{\",CHAR(160),EQ$1)),FIND(CHAR(160),SUBSTITUTE($J27,\"}\",CHAR(160),EQ$1))-FIND(CHAR(160),SUBSTITUTE($J27,\"{\",CHAR(160),EQ$1))+1),\"\")","v":""},{"$f":"IFERROR(MID($J27,FIND(CHAR(160),SUBSTITUTE($J27,\"{\",CHAR(160),ER$1)),FIND(CHAR(160),SUBSTITUTE($J27,\"}\",CHAR(160),ER$1))-FIND(CHAR(160),SUBSTITUTE($J27,\"{\",CHAR(160),ER$1))+1),\"\")","v":""},{"$f":"IFERROR(MID($J27,FIND(CHAR(160),SUBSTITUTE($J27,\"{\",CHAR(160),ES$1)),FIND(CHAR(160),SUBSTITUTE($J27,\"}\",CHAR(160),ES$1))-FIND(CHAR(160),SUBSTITUTE($J27,\"{\",CHAR(160),ES$1))+1),\"\")","v":""},{"$f":"IFERROR(MID($J27,FIND(CHAR(160),SUBSTITUTE($J27,\"{\",CHAR(160),ET$1)),FIND(CHAR(160),SUBSTITUTE($J27,\"}\",CHAR(160),ET$1))-FIND(CHAR(160),SUBSTITUTE($J27,\"{\",CHAR(160),ET$1))+1),\"\")","v":""},{"$f":"IFERROR(MID($J27,FIND(CHAR(160),SUBSTITUTE($J27,\"{\",CHAR(160),EU$1)),FIND(CHAR(160),SUBSTITUTE($J27,\"}\",CHAR(160),EU$1))-FIND(CHAR(160),SUBSTITUTE($J27,\"{\",CHAR(160),EU$1))+1),\"\")","v":""},{"$f":"IFERROR(MID($J27,FIND(CHAR(160),SUBSTITUTE($J27,\"{\",CHAR(160),EV$1)),FIND(CHAR(160),SUBSTITUTE($J27,\"}\",CHAR(160),EV$1))-FIND(CHAR(160),SUBSTITUTE($J27,\"{\",CHAR(160),EV$1))+1),\"\")","v":""},{"$f":"IFERROR(MID($J27,FIND(CHAR(160),SUBSTITUTE($J27,\"{\",CHAR(160),EW$1)),FIND(CHAR(160),SUBSTITUTE($J27,\"}\",CHAR(160),EW$1))-FIND(CHAR(160),SUBSTITUTE($J27,\"{\",CHAR(160),EW$1))+1),\"\")","v":""},{"$f":"IFERROR(MID($J27,FIND(CHAR(160),SUBSTITUTE($J27,\"{\",CHAR(160),EX$1)),FIND(CHAR(160),SUBSTITUTE($J27,\"}\",CHAR(160),EX$1))-FIND(CHAR(160),SUBSTITUTE($J27,\"{\",CHAR(160),EX$1))+1),\"\")","v":""},{"$f":"IFERROR(MID($J27,FIND(CHAR(160),SUBSTITUTE($J27,\"{\",CHAR(160),EY$1)),FIND(CHAR(160),SUBSTITUTE($J27,\"}\",CHAR(160),EY$1))-FIND(CHAR(160),SUBSTITUTE($J27,\"{\",CHAR(160),EY$1))+1),\"\")","v":""},{"$f":"IFERROR(MID($J27,FIND(CHAR(160),SUBSTITUTE($J27,\"{\",CHAR(160),EZ$1)),FIND(CHAR(160),SUBSTITUTE($J27,\"}\",CHAR(160),EZ$1))-FIND(CHAR(160),SUBSTITUTE($J27,\"{\",CHAR(160),EZ$1))+1),\"\")","v":""},{"$f":"IFERROR(MID($J27,FIND(CHAR(160),SUBSTITUTE($J27,\"{\",CHAR(160),FA$1)),FIND(CHAR(160),SUBSTITUTE($J27,\"}\",CHAR(160),FA$1))-FIND(CHAR(160),SUBSTITUTE($J27,\"{\",CHAR(160),FA$1))+1),\"\")","v":""},{"$f":"IFERROR(MID($J27,FIND(CHAR(160),SUBSTITUTE($J27,\"{\",CHAR(160),FB$1)),FIND(CHAR(160),SUBSTITUTE($J27,\"}\",CHAR(160),FB$1))-FIND(CHAR(160),SUBSTITUTE($J27,\"{\",CHAR(160),FB$1))+1),\"\")","v":""},{"$f":"IFERROR(MID($O27,FIND(CHAR(160),SUBSTITUTE($O27,\"{\",CHAR(160),FC$1)),FIND(CHAR(160),SUBSTITUTE($O27,\"}\",CHAR(160),FC$1))-FIND(CHAR(160),SUBSTITUTE($O27,\"{\",CHAR(160),FC$1))+1),\"\")","v":"{# of Milking Units}"},{"$f":"IFERROR(MID($O27,FIND(CHAR(160),SUBSTITUTE($O27,\"{\",CHAR(160),FD$1)),FIND(CHAR(160),SUBSTITUTE($O27,\"}\",CHAR(160),FD$1))-FIND(CHAR(160),SUBSTITUTE($O27,\"{\",CHAR(160),FD$1))+1),\"\")","v":"{Daily Run Time}"},{"$f":"IFERROR(MID($O27,FIND(CHAR(160),SUBSTITUTE($O27,\"{\",CHAR(160),FE$1)),FIND(CHAR(160),SUBSTITUTE($O27,\"}\",CHAR(160),FE$1))-FIND(CHAR(160),SUBSTITUTE($O27,\"{\",CHAR(160),FE$1))+1),\"\")","v":""},{"$f":"IFERROR(MID($O27,FIND(CHAR(160),SUBSTITUTE($O27,\"{\",CHAR(160),FF$1)),FIND(CHAR(160),SUBSTITUTE($O27,\"}\",CHAR(160),FF$1))-FIND(CHAR(160),SUBSTITUTE($O27,\"{\",CHAR(160),FF$1))+1),\"\")","v":""},{"$f":"IFERROR(MID($O27,FIND(CHAR(160),SUBSTITUTE($O27,\"{\",CHAR(160),FG$1)),FIND(CHAR(160),SUBSTITUTE($O27,\"}\",CHAR(160),FG$1))-FIND(CHAR(160),SUBSTITUTE($O27,\"{\",CHAR(160),FG$1))+1),\"\")","v":""},{"$f":"IFERROR(MID($O27,FIND(CHAR(160),SUBSTITUTE($O27,\"{\",CHAR(160),FH$1)),FIND(CHAR(160),SUBSTITUTE($O27,\"}\",CHAR(160),FH$1))-FIND(CHAR(160),SUBSTITUTE($O27,\"{\",CHAR(160),FH$1))+1),\"\")","v":""},{"$f":"IFERROR(MID($O27,FIND(CHAR(160),SUBSTITUTE($O27,\"{\",CHAR(160),FI$1)),FIND(CHAR(160),SUBSTITUTE($O27,\"}\",CHAR(160),FI$1))-FIND(CHAR(160),SUBSTITUTE($O27,\"{\",CHAR(160),FI$1))+1),\"\")","v":""},{"$f":"IFERROR(MID($O27,FIND(CHAR(160),SUBSTITUTE($O27,\"{\",CHAR(160),FJ$1)),FIND(CHAR(160),SUBSTITUTE($O27,\"}\",CHAR(160),FJ$1))-FIND(CHAR(160),SUBSTITUTE($O27,\"{\",CHAR(160),FJ$1))+1),\"\")","v":""},{"$f":"IFERROR(MID($O27,FIND(CHAR(160),SUBSTITUTE($O27,\"{\",CHAR(160),FK$1)),FIND(CHAR(160),SUBSTITUTE($O27,\"}\",CHAR(160),FK$1))-FIND(CHAR(160),SUBSTITUTE($O27,\"{\",CHAR(160),FK$1))+1),\"\")","v":"{Measure:Quantity}"},{"$f":"IFERROR(MID($O27,FIND(CHAR(160),SUBSTITUTE($O27,\"{\",CHAR(160),FL$1)),FIND(CHAR(160),SUBSTITUTE($O27,\"}\",CHAR(160),FL$1))-FIND(CHAR(160),SUBSTITUTE($O27,\"{\",CHAR(160),FL$1))+1),\"\")","v":"{Motor Efficiency}"},{"$f":"IFERROR(MID($R27,FIND(CHAR(160),SUBSTITUTE($R27,\"{\",CHAR(160),FM$1)),FIND(CHAR(160),SUBSTITUTE($R27,\"}\",CHAR(160),FM$1))-FIND(CHAR(160),SUBSTITUTE($R27,\"{\",CHAR(160),FM$1))+1),\"\")","v":"{# of Milking Units}"},{"$f":"IFERROR(MID($R27,FIND(CHAR(160),SUBSTITUTE($R27,\"{\",CHAR(160),FN$1)),FIND(CHAR(160),SUBSTITUTE($R27,\"}\",CHAR(160),FN$1))-FIND(CHAR(160),SUBSTITUTE($R27,\"{\",CHAR(160),FN$1))+1),\"\")","v":""},{"$f":"IFERROR(MID($R27,FIND(CHAR(160),SUBSTITUTE($R27,\"{\",CHAR(160),FO$1)),FIND(CHAR(160),SUBSTITUTE($R27,\"}\",CHAR(160),FO$1))-FIND(CHAR(160),SUBSTITUTE($R27,\"{\",CHAR(160),FO$1))+1),\"\")","v":""},{"$f":"IFERROR(MID($R27,FIND(CHAR(160),SUBSTITUTE($R27,\"{\",CHAR(160),FP$1)),FIND(CHAR(160),SUBSTITUTE($R27,\"}\",CHAR(160),FP$1))-FIND(CHAR(160),SUBSTITUTE($R27,\"{\",CHAR(160),FP$1))+1),\"\")","v":""},{"$f":"IFERROR(MID($R27,FIND(CHAR(160),SUBSTITUTE($R27,\"{\",CHAR(160),FQ$1)),FIND(CHAR(160),SUBSTITUTE($R27,\"}\",CHAR(160),FQ$1))-FIND(CHAR(160),SUBSTITUTE($R27,\"{\",CHAR(160),FQ$1))+1),\"\")","v":""},{"$f":"IFERROR(MID($R27,FIND(CHAR(160),SUBSTITUTE($R27,\"{\",CHAR(160),FR$1)),FIND(CHAR(160),SUBSTITUTE($R27,\"}\",CHAR(160),FR$1))-FIND(CHAR(160),SUBSTITUTE($R27,\"{\",CHAR(160),FR$1))+1),\"\")","v":""},{"$f":"IFERROR(MID($R27,FIND(CHAR(160),SUBSTITUTE($R27,\"{\",CHAR(160),FS$1)),FIND(CHAR(160),SUBSTITUTE($R27,\"}\",CHAR(160),FS$1))-FIND(CHAR(160),SUBSTITUTE($R27,\"{\",CHAR(160),FS$1))+1),\"\")","v":""},{"$f":"IFERROR(MID($R27,FIND(CHAR(160),SUBSTITUTE($R27,\"{\",CHAR(160),FT$1)),FIND(CHAR(160),SUBSTITUTE($R27,\"}\",CHAR(160),FT$1))-FIND(CHAR(160),SUBSTITUTE($R27,\"{\",CHAR(160),FT$1))+1),\"\")","v":""},{"$f":"IFERROR(MID($R27,FIND(CHAR(160),SUBSTITUTE($R27,\"{\",CHAR(160),FU$1)),FIND(CHAR(160),SUBSTITUTE($R27,\"}\",CHAR(160),FU$1))-FIND(CHAR(160),SUBSTITUTE($R27,\"{\",CHAR(160),FU$1))+1),\"\")","v":"{Measure:Quantity}"},{"$f":"IFERROR(MID($R27,FIND(CHAR(160),SUBSTITUTE($R27,\"{\",CHAR(160),FV$1)),FIND(CHAR(160),SUBSTITUTE($R27,\"}\",CHAR(160),FV$1))-FIND(CHAR(160),SUBSTITUTE($R27,\"{\",CHAR(160),FV$1))+1),\"\")","v":"{Motor Efficiency}"},{"$f":"IFERROR(MID($U27,FIND(CHAR(160),SUBSTITUTE($U27,\"{\",CHAR(160),FW$1)),FIND(CHAR(160),SUBSTITUTE($U27,\"}\",CHAR(160),FW$1))-FIND(CHAR(160),SUBSTITUTE($U27,\"{\",CHAR(160),FW$1))+1),\"\")","v":"{# of Milking Units}"},{"$f":"IFERROR(MID($U27,FIND(CHAR(160),SUBSTITUTE($U27,\"{\",CHAR(160),FX$1)),FIND(CHAR(160),SUBSTITUTE($U27,\"}\",CHAR(160),FX$1))-FIND(CHAR(160),SUBSTITUTE($U27,\"{\",CHAR(160),FX$1))+1),\"\")","v":"{Factor:WinterCF}"},{"$f":"IFERROR(MID($U27,FIND(CHAR(160),SUBSTITUTE($U27,\"{\",CHAR(160),FY$1)),FIND(CHAR(160),SUBSTITUTE($U27,\"}\",CHAR(160),FY$1))-FIND(CHAR(160),SUBSTITUTE($U27,\"{\",CHAR(160),FY$1))+1),\"\")","v":""},{"$f":"IFERROR(MID($U27,FIND(CHAR(160),SUBSTITUTE($U27,\"{\",CHAR(160),FZ$1)),FIND(CHAR(160),SUBSTITUTE($U27,\"}\",CHAR(160),FZ$1))-FIND(CHAR(160),SUBSTITUTE($U27,\"{\",CHAR(160),FZ$1))+1),\"\")","v":""},{"$f":"IFERROR(MID($U27,FIND(CHAR(160),SUBSTITUTE($U27,\"{\",CHAR(160),GA$1)),FIND(CHAR(160),SUBSTITUTE($U27,\"}\",CHAR(160),GA$1))-FIND(CHAR(160),SUBSTITUTE($U27,\"{\",CHAR(160),GA$1))+1),\"\")","v":""},{"$f":"IFERROR(MID($U27,FIND(CHAR(160),SUBSTITUTE($U27,\"{\",CHAR(160),GB$1)),FIND(CHAR(160),SUBSTITUTE($U27,\"}\",CHAR(160),GB$1))-FIND(CHAR(160),SUBSTITUTE($U27,\"{\",CHAR(160),GB$1))+1),\"\")","v":""},{"$f":"IFERROR(MID($U27,FIND(CHAR(160),SUBSTITUTE($U27,\"{\",CHAR(160),GC$1)),FIND(CHAR(160),SUBSTITUTE($U27,\"}\",CHAR(160),GC$1))-FIND(CHAR(160),SUBSTITUTE($U27,\"{\",CHAR(160),GC$1))+1),\"\")","v":""},{"$f":"IFERROR(MID($U27,FIND(CHAR(160),SUBSTITUTE($U27,\"{\",CHAR(160),GD$1)),FIND(CHAR(160),SUBSTITUTE($U27,\"}\",CHAR(160),GD$1))-FIND(CHAR(160),SUBSTITUTE($U27,\"{\",CHAR(160),GD$1))+1),\"\")","v":""},{"$f":"IFERROR(MID($U27,FIND(CHAR(160),SUBSTITUTE($U27,\"{\",CHAR(160),GE$1)),FIND(CHAR(160),SUBSTITUTE($U27,\"}\",CHAR(160),GE$1))-FIND(CHAR(160),SUBSTITUTE($U27,\"{\",CHAR(160),GE$1))+1),\"\")","v":"{Measure:Quantity}"},{"$f":"IFERROR(MID($U27,FIND(CHAR(160),SUBSTITUTE($U27,\"{\",CHAR(160),GF$1)),FIND(CHAR(160),SUBSTITUTE($U27,\"}\",CHAR(160),GF$1))-FIND(CHAR(160),SUBSTITUTE($U27,\"{\",CHAR(160),GF$1))+1),\"\")","v":"{Motor Efficiency}"},{"$f":"IFERROR(MID($V27,FIND(CHAR(160),SUBSTITUTE($V27,\"{\",CHAR(160),GG$1)),FIND(CHAR(160),SUBSTITUTE($V27,\"}\",CHAR(160),GG$1))-FIND(CHAR(160),SUBSTITUTE($V27,\"{\",CHAR(160),GG$1))+1),\"\")","v":"{# of Milking Units}"},{"$f":"IFERROR(MID($V27,FIND(CHAR(160),SUBSTITUTE($V27,\"{\",CHAR(160),GH$1)),FIND(CHAR(160),SUBSTITUTE($V27,\"}\",CHAR(160),GH$1))-FIND(CHAR(160),SUBSTITUTE($V27,\"{\",CHAR(160),GH$1))+1),\"\")","v":"{Factor:SummerCF}"},{"$f":"IFERROR(MID($V27,FIND(CHAR(160),SUBSTITUTE($V27,\"{\",CHAR(160),GI$1)),FIND(CHAR(160),SUBSTITUTE($V27,\"}\",CHAR(160),GI$1))-FIND(CHAR(160),SUBSTITUTE($V27,\"{\",CHAR(160),GI$1))+1),\"\")","v":""},{"$f":"IFERROR(MID($V27,FIND(CHAR(160),SUBSTITUTE($V27,\"{\",CHAR(160),GJ$1)),FIND(CHAR(160),SUBSTITUTE($V27,\"}\",CHAR(160),GJ$1))-FIND(CHAR(160),SUBSTITUTE($V27,\"{\",CHAR(160),GJ$1))+1),\"\")","v":""},{"$f":"IFERROR(MID($V27,FIND(CHAR(160),SUBSTITUTE($V27,\"{\",CHAR(160),GK$1)),FIND(CHAR(160),SUBSTITUTE($V27,\"}\",CHAR(160),GK$1))-FIND(CHAR(160),SUBSTITUTE($V27,\"{\",CHAR(160),GK$1))+1),\"\")","v":""},{"$f":"IFERROR(MID($V27,FIND(CHAR(160),SUBSTITUTE($V27,\"{\",CHAR(160),GL$1)),FIND(CHAR(160),SUBSTITUTE($V27,\"}\",CHAR(160),GL$1))-FIND(CHAR(160),SUBSTITUTE($V27,\"{\",CHAR(160),GL$1))+1),\"\")","v":""},{"$f":"IFERROR(MID($V27,FIND(CHAR(160),SUBSTITUTE($V27,\"{\",CHAR(160),GM$1)),FIND(CHAR(160),SUBSTITUTE($V27,\"}\",CHAR(160),GM$1))-FIND(CHAR(160),SUBSTITUTE($V27,\"{\",CHAR(160),GM$1))+1),\"\")","v":""},{"$f":"IFERROR(MID($V27,FIND(CHAR(160),SUBSTITUTE($V27,\"{\",CHAR(160),GN$1)),FIND(CHAR(160),SUBSTITUTE($V27,\"}\",CHAR(160),GN$1))-FIND(CHAR(160),SUBSTITUTE($V27,\"{\",CHAR(160),GN$1))+1),\"\")","v":""},{"$f":"IFERROR(MID($V27,FIND(CHAR(160),SUBSTITUTE($V27,\"{\",CHAR(160),GO$1)),FIND(CHAR(160),SUBSTITUTE($V27,\"}\",CHAR(160),GO$1))-FIND(CHAR(160),SUBSTITUTE($V27,\"{\",CHAR(160),GO$1))+1),\"\")","v":"{Measure:Quantity}"},{"$f":"IFERROR(MID($V27,FIND(CHAR(160),SUBSTITUTE($V27,\"{\",CHAR(160),GP$1)),FIND(CHAR(160),SUBSTITUTE($V27,\"}\",CHAR(160),GP$1))-FIND(CHAR(160),SUBSTITUTE($V27,\"{\",CHAR(160),GP$1))+1),\"\")","v":"{Motor Efficiency}"},{"$f":"IFERROR(MID($W27,FIND(CHAR(160),SUBSTITUTE($W27,\"{\",CHAR(160),GQ$1)),FIND(CHAR(160),SUBSTITUTE($W27,\"}\",CHAR(160),GQ$1))-FIND(CHAR(160),SUBSTITUTE($W27,\"{\",CHAR(160),GQ$1))+1),\"\")","v":""},{"$f":"IFERROR(MID($W27,FIND(CHAR(160),SUBSTITUTE($W27,\"{\",CHAR(160),GR$1)),FIND(CHAR(160),SUBSTITUTE($W27,\"}\",CHAR(160),GR$1))-FIND(CHAR(160),SUBSTITUTE($W27,\"{\",CHAR(160),GR$1))+1),\"\")","v":""},{"$f":"IFERROR(MID($W27,FIND(CHAR(160),SUBSTITUTE($W27,\"{\",CHAR(160),GS$1)),FIND(CHAR(160),SUBSTITUTE($W27,\"}\",CHAR(160),GS$1))-FIND(CHAR(160),SUBSTITUTE($W27,\"{\",CHAR(160),GS$1))+1),\"\")","v":""},{"$f":"IFERROR(MID($W27,FIND(CHAR(160),SUBSTITUTE($W27,\"{\",CHAR(160),GT$1)),FIND(CHAR(160),SUBSTITUTE($W27,\"}\",CHAR(160),GT$1))-FIND(CHAR(160),SUBSTITUTE($W27,\"{\",CHAR(160),GT$1))+1),\"\")","v":""},{"$f":"IFERROR(MID($W27,FIND(CHAR(160),SUBSTITUTE($W27,\"{\",CHAR(160),GU$1)),FIND(CHAR(160),SUBSTITUTE($W27,\"}\",CHAR(160),GU$1))-FIND(CHAR(160),SUBSTITUTE($W27,\"{\",CHAR(160),GU$1))+1),\"\")","v":""},{"$f":"IFERROR(MID($W27,FIND(CHAR(160),SUBSTITUTE($W27,\"{\",CHAR(160),GV$1)),FIND(CHAR(160),SUBSTITUTE($W27,\"}\",CHAR(160),GV$1))-FIND(CHAR(160),SUBSTITUTE($W27,\"{\",CHAR(160),GV$1))+1),\"\")","v":""},{"$f":"IFERROR(MID($W27,FIND(CHAR(160),SUBSTITUTE($W27,\"{\",CHAR(160),GW$1)),FIND(CHAR(160),SUBSTITUTE($W27,\"}\",CHAR(160),GW$1))-FIND(CHAR(160),SUBSTITUTE($W27,\"{\",CHAR(160),GW$1))+1),\"\")","v":""},{"$f":"IFERROR(MID($W27,FIND(CHAR(160),SUBSTITUTE($W27,\"{\",CHAR(160),GX$1)),FIND(CHAR(160),SUBSTITUTE($W27,\"}\",CHAR(160),GX$1))-FIND(CHAR(160),SUBSTITUTE($W27,\"{\",CHAR(160),GX$1))+1),\"\")","v":""},{"$f":"IFERROR(MID($W27,FIND(CHAR(160),SUBSTITUTE($W27,\"{\",CHAR(160),GY$1)),FIND(CHAR(160),SUBSTITUTE($W27,\"}\",CHAR(160),GY$1))-FIND(CHAR(160),SUBSTITUTE($W27,\"{\",CHAR(160),GY$1))+1),\"\")","v":""},{"$f":"IFERROR(MID($W27,FIND(CHAR(160),SUBSTITUTE($W27,\"{\",CHAR(160),GZ$1)),FIND(CHAR(160),SUBSTITUTE($W27,\"}\",CHAR(160),GZ$1))-FIND(CHAR(160),SUBSTITUTE($W27,\"{\",CHAR(160),GZ$1))+1),\"\")","v":""},{"$f":"IFERROR(MID($X27,FIND(CHAR(160),SUBSTITUTE($X27,\"{\",CHAR(160),HA$1)),FIND(CHAR(160),SUBSTITUTE($X27,\"}\",CHAR(160),HA$1))-FIND(CHAR(160),SUBSTITUTE($X27,\"{\",CHAR(160),HA$1))+1),\"\")","v":""},{"$f":"IFERROR(MID($X27,FIND(CHAR(160),SUBSTITUTE($X27,\"{\",CHAR(160),HB$1)),FIND(CHAR(160),SUBSTITUTE($X27,\"}\",CHAR(160),HB$1))-FIND(CHAR(160),SUBSTITUTE($X27,\"{\",CHAR(160),HB$1))+1),\"\")","v":""},{"$f":"IFERROR(MID($X27,FIND(CHAR(160),SUBSTITUTE($X27,\"{\",CHAR(160),HC$1)),FIND(CHAR(160),SUBSTITUTE($X27,\"}\",CHAR(160),HC$1))-FIND(CHAR(160),SUBSTITUTE($X27,\"{\",CHAR(160),HC$1))+1),\"\")","v":""},{"$f":"IFERROR(MID($X27,FIND(CHAR(160),SUBSTITUTE($X27,\"{\",CHAR(160),HD$1)),FIND(CHAR(160),SUBSTITUTE($X27,\"}\",CHAR(160),HD$1))-FIND(CHAR(160),SUBSTITUTE($X27,\"{\",CHAR(160),HD$1))+1),\"\")","v":""},{"$f":"IFERROR(MID($X27,FIND(CHAR(160),SUBSTITUTE($X27,\"{\",CHAR(160),HE$1)),FIND(CHAR(160),SUBSTITUTE($X27,\"}\",CHAR(160),HE$1))-FIND(CHAR(160),SUBSTITUTE($X27,\"{\",CHAR(160),HE$1))+1),\"\")","v":""},{"$f":"IFERROR(MID($X27,FIND(CHAR(160),SUBSTITUTE($X27,\"{\",CHAR(160),HF$1)),FIND(CHAR(160),SUBSTITUTE($X27,\"}\",CHAR(160),HF$1))-FIND(CHAR(160),SUBSTITUTE($X27,\"{\",CHAR(160),HF$1))+1),\"\")","v":""},{"$f":"IFERROR(MID($X27,FIND(CHAR(160),SUBSTITUTE($X27,\"{\",CHAR(160),HG$1)),FIND(CHAR(160),SUBSTITUTE($X27,\"}\",CHAR(160),HG$1))-FIND(CHAR(160),SUBSTITUTE($X27,\"{\",CHAR(160),HG$1))+1),\"\")","v":""},{"$f":"IFERROR(MID($X27,FIND(CHAR(160),SUBSTITUTE($X27,\"{\",CHAR(160),HH$1)),FIND(CHAR(160),SUBSTITUTE($X27,\"}\",CHAR(160),HH$1))-FIND(CHAR(160),SUBSTITUTE($X27,\"{\",CHAR(160),HH$1))+1),\"\")","v":""},{"$f":"IFERROR(MID($X27,FIND(CHAR(160),SUBSTITUTE($X27,\"{\",CHAR(160),HI$1)),FIND(CHAR(160),SUBSTITUTE($X27,\"}\",CHAR(160),HI$1))-FIND(CHAR(160),SUBSTITUTE($X27,\"{\",CHAR(160),HI$1))+1),\"\")","v":""},{"$f":"IFERROR(MID($X27,FIND(CHAR(160),SUBSTITUTE($X27,\"{\",CHAR(160),HJ$1)),FIND(CHAR(160),SUBSTITUTE($X27,\"}\",CHAR(160),HJ$1))-FIND(CHAR(160),SUBSTITUTE($X27,\"{\",CHAR(160),HJ$1))+1),\"\")","v":""},{"$f":"IFERROR(MID($Y27,FIND(CHAR(160),SUBSTITUTE($Y27,\"{\",CHAR(160),HK$1)),FIND(CHAR(160),SUBSTITUTE($Y27,\"}\",CHAR(160),HK$1))-FIND(CHAR(160),SUBSTITUTE($Y27,\"{\",CHAR(160),HK$1))+1),\"\")","v":""},{"$f":"IFERROR(MID($Y27,FIND(CHAR(160),SUBSTITUTE($Y27,\"{\",CHAR(160),HL$1)),FIND(CHAR(160),SUBSTITUTE($Y27,\"}\",CHAR(160),HL$1))-FIND(CHAR(160),SUBSTITUTE($Y27,\"{\",CHAR(160),HL$1))+1),\"\")","v":""},{"$f":"IFERROR(MID($Y27,FIND(CHAR(160),SUBSTITUTE($Y27,\"{\",CHAR(160),HM$1)),FIND(CHAR(160),SUBSTITUTE($Y27,\"}\",CHAR(160),HM$1))-FIND(CHAR(160),SUBSTITUTE($Y27,\"{\",CHAR(160),HM$1))+1),\"\")","v":""},{"$f":"IFERROR(MID($Y27,FIND(CHAR(160),SUBSTITUTE($Y27,\"{\",CHAR(160),HN$1)),FIND(CHAR(160),SUBSTITUTE($Y27,\"}\",CHAR(160),HN$1))-FIND(CHAR(160),SUBSTITUTE($Y27,\"{\",CHAR(160),HN$1))+1),\"\")","v":""},{"$f":"IFERROR(MID($Y27,FIND(CHAR(160),SUBSTITUTE($Y27,\"{\",CHAR(160),HO$1)),FIND(CHAR(160),SUBSTITUTE($Y27,\"}\",CHAR(160),HO$1))-FIND(CHAR(160),SUBSTITUTE($Y27,\"{\",CHAR(160),HO$1))+1),\"\")","v":""},{"$f":"IFERROR(MID($Y27,FIND(CHAR(160),SUBSTITUTE($Y27,\"{\",CHAR(160),HP$1)),FIND(CHAR(160),SUBSTITUTE($Y27,\"}\",CHAR(160),HP$1))-FIND(CHAR(160),SUBSTITUTE($Y27,\"{\",CHAR(160),HP$1))+1),\"\")","v":""},{"$f":"IFERROR(MID($Y27,FIND(CHAR(160),SUBSTITUTE($Y27,\"{\",CHAR(160),HQ$1)),FIND(CHAR(160),SUBSTITUTE($Y27,\"}\",CHAR(160),HQ$1))-FIND(CHAR(160),SUBSTITUTE($Y27,\"{\",CHAR(160),HQ$1))+1),\"\")","v":""},{"$f":"IFERROR(MID($Y27,FIND(CHAR(160),SUBSTITUTE($Y27,\"{\",CHAR(160),HR$1)),FIND(CHAR(160),SUBSTITUTE($Y27,\"}\",CHAR(160),HR$1))-FIND(CHAR(160),SUBSTITUTE($Y27,\"{\",CHAR(160),HR$1))+1),\"\")","v":""},{"$f":"IFERROR(MID($Y27,FIND(CHAR(160),SUBSTITUTE($Y27,\"{\",CHAR(160),HS$1)),FIND(CHAR(160),SUBSTITUTE($Y27,\"}\",CHAR(160),HS$1))-FIND(CHAR(160),SUBSTITUTE($Y27,\"{\",CHAR(160),HS$1))+1),\"\")","v":""},{"$f":"IFERROR(MID($Y27,FIND(CHAR(160),SUBSTITUTE($Y27,\"{\",CHAR(160),HT$1)),FIND(CHAR(160),SUBSTITUTE($Y27,\"}\",CHAR(160),HT$1))-FIND(CHAR(160),SUBSTITUTE($Y27,\"{\",CHAR(160),HT$1))+1),\"\")","v":""},{"$f":"IFERROR(MID($Z27,FIND(CHAR(160),SUBSTITUTE($Z27,\"{\",CHAR(160),HU$1)),FIND(CHAR(160),SUBSTITUTE($Z27,\"}\",CHAR(160),HU$1))-FIND(CHAR(160),SUBSTITUTE($Z27,\"{\",CHAR(160),HU$1))+1),\"\")","v":""},{"$f":"IFERROR(MID($Z27,FIND(CHAR(160),SUBSTITUTE($Z27,\"{\",CHAR(160),HV$1)),FIND(CHAR(160),SUBSTITUTE($Z27,\"}\",CHAR(160),HV$1))-FIND(CHAR(160),SUBSTITUTE($Z27,\"{\",CHAR(160),HV$1))+1),\"\")","v":""},{"$f":"IFERROR(MID($Z27,FIND(CHAR(160),SUBSTITUTE($Z27,\"{\",CHAR(160),HW$1)),FIND(CHAR(160),SUBSTITUTE($Z27,\"}\",CHAR(160),HW$1))-FIND(CHAR(160),SUBSTITUTE($Z27,\"{\",CHAR(160),HW$1))+1),\"\")","v":""},{"$f":"IFERROR(MID($Z27,FIND(CHAR(160),SUBSTITUTE($Z27,\"{\",CHAR(160),HX$1)),FIND(CHAR(160),SUBSTITUTE($Z27,\"}\",CHAR(160),HX$1))-FIND(CHAR(160),SUBSTITUTE($Z27,\"{\",CHAR(160),HX$1))+1),\"\")","v":""},{"$f":"IFERROR(MID($Z27,FIND(CHAR(160),SUBSTITUTE($Z27,\"{\",CHAR(160),HY$1)),FIND(CHAR(160),SUBSTITUTE($Z27,\"}\",CHAR(160),HY$1))-FIND(CHAR(160),SUBSTITUTE($Z27,\"{\",CHAR(160),HY$1))+1),\"\")","v":""},{"$f":"IFERROR(MID($Z27,FIND(CHAR(160),SUBSTITUTE($Z27,\"{\",CHAR(160),HZ$1)),FIND(CHAR(160),SUBSTITUTE($Z27,\"}\",CHAR(160),HZ$1))-FIND(CHAR(160),SUBSTITUTE($Z27,\"{\",CHAR(160),HZ$1))+1),\"\")","v":""},{"$f":"IFERROR(MID($Z27,FIND(CHAR(160),SUBSTITUTE($Z27,\"{\",CHAR(160),IA$1)),FIND(CHAR(160),SUBSTITUTE($Z27,\"}\",CHAR(160),IA$1))-FIND(CHAR(160),SUBSTITUTE($Z27,\"{\",CHAR(160),IA$1))+1),\"\")","v":""},{"$f":"IFERROR(MID($Z27,FIND(CHAR(160),SUBSTITUTE($Z27,\"{\",CHAR(160),IB$1)),FIND(CHAR(160),SUBSTITUTE($Z27,\"}\",CHAR(160),IB$1))-FIND(CHAR(160),SUBSTITUTE($Z27,\"{\",CHAR(160),IB$1))+1),\"\")","v":""},{"$f":"IFERROR(MID($Z27,FIND(CHAR(160),SUBSTITUTE($Z27,\"{\",CHAR(160),IC$1)),FIND(CHAR(160),SUBSTITUTE($Z27,\"}\",CHAR(160),IC$1))-FIND(CHAR(160),SUBSTITUTE($Z27,\"{\",CHAR(160),IC$1))+1),\"\")","v":""},{"$f":"IFERROR(MID($Z27,FIND(CHAR(160),SUBSTITUTE($Z27,\"{\",CHAR(160),ID$1)),FIND(CHAR(160),SUBSTITUTE($Z27,\"}\",CHAR(160),ID$1))-FIND(CHAR(160),SUBSTITUTE($Z27,\"{\",CHAR(160),ID$1))+1),\"\")","v":""},{"$f":"IFERROR(MID($AA27,FIND(CHAR(160),SUBSTITUTE($AA27,\"{\",CHAR(160),IE$1)),FIND(CHAR(160),SUBSTITUTE($AA27,\"}\",CHAR(160),IE$1))-FIND(CHAR(160),SUBSTITUTE($AA27,\"{\",CHAR(160),IE$1))+1),\"\")","v":""},{"$f":"IFERROR(MID($AA27,FIND(CHAR(160),SUBSTITUTE($AA27,\"{\",CHAR(160),IF$1)),FIND(CHAR(160),SUBSTITUTE($AA27,\"}\",CHAR(160),IF$1))-FIND(CHAR(160),SUBSTITUTE($AA27,\"{\",CHAR(160),IF$1))+1),\"\")","v":""},{"$f":"IFERROR(MID($AA27,FIND(CHAR(160),SUBSTITUTE($AA27,\"{\",CHAR(160),IG$1)),FIND(CHAR(160),SUBSTITUTE($AA27,\"}\",CHAR(160),IG$1))-FIND(CHAR(160),SUBSTITUTE($AA27,\"{\",CHAR(160),IG$1))+1),\"\")","v":""},{"$f":"IFERROR(MID($AA27,FIND(CHAR(160),SUBSTITUTE($AA27,\"{\",CHAR(160),IH$1)),FIND(CHAR(160),SUBSTITUTE($AA27,\"}\",CHAR(160),IH$1))-FIND(CHAR(160),SUBSTITUTE($AA27,\"{\",CHAR(160),IH$1))+1),\"\")","v":""},{"$f":"IFERROR(MID($AA27,FIND(CHAR(160),SUBSTITUTE($AA27,\"{\",CHAR(160),II$1)),FIND(CHAR(160),SUBSTITUTE($AA27,\"}\",CHAR(160),II$1))-FIND(CHAR(160),SUBSTITUTE($AA27,\"{\",CHAR(160),II$1))+1),\"\")","v":""},{"$f":"IFERROR(MID($AA27,FIND(CHAR(160),SUBSTITUTE($AA27,\"{\",CHAR(160),IJ$1)),FIND(CHAR(160),SUBSTITUTE($AA27,\"}\",CHAR(160),IJ$1))-FIND(CHAR(160),SUBSTITUTE($AA27,\"{\",CHAR(160),IJ$1))+1),\"\")","v":""},{"$f":"IFERROR(MID($AA27,FIND(CHAR(160),SUBSTITUTE($AA27,\"{\",CHAR(160),IK$1)),FIND(CHAR(160),SUBSTITUTE($AA27,\"}\",CHAR(160),IK$1))-FIND(CHAR(160),SUBSTITUTE($AA27,\"{\",CHAR(160),IK$1))+1),\"\")","v":""},{"$f":"IFERROR(MID($AA27,FIND(CHAR(160),SUBSTITUTE($AA27,\"{\",CHAR(160),IL$1)),FIND(CHAR(160),SUBSTITUTE($AA27,\"}\",CHAR(160),IL$1))-FIND(CHAR(160),SUBSTITUTE($AA27,\"{\",CHAR(160),IL$1))+1),\"\")","v":""},{"$f":"IFERROR(MID($AA27,FIND(CHAR(160),SUBSTITUTE($AA27,\"{\",CHAR(160),IM$1)),FIND(CHAR(160),SUBSTITUTE($AA27,\"}\",CHAR(160),IM$1))-FIND(CHAR(160),SUBSTITUTE($AA27,\"{\",CHAR(160),IM$1))+1),\"\")","v":""},{"$f":"IFERROR(MID($AA27,FIND(CHAR(160),SUBSTITUTE($AA27,\"{\",CHAR(160),IN$1)),FIND(CHAR(160),SUBSTITUTE($AA27,\"}\",CHAR(160),IN$1))-FIND(CHAR(160),SUBSTITUTE($AA27,\"{\",CHAR(160),IN$1))+1),\"\")","v":""},{"$f":"IFERROR(MID($AB27,FIND(CHAR(160),SUBSTITUTE($AB27,\"{\",CHAR(160),IO$1)),FIND(CHAR(160),SUBSTITUTE($AB27,\"}\",CHAR(160),IO$1))-FIND(CHAR(160),SUBSTITUTE($AB27,\"{\",CHAR(160),IO$1))+1),\"\")","v":""},{"$f":"IFERROR(MID($AB27,FIND(CHAR(160),SUBSTITUTE($AB27,\"{\",CHAR(160),IP$1)),FIND(CHAR(160),SUBSTITUTE($AB27,\"}\",CHAR(160),IP$1))-FIND(CHAR(160),SUBSTITUTE($AB27,\"{\",CHAR(160),IP$1))+1),\"\")","v":""},{"$f":"IFERROR(MID($AB27,FIND(CHAR(160),SUBSTITUTE($AB27,\"{\",CHAR(160),IQ$1)),FIND(CHAR(160),SUBSTITUTE($AB27,\"}\",CHAR(160),IQ$1))-FIND(CHAR(160),SUBSTITUTE($AB27,\"{\",CHAR(160),IQ$1))+1),\"\")","v":""},{"$f":"IFERROR(MID($AB27,FIND(CHAR(160),SUBSTITUTE($AB27,\"{\",CHAR(160),IR$1)),FIND(CHAR(160),SUBSTITUTE($AB27,\"}\",CHAR(160),IR$1))-FIND(CHAR(160),SUBSTITUTE($AB27,\"{\",CHAR(160),IR$1))+1),\"\")","v":""},{"$f":"IFERROR(MID($AB27,FIND(CHAR(160),SUBSTITUTE($AB27,\"{\",CHAR(160),IS$1)),FIND(CHAR(160),SUBSTITUTE($AB27,\"}\",CHAR(160),IS$1))-FIND(CHAR(160),SUBSTITUTE($AB27,\"{\",CHAR(160),IS$1))+1),\"\")","v":""},{"$f":"IFERROR(MID($AB27,FIND(CHAR(160),SUBSTITUTE($AB27,\"{\",CHAR(160),IT$1)),FIND(CHAR(160),SUBSTITUTE($AB27,\"}\",CHAR(160),IT$1))-FIND(CHAR(160),SUBSTITUTE($AB27,\"{\",CHAR(160),IT$1))+1),\"\")","v":""},{"$f":"IFERROR(MID($AB27,FIND(CHAR(160),SUBSTITUTE($AB27,\"{\",CHAR(160),IU$1)),FIND(CHAR(160),SUBSTITUTE($AB27,\"}\",CHAR(160),IU$1))-FIND(CHAR(160),SUBSTITUTE($AB27,\"{\",CHAR(160),IU$1))+1),\"\")","v":""},{"$f":"IFERROR(MID($AB27,FIND(CHAR(160),SUBSTITUTE($AB27,\"{\",CHAR(160),IV$1)),FIND(CHAR(160),SUBSTITUTE($AB27,\"}\",CHAR(160),IV$1))-FIND(CHAR(160),SUBSTITUTE($AB27,\"{\",CHAR(160),IV$1))+1),\"\")","v":""},{"$f":"IFERROR(MID($AB27,FIND(CHAR(160),SUBSTITUTE($AB27,\"{\",CHAR(160),IW$1)),FIND(CHAR(160),SUBSTITUTE($AB27,\"}\",CHAR(160),IW$1))-FIND(CHAR(160),SUBSTITUTE($AB27,\"{\",CHAR(160),IW$1))+1),\"\")","v":""},{"$f":"IFERROR(MID($AB27,FIND(CHAR(160),SUBSTITUTE($AB27,\"{\",CHAR(160),IX$1)),FIND(CHAR(160),SUBSTITUTE($AB27,\"}\",CHAR(160),IX$1))-FIND(CHAR(160),SUBSTITUTE($AB27,\"{\",CHAR(160),IX$1))+1),\"\")","v":""},null,{"$f":"10-COUNTIF(DU27:ED27,\"\")","v":4}]
["C&I Agricultural Solutions","MILK: Vacuum Pump with Adjustable Speed Drive Package - 10 HP","AMVP - VP10","2021-07-01","2022-06-30","Per Measure",5322,0,"Per Measure",2500,0,"2016-07-01","2022-06-30","Calculated","{Measure:Quantity} * (((10*0.746*.75/({Motor Efficiency}/100)) - (.0495*(2*{# of Milking Units})+1.7729))*{Daily Run Time}*365)",1E-4,null,"{Measure:Quantity} * ((10*0.746*.75/({Motor Efficiency}/100)) - (.0495*(2*{# of Milking Units})+1.7729))",null,null,"({Measure:Quantity} * ((10*0.746*.75/({Motor Efficiency}/100)) - (.0495*(2*{# of Milking Units})+1.7729)))*{Factor:WinterCF}","({Measure:Quantity} * ((10*0.746*.75/({Motor Efficiency}/100)) - (.0495*(2*{# of Milking Units})+1.7729)))*{Factor:SummerCF}",null,null,null,null,null,null,"2020-04-01","2022-06-30",15,0.46700000000000003,0.27500000000000002,0.36899999999999999,0.30099999999999999,0.182,0.14799999999999999,1,1.1220000000000001,1,0.52,1.6E-2,null,{"$f":"DU28","v":"{# of Milking Units}"},1,{"$f":"DV28","v":"{Daily Run Time}"},91.7,{"$f":"DW28","v":"{Measure:Quantity}"},10,{"$f":"DX28","v":"{Motor Efficiency}"},2,{"$f":"DY28","v":""},null,{"$f":"DZ28","v":""},null,{"$f":"EA28","v":""},null,{"$f":"EB28","v":""},null,{"$f":"EC28","v":""},null,{"$f":"ED28","v":""},null,{"$f":"AS28 * (((10*0.746*0.75/(AU28/100)) - (0.0495*(2*AW28)+1.7729))*AY28*365)","v":2437.1178964013079},{"$f":"0.0001","v":1E-4},0,{"$f":"AS28 * ((10*0.746*0.75/(AU28/100)) - (0.0495*(2*AW28)+1.7729))","v":3.3385176663031615},0,0,{"$f":"(AS28 * ((10*0.746*0.75/(AU28/100)) - (0.0495*(2*AW28)+1.7729)))*AF28","v":1.5590877501635765},{"$f":"(AS28 * ((10*0.746*0.75/(AU28/100)) - (0.0495*(2*AW28)+1.7729)))*AG28","v":0.91809235823336943},0,0,0,0,0,0,null,"Res","Default DR",{"$f":"Benefits(BL28,BR28,BS28,BT28,BU28,BV28,BW28,BX28,BY28,BZ28,AE28,AH28,AI28,AJ28,AK28,AL28,AM28,AN28,AO28,AP28,CA28,CB28)","v":3649.7227564566547},7599.5570714852083,0,0,0,0,0,0,0,{"$f":"SUMPRODUCT(CC28:CK28,--(CC28:CK28>0))","v":11249.279827941864},{"$f":"-SUMPRODUCT(CC28:CK28,--(CC28:CK28<0))","v":0},null,{"$f":"5322","v":5322},null,null,{"$f":"CM28+CO28","v":5322},{"$f":"IF(NetOrGross=\"Net\",(1-AO28+AP28),1)","v":1},{"$f":"(SUMPRODUCT(CC28:CJ28,--(CC28:CJ28>0))+CN28)*CS28/((-SUMPRODUCT(CC28:CJ28,--(CC28:CJ28<0))+MAX(CO28,CV28)+CP28+CQ28)*CS28+IF(FRIncentives=\"Yes\",CV28*(1-CS28),0))","v":2.1137316474900159},1,{"$f":"2500","v":2500},null,"Electric","y",null,{"$f":"IF(F28=\"Manual Entry\",\"Manual\",IF(G28=\"\",0,\"X=\"&SUBSTITUTE(SUBSTITUTE(SUBSTITUTE(SUBSTITUTE(SUBSTITUTE(SUBSTITUTE(SUBSTITUTE(SUBSTITUTE(SUBSTITUTE(SUBSTITUTE(SUBSTITUTE(SUBSTITUTE(G28,$ED28,$ED$2&ROW($ED28)),$EC28,$EC$2&ROW($EC28)),$EB28,$EB$2&ROW($EB28)),$EA28,$EA$2&ROW($EA28)),$DZ28,$DZ$2&ROW($DZ28)),$DY28,$DY$2&ROW($DY28)),$DX28,$DX$2&ROW($DX28)),$DW28,$DW$2&ROW($DW28)),$DV28,$DV$2&ROW($DV28)),$DU28,$DU$2&ROW($DU28)),$DT28,$DT$2&ROW($DT28)),$DS28,$DS$2&ROW($DS28))))","v":"X=5322"},{"$f":"IF(I28=\"Manual Entry\",\"Manual\",IF(J28=\"\",0,\"X=\"&SUBSTITUTE(SUBSTITUTE(SUBSTITUTE(SUBSTITUTE(SUBSTITUTE(SUBSTITUTE(SUBSTITUTE(SUBSTITUTE(SUBSTITUTE(SUBSTITUTE(SUBSTITUTE(SUBSTITUTE(J28,$ED28,$ED$2&ROW($ED28)),$EC28,$EC$2&ROW($EC28)),$EB28,$EB$2&ROW($EB28)),$EA28,$EA$2&ROW($EA28)),$DZ28,$DZ$2&ROW($DZ28)),$DY28,$DY$2&ROW($DY28)),$DX28,$DX$2&ROW($DX28)),$DW28,$DW$2&ROW($DW28)),$DV28,$DV$2&ROW($DV28)),$DU28,$DU$2&ROW($DU28)),$DT28,$DT$2&ROW($DT28)),$DS28,$DS$2&ROW($DS28))))","v":"X=2500"},{"$f":"IF(O28=\"\",0,\"X=\"&SUBSTITUTE(SUBSTITUTE(SUBSTITUTE(SUBSTITUTE(SUBSTITUTE(SUBSTITUTE(SUBSTITUTE(SUBSTITUTE(SUBSTITUTE(SUBSTITUTE(SUBSTITUTE(SUBSTITUTE(O28,$ED28,$ED$2&ROW($ED28)),$EC28,$EC$2&ROW($EC28)),$EB28,$EB$2&ROW($EB28)),$EA28,$EA$2&ROW($EA28)),$DZ28,$DZ$2&ROW($DZ28)),$DY28,$DY$2&ROW($DY28)),$DX28,$DX$2&ROW($DX28)),$DW28,$DW$2&ROW($DW28)),$DV28,$DV$2&ROW($DV28)),$DU28,$DU$2&ROW($DU28)),$DT28,$DT$2&ROW($DT28)),$DS28,$DS$2&ROW($DS28)))","v":"X=AW28 * (((10*0.746*.75/(AY28/100)) - (.0495*(2*AS28)+1.7729))*AU28*365)"},{"$f":"IF(P28=\"\",0,\"X=\"&SUBSTITUTE(SUBSTITUTE(SUBSTITUTE(SUBSTITUTE(SUBSTITUTE(SUBSTITUTE(SUBSTITUTE(SUBSTITUTE(SUBSTITUTE(SUBSTITUTE(SUBSTITUTE(SUBSTITUTE(P28,$ED28,$ED$2&ROW($ED28)),$EC28,$EC$2&ROW($EC28)),$EB28,$EB$2&ROW($EB28)),$EA28,$EA$2&ROW($EA28)),$DZ28,$DZ$2&ROW($DZ28)),$DY28,$DY$2&ROW($DY28)),$DX28,$DX$2&ROW($DX28)),$DW28,$DW$2&ROW($DW28)),$DV28,$DV$2&ROW($DV28)),$DU28,$DU$2&ROW($DU28)),$DT28,$DT$2&ROW($DT28)),$DS28,$DS$2&ROW($DS28)))","v":"X=0.0001"},{"$f":"IF(Q28=\"\",0,\"X=\"&SUBSTITUTE(SUBSTITUTE(SUBSTITUTE(SUBSTITUTE(SUBSTITUTE(SUBSTITUTE(SUBSTITUTE(SUBSTITUTE(SUBSTITUTE(SUBSTITUTE(SUBSTITUTE(SUBSTITUTE(Q28,$ED28,$ED$2&ROW($ED28)),$EC28,$EC$2&ROW($EC28)),$EB28,$EB$2&ROW($EB28)),$EA28,$EA$2&ROW($EA28)),$DZ28,$DZ$2&ROW($DZ28)),$DY28,$DY$2&ROW($DY28)),$DX28,$DX$2&ROW($DX28)),$DW28,$DW$2&ROW($DW28)),$DV28,$DV$2&ROW($DV28)),$DU28,$DU$2&ROW($DU28)),$DT28,$DT$2&ROW($DT28)),$DS28,$DS$2&ROW($DS28)))","v":0},{"$f":"IF(R28=\"\",0,\"X=\"&SUBSTITUTE(SUBSTITUTE(SUBSTITUTE(SUBSTITUTE(SUBSTITUTE(SUBSTITUTE(SUBSTITUTE(SUBSTITUTE(SUBSTITUTE(SUBSTITUTE(SUBSTITUTE(SUBSTITUTE(R28,$ED28,$ED$2&ROW($ED28)),$EC28,$EC$2&ROW($EC28)),$EB28,$EB$2&ROW($EB28)),$EA28,$EA$2&ROW($EA28)),$DZ28,$DZ$2&ROW($DZ28)),$DY28,$DY$2&ROW($DY28)),$DX28,$DX$2&ROW($DX28)),$DW28,$DW$2&ROW($DW28)),$DV28,$DV$2&ROW($DV28)),$DU28,$DU$2&ROW($DU28)),$DT28,$DT$2&ROW($DT28)),$DS28,$DS$2&ROW($DS28)))","v":"X=AW28 * ((10*0.746*.75/(AY28/100)) - (.0495*(2*AS28)+1.7729))"},{"$f":"IF(S28=\"\",0,\"X=\"&SUBSTITUTE(SUBSTITUTE(SUBSTITUTE(SUBSTITUTE(SUBSTITUTE(SUBSTITUTE(SUBSTITUTE(SUBSTITUTE(SUBSTITUTE(SUBSTITUTE(SUBSTITUTE(SUBSTITUTE(S28,$ED28,$ED$2&ROW($ED28)),$EC28,$EC$2&ROW($EC28)),$EB28,$EB$2&ROW($EB28)),$EA28,$EA$2&ROW($EA28)),$DZ28,$DZ$2&ROW($DZ28)),$DY28,$DY$2&ROW($DY28)),$DX28,$DX$2&ROW($DX28)),$DW28,$DW$2&ROW($DW28)),$DV28,$DV$2&ROW($DV28)),$DU28,$DU$2&ROW($DU28)),$DT28,$DT$2&ROW($DT28)),$DS28,$DS$2&ROW($DS28)))","v":0},{"$f":"IF(T28=\"\",0,\"X=\"&SUBSTITUTE(SUBSTITUTE(SUBSTITUTE(SUBSTITUTE(SUBSTITUTE(SUBSTITUTE(SUBSTITUTE(SUBSTITUTE(SUBSTITUTE(SUBSTITUTE(SUBSTITUTE(SUBSTITUTE(T28,$ED28,$ED$2&ROW($ED28)),$EC28,$EC$2&ROW($EC28)),$EB28,$EB$2&ROW($EB28)),$EA28,$EA$2&ROW($EA28)),$DZ28,$DZ$2&ROW($DZ28)),$DY28,$DY$2&ROW($DY28)),$DX28,$DX$2&ROW($DX28)),$DW28,$DW$2&ROW($DW28)),$DV28,$DV$2&ROW($DV28)),$DU28,$DU$2&ROW($DU28)),$DT28,$DT$2&ROW($DT28)),$DS28,$DS$2&ROW($DS28)))","v":0},{"$f":"IF(U28=\"\",0,\"X=\"&SUBSTITUTE(SUBSTITUTE(SUBSTITUTE(SUBSTITUTE(SUBSTITUTE(SUBSTITUTE(SUBSTITUTE(SUBSTITUTE(SUBSTITUTE(SUBSTITUTE(SUBSTITUTE(SUBSTITUTE(U28,$ED28,$ED$2&ROW($ED28)),$EC28,$EC$2&ROW($EC28)),$EB28,$EB$2&ROW($EB28)),$EA28,$EA$2&ROW($EA28)),$DZ28,$DZ$2&ROW($DZ28)),$DY28,$DY$2&ROW($DY28)),$DX28,$DX$2&ROW($DX28)),$DW28,$DW$2&ROW($DW28)),$DV28,$DV$2&ROW($DV28)),$DU28,$DU$2&ROW($DU28)),$DT28,$DT$2&ROW($DT28)),$DS28,$DS$2&ROW($DS28)))","v":"X=(AW28 * ((10*0.746*.75/(AY28/100)) - (.0495*(2*AS28)+1.7729)))*AF28"},{"$f":"IF(V28=\"\",0,\"X=\"&SUBSTITUTE(SUBSTITUTE(SUBSTITUTE(SUBSTITUTE(SUBSTITUTE(SUBSTITUTE(SUBSTITUTE(SUBSTITUTE(SUBSTITUTE(SUBSTITUTE(SUBSTITUTE(SUBSTITUTE(V28,$ED28,$ED$2&ROW($ED28)),$EC28,$EC$2&ROW($EC28)),$EB28,$EB$2&ROW($EB28)),$EA28,$EA$2&ROW($EA28)),$DZ28,$DZ$2&ROW($DZ28)),$DY28,$DY$2&ROW($DY28)),$DX28,$DX$2&ROW($DX28)),$DW28,$DW$2&ROW($DW28)),$DV28,$DV$2&ROW($DV28)),$DU28,$DU$2&ROW($DU28)),$DT28,$DT$2&ROW($DT28)),$DS28,$DS$2&ROW($DS28)))","v":"X=(AW28 * ((10*0.746*.75/(AY28/100)) - (.0495*(2*AS28)+1.7729)))*AG28"},{"$f":"IF(W28=\"\",0,\"X=\"&SUBSTITUTE(SUBSTITUTE(SUBSTITUTE(SUBSTITUTE(SUBSTITUTE(SUBSTITUTE(SUBSTITUTE(SUBSTITUTE(SUBSTITUTE(SUBSTITUTE(SUBSTITUTE(SUBSTITUTE(W28,$ED28,$ED$2&ROW($ED28)),$EC28,$EC$2&ROW($EC28)),$EB28,$EB$2&ROW($EB28)),$EA28,$EA$2&ROW($EA28)),$DZ28,$DZ$2&ROW($DZ28)),$DY28,$DY$2&ROW($DY28)),$DX28,$DX$2&ROW($DX28)),$DW28,$DW$2&ROW($DW28)),$DV28,$DV$2&ROW($DV28)),$DU28,$DU$2&ROW($DU28)),$DT28,$DT$2&ROW($DT28)),$DS28,$DS$2&ROW($DS28)))","v":0},{"$f":"IF(X28=\"\",0,\"X=\"&SUBSTITUTE(SUBSTITUTE(SUBSTITUTE(SUBSTITUTE(SUBSTITUTE(SUBSTITUTE(SUBSTITUTE(SUBSTITUTE(SUBSTITUTE(SUBSTITUTE(SUBSTITUTE(SUBSTITUTE(X28,$ED28,$ED$2&ROW($ED28)),$EC28,$EC$2&ROW($EC28)),$EB28,$EB$2&ROW($EB28)),$EA28,$EA$2&ROW($EA28)),$DZ28,$DZ$2&ROW($DZ28)),$DY28,$DY$2&ROW($DY28)),$DX28,$DX$2&ROW($DX28)),$DW28,$DW$2&ROW($DW28)),$DV28,$DV$2&ROW($DV28)),$DU28,$DU$2&ROW($DU28)),$DT28,$DT$2&ROW($DT28)),$DS28,$DS$2&ROW($DS28)))","v":0},{"$f":"IF(Y28=\"\",0,\"X=\"&SUBSTITUTE(SUBSTITUTE(SUBSTITUTE(SUBSTITUTE(SUBSTITUTE(SUBSTITUTE(SUBSTITUTE(SUBSTITUTE(SUBSTITUTE(SUBSTITUTE(SUBSTITUTE(SUBSTITUTE(Y28,$ED28,$ED$2&ROW($ED28)),$EC28,$EC$2&ROW($EC28)),$EB28,$EB$2&ROW($EB28)),$EA28,$EA$2&ROW($EA28)),$DZ28,$DZ$2&ROW($DZ28)),$DY28,$DY$2&ROW($DY28)),$DX28,$DX$2&ROW($DX28)),$DW28,$DW$2&ROW($DW28)),$DV28,$DV$2&ROW($DV28)),$DU28,$DU$2&ROW($DU28)),$DT28,$DT$2&ROW($DT28)),$DS28,$DS$2&ROW($DS28)))","v":0},{"$f":"IF(Z28=\"\",0,\"X=\"&SUBSTITUTE(SUBSTITUTE(SUBSTITUTE(SUBSTITUTE(SUBSTITUTE(SUBSTITUTE(SUBSTITUTE(SUBSTITUTE(SUBSTITUTE(SUBSTITUTE(SUBSTITUTE(SUBSTITUTE(Z28,$ED28,$ED$2&ROW($ED28)),$EC28,$EC$2&ROW($EC28)),$EB28,$EB$2&ROW($EB28)),$EA28,$EA$2&ROW($EA28)),$DZ28,$DZ$2&ROW($DZ28)),$DY28,$DY$2&ROW($DY28)),$DX28,$DX$2&ROW($DX28)),$DW28,$DW$2&ROW($DW28)),$DV28,$DV$2&ROW($DV28)),$DU28,$DU$2&ROW($DU28)),$DT28,$DT$2&ROW($DT28)),$DS28,$DS$2&ROW($DS28)))","v":0},{"$f":"IF(AA28=\"\",0,\"X=\"&SUBSTITUTE(SUBSTITUTE(SUBSTITUTE(SUBSTITUTE(SUBSTITUTE(SUBSTITUTE(SUBSTITUTE(SUBSTITUTE(SUBSTITUTE(SUBSTITUTE(SUBSTITUTE(SUBSTITUTE(AA28,$ED28,$ED$2&ROW($ED28)),$EC28,$EC$2&ROW($EC28)),$EB28,$EB$2&ROW($EB28)),$EA28,$EA$2&ROW($EA28)),$DZ28,$DZ$2&ROW($DZ28)),$DY28,$DY$2&ROW($DY28)),$DX28,$DX$2&ROW($DX28)),$DW28,$DW$2&ROW($DW28)),$DV28,$DV$2&ROW($DV28)),$DU28,$DU$2&ROW($DU28)),$DT28,$DT$2&ROW($DT28)),$DS28,$DS$2&ROW($DS28)))","v":0},{"$f":"IF(AB28=\"\",0,\"X=\"&SUBSTITUTE(SUBSTITUTE(SUBSTITUTE(SUBSTITUTE(SUBSTITUTE(SUBSTITUTE(SUBSTITUTE(SUBSTITUTE(SUBSTITUTE(SUBSTITUTE(SUBSTITUTE(SUBSTITUTE(AB28,$ED28,$ED$2&ROW($ED28)),$EC28,$EC$2&ROW($EC28)),$EB28,$EB$2&ROW($EB28)),$EA28,$EA$2&ROW($EA28)),$DZ28,$DZ$2&ROW($DZ28)),$DY28,$DY$2&ROW($DY28)),$DX28,$DX$2&ROW($DX28)),$DW28,$DW$2&ROW($DW28)),$DV28,$DV$2&ROW($DV28)),$DU28,$DU$2&ROW($DU28)),$DT28,$DT$2&ROW($DT28)),$DS28,$DS$2&ROW($DS28)))","v":0},null,null,"{Factor:WinterCF}","{Factor:SummerCF}",{"$f":"IFERROR(INDEX($EG28:$IV28,MATCH(0,COUNTIF($DR28:DT28,$EG28:$IV28),0)),\"\")","v":"{# of Milking Units}"},{"$f":"IFERROR(INDEX($EG28:$IV28,MATCH(0,COUNTIF($DR28:DU28,$EG28:$IV28),0)),\"\")","v":"{Daily Run Time}"},{"$f":"IFERROR(INDEX($EG28:$IV28,MATCH(0,COUNTIF($DR28:DV28,$EG28:$IV28),0)),\"\")","v":"{Measure:Quantity}"},{"$f":"IFERROR(INDEX($EG28:$IV28,MATCH(0,COUNTIF($DR28:DW28,$EG28:$IV28),0)),\"\")","v":"{Motor Efficiency}"},{"$f":"IFERROR(INDEX($EG28:$IV28,MATCH(0,COUNTIF($DR28:DX28,$EG28:$IV28),0)),\"\")","v":""},{"$f":"IFERROR(INDEX($EG28:$IV28,MATCH(0,COUNTIF($DR28:DY28,$EG28:$IV28),0)),\"\")","v":""},{"$f":"IFERROR(INDEX($EG28:$IV28,MATCH(0,COUNTIF($DR28:DZ28,$EG28:$IV28),0)),\"\")","v":""},{"$f":"IFERROR(INDEX($EG28:$IV28,MATCH(0,COUNTIF($DR28:EA28,$EG28:$IV28),0)),\"\")","v":""},{"$f":"IFERROR(INDEX($EG28:$IV28,MATCH(0,COUNTIF($DR28:EB28,$EG28:$IV28),0)),\"\")","v":""},{"$f":"IFERROR(INDEX($EG28:$IV28,MATCH(0,COUNTIF($DR28:EC28,$EG28:$IV28),0)),\"\")","v":""},null,null,{"$f":"IFERROR(MID($G28,FIND(CHAR(160),SUBSTITUTE($G28,\"{\",CHAR(160),EG$1)),FIND(CHAR(160),SUBSTITUTE($G28,\"}\",CHAR(160),EG$1))-FIND(CHAR(160),SUBSTITUTE($G28,\"{\",CHAR(160),EG$1))+1),\"\")","v":""},{"$f":"IFERROR(MID($G28,FIND(CHAR(160),SUBSTITUTE($G28,\"{\",CHAR(160),EH$1)),FIND(CHAR(160),SUBSTITUTE($G28,\"}\",CHAR(160),EH$1))-FIND(CHAR(160),SUBSTITUTE($G28,\"{\",CHAR(160),EH$1))+1),\"\")","v":""},{"$f":"IFERROR(MID($G28,FIND(CHAR(160),SUBSTITUTE($G28,\"{\",CHAR(160),EI$1)),FIND(CHAR(160),SUBSTITUTE($G28,\"}\",CHAR(160),EI$1))-FIND(CHAR(160),SUBSTITUTE($G28,\"{\",CHAR(160),EI$1))+1),\"\")","v":""},{"$f":"IFERROR(MID($G28,FIND(CHAR(160),SUBSTITUTE($G28,\"{\",CHAR(160),EJ$1)),FIND(CHAR(160),SUBSTITUTE($G28,\"}\",CHAR(160),EJ$1))-FIND(CHAR(160),SUBSTITUTE($G28,\"{\",CHAR(160),EJ$1))+1),\"\")","v":""},{"$f":"IFERROR(MID($G28,FIND(CHAR(160),SUBSTITUTE($G28,\"{\",CHAR(160),EK$1)),FIND(CHAR(160),SUBSTITUTE($G28,\"}\",CHAR(160),EK$1))-FIND(CHAR(160),SUBSTITUTE($G28,\"{\",CHAR(160),EK$1))+1),\"\")","v":""},{"$f":"IFERROR(MID($G28,FIND(CHAR(160),SUBSTITUTE($G28,\"{\",CHAR(160),EL$1)),FIND(CHAR(160),SUBSTITUTE($G28,\"}\",CHAR(160),EL$1))-FIND(CHAR(160),SUBSTITUTE($G28,\"{\",CHAR(160),EL$1))+1),\"\")","v":""},{"$f":"IFERROR(MID($G28,FIND(CHAR(160),SUBSTITUTE($G28,\"{\",CHAR(160),EM$1)),FIND(CHAR(160),SUBSTITUTE($G28,\"}\",CHAR(160),EM$1))-FIND(CHAR(160),SUBSTITUTE($G28,\"{\",CHAR(160),EM$1))+1),\"\")","v":""},{"$f":"IFERROR(MID($G28,FIND(CHAR(160),SUBSTITUTE($G28,\"{\",CHAR(160),EN$1)),FIND(CHAR(160),SUBSTITUTE($G28,\"}\",CHAR(160),EN$1))-FIND(CHAR(160),SUBSTITUTE($G28,\"{\",CHAR(160),EN$1))+1),\"\")","v":""},{"$f":"IFERROR(MID($G28,FIND(CHAR(160),SUBSTITUTE($G28,\"{\",CHAR(160),EO$1)),FIND(CHAR(160),SUBSTITUTE($G28,\"}\",CHAR(160),EO$1))-FIND(CHAR(160),SUBSTITUTE($G28,\"{\",CHAR(160),EO$1))+1),\"\")","v":""},{"$f":"IFERROR(MID($G28,FIND(CHAR(160),SUBSTITUTE($G28,\"{\",CHAR(160),EP$1)),FIND(CHAR(160),SUBSTITUTE($G28,\"}\",CHAR(160),EP$1))-FIND(CHAR(160),SUBSTITUTE($G28,\"{\",CHAR(160),EP$1))+1),\"\")","v":""},{"$f":"IFERROR(MID($J28,FIND(CHAR(160),SUBSTITUTE($J28,\"{\",CHAR(160),EQ$1)),FIND(CHAR(160),SUBSTITUTE($J28,\"}\",CHAR(160),EQ$1))-FIND(CHAR(160),SUBSTITUTE($J28,\"{\",CHAR(160),EQ$1))+1),\"\")","v":""},{"$f":"IFERROR(MID($J28,FIND(CHAR(160),SUBSTITUTE($J28,\"{\",CHAR(160),ER$1)),FIND(CHAR(160),SUBSTITUTE($J28,\"}\",CHAR(160),ER$1))-FIND(CHAR(160),SUBSTITUTE($J28,\"{\",CHAR(160),ER$1))+1),\"\")","v":""},{"$f":"IFERROR(MID($J28,FIND(CHAR(160),SUBSTITUTE($J28,\"{\",CHAR(160),ES$1)),FIND(CHAR(160),SUBSTITUTE($J28,\"}\",CHAR(160),ES$1))-FIND(CHAR(160),SUBSTITUTE($J28,\"{\",CHAR(160),ES$1))+1),\"\")","v":""},{"$f":"IFERROR(MID($J28,FIND(CHAR(160),SUBSTITUTE($J28,\"{\",CHAR(160),ET$1)),FIND(CHAR(160),SUBSTITUTE($J28,\"}\",CHAR(160),ET$1))-FIND(CHAR(160),SUBSTITUTE($J28,\"{\",CHAR(160),ET$1))+1),\"\")","v":""},{"$f":"IFERROR(MID($J28,FIND(CHAR(160),SUBSTITUTE($J28,\"{\",CHAR(160),EU$1)),FIND(CHAR(160),SUBSTITUTE($J28,\"}\",CHAR(160),EU$1))-FIND(CHAR(160),SUBSTITUTE($J28,\"{\",CHAR(160),EU$1))+1),\"\")","v":""},{"$f":"IFERROR(MID($J28,FIND(CHAR(160),SUBSTITUTE($J28,\"{\",CHAR(160),EV$1)),FIND(CHAR(160),SUBSTITUTE($J28,\"}\",CHAR(160),EV$1))-FIND(CHAR(160),SUBSTITUTE($J28,\"{\",CHAR(160),EV$1))+1),\"\")","v":""},{"$f":"IFERROR(MID($J28,FIND(CHAR(160),SUBSTITUTE($J28,\"{\",CHAR(160),EW$1)),FIND(CHAR(160),SUBSTITUTE($J28,\"}\",CHAR(160),EW$1))-FIND(CHAR(160),SUBSTITUTE($J28,\"{\",CHAR(160),EW$1))+1),\"\")","v":""},{"$f":"IFERROR(MID($J28,FIND(CHAR(160),SUBSTITUTE($J28,\"{\",CHAR(160),EX$1)),FIND(CHAR(160),SUBSTITUTE($J28,\"}\",CHAR(160),EX$1))-FIND(CHAR(160),SUBSTITUTE($J28,\"{\",CHAR(160),EX$1))+1),\"\")","v":""},{"$f":"IFERROR(MID($J28,FIND(CHAR(160),SUBSTITUTE($J28,\"{\",CHAR(160),EY$1)),FIND(CHAR(160),SUBSTITUTE($J28,\"}\",CHAR(160),EY$1))-FIND(CHAR(160),SUBSTITUTE($J28,\"{\",CHAR(160),EY$1))+1),\"\")","v":""},{"$f":"IFERROR(MID($J28,FIND(CHAR(160),SUBSTITUTE($J28,\"{\",CHAR(160),EZ$1)),FIND(CHAR(160),SUBSTITUTE($J28,\"}\",CHAR(160),EZ$1))-FIND(CHAR(160),SUBSTITUTE($J28,\"{\",CHAR(160),EZ$1))+1),\"\")","v":""},{"$f":"IFERROR(MID($J28,FIND(CHAR(160),SUBSTITUTE($J28,\"{\",CHAR(160),FA$1)),FIND(CHAR(160),SUBSTITUTE($J28,\"}\",CHAR(160),FA$1))-FIND(CHAR(160),SUBSTITUTE($J28,\"{\",CHAR(160),FA$1))+1),\"\")","v":""},{"$f":"IFERROR(MID($J28,FIND(CHAR(160),SUBSTITUTE($J28,\"{\",CHAR(160),FB$1)),FIND(CHAR(160),SUBSTITUTE($J28,\"}\",CHAR(160),FB$1))-FIND(CHAR(160),SUBSTITUTE($J28,\"{\",CHAR(160),FB$1))+1),\"\")","v":""},{"$f":"IFERROR(MID($O28,FIND(CHAR(160),SUBSTITUTE($O28,\"{\",CHAR(160),FC$1)),FIND(CHAR(160),SUBSTITUTE($O28,\"}\",CHAR(160),FC$1))-FIND(CHAR(160),SUBSTITUTE($O28,\"{\",CHAR(160),FC$1))+1),\"\")","v":"{# of Milking Units}"},{"$f":"IFERROR(MID($O28,FIND(CHAR(160),SUBSTITUTE($O28,\"{\",CHAR(160),FD$1)),FIND(CHAR(160),SUBSTITUTE($O28,\"}\",CHAR(160),FD$1))-FIND(CHAR(160),SUBSTITUTE($O28,\"{\",CHAR(160),FD$1))+1),\"\")","v":"{Daily Run Time}"},{"$f":"IFERROR(MID($O28,FIND(CHAR(160),SUBSTITUTE($O28,\"{\",CHAR(160),FE$1)),FIND(CHAR(160),SUBSTITUTE($O28,\"}\",CHAR(160),FE$1))-FIND(CHAR(160),SUBSTITUTE($O28,\"{\",CHAR(160),FE$1))+1),\"\")","v":""},{"$f":"IFERROR(MID($O28,FIND(CHAR(160),SUBSTITUTE($O28,\"{\",CHAR(160),FF$1)),FIND(CHAR(160),SUBSTITUTE($O28,\"}\",CHAR(160),FF$1))-FIND(CHAR(160),SUBSTITUTE($O28,\"{\",CHAR(160),FF$1))+1),\"\")","v":""},{"$f":"IFERROR(MID($O28,FIND(CHAR(160),SUBSTITUTE($O28,\"{\",CHAR(160),FG$1)),FIND(CHAR(160),SUBSTITUTE($O28,\"}\",CHAR(160),FG$1))-FIND(CHAR(160),SUBSTITUTE($O28,\"{\",CHAR(160),FG$1))+1),\"\")","v":""},{"$f":"IFERROR(MID($O28,FIND(CHAR(160),SUBSTITUTE($O28,\"{\",CHAR(160),FH$1)),FIND(CHAR(160),SUBSTITUTE($O28,\"}\",CHAR(160),FH$1))-FIND(CHAR(160),SUBSTITUTE($O28,\"{\",CHAR(160),FH$1))+1),\"\")","v":""},{"$f":"IFERROR(MID($O28,FIND(CHAR(160),SUBSTITUTE($O28,\"{\",CHAR(160),FI$1)),FIND(CHAR(160),SUBSTITUTE($O28,\"}\",CHAR(160),FI$1))-FIND(CHAR(160),SUBSTITUTE($O28,\"{\",CHAR(160),FI$1))+1),\"\")","v":""},{"$f":"IFERROR(MID($O28,FIND(CHAR(160),SUBSTITUTE($O28,\"{\",CHAR(160),FJ$1)),FIND(CHAR(160),SUBSTITUTE($O28,\"}\",CHAR(160),FJ$1))-FIND(CHAR(160),SUBSTITUTE($O28,\"{\",CHAR(160),FJ$1))+1),\"\")","v":""},{"$f":"IFERROR(MID($O28,FIND(CHAR(160),SUBSTITUTE($O28,\"{\",CHAR(160),FK$1)),FIND(CHAR(160),SUBSTITUTE($O28,\"}\",CHAR(160),FK$1))-FIND(CHAR(160),SUBSTITUTE($O28,\"{\",CHAR(160),FK$1))+1),\"\")","v":"{Measure:Quantity}"},{"$f":"IFERROR(MID($O28,FIND(CHAR(160),SUBSTITUTE($O28,\"{\",CHAR(160),FL$1)),FIND(CHAR(160),SUBSTITUTE($O28,\"}\",CHAR(160),FL$1))-FIND(CHAR(160),SUBSTITUTE($O28,\"{\",CHAR(160),FL$1))+1),\"\")","v":"{Motor Efficiency}"},{"$f":"IFERROR(MID($R28,FIND(CHAR(160),SUBSTITUTE($R28,\"{\",CHAR(160),FM$1)),FIND(CHAR(160),SUBSTITUTE($R28,\"}\",CHAR(160),FM$1))-FIND(CHAR(160),SUBSTITUTE($R28,\"{\",CHAR(160),FM$1))+1),\"\")","v":"{# of Milking Units}"},{"$f":"IFERROR(MID($R28,FIND(CHAR(160),SUBSTITUTE($R28,\"{\",CHAR(160),FN$1)),FIND(CHAR(160),SUBSTITUTE($R28,\"}\",CHAR(160),FN$1))-FIND(CHAR(160),SUBSTITUTE($R28,\"{\",CHAR(160),FN$1))+1),\"\")","v":""},{"$f":"IFERROR(MID($R28,FIND(CHAR(160),SUBSTITUTE($R28,\"{\",CHAR(160),FO$1)),FIND(CHAR(160),SUBSTITUTE($R28,\"}\",CHAR(160),FO$1))-FIND(CHAR(160),SUBSTITUTE($R28,\"{\",CHAR(160),FO$1))+1),\"\")","v":""},{"$f":"IFERROR(MID($R28,FIND(CHAR(160),SUBSTITUTE($R28,\"{\",CHAR(160),FP$1)),FIND(CHAR(160),SUBSTITUTE($R28,\"}\",CHAR(160),FP$1))-FIND(CHAR(160),SUBSTITUTE($R28,\"{\",CHAR(160),FP$1))+1),\"\")","v":""},{"$f":"IFERROR(MID($R28,FIND(CHAR(160),SUBSTITUTE($R28,\"{\",CHAR(160),FQ$1)),FIND(CHAR(160),SUBSTITUTE($R28,\"}\",CHAR(160),FQ$1))-FIND(CHAR(160),SUBSTITUTE($R28,\"{\",CHAR(160),FQ$1))+1),\"\")","v":""},{"$f":"IFERROR(MID($R28,FIND(CHAR(160),SUBSTITUTE($R28,\"{\",CHAR(160),FR$1)),FIND(CHAR(160),SUBSTITUTE($R28,\"}\",CHAR(160),FR$1))-FIND(CHAR(160),SUBSTITUTE($R28,\"{\",CHAR(160),FR$1))+1),\"\")","v":""},{"$f":"IFERROR(MID($R28,FIND(CHAR(160),SUBSTITUTE($R28,\"{\",CHAR(160),FS$1)),FIND(CHAR(160),SUBSTITUTE($R28,\"}\",CHAR(160),FS$1))-FIND(CHAR(160),SUBSTITUTE($R28,\"{\",CHAR(160),FS$1))+1),\"\")","v":""},{"$f":"IFERROR(MID($R28,FIND(CHAR(160),SUBSTITUTE($R28,\"{\",CHAR(160),FT$1)),FIND(CHAR(160),SUBSTITUTE($R28,\"}\",CHAR(160),FT$1))-FIND(CHAR(160),SUBSTITUTE($R28,\"{\",CHAR(160),FT$1))+1),\"\")","v":""},{"$f":"IFERROR(MID($R28,FIND(CHAR(160),SUBSTITUTE($R28,\"{\",CHAR(160),FU$1)),FIND(CHAR(160),SUBSTITUTE($R28,\"}\",CHAR(160),FU$1))-FIND(CHAR(160),SUBSTITUTE($R28,\"{\",CHAR(160),FU$1))+1),\"\")","v":"{Measure:Quantity}"},{"$f":"IFERROR(MID($R28,FIND(CHAR(160),SUBSTITUTE($R28,\"{\",CHAR(160),FV$1)),FIND(CHAR(160),SUBSTITUTE($R28,\"}\",CHAR(160),FV$1))-FIND(CHAR(160),SUBSTITUTE($R28,\"{\",CHAR(160),FV$1))+1),\"\")","v":"{Motor Efficiency}"},{"$f":"IFERROR(MID($U28,FIND(CHAR(160),SUBSTITUTE($U28,\"{\",CHAR(160),FW$1)),FIND(CHAR(160),SUBSTITUTE($U28,\"}\",CHAR(160),FW$1))-FIND(CHAR(160),SUBSTITUTE($U28,\"{\",CHAR(160),FW$1))+1),\"\")","v":"{# of Milking Units}"},{"$f":"IFERROR(MID($U28,FIND(CHAR(160),SUBSTITUTE($U28,\"{\",CHAR(160),FX$1)),FIND(CHAR(160),SUBSTITUTE($U28,\"}\",CHAR(160),FX$1))-FIND(CHAR(160),SUBSTITUTE($U28,\"{\",CHAR(160),FX$1))+1),\"\")","v":"{Factor:WinterCF}"},{"$f":"IFERROR(MID($U28,FIND(CHAR(160),SUBSTITUTE($U28,\"{\",CHAR(160),FY$1)),FIND(CHAR(160),SUBSTITUTE($U28,\"}\",CHAR(160),FY$1))-FIND(CHAR(160),SUBSTITUTE($U28,\"{\",CHAR(160),FY$1))+1),\"\")","v":""},{"$f":"IFERROR(MID($U28,FIND(CHAR(160),SUBSTITUTE($U28,\"{\",CHAR(160),FZ$1)),FIND(CHAR(160),SUBSTITUTE($U28,\"}\",CHAR(160),FZ$1))-FIND(CHAR(160),SUBSTITUTE($U28,\"{\",CHAR(160),FZ$1))+1),\"\")","v":""},{"$f":"IFERROR(MID($U28,FIND(CHAR(160),SUBSTITUTE($U28,\"{\",CHAR(160),GA$1)),FIND(CHAR(160),SUBSTITUTE($U28,\"}\",CHAR(160),GA$1))-FIND(CHAR(160),SUBSTITUTE($U28,\"{\",CHAR(160),GA$1))+1),\"\")","v":""},{"$f":"IFERROR(MID($U28,FIND(CHAR(160),SUBSTITUTE($U28,\"{\",CHAR(160),GB$1)),FIND(CHAR(160),SUBSTITUTE($U28,\"}\",CHAR(160),GB$1))-FIND(CHAR(160),SUBSTITUTE($U28,\"{\",CHAR(160),GB$1))+1),\"\")","v":""},{"$f":"IFERROR(MID($U28,FIND(CHAR(160),SUBSTITUTE($U28,\"{\",CHAR(160),GC$1)),FIND(CHAR(160),SUBSTITUTE($U28,\"}\",CHAR(160),GC$1))-FIND(CHAR(160),SUBSTITUTE($U28,\"{\",CHAR(160),GC$1))+1),\"\")","v":""},{"$f":"IFERROR(MID($U28,FIND(CHAR(160),SUBSTITUTE($U28,\"{\",CHAR(160),GD$1)),FIND(CHAR(160),SUBSTITUTE($U28,\"}\",CHAR(160),GD$1))-FIND(CHAR(160),SUBSTITUTE($U28,\"{\",CHAR(160),GD$1))+1),\"\")","v":""},{"$f":"IFERROR(MID($U28,FIND(CHAR(160),SUBSTITUTE($U28,\"{\",CHAR(160),GE$1)),FIND(CHAR(160),SUBSTITUTE($U28,\"}\",CHAR(160),GE$1))-FIND(CHAR(160),SUBSTITUTE($U28,\"{\",CHAR(160),GE$1))+1),\"\")","v":"{Measure:Quantity}"},{"$f":"IFERROR(MID($U28,FIND(CHAR(160),SUBSTITUTE($U28,\"{\",CHAR(160),GF$1)),FIND(CHAR(160),SUBSTITUTE($U28,\"}\",CHAR(160),GF$1))-FIND(CHAR(160),SUBSTITUTE($U28,\"{\",CHAR(160),GF$1))+1),\"\")","v":"{Motor Efficiency}"},{"$f":"IFERROR(MID($V28,FIND(CHAR(160),SUBSTITUTE($V28,\"{\",CHAR(160),GG$1)),FIND(CHAR(160),SUBSTITUTE($V28,\"}\",CHAR(160),GG$1))-FIND(CHAR(160),SUBSTITUTE($V28,\"{\",CHAR(160),GG$1))+1),\"\")","v":"{# of Milking Units}"},{"$f":"IFERROR(MID($V28,FIND(CHAR(160),SUBSTITUTE($V28,\"{\",CHAR(160),GH$1)),FIND(CHAR(160),SUBSTITUTE($V28,\"}\",CHAR(160),GH$1))-FIND(CHAR(160),SUBSTITUTE($V28,\"{\",CHAR(160),GH$1))+1),\"\")","v":"{Factor:SummerCF}"},{"$f":"IFERROR(MID($V28,FIND(CHAR(160),SUBSTITUTE($V28,\"{\",CHAR(160),GI$1)),FIND(CHAR(160),SUBSTITUTE($V28,\"}\",CHAR(160),GI$1))-FIND(CHAR(160),SUBSTITUTE($V28,\"{\",CHAR(160),GI$1))+1),\"\")","v":""},{"$f":"IFERROR(MID($V28,FIND(CHAR(160),SUBSTITUTE($V28,\"{\",CHAR(160),GJ$1)),FIND(CHAR(160),SUBSTITUTE($V28,\"}\",CHAR(160),GJ$1))-FIND(CHAR(160),SUBSTITUTE($V28,\"{\",CHAR(160),GJ$1))+1),\"\")","v":""},{"$f":"IFERROR(MID($V28,FIND(CHAR(160),SUBSTITUTE($V28,\"{\",CHAR(160),GK$1)),FIND(CHAR(160),SUBSTITUTE($V28,\"}\",CHAR(160),GK$1))-FIND(CHAR(160),SUBSTITUTE($V28,\"{\",CHAR(160),GK$1))+1),\"\")","v":""},{"$f":"IFERROR(MID($V28,FIND(CHAR(160),SUBSTITUTE($V28,\"{\",CHAR(160),GL$1)),FIND(CHAR(160),SUBSTITUTE($V28,\"}\",CHAR(160),GL$1))-FIND(CHAR(160),SUBSTITUTE($V28,\"{\",CHAR(160),GL$1))+1),\"\")","v":""},{"$f":"IFERROR(MID($V28,FIND(CHAR(160),SUBSTITUTE($V28,\"{\",CHAR(160),GM$1)),FIND(CHAR(160),SUBSTITUTE($V28,\"}\",CHAR(160),GM$1))-FIND(CHAR(160),SUBSTITUTE($V28,\"{\",CHAR(160),GM$1))+1),\"\")","v":""},{"$f":"IFERROR(MID($V28,FIND(CHAR(160),SUBSTITUTE($V28,\"{\",CHAR(160),GN$1)),FIND(CHAR(160),SUBSTITUTE($V28,\"}\",CHAR(160),GN$1))-FIND(CHAR(160),SUBSTITUTE($V28,\"{\",CHAR(160),GN$1))+1),\"\")","v":""},{"$f":"IFERROR(MID($V28,FIND(CHAR(160),SUBSTITUTE($V28,\"{\",CHAR(160),GO$1)),FIND(CHAR(160),SUBSTITUTE($V28,\"}\",CHAR(160),GO$1))-FIND(CHAR(160),SUBSTITUTE($V28,\"{\",CHAR(160),GO$1))+1),\"\")","v":"{Measure:Quantity}"},{"$f":"IFERROR(MID($V28,FIND(CHAR(160),SUBSTITUTE($V28,\"{\",CHAR(160),GP$1)),FIND(CHAR(160),SUBSTITUTE($V28,\"}\",CHAR(160),GP$1))-FIND(CHAR(160),SUBSTITUTE($V28,\"{\",CHAR(160),GP$1))+1),\"\")","v":"{Motor Efficiency}"},{"$f":"IFERROR(MID($W28,FIND(CHAR(160),SUBSTITUTE($W28,\"{\",CHAR(160),GQ$1)),FIND(CHAR(160),SUBSTITUTE($W28,\"}\",CHAR(160),GQ$1))-FIND(CHAR(160),SUBSTITUTE($W28,\"{\",CHAR(160),GQ$1))+1),\"\")","v":""},{"$f":"IFERROR(MID($W28,FIND(CHAR(160),SUBSTITUTE($W28,\"{\",CHAR(160),GR$1)),FIND(CHAR(160),SUBSTITUTE($W28,\"}\",CHAR(160),GR$1))-FIND(CHAR(160),SUBSTITUTE($W28,\"{\",CHAR(160),GR$1))+1),\"\")","v":""},{"$f":"IFERROR(MID($W28,FIND(CHAR(160),SUBSTITUTE($W28,\"{\",CHAR(160),GS$1)),FIND(CHAR(160),SUBSTITUTE($W28,\"}\",CHAR(160),GS$1))-FIND(CHAR(160),SUBSTITUTE($W28,\"{\",CHAR(160),GS$1))+1),\"\")","v":""},{"$f":"IFERROR(MID($W28,FIND(CHAR(160),SUBSTITUTE($W28,\"{\",CHAR(160),GT$1)),FIND(CHAR(160),SUBSTITUTE($W28,\"}\",CHAR(160),GT$1))-FIND(CHAR(160),SUBSTITUTE($W28,\"{\",CHAR(160),GT$1))+1),\"\")","v":""},{"$f":"IFERROR(MID($W28,FIND(CHAR(160),SUBSTITUTE($W28,\"{\",CHAR(160),GU$1)),FIND(CHAR(160),SUBSTITUTE($W28,\"}\",CHAR(160),GU$1))-FIND(CHAR(160),SUBSTITUTE($W28,\"{\",CHAR(160),GU$1))+1),\"\")","v":""},{"$f":"IFERROR(MID($W28,FIND(CHAR(160),SUBSTITUTE($W28,\"{\",CHAR(160),GV$1)),FIND(CHAR(160),SUBSTITUTE($W28,\"}\",CHAR(160),GV$1))-FIND(CHAR(160),SUBSTITUTE($W28,\"{\",CHAR(160),GV$1))+1),\"\")","v":""},{"$f":"IFERROR(MID($W28,FIND(CHAR(160),SUBSTITUTE($W28,\"{\",CHAR(160),GW$1)),FIND(CHAR(160),SUBSTITUTE($W28,\"}\",CHAR(160),GW$1))-FIND(CHAR(160),SUBSTITUTE($W28,\"{\",CHAR(160),GW$1))+1),\"\")","v":""},{"$f":"IFERROR(MID($W28,FIND(CHAR(160),SUBSTITUTE($W28,\"{\",CHAR(160),GX$1)),FIND(CHAR(160),SUBSTITUTE($W28,\"}\",CHAR(160),GX$1))-FIND(CHAR(160),SUBSTITUTE($W28,\"{\",CHAR(160),GX$1))+1),\"\")","v":""},{"$f":"IFERROR(MID($W28,FIND(CHAR(160),SUBSTITUTE($W28,\"{\",CHAR(160),GY$1)),FIND(CHAR(160),SUBSTITUTE($W28,\"}\",CHAR(160),GY$1))-FIND(CHAR(160),SUBSTITUTE($W28,\"{\",CHAR(160),GY$1))+1),\"\")","v":""},{"$f":"IFERROR(MID($W28,FIND(CHAR(160),SUBSTITUTE($W28,\"{\",CHAR(160),GZ$1)),FIND(CHAR(160),SUBSTITUTE($W28,\"}\",CHAR(160),GZ$1))-FIND(CHAR(160),SUBSTITUTE($W28,\"{\",CHAR(160),GZ$1))+1),\"\")","v":""},{"$f":"IFERROR(MID($X28,FIND(CHAR(160),SUBSTITUTE($X28,\"{\",CHAR(160),HA$1)),FIND(CHAR(160),SUBSTITUTE($X28,\"}\",CHAR(160),HA$1))-FIND(CHAR(160),SUBSTITUTE($X28,\"{\",CHAR(160),HA$1))+1),\"\")","v":""},{"$f":"IFERROR(MID($X28,FIND(CHAR(160),SUBSTITUTE($X28,\"{\",CHAR(160),HB$1)),FIND(CHAR(160),SUBSTITUTE($X28,\"}\",CHAR(160),HB$1))-FIND(CHAR(160),SUBSTITUTE($X28,\"{\",CHAR(160),HB$1))+1),\"\")","v":""},{"$f":"IFERROR(MID($X28,FIND(CHAR(160),SUBSTITUTE($X28,\"{\",CHAR(160),HC$1)),FIND(CHAR(160),SUBSTITUTE($X28,\"}\",CHAR(160),HC$1))-FIND(CHAR(160),SUBSTITUTE($X28,\"{\",CHAR(160),HC$1))+1),\"\")","v":""},{"$f":"IFERROR(MID($X28,FIND(CHAR(160),SUBSTITUTE($X28,\"{\",CHAR(160),HD$1)),FIND(CHAR(160),SUBSTITUTE($X28,\"}\",CHAR(160),HD$1))-FIND(CHAR(160),SUBSTITUTE($X28,\"{\",CHAR(160),HD$1))+1),\"\")","v":""},{"$f":"IFERROR(MID($X28,FIND(CHAR(160),SUBSTITUTE($X28,\"{\",CHAR(160),HE$1)),FIND(CHAR(160),SUBSTITUTE($X28,\"}\",CHAR(160),HE$1))-FIND(CHAR(160),SUBSTITUTE($X28,\"{\",CHAR(160),HE$1))+1),\"\")","v":""},{"$f":"IFERROR(MID($X28,FIND(CHAR(160),SUBSTITUTE($X28,\"{\",CHAR(160),HF$1)),FIND(CHAR(160),SUBSTITUTE($X28,\"}\",CHAR(160),HF$1))-FIND(CHAR(160),SUBSTITUTE($X28,\"{\",CHAR(160),HF$1))+1),\"\")","v":""},{"$f":"IFERROR(MID($X28,FIND(CHAR(160),SUBSTITUTE($X28,\"{\",CHAR(160),HG$1)),FIND(CHAR(160),SUBSTITUTE($X28,\"}\",CHAR(160),HG$1))-FIND(CHAR(160),SUBSTITUTE($X28,\"{\",CHAR(160),HG$1))+1),\"\")","v":""},{"$f":"IFERROR(MID($X28,FIND(CHAR(160),SUBSTITUTE($X28,\"{\",CHAR(160),HH$1)),FIND(CHAR(160),SUBSTITUTE($X28,\"}\",CHAR(160),HH$1))-FIND(CHAR(160),SUBSTITUTE($X28,\"{\",CHAR(160),HH$1))+1),\"\")","v":""},{"$f":"IFERROR(MID($X28,FIND(CHAR(160),SUBSTITUTE($X28,\"{\",CHAR(160),HI$1)),FIND(CHAR(160),SUBSTITUTE($X28,\"}\",CHAR(160),HI$1))-FIND(CHAR(160),SUBSTITUTE($X28,\"{\",CHAR(160),HI$1))+1),\"\")","v":""},{"$f":"IFERROR(MID($X28,FIND(CHAR(160),SUBSTITUTE($X28,\"{\",CHAR(160),HJ$1)),FIND(CHAR(160),SUBSTITUTE($X28,\"}\",CHAR(160),HJ$1))-FIND(CHAR(160),SUBSTITUTE($X28,\"{\",CHAR(160),HJ$1))+1),\"\")","v":""},{"$f":"IFERROR(MID($Y28,FIND(CHAR(160),SUBSTITUTE($Y28,\"{\",CHAR(160),HK$1)),FIND(CHAR(160),SUBSTITUTE($Y28,\"}\",CHAR(160),HK$1))-FIND(CHAR(160),SUBSTITUTE($Y28,\"{\",CHAR(160),HK$1))+1),\"\")","v":""},{"$f":"IFERROR(MID($Y28,FIND(CHAR(160),SUBSTITUTE($Y28,\"{\",CHAR(160),HL$1)),FIND(CHAR(160),SUBSTITUTE($Y28,\"}\",CHAR(160),HL$1))-FIND(CHAR(160),SUBSTITUTE($Y28,\"{\",CHAR(160),HL$1))+1),\"\")","v":""},{"$f":"IFERROR(MID($Y28,FIND(CHAR(160),SUBSTITUTE($Y28,\"{\",CHAR(160),HM$1)),FIND(CHAR(160),SUBSTITUTE($Y28,\"}\",CHAR(160),HM$1))-FIND(CHAR(160),SUBSTITUTE($Y28,\"{\",CHAR(160),HM$1))+1),\"\")","v":""},{"$f":"IFERROR(MID($Y28,FIND(CHAR(160),SUBSTITUTE($Y28,\"{\",CHAR(160),HN$1)),FIND(CHAR(160),SUBSTITUTE($Y28,\"}\",CHAR(160),HN$1))-FIND(CHAR(160),SUBSTITUTE($Y28,\"{\",CHAR(160),HN$1))+1),\"\")","v":""},{"$f":"IFERROR(MID($Y28,FIND(CHAR(160),SUBSTITUTE($Y28,\"{\",CHAR(160),HO$1)),FIND(CHAR(160),SUBSTITUTE($Y28,\"}\",CHAR(160),HO$1))-FIND(CHAR(160),SUBSTITUTE($Y28,\"{\",CHAR(160),HO$1))+1),\"\")","v":""},{"$f":"IFERROR(MID($Y28,FIND(CHAR(160),SUBSTITUTE($Y28,\"{\",CHAR(160),HP$1)),FIND(CHAR(160),SUBSTITUTE($Y28,\"}\",CHAR(160),HP$1))-FIND(CHAR(160),SUBSTITUTE($Y28,\"{\",CHAR(160),HP$1))+1),\"\")","v":""},{"$f":"IFERROR(MID($Y28,FIND(CHAR(160),SUBSTITUTE($Y28,\"{\",CHAR(160),HQ$1)),FIND(CHAR(160),SUBSTITUTE($Y28,\"}\",CHAR(160),HQ$1))-FIND(CHAR(160),SUBSTITUTE($Y28,\"{\",CHAR(160),HQ$1))+1),\"\")","v":""},{"$f":"IFERROR(MID($Y28,FIND(CHAR(160),SUBSTITUTE($Y28,\"{\",CHAR(160),HR$1)),FIND(CHAR(160),SUBSTITUTE($Y28,\"}\",CHAR(160),HR$1))-FIND(CHAR(160),SUBSTITUTE($Y28,\"{\",CHAR(160),HR$1))+1),\"\")","v":""},{"$f":"IFERROR(MID($Y28,FIND(CHAR(160),SUBSTITUTE($Y28,\"{\",CHAR(160),HS$1)),FIND(CHAR(160),SUBSTITUTE($Y28,\"}\",CHAR(160),HS$1))-FIND(CHAR(160),SUBSTITUTE($Y28,\"{\",CHAR(160),HS$1))+1),\"\")","v":""},{"$f":"IFERROR(MID($Y28,FIND(CHAR(160),SUBSTITUTE($Y28,\"{\",CHAR(160),HT$1)),FIND(CHAR(160),SUBSTITUTE($Y28,\"}\",CHAR(160),HT$1))-FIND(CHAR(160),SUBSTITUTE($Y28,\"{\",CHAR(160),HT$1))+1),\"\")","v":""},{"$f":"IFERROR(MID($Z28,FIND(CHAR(160),SUBSTITUTE($Z28,\"{\",CHAR(160),HU$1)),FIND(CHAR(160),SUBSTITUTE($Z28,\"}\",CHAR(160),HU$1))-FIND(CHAR(160),SUBSTITUTE($Z28,\"{\",CHAR(160),HU$1))+1),\"\")","v":""},{"$f":"IFERROR(MID($Z28,FIND(CHAR(160),SUBSTITUTE($Z28,\"{\",CHAR(160),HV$1)),FIND(CHAR(160),SUBSTITUTE($Z28,\"}\",CHAR(160),HV$1))-FIND(CHAR(160),SUBSTITUTE($Z28,\"{\",CHAR(160),HV$1))+1),\"\")","v":""},{"$f":"IFERROR(MID($Z28,FIND(CHAR(160),SUBSTITUTE($Z28,\"{\",CHAR(160),HW$1)),FIND(CHAR(160),SUBSTITUTE($Z28,\"}\",CHAR(160),HW$1))-FIND(CHAR(160),SUBSTITUTE($Z28,\"{\",CHAR(160),HW$1))+1),\"\")","v":""},{"$f":"IFERROR(MID($Z28,FIND(CHAR(160),SUBSTITUTE($Z28,\"{\",CHAR(160),HX$1)),FIND(CHAR(160),SUBSTITUTE($Z28,\"}\",CHAR(160),HX$1))-FIND(CHAR(160),SUBSTITUTE($Z28,\"{\",CHAR(160),HX$1))+1),\"\")","v":""},{"$f":"IFERROR(MID($Z28,FIND(CHAR(160),SUBSTITUTE($Z28,\"{\",CHAR(160),HY$1)),FIND(CHAR(160),SUBSTITUTE($Z28,\"}\",CHAR(160),HY$1))-FIND(CHAR(160),SUBSTITUTE($Z28,\"{\",CHAR(160),HY$1))+1),\"\")","v":""},{"$f":"IFERROR(MID($Z28,FIND(CHAR(160),SUBSTITUTE($Z28,\"{\",CHAR(160),HZ$1)),FIND(CHAR(160),SUBSTITUTE($Z28,\"}\",CHAR(160),HZ$1))-FIND(CHAR(160),SUBSTITUTE($Z28,\"{\",CHAR(160),HZ$1))+1),\"\")","v":""},{"$f":"IFERROR(MID($Z28,FIND(CHAR(160),SUBSTITUTE($Z28,\"{\",CHAR(160),IA$1)),FIND(CHAR(160),SUBSTITUTE($Z28,\"}\",CHAR(160),IA$1))-FIND(CHAR(160),SUBSTITUTE($Z28,\"{\",CHAR(160),IA$1))+1),\"\")","v":""},{"$f":"IFERROR(MID($Z28,FIND(CHAR(160),SUBSTITUTE($Z28,\"{\",CHAR(160),IB$1)),FIND(CHAR(160),SUBSTITUTE($Z28,\"}\",CHAR(160),IB$1))-FIND(CHAR(160),SUBSTITUTE($Z28,\"{\",CHAR(160),IB$1))+1),\"\")","v":""},{"$f":"IFERROR(MID($Z28,FIND(CHAR(160),SUBSTITUTE($Z28,\"{\",CHAR(160),IC$1)),FIND(CHAR(160),SUBSTITUTE($Z28,\"}\",CHAR(160),IC$1))-FIND(CHAR(160),SUBSTITUTE($Z28,\"{\",CHAR(160),IC$1))+1),\"\")","v":""},{"$f":"IFERROR(MID($Z28,FIND(CHAR(160),SUBSTITUTE($Z28,\"{\",CHAR(160),ID$1)),FIND(CHAR(160),SUBSTITUTE($Z28,\"}\",CHAR(160),ID$1))-FIND(CHAR(160),SUBSTITUTE($Z28,\"{\",CHAR(160),ID$1))+1),\"\")","v":""},{"$f":"IFERROR(MID($AA28,FIND(CHAR(160),SUBSTITUTE($AA28,\"{\",CHAR(160),IE$1)),FIND(CHAR(160),SUBSTITUTE($AA28,\"}\",CHAR(160),IE$1))-FIND(CHAR(160),SUBSTITUTE($AA28,\"{\",CHAR(160),IE$1))+1),\"\")","v":""},{"$f":"IFERROR(MID($AA28,FIND(CHAR(160),SUBSTITUTE($AA28,\"{\",CHAR(160),IF$1)),FIND(CHAR(160),SUBSTITUTE($AA28,\"}\",CHAR(160),IF$1))-FIND(CHAR(160),SUBSTITUTE($AA28,\"{\",CHAR(160),IF$1))+1),\"\")","v":""},{"$f":"IFERROR(MID($AA28,FIND(CHAR(160),SUBSTITUTE($AA28,\"{\",CHAR(160),IG$1)),FIND(CHAR(160),SUBSTITUTE($AA28,\"}\",CHAR(160),IG$1))-FIND(CHAR(160),SUBSTITUTE($AA28,\"{\",CHAR(160),IG$1))+1),\"\")","v":""},{"$f":"IFERROR(MID($AA28,FIND(CHAR(160),SUBSTITUTE($AA28,\"{\",CHAR(160),IH$1)),FIND(CHAR(160),SUBSTITUTE($AA28,\"}\",CHAR(160),IH$1))-FIND(CHAR(160),SUBSTITUTE($AA28,\"{\",CHAR(160),IH$1))+1),\"\")","v":""},{"$f":"IFERROR(MID($AA28,FIND(CHAR(160),SUBSTITUTE($AA28,\"{\",CHAR(160),II$1)),FIND(CHAR(160),SUBSTITUTE($AA28,\"}\",CHAR(160),II$1))-FIND(CHAR(160),SUBSTITUTE($AA28,\"{\",CHAR(160),II$1))+1),\"\")","v":""},{"$f":"IFERROR(MID($AA28,FIND(CHAR(160),SUBSTITUTE($AA28,\"{\",CHAR(160),IJ$1)),FIND(CHAR(160),SUBSTITUTE($AA28,\"}\",CHAR(160),IJ$1))-FIND(CHAR(160),SUBSTITUTE($AA28,\"{\",CHAR(160),IJ$1))+1),\"\")","v":""},{"$f":"IFERROR(MID($AA28,FIND(CHAR(160),SUBSTITUTE($AA28,\"{\",CHAR(160),IK$1)),FIND(CHAR(160),SUBSTITUTE($AA28,\"}\",CHAR(160),IK$1))-FIND(CHAR(160),SUBSTITUTE($AA28,\"{\",CHAR(160),IK$1))+1),\"\")","v":""},{"$f":"IFERROR(MID($AA28,FIND(CHAR(160),SUBSTITUTE($AA28,\"{\",CHAR(160),IL$1)),FIND(CHAR(160),SUBSTITUTE($AA28,\"}\",CHAR(160),IL$1))-FIND(CHAR(160),SUBSTITUTE($AA28,\"{\",CHAR(160),IL$1))+1),\"\")","v":""},{"$f":"IFERROR(MID($AA28,FIND(CHAR(160),SUBSTITUTE($AA28,\"{\",CHAR(160),IM$1)),FIND(CHAR(160),SUBSTITUTE($AA28,\"}\",CHAR(160),IM$1))-FIND(CHAR(160),SUBSTITUTE($AA28,\"{\",CHAR(160),IM$1))+1),\"\")","v":""},{"$f":"IFERROR(MID($AA28,FIND(CHAR(160),SUBSTITUTE($AA28,\"{\",CHAR(160),IN$1)),FIND(CHAR(160),SUBSTITUTE($AA28,\"}\",CHAR(160),IN$1))-FIND(CHAR(160),SUBSTITUTE($AA28,\"{\",CHAR(160),IN$1))+1),\"\")","v":""},{"$f":"IFERROR(MID($AB28,FIND(CHAR(160),SUBSTITUTE($AB28,\"{\",CHAR(160),IO$1)),FIND(CHAR(160),SUBSTITUTE($AB28,\"}\",CHAR(160),IO$1))-FIND(CHAR(160),SUBSTITUTE($AB28,\"{\",CHAR(160),IO$1))+1),\"\")","v":""},{"$f":"IFERROR(MID($AB28,FIND(CHAR(160),SUBSTITUTE($AB28,\"{\",CHAR(160),IP$1)),FIND(CHAR(160),SUBSTITUTE($AB28,\"}\",CHAR(160),IP$1))-FIND(CHAR(160),SUBSTITUTE($AB28,\"{\",CHAR(160),IP$1))+1),\"\")","v":""},{"$f":"IFERROR(MID($AB28,FIND(CHAR(160),SUBSTITUTE($AB28,\"{\",CHAR(160),IQ$1)),FIND(CHAR(160),SUBSTITUTE($AB28,\"}\",CHAR(160),IQ$1))-FIND(CHAR(160),SUBSTITUTE($AB28,\"{\",CHAR(160),IQ$1))+1),\"\")","v":""},{"$f":"IFERROR(MID($AB28,FIND(CHAR(160),SUBSTITUTE($AB28,\"{\",CHAR(160),IR$1)),FIND(CHAR(160),SUBSTITUTE($AB28,\"}\",CHAR(160),IR$1))-FIND(CHAR(160),SUBSTITUTE($AB28,\"{\",CHAR(160),IR$1))+1),\"\")","v":""},{"$f":"IFERROR(MID($AB28,FIND(CHAR(160),SUBSTITUTE($AB28,\"{\",CHAR(160),IS$1)),FIND(CHAR(160),SUBSTITUTE($AB28,\"}\",CHAR(160),IS$1))-FIND(CHAR(160),SUBSTITUTE($AB28,\"{\",CHAR(160),IS$1))+1),\"\")","v":""},{"$f":"IFERROR(MID($AB28,FIND(CHAR(160),SUBSTITUTE($AB28,\"{\",CHAR(160),IT$1)),FIND(CHAR(160),SUBSTITUTE($AB28,\"}\",CHAR(160),IT$1))-FIND(CHAR(160),SUBSTITUTE($AB28,\"{\",CHAR(160),IT$1))+1),\"\")","v":""},{"$f":"IFERROR(MID($AB28,FIND(CHAR(160),SUBSTITUTE($AB28,\"{\",CHAR(160),IU$1)),FIND(CHAR(160),SUBSTITUTE($AB28,\"}\",CHAR(160),IU$1))-FIND(CHAR(160),SUBSTITUTE($AB28,\"{\",CHAR(160),IU$1))+1),\"\")","v":""},{"$f":"IFERROR(MID($AB28,FIND(CHAR(160),SUBSTITUTE($AB28,\"{\",CHAR(160),IV$1)),FIND(CHAR(160),SUBSTITUTE($AB28,\"}\",CHAR(160),IV$1))-FIND(CHAR(160),SUBSTITUTE($AB28,\"{\",CHAR(160),IV$1))+1),\"\")","v":""},{"$f":"IFERROR(MID($AB28,FIND(CHAR(160),SUBSTITUTE($AB28,\"{\",CHAR(160),IW$1)),FIND(CHAR(160),SUBSTITUTE($AB28,\"}\",CHAR(160),IW$1))-FIND(CHAR(160),SUBSTITUTE($AB28,\"{\",CHAR(160),IW$1))+1),\"\")","v":""},{"$f":"IFERROR(MID($AB28,FIND(CHAR(160),SUBSTITUTE($AB28,\"{\",CHAR(160),IX$1)),FIND(CHAR(160),SUBSTITUTE($AB28,\"}\",CHAR(160),IX$1))-FIND(CHAR(160),SUBSTITUTE($AB28,\"{\",CHAR(160),IX$1))+1),\"\")","v":""},null,{"$f":"10-COUNTIF(DU28:ED28,\"\")","v":4}]
["C&I Agricultural Solutions","MILK: Vacuum Pump with Adjustable Speed Drive Package - 15 HP","AMVP - VP15","2021-07-01","2022-06-30","Per Measure",5322,0,"Per Measure",3000,0,"2016-07-01","2022-06-30","Calculated","{Measure:Quantity} * (((15*0.746*.75/({Motor Efficiency}/100)) - (.0495*(2*{# of Milking Units})+1.7729))*{Daily Run Time}*365)",1E-4,null,"{Measure:Quantity} * ((15*0.746*.75/({Motor Efficiency}/100)) - (.0495*(2*{# of Milking Units})+1.7729))",null,null,"({Measure:Quantity} * ((15*0.746*.75/({Motor Efficiency}/100)) - (.0495*(2*{# of Milking Units})+1.7729)))*{Factor:WinterCF}","({Measure:Quantity} * ((15*0.746*.75/({Motor Efficiency}/100)) - (.0495*(2*{# of Milking Units})+1.7729)))*{Factor:SummerCF}",null,null,null,null,null,null,"2020-04-01","2022-06-30",15,0.46700000000000003,0.27500000000000002,0.36899999999999999,0.30099999999999999,0.182,0.14799999999999999,1,1.1220000000000001,1,0.52,1.6E-2,null,{"$f":"DU29","v":"{# of Milking Units}"},1,{"$f":"DV29","v":"{Daily Run Time}"},93,{"$f":"DW29","v":"{Measure:Quantity}"},10,{"$f":"DX29","v":"{Motor Efficiency}"},2,{"$f":"DY29","v":""},null,{"$f":"DZ29","v":""},null,{"$f":"EA29","v":""},null,{"$f":"EB29","v":""},null,{"$f":"EC29","v":""},null,{"$f":"ED29","v":""},null,{"$f":"AS29 * (((15*0.746*0.75/(AU29/100)) - (0.0495*(2*AW29)+1.7729))*AY29*365)","v":4570.7442903225801},{"$f":"0.0001","v":1E-4},0,{"$f":"AS29 * ((15*0.746*0.75/(AU29/100)) - (0.0495*(2*AW29)+1.7729))","v":6.261293548387096},0,0,{"$f":"(AS29 * ((15*0.746*0.75/(AU29/100)) - (0.0495*(2*AW29)+1.7729)))*AF29","v":2.924024087096774},{"$f":"(AS29 * ((15*0.746*0.75/(AU29/100)) - (0.0495*(2*AW29)+1.7729)))*AG29","v":1.7218557258064515},0,0,0,0,0,0,null,"Res","Default DR",{"$f":"Benefits(BL29,BR29,BS29,BT29,BU29,BV29,BW29,BX29,BY29,BZ29,AE29,AH29,AI29,AJ29,AK29,AL29,AM29,AN29,AO29,AP29,CA29,CB29)","v":6844.9497149758354},14252.749998169093,0,0,0,0,0,0,0,{"$f":"SUMPRODUCT(CC29:CK29,--(CC29:CK29>0))","v":21097.699713144928},{"$f":"-SUMPRODUCT(CC29:CK29,--(CC29:CK29<0))","v":0},null,{"$f":"5322","v":5322},null,null,{"$f":"CM29+CO29","v":5322},{"$f":"IF(NetOrGross=\"Net\",(1-AO29+AP29),1)","v":1},{"$f":"(SUMPRODUCT(CC29:CJ29,--(CC29:CJ29>0))+CN29)*CS29/((-SUMPRODUCT(CC29:CJ29,--(CC29:CJ29<0))+MAX(CO29,CV29)+CP29+CQ29)*CS29+IF(FRIncentives=\"Yes\",CV29*(1-CS29),0))","v":3.9642427119776262},1,{"$f":"3000","v":3000},null,"Electric","y",null,{"$f":"IF(F29=\"Manual Entry\",\"Manual\",IF(G29=\"\",0,\"X=\"&SUBSTITUTE(SUBSTITUTE(SUBSTITUTE(SUBSTITUTE(SUBSTITUTE(SUBSTITUTE(SUBSTITUTE(SUBSTITUTE(SUBSTITUTE(SUBSTITUTE(SUBSTITUTE(SUBSTITUTE(G29,$ED29,$ED$2&ROW($ED29)),$EC29,$EC$2&ROW($EC29)),$EB29,$EB$2&ROW($EB29)),$EA29,$EA$2&ROW($EA29)),$DZ29,$DZ$2&ROW($DZ29)),$DY29,$DY$2&ROW($DY29)),$DX29,$DX$2&ROW($DX29)),$DW29,$DW$2&ROW($DW29)),$DV29,$DV$2&ROW($DV29)),$DU29,$DU$2&ROW($DU29)),$DT29,$DT$2&ROW($DT29)),$DS29,$DS$2&ROW($DS29))))","v":"X=5322"},{"$f":"IF(I29=\"Manual Entry\",\"Manual\",IF(J29=\"\",0,\"X=\"&SUBSTITUTE(SUBSTITUTE(SUBSTITUTE(SUBSTITUTE(SUBSTITUTE(SUBSTITUTE(SUBSTITUTE(SUBSTITUTE(SUBSTITUTE(SUBSTITUTE(SUBSTITUTE(SUBSTITUTE(J29,$ED29,$ED$2&ROW($ED29)),$EC29,$EC$2&ROW($EC29)),$EB29,$EB$2&ROW($EB29)),$EA29,$EA$2&ROW($EA29)),$DZ29,$DZ$2&ROW($DZ29)),$DY29,$DY$2&ROW($DY29)),$DX29,$DX$2&ROW($DX29)),$DW29,$DW$2&ROW($DW29)),$DV29,$DV$2&ROW($DV29)),$DU29,$DU$2&ROW($DU29)),$DT29,$DT$2&ROW($DT29)),$DS29,$DS$2&ROW($DS29))))","v":"X=3000"},{"$f":"IF(O29=\"\",0,\"X=\"&SUBSTITUTE(SUBSTITUTE(SUBSTITUTE(SUBSTITUTE(SUBSTITUTE(SUBSTITUTE(SUBSTITUTE(SUBSTITUTE(SUBSTITUTE(SUBSTITUTE(SUBSTITUTE(SUBSTITUTE(O29,$ED29,$ED$2&ROW($ED29)),$EC29,$EC$2&ROW($EC29)),$EB29,$EB$2&ROW($EB29)),$EA29,$EA$2&ROW($EA29)),$DZ29,$DZ$2&ROW($DZ29)),$DY29,$DY$2&ROW($DY29)),$DX29,$DX$2&ROW($DX29)),$DW29,$DW$2&ROW($DW29)),$DV29,$DV$2&ROW($DV29)),$DU29,$DU$2&ROW($DU29)),$DT29,$DT$2&ROW($DT29)),$DS29,$DS$2&ROW($DS29)))","v":"X=AW29 * (((15*0.746*.75/(AY29/100)) - (.0495*(2*AS29)+1.7729))*AU29*365)"},{"$f":"IF(P29=\"\",0,\"X=\"&SUBSTITUTE(SUBSTITUTE(SUBSTITUTE(SUBSTITUTE(SUBSTITUTE(SUBSTITUTE(SUBSTITUTE(SUBSTITUTE(SUBSTITUTE(SUBSTITUTE(SUBSTITUTE(SUBSTITUTE(P29,$ED29,$ED$2&ROW($ED29)),$EC29,$EC$2&ROW($EC29)),$EB29,$EB$2&ROW($EB29)),$EA29,$EA$2&ROW($EA29)),$DZ29,$DZ$2&ROW($DZ29)),$DY29,$DY$2&ROW($DY29)),$DX29,$DX$2&ROW($DX29)),$DW29,$DW$2&ROW($DW29)),$DV29,$DV$2&ROW($DV29)),$DU29,$DU$2&ROW($DU29)),$DT29,$DT$2&ROW($DT29)),$DS29,$DS$2&ROW($DS29)))","v":"X=0.0001"},{"$f":"IF(Q29=\"\",0,\"X=\"&SUBSTITUTE(SUBSTITUTE(SUBSTITUTE(SUBSTITUTE(SUBSTITUTE(SUBSTITUTE(SUBSTITUTE(SUBSTITUTE(SUBSTITUTE(SUBSTITUTE(SUBSTITUTE(SUBSTITUTE(Q29,$ED29,$ED$2&ROW($ED29)),$EC29,$EC$2&ROW($EC29)),$EB29,$EB$2&ROW($EB29)),$EA29,$EA$2&ROW($EA29)),$DZ29,$DZ$2&ROW($DZ29)),$DY29,$DY$2&ROW($DY29)),$DX29,$DX$2&ROW($DX29)),$DW29,$DW$2&ROW($DW29)),$DV29,$DV$2&ROW($DV29)),$DU29,$DU$2&ROW($DU29)),$DT29,$DT$2&ROW($DT29)),$DS29,$DS$2&ROW($DS29)))","v":0},{"$f":"IF(R29=\"\",0,\"X=\"&SUBSTITUTE(SUBSTITUTE(SUBSTITUTE(SUBSTITUTE(SUBSTITUTE(SUBSTITUTE(SUBSTITUTE(SUBSTITUTE(SUBSTITUTE(SUBSTITUTE(SUBSTITUTE(SUBSTITUTE(R29,$ED29,$ED$2&ROW($ED29)),$EC29,$EC$2&ROW($EC29)),$EB29,$EB$2&ROW($EB29)),$EA29,$EA$2&ROW($EA29)),$DZ29,$DZ$2&ROW($DZ29)),$DY29,$DY$2&ROW($DY29)),$DX29,$DX$2&ROW($DX29)),$DW29,$DW$2&ROW($DW29)),$DV29,$DV$2&ROW($DV29)),$DU29,$DU$2&ROW($DU29)),$DT29,$DT$2&ROW($DT29)),$DS29,$DS$2&ROW($DS29)))","v":"X=AW29 * ((15*0.746*.75/(AY29/100)) - (.0495*(2*AS29)+1.7729))"},{"$f":"IF(S29=\"\",0,\"X=\"&SUBSTITUTE(SUBSTITUTE(SUBSTITUTE(SUBSTITUTE(SUBSTITUTE(SUBSTITUTE(SUBSTITUTE(SUBSTITUTE(SUBSTITUTE(SUBSTITUTE(SUBSTITUTE(SUBSTITUTE(S29,$ED29,$ED$2&ROW($ED29)),$EC29,$EC$2&ROW($EC29)),$EB29,$EB$2&ROW($EB29)),$EA29,$EA$2&ROW($EA29)),$DZ29,$DZ$2&ROW($DZ29)),$DY29,$DY$2&ROW($DY29)),$DX29,$DX$2&ROW($DX29)),$DW29,$DW$2&ROW($DW29)),$DV29,$DV$2&ROW($DV29)),$DU29,$DU$2&ROW($DU29)),$DT29,$DT$2&ROW($DT29)),$DS29,$DS$2&ROW($DS29)))","v":0},{"$f":"IF(T29=\"\",0,\"X=\"&SUBSTITUTE(SUBSTITUTE(SUBSTITUTE(SUBSTITUTE(SUBSTITUTE(SUBSTITUTE(SUBSTITUTE(SUBSTITUTE(SUBSTITUTE(SUBSTITUTE(SUBSTITUTE(SUBSTITUTE(T29,$ED29,$ED$2&ROW($ED29)),$EC29,$EC$2&ROW($EC29)),$EB29,$EB$2&ROW($EB29)),$EA29,$EA$2&ROW($EA29)),$DZ29,$DZ$2&ROW($DZ29)),$DY29,$DY$2&ROW($DY29)),$DX29,$DX$2&ROW($DX29)),$DW29,$DW$2&ROW($DW29)),$DV29,$DV$2&ROW($DV29)),$DU29,$DU$2&ROW($DU29)),$DT29,$DT$2&ROW($DT29)),$DS29,$DS$2&ROW($DS29)))","v":0},{"$f":"IF(U29=\"\",0,\"X=\"&SUBSTITUTE(SUBSTITUTE(SUBSTITUTE(SUBSTITUTE(SUBSTITUTE(SUBSTITUTE(SUBSTITUTE(SUBSTITUTE(SUBSTITUTE(SUBSTITUTE(SUBSTITUTE(SUBSTITUTE(U29,$ED29,$ED$2&ROW($ED29)),$EC29,$EC$2&ROW($EC29)),$EB29,$EB$2&ROW($EB29)),$EA29,$EA$2&ROW($EA29)),$DZ29,$DZ$2&ROW($DZ29)),$DY29,$DY$2&ROW($DY29)),$DX29,$DX$2&ROW($DX29)),$DW29,$DW$2&ROW($DW29)),$DV29,$DV$2&ROW($DV29)),$DU29,$DU$2&ROW($DU29)),$DT29,$DT$2&ROW($DT29)),$DS29,$DS$2&ROW($DS29)))","v":"X=(AW29 * ((15*0.746*.75/(AY29/100)) - (.0495*(2*AS29)+1.7729)))*AF29"},{"$f":"IF(V29=\"\",0,\"X=\"&SUBSTITUTE(SUBSTITUTE(SUBSTITUTE(SUBSTITUTE(SUBSTITUTE(SUBSTITUTE(SUBSTITUTE(SUBSTITUTE(SUBSTITUTE(SUBSTITUTE(SUBSTITUTE(SUBSTITUTE(V29,$ED29,$ED$2&ROW($ED29)),$EC29,$EC$2&ROW($EC29)),$EB29,$EB$2&ROW($EB29)),$EA29,$EA$2&ROW($EA29)),$DZ29,$DZ$2&ROW($DZ29)),$DY29,$DY$2&ROW($DY29)),$DX29,$DX$2&ROW($DX29)),$DW29,$DW$2&ROW($DW29)),$DV29,$DV$2&ROW($DV29)),$DU29,$DU$2&ROW($DU29)),$DT29,$DT$2&ROW($DT29)),$DS29,$DS$2&ROW($DS29)))","v":"X=(AW29 * ((15*0.746*.75/(AY29/100)) - (.0495*(2*AS29)+1.7729)))*AG29"},{"$f":"IF(W29=\"\",0,\"X=\"&SUBSTITUTE(SUBSTITUTE(SUBSTITUTE(SUBSTITUTE(SUBSTITUTE(SUBSTITUTE(SUBSTITUTE(SUBSTITUTE(SUBSTITUTE(SUBSTITUTE(SUBSTITUTE(SUBSTITUTE(W29,$ED29,$ED$2&ROW($ED29)),$EC29,$EC$2&ROW($EC29)),$EB29,$EB$2&ROW($EB29)),$EA29,$EA$2&ROW($EA29)),$DZ29,$DZ$2&ROW($DZ29)),$DY29,$DY$2&ROW($DY29)),$DX29,$DX$2&ROW($DX29)),$DW29,$DW$2&ROW($DW29)),$DV29,$DV$2&ROW($DV29)),$DU29,$DU$2&ROW($DU29)),$DT29,$DT$2&ROW($DT29)),$DS29,$DS$2&ROW($DS29)))","v":0},{"$f":"IF(X29=\"\",0,\"X=\"&SUBSTITUTE(SUBSTITUTE(SUBSTITUTE(SUBSTITUTE(SUBSTITUTE(SUBSTITUTE(SUBSTITUTE(SUBSTITUTE(SUBSTITUTE(SUBSTITUTE(SUBSTITUTE(SUBSTITUTE(X29,$ED29,$ED$2&ROW($ED29)),$EC29,$EC$2&ROW($EC29)),$EB29,$EB$2&ROW($EB29)),$EA29,$EA$2&ROW($EA29)),$DZ29,$DZ$2&ROW($DZ29)),$DY29,$DY$2&ROW($DY29)),$DX29,$DX$2&ROW($DX29)),$DW29,$DW$2&ROW($DW29)),$DV29,$DV$2&ROW($DV29)),$DU29,$DU$2&ROW($DU29)),$DT29,$DT$2&ROW($DT29)),$DS29,$DS$2&ROW($DS29)))","v":0},{"$f":"IF(Y29=\"\",0,\"X=\"&SUBSTITUTE(SUBSTITUTE(SUBSTITUTE(SUBSTITUTE(SUBSTITUTE(SUBSTITUTE(SUBSTITUTE(SUBSTITUTE(SUBSTITUTE(SUBSTITUTE(SUBSTITUTE(SUBSTITUTE(Y29,$ED29,$ED$2&ROW($ED29)),$EC29,$EC$2&ROW($EC29)),$EB29,$EB$2&ROW($EB29)),$EA29,$EA$2&ROW($EA29)),$DZ29,$DZ$2&ROW($DZ29)),$DY29,$DY$2&ROW($DY29)),$DX29,$DX$2&ROW($DX29)),$DW29,$DW$2&ROW($DW29)),$DV29,$DV$2&ROW($DV29)),$DU29,$DU$2&ROW($DU29)),$DT29,$DT$2&ROW($DT29)),$DS29,$DS$2&ROW($DS29)))","v":0},{"$f":"IF(Z29=\"\",0,\"X=\"&SUBSTITUTE(SUBSTITUTE(SUBSTITUTE(SUBSTITUTE(SUBSTITUTE(SUBSTITUTE(SUBSTITUTE(SUBSTITUTE(SUBSTITUTE(SUBSTITUTE(SUBSTITUTE(SUBSTITUTE(Z29,$ED29,$ED$2&ROW($ED29)),$EC29,$EC$2&ROW($EC29)),$EB29,$EB$2&ROW($EB29)),$EA29,$EA$2&ROW($EA29)),$DZ29,$DZ$2&ROW($DZ29)),$DY29,$DY$2&ROW($DY29)),$DX29,$DX$2&ROW($DX29)),$DW29,$DW$2&ROW($DW29)),$DV29,$DV$2&ROW($DV29)),$DU29,$DU$2&ROW($DU29)),$DT29,$DT$2&ROW($DT29)),$DS29,$DS$2&ROW($DS29)))","v":0},{"$f":"IF(AA29=\"\",0,\"X=\"&SUBSTITUTE(SUBSTITUTE(SUBSTITUTE(SUBSTITUTE(SUBSTITUTE(SUBSTITUTE(SUBSTITUTE(SUBSTITUTE(SUBSTITUTE(SUBSTITUTE(SUBSTITUTE(SUBSTITUTE(AA29,$ED29,$ED$2&ROW($ED29)),$EC29,$EC$2&ROW($EC29)),$EB29,$EB$2&ROW($EB29)),$EA29,$EA$2&ROW($EA29)),$DZ29,$DZ$2&ROW($DZ29)),$DY29,$DY$2&ROW($DY29)),$DX29,$DX$2&ROW($DX29)),$DW29,$DW$2&ROW($DW29)),$DV29,$DV$2&ROW($DV29)),$DU29,$DU$2&ROW($DU29)),$DT29,$DT$2&ROW($DT29)),$DS29,$DS$2&ROW($DS29)))","v":0},{"$f":"IF(AB29=\"\",0,\"X=\"&SUBSTITUTE(SUBSTITUTE(SUBSTITUTE(SUBSTITUTE(SUBSTITUTE(SUBSTITUTE(SUBSTITUTE(SUBSTITUTE(SUBSTITUTE(SUBSTITUTE(SUBSTITUTE(SUBSTITUTE(AB29,$ED29,$ED$2&ROW($ED29)),$EC29,$EC$2&ROW($EC29)),$EB29,$EB$2&ROW($EB29)),$EA29,$EA$2&ROW($EA29)),$DZ29,$DZ$2&ROW($DZ29)),$DY29,$DY$2&ROW($DY29)),$DX29,$DX$2&ROW($DX29)),$DW29,$DW$2&ROW($DW29)),$DV29,$DV$2&ROW($DV29)),$DU29,$DU$2&ROW($DU29)),$DT29,$DT$2&ROW($DT29)),$DS29,$DS$2&ROW($DS29)))","v":0},null,null,"{Factor:WinterCF}","{Factor:SummerCF}",{"$f":"IFERROR(INDEX($EG29:$IV29,MATCH(0,COUNTIF($DR29:DT29,$EG29:$IV29),0)),\"\")","v":"{# of Milking Units}"},{"$f":"IFERROR(INDEX($EG29:$IV29,MATCH(0,COUNTIF($DR29:DU29,$EG29:$IV29),0)),\"\")","v":"{Daily Run Time}"},{"$f":"IFERROR(INDEX($EG29:$IV29,MATCH(0,COUNTIF($DR29:DV29,$EG29:$IV29),0)),\"\")","v":"{Measure:Quantity}"},{"$f":"IFERROR(INDEX($EG29:$IV29,MATCH(0,COUNTIF($DR29:DW29,$EG29:$IV29),0)),\"\")","v":"{Motor Efficiency}"},{"$f":"IFERROR(INDEX($EG29:$IV29,MATCH(0,COUNTIF($DR29:DX29,$EG29:$IV29),0)),\"\")","v":""},{"$f":"IFERROR(INDEX($EG29:$IV29,MATCH(0,COUNTIF($DR29:DY29,$EG29:$IV29),0)),\"\")","v":""},{"$f":"IFERROR(INDEX($EG29:$IV29,MATCH(0,COUNTIF($DR29:DZ29,$EG29:$IV29),0)),\"\")","v":""},{"$f":"IFERROR(INDEX($EG29:$IV29,MATCH(0,COUNTIF($DR29:EA29,$EG29:$IV29),0)),\"\")","v":""},{"$f":"IFERROR(INDEX($EG29:$IV29,MATCH(0,COUNTIF($DR29:EB29,$EG29:$IV29),0)),\"\")","v":""},{"$f":"IFERROR(INDEX($EG29:$IV29,MATCH(0,COUNTIF($DR29:EC29,$EG29:$IV29),0)),\"\")","v":""},null,null,{"$f":"IFERROR(MID($G29,FIND(CHAR(160),SUBSTITUTE($G29,\"{\",CHAR(160),EG$1)),FIND(CHAR(160),SUBSTITUTE($G29,\"}\",CHAR(160),EG$1))-FIND(CHAR(160),SUBSTITUTE($G29,\"{\",CHAR(160),EG$1))+1),\"\")","v":""},{"$f":"IFERROR(MID($G29,FIND(CHAR(160),SUBSTITUTE($G29,\"{\",CHAR(160),EH$1)),FIND(CHAR(160),SUBSTITUTE($G29,\"}\",CHAR(160),EH$1))-FIND(CHAR(160),SUBSTITUTE($G29,\"{\",CHAR(160),EH$1))+1),\"\")","v":""},{"$f":"IFERROR(MID($G29,FIND(CHAR(160),SUBSTITUTE($G29,\"{\",CHAR(160),EI$1)),FIND(CHAR(160),SUBSTITUTE($G29,\"}\",CHAR(160),EI$1))-FIND(CHAR(160),SUBSTITUTE($G29,\"{\",CHAR(160),EI$1))+1),\"\")","v":""},{"$f":"IFERROR(MID($G29,FIND(CHAR(160),SUBSTITUTE($G29,\"{\",CHAR(160),EJ$1)),FIND(CHAR(160),SUBSTITUTE($G29,\"}\",CHAR(160),EJ$1))-FIND(CHAR(160),SUBSTITUTE($G29,\"{\",CHAR(160),EJ$1))+1),\"\")","v":""},{"$f":"IFERROR(MID($G29,FIND(CHAR(160),SUBSTITUTE($G29,\"{\",CHAR(160),EK$1)),FIND(CHAR(160),SUBSTITUTE($G29,\"}\",CHAR(160),EK$1))-FIND(CHAR(160),SUBSTITUTE($G29,\"{\",CHAR(160),EK$1))+1),\"\")","v":""},{"$f":"IFERROR(MID($G29,FIND(CHAR(160),SUBSTITUTE($G29,\"{\",CHAR(160),EL$1)),FIND(CHAR(160),SUBSTITUTE($G29,\"}\",CHAR(160),EL$1))-FIND(CHAR(160),SUBSTITUTE($G29,\"{\",CHAR(160),EL$1))+1),\"\")","v":""},{"$f":"IFERROR(MID($G29,FIND(CHAR(160),SUBSTITUTE($G29,\"{\",CHAR(160),EM$1)),FIND(CHAR(160),SUBSTITUTE($G29,\"}\",CHAR(160),EM$1))-FIND(CHAR(160),SUBSTITUTE($G29,\"{\",CHAR(160),EM$1))+1),\"\")","v":""},{"$f":"IFERROR(MID($G29,FIND(CHAR(160),SUBSTITUTE($G29,\"{\",CHAR(160),EN$1)),FIND(CHAR(160),SUBSTITUTE($G29,\"}\",CHAR(160),EN$1))-FIND(CHAR(160),SUBSTITUTE($G29,\"{\",CHAR(160),EN$1))+1),\"\")","v":""},{"$f":"IFERROR(MID($G29,FIND(CHAR(160),SUBSTITUTE($G29,\"{\",CHAR(160),EO$1)),FIND(CHAR(160),SUBSTITUTE($G29,\"}\",CHAR(160),EO$1))-FIND(CHAR(160),SUBSTITUTE($G29,\"{\",CHAR(160),EO$1))+1),\"\")","v":""},{"$f":"IFERROR(MID($G29,FIND(CHAR(160),SUBSTITUTE($G29,\"{\",CHAR(160),EP$1)),FIND(CHAR(160),SUBSTITUTE($G29,\"}\",CHAR(160),EP$1))-FIND(CHAR(160),SUBSTITUTE($G29,\"{\",CHAR(160),EP$1))+1),\"\")","v":""},{"$f":"IFERROR(MID($J29,FIND(CHAR(160),SUBSTITUTE($J29,\"{\",CHAR(160),EQ$1)),FIND(CHAR(160),SUBSTITUTE($J29,\"}\",CHAR(160),EQ$1))-FIND(CHAR(160),SUBSTITUTE($J29,\"{\",CHAR(160),EQ$1))+1),\"\")","v":""},{"$f":"IFERROR(MID($J29,FIND(CHAR(160),SUBSTITUTE($J29,\"{\",CHAR(160),ER$1)),FIND(CHAR(160),SUBSTITUTE($J29,\"}\",CHAR(160),ER$1))-FIND(CHAR(160),SUBSTITUTE($J29,\"{\",CHAR(160),ER$1))+1),\"\")","v":""},{"$f":"IFERROR(MID($J29,FIND(CHAR(160),SUBSTITUTE($J29,\"{\",CHAR(160),ES$1)),FIND(CHAR(160),SUBSTITUTE($J29,\"}\",CHAR(160),ES$1))-FIND(CHAR(160),SUBSTITUTE($J29,\"{\",CHAR(160),ES$1))+1),\"\")","v":""},{"$f":"IFERROR(MID($J29,FIND(CHAR(160),SUBSTITUTE($J29,\"{\",CHAR(160),ET$1)),FIND(CHAR(160),SUBSTITUTE($J29,\"}\",CHAR(160),ET$1))-FIND(CHAR(160),SUBSTITUTE($J29,\"{\",CHAR(160),ET$1))+1),\"\")","v":""},{"$f":"IFERROR(MID($J29,FIND(CHAR(160),SUBSTITUTE($J29,\"{\",CHAR(160),EU$1)),FIND(CHAR(160),SUBSTITUTE($J29,\"}\",CHAR(160),EU$1))-FIND(CHAR(160),SUBSTITUTE($J29,\"{\",CHAR(160),EU$1))+1),\"\")","v":""},{"$f":"IFERROR(MID($J29,FIND(CHAR(160),SUBSTITUTE($J29,\"{\",CHAR(160),EV$1)),FIND(CHAR(160),SUBSTITUTE($J29,\"}\",CHAR(160),EV$1))-FIND(CHAR(160),SUBSTITUTE($J29,\"{\",CHAR(160),EV$1))+1),\"\")","v":""},{"$f":"IFERROR(MID($J29,FIND(CHAR(160),SUBSTITUTE($J29,\"{\",CHAR(160),EW$1)),FIND(CHAR(160),SUBSTITUTE($J29,\"}\",CHAR(160),EW$1))-FIND(CHAR(160),SUBSTITUTE($J29,\"{\",CHAR(160),EW$1))+1),\"\")","v":""},{"$f":"IFERROR(MID($J29,FIND(CHAR(160),SUBSTITUTE($J29,\"{\",CHAR(160),EX$1)),FIND(CHAR(160),SUBSTITUTE($J29,\"}\",CHAR(160),EX$1))-FIND(CHAR(160),SUBSTITUTE($J29,\"{\",CHAR(160),EX$1))+1),\"\")","v":""},{"$f":"IFERROR(MID($J29,FIND(CHAR(160),SUBSTITUTE($J29,\"{\",CHAR(160),EY$1)),FIND(CHAR(160),SUBSTITUTE($J29,\"}\",CHAR(160),EY$1))-FIND(CHAR(160),SUBSTITUTE($J29,\"{\",CHAR(160),EY$1))+1),\"\")","v":""},{"$f":"IFERROR(MID($J29,FIND(CHAR(160),SUBSTITUTE($J29,\"{\",CHAR(160),EZ$1)),FIND(CHAR(160),SUBSTITUTE($J29,\"}\",CHAR(160),EZ$1))-FIND(CHAR(160),SUBSTITUTE($J29,\"{\",CHAR(160),EZ$1))+1),\"\")","v":""},{"$f":"IFERROR(MID($J29,FIND(CHAR(160),SUBSTITUTE($J29,\"{\",CHAR(160),FA$1)),FIND(CHAR(160),SUBSTITUTE($J29,\"}\",CHAR(160),FA$1))-FIND(CHAR(160),SUBSTITUTE($J29,\"{\",CHAR(160),FA$1))+1),\"\")","v":""},{"$f":"IFERROR(MID($J29,FIND(CHAR(160),SUBSTITUTE($J29,\"{\",CHAR(160),FB$1)),FIND(CHAR(160),SUBSTITUTE($J29,\"}\",CHAR(160),FB$1))-FIND(CHAR(160),SUBSTITUTE($J29,\"{\",CHAR(160),FB$1))+1),\"\")","v":""},{"$f":"IFERROR(MID($O29,FIND(CHAR(160),SUBSTITUTE($O29,\"{\",CHAR(160),FC$1)),FIND(CHAR(160),SUBSTITUTE($O29,\"}\",CHAR(160),FC$1))-FIND(CHAR(160),SUBSTITUTE($O29,\"{\",CHAR(160),FC$1))+1),\"\")","v":"{# of Milking Units}"},{"$f":"IFERROR(MID($O29,FIND(CHAR(160),SUBSTITUTE($O29,\"{\",CHAR(160),FD$1)),FIND(CHAR(160),SUBSTITUTE($O29,\"}\",CHAR(160),FD$1))-FIND(CHAR(160),SUBSTITUTE($O29,\"{\",CHAR(160),FD$1))+1),\"\")","v":"{Daily Run Time}"},{"$f":"IFERROR(MID($O29,FIND(CHAR(160),SUBSTITUTE($O29,\"{\",CHAR(160),FE$1)),FIND(CHAR(160),SUBSTITUTE($O29,\"}\",CHAR(160),FE$1))-FIND(CHAR(160),SUBSTITUTE($O29,\"{\",CHAR(160),FE$1))+1),\"\")","v":""},{"$f":"IFERROR(MID($O29,FIND(CHAR(160),SUBSTITUTE($O29,\"{\",CHAR(160),FF$1)),FIND(CHAR(160),SUBSTITUTE($O29,\"}\",CHAR(160),FF$1))-FIND(CHAR(160),SUBSTITUTE($O29,\"{\",CHAR(160),FF$1))+1),\"\")","v":""},{"$f":"IFERROR(MID($O29,FIND(CHAR(160),SUBSTITUTE($O29,\"{\",CHAR(160),FG$1)),FIND(CHAR(160),SUBSTITUTE($O29,\"}\",CHAR(160),FG$1))-FIND(CHAR(160),SUBSTITUTE($O29,\"{\",CHAR(160),FG$1))+1),\"\")","v":""},{"$f":"IFERROR(MID($O29,FIND(CHAR(160),SUBSTITUTE($O29,\"{\",CHAR(160),FH$1)),FIND(CHAR(160),SUBSTITUTE($O29,\"}\",CHAR(160),FH$1))-FIND(CHAR(160),SUBSTITUTE($O29,\"{\",CHAR(160),FH$1))+1),\"\")","v":""},{"$f":"IFERROR(MID($O29,FIND(CHAR(160),SUBSTITUTE($O29,\"{\",CHAR(160),FI$1)),FIND(CHAR(160),SUBSTITUTE($O29,\"}\",CHAR(160),FI$1))-FIND(CHAR(160),SUBSTITUTE($O29,\"{\",CHAR(160),FI$1))+1),\"\")","v":""},{"$f":"IFERROR(MID($O29,FIND(CHAR(160),SUBSTITUTE($O29,\"{\",CHAR(160),FJ$1)),FIND(CHAR(160),SUBSTITUTE($O29,\"}\",CHAR(160),FJ$1))-FIND(CHAR(160),SUBSTITUTE($O29,\"{\",CHAR(160),FJ$1))+1),\"\")","v":""},{"$f":"IFERROR(MID($O29,FIND(CHAR(160),SUBSTITUTE($O29,\"{\",CHAR(160),FK$1)),FIND(CHAR(160),SUBSTITUTE($O29,\"}\",CHAR(160),FK$1))-FIND(CHAR(160),SUBSTITUTE($O29,\"{\",CHAR(160),FK$1))+1),\"\")","v":"{Measure:Quantity}"},{"$f":"IFERROR(MID($O29,FIND(CHAR(160),SUBSTITUTE($O29,\"{\",CHAR(160),FL$1)),FIND(CHAR(160),SUBSTITUTE($O29,\"}\",CHAR(160),FL$1))-FIND(CHAR(160),SUBSTITUTE($O29,\"{\",CHAR(160),FL$1))+1),\"\")","v":"{Motor Efficiency}"},{"$f":"IFERROR(MID($R29,FIND(CHAR(160),SUBSTITUTE($R29,\"{\",CHAR(160),FM$1)),FIND(CHAR(160),SUBSTITUTE($R29,\"}\",CHAR(160),FM$1))-FIND(CHAR(160),SUBSTITUTE($R29,\"{\",CHAR(160),FM$1))+1),\"\")","v":"{# of Milking Units}"},{"$f":"IFERROR(MID($R29,FIND(CHAR(160),SUBSTITUTE($R29,\"{\",CHAR(160),FN$1)),FIND(CHAR(160),SUBSTITUTE($R29,\"}\",CHAR(160),FN$1))-FIND(CHAR(160),SUBSTITUTE($R29,\"{\",CHAR(160),FN$1))+1),\"\")","v":""},{"$f":"IFERROR(MID($R29,FIND(CHAR(160),SUBSTITUTE($R29,\"{\",CHAR(160),FO$1)),FIND(CHAR(160),SUBSTITUTE($R29,\"}\",CHAR(160),FO$1))-FIND(CHAR(160),SUBSTITUTE($R29,\"{\",CHAR(160),FO$1))+1),\"\")","v":""},{"$f":"IFERROR(MID($R29,FIND(CHAR(160),SUBSTITUTE($R29,\"{\",CHAR(160),FP$1)),FIND(CHAR(160),SUBSTITUTE($R29,\"}\",CHAR(160),FP$1))-FIND(CHAR(160),SUBSTITUTE($R29,\"{\",CHAR(160),FP$1))+1),\"\")","v":""},{"$f":"IFERROR(MID($R29,FIND(CHAR(160),SUBSTITUTE($R29,\"{\",CHAR(160),FQ$1)),FIND(CHAR(160),SUBSTITUTE($R29,\"}\",CHAR(160),FQ$1))-FIND(CHAR(160),SUBSTITUTE($R29,\"{\",CHAR(160),FQ$1))+1),\"\")","v":""},{"$f":"IFERROR(MID($R29,FIND(CHAR(160),SUBSTITUTE($R29,\"{\",CHAR(160),FR$1)),FIND(CHAR(160),SUBSTITUTE($R29,\"}\",CHAR(160),FR$1))-FIND(CHAR(160),SUBSTITUTE($R29,\"{\",CHAR(160),FR$1))+1),\"\")","v":""},{"$f":"IFERROR(MID($R29,FIND(CHAR(160),SUBSTITUTE($R29,\"{\",CHAR(160),FS$1)),FIND(CHAR(160),SUBSTITUTE($R29,\"}\",CHAR(160),FS$1))-FIND(CHAR(160),SUBSTITUTE($R29,\"{\",CHAR(160),FS$1))+1),\"\")","v":""},{"$f":"IFERROR(MID($R29,FIND(CHAR(160),SUBSTITUTE($R29,\"{\",CHAR(160),FT$1)),FIND(CHAR(160),SUBSTITUTE($R29,\"}\",CHAR(160),FT$1))-FIND(CHAR(160),SUBSTITUTE($R29,\"{\",CHAR(160),FT$1))+1),\"\")","v":""},{"$f":"IFERROR(MID($R29,FIND(CHAR(160),SUBSTITUTE($R29,\"{\",CHAR(160),FU$1)),FIND(CHAR(160),SUBSTITUTE($R29,\"}\",CHAR(160),FU$1))-FIND(CHAR(160),SUBSTITUTE($R29,\"{\",CHAR(160),FU$1))+1),\"\")","v":"{Measure:Quantity}"},{"$f":"IFERROR(MID($R29,FIND(CHAR(160),SUBSTITUTE($R29,\"{\",CHAR(160),FV$1)),FIND(CHAR(160),SUBSTITUTE($R29,\"}\",CHAR(160),FV$1))-FIND(CHAR(160),SUBSTITUTE($R29,\"{\",CHAR(160),FV$1))+1),\"\")","v":"{Motor Efficiency}"},{"$f":"IFERROR(MID($U29,FIND(CHAR(160),SUBSTITUTE($U29,\"{\",CHAR(160),FW$1)),FIND(CHAR(160),SUBSTITUTE($U29,\"}\",CHAR(160),FW$1))-FIND(CHAR(160),SUBSTITUTE($U29,\"{\",CHAR(160),FW$1))+1),\"\")","v":"{# of Milking Units}"},{"$f":"IFERROR(MID($U29,FIND(CHAR(160),SUBSTITUTE($U29,\"{\",CHAR(160),FX$1)),FIND(CHAR(160),SUBSTITUTE($U29,\"}\",CHAR(160),FX$1))-FIND(CHAR(160),SUBSTITUTE($U29,\"{\",CHAR(160),FX$1))+1),\"\")","v":"{Factor:WinterCF}"},{"$f":"IFERROR(MID($U29,FIND(CHAR(160),SUBSTITUTE($U29,\"{\",CHAR(160),FY$1)),FIND(CHAR(160),SUBSTITUTE($U29,\"}\",CHAR(160),FY$1))-FIND(CHAR(160),SUBSTITUTE($U29,\"{\",CHAR(160),FY$1))+1),\"\")","v":""},{"$f":"IFERROR(MID($U29,FIND(CHAR(160),SUBSTITUTE($U29,\"{\",CHAR(160),FZ$1)),FIND(CHAR(160),SUBSTITUTE($U29,\"}\",CHAR(160),FZ$1))-FIND(CHAR(160),SUBSTITUTE($U29,\"{\",CHAR(160),FZ$1))+1),\"\")","v":""},{"$f":"IFERROR(MID($U29,FIND(CHAR(160),SUBSTITUTE($U29,\"{\",CHAR(160),GA$1)),FIND(CHAR(160),SUBSTITUTE($U29,\"}\",CHAR(160),GA$1))-FIND(CHAR(160),SUBSTITUTE($U29,\"{\",CHAR(160),GA$1))+1),\"\")","v":""},{"$f":"IFERROR(MID($U29,FIND(CHAR(160),SUBSTITUTE($U29,\"{\",CHAR(160),GB$1)),FIND(CHAR(160),SUBSTITUTE($U29,\"}\",CHAR(160),GB$1))-FIND(CHAR(160),SUBSTITUTE($U29,\"{\",CHAR(160),GB$1))+1),\"\")","v":""},{"$f":"IFERROR(MID($U29,FIND(CHAR(160),SUBSTITUTE($U29,\"{\",CHAR(160),GC$1)),FIND(CHAR(160),SUBSTITUTE($U29,\"}\",CHAR(160),GC$1))-FIND(CHAR(160),SUBSTITUTE($U29,\"{\",CHAR(160),GC$1))+1),\"\")","v":""},{"$f":"IFERROR(MID($U29,FIND(CHAR(160),SUBSTITUTE($U29,\"{\",CHAR(160),GD$1)),FIND(CHAR(160),SUBSTITUTE($U29,\"}\",CHAR(160),GD$1))-FIND(CHAR(160),SUBSTITUTE($U29,\"{\",CHAR(160),GD$1))+1),\"\")","v":""},{"$f":"IFERROR(MID($U29,FIND(CHAR(160),SUBSTITUTE($U29,\"{\",CHAR(160),GE$1)),FIND(CHAR(160),SUBSTITUTE($U29,\"}\",CHAR(160),GE$1))-FIND(CHAR(160),SUBSTITUTE($U29,\"{\",CHAR(160),GE$1))+1),\"\")","v":"{Measure:Quantity}"},{"$f":"IFERROR(MID($U29,FIND(CHAR(160),SUBSTITUTE($U29,\"{\",CHAR(160),GF$1)),FIND(CHAR(160),SUBSTITUTE($U29,\"}\",CHAR(160),GF$1))-FIND(CHAR(160),SUBSTITUTE($U29,\"{\",CHAR(160),GF$1))+1),\"\")","v":"{Motor Efficiency}"},{"$f":"IFERROR(MID($V29,FIND(CHAR(160),SUBSTITUTE($V29,\"{\",CHAR(160),GG$1)),FIND(CHAR(160),SUBSTITUTE($V29,\"}\",CHAR(160),GG$1))-FIND(CHAR(160),SUBSTITUTE($V29,\"{\",CHAR(160),GG$1))+1),\"\")","v":"{# of Milking Units}"},{"$f":"IFERROR(MID($V29,FIND(CHAR(160),SUBSTITUTE($V29,\"{\",CHAR(160),GH$1)),FIND(CHAR(160),SUBSTITUTE($V29,\"}\",CHAR(160),GH$1))-FIND(CHAR(160),SUBSTITUTE($V29,\"{\",CHAR(160),GH$1))+1),\"\")","v":"{Factor:SummerCF}"},{"$f":"IFERROR(MID($V29,FIND(CHAR(160),SUBSTITUTE($V29,\"{\",CHAR(160),GI$1)),FIND(CHAR(160),SUBSTITUTE($V29,\"}\",CHAR(160),GI$1))-FIND(CHAR(160),SUBSTITUTE($V29,\"{\",CHAR(160),GI$1))+1),\"\")","v":""},{"$f":"IFERROR(MID($V29,FIND(CHAR(160),SUBSTITUTE($V29,\"{\",CHAR(160),GJ$1)),FIND(CHAR(160),SUBSTITUTE($V29,\"}\",CHAR(160),GJ$1))-FIND(CHAR(160),SUBSTITUTE($V29,\"{\",CHAR(160),GJ$1))+1),\"\")","v":""},{"$f":"IFERROR(MID($V29,FIND(CHAR(160),SUBSTITUTE($V29,\"{\",CHAR(160),GK$1)),FIND(CHAR(160),SUBSTITUTE($V29,\"}\",CHAR(160),GK$1))-FIND(CHAR(160),SUBSTITUTE($V29,\"{\",CHAR(160),GK$1))+1),\"\")","v":""},{"$f":"IFERROR(MID($V29,FIND(CHAR(160),SUBSTITUTE($V29,\"{\",CHAR(160),GL$1)),FIND(CHAR(160),SUBSTITUTE($V29,\"}\",CHAR(160),GL$1))-FIND(CHAR(160),SUBSTITUTE($V29,\"{\",CHAR(160),GL$1))+1),\"\")","v":""},{"$f":"IFERROR(MID($V29,FIND(CHAR(160),SUBSTITUTE($V29,\"{\",CHAR(160),GM$1)),FIND(CHAR(160),SUBSTITUTE($V29,\"}\",CHAR(160),GM$1))-FIND(CHAR(160),SUBSTITUTE($V29,\"{\",CHAR(160),GM$1))+1),\"\")","v":""},{"$f":"IFERROR(MID($V29,FIND(CHAR(160),SUBSTITUTE($V29,\"{\",CHAR(160),GN$1)),FIND(CHAR(160),SUBSTITUTE($V29,\"}\",CHAR(160),GN$1))-FIND(CHAR(160),SUBSTITUTE($V29,\"{\",CHAR(160),GN$1))+1),\"\")","v":""},{"$f":"IFERROR(MID($V29,FIND(CHAR(160),SUBSTITUTE($V29,\"{\",CHAR(160),GO$1)),FIND(CHAR(160),SUBSTITUTE($V29,\"}\",CHAR(160),GO$1))-FIND(CHAR(160),SUBSTITUTE($V29,\"{\",CHAR(160),GO$1))+1),\"\")","v":"{Measure:Quantity}"},{"$f":"IFERROR(MID($V29,FIND(CHAR(160),SUBSTITUTE($V29,\"{\",CHAR(160),GP$1)),FIND(CHAR(160),SUBSTITUTE($V29,\"}\",CHAR(160),GP$1))-FIND(CHAR(160),SUBSTITUTE($V29,\"{\",CHAR(160),GP$1))+1),\"\")","v":"{Motor Efficiency}"},{"$f":"IFERROR(MID($W29,FIND(CHAR(160),SUBSTITUTE($W29,\"{\",CHAR(160),GQ$1)),FIND(CHAR(160),SUBSTITUTE($W29,\"}\",CHAR(160),GQ$1))-FIND(CHAR(160),SUBSTITUTE($W29,\"{\",CHAR(160),GQ$1))+1),\"\")","v":""},{"$f":"IFERROR(MID($W29,FIND(CHAR(160),SUBSTITUTE($W29,\"{\",CHAR(160),GR$1)),FIND(CHAR(160),SUBSTITUTE($W29,\"}\",CHAR(160),GR$1))-FIND(CHAR(160),SUBSTITUTE($W29,\"{\",CHAR(160),GR$1))+1),\"\")","v":""},{"$f":"IFERROR(MID($W29,FIND(CHAR(160),SUBSTITUTE($W29,\"{\",CHAR(160),GS$1)),FIND(CHAR(160),SUBSTITUTE($W29,\"}\",CHAR(160),GS$1))-FIND(CHAR(160),SUBSTITUTE($W29,\"{\",CHAR(160),GS$1))+1),\"\")","v":""},{"$f":"IFERROR(MID($W29,FIND(CHAR(160),SUBSTITUTE($W29,\"{\",CHAR(160),GT$1)),FIND(CHAR(160),SUBSTITUTE($W29,\"}\",CHAR(160),GT$1))-FIND(CHAR(160),SUBSTITUTE($W29,\"{\",CHAR(160),GT$1))+1),\"\")","v":""},{"$f":"IFERROR(MID($W29,FIND(CHAR(160),SUBSTITUTE($W29,\"{\",CHAR(160),GU$1)),FIND(CHAR(160),SUBSTITUTE($W29,\"}\",CHAR(160),GU$1))-FIND(CHAR(160),SUBSTITUTE($W29,\"{\",CHAR(160),GU$1))+1),\"\")","v":""},{"$f":"IFERROR(MID($W29,FIND(CHAR(160),SUBSTITUTE($W29,\"{\",CHAR(160),GV$1)),FIND(CHAR(160),SUBSTITUTE($W29,\"}\",CHAR(160),GV$1))-FIND(CHAR(160),SUBSTITUTE($W29,\"{\",CHAR(160),GV$1))+1),\"\")","v":""},{"$f":"IFERROR(MID($W29,FIND(CHAR(160),SUBSTITUTE($W29,\"{\",CHAR(160),GW$1)),FIND(CHAR(160),SUBSTITUTE($W29,\"}\",CHAR(160),GW$1))-FIND(CHAR(160),SUBSTITUTE($W29,\"{\",CHAR(160),GW$1))+1),\"\")","v":""},{"$f":"IFERROR(MID($W29,FIND(CHAR(160),SUBSTITUTE($W29,\"{\",CHAR(160),GX$1)),FIND(CHAR(160),SUBSTITUTE($W29,\"}\",CHAR(160),GX$1))-FIND(CHAR(160),SUBSTITUTE($W29,\"{\",CHAR(160),GX$1))+1),\"\")","v":""},{"$f":"IFERROR(MID($W29,FIND(CHAR(160),SUBSTITUTE($W29,\"{\",CHAR(160),GY$1)),FIND(CHAR(160),SUBSTITUTE($W29,\"}\",CHAR(160),GY$1))-FIND(CHAR(160),SUBSTITUTE($W29,\"{\",CHAR(160),GY$1))+1),\"\")","v":""},{"$f":"IFERROR(MID($W29,FIND(CHAR(160),SUBSTITUTE($W29,\"{\",CHAR(160),GZ$1)),FIND(CHAR(160),SUBSTITUTE($W29,\"}\",CHAR(160),GZ$1))-FIND(CHAR(160),SUBSTITUTE($W29,\"{\",CHAR(160),GZ$1))+1),\"\")","v":""},{"$f":"IFERROR(MID($X29,FIND(CHAR(160),SUBSTITUTE($X29,\"{\",CHAR(160),HA$1)),FIND(CHAR(160),SUBSTITUTE($X29,\"}\",CHAR(160),HA$1))-FIND(CHAR(160),SUBSTITUTE($X29,\"{\",CHAR(160),HA$1))+1),\"\")","v":""},{"$f":"IFERROR(MID($X29,FIND(CHAR(160),SUBSTITUTE($X29,\"{\",CHAR(160),HB$1)),FIND(CHAR(160),SUBSTITUTE($X29,\"}\",CHAR(160),HB$1))-FIND(CHAR(160),SUBSTITUTE($X29,\"{\",CHAR(160),HB$1))+1),\"\")","v":""},{"$f":"IFERROR(MID($X29,FIND(CHAR(160),SUBSTITUTE($X29,\"{\",CHAR(160),HC$1)),FIND(CHAR(160),SUBSTITUTE($X29,\"}\",CHAR(160),HC$1))-FIND(CHAR(160),SUBSTITUTE($X29,\"{\",CHAR(160),HC$1))+1),\"\")","v":""},{"$f":"IFERROR(MID($X29,FIND(CHAR(160),SUBSTITUTE($X29,\"{\",CHAR(160),HD$1)),FIND(CHAR(160),SUBSTITUTE($X29,\"}\",CHAR(160),HD$1))-FIND(CHAR(160),SUBSTITUTE($X29,\"{\",CHAR(160),HD$1))+1),\"\")","v":""},{"$f":"IFERROR(MID($X29,FIND(CHAR(160),SUBSTITUTE($X29,\"{\",CHAR(160),HE$1)),FIND(CHAR(160),SUBSTITUTE($X29,\"}\",CHAR(160),HE$1))-FIND(CHAR(160),SUBSTITUTE($X29,\"{\",CHAR(160),HE$1))+1),\"\")","v":""},{"$f":"IFERROR(MID($X29,FIND(CHAR(160),SUBSTITUTE($X29,\"{\",CHAR(160),HF$1)),FIND(CHAR(160),SUBSTITUTE($X29,\"}\",CHAR(160),HF$1))-FIND(CHAR(160),SUBSTITUTE($X29,\"{\",CHAR(160),HF$1))+1),\"\")","v":""},{"$f":"IFERROR(MID($X29,FIND(CHAR(160),SUBSTITUTE($X29,\"{\",CHAR(160),HG$1)),FIND(CHAR(160),SUBSTITUTE($X29,\"}\",CHAR(160),HG$1))-FIND(CHAR(160),SUBSTITUTE($X29,\"{\",CHAR(160),HG$1))+1),\"\")","v":""},{"$f":"IFERROR(MID($X29,FIND(CHAR(160),SUBSTITUTE($X29,\"{\",CHAR(160),HH$1)),FIND(CHAR(160),SUBSTITUTE($X29,\"}\",CHAR(160),HH$1))-FIND(CHAR(160),SUBSTITUTE($X29,\"{\",CHAR(160),HH$1))+1),\"\")","v":""},{"$f":"IFERROR(MID($X29,FIND(CHAR(160),SUBSTITUTE($X29,\"{\",CHAR(160),HI$1)),FIND(CHAR(160),SUBSTITUTE($X29,\"}\",CHAR(160),HI$1))-FIND(CHAR(160),SUBSTITUTE($X29,\"{\",CHAR(160),HI$1))+1),\"\")","v":""},{"$f":"IFERROR(MID($X29,FIND(CHAR(160),SUBSTITUTE($X29,\"{\",CHAR(160),HJ$1)),FIND(CHAR(160),SUBSTITUTE($X29,\"}\",CHAR(160),HJ$1))-FIND(CHAR(160),SUBSTITUTE($X29,\"{\",CHAR(160),HJ$1))+1),\"\")","v":""},{"$f":"IFERROR(MID($Y29,FIND(CHAR(160),SUBSTITUTE($Y29,\"{\",CHAR(160),HK$1)),FIND(CHAR(160),SUBSTITUTE($Y29,\"}\",CHAR(160),HK$1))-FIND(CHAR(160),SUBSTITUTE($Y29,\"{\",CHAR(160),HK$1))+1),\"\")","v":""},{"$f":"IFERROR(MID($Y29,FIND(CHAR(160),SUBSTITUTE($Y29,\"{\",CHAR(160),HL$1)),FIND(CHAR(160),SUBSTITUTE($Y29,\"}\",CHAR(160),HL$1))-FIND(CHAR(160),SUBSTITUTE($Y29,\"{\",CHAR(160),HL$1))+1),\"\")","v":""},{"$f":"IFERROR(MID($Y29,FIND(CHAR(160),SUBSTITUTE($Y29,\"{\",CHAR(160),HM$1)),FIND(CHAR(160),SUBSTITUTE($Y29,\"}\",CHAR(160),HM$1))-FIND(CHAR(160),SUBSTITUTE($Y29,\"{\",CHAR(160),HM$1))+1),\"\")","v":""},{"$f":"IFERROR(MID($Y29,FIND(CHAR(160),SUBSTITUTE($Y29,\"{\",CHAR(160),HN$1)),FIND(CHAR(160),SUBSTITUTE($Y29,\"}\",CHAR(160),HN$1))-FIND(CHAR(160),SUBSTITUTE($Y29,\"{\",CHAR(160),HN$1))+1),\"\")","v":""},{"$f":"IFERROR(MID($Y29,FIND(CHAR(160),SUBSTITUTE($Y29,\"{\",CHAR(160),HO$1)),FIND(CHAR(160),SUBSTITUTE($Y29,\"}\",CHAR(160),HO$1))-FIND(CHAR(160),SUBSTITUTE($Y29,\"{\",CHAR(160),HO$1))+1),\"\")","v":""},{"$f":"IFERROR(MID($Y29,FIND(CHAR(160),SUBSTITUTE($Y29,\"{\",CHAR(160),HP$1)),FIND(CHAR(160),SUBSTITUTE($Y29,\"}\",CHAR(160),HP$1))-FIND(CHAR(160),SUBSTITUTE($Y29,\"{\",CHAR(160),HP$1))+1),\"\")","v":""},{"$f":"IFERROR(MID($Y29,FIND(CHAR(160),SUBSTITUTE($Y29,\"{\",CHAR(160),HQ$1)),FIND(CHAR(160),SUBSTITUTE($Y29,\"}\",CHAR(160),HQ$1))-FIND(CHAR(160),SUBSTITUTE($Y29,\"{\",CHAR(160),HQ$1))+1),\"\")","v":""},{"$f":"IFERROR(MID($Y29,FIND(CHAR(160),SUBSTITUTE($Y29,\"{\",CHAR(160),HR$1)),FIND(CHAR(160),SUBSTITUTE($Y29,\"}\",CHAR(160),HR$1))-FIND(CHAR(160),SUBSTITUTE($Y29,\"{\",CHAR(160),HR$1))+1),\"\")","v":""},{"$f":"IFERROR(MID($Y29,FIND(CHAR(160),SUBSTITUTE($Y29,\"{\",CHAR(160),HS$1)),FIND(CHAR(160),SUBSTITUTE($Y29,\"}\",CHAR(160),HS$1))-FIND(CHAR(160),SUBSTITUTE($Y29,\"{\",CHAR(160),HS$1))+1),\"\")","v":""},{"$f":"IFERROR(MID($Y29,FIND(CHAR(160),SUBSTITUTE($Y29,\"{\",CHAR(160),HT$1)),FIND(CHAR(160),SUBSTITUTE($Y29,\"}\",CHAR(160),HT$1))-FIND(CHAR(160),SUBSTITUTE($Y29,\"{\",CHAR(160),HT$1))+1),\"\")","v":""},{"$f":"IFERROR(MID($Z29,FIND(CHAR(160),SUBSTITUTE($Z29,\"{\",CHAR(160),HU$1)),FIND(CHAR(160),SUBSTITUTE($Z29,\"}\",CHAR(160),HU$1))-FIND(CHAR(160),SUBSTITUTE($Z29,\"{\",CHAR(160),HU$1))+1),\"\")","v":""},{"$f":"IFERROR(MID($Z29,FIND(CHAR(160),SUBSTITUTE($Z29,\"{\",CHAR(160),HV$1)),FIND(CHAR(160),SUBSTITUTE($Z29,\"}\",CHAR(160),HV$1))-FIND(CHAR(160),SUBSTITUTE($Z29,\"{\",CHAR(160),HV$1))+1),\"\")","v":""},{"$f":"IFERROR(MID($Z29,FIND(CHAR(160),SUBSTITUTE($Z29,\"{\",CHAR(160),HW$1)),FIND(CHAR(160),SUBSTITUTE($Z29,\"}\",CHAR(160),HW$1))-FIND(CHAR(160),SUBSTITUTE($Z29,\"{\",CHAR(160),HW$1))+1),\"\")","v":""},{"$f":"IFERROR(MID($Z29,FIND(CHAR(160),SUBSTITUTE($Z29,\"{\",CHAR(160),HX$1)),FIND(CHAR(160),SUBSTITUTE($Z29,\"}\",CHAR(160),HX$1))-FIND(CHAR(160),SUBSTITUTE($Z29,\"{\",CHAR(160),HX$1))+1),\"\")","v":""},{"$f":"IFERROR(MID($Z29,FIND(CHAR(160),SUBSTITUTE($Z29,\"{\",CHAR(160),HY$1)),FIND(CHAR(160),SUBSTITUTE($Z29,\"}\",CHAR(160),HY$1))-FIND(CHAR(160),SUBSTITUTE($Z29,\"{\",CHAR(160),HY$1))+1),\"\")","v":""},{"$f":"IFERROR(MID($Z29,FIND(CHAR(160),SUBSTITUTE($Z29,\"{\",CHAR(160),HZ$1)),FIND(CHAR(160),SUBSTITUTE($Z29,\"}\",CHAR(160),HZ$1))-FIND(CHAR(160),SUBSTITUTE($Z29,\"{\",CHAR(160),HZ$1))+1),\"\")","v":""},{"$f":"IFERROR(MID($Z29,FIND(CHAR(160),SUBSTITUTE($Z29,\"{\",CHAR(160),IA$1)),FIND(CHAR(160),SUBSTITUTE($Z29,\"}\",CHAR(160),IA$1))-FIND(CHAR(160),SUBSTITUTE($Z29,\"{\",CHAR(160),IA$1))+1),\"\")","v":""},{"$f":"IFERROR(MID($Z29,FIND(CHAR(160),SUBSTITUTE($Z29,\"{\",CHAR(160),IB$1)),FIND(CHAR(160),SUBSTITUTE($Z29,\"}\",CHAR(160),IB$1))-FIND(CHAR(160),SUBSTITUTE($Z29,\"{\",CHAR(160),IB$1))+1),\"\")","v":""},{"$f":"IFERROR(MID($Z29,FIND(CHAR(160),SUBSTITUTE($Z29,\"{\",CHAR(160),IC$1)),FIND(CHAR(160),SUBSTITUTE($Z29,\"}\",CHAR(160),IC$1))-FIND(CHAR(160),SUBSTITUTE($Z29,\"{\",CHAR(160),IC$1))+1),\"\")","v":""},{"$f":"IFERROR(MID($Z29,FIND(CHAR(160),SUBSTITUTE($Z29,\"{\",CHAR(160),ID$1)),FIND(CHAR(160),SUBSTITUTE($Z29,\"}\",CHAR(160),ID$1))-FIND(CHAR(160),SUBSTITUTE($Z29,\"{\",CHAR(160),ID$1))+1),\"\")","v":""},{"$f":"IFERROR(MID($AA29,FIND(CHAR(160),SUBSTITUTE($AA29,\"{\",CHAR(160),IE$1)),FIND(CHAR(160),SUBSTITUTE($AA29,\"}\",CHAR(160),IE$1))-FIND(CHAR(160),SUBSTITUTE($AA29,\"{\",CHAR(160),IE$1))+1),\"\")","v":""},{"$f":"IFERROR(MID($AA29,FIND(CHAR(160),SUBSTITUTE($AA29,\"{\",CHAR(160),IF$1)),FIND(CHAR(160),SUBSTITUTE($AA29,\"}\",CHAR(160),IF$1))-FIND(CHAR(160),SUBSTITUTE($AA29,\"{\",CHAR(160),IF$1))+1),\"\")","v":""},{"$f":"IFERROR(MID($AA29,FIND(CHAR(160),SUBSTITUTE($AA29,\"{\",CHAR(160),IG$1)),FIND(CHAR(160),SUBSTITUTE($AA29,\"}\",CHAR(160),IG$1))-FIND(CHAR(160),SUBSTITUTE($AA29,\"{\",CHAR(160),IG$1))+1),\"\")","v":""},{"$f":"IFERROR(MID($AA29,FIND(CHAR(160),SUBSTITUTE($AA29,\"{\",CHAR(160),IH$1)),FIND(CHAR(160),SUBSTITUTE($AA29,\"}\",CHAR(160),IH$1))-FIND(CHAR(160),SUBSTITUTE($AA29,\"{\",CHAR(160),IH$1))+1),\"\")","v":""},{"$f":"IFERROR(MID($AA29,FIND(CHAR(160),SUBSTITUTE($AA29,\"{\",CHAR(160),II$1)),FIND(CHAR(160),SUBSTITUTE($AA29,\"}\",CHAR(160),II$1))-FIND(CHAR(160),SUBSTITUTE($AA29,\"{\",CHAR(160),II$1))+1),\"\")","v":""},{"$f":"IFERROR(MID($AA29,FIND(CHAR(160),SUBSTITUTE($AA29,\"{\",CHAR(160),IJ$1)),FIND(CHAR(160),SUBSTITUTE($AA29,\"}\",CHAR(160),IJ$1))-FIND(CHAR(160),SUBSTITUTE($AA29,\"{\",CHAR(160),IJ$1))+1),\"\")","v":""},{"$f":"IFERROR(MID($AA29,FIND(CHAR(160),SUBSTITUTE($AA29,\"{\",CHAR(160),IK$1)),FIND(CHAR(160),SUBSTITUTE($AA29,\"}\",CHAR(160),IK$1))-FIND(CHAR(160),SUBSTITUTE($AA29,\"{\",CHAR(160),IK$1))+1),\"\")","v":""},{"$f":"IFERROR(MID($AA29,FIND(CHAR(160),SUBSTITUTE($AA29,\"{\",CHAR(160),IL$1)),FIND(CHAR(160),SUBSTITUTE($AA29,\"}\",CHAR(160),IL$1))-FIND(CHAR(160),SUBSTITUTE($AA29,\"{\",CHAR(160),IL$1))+1),\"\")","v":""},{"$f":"IFERROR(MID($AA29,FIND(CHAR(160),SUBSTITUTE($AA29,\"{\",CHAR(160),IM$1)),FIND(CHAR(160),SUBSTITUTE($AA29,\"}\",CHAR(160),IM$1))-FIND(CHAR(160),SUBSTITUTE($AA29,\"{\",CHAR(160),IM$1))+1),\"\")","v":""},{"$f":"IFERROR(MID($AA29,FIND(CHAR(160),SUBSTITUTE($AA29,\"{\",CHAR(160),IN$1)),FIND(CHAR(160),SUBSTITUTE($AA29,\"}\",CHAR(160),IN$1))-FIND(CHAR(160),SUBSTITUTE($AA29,\"{\",CHAR(160),IN$1))+1),\"\")","v":""},{"$f":"IFERROR(MID($AB29,FIND(CHAR(160),SUBSTITUTE($AB29,\"{\",CHAR(160),IO$1)),FIND(CHAR(160),SUBSTITUTE($AB29,\"}\",CHAR(160),IO$1))-FIND(CHAR(160),SUBSTITUTE($AB29,\"{\",CHAR(160),IO$1))+1),\"\")","v":""},{"$f":"IFERROR(MID($AB29,FIND(CHAR(160),SUBSTITUTE($AB29,\"{\",CHAR(160),IP$1)),FIND(CHAR(160),SUBSTITUTE($AB29,\"}\",CHAR(160),IP$1))-FIND(CHAR(160),SUBSTITUTE($AB29,\"{\",CHAR(160),IP$1))+1),\"\")","v":""},{"$f":"IFERROR(MID($AB29,FIND(CHAR(160),SUBSTITUTE($AB29,\"{\",CHAR(160),IQ$1)),FIND(CHAR(160),SUBSTITUTE($AB29,\"}\",CHAR(160),IQ$1))-FIND(CHAR(160),SUBSTITUTE($AB29,\"{\",CHAR(160),IQ$1))+1),\"\")","v":""},{"$f":"IFERROR(MID($AB29,FIND(CHAR(160),SUBSTITUTE($AB29,\"{\",CHAR(160),IR$1)),FIND(CHAR(160),SUBSTITUTE($AB29,\"}\",CHAR(160),IR$1))-FIND(CHAR(160),SUBSTITUTE($AB29,\"{\",CHAR(160),IR$1))+1),\"\")","v":""},{"$f":"IFERROR(MID($AB29,FIND(CHAR(160),SUBSTITUTE($AB29,\"{\",CHAR(160),IS$1)),FIND(CHAR(160),SUBSTITUTE($AB29,\"}\",CHAR(160),IS$1))-FIND(CHAR(160),SUBSTITUTE($AB29,\"{\",CHAR(160),IS$1))+1),\"\")","v":""},{"$f":"IFERROR(MID($AB29,FIND(CHAR(160),SUBSTITUTE($AB29,\"{\",CHAR(160),IT$1)),FIND(CHAR(160),SUBSTITUTE($AB29,\"}\",CHAR(160),IT$1))-FIND(CHAR(160),SUBSTITUTE($AB29,\"{\",CHAR(160),IT$1))+1),\"\")","v":""},{"$f":"IFERROR(MID($AB29,FIND(CHAR(160),SUBSTITUTE($AB29,\"{\",CHAR(160),IU$1)),FIND(CHAR(160),SUBSTITUTE($AB29,\"}\",CHAR(160),IU$1))-FIND(CHAR(160),SUBSTITUTE($AB29,\"{\",CHAR(160),IU$1))+1),\"\")","v":""},{"$f":"IFERROR(MID($AB29,FIND(CHAR(160),SUBSTITUTE($AB29,\"{\",CHAR(160),IV$1)),FIND(CHAR(160),SUBSTITUTE($AB29,\"}\",CHAR(160),IV$1))-FIND(CHAR(160),SUBSTITUTE($AB29,\"{\",CHAR(160),IV$1))+1),\"\")","v":""},{"$f":"IFERROR(MID($AB29,FIND(CHAR(160),SUBSTITUTE($AB29,\"{\",CHAR(160),IW$1)),FIND(CHAR(160),SUBSTITUTE($AB29,\"}\",CHAR(160),IW$1))-FIND(CHAR(160),SUBSTITUTE($AB29,\"{\",CHAR(160),IW$1))+1),\"\")","v":""},{"$f":"IFERROR(MID($AB29,FIND(CHAR(160),SUBSTITUTE($AB29,\"{\",CHAR(160),IX$1)),FIND(CHAR(160),SUBSTITUTE($AB29,\"}\",CHAR(160),IX$1))-FIND(CHAR(160),SUBSTITUTE($AB29,\"{\",CHAR(160),IX$1))+1),\"\")","v":""},null,{"$f":"10-COUNTIF(DU29:ED29,\"\")","v":4}]
["C&I Agricultural Solutions","MILK: Scroll Compressor - 6 HP","AMSC - AMSC6","2021-07-01","2022-06-30","Per Measure",1300,0,"Per Measure",660,0,"2016-07-01","2022-06-30","Calculated","432 * 6 * {Measure:Quantity}",1E-4,null,"((432 * 6) /2850) * {Measure:Quantity}",null,null,"(((432 * 6) /2850) * {Measure:Quantity}) *{Factor:WinterCF}","(((432 * 6) /2850) * {Measure:Quantity}) *{Factor:SummerCF}",null,null,null,null,null,null,"2020-04-01","2022-06-30",15,0.67400000000000004,0.32700000000000001,0.436,0.23200000000000001,0.217,0.115,1,1.1220000000000001,1,0.52,1.6E-2,null,{"$f":"DU30","v":"{Measure:Quantity}"},1,{"$f":"DV30","v":""},null,{"$f":"DW30","v":""},null,{"$f":"DX30","v":""},null,{"$f":"DY30","v":""},null,{"$f":"DZ30","v":""},null,{"$f":"EA30","v":""},null,{"$f":"EB30","v":""},null,{"$f":"EC30","v":""},null,{"$f":"ED30","v":""},null,{"$f":"432 * 6 * AS30","v":2592},{"$f":"0.0001","v":1E-4},0,{"$f":"((432 * 6) /2850) * AS30","v":0.90947368421052632},0,0,{"$f":"(((432 * 6) /2850) * AS30) *AF30","v":0.61298526315789481},{"$f":"(((432 * 6) /2850) * AS30) *AG30","v":0.29739789473684214},0,0,0,0,0,0,null,"Res","Default DR",{"$f":"Benefits(BL30,BR30,BS30,BT30,BU30,BV30,BW30,BX30,BY30,BZ30,AE30,AH30,AI30,AJ30,AK30,AL30,AM30,AN30,AO30,AP30,CA30,CB30)","v":3872.972176345997},2868.2252175445383,0,0,0,0,0,0,0,{"$f":"SUMPRODUCT(CC30:CK30,--(CC30:CK30>0))","v":6741.1973938905357},{"$f":"-SUMPRODUCT(CC30:CK30,--(CC30:CK30<0))","v":0},null,{"$f":"1300","v":1300},null,null,{"$f":"CM30+CO30","v":1300},{"$f":"IF(NetOrGross=\"Net\",(1-AO30+AP30),1)","v":1},{"$f":"(SUMPRODUCT(CC30:CJ30,--(CC30:CJ30>0))+CN30)*CS30/((-SUMPRODUCT(CC30:CJ30,--(CC30:CJ30<0))+MAX(CO30,CV30)+CP30+CQ30)*CS30+IF(FRIncentives=\"Yes\",CV30*(1-CS30),0))","v":5.1855364568388733},1,{"$f":"660","v":660},null,"Electric","y",null,{"$f":"IF(F30=\"Manual Entry\",\"Manual\",IF(G30=\"\",0,\"X=\"&SUBSTITUTE(SUBSTITUTE(SUBSTITUTE(SUBSTITUTE(SUBSTITUTE(SUBSTITUTE(SUBSTITUTE(SUBSTITUTE(SUBSTITUTE(SUBSTITUTE(SUBSTITUTE(SUBSTITUTE(G30,$ED30,$ED$2&ROW($ED30)),$EC30,$EC$2&ROW($EC30)),$EB30,$EB$2&ROW($EB30)),$EA30,$EA$2&ROW($EA30)),$DZ30,$DZ$2&ROW($DZ30)),$DY30,$DY$2&ROW($DY30)),$DX30,$DX$2&ROW($DX30)),$DW30,$DW$2&ROW($DW30)),$DV30,$DV$2&ROW($DV30)),$DU30,$DU$2&ROW($DU30)),$DT30,$DT$2&ROW($DT30)),$DS30,$DS$2&ROW($DS30))))","v":"X=1300"},{"$f":"IF(I30=\"Manual Entry\",\"Manual\",IF(J30=\"\",0,\"X=\"&SUBSTITUTE(SUBSTITUTE(SUBSTITUTE(SUBSTITUTE(SUBSTITUTE(SUBSTITUTE(SUBSTITUTE(SUBSTITUTE(SUBSTITUTE(SUBSTITUTE(SUBSTITUTE(SUBSTITUTE(J30,$ED30,$ED$2&ROW($ED30)),$EC30,$EC$2&ROW($EC30)),$EB30,$EB$2&ROW($EB30)),$EA30,$EA$2&ROW($EA30)),$DZ30,$DZ$2&ROW($DZ30)),$DY30,$DY$2&ROW($DY30)),$DX30,$DX$2&ROW($DX30)),$DW30,$DW$2&ROW($DW30)),$DV30,$DV$2&ROW($DV30)),$DU30,$DU$2&ROW($DU30)),$DT30,$DT$2&ROW($DT30)),$DS30,$DS$2&ROW($DS30))))","v":"X=660"},{"$f":"IF(O30=\"\",0,\"X=\"&SUBSTITUTE(SUBSTITUTE(SUBSTITUTE(SUBSTITUTE(SUBSTITUTE(SUBSTITUTE(SUBSTITUTE(SUBSTITUTE(SUBSTITUTE(SUBSTITUTE(SUBSTITUTE(SUBSTITUTE(O30,$ED30,$ED$2&ROW($ED30)),$EC30,$EC$2&ROW($EC30)),$EB30,$EB$2&ROW($EB30)),$EA30,$EA$2&ROW($EA30)),$DZ30,$DZ$2&ROW($DZ30)),$DY30,$DY$2&ROW($DY30)),$DX30,$DX$2&ROW($DX30)),$DW30,$DW$2&ROW($DW30)),$DV30,$DV$2&ROW($DV30)),$DU30,$DU$2&ROW($DU30)),$DT30,$DT$2&ROW($DT30)),$DS30,$DS$2&ROW($DS30)))","v":"X=432 * 6 * AS30"},{"$f":"IF(P30=\"\",0,\"X=\"&SUBSTITUTE(SUBSTITUTE(SUBSTITUTE(SUBSTITUTE(SUBSTITUTE(SUBSTITUTE(SUBSTITUTE(SUBSTITUTE(SUBSTITUTE(SUBSTITUTE(SUBSTITUTE(SUBSTITUTE(P30,$ED30,$ED$2&ROW($ED30)),$EC30,$EC$2&ROW($EC30)),$EB30,$EB$2&ROW($EB30)),$EA30,$EA$2&ROW($EA30)),$DZ30,$DZ$2&ROW($DZ30)),$DY30,$DY$2&ROW($DY30)),$DX30,$DX$2&ROW($DX30)),$DW30,$DW$2&ROW($DW30)),$DV30,$DV$2&ROW($DV30)),$DU30,$DU$2&ROW($DU30)),$DT30,$DT$2&ROW($DT30)),$DS30,$DS$2&ROW($DS30)))","v":"X=0.0001"},{"$f":"IF(Q30=\"\",0,\"X=\"&SUBSTITUTE(SUBSTITUTE(SUBSTITUTE(SUBSTITUTE(SUBSTITUTE(SUBSTITUTE(SUBSTITUTE(SUBSTITUTE(SUBSTITUTE(SUBSTITUTE(SUBSTITUTE(SUBSTITUTE(Q30,$ED30,$ED$2&ROW($ED30)),$EC30,$EC$2&ROW($EC30)),$EB30,$EB$2&ROW($EB30)),$EA30,$EA$2&ROW($EA30)),$DZ30,$DZ$2&ROW($DZ30)),$DY30,$DY$2&ROW($DY30)),$DX30,$DX$2&ROW($DX30)),$DW30,$DW$2&ROW($DW30)),$DV30,$DV$2&ROW($DV30)),$DU30,$DU$2&ROW($DU30)),$DT30,$DT$2&ROW($DT30)),$DS30,$DS$2&ROW($DS30)))","v":0},{"$f":"IF(R30=\"\",0,\"X=\"&SUBSTITUTE(SUBSTITUTE(SUBSTITUTE(SUBSTITUTE(SUBSTITUTE(SUBSTITUTE(SUBSTITUTE(SUBSTITUTE(SUBSTITUTE(SUBSTITUTE(SUBSTITUTE(SUBSTITUTE(R30,$ED30,$ED$2&ROW($ED30)),$EC30,$EC$2&ROW($EC30)),$EB30,$EB$2&ROW($EB30)),$EA30,$EA$2&ROW($EA30)),$DZ30,$DZ$2&ROW($DZ30)),$DY30,$DY$2&ROW($DY30)),$DX30,$DX$2&ROW($DX30)),$DW30,$DW$2&ROW($DW30)),$DV30,$DV$2&ROW($DV30)),$DU30,$DU$2&ROW($DU30)),$DT30,$DT$2&ROW($DT30)),$DS30,$DS$2&ROW($DS30)))","v":"X=((432 * 6) /2850) * AS30"},{"$f":"IF(S30=\"\",0,\"X=\"&SUBSTITUTE(SUBSTITUTE(SUBSTITUTE(SUBSTITUTE(SUBSTITUTE(SUBSTITUTE(SUBSTITUTE(SUBSTITUTE(SUBSTITUTE(SUBSTITUTE(SUBSTITUTE(SUBSTITUTE(S30,$ED30,$ED$2&ROW($ED30)),$EC30,$EC$2&ROW($EC30)),$EB30,$EB$2&ROW($EB30)),$EA30,$EA$2&ROW($EA30)),$DZ30,$DZ$2&ROW($DZ30)),$DY30,$DY$2&ROW($DY30)),$DX30,$DX$2&ROW($DX30)),$DW30,$DW$2&ROW($DW30)),$DV30,$DV$2&ROW($DV30)),$DU30,$DU$2&ROW($DU30)),$DT30,$DT$2&ROW($DT30)),$DS30,$DS$2&ROW($DS30)))","v":0},{"$f":"IF(T30=\"\",0,\"X=\"&SUBSTITUTE(SUBSTITUTE(SUBSTITUTE(SUBSTITUTE(SUBSTITUTE(SUBSTITUTE(SUBSTITUTE(SUBSTITUTE(SUBSTITUTE(SUBSTITUTE(SUBSTITUTE(SUBSTITUTE(T30,$ED30,$ED$2&ROW($ED30)),$EC30,$EC$2&ROW($EC30)),$EB30,$EB$2&ROW($EB30)),$EA30,$EA$2&ROW($EA30)),$DZ30,$DZ$2&ROW($DZ30)),$DY30,$DY$2&ROW($DY30)),$DX30,$DX$2&ROW($DX30)),$DW30,$DW$2&ROW($DW30)),$DV30,$DV$2&ROW($DV30)),$DU30,$DU$2&ROW($DU30)),$DT30,$DT$2&ROW($DT30)),$DS30,$DS$2&ROW($DS30)))","v":0},{"$f":"IF(U30=\"\",0,\"X=\"&SUBSTITUTE(SUBSTITUTE(SUBSTITUTE(SUBSTITUTE(SUBSTITUTE(SUBSTITUTE(SUBSTITUTE(SUBSTITUTE(SUBSTITUTE(SUBSTITUTE(SUBSTITUTE(SUBSTITUTE(U30,$ED30,$ED$2&ROW($ED30)),$EC30,$EC$2&ROW($EC30)),$EB30,$EB$2&ROW($EB30)),$EA30,$EA$2&ROW($EA30)),$DZ30,$DZ$2&ROW($DZ30)),$DY30,$DY$2&ROW($DY30)),$DX30,$DX$2&ROW($DX30)),$DW30,$DW$2&ROW($DW30)),$DV30,$DV$2&ROW($DV30)),$DU30,$DU$2&ROW($DU30)),$DT30,$DT$2&ROW($DT30)),$DS30,$DS$2&ROW($DS30)))","v":"X=(((432 * 6) /2850) * AS30) *AF30"},{"$f":"IF(V30=\"\",0,\"X=\"&SUBSTITUTE(SUBSTITUTE(SUBSTITUTE(SUBSTITUTE(SUBSTITUTE(SUBSTITUTE(SUBSTITUTE(SUBSTITUTE(SUBSTITUTE(SUBSTITUTE(SUBSTITUTE(SUBSTITUTE(V30,$ED30,$ED$2&ROW($ED30)),$EC30,$EC$2&ROW($EC30)),$EB30,$EB$2&ROW($EB30)),$EA30,$EA$2&ROW($EA30)),$DZ30,$DZ$2&ROW($DZ30)),$DY30,$DY$2&ROW($DY30)),$DX30,$DX$2&ROW($DX30)),$DW30,$DW$2&ROW($DW30)),$DV30,$DV$2&ROW($DV30)),$DU30,$DU$2&ROW($DU30)),$DT30,$DT$2&ROW($DT30)),$DS30,$DS$2&ROW($DS30)))","v":"X=(((432 * 6) /2850) * AS30) *AG30"},{"$f":"IF(W30=\"\",0,\"X=\"&SUBSTITUTE(SUBSTITUTE(SUBSTITUTE(SUBSTITUTE(SUBSTITUTE(SUBSTITUTE(SUBSTITUTE(SUBSTITUTE(SUBSTITUTE(SUBSTITUTE(SUBSTITUTE(SUBSTITUTE(W30,$ED30,$ED$2&ROW($ED30)),$EC30,$EC$2&ROW($EC30)),$EB30,$EB$2&ROW($EB30)),$EA30,$EA$2&ROW($EA30)),$DZ30,$DZ$2&ROW($DZ30)),$DY30,$DY$2&ROW($DY30)),$DX30,$DX$2&ROW($DX30)),$DW30,$DW$2&ROW($DW30)),$DV30,$DV$2&ROW($DV30)),$DU30,$DU$2&ROW($DU30)),$DT30,$DT$2&ROW($DT30)),$DS30,$DS$2&ROW($DS30)))","v":0},{"$f":"IF(X30=\"\",0,\"X=\"&SUBSTITUTE(SUBSTITUTE(SUBSTITUTE(SUBSTITUTE(SUBSTITUTE(SUBSTITUTE(SUBSTITUTE(SUBSTITUTE(SUBSTITUTE(SUBSTITUTE(SUBSTITUTE(SUBSTITUTE(X30,$ED30,$ED$2&ROW($ED30)),$EC30,$EC$2&ROW($EC30)),$EB30,$EB$2&ROW($EB30)),$EA30,$EA$2&ROW($EA30)),$DZ30,$DZ$2&ROW($DZ30)),$DY30,$DY$2&ROW($DY30)),$DX30,$DX$2&ROW($DX30)),$DW30,$DW$2&ROW($DW30)),$DV30,$DV$2&ROW($DV30)),$DU30,$DU$2&ROW($DU30)),$DT30,$DT$2&ROW($DT30)),$DS30,$DS$2&ROW($DS30)))","v":0},{"$f":"IF(Y30=\"\",0,\"X=\"&SUBSTITUTE(SUBSTITUTE(SUBSTITUTE(SUBSTITUTE(SUBSTITUTE(SUBSTITUTE(SUBSTITUTE(SUBSTITUTE(SUBSTITUTE(SUBSTITUTE(SUBSTITUTE(SUBSTITUTE(Y30,$ED30,$ED$2&ROW($ED30)),$EC30,$EC$2&ROW($EC30)),$EB30,$EB$2&ROW($EB30)),$EA30,$EA$2&ROW($EA30)),$DZ30,$DZ$2&ROW($DZ30)),$DY30,$DY$2&ROW($DY30)),$DX30,$DX$2&ROW($DX30)),$DW30,$DW$2&ROW($DW30)),$DV30,$DV$2&ROW($DV30)),$DU30,$DU$2&ROW($DU30)),$DT30,$DT$2&ROW($DT30)),$DS30,$DS$2&ROW($DS30)))","v":0},{"$f":"IF(Z30=\"\",0,\"X=\"&SUBSTITUTE(SUBSTITUTE(SUBSTITUTE(SUBSTITUTE(SUBSTITUTE(SUBSTITUTE(SUBSTITUTE(SUBSTITUTE(SUBSTITUTE(SUBSTITUTE(SUBSTITUTE(SUBSTITUTE(Z30,$ED30,$ED$2&ROW($ED30)),$EC30,$EC$2&ROW($EC30)),$EB30,$EB$2&ROW($EB30)),$EA30,$EA$2&ROW($EA30)),$DZ30,$DZ$2&ROW($DZ30)),$DY30,$DY$2&ROW($DY30)),$DX30,$DX$2&ROW($DX30)),$DW30,$DW$2&ROW($DW30)),$DV30,$DV$2&ROW($DV30)),$DU30,$DU$2&ROW($DU30)),$DT30,$DT$2&ROW($DT30)),$DS30,$DS$2&ROW($DS30)))","v":0},{"$f":"IF(AA30=\"\",0,\"X=\"&SUBSTITUTE(SUBSTITUTE(SUBSTITUTE(SUBSTITUTE(SUBSTITUTE(SUBSTITUTE(SUBSTITUTE(SUBSTITUTE(SUBSTITUTE(SUBSTITUTE(SUBSTITUTE(SUBSTITUTE(AA30,$ED30,$ED$2&ROW($ED30)),$EC30,$EC$2&ROW($EC30)),$EB30,$EB$2&ROW($EB30)),$EA30,$EA$2&ROW($EA30)),$DZ30,$DZ$2&ROW($DZ30)),$DY30,$DY$2&ROW($DY30)),$DX30,$DX$2&ROW($DX30)),$DW30,$DW$2&ROW($DW30)),$DV30,$DV$2&ROW($DV30)),$DU30,$DU$2&ROW($DU30)),$DT30,$DT$2&ROW($DT30)),$DS30,$DS$2&ROW($DS30)))","v":0},{"$f":"IF(AB30=\"\",0,\"X=\"&SUBSTITUTE(SUBSTITUTE(SUBSTITUTE(SUBSTITUTE(SUBSTITUTE(SUBSTITUTE(SUBSTITUTE(SUBSTITUTE(SUBSTITUTE(SUBSTITUTE(SUBSTITUTE(SUBSTITUTE(AB30,$ED30,$ED$2&ROW($ED30)),$EC30,$EC$2&ROW($EC30)),$EB30,$EB$2&ROW($EB30)),$EA30,$EA$2&ROW($EA30)),$DZ30,$DZ$2&ROW($DZ30)),$DY30,$DY$2&ROW($DY30)),$DX30,$DX$2&ROW($DX30)),$DW30,$DW$2&ROW($DW30)),$DV30,$DV$2&ROW($DV30)),$DU30,$DU$2&ROW($DU30)),$DT30,$DT$2&ROW($DT30)),$DS30,$DS$2&ROW($DS30)))","v":0},null,null,"{Factor:WinterCF}","{Factor:SummerCF}",{"$f":"IFERROR(INDEX($EG30:$IV30,MATCH(0,COUNTIF($DR30:DT30,$EG30:$IV30),0)),\"\")","v":"{Measure:Quantity}"},{"$f":"IFERROR(INDEX($EG30:$IV30,MATCH(0,COUNTIF($DR30:DU30,$EG30:$IV30),0)),\"\")","v":""},{"$f":"IFERROR(INDEX($EG30:$IV30,MATCH(0,COUNTIF($DR30:DV30,$EG30:$IV30),0)),\"\")","v":""},{"$f":"IFERROR(INDEX($EG30:$IV30,MATCH(0,COUNTIF($DR30:DW30,$EG30:$IV30),0)),\"\")","v":""},{"$f":"IFERROR(INDEX($EG30:$IV30,MATCH(0,COUNTIF($DR30:DX30,$EG30:$IV30),0)),\"\")","v":""},{"$f":"IFERROR(INDEX($EG30:$IV30,MATCH(0,COUNTIF($DR30:DY30,$EG30:$IV30),0)),\"\")","v":""},{"$f":"IFERROR(INDEX($EG30:$IV30,MATCH(0,COUNTIF($DR30:DZ30,$EG30:$IV30),0)),\"\")","v":""},{"$f":"IFERROR(INDEX($EG30:$IV30,MATCH(0,COUNTIF($DR30:EA30,$EG30:$IV30),0)),\"\")","v":""},{"$f":"IFERROR(INDEX($EG30:$IV30,MATCH(0,COUNTIF($DR30:EB30,$EG30:$IV30),0)),\"\")","v":""},{"$f":"IFERROR(INDEX($EG30:$IV30,MATCH(0,COUNTIF($DR30:EC30,$EG30:$IV30),0)),\"\")","v":""},null,null,{"$f":"IFERROR(MID($G30,FIND(CHAR(160),SUBSTITUTE($G30,\"{\",CHAR(160),EG$1)),FIND(CHAR(160),SUBSTITUTE($G30,\"}\",CHAR(160),EG$1))-FIND(CHAR(160),SUBSTITUTE($G30,\"{\",CHAR(160),EG$1))+1),\"\")","v":""},{"$f":"IFERROR(MID($G30,FIND(CHAR(160),SUBSTITUTE($G30,\"{\",CHAR(160),EH$1)),FIND(CHAR(160),SUBSTITUTE($G30,\"}\",CHAR(160),EH$1))-FIND(CHAR(160),SUBSTITUTE($G30,\"{\",CHAR(160),EH$1))+1),\"\")","v":""},{"$f":"IFERROR(MID($G30,FIND(CHAR(160),SUBSTITUTE($G30,\"{\",CHAR(160),EI$1)),FIND(CHAR(160),SUBSTITUTE($G30,\"}\",CHAR(160),EI$1))-FIND(CHAR(160),SUBSTITUTE($G30,\"{\",CHAR(160),EI$1))+1),\"\")","v":""},{"$f":"IFERROR(MID($G30,FIND(CHAR(160),SUBSTITUTE($G30,\"{\",CHAR(160),EJ$1)),FIND(CHAR(160),SUBSTITUTE($G30,\"}\",CHAR(160),EJ$1))-FIND(CHAR(160),SUBSTITUTE($G30,\"{\",CHAR(160),EJ$1))+1),\"\")","v":""},{"$f":"IFERROR(MID($G30,FIND(CHAR(160),SUBSTITUTE($G30,\"{\",CHAR(160),EK$1)),FIND(CHAR(160),SUBSTITUTE($G30,\"}\",CHAR(160),EK$1))-FIND(CHAR(160),SUBSTITUTE($G30,\"{\",CHAR(160),EK$1))+1),\"\")","v":""},{"$f":"IFERROR(MID($G30,FIND(CHAR(160),SUBSTITUTE($G30,\"{\",CHAR(160),EL$1)),FIND(CHAR(160),SUBSTITUTE($G30,\"}\",CHAR(160),EL$1))-FIND(CHAR(160),SUBSTITUTE($G30,\"{\",CHAR(160),EL$1))+1),\"\")","v":""},{"$f":"IFERROR(MID($G30,FIND(CHAR(160),SUBSTITUTE($G30,\"{\",CHAR(160),EM$1)),FIND(CHAR(160),SUBSTITUTE($G30,\"}\",CHAR(160),EM$1))-FIND(CHAR(160),SUBSTITUTE($G30,\"{\",CHAR(160),EM$1))+1),\"\")","v":""},{"$f":"IFERROR(MID($G30,FIND(CHAR(160),SUBSTITUTE($G30,\"{\",CHAR(160),EN$1)),FIND(CHAR(160),SUBSTITUTE($G30,\"}\",CHAR(160),EN$1))-FIND(CHAR(160),SUBSTITUTE($G30,\"{\",CHAR(160),EN$1))+1),\"\")","v":""},{"$f":"IFERROR(MID($G30,FIND(CHAR(160),SUBSTITUTE($G30,\"{\",CHAR(160),EO$1)),FIND(CHAR(160),SUBSTITUTE($G30,\"}\",CHAR(160),EO$1))-FIND(CHAR(160),SUBSTITUTE($G30,\"{\",CHAR(160),EO$1))+1),\"\")","v":""},{"$f":"IFERROR(MID($G30,FIND(CHAR(160),SUBSTITUTE($G30,\"{\",CHAR(160),EP$1)),FIND(CHAR(160),SUBSTITUTE($G30,\"}\",CHAR(160),EP$1))-FIND(CHAR(160),SUBSTITUTE($G30,\"{\",CHAR(160),EP$1))+1),\"\")","v":""},{"$f":"IFERROR(MID($J30,FIND(CHAR(160),SUBSTITUTE($J30,\"{\",CHAR(160),EQ$1)),FIND(CHAR(160),SUBSTITUTE($J30,\"}\",CHAR(160),EQ$1))-FIND(CHAR(160),SUBSTITUTE($J30,\"{\",CHAR(160),EQ$1))+1),\"\")","v":""},{"$f":"IFERROR(MID($J30,FIND(CHAR(160),SUBSTITUTE($J30,\"{\",CHAR(160),ER$1)),FIND(CHAR(160),SUBSTITUTE($J30,\"}\",CHAR(160),ER$1))-FIND(CHAR(160),SUBSTITUTE($J30,\"{\",CHAR(160),ER$1))+1),\"\")","v":""},{"$f":"IFERROR(MID($J30,FIND(CHAR(160),SUBSTITUTE($J30,\"{\",CHAR(160),ES$1)),FIND(CHAR(160),SUBSTITUTE($J30,\"}\",CHAR(160),ES$1))-FIND(CHAR(160),SUBSTITUTE($J30,\"{\",CHAR(160),ES$1))+1),\"\")","v":""},{"$f":"IFERROR(MID($J30,FIND(CHAR(160),SUBSTITUTE($J30,\"{\",CHAR(160),ET$1)),FIND(CHAR(160),SUBSTITUTE($J30,\"}\",CHAR(160),ET$1))-FIND(CHAR(160),SUBSTITUTE($J30,\"{\",CHAR(160),ET$1))+1),\"\")","v":""},{"$f":"IFERROR(MID($J30,FIND(CHAR(160),SUBSTITUTE($J30,\"{\",CHAR(160),EU$1)),FIND(CHAR(160),SUBSTITUTE($J30,\"}\",CHAR(160),EU$1))-FIND(CHAR(160),SUBSTITUTE($J30,\"{\",CHAR(160),EU$1))+1),\"\")","v":""},{"$f":"IFERROR(MID($J30,FIND(CHAR(160),SUBSTITUTE($J30,\"{\",CHAR(160),EV$1)),FIND(CHAR(160),SUBSTITUTE($J30,\"}\",CHAR(160),EV$1))-FIND(CHAR(160),SUBSTITUTE($J30,\"{\",CHAR(160),EV$1))+1),\"\")","v":""},{"$f":"IFERROR(MID($J30,FIND(CHAR(160),SUBSTITUTE($J30,\"{\",CHAR(160),EW$1)),FIND(CHAR(160),SUBSTITUTE($J30,\"}\",CHAR(160),EW$1))-FIND(CHAR(160),SUBSTITUTE($J30,\"{\",CHAR(160),EW$1))+1),\"\")","v":""},{"$f":"IFERROR(MID($J30,FIND(CHAR(160),SUBSTITUTE($J30,\"{\",CHAR(160),EX$1)),FIND(CHAR(160),SUBSTITUTE($J30,\"}\",CHAR(160),EX$1))-FIND(CHAR(160),SUBSTITUTE($J30,\"{\",CHAR(160),EX$1))+1),\"\")","v":""},{"$f":"IFERROR(MID($J30,FIND(CHAR(160),SUBSTITUTE($J30,\"{\",CHAR(160),EY$1)),FIND(CHAR(160),SUBSTITUTE($J30,\"}\",CHAR(160),EY$1))-FIND(CHAR(160),SUBSTITUTE($J30,\"{\",CHAR(160),EY$1))+1),\"\")","v":""},{"$f":"IFERROR(MID($J30,FIND(CHAR(160),SUBSTITUTE($J30,\"{\",CHAR(160),EZ$1)),FIND(CHAR(160),SUBSTITUTE($J30,\"}\",CHAR(160),EZ$1))-FIND(CHAR(160),SUBSTITUTE($J30,\"{\",CHAR(160),EZ$1))+1),\"\")","v":""},{"$f":"IFERROR(MID($J30,FIND(CHAR(160),SUBSTITUTE($J30,\"{\",CHAR(160),FA$1)),FIND(CHAR(160),SUBSTITUTE($J30,\"}\",CHAR(160),FA$1))-FIND(CHAR(160),SUBSTITUTE($J30,\"{\",CHAR(160),FA$1))+1),\"\")","v":""},{"$f":"IFERROR(MID($J30,FIND(CHAR(160),SUBSTITUTE($J30,\"{\",CHAR(160),FB$1)),FIND(CHAR(160),SUBSTITUTE($J30,\"}\",CHAR(160),FB$1))-FIND(CHAR(160),SUBSTITUTE($J30,\"{\",CHAR(160),FB$1))+1),\"\")","v":""},{"$f":"IFERROR(MID($O30,FIND(CHAR(160),SUBSTITUTE($O30,\"{\",CHAR(160),FC$1)),FIND(CHAR(160),SUBSTITUTE($O30,\"}\",CHAR(160),FC$1))-FIND(CHAR(160),SUBSTITUTE($O30,\"{\",CHAR(160),FC$1))+1),\"\")","v":""},{"$f":"IFERROR(MID($O30,FIND(CHAR(160),SUBSTITUTE($O30,\"{\",CHAR(160),FD$1)),FIND(CHAR(160),SUBSTITUTE($O30,\"}\",CHAR(160),FD$1))-FIND(CHAR(160),SUBSTITUTE($O30,\"{\",CHAR(160),FD$1))+1),\"\")","v":""},{"$f":"IFERROR(MID($O30,FIND(CHAR(160),SUBSTITUTE($O30,\"{\",CHAR(160),FE$1)),FIND(CHAR(160),SUBSTITUTE($O30,\"}\",CHAR(160),FE$1))-FIND(CHAR(160),SUBSTITUTE($O30,\"{\",CHAR(160),FE$1))+1),\"\")","v":""},{"$f":"IFERROR(MID($O30,FIND(CHAR(160),SUBSTITUTE($O30,\"{\",CHAR(160),FF$1)),FIND(CHAR(160),SUBSTITUTE($O30,\"}\",CHAR(160),FF$1))-FIND(CHAR(160),SUBSTITUTE($O30,\"{\",CHAR(160),FF$1))+1),\"\")","v":""},{"$f":"IFERROR(MID($O30,FIND(CHAR(160),SUBSTITUTE($O30,\"{\",CHAR(160),FG$1)),FIND(CHAR(160),SUBSTITUTE($O30,\"}\",CHAR(160),FG$1))-FIND(CHAR(160),SUBSTITUTE($O30,\"{\",CHAR(160),FG$1))+1),\"\")","v":""},{"$f":"IFERROR(MID($O30,FIND(CHAR(160),SUBSTITUTE($O30,\"{\",CHAR(160),FH$1)),FIND(CHAR(160),SUBSTITUTE($O30,\"}\",CHAR(160),FH$1))-FIND(CHAR(160),SUBSTITUTE($O30,\"{\",CHAR(160),FH$1))+1),\"\")","v":""},{"$f":"IFERROR(MID($O30,FIND(CHAR(160),SUBSTITUTE($O30,\"{\",CHAR(160),FI$1)),FIND(CHAR(160),SUBSTITUTE($O30,\"}\",CHAR(160),FI$1))-FIND(CHAR(160),SUBSTITUTE($O30,\"{\",CHAR(160),FI$1))+1),\"\")","v":""},{"$f":"IFERROR(MID($O30,FIND(CHAR(160),SUBSTITUTE($O30,\"{\",CHAR(160),FJ$1)),FIND(CHAR(160),SUBSTITUTE($O30,\"}\",CHAR(160),FJ$1))-FIND(CHAR(160),SUBSTITUTE($O30,\"{\",CHAR(160),FJ$1))+1),\"\")","v":""},{"$f":"IFERROR(MID($O30,FIND(CHAR(160),SUBSTITUTE($O30,\"{\",CHAR(160),FK$1)),FIND(CHAR(160),SUBSTITUTE($O30,\"}\",CHAR(160),FK$1))-FIND(CHAR(160),SUBSTITUTE($O30,\"{\",CHAR(160),FK$1))+1),\"\")","v":"{Measure:Quantity}"},{"$f":"IFERROR(MID($O30,FIND(CHAR(160),SUBSTITUTE($O30,\"{\",CHAR(160),FL$1)),FIND(CHAR(160),SUBSTITUTE($O30,\"}\",CHAR(160),FL$1))-FIND(CHAR(160),SUBSTITUTE($O30,\"{\",CHAR(160),FL$1))+1),\"\")","v":""},{"$f":"IFERROR(MID($R30,FIND(CHAR(160),SUBSTITUTE($R30,\"{\",CHAR(160),FM$1)),FIND(CHAR(160),SUBSTITUTE($R30,\"}\",CHAR(160),FM$1))-FIND(CHAR(160),SUBSTITUTE($R30,\"{\",CHAR(160),FM$1))+1),\"\")","v":""},{"$f":"IFERROR(MID($R30,FIND(CHAR(160),SUBSTITUTE($R30,\"{\",CHAR(160),FN$1)),FIND(CHAR(160),SUBSTITUTE($R30,\"}\",CHAR(160),FN$1))-FIND(CHAR(160),SUBSTITUTE($R30,\"{\",CHAR(160),FN$1))+1),\"\")","v":""},{"$f":"IFERROR(MID($R30,FIND(CHAR(160),SUBSTITUTE($R30,\"{\",CHAR(160),FO$1)),FIND(CHAR(160),SUBSTITUTE($R30,\"}\",CHAR(160),FO$1))-FIND(CHAR(160),SUBSTITUTE($R30,\"{\",CHAR(160),FO$1))+1),\"\")","v":""},{"$f":"IFERROR(MID($R30,FIND(CHAR(160),SUBSTITUTE($R30,\"{\",CHAR(160),FP$1)),FIND(CHAR(160),SUBSTITUTE($R30,\"}\",CHAR(160),FP$1))-FIND(CHAR(160),SUBSTITUTE($R30,\"{\",CHAR(160),FP$1))+1),\"\")","v":""},{"$f":"IFERROR(MID($R30,FIND(CHAR(160),SUBSTITUTE($R30,\"{\",CHAR(160),FQ$1)),FIND(CHAR(160),SUBSTITUTE($R30,\"}\",CHAR(160),FQ$1))-FIND(CHAR(160),SUBSTITUTE($R30,\"{\",CHAR(160),FQ$1))+1),\"\")","v":""},{"$f":"IFERROR(MID($R30,FIND(CHAR(160),SUBSTITUTE($R30,\"{\",CHAR(160),FR$1)),FIND(CHAR(160),SUBSTITUTE($R30,\"}\",CHAR(160),FR$1))-FIND(CHAR(160),SUBSTITUTE($R30,\"{\",CHAR(160),FR$1))+1),\"\")","v":""},{"$f":"IFERROR(MID($R30,FIND(CHAR(160),SUBSTITUTE($R30,\"{\",CHAR(160),FS$1)),FIND(CHAR(160),SUBSTITUTE($R30,\"}\",CHAR(160),FS$1))-FIND(CHAR(160),SUBSTITUTE($R30,\"{\",CHAR(160),FS$1))+1),\"\")","v":""},{"$f":"IFERROR(MID($R30,FIND(CHAR(160),SUBSTITUTE($R30,\"{\",CHAR(160),FT$1)),FIND(CHAR(160),SUBSTITUTE($R30,\"}\",CHAR(160),FT$1))-FIND(CHAR(160),SUBSTITUTE($R30,\"{\",CHAR(160),FT$1))+1),\"\")","v":""},{"$f":"IFERROR(MID($R30,FIND(CHAR(160),SUBSTITUTE($R30,\"{\",CHAR(160),FU$1)),FIND(CHAR(160),SUBSTITUTE($R30,\"}\",CHAR(160),FU$1))-FIND(CHAR(160),SUBSTITUTE($R30,\"{\",CHAR(160),FU$1))+1),\"\")","v":"{Measure:Quantity}"},{"$f":"IFERROR(MID($R30,FIND(CHAR(160),SUBSTITUTE($R30,\"{\",CHAR(160),FV$1)),FIND(CHAR(160),SUBSTITUTE($R30,\"}\",CHAR(160),FV$1))-FIND(CHAR(160),SUBSTITUTE($R30,\"{\",CHAR(160),FV$1))+1),\"\")","v":""},{"$f":"IFERROR(MID($U30,FIND(CHAR(160),SUBSTITUTE($U30,\"{\",CHAR(160),FW$1)),FIND(CHAR(160),SUBSTITUTE($U30,\"}\",CHAR(160),FW$1))-FIND(CHAR(160),SUBSTITUTE($U30,\"{\",CHAR(160),FW$1))+1),\"\")","v":""},{"$f":"IFERROR(MID($U30,FIND(CHAR(160),SUBSTITUTE($U30,\"{\",CHAR(160),FX$1)),FIND(CHAR(160),SUBSTITUTE($U30,\"}\",CHAR(160),FX$1))-FIND(CHAR(160),SUBSTITUTE($U30,\"{\",CHAR(160),FX$1))+1),\"\")","v":""},{"$f":"IFERROR(MID($U30,FIND(CHAR(160),SUBSTITUTE($U30,\"{\",CHAR(160),FY$1)),FIND(CHAR(160),SUBSTITUTE($U30,\"}\",CHAR(160),FY$1))-FIND(CHAR(160),SUBSTITUTE($U30,\"{\",CHAR(160),FY$1))+1),\"\")","v":""},{"$f":"IFERROR(MID($U30,FIND(CHAR(160),SUBSTITUTE($U30,\"{\",CHAR(160),FZ$1)),FIND(CHAR(160),SUBSTITUTE($U30,\"}\",CHAR(160),FZ$1))-FIND(CHAR(160),SUBSTITUTE($U30,\"{\",CHAR(160),FZ$1))+1),\"\")","v":""},{"$f":"IFERROR(MID($U30,FIND(CHAR(160),SUBSTITUTE($U30,\"{\",CHAR(160),GA$1)),FIND(CHAR(160),SUBSTITUTE($U30,\"}\",CHAR(160),GA$1))-FIND(CHAR(160),SUBSTITUTE($U30,\"{\",CHAR(160),GA$1))+1),\"\")","v":""},{"$f":"IFERROR(MID($U30,FIND(CHAR(160),SUBSTITUTE($U30,\"{\",CHAR(160),GB$1)),FIND(CHAR(160),SUBSTITUTE($U30,\"}\",CHAR(160),GB$1))-FIND(CHAR(160),SUBSTITUTE($U30,\"{\",CHAR(160),GB$1))+1),\"\")","v":""},{"$f":"IFERROR(MID($U30,FIND(CHAR(160),SUBSTITUTE($U30,\"{\",CHAR(160),GC$1)),FIND(CHAR(160),SUBSTITUTE($U30,\"}\",CHAR(160),GC$1))-FIND(CHAR(160),SUBSTITUTE($U30,\"{\",CHAR(160),GC$1))+1),\"\")","v":""},{"$f":"IFERROR(MID($U30,FIND(CHAR(160),SUBSTITUTE($U30,\"{\",CHAR(160),GD$1)),FIND(CHAR(160),SUBSTITUTE($U30,\"}\",CHAR(160),GD$1))-FIND(CHAR(160),SUBSTITUTE($U30,\"{\",CHAR(160),GD$1))+1),\"\")","v":""},{"$f":"IFERROR(MID($U30,FIND(CHAR(160),SUBSTITUTE($U30,\"{\",CHAR(160),GE$1)),FIND(CHAR(160),SUBSTITUTE($U30,\"}\",CHAR(160),GE$1))-FIND(CHAR(160),SUBSTITUTE($U30,\"{\",CHAR(160),GE$1))+1),\"\")","v":"{Measure:Quantity}"},{"$f":"IFERROR(MID($U30,FIND(CHAR(160),SUBSTITUTE($U30,\"{\",CHAR(160),GF$1)),FIND(CHAR(160),SUBSTITUTE($U30,\"}\",CHAR(160),GF$1))-FIND(CHAR(160),SUBSTITUTE($U30,\"{\",CHAR(160),GF$1))+1),\"\")","v":"{Factor:WinterCF}"},{"$f":"IFERROR(MID($V30,FIND(CHAR(160),SUBSTITUTE($V30,\"{\",CHAR(160),GG$1)),FIND(CHAR(160),SUBSTITUTE($V30,\"}\",CHAR(160),GG$1))-FIND(CHAR(160),SUBSTITUTE($V30,\"{\",CHAR(160),GG$1))+1),\"\")","v":""},{"$f":"IFERROR(MID($V30,FIND(CHAR(160),SUBSTITUTE($V30,\"{\",CHAR(160),GH$1)),FIND(CHAR(160),SUBSTITUTE($V30,\"}\",CHAR(160),GH$1))-FIND(CHAR(160),SUBSTITUTE($V30,\"{\",CHAR(160),GH$1))+1),\"\")","v":""},{"$f":"IFERROR(MID($V30,FIND(CHAR(160),SUBSTITUTE($V30,\"{\",CHAR(160),GI$1)),FIND(CHAR(160),SUBSTITUTE($V30,\"}\",CHAR(160),GI$1))-FIND(CHAR(160),SUBSTITUTE($V30,\"{\",CHAR(160),GI$1))+1),\"\")","v":""},{"$f":"IFERROR(MID($V30,FIND(CHAR(160),SUBSTITUTE($V30,\"{\",CHAR(160),GJ$1)),FIND(CHAR(160),SUBSTITUTE($V30,\"}\",CHAR(160),GJ$1))-FIND(CHAR(160),SUBSTITUTE($V30,\"{\",CHAR(160),GJ$1))+1),\"\")","v":""},{"$f":"IFERROR(MID($V30,FIND(CHAR(160),SUBSTITUTE($V30,\"{\",CHAR(160),GK$1)),FIND(CHAR(160),SUBSTITUTE($V30,\"}\",CHAR(160),GK$1))-FIND(CHAR(160),SUBSTITUTE($V30,\"{\",CHAR(160),GK$1))+1),\"\")","v":""},{"$f":"IFERROR(MID($V30,FIND(CHAR(160),SUBSTITUTE($V30,\"{\",CHAR(160),GL$1)),FIND(CHAR(160),SUBSTITUTE($V30,\"}\",CHAR(160),GL$1))-FIND(CHAR(160),SUBSTITUTE($V30,\"{\",CHAR(160),GL$1))+1),\"\")","v":""},{"$f":"IFERROR(MID($V30,FIND(CHAR(160),SUBSTITUTE($V30,\"{\",CHAR(160),GM$1)),FIND(CHAR(160),SUBSTITUTE($V30,\"}\",CHAR(160),GM$1))-FIND(CHAR(160),SUBSTITUTE($V30,\"{\",CHAR(160),GM$1))+1),\"\")","v":""},{"$f":"IFERROR(MID($V30,FIND(CHAR(160),SUBSTITUTE($V30,\"{\",CHAR(160),GN$1)),FIND(CHAR(160),SUBSTITUTE($V30,\"}\",CHAR(160),GN$1))-FIND(CHAR(160),SUBSTITUTE($V30,\"{\",CHAR(160),GN$1))+1),\"\")","v":""},{"$f":"IFERROR(MID($V30,FIND(CHAR(160),SUBSTITUTE($V30,\"{\",CHAR(160),GO$1)),FIND(CHAR(160),SUBSTITUTE($V30,\"}\",CHAR(160),GO$1))-FIND(CHAR(160),SUBSTITUTE($V30,\"{\",CHAR(160),GO$1))+1),\"\")","v":"{Measure:Quantity}"},{"$f":"IFERROR(MID($V30,FIND(CHAR(160),SUBSTITUTE($V30,\"{\",CHAR(160),GP$1)),FIND(CHAR(160),SUBSTITUTE($V30,\"}\",CHAR(160),GP$1))-FIND(CHAR(160),SUBSTITUTE($V30,\"{\",CHAR(160),GP$1))+1),\"\")","v":"{Factor:SummerCF}"},{"$f":"IFERROR(MID($W30,FIND(CHAR(160),SUBSTITUTE($W30,\"{\",CHAR(160),GQ$1)),FIND(CHAR(160),SUBSTITUTE($W30,\"}\",CHAR(160),GQ$1))-FIND(CHAR(160),SUBSTITUTE($W30,\"{\",CHAR(160),GQ$1))+1),\"\")","v":""},{"$f":"IFERROR(MID($W30,FIND(CHAR(160),SUBSTITUTE($W30,\"{\",CHAR(160),GR$1)),FIND(CHAR(160),SUBSTITUTE($W30,\"}\",CHAR(160),GR$1))-FIND(CHAR(160),SUBSTITUTE($W30,\"{\",CHAR(160),GR$1))+1),\"\")","v":""},{"$f":"IFERROR(MID($W30,FIND(CHAR(160),SUBSTITUTE($W30,\"{\",CHAR(160),GS$1)),FIND(CHAR(160),SUBSTITUTE($W30,\"}\",CHAR(160),GS$1))-FIND(CHAR(160),SUBSTITUTE($W30,\"{\",CHAR(160),GS$1))+1),\"\")","v":""},{"$f":"IFERROR(MID($W30,FIND(CHAR(160),SUBSTITUTE($W30,\"{\",CHAR(160),GT$1)),FIND(CHAR(160),SUBSTITUTE($W30,\"}\",CHAR(160),GT$1))-FIND(CHAR(160),SUBSTITUTE($W30,\"{\",CHAR(160),GT$1))+1),\"\")","v":""},{"$f":"IFERROR(MID($W30,FIND(CHAR(160),SUBSTITUTE($W30,\"{\",CHAR(160),GU$1)),FIND(CHAR(160),SUBSTITUTE($W30,\"}\",CHAR(160),GU$1))-FIND(CHAR(160),SUBSTITUTE($W30,\"{\",CHAR(160),GU$1))+1),\"\")","v":""},{"$f":"IFERROR(MID($W30,FIND(CHAR(160),SUBSTITUTE($W30,\"{\",CHAR(160),GV$1)),FIND(CHAR(160),SUBSTITUTE($W30,\"}\",CHAR(160),GV$1))-FIND(CHAR(160),SUBSTITUTE($W30,\"{\",CHAR(160),GV$1))+1),\"\")","v":""},{"$f":"IFERROR(MID($W30,FIND(CHAR(160),SUBSTITUTE($W30,\"{\",CHAR(160),GW$1)),FIND(CHAR(160),SUBSTITUTE($W30,\"}\",CHAR(160),GW$1))-FIND(CHAR(160),SUBSTITUTE($W30,\"{\",CHAR(160),GW$1))+1),\"\")","v":""},{"$f":"IFERROR(MID($W30,FIND(CHAR(160),SUBSTITUTE($W30,\"{\",CHAR(160),GX$1)),FIND(CHAR(160),SUBSTITUTE($W30,\"}\",CHAR(160),GX$1))-FIND(CHAR(160),SUBSTITUTE($W30,\"{\",CHAR(160),GX$1))+1),\"\")","v":""},{"$f":"IFERROR(MID($W30,FIND(CHAR(160),SUBSTITUTE($W30,\"{\",CHAR(160),GY$1)),FIND(CHAR(160),SUBSTITUTE($W30,\"}\",CHAR(160),GY$1))-FIND(CHAR(160),SUBSTITUTE($W30,\"{\",CHAR(160),GY$1))+1),\"\")","v":""},{"$f":"IFERROR(MID($W30,FIND(CHAR(160),SUBSTITUTE($W30,\"{\",CHAR(160),GZ$1)),FIND(CHAR(160),SUBSTITUTE($W30,\"}\",CHAR(160),GZ$1))-FIND(CHAR(160),SUBSTITUTE($W30,\"{\",CHAR(160),GZ$1))+1),\"\")","v":""},{"$f":"IFERROR(MID($X30,FIND(CHAR(160),SUBSTITUTE($X30,\"{\",CHAR(160),HA$1)),FIND(CHAR(160),SUBSTITUTE($X30,\"}\",CHAR(160),HA$1))-FIND(CHAR(160),SUBSTITUTE($X30,\"{\",CHAR(160),HA$1))+1),\"\")","v":""},{"$f":"IFERROR(MID($X30,FIND(CHAR(160),SUBSTITUTE($X30,\"{\",CHAR(160),HB$1)),FIND(CHAR(160),SUBSTITUTE($X30,\"}\",CHAR(160),HB$1))-FIND(CHAR(160),SUBSTITUTE($X30,\"{\",CHAR(160),HB$1))+1),\"\")","v":""},{"$f":"IFERROR(MID($X30,FIND(CHAR(160),SUBSTITUTE($X30,\"{\",CHAR(160),HC$1)),FIND(CHAR(160),SUBSTITUTE($X30,\"}\",CHAR(160),HC$1))-FIND(CHAR(160),SUBSTITUTE($X30,\"{\",CHAR(160),HC$1))+1),\"\")","v":""},{"$f":"IFERROR(MID($X30,FIND(CHAR(160),SUBSTITUTE($X30,\"{\",CHAR(160),HD$1)),FIND(CHAR(160),SUBSTITUTE($X30,\"}\",CHAR(160),HD$1))-FIND(CHAR(160),SUBSTITUTE($X30,\"{\",CHAR(160),HD$1))+1),\"\")","v":""},{"$f":"IFERROR(MID($X30,FIND(CHAR(160),SUBSTITUTE($X30,\"{\",CHAR(160),HE$1)),FIND(CHAR(160),SUBSTITUTE($X30,\"}\",CHAR(160),HE$1))-FIND(CHAR(160),SUBSTITUTE($X30,\"{\",CHAR(160),HE$1))+1),\"\")","v":""},{"$f":"IFERROR(MID($X30,FIND(CHAR(160),SUBSTITUTE($X30,\"{\",CHAR(160),HF$1)),FIND(CHAR(160),SUBSTITUTE($X30,\"}\",CHAR(160),HF$1))-FIND(CHAR(160),SUBSTITUTE($X30,\"{\",CHAR(160),HF$1))+1),\"\")","v":""},{"$f":"IFERROR(MID($X30,FIND(CHAR(160),SUBSTITUTE($X30,\"{\",CHAR(160),HG$1)),FIND(CHAR(160),SUBSTITUTE($X30,\"}\",CHAR(160),HG$1))-FIND(CHAR(160),SUBSTITUTE($X30,\"{\",CHAR(160),HG$1))+1),\"\")","v":""},{"$f":"IFERROR(MID($X30,FIND(CHAR(160),SUBSTITUTE($X30,\"{\",CHAR(160),HH$1)),FIND(CHAR(160),SUBSTITUTE($X30,\"}\",CHAR(160),HH$1))-FIND(CHAR(160),SUBSTITUTE($X30,\"{\",CHAR(160),HH$1))+1),\"\")","v":""},{"$f":"IFERROR(MID($X30,FIND(CHAR(160),SUBSTITUTE($X30,\"{\",CHAR(160),HI$1)),FIND(CHAR(160),SUBSTITUTE($X30,\"}\",CHAR(160),HI$1))-FIND(CHAR(160),SUBSTITUTE($X30,\"{\",CHAR(160),HI$1))+1),\"\")","v":""},{"$f":"IFERROR(MID($X30,FIND(CHAR(160),SUBSTITUTE($X30,\"{\",CHAR(160),HJ$1)),FIND(CHAR(160),SUBSTITUTE($X30,\"}\",CHAR(160),HJ$1))-FIND(CHAR(160),SUBSTITUTE($X30,\"{\",CHAR(160),HJ$1))+1),\"\")","v":""},{"$f":"IFERROR(MID($Y30,FIND(CHAR(160),SUBSTITUTE($Y30,\"{\",CHAR(160),HK$1)),FIND(CHAR(160),SUBSTITUTE($Y30,\"}\",CHAR(160),HK$1))-FIND(CHAR(160),SUBSTITUTE($Y30,\"{\",CHAR(160),HK$1))+1),\"\")","v":""},{"$f":"IFERROR(MID($Y30,FIND(CHAR(160),SUBSTITUTE($Y30,\"{\",CHAR(160),HL$1)),FIND(CHAR(160),SUBSTITUTE($Y30,\"}\",CHAR(160),HL$1))-FIND(CHAR(160),SUBSTITUTE($Y30,\"{\",CHAR(160),HL$1))+1),\"\")","v":""},{"$f":"IFERROR(MID($Y30,FIND(CHAR(160),SUBSTITUTE($Y30,\"{\",CHAR(160),HM$1)),FIND(CHAR(160),SUBSTITUTE($Y30,\"}\",CHAR(160),HM$1))-FIND(CHAR(160),SUBSTITUTE($Y30,\"{\",CHAR(160),HM$1))+1),\"\")","v":""},{"$f":"IFERROR(MID($Y30,FIND(CHAR(160),SUBSTITUTE($Y30,\"{\",CHAR(160),HN$1)),FIND(CHAR(160),SUBSTITUTE($Y30,\"}\",CHAR(160),HN$1))-FIND(CHAR(160),SUBSTITUTE($Y30,\"{\",CHAR(160),HN$1))+1),\"\")","v":""},{"$f":"IFERROR(MID($Y30,FIND(CHAR(160),SUBSTITUTE($Y30,\"{\",CHAR(160),HO$1)),FIND(CHAR(160),SUBSTITUTE($Y30,\"}\",CHAR(160),HO$1))-FIND(CHAR(160),SUBSTITUTE($Y30,\"{\",CHAR(160),HO$1))+1),\"\")","v":""},{"$f":"IFERROR(MID($Y30,FIND(CHAR(160),SUBSTITUTE($Y30,\"{\",CHAR(160),HP$1)),FIND(CHAR(160),SUBSTITUTE($Y30,\"}\",CHAR(160),HP$1))-FIND(CHAR(160),SUBSTITUTE($Y30,\"{\",CHAR(160),HP$1))+1),\"\")","v":""},{"$f":"IFERROR(MID($Y30,FIND(CHAR(160),SUBSTITUTE($Y30,\"{\",CHAR(160),HQ$1)),FIND(CHAR(160),SUBSTITUTE($Y30,\"}\",CHAR(160),HQ$1))-FIND(CHAR(160),SUBSTITUTE($Y30,\"{\",CHAR(160),HQ$1))+1),\"\")","v":""},{"$f":"IFERROR(MID($Y30,FIND(CHAR(160),SUBSTITUTE($Y30,\"{\",CHAR(160),HR$1)),FIND(CHAR(160),SUBSTITUTE($Y30,\"}\",CHAR(160),HR$1))-FIND(CHAR(160),SUBSTITUTE($Y30,\"{\",CHAR(160),HR$1))+1),\"\")","v":""},{"$f":"IFERROR(MID($Y30,FIND(CHAR(160),SUBSTITUTE($Y30,\"{\",CHAR(160),HS$1)),FIND(CHAR(160),SUBSTITUTE($Y30,\"}\",CHAR(160),HS$1))-FIND(CHAR(160),SUBSTITUTE($Y30,\"{\",CHAR(160),HS$1))+1),\"\")","v":""},{"$f":"IFERROR(MID($Y30,FIND(CHAR(160),SUBSTITUTE($Y30,\"{\",CHAR(160),HT$1)),FIND(CHAR(160),SUBSTITUTE($Y30,\"}\",CHAR(160),HT$1))-FIND(CHAR(160),SUBSTITUTE($Y30,\"{\",CHAR(160),HT$1))+1),\"\")","v":""},{"$f":"IFERROR(MID($Z30,FIND(CHAR(160),SUBSTITUTE($Z30,\"{\",CHAR(160),HU$1)),FIND(CHAR(160),SUBSTITUTE($Z30,\"}\",CHAR(160),HU$1))-FIND(CHAR(160),SUBSTITUTE($Z30,\"{\",CHAR(160),HU$1))+1),\"\")","v":""},{"$f":"IFERROR(MID($Z30,FIND(CHAR(160),SUBSTITUTE($Z30,\"{\",CHAR(160),HV$1)),FIND(CHAR(160),SUBSTITUTE($Z30,\"}\",CHAR(160),HV$1))-FIND(CHAR(160),SUBSTITUTE($Z30,\"{\",CHAR(160),HV$1))+1),\"\")","v":""},{"$f":"IFERROR(MID($Z30,FIND(CHAR(160),SUBSTITUTE($Z30,\"{\",CHAR(160),HW$1)),FIND(CHAR(160),SUBSTITUTE($Z30,\"}\",CHAR(160),HW$1))-FIND(CHAR(160),SUBSTITUTE($Z30,\"{\",CHAR(160),HW$1))+1),\"\")","v":""},{"$f":"IFERROR(MID($Z30,FIND(CHAR(160),SUBSTITUTE($Z30,\"{\",CHAR(160),HX$1)),FIND(CHAR(160),SUBSTITUTE($Z30,\"}\",CHAR(160),HX$1))-FIND(CHAR(160),SUBSTITUTE($Z30,\"{\",CHAR(160),HX$1))+1),\"\")","v":""},{"$f":"IFERROR(MID($Z30,FIND(CHAR(160),SUBSTITUTE($Z30,\"{\",CHAR(160),HY$1)),FIND(CHAR(160),SUBSTITUTE($Z30,\"}\",CHAR(160),HY$1))-FIND(CHAR(160),SUBSTITUTE($Z30,\"{\",CHAR(160),HY$1))+1),\"\")","v":""},{"$f":"IFERROR(MID($Z30,FIND(CHAR(160),SUBSTITUTE($Z30,\"{\",CHAR(160),HZ$1)),FIND(CHAR(160),SUBSTITUTE($Z30,\"}\",CHAR(160),HZ$1))-FIND(CHAR(160),SUBSTITUTE($Z30,\"{\",CHAR(160),HZ$1))+1),\"\")","v":""},{"$f":"IFERROR(MID($Z30,FIND(CHAR(160),SUBSTITUTE($Z30,\"{\",CHAR(160),IA$1)),FIND(CHAR(160),SUBSTITUTE($Z30,\"}\",CHAR(160),IA$1))-FIND(CHAR(160),SUBSTITUTE($Z30,\"{\",CHAR(160),IA$1))+1),\"\")","v":""},{"$f":"IFERROR(MID($Z30,FIND(CHAR(160),SUBSTITUTE($Z30,\"{\",CHAR(160),IB$1)),FIND(CHAR(160),SUBSTITUTE($Z30,\"}\",CHAR(160),IB$1))-FIND(CHAR(160),SUBSTITUTE($Z30,\"{\",CHAR(160),IB$1))+1),\"\")","v":""},{"$f":"IFERROR(MID($Z30,FIND(CHAR(160),SUBSTITUTE($Z30,\"{\",CHAR(160),IC$1)),FIND(CHAR(160),SUBSTITUTE($Z30,\"}\",CHAR(160),IC$1))-FIND(CHAR(160),SUBSTITUTE($Z30,\"{\",CHAR(160),IC$1))+1),\"\")","v":""},{"$f":"IFERROR(MID($Z30,FIND(CHAR(160),SUBSTITUTE($Z30,\"{\",CHAR(160),ID$1)),FIND(CHAR(160),SUBSTITUTE($Z30,\"}\",CHAR(160),ID$1))-FIND(CHAR(160),SUBSTITUTE($Z30,\"{\",CHAR(160),ID$1))+1),\"\")","v":""},{"$f":"IFERROR(MID($AA30,FIND(CHAR(160),SUBSTITUTE($AA30,\"{\",CHAR(160),IE$1)),FIND(CHAR(160),SUBSTITUTE($AA30,\"}\",CHAR(160),IE$1))-FIND(CHAR(160),SUBSTITUTE($AA30,\"{\",CHAR(160),IE$1))+1),\"\")","v":""},{"$f":"IFERROR(MID($AA30,FIND(CHAR(160),SUBSTITUTE($AA30,\"{\",CHAR(160),IF$1)),FIND(CHAR(160),SUBSTITUTE($AA30,\"}\",CHAR(160),IF$1))-FIND(CHAR(160),SUBSTITUTE($AA30,\"{\",CHAR(160),IF$1))+1),\"\")","v":""},{"$f":"IFERROR(MID($AA30,FIND(CHAR(160),SUBSTITUTE($AA30,\"{\",CHAR(160),IG$1)),FIND(CHAR(160),SUBSTITUTE($AA30,\"}\",CHAR(160),IG$1))-FIND(CHAR(160),SUBSTITUTE($AA30,\"{\",CHAR(160),IG$1))+1),\"\")","v":""},{"$f":"IFERROR(MID($AA30,FIND(CHAR(160),SUBSTITUTE($AA30,\"{\",CHAR(160),IH$1)),FIND(CHAR(160),SUBSTITUTE($AA30,\"}\",CHAR(160),IH$1))-FIND(CHAR(160),SUBSTITUTE($AA30,\"{\",CHAR(160),IH$1))+1),\"\")","v":""},{"$f":"IFERROR(MID($AA30,FIND(CHAR(160),SUBSTITUTE($AA30,\"{\",CHAR(160),II$1)),FIND(CHAR(160),SUBSTITUTE($AA30,\"}\",CHAR(160),II$1))-FIND(CHAR(160),SUBSTITUTE($AA30,\"{\",CHAR(160),II$1))+1),\"\")","v":""},{"$f":"IFERROR(MID($AA30,FIND(CHAR(160),SUBSTITUTE($AA30,\"{\",CHAR(160),IJ$1)),FIND(CHAR(160),SUBSTITUTE($AA30,\"}\",CHAR(160),IJ$1))-FIND(CHAR(160),SUBSTITUTE($AA30,\"{\",CHAR(160),IJ$1))+1),\"\")","v":""},{"$f":"IFERROR(MID($AA30,FIND(CHAR(160),SUBSTITUTE($AA30,\"{\",CHAR(160),IK$1)),FIND(CHAR(160),SUBSTITUTE($AA30,\"}\",CHAR(160),IK$1))-FIND(CHAR(160),SUBSTITUTE($AA30,\"{\",CHAR(160),IK$1))+1),\"\")","v":""},{"$f":"IFERROR(MID($AA30,FIND(CHAR(160),SUBSTITUTE($AA30,\"{\",CHAR(160),IL$1)),FIND(CHAR(160),SUBSTITUTE($AA30,\"}\",CHAR(160),IL$1))-FIND(CHAR(160),SUBSTITUTE($AA30,\"{\",CHAR(160),IL$1))+1),\"\")","v":""},{"$f":"IFERROR(MID($AA30,FIND(CHAR(160),SUBSTITUTE($AA30,\"{\",CHAR(160),IM$1)),FIND(CHAR(160),SUBSTITUTE($AA30,\"}\",CHAR(160),IM$1))-FIND(CHAR(160),SUBSTITUTE($AA30,\"{\",CHAR(160),IM$1))+1),\"\")","v":""},{"$f":"IFERROR(MID($AA30,FIND(CHAR(160),SUBSTITUTE($AA30,\"{\",CHAR(160),IN$1)),FIND(CHAR(160),SUBSTITUTE($AA30,\"}\",CHAR(160),IN$1))-FIND(CHAR(160),SUBSTITUTE($AA30,\"{\",CHAR(160),IN$1))+1),\"\")","v":""},{"$f":"IFERROR(MID($AB30,FIND(CHAR(160),SUBSTITUTE($AB30,\"{\",CHAR(160),IO$1)),FIND(CHAR(160),SUBSTITUTE($AB30,\"}\",CHAR(160),IO$1))-FIND(CHAR(160),SUBSTITUTE($AB30,\"{\",CHAR(160),IO$1))+1),\"\")","v":""},{"$f":"IFERROR(MID($AB30,FIND(CHAR(160),SUBSTITUTE($AB30,\"{\",CHAR(160),IP$1)),FIND(CHAR(160),SUBSTITUTE($AB30,\"}\",CHAR(160),IP$1))-FIND(CHAR(160),SUBSTITUTE($AB30,\"{\",CHAR(160),IP$1))+1),\"\")","v":""},{"$f":"IFERROR(MID($AB30,FIND(CHAR(160),SUBSTITUTE($AB30,\"{\",CHAR(160),IQ$1)),FIND(CHAR(160),SUBSTITUTE($AB30,\"}\",CHAR(160),IQ$1))-FIND(CHAR(160),SUBSTITUTE($AB30,\"{\",CHAR(160),IQ$1))+1),\"\")","v":""},{"$f":"IFERROR(MID($AB30,FIND(CHAR(160),SUBSTITUTE($AB30,\"{\",CHAR(160),IR$1)),FIND(CHAR(160),SUBSTITUTE($AB30,\"}\",CHAR(160),IR$1))-FIND(CHAR(160),SUBSTITUTE($AB30,\"{\",CHAR(160),IR$1))+1),\"\")","v":""},{"$f":"IFERROR(MID($AB30,FIND(CHAR(160),SUBSTITUTE($AB30,\"{\",CHAR(160),IS$1)),FIND(CHAR(160),SUBSTITUTE($AB30,\"}\",CHAR(160),IS$1))-FIND(CHAR(160),SUBSTITUTE($AB30,\"{\",CHAR(160),IS$1))+1),\"\")","v":""},{"$f":"IFERROR(MID($AB30,FIND(CHAR(160),SUBSTITUTE($AB30,\"{\",CHAR(160),IT$1)),FIND(CHAR(160),SUBSTITUTE($AB30,\"}\",CHAR(160),IT$1))-FIND(CHAR(160),SUBSTITUTE($AB30,\"{\",CHAR(160),IT$1))+1),\"\")","v":""},{"$f":"IFERROR(MID($AB30,FIND(CHAR(160),SUBSTITUTE($AB30,\"{\",CHAR(160),IU$1)),FIND(CHAR(160),SUBSTITUTE($AB30,\"}\",CHAR(160),IU$1))-FIND(CHAR(160),SUBSTITUTE($AB30,\"{\",CHAR(160),IU$1))+1),\"\")","v":""},{"$f":"IFERROR(MID($AB30,FIND(CHAR(160),SUBSTITUTE($AB30,\"{\",CHAR(160),IV$1)),FIND(CHAR(160),SUBSTITUTE($AB30,\"}\",CHAR(160),IV$1))-FIND(CHAR(160),SUBSTITUTE($AB30,\"{\",CHAR(160),IV$1))+1),\"\")","v":""},{"$f":"IFERROR(MID($AB30,FIND(CHAR(160),SUBSTITUTE($AB30,\"{\",CHAR(160),IW$1)),FIND(CHAR(160),SUBSTITUTE($AB30,\"}\",CHAR(160),IW$1))-FIND(CHAR(160),SUBSTITUTE($AB30,\"{\",CHAR(160),IW$1))+1),\"\")","v":""},{"$f":"IFERROR(MID($AB30,FIND(CHAR(160),SUBSTITUTE($AB30,\"{\",CHAR(160),IX$1)),FIND(CHAR(160),SUBSTITUTE($AB30,\"}\",CHAR(160),IX$1))-FIND(CHAR(160),SUBSTITUTE($AB30,\"{\",CHAR(160),IX$1))+1),\"\")","v":""},null,{"$f":"10-COUNTIF(DU30:ED30,\"\")","v":1}]
["C&I Agricultural Solutions","MILK: Scroll Compressor - 10 HP","AMSC - AMSC10","2021-07-01","2022-06-30","Per Measure",2051,0,"Per Measure",1100,0,"2016-07-01","2022-06-30","Calculated","432 * 10 * {Measure:Quantity}",1E-4,null,"((432 * 10) /2850) * {Measure:Quantity}",null,null,"(((432 * 10) /2850) * {Measure:Quantity}) *{Factor:WinterCF}","(((432 * 10) /2850) * {Measure:Quantity}) *{Factor:SummerCF}",null,null,null,null,null,null,"2020-04-01","2022-06-30",15,0.67400000000000004,0.32700000000000001,0.436,0.23200000000000001,0.217,0.115,1,1.1220000000000001,1,0.52,1.6E-2,null,{"$f":"DU31","v":"{Measure:Quantity}"},1,{"$f":"DV31","v":""},null,{"$f":"DW31","v":""},null,{"$f":"DX31","v":""},null,{"$f":"DY31","v":""},null,{"$f":"DZ31","v":""},null,{"$f":"EA31","v":""},null,{"$f":"EB31","v":""},null,{"$f":"EC31","v":""},null,{"$f":"ED31","v":""},null,{"$f":"432 * 10 * AS31","v":4320},{"$f":"0.0001","v":1E-4},0,{"$f":"((432 * 10) /2850) * AS31","v":1.5157894736842106},0,0,{"$f":"(((432 * 10) /2850) * AS31) *AF31","v":1.0216421052631579},{"$f":"(((432 * 10) /2850) * AS31) *AG31","v":0.49566315789473686},0,0,0,0,0,0,null,"Res","Default DR",{"$f":"Benefits(BL31,BR31,BS31,BT31,BU31,BV31,BW31,BX31,BY31,BZ31,AE31,AH31,AI31,AJ31,AK31,AL31,AM31,AN31,AO31,AP31,CA31,CB31)","v":6454.9536272433306},4780.3753625742311,0,0,0,0,0,0,0,{"$f":"SUMPRODUCT(CC31:CK31,--(CC31:CK31>0))","v":11235.328989817561},{"$f":"-SUMPRODUCT(CC31:CK31,--(CC31:CK31<0))","v":0},null,{"$f":"2051","v":2051},null,null,{"$f":"CM31+CO31","v":2051},{"$f":"IF(NetOrGross=\"Net\",(1-AO31+AP31),1)","v":1},{"$f":"(SUMPRODUCT(CC31:CJ31,--(CC31:CJ31>0))+CN31)*CS31/((-SUMPRODUCT(CC31:CJ31,--(CC31:CJ31<0))+MAX(CO31,CV31)+CP31+CQ31)*CS31+IF(FRIncentives=\"Yes\",CV31*(1-CS31),0))","v":5.4779761042503949},1,{"$f":"1100","v":1100},null,"Electric","y",null,{"$f":"IF(F31=\"Manual Entry\",\"Manual\",IF(G31=\"\",0,\"X=\"&SUBSTITUTE(SUBSTITUTE(SUBSTITUTE(SUBSTITUTE(SUBSTITUTE(SUBSTITUTE(SUBSTITUTE(SUBSTITUTE(SUBSTITUTE(SUBSTITUTE(SUBSTITUTE(SUBSTITUTE(G31,$ED31,$ED$2&ROW($ED31)),$EC31,$EC$2&ROW($EC31)),$EB31,$EB$2&ROW($EB31)),$EA31,$EA$2&ROW($EA31)),$DZ31,$DZ$2&ROW($DZ31)),$DY31,$DY$2&ROW($DY31)),$DX31,$DX$2&ROW($DX31)),$DW31,$DW$2&ROW($DW31)),$DV31,$DV$2&ROW($DV31)),$DU31,$DU$2&ROW($DU31)),$DT31,$DT$2&ROW($DT31)),$DS31,$DS$2&ROW($DS31))))","v":"X=2051"},{"$f":"IF(I31=\"Manual Entry\",\"Manual\",IF(J31=\"\",0,\"X=\"&SUBSTITUTE(SUBSTITUTE(SUBSTITUTE(SUBSTITUTE(SUBSTITUTE(SUBSTITUTE(SUBSTITUTE(SUBSTITUTE(SUBSTITUTE(SUBSTITUTE(SUBSTITUTE(SUBSTITUTE(J31,$ED31,$ED$2&ROW($ED31)),$EC31,$EC$2&ROW($EC31)),$EB31,$EB$2&ROW($EB31)),$EA31,$EA$2&ROW($EA31)),$DZ31,$DZ$2&ROW($DZ31)),$DY31,$DY$2&ROW($DY31)),$DX31,$DX$2&ROW($DX31)),$DW31,$DW$2&ROW($DW31)),$DV31,$DV$2&ROW($DV31)),$DU31,$DU$2&ROW($DU31)),$DT31,$DT$2&ROW($DT31)),$DS31,$DS$2&ROW($DS31))))","v":"X=1100"},{"$f":"IF(O31=\"\",0,\"X=\"&SUBSTITUTE(SUBSTITUTE(SUBSTITUTE(SUBSTITUTE(SUBSTITUTE(SUBSTITUTE(SUBSTITUTE(SUBSTITUTE(SUBSTITUTE(SUBSTITUTE(SUBSTITUTE(SUBSTITUTE(O31,$ED31,$ED$2&ROW($ED31)),$EC31,$EC$2&ROW($EC31)),$EB31,$EB$2&ROW($EB31)),$EA31,$EA$2&ROW($EA31)),$DZ31,$DZ$2&ROW($DZ31)),$DY31,$DY$2&ROW($DY31)),$DX31,$DX$2&ROW($DX31)),$DW31,$DW$2&ROW($DW31)),$DV31,$DV$2&ROW($DV31)),$DU31,$DU$2&ROW($DU31)),$DT31,$DT$2&ROW($DT31)),$DS31,$DS$2&ROW($DS31)))","v":"X=432 * 10 * AS31"},{"$f":"IF(P31=\"\",0,\"X=\"&SUBSTITUTE(SUBSTITUTE(SUBSTITUTE(SUBSTITUTE(SUBSTITUTE(SUBSTITUTE(SUBSTITUTE(SUBSTITUTE(SUBSTITUTE(SUBSTITUTE(SUBSTITUTE(SUBSTITUTE(P31,$ED31,$ED$2&ROW($ED31)),$EC31,$EC$2&ROW($EC31)),$EB31,$EB$2&ROW($EB31)),$EA31,$EA$2&ROW($EA31)),$DZ31,$DZ$2&ROW($DZ31)),$DY31,$DY$2&ROW($DY31)),$DX31,$DX$2&ROW($DX31)),$DW31,$DW$2&ROW($DW31)),$DV31,$DV$2&ROW($DV31)),$DU31,$DU$2&ROW($DU31)),$DT31,$DT$2&ROW($DT31)),$DS31,$DS$2&ROW($DS31)))","v":"X=0.0001"},{"$f":"IF(Q31=\"\",0,\"X=\"&SUBSTITUTE(SUBSTITUTE(SUBSTITUTE(SUBSTITUTE(SUBSTITUTE(SUBSTITUTE(SUBSTITUTE(SUBSTITUTE(SUBSTITUTE(SUBSTITUTE(SUBSTITUTE(SUBSTITUTE(Q31,$ED31,$ED$2&ROW($ED31)),$EC31,$EC$2&ROW($EC31)),$EB31,$EB$2&ROW($EB31)),$EA31,$EA$2&ROW($EA31)),$DZ31,$DZ$2&ROW($DZ31)),$DY31,$DY$2&ROW($DY31)),$DX31,$DX$2&ROW($DX31)),$DW31,$DW$2&ROW($DW31)),$DV31,$DV$2&ROW($DV31)),$DU31,$DU$2&ROW($DU31)),$DT31,$DT$2&ROW($DT31)),$DS31,$DS$2&ROW($DS31)))","v":0},{"$f":"IF(R31=\"\",0,\"X=\"&SUBSTITUTE(SUBSTITUTE(SUBSTITUTE(SUBSTITUTE(SUBSTITUTE(SUBSTITUTE(SUBSTITUTE(SUBSTITUTE(SUBSTITUTE(SUBSTITUTE(SUBSTITUTE(SUBSTITUTE(R31,$ED31,$ED$2&ROW($ED31)),$EC31,$EC$2&ROW($EC31)),$EB31,$EB$2&ROW($EB31)),$EA31,$EA$2&ROW($EA31)),$DZ31,$DZ$2&ROW($DZ31)),$DY31,$DY$2&ROW($DY31)),$DX31,$DX$2&ROW($DX31)),$DW31,$DW$2&ROW($DW31)),$DV31,$DV$2&ROW($DV31)),$DU31,$DU$2&ROW($DU31)),$DT31,$DT$2&ROW($DT31)),$DS31,$DS$2&ROW($DS31)))","v":"X=((432 * 10) /2850) * AS31"},{"$f":"IF(S31=\"\",0,\"X=\"&SUBSTITUTE(SUBSTITUTE(SUBSTITUTE(SUBSTITUTE(SUBSTITUTE(SUBSTITUTE(SUBSTITUTE(SUBSTITUTE(SUBSTITUTE(SUBSTITUTE(SUBSTITUTE(SUBSTITUTE(S31,$ED31,$ED$2&ROW($ED31)),$EC31,$EC$2&ROW($EC31)),$EB31,$EB$2&ROW($EB31)),$EA31,$EA$2&ROW($EA31)),$DZ31,$DZ$2&ROW($DZ31)),$DY31,$DY$2&ROW($DY31)),$DX31,$DX$2&ROW($DX31)),$DW31,$DW$2&ROW($DW31)),$DV31,$DV$2&ROW($DV31)),$DU31,$DU$2&ROW($DU31)),$DT31,$DT$2&ROW($DT31)),$DS31,$DS$2&ROW($DS31)))","v":0},{"$f":"IF(T31=\"\",0,\"X=\"&SUBSTITUTE(SUBSTITUTE(SUBSTITUTE(SUBSTITUTE(SUBSTITUTE(SUBSTITUTE(SUBSTITUTE(SUBSTITUTE(SUBSTITUTE(SUBSTITUTE(SUBSTITUTE(SUBSTITUTE(T31,$ED31,$ED$2&ROW($ED31)),$EC31,$EC$2&ROW($EC31)),$EB31,$EB$2&ROW($EB31)),$EA31,$EA$2&ROW($EA31)),$DZ31,$DZ$2&ROW($DZ31)),$DY31,$DY$2&ROW($DY31)),$DX31,$DX$2&ROW($DX31)),$DW31,$DW$2&ROW($DW31)),$DV31,$DV$2&ROW($DV31)),$DU31,$DU$2&ROW($DU31)),$DT31,$DT$2&ROW($DT31)),$DS31,$DS$2&ROW($DS31)))","v":0},{"$f":"IF(U31=\"\",0,\"X=\"&SUBSTITUTE(SUBSTITUTE(SUBSTITUTE(SUBSTITUTE(SUBSTITUTE(SUBSTITUTE(SUBSTITUTE(SUBSTITUTE(SUBSTITUTE(SUBSTITUTE(SUBSTITUTE(SUBSTITUTE(U31,$ED31,$ED$2&ROW($ED31)),$EC31,$EC$2&ROW($EC31)),$EB31,$EB$2&ROW($EB31)),$EA31,$EA$2&ROW($EA31)),$DZ31,$DZ$2&ROW($DZ31)),$DY31,$DY$2&ROW($DY31)),$DX31,$DX$2&ROW($DX31)),$DW31,$DW$2&ROW($DW31)),$DV31,$DV$2&ROW($DV31)),$DU31,$DU$2&ROW($DU31)),$DT31,$DT$2&ROW($DT31)),$DS31,$DS$2&ROW($DS31)))","v":"X=(((432 * 10) /2850) * AS31) *AF31"},{"$f":"IF(V31=\"\",0,\"X=\"&SUBSTITUTE(SUBSTITUTE(SUBSTITUTE(SUBSTITUTE(SUBSTITUTE(SUBSTITUTE(SUBSTITUTE(SUBSTITUTE(SUBSTITUTE(SUBSTITUTE(SUBSTITUTE(SUBSTITUTE(V31,$ED31,$ED$2&ROW($ED31)),$EC31,$EC$2&ROW($EC31)),$EB31,$EB$2&ROW($EB31)),$EA31,$EA$2&ROW($EA31)),$DZ31,$DZ$2&ROW($DZ31)),$DY31,$DY$2&ROW($DY31)),$DX31,$DX$2&ROW($DX31)),$DW31,$DW$2&ROW($DW31)),$DV31,$DV$2&ROW($DV31)),$DU31,$DU$2&ROW($DU31)),$DT31,$DT$2&ROW($DT31)),$DS31,$DS$2&ROW($DS31)))","v":"X=(((432 * 10) /2850) * AS31) *AG31"},{"$f":"IF(W31=\"\",0,\"X=\"&SUBSTITUTE(SUBSTITUTE(SUBSTITUTE(SUBSTITUTE(SUBSTITUTE(SUBSTITUTE(SUBSTITUTE(SUBSTITUTE(SUBSTITUTE(SUBSTITUTE(SUBSTITUTE(SUBSTITUTE(W31,$ED31,$ED$2&ROW($ED31)),$EC31,$EC$2&ROW($EC31)),$EB31,$EB$2&ROW($EB31)),$EA31,$EA$2&ROW($EA31)),$DZ31,$DZ$2&ROW($DZ31)),$DY31,$DY$2&ROW($DY31)),$DX31,$DX$2&ROW($DX31)),$DW31,$DW$2&ROW($DW31)),$DV31,$DV$2&ROW($DV31)),$DU31,$DU$2&ROW($DU31)),$DT31,$DT$2&ROW($DT31)),$DS31,$DS$2&ROW($DS31)))","v":0},{"$f":"IF(X31=\"\",0,\"X=\"&SUBSTITUTE(SUBSTITUTE(SUBSTITUTE(SUBSTITUTE(SUBSTITUTE(SUBSTITUTE(SUBSTITUTE(SUBSTITUTE(SUBSTITUTE(SUBSTITUTE(SUBSTITUTE(SUBSTITUTE(X31,$ED31,$ED$2&ROW($ED31)),$EC31,$EC$2&ROW($EC31)),$EB31,$EB$2&ROW($EB31)),$EA31,$EA$2&ROW($EA31)),$DZ31,$DZ$2&ROW($DZ31)),$DY31,$DY$2&ROW($DY31)),$DX31,$DX$2&ROW($DX31)),$DW31,$DW$2&ROW($DW31)),$DV31,$DV$2&ROW($DV31)),$DU31,$DU$2&ROW($DU31)),$DT31,$DT$2&ROW($DT31)),$DS31,$DS$2&ROW($DS31)))","v":0},{"$f":"IF(Y31=\"\",0,\"X=\"&SUBSTITUTE(SUBSTITUTE(SUBSTITUTE(SUBSTITUTE(SUBSTITUTE(SUBSTITUTE(SUBSTITUTE(SUBSTITUTE(SUBSTITUTE(SUBSTITUTE(SUBSTITUTE(SUBSTITUTE(Y31,$ED31,$ED$2&ROW($ED31)),$EC31,$EC$2&ROW($EC31)),$EB31,$EB$2&ROW($EB31)),$EA31,$EA$2&ROW($EA31)),$DZ31,$DZ$2&ROW($DZ31)),$DY31,$DY$2&ROW($DY31)),$DX31,$DX$2&ROW($DX31)),$DW31,$DW$2&ROW($DW31)),$DV31,$DV$2&ROW($DV31)),$DU31,$DU$2&ROW($DU31)),$DT31,$DT$2&ROW($DT31)),$DS31,$DS$2&ROW($DS31)))","v":0},{"$f":"IF(Z31=\"\",0,\"X=\"&SUBSTITUTE(SUBSTITUTE(SUBSTITUTE(SUBSTITUTE(SUBSTITUTE(SUBSTITUTE(SUBSTITUTE(SUBSTITUTE(SUBSTITUTE(SUBSTITUTE(SUBSTITUTE(SUBSTITUTE(Z31,$ED31,$ED$2&ROW($ED31)),$EC31,$EC$2&ROW($EC31)),$EB31,$EB$2&ROW($EB31)),$EA31,$EA$2&ROW($EA31)),$DZ31,$DZ$2&ROW($DZ31)),$DY31,$DY$2&ROW($DY31)),$DX31,$DX$2&ROW($DX31)),$DW31,$DW$2&ROW($DW31)),$DV31,$DV$2&ROW($DV31)),$DU31,$DU$2&ROW($DU31)),$DT31,$DT$2&ROW($DT31)),$DS31,$DS$2&ROW($DS31)))","v":0},{"$f":"IF(AA31=\"\",0,\"X=\"&SUBSTITUTE(SUBSTITUTE(SUBSTITUTE(SUBSTITUTE(SUBSTITUTE(SUBSTITUTE(SUBSTITUTE(SUBSTITUTE(SUBSTITUTE(SUBSTITUTE(SUBSTITUTE(SUBSTITUTE(AA31,$ED31,$ED$2&ROW($ED31)),$EC31,$EC$2&ROW($EC31)),$EB31,$EB$2&ROW($EB31)),$EA31,$EA$2&ROW($EA31)),$DZ31,$DZ$2&ROW($DZ31)),$DY31,$DY$2&ROW($DY31)),$DX31,$DX$2&ROW($DX31)),$DW31,$DW$2&ROW($DW31)),$DV31,$DV$2&ROW($DV31)),$DU31,$DU$2&ROW($DU31)),$DT31,$DT$2&ROW($DT31)),$DS31,$DS$2&ROW($DS31)))","v":0},{"$f":"IF(AB31=\"\",0,\"X=\"&SUBSTITUTE(SUBSTITUTE(SUBSTITUTE(SUBSTITUTE(SUBSTITUTE(SUBSTITUTE(SUBSTITUTE(SUBSTITUTE(SUBSTITUTE(SUBSTITUTE(SUBSTITUTE(SUBSTITUTE(AB31,$ED31,$ED$2&ROW($ED31)),$EC31,$EC$2&ROW($EC31)),$EB31,$EB$2&ROW($EB31)),$EA31,$EA$2&ROW($EA31)),$DZ31,$DZ$2&ROW($DZ31)),$DY31,$DY$2&ROW($DY31)),$DX31,$DX$2&ROW($DX31)),$DW31,$DW$2&ROW($DW31)),$DV31,$DV$2&ROW($DV31)),$DU31,$DU$2&ROW($DU31)),$DT31,$DT$2&ROW($DT31)),$DS31,$DS$2&ROW($DS31)))","v":0},null,null,"{Factor:WinterCF}","{Factor:SummerCF}",{"$f":"IFERROR(INDEX($EG31:$IV31,MATCH(0,COUNTIF($DR31:DT31,$EG31:$IV31),0)),\"\")","v":"{Measure:Quantity}"},{"$f":"IFERROR(INDEX($EG31:$IV31,MATCH(0,COUNTIF($DR31:DU31,$EG31:$IV31),0)),\"\")","v":""},{"$f":"IFERROR(INDEX($EG31:$IV31,MATCH(0,COUNTIF($DR31:DV31,$EG31:$IV31),0)),\"\")","v":""},{"$f":"IFERROR(INDEX($EG31:$IV31,MATCH(0,COUNTIF($DR31:DW31,$EG31:$IV31),0)),\"\")","v":""},{"$f":"IFERROR(INDEX($EG31:$IV31,MATCH(0,COUNTIF($DR31:DX31,$EG31:$IV31),0)),\"\")","v":""},{"$f":"IFERROR(INDEX($EG31:$IV31,MATCH(0,COUNTIF($DR31:DY31,$EG31:$IV31),0)),\"\")","v":""},{"$f":"IFERROR(INDEX($EG31:$IV31,MATCH(0,COUNTIF($DR31:DZ31,$EG31:$IV31),0)),\"\")","v":""},{"$f":"IFERROR(INDEX($EG31:$IV31,MATCH(0,COUNTIF($DR31:EA31,$EG31:$IV31),0)),\"\")","v":""},{"$f":"IFERROR(INDEX($EG31:$IV31,MATCH(0,COUNTIF($DR31:EB31,$EG31:$IV31),0)),\"\")","v":""},{"$f":"IFERROR(INDEX($EG31:$IV31,MATCH(0,COUNTIF($DR31:EC31,$EG31:$IV31),0)),\"\")","v":""},null,null,{"$f":"IFERROR(MID($G31,FIND(CHAR(160),SUBSTITUTE($G31,\"{\",CHAR(160),EG$1)),FIND(CHAR(160),SUBSTITUTE($G31,\"}\",CHAR(160),EG$1))-FIND(CHAR(160),SUBSTITUTE($G31,\"{\",CHAR(160),EG$1))+1),\"\")","v":""},{"$f":"IFERROR(MID($G31,FIND(CHAR(160),SUBSTITUTE($G31,\"{\",CHAR(160),EH$1)),FIND(CHAR(160),SUBSTITUTE($G31,\"}\",CHAR(160),EH$1))-FIND(CHAR(160),SUBSTITUTE($G31,\"{\",CHAR(160),EH$1))+1),\"\")","v":""},{"$f":"IFERROR(MID($G31,FIND(CHAR(160),SUBSTITUTE($G31,\"{\",CHAR(160),EI$1)),FIND(CHAR(160),SUBSTITUTE($G31,\"}\",CHAR(160),EI$1))-FIND(CHAR(160),SUBSTITUTE($G31,\"{\",CHAR(160),EI$1))+1),\"\")","v":""},{"$f":"IFERROR(MID($G31,FIND(CHAR(160),SUBSTITUTE($G31,\"{\",CHAR(160),EJ$1)),FIND(CHAR(160),SUBSTITUTE($G31,\"}\",CHAR(160),EJ$1))-FIND(CHAR(160),SUBSTITUTE($G31,\"{\",CHAR(160),EJ$1))+1),\"\")","v":""},{"$f":"IFERROR(MID($G31,FIND(CHAR(160),SUBSTITUTE($G31,\"{\",CHAR(160),EK$1)),FIND(CHAR(160),SUBSTITUTE($G31,\"}\",CHAR(160),EK$1))-FIND(CHAR(160),SUBSTITUTE($G31,\"{\",CHAR(160),EK$1))+1),\"\")","v":""},{"$f":"IFERROR(MID($G31,FIND(CHAR(160),SUBSTITUTE($G31,\"{\",CHAR(160),EL$1)),FIND(CHAR(160),SUBSTITUTE($G31,\"}\",CHAR(160),EL$1))-FIND(CHAR(160),SUBSTITUTE($G31,\"{\",CHAR(160),EL$1))+1),\"\")","v":""},{"$f":"IFERROR(MID($G31,FIND(CHAR(160),SUBSTITUTE($G31,\"{\",CHAR(160),EM$1)),FIND(CHAR(160),SUBSTITUTE($G31,\"}\",CHAR(160),EM$1))-FIND(CHAR(160),SUBSTITUTE($G31,\"{\",CHAR(160),EM$1))+1),\"\")","v":""},{"$f":"IFERROR(MID($G31,FIND(CHAR(160),SUBSTITUTE($G31,\"{\",CHAR(160),EN$1)),FIND(CHAR(160),SUBSTITUTE($G31,\"}\",CHAR(160),EN$1))-FIND(CHAR(160),SUBSTITUTE($G31,\"{\",CHAR(160),EN$1))+1),\"\")","v":""},{"$f":"IFERROR(MID($G31,FIND(CHAR(160),SUBSTITUTE($G31,\"{\",CHAR(160),EO$1)),FIND(CHAR(160),SUBSTITUTE($G31,\"}\",CHAR(160),EO$1))-FIND(CHAR(160),SUBSTITUTE($G31,\"{\",CHAR(160),EO$1))+1),\"\")","v":""},{"$f":"IFERROR(MID($G31,FIND(CHAR(160),SUBSTITUTE($G31,\"{\",CHAR(160),EP$1)),FIND(CHAR(160),SUBSTITUTE($G31,\"}\",CHAR(160),EP$1))-FIND(CHAR(160),SUBSTITUTE($G31,\"{\",CHAR(160),EP$1))+1),\"\")","v":""},{"$f":"IFERROR(MID($J31,FIND(CHAR(160),SUBSTITUTE($J31,\"{\",CHAR(160),EQ$1)),FIND(CHAR(160),SUBSTITUTE($J31,\"}\",CHAR(160),EQ$1))-FIND(CHAR(160),SUBSTITUTE($J31,\"{\",CHAR(160),EQ$1))+1),\"\")","v":""},{"$f":"IFERROR(MID($J31,FIND(CHAR(160),SUBSTITUTE($J31,\"{\",CHAR(160),ER$1)),FIND(CHAR(160),SUBSTITUTE($J31,\"}\",CHAR(160),ER$1))-FIND(CHAR(160),SUBSTITUTE($J31,\"{\",CHAR(160),ER$1))+1),\"\")","v":""},{"$f":"IFERROR(MID($J31,FIND(CHAR(160),SUBSTITUTE($J31,\"{\",CHAR(160),ES$1)),FIND(CHAR(160),SUBSTITUTE($J31,\"}\",CHAR(160),ES$1))-FIND(CHAR(160),SUBSTITUTE($J31,\"{\",CHAR(160),ES$1))+1),\"\")","v":""},{"$f":"IFERROR(MID($J31,FIND(CHAR(160),SUBSTITUTE($J31,\"{\",CHAR(160),ET$1)),FIND(CHAR(160),SUBSTITUTE($J31,\"}\",CHAR(160),ET$1))-FIND(CHAR(160),SUBSTITUTE($J31,\"{\",CHAR(160),ET$1))+1),\"\")","v":""},{"$f":"IFERROR(MID($J31,FIND(CHAR(160),SUBSTITUTE($J31,\"{\",CHAR(160),EU$1)),FIND(CHAR(160),SUBSTITUTE($J31,\"}\",CHAR(160),EU$1))-FIND(CHAR(160),SUBSTITUTE($J31,\"{\",CHAR(160),EU$1))+1),\"\")","v":""},{"$f":"IFERROR(MID($J31,FIND(CHAR(160),SUBSTITUTE($J31,\"{\",CHAR(160),EV$1)),FIND(CHAR(160),SUBSTITUTE($J31,\"}\",CHAR(160),EV$1))-FIND(CHAR(160),SUBSTITUTE($J31,\"{\",CHAR(160),EV$1))+1),\"\")","v":""},{"$f":"IFERROR(MID($J31,FIND(CHAR(160),SUBSTITUTE($J31,\"{\",CHAR(160),EW$1)),FIND(CHAR(160),SUBSTITUTE($J31,\"}\",CHAR(160),EW$1))-FIND(CHAR(160),SUBSTITUTE($J31,\"{\",CHAR(160),EW$1))+1),\"\")","v":""},{"$f":"IFERROR(MID($J31,FIND(CHAR(160),SUBSTITUTE($J31,\"{\",CHAR(160),EX$1)),FIND(CHAR(160),SUBSTITUTE($J31,\"}\",CHAR(160),EX$1))-FIND(CHAR(160),SUBSTITUTE($J31,\"{\",CHAR(160),EX$1))+1),\"\")","v":""},{"$f":"IFERROR(MID($J31,FIND(CHAR(160),SUBSTITUTE($J31,\"{\",CHAR(160),EY$1)),FIND(CHAR(160),SUBSTITUTE($J31,\"}\",CHAR(160),EY$1))-FIND(CHAR(160),SUBSTITUTE($J31,\"{\",CHAR(160),EY$1))+1),\"\")","v":""},{"$f":"IFERROR(MID($J31,FIND(CHAR(160),SUBSTITUTE($J31,\"{\",CHAR(160),EZ$1)),FIND(CHAR(160),SUBSTITUTE($J31,\"}\",CHAR(160),EZ$1))-FIND(CHAR(160),SUBSTITUTE($J31,\"{\",CHAR(160),EZ$1))+1),\"\")","v":""},{"$f":"IFERROR(MID($J31,FIND(CHAR(160),SUBSTITUTE($J31,\"{\",CHAR(160),FA$1)),FIND(CHAR(160),SUBSTITUTE($J31,\"}\",CHAR(160),FA$1))-FIND(CHAR(160),SUBSTITUTE($J31,\"{\",CHAR(160),FA$1))+1),\"\")","v":""},{"$f":"IFERROR(MID($J31,FIND(CHAR(160),SUBSTITUTE($J31,\"{\",CHAR(160),FB$1)),FIND(CHAR(160),SUBSTITUTE($J31,\"}\",CHAR(160),FB$1))-FIND(CHAR(160),SUBSTITUTE($J31,\"{\",CHAR(160),FB$1))+1),\"\")","v":""},{"$f":"IFERROR(MID($O31,FIND(CHAR(160),SUBSTITUTE($O31,\"{\",CHAR(160),FC$1)),FIND(CHAR(160),SUBSTITUTE($O31,\"}\",CHAR(160),FC$1))-FIND(CHAR(160),SUBSTITUTE($O31,\"{\",CHAR(160),FC$1))+1),\"\")","v":""},{"$f":"IFERROR(MID($O31,FIND(CHAR(160),SUBSTITUTE($O31,\"{\",CHAR(160),FD$1)),FIND(CHAR(160),SUBSTITUTE($O31,\"}\",CHAR(160),FD$1))-FIND(CHAR(160),SUBSTITUTE($O31,\"{\",CHAR(160),FD$1))+1),\"\")","v":""},{"$f":"IFERROR(MID($O31,FIND(CHAR(160),SUBSTITUTE($O31,\"{\",CHAR(160),FE$1)),FIND(CHAR(160),SUBSTITUTE($O31,\"}\",CHAR(160),FE$1))-FIND(CHAR(160),SUBSTITUTE($O31,\"{\",CHAR(160),FE$1))+1),\"\")","v":""},{"$f":"IFERROR(MID($O31,FIND(CHAR(160),SUBSTITUTE($O31,\"{\",CHAR(160),FF$1)),FIND(CHAR(160),SUBSTITUTE($O31,\"}\",CHAR(160),FF$1))-FIND(CHAR(160),SUBSTITUTE($O31,\"{\",CHAR(160),FF$1))+1),\"\")","v":""},{"$f":"IFERROR(MID($O31,FIND(CHAR(160),SUBSTITUTE($O31,\"{\",CHAR(160),FG$1)),FIND(CHAR(160),SUBSTITUTE($O31,\"}\",CHAR(160),FG$1))-FIND(CHAR(160),SUBSTITUTE($O31,\"{\",CHAR(160),FG$1))+1),\"\")","v":""},{"$f":"IFERROR(MID($O31,FIND(CHAR(160),SUBSTITUTE($O31,\"{\",CHAR(160),FH$1)),FIND(CHAR(160),SUBSTITUTE($O31,\"}\",CHAR(160),FH$1))-FIND(CHAR(160),SUBSTITUTE($O31,\"{\",CHAR(160),FH$1))+1),\"\")","v":""},{"$f":"IFERROR(MID($O31,FIND(CHAR(160),SUBSTITUTE($O31,\"{\",CHAR(160),FI$1)),FIND(CHAR(160),SUBSTITUTE($O31,\"}\",CHAR(160),FI$1))-FIND(CHAR(160),SUBSTITUTE($O31,\"{\",CHAR(160),FI$1))+1),\"\")","v":""},{"$f":"IFERROR(MID($O31,FIND(CHAR(160),SUBSTITUTE($O31,\"{\",CHAR(160),FJ$1)),FIND(CHAR(160),SUBSTITUTE($O31,\"}\",CHAR(160),FJ$1))-FIND(CHAR(160),SUBSTITUTE($O31,\"{\",CHAR(160),FJ$1))+1),\"\")","v":""},{"$f":"IFERROR(MID($O31,FIND(CHAR(160),SUBSTITUTE($O31,\"{\",CHAR(160),FK$1)),FIND(CHAR(160),SUBSTITUTE($O31,\"}\",CHAR(160),FK$1))-FIND(CHAR(160),SUBSTITUTE($O31,\"{\",CHAR(160),FK$1))+1),\"\")","v":"{Measure:Quantity}"},{"$f":"IFERROR(MID($O31,FIND(CHAR(160),SUBSTITUTE($O31,\"{\",CHAR(160),FL$1)),FIND(CHAR(160),SUBSTITUTE($O31,\"}\",CHAR(160),FL$1))-FIND(CHAR(160),SUBSTITUTE($O31,\"{\",CHAR(160),FL$1))+1),\"\")","v":""},{"$f":"IFERROR(MID($R31,FIND(CHAR(160),SUBSTITUTE($R31,\"{\",CHAR(160),FM$1)),FIND(CHAR(160),SUBSTITUTE($R31,\"}\",CHAR(160),FM$1))-FIND(CHAR(160),SUBSTITUTE($R31,\"{\",CHAR(160),FM$1))+1),\"\")","v":""},{"$f":"IFERROR(MID($R31,FIND(CHAR(160),SUBSTITUTE($R31,\"{\",CHAR(160),FN$1)),FIND(CHAR(160),SUBSTITUTE($R31,\"}\",CHAR(160),FN$1))-FIND(CHAR(160),SUBSTITUTE($R31,\"{\",CHAR(160),FN$1))+1),\"\")","v":""},{"$f":"IFERROR(MID($R31,FIND(CHAR(160),SUBSTITUTE($R31,\"{\",CHAR(160),FO$1)),FIND(CHAR(160),SUBSTITUTE($R31,\"}\",CHAR(160),FO$1))-FIND(CHAR(160),SUBSTITUTE($R31,\"{\",CHAR(160),FO$1))+1),\"\")","v":""},{"$f":"IFERROR(MID($R31,FIND(CHAR(160),SUBSTITUTE($R31,\"{\",CHAR(160),FP$1)),FIND(CHAR(160),SUBSTITUTE($R31,\"}\",CHAR(160),FP$1))-FIND(CHAR(160),SUBSTITUTE($R31,\"{\",CHAR(160),FP$1))+1),\"\")","v":""},{"$f":"IFERROR(MID($R31,FIND(CHAR(160),SUBSTITUTE($R31,\"{\",CHAR(160),FQ$1)),FIND(CHAR(160),SUBSTITUTE($R31,\"}\",CHAR(160),FQ$1))-FIND(CHAR(160),SUBSTITUTE($R31,\"{\",CHAR(160),FQ$1))+1),\"\")","v":""},{"$f":"IFERROR(MID($R31,FIND(CHAR(160),SUBSTITUTE($R31,\"{\",CHAR(160),FR$1)),FIND(CHAR(160),SUBSTITUTE($R31,\"}\",CHAR(160),FR$1))-FIND(CHAR(160),SUBSTITUTE($R31,\"{\",CHAR(160),FR$1))+1),\"\")","v":""},{"$f":"IFERROR(MID($R31,FIND(CHAR(160),SUBSTITUTE($R31,\"{\",CHAR(160),FS$1)),FIND(CHAR(160),SUBSTITUTE($R31,\"}\",CHAR(160),FS$1))-FIND(CHAR(160),SUBSTITUTE($R31,\"{\",CHAR(160),FS$1))+1),\"\")","v":""},{"$f":"IFERROR(MID($R31,FIND(CHAR(160),SUBSTITUTE($R31,\"{\",CHAR(160),FT$1)),FIND(CHAR(160),SUBSTITUTE($R31,\"}\",CHAR(160),FT$1))-FIND(CHAR(160),SUBSTITUTE($R31,\"{\",CHAR(160),FT$1))+1),\"\")","v":""},{"$f":"IFERROR(MID($R31,FIND(CHAR(160),SUBSTITUTE($R31,\"{\",CHAR(160),FU$1)),FIND(CHAR(160),SUBSTITUTE($R31,\"}\",CHAR(160),FU$1))-FIND(CHAR(160),SUBSTITUTE($R31,\"{\",CHAR(160),FU$1))+1),\"\")","v":"{Measure:Quantity}"},{"$f":"IFERROR(MID($R31,FIND(CHAR(160),SUBSTITUTE($R31,\"{\",CHAR(160),FV$1)),FIND(CHAR(160),SUBSTITUTE($R31,\"}\",CHAR(160),FV$1))-FIND(CHAR(160),SUBSTITUTE($R31,\"{\",CHAR(160),FV$1))+1),\"\")","v":""},{"$f":"IFERROR(MID($U31,FIND(CHAR(160),SUBSTITUTE($U31,\"{\",CHAR(160),FW$1)),FIND(CHAR(160),SUBSTITUTE($U31,\"}\",CHAR(160),FW$1))-FIND(CHAR(160),SUBSTITUTE($U31,\"{\",CHAR(160),FW$1))+1),\"\")","v":""},{"$f":"IFERROR(MID($U31,FIND(CHAR(160),SUBSTITUTE($U31,\"{\",CHAR(160),FX$1)),FIND(CHAR(160),SUBSTITUTE($U31,\"}\",CHAR(160),FX$1))-FIND(CHAR(160),SUBSTITUTE($U31,\"{\",CHAR(160),FX$1))+1),\"\")","v":""},{"$f":"IFERROR(MID($U31,FIND(CHAR(160),SUBSTITUTE($U31,\"{\",CHAR(160),FY$1)),FIND(CHAR(160),SUBSTITUTE($U31,\"}\",CHAR(160),FY$1))-FIND(CHAR(160),SUBSTITUTE($U31,\"{\",CHAR(160),FY$1))+1),\"\")","v":""},{"$f":"IFERROR(MID($U31,FIND(CHAR(160),SUBSTITUTE($U31,\"{\",CHAR(160),FZ$1)),FIND(CHAR(160),SUBSTITUTE($U31,\"}\",CHAR(160),FZ$1))-FIND(CHAR(160),SUBSTITUTE($U31,\"{\",CHAR(160),FZ$1))+1),\"\")","v":""},{"$f":"IFERROR(MID($U31,FIND(CHAR(160),SUBSTITUTE($U31,\"{\",CHAR(160),GA$1)),FIND(CHAR(160),SUBSTITUTE($U31,\"}\",CHAR(160),GA$1))-FIND(CHAR(160),SUBSTITUTE($U31,\"{\",CHAR(160),GA$1))+1),\"\")","v":""},{"$f":"IFERROR(MID($U31,FIND(CHAR(160),SUBSTITUTE($U31,\"{\",CHAR(160),GB$1)),FIND(CHAR(160),SUBSTITUTE($U31,\"}\",CHAR(160),GB$1))-FIND(CHAR(160),SUBSTITUTE($U31,\"{\",CHAR(160),GB$1))+1),\"\")","v":""},{"$f":"IFERROR(MID($U31,FIND(CHAR(160),SUBSTITUTE($U31,\"{\",CHAR(160),GC$1)),FIND(CHAR(160),SUBSTITUTE($U31,\"}\",CHAR(160),GC$1))-FIND(CHAR(160),SUBSTITUTE($U31,\"{\",CHAR(160),GC$1))+1),\"\")","v":""},{"$f":"IFERROR(MID($U31,FIND(CHAR(160),SUBSTITUTE($U31,\"{\",CHAR(160),GD$1)),FIND(CHAR(160),SUBSTITUTE($U31,\"}\",CHAR(160),GD$1))-FIND(CHAR(160),SUBSTITUTE($U31,\"{\",CHAR(160),GD$1))+1),\"\")","v":""},{"$f":"IFERROR(MID($U31,FIND(CHAR(160),SUBSTITUTE($U31,\"{\",CHAR(160),GE$1)),FIND(CHAR(160),SUBSTITUTE($U31,\"}\",CHAR(160),GE$1))-FIND(CHAR(160),SUBSTITUTE($U31,\"{\",CHAR(160),GE$1))+1),\"\")","v":"{Measure:Quantity}"},{"$f":"IFERROR(MID($U31,FIND(CHAR(160),SUBSTITUTE($U31,\"{\",CHAR(160),GF$1)),FIND(CHAR(160),SUBSTITUTE($U31,\"}\",CHAR(160),GF$1))-FIND(CHAR(160),SUBSTITUTE($U31,\"{\",CHAR(160),GF$1))+1),\"\")","v":"{Factor:WinterCF}"},{"$f":"IFERROR(MID($V31,FIND(CHAR(160),SUBSTITUTE($V31,\"{\",CHAR(160),GG$1)),FIND(CHAR(160),SUBSTITUTE($V31,\"}\",CHAR(160),GG$1))-FIND(CHAR(160),SUBSTITUTE($V31,\"{\",CHAR(160),GG$1))+1),\"\")","v":""},{"$f":"IFERROR(MID($V31,FIND(CHAR(160),SUBSTITUTE($V31,\"{\",CHAR(160),GH$1)),FIND(CHAR(160),SUBSTITUTE($V31,\"}\",CHAR(160),GH$1))-FIND(CHAR(160),SUBSTITUTE($V31,\"{\",CHAR(160),GH$1))+1),\"\")","v":""},{"$f":"IFERROR(MID($V31,FIND(CHAR(160),SUBSTITUTE($V31,\"{\",CHAR(160),GI$1)),FIND(CHAR(160),SUBSTITUTE($V31,\"}\",CHAR(160),GI$1))-FIND(CHAR(160),SUBSTITUTE($V31,\"{\",CHAR(160),GI$1))+1),\"\")","v":""},{"$f":"IFERROR(MID($V31,FIND(CHAR(160),SUBSTITUTE($V31,\"{\",CHAR(160),GJ$1)),FIND(CHAR(160),SUBSTITUTE($V31,\"}\",CHAR(160),GJ$1))-FIND(CHAR(160),SUBSTITUTE($V31,\"{\",CHAR(160),GJ$1))+1),\"\")","v":""},{"$f":"IFERROR(MID($V31,FIND(CHAR(160),SUBSTITUTE($V31,\"{\",CHAR(160),GK$1)),FIND(CHAR(160),SUBSTITUTE($V31,\"}\",CHAR(160),GK$1))-FIND(CHAR(160),SUBSTITUTE($V31,\"{\",CHAR(160),GK$1))+1),\"\")","v":""},{"$f":"IFERROR(MID($V31,FIND(CHAR(160),SUBSTITUTE($V31,\"{\",CHAR(160),GL$1)),FIND(CHAR(160),SUBSTITUTE($V31,\"}\",CHAR(160),GL$1))-FIND(CHAR(160),SUBSTITUTE($V31,\"{\",CHAR(160),GL$1))+1),\"\")","v":""},{"$f":"IFERROR(MID($V31,FIND(CHAR(160),SUBSTITUTE($V31,\"{\",CHAR(160),GM$1)),FIND(CHAR(160),SUBSTITUTE($V31,\"}\",CHAR(160),GM$1))-FIND(CHAR(160),SUBSTITUTE($V31,\"{\",CHAR(160),GM$1))+1),\"\")","v":""},{"$f":"IFERROR(MID($V31,FIND(CHAR(160),SUBSTITUTE($V31,\"{\",CHAR(160),GN$1)),FIND(CHAR(160),SUBSTITUTE($V31,\"}\",CHAR(160),GN$1))-FIND(CHAR(160),SUBSTITUTE($V31,\"{\",CHAR(160),GN$1))+1),\"\")","v":""},{"$f":"IFERROR(MID($V31,FIND(CHAR(160),SUBSTITUTE($V31,\"{\",CHAR(160),GO$1)),FIND(CHAR(160),SUBSTITUTE($V31,\"}\",CHAR(160),GO$1))-FIND(CHAR(160),SUBSTITUTE($V31,\"{\",CHAR(160),GO$1))+1),\"\")","v":"{Measure:Quantity}"},{"$f":"IFERROR(MID($V31,FIND(CHAR(160),SUBSTITUTE($V31,\"{\",CHAR(160),GP$1)),FIND(CHAR(160),SUBSTITUTE($V31,\"}\",CHAR(160),GP$1))-FIND(CHAR(160),SUBSTITUTE($V31,\"{\",CHAR(160),GP$1))+1),\"\")","v":"{Factor:SummerCF}"},{"$f":"IFERROR(MID($W31,FIND(CHAR(160),SUBSTITUTE($W31,\"{\",CHAR(160),GQ$1)),FIND(CHAR(160),SUBSTITUTE($W31,\"}\",CHAR(160),GQ$1))-FIND(CHAR(160),SUBSTITUTE($W31,\"{\",CHAR(160),GQ$1))+1),\"\")","v":""},{"$f":"IFERROR(MID($W31,FIND(CHAR(160),SUBSTITUTE($W31,\"{\",CHAR(160),GR$1)),FIND(CHAR(160),SUBSTITUTE($W31,\"}\",CHAR(160),GR$1))-FIND(CHAR(160),SUBSTITUTE($W31,\"{\",CHAR(160),GR$1))+1),\"\")","v":""},{"$f":"IFERROR(MID($W31,FIND(CHAR(160),SUBSTITUTE($W31,\"{\",CHAR(160),GS$1)),FIND(CHAR(160),SUBSTITUTE($W31,\"}\",CHAR(160),GS$1))-FIND(CHAR(160),SUBSTITUTE($W31,\"{\",CHAR(160),GS$1))+1),\"\")","v":""},{"$f":"IFERROR(MID($W31,FIND(CHAR(160),SUBSTITUTE($W31,\"{\",CHAR(160),GT$1)),FIND(CHAR(160),SUBSTITUTE($W31,\"}\",CHAR(160),GT$1))-FIND(CHAR(160),SUBSTITUTE($W31,\"{\",CHAR(160),GT$1))+1),\"\")","v":""},{"$f":"IFERROR(MID($W31,FIND(CHAR(160),SUBSTITUTE($W31,\"{\",CHAR(160),GU$1)),FIND(CHAR(160),SUBSTITUTE($W31,\"}\",CHAR(160),GU$1))-FIND(CHAR(160),SUBSTITUTE($W31,\"{\",CHAR(160),GU$1))+1),\"\")","v":""},{"$f":"IFERROR(MID($W31,FIND(CHAR(160),SUBSTITUTE($W31,\"{\",CHAR(160),GV$1)),FIND(CHAR(160),SUBSTITUTE($W31,\"}\",CHAR(160),GV$1))-FIND(CHAR(160),SUBSTITUTE($W31,\"{\",CHAR(160),GV$1))+1),\"\")","v":""},{"$f":"IFERROR(MID($W31,FIND(CHAR(160),SUBSTITUTE($W31,\"{\",CHAR(160),GW$1)),FIND(CHAR(160),SUBSTITUTE($W31,\"}\",CHAR(160),GW$1))-FIND(CHAR(160),SUBSTITUTE($W31,\"{\",CHAR(160),GW$1))+1),\"\")","v":""},{"$f":"IFERROR(MID($W31,FIND(CHAR(160),SUBSTITUTE($W31,\"{\",CHAR(160),GX$1)),FIND(CHAR(160),SUBSTITUTE($W31,\"}\",CHAR(160),GX$1))-FIND(CHAR(160),SUBSTITUTE($W31,\"{\",CHAR(160),GX$1))+1),\"\")","v":""},{"$f":"IFERROR(MID($W31,FIND(CHAR(160),SUBSTITUTE($W31,\"{\",CHAR(160),GY$1)),FIND(CHAR(160),SUBSTITUTE($W31,\"}\",CHAR(160),GY$1))-FIND(CHAR(160),SUBSTITUTE($W31,\"{\",CHAR(160),GY$1))+1),\"\")","v":""},{"$f":"IFERROR(MID($W31,FIND(CHAR(160),SUBSTITUTE($W31,\"{\",CHAR(160),GZ$1)),FIND(CHAR(160),SUBSTITUTE($W31,\"}\",CHAR(160),GZ$1))-FIND(CHAR(160),SUBSTITUTE($W31,\"{\",CHAR(160),GZ$1))+1),\"\")","v":""},{"$f":"IFERROR(MID($X31,FIND(CHAR(160),SUBSTITUTE($X31,\"{\",CHAR(160),HA$1)),FIND(CHAR(160),SUBSTITUTE($X31,\"}\",CHAR(160),HA$1))-FIND(CHAR(160),SUBSTITUTE($X31,\"{\",CHAR(160),HA$1))+1),\"\")","v":""},{"$f":"IFERROR(MID($X31,FIND(CHAR(160),SUBSTITUTE($X31,\"{\",CHAR(160),HB$1)),FIND(CHAR(160),SUBSTITUTE($X31,\"}\",CHAR(160),HB$1))-FIND(CHAR(160),SUBSTITUTE($X31,\"{\",CHAR(160),HB$1))+1),\"\")","v":""},{"$f":"IFERROR(MID($X31,FIND(CHAR(160),SUBSTITUTE($X31,\"{\",CHAR(160),HC$1)),FIND(CHAR(160),SUBSTITUTE($X31,\"}\",CHAR(160),HC$1))-FIND(CHAR(160),SUBSTITUTE($X31,\"{\",CHAR(160),HC$1))+1),\"\")","v":""},{"$f":"IFERROR(MID($X31,FIND(CHAR(160),SUBSTITUTE($X31,\"{\",CHAR(160),HD$1)),FIND(CHAR(160),SUBSTITUTE($X31,\"}\",CHAR(160),HD$1))-FIND(CHAR(160),SUBSTITUTE($X31,\"{\",CHAR(160),HD$1))+1),\"\")","v":""},{"$f":"IFERROR(MID($X31,FIND(CHAR(160),SUBSTITUTE($X31,\"{\",CHAR(160),HE$1)),FIND(CHAR(160),SUBSTITUTE($X31,\"}\",CHAR(160),HE$1))-FIND(CHAR(160),SUBSTITUTE($X31,\"{\",CHAR(160),HE$1))+1),\"\")","v":""},{"$f":"IFERROR(MID($X31,FIND(CHAR(160),SUBSTITUTE($X31,\"{\",CHAR(160),HF$1)),FIND(CHAR(160),SUBSTITUTE($X31,\"}\",CHAR(160),HF$1))-FIND(CHAR(160),SUBSTITUTE($X31,\"{\",CHAR(160),HF$1))+1),\"\")","v":""},{"$f":"IFERROR(MID($X31,FIND(CHAR(160),SUBSTITUTE($X31,\"{\",CHAR(160),HG$1)),FIND(CHAR(160),SUBSTITUTE($X31,\"}\",CHAR(160),HG$1))-FIND(CHAR(160),SUBSTITUTE($X31,\"{\",CHAR(160),HG$1))+1),\"\")","v":""},{"$f":"IFERROR(MID($X31,FIND(CHAR(160),SUBSTITUTE($X31,\"{\",CHAR(160),HH$1)),FIND(CHAR(160),SUBSTITUTE($X31,\"}\",CHAR(160),HH$1))-FIND(CHAR(160),SUBSTITUTE($X31,\"{\",CHAR(160),HH$1))+1),\"\")","v":""},{"$f":"IFERROR(MID($X31,FIND(CHAR(160),SUBSTITUTE($X31,\"{\",CHAR(160),HI$1)),FIND(CHAR(160),SUBSTITUTE($X31,\"}\",CHAR(160),HI$1))-FIND(CHAR(160),SUBSTITUTE($X31,\"{\",CHAR(160),HI$1))+1),\"\")","v":""},{"$f":"IFERROR(MID($X31,FIND(CHAR(160),SUBSTITUTE($X31,\"{\",CHAR(160),HJ$1)),FIND(CHAR(160),SUBSTITUTE($X31,\"}\",CHAR(160),HJ$1))-FIND(CHAR(160),SUBSTITUTE($X31,\"{\",CHAR(160),HJ$1))+1),\"\")","v":""},{"$f":"IFERROR(MID($Y31,FIND(CHAR(160),SUBSTITUTE($Y31,\"{\",CHAR(160),HK$1)),FIND(CHAR(160),SUBSTITUTE($Y31,\"}\",CHAR(160),HK$1))-FIND(CHAR(160),SUBSTITUTE($Y31,\"{\",CHAR(160),HK$1))+1),\"\")","v":""},{"$f":"IFERROR(MID($Y31,FIND(CHAR(160),SUBSTITUTE($Y31,\"{\",CHAR(160),HL$1)),FIND(CHAR(160),SUBSTITUTE($Y31,\"}\",CHAR(160),HL$1))-FIND(CHAR(160),SUBSTITUTE($Y31,\"{\",CHAR(160),HL$1))+1),\"\")","v":""},{"$f":"IFERROR(MID($Y31,FIND(CHAR(160),SUBSTITUTE($Y31,\"{\",CHAR(160),HM$1)),FIND(CHAR(160),SUBSTITUTE($Y31,\"}\",CHAR(160),HM$1))-FIND(CHAR(160),SUBSTITUTE($Y31,\"{\",CHAR(160),HM$1))+1),\"\")","v":""},{"$f":"IFERROR(MID($Y31,FIND(CHAR(160),SUBSTITUTE($Y31,\"{\",CHAR(160),HN$1)),FIND(CHAR(160),SUBSTITUTE($Y31,\"}\",CHAR(160),HN$1))-FIND(CHAR(160),SUBSTITUTE($Y31,\"{\",CHAR(160),HN$1))+1),\"\")","v":""},{"$f":"IFERROR(MID($Y31,FIND(CHAR(160),SUBSTITUTE($Y31,\"{\",CHAR(160),HO$1)),FIND(CHAR(160),SUBSTITUTE($Y31,\"}\",CHAR(160),HO$1))-FIND(CHAR(160),SUBSTITUTE($Y31,\"{\",CHAR(160),HO$1))+1),\"\")","v":""},{"$f":"IFERROR(MID($Y31,FIND(CHAR(160),SUBSTITUTE($Y31,\"{\",CHAR(160),HP$1)),FIND(CHAR(160),SUBSTITUTE($Y31,\"}\",CHAR(160),HP$1))-FIND(CHAR(160),SUBSTITUTE($Y31,\"{\",CHAR(160),HP$1))+1),\"\")","v":""},{"$f":"IFERROR(MID($Y31,FIND(CHAR(160),SUBSTITUTE($Y31,\"{\",CHAR(160),HQ$1)),FIND(CHAR(160),SUBSTITUTE($Y31,\"}\",CHAR(160),HQ$1))-FIND(CHAR(160),SUBSTITUTE($Y31,\"{\",CHAR(160),HQ$1))+1),\"\")","v":""},{"$f":"IFERROR(MID($Y31,FIND(CHAR(160),SUBSTITUTE($Y31,\"{\",CHAR(160),HR$1)),FIND(CHAR(160),SUBSTITUTE($Y31,\"}\",CHAR(160),HR$1))-FIND(CHAR(160),SUBSTITUTE($Y31,\"{\",CHAR(160),HR$1))+1),\"\")","v":""},{"$f":"IFERROR(MID($Y31,FIND(CHAR(160),SUBSTITUTE($Y31,\"{\",CHAR(160),HS$1)),FIND(CHAR(160),SUBSTITUTE($Y31,\"}\",CHAR(160),HS$1))-FIND(CHAR(160),SUBSTITUTE($Y31,\"{\",CHAR(160),HS$1))+1),\"\")","v":""},{"$f":"IFERROR(MID($Y31,FIND(CHAR(160),SUBSTITUTE($Y31,\"{\",CHAR(160),HT$1)),FIND(CHAR(160),SUBSTITUTE($Y31,\"}\",CHAR(160),HT$1))-FIND(CHAR(160),SUBSTITUTE($Y31,\"{\",CHAR(160),HT$1))+1),\"\")","v":""},{"$f":"IFERROR(MID($Z31,FIND(CHAR(160),SUBSTITUTE($Z31,\"{\",CHAR(160),HU$1)),FIND(CHAR(160),SUBSTITUTE($Z31,\"}\",CHAR(160),HU$1))-FIND(CHAR(160),SUBSTITUTE($Z31,\"{\",CHAR(160),HU$1))+1),\"\")","v":""},{"$f":"IFERROR(MID($Z31,FIND(CHAR(160),SUBSTITUTE($Z31,\"{\",CHAR(160),HV$1)),FIND(CHAR(160),SUBSTITUTE($Z31,\"}\",CHAR(160),HV$1))-FIND(CHAR(160),SUBSTITUTE($Z31,\"{\",CHAR(160),HV$1))+1),\"\")","v":""},{"$f":"IFERROR(MID($Z31,FIND(CHAR(160),SUBSTITUTE($Z31,\"{\",CHAR(160),HW$1)),FIND(CHAR(160),SUBSTITUTE($Z31,\"}\",CHAR(160),HW$1))-FIND(CHAR(160),SUBSTITUTE($Z31,\"{\",CHAR(160),HW$1))+1),\"\")","v":""},{"$f":"IFERROR(MID($Z31,FIND(CHAR(160),SUBSTITUTE($Z31,\"{\",CHAR(160),HX$1)),FIND(CHAR(160),SUBSTITUTE($Z31,\"}\",CHAR(160),HX$1))-FIND(CHAR(160),SUBSTITUTE($Z31,\"{\",CHAR(160),HX$1))+1),\"\")","v":""},{"$f":"IFERROR(MID($Z31,FIND(CHAR(160),SUBSTITUTE($Z31,\"{\",CHAR(160),HY$1)),FIND(CHAR(160),SUBSTITUTE($Z31,\"}\",CHAR(160),HY$1))-FIND(CHAR(160),SUBSTITUTE($Z31,\"{\",CHAR(160),HY$1))+1),\"\")","v":""},{"$f":"IFERROR(MID($Z31,FIND(CHAR(160),SUBSTITUTE($Z31,\"{\",CHAR(160),HZ$1)),FIND(CHAR(160),SUBSTITUTE($Z31,\"}\",CHAR(160),HZ$1))-FIND(CHAR(160),SUBSTITUTE($Z31,\"{\",CHAR(160),HZ$1))+1),\"\")","v":""},{"$f":"IFERROR(MID($Z31,FIND(CHAR(160),SUBSTITUTE($Z31,\"{\",CHAR(160),IA$1)),FIND(CHAR(160),SUBSTITUTE($Z31,\"}\",CHAR(160),IA$1))-FIND(CHAR(160),SUBSTITUTE($Z31,\"{\",CHAR(160),IA$1))+1),\"\")","v":""},{"$f":"IFERROR(MID($Z31,FIND(CHAR(160),SUBSTITUTE($Z31,\"{\",CHAR(160),IB$1)),FIND(CHAR(160),SUBSTITUTE($Z31,\"}\",CHAR(160),IB$1))-FIND(CHAR(160),SUBSTITUTE($Z31,\"{\",CHAR(160),IB$1))+1),\"\")","v":""},{"$f":"IFERROR(MID($Z31,FIND(CHAR(160),SUBSTITUTE($Z31,\"{\",CHAR(160),IC$1)),FIND(CHAR(160),SUBSTITUTE($Z31,\"}\",CHAR(160),IC$1))-FIND(CHAR(160),SUBSTITUTE($Z31,\"{\",CHAR(160),IC$1))+1),\"\")","v":""},{"$f":"IFERROR(MID($Z31,FIND(CHAR(160),SUBSTITUTE($Z31,\"{\",CHAR(160),ID$1)),FIND(CHAR(160),SUBSTITUTE($Z31,\"}\",CHAR(160),ID$1))-FIND(CHAR(160),SUBSTITUTE($Z31,\"{\",CHAR(160),ID$1))+1),\"\")","v":""},{"$f":"IFERROR(MID($AA31,FIND(CHAR(160),SUBSTITUTE($AA31,\"{\",CHAR(160),IE$1)),FIND(CHAR(160),SUBSTITUTE($AA31,\"}\",CHAR(160),IE$1))-FIND(CHAR(160),SUBSTITUTE($AA31,\"{\",CHAR(160),IE$1))+1),\"\")","v":""},{"$f":"IFERROR(MID($AA31,FIND(CHAR(160),SUBSTITUTE($AA31,\"{\",CHAR(160),IF$1)),FIND(CHAR(160),SUBSTITUTE($AA31,\"}\",CHAR(160),IF$1))-FIND(CHAR(160),SUBSTITUTE($AA31,\"{\",CHAR(160),IF$1))+1),\"\")","v":""},{"$f":"IFERROR(MID($AA31,FIND(CHAR(160),SUBSTITUTE($AA31,\"{\",CHAR(160),IG$1)),FIND(CHAR(160),SUBSTITUTE($AA31,\"}\",CHAR(160),IG$1))-FIND(CHAR(160),SUBSTITUTE($AA31,\"{\",CHAR(160),IG$1))+1),\"\")","v":""},{"$f":"IFERROR(MID($AA31,FIND(CHAR(160),SUBSTITUTE($AA31,\"{\",CHAR(160),IH$1)),FIND(CHAR(160),SUBSTITUTE($AA31,\"}\",CHAR(160),IH$1))-FIND(CHAR(160),SUBSTITUTE($AA31,\"{\",CHAR(160),IH$1))+1),\"\")","v":""},{"$f":"IFERROR(MID($AA31,FIND(CHAR(160),SUBSTITUTE($AA31,\"{\",CHAR(160),II$1)),FIND(CHAR(160),SUBSTITUTE($AA31,\"}\",CHAR(160),II$1))-FIND(CHAR(160),SUBSTITUTE($AA31,\"{\",CHAR(160),II$1))+1),\"\")","v":""},{"$f":"IFERROR(MID($AA31,FIND(CHAR(160),SUBSTITUTE($AA31,\"{\",CHAR(160),IJ$1)),FIND(CHAR(160),SUBSTITUTE($AA31,\"}\",CHAR(160),IJ$1))-FIND(CHAR(160),SUBSTITUTE($AA31,\"{\",CHAR(160),IJ$1))+1),\"\")","v":""},{"$f":"IFERROR(MID($AA31,FIND(CHAR(160),SUBSTITUTE($AA31,\"{\",CHAR(160),IK$1)),FIND(CHAR(160),SUBSTITUTE($AA31,\"}\",CHAR(160),IK$1))-FIND(CHAR(160),SUBSTITUTE($AA31,\"{\",CHAR(160),IK$1))+1),\"\")","v":""},{"$f":"IFERROR(MID($AA31,FIND(CHAR(160),SUBSTITUTE($AA31,\"{\",CHAR(160),IL$1)),FIND(CHAR(160),SUBSTITUTE($AA31,\"}\",CHAR(160),IL$1))-FIND(CHAR(160),SUBSTITUTE($AA31,\"{\",CHAR(160),IL$1))+1),\"\")","v":""},{"$f":"IFERROR(MID($AA31,FIND(CHAR(160),SUBSTITUTE($AA31,\"{\",CHAR(160),IM$1)),FIND(CHAR(160),SUBSTITUTE($AA31,\"}\",CHAR(160),IM$1))-FIND(CHAR(160),SUBSTITUTE($AA31,\"{\",CHAR(160),IM$1))+1),\"\")","v":""},{"$f":"IFERROR(MID($AA31,FIND(CHAR(160),SUBSTITUTE($AA31,\"{\",CHAR(160),IN$1)),FIND(CHAR(160),SUBSTITUTE($AA31,\"}\",CHAR(160),IN$1))-FIND(CHAR(160),SUBSTITUTE($AA31,\"{\",CHAR(160),IN$1))+1),\"\")","v":""},{"$f":"IFERROR(MID($AB31,FIND(CHAR(160),SUBSTITUTE($AB31,\"{\",CHAR(160),IO$1)),FIND(CHAR(160),SUBSTITUTE($AB31,\"}\",CHAR(160),IO$1))-FIND(CHAR(160),SUBSTITUTE($AB31,\"{\",CHAR(160),IO$1))+1),\"\")","v":""},{"$f":"IFERROR(MID($AB31,FIND(CHAR(160),SUBSTITUTE($AB31,\"{\",CHAR(160),IP$1)),FIND(CHAR(160),SUBSTITUTE($AB31,\"}\",CHAR(160),IP$1))-FIND(CHAR(160),SUBSTITUTE($AB31,\"{\",CHAR(160),IP$1))+1),\"\")","v":""},{"$f":"IFERROR(MID($AB31,FIND(CHAR(160),SUBSTITUTE($AB31,\"{\",CHAR(160),IQ$1)),FIND(CHAR(160),SUBSTITUTE($AB31,\"}\",CHAR(160),IQ$1))-FIND(CHAR(160),SUBSTITUTE($AB31,\"{\",CHAR(160),IQ$1))+1),\"\")","v":""},{"$f":"IFERROR(MID($AB31,FIND(CHAR(160),SUBSTITUTE($AB31,\"{\",CHAR(160),IR$1)),FIND(CHAR(160),SUBSTITUTE($AB31,\"}\",CHAR(160),IR$1))-FIND(CHAR(160),SUBSTITUTE($AB31,\"{\",CHAR(160),IR$1))+1),\"\")","v":""},{"$f":"IFERROR(MID($AB31,FIND(CHAR(160),SUBSTITUTE($AB31,\"{\",CHAR(160),IS$1)),FIND(CHAR(160),SUBSTITUTE($AB31,\"}\",CHAR(160),IS$1))-FIND(CHAR(160),SUBSTITUTE($AB31,\"{\",CHAR(160),IS$1))+1),\"\")","v":""},{"$f":"IFERROR(MID($AB31,FIND(CHAR(160),SUBSTITUTE($AB31,\"{\",CHAR(160),IT$1)),FIND(CHAR(160),SUBSTITUTE($AB31,\"}\",CHAR(160),IT$1))-FIND(CHAR(160),SUBSTITUTE($AB31,\"{\",CHAR(160),IT$1))+1),\"\")","v":""},{"$f":"IFERROR(MID($AB31,FIND(CHAR(160),SUBSTITUTE($AB31,\"{\",CHAR(160),IU$1)),FIND(CHAR(160),SUBSTITUTE($AB31,\"}\",CHAR(160),IU$1))-FIND(CHAR(160),SUBSTITUTE($AB31,\"{\",CHAR(160),IU$1))+1),\"\")","v":""},{"$f":"IFERROR(MID($AB31,FIND(CHAR(160),SUBSTITUTE($AB31,\"{\",CHAR(160),IV$1)),FIND(CHAR(160),SUBSTITUTE($AB31,\"}\",CHAR(160),IV$1))-FIND(CHAR(160),SUBSTITUTE($AB31,\"{\",CHAR(160),IV$1))+1),\"\")","v":""},{"$f":"IFERROR(MID($AB31,FIND(CHAR(160),SUBSTITUTE($AB31,\"{\",CHAR(160),IW$1)),FIND(CHAR(160),SUBSTITUTE($AB31,\"}\",CHAR(160),IW$1))-FIND(CHAR(160),SUBSTITUTE($AB31,\"{\",CHAR(160),IW$1))+1),\"\")","v":""},{"$f":"IFERROR(MID($AB31,FIND(CHAR(160),SUBSTITUTE($AB31,\"{\",CHAR(160),IX$1)),FIND(CHAR(160),SUBSTITUTE($AB31,\"}\",CHAR(160),IX$1))-FIND(CHAR(160),SUBSTITUTE($AB31,\"{\",CHAR(160),IX$1))+1),\"\")","v":""},null,{"$f":"10-COUNTIF(DU31:ED31,\"\")","v":1}]
["C&I Agricultural Solutions","MILK: Scroll Compressor - 7.5 HP","AMSC - AMSC7.5","2021-07-01","2022-06-30","Per Measure",1538,0,"Per Measure",825,0,"2016-07-01","2022-06-30","Calculated","432 * 7.5 * {Measure:Quantity}",1E-4,null,"((432 * 7.5) /2850) * {Measure:Quantity}",null,null,"(((432 * 7.5) /2850) * {Measure:Quantity}) *{Factor:WinterCF}","(((432 * 7.5) /2850) * {Measure:Quantity}) *{Factor:SummerCF}",null,null,null,null,null,null,"2020-04-01","2022-06-30",15,0.67400000000000004,0.32700000000000001,0.436,0.23200000000000001,0.217,0.115,1,1.1220000000000001,1,0.52,1.6E-2,null,{"$f":"DU32","v":"{Measure:Quantity}"},1,{"$f":"DV32","v":""},null,{"$f":"DW32","v":""},null,{"$f":"DX32","v":""},null,{"$f":"DY32","v":""},null,{"$f":"DZ32","v":""},null,{"$f":"EA32","v":""},null,{"$f":"EB32","v":""},null,{"$f":"EC32","v":""},null,{"$f":"ED32","v":""},null,{"$f":"432 * 7.5 * AS32","v":3240},{"$f":"0.0001","v":1E-4},0,{"$f":"((432 * 7.5) /2850) * AS32","v":1.1368421052631579},0,0,{"$f":"(((432 * 7.5) /2850) * AS32) *AF32","v":0.76623157894736849},{"$f":"(((432 * 7.5) /2850) * AS32) *AG32","v":0.37174736842105266},0,0,0,0,0,0,null,"Res","Default DR",{"$f":"Benefits(BL32,BR32,BS32,BT32,BU32,BV32,BW32,BX32,BY32,BZ32,AE32,AH32,AI32,AJ32,AK32,AL32,AM32,AN32,AO32,AP32,CA32,CB32)","v":4841.2152204324966},3585.281521930674,0,0,0,0,0,0,0,{"$f":"SUMPRODUCT(CC32:CK32,--(CC32:CK32>0))","v":8426.4967423631715},{"$f":"-SUMPRODUCT(CC32:CK32,--(CC32:CK32<0))","v":0},null,{"$f":"1538","v":1538},null,null,{"$f":"CM32+CO32","v":1538},{"$f":"IF(NetOrGross=\"Net\",(1-AO32+AP32),1)","v":1},{"$f":"(SUMPRODUCT(CC32:CJ32,--(CC32:CJ32>0))+CN32)*CS32/((-SUMPRODUCT(CC32:CJ32,--(CC32:CJ32<0))+MAX(CO32,CV32)+CP32+CQ32)*CS32+IF(FRIncentives=\"Yes\",CV32*(1-CS32),0))","v":5.4788665424988112},1,{"$f":"825","v":825},null,"Electric","y",null,{"$f":"IF(F32=\"Manual Entry\",\"Manual\",IF(G32=\"\",0,\"X=\"&SUBSTITUTE(SUBSTITUTE(SUBSTITUTE(SUBSTITUTE(SUBSTITUTE(SUBSTITUTE(SUBSTITUTE(SUBSTITUTE(SUBSTITUTE(SUBSTITUTE(SUBSTITUTE(SUBSTITUTE(G32,$ED32,$ED$2&ROW($ED32)),$EC32,$EC$2&ROW($EC32)),$EB32,$EB$2&ROW($EB32)),$EA32,$EA$2&ROW($EA32)),$DZ32,$DZ$2&ROW($DZ32)),$DY32,$DY$2&ROW($DY32)),$DX32,$DX$2&ROW($DX32)),$DW32,$DW$2&ROW($DW32)),$DV32,$DV$2&ROW($DV32)),$DU32,$DU$2&ROW($DU32)),$DT32,$DT$2&ROW($DT32)),$DS32,$DS$2&ROW($DS32))))","v":"X=1538"},{"$f":"IF(I32=\"Manual Entry\",\"Manual\",IF(J32=\"\",0,\"X=\"&SUBSTITUTE(SUBSTITUTE(SUBSTITUTE(SUBSTITUTE(SUBSTITUTE(SUBSTITUTE(SUBSTITUTE(SUBSTITUTE(SUBSTITUTE(SUBSTITUTE(SUBSTITUTE(SUBSTITUTE(J32,$ED32,$ED$2&ROW($ED32)),$EC32,$EC$2&ROW($EC32)),$EB32,$EB$2&ROW($EB32)),$EA32,$EA$2&ROW($EA32)),$DZ32,$DZ$2&ROW($DZ32)),$DY32,$DY$2&ROW($DY32)),$DX32,$DX$2&ROW($DX32)),$DW32,$DW$2&ROW($DW32)),$DV32,$DV$2&ROW($DV32)),$DU32,$DU$2&ROW($DU32)),$DT32,$DT$2&ROW($DT32)),$DS32,$DS$2&ROW($DS32))))","v":"X=825"},{"$f":"IF(O32=\"\",0,\"X=\"&SUBSTITUTE(SUBSTITUTE(SUBSTITUTE(SUBSTITUTE(SUBSTITUTE(SUBSTITUTE(SUBSTITUTE(SUBSTITUTE(SUBSTITUTE(SUBSTITUTE(SUBSTITUTE(SUBSTITUTE(O32,$ED32,$ED$2&ROW($ED32)),$EC32,$EC$2&ROW($EC32)),$EB32,$EB$2&ROW($EB32)),$EA32,$EA$2&ROW($EA32)),$DZ32,$DZ$2&ROW($DZ32)),$DY32,$DY$2&ROW($DY32)),$DX32,$DX$2&ROW($DX32)),$DW32,$DW$2&ROW($DW32)),$DV32,$DV$2&ROW($DV32)),$DU32,$DU$2&ROW($DU32)),$DT32,$DT$2&ROW($DT32)),$DS32,$DS$2&ROW($DS32)))","v":"X=432 * 7.5 * AS32"},{"$f":"IF(P32=\"\",0,\"X=\"&SUBSTITUTE(SUBSTITUTE(SUBSTITUTE(SUBSTITUTE(SUBSTITUTE(SUBSTITUTE(SUBSTITUTE(SUBSTITUTE(SUBSTITUTE(SUBSTITUTE(SUBSTITUTE(SUBSTITUTE(P32,$ED32,$ED$2&ROW($ED32)),$EC32,$EC$2&ROW($EC32)),$EB32,$EB$2&ROW($EB32)),$EA32,$EA$2&ROW($EA32)),$DZ32,$DZ$2&ROW($DZ32)),$DY32,$DY$2&ROW($DY32)),$DX32,$DX$2&ROW($DX32)),$DW32,$DW$2&ROW($DW32)),$DV32,$DV$2&ROW($DV32)),$DU32,$DU$2&ROW($DU32)),$DT32,$DT$2&ROW($DT32)),$DS32,$DS$2&ROW($DS32)))","v":"X=0.0001"},{"$f":"IF(Q32=\"\",0,\"X=\"&SUBSTITUTE(SUBSTITUTE(SUBSTITUTE(SUBSTITUTE(SUBSTITUTE(SUBSTITUTE(SUBSTITUTE(SUBSTITUTE(SUBSTITUTE(SUBSTITUTE(SUBSTITUTE(SUBSTITUTE(Q32,$ED32,$ED$2&ROW($ED32)),$EC32,$EC$2&ROW($EC32)),$EB32,$EB$2&ROW($EB32)),$EA32,$EA$2&ROW($EA32)),$DZ32,$DZ$2&ROW($DZ32)),$DY32,$DY$2&ROW($DY32)),$DX32,$DX$2&ROW($DX32)),$DW32,$DW$2&ROW($DW32)),$DV32,$DV$2&ROW($DV32)),$DU32,$DU$2&ROW($DU32)),$DT32,$DT$2&ROW($DT32)),$DS32,$DS$2&ROW($DS32)))","v":0},{"$f":"IF(R32=\"\",0,\"X=\"&SUBSTITUTE(SUBSTITUTE(SUBSTITUTE(SUBSTITUTE(SUBSTITUTE(SUBSTITUTE(SUBSTITUTE(SUBSTITUTE(SUBSTITUTE(SUBSTITUTE(SUBSTITUTE(SUBSTITUTE(R32,$ED32,$ED$2&ROW($ED32)),$EC32,$EC$2&ROW($EC32)),$EB32,$EB$2&ROW($EB32)),$EA32,$EA$2&ROW($EA32)),$DZ32,$DZ$2&ROW($DZ32)),$DY32,$DY$2&ROW($DY32)),$DX32,$DX$2&ROW($DX32)),$DW32,$DW$2&ROW($DW32)),$DV32,$DV$2&ROW($DV32)),$DU32,$DU$2&ROW($DU32)),$DT32,$DT$2&ROW($DT32)),$DS32,$DS$2&ROW($DS32)))","v":"X=((432 * 7.5) /2850) * AS32"},{"$f":"IF(S32=\"\",0,\"X=\"&SUBSTITUTE(SUBSTITUTE(SUBSTITUTE(SUBSTITUTE(SUBSTITUTE(SUBSTITUTE(SUBSTITUTE(SUBSTITUTE(SUBSTITUTE(SUBSTITUTE(SUBSTITUTE(SUBSTITUTE(S32,$ED32,$ED$2&ROW($ED32)),$EC32,$EC$2&ROW($EC32)),$EB32,$EB$2&ROW($EB32)),$EA32,$EA$2&ROW($EA32)),$DZ32,$DZ$2&ROW($DZ32)),$DY32,$DY$2&ROW($DY32)),$DX32,$DX$2&ROW($DX32)),$DW32,$DW$2&ROW($DW32)),$DV32,$DV$2&ROW($DV32)),$DU32,$DU$2&ROW($DU32)),$DT32,$DT$2&ROW($DT32)),$DS32,$DS$2&ROW($DS32)))","v":0},{"$f":"IF(T32=\"\",0,\"X=\"&SUBSTITUTE(SUBSTITUTE(SUBSTITUTE(SUBSTITUTE(SUBSTITUTE(SUBSTITUTE(SUBSTITUTE(SUBSTITUTE(SUBSTITUTE(SUBSTITUTE(SUBSTITUTE(SUBSTITUTE(T32,$ED32,$ED$2&ROW($ED32)),$EC32,$EC$2&ROW($EC32)),$EB32,$EB$2&ROW($EB32)),$EA32,$EA$2&ROW($EA32)),$DZ32,$DZ$2&ROW($DZ32)),$DY32,$DY$2&ROW($DY32)),$DX32,$DX$2&ROW($DX32)),$DW32,$DW$2&ROW($DW32)),$DV32,$DV$2&ROW($DV32)),$DU32,$DU$2&ROW($DU32)),$DT32,$DT$2&ROW($DT32)),$DS32,$DS$2&ROW($DS32)))","v":0},{"$f":"IF(U32=\"\",0,\"X=\"&SUBSTITUTE(SUBSTITUTE(SUBSTITUTE(SUBSTITUTE(SUBSTITUTE(SUBSTITUTE(SUBSTITUTE(SUBSTITUTE(SUBSTITUTE(SUBSTITUTE(SUBSTITUTE(SUBSTITUTE(U32,$ED32,$ED$2&ROW($ED32)),$EC32,$EC$2&ROW($EC32)),$EB32,$EB$2&ROW($EB32)),$EA32,$EA$2&ROW($EA32)),$DZ32,$DZ$2&ROW($DZ32)),$DY32,$DY$2&ROW($DY32)),$DX32,$DX$2&ROW($DX32)),$DW32,$DW$2&ROW($DW32)),$DV32,$DV$2&ROW($DV32)),$DU32,$DU$2&ROW($DU32)),$DT32,$DT$2&ROW($DT32)),$DS32,$DS$2&ROW($DS32)))","v":"X=(((432 * 7.5) /2850) * AS32) *AF32"},{"$f":"IF(V32=\"\",0,\"X=\"&SUBSTITUTE(SUBSTITUTE(SUBSTITUTE(SUBSTITUTE(SUBSTITUTE(SUBSTITUTE(SUBSTITUTE(SUBSTITUTE(SUBSTITUTE(SUBSTITUTE(SUBSTITUTE(SUBSTITUTE(V32,$ED32,$ED$2&ROW($ED32)),$EC32,$EC$2&ROW($EC32)),$EB32,$EB$2&ROW($EB32)),$EA32,$EA$2&ROW($EA32)),$DZ32,$DZ$2&ROW($DZ32)),$DY32,$DY$2&ROW($DY32)),$DX32,$DX$2&ROW($DX32)),$DW32,$DW$2&ROW($DW32)),$DV32,$DV$2&ROW($DV32)),$DU32,$DU$2&ROW($DU32)),$DT32,$DT$2&ROW($DT32)),$DS32,$DS$2&ROW($DS32)))","v":"X=(((432 * 7.5) /2850) * AS32) *AG32"},{"$f":"IF(W32=\"\",0,\"X=\"&SUBSTITUTE(SUBSTITUTE(SUBSTITUTE(SUBSTITUTE(SUBSTITUTE(SUBSTITUTE(SUBSTITUTE(SUBSTITUTE(SUBSTITUTE(SUBSTITUTE(SUBSTITUTE(SUBSTITUTE(W32,$ED32,$ED$2&ROW($ED32)),$EC32,$EC$2&ROW($EC32)),$EB32,$EB$2&ROW($EB32)),$EA32,$EA$2&ROW($EA32)),$DZ32,$DZ$2&ROW($DZ32)),$DY32,$DY$2&ROW($DY32)),$DX32,$DX$2&ROW($DX32)),$DW32,$DW$2&ROW($DW32)),$DV32,$DV$2&ROW($DV32)),$DU32,$DU$2&ROW($DU32)),$DT32,$DT$2&ROW($DT32)),$DS32,$DS$2&ROW($DS32)))","v":0},{"$f":"IF(X32=\"\",0,\"X=\"&SUBSTITUTE(SUBSTITUTE(SUBSTITUTE(SUBSTITUTE(SUBSTITUTE(SUBSTITUTE(SUBSTITUTE(SUBSTITUTE(SUBSTITUTE(SUBSTITUTE(SUBSTITUTE(SUBSTITUTE(X32,$ED32,$ED$2&ROW($ED32)),$EC32,$EC$2&ROW($EC32)),$EB32,$EB$2&ROW($EB32)),$EA32,$EA$2&ROW($EA32)),$DZ32,$DZ$2&ROW($DZ32)),$DY32,$DY$2&ROW($DY32)),$DX32,$DX$2&ROW($DX32)),$DW32,$DW$2&ROW($DW32)),$DV32,$DV$2&ROW($DV32)),$DU32,$DU$2&ROW($DU32)),$DT32,$DT$2&ROW($DT32)),$DS32,$DS$2&ROW($DS32)))","v":0},{"$f":"IF(Y32=\"\",0,\"X=\"&SUBSTITUTE(SUBSTITUTE(SUBSTITUTE(SUBSTITUTE(SUBSTITUTE(SUBSTITUTE(SUBSTITUTE(SUBSTITUTE(SUBSTITUTE(SUBSTITUTE(SUBSTITUTE(SUBSTITUTE(Y32,$ED32,$ED$2&ROW($ED32)),$EC32,$EC$2&ROW($EC32)),$EB32,$EB$2&ROW($EB32)),$EA32,$EA$2&ROW($EA32)),$DZ32,$DZ$2&ROW($DZ32)),$DY32,$DY$2&ROW($DY32)),$DX32,$DX$2&ROW($DX32)),$DW32,$DW$2&ROW($DW32)),$DV32,$DV$2&ROW($DV32)),$DU32,$DU$2&ROW($DU32)),$DT32,$DT$2&ROW($DT32)),$DS32,$DS$2&ROW($DS32)))","v":0},{"$f":"IF(Z32=\"\",0,\"X=\"&SUBSTITUTE(SUBSTITUTE(SUBSTITUTE(SUBSTITUTE(SUBSTITUTE(SUBSTITUTE(SUBSTITUTE(SUBSTITUTE(SUBSTITUTE(SUBSTITUTE(SUBSTITUTE(SUBSTITUTE(Z32,$ED32,$ED$2&ROW($ED32)),$EC32,$EC$2&ROW($EC32)),$EB32,$EB$2&ROW($EB32)),$EA32,$EA$2&ROW($EA32)),$DZ32,$DZ$2&ROW($DZ32)),$DY32,$DY$2&ROW($DY32)),$DX32,$DX$2&ROW($DX32)),$DW32,$DW$2&ROW($DW32)),$DV32,$DV$2&ROW($DV32)),$DU32,$DU$2&ROW($DU32)),$DT32,$DT$2&ROW($DT32)),$DS32,$DS$2&ROW($DS32)))","v":0},{"$f":"IF(AA32=\"\",0,\"X=\"&SUBSTITUTE(SUBSTITUTE(SUBSTITUTE(SUBSTITUTE(SUBSTITUTE(SUBSTITUTE(SUBSTITUTE(SUBSTITUTE(SUBSTITUTE(SUBSTITUTE(SUBSTITUTE(SUBSTITUTE(AA32,$ED32,$ED$2&ROW($ED32)),$EC32,$EC$2&ROW($EC32)),$EB32,$EB$2&ROW($EB32)),$EA32,$EA$2&ROW($EA32)),$DZ32,$DZ$2&ROW($DZ32)),$DY32,$DY$2&ROW($DY32)),$DX32,$DX$2&ROW($DX32)),$DW32,$DW$2&ROW($DW32)),$DV32,$DV$2&ROW($DV32)),$DU32,$DU$2&ROW($DU32)),$DT32,$DT$2&ROW($DT32)),$DS32,$DS$2&ROW($DS32)))","v":0},{"$f":"IF(AB32=\"\",0,\"X=\"&SUBSTITUTE(SUBSTITUTE(SUBSTITUTE(SUBSTITUTE(SUBSTITUTE(SUBSTITUTE(SUBSTITUTE(SUBSTITUTE(SUBSTITUTE(SUBSTITUTE(SUBSTITUTE(SUBSTITUTE(AB32,$ED32,$ED$2&ROW($ED32)),$EC32,$EC$2&ROW($EC32)),$EB32,$EB$2&ROW($EB32)),$EA32,$EA$2&ROW($EA32)),$DZ32,$DZ$2&ROW($DZ32)),$DY32,$DY$2&ROW($DY32)),$DX32,$DX$2&ROW($DX32)),$DW32,$DW$2&ROW($DW32)),$DV32,$DV$2&ROW($DV32)),$DU32,$DU$2&ROW($DU32)),$DT32,$DT$2&ROW($DT32)),$DS32,$DS$2&ROW($DS32)))","v":0},null,null,"{Factor:WinterCF}","{Factor:SummerCF}",{"$f":"IFERROR(INDEX($EG32:$IV32,MATCH(0,COUNTIF($DR32:DT32,$EG32:$IV32),0)),\"\")","v":"{Measure:Quantity}"},{"$f":"IFERROR(INDEX($EG32:$IV32,MATCH(0,COUNTIF($DR32:DU32,$EG32:$IV32),0)),\"\")","v":""},{"$f":"IFERROR(INDEX($EG32:$IV32,MATCH(0,COUNTIF($DR32:DV32,$EG32:$IV32),0)),\"\")","v":""},{"$f":"IFERROR(INDEX($EG32:$IV32,MATCH(0,COUNTIF($DR32:DW32,$EG32:$IV32),0)),\"\")","v":""},{"$f":"IFERROR(INDEX($EG32:$IV32,MATCH(0,COUNTIF($DR32:DX32,$EG32:$IV32),0)),\"\")","v":""},{"$f":"IFERROR(INDEX($EG32:$IV32,MATCH(0,COUNTIF($DR32:DY32,$EG32:$IV32),0)),\"\")","v":""},{"$f":"IFERROR(INDEX($EG32:$IV32,MATCH(0,COUNTIF($DR32:DZ32,$EG32:$IV32),0)),\"\")","v":""},{"$f":"IFERROR(INDEX($EG32:$IV32,MATCH(0,COUNTIF($DR32:EA32,$EG32:$IV32),0)),\"\")","v":""},{"$f":"IFERROR(INDEX($EG32:$IV32,MATCH(0,COUNTIF($DR32:EB32,$EG32:$IV32),0)),\"\")","v":""},{"$f":"IFERROR(INDEX($EG32:$IV32,MATCH(0,COUNTIF($DR32:EC32,$EG32:$IV32),0)),\"\")","v":""},null,null,{"$f":"IFERROR(MID($G32,FIND(CHAR(160),SUBSTITUTE($G32,\"{\",CHAR(160),EG$1)),FIND(CHAR(160),SUBSTITUTE($G32,\"}\",CHAR(160),EG$1))-FIND(CHAR(160),SUBSTITUTE($G32,\"{\",CHAR(160),EG$1))+1),\"\")","v":""},{"$f":"IFERROR(MID($G32,FIND(CHAR(160),SUBSTITUTE($G32,\"{\",CHAR(160),EH$1)),FIND(CHAR(160),SUBSTITUTE($G32,\"}\",CHAR(160),EH$1))-FIND(CHAR(160),SUBSTITUTE($G32,\"{\",CHAR(160),EH$1))+1),\"\")","v":""},{"$f":"IFERROR(MID($G32,FIND(CHAR(160),SUBSTITUTE($G32,\"{\",CHAR(160),EI$1)),FIND(CHAR(160),SUBSTITUTE($G32,\"}\",CHAR(160),EI$1))-FIND(CHAR(160),SUBSTITUTE($G32,\"{\",CHAR(160),EI$1))+1),\"\")","v":""},{"$f":"IFERROR(MID($G32,FIND(CHAR(160),SUBSTITUTE($G32,\"{\",CHAR(160),EJ$1)),FIND(CHAR(160),SUBSTITUTE($G32,\"}\",CHAR(160),EJ$1))-FIND(CHAR(160),SUBSTITUTE($G32,\"{\",CHAR(160),EJ$1))+1),\"\")","v":""},{"$f":"IFERROR(MID($G32,FIND(CHAR(160),SUBSTITUTE($G32,\"{\",CHAR(160),EK$1)),FIND(CHAR(160),SUBSTITUTE($G32,\"}\",CHAR(160),EK$1))-FIND(CHAR(160),SUBSTITUTE($G32,\"{\",CHAR(160),EK$1))+1),\"\")","v":""},{"$f":"IFERROR(MID($G32,FIND(CHAR(160),SUBSTITUTE($G32,\"{\",CHAR(160),EL$1)),FIND(CHAR(160),SUBSTITUTE($G32,\"}\",CHAR(160),EL$1))-FIND(CHAR(160),SUBSTITUTE($G32,\"{\",CHAR(160),EL$1))+1),\"\")","v":""},{"$f":"IFERROR(MID($G32,FIND(CHAR(160),SUBSTITUTE($G32,\"{\",CHAR(160),EM$1)),FIND(CHAR(160),SUBSTITUTE($G32,\"}\",CHAR(160),EM$1))-FIND(CHAR(160),SUBSTITUTE($G32,\"{\",CHAR(160),EM$1))+1),\"\")","v":""},{"$f":"IFERROR(MID($G32,FIND(CHAR(160),SUBSTITUTE($G32,\"{\",CHAR(160),EN$1)),FIND(CHAR(160),SUBSTITUTE($G32,\"}\",CHAR(160),EN$1))-FIND(CHAR(160),SUBSTITUTE($G32,\"{\",CHAR(160),EN$1))+1),\"\")","v":""},{"$f":"IFERROR(MID($G32,FIND(CHAR(160),SUBSTITUTE($G32,\"{\",CHAR(160),EO$1)),FIND(CHAR(160),SUBSTITUTE($G32,\"}\",CHAR(160),EO$1))-FIND(CHAR(160),SUBSTITUTE($G32,\"{\",CHAR(160),EO$1))+1),\"\")","v":""},{"$f":"IFERROR(MID($G32,FIND(CHAR(160),SUBSTITUTE($G32,\"{\",CHAR(160),EP$1)),FIND(CHAR(160),SUBSTITUTE($G32,\"}\",CHAR(160),EP$1))-FIND(CHAR(160),SUBSTITUTE($G32,\"{\",CHAR(160),EP$1))+1),\"\")","v":""},{"$f":"IFERROR(MID($J32,FIND(CHAR(160),SUBSTITUTE($J32,\"{\",CHAR(160),EQ$1)),FIND(CHAR(160),SUBSTITUTE($J32,\"}\",CHAR(160),EQ$1))-FIND(CHAR(160),SUBSTITUTE($J32,\"{\",CHAR(160),EQ$1))+1),\"\")","v":""},{"$f":"IFERROR(MID($J32,FIND(CHAR(160),SUBSTITUTE($J32,\"{\",CHAR(160),ER$1)),FIND(CHAR(160),SUBSTITUTE($J32,\"}\",CHAR(160),ER$1))-FIND(CHAR(160),SUBSTITUTE($J32,\"{\",CHAR(160),ER$1))+1),\"\")","v":""},{"$f":"IFERROR(MID($J32,FIND(CHAR(160),SUBSTITUTE($J32,\"{\",CHAR(160),ES$1)),FIND(CHAR(160),SUBSTITUTE($J32,\"}\",CHAR(160),ES$1))-FIND(CHAR(160),SUBSTITUTE($J32,\"{\",CHAR(160),ES$1))+1),\"\")","v":""},{"$f":"IFERROR(MID($J32,FIND(CHAR(160),SUBSTITUTE($J32,\"{\",CHAR(160),ET$1)),FIND(CHAR(160),SUBSTITUTE($J32,\"}\",CHAR(160),ET$1))-FIND(CHAR(160),SUBSTITUTE($J32,\"{\",CHAR(160),ET$1))+1),\"\")","v":""},{"$f":"IFERROR(MID($J32,FIND(CHAR(160),SUBSTITUTE($J32,\"{\",CHAR(160),EU$1)),FIND(CHAR(160),SUBSTITUTE($J32,\"}\",CHAR(160),EU$1))-FIND(CHAR(160),SUBSTITUTE($J32,\"{\",CHAR(160),EU$1))+1),\"\")","v":""},{"$f":"IFERROR(MID($J32,FIND(CHAR(160),SUBSTITUTE($J32,\"{\",CHAR(160),EV$1)),FIND(CHAR(160),SUBSTITUTE($J32,\"}\",CHAR(160),EV$1))-FIND(CHAR(160),SUBSTITUTE($J32,\"{\",CHAR(160),EV$1))+1),\"\")","v":""},{"$f":"IFERROR(MID($J32,FIND(CHAR(160),SUBSTITUTE($J32,\"{\",CHAR(160),EW$1)),FIND(CHAR(160),SUBSTITUTE($J32,\"}\",CHAR(160),EW$1))-FIND(CHAR(160),SUBSTITUTE($J32,\"{\",CHAR(160),EW$1))+1),\"\")","v":""},{"$f":"IFERROR(MID($J32,FIND(CHAR(160),SUBSTITUTE($J32,\"{\",CHAR(160),EX$1)),FIND(CHAR(160),SUBSTITUTE($J32,\"}\",CHAR(160),EX$1))-FIND(CHAR(160),SUBSTITUTE($J32,\"{\",CHAR(160),EX$1))+1),\"\")","v":""},{"$f":"IFERROR(MID($J32,FIND(CHAR(160),SUBSTITUTE($J32,\"{\",CHAR(160),EY$1)),FIND(CHAR(160),SUBSTITUTE($J32,\"}\",CHAR(160),EY$1))-FIND(CHAR(160),SUBSTITUTE($J32,\"{\",CHAR(160),EY$1))+1),\"\")","v":""},{"$f":"IFERROR(MID($J32,FIND(CHAR(160),SUBSTITUTE($J32,\"{\",CHAR(160),EZ$1)),FIND(CHAR(160),SUBSTITUTE($J32,\"}\",CHAR(160),EZ$1))-FIND(CHAR(160),SUBSTITUTE($J32,\"{\",CHAR(160),EZ$1))+1),\"\")","v":""},{"$f":"IFERROR(MID($J32,FIND(CHAR(160),SUBSTITUTE($J32,\"{\",CHAR(160),FA$1)),FIND(CHAR(160),SUBSTITUTE($J32,\"}\",CHAR(160),FA$1))-FIND(CHAR(160),SUBSTITUTE($J32,\"{\",CHAR(160),FA$1))+1),\"\")","v":""},{"$f":"IFERROR(MID($J32,FIND(CHAR(160),SUBSTITUTE($J32,\"{\",CHAR(160),FB$1)),FIND(CHAR(160),SUBSTITUTE($J32,\"}\",CHAR(160),FB$1))-FIND(CHAR(160),SUBSTITUTE($J32,\"{\",CHAR(160),FB$1))+1),\"\")","v":""},{"$f":"IFERROR(MID($O32,FIND(CHAR(160),SUBSTITUTE($O32,\"{\",CHAR(160),FC$1)),FIND(CHAR(160),SUBSTITUTE($O32,\"}\",CHAR(160),FC$1))-FIND(CHAR(160),SUBSTITUTE($O32,\"{\",CHAR(160),FC$1))+1),\"\")","v":""},{"$f":"IFERROR(MID($O32,FIND(CHAR(160),SUBSTITUTE($O32,\"{\",CHAR(160),FD$1)),FIND(CHAR(160),SUBSTITUTE($O32,\"}\",CHAR(160),FD$1))-FIND(CHAR(160),SUBSTITUTE($O32,\"{\",CHAR(160),FD$1))+1),\"\")","v":""},{"$f":"IFERROR(MID($O32,FIND(CHAR(160),SUBSTITUTE($O32,\"{\",CHAR(160),FE$1)),FIND(CHAR(160),SUBSTITUTE($O32,\"}\",CHAR(160),FE$1))-FIND(CHAR(160),SUBSTITUTE($O32,\"{\",CHAR(160),FE$1))+1),\"\")","v":""},{"$f":"IFERROR(MID($O32,FIND(CHAR(160),SUBSTITUTE($O32,\"{\",CHAR(160),FF$1)),FIND(CHAR(160),SUBSTITUTE($O32,\"}\",CHAR(160),FF$1))-FIND(CHAR(160),SUBSTITUTE($O32,\"{\",CHAR(160),FF$1))+1),\"\")","v":""},{"$f":"IFERROR(MID($O32,FIND(CHAR(160),SUBSTITUTE($O32,\"{\",CHAR(160),FG$1)),FIND(CHAR(160),SUBSTITUTE($O32,\"}\",CHAR(160),FG$1))-FIND(CHAR(160),SUBSTITUTE($O32,\"{\",CHAR(160),FG$1))+1),\"\")","v":""},{"$f":"IFERROR(MID($O32,FIND(CHAR(160),SUBSTITUTE($O32,\"{\",CHAR(160),FH$1)),FIND(CHAR(160),SUBSTITUTE($O32,\"}\",CHAR(160),FH$1))-FIND(CHAR(160),SUBSTITUTE($O32,\"{\",CHAR(160),FH$1))+1),\"\")","v":""},{"$f":"IFERROR(MID($O32,FIND(CHAR(160),SUBSTITUTE($O32,\"{\",CHAR(160),FI$1)),FIND(CHAR(160),SUBSTITUTE($O32,\"}\",CHAR(160),FI$1))-FIND(CHAR(160),SUBSTITUTE($O32,\"{\",CHAR(160),FI$1))+1),\"\")","v":""},{"$f":"IFERROR(MID($O32,FIND(CHAR(160),SUBSTITUTE($O32,\"{\",CHAR(160),FJ$1)),FIND(CHAR(160),SUBSTITUTE($O32,\"}\",CHAR(160),FJ$1))-FIND(CHAR(160),SUBSTITUTE($O32,\"{\",CHAR(160),FJ$1))+1),\"\")","v":""},{"$f":"IFERROR(MID($O32,FIND(CHAR(160),SUBSTITUTE($O32,\"{\",CHAR(160),FK$1)),FIND(CHAR(160),SUBSTITUTE($O32,\"}\",CHAR(160),FK$1))-FIND(CHAR(160),SUBSTITUTE($O32,\"{\",CHAR(160),FK$1))+1),\"\")","v":"{Measure:Quantity}"},{"$f":"IFERROR(MID($O32,FIND(CHAR(160),SUBSTITUTE($O32,\"{\",CHAR(160),FL$1)),FIND(CHAR(160),SUBSTITUTE($O32,\"}\",CHAR(160),FL$1))-FIND(CHAR(160),SUBSTITUTE($O32,\"{\",CHAR(160),FL$1))+1),\"\")","v":""},{"$f":"IFERROR(MID($R32,FIND(CHAR(160),SUBSTITUTE($R32,\"{\",CHAR(160),FM$1)),FIND(CHAR(160),SUBSTITUTE($R32,\"}\",CHAR(160),FM$1))-FIND(CHAR(160),SUBSTITUTE($R32,\"{\",CHAR(160),FM$1))+1),\"\")","v":""},{"$f":"IFERROR(MID($R32,FIND(CHAR(160),SUBSTITUTE($R32,\"{\",CHAR(160),FN$1)),FIND(CHAR(160),SUBSTITUTE($R32,\"}\",CHAR(160),FN$1))-FIND(CHAR(160),SUBSTITUTE($R32,\"{\",CHAR(160),FN$1))+1),\"\")","v":""},{"$f":"IFERROR(MID($R32,FIND(CHAR(160),SUBSTITUTE($R32,\"{\",CHAR(160),FO$1)),FIND(CHAR(160),SUBSTITUTE($R32,\"}\",CHAR(160),FO$1))-FIND(CHAR(160),SUBSTITUTE($R32,\"{\",CHAR(160),FO$1))+1),\"\")","v":""},{"$f":"IFERROR(MID($R32,FIND(CHAR(160),SUBSTITUTE($R32,\"{\",CHAR(160),FP$1)),FIND(CHAR(160),SUBSTITUTE($R32,\"}\",CHAR(160),FP$1))-FIND(CHAR(160),SUBSTITUTE($R32,\"{\",CHAR(160),FP$1))+1),\"\")","v":""},{"$f":"IFERROR(MID($R32,FIND(CHAR(160),SUBSTITUTE($R32,\"{\",CHAR(160),FQ$1)),FIND(CHAR(160),SUBSTITUTE($R32,\"}\",CHAR(160),FQ$1))-FIND(CHAR(160),SUBSTITUTE($R32,\"{\",CHAR(160),FQ$1))+1),\"\")","v":""},{"$f":"IFERROR(MID($R32,FIND(CHAR(160),SUBSTITUTE($R32,\"{\",CHAR(160),FR$1)),FIND(CHAR(160),SUBSTITUTE($R32,\"}\",CHAR(160),FR$1))-FIND(CHAR(160),SUBSTITUTE($R32,\"{\",CHAR(160),FR$1))+1),\"\")","v":""},{"$f":"IFERROR(MID($R32,FIND(CHAR(160),SUBSTITUTE($R32,\"{\",CHAR(160),FS$1)),FIND(CHAR(160),SUBSTITUTE($R32,\"}\",CHAR(160),FS$1))-FIND(CHAR(160),SUBSTITUTE($R32,\"{\",CHAR(160),FS$1))+1),\"\")","v":""},{"$f":"IFERROR(MID($R32,FIND(CHAR(160),SUBSTITUTE($R32,\"{\",CHAR(160),FT$1)),FIND(CHAR(160),SUBSTITUTE($R32,\"}\",CHAR(160),FT$1))-FIND(CHAR(160),SUBSTITUTE($R32,\"{\",CHAR(160),FT$1))+1),\"\")","v":""},{"$f":"IFERROR(MID($R32,FIND(CHAR(160),SUBSTITUTE($R32,\"{\",CHAR(160),FU$1)),FIND(CHAR(160),SUBSTITUTE($R32,\"}\",CHAR(160),FU$1))-FIND(CHAR(160),SUBSTITUTE($R32,\"{\",CHAR(160),FU$1))+1),\"\")","v":"{Measure:Quantity}"},{"$f":"IFERROR(MID($R32,FIND(CHAR(160),SUBSTITUTE($R32,\"{\",CHAR(160),FV$1)),FIND(CHAR(160),SUBSTITUTE($R32,\"}\",CHAR(160),FV$1))-FIND(CHAR(160),SUBSTITUTE($R32,\"{\",CHAR(160),FV$1))+1),\"\")","v":""},{"$f":"IFERROR(MID($U32,FIND(CHAR(160),SUBSTITUTE($U32,\"{\",CHAR(160),FW$1)),FIND(CHAR(160),SUBSTITUTE($U32,\"}\",CHAR(160),FW$1))-FIND(CHAR(160),SUBSTITUTE($U32,\"{\",CHAR(160),FW$1))+1),\"\")","v":""},{"$f":"IFERROR(MID($U32,FIND(CHAR(160),SUBSTITUTE($U32,\"{\",CHAR(160),FX$1)),FIND(CHAR(160),SUBSTITUTE($U32,\"}\",CHAR(160),FX$1))-FIND(CHAR(160),SUBSTITUTE($U32,\"{\",CHAR(160),FX$1))+1),\"\")","v":""},{"$f":"IFERROR(MID($U32,FIND(CHAR(160),SUBSTITUTE($U32,\"{\",CHAR(160),FY$1)),FIND(CHAR(160),SUBSTITUTE($U32,\"}\",CHAR(160),FY$1))-FIND(CHAR(160),SUBSTITUTE($U32,\"{\",CHAR(160),FY$1))+1),\"\")","v":""},{"$f":"IFERROR(MID($U32,FIND(CHAR(160),SUBSTITUTE($U32,\"{\",CHAR(160),FZ$1)),FIND(CHAR(160),SUBSTITUTE($U32,\"}\",CHAR(160),FZ$1))-FIND(CHAR(160),SUBSTITUTE($U32,\"{\",CHAR(160),FZ$1))+1),\"\")","v":""},{"$f":"IFERROR(MID($U32,FIND(CHAR(160),SUBSTITUTE($U32,\"{\",CHAR(160),GA$1)),FIND(CHAR(160),SUBSTITUTE($U32,\"}\",CHAR(160),GA$1))-FIND(CHAR(160),SUBSTITUTE($U32,\"{\",CHAR(160),GA$1))+1),\"\")","v":""},{"$f":"IFERROR(MID($U32,FIND(CHAR(160),SUBSTITUTE($U32,\"{\",CHAR(160),GB$1)),FIND(CHAR(160),SUBSTITUTE($U32,\"}\",CHAR(160),GB$1))-FIND(CHAR(160),SUBSTITUTE($U32,\"{\",CHAR(160),GB$1))+1),\"\")","v":""},{"$f":"IFERROR(MID($U32,FIND(CHAR(160),SUBSTITUTE($U32,\"{\",CHAR(160),GC$1)),FIND(CHAR(160),SUBSTITUTE($U32,\"}\",CHAR(160),GC$1))-FIND(CHAR(160),SUBSTITUTE($U32,\"{\",CHAR(160),GC$1))+1),\"\")","v":""},{"$f":"IFERROR(MID($U32,FIND(CHAR(160),SUBSTITUTE($U32,\"{\",CHAR(160),GD$1)),FIND(CHAR(160),SUBSTITUTE($U32,\"}\",CHAR(160),GD$1))-FIND(CHAR(160),SUBSTITUTE($U32,\"{\",CHAR(160),GD$1))+1),\"\")","v":""},{"$f":"IFERROR(MID($U32,FIND(CHAR(160),SUBSTITUTE($U32,\"{\",CHAR(160),GE$1)),FIND(CHAR(160),SUBSTITUTE($U32,\"}\",CHAR(160),GE$1))-FIND(CHAR(160),SUBSTITUTE($U32,\"{\",CHAR(160),GE$1))+1),\"\")","v":"{Measure:Quantity}"},{"$f":"IFERROR(MID($U32,FIND(CHAR(160),SUBSTITUTE($U32,\"{\",CHAR(160),GF$1)),FIND(CHAR(160),SUBSTITUTE($U32,\"}\",CHAR(160),GF$1))-FIND(CHAR(160),SUBSTITUTE($U32,\"{\",CHAR(160),GF$1))+1),\"\")","v":"{Factor:WinterCF}"},{"$f":"IFERROR(MID($V32,FIND(CHAR(160),SUBSTITUTE($V32,\"{\",CHAR(160),GG$1)),FIND(CHAR(160),SUBSTITUTE($V32,\"}\",CHAR(160),GG$1))-FIND(CHAR(160),SUBSTITUTE($V32,\"{\",CHAR(160),GG$1))+1),\"\")","v":""},{"$f":"IFERROR(MID($V32,FIND(CHAR(160),SUBSTITUTE($V32,\"{\",CHAR(160),GH$1)),FIND(CHAR(160),SUBSTITUTE($V32,\"}\",CHAR(160),GH$1))-FIND(CHAR(160),SUBSTITUTE($V32,\"{\",CHAR(160),GH$1))+1),\"\")","v":""},{"$f":"IFERROR(MID($V32,FIND(CHAR(160),SUBSTITUTE($V32,\"{\",CHAR(160),GI$1)),FIND(CHAR(160),SUBSTITUTE($V32,\"}\",CHAR(160),GI$1))-FIND(CHAR(160),SUBSTITUTE($V32,\"{\",CHAR(160),GI$1))+1),\"\")","v":""},{"$f":"IFERROR(MID($V32,FIND(CHAR(160),SUBSTITUTE($V32,\"{\",CHAR(160),GJ$1)),FIND(CHAR(160),SUBSTITUTE($V32,\"}\",CHAR(160),GJ$1))-FIND(CHAR(160),SUBSTITUTE($V32,\"{\",CHAR(160),GJ$1))+1),\"\")","v":""},{"$f":"IFERROR(MID($V32,FIND(CHAR(160),SUBSTITUTE($V32,\"{\",CHAR(160),GK$1)),FIND(CHAR(160),SUBSTITUTE($V32,\"}\",CHAR(160),GK$1))-FIND(CHAR(160),SUBSTITUTE($V32,\"{\",CHAR(160),GK$1))+1),\"\")","v":""},{"$f":"IFERROR(MID($V32,FIND(CHAR(160),SUBSTITUTE($V32,\"{\",CHAR(160),GL$1)),FIND(CHAR(160),SUBSTITUTE($V32,\"}\",CHAR(160),GL$1))-FIND(CHAR(160),SUBSTITUTE($V32,\"{\",CHAR(160),GL$1))+1),\"\")","v":""},{"$f":"IFERROR(MID($V32,FIND(CHAR(160),SUBSTITUTE($V32,\"{\",CHAR(160),GM$1)),FIND(CHAR(160),SUBSTITUTE($V32,\"}\",CHAR(160),GM$1))-FIND(CHAR(160),SUBSTITUTE($V32,\"{\",CHAR(160),GM$1))+1),\"\")","v":""},{"$f":"IFERROR(MID($V32,FIND(CHAR(160),SUBSTITUTE($V32,\"{\",CHAR(160),GN$1)),FIND(CHAR(160),SUBSTITUTE($V32,\"}\",CHAR(160),GN$1))-FIND(CHAR(160),SUBSTITUTE($V32,\"{\",CHAR(160),GN$1))+1),\"\")","v":""},{"$f":"IFERROR(MID($V32,FIND(CHAR(160),SUBSTITUTE($V32,\"{\",CHAR(160),GO$1)),FIND(CHAR(160),SUBSTITUTE($V32,\"}\",CHAR(160),GO$1))-FIND(CHAR(160),SUBSTITUTE($V32,\"{\",CHAR(160),GO$1))+1),\"\")","v":"{Measure:Quantity}"},{"$f":"IFERROR(MID($V32,FIND(CHAR(160),SUBSTITUTE($V32,\"{\",CHAR(160),GP$1)),FIND(CHAR(160),SUBSTITUTE($V32,\"}\",CHAR(160),GP$1))-FIND(CHAR(160),SUBSTITUTE($V32,\"{\",CHAR(160),GP$1))+1),\"\")","v":"{Factor:SummerCF}"},{"$f":"IFERROR(MID($W32,FIND(CHAR(160),SUBSTITUTE($W32,\"{\",CHAR(160),GQ$1)),FIND(CHAR(160),SUBSTITUTE($W32,\"}\",CHAR(160),GQ$1))-FIND(CHAR(160),SUBSTITUTE($W32,\"{\",CHAR(160),GQ$1))+1),\"\")","v":""},{"$f":"IFERROR(MID($W32,FIND(CHAR(160),SUBSTITUTE($W32,\"{\",CHAR(160),GR$1)),FIND(CHAR(160),SUBSTITUTE($W32,\"}\",CHAR(160),GR$1))-FIND(CHAR(160),SUBSTITUTE($W32,\"{\",CHAR(160),GR$1))+1),\"\")","v":""},{"$f":"IFERROR(MID($W32,FIND(CHAR(160),SUBSTITUTE($W32,\"{\",CHAR(160),GS$1)),FIND(CHAR(160),SUBSTITUTE($W32,\"}\",CHAR(160),GS$1))-FIND(CHAR(160),SUBSTITUTE($W32,\"{\",CHAR(160),GS$1))+1),\"\")","v":""},{"$f":"IFERROR(MID($W32,FIND(CHAR(160),SUBSTITUTE($W32,\"{\",CHAR(160),GT$1)),FIND(CHAR(160),SUBSTITUTE($W32,\"}\",CHAR(160),GT$1))-FIND(CHAR(160),SUBSTITUTE($W32,\"{\",CHAR(160),GT$1))+1),\"\")","v":""},{"$f":"IFERROR(MID($W32,FIND(CHAR(160),SUBSTITUTE($W32,\"{\",CHAR(160),GU$1)),FIND(CHAR(160),SUBSTITUTE($W32,\"}\",CHAR(160),GU$1))-FIND(CHAR(160),SUBSTITUTE($W32,\"{\",CHAR(160),GU$1))+1),\"\")","v":""},{"$f":"IFERROR(MID($W32,FIND(CHAR(160),SUBSTITUTE($W32,\"{\",CHAR(160),GV$1)),FIND(CHAR(160),SUBSTITUTE($W32,\"}\",CHAR(160),GV$1))-FIND(CHAR(160),SUBSTITUTE($W32,\"{\",CHAR(160),GV$1))+1),\"\")","v":""},{"$f":"IFERROR(MID($W32,FIND(CHAR(160),SUBSTITUTE($W32,\"{\",CHAR(160),GW$1)),FIND(CHAR(160),SUBSTITUTE($W32,\"}\",CHAR(160),GW$1))-FIND(CHAR(160),SUBSTITUTE($W32,\"{\",CHAR(160),GW$1))+1),\"\")","v":""},{"$f":"IFERROR(MID($W32,FIND(CHAR(160),SUBSTITUTE($W32,\"{\",CHAR(160),GX$1)),FIND(CHAR(160),SUBSTITUTE($W32,\"}\",CHAR(160),GX$1))-FIND(CHAR(160),SUBSTITUTE($W32,\"{\",CHAR(160),GX$1))+1),\"\")","v":""},{"$f":"IFERROR(MID($W32,FIND(CHAR(160),SUBSTITUTE($W32,\"{\",CHAR(160),GY$1)),FIND(CHAR(160),SUBSTITUTE($W32,\"}\",CHAR(160),GY$1))-FIND(CHAR(160),SUBSTITUTE($W32,\"{\",CHAR(160),GY$1))+1),\"\")","v":""},{"$f":"IFERROR(MID($W32,FIND(CHAR(160),SUBSTITUTE($W32,\"{\",CHAR(160),GZ$1)),FIND(CHAR(160),SUBSTITUTE($W32,\"}\",CHAR(160),GZ$1))-FIND(CHAR(160),SUBSTITUTE($W32,\"{\",CHAR(160),GZ$1))+1),\"\")","v":""},{"$f":"IFERROR(MID($X32,FIND(CHAR(160),SUBSTITUTE($X32,\"{\",CHAR(160),HA$1)),FIND(CHAR(160),SUBSTITUTE($X32,\"}\",CHAR(160),HA$1))-FIND(CHAR(160),SUBSTITUTE($X32,\"{\",CHAR(160),HA$1))+1),\"\")","v":""},{"$f":"IFERROR(MID($X32,FIND(CHAR(160),SUBSTITUTE($X32,\"{\",CHAR(160),HB$1)),FIND(CHAR(160),SUBSTITUTE($X32,\"}\",CHAR(160),HB$1))-FIND(CHAR(160),SUBSTITUTE($X32,\"{\",CHAR(160),HB$1))+1),\"\")","v":""},{"$f":"IFERROR(MID($X32,FIND(CHAR(160),SUBSTITUTE($X32,\"{\",CHAR(160),HC$1)),FIND(CHAR(160),SUBSTITUTE($X32,\"}\",CHAR(160),HC$1))-FIND(CHAR(160),SUBSTITUTE($X32,\"{\",CHAR(160),HC$1))+1),\"\")","v":""},{"$f":"IFERROR(MID($X32,FIND(CHAR(160),SUBSTITUTE($X32,\"{\",CHAR(160),HD$1)),FIND(CHAR(160),SUBSTITUTE($X32,\"}\",CHAR(160),HD$1))-FIND(CHAR(160),SUBSTITUTE($X32,\"{\",CHAR(160),HD$1))+1),\"\")","v":""},{"$f":"IFERROR(MID($X32,FIND(CHAR(160),SUBSTITUTE($X32,\"{\",CHAR(160),HE$1)),FIND(CHAR(160),SUBSTITUTE($X32,\"}\",CHAR(160),HE$1))-FIND(CHAR(160),SUBSTITUTE($X32,\"{\",CHAR(160),HE$1))+1),\"\")","v":""},{"$f":"IFERROR(MID($X32,FIND(CHAR(160),SUBSTITUTE($X32,\"{\",CHAR(160),HF$1)),FIND(CHAR(160),SUBSTITUTE($X32,\"}\",CHAR(160),HF$1))-FIND(CHAR(160),SUBSTITUTE($X32,\"{\",CHAR(160),HF$1))+1),\"\")","v":""},{"$f":"IFERROR(MID($X32,FIND(CHAR(160),SUBSTITUTE($X32,\"{\",CHAR(160),HG$1)),FIND(CHAR(160),SUBSTITUTE($X32,\"}\",CHAR(160),HG$1))-FIND(CHAR(160),SUBSTITUTE($X32,\"{\",CHAR(160),HG$1))+1),\"\")","v":""},{"$f":"IFERROR(MID($X32,FIND(CHAR(160),SUBSTITUTE($X32,\"{\",CHAR(160),HH$1)),FIND(CHAR(160),SUBSTITUTE($X32,\"}\",CHAR(160),HH$1))-FIND(CHAR(160),SUBSTITUTE($X32,\"{\",CHAR(160),HH$1))+1),\"\")","v":""},{"$f":"IFERROR(MID($X32,FIND(CHAR(160),SUBSTITUTE($X32,\"{\",CHAR(160),HI$1)),FIND(CHAR(160),SUBSTITUTE($X32,\"}\",CHAR(160),HI$1))-FIND(CHAR(160),SUBSTITUTE($X32,\"{\",CHAR(160),HI$1))+1),\"\")","v":""},{"$f":"IFERROR(MID($X32,FIND(CHAR(160),SUBSTITUTE($X32,\"{\",CHAR(160),HJ$1)),FIND(CHAR(160),SUBSTITUTE($X32,\"}\",CHAR(160),HJ$1))-FIND(CHAR(160),SUBSTITUTE($X32,\"{\",CHAR(160),HJ$1))+1),\"\")","v":""},{"$f":"IFERROR(MID($Y32,FIND(CHAR(160),SUBSTITUTE($Y32,\"{\",CHAR(160),HK$1)),FIND(CHAR(160),SUBSTITUTE($Y32,\"}\",CHAR(160),HK$1))-FIND(CHAR(160),SUBSTITUTE($Y32,\"{\",CHAR(160),HK$1))+1),\"\")","v":""},{"$f":"IFERROR(MID($Y32,FIND(CHAR(160),SUBSTITUTE($Y32,\"{\",CHAR(160),HL$1)),FIND(CHAR(160),SUBSTITUTE($Y32,\"}\",CHAR(160),HL$1))-FIND(CHAR(160),SUBSTITUTE($Y32,\"{\",CHAR(160),HL$1))+1),\"\")","v":""},{"$f":"IFERROR(MID($Y32,FIND(CHAR(160),SUBSTITUTE($Y32,\"{\",CHAR(160),HM$1)),FIND(CHAR(160),SUBSTITUTE($Y32,\"}\",CHAR(160),HM$1))-FIND(CHAR(160),SUBSTITUTE($Y32,\"{\",CHAR(160),HM$1))+1),\"\")","v":""},{"$f":"IFERROR(MID($Y32,FIND(CHAR(160),SUBSTITUTE($Y32,\"{\",CHAR(160),HN$1)),FIND(CHAR(160),SUBSTITUTE($Y32,\"}\",CHAR(160),HN$1))-FIND(CHAR(160),SUBSTITUTE($Y32,\"{\",CHAR(160),HN$1))+1),\"\")","v":""},{"$f":"IFERROR(MID($Y32,FIND(CHAR(160),SUBSTITUTE($Y32,\"{\",CHAR(160),HO$1)),FIND(CHAR(160),SUBSTITUTE($Y32,\"}\",CHAR(160),HO$1))-FIND(CHAR(160),SUBSTITUTE($Y32,\"{\",CHAR(160),HO$1))+1),\"\")","v":""},{"$f":"IFERROR(MID($Y32,FIND(CHAR(160),SUBSTITUTE($Y32,\"{\",CHAR(160),HP$1)),FIND(CHAR(160),SUBSTITUTE($Y32,\"}\",CHAR(160),HP$1))-FIND(CHAR(160),SUBSTITUTE($Y32,\"{\",CHAR(160),HP$1))+1),\"\")","v":""},{"$f":"IFERROR(MID($Y32,FIND(CHAR(160),SUBSTITUTE($Y32,\"{\",CHAR(160),HQ$1)),FIND(CHAR(160),SUBSTITUTE($Y32,\"}\",CHAR(160),HQ$1))-FIND(CHAR(160),SUBSTITUTE($Y32,\"{\",CHAR(160),HQ$1))+1),\"\")","v":""},{"$f":"IFERROR(MID($Y32,FIND(CHAR(160),SUBSTITUTE($Y32,\"{\",CHAR(160),HR$1)),FIND(CHAR(160),SUBSTITUTE($Y32,\"}\",CHAR(160),HR$1))-FIND(CHAR(160),SUBSTITUTE($Y32,\"{\",CHAR(160),HR$1))+1),\"\")","v":""},{"$f":"IFERROR(MID($Y32,FIND(CHAR(160),SUBSTITUTE($Y32,\"{\",CHAR(160),HS$1)),FIND(CHAR(160),SUBSTITUTE($Y32,\"}\",CHAR(160),HS$1))-FIND(CHAR(160),SUBSTITUTE($Y32,\"{\",CHAR(160),HS$1))+1),\"\")","v":""},{"$f":"IFERROR(MID($Y32,FIND(CHAR(160),SUBSTITUTE($Y32,\"{\",CHAR(160),HT$1)),FIND(CHAR(160),SUBSTITUTE($Y32,\"}\",CHAR(160),HT$1))-FIND(CHAR(160),SUBSTITUTE($Y32,\"{\",CHAR(160),HT$1))+1),\"\")","v":""},{"$f":"IFERROR(MID($Z32,FIND(CHAR(160),SUBSTITUTE($Z32,\"{\",CHAR(160),HU$1)),FIND(CHAR(160),SUBSTITUTE($Z32,\"}\",CHAR(160),HU$1))-FIND(CHAR(160),SUBSTITUTE($Z32,\"{\",CHAR(160),HU$1))+1),\"\")","v":""},{"$f":"IFERROR(MID($Z32,FIND(CHAR(160),SUBSTITUTE($Z32,\"{\",CHAR(160),HV$1)),FIND(CHAR(160),SUBSTITUTE($Z32,\"}\",CHAR(160),HV$1))-FIND(CHAR(160),SUBSTITUTE($Z32,\"{\",CHAR(160),HV$1))+1),\"\")","v":""},{"$f":"IFERROR(MID($Z32,FIND(CHAR(160),SUBSTITUTE($Z32,\"{\",CHAR(160),HW$1)),FIND(CHAR(160),SUBSTITUTE($Z32,\"}\",CHAR(160),HW$1))-FIND(CHAR(160),SUBSTITUTE($Z32,\"{\",CHAR(160),HW$1))+1),\"\")","v":""},{"$f":"IFERROR(MID($Z32,FIND(CHAR(160),SUBSTITUTE($Z32,\"{\",CHAR(160),HX$1)),FIND(CHAR(160),SUBSTITUTE($Z32,\"}\",CHAR(160),HX$1))-FIND(CHAR(160),SUBSTITUTE($Z32,\"{\",CHAR(160),HX$1))+1),\"\")","v":""},{"$f":"IFERROR(MID($Z32,FIND(CHAR(160),SUBSTITUTE($Z32,\"{\",CHAR(160),HY$1)),FIND(CHAR(160),SUBSTITUTE($Z32,\"}\",CHAR(160),HY$1))-FIND(CHAR(160),SUBSTITUTE($Z32,\"{\",CHAR(160),HY$1))+1),\"\")","v":""},{"$f":"IFERROR(MID($Z32,FIND(CHAR(160),SUBSTITUTE($Z32,\"{\",CHAR(160),HZ$1)),FIND(CHAR(160),SUBSTITUTE($Z32,\"}\",CHAR(160),HZ$1))-FIND(CHAR(160),SUBSTITUTE($Z32,\"{\",CHAR(160),HZ$1))+1),\"\")","v":""},{"$f":"IFERROR(MID($Z32,FIND(CHAR(160),SUBSTITUTE($Z32,\"{\",CHAR(160),IA$1)),FIND(CHAR(160),SUBSTITUTE($Z32,\"}\",CHAR(160),IA$1))-FIND(CHAR(160),SUBSTITUTE($Z32,\"{\",CHAR(160),IA$1))+1),\"\")","v":""},{"$f":"IFERROR(MID($Z32,FIND(CHAR(160),SUBSTITUTE($Z32,\"{\",CHAR(160),IB$1)),FIND(CHAR(160),SUBSTITUTE($Z32,\"}\",CHAR(160),IB$1))-FIND(CHAR(160),SUBSTITUTE($Z32,\"{\",CHAR(160),IB$1))+1),\"\")","v":""},{"$f":"IFERROR(MID($Z32,FIND(CHAR(160),SUBSTITUTE($Z32,\"{\",CHAR(160),IC$1)),FIND(CHAR(160),SUBSTITUTE($Z32,\"}\",CHAR(160),IC$1))-FIND(CHAR(160),SUBSTITUTE($Z32,\"{\",CHAR(160),IC$1))+1),\"\")","v":""},{"$f":"IFERROR(MID($Z32,FIND(CHAR(160),SUBSTITUTE($Z32,\"{\",CHAR(160),ID$1)),FIND(CHAR(160),SUBSTITUTE($Z32,\"}\",CHAR(160),ID$1))-FIND(CHAR(160),SUBSTITUTE($Z32,\"{\",CHAR(160),ID$1))+1),\"\")","v":""},{"$f":"IFERROR(MID($AA32,FIND(CHAR(160),SUBSTITUTE($AA32,\"{\",CHAR(160),IE$1)),FIND(CHAR(160),SUBSTITUTE($AA32,\"}\",CHAR(160),IE$1))-FIND(CHAR(160),SUBSTITUTE($AA32,\"{\",CHAR(160),IE$1))+1),\"\")","v":""},{"$f":"IFERROR(MID($AA32,FIND(CHAR(160),SUBSTITUTE($AA32,\"{\",CHAR(160),IF$1)),FIND(CHAR(160),SUBSTITUTE($AA32,\"}\",CHAR(160),IF$1))-FIND(CHAR(160),SUBSTITUTE($AA32,\"{\",CHAR(160),IF$1))+1),\"\")","v":""},{"$f":"IFERROR(MID($AA32,FIND(CHAR(160),SUBSTITUTE($AA32,\"{\",CHAR(160),IG$1)),FIND(CHAR(160),SUBSTITUTE($AA32,\"}\",CHAR(160),IG$1))-FIND(CHAR(160),SUBSTITUTE($AA32,\"{\",CHAR(160),IG$1))+1),\"\")","v":""},{"$f":"IFERROR(MID($AA32,FIND(CHAR(160),SUBSTITUTE($AA32,\"{\",CHAR(160),IH$1)),FIND(CHAR(160),SUBSTITUTE($AA32,\"}\",CHAR(160),IH$1))-FIND(CHAR(160),SUBSTITUTE($AA32,\"{\",CHAR(160),IH$1))+1),\"\")","v":""},{"$f":"IFERROR(MID($AA32,FIND(CHAR(160),SUBSTITUTE($AA32,\"{\",CHAR(160),II$1)),FIND(CHAR(160),SUBSTITUTE($AA32,\"}\",CHAR(160),II$1))-FIND(CHAR(160),SUBSTITUTE($AA32,\"{\",CHAR(160),II$1))+1),\"\")","v":""},{"$f":"IFERROR(MID($AA32,FIND(CHAR(160),SUBSTITUTE($AA32,\"{\",CHAR(160),IJ$1)),FIND(CHAR(160),SUBSTITUTE($AA32,\"}\",CHAR(160),IJ$1))-FIND(CHAR(160),SUBSTITUTE($AA32,\"{\",CHAR(160),IJ$1))+1),\"\")","v":""},{"$f":"IFERROR(MID($AA32,FIND(CHAR(160),SUBSTITUTE($AA32,\"{\",CHAR(160),IK$1)),FIND(CHAR(160),SUBSTITUTE($AA32,\"}\",CHAR(160),IK$1))-FIND(CHAR(160),SUBSTITUTE($AA32,\"{\",CHAR(160),IK$1))+1),\"\")","v":""},{"$f":"IFERROR(MID($AA32,FIND(CHAR(160),SUBSTITUTE($AA32,\"{\",CHAR(160),IL$1)),FIND(CHAR(160),SUBSTITUTE($AA32,\"}\",CHAR(160),IL$1))-FIND(CHAR(160),SUBSTITUTE($AA32,\"{\",CHAR(160),IL$1))+1),\"\")","v":""},{"$f":"IFERROR(MID($AA32,FIND(CHAR(160),SUBSTITUTE($AA32,\"{\",CHAR(160),IM$1)),FIND(CHAR(160),SUBSTITUTE($AA32,\"}\",CHAR(160),IM$1))-FIND(CHAR(160),SUBSTITUTE($AA32,\"{\",CHAR(160),IM$1))+1),\"\")","v":""},{"$f":"IFERROR(MID($AA32,FIND(CHAR(160),SUBSTITUTE($AA32,\"{\",CHAR(160),IN$1)),FIND(CHAR(160),SUBSTITUTE($AA32,\"}\",CHAR(160),IN$1))-FIND(CHAR(160),SUBSTITUTE($AA32,\"{\",CHAR(160),IN$1))+1),\"\")","v":""},{"$f":"IFERROR(MID($AB32,FIND(CHAR(160),SUBSTITUTE($AB32,\"{\",CHAR(160),IO$1)),FIND(CHAR(160),SUBSTITUTE($AB32,\"}\",CHAR(160),IO$1))-FIND(CHAR(160),SUBSTITUTE($AB32,\"{\",CHAR(160),IO$1))+1),\"\")","v":""},{"$f":"IFERROR(MID($AB32,FIND(CHAR(160),SUBSTITUTE($AB32,\"{\",CHAR(160),IP$1)),FIND(CHAR(160),SUBSTITUTE($AB32,\"}\",CHAR(160),IP$1))-FIND(CHAR(160),SUBSTITUTE($AB32,\"{\",CHAR(160),IP$1))+1),\"\")","v":""},{"$f":"IFERROR(MID($AB32,FIND(CHAR(160),SUBSTITUTE($AB32,\"{\",CHAR(160),IQ$1)),FIND(CHAR(160),SUBSTITUTE($AB32,\"}\",CHAR(160),IQ$1))-FIND(CHAR(160),SUBSTITUTE($AB32,\"{\",CHAR(160),IQ$1))+1),\"\")","v":""},{"$f":"IFERROR(MID($AB32,FIND(CHAR(160),SUBSTITUTE($AB32,\"{\",CHAR(160),IR$1)),FIND(CHAR(160),SUBSTITUTE($AB32,\"}\",CHAR(160),IR$1))-FIND(CHAR(160),SUBSTITUTE($AB32,\"{\",CHAR(160),IR$1))+1),\"\")","v":""},{"$f":"IFERROR(MID($AB32,FIND(CHAR(160),SUBSTITUTE($AB32,\"{\",CHAR(160),IS$1)),FIND(CHAR(160),SUBSTITUTE($AB32,\"}\",CHAR(160),IS$1))-FIND(CHAR(160),SUBSTITUTE($AB32,\"{\",CHAR(160),IS$1))+1),\"\")","v":""},{"$f":"IFERROR(MID($AB32,FIND(CHAR(160),SUBSTITUTE($AB32,\"{\",CHAR(160),IT$1)),FIND(CHAR(160),SUBSTITUTE($AB32,\"}\",CHAR(160),IT$1))-FIND(CHAR(160),SUBSTITUTE($AB32,\"{\",CHAR(160),IT$1))+1),\"\")","v":""},{"$f":"IFERROR(MID($AB32,FIND(CHAR(160),SUBSTITUTE($AB32,\"{\",CHAR(160),IU$1)),FIND(CHAR(160),SUBSTITUTE($AB32,\"}\",CHAR(160),IU$1))-FIND(CHAR(160),SUBSTITUTE($AB32,\"{\",CHAR(160),IU$1))+1),\"\")","v":""},{"$f":"IFERROR(MID($AB32,FIND(CHAR(160),SUBSTITUTE($AB32,\"{\",CHAR(160),IV$1)),FIND(CHAR(160),SUBSTITUTE($AB32,\"}\",CHAR(160),IV$1))-FIND(CHAR(160),SUBSTITUTE($AB32,\"{\",CHAR(160),IV$1))+1),\"\")","v":""},{"$f":"IFERROR(MID($AB32,FIND(CHAR(160),SUBSTITUTE($AB32,\"{\",CHAR(160),IW$1)),FIND(CHAR(160),SUBSTITUTE($AB32,\"}\",CHAR(160),IW$1))-FIND(CHAR(160),SUBSTITUTE($AB32,\"{\",CHAR(160),IW$1))+1),\"\")","v":""},{"$f":"IFERROR(MID($AB32,FIND(CHAR(160),SUBSTITUTE($AB32,\"{\",CHAR(160),IX$1)),FIND(CHAR(160),SUBSTITUTE($AB32,\"}\",CHAR(160),IX$1))-FIND(CHAR(160),SUBSTITUTE($AB32,\"{\",CHAR(160),IX$1))+1),\"\")","v":""},null,{"$f":"10-COUNTIF(DU32:ED32,\"\")","v":1}]
["C&I Agricultural Solutions","MILK: Scroll Compressor - 2 HP","AMSC - AMSC2","2021-07-01","2022-06-30","Per Measure",400,0,"Per Measure",220,0,"2016-07-01","2022-06-30","Calculated","432 * 2 * {Measure:Quantity}",1E-4,null,"((432 * 2) /2850) * {Measure:Quantity}",null,null,"(((432 * 2) /2850) * {Measure:Quantity}) *{Factor:WinterCF}","(((432 * 2) /2850) * {Measure:Quantity}) *{Factor:SummerCF}",null,null,null,null,null,null,"2020-04-01","2022-06-30",15,0.67400000000000004,0.32700000000000001,0.436,0.23200000000000001,0.217,0.115,1,1.1220000000000001,1,0.52,1.6E-2,null,{"$f":"DU33","v":"{Measure:Quantity}"},1,{"$f":"DV33","v":""},null,{"$f":"DW33","v":""},null,{"$f":"DX33","v":""},null,{"$f":"DY33","v":""},null,{"$f":"DZ33","v":""},null,{"$f":"EA33","v":""},null,{"$f":"EB33","v":""},null,{"$f":"EC33","v":""},null,{"$f":"ED33","v":""},null,{"$f":"432 * 2 * AS33","v":864},{"$f":"0.0001","v":1E-4},0,{"$f":"((432 * 2) /2850) * AS33","v":0.30315789473684213},0,0,{"$f":"(((432 * 2) /2850) * AS33) *AF33","v":0.2043284210526316},{"$f":"(((432 * 2) /2850) * AS33) *AG33","v":9.9132631578947375E-2},0,0,0,0,0,0,null,"Res","Default DR",{"$f":"Benefits(BL33,BR33,BS33,BT33,BU33,BV33,BW33,BX33,BY33,BZ33,AE33,AH33,AI33,AJ33,AK33,AL33,AM33,AN33,AO33,AP33,CA33,CB33)","v":1290.9907254486657},956.07507251484628,0,0,0,0,0,0,0,{"$f":"SUMPRODUCT(CC33:CK33,--(CC33:CK33>0))","v":2247.0657979635121},{"$f":"-SUMPRODUCT(CC33:CK33,--(CC33:CK33<0))","v":0},null,{"$f":"400","v":400},null,null,{"$f":"CM33+CO33","v":400},{"$f":"IF(NetOrGross=\"Net\",(1-AO33+AP33),1)","v":1},{"$f":"(SUMPRODUCT(CC33:CJ33,--(CC33:CJ33>0))+CN33)*CS33/((-SUMPRODUCT(CC33:CJ33,--(CC33:CJ33<0))+MAX(CO33,CV33)+CP33+CQ33)*CS33+IF(FRIncentives=\"Yes\",CV33*(1-CS33),0))","v":5.6176644949087802},1,{"$f":"220","v":220},null,"Electric","y",null,{"$f":"IF(F33=\"Manual Entry\",\"Manual\",IF(G33=\"\",0,\"X=\"&SUBSTITUTE(SUBSTITUTE(SUBSTITUTE(SUBSTITUTE(SUBSTITUTE(SUBSTITUTE(SUBSTITUTE(SUBSTITUTE(SUBSTITUTE(SUBSTITUTE(SUBSTITUTE(SUBSTITUTE(G33,$ED33,$ED$2&ROW($ED33)),$EC33,$EC$2&ROW($EC33)),$EB33,$EB$2&ROW($EB33)),$EA33,$EA$2&ROW($EA33)),$DZ33,$DZ$2&ROW($DZ33)),$DY33,$DY$2&ROW($DY33)),$DX33,$DX$2&ROW($DX33)),$DW33,$DW$2&ROW($DW33)),$DV33,$DV$2&ROW($DV33)),$DU33,$DU$2&ROW($DU33)),$DT33,$DT$2&ROW($DT33)),$DS33,$DS$2&ROW($DS33))))","v":"X=400"},{"$f":"IF(I33=\"Manual Entry\",\"Manual\",IF(J33=\"\",0,\"X=\"&SUBSTITUTE(SUBSTITUTE(SUBSTITUTE(SUBSTITUTE(SUBSTITUTE(SUBSTITUTE(SUBSTITUTE(SUBSTITUTE(SUBSTITUTE(SUBSTITUTE(SUBSTITUTE(SUBSTITUTE(J33,$ED33,$ED$2&ROW($ED33)),$EC33,$EC$2&ROW($EC33)),$EB33,$EB$2&ROW($EB33)),$EA33,$EA$2&ROW($EA33)),$DZ33,$DZ$2&ROW($DZ33)),$DY33,$DY$2&ROW($DY33)),$DX33,$DX$2&ROW($DX33)),$DW33,$DW$2&ROW($DW33)),$DV33,$DV$2&ROW($DV33)),$DU33,$DU$2&ROW($DU33)),$DT33,$DT$2&ROW($DT33)),$DS33,$DS$2&ROW($DS33))))","v":"X=220"},{"$f":"IF(O33=\"\",0,\"X=\"&SUBSTITUTE(SUBSTITUTE(SUBSTITUTE(SUBSTITUTE(SUBSTITUTE(SUBSTITUTE(SUBSTITUTE(SUBSTITUTE(SUBSTITUTE(SUBSTITUTE(SUBSTITUTE(SUBSTITUTE(O33,$ED33,$ED$2&ROW($ED33)),$EC33,$EC$2&ROW($EC33)),$EB33,$EB$2&ROW($EB33)),$EA33,$EA$2&ROW($EA33)),$DZ33,$DZ$2&ROW($DZ33)),$DY33,$DY$2&ROW($DY33)),$DX33,$DX$2&ROW($DX33)),$DW33,$DW$2&ROW($DW33)),$DV33,$DV$2&ROW($DV33)),$DU33,$DU$2&ROW($DU33)),$DT33,$DT$2&ROW($DT33)),$DS33,$DS$2&ROW($DS33)))","v":"X=432 * 2 * AS33"},{"$f":"IF(P33=\"\",0,\"X=\"&SUBSTITUTE(SUBSTITUTE(SUBSTITUTE(SUBSTITUTE(SUBSTITUTE(SUBSTITUTE(SUBSTITUTE(SUBSTITUTE(SUBSTITUTE(SUBSTITUTE(SUBSTITUTE(SUBSTITUTE(P33,$ED33,$ED$2&ROW($ED33)),$EC33,$EC$2&ROW($EC33)),$EB33,$EB$2&ROW($EB33)),$EA33,$EA$2&ROW($EA33)),$DZ33,$DZ$2&ROW($DZ33)),$DY33,$DY$2&ROW($DY33)),$DX33,$DX$2&ROW($DX33)),$DW33,$DW$2&ROW($DW33)),$DV33,$DV$2&ROW($DV33)),$DU33,$DU$2&ROW($DU33)),$DT33,$DT$2&ROW($DT33)),$DS33,$DS$2&ROW($DS33)))","v":"X=0.0001"},{"$f":"IF(Q33=\"\",0,\"X=\"&SUBSTITUTE(SUBSTITUTE(SUBSTITUTE(SUBSTITUTE(SUBSTITUTE(SUBSTITUTE(SUBSTITUTE(SUBSTITUTE(SUBSTITUTE(SUBSTITUTE(SUBSTITUTE(SUBSTITUTE(Q33,$ED33,$ED$2&ROW($ED33)),$EC33,$EC$2&ROW($EC33)),$EB33,$EB$2&ROW($EB33)),$EA33,$EA$2&ROW($EA33)),$DZ33,$DZ$2&ROW($DZ33)),$DY33,$DY$2&ROW($DY33)),$DX33,$DX$2&ROW($DX33)),$DW33,$DW$2&ROW($DW33)),$DV33,$DV$2&ROW($DV33)),$DU33,$DU$2&ROW($DU33)),$DT33,$DT$2&ROW($DT33)),$DS33,$DS$2&ROW($DS33)))","v":0},{"$f":"IF(R33=\"\",0,\"X=\"&SUBSTITUTE(SUBSTITUTE(SUBSTITUTE(SUBSTITUTE(SUBSTITUTE(SUBSTITUTE(SUBSTITUTE(SUBSTITUTE(SUBSTITUTE(SUBSTITUTE(SUBSTITUTE(SUBSTITUTE(R33,$ED33,$ED$2&ROW($ED33)),$EC33,$EC$2&ROW($EC33)),$EB33,$EB$2&ROW($EB33)),$EA33,$EA$2&ROW($EA33)),$DZ33,$DZ$2&ROW($DZ33)),$DY33,$DY$2&ROW($DY33)),$DX33,$DX$2&ROW($DX33)),$DW33,$DW$2&ROW($DW33)),$DV33,$DV$2&ROW($DV33)),$DU33,$DU$2&ROW($DU33)),$DT33,$DT$2&ROW($DT33)),$DS33,$DS$2&ROW($DS33)))","v":"X=((432 * 2) /2850) * AS33"},{"$f":"IF(S33=\"\",0,\"X=\"&SUBSTITUTE(SUBSTITUTE(SUBSTITUTE(SUBSTITUTE(SUBSTITUTE(SUBSTITUTE(SUBSTITUTE(SUBSTITUTE(SUBSTITUTE(SUBSTITUTE(SUBSTITUTE(SUBSTITUTE(S33,$ED33,$ED$2&ROW($ED33)),$EC33,$EC$2&ROW($EC33)),$EB33,$EB$2&ROW($EB33)),$EA33,$EA$2&ROW($EA33)),$DZ33,$DZ$2&ROW($DZ33)),$DY33,$DY$2&ROW($DY33)),$DX33,$DX$2&ROW($DX33)),$DW33,$DW$2&ROW($DW33)),$DV33,$DV$2&ROW($DV33)),$DU33,$DU$2&ROW($DU33)),$DT33,$DT$2&ROW($DT33)),$DS33,$DS$2&ROW($DS33)))","v":0},{"$f":"IF(T33=\"\",0,\"X=\"&SUBSTITUTE(SUBSTITUTE(SUBSTITUTE(SUBSTITUTE(SUBSTITUTE(SUBSTITUTE(SUBSTITUTE(SUBSTITUTE(SUBSTITUTE(SUBSTITUTE(SUBSTITUTE(SUBSTITUTE(T33,$ED33,$ED$2&ROW($ED33)),$EC33,$EC$2&ROW($EC33)),$EB33,$EB$2&ROW($EB33)),$EA33,$EA$2&ROW($EA33)),$DZ33,$DZ$2&ROW($DZ33)),$DY33,$DY$2&ROW($DY33)),$DX33,$DX$2&ROW($DX33)),$DW33,$DW$2&ROW($DW33)),$DV33,$DV$2&ROW($DV33)),$DU33,$DU$2&ROW($DU33)),$DT33,$DT$2&ROW($DT33)),$DS33,$DS$2&ROW($DS33)))","v":0},{"$f":"IF(U33=\"\",0,\"X=\"&SUBSTITUTE(SUBSTITUTE(SUBSTITUTE(SUBSTITUTE(SUBSTITUTE(SUBSTITUTE(SUBSTITUTE(SUBSTITUTE(SUBSTITUTE(SUBSTITUTE(SUBSTITUTE(SUBSTITUTE(U33,$ED33,$ED$2&ROW($ED33)),$EC33,$EC$2&ROW($EC33)),$EB33,$EB$2&ROW($EB33)),$EA33,$EA$2&ROW($EA33)),$DZ33,$DZ$2&ROW($DZ33)),$DY33,$DY$2&ROW($DY33)),$DX33,$DX$2&ROW($DX33)),$DW33,$DW$2&ROW($DW33)),$DV33,$DV$2&ROW($DV33)),$DU33,$DU$2&ROW($DU33)),$DT33,$DT$2&ROW($DT33)),$DS33,$DS$2&ROW($DS33)))","v":"X=(((432 * 2) /2850) * AS33) *AF33"},{"$f":"IF(V33=\"\",0,\"X=\"&SUBSTITUTE(SUBSTITUTE(SUBSTITUTE(SUBSTITUTE(SUBSTITUTE(SUBSTITUTE(SUBSTITUTE(SUBSTITUTE(SUBSTITUTE(SUBSTITUTE(SUBSTITUTE(SUBSTITUTE(V33,$ED33,$ED$2&ROW($ED33)),$EC33,$EC$2&ROW($EC33)),$EB33,$EB$2&ROW($EB33)),$EA33,$EA$2&ROW($EA33)),$DZ33,$DZ$2&ROW($DZ33)),$DY33,$DY$2&ROW($DY33)),$DX33,$DX$2&ROW($DX33)),$DW33,$DW$2&ROW($DW33)),$DV33,$DV$2&ROW($DV33)),$DU33,$DU$2&ROW($DU33)),$DT33,$DT$2&ROW($DT33)),$DS33,$DS$2&ROW($DS33)))","v":"X=(((432 * 2) /2850) * AS33) *AG33"},{"$f":"IF(W33=\"\",0,\"X=\"&SUBSTITUTE(SUBSTITUTE(SUBSTITUTE(SUBSTITUTE(SUBSTITUTE(SUBSTITUTE(SUBSTITUTE(SUBSTITUTE(SUBSTITUTE(SUBSTITUTE(SUBSTITUTE(SUBSTITUTE(W33,$ED33,$ED$2&ROW($ED33)),$EC33,$EC$2&ROW($EC33)),$EB33,$EB$2&ROW($EB33)),$EA33,$EA$2&ROW($EA33)),$DZ33,$DZ$2&ROW($DZ33)),$DY33,$DY$2&ROW($DY33)),$DX33,$DX$2&ROW($DX33)),$DW33,$DW$2&ROW($DW33)),$DV33,$DV$2&ROW($DV33)),$DU33,$DU$2&ROW($DU33)),$DT33,$DT$2&ROW($DT33)),$DS33,$DS$2&ROW($DS33)))","v":0},{"$f":"IF(X33=\"\",0,\"X=\"&SUBSTITUTE(SUBSTITUTE(SUBSTITUTE(SUBSTITUTE(SUBSTITUTE(SUBSTITUTE(SUBSTITUTE(SUBSTITUTE(SUBSTITUTE(SUBSTITUTE(SUBSTITUTE(SUBSTITUTE(X33,$ED33,$ED$2&ROW($ED33)),$EC33,$EC$2&ROW($EC33)),$EB33,$EB$2&ROW($EB33)),$EA33,$EA$2&ROW($EA33)),$DZ33,$DZ$2&ROW($DZ33)),$DY33,$DY$2&ROW($DY33)),$DX33,$DX$2&ROW($DX33)),$DW33,$DW$2&ROW($DW33)),$DV33,$DV$2&ROW($DV33)),$DU33,$DU$2&ROW($DU33)),$DT33,$DT$2&ROW($DT33)),$DS33,$DS$2&ROW($DS33)))","v":0},{"$f":"IF(Y33=\"\",0,\"X=\"&SUBSTITUTE(SUBSTITUTE(SUBSTITUTE(SUBSTITUTE(SUBSTITUTE(SUBSTITUTE(SUBSTITUTE(SUBSTITUTE(SUBSTITUTE(SUBSTITUTE(SUBSTITUTE(SUBSTITUTE(Y33,$ED33,$ED$2&ROW($ED33)),$EC33,$EC$2&ROW($EC33)),$EB33,$EB$2&ROW($EB33)),$EA33,$EA$2&ROW($EA33)),$DZ33,$DZ$2&ROW($DZ33)),$DY33,$DY$2&ROW($DY33)),$DX33,$DX$2&ROW($DX33)),$DW33,$DW$2&ROW($DW33)),$DV33,$DV$2&ROW($DV33)),$DU33,$DU$2&ROW($DU33)),$DT33,$DT$2&ROW($DT33)),$DS33,$DS$2&ROW($DS33)))","v":0},{"$f":"IF(Z33=\"\",0,\"X=\"&SUBSTITUTE(SUBSTITUTE(SUBSTITUTE(SUBSTITUTE(SUBSTITUTE(SUBSTITUTE(SUBSTITUTE(SUBSTITUTE(SUBSTITUTE(SUBSTITUTE(SUBSTITUTE(SUBSTITUTE(Z33,$ED33,$ED$2&ROW($ED33)),$EC33,$EC$2&ROW($EC33)),$EB33,$EB$2&ROW($EB33)),$EA33,$EA$2&ROW($EA33)),$DZ33,$DZ$2&ROW($DZ33)),$DY33,$DY$2&ROW($DY33)),$DX33,$DX$2&ROW($DX33)),$DW33,$DW$2&ROW($DW33)),$DV33,$DV$2&ROW($DV33)),$DU33,$DU$2&ROW($DU33)),$DT33,$DT$2&ROW($DT33)),$DS33,$DS$2&ROW($DS33)))","v":0},{"$f":"IF(AA33=\"\",0,\"X=\"&SUBSTITUTE(SUBSTITUTE(SUBSTITUTE(SUBSTITUTE(SUBSTITUTE(SUBSTITUTE(SUBSTITUTE(SUBSTITUTE(SUBSTITUTE(SUBSTITUTE(SUBSTITUTE(SUBSTITUTE(AA33,$ED33,$ED$2&ROW($ED33)),$EC33,$EC$2&ROW($EC33)),$EB33,$EB$2&ROW($EB33)),$EA33,$EA$2&ROW($EA33)),$DZ33,$DZ$2&ROW($DZ33)),$DY33,$DY$2&ROW($DY33)),$DX33,$DX$2&ROW($DX33)),$DW33,$DW$2&ROW($DW33)),$DV33,$DV$2&ROW($DV33)),$DU33,$DU$2&ROW($DU33)),$DT33,$DT$2&ROW($DT33)),$DS33,$DS$2&ROW($DS33)))","v":0},{"$f":"IF(AB33=\"\",0,\"X=\"&SUBSTITUTE(SUBSTITUTE(SUBSTITUTE(SUBSTITUTE(SUBSTITUTE(SUBSTITUTE(SUBSTITUTE(SUBSTITUTE(SUBSTITUTE(SUBSTITUTE(SUBSTITUTE(SUBSTITUTE(AB33,$ED33,$ED$2&ROW($ED33)),$EC33,$EC$2&ROW($EC33)),$EB33,$EB$2&ROW($EB33)),$EA33,$EA$2&ROW($EA33)),$DZ33,$DZ$2&ROW($DZ33)),$DY33,$DY$2&ROW($DY33)),$DX33,$DX$2&ROW($DX33)),$DW33,$DW$2&ROW($DW33)),$DV33,$DV$2&ROW($DV33)),$DU33,$DU$2&ROW($DU33)),$DT33,$DT$2&ROW($DT33)),$DS33,$DS$2&ROW($DS33)))","v":0},null,null,"{Factor:WinterCF}","{Factor:SummerCF}",{"$f":"IFERROR(INDEX($EG33:$IV33,MATCH(0,COUNTIF($DR33:DT33,$EG33:$IV33),0)),\"\")","v":"{Measure:Quantity}"},{"$f":"IFERROR(INDEX($EG33:$IV33,MATCH(0,COUNTIF($DR33:DU33,$EG33:$IV33),0)),\"\")","v":""},{"$f":"IFERROR(INDEX($EG33:$IV33,MATCH(0,COUNTIF($DR33:DV33,$EG33:$IV33),0)),\"\")","v":""},{"$f":"IFERROR(INDEX($EG33:$IV33,MATCH(0,COUNTIF($DR33:DW33,$EG33:$IV33),0)),\"\")","v":""},{"$f":"IFERROR(INDEX($EG33:$IV33,MATCH(0,COUNTIF($DR33:DX33,$EG33:$IV33),0)),\"\")","v":""},{"$f":"IFERROR(INDEX($EG33:$IV33,MATCH(0,COUNTIF($DR33:DY33,$EG33:$IV33),0)),\"\")","v":""},{"$f":"IFERROR(INDEX($EG33:$IV33,MATCH(0,COUNTIF($DR33:DZ33,$EG33:$IV33),0)),\"\")","v":""},{"$f":"IFERROR(INDEX($EG33:$IV33,MATCH(0,COUNTIF($DR33:EA33,$EG33:$IV33),0)),\"\")","v":""},{"$f":"IFERROR(INDEX($EG33:$IV33,MATCH(0,COUNTIF($DR33:EB33,$EG33:$IV33),0)),\"\")","v":""},{"$f":"IFERROR(INDEX($EG33:$IV33,MATCH(0,COUNTIF($DR33:EC33,$EG33:$IV33),0)),\"\")","v":""},null,null,{"$f":"IFERROR(MID($G33,FIND(CHAR(160),SUBSTITUTE($G33,\"{\",CHAR(160),EG$1)),FIND(CHAR(160),SUBSTITUTE($G33,\"}\",CHAR(160),EG$1))-FIND(CHAR(160),SUBSTITUTE($G33,\"{\",CHAR(160),EG$1))+1),\"\")","v":""},{"$f":"IFERROR(MID($G33,FIND(CHAR(160),SUBSTITUTE($G33,\"{\",CHAR(160),EH$1)),FIND(CHAR(160),SUBSTITUTE($G33,\"}\",CHAR(160),EH$1))-FIND(CHAR(160),SUBSTITUTE($G33,\"{\",CHAR(160),EH$1))+1),\"\")","v":""},{"$f":"IFERROR(MID($G33,FIND(CHAR(160),SUBSTITUTE($G33,\"{\",CHAR(160),EI$1)),FIND(CHAR(160),SUBSTITUTE($G33,\"}\",CHAR(160),EI$1))-FIND(CHAR(160),SUBSTITUTE($G33,\"{\",CHAR(160),EI$1))+1),\"\")","v":""},{"$f":"IFERROR(MID($G33,FIND(CHAR(160),SUBSTITUTE($G33,\"{\",CHAR(160),EJ$1)),FIND(CHAR(160),SUBSTITUTE($G33,\"}\",CHAR(160),EJ$1))-FIND(CHAR(160),SUBSTITUTE($G33,\"{\",CHAR(160),EJ$1))+1),\"\")","v":""},{"$f":"IFERROR(MID($G33,FIND(CHAR(160),SUBSTITUTE($G33,\"{\",CHAR(160),EK$1)),FIND(CHAR(160),SUBSTITUTE($G33,\"}\",CHAR(160),EK$1))-FIND(CHAR(160),SUBSTITUTE($G33,\"{\",CHAR(160),EK$1))+1),\"\")","v":""},{"$f":"IFERROR(MID($G33,FIND(CHAR(160),SUBSTITUTE($G33,\"{\",CHAR(160),EL$1)),FIND(CHAR(160),SUBSTITUTE($G33,\"}\",CHAR(160),EL$1))-FIND(CHAR(160),SUBSTITUTE($G33,\"{\",CHAR(160),EL$1))+1),\"\")","v":""},{"$f":"IFERROR(MID($G33,FIND(CHAR(160),SUBSTITUTE($G33,\"{\",CHAR(160),EM$1)),FIND(CHAR(160),SUBSTITUTE($G33,\"}\",CHAR(160),EM$1))-FIND(CHAR(160),SUBSTITUTE($G33,\"{\",CHAR(160),EM$1))+1),\"\")","v":""},{"$f":"IFERROR(MID($G33,FIND(CHAR(160),SUBSTITUTE($G33,\"{\",CHAR(160),EN$1)),FIND(CHAR(160),SUBSTITUTE($G33,\"}\",CHAR(160),EN$1))-FIND(CHAR(160),SUBSTITUTE($G33,\"{\",CHAR(160),EN$1))+1),\"\")","v":""},{"$f":"IFERROR(MID($G33,FIND(CHAR(160),SUBSTITUTE($G33,\"{\",CHAR(160),EO$1)),FIND(CHAR(160),SUBSTITUTE($G33,\"}\",CHAR(160),EO$1))-FIND(CHAR(160),SUBSTITUTE($G33,\"{\",CHAR(160),EO$1))+1),\"\")","v":""},{"$f":"IFERROR(MID($G33,FIND(CHAR(160),SUBSTITUTE($G33,\"{\",CHAR(160),EP$1)),FIND(CHAR(160),SUBSTITUTE($G33,\"}\",CHAR(160),EP$1))-FIND(CHAR(160),SUBSTITUTE($G33,\"{\",CHAR(160),EP$1))+1),\"\")","v":""},{"$f":"IFERROR(MID($J33,FIND(CHAR(160),SUBSTITUTE($J33,\"{\",CHAR(160),EQ$1)),FIND(CHAR(160),SUBSTITUTE($J33,\"}\",CHAR(160),EQ$1))-FIND(CHAR(160),SUBSTITUTE($J33,\"{\",CHAR(160),EQ$1))+1),\"\")","v":""},{"$f":"IFERROR(MID($J33,FIND(CHAR(160),SUBSTITUTE($J33,\"{\",CHAR(160),ER$1)),FIND(CHAR(160),SUBSTITUTE($J33,\"}\",CHAR(160),ER$1))-FIND(CHAR(160),SUBSTITUTE($J33,\"{\",CHAR(160),ER$1))+1),\"\")","v":""},{"$f":"IFERROR(MID($J33,FIND(CHAR(160),SUBSTITUTE($J33,\"{\",CHAR(160),ES$1)),FIND(CHAR(160),SUBSTITUTE($J33,\"}\",CHAR(160),ES$1))-FIND(CHAR(160),SUBSTITUTE($J33,\"{\",CHAR(160),ES$1))+1),\"\")","v":""},{"$f":"IFERROR(MID($J33,FIND(CHAR(160),SUBSTITUTE($J33,\"{\",CHAR(160),ET$1)),FIND(CHAR(160),SUBSTITUTE($J33,\"}\",CHAR(160),ET$1))-FIND(CHAR(160),SUBSTITUTE($J33,\"{\",CHAR(160),ET$1))+1),\"\")","v":""},{"$f":"IFERROR(MID($J33,FIND(CHAR(160),SUBSTITUTE($J33,\"{\",CHAR(160),EU$1)),FIND(CHAR(160),SUBSTITUTE($J33,\"}\",CHAR(160),EU$1))-FIND(CHAR(160),SUBSTITUTE($J33,\"{\",CHAR(160),EU$1))+1),\"\")","v":""},{"$f":"IFERROR(MID($J33,FIND(CHAR(160),SUBSTITUTE($J33,\"{\",CHAR(160),EV$1)),FIND(CHAR(160),SUBSTITUTE($J33,\"}\",CHAR(160),EV$1))-FIND(CHAR(160),SUBSTITUTE($J33,\"{\",CHAR(160),EV$1))+1),\"\")","v":""},{"$f":"IFERROR(MID($J33,FIND(CHAR(160),SUBSTITUTE($J33,\"{\",CHAR(160),EW$1)),FIND(CHAR(160),SUBSTITUTE($J33,\"}\",CHAR(160),EW$1))-FIND(CHAR(160),SUBSTITUTE($J33,\"{\",CHAR(160),EW$1))+1),\"\")","v":""},{"$f":"IFERROR(MID($J33,FIND(CHAR(160),SUBSTITUTE($J33,\"{\",CHAR(160),EX$1)),FIND(CHAR(160),SUBSTITUTE($J33,\"}\",CHAR(160),EX$1))-FIND(CHAR(160),SUBSTITUTE($J33,\"{\",CHAR(160),EX$1))+1),\"\")","v":""},{"$f":"IFERROR(MID($J33,FIND(CHAR(160),SUBSTITUTE($J33,\"{\",CHAR(160),EY$1)),FIND(CHAR(160),SUBSTITUTE($J33,\"}\",CHAR(160),EY$1))-FIND(CHAR(160),SUBSTITUTE($J33,\"{\",CHAR(160),EY$1))+1),\"\")","v":""},{"$f":"IFERROR(MID($J33,FIND(CHAR(160),SUBSTITUTE($J33,\"{\",CHAR(160),EZ$1)),FIND(CHAR(160),SUBSTITUTE($J33,\"}\",CHAR(160),EZ$1))-FIND(CHAR(160),SUBSTITUTE($J33,\"{\",CHAR(160),EZ$1))+1),\"\")","v":""},{"$f":"IFERROR(MID($J33,FIND(CHAR(160),SUBSTITUTE($J33,\"{\",CHAR(160),FA$1)),FIND(CHAR(160),SUBSTITUTE($J33,\"}\",CHAR(160),FA$1))-FIND(CHAR(160),SUBSTITUTE($J33,\"{\",CHAR(160),FA$1))+1),\"\")","v":""},{"$f":"IFERROR(MID($J33,FIND(CHAR(160),SUBSTITUTE($J33,\"{\",CHAR(160),FB$1)),FIND(CHAR(160),SUBSTITUTE($J33,\"}\",CHAR(160),FB$1))-FIND(CHAR(160),SUBSTITUTE($J33,\"{\",CHAR(160),FB$1))+1),\"\")","v":""},{"$f":"IFERROR(MID($O33,FIND(CHAR(160),SUBSTITUTE($O33,\"{\",CHAR(160),FC$1)),FIND(CHAR(160),SUBSTITUTE($O33,\"}\",CHAR(160),FC$1))-FIND(CHAR(160),SUBSTITUTE($O33,\"{\",CHAR(160),FC$1))+1),\"\")","v":""},{"$f":"IFERROR(MID($O33,FIND(CHAR(160),SUBSTITUTE($O33,\"{\",CHAR(160),FD$1)),FIND(CHAR(160),SUBSTITUTE($O33,\"}\",CHAR(160),FD$1))-FIND(CHAR(160),SUBSTITUTE($O33,\"{\",CHAR(160),FD$1))+1),\"\")","v":""},{"$f":"IFERROR(MID($O33,FIND(CHAR(160),SUBSTITUTE($O33,\"{\",CHAR(160),FE$1)),FIND(CHAR(160),SUBSTITUTE($O33,\"}\",CHAR(160),FE$1))-FIND(CHAR(160),SUBSTITUTE($O33,\"{\",CHAR(160),FE$1))+1),\"\")","v":""},{"$f":"IFERROR(MID($O33,FIND(CHAR(160),SUBSTITUTE($O33,\"{\",CHAR(160),FF$1)),FIND(CHAR(160),SUBSTITUTE($O33,\"}\",CHAR(160),FF$1))-FIND(CHAR(160),SUBSTITUTE($O33,\"{\",CHAR(160),FF$1))+1),\"\")","v":""},{"$f":"IFERROR(MID($O33,FIND(CHAR(160),SUBSTITUTE($O33,\"{\",CHAR(160),FG$1)),FIND(CHAR(160),SUBSTITUTE($O33,\"}\",CHAR(160),FG$1))-FIND(CHAR(160),SUBSTITUTE($O33,\"{\",CHAR(160),FG$1))+1),\"\")","v":""},{"$f":"IFERROR(MID($O33,FIND(CHAR(160),SUBSTITUTE($O33,\"{\",CHAR(160),FH$1)),FIND(CHAR(160),SUBSTITUTE($O33,\"}\",CHAR(160),FH$1))-FIND(CHAR(160),SUBSTITUTE($O33,\"{\",CHAR(160),FH$1))+1),\"\")","v":""},{"$f":"IFERROR(MID($O33,FIND(CHAR(160),SUBSTITUTE($O33,\"{\",CHAR(160),FI$1)),FIND(CHAR(160),SUBSTITUTE($O33,\"}\",CHAR(160),FI$1))-FIND(CHAR(160),SUBSTITUTE($O33,\"{\",CHAR(160),FI$1))+1),\"\")","v":""},{"$f":"IFERROR(MID($O33,FIND(CHAR(160),SUBSTITUTE($O33,\"{\",CHAR(160),FJ$1)),FIND(CHAR(160),SUBSTITUTE($O33,\"}\",CHAR(160),FJ$1))-FIND(CHAR(160),SUBSTITUTE($O33,\"{\",CHAR(160),FJ$1))+1),\"\")","v":""},{"$f":"IFERROR(MID($O33,FIND(CHAR(160),SUBSTITUTE($O33,\"{\",CHAR(160),FK$1)),FIND(CHAR(160),SUBSTITUTE($O33,\"}\",CHAR(160),FK$1))-FIND(CHAR(160),SUBSTITUTE($O33,\"{\",CHAR(160),FK$1))+1),\"\")","v":"{Measure:Quantity}"},{"$f":"IFERROR(MID($O33,FIND(CHAR(160),SUBSTITUTE($O33,\"{\",CHAR(160),FL$1)),FIND(CHAR(160),SUBSTITUTE($O33,\"}\",CHAR(160),FL$1))-FIND(CHAR(160),SUBSTITUTE($O33,\"{\",CHAR(160),FL$1))+1),\"\")","v":""},{"$f":"IFERROR(MID($R33,FIND(CHAR(160),SUBSTITUTE($R33,\"{\",CHAR(160),FM$1)),FIND(CHAR(160),SUBSTITUTE($R33,\"}\",CHAR(160),FM$1))-FIND(CHAR(160),SUBSTITUTE($R33,\"{\",CHAR(160),FM$1))+1),\"\")","v":""},{"$f":"IFERROR(MID($R33,FIND(CHAR(160),SUBSTITUTE($R33,\"{\",CHAR(160),FN$1)),FIND(CHAR(160),SUBSTITUTE($R33,\"}\",CHAR(160),FN$1))-FIND(CHAR(160),SUBSTITUTE($R33,\"{\",CHAR(160),FN$1))+1),\"\")","v":""},{"$f":"IFERROR(MID($R33,FIND(CHAR(160),SUBSTITUTE($R33,\"{\",CHAR(160),FO$1)),FIND(CHAR(160),SUBSTITUTE($R33,\"}\",CHAR(160),FO$1))-FIND(CHAR(160),SUBSTITUTE($R33,\"{\",CHAR(160),FO$1))+1),\"\")","v":""},{"$f":"IFERROR(MID($R33,FIND(CHAR(160),SUBSTITUTE($R33,\"{\",CHAR(160),FP$1)),FIND(CHAR(160),SUBSTITUTE($R33,\"}\",CHAR(160),FP$1))-FIND(CHAR(160),SUBSTITUTE($R33,\"{\",CHAR(160),FP$1))+1),\"\")","v":""},{"$f":"IFERROR(MID($R33,FIND(CHAR(160),SUBSTITUTE($R33,\"{\",CHAR(160),FQ$1)),FIND(CHAR(160),SUBSTITUTE($R33,\"}\",CHAR(160),FQ$1))-FIND(CHAR(160),SUBSTITUTE($R33,\"{\",CHAR(160),FQ$1))+1),\"\")","v":""},{"$f":"IFERROR(MID($R33,FIND(CHAR(160),SUBSTITUTE($R33,\"{\",CHAR(160),FR$1)),FIND(CHAR(160),SUBSTITUTE($R33,\"}\",CHAR(160),FR$1))-FIND(CHAR(160),SUBSTITUTE($R33,\"{\",CHAR(160),FR$1))+1),\"\")","v":""},{"$f":"IFERROR(MID($R33,FIND(CHAR(160),SUBSTITUTE($R33,\"{\",CHAR(160),FS$1)),FIND(CHAR(160),SUBSTITUTE($R33,\"}\",CHAR(160),FS$1))-FIND(CHAR(160),SUBSTITUTE($R33,\"{\",CHAR(160),FS$1))+1),\"\")","v":""},{"$f":"IFERROR(MID($R33,FIND(CHAR(160),SUBSTITUTE($R33,\"{\",CHAR(160),FT$1)),FIND(CHAR(160),SUBSTITUTE($R33,\"}\",CHAR(160),FT$1))-FIND(CHAR(160),SUBSTITUTE($R33,\"{\",CHAR(160),FT$1))+1),\"\")","v":""},{"$f":"IFERROR(MID($R33,FIND(CHAR(160),SUBSTITUTE($R33,\"{\",CHAR(160),FU$1)),FIND(CHAR(160),SUBSTITUTE($R33,\"}\",CHAR(160),FU$1))-FIND(CHAR(160),SUBSTITUTE($R33,\"{\",CHAR(160),FU$1))+1),\"\")","v":"{Measure:Quantity}"},{"$f":"IFERROR(MID($R33,FIND(CHAR(160),SUBSTITUTE($R33,\"{\",CHAR(160),FV$1)),FIND(CHAR(160),SUBSTITUTE($R33,\"}\",CHAR(160),FV$1))-FIND(CHAR(160),SUBSTITUTE($R33,\"{\",CHAR(160),FV$1))+1),\"\")","v":""},{"$f":"IFERROR(MID($U33,FIND(CHAR(160),SUBSTITUTE($U33,\"{\",CHAR(160),FW$1)),FIND(CHAR(160),SUBSTITUTE($U33,\"}\",CHAR(160),FW$1))-FIND(CHAR(160),SUBSTITUTE($U33,\"{\",CHAR(160),FW$1))+1),\"\")","v":""},{"$f":"IFERROR(MID($U33,FIND(CHAR(160),SUBSTITUTE($U33,\"{\",CHAR(160),FX$1)),FIND(CHAR(160),SUBSTITUTE($U33,\"}\",CHAR(160),FX$1))-FIND(CHAR(160),SUBSTITUTE($U33,\"{\",CHAR(160),FX$1))+1),\"\")","v":""},{"$f":"IFERROR(MID($U33,FIND(CHAR(160),SUBSTITUTE($U33,\"{\",CHAR(160),FY$1)),FIND(CHAR(160),SUBSTITUTE($U33,\"}\",CHAR(160),FY$1))-FIND(CHAR(160),SUBSTITUTE($U33,\"{\",CHAR(160),FY$1))+1),\"\")","v":""},{"$f":"IFERROR(MID($U33,FIND(CHAR(160),SUBSTITUTE($U33,\"{\",CHAR(160),FZ$1)),FIND(CHAR(160),SUBSTITUTE($U33,\"}\",CHAR(160),FZ$1))-FIND(CHAR(160),SUBSTITUTE($U33,\"{\",CHAR(160),FZ$1))+1),\"\")","v":""},{"$f":"IFERROR(MID($U33,FIND(CHAR(160),SUBSTITUTE($U33,\"{\",CHAR(160),GA$1)),FIND(CHAR(160),SUBSTITUTE($U33,\"}\",CHAR(160),GA$1))-FIND(CHAR(160),SUBSTITUTE($U33,\"{\",CHAR(160),GA$1))+1),\"\")","v":""},{"$f":"IFERROR(MID($U33,FIND(CHAR(160),SUBSTITUTE($U33,\"{\",CHAR(160),GB$1)),FIND(CHAR(160),SUBSTITUTE($U33,\"}\",CHAR(160),GB$1))-FIND(CHAR(160),SUBSTITUTE($U33,\"{\",CHAR(160),GB$1))+1),\"\")","v":""},{"$f":"IFERROR(MID($U33,FIND(CHAR(160),SUBSTITUTE($U33,\"{\",CHAR(160),GC$1)),FIND(CHAR(160),SUBSTITUTE($U33,\"}\",CHAR(160),GC$1))-FIND(CHAR(160),SUBSTITUTE($U33,\"{\",CHAR(160),GC$1))+1),\"\")","v":""},{"$f":"IFERROR(MID($U33,FIND(CHAR(160),SUBSTITUTE($U33,\"{\",CHAR(160),GD$1)),FIND(CHAR(160),SUBSTITUTE($U33,\"}\",CHAR(160),GD$1))-FIND(CHAR(160),SUBSTITUTE($U33,\"{\",CHAR(160),GD$1))+1),\"\")","v":""},{"$f":"IFERROR(MID($U33,FIND(CHAR(160),SUBSTITUTE($U33,\"{\",CHAR(160),GE$1)),FIND(CHAR(160),SUBSTITUTE($U33,\"}\",CHAR(160),GE$1))-FIND(CHAR(160),SUBSTITUTE($U33,\"{\",CHAR(160),GE$1))+1),\"\")","v":"{Measure:Quantity}"},{"$f":"IFERROR(MID($U33,FIND(CHAR(160),SUBSTITUTE($U33,\"{\",CHAR(160),GF$1)),FIND(CHAR(160),SUBSTITUTE($U33,\"}\",CHAR(160),GF$1))-FIND(CHAR(160),SUBSTITUTE($U33,\"{\",CHAR(160),GF$1))+1),\"\")","v":"{Factor:WinterCF}"},{"$f":"IFERROR(MID($V33,FIND(CHAR(160),SUBSTITUTE($V33,\"{\",CHAR(160),GG$1)),FIND(CHAR(160),SUBSTITUTE($V33,\"}\",CHAR(160),GG$1))-FIND(CHAR(160),SUBSTITUTE($V33,\"{\",CHAR(160),GG$1))+1),\"\")","v":""},{"$f":"IFERROR(MID($V33,FIND(CHAR(160),SUBSTITUTE($V33,\"{\",CHAR(160),GH$1)),FIND(CHAR(160),SUBSTITUTE($V33,\"}\",CHAR(160),GH$1))-FIND(CHAR(160),SUBSTITUTE($V33,\"{\",CHAR(160),GH$1))+1),\"\")","v":""},{"$f":"IFERROR(MID($V33,FIND(CHAR(160),SUBSTITUTE($V33,\"{\",CHAR(160),GI$1)),FIND(CHAR(160),SUBSTITUTE($V33,\"}\",CHAR(160),GI$1))-FIND(CHAR(160),SUBSTITUTE($V33,\"{\",CHAR(160),GI$1))+1),\"\")","v":""},{"$f":"IFERROR(MID($V33,FIND(CHAR(160),SUBSTITUTE($V33,\"{\",CHAR(160),GJ$1)),FIND(CHAR(160),SUBSTITUTE($V33,\"}\",CHAR(160),GJ$1))-FIND(CHAR(160),SUBSTITUTE($V33,\"{\",CHAR(160),GJ$1))+1),\"\")","v":""},{"$f":"IFERROR(MID($V33,FIND(CHAR(160),SUBSTITUTE($V33,\"{\",CHAR(160),GK$1)),FIND(CHAR(160),SUBSTITUTE($V33,\"}\",CHAR(160),GK$1))-FIND(CHAR(160),SUBSTITUTE($V33,\"{\",CHAR(160),GK$1))+1),\"\")","v":""},{"$f":"IFERROR(MID($V33,FIND(CHAR(160),SUBSTITUTE($V33,\"{\",CHAR(160),GL$1)),FIND(CHAR(160),SUBSTITUTE($V33,\"}\",CHAR(160),GL$1))-FIND(CHAR(160),SUBSTITUTE($V33,\"{\",CHAR(160),GL$1))+1),\"\")","v":""},{"$f":"IFERROR(MID($V33,FIND(CHAR(160),SUBSTITUTE($V33,\"{\",CHAR(160),GM$1)),FIND(CHAR(160),SUBSTITUTE($V33,\"}\",CHAR(160),GM$1))-FIND(CHAR(160),SUBSTITUTE($V33,\"{\",CHAR(160),GM$1))+1),\"\")","v":""},{"$f":"IFERROR(MID($V33,FIND(CHAR(160),SUBSTITUTE($V33,\"{\",CHAR(160),GN$1)),FIND(CHAR(160),SUBSTITUTE($V33,\"}\",CHAR(160),GN$1))-FIND(CHAR(160),SUBSTITUTE($V33,\"{\",CHAR(160),GN$1))+1),\"\")","v":""},{"$f":"IFERROR(MID($V33,FIND(CHAR(160),SUBSTITUTE($V33,\"{\",CHAR(160),GO$1)),FIND(CHAR(160),SUBSTITUTE($V33,\"}\",CHAR(160),GO$1))-FIND(CHAR(160),SUBSTITUTE($V33,\"{\",CHAR(160),GO$1))+1),\"\")","v":"{Measure:Quantity}"},{"$f":"IFERROR(MID($V33,FIND(CHAR(160),SUBSTITUTE($V33,\"{\",CHAR(160),GP$1)),FIND(CHAR(160),SUBSTITUTE($V33,\"}\",CHAR(160),GP$1))-FIND(CHAR(160),SUBSTITUTE($V33,\"{\",CHAR(160),GP$1))+1),\"\")","v":"{Factor:SummerCF}"},{"$f":"IFERROR(MID($W33,FIND(CHAR(160),SUBSTITUTE($W33,\"{\",CHAR(160),GQ$1)),FIND(CHAR(160),SUBSTITUTE($W33,\"}\",CHAR(160),GQ$1))-FIND(CHAR(160),SUBSTITUTE($W33,\"{\",CHAR(160),GQ$1))+1),\"\")","v":""},{"$f":"IFERROR(MID($W33,FIND(CHAR(160),SUBSTITUTE($W33,\"{\",CHAR(160),GR$1)),FIND(CHAR(160),SUBSTITUTE($W33,\"}\",CHAR(160),GR$1))-FIND(CHAR(160),SUBSTITUTE($W33,\"{\",CHAR(160),GR$1))+1),\"\")","v":""},{"$f":"IFERROR(MID($W33,FIND(CHAR(160),SUBSTITUTE($W33,\"{\",CHAR(160),GS$1)),FIND(CHAR(160),SUBSTITUTE($W33,\"}\",CHAR(160),GS$1))-FIND(CHAR(160),SUBSTITUTE($W33,\"{\",CHAR(160),GS$1))+1),\"\")","v":""},{"$f":"IFERROR(MID($W33,FIND(CHAR(160),SUBSTITUTE($W33,\"{\",CHAR(160),GT$1)),FIND(CHAR(160),SUBSTITUTE($W33,\"}\",CHAR(160),GT$1))-FIND(CHAR(160),SUBSTITUTE($W33,\"{\",CHAR(160),GT$1))+1),\"\")","v":""},{"$f":"IFERROR(MID($W33,FIND(CHAR(160),SUBSTITUTE($W33,\"{\",CHAR(160),GU$1)),FIND(CHAR(160),SUBSTITUTE($W33,\"}\",CHAR(160),GU$1))-FIND(CHAR(160),SUBSTITUTE($W33,\"{\",CHAR(160),GU$1))+1),\"\")","v":""},{"$f":"IFERROR(MID($W33,FIND(CHAR(160),SUBSTITUTE($W33,\"{\",CHAR(160),GV$1)),FIND(CHAR(160),SUBSTITUTE($W33,\"}\",CHAR(160),GV$1))-FIND(CHAR(160),SUBSTITUTE($W33,\"{\",CHAR(160),GV$1))+1),\"\")","v":""},{"$f":"IFERROR(MID($W33,FIND(CHAR(160),SUBSTITUTE($W33,\"{\",CHAR(160),GW$1)),FIND(CHAR(160),SUBSTITUTE($W33,\"}\",CHAR(160),GW$1))-FIND(CHAR(160),SUBSTITUTE($W33,\"{\",CHAR(160),GW$1))+1),\"\")","v":""},{"$f":"IFERROR(MID($W33,FIND(CHAR(160),SUBSTITUTE($W33,\"{\",CHAR(160),GX$1)),FIND(CHAR(160),SUBSTITUTE($W33,\"}\",CHAR(160),GX$1))-FIND(CHAR(160),SUBSTITUTE($W33,\"{\",CHAR(160),GX$1))+1),\"\")","v":""},{"$f":"IFERROR(MID($W33,FIND(CHAR(160),SUBSTITUTE($W33,\"{\",CHAR(160),GY$1)),FIND(CHAR(160),SUBSTITUTE($W33,\"}\",CHAR(160),GY$1))-FIND(CHAR(160),SUBSTITUTE($W33,\"{\",CHAR(160),GY$1))+1),\"\")","v":""},{"$f":"IFERROR(MID($W33,FIND(CHAR(160),SUBSTITUTE($W33,\"{\",CHAR(160),GZ$1)),FIND(CHAR(160),SUBSTITUTE($W33,\"}\",CHAR(160),GZ$1))-FIND(CHAR(160),SUBSTITUTE($W33,\"{\",CHAR(160),GZ$1))+1),\"\")","v":""},{"$f":"IFERROR(MID($X33,FIND(CHAR(160),SUBSTITUTE($X33,\"{\",CHAR(160),HA$1)),FIND(CHAR(160),SUBSTITUTE($X33,\"}\",CHAR(160),HA$1))-FIND(CHAR(160),SUBSTITUTE($X33,\"{\",CHAR(160),HA$1))+1),\"\")","v":""},{"$f":"IFERROR(MID($X33,FIND(CHAR(160),SUBSTITUTE($X33,\"{\",CHAR(160),HB$1)),FIND(CHAR(160),SUBSTITUTE($X33,\"}\",CHAR(160),HB$1))-FIND(CHAR(160),SUBSTITUTE($X33,\"{\",CHAR(160),HB$1))+1),\"\")","v":""},{"$f":"IFERROR(MID($X33,FIND(CHAR(160),SUBSTITUTE($X33,\"{\",CHAR(160),HC$1)),FIND(CHAR(160),SUBSTITUTE($X33,\"}\",CHAR(160),HC$1))-FIND(CHAR(160),SUBSTITUTE($X33,\"{\",CHAR(160),HC$1))+1),\"\")","v":""},{"$f":"IFERROR(MID($X33,FIND(CHAR(160),SUBSTITUTE($X33,\"{\",CHAR(160),HD$1)),FIND(CHAR(160),SUBSTITUTE($X33,\"}\",CHAR(160),HD$1))-FIND(CHAR(160),SUBSTITUTE($X33,\"{\",CHAR(160),HD$1))+1),\"\")","v":""},{"$f":"IFERROR(MID($X33,FIND(CHAR(160),SUBSTITUTE($X33,\"{\",CHAR(160),HE$1)),FIND(CHAR(160),SUBSTITUTE($X33,\"}\",CHAR(160),HE$1))-FIND(CHAR(160),SUBSTITUTE($X33,\"{\",CHAR(160),HE$1))+1),\"\")","v":""},{"$f":"IFERROR(MID($X33,FIND(CHAR(160),SUBSTITUTE($X33,\"{\",CHAR(160),HF$1)),FIND(CHAR(160),SUBSTITUTE($X33,\"}\",CHAR(160),HF$1))-FIND(CHAR(160),SUBSTITUTE($X33,\"{\",CHAR(160),HF$1))+1),\"\")","v":""},{"$f":"IFERROR(MID($X33,FIND(CHAR(160),SUBSTITUTE($X33,\"{\",CHAR(160),HG$1)),FIND(CHAR(160),SUBSTITUTE($X33,\"}\",CHAR(160),HG$1))-FIND(CHAR(160),SUBSTITUTE($X33,\"{\",CHAR(160),HG$1))+1),\"\")","v":""},{"$f":"IFERROR(MID($X33,FIND(CHAR(160),SUBSTITUTE($X33,\"{\",CHAR(160),HH$1)),FIND(CHAR(160),SUBSTITUTE($X33,\"}\",CHAR(160),HH$1))-FIND(CHAR(160),SUBSTITUTE($X33,\"{\",CHAR(160),HH$1))+1),\"\")","v":""},{"$f":"IFERROR(MID($X33,FIND(CHAR(160),SUBSTITUTE($X33,\"{\",CHAR(160),HI$1)),FIND(CHAR(160),SUBSTITUTE($X33,\"}\",CHAR(160),HI$1))-FIND(CHAR(160),SUBSTITUTE($X33,\"{\",CHAR(160),HI$1))+1),\"\")","v":""},{"$f":"IFERROR(MID($X33,FIND(CHAR(160),SUBSTITUTE($X33,\"{\",CHAR(160),HJ$1)),FIND(CHAR(160),SUBSTITUTE($X33,\"}\",CHAR(160),HJ$1))-FIND(CHAR(160),SUBSTITUTE($X33,\"{\",CHAR(160),HJ$1))+1),\"\")","v":""},{"$f":"IFERROR(MID($Y33,FIND(CHAR(160),SUBSTITUTE($Y33,\"{\",CHAR(160),HK$1)),FIND(CHAR(160),SUBSTITUTE($Y33,\"}\",CHAR(160),HK$1))-FIND(CHAR(160),SUBSTITUTE($Y33,\"{\",CHAR(160),HK$1))+1),\"\")","v":""},{"$f":"IFERROR(MID($Y33,FIND(CHAR(160),SUBSTITUTE($Y33,\"{\",CHAR(160),HL$1)),FIND(CHAR(160),SUBSTITUTE($Y33,\"}\",CHAR(160),HL$1))-FIND(CHAR(160),SUBSTITUTE($Y33,\"{\",CHAR(160),HL$1))+1),\"\")","v":""},{"$f":"IFERROR(MID($Y33,FIND(CHAR(160),SUBSTITUTE($Y33,\"{\",CHAR(160),HM$1)),FIND(CHAR(160),SUBSTITUTE($Y33,\"}\",CHAR(160),HM$1))-FIND(CHAR(160),SUBSTITUTE($Y33,\"{\",CHAR(160),HM$1))+1),\"\")","v":""},{"$f":"IFERROR(MID($Y33,FIND(CHAR(160),SUBSTITUTE($Y33,\"{\",CHAR(160),HN$1)),FIND(CHAR(160),SUBSTITUTE($Y33,\"}\",CHAR(160),HN$1))-FIND(CHAR(160),SUBSTITUTE($Y33,\"{\",CHAR(160),HN$1))+1),\"\")","v":""},{"$f":"IFERROR(MID($Y33,FIND(CHAR(160),SUBSTITUTE($Y33,\"{\",CHAR(160),HO$1)),FIND(CHAR(160),SUBSTITUTE($Y33,\"}\",CHAR(160),HO$1))-FIND(CHAR(160),SUBSTITUTE($Y33,\"{\",CHAR(160),HO$1))+1),\"\")","v":""},{"$f":"IFERROR(MID($Y33,FIND(CHAR(160),SUBSTITUTE($Y33,\"{\",CHAR(160),HP$1)),FIND(CHAR(160),SUBSTITUTE($Y33,\"}\",CHAR(160),HP$1))-FIND(CHAR(160),SUBSTITUTE($Y33,\"{\",CHAR(160),HP$1))+1),\"\")","v":""},{"$f":"IFERROR(MID($Y33,FIND(CHAR(160),SUBSTITUTE($Y33,\"{\",CHAR(160),HQ$1)),FIND(CHAR(160),SUBSTITUTE($Y33,\"}\",CHAR(160),HQ$1))-FIND(CHAR(160),SUBSTITUTE($Y33,\"{\",CHAR(160),HQ$1))+1),\"\")","v":""},{"$f":"IFERROR(MID($Y33,FIND(CHAR(160),SUBSTITUTE($Y33,\"{\",CHAR(160),HR$1)),FIND(CHAR(160),SUBSTITUTE($Y33,\"}\",CHAR(160),HR$1))-FIND(CHAR(160),SUBSTITUTE($Y33,\"{\",CHAR(160),HR$1))+1),\"\")","v":""},{"$f":"IFERROR(MID($Y33,FIND(CHAR(160),SUBSTITUTE($Y33,\"{\",CHAR(160),HS$1)),FIND(CHAR(160),SUBSTITUTE($Y33,\"}\",CHAR(160),HS$1))-FIND(CHAR(160),SUBSTITUTE($Y33,\"{\",CHAR(160),HS$1))+1),\"\")","v":""},{"$f":"IFERROR(MID($Y33,FIND(CHAR(160),SUBSTITUTE($Y33,\"{\",CHAR(160),HT$1)),FIND(CHAR(160),SUBSTITUTE($Y33,\"}\",CHAR(160),HT$1))-FIND(CHAR(160),SUBSTITUTE($Y33,\"{\",CHAR(160),HT$1))+1),\"\")","v":""},{"$f":"IFERROR(MID($Z33,FIND(CHAR(160),SUBSTITUTE($Z33,\"{\",CHAR(160),HU$1)),FIND(CHAR(160),SUBSTITUTE($Z33,\"}\",CHAR(160),HU$1))-FIND(CHAR(160),SUBSTITUTE($Z33,\"{\",CHAR(160),HU$1))+1),\"\")","v":""},{"$f":"IFERROR(MID($Z33,FIND(CHAR(160),SUBSTITUTE($Z33,\"{\",CHAR(160),HV$1)),FIND(CHAR(160),SUBSTITUTE($Z33,\"}\",CHAR(160),HV$1))-FIND(CHAR(160),SUBSTITUTE($Z33,\"{\",CHAR(160),HV$1))+1),\"\")","v":""},{"$f":"IFERROR(MID($Z33,FIND(CHAR(160),SUBSTITUTE($Z33,\"{\",CHAR(160),HW$1)),FIND(CHAR(160),SUBSTITUTE($Z33,\"}\",CHAR(160),HW$1))-FIND(CHAR(160),SUBSTITUTE($Z33,\"{\",CHAR(160),HW$1))+1),\"\")","v":""},{"$f":"IFERROR(MID($Z33,FIND(CHAR(160),SUBSTITUTE($Z33,\"{\",CHAR(160),HX$1)),FIND(CHAR(160),SUBSTITUTE($Z33,\"}\",CHAR(160),HX$1))-FIND(CHAR(160),SUBSTITUTE($Z33,\"{\",CHAR(160),HX$1))+1),\"\")","v":""},{"$f":"IFERROR(MID($Z33,FIND(CHAR(160),SUBSTITUTE($Z33,\"{\",CHAR(160),HY$1)),FIND(CHAR(160),SUBSTITUTE($Z33,\"}\",CHAR(160),HY$1))-FIND(CHAR(160),SUBSTITUTE($Z33,\"{\",CHAR(160),HY$1))+1),\"\")","v":""},{"$f":"IFERROR(MID($Z33,FIND(CHAR(160),SUBSTITUTE($Z33,\"{\",CHAR(160),HZ$1)),FIND(CHAR(160),SUBSTITUTE($Z33,\"}\",CHAR(160),HZ$1))-FIND(CHAR(160),SUBSTITUTE($Z33,\"{\",CHAR(160),HZ$1))+1),\"\")","v":""},{"$f":"IFERROR(MID($Z33,FIND(CHAR(160),SUBSTITUTE($Z33,\"{\",CHAR(160),IA$1)),FIND(CHAR(160),SUBSTITUTE($Z33,\"}\",CHAR(160),IA$1))-FIND(CHAR(160),SUBSTITUTE($Z33,\"{\",CHAR(160),IA$1))+1),\"\")","v":""},{"$f":"IFERROR(MID($Z33,FIND(CHAR(160),SUBSTITUTE($Z33,\"{\",CHAR(160),IB$1)),FIND(CHAR(160),SUBSTITUTE($Z33,\"}\",CHAR(160),IB$1))-FIND(CHAR(160),SUBSTITUTE($Z33,\"{\",CHAR(160),IB$1))+1),\"\")","v":""},{"$f":"IFERROR(MID($Z33,FIND(CHAR(160),SUBSTITUTE($Z33,\"{\",CHAR(160),IC$1)),FIND(CHAR(160),SUBSTITUTE($Z33,\"}\",CHAR(160),IC$1))-FIND(CHAR(160),SUBSTITUTE($Z33,\"{\",CHAR(160),IC$1))+1),\"\")","v":""},{"$f":"IFERROR(MID($Z33,FIND(CHAR(160),SUBSTITUTE($Z33,\"{\",CHAR(160),ID$1)),FIND(CHAR(160),SUBSTITUTE($Z33,\"}\",CHAR(160),ID$1))-FIND(CHAR(160),SUBSTITUTE($Z33,\"{\",CHAR(160),ID$1))+1),\"\")","v":""},{"$f":"IFERROR(MID($AA33,FIND(CHAR(160),SUBSTITUTE($AA33,\"{\",CHAR(160),IE$1)),FIND(CHAR(160),SUBSTITUTE($AA33,\"}\",CHAR(160),IE$1))-FIND(CHAR(160),SUBSTITUTE($AA33,\"{\",CHAR(160),IE$1))+1),\"\")","v":""},{"$f":"IFERROR(MID($AA33,FIND(CHAR(160),SUBSTITUTE($AA33,\"{\",CHAR(160),IF$1)),FIND(CHAR(160),SUBSTITUTE($AA33,\"}\",CHAR(160),IF$1))-FIND(CHAR(160),SUBSTITUTE($AA33,\"{\",CHAR(160),IF$1))+1),\"\")","v":""},{"$f":"IFERROR(MID($AA33,FIND(CHAR(160),SUBSTITUTE($AA33,\"{\",CHAR(160),IG$1)),FIND(CHAR(160),SUBSTITUTE($AA33,\"}\",CHAR(160),IG$1))-FIND(CHAR(160),SUBSTITUTE($AA33,\"{\",CHAR(160),IG$1))+1),\"\")","v":""},{"$f":"IFERROR(MID($AA33,FIND(CHAR(160),SUBSTITUTE($AA33,\"{\",CHAR(160),IH$1)),FIND(CHAR(160),SUBSTITUTE($AA33,\"}\",CHAR(160),IH$1))-FIND(CHAR(160),SUBSTITUTE($AA33,\"{\",CHAR(160),IH$1))+1),\"\")","v":""},{"$f":"IFERROR(MID($AA33,FIND(CHAR(160),SUBSTITUTE($AA33,\"{\",CHAR(160),II$1)),FIND(CHAR(160),SUBSTITUTE($AA33,\"}\",CHAR(160),II$1))-FIND(CHAR(160),SUBSTITUTE($AA33,\"{\",CHAR(160),II$1))+1),\"\")","v":""},{"$f":"IFERROR(MID($AA33,FIND(CHAR(160),SUBSTITUTE($AA33,\"{\",CHAR(160),IJ$1)),FIND(CHAR(160),SUBSTITUTE($AA33,\"}\",CHAR(160),IJ$1))-FIND(CHAR(160),SUBSTITUTE($AA33,\"{\",CHAR(160),IJ$1))+1),\"\")","v":""},{"$f":"IFERROR(MID($AA33,FIND(CHAR(160),SUBSTITUTE($AA33,\"{\",CHAR(160),IK$1)),FIND(CHAR(160),SUBSTITUTE($AA33,\"}\",CHAR(160),IK$1))-FIND(CHAR(160),SUBSTITUTE($AA33,\"{\",CHAR(160),IK$1))+1),\"\")","v":""},{"$f":"IFERROR(MID($AA33,FIND(CHAR(160),SUBSTITUTE($AA33,\"{\",CHAR(160),IL$1)),FIND(CHAR(160),SUBSTITUTE($AA33,\"}\",CHAR(160),IL$1))-FIND(CHAR(160),SUBSTITUTE($AA33,\"{\",CHAR(160),IL$1))+1),\"\")","v":""},{"$f":"IFERROR(MID($AA33,FIND(CHAR(160),SUBSTITUTE($AA33,\"{\",CHAR(160),IM$1)),FIND(CHAR(160),SUBSTITUTE($AA33,\"}\",CHAR(160),IM$1))-FIND(CHAR(160),SUBSTITUTE($AA33,\"{\",CHAR(160),IM$1))+1),\"\")","v":""},{"$f":"IFERROR(MID($AA33,FIND(CHAR(160),SUBSTITUTE($AA33,\"{\",CHAR(160),IN$1)),FIND(CHAR(160),SUBSTITUTE($AA33,\"}\",CHAR(160),IN$1))-FIND(CHAR(160),SUBSTITUTE($AA33,\"{\",CHAR(160),IN$1))+1),\"\")","v":""},{"$f":"IFERROR(MID($AB33,FIND(CHAR(160),SUBSTITUTE($AB33,\"{\",CHAR(160),IO$1)),FIND(CHAR(160),SUBSTITUTE($AB33,\"}\",CHAR(160),IO$1))-FIND(CHAR(160),SUBSTITUTE($AB33,\"{\",CHAR(160),IO$1))+1),\"\")","v":""},{"$f":"IFERROR(MID($AB33,FIND(CHAR(160),SUBSTITUTE($AB33,\"{\",CHAR(160),IP$1)),FIND(CHAR(160),SUBSTITUTE($AB33,\"}\",CHAR(160),IP$1))-FIND(CHAR(160),SUBSTITUTE($AB33,\"{\",CHAR(160),IP$1))+1),\"\")","v":""},{"$f":"IFERROR(MID($AB33,FIND(CHAR(160),SUBSTITUTE($AB33,\"{\",CHAR(160),IQ$1)),FIND(CHAR(160),SUBSTITUTE($AB33,\"}\",CHAR(160),IQ$1))-FIND(CHAR(160),SUBSTITUTE($AB33,\"{\",CHAR(160),IQ$1))+1),\"\")","v":""},{"$f":"IFERROR(MID($AB33,FIND(CHAR(160),SUBSTITUTE($AB33,\"{\",CHAR(160),IR$1)),FIND(CHAR(160),SUBSTITUTE($AB33,\"}\",CHAR(160),IR$1))-FIND(CHAR(160),SUBSTITUTE($AB33,\"{\",CHAR(160),IR$1))+1),\"\")","v":""},{"$f":"IFERROR(MID($AB33,FIND(CHAR(160),SUBSTITUTE($AB33,\"{\",CHAR(160),IS$1)),FIND(CHAR(160),SUBSTITUTE($AB33,\"}\",CHAR(160),IS$1))-FIND(CHAR(160),SUBSTITUTE($AB33,\"{\",CHAR(160),IS$1))+1),\"\")","v":""},{"$f":"IFERROR(MID($AB33,FIND(CHAR(160),SUBSTITUTE($AB33,\"{\",CHAR(160),IT$1)),FIND(CHAR(160),SUBSTITUTE($AB33,\"}\",CHAR(160),IT$1))-FIND(CHAR(160),SUBSTITUTE($AB33,\"{\",CHAR(160),IT$1))+1),\"\")","v":""},{"$f":"IFERROR(MID($AB33,FIND(CHAR(160),SUBSTITUTE($AB33,\"{\",CHAR(160),IU$1)),FIND(CHAR(160),SUBSTITUTE($AB33,\"}\",CHAR(160),IU$1))-FIND(CHAR(160),SUBSTITUTE($AB33,\"{\",CHAR(160),IU$1))+1),\"\")","v":""},{"$f":"IFERROR(MID($AB33,FIND(CHAR(160),SUBSTITUTE($AB33,\"{\",CHAR(160),IV$1)),FIND(CHAR(160),SUBSTITUTE($AB33,\"}\",CHAR(160),IV$1))-FIND(CHAR(160),SUBSTITUTE($AB33,\"{\",CHAR(160),IV$1))+1),\"\")","v":""},{"$f":"IFERROR(MID($AB33,FIND(CHAR(160),SUBSTITUTE($AB33,\"{\",CHAR(160),IW$1)),FIND(CHAR(160),SUBSTITUTE($AB33,\"}\",CHAR(160),IW$1))-FIND(CHAR(160),SUBSTITUTE($AB33,\"{\",CHAR(160),IW$1))+1),\"\")","v":""},{"$f":"IFERROR(MID($AB33,FIND(CHAR(160),SUBSTITUTE($AB33,\"{\",CHAR(160),IX$1)),FIND(CHAR(160),SUBSTITUTE($AB33,\"}\",CHAR(160),IX$1))-FIND(CHAR(160),SUBSTITUTE($AB33,\"{\",CHAR(160),IX$1))+1),\"\")","v":""},null,{"$f":"10-COUNTIF(DU33:ED33,\"\")","v":1}]
["C&I Agricultural Solutions","MILK: Scroll Compressor - 5 HP","AMSC - AMSC5","2021-07-01","2022-06-30","Per Measure",1000,0,"Per Measure",550,0,"2016-07-01","2022-06-30","Calculated","432 * 5 * {Measure:Quantity}",1E-4,null,"((432 * 5) /2850) * {Measure:Quantity}",null,null,"(((432 * 5) /2850) * {Measure:Quantity}) *{Factor:WinterCF}","(((432 * 5) /2850) * {Measure:Quantity}) *{Factor:SummerCF}",null,null,null,null,null,null,"2020-04-01","2022-06-30",15,0.67400000000000004,0.32700000000000001,0.436,0.23200000000000001,0.217,0.115,1,1.1220000000000001,1,0.52,1.6E-2,null,{"$f":"DU34","v":"{Measure:Quantity}"},1,{"$f":"DV34","v":""},null,{"$f":"DW34","v":""},null,{"$f":"DX34","v":""},null,{"$f":"DY34","v":""},null,{"$f":"DZ34","v":""},null,{"$f":"EA34","v":""},null,{"$f":"EB34","v":""},null,{"$f":"EC34","v":""},null,{"$f":"ED34","v":""},null,{"$f":"432 * 5 * AS34","v":2160},{"$f":"0.0001","v":1E-4},0,{"$f":"((432 * 5) /2850) * AS34","v":0.75789473684210529},0,0,{"$f":"(((432 * 5) /2850) * AS34) *AF34","v":0.51082105263157895},{"$f":"(((432 * 5) /2850) * AS34) *AG34","v":0.24783157894736843},0,0,0,0,0,0,null,"Res","Default DR",{"$f":"Benefits(BL34,BR34,BS34,BT34,BU34,BV34,BW34,BX34,BY34,BZ34,AE34,AH34,AI34,AJ34,AK34,AL34,AM34,AN34,AO34,AP34,CA34,CB34)","v":3227.4768136216653},2390.1876812871155,0,0,0,0,0,0,0,{"$f":"SUMPRODUCT(CC34:CK34,--(CC34:CK34>0))","v":5617.6644949087804},{"$f":"-SUMPRODUCT(CC34:CK34,--(CC34:CK34<0))","v":0},null,{"$f":"1000","v":1000},null,null,{"$f":"CM34+CO34","v":1000},{"$f":"IF(NetOrGross=\"Net\",(1-AO34+AP34),1)","v":1},{"$f":"(SUMPRODUCT(CC34:CJ34,--(CC34:CJ34>0))+CN34)*CS34/((-SUMPRODUCT(CC34:CJ34,--(CC34:CJ34<0))+MAX(CO34,CV34)+CP34+CQ34)*CS34+IF(FRIncentives=\"Yes\",CV34*(1-CS34),0))","v":5.6176644949087802},1,{"$f":"550","v":550},null,"Electric","y",null,{"$f":"IF(F34=\"Manual Entry\",\"Manual\",IF(G34=\"\",0,\"X=\"&SUBSTITUTE(SUBSTITUTE(SUBSTITUTE(SUBSTITUTE(SUBSTITUTE(SUBSTITUTE(SUBSTITUTE(SUBSTITUTE(SUBSTITUTE(SUBSTITUTE(SUBSTITUTE(SUBSTITUTE(G34,$ED34,$ED$2&ROW($ED34)),$EC34,$EC$2&ROW($EC34)),$EB34,$EB$2&ROW($EB34)),$EA34,$EA$2&ROW($EA34)),$DZ34,$DZ$2&ROW($DZ34)),$DY34,$DY$2&ROW($DY34)),$DX34,$DX$2&ROW($DX34)),$DW34,$DW$2&ROW($DW34)),$DV34,$DV$2&ROW($DV34)),$DU34,$DU$2&ROW($DU34)),$DT34,$DT$2&ROW($DT34)),$DS34,$DS$2&ROW($DS34))))","v":"X=1000"},{"$f":"IF(I34=\"Manual Entry\",\"Manual\",IF(J34=\"\",0,\"X=\"&SUBSTITUTE(SUBSTITUTE(SUBSTITUTE(SUBSTITUTE(SUBSTITUTE(SUBSTITUTE(SUBSTITUTE(SUBSTITUTE(SUBSTITUTE(SUBSTITUTE(SUBSTITUTE(SUBSTITUTE(J34,$ED34,$ED$2&ROW($ED34)),$EC34,$EC$2&ROW($EC34)),$EB34,$EB$2&ROW($EB34)),$EA34,$EA$2&ROW($EA34)),$DZ34,$DZ$2&ROW($DZ34)),$DY34,$DY$2&ROW($DY34)),$DX34,$DX$2&ROW($DX34)),$DW34,$DW$2&ROW($DW34)),$DV34,$DV$2&ROW($DV34)),$DU34,$DU$2&ROW($DU34)),$DT34,$DT$2&ROW($DT34)),$DS34,$DS$2&ROW($DS34))))","v":"X=550"},{"$f":"IF(O34=\"\",0,\"X=\"&SUBSTITUTE(SUBSTITUTE(SUBSTITUTE(SUBSTITUTE(SUBSTITUTE(SUBSTITUTE(SUBSTITUTE(SUBSTITUTE(SUBSTITUTE(SUBSTITUTE(SUBSTITUTE(SUBSTITUTE(O34,$ED34,$ED$2&ROW($ED34)),$EC34,$EC$2&ROW($EC34)),$EB34,$EB$2&ROW($EB34)),$EA34,$EA$2&ROW($EA34)),$DZ34,$DZ$2&ROW($DZ34)),$DY34,$DY$2&ROW($DY34)),$DX34,$DX$2&ROW($DX34)),$DW34,$DW$2&ROW($DW34)),$DV34,$DV$2&ROW($DV34)),$DU34,$DU$2&ROW($DU34)),$DT34,$DT$2&ROW($DT34)),$DS34,$DS$2&ROW($DS34)))","v":"X=432 * 5 * AS34"},{"$f":"IF(P34=\"\",0,\"X=\"&SUBSTITUTE(SUBSTITUTE(SUBSTITUTE(SUBSTITUTE(SUBSTITUTE(SUBSTITUTE(SUBSTITUTE(SUBSTITUTE(SUBSTITUTE(SUBSTITUTE(SUBSTITUTE(SUBSTITUTE(P34,$ED34,$ED$2&ROW($ED34)),$EC34,$EC$2&ROW($EC34)),$EB34,$EB$2&ROW($EB34)),$EA34,$EA$2&ROW($EA34)),$DZ34,$DZ$2&ROW($DZ34)),$DY34,$DY$2&ROW($DY34)),$DX34,$DX$2&ROW($DX34)),$DW34,$DW$2&ROW($DW34)),$DV34,$DV$2&ROW($DV34)),$DU34,$DU$2&ROW($DU34)),$DT34,$DT$2&ROW($DT34)),$DS34,$DS$2&ROW($DS34)))","v":"X=0.0001"},{"$f":"IF(Q34=\"\",0,\"X=\"&SUBSTITUTE(SUBSTITUTE(SUBSTITUTE(SUBSTITUTE(SUBSTITUTE(SUBSTITUTE(SUBSTITUTE(SUBSTITUTE(SUBSTITUTE(SUBSTITUTE(SUBSTITUTE(SUBSTITUTE(Q34,$ED34,$ED$2&ROW($ED34)),$EC34,$EC$2&ROW($EC34)),$EB34,$EB$2&ROW($EB34)),$EA34,$EA$2&ROW($EA34)),$DZ34,$DZ$2&ROW($DZ34)),$DY34,$DY$2&ROW($DY34)),$DX34,$DX$2&ROW($DX34)),$DW34,$DW$2&ROW($DW34)),$DV34,$DV$2&ROW($DV34)),$DU34,$DU$2&ROW($DU34)),$DT34,$DT$2&ROW($DT34)),$DS34,$DS$2&ROW($DS34)))","v":0},{"$f":"IF(R34=\"\",0,\"X=\"&SUBSTITUTE(SUBSTITUTE(SUBSTITUTE(SUBSTITUTE(SUBSTITUTE(SUBSTITUTE(SUBSTITUTE(SUBSTITUTE(SUBSTITUTE(SUBSTITUTE(SUBSTITUTE(SUBSTITUTE(R34,$ED34,$ED$2&ROW($ED34)),$EC34,$EC$2&ROW($EC34)),$EB34,$EB$2&ROW($EB34)),$EA34,$EA$2&ROW($EA34)),$DZ34,$DZ$2&ROW($DZ34)),$DY34,$DY$2&ROW($DY34)),$DX34,$DX$2&ROW($DX34)),$DW34,$DW$2&ROW($DW34)),$DV34,$DV$2&ROW($DV34)),$DU34,$DU$2&ROW($DU34)),$DT34,$DT$2&ROW($DT34)),$DS34,$DS$2&ROW($DS34)))","v":"X=((432 * 5) /2850) * AS34"},{"$f":"IF(S34=\"\",0,\"X=\"&SUBSTITUTE(SUBSTITUTE(SUBSTITUTE(SUBSTITUTE(SUBSTITUTE(SUBSTITUTE(SUBSTITUTE(SUBSTITUTE(SUBSTITUTE(SUBSTITUTE(SUBSTITUTE(SUBSTITUTE(S34,$ED34,$ED$2&ROW($ED34)),$EC34,$EC$2&ROW($EC34)),$EB34,$EB$2&ROW($EB34)),$EA34,$EA$2&ROW($EA34)),$DZ34,$DZ$2&ROW($DZ34)),$DY34,$DY$2&ROW($DY34)),$DX34,$DX$2&ROW($DX34)),$DW34,$DW$2&ROW($DW34)),$DV34,$DV$2&ROW($DV34)),$DU34,$DU$2&ROW($DU34)),$DT34,$DT$2&ROW($DT34)),$DS34,$DS$2&ROW($DS34)))","v":0},{"$f":"IF(T34=\"\",0,\"X=\"&SUBSTITUTE(SUBSTITUTE(SUBSTITUTE(SUBSTITUTE(SUBSTITUTE(SUBSTITUTE(SUBSTITUTE(SUBSTITUTE(SUBSTITUTE(SUBSTITUTE(SUBSTITUTE(SUBSTITUTE(T34,$ED34,$ED$2&ROW($ED34)),$EC34,$EC$2&ROW($EC34)),$EB34,$EB$2&ROW($EB34)),$EA34,$EA$2&ROW($EA34)),$DZ34,$DZ$2&ROW($DZ34)),$DY34,$DY$2&ROW($DY34)),$DX34,$DX$2&ROW($DX34)),$DW34,$DW$2&ROW($DW34)),$DV34,$DV$2&ROW($DV34)),$DU34,$DU$2&ROW($DU34)),$DT34,$DT$2&ROW($DT34)),$DS34,$DS$2&ROW($DS34)))","v":0},{"$f":"IF(U34=\"\",0,\"X=\"&SUBSTITUTE(SUBSTITUTE(SUBSTITUTE(SUBSTITUTE(SUBSTITUTE(SUBSTITUTE(SUBSTITUTE(SUBSTITUTE(SUBSTITUTE(SUBSTITUTE(SUBSTITUTE(SUBSTITUTE(U34,$ED34,$ED$2&ROW($ED34)),$EC34,$EC$2&ROW($EC34)),$EB34,$EB$2&ROW($EB34)),$EA34,$EA$2&ROW($EA34)),$DZ34,$DZ$2&ROW($DZ34)),$DY34,$DY$2&ROW($DY34)),$DX34,$DX$2&ROW($DX34)),$DW34,$DW$2&ROW($DW34)),$DV34,$DV$2&ROW($DV34)),$DU34,$DU$2&ROW($DU34)),$DT34,$DT$2&ROW($DT34)),$DS34,$DS$2&ROW($DS34)))","v":"X=(((432 * 5) /2850) * AS34) *AF34"},{"$f":"IF(V34=\"\",0,\"X=\"&SUBSTITUTE(SUBSTITUTE(SUBSTITUTE(SUBSTITUTE(SUBSTITUTE(SUBSTITUTE(SUBSTITUTE(SUBSTITUTE(SUBSTITUTE(SUBSTITUTE(SUBSTITUTE(SUBSTITUTE(V34,$ED34,$ED$2&ROW($ED34)),$EC34,$EC$2&ROW($EC34)),$EB34,$EB$2&ROW($EB34)),$EA34,$EA$2&ROW($EA34)),$DZ34,$DZ$2&ROW($DZ34)),$DY34,$DY$2&ROW($DY34)),$DX34,$DX$2&ROW($DX34)),$DW34,$DW$2&ROW($DW34)),$DV34,$DV$2&ROW($DV34)),$DU34,$DU$2&ROW($DU34)),$DT34,$DT$2&ROW($DT34)),$DS34,$DS$2&ROW($DS34)))","v":"X=(((432 * 5) /2850) * AS34) *AG34"},{"$f":"IF(W34=\"\",0,\"X=\"&SUBSTITUTE(SUBSTITUTE(SUBSTITUTE(SUBSTITUTE(SUBSTITUTE(SUBSTITUTE(SUBSTITUTE(SUBSTITUTE(SUBSTITUTE(SUBSTITUTE(SUBSTITUTE(SUBSTITUTE(W34,$ED34,$ED$2&ROW($ED34)),$EC34,$EC$2&ROW($EC34)),$EB34,$EB$2&ROW($EB34)),$EA34,$EA$2&ROW($EA34)),$DZ34,$DZ$2&ROW($DZ34)),$DY34,$DY$2&ROW($DY34)),$DX34,$DX$2&ROW($DX34)),$DW34,$DW$2&ROW($DW34)),$DV34,$DV$2&ROW($DV34)),$DU34,$DU$2&ROW($DU34)),$DT34,$DT$2&ROW($DT34)),$DS34,$DS$2&ROW($DS34)))","v":0},{"$f":"IF(X34=\"\",0,\"X=\"&SUBSTITUTE(SUBSTITUTE(SUBSTITUTE(SUBSTITUTE(SUBSTITUTE(SUBSTITUTE(SUBSTITUTE(SUBSTITUTE(SUBSTITUTE(SUBSTITUTE(SUBSTITUTE(SUBSTITUTE(X34,$ED34,$ED$2&ROW($ED34)),$EC34,$EC$2&ROW($EC34)),$EB34,$EB$2&ROW($EB34)),$EA34,$EA$2&ROW($EA34)),$DZ34,$DZ$2&ROW($DZ34)),$DY34,$DY$2&ROW($DY34)),$DX34,$DX$2&ROW($DX34)),$DW34,$DW$2&ROW($DW34)),$DV34,$DV$2&ROW($DV34)),$DU34,$DU$2&ROW($DU34)),$DT34,$DT$2&ROW($DT34)),$DS34,$DS$2&ROW($DS34)))","v":0},{"$f":"IF(Y34=\"\",0,\"X=\"&SUBSTITUTE(SUBSTITUTE(SUBSTITUTE(SUBSTITUTE(SUBSTITUTE(SUBSTITUTE(SUBSTITUTE(SUBSTITUTE(SUBSTITUTE(SUBSTITUTE(SUBSTITUTE(SUBSTITUTE(Y34,$ED34,$ED$2&ROW($ED34)),$EC34,$EC$2&ROW($EC34)),$EB34,$EB$2&ROW($EB34)),$EA34,$EA$2&ROW($EA34)),$DZ34,$DZ$2&ROW($DZ34)),$DY34,$DY$2&ROW($DY34)),$DX34,$DX$2&ROW($DX34)),$DW34,$DW$2&ROW($DW34)),$DV34,$DV$2&ROW($DV34)),$DU34,$DU$2&ROW($DU34)),$DT34,$DT$2&ROW($DT34)),$DS34,$DS$2&ROW($DS34)))","v":0},{"$f":"IF(Z34=\"\",0,\"X=\"&SUBSTITUTE(SUBSTITUTE(SUBSTITUTE(SUBSTITUTE(SUBSTITUTE(SUBSTITUTE(SUBSTITUTE(SUBSTITUTE(SUBSTITUTE(SUBSTITUTE(SUBSTITUTE(SUBSTITUTE(Z34,$ED34,$ED$2&ROW($ED34)),$EC34,$EC$2&ROW($EC34)),$EB34,$EB$2&ROW($EB34)),$EA34,$EA$2&ROW($EA34)),$DZ34,$DZ$2&ROW($DZ34)),$DY34,$DY$2&ROW($DY34)),$DX34,$DX$2&ROW($DX34)),$DW34,$DW$2&ROW($DW34)),$DV34,$DV$2&ROW($DV34)),$DU34,$DU$2&ROW($DU34)),$DT34,$DT$2&ROW($DT34)),$DS34,$DS$2&ROW($DS34)))","v":0},{"$f":"IF(AA34=\"\",0,\"X=\"&SUBSTITUTE(SUBSTITUTE(SUBSTITUTE(SUBSTITUTE(SUBSTITUTE(SUBSTITUTE(SUBSTITUTE(SUBSTITUTE(SUBSTITUTE(SUBSTITUTE(SUBSTITUTE(SUBSTITUTE(AA34,$ED34,$ED$2&ROW($ED34)),$EC34,$EC$2&ROW($EC34)),$EB34,$EB$2&ROW($EB34)),$EA34,$EA$2&ROW($EA34)),$DZ34,$DZ$2&ROW($DZ34)),$DY34,$DY$2&ROW($DY34)),$DX34,$DX$2&ROW($DX34)),$DW34,$DW$2&ROW($DW34)),$DV34,$DV$2&ROW($DV34)),$DU34,$DU$2&ROW($DU34)),$DT34,$DT$2&ROW($DT34)),$DS34,$DS$2&ROW($DS34)))","v":0},{"$f":"IF(AB34=\"\",0,\"X=\"&SUBSTITUTE(SUBSTITUTE(SUBSTITUTE(SUBSTITUTE(SUBSTITUTE(SUBSTITUTE(SUBSTITUTE(SUBSTITUTE(SUBSTITUTE(SUBSTITUTE(SUBSTITUTE(SUBSTITUTE(AB34,$ED34,$ED$2&ROW($ED34)),$EC34,$EC$2&ROW($EC34)),$EB34,$EB$2&ROW($EB34)),$EA34,$EA$2&ROW($EA34)),$DZ34,$DZ$2&ROW($DZ34)),$DY34,$DY$2&ROW($DY34)),$DX34,$DX$2&ROW($DX34)),$DW34,$DW$2&ROW($DW34)),$DV34,$DV$2&ROW($DV34)),$DU34,$DU$2&ROW($DU34)),$DT34,$DT$2&ROW($DT34)),$DS34,$DS$2&ROW($DS34)))","v":0},null,null,"{Factor:WinterCF}","{Factor:SummerCF}",{"$f":"IFERROR(INDEX($EG34:$IV34,MATCH(0,COUNTIF($DR34:DT34,$EG34:$IV34),0)),\"\")","v":"{Measure:Quantity}"},{"$f":"IFERROR(INDEX($EG34:$IV34,MATCH(0,COUNTIF($DR34:DU34,$EG34:$IV34),0)),\"\")","v":""},{"$f":"IFERROR(INDEX($EG34:$IV34,MATCH(0,COUNTIF($DR34:DV34,$EG34:$IV34),0)),\"\")","v":""},{"$f":"IFERROR(INDEX($EG34:$IV34,MATCH(0,COUNTIF($DR34:DW34,$EG34:$IV34),0)),\"\")","v":""},{"$f":"IFERROR(INDEX($EG34:$IV34,MATCH(0,COUNTIF($DR34:DX34,$EG34:$IV34),0)),\"\")","v":""},{"$f":"IFERROR(INDEX($EG34:$IV34,MATCH(0,COUNTIF($DR34:DY34,$EG34:$IV34),0)),\"\")","v":""},{"$f":"IFERROR(INDEX($EG34:$IV34,MATCH(0,COUNTIF($DR34:DZ34,$EG34:$IV34),0)),\"\")","v":""},{"$f":"IFERROR(INDEX($EG34:$IV34,MATCH(0,COUNTIF($DR34:EA34,$EG34:$IV34),0)),\"\")","v":""},{"$f":"IFERROR(INDEX($EG34:$IV34,MATCH(0,COUNTIF($DR34:EB34,$EG34:$IV34),0)),\"\")","v":""},{"$f":"IFERROR(INDEX($EG34:$IV34,MATCH(0,COUNTIF($DR34:EC34,$EG34:$IV34),0)),\"\")","v":""},null,null,{"$f":"IFERROR(MID($G34,FIND(CHAR(160),SUBSTITUTE($G34,\"{\",CHAR(160),EG$1)),FIND(CHAR(160),SUBSTITUTE($G34,\"}\",CHAR(160),EG$1))-FIND(CHAR(160),SUBSTITUTE($G34,\"{\",CHAR(160),EG$1))+1),\"\")","v":""},{"$f":"IFERROR(MID($G34,FIND(CHAR(160),SUBSTITUTE($G34,\"{\",CHAR(160),EH$1)),FIND(CHAR(160),SUBSTITUTE($G34,\"}\",CHAR(160),EH$1))-FIND(CHAR(160),SUBSTITUTE($G34,\"{\",CHAR(160),EH$1))+1),\"\")","v":""},{"$f":"IFERROR(MID($G34,FIND(CHAR(160),SUBSTITUTE($G34,\"{\",CHAR(160),EI$1)),FIND(CHAR(160),SUBSTITUTE($G34,\"}\",CHAR(160),EI$1))-FIND(CHAR(160),SUBSTITUTE($G34,\"{\",CHAR(160),EI$1))+1),\"\")","v":""},{"$f":"IFERROR(MID($G34,FIND(CHAR(160),SUBSTITUTE($G34,\"{\",CHAR(160),EJ$1)),FIND(CHAR(160),SUBSTITUTE($G34,\"}\",CHAR(160),EJ$1))-FIND(CHAR(160),SUBSTITUTE($G34,\"{\",CHAR(160),EJ$1))+1),\"\")","v":""},{"$f":"IFERROR(MID($G34,FIND(CHAR(160),SUBSTITUTE($G34,\"{\",CHAR(160),EK$1)),FIND(CHAR(160),SUBSTITUTE($G34,\"}\",CHAR(160),EK$1))-FIND(CHAR(160),SUBSTITUTE($G34,\"{\",CHAR(160),EK$1))+1),\"\")","v":""},{"$f":"IFERROR(MID($G34,FIND(CHAR(160),SUBSTITUTE($G34,\"{\",CHAR(160),EL$1)),FIND(CHAR(160),SUBSTITUTE($G34,\"}\",CHAR(160),EL$1))-FIND(CHAR(160),SUBSTITUTE($G34,\"{\",CHAR(160),EL$1))+1),\"\")","v":""},{"$f":"IFERROR(MID($G34,FIND(CHAR(160),SUBSTITUTE($G34,\"{\",CHAR(160),EM$1)),FIND(CHAR(160),SUBSTITUTE($G34,\"}\",CHAR(160),EM$1))-FIND(CHAR(160),SUBSTITUTE($G34,\"{\",CHAR(160),EM$1))+1),\"\")","v":""},{"$f":"IFERROR(MID($G34,FIND(CHAR(160),SUBSTITUTE($G34,\"{\",CHAR(160),EN$1)),FIND(CHAR(160),SUBSTITUTE($G34,\"}\",CHAR(160),EN$1))-FIND(CHAR(160),SUBSTITUTE($G34,\"{\",CHAR(160),EN$1))+1),\"\")","v":""},{"$f":"IFERROR(MID($G34,FIND(CHAR(160),SUBSTITUTE($G34,\"{\",CHAR(160),EO$1)),FIND(CHAR(160),SUBSTITUTE($G34,\"}\",CHAR(160),EO$1))-FIND(CHAR(160),SUBSTITUTE($G34,\"{\",CHAR(160),EO$1))+1),\"\")","v":""},{"$f":"IFERROR(MID($G34,FIND(CHAR(160),SUBSTITUTE($G34,\"{\",CHAR(160),EP$1)),FIND(CHAR(160),SUBSTITUTE($G34,\"}\",CHAR(160),EP$1))-FIND(CHAR(160),SUBSTITUTE($G34,\"{\",CHAR(160),EP$1))+1),\"\")","v":""},{"$f":"IFERROR(MID($J34,FIND(CHAR(160),SUBSTITUTE($J34,\"{\",CHAR(160),EQ$1)),FIND(CHAR(160),SUBSTITUTE($J34,\"}\",CHAR(160),EQ$1))-FIND(CHAR(160),SUBSTITUTE($J34,\"{\",CHAR(160),EQ$1))+1),\"\")","v":""},{"$f":"IFERROR(MID($J34,FIND(CHAR(160),SUBSTITUTE($J34,\"{\",CHAR(160),ER$1)),FIND(CHAR(160),SUBSTITUTE($J34,\"}\",CHAR(160),ER$1))-FIND(CHAR(160),SUBSTITUTE($J34,\"{\",CHAR(160),ER$1))+1),\"\")","v":""},{"$f":"IFERROR(MID($J34,FIND(CHAR(160),SUBSTITUTE($J34,\"{\",CHAR(160),ES$1)),FIND(CHAR(160),SUBSTITUTE($J34,\"}\",CHAR(160),ES$1))-FIND(CHAR(160),SUBSTITUTE($J34,\"{\",CHAR(160),ES$1))+1),\"\")","v":""},{"$f":"IFERROR(MID($J34,FIND(CHAR(160),SUBSTITUTE($J34,\"{\",CHAR(160),ET$1)),FIND(CHAR(160),SUBSTITUTE($J34,\"}\",CHAR(160),ET$1))-FIND(CHAR(160),SUBSTITUTE($J34,\"{\",CHAR(160),ET$1))+1),\"\")","v":""},{"$f":"IFERROR(MID($J34,FIND(CHAR(160),SUBSTITUTE($J34,\"{\",CHAR(160),EU$1)),FIND(CHAR(160),SUBSTITUTE($J34,\"}\",CHAR(160),EU$1))-FIND(CHAR(160),SUBSTITUTE($J34,\"{\",CHAR(160),EU$1))+1),\"\")","v":""},{"$f":"IFERROR(MID($J34,FIND(CHAR(160),SUBSTITUTE($J34,\"{\",CHAR(160),EV$1)),FIND(CHAR(160),SUBSTITUTE($J34,\"}\",CHAR(160),EV$1))-FIND(CHAR(160),SUBSTITUTE($J34,\"{\",CHAR(160),EV$1))+1),\"\")","v":""},{"$f":"IFERROR(MID($J34,FIND(CHAR(160),SUBSTITUTE($J34,\"{\",CHAR(160),EW$1)),FIND(CHAR(160),SUBSTITUTE($J34,\"}\",CHAR(160),EW$1))-FIND(CHAR(160),SUBSTITUTE($J34,\"{\",CHAR(160),EW$1))+1),\"\")","v":""},{"$f":"IFERROR(MID($J34,FIND(CHAR(160),SUBSTITUTE($J34,\"{\",CHAR(160),EX$1)),FIND(CHAR(160),SUBSTITUTE($J34,\"}\",CHAR(160),EX$1))-FIND(CHAR(160),SUBSTITUTE($J34,\"{\",CHAR(160),EX$1))+1),\"\")","v":""},{"$f":"IFERROR(MID($J34,FIND(CHAR(160),SUBSTITUTE($J34,\"{\",CHAR(160),EY$1)),FIND(CHAR(160),SUBSTITUTE($J34,\"}\",CHAR(160),EY$1))-FIND(CHAR(160),SUBSTITUTE($J34,\"{\",CHAR(160),EY$1))+1),\"\")","v":""},{"$f":"IFERROR(MID($J34,FIND(CHAR(160),SUBSTITUTE($J34,\"{\",CHAR(160),EZ$1)),FIND(CHAR(160),SUBSTITUTE($J34,\"}\",CHAR(160),EZ$1))-FIND(CHAR(160),SUBSTITUTE($J34,\"{\",CHAR(160),EZ$1))+1),\"\")","v":""},{"$f":"IFERROR(MID($J34,FIND(CHAR(160),SUBSTITUTE($J34,\"{\",CHAR(160),FA$1)),FIND(CHAR(160),SUBSTITUTE($J34,\"}\",CHAR(160),FA$1))-FIND(CHAR(160),SUBSTITUTE($J34,\"{\",CHAR(160),FA$1))+1),\"\")","v":""},{"$f":"IFERROR(MID($J34,FIND(CHAR(160),SUBSTITUTE($J34,\"{\",CHAR(160),FB$1)),FIND(CHAR(160),SUBSTITUTE($J34,\"}\",CHAR(160),FB$1))-FIND(CHAR(160),SUBSTITUTE($J34,\"{\",CHAR(160),FB$1))+1),\"\")","v":""},{"$f":"IFERROR(MID($O34,FIND(CHAR(160),SUBSTITUTE($O34,\"{\",CHAR(160),FC$1)),FIND(CHAR(160),SUBSTITUTE($O34,\"}\",CHAR(160),FC$1))-FIND(CHAR(160),SUBSTITUTE($O34,\"{\",CHAR(160),FC$1))+1),\"\")","v":""},{"$f":"IFERROR(MID($O34,FIND(CHAR(160),SUBSTITUTE($O34,\"{\",CHAR(160),FD$1)),FIND(CHAR(160),SUBSTITUTE($O34,\"}\",CHAR(160),FD$1))-FIND(CHAR(160),SUBSTITUTE($O34,\"{\",CHAR(160),FD$1))+1),\"\")","v":""},{"$f":"IFERROR(MID($O34,FIND(CHAR(160),SUBSTITUTE($O34,\"{\",CHAR(160),FE$1)),FIND(CHAR(160),SUBSTITUTE($O34,\"}\",CHAR(160),FE$1))-FIND(CHAR(160),SUBSTITUTE($O34,\"{\",CHAR(160),FE$1))+1),\"\")","v":""},{"$f":"IFERROR(MID($O34,FIND(CHAR(160),SUBSTITUTE($O34,\"{\",CHAR(160),FF$1)),FIND(CHAR(160),SUBSTITUTE($O34,\"}\",CHAR(160),FF$1))-FIND(CHAR(160),SUBSTITUTE($O34,\"{\",CHAR(160),FF$1))+1),\"\")","v":""},{"$f":"IFERROR(MID($O34,FIND(CHAR(160),SUBSTITUTE($O34,\"{\",CHAR(160),FG$1)),FIND(CHAR(160),SUBSTITUTE($O34,\"}\",CHAR(160),FG$1))-FIND(CHAR(160),SUBSTITUTE($O34,\"{\",CHAR(160),FG$1))+1),\"\")","v":""},{"$f":"IFERROR(MID($O34,FIND(CHAR(160),SUBSTITUTE($O34,\"{\",CHAR(160),FH$1)),FIND(CHAR(160),SUBSTITUTE($O34,\"}\",CHAR(160),FH$1))-FIND(CHAR(160),SUBSTITUTE($O34,\"{\",CHAR(160),FH$1))+1),\"\")","v":""},{"$f":"IFERROR(MID($O34,FIND(CHAR(160),SUBSTITUTE($O34,\"{\",CHAR(160),FI$1)),FIND(CHAR(160),SUBSTITUTE($O34,\"}\",CHAR(160),FI$1))-FIND(CHAR(160),SUBSTITUTE($O34,\"{\",CHAR(160),FI$1))+1),\"\")","v":""},{"$f":"IFERROR(MID($O34,FIND(CHAR(160),SUBSTITUTE($O34,\"{\",CHAR(160),FJ$1)),FIND(CHAR(160),SUBSTITUTE($O34,\"}\",CHAR(160),FJ$1))-FIND(CHAR(160),SUBSTITUTE($O34,\"{\",CHAR(160),FJ$1))+1),\"\")","v":""},{"$f":"IFERROR(MID($O34,FIND(CHAR(160),SUBSTITUTE($O34,\"{\",CHAR(160),FK$1)),FIND(CHAR(160),SUBSTITUTE($O34,\"}\",CHAR(160),FK$1))-FIND(CHAR(160),SUBSTITUTE($O34,\"{\",CHAR(160),FK$1))+1),\"\")","v":"{Measure:Quantity}"},{"$f":"IFERROR(MID($O34,FIND(CHAR(160),SUBSTITUTE($O34,\"{\",CHAR(160),FL$1)),FIND(CHAR(160),SUBSTITUTE($O34,\"}\",CHAR(160),FL$1))-FIND(CHAR(160),SUBSTITUTE($O34,\"{\",CHAR(160),FL$1))+1),\"\")","v":""},{"$f":"IFERROR(MID($R34,FIND(CHAR(160),SUBSTITUTE($R34,\"{\",CHAR(160),FM$1)),FIND(CHAR(160),SUBSTITUTE($R34,\"}\",CHAR(160),FM$1))-FIND(CHAR(160),SUBSTITUTE($R34,\"{\",CHAR(160),FM$1))+1),\"\")","v":""},{"$f":"IFERROR(MID($R34,FIND(CHAR(160),SUBSTITUTE($R34,\"{\",CHAR(160),FN$1)),FIND(CHAR(160),SUBSTITUTE($R34,\"}\",CHAR(160),FN$1))-FIND(CHAR(160),SUBSTITUTE($R34,\"{\",CHAR(160),FN$1))+1),\"\")","v":""},{"$f":"IFERROR(MID($R34,FIND(CHAR(160),SUBSTITUTE($R34,\"{\",CHAR(160),FO$1)),FIND(CHAR(160),SUBSTITUTE($R34,\"}\",CHAR(160),FO$1))-FIND(CHAR(160),SUBSTITUTE($R34,\"{\",CHAR(160),FO$1))+1),\"\")","v":""},{"$f":"IFERROR(MID($R34,FIND(CHAR(160),SUBSTITUTE($R34,\"{\",CHAR(160),FP$1)),FIND(CHAR(160),SUBSTITUTE($R34,\"}\",CHAR(160),FP$1))-FIND(CHAR(160),SUBSTITUTE($R34,\"{\",CHAR(160),FP$1))+1),\"\")","v":""},{"$f":"IFERROR(MID($R34,FIND(CHAR(160),SUBSTITUTE($R34,\"{\",CHAR(160),FQ$1)),FIND(CHAR(160),SUBSTITUTE($R34,\"}\",CHAR(160),FQ$1))-FIND(CHAR(160),SUBSTITUTE($R34,\"{\",CHAR(160),FQ$1))+1),\"\")","v":""},{"$f":"IFERROR(MID($R34,FIND(CHAR(160),SUBSTITUTE($R34,\"{\",CHAR(160),FR$1)),FIND(CHAR(160),SUBSTITUTE($R34,\"}\",CHAR(160),FR$1))-FIND(CHAR(160),SUBSTITUTE($R34,\"{\",CHAR(160),FR$1))+1),\"\")","v":""},{"$f":"IFERROR(MID($R34,FIND(CHAR(160),SUBSTITUTE($R34,\"{\",CHAR(160),FS$1)),FIND(CHAR(160),SUBSTITUTE($R34,\"}\",CHAR(160),FS$1))-FIND(CHAR(160),SUBSTITUTE($R34,\"{\",CHAR(160),FS$1))+1),\"\")","v":""},{"$f":"IFERROR(MID($R34,FIND(CHAR(160),SUBSTITUTE($R34,\"{\",CHAR(160),FT$1)),FIND(CHAR(160),SUBSTITUTE($R34,\"}\",CHAR(160),FT$1))-FIND(CHAR(160),SUBSTITUTE($R34,\"{\",CHAR(160),FT$1))+1),\"\")","v":""},{"$f":"IFERROR(MID($R34,FIND(CHAR(160),SUBSTITUTE($R34,\"{\",CHAR(160),FU$1)),FIND(CHAR(160),SUBSTITUTE($R34,\"}\",CHAR(160),FU$1))-FIND(CHAR(160),SUBSTITUTE($R34,\"{\",CHAR(160),FU$1))+1),\"\")","v":"{Measure:Quantity}"},{"$f":"IFERROR(MID($R34,FIND(CHAR(160),SUBSTITUTE($R34,\"{\",CHAR(160),FV$1)),FIND(CHAR(160),SUBSTITUTE($R34,\"}\",CHAR(160),FV$1))-FIND(CHAR(160),SUBSTITUTE($R34,\"{\",CHAR(160),FV$1))+1),\"\")","v":""},{"$f":"IFERROR(MID($U34,FIND(CHAR(160),SUBSTITUTE($U34,\"{\",CHAR(160),FW$1)),FIND(CHAR(160),SUBSTITUTE($U34,\"}\",CHAR(160),FW$1))-FIND(CHAR(160),SUBSTITUTE($U34,\"{\",CHAR(160),FW$1))+1),\"\")","v":""},{"$f":"IFERROR(MID($U34,FIND(CHAR(160),SUBSTITUTE($U34,\"{\",CHAR(160),FX$1)),FIND(CHAR(160),SUBSTITUTE($U34,\"}\",CHAR(160),FX$1))-FIND(CHAR(160),SUBSTITUTE($U34,\"{\",CHAR(160),FX$1))+1),\"\")","v":""},{"$f":"IFERROR(MID($U34,FIND(CHAR(160),SUBSTITUTE($U34,\"{\",CHAR(160),FY$1)),FIND(CHAR(160),SUBSTITUTE($U34,\"}\",CHAR(160),FY$1))-FIND(CHAR(160),SUBSTITUTE($U34,\"{\",CHAR(160),FY$1))+1),\"\")","v":""},{"$f":"IFERROR(MID($U34,FIND(CHAR(160),SUBSTITUTE($U34,\"{\",CHAR(160),FZ$1)),FIND(CHAR(160),SUBSTITUTE($U34,\"}\",CHAR(160),FZ$1))-FIND(CHAR(160),SUBSTITUTE($U34,\"{\",CHAR(160),FZ$1))+1),\"\")","v":""},{"$f":"IFERROR(MID($U34,FIND(CHAR(160),SUBSTITUTE($U34,\"{\",CHAR(160),GA$1)),FIND(CHAR(160),SUBSTITUTE($U34,\"}\",CHAR(160),GA$1))-FIND(CHAR(160),SUBSTITUTE($U34,\"{\",CHAR(160),GA$1))+1),\"\")","v":""},{"$f":"IFERROR(MID($U34,FIND(CHAR(160),SUBSTITUTE($U34,\"{\",CHAR(160),GB$1)),FIND(CHAR(160),SUBSTITUTE($U34,\"}\",CHAR(160),GB$1))-FIND(CHAR(160),SUBSTITUTE($U34,\"{\",CHAR(160),GB$1))+1),\"\")","v":""},{"$f":"IFERROR(MID($U34,FIND(CHAR(160),SUBSTITUTE($U34,\"{\",CHAR(160),GC$1)),FIND(CHAR(160),SUBSTITUTE($U34,\"}\",CHAR(160),GC$1))-FIND(CHAR(160),SUBSTITUTE($U34,\"{\",CHAR(160),GC$1))+1),\"\")","v":""},{"$f":"IFERROR(MID($U34,FIND(CHAR(160),SUBSTITUTE($U34,\"{\",CHAR(160),GD$1)),FIND(CHAR(160),SUBSTITUTE($U34,\"}\",CHAR(160),GD$1))-FIND(CHAR(160),SUBSTITUTE($U34,\"{\",CHAR(160),GD$1))+1),\"\")","v":""},{"$f":"IFERROR(MID($U34,FIND(CHAR(160),SUBSTITUTE($U34,\"{\",CHAR(160),GE$1)),FIND(CHAR(160),SUBSTITUTE($U34,\"}\",CHAR(160),GE$1))-FIND(CHAR(160),SUBSTITUTE($U34,\"{\",CHAR(160),GE$1))+1),\"\")","v":"{Measure:Quantity}"},{"$f":"IFERROR(MID($U34,FIND(CHAR(160),SUBSTITUTE($U34,\"{\",CHAR(160),GF$1)),FIND(CHAR(160),SUBSTITUTE($U34,\"}\",CHAR(160),GF$1))-FIND(CHAR(160),SUBSTITUTE($U34,\"{\",CHAR(160),GF$1))+1),\"\")","v":"{Factor:WinterCF}"},{"$f":"IFERROR(MID($V34,FIND(CHAR(160),SUBSTITUTE($V34,\"{\",CHAR(160),GG$1)),FIND(CHAR(160),SUBSTITUTE($V34,\"}\",CHAR(160),GG$1))-FIND(CHAR(160),SUBSTITUTE($V34,\"{\",CHAR(160),GG$1))+1),\"\")","v":""},{"$f":"IFERROR(MID($V34,FIND(CHAR(160),SUBSTITUTE($V34,\"{\",CHAR(160),GH$1)),FIND(CHAR(160),SUBSTITUTE($V34,\"}\",CHAR(160),GH$1))-FIND(CHAR(160),SUBSTITUTE($V34,\"{\",CHAR(160),GH$1))+1),\"\")","v":""},{"$f":"IFERROR(MID($V34,FIND(CHAR(160),SUBSTITUTE($V34,\"{\",CHAR(160),GI$1)),FIND(CHAR(160),SUBSTITUTE($V34,\"}\",CHAR(160),GI$1))-FIND(CHAR(160),SUBSTITUTE($V34,\"{\",CHAR(160),GI$1))+1),\"\")","v":""},{"$f":"IFERROR(MID($V34,FIND(CHAR(160),SUBSTITUTE($V34,\"{\",CHAR(160),GJ$1)),FIND(CHAR(160),SUBSTITUTE($V34,\"}\",CHAR(160),GJ$1))-FIND(CHAR(160),SUBSTITUTE($V34,\"{\",CHAR(160),GJ$1))+1),\"\")","v":""},{"$f":"IFERROR(MID($V34,FIND(CHAR(160),SUBSTITUTE($V34,\"{\",CHAR(160),GK$1)),FIND(CHAR(160),SUBSTITUTE($V34,\"}\",CHAR(160),GK$1))-FIND(CHAR(160),SUBSTITUTE($V34,\"{\",CHAR(160),GK$1))+1),\"\")","v":""},{"$f":"IFERROR(MID($V34,FIND(CHAR(160),SUBSTITUTE($V34,\"{\",CHAR(160),GL$1)),FIND(CHAR(160),SUBSTITUTE($V34,\"}\",CHAR(160),GL$1))-FIND(CHAR(160),SUBSTITUTE($V34,\"{\",CHAR(160),GL$1))+1),\"\")","v":""},{"$f":"IFERROR(MID($V34,FIND(CHAR(160),SUBSTITUTE($V34,\"{\",CHAR(160),GM$1)),FIND(CHAR(160),SUBSTITUTE($V34,\"}\",CHAR(160),GM$1))-FIND(CHAR(160),SUBSTITUTE($V34,\"{\",CHAR(160),GM$1))+1),\"\")","v":""},{"$f":"IFERROR(MID($V34,FIND(CHAR(160),SUBSTITUTE($V34,\"{\",CHAR(160),GN$1)),FIND(CHAR(160),SUBSTITUTE($V34,\"}\",CHAR(160),GN$1))-FIND(CHAR(160),SUBSTITUTE($V34,\"{\",CHAR(160),GN$1))+1),\"\")","v":""},{"$f":"IFERROR(MID($V34,FIND(CHAR(160),SUBSTITUTE($V34,\"{\",CHAR(160),GO$1)),FIND(CHAR(160),SUBSTITUTE($V34,\"}\",CHAR(160),GO$1))-FIND(CHAR(160),SUBSTITUTE($V34,\"{\",CHAR(160),GO$1))+1),\"\")","v":"{Measure:Quantity}"},{"$f":"IFERROR(MID($V34,FIND(CHAR(160),SUBSTITUTE($V34,\"{\",CHAR(160),GP$1)),FIND(CHAR(160),SUBSTITUTE($V34,\"}\",CHAR(160),GP$1))-FIND(CHAR(160),SUBSTITUTE($V34,\"{\",CHAR(160),GP$1))+1),\"\")","v":"{Factor:SummerCF}"},{"$f":"IFERROR(MID($W34,FIND(CHAR(160),SUBSTITUTE($W34,\"{\",CHAR(160),GQ$1)),FIND(CHAR(160),SUBSTITUTE($W34,\"}\",CHAR(160),GQ$1))-FIND(CHAR(160),SUBSTITUTE($W34,\"{\",CHAR(160),GQ$1))+1),\"\")","v":""},{"$f":"IFERROR(MID($W34,FIND(CHAR(160),SUBSTITUTE($W34,\"{\",CHAR(160),GR$1)),FIND(CHAR(160),SUBSTITUTE($W34,\"}\",CHAR(160),GR$1))-FIND(CHAR(160),SUBSTITUTE($W34,\"{\",CHAR(160),GR$1))+1),\"\")","v":""},{"$f":"IFERROR(MID($W34,FIND(CHAR(160),SUBSTITUTE($W34,\"{\",CHAR(160),GS$1)),FIND(CHAR(160),SUBSTITUTE($W34,\"}\",CHAR(160),GS$1))-FIND(CHAR(160),SUBSTITUTE($W34,\"{\",CHAR(160),GS$1))+1),\"\")","v":""},{"$f":"IFERROR(MID($W34,FIND(CHAR(160),SUBSTITUTE($W34,\"{\",CHAR(160),GT$1)),FIND(CHAR(160),SUBSTITUTE($W34,\"}\",CHAR(160),GT$1))-FIND(CHAR(160),SUBSTITUTE($W34,\"{\",CHAR(160),GT$1))+1),\"\")","v":""},{"$f":"IFERROR(MID($W34,FIND(CHAR(160),SUBSTITUTE($W34,\"{\",CHAR(160),GU$1)),FIND(CHAR(160),SUBSTITUTE($W34,\"}\",CHAR(160),GU$1))-FIND(CHAR(160),SUBSTITUTE($W34,\"{\",CHAR(160),GU$1))+1),\"\")","v":""},{"$f":"IFERROR(MID($W34,FIND(CHAR(160),SUBSTITUTE($W34,\"{\",CHAR(160),GV$1)),FIND(CHAR(160),SUBSTITUTE($W34,\"}\",CHAR(160),GV$1))-FIND(CHAR(160),SUBSTITUTE($W34,\"{\",CHAR(160),GV$1))+1),\"\")","v":""},{"$f":"IFERROR(MID($W34,FIND(CHAR(160),SUBSTITUTE($W34,\"{\",CHAR(160),GW$1)),FIND(CHAR(160),SUBSTITUTE($W34,\"}\",CHAR(160),GW$1))-FIND(CHAR(160),SUBSTITUTE($W34,\"{\",CHAR(160),GW$1))+1),\"\")","v":""},{"$f":"IFERROR(MID($W34,FIND(CHAR(160),SUBSTITUTE($W34,\"{\",CHAR(160),GX$1)),FIND(CHAR(160),SUBSTITUTE($W34,\"}\",CHAR(160),GX$1))-FIND(CHAR(160),SUBSTITUTE($W34,\"{\",CHAR(160),GX$1))+1),\"\")","v":""},{"$f":"IFERROR(MID($W34,FIND(CHAR(160),SUBSTITUTE($W34,\"{\",CHAR(160),GY$1)),FIND(CHAR(160),SUBSTITUTE($W34,\"}\",CHAR(160),GY$1))-FIND(CHAR(160),SUBSTITUTE($W34,\"{\",CHAR(160),GY$1))+1),\"\")","v":""},{"$f":"IFERROR(MID($W34,FIND(CHAR(160),SUBSTITUTE($W34,\"{\",CHAR(160),GZ$1)),FIND(CHAR(160),SUBSTITUTE($W34,\"}\",CHAR(160),GZ$1))-FIND(CHAR(160),SUBSTITUTE($W34,\"{\",CHAR(160),GZ$1))+1),\"\")","v":""},{"$f":"IFERROR(MID($X34,FIND(CHAR(160),SUBSTITUTE($X34,\"{\",CHAR(160),HA$1)),FIND(CHAR(160),SUBSTITUTE($X34,\"}\",CHAR(160),HA$1))-FIND(CHAR(160),SUBSTITUTE($X34,\"{\",CHAR(160),HA$1))+1),\"\")","v":""},{"$f":"IFERROR(MID($X34,FIND(CHAR(160),SUBSTITUTE($X34,\"{\",CHAR(160),HB$1)),FIND(CHAR(160),SUBSTITUTE($X34,\"}\",CHAR(160),HB$1))-FIND(CHAR(160),SUBSTITUTE($X34,\"{\",CHAR(160),HB$1))+1),\"\")","v":""},{"$f":"IFERROR(MID($X34,FIND(CHAR(160),SUBSTITUTE($X34,\"{\",CHAR(160),HC$1)),FIND(CHAR(160),SUBSTITUTE($X34,\"}\",CHAR(160),HC$1))-FIND(CHAR(160),SUBSTITUTE($X34,\"{\",CHAR(160),HC$1))+1),\"\")","v":""},{"$f":"IFERROR(MID($X34,FIND(CHAR(160),SUBSTITUTE($X34,\"{\",CHAR(160),HD$1)),FIND(CHAR(160),SUBSTITUTE($X34,\"}\",CHAR(160),HD$1))-FIND(CHAR(160),SUBSTITUTE($X34,\"{\",CHAR(160),HD$1))+1),\"\")","v":""},{"$f":"IFERROR(MID($X34,FIND(CHAR(160),SUBSTITUTE($X34,\"{\",CHAR(160),HE$1)),FIND(CHAR(160),SUBSTITUTE($X34,\"}\",CHAR(160),HE$1))-FIND(CHAR(160),SUBSTITUTE($X34,\"{\",CHAR(160),HE$1))+1),\"\")","v":""},{"$f":"IFERROR(MID($X34,FIND(CHAR(160),SUBSTITUTE($X34,\"{\",CHAR(160),HF$1)),FIND(CHAR(160),SUBSTITUTE($X34,\"}\",CHAR(160),HF$1))-FIND(CHAR(160),SUBSTITUTE($X34,\"{\",CHAR(160),HF$1))+1),\"\")","v":""},{"$f":"IFERROR(MID($X34,FIND(CHAR(160),SUBSTITUTE($X34,\"{\",CHAR(160),HG$1)),FIND(CHAR(160),SUBSTITUTE($X34,\"}\",CHAR(160),HG$1))-FIND(CHAR(160),SUBSTITUTE($X34,\"{\",CHAR(160),HG$1))+1),\"\")","v":""},{"$f":"IFERROR(MID($X34,FIND(CHAR(160),SUBSTITUTE($X34,\"{\",CHAR(160),HH$1)),FIND(CHAR(160),SUBSTITUTE($X34,\"}\",CHAR(160),HH$1))-FIND(CHAR(160),SUBSTITUTE($X34,\"{\",CHAR(160),HH$1))+1),\"\")","v":""},{"$f":"IFERROR(MID($X34,FIND(CHAR(160),SUBSTITUTE($X34,\"{\",CHAR(160),HI$1)),FIND(CHAR(160),SUBSTITUTE($X34,\"}\",CHAR(160),HI$1))-FIND(CHAR(160),SUBSTITUTE($X34,\"{\",CHAR(160),HI$1))+1),\"\")","v":""},{"$f":"IFERROR(MID($X34,FIND(CHAR(160),SUBSTITUTE($X34,\"{\",CHAR(160),HJ$1)),FIND(CHAR(160),SUBSTITUTE($X34,\"}\",CHAR(160),HJ$1))-FIND(CHAR(160),SUBSTITUTE($X34,\"{\",CHAR(160),HJ$1))+1),\"\")","v":""},{"$f":"IFERROR(MID($Y34,FIND(CHAR(160),SUBSTITUTE($Y34,\"{\",CHAR(160),HK$1)),FIND(CHAR(160),SUBSTITUTE($Y34,\"}\",CHAR(160),HK$1))-FIND(CHAR(160),SUBSTITUTE($Y34,\"{\",CHAR(160),HK$1))+1),\"\")","v":""},{"$f":"IFERROR(MID($Y34,FIND(CHAR(160),SUBSTITUTE($Y34,\"{\",CHAR(160),HL$1)),FIND(CHAR(160),SUBSTITUTE($Y34,\"}\",CHAR(160),HL$1))-FIND(CHAR(160),SUBSTITUTE($Y34,\"{\",CHAR(160),HL$1))+1),\"\")","v":""},{"$f":"IFERROR(MID($Y34,FIND(CHAR(160),SUBSTITUTE($Y34,\"{\",CHAR(160),HM$1)),FIND(CHAR(160),SUBSTITUTE($Y34,\"}\",CHAR(160),HM$1))-FIND(CHAR(160),SUBSTITUTE($Y34,\"{\",CHAR(160),HM$1))+1),\"\")","v":""},{"$f":"IFERROR(MID($Y34,FIND(CHAR(160),SUBSTITUTE($Y34,\"{\",CHAR(160),HN$1)),FIND(CHAR(160),SUBSTITUTE($Y34,\"}\",CHAR(160),HN$1))-FIND(CHAR(160),SUBSTITUTE($Y34,\"{\",CHAR(160),HN$1))+1),\"\")","v":""},{"$f":"IFERROR(MID($Y34,FIND(CHAR(160),SUBSTITUTE($Y34,\"{\",CHAR(160),HO$1)),FIND(CHAR(160),SUBSTITUTE($Y34,\"}\",CHAR(160),HO$1))-FIND(CHAR(160),SUBSTITUTE($Y34,\"{\",CHAR(160),HO$1))+1),\"\")","v":""},{"$f":"IFERROR(MID($Y34,FIND(CHAR(160),SUBSTITUTE($Y34,\"{\",CHAR(160),HP$1)),FIND(CHAR(160),SUBSTITUTE($Y34,\"}\",CHAR(160),HP$1))-FIND(CHAR(160),SUBSTITUTE($Y34,\"{\",CHAR(160),HP$1))+1),\"\")","v":""},{"$f":"IFERROR(MID($Y34,FIND(CHAR(160),SUBSTITUTE($Y34,\"{\",CHAR(160),HQ$1)),FIND(CHAR(160),SUBSTITUTE($Y34,\"}\",CHAR(160),HQ$1))-FIND(CHAR(160),SUBSTITUTE($Y34,\"{\",CHAR(160),HQ$1))+1),\"\")","v":""},{"$f":"IFERROR(MID($Y34,FIND(CHAR(160),SUBSTITUTE($Y34,\"{\",CHAR(160),HR$1)),FIND(CHAR(160),SUBSTITUTE($Y34,\"}\",CHAR(160),HR$1))-FIND(CHAR(160),SUBSTITUTE($Y34,\"{\",CHAR(160),HR$1))+1),\"\")","v":""},{"$f":"IFERROR(MID($Y34,FIND(CHAR(160),SUBSTITUTE($Y34,\"{\",CHAR(160),HS$1)),FIND(CHAR(160),SUBSTITUTE($Y34,\"}\",CHAR(160),HS$1))-FIND(CHAR(160),SUBSTITUTE($Y34,\"{\",CHAR(160),HS$1))+1),\"\")","v":""},{"$f":"IFERROR(MID($Y34,FIND(CHAR(160),SUBSTITUTE($Y34,\"{\",CHAR(160),HT$1)),FIND(CHAR(160),SUBSTITUTE($Y34,\"}\",CHAR(160),HT$1))-FIND(CHAR(160),SUBSTITUTE($Y34,\"{\",CHAR(160),HT$1))+1),\"\")","v":""},{"$f":"IFERROR(MID($Z34,FIND(CHAR(160),SUBSTITUTE($Z34,\"{\",CHAR(160),HU$1)),FIND(CHAR(160),SUBSTITUTE($Z34,\"}\",CHAR(160),HU$1))-FIND(CHAR(160),SUBSTITUTE($Z34,\"{\",CHAR(160),HU$1))+1),\"\")","v":""},{"$f":"IFERROR(MID($Z34,FIND(CHAR(160),SUBSTITUTE($Z34,\"{\",CHAR(160),HV$1)),FIND(CHAR(160),SUBSTITUTE($Z34,\"}\",CHAR(160),HV$1))-FIND(CHAR(160),SUBSTITUTE($Z34,\"{\",CHAR(160),HV$1))+1),\"\")","v":""},{"$f":"IFERROR(MID($Z34,FIND(CHAR(160),SUBSTITUTE($Z34,\"{\",CHAR(160),HW$1)),FIND(CHAR(160),SUBSTITUTE($Z34,\"}\",CHAR(160),HW$1))-FIND(CHAR(160),SUBSTITUTE($Z34,\"{\",CHAR(160),HW$1))+1),\"\")","v":""},{"$f":"IFERROR(MID($Z34,FIND(CHAR(160),SUBSTITUTE($Z34,\"{\",CHAR(160),HX$1)),FIND(CHAR(160),SUBSTITUTE($Z34,\"}\",CHAR(160),HX$1))-FIND(CHAR(160),SUBSTITUTE($Z34,\"{\",CHAR(160),HX$1))+1),\"\")","v":""},{"$f":"IFERROR(MID($Z34,FIND(CHAR(160),SUBSTITUTE($Z34,\"{\",CHAR(160),HY$1)),FIND(CHAR(160),SUBSTITUTE($Z34,\"}\",CHAR(160),HY$1))-FIND(CHAR(160),SUBSTITUTE($Z34,\"{\",CHAR(160),HY$1))+1),\"\")","v":""},{"$f":"IFERROR(MID($Z34,FIND(CHAR(160),SUBSTITUTE($Z34,\"{\",CHAR(160),HZ$1)),FIND(CHAR(160),SUBSTITUTE($Z34,\"}\",CHAR(160),HZ$1))-FIND(CHAR(160),SUBSTITUTE($Z34,\"{\",CHAR(160),HZ$1))+1),\"\")","v":""},{"$f":"IFERROR(MID($Z34,FIND(CHAR(160),SUBSTITUTE($Z34,\"{\",CHAR(160),IA$1)),FIND(CHAR(160),SUBSTITUTE($Z34,\"}\",CHAR(160),IA$1))-FIND(CHAR(160),SUBSTITUTE($Z34,\"{\",CHAR(160),IA$1))+1),\"\")","v":""},{"$f":"IFERROR(MID($Z34,FIND(CHAR(160),SUBSTITUTE($Z34,\"{\",CHAR(160),IB$1)),FIND(CHAR(160),SUBSTITUTE($Z34,\"}\",CHAR(160),IB$1))-FIND(CHAR(160),SUBSTITUTE($Z34,\"{\",CHAR(160),IB$1))+1),\"\")","v":""},{"$f":"IFERROR(MID($Z34,FIND(CHAR(160),SUBSTITUTE($Z34,\"{\",CHAR(160),IC$1)),FIND(CHAR(160),SUBSTITUTE($Z34,\"}\",CHAR(160),IC$1))-FIND(CHAR(160),SUBSTITUTE($Z34,\"{\",CHAR(160),IC$1))+1),\"\")","v":""},{"$f":"IFERROR(MID($Z34,FIND(CHAR(160),SUBSTITUTE($Z34,\"{\",CHAR(160),ID$1)),FIND(CHAR(160),SUBSTITUTE($Z34,\"}\",CHAR(160),ID$1))-FIND(CHAR(160),SUBSTITUTE($Z34,\"{\",CHAR(160),ID$1))+1),\"\")","v":""},{"$f":"IFERROR(MID($AA34,FIND(CHAR(160),SUBSTITUTE($AA34,\"{\",CHAR(160),IE$1)),FIND(CHAR(160),SUBSTITUTE($AA34,\"}\",CHAR(160),IE$1))-FIND(CHAR(160),SUBSTITUTE($AA34,\"{\",CHAR(160),IE$1))+1),\"\")","v":""},{"$f":"IFERROR(MID($AA34,FIND(CHAR(160),SUBSTITUTE($AA34,\"{\",CHAR(160),IF$1)),FIND(CHAR(160),SUBSTITUTE($AA34,\"}\",CHAR(160),IF$1))-FIND(CHAR(160),SUBSTITUTE($AA34,\"{\",CHAR(160),IF$1))+1),\"\")","v":""},{"$f":"IFERROR(MID($AA34,FIND(CHAR(160),SUBSTITUTE($AA34,\"{\",CHAR(160),IG$1)),FIND(CHAR(160),SUBSTITUTE($AA34,\"}\",CHAR(160),IG$1))-FIND(CHAR(160),SUBSTITUTE($AA34,\"{\",CHAR(160),IG$1))+1),\"\")","v":""},{"$f":"IFERROR(MID($AA34,FIND(CHAR(160),SUBSTITUTE($AA34,\"{\",CHAR(160),IH$1)),FIND(CHAR(160),SUBSTITUTE($AA34,\"}\",CHAR(160),IH$1))-FIND(CHAR(160),SUBSTITUTE($AA34,\"{\",CHAR(160),IH$1))+1),\"\")","v":""},{"$f":"IFERROR(MID($AA34,FIND(CHAR(160),SUBSTITUTE($AA34,\"{\",CHAR(160),II$1)),FIND(CHAR(160),SUBSTITUTE($AA34,\"}\",CHAR(160),II$1))-FIND(CHAR(160),SUBSTITUTE($AA34,\"{\",CHAR(160),II$1))+1),\"\")","v":""},{"$f":"IFERROR(MID($AA34,FIND(CHAR(160),SUBSTITUTE($AA34,\"{\",CHAR(160),IJ$1)),FIND(CHAR(160),SUBSTITUTE($AA34,\"}\",CHAR(160),IJ$1))-FIND(CHAR(160),SUBSTITUTE($AA34,\"{\",CHAR(160),IJ$1))+1),\"\")","v":""},{"$f":"IFERROR(MID($AA34,FIND(CHAR(160),SUBSTITUTE($AA34,\"{\",CHAR(160),IK$1)),FIND(CHAR(160),SUBSTITUTE($AA34,\"}\",CHAR(160),IK$1))-FIND(CHAR(160),SUBSTITUTE($AA34,\"{\",CHAR(160),IK$1))+1),\"\")","v":""},{"$f":"IFERROR(MID($AA34,FIND(CHAR(160),SUBSTITUTE($AA34,\"{\",CHAR(160),IL$1)),FIND(CHAR(160),SUBSTITUTE($AA34,\"}\",CHAR(160),IL$1))-FIND(CHAR(160),SUBSTITUTE($AA34,\"{\",CHAR(160),IL$1))+1),\"\")","v":""},{"$f":"IFERROR(MID($AA34,FIND(CHAR(160),SUBSTITUTE($AA34,\"{\",CHAR(160),IM$1)),FIND(CHAR(160),SUBSTITUTE($AA34,\"}\",CHAR(160),IM$1))-FIND(CHAR(160),SUBSTITUTE($AA34,\"{\",CHAR(160),IM$1))+1),\"\")","v":""},{"$f":"IFERROR(MID($AA34,FIND(CHAR(160),SUBSTITUTE($AA34,\"{\",CHAR(160),IN$1)),FIND(CHAR(160),SUBSTITUTE($AA34,\"}\",CHAR(160),IN$1))-FIND(CHAR(160),SUBSTITUTE($AA34,\"{\",CHAR(160),IN$1))+1),\"\")","v":""},{"$f":"IFERROR(MID($AB34,FIND(CHAR(160),SUBSTITUTE($AB34,\"{\",CHAR(160),IO$1)),FIND(CHAR(160),SUBSTITUTE($AB34,\"}\",CHAR(160),IO$1))-FIND(CHAR(160),SUBSTITUTE($AB34,\"{\",CHAR(160),IO$1))+1),\"\")","v":""},{"$f":"IFERROR(MID($AB34,FIND(CHAR(160),SUBSTITUTE($AB34,\"{\",CHAR(160),IP$1)),FIND(CHAR(160),SUBSTITUTE($AB34,\"}\",CHAR(160),IP$1))-FIND(CHAR(160),SUBSTITUTE($AB34,\"{\",CHAR(160),IP$1))+1),\"\")","v":""},{"$f":"IFERROR(MID($AB34,FIND(CHAR(160),SUBSTITUTE($AB34,\"{\",CHAR(160),IQ$1)),FIND(CHAR(160),SUBSTITUTE($AB34,\"}\",CHAR(160),IQ$1))-FIND(CHAR(160),SUBSTITUTE($AB34,\"{\",CHAR(160),IQ$1))+1),\"\")","v":""},{"$f":"IFERROR(MID($AB34,FIND(CHAR(160),SUBSTITUTE($AB34,\"{\",CHAR(160),IR$1)),FIND(CHAR(160),SUBSTITUTE($AB34,\"}\",CHAR(160),IR$1))-FIND(CHAR(160),SUBSTITUTE($AB34,\"{\",CHAR(160),IR$1))+1),\"\")","v":""},{"$f":"IFERROR(MID($AB34,FIND(CHAR(160),SUBSTITUTE($AB34,\"{\",CHAR(160),IS$1)),FIND(CHAR(160),SUBSTITUTE($AB34,\"}\",CHAR(160),IS$1))-FIND(CHAR(160),SUBSTITUTE($AB34,\"{\",CHAR(160),IS$1))+1),\"\")","v":""},{"$f":"IFERROR(MID($AB34,FIND(CHAR(160),SUBSTITUTE($AB34,\"{\",CHAR(160),IT$1)),FIND(CHAR(160),SUBSTITUTE($AB34,\"}\",CHAR(160),IT$1))-FIND(CHAR(160),SUBSTITUTE($AB34,\"{\",CHAR(160),IT$1))+1),\"\")","v":""},{"$f":"IFERROR(MID($AB34,FIND(CHAR(160),SUBSTITUTE($AB34,\"{\",CHAR(160),IU$1)),FIND(CHAR(160),SUBSTITUTE($AB34,\"}\",CHAR(160),IU$1))-FIND(CHAR(160),SUBSTITUTE($AB34,\"{\",CHAR(160),IU$1))+1),\"\")","v":""},{"$f":"IFERROR(MID($AB34,FIND(CHAR(160),SUBSTITUTE($AB34,\"{\",CHAR(160),IV$1)),FIND(CHAR(160),SUBSTITUTE($AB34,\"}\",CHAR(160),IV$1))-FIND(CHAR(160),SUBSTITUTE($AB34,\"{\",CHAR(160),IV$1))+1),\"\")","v":""},{"$f":"IFERROR(MID($AB34,FIND(CHAR(160),SUBSTITUTE($AB34,\"{\",CHAR(160),IW$1)),FIND(CHAR(160),SUBSTITUTE($AB34,\"}\",CHAR(160),IW$1))-FIND(CHAR(160),SUBSTITUTE($AB34,\"{\",CHAR(160),IW$1))+1),\"\")","v":""},{"$f":"IFERROR(MID($AB34,FIND(CHAR(160),SUBSTITUTE($AB34,\"{\",CHAR(160),IX$1)),FIND(CHAR(160),SUBSTITUTE($AB34,\"}\",CHAR(160),IX$1))-FIND(CHAR(160),SUBSTITUTE($AB34,\"{\",CHAR(160),IX$1))+1),\"\")","v":""},null,{"$f":"10-COUNTIF(DU34:ED34,\"\")","v":1}]
["C&I Agricultural Solutions","MILK: Scroll Compressor - 3 HP","AMSC - AMSC3","2021-07-01","2022-06-30","Per Measure",525,0,"Per Measure",330,0,"2016-07-01","2022-06-30","Calculated","432 * 3 * {Measure:Quantity}",1E-4,null,"((432 * 3) /2850) * {Measure:Quantity}",null,null,"(((432 * 3) /2850) * {Measure:Quantity}) *{Factor:WinterCF}","(((432 * 3) /2850) * {Measure:Quantity}) *{Factor:SummerCF}",null,null,null,null,null,null,"2020-04-01","2022-06-30",15,0.67400000000000004,0.32700000000000001,0.436,0.23200000000000001,0.217,0.115,1,1.1220000000000001,1,0.52,1.6E-2,null,{"$f":"DU35","v":"{Measure:Quantity}"},1,{"$f":"DV35","v":""},null,{"$f":"DW35","v":""},null,{"$f":"DX35","v":""},null,{"$f":"DY35","v":""},null,{"$f":"DZ35","v":""},null,{"$f":"EA35","v":""},null,{"$f":"EB35","v":""},null,{"$f":"EC35","v":""},null,{"$f":"ED35","v":""},null,{"$f":"432 * 3 * AS35","v":1296},{"$f":"0.0001","v":1E-4},0,{"$f":"((432 * 3) /2850) * AS35","v":0.45473684210526316},0,0,{"$f":"(((432 * 3) /2850) * AS35) *AF35","v":0.30649263157894741},{"$f":"(((432 * 3) /2850) * AS35) *AG35","v":0.14869894736842107},0,0,0,0,0,0,null,"Res","Default DR",{"$f":"Benefits(BL35,BR35,BS35,BT35,BU35,BV35,BW35,BX35,BY35,BZ35,AE35,AH35,AI35,AJ35,AK35,AL35,AM35,AN35,AO35,AP35,CA35,CB35)","v":1936.4860881729985},1434.1126087722691,0,0,0,0,0,0,0,{"$f":"SUMPRODUCT(CC35:CK35,--(CC35:CK35>0))","v":3370.5986969452679},{"$f":"-SUMPRODUCT(CC35:CK35,--(CC35:CK35<0))","v":0},null,{"$f":"525","v":525},null,null,{"$f":"CM35+CO35","v":525},{"$f":"IF(NetOrGross=\"Net\",(1-AO35+AP35),1)","v":1},{"$f":"(SUMPRODUCT(CC35:CJ35,--(CC35:CJ35>0))+CN35)*CS35/((-SUMPRODUCT(CC35:CJ35,--(CC35:CJ35<0))+MAX(CO35,CV35)+CP35+CQ35)*CS35+IF(FRIncentives=\"Yes\",CV35*(1-CS35),0))","v":6.4201879941814628},1,{"$f":"330","v":330},null,"Electric","y",null,{"$f":"IF(F35=\"Manual Entry\",\"Manual\",IF(G35=\"\",0,\"X=\"&SUBSTITUTE(SUBSTITUTE(SUBSTITUTE(SUBSTITUTE(SUBSTITUTE(SUBSTITUTE(SUBSTITUTE(SUBSTITUTE(SUBSTITUTE(SUBSTITUTE(SUBSTITUTE(SUBSTITUTE(G35,$ED35,$ED$2&ROW($ED35)),$EC35,$EC$2&ROW($EC35)),$EB35,$EB$2&ROW($EB35)),$EA35,$EA$2&ROW($EA35)),$DZ35,$DZ$2&ROW($DZ35)),$DY35,$DY$2&ROW($DY35)),$DX35,$DX$2&ROW($DX35)),$DW35,$DW$2&ROW($DW35)),$DV35,$DV$2&ROW($DV35)),$DU35,$DU$2&ROW($DU35)),$DT35,$DT$2&ROW($DT35)),$DS35,$DS$2&ROW($DS35))))","v":"X=525"},{"$f":"IF(I35=\"Manual Entry\",\"Manual\",IF(J35=\"\",0,\"X=\"&SUBSTITUTE(SUBSTITUTE(SUBSTITUTE(SUBSTITUTE(SUBSTITUTE(SUBSTITUTE(SUBSTITUTE(SUBSTITUTE(SUBSTITUTE(SUBSTITUTE(SUBSTITUTE(SUBSTITUTE(J35,$ED35,$ED$2&ROW($ED35)),$EC35,$EC$2&ROW($EC35)),$EB35,$EB$2&ROW($EB35)),$EA35,$EA$2&ROW($EA35)),$DZ35,$DZ$2&ROW($DZ35)),$DY35,$DY$2&ROW($DY35)),$DX35,$DX$2&ROW($DX35)),$DW35,$DW$2&ROW($DW35)),$DV35,$DV$2&ROW($DV35)),$DU35,$DU$2&ROW($DU35)),$DT35,$DT$2&ROW($DT35)),$DS35,$DS$2&ROW($DS35))))","v":"X=330"},{"$f":"IF(O35=\"\",0,\"X=\"&SUBSTITUTE(SUBSTITUTE(SUBSTITUTE(SUBSTITUTE(SUBSTITUTE(SUBSTITUTE(SUBSTITUTE(SUBSTITUTE(SUBSTITUTE(SUBSTITUTE(SUBSTITUTE(SUBSTITUTE(O35,$ED35,$ED$2&ROW($ED35)),$EC35,$EC$2&ROW($EC35)),$EB35,$EB$2&ROW($EB35)),$EA35,$EA$2&ROW($EA35)),$DZ35,$DZ$2&ROW($DZ35)),$DY35,$DY$2&ROW($DY35)),$DX35,$DX$2&ROW($DX35)),$DW35,$DW$2&ROW($DW35)),$DV35,$DV$2&ROW($DV35)),$DU35,$DU$2&ROW($DU35)),$DT35,$DT$2&ROW($DT35)),$DS35,$DS$2&ROW($DS35)))","v":"X=432 * 3 * AS35"},{"$f":"IF(P35=\"\",0,\"X=\"&SUBSTITUTE(SUBSTITUTE(SUBSTITUTE(SUBSTITUTE(SUBSTITUTE(SUBSTITUTE(SUBSTITUTE(SUBSTITUTE(SUBSTITUTE(SUBSTITUTE(SUBSTITUTE(SUBSTITUTE(P35,$ED35,$ED$2&ROW($ED35)),$EC35,$EC$2&ROW($EC35)),$EB35,$EB$2&ROW($EB35)),$EA35,$EA$2&ROW($EA35)),$DZ35,$DZ$2&ROW($DZ35)),$DY35,$DY$2&ROW($DY35)),$DX35,$DX$2&ROW($DX35)),$DW35,$DW$2&ROW($DW35)),$DV35,$DV$2&ROW($DV35)),$DU35,$DU$2&ROW($DU35)),$DT35,$DT$2&ROW($DT35)),$DS35,$DS$2&ROW($DS35)))","v":"X=0.0001"},{"$f":"IF(Q35=\"\",0,\"X=\"&SUBSTITUTE(SUBSTITUTE(SUBSTITUTE(SUBSTITUTE(SUBSTITUTE(SUBSTITUTE(SUBSTITUTE(SUBSTITUTE(SUBSTITUTE(SUBSTITUTE(SUBSTITUTE(SUBSTITUTE(Q35,$ED35,$ED$2&ROW($ED35)),$EC35,$EC$2&ROW($EC35)),$EB35,$EB$2&ROW($EB35)),$EA35,$EA$2&ROW($EA35)),$DZ35,$DZ$2&ROW($DZ35)),$DY35,$DY$2&ROW($DY35)),$DX35,$DX$2&ROW($DX35)),$DW35,$DW$2&ROW($DW35)),$DV35,$DV$2&ROW($DV35)),$DU35,$DU$2&ROW($DU35)),$DT35,$DT$2&ROW($DT35)),$DS35,$DS$2&ROW($DS35)))","v":0},{"$f":"IF(R35=\"\",0,\"X=\"&SUBSTITUTE(SUBSTITUTE(SUBSTITUTE(SUBSTITUTE(SUBSTITUTE(SUBSTITUTE(SUBSTITUTE(SUBSTITUTE(SUBSTITUTE(SUBSTITUTE(SUBSTITUTE(SUBSTITUTE(R35,$ED35,$ED$2&ROW($ED35)),$EC35,$EC$2&ROW($EC35)),$EB35,$EB$2&ROW($EB35)),$EA35,$EA$2&ROW($EA35)),$DZ35,$DZ$2&ROW($DZ35)),$DY35,$DY$2&ROW($DY35)),$DX35,$DX$2&ROW($DX35)),$DW35,$DW$2&ROW($DW35)),$DV35,$DV$2&ROW($DV35)),$DU35,$DU$2&ROW($DU35)),$DT35,$DT$2&ROW($DT35)),$DS35,$DS$2&ROW($DS35)))","v":"X=((432 * 3) /2850) * AS35"},{"$f":"IF(S35=\"\",0,\"X=\"&SUBSTITUTE(SUBSTITUTE(SUBSTITUTE(SUBSTITUTE(SUBSTITUTE(SUBSTITUTE(SUBSTITUTE(SUBSTITUTE(SUBSTITUTE(SUBSTITUTE(SUBSTITUTE(SUBSTITUTE(S35,$ED35,$ED$2&ROW($ED35)),$EC35,$EC$2&ROW($EC35)),$EB35,$EB$2&ROW($EB35)),$EA35,$EA$2&ROW($EA35)),$DZ35,$DZ$2&ROW($DZ35)),$DY35,$DY$2&ROW($DY35)),$DX35,$DX$2&ROW($DX35)),$DW35,$DW$2&ROW($DW35)),$DV35,$DV$2&ROW($DV35)),$DU35,$DU$2&ROW($DU35)),$DT35,$DT$2&ROW($DT35)),$DS35,$DS$2&ROW($DS35)))","v":0},{"$f":"IF(T35=\"\",0,\"X=\"&SUBSTITUTE(SUBSTITUTE(SUBSTITUTE(SUBSTITUTE(SUBSTITUTE(SUBSTITUTE(SUBSTITUTE(SUBSTITUTE(SUBSTITUTE(SUBSTITUTE(SUBSTITUTE(SUBSTITUTE(T35,$ED35,$ED$2&ROW($ED35)),$EC35,$EC$2&ROW($EC35)),$EB35,$EB$2&ROW($EB35)),$EA35,$EA$2&ROW($EA35)),$DZ35,$DZ$2&ROW($DZ35)),$DY35,$DY$2&ROW($DY35)),$DX35,$DX$2&ROW($DX35)),$DW35,$DW$2&ROW($DW35)),$DV35,$DV$2&ROW($DV35)),$DU35,$DU$2&ROW($DU35)),$DT35,$DT$2&ROW($DT35)),$DS35,$DS$2&ROW($DS35)))","v":0},{"$f":"IF(U35=\"\",0,\"X=\"&SUBSTITUTE(SUBSTITUTE(SUBSTITUTE(SUBSTITUTE(SUBSTITUTE(SUBSTITUTE(SUBSTITUTE(SUBSTITUTE(SUBSTITUTE(SUBSTITUTE(SUBSTITUTE(SUBSTITUTE(U35,$ED35,$ED$2&ROW($ED35)),$EC35,$EC$2&ROW($EC35)),$EB35,$EB$2&ROW($EB35)),$EA35,$EA$2&ROW($EA35)),$DZ35,$DZ$2&ROW($DZ35)),$DY35,$DY$2&ROW($DY35)),$DX35,$DX$2&ROW($DX35)),$DW35,$DW$2&ROW($DW35)),$DV35,$DV$2&ROW($DV35)),$DU35,$DU$2&ROW($DU35)),$DT35,$DT$2&ROW($DT35)),$DS35,$DS$2&ROW($DS35)))","v":"X=(((432 * 3) /2850) * AS35) *AF35"},{"$f":"IF(V35=\"\",0,\"X=\"&SUBSTITUTE(SUBSTITUTE(SUBSTITUTE(SUBSTITUTE(SUBSTITUTE(SUBSTITUTE(SUBSTITUTE(SUBSTITUTE(SUBSTITUTE(SUBSTITUTE(SUBSTITUTE(SUBSTITUTE(V35,$ED35,$ED$2&ROW($ED35)),$EC35,$EC$2&ROW($EC35)),$EB35,$EB$2&ROW($EB35)),$EA35,$EA$2&ROW($EA35)),$DZ35,$DZ$2&ROW($DZ35)),$DY35,$DY$2&ROW($DY35)),$DX35,$DX$2&ROW($DX35)),$DW35,$DW$2&ROW($DW35)),$DV35,$DV$2&ROW($DV35)),$DU35,$DU$2&ROW($DU35)),$DT35,$DT$2&ROW($DT35)),$DS35,$DS$2&ROW($DS35)))","v":"X=(((432 * 3) /2850) * AS35) *AG35"},{"$f":"IF(W35=\"\",0,\"X=\"&SUBSTITUTE(SUBSTITUTE(SUBSTITUTE(SUBSTITUTE(SUBSTITUTE(SUBSTITUTE(SUBSTITUTE(SUBSTITUTE(SUBSTITUTE(SUBSTITUTE(SUBSTITUTE(SUBSTITUTE(W35,$ED35,$ED$2&ROW($ED35)),$EC35,$EC$2&ROW($EC35)),$EB35,$EB$2&ROW($EB35)),$EA35,$EA$2&ROW($EA35)),$DZ35,$DZ$2&ROW($DZ35)),$DY35,$DY$2&ROW($DY35)),$DX35,$DX$2&ROW($DX35)),$DW35,$DW$2&ROW($DW35)),$DV35,$DV$2&ROW($DV35)),$DU35,$DU$2&ROW($DU35)),$DT35,$DT$2&ROW($DT35)),$DS35,$DS$2&ROW($DS35)))","v":0},{"$f":"IF(X35=\"\",0,\"X=\"&SUBSTITUTE(SUBSTITUTE(SUBSTITUTE(SUBSTITUTE(SUBSTITUTE(SUBSTITUTE(SUBSTITUTE(SUBSTITUTE(SUBSTITUTE(SUBSTITUTE(SUBSTITUTE(SUBSTITUTE(X35,$ED35,$ED$2&ROW($ED35)),$EC35,$EC$2&ROW($EC35)),$EB35,$EB$2&ROW($EB35)),$EA35,$EA$2&ROW($EA35)),$DZ35,$DZ$2&ROW($DZ35)),$DY35,$DY$2&ROW($DY35)),$DX35,$DX$2&ROW($DX35)),$DW35,$DW$2&ROW($DW35)),$DV35,$DV$2&ROW($DV35)),$DU35,$DU$2&ROW($DU35)),$DT35,$DT$2&ROW($DT35)),$DS35,$DS$2&ROW($DS35)))","v":0},{"$f":"IF(Y35=\"\",0,\"X=\"&SUBSTITUTE(SUBSTITUTE(SUBSTITUTE(SUBSTITUTE(SUBSTITUTE(SUBSTITUTE(SUBSTITUTE(SUBSTITUTE(SUBSTITUTE(SUBSTITUTE(SUBSTITUTE(SUBSTITUTE(Y35,$ED35,$ED$2&ROW($ED35)),$EC35,$EC$2&ROW($EC35)),$EB35,$EB$2&ROW($EB35)),$EA35,$EA$2&ROW($EA35)),$DZ35,$DZ$2&ROW($DZ35)),$DY35,$DY$2&ROW($DY35)),$DX35,$DX$2&ROW($DX35)),$DW35,$DW$2&ROW($DW35)),$DV35,$DV$2&ROW($DV35)),$DU35,$DU$2&ROW($DU35)),$DT35,$DT$2&ROW($DT35)),$DS35,$DS$2&ROW($DS35)))","v":0},{"$f":"IF(Z35=\"\",0,\"X=\"&SUBSTITUTE(SUBSTITUTE(SUBSTITUTE(SUBSTITUTE(SUBSTITUTE(SUBSTITUTE(SUBSTITUTE(SUBSTITUTE(SUBSTITUTE(SUBSTITUTE(SUBSTITUTE(SUBSTITUTE(Z35,$ED35,$ED$2&ROW($ED35)),$EC35,$EC$2&ROW($EC35)),$EB35,$EB$2&ROW($EB35)),$EA35,$EA$2&ROW($EA35)),$DZ35,$DZ$2&ROW($DZ35)),$DY35,$DY$2&ROW($DY35)),$DX35,$DX$2&ROW($DX35)),$DW35,$DW$2&ROW($DW35)),$DV35,$DV$2&ROW($DV35)),$DU35,$DU$2&ROW($DU35)),$DT35,$DT$2&ROW($DT35)),$DS35,$DS$2&ROW($DS35)))","v":0},{"$f":"IF(AA35=\"\",0,\"X=\"&SUBSTITUTE(SUBSTITUTE(SUBSTITUTE(SUBSTITUTE(SUBSTITUTE(SUBSTITUTE(SUBSTITUTE(SUBSTITUTE(SUBSTITUTE(SUBSTITUTE(SUBSTITUTE(SUBSTITUTE(AA35,$ED35,$ED$2&ROW($ED35)),$EC35,$EC$2&ROW($EC35)),$EB35,$EB$2&ROW($EB35)),$EA35,$EA$2&ROW($EA35)),$DZ35,$DZ$2&ROW($DZ35)),$DY35,$DY$2&ROW($DY35)),$DX35,$DX$2&ROW($DX35)),$DW35,$DW$2&ROW($DW35)),$DV35,$DV$2&ROW($DV35)),$DU35,$DU$2&ROW($DU35)),$DT35,$DT$2&ROW($DT35)),$DS35,$DS$2&ROW($DS35)))","v":0},{"$f":"IF(AB35=\"\",0,\"X=\"&SUBSTITUTE(SUBSTITUTE(SUBSTITUTE(SUBSTITUTE(SUBSTITUTE(SUBSTITUTE(SUBSTITUTE(SUBSTITUTE(SUBSTITUTE(SUBSTITUTE(SUBSTITUTE(SUBSTITUTE(AB35,$ED35,$ED$2&ROW($ED35)),$EC35,$EC$2&ROW($EC35)),$EB35,$EB$2&ROW($EB35)),$EA35,$EA$2&ROW($EA35)),$DZ35,$DZ$2&ROW($DZ35)),$DY35,$DY$2&ROW($DY35)),$DX35,$DX$2&ROW($DX35)),$DW35,$DW$2&ROW($DW35)),$DV35,$DV$2&ROW($DV35)),$DU35,$DU$2&ROW($DU35)),$DT35,$DT$2&ROW($DT35)),$DS35,$DS$2&ROW($DS35)))","v":0},null,null,"{Factor:WinterCF}","{Factor:SummerCF}",{"$f":"IFERROR(INDEX($EG35:$IV35,MATCH(0,COUNTIF($DR35:DT35,$EG35:$IV35),0)),\"\")","v":"{Measure:Quantity}"},{"$f":"IFERROR(INDEX($EG35:$IV35,MATCH(0,COUNTIF($DR35:DU35,$EG35:$IV35),0)),\"\")","v":""},{"$f":"IFERROR(INDEX($EG35:$IV35,MATCH(0,COUNTIF($DR35:DV35,$EG35:$IV35),0)),\"\")","v":""},{"$f":"IFERROR(INDEX($EG35:$IV35,MATCH(0,COUNTIF($DR35:DW35,$EG35:$IV35),0)),\"\")","v":""},{"$f":"IFERROR(INDEX($EG35:$IV35,MATCH(0,COUNTIF($DR35:DX35,$EG35:$IV35),0)),\"\")","v":""},{"$f":"IFERROR(INDEX($EG35:$IV35,MATCH(0,COUNTIF($DR35:DY35,$EG35:$IV35),0)),\"\")","v":""},{"$f":"IFERROR(INDEX($EG35:$IV35,MATCH(0,COUNTIF($DR35:DZ35,$EG35:$IV35),0)),\"\")","v":""},{"$f":"IFERROR(INDEX($EG35:$IV35,MATCH(0,COUNTIF($DR35:EA35,$EG35:$IV35),0)),\"\")","v":""},{"$f":"IFERROR(INDEX($EG35:$IV35,MATCH(0,COUNTIF($DR35:EB35,$EG35:$IV35),0)),\"\")","v":""},{"$f":"IFERROR(INDEX($EG35:$IV35,MATCH(0,COUNTIF($DR35:EC35,$EG35:$IV35),0)),\"\")","v":""},null,null,{"$f":"IFERROR(MID($G35,FIND(CHAR(160),SUBSTITUTE($G35,\"{\",CHAR(160),EG$1)),FIND(CHAR(160),SUBSTITUTE($G35,\"}\",CHAR(160),EG$1))-FIND(CHAR(160),SUBSTITUTE($G35,\"{\",CHAR(160),EG$1))+1),\"\")","v":""},{"$f":"IFERROR(MID($G35,FIND(CHAR(160),SUBSTITUTE($G35,\"{\",CHAR(160),EH$1)),FIND(CHAR(160),SUBSTITUTE($G35,\"}\",CHAR(160),EH$1))-FIND(CHAR(160),SUBSTITUTE($G35,\"{\",CHAR(160),EH$1))+1),\"\")","v":""},{"$f":"IFERROR(MID($G35,FIND(CHAR(160),SUBSTITUTE($G35,\"{\",CHAR(160),EI$1)),FIND(CHAR(160),SUBSTITUTE($G35,\"}\",CHAR(160),EI$1))-FIND(CHAR(160),SUBSTITUTE($G35,\"{\",CHAR(160),EI$1))+1),\"\")","v":""},{"$f":"IFERROR(MID($G35,FIND(CHAR(160),SUBSTITUTE($G35,\"{\",CHAR(160),EJ$1)),FIND(CHAR(160),SUBSTITUTE($G35,\"}\",CHAR(160),EJ$1))-FIND(CHAR(160),SUBSTITUTE($G35,\"{\",CHAR(160),EJ$1))+1),\"\")","v":""},{"$f":"IFERROR(MID($G35,FIND(CHAR(160),SUBSTITUTE($G35,\"{\",CHAR(160),EK$1)),FIND(CHAR(160),SUBSTITUTE($G35,\"}\",CHAR(160),EK$1))-FIND(CHAR(160),SUBSTITUTE($G35,\"{\",CHAR(160),EK$1))+1),\"\")","v":""},{"$f":"IFERROR(MID($G35,FIND(CHAR(160),SUBSTITUTE($G35,\"{\",CHAR(160),EL$1)),FIND(CHAR(160),SUBSTITUTE($G35,\"}\",CHAR(160),EL$1))-FIND(CHAR(160),SUBSTITUTE($G35,\"{\",CHAR(160),EL$1))+1),\"\")","v":""},{"$f":"IFERROR(MID($G35,FIND(CHAR(160),SUBSTITUTE($G35,\"{\",CHAR(160),EM$1)),FIND(CHAR(160),SUBSTITUTE($G35,\"}\",CHAR(160),EM$1))-FIND(CHAR(160),SUBSTITUTE($G35,\"{\",CHAR(160),EM$1))+1),\"\")","v":""},{"$f":"IFERROR(MID($G35,FIND(CHAR(160),SUBSTITUTE($G35,\"{\",CHAR(160),EN$1)),FIND(CHAR(160),SUBSTITUTE($G35,\"}\",CHAR(160),EN$1))-FIND(CHAR(160),SUBSTITUTE($G35,\"{\",CHAR(160),EN$1))+1),\"\")","v":""},{"$f":"IFERROR(MID($G35,FIND(CHAR(160),SUBSTITUTE($G35,\"{\",CHAR(160),EO$1)),FIND(CHAR(160),SUBSTITUTE($G35,\"}\",CHAR(160),EO$1))-FIND(CHAR(160),SUBSTITUTE($G35,\"{\",CHAR(160),EO$1))+1),\"\")","v":""},{"$f":"IFERROR(MID($G35,FIND(CHAR(160),SUBSTITUTE($G35,\"{\",CHAR(160),EP$1)),FIND(CHAR(160),SUBSTITUTE($G35,\"}\",CHAR(160),EP$1))-FIND(CHAR(160),SUBSTITUTE($G35,\"{\",CHAR(160),EP$1))+1),\"\")","v":""},{"$f":"IFERROR(MID($J35,FIND(CHAR(160),SUBSTITUTE($J35,\"{\",CHAR(160),EQ$1)),FIND(CHAR(160),SUBSTITUTE($J35,\"}\",CHAR(160),EQ$1))-FIND(CHAR(160),SUBSTITUTE($J35,\"{\",CHAR(160),EQ$1))+1),\"\")","v":""},{"$f":"IFERROR(MID($J35,FIND(CHAR(160),SUBSTITUTE($J35,\"{\",CHAR(160),ER$1)),FIND(CHAR(160),SUBSTITUTE($J35,\"}\",CHAR(160),ER$1))-FIND(CHAR(160),SUBSTITUTE($J35,\"{\",CHAR(160),ER$1))+1),\"\")","v":""},{"$f":"IFERROR(MID($J35,FIND(CHAR(160),SUBSTITUTE($J35,\"{\",CHAR(160),ES$1)),FIND(CHAR(160),SUBSTITUTE($J35,\"}\",CHAR(160),ES$1))-FIND(CHAR(160),SUBSTITUTE($J35,\"{\",CHAR(160),ES$1))+1),\"\")","v":""},{"$f":"IFERROR(MID($J35,FIND(CHAR(160),SUBSTITUTE($J35,\"{\",CHAR(160),ET$1)),FIND(CHAR(160),SUBSTITUTE($J35,\"}\",CHAR(160),ET$1))-FIND(CHAR(160),SUBSTITUTE($J35,\"{\",CHAR(160),ET$1))+1),\"\")","v":""},{"$f":"IFERROR(MID($J35,FIND(CHAR(160),SUBSTITUTE($J35,\"{\",CHAR(160),EU$1)),FIND(CHAR(160),SUBSTITUTE($J35,\"}\",CHAR(160),EU$1))-FIND(CHAR(160),SUBSTITUTE($J35,\"{\",CHAR(160),EU$1))+1),\"\")","v":""},{"$f":"IFERROR(MID($J35,FIND(CHAR(160),SUBSTITUTE($J35,\"{\",CHAR(160),EV$1)),FIND(CHAR(160),SUBSTITUTE($J35,\"}\",CHAR(160),EV$1))-FIND(CHAR(160),SUBSTITUTE($J35,\"{\",CHAR(160),EV$1))+1),\"\")","v":""},{"$f":"IFERROR(MID($J35,FIND(CHAR(160),SUBSTITUTE($J35,\"{\",CHAR(160),EW$1)),FIND(CHAR(160),SUBSTITUTE($J35,\"}\",CHAR(160),EW$1))-FIND(CHAR(160),SUBSTITUTE($J35,\"{\",CHAR(160),EW$1))+1),\"\")","v":""},{"$f":"IFERROR(MID($J35,FIND(CHAR(160),SUBSTITUTE($J35,\"{\",CHAR(160),EX$1)),FIND(CHAR(160),SUBSTITUTE($J35,\"}\",CHAR(160),EX$1))-FIND(CHAR(160),SUBSTITUTE($J35,\"{\",CHAR(160),EX$1))+1),\"\")","v":""},{"$f":"IFERROR(MID($J35,FIND(CHAR(160),SUBSTITUTE($J35,\"{\",CHAR(160),EY$1)),FIND(CHAR(160),SUBSTITUTE($J35,\"}\",CHAR(160),EY$1))-FIND(CHAR(160),SUBSTITUTE($J35,\"{\",CHAR(160),EY$1))+1),\"\")","v":""},{"$f":"IFERROR(MID($J35,FIND(CHAR(160),SUBSTITUTE($J35,\"{\",CHAR(160),EZ$1)),FIND(CHAR(160),SUBSTITUTE($J35,\"}\",CHAR(160),EZ$1))-FIND(CHAR(160),SUBSTITUTE($J35,\"{\",CHAR(160),EZ$1))+1),\"\")","v":""},{"$f":"IFERROR(MID($J35,FIND(CHAR(160),SUBSTITUTE($J35,\"{\",CHAR(160),FA$1)),FIND(CHAR(160),SUBSTITUTE($J35,\"}\",CHAR(160),FA$1))-FIND(CHAR(160),SUBSTITUTE($J35,\"{\",CHAR(160),FA$1))+1),\"\")","v":""},{"$f":"IFERROR(MID($J35,FIND(CHAR(160),SUBSTITUTE($J35,\"{\",CHAR(160),FB$1)),FIND(CHAR(160),SUBSTITUTE($J35,\"}\",CHAR(160),FB$1))-FIND(CHAR(160),SUBSTITUTE($J35,\"{\",CHAR(160),FB$1))+1),\"\")","v":""},{"$f":"IFERROR(MID($O35,FIND(CHAR(160),SUBSTITUTE($O35,\"{\",CHAR(160),FC$1)),FIND(CHAR(160),SUBSTITUTE($O35,\"}\",CHAR(160),FC$1))-FIND(CHAR(160),SUBSTITUTE($O35,\"{\",CHAR(160),FC$1))+1),\"\")","v":""},{"$f":"IFERROR(MID($O35,FIND(CHAR(160),SUBSTITUTE($O35,\"{\",CHAR(160),FD$1)),FIND(CHAR(160),SUBSTITUTE($O35,\"}\",CHAR(160),FD$1))-FIND(CHAR(160),SUBSTITUTE($O35,\"{\",CHAR(160),FD$1))+1),\"\")","v":""},{"$f":"IFERROR(MID($O35,FIND(CHAR(160),SUBSTITUTE($O35,\"{\",CHAR(160),FE$1)),FIND(CHAR(160),SUBSTITUTE($O35,\"}\",CHAR(160),FE$1))-FIND(CHAR(160),SUBSTITUTE($O35,\"{\",CHAR(160),FE$1))+1),\"\")","v":""},{"$f":"IFERROR(MID($O35,FIND(CHAR(160),SUBSTITUTE($O35,\"{\",CHAR(160),FF$1)),FIND(CHAR(160),SUBSTITUTE($O35,\"}\",CHAR(160),FF$1))-FIND(CHAR(160),SUBSTITUTE($O35,\"{\",CHAR(160),FF$1))+1),\"\")","v":""},{"$f":"IFERROR(MID($O35,FIND(CHAR(160),SUBSTITUTE($O35,\"{\",CHAR(160),FG$1)),FIND(CHAR(160),SUBSTITUTE($O35,\"}\",CHAR(160),FG$1))-FIND(CHAR(160),SUBSTITUTE($O35,\"{\",CHAR(160),FG$1))+1),\"\")","v":""},{"$f":"IFERROR(MID($O35,FIND(CHAR(160),SUBSTITUTE($O35,\"{\",CHAR(160),FH$1)),FIND(CHAR(160),SUBSTITUTE($O35,\"}\",CHAR(160),FH$1))-FIND(CHAR(160),SUBSTITUTE($O35,\"{\",CHAR(160),FH$1))+1),\"\")","v":""},{"$f":"IFERROR(MID($O35,FIND(CHAR(160),SUBSTITUTE($O35,\"{\",CHAR(160),FI$1)),FIND(CHAR(160),SUBSTITUTE($O35,\"}\",CHAR(160),FI$1))-FIND(CHAR(160),SUBSTITUTE($O35,\"{\",CHAR(160),FI$1))+1),\"\")","v":""},{"$f":"IFERROR(MID($O35,FIND(CHAR(160),SUBSTITUTE($O35,\"{\",CHAR(160),FJ$1)),FIND(CHAR(160),SUBSTITUTE($O35,\"}\",CHAR(160),FJ$1))-FIND(CHAR(160),SUBSTITUTE($O35,\"{\",CHAR(160),FJ$1))+1),\"\")","v":""},{"$f":"IFERROR(MID($O35,FIND(CHAR(160),SUBSTITUTE($O35,\"{\",CHAR(160),FK$1)),FIND(CHAR(160),SUBSTITUTE($O35,\"}\",CHAR(160),FK$1))-FIND(CHAR(160),SUBSTITUTE($O35,\"{\",CHAR(160),FK$1))+1),\"\")","v":"{Measure:Quantity}"},{"$f":"IFERROR(MID($O35,FIND(CHAR(160),SUBSTITUTE($O35,\"{\",CHAR(160),FL$1)),FIND(CHAR(160),SUBSTITUTE($O35,\"}\",CHAR(160),FL$1))-FIND(CHAR(160),SUBSTITUTE($O35,\"{\",CHAR(160),FL$1))+1),\"\")","v":""},{"$f":"IFERROR(MID($R35,FIND(CHAR(160),SUBSTITUTE($R35,\"{\",CHAR(160),FM$1)),FIND(CHAR(160),SUBSTITUTE($R35,\"}\",CHAR(160),FM$1))-FIND(CHAR(160),SUBSTITUTE($R35,\"{\",CHAR(160),FM$1))+1),\"\")","v":""},{"$f":"IFERROR(MID($R35,FIND(CHAR(160),SUBSTITUTE($R35,\"{\",CHAR(160),FN$1)),FIND(CHAR(160),SUBSTITUTE($R35,\"}\",CHAR(160),FN$1))-FIND(CHAR(160),SUBSTITUTE($R35,\"{\",CHAR(160),FN$1))+1),\"\")","v":""},{"$f":"IFERROR(MID($R35,FIND(CHAR(160),SUBSTITUTE($R35,\"{\",CHAR(160),FO$1)),FIND(CHAR(160),SUBSTITUTE($R35,\"}\",CHAR(160),FO$1))-FIND(CHAR(160),SUBSTITUTE($R35,\"{\",CHAR(160),FO$1))+1),\"\")","v":""},{"$f":"IFERROR(MID($R35,FIND(CHAR(160),SUBSTITUTE($R35,\"{\",CHAR(160),FP$1)),FIND(CHAR(160),SUBSTITUTE($R35,\"}\",CHAR(160),FP$1))-FIND(CHAR(160),SUBSTITUTE($R35,\"{\",CHAR(160),FP$1))+1),\"\")","v":""},{"$f":"IFERROR(MID($R35,FIND(CHAR(160),SUBSTITUTE($R35,\"{\",CHAR(160),FQ$1)),FIND(CHAR(160),SUBSTITUTE($R35,\"}\",CHAR(160),FQ$1))-FIND(CHAR(160),SUBSTITUTE($R35,\"{\",CHAR(160),FQ$1))+1),\"\")","v":""},{"$f":"IFERROR(MID($R35,FIND(CHAR(160),SUBSTITUTE($R35,\"{\",CHAR(160),FR$1)),FIND(CHAR(160),SUBSTITUTE($R35,\"}\",CHAR(160),FR$1))-FIND(CHAR(160),SUBSTITUTE($R35,\"{\",CHAR(160),FR$1))+1),\"\")","v":""},{"$f":"IFERROR(MID($R35,FIND(CHAR(160),SUBSTITUTE($R35,\"{\",CHAR(160),FS$1)),FIND(CHAR(160),SUBSTITUTE($R35,\"}\",CHAR(160),FS$1))-FIND(CHAR(160),SUBSTITUTE($R35,\"{\",CHAR(160),FS$1))+1),\"\")","v":""},{"$f":"IFERROR(MID($R35,FIND(CHAR(160),SUBSTITUTE($R35,\"{\",CHAR(160),FT$1)),FIND(CHAR(160),SUBSTITUTE($R35,\"}\",CHAR(160),FT$1))-FIND(CHAR(160),SUBSTITUTE($R35,\"{\",CHAR(160),FT$1))+1),\"\")","v":""},{"$f":"IFERROR(MID($R35,FIND(CHAR(160),SUBSTITUTE($R35,\"{\",CHAR(160),FU$1)),FIND(CHAR(160),SUBSTITUTE($R35,\"}\",CHAR(160),FU$1))-FIND(CHAR(160),SUBSTITUTE($R35,\"{\",CHAR(160),FU$1))+1),\"\")","v":"{Measure:Quantity}"},{"$f":"IFERROR(MID($R35,FIND(CHAR(160),SUBSTITUTE($R35,\"{\",CHAR(160),FV$1)),FIND(CHAR(160),SUBSTITUTE($R35,\"}\",CHAR(160),FV$1))-FIND(CHAR(160),SUBSTITUTE($R35,\"{\",CHAR(160),FV$1))+1),\"\")","v":""},{"$f":"IFERROR(MID($U35,FIND(CHAR(160),SUBSTITUTE($U35,\"{\",CHAR(160),FW$1)),FIND(CHAR(160),SUBSTITUTE($U35,\"}\",CHAR(160),FW$1))-FIND(CHAR(160),SUBSTITUTE($U35,\"{\",CHAR(160),FW$1))+1),\"\")","v":""},{"$f":"IFERROR(MID($U35,FIND(CHAR(160),SUBSTITUTE($U35,\"{\",CHAR(160),FX$1)),FIND(CHAR(160),SUBSTITUTE($U35,\"}\",CHAR(160),FX$1))-FIND(CHAR(160),SUBSTITUTE($U35,\"{\",CHAR(160),FX$1))+1),\"\")","v":""},{"$f":"IFERROR(MID($U35,FIND(CHAR(160),SUBSTITUTE($U35,\"{\",CHAR(160),FY$1)),FIND(CHAR(160),SUBSTITUTE($U35,\"}\",CHAR(160),FY$1))-FIND(CHAR(160),SUBSTITUTE($U35,\"{\",CHAR(160),FY$1))+1),\"\")","v":""},{"$f":"IFERROR(MID($U35,FIND(CHAR(160),SUBSTITUTE($U35,\"{\",CHAR(160),FZ$1)),FIND(CHAR(160),SUBSTITUTE($U35,\"}\",CHAR(160),FZ$1))-FIND(CHAR(160),SUBSTITUTE($U35,\"{\",CHAR(160),FZ$1))+1),\"\")","v":""},{"$f":"IFERROR(MID($U35,FIND(CHAR(160),SUBSTITUTE($U35,\"{\",CHAR(160),GA$1)),FIND(CHAR(160),SUBSTITUTE($U35,\"}\",CHAR(160),GA$1))-FIND(CHAR(160),SUBSTITUTE($U35,\"{\",CHAR(160),GA$1))+1),\"\")","v":""},{"$f":"IFERROR(MID($U35,FIND(CHAR(160),SUBSTITUTE($U35,\"{\",CHAR(160),GB$1)),FIND(CHAR(160),SUBSTITUTE($U35,\"}\",CHAR(160),GB$1))-FIND(CHAR(160),SUBSTITUTE($U35,\"{\",CHAR(160),GB$1))+1),\"\")","v":""},{"$f":"IFERROR(MID($U35,FIND(CHAR(160),SUBSTITUTE($U35,\"{\",CHAR(160),GC$1)),FIND(CHAR(160),SUBSTITUTE($U35,\"}\",CHAR(160),GC$1))-FIND(CHAR(160),SUBSTITUTE($U35,\"{\",CHAR(160),GC$1))+1),\"\")","v":""},{"$f":"IFERROR(MID($U35,FIND(CHAR(160),SUBSTITUTE($U35,\"{\",CHAR(160),GD$1)),FIND(CHAR(160),SUBSTITUTE($U35,\"}\",CHAR(160),GD$1))-FIND(CHAR(160),SUBSTITUTE($U35,\"{\",CHAR(160),GD$1))+1),\"\")","v":""},{"$f":"IFERROR(MID($U35,FIND(CHAR(160),SUBSTITUTE($U35,\"{\",CHAR(160),GE$1)),FIND(CHAR(160),SUBSTITUTE($U35,\"}\",CHAR(160),GE$1))-FIND(CHAR(160),SUBSTITUTE($U35,\"{\",CHAR(160),GE$1))+1),\"\")","v":"{Measure:Quantity}"},{"$f":"IFERROR(MID($U35,FIND(CHAR(160),SUBSTITUTE($U35,\"{\",CHAR(160),GF$1)),FIND(CHAR(160),SUBSTITUTE($U35,\"}\",CHAR(160),GF$1))-FIND(CHAR(160),SUBSTITUTE($U35,\"{\",CHAR(160),GF$1))+1),\"\")","v":"{Factor:WinterCF}"},{"$f":"IFERROR(MID($V35,FIND(CHAR(160),SUBSTITUTE($V35,\"{\",CHAR(160),GG$1)),FIND(CHAR(160),SUBSTITUTE($V35,\"}\",CHAR(160),GG$1))-FIND(CHAR(160),SUBSTITUTE($V35,\"{\",CHAR(160),GG$1))+1),\"\")","v":""},{"$f":"IFERROR(MID($V35,FIND(CHAR(160),SUBSTITUTE($V35,\"{\",CHAR(160),GH$1)),FIND(CHAR(160),SUBSTITUTE($V35,\"}\",CHAR(160),GH$1))-FIND(CHAR(160),SUBSTITUTE($V35,\"{\",CHAR(160),GH$1))+1),\"\")","v":""},{"$f":"IFERROR(MID($V35,FIND(CHAR(160),SUBSTITUTE($V35,\"{\",CHAR(160),GI$1)),FIND(CHAR(160),SUBSTITUTE($V35,\"}\",CHAR(160),GI$1))-FIND(CHAR(160),SUBSTITUTE($V35,\"{\",CHAR(160),GI$1))+1),\"\")","v":""},{"$f":"IFERROR(MID($V35,FIND(CHAR(160),SUBSTITUTE($V35,\"{\",CHAR(160),GJ$1)),FIND(CHAR(160),SUBSTITUTE($V35,\"}\",CHAR(160),GJ$1))-FIND(CHAR(160),SUBSTITUTE($V35,\"{\",CHAR(160),GJ$1))+1),\"\")","v":""},{"$f":"IFERROR(MID($V35,FIND(CHAR(160),SUBSTITUTE($V35,\"{\",CHAR(160),GK$1)),FIND(CHAR(160),SUBSTITUTE($V35,\"}\",CHAR(160),GK$1))-FIND(CHAR(160),SUBSTITUTE($V35,\"{\",CHAR(160),GK$1))+1),\"\")","v":""},{"$f":"IFERROR(MID($V35,FIND(CHAR(160),SUBSTITUTE($V35,\"{\",CHAR(160),GL$1)),FIND(CHAR(160),SUBSTITUTE($V35,\"}\",CHAR(160),GL$1))-FIND(CHAR(160),SUBSTITUTE($V35,\"{\",CHAR(160),GL$1))+1),\"\")","v":""},{"$f":"IFERROR(MID($V35,FIND(CHAR(160),SUBSTITUTE($V35,\"{\",CHAR(160),GM$1)),FIND(CHAR(160),SUBSTITUTE($V35,\"}\",CHAR(160),GM$1))-FIND(CHAR(160),SUBSTITUTE($V35,\"{\",CHAR(160),GM$1))+1),\"\")","v":""},{"$f":"IFERROR(MID($V35,FIND(CHAR(160),SUBSTITUTE($V35,\"{\",CHAR(160),GN$1)),FIND(CHAR(160),SUBSTITUTE($V35,\"}\",CHAR(160),GN$1))-FIND(CHAR(160),SUBSTITUTE($V35,\"{\",CHAR(160),GN$1))+1),\"\")","v":""},{"$f":"IFERROR(MID($V35,FIND(CHAR(160),SUBSTITUTE($V35,\"{\",CHAR(160),GO$1)),FIND(CHAR(160),SUBSTITUTE($V35,\"}\",CHAR(160),GO$1))-FIND(CHAR(160),SUBSTITUTE($V35,\"{\",CHAR(160),GO$1))+1),\"\")","v":"{Measure:Quantity}"},{"$f":"IFERROR(MID($V35,FIND(CHAR(160),SUBSTITUTE($V35,\"{\",CHAR(160),GP$1)),FIND(CHAR(160),SUBSTITUTE($V35,\"}\",CHAR(160),GP$1))-FIND(CHAR(160),SUBSTITUTE($V35,\"{\",CHAR(160),GP$1))+1),\"\")","v":"{Factor:SummerCF}"},{"$f":"IFERROR(MID($W35,FIND(CHAR(160),SUBSTITUTE($W35,\"{\",CHAR(160),GQ$1)),FIND(CHAR(160),SUBSTITUTE($W35,\"}\",CHAR(160),GQ$1))-FIND(CHAR(160),SUBSTITUTE($W35,\"{\",CHAR(160),GQ$1))+1),\"\")","v":""},{"$f":"IFERROR(MID($W35,FIND(CHAR(160),SUBSTITUTE($W35,\"{\",CHAR(160),GR$1)),FIND(CHAR(160),SUBSTITUTE($W35,\"}\",CHAR(160),GR$1))-FIND(CHAR(160),SUBSTITUTE($W35,\"{\",CHAR(160),GR$1))+1),\"\")","v":""},{"$f":"IFERROR(MID($W35,FIND(CHAR(160),SUBSTITUTE($W35,\"{\",CHAR(160),GS$1)),FIND(CHAR(160),SUBSTITUTE($W35,\"}\",CHAR(160),GS$1))-FIND(CHAR(160),SUBSTITUTE($W35,\"{\",CHAR(160),GS$1))+1),\"\")","v":""},{"$f":"IFERROR(MID($W35,FIND(CHAR(160),SUBSTITUTE($W35,\"{\",CHAR(160),GT$1)),FIND(CHAR(160),SUBSTITUTE($W35,\"}\",CHAR(160),GT$1))-FIND(CHAR(160),SUBSTITUTE($W35,\"{\",CHAR(160),GT$1))+1),\"\")","v":""},{"$f":"IFERROR(MID($W35,FIND(CHAR(160),SUBSTITUTE($W35,\"{\",CHAR(160),GU$1)),FIND(CHAR(160),SUBSTITUTE($W35,\"}\",CHAR(160),GU$1))-FIND(CHAR(160),SUBSTITUTE($W35,\"{\",CHAR(160),GU$1))+1),\"\")","v":""},{"$f":"IFERROR(MID($W35,FIND(CHAR(160),SUBSTITUTE($W35,\"{\",CHAR(160),GV$1)),FIND(CHAR(160),SUBSTITUTE($W35,\"}\",CHAR(160),GV$1))-FIND(CHAR(160),SUBSTITUTE($W35,\"{\",CHAR(160),GV$1))+1),\"\")","v":""},{"$f":"IFERROR(MID($W35,FIND(CHAR(160),SUBSTITUTE($W35,\"{\",CHAR(160),GW$1)),FIND(CHAR(160),SUBSTITUTE($W35,\"}\",CHAR(160),GW$1))-FIND(CHAR(160),SUBSTITUTE($W35,\"{\",CHAR(160),GW$1))+1),\"\")","v":""},{"$f":"IFERROR(MID($W35,FIND(CHAR(160),SUBSTITUTE($W35,\"{\",CHAR(160),GX$1)),FIND(CHAR(160),SUBSTITUTE($W35,\"}\",CHAR(160),GX$1))-FIND(CHAR(160),SUBSTITUTE($W35,\"{\",CHAR(160),GX$1))+1),\"\")","v":""},{"$f":"IFERROR(MID($W35,FIND(CHAR(160),SUBSTITUTE($W35,\"{\",CHAR(160),GY$1)),FIND(CHAR(160),SUBSTITUTE($W35,\"}\",CHAR(160),GY$1))-FIND(CHAR(160),SUBSTITUTE($W35,\"{\",CHAR(160),GY$1))+1),\"\")","v":""},{"$f":"IFERROR(MID($W35,FIND(CHAR(160),SUBSTITUTE($W35,\"{\",CHAR(160),GZ$1)),FIND(CHAR(160),SUBSTITUTE($W35,\"}\",CHAR(160),GZ$1))-FIND(CHAR(160),SUBSTITUTE($W35,\"{\",CHAR(160),GZ$1))+1),\"\")","v":""},{"$f":"IFERROR(MID($X35,FIND(CHAR(160),SUBSTITUTE($X35,\"{\",CHAR(160),HA$1)),FIND(CHAR(160),SUBSTITUTE($X35,\"}\",CHAR(160),HA$1))-FIND(CHAR(160),SUBSTITUTE($X35,\"{\",CHAR(160),HA$1))+1),\"\")","v":""},{"$f":"IFERROR(MID($X35,FIND(CHAR(160),SUBSTITUTE($X35,\"{\",CHAR(160),HB$1)),FIND(CHAR(160),SUBSTITUTE($X35,\"}\",CHAR(160),HB$1))-FIND(CHAR(160),SUBSTITUTE($X35,\"{\",CHAR(160),HB$1))+1),\"\")","v":""},{"$f":"IFERROR(MID($X35,FIND(CHAR(160),SUBSTITUTE($X35,\"{\",CHAR(160),HC$1)),FIND(CHAR(160),SUBSTITUTE($X35,\"}\",CHAR(160),HC$1))-FIND(CHAR(160),SUBSTITUTE($X35,\"{\",CHAR(160),HC$1))+1),\"\")","v":""},{"$f":"IFERROR(MID($X35,FIND(CHAR(160),SUBSTITUTE($X35,\"{\",CHAR(160),HD$1)),FIND(CHAR(160),SUBSTITUTE($X35,\"}\",CHAR(160),HD$1))-FIND(CHAR(160),SUBSTITUTE($X35,\"{\",CHAR(160),HD$1))+1),\"\")","v":""},{"$f":"IFERROR(MID($X35,FIND(CHAR(160),SUBSTITUTE($X35,\"{\",CHAR(160),HE$1)),FIND(CHAR(160),SUBSTITUTE($X35,\"}\",CHAR(160),HE$1))-FIND(CHAR(160),SUBSTITUTE($X35,\"{\",CHAR(160),HE$1))+1),\"\")","v":""},{"$f":"IFERROR(MID($X35,FIND(CHAR(160),SUBSTITUTE($X35,\"{\",CHAR(160),HF$1)),FIND(CHAR(160),SUBSTITUTE($X35,\"}\",CHAR(160),HF$1))-FIND(CHAR(160),SUBSTITUTE($X35,\"{\",CHAR(160),HF$1))+1),\"\")","v":""},{"$f":"IFERROR(MID($X35,FIND(CHAR(160),SUBSTITUTE($X35,\"{\",CHAR(160),HG$1)),FIND(CHAR(160),SUBSTITUTE($X35,\"}\",CHAR(160),HG$1))-FIND(CHAR(160),SUBSTITUTE($X35,\"{\",CHAR(160),HG$1))+1),\"\")","v":""},{"$f":"IFERROR(MID($X35,FIND(CHAR(160),SUBSTITUTE($X35,\"{\",CHAR(160),HH$1)),FIND(CHAR(160),SUBSTITUTE($X35,\"}\",CHAR(160),HH$1))-FIND(CHAR(160),SUBSTITUTE($X35,\"{\",CHAR(160),HH$1))+1),\"\")","v":""},{"$f":"IFERROR(MID($X35,FIND(CHAR(160),SUBSTITUTE($X35,\"{\",CHAR(160),HI$1)),FIND(CHAR(160),SUBSTITUTE($X35,\"}\",CHAR(160),HI$1))-FIND(CHAR(160),SUBSTITUTE($X35,\"{\",CHAR(160),HI$1))+1),\"\")","v":""},{"$f":"IFERROR(MID($X35,FIND(CHAR(160),SUBSTITUTE($X35,\"{\",CHAR(160),HJ$1)),FIND(CHAR(160),SUBSTITUTE($X35,\"}\",CHAR(160),HJ$1))-FIND(CHAR(160),SUBSTITUTE($X35,\"{\",CHAR(160),HJ$1))+1),\"\")","v":""},{"$f":"IFERROR(MID($Y35,FIND(CHAR(160),SUBSTITUTE($Y35,\"{\",CHAR(160),HK$1)),FIND(CHAR(160),SUBSTITUTE($Y35,\"}\",CHAR(160),HK$1))-FIND(CHAR(160),SUBSTITUTE($Y35,\"{\",CHAR(160),HK$1))+1),\"\")","v":""},{"$f":"IFERROR(MID($Y35,FIND(CHAR(160),SUBSTITUTE($Y35,\"{\",CHAR(160),HL$1)),FIND(CHAR(160),SUBSTITUTE($Y35,\"}\",CHAR(160),HL$1))-FIND(CHAR(160),SUBSTITUTE($Y35,\"{\",CHAR(160),HL$1))+1),\"\")","v":""},{"$f":"IFERROR(MID($Y35,FIND(CHAR(160),SUBSTITUTE($Y35,\"{\",CHAR(160),HM$1)),FIND(CHAR(160),SUBSTITUTE($Y35,\"}\",CHAR(160),HM$1))-FIND(CHAR(160),SUBSTITUTE($Y35,\"{\",CHAR(160),HM$1))+1),\"\")","v":""},{"$f":"IFERROR(MID($Y35,FIND(CHAR(160),SUBSTITUTE($Y35,\"{\",CHAR(160),HN$1)),FIND(CHAR(160),SUBSTITUTE($Y35,\"}\",CHAR(160),HN$1))-FIND(CHAR(160),SUBSTITUTE($Y35,\"{\",CHAR(160),HN$1))+1),\"\")","v":""},{"$f":"IFERROR(MID($Y35,FIND(CHAR(160),SUBSTITUTE($Y35,\"{\",CHAR(160),HO$1)),FIND(CHAR(160),SUBSTITUTE($Y35,\"}\",CHAR(160),HO$1))-FIND(CHAR(160),SUBSTITUTE($Y35,\"{\",CHAR(160),HO$1))+1),\"\")","v":""},{"$f":"IFERROR(MID($Y35,FIND(CHAR(160),SUBSTITUTE($Y35,\"{\",CHAR(160),HP$1)),FIND(CHAR(160),SUBSTITUTE($Y35,\"}\",CHAR(160),HP$1))-FIND(CHAR(160),SUBSTITUTE($Y35,\"{\",CHAR(160),HP$1))+1),\"\")","v":""},{"$f":"IFERROR(MID($Y35,FIND(CHAR(160),SUBSTITUTE($Y35,\"{\",CHAR(160),HQ$1)),FIND(CHAR(160),SUBSTITUTE($Y35,\"}\",CHAR(160),HQ$1))-FIND(CHAR(160),SUBSTITUTE($Y35,\"{\",CHAR(160),HQ$1))+1),\"\")","v":""},{"$f":"IFERROR(MID($Y35,FIND(CHAR(160),SUBSTITUTE($Y35,\"{\",CHAR(160),HR$1)),FIND(CHAR(160),SUBSTITUTE($Y35,\"}\",CHAR(160),HR$1))-FIND(CHAR(160),SUBSTITUTE($Y35,\"{\",CHAR(160),HR$1))+1),\"\")","v":""},{"$f":"IFERROR(MID($Y35,FIND(CHAR(160),SUBSTITUTE($Y35,\"{\",CHAR(160),HS$1)),FIND(CHAR(160),SUBSTITUTE($Y35,\"}\",CHAR(160),HS$1))-FIND(CHAR(160),SUBSTITUTE($Y35,\"{\",CHAR(160),HS$1))+1),\"\")","v":""},{"$f":"IFERROR(MID($Y35,FIND(CHAR(160),SUBSTITUTE($Y35,\"{\",CHAR(160),HT$1)),FIND(CHAR(160),SUBSTITUTE($Y35,\"}\",CHAR(160),HT$1))-FIND(CHAR(160),SUBSTITUTE($Y35,\"{\",CHAR(160),HT$1))+1),\"\")","v":""},{"$f":"IFERROR(MID($Z35,FIND(CHAR(160),SUBSTITUTE($Z35,\"{\",CHAR(160),HU$1)),FIND(CHAR(160),SUBSTITUTE($Z35,\"}\",CHAR(160),HU$1))-FIND(CHAR(160),SUBSTITUTE($Z35,\"{\",CHAR(160),HU$1))+1),\"\")","v":""},{"$f":"IFERROR(MID($Z35,FIND(CHAR(160),SUBSTITUTE($Z35,\"{\",CHAR(160),HV$1)),FIND(CHAR(160),SUBSTITUTE($Z35,\"}\",CHAR(160),HV$1))-FIND(CHAR(160),SUBSTITUTE($Z35,\"{\",CHAR(160),HV$1))+1),\"\")","v":""},{"$f":"IFERROR(MID($Z35,FIND(CHAR(160),SUBSTITUTE($Z35,\"{\",CHAR(160),HW$1)),FIND(CHAR(160),SUBSTITUTE($Z35,\"}\",CHAR(160),HW$1))-FIND(CHAR(160),SUBSTITUTE($Z35,\"{\",CHAR(160),HW$1))+1),\"\")","v":""},{"$f":"IFERROR(MID($Z35,FIND(CHAR(160),SUBSTITUTE($Z35,\"{\",CHAR(160),HX$1)),FIND(CHAR(160),SUBSTITUTE($Z35,\"}\",CHAR(160),HX$1))-FIND(CHAR(160),SUBSTITUTE($Z35,\"{\",CHAR(160),HX$1))+1),\"\")","v":""},{"$f":"IFERROR(MID($Z35,FIND(CHAR(160),SUBSTITUTE($Z35,\"{\",CHAR(160),HY$1)),FIND(CHAR(160),SUBSTITUTE($Z35,\"}\",CHAR(160),HY$1))-FIND(CHAR(160),SUBSTITUTE($Z35,\"{\",CHAR(160),HY$1))+1),\"\")","v":""},{"$f":"IFERROR(MID($Z35,FIND(CHAR(160),SUBSTITUTE($Z35,\"{\",CHAR(160),HZ$1)),FIND(CHAR(160),SUBSTITUTE($Z35,\"}\",CHAR(160),HZ$1))-FIND(CHAR(160),SUBSTITUTE($Z35,\"{\",CHAR(160),HZ$1))+1),\"\")","v":""},{"$f":"IFERROR(MID($Z35,FIND(CHAR(160),SUBSTITUTE($Z35,\"{\",CHAR(160),IA$1)),FIND(CHAR(160),SUBSTITUTE($Z35,\"}\",CHAR(160),IA$1))-FIND(CHAR(160),SUBSTITUTE($Z35,\"{\",CHAR(160),IA$1))+1),\"\")","v":""},{"$f":"IFERROR(MID($Z35,FIND(CHAR(160),SUBSTITUTE($Z35,\"{\",CHAR(160),IB$1)),FIND(CHAR(160),SUBSTITUTE($Z35,\"}\",CHAR(160),IB$1))-FIND(CHAR(160),SUBSTITUTE($Z35,\"{\",CHAR(160),IB$1))+1),\"\")","v":""},{"$f":"IFERROR(MID($Z35,FIND(CHAR(160),SUBSTITUTE($Z35,\"{\",CHAR(160),IC$1)),FIND(CHAR(160),SUBSTITUTE($Z35,\"}\",CHAR(160),IC$1))-FIND(CHAR(160),SUBSTITUTE($Z35,\"{\",CHAR(160),IC$1))+1),\"\")","v":""},{"$f":"IFERROR(MID($Z35,FIND(CHAR(160),SUBSTITUTE($Z35,\"{\",CHAR(160),ID$1)),FIND(CHAR(160),SUBSTITUTE($Z35,\"}\",CHAR(160),ID$1))-FIND(CHAR(160),SUBSTITUTE($Z35,\"{\",CHAR(160),ID$1))+1),\"\")","v":""},{"$f":"IFERROR(MID($AA35,FIND(CHAR(160),SUBSTITUTE($AA35,\"{\",CHAR(160),IE$1)),FIND(CHAR(160),SUBSTITUTE($AA35,\"}\",CHAR(160),IE$1))-FIND(CHAR(160),SUBSTITUTE($AA35,\"{\",CHAR(160),IE$1))+1),\"\")","v":""},{"$f":"IFERROR(MID($AA35,FIND(CHAR(160),SUBSTITUTE($AA35,\"{\",CHAR(160),IF$1)),FIND(CHAR(160),SUBSTITUTE($AA35,\"}\",CHAR(160),IF$1))-FIND(CHAR(160),SUBSTITUTE($AA35,\"{\",CHAR(160),IF$1))+1),\"\")","v":""},{"$f":"IFERROR(MID($AA35,FIND(CHAR(160),SUBSTITUTE($AA35,\"{\",CHAR(160),IG$1)),FIND(CHAR(160),SUBSTITUTE($AA35,\"}\",CHAR(160),IG$1))-FIND(CHAR(160),SUBSTITUTE($AA35,\"{\",CHAR(160),IG$1))+1),\"\")","v":""},{"$f":"IFERROR(MID($AA35,FIND(CHAR(160),SUBSTITUTE($AA35,\"{\",CHAR(160),IH$1)),FIND(CHAR(160),SUBSTITUTE($AA35,\"}\",CHAR(160),IH$1))-FIND(CHAR(160),SUBSTITUTE($AA35,\"{\",CHAR(160),IH$1))+1),\"\")","v":""},{"$f":"IFERROR(MID($AA35,FIND(CHAR(160),SUBSTITUTE($AA35,\"{\",CHAR(160),II$1)),FIND(CHAR(160),SUBSTITUTE($AA35,\"}\",CHAR(160),II$1))-FIND(CHAR(160),SUBSTITUTE($AA35,\"{\",CHAR(160),II$1))+1),\"\")","v":""},{"$f":"IFERROR(MID($AA35,FIND(CHAR(160),SUBSTITUTE($AA35,\"{\",CHAR(160),IJ$1)),FIND(CHAR(160),SUBSTITUTE($AA35,\"}\",CHAR(160),IJ$1))-FIND(CHAR(160),SUBSTITUTE($AA35,\"{\",CHAR(160),IJ$1))+1),\"\")","v":""},{"$f":"IFERROR(MID($AA35,FIND(CHAR(160),SUBSTITUTE($AA35,\"{\",CHAR(160),IK$1)),FIND(CHAR(160),SUBSTITUTE($AA35,\"}\",CHAR(160),IK$1))-FIND(CHAR(160),SUBSTITUTE($AA35,\"{\",CHAR(160),IK$1))+1),\"\")","v":""},{"$f":"IFERROR(MID($AA35,FIND(CHAR(160),SUBSTITUTE($AA35,\"{\",CHAR(160),IL$1)),FIND(CHAR(160),SUBSTITUTE($AA35,\"}\",CHAR(160),IL$1))-FIND(CHAR(160),SUBSTITUTE($AA35,\"{\",CHAR(160),IL$1))+1),\"\")","v":""},{"$f":"IFERROR(MID($AA35,FIND(CHAR(160),SUBSTITUTE($AA35,\"{\",CHAR(160),IM$1)),FIND(CHAR(160),SUBSTITUTE($AA35,\"}\",CHAR(160),IM$1))-FIND(CHAR(160),SUBSTITUTE($AA35,\"{\",CHAR(160),IM$1))+1),\"\")","v":""},{"$f":"IFERROR(MID($AA35,FIND(CHAR(160),SUBSTITUTE($AA35,\"{\",CHAR(160),IN$1)),FIND(CHAR(160),SUBSTITUTE($AA35,\"}\",CHAR(160),IN$1))-FIND(CHAR(160),SUBSTITUTE($AA35,\"{\",CHAR(160),IN$1))+1),\"\")","v":""},{"$f":"IFERROR(MID($AB35,FIND(CHAR(160),SUBSTITUTE($AB35,\"{\",CHAR(160),IO$1)),FIND(CHAR(160),SUBSTITUTE($AB35,\"}\",CHAR(160),IO$1))-FIND(CHAR(160),SUBSTITUTE($AB35,\"{\",CHAR(160),IO$1))+1),\"\")","v":""},{"$f":"IFERROR(MID($AB35,FIND(CHAR(160),SUBSTITUTE($AB35,\"{\",CHAR(160),IP$1)),FIND(CHAR(160),SUBSTITUTE($AB35,\"}\",CHAR(160),IP$1))-FIND(CHAR(160),SUBSTITUTE($AB35,\"{\",CHAR(160),IP$1))+1),\"\")","v":""},{"$f":"IFERROR(MID($AB35,FIND(CHAR(160),SUBSTITUTE($AB35,\"{\",CHAR(160),IQ$1)),FIND(CHAR(160),SUBSTITUTE($AB35,\"}\",CHAR(160),IQ$1))-FIND(CHAR(160),SUBSTITUTE($AB35,\"{\",CHAR(160),IQ$1))+1),\"\")","v":""},{"$f":"IFERROR(MID($AB35,FIND(CHAR(160),SUBSTITUTE($AB35,\"{\",CHAR(160),IR$1)),FIND(CHAR(160),SUBSTITUTE($AB35,\"}\",CHAR(160),IR$1))-FIND(CHAR(160),SUBSTITUTE($AB35,\"{\",CHAR(160),IR$1))+1),\"\")","v":""},{"$f":"IFERROR(MID($AB35,FIND(CHAR(160),SUBSTITUTE($AB35,\"{\",CHAR(160),IS$1)),FIND(CHAR(160),SUBSTITUTE($AB35,\"}\",CHAR(160),IS$1))-FIND(CHAR(160),SUBSTITUTE($AB35,\"{\",CHAR(160),IS$1))+1),\"\")","v":""},{"$f":"IFERROR(MID($AB35,FIND(CHAR(160),SUBSTITUTE($AB35,\"{\",CHAR(160),IT$1)),FIND(CHAR(160),SUBSTITUTE($AB35,\"}\",CHAR(160),IT$1))-FIND(CHAR(160),SUBSTITUTE($AB35,\"{\",CHAR(160),IT$1))+1),\"\")","v":""},{"$f":"IFERROR(MID($AB35,FIND(CHAR(160),SUBSTITUTE($AB35,\"{\",CHAR(160),IU$1)),FIND(CHAR(160),SUBSTITUTE($AB35,\"}\",CHAR(160),IU$1))-FIND(CHAR(160),SUBSTITUTE($AB35,\"{\",CHAR(160),IU$1))+1),\"\")","v":""},{"$f":"IFERROR(MID($AB35,FIND(CHAR(160),SUBSTITUTE($AB35,\"{\",CHAR(160),IV$1)),FIND(CHAR(160),SUBSTITUTE($AB35,\"}\",CHAR(160),IV$1))-FIND(CHAR(160),SUBSTITUTE($AB35,\"{\",CHAR(160),IV$1))+1),\"\")","v":""},{"$f":"IFERROR(MID($AB35,FIND(CHAR(160),SUBSTITUTE($AB35,\"{\",CHAR(160),IW$1)),FIND(CHAR(160),SUBSTITUTE($AB35,\"}\",CHAR(160),IW$1))-FIND(CHAR(160),SUBSTITUTE($AB35,\"{\",CHAR(160),IW$1))+1),\"\")","v":""},{"$f":"IFERROR(MID($AB35,FIND(CHAR(160),SUBSTITUTE($AB35,\"{\",CHAR(160),IX$1)),FIND(CHAR(160),SUBSTITUTE($AB35,\"}\",CHAR(160),IX$1))-FIND(CHAR(160),SUBSTITUTE($AB35,\"{\",CHAR(160),IX$1))+1),\"\")","v":""},null,{"$f":"10-COUNTIF(DU35:ED35,\"\")","v":1}]
["C&I Agricultural Solutions","MILK: Vacuum Pump with Adjustable Speed Drive Package - 30 HP","AMVP - VP30","2021-07-01","2022-06-30","Per Measure",5322,0,"Per Measure",6000,0,"2016-07-01","2022-06-30","Calculated","{Measure:Quantity} * (((30*0.746*.75/({Motor Efficiency}/100)) - (.0495*(2*{# of Milking Units})+1.7729))*{Daily Run Time}*365)",1E-4,null,"{Measure:Quantity} * ((30*0.746*.75/({Motor Efficiency}/100)) - (.0495*(2*{# of Milking Units})+1.7729))",null,null,"({Measure:Quantity} * ((30*0.746*.75/({Motor Efficiency}/100)) - (.0495*(2*{# of Milking Units})+1.7729)))*{Factor:WinterCF}","({Measure:Quantity} * ((30*0.746*.75/({Motor Efficiency}/100)) - (.0495*(2*{# of Milking Units})+1.7729)))*{Factor:SummerCF}",null,null,null,null,null,null,"2020-04-01","2022-06-30",15,0.46700000000000003,0.27500000000000002,0.36899999999999999,0.30099999999999999,0.182,0.14799999999999999,1,1.1220000000000001,1,0.52,1.6E-2,null,{"$f":"DU36","v":"{# of Milking Units}"},1,{"$f":"DV36","v":"{Daily Run Time}"},94.1,{"$f":"DW36","v":"{Measure:Quantity}"},10,{"$f":"DX36","v":"{Motor Efficiency}"},2,{"$f":"DY36","v":""},null,{"$f":"DZ36","v":""},null,{"$f":"EA36","v":""},null,{"$f":"EB36","v":""},null,{"$f":"EC36","v":""},null,{"$f":"ED36","v":""},null,{"$f":"AS36 * (((30*0.746*0.75/(AU36/100)) - (0.0495*(2*AW36)+1.7729))*AY36*365)","v":11004.390120085018},{"$f":"0.0001","v":1E-4},0,{"$f":"AS36 * ((30*0.746*0.75/(AU36/100)) - (0.0495*(2*AW36)+1.7729))","v":15.074507013815092},0,0,{"$f":"(AS36 * ((30*0.746*0.75/(AU36/100)) - (0.0495*(2*AW36)+1.7729)))*AF36","v":7.0397947754516483},{"$f":"(AS36 * ((30*0.746*0.75/(AU36/100)) - (0.0495*(2*AW36)+1.7729)))*AG36","v":4.1454894287991504},0,0,0,0,0,0,null,"Res","Default DR",{"$f":"Benefits(BL36,BR36,BS36,BT36,BU36,BV36,BW36,BX36,BY36,BZ36,AE36,AH36,AI36,AJ36,AK36,AL36,AM36,AN36,AO36,AP36,CA36,CB36)","v":16479.700510798608},34314.50356913852,0,0,0,0,0,0,0,{"$f":"SUMPRODUCT(CC36:CK36,--(CC36:CK36>0))","v":50794.204079937132},{"$f":"-SUMPRODUCT(CC36:CK36,--(CC36:CK36<0))","v":0},null,{"$f":"5322","v":5322},null,null,{"$f":"CM36+CO36","v":5322},{"$f":"IF(NetOrGross=\"Net\",(1-AO36+AP36),1)","v":1},{"$f":"(SUMPRODUCT(CC36:CJ36,--(CC36:CJ36>0))+CN36)*CS36/((-SUMPRODUCT(CC36:CJ36,--(CC36:CJ36<0))+MAX(CO36,CV36)+CP36+CQ36)*CS36+IF(FRIncentives=\"Yes\",CV36*(1-CS36),0))","v":8.4657006799895225},1,{"$f":"6000","v":6000},null,"Electric","y",null,{"$f":"IF(F36=\"Manual Entry\",\"Manual\",IF(G36=\"\",0,\"X=\"&SUBSTITUTE(SUBSTITUTE(SUBSTITUTE(SUBSTITUTE(SUBSTITUTE(SUBSTITUTE(SUBSTITUTE(SUBSTITUTE(SUBSTITUTE(SUBSTITUTE(SUBSTITUTE(SUBSTITUTE(G36,$ED36,$ED$2&ROW($ED36)),$EC36,$EC$2&ROW($EC36)),$EB36,$EB$2&ROW($EB36)),$EA36,$EA$2&ROW($EA36)),$DZ36,$DZ$2&ROW($DZ36)),$DY36,$DY$2&ROW($DY36)),$DX36,$DX$2&ROW($DX36)),$DW36,$DW$2&ROW($DW36)),$DV36,$DV$2&ROW($DV36)),$DU36,$DU$2&ROW($DU36)),$DT36,$DT$2&ROW($DT36)),$DS36,$DS$2&ROW($DS36))))","v":"X=5322"},{"$f":"IF(I36=\"Manual Entry\",\"Manual\",IF(J36=\"\",0,\"X=\"&SUBSTITUTE(SUBSTITUTE(SUBSTITUTE(SUBSTITUTE(SUBSTITUTE(SUBSTITUTE(SUBSTITUTE(SUBSTITUTE(SUBSTITUTE(SUBSTITUTE(SUBSTITUTE(SUBSTITUTE(J36,$ED36,$ED$2&ROW($ED36)),$EC36,$EC$2&ROW($EC36)),$EB36,$EB$2&ROW($EB36)),$EA36,$EA$2&ROW($EA36)),$DZ36,$DZ$2&ROW($DZ36)),$DY36,$DY$2&ROW($DY36)),$DX36,$DX$2&ROW($DX36)),$DW36,$DW$2&ROW($DW36)),$DV36,$DV$2&ROW($DV36)),$DU36,$DU$2&ROW($DU36)),$DT36,$DT$2&ROW($DT36)),$DS36,$DS$2&ROW($DS36))))","v":"X=6000"},{"$f":"IF(O36=\"\",0,\"X=\"&SUBSTITUTE(SUBSTITUTE(SUBSTITUTE(SUBSTITUTE(SUBSTITUTE(SUBSTITUTE(SUBSTITUTE(SUBSTITUTE(SUBSTITUTE(SUBSTITUTE(SUBSTITUTE(SUBSTITUTE(O36,$ED36,$ED$2&ROW($ED36)),$EC36,$EC$2&ROW($EC36)),$EB36,$EB$2&ROW($EB36)),$EA36,$EA$2&ROW($EA36)),$DZ36,$DZ$2&ROW($DZ36)),$DY36,$DY$2&ROW($DY36)),$DX36,$DX$2&ROW($DX36)),$DW36,$DW$2&ROW($DW36)),$DV36,$DV$2&ROW($DV36)),$DU36,$DU$2&ROW($DU36)),$DT36,$DT$2&ROW($DT36)),$DS36,$DS$2&ROW($DS36)))","v":"X=AW36 * (((30*0.746*.75/(AY36/100)) - (.0495*(2*AS36)+1.7729))*AU36*365)"},{"$f":"IF(P36=\"\",0,\"X=\"&SUBSTITUTE(SUBSTITUTE(SUBSTITUTE(SUBSTITUTE(SUBSTITUTE(SUBSTITUTE(SUBSTITUTE(SUBSTITUTE(SUBSTITUTE(SUBSTITUTE(SUBSTITUTE(SUBSTITUTE(P36,$ED36,$ED$2&ROW($ED36)),$EC36,$EC$2&ROW($EC36)),$EB36,$EB$2&ROW($EB36)),$EA36,$EA$2&ROW($EA36)),$DZ36,$DZ$2&ROW($DZ36)),$DY36,$DY$2&ROW($DY36)),$DX36,$DX$2&ROW($DX36)),$DW36,$DW$2&ROW($DW36)),$DV36,$DV$2&ROW($DV36)),$DU36,$DU$2&ROW($DU36)),$DT36,$DT$2&ROW($DT36)),$DS36,$DS$2&ROW($DS36)))","v":"X=0.0001"},{"$f":"IF(Q36=\"\",0,\"X=\"&SUBSTITUTE(SUBSTITUTE(SUBSTITUTE(SUBSTITUTE(SUBSTITUTE(SUBSTITUTE(SUBSTITUTE(SUBSTITUTE(SUBSTITUTE(SUBSTITUTE(SUBSTITUTE(SUBSTITUTE(Q36,$ED36,$ED$2&ROW($ED36)),$EC36,$EC$2&ROW($EC36)),$EB36,$EB$2&ROW($EB36)),$EA36,$EA$2&ROW($EA36)),$DZ36,$DZ$2&ROW($DZ36)),$DY36,$DY$2&ROW($DY36)),$DX36,$DX$2&ROW($DX36)),$DW36,$DW$2&ROW($DW36)),$DV36,$DV$2&ROW($DV36)),$DU36,$DU$2&ROW($DU36)),$DT36,$DT$2&ROW($DT36)),$DS36,$DS$2&ROW($DS36)))","v":0},{"$f":"IF(R36=\"\",0,\"X=\"&SUBSTITUTE(SUBSTITUTE(SUBSTITUTE(SUBSTITUTE(SUBSTITUTE(SUBSTITUTE(SUBSTITUTE(SUBSTITUTE(SUBSTITUTE(SUBSTITUTE(SUBSTITUTE(SUBSTITUTE(R36,$ED36,$ED$2&ROW($ED36)),$EC36,$EC$2&ROW($EC36)),$EB36,$EB$2&ROW($EB36)),$EA36,$EA$2&ROW($EA36)),$DZ36,$DZ$2&ROW($DZ36)),$DY36,$DY$2&ROW($DY36)),$DX36,$DX$2&ROW($DX36)),$DW36,$DW$2&ROW($DW36)),$DV36,$DV$2&ROW($DV36)),$DU36,$DU$2&ROW($DU36)),$DT36,$DT$2&ROW($DT36)),$DS36,$DS$2&ROW($DS36)))","v":"X=AW36 * ((30*0.746*.75/(AY36/100)) - (.0495*(2*AS36)+1.7729))"},{"$f":"IF(S36=\"\",0,\"X=\"&SUBSTITUTE(SUBSTITUTE(SUBSTITUTE(SUBSTITUTE(SUBSTITUTE(SUBSTITUTE(SUBSTITUTE(SUBSTITUTE(SUBSTITUTE(SUBSTITUTE(SUBSTITUTE(SUBSTITUTE(S36,$ED36,$ED$2&ROW($ED36)),$EC36,$EC$2&ROW($EC36)),$EB36,$EB$2&ROW($EB36)),$EA36,$EA$2&ROW($EA36)),$DZ36,$DZ$2&ROW($DZ36)),$DY36,$DY$2&ROW($DY36)),$DX36,$DX$2&ROW($DX36)),$DW36,$DW$2&ROW($DW36)),$DV36,$DV$2&ROW($DV36)),$DU36,$DU$2&ROW($DU36)),$DT36,$DT$2&ROW($DT36)),$DS36,$DS$2&ROW($DS36)))","v":0},{"$f":"IF(T36=\"\",0,\"X=\"&SUBSTITUTE(SUBSTITUTE(SUBSTITUTE(SUBSTITUTE(SUBSTITUTE(SUBSTITUTE(SUBSTITUTE(SUBSTITUTE(SUBSTITUTE(SUBSTITUTE(SUBSTITUTE(SUBSTITUTE(T36,$ED36,$ED$2&ROW($ED36)),$EC36,$EC$2&ROW($EC36)),$EB36,$EB$2&ROW($EB36)),$EA36,$EA$2&ROW($EA36)),$DZ36,$DZ$2&ROW($DZ36)),$DY36,$DY$2&ROW($DY36)),$DX36,$DX$2&ROW($DX36)),$DW36,$DW$2&ROW($DW36)),$DV36,$DV$2&ROW($DV36)),$DU36,$DU$2&ROW($DU36)),$DT36,$DT$2&ROW($DT36)),$DS36,$DS$2&ROW($DS36)))","v":0},{"$f":"IF(U36=\"\",0,\"X=\"&SUBSTITUTE(SUBSTITUTE(SUBSTITUTE(SUBSTITUTE(SUBSTITUTE(SUBSTITUTE(SUBSTITUTE(SUBSTITUTE(SUBSTITUTE(SUBSTITUTE(SUBSTITUTE(SUBSTITUTE(U36,$ED36,$ED$2&ROW($ED36)),$EC36,$EC$2&ROW($EC36)),$EB36,$EB$2&ROW($EB36)),$EA36,$EA$2&ROW($EA36)),$DZ36,$DZ$2&ROW($DZ36)),$DY36,$DY$2&ROW($DY36)),$DX36,$DX$2&ROW($DX36)),$DW36,$DW$2&ROW($DW36)),$DV36,$DV$2&ROW($DV36)),$DU36,$DU$2&ROW($DU36)),$DT36,$DT$2&ROW($DT36)),$DS36,$DS$2&ROW($DS36)))","v":"X=(AW36 * ((30*0.746*.75/(AY36/100)) - (.0495*(2*AS36)+1.7729)))*AF36"},{"$f":"IF(V36=\"\",0,\"X=\"&SUBSTITUTE(SUBSTITUTE(SUBSTITUTE(SUBSTITUTE(SUBSTITUTE(SUBSTITUTE(SUBSTITUTE(SUBSTITUTE(SUBSTITUTE(SUBSTITUTE(SUBSTITUTE(SUBSTITUTE(V36,$ED36,$ED$2&ROW($ED36)),$EC36,$EC$2&ROW($EC36)),$EB36,$EB$2&ROW($EB36)),$EA36,$EA$2&ROW($EA36)),$DZ36,$DZ$2&ROW($DZ36)),$DY36,$DY$2&ROW($DY36)),$DX36,$DX$2&ROW($DX36)),$DW36,$DW$2&ROW($DW36)),$DV36,$DV$2&ROW($DV36)),$DU36,$DU$2&ROW($DU36)),$DT36,$DT$2&ROW($DT36)),$DS36,$DS$2&ROW($DS36)))","v":"X=(AW36 * ((30*0.746*.75/(AY36/100)) - (.0495*(2*AS36)+1.7729)))*AG36"},{"$f":"IF(W36=\"\",0,\"X=\"&SUBSTITUTE(SUBSTITUTE(SUBSTITUTE(SUBSTITUTE(SUBSTITUTE(SUBSTITUTE(SUBSTITUTE(SUBSTITUTE(SUBSTITUTE(SUBSTITUTE(SUBSTITUTE(SUBSTITUTE(W36,$ED36,$ED$2&ROW($ED36)),$EC36,$EC$2&ROW($EC36)),$EB36,$EB$2&ROW($EB36)),$EA36,$EA$2&ROW($EA36)),$DZ36,$DZ$2&ROW($DZ36)),$DY36,$DY$2&ROW($DY36)),$DX36,$DX$2&ROW($DX36)),$DW36,$DW$2&ROW($DW36)),$DV36,$DV$2&ROW($DV36)),$DU36,$DU$2&ROW($DU36)),$DT36,$DT$2&ROW($DT36)),$DS36,$DS$2&ROW($DS36)))","v":0},{"$f":"IF(X36=\"\",0,\"X=\"&SUBSTITUTE(SUBSTITUTE(SUBSTITUTE(SUBSTITUTE(SUBSTITUTE(SUBSTITUTE(SUBSTITUTE(SUBSTITUTE(SUBSTITUTE(SUBSTITUTE(SUBSTITUTE(SUBSTITUTE(X36,$ED36,$ED$2&ROW($ED36)),$EC36,$EC$2&ROW($EC36)),$EB36,$EB$2&ROW($EB36)),$EA36,$EA$2&ROW($EA36)),$DZ36,$DZ$2&ROW($DZ36)),$DY36,$DY$2&ROW($DY36)),$DX36,$DX$2&ROW($DX36)),$DW36,$DW$2&ROW($DW36)),$DV36,$DV$2&ROW($DV36)),$DU36,$DU$2&ROW($DU36)),$DT36,$DT$2&ROW($DT36)),$DS36,$DS$2&ROW($DS36)))","v":0},{"$f":"IF(Y36=\"\",0,\"X=\"&SUBSTITUTE(SUBSTITUTE(SUBSTITUTE(SUBSTITUTE(SUBSTITUTE(SUBSTITUTE(SUBSTITUTE(SUBSTITUTE(SUBSTITUTE(SUBSTITUTE(SUBSTITUTE(SUBSTITUTE(Y36,$ED36,$ED$2&ROW($ED36)),$EC36,$EC$2&ROW($EC36)),$EB36,$EB$2&ROW($EB36)),$EA36,$EA$2&ROW($EA36)),$DZ36,$DZ$2&ROW($DZ36)),$DY36,$DY$2&ROW($DY36)),$DX36,$DX$2&ROW($DX36)),$DW36,$DW$2&ROW($DW36)),$DV36,$DV$2&ROW($DV36)),$DU36,$DU$2&ROW($DU36)),$DT36,$DT$2&ROW($DT36)),$DS36,$DS$2&ROW($DS36)))","v":0},{"$f":"IF(Z36=\"\",0,\"X=\"&SUBSTITUTE(SUBSTITUTE(SUBSTITUTE(SUBSTITUTE(SUBSTITUTE(SUBSTITUTE(SUBSTITUTE(SUBSTITUTE(SUBSTITUTE(SUBSTITUTE(SUBSTITUTE(SUBSTITUTE(Z36,$ED36,$ED$2&ROW($ED36)),$EC36,$EC$2&ROW($EC36)),$EB36,$EB$2&ROW($EB36)),$EA36,$EA$2&ROW($EA36)),$DZ36,$DZ$2&ROW($DZ36)),$DY36,$DY$2&ROW($DY36)),$DX36,$DX$2&ROW($DX36)),$DW36,$DW$2&ROW($DW36)),$DV36,$DV$2&ROW($DV36)),$DU36,$DU$2&ROW($DU36)),$DT36,$DT$2&ROW($DT36)),$DS36,$DS$2&ROW($DS36)))","v":0},{"$f":"IF(AA36=\"\",0,\"X=\"&SUBSTITUTE(SUBSTITUTE(SUBSTITUTE(SUBSTITUTE(SUBSTITUTE(SUBSTITUTE(SUBSTITUTE(SUBSTITUTE(SUBSTITUTE(SUBSTITUTE(SUBSTITUTE(SUBSTITUTE(AA36,$ED36,$ED$2&ROW($ED36)),$EC36,$EC$2&ROW($EC36)),$EB36,$EB$2&ROW($EB36)),$EA36,$EA$2&ROW($EA36)),$DZ36,$DZ$2&ROW($DZ36)),$DY36,$DY$2&ROW($DY36)),$DX36,$DX$2&ROW($DX36)),$DW36,$DW$2&ROW($DW36)),$DV36,$DV$2&ROW($DV36)),$DU36,$DU$2&ROW($DU36)),$DT36,$DT$2&ROW($DT36)),$DS36,$DS$2&ROW($DS36)))","v":0},{"$f":"IF(AB36=\"\",0,\"X=\"&SUBSTITUTE(SUBSTITUTE(SUBSTITUTE(SUBSTITUTE(SUBSTITUTE(SUBSTITUTE(SUBSTITUTE(SUBSTITUTE(SUBSTITUTE(SUBSTITUTE(SUBSTITUTE(SUBSTITUTE(AB36,$ED36,$ED$2&ROW($ED36)),$EC36,$EC$2&ROW($EC36)),$EB36,$EB$2&ROW($EB36)),$EA36,$EA$2&ROW($EA36)),$DZ36,$DZ$2&ROW($DZ36)),$DY36,$DY$2&ROW($DY36)),$DX36,$DX$2&ROW($DX36)),$DW36,$DW$2&ROW($DW36)),$DV36,$DV$2&ROW($DV36)),$DU36,$DU$2&ROW($DU36)),$DT36,$DT$2&ROW($DT36)),$DS36,$DS$2&ROW($DS36)))","v":0},null,null,"{Factor:WinterCF}","{Factor:SummerCF}",{"$f":"IFERROR(INDEX($EG36:$IV36,MATCH(0,COUNTIF($DR36:DT36,$EG36:$IV36),0)),\"\")","v":"{# of Milking Units}"},{"$f":"IFERROR(INDEX($EG36:$IV36,MATCH(0,COUNTIF($DR36:DU36,$EG36:$IV36),0)),\"\")","v":"{Daily Run Time}"},{"$f":"IFERROR(INDEX($EG36:$IV36,MATCH(0,COUNTIF($DR36:DV36,$EG36:$IV36),0)),\"\")","v":"{Measure:Quantity}"},{"$f":"IFERROR(INDEX($EG36:$IV36,MATCH(0,COUNTIF($DR36:DW36,$EG36:$IV36),0)),\"\")","v":"{Motor Efficiency}"},{"$f":"IFERROR(INDEX($EG36:$IV36,MATCH(0,COUNTIF($DR36:DX36,$EG36:$IV36),0)),\"\")","v":""},{"$f":"IFERROR(INDEX($EG36:$IV36,MATCH(0,COUNTIF($DR36:DY36,$EG36:$IV36),0)),\"\")","v":""},{"$f":"IFERROR(INDEX($EG36:$IV36,MATCH(0,COUNTIF($DR36:DZ36,$EG36:$IV36),0)),\"\")","v":""},{"$f":"IFERROR(INDEX($EG36:$IV36,MATCH(0,COUNTIF($DR36:EA36,$EG36:$IV36),0)),\"\")","v":""},{"$f":"IFERROR(INDEX($EG36:$IV36,MATCH(0,COUNTIF($DR36:EB36,$EG36:$IV36),0)),\"\")","v":""},{"$f":"IFERROR(INDEX($EG36:$IV36,MATCH(0,COUNTIF($DR36:EC36,$EG36:$IV36),0)),\"\")","v":""},null,null,{"$f":"IFERROR(MID($G36,FIND(CHAR(160),SUBSTITUTE($G36,\"{\",CHAR(160),EG$1)),FIND(CHAR(160),SUBSTITUTE($G36,\"}\",CHAR(160),EG$1))-FIND(CHAR(160),SUBSTITUTE($G36,\"{\",CHAR(160),EG$1))+1),\"\")","v":""},{"$f":"IFERROR(MID($G36,FIND(CHAR(160),SUBSTITUTE($G36,\"{\",CHAR(160),EH$1)),FIND(CHAR(160),SUBSTITUTE($G36,\"}\",CHAR(160),EH$1))-FIND(CHAR(160),SUBSTITUTE($G36,\"{\",CHAR(160),EH$1))+1),\"\")","v":""},{"$f":"IFERROR(MID($G36,FIND(CHAR(160),SUBSTITUTE($G36,\"{\",CHAR(160),EI$1)),FIND(CHAR(160),SUBSTITUTE($G36,\"}\",CHAR(160),EI$1))-FIND(CHAR(160),SUBSTITUTE($G36,\"{\",CHAR(160),EI$1))+1),\"\")","v":""},{"$f":"IFERROR(MID($G36,FIND(CHAR(160),SUBSTITUTE($G36,\"{\",CHAR(160),EJ$1)),FIND(CHAR(160),SUBSTITUTE($G36,\"}\",CHAR(160),EJ$1))-FIND(CHAR(160),SUBSTITUTE($G36,\"{\",CHAR(160),EJ$1))+1),\"\")","v":""},{"$f":"IFERROR(MID($G36,FIND(CHAR(160),SUBSTITUTE($G36,\"{\",CHAR(160),EK$1)),FIND(CHAR(160),SUBSTITUTE($G36,\"}\",CHAR(160),EK$1))-FIND(CHAR(160),SUBSTITUTE($G36,\"{\",CHAR(160),EK$1))+1),\"\")","v":""},{"$f":"IFERROR(MID($G36,FIND(CHAR(160),SUBSTITUTE($G36,\"{\",CHAR(160),EL$1)),FIND(CHAR(160),SUBSTITUTE($G36,\"}\",CHAR(160),EL$1))-FIND(CHAR(160),SUBSTITUTE($G36,\"{\",CHAR(160),EL$1))+1),\"\")","v":""},{"$f":"IFERROR(MID($G36,FIND(CHAR(160),SUBSTITUTE($G36,\"{\",CHAR(160),EM$1)),FIND(CHAR(160),SUBSTITUTE($G36,\"}\",CHAR(160),EM$1))-FIND(CHAR(160),SUBSTITUTE($G36,\"{\",CHAR(160),EM$1))+1),\"\")","v":""},{"$f":"IFERROR(MID($G36,FIND(CHAR(160),SUBSTITUTE($G36,\"{\",CHAR(160),EN$1)),FIND(CHAR(160),SUBSTITUTE($G36,\"}\",CHAR(160),EN$1))-FIND(CHAR(160),SUBSTITUTE($G36,\"{\",CHAR(160),EN$1))+1),\"\")","v":""},{"$f":"IFERROR(MID($G36,FIND(CHAR(160),SUBSTITUTE($G36,\"{\",CHAR(160),EO$1)),FIND(CHAR(160),SUBSTITUTE($G36,\"}\",CHAR(160),EO$1))-FIND(CHAR(160),SUBSTITUTE($G36,\"{\",CHAR(160),EO$1))+1),\"\")","v":""},{"$f":"IFERROR(MID($G36,FIND(CHAR(160),SUBSTITUTE($G36,\"{\",CHAR(160),EP$1)),FIND(CHAR(160),SUBSTITUTE($G36,\"}\",CHAR(160),EP$1))-FIND(CHAR(160),SUBSTITUTE($G36,\"{\",CHAR(160),EP$1))+1),\"\")","v":""},{"$f":"IFERROR(MID($J36,FIND(CHAR(160),SUBSTITUTE($J36,\"{\",CHAR(160),EQ$1)),FIND(CHAR(160),SUBSTITUTE($J36,\"}\",CHAR(160),EQ$1))-FIND(CHAR(160),SUBSTITUTE($J36,\"{\",CHAR(160),EQ$1))+1),\"\")","v":""},{"$f":"IFERROR(MID($J36,FIND(CHAR(160),SUBSTITUTE($J36,\"{\",CHAR(160),ER$1)),FIND(CHAR(160),SUBSTITUTE($J36,\"}\",CHAR(160),ER$1))-FIND(CHAR(160),SUBSTITUTE($J36,\"{\",CHAR(160),ER$1))+1),\"\")","v":""},{"$f":"IFERROR(MID($J36,FIND(CHAR(160),SUBSTITUTE($J36,\"{\",CHAR(160),ES$1)),FIND(CHAR(160),SUBSTITUTE($J36,\"}\",CHAR(160),ES$1))-FIND(CHAR(160),SUBSTITUTE($J36,\"{\",CHAR(160),ES$1))+1),\"\")","v":""},{"$f":"IFERROR(MID($J36,FIND(CHAR(160),SUBSTITUTE($J36,\"{\",CHAR(160),ET$1)),FIND(CHAR(160),SUBSTITUTE($J36,\"}\",CHAR(160),ET$1))-FIND(CHAR(160),SUBSTITUTE($J36,\"{\",CHAR(160),ET$1))+1),\"\")","v":""},{"$f":"IFERROR(MID($J36,FIND(CHAR(160),SUBSTITUTE($J36,\"{\",CHAR(160),EU$1)),FIND(CHAR(160),SUBSTITUTE($J36,\"}\",CHAR(160),EU$1))-FIND(CHAR(160),SUBSTITUTE($J36,\"{\",CHAR(160),EU$1))+1),\"\")","v":""},{"$f":"IFERROR(MID($J36,FIND(CHAR(160),SUBSTITUTE($J36,\"{\",CHAR(160),EV$1)),FIND(CHAR(160),SUBSTITUTE($J36,\"}\",CHAR(160),EV$1))-FIND(CHAR(160),SUBSTITUTE($J36,\"{\",CHAR(160),EV$1))+1),\"\")","v":""},{"$f":"IFERROR(MID($J36,FIND(CHAR(160),SUBSTITUTE($J36,\"{\",CHAR(160),EW$1)),FIND(CHAR(160),SUBSTITUTE($J36,\"}\",CHAR(160),EW$1))-FIND(CHAR(160),SUBSTITUTE($J36,\"{\",CHAR(160),EW$1))+1),\"\")","v":""},{"$f":"IFERROR(MID($J36,FIND(CHAR(160),SUBSTITUTE($J36,\"{\",CHAR(160),EX$1)),FIND(CHAR(160),SUBSTITUTE($J36,\"}\",CHAR(160),EX$1))-FIND(CHAR(160),SUBSTITUTE($J36,\"{\",CHAR(160),EX$1))+1),\"\")","v":""},{"$f":"IFERROR(MID($J36,FIND(CHAR(160),SUBSTITUTE($J36,\"{\",CHAR(160),EY$1)),FIND(CHAR(160),SUBSTITUTE($J36,\"}\",CHAR(160),EY$1))-FIND(CHAR(160),SUBSTITUTE($J36,\"{\",CHAR(160),EY$1))+1),\"\")","v":""},{"$f":"IFERROR(MID($J36,FIND(CHAR(160),SUBSTITUTE($J36,\"{\",CHAR(160),EZ$1)),FIND(CHAR(160),SUBSTITUTE($J36,\"}\",CHAR(160),EZ$1))-FIND(CHAR(160),SUBSTITUTE($J36,\"{\",CHAR(160),EZ$1))+1),\"\")","v":""},{"$f":"IFERROR(MID($J36,FIND(CHAR(160),SUBSTITUTE($J36,\"{\",CHAR(160),FA$1)),FIND(CHAR(160),SUBSTITUTE($J36,\"}\",CHAR(160),FA$1))-FIND(CHAR(160),SUBSTITUTE($J36,\"{\",CHAR(160),FA$1))+1),\"\")","v":""},{"$f":"IFERROR(MID($J36,FIND(CHAR(160),SUBSTITUTE($J36,\"{\",CHAR(160),FB$1)),FIND(CHAR(160),SUBSTITUTE($J36,\"}\",CHAR(160),FB$1))-FIND(CHAR(160),SUBSTITUTE($J36,\"{\",CHAR(160),FB$1))+1),\"\")","v":""},{"$f":"IFERROR(MID($O36,FIND(CHAR(160),SUBSTITUTE($O36,\"{\",CHAR(160),FC$1)),FIND(CHAR(160),SUBSTITUTE($O36,\"}\",CHAR(160),FC$1))-FIND(CHAR(160),SUBSTITUTE($O36,\"{\",CHAR(160),FC$1))+1),\"\")","v":"{# of Milking Units}"},{"$f":"IFERROR(MID($O36,FIND(CHAR(160),SUBSTITUTE($O36,\"{\",CHAR(160),FD$1)),FIND(CHAR(160),SUBSTITUTE($O36,\"}\",CHAR(160),FD$1))-FIND(CHAR(160),SUBSTITUTE($O36,\"{\",CHAR(160),FD$1))+1),\"\")","v":"{Daily Run Time}"},{"$f":"IFERROR(MID($O36,FIND(CHAR(160),SUBSTITUTE($O36,\"{\",CHAR(160),FE$1)),FIND(CHAR(160),SUBSTITUTE($O36,\"}\",CHAR(160),FE$1))-FIND(CHAR(160),SUBSTITUTE($O36,\"{\",CHAR(160),FE$1))+1),\"\")","v":""},{"$f":"IFERROR(MID($O36,FIND(CHAR(160),SUBSTITUTE($O36,\"{\",CHAR(160),FF$1)),FIND(CHAR(160),SUBSTITUTE($O36,\"}\",CHAR(160),FF$1))-FIND(CHAR(160),SUBSTITUTE($O36,\"{\",CHAR(160),FF$1))+1),\"\")","v":""},{"$f":"IFERROR(MID($O36,FIND(CHAR(160),SUBSTITUTE($O36,\"{\",CHAR(160),FG$1)),FIND(CHAR(160),SUBSTITUTE($O36,\"}\",CHAR(160),FG$1))-FIND(CHAR(160),SUBSTITUTE($O36,\"{\",CHAR(160),FG$1))+1),\"\")","v":""},{"$f":"IFERROR(MID($O36,FIND(CHAR(160),SUBSTITUTE($O36,\"{\",CHAR(160),FH$1)),FIND(CHAR(160),SUBSTITUTE($O36,\"}\",CHAR(160),FH$1))-FIND(CHAR(160),SUBSTITUTE($O36,\"{\",CHAR(160),FH$1))+1),\"\")","v":""},{"$f":"IFERROR(MID($O36,FIND(CHAR(160),SUBSTITUTE($O36,\"{\",CHAR(160),FI$1)),FIND(CHAR(160),SUBSTITUTE($O36,\"}\",CHAR(160),FI$1))-FIND(CHAR(160),SUBSTITUTE($O36,\"{\",CHAR(160),FI$1))+1),\"\")","v":""},{"$f":"IFERROR(MID($O36,FIND(CHAR(160),SUBSTITUTE($O36,\"{\",CHAR(160),FJ$1)),FIND(CHAR(160),SUBSTITUTE($O36,\"}\",CHAR(160),FJ$1))-FIND(CHAR(160),SUBSTITUTE($O36,\"{\",CHAR(160),FJ$1))+1),\"\")","v":""},{"$f":"IFERROR(MID($O36,FIND(CHAR(160),SUBSTITUTE($O36,\"{\",CHAR(160),FK$1)),FIND(CHAR(160),SUBSTITUTE($O36,\"}\",CHAR(160),FK$1))-FIND(CHAR(160),SUBSTITUTE($O36,\"{\",CHAR(160),FK$1))+1),\"\")","v":"{Measure:Quantity}"},{"$f":"IFERROR(MID($O36,FIND(CHAR(160),SUBSTITUTE($O36,\"{\",CHAR(160),FL$1)),FIND(CHAR(160),SUBSTITUTE($O36,\"}\",CHAR(160),FL$1))-FIND(CHAR(160),SUBSTITUTE($O36,\"{\",CHAR(160),FL$1))+1),\"\")","v":"{Motor Efficiency}"},{"$f":"IFERROR(MID($R36,FIND(CHAR(160),SUBSTITUTE($R36,\"{\",CHAR(160),FM$1)),FIND(CHAR(160),SUBSTITUTE($R36,\"}\",CHAR(160),FM$1))-FIND(CHAR(160),SUBSTITUTE($R36,\"{\",CHAR(160),FM$1))+1),\"\")","v":"{# of Milking Units}"},{"$f":"IFERROR(MID($R36,FIND(CHAR(160),SUBSTITUTE($R36,\"{\",CHAR(160),FN$1)),FIND(CHAR(160),SUBSTITUTE($R36,\"}\",CHAR(160),FN$1))-FIND(CHAR(160),SUBSTITUTE($R36,\"{\",CHAR(160),FN$1))+1),\"\")","v":""},{"$f":"IFERROR(MID($R36,FIND(CHAR(160),SUBSTITUTE($R36,\"{\",CHAR(160),FO$1)),FIND(CHAR(160),SUBSTITUTE($R36,\"}\",CHAR(160),FO$1))-FIND(CHAR(160),SUBSTITUTE($R36,\"{\",CHAR(160),FO$1))+1),\"\")","v":""},{"$f":"IFERROR(MID($R36,FIND(CHAR(160),SUBSTITUTE($R36,\"{\",CHAR(160),FP$1)),FIND(CHAR(160),SUBSTITUTE($R36,\"}\",CHAR(160),FP$1))-FIND(CHAR(160),SUBSTITUTE($R36,\"{\",CHAR(160),FP$1))+1),\"\")","v":""},{"$f":"IFERROR(MID($R36,FIND(CHAR(160),SUBSTITUTE($R36,\"{\",CHAR(160),FQ$1)),FIND(CHAR(160),SUBSTITUTE($R36,\"}\",CHAR(160),FQ$1))-FIND(CHAR(160),SUBSTITUTE($R36,\"{\",CHAR(160),FQ$1))+1),\"\")","v":""},{"$f":"IFERROR(MID($R36,FIND(CHAR(160),SUBSTITUTE($R36,\"{\",CHAR(160),FR$1)),FIND(CHAR(160),SUBSTITUTE($R36,\"}\",CHAR(160),FR$1))-FIND(CHAR(160),SUBSTITUTE($R36,\"{\",CHAR(160),FR$1))+1),\"\")","v":""},{"$f":"IFERROR(MID($R36,FIND(CHAR(160),SUBSTITUTE($R36,\"{\",CHAR(160),FS$1)),FIND(CHAR(160),SUBSTITUTE($R36,\"}\",CHAR(160),FS$1))-FIND(CHAR(160),SUBSTITUTE($R36,\"{\",CHAR(160),FS$1))+1),\"\")","v":""},{"$f":"IFERROR(MID($R36,FIND(CHAR(160),SUBSTITUTE($R36,\"{\",CHAR(160),FT$1)),FIND(CHAR(160),SUBSTITUTE($R36,\"}\",CHAR(160),FT$1))-FIND(CHAR(160),SUBSTITUTE($R36,\"{\",CHAR(160),FT$1))+1),\"\")","v":""},{"$f":"IFERROR(MID($R36,FIND(CHAR(160),SUBSTITUTE($R36,\"{\",CHAR(160),FU$1)),FIND(CHAR(160),SUBSTITUTE($R36,\"}\",CHAR(160),FU$1))-FIND(CHAR(160),SUBSTITUTE($R36,\"{\",CHAR(160),FU$1))+1),\"\")","v":"{Measure:Quantity}"},{"$f":"IFERROR(MID($R36,FIND(CHAR(160),SUBSTITUTE($R36,\"{\",CHAR(160),FV$1)),FIND(CHAR(160),SUBSTITUTE($R36,\"}\",CHAR(160),FV$1))-FIND(CHAR(160),SUBSTITUTE($R36,\"{\",CHAR(160),FV$1))+1),\"\")","v":"{Motor Efficiency}"},{"$f":"IFERROR(MID($U36,FIND(CHAR(160),SUBSTITUTE($U36,\"{\",CHAR(160),FW$1)),FIND(CHAR(160),SUBSTITUTE($U36,\"}\",CHAR(160),FW$1))-FIND(CHAR(160),SUBSTITUTE($U36,\"{\",CHAR(160),FW$1))+1),\"\")","v":"{# of Milking Units}"},{"$f":"IFERROR(MID($U36,FIND(CHAR(160),SUBSTITUTE($U36,\"{\",CHAR(160),FX$1)),FIND(CHAR(160),SUBSTITUTE($U36,\"}\",CHAR(160),FX$1))-FIND(CHAR(160),SUBSTITUTE($U36,\"{\",CHAR(160),FX$1))+1),\"\")","v":"{Factor:WinterCF}"},{"$f":"IFERROR(MID($U36,FIND(CHAR(160),SUBSTITUTE($U36,\"{\",CHAR(160),FY$1)),FIND(CHAR(160),SUBSTITUTE($U36,\"}\",CHAR(160),FY$1))-FIND(CHAR(160),SUBSTITUTE($U36,\"{\",CHAR(160),FY$1))+1),\"\")","v":""},{"$f":"IFERROR(MID($U36,FIND(CHAR(160),SUBSTITUTE($U36,\"{\",CHAR(160),FZ$1)),FIND(CHAR(160),SUBSTITUTE($U36,\"}\",CHAR(160),FZ$1))-FIND(CHAR(160),SUBSTITUTE($U36,\"{\",CHAR(160),FZ$1))+1),\"\")","v":""},{"$f":"IFERROR(MID($U36,FIND(CHAR(160),SUBSTITUTE($U36,\"{\",CHAR(160),GA$1)),FIND(CHAR(160),SUBSTITUTE($U36,\"}\",CHAR(160),GA$1))-FIND(CHAR(160),SUBSTITUTE($U36,\"{\",CHAR(160),GA$1))+1),\"\")","v":""},{"$f":"IFERROR(MID($U36,FIND(CHAR(160),SUBSTITUTE($U36,\"{\",CHAR(160),GB$1)),FIND(CHAR(160),SUBSTITUTE($U36,\"}\",CHAR(160),GB$1))-FIND(CHAR(160),SUBSTITUTE($U36,\"{\",CHAR(160),GB$1))+1),\"\")","v":""},{"$f":"IFERROR(MID($U36,FIND(CHAR(160),SUBSTITUTE($U36,\"{\",CHAR(160),GC$1)),FIND(CHAR(160),SUBSTITUTE($U36,\"}\",CHAR(160),GC$1))-FIND(CHAR(160),SUBSTITUTE($U36,\"{\",CHAR(160),GC$1))+1),\"\")","v":""},{"$f":"IFERROR(MID($U36,FIND(CHAR(160),SUBSTITUTE($U36,\"{\",CHAR(160),GD$1)),FIND(CHAR(160),SUBSTITUTE($U36,\"}\",CHAR(160),GD$1))-FIND(CHAR(160),SUBSTITUTE($U36,\"{\",CHAR(160),GD$1))+1),\"\")","v":""},{"$f":"IFERROR(MID($U36,FIND(CHAR(160),SUBSTITUTE($U36,\"{\",CHAR(160),GE$1)),FIND(CHAR(160),SUBSTITUTE($U36,\"}\",CHAR(160),GE$1))-FIND(CHAR(160),SUBSTITUTE($U36,\"{\",CHAR(160),GE$1))+1),\"\")","v":"{Measure:Quantity}"},{"$f":"IFERROR(MID($U36,FIND(CHAR(160),SUBSTITUTE($U36,\"{\",CHAR(160),GF$1)),FIND(CHAR(160),SUBSTITUTE($U36,\"}\",CHAR(160),GF$1))-FIND(CHAR(160),SUBSTITUTE($U36,\"{\",CHAR(160),GF$1))+1),\"\")","v":"{Motor Efficiency}"},{"$f":"IFERROR(MID($V36,FIND(CHAR(160),SUBSTITUTE($V36,\"{\",CHAR(160),GG$1)),FIND(CHAR(160),SUBSTITUTE($V36,\"}\",CHAR(160),GG$1))-FIND(CHAR(160),SUBSTITUTE($V36,\"{\",CHAR(160),GG$1))+1),\"\")","v":"{# of Milking Units}"},{"$f":"IFERROR(MID($V36,FIND(CHAR(160),SUBSTITUTE($V36,\"{\",CHAR(160),GH$1)),FIND(CHAR(160),SUBSTITUTE($V36,\"}\",CHAR(160),GH$1))-FIND(CHAR(160),SUBSTITUTE($V36,\"{\",CHAR(160),GH$1))+1),\"\")","v":"{Factor:SummerCF}"},{"$f":"IFERROR(MID($V36,FIND(CHAR(160),SUBSTITUTE($V36,\"{\",CHAR(160),GI$1)),FIND(CHAR(160),SUBSTITUTE($V36,\"}\",CHAR(160),GI$1))-FIND(CHAR(160),SUBSTITUTE($V36,\"{\",CHAR(160),GI$1))+1),\"\")","v":""},{"$f":"IFERROR(MID($V36,FIND(CHAR(160),SUBSTITUTE($V36,\"{\",CHAR(160),GJ$1)),FIND(CHAR(160),SUBSTITUTE($V36,\"}\",CHAR(160),GJ$1))-FIND(CHAR(160),SUBSTITUTE($V36,\"{\",CHAR(160),GJ$1))+1),\"\")","v":""},{"$f":"IFERROR(MID($V36,FIND(CHAR(160),SUBSTITUTE($V36,\"{\",CHAR(160),GK$1)),FIND(CHAR(160),SUBSTITUTE($V36,\"}\",CHAR(160),GK$1))-FIND(CHAR(160),SUBSTITUTE($V36,\"{\",CHAR(160),GK$1))+1),\"\")","v":""},{"$f":"IFERROR(MID($V36,FIND(CHAR(160),SUBSTITUTE($V36,\"{\",CHAR(160),GL$1)),FIND(CHAR(160),SUBSTITUTE($V36,\"}\",CHAR(160),GL$1))-FIND(CHAR(160),SUBSTITUTE($V36,\"{\",CHAR(160),GL$1))+1),\"\")","v":""},{"$f":"IFERROR(MID($V36,FIND(CHAR(160),SUBSTITUTE($V36,\"{\",CHAR(160),GM$1)),FIND(CHAR(160),SUBSTITUTE($V36,\"}\",CHAR(160),GM$1))-FIND(CHAR(160),SUBSTITUTE($V36,\"{\",CHAR(160),GM$1))+1),\"\")","v":""},{"$f":"IFERROR(MID($V36,FIND(CHAR(160),SUBSTITUTE($V36,\"{\",CHAR(160),GN$1)),FIND(CHAR(160),SUBSTITUTE($V36,\"}\",CHAR(160),GN$1))-FIND(CHAR(160),SUBSTITUTE($V36,\"{\",CHAR(160),GN$1))+1),\"\")","v":""},{"$f":"IFERROR(MID($V36,FIND(CHAR(160),SUBSTITUTE($V36,\"{\",CHAR(160),GO$1)),FIND(CHAR(160),SUBSTITUTE($V36,\"}\",CHAR(160),GO$1))-FIND(CHAR(160),SUBSTITUTE($V36,\"{\",CHAR(160),GO$1))+1),\"\")","v":"{Measure:Quantity}"},{"$f":"IFERROR(MID($V36,FIND(CHAR(160),SUBSTITUTE($V36,\"{\",CHAR(160),GP$1)),FIND(CHAR(160),SUBSTITUTE($V36,\"}\",CHAR(160),GP$1))-FIND(CHAR(160),SUBSTITUTE($V36,\"{\",CHAR(160),GP$1))+1),\"\")","v":"{Motor Efficiency}"},{"$f":"IFERROR(MID($W36,FIND(CHAR(160),SUBSTITUTE($W36,\"{\",CHAR(160),GQ$1)),FIND(CHAR(160),SUBSTITUTE($W36,\"}\",CHAR(160),GQ$1))-FIND(CHAR(160),SUBSTITUTE($W36,\"{\",CHAR(160),GQ$1))+1),\"\")","v":""},{"$f":"IFERROR(MID($W36,FIND(CHAR(160),SUBSTITUTE($W36,\"{\",CHAR(160),GR$1)),FIND(CHAR(160),SUBSTITUTE($W36,\"}\",CHAR(160),GR$1))-FIND(CHAR(160),SUBSTITUTE($W36,\"{\",CHAR(160),GR$1))+1),\"\")","v":""},{"$f":"IFERROR(MID($W36,FIND(CHAR(160),SUBSTITUTE($W36,\"{\",CHAR(160),GS$1)),FIND(CHAR(160),SUBSTITUTE($W36,\"}\",CHAR(160),GS$1))-FIND(CHAR(160),SUBSTITUTE($W36,\"{\",CHAR(160),GS$1))+1),\"\")","v":""},{"$f":"IFERROR(MID($W36,FIND(CHAR(160),SUBSTITUTE($W36,\"{\",CHAR(160),GT$1)),FIND(CHAR(160),SUBSTITUTE($W36,\"}\",CHAR(160),GT$1))-FIND(CHAR(160),SUBSTITUTE($W36,\"{\",CHAR(160),GT$1))+1),\"\")","v":""},{"$f":"IFERROR(MID($W36,FIND(CHAR(160),SUBSTITUTE($W36,\"{\",CHAR(160),GU$1)),FIND(CHAR(160),SUBSTITUTE($W36,\"}\",CHAR(160),GU$1))-FIND(CHAR(160),SUBSTITUTE($W36,\"{\",CHAR(160),GU$1))+1),\"\")","v":""},{"$f":"IFERROR(MID($W36,FIND(CHAR(160),SUBSTITUTE($W36,\"{\",CHAR(160),GV$1)),FIND(CHAR(160),SUBSTITUTE($W36,\"}\",CHAR(160),GV$1))-FIND(CHAR(160),SUBSTITUTE($W36,\"{\",CHAR(160),GV$1))+1),\"\")","v":""},{"$f":"IFERROR(MID($W36,FIND(CHAR(160),SUBSTITUTE($W36,\"{\",CHAR(160),GW$1)),FIND(CHAR(160),SUBSTITUTE($W36,\"}\",CHAR(160),GW$1))-FIND(CHAR(160),SUBSTITUTE($W36,\"{\",CHAR(160),GW$1))+1),\"\")","v":""},{"$f":"IFERROR(MID($W36,FIND(CHAR(160),SUBSTITUTE($W36,\"{\",CHAR(160),GX$1)),FIND(CHAR(160),SUBSTITUTE($W36,\"}\",CHAR(160),GX$1))-FIND(CHAR(160),SUBSTITUTE($W36,\"{\",CHAR(160),GX$1))+1),\"\")","v":""},{"$f":"IFERROR(MID($W36,FIND(CHAR(160),SUBSTITUTE($W36,\"{\",CHAR(160),GY$1)),FIND(CHAR(160),SUBSTITUTE($W36,\"}\",CHAR(160),GY$1))-FIND(CHAR(160),SUBSTITUTE($W36,\"{\",CHAR(160),GY$1))+1),\"\")","v":""},{"$f":"IFERROR(MID($W36,FIND(CHAR(160),SUBSTITUTE($W36,\"{\",CHAR(160),GZ$1)),FIND(CHAR(160),SUBSTITUTE($W36,\"}\",CHAR(160),GZ$1))-FIND(CHAR(160),SUBSTITUTE($W36,\"{\",CHAR(160),GZ$1))+1),\"\")","v":""},{"$f":"IFERROR(MID($X36,FIND(CHAR(160),SUBSTITUTE($X36,\"{\",CHAR(160),HA$1)),FIND(CHAR(160),SUBSTITUTE($X36,\"}\",CHAR(160),HA$1))-FIND(CHAR(160),SUBSTITUTE($X36,\"{\",CHAR(160),HA$1))+1),\"\")","v":""},{"$f":"IFERROR(MID($X36,FIND(CHAR(160),SUBSTITUTE($X36,\"{\",CHAR(160),HB$1)),FIND(CHAR(160),SUBSTITUTE($X36,\"}\",CHAR(160),HB$1))-FIND(CHAR(160),SUBSTITUTE($X36,\"{\",CHAR(160),HB$1))+1),\"\")","v":""},{"$f":"IFERROR(MID($X36,FIND(CHAR(160),SUBSTITUTE($X36,\"{\",CHAR(160),HC$1)),FIND(CHAR(160),SUBSTITUTE($X36,\"}\",CHAR(160),HC$1))-FIND(CHAR(160),SUBSTITUTE($X36,\"{\",CHAR(160),HC$1))+1),\"\")","v":""},{"$f":"IFERROR(MID($X36,FIND(CHAR(160),SUBSTITUTE($X36,\"{\",CHAR(160),HD$1)),FIND(CHAR(160),SUBSTITUTE($X36,\"}\",CHAR(160),HD$1))-FIND(CHAR(160),SUBSTITUTE($X36,\"{\",CHAR(160),HD$1))+1),\"\")","v":""},{"$f":"IFERROR(MID($X36,FIND(CHAR(160),SUBSTITUTE($X36,\"{\",CHAR(160),HE$1)),FIND(CHAR(160),SUBSTITUTE($X36,\"}\",CHAR(160),HE$1))-FIND(CHAR(160),SUBSTITUTE($X36,\"{\",CHAR(160),HE$1))+1),\"\")","v":""},{"$f":"IFERROR(MID($X36,FIND(CHAR(160),SUBSTITUTE($X36,\"{\",CHAR(160),HF$1)),FIND(CHAR(160),SUBSTITUTE($X36,\"}\",CHAR(160),HF$1))-FIND(CHAR(160),SUBSTITUTE($X36,\"{\",CHAR(160),HF$1))+1),\"\")","v":""},{"$f":"IFERROR(MID($X36,FIND(CHAR(160),SUBSTITUTE($X36,\"{\",CHAR(160),HG$1)),FIND(CHAR(160),SUBSTITUTE($X36,\"}\",CHAR(160),HG$1))-FIND(CHAR(160),SUBSTITUTE($X36,\"{\",CHAR(160),HG$1))+1),\"\")","v":""},{"$f":"IFERROR(MID($X36,FIND(CHAR(160),SUBSTITUTE($X36,\"{\",CHAR(160),HH$1)),FIND(CHAR(160),SUBSTITUTE($X36,\"}\",CHAR(160),HH$1))-FIND(CHAR(160),SUBSTITUTE($X36,\"{\",CHAR(160),HH$1))+1),\"\")","v":""},{"$f":"IFERROR(MID($X36,FIND(CHAR(160),SUBSTITUTE($X36,\"{\",CHAR(160),HI$1)),FIND(CHAR(160),SUBSTITUTE($X36,\"}\",CHAR(160),HI$1))-FIND(CHAR(160),SUBSTITUTE($X36,\"{\",CHAR(160),HI$1))+1),\"\")","v":""},{"$f":"IFERROR(MID($X36,FIND(CHAR(160),SUBSTITUTE($X36,\"{\",CHAR(160),HJ$1)),FIND(CHAR(160),SUBSTITUTE($X36,\"}\",CHAR(160),HJ$1))-FIND(CHAR(160),SUBSTITUTE($X36,\"{\",CHAR(160),HJ$1))+1),\"\")","v":""},{"$f":"IFERROR(MID($Y36,FIND(CHAR(160),SUBSTITUTE($Y36,\"{\",CHAR(160),HK$1)),FIND(CHAR(160),SUBSTITUTE($Y36,\"}\",CHAR(160),HK$1))-FIND(CHAR(160),SUBSTITUTE($Y36,\"{\",CHAR(160),HK$1))+1),\"\")","v":""},{"$f":"IFERROR(MID($Y36,FIND(CHAR(160),SUBSTITUTE($Y36,\"{\",CHAR(160),HL$1)),FIND(CHAR(160),SUBSTITUTE($Y36,\"}\",CHAR(160),HL$1))-FIND(CHAR(160),SUBSTITUTE($Y36,\"{\",CHAR(160),HL$1))+1),\"\")","v":""},{"$f":"IFERROR(MID($Y36,FIND(CHAR(160),SUBSTITUTE($Y36,\"{\",CHAR(160),HM$1)),FIND(CHAR(160),SUBSTITUTE($Y36,\"}\",CHAR(160),HM$1))-FIND(CHAR(160),SUBSTITUTE($Y36,\"{\",CHAR(160),HM$1))+1),\"\")","v":""},{"$f":"IFERROR(MID($Y36,FIND(CHAR(160),SUBSTITUTE($Y36,\"{\",CHAR(160),HN$1)),FIND(CHAR(160),SUBSTITUTE($Y36,\"}\",CHAR(160),HN$1))-FIND(CHAR(160),SUBSTITUTE($Y36,\"{\",CHAR(160),HN$1))+1),\"\")","v":""},{"$f":"IFERROR(MID($Y36,FIND(CHAR(160),SUBSTITUTE($Y36,\"{\",CHAR(160),HO$1)),FIND(CHAR(160),SUBSTITUTE($Y36,\"}\",CHAR(160),HO$1))-FIND(CHAR(160),SUBSTITUTE($Y36,\"{\",CHAR(160),HO$1))+1),\"\")","v":""},{"$f":"IFERROR(MID($Y36,FIND(CHAR(160),SUBSTITUTE($Y36,\"{\",CHAR(160),HP$1)),FIND(CHAR(160),SUBSTITUTE($Y36,\"}\",CHAR(160),HP$1))-FIND(CHAR(160),SUBSTITUTE($Y36,\"{\",CHAR(160),HP$1))+1),\"\")","v":""},{"$f":"IFERROR(MID($Y36,FIND(CHAR(160),SUBSTITUTE($Y36,\"{\",CHAR(160),HQ$1)),FIND(CHAR(160),SUBSTITUTE($Y36,\"}\",CHAR(160),HQ$1))-FIND(CHAR(160),SUBSTITUTE($Y36,\"{\",CHAR(160),HQ$1))+1),\"\")","v":""},{"$f":"IFERROR(MID($Y36,FIND(CHAR(160),SUBSTITUTE($Y36,\"{\",CHAR(160),HR$1)),FIND(CHAR(160),SUBSTITUTE($Y36,\"}\",CHAR(160),HR$1))-FIND(CHAR(160),SUBSTITUTE($Y36,\"{\",CHAR(160),HR$1))+1),\"\")","v":""},{"$f":"IFERROR(MID($Y36,FIND(CHAR(160),SUBSTITUTE($Y36,\"{\",CHAR(160),HS$1)),FIND(CHAR(160),SUBSTITUTE($Y36,\"}\",CHAR(160),HS$1))-FIND(CHAR(160),SUBSTITUTE($Y36,\"{\",CHAR(160),HS$1))+1),\"\")","v":""},{"$f":"IFERROR(MID($Y36,FIND(CHAR(160),SUBSTITUTE($Y36,\"{\",CHAR(160),HT$1)),FIND(CHAR(160),SUBSTITUTE($Y36,\"}\",CHAR(160),HT$1))-FIND(CHAR(160),SUBSTITUTE($Y36,\"{\",CHAR(160),HT$1))+1),\"\")","v":""},{"$f":"IFERROR(MID($Z36,FIND(CHAR(160),SUBSTITUTE($Z36,\"{\",CHAR(160),HU$1)),FIND(CHAR(160),SUBSTITUTE($Z36,\"}\",CHAR(160),HU$1))-FIND(CHAR(160),SUBSTITUTE($Z36,\"{\",CHAR(160),HU$1))+1),\"\")","v":""},{"$f":"IFERROR(MID($Z36,FIND(CHAR(160),SUBSTITUTE($Z36,\"{\",CHAR(160),HV$1)),FIND(CHAR(160),SUBSTITUTE($Z36,\"}\",CHAR(160),HV$1))-FIND(CHAR(160),SUBSTITUTE($Z36,\"{\",CHAR(160),HV$1))+1),\"\")","v":""},{"$f":"IFERROR(MID($Z36,FIND(CHAR(160),SUBSTITUTE($Z36,\"{\",CHAR(160),HW$1)),FIND(CHAR(160),SUBSTITUTE($Z36,\"}\",CHAR(160),HW$1))-FIND(CHAR(160),SUBSTITUTE($Z36,\"{\",CHAR(160),HW$1))+1),\"\")","v":""},{"$f":"IFERROR(MID($Z36,FIND(CHAR(160),SUBSTITUTE($Z36,\"{\",CHAR(160),HX$1)),FIND(CHAR(160),SUBSTITUTE($Z36,\"}\",CHAR(160),HX$1))-FIND(CHAR(160),SUBSTITUTE($Z36,\"{\",CHAR(160),HX$1))+1),\"\")","v":""},{"$f":"IFERROR(MID($Z36,FIND(CHAR(160),SUBSTITUTE($Z36,\"{\",CHAR(160),HY$1)),FIND(CHAR(160),SUBSTITUTE($Z36,\"}\",CHAR(160),HY$1))-FIND(CHAR(160),SUBSTITUTE($Z36,\"{\",CHAR(160),HY$1))+1),\"\")","v":""},{"$f":"IFERROR(MID($Z36,FIND(CHAR(160),SUBSTITUTE($Z36,\"{\",CHAR(160),HZ$1)),FIND(CHAR(160),SUBSTITUTE($Z36,\"}\",CHAR(160),HZ$1))-FIND(CHAR(160),SUBSTITUTE($Z36,\"{\",CHAR(160),HZ$1))+1),\"\")","v":""},{"$f":"IFERROR(MID($Z36,FIND(CHAR(160),SUBSTITUTE($Z36,\"{\",CHAR(160),IA$1)),FIND(CHAR(160),SUBSTITUTE($Z36,\"}\",CHAR(160),IA$1))-FIND(CHAR(160),SUBSTITUTE($Z36,\"{\",CHAR(160),IA$1))+1),\"\")","v":""},{"$f":"IFERROR(MID($Z36,FIND(CHAR(160),SUBSTITUTE($Z36,\"{\",CHAR(160),IB$1)),FIND(CHAR(160),SUBSTITUTE($Z36,\"}\",CHAR(160),IB$1))-FIND(CHAR(160),SUBSTITUTE($Z36,\"{\",CHAR(160),IB$1))+1),\"\")","v":""},{"$f":"IFERROR(MID($Z36,FIND(CHAR(160),SUBSTITUTE($Z36,\"{\",CHAR(160),IC$1)),FIND(CHAR(160),SUBSTITUTE($Z36,\"}\",CHAR(160),IC$1))-FIND(CHAR(160),SUBSTITUTE($Z36,\"{\",CHAR(160),IC$1))+1),\"\")","v":""},{"$f":"IFERROR(MID($Z36,FIND(CHAR(160),SUBSTITUTE($Z36,\"{\",CHAR(160),ID$1)),FIND(CHAR(160),SUBSTITUTE($Z36,\"}\",CHAR(160),ID$1))-FIND(CHAR(160),SUBSTITUTE($Z36,\"{\",CHAR(160),ID$1))+1),\"\")","v":""},{"$f":"IFERROR(MID($AA36,FIND(CHAR(160),SUBSTITUTE($AA36,\"{\",CHAR(160),IE$1)),FIND(CHAR(160),SUBSTITUTE($AA36,\"}\",CHAR(160),IE$1))-FIND(CHAR(160),SUBSTITUTE($AA36,\"{\",CHAR(160),IE$1))+1),\"\")","v":""},{"$f":"IFERROR(MID($AA36,FIND(CHAR(160),SUBSTITUTE($AA36,\"{\",CHAR(160),IF$1)),FIND(CHAR(160),SUBSTITUTE($AA36,\"}\",CHAR(160),IF$1))-FIND(CHAR(160),SUBSTITUTE($AA36,\"{\",CHAR(160),IF$1))+1),\"\")","v":""},{"$f":"IFERROR(MID($AA36,FIND(CHAR(160),SUBSTITUTE($AA36,\"{\",CHAR(160),IG$1)),FIND(CHAR(160),SUBSTITUTE($AA36,\"}\",CHAR(160),IG$1))-FIND(CHAR(160),SUBSTITUTE($AA36,\"{\",CHAR(160),IG$1))+1),\"\")","v":""},{"$f":"IFERROR(MID($AA36,FIND(CHAR(160),SUBSTITUTE($AA36,\"{\",CHAR(160),IH$1)),FIND(CHAR(160),SUBSTITUTE($AA36,\"}\",CHAR(160),IH$1))-FIND(CHAR(160),SUBSTITUTE($AA36,\"{\",CHAR(160),IH$1))+1),\"\")","v":""},{"$f":"IFERROR(MID($AA36,FIND(CHAR(160),SUBSTITUTE($AA36,\"{\",CHAR(160),II$1)),FIND(CHAR(160),SUBSTITUTE($AA36,\"}\",CHAR(160),II$1))-FIND(CHAR(160),SUBSTITUTE($AA36,\"{\",CHAR(160),II$1))+1),\"\")","v":""},{"$f":"IFERROR(MID($AA36,FIND(CHAR(160),SUBSTITUTE($AA36,\"{\",CHAR(160),IJ$1)),FIND(CHAR(160),SUBSTITUTE($AA36,\"}\",CHAR(160),IJ$1))-FIND(CHAR(160),SUBSTITUTE($AA36,\"{\",CHAR(160),IJ$1))+1),\"\")","v":""},{"$f":"IFERROR(MID($AA36,FIND(CHAR(160),SUBSTITUTE($AA36,\"{\",CHAR(160),IK$1)),FIND(CHAR(160),SUBSTITUTE($AA36,\"}\",CHAR(160),IK$1))-FIND(CHAR(160),SUBSTITUTE($AA36,\"{\",CHAR(160),IK$1))+1),\"\")","v":""},{"$f":"IFERROR(MID($AA36,FIND(CHAR(160),SUBSTITUTE($AA36,\"{\",CHAR(160),IL$1)),FIND(CHAR(160),SUBSTITUTE($AA36,\"}\",CHAR(160),IL$1))-FIND(CHAR(160),SUBSTITUTE($AA36,\"{\",CHAR(160),IL$1))+1),\"\")","v":""},{"$f":"IFERROR(MID($AA36,FIND(CHAR(160),SUBSTITUTE($AA36,\"{\",CHAR(160),IM$1)),FIND(CHAR(160),SUBSTITUTE($AA36,\"}\",CHAR(160),IM$1))-FIND(CHAR(160),SUBSTITUTE($AA36,\"{\",CHAR(160),IM$1))+1),\"\")","v":""},{"$f":"IFERROR(MID($AA36,FIND(CHAR(160),SUBSTITUTE($AA36,\"{\",CHAR(160),IN$1)),FIND(CHAR(160),SUBSTITUTE($AA36,\"}\",CHAR(160),IN$1))-FIND(CHAR(160),SUBSTITUTE($AA36,\"{\",CHAR(160),IN$1))+1),\"\")","v":""},{"$f":"IFERROR(MID($AB36,FIND(CHAR(160),SUBSTITUTE($AB36,\"{\",CHAR(160),IO$1)),FIND(CHAR(160),SUBSTITUTE($AB36,\"}\",CHAR(160),IO$1))-FIND(CHAR(160),SUBSTITUTE($AB36,\"{\",CHAR(160),IO$1))+1),\"\")","v":""},{"$f":"IFERROR(MID($AB36,FIND(CHAR(160),SUBSTITUTE($AB36,\"{\",CHAR(160),IP$1)),FIND(CHAR(160),SUBSTITUTE($AB36,\"}\",CHAR(160),IP$1))-FIND(CHAR(160),SUBSTITUTE($AB36,\"{\",CHAR(160),IP$1))+1),\"\")","v":""},{"$f":"IFERROR(MID($AB36,FIND(CHAR(160),SUBSTITUTE($AB36,\"{\",CHAR(160),IQ$1)),FIND(CHAR(160),SUBSTITUTE($AB36,\"}\",CHAR(160),IQ$1))-FIND(CHAR(160),SUBSTITUTE($AB36,\"{\",CHAR(160),IQ$1))+1),\"\")","v":""},{"$f":"IFERROR(MID($AB36,FIND(CHAR(160),SUBSTITUTE($AB36,\"{\",CHAR(160),IR$1)),FIND(CHAR(160),SUBSTITUTE($AB36,\"}\",CHAR(160),IR$1))-FIND(CHAR(160),SUBSTITUTE($AB36,\"{\",CHAR(160),IR$1))+1),\"\")","v":""},{"$f":"IFERROR(MID($AB36,FIND(CHAR(160),SUBSTITUTE($AB36,\"{\",CHAR(160),IS$1)),FIND(CHAR(160),SUBSTITUTE($AB36,\"}\",CHAR(160),IS$1))-FIND(CHAR(160),SUBSTITUTE($AB36,\"{\",CHAR(160),IS$1))+1),\"\")","v":""},{"$f":"IFERROR(MID($AB36,FIND(CHAR(160),SUBSTITUTE($AB36,\"{\",CHAR(160),IT$1)),FIND(CHAR(160),SUBSTITUTE($AB36,\"}\",CHAR(160),IT$1))-FIND(CHAR(160),SUBSTITUTE($AB36,\"{\",CHAR(160),IT$1))+1),\"\")","v":""},{"$f":"IFERROR(MID($AB36,FIND(CHAR(160),SUBSTITUTE($AB36,\"{\",CHAR(160),IU$1)),FIND(CHAR(160),SUBSTITUTE($AB36,\"}\",CHAR(160),IU$1))-FIND(CHAR(160),SUBSTITUTE($AB36,\"{\",CHAR(160),IU$1))+1),\"\")","v":""},{"$f":"IFERROR(MID($AB36,FIND(CHAR(160),SUBSTITUTE($AB36,\"{\",CHAR(160),IV$1)),FIND(CHAR(160),SUBSTITUTE($AB36,\"}\",CHAR(160),IV$1))-FIND(CHAR(160),SUBSTITUTE($AB36,\"{\",CHAR(160),IV$1))+1),\"\")","v":""},{"$f":"IFERROR(MID($AB36,FIND(CHAR(160),SUBSTITUTE($AB36,\"{\",CHAR(160),IW$1)),FIND(CHAR(160),SUBSTITUTE($AB36,\"}\",CHAR(160),IW$1))-FIND(CHAR(160),SUBSTITUTE($AB36,\"{\",CHAR(160),IW$1))+1),\"\")","v":""},{"$f":"IFERROR(MID($AB36,FIND(CHAR(160),SUBSTITUTE($AB36,\"{\",CHAR(160),IX$1)),FIND(CHAR(160),SUBSTITUTE($AB36,\"}\",CHAR(160),IX$1))-FIND(CHAR(160),SUBSTITUTE($AB36,\"{\",CHAR(160),IX$1))+1),\"\")","v":""},null,{"$f":"10-COUNTIF(DU36:ED36,\"\")","v":4}]
["C&I Agricultural Solutions","OTHER: High Volume Low Speed Fans (14,16,18, 20 & 24 foot diameters)","AOLSF","2021-07-01","2022-06-30","Per Measure",1165,0,"Per Measure",1000,0,"2016-07-01","2022-06-30","Calculated","{Measure:Quantity} * (({Existing Fan HP} / 0.80 - {Fan HP} / ({Motor Efficiency}/100) ) * 0.746 * 0.80) * 3660",1E-4,null,"{Measure:Quantity} * (({Existing Fan HP} / 0.80 - {Fan HP} / ({Motor Efficiency}/100) ) * 0.746 * 0.80)",null,null,"{Measure:Quantity} * (({Existing Fan HP} / 0.80 - {Fan HP} / ({Motor Efficiency}/100) ) * 0.746 * 0.80) * {Factor:WinterCF}","{Measure:Quantity} * (({Existing Fan HP} / 0.80 - {Fan HP} / ({Motor Efficiency}/100) ) * 0.746 * 0.80) *{Factor:SummerCF}",null,null,null,null,null,null,"2020-04-01","2022-06-30",15,0.67400000000000004,0.32600000000000001,0.436,0.23200000000000001,0.217,0.115,1,1.1220000000000001,1,0.52,1.6E-2,null,{"$f":"DU37","v":"{Fan HP}"},1,{"$f":"DV37","v":"{Motor Efficiency}"},5,{"$f":"DW37","v":"{Measure:Quantity}"},3,{"$f":"DX37","v":"{Existing Fan HP}"},90,{"$f":"DY37","v":""},null,{"$f":"DZ37","v":""},null,{"$f":"EA37","v":""},null,{"$f":"EB37","v":""},null,{"$f":"EC37","v":""},null,{"$f":"ED37","v":""},null,{"$f":"AS37 * ((AU37 / 0.8 - AW37 / (AY37/100) ) * 0.746 * 0.8) * 3660","v":6370.8400000000011},{"$f":"0.0001","v":1E-4},0,{"$f":"AS37 * ((AU37 / 0.8 - AW37 / (AY37/100) ) * 0.746 * 0.8)","v":1.740666666666667},0,0,{"$f":"AS37 * ((AU37 / 0.8 - AW37 / (AY37/100) ) * 0.746 * 0.8) * AF37","v":1.1732093333333335},{"$f":"AS37 * ((AU37 / 0.8 - AW37 / (AY37/100) ) * 0.746 * 0.8) *AG37","v":0.56745733333333348},0,0,0,0,0,0,null,"Res","Default DR",{"$f":"Benefits(BL37,BR37,BS37,BT37,BU37,BV37,BW37,BX37,BY37,BZ37,AE37,AH37,AI37,AJ37,AK37,AL37,AM37,AN37,AO37,AP37,CA37,CB37)","v":9519.323325598818},5486.2976732987281,0,0,0,0,0,0,0,{"$f":"SUMPRODUCT(CC37:CK37,--(CC37:CK37>0))","v":15005.620998897546},{"$f":"-SUMPRODUCT(CC37:CK37,--(CC37:CK37<0))","v":0},null,{"$f":"1165","v":1165},null,null,{"$f":"CM37+CO37","v":1165},{"$f":"IF(NetOrGross=\"Net\",(1-AO37+AP37),1)","v":1},{"$f":"(SUMPRODUCT(CC37:CJ37,--(CC37:CJ37>0))+CN37)*CS37/((-SUMPRODUCT(CC37:CJ37,--(CC37:CJ37<0))+MAX(CO37,CV37)+CP37+CQ37)*CS37+IF(FRIncentives=\"Yes\",CV37*(1-CS37),0))","v":12.880361372444245},1,{"$f":"1000","v":1000},null,"Electric","y",null,{"$f":"IF(F37=\"Manual Entry\",\"Manual\",IF(G37=\"\",0,\"X=\"&SUBSTITUTE(SUBSTITUTE(SUBSTITUTE(SUBSTITUTE(SUBSTITUTE(SUBSTITUTE(SUBSTITUTE(SUBSTITUTE(SUBSTITUTE(SUBSTITUTE(SUBSTITUTE(SUBSTITUTE(G37,$ED37,$ED$2&ROW($ED37)),$EC37,$EC$2&ROW($EC37)),$EB37,$EB$2&ROW($EB37)),$EA37,$EA$2&ROW($EA37)),$DZ37,$DZ$2&ROW($DZ37)),$DY37,$DY$2&ROW($DY37)),$DX37,$DX$2&ROW($DX37)),$DW37,$DW$2&ROW($DW37)),$DV37,$DV$2&ROW($DV37)),$DU37,$DU$2&ROW($DU37)),$DT37,$DT$2&ROW($DT37)),$DS37,$DS$2&ROW($DS37))))","v":"X=1165"},{"$f":"IF(I37=\"Manual Entry\",\"Manual\",IF(J37=\"\",0,\"X=\"&SUBSTITUTE(SUBSTITUTE(SUBSTITUTE(SUBSTITUTE(SUBSTITUTE(SUBSTITUTE(SUBSTITUTE(SUBSTITUTE(SUBSTITUTE(SUBSTITUTE(SUBSTITUTE(SUBSTITUTE(J37,$ED37,$ED$2&ROW($ED37)),$EC37,$EC$2&ROW($EC37)),$EB37,$EB$2&ROW($EB37)),$EA37,$EA$2&ROW($EA37)),$DZ37,$DZ$2&ROW($DZ37)),$DY37,$DY$2&ROW($DY37)),$DX37,$DX$2&ROW($DX37)),$DW37,$DW$2&ROW($DW37)),$DV37,$DV$2&ROW($DV37)),$DU37,$DU$2&ROW($DU37)),$DT37,$DT$2&ROW($DT37)),$DS37,$DS$2&ROW($DS37))))","v":"X=1000"},{"$f":"IF(O37=\"\",0,\"X=\"&SUBSTITUTE(SUBSTITUTE(SUBSTITUTE(SUBSTITUTE(SUBSTITUTE(SUBSTITUTE(SUBSTITUTE(SUBSTITUTE(SUBSTITUTE(SUBSTITUTE(SUBSTITUTE(SUBSTITUTE(O37,$ED37,$ED$2&ROW($ED37)),$EC37,$EC$2&ROW($EC37)),$EB37,$EB$2&ROW($EB37)),$EA37,$EA$2&ROW($EA37)),$DZ37,$DZ$2&ROW($DZ37)),$DY37,$DY$2&ROW($DY37)),$DX37,$DX$2&ROW($DX37)),$DW37,$DW$2&ROW($DW37)),$DV37,$DV$2&ROW($DV37)),$DU37,$DU$2&ROW($DU37)),$DT37,$DT$2&ROW($DT37)),$DS37,$DS$2&ROW($DS37)))","v":"X=AW37 * ((AY37 / 0.80 - AS37 / (AU37/100) ) * 0.746 * 0.80) * 3660"},{"$f":"IF(P37=\"\",0,\"X=\"&SUBSTITUTE(SUBSTITUTE(SUBSTITUTE(SUBSTITUTE(SUBSTITUTE(SUBSTITUTE(SUBSTITUTE(SUBSTITUTE(SUBSTITUTE(SUBSTITUTE(SUBSTITUTE(SUBSTITUTE(P37,$ED37,$ED$2&ROW($ED37)),$EC37,$EC$2&ROW($EC37)),$EB37,$EB$2&ROW($EB37)),$EA37,$EA$2&ROW($EA37)),$DZ37,$DZ$2&ROW($DZ37)),$DY37,$DY$2&ROW($DY37)),$DX37,$DX$2&ROW($DX37)),$DW37,$DW$2&ROW($DW37)),$DV37,$DV$2&ROW($DV37)),$DU37,$DU$2&ROW($DU37)),$DT37,$DT$2&ROW($DT37)),$DS37,$DS$2&ROW($DS37)))","v":"X=0.0001"},{"$f":"IF(Q37=\"\",0,\"X=\"&SUBSTITUTE(SUBSTITUTE(SUBSTITUTE(SUBSTITUTE(SUBSTITUTE(SUBSTITUTE(SUBSTITUTE(SUBSTITUTE(SUBSTITUTE(SUBSTITUTE(SUBSTITUTE(SUBSTITUTE(Q37,$ED37,$ED$2&ROW($ED37)),$EC37,$EC$2&ROW($EC37)),$EB37,$EB$2&ROW($EB37)),$EA37,$EA$2&ROW($EA37)),$DZ37,$DZ$2&ROW($DZ37)),$DY37,$DY$2&ROW($DY37)),$DX37,$DX$2&ROW($DX37)),$DW37,$DW$2&ROW($DW37)),$DV37,$DV$2&ROW($DV37)),$DU37,$DU$2&ROW($DU37)),$DT37,$DT$2&ROW($DT37)),$DS37,$DS$2&ROW($DS37)))","v":0},{"$f":"IF(R37=\"\",0,\"X=\"&SUBSTITUTE(SUBSTITUTE(SUBSTITUTE(SUBSTITUTE(SUBSTITUTE(SUBSTITUTE(SUBSTITUTE(SUBSTITUTE(SUBSTITUTE(SUBSTITUTE(SUBSTITUTE(SUBSTITUTE(R37,$ED37,$ED$2&ROW($ED37)),$EC37,$EC$2&ROW($EC37)),$EB37,$EB$2&ROW($EB37)),$EA37,$EA$2&ROW($EA37)),$DZ37,$DZ$2&ROW($DZ37)),$DY37,$DY$2&ROW($DY37)),$DX37,$DX$2&ROW($DX37)),$DW37,$DW$2&ROW($DW37)),$DV37,$DV$2&ROW($DV37)),$DU37,$DU$2&ROW($DU37)),$DT37,$DT$2&ROW($DT37)),$DS37,$DS$2&ROW($DS37)))","v":"X=AW37 * ((AY37 / 0.80 - AS37 / (AU37/100) ) * 0.746 * 0.80)"},{"$f":"IF(S37=\"\",0,\"X=\"&SUBSTITUTE(SUBSTITUTE(SUBSTITUTE(SUBSTITUTE(SUBSTITUTE(SUBSTITUTE(SUBSTITUTE(SUBSTITUTE(SUBSTITUTE(SUBSTITUTE(SUBSTITUTE(SUBSTITUTE(S37,$ED37,$ED$2&ROW($ED37)),$EC37,$EC$2&ROW($EC37)),$EB37,$EB$2&ROW($EB37)),$EA37,$EA$2&ROW($EA37)),$DZ37,$DZ$2&ROW($DZ37)),$DY37,$DY$2&ROW($DY37)),$DX37,$DX$2&ROW($DX37)),$DW37,$DW$2&ROW($DW37)),$DV37,$DV$2&ROW($DV37)),$DU37,$DU$2&ROW($DU37)),$DT37,$DT$2&ROW($DT37)),$DS37,$DS$2&ROW($DS37)))","v":0},{"$f":"IF(T37=\"\",0,\"X=\"&SUBSTITUTE(SUBSTITUTE(SUBSTITUTE(SUBSTITUTE(SUBSTITUTE(SUBSTITUTE(SUBSTITUTE(SUBSTITUTE(SUBSTITUTE(SUBSTITUTE(SUBSTITUTE(SUBSTITUTE(T37,$ED37,$ED$2&ROW($ED37)),$EC37,$EC$2&ROW($EC37)),$EB37,$EB$2&ROW($EB37)),$EA37,$EA$2&ROW($EA37)),$DZ37,$DZ$2&ROW($DZ37)),$DY37,$DY$2&ROW($DY37)),$DX37,$DX$2&ROW($DX37)),$DW37,$DW$2&ROW($DW37)),$DV37,$DV$2&ROW($DV37)),$DU37,$DU$2&ROW($DU37)),$DT37,$DT$2&ROW($DT37)),$DS37,$DS$2&ROW($DS37)))","v":0},{"$f":"IF(U37=\"\",0,\"X=\"&SUBSTITUTE(SUBSTITUTE(SUBSTITUTE(SUBSTITUTE(SUBSTITUTE(SUBSTITUTE(SUBSTITUTE(SUBSTITUTE(SUBSTITUTE(SUBSTITUTE(SUBSTITUTE(SUBSTITUTE(U37,$ED37,$ED$2&ROW($ED37)),$EC37,$EC$2&ROW($EC37)),$EB37,$EB$2&ROW($EB37)),$EA37,$EA$2&ROW($EA37)),$DZ37,$DZ$2&ROW($DZ37)),$DY37,$DY$2&ROW($DY37)),$DX37,$DX$2&ROW($DX37)),$DW37,$DW$2&ROW($DW37)),$DV37,$DV$2&ROW($DV37)),$DU37,$DU$2&ROW($DU37)),$DT37,$DT$2&ROW($DT37)),$DS37,$DS$2&ROW($DS37)))","v":"X=AW37 * ((AY37 / 0.80 - AS37 / (AU37/100) ) * 0.746 * 0.80) * AF37"},{"$f":"IF(V37=\"\",0,\"X=\"&SUBSTITUTE(SUBSTITUTE(SUBSTITUTE(SUBSTITUTE(SUBSTITUTE(SUBSTITUTE(SUBSTITUTE(SUBSTITUTE(SUBSTITUTE(SUBSTITUTE(SUBSTITUTE(SUBSTITUTE(V37,$ED37,$ED$2&ROW($ED37)),$EC37,$EC$2&ROW($EC37)),$EB37,$EB$2&ROW($EB37)),$EA37,$EA$2&ROW($EA37)),$DZ37,$DZ$2&ROW($DZ37)),$DY37,$DY$2&ROW($DY37)),$DX37,$DX$2&ROW($DX37)),$DW37,$DW$2&ROW($DW37)),$DV37,$DV$2&ROW($DV37)),$DU37,$DU$2&ROW($DU37)),$DT37,$DT$2&ROW($DT37)),$DS37,$DS$2&ROW($DS37)))","v":"X=AW37 * ((AY37 / 0.80 - AS37 / (AU37/100) ) * 0.746 * 0.80) *AG37"},{"$f":"IF(W37=\"\",0,\"X=\"&SUBSTITUTE(SUBSTITUTE(SUBSTITUTE(SUBSTITUTE(SUBSTITUTE(SUBSTITUTE(SUBSTITUTE(SUBSTITUTE(SUBSTITUTE(SUBSTITUTE(SUBSTITUTE(SUBSTITUTE(W37,$ED37,$ED$2&ROW($ED37)),$EC37,$EC$2&ROW($EC37)),$EB37,$EB$2&ROW($EB37)),$EA37,$EA$2&ROW($EA37)),$DZ37,$DZ$2&ROW($DZ37)),$DY37,$DY$2&ROW($DY37)),$DX37,$DX$2&ROW($DX37)),$DW37,$DW$2&ROW($DW37)),$DV37,$DV$2&ROW($DV37)),$DU37,$DU$2&ROW($DU37)),$DT37,$DT$2&ROW($DT37)),$DS37,$DS$2&ROW($DS37)))","v":0},{"$f":"IF(X37=\"\",0,\"X=\"&SUBSTITUTE(SUBSTITUTE(SUBSTITUTE(SUBSTITUTE(SUBSTITUTE(SUBSTITUTE(SUBSTITUTE(SUBSTITUTE(SUBSTITUTE(SUBSTITUTE(SUBSTITUTE(SUBSTITUTE(X37,$ED37,$ED$2&ROW($ED37)),$EC37,$EC$2&ROW($EC37)),$EB37,$EB$2&ROW($EB37)),$EA37,$EA$2&ROW($EA37)),$DZ37,$DZ$2&ROW($DZ37)),$DY37,$DY$2&ROW($DY37)),$DX37,$DX$2&ROW($DX37)),$DW37,$DW$2&ROW($DW37)),$DV37,$DV$2&ROW($DV37)),$DU37,$DU$2&ROW($DU37)),$DT37,$DT$2&ROW($DT37)),$DS37,$DS$2&ROW($DS37)))","v":0},{"$f":"IF(Y37=\"\",0,\"X=\"&SUBSTITUTE(SUBSTITUTE(SUBSTITUTE(SUBSTITUTE(SUBSTITUTE(SUBSTITUTE(SUBSTITUTE(SUBSTITUTE(SUBSTITUTE(SUBSTITUTE(SUBSTITUTE(SUBSTITUTE(Y37,$ED37,$ED$2&ROW($ED37)),$EC37,$EC$2&ROW($EC37)),$EB37,$EB$2&ROW($EB37)),$EA37,$EA$2&ROW($EA37)),$DZ37,$DZ$2&ROW($DZ37)),$DY37,$DY$2&ROW($DY37)),$DX37,$DX$2&ROW($DX37)),$DW37,$DW$2&ROW($DW37)),$DV37,$DV$2&ROW($DV37)),$DU37,$DU$2&ROW($DU37)),$DT37,$DT$2&ROW($DT37)),$DS37,$DS$2&ROW($DS37)))","v":0},{"$f":"IF(Z37=\"\",0,\"X=\"&SUBSTITUTE(SUBSTITUTE(SUBSTITUTE(SUBSTITUTE(SUBSTITUTE(SUBSTITUTE(SUBSTITUTE(SUBSTITUTE(SUBSTITUTE(SUBSTITUTE(SUBSTITUTE(SUBSTITUTE(Z37,$ED37,$ED$2&ROW($ED37)),$EC37,$EC$2&ROW($EC37)),$EB37,$EB$2&ROW($EB37)),$EA37,$EA$2&ROW($EA37)),$DZ37,$DZ$2&ROW($DZ37)),$DY37,$DY$2&ROW($DY37)),$DX37,$DX$2&ROW($DX37)),$DW37,$DW$2&ROW($DW37)),$DV37,$DV$2&ROW($DV37)),$DU37,$DU$2&ROW($DU37)),$DT37,$DT$2&ROW($DT37)),$DS37,$DS$2&ROW($DS37)))","v":0},{"$f":"IF(AA37=\"\",0,\"X=\"&SUBSTITUTE(SUBSTITUTE(SUBSTITUTE(SUBSTITUTE(SUBSTITUTE(SUBSTITUTE(SUBSTITUTE(SUBSTITUTE(SUBSTITUTE(SUBSTITUTE(SUBSTITUTE(SUBSTITUTE(AA37,$ED37,$ED$2&ROW($ED37)),$EC37,$EC$2&ROW($EC37)),$EB37,$EB$2&ROW($EB37)),$EA37,$EA$2&ROW($EA37)),$DZ37,$DZ$2&ROW($DZ37)),$DY37,$DY$2&ROW($DY37)),$DX37,$DX$2&ROW($DX37)),$DW37,$DW$2&ROW($DW37)),$DV37,$DV$2&ROW($DV37)),$DU37,$DU$2&ROW($DU37)),$DT37,$DT$2&ROW($DT37)),$DS37,$DS$2&ROW($DS37)))","v":0},{"$f":"IF(AB37=\"\",0,\"X=\"&SUBSTITUTE(SUBSTITUTE(SUBSTITUTE(SUBSTITUTE(SUBSTITUTE(SUBSTITUTE(SUBSTITUTE(SUBSTITUTE(SUBSTITUTE(SUBSTITUTE(SUBSTITUTE(SUBSTITUTE(AB37,$ED37,$ED$2&ROW($ED37)),$EC37,$EC$2&ROW($EC37)),$EB37,$EB$2&ROW($EB37)),$EA37,$EA$2&ROW($EA37)),$DZ37,$DZ$2&ROW($DZ37)),$DY37,$DY$2&ROW($DY37)),$DX37,$DX$2&ROW($DX37)),$DW37,$DW$2&ROW($DW37)),$DV37,$DV$2&ROW($DV37)),$DU37,$DU$2&ROW($DU37)),$DT37,$DT$2&ROW($DT37)),$DS37,$DS$2&ROW($DS37)))","v":0},null,null,"{Factor:WinterCF}","{Factor:SummerCF}",{"$f":"IFERROR(INDEX($EG37:$IV37,MATCH(0,COUNTIF($DR37:DT37,$EG37:$IV37),0)),\"\")","v":"{Fan HP}"},{"$f":"IFERROR(INDEX($EG37:$IV37,MATCH(0,COUNTIF($DR37:DU37,$EG37:$IV37),0)),\"\")","v":"{Motor Efficiency}"},{"$f":"IFERROR(INDEX($EG37:$IV37,MATCH(0,COUNTIF($DR37:DV37,$EG37:$IV37),0)),\"\")","v":"{Measure:Quantity}"},{"$f":"IFERROR(INDEX($EG37:$IV37,MATCH(0,COUNTIF($DR37:DW37,$EG37:$IV37),0)),\"\")","v":"{Existing Fan HP}"},{"$f":"IFERROR(INDEX($EG37:$IV37,MATCH(0,COUNTIF($DR37:DX37,$EG37:$IV37),0)),\"\")","v":""},{"$f":"IFERROR(INDEX($EG37:$IV37,MATCH(0,COUNTIF($DR37:DY37,$EG37:$IV37),0)),\"\")","v":""},{"$f":"IFERROR(INDEX($EG37:$IV37,MATCH(0,COUNTIF($DR37:DZ37,$EG37:$IV37),0)),\"\")","v":""},{"$f":"IFERROR(INDEX($EG37:$IV37,MATCH(0,COUNTIF($DR37:EA37,$EG37:$IV37),0)),\"\")","v":""},{"$f":"IFERROR(INDEX($EG37:$IV37,MATCH(0,COUNTIF($DR37:EB37,$EG37:$IV37),0)),\"\")","v":""},{"$f":"IFERROR(INDEX($EG37:$IV37,MATCH(0,COUNTIF($DR37:EC37,$EG37:$IV37),0)),\"\")","v":""},null,null,{"$f":"IFERROR(MID($G37,FIND(CHAR(160),SUBSTITUTE($G37,\"{\",CHAR(160),EG$1)),FIND(CHAR(160),SUBSTITUTE($G37,\"}\",CHAR(160),EG$1))-FIND(CHAR(160),SUBSTITUTE($G37,\"{\",CHAR(160),EG$1))+1),\"\")","v":""},{"$f":"IFERROR(MID($G37,FIND(CHAR(160),SUBSTITUTE($G37,\"{\",CHAR(160),EH$1)),FIND(CHAR(160),SUBSTITUTE($G37,\"}\",CHAR(160),EH$1))-FIND(CHAR(160),SUBSTITUTE($G37,\"{\",CHAR(160),EH$1))+1),\"\")","v":""},{"$f":"IFERROR(MID($G37,FIND(CHAR(160),SUBSTITUTE($G37,\"{\",CHAR(160),EI$1)),FIND(CHAR(160),SUBSTITUTE($G37,\"}\",CHAR(160),EI$1))-FIND(CHAR(160),SUBSTITUTE($G37,\"{\",CHAR(160),EI$1))+1),\"\")","v":""},{"$f":"IFERROR(MID($G37,FIND(CHAR(160),SUBSTITUTE($G37,\"{\",CHAR(160),EJ$1)),FIND(CHAR(160),SUBSTITUTE($G37,\"}\",CHAR(160),EJ$1))-FIND(CHAR(160),SUBSTITUTE($G37,\"{\",CHAR(160),EJ$1))+1),\"\")","v":""},{"$f":"IFERROR(MID($G37,FIND(CHAR(160),SUBSTITUTE($G37,\"{\",CHAR(160),EK$1)),FIND(CHAR(160),SUBSTITUTE($G37,\"}\",CHAR(160),EK$1))-FIND(CHAR(160),SUBSTITUTE($G37,\"{\",CHAR(160),EK$1))+1),\"\")","v":""},{"$f":"IFERROR(MID($G37,FIND(CHAR(160),SUBSTITUTE($G37,\"{\",CHAR(160),EL$1)),FIND(CHAR(160),SUBSTITUTE($G37,\"}\",CHAR(160),EL$1))-FIND(CHAR(160),SUBSTITUTE($G37,\"{\",CHAR(160),EL$1))+1),\"\")","v":""},{"$f":"IFERROR(MID($G37,FIND(CHAR(160),SUBSTITUTE($G37,\"{\",CHAR(160),EM$1)),FIND(CHAR(160),SUBSTITUTE($G37,\"}\",CHAR(160),EM$1))-FIND(CHAR(160),SUBSTITUTE($G37,\"{\",CHAR(160),EM$1))+1),\"\")","v":""},{"$f":"IFERROR(MID($G37,FIND(CHAR(160),SUBSTITUTE($G37,\"{\",CHAR(160),EN$1)),FIND(CHAR(160),SUBSTITUTE($G37,\"}\",CHAR(160),EN$1))-FIND(CHAR(160),SUBSTITUTE($G37,\"{\",CHAR(160),EN$1))+1),\"\")","v":""},{"$f":"IFERROR(MID($G37,FIND(CHAR(160),SUBSTITUTE($G37,\"{\",CHAR(160),EO$1)),FIND(CHAR(160),SUBSTITUTE($G37,\"}\",CHAR(160),EO$1))-FIND(CHAR(160),SUBSTITUTE($G37,\"{\",CHAR(160),EO$1))+1),\"\")","v":""},{"$f":"IFERROR(MID($G37,FIND(CHAR(160),SUBSTITUTE($G37,\"{\",CHAR(160),EP$1)),FIND(CHAR(160),SUBSTITUTE($G37,\"}\",CHAR(160),EP$1))-FIND(CHAR(160),SUBSTITUTE($G37,\"{\",CHAR(160),EP$1))+1),\"\")","v":""},{"$f":"IFERROR(MID($J37,FIND(CHAR(160),SUBSTITUTE($J37,\"{\",CHAR(160),EQ$1)),FIND(CHAR(160),SUBSTITUTE($J37,\"}\",CHAR(160),EQ$1))-FIND(CHAR(160),SUBSTITUTE($J37,\"{\",CHAR(160),EQ$1))+1),\"\")","v":""},{"$f":"IFERROR(MID($J37,FIND(CHAR(160),SUBSTITUTE($J37,\"{\",CHAR(160),ER$1)),FIND(CHAR(160),SUBSTITUTE($J37,\"}\",CHAR(160),ER$1))-FIND(CHAR(160),SUBSTITUTE($J37,\"{\",CHAR(160),ER$1))+1),\"\")","v":""},{"$f":"IFERROR(MID($J37,FIND(CHAR(160),SUBSTITUTE($J37,\"{\",CHAR(160),ES$1)),FIND(CHAR(160),SUBSTITUTE($J37,\"}\",CHAR(160),ES$1))-FIND(CHAR(160),SUBSTITUTE($J37,\"{\",CHAR(160),ES$1))+1),\"\")","v":""},{"$f":"IFERROR(MID($J37,FIND(CHAR(160),SUBSTITUTE($J37,\"{\",CHAR(160),ET$1)),FIND(CHAR(160),SUBSTITUTE($J37,\"}\",CHAR(160),ET$1))-FIND(CHAR(160),SUBSTITUTE($J37,\"{\",CHAR(160),ET$1))+1),\"\")","v":""},{"$f":"IFERROR(MID($J37,FIND(CHAR(160),SUBSTITUTE($J37,\"{\",CHAR(160),EU$1)),FIND(CHAR(160),SUBSTITUTE($J37,\"}\",CHAR(160),EU$1))-FIND(CHAR(160),SUBSTITUTE($J37,\"{\",CHAR(160),EU$1))+1),\"\")","v":""},{"$f":"IFERROR(MID($J37,FIND(CHAR(160),SUBSTITUTE($J37,\"{\",CHAR(160),EV$1)),FIND(CHAR(160),SUBSTITUTE($J37,\"}\",CHAR(160),EV$1))-FIND(CHAR(160),SUBSTITUTE($J37,\"{\",CHAR(160),EV$1))+1),\"\")","v":""},{"$f":"IFERROR(MID($J37,FIND(CHAR(160),SUBSTITUTE($J37,\"{\",CHAR(160),EW$1)),FIND(CHAR(160),SUBSTITUTE($J37,\"}\",CHAR(160),EW$1))-FIND(CHAR(160),SUBSTITUTE($J37,\"{\",CHAR(160),EW$1))+1),\"\")","v":""},{"$f":"IFERROR(MID($J37,FIND(CHAR(160),SUBSTITUTE($J37,\"{\",CHAR(160),EX$1)),FIND(CHAR(160),SUBSTITUTE($J37,\"}\",CHAR(160),EX$1))-FIND(CHAR(160),SUBSTITUTE($J37,\"{\",CHAR(160),EX$1))+1),\"\")","v":""},{"$f":"IFERROR(MID($J37,FIND(CHAR(160),SUBSTITUTE($J37,\"{\",CHAR(160),EY$1)),FIND(CHAR(160),SUBSTITUTE($J37,\"}\",CHAR(160),EY$1))-FIND(CHAR(160),SUBSTITUTE($J37,\"{\",CHAR(160),EY$1))+1),\"\")","v":""},{"$f":"IFERROR(MID($J37,FIND(CHAR(160),SUBSTITUTE($J37,\"{\",CHAR(160),EZ$1)),FIND(CHAR(160),SUBSTITUTE($J37,\"}\",CHAR(160),EZ$1))-FIND(CHAR(160),SUBSTITUTE($J37,\"{\",CHAR(160),EZ$1))+1),\"\")","v":""},{"$f":"IFERROR(MID($J37,FIND(CHAR(160),SUBSTITUTE($J37,\"{\",CHAR(160),FA$1)),FIND(CHAR(160),SUBSTITUTE($J37,\"}\",CHAR(160),FA$1))-FIND(CHAR(160),SUBSTITUTE($J37,\"{\",CHAR(160),FA$1))+1),\"\")","v":""},{"$f":"IFERROR(MID($J37,FIND(CHAR(160),SUBSTITUTE($J37,\"{\",CHAR(160),FB$1)),FIND(CHAR(160),SUBSTITUTE($J37,\"}\",CHAR(160),FB$1))-FIND(CHAR(160),SUBSTITUTE($J37,\"{\",CHAR(160),FB$1))+1),\"\")","v":""},{"$f":"IFERROR(MID($O37,FIND(CHAR(160),SUBSTITUTE($O37,\"{\",CHAR(160),FC$1)),FIND(CHAR(160),SUBSTITUTE($O37,\"}\",CHAR(160),FC$1))-FIND(CHAR(160),SUBSTITUTE($O37,\"{\",CHAR(160),FC$1))+1),\"\")","v":"{Fan HP}"},{"$f":"IFERROR(MID($O37,FIND(CHAR(160),SUBSTITUTE($O37,\"{\",CHAR(160),FD$1)),FIND(CHAR(160),SUBSTITUTE($O37,\"}\",CHAR(160),FD$1))-FIND(CHAR(160),SUBSTITUTE($O37,\"{\",CHAR(160),FD$1))+1),\"\")","v":"{Motor Efficiency}"},{"$f":"IFERROR(MID($O37,FIND(CHAR(160),SUBSTITUTE($O37,\"{\",CHAR(160),FE$1)),FIND(CHAR(160),SUBSTITUTE($O37,\"}\",CHAR(160),FE$1))-FIND(CHAR(160),SUBSTITUTE($O37,\"{\",CHAR(160),FE$1))+1),\"\")","v":""},{"$f":"IFERROR(MID($O37,FIND(CHAR(160),SUBSTITUTE($O37,\"{\",CHAR(160),FF$1)),FIND(CHAR(160),SUBSTITUTE($O37,\"}\",CHAR(160),FF$1))-FIND(CHAR(160),SUBSTITUTE($O37,\"{\",CHAR(160),FF$1))+1),\"\")","v":""},{"$f":"IFERROR(MID($O37,FIND(CHAR(160),SUBSTITUTE($O37,\"{\",CHAR(160),FG$1)),FIND(CHAR(160),SUBSTITUTE($O37,\"}\",CHAR(160),FG$1))-FIND(CHAR(160),SUBSTITUTE($O37,\"{\",CHAR(160),FG$1))+1),\"\")","v":""},{"$f":"IFERROR(MID($O37,FIND(CHAR(160),SUBSTITUTE($O37,\"{\",CHAR(160),FH$1)),FIND(CHAR(160),SUBSTITUTE($O37,\"}\",CHAR(160),FH$1))-FIND(CHAR(160),SUBSTITUTE($O37,\"{\",CHAR(160),FH$1))+1),\"\")","v":""},{"$f":"IFERROR(MID($O37,FIND(CHAR(160),SUBSTITUTE($O37,\"{\",CHAR(160),FI$1)),FIND(CHAR(160),SUBSTITUTE($O37,\"}\",CHAR(160),FI$1))-FIND(CHAR(160),SUBSTITUTE($O37,\"{\",CHAR(160),FI$1))+1),\"\")","v":""},{"$f":"IFERROR(MID($O37,FIND(CHAR(160),SUBSTITUTE($O37,\"{\",CHAR(160),FJ$1)),FIND(CHAR(160),SUBSTITUTE($O37,\"}\",CHAR(160),FJ$1))-FIND(CHAR(160),SUBSTITUTE($O37,\"{\",CHAR(160),FJ$1))+1),\"\")","v":""},{"$f":"IFERROR(MID($O37,FIND(CHAR(160),SUBSTITUTE($O37,\"{\",CHAR(160),FK$1)),FIND(CHAR(160),SUBSTITUTE($O37,\"}\",CHAR(160),FK$1))-FIND(CHAR(160),SUBSTITUTE($O37,\"{\",CHAR(160),FK$1))+1),\"\")","v":"{Measure:Quantity}"},{"$f":"IFERROR(MID($O37,FIND(CHAR(160),SUBSTITUTE($O37,\"{\",CHAR(160),FL$1)),FIND(CHAR(160),SUBSTITUTE($O37,\"}\",CHAR(160),FL$1))-FIND(CHAR(160),SUBSTITUTE($O37,\"{\",CHAR(160),FL$1))+1),\"\")","v":"{Existing Fan HP}"},{"$f":"IFERROR(MID($R37,FIND(CHAR(160),SUBSTITUTE($R37,\"{\",CHAR(160),FM$1)),FIND(CHAR(160),SUBSTITUTE($R37,\"}\",CHAR(160),FM$1))-FIND(CHAR(160),SUBSTITUTE($R37,\"{\",CHAR(160),FM$1))+1),\"\")","v":"{Fan HP}"},{"$f":"IFERROR(MID($R37,FIND(CHAR(160),SUBSTITUTE($R37,\"{\",CHAR(160),FN$1)),FIND(CHAR(160),SUBSTITUTE($R37,\"}\",CHAR(160),FN$1))-FIND(CHAR(160),SUBSTITUTE($R37,\"{\",CHAR(160),FN$1))+1),\"\")","v":"{Motor Efficiency}"},{"$f":"IFERROR(MID($R37,FIND(CHAR(160),SUBSTITUTE($R37,\"{\",CHAR(160),FO$1)),FIND(CHAR(160),SUBSTITUTE($R37,\"}\",CHAR(160),FO$1))-FIND(CHAR(160),SUBSTITUTE($R37,\"{\",CHAR(160),FO$1))+1),\"\")","v":""},{"$f":"IFERROR(MID($R37,FIND(CHAR(160),SUBSTITUTE($R37,\"{\",CHAR(160),FP$1)),FIND(CHAR(160),SUBSTITUTE($R37,\"}\",CHAR(160),FP$1))-FIND(CHAR(160),SUBSTITUTE($R37,\"{\",CHAR(160),FP$1))+1),\"\")","v":""},{"$f":"IFERROR(MID($R37,FIND(CHAR(160),SUBSTITUTE($R37,\"{\",CHAR(160),FQ$1)),FIND(CHAR(160),SUBSTITUTE($R37,\"}\",CHAR(160),FQ$1))-FIND(CHAR(160),SUBSTITUTE($R37,\"{\",CHAR(160),FQ$1))+1),\"\")","v":""},{"$f":"IFERROR(MID($R37,FIND(CHAR(160),SUBSTITUTE($R37,\"{\",CHAR(160),FR$1)),FIND(CHAR(160),SUBSTITUTE($R37,\"}\",CHAR(160),FR$1))-FIND(CHAR(160),SUBSTITUTE($R37,\"{\",CHAR(160),FR$1))+1),\"\")","v":""},{"$f":"IFERROR(MID($R37,FIND(CHAR(160),SUBSTITUTE($R37,\"{\",CHAR(160),FS$1)),FIND(CHAR(160),SUBSTITUTE($R37,\"}\",CHAR(160),FS$1))-FIND(CHAR(160),SUBSTITUTE($R37,\"{\",CHAR(160),FS$1))+1),\"\")","v":""},{"$f":"IFERROR(MID($R37,FIND(CHAR(160),SUBSTITUTE($R37,\"{\",CHAR(160),FT$1)),FIND(CHAR(160),SUBSTITUTE($R37,\"}\",CHAR(160),FT$1))-FIND(CHAR(160),SUBSTITUTE($R37,\"{\",CHAR(160),FT$1))+1),\"\")","v":""},{"$f":"IFERROR(MID($R37,FIND(CHAR(160),SUBSTITUTE($R37,\"{\",CHAR(160),FU$1)),FIND(CHAR(160),SUBSTITUTE($R37,\"}\",CHAR(160),FU$1))-FIND(CHAR(160),SUBSTITUTE($R37,\"{\",CHAR(160),FU$1))+1),\"\")","v":"{Measure:Quantity}"},{"$f":"IFERROR(MID($R37,FIND(CHAR(160),SUBSTITUTE($R37,\"{\",CHAR(160),FV$1)),FIND(CHAR(160),SUBSTITUTE($R37,\"}\",CHAR(160),FV$1))-FIND(CHAR(160),SUBSTITUTE($R37,\"{\",CHAR(160),FV$1))+1),\"\")","v":"{Existing Fan HP}"},{"$f":"IFERROR(MID($U37,FIND(CHAR(160),SUBSTITUTE($U37,\"{\",CHAR(160),FW$1)),FIND(CHAR(160),SUBSTITUTE($U37,\"}\",CHAR(160),FW$1))-FIND(CHAR(160),SUBSTITUTE($U37,\"{\",CHAR(160),FW$1))+1),\"\")","v":"{Fan HP}"},{"$f":"IFERROR(MID($U37,FIND(CHAR(160),SUBSTITUTE($U37,\"{\",CHAR(160),FX$1)),FIND(CHAR(160),SUBSTITUTE($U37,\"}\",CHAR(160),FX$1))-FIND(CHAR(160),SUBSTITUTE($U37,\"{\",CHAR(160),FX$1))+1),\"\")","v":"{Motor Efficiency}"},{"$f":"IFERROR(MID($U37,FIND(CHAR(160),SUBSTITUTE($U37,\"{\",CHAR(160),FY$1)),FIND(CHAR(160),SUBSTITUTE($U37,\"}\",CHAR(160),FY$1))-FIND(CHAR(160),SUBSTITUTE($U37,\"{\",CHAR(160),FY$1))+1),\"\")","v":"{Factor:WinterCF}"},{"$f":"IFERROR(MID($U37,FIND(CHAR(160),SUBSTITUTE($U37,\"{\",CHAR(160),FZ$1)),FIND(CHAR(160),SUBSTITUTE($U37,\"}\",CHAR(160),FZ$1))-FIND(CHAR(160),SUBSTITUTE($U37,\"{\",CHAR(160),FZ$1))+1),\"\")","v":""},{"$f":"IFERROR(MID($U37,FIND(CHAR(160),SUBSTITUTE($U37,\"{\",CHAR(160),GA$1)),FIND(CHAR(160),SUBSTITUTE($U37,\"}\",CHAR(160),GA$1))-FIND(CHAR(160),SUBSTITUTE($U37,\"{\",CHAR(160),GA$1))+1),\"\")","v":""},{"$f":"IFERROR(MID($U37,FIND(CHAR(160),SUBSTITUTE($U37,\"{\",CHAR(160),GB$1)),FIND(CHAR(160),SUBSTITUTE($U37,\"}\",CHAR(160),GB$1))-FIND(CHAR(160),SUBSTITUTE($U37,\"{\",CHAR(160),GB$1))+1),\"\")","v":""},{"$f":"IFERROR(MID($U37,FIND(CHAR(160),SUBSTITUTE($U37,\"{\",CHAR(160),GC$1)),FIND(CHAR(160),SUBSTITUTE($U37,\"}\",CHAR(160),GC$1))-FIND(CHAR(160),SUBSTITUTE($U37,\"{\",CHAR(160),GC$1))+1),\"\")","v":""},{"$f":"IFERROR(MID($U37,FIND(CHAR(160),SUBSTITUTE($U37,\"{\",CHAR(160),GD$1)),FIND(CHAR(160),SUBSTITUTE($U37,\"}\",CHAR(160),GD$1))-FIND(CHAR(160),SUBSTITUTE($U37,\"{\",CHAR(160),GD$1))+1),\"\")","v":""},{"$f":"IFERROR(MID($U37,FIND(CHAR(160),SUBSTITUTE($U37,\"{\",CHAR(160),GE$1)),FIND(CHAR(160),SUBSTITUTE($U37,\"}\",CHAR(160),GE$1))-FIND(CHAR(160),SUBSTITUTE($U37,\"{\",CHAR(160),GE$1))+1),\"\")","v":"{Measure:Quantity}"},{"$f":"IFERROR(MID($U37,FIND(CHAR(160),SUBSTITUTE($U37,\"{\",CHAR(160),GF$1)),FIND(CHAR(160),SUBSTITUTE($U37,\"}\",CHAR(160),GF$1))-FIND(CHAR(160),SUBSTITUTE($U37,\"{\",CHAR(160),GF$1))+1),\"\")","v":"{Existing Fan HP}"},{"$f":"IFERROR(MID($V37,FIND(CHAR(160),SUBSTITUTE($V37,\"{\",CHAR(160),GG$1)),FIND(CHAR(160),SUBSTITUTE($V37,\"}\",CHAR(160),GG$1))-FIND(CHAR(160),SUBSTITUTE($V37,\"{\",CHAR(160),GG$1))+1),\"\")","v":"{Fan HP}"},{"$f":"IFERROR(MID($V37,FIND(CHAR(160),SUBSTITUTE($V37,\"{\",CHAR(160),GH$1)),FIND(CHAR(160),SUBSTITUTE($V37,\"}\",CHAR(160),GH$1))-FIND(CHAR(160),SUBSTITUTE($V37,\"{\",CHAR(160),GH$1))+1),\"\")","v":"{Motor Efficiency}"},{"$f":"IFERROR(MID($V37,FIND(CHAR(160),SUBSTITUTE($V37,\"{\",CHAR(160),GI$1)),FIND(CHAR(160),SUBSTITUTE($V37,\"}\",CHAR(160),GI$1))-FIND(CHAR(160),SUBSTITUTE($V37,\"{\",CHAR(160),GI$1))+1),\"\")","v":"{Factor:SummerCF}"},{"$f":"IFERROR(MID($V37,FIND(CHAR(160),SUBSTITUTE($V37,\"{\",CHAR(160),GJ$1)),FIND(CHAR(160),SUBSTITUTE($V37,\"}\",CHAR(160),GJ$1))-FIND(CHAR(160),SUBSTITUTE($V37,\"{\",CHAR(160),GJ$1))+1),\"\")","v":""},{"$f":"IFERROR(MID($V37,FIND(CHAR(160),SUBSTITUTE($V37,\"{\",CHAR(160),GK$1)),FIND(CHAR(160),SUBSTITUTE($V37,\"}\",CHAR(160),GK$1))-FIND(CHAR(160),SUBSTITUTE($V37,\"{\",CHAR(160),GK$1))+1),\"\")","v":""},{"$f":"IFERROR(MID($V37,FIND(CHAR(160),SUBSTITUTE($V37,\"{\",CHAR(160),GL$1)),FIND(CHAR(160),SUBSTITUTE($V37,\"}\",CHAR(160),GL$1))-FIND(CHAR(160),SUBSTITUTE($V37,\"{\",CHAR(160),GL$1))+1),\"\")","v":""},{"$f":"IFERROR(MID($V37,FIND(CHAR(160),SUBSTITUTE($V37,\"{\",CHAR(160),GM$1)),FIND(CHAR(160),SUBSTITUTE($V37,\"}\",CHAR(160),GM$1))-FIND(CHAR(160),SUBSTITUTE($V37,\"{\",CHAR(160),GM$1))+1),\"\")","v":""},{"$f":"IFERROR(MID($V37,FIND(CHAR(160),SUBSTITUTE($V37,\"{\",CHAR(160),GN$1)),FIND(CHAR(160),SUBSTITUTE($V37,\"}\",CHAR(160),GN$1))-FIND(CHAR(160),SUBSTITUTE($V37,\"{\",CHAR(160),GN$1))+1),\"\")","v":""},{"$f":"IFERROR(MID($V37,FIND(CHAR(160),SUBSTITUTE($V37,\"{\",CHAR(160),GO$1)),FIND(CHAR(160),SUBSTITUTE($V37,\"}\",CHAR(160),GO$1))-FIND(CHAR(160),SUBSTITUTE($V37,\"{\",CHAR(160),GO$1))+1),\"\")","v":"{Measure:Quantity}"},{"$f":"IFERROR(MID($V37,FIND(CHAR(160),SUBSTITUTE($V37,\"{\",CHAR(160),GP$1)),FIND(CHAR(160),SUBSTITUTE($V37,\"}\",CHAR(160),GP$1))-FIND(CHAR(160),SUBSTITUTE($V37,\"{\",CHAR(160),GP$1))+1),\"\")","v":"{Existing Fan HP}"},{"$f":"IFERROR(MID($W37,FIND(CHAR(160),SUBSTITUTE($W37,\"{\",CHAR(160),GQ$1)),FIND(CHAR(160),SUBSTITUTE($W37,\"}\",CHAR(160),GQ$1))-FIND(CHAR(160),SUBSTITUTE($W37,\"{\",CHAR(160),GQ$1))+1),\"\")","v":""},{"$f":"IFERROR(MID($W37,FIND(CHAR(160),SUBSTITUTE($W37,\"{\",CHAR(160),GR$1)),FIND(CHAR(160),SUBSTITUTE($W37,\"}\",CHAR(160),GR$1))-FIND(CHAR(160),SUBSTITUTE($W37,\"{\",CHAR(160),GR$1))+1),\"\")","v":""},{"$f":"IFERROR(MID($W37,FIND(CHAR(160),SUBSTITUTE($W37,\"{\",CHAR(160),GS$1)),FIND(CHAR(160),SUBSTITUTE($W37,\"}\",CHAR(160),GS$1))-FIND(CHAR(160),SUBSTITUTE($W37,\"{\",CHAR(160),GS$1))+1),\"\")","v":""},{"$f":"IFERROR(MID($W37,FIND(CHAR(160),SUBSTITUTE($W37,\"{\",CHAR(160),GT$1)),FIND(CHAR(160),SUBSTITUTE($W37,\"}\",CHAR(160),GT$1))-FIND(CHAR(160),SUBSTITUTE($W37,\"{\",CHAR(160),GT$1))+1),\"\")","v":""},{"$f":"IFERROR(MID($W37,FIND(CHAR(160),SUBSTITUTE($W37,\"{\",CHAR(160),GU$1)),FIND(CHAR(160),SUBSTITUTE($W37,\"}\",CHAR(160),GU$1))-FIND(CHAR(160),SUBSTITUTE($W37,\"{\",CHAR(160),GU$1))+1),\"\")","v":""},{"$f":"IFERROR(MID($W37,FIND(CHAR(160),SUBSTITUTE($W37,\"{\",CHAR(160),GV$1)),FIND(CHAR(160),SUBSTITUTE($W37,\"}\",CHAR(160),GV$1))-FIND(CHAR(160),SUBSTITUTE($W37,\"{\",CHAR(160),GV$1))+1),\"\")","v":""},{"$f":"IFERROR(MID($W37,FIND(CHAR(160),SUBSTITUTE($W37,\"{\",CHAR(160),GW$1)),FIND(CHAR(160),SUBSTITUTE($W37,\"}\",CHAR(160),GW$1))-FIND(CHAR(160),SUBSTITUTE($W37,\"{\",CHAR(160),GW$1))+1),\"\")","v":""},{"$f":"IFERROR(MID($W37,FIND(CHAR(160),SUBSTITUTE($W37,\"{\",CHAR(160),GX$1)),FIND(CHAR(160),SUBSTITUTE($W37,\"}\",CHAR(160),GX$1))-FIND(CHAR(160),SUBSTITUTE($W37,\"{\",CHAR(160),GX$1))+1),\"\")","v":""},{"$f":"IFERROR(MID($W37,FIND(CHAR(160),SUBSTITUTE($W37,\"{\",CHAR(160),GY$1)),FIND(CHAR(160),SUBSTITUTE($W37,\"}\",CHAR(160),GY$1))-FIND(CHAR(160),SUBSTITUTE($W37,\"{\",CHAR(160),GY$1))+1),\"\")","v":""},{"$f":"IFERROR(MID($W37,FIND(CHAR(160),SUBSTITUTE($W37,\"{\",CHAR(160),GZ$1)),FIND(CHAR(160),SUBSTITUTE($W37,\"}\",CHAR(160),GZ$1))-FIND(CHAR(160),SUBSTITUTE($W37,\"{\",CHAR(160),GZ$1))+1),\"\")","v":""},{"$f":"IFERROR(MID($X37,FIND(CHAR(160),SUBSTITUTE($X37,\"{\",CHAR(160),HA$1)),FIND(CHAR(160),SUBSTITUTE($X37,\"}\",CHAR(160),HA$1))-FIND(CHAR(160),SUBSTITUTE($X37,\"{\",CHAR(160),HA$1))+1),\"\")","v":""},{"$f":"IFERROR(MID($X37,FIND(CHAR(160),SUBSTITUTE($X37,\"{\",CHAR(160),HB$1)),FIND(CHAR(160),SUBSTITUTE($X37,\"}\",CHAR(160),HB$1))-FIND(CHAR(160),SUBSTITUTE($X37,\"{\",CHAR(160),HB$1))+1),\"\")","v":""},{"$f":"IFERROR(MID($X37,FIND(CHAR(160),SUBSTITUTE($X37,\"{\",CHAR(160),HC$1)),FIND(CHAR(160),SUBSTITUTE($X37,\"}\",CHAR(160),HC$1))-FIND(CHAR(160),SUBSTITUTE($X37,\"{\",CHAR(160),HC$1))+1),\"\")","v":""},{"$f":"IFERROR(MID($X37,FIND(CHAR(160),SUBSTITUTE($X37,\"{\",CHAR(160),HD$1)),FIND(CHAR(160),SUBSTITUTE($X37,\"}\",CHAR(160),HD$1))-FIND(CHAR(160),SUBSTITUTE($X37,\"{\",CHAR(160),HD$1))+1),\"\")","v":""},{"$f":"IFERROR(MID($X37,FIND(CHAR(160),SUBSTITUTE($X37,\"{\",CHAR(160),HE$1)),FIND(CHAR(160),SUBSTITUTE($X37,\"}\",CHAR(160),HE$1))-FIND(CHAR(160),SUBSTITUTE($X37,\"{\",CHAR(160),HE$1))+1),\"\")","v":""},{"$f":"IFERROR(MID($X37,FIND(CHAR(160),SUBSTITUTE($X37,\"{\",CHAR(160),HF$1)),FIND(CHAR(160),SUBSTITUTE($X37,\"}\",CHAR(160),HF$1))-FIND(CHAR(160),SUBSTITUTE($X37,\"{\",CHAR(160),HF$1))+1),\"\")","v":""},{"$f":"IFERROR(MID($X37,FIND(CHAR(160),SUBSTITUTE($X37,\"{\",CHAR(160),HG$1)),FIND(CHAR(160),SUBSTITUTE($X37,\"}\",CHAR(160),HG$1))-FIND(CHAR(160),SUBSTITUTE($X37,\"{\",CHAR(160),HG$1))+1),\"\")","v":""},{"$f":"IFERROR(MID($X37,FIND(CHAR(160),SUBSTITUTE($X37,\"{\",CHAR(160),HH$1)),FIND(CHAR(160),SUBSTITUTE($X37,\"}\",CHAR(160),HH$1))-FIND(CHAR(160),SUBSTITUTE($X37,\"{\",CHAR(160),HH$1))+1),\"\")","v":""},{"$f":"IFERROR(MID($X37,FIND(CHAR(160),SUBSTITUTE($X37,\"{\",CHAR(160),HI$1)),FIND(CHAR(160),SUBSTITUTE($X37,\"}\",CHAR(160),HI$1))-FIND(CHAR(160),SUBSTITUTE($X37,\"{\",CHAR(160),HI$1))+1),\"\")","v":""},{"$f":"IFERROR(MID($X37,FIND(CHAR(160),SUBSTITUTE($X37,\"{\",CHAR(160),HJ$1)),FIND(CHAR(160),SUBSTITUTE($X37,\"}\",CHAR(160),HJ$1))-FIND(CHAR(160),SUBSTITUTE($X37,\"{\",CHAR(160),HJ$1))+1),\"\")","v":""},{"$f":"IFERROR(MID($Y37,FIND(CHAR(160),SUBSTITUTE($Y37,\"{\",CHAR(160),HK$1)),FIND(CHAR(160),SUBSTITUTE($Y37,\"}\",CHAR(160),HK$1))-FIND(CHAR(160),SUBSTITUTE($Y37,\"{\",CHAR(160),HK$1))+1),\"\")","v":""},{"$f":"IFERROR(MID($Y37,FIND(CHAR(160),SUBSTITUTE($Y37,\"{\",CHAR(160),HL$1)),FIND(CHAR(160),SUBSTITUTE($Y37,\"}\",CHAR(160),HL$1))-FIND(CHAR(160),SUBSTITUTE($Y37,\"{\",CHAR(160),HL$1))+1),\"\")","v":""},{"$f":"IFERROR(MID($Y37,FIND(CHAR(160),SUBSTITUTE($Y37,\"{\",CHAR(160),HM$1)),FIND(CHAR(160),SUBSTITUTE($Y37,\"}\",CHAR(160),HM$1))-FIND(CHAR(160),SUBSTITUTE($Y37,\"{\",CHAR(160),HM$1))+1),\"\")","v":""},{"$f":"IFERROR(MID($Y37,FIND(CHAR(160),SUBSTITUTE($Y37,\"{\",CHAR(160),HN$1)),FIND(CHAR(160),SUBSTITUTE($Y37,\"}\",CHAR(160),HN$1))-FIND(CHAR(160),SUBSTITUTE($Y37,\"{\",CHAR(160),HN$1))+1),\"\")","v":""},{"$f":"IFERROR(MID($Y37,FIND(CHAR(160),SUBSTITUTE($Y37,\"{\",CHAR(160),HO$1)),FIND(CHAR(160),SUBSTITUTE($Y37,\"}\",CHAR(160),HO$1))-FIND(CHAR(160),SUBSTITUTE($Y37,\"{\",CHAR(160),HO$1))+1),\"\")","v":""},{"$f":"IFERROR(MID($Y37,FIND(CHAR(160),SUBSTITUTE($Y37,\"{\",CHAR(160),HP$1)),FIND(CHAR(160),SUBSTITUTE($Y37,\"}\",CHAR(160),HP$1))-FIND(CHAR(160),SUBSTITUTE($Y37,\"{\",CHAR(160),HP$1))+1),\"\")","v":""},{"$f":"IFERROR(MID($Y37,FIND(CHAR(160),SUBSTITUTE($Y37,\"{\",CHAR(160),HQ$1)),FIND(CHAR(160),SUBSTITUTE($Y37,\"}\",CHAR(160),HQ$1))-FIND(CHAR(160),SUBSTITUTE($Y37,\"{\",CHAR(160),HQ$1))+1),\"\")","v":""},{"$f":"IFERROR(MID($Y37,FIND(CHAR(160),SUBSTITUTE($Y37,\"{\",CHAR(160),HR$1)),FIND(CHAR(160),SUBSTITUTE($Y37,\"}\",CHAR(160),HR$1))-FIND(CHAR(160),SUBSTITUTE($Y37,\"{\",CHAR(160),HR$1))+1),\"\")","v":""},{"$f":"IFERROR(MID($Y37,FIND(CHAR(160),SUBSTITUTE($Y37,\"{\",CHAR(160),HS$1)),FIND(CHAR(160),SUBSTITUTE($Y37,\"}\",CHAR(160),HS$1))-FIND(CHAR(160),SUBSTITUTE($Y37,\"{\",CHAR(160),HS$1))+1),\"\")","v":""},{"$f":"IFERROR(MID($Y37,FIND(CHAR(160),SUBSTITUTE($Y37,\"{\",CHAR(160),HT$1)),FIND(CHAR(160),SUBSTITUTE($Y37,\"}\",CHAR(160),HT$1))-FIND(CHAR(160),SUBSTITUTE($Y37,\"{\",CHAR(160),HT$1))+1),\"\")","v":""},{"$f":"IFERROR(MID($Z37,FIND(CHAR(160),SUBSTITUTE($Z37,\"{\",CHAR(160),HU$1)),FIND(CHAR(160),SUBSTITUTE($Z37,\"}\",CHAR(160),HU$1))-FIND(CHAR(160),SUBSTITUTE($Z37,\"{\",CHAR(160),HU$1))+1),\"\")","v":""},{"$f":"IFERROR(MID($Z37,FIND(CHAR(160),SUBSTITUTE($Z37,\"{\",CHAR(160),HV$1)),FIND(CHAR(160),SUBSTITUTE($Z37,\"}\",CHAR(160),HV$1))-FIND(CHAR(160),SUBSTITUTE($Z37,\"{\",CHAR(160),HV$1))+1),\"\")","v":""},{"$f":"IFERROR(MID($Z37,FIND(CHAR(160),SUBSTITUTE($Z37,\"{\",CHAR(160),HW$1)),FIND(CHAR(160),SUBSTITUTE($Z37,\"}\",CHAR(160),HW$1))-FIND(CHAR(160),SUBSTITUTE($Z37,\"{\",CHAR(160),HW$1))+1),\"\")","v":""},{"$f":"IFERROR(MID($Z37,FIND(CHAR(160),SUBSTITUTE($Z37,\"{\",CHAR(160),HX$1)),FIND(CHAR(160),SUBSTITUTE($Z37,\"}\",CHAR(160),HX$1))-FIND(CHAR(160),SUBSTITUTE($Z37,\"{\",CHAR(160),HX$1))+1),\"\")","v":""},{"$f":"IFERROR(MID($Z37,FIND(CHAR(160),SUBSTITUTE($Z37,\"{\",CHAR(160),HY$1)),FIND(CHAR(160),SUBSTITUTE($Z37,\"}\",CHAR(160),HY$1))-FIND(CHAR(160),SUBSTITUTE($Z37,\"{\",CHAR(160),HY$1))+1),\"\")","v":""},{"$f":"IFERROR(MID($Z37,FIND(CHAR(160),SUBSTITUTE($Z37,\"{\",CHAR(160),HZ$1)),FIND(CHAR(160),SUBSTITUTE($Z37,\"}\",CHAR(160),HZ$1))-FIND(CHAR(160),SUBSTITUTE($Z37,\"{\",CHAR(160),HZ$1))+1),\"\")","v":""},{"$f":"IFERROR(MID($Z37,FIND(CHAR(160),SUBSTITUTE($Z37,\"{\",CHAR(160),IA$1)),FIND(CHAR(160),SUBSTITUTE($Z37,\"}\",CHAR(160),IA$1))-FIND(CHAR(160),SUBSTITUTE($Z37,\"{\",CHAR(160),IA$1))+1),\"\")","v":""},{"$f":"IFERROR(MID($Z37,FIND(CHAR(160),SUBSTITUTE($Z37,\"{\",CHAR(160),IB$1)),FIND(CHAR(160),SUBSTITUTE($Z37,\"}\",CHAR(160),IB$1))-FIND(CHAR(160),SUBSTITUTE($Z37,\"{\",CHAR(160),IB$1))+1),\"\")","v":""},{"$f":"IFERROR(MID($Z37,FIND(CHAR(160),SUBSTITUTE($Z37,\"{\",CHAR(160),IC$1)),FIND(CHAR(160),SUBSTITUTE($Z37,\"}\",CHAR(160),IC$1))-FIND(CHAR(160),SUBSTITUTE($Z37,\"{\",CHAR(160),IC$1))+1),\"\")","v":""},{"$f":"IFERROR(MID($Z37,FIND(CHAR(160),SUBSTITUTE($Z37,\"{\",CHAR(160),ID$1)),FIND(CHAR(160),SUBSTITUTE($Z37,\"}\",CHAR(160),ID$1))-FIND(CHAR(160),SUBSTITUTE($Z37,\"{\",CHAR(160),ID$1))+1),\"\")","v":""},{"$f":"IFERROR(MID($AA37,FIND(CHAR(160),SUBSTITUTE($AA37,\"{\",CHAR(160),IE$1)),FIND(CHAR(160),SUBSTITUTE($AA37,\"}\",CHAR(160),IE$1))-FIND(CHAR(160),SUBSTITUTE($AA37,\"{\",CHAR(160),IE$1))+1),\"\")","v":""},{"$f":"IFERROR(MID($AA37,FIND(CHAR(160),SUBSTITUTE($AA37,\"{\",CHAR(160),IF$1)),FIND(CHAR(160),SUBSTITUTE($AA37,\"}\",CHAR(160),IF$1))-FIND(CHAR(160),SUBSTITUTE($AA37,\"{\",CHAR(160),IF$1))+1),\"\")","v":""},{"$f":"IFERROR(MID($AA37,FIND(CHAR(160),SUBSTITUTE($AA37,\"{\",CHAR(160),IG$1)),FIND(CHAR(160),SUBSTITUTE($AA37,\"}\",CHAR(160),IG$1))-FIND(CHAR(160),SUBSTITUTE($AA37,\"{\",CHAR(160),IG$1))+1),\"\")","v":""},{"$f":"IFERROR(MID($AA37,FIND(CHAR(160),SUBSTITUTE($AA37,\"{\",CHAR(160),IH$1)),FIND(CHAR(160),SUBSTITUTE($AA37,\"}\",CHAR(160),IH$1))-FIND(CHAR(160),SUBSTITUTE($AA37,\"{\",CHAR(160),IH$1))+1),\"\")","v":""},{"$f":"IFERROR(MID($AA37,FIND(CHAR(160),SUBSTITUTE($AA37,\"{\",CHAR(160),II$1)),FIND(CHAR(160),SUBSTITUTE($AA37,\"}\",CHAR(160),II$1))-FIND(CHAR(160),SUBSTITUTE($AA37,\"{\",CHAR(160),II$1))+1),\"\")","v":""},{"$f":"IFERROR(MID($AA37,FIND(CHAR(160),SUBSTITUTE($AA37,\"{\",CHAR(160),IJ$1)),FIND(CHAR(160),SUBSTITUTE($AA37,\"}\",CHAR(160),IJ$1))-FIND(CHAR(160),SUBSTITUTE($AA37,\"{\",CHAR(160),IJ$1))+1),\"\")","v":""},{"$f":"IFERROR(MID($AA37,FIND(CHAR(160),SUBSTITUTE($AA37,\"{\",CHAR(160),IK$1)),FIND(CHAR(160),SUBSTITUTE($AA37,\"}\",CHAR(160),IK$1))-FIND(CHAR(160),SUBSTITUTE($AA37,\"{\",CHAR(160),IK$1))+1),\"\")","v":""},{"$f":"IFERROR(MID($AA37,FIND(CHAR(160),SUBSTITUTE($AA37,\"{\",CHAR(160),IL$1)),FIND(CHAR(160),SUBSTITUTE($AA37,\"}\",CHAR(160),IL$1))-FIND(CHAR(160),SUBSTITUTE($AA37,\"{\",CHAR(160),IL$1))+1),\"\")","v":""},{"$f":"IFERROR(MID($AA37,FIND(CHAR(160),SUBSTITUTE($AA37,\"{\",CHAR(160),IM$1)),FIND(CHAR(160),SUBSTITUTE($AA37,\"}\",CHAR(160),IM$1))-FIND(CHAR(160),SUBSTITUTE($AA37,\"{\",CHAR(160),IM$1))+1),\"\")","v":""},{"$f":"IFERROR(MID($AA37,FIND(CHAR(160),SUBSTITUTE($AA37,\"{\",CHAR(160),IN$1)),FIND(CHAR(160),SUBSTITUTE($AA37,\"}\",CHAR(160),IN$1))-FIND(CHAR(160),SUBSTITUTE($AA37,\"{\",CHAR(160),IN$1))+1),\"\")","v":""},{"$f":"IFERROR(MID($AB37,FIND(CHAR(160),SUBSTITUTE($AB37,\"{\",CHAR(160),IO$1)),FIND(CHAR(160),SUBSTITUTE($AB37,\"}\",CHAR(160),IO$1))-FIND(CHAR(160),SUBSTITUTE($AB37,\"{\",CHAR(160),IO$1))+1),\"\")","v":""},{"$f":"IFERROR(MID($AB37,FIND(CHAR(160),SUBSTITUTE($AB37,\"{\",CHAR(160),IP$1)),FIND(CHAR(160),SUBSTITUTE($AB37,\"}\",CHAR(160),IP$1))-FIND(CHAR(160),SUBSTITUTE($AB37,\"{\",CHAR(160),IP$1))+1),\"\")","v":""},{"$f":"IFERROR(MID($AB37,FIND(CHAR(160),SUBSTITUTE($AB37,\"{\",CHAR(160),IQ$1)),FIND(CHAR(160),SUBSTITUTE($AB37,\"}\",CHAR(160),IQ$1))-FIND(CHAR(160),SUBSTITUTE($AB37,\"{\",CHAR(160),IQ$1))+1),\"\")","v":""},{"$f":"IFERROR(MID($AB37,FIND(CHAR(160),SUBSTITUTE($AB37,\"{\",CHAR(160),IR$1)),FIND(CHAR(160),SUBSTITUTE($AB37,\"}\",CHAR(160),IR$1))-FIND(CHAR(160),SUBSTITUTE($AB37,\"{\",CHAR(160),IR$1))+1),\"\")","v":""},{"$f":"IFERROR(MID($AB37,FIND(CHAR(160),SUBSTITUTE($AB37,\"{\",CHAR(160),IS$1)),FIND(CHAR(160),SUBSTITUTE($AB37,\"}\",CHAR(160),IS$1))-FIND(CHAR(160),SUBSTITUTE($AB37,\"{\",CHAR(160),IS$1))+1),\"\")","v":""},{"$f":"IFERROR(MID($AB37,FIND(CHAR(160),SUBSTITUTE($AB37,\"{\",CHAR(160),IT$1)),FIND(CHAR(160),SUBSTITUTE($AB37,\"}\",CHAR(160),IT$1))-FIND(CHAR(160),SUBSTITUTE($AB37,\"{\",CHAR(160),IT$1))+1),\"\")","v":""},{"$f":"IFERROR(MID($AB37,FIND(CHAR(160),SUBSTITUTE($AB37,\"{\",CHAR(160),IU$1)),FIND(CHAR(160),SUBSTITUTE($AB37,\"}\",CHAR(160),IU$1))-FIND(CHAR(160),SUBSTITUTE($AB37,\"{\",CHAR(160),IU$1))+1),\"\")","v":""},{"$f":"IFERROR(MID($AB37,FIND(CHAR(160),SUBSTITUTE($AB37,\"{\",CHAR(160),IV$1)),FIND(CHAR(160),SUBSTITUTE($AB37,\"}\",CHAR(160),IV$1))-FIND(CHAR(160),SUBSTITUTE($AB37,\"{\",CHAR(160),IV$1))+1),\"\")","v":""},{"$f":"IFERROR(MID($AB37,FIND(CHAR(160),SUBSTITUTE($AB37,\"{\",CHAR(160),IW$1)),FIND(CHAR(160),SUBSTITUTE($AB37,\"}\",CHAR(160),IW$1))-FIND(CHAR(160),SUBSTITUTE($AB37,\"{\",CHAR(160),IW$1))+1),\"\")","v":""},{"$f":"IFERROR(MID($AB37,FIND(CHAR(160),SUBSTITUTE($AB37,\"{\",CHAR(160),IX$1)),FIND(CHAR(160),SUBSTITUTE($AB37,\"}\",CHAR(160),IX$1))-FIND(CHAR(160),SUBSTITUTE($AB37,\"{\",CHAR(160),IX$1))+1),\"\")","v":""},null,{"$f":"10-COUNTIF(DU37:ED37,\"\")","v":4}]
["C&I Agricultural Solutions","POTATO: Adjustable Speed Drive - 3 to 5 HP Ventilation Fan Motor","AASD - ASD3to5","2021-07-01","2022-06-30","Calculated","{Measure:Quantity}*if({Fan HP}<5,963,1105)",0,"Per Measure",800,0,"2016-07-01","2022-06-30","Calculated","{Measure:Quantity} * {Fan HP} * 2540",1E-4,null,"{Measure:Quantity} * {Fan HP} * 0.71",null,null,"{Measure:Quantity} * {Fan HP} * 0.71 * {Factor:WinterCF}","{Measure:Quantity} * {Fan HP} * 0.71 * {Factor:SummerCF}",null,null,null,null,null,null,"2020-04-01","2022-06-30",15,0.73699999999999999,0,0.66700000000000004,0.33300000000000002,0,0,1,1.1220000000000001,1,0.52,1.6E-2,null,{"$f":"DU38","v":"{Measure:Quantity}"},1,{"$f":"DV38","v":"{Fan HP}"},4,{"$f":"DW38","v":""},null,{"$f":"DX38","v":""},null,{"$f":"DY38","v":""},null,{"$f":"DZ38","v":""},null,{"$f":"EA38","v":""},null,{"$f":"EB38","v":""},null,{"$f":"EC38","v":""},null,{"$f":"ED38","v":""},null,{"$f":"AS38 * AU38 * 2540","v":10160},{"$f":"0.0001","v":1E-4},0,{"$f":"AS38 * AU38 * 0.71","v":2.84},0,0,{"$f":"AS38 * AU38 * 0.71 * AF38","v":2.0930800000000001},{"$f":"AS38 * AU38 * 0.71 * AG38","v":0},0,0,0,0,0,0,null,"Res","Default DR",{"$f":"Benefits(BL38,BR38,BS38,BT38,BU38,BV38,BW38,BX38,BY38,BZ38,AE38,AH38,AI38,AJ38,AK38,AL38,AM38,AN38,AO38,AP38,CA38,CB38)","v":15968.034628292226},7881.7766672487796,0,0,0,0,0,0,0,{"$f":"SUMPRODUCT(CC38:CK38,--(CC38:CK38>0))","v":23849.811295541003},{"$f":"-SUMPRODUCT(CC38:CK38,--(CC38:CK38<0))","v":0},null,{"$f":"AS38*IF(AU38<5,963,1105)","v":963},null,null,{"$f":"CM38+CO38","v":963},{"$f":"IF(NetOrGross=\"Net\",(1-AO38+AP38),1)","v":1},{"$f":"(SUMPRODUCT(CC38:CJ38,--(CC38:CJ38>0))+CN38)*CS38/((-SUMPRODUCT(CC38:CJ38,--(CC38:CJ38<0))+MAX(CO38,CV38)+CP38+CQ38)*CS38+IF(FRIncentives=\"Yes\",CV38*(1-CS38),0))","v":24.766159185400834},1,{"$f":"800","v":800},null,"Electric","y",null,{"$f":"IF(F38=\"Manual Entry\",\"Manual\",IF(G38=\"\",0,\"X=\"&SUBSTITUTE(SUBSTITUTE(SUBSTITUTE(SUBSTITUTE(SUBSTITUTE(SUBSTITUTE(SUBSTITUTE(SUBSTITUTE(SUBSTITUTE(SUBSTITUTE(SUBSTITUTE(SUBSTITUTE(G38,$ED38,$ED$2&ROW($ED38)),$EC38,$EC$2&ROW($EC38)),$EB38,$EB$2&ROW($EB38)),$EA38,$EA$2&ROW($EA38)),$DZ38,$DZ$2&ROW($DZ38)),$DY38,$DY$2&ROW($DY38)),$DX38,$DX$2&ROW($DX38)),$DW38,$DW$2&ROW($DW38)),$DV38,$DV$2&ROW($DV38)),$DU38,$DU$2&ROW($DU38)),$DT38,$DT$2&ROW($DT38)),$DS38,$DS$2&ROW($DS38))))","v":"X=AS38*if(AU38<5,963,1105)"},{"$f":"IF(I38=\"Manual Entry\",\"Manual\",IF(J38=\"\",0,\"X=\"&SUBSTITUTE(SUBSTITUTE(SUBSTITUTE(SUBSTITUTE(SUBSTITUTE(SUBSTITUTE(SUBSTITUTE(SUBSTITUTE(SUBSTITUTE(SUBSTITUTE(SUBSTITUTE(SUBSTITUTE(J38,$ED38,$ED$2&ROW($ED38)),$EC38,$EC$2&ROW($EC38)),$EB38,$EB$2&ROW($EB38)),$EA38,$EA$2&ROW($EA38)),$DZ38,$DZ$2&ROW($DZ38)),$DY38,$DY$2&ROW($DY38)),$DX38,$DX$2&ROW($DX38)),$DW38,$DW$2&ROW($DW38)),$DV38,$DV$2&ROW($DV38)),$DU38,$DU$2&ROW($DU38)),$DT38,$DT$2&ROW($DT38)),$DS38,$DS$2&ROW($DS38))))","v":"X=800"},{"$f":"IF(O38=\"\",0,\"X=\"&SUBSTITUTE(SUBSTITUTE(SUBSTITUTE(SUBSTITUTE(SUBSTITUTE(SUBSTITUTE(SUBSTITUTE(SUBSTITUTE(SUBSTITUTE(SUBSTITUTE(SUBSTITUTE(SUBSTITUTE(O38,$ED38,$ED$2&ROW($ED38)),$EC38,$EC$2&ROW($EC38)),$EB38,$EB$2&ROW($EB38)),$EA38,$EA$2&ROW($EA38)),$DZ38,$DZ$2&ROW($DZ38)),$DY38,$DY$2&ROW($DY38)),$DX38,$DX$2&ROW($DX38)),$DW38,$DW$2&ROW($DW38)),$DV38,$DV$2&ROW($DV38)),$DU38,$DU$2&ROW($DU38)),$DT38,$DT$2&ROW($DT38)),$DS38,$DS$2&ROW($DS38)))","v":"X=AS38 * AU38 * 2540"},{"$f":"IF(P38=\"\",0,\"X=\"&SUBSTITUTE(SUBSTITUTE(SUBSTITUTE(SUBSTITUTE(SUBSTITUTE(SUBSTITUTE(SUBSTITUTE(SUBSTITUTE(SUBSTITUTE(SUBSTITUTE(SUBSTITUTE(SUBSTITUTE(P38,$ED38,$ED$2&ROW($ED38)),$EC38,$EC$2&ROW($EC38)),$EB38,$EB$2&ROW($EB38)),$EA38,$EA$2&ROW($EA38)),$DZ38,$DZ$2&ROW($DZ38)),$DY38,$DY$2&ROW($DY38)),$DX38,$DX$2&ROW($DX38)),$DW38,$DW$2&ROW($DW38)),$DV38,$DV$2&ROW($DV38)),$DU38,$DU$2&ROW($DU38)),$DT38,$DT$2&ROW($DT38)),$DS38,$DS$2&ROW($DS38)))","v":"X=0.0001"},{"$f":"IF(Q38=\"\",0,\"X=\"&SUBSTITUTE(SUBSTITUTE(SUBSTITUTE(SUBSTITUTE(SUBSTITUTE(SUBSTITUTE(SUBSTITUTE(SUBSTITUTE(SUBSTITUTE(SUBSTITUTE(SUBSTITUTE(SUBSTITUTE(Q38,$ED38,$ED$2&ROW($ED38)),$EC38,$EC$2&ROW($EC38)),$EB38,$EB$2&ROW($EB38)),$EA38,$EA$2&ROW($EA38)),$DZ38,$DZ$2&ROW($DZ38)),$DY38,$DY$2&ROW($DY38)),$DX38,$DX$2&ROW($DX38)),$DW38,$DW$2&ROW($DW38)),$DV38,$DV$2&ROW($DV38)),$DU38,$DU$2&ROW($DU38)),$DT38,$DT$2&ROW($DT38)),$DS38,$DS$2&ROW($DS38)))","v":0},{"$f":"IF(R38=\"\",0,\"X=\"&SUBSTITUTE(SUBSTITUTE(SUBSTITUTE(SUBSTITUTE(SUBSTITUTE(SUBSTITUTE(SUBSTITUTE(SUBSTITUTE(SUBSTITUTE(SUBSTITUTE(SUBSTITUTE(SUBSTITUTE(R38,$ED38,$ED$2&ROW($ED38)),$EC38,$EC$2&ROW($EC38)),$EB38,$EB$2&ROW($EB38)),$EA38,$EA$2&ROW($EA38)),$DZ38,$DZ$2&ROW($DZ38)),$DY38,$DY$2&ROW($DY38)),$DX38,$DX$2&ROW($DX38)),$DW38,$DW$2&ROW($DW38)),$DV38,$DV$2&ROW($DV38)),$DU38,$DU$2&ROW($DU38)),$DT38,$DT$2&ROW($DT38)),$DS38,$DS$2&ROW($DS38)))","v":"X=AS38 * AU38 * 0.71"},{"$f":"IF(S38=\"\",0,\"X=\"&SUBSTITUTE(SUBSTITUTE(SUBSTITUTE(SUBSTITUTE(SUBSTITUTE(SUBSTITUTE(SUBSTITUTE(SUBSTITUTE(SUBSTITUTE(SUBSTITUTE(SUBSTITUTE(SUBSTITUTE(S38,$ED38,$ED$2&ROW($ED38)),$EC38,$EC$2&ROW($EC38)),$EB38,$EB$2&ROW($EB38)),$EA38,$EA$2&ROW($EA38)),$DZ38,$DZ$2&ROW($DZ38)),$DY38,$DY$2&ROW($DY38)),$DX38,$DX$2&ROW($DX38)),$DW38,$DW$2&ROW($DW38)),$DV38,$DV$2&ROW($DV38)),$DU38,$DU$2&ROW($DU38)),$DT38,$DT$2&ROW($DT38)),$DS38,$DS$2&ROW($DS38)))","v":0},{"$f":"IF(T38=\"\",0,\"X=\"&SUBSTITUTE(SUBSTITUTE(SUBSTITUTE(SUBSTITUTE(SUBSTITUTE(SUBSTITUTE(SUBSTITUTE(SUBSTITUTE(SUBSTITUTE(SUBSTITUTE(SUBSTITUTE(SUBSTITUTE(T38,$ED38,$ED$2&ROW($ED38)),$EC38,$EC$2&ROW($EC38)),$EB38,$EB$2&ROW($EB38)),$EA38,$EA$2&ROW($EA38)),$DZ38,$DZ$2&ROW($DZ38)),$DY38,$DY$2&ROW($DY38)),$DX38,$DX$2&ROW($DX38)),$DW38,$DW$2&ROW($DW38)),$DV38,$DV$2&ROW($DV38)),$DU38,$DU$2&ROW($DU38)),$DT38,$DT$2&ROW($DT38)),$DS38,$DS$2&ROW($DS38)))","v":0},{"$f":"IF(U38=\"\",0,\"X=\"&SUBSTITUTE(SUBSTITUTE(SUBSTITUTE(SUBSTITUTE(SUBSTITUTE(SUBSTITUTE(SUBSTITUTE(SUBSTITUTE(SUBSTITUTE(SUBSTITUTE(SUBSTITUTE(SUBSTITUTE(U38,$ED38,$ED$2&ROW($ED38)),$EC38,$EC$2&ROW($EC38)),$EB38,$EB$2&ROW($EB38)),$EA38,$EA$2&ROW($EA38)),$DZ38,$DZ$2&ROW($DZ38)),$DY38,$DY$2&ROW($DY38)),$DX38,$DX$2&ROW($DX38)),$DW38,$DW$2&ROW($DW38)),$DV38,$DV$2&ROW($DV38)),$DU38,$DU$2&ROW($DU38)),$DT38,$DT$2&ROW($DT38)),$DS38,$DS$2&ROW($DS38)))","v":"X=AS38 * AU38 * 0.71 * AF38"},{"$f":"IF(V38=\"\",0,\"X=\"&SUBSTITUTE(SUBSTITUTE(SUBSTITUTE(SUBSTITUTE(SUBSTITUTE(SUBSTITUTE(SUBSTITUTE(SUBSTITUTE(SUBSTITUTE(SUBSTITUTE(SUBSTITUTE(SUBSTITUTE(V38,$ED38,$ED$2&ROW($ED38)),$EC38,$EC$2&ROW($EC38)),$EB38,$EB$2&ROW($EB38)),$EA38,$EA$2&ROW($EA38)),$DZ38,$DZ$2&ROW($DZ38)),$DY38,$DY$2&ROW($DY38)),$DX38,$DX$2&ROW($DX38)),$DW38,$DW$2&ROW($DW38)),$DV38,$DV$2&ROW($DV38)),$DU38,$DU$2&ROW($DU38)),$DT38,$DT$2&ROW($DT38)),$DS38,$DS$2&ROW($DS38)))","v":"X=AS38 * AU38 * 0.71 * AG38"},{"$f":"IF(W38=\"\",0,\"X=\"&SUBSTITUTE(SUBSTITUTE(SUBSTITUTE(SUBSTITUTE(SUBSTITUTE(SUBSTITUTE(SUBSTITUTE(SUBSTITUTE(SUBSTITUTE(SUBSTITUTE(SUBSTITUTE(SUBSTITUTE(W38,$ED38,$ED$2&ROW($ED38)),$EC38,$EC$2&ROW($EC38)),$EB38,$EB$2&ROW($EB38)),$EA38,$EA$2&ROW($EA38)),$DZ38,$DZ$2&ROW($DZ38)),$DY38,$DY$2&ROW($DY38)),$DX38,$DX$2&ROW($DX38)),$DW38,$DW$2&ROW($DW38)),$DV38,$DV$2&ROW($DV38)),$DU38,$DU$2&ROW($DU38)),$DT38,$DT$2&ROW($DT38)),$DS38,$DS$2&ROW($DS38)))","v":0},{"$f":"IF(X38=\"\",0,\"X=\"&SUBSTITUTE(SUBSTITUTE(SUBSTITUTE(SUBSTITUTE(SUBSTITUTE(SUBSTITUTE(SUBSTITUTE(SUBSTITUTE(SUBSTITUTE(SUBSTITUTE(SUBSTITUTE(SUBSTITUTE(X38,$ED38,$ED$2&ROW($ED38)),$EC38,$EC$2&ROW($EC38)),$EB38,$EB$2&ROW($EB38)),$EA38,$EA$2&ROW($EA38)),$DZ38,$DZ$2&ROW($DZ38)),$DY38,$DY$2&ROW($DY38)),$DX38,$DX$2&ROW($DX38)),$DW38,$DW$2&ROW($DW38)),$DV38,$DV$2&ROW($DV38)),$DU38,$DU$2&ROW($DU38)),$DT38,$DT$2&ROW($DT38)),$DS38,$DS$2&ROW($DS38)))","v":0},{"$f":"IF(Y38=\"\",0,\"X=\"&SUBSTITUTE(SUBSTITUTE(SUBSTITUTE(SUBSTITUTE(SUBSTITUTE(SUBSTITUTE(SUBSTITUTE(SUBSTITUTE(SUBSTITUTE(SUBSTITUTE(SUBSTITUTE(SUBSTITUTE(Y38,$ED38,$ED$2&ROW($ED38)),$EC38,$EC$2&ROW($EC38)),$EB38,$EB$2&ROW($EB38)),$EA38,$EA$2&ROW($EA38)),$DZ38,$DZ$2&ROW($DZ38)),$DY38,$DY$2&ROW($DY38)),$DX38,$DX$2&ROW($DX38)),$DW38,$DW$2&ROW($DW38)),$DV38,$DV$2&ROW($DV38)),$DU38,$DU$2&ROW($DU38)),$DT38,$DT$2&ROW($DT38)),$DS38,$DS$2&ROW($DS38)))","v":0},{"$f":"IF(Z38=\"\",0,\"X=\"&SUBSTITUTE(SUBSTITUTE(SUBSTITUTE(SUBSTITUTE(SUBSTITUTE(SUBSTITUTE(SUBSTITUTE(SUBSTITUTE(SUBSTITUTE(SUBSTITUTE(SUBSTITUTE(SUBSTITUTE(Z38,$ED38,$ED$2&ROW($ED38)),$EC38,$EC$2&ROW($EC38)),$EB38,$EB$2&ROW($EB38)),$EA38,$EA$2&ROW($EA38)),$DZ38,$DZ$2&ROW($DZ38)),$DY38,$DY$2&ROW($DY38)),$DX38,$DX$2&ROW($DX38)),$DW38,$DW$2&ROW($DW38)),$DV38,$DV$2&ROW($DV38)),$DU38,$DU$2&ROW($DU38)),$DT38,$DT$2&ROW($DT38)),$DS38,$DS$2&ROW($DS38)))","v":0},{"$f":"IF(AA38=\"\",0,\"X=\"&SUBSTITUTE(SUBSTITUTE(SUBSTITUTE(SUBSTITUTE(SUBSTITUTE(SUBSTITUTE(SUBSTITUTE(SUBSTITUTE(SUBSTITUTE(SUBSTITUTE(SUBSTITUTE(SUBSTITUTE(AA38,$ED38,$ED$2&ROW($ED38)),$EC38,$EC$2&ROW($EC38)),$EB38,$EB$2&ROW($EB38)),$EA38,$EA$2&ROW($EA38)),$DZ38,$DZ$2&ROW($DZ38)),$DY38,$DY$2&ROW($DY38)),$DX38,$DX$2&ROW($DX38)),$DW38,$DW$2&ROW($DW38)),$DV38,$DV$2&ROW($DV38)),$DU38,$DU$2&ROW($DU38)),$DT38,$DT$2&ROW($DT38)),$DS38,$DS$2&ROW($DS38)))","v":0},{"$f":"IF(AB38=\"\",0,\"X=\"&SUBSTITUTE(SUBSTITUTE(SUBSTITUTE(SUBSTITUTE(SUBSTITUTE(SUBSTITUTE(SUBSTITUTE(SUBSTITUTE(SUBSTITUTE(SUBSTITUTE(SUBSTITUTE(SUBSTITUTE(AB38,$ED38,$ED$2&ROW($ED38)),$EC38,$EC$2&ROW($EC38)),$EB38,$EB$2&ROW($EB38)),$EA38,$EA$2&ROW($EA38)),$DZ38,$DZ$2&ROW($DZ38)),$DY38,$DY$2&ROW($DY38)),$DX38,$DX$2&ROW($DX38)),$DW38,$DW$2&ROW($DW38)),$DV38,$DV$2&ROW($DV38)),$DU38,$DU$2&ROW($DU38)),$DT38,$DT$2&ROW($DT38)),$DS38,$DS$2&ROW($DS38)))","v":0},null,null,"{Factor:WinterCF}","{Factor:SummerCF}",{"$f":"IFERROR(INDEX($EG38:$IV38,MATCH(0,COUNTIF($DR38:DT38,$EG38:$IV38),0)),\"\")","v":"{Measure:Quantity}"},{"$f":"IFERROR(INDEX($EG38:$IV38,MATCH(0,COUNTIF($DR38:DU38,$EG38:$IV38),0)),\"\")","v":"{Fan HP}"},{"$f":"IFERROR(INDEX($EG38:$IV38,MATCH(0,COUNTIF($DR38:DV38,$EG38:$IV38),0)),\"\")","v":""},{"$f":"IFERROR(INDEX($EG38:$IV38,MATCH(0,COUNTIF($DR38:DW38,$EG38:$IV38),0)),\"\")","v":""},{"$f":"IFERROR(INDEX($EG38:$IV38,MATCH(0,COUNTIF($DR38:DX38,$EG38:$IV38),0)),\"\")","v":""},{"$f":"IFERROR(INDEX($EG38:$IV38,MATCH(0,COUNTIF($DR38:DY38,$EG38:$IV38),0)),\"\")","v":""},{"$f":"IFERROR(INDEX($EG38:$IV38,MATCH(0,COUNTIF($DR38:DZ38,$EG38:$IV38),0)),\"\")","v":""},{"$f":"IFERROR(INDEX($EG38:$IV38,MATCH(0,COUNTIF($DR38:EA38,$EG38:$IV38),0)),\"\")","v":""},{"$f":"IFERROR(INDEX($EG38:$IV38,MATCH(0,COUNTIF($DR38:EB38,$EG38:$IV38),0)),\"\")","v":""},{"$f":"IFERROR(INDEX($EG38:$IV38,MATCH(0,COUNTIF($DR38:EC38,$EG38:$IV38),0)),\"\")","v":""},null,null,{"$f":"IFERROR(MID($G38,FIND(CHAR(160),SUBSTITUTE($G38,\"{\",CHAR(160),EG$1)),FIND(CHAR(160),SUBSTITUTE($G38,\"}\",CHAR(160),EG$1))-FIND(CHAR(160),SUBSTITUTE($G38,\"{\",CHAR(160),EG$1))+1),\"\")","v":"{Measure:Quantity}"},{"$f":"IFERROR(MID($G38,FIND(CHAR(160),SUBSTITUTE($G38,\"{\",CHAR(160),EH$1)),FIND(CHAR(160),SUBSTITUTE($G38,\"}\",CHAR(160),EH$1))-FIND(CHAR(160),SUBSTITUTE($G38,\"{\",CHAR(160),EH$1))+1),\"\")","v":"{Fan HP}"},{"$f":"IFERROR(MID($G38,FIND(CHAR(160),SUBSTITUTE($G38,\"{\",CHAR(160),EI$1)),FIND(CHAR(160),SUBSTITUTE($G38,\"}\",CHAR(160),EI$1))-FIND(CHAR(160),SUBSTITUTE($G38,\"{\",CHAR(160),EI$1))+1),\"\")","v":""},{"$f":"IFERROR(MID($G38,FIND(CHAR(160),SUBSTITUTE($G38,\"{\",CHAR(160),EJ$1)),FIND(CHAR(160),SUBSTITUTE($G38,\"}\",CHAR(160),EJ$1))-FIND(CHAR(160),SUBSTITUTE($G38,\"{\",CHAR(160),EJ$1))+1),\"\")","v":""},{"$f":"IFERROR(MID($G38,FIND(CHAR(160),SUBSTITUTE($G38,\"{\",CHAR(160),EK$1)),FIND(CHAR(160),SUBSTITUTE($G38,\"}\",CHAR(160),EK$1))-FIND(CHAR(160),SUBSTITUTE($G38,\"{\",CHAR(160),EK$1))+1),\"\")","v":""},{"$f":"IFERROR(MID($G38,FIND(CHAR(160),SUBSTITUTE($G38,\"{\",CHAR(160),EL$1)),FIND(CHAR(160),SUBSTITUTE($G38,\"}\",CHAR(160),EL$1))-FIND(CHAR(160),SUBSTITUTE($G38,\"{\",CHAR(160),EL$1))+1),\"\")","v":""},{"$f":"IFERROR(MID($G38,FIND(CHAR(160),SUBSTITUTE($G38,\"{\",CHAR(160),EM$1)),FIND(CHAR(160),SUBSTITUTE($G38,\"}\",CHAR(160),EM$1))-FIND(CHAR(160),SUBSTITUTE($G38,\"{\",CHAR(160),EM$1))+1),\"\")","v":""},{"$f":"IFERROR(MID($G38,FIND(CHAR(160),SUBSTITUTE($G38,\"{\",CHAR(160),EN$1)),FIND(CHAR(160),SUBSTITUTE($G38,\"}\",CHAR(160),EN$1))-FIND(CHAR(160),SUBSTITUTE($G38,\"{\",CHAR(160),EN$1))+1),\"\")","v":""},{"$f":"IFERROR(MID($G38,FIND(CHAR(160),SUBSTITUTE($G38,\"{\",CHAR(160),EO$1)),FIND(CHAR(160),SUBSTITUTE($G38,\"}\",CHAR(160),EO$1))-FIND(CHAR(160),SUBSTITUTE($G38,\"{\",CHAR(160),EO$1))+1),\"\")","v":""},{"$f":"IFERROR(MID($G38,FIND(CHAR(160),SUBSTITUTE($G38,\"{\",CHAR(160),EP$1)),FIND(CHAR(160),SUBSTITUTE($G38,\"}\",CHAR(160),EP$1))-FIND(CHAR(160),SUBSTITUTE($G38,\"{\",CHAR(160),EP$1))+1),\"\")","v":""},{"$f":"IFERROR(MID($J38,FIND(CHAR(160),SUBSTITUTE($J38,\"{\",CHAR(160),EQ$1)),FIND(CHAR(160),SUBSTITUTE($J38,\"}\",CHAR(160),EQ$1))-FIND(CHAR(160),SUBSTITUTE($J38,\"{\",CHAR(160),EQ$1))+1),\"\")","v":""},{"$f":"IFERROR(MID($J38,FIND(CHAR(160),SUBSTITUTE($J38,\"{\",CHAR(160),ER$1)),FIND(CHAR(160),SUBSTITUTE($J38,\"}\",CHAR(160),ER$1))-FIND(CHAR(160),SUBSTITUTE($J38,\"{\",CHAR(160),ER$1))+1),\"\")","v":""},{"$f":"IFERROR(MID($J38,FIND(CHAR(160),SUBSTITUTE($J38,\"{\",CHAR(160),ES$1)),FIND(CHAR(160),SUBSTITUTE($J38,\"}\",CHAR(160),ES$1))-FIND(CHAR(160),SUBSTITUTE($J38,\"{\",CHAR(160),ES$1))+1),\"\")","v":""},{"$f":"IFERROR(MID($J38,FIND(CHAR(160),SUBSTITUTE($J38,\"{\",CHAR(160),ET$1)),FIND(CHAR(160),SUBSTITUTE($J38,\"}\",CHAR(160),ET$1))-FIND(CHAR(160),SUBSTITUTE($J38,\"{\",CHAR(160),ET$1))+1),\"\")","v":""},{"$f":"IFERROR(MID($J38,FIND(CHAR(160),SUBSTITUTE($J38,\"{\",CHAR(160),EU$1)),FIND(CHAR(160),SUBSTITUTE($J38,\"}\",CHAR(160),EU$1))-FIND(CHAR(160),SUBSTITUTE($J38,\"{\",CHAR(160),EU$1))+1),\"\")","v":""},{"$f":"IFERROR(MID($J38,FIND(CHAR(160),SUBSTITUTE($J38,\"{\",CHAR(160),EV$1)),FIND(CHAR(160),SUBSTITUTE($J38,\"}\",CHAR(160),EV$1))-FIND(CHAR(160),SUBSTITUTE($J38,\"{\",CHAR(160),EV$1))+1),\"\")","v":""},{"$f":"IFERROR(MID($J38,FIND(CHAR(160),SUBSTITUTE($J38,\"{\",CHAR(160),EW$1)),FIND(CHAR(160),SUBSTITUTE($J38,\"}\",CHAR(160),EW$1))-FIND(CHAR(160),SUBSTITUTE($J38,\"{\",CHAR(160),EW$1))+1),\"\")","v":""},{"$f":"IFERROR(MID($J38,FIND(CHAR(160),SUBSTITUTE($J38,\"{\",CHAR(160),EX$1)),FIND(CHAR(160),SUBSTITUTE($J38,\"}\",CHAR(160),EX$1))-FIND(CHAR(160),SUBSTITUTE($J38,\"{\",CHAR(160),EX$1))+1),\"\")","v":""},{"$f":"IFERROR(MID($J38,FIND(CHAR(160),SUBSTITUTE($J38,\"{\",CHAR(160),EY$1)),FIND(CHAR(160),SUBSTITUTE($J38,\"}\",CHAR(160),EY$1))-FIND(CHAR(160),SUBSTITUTE($J38,\"{\",CHAR(160),EY$1))+1),\"\")","v":""},{"$f":"IFERROR(MID($J38,FIND(CHAR(160),SUBSTITUTE($J38,\"{\",CHAR(160),EZ$1)),FIND(CHAR(160),SUBSTITUTE($J38,\"}\",CHAR(160),EZ$1))-FIND(CHAR(160),SUBSTITUTE($J38,\"{\",CHAR(160),EZ$1))+1),\"\")","v":""},{"$f":"IFERROR(MID($J38,FIND(CHAR(160),SUBSTITUTE($J38,\"{\",CHAR(160),FA$1)),FIND(CHAR(160),SUBSTITUTE($J38,\"}\",CHAR(160),FA$1))-FIND(CHAR(160),SUBSTITUTE($J38,\"{\",CHAR(160),FA$1))+1),\"\")","v":""},{"$f":"IFERROR(MID($J38,FIND(CHAR(160),SUBSTITUTE($J38,\"{\",CHAR(160),FB$1)),FIND(CHAR(160),SUBSTITUTE($J38,\"}\",CHAR(160),FB$1))-FIND(CHAR(160),SUBSTITUTE($J38,\"{\",CHAR(160),FB$1))+1),\"\")","v":""},{"$f":"IFERROR(MID($O38,FIND(CHAR(160),SUBSTITUTE($O38,\"{\",CHAR(160),FC$1)),FIND(CHAR(160),SUBSTITUTE($O38,\"}\",CHAR(160),FC$1))-FIND(CHAR(160),SUBSTITUTE($O38,\"{\",CHAR(160),FC$1))+1),\"\")","v":""},{"$f":"IFERROR(MID($O38,FIND(CHAR(160),SUBSTITUTE($O38,\"{\",CHAR(160),FD$1)),FIND(CHAR(160),SUBSTITUTE($O38,\"}\",CHAR(160),FD$1))-FIND(CHAR(160),SUBSTITUTE($O38,\"{\",CHAR(160),FD$1))+1),\"\")","v":""},{"$f":"IFERROR(MID($O38,FIND(CHAR(160),SUBSTITUTE($O38,\"{\",CHAR(160),FE$1)),FIND(CHAR(160),SUBSTITUTE($O38,\"}\",CHAR(160),FE$1))-FIND(CHAR(160),SUBSTITUTE($O38,\"{\",CHAR(160),FE$1))+1),\"\")","v":""},{"$f":"IFERROR(MID($O38,FIND(CHAR(160),SUBSTITUTE($O38,\"{\",CHAR(160),FF$1)),FIND(CHAR(160),SUBSTITUTE($O38,\"}\",CHAR(160),FF$1))-FIND(CHAR(160),SUBSTITUTE($O38,\"{\",CHAR(160),FF$1))+1),\"\")","v":""},{"$f":"IFERROR(MID($O38,FIND(CHAR(160),SUBSTITUTE($O38,\"{\",CHAR(160),FG$1)),FIND(CHAR(160),SUBSTITUTE($O38,\"}\",CHAR(160),FG$1))-FIND(CHAR(160),SUBSTITUTE($O38,\"{\",CHAR(160),FG$1))+1),\"\")","v":""},{"$f":"IFERROR(MID($O38,FIND(CHAR(160),SUBSTITUTE($O38,\"{\",CHAR(160),FH$1)),FIND(CHAR(160),SUBSTITUTE($O38,\"}\",CHAR(160),FH$1))-FIND(CHAR(160),SUBSTITUTE($O38,\"{\",CHAR(160),FH$1))+1),\"\")","v":""},{"$f":"IFERROR(MID($O38,FIND(CHAR(160),SUBSTITUTE($O38,\"{\",CHAR(160),FI$1)),FIND(CHAR(160),SUBSTITUTE($O38,\"}\",CHAR(160),FI$1))-FIND(CHAR(160),SUBSTITUTE($O38,\"{\",CHAR(160),FI$1))+1),\"\")","v":""},{"$f":"IFERROR(MID($O38,FIND(CHAR(160),SUBSTITUTE($O38,\"{\",CHAR(160),FJ$1)),FIND(CHAR(160),SUBSTITUTE($O38,\"}\",CHAR(160),FJ$1))-FIND(CHAR(160),SUBSTITUTE($O38,\"{\",CHAR(160),FJ$1))+1),\"\")","v":""},{"$f":"IFERROR(MID($O38,FIND(CHAR(160),SUBSTITUTE($O38,\"{\",CHAR(160),FK$1)),FIND(CHAR(160),SUBSTITUTE($O38,\"}\",CHAR(160),FK$1))-FIND(CHAR(160),SUBSTITUTE($O38,\"{\",CHAR(160),FK$1))+1),\"\")","v":"{Measure:Quantity}"},{"$f":"IFERROR(MID($O38,FIND(CHAR(160),SUBSTITUTE($O38,\"{\",CHAR(160),FL$1)),FIND(CHAR(160),SUBSTITUTE($O38,\"}\",CHAR(160),FL$1))-FIND(CHAR(160),SUBSTITUTE($O38,\"{\",CHAR(160),FL$1))+1),\"\")","v":"{Fan HP}"},{"$f":"IFERROR(MID($R38,FIND(CHAR(160),SUBSTITUTE($R38,\"{\",CHAR(160),FM$1)),FIND(CHAR(160),SUBSTITUTE($R38,\"}\",CHAR(160),FM$1))-FIND(CHAR(160),SUBSTITUTE($R38,\"{\",CHAR(160),FM$1))+1),\"\")","v":""},{"$f":"IFERROR(MID($R38,FIND(CHAR(160),SUBSTITUTE($R38,\"{\",CHAR(160),FN$1)),FIND(CHAR(160),SUBSTITUTE($R38,\"}\",CHAR(160),FN$1))-FIND(CHAR(160),SUBSTITUTE($R38,\"{\",CHAR(160),FN$1))+1),\"\")","v":""},{"$f":"IFERROR(MID($R38,FIND(CHAR(160),SUBSTITUTE($R38,\"{\",CHAR(160),FO$1)),FIND(CHAR(160),SUBSTITUTE($R38,\"}\",CHAR(160),FO$1))-FIND(CHAR(160),SUBSTITUTE($R38,\"{\",CHAR(160),FO$1))+1),\"\")","v":""},{"$f":"IFERROR(MID($R38,FIND(CHAR(160),SUBSTITUTE($R38,\"{\",CHAR(160),FP$1)),FIND(CHAR(160),SUBSTITUTE($R38,\"}\",CHAR(160),FP$1))-FIND(CHAR(160),SUBSTITUTE($R38,\"{\",CHAR(160),FP$1))+1),\"\")","v":""},{"$f":"IFERROR(MID($R38,FIND(CHAR(160),SUBSTITUTE($R38,\"{\",CHAR(160),FQ$1)),FIND(CHAR(160),SUBSTITUTE($R38,\"}\",CHAR(160),FQ$1))-FIND(CHAR(160),SUBSTITUTE($R38,\"{\",CHAR(160),FQ$1))+1),\"\")","v":""},{"$f":"IFERROR(MID($R38,FIND(CHAR(160),SUBSTITUTE($R38,\"{\",CHAR(160),FR$1)),FIND(CHAR(160),SUBSTITUTE($R38,\"}\",CHAR(160),FR$1))-FIND(CHAR(160),SUBSTITUTE($R38,\"{\",CHAR(160),FR$1))+1),\"\")","v":""},{"$f":"IFERROR(MID($R38,FIND(CHAR(160),SUBSTITUTE($R38,\"{\",CHAR(160),FS$1)),FIND(CHAR(160),SUBSTITUTE($R38,\"}\",CHAR(160),FS$1))-FIND(CHAR(160),SUBSTITUTE($R38,\"{\",CHAR(160),FS$1))+1),\"\")","v":""},{"$f":"IFERROR(MID($R38,FIND(CHAR(160),SUBSTITUTE($R38,\"{\",CHAR(160),FT$1)),FIND(CHAR(160),SUBSTITUTE($R38,\"}\",CHAR(160),FT$1))-FIND(CHAR(160),SUBSTITUTE($R38,\"{\",CHAR(160),FT$1))+1),\"\")","v":""},{"$f":"IFERROR(MID($R38,FIND(CHAR(160),SUBSTITUTE($R38,\"{\",CHAR(160),FU$1)),FIND(CHAR(160),SUBSTITUTE($R38,\"}\",CHAR(160),FU$1))-FIND(CHAR(160),SUBSTITUTE($R38,\"{\",CHAR(160),FU$1))+1),\"\")","v":"{Measure:Quantity}"},{"$f":"IFERROR(MID($R38,FIND(CHAR(160),SUBSTITUTE($R38,\"{\",CHAR(160),FV$1)),FIND(CHAR(160),SUBSTITUTE($R38,\"}\",CHAR(160),FV$1))-FIND(CHAR(160),SUBSTITUTE($R38,\"{\",CHAR(160),FV$1))+1),\"\")","v":"{Fan HP}"},{"$f":"IFERROR(MID($U38,FIND(CHAR(160),SUBSTITUTE($U38,\"{\",CHAR(160),FW$1)),FIND(CHAR(160),SUBSTITUTE($U38,\"}\",CHAR(160),FW$1))-FIND(CHAR(160),SUBSTITUTE($U38,\"{\",CHAR(160),FW$1))+1),\"\")","v":"{Factor:WinterCF}"},{"$f":"IFERROR(MID($U38,FIND(CHAR(160),SUBSTITUTE($U38,\"{\",CHAR(160),FX$1)),FIND(CHAR(160),SUBSTITUTE($U38,\"}\",CHAR(160),FX$1))-FIND(CHAR(160),SUBSTITUTE($U38,\"{\",CHAR(160),FX$1))+1),\"\")","v":""},{"$f":"IFERROR(MID($U38,FIND(CHAR(160),SUBSTITUTE($U38,\"{\",CHAR(160),FY$1)),FIND(CHAR(160),SUBSTITUTE($U38,\"}\",CHAR(160),FY$1))-FIND(CHAR(160),SUBSTITUTE($U38,\"{\",CHAR(160),FY$1))+1),\"\")","v":""},{"$f":"IFERROR(MID($U38,FIND(CHAR(160),SUBSTITUTE($U38,\"{\",CHAR(160),FZ$1)),FIND(CHAR(160),SUBSTITUTE($U38,\"}\",CHAR(160),FZ$1))-FIND(CHAR(160),SUBSTITUTE($U38,\"{\",CHAR(160),FZ$1))+1),\"\")","v":""},{"$f":"IFERROR(MID($U38,FIND(CHAR(160),SUBSTITUTE($U38,\"{\",CHAR(160),GA$1)),FIND(CHAR(160),SUBSTITUTE($U38,\"}\",CHAR(160),GA$1))-FIND(CHAR(160),SUBSTITUTE($U38,\"{\",CHAR(160),GA$1))+1),\"\")","v":""},{"$f":"IFERROR(MID($U38,FIND(CHAR(160),SUBSTITUTE($U38,\"{\",CHAR(160),GB$1)),FIND(CHAR(160),SUBSTITUTE($U38,\"}\",CHAR(160),GB$1))-FIND(CHAR(160),SUBSTITUTE($U38,\"{\",CHAR(160),GB$1))+1),\"\")","v":""},{"$f":"IFERROR(MID($U38,FIND(CHAR(160),SUBSTITUTE($U38,\"{\",CHAR(160),GC$1)),FIND(CHAR(160),SUBSTITUTE($U38,\"}\",CHAR(160),GC$1))-FIND(CHAR(160),SUBSTITUTE($U38,\"{\",CHAR(160),GC$1))+1),\"\")","v":""},{"$f":"IFERROR(MID($U38,FIND(CHAR(160),SUBSTITUTE($U38,\"{\",CHAR(160),GD$1)),FIND(CHAR(160),SUBSTITUTE($U38,\"}\",CHAR(160),GD$1))-FIND(CHAR(160),SUBSTITUTE($U38,\"{\",CHAR(160),GD$1))+1),\"\")","v":""},{"$f":"IFERROR(MID($U38,FIND(CHAR(160),SUBSTITUTE($U38,\"{\",CHAR(160),GE$1)),FIND(CHAR(160),SUBSTITUTE($U38,\"}\",CHAR(160),GE$1))-FIND(CHAR(160),SUBSTITUTE($U38,\"{\",CHAR(160),GE$1))+1),\"\")","v":"{Measure:Quantity}"},{"$f":"IFERROR(MID($U38,FIND(CHAR(160),SUBSTITUTE($U38,\"{\",CHAR(160),GF$1)),FIND(CHAR(160),SUBSTITUTE($U38,\"}\",CHAR(160),GF$1))-FIND(CHAR(160),SUBSTITUTE($U38,\"{\",CHAR(160),GF$1))+1),\"\")","v":"{Fan HP}"},{"$f":"IFERROR(MID($V38,FIND(CHAR(160),SUBSTITUTE($V38,\"{\",CHAR(160),GG$1)),FIND(CHAR(160),SUBSTITUTE($V38,\"}\",CHAR(160),GG$1))-FIND(CHAR(160),SUBSTITUTE($V38,\"{\",CHAR(160),GG$1))+1),\"\")","v":"{Factor:SummerCF}"},{"$f":"IFERROR(MID($V38,FIND(CHAR(160),SUBSTITUTE($V38,\"{\",CHAR(160),GH$1)),FIND(CHAR(160),SUBSTITUTE($V38,\"}\",CHAR(160),GH$1))-FIND(CHAR(160),SUBSTITUTE($V38,\"{\",CHAR(160),GH$1))+1),\"\")","v":""},{"$f":"IFERROR(MID($V38,FIND(CHAR(160),SUBSTITUTE($V38,\"{\",CHAR(160),GI$1)),FIND(CHAR(160),SUBSTITUTE($V38,\"}\",CHAR(160),GI$1))-FIND(CHAR(160),SUBSTITUTE($V38,\"{\",CHAR(160),GI$1))+1),\"\")","v":""},{"$f":"IFERROR(MID($V38,FIND(CHAR(160),SUBSTITUTE($V38,\"{\",CHAR(160),GJ$1)),FIND(CHAR(160),SUBSTITUTE($V38,\"}\",CHAR(160),GJ$1))-FIND(CHAR(160),SUBSTITUTE($V38,\"{\",CHAR(160),GJ$1))+1),\"\")","v":""},{"$f":"IFERROR(MID($V38,FIND(CHAR(160),SUBSTITUTE($V38,\"{\",CHAR(160),GK$1)),FIND(CHAR(160),SUBSTITUTE($V38,\"}\",CHAR(160),GK$1))-FIND(CHAR(160),SUBSTITUTE($V38,\"{\",CHAR(160),GK$1))+1),\"\")","v":""},{"$f":"IFERROR(MID($V38,FIND(CHAR(160),SUBSTITUTE($V38,\"{\",CHAR(160),GL$1)),FIND(CHAR(160),SUBSTITUTE($V38,\"}\",CHAR(160),GL$1))-FIND(CHAR(160),SUBSTITUTE($V38,\"{\",CHAR(160),GL$1))+1),\"\")","v":""},{"$f":"IFERROR(MID($V38,FIND(CHAR(160),SUBSTITUTE($V38,\"{\",CHAR(160),GM$1)),FIND(CHAR(160),SUBSTITUTE($V38,\"}\",CHAR(160),GM$1))-FIND(CHAR(160),SUBSTITUTE($V38,\"{\",CHAR(160),GM$1))+1),\"\")","v":""},{"$f":"IFERROR(MID($V38,FIND(CHAR(160),SUBSTITUTE($V38,\"{\",CHAR(160),GN$1)),FIND(CHAR(160),SUBSTITUTE($V38,\"}\",CHAR(160),GN$1))-FIND(CHAR(160),SUBSTITUTE($V38,\"{\",CHAR(160),GN$1))+1),\"\")","v":""},{"$f":"IFERROR(MID($V38,FIND(CHAR(160),SUBSTITUTE($V38,\"{\",CHAR(160),GO$1)),FIND(CHAR(160),SUBSTITUTE($V38,\"}\",CHAR(160),GO$1))-FIND(CHAR(160),SUBSTITUTE($V38,\"{\",CHAR(160),GO$1))+1),\"\")","v":"{Measure:Quantity}"},{"$f":"IFERROR(MID($V38,FIND(CHAR(160),SUBSTITUTE($V38,\"{\",CHAR(160),GP$1)),FIND(CHAR(160),SUBSTITUTE($V38,\"}\",CHAR(160),GP$1))-FIND(CHAR(160),SUBSTITUTE($V38,\"{\",CHAR(160),GP$1))+1),\"\")","v":"{Fan HP}"},{"$f":"IFERROR(MID($W38,FIND(CHAR(160),SUBSTITUTE($W38,\"{\",CHAR(160),GQ$1)),FIND(CHAR(160),SUBSTITUTE($W38,\"}\",CHAR(160),GQ$1))-FIND(CHAR(160),SUBSTITUTE($W38,\"{\",CHAR(160),GQ$1))+1),\"\")","v":""},{"$f":"IFERROR(MID($W38,FIND(CHAR(160),SUBSTITUTE($W38,\"{\",CHAR(160),GR$1)),FIND(CHAR(160),SUBSTITUTE($W38,\"}\",CHAR(160),GR$1))-FIND(CHAR(160),SUBSTITUTE($W38,\"{\",CHAR(160),GR$1))+1),\"\")","v":""},{"$f":"IFERROR(MID($W38,FIND(CHAR(160),SUBSTITUTE($W38,\"{\",CHAR(160),GS$1)),FIND(CHAR(160),SUBSTITUTE($W38,\"}\",CHAR(160),GS$1))-FIND(CHAR(160),SUBSTITUTE($W38,\"{\",CHAR(160),GS$1))+1),\"\")","v":""},{"$f":"IFERROR(MID($W38,FIND(CHAR(160),SUBSTITUTE($W38,\"{\",CHAR(160),GT$1)),FIND(CHAR(160),SUBSTITUTE($W38,\"}\",CHAR(160),GT$1))-FIND(CHAR(160),SUBSTITUTE($W38,\"{\",CHAR(160),GT$1))+1),\"\")","v":""},{"$f":"IFERROR(MID($W38,FIND(CHAR(160),SUBSTITUTE($W38,\"{\",CHAR(160),GU$1)),FIND(CHAR(160),SUBSTITUTE($W38,\"}\",CHAR(160),GU$1))-FIND(CHAR(160),SUBSTITUTE($W38,\"{\",CHAR(160),GU$1))+1),\"\")","v":""},{"$f":"IFERROR(MID($W38,FIND(CHAR(160),SUBSTITUTE($W38,\"{\",CHAR(160),GV$1)),FIND(CHAR(160),SUBSTITUTE($W38,\"}\",CHAR(160),GV$1))-FIND(CHAR(160),SUBSTITUTE($W38,\"{\",CHAR(160),GV$1))+1),\"\")","v":""},{"$f":"IFERROR(MID($W38,FIND(CHAR(160),SUBSTITUTE($W38,\"{\",CHAR(160),GW$1)),FIND(CHAR(160),SUBSTITUTE($W38,\"}\",CHAR(160),GW$1))-FIND(CHAR(160),SUBSTITUTE($W38,\"{\",CHAR(160),GW$1))+1),\"\")","v":""},{"$f":"IFERROR(MID($W38,FIND(CHAR(160),SUBSTITUTE($W38,\"{\",CHAR(160),GX$1)),FIND(CHAR(160),SUBSTITUTE($W38,\"}\",CHAR(160),GX$1))-FIND(CHAR(160),SUBSTITUTE($W38,\"{\",CHAR(160),GX$1))+1),\"\")","v":""},{"$f":"IFERROR(MID($W38,FIND(CHAR(160),SUBSTITUTE($W38,\"{\",CHAR(160),GY$1)),FIND(CHAR(160),SUBSTITUTE($W38,\"}\",CHAR(160),GY$1))-FIND(CHAR(160),SUBSTITUTE($W38,\"{\",CHAR(160),GY$1))+1),\"\")","v":""},{"$f":"IFERROR(MID($W38,FIND(CHAR(160),SUBSTITUTE($W38,\"{\",CHAR(160),GZ$1)),FIND(CHAR(160),SUBSTITUTE($W38,\"}\",CHAR(160),GZ$1))-FIND(CHAR(160),SUBSTITUTE($W38,\"{\",CHAR(160),GZ$1))+1),\"\")","v":""},{"$f":"IFERROR(MID($X38,FIND(CHAR(160),SUBSTITUTE($X38,\"{\",CHAR(160),HA$1)),FIND(CHAR(160),SUBSTITUTE($X38,\"}\",CHAR(160),HA$1))-FIND(CHAR(160),SUBSTITUTE($X38,\"{\",CHAR(160),HA$1))+1),\"\")","v":""},{"$f":"IFERROR(MID($X38,FIND(CHAR(160),SUBSTITUTE($X38,\"{\",CHAR(160),HB$1)),FIND(CHAR(160),SUBSTITUTE($X38,\"}\",CHAR(160),HB$1))-FIND(CHAR(160),SUBSTITUTE($X38,\"{\",CHAR(160),HB$1))+1),\"\")","v":""},{"$f":"IFERROR(MID($X38,FIND(CHAR(160),SUBSTITUTE($X38,\"{\",CHAR(160),HC$1)),FIND(CHAR(160),SUBSTITUTE($X38,\"}\",CHAR(160),HC$1))-FIND(CHAR(160),SUBSTITUTE($X38,\"{\",CHAR(160),HC$1))+1),\"\")","v":""},{"$f":"IFERROR(MID($X38,FIND(CHAR(160),SUBSTITUTE($X38,\"{\",CHAR(160),HD$1)),FIND(CHAR(160),SUBSTITUTE($X38,\"}\",CHAR(160),HD$1))-FIND(CHAR(160),SUBSTITUTE($X38,\"{\",CHAR(160),HD$1))+1),\"\")","v":""},{"$f":"IFERROR(MID($X38,FIND(CHAR(160),SUBSTITUTE($X38,\"{\",CHAR(160),HE$1)),FIND(CHAR(160),SUBSTITUTE($X38,\"}\",CHAR(160),HE$1))-FIND(CHAR(160),SUBSTITUTE($X38,\"{\",CHAR(160),HE$1))+1),\"\")","v":""},{"$f":"IFERROR(MID($X38,FIND(CHAR(160),SUBSTITUTE($X38,\"{\",CHAR(160),HF$1)),FIND(CHAR(160),SUBSTITUTE($X38,\"}\",CHAR(160),HF$1))-FIND(CHAR(160),SUBSTITUTE($X38,\"{\",CHAR(160),HF$1))+1),\"\")","v":""},{"$f":"IFERROR(MID($X38,FIND(CHAR(160),SUBSTITUTE($X38,\"{\",CHAR(160),HG$1)),FIND(CHAR(160),SUBSTITUTE($X38,\"}\",CHAR(160),HG$1))-FIND(CHAR(160),SUBSTITUTE($X38,\"{\",CHAR(160),HG$1))+1),\"\")","v":""},{"$f":"IFERROR(MID($X38,FIND(CHAR(160),SUBSTITUTE($X38,\"{\",CHAR(160),HH$1)),FIND(CHAR(160),SUBSTITUTE($X38,\"}\",CHAR(160),HH$1))-FIND(CHAR(160),SUBSTITUTE($X38,\"{\",CHAR(160),HH$1))+1),\"\")","v":""},{"$f":"IFERROR(MID($X38,FIND(CHAR(160),SUBSTITUTE($X38,\"{\",CHAR(160),HI$1)),FIND(CHAR(160),SUBSTITUTE($X38,\"}\",CHAR(160),HI$1))-FIND(CHAR(160),SUBSTITUTE($X38,\"{\",CHAR(160),HI$1))+1),\"\")","v":""},{"$f":"IFERROR(MID($X38,FIND(CHAR(160),SUBSTITUTE($X38,\"{\",CHAR(160),HJ$1)),FIND(CHAR(160),SUBSTITUTE($X38,\"}\",CHAR(160),HJ$1))-FIND(CHAR(160),SUBSTITUTE($X38,\"{\",CHAR(160),HJ$1))+1),\"\")","v":""},{"$f":"IFERROR(MID($Y38,FIND(CHAR(160),SUBSTITUTE($Y38,\"{\",CHAR(160),HK$1)),FIND(CHAR(160),SUBSTITUTE($Y38,\"}\",CHAR(160),HK$1))-FIND(CHAR(160),SUBSTITUTE($Y38,\"{\",CHAR(160),HK$1))+1),\"\")","v":""},{"$f":"IFERROR(MID($Y38,FIND(CHAR(160),SUBSTITUTE($Y38,\"{\",CHAR(160),HL$1)),FIND(CHAR(160),SUBSTITUTE($Y38,\"}\",CHAR(160),HL$1))-FIND(CHAR(160),SUBSTITUTE($Y38,\"{\",CHAR(160),HL$1))+1),\"\")","v":""},{"$f":"IFERROR(MID($Y38,FIND(CHAR(160),SUBSTITUTE($Y38,\"{\",CHAR(160),HM$1)),FIND(CHAR(160),SUBSTITUTE($Y38,\"}\",CHAR(160),HM$1))-FIND(CHAR(160),SUBSTITUTE($Y38,\"{\",CHAR(160),HM$1))+1),\"\")","v":""},{"$f":"IFERROR(MID($Y38,FIND(CHAR(160),SUBSTITUTE($Y38,\"{\",CHAR(160),HN$1)),FIND(CHAR(160),SUBSTITUTE($Y38,\"}\",CHAR(160),HN$1))-FIND(CHAR(160),SUBSTITUTE($Y38,\"{\",CHAR(160),HN$1))+1),\"\")","v":""},{"$f":"IFERROR(MID($Y38,FIND(CHAR(160),SUBSTITUTE($Y38,\"{\",CHAR(160),HO$1)),FIND(CHAR(160),SUBSTITUTE($Y38,\"}\",CHAR(160),HO$1))-FIND(CHAR(160),SUBSTITUTE($Y38,\"{\",CHAR(160),HO$1))+1),\"\")","v":""},{"$f":"IFERROR(MID($Y38,FIND(CHAR(160),SUBSTITUTE($Y38,\"{\",CHAR(160),HP$1)),FIND(CHAR(160),SUBSTITUTE($Y38,\"}\",CHAR(160),HP$1))-FIND(CHAR(160),SUBSTITUTE($Y38,\"{\",CHAR(160),HP$1))+1),\"\")","v":""},{"$f":"IFERROR(MID($Y38,FIND(CHAR(160),SUBSTITUTE($Y38,\"{\",CHAR(160),HQ$1)),FIND(CHAR(160),SUBSTITUTE($Y38,\"}\",CHAR(160),HQ$1))-FIND(CHAR(160),SUBSTITUTE($Y38,\"{\",CHAR(160),HQ$1))+1),\"\")","v":""},{"$f":"IFERROR(MID($Y38,FIND(CHAR(160),SUBSTITUTE($Y38,\"{\",CHAR(160),HR$1)),FIND(CHAR(160),SUBSTITUTE($Y38,\"}\",CHAR(160),HR$1))-FIND(CHAR(160),SUBSTITUTE($Y38,\"{\",CHAR(160),HR$1))+1),\"\")","v":""},{"$f":"IFERROR(MID($Y38,FIND(CHAR(160),SUBSTITUTE($Y38,\"{\",CHAR(160),HS$1)),FIND(CHAR(160),SUBSTITUTE($Y38,\"}\",CHAR(160),HS$1))-FIND(CHAR(160),SUBSTITUTE($Y38,\"{\",CHAR(160),HS$1))+1),\"\")","v":""},{"$f":"IFERROR(MID($Y38,FIND(CHAR(160),SUBSTITUTE($Y38,\"{\",CHAR(160),HT$1)),FIND(CHAR(160),SUBSTITUTE($Y38,\"}\",CHAR(160),HT$1))-FIND(CHAR(160),SUBSTITUTE($Y38,\"{\",CHAR(160),HT$1))+1),\"\")","v":""},{"$f":"IFERROR(MID($Z38,FIND(CHAR(160),SUBSTITUTE($Z38,\"{\",CHAR(160),HU$1)),FIND(CHAR(160),SUBSTITUTE($Z38,\"}\",CHAR(160),HU$1))-FIND(CHAR(160),SUBSTITUTE($Z38,\"{\",CHAR(160),HU$1))+1),\"\")","v":""},{"$f":"IFERROR(MID($Z38,FIND(CHAR(160),SUBSTITUTE($Z38,\"{\",CHAR(160),HV$1)),FIND(CHAR(160),SUBSTITUTE($Z38,\"}\",CHAR(160),HV$1))-FIND(CHAR(160),SUBSTITUTE($Z38,\"{\",CHAR(160),HV$1))+1),\"\")","v":""},{"$f":"IFERROR(MID($Z38,FIND(CHAR(160),SUBSTITUTE($Z38,\"{\",CHAR(160),HW$1)),FIND(CHAR(160),SUBSTITUTE($Z38,\"}\",CHAR(160),HW$1))-FIND(CHAR(160),SUBSTITUTE($Z38,\"{\",CHAR(160),HW$1))+1),\"\")","v":""},{"$f":"IFERROR(MID($Z38,FIND(CHAR(160),SUBSTITUTE($Z38,\"{\",CHAR(160),HX$1)),FIND(CHAR(160),SUBSTITUTE($Z38,\"}\",CHAR(160),HX$1))-FIND(CHAR(160),SUBSTITUTE($Z38,\"{\",CHAR(160),HX$1))+1),\"\")","v":""},{"$f":"IFERROR(MID($Z38,FIND(CHAR(160),SUBSTITUTE($Z38,\"{\",CHAR(160),HY$1)),FIND(CHAR(160),SUBSTITUTE($Z38,\"}\",CHAR(160),HY$1))-FIND(CHAR(160),SUBSTITUTE($Z38,\"{\",CHAR(160),HY$1))+1),\"\")","v":""},{"$f":"IFERROR(MID($Z38,FIND(CHAR(160),SUBSTITUTE($Z38,\"{\",CHAR(160),HZ$1)),FIND(CHAR(160),SUBSTITUTE($Z38,\"}\",CHAR(160),HZ$1))-FIND(CHAR(160),SUBSTITUTE($Z38,\"{\",CHAR(160),HZ$1))+1),\"\")","v":""},{"$f":"IFERROR(MID($Z38,FIND(CHAR(160),SUBSTITUTE($Z38,\"{\",CHAR(160),IA$1)),FIND(CHAR(160),SUBSTITUTE($Z38,\"}\",CHAR(160),IA$1))-FIND(CHAR(160),SUBSTITUTE($Z38,\"{\",CHAR(160),IA$1))+1),\"\")","v":""},{"$f":"IFERROR(MID($Z38,FIND(CHAR(160),SUBSTITUTE($Z38,\"{\",CHAR(160),IB$1)),FIND(CHAR(160),SUBSTITUTE($Z38,\"}\",CHAR(160),IB$1))-FIND(CHAR(160),SUBSTITUTE($Z38,\"{\",CHAR(160),IB$1))+1),\"\")","v":""},{"$f":"IFERROR(MID($Z38,FIND(CHAR(160),SUBSTITUTE($Z38,\"{\",CHAR(160),IC$1)),FIND(CHAR(160),SUBSTITUTE($Z38,\"}\",CHAR(160),IC$1))-FIND(CHAR(160),SUBSTITUTE($Z38,\"{\",CHAR(160),IC$1))+1),\"\")","v":""},{"$f":"IFERROR(MID($Z38,FIND(CHAR(160),SUBSTITUTE($Z38,\"{\",CHAR(160),ID$1)),FIND(CHAR(160),SUBSTITUTE($Z38,\"}\",CHAR(160),ID$1))-FIND(CHAR(160),SUBSTITUTE($Z38,\"{\",CHAR(160),ID$1))+1),\"\")","v":""},{"$f":"IFERROR(MID($AA38,FIND(CHAR(160),SUBSTITUTE($AA38,\"{\",CHAR(160),IE$1)),FIND(CHAR(160),SUBSTITUTE($AA38,\"}\",CHAR(160),IE$1))-FIND(CHAR(160),SUBSTITUTE($AA38,\"{\",CHAR(160),IE$1))+1),\"\")","v":""},{"$f":"IFERROR(MID($AA38,FIND(CHAR(160),SUBSTITUTE($AA38,\"{\",CHAR(160),IF$1)),FIND(CHAR(160),SUBSTITUTE($AA38,\"}\",CHAR(160),IF$1))-FIND(CHAR(160),SUBSTITUTE($AA38,\"{\",CHAR(160),IF$1))+1),\"\")","v":""},{"$f":"IFERROR(MID($AA38,FIND(CHAR(160),SUBSTITUTE($AA38,\"{\",CHAR(160),IG$1)),FIND(CHAR(160),SUBSTITUTE($AA38,\"}\",CHAR(160),IG$1))-FIND(CHAR(160),SUBSTITUTE($AA38,\"{\",CHAR(160),IG$1))+1),\"\")","v":""},{"$f":"IFERROR(MID($AA38,FIND(CHAR(160),SUBSTITUTE($AA38,\"{\",CHAR(160),IH$1)),FIND(CHAR(160),SUBSTITUTE($AA38,\"}\",CHAR(160),IH$1))-FIND(CHAR(160),SUBSTITUTE($AA38,\"{\",CHAR(160),IH$1))+1),\"\")","v":""},{"$f":"IFERROR(MID($AA38,FIND(CHAR(160),SUBSTITUTE($AA38,\"{\",CHAR(160),II$1)),FIND(CHAR(160),SUBSTITUTE($AA38,\"}\",CHAR(160),II$1))-FIND(CHAR(160),SUBSTITUTE($AA38,\"{\",CHAR(160),II$1))+1),\"\")","v":""},{"$f":"IFERROR(MID($AA38,FIND(CHAR(160),SUBSTITUTE($AA38,\"{\",CHAR(160),IJ$1)),FIND(CHAR(160),SUBSTITUTE($AA38,\"}\",CHAR(160),IJ$1))-FIND(CHAR(160),SUBSTITUTE($AA38,\"{\",CHAR(160),IJ$1))+1),\"\")","v":""},{"$f":"IFERROR(MID($AA38,FIND(CHAR(160),SUBSTITUTE($AA38,\"{\",CHAR(160),IK$1)),FIND(CHAR(160),SUBSTITUTE($AA38,\"}\",CHAR(160),IK$1))-FIND(CHAR(160),SUBSTITUTE($AA38,\"{\",CHAR(160),IK$1))+1),\"\")","v":""},{"$f":"IFERROR(MID($AA38,FIND(CHAR(160),SUBSTITUTE($AA38,\"{\",CHAR(160),IL$1)),FIND(CHAR(160),SUBSTITUTE($AA38,\"}\",CHAR(160),IL$1))-FIND(CHAR(160),SUBSTITUTE($AA38,\"{\",CHAR(160),IL$1))+1),\"\")","v":""},{"$f":"IFERROR(MID($AA38,FIND(CHAR(160),SUBSTITUTE($AA38,\"{\",CHAR(160),IM$1)),FIND(CHAR(160),SUBSTITUTE($AA38,\"}\",CHAR(160),IM$1))-FIND(CHAR(160),SUBSTITUTE($AA38,\"{\",CHAR(160),IM$1))+1),\"\")","v":""},{"$f":"IFERROR(MID($AA38,FIND(CHAR(160),SUBSTITUTE($AA38,\"{\",CHAR(160),IN$1)),FIND(CHAR(160),SUBSTITUTE($AA38,\"}\",CHAR(160),IN$1))-FIND(CHAR(160),SUBSTITUTE($AA38,\"{\",CHAR(160),IN$1))+1),\"\")","v":""},{"$f":"IFERROR(MID($AB38,FIND(CHAR(160),SUBSTITUTE($AB38,\"{\",CHAR(160),IO$1)),FIND(CHAR(160),SUBSTITUTE($AB38,\"}\",CHAR(160),IO$1))-FIND(CHAR(160),SUBSTITUTE($AB38,\"{\",CHAR(160),IO$1))+1),\"\")","v":""},{"$f":"IFERROR(MID($AB38,FIND(CHAR(160),SUBSTITUTE($AB38,\"{\",CHAR(160),IP$1)),FIND(CHAR(160),SUBSTITUTE($AB38,\"}\",CHAR(160),IP$1))-FIND(CHAR(160),SUBSTITUTE($AB38,\"{\",CHAR(160),IP$1))+1),\"\")","v":""},{"$f":"IFERROR(MID($AB38,FIND(CHAR(160),SUBSTITUTE($AB38,\"{\",CHAR(160),IQ$1)),FIND(CHAR(160),SUBSTITUTE($AB38,\"}\",CHAR(160),IQ$1))-FIND(CHAR(160),SUBSTITUTE($AB38,\"{\",CHAR(160),IQ$1))+1),\"\")","v":""},{"$f":"IFERROR(MID($AB38,FIND(CHAR(160),SUBSTITUTE($AB38,\"{\",CHAR(160),IR$1)),FIND(CHAR(160),SUBSTITUTE($AB38,\"}\",CHAR(160),IR$1))-FIND(CHAR(160),SUBSTITUTE($AB38,\"{\",CHAR(160),IR$1))+1),\"\")","v":""},{"$f":"IFERROR(MID($AB38,FIND(CHAR(160),SUBSTITUTE($AB38,\"{\",CHAR(160),IS$1)),FIND(CHAR(160),SUBSTITUTE($AB38,\"}\",CHAR(160),IS$1))-FIND(CHAR(160),SUBSTITUTE($AB38,\"{\",CHAR(160),IS$1))+1),\"\")","v":""},{"$f":"IFERROR(MID($AB38,FIND(CHAR(160),SUBSTITUTE($AB38,\"{\",CHAR(160),IT$1)),FIND(CHAR(160),SUBSTITUTE($AB38,\"}\",CHAR(160),IT$1))-FIND(CHAR(160),SUBSTITUTE($AB38,\"{\",CHAR(160),IT$1))+1),\"\")","v":""},{"$f":"IFERROR(MID($AB38,FIND(CHAR(160),SUBSTITUTE($AB38,\"{\",CHAR(160),IU$1)),FIND(CHAR(160),SUBSTITUTE($AB38,\"}\",CHAR(160),IU$1))-FIND(CHAR(160),SUBSTITUTE($AB38,\"{\",CHAR(160),IU$1))+1),\"\")","v":""},{"$f":"IFERROR(MID($AB38,FIND(CHAR(160),SUBSTITUTE($AB38,\"{\",CHAR(160),IV$1)),FIND(CHAR(160),SUBSTITUTE($AB38,\"}\",CHAR(160),IV$1))-FIND(CHAR(160),SUBSTITUTE($AB38,\"{\",CHAR(160),IV$1))+1),\"\")","v":""},{"$f":"IFERROR(MID($AB38,FIND(CHAR(160),SUBSTITUTE($AB38,\"{\",CHAR(160),IW$1)),FIND(CHAR(160),SUBSTITUTE($AB38,\"}\",CHAR(160),IW$1))-FIND(CHAR(160),SUBSTITUTE($AB38,\"{\",CHAR(160),IW$1))+1),\"\")","v":""},{"$f":"IFERROR(MID($AB38,FIND(CHAR(160),SUBSTITUTE($AB38,\"{\",CHAR(160),IX$1)),FIND(CHAR(160),SUBSTITUTE($AB38,\"}\",CHAR(160),IX$1))-FIND(CHAR(160),SUBSTITUTE($AB38,\"{\",CHAR(160),IX$1))+1),\"\")","v":""},null,{"$f":"10-COUNTIF(DU38:ED38,\"\")","v":2}]
["C&I Agricultural Solutions","POTATO: Adjustable Speed Drive - 7.5 HP Ventilation Fan Motor","AASD - ASD7.5","2021-07-01","2022-06-30","Per Measure",1467,0,"Per Measure",1000,0,"2016-07-01","2022-06-30","Calculated","{Measure:Quantity} * {Fan HP} * 2540",1E-4,null,"{Measure:Quantity} * {Fan HP} * 0.71",null,null,"{Measure:Quantity} * {Fan HP} * 0.71 * {Factor:WinterCF}","{Measure:Quantity} * {Fan HP} * 0.71 * {Factor:SummerCF}",null,null,null,null,null,null,"2020-04-01","2022-06-30",15,0.73699999999999999,0,0.66700000000000004,0.33300000000000002,0,0,1,1.1220000000000001,1,0.52,1.6E-2,null,{"$f":"DU39","v":"{Measure:Quantity}"},1,{"$f":"DV39","v":"{Fan HP}"},7.5,{"$f":"DW39","v":""},null,{"$f":"DX39","v":""},null,{"$f":"DY39","v":""},null,{"$f":"DZ39","v":""},null,{"$f":"EA39","v":""},null,{"$f":"EB39","v":""},null,{"$f":"EC39","v":""},null,{"$f":"ED39","v":""},null,{"$f":"AS39 * AU39 * 2540","v":19050},{"$f":"0.0001","v":1E-4},0,{"$f":"AS39 * AU39 * 0.71","v":5.3249999999999993},0,0,{"$f":"AS39 * AU39 * 0.71 * AF39","v":3.9245249999999996},{"$f":"AS39 * AU39 * 0.71 * AG39","v":0},0,0,0,0,0,0,null,"Res","Default DR",{"$f":"Benefits(BL39,BR39,BS39,BT39,BU39,BV39,BW39,BX39,BY39,BZ39,AE39,AH39,AI39,AJ39,AK39,AL39,AM39,AN39,AO39,AP39,CA39,CB39)","v":29940.064928047927},14778.331251091458,0,0,0,0,0,0,0,{"$f":"SUMPRODUCT(CC39:CK39,--(CC39:CK39>0))","v":44718.396179139381},{"$f":"-SUMPRODUCT(CC39:CK39,--(CC39:CK39<0))","v":0},null,{"$f":"1467","v":1467},null,null,{"$f":"CM39+CO39","v":1467},{"$f":"IF(NetOrGross=\"Net\",(1-AO39+AP39),1)","v":1},{"$f":"(SUMPRODUCT(CC39:CJ39,--(CC39:CJ39>0))+CN39)*CS39/((-SUMPRODUCT(CC39:CJ39,--(CC39:CJ39<0))+MAX(CO39,CV39)+CP39+CQ39)*CS39+IF(FRIncentives=\"Yes\",CV39*(1-CS39),0))","v":30.482887647675106},1,{"$f":"1000","v":1000},null,"Electric","y",null,{"$f":"IF(F39=\"Manual Entry\",\"Manual\",IF(G39=\"\",0,\"X=\"&SUBSTITUTE(SUBSTITUTE(SUBSTITUTE(SUBSTITUTE(SUBSTITUTE(SUBSTITUTE(SUBSTITUTE(SUBSTITUTE(SUBSTITUTE(SUBSTITUTE(SUBSTITUTE(SUBSTITUTE(G39,$ED39,$ED$2&ROW($ED39)),$EC39,$EC$2&ROW($EC39)),$EB39,$EB$2&ROW($EB39)),$EA39,$EA$2&ROW($EA39)),$DZ39,$DZ$2&ROW($DZ39)),$DY39,$DY$2&ROW($DY39)),$DX39,$DX$2&ROW($DX39)),$DW39,$DW$2&ROW($DW39)),$DV39,$DV$2&ROW($DV39)),$DU39,$DU$2&ROW($DU39)),$DT39,$DT$2&ROW($DT39)),$DS39,$DS$2&ROW($DS39))))","v":"X=1467"},{"$f":"IF(I39=\"Manual Entry\",\"Manual\",IF(J39=\"\",0,\"X=\"&SUBSTITUTE(SUBSTITUTE(SUBSTITUTE(SUBSTITUTE(SUBSTITUTE(SUBSTITUTE(SUBSTITUTE(SUBSTITUTE(SUBSTITUTE(SUBSTITUTE(SUBSTITUTE(SUBSTITUTE(J39,$ED39,$ED$2&ROW($ED39)),$EC39,$EC$2&ROW($EC39)),$EB39,$EB$2&ROW($EB39)),$EA39,$EA$2&ROW($EA39)),$DZ39,$DZ$2&ROW($DZ39)),$DY39,$DY$2&ROW($DY39)),$DX39,$DX$2&ROW($DX39)),$DW39,$DW$2&ROW($DW39)),$DV39,$DV$2&ROW($DV39)),$DU39,$DU$2&ROW($DU39)),$DT39,$DT$2&ROW($DT39)),$DS39,$DS$2&ROW($DS39))))","v":"X=1000"},{"$f":"IF(O39=\"\",0,\"X=\"&SUBSTITUTE(SUBSTITUTE(SUBSTITUTE(SUBSTITUTE(SUBSTITUTE(SUBSTITUTE(SUBSTITUTE(SUBSTITUTE(SUBSTITUTE(SUBSTITUTE(SUBSTITUTE(SUBSTITUTE(O39,$ED39,$ED$2&ROW($ED39)),$EC39,$EC$2&ROW($EC39)),$EB39,$EB$2&ROW($EB39)),$EA39,$EA$2&ROW($EA39)),$DZ39,$DZ$2&ROW($DZ39)),$DY39,$DY$2&ROW($DY39)),$DX39,$DX$2&ROW($DX39)),$DW39,$DW$2&ROW($DW39)),$DV39,$DV$2&ROW($DV39)),$DU39,$DU$2&ROW($DU39)),$DT39,$DT$2&ROW($DT39)),$DS39,$DS$2&ROW($DS39)))","v":"X=AS39 * AU39 * 2540"},{"$f":"IF(P39=\"\",0,\"X=\"&SUBSTITUTE(SUBSTITUTE(SUBSTITUTE(SUBSTITUTE(SUBSTITUTE(SUBSTITUTE(SUBSTITUTE(SUBSTITUTE(SUBSTITUTE(SUBSTITUTE(SUBSTITUTE(SUBSTITUTE(P39,$ED39,$ED$2&ROW($ED39)),$EC39,$EC$2&ROW($EC39)),$EB39,$EB$2&ROW($EB39)),$EA39,$EA$2&ROW($EA39)),$DZ39,$DZ$2&ROW($DZ39)),$DY39,$DY$2&ROW($DY39)),$DX39,$DX$2&ROW($DX39)),$DW39,$DW$2&ROW($DW39)),$DV39,$DV$2&ROW($DV39)),$DU39,$DU$2&ROW($DU39)),$DT39,$DT$2&ROW($DT39)),$DS39,$DS$2&ROW($DS39)))","v":"X=0.0001"},{"$f":"IF(Q39=\"\",0,\"X=\"&SUBSTITUTE(SUBSTITUTE(SUBSTITUTE(SUBSTITUTE(SUBSTITUTE(SUBSTITUTE(SUBSTITUTE(SUBSTITUTE(SUBSTITUTE(SUBSTITUTE(SUBSTITUTE(SUBSTITUTE(Q39,$ED39,$ED$2&ROW($ED39)),$EC39,$EC$2&ROW($EC39)),$EB39,$EB$2&ROW($EB39)),$EA39,$EA$2&ROW($EA39)),$DZ39,$DZ$2&ROW($DZ39)),$DY39,$DY$2&ROW($DY39)),$DX39,$DX$2&ROW($DX39)),$DW39,$DW$2&ROW($DW39)),$DV39,$DV$2&ROW($DV39)),$DU39,$DU$2&ROW($DU39)),$DT39,$DT$2&ROW($DT39)),$DS39,$DS$2&ROW($DS39)))","v":0},{"$f":"IF(R39=\"\",0,\"X=\"&SUBSTITUTE(SUBSTITUTE(SUBSTITUTE(SUBSTITUTE(SUBSTITUTE(SUBSTITUTE(SUBSTITUTE(SUBSTITUTE(SUBSTITUTE(SUBSTITUTE(SUBSTITUTE(SUBSTITUTE(R39,$ED39,$ED$2&ROW($ED39)),$EC39,$EC$2&ROW($EC39)),$EB39,$EB$2&ROW($EB39)),$EA39,$EA$2&ROW($EA39)),$DZ39,$DZ$2&ROW($DZ39)),$DY39,$DY$2&ROW($DY39)),$DX39,$DX$2&ROW($DX39)),$DW39,$DW$2&ROW($DW39)),$DV39,$DV$2&ROW($DV39)),$DU39,$DU$2&ROW($DU39)),$DT39,$DT$2&ROW($DT39)),$DS39,$DS$2&ROW($DS39)))","v":"X=AS39 * AU39 * 0.71"},{"$f":"IF(S39=\"\",0,\"X=\"&SUBSTITUTE(SUBSTITUTE(SUBSTITUTE(SUBSTITUTE(SUBSTITUTE(SUBSTITUTE(SUBSTITUTE(SUBSTITUTE(SUBSTITUTE(SUBSTITUTE(SUBSTITUTE(SUBSTITUTE(S39,$ED39,$ED$2&ROW($ED39)),$EC39,$EC$2&ROW($EC39)),$EB39,$EB$2&ROW($EB39)),$EA39,$EA$2&ROW($EA39)),$DZ39,$DZ$2&ROW($DZ39)),$DY39,$DY$2&ROW($DY39)),$DX39,$DX$2&ROW($DX39)),$DW39,$DW$2&ROW($DW39)),$DV39,$DV$2&ROW($DV39)),$DU39,$DU$2&ROW($DU39)),$DT39,$DT$2&ROW($DT39)),$DS39,$DS$2&ROW($DS39)))","v":0},{"$f":"IF(T39=\"\",0,\"X=\"&SUBSTITUTE(SUBSTITUTE(SUBSTITUTE(SUBSTITUTE(SUBSTITUTE(SUBSTITUTE(SUBSTITUTE(SUBSTITUTE(SUBSTITUTE(SUBSTITUTE(SUBSTITUTE(SUBSTITUTE(T39,$ED39,$ED$2&ROW($ED39)),$EC39,$EC$2&ROW($EC39)),$EB39,$EB$2&ROW($EB39)),$EA39,$EA$2&ROW($EA39)),$DZ39,$DZ$2&ROW($DZ39)),$DY39,$DY$2&ROW($DY39)),$DX39,$DX$2&ROW($DX39)),$DW39,$DW$2&ROW($DW39)),$DV39,$DV$2&ROW($DV39)),$DU39,$DU$2&ROW($DU39)),$DT39,$DT$2&ROW($DT39)),$DS39,$DS$2&ROW($DS39)))","v":0},{"$f":"IF(U39=\"\",0,\"X=\"&SUBSTITUTE(SUBSTITUTE(SUBSTITUTE(SUBSTITUTE(SUBSTITUTE(SUBSTITUTE(SUBSTITUTE(SUBSTITUTE(SUBSTITUTE(SUBSTITUTE(SUBSTITUTE(SUBSTITUTE(U39,$ED39,$ED$2&ROW($ED39)),$EC39,$EC$2&ROW($EC39)),$EB39,$EB$2&ROW($EB39)),$EA39,$EA$2&ROW($EA39)),$DZ39,$DZ$2&ROW($DZ39)),$DY39,$DY$2&ROW($DY39)),$DX39,$DX$2&ROW($DX39)),$DW39,$DW$2&ROW($DW39)),$DV39,$DV$2&ROW($DV39)),$DU39,$DU$2&ROW($DU39)),$DT39,$DT$2&ROW($DT39)),$DS39,$DS$2&ROW($DS39)))","v":"X=AS39 * AU39 * 0.71 * AF39"},{"$f":"IF(V39=\"\",0,\"X=\"&SUBSTITUTE(SUBSTITUTE(SUBSTITUTE(SUBSTITUTE(SUBSTITUTE(SUBSTITUTE(SUBSTITUTE(SUBSTITUTE(SUBSTITUTE(SUBSTITUTE(SUBSTITUTE(SUBSTITUTE(V39,$ED39,$ED$2&ROW($ED39)),$EC39,$EC$2&ROW($EC39)),$EB39,$EB$2&ROW($EB39)),$EA39,$EA$2&ROW($EA39)),$DZ39,$DZ$2&ROW($DZ39)),$DY39,$DY$2&ROW($DY39)),$DX39,$DX$2&ROW($DX39)),$DW39,$DW$2&ROW($DW39)),$DV39,$DV$2&ROW($DV39)),$DU39,$DU$2&ROW($DU39)),$DT39,$DT$2&ROW($DT39)),$DS39,$DS$2&ROW($DS39)))","v":"X=AS39 * AU39 * 0.71 * AG39"},{"$f":"IF(W39=\"\",0,\"X=\"&SUBSTITUTE(SUBSTITUTE(SUBSTITUTE(SUBSTITUTE(SUBSTITUTE(SUBSTITUTE(SUBSTITUTE(SUBSTITUTE(SUBSTITUTE(SUBSTITUTE(SUBSTITUTE(SUBSTITUTE(W39,$ED39,$ED$2&ROW($ED39)),$EC39,$EC$2&ROW($EC39)),$EB39,$EB$2&ROW($EB39)),$EA39,$EA$2&ROW($EA39)),$DZ39,$DZ$2&ROW($DZ39)),$DY39,$DY$2&ROW($DY39)),$DX39,$DX$2&ROW($DX39)),$DW39,$DW$2&ROW($DW39)),$DV39,$DV$2&ROW($DV39)),$DU39,$DU$2&ROW($DU39)),$DT39,$DT$2&ROW($DT39)),$DS39,$DS$2&ROW($DS39)))","v":0},{"$f":"IF(X39=\"\",0,\"X=\"&SUBSTITUTE(SUBSTITUTE(SUBSTITUTE(SUBSTITUTE(SUBSTITUTE(SUBSTITUTE(SUBSTITUTE(SUBSTITUTE(SUBSTITUTE(SUBSTITUTE(SUBSTITUTE(SUBSTITUTE(X39,$ED39,$ED$2&ROW($ED39)),$EC39,$EC$2&ROW($EC39)),$EB39,$EB$2&ROW($EB39)),$EA39,$EA$2&ROW($EA39)),$DZ39,$DZ$2&ROW($DZ39)),$DY39,$DY$2&ROW($DY39)),$DX39,$DX$2&ROW($DX39)),$DW39,$DW$2&ROW($DW39)),$DV39,$DV$2&ROW($DV39)),$DU39,$DU$2&ROW($DU39)),$DT39,$DT$2&ROW($DT39)),$DS39,$DS$2&ROW($DS39)))","v":0},{"$f":"IF(Y39=\"\",0,\"X=\"&SUBSTITUTE(SUBSTITUTE(SUBSTITUTE(SUBSTITUTE(SUBSTITUTE(SUBSTITUTE(SUBSTITUTE(SUBSTITUTE(SUBSTITUTE(SUBSTITUTE(SUBSTITUTE(SUBSTITUTE(Y39,$ED39,$ED$2&ROW($ED39)),$EC39,$EC$2&ROW($EC39)),$EB39,$EB$2&ROW($EB39)),$EA39,$EA$2&ROW($EA39)),$DZ39,$DZ$2&ROW($DZ39)),$DY39,$DY$2&ROW($DY39)),$DX39,$DX$2&ROW($DX39)),$DW39,$DW$2&ROW($DW39)),$DV39,$DV$2&ROW($DV39)),$DU39,$DU$2&ROW($DU39)),$DT39,$DT$2&ROW($DT39)),$DS39,$DS$2&ROW($DS39)))","v":0},{"$f":"IF(Z39=\"\",0,\"X=\"&SUBSTITUTE(SUBSTITUTE(SUBSTITUTE(SUBSTITUTE(SUBSTITUTE(SUBSTITUTE(SUBSTITUTE(SUBSTITUTE(SUBSTITUTE(SUBSTITUTE(SUBSTITUTE(SUBSTITUTE(Z39,$ED39,$ED$2&ROW($ED39)),$EC39,$EC$2&ROW($EC39)),$EB39,$EB$2&ROW($EB39)),$EA39,$EA$2&ROW($EA39)),$DZ39,$DZ$2&ROW($DZ39)),$DY39,$DY$2&ROW($DY39)),$DX39,$DX$2&ROW($DX39)),$DW39,$DW$2&ROW($DW39)),$DV39,$DV$2&ROW($DV39)),$DU39,$DU$2&ROW($DU39)),$DT39,$DT$2&ROW($DT39)),$DS39,$DS$2&ROW($DS39)))","v":0},{"$f":"IF(AA39=\"\",0,\"X=\"&SUBSTITUTE(SUBSTITUTE(SUBSTITUTE(SUBSTITUTE(SUBSTITUTE(SUBSTITUTE(SUBSTITUTE(SUBSTITUTE(SUBSTITUTE(SUBSTITUTE(SUBSTITUTE(SUBSTITUTE(AA39,$ED39,$ED$2&ROW($ED39)),$EC39,$EC$2&ROW($EC39)),$EB39,$EB$2&ROW($EB39)),$EA39,$EA$2&ROW($EA39)),$DZ39,$DZ$2&ROW($DZ39)),$DY39,$DY$2&ROW($DY39)),$DX39,$DX$2&ROW($DX39)),$DW39,$DW$2&ROW($DW39)),$DV39,$DV$2&ROW($DV39)),$DU39,$DU$2&ROW($DU39)),$DT39,$DT$2&ROW($DT39)),$DS39,$DS$2&ROW($DS39)))","v":0},{"$f":"IF(AB39=\"\",0,\"X=\"&SUBSTITUTE(SUBSTITUTE(SUBSTITUTE(SUBSTITUTE(SUBSTITUTE(SUBSTITUTE(SUBSTITUTE(SUBSTITUTE(SUBSTITUTE(SUBSTITUTE(SUBSTITUTE(SUBSTITUTE(AB39,$ED39,$ED$2&ROW($ED39)),$EC39,$EC$2&ROW($EC39)),$EB39,$EB$2&ROW($EB39)),$EA39,$EA$2&ROW($EA39)),$DZ39,$DZ$2&ROW($DZ39)),$DY39,$DY$2&ROW($DY39)),$DX39,$DX$2&ROW($DX39)),$DW39,$DW$2&ROW($DW39)),$DV39,$DV$2&ROW($DV39)),$DU39,$DU$2&ROW($DU39)),$DT39,$DT$2&ROW($DT39)),$DS39,$DS$2&ROW($DS39)))","v":0},null,null,"{Factor:WinterCF}","{Factor:SummerCF}",{"$f":"IFERROR(INDEX($EG39:$IV39,MATCH(0,COUNTIF($DR39:DT39,$EG39:$IV39),0)),\"\")","v":"{Measure:Quantity}"},{"$f":"IFERROR(INDEX($EG39:$IV39,MATCH(0,COUNTIF($DR39:DU39,$EG39:$IV39),0)),\"\")","v":"{Fan HP}"},{"$f":"IFERROR(INDEX($EG39:$IV39,MATCH(0,COUNTIF($DR39:DV39,$EG39:$IV39),0)),\"\")","v":""},{"$f":"IFERROR(INDEX($EG39:$IV39,MATCH(0,COUNTIF($DR39:DW39,$EG39:$IV39),0)),\"\")","v":""},{"$f":"IFERROR(INDEX($EG39:$IV39,MATCH(0,COUNTIF($DR39:DX39,$EG39:$IV39),0)),\"\")","v":""},{"$f":"IFERROR(INDEX($EG39:$IV39,MATCH(0,COUNTIF($DR39:DY39,$EG39:$IV39),0)),\"\")","v":""},{"$f":"IFERROR(INDEX($EG39:$IV39,MATCH(0,COUNTIF($DR39:DZ39,$EG39:$IV39),0)),\"\")","v":""},{"$f":"IFERROR(INDEX($EG39:$IV39,MATCH(0,COUNTIF($DR39:EA39,$EG39:$IV39),0)),\"\")","v":""},{"$f":"IFERROR(INDEX($EG39:$IV39,MATCH(0,COUNTIF($DR39:EB39,$EG39:$IV39),0)),\"\")","v":""},{"$f":"IFERROR(INDEX($EG39:$IV39,MATCH(0,COUNTIF($DR39:EC39,$EG39:$IV39),0)),\"\")","v":""},null,null,{"$f":"IFERROR(MID($G39,FIND(CHAR(160),SUBSTITUTE($G39,\"{\",CHAR(160),EG$1)),FIND(CHAR(160),SUBSTITUTE($G39,\"}\",CHAR(160),EG$1))-FIND(CHAR(160),SUBSTITUTE($G39,\"{\",CHAR(160),EG$1))+1),\"\")","v":""},{"$f":"IFERROR(MID($G39,FIND(CHAR(160),SUBSTITUTE($G39,\"{\",CHAR(160),EH$1)),FIND(CHAR(160),SUBSTITUTE($G39,\"}\",CHAR(160),EH$1))-FIND(CHAR(160),SUBSTITUTE($G39,\"{\",CHAR(160),EH$1))+1),\"\")","v":""},{"$f":"IFERROR(MID($G39,FIND(CHAR(160),SUBSTITUTE($G39,\"{\",CHAR(160),EI$1)),FIND(CHAR(160),SUBSTITUTE($G39,\"}\",CHAR(160),EI$1))-FIND(CHAR(160),SUBSTITUTE($G39,\"{\",CHAR(160),EI$1))+1),\"\")","v":""},{"$f":"IFERROR(MID($G39,FIND(CHAR(160),SUBSTITUTE($G39,\"{\",CHAR(160),EJ$1)),FIND(CHAR(160),SUBSTITUTE($G39,\"}\",CHAR(160),EJ$1))-FIND(CHAR(160),SUBSTITUTE($G39,\"{\",CHAR(160),EJ$1))+1),\"\")","v":""},{"$f":"IFERROR(MID($G39,FIND(CHAR(160),SUBSTITUTE($G39,\"{\",CHAR(160),EK$1)),FIND(CHAR(160),SUBSTITUTE($G39,\"}\",CHAR(160),EK$1))-FIND(CHAR(160),SUBSTITUTE($G39,\"{\",CHAR(160),EK$1))+1),\"\")","v":""},{"$f":"IFERROR(MID($G39,FIND(CHAR(160),SUBSTITUTE($G39,\"{\",CHAR(160),EL$1)),FIND(CHAR(160),SUBSTITUTE($G39,\"}\",CHAR(160),EL$1))-FIND(CHAR(160),SUBSTITUTE($G39,\"{\",CHAR(160),EL$1))+1),\"\")","v":""},{"$f":"IFERROR(MID($G39,FIND(CHAR(160),SUBSTITUTE($G39,\"{\",CHAR(160),EM$1)),FIND(CHAR(160),SUBSTITUTE($G39,\"}\",CHAR(160),EM$1))-FIND(CHAR(160),SUBSTITUTE($G39,\"{\",CHAR(160),EM$1))+1),\"\")","v":""},{"$f":"IFERROR(MID($G39,FIND(CHAR(160),SUBSTITUTE($G39,\"{\",CHAR(160),EN$1)),FIND(CHAR(160),SUBSTITUTE($G39,\"}\",CHAR(160),EN$1))-FIND(CHAR(160),SUBSTITUTE($G39,\"{\",CHAR(160),EN$1))+1),\"\")","v":""},{"$f":"IFERROR(MID($G39,FIND(CHAR(160),SUBSTITUTE($G39,\"{\",CHAR(160),EO$1)),FIND(CHAR(160),SUBSTITUTE($G39,\"}\",CHAR(160),EO$1))-FIND(CHAR(160),SUBSTITUTE($G39,\"{\",CHAR(160),EO$1))+1),\"\")","v":""},{"$f":"IFERROR(MID($G39,FIND(CHAR(160),SUBSTITUTE($G39,\"{\",CHAR(160),EP$1)),FIND(CHAR(160),SUBSTITUTE($G39,\"}\",CHAR(160),EP$1))-FIND(CHAR(160),SUBSTITUTE($G39,\"{\",CHAR(160),EP$1))+1),\"\")","v":""},{"$f":"IFERROR(MID($J39,FIND(CHAR(160),SUBSTITUTE($J39,\"{\",CHAR(160),EQ$1)),FIND(CHAR(160),SUBSTITUTE($J39,\"}\",CHAR(160),EQ$1))-FIND(CHAR(160),SUBSTITUTE($J39,\"{\",CHAR(160),EQ$1))+1),\"\")","v":""},{"$f":"IFERROR(MID($J39,FIND(CHAR(160),SUBSTITUTE($J39,\"{\",CHAR(160),ER$1)),FIND(CHAR(160),SUBSTITUTE($J39,\"}\",CHAR(160),ER$1))-FIND(CHAR(160),SUBSTITUTE($J39,\"{\",CHAR(160),ER$1))+1),\"\")","v":""},{"$f":"IFERROR(MID($J39,FIND(CHAR(160),SUBSTITUTE($J39,\"{\",CHAR(160),ES$1)),FIND(CHAR(160),SUBSTITUTE($J39,\"}\",CHAR(160),ES$1))-FIND(CHAR(160),SUBSTITUTE($J39,\"{\",CHAR(160),ES$1))+1),\"\")","v":""},{"$f":"IFERROR(MID($J39,FIND(CHAR(160),SUBSTITUTE($J39,\"{\",CHAR(160),ET$1)),FIND(CHAR(160),SUBSTITUTE($J39,\"}\",CHAR(160),ET$1))-FIND(CHAR(160),SUBSTITUTE($J39,\"{\",CHAR(160),ET$1))+1),\"\")","v":""},{"$f":"IFERROR(MID($J39,FIND(CHAR(160),SUBSTITUTE($J39,\"{\",CHAR(160),EU$1)),FIND(CHAR(160),SUBSTITUTE($J39,\"}\",CHAR(160),EU$1))-FIND(CHAR(160),SUBSTITUTE($J39,\"{\",CHAR(160),EU$1))+1),\"\")","v":""},{"$f":"IFERROR(MID($J39,FIND(CHAR(160),SUBSTITUTE($J39,\"{\",CHAR(160),EV$1)),FIND(CHAR(160),SUBSTITUTE($J39,\"}\",CHAR(160),EV$1))-FIND(CHAR(160),SUBSTITUTE($J39,\"{\",CHAR(160),EV$1))+1),\"\")","v":""},{"$f":"IFERROR(MID($J39,FIND(CHAR(160),SUBSTITUTE($J39,\"{\",CHAR(160),EW$1)),FIND(CHAR(160),SUBSTITUTE($J39,\"}\",CHAR(160),EW$1))-FIND(CHAR(160),SUBSTITUTE($J39,\"{\",CHAR(160),EW$1))+1),\"\")","v":""},{"$f":"IFERROR(MID($J39,FIND(CHAR(160),SUBSTITUTE($J39,\"{\",CHAR(160),EX$1)),FIND(CHAR(160),SUBSTITUTE($J39,\"}\",CHAR(160),EX$1))-FIND(CHAR(160),SUBSTITUTE($J39,\"{\",CHAR(160),EX$1))+1),\"\")","v":""},{"$f":"IFERROR(MID($J39,FIND(CHAR(160),SUBSTITUTE($J39,\"{\",CHAR(160),EY$1)),FIND(CHAR(160),SUBSTITUTE($J39,\"}\",CHAR(160),EY$1))-FIND(CHAR(160),SUBSTITUTE($J39,\"{\",CHAR(160),EY$1))+1),\"\")","v":""},{"$f":"IFERROR(MID($J39,FIND(CHAR(160),SUBSTITUTE($J39,\"{\",CHAR(160),EZ$1)),FIND(CHAR(160),SUBSTITUTE($J39,\"}\",CHAR(160),EZ$1))-FIND(CHAR(160),SUBSTITUTE($J39,\"{\",CHAR(160),EZ$1))+1),\"\")","v":""},{"$f":"IFERROR(MID($J39,FIND(CHAR(160),SUBSTITUTE($J39,\"{\",CHAR(160),FA$1)),FIND(CHAR(160),SUBSTITUTE($J39,\"}\",CHAR(160),FA$1))-FIND(CHAR(160),SUBSTITUTE($J39,\"{\",CHAR(160),FA$1))+1),\"\")","v":""},{"$f":"IFERROR(MID($J39,FIND(CHAR(160),SUBSTITUTE($J39,\"{\",CHAR(160),FB$1)),FIND(CHAR(160),SUBSTITUTE($J39,\"}\",CHAR(160),FB$1))-FIND(CHAR(160),SUBSTITUTE($J39,\"{\",CHAR(160),FB$1))+1),\"\")","v":""},{"$f":"IFERROR(MID($O39,FIND(CHAR(160),SUBSTITUTE($O39,\"{\",CHAR(160),FC$1)),FIND(CHAR(160),SUBSTITUTE($O39,\"}\",CHAR(160),FC$1))-FIND(CHAR(160),SUBSTITUTE($O39,\"{\",CHAR(160),FC$1))+1),\"\")","v":""},{"$f":"IFERROR(MID($O39,FIND(CHAR(160),SUBSTITUTE($O39,\"{\",CHAR(160),FD$1)),FIND(CHAR(160),SUBSTITUTE($O39,\"}\",CHAR(160),FD$1))-FIND(CHAR(160),SUBSTITUTE($O39,\"{\",CHAR(160),FD$1))+1),\"\")","v":""},{"$f":"IFERROR(MID($O39,FIND(CHAR(160),SUBSTITUTE($O39,\"{\",CHAR(160),FE$1)),FIND(CHAR(160),SUBSTITUTE($O39,\"}\",CHAR(160),FE$1))-FIND(CHAR(160),SUBSTITUTE($O39,\"{\",CHAR(160),FE$1))+1),\"\")","v":""},{"$f":"IFERROR(MID($O39,FIND(CHAR(160),SUBSTITUTE($O39,\"{\",CHAR(160),FF$1)),FIND(CHAR(160),SUBSTITUTE($O39,\"}\",CHAR(160),FF$1))-FIND(CHAR(160),SUBSTITUTE($O39,\"{\",CHAR(160),FF$1))+1),\"\")","v":""},{"$f":"IFERROR(MID($O39,FIND(CHAR(160),SUBSTITUTE($O39,\"{\",CHAR(160),FG$1)),FIND(CHAR(160),SUBSTITUTE($O39,\"}\",CHAR(160),FG$1))-FIND(CHAR(160),SUBSTITUTE($O39,\"{\",CHAR(160),FG$1))+1),\"\")","v":""},{"$f":"IFERROR(MID($O39,FIND(CHAR(160),SUBSTITUTE($O39,\"{\",CHAR(160),FH$1)),FIND(CHAR(160),SUBSTITUTE($O39,\"}\",CHAR(160),FH$1))-FIND(CHAR(160),SUBSTITUTE($O39,\"{\",CHAR(160),FH$1))+1),\"\")","v":""},{"$f":"IFERROR(MID($O39,FIND(CHAR(160),SUBSTITUTE($O39,\"{\",CHAR(160),FI$1)),FIND(CHAR(160),SUBSTITUTE($O39,\"}\",CHAR(160),FI$1))-FIND(CHAR(160),SUBSTITUTE($O39,\"{\",CHAR(160),FI$1))+1),\"\")","v":""},{"$f":"IFERROR(MID($O39,FIND(CHAR(160),SUBSTITUTE($O39,\"{\",CHAR(160),FJ$1)),FIND(CHAR(160),SUBSTITUTE($O39,\"}\",CHAR(160),FJ$1))-FIND(CHAR(160),SUBSTITUTE($O39,\"{\",CHAR(160),FJ$1))+1),\"\")","v":""},{"$f":"IFERROR(MID($O39,FIND(CHAR(160),SUBSTITUTE($O39,\"{\",CHAR(160),FK$1)),FIND(CHAR(160),SUBSTITUTE($O39,\"}\",CHAR(160),FK$1))-FIND(CHAR(160),SUBSTITUTE($O39,\"{\",CHAR(160),FK$1))+1),\"\")","v":"{Measure:Quantity}"},{"$f":"IFERROR(MID($O39,FIND(CHAR(160),SUBSTITUTE($O39,\"{\",CHAR(160),FL$1)),FIND(CHAR(160),SUBSTITUTE($O39,\"}\",CHAR(160),FL$1))-FIND(CHAR(160),SUBSTITUTE($O39,\"{\",CHAR(160),FL$1))+1),\"\")","v":"{Fan HP}"},{"$f":"IFERROR(MID($R39,FIND(CHAR(160),SUBSTITUTE($R39,\"{\",CHAR(160),FM$1)),FIND(CHAR(160),SUBSTITUTE($R39,\"}\",CHAR(160),FM$1))-FIND(CHAR(160),SUBSTITUTE($R39,\"{\",CHAR(160),FM$1))+1),\"\")","v":""},{"$f":"IFERROR(MID($R39,FIND(CHAR(160),SUBSTITUTE($R39,\"{\",CHAR(160),FN$1)),FIND(CHAR(160),SUBSTITUTE($R39,\"}\",CHAR(160),FN$1))-FIND(CHAR(160),SUBSTITUTE($R39,\"{\",CHAR(160),FN$1))+1),\"\")","v":""},{"$f":"IFERROR(MID($R39,FIND(CHAR(160),SUBSTITUTE($R39,\"{\",CHAR(160),FO$1)),FIND(CHAR(160),SUBSTITUTE($R39,\"}\",CHAR(160),FO$1))-FIND(CHAR(160),SUBSTITUTE($R39,\"{\",CHAR(160),FO$1))+1),\"\")","v":""},{"$f":"IFERROR(MID($R39,FIND(CHAR(160),SUBSTITUTE($R39,\"{\",CHAR(160),FP$1)),FIND(CHAR(160),SUBSTITUTE($R39,\"}\",CHAR(160),FP$1))-FIND(CHAR(160),SUBSTITUTE($R39,\"{\",CHAR(160),FP$1))+1),\"\")","v":""},{"$f":"IFERROR(MID($R39,FIND(CHAR(160),SUBSTITUTE($R39,\"{\",CHAR(160),FQ$1)),FIND(CHAR(160),SUBSTITUTE($R39,\"}\",CHAR(160),FQ$1))-FIND(CHAR(160),SUBSTITUTE($R39,\"{\",CHAR(160),FQ$1))+1),\"\")","v":""},{"$f":"IFERROR(MID($R39,FIND(CHAR(160),SUBSTITUTE($R39,\"{\",CHAR(160),FR$1)),FIND(CHAR(160),SUBSTITUTE($R39,\"}\",CHAR(160),FR$1))-FIND(CHAR(160),SUBSTITUTE($R39,\"{\",CHAR(160),FR$1))+1),\"\")","v":""},{"$f":"IFERROR(MID($R39,FIND(CHAR(160),SUBSTITUTE($R39,\"{\",CHAR(160),FS$1)),FIND(CHAR(160),SUBSTITUTE($R39,\"}\",CHAR(160),FS$1))-FIND(CHAR(160),SUBSTITUTE($R39,\"{\",CHAR(160),FS$1))+1),\"\")","v":""},{"$f":"IFERROR(MID($R39,FIND(CHAR(160),SUBSTITUTE($R39,\"{\",CHAR(160),FT$1)),FIND(CHAR(160),SUBSTITUTE($R39,\"}\",CHAR(160),FT$1))-FIND(CHAR(160),SUBSTITUTE($R39,\"{\",CHAR(160),FT$1))+1),\"\")","v":""},{"$f":"IFERROR(MID($R39,FIND(CHAR(160),SUBSTITUTE($R39,\"{\",CHAR(160),FU$1)),FIND(CHAR(160),SUBSTITUTE($R39,\"}\",CHAR(160),FU$1))-FIND(CHAR(160),SUBSTITUTE($R39,\"{\",CHAR(160),FU$1))+1),\"\")","v":"{Measure:Quantity}"},{"$f":"IFERROR(MID($R39,FIND(CHAR(160),SUBSTITUTE($R39,\"{\",CHAR(160),FV$1)),FIND(CHAR(160),SUBSTITUTE($R39,\"}\",CHAR(160),FV$1))-FIND(CHAR(160),SUBSTITUTE($R39,\"{\",CHAR(160),FV$1))+1),\"\")","v":"{Fan HP}"},{"$f":"IFERROR(MID($U39,FIND(CHAR(160),SUBSTITUTE($U39,\"{\",CHAR(160),FW$1)),FIND(CHAR(160),SUBSTITUTE($U39,\"}\",CHAR(160),FW$1))-FIND(CHAR(160),SUBSTITUTE($U39,\"{\",CHAR(160),FW$1))+1),\"\")","v":"{Factor:WinterCF}"},{"$f":"IFERROR(MID($U39,FIND(CHAR(160),SUBSTITUTE($U39,\"{\",CHAR(160),FX$1)),FIND(CHAR(160),SUBSTITUTE($U39,\"}\",CHAR(160),FX$1))-FIND(CHAR(160),SUBSTITUTE($U39,\"{\",CHAR(160),FX$1))+1),\"\")","v":""},{"$f":"IFERROR(MID($U39,FIND(CHAR(160),SUBSTITUTE($U39,\"{\",CHAR(160),FY$1)),FIND(CHAR(160),SUBSTITUTE($U39,\"}\",CHAR(160),FY$1))-FIND(CHAR(160),SUBSTITUTE($U39,\"{\",CHAR(160),FY$1))+1),\"\")","v":""},{"$f":"IFERROR(MID($U39,FIND(CHAR(160),SUBSTITUTE($U39,\"{\",CHAR(160),FZ$1)),FIND(CHAR(160),SUBSTITUTE($U39,\"}\",CHAR(160),FZ$1))-FIND(CHAR(160),SUBSTITUTE($U39,\"{\",CHAR(160),FZ$1))+1),\"\")","v":""},{"$f":"IFERROR(MID($U39,FIND(CHAR(160),SUBSTITUTE($U39,\"{\",CHAR(160),GA$1)),FIND(CHAR(160),SUBSTITUTE($U39,\"}\",CHAR(160),GA$1))-FIND(CHAR(160),SUBSTITUTE($U39,\"{\",CHAR(160),GA$1))+1),\"\")","v":""},{"$f":"IFERROR(MID($U39,FIND(CHAR(160),SUBSTITUTE($U39,\"{\",CHAR(160),GB$1)),FIND(CHAR(160),SUBSTITUTE($U39,\"}\",CHAR(160),GB$1))-FIND(CHAR(160),SUBSTITUTE($U39,\"{\",CHAR(160),GB$1))+1),\"\")","v":""},{"$f":"IFERROR(MID($U39,FIND(CHAR(160),SUBSTITUTE($U39,\"{\",CHAR(160),GC$1)),FIND(CHAR(160),SUBSTITUTE($U39,\"}\",CHAR(160),GC$1))-FIND(CHAR(160),SUBSTITUTE($U39,\"{\",CHAR(160),GC$1))+1),\"\")","v":""},{"$f":"IFERROR(MID($U39,FIND(CHAR(160),SUBSTITUTE($U39,\"{\",CHAR(160),GD$1)),FIND(CHAR(160),SUBSTITUTE($U39,\"}\",CHAR(160),GD$1))-FIND(CHAR(160),SUBSTITUTE($U39,\"{\",CHAR(160),GD$1))+1),\"\")","v":""},{"$f":"IFERROR(MID($U39,FIND(CHAR(160),SUBSTITUTE($U39,\"{\",CHAR(160),GE$1)),FIND(CHAR(160),SUBSTITUTE($U39,\"}\",CHAR(160),GE$1))-FIND(CHAR(160),SUBSTITUTE($U39,\"{\",CHAR(160),GE$1))+1),\"\")","v":"{Measure:Quantity}"},{"$f":"IFERROR(MID($U39,FIND(CHAR(160),SUBSTITUTE($U39,\"{\",CHAR(160),GF$1)),FIND(CHAR(160),SUBSTITUTE($U39,\"}\",CHAR(160),GF$1))-FIND(CHAR(160),SUBSTITUTE($U39,\"{\",CHAR(160),GF$1))+1),\"\")","v":"{Fan HP}"},{"$f":"IFERROR(MID($V39,FIND(CHAR(160),SUBSTITUTE($V39,\"{\",CHAR(160),GG$1)),FIND(CHAR(160),SUBSTITUTE($V39,\"}\",CHAR(160),GG$1))-FIND(CHAR(160),SUBSTITUTE($V39,\"{\",CHAR(160),GG$1))+1),\"\")","v":"{Factor:SummerCF}"},{"$f":"IFERROR(MID($V39,FIND(CHAR(160),SUBSTITUTE($V39,\"{\",CHAR(160),GH$1)),FIND(CHAR(160),SUBSTITUTE($V39,\"}\",CHAR(160),GH$1))-FIND(CHAR(160),SUBSTITUTE($V39,\"{\",CHAR(160),GH$1))+1),\"\")","v":""},{"$f":"IFERROR(MID($V39,FIND(CHAR(160),SUBSTITUTE($V39,\"{\",CHAR(160),GI$1)),FIND(CHAR(160),SUBSTITUTE($V39,\"}\",CHAR(160),GI$1))-FIND(CHAR(160),SUBSTITUTE($V39,\"{\",CHAR(160),GI$1))+1),\"\")","v":""},{"$f":"IFERROR(MID($V39,FIND(CHAR(160),SUBSTITUTE($V39,\"{\",CHAR(160),GJ$1)),FIND(CHAR(160),SUBSTITUTE($V39,\"}\",CHAR(160),GJ$1))-FIND(CHAR(160),SUBSTITUTE($V39,\"{\",CHAR(160),GJ$1))+1),\"\")","v":""},{"$f":"IFERROR(MID($V39,FIND(CHAR(160),SUBSTITUTE($V39,\"{\",CHAR(160),GK$1)),FIND(CHAR(160),SUBSTITUTE($V39,\"}\",CHAR(160),GK$1))-FIND(CHAR(160),SUBSTITUTE($V39,\"{\",CHAR(160),GK$1))+1),\"\")","v":""},{"$f":"IFERROR(MID($V39,FIND(CHAR(160),SUBSTITUTE($V39,\"{\",CHAR(160),GL$1)),FIND(CHAR(160),SUBSTITUTE($V39,\"}\",CHAR(160),GL$1))-FIND(CHAR(160),SUBSTITUTE($V39,\"{\",CHAR(160),GL$1))+1),\"\")","v":""},{"$f":"IFERROR(MID($V39,FIND(CHAR(160),SUBSTITUTE($V39,\"{\",CHAR(160),GM$1)),FIND(CHAR(160),SUBSTITUTE($V39,\"}\",CHAR(160),GM$1))-FIND(CHAR(160),SUBSTITUTE($V39,\"{\",CHAR(160),GM$1))+1),\"\")","v":""},{"$f":"IFERROR(MID($V39,FIND(CHAR(160),SUBSTITUTE($V39,\"{\",CHAR(160),GN$1)),FIND(CHAR(160),SUBSTITUTE($V39,\"}\",CHAR(160),GN$1))-FIND(CHAR(160),SUBSTITUTE($V39,\"{\",CHAR(160),GN$1))+1),\"\")","v":""},{"$f":"IFERROR(MID($V39,FIND(CHAR(160),SUBSTITUTE($V39,\"{\",CHAR(160),GO$1)),FIND(CHAR(160),SUBSTITUTE($V39,\"}\",CHAR(160),GO$1))-FIND(CHAR(160),SUBSTITUTE($V39,\"{\",CHAR(160),GO$1))+1),\"\")","v":"{Measure:Quantity}"},{"$f":"IFERROR(MID($V39,FIND(CHAR(160),SUBSTITUTE($V39,\"{\",CHAR(160),GP$1)),FIND(CHAR(160),SUBSTITUTE($V39,\"}\",CHAR(160),GP$1))-FIND(CHAR(160),SUBSTITUTE($V39,\"{\",CHAR(160),GP$1))+1),\"\")","v":"{Fan HP}"},{"$f":"IFERROR(MID($W39,FIND(CHAR(160),SUBSTITUTE($W39,\"{\",CHAR(160),GQ$1)),FIND(CHAR(160),SUBSTITUTE($W39,\"}\",CHAR(160),GQ$1))-FIND(CHAR(160),SUBSTITUTE($W39,\"{\",CHAR(160),GQ$1))+1),\"\")","v":""},{"$f":"IFERROR(MID($W39,FIND(CHAR(160),SUBSTITUTE($W39,\"{\",CHAR(160),GR$1)),FIND(CHAR(160),SUBSTITUTE($W39,\"}\",CHAR(160),GR$1))-FIND(CHAR(160),SUBSTITUTE($W39,\"{\",CHAR(160),GR$1))+1),\"\")","v":""},{"$f":"IFERROR(MID($W39,FIND(CHAR(160),SUBSTITUTE($W39,\"{\",CHAR(160),GS$1)),FIND(CHAR(160),SUBSTITUTE($W39,\"}\",CHAR(160),GS$1))-FIND(CHAR(160),SUBSTITUTE($W39,\"{\",CHAR(160),GS$1))+1),\"\")","v":""},{"$f":"IFERROR(MID($W39,FIND(CHAR(160),SUBSTITUTE($W39,\"{\",CHAR(160),GT$1)),FIND(CHAR(160),SUBSTITUTE($W39,\"}\",CHAR(160),GT$1))-FIND(CHAR(160),SUBSTITUTE($W39,\"{\",CHAR(160),GT$1))+1),\"\")","v":""},{"$f":"IFERROR(MID($W39,FIND(CHAR(160),SUBSTITUTE($W39,\"{\",CHAR(160),GU$1)),FIND(CHAR(160),SUBSTITUTE($W39,\"}\",CHAR(160),GU$1))-FIND(CHAR(160),SUBSTITUTE($W39,\"{\",CHAR(160),GU$1))+1),\"\")","v":""},{"$f":"IFERROR(MID($W39,FIND(CHAR(160),SUBSTITUTE($W39,\"{\",CHAR(160),GV$1)),FIND(CHAR(160),SUBSTITUTE($W39,\"}\",CHAR(160),GV$1))-FIND(CHAR(160),SUBSTITUTE($W39,\"{\",CHAR(160),GV$1))+1),\"\")","v":""},{"$f":"IFERROR(MID($W39,FIND(CHAR(160),SUBSTITUTE($W39,\"{\",CHAR(160),GW$1)),FIND(CHAR(160),SUBSTITUTE($W39,\"}\",CHAR(160),GW$1))-FIND(CHAR(160),SUBSTITUTE($W39,\"{\",CHAR(160),GW$1))+1),\"\")","v":""},{"$f":"IFERROR(MID($W39,FIND(CHAR(160),SUBSTITUTE($W39,\"{\",CHAR(160),GX$1)),FIND(CHAR(160),SUBSTITUTE($W39,\"}\",CHAR(160),GX$1))-FIND(CHAR(160),SUBSTITUTE($W39,\"{\",CHAR(160),GX$1))+1),\"\")","v":""},{"$f":"IFERROR(MID($W39,FIND(CHAR(160),SUBSTITUTE($W39,\"{\",CHAR(160),GY$1)),FIND(CHAR(160),SUBSTITUTE($W39,\"}\",CHAR(160),GY$1))-FIND(CHAR(160),SUBSTITUTE($W39,\"{\",CHAR(160),GY$1))+1),\"\")","v":""},{"$f":"IFERROR(MID($W39,FIND(CHAR(160),SUBSTITUTE($W39,\"{\",CHAR(160),GZ$1)),FIND(CHAR(160),SUBSTITUTE($W39,\"}\",CHAR(160),GZ$1))-FIND(CHAR(160),SUBSTITUTE($W39,\"{\",CHAR(160),GZ$1))+1),\"\")","v":""},{"$f":"IFERROR(MID($X39,FIND(CHAR(160),SUBSTITUTE($X39,\"{\",CHAR(160),HA$1)),FIND(CHAR(160),SUBSTITUTE($X39,\"}\",CHAR(160),HA$1))-FIND(CHAR(160),SUBSTITUTE($X39,\"{\",CHAR(160),HA$1))+1),\"\")","v":""},{"$f":"IFERROR(MID($X39,FIND(CHAR(160),SUBSTITUTE($X39,\"{\",CHAR(160),HB$1)),FIND(CHAR(160),SUBSTITUTE($X39,\"}\",CHAR(160),HB$1))-FIND(CHAR(160),SUBSTITUTE($X39,\"{\",CHAR(160),HB$1))+1),\"\")","v":""},{"$f":"IFERROR(MID($X39,FIND(CHAR(160),SUBSTITUTE($X39,\"{\",CHAR(160),HC$1)),FIND(CHAR(160),SUBSTITUTE($X39,\"}\",CHAR(160),HC$1))-FIND(CHAR(160),SUBSTITUTE($X39,\"{\",CHAR(160),HC$1))+1),\"\")","v":""},{"$f":"IFERROR(MID($X39,FIND(CHAR(160),SUBSTITUTE($X39,\"{\",CHAR(160),HD$1)),FIND(CHAR(160),SUBSTITUTE($X39,\"}\",CHAR(160),HD$1))-FIND(CHAR(160),SUBSTITUTE($X39,\"{\",CHAR(160),HD$1))+1),\"\")","v":""},{"$f":"IFERROR(MID($X39,FIND(CHAR(160),SUBSTITUTE($X39,\"{\",CHAR(160),HE$1)),FIND(CHAR(160),SUBSTITUTE($X39,\"}\",CHAR(160),HE$1))-FIND(CHAR(160),SUBSTITUTE($X39,\"{\",CHAR(160),HE$1))+1),\"\")","v":""},{"$f":"IFERROR(MID($X39,FIND(CHAR(160),SUBSTITUTE($X39,\"{\",CHAR(160),HF$1)),FIND(CHAR(160),SUBSTITUTE($X39,\"}\",CHAR(160),HF$1))-FIND(CHAR(160),SUBSTITUTE($X39,\"{\",CHAR(160),HF$1))+1),\"\")","v":""},{"$f":"IFERROR(MID($X39,FIND(CHAR(160),SUBSTITUTE($X39,\"{\",CHAR(160),HG$1)),FIND(CHAR(160),SUBSTITUTE($X39,\"}\",CHAR(160),HG$1))-FIND(CHAR(160),SUBSTITUTE($X39,\"{\",CHAR(160),HG$1))+1),\"\")","v":""},{"$f":"IFERROR(MID($X39,FIND(CHAR(160),SUBSTITUTE($X39,\"{\",CHAR(160),HH$1)),FIND(CHAR(160),SUBSTITUTE($X39,\"}\",CHAR(160),HH$1))-FIND(CHAR(160),SUBSTITUTE($X39,\"{\",CHAR(160),HH$1))+1),\"\")","v":""},{"$f":"IFERROR(MID($X39,FIND(CHAR(160),SUBSTITUTE($X39,\"{\",CHAR(160),HI$1)),FIND(CHAR(160),SUBSTITUTE($X39,\"}\",CHAR(160),HI$1))-FIND(CHAR(160),SUBSTITUTE($X39,\"{\",CHAR(160),HI$1))+1),\"\")","v":""},{"$f":"IFERROR(MID($X39,FIND(CHAR(160),SUBSTITUTE($X39,\"{\",CHAR(160),HJ$1)),FIND(CHAR(160),SUBSTITUTE($X39,\"}\",CHAR(160),HJ$1))-FIND(CHAR(160),SUBSTITUTE($X39,\"{\",CHAR(160),HJ$1))+1),\"\")","v":""},{"$f":"IFERROR(MID($Y39,FIND(CHAR(160),SUBSTITUTE($Y39,\"{\",CHAR(160),HK$1)),FIND(CHAR(160),SUBSTITUTE($Y39,\"}\",CHAR(160),HK$1))-FIND(CHAR(160),SUBSTITUTE($Y39,\"{\",CHAR(160),HK$1))+1),\"\")","v":""},{"$f":"IFERROR(MID($Y39,FIND(CHAR(160),SUBSTITUTE($Y39,\"{\",CHAR(160),HL$1)),FIND(CHAR(160),SUBSTITUTE($Y39,\"}\",CHAR(160),HL$1))-FIND(CHAR(160),SUBSTITUTE($Y39,\"{\",CHAR(160),HL$1))+1),\"\")","v":""},{"$f":"IFERROR(MID($Y39,FIND(CHAR(160),SUBSTITUTE($Y39,\"{\",CHAR(160),HM$1)),FIND(CHAR(160),SUBSTITUTE($Y39,\"}\",CHAR(160),HM$1))-FIND(CHAR(160),SUBSTITUTE($Y39,\"{\",CHAR(160),HM$1))+1),\"\")","v":""},{"$f":"IFERROR(MID($Y39,FIND(CHAR(160),SUBSTITUTE($Y39,\"{\",CHAR(160),HN$1)),FIND(CHAR(160),SUBSTITUTE($Y39,\"}\",CHAR(160),HN$1))-FIND(CHAR(160),SUBSTITUTE($Y39,\"{\",CHAR(160),HN$1))+1),\"\")","v":""},{"$f":"IFERROR(MID($Y39,FIND(CHAR(160),SUBSTITUTE($Y39,\"{\",CHAR(160),HO$1)),FIND(CHAR(160),SUBSTITUTE($Y39,\"}\",CHAR(160),HO$1))-FIND(CHAR(160),SUBSTITUTE($Y39,\"{\",CHAR(160),HO$1))+1),\"\")","v":""},{"$f":"IFERROR(MID($Y39,FIND(CHAR(160),SUBSTITUTE($Y39,\"{\",CHAR(160),HP$1)),FIND(CHAR(160),SUBSTITUTE($Y39,\"}\",CHAR(160),HP$1))-FIND(CHAR(160),SUBSTITUTE($Y39,\"{\",CHAR(160),HP$1))+1),\"\")","v":""},{"$f":"IFERROR(MID($Y39,FIND(CHAR(160),SUBSTITUTE($Y39,\"{\",CHAR(160),HQ$1)),FIND(CHAR(160),SUBSTITUTE($Y39,\"}\",CHAR(160),HQ$1))-FIND(CHAR(160),SUBSTITUTE($Y39,\"{\",CHAR(160),HQ$1))+1),\"\")","v":""},{"$f":"IFERROR(MID($Y39,FIND(CHAR(160),SUBSTITUTE($Y39,\"{\",CHAR(160),HR$1)),FIND(CHAR(160),SUBSTITUTE($Y39,\"}\",CHAR(160),HR$1))-FIND(CHAR(160),SUBSTITUTE($Y39,\"{\",CHAR(160),HR$1))+1),\"\")","v":""},{"$f":"IFERROR(MID($Y39,FIND(CHAR(160),SUBSTITUTE($Y39,\"{\",CHAR(160),HS$1)),FIND(CHAR(160),SUBSTITUTE($Y39,\"}\",CHAR(160),HS$1))-FIND(CHAR(160),SUBSTITUTE($Y39,\"{\",CHAR(160),HS$1))+1),\"\")","v":""},{"$f":"IFERROR(MID($Y39,FIND(CHAR(160),SUBSTITUTE($Y39,\"{\",CHAR(160),HT$1)),FIND(CHAR(160),SUBSTITUTE($Y39,\"}\",CHAR(160),HT$1))-FIND(CHAR(160),SUBSTITUTE($Y39,\"{\",CHAR(160),HT$1))+1),\"\")","v":""},{"$f":"IFERROR(MID($Z39,FIND(CHAR(160),SUBSTITUTE($Z39,\"{\",CHAR(160),HU$1)),FIND(CHAR(160),SUBSTITUTE($Z39,\"}\",CHAR(160),HU$1))-FIND(CHAR(160),SUBSTITUTE($Z39,\"{\",CHAR(160),HU$1))+1),\"\")","v":""},{"$f":"IFERROR(MID($Z39,FIND(CHAR(160),SUBSTITUTE($Z39,\"{\",CHAR(160),HV$1)),FIND(CHAR(160),SUBSTITUTE($Z39,\"}\",CHAR(160),HV$1))-FIND(CHAR(160),SUBSTITUTE($Z39,\"{\",CHAR(160),HV$1))+1),\"\")","v":""},{"$f":"IFERROR(MID($Z39,FIND(CHAR(160),SUBSTITUTE($Z39,\"{\",CHAR(160),HW$1)),FIND(CHAR(160),SUBSTITUTE($Z39,\"}\",CHAR(160),HW$1))-FIND(CHAR(160),SUBSTITUTE($Z39,\"{\",CHAR(160),HW$1))+1),\"\")","v":""},{"$f":"IFERROR(MID($Z39,FIND(CHAR(160),SUBSTITUTE($Z39,\"{\",CHAR(160),HX$1)),FIND(CHAR(160),SUBSTITUTE($Z39,\"}\",CHAR(160),HX$1))-FIND(CHAR(160),SUBSTITUTE($Z39,\"{\",CHAR(160),HX$1))+1),\"\")","v":""},{"$f":"IFERROR(MID($Z39,FIND(CHAR(160),SUBSTITUTE($Z39,\"{\",CHAR(160),HY$1)),FIND(CHAR(160),SUBSTITUTE($Z39,\"}\",CHAR(160),HY$1))-FIND(CHAR(160),SUBSTITUTE($Z39,\"{\",CHAR(160),HY$1))+1),\"\")","v":""},{"$f":"IFERROR(MID($Z39,FIND(CHAR(160),SUBSTITUTE($Z39,\"{\",CHAR(160),HZ$1)),FIND(CHAR(160),SUBSTITUTE($Z39,\"}\",CHAR(160),HZ$1))-FIND(CHAR(160),SUBSTITUTE($Z39,\"{\",CHAR(160),HZ$1))+1),\"\")","v":""},{"$f":"IFERROR(MID($Z39,FIND(CHAR(160),SUBSTITUTE($Z39,\"{\",CHAR(160),IA$1)),FIND(CHAR(160),SUBSTITUTE($Z39,\"}\",CHAR(160),IA$1))-FIND(CHAR(160),SUBSTITUTE($Z39,\"{\",CHAR(160),IA$1))+1),\"\")","v":""},{"$f":"IFERROR(MID($Z39,FIND(CHAR(160),SUBSTITUTE($Z39,\"{\",CHAR(160),IB$1)),FIND(CHAR(160),SUBSTITUTE($Z39,\"}\",CHAR(160),IB$1))-FIND(CHAR(160),SUBSTITUTE($Z39,\"{\",CHAR(160),IB$1))+1),\"\")","v":""},{"$f":"IFERROR(MID($Z39,FIND(CHAR(160),SUBSTITUTE($Z39,\"{\",CHAR(160),IC$1)),FIND(CHAR(160),SUBSTITUTE($Z39,\"}\",CHAR(160),IC$1))-FIND(CHAR(160),SUBSTITUTE($Z39,\"{\",CHAR(160),IC$1))+1),\"\")","v":""},{"$f":"IFERROR(MID($Z39,FIND(CHAR(160),SUBSTITUTE($Z39,\"{\",CHAR(160),ID$1)),FIND(CHAR(160),SUBSTITUTE($Z39,\"}\",CHAR(160),ID$1))-FIND(CHAR(160),SUBSTITUTE($Z39,\"{\",CHAR(160),ID$1))+1),\"\")","v":""},{"$f":"IFERROR(MID($AA39,FIND(CHAR(160),SUBSTITUTE($AA39,\"{\",CHAR(160),IE$1)),FIND(CHAR(160),SUBSTITUTE($AA39,\"}\",CHAR(160),IE$1))-FIND(CHAR(160),SUBSTITUTE($AA39,\"{\",CHAR(160),IE$1))+1),\"\")","v":""},{"$f":"IFERROR(MID($AA39,FIND(CHAR(160),SUBSTITUTE($AA39,\"{\",CHAR(160),IF$1)),FIND(CHAR(160),SUBSTITUTE($AA39,\"}\",CHAR(160),IF$1))-FIND(CHAR(160),SUBSTITUTE($AA39,\"{\",CHAR(160),IF$1))+1),\"\")","v":""},{"$f":"IFERROR(MID($AA39,FIND(CHAR(160),SUBSTITUTE($AA39,\"{\",CHAR(160),IG$1)),FIND(CHAR(160),SUBSTITUTE($AA39,\"}\",CHAR(160),IG$1))-FIND(CHAR(160),SUBSTITUTE($AA39,\"{\",CHAR(160),IG$1))+1),\"\")","v":""},{"$f":"IFERROR(MID($AA39,FIND(CHAR(160),SUBSTITUTE($AA39,\"{\",CHAR(160),IH$1)),FIND(CHAR(160),SUBSTITUTE($AA39,\"}\",CHAR(160),IH$1))-FIND(CHAR(160),SUBSTITUTE($AA39,\"{\",CHAR(160),IH$1))+1),\"\")","v":""},{"$f":"IFERROR(MID($AA39,FIND(CHAR(160),SUBSTITUTE($AA39,\"{\",CHAR(160),II$1)),FIND(CHAR(160),SUBSTITUTE($AA39,\"}\",CHAR(160),II$1))-FIND(CHAR(160),SUBSTITUTE($AA39,\"{\",CHAR(160),II$1))+1),\"\")","v":""},{"$f":"IFERROR(MID($AA39,FIND(CHAR(160),SUBSTITUTE($AA39,\"{\",CHAR(160),IJ$1)),FIND(CHAR(160),SUBSTITUTE($AA39,\"}\",CHAR(160),IJ$1))-FIND(CHAR(160),SUBSTITUTE($AA39,\"{\",CHAR(160),IJ$1))+1),\"\")","v":""},{"$f":"IFERROR(MID($AA39,FIND(CHAR(160),SUBSTITUTE($AA39,\"{\",CHAR(160),IK$1)),FIND(CHAR(160),SUBSTITUTE($AA39,\"}\",CHAR(160),IK$1))-FIND(CHAR(160),SUBSTITUTE($AA39,\"{\",CHAR(160),IK$1))+1),\"\")","v":""},{"$f":"IFERROR(MID($AA39,FIND(CHAR(160),SUBSTITUTE($AA39,\"{\",CHAR(160),IL$1)),FIND(CHAR(160),SUBSTITUTE($AA39,\"}\",CHAR(160),IL$1))-FIND(CHAR(160),SUBSTITUTE($AA39,\"{\",CHAR(160),IL$1))+1),\"\")","v":""},{"$f":"IFERROR(MID($AA39,FIND(CHAR(160),SUBSTITUTE($AA39,\"{\",CHAR(160),IM$1)),FIND(CHAR(160),SUBSTITUTE($AA39,\"}\",CHAR(160),IM$1))-FIND(CHAR(160),SUBSTITUTE($AA39,\"{\",CHAR(160),IM$1))+1),\"\")","v":""},{"$f":"IFERROR(MID($AA39,FIND(CHAR(160),SUBSTITUTE($AA39,\"{\",CHAR(160),IN$1)),FIND(CHAR(160),SUBSTITUTE($AA39,\"}\",CHAR(160),IN$1))-FIND(CHAR(160),SUBSTITUTE($AA39,\"{\",CHAR(160),IN$1))+1),\"\")","v":""},{"$f":"IFERROR(MID($AB39,FIND(CHAR(160),SUBSTITUTE($AB39,\"{\",CHAR(160),IO$1)),FIND(CHAR(160),SUBSTITUTE($AB39,\"}\",CHAR(160),IO$1))-FIND(CHAR(160),SUBSTITUTE($AB39,\"{\",CHAR(160),IO$1))+1),\"\")","v":""},{"$f":"IFERROR(MID($AB39,FIND(CHAR(160),SUBSTITUTE($AB39,\"{\",CHAR(160),IP$1)),FIND(CHAR(160),SUBSTITUTE($AB39,\"}\",CHAR(160),IP$1))-FIND(CHAR(160),SUBSTITUTE($AB39,\"{\",CHAR(160),IP$1))+1),\"\")","v":""},{"$f":"IFERROR(MID($AB39,FIND(CHAR(160),SUBSTITUTE($AB39,\"{\",CHAR(160),IQ$1)),FIND(CHAR(160),SUBSTITUTE($AB39,\"}\",CHAR(160),IQ$1))-FIND(CHAR(160),SUBSTITUTE($AB39,\"{\",CHAR(160),IQ$1))+1),\"\")","v":""},{"$f":"IFERROR(MID($AB39,FIND(CHAR(160),SUBSTITUTE($AB39,\"{\",CHAR(160),IR$1)),FIND(CHAR(160),SUBSTITUTE($AB39,\"}\",CHAR(160),IR$1))-FIND(CHAR(160),SUBSTITUTE($AB39,\"{\",CHAR(160),IR$1))+1),\"\")","v":""},{"$f":"IFERROR(MID($AB39,FIND(CHAR(160),SUBSTITUTE($AB39,\"{\",CHAR(160),IS$1)),FIND(CHAR(160),SUBSTITUTE($AB39,\"}\",CHAR(160),IS$1))-FIND(CHAR(160),SUBSTITUTE($AB39,\"{\",CHAR(160),IS$1))+1),\"\")","v":""},{"$f":"IFERROR(MID($AB39,FIND(CHAR(160),SUBSTITUTE($AB39,\"{\",CHAR(160),IT$1)),FIND(CHAR(160),SUBSTITUTE($AB39,\"}\",CHAR(160),IT$1))-FIND(CHAR(160),SUBSTITUTE($AB39,\"{\",CHAR(160),IT$1))+1),\"\")","v":""},{"$f":"IFERROR(MID($AB39,FIND(CHAR(160),SUBSTITUTE($AB39,\"{\",CHAR(160),IU$1)),FIND(CHAR(160),SUBSTITUTE($AB39,\"}\",CHAR(160),IU$1))-FIND(CHAR(160),SUBSTITUTE($AB39,\"{\",CHAR(160),IU$1))+1),\"\")","v":""},{"$f":"IFERROR(MID($AB39,FIND(CHAR(160),SUBSTITUTE($AB39,\"{\",CHAR(160),IV$1)),FIND(CHAR(160),SUBSTITUTE($AB39,\"}\",CHAR(160),IV$1))-FIND(CHAR(160),SUBSTITUTE($AB39,\"{\",CHAR(160),IV$1))+1),\"\")","v":""},{"$f":"IFERROR(MID($AB39,FIND(CHAR(160),SUBSTITUTE($AB39,\"{\",CHAR(160),IW$1)),FIND(CHAR(160),SUBSTITUTE($AB39,\"}\",CHAR(160),IW$1))-FIND(CHAR(160),SUBSTITUTE($AB39,\"{\",CHAR(160),IW$1))+1),\"\")","v":""},{"$f":"IFERROR(MID($AB39,FIND(CHAR(160),SUBSTITUTE($AB39,\"{\",CHAR(160),IX$1)),FIND(CHAR(160),SUBSTITUTE($AB39,\"}\",CHAR(160),IX$1))-FIND(CHAR(160),SUBSTITUTE($AB39,\"{\",CHAR(160),IX$1))+1),\"\")","v":""},null,{"$f":"10-COUNTIF(DU39:ED39,\"\")","v":2}]
["C&I Agricultural Solutions","POTATO: Adjustable Speed Drive - 10 HP Ventilation Fan Motor","AASD - ASD10","2021-07-01","2022-06-30","Per Measure",1745,0,"Per Measure",1200,0,"2016-07-01","2022-06-30","Calculated","{Measure:Quantity} * {Fan HP} * 2540",1E-4,null,"{Measure:Quantity} * {Fan HP} * 0.71",null,null,"{Measure:Quantity} * {Fan HP} * 0.71 * {Factor:WinterCF}","{Measure:Quantity} * {Fan HP} * 0.71 * {Factor:SummerCF}",null,null,null,null,null,null,"2020-04-01","2022-06-30",15,0.73699999999999999,0,0.66700000000000004,0.33300000000000002,0,0,1,1.1220000000000001,1,0.52,1.6E-2,null,{"$f":"DU40","v":"{Measure:Quantity}"},1,{"$f":"DV40","v":"{Fan HP}"},10,{"$f":"DW40","v":""},null,{"$f":"DX40","v":""},null,{"$f":"DY40","v":""},null,{"$f":"DZ40","v":""},null,{"$f":"EA40","v":""},null,{"$f":"EB40","v":""},null,{"$f":"EC40","v":""},null,{"$f":"ED40","v":""},null,{"$f":"AS40 * AU40 * 2540","v":25400},{"$f":"0.0001","v":1E-4},0,{"$f":"AS40 * AU40 * 0.71","v":7.1},0,0,{"$f":"AS40 * AU40 * 0.71 * AF40","v":5.2326999999999995},{"$f":"AS40 * AU40 * 0.71 * AG40","v":0},0,0,0,0,0,0,null,"Res","Default DR",{"$f":"Benefits(BL40,BR40,BS40,BT40,BU40,BV40,BW40,BX40,BY40,BZ40,AE40,AH40,AI40,AJ40,AK40,AL40,AM40,AN40,AO40,AP40,CA40,CB40)","v":39920.086570730571},19704.441668121941,0,0,0,0,0,0,0,{"$f":"SUMPRODUCT(CC40:CK40,--(CC40:CK40>0))","v":59624.528238852508},{"$f":"-SUMPRODUCT(CC40:CK40,--(CC40:CK40<0))","v":0},null,{"$f":"1745","v":1745},null,null,{"$f":"CM40+CO40","v":1745},{"$f":"IF(NetOrGross=\"Net\",(1-AO40+AP40),1)","v":1},{"$f":"(SUMPRODUCT(CC40:CJ40,--(CC40:CJ40>0))+CN40)*CS40/((-SUMPRODUCT(CC40:CJ40,--(CC40:CJ40<0))+MAX(CO40,CV40)+CP40+CQ40)*CS40+IF(FRIncentives=\"Yes\",CV40*(1-CS40),0))","v":34.168784091032954},1,{"$f":"1200","v":1200},null,"Electric","y",null,{"$f":"IF(F40=\"Manual Entry\",\"Manual\",IF(G40=\"\",0,\"X=\"&SUBSTITUTE(SUBSTITUTE(SUBSTITUTE(SUBSTITUTE(SUBSTITUTE(SUBSTITUTE(SUBSTITUTE(SUBSTITUTE(SUBSTITUTE(SUBSTITUTE(SUBSTITUTE(SUBSTITUTE(G40,$ED40,$ED$2&ROW($ED40)),$EC40,$EC$2&ROW($EC40)),$EB40,$EB$2&ROW($EB40)),$EA40,$EA$2&ROW($EA40)),$DZ40,$DZ$2&ROW($DZ40)),$DY40,$DY$2&ROW($DY40)),$DX40,$DX$2&ROW($DX40)),$DW40,$DW$2&ROW($DW40)),$DV40,$DV$2&ROW($DV40)),$DU40,$DU$2&ROW($DU40)),$DT40,$DT$2&ROW($DT40)),$DS40,$DS$2&ROW($DS40))))","v":"X=1745"},{"$f":"IF(I40=\"Manual Entry\",\"Manual\",IF(J40=\"\",0,\"X=\"&SUBSTITUTE(SUBSTITUTE(SUBSTITUTE(SUBSTITUTE(SUBSTITUTE(SUBSTITUTE(SUBSTITUTE(SUBSTITUTE(SUBSTITUTE(SUBSTITUTE(SUBSTITUTE(SUBSTITUTE(J40,$ED40,$ED$2&ROW($ED40)),$EC40,$EC$2&ROW($EC40)),$EB40,$EB$2&ROW($EB40)),$EA40,$EA$2&ROW($EA40)),$DZ40,$DZ$2&ROW($DZ40)),$DY40,$DY$2&ROW($DY40)),$DX40,$DX$2&ROW($DX40)),$DW40,$DW$2&ROW($DW40)),$DV40,$DV$2&ROW($DV40)),$DU40,$DU$2&ROW($DU40)),$DT40,$DT$2&ROW($DT40)),$DS40,$DS$2&ROW($DS40))))","v":"X=1200"},{"$f":"IF(O40=\"\",0,\"X=\"&SUBSTITUTE(SUBSTITUTE(SUBSTITUTE(SUBSTITUTE(SUBSTITUTE(SUBSTITUTE(SUBSTITUTE(SUBSTITUTE(SUBSTITUTE(SUBSTITUTE(SUBSTITUTE(SUBSTITUTE(O40,$ED40,$ED$2&ROW($ED40)),$EC40,$EC$2&ROW($EC40)),$EB40,$EB$2&ROW($EB40)),$EA40,$EA$2&ROW($EA40)),$DZ40,$DZ$2&ROW($DZ40)),$DY40,$DY$2&ROW($DY40)),$DX40,$DX$2&ROW($DX40)),$DW40,$DW$2&ROW($DW40)),$DV40,$DV$2&ROW($DV40)),$DU40,$DU$2&ROW($DU40)),$DT40,$DT$2&ROW($DT40)),$DS40,$DS$2&ROW($DS40)))","v":"X=AS40 * AU40 * 2540"},{"$f":"IF(P40=\"\",0,\"X=\"&SUBSTITUTE(SUBSTITUTE(SUBSTITUTE(SUBSTITUTE(SUBSTITUTE(SUBSTITUTE(SUBSTITUTE(SUBSTITUTE(SUBSTITUTE(SUBSTITUTE(SUBSTITUTE(SUBSTITUTE(P40,$ED40,$ED$2&ROW($ED40)),$EC40,$EC$2&ROW($EC40)),$EB40,$EB$2&ROW($EB40)),$EA40,$EA$2&ROW($EA40)),$DZ40,$DZ$2&ROW($DZ40)),$DY40,$DY$2&ROW($DY40)),$DX40,$DX$2&ROW($DX40)),$DW40,$DW$2&ROW($DW40)),$DV40,$DV$2&ROW($DV40)),$DU40,$DU$2&ROW($DU40)),$DT40,$DT$2&ROW($DT40)),$DS40,$DS$2&ROW($DS40)))","v":"X=0.0001"},{"$f":"IF(Q40=\"\",0,\"X=\"&SUBSTITUTE(SUBSTITUTE(SUBSTITUTE(SUBSTITUTE(SUBSTITUTE(SUBSTITUTE(SUBSTITUTE(SUBSTITUTE(SUBSTITUTE(SUBSTITUTE(SUBSTITUTE(SUBSTITUTE(Q40,$ED40,$ED$2&ROW($ED40)),$EC40,$EC$2&ROW($EC40)),$EB40,$EB$2&ROW($EB40)),$EA40,$EA$2&ROW($EA40)),$DZ40,$DZ$2&ROW($DZ40)),$DY40,$DY$2&ROW($DY40)),$DX40,$DX$2&ROW($DX40)),$DW40,$DW$2&ROW($DW40)),$DV40,$DV$2&ROW($DV40)),$DU40,$DU$2&ROW($DU40)),$DT40,$DT$2&ROW($DT40)),$DS40,$DS$2&ROW($DS40)))","v":0},{"$f":"IF(R40=\"\",0,\"X=\"&SUBSTITUTE(SUBSTITUTE(SUBSTITUTE(SUBSTITUTE(SUBSTITUTE(SUBSTITUTE(SUBSTITUTE(SUBSTITUTE(SUBSTITUTE(SUBSTITUTE(SUBSTITUTE(SUBSTITUTE(R40,$ED40,$ED$2&ROW($ED40)),$EC40,$EC$2&ROW($EC40)),$EB40,$EB$2&ROW($EB40)),$EA40,$EA$2&ROW($EA40)),$DZ40,$DZ$2&ROW($DZ40)),$DY40,$DY$2&ROW($DY40)),$DX40,$DX$2&ROW($DX40)),$DW40,$DW$2&ROW($DW40)),$DV40,$DV$2&ROW($DV40)),$DU40,$DU$2&ROW($DU40)),$DT40,$DT$2&ROW($DT40)),$DS40,$DS$2&ROW($DS40)))","v":"X=AS40 * AU40 * 0.71"},{"$f":"IF(S40=\"\",0,\"X=\"&SUBSTITUTE(SUBSTITUTE(SUBSTITUTE(SUBSTITUTE(SUBSTITUTE(SUBSTITUTE(SUBSTITUTE(SUBSTITUTE(SUBSTITUTE(SUBSTITUTE(SUBSTITUTE(SUBSTITUTE(S40,$ED40,$ED$2&ROW($ED40)),$EC40,$EC$2&ROW($EC40)),$EB40,$EB$2&ROW($EB40)),$EA40,$EA$2&ROW($EA40)),$DZ40,$DZ$2&ROW($DZ40)),$DY40,$DY$2&ROW($DY40)),$DX40,$DX$2&ROW($DX40)),$DW40,$DW$2&ROW($DW40)),$DV40,$DV$2&ROW($DV40)),$DU40,$DU$2&ROW($DU40)),$DT40,$DT$2&ROW($DT40)),$DS40,$DS$2&ROW($DS40)))","v":0},{"$f":"IF(T40=\"\",0,\"X=\"&SUBSTITUTE(SUBSTITUTE(SUBSTITUTE(SUBSTITUTE(SUBSTITUTE(SUBSTITUTE(SUBSTITUTE(SUBSTITUTE(SUBSTITUTE(SUBSTITUTE(SUBSTITUTE(SUBSTITUTE(T40,$ED40,$ED$2&ROW($ED40)),$EC40,$EC$2&ROW($EC40)),$EB40,$EB$2&ROW($EB40)),$EA40,$EA$2&ROW($EA40)),$DZ40,$DZ$2&ROW($DZ40)),$DY40,$DY$2&ROW($DY40)),$DX40,$DX$2&ROW($DX40)),$DW40,$DW$2&ROW($DW40)),$DV40,$DV$2&ROW($DV40)),$DU40,$DU$2&ROW($DU40)),$DT40,$DT$2&ROW($DT40)),$DS40,$DS$2&ROW($DS40)))","v":0},{"$f":"IF(U40=\"\",0,\"X=\"&SUBSTITUTE(SUBSTITUTE(SUBSTITUTE(SUBSTITUTE(SUBSTITUTE(SUBSTITUTE(SUBSTITUTE(SUBSTITUTE(SUBSTITUTE(SUBSTITUTE(SUBSTITUTE(SUBSTITUTE(U40,$ED40,$ED$2&ROW($ED40)),$EC40,$EC$2&ROW($EC40)),$EB40,$EB$2&ROW($EB40)),$EA40,$EA$2&ROW($EA40)),$DZ40,$DZ$2&ROW($DZ40)),$DY40,$DY$2&ROW($DY40)),$DX40,$DX$2&ROW($DX40)),$DW40,$DW$2&ROW($DW40)),$DV40,$DV$2&ROW($DV40)),$DU40,$DU$2&ROW($DU40)),$DT40,$DT$2&ROW($DT40)),$DS40,$DS$2&ROW($DS40)))","v":"X=AS40 * AU40 * 0.71 * AF40"},{"$f":"IF(V40=\"\",0,\"X=\"&SUBSTITUTE(SUBSTITUTE(SUBSTITUTE(SUBSTITUTE(SUBSTITUTE(SUBSTITUTE(SUBSTITUTE(SUBSTITUTE(SUBSTITUTE(SUBSTITUTE(SUBSTITUTE(SUBSTITUTE(V40,$ED40,$ED$2&ROW($ED40)),$EC40,$EC$2&ROW($EC40)),$EB40,$EB$2&ROW($EB40)),$EA40,$EA$2&ROW($EA40)),$DZ40,$DZ$2&ROW($DZ40)),$DY40,$DY$2&ROW($DY40)),$DX40,$DX$2&ROW($DX40)),$DW40,$DW$2&ROW($DW40)),$DV40,$DV$2&ROW($DV40)),$DU40,$DU$2&ROW($DU40)),$DT40,$DT$2&ROW($DT40)),$DS40,$DS$2&ROW($DS40)))","v":"X=AS40 * AU40 * 0.71 * AG40"},{"$f":"IF(W40=\"\",0,\"X=\"&SUBSTITUTE(SUBSTITUTE(SUBSTITUTE(SUBSTITUTE(SUBSTITUTE(SUBSTITUTE(SUBSTITUTE(SUBSTITUTE(SUBSTITUTE(SUBSTITUTE(SUBSTITUTE(SUBSTITUTE(W40,$ED40,$ED$2&ROW($ED40)),$EC40,$EC$2&ROW($EC40)),$EB40,$EB$2&ROW($EB40)),$EA40,$EA$2&ROW($EA40)),$DZ40,$DZ$2&ROW($DZ40)),$DY40,$DY$2&ROW($DY40)),$DX40,$DX$2&ROW($DX40)),$DW40,$DW$2&ROW($DW40)),$DV40,$DV$2&ROW($DV40)),$DU40,$DU$2&ROW($DU40)),$DT40,$DT$2&ROW($DT40)),$DS40,$DS$2&ROW($DS40)))","v":0},{"$f":"IF(X40=\"\",0,\"X=\"&SUBSTITUTE(SUBSTITUTE(SUBSTITUTE(SUBSTITUTE(SUBSTITUTE(SUBSTITUTE(SUBSTITUTE(SUBSTITUTE(SUBSTITUTE(SUBSTITUTE(SUBSTITUTE(SUBSTITUTE(X40,$ED40,$ED$2&ROW($ED40)),$EC40,$EC$2&ROW($EC40)),$EB40,$EB$2&ROW($EB40)),$EA40,$EA$2&ROW($EA40)),$DZ40,$DZ$2&ROW($DZ40)),$DY40,$DY$2&ROW($DY40)),$DX40,$DX$2&ROW($DX40)),$DW40,$DW$2&ROW($DW40)),$DV40,$DV$2&ROW($DV40)),$DU40,$DU$2&ROW($DU40)),$DT40,$DT$2&ROW($DT40)),$DS40,$DS$2&ROW($DS40)))","v":0},{"$f":"IF(Y40=\"\",0,\"X=\"&SUBSTITUTE(SUBSTITUTE(SUBSTITUTE(SUBSTITUTE(SUBSTITUTE(SUBSTITUTE(SUBSTITUTE(SUBSTITUTE(SUBSTITUTE(SUBSTITUTE(SUBSTITUTE(SUBSTITUTE(Y40,$ED40,$ED$2&ROW($ED40)),$EC40,$EC$2&ROW($EC40)),$EB40,$EB$2&ROW($EB40)),$EA40,$EA$2&ROW($EA40)),$DZ40,$DZ$2&ROW($DZ40)),$DY40,$DY$2&ROW($DY40)),$DX40,$DX$2&ROW($DX40)),$DW40,$DW$2&ROW($DW40)),$DV40,$DV$2&ROW($DV40)),$DU40,$DU$2&ROW($DU40)),$DT40,$DT$2&ROW($DT40)),$DS40,$DS$2&ROW($DS40)))","v":0},{"$f":"IF(Z40=\"\",0,\"X=\"&SUBSTITUTE(SUBSTITUTE(SUBSTITUTE(SUBSTITUTE(SUBSTITUTE(SUBSTITUTE(SUBSTITUTE(SUBSTITUTE(SUBSTITUTE(SUBSTITUTE(SUBSTITUTE(SUBSTITUTE(Z40,$ED40,$ED$2&ROW($ED40)),$EC40,$EC$2&ROW($EC40)),$EB40,$EB$2&ROW($EB40)),$EA40,$EA$2&ROW($EA40)),$DZ40,$DZ$2&ROW($DZ40)),$DY40,$DY$2&ROW($DY40)),$DX40,$DX$2&ROW($DX40)),$DW40,$DW$2&ROW($DW40)),$DV40,$DV$2&ROW($DV40)),$DU40,$DU$2&ROW($DU40)),$DT40,$DT$2&ROW($DT40)),$DS40,$DS$2&ROW($DS40)))","v":0},{"$f":"IF(AA40=\"\",0,\"X=\"&SUBSTITUTE(SUBSTITUTE(SUBSTITUTE(SUBSTITUTE(SUBSTITUTE(SUBSTITUTE(SUBSTITUTE(SUBSTITUTE(SUBSTITUTE(SUBSTITUTE(SUBSTITUTE(SUBSTITUTE(AA40,$ED40,$ED$2&ROW($ED40)),$EC40,$EC$2&ROW($EC40)),$EB40,$EB$2&ROW($EB40)),$EA40,$EA$2&ROW($EA40)),$DZ40,$DZ$2&ROW($DZ40)),$DY40,$DY$2&ROW($DY40)),$DX40,$DX$2&ROW($DX40)),$DW40,$DW$2&ROW($DW40)),$DV40,$DV$2&ROW($DV40)),$DU40,$DU$2&ROW($DU40)),$DT40,$DT$2&ROW($DT40)),$DS40,$DS$2&ROW($DS40)))","v":0},{"$f":"IF(AB40=\"\",0,\"X=\"&SUBSTITUTE(SUBSTITUTE(SUBSTITUTE(SUBSTITUTE(SUBSTITUTE(SUBSTITUTE(SUBSTITUTE(SUBSTITUTE(SUBSTITUTE(SUBSTITUTE(SUBSTITUTE(SUBSTITUTE(AB40,$ED40,$ED$2&ROW($ED40)),$EC40,$EC$2&ROW($EC40)),$EB40,$EB$2&ROW($EB40)),$EA40,$EA$2&ROW($EA40)),$DZ40,$DZ$2&ROW($DZ40)),$DY40,$DY$2&ROW($DY40)),$DX40,$DX$2&ROW($DX40)),$DW40,$DW$2&ROW($DW40)),$DV40,$DV$2&ROW($DV40)),$DU40,$DU$2&ROW($DU40)),$DT40,$DT$2&ROW($DT40)),$DS40,$DS$2&ROW($DS40)))","v":0},null,null,"{Factor:WinterCF}","{Factor:SummerCF}",{"$f":"IFERROR(INDEX($EG40:$IV40,MATCH(0,COUNTIF($DR40:DT40,$EG40:$IV40),0)),\"\")","v":"{Measure:Quantity}"},{"$f":"IFERROR(INDEX($EG40:$IV40,MATCH(0,COUNTIF($DR40:DU40,$EG40:$IV40),0)),\"\")","v":"{Fan HP}"},{"$f":"IFERROR(INDEX($EG40:$IV40,MATCH(0,COUNTIF($DR40:DV40,$EG40:$IV40),0)),\"\")","v":""},{"$f":"IFERROR(INDEX($EG40:$IV40,MATCH(0,COUNTIF($DR40:DW40,$EG40:$IV40),0)),\"\")","v":""},{"$f":"IFERROR(INDEX($EG40:$IV40,MATCH(0,COUNTIF($DR40:DX40,$EG40:$IV40),0)),\"\")","v":""},{"$f":"IFERROR(INDEX($EG40:$IV40,MATCH(0,COUNTIF($DR40:DY40,$EG40:$IV40),0)),\"\")","v":""},{"$f":"IFERROR(INDEX($EG40:$IV40,MATCH(0,COUNTIF($DR40:DZ40,$EG40:$IV40),0)),\"\")","v":""},{"$f":"IFERROR(INDEX($EG40:$IV40,MATCH(0,COUNTIF($DR40:EA40,$EG40:$IV40),0)),\"\")","v":""},{"$f":"IFERROR(INDEX($EG40:$IV40,MATCH(0,COUNTIF($DR40:EB40,$EG40:$IV40),0)),\"\")","v":""},{"$f":"IFERROR(INDEX($EG40:$IV40,MATCH(0,COUNTIF($DR40:EC40,$EG40:$IV40),0)),\"\")","v":""},null,null,{"$f":"IFERROR(MID($G40,FIND(CHAR(160),SUBSTITUTE($G40,\"{\",CHAR(160),EG$1)),FIND(CHAR(160),SUBSTITUTE($G40,\"}\",CHAR(160),EG$1))-FIND(CHAR(160),SUBSTITUTE($G40,\"{\",CHAR(160),EG$1))+1),\"\")","v":""},{"$f":"IFERROR(MID($G40,FIND(CHAR(160),SUBSTITUTE($G40,\"{\",CHAR(160),EH$1)),FIND(CHAR(160),SUBSTITUTE($G40,\"}\",CHAR(160),EH$1))-FIND(CHAR(160),SUBSTITUTE($G40,\"{\",CHAR(160),EH$1))+1),\"\")","v":""},{"$f":"IFERROR(MID($G40,FIND(CHAR(160),SUBSTITUTE($G40,\"{\",CHAR(160),EI$1)),FIND(CHAR(160),SUBSTITUTE($G40,\"}\",CHAR(160),EI$1))-FIND(CHAR(160),SUBSTITUTE($G40,\"{\",CHAR(160),EI$1))+1),\"\")","v":""},{"$f":"IFERROR(MID($G40,FIND(CHAR(160),SUBSTITUTE($G40,\"{\",CHAR(160),EJ$1)),FIND(CHAR(160),SUBSTITUTE($G40,\"}\",CHAR(160),EJ$1))-FIND(CHAR(160),SUBSTITUTE($G40,\"{\",CHAR(160),EJ$1))+1),\"\")","v":""},{"$f":"IFERROR(MID($G40,FIND(CHAR(160),SUBSTITUTE($G40,\"{\",CHAR(160),EK$1)),FIND(CHAR(160),SUBSTITUTE($G40,\"}\",CHAR(160),EK$1))-FIND(CHAR(160),SUBSTITUTE($G40,\"{\",CHAR(160),EK$1))+1),\"\")","v":""},{"$f":"IFERROR(MID($G40,FIND(CHAR(160),SUBSTITUTE($G40,\"{\",CHAR(160),EL$1)),FIND(CHAR(160),SUBSTITUTE($G40,\"}\",CHAR(160),EL$1))-FIND(CHAR(160),SUBSTITUTE($G40,\"{\",CHAR(160),EL$1))+1),\"\")","v":""},{"$f":"IFERROR(MID($G40,FIND(CHAR(160),SUBSTITUTE($G40,\"{\",CHAR(160),EM$1)),FIND(CHAR(160),SUBSTITUTE($G40,\"}\",CHAR(160),EM$1))-FIND(CHAR(160),SUBSTITUTE($G40,\"{\",CHAR(160),EM$1))+1),\"\")","v":""},{"$f":"IFERROR(MID($G40,FIND(CHAR(160),SUBSTITUTE($G40,\"{\",CHAR(160),EN$1)),FIND(CHAR(160),SUBSTITUTE($G40,\"}\",CHAR(160),EN$1))-FIND(CHAR(160),SUBSTITUTE($G40,\"{\",CHAR(160),EN$1))+1),\"\")","v":""},{"$f":"IFERROR(MID($G40,FIND(CHAR(160),SUBSTITUTE($G40,\"{\",CHAR(160),EO$1)),FIND(CHAR(160),SUBSTITUTE($G40,\"}\",CHAR(160),EO$1))-FIND(CHAR(160),SUBSTITUTE($G40,\"{\",CHAR(160),EO$1))+1),\"\")","v":""},{"$f":"IFERROR(MID($G40,FIND(CHAR(160),SUBSTITUTE($G40,\"{\",CHAR(160),EP$1)),FIND(CHAR(160),SUBSTITUTE($G40,\"}\",CHAR(160),EP$1))-FIND(CHAR(160),SUBSTITUTE($G40,\"{\",CHAR(160),EP$1))+1),\"\")","v":""},{"$f":"IFERROR(MID($J40,FIND(CHAR(160),SUBSTITUTE($J40,\"{\",CHAR(160),EQ$1)),FIND(CHAR(160),SUBSTITUTE($J40,\"}\",CHAR(160),EQ$1))-FIND(CHAR(160),SUBSTITUTE($J40,\"{\",CHAR(160),EQ$1))+1),\"\")","v":""},{"$f":"IFERROR(MID($J40,FIND(CHAR(160),SUBSTITUTE($J40,\"{\",CHAR(160),ER$1)),FIND(CHAR(160),SUBSTITUTE($J40,\"}\",CHAR(160),ER$1))-FIND(CHAR(160),SUBSTITUTE($J40,\"{\",CHAR(160),ER$1))+1),\"\")","v":""},{"$f":"IFERROR(MID($J40,FIND(CHAR(160),SUBSTITUTE($J40,\"{\",CHAR(160),ES$1)),FIND(CHAR(160),SUBSTITUTE($J40,\"}\",CHAR(160),ES$1))-FIND(CHAR(160),SUBSTITUTE($J40,\"{\",CHAR(160),ES$1))+1),\"\")","v":""},{"$f":"IFERROR(MID($J40,FIND(CHAR(160),SUBSTITUTE($J40,\"{\",CHAR(160),ET$1)),FIND(CHAR(160),SUBSTITUTE($J40,\"}\",CHAR(160),ET$1))-FIND(CHAR(160),SUBSTITUTE($J40,\"{\",CHAR(160),ET$1))+1),\"\")","v":""},{"$f":"IFERROR(MID($J40,FIND(CHAR(160),SUBSTITUTE($J40,\"{\",CHAR(160),EU$1)),FIND(CHAR(160),SUBSTITUTE($J40,\"}\",CHAR(160),EU$1))-FIND(CHAR(160),SUBSTITUTE($J40,\"{\",CHAR(160),EU$1))+1),\"\")","v":""},{"$f":"IFERROR(MID($J40,FIND(CHAR(160),SUBSTITUTE($J40,\"{\",CHAR(160),EV$1)),FIND(CHAR(160),SUBSTITUTE($J40,\"}\",CHAR(160),EV$1))-FIND(CHAR(160),SUBSTITUTE($J40,\"{\",CHAR(160),EV$1))+1),\"\")","v":""},{"$f":"IFERROR(MID($J40,FIND(CHAR(160),SUBSTITUTE($J40,\"{\",CHAR(160),EW$1)),FIND(CHAR(160),SUBSTITUTE($J40,\"}\",CHAR(160),EW$1))-FIND(CHAR(160),SUBSTITUTE($J40,\"{\",CHAR(160),EW$1))+1),\"\")","v":""},{"$f":"IFERROR(MID($J40,FIND(CHAR(160),SUBSTITUTE($J40,\"{\",CHAR(160),EX$1)),FIND(CHAR(160),SUBSTITUTE($J40,\"}\",CHAR(160),EX$1))-FIND(CHAR(160),SUBSTITUTE($J40,\"{\",CHAR(160),EX$1))+1),\"\")","v":""},{"$f":"IFERROR(MID($J40,FIND(CHAR(160),SUBSTITUTE($J40,\"{\",CHAR(160),EY$1)),FIND(CHAR(160),SUBSTITUTE($J40,\"}\",CHAR(160),EY$1))-FIND(CHAR(160),SUBSTITUTE($J40,\"{\",CHAR(160),EY$1))+1),\"\")","v":""},{"$f":"IFERROR(MID($J40,FIND(CHAR(160),SUBSTITUTE($J40,\"{\",CHAR(160),EZ$1)),FIND(CHAR(160),SUBSTITUTE($J40,\"}\",CHAR(160),EZ$1))-FIND(CHAR(160),SUBSTITUTE($J40,\"{\",CHAR(160),EZ$1))+1),\"\")","v":""},{"$f":"IFERROR(MID($J40,FIND(CHAR(160),SUBSTITUTE($J40,\"{\",CHAR(160),FA$1)),FIND(CHAR(160),SUBSTITUTE($J40,\"}\",CHAR(160),FA$1))-FIND(CHAR(160),SUBSTITUTE($J40,\"{\",CHAR(160),FA$1))+1),\"\")","v":""},{"$f":"IFERROR(MID($J40,FIND(CHAR(160),SUBSTITUTE($J40,\"{\",CHAR(160),FB$1)),FIND(CHAR(160),SUBSTITUTE($J40,\"}\",CHAR(160),FB$1))-FIND(CHAR(160),SUBSTITUTE($J40,\"{\",CHAR(160),FB$1))+1),\"\")","v":""},{"$f":"IFERROR(MID($O40,FIND(CHAR(160),SUBSTITUTE($O40,\"{\",CHAR(160),FC$1)),FIND(CHAR(160),SUBSTITUTE($O40,\"}\",CHAR(160),FC$1))-FIND(CHAR(160),SUBSTITUTE($O40,\"{\",CHAR(160),FC$1))+1),\"\")","v":""},{"$f":"IFERROR(MID($O40,FIND(CHAR(160),SUBSTITUTE($O40,\"{\",CHAR(160),FD$1)),FIND(CHAR(160),SUBSTITUTE($O40,\"}\",CHAR(160),FD$1))-FIND(CHAR(160),SUBSTITUTE($O40,\"{\",CHAR(160),FD$1))+1),\"\")","v":""},{"$f":"IFERROR(MID($O40,FIND(CHAR(160),SUBSTITUTE($O40,\"{\",CHAR(160),FE$1)),FIND(CHAR(160),SUBSTITUTE($O40,\"}\",CHAR(160),FE$1))-FIND(CHAR(160),SUBSTITUTE($O40,\"{\",CHAR(160),FE$1))+1),\"\")","v":""},{"$f":"IFERROR(MID($O40,FIND(CHAR(160),SUBSTITUTE($O40,\"{\",CHAR(160),FF$1)),FIND(CHAR(160),SUBSTITUTE($O40,\"}\",CHAR(160),FF$1))-FIND(CHAR(160),SUBSTITUTE($O40,\"{\",CHAR(160),FF$1))+1),\"\")","v":""},{"$f":"IFERROR(MID($O40,FIND(CHAR(160),SUBSTITUTE($O40,\"{\",CHAR(160),FG$1)),FIND(CHAR(160),SUBSTITUTE($O40,\"}\",CHAR(160),FG$1))-FIND(CHAR(160),SUBSTITUTE($O40,\"{\",CHAR(160),FG$1))+1),\"\")","v":""},{"$f":"IFERROR(MID($O40,FIND(CHAR(160),SUBSTITUTE($O40,\"{\",CHAR(160),FH$1)),FIND(CHAR(160),SUBSTITUTE($O40,\"}\",CHAR(160),FH$1))-FIND(CHAR(160),SUBSTITUTE($O40,\"{\",CHAR(160),FH$1))+1),\"\")","v":""},{"$f":"IFERROR(MID($O40,FIND(CHAR(160),SUBSTITUTE($O40,\"{\",CHAR(160),FI$1)),FIND(CHAR(160),SUBSTITUTE($O40,\"}\",CHAR(160),FI$1))-FIND(CHAR(160),SUBSTITUTE($O40,\"{\",CHAR(160),FI$1))+1),\"\")","v":""},{"$f":"IFERROR(MID($O40,FIND(CHAR(160),SUBSTITUTE($O40,\"{\",CHAR(160),FJ$1)),FIND(CHAR(160),SUBSTITUTE($O40,\"}\",CHAR(160),FJ$1))-FIND(CHAR(160),SUBSTITUTE($O40,\"{\",CHAR(160),FJ$1))+1),\"\")","v":""},{"$f":"IFERROR(MID($O40,FIND(CHAR(160),SUBSTITUTE($O40,\"{\",CHAR(160),FK$1)),FIND(CHAR(160),SUBSTITUTE($O40,\"}\",CHAR(160),FK$1))-FIND(CHAR(160),SUBSTITUTE($O40,\"{\",CHAR(160),FK$1))+1),\"\")","v":"{Measure:Quantity}"},{"$f":"IFERROR(MID($O40,FIND(CHAR(160),SUBSTITUTE($O40,\"{\",CHAR(160),FL$1)),FIND(CHAR(160),SUBSTITUTE($O40,\"}\",CHAR(160),FL$1))-FIND(CHAR(160),SUBSTITUTE($O40,\"{\",CHAR(160),FL$1))+1),\"\")","v":"{Fan HP}"},{"$f":"IFERROR(MID($R40,FIND(CHAR(160),SUBSTITUTE($R40,\"{\",CHAR(160),FM$1)),FIND(CHAR(160),SUBSTITUTE($R40,\"}\",CHAR(160),FM$1))-FIND(CHAR(160),SUBSTITUTE($R40,\"{\",CHAR(160),FM$1))+1),\"\")","v":""},{"$f":"IFERROR(MID($R40,FIND(CHAR(160),SUBSTITUTE($R40,\"{\",CHAR(160),FN$1)),FIND(CHAR(160),SUBSTITUTE($R40,\"}\",CHAR(160),FN$1))-FIND(CHAR(160),SUBSTITUTE($R40,\"{\",CHAR(160),FN$1))+1),\"\")","v":""},{"$f":"IFERROR(MID($R40,FIND(CHAR(160),SUBSTITUTE($R40,\"{\",CHAR(160),FO$1)),FIND(CHAR(160),SUBSTITUTE($R40,\"}\",CHAR(160),FO$1))-FIND(CHAR(160),SUBSTITUTE($R40,\"{\",CHAR(160),FO$1))+1),\"\")","v":""},{"$f":"IFERROR(MID($R40,FIND(CHAR(160),SUBSTITUTE($R40,\"{\",CHAR(160),FP$1)),FIND(CHAR(160),SUBSTITUTE($R40,\"}\",CHAR(160),FP$1))-FIND(CHAR(160),SUBSTITUTE($R40,\"{\",CHAR(160),FP$1))+1),\"\")","v":""},{"$f":"IFERROR(MID($R40,FIND(CHAR(160),SUBSTITUTE($R40,\"{\",CHAR(160),FQ$1)),FIND(CHAR(160),SUBSTITUTE($R40,\"}\",CHAR(160),FQ$1))-FIND(CHAR(160),SUBSTITUTE($R40,\"{\",CHAR(160),FQ$1))+1),\"\")","v":""},{"$f":"IFERROR(MID($R40,FIND(CHAR(160),SUBSTITUTE($R40,\"{\",CHAR(160),FR$1)),FIND(CHAR(160),SUBSTITUTE($R40,\"}\",CHAR(160),FR$1))-FIND(CHAR(160),SUBSTITUTE($R40,\"{\",CHAR(160),FR$1))+1),\"\")","v":""},{"$f":"IFERROR(MID($R40,FIND(CHAR(160),SUBSTITUTE($R40,\"{\",CHAR(160),FS$1)),FIND(CHAR(160),SUBSTITUTE($R40,\"}\",CHAR(160),FS$1))-FIND(CHAR(160),SUBSTITUTE($R40,\"{\",CHAR(160),FS$1))+1),\"\")","v":""},{"$f":"IFERROR(MID($R40,FIND(CHAR(160),SUBSTITUTE($R40,\"{\",CHAR(160),FT$1)),FIND(CHAR(160),SUBSTITUTE($R40,\"}\",CHAR(160),FT$1))-FIND(CHAR(160),SUBSTITUTE($R40,\"{\",CHAR(160),FT$1))+1),\"\")","v":""},{"$f":"IFERROR(MID($R40,FIND(CHAR(160),SUBSTITUTE($R40,\"{\",CHAR(160),FU$1)),FIND(CHAR(160),SUBSTITUTE($R40,\"}\",CHAR(160),FU$1))-FIND(CHAR(160),SUBSTITUTE($R40,\"{\",CHAR(160),FU$1))+1),\"\")","v":"{Measure:Quantity}"},{"$f":"IFERROR(MID($R40,FIND(CHAR(160),SUBSTITUTE($R40,\"{\",CHAR(160),FV$1)),FIND(CHAR(160),SUBSTITUTE($R40,\"}\",CHAR(160),FV$1))-FIND(CHAR(160),SUBSTITUTE($R40,\"{\",CHAR(160),FV$1))+1),\"\")","v":"{Fan HP}"},{"$f":"IFERROR(MID($U40,FIND(CHAR(160),SUBSTITUTE($U40,\"{\",CHAR(160),FW$1)),FIND(CHAR(160),SUBSTITUTE($U40,\"}\",CHAR(160),FW$1))-FIND(CHAR(160),SUBSTITUTE($U40,\"{\",CHAR(160),FW$1))+1),\"\")","v":"{Factor:WinterCF}"},{"$f":"IFERROR(MID($U40,FIND(CHAR(160),SUBSTITUTE($U40,\"{\",CHAR(160),FX$1)),FIND(CHAR(160),SUBSTITUTE($U40,\"}\",CHAR(160),FX$1))-FIND(CHAR(160),SUBSTITUTE($U40,\"{\",CHAR(160),FX$1))+1),\"\")","v":""},{"$f":"IFERROR(MID($U40,FIND(CHAR(160),SUBSTITUTE($U40,\"{\",CHAR(160),FY$1)),FIND(CHAR(160),SUBSTITUTE($U40,\"}\",CHAR(160),FY$1))-FIND(CHAR(160),SUBSTITUTE($U40,\"{\",CHAR(160),FY$1))+1),\"\")","v":""},{"$f":"IFERROR(MID($U40,FIND(CHAR(160),SUBSTITUTE($U40,\"{\",CHAR(160),FZ$1)),FIND(CHAR(160),SUBSTITUTE($U40,\"}\",CHAR(160),FZ$1))-FIND(CHAR(160),SUBSTITUTE($U40,\"{\",CHAR(160),FZ$1))+1),\"\")","v":""},{"$f":"IFERROR(MID($U40,FIND(CHAR(160),SUBSTITUTE($U40,\"{\",CHAR(160),GA$1)),FIND(CHAR(160),SUBSTITUTE($U40,\"}\",CHAR(160),GA$1))-FIND(CHAR(160),SUBSTITUTE($U40,\"{\",CHAR(160),GA$1))+1),\"\")","v":""},{"$f":"IFERROR(MID($U40,FIND(CHAR(160),SUBSTITUTE($U40,\"{\",CHAR(160),GB$1)),FIND(CHAR(160),SUBSTITUTE($U40,\"}\",CHAR(160),GB$1))-FIND(CHAR(160),SUBSTITUTE($U40,\"{\",CHAR(160),GB$1))+1),\"\")","v":""},{"$f":"IFERROR(MID($U40,FIND(CHAR(160),SUBSTITUTE($U40,\"{\",CHAR(160),GC$1)),FIND(CHAR(160),SUBSTITUTE($U40,\"}\",CHAR(160),GC$1))-FIND(CHAR(160),SUBSTITUTE($U40,\"{\",CHAR(160),GC$1))+1),\"\")","v":""},{"$f":"IFERROR(MID($U40,FIND(CHAR(160),SUBSTITUTE($U40,\"{\",CHAR(160),GD$1)),FIND(CHAR(160),SUBSTITUTE($U40,\"}\",CHAR(160),GD$1))-FIND(CHAR(160),SUBSTITUTE($U40,\"{\",CHAR(160),GD$1))+1),\"\")","v":""},{"$f":"IFERROR(MID($U40,FIND(CHAR(160),SUBSTITUTE($U40,\"{\",CHAR(160),GE$1)),FIND(CHAR(160),SUBSTITUTE($U40,\"}\",CHAR(160),GE$1))-FIND(CHAR(160),SUBSTITUTE($U40,\"{\",CHAR(160),GE$1))+1),\"\")","v":"{Measure:Quantity}"},{"$f":"IFERROR(MID($U40,FIND(CHAR(160),SUBSTITUTE($U40,\"{\",CHAR(160),GF$1)),FIND(CHAR(160),SUBSTITUTE($U40,\"}\",CHAR(160),GF$1))-FIND(CHAR(160),SUBSTITUTE($U40,\"{\",CHAR(160),GF$1))+1),\"\")","v":"{Fan HP}"},{"$f":"IFERROR(MID($V40,FIND(CHAR(160),SUBSTITUTE($V40,\"{\",CHAR(160),GG$1)),FIND(CHAR(160),SUBSTITUTE($V40,\"}\",CHAR(160),GG$1))-FIND(CHAR(160),SUBSTITUTE($V40,\"{\",CHAR(160),GG$1))+1),\"\")","v":"{Factor:SummerCF}"},{"$f":"IFERROR(MID($V40,FIND(CHAR(160),SUBSTITUTE($V40,\"{\",CHAR(160),GH$1)),FIND(CHAR(160),SUBSTITUTE($V40,\"}\",CHAR(160),GH$1))-FIND(CHAR(160),SUBSTITUTE($V40,\"{\",CHAR(160),GH$1))+1),\"\")","v":""},{"$f":"IFERROR(MID($V40,FIND(CHAR(160),SUBSTITUTE($V40,\"{\",CHAR(160),GI$1)),FIND(CHAR(160),SUBSTITUTE($V40,\"}\",CHAR(160),GI$1))-FIND(CHAR(160),SUBSTITUTE($V40,\"{\",CHAR(160),GI$1))+1),\"\")","v":""},{"$f":"IFERROR(MID($V40,FIND(CHAR(160),SUBSTITUTE($V40,\"{\",CHAR(160),GJ$1)),FIND(CHAR(160),SUBSTITUTE($V40,\"}\",CHAR(160),GJ$1))-FIND(CHAR(160),SUBSTITUTE($V40,\"{\",CHAR(160),GJ$1))+1),\"\")","v":""},{"$f":"IFERROR(MID($V40,FIND(CHAR(160),SUBSTITUTE($V40,\"{\",CHAR(160),GK$1)),FIND(CHAR(160),SUBSTITUTE($V40,\"}\",CHAR(160),GK$1))-FIND(CHAR(160),SUBSTITUTE($V40,\"{\",CHAR(160),GK$1))+1),\"\")","v":""},{"$f":"IFERROR(MID($V40,FIND(CHAR(160),SUBSTITUTE($V40,\"{\",CHAR(160),GL$1)),FIND(CHAR(160),SUBSTITUTE($V40,\"}\",CHAR(160),GL$1))-FIND(CHAR(160),SUBSTITUTE($V40,\"{\",CHAR(160),GL$1))+1),\"\")","v":""},{"$f":"IFERROR(MID($V40,FIND(CHAR(160),SUBSTITUTE($V40,\"{\",CHAR(160),GM$1)),FIND(CHAR(160),SUBSTITUTE($V40,\"}\",CHAR(160),GM$1))-FIND(CHAR(160),SUBSTITUTE($V40,\"{\",CHAR(160),GM$1))+1),\"\")","v":""},{"$f":"IFERROR(MID($V40,FIND(CHAR(160),SUBSTITUTE($V40,\"{\",CHAR(160),GN$1)),FIND(CHAR(160),SUBSTITUTE($V40,\"}\",CHAR(160),GN$1))-FIND(CHAR(160),SUBSTITUTE($V40,\"{\",CHAR(160),GN$1))+1),\"\")","v":""},{"$f":"IFERROR(MID($V40,FIND(CHAR(160),SUBSTITUTE($V40,\"{\",CHAR(160),GO$1)),FIND(CHAR(160),SUBSTITUTE($V40,\"}\",CHAR(160),GO$1))-FIND(CHAR(160),SUBSTITUTE($V40,\"{\",CHAR(160),GO$1))+1),\"\")","v":"{Measure:Quantity}"},{"$f":"IFERROR(MID($V40,FIND(CHAR(160),SUBSTITUTE($V40,\"{\",CHAR(160),GP$1)),FIND(CHAR(160),SUBSTITUTE($V40,\"}\",CHAR(160),GP$1))-FIND(CHAR(160),SUBSTITUTE($V40,\"{\",CHAR(160),GP$1))+1),\"\")","v":"{Fan HP}"},{"$f":"IFERROR(MID($W40,FIND(CHAR(160),SUBSTITUTE($W40,\"{\",CHAR(160),GQ$1)),FIND(CHAR(160),SUBSTITUTE($W40,\"}\",CHAR(160),GQ$1))-FIND(CHAR(160),SUBSTITUTE($W40,\"{\",CHAR(160),GQ$1))+1),\"\")","v":""},{"$f":"IFERROR(MID($W40,FIND(CHAR(160),SUBSTITUTE($W40,\"{\",CHAR(160),GR$1)),FIND(CHAR(160),SUBSTITUTE($W40,\"}\",CHAR(160),GR$1))-FIND(CHAR(160),SUBSTITUTE($W40,\"{\",CHAR(160),GR$1))+1),\"\")","v":""},{"$f":"IFERROR(MID($W40,FIND(CHAR(160),SUBSTITUTE($W40,\"{\",CHAR(160),GS$1)),FIND(CHAR(160),SUBSTITUTE($W40,\"}\",CHAR(160),GS$1))-FIND(CHAR(160),SUBSTITUTE($W40,\"{\",CHAR(160),GS$1))+1),\"\")","v":""},{"$f":"IFERROR(MID($W40,FIND(CHAR(160),SUBSTITUTE($W40,\"{\",CHAR(160),GT$1)),FIND(CHAR(160),SUBSTITUTE($W40,\"}\",CHAR(160),GT$1))-FIND(CHAR(160),SUBSTITUTE($W40,\"{\",CHAR(160),GT$1))+1),\"\")","v":""},{"$f":"IFERROR(MID($W40,FIND(CHAR(160),SUBSTITUTE($W40,\"{\",CHAR(160),GU$1)),FIND(CHAR(160),SUBSTITUTE($W40,\"}\",CHAR(160),GU$1))-FIND(CHAR(160),SUBSTITUTE($W40,\"{\",CHAR(160),GU$1))+1),\"\")","v":""},{"$f":"IFERROR(MID($W40,FIND(CHAR(160),SUBSTITUTE($W40,\"{\",CHAR(160),GV$1)),FIND(CHAR(160),SUBSTITUTE($W40,\"}\",CHAR(160),GV$1))-FIND(CHAR(160),SUBSTITUTE($W40,\"{\",CHAR(160),GV$1))+1),\"\")","v":""},{"$f":"IFERROR(MID($W40,FIND(CHAR(160),SUBSTITUTE($W40,\"{\",CHAR(160),GW$1)),FIND(CHAR(160),SUBSTITUTE($W40,\"}\",CHAR(160),GW$1))-FIND(CHAR(160),SUBSTITUTE($W40,\"{\",CHAR(160),GW$1))+1),\"\")","v":""},{"$f":"IFERROR(MID($W40,FIND(CHAR(160),SUBSTITUTE($W40,\"{\",CHAR(160),GX$1)),FIND(CHAR(160),SUBSTITUTE($W40,\"}\",CHAR(160),GX$1))-FIND(CHAR(160),SUBSTITUTE($W40,\"{\",CHAR(160),GX$1))+1),\"\")","v":""},{"$f":"IFERROR(MID($W40,FIND(CHAR(160),SUBSTITUTE($W40,\"{\",CHAR(160),GY$1)),FIND(CHAR(160),SUBSTITUTE($W40,\"}\",CHAR(160),GY$1))-FIND(CHAR(160),SUBSTITUTE($W40,\"{\",CHAR(160),GY$1))+1),\"\")","v":""},{"$f":"IFERROR(MID($W40,FIND(CHAR(160),SUBSTITUTE($W40,\"{\",CHAR(160),GZ$1)),FIND(CHAR(160),SUBSTITUTE($W40,\"}\",CHAR(160),GZ$1))-FIND(CHAR(160),SUBSTITUTE($W40,\"{\",CHAR(160),GZ$1))+1),\"\")","v":""},{"$f":"IFERROR(MID($X40,FIND(CHAR(160),SUBSTITUTE($X40,\"{\",CHAR(160),HA$1)),FIND(CHAR(160),SUBSTITUTE($X40,\"}\",CHAR(160),HA$1))-FIND(CHAR(160),SUBSTITUTE($X40,\"{\",CHAR(160),HA$1))+1),\"\")","v":""},{"$f":"IFERROR(MID($X40,FIND(CHAR(160),SUBSTITUTE($X40,\"{\",CHAR(160),HB$1)),FIND(CHAR(160),SUBSTITUTE($X40,\"}\",CHAR(160),HB$1))-FIND(CHAR(160),SUBSTITUTE($X40,\"{\",CHAR(160),HB$1))+1),\"\")","v":""},{"$f":"IFERROR(MID($X40,FIND(CHAR(160),SUBSTITUTE($X40,\"{\",CHAR(160),HC$1)),FIND(CHAR(160),SUBSTITUTE($X40,\"}\",CHAR(160),HC$1))-FIND(CHAR(160),SUBSTITUTE($X40,\"{\",CHAR(160),HC$1))+1),\"\")","v":""},{"$f":"IFERROR(MID($X40,FIND(CHAR(160),SUBSTITUTE($X40,\"{\",CHAR(160),HD$1)),FIND(CHAR(160),SUBSTITUTE($X40,\"}\",CHAR(160),HD$1))-FIND(CHAR(160),SUBSTITUTE($X40,\"{\",CHAR(160),HD$1))+1),\"\")","v":""},{"$f":"IFERROR(MID($X40,FIND(CHAR(160),SUBSTITUTE($X40,\"{\",CHAR(160),HE$1)),FIND(CHAR(160),SUBSTITUTE($X40,\"}\",CHAR(160),HE$1))-FIND(CHAR(160),SUBSTITUTE($X40,\"{\",CHAR(160),HE$1))+1),\"\")","v":""},{"$f":"IFERROR(MID($X40,FIND(CHAR(160),SUBSTITUTE($X40,\"{\",CHAR(160),HF$1)),FIND(CHAR(160),SUBSTITUTE($X40,\"}\",CHAR(160),HF$1))-FIND(CHAR(160),SUBSTITUTE($X40,\"{\",CHAR(160),HF$1))+1),\"\")","v":""},{"$f":"IFERROR(MID($X40,FIND(CHAR(160),SUBSTITUTE($X40,\"{\",CHAR(160),HG$1)),FIND(CHAR(160),SUBSTITUTE($X40,\"}\",CHAR(160),HG$1))-FIND(CHAR(160),SUBSTITUTE($X40,\"{\",CHAR(160),HG$1))+1),\"\")","v":""},{"$f":"IFERROR(MID($X40,FIND(CHAR(160),SUBSTITUTE($X40,\"{\",CHAR(160),HH$1)),FIND(CHAR(160),SUBSTITUTE($X40,\"}\",CHAR(160),HH$1))-FIND(CHAR(160),SUBSTITUTE($X40,\"{\",CHAR(160),HH$1))+1),\"\")","v":""},{"$f":"IFERROR(MID($X40,FIND(CHAR(160),SUBSTITUTE($X40,\"{\",CHAR(160),HI$1)),FIND(CHAR(160),SUBSTITUTE($X40,\"}\",CHAR(160),HI$1))-FIND(CHAR(160),SUBSTITUTE($X40,\"{\",CHAR(160),HI$1))+1),\"\")","v":""},{"$f":"IFERROR(MID($X40,FIND(CHAR(160),SUBSTITUTE($X40,\"{\",CHAR(160),HJ$1)),FIND(CHAR(160),SUBSTITUTE($X40,\"}\",CHAR(160),HJ$1))-FIND(CHAR(160),SUBSTITUTE($X40,\"{\",CHAR(160),HJ$1))+1),\"\")","v":""},{"$f":"IFERROR(MID($Y40,FIND(CHAR(160),SUBSTITUTE($Y40,\"{\",CHAR(160),HK$1)),FIND(CHAR(160),SUBSTITUTE($Y40,\"}\",CHAR(160),HK$1))-FIND(CHAR(160),SUBSTITUTE($Y40,\"{\",CHAR(160),HK$1))+1),\"\")","v":""},{"$f":"IFERROR(MID($Y40,FIND(CHAR(160),SUBSTITUTE($Y40,\"{\",CHAR(160),HL$1)),FIND(CHAR(160),SUBSTITUTE($Y40,\"}\",CHAR(160),HL$1))-FIND(CHAR(160),SUBSTITUTE($Y40,\"{\",CHAR(160),HL$1))+1),\"\")","v":""},{"$f":"IFERROR(MID($Y40,FIND(CHAR(160),SUBSTITUTE($Y40,\"{\",CHAR(160),HM$1)),FIND(CHAR(160),SUBSTITUTE($Y40,\"}\",CHAR(160),HM$1))-FIND(CHAR(160),SUBSTITUTE($Y40,\"{\",CHAR(160),HM$1))+1),\"\")","v":""},{"$f":"IFERROR(MID($Y40,FIND(CHAR(160),SUBSTITUTE($Y40,\"{\",CHAR(160),HN$1)),FIND(CHAR(160),SUBSTITUTE($Y40,\"}\",CHAR(160),HN$1))-FIND(CHAR(160),SUBSTITUTE($Y40,\"{\",CHAR(160),HN$1))+1),\"\")","v":""},{"$f":"IFERROR(MID($Y40,FIND(CHAR(160),SUBSTITUTE($Y40,\"{\",CHAR(160),HO$1)),FIND(CHAR(160),SUBSTITUTE($Y40,\"}\",CHAR(160),HO$1))-FIND(CHAR(160),SUBSTITUTE($Y40,\"{\",CHAR(160),HO$1))+1),\"\")","v":""},{"$f":"IFERROR(MID($Y40,FIND(CHAR(160),SUBSTITUTE($Y40,\"{\",CHAR(160),HP$1)),FIND(CHAR(160),SUBSTITUTE($Y40,\"}\",CHAR(160),HP$1))-FIND(CHAR(160),SUBSTITUTE($Y40,\"{\",CHAR(160),HP$1))+1),\"\")","v":""},{"$f":"IFERROR(MID($Y40,FIND(CHAR(160),SUBSTITUTE($Y40,\"{\",CHAR(160),HQ$1)),FIND(CHAR(160),SUBSTITUTE($Y40,\"}\",CHAR(160),HQ$1))-FIND(CHAR(160),SUBSTITUTE($Y40,\"{\",CHAR(160),HQ$1))+1),\"\")","v":""},{"$f":"IFERROR(MID($Y40,FIND(CHAR(160),SUBSTITUTE($Y40,\"{\",CHAR(160),HR$1)),FIND(CHAR(160),SUBSTITUTE($Y40,\"}\",CHAR(160),HR$1))-FIND(CHAR(160),SUBSTITUTE($Y40,\"{\",CHAR(160),HR$1))+1),\"\")","v":""},{"$f":"IFERROR(MID($Y40,FIND(CHAR(160),SUBSTITUTE($Y40,\"{\",CHAR(160),HS$1)),FIND(CHAR(160),SUBSTITUTE($Y40,\"}\",CHAR(160),HS$1))-FIND(CHAR(160),SUBSTITUTE($Y40,\"{\",CHAR(160),HS$1))+1),\"\")","v":""},{"$f":"IFERROR(MID($Y40,FIND(CHAR(160),SUBSTITUTE($Y40,\"{\",CHAR(160),HT$1)),FIND(CHAR(160),SUBSTITUTE($Y40,\"}\",CHAR(160),HT$1))-FIND(CHAR(160),SUBSTITUTE($Y40,\"{\",CHAR(160),HT$1))+1),\"\")","v":""},{"$f":"IFERROR(MID($Z40,FIND(CHAR(160),SUBSTITUTE($Z40,\"{\",CHAR(160),HU$1)),FIND(CHAR(160),SUBSTITUTE($Z40,\"}\",CHAR(160),HU$1))-FIND(CHAR(160),SUBSTITUTE($Z40,\"{\",CHAR(160),HU$1))+1),\"\")","v":""},{"$f":"IFERROR(MID($Z40,FIND(CHAR(160),SUBSTITUTE($Z40,\"{\",CHAR(160),HV$1)),FIND(CHAR(160),SUBSTITUTE($Z40,\"}\",CHAR(160),HV$1))-FIND(CHAR(160),SUBSTITUTE($Z40,\"{\",CHAR(160),HV$1))+1),\"\")","v":""},{"$f":"IFERROR(MID($Z40,FIND(CHAR(160),SUBSTITUTE($Z40,\"{\",CHAR(160),HW$1)),FIND(CHAR(160),SUBSTITUTE($Z40,\"}\",CHAR(160),HW$1))-FIND(CHAR(160),SUBSTITUTE($Z40,\"{\",CHAR(160),HW$1))+1),\"\")","v":""},{"$f":"IFERROR(MID($Z40,FIND(CHAR(160),SUBSTITUTE($Z40,\"{\",CHAR(160),HX$1)),FIND(CHAR(160),SUBSTITUTE($Z40,\"}\",CHAR(160),HX$1))-FIND(CHAR(160),SUBSTITUTE($Z40,\"{\",CHAR(160),HX$1))+1),\"\")","v":""},{"$f":"IFERROR(MID($Z40,FIND(CHAR(160),SUBSTITUTE($Z40,\"{\",CHAR(160),HY$1)),FIND(CHAR(160),SUBSTITUTE($Z40,\"}\",CHAR(160),HY$1))-FIND(CHAR(160),SUBSTITUTE($Z40,\"{\",CHAR(160),HY$1))+1),\"\")","v":""},{"$f":"IFERROR(MID($Z40,FIND(CHAR(160),SUBSTITUTE($Z40,\"{\",CHAR(160),HZ$1)),FIND(CHAR(160),SUBSTITUTE($Z40,\"}\",CHAR(160),HZ$1))-FIND(CHAR(160),SUBSTITUTE($Z40,\"{\",CHAR(160),HZ$1))+1),\"\")","v":""},{"$f":"IFERROR(MID($Z40,FIND(CHAR(160),SUBSTITUTE($Z40,\"{\",CHAR(160),IA$1)),FIND(CHAR(160),SUBSTITUTE($Z40,\"}\",CHAR(160),IA$1))-FIND(CHAR(160),SUBSTITUTE($Z40,\"{\",CHAR(160),IA$1))+1),\"\")","v":""},{"$f":"IFERROR(MID($Z40,FIND(CHAR(160),SUBSTITUTE($Z40,\"{\",CHAR(160),IB$1)),FIND(CHAR(160),SUBSTITUTE($Z40,\"}\",CHAR(160),IB$1))-FIND(CHAR(160),SUBSTITUTE($Z40,\"{\",CHAR(160),IB$1))+1),\"\")","v":""},{"$f":"IFERROR(MID($Z40,FIND(CHAR(160),SUBSTITUTE($Z40,\"{\",CHAR(160),IC$1)),FIND(CHAR(160),SUBSTITUTE($Z40,\"}\",CHAR(160),IC$1))-FIND(CHAR(160),SUBSTITUTE($Z40,\"{\",CHAR(160),IC$1))+1),\"\")","v":""},{"$f":"IFERROR(MID($Z40,FIND(CHAR(160),SUBSTITUTE($Z40,\"{\",CHAR(160),ID$1)),FIND(CHAR(160),SUBSTITUTE($Z40,\"}\",CHAR(160),ID$1))-FIND(CHAR(160),SUBSTITUTE($Z40,\"{\",CHAR(160),ID$1))+1),\"\")","v":""},{"$f":"IFERROR(MID($AA40,FIND(CHAR(160),SUBSTITUTE($AA40,\"{\",CHAR(160),IE$1)),FIND(CHAR(160),SUBSTITUTE($AA40,\"}\",CHAR(160),IE$1))-FIND(CHAR(160),SUBSTITUTE($AA40,\"{\",CHAR(160),IE$1))+1),\"\")","v":""},{"$f":"IFERROR(MID($AA40,FIND(CHAR(160),SUBSTITUTE($AA40,\"{\",CHAR(160),IF$1)),FIND(CHAR(160),SUBSTITUTE($AA40,\"}\",CHAR(160),IF$1))-FIND(CHAR(160),SUBSTITUTE($AA40,\"{\",CHAR(160),IF$1))+1),\"\")","v":""},{"$f":"IFERROR(MID($AA40,FIND(CHAR(160),SUBSTITUTE($AA40,\"{\",CHAR(160),IG$1)),FIND(CHAR(160),SUBSTITUTE($AA40,\"}\",CHAR(160),IG$1))-FIND(CHAR(160),SUBSTITUTE($AA40,\"{\",CHAR(160),IG$1))+1),\"\")","v":""},{"$f":"IFERROR(MID($AA40,FIND(CHAR(160),SUBSTITUTE($AA40,\"{\",CHAR(160),IH$1)),FIND(CHAR(160),SUBSTITUTE($AA40,\"}\",CHAR(160),IH$1))-FIND(CHAR(160),SUBSTITUTE($AA40,\"{\",CHAR(160),IH$1))+1),\"\")","v":""},{"$f":"IFERROR(MID($AA40,FIND(CHAR(160),SUBSTITUTE($AA40,\"{\",CHAR(160),II$1)),FIND(CHAR(160),SUBSTITUTE($AA40,\"}\",CHAR(160),II$1))-FIND(CHAR(160),SUBSTITUTE($AA40,\"{\",CHAR(160),II$1))+1),\"\")","v":""},{"$f":"IFERROR(MID($AA40,FIND(CHAR(160),SUBSTITUTE($AA40,\"{\",CHAR(160),IJ$1)),FIND(CHAR(160),SUBSTITUTE($AA40,\"}\",CHAR(160),IJ$1))-FIND(CHAR(160),SUBSTITUTE($AA40,\"{\",CHAR(160),IJ$1))+1),\"\")","v":""},{"$f":"IFERROR(MID($AA40,FIND(CHAR(160),SUBSTITUTE($AA40,\"{\",CHAR(160),IK$1)),FIND(CHAR(160),SUBSTITUTE($AA40,\"}\",CHAR(160),IK$1))-FIND(CHAR(160),SUBSTITUTE($AA40,\"{\",CHAR(160),IK$1))+1),\"\")","v":""},{"$f":"IFERROR(MID($AA40,FIND(CHAR(160),SUBSTITUTE($AA40,\"{\",CHAR(160),IL$1)),FIND(CHAR(160),SUBSTITUTE($AA40,\"}\",CHAR(160),IL$1))-FIND(CHAR(160),SUBSTITUTE($AA40,\"{\",CHAR(160),IL$1))+1),\"\")","v":""},{"$f":"IFERROR(MID($AA40,FIND(CHAR(160),SUBSTITUTE($AA40,\"{\",CHAR(160),IM$1)),FIND(CHAR(160),SUBSTITUTE($AA40,\"}\",CHAR(160),IM$1))-FIND(CHAR(160),SUBSTITUTE($AA40,\"{\",CHAR(160),IM$1))+1),\"\")","v":""},{"$f":"IFERROR(MID($AA40,FIND(CHAR(160),SUBSTITUTE($AA40,\"{\",CHAR(160),IN$1)),FIND(CHAR(160),SUBSTITUTE($AA40,\"}\",CHAR(160),IN$1))-FIND(CHAR(160),SUBSTITUTE($AA40,\"{\",CHAR(160),IN$1))+1),\"\")","v":""},{"$f":"IFERROR(MID($AB40,FIND(CHAR(160),SUBSTITUTE($AB40,\"{\",CHAR(160),IO$1)),FIND(CHAR(160),SUBSTITUTE($AB40,\"}\",CHAR(160),IO$1))-FIND(CHAR(160),SUBSTITUTE($AB40,\"{\",CHAR(160),IO$1))+1),\"\")","v":""},{"$f":"IFERROR(MID($AB40,FIND(CHAR(160),SUBSTITUTE($AB40,\"{\",CHAR(160),IP$1)),FIND(CHAR(160),SUBSTITUTE($AB40,\"}\",CHAR(160),IP$1))-FIND(CHAR(160),SUBSTITUTE($AB40,\"{\",CHAR(160),IP$1))+1),\"\")","v":""},{"$f":"IFERROR(MID($AB40,FIND(CHAR(160),SUBSTITUTE($AB40,\"{\",CHAR(160),IQ$1)),FIND(CHAR(160),SUBSTITUTE($AB40,\"}\",CHAR(160),IQ$1))-FIND(CHAR(160),SUBSTITUTE($AB40,\"{\",CHAR(160),IQ$1))+1),\"\")","v":""},{"$f":"IFERROR(MID($AB40,FIND(CHAR(160),SUBSTITUTE($AB40,\"{\",CHAR(160),IR$1)),FIND(CHAR(160),SUBSTITUTE($AB40,\"}\",CHAR(160),IR$1))-FIND(CHAR(160),SUBSTITUTE($AB40,\"{\",CHAR(160),IR$1))+1),\"\")","v":""},{"$f":"IFERROR(MID($AB40,FIND(CHAR(160),SUBSTITUTE($AB40,\"{\",CHAR(160),IS$1)),FIND(CHAR(160),SUBSTITUTE($AB40,\"}\",CHAR(160),IS$1))-FIND(CHAR(160),SUBSTITUTE($AB40,\"{\",CHAR(160),IS$1))+1),\"\")","v":""},{"$f":"IFERROR(MID($AB40,FIND(CHAR(160),SUBSTITUTE($AB40,\"{\",CHAR(160),IT$1)),FIND(CHAR(160),SUBSTITUTE($AB40,\"}\",CHAR(160),IT$1))-FIND(CHAR(160),SUBSTITUTE($AB40,\"{\",CHAR(160),IT$1))+1),\"\")","v":""},{"$f":"IFERROR(MID($AB40,FIND(CHAR(160),SUBSTITUTE($AB40,\"{\",CHAR(160),IU$1)),FIND(CHAR(160),SUBSTITUTE($AB40,\"}\",CHAR(160),IU$1))-FIND(CHAR(160),SUBSTITUTE($AB40,\"{\",CHAR(160),IU$1))+1),\"\")","v":""},{"$f":"IFERROR(MID($AB40,FIND(CHAR(160),SUBSTITUTE($AB40,\"{\",CHAR(160),IV$1)),FIND(CHAR(160),SUBSTITUTE($AB40,\"}\",CHAR(160),IV$1))-FIND(CHAR(160),SUBSTITUTE($AB40,\"{\",CHAR(160),IV$1))+1),\"\")","v":""},{"$f":"IFERROR(MID($AB40,FIND(CHAR(160),SUBSTITUTE($AB40,\"{\",CHAR(160),IW$1)),FIND(CHAR(160),SUBSTITUTE($AB40,\"}\",CHAR(160),IW$1))-FIND(CHAR(160),SUBSTITUTE($AB40,\"{\",CHAR(160),IW$1))+1),\"\")","v":""},{"$f":"IFERROR(MID($AB40,FIND(CHAR(160),SUBSTITUTE($AB40,\"{\",CHAR(160),IX$1)),FIND(CHAR(160),SUBSTITUTE($AB40,\"}\",CHAR(160),IX$1))-FIND(CHAR(160),SUBSTITUTE($AB40,\"{\",CHAR(160),IX$1))+1),\"\")","v":""},null,{"$f":"10-COUNTIF(DU40:ED40,\"\")","v":2}]
["C&I Agricultural Solutions","POTATO: Adjustable Speed Drive - 15 HP Ventilation Fan Motor","AASD - ASD15","2021-07-01","2022-06-30","Per Measure",2525,0,"Per Measure",1800,0,"2016-07-01","2022-06-30","Calculated","{Measure:Quantity} * {Fan HP} * 2540",1E-4,null,"{Measure:Quantity} * {Fan HP} * 0.71",null,null,"{Measure:Quantity} * {Fan HP} * 0.71 * {Factor:WinterCF}","{Measure:Quantity} * {Fan HP} * 0.71 * {Factor:SummerCF}",null,null,null,null,null,null,"2020-04-01","2022-06-30",15,0.73699999999999999,0,0.66700000000000004,0.33300000000000002,0,0,1,1.1220000000000001,1,0.52,1.6E-2,null,{"$f":"DU41","v":"{Measure:Quantity}"},1,{"$f":"DV41","v":"{Fan HP}"},15,{"$f":"DW41","v":""},null,{"$f":"DX41","v":""},null,{"$f":"DY41","v":""},null,{"$f":"DZ41","v":""},null,{"$f":"EA41","v":""},null,{"$f":"EB41","v":""},null,{"$f":"EC41","v":""},null,{"$f":"ED41","v":""},null,{"$f":"AS41 * AU41 * 2540","v":38100},{"$f":"0.0001","v":1E-4},0,{"$f":"AS41 * AU41 * 0.71","v":10.649999999999999},0,0,{"$f":"AS41 * AU41 * 0.71 * AF41","v":7.8490499999999992},{"$f":"AS41 * AU41 * 0.71 * AG41","v":0},0,0,0,0,0,0,null,"Res","Default DR",{"$f":"Benefits(BL41,BR41,BS41,BT41,BU41,BV41,BW41,BX41,BY41,BZ41,AE41,AH41,AI41,AJ41,AK41,AL41,AM41,AN41,AO41,AP41,CA41,CB41)","v":59880.129856095853},29556.662502182917,0,0,0,0,0,0,0,{"$f":"SUMPRODUCT(CC41:CK41,--(CC41:CK41>0))","v":89436.792358278763},{"$f":"-SUMPRODUCT(CC41:CK41,--(CC41:CK41<0))","v":0},null,{"$f":"2525","v":2525},null,null,{"$f":"CM41+CO41","v":2525},{"$f":"IF(NetOrGross=\"Net\",(1-AO41+AP41),1)","v":1},{"$f":"(SUMPRODUCT(CC41:CJ41,--(CC41:CJ41>0))+CN41)*CS41/((-SUMPRODUCT(CC41:CJ41,--(CC41:CJ41<0))+MAX(CO41,CV41)+CP41+CQ41)*CS41+IF(FRIncentives=\"Yes\",CV41*(1-CS41),0))","v":35.420511825060899},1,{"$f":"1800","v":1800},null,"Electric","y",null,{"$f":"IF(F41=\"Manual Entry\",\"Manual\",IF(G41=\"\",0,\"X=\"&SUBSTITUTE(SUBSTITUTE(SUBSTITUTE(SUBSTITUTE(SUBSTITUTE(SUBSTITUTE(SUBSTITUTE(SUBSTITUTE(SUBSTITUTE(SUBSTITUTE(SUBSTITUTE(SUBSTITUTE(G41,$ED41,$ED$2&ROW($ED41)),$EC41,$EC$2&ROW($EC41)),$EB41,$EB$2&ROW($EB41)),$EA41,$EA$2&ROW($EA41)),$DZ41,$DZ$2&ROW($DZ41)),$DY41,$DY$2&ROW($DY41)),$DX41,$DX$2&ROW($DX41)),$DW41,$DW$2&ROW($DW41)),$DV41,$DV$2&ROW($DV41)),$DU41,$DU$2&ROW($DU41)),$DT41,$DT$2&ROW($DT41)),$DS41,$DS$2&ROW($DS41))))","v":"X=2525"},{"$f":"IF(I41=\"Manual Entry\",\"Manual\",IF(J41=\"\",0,\"X=\"&SUBSTITUTE(SUBSTITUTE(SUBSTITUTE(SUBSTITUTE(SUBSTITUTE(SUBSTITUTE(SUBSTITUTE(SUBSTITUTE(SUBSTITUTE(SUBSTITUTE(SUBSTITUTE(SUBSTITUTE(J41,$ED41,$ED$2&ROW($ED41)),$EC41,$EC$2&ROW($EC41)),$EB41,$EB$2&ROW($EB41)),$EA41,$EA$2&ROW($EA41)),$DZ41,$DZ$2&ROW($DZ41)),$DY41,$DY$2&ROW($DY41)),$DX41,$DX$2&ROW($DX41)),$DW41,$DW$2&ROW($DW41)),$DV41,$DV$2&ROW($DV41)),$DU41,$DU$2&ROW($DU41)),$DT41,$DT$2&ROW($DT41)),$DS41,$DS$2&ROW($DS41))))","v":"X=1800"},{"$f":"IF(O41=\"\",0,\"X=\"&SUBSTITUTE(SUBSTITUTE(SUBSTITUTE(SUBSTITUTE(SUBSTITUTE(SUBSTITUTE(SUBSTITUTE(SUBSTITUTE(SUBSTITUTE(SUBSTITUTE(SUBSTITUTE(SUBSTITUTE(O41,$ED41,$ED$2&ROW($ED41)),$EC41,$EC$2&ROW($EC41)),$EB41,$EB$2&ROW($EB41)),$EA41,$EA$2&ROW($EA41)),$DZ41,$DZ$2&ROW($DZ41)),$DY41,$DY$2&ROW($DY41)),$DX41,$DX$2&ROW($DX41)),$DW41,$DW$2&ROW($DW41)),$DV41,$DV$2&ROW($DV41)),$DU41,$DU$2&ROW($DU41)),$DT41,$DT$2&ROW($DT41)),$DS41,$DS$2&ROW($DS41)))","v":"X=AS41 * AU41 * 2540"},{"$f":"IF(P41=\"\",0,\"X=\"&SUBSTITUTE(SUBSTITUTE(SUBSTITUTE(SUBSTITUTE(SUBSTITUTE(SUBSTITUTE(SUBSTITUTE(SUBSTITUTE(SUBSTITUTE(SUBSTITUTE(SUBSTITUTE(SUBSTITUTE(P41,$ED41,$ED$2&ROW($ED41)),$EC41,$EC$2&ROW($EC41)),$EB41,$EB$2&ROW($EB41)),$EA41,$EA$2&ROW($EA41)),$DZ41,$DZ$2&ROW($DZ41)),$DY41,$DY$2&ROW($DY41)),$DX41,$DX$2&ROW($DX41)),$DW41,$DW$2&ROW($DW41)),$DV41,$DV$2&ROW($DV41)),$DU41,$DU$2&ROW($DU41)),$DT41,$DT$2&ROW($DT41)),$DS41,$DS$2&ROW($DS41)))","v":"X=0.0001"},{"$f":"IF(Q41=\"\",0,\"X=\"&SUBSTITUTE(SUBSTITUTE(SUBSTITUTE(SUBSTITUTE(SUBSTITUTE(SUBSTITUTE(SUBSTITUTE(SUBSTITUTE(SUBSTITUTE(SUBSTITUTE(SUBSTITUTE(SUBSTITUTE(Q41,$ED41,$ED$2&ROW($ED41)),$EC41,$EC$2&ROW($EC41)),$EB41,$EB$2&ROW($EB41)),$EA41,$EA$2&ROW($EA41)),$DZ41,$DZ$2&ROW($DZ41)),$DY41,$DY$2&ROW($DY41)),$DX41,$DX$2&ROW($DX41)),$DW41,$DW$2&ROW($DW41)),$DV41,$DV$2&ROW($DV41)),$DU41,$DU$2&ROW($DU41)),$DT41,$DT$2&ROW($DT41)),$DS41,$DS$2&ROW($DS41)))","v":0},{"$f":"IF(R41=\"\",0,\"X=\"&SUBSTITUTE(SUBSTITUTE(SUBSTITUTE(SUBSTITUTE(SUBSTITUTE(SUBSTITUTE(SUBSTITUTE(SUBSTITUTE(SUBSTITUTE(SUBSTITUTE(SUBSTITUTE(SUBSTITUTE(R41,$ED41,$ED$2&ROW($ED41)),$EC41,$EC$2&ROW($EC41)),$EB41,$EB$2&ROW($EB41)),$EA41,$EA$2&ROW($EA41)),$DZ41,$DZ$2&ROW($DZ41)),$DY41,$DY$2&ROW($DY41)),$DX41,$DX$2&ROW($DX41)),$DW41,$DW$2&ROW($DW41)),$DV41,$DV$2&ROW($DV41)),$DU41,$DU$2&ROW($DU41)),$DT41,$DT$2&ROW($DT41)),$DS41,$DS$2&ROW($DS41)))","v":"X=AS41 * AU41 * 0.71"},{"$f":"IF(S41=\"\",0,\"X=\"&SUBSTITUTE(SUBSTITUTE(SUBSTITUTE(SUBSTITUTE(SUBSTITUTE(SUBSTITUTE(SUBSTITUTE(SUBSTITUTE(SUBSTITUTE(SUBSTITUTE(SUBSTITUTE(SUBSTITUTE(S41,$ED41,$ED$2&ROW($ED41)),$EC41,$EC$2&ROW($EC41)),$EB41,$EB$2&ROW($EB41)),$EA41,$EA$2&ROW($EA41)),$DZ41,$DZ$2&ROW($DZ41)),$DY41,$DY$2&ROW($DY41)),$DX41,$DX$2&ROW($DX41)),$DW41,$DW$2&ROW($DW41)),$DV41,$DV$2&ROW($DV41)),$DU41,$DU$2&ROW($DU41)),$DT41,$DT$2&ROW($DT41)),$DS41,$DS$2&ROW($DS41)))","v":0},{"$f":"IF(T41=\"\",0,\"X=\"&SUBSTITUTE(SUBSTITUTE(SUBSTITUTE(SUBSTITUTE(SUBSTITUTE(SUBSTITUTE(SUBSTITUTE(SUBSTITUTE(SUBSTITUTE(SUBSTITUTE(SUBSTITUTE(SUBSTITUTE(T41,$ED41,$ED$2&ROW($ED41)),$EC41,$EC$2&ROW($EC41)),$EB41,$EB$2&ROW($EB41)),$EA41,$EA$2&ROW($EA41)),$DZ41,$DZ$2&ROW($DZ41)),$DY41,$DY$2&ROW($DY41)),$DX41,$DX$2&ROW($DX41)),$DW41,$DW$2&ROW($DW41)),$DV41,$DV$2&ROW($DV41)),$DU41,$DU$2&ROW($DU41)),$DT41,$DT$2&ROW($DT41)),$DS41,$DS$2&ROW($DS41)))","v":0},{"$f":"IF(U41=\"\",0,\"X=\"&SUBSTITUTE(SUBSTITUTE(SUBSTITUTE(SUBSTITUTE(SUBSTITUTE(SUBSTITUTE(SUBSTITUTE(SUBSTITUTE(SUBSTITUTE(SUBSTITUTE(SUBSTITUTE(SUBSTITUTE(U41,$ED41,$ED$2&ROW($ED41)),$EC41,$EC$2&ROW($EC41)),$EB41,$EB$2&ROW($EB41)),$EA41,$EA$2&ROW($EA41)),$DZ41,$DZ$2&ROW($DZ41)),$DY41,$DY$2&ROW($DY41)),$DX41,$DX$2&ROW($DX41)),$DW41,$DW$2&ROW($DW41)),$DV41,$DV$2&ROW($DV41)),$DU41,$DU$2&ROW($DU41)),$DT41,$DT$2&ROW($DT41)),$DS41,$DS$2&ROW($DS41)))","v":"X=AS41 * AU41 * 0.71 * AF41"},{"$f":"IF(V41=\"\",0,\"X=\"&SUBSTITUTE(SUBSTITUTE(SUBSTITUTE(SUBSTITUTE(SUBSTITUTE(SUBSTITUTE(SUBSTITUTE(SUBSTITUTE(SUBSTITUTE(SUBSTITUTE(SUBSTITUTE(SUBSTITUTE(V41,$ED41,$ED$2&ROW($ED41)),$EC41,$EC$2&ROW($EC41)),$EB41,$EB$2&ROW($EB41)),$EA41,$EA$2&ROW($EA41)),$DZ41,$DZ$2&ROW($DZ41)),$DY41,$DY$2&ROW($DY41)),$DX41,$DX$2&ROW($DX41)),$DW41,$DW$2&ROW($DW41)),$DV41,$DV$2&ROW($DV41)),$DU41,$DU$2&ROW($DU41)),$DT41,$DT$2&ROW($DT41)),$DS41,$DS$2&ROW($DS41)))","v":"X=AS41 * AU41 * 0.71 * AG41"},{"$f":"IF(W41=\"\",0,\"X=\"&SUBSTITUTE(SUBSTITUTE(SUBSTITUTE(SUBSTITUTE(SUBSTITUTE(SUBSTITUTE(SUBSTITUTE(SUBSTITUTE(SUBSTITUTE(SUBSTITUTE(SUBSTITUTE(SUBSTITUTE(W41,$ED41,$ED$2&ROW($ED41)),$EC41,$EC$2&ROW($EC41)),$EB41,$EB$2&ROW($EB41)),$EA41,$EA$2&ROW($EA41)),$DZ41,$DZ$2&ROW($DZ41)),$DY41,$DY$2&ROW($DY41)),$DX41,$DX$2&ROW($DX41)),$DW41,$DW$2&ROW($DW41)),$DV41,$DV$2&ROW($DV41)),$DU41,$DU$2&ROW($DU41)),$DT41,$DT$2&ROW($DT41)),$DS41,$DS$2&ROW($DS41)))","v":0},{"$f":"IF(X41=\"\",0,\"X=\"&SUBSTITUTE(SUBSTITUTE(SUBSTITUTE(SUBSTITUTE(SUBSTITUTE(SUBSTITUTE(SUBSTITUTE(SUBSTITUTE(SUBSTITUTE(SUBSTITUTE(SUBSTITUTE(SUBSTITUTE(X41,$ED41,$ED$2&ROW($ED41)),$EC41,$EC$2&ROW($EC41)),$EB41,$EB$2&ROW($EB41)),$EA41,$EA$2&ROW($EA41)),$DZ41,$DZ$2&ROW($DZ41)),$DY41,$DY$2&ROW($DY41)),$DX41,$DX$2&ROW($DX41)),$DW41,$DW$2&ROW($DW41)),$DV41,$DV$2&ROW($DV41)),$DU41,$DU$2&ROW($DU41)),$DT41,$DT$2&ROW($DT41)),$DS41,$DS$2&ROW($DS41)))","v":0},{"$f":"IF(Y41=\"\",0,\"X=\"&SUBSTITUTE(SUBSTITUTE(SUBSTITUTE(SUBSTITUTE(SUBSTITUTE(SUBSTITUTE(SUBSTITUTE(SUBSTITUTE(SUBSTITUTE(SUBSTITUTE(SUBSTITUTE(SUBSTITUTE(Y41,$ED41,$ED$2&ROW($ED41)),$EC41,$EC$2&ROW($EC41)),$EB41,$EB$2&ROW($EB41)),$EA41,$EA$2&ROW($EA41)),$DZ41,$DZ$2&ROW($DZ41)),$DY41,$DY$2&ROW($DY41)),$DX41,$DX$2&ROW($DX41)),$DW41,$DW$2&ROW($DW41)),$DV41,$DV$2&ROW($DV41)),$DU41,$DU$2&ROW($DU41)),$DT41,$DT$2&ROW($DT41)),$DS41,$DS$2&ROW($DS41)))","v":0},{"$f":"IF(Z41=\"\",0,\"X=\"&SUBSTITUTE(SUBSTITUTE(SUBSTITUTE(SUBSTITUTE(SUBSTITUTE(SUBSTITUTE(SUBSTITUTE(SUBSTITUTE(SUBSTITUTE(SUBSTITUTE(SUBSTITUTE(SUBSTITUTE(Z41,$ED41,$ED$2&ROW($ED41)),$EC41,$EC$2&ROW($EC41)),$EB41,$EB$2&ROW($EB41)),$EA41,$EA$2&ROW($EA41)),$DZ41,$DZ$2&ROW($DZ41)),$DY41,$DY$2&ROW($DY41)),$DX41,$DX$2&ROW($DX41)),$DW41,$DW$2&ROW($DW41)),$DV41,$DV$2&ROW($DV41)),$DU41,$DU$2&ROW($DU41)),$DT41,$DT$2&ROW($DT41)),$DS41,$DS$2&ROW($DS41)))","v":0},{"$f":"IF(AA41=\"\",0,\"X=\"&SUBSTITUTE(SUBSTITUTE(SUBSTITUTE(SUBSTITUTE(SUBSTITUTE(SUBSTITUTE(SUBSTITUTE(SUBSTITUTE(SUBSTITUTE(SUBSTITUTE(SUBSTITUTE(SUBSTITUTE(AA41,$ED41,$ED$2&ROW($ED41)),$EC41,$EC$2&ROW($EC41)),$EB41,$EB$2&ROW($EB41)),$EA41,$EA$2&ROW($EA41)),$DZ41,$DZ$2&ROW($DZ41)),$DY41,$DY$2&ROW($DY41)),$DX41,$DX$2&ROW($DX41)),$DW41,$DW$2&ROW($DW41)),$DV41,$DV$2&ROW($DV41)),$DU41,$DU$2&ROW($DU41)),$DT41,$DT$2&ROW($DT41)),$DS41,$DS$2&ROW($DS41)))","v":0},{"$f":"IF(AB41=\"\",0,\"X=\"&SUBSTITUTE(SUBSTITUTE(SUBSTITUTE(SUBSTITUTE(SUBSTITUTE(SUBSTITUTE(SUBSTITUTE(SUBSTITUTE(SUBSTITUTE(SUBSTITUTE(SUBSTITUTE(SUBSTITUTE(AB41,$ED41,$ED$2&ROW($ED41)),$EC41,$EC$2&ROW($EC41)),$EB41,$EB$2&ROW($EB41)),$EA41,$EA$2&ROW($EA41)),$DZ41,$DZ$2&ROW($DZ41)),$DY41,$DY$2&ROW($DY41)),$DX41,$DX$2&ROW($DX41)),$DW41,$DW$2&ROW($DW41)),$DV41,$DV$2&ROW($DV41)),$DU41,$DU$2&ROW($DU41)),$DT41,$DT$2&ROW($DT41)),$DS41,$DS$2&ROW($DS41)))","v":0},null,null,"{Factor:WinterCF}","{Factor:SummerCF}",{"$f":"IFERROR(INDEX($EG41:$IV41,MATCH(0,COUNTIF($DR41:DT41,$EG41:$IV41),0)),\"\")","v":"{Measure:Quantity}"},{"$f":"IFERROR(INDEX($EG41:$IV41,MATCH(0,COUNTIF($DR41:DU41,$EG41:$IV41),0)),\"\")","v":"{Fan HP}"},{"$f":"IFERROR(INDEX($EG41:$IV41,MATCH(0,COUNTIF($DR41:DV41,$EG41:$IV41),0)),\"\")","v":""},{"$f":"IFERROR(INDEX($EG41:$IV41,MATCH(0,COUNTIF($DR41:DW41,$EG41:$IV41),0)),\"\")","v":""},{"$f":"IFERROR(INDEX($EG41:$IV41,MATCH(0,COUNTIF($DR41:DX41,$EG41:$IV41),0)),\"\")","v":""},{"$f":"IFERROR(INDEX($EG41:$IV41,MATCH(0,COUNTIF($DR41:DY41,$EG41:$IV41),0)),\"\")","v":""},{"$f":"IFERROR(INDEX($EG41:$IV41,MATCH(0,COUNTIF($DR41:DZ41,$EG41:$IV41),0)),\"\")","v":""},{"$f":"IFERROR(INDEX($EG41:$IV41,MATCH(0,COUNTIF($DR41:EA41,$EG41:$IV41),0)),\"\")","v":""},{"$f":"IFERROR(INDEX($EG41:$IV41,MATCH(0,COUNTIF($DR41:EB41,$EG41:$IV41),0)),\"\")","v":""},{"$f":"IFERROR(INDEX($EG41:$IV41,MATCH(0,COUNTIF($DR41:EC41,$EG41:$IV41),0)),\"\")","v":""},null,null,{"$f":"IFERROR(MID($G41,FIND(CHAR(160),SUBSTITUTE($G41,\"{\",CHAR(160),EG$1)),FIND(CHAR(160),SUBSTITUTE($G41,\"}\",CHAR(160),EG$1))-FIND(CHAR(160),SUBSTITUTE($G41,\"{\",CHAR(160),EG$1))+1),\"\")","v":""},{"$f":"IFERROR(MID($G41,FIND(CHAR(160),SUBSTITUTE($G41,\"{\",CHAR(160),EH$1)),FIND(CHAR(160),SUBSTITUTE($G41,\"}\",CHAR(160),EH$1))-FIND(CHAR(160),SUBSTITUTE($G41,\"{\",CHAR(160),EH$1))+1),\"\")","v":""},{"$f":"IFERROR(MID($G41,FIND(CHAR(160),SUBSTITUTE($G41,\"{\",CHAR(160),EI$1)),FIND(CHAR(160),SUBSTITUTE($G41,\"}\",CHAR(160),EI$1))-FIND(CHAR(160),SUBSTITUTE($G41,\"{\",CHAR(160),EI$1))+1),\"\")","v":""},{"$f":"IFERROR(MID($G41,FIND(CHAR(160),SUBSTITUTE($G41,\"{\",CHAR(160),EJ$1)),FIND(CHAR(160),SUBSTITUTE($G41,\"}\",CHAR(160),EJ$1))-FIND(CHAR(160),SUBSTITUTE($G41,\"{\",CHAR(160),EJ$1))+1),\"\")","v":""},{"$f":"IFERROR(MID($G41,FIND(CHAR(160),SUBSTITUTE($G41,\"{\",CHAR(160),EK$1)),FIND(CHAR(160),SUBSTITUTE($G41,\"}\",CHAR(160),EK$1))-FIND(CHAR(160),SUBSTITUTE($G41,\"{\",CHAR(160),EK$1))+1),\"\")","v":""},{"$f":"IFERROR(MID($G41,FIND(CHAR(160),SUBSTITUTE($G41,\"{\",CHAR(160),EL$1)),FIND(CHAR(160),SUBSTITUTE($G41,\"}\",CHAR(160),EL$1))-FIND(CHAR(160),SUBSTITUTE($G41,\"{\",CHAR(160),EL$1))+1),\"\")","v":""},{"$f":"IFERROR(MID($G41,FIND(CHAR(160),SUBSTITUTE($G41,\"{\",CHAR(160),EM$1)),FIND(CHAR(160),SUBSTITUTE($G41,\"}\",CHAR(160),EM$1))-FIND(CHAR(160),SUBSTITUTE($G41,\"{\",CHAR(160),EM$1))+1),\"\")","v":""},{"$f":"IFERROR(MID($G41,FIND(CHAR(160),SUBSTITUTE($G41,\"{\",CHAR(160),EN$1)),FIND(CHAR(160),SUBSTITUTE($G41,\"}\",CHAR(160),EN$1))-FIND(CHAR(160),SUBSTITUTE($G41,\"{\",CHAR(160),EN$1))+1),\"\")","v":""},{"$f":"IFERROR(MID($G41,FIND(CHAR(160),SUBSTITUTE($G41,\"{\",CHAR(160),EO$1)),FIND(CHAR(160),SUBSTITUTE($G41,\"}\",CHAR(160),EO$1))-FIND(CHAR(160),SUBSTITUTE($G41,\"{\",CHAR(160),EO$1))+1),\"\")","v":""},{"$f":"IFERROR(MID($G41,FIND(CHAR(160),SUBSTITUTE($G41,\"{\",CHAR(160),EP$1)),FIND(CHAR(160),SUBSTITUTE($G41,\"}\",CHAR(160),EP$1))-FIND(CHAR(160),SUBSTITUTE($G41,\"{\",CHAR(160),EP$1))+1),\"\")","v":""},{"$f":"IFERROR(MID($J41,FIND(CHAR(160),SUBSTITUTE($J41,\"{\",CHAR(160),EQ$1)),FIND(CHAR(160),SUBSTITUTE($J41,\"}\",CHAR(160),EQ$1))-FIND(CHAR(160),SUBSTITUTE($J41,\"{\",CHAR(160),EQ$1))+1),\"\")","v":""},{"$f":"IFERROR(MID($J41,FIND(CHAR(160),SUBSTITUTE($J41,\"{\",CHAR(160),ER$1)),FIND(CHAR(160),SUBSTITUTE($J41,\"}\",CHAR(160),ER$1))-FIND(CHAR(160),SUBSTITUTE($J41,\"{\",CHAR(160),ER$1))+1),\"\")","v":""},{"$f":"IFERROR(MID($J41,FIND(CHAR(160),SUBSTITUTE($J41,\"{\",CHAR(160),ES$1)),FIND(CHAR(160),SUBSTITUTE($J41,\"}\",CHAR(160),ES$1))-FIND(CHAR(160),SUBSTITUTE($J41,\"{\",CHAR(160),ES$1))+1),\"\")","v":""},{"$f":"IFERROR(MID($J41,FIND(CHAR(160),SUBSTITUTE($J41,\"{\",CHAR(160),ET$1)),FIND(CHAR(160),SUBSTITUTE($J41,\"}\",CHAR(160),ET$1))-FIND(CHAR(160),SUBSTITUTE($J41,\"{\",CHAR(160),ET$1))+1),\"\")","v":""},{"$f":"IFERROR(MID($J41,FIND(CHAR(160),SUBSTITUTE($J41,\"{\",CHAR(160),EU$1)),FIND(CHAR(160),SUBSTITUTE($J41,\"}\",CHAR(160),EU$1))-FIND(CHAR(160),SUBSTITUTE($J41,\"{\",CHAR(160),EU$1))+1),\"\")","v":""},{"$f":"IFERROR(MID($J41,FIND(CHAR(160),SUBSTITUTE($J41,\"{\",CHAR(160),EV$1)),FIND(CHAR(160),SUBSTITUTE($J41,\"}\",CHAR(160),EV$1))-FIND(CHAR(160),SUBSTITUTE($J41,\"{\",CHAR(160),EV$1))+1),\"\")","v":""},{"$f":"IFERROR(MID($J41,FIND(CHAR(160),SUBSTITUTE($J41,\"{\",CHAR(160),EW$1)),FIND(CHAR(160),SUBSTITUTE($J41,\"}\",CHAR(160),EW$1))-FIND(CHAR(160),SUBSTITUTE($J41,\"{\",CHAR(160),EW$1))+1),\"\")","v":""},{"$f":"IFERROR(MID($J41,FIND(CHAR(160),SUBSTITUTE($J41,\"{\",CHAR(160),EX$1)),FIND(CHAR(160),SUBSTITUTE($J41,\"}\",CHAR(160),EX$1))-FIND(CHAR(160),SUBSTITUTE($J41,\"{\",CHAR(160),EX$1))+1),\"\")","v":""},{"$f":"IFERROR(MID($J41,FIND(CHAR(160),SUBSTITUTE($J41,\"{\",CHAR(160),EY$1)),FIND(CHAR(160),SUBSTITUTE($J41,\"}\",CHAR(160),EY$1))-FIND(CHAR(160),SUBSTITUTE($J41,\"{\",CHAR(160),EY$1))+1),\"\")","v":""},{"$f":"IFERROR(MID($J41,FIND(CHAR(160),SUBSTITUTE($J41,\"{\",CHAR(160),EZ$1)),FIND(CHAR(160),SUBSTITUTE($J41,\"}\",CHAR(160),EZ$1))-FIND(CHAR(160),SUBSTITUTE($J41,\"{\",CHAR(160),EZ$1))+1),\"\")","v":""},{"$f":"IFERROR(MID($J41,FIND(CHAR(160),SUBSTITUTE($J41,\"{\",CHAR(160),FA$1)),FIND(CHAR(160),SUBSTITUTE($J41,\"}\",CHAR(160),FA$1))-FIND(CHAR(160),SUBSTITUTE($J41,\"{\",CHAR(160),FA$1))+1),\"\")","v":""},{"$f":"IFERROR(MID($J41,FIND(CHAR(160),SUBSTITUTE($J41,\"{\",CHAR(160),FB$1)),FIND(CHAR(160),SUBSTITUTE($J41,\"}\",CHAR(160),FB$1))-FIND(CHAR(160),SUBSTITUTE($J41,\"{\",CHAR(160),FB$1))+1),\"\")","v":""},{"$f":"IFERROR(MID($O41,FIND(CHAR(160),SUBSTITUTE($O41,\"{\",CHAR(160),FC$1)),FIND(CHAR(160),SUBSTITUTE($O41,\"}\",CHAR(160),FC$1))-FIND(CHAR(160),SUBSTITUTE($O41,\"{\",CHAR(160),FC$1))+1),\"\")","v":""},{"$f":"IFERROR(MID($O41,FIND(CHAR(160),SUBSTITUTE($O41,\"{\",CHAR(160),FD$1)),FIND(CHAR(160),SUBSTITUTE($O41,\"}\",CHAR(160),FD$1))-FIND(CHAR(160),SUBSTITUTE($O41,\"{\",CHAR(160),FD$1))+1),\"\")","v":""},{"$f":"IFERROR(MID($O41,FIND(CHAR(160),SUBSTITUTE($O41,\"{\",CHAR(160),FE$1)),FIND(CHAR(160),SUBSTITUTE($O41,\"}\",CHAR(160),FE$1))-FIND(CHAR(160),SUBSTITUTE($O41,\"{\",CHAR(160),FE$1))+1),\"\")","v":""},{"$f":"IFERROR(MID($O41,FIND(CHAR(160),SUBSTITUTE($O41,\"{\",CHAR(160),FF$1)),FIND(CHAR(160),SUBSTITUTE($O41,\"}\",CHAR(160),FF$1))-FIND(CHAR(160),SUBSTITUTE($O41,\"{\",CHAR(160),FF$1))+1),\"\")","v":""},{"$f":"IFERROR(MID($O41,FIND(CHAR(160),SUBSTITUTE($O41,\"{\",CHAR(160),FG$1)),FIND(CHAR(160),SUBSTITUTE($O41,\"}\",CHAR(160),FG$1))-FIND(CHAR(160),SUBSTITUTE($O41,\"{\",CHAR(160),FG$1))+1),\"\")","v":""},{"$f":"IFERROR(MID($O41,FIND(CHAR(160),SUBSTITUTE($O41,\"{\",CHAR(160),FH$1)),FIND(CHAR(160),SUBSTITUTE($O41,\"}\",CHAR(160),FH$1))-FIND(CHAR(160),SUBSTITUTE($O41,\"{\",CHAR(160),FH$1))+1),\"\")","v":""},{"$f":"IFERROR(MID($O41,FIND(CHAR(160),SUBSTITUTE($O41,\"{\",CHAR(160),FI$1)),FIND(CHAR(160),SUBSTITUTE($O41,\"}\",CHAR(160),FI$1))-FIND(CHAR(160),SUBSTITUTE($O41,\"{\",CHAR(160),FI$1))+1),\"\")","v":""},{"$f":"IFERROR(MID($O41,FIND(CHAR(160),SUBSTITUTE($O41,\"{\",CHAR(160),FJ$1)),FIND(CHAR(160),SUBSTITUTE($O41,\"}\",CHAR(160),FJ$1))-FIND(CHAR(160),SUBSTITUTE($O41,\"{\",CHAR(160),FJ$1))+1),\"\")","v":""},{"$f":"IFERROR(MID($O41,FIND(CHAR(160),SUBSTITUTE($O41,\"{\",CHAR(160),FK$1)),FIND(CHAR(160),SUBSTITUTE($O41,\"}\",CHAR(160),FK$1))-FIND(CHAR(160),SUBSTITUTE($O41,\"{\",CHAR(160),FK$1))+1),\"\")","v":"{Measure:Quantity}"},{"$f":"IFERROR(MID($O41,FIND(CHAR(160),SUBSTITUTE($O41,\"{\",CHAR(160),FL$1)),FIND(CHAR(160),SUBSTITUTE($O41,\"}\",CHAR(160),FL$1))-FIND(CHAR(160),SUBSTITUTE($O41,\"{\",CHAR(160),FL$1))+1),\"\")","v":"{Fan HP}"},{"$f":"IFERROR(MID($R41,FIND(CHAR(160),SUBSTITUTE($R41,\"{\",CHAR(160),FM$1)),FIND(CHAR(160),SUBSTITUTE($R41,\"}\",CHAR(160),FM$1))-FIND(CHAR(160),SUBSTITUTE($R41,\"{\",CHAR(160),FM$1))+1),\"\")","v":""},{"$f":"IFERROR(MID($R41,FIND(CHAR(160),SUBSTITUTE($R41,\"{\",CHAR(160),FN$1)),FIND(CHAR(160),SUBSTITUTE($R41,\"}\",CHAR(160),FN$1))-FIND(CHAR(160),SUBSTITUTE($R41,\"{\",CHAR(160),FN$1))+1),\"\")","v":""},{"$f":"IFERROR(MID($R41,FIND(CHAR(160),SUBSTITUTE($R41,\"{\",CHAR(160),FO$1)),FIND(CHAR(160),SUBSTITUTE($R41,\"}\",CHAR(160),FO$1))-FIND(CHAR(160),SUBSTITUTE($R41,\"{\",CHAR(160),FO$1))+1),\"\")","v":""},{"$f":"IFERROR(MID($R41,FIND(CHAR(160),SUBSTITUTE($R41,\"{\",CHAR(160),FP$1)),FIND(CHAR(160),SUBSTITUTE($R41,\"}\",CHAR(160),FP$1))-FIND(CHAR(160),SUBSTITUTE($R41,\"{\",CHAR(160),FP$1))+1),\"\")","v":""},{"$f":"IFERROR(MID($R41,FIND(CHAR(160),SUBSTITUTE($R41,\"{\",CHAR(160),FQ$1)),FIND(CHAR(160),SUBSTITUTE($R41,\"}\",CHAR(160),FQ$1))-FIND(CHAR(160),SUBSTITUTE($R41,\"{\",CHAR(160),FQ$1))+1),\"\")","v":""},{"$f":"IFERROR(MID($R41,FIND(CHAR(160),SUBSTITUTE($R41,\"{\",CHAR(160),FR$1)),FIND(CHAR(160),SUBSTITUTE($R41,\"}\",CHAR(160),FR$1))-FIND(CHAR(160),SUBSTITUTE($R41,\"{\",CHAR(160),FR$1))+1),\"\")","v":""},{"$f":"IFERROR(MID($R41,FIND(CHAR(160),SUBSTITUTE($R41,\"{\",CHAR(160),FS$1)),FIND(CHAR(160),SUBSTITUTE($R41,\"}\",CHAR(160),FS$1))-FIND(CHAR(160),SUBSTITUTE($R41,\"{\",CHAR(160),FS$1))+1),\"\")","v":""},{"$f":"IFERROR(MID($R41,FIND(CHAR(160),SUBSTITUTE($R41,\"{\",CHAR(160),FT$1)),FIND(CHAR(160),SUBSTITUTE($R41,\"}\",CHAR(160),FT$1))-FIND(CHAR(160),SUBSTITUTE($R41,\"{\",CHAR(160),FT$1))+1),\"\")","v":""},{"$f":"IFERROR(MID($R41,FIND(CHAR(160),SUBSTITUTE($R41,\"{\",CHAR(160),FU$1)),FIND(CHAR(160),SUBSTITUTE($R41,\"}\",CHAR(160),FU$1))-FIND(CHAR(160),SUBSTITUTE($R41,\"{\",CHAR(160),FU$1))+1),\"\")","v":"{Measure:Quantity}"},{"$f":"IFERROR(MID($R41,FIND(CHAR(160),SUBSTITUTE($R41,\"{\",CHAR(160),FV$1)),FIND(CHAR(160),SUBSTITUTE($R41,\"}\",CHAR(160),FV$1))-FIND(CHAR(160),SUBSTITUTE($R41,\"{\",CHAR(160),FV$1))+1),\"\")","v":"{Fan HP}"},{"$f":"IFERROR(MID($U41,FIND(CHAR(160),SUBSTITUTE($U41,\"{\",CHAR(160),FW$1)),FIND(CHAR(160),SUBSTITUTE($U41,\"}\",CHAR(160),FW$1))-FIND(CHAR(160),SUBSTITUTE($U41,\"{\",CHAR(160),FW$1))+1),\"\")","v":"{Factor:WinterCF}"},{"$f":"IFERROR(MID($U41,FIND(CHAR(160),SUBSTITUTE($U41,\"{\",CHAR(160),FX$1)),FIND(CHAR(160),SUBSTITUTE($U41,\"}\",CHAR(160),FX$1))-FIND(CHAR(160),SUBSTITUTE($U41,\"{\",CHAR(160),FX$1))+1),\"\")","v":""},{"$f":"IFERROR(MID($U41,FIND(CHAR(160),SUBSTITUTE($U41,\"{\",CHAR(160),FY$1)),FIND(CHAR(160),SUBSTITUTE($U41,\"}\",CHAR(160),FY$1))-FIND(CHAR(160),SUBSTITUTE($U41,\"{\",CHAR(160),FY$1))+1),\"\")","v":""},{"$f":"IFERROR(MID($U41,FIND(CHAR(160),SUBSTITUTE($U41,\"{\",CHAR(160),FZ$1)),FIND(CHAR(160),SUBSTITUTE($U41,\"}\",CHAR(160),FZ$1))-FIND(CHAR(160),SUBSTITUTE($U41,\"{\",CHAR(160),FZ$1))+1),\"\")","v":""},{"$f":"IFERROR(MID($U41,FIND(CHAR(160),SUBSTITUTE($U41,\"{\",CHAR(160),GA$1)),FIND(CHAR(160),SUBSTITUTE($U41,\"}\",CHAR(160),GA$1))-FIND(CHAR(160),SUBSTITUTE($U41,\"{\",CHAR(160),GA$1))+1),\"\")","v":""},{"$f":"IFERROR(MID($U41,FIND(CHAR(160),SUBSTITUTE($U41,\"{\",CHAR(160),GB$1)),FIND(CHAR(160),SUBSTITUTE($U41,\"}\",CHAR(160),GB$1))-FIND(CHAR(160),SUBSTITUTE($U41,\"{\",CHAR(160),GB$1))+1),\"\")","v":""},{"$f":"IFERROR(MID($U41,FIND(CHAR(160),SUBSTITUTE($U41,\"{\",CHAR(160),GC$1)),FIND(CHAR(160),SUBSTITUTE($U41,\"}\",CHAR(160),GC$1))-FIND(CHAR(160),SUBSTITUTE($U41,\"{\",CHAR(160),GC$1))+1),\"\")","v":""},{"$f":"IFERROR(MID($U41,FIND(CHAR(160),SUBSTITUTE($U41,\"{\",CHAR(160),GD$1)),FIND(CHAR(160),SUBSTITUTE($U41,\"}\",CHAR(160),GD$1))-FIND(CHAR(160),SUBSTITUTE($U41,\"{\",CHAR(160),GD$1))+1),\"\")","v":""},{"$f":"IFERROR(MID($U41,FIND(CHAR(160),SUBSTITUTE($U41,\"{\",CHAR(160),GE$1)),FIND(CHAR(160),SUBSTITUTE($U41,\"}\",CHAR(160),GE$1))-FIND(CHAR(160),SUBSTITUTE($U41,\"{\",CHAR(160),GE$1))+1),\"\")","v":"{Measure:Quantity}"},{"$f":"IFERROR(MID($U41,FIND(CHAR(160),SUBSTITUTE($U41,\"{\",CHAR(160),GF$1)),FIND(CHAR(160),SUBSTITUTE($U41,\"}\",CHAR(160),GF$1))-FIND(CHAR(160),SUBSTITUTE($U41,\"{\",CHAR(160),GF$1))+1),\"\")","v":"{Fan HP}"},{"$f":"IFERROR(MID($V41,FIND(CHAR(160),SUBSTITUTE($V41,\"{\",CHAR(160),GG$1)),FIND(CHAR(160),SUBSTITUTE($V41,\"}\",CHAR(160),GG$1))-FIND(CHAR(160),SUBSTITUTE($V41,\"{\",CHAR(160),GG$1))+1),\"\")","v":"{Factor:SummerCF}"},{"$f":"IFERROR(MID($V41,FIND(CHAR(160),SUBSTITUTE($V41,\"{\",CHAR(160),GH$1)),FIND(CHAR(160),SUBSTITUTE($V41,\"}\",CHAR(160),GH$1))-FIND(CHAR(160),SUBSTITUTE($V41,\"{\",CHAR(160),GH$1))+1),\"\")","v":""},{"$f":"IFERROR(MID($V41,FIND(CHAR(160),SUBSTITUTE($V41,\"{\",CHAR(160),GI$1)),FIND(CHAR(160),SUBSTITUTE($V41,\"}\",CHAR(160),GI$1))-FIND(CHAR(160),SUBSTITUTE($V41,\"{\",CHAR(160),GI$1))+1),\"\")","v":""},{"$f":"IFERROR(MID($V41,FIND(CHAR(160),SUBSTITUTE($V41,\"{\",CHAR(160),GJ$1)),FIND(CHAR(160),SUBSTITUTE($V41,\"}\",CHAR(160),GJ$1))-FIND(CHAR(160),SUBSTITUTE($V41,\"{\",CHAR(160),GJ$1))+1),\"\")","v":""},{"$f":"IFERROR(MID($V41,FIND(CHAR(160),SUBSTITUTE($V41,\"{\",CHAR(160),GK$1)),FIND(CHAR(160),SUBSTITUTE($V41,\"}\",CHAR(160),GK$1))-FIND(CHAR(160),SUBSTITUTE($V41,\"{\",CHAR(160),GK$1))+1),\"\")","v":""},{"$f":"IFERROR(MID($V41,FIND(CHAR(160),SUBSTITUTE($V41,\"{\",CHAR(160),GL$1)),FIND(CHAR(160),SUBSTITUTE($V41,\"}\",CHAR(160),GL$1))-FIND(CHAR(160),SUBSTITUTE($V41,\"{\",CHAR(160),GL$1))+1),\"\")","v":""},{"$f":"IFERROR(MID($V41,FIND(CHAR(160),SUBSTITUTE($V41,\"{\",CHAR(160),GM$1)),FIND(CHAR(160),SUBSTITUTE($V41,\"}\",CHAR(160),GM$1))-FIND(CHAR(160),SUBSTITUTE($V41,\"{\",CHAR(160),GM$1))+1),\"\")","v":""},{"$f":"IFERROR(MID($V41,FIND(CHAR(160),SUBSTITUTE($V41,\"{\",CHAR(160),GN$1)),FIND(CHAR(160),SUBSTITUTE($V41,\"}\",CHAR(160),GN$1))-FIND(CHAR(160),SUBSTITUTE($V41,\"{\",CHAR(160),GN$1))+1),\"\")","v":""},{"$f":"IFERROR(MID($V41,FIND(CHAR(160),SUBSTITUTE($V41,\"{\",CHAR(160),GO$1)),FIND(CHAR(160),SUBSTITUTE($V41,\"}\",CHAR(160),GO$1))-FIND(CHAR(160),SUBSTITUTE($V41,\"{\",CHAR(160),GO$1))+1),\"\")","v":"{Measure:Quantity}"},{"$f":"IFERROR(MID($V41,FIND(CHAR(160),SUBSTITUTE($V41,\"{\",CHAR(160),GP$1)),FIND(CHAR(160),SUBSTITUTE($V41,\"}\",CHAR(160),GP$1))-FIND(CHAR(160),SUBSTITUTE($V41,\"{\",CHAR(160),GP$1))+1),\"\")","v":"{Fan HP}"},{"$f":"IFERROR(MID($W41,FIND(CHAR(160),SUBSTITUTE($W41,\"{\",CHAR(160),GQ$1)),FIND(CHAR(160),SUBSTITUTE($W41,\"}\",CHAR(160),GQ$1))-FIND(CHAR(160),SUBSTITUTE($W41,\"{\",CHAR(160),GQ$1))+1),\"\")","v":""},{"$f":"IFERROR(MID($W41,FIND(CHAR(160),SUBSTITUTE($W41,\"{\",CHAR(160),GR$1)),FIND(CHAR(160),SUBSTITUTE($W41,\"}\",CHAR(160),GR$1))-FIND(CHAR(160),SUBSTITUTE($W41,\"{\",CHAR(160),GR$1))+1),\"\")","v":""},{"$f":"IFERROR(MID($W41,FIND(CHAR(160),SUBSTITUTE($W41,\"{\",CHAR(160),GS$1)),FIND(CHAR(160),SUBSTITUTE($W41,\"}\",CHAR(160),GS$1))-FIND(CHAR(160),SUBSTITUTE($W41,\"{\",CHAR(160),GS$1))+1),\"\")","v":""},{"$f":"IFERROR(MID($W41,FIND(CHAR(160),SUBSTITUTE($W41,\"{\",CHAR(160),GT$1)),FIND(CHAR(160),SUBSTITUTE($W41,\"}\",CHAR(160),GT$1))-FIND(CHAR(160),SUBSTITUTE($W41,\"{\",CHAR(160),GT$1))+1),\"\")","v":""},{"$f":"IFERROR(MID($W41,FIND(CHAR(160),SUBSTITUTE($W41,\"{\",CHAR(160),GU$1)),FIND(CHAR(160),SUBSTITUTE($W41,\"}\",CHAR(160),GU$1))-FIND(CHAR(160),SUBSTITUTE($W41,\"{\",CHAR(160),GU$1))+1),\"\")","v":""},{"$f":"IFERROR(MID($W41,FIND(CHAR(160),SUBSTITUTE($W41,\"{\",CHAR(160),GV$1)),FIND(CHAR(160),SUBSTITUTE($W41,\"}\",CHAR(160),GV$1))-FIND(CHAR(160),SUBSTITUTE($W41,\"{\",CHAR(160),GV$1))+1),\"\")","v":""},{"$f":"IFERROR(MID($W41,FIND(CHAR(160),SUBSTITUTE($W41,\"{\",CHAR(160),GW$1)),FIND(CHAR(160),SUBSTITUTE($W41,\"}\",CHAR(160),GW$1))-FIND(CHAR(160),SUBSTITUTE($W41,\"{\",CHAR(160),GW$1))+1),\"\")","v":""},{"$f":"IFERROR(MID($W41,FIND(CHAR(160),SUBSTITUTE($W41,\"{\",CHAR(160),GX$1)),FIND(CHAR(160),SUBSTITUTE($W41,\"}\",CHAR(160),GX$1))-FIND(CHAR(160),SUBSTITUTE($W41,\"{\",CHAR(160),GX$1))+1),\"\")","v":""},{"$f":"IFERROR(MID($W41,FIND(CHAR(160),SUBSTITUTE($W41,\"{\",CHAR(160),GY$1)),FIND(CHAR(160),SUBSTITUTE($W41,\"}\",CHAR(160),GY$1))-FIND(CHAR(160),SUBSTITUTE($W41,\"{\",CHAR(160),GY$1))+1),\"\")","v":""},{"$f":"IFERROR(MID($W41,FIND(CHAR(160),SUBSTITUTE($W41,\"{\",CHAR(160),GZ$1)),FIND(CHAR(160),SUBSTITUTE($W41,\"}\",CHAR(160),GZ$1))-FIND(CHAR(160),SUBSTITUTE($W41,\"{\",CHAR(160),GZ$1))+1),\"\")","v":""},{"$f":"IFERROR(MID($X41,FIND(CHAR(160),SUBSTITUTE($X41,\"{\",CHAR(160),HA$1)),FIND(CHAR(160),SUBSTITUTE($X41,\"}\",CHAR(160),HA$1))-FIND(CHAR(160),SUBSTITUTE($X41,\"{\",CHAR(160),HA$1))+1),\"\")","v":""},{"$f":"IFERROR(MID($X41,FIND(CHAR(160),SUBSTITUTE($X41,\"{\",CHAR(160),HB$1)),FIND(CHAR(160),SUBSTITUTE($X41,\"}\",CHAR(160),HB$1))-FIND(CHAR(160),SUBSTITUTE($X41,\"{\",CHAR(160),HB$1))+1),\"\")","v":""},{"$f":"IFERROR(MID($X41,FIND(CHAR(160),SUBSTITUTE($X41,\"{\",CHAR(160),HC$1)),FIND(CHAR(160),SUBSTITUTE($X41,\"}\",CHAR(160),HC$1))-FIND(CHAR(160),SUBSTITUTE($X41,\"{\",CHAR(160),HC$1))+1),\"\")","v":""},{"$f":"IFERROR(MID($X41,FIND(CHAR(160),SUBSTITUTE($X41,\"{\",CHAR(160),HD$1)),FIND(CHAR(160),SUBSTITUTE($X41,\"}\",CHAR(160),HD$1))-FIND(CHAR(160),SUBSTITUTE($X41,\"{\",CHAR(160),HD$1))+1),\"\")","v":""},{"$f":"IFERROR(MID($X41,FIND(CHAR(160),SUBSTITUTE($X41,\"{\",CHAR(160),HE$1)),FIND(CHAR(160),SUBSTITUTE($X41,\"}\",CHAR(160),HE$1))-FIND(CHAR(160),SUBSTITUTE($X41,\"{\",CHAR(160),HE$1))+1),\"\")","v":""},{"$f":"IFERROR(MID($X41,FIND(CHAR(160),SUBSTITUTE($X41,\"{\",CHAR(160),HF$1)),FIND(CHAR(160),SUBSTITUTE($X41,\"}\",CHAR(160),HF$1))-FIND(CHAR(160),SUBSTITUTE($X41,\"{\",CHAR(160),HF$1))+1),\"\")","v":""},{"$f":"IFERROR(MID($X41,FIND(CHAR(160),SUBSTITUTE($X41,\"{\",CHAR(160),HG$1)),FIND(CHAR(160),SUBSTITUTE($X41,\"}\",CHAR(160),HG$1))-FIND(CHAR(160),SUBSTITUTE($X41,\"{\",CHAR(160),HG$1))+1),\"\")","v":""},{"$f":"IFERROR(MID($X41,FIND(CHAR(160),SUBSTITUTE($X41,\"{\",CHAR(160),HH$1)),FIND(CHAR(160),SUBSTITUTE($X41,\"}\",CHAR(160),HH$1))-FIND(CHAR(160),SUBSTITUTE($X41,\"{\",CHAR(160),HH$1))+1),\"\")","v":""},{"$f":"IFERROR(MID($X41,FIND(CHAR(160),SUBSTITUTE($X41,\"{\",CHAR(160),HI$1)),FIND(CHAR(160),SUBSTITUTE($X41,\"}\",CHAR(160),HI$1))-FIND(CHAR(160),SUBSTITUTE($X41,\"{\",CHAR(160),HI$1))+1),\"\")","v":""},{"$f":"IFERROR(MID($X41,FIND(CHAR(160),SUBSTITUTE($X41,\"{\",CHAR(160),HJ$1)),FIND(CHAR(160),SUBSTITUTE($X41,\"}\",CHAR(160),HJ$1))-FIND(CHAR(160),SUBSTITUTE($X41,\"{\",CHAR(160),HJ$1))+1),\"\")","v":""},{"$f":"IFERROR(MID($Y41,FIND(CHAR(160),SUBSTITUTE($Y41,\"{\",CHAR(160),HK$1)),FIND(CHAR(160),SUBSTITUTE($Y41,\"}\",CHAR(160),HK$1))-FIND(CHAR(160),SUBSTITUTE($Y41,\"{\",CHAR(160),HK$1))+1),\"\")","v":""},{"$f":"IFERROR(MID($Y41,FIND(CHAR(160),SUBSTITUTE($Y41,\"{\",CHAR(160),HL$1)),FIND(CHAR(160),SUBSTITUTE($Y41,\"}\",CHAR(160),HL$1))-FIND(CHAR(160),SUBSTITUTE($Y41,\"{\",CHAR(160),HL$1))+1),\"\")","v":""},{"$f":"IFERROR(MID($Y41,FIND(CHAR(160),SUBSTITUTE($Y41,\"{\",CHAR(160),HM$1)),FIND(CHAR(160),SUBSTITUTE($Y41,\"}\",CHAR(160),HM$1))-FIND(CHAR(160),SUBSTITUTE($Y41,\"{\",CHAR(160),HM$1))+1),\"\")","v":""},{"$f":"IFERROR(MID($Y41,FIND(CHAR(160),SUBSTITUTE($Y41,\"{\",CHAR(160),HN$1)),FIND(CHAR(160),SUBSTITUTE($Y41,\"}\",CHAR(160),HN$1))-FIND(CHAR(160),SUBSTITUTE($Y41,\"{\",CHAR(160),HN$1))+1),\"\")","v":""},{"$f":"IFERROR(MID($Y41,FIND(CHAR(160),SUBSTITUTE($Y41,\"{\",CHAR(160),HO$1)),FIND(CHAR(160),SUBSTITUTE($Y41,\"}\",CHAR(160),HO$1))-FIND(CHAR(160),SUBSTITUTE($Y41,\"{\",CHAR(160),HO$1))+1),\"\")","v":""},{"$f":"IFERROR(MID($Y41,FIND(CHAR(160),SUBSTITUTE($Y41,\"{\",CHAR(160),HP$1)),FIND(CHAR(160),SUBSTITUTE($Y41,\"}\",CHAR(160),HP$1))-FIND(CHAR(160),SUBSTITUTE($Y41,\"{\",CHAR(160),HP$1))+1),\"\")","v":""},{"$f":"IFERROR(MID($Y41,FIND(CHAR(160),SUBSTITUTE($Y41,\"{\",CHAR(160),HQ$1)),FIND(CHAR(160),SUBSTITUTE($Y41,\"}\",CHAR(160),HQ$1))-FIND(CHAR(160),SUBSTITUTE($Y41,\"{\",CHAR(160),HQ$1))+1),\"\")","v":""},{"$f":"IFERROR(MID($Y41,FIND(CHAR(160),SUBSTITUTE($Y41,\"{\",CHAR(160),HR$1)),FIND(CHAR(160),SUBSTITUTE($Y41,\"}\",CHAR(160),HR$1))-FIND(CHAR(160),SUBSTITUTE($Y41,\"{\",CHAR(160),HR$1))+1),\"\")","v":""},{"$f":"IFERROR(MID($Y41,FIND(CHAR(160),SUBSTITUTE($Y41,\"{\",CHAR(160),HS$1)),FIND(CHAR(160),SUBSTITUTE($Y41,\"}\",CHAR(160),HS$1))-FIND(CHAR(160),SUBSTITUTE($Y41,\"{\",CHAR(160),HS$1))+1),\"\")","v":""},{"$f":"IFERROR(MID($Y41,FIND(CHAR(160),SUBSTITUTE($Y41,\"{\",CHAR(160),HT$1)),FIND(CHAR(160),SUBSTITUTE($Y41,\"}\",CHAR(160),HT$1))-FIND(CHAR(160),SUBSTITUTE($Y41,\"{\",CHAR(160),HT$1))+1),\"\")","v":""},{"$f":"IFERROR(MID($Z41,FIND(CHAR(160),SUBSTITUTE($Z41,\"{\",CHAR(160),HU$1)),FIND(CHAR(160),SUBSTITUTE($Z41,\"}\",CHAR(160),HU$1))-FIND(CHAR(160),SUBSTITUTE($Z41,\"{\",CHAR(160),HU$1))+1),\"\")","v":""},{"$f":"IFERROR(MID($Z41,FIND(CHAR(160),SUBSTITUTE($Z41,\"{\",CHAR(160),HV$1)),FIND(CHAR(160),SUBSTITUTE($Z41,\"}\",CHAR(160),HV$1))-FIND(CHAR(160),SUBSTITUTE($Z41,\"{\",CHAR(160),HV$1))+1),\"\")","v":""},{"$f":"IFERROR(MID($Z41,FIND(CHAR(160),SUBSTITUTE($Z41,\"{\",CHAR(160),HW$1)),FIND(CHAR(160),SUBSTITUTE($Z41,\"}\",CHAR(160),HW$1))-FIND(CHAR(160),SUBSTITUTE($Z41,\"{\",CHAR(160),HW$1))+1),\"\")","v":""},{"$f":"IFERROR(MID($Z41,FIND(CHAR(160),SUBSTITUTE($Z41,\"{\",CHAR(160),HX$1)),FIND(CHAR(160),SUBSTITUTE($Z41,\"}\",CHAR(160),HX$1))-FIND(CHAR(160),SUBSTITUTE($Z41,\"{\",CHAR(160),HX$1))+1),\"\")","v":""},{"$f":"IFERROR(MID($Z41,FIND(CHAR(160),SUBSTITUTE($Z41,\"{\",CHAR(160),HY$1)),FIND(CHAR(160),SUBSTITUTE($Z41,\"}\",CHAR(160),HY$1))-FIND(CHAR(160),SUBSTITUTE($Z41,\"{\",CHAR(160),HY$1))+1),\"\")","v":""},{"$f":"IFERROR(MID($Z41,FIND(CHAR(160),SUBSTITUTE($Z41,\"{\",CHAR(160),HZ$1)),FIND(CHAR(160),SUBSTITUTE($Z41,\"}\",CHAR(160),HZ$1))-FIND(CHAR(160),SUBSTITUTE($Z41,\"{\",CHAR(160),HZ$1))+1),\"\")","v":""},{"$f":"IFERROR(MID($Z41,FIND(CHAR(160),SUBSTITUTE($Z41,\"{\",CHAR(160),IA$1)),FIND(CHAR(160),SUBSTITUTE($Z41,\"}\",CHAR(160),IA$1))-FIND(CHAR(160),SUBSTITUTE($Z41,\"{\",CHAR(160),IA$1))+1),\"\")","v":""},{"$f":"IFERROR(MID($Z41,FIND(CHAR(160),SUBSTITUTE($Z41,\"{\",CHAR(160),IB$1)),FIND(CHAR(160),SUBSTITUTE($Z41,\"}\",CHAR(160),IB$1))-FIND(CHAR(160),SUBSTITUTE($Z41,\"{\",CHAR(160),IB$1))+1),\"\")","v":""},{"$f":"IFERROR(MID($Z41,FIND(CHAR(160),SUBSTITUTE($Z41,\"{\",CHAR(160),IC$1)),FIND(CHAR(160),SUBSTITUTE($Z41,\"}\",CHAR(160),IC$1))-FIND(CHAR(160),SUBSTITUTE($Z41,\"{\",CHAR(160),IC$1))+1),\"\")","v":""},{"$f":"IFERROR(MID($Z41,FIND(CHAR(160),SUBSTITUTE($Z41,\"{\",CHAR(160),ID$1)),FIND(CHAR(160),SUBSTITUTE($Z41,\"}\",CHAR(160),ID$1))-FIND(CHAR(160),SUBSTITUTE($Z41,\"{\",CHAR(160),ID$1))+1),\"\")","v":""},{"$f":"IFERROR(MID($AA41,FIND(CHAR(160),SUBSTITUTE($AA41,\"{\",CHAR(160),IE$1)),FIND(CHAR(160),SUBSTITUTE($AA41,\"}\",CHAR(160),IE$1))-FIND(CHAR(160),SUBSTITUTE($AA41,\"{\",CHAR(160),IE$1))+1),\"\")","v":""},{"$f":"IFERROR(MID($AA41,FIND(CHAR(160),SUBSTITUTE($AA41,\"{\",CHAR(160),IF$1)),FIND(CHAR(160),SUBSTITUTE($AA41,\"}\",CHAR(160),IF$1))-FIND(CHAR(160),SUBSTITUTE($AA41,\"{\",CHAR(160),IF$1))+1),\"\")","v":""},{"$f":"IFERROR(MID($AA41,FIND(CHAR(160),SUBSTITUTE($AA41,\"{\",CHAR(160),IG$1)),FIND(CHAR(160),SUBSTITUTE($AA41,\"}\",CHAR(160),IG$1))-FIND(CHAR(160),SUBSTITUTE($AA41,\"{\",CHAR(160),IG$1))+1),\"\")","v":""},{"$f":"IFERROR(MID($AA41,FIND(CHAR(160),SUBSTITUTE($AA41,\"{\",CHAR(160),IH$1)),FIND(CHAR(160),SUBSTITUTE($AA41,\"}\",CHAR(160),IH$1))-FIND(CHAR(160),SUBSTITUTE($AA41,\"{\",CHAR(160),IH$1))+1),\"\")","v":""},{"$f":"IFERROR(MID($AA41,FIND(CHAR(160),SUBSTITUTE($AA41,\"{\",CHAR(160),II$1)),FIND(CHAR(160),SUBSTITUTE($AA41,\"}\",CHAR(160),II$1))-FIND(CHAR(160),SUBSTITUTE($AA41,\"{\",CHAR(160),II$1))+1),\"\")","v":""},{"$f":"IFERROR(MID($AA41,FIND(CHAR(160),SUBSTITUTE($AA41,\"{\",CHAR(160),IJ$1)),FIND(CHAR(160),SUBSTITUTE($AA41,\"}\",CHAR(160),IJ$1))-FIND(CHAR(160),SUBSTITUTE($AA41,\"{\",CHAR(160),IJ$1))+1),\"\")","v":""},{"$f":"IFERROR(MID($AA41,FIND(CHAR(160),SUBSTITUTE($AA41,\"{\",CHAR(160),IK$1)),FIND(CHAR(160),SUBSTITUTE($AA41,\"}\",CHAR(160),IK$1))-FIND(CHAR(160),SUBSTITUTE($AA41,\"{\",CHAR(160),IK$1))+1),\"\")","v":""},{"$f":"IFERROR(MID($AA41,FIND(CHAR(160),SUBSTITUTE($AA41,\"{\",CHAR(160),IL$1)),FIND(CHAR(160),SUBSTITUTE($AA41,\"}\",CHAR(160),IL$1))-FIND(CHAR(160),SUBSTITUTE($AA41,\"{\",CHAR(160),IL$1))+1),\"\")","v":""},{"$f":"IFERROR(MID($AA41,FIND(CHAR(160),SUBSTITUTE($AA41,\"{\",CHAR(160),IM$1)),FIND(CHAR(160),SUBSTITUTE($AA41,\"}\",CHAR(160),IM$1))-FIND(CHAR(160),SUBSTITUTE($AA41,\"{\",CHAR(160),IM$1))+1),\"\")","v":""},{"$f":"IFERROR(MID($AA41,FIND(CHAR(160),SUBSTITUTE($AA41,\"{\",CHAR(160),IN$1)),FIND(CHAR(160),SUBSTITUTE($AA41,\"}\",CHAR(160),IN$1))-FIND(CHAR(160),SUBSTITUTE($AA41,\"{\",CHAR(160),IN$1))+1),\"\")","v":""},{"$f":"IFERROR(MID($AB41,FIND(CHAR(160),SUBSTITUTE($AB41,\"{\",CHAR(160),IO$1)),FIND(CHAR(160),SUBSTITUTE($AB41,\"}\",CHAR(160),IO$1))-FIND(CHAR(160),SUBSTITUTE($AB41,\"{\",CHAR(160),IO$1))+1),\"\")","v":""},{"$f":"IFERROR(MID($AB41,FIND(CHAR(160),SUBSTITUTE($AB41,\"{\",CHAR(160),IP$1)),FIND(CHAR(160),SUBSTITUTE($AB41,\"}\",CHAR(160),IP$1))-FIND(CHAR(160),SUBSTITUTE($AB41,\"{\",CHAR(160),IP$1))+1),\"\")","v":""},{"$f":"IFERROR(MID($AB41,FIND(CHAR(160),SUBSTITUTE($AB41,\"{\",CHAR(160),IQ$1)),FIND(CHAR(160),SUBSTITUTE($AB41,\"}\",CHAR(160),IQ$1))-FIND(CHAR(160),SUBSTITUTE($AB41,\"{\",CHAR(160),IQ$1))+1),\"\")","v":""},{"$f":"IFERROR(MID($AB41,FIND(CHAR(160),SUBSTITUTE($AB41,\"{\",CHAR(160),IR$1)),FIND(CHAR(160),SUBSTITUTE($AB41,\"}\",CHAR(160),IR$1))-FIND(CHAR(160),SUBSTITUTE($AB41,\"{\",CHAR(160),IR$1))+1),\"\")","v":""},{"$f":"IFERROR(MID($AB41,FIND(CHAR(160),SUBSTITUTE($AB41,\"{\",CHAR(160),IS$1)),FIND(CHAR(160),SUBSTITUTE($AB41,\"}\",CHAR(160),IS$1))-FIND(CHAR(160),SUBSTITUTE($AB41,\"{\",CHAR(160),IS$1))+1),\"\")","v":""},{"$f":"IFERROR(MID($AB41,FIND(CHAR(160),SUBSTITUTE($AB41,\"{\",CHAR(160),IT$1)),FIND(CHAR(160),SUBSTITUTE($AB41,\"}\",CHAR(160),IT$1))-FIND(CHAR(160),SUBSTITUTE($AB41,\"{\",CHAR(160),IT$1))+1),\"\")","v":""},{"$f":"IFERROR(MID($AB41,FIND(CHAR(160),SUBSTITUTE($AB41,\"{\",CHAR(160),IU$1)),FIND(CHAR(160),SUBSTITUTE($AB41,\"}\",CHAR(160),IU$1))-FIND(CHAR(160),SUBSTITUTE($AB41,\"{\",CHAR(160),IU$1))+1),\"\")","v":""},{"$f":"IFERROR(MID($AB41,FIND(CHAR(160),SUBSTITUTE($AB41,\"{\",CHAR(160),IV$1)),FIND(CHAR(160),SUBSTITUTE($AB41,\"}\",CHAR(160),IV$1))-FIND(CHAR(160),SUBSTITUTE($AB41,\"{\",CHAR(160),IV$1))+1),\"\")","v":""},{"$f":"IFERROR(MID($AB41,FIND(CHAR(160),SUBSTITUTE($AB41,\"{\",CHAR(160),IW$1)),FIND(CHAR(160),SUBSTITUTE($AB41,\"}\",CHAR(160),IW$1))-FIND(CHAR(160),SUBSTITUTE($AB41,\"{\",CHAR(160),IW$1))+1),\"\")","v":""},{"$f":"IFERROR(MID($AB41,FIND(CHAR(160),SUBSTITUTE($AB41,\"{\",CHAR(160),IX$1)),FIND(CHAR(160),SUBSTITUTE($AB41,\"}\",CHAR(160),IX$1))-FIND(CHAR(160),SUBSTITUTE($AB41,\"{\",CHAR(160),IX$1))+1),\"\")","v":""},null,{"$f":"10-COUNTIF(DU41:ED41,\"\")","v":2}]
["C&I Agricultural Solutions","POTATO: Adjustable Speed Drive - 20 HP Ventilation Fan Motor","AASD - ASD20","2021-07-01","2022-06-30","Per Measure",2725,0,"Per Measure",2000,0,"2016-07-01","2022-06-30","Calculated","{Measure:Quantity} * {Fan HP} * 2540",1E-4,null,"{Measure:Quantity} * {Fan HP} * 0.71",null,null,"{Measure:Quantity} * {Fan HP} * 0.71 * {Factor:WinterCF}","{Measure:Quantity} * {Fan HP} * 0.71 * {Factor:SummerCF}",null,null,null,null,null,null,"2020-04-01","2022-06-30",15,0.73699999999999999,0,0.66700000000000004,0.33300000000000002,0,0,1,1.1220000000000001,1,0.52,1.6E-2,null,{"$f":"DU42","v":"{Measure:Quantity}"},1,{"$f":"DV42","v":"{Fan HP}"},20,{"$f":"DW42","v":""},null,{"$f":"DX42","v":""},null,{"$f":"DY42","v":""},null,{"$f":"DZ42","v":""},null,{"$f":"EA42","v":""},null,{"$f":"EB42","v":""},null,{"$f":"EC42","v":""},null,{"$f":"ED42","v":""},null,{"$f":"AS42 * AU42 * 2540","v":50800},{"$f":"0.0001","v":1E-4},0,{"$f":"AS42 * AU42 * 0.71","v":14.2},0,0,{"$f":"AS42 * AU42 * 0.71 * AF42","v":10.465399999999999},{"$f":"AS42 * AU42 * 0.71 * AG42","v":0},0,0,0,0,0,0,null,"Res","Default DR",{"$f":"Benefits(BL42,BR42,BS42,BT42,BU42,BV42,BW42,BX42,BY42,BZ42,AE42,AH42,AI42,AJ42,AK42,AL42,AM42,AN42,AO42,AP42,CA42,CB42)","v":79840.173141461142},39408.883336243882,0,0,0,0,0,0,0,{"$f":"SUMPRODUCT(CC42:CK42,--(CC42:CK42>0))","v":119249.05647770502},{"$f":"-SUMPRODUCT(CC42:CK42,--(CC42:CK42<0))","v":0},null,{"$f":"2725","v":2725},null,null,{"$f":"CM42+CO42","v":2725},{"$f":"IF(NetOrGross=\"Net\",(1-AO42+AP42),1)","v":1},{"$f":"(SUMPRODUCT(CC42:CJ42,--(CC42:CJ42>0))+CN42)*CS42/((-SUMPRODUCT(CC42:CJ42,--(CC42:CJ42<0))+MAX(CO42,CV42)+CP42+CQ42)*CS42+IF(FRIncentives=\"Yes\",CV42*(1-CS42),0))","v":43.7611216431945},1,{"$f":"2000","v":2000},null,"Electric","y",null,{"$f":"IF(F42=\"Manual Entry\",\"Manual\",IF(G42=\"\",0,\"X=\"&SUBSTITUTE(SUBSTITUTE(SUBSTITUTE(SUBSTITUTE(SUBSTITUTE(SUBSTITUTE(SUBSTITUTE(SUBSTITUTE(SUBSTITUTE(SUBSTITUTE(SUBSTITUTE(SUBSTITUTE(G42,$ED42,$ED$2&ROW($ED42)),$EC42,$EC$2&ROW($EC42)),$EB42,$EB$2&ROW($EB42)),$EA42,$EA$2&ROW($EA42)),$DZ42,$DZ$2&ROW($DZ42)),$DY42,$DY$2&ROW($DY42)),$DX42,$DX$2&ROW($DX42)),$DW42,$DW$2&ROW($DW42)),$DV42,$DV$2&ROW($DV42)),$DU42,$DU$2&ROW($DU42)),$DT42,$DT$2&ROW($DT42)),$DS42,$DS$2&ROW($DS42))))","v":"X=2725"},{"$f":"IF(I42=\"Manual Entry\",\"Manual\",IF(J42=\"\",0,\"X=\"&SUBSTITUTE(SUBSTITUTE(SUBSTITUTE(SUBSTITUTE(SUBSTITUTE(SUBSTITUTE(SUBSTITUTE(SUBSTITUTE(SUBSTITUTE(SUBSTITUTE(SUBSTITUTE(SUBSTITUTE(J42,$ED42,$ED$2&ROW($ED42)),$EC42,$EC$2&ROW($EC42)),$EB42,$EB$2&ROW($EB42)),$EA42,$EA$2&ROW($EA42)),$DZ42,$DZ$2&ROW($DZ42)),$DY42,$DY$2&ROW($DY42)),$DX42,$DX$2&ROW($DX42)),$DW42,$DW$2&ROW($DW42)),$DV42,$DV$2&ROW($DV42)),$DU42,$DU$2&ROW($DU42)),$DT42,$DT$2&ROW($DT42)),$DS42,$DS$2&ROW($DS42))))","v":"X=2000"},{"$f":"IF(O42=\"\",0,\"X=\"&SUBSTITUTE(SUBSTITUTE(SUBSTITUTE(SUBSTITUTE(SUBSTITUTE(SUBSTITUTE(SUBSTITUTE(SUBSTITUTE(SUBSTITUTE(SUBSTITUTE(SUBSTITUTE(SUBSTITUTE(O42,$ED42,$ED$2&ROW($ED42)),$EC42,$EC$2&ROW($EC42)),$EB42,$EB$2&ROW($EB42)),$EA42,$EA$2&ROW($EA42)),$DZ42,$DZ$2&ROW($DZ42)),$DY42,$DY$2&ROW($DY42)),$DX42,$DX$2&ROW($DX42)),$DW42,$DW$2&ROW($DW42)),$DV42,$DV$2&ROW($DV42)),$DU42,$DU$2&ROW($DU42)),$DT42,$DT$2&ROW($DT42)),$DS42,$DS$2&ROW($DS42)))","v":"X=AS42 * AU42 * 2540"},{"$f":"IF(P42=\"\",0,\"X=\"&SUBSTITUTE(SUBSTITUTE(SUBSTITUTE(SUBSTITUTE(SUBSTITUTE(SUBSTITUTE(SUBSTITUTE(SUBSTITUTE(SUBSTITUTE(SUBSTITUTE(SUBSTITUTE(SUBSTITUTE(P42,$ED42,$ED$2&ROW($ED42)),$EC42,$EC$2&ROW($EC42)),$EB42,$EB$2&ROW($EB42)),$EA42,$EA$2&ROW($EA42)),$DZ42,$DZ$2&ROW($DZ42)),$DY42,$DY$2&ROW($DY42)),$DX42,$DX$2&ROW($DX42)),$DW42,$DW$2&ROW($DW42)),$DV42,$DV$2&ROW($DV42)),$DU42,$DU$2&ROW($DU42)),$DT42,$DT$2&ROW($DT42)),$DS42,$DS$2&ROW($DS42)))","v":"X=0.0001"},{"$f":"IF(Q42=\"\",0,\"X=\"&SUBSTITUTE(SUBSTITUTE(SUBSTITUTE(SUBSTITUTE(SUBSTITUTE(SUBSTITUTE(SUBSTITUTE(SUBSTITUTE(SUBSTITUTE(SUBSTITUTE(SUBSTITUTE(SUBSTITUTE(Q42,$ED42,$ED$2&ROW($ED42)),$EC42,$EC$2&ROW($EC42)),$EB42,$EB$2&ROW($EB42)),$EA42,$EA$2&ROW($EA42)),$DZ42,$DZ$2&ROW($DZ42)),$DY42,$DY$2&ROW($DY42)),$DX42,$DX$2&ROW($DX42)),$DW42,$DW$2&ROW($DW42)),$DV42,$DV$2&ROW($DV42)),$DU42,$DU$2&ROW($DU42)),$DT42,$DT$2&ROW($DT42)),$DS42,$DS$2&ROW($DS42)))","v":0},{"$f":"IF(R42=\"\",0,\"X=\"&SUBSTITUTE(SUBSTITUTE(SUBSTITUTE(SUBSTITUTE(SUBSTITUTE(SUBSTITUTE(SUBSTITUTE(SUBSTITUTE(SUBSTITUTE(SUBSTITUTE(SUBSTITUTE(SUBSTITUTE(R42,$ED42,$ED$2&ROW($ED42)),$EC42,$EC$2&ROW($EC42)),$EB42,$EB$2&ROW($EB42)),$EA42,$EA$2&ROW($EA42)),$DZ42,$DZ$2&ROW($DZ42)),$DY42,$DY$2&ROW($DY42)),$DX42,$DX$2&ROW($DX42)),$DW42,$DW$2&ROW($DW42)),$DV42,$DV$2&ROW($DV42)),$DU42,$DU$2&ROW($DU42)),$DT42,$DT$2&ROW($DT42)),$DS42,$DS$2&ROW($DS42)))","v":"X=AS42 * AU42 * 0.71"},{"$f":"IF(S42=\"\",0,\"X=\"&SUBSTITUTE(SUBSTITUTE(SUBSTITUTE(SUBSTITUTE(SUBSTITUTE(SUBSTITUTE(SUBSTITUTE(SUBSTITUTE(SUBSTITUTE(SUBSTITUTE(SUBSTITUTE(SUBSTITUTE(S42,$ED42,$ED$2&ROW($ED42)),$EC42,$EC$2&ROW($EC42)),$EB42,$EB$2&ROW($EB42)),$EA42,$EA$2&ROW($EA42)),$DZ42,$DZ$2&ROW($DZ42)),$DY42,$DY$2&ROW($DY42)),$DX42,$DX$2&ROW($DX42)),$DW42,$DW$2&ROW($DW42)),$DV42,$DV$2&ROW($DV42)),$DU42,$DU$2&ROW($DU42)),$DT42,$DT$2&ROW($DT42)),$DS42,$DS$2&ROW($DS42)))","v":0},{"$f":"IF(T42=\"\",0,\"X=\"&SUBSTITUTE(SUBSTITUTE(SUBSTITUTE(SUBSTITUTE(SUBSTITUTE(SUBSTITUTE(SUBSTITUTE(SUBSTITUTE(SUBSTITUTE(SUBSTITUTE(SUBSTITUTE(SUBSTITUTE(T42,$ED42,$ED$2&ROW($ED42)),$EC42,$EC$2&ROW($EC42)),$EB42,$EB$2&ROW($EB42)),$EA42,$EA$2&ROW($EA42)),$DZ42,$DZ$2&ROW($DZ42)),$DY42,$DY$2&ROW($DY42)),$DX42,$DX$2&ROW($DX42)),$DW42,$DW$2&ROW($DW42)),$DV42,$DV$2&ROW($DV42)),$DU42,$DU$2&ROW($DU42)),$DT42,$DT$2&ROW($DT42)),$DS42,$DS$2&ROW($DS42)))","v":0},{"$f":"IF(U42=\"\",0,\"X=\"&SUBSTITUTE(SUBSTITUTE(SUBSTITUTE(SUBSTITUTE(SUBSTITUTE(SUBSTITUTE(SUBSTITUTE(SUBSTITUTE(SUBSTITUTE(SUBSTITUTE(SUBSTITUTE(SUBSTITUTE(U42,$ED42,$ED$2&ROW($ED42)),$EC42,$EC$2&ROW($EC42)),$EB42,$EB$2&ROW($EB42)),$EA42,$EA$2&ROW($EA42)),$DZ42,$DZ$2&ROW($DZ42)),$DY42,$DY$2&ROW($DY42)),$DX42,$DX$2&ROW($DX42)),$DW42,$DW$2&ROW($DW42)),$DV42,$DV$2&ROW($DV42)),$DU42,$DU$2&ROW($DU42)),$DT42,$DT$2&ROW($DT42)),$DS42,$DS$2&ROW($DS42)))","v":"X=AS42 * AU42 * 0.71 * AF42"},{"$f":"IF(V42=\"\",0,\"X=\"&SUBSTITUTE(SUBSTITUTE(SUBSTITUTE(SUBSTITUTE(SUBSTITUTE(SUBSTITUTE(SUBSTITUTE(SUBSTITUTE(SUBSTITUTE(SUBSTITUTE(SUBSTITUTE(SUBSTITUTE(V42,$ED42,$ED$2&ROW($ED42)),$EC42,$EC$2&ROW($EC42)),$EB42,$EB$2&ROW($EB42)),$EA42,$EA$2&ROW($EA42)),$DZ42,$DZ$2&ROW($DZ42)),$DY42,$DY$2&ROW($DY42)),$DX42,$DX$2&ROW($DX42)),$DW42,$DW$2&ROW($DW42)),$DV42,$DV$2&ROW($DV42)),$DU42,$DU$2&ROW($DU42)),$DT42,$DT$2&ROW($DT42)),$DS42,$DS$2&ROW($DS42)))","v":"X=AS42 * AU42 * 0.71 * AG42"},{"$f":"IF(W42=\"\",0,\"X=\"&SUBSTITUTE(SUBSTITUTE(SUBSTITUTE(SUBSTITUTE(SUBSTITUTE(SUBSTITUTE(SUBSTITUTE(SUBSTITUTE(SUBSTITUTE(SUBSTITUTE(SUBSTITUTE(SUBSTITUTE(W42,$ED42,$ED$2&ROW($ED42)),$EC42,$EC$2&ROW($EC42)),$EB42,$EB$2&ROW($EB42)),$EA42,$EA$2&ROW($EA42)),$DZ42,$DZ$2&ROW($DZ42)),$DY42,$DY$2&ROW($DY42)),$DX42,$DX$2&ROW($DX42)),$DW42,$DW$2&ROW($DW42)),$DV42,$DV$2&ROW($DV42)),$DU42,$DU$2&ROW($DU42)),$DT42,$DT$2&ROW($DT42)),$DS42,$DS$2&ROW($DS42)))","v":0},{"$f":"IF(X42=\"\",0,\"X=\"&SUBSTITUTE(SUBSTITUTE(SUBSTITUTE(SUBSTITUTE(SUBSTITUTE(SUBSTITUTE(SUBSTITUTE(SUBSTITUTE(SUBSTITUTE(SUBSTITUTE(SUBSTITUTE(SUBSTITUTE(X42,$ED42,$ED$2&ROW($ED42)),$EC42,$EC$2&ROW($EC42)),$EB42,$EB$2&ROW($EB42)),$EA42,$EA$2&ROW($EA42)),$DZ42,$DZ$2&ROW($DZ42)),$DY42,$DY$2&ROW($DY42)),$DX42,$DX$2&ROW($DX42)),$DW42,$DW$2&ROW($DW42)),$DV42,$DV$2&ROW($DV42)),$DU42,$DU$2&ROW($DU42)),$DT42,$DT$2&ROW($DT42)),$DS42,$DS$2&ROW($DS42)))","v":0},{"$f":"IF(Y42=\"\",0,\"X=\"&SUBSTITUTE(SUBSTITUTE(SUBSTITUTE(SUBSTITUTE(SUBSTITUTE(SUBSTITUTE(SUBSTITUTE(SUBSTITUTE(SUBSTITUTE(SUBSTITUTE(SUBSTITUTE(SUBSTITUTE(Y42,$ED42,$ED$2&ROW($ED42)),$EC42,$EC$2&ROW($EC42)),$EB42,$EB$2&ROW($EB42)),$EA42,$EA$2&ROW($EA42)),$DZ42,$DZ$2&ROW($DZ42)),$DY42,$DY$2&ROW($DY42)),$DX42,$DX$2&ROW($DX42)),$DW42,$DW$2&ROW($DW42)),$DV42,$DV$2&ROW($DV42)),$DU42,$DU$2&ROW($DU42)),$DT42,$DT$2&ROW($DT42)),$DS42,$DS$2&ROW($DS42)))","v":0},{"$f":"IF(Z42=\"\",0,\"X=\"&SUBSTITUTE(SUBSTITUTE(SUBSTITUTE(SUBSTITUTE(SUBSTITUTE(SUBSTITUTE(SUBSTITUTE(SUBSTITUTE(SUBSTITUTE(SUBSTITUTE(SUBSTITUTE(SUBSTITUTE(Z42,$ED42,$ED$2&ROW($ED42)),$EC42,$EC$2&ROW($EC42)),$EB42,$EB$2&ROW($EB42)),$EA42,$EA$2&ROW($EA42)),$DZ42,$DZ$2&ROW($DZ42)),$DY42,$DY$2&ROW($DY42)),$DX42,$DX$2&ROW($DX42)),$DW42,$DW$2&ROW($DW42)),$DV42,$DV$2&ROW($DV42)),$DU42,$DU$2&ROW($DU42)),$DT42,$DT$2&ROW($DT42)),$DS42,$DS$2&ROW($DS42)))","v":0},{"$f":"IF(AA42=\"\",0,\"X=\"&SUBSTITUTE(SUBSTITUTE(SUBSTITUTE(SUBSTITUTE(SUBSTITUTE(SUBSTITUTE(SUBSTITUTE(SUBSTITUTE(SUBSTITUTE(SUBSTITUTE(SUBSTITUTE(SUBSTITUTE(AA42,$ED42,$ED$2&ROW($ED42)),$EC42,$EC$2&ROW($EC42)),$EB42,$EB$2&ROW($EB42)),$EA42,$EA$2&ROW($EA42)),$DZ42,$DZ$2&ROW($DZ42)),$DY42,$DY$2&ROW($DY42)),$DX42,$DX$2&ROW($DX42)),$DW42,$DW$2&ROW($DW42)),$DV42,$DV$2&ROW($DV42)),$DU42,$DU$2&ROW($DU42)),$DT42,$DT$2&ROW($DT42)),$DS42,$DS$2&ROW($DS42)))","v":0},{"$f":"IF(AB42=\"\",0,\"X=\"&SUBSTITUTE(SUBSTITUTE(SUBSTITUTE(SUBSTITUTE(SUBSTITUTE(SUBSTITUTE(SUBSTITUTE(SUBSTITUTE(SUBSTITUTE(SUBSTITUTE(SUBSTITUTE(SUBSTITUTE(AB42,$ED42,$ED$2&ROW($ED42)),$EC42,$EC$2&ROW($EC42)),$EB42,$EB$2&ROW($EB42)),$EA42,$EA$2&ROW($EA42)),$DZ42,$DZ$2&ROW($DZ42)),$DY42,$DY$2&ROW($DY42)),$DX42,$DX$2&ROW($DX42)),$DW42,$DW$2&ROW($DW42)),$DV42,$DV$2&ROW($DV42)),$DU42,$DU$2&ROW($DU42)),$DT42,$DT$2&ROW($DT42)),$DS42,$DS$2&ROW($DS42)))","v":0},null,null,"{Factor:WinterCF}","{Factor:SummerCF}",{"$f":"IFERROR(INDEX($EG42:$IV42,MATCH(0,COUNTIF($DR42:DT42,$EG42:$IV42),0)),\"\")","v":"{Measure:Quantity}"},{"$f":"IFERROR(INDEX($EG42:$IV42,MATCH(0,COUNTIF($DR42:DU42,$EG42:$IV42),0)),\"\")","v":"{Fan HP}"},{"$f":"IFERROR(INDEX($EG42:$IV42,MATCH(0,COUNTIF($DR42:DV42,$EG42:$IV42),0)),\"\")","v":""},{"$f":"IFERROR(INDEX($EG42:$IV42,MATCH(0,COUNTIF($DR42:DW42,$EG42:$IV42),0)),\"\")","v":""},{"$f":"IFERROR(INDEX($EG42:$IV42,MATCH(0,COUNTIF($DR42:DX42,$EG42:$IV42),0)),\"\")","v":""},{"$f":"IFERROR(INDEX($EG42:$IV42,MATCH(0,COUNTIF($DR42:DY42,$EG42:$IV42),0)),\"\")","v":""},{"$f":"IFERROR(INDEX($EG42:$IV42,MATCH(0,COUNTIF($DR42:DZ42,$EG42:$IV42),0)),\"\")","v":""},{"$f":"IFERROR(INDEX($EG42:$IV42,MATCH(0,COUNTIF($DR42:EA42,$EG42:$IV42),0)),\"\")","v":""},{"$f":"IFERROR(INDEX($EG42:$IV42,MATCH(0,COUNTIF($DR42:EB42,$EG42:$IV42),0)),\"\")","v":""},{"$f":"IFERROR(INDEX($EG42:$IV42,MATCH(0,COUNTIF($DR42:EC42,$EG42:$IV42),0)),\"\")","v":""},null,null,{"$f":"IFERROR(MID($G42,FIND(CHAR(160),SUBSTITUTE($G42,\"{\",CHAR(160),EG$1)),FIND(CHAR(160),SUBSTITUTE($G42,\"}\",CHAR(160),EG$1))-FIND(CHAR(160),SUBSTITUTE($G42,\"{\",CHAR(160),EG$1))+1),\"\")","v":""},{"$f":"IFERROR(MID($G42,FIND(CHAR(160),SUBSTITUTE($G42,\"{\",CHAR(160),EH$1)),FIND(CHAR(160),SUBSTITUTE($G42,\"}\",CHAR(160),EH$1))-FIND(CHAR(160),SUBSTITUTE($G42,\"{\",CHAR(160),EH$1))+1),\"\")","v":""},{"$f":"IFERROR(MID($G42,FIND(CHAR(160),SUBSTITUTE($G42,\"{\",CHAR(160),EI$1)),FIND(CHAR(160),SUBSTITUTE($G42,\"}\",CHAR(160),EI$1))-FIND(CHAR(160),SUBSTITUTE($G42,\"{\",CHAR(160),EI$1))+1),\"\")","v":""},{"$f":"IFERROR(MID($G42,FIND(CHAR(160),SUBSTITUTE($G42,\"{\",CHAR(160),EJ$1)),FIND(CHAR(160),SUBSTITUTE($G42,\"}\",CHAR(160),EJ$1))-FIND(CHAR(160),SUBSTITUTE($G42,\"{\",CHAR(160),EJ$1))+1),\"\")","v":""},{"$f":"IFERROR(MID($G42,FIND(CHAR(160),SUBSTITUTE($G42,\"{\",CHAR(160),EK$1)),FIND(CHAR(160),SUBSTITUTE($G42,\"}\",CHAR(160),EK$1))-FIND(CHAR(160),SUBSTITUTE($G42,\"{\",CHAR(160),EK$1))+1),\"\")","v":""},{"$f":"IFERROR(MID($G42,FIND(CHAR(160),SUBSTITUTE($G42,\"{\",CHAR(160),EL$1)),FIND(CHAR(160),SUBSTITUTE($G42,\"}\",CHAR(160),EL$1))-FIND(CHAR(160),SUBSTITUTE($G42,\"{\",CHAR(160),EL$1))+1),\"\")","v":""},{"$f":"IFERROR(MID($G42,FIND(CHAR(160),SUBSTITUTE($G42,\"{\",CHAR(160),EM$1)),FIND(CHAR(160),SUBSTITUTE($G42,\"}\",CHAR(160),EM$1))-FIND(CHAR(160),SUBSTITUTE($G42,\"{\",CHAR(160),EM$1))+1),\"\")","v":""},{"$f":"IFERROR(MID($G42,FIND(CHAR(160),SUBSTITUTE($G42,\"{\",CHAR(160),EN$1)),FIND(CHAR(160),SUBSTITUTE($G42,\"}\",CHAR(160),EN$1))-FIND(CHAR(160),SUBSTITUTE($G42,\"{\",CHAR(160),EN$1))+1),\"\")","v":""},{"$f":"IFERROR(MID($G42,FIND(CHAR(160),SUBSTITUTE($G42,\"{\",CHAR(160),EO$1)),FIND(CHAR(160),SUBSTITUTE($G42,\"}\",CHAR(160),EO$1))-FIND(CHAR(160),SUBSTITUTE($G42,\"{\",CHAR(160),EO$1))+1),\"\")","v":""},{"$f":"IFERROR(MID($G42,FIND(CHAR(160),SUBSTITUTE($G42,\"{\",CHAR(160),EP$1)),FIND(CHAR(160),SUBSTITUTE($G42,\"}\",CHAR(160),EP$1))-FIND(CHAR(160),SUBSTITUTE($G42,\"{\",CHAR(160),EP$1))+1),\"\")","v":""},{"$f":"IFERROR(MID($J42,FIND(CHAR(160),SUBSTITUTE($J42,\"{\",CHAR(160),EQ$1)),FIND(CHAR(160),SUBSTITUTE($J42,\"}\",CHAR(160),EQ$1))-FIND(CHAR(160),SUBSTITUTE($J42,\"{\",CHAR(160),EQ$1))+1),\"\")","v":""},{"$f":"IFERROR(MID($J42,FIND(CHAR(160),SUBSTITUTE($J42,\"{\",CHAR(160),ER$1)),FIND(CHAR(160),SUBSTITUTE($J42,\"}\",CHAR(160),ER$1))-FIND(CHAR(160),SUBSTITUTE($J42,\"{\",CHAR(160),ER$1))+1),\"\")","v":""},{"$f":"IFERROR(MID($J42,FIND(CHAR(160),SUBSTITUTE($J42,\"{\",CHAR(160),ES$1)),FIND(CHAR(160),SUBSTITUTE($J42,\"}\",CHAR(160),ES$1))-FIND(CHAR(160),SUBSTITUTE($J42,\"{\",CHAR(160),ES$1))+1),\"\")","v":""},{"$f":"IFERROR(MID($J42,FIND(CHAR(160),SUBSTITUTE($J42,\"{\",CHAR(160),ET$1)),FIND(CHAR(160),SUBSTITUTE($J42,\"}\",CHAR(160),ET$1))-FIND(CHAR(160),SUBSTITUTE($J42,\"{\",CHAR(160),ET$1))+1),\"\")","v":""},{"$f":"IFERROR(MID($J42,FIND(CHAR(160),SUBSTITUTE($J42,\"{\",CHAR(160),EU$1)),FIND(CHAR(160),SUBSTITUTE($J42,\"}\",CHAR(160),EU$1))-FIND(CHAR(160),SUBSTITUTE($J42,\"{\",CHAR(160),EU$1))+1),\"\")","v":""},{"$f":"IFERROR(MID($J42,FIND(CHAR(160),SUBSTITUTE($J42,\"{\",CHAR(160),EV$1)),FIND(CHAR(160),SUBSTITUTE($J42,\"}\",CHAR(160),EV$1))-FIND(CHAR(160),SUBSTITUTE($J42,\"{\",CHAR(160),EV$1))+1),\"\")","v":""},{"$f":"IFERROR(MID($J42,FIND(CHAR(160),SUBSTITUTE($J42,\"{\",CHAR(160),EW$1)),FIND(CHAR(160),SUBSTITUTE($J42,\"}\",CHAR(160),EW$1))-FIND(CHAR(160),SUBSTITUTE($J42,\"{\",CHAR(160),EW$1))+1),\"\")","v":""},{"$f":"IFERROR(MID($J42,FIND(CHAR(160),SUBSTITUTE($J42,\"{\",CHAR(160),EX$1)),FIND(CHAR(160),SUBSTITUTE($J42,\"}\",CHAR(160),EX$1))-FIND(CHAR(160),SUBSTITUTE($J42,\"{\",CHAR(160),EX$1))+1),\"\")","v":""},{"$f":"IFERROR(MID($J42,FIND(CHAR(160),SUBSTITUTE($J42,\"{\",CHAR(160),EY$1)),FIND(CHAR(160),SUBSTITUTE($J42,\"}\",CHAR(160),EY$1))-FIND(CHAR(160),SUBSTITUTE($J42,\"{\",CHAR(160),EY$1))+1),\"\")","v":""},{"$f":"IFERROR(MID($J42,FIND(CHAR(160),SUBSTITUTE($J42,\"{\",CHAR(160),EZ$1)),FIND(CHAR(160),SUBSTITUTE($J42,\"}\",CHAR(160),EZ$1))-FIND(CHAR(160),SUBSTITUTE($J42,\"{\",CHAR(160),EZ$1))+1),\"\")","v":""},{"$f":"IFERROR(MID($J42,FIND(CHAR(160),SUBSTITUTE($J42,\"{\",CHAR(160),FA$1)),FIND(CHAR(160),SUBSTITUTE($J42,\"}\",CHAR(160),FA$1))-FIND(CHAR(160),SUBSTITUTE($J42,\"{\",CHAR(160),FA$1))+1),\"\")","v":""},{"$f":"IFERROR(MID($J42,FIND(CHAR(160),SUBSTITUTE($J42,\"{\",CHAR(160),FB$1)),FIND(CHAR(160),SUBSTITUTE($J42,\"}\",CHAR(160),FB$1))-FIND(CHAR(160),SUBSTITUTE($J42,\"{\",CHAR(160),FB$1))+1),\"\")","v":""},{"$f":"IFERROR(MID($O42,FIND(CHAR(160),SUBSTITUTE($O42,\"{\",CHAR(160),FC$1)),FIND(CHAR(160),SUBSTITUTE($O42,\"}\",CHAR(160),FC$1))-FIND(CHAR(160),SUBSTITUTE($O42,\"{\",CHAR(160),FC$1))+1),\"\")","v":""},{"$f":"IFERROR(MID($O42,FIND(CHAR(160),SUBSTITUTE($O42,\"{\",CHAR(160),FD$1)),FIND(CHAR(160),SUBSTITUTE($O42,\"}\",CHAR(160),FD$1))-FIND(CHAR(160),SUBSTITUTE($O42,\"{\",CHAR(160),FD$1))+1),\"\")","v":""},{"$f":"IFERROR(MID($O42,FIND(CHAR(160),SUBSTITUTE($O42,\"{\",CHAR(160),FE$1)),FIND(CHAR(160),SUBSTITUTE($O42,\"}\",CHAR(160),FE$1))-FIND(CHAR(160),SUBSTITUTE($O42,\"{\",CHAR(160),FE$1))+1),\"\")","v":""},{"$f":"IFERROR(MID($O42,FIND(CHAR(160),SUBSTITUTE($O42,\"{\",CHAR(160),FF$1)),FIND(CHAR(160),SUBSTITUTE($O42,\"}\",CHAR(160),FF$1))-FIND(CHAR(160),SUBSTITUTE($O42,\"{\",CHAR(160),FF$1))+1),\"\")","v":""},{"$f":"IFERROR(MID($O42,FIND(CHAR(160),SUBSTITUTE($O42,\"{\",CHAR(160),FG$1)),FIND(CHAR(160),SUBSTITUTE($O42,\"}\",CHAR(160),FG$1))-FIND(CHAR(160),SUBSTITUTE($O42,\"{\",CHAR(160),FG$1))+1),\"\")","v":""},{"$f":"IFERROR(MID($O42,FIND(CHAR(160),SUBSTITUTE($O42,\"{\",CHAR(160),FH$1)),FIND(CHAR(160),SUBSTITUTE($O42,\"}\",CHAR(160),FH$1))-FIND(CHAR(160),SUBSTITUTE($O42,\"{\",CHAR(160),FH$1))+1),\"\")","v":""},{"$f":"IFERROR(MID($O42,FIND(CHAR(160),SUBSTITUTE($O42,\"{\",CHAR(160),FI$1)),FIND(CHAR(160),SUBSTITUTE($O42,\"}\",CHAR(160),FI$1))-FIND(CHAR(160),SUBSTITUTE($O42,\"{\",CHAR(160),FI$1))+1),\"\")","v":""},{"$f":"IFERROR(MID($O42,FIND(CHAR(160),SUBSTITUTE($O42,\"{\",CHAR(160),FJ$1)),FIND(CHAR(160),SUBSTITUTE($O42,\"}\",CHAR(160),FJ$1))-FIND(CHAR(160),SUBSTITUTE($O42,\"{\",CHAR(160),FJ$1))+1),\"\")","v":""},{"$f":"IFERROR(MID($O42,FIND(CHAR(160),SUBSTITUTE($O42,\"{\",CHAR(160),FK$1)),FIND(CHAR(160),SUBSTITUTE($O42,\"}\",CHAR(160),FK$1))-FIND(CHAR(160),SUBSTITUTE($O42,\"{\",CHAR(160),FK$1))+1),\"\")","v":"{Measure:Quantity}"},{"$f":"IFERROR(MID($O42,FIND(CHAR(160),SUBSTITUTE($O42,\"{\",CHAR(160),FL$1)),FIND(CHAR(160),SUBSTITUTE($O42,\"}\",CHAR(160),FL$1))-FIND(CHAR(160),SUBSTITUTE($O42,\"{\",CHAR(160),FL$1))+1),\"\")","v":"{Fan HP}"},{"$f":"IFERROR(MID($R42,FIND(CHAR(160),SUBSTITUTE($R42,\"{\",CHAR(160),FM$1)),FIND(CHAR(160),SUBSTITUTE($R42,\"}\",CHAR(160),FM$1))-FIND(CHAR(160),SUBSTITUTE($R42,\"{\",CHAR(160),FM$1))+1),\"\")","v":""},{"$f":"IFERROR(MID($R42,FIND(CHAR(160),SUBSTITUTE($R42,\"{\",CHAR(160),FN$1)),FIND(CHAR(160),SUBSTITUTE($R42,\"}\",CHAR(160),FN$1))-FIND(CHAR(160),SUBSTITUTE($R42,\"{\",CHAR(160),FN$1))+1),\"\")","v":""},{"$f":"IFERROR(MID($R42,FIND(CHAR(160),SUBSTITUTE($R42,\"{\",CHAR(160),FO$1)),FIND(CHAR(160),SUBSTITUTE($R42,\"}\",CHAR(160),FO$1))-FIND(CHAR(160),SUBSTITUTE($R42,\"{\",CHAR(160),FO$1))+1),\"\")","v":""},{"$f":"IFERROR(MID($R42,FIND(CHAR(160),SUBSTITUTE($R42,\"{\",CHAR(160),FP$1)),FIND(CHAR(160),SUBSTITUTE($R42,\"}\",CHAR(160),FP$1))-FIND(CHAR(160),SUBSTITUTE($R42,\"{\",CHAR(160),FP$1))+1),\"\")","v":""},{"$f":"IFERROR(MID($R42,FIND(CHAR(160),SUBSTITUTE($R42,\"{\",CHAR(160),FQ$1)),FIND(CHAR(160),SUBSTITUTE($R42,\"}\",CHAR(160),FQ$1))-FIND(CHAR(160),SUBSTITUTE($R42,\"{\",CHAR(160),FQ$1))+1),\"\")","v":""},{"$f":"IFERROR(MID($R42,FIND(CHAR(160),SUBSTITUTE($R42,\"{\",CHAR(160),FR$1)),FIND(CHAR(160),SUBSTITUTE($R42,\"}\",CHAR(160),FR$1))-FIND(CHAR(160),SUBSTITUTE($R42,\"{\",CHAR(160),FR$1))+1),\"\")","v":""},{"$f":"IFERROR(MID($R42,FIND(CHAR(160),SUBSTITUTE($R42,\"{\",CHAR(160),FS$1)),FIND(CHAR(160),SUBSTITUTE($R42,\"}\",CHAR(160),FS$1))-FIND(CHAR(160),SUBSTITUTE($R42,\"{\",CHAR(160),FS$1))+1),\"\")","v":""},{"$f":"IFERROR(MID($R42,FIND(CHAR(160),SUBSTITUTE($R42,\"{\",CHAR(160),FT$1)),FIND(CHAR(160),SUBSTITUTE($R42,\"}\",CHAR(160),FT$1))-FIND(CHAR(160),SUBSTITUTE($R42,\"{\",CHAR(160),FT$1))+1),\"\")","v":""},{"$f":"IFERROR(MID($R42,FIND(CHAR(160),SUBSTITUTE($R42,\"{\",CHAR(160),FU$1)),FIND(CHAR(160),SUBSTITUTE($R42,\"}\",CHAR(160),FU$1))-FIND(CHAR(160),SUBSTITUTE($R42,\"{\",CHAR(160),FU$1))+1),\"\")","v":"{Measure:Quantity}"},{"$f":"IFERROR(MID($R42,FIND(CHAR(160),SUBSTITUTE($R42,\"{\",CHAR(160),FV$1)),FIND(CHAR(160),SUBSTITUTE($R42,\"}\",CHAR(160),FV$1))-FIND(CHAR(160),SUBSTITUTE($R42,\"{\",CHAR(160),FV$1))+1),\"\")","v":"{Fan HP}"},{"$f":"IFERROR(MID($U42,FIND(CHAR(160),SUBSTITUTE($U42,\"{\",CHAR(160),FW$1)),FIND(CHAR(160),SUBSTITUTE($U42,\"}\",CHAR(160),FW$1))-FIND(CHAR(160),SUBSTITUTE($U42,\"{\",CHAR(160),FW$1))+1),\"\")","v":"{Factor:WinterCF}"},{"$f":"IFERROR(MID($U42,FIND(CHAR(160),SUBSTITUTE($U42,\"{\",CHAR(160),FX$1)),FIND(CHAR(160),SUBSTITUTE($U42,\"}\",CHAR(160),FX$1))-FIND(CHAR(160),SUBSTITUTE($U42,\"{\",CHAR(160),FX$1))+1),\"\")","v":""},{"$f":"IFERROR(MID($U42,FIND(CHAR(160),SUBSTITUTE($U42,\"{\",CHAR(160),FY$1)),FIND(CHAR(160),SUBSTITUTE($U42,\"}\",CHAR(160),FY$1))-FIND(CHAR(160),SUBSTITUTE($U42,\"{\",CHAR(160),FY$1))+1),\"\")","v":""},{"$f":"IFERROR(MID($U42,FIND(CHAR(160),SUBSTITUTE($U42,\"{\",CHAR(160),FZ$1)),FIND(CHAR(160),SUBSTITUTE($U42,\"}\",CHAR(160),FZ$1))-FIND(CHAR(160),SUBSTITUTE($U42,\"{\",CHAR(160),FZ$1))+1),\"\")","v":""},{"$f":"IFERROR(MID($U42,FIND(CHAR(160),SUBSTITUTE($U42,\"{\",CHAR(160),GA$1)),FIND(CHAR(160),SUBSTITUTE($U42,\"}\",CHAR(160),GA$1))-FIND(CHAR(160),SUBSTITUTE($U42,\"{\",CHAR(160),GA$1))+1),\"\")","v":""},{"$f":"IFERROR(MID($U42,FIND(CHAR(160),SUBSTITUTE($U42,\"{\",CHAR(160),GB$1)),FIND(CHAR(160),SUBSTITUTE($U42,\"}\",CHAR(160),GB$1))-FIND(CHAR(160),SUBSTITUTE($U42,\"{\",CHAR(160),GB$1))+1),\"\")","v":""},{"$f":"IFERROR(MID($U42,FIND(CHAR(160),SUBSTITUTE($U42,\"{\",CHAR(160),GC$1)),FIND(CHAR(160),SUBSTITUTE($U42,\"}\",CHAR(160),GC$1))-FIND(CHAR(160),SUBSTITUTE($U42,\"{\",CHAR(160),GC$1))+1),\"\")","v":""},{"$f":"IFERROR(MID($U42,FIND(CHAR(160),SUBSTITUTE($U42,\"{\",CHAR(160),GD$1)),FIND(CHAR(160),SUBSTITUTE($U42,\"}\",CHAR(160),GD$1))-FIND(CHAR(160),SUBSTITUTE($U42,\"{\",CHAR(160),GD$1))+1),\"\")","v":""},{"$f":"IFERROR(MID($U42,FIND(CHAR(160),SUBSTITUTE($U42,\"{\",CHAR(160),GE$1)),FIND(CHAR(160),SUBSTITUTE($U42,\"}\",CHAR(160),GE$1))-FIND(CHAR(160),SUBSTITUTE($U42,\"{\",CHAR(160),GE$1))+1),\"\")","v":"{Measure:Quantity}"},{"$f":"IFERROR(MID($U42,FIND(CHAR(160),SUBSTITUTE($U42,\"{\",CHAR(160),GF$1)),FIND(CHAR(160),SUBSTITUTE($U42,\"}\",CHAR(160),GF$1))-FIND(CHAR(160),SUBSTITUTE($U42,\"{\",CHAR(160),GF$1))+1),\"\")","v":"{Fan HP}"},{"$f":"IFERROR(MID($V42,FIND(CHAR(160),SUBSTITUTE($V42,\"{\",CHAR(160),GG$1)),FIND(CHAR(160),SUBSTITUTE($V42,\"}\",CHAR(160),GG$1))-FIND(CHAR(160),SUBSTITUTE($V42,\"{\",CHAR(160),GG$1))+1),\"\")","v":"{Factor:SummerCF}"},{"$f":"IFERROR(MID($V42,FIND(CHAR(160),SUBSTITUTE($V42,\"{\",CHAR(160),GH$1)),FIND(CHAR(160),SUBSTITUTE($V42,\"}\",CHAR(160),GH$1))-FIND(CHAR(160),SUBSTITUTE($V42,\"{\",CHAR(160),GH$1))+1),\"\")","v":""},{"$f":"IFERROR(MID($V42,FIND(CHAR(160),SUBSTITUTE($V42,\"{\",CHAR(160),GI$1)),FIND(CHAR(160),SUBSTITUTE($V42,\"}\",CHAR(160),GI$1))-FIND(CHAR(160),SUBSTITUTE($V42,\"{\",CHAR(160),GI$1))+1),\"\")","v":""},{"$f":"IFERROR(MID($V42,FIND(CHAR(160),SUBSTITUTE($V42,\"{\",CHAR(160),GJ$1)),FIND(CHAR(160),SUBSTITUTE($V42,\"}\",CHAR(160),GJ$1))-FIND(CHAR(160),SUBSTITUTE($V42,\"{\",CHAR(160),GJ$1))+1),\"\")","v":""},{"$f":"IFERROR(MID($V42,FIND(CHAR(160),SUBSTITUTE($V42,\"{\",CHAR(160),GK$1)),FIND(CHAR(160),SUBSTITUTE($V42,\"}\",CHAR(160),GK$1))-FIND(CHAR(160),SUBSTITUTE($V42,\"{\",CHAR(160),GK$1))+1),\"\")","v":""},{"$f":"IFERROR(MID($V42,FIND(CHAR(160),SUBSTITUTE($V42,\"{\",CHAR(160),GL$1)),FIND(CHAR(160),SUBSTITUTE($V42,\"}\",CHAR(160),GL$1))-FIND(CHAR(160),SUBSTITUTE($V42,\"{\",CHAR(160),GL$1))+1),\"\")","v":""},{"$f":"IFERROR(MID($V42,FIND(CHAR(160),SUBSTITUTE($V42,\"{\",CHAR(160),GM$1)),FIND(CHAR(160),SUBSTITUTE($V42,\"}\",CHAR(160),GM$1))-FIND(CHAR(160),SUBSTITUTE($V42,\"{\",CHAR(160),GM$1))+1),\"\")","v":""},{"$f":"IFERROR(MID($V42,FIND(CHAR(160),SUBSTITUTE($V42,\"{\",CHAR(160),GN$1)),FIND(CHAR(160),SUBSTITUTE($V42,\"}\",CHAR(160),GN$1))-FIND(CHAR(160),SUBSTITUTE($V42,\"{\",CHAR(160),GN$1))+1),\"\")","v":""},{"$f":"IFERROR(MID($V42,FIND(CHAR(160),SUBSTITUTE($V42,\"{\",CHAR(160),GO$1)),FIND(CHAR(160),SUBSTITUTE($V42,\"}\",CHAR(160),GO$1))-FIND(CHAR(160),SUBSTITUTE($V42,\"{\",CHAR(160),GO$1))+1),\"\")","v":"{Measure:Quantity}"},{"$f":"IFERROR(MID($V42,FIND(CHAR(160),SUBSTITUTE($V42,\"{\",CHAR(160),GP$1)),FIND(CHAR(160),SUBSTITUTE($V42,\"}\",CHAR(160),GP$1))-FIND(CHAR(160),SUBSTITUTE($V42,\"{\",CHAR(160),GP$1))+1),\"\")","v":"{Fan HP}"},{"$f":"IFERROR(MID($W42,FIND(CHAR(160),SUBSTITUTE($W42,\"{\",CHAR(160),GQ$1)),FIND(CHAR(160),SUBSTITUTE($W42,\"}\",CHAR(160),GQ$1))-FIND(CHAR(160),SUBSTITUTE($W42,\"{\",CHAR(160),GQ$1))+1),\"\")","v":""},{"$f":"IFERROR(MID($W42,FIND(CHAR(160),SUBSTITUTE($W42,\"{\",CHAR(160),GR$1)),FIND(CHAR(160),SUBSTITUTE($W42,\"}\",CHAR(160),GR$1))-FIND(CHAR(160),SUBSTITUTE($W42,\"{\",CHAR(160),GR$1))+1),\"\")","v":""},{"$f":"IFERROR(MID($W42,FIND(CHAR(160),SUBSTITUTE($W42,\"{\",CHAR(160),GS$1)),FIND(CHAR(160),SUBSTITUTE($W42,\"}\",CHAR(160),GS$1))-FIND(CHAR(160),SUBSTITUTE($W42,\"{\",CHAR(160),GS$1))+1),\"\")","v":""},{"$f":"IFERROR(MID($W42,FIND(CHAR(160),SUBSTITUTE($W42,\"{\",CHAR(160),GT$1)),FIND(CHAR(160),SUBSTITUTE($W42,\"}\",CHAR(160),GT$1))-FIND(CHAR(160),SUBSTITUTE($W42,\"{\",CHAR(160),GT$1))+1),\"\")","v":""},{"$f":"IFERROR(MID($W42,FIND(CHAR(160),SUBSTITUTE($W42,\"{\",CHAR(160),GU$1)),FIND(CHAR(160),SUBSTITUTE($W42,\"}\",CHAR(160),GU$1))-FIND(CHAR(160),SUBSTITUTE($W42,\"{\",CHAR(160),GU$1))+1),\"\")","v":""},{"$f":"IFERROR(MID($W42,FIND(CHAR(160),SUBSTITUTE($W42,\"{\",CHAR(160),GV$1)),FIND(CHAR(160),SUBSTITUTE($W42,\"}\",CHAR(160),GV$1))-FIND(CHAR(160),SUBSTITUTE($W42,\"{\",CHAR(160),GV$1))+1),\"\")","v":""},{"$f":"IFERROR(MID($W42,FIND(CHAR(160),SUBSTITUTE($W42,\"{\",CHAR(160),GW$1)),FIND(CHAR(160),SUBSTITUTE($W42,\"}\",CHAR(160),GW$1))-FIND(CHAR(160),SUBSTITUTE($W42,\"{\",CHAR(160),GW$1))+1),\"\")","v":""},{"$f":"IFERROR(MID($W42,FIND(CHAR(160),SUBSTITUTE($W42,\"{\",CHAR(160),GX$1)),FIND(CHAR(160),SUBSTITUTE($W42,\"}\",CHAR(160),GX$1))-FIND(CHAR(160),SUBSTITUTE($W42,\"{\",CHAR(160),GX$1))+1),\"\")","v":""},{"$f":"IFERROR(MID($W42,FIND(CHAR(160),SUBSTITUTE($W42,\"{\",CHAR(160),GY$1)),FIND(CHAR(160),SUBSTITUTE($W42,\"}\",CHAR(160),GY$1))-FIND(CHAR(160),SUBSTITUTE($W42,\"{\",CHAR(160),GY$1))+1),\"\")","v":""},{"$f":"IFERROR(MID($W42,FIND(CHAR(160),SUBSTITUTE($W42,\"{\",CHAR(160),GZ$1)),FIND(CHAR(160),SUBSTITUTE($W42,\"}\",CHAR(160),GZ$1))-FIND(CHAR(160),SUBSTITUTE($W42,\"{\",CHAR(160),GZ$1))+1),\"\")","v":""},{"$f":"IFERROR(MID($X42,FIND(CHAR(160),SUBSTITUTE($X42,\"{\",CHAR(160),HA$1)),FIND(CHAR(160),SUBSTITUTE($X42,\"}\",CHAR(160),HA$1))-FIND(CHAR(160),SUBSTITUTE($X42,\"{\",CHAR(160),HA$1))+1),\"\")","v":""},{"$f":"IFERROR(MID($X42,FIND(CHAR(160),SUBSTITUTE($X42,\"{\",CHAR(160),HB$1)),FIND(CHAR(160),SUBSTITUTE($X42,\"}\",CHAR(160),HB$1))-FIND(CHAR(160),SUBSTITUTE($X42,\"{\",CHAR(160),HB$1))+1),\"\")","v":""},{"$f":"IFERROR(MID($X42,FIND(CHAR(160),SUBSTITUTE($X42,\"{\",CHAR(160),HC$1)),FIND(CHAR(160),SUBSTITUTE($X42,\"}\",CHAR(160),HC$1))-FIND(CHAR(160),SUBSTITUTE($X42,\"{\",CHAR(160),HC$1))+1),\"\")","v":""},{"$f":"IFERROR(MID($X42,FIND(CHAR(160),SUBSTITUTE($X42,\"{\",CHAR(160),HD$1)),FIND(CHAR(160),SUBSTITUTE($X42,\"}\",CHAR(160),HD$1))-FIND(CHAR(160),SUBSTITUTE($X42,\"{\",CHAR(160),HD$1))+1),\"\")","v":""},{"$f":"IFERROR(MID($X42,FIND(CHAR(160),SUBSTITUTE($X42,\"{\",CHAR(160),HE$1)),FIND(CHAR(160),SUBSTITUTE($X42,\"}\",CHAR(160),HE$1))-FIND(CHAR(160),SUBSTITUTE($X42,\"{\",CHAR(160),HE$1))+1),\"\")","v":""},{"$f":"IFERROR(MID($X42,FIND(CHAR(160),SUBSTITUTE($X42,\"{\",CHAR(160),HF$1)),FIND(CHAR(160),SUBSTITUTE($X42,\"}\",CHAR(160),HF$1))-FIND(CHAR(160),SUBSTITUTE($X42,\"{\",CHAR(160),HF$1))+1),\"\")","v":""},{"$f":"IFERROR(MID($X42,FIND(CHAR(160),SUBSTITUTE($X42,\"{\",CHAR(160),HG$1)),FIND(CHAR(160),SUBSTITUTE($X42,\"}\",CHAR(160),HG$1))-FIND(CHAR(160),SUBSTITUTE($X42,\"{\",CHAR(160),HG$1))+1),\"\")","v":""},{"$f":"IFERROR(MID($X42,FIND(CHAR(160),SUBSTITUTE($X42,\"{\",CHAR(160),HH$1)),FIND(CHAR(160),SUBSTITUTE($X42,\"}\",CHAR(160),HH$1))-FIND(CHAR(160),SUBSTITUTE($X42,\"{\",CHAR(160),HH$1))+1),\"\")","v":""},{"$f":"IFERROR(MID($X42,FIND(CHAR(160),SUBSTITUTE($X42,\"{\",CHAR(160),HI$1)),FIND(CHAR(160),SUBSTITUTE($X42,\"}\",CHAR(160),HI$1))-FIND(CHAR(160),SUBSTITUTE($X42,\"{\",CHAR(160),HI$1))+1),\"\")","v":""},{"$f":"IFERROR(MID($X42,FIND(CHAR(160),SUBSTITUTE($X42,\"{\",CHAR(160),HJ$1)),FIND(CHAR(160),SUBSTITUTE($X42,\"}\",CHAR(160),HJ$1))-FIND(CHAR(160),SUBSTITUTE($X42,\"{\",CHAR(160),HJ$1))+1),\"\")","v":""},{"$f":"IFERROR(MID($Y42,FIND(CHAR(160),SUBSTITUTE($Y42,\"{\",CHAR(160),HK$1)),FIND(CHAR(160),SUBSTITUTE($Y42,\"}\",CHAR(160),HK$1))-FIND(CHAR(160),SUBSTITUTE($Y42,\"{\",CHAR(160),HK$1))+1),\"\")","v":""},{"$f":"IFERROR(MID($Y42,FIND(CHAR(160),SUBSTITUTE($Y42,\"{\",CHAR(160),HL$1)),FIND(CHAR(160),SUBSTITUTE($Y42,\"}\",CHAR(160),HL$1))-FIND(CHAR(160),SUBSTITUTE($Y42,\"{\",CHAR(160),HL$1))+1),\"\")","v":""},{"$f":"IFERROR(MID($Y42,FIND(CHAR(160),SUBSTITUTE($Y42,\"{\",CHAR(160),HM$1)),FIND(CHAR(160),SUBSTITUTE($Y42,\"}\",CHAR(160),HM$1))-FIND(CHAR(160),SUBSTITUTE($Y42,\"{\",CHAR(160),HM$1))+1),\"\")","v":""},{"$f":"IFERROR(MID($Y42,FIND(CHAR(160),SUBSTITUTE($Y42,\"{\",CHAR(160),HN$1)),FIND(CHAR(160),SUBSTITUTE($Y42,\"}\",CHAR(160),HN$1))-FIND(CHAR(160),SUBSTITUTE($Y42,\"{\",CHAR(160),HN$1))+1),\"\")","v":""},{"$f":"IFERROR(MID($Y42,FIND(CHAR(160),SUBSTITUTE($Y42,\"{\",CHAR(160),HO$1)),FIND(CHAR(160),SUBSTITUTE($Y42,\"}\",CHAR(160),HO$1))-FIND(CHAR(160),SUBSTITUTE($Y42,\"{\",CHAR(160),HO$1))+1),\"\")","v":""},{"$f":"IFERROR(MID($Y42,FIND(CHAR(160),SUBSTITUTE($Y42,\"{\",CHAR(160),HP$1)),FIND(CHAR(160),SUBSTITUTE($Y42,\"}\",CHAR(160),HP$1))-FIND(CHAR(160),SUBSTITUTE($Y42,\"{\",CHAR(160),HP$1))+1),\"\")","v":""},{"$f":"IFERROR(MID($Y42,FIND(CHAR(160),SUBSTITUTE($Y42,\"{\",CHAR(160),HQ$1)),FIND(CHAR(160),SUBSTITUTE($Y42,\"}\",CHAR(160),HQ$1))-FIND(CHAR(160),SUBSTITUTE($Y42,\"{\",CHAR(160),HQ$1))+1),\"\")","v":""},{"$f":"IFERROR(MID($Y42,FIND(CHAR(160),SUBSTITUTE($Y42,\"{\",CHAR(160),HR$1)),FIND(CHAR(160),SUBSTITUTE($Y42,\"}\",CHAR(160),HR$1))-FIND(CHAR(160),SUBSTITUTE($Y42,\"{\",CHAR(160),HR$1))+1),\"\")","v":""},{"$f":"IFERROR(MID($Y42,FIND(CHAR(160),SUBSTITUTE($Y42,\"{\",CHAR(160),HS$1)),FIND(CHAR(160),SUBSTITUTE($Y42,\"}\",CHAR(160),HS$1))-FIND(CHAR(160),SUBSTITUTE($Y42,\"{\",CHAR(160),HS$1))+1),\"\")","v":""},{"$f":"IFERROR(MID($Y42,FIND(CHAR(160),SUBSTITUTE($Y42,\"{\",CHAR(160),HT$1)),FIND(CHAR(160),SUBSTITUTE($Y42,\"}\",CHAR(160),HT$1))-FIND(CHAR(160),SUBSTITUTE($Y42,\"{\",CHAR(160),HT$1))+1),\"\")","v":""},{"$f":"IFERROR(MID($Z42,FIND(CHAR(160),SUBSTITUTE($Z42,\"{\",CHAR(160),HU$1)),FIND(CHAR(160),SUBSTITUTE($Z42,\"}\",CHAR(160),HU$1))-FIND(CHAR(160),SUBSTITUTE($Z42,\"{\",CHAR(160),HU$1))+1),\"\")","v":""},{"$f":"IFERROR(MID($Z42,FIND(CHAR(160),SUBSTITUTE($Z42,\"{\",CHAR(160),HV$1)),FIND(CHAR(160),SUBSTITUTE($Z42,\"}\",CHAR(160),HV$1))-FIND(CHAR(160),SUBSTITUTE($Z42,\"{\",CHAR(160),HV$1))+1),\"\")","v":""},{"$f":"IFERROR(MID($Z42,FIND(CHAR(160),SUBSTITUTE($Z42,\"{\",CHAR(160),HW$1)),FIND(CHAR(160),SUBSTITUTE($Z42,\"}\",CHAR(160),HW$1))-FIND(CHAR(160),SUBSTITUTE($Z42,\"{\",CHAR(160),HW$1))+1),\"\")","v":""},{"$f":"IFERROR(MID($Z42,FIND(CHAR(160),SUBSTITUTE($Z42,\"{\",CHAR(160),HX$1)),FIND(CHAR(160),SUBSTITUTE($Z42,\"}\",CHAR(160),HX$1))-FIND(CHAR(160),SUBSTITUTE($Z42,\"{\",CHAR(160),HX$1))+1),\"\")","v":""},{"$f":"IFERROR(MID($Z42,FIND(CHAR(160),SUBSTITUTE($Z42,\"{\",CHAR(160),HY$1)),FIND(CHAR(160),SUBSTITUTE($Z42,\"}\",CHAR(160),HY$1))-FIND(CHAR(160),SUBSTITUTE($Z42,\"{\",CHAR(160),HY$1))+1),\"\")","v":""},{"$f":"IFERROR(MID($Z42,FIND(CHAR(160),SUBSTITUTE($Z42,\"{\",CHAR(160),HZ$1)),FIND(CHAR(160),SUBSTITUTE($Z42,\"}\",CHAR(160),HZ$1))-FIND(CHAR(160),SUBSTITUTE($Z42,\"{\",CHAR(160),HZ$1))+1),\"\")","v":""},{"$f":"IFERROR(MID($Z42,FIND(CHAR(160),SUBSTITUTE($Z42,\"{\",CHAR(160),IA$1)),FIND(CHAR(160),SUBSTITUTE($Z42,\"}\",CHAR(160),IA$1))-FIND(CHAR(160),SUBSTITUTE($Z42,\"{\",CHAR(160),IA$1))+1),\"\")","v":""},{"$f":"IFERROR(MID($Z42,FIND(CHAR(160),SUBSTITUTE($Z42,\"{\",CHAR(160),IB$1)),FIND(CHAR(160),SUBSTITUTE($Z42,\"}\",CHAR(160),IB$1))-FIND(CHAR(160),SUBSTITUTE($Z42,\"{\",CHAR(160),IB$1))+1),\"\")","v":""},{"$f":"IFERROR(MID($Z42,FIND(CHAR(160),SUBSTITUTE($Z42,\"{\",CHAR(160),IC$1)),FIND(CHAR(160),SUBSTITUTE($Z42,\"}\",CHAR(160),IC$1))-FIND(CHAR(160),SUBSTITUTE($Z42,\"{\",CHAR(160),IC$1))+1),\"\")","v":""},{"$f":"IFERROR(MID($Z42,FIND(CHAR(160),SUBSTITUTE($Z42,\"{\",CHAR(160),ID$1)),FIND(CHAR(160),SUBSTITUTE($Z42,\"}\",CHAR(160),ID$1))-FIND(CHAR(160),SUBSTITUTE($Z42,\"{\",CHAR(160),ID$1))+1),\"\")","v":""},{"$f":"IFERROR(MID($AA42,FIND(CHAR(160),SUBSTITUTE($AA42,\"{\",CHAR(160),IE$1)),FIND(CHAR(160),SUBSTITUTE($AA42,\"}\",CHAR(160),IE$1))-FIND(CHAR(160),SUBSTITUTE($AA42,\"{\",CHAR(160),IE$1))+1),\"\")","v":""},{"$f":"IFERROR(MID($AA42,FIND(CHAR(160),SUBSTITUTE($AA42,\"{\",CHAR(160),IF$1)),FIND(CHAR(160),SUBSTITUTE($AA42,\"}\",CHAR(160),IF$1))-FIND(CHAR(160),SUBSTITUTE($AA42,\"{\",CHAR(160),IF$1))+1),\"\")","v":""},{"$f":"IFERROR(MID($AA42,FIND(CHAR(160),SUBSTITUTE($AA42,\"{\",CHAR(160),IG$1)),FIND(CHAR(160),SUBSTITUTE($AA42,\"}\",CHAR(160),IG$1))-FIND(CHAR(160),SUBSTITUTE($AA42,\"{\",CHAR(160),IG$1))+1),\"\")","v":""},{"$f":"IFERROR(MID($AA42,FIND(CHAR(160),SUBSTITUTE($AA42,\"{\",CHAR(160),IH$1)),FIND(CHAR(160),SUBSTITUTE($AA42,\"}\",CHAR(160),IH$1))-FIND(CHAR(160),SUBSTITUTE($AA42,\"{\",CHAR(160),IH$1))+1),\"\")","v":""},{"$f":"IFERROR(MID($AA42,FIND(CHAR(160),SUBSTITUTE($AA42,\"{\",CHAR(160),II$1)),FIND(CHAR(160),SUBSTITUTE($AA42,\"}\",CHAR(160),II$1))-FIND(CHAR(160),SUBSTITUTE($AA42,\"{\",CHAR(160),II$1))+1),\"\")","v":""},{"$f":"IFERROR(MID($AA42,FIND(CHAR(160),SUBSTITUTE($AA42,\"{\",CHAR(160),IJ$1)),FIND(CHAR(160),SUBSTITUTE($AA42,\"}\",CHAR(160),IJ$1))-FIND(CHAR(160),SUBSTITUTE($AA42,\"{\",CHAR(160),IJ$1))+1),\"\")","v":""},{"$f":"IFERROR(MID($AA42,FIND(CHAR(160),SUBSTITUTE($AA42,\"{\",CHAR(160),IK$1)),FIND(CHAR(160),SUBSTITUTE($AA42,\"}\",CHAR(160),IK$1))-FIND(CHAR(160),SUBSTITUTE($AA42,\"{\",CHAR(160),IK$1))+1),\"\")","v":""},{"$f":"IFERROR(MID($AA42,FIND(CHAR(160),SUBSTITUTE($AA42,\"{\",CHAR(160),IL$1)),FIND(CHAR(160),SUBSTITUTE($AA42,\"}\",CHAR(160),IL$1))-FIND(CHAR(160),SUBSTITUTE($AA42,\"{\",CHAR(160),IL$1))+1),\"\")","v":""},{"$f":"IFERROR(MID($AA42,FIND(CHAR(160),SUBSTITUTE($AA42,\"{\",CHAR(160),IM$1)),FIND(CHAR(160),SUBSTITUTE($AA42,\"}\",CHAR(160),IM$1))-FIND(CHAR(160),SUBSTITUTE($AA42,\"{\",CHAR(160),IM$1))+1),\"\")","v":""},{"$f":"IFERROR(MID($AA42,FIND(CHAR(160),SUBSTITUTE($AA42,\"{\",CHAR(160),IN$1)),FIND(CHAR(160),SUBSTITUTE($AA42,\"}\",CHAR(160),IN$1))-FIND(CHAR(160),SUBSTITUTE($AA42,\"{\",CHAR(160),IN$1))+1),\"\")","v":""},{"$f":"IFERROR(MID($AB42,FIND(CHAR(160),SUBSTITUTE($AB42,\"{\",CHAR(160),IO$1)),FIND(CHAR(160),SUBSTITUTE($AB42,\"}\",CHAR(160),IO$1))-FIND(CHAR(160),SUBSTITUTE($AB42,\"{\",CHAR(160),IO$1))+1),\"\")","v":""},{"$f":"IFERROR(MID($AB42,FIND(CHAR(160),SUBSTITUTE($AB42,\"{\",CHAR(160),IP$1)),FIND(CHAR(160),SUBSTITUTE($AB42,\"}\",CHAR(160),IP$1))-FIND(CHAR(160),SUBSTITUTE($AB42,\"{\",CHAR(160),IP$1))+1),\"\")","v":""},{"$f":"IFERROR(MID($AB42,FIND(CHAR(160),SUBSTITUTE($AB42,\"{\",CHAR(160),IQ$1)),FIND(CHAR(160),SUBSTITUTE($AB42,\"}\",CHAR(160),IQ$1))-FIND(CHAR(160),SUBSTITUTE($AB42,\"{\",CHAR(160),IQ$1))+1),\"\")","v":""},{"$f":"IFERROR(MID($AB42,FIND(CHAR(160),SUBSTITUTE($AB42,\"{\",CHAR(160),IR$1)),FIND(CHAR(160),SUBSTITUTE($AB42,\"}\",CHAR(160),IR$1))-FIND(CHAR(160),SUBSTITUTE($AB42,\"{\",CHAR(160),IR$1))+1),\"\")","v":""},{"$f":"IFERROR(MID($AB42,FIND(CHAR(160),SUBSTITUTE($AB42,\"{\",CHAR(160),IS$1)),FIND(CHAR(160),SUBSTITUTE($AB42,\"}\",CHAR(160),IS$1))-FIND(CHAR(160),SUBSTITUTE($AB42,\"{\",CHAR(160),IS$1))+1),\"\")","v":""},{"$f":"IFERROR(MID($AB42,FIND(CHAR(160),SUBSTITUTE($AB42,\"{\",CHAR(160),IT$1)),FIND(CHAR(160),SUBSTITUTE($AB42,\"}\",CHAR(160),IT$1))-FIND(CHAR(160),SUBSTITUTE($AB42,\"{\",CHAR(160),IT$1))+1),\"\")","v":""},{"$f":"IFERROR(MID($AB42,FIND(CHAR(160),SUBSTITUTE($AB42,\"{\",CHAR(160),IU$1)),FIND(CHAR(160),SUBSTITUTE($AB42,\"}\",CHAR(160),IU$1))-FIND(CHAR(160),SUBSTITUTE($AB42,\"{\",CHAR(160),IU$1))+1),\"\")","v":""},{"$f":"IFERROR(MID($AB42,FIND(CHAR(160),SUBSTITUTE($AB42,\"{\",CHAR(160),IV$1)),FIND(CHAR(160),SUBSTITUTE($AB42,\"}\",CHAR(160),IV$1))-FIND(CHAR(160),SUBSTITUTE($AB42,\"{\",CHAR(160),IV$1))+1),\"\")","v":""},{"$f":"IFERROR(MID($AB42,FIND(CHAR(160),SUBSTITUTE($AB42,\"{\",CHAR(160),IW$1)),FIND(CHAR(160),SUBSTITUTE($AB42,\"}\",CHAR(160),IW$1))-FIND(CHAR(160),SUBSTITUTE($AB42,\"{\",CHAR(160),IW$1))+1),\"\")","v":""},{"$f":"IFERROR(MID($AB42,FIND(CHAR(160),SUBSTITUTE($AB42,\"{\",CHAR(160),IX$1)),FIND(CHAR(160),SUBSTITUTE($AB42,\"}\",CHAR(160),IX$1))-FIND(CHAR(160),SUBSTITUTE($AB42,\"{\",CHAR(160),IX$1))+1),\"\")","v":""},null,{"$f":"10-COUNTIF(DU42:ED42,\"\")","v":2}]
["C&I Do It Yourself","High Efficiency Pre-Rinse Spray Valves","HPSV","2021-07-01","2022-06-30","Manual Entry",0,0,"Manual Entry",0,0,"2018-07-01","2022-06-30","Calculated","if({Measure:Quantity}=0,0,if({Fuel}=6,if({Location}=1,1774.94,5324.83),0))*({Measure:Quantity})",0,1,null,null,null,null,null,"if({Measure:Quantity}=0,0,if({Fuel}=1,if({Location}=1,7.42,22.26),0))*10*({Measure:Quantity})","if({Measure:Quantity}=0,0,if({Fuel}=2,if({Location}=1,7.42,22.26),0))*({Measure:Quantity})","if({Measure:Quantity}=0,0,if({Fuel}=3,if({Location}=1,7.42,22.26),0))*({Measure:Quantity})",null,null,"if({Measure:Quantity}=0,0,if({Location}=1,10296,30888))*{Measure:Quantity}","2017-01-01","2022-06-30",5,0,0,1,0,0,0,1,1,0,0.25,0,null,{"$f":"DU43","v":"{Location}"},1,{"$f":"DV43","v":"{Measure:Quantity}"},6,{"$f":"DW43","v":"{Fuel}"},1,{"$f":"DX43","v":""},null,{"$f":"DY43","v":""},null,{"$f":"DZ43","v":""},null,{"$f":"EA43","v":""},null,{"$f":"EB43","v":""},null,{"$f":"EC43","v":""},null,{"$f":"ED43","v":""},null,{"$f":"IF(AS43=0,0,IF(AU43=6,IF(AW43=1,1774.94,5324.83),0))*(AS43)","v":1774.94},{"$f":"0","v":0},{"$f":"1","v":1},0,0,0,0,0,{"$f":"IF(AS43=0,0,IF(AU43=1,IF(AW43=1,7.42,22.26),0))*10*(AS43)","v":0},{"$f":"IF(AS43=0,0,IF(AU43=2,IF(AW43=1,7.42,22.26),0))*(AS43)","v":0},{"$f":"IF(AS43=0,0,IF(AU43=3,IF(AW43=1,7.42,22.26),0))*(AS43)","v":0},0,0,{"$f":"IF(AS43=0,0,IF(AW43=1,10296,30888))*AS43","v":10296},null,"Res","Default DR",{"$f":"Benefits(BL43,BR43,BS43,BT43,BU43,BV43,BW43,BX43,BY43,BZ43,AE43,AH43,AI43,AJ43,AK43,AL43,AM43,AN43,AO43,AP43,CA43,CB43)","v":1024.5585333724803},0,0,0,0,0,0,312.65910235995096,0,{"$f":"SUMPRODUCT(CC43:CK43,--(CC43:CK43>0))","v":1337.2176357324313},{"$f":"-SUMPRODUCT(CC43:CK43,--(CC43:CK43<0))","v":0},null,40,null,null,{"$f":"CM43+CO43","v":40},{"$f":"IF(NetOrGross=\"Net\",(1-AO43+AP43),1)","v":1},{"$f":"(SUMPRODUCT(CC43:CJ43,--(CC43:CJ43>0))+CN43)*CS43/((-SUMPRODUCT(CC43:CJ43,--(CC43:CJ43<0))+MAX(CO43,CV43)+CP43+CQ43)*CS43+IF(FRIncentives=\"Yes\",CV43*(1-CS43),0))","v":33.338759305221423},1,40.11,null,"Electric","y",null,{"$f":"IF(F43=\"Manual Entry\",\"Manual\",IF(G43=\"\",0,\"X=\"&SUBSTITUTE(SUBSTITUTE(SUBSTITUTE(SUBSTITUTE(SUBSTITUTE(SUBSTITUTE(SUBSTITUTE(SUBSTITUTE(SUBSTITUTE(SUBSTITUTE(SUBSTITUTE(SUBSTITUTE(G43,$ED43,$ED$2&ROW($ED43)),$EC43,$EC$2&ROW($EC43)),$EB43,$EB$2&ROW($EB43)),$EA43,$EA$2&ROW($EA43)),$DZ43,$DZ$2&ROW($DZ43)),$DY43,$DY$2&ROW($DY43)),$DX43,$DX$2&ROW($DX43)),$DW43,$DW$2&ROW($DW43)),$DV43,$DV$2&ROW($DV43)),$DU43,$DU$2&ROW($DU43)),$DT43,$DT$2&ROW($DT43)),$DS43,$DS$2&ROW($DS43))))","v":"Manual"},{"$f":"IF(I43=\"Manual Entry\",\"Manual\",IF(J43=\"\",0,\"X=\"&SUBSTITUTE(SUBSTITUTE(SUBSTITUTE(SUBSTITUTE(SUBSTITUTE(SUBSTITUTE(SUBSTITUTE(SUBSTITUTE(SUBSTITUTE(SUBSTITUTE(SUBSTITUTE(SUBSTITUTE(J43,$ED43,$ED$2&ROW($ED43)),$EC43,$EC$2&ROW($EC43)),$EB43,$EB$2&ROW($EB43)),$EA43,$EA$2&ROW($EA43)),$DZ43,$DZ$2&ROW($DZ43)),$DY43,$DY$2&ROW($DY43)),$DX43,$DX$2&ROW($DX43)),$DW43,$DW$2&ROW($DW43)),$DV43,$DV$2&ROW($DV43)),$DU43,$DU$2&ROW($DU43)),$DT43,$DT$2&ROW($DT43)),$DS43,$DS$2&ROW($DS43))))","v":"Manual"},{"$f":"IF(O43=\"\",0,\"X=\"&SUBSTITUTE(SUBSTITUTE(SUBSTITUTE(SUBSTITUTE(SUBSTITUTE(SUBSTITUTE(SUBSTITUTE(SUBSTITUTE(SUBSTITUTE(SUBSTITUTE(SUBSTITUTE(SUBSTITUTE(O43,$ED43,$ED$2&ROW($ED43)),$EC43,$EC$2&ROW($EC43)),$EB43,$EB$2&ROW($EB43)),$EA43,$EA$2&ROW($EA43)),$DZ43,$DZ$2&ROW($DZ43)),$DY43,$DY$2&ROW($DY43)),$DX43,$DX$2&ROW($DX43)),$DW43,$DW$2&ROW($DW43)),$DV43,$DV$2&ROW($DV43)),$DU43,$DU$2&ROW($DU43)),$DT43,$DT$2&ROW($DT43)),$DS43,$DS$2&ROW($DS43)))","v":"X=if(AU43=0,0,if(AW43=6,if(AS43=1,1774.94,5324.83),0))*(AU43)"},{"$f":"IF(P43=\"\",0,\"X=\"&SUBSTITUTE(SUBSTITUTE(SUBSTITUTE(SUBSTITUTE(SUBSTITUTE(SUBSTITUTE(SUBSTITUTE(SUBSTITUTE(SUBSTITUTE(SUBSTITUTE(SUBSTITUTE(SUBSTITUTE(P43,$ED43,$ED$2&ROW($ED43)),$EC43,$EC$2&ROW($EC43)),$EB43,$EB$2&ROW($EB43)),$EA43,$EA$2&ROW($EA43)),$DZ43,$DZ$2&ROW($DZ43)),$DY43,$DY$2&ROW($DY43)),$DX43,$DX$2&ROW($DX43)),$DW43,$DW$2&ROW($DW43)),$DV43,$DV$2&ROW($DV43)),$DU43,$DU$2&ROW($DU43)),$DT43,$DT$2&ROW($DT43)),$DS43,$DS$2&ROW($DS43)))","v":"X=0"},{"$f":"IF(Q43=\"\",0,\"X=\"&SUBSTITUTE(SUBSTITUTE(SUBSTITUTE(SUBSTITUTE(SUBSTITUTE(SUBSTITUTE(SUBSTITUTE(SUBSTITUTE(SUBSTITUTE(SUBSTITUTE(SUBSTITUTE(SUBSTITUTE(Q43,$ED43,$ED$2&ROW($ED43)),$EC43,$EC$2&ROW($EC43)),$EB43,$EB$2&ROW($EB43)),$EA43,$EA$2&ROW($EA43)),$DZ43,$DZ$2&ROW($DZ43)),$DY43,$DY$2&ROW($DY43)),$DX43,$DX$2&ROW($DX43)),$DW43,$DW$2&ROW($DW43)),$DV43,$DV$2&ROW($DV43)),$DU43,$DU$2&ROW($DU43)),$DT43,$DT$2&ROW($DT43)),$DS43,$DS$2&ROW($DS43)))","v":"X=1"},{"$f":"IF(R43=\"\",0,\"X=\"&SUBSTITUTE(SUBSTITUTE(SUBSTITUTE(SUBSTITUTE(SUBSTITUTE(SUBSTITUTE(SUBSTITUTE(SUBSTITUTE(SUBSTITUTE(SUBSTITUTE(SUBSTITUTE(SUBSTITUTE(R43,$ED43,$ED$2&ROW($ED43)),$EC43,$EC$2&ROW($EC43)),$EB43,$EB$2&ROW($EB43)),$EA43,$EA$2&ROW($EA43)),$DZ43,$DZ$2&ROW($DZ43)),$DY43,$DY$2&ROW($DY43)),$DX43,$DX$2&ROW($DX43)),$DW43,$DW$2&ROW($DW43)),$DV43,$DV$2&ROW($DV43)),$DU43,$DU$2&ROW($DU43)),$DT43,$DT$2&ROW($DT43)),$DS43,$DS$2&ROW($DS43)))","v":0},{"$f":"IF(S43=\"\",0,\"X=\"&SUBSTITUTE(SUBSTITUTE(SUBSTITUTE(SUBSTITUTE(SUBSTITUTE(SUBSTITUTE(SUBSTITUTE(SUBSTITUTE(SUBSTITUTE(SUBSTITUTE(SUBSTITUTE(SUBSTITUTE(S43,$ED43,$ED$2&ROW($ED43)),$EC43,$EC$2&ROW($EC43)),$EB43,$EB$2&ROW($EB43)),$EA43,$EA$2&ROW($EA43)),$DZ43,$DZ$2&ROW($DZ43)),$DY43,$DY$2&ROW($DY43)),$DX43,$DX$2&ROW($DX43)),$DW43,$DW$2&ROW($DW43)),$DV43,$DV$2&ROW($DV43)),$DU43,$DU$2&ROW($DU43)),$DT43,$DT$2&ROW($DT43)),$DS43,$DS$2&ROW($DS43)))","v":0},{"$f":"IF(T43=\"\",0,\"X=\"&SUBSTITUTE(SUBSTITUTE(SUBSTITUTE(SUBSTITUTE(SUBSTITUTE(SUBSTITUTE(SUBSTITUTE(SUBSTITUTE(SUBSTITUTE(SUBSTITUTE(SUBSTITUTE(SUBSTITUTE(T43,$ED43,$ED$2&ROW($ED43)),$EC43,$EC$2&ROW($EC43)),$EB43,$EB$2&ROW($EB43)),$EA43,$EA$2&ROW($EA43)),$DZ43,$DZ$2&ROW($DZ43)),$DY43,$DY$2&ROW($DY43)),$DX43,$DX$2&ROW($DX43)),$DW43,$DW$2&ROW($DW43)),$DV43,$DV$2&ROW($DV43)),$DU43,$DU$2&ROW($DU43)),$DT43,$DT$2&ROW($DT43)),$DS43,$DS$2&ROW($DS43)))","v":0},{"$f":"IF(U43=\"\",0,\"X=\"&SUBSTITUTE(SUBSTITUTE(SUBSTITUTE(SUBSTITUTE(SUBSTITUTE(SUBSTITUTE(SUBSTITUTE(SUBSTITUTE(SUBSTITUTE(SUBSTITUTE(SUBSTITUTE(SUBSTITUTE(U43,$ED43,$ED$2&ROW($ED43)),$EC43,$EC$2&ROW($EC43)),$EB43,$EB$2&ROW($EB43)),$EA43,$EA$2&ROW($EA43)),$DZ43,$DZ$2&ROW($DZ43)),$DY43,$DY$2&ROW($DY43)),$DX43,$DX$2&ROW($DX43)),$DW43,$DW$2&ROW($DW43)),$DV43,$DV$2&ROW($DV43)),$DU43,$DU$2&ROW($DU43)),$DT43,$DT$2&ROW($DT43)),$DS43,$DS$2&ROW($DS43)))","v":0},{"$f":"IF(V43=\"\",0,\"X=\"&SUBSTITUTE(SUBSTITUTE(SUBSTITUTE(SUBSTITUTE(SUBSTITUTE(SUBSTITUTE(SUBSTITUTE(SUBSTITUTE(SUBSTITUTE(SUBSTITUTE(SUBSTITUTE(SUBSTITUTE(V43,$ED43,$ED$2&ROW($ED43)),$EC43,$EC$2&ROW($EC43)),$EB43,$EB$2&ROW($EB43)),$EA43,$EA$2&ROW($EA43)),$DZ43,$DZ$2&ROW($DZ43)),$DY43,$DY$2&ROW($DY43)),$DX43,$DX$2&ROW($DX43)),$DW43,$DW$2&ROW($DW43)),$DV43,$DV$2&ROW($DV43)),$DU43,$DU$2&ROW($DU43)),$DT43,$DT$2&ROW($DT43)),$DS43,$DS$2&ROW($DS43)))","v":0},{"$f":"IF(W43=\"\",0,\"X=\"&SUBSTITUTE(SUBSTITUTE(SUBSTITUTE(SUBSTITUTE(SUBSTITUTE(SUBSTITUTE(SUBSTITUTE(SUBSTITUTE(SUBSTITUTE(SUBSTITUTE(SUBSTITUTE(SUBSTITUTE(W43,$ED43,$ED$2&ROW($ED43)),$EC43,$EC$2&ROW($EC43)),$EB43,$EB$2&ROW($EB43)),$EA43,$EA$2&ROW($EA43)),$DZ43,$DZ$2&ROW($DZ43)),$DY43,$DY$2&ROW($DY43)),$DX43,$DX$2&ROW($DX43)),$DW43,$DW$2&ROW($DW43)),$DV43,$DV$2&ROW($DV43)),$DU43,$DU$2&ROW($DU43)),$DT43,$DT$2&ROW($DT43)),$DS43,$DS$2&ROW($DS43)))","v":"X=if(AU43=0,0,if(AW43=1,if(AS43=1,7.42,22.26),0))*10*(AU43)"},{"$f":"IF(X43=\"\",0,\"X=\"&SUBSTITUTE(SUBSTITUTE(SUBSTITUTE(SUBSTITUTE(SUBSTITUTE(SUBSTITUTE(SUBSTITUTE(SUBSTITUTE(SUBSTITUTE(SUBSTITUTE(SUBSTITUTE(SUBSTITUTE(X43,$ED43,$ED$2&ROW($ED43)),$EC43,$EC$2&ROW($EC43)),$EB43,$EB$2&ROW($EB43)),$EA43,$EA$2&ROW($EA43)),$DZ43,$DZ$2&ROW($DZ43)),$DY43,$DY$2&ROW($DY43)),$DX43,$DX$2&ROW($DX43)),$DW43,$DW$2&ROW($DW43)),$DV43,$DV$2&ROW($DV43)),$DU43,$DU$2&ROW($DU43)),$DT43,$DT$2&ROW($DT43)),$DS43,$DS$2&ROW($DS43)))","v":"X=if(AU43=0,0,if(AW43=2,if(AS43=1,7.42,22.26),0))*(AU43)"},{"$f":"IF(Y43=\"\",0,\"X=\"&SUBSTITUTE(SUBSTITUTE(SUBSTITUTE(SUBSTITUTE(SUBSTITUTE(SUBSTITUTE(SUBSTITUTE(SUBSTITUTE(SUBSTITUTE(SUBSTITUTE(SUBSTITUTE(SUBSTITUTE(Y43,$ED43,$ED$2&ROW($ED43)),$EC43,$EC$2&ROW($EC43)),$EB43,$EB$2&ROW($EB43)),$EA43,$EA$2&ROW($EA43)),$DZ43,$DZ$2&ROW($DZ43)),$DY43,$DY$2&ROW($DY43)),$DX43,$DX$2&ROW($DX43)),$DW43,$DW$2&ROW($DW43)),$DV43,$DV$2&ROW($DV43)),$DU43,$DU$2&ROW($DU43)),$DT43,$DT$2&ROW($DT43)),$DS43,$DS$2&ROW($DS43)))","v":"X=if(AU43=0,0,if(AW43=3,if(AS43=1,7.42,22.26),0))*(AU43)"},{"$f":"IF(Z43=\"\",0,\"X=\"&SUBSTITUTE(SUBSTITUTE(SUBSTITUTE(SUBSTITUTE(SUBSTITUTE(SUBSTITUTE(SUBSTITUTE(SUBSTITUTE(SUBSTITUTE(SUBSTITUTE(SUBSTITUTE(SUBSTITUTE(Z43,$ED43,$ED$2&ROW($ED43)),$EC43,$EC$2&ROW($EC43)),$EB43,$EB$2&ROW($EB43)),$EA43,$EA$2&ROW($EA43)),$DZ43,$DZ$2&ROW($DZ43)),$DY43,$DY$2&ROW($DY43)),$DX43,$DX$2&ROW($DX43)),$DW43,$DW$2&ROW($DW43)),$DV43,$DV$2&ROW($DV43)),$DU43,$DU$2&ROW($DU43)),$DT43,$DT$2&ROW($DT43)),$DS43,$DS$2&ROW($DS43)))","v":0},{"$f":"IF(AA43=\"\",0,\"X=\"&SUBSTITUTE(SUBSTITUTE(SUBSTITUTE(SUBSTITUTE(SUBSTITUTE(SUBSTITUTE(SUBSTITUTE(SUBSTITUTE(SUBSTITUTE(SUBSTITUTE(SUBSTITUTE(SUBSTITUTE(AA43,$ED43,$ED$2&ROW($ED43)),$EC43,$EC$2&ROW($EC43)),$EB43,$EB$2&ROW($EB43)),$EA43,$EA$2&ROW($EA43)),$DZ43,$DZ$2&ROW($DZ43)),$DY43,$DY$2&ROW($DY43)),$DX43,$DX$2&ROW($DX43)),$DW43,$DW$2&ROW($DW43)),$DV43,$DV$2&ROW($DV43)),$DU43,$DU$2&ROW($DU43)),$DT43,$DT$2&ROW($DT43)),$DS43,$DS$2&ROW($DS43)))","v":0},{"$f":"IF(AB43=\"\",0,\"X=\"&SUBSTITUTE(SUBSTITUTE(SUBSTITUTE(SUBSTITUTE(SUBSTITUTE(SUBSTITUTE(SUBSTITUTE(SUBSTITUTE(SUBSTITUTE(SUBSTITUTE(SUBSTITUTE(SUBSTITUTE(AB43,$ED43,$ED$2&ROW($ED43)),$EC43,$EC$2&ROW($EC43)),$EB43,$EB$2&ROW($EB43)),$EA43,$EA$2&ROW($EA43)),$DZ43,$DZ$2&ROW($DZ43)),$DY43,$DY$2&ROW($DY43)),$DX43,$DX$2&ROW($DX43)),$DW43,$DW$2&ROW($DW43)),$DV43,$DV$2&ROW($DV43)),$DU43,$DU$2&ROW($DU43)),$DT43,$DT$2&ROW($DT43)),$DS43,$DS$2&ROW($DS43)))","v":"X=if(AU43=0,0,if(AS43=1,10296,30888))*AU43"},null,null,"{Factor:WinterCF}","{Factor:SummerCF}",{"$f":"IFERROR(INDEX($EG43:$IV43,MATCH(0,COUNTIF($DR43:DT43,$EG43:$IV43),0)),\"\")","v":"{Location}"},{"$f":"IFERROR(INDEX($EG43:$IV43,MATCH(0,COUNTIF($DR43:DU43,$EG43:$IV43),0)),\"\")","v":"{Measure:Quantity}"},{"$f":"IFERROR(INDEX($EG43:$IV43,MATCH(0,COUNTIF($DR43:DV43,$EG43:$IV43),0)),\"\")","v":"{Fuel}"},{"$f":"IFERROR(INDEX($EG43:$IV43,MATCH(0,COUNTIF($DR43:DW43,$EG43:$IV43),0)),\"\")","v":""},{"$f":"IFERROR(INDEX($EG43:$IV43,MATCH(0,COUNTIF($DR43:DX43,$EG43:$IV43),0)),\"\")","v":""},{"$f":"IFERROR(INDEX($EG43:$IV43,MATCH(0,COUNTIF($DR43:DY43,$EG43:$IV43),0)),\"\")","v":""},{"$f":"IFERROR(INDEX($EG43:$IV43,MATCH(0,COUNTIF($DR43:DZ43,$EG43:$IV43),0)),\"\")","v":""},{"$f":"IFERROR(INDEX($EG43:$IV43,MATCH(0,COUNTIF($DR43:EA43,$EG43:$IV43),0)),\"\")","v":""},{"$f":"IFERROR(INDEX($EG43:$IV43,MATCH(0,COUNTIF($DR43:EB43,$EG43:$IV43),0)),\"\")","v":""},{"$f":"IFERROR(INDEX($EG43:$IV43,MATCH(0,COUNTIF($DR43:EC43,$EG43:$IV43),0)),\"\")","v":""},null,null,{"$f":"IFERROR(MID($G43,FIND(CHAR(160),SUBSTITUTE($G43,\"{\",CHAR(160),EG$1)),FIND(CHAR(160),SUBSTITUTE($G43,\"}\",CHAR(160),EG$1))-FIND(CHAR(160),SUBSTITUTE($G43,\"{\",CHAR(160),EG$1))+1),\"\")","v":""},{"$f":"IFERROR(MID($G43,FIND(CHAR(160),SUBSTITUTE($G43,\"{\",CHAR(160),EH$1)),FIND(CHAR(160),SUBSTITUTE($G43,\"}\",CHAR(160),EH$1))-FIND(CHAR(160),SUBSTITUTE($G43,\"{\",CHAR(160),EH$1))+1),\"\")","v":""},{"$f":"IFERROR(MID($G43,FIND(CHAR(160),SUBSTITUTE($G43,\"{\",CHAR(160),EI$1)),FIND(CHAR(160),SUBSTITUTE($G43,\"}\",CHAR(160),EI$1))-FIND(CHAR(160),SUBSTITUTE($G43,\"{\",CHAR(160),EI$1))+1),\"\")","v":""},{"$f":"IFERROR(MID($G43,FIND(CHAR(160),SUBSTITUTE($G43,\"{\",CHAR(160),EJ$1)),FIND(CHAR(160),SUBSTITUTE($G43,\"}\",CHAR(160),EJ$1))-FIND(CHAR(160),SUBSTITUTE($G43,\"{\",CHAR(160),EJ$1))+1),\"\")","v":""},{"$f":"IFERROR(MID($G43,FIND(CHAR(160),SUBSTITUTE($G43,\"{\",CHAR(160),EK$1)),FIND(CHAR(160),SUBSTITUTE($G43,\"}\",CHAR(160),EK$1))-FIND(CHAR(160),SUBSTITUTE($G43,\"{\",CHAR(160),EK$1))+1),\"\")","v":""},{"$f":"IFERROR(MID($G43,FIND(CHAR(160),SUBSTITUTE($G43,\"{\",CHAR(160),EL$1)),FIND(CHAR(160),SUBSTITUTE($G43,\"}\",CHAR(160),EL$1))-FIND(CHAR(160),SUBSTITUTE($G43,\"{\",CHAR(160),EL$1))+1),\"\")","v":""},{"$f":"IFERROR(MID($G43,FIND(CHAR(160),SUBSTITUTE($G43,\"{\",CHAR(160),EM$1)),FIND(CHAR(160),SUBSTITUTE($G43,\"}\",CHAR(160),EM$1))-FIND(CHAR(160),SUBSTITUTE($G43,\"{\",CHAR(160),EM$1))+1),\"\")","v":""},{"$f":"IFERROR(MID($G43,FIND(CHAR(160),SUBSTITUTE($G43,\"{\",CHAR(160),EN$1)),FIND(CHAR(160),SUBSTITUTE($G43,\"}\",CHAR(160),EN$1))-FIND(CHAR(160),SUBSTITUTE($G43,\"{\",CHAR(160),EN$1))+1),\"\")","v":""},{"$f":"IFERROR(MID($G43,FIND(CHAR(160),SUBSTITUTE($G43,\"{\",CHAR(160),EO$1)),FIND(CHAR(160),SUBSTITUTE($G43,\"}\",CHAR(160),EO$1))-FIND(CHAR(160),SUBSTITUTE($G43,\"{\",CHAR(160),EO$1))+1),\"\")","v":""},{"$f":"IFERROR(MID($G43,FIND(CHAR(160),SUBSTITUTE($G43,\"{\",CHAR(160),EP$1)),FIND(CHAR(160),SUBSTITUTE($G43,\"}\",CHAR(160),EP$1))-FIND(CHAR(160),SUBSTITUTE($G43,\"{\",CHAR(160),EP$1))+1),\"\")","v":""},{"$f":"IFERROR(MID($J43,FIND(CHAR(160),SUBSTITUTE($J43,\"{\",CHAR(160),EQ$1)),FIND(CHAR(160),SUBSTITUTE($J43,\"}\",CHAR(160),EQ$1))-FIND(CHAR(160),SUBSTITUTE($J43,\"{\",CHAR(160),EQ$1))+1),\"\")","v":""},{"$f":"IFERROR(MID($J43,FIND(CHAR(160),SUBSTITUTE($J43,\"{\",CHAR(160),ER$1)),FIND(CHAR(160),SUBSTITUTE($J43,\"}\",CHAR(160),ER$1))-FIND(CHAR(160),SUBSTITUTE($J43,\"{\",CHAR(160),ER$1))+1),\"\")","v":""},{"$f":"IFERROR(MID($J43,FIND(CHAR(160),SUBSTITUTE($J43,\"{\",CHAR(160),ES$1)),FIND(CHAR(160),SUBSTITUTE($J43,\"}\",CHAR(160),ES$1))-FIND(CHAR(160),SUBSTITUTE($J43,\"{\",CHAR(160),ES$1))+1),\"\")","v":""},{"$f":"IFERROR(MID($J43,FIND(CHAR(160),SUBSTITUTE($J43,\"{\",CHAR(160),ET$1)),FIND(CHAR(160),SUBSTITUTE($J43,\"}\",CHAR(160),ET$1))-FIND(CHAR(160),SUBSTITUTE($J43,\"{\",CHAR(160),ET$1))+1),\"\")","v":""},{"$f":"IFERROR(MID($J43,FIND(CHAR(160),SUBSTITUTE($J43,\"{\",CHAR(160),EU$1)),FIND(CHAR(160),SUBSTITUTE($J43,\"}\",CHAR(160),EU$1))-FIND(CHAR(160),SUBSTITUTE($J43,\"{\",CHAR(160),EU$1))+1),\"\")","v":""},{"$f":"IFERROR(MID($J43,FIND(CHAR(160),SUBSTITUTE($J43,\"{\",CHAR(160),EV$1)),FIND(CHAR(160),SUBSTITUTE($J43,\"}\",CHAR(160),EV$1))-FIND(CHAR(160),SUBSTITUTE($J43,\"{\",CHAR(160),EV$1))+1),\"\")","v":""},{"$f":"IFERROR(MID($J43,FIND(CHAR(160),SUBSTITUTE($J43,\"{\",CHAR(160),EW$1)),FIND(CHAR(160),SUBSTITUTE($J43,\"}\",CHAR(160),EW$1))-FIND(CHAR(160),SUBSTITUTE($J43,\"{\",CHAR(160),EW$1))+1),\"\")","v":""},{"$f":"IFERROR(MID($J43,FIND(CHAR(160),SUBSTITUTE($J43,\"{\",CHAR(160),EX$1)),FIND(CHAR(160),SUBSTITUTE($J43,\"}\",CHAR(160),EX$1))-FIND(CHAR(160),SUBSTITUTE($J43,\"{\",CHAR(160),EX$1))+1),\"\")","v":""},{"$f":"IFERROR(MID($J43,FIND(CHAR(160),SUBSTITUTE($J43,\"{\",CHAR(160),EY$1)),FIND(CHAR(160),SUBSTITUTE($J43,\"}\",CHAR(160),EY$1))-FIND(CHAR(160),SUBSTITUTE($J43,\"{\",CHAR(160),EY$1))+1),\"\")","v":""},{"$f":"IFERROR(MID($J43,FIND(CHAR(160),SUBSTITUTE($J43,\"{\",CHAR(160),EZ$1)),FIND(CHAR(160),SUBSTITUTE($J43,\"}\",CHAR(160),EZ$1))-FIND(CHAR(160),SUBSTITUTE($J43,\"{\",CHAR(160),EZ$1))+1),\"\")","v":""},{"$f":"IFERROR(MID($J43,FIND(CHAR(160),SUBSTITUTE($J43,\"{\",CHAR(160),FA$1)),FIND(CHAR(160),SUBSTITUTE($J43,\"}\",CHAR(160),FA$1))-FIND(CHAR(160),SUBSTITUTE($J43,\"{\",CHAR(160),FA$1))+1),\"\")","v":""},{"$f":"IFERROR(MID($J43,FIND(CHAR(160),SUBSTITUTE($J43,\"{\",CHAR(160),FB$1)),FIND(CHAR(160),SUBSTITUTE($J43,\"}\",CHAR(160),FB$1))-FIND(CHAR(160),SUBSTITUTE($J43,\"{\",CHAR(160),FB$1))+1),\"\")","v":""},{"$f":"IFERROR(MID($O43,FIND(CHAR(160),SUBSTITUTE($O43,\"{\",CHAR(160),FC$1)),FIND(CHAR(160),SUBSTITUTE($O43,\"}\",CHAR(160),FC$1))-FIND(CHAR(160),SUBSTITUTE($O43,\"{\",CHAR(160),FC$1))+1),\"\")","v":"{Location}"},{"$f":"IFERROR(MID($O43,FIND(CHAR(160),SUBSTITUTE($O43,\"{\",CHAR(160),FD$1)),FIND(CHAR(160),SUBSTITUTE($O43,\"}\",CHAR(160),FD$1))-FIND(CHAR(160),SUBSTITUTE($O43,\"{\",CHAR(160),FD$1))+1),\"\")","v":"{Measure:Quantity}"},{"$f":"IFERROR(MID($O43,FIND(CHAR(160),SUBSTITUTE($O43,\"{\",CHAR(160),FE$1)),FIND(CHAR(160),SUBSTITUTE($O43,\"}\",CHAR(160),FE$1))-FIND(CHAR(160),SUBSTITUTE($O43,\"{\",CHAR(160),FE$1))+1),\"\")","v":""},{"$f":"IFERROR(MID($O43,FIND(CHAR(160),SUBSTITUTE($O43,\"{\",CHAR(160),FF$1)),FIND(CHAR(160),SUBSTITUTE($O43,\"}\",CHAR(160),FF$1))-FIND(CHAR(160),SUBSTITUTE($O43,\"{\",CHAR(160),FF$1))+1),\"\")","v":""},{"$f":"IFERROR(MID($O43,FIND(CHAR(160),SUBSTITUTE($O43,\"{\",CHAR(160),FG$1)),FIND(CHAR(160),SUBSTITUTE($O43,\"}\",CHAR(160),FG$1))-FIND(CHAR(160),SUBSTITUTE($O43,\"{\",CHAR(160),FG$1))+1),\"\")","v":""},{"$f":"IFERROR(MID($O43,FIND(CHAR(160),SUBSTITUTE($O43,\"{\",CHAR(160),FH$1)),FIND(CHAR(160),SUBSTITUTE($O43,\"}\",CHAR(160),FH$1))-FIND(CHAR(160),SUBSTITUTE($O43,\"{\",CHAR(160),FH$1))+1),\"\")","v":""},{"$f":"IFERROR(MID($O43,FIND(CHAR(160),SUBSTITUTE($O43,\"{\",CHAR(160),FI$1)),FIND(CHAR(160),SUBSTITUTE($O43,\"}\",CHAR(160),FI$1))-FIND(CHAR(160),SUBSTITUTE($O43,\"{\",CHAR(160),FI$1))+1),\"\")","v":""},{"$f":"IFERROR(MID($O43,FIND(CHAR(160),SUBSTITUTE($O43,\"{\",CHAR(160),FJ$1)),FIND(CHAR(160),SUBSTITUTE($O43,\"}\",CHAR(160),FJ$1))-FIND(CHAR(160),SUBSTITUTE($O43,\"{\",CHAR(160),FJ$1))+1),\"\")","v":""},{"$f":"IFERROR(MID($O43,FIND(CHAR(160),SUBSTITUTE($O43,\"{\",CHAR(160),FK$1)),FIND(CHAR(160),SUBSTITUTE($O43,\"}\",CHAR(160),FK$1))-FIND(CHAR(160),SUBSTITUTE($O43,\"{\",CHAR(160),FK$1))+1),\"\")","v":"{Measure:Quantity}"},{"$f":"IFERROR(MID($O43,FIND(CHAR(160),SUBSTITUTE($O43,\"{\",CHAR(160),FL$1)),FIND(CHAR(160),SUBSTITUTE($O43,\"}\",CHAR(160),FL$1))-FIND(CHAR(160),SUBSTITUTE($O43,\"{\",CHAR(160),FL$1))+1),\"\")","v":"{Fuel}"},{"$f":"IFERROR(MID($R43,FIND(CHAR(160),SUBSTITUTE($R43,\"{\",CHAR(160),FM$1)),FIND(CHAR(160),SUBSTITUTE($R43,\"}\",CHAR(160),FM$1))-FIND(CHAR(160),SUBSTITUTE($R43,\"{\",CHAR(160),FM$1))+1),\"\")","v":""},{"$f":"IFERROR(MID($R43,FIND(CHAR(160),SUBSTITUTE($R43,\"{\",CHAR(160),FN$1)),FIND(CHAR(160),SUBSTITUTE($R43,\"}\",CHAR(160),FN$1))-FIND(CHAR(160),SUBSTITUTE($R43,\"{\",CHAR(160),FN$1))+1),\"\")","v":""},{"$f":"IFERROR(MID($R43,FIND(CHAR(160),SUBSTITUTE($R43,\"{\",CHAR(160),FO$1)),FIND(CHAR(160),SUBSTITUTE($R43,\"}\",CHAR(160),FO$1))-FIND(CHAR(160),SUBSTITUTE($R43,\"{\",CHAR(160),FO$1))+1),\"\")","v":""},{"$f":"IFERROR(MID($R43,FIND(CHAR(160),SUBSTITUTE($R43,\"{\",CHAR(160),FP$1)),FIND(CHAR(160),SUBSTITUTE($R43,\"}\",CHAR(160),FP$1))-FIND(CHAR(160),SUBSTITUTE($R43,\"{\",CHAR(160),FP$1))+1),\"\")","v":""},{"$f":"IFERROR(MID($R43,FIND(CHAR(160),SUBSTITUTE($R43,\"{\",CHAR(160),FQ$1)),FIND(CHAR(160),SUBSTITUTE($R43,\"}\",CHAR(160),FQ$1))-FIND(CHAR(160),SUBSTITUTE($R43,\"{\",CHAR(160),FQ$1))+1),\"\")","v":""},{"$f":"IFERROR(MID($R43,FIND(CHAR(160),SUBSTITUTE($R43,\"{\",CHAR(160),FR$1)),FIND(CHAR(160),SUBSTITUTE($R43,\"}\",CHAR(160),FR$1))-FIND(CHAR(160),SUBSTITUTE($R43,\"{\",CHAR(160),FR$1))+1),\"\")","v":""},{"$f":"IFERROR(MID($R43,FIND(CHAR(160),SUBSTITUTE($R43,\"{\",CHAR(160),FS$1)),FIND(CHAR(160),SUBSTITUTE($R43,\"}\",CHAR(160),FS$1))-FIND(CHAR(160),SUBSTITUTE($R43,\"{\",CHAR(160),FS$1))+1),\"\")","v":""},{"$f":"IFERROR(MID($R43,FIND(CHAR(160),SUBSTITUTE($R43,\"{\",CHAR(160),FT$1)),FIND(CHAR(160),SUBSTITUTE($R43,\"}\",CHAR(160),FT$1))-FIND(CHAR(160),SUBSTITUTE($R43,\"{\",CHAR(160),FT$1))+1),\"\")","v":""},{"$f":"IFERROR(MID($R43,FIND(CHAR(160),SUBSTITUTE($R43,\"{\",CHAR(160),FU$1)),FIND(CHAR(160),SUBSTITUTE($R43,\"}\",CHAR(160),FU$1))-FIND(CHAR(160),SUBSTITUTE($R43,\"{\",CHAR(160),FU$1))+1),\"\")","v":""},{"$f":"IFERROR(MID($R43,FIND(CHAR(160),SUBSTITUTE($R43,\"{\",CHAR(160),FV$1)),FIND(CHAR(160),SUBSTITUTE($R43,\"}\",CHAR(160),FV$1))-FIND(CHAR(160),SUBSTITUTE($R43,\"{\",CHAR(160),FV$1))+1),\"\")","v":""},{"$f":"IFERROR(MID($U43,FIND(CHAR(160),SUBSTITUTE($U43,\"{\",CHAR(160),FW$1)),FIND(CHAR(160),SUBSTITUTE($U43,\"}\",CHAR(160),FW$1))-FIND(CHAR(160),SUBSTITUTE($U43,\"{\",CHAR(160),FW$1))+1),\"\")","v":""},{"$f":"IFERROR(MID($U43,FIND(CHAR(160),SUBSTITUTE($U43,\"{\",CHAR(160),FX$1)),FIND(CHAR(160),SUBSTITUTE($U43,\"}\",CHAR(160),FX$1))-FIND(CHAR(160),SUBSTITUTE($U43,\"{\",CHAR(160),FX$1))+1),\"\")","v":""},{"$f":"IFERROR(MID($U43,FIND(CHAR(160),SUBSTITUTE($U43,\"{\",CHAR(160),FY$1)),FIND(CHAR(160),SUBSTITUTE($U43,\"}\",CHAR(160),FY$1))-FIND(CHAR(160),SUBSTITUTE($U43,\"{\",CHAR(160),FY$1))+1),\"\")","v":""},{"$f":"IFERROR(MID($U43,FIND(CHAR(160),SUBSTITUTE($U43,\"{\",CHAR(160),FZ$1)),FIND(CHAR(160),SUBSTITUTE($U43,\"}\",CHAR(160),FZ$1))-FIND(CHAR(160),SUBSTITUTE($U43,\"{\",CHAR(160),FZ$1))+1),\"\")","v":""},{"$f":"IFERROR(MID($U43,FIND(CHAR(160),SUBSTITUTE($U43,\"{\",CHAR(160),GA$1)),FIND(CHAR(160),SUBSTITUTE($U43,\"}\",CHAR(160),GA$1))-FIND(CHAR(160),SUBSTITUTE($U43,\"{\",CHAR(160),GA$1))+1),\"\")","v":""},{"$f":"IFERROR(MID($U43,FIND(CHAR(160),SUBSTITUTE($U43,\"{\",CHAR(160),GB$1)),FIND(CHAR(160),SUBSTITUTE($U43,\"}\",CHAR(160),GB$1))-FIND(CHAR(160),SUBSTITUTE($U43,\"{\",CHAR(160),GB$1))+1),\"\")","v":""},{"$f":"IFERROR(MID($U43,FIND(CHAR(160),SUBSTITUTE($U43,\"{\",CHAR(160),GC$1)),FIND(CHAR(160),SUBSTITUTE($U43,\"}\",CHAR(160),GC$1))-FIND(CHAR(160),SUBSTITUTE($U43,\"{\",CHAR(160),GC$1))+1),\"\")","v":""},{"$f":"IFERROR(MID($U43,FIND(CHAR(160),SUBSTITUTE($U43,\"{\",CHAR(160),GD$1)),FIND(CHAR(160),SUBSTITUTE($U43,\"}\",CHAR(160),GD$1))-FIND(CHAR(160),SUBSTITUTE($U43,\"{\",CHAR(160),GD$1))+1),\"\")","v":""},{"$f":"IFERROR(MID($U43,FIND(CHAR(160),SUBSTITUTE($U43,\"{\",CHAR(160),GE$1)),FIND(CHAR(160),SUBSTITUTE($U43,\"}\",CHAR(160),GE$1))-FIND(CHAR(160),SUBSTITUTE($U43,\"{\",CHAR(160),GE$1))+1),\"\")","v":""},{"$f":"IFERROR(MID($U43,FIND(CHAR(160),SUBSTITUTE($U43,\"{\",CHAR(160),GF$1)),FIND(CHAR(160),SUBSTITUTE($U43,\"}\",CHAR(160),GF$1))-FIND(CHAR(160),SUBSTITUTE($U43,\"{\",CHAR(160),GF$1))+1),\"\")","v":""},{"$f":"IFERROR(MID($V43,FIND(CHAR(160),SUBSTITUTE($V43,\"{\",CHAR(160),GG$1)),FIND(CHAR(160),SUBSTITUTE($V43,\"}\",CHAR(160),GG$1))-FIND(CHAR(160),SUBSTITUTE($V43,\"{\",CHAR(160),GG$1))+1),\"\")","v":""},{"$f":"IFERROR(MID($V43,FIND(CHAR(160),SUBSTITUTE($V43,\"{\",CHAR(160),GH$1)),FIND(CHAR(160),SUBSTITUTE($V43,\"}\",CHAR(160),GH$1))-FIND(CHAR(160),SUBSTITUTE($V43,\"{\",CHAR(160),GH$1))+1),\"\")","v":""},{"$f":"IFERROR(MID($V43,FIND(CHAR(160),SUBSTITUTE($V43,\"{\",CHAR(160),GI$1)),FIND(CHAR(160),SUBSTITUTE($V43,\"}\",CHAR(160),GI$1))-FIND(CHAR(160),SUBSTITUTE($V43,\"{\",CHAR(160),GI$1))+1),\"\")","v":""},{"$f":"IFERROR(MID($V43,FIND(CHAR(160),SUBSTITUTE($V43,\"{\",CHAR(160),GJ$1)),FIND(CHAR(160),SUBSTITUTE($V43,\"}\",CHAR(160),GJ$1))-FIND(CHAR(160),SUBSTITUTE($V43,\"{\",CHAR(160),GJ$1))+1),\"\")","v":""},{"$f":"IFERROR(MID($V43,FIND(CHAR(160),SUBSTITUTE($V43,\"{\",CHAR(160),GK$1)),FIND(CHAR(160),SUBSTITUTE($V43,\"}\",CHAR(160),GK$1))-FIND(CHAR(160),SUBSTITUTE($V43,\"{\",CHAR(160),GK$1))+1),\"\")","v":""},{"$f":"IFERROR(MID($V43,FIND(CHAR(160),SUBSTITUTE($V43,\"{\",CHAR(160),GL$1)),FIND(CHAR(160),SUBSTITUTE($V43,\"}\",CHAR(160),GL$1))-FIND(CHAR(160),SUBSTITUTE($V43,\"{\",CHAR(160),GL$1))+1),\"\")","v":""},{"$f":"IFERROR(MID($V43,FIND(CHAR(160),SUBSTITUTE($V43,\"{\",CHAR(160),GM$1)),FIND(CHAR(160),SUBSTITUTE($V43,\"}\",CHAR(160),GM$1))-FIND(CHAR(160),SUBSTITUTE($V43,\"{\",CHAR(160),GM$1))+1),\"\")","v":""},{"$f":"IFERROR(MID($V43,FIND(CHAR(160),SUBSTITUTE($V43,\"{\",CHAR(160),GN$1)),FIND(CHAR(160),SUBSTITUTE($V43,\"}\",CHAR(160),GN$1))-FIND(CHAR(160),SUBSTITUTE($V43,\"{\",CHAR(160),GN$1))+1),\"\")","v":""},{"$f":"IFERROR(MID($V43,FIND(CHAR(160),SUBSTITUTE($V43,\"{\",CHAR(160),GO$1)),FIND(CHAR(160),SUBSTITUTE($V43,\"}\",CHAR(160),GO$1))-FIND(CHAR(160),SUBSTITUTE($V43,\"{\",CHAR(160),GO$1))+1),\"\")","v":""},{"$f":"IFERROR(MID($V43,FIND(CHAR(160),SUBSTITUTE($V43,\"{\",CHAR(160),GP$1)),FIND(CHAR(160),SUBSTITUTE($V43,\"}\",CHAR(160),GP$1))-FIND(CHAR(160),SUBSTITUTE($V43,\"{\",CHAR(160),GP$1))+1),\"\")","v":""},{"$f":"IFERROR(MID($W43,FIND(CHAR(160),SUBSTITUTE($W43,\"{\",CHAR(160),GQ$1)),FIND(CHAR(160),SUBSTITUTE($W43,\"}\",CHAR(160),GQ$1))-FIND(CHAR(160),SUBSTITUTE($W43,\"{\",CHAR(160),GQ$1))+1),\"\")","v":"{Location}"},{"$f":"IFERROR(MID($W43,FIND(CHAR(160),SUBSTITUTE($W43,\"{\",CHAR(160),GR$1)),FIND(CHAR(160),SUBSTITUTE($W43,\"}\",CHAR(160),GR$1))-FIND(CHAR(160),SUBSTITUTE($W43,\"{\",CHAR(160),GR$1))+1),\"\")","v":"{Measure:Quantity}"},{"$f":"IFERROR(MID($W43,FIND(CHAR(160),SUBSTITUTE($W43,\"{\",CHAR(160),GS$1)),FIND(CHAR(160),SUBSTITUTE($W43,\"}\",CHAR(160),GS$1))-FIND(CHAR(160),SUBSTITUTE($W43,\"{\",CHAR(160),GS$1))+1),\"\")","v":""},{"$f":"IFERROR(MID($W43,FIND(CHAR(160),SUBSTITUTE($W43,\"{\",CHAR(160),GT$1)),FIND(CHAR(160),SUBSTITUTE($W43,\"}\",CHAR(160),GT$1))-FIND(CHAR(160),SUBSTITUTE($W43,\"{\",CHAR(160),GT$1))+1),\"\")","v":""},{"$f":"IFERROR(MID($W43,FIND(CHAR(160),SUBSTITUTE($W43,\"{\",CHAR(160),GU$1)),FIND(CHAR(160),SUBSTITUTE($W43,\"}\",CHAR(160),GU$1))-FIND(CHAR(160),SUBSTITUTE($W43,\"{\",CHAR(160),GU$1))+1),\"\")","v":""},{"$f":"IFERROR(MID($W43,FIND(CHAR(160),SUBSTITUTE($W43,\"{\",CHAR(160),GV$1)),FIND(CHAR(160),SUBSTITUTE($W43,\"}\",CHAR(160),GV$1))-FIND(CHAR(160),SUBSTITUTE($W43,\"{\",CHAR(160),GV$1))+1),\"\")","v":""},{"$f":"IFERROR(MID($W43,FIND(CHAR(160),SUBSTITUTE($W43,\"{\",CHAR(160),GW$1)),FIND(CHAR(160),SUBSTITUTE($W43,\"}\",CHAR(160),GW$1))-FIND(CHAR(160),SUBSTITUTE($W43,\"{\",CHAR(160),GW$1))+1),\"\")","v":""},{"$f":"IFERROR(MID($W43,FIND(CHAR(160),SUBSTITUTE($W43,\"{\",CHAR(160),GX$1)),FIND(CHAR(160),SUBSTITUTE($W43,\"}\",CHAR(160),GX$1))-FIND(CHAR(160),SUBSTITUTE($W43,\"{\",CHAR(160),GX$1))+1),\"\")","v":""},{"$f":"IFERROR(MID($W43,FIND(CHAR(160),SUBSTITUTE($W43,\"{\",CHAR(160),GY$1)),FIND(CHAR(160),SUBSTITUTE($W43,\"}\",CHAR(160),GY$1))-FIND(CHAR(160),SUBSTITUTE($W43,\"{\",CHAR(160),GY$1))+1),\"\")","v":"{Measure:Quantity}"},{"$f":"IFERROR(MID($W43,FIND(CHAR(160),SUBSTITUTE($W43,\"{\",CHAR(160),GZ$1)),FIND(CHAR(160),SUBSTITUTE($W43,\"}\",CHAR(160),GZ$1))-FIND(CHAR(160),SUBSTITUTE($W43,\"{\",CHAR(160),GZ$1))+1),\"\")","v":"{Fuel}"},{"$f":"IFERROR(MID($X43,FIND(CHAR(160),SUBSTITUTE($X43,\"{\",CHAR(160),HA$1)),FIND(CHAR(160),SUBSTITUTE($X43,\"}\",CHAR(160),HA$1))-FIND(CHAR(160),SUBSTITUTE($X43,\"{\",CHAR(160),HA$1))+1),\"\")","v":"{Location}"},{"$f":"IFERROR(MID($X43,FIND(CHAR(160),SUBSTITUTE($X43,\"{\",CHAR(160),HB$1)),FIND(CHAR(160),SUBSTITUTE($X43,\"}\",CHAR(160),HB$1))-FIND(CHAR(160),SUBSTITUTE($X43,\"{\",CHAR(160),HB$1))+1),\"\")","v":"{Measure:Quantity}"},{"$f":"IFERROR(MID($X43,FIND(CHAR(160),SUBSTITUTE($X43,\"{\",CHAR(160),HC$1)),FIND(CHAR(160),SUBSTITUTE($X43,\"}\",CHAR(160),HC$1))-FIND(CHAR(160),SUBSTITUTE($X43,\"{\",CHAR(160),HC$1))+1),\"\")","v":""},{"$f":"IFERROR(MID($X43,FIND(CHAR(160),SUBSTITUTE($X43,\"{\",CHAR(160),HD$1)),FIND(CHAR(160),SUBSTITUTE($X43,\"}\",CHAR(160),HD$1))-FIND(CHAR(160),SUBSTITUTE($X43,\"{\",CHAR(160),HD$1))+1),\"\")","v":""},{"$f":"IFERROR(MID($X43,FIND(CHAR(160),SUBSTITUTE($X43,\"{\",CHAR(160),HE$1)),FIND(CHAR(160),SUBSTITUTE($X43,\"}\",CHAR(160),HE$1))-FIND(CHAR(160),SUBSTITUTE($X43,\"{\",CHAR(160),HE$1))+1),\"\")","v":""},{"$f":"IFERROR(MID($X43,FIND(CHAR(160),SUBSTITUTE($X43,\"{\",CHAR(160),HF$1)),FIND(CHAR(160),SUBSTITUTE($X43,\"}\",CHAR(160),HF$1))-FIND(CHAR(160),SUBSTITUTE($X43,\"{\",CHAR(160),HF$1))+1),\"\")","v":""},{"$f":"IFERROR(MID($X43,FIND(CHAR(160),SUBSTITUTE($X43,\"{\",CHAR(160),HG$1)),FIND(CHAR(160),SUBSTITUTE($X43,\"}\",CHAR(160),HG$1))-FIND(CHAR(160),SUBSTITUTE($X43,\"{\",CHAR(160),HG$1))+1),\"\")","v":""},{"$f":"IFERROR(MID($X43,FIND(CHAR(160),SUBSTITUTE($X43,\"{\",CHAR(160),HH$1)),FIND(CHAR(160),SUBSTITUTE($X43,\"}\",CHAR(160),HH$1))-FIND(CHAR(160),SUBSTITUTE($X43,\"{\",CHAR(160),HH$1))+1),\"\")","v":""},{"$f":"IFERROR(MID($X43,FIND(CHAR(160),SUBSTITUTE($X43,\"{\",CHAR(160),HI$1)),FIND(CHAR(160),SUBSTITUTE($X43,\"}\",CHAR(160),HI$1))-FIND(CHAR(160),SUBSTITUTE($X43,\"{\",CHAR(160),HI$1))+1),\"\")","v":"{Measure:Quantity}"},{"$f":"IFERROR(MID($X43,FIND(CHAR(160),SUBSTITUTE($X43,\"{\",CHAR(160),HJ$1)),FIND(CHAR(160),SUBSTITUTE($X43,\"}\",CHAR(160),HJ$1))-FIND(CHAR(160),SUBSTITUTE($X43,\"{\",CHAR(160),HJ$1))+1),\"\")","v":"{Fuel}"},{"$f":"IFERROR(MID($Y43,FIND(CHAR(160),SUBSTITUTE($Y43,\"{\",CHAR(160),HK$1)),FIND(CHAR(160),SUBSTITUTE($Y43,\"}\",CHAR(160),HK$1))-FIND(CHAR(160),SUBSTITUTE($Y43,\"{\",CHAR(160),HK$1))+1),\"\")","v":"{Location}"},{"$f":"IFERROR(MID($Y43,FIND(CHAR(160),SUBSTITUTE($Y43,\"{\",CHAR(160),HL$1)),FIND(CHAR(160),SUBSTITUTE($Y43,\"}\",CHAR(160),HL$1))-FIND(CHAR(160),SUBSTITUTE($Y43,\"{\",CHAR(160),HL$1))+1),\"\")","v":"{Measure:Quantity}"},{"$f":"IFERROR(MID($Y43,FIND(CHAR(160),SUBSTITUTE($Y43,\"{\",CHAR(160),HM$1)),FIND(CHAR(160),SUBSTITUTE($Y43,\"}\",CHAR(160),HM$1))-FIND(CHAR(160),SUBSTITUTE($Y43,\"{\",CHAR(160),HM$1))+1),\"\")","v":""},{"$f":"IFERROR(MID($Y43,FIND(CHAR(160),SUBSTITUTE($Y43,\"{\",CHAR(160),HN$1)),FIND(CHAR(160),SUBSTITUTE($Y43,\"}\",CHAR(160),HN$1))-FIND(CHAR(160),SUBSTITUTE($Y43,\"{\",CHAR(160),HN$1))+1),\"\")","v":""},{"$f":"IFERROR(MID($Y43,FIND(CHAR(160),SUBSTITUTE($Y43,\"{\",CHAR(160),HO$1)),FIND(CHAR(160),SUBSTITUTE($Y43,\"}\",CHAR(160),HO$1))-FIND(CHAR(160),SUBSTITUTE($Y43,\"{\",CHAR(160),HO$1))+1),\"\")","v":""},{"$f":"IFERROR(MID($Y43,FIND(CHAR(160),SUBSTITUTE($Y43,\"{\",CHAR(160),HP$1)),FIND(CHAR(160),SUBSTITUTE($Y43,\"}\",CHAR(160),HP$1))-FIND(CHAR(160),SUBSTITUTE($Y43,\"{\",CHAR(160),HP$1))+1),\"\")","v":""},{"$f":"IFERROR(MID($Y43,FIND(CHAR(160),SUBSTITUTE($Y43,\"{\",CHAR(160),HQ$1)),FIND(CHAR(160),SUBSTITUTE($Y43,\"}\",CHAR(160),HQ$1))-FIND(CHAR(160),SUBSTITUTE($Y43,\"{\",CHAR(160),HQ$1))+1),\"\")","v":""},{"$f":"IFERROR(MID($Y43,FIND(CHAR(160),SUBSTITUTE($Y43,\"{\",CHAR(160),HR$1)),FIND(CHAR(160),SUBSTITUTE($Y43,\"}\",CHAR(160),HR$1))-FIND(CHAR(160),SUBSTITUTE($Y43,\"{\",CHAR(160),HR$1))+1),\"\")","v":""},{"$f":"IFERROR(MID($Y43,FIND(CHAR(160),SUBSTITUTE($Y43,\"{\",CHAR(160),HS$1)),FIND(CHAR(160),SUBSTITUTE($Y43,\"}\",CHAR(160),HS$1))-FIND(CHAR(160),SUBSTITUTE($Y43,\"{\",CHAR(160),HS$1))+1),\"\")","v":"{Measure:Quantity}"},{"$f":"IFERROR(MID($Y43,FIND(CHAR(160),SUBSTITUTE($Y43,\"{\",CHAR(160),HT$1)),FIND(CHAR(160),SUBSTITUTE($Y43,\"}\",CHAR(160),HT$1))-FIND(CHAR(160),SUBSTITUTE($Y43,\"{\",CHAR(160),HT$1))+1),\"\")","v":"{Fuel}"},{"$f":"IFERROR(MID($Z43,FIND(CHAR(160),SUBSTITUTE($Z43,\"{\",CHAR(160),HU$1)),FIND(CHAR(160),SUBSTITUTE($Z43,\"}\",CHAR(160),HU$1))-FIND(CHAR(160),SUBSTITUTE($Z43,\"{\",CHAR(160),HU$1))+1),\"\")","v":""},{"$f":"IFERROR(MID($Z43,FIND(CHAR(160),SUBSTITUTE($Z43,\"{\",CHAR(160),HV$1)),FIND(CHAR(160),SUBSTITUTE($Z43,\"}\",CHAR(160),HV$1))-FIND(CHAR(160),SUBSTITUTE($Z43,\"{\",CHAR(160),HV$1))+1),\"\")","v":""},{"$f":"IFERROR(MID($Z43,FIND(CHAR(160),SUBSTITUTE($Z43,\"{\",CHAR(160),HW$1)),FIND(CHAR(160),SUBSTITUTE($Z43,\"}\",CHAR(160),HW$1))-FIND(CHAR(160),SUBSTITUTE($Z43,\"{\",CHAR(160),HW$1))+1),\"\")","v":""},{"$f":"IFERROR(MID($Z43,FIND(CHAR(160),SUBSTITUTE($Z43,\"{\",CHAR(160),HX$1)),FIND(CHAR(160),SUBSTITUTE($Z43,\"}\",CHAR(160),HX$1))-FIND(CHAR(160),SUBSTITUTE($Z43,\"{\",CHAR(160),HX$1))+1),\"\")","v":""},{"$f":"IFERROR(MID($Z43,FIND(CHAR(160),SUBSTITUTE($Z43,\"{\",CHAR(160),HY$1)),FIND(CHAR(160),SUBSTITUTE($Z43,\"}\",CHAR(160),HY$1))-FIND(CHAR(160),SUBSTITUTE($Z43,\"{\",CHAR(160),HY$1))+1),\"\")","v":""},{"$f":"IFERROR(MID($Z43,FIND(CHAR(160),SUBSTITUTE($Z43,\"{\",CHAR(160),HZ$1)),FIND(CHAR(160),SUBSTITUTE($Z43,\"}\",CHAR(160),HZ$1))-FIND(CHAR(160),SUBSTITUTE($Z43,\"{\",CHAR(160),HZ$1))+1),\"\")","v":""},{"$f":"IFERROR(MID($Z43,FIND(CHAR(160),SUBSTITUTE($Z43,\"{\",CHAR(160),IA$1)),FIND(CHAR(160),SUBSTITUTE($Z43,\"}\",CHAR(160),IA$1))-FIND(CHAR(160),SUBSTITUTE($Z43,\"{\",CHAR(160),IA$1))+1),\"\")","v":""},{"$f":"IFERROR(MID($Z43,FIND(CHAR(160),SUBSTITUTE($Z43,\"{\",CHAR(160),IB$1)),FIND(CHAR(160),SUBSTITUTE($Z43,\"}\",CHAR(160),IB$1))-FIND(CHAR(160),SUBSTITUTE($Z43,\"{\",CHAR(160),IB$1))+1),\"\")","v":""},{"$f":"IFERROR(MID($Z43,FIND(CHAR(160),SUBSTITUTE($Z43,\"{\",CHAR(160),IC$1)),FIND(CHAR(160),SUBSTITUTE($Z43,\"}\",CHAR(160),IC$1))-FIND(CHAR(160),SUBSTITUTE($Z43,\"{\",CHAR(160),IC$1))+1),\"\")","v":""},{"$f":"IFERROR(MID($Z43,FIND(CHAR(160),SUBSTITUTE($Z43,\"{\",CHAR(160),ID$1)),FIND(CHAR(160),SUBSTITUTE($Z43,\"}\",CHAR(160),ID$1))-FIND(CHAR(160),SUBSTITUTE($Z43,\"{\",CHAR(160),ID$1))+1),\"\")","v":""},{"$f":"IFERROR(MID($AA43,FIND(CHAR(160),SUBSTITUTE($AA43,\"{\",CHAR(160),IE$1)),FIND(CHAR(160),SUBSTITUTE($AA43,\"}\",CHAR(160),IE$1))-FIND(CHAR(160),SUBSTITUTE($AA43,\"{\",CHAR(160),IE$1))+1),\"\")","v":""},{"$f":"IFERROR(MID($AA43,FIND(CHAR(160),SUBSTITUTE($AA43,\"{\",CHAR(160),IF$1)),FIND(CHAR(160),SUBSTITUTE($AA43,\"}\",CHAR(160),IF$1))-FIND(CHAR(160),SUBSTITUTE($AA43,\"{\",CHAR(160),IF$1))+1),\"\")","v":""},{"$f":"IFERROR(MID($AA43,FIND(CHAR(160),SUBSTITUTE($AA43,\"{\",CHAR(160),IG$1)),FIND(CHAR(160),SUBSTITUTE($AA43,\"}\",CHAR(160),IG$1))-FIND(CHAR(160),SUBSTITUTE($AA43,\"{\",CHAR(160),IG$1))+1),\"\")","v":""},{"$f":"IFERROR(MID($AA43,FIND(CHAR(160),SUBSTITUTE($AA43,\"{\",CHAR(160),IH$1)),FIND(CHAR(160),SUBSTITUTE($AA43,\"}\",CHAR(160),IH$1))-FIND(CHAR(160),SUBSTITUTE($AA43,\"{\",CHAR(160),IH$1))+1),\"\")","v":""},{"$f":"IFERROR(MID($AA43,FIND(CHAR(160),SUBSTITUTE($AA43,\"{\",CHAR(160),II$1)),FIND(CHAR(160),SUBSTITUTE($AA43,\"}\",CHAR(160),II$1))-FIND(CHAR(160),SUBSTITUTE($AA43,\"{\",CHAR(160),II$1))+1),\"\")","v":""},{"$f":"IFERROR(MID($AA43,FIND(CHAR(160),SUBSTITUTE($AA43,\"{\",CHAR(160),IJ$1)),FIND(CHAR(160),SUBSTITUTE($AA43,\"}\",CHAR(160),IJ$1))-FIND(CHAR(160),SUBSTITUTE($AA43,\"{\",CHAR(160),IJ$1))+1),\"\")","v":""},{"$f":"IFERROR(MID($AA43,FIND(CHAR(160),SUBSTITUTE($AA43,\"{\",CHAR(160),IK$1)),FIND(CHAR(160),SUBSTITUTE($AA43,\"}\",CHAR(160),IK$1))-FIND(CHAR(160),SUBSTITUTE($AA43,\"{\",CHAR(160),IK$1))+1),\"\")","v":""},{"$f":"IFERROR(MID($AA43,FIND(CHAR(160),SUBSTITUTE($AA43,\"{\",CHAR(160),IL$1)),FIND(CHAR(160),SUBSTITUTE($AA43,\"}\",CHAR(160),IL$1))-FIND(CHAR(160),SUBSTITUTE($AA43,\"{\",CHAR(160),IL$1))+1),\"\")","v":""},{"$f":"IFERROR(MID($AA43,FIND(CHAR(160),SUBSTITUTE($AA43,\"{\",CHAR(160),IM$1)),FIND(CHAR(160),SUBSTITUTE($AA43,\"}\",CHAR(160),IM$1))-FIND(CHAR(160),SUBSTITUTE($AA43,\"{\",CHAR(160),IM$1))+1),\"\")","v":""},{"$f":"IFERROR(MID($AA43,FIND(CHAR(160),SUBSTITUTE($AA43,\"{\",CHAR(160),IN$1)),FIND(CHAR(160),SUBSTITUTE($AA43,\"}\",CHAR(160),IN$1))-FIND(CHAR(160),SUBSTITUTE($AA43,\"{\",CHAR(160),IN$1))+1),\"\")","v":""},{"$f":"IFERROR(MID($AB43,FIND(CHAR(160),SUBSTITUTE($AB43,\"{\",CHAR(160),IO$1)),FIND(CHAR(160),SUBSTITUTE($AB43,\"}\",CHAR(160),IO$1))-FIND(CHAR(160),SUBSTITUTE($AB43,\"{\",CHAR(160),IO$1))+1),\"\")","v":"{Measure:Quantity}"},{"$f":"IFERROR(MID($AB43,FIND(CHAR(160),SUBSTITUTE($AB43,\"{\",CHAR(160),IP$1)),FIND(CHAR(160),SUBSTITUTE($AB43,\"}\",CHAR(160),IP$1))-FIND(CHAR(160),SUBSTITUTE($AB43,\"{\",CHAR(160),IP$1))+1),\"\")","v":""},{"$f":"IFERROR(MID($AB43,FIND(CHAR(160),SUBSTITUTE($AB43,\"{\",CHAR(160),IQ$1)),FIND(CHAR(160),SUBSTITUTE($AB43,\"}\",CHAR(160),IQ$1))-FIND(CHAR(160),SUBSTITUTE($AB43,\"{\",CHAR(160),IQ$1))+1),\"\")","v":""},{"$f":"IFERROR(MID($AB43,FIND(CHAR(160),SUBSTITUTE($AB43,\"{\",CHAR(160),IR$1)),FIND(CHAR(160),SUBSTITUTE($AB43,\"}\",CHAR(160),IR$1))-FIND(CHAR(160),SUBSTITUTE($AB43,\"{\",CHAR(160),IR$1))+1),\"\")","v":""},{"$f":"IFERROR(MID($AB43,FIND(CHAR(160),SUBSTITUTE($AB43,\"{\",CHAR(160),IS$1)),FIND(CHAR(160),SUBSTITUTE($AB43,\"}\",CHAR(160),IS$1))-FIND(CHAR(160),SUBSTITUTE($AB43,\"{\",CHAR(160),IS$1))+1),\"\")","v":""},{"$f":"IFERROR(MID($AB43,FIND(CHAR(160),SUBSTITUTE($AB43,\"{\",CHAR(160),IT$1)),FIND(CHAR(160),SUBSTITUTE($AB43,\"}\",CHAR(160),IT$1))-FIND(CHAR(160),SUBSTITUTE($AB43,\"{\",CHAR(160),IT$1))+1),\"\")","v":""},{"$f":"IFERROR(MID($AB43,FIND(CHAR(160),SUBSTITUTE($AB43,\"{\",CHAR(160),IU$1)),FIND(CHAR(160),SUBSTITUTE($AB43,\"}\",CHAR(160),IU$1))-FIND(CHAR(160),SUBSTITUTE($AB43,\"{\",CHAR(160),IU$1))+1),\"\")","v":""},{"$f":"IFERROR(MID($AB43,FIND(CHAR(160),SUBSTITUTE($AB43,\"{\",CHAR(160),IV$1)),FIND(CHAR(160),SUBSTITUTE($AB43,\"}\",CHAR(160),IV$1))-FIND(CHAR(160),SUBSTITUTE($AB43,\"{\",CHAR(160),IV$1))+1),\"\")","v":""},{"$f":"IFERROR(MID($AB43,FIND(CHAR(160),SUBSTITUTE($AB43,\"{\",CHAR(160),IW$1)),FIND(CHAR(160),SUBSTITUTE($AB43,\"}\",CHAR(160),IW$1))-FIND(CHAR(160),SUBSTITUTE($AB43,\"{\",CHAR(160),IW$1))+1),\"\")","v":""},{"$f":"IFERROR(MID($AB43,FIND(CHAR(160),SUBSTITUTE($AB43,\"{\",CHAR(160),IX$1)),FIND(CHAR(160),SUBSTITUTE($AB43,\"}\",CHAR(160),IX$1))-FIND(CHAR(160),SUBSTITUTE($AB43,\"{\",CHAR(160),IX$1))+1),\"\")","v":""},null,{"$f":"10-COUNTIF(DU43:ED43,\"\")","v":3}]
["C&I HVAC - Electric","Demand Control Ventilation - Existing Equipment Install","DCV - DCVE","2021-07-01","2021-09-09","Per Measure",2100,0,"Per Measure",500,0,"2021-07-01","2022-06-30","Calculated","{Measure:Quantity} * {Area Sq. Ft} * {Space Type} * 0.000433 * (12/ {EER}) * 719",1E-4,null,"{Measure:Quantity} * {Area Sq. Ft} * {Space Type} * 0.000433 * 12/ {EER}",null,null,"{Measure:Quantity} * {Area Sq. Ft} * {Space Type} * 0.000433 * 12/ {EER} * {Factor:WinterCF}","{Measure:Quantity} * {Area Sq. Ft} * {Space Type} * 0.000433 * 12/ {EER} * {Factor:SummerCF}",null,null,null,null,null,null,"2021-05-25","2022-06-30",10,1.4999999999999999E-2,0.77700000000000002,0.17,0.03,0.62,0.18,1,1.1220000000000001,1,0.52,1.6E-2,null,{"$f":"DU44","v":"{Space Type}"},1,{"$f":"DV44","v":"{EER}"},8400,{"$f":"DW44","v":"{Measure:Quantity}"},0.37,{"$f":"DX44","v":"{Area Sq. Ft}"},10,{"$f":"DY44","v":""},null,{"$f":"DZ44","v":""},null,{"$f":"EA44","v":""},null,{"$f":"EB44","v":""},null,{"$f":"EC44","v":""},null,{"$f":"ED44","v":""},null,{"$f":"AS44 * AU44 * AW44 * 0.000433 * (12/ AY44) * 719","v":1161.1251791999998},{"$f":"0.0001","v":1E-4},0,{"$f":"AS44 * AU44 * AW44 * 0.000433 * 12/ AY44","v":1.6149168},0,0,{"$f":"AS44 * AU44 * AW44 * 0.000433 * 12/ AY44 * AF44","v":2.4223752000000001E-2},{"$f":"AS44 * AU44 * AW44 * 0.000433 * 12/ AY44 * AG44","v":1.2547903536},0,0,0,0,0,0,null,"Res","Default DR",{"$f":"Benefits(BL44,BR44,BS44,BT44,BU44,BV44,BW44,BX44,BY44,BZ44,AE44,AH44,AI44,AJ44,AK44,AL44,AM44,AN44,AO44,AP44,CA44,CB44)","v":1178.8795562812609},1738.2170490382946,0,0,0,0,0,0,0,{"$f":"SUMPRODUCT(CC44:CK44,--(CC44:CK44>0))","v":2917.0966053195552},{"$f":"-SUMPRODUCT(CC44:CK44,--(CC44:CK44<0))","v":0},null,{"$f":"2100","v":2100},null,null,{"$f":"CM44+CO44","v":2100},{"$f":"IF(NetOrGross=\"Net\",(1-AO44+AP44),1)","v":1},{"$f":"(SUMPRODUCT(CC44:CJ44,--(CC44:CJ44>0))+CN44)*CS44/((-SUMPRODUCT(CC44:CJ44,--(CC44:CJ44<0))+MAX(CO44,CV44)+CP44+CQ44)*CS44+IF(FRIncentives=\"Yes\",CV44*(1-CS44),0))","v":1.3890936215807406},0,{"$f":"500","v":500},null,"Electric","y",0,{"$f":"IF(F44=\"Manual Entry\",\"Manual\",IF(G44=\"\",0,\"X=\"&SUBSTITUTE(SUBSTITUTE(SUBSTITUTE(SUBSTITUTE(SUBSTITUTE(SUBSTITUTE(SUBSTITUTE(SUBSTITUTE(SUBSTITUTE(SUBSTITUTE(SUBSTITUTE(SUBSTITUTE(G44,$ED44,$ED$2&ROW($ED44)),$EC44,$EC$2&ROW($EC44)),$EB44,$EB$2&ROW($EB44)),$EA44,$EA$2&ROW($EA44)),$DZ44,$DZ$2&ROW($DZ44)),$DY44,$DY$2&ROW($DY44)),$DX44,$DX$2&ROW($DX44)),$DW44,$DW$2&ROW($DW44)),$DV44,$DV$2&ROW($DV44)),$DU44,$DU$2&ROW($DU44)),$DT44,$DT$2&ROW($DT44)),$DS44,$DS$2&ROW($DS44))))","v":"X=2100"},{"$f":"IF(I44=\"Manual Entry\",\"Manual\",IF(J44=\"\",0,\"X=\"&SUBSTITUTE(SUBSTITUTE(SUBSTITUTE(SUBSTITUTE(SUBSTITUTE(SUBSTITUTE(SUBSTITUTE(SUBSTITUTE(SUBSTITUTE(SUBSTITUTE(SUBSTITUTE(SUBSTITUTE(J44,$ED44,$ED$2&ROW($ED44)),$EC44,$EC$2&ROW($EC44)),$EB44,$EB$2&ROW($EB44)),$EA44,$EA$2&ROW($EA44)),$DZ44,$DZ$2&ROW($DZ44)),$DY44,$DY$2&ROW($DY44)),$DX44,$DX$2&ROW($DX44)),$DW44,$DW$2&ROW($DW44)),$DV44,$DV$2&ROW($DV44)),$DU44,$DU$2&ROW($DU44)),$DT44,$DT$2&ROW($DT44)),$DS44,$DS$2&ROW($DS44))))","v":"X=500"},{"$f":"IF(O44=\"\",0,\"X=\"&SUBSTITUTE(SUBSTITUTE(SUBSTITUTE(SUBSTITUTE(SUBSTITUTE(SUBSTITUTE(SUBSTITUTE(SUBSTITUTE(SUBSTITUTE(SUBSTITUTE(SUBSTITUTE(SUBSTITUTE(O44,$ED44,$ED$2&ROW($ED44)),$EC44,$EC$2&ROW($EC44)),$EB44,$EB$2&ROW($EB44)),$EA44,$EA$2&ROW($EA44)),$DZ44,$DZ$2&ROW($DZ44)),$DY44,$DY$2&ROW($DY44)),$DX44,$DX$2&ROW($DX44)),$DW44,$DW$2&ROW($DW44)),$DV44,$DV$2&ROW($DV44)),$DU44,$DU$2&ROW($DU44)),$DT44,$DT$2&ROW($DT44)),$DS44,$DS$2&ROW($DS44)))","v":"X=AW44 * AY44 * AS44 * 0.000433 * (12/ AU44) * 719"},{"$f":"IF(P44=\"\",0,\"X=\"&SUBSTITUTE(SUBSTITUTE(SUBSTITUTE(SUBSTITUTE(SUBSTITUTE(SUBSTITUTE(SUBSTITUTE(SUBSTITUTE(SUBSTITUTE(SUBSTITUTE(SUBSTITUTE(SUBSTITUTE(P44,$ED44,$ED$2&ROW($ED44)),$EC44,$EC$2&ROW($EC44)),$EB44,$EB$2&ROW($EB44)),$EA44,$EA$2&ROW($EA44)),$DZ44,$DZ$2&ROW($DZ44)),$DY44,$DY$2&ROW($DY44)),$DX44,$DX$2&ROW($DX44)),$DW44,$DW$2&ROW($DW44)),$DV44,$DV$2&ROW($DV44)),$DU44,$DU$2&ROW($DU44)),$DT44,$DT$2&ROW($DT44)),$DS44,$DS$2&ROW($DS44)))","v":"X=0.0001"},{"$f":"IF(Q44=\"\",0,\"X=\"&SUBSTITUTE(SUBSTITUTE(SUBSTITUTE(SUBSTITUTE(SUBSTITUTE(SUBSTITUTE(SUBSTITUTE(SUBSTITUTE(SUBSTITUTE(SUBSTITUTE(SUBSTITUTE(SUBSTITUTE(Q44,$ED44,$ED$2&ROW($ED44)),$EC44,$EC$2&ROW($EC44)),$EB44,$EB$2&ROW($EB44)),$EA44,$EA$2&ROW($EA44)),$DZ44,$DZ$2&ROW($DZ44)),$DY44,$DY$2&ROW($DY44)),$DX44,$DX$2&ROW($DX44)),$DW44,$DW$2&ROW($DW44)),$DV44,$DV$2&ROW($DV44)),$DU44,$DU$2&ROW($DU44)),$DT44,$DT$2&ROW($DT44)),$DS44,$DS$2&ROW($DS44)))","v":0},{"$f":"IF(R44=\"\",0,\"X=\"&SUBSTITUTE(SUBSTITUTE(SUBSTITUTE(SUBSTITUTE(SUBSTITUTE(SUBSTITUTE(SUBSTITUTE(SUBSTITUTE(SUBSTITUTE(SUBSTITUTE(SUBSTITUTE(SUBSTITUTE(R44,$ED44,$ED$2&ROW($ED44)),$EC44,$EC$2&ROW($EC44)),$EB44,$EB$2&ROW($EB44)),$EA44,$EA$2&ROW($EA44)),$DZ44,$DZ$2&ROW($DZ44)),$DY44,$DY$2&ROW($DY44)),$DX44,$DX$2&ROW($DX44)),$DW44,$DW$2&ROW($DW44)),$DV44,$DV$2&ROW($DV44)),$DU44,$DU$2&ROW($DU44)),$DT44,$DT$2&ROW($DT44)),$DS44,$DS$2&ROW($DS44)))","v":"X=AW44 * AY44 * AS44 * 0.000433 * 12/ AU44"},{"$f":"IF(S44=\"\",0,\"X=\"&SUBSTITUTE(SUBSTITUTE(SUBSTITUTE(SUBSTITUTE(SUBSTITUTE(SUBSTITUTE(SUBSTITUTE(SUBSTITUTE(SUBSTITUTE(SUBSTITUTE(SUBSTITUTE(SUBSTITUTE(S44,$ED44,$ED$2&ROW($ED44)),$EC44,$EC$2&ROW($EC44)),$EB44,$EB$2&ROW($EB44)),$EA44,$EA$2&ROW($EA44)),$DZ44,$DZ$2&ROW($DZ44)),$DY44,$DY$2&ROW($DY44)),$DX44,$DX$2&ROW($DX44)),$DW44,$DW$2&ROW($DW44)),$DV44,$DV$2&ROW($DV44)),$DU44,$DU$2&ROW($DU44)),$DT44,$DT$2&ROW($DT44)),$DS44,$DS$2&ROW($DS44)))","v":0},{"$f":"IF(T44=\"\",0,\"X=\"&SUBSTITUTE(SUBSTITUTE(SUBSTITUTE(SUBSTITUTE(SUBSTITUTE(SUBSTITUTE(SUBSTITUTE(SUBSTITUTE(SUBSTITUTE(SUBSTITUTE(SUBSTITUTE(SUBSTITUTE(T44,$ED44,$ED$2&ROW($ED44)),$EC44,$EC$2&ROW($EC44)),$EB44,$EB$2&ROW($EB44)),$EA44,$EA$2&ROW($EA44)),$DZ44,$DZ$2&ROW($DZ44)),$DY44,$DY$2&ROW($DY44)),$DX44,$DX$2&ROW($DX44)),$DW44,$DW$2&ROW($DW44)),$DV44,$DV$2&ROW($DV44)),$DU44,$DU$2&ROW($DU44)),$DT44,$DT$2&ROW($DT44)),$DS44,$DS$2&ROW($DS44)))","v":0},{"$f":"IF(U44=\"\",0,\"X=\"&SUBSTITUTE(SUBSTITUTE(SUBSTITUTE(SUBSTITUTE(SUBSTITUTE(SUBSTITUTE(SUBSTITUTE(SUBSTITUTE(SUBSTITUTE(SUBSTITUTE(SUBSTITUTE(SUBSTITUTE(U44,$ED44,$ED$2&ROW($ED44)),$EC44,$EC$2&ROW($EC44)),$EB44,$EB$2&ROW($EB44)),$EA44,$EA$2&ROW($EA44)),$DZ44,$DZ$2&ROW($DZ44)),$DY44,$DY$2&ROW($DY44)),$DX44,$DX$2&ROW($DX44)),$DW44,$DW$2&ROW($DW44)),$DV44,$DV$2&ROW($DV44)),$DU44,$DU$2&ROW($DU44)),$DT44,$DT$2&ROW($DT44)),$DS44,$DS$2&ROW($DS44)))","v":"X=AW44 * AY44 * AS44 * 0.000433 * 12/ AU44 * AF44"},{"$f":"IF(V44=\"\",0,\"X=\"&SUBSTITUTE(SUBSTITUTE(SUBSTITUTE(SUBSTITUTE(SUBSTITUTE(SUBSTITUTE(SUBSTITUTE(SUBSTITUTE(SUBSTITUTE(SUBSTITUTE(SUBSTITUTE(SUBSTITUTE(V44,$ED44,$ED$2&ROW($ED44)),$EC44,$EC$2&ROW($EC44)),$EB44,$EB$2&ROW($EB44)),$EA44,$EA$2&ROW($EA44)),$DZ44,$DZ$2&ROW($DZ44)),$DY44,$DY$2&ROW($DY44)),$DX44,$DX$2&ROW($DX44)),$DW44,$DW$2&ROW($DW44)),$DV44,$DV$2&ROW($DV44)),$DU44,$DU$2&ROW($DU44)),$DT44,$DT$2&ROW($DT44)),$DS44,$DS$2&ROW($DS44)))","v":"X=AW44 * AY44 * AS44 * 0.000433 * 12/ AU44 * AG44"},{"$f":"IF(W44=\"\",0,\"X=\"&SUBSTITUTE(SUBSTITUTE(SUBSTITUTE(SUBSTITUTE(SUBSTITUTE(SUBSTITUTE(SUBSTITUTE(SUBSTITUTE(SUBSTITUTE(SUBSTITUTE(SUBSTITUTE(SUBSTITUTE(W44,$ED44,$ED$2&ROW($ED44)),$EC44,$EC$2&ROW($EC44)),$EB44,$EB$2&ROW($EB44)),$EA44,$EA$2&ROW($EA44)),$DZ44,$DZ$2&ROW($DZ44)),$DY44,$DY$2&ROW($DY44)),$DX44,$DX$2&ROW($DX44)),$DW44,$DW$2&ROW($DW44)),$DV44,$DV$2&ROW($DV44)),$DU44,$DU$2&ROW($DU44)),$DT44,$DT$2&ROW($DT44)),$DS44,$DS$2&ROW($DS44)))","v":0},{"$f":"IF(X44=\"\",0,\"X=\"&SUBSTITUTE(SUBSTITUTE(SUBSTITUTE(SUBSTITUTE(SUBSTITUTE(SUBSTITUTE(SUBSTITUTE(SUBSTITUTE(SUBSTITUTE(SUBSTITUTE(SUBSTITUTE(SUBSTITUTE(X44,$ED44,$ED$2&ROW($ED44)),$EC44,$EC$2&ROW($EC44)),$EB44,$EB$2&ROW($EB44)),$EA44,$EA$2&ROW($EA44)),$DZ44,$DZ$2&ROW($DZ44)),$DY44,$DY$2&ROW($DY44)),$DX44,$DX$2&ROW($DX44)),$DW44,$DW$2&ROW($DW44)),$DV44,$DV$2&ROW($DV44)),$DU44,$DU$2&ROW($DU44)),$DT44,$DT$2&ROW($DT44)),$DS44,$DS$2&ROW($DS44)))","v":0},{"$f":"IF(Y44=\"\",0,\"X=\"&SUBSTITUTE(SUBSTITUTE(SUBSTITUTE(SUBSTITUTE(SUBSTITUTE(SUBSTITUTE(SUBSTITUTE(SUBSTITUTE(SUBSTITUTE(SUBSTITUTE(SUBSTITUTE(SUBSTITUTE(Y44,$ED44,$ED$2&ROW($ED44)),$EC44,$EC$2&ROW($EC44)),$EB44,$EB$2&ROW($EB44)),$EA44,$EA$2&ROW($EA44)),$DZ44,$DZ$2&ROW($DZ44)),$DY44,$DY$2&ROW($DY44)),$DX44,$DX$2&ROW($DX44)),$DW44,$DW$2&ROW($DW44)),$DV44,$DV$2&ROW($DV44)),$DU44,$DU$2&ROW($DU44)),$DT44,$DT$2&ROW($DT44)),$DS44,$DS$2&ROW($DS44)))","v":0},{"$f":"IF(Z44=\"\",0,\"X=\"&SUBSTITUTE(SUBSTITUTE(SUBSTITUTE(SUBSTITUTE(SUBSTITUTE(SUBSTITUTE(SUBSTITUTE(SUBSTITUTE(SUBSTITUTE(SUBSTITUTE(SUBSTITUTE(SUBSTITUTE(Z44,$ED44,$ED$2&ROW($ED44)),$EC44,$EC$2&ROW($EC44)),$EB44,$EB$2&ROW($EB44)),$EA44,$EA$2&ROW($EA44)),$DZ44,$DZ$2&ROW($DZ44)),$DY44,$DY$2&ROW($DY44)),$DX44,$DX$2&ROW($DX44)),$DW44,$DW$2&ROW($DW44)),$DV44,$DV$2&ROW($DV44)),$DU44,$DU$2&ROW($DU44)),$DT44,$DT$2&ROW($DT44)),$DS44,$DS$2&ROW($DS44)))","v":0},{"$f":"IF(AA44=\"\",0,\"X=\"&SUBSTITUTE(SUBSTITUTE(SUBSTITUTE(SUBSTITUTE(SUBSTITUTE(SUBSTITUTE(SUBSTITUTE(SUBSTITUTE(SUBSTITUTE(SUBSTITUTE(SUBSTITUTE(SUBSTITUTE(AA44,$ED44,$ED$2&ROW($ED44)),$EC44,$EC$2&ROW($EC44)),$EB44,$EB$2&ROW($EB44)),$EA44,$EA$2&ROW($EA44)),$DZ44,$DZ$2&ROW($DZ44)),$DY44,$DY$2&ROW($DY44)),$DX44,$DX$2&ROW($DX44)),$DW44,$DW$2&ROW($DW44)),$DV44,$DV$2&ROW($DV44)),$DU44,$DU$2&ROW($DU44)),$DT44,$DT$2&ROW($DT44)),$DS44,$DS$2&ROW($DS44)))","v":0},{"$f":"IF(AB44=\"\",0,\"X=\"&SUBSTITUTE(SUBSTITUTE(SUBSTITUTE(SUBSTITUTE(SUBSTITUTE(SUBSTITUTE(SUBSTITUTE(SUBSTITUTE(SUBSTITUTE(SUBSTITUTE(SUBSTITUTE(SUBSTITUTE(AB44,$ED44,$ED$2&ROW($ED44)),$EC44,$EC$2&ROW($EC44)),$EB44,$EB$2&ROW($EB44)),$EA44,$EA$2&ROW($EA44)),$DZ44,$DZ$2&ROW($DZ44)),$DY44,$DY$2&ROW($DY44)),$DX44,$DX$2&ROW($DX44)),$DW44,$DW$2&ROW($DW44)),$DV44,$DV$2&ROW($DV44)),$DU44,$DU$2&ROW($DU44)),$DT44,$DT$2&ROW($DT44)),$DS44,$DS$2&ROW($DS44)))","v":0},null,null,"{Factor:WinterCF}","{Factor:SummerCF}",{"$f":"IFERROR(INDEX($EG44:$IV44,MATCH(0,COUNTIF($DR44:DT44,$EG44:$IV44),0)),\"\")","v":"{Space Type}"},{"$f":"IFERROR(INDEX($EG44:$IV44,MATCH(0,COUNTIF($DR44:DU44,$EG44:$IV44),0)),\"\")","v":"{EER}"},{"$f":"IFERROR(INDEX($EG44:$IV44,MATCH(0,COUNTIF($DR44:DV44,$EG44:$IV44),0)),\"\")","v":"{Measure:Quantity}"},{"$f":"IFERROR(INDEX($EG44:$IV44,MATCH(0,COUNTIF($DR44:DW44,$EG44:$IV44),0)),\"\")","v":"{Area Sq. Ft}"},{"$f":"IFERROR(INDEX($EG44:$IV44,MATCH(0,COUNTIF($DR44:DX44,$EG44:$IV44),0)),\"\")","v":""},{"$f":"IFERROR(INDEX($EG44:$IV44,MATCH(0,COUNTIF($DR44:DY44,$EG44:$IV44),0)),\"\")","v":""},{"$f":"IFERROR(INDEX($EG44:$IV44,MATCH(0,COUNTIF($DR44:DZ44,$EG44:$IV44),0)),\"\")","v":""},{"$f":"IFERROR(INDEX($EG44:$IV44,MATCH(0,COUNTIF($DR44:EA44,$EG44:$IV44),0)),\"\")","v":""},{"$f":"IFERROR(INDEX($EG44:$IV44,MATCH(0,COUNTIF($DR44:EB44,$EG44:$IV44),0)),\"\")","v":""},{"$f":"IFERROR(INDEX($EG44:$IV44,MATCH(0,COUNTIF($DR44:EC44,$EG44:$IV44),0)),\"\")","v":""},null,null,{"$f":"IFERROR(MID($G44,FIND(CHAR(160),SUBSTITUTE($G44,\"{\",CHAR(160),EG$1)),FIND(CHAR(160),SUBSTITUTE($G44,\"}\",CHAR(160),EG$1))-FIND(CHAR(160),SUBSTITUTE($G44,\"{\",CHAR(160),EG$1))+1),\"\")","v":""},{"$f":"IFERROR(MID($G44,FIND(CHAR(160),SUBSTITUTE($G44,\"{\",CHAR(160),EH$1)),FIND(CHAR(160),SUBSTITUTE($G44,\"}\",CHAR(160),EH$1))-FIND(CHAR(160),SUBSTITUTE($G44,\"{\",CHAR(160),EH$1))+1),\"\")","v":""},{"$f":"IFERROR(MID($G44,FIND(CHAR(160),SUBSTITUTE($G44,\"{\",CHAR(160),EI$1)),FIND(CHAR(160),SUBSTITUTE($G44,\"}\",CHAR(160),EI$1))-FIND(CHAR(160),SUBSTITUTE($G44,\"{\",CHAR(160),EI$1))+1),\"\")","v":""},{"$f":"IFERROR(MID($G44,FIND(CHAR(160),SUBSTITUTE($G44,\"{\",CHAR(160),EJ$1)),FIND(CHAR(160),SUBSTITUTE($G44,\"}\",CHAR(160),EJ$1))-FIND(CHAR(160),SUBSTITUTE($G44,\"{\",CHAR(160),EJ$1))+1),\"\")","v":""},{"$f":"IFERROR(MID($G44,FIND(CHAR(160),SUBSTITUTE($G44,\"{\",CHAR(160),EK$1)),FIND(CHAR(160),SUBSTITUTE($G44,\"}\",CHAR(160),EK$1))-FIND(CHAR(160),SUBSTITUTE($G44,\"{\",CHAR(160),EK$1))+1),\"\")","v":""},{"$f":"IFERROR(MID($G44,FIND(CHAR(160),SUBSTITUTE($G44,\"{\",CHAR(160),EL$1)),FIND(CHAR(160),SUBSTITUTE($G44,\"}\",CHAR(160),EL$1))-FIND(CHAR(160),SUBSTITUTE($G44,\"{\",CHAR(160),EL$1))+1),\"\")","v":""},{"$f":"IFERROR(MID($G44,FIND(CHAR(160),SUBSTITUTE($G44,\"{\",CHAR(160),EM$1)),FIND(CHAR(160),SUBSTITUTE($G44,\"}\",CHAR(160),EM$1))-FIND(CHAR(160),SUBSTITUTE($G44,\"{\",CHAR(160),EM$1))+1),\"\")","v":""},{"$f":"IFERROR(MID($G44,FIND(CHAR(160),SUBSTITUTE($G44,\"{\",CHAR(160),EN$1)),FIND(CHAR(160),SUBSTITUTE($G44,\"}\",CHAR(160),EN$1))-FIND(CHAR(160),SUBSTITUTE($G44,\"{\",CHAR(160),EN$1))+1),\"\")","v":""},{"$f":"IFERROR(MID($G44,FIND(CHAR(160),SUBSTITUTE($G44,\"{\",CHAR(160),EO$1)),FIND(CHAR(160),SUBSTITUTE($G44,\"}\",CHAR(160),EO$1))-FIND(CHAR(160),SUBSTITUTE($G44,\"{\",CHAR(160),EO$1))+1),\"\")","v":""},{"$f":"IFERROR(MID($G44,FIND(CHAR(160),SUBSTITUTE($G44,\"{\",CHAR(160),EP$1)),FIND(CHAR(160),SUBSTITUTE($G44,\"}\",CHAR(160),EP$1))-FIND(CHAR(160),SUBSTITUTE($G44,\"{\",CHAR(160),EP$1))+1),\"\")","v":""},{"$f":"IFERROR(MID($J44,FIND(CHAR(160),SUBSTITUTE($J44,\"{\",CHAR(160),EQ$1)),FIND(CHAR(160),SUBSTITUTE($J44,\"}\",CHAR(160),EQ$1))-FIND(CHAR(160),SUBSTITUTE($J44,\"{\",CHAR(160),EQ$1))+1),\"\")","v":""},{"$f":"IFERROR(MID($J44,FIND(CHAR(160),SUBSTITUTE($J44,\"{\",CHAR(160),ER$1)),FIND(CHAR(160),SUBSTITUTE($J44,\"}\",CHAR(160),ER$1))-FIND(CHAR(160),SUBSTITUTE($J44,\"{\",CHAR(160),ER$1))+1),\"\")","v":""},{"$f":"IFERROR(MID($J44,FIND(CHAR(160),SUBSTITUTE($J44,\"{\",CHAR(160),ES$1)),FIND(CHAR(160),SUBSTITUTE($J44,\"}\",CHAR(160),ES$1))-FIND(CHAR(160),SUBSTITUTE($J44,\"{\",CHAR(160),ES$1))+1),\"\")","v":""},{"$f":"IFERROR(MID($J44,FIND(CHAR(160),SUBSTITUTE($J44,\"{\",CHAR(160),ET$1)),FIND(CHAR(160),SUBSTITUTE($J44,\"}\",CHAR(160),ET$1))-FIND(CHAR(160),SUBSTITUTE($J44,\"{\",CHAR(160),ET$1))+1),\"\")","v":""},{"$f":"IFERROR(MID($J44,FIND(CHAR(160),SUBSTITUTE($J44,\"{\",CHAR(160),EU$1)),FIND(CHAR(160),SUBSTITUTE($J44,\"}\",CHAR(160),EU$1))-FIND(CHAR(160),SUBSTITUTE($J44,\"{\",CHAR(160),EU$1))+1),\"\")","v":""},{"$f":"IFERROR(MID($J44,FIND(CHAR(160),SUBSTITUTE($J44,\"{\",CHAR(160),EV$1)),FIND(CHAR(160),SUBSTITUTE($J44,\"}\",CHAR(160),EV$1))-FIND(CHAR(160),SUBSTITUTE($J44,\"{\",CHAR(160),EV$1))+1),\"\")","v":""},{"$f":"IFERROR(MID($J44,FIND(CHAR(160),SUBSTITUTE($J44,\"{\",CHAR(160),EW$1)),FIND(CHAR(160),SUBSTITUTE($J44,\"}\",CHAR(160),EW$1))-FIND(CHAR(160),SUBSTITUTE($J44,\"{\",CHAR(160),EW$1))+1),\"\")","v":""},{"$f":"IFERROR(MID($J44,FIND(CHAR(160),SUBSTITUTE($J44,\"{\",CHAR(160),EX$1)),FIND(CHAR(160),SUBSTITUTE($J44,\"}\",CHAR(160),EX$1))-FIND(CHAR(160),SUBSTITUTE($J44,\"{\",CHAR(160),EX$1))+1),\"\")","v":""},{"$f":"IFERROR(MID($J44,FIND(CHAR(160),SUBSTITUTE($J44,\"{\",CHAR(160),EY$1)),FIND(CHAR(160),SUBSTITUTE($J44,\"}\",CHAR(160),EY$1))-FIND(CHAR(160),SUBSTITUTE($J44,\"{\",CHAR(160),EY$1))+1),\"\")","v":""},{"$f":"IFERROR(MID($J44,FIND(CHAR(160),SUBSTITUTE($J44,\"{\",CHAR(160),EZ$1)),FIND(CHAR(160),SUBSTITUTE($J44,\"}\",CHAR(160),EZ$1))-FIND(CHAR(160),SUBSTITUTE($J44,\"{\",CHAR(160),EZ$1))+1),\"\")","v":""},{"$f":"IFERROR(MID($J44,FIND(CHAR(160),SUBSTITUTE($J44,\"{\",CHAR(160),FA$1)),FIND(CHAR(160),SUBSTITUTE($J44,\"}\",CHAR(160),FA$1))-FIND(CHAR(160),SUBSTITUTE($J44,\"{\",CHAR(160),FA$1))+1),\"\")","v":""},{"$f":"IFERROR(MID($J44,FIND(CHAR(160),SUBSTITUTE($J44,\"{\",CHAR(160),FB$1)),FIND(CHAR(160),SUBSTITUTE($J44,\"}\",CHAR(160),FB$1))-FIND(CHAR(160),SUBSTITUTE($J44,\"{\",CHAR(160),FB$1))+1),\"\")","v":""},{"$f":"IFERROR(MID($O44,FIND(CHAR(160),SUBSTITUTE($O44,\"{\",CHAR(160),FC$1)),FIND(CHAR(160),SUBSTITUTE($O44,\"}\",CHAR(160),FC$1))-FIND(CHAR(160),SUBSTITUTE($O44,\"{\",CHAR(160),FC$1))+1),\"\")","v":"{Space Type}"},{"$f":"IFERROR(MID($O44,FIND(CHAR(160),SUBSTITUTE($O44,\"{\",CHAR(160),FD$1)),FIND(CHAR(160),SUBSTITUTE($O44,\"}\",CHAR(160),FD$1))-FIND(CHAR(160),SUBSTITUTE($O44,\"{\",CHAR(160),FD$1))+1),\"\")","v":"{EER}"},{"$f":"IFERROR(MID($O44,FIND(CHAR(160),SUBSTITUTE($O44,\"{\",CHAR(160),FE$1)),FIND(CHAR(160),SUBSTITUTE($O44,\"}\",CHAR(160),FE$1))-FIND(CHAR(160),SUBSTITUTE($O44,\"{\",CHAR(160),FE$1))+1),\"\")","v":""},{"$f":"IFERROR(MID($O44,FIND(CHAR(160),SUBSTITUTE($O44,\"{\",CHAR(160),FF$1)),FIND(CHAR(160),SUBSTITUTE($O44,\"}\",CHAR(160),FF$1))-FIND(CHAR(160),SUBSTITUTE($O44,\"{\",CHAR(160),FF$1))+1),\"\")","v":""},{"$f":"IFERROR(MID($O44,FIND(CHAR(160),SUBSTITUTE($O44,\"{\",CHAR(160),FG$1)),FIND(CHAR(160),SUBSTITUTE($O44,\"}\",CHAR(160),FG$1))-FIND(CHAR(160),SUBSTITUTE($O44,\"{\",CHAR(160),FG$1))+1),\"\")","v":""},{"$f":"IFERROR(MID($O44,FIND(CHAR(160),SUBSTITUTE($O44,\"{\",CHAR(160),FH$1)),FIND(CHAR(160),SUBSTITUTE($O44,\"}\",CHAR(160),FH$1))-FIND(CHAR(160),SUBSTITUTE($O44,\"{\",CHAR(160),FH$1))+1),\"\")","v":""},{"$f":"IFERROR(MID($O44,FIND(CHAR(160),SUBSTITUTE($O44,\"{\",CHAR(160),FI$1)),FIND(CHAR(160),SUBSTITUTE($O44,\"}\",CHAR(160),FI$1))-FIND(CHAR(160),SUBSTITUTE($O44,\"{\",CHAR(160),FI$1))+1),\"\")","v":""},{"$f":"IFERROR(MID($O44,FIND(CHAR(160),SUBSTITUTE($O44,\"{\",CHAR(160),FJ$1)),FIND(CHAR(160),SUBSTITUTE($O44,\"}\",CHAR(160),FJ$1))-FIND(CHAR(160),SUBSTITUTE($O44,\"{\",CHAR(160),FJ$1))+1),\"\")","v":""},{"$f":"IFERROR(MID($O44,FIND(CHAR(160),SUBSTITUTE($O44,\"{\",CHAR(160),FK$1)),FIND(CHAR(160),SUBSTITUTE($O44,\"}\",CHAR(160),FK$1))-FIND(CHAR(160),SUBSTITUTE($O44,\"{\",CHAR(160),FK$1))+1),\"\")","v":"{Measure:Quantity}"},{"$f":"IFERROR(MID($O44,FIND(CHAR(160),SUBSTITUTE($O44,\"{\",CHAR(160),FL$1)),FIND(CHAR(160),SUBSTITUTE($O44,\"}\",CHAR(160),FL$1))-FIND(CHAR(160),SUBSTITUTE($O44,\"{\",CHAR(160),FL$1))+1),\"\")","v":"{Area Sq. Ft}"},{"$f":"IFERROR(MID($R44,FIND(CHAR(160),SUBSTITUTE($R44,\"{\",CHAR(160),FM$1)),FIND(CHAR(160),SUBSTITUTE($R44,\"}\",CHAR(160),FM$1))-FIND(CHAR(160),SUBSTITUTE($R44,\"{\",CHAR(160),FM$1))+1),\"\")","v":"{Space Type}"},{"$f":"IFERROR(MID($R44,FIND(CHAR(160),SUBSTITUTE($R44,\"{\",CHAR(160),FN$1)),FIND(CHAR(160),SUBSTITUTE($R44,\"}\",CHAR(160),FN$1))-FIND(CHAR(160),SUBSTITUTE($R44,\"{\",CHAR(160),FN$1))+1),\"\")","v":"{EER}"},{"$f":"IFERROR(MID($R44,FIND(CHAR(160),SUBSTITUTE($R44,\"{\",CHAR(160),FO$1)),FIND(CHAR(160),SUBSTITUTE($R44,\"}\",CHAR(160),FO$1))-FIND(CHAR(160),SUBSTITUTE($R44,\"{\",CHAR(160),FO$1))+1),\"\")","v":""},{"$f":"IFERROR(MID($R44,FIND(CHAR(160),SUBSTITUTE($R44,\"{\",CHAR(160),FP$1)),FIND(CHAR(160),SUBSTITUTE($R44,\"}\",CHAR(160),FP$1))-FIND(CHAR(160),SUBSTITUTE($R44,\"{\",CHAR(160),FP$1))+1),\"\")","v":""},{"$f":"IFERROR(MID($R44,FIND(CHAR(160),SUBSTITUTE($R44,\"{\",CHAR(160),FQ$1)),FIND(CHAR(160),SUBSTITUTE($R44,\"}\",CHAR(160),FQ$1))-FIND(CHAR(160),SUBSTITUTE($R44,\"{\",CHAR(160),FQ$1))+1),\"\")","v":""},{"$f":"IFERROR(MID($R44,FIND(CHAR(160),SUBSTITUTE($R44,\"{\",CHAR(160),FR$1)),FIND(CHAR(160),SUBSTITUTE($R44,\"}\",CHAR(160),FR$1))-FIND(CHAR(160),SUBSTITUTE($R44,\"{\",CHAR(160),FR$1))+1),\"\")","v":""},{"$f":"IFERROR(MID($R44,FIND(CHAR(160),SUBSTITUTE($R44,\"{\",CHAR(160),FS$1)),FIND(CHAR(160),SUBSTITUTE($R44,\"}\",CHAR(160),FS$1))-FIND(CHAR(160),SUBSTITUTE($R44,\"{\",CHAR(160),FS$1))+1),\"\")","v":""},{"$f":"IFERROR(MID($R44,FIND(CHAR(160),SUBSTITUTE($R44,\"{\",CHAR(160),FT$1)),FIND(CHAR(160),SUBSTITUTE($R44,\"}\",CHAR(160),FT$1))-FIND(CHAR(160),SUBSTITUTE($R44,\"{\",CHAR(160),FT$1))+1),\"\")","v":""},{"$f":"IFERROR(MID($R44,FIND(CHAR(160),SUBSTITUTE($R44,\"{\",CHAR(160),FU$1)),FIND(CHAR(160),SUBSTITUTE($R44,\"}\",CHAR(160),FU$1))-FIND(CHAR(160),SUBSTITUTE($R44,\"{\",CHAR(160),FU$1))+1),\"\")","v":"{Measure:Quantity}"},{"$f":"IFERROR(MID($R44,FIND(CHAR(160),SUBSTITUTE($R44,\"{\",CHAR(160),FV$1)),FIND(CHAR(160),SUBSTITUTE($R44,\"}\",CHAR(160),FV$1))-FIND(CHAR(160),SUBSTITUTE($R44,\"{\",CHAR(160),FV$1))+1),\"\")","v":"{Area Sq. Ft}"},{"$f":"IFERROR(MID($U44,FIND(CHAR(160),SUBSTITUTE($U44,\"{\",CHAR(160),FW$1)),FIND(CHAR(160),SUBSTITUTE($U44,\"}\",CHAR(160),FW$1))-FIND(CHAR(160),SUBSTITUTE($U44,\"{\",CHAR(160),FW$1))+1),\"\")","v":"{Space Type}"},{"$f":"IFERROR(MID($U44,FIND(CHAR(160),SUBSTITUTE($U44,\"{\",CHAR(160),FX$1)),FIND(CHAR(160),SUBSTITUTE($U44,\"}\",CHAR(160),FX$1))-FIND(CHAR(160),SUBSTITUTE($U44,\"{\",CHAR(160),FX$1))+1),\"\")","v":"{EER}"},{"$f":"IFERROR(MID($U44,FIND(CHAR(160),SUBSTITUTE($U44,\"{\",CHAR(160),FY$1)),FIND(CHAR(160),SUBSTITUTE($U44,\"}\",CHAR(160),FY$1))-FIND(CHAR(160),SUBSTITUTE($U44,\"{\",CHAR(160),FY$1))+1),\"\")","v":"{Factor:WinterCF}"},{"$f":"IFERROR(MID($U44,FIND(CHAR(160),SUBSTITUTE($U44,\"{\",CHAR(160),FZ$1)),FIND(CHAR(160),SUBSTITUTE($U44,\"}\",CHAR(160),FZ$1))-FIND(CHAR(160),SUBSTITUTE($U44,\"{\",CHAR(160),FZ$1))+1),\"\")","v":""},{"$f":"IFERROR(MID($U44,FIND(CHAR(160),SUBSTITUTE($U44,\"{\",CHAR(160),GA$1)),FIND(CHAR(160),SUBSTITUTE($U44,\"}\",CHAR(160),GA$1))-FIND(CHAR(160),SUBSTITUTE($U44,\"{\",CHAR(160),GA$1))+1),\"\")","v":""},{"$f":"IFERROR(MID($U44,FIND(CHAR(160),SUBSTITUTE($U44,\"{\",CHAR(160),GB$1)),FIND(CHAR(160),SUBSTITUTE($U44,\"}\",CHAR(160),GB$1))-FIND(CHAR(160),SUBSTITUTE($U44,\"{\",CHAR(160),GB$1))+1),\"\")","v":""},{"$f":"IFERROR(MID($U44,FIND(CHAR(160),SUBSTITUTE($U44,\"{\",CHAR(160),GC$1)),FIND(CHAR(160),SUBSTITUTE($U44,\"}\",CHAR(160),GC$1))-FIND(CHAR(160),SUBSTITUTE($U44,\"{\",CHAR(160),GC$1))+1),\"\")","v":""},{"$f":"IFERROR(MID($U44,FIND(CHAR(160),SUBSTITUTE($U44,\"{\",CHAR(160),GD$1)),FIND(CHAR(160),SUBSTITUTE($U44,\"}\",CHAR(160),GD$1))-FIND(CHAR(160),SUBSTITUTE($U44,\"{\",CHAR(160),GD$1))+1),\"\")","v":""},{"$f":"IFERROR(MID($U44,FIND(CHAR(160),SUBSTITUTE($U44,\"{\",CHAR(160),GE$1)),FIND(CHAR(160),SUBSTITUTE($U44,\"}\",CHAR(160),GE$1))-FIND(CHAR(160),SUBSTITUTE($U44,\"{\",CHAR(160),GE$1))+1),\"\")","v":"{Measure:Quantity}"},{"$f":"IFERROR(MID($U44,FIND(CHAR(160),SUBSTITUTE($U44,\"{\",CHAR(160),GF$1)),FIND(CHAR(160),SUBSTITUTE($U44,\"}\",CHAR(160),GF$1))-FIND(CHAR(160),SUBSTITUTE($U44,\"{\",CHAR(160),GF$1))+1),\"\")","v":"{Area Sq. Ft}"},{"$f":"IFERROR(MID($V44,FIND(CHAR(160),SUBSTITUTE($V44,\"{\",CHAR(160),GG$1)),FIND(CHAR(160),SUBSTITUTE($V44,\"}\",CHAR(160),GG$1))-FIND(CHAR(160),SUBSTITUTE($V44,\"{\",CHAR(160),GG$1))+1),\"\")","v":"{Space Type}"},{"$f":"IFERROR(MID($V44,FIND(CHAR(160),SUBSTITUTE($V44,\"{\",CHAR(160),GH$1)),FIND(CHAR(160),SUBSTITUTE($V44,\"}\",CHAR(160),GH$1))-FIND(CHAR(160),SUBSTITUTE($V44,\"{\",CHAR(160),GH$1))+1),\"\")","v":"{EER}"},{"$f":"IFERROR(MID($V44,FIND(CHAR(160),SUBSTITUTE($V44,\"{\",CHAR(160),GI$1)),FIND(CHAR(160),SUBSTITUTE($V44,\"}\",CHAR(160),GI$1))-FIND(CHAR(160),SUBSTITUTE($V44,\"{\",CHAR(160),GI$1))+1),\"\")","v":"{Factor:SummerCF}"},{"$f":"IFERROR(MID($V44,FIND(CHAR(160),SUBSTITUTE($V44,\"{\",CHAR(160),GJ$1)),FIND(CHAR(160),SUBSTITUTE($V44,\"}\",CHAR(160),GJ$1))-FIND(CHAR(160),SUBSTITUTE($V44,\"{\",CHAR(160),GJ$1))+1),\"\")","v":""},{"$f":"IFERROR(MID($V44,FIND(CHAR(160),SUBSTITUTE($V44,\"{\",CHAR(160),GK$1)),FIND(CHAR(160),SUBSTITUTE($V44,\"}\",CHAR(160),GK$1))-FIND(CHAR(160),SUBSTITUTE($V44,\"{\",CHAR(160),GK$1))+1),\"\")","v":""},{"$f":"IFERROR(MID($V44,FIND(CHAR(160),SUBSTITUTE($V44,\"{\",CHAR(160),GL$1)),FIND(CHAR(160),SUBSTITUTE($V44,\"}\",CHAR(160),GL$1))-FIND(CHAR(160),SUBSTITUTE($V44,\"{\",CHAR(160),GL$1))+1),\"\")","v":""},{"$f":"IFERROR(MID($V44,FIND(CHAR(160),SUBSTITUTE($V44,\"{\",CHAR(160),GM$1)),FIND(CHAR(160),SUBSTITUTE($V44,\"}\",CHAR(160),GM$1))-FIND(CHAR(160),SUBSTITUTE($V44,\"{\",CHAR(160),GM$1))+1),\"\")","v":""},{"$f":"IFERROR(MID($V44,FIND(CHAR(160),SUBSTITUTE($V44,\"{\",CHAR(160),GN$1)),FIND(CHAR(160),SUBSTITUTE($V44,\"}\",CHAR(160),GN$1))-FIND(CHAR(160),SUBSTITUTE($V44,\"{\",CHAR(160),GN$1))+1),\"\")","v":""},{"$f":"IFERROR(MID($V44,FIND(CHAR(160),SUBSTITUTE($V44,\"{\",CHAR(160),GO$1)),FIND(CHAR(160),SUBSTITUTE($V44,\"}\",CHAR(160),GO$1))-FIND(CHAR(160),SUBSTITUTE($V44,\"{\",CHAR(160),GO$1))+1),\"\")","v":"{Measure:Quantity}"},{"$f":"IFERROR(MID($V44,FIND(CHAR(160),SUBSTITUTE($V44,\"{\",CHAR(160),GP$1)),FIND(CHAR(160),SUBSTITUTE($V44,\"}\",CHAR(160),GP$1))-FIND(CHAR(160),SUBSTITUTE($V44,\"{\",CHAR(160),GP$1))+1),\"\")","v":"{Area Sq. Ft}"},{"$f":"IFERROR(MID($W44,FIND(CHAR(160),SUBSTITUTE($W44,\"{\",CHAR(160),GQ$1)),FIND(CHAR(160),SUBSTITUTE($W44,\"}\",CHAR(160),GQ$1))-FIND(CHAR(160),SUBSTITUTE($W44,\"{\",CHAR(160),GQ$1))+1),\"\")","v":""},{"$f":"IFERROR(MID($W44,FIND(CHAR(160),SUBSTITUTE($W44,\"{\",CHAR(160),GR$1)),FIND(CHAR(160),SUBSTITUTE($W44,\"}\",CHAR(160),GR$1))-FIND(CHAR(160),SUBSTITUTE($W44,\"{\",CHAR(160),GR$1))+1),\"\")","v":""},{"$f":"IFERROR(MID($W44,FIND(CHAR(160),SUBSTITUTE($W44,\"{\",CHAR(160),GS$1)),FIND(CHAR(160),SUBSTITUTE($W44,\"}\",CHAR(160),GS$1))-FIND(CHAR(160),SUBSTITUTE($W44,\"{\",CHAR(160),GS$1))+1),\"\")","v":""},{"$f":"IFERROR(MID($W44,FIND(CHAR(160),SUBSTITUTE($W44,\"{\",CHAR(160),GT$1)),FIND(CHAR(160),SUBSTITUTE($W44,\"}\",CHAR(160),GT$1))-FIND(CHAR(160),SUBSTITUTE($W44,\"{\",CHAR(160),GT$1))+1),\"\")","v":""},{"$f":"IFERROR(MID($W44,FIND(CHAR(160),SUBSTITUTE($W44,\"{\",CHAR(160),GU$1)),FIND(CHAR(160),SUBSTITUTE($W44,\"}\",CHAR(160),GU$1))-FIND(CHAR(160),SUBSTITUTE($W44,\"{\",CHAR(160),GU$1))+1),\"\")","v":""},{"$f":"IFERROR(MID($W44,FIND(CHAR(160),SUBSTITUTE($W44,\"{\",CHAR(160),GV$1)),FIND(CHAR(160),SUBSTITUTE($W44,\"}\",CHAR(160),GV$1))-FIND(CHAR(160),SUBSTITUTE($W44,\"{\",CHAR(160),GV$1))+1),\"\")","v":""},{"$f":"IFERROR(MID($W44,FIND(CHAR(160),SUBSTITUTE($W44,\"{\",CHAR(160),GW$1)),FIND(CHAR(160),SUBSTITUTE($W44,\"}\",CHAR(160),GW$1))-FIND(CHAR(160),SUBSTITUTE($W44,\"{\",CHAR(160),GW$1))+1),\"\")","v":""},{"$f":"IFERROR(MID($W44,FIND(CHAR(160),SUBSTITUTE($W44,\"{\",CHAR(160),GX$1)),FIND(CHAR(160),SUBSTITUTE($W44,\"}\",CHAR(160),GX$1))-FIND(CHAR(160),SUBSTITUTE($W44,\"{\",CHAR(160),GX$1))+1),\"\")","v":""},{"$f":"IFERROR(MID($W44,FIND(CHAR(160),SUBSTITUTE($W44,\"{\",CHAR(160),GY$1)),FIND(CHAR(160),SUBSTITUTE($W44,\"}\",CHAR(160),GY$1))-FIND(CHAR(160),SUBSTITUTE($W44,\"{\",CHAR(160),GY$1))+1),\"\")","v":""},{"$f":"IFERROR(MID($W44,FIND(CHAR(160),SUBSTITUTE($W44,\"{\",CHAR(160),GZ$1)),FIND(CHAR(160),SUBSTITUTE($W44,\"}\",CHAR(160),GZ$1))-FIND(CHAR(160),SUBSTITUTE($W44,\"{\",CHAR(160),GZ$1))+1),\"\")","v":""},{"$f":"IFERROR(MID($X44,FIND(CHAR(160),SUBSTITUTE($X44,\"{\",CHAR(160),HA$1)),FIND(CHAR(160),SUBSTITUTE($X44,\"}\",CHAR(160),HA$1))-FIND(CHAR(160),SUBSTITUTE($X44,\"{\",CHAR(160),HA$1))+1),\"\")","v":""},{"$f":"IFERROR(MID($X44,FIND(CHAR(160),SUBSTITUTE($X44,\"{\",CHAR(160),HB$1)),FIND(CHAR(160),SUBSTITUTE($X44,\"}\",CHAR(160),HB$1))-FIND(CHAR(160),SUBSTITUTE($X44,\"{\",CHAR(160),HB$1))+1),\"\")","v":""},{"$f":"IFERROR(MID($X44,FIND(CHAR(160),SUBSTITUTE($X44,\"{\",CHAR(160),HC$1)),FIND(CHAR(160),SUBSTITUTE($X44,\"}\",CHAR(160),HC$1))-FIND(CHAR(160),SUBSTITUTE($X44,\"{\",CHAR(160),HC$1))+1),\"\")","v":""},{"$f":"IFERROR(MID($X44,FIND(CHAR(160),SUBSTITUTE($X44,\"{\",CHAR(160),HD$1)),FIND(CHAR(160),SUBSTITUTE($X44,\"}\",CHAR(160),HD$1))-FIND(CHAR(160),SUBSTITUTE($X44,\"{\",CHAR(160),HD$1))+1),\"\")","v":""},{"$f":"IFERROR(MID($X44,FIND(CHAR(160),SUBSTITUTE($X44,\"{\",CHAR(160),HE$1)),FIND(CHAR(160),SUBSTITUTE($X44,\"}\",CHAR(160),HE$1))-FIND(CHAR(160),SUBSTITUTE($X44,\"{\",CHAR(160),HE$1))+1),\"\")","v":""},{"$f":"IFERROR(MID($X44,FIND(CHAR(160),SUBSTITUTE($X44,\"{\",CHAR(160),HF$1)),FIND(CHAR(160),SUBSTITUTE($X44,\"}\",CHAR(160),HF$1))-FIND(CHAR(160),SUBSTITUTE($X44,\"{\",CHAR(160),HF$1))+1),\"\")","v":""},{"$f":"IFERROR(MID($X44,FIND(CHAR(160),SUBSTITUTE($X44,\"{\",CHAR(160),HG$1)),FIND(CHAR(160),SUBSTITUTE($X44,\"}\",CHAR(160),HG$1))-FIND(CHAR(160),SUBSTITUTE($X44,\"{\",CHAR(160),HG$1))+1),\"\")","v":""},{"$f":"IFERROR(MID($X44,FIND(CHAR(160),SUBSTITUTE($X44,\"{\",CHAR(160),HH$1)),FIND(CHAR(160),SUBSTITUTE($X44,\"}\",CHAR(160),HH$1))-FIND(CHAR(160),SUBSTITUTE($X44,\"{\",CHAR(160),HH$1))+1),\"\")","v":""},{"$f":"IFERROR(MID($X44,FIND(CHAR(160),SUBSTITUTE($X44,\"{\",CHAR(160),HI$1)),FIND(CHAR(160),SUBSTITUTE($X44,\"}\",CHAR(160),HI$1))-FIND(CHAR(160),SUBSTITUTE($X44,\"{\",CHAR(160),HI$1))+1),\"\")","v":""},{"$f":"IFERROR(MID($X44,FIND(CHAR(160),SUBSTITUTE($X44,\"{\",CHAR(160),HJ$1)),FIND(CHAR(160),SUBSTITUTE($X44,\"}\",CHAR(160),HJ$1))-FIND(CHAR(160),SUBSTITUTE($X44,\"{\",CHAR(160),HJ$1))+1),\"\")","v":""},{"$f":"IFERROR(MID($Y44,FIND(CHAR(160),SUBSTITUTE($Y44,\"{\",CHAR(160),HK$1)),FIND(CHAR(160),SUBSTITUTE($Y44,\"}\",CHAR(160),HK$1))-FIND(CHAR(160),SUBSTITUTE($Y44,\"{\",CHAR(160),HK$1))+1),\"\")","v":""},{"$f":"IFERROR(MID($Y44,FIND(CHAR(160),SUBSTITUTE($Y44,\"{\",CHAR(160),HL$1)),FIND(CHAR(160),SUBSTITUTE($Y44,\"}\",CHAR(160),HL$1))-FIND(CHAR(160),SUBSTITUTE($Y44,\"{\",CHAR(160),HL$1))+1),\"\")","v":""},{"$f":"IFERROR(MID($Y44,FIND(CHAR(160),SUBSTITUTE($Y44,\"{\",CHAR(160),HM$1)),FIND(CHAR(160),SUBSTITUTE($Y44,\"}\",CHAR(160),HM$1))-FIND(CHAR(160),SUBSTITUTE($Y44,\"{\",CHAR(160),HM$1))+1),\"\")","v":""},{"$f":"IFERROR(MID($Y44,FIND(CHAR(160),SUBSTITUTE($Y44,\"{\",CHAR(160),HN$1)),FIND(CHAR(160),SUBSTITUTE($Y44,\"}\",CHAR(160),HN$1))-FIND(CHAR(160),SUBSTITUTE($Y44,\"{\",CHAR(160),HN$1))+1),\"\")","v":""},{"$f":"IFERROR(MID($Y44,FIND(CHAR(160),SUBSTITUTE($Y44,\"{\",CHAR(160),HO$1)),FIND(CHAR(160),SUBSTITUTE($Y44,\"}\",CHAR(160),HO$1))-FIND(CHAR(160),SUBSTITUTE($Y44,\"{\",CHAR(160),HO$1))+1),\"\")","v":""},{"$f":"IFERROR(MID($Y44,FIND(CHAR(160),SUBSTITUTE($Y44,\"{\",CHAR(160),HP$1)),FIND(CHAR(160),SUBSTITUTE($Y44,\"}\",CHAR(160),HP$1))-FIND(CHAR(160),SUBSTITUTE($Y44,\"{\",CHAR(160),HP$1))+1),\"\")","v":""},{"$f":"IFERROR(MID($Y44,FIND(CHAR(160),SUBSTITUTE($Y44,\"{\",CHAR(160),HQ$1)),FIND(CHAR(160),SUBSTITUTE($Y44,\"}\",CHAR(160),HQ$1))-FIND(CHAR(160),SUBSTITUTE($Y44,\"{\",CHAR(160),HQ$1))+1),\"\")","v":""},{"$f":"IFERROR(MID($Y44,FIND(CHAR(160),SUBSTITUTE($Y44,\"{\",CHAR(160),HR$1)),FIND(CHAR(160),SUBSTITUTE($Y44,\"}\",CHAR(160),HR$1))-FIND(CHAR(160),SUBSTITUTE($Y44,\"{\",CHAR(160),HR$1))+1),\"\")","v":""},{"$f":"IFERROR(MID($Y44,FIND(CHAR(160),SUBSTITUTE($Y44,\"{\",CHAR(160),HS$1)),FIND(CHAR(160),SUBSTITUTE($Y44,\"}\",CHAR(160),HS$1))-FIND(CHAR(160),SUBSTITUTE($Y44,\"{\",CHAR(160),HS$1))+1),\"\")","v":""},{"$f":"IFERROR(MID($Y44,FIND(CHAR(160),SUBSTITUTE($Y44,\"{\",CHAR(160),HT$1)),FIND(CHAR(160),SUBSTITUTE($Y44,\"}\",CHAR(160),HT$1))-FIND(CHAR(160),SUBSTITUTE($Y44,\"{\",CHAR(160),HT$1))+1),\"\")","v":""},{"$f":"IFERROR(MID($Z44,FIND(CHAR(160),SUBSTITUTE($Z44,\"{\",CHAR(160),HU$1)),FIND(CHAR(160),SUBSTITUTE($Z44,\"}\",CHAR(160),HU$1))-FIND(CHAR(160),SUBSTITUTE($Z44,\"{\",CHAR(160),HU$1))+1),\"\")","v":""},{"$f":"IFERROR(MID($Z44,FIND(CHAR(160),SUBSTITUTE($Z44,\"{\",CHAR(160),HV$1)),FIND(CHAR(160),SUBSTITUTE($Z44,\"}\",CHAR(160),HV$1))-FIND(CHAR(160),SUBSTITUTE($Z44,\"{\",CHAR(160),HV$1))+1),\"\")","v":""},{"$f":"IFERROR(MID($Z44,FIND(CHAR(160),SUBSTITUTE($Z44,\"{\",CHAR(160),HW$1)),FIND(CHAR(160),SUBSTITUTE($Z44,\"}\",CHAR(160),HW$1))-FIND(CHAR(160),SUBSTITUTE($Z44,\"{\",CHAR(160),HW$1))+1),\"\")","v":""},{"$f":"IFERROR(MID($Z44,FIND(CHAR(160),SUBSTITUTE($Z44,\"{\",CHAR(160),HX$1)),FIND(CHAR(160),SUBSTITUTE($Z44,\"}\",CHAR(160),HX$1))-FIND(CHAR(160),SUBSTITUTE($Z44,\"{\",CHAR(160),HX$1))+1),\"\")","v":""},{"$f":"IFERROR(MID($Z44,FIND(CHAR(160),SUBSTITUTE($Z44,\"{\",CHAR(160),HY$1)),FIND(CHAR(160),SUBSTITUTE($Z44,\"}\",CHAR(160),HY$1))-FIND(CHAR(160),SUBSTITUTE($Z44,\"{\",CHAR(160),HY$1))+1),\"\")","v":""},{"$f":"IFERROR(MID($Z44,FIND(CHAR(160),SUBSTITUTE($Z44,\"{\",CHAR(160),HZ$1)),FIND(CHAR(160),SUBSTITUTE($Z44,\"}\",CHAR(160),HZ$1))-FIND(CHAR(160),SUBSTITUTE($Z44,\"{\",CHAR(160),HZ$1))+1),\"\")","v":""},{"$f":"IFERROR(MID($Z44,FIND(CHAR(160),SUBSTITUTE($Z44,\"{\",CHAR(160),IA$1)),FIND(CHAR(160),SUBSTITUTE($Z44,\"}\",CHAR(160),IA$1))-FIND(CHAR(160),SUBSTITUTE($Z44,\"{\",CHAR(160),IA$1))+1),\"\")","v":""},{"$f":"IFERROR(MID($Z44,FIND(CHAR(160),SUBSTITUTE($Z44,\"{\",CHAR(160),IB$1)),FIND(CHAR(160),SUBSTITUTE($Z44,\"}\",CHAR(160),IB$1))-FIND(CHAR(160),SUBSTITUTE($Z44,\"{\",CHAR(160),IB$1))+1),\"\")","v":""},{"$f":"IFERROR(MID($Z44,FIND(CHAR(160),SUBSTITUTE($Z44,\"{\",CHAR(160),IC$1)),FIND(CHAR(160),SUBSTITUTE($Z44,\"}\",CHAR(160),IC$1))-FIND(CHAR(160),SUBSTITUTE($Z44,\"{\",CHAR(160),IC$1))+1),\"\")","v":""},{"$f":"IFERROR(MID($Z44,FIND(CHAR(160),SUBSTITUTE($Z44,\"{\",CHAR(160),ID$1)),FIND(CHAR(160),SUBSTITUTE($Z44,\"}\",CHAR(160),ID$1))-FIND(CHAR(160),SUBSTITUTE($Z44,\"{\",CHAR(160),ID$1))+1),\"\")","v":""},{"$f":"IFERROR(MID($AA44,FIND(CHAR(160),SUBSTITUTE($AA44,\"{\",CHAR(160),IE$1)),FIND(CHAR(160),SUBSTITUTE($AA44,\"}\",CHAR(160),IE$1))-FIND(CHAR(160),SUBSTITUTE($AA44,\"{\",CHAR(160),IE$1))+1),\"\")","v":""},{"$f":"IFERROR(MID($AA44,FIND(CHAR(160),SUBSTITUTE($AA44,\"{\",CHAR(160),IF$1)),FIND(CHAR(160),SUBSTITUTE($AA44,\"}\",CHAR(160),IF$1))-FIND(CHAR(160),SUBSTITUTE($AA44,\"{\",CHAR(160),IF$1))+1),\"\")","v":""},{"$f":"IFERROR(MID($AA44,FIND(CHAR(160),SUBSTITUTE($AA44,\"{\",CHAR(160),IG$1)),FIND(CHAR(160),SUBSTITUTE($AA44,\"}\",CHAR(160),IG$1))-FIND(CHAR(160),SUBSTITUTE($AA44,\"{\",CHAR(160),IG$1))+1),\"\")","v":""},{"$f":"IFERROR(MID($AA44,FIND(CHAR(160),SUBSTITUTE($AA44,\"{\",CHAR(160),IH$1)),FIND(CHAR(160),SUBSTITUTE($AA44,\"}\",CHAR(160),IH$1))-FIND(CHAR(160),SUBSTITUTE($AA44,\"{\",CHAR(160),IH$1))+1),\"\")","v":""},{"$f":"IFERROR(MID($AA44,FIND(CHAR(160),SUBSTITUTE($AA44,\"{\",CHAR(160),II$1)),FIND(CHAR(160),SUBSTITUTE($AA44,\"}\",CHAR(160),II$1))-FIND(CHAR(160),SUBSTITUTE($AA44,\"{\",CHAR(160),II$1))+1),\"\")","v":""},{"$f":"IFERROR(MID($AA44,FIND(CHAR(160),SUBSTITUTE($AA44,\"{\",CHAR(160),IJ$1)),FIND(CHAR(160),SUBSTITUTE($AA44,\"}\",CHAR(160),IJ$1))-FIND(CHAR(160),SUBSTITUTE($AA44,\"{\",CHAR(160),IJ$1))+1),\"\")","v":""},{"$f":"IFERROR(MID($AA44,FIND(CHAR(160),SUBSTITUTE($AA44,\"{\",CHAR(160),IK$1)),FIND(CHAR(160),SUBSTITUTE($AA44,\"}\",CHAR(160),IK$1))-FIND(CHAR(160),SUBSTITUTE($AA44,\"{\",CHAR(160),IK$1))+1),\"\")","v":""},{"$f":"IFERROR(MID($AA44,FIND(CHAR(160),SUBSTITUTE($AA44,\"{\",CHAR(160),IL$1)),FIND(CHAR(160),SUBSTITUTE($AA44,\"}\",CHAR(160),IL$1))-FIND(CHAR(160),SUBSTITUTE($AA44,\"{\",CHAR(160),IL$1))+1),\"\")","v":""},{"$f":"IFERROR(MID($AA44,FIND(CHAR(160),SUBSTITUTE($AA44,\"{\",CHAR(160),IM$1)),FIND(CHAR(160),SUBSTITUTE($AA44,\"}\",CHAR(160),IM$1))-FIND(CHAR(160),SUBSTITUTE($AA44,\"{\",CHAR(160),IM$1))+1),\"\")","v":""},{"$f":"IFERROR(MID($AA44,FIND(CHAR(160),SUBSTITUTE($AA44,\"{\",CHAR(160),IN$1)),FIND(CHAR(160),SUBSTITUTE($AA44,\"}\",CHAR(160),IN$1))-FIND(CHAR(160),SUBSTITUTE($AA44,\"{\",CHAR(160),IN$1))+1),\"\")","v":""},{"$f":"IFERROR(MID($AB44,FIND(CHAR(160),SUBSTITUTE($AB44,\"{\",CHAR(160),IO$1)),FIND(CHAR(160),SUBSTITUTE($AB44,\"}\",CHAR(160),IO$1))-FIND(CHAR(160),SUBSTITUTE($AB44,\"{\",CHAR(160),IO$1))+1),\"\")","v":""},{"$f":"IFERROR(MID($AB44,FIND(CHAR(160),SUBSTITUTE($AB44,\"{\",CHAR(160),IP$1)),FIND(CHAR(160),SUBSTITUTE($AB44,\"}\",CHAR(160),IP$1))-FIND(CHAR(160),SUBSTITUTE($AB44,\"{\",CHAR(160),IP$1))+1),\"\")","v":""},{"$f":"IFERROR(MID($AB44,FIND(CHAR(160),SUBSTITUTE($AB44,\"{\",CHAR(160),IQ$1)),FIND(CHAR(160),SUBSTITUTE($AB44,\"}\",CHAR(160),IQ$1))-FIND(CHAR(160),SUBSTITUTE($AB44,\"{\",CHAR(160),IQ$1))+1),\"\")","v":""},{"$f":"IFERROR(MID($AB44,FIND(CHAR(160),SUBSTITUTE($AB44,\"{\",CHAR(160),IR$1)),FIND(CHAR(160),SUBSTITUTE($AB44,\"}\",CHAR(160),IR$1))-FIND(CHAR(160),SUBSTITUTE($AB44,\"{\",CHAR(160),IR$1))+1),\"\")","v":""},{"$f":"IFERROR(MID($AB44,FIND(CHAR(160),SUBSTITUTE($AB44,\"{\",CHAR(160),IS$1)),FIND(CHAR(160),SUBSTITUTE($AB44,\"}\",CHAR(160),IS$1))-FIND(CHAR(160),SUBSTITUTE($AB44,\"{\",CHAR(160),IS$1))+1),\"\")","v":""},{"$f":"IFERROR(MID($AB44,FIND(CHAR(160),SUBSTITUTE($AB44,\"{\",CHAR(160),IT$1)),FIND(CHAR(160),SUBSTITUTE($AB44,\"}\",CHAR(160),IT$1))-FIND(CHAR(160),SUBSTITUTE($AB44,\"{\",CHAR(160),IT$1))+1),\"\")","v":""},{"$f":"IFERROR(MID($AB44,FIND(CHAR(160),SUBSTITUTE($AB44,\"{\",CHAR(160),IU$1)),FIND(CHAR(160),SUBSTITUTE($AB44,\"}\",CHAR(160),IU$1))-FIND(CHAR(160),SUBSTITUTE($AB44,\"{\",CHAR(160),IU$1))+1),\"\")","v":""},{"$f":"IFERROR(MID($AB44,FIND(CHAR(160),SUBSTITUTE($AB44,\"{\",CHAR(160),IV$1)),FIND(CHAR(160),SUBSTITUTE($AB44,\"}\",CHAR(160),IV$1))-FIND(CHAR(160),SUBSTITUTE($AB44,\"{\",CHAR(160),IV$1))+1),\"\")","v":""},{"$f":"IFERROR(MID($AB44,FIND(CHAR(160),SUBSTITUTE($AB44,\"{\",CHAR(160),IW$1)),FIND(CHAR(160),SUBSTITUTE($AB44,\"}\",CHAR(160),IW$1))-FIND(CHAR(160),SUBSTITUTE($AB44,\"{\",CHAR(160),IW$1))+1),\"\")","v":""},{"$f":"IFERROR(MID($AB44,FIND(CHAR(160),SUBSTITUTE($AB44,\"{\",CHAR(160),IX$1)),FIND(CHAR(160),SUBSTITUTE($AB44,\"}\",CHAR(160),IX$1))-FIND(CHAR(160),SUBSTITUTE($AB44,\"{\",CHAR(160),IX$1))+1),\"\")","v":""},null,{"$f":"10-COUNTIF(DU44:ED44,\"\")","v":4}]
["C&I HVAC - Electric","Variable Refrigerant Flow - With Heat Recovery","VRFWHR","2021-07-01","2021-09-09","Calculated","{Measure:Quantity}*{Square Feet Served}*{Incremental Cost per SQFT}",0,"Calculated","{Measure:Quantity}*{Square Feet Served}*3.25",0,"2021-07-01","2022-06-30","Calculated","{Measure:Quantity} * ({Cooling Capacity (Btu/h)}/1000*(1/{IEER_base}-1/{IEER})*829+{Square Feet Served}*47.4/3.412*(if({Alternate Heating Fuel}<>6,0,1/{COP_base})-1/{COP}))",null,null,"{Measure:Quantity} *Max({Square Feet Served}*47.4/3.412*(if({Alternate Heating Fuel}<>6,0,1/{COP_base})-1/{COP})/1600,{Cooling Capacity (Btu/h)}/1000*(1/{IEER_base}-1/{IEER}))",null,null,"{Measure:Quantity} * ({Square Feet Served}*47.4/3.412*(if({Alternate Heating Fuel}<>6,0,1/{COP_base})-1/{COP})/1600*{Factor:WinterCF})","{Measure:Quantity} * ({Cooling Capacity (Btu/h)}/1000*(1/{IEER_base}-1/{IEER})*{Factor:SummerCF})","if({Alternate Heating Fuel}=1,{Measure:Quantity} * {Square Feet Served}*47.4/1000*1/{COP_base},0)*10","if({Alternate Heating Fuel}=2,{Measure:Quantity} * {Square Feet Served}*47.4/1000*1/{COP_base},0)","if({Alternate Heating Fuel}=3,{Measure:Quantity} * {Square Feet Served}*47.4/1000*1/{COP_base},0)","if({Alternate Heating Fuel}=4,{Measure:Quantity} * {Square Feet Served}*47.4/1000*1/{COP_base},0)","if({Alternate Heating Fuel}=5,{Measure:Quantity} * {Square Feet Served}*47.4/1000*1/{COP_base},0)",null,"2021-05-25","2022-06-30",20,0.42,0.35699999999999998,0.17,0.03,0.62,0.18,1,1.1220000000000001,1,0.52,1.6E-2,null,{"$f":"DU45","v":"{Measure:Quantity}"},1,{"$f":"DV45","v":"{Square Feet Served}"},6330,{"$f":"DW45","v":"{Incremental Cost per SQFT}"},1.77,{"$f":"DX45","v":"{IEER_base}"},141000,{"$f":"DY45","v":"{IEER}"},13,{"$f":"DZ45","v":"{Alternate Heating Fuel}"},21,{"$f":"EA45","v":"{COP_base}"},3,{"$f":"EB45","v":"{COP}"},0.82,{"$f":"EC45","v":"{Cooling Capacity (Btu/h)}"},3.78,{"$f":"ED45","v":""},null,{"$f":"AS45 * (AY45/1000*(1/BA45-1/BC45)*829+AU45*47.4/3.412*(IF(BE45<>6,0,1/BG45)-1/BI45))","v":-19838.512056134565},0,0,{"$f":"AS45 *MAX(AU45*47.4/3.412*(IF(BE45<>6,0,1/BG45)-1/BI45)/1600,AY45/1000*(1/BA45-1/BC45))","v":4.1318681318681332},0,0,{"$f":"AS45 * (AU45*47.4/3.412*(IF(BE45<>6,0,1/BG45)-1/BI45)/1600*AF45)","v":-6.1067555685814776},{"$f":"AS45 * (AY45/1000*(1/BA45-1/BC45)*AG45)","v":1.4750769230769234},{"$f":"IF(BE45=1,AS45 * AU45*47.4/1000*1/BG45,0)*10","v":0},{"$f":"IF(BE45=2,AS45 * AU45*47.4/1000*1/BG45,0)","v":0},{"$f":"IF(BE45=3,AS45 * AU45*47.4/1000*1/BG45,0)","v":365.90487804878046},{"$f":"IF(BE45=4,AS45 * AU45*47.4/1000*1/BG45,0)","v":0},{"$f":"IF(BE45=5,AS45 * AU45*47.4/1000*1/BG45,0)","v":0},0,null,"Com","Default DR",{"$f":"Benefits(BL45,BR45,BS45,BT45,BU45,BV45,BW45,BX45,BY45,BZ45,AE45,AH45,AI45,AJ45,AK45,AL45,AM45,AN45,AO45,AP45,CA45,CB45)","v":-33480.338405938397},-25337.221558601395,0,200027.24843443462,0,0,0,0,0,{"$f":"SUMPRODUCT(CC45:CK45,--(CC45:CK45>0))","v":200027.24843443462},{"$f":"-SUMPRODUCT(CC45:CK45,--(CC45:CK45<0))","v":58817.559964539789},null,{"$f":"AS45*AU45*AW45","v":11204.1},null,null,{"$f":"CM45+CO45","v":70021.659964539795},{"$f":"IF(NetOrGross=\"Net\",(1-AO45+AP45),1)","v":1},{"$f":"(SUMPRODUCT(CC45:CJ45,--(CC45:CJ45>0))+CN45)*CS45/((-SUMPRODUCT(CC45:CJ45,--(CC45:CJ45<0))+MAX(CO45,CV45)+CP45+CQ45)*CS45+IF(FRIncentives=\"Yes\",CV45*(1-CS45),0))","v":2.5195502878292118},1,{"$f":"AS45*AU45*3.25","v":20572.5},null,"RGGI","y",null,{"$f":"IF(F45=\"Manual Entry\",\"Manual\",IF(G45=\"\",0,\"X=\"&SUBSTITUTE(SUBSTITUTE(SUBSTITUTE(SUBSTITUTE(SUBSTITUTE(SUBSTITUTE(SUBSTITUTE(SUBSTITUTE(SUBSTITUTE(SUBSTITUTE(SUBSTITUTE(SUBSTITUTE(G45,$ED45,$ED$2&ROW($ED45)),$EC45,$EC$2&ROW($EC45)),$EB45,$EB$2&ROW($EB45)),$EA45,$EA$2&ROW($EA45)),$DZ45,$DZ$2&ROW($DZ45)),$DY45,$DY$2&ROW($DY45)),$DX45,$DX$2&ROW($DX45)),$DW45,$DW$2&ROW($DW45)),$DV45,$DV$2&ROW($DV45)),$DU45,$DU$2&ROW($DU45)),$DT45,$DT$2&ROW($DT45)),$DS45,$DS$2&ROW($DS45))))","v":"X=AS45*AU45*AW45"},{"$f":"IF(I45=\"Manual Entry\",\"Manual\",IF(J45=\"\",0,\"X=\"&SUBSTITUTE(SUBSTITUTE(SUBSTITUTE(SUBSTITUTE(SUBSTITUTE(SUBSTITUTE(SUBSTITUTE(SUBSTITUTE(SUBSTITUTE(SUBSTITUTE(SUBSTITUTE(SUBSTITUTE(J45,$ED45,$ED$2&ROW($ED45)),$EC45,$EC$2&ROW($EC45)),$EB45,$EB$2&ROW($EB45)),$EA45,$EA$2&ROW($EA45)),$DZ45,$DZ$2&ROW($DZ45)),$DY45,$DY$2&ROW($DY45)),$DX45,$DX$2&ROW($DX45)),$DW45,$DW$2&ROW($DW45)),$DV45,$DV$2&ROW($DV45)),$DU45,$DU$2&ROW($DU45)),$DT45,$DT$2&ROW($DT45)),$DS45,$DS$2&ROW($DS45))))","v":"X=AS45*AU45*3.25"},{"$f":"IF(O45=\"\",0,\"X=\"&SUBSTITUTE(SUBSTITUTE(SUBSTITUTE(SUBSTITUTE(SUBSTITUTE(SUBSTITUTE(SUBSTITUTE(SUBSTITUTE(SUBSTITUTE(SUBSTITUTE(SUBSTITUTE(SUBSTITUTE(O45,$ED45,$ED$2&ROW($ED45)),$EC45,$EC$2&ROW($EC45)),$EB45,$EB$2&ROW($EB45)),$EA45,$EA$2&ROW($EA45)),$DZ45,$DZ$2&ROW($DZ45)),$DY45,$DY$2&ROW($DY45)),$DX45,$DX$2&ROW($DX45)),$DW45,$DW$2&ROW($DW45)),$DV45,$DV$2&ROW($DV45)),$DU45,$DU$2&ROW($DU45)),$DT45,$DT$2&ROW($DT45)),$DS45,$DS$2&ROW($DS45)))","v":"X=AS45 * (BI45/1000*(1/AY45-1/BA45)*829+AU45*47.4/3.412*(if(BC45<>6,0,1/BE45)-1/BG45))"},{"$f":"IF(P45=\"\",0,\"X=\"&SUBSTITUTE(SUBSTITUTE(SUBSTITUTE(SUBSTITUTE(SUBSTITUTE(SUBSTITUTE(SUBSTITUTE(SUBSTITUTE(SUBSTITUTE(SUBSTITUTE(SUBSTITUTE(SUBSTITUTE(P45,$ED45,$ED$2&ROW($ED45)),$EC45,$EC$2&ROW($EC45)),$EB45,$EB$2&ROW($EB45)),$EA45,$EA$2&ROW($EA45)),$DZ45,$DZ$2&ROW($DZ45)),$DY45,$DY$2&ROW($DY45)),$DX45,$DX$2&ROW($DX45)),$DW45,$DW$2&ROW($DW45)),$DV45,$DV$2&ROW($DV45)),$DU45,$DU$2&ROW($DU45)),$DT45,$DT$2&ROW($DT45)),$DS45,$DS$2&ROW($DS45)))","v":0},{"$f":"IF(Q45=\"\",0,\"X=\"&SUBSTITUTE(SUBSTITUTE(SUBSTITUTE(SUBSTITUTE(SUBSTITUTE(SUBSTITUTE(SUBSTITUTE(SUBSTITUTE(SUBSTITUTE(SUBSTITUTE(SUBSTITUTE(SUBSTITUTE(Q45,$ED45,$ED$2&ROW($ED45)),$EC45,$EC$2&ROW($EC45)),$EB45,$EB$2&ROW($EB45)),$EA45,$EA$2&ROW($EA45)),$DZ45,$DZ$2&ROW($DZ45)),$DY45,$DY$2&ROW($DY45)),$DX45,$DX$2&ROW($DX45)),$DW45,$DW$2&ROW($DW45)),$DV45,$DV$2&ROW($DV45)),$DU45,$DU$2&ROW($DU45)),$DT45,$DT$2&ROW($DT45)),$DS45,$DS$2&ROW($DS45)))","v":0},{"$f":"IF(R45=\"\",0,\"X=\"&SUBSTITUTE(SUBSTITUTE(SUBSTITUTE(SUBSTITUTE(SUBSTITUTE(SUBSTITUTE(SUBSTITUTE(SUBSTITUTE(SUBSTITUTE(SUBSTITUTE(SUBSTITUTE(SUBSTITUTE(R45,$ED45,$ED$2&ROW($ED45)),$EC45,$EC$2&ROW($EC45)),$EB45,$EB$2&ROW($EB45)),$EA45,$EA$2&ROW($EA45)),$DZ45,$DZ$2&ROW($DZ45)),$DY45,$DY$2&ROW($DY45)),$DX45,$DX$2&ROW($DX45)),$DW45,$DW$2&ROW($DW45)),$DV45,$DV$2&ROW($DV45)),$DU45,$DU$2&ROW($DU45)),$DT45,$DT$2&ROW($DT45)),$DS45,$DS$2&ROW($DS45)))","v":"X=AS45 *Max(AU45*47.4/3.412*(if(BC45<>6,0,1/BE45)-1/BG45)/1600,BI45/1000*(1/AY45-1/BA45))"},{"$f":"IF(S45=\"\",0,\"X=\"&SUBSTITUTE(SUBSTITUTE(SUBSTITUTE(SUBSTITUTE(SUBSTITUTE(SUBSTITUTE(SUBSTITUTE(SUBSTITUTE(SUBSTITUTE(SUBSTITUTE(SUBSTITUTE(SUBSTITUTE(S45,$ED45,$ED$2&ROW($ED45)),$EC45,$EC$2&ROW($EC45)),$EB45,$EB$2&ROW($EB45)),$EA45,$EA$2&ROW($EA45)),$DZ45,$DZ$2&ROW($DZ45)),$DY45,$DY$2&ROW($DY45)),$DX45,$DX$2&ROW($DX45)),$DW45,$DW$2&ROW($DW45)),$DV45,$DV$2&ROW($DV45)),$DU45,$DU$2&ROW($DU45)),$DT45,$DT$2&ROW($DT45)),$DS45,$DS$2&ROW($DS45)))","v":0},{"$f":"IF(T45=\"\",0,\"X=\"&SUBSTITUTE(SUBSTITUTE(SUBSTITUTE(SUBSTITUTE(SUBSTITUTE(SUBSTITUTE(SUBSTITUTE(SUBSTITUTE(SUBSTITUTE(SUBSTITUTE(SUBSTITUTE(SUBSTITUTE(T45,$ED45,$ED$2&ROW($ED45)),$EC45,$EC$2&ROW($EC45)),$EB45,$EB$2&ROW($EB45)),$EA45,$EA$2&ROW($EA45)),$DZ45,$DZ$2&ROW($DZ45)),$DY45,$DY$2&ROW($DY45)),$DX45,$DX$2&ROW($DX45)),$DW45,$DW$2&ROW($DW45)),$DV45,$DV$2&ROW($DV45)),$DU45,$DU$2&ROW($DU45)),$DT45,$DT$2&ROW($DT45)),$DS45,$DS$2&ROW($DS45)))","v":0},{"$f":"IF(U45=\"\",0,\"X=\"&SUBSTITUTE(SUBSTITUTE(SUBSTITUTE(SUBSTITUTE(SUBSTITUTE(SUBSTITUTE(SUBSTITUTE(SUBSTITUTE(SUBSTITUTE(SUBSTITUTE(SUBSTITUTE(SUBSTITUTE(U45,$ED45,$ED$2&ROW($ED45)),$EC45,$EC$2&ROW($EC45)),$EB45,$EB$2&ROW($EB45)),$EA45,$EA$2&ROW($EA45)),$DZ45,$DZ$2&ROW($DZ45)),$DY45,$DY$2&ROW($DY45)),$DX45,$DX$2&ROW($DX45)),$DW45,$DW$2&ROW($DW45)),$DV45,$DV$2&ROW($DV45)),$DU45,$DU$2&ROW($DU45)),$DT45,$DT$2&ROW($DT45)),$DS45,$DS$2&ROW($DS45)))","v":"X=AS45 * (AU45*47.4/3.412*(if(BC45<>6,0,1/BE45)-1/BG45)/1600*AF45)"},{"$f":"IF(V45=\"\",0,\"X=\"&SUBSTITUTE(SUBSTITUTE(SUBSTITUTE(SUBSTITUTE(SUBSTITUTE(SUBSTITUTE(SUBSTITUTE(SUBSTITUTE(SUBSTITUTE(SUBSTITUTE(SUBSTITUTE(SUBSTITUTE(V45,$ED45,$ED$2&ROW($ED45)),$EC45,$EC$2&ROW($EC45)),$EB45,$EB$2&ROW($EB45)),$EA45,$EA$2&ROW($EA45)),$DZ45,$DZ$2&ROW($DZ45)),$DY45,$DY$2&ROW($DY45)),$DX45,$DX$2&ROW($DX45)),$DW45,$DW$2&ROW($DW45)),$DV45,$DV$2&ROW($DV45)),$DU45,$DU$2&ROW($DU45)),$DT45,$DT$2&ROW($DT45)),$DS45,$DS$2&ROW($DS45)))","v":"X=AS45 * (BI45/1000*(1/AY45-1/BA45)*AG45)"},{"$f":"IF(W45=\"\",0,\"X=\"&SUBSTITUTE(SUBSTITUTE(SUBSTITUTE(SUBSTITUTE(SUBSTITUTE(SUBSTITUTE(SUBSTITUTE(SUBSTITUTE(SUBSTITUTE(SUBSTITUTE(SUBSTITUTE(SUBSTITUTE(W45,$ED45,$ED$2&ROW($ED45)),$EC45,$EC$2&ROW($EC45)),$EB45,$EB$2&ROW($EB45)),$EA45,$EA$2&ROW($EA45)),$DZ45,$DZ$2&ROW($DZ45)),$DY45,$DY$2&ROW($DY45)),$DX45,$DX$2&ROW($DX45)),$DW45,$DW$2&ROW($DW45)),$DV45,$DV$2&ROW($DV45)),$DU45,$DU$2&ROW($DU45)),$DT45,$DT$2&ROW($DT45)),$DS45,$DS$2&ROW($DS45)))","v":"X=if(BC45=1,AS45 * AU45*47.4/1000*1/BE45,0)*10"},{"$f":"IF(X45=\"\",0,\"X=\"&SUBSTITUTE(SUBSTITUTE(SUBSTITUTE(SUBSTITUTE(SUBSTITUTE(SUBSTITUTE(SUBSTITUTE(SUBSTITUTE(SUBSTITUTE(SUBSTITUTE(SUBSTITUTE(SUBSTITUTE(X45,$ED45,$ED$2&ROW($ED45)),$EC45,$EC$2&ROW($EC45)),$EB45,$EB$2&ROW($EB45)),$EA45,$EA$2&ROW($EA45)),$DZ45,$DZ$2&ROW($DZ45)),$DY45,$DY$2&ROW($DY45)),$DX45,$DX$2&ROW($DX45)),$DW45,$DW$2&ROW($DW45)),$DV45,$DV$2&ROW($DV45)),$DU45,$DU$2&ROW($DU45)),$DT45,$DT$2&ROW($DT45)),$DS45,$DS$2&ROW($DS45)))","v":"X=if(BC45=2,AS45 * AU45*47.4/1000*1/BE45,0)"},{"$f":"IF(Y45=\"\",0,\"X=\"&SUBSTITUTE(SUBSTITUTE(SUBSTITUTE(SUBSTITUTE(SUBSTITUTE(SUBSTITUTE(SUBSTITUTE(SUBSTITUTE(SUBSTITUTE(SUBSTITUTE(SUBSTITUTE(SUBSTITUTE(Y45,$ED45,$ED$2&ROW($ED45)),$EC45,$EC$2&ROW($EC45)),$EB45,$EB$2&ROW($EB45)),$EA45,$EA$2&ROW($EA45)),$DZ45,$DZ$2&ROW($DZ45)),$DY45,$DY$2&ROW($DY45)),$DX45,$DX$2&ROW($DX45)),$DW45,$DW$2&ROW($DW45)),$DV45,$DV$2&ROW($DV45)),$DU45,$DU$2&ROW($DU45)),$DT45,$DT$2&ROW($DT45)),$DS45,$DS$2&ROW($DS45)))","v":"X=if(BC45=3,AS45 * AU45*47.4/1000*1/BE45,0)"},{"$f":"IF(Z45=\"\",0,\"X=\"&SUBSTITUTE(SUBSTITUTE(SUBSTITUTE(SUBSTITUTE(SUBSTITUTE(SUBSTITUTE(SUBSTITUTE(SUBSTITUTE(SUBSTITUTE(SUBSTITUTE(SUBSTITUTE(SUBSTITUTE(Z45,$ED45,$ED$2&ROW($ED45)),$EC45,$EC$2&ROW($EC45)),$EB45,$EB$2&ROW($EB45)),$EA45,$EA$2&ROW($EA45)),$DZ45,$DZ$2&ROW($DZ45)),$DY45,$DY$2&ROW($DY45)),$DX45,$DX$2&ROW($DX45)),$DW45,$DW$2&ROW($DW45)),$DV45,$DV$2&ROW($DV45)),$DU45,$DU$2&ROW($DU45)),$DT45,$DT$2&ROW($DT45)),$DS45,$DS$2&ROW($DS45)))","v":"X=if(BC45=4,AS45 * AU45*47.4/1000*1/BE45,0)"},{"$f":"IF(AA45=\"\",0,\"X=\"&SUBSTITUTE(SUBSTITUTE(SUBSTITUTE(SUBSTITUTE(SUBSTITUTE(SUBSTITUTE(SUBSTITUTE(SUBSTITUTE(SUBSTITUTE(SUBSTITUTE(SUBSTITUTE(SUBSTITUTE(AA45,$ED45,$ED$2&ROW($ED45)),$EC45,$EC$2&ROW($EC45)),$EB45,$EB$2&ROW($EB45)),$EA45,$EA$2&ROW($EA45)),$DZ45,$DZ$2&ROW($DZ45)),$DY45,$DY$2&ROW($DY45)),$DX45,$DX$2&ROW($DX45)),$DW45,$DW$2&ROW($DW45)),$DV45,$DV$2&ROW($DV45)),$DU45,$DU$2&ROW($DU45)),$DT45,$DT$2&ROW($DT45)),$DS45,$DS$2&ROW($DS45)))","v":"X=if(BC45=5,AS45 * AU45*47.4/1000*1/BE45,0)"},{"$f":"IF(AB45=\"\",0,\"X=\"&SUBSTITUTE(SUBSTITUTE(SUBSTITUTE(SUBSTITUTE(SUBSTITUTE(SUBSTITUTE(SUBSTITUTE(SUBSTITUTE(SUBSTITUTE(SUBSTITUTE(SUBSTITUTE(SUBSTITUTE(AB45,$ED45,$ED$2&ROW($ED45)),$EC45,$EC$2&ROW($EC45)),$EB45,$EB$2&ROW($EB45)),$EA45,$EA$2&ROW($EA45)),$DZ45,$DZ$2&ROW($DZ45)),$DY45,$DY$2&ROW($DY45)),$DX45,$DX$2&ROW($DX45)),$DW45,$DW$2&ROW($DW45)),$DV45,$DV$2&ROW($DV45)),$DU45,$DU$2&ROW($DU45)),$DT45,$DT$2&ROW($DT45)),$DS45,$DS$2&ROW($DS45)))","v":0},null,null,"{Factor:WinterCF}","{Factor:SummerCF}",{"$f":"IFERROR(INDEX($EG45:$IV45,MATCH(0,COUNTIF($DR45:DT45,$EG45:$IV45),0)),\"\")","v":"{Measure:Quantity}"},{"$f":"IFERROR(INDEX($EG45:$IV45,MATCH(0,COUNTIF($DR45:DU45,$EG45:$IV45),0)),\"\")","v":"{Square Feet Served}"},{"$f":"IFERROR(INDEX($EG45:$IV45,MATCH(0,COUNTIF($DR45:DV45,$EG45:$IV45),0)),\"\")","v":"{Incremental Cost per SQFT}"},{"$f":"IFERROR(INDEX($EG45:$IV45,MATCH(0,COUNTIF($DR45:DW45,$EG45:$IV45),0)),\"\")","v":"{IEER_base}"},{"$f":"IFERROR(INDEX($EG45:$IV45,MATCH(0,COUNTIF($DR45:DX45,$EG45:$IV45),0)),\"\")","v":"{IEER}"},{"$f":"IFERROR(INDEX($EG45:$IV45,MATCH(0,COUNTIF($DR45:DY45,$EG45:$IV45),0)),\"\")","v":"{Alternate Heating Fuel}"},{"$f":"IFERROR(INDEX($EG45:$IV45,MATCH(0,COUNTIF($DR45:DZ45,$EG45:$IV45),0)),\"\")","v":"{COP_base}"},{"$f":"IFERROR(INDEX($EG45:$IV45,MATCH(0,COUNTIF($DR45:EA45,$EG45:$IV45),0)),\"\")","v":"{COP}"},{"$f":"IFERROR(INDEX($EG45:$IV45,MATCH(0,COUNTIF($DR45:EB45,$EG45:$IV45),0)),\"\")","v":"{Cooling Capacity (Btu/h)}"},{"$f":"IFERROR(INDEX($EG45:$IV45,MATCH(0,COUNTIF($DR45:EC45,$EG45:$IV45),0)),\"\")","v":""},null,null,{"$f":"IFERROR(MID($G45,FIND(CHAR(160),SUBSTITUTE($G45,\"{\",CHAR(160),EG$1)),FIND(CHAR(160),SUBSTITUTE($G45,\"}\",CHAR(160),EG$1))-FIND(CHAR(160),SUBSTITUTE($G45,\"{\",CHAR(160),EG$1))+1),\"\")","v":"{Measure:Quantity}"},{"$f":"IFERROR(MID($G45,FIND(CHAR(160),SUBSTITUTE($G45,\"{\",CHAR(160),EH$1)),FIND(CHAR(160),SUBSTITUTE($G45,\"}\",CHAR(160),EH$1))-FIND(CHAR(160),SUBSTITUTE($G45,\"{\",CHAR(160),EH$1))+1),\"\")","v":"{Square Feet Served}"},{"$f":"IFERROR(MID($G45,FIND(CHAR(160),SUBSTITUTE($G45,\"{\",CHAR(160),EI$1)),FIND(CHAR(160),SUBSTITUTE($G45,\"}\",CHAR(160),EI$1))-FIND(CHAR(160),SUBSTITUTE($G45,\"{\",CHAR(160),EI$1))+1),\"\")","v":"{Incremental Cost per SQFT}"},{"$f":"IFERROR(MID($G45,FIND(CHAR(160),SUBSTITUTE($G45,\"{\",CHAR(160),EJ$1)),FIND(CHAR(160),SUBSTITUTE($G45,\"}\",CHAR(160),EJ$1))-FIND(CHAR(160),SUBSTITUTE($G45,\"{\",CHAR(160),EJ$1))+1),\"\")","v":""},{"$f":"IFERROR(MID($G45,FIND(CHAR(160),SUBSTITUTE($G45,\"{\",CHAR(160),EK$1)),FIND(CHAR(160),SUBSTITUTE($G45,\"}\",CHAR(160),EK$1))-FIND(CHAR(160),SUBSTITUTE($G45,\"{\",CHAR(160),EK$1))+1),\"\")","v":""},{"$f":"IFERROR(MID($G45,FIND(CHAR(160),SUBSTITUTE($G45,\"{\",CHAR(160),EL$1)),FIND(CHAR(160),SUBSTITUTE($G45,\"}\",CHAR(160),EL$1))-FIND(CHAR(160),SUBSTITUTE($G45,\"{\",CHAR(160),EL$1))+1),\"\")","v":""},{"$f":"IFERROR(MID($G45,FIND(CHAR(160),SUBSTITUTE($G45,\"{\",CHAR(160),EM$1)),FIND(CHAR(160),SUBSTITUTE($G45,\"}\",CHAR(160),EM$1))-FIND(CHAR(160),SUBSTITUTE($G45,\"{\",CHAR(160),EM$1))+1),\"\")","v":""},{"$f":"IFERROR(MID($G45,FIND(CHAR(160),SUBSTITUTE($G45,\"{\",CHAR(160),EN$1)),FIND(CHAR(160),SUBSTITUTE($G45,\"}\",CHAR(160),EN$1))-FIND(CHAR(160),SUBSTITUTE($G45,\"{\",CHAR(160),EN$1))+1),\"\")","v":""},{"$f":"IFERROR(MID($G45,FIND(CHAR(160),SUBSTITUTE($G45,\"{\",CHAR(160),EO$1)),FIND(CHAR(160),SUBSTITUTE($G45,\"}\",CHAR(160),EO$1))-FIND(CHAR(160),SUBSTITUTE($G45,\"{\",CHAR(160),EO$1))+1),\"\")","v":""},{"$f":"IFERROR(MID($G45,FIND(CHAR(160),SUBSTITUTE($G45,\"{\",CHAR(160),EP$1)),FIND(CHAR(160),SUBSTITUTE($G45,\"}\",CHAR(160),EP$1))-FIND(CHAR(160),SUBSTITUTE($G45,\"{\",CHAR(160),EP$1))+1),\"\")","v":""},{"$f":"IFERROR(MID($J45,FIND(CHAR(160),SUBSTITUTE($J45,\"{\",CHAR(160),EQ$1)),FIND(CHAR(160),SUBSTITUTE($J45,\"}\",CHAR(160),EQ$1))-FIND(CHAR(160),SUBSTITUTE($J45,\"{\",CHAR(160),EQ$1))+1),\"\")","v":"{Measure:Quantity}"},{"$f":"IFERROR(MID($J45,FIND(CHAR(160),SUBSTITUTE($J45,\"{\",CHAR(160),ER$1)),FIND(CHAR(160),SUBSTITUTE($J45,\"}\",CHAR(160),ER$1))-FIND(CHAR(160),SUBSTITUTE($J45,\"{\",CHAR(160),ER$1))+1),\"\")","v":"{Square Feet Served}"},{"$f":"IFERROR(MID($J45,FIND(CHAR(160),SUBSTITUTE($J45,\"{\",CHAR(160),ES$1)),FIND(CHAR(160),SUBSTITUTE($J45,\"}\",CHAR(160),ES$1))-FIND(CHAR(160),SUBSTITUTE($J45,\"{\",CHAR(160),ES$1))+1),\"\")","v":""},{"$f":"IFERROR(MID($J45,FIND(CHAR(160),SUBSTITUTE($J45,\"{\",CHAR(160),ET$1)),FIND(CHAR(160),SUBSTITUTE($J45,\"}\",CHAR(160),ET$1))-FIND(CHAR(160),SUBSTITUTE($J45,\"{\",CHAR(160),ET$1))+1),\"\")","v":""},{"$f":"IFERROR(MID($J45,FIND(CHAR(160),SUBSTITUTE($J45,\"{\",CHAR(160),EU$1)),FIND(CHAR(160),SUBSTITUTE($J45,\"}\",CHAR(160),EU$1))-FIND(CHAR(160),SUBSTITUTE($J45,\"{\",CHAR(160),EU$1))+1),\"\")","v":""},{"$f":"IFERROR(MID($J45,FIND(CHAR(160),SUBSTITUTE($J45,\"{\",CHAR(160),EV$1)),FIND(CHAR(160),SUBSTITUTE($J45,\"}\",CHAR(160),EV$1))-FIND(CHAR(160),SUBSTITUTE($J45,\"{\",CHAR(160),EV$1))+1),\"\")","v":""},{"$f":"IFERROR(MID($J45,FIND(CHAR(160),SUBSTITUTE($J45,\"{\",CHAR(160),EW$1)),FIND(CHAR(160),SUBSTITUTE($J45,\"}\",CHAR(160),EW$1))-FIND(CHAR(160),SUBSTITUTE($J45,\"{\",CHAR(160),EW$1))+1),\"\")","v":""},{"$f":"IFERROR(MID($J45,FIND(CHAR(160),SUBSTITUTE($J45,\"{\",CHAR(160),EX$1)),FIND(CHAR(160),SUBSTITUTE($J45,\"}\",CHAR(160),EX$1))-FIND(CHAR(160),SUBSTITUTE($J45,\"{\",CHAR(160),EX$1))+1),\"\")","v":""},{"$f":"IFERROR(MID($J45,FIND(CHAR(160),SUBSTITUTE($J45,\"{\",CHAR(160),EY$1)),FIND(CHAR(160),SUBSTITUTE($J45,\"}\",CHAR(160),EY$1))-FIND(CHAR(160),SUBSTITUTE($J45,\"{\",CHAR(160),EY$1))+1),\"\")","v":""},{"$f":"IFERROR(MID($J45,FIND(CHAR(160),SUBSTITUTE($J45,\"{\",CHAR(160),EZ$1)),FIND(CHAR(160),SUBSTITUTE($J45,\"}\",CHAR(160),EZ$1))-FIND(CHAR(160),SUBSTITUTE($J45,\"{\",CHAR(160),EZ$1))+1),\"\")","v":""},{"$f":"IFERROR(MID($J45,FIND(CHAR(160),SUBSTITUTE($J45,\"{\",CHAR(160),FA$1)),FIND(CHAR(160),SUBSTITUTE($J45,\"}\",CHAR(160),FA$1))-FIND(CHAR(160),SUBSTITUTE($J45,\"{\",CHAR(160),FA$1))+1),\"\")","v":"{Measure:Quantity}"},{"$f":"IFERROR(MID($J45,FIND(CHAR(160),SUBSTITUTE($J45,\"{\",CHAR(160),FB$1)),FIND(CHAR(160),SUBSTITUTE($J45,\"}\",CHAR(160),FB$1))-FIND(CHAR(160),SUBSTITUTE($J45,\"{\",CHAR(160),FB$1))+1),\"\")","v":"{Square Feet Served}"},{"$f":"IFERROR(MID($O45,FIND(CHAR(160),SUBSTITUTE($O45,\"{\",CHAR(160),FC$1)),FIND(CHAR(160),SUBSTITUTE($O45,\"}\",CHAR(160),FC$1))-FIND(CHAR(160),SUBSTITUTE($O45,\"{\",CHAR(160),FC$1))+1),\"\")","v":"{IEER_base}"},{"$f":"IFERROR(MID($O45,FIND(CHAR(160),SUBSTITUTE($O45,\"{\",CHAR(160),FD$1)),FIND(CHAR(160),SUBSTITUTE($O45,\"}\",CHAR(160),FD$1))-FIND(CHAR(160),SUBSTITUTE($O45,\"{\",CHAR(160),FD$1))+1),\"\")","v":"{IEER}"},{"$f":"IFERROR(MID($O45,FIND(CHAR(160),SUBSTITUTE($O45,\"{\",CHAR(160),FE$1)),FIND(CHAR(160),SUBSTITUTE($O45,\"}\",CHAR(160),FE$1))-FIND(CHAR(160),SUBSTITUTE($O45,\"{\",CHAR(160),FE$1))+1),\"\")","v":"{Square Feet Served}"},{"$f":"IFERROR(MID($O45,FIND(CHAR(160),SUBSTITUTE($O45,\"{\",CHAR(160),FF$1)),FIND(CHAR(160),SUBSTITUTE($O45,\"}\",CHAR(160),FF$1))-FIND(CHAR(160),SUBSTITUTE($O45,\"{\",CHAR(160),FF$1))+1),\"\")","v":"{Alternate Heating Fuel}"},{"$f":"IFERROR(MID($O45,FIND(CHAR(160),SUBSTITUTE($O45,\"{\",CHAR(160),FG$1)),FIND(CHAR(160),SUBSTITUTE($O45,\"}\",CHAR(160),FG$1))-FIND(CHAR(160),SUBSTITUTE($O45,\"{\",CHAR(160),FG$1))+1),\"\")","v":"{COP_base}"},{"$f":"IFERROR(MID($O45,FIND(CHAR(160),SUBSTITUTE($O45,\"{\",CHAR(160),FH$1)),FIND(CHAR(160),SUBSTITUTE($O45,\"}\",CHAR(160),FH$1))-FIND(CHAR(160),SUBSTITUTE($O45,\"{\",CHAR(160),FH$1))+1),\"\")","v":"{COP}"},{"$f":"IFERROR(MID($O45,FIND(CHAR(160),SUBSTITUTE($O45,\"{\",CHAR(160),FI$1)),FIND(CHAR(160),SUBSTITUTE($O45,\"}\",CHAR(160),FI$1))-FIND(CHAR(160),SUBSTITUTE($O45,\"{\",CHAR(160),FI$1))+1),\"\")","v":""},{"$f":"IFERROR(MID($O45,FIND(CHAR(160),SUBSTITUTE($O45,\"{\",CHAR(160),FJ$1)),FIND(CHAR(160),SUBSTITUTE($O45,\"}\",CHAR(160),FJ$1))-FIND(CHAR(160),SUBSTITUTE($O45,\"{\",CHAR(160),FJ$1))+1),\"\")","v":""},{"$f":"IFERROR(MID($O45,FIND(CHAR(160),SUBSTITUTE($O45,\"{\",CHAR(160),FK$1)),FIND(CHAR(160),SUBSTITUTE($O45,\"}\",CHAR(160),FK$1))-FIND(CHAR(160),SUBSTITUTE($O45,\"{\",CHAR(160),FK$1))+1),\"\")","v":"{Measure:Quantity}"},{"$f":"IFERROR(MID($O45,FIND(CHAR(160),SUBSTITUTE($O45,\"{\",CHAR(160),FL$1)),FIND(CHAR(160),SUBSTITUTE($O45,\"}\",CHAR(160),FL$1))-FIND(CHAR(160),SUBSTITUTE($O45,\"{\",CHAR(160),FL$1))+1),\"\")","v":"{Cooling Capacity (Btu/h)}"},{"$f":"IFERROR(MID($R45,FIND(CHAR(160),SUBSTITUTE($R45,\"{\",CHAR(160),FM$1)),FIND(CHAR(160),SUBSTITUTE($R45,\"}\",CHAR(160),FM$1))-FIND(CHAR(160),SUBSTITUTE($R45,\"{\",CHAR(160),FM$1))+1),\"\")","v":"{Alternate Heating Fuel}"},{"$f":"IFERROR(MID($R45,FIND(CHAR(160),SUBSTITUTE($R45,\"{\",CHAR(160),FN$1)),FIND(CHAR(160),SUBSTITUTE($R45,\"}\",CHAR(160),FN$1))-FIND(CHAR(160),SUBSTITUTE($R45,\"{\",CHAR(160),FN$1))+1),\"\")","v":"{COP_base}"},{"$f":"IFERROR(MID($R45,FIND(CHAR(160),SUBSTITUTE($R45,\"{\",CHAR(160),FO$1)),FIND(CHAR(160),SUBSTITUTE($R45,\"}\",CHAR(160),FO$1))-FIND(CHAR(160),SUBSTITUTE($R45,\"{\",CHAR(160),FO$1))+1),\"\")","v":"{COP}"},{"$f":"IFERROR(MID($R45,FIND(CHAR(160),SUBSTITUTE($R45,\"{\",CHAR(160),FP$1)),FIND(CHAR(160),SUBSTITUTE($R45,\"}\",CHAR(160),FP$1))-FIND(CHAR(160),SUBSTITUTE($R45,\"{\",CHAR(160),FP$1))+1),\"\")","v":"{Cooling Capacity (Btu/h)}"},{"$f":"IFERROR(MID($R45,FIND(CHAR(160),SUBSTITUTE($R45,\"{\",CHAR(160),FQ$1)),FIND(CHAR(160),SUBSTITUTE($R45,\"}\",CHAR(160),FQ$1))-FIND(CHAR(160),SUBSTITUTE($R45,\"{\",CHAR(160),FQ$1))+1),\"\")","v":"{IEER_base}"},{"$f":"IFERROR(MID($R45,FIND(CHAR(160),SUBSTITUTE($R45,\"{\",CHAR(160),FR$1)),FIND(CHAR(160),SUBSTITUTE($R45,\"}\",CHAR(160),FR$1))-FIND(CHAR(160),SUBSTITUTE($R45,\"{\",CHAR(160),FR$1))+1),\"\")","v":"{IEER}"},{"$f":"IFERROR(MID($R45,FIND(CHAR(160),SUBSTITUTE($R45,\"{\",CHAR(160),FS$1)),FIND(CHAR(160),SUBSTITUTE($R45,\"}\",CHAR(160),FS$1))-FIND(CHAR(160),SUBSTITUTE($R45,\"{\",CHAR(160),FS$1))+1),\"\")","v":""},{"$f":"IFERROR(MID($R45,FIND(CHAR(160),SUBSTITUTE($R45,\"{\",CHAR(160),FT$1)),FIND(CHAR(160),SUBSTITUTE($R45,\"}\",CHAR(160),FT$1))-FIND(CHAR(160),SUBSTITUTE($R45,\"{\",CHAR(160),FT$1))+1),\"\")","v":""},{"$f":"IFERROR(MID($R45,FIND(CHAR(160),SUBSTITUTE($R45,\"{\",CHAR(160),FU$1)),FIND(CHAR(160),SUBSTITUTE($R45,\"}\",CHAR(160),FU$1))-FIND(CHAR(160),SUBSTITUTE($R45,\"{\",CHAR(160),FU$1))+1),\"\")","v":"{Measure:Quantity}"},{"$f":"IFERROR(MID($R45,FIND(CHAR(160),SUBSTITUTE($R45,\"{\",CHAR(160),FV$1)),FIND(CHAR(160),SUBSTITUTE($R45,\"}\",CHAR(160),FV$1))-FIND(CHAR(160),SUBSTITUTE($R45,\"{\",CHAR(160),FV$1))+1),\"\")","v":"{Square Feet Served}"},{"$f":"IFERROR(MID($U45,FIND(CHAR(160),SUBSTITUTE($U45,\"{\",CHAR(160),FW$1)),FIND(CHAR(160),SUBSTITUTE($U45,\"}\",CHAR(160),FW$1))-FIND(CHAR(160),SUBSTITUTE($U45,\"{\",CHAR(160),FW$1))+1),\"\")","v":"{Alternate Heating Fuel}"},{"$f":"IFERROR(MID($U45,FIND(CHAR(160),SUBSTITUTE($U45,\"{\",CHAR(160),FX$1)),FIND(CHAR(160),SUBSTITUTE($U45,\"}\",CHAR(160),FX$1))-FIND(CHAR(160),SUBSTITUTE($U45,\"{\",CHAR(160),FX$1))+1),\"\")","v":"{COP_base}"},{"$f":"IFERROR(MID($U45,FIND(CHAR(160),SUBSTITUTE($U45,\"{\",CHAR(160),FY$1)),FIND(CHAR(160),SUBSTITUTE($U45,\"}\",CHAR(160),FY$1))-FIND(CHAR(160),SUBSTITUTE($U45,\"{\",CHAR(160),FY$1))+1),\"\")","v":"{COP}"},{"$f":"IFERROR(MID($U45,FIND(CHAR(160),SUBSTITUTE($U45,\"{\",CHAR(160),FZ$1)),FIND(CHAR(160),SUBSTITUTE($U45,\"}\",CHAR(160),FZ$1))-FIND(CHAR(160),SUBSTITUTE($U45,\"{\",CHAR(160),FZ$1))+1),\"\")","v":"{Factor:WinterCF}"},{"$f":"IFERROR(MID($U45,FIND(CHAR(160),SUBSTITUTE($U45,\"{\",CHAR(160),GA$1)),FIND(CHAR(160),SUBSTITUTE($U45,\"}\",CHAR(160),GA$1))-FIND(CHAR(160),SUBSTITUTE($U45,\"{\",CHAR(160),GA$1))+1),\"\")","v":""},{"$f":"IFERROR(MID($U45,FIND(CHAR(160),SUBSTITUTE($U45,\"{\",CHAR(160),GB$1)),FIND(CHAR(160),SUBSTITUTE($U45,\"}\",CHAR(160),GB$1))-FIND(CHAR(160),SUBSTITUTE($U45,\"{\",CHAR(160),GB$1))+1),\"\")","v":""},{"$f":"IFERROR(MID($U45,FIND(CHAR(160),SUBSTITUTE($U45,\"{\",CHAR(160),GC$1)),FIND(CHAR(160),SUBSTITUTE($U45,\"}\",CHAR(160),GC$1))-FIND(CHAR(160),SUBSTITUTE($U45,\"{\",CHAR(160),GC$1))+1),\"\")","v":""},{"$f":"IFERROR(MID($U45,FIND(CHAR(160),SUBSTITUTE($U45,\"{\",CHAR(160),GD$1)),FIND(CHAR(160),SUBSTITUTE($U45,\"}\",CHAR(160),GD$1))-FIND(CHAR(160),SUBSTITUTE($U45,\"{\",CHAR(160),GD$1))+1),\"\")","v":""},{"$f":"IFERROR(MID($U45,FIND(CHAR(160),SUBSTITUTE($U45,\"{\",CHAR(160),GE$1)),FIND(CHAR(160),SUBSTITUTE($U45,\"}\",CHAR(160),GE$1))-FIND(CHAR(160),SUBSTITUTE($U45,\"{\",CHAR(160),GE$1))+1),\"\")","v":"{Measure:Quantity}"},{"$f":"IFERROR(MID($U45,FIND(CHAR(160),SUBSTITUTE($U45,\"{\",CHAR(160),GF$1)),FIND(CHAR(160),SUBSTITUTE($U45,\"}\",CHAR(160),GF$1))-FIND(CHAR(160),SUBSTITUTE($U45,\"{\",CHAR(160),GF$1))+1),\"\")","v":"{Square Feet Served}"},{"$f":"IFERROR(MID($V45,FIND(CHAR(160),SUBSTITUTE($V45,\"{\",CHAR(160),GG$1)),FIND(CHAR(160),SUBSTITUTE($V45,\"}\",CHAR(160),GG$1))-FIND(CHAR(160),SUBSTITUTE($V45,\"{\",CHAR(160),GG$1))+1),\"\")","v":"{IEER_base}"},{"$f":"IFERROR(MID($V45,FIND(CHAR(160),SUBSTITUTE($V45,\"{\",CHAR(160),GH$1)),FIND(CHAR(160),SUBSTITUTE($V45,\"}\",CHAR(160),GH$1))-FIND(CHAR(160),SUBSTITUTE($V45,\"{\",CHAR(160),GH$1))+1),\"\")","v":"{IEER}"},{"$f":"IFERROR(MID($V45,FIND(CHAR(160),SUBSTITUTE($V45,\"{\",CHAR(160),GI$1)),FIND(CHAR(160),SUBSTITUTE($V45,\"}\",CHAR(160),GI$1))-FIND(CHAR(160),SUBSTITUTE($V45,\"{\",CHAR(160),GI$1))+1),\"\")","v":"{Factor:SummerCF}"},{"$f":"IFERROR(MID($V45,FIND(CHAR(160),SUBSTITUTE($V45,\"{\",CHAR(160),GJ$1)),FIND(CHAR(160),SUBSTITUTE($V45,\"}\",CHAR(160),GJ$1))-FIND(CHAR(160),SUBSTITUTE($V45,\"{\",CHAR(160),GJ$1))+1),\"\")","v":""},{"$f":"IFERROR(MID($V45,FIND(CHAR(160),SUBSTITUTE($V45,\"{\",CHAR(160),GK$1)),FIND(CHAR(160),SUBSTITUTE($V45,\"}\",CHAR(160),GK$1))-FIND(CHAR(160),SUBSTITUTE($V45,\"{\",CHAR(160),GK$1))+1),\"\")","v":""},{"$f":"IFERROR(MID($V45,FIND(CHAR(160),SUBSTITUTE($V45,\"{\",CHAR(160),GL$1)),FIND(CHAR(160),SUBSTITUTE($V45,\"}\",CHAR(160),GL$1))-FIND(CHAR(160),SUBSTITUTE($V45,\"{\",CHAR(160),GL$1))+1),\"\")","v":""},{"$f":"IFERROR(MID($V45,FIND(CHAR(160),SUBSTITUTE($V45,\"{\",CHAR(160),GM$1)),FIND(CHAR(160),SUBSTITUTE($V45,\"}\",CHAR(160),GM$1))-FIND(CHAR(160),SUBSTITUTE($V45,\"{\",CHAR(160),GM$1))+1),\"\")","v":""},{"$f":"IFERROR(MID($V45,FIND(CHAR(160),SUBSTITUTE($V45,\"{\",CHAR(160),GN$1)),FIND(CHAR(160),SUBSTITUTE($V45,\"}\",CHAR(160),GN$1))-FIND(CHAR(160),SUBSTITUTE($V45,\"{\",CHAR(160),GN$1))+1),\"\")","v":""},{"$f":"IFERROR(MID($V45,FIND(CHAR(160),SUBSTITUTE($V45,\"{\",CHAR(160),GO$1)),FIND(CHAR(160),SUBSTITUTE($V45,\"}\",CHAR(160),GO$1))-FIND(CHAR(160),SUBSTITUTE($V45,\"{\",CHAR(160),GO$1))+1),\"\")","v":"{Measure:Quantity}"},{"$f":"IFERROR(MID($V45,FIND(CHAR(160),SUBSTITUTE($V45,\"{\",CHAR(160),GP$1)),FIND(CHAR(160),SUBSTITUTE($V45,\"}\",CHAR(160),GP$1))-FIND(CHAR(160),SUBSTITUTE($V45,\"{\",CHAR(160),GP$1))+1),\"\")","v":"{Cooling Capacity (Btu/h)}"},{"$f":"IFERROR(MID($W45,FIND(CHAR(160),SUBSTITUTE($W45,\"{\",CHAR(160),GQ$1)),FIND(CHAR(160),SUBSTITUTE($W45,\"}\",CHAR(160),GQ$1))-FIND(CHAR(160),SUBSTITUTE($W45,\"{\",CHAR(160),GQ$1))+1),\"\")","v":"{Square Feet Served}"},{"$f":"IFERROR(MID($W45,FIND(CHAR(160),SUBSTITUTE($W45,\"{\",CHAR(160),GR$1)),FIND(CHAR(160),SUBSTITUTE($W45,\"}\",CHAR(160),GR$1))-FIND(CHAR(160),SUBSTITUTE($W45,\"{\",CHAR(160),GR$1))+1),\"\")","v":"{COP_base}"},{"$f":"IFERROR(MID($W45,FIND(CHAR(160),SUBSTITUTE($W45,\"{\",CHAR(160),GS$1)),FIND(CHAR(160),SUBSTITUTE($W45,\"}\",CHAR(160),GS$1))-FIND(CHAR(160),SUBSTITUTE($W45,\"{\",CHAR(160),GS$1))+1),\"\")","v":""},{"$f":"IFERROR(MID($W45,FIND(CHAR(160),SUBSTITUTE($W45,\"{\",CHAR(160),GT$1)),FIND(CHAR(160),SUBSTITUTE($W45,\"}\",CHAR(160),GT$1))-FIND(CHAR(160),SUBSTITUTE($W45,\"{\",CHAR(160),GT$1))+1),\"\")","v":""},{"$f":"IFERROR(MID($W45,FIND(CHAR(160),SUBSTITUTE($W45,\"{\",CHAR(160),GU$1)),FIND(CHAR(160),SUBSTITUTE($W45,\"}\",CHAR(160),GU$1))-FIND(CHAR(160),SUBSTITUTE($W45,\"{\",CHAR(160),GU$1))+1),\"\")","v":""},{"$f":"IFERROR(MID($W45,FIND(CHAR(160),SUBSTITUTE($W45,\"{\",CHAR(160),GV$1)),FIND(CHAR(160),SUBSTITUTE($W45,\"}\",CHAR(160),GV$1))-FIND(CHAR(160),SUBSTITUTE($W45,\"{\",CHAR(160),GV$1))+1),\"\")","v":""},{"$f":"IFERROR(MID($W45,FIND(CHAR(160),SUBSTITUTE($W45,\"{\",CHAR(160),GW$1)),FIND(CHAR(160),SUBSTITUTE($W45,\"}\",CHAR(160),GW$1))-FIND(CHAR(160),SUBSTITUTE($W45,\"{\",CHAR(160),GW$1))+1),\"\")","v":""},{"$f":"IFERROR(MID($W45,FIND(CHAR(160),SUBSTITUTE($W45,\"{\",CHAR(160),GX$1)),FIND(CHAR(160),SUBSTITUTE($W45,\"}\",CHAR(160),GX$1))-FIND(CHAR(160),SUBSTITUTE($W45,\"{\",CHAR(160),GX$1))+1),\"\")","v":""},{"$f":"IFERROR(MID($W45,FIND(CHAR(160),SUBSTITUTE($W45,\"{\",CHAR(160),GY$1)),FIND(CHAR(160),SUBSTITUTE($W45,\"}\",CHAR(160),GY$1))-FIND(CHAR(160),SUBSTITUTE($W45,\"{\",CHAR(160),GY$1))+1),\"\")","v":"{Alternate Heating Fuel}"},{"$f":"IFERROR(MID($W45,FIND(CHAR(160),SUBSTITUTE($W45,\"{\",CHAR(160),GZ$1)),FIND(CHAR(160),SUBSTITUTE($W45,\"}\",CHAR(160),GZ$1))-FIND(CHAR(160),SUBSTITUTE($W45,\"{\",CHAR(160),GZ$1))+1),\"\")","v":"{Measure:Quantity}"},{"$f":"IFERROR(MID($X45,FIND(CHAR(160),SUBSTITUTE($X45,\"{\",CHAR(160),HA$1)),FIND(CHAR(160),SUBSTITUTE($X45,\"}\",CHAR(160),HA$1))-FIND(CHAR(160),SUBSTITUTE($X45,\"{\",CHAR(160),HA$1))+1),\"\")","v":"{Square Feet Served}"},{"$f":"IFERROR(MID($X45,FIND(CHAR(160),SUBSTITUTE($X45,\"{\",CHAR(160),HB$1)),FIND(CHAR(160),SUBSTITUTE($X45,\"}\",CHAR(160),HB$1))-FIND(CHAR(160),SUBSTITUTE($X45,\"{\",CHAR(160),HB$1))+1),\"\")","v":"{COP_base}"},{"$f":"IFERROR(MID($X45,FIND(CHAR(160),SUBSTITUTE($X45,\"{\",CHAR(160),HC$1)),FIND(CHAR(160),SUBSTITUTE($X45,\"}\",CHAR(160),HC$1))-FIND(CHAR(160),SUBSTITUTE($X45,\"{\",CHAR(160),HC$1))+1),\"\")","v":""},{"$f":"IFERROR(MID($X45,FIND(CHAR(160),SUBSTITUTE($X45,\"{\",CHAR(160),HD$1)),FIND(CHAR(160),SUBSTITUTE($X45,\"}\",CHAR(160),HD$1))-FIND(CHAR(160),SUBSTITUTE($X45,\"{\",CHAR(160),HD$1))+1),\"\")","v":""},{"$f":"IFERROR(MID($X45,FIND(CHAR(160),SUBSTITUTE($X45,\"{\",CHAR(160),HE$1)),FIND(CHAR(160),SUBSTITUTE($X45,\"}\",CHAR(160),HE$1))-FIND(CHAR(160),SUBSTITUTE($X45,\"{\",CHAR(160),HE$1))+1),\"\")","v":""},{"$f":"IFERROR(MID($X45,FIND(CHAR(160),SUBSTITUTE($X45,\"{\",CHAR(160),HF$1)),FIND(CHAR(160),SUBSTITUTE($X45,\"}\",CHAR(160),HF$1))-FIND(CHAR(160),SUBSTITUTE($X45,\"{\",CHAR(160),HF$1))+1),\"\")","v":""},{"$f":"IFERROR(MID($X45,FIND(CHAR(160),SUBSTITUTE($X45,\"{\",CHAR(160),HG$1)),FIND(CHAR(160),SUBSTITUTE($X45,\"}\",CHAR(160),HG$1))-FIND(CHAR(160),SUBSTITUTE($X45,\"{\",CHAR(160),HG$1))+1),\"\")","v":""},{"$f":"IFERROR(MID($X45,FIND(CHAR(160),SUBSTITUTE($X45,\"{\",CHAR(160),HH$1)),FIND(CHAR(160),SUBSTITUTE($X45,\"}\",CHAR(160),HH$1))-FIND(CHAR(160),SUBSTITUTE($X45,\"{\",CHAR(160),HH$1))+1),\"\")","v":""},{"$f":"IFERROR(MID($X45,FIND(CHAR(160),SUBSTITUTE($X45,\"{\",CHAR(160),HI$1)),FIND(CHAR(160),SUBSTITUTE($X45,\"}\",CHAR(160),HI$1))-FIND(CHAR(160),SUBSTITUTE($X45,\"{\",CHAR(160),HI$1))+1),\"\")","v":"{Alternate Heating Fuel}"},{"$f":"IFERROR(MID($X45,FIND(CHAR(160),SUBSTITUTE($X45,\"{\",CHAR(160),HJ$1)),FIND(CHAR(160),SUBSTITUTE($X45,\"}\",CHAR(160),HJ$1))-FIND(CHAR(160),SUBSTITUTE($X45,\"{\",CHAR(160),HJ$1))+1),\"\")","v":"{Measure:Quantity}"},{"$f":"IFERROR(MID($Y45,FIND(CHAR(160),SUBSTITUTE($Y45,\"{\",CHAR(160),HK$1)),FIND(CHAR(160),SUBSTITUTE($Y45,\"}\",CHAR(160),HK$1))-FIND(CHAR(160),SUBSTITUTE($Y45,\"{\",CHAR(160),HK$1))+1),\"\")","v":"{Square Feet Served}"},{"$f":"IFERROR(MID($Y45,FIND(CHAR(160),SUBSTITUTE($Y45,\"{\",CHAR(160),HL$1)),FIND(CHAR(160),SUBSTITUTE($Y45,\"}\",CHAR(160),HL$1))-FIND(CHAR(160),SUBSTITUTE($Y45,\"{\",CHAR(160),HL$1))+1),\"\")","v":"{COP_base}"},{"$f":"IFERROR(MID($Y45,FIND(CHAR(160),SUBSTITUTE($Y45,\"{\",CHAR(160),HM$1)),FIND(CHAR(160),SUBSTITUTE($Y45,\"}\",CHAR(160),HM$1))-FIND(CHAR(160),SUBSTITUTE($Y45,\"{\",CHAR(160),HM$1))+1),\"\")","v":""},{"$f":"IFERROR(MID($Y45,FIND(CHAR(160),SUBSTITUTE($Y45,\"{\",CHAR(160),HN$1)),FIND(CHAR(160),SUBSTITUTE($Y45,\"}\",CHAR(160),HN$1))-FIND(CHAR(160),SUBSTITUTE($Y45,\"{\",CHAR(160),HN$1))+1),\"\")","v":""},{"$f":"IFERROR(MID($Y45,FIND(CHAR(160),SUBSTITUTE($Y45,\"{\",CHAR(160),HO$1)),FIND(CHAR(160),SUBSTITUTE($Y45,\"}\",CHAR(160),HO$1))-FIND(CHAR(160),SUBSTITUTE($Y45,\"{\",CHAR(160),HO$1))+1),\"\")","v":""},{"$f":"IFERROR(MID($Y45,FIND(CHAR(160),SUBSTITUTE($Y45,\"{\",CHAR(160),HP$1)),FIND(CHAR(160),SUBSTITUTE($Y45,\"}\",CHAR(160),HP$1))-FIND(CHAR(160),SUBSTITUTE($Y45,\"{\",CHAR(160),HP$1))+1),\"\")","v":""},{"$f":"IFERROR(MID($Y45,FIND(CHAR(160),SUBSTITUTE($Y45,\"{\",CHAR(160),HQ$1)),FIND(CHAR(160),SUBSTITUTE($Y45,\"}\",CHAR(160),HQ$1))-FIND(CHAR(160),SUBSTITUTE($Y45,\"{\",CHAR(160),HQ$1))+1),\"\")","v":""},{"$f":"IFERROR(MID($Y45,FIND(CHAR(160),SUBSTITUTE($Y45,\"{\",CHAR(160),HR$1)),FIND(CHAR(160),SUBSTITUTE($Y45,\"}\",CHAR(160),HR$1))-FIND(CHAR(160),SUBSTITUTE($Y45,\"{\",CHAR(160),HR$1))+1),\"\")","v":""},{"$f":"IFERROR(MID($Y45,FIND(CHAR(160),SUBSTITUTE($Y45,\"{\",CHAR(160),HS$1)),FIND(CHAR(160),SUBSTITUTE($Y45,\"}\",CHAR(160),HS$1))-FIND(CHAR(160),SUBSTITUTE($Y45,\"{\",CHAR(160),HS$1))+1),\"\")","v":"{Alternate Heating Fuel}"},{"$f":"IFERROR(MID($Y45,FIND(CHAR(160),SUBSTITUTE($Y45,\"{\",CHAR(160),HT$1)),FIND(CHAR(160),SUBSTITUTE($Y45,\"}\",CHAR(160),HT$1))-FIND(CHAR(160),SUBSTITUTE($Y45,\"{\",CHAR(160),HT$1))+1),\"\")","v":"{Measure:Quantity}"},{"$f":"IFERROR(MID($Z45,FIND(CHAR(160),SUBSTITUTE($Z45,\"{\",CHAR(160),HU$1)),FIND(CHAR(160),SUBSTITUTE($Z45,\"}\",CHAR(160),HU$1))-FIND(CHAR(160),SUBSTITUTE($Z45,\"{\",CHAR(160),HU$1))+1),\"\")","v":"{Square Feet Served}"},{"$f":"IFERROR(MID($Z45,FIND(CHAR(160),SUBSTITUTE($Z45,\"{\",CHAR(160),HV$1)),FIND(CHAR(160),SUBSTITUTE($Z45,\"}\",CHAR(160),HV$1))-FIND(CHAR(160),SUBSTITUTE($Z45,\"{\",CHAR(160),HV$1))+1),\"\")","v":"{COP_base}"},{"$f":"IFERROR(MID($Z45,FIND(CHAR(160),SUBSTITUTE($Z45,\"{\",CHAR(160),HW$1)),FIND(CHAR(160),SUBSTITUTE($Z45,\"}\",CHAR(160),HW$1))-FIND(CHAR(160),SUBSTITUTE($Z45,\"{\",CHAR(160),HW$1))+1),\"\")","v":""},{"$f":"IFERROR(MID($Z45,FIND(CHAR(160),SUBSTITUTE($Z45,\"{\",CHAR(160),HX$1)),FIND(CHAR(160),SUBSTITUTE($Z45,\"}\",CHAR(160),HX$1))-FIND(CHAR(160),SUBSTITUTE($Z45,\"{\",CHAR(160),HX$1))+1),\"\")","v":""},{"$f":"IFERROR(MID($Z45,FIND(CHAR(160),SUBSTITUTE($Z45,\"{\",CHAR(160),HY$1)),FIND(CHAR(160),SUBSTITUTE($Z45,\"}\",CHAR(160),HY$1))-FIND(CHAR(160),SUBSTITUTE($Z45,\"{\",CHAR(160),HY$1))+1),\"\")","v":""},{"$f":"IFERROR(MID($Z45,FIND(CHAR(160),SUBSTITUTE($Z45,\"{\",CHAR(160),HZ$1)),FIND(CHAR(160),SUBSTITUTE($Z45,\"}\",CHAR(160),HZ$1))-FIND(CHAR(160),SUBSTITUTE($Z45,\"{\",CHAR(160),HZ$1))+1),\"\")","v":""},{"$f":"IFERROR(MID($Z45,FIND(CHAR(160),SUBSTITUTE($Z45,\"{\",CHAR(160),IA$1)),FIND(CHAR(160),SUBSTITUTE($Z45,\"}\",CHAR(160),IA$1))-FIND(CHAR(160),SUBSTITUTE($Z45,\"{\",CHAR(160),IA$1))+1),\"\")","v":""},{"$f":"IFERROR(MID($Z45,FIND(CHAR(160),SUBSTITUTE($Z45,\"{\",CHAR(160),IB$1)),FIND(CHAR(160),SUBSTITUTE($Z45,\"}\",CHAR(160),IB$1))-FIND(CHAR(160),SUBSTITUTE($Z45,\"{\",CHAR(160),IB$1))+1),\"\")","v":""},{"$f":"IFERROR(MID($Z45,FIND(CHAR(160),SUBSTITUTE($Z45,\"{\",CHAR(160),IC$1)),FIND(CHAR(160),SUBSTITUTE($Z45,\"}\",CHAR(160),IC$1))-FIND(CHAR(160),SUBSTITUTE($Z45,\"{\",CHAR(160),IC$1))+1),\"\")","v":"{Alternate Heating Fuel}"},{"$f":"IFERROR(MID($Z45,FIND(CHAR(160),SUBSTITUTE($Z45,\"{\",CHAR(160),ID$1)),FIND(CHAR(160),SUBSTITUTE($Z45,\"}\",CHAR(160),ID$1))-FIND(CHAR(160),SUBSTITUTE($Z45,\"{\",CHAR(160),ID$1))+1),\"\")","v":"{Measure:Quantity}"},{"$f":"IFERROR(MID($AA45,FIND(CHAR(160),SUBSTITUTE($AA45,\"{\",CHAR(160),IE$1)),FIND(CHAR(160),SUBSTITUTE($AA45,\"}\",CHAR(160),IE$1))-FIND(CHAR(160),SUBSTITUTE($AA45,\"{\",CHAR(160),IE$1))+1),\"\")","v":"{Square Feet Served}"},{"$f":"IFERROR(MID($AA45,FIND(CHAR(160),SUBSTITUTE($AA45,\"{\",CHAR(160),IF$1)),FIND(CHAR(160),SUBSTITUTE($AA45,\"}\",CHAR(160),IF$1))-FIND(CHAR(160),SUBSTITUTE($AA45,\"{\",CHAR(160),IF$1))+1),\"\")","v":"{COP_base}"},{"$f":"IFERROR(MID($AA45,FIND(CHAR(160),SUBSTITUTE($AA45,\"{\",CHAR(160),IG$1)),FIND(CHAR(160),SUBSTITUTE($AA45,\"}\",CHAR(160),IG$1))-FIND(CHAR(160),SUBSTITUTE($AA45,\"{\",CHAR(160),IG$1))+1),\"\")","v":""},{"$f":"IFERROR(MID($AA45,FIND(CHAR(160),SUBSTITUTE($AA45,\"{\",CHAR(160),IH$1)),FIND(CHAR(160),SUBSTITUTE($AA45,\"}\",CHAR(160),IH$1))-FIND(CHAR(160),SUBSTITUTE($AA45,\"{\",CHAR(160),IH$1))+1),\"\")","v":""},{"$f":"IFERROR(MID($AA45,FIND(CHAR(160),SUBSTITUTE($AA45,\"{\",CHAR(160),II$1)),FIND(CHAR(160),SUBSTITUTE($AA45,\"}\",CHAR(160),II$1))-FIND(CHAR(160),SUBSTITUTE($AA45,\"{\",CHAR(160),II$1))+1),\"\")","v":""},{"$f":"IFERROR(MID($AA45,FIND(CHAR(160),SUBSTITUTE($AA45,\"{\",CHAR(160),IJ$1)),FIND(CHAR(160),SUBSTITUTE($AA45,\"}\",CHAR(160),IJ$1))-FIND(CHAR(160),SUBSTITUTE($AA45,\"{\",CHAR(160),IJ$1))+1),\"\")","v":""},{"$f":"IFERROR(MID($AA45,FIND(CHAR(160),SUBSTITUTE($AA45,\"{\",CHAR(160),IK$1)),FIND(CHAR(160),SUBSTITUTE($AA45,\"}\",CHAR(160),IK$1))-FIND(CHAR(160),SUBSTITUTE($AA45,\"{\",CHAR(160),IK$1))+1),\"\")","v":""},{"$f":"IFERROR(MID($AA45,FIND(CHAR(160),SUBSTITUTE($AA45,\"{\",CHAR(160),IL$1)),FIND(CHAR(160),SUBSTITUTE($AA45,\"}\",CHAR(160),IL$1))-FIND(CHAR(160),SUBSTITUTE($AA45,\"{\",CHAR(160),IL$1))+1),\"\")","v":""},{"$f":"IFERROR(MID($AA45,FIND(CHAR(160),SUBSTITUTE($AA45,\"{\",CHAR(160),IM$1)),FIND(CHAR(160),SUBSTITUTE($AA45,\"}\",CHAR(160),IM$1))-FIND(CHAR(160),SUBSTITUTE($AA45,\"{\",CHAR(160),IM$1))+1),\"\")","v":"{Alternate Heating Fuel}"},{"$f":"IFERROR(MID($AA45,FIND(CHAR(160),SUBSTITUTE($AA45,\"{\",CHAR(160),IN$1)),FIND(CHAR(160),SUBSTITUTE($AA45,\"}\",CHAR(160),IN$1))-FIND(CHAR(160),SUBSTITUTE($AA45,\"{\",CHAR(160),IN$1))+1),\"\")","v":"{Measure:Quantity}"},{"$f":"IFERROR(MID($AB45,FIND(CHAR(160),SUBSTITUTE($AB45,\"{\",CHAR(160),IO$1)),FIND(CHAR(160),SUBSTITUTE($AB45,\"}\",CHAR(160),IO$1))-FIND(CHAR(160),SUBSTITUTE($AB45,\"{\",CHAR(160),IO$1))+1),\"\")","v":""},{"$f":"IFERROR(MID($AB45,FIND(CHAR(160),SUBSTITUTE($AB45,\"{\",CHAR(160),IP$1)),FIND(CHAR(160),SUBSTITUTE($AB45,\"}\",CHAR(160),IP$1))-FIND(CHAR(160),SUBSTITUTE($AB45,\"{\",CHAR(160),IP$1))+1),\"\")","v":""},{"$f":"IFERROR(MID($AB45,FIND(CHAR(160),SUBSTITUTE($AB45,\"{\",CHAR(160),IQ$1)),FIND(CHAR(160),SUBSTITUTE($AB45,\"}\",CHAR(160),IQ$1))-FIND(CHAR(160),SUBSTITUTE($AB45,\"{\",CHAR(160),IQ$1))+1),\"\")","v":""},{"$f":"IFERROR(MID($AB45,FIND(CHAR(160),SUBSTITUTE($AB45,\"{\",CHAR(160),IR$1)),FIND(CHAR(160),SUBSTITUTE($AB45,\"}\",CHAR(160),IR$1))-FIND(CHAR(160),SUBSTITUTE($AB45,\"{\",CHAR(160),IR$1))+1),\"\")","v":""},{"$f":"IFERROR(MID($AB45,FIND(CHAR(160),SUBSTITUTE($AB45,\"{\",CHAR(160),IS$1)),FIND(CHAR(160),SUBSTITUTE($AB45,\"}\",CHAR(160),IS$1))-FIND(CHAR(160),SUBSTITUTE($AB45,\"{\",CHAR(160),IS$1))+1),\"\")","v":""},{"$f":"IFERROR(MID($AB45,FIND(CHAR(160),SUBSTITUTE($AB45,\"{\",CHAR(160),IT$1)),FIND(CHAR(160),SUBSTITUTE($AB45,\"}\",CHAR(160),IT$1))-FIND(CHAR(160),SUBSTITUTE($AB45,\"{\",CHAR(160),IT$1))+1),\"\")","v":""},{"$f":"IFERROR(MID($AB45,FIND(CHAR(160),SUBSTITUTE($AB45,\"{\",CHAR(160),IU$1)),FIND(CHAR(160),SUBSTITUTE($AB45,\"}\",CHAR(160),IU$1))-FIND(CHAR(160),SUBSTITUTE($AB45,\"{\",CHAR(160),IU$1))+1),\"\")","v":""},{"$f":"IFERROR(MID($AB45,FIND(CHAR(160),SUBSTITUTE($AB45,\"{\",CHAR(160),IV$1)),FIND(CHAR(160),SUBSTITUTE($AB45,\"}\",CHAR(160),IV$1))-FIND(CHAR(160),SUBSTITUTE($AB45,\"{\",CHAR(160),IV$1))+1),\"\")","v":""},{"$f":"IFERROR(MID($AB45,FIND(CHAR(160),SUBSTITUTE($AB45,\"{\",CHAR(160),IW$1)),FIND(CHAR(160),SUBSTITUTE($AB45,\"}\",CHAR(160),IW$1))-FIND(CHAR(160),SUBSTITUTE($AB45,\"{\",CHAR(160),IW$1))+1),\"\")","v":""},{"$f":"IFERROR(MID($AB45,FIND(CHAR(160),SUBSTITUTE($AB45,\"{\",CHAR(160),IX$1)),FIND(CHAR(160),SUBSTITUTE($AB45,\"}\",CHAR(160),IX$1))-FIND(CHAR(160),SUBSTITUTE($AB45,\"{\",CHAR(160),IX$1))+1),\"\")","v":""},null,{"$f":"10-COUNTIF(DU45:ED45,\"\")","v":9}]
["C&I HVAC - Electric","Variable Refrigerant Flow - Without Heat Recovery","VRFWOHR","2021-07-01","2021-09-09","Calculated","{Measure:Quantity}*{Square Feet Served}*{Incremental Cost per SQFT}",0,"Calculated","{Measure:Quantity}*{Square Feet Served}*2.75",0,"2021-07-01","2022-06-30","Calculated","{Measure:Quantity} * ({Cooling Capacity (Btu/h)}/1000*(1/{IEER_base}-1/{IEER})*829+{Square Feet Served}*47.4/3.412*(if({Alternate Heating Fuel}<>6,0,1/{COP_base})-1/{COP}))",null,null,"{Measure:Quantity} *Max({Square Feet Served}*47.4/3.412*(if({Alternate Heating Fuel}<>6,0,1/{COP_base})-1/{COP})/1600,{Cooling Capacity (Btu/h)}/1000*(1/{IEER_base}-1/{IEER}))",null,null,"{Measure:Quantity} * ({Square Feet Served}*47.4/3.412*(if({Alternate Heating Fuel}<>6,0,1/{COP_base})-1/{COP})/1600*{Factor:WinterCF})","{Measure:Quantity} * ({Cooling Capacity (Btu/h)}/1000*(1/{IEER_base}-1/{IEER})*{Factor:SummerCF})","if({Alternate Heating Fuel}=1,{Measure:Quantity} * {Square Feet Served}*47.4/1000*1/{COP_base},0)*10","if({Alternate Heating Fuel}=2,{Measure:Quantity} * {Square Feet Served}*47.4/1000*1/{COP_base},0)","if({Alternate Heating Fuel}=3,{Measure:Quantity} * {Square Feet Served}*47.4/1000*1/{COP_base},0)","if({Alternate Heating Fuel}=4,{Measure:Quantity} * {Square Feet Served}*47.4/1000*1/{COP_base},0)","if({Alternate Heating Fuel}=5,{Measure:Quantity} * {Square Feet Served}*47.4/1000*1/{COP_base},0)",null,"2021-05-25","2022-06-30",20,0.42,0.35699999999999998,0.17,0.03,0.62,0.18,1,1.1220000000000001,1,0.52,1.6E-2,null,{"$f":"DU46","v":"{Measure:Quantity}"},1,{"$f":"DV46","v":"{Square Feet Served}"},6330,{"$f":"DW46","v":"{Incremental Cost per SQFT}"},2.08,{"$f":"DX46","v":"{IEER_base}"},141000,{"$f":"DY46","v":"{IEER}"},13,{"$f":"DZ46","v":"{Alternate Heating Fuel}"},21,{"$f":"EA46","v":"{COP_base}"},3,{"$f":"EB46","v":"{COP}"},0.82,{"$f":"EC46","v":"{Cooling Capacity (Btu/h)}"},3.78,{"$f":"ED46","v":""},null,{"$f":"AS46 * (AY46/1000*(1/BA46-1/BC46)*829+AU46*47.4/3.412*(IF(BE46<>6,0,1/BG46)-1/BI46))","v":-19838.512056134565},0,0,{"$f":"AS46 *MAX(AU46*47.4/3.412*(IF(BE46<>6,0,1/BG46)-1/BI46)/1600,AY46/1000*(1/BA46-1/BC46))","v":4.1318681318681332},0,0,{"$f":"AS46 * (AU46*47.4/3.412*(IF(BE46<>6,0,1/BG46)-1/BI46)/1600*AF46)","v":-6.1067555685814776},{"$f":"AS46 * (AY46/1000*(1/BA46-1/BC46)*AG46)","v":1.4750769230769234},{"$f":"IF(BE46=1,AS46 * AU46*47.4/1000*1/BG46,0)*10","v":0},{"$f":"IF(BE46=2,AS46 * AU46*47.4/1000*1/BG46,0)","v":0},{"$f":"IF(BE46=3,AS46 * AU46*47.4/1000*1/BG46,0)","v":365.90487804878046},{"$f":"IF(BE46=4,AS46 * AU46*47.4/1000*1/BG46,0)","v":0},{"$f":"IF(BE46=5,AS46 * AU46*47.4/1000*1/BG46,0)","v":0},0,null,"Com","Default DR",{"$f":"Benefits(BL46,BR46,BS46,BT46,BU46,BV46,BW46,BX46,BY46,BZ46,AE46,AH46,AI46,AJ46,AK46,AL46,AM46,AN46,AO46,AP46,CA46,CB46)","v":-33480.338405938397},-25337.221558601395,0,200027.24843443462,0,0,0,0,0,{"$f":"SUMPRODUCT(CC46:CK46,--(CC46:CK46>0))","v":200027.24843443462},{"$f":"-SUMPRODUCT(CC46:CK46,--(CC46:CK46<0))","v":58817.559964539789},null,{"$f":"AS46*AU46*AW46","v":13166.4},null,null,{"$f":"CM46+CO46","v":71983.959964539783},{"$f":"IF(NetOrGross=\"Net\",(1-AO46+AP46),1)","v":1},{"$f":"(SUMPRODUCT(CC46:CJ46,--(CC46:CJ46>0))+CN46)*CS46/((-SUMPRODUCT(CC46:CJ46,--(CC46:CJ46<0))+MAX(CO46,CV46)+CP46+CQ46)*CS46+IF(FRIncentives=\"Yes\",CV46*(1-CS46),0))","v":2.6241664949491428},1,{"$f":"AS46*AU46*2.75","v":17407.5},null,"RGGI","y",null,{"$f":"IF(F46=\"Manual Entry\",\"Manual\",IF(G46=\"\",0,\"X=\"&SUBSTITUTE(SUBSTITUTE(SUBSTITUTE(SUBSTITUTE(SUBSTITUTE(SUBSTITUTE(SUBSTITUTE(SUBSTITUTE(SUBSTITUTE(SUBSTITUTE(SUBSTITUTE(SUBSTITUTE(G46,$ED46,$ED$2&ROW($ED46)),$EC46,$EC$2&ROW($EC46)),$EB46,$EB$2&ROW($EB46)),$EA46,$EA$2&ROW($EA46)),$DZ46,$DZ$2&ROW($DZ46)),$DY46,$DY$2&ROW($DY46)),$DX46,$DX$2&ROW($DX46)),$DW46,$DW$2&ROW($DW46)),$DV46,$DV$2&ROW($DV46)),$DU46,$DU$2&ROW($DU46)),$DT46,$DT$2&ROW($DT46)),$DS46,$DS$2&ROW($DS46))))","v":"X=AS46*AU46*AW46"},{"$f":"IF(I46=\"Manual Entry\",\"Manual\",IF(J46=\"\",0,\"X=\"&SUBSTITUTE(SUBSTITUTE(SUBSTITUTE(SUBSTITUTE(SUBSTITUTE(SUBSTITUTE(SUBSTITUTE(SUBSTITUTE(SUBSTITUTE(SUBSTITUTE(SUBSTITUTE(SUBSTITUTE(J46,$ED46,$ED$2&ROW($ED46)),$EC46,$EC$2&ROW($EC46)),$EB46,$EB$2&ROW($EB46)),$EA46,$EA$2&ROW($EA46)),$DZ46,$DZ$2&ROW($DZ46)),$DY46,$DY$2&ROW($DY46)),$DX46,$DX$2&ROW($DX46)),$DW46,$DW$2&ROW($DW46)),$DV46,$DV$2&ROW($DV46)),$DU46,$DU$2&ROW($DU46)),$DT46,$DT$2&ROW($DT46)),$DS46,$DS$2&ROW($DS46))))","v":"X=AS46*AU46*2.75"},{"$f":"IF(O46=\"\",0,\"X=\"&SUBSTITUTE(SUBSTITUTE(SUBSTITUTE(SUBSTITUTE(SUBSTITUTE(SUBSTITUTE(SUBSTITUTE(SUBSTITUTE(SUBSTITUTE(SUBSTITUTE(SUBSTITUTE(SUBSTITUTE(O46,$ED46,$ED$2&ROW($ED46)),$EC46,$EC$2&ROW($EC46)),$EB46,$EB$2&ROW($EB46)),$EA46,$EA$2&ROW($EA46)),$DZ46,$DZ$2&ROW($DZ46)),$DY46,$DY$2&ROW($DY46)),$DX46,$DX$2&ROW($DX46)),$DW46,$DW$2&ROW($DW46)),$DV46,$DV$2&ROW($DV46)),$DU46,$DU$2&ROW($DU46)),$DT46,$DT$2&ROW($DT46)),$DS46,$DS$2&ROW($DS46)))","v":"X=AS46 * (BI46/1000*(1/AY46-1/BA46)*829+AU46*47.4/3.412*(if(BC46<>6,0,1/BE46)-1/BG46))"},{"$f":"IF(P46=\"\",0,\"X=\"&SUBSTITUTE(SUBSTITUTE(SUBSTITUTE(SUBSTITUTE(SUBSTITUTE(SUBSTITUTE(SUBSTITUTE(SUBSTITUTE(SUBSTITUTE(SUBSTITUTE(SUBSTITUTE(SUBSTITUTE(P46,$ED46,$ED$2&ROW($ED46)),$EC46,$EC$2&ROW($EC46)),$EB46,$EB$2&ROW($EB46)),$EA46,$EA$2&ROW($EA46)),$DZ46,$DZ$2&ROW($DZ46)),$DY46,$DY$2&ROW($DY46)),$DX46,$DX$2&ROW($DX46)),$DW46,$DW$2&ROW($DW46)),$DV46,$DV$2&ROW($DV46)),$DU46,$DU$2&ROW($DU46)),$DT46,$DT$2&ROW($DT46)),$DS46,$DS$2&ROW($DS46)))","v":0},{"$f":"IF(Q46=\"\",0,\"X=\"&SUBSTITUTE(SUBSTITUTE(SUBSTITUTE(SUBSTITUTE(SUBSTITUTE(SUBSTITUTE(SUBSTITUTE(SUBSTITUTE(SUBSTITUTE(SUBSTITUTE(SUBSTITUTE(SUBSTITUTE(Q46,$ED46,$ED$2&ROW($ED46)),$EC46,$EC$2&ROW($EC46)),$EB46,$EB$2&ROW($EB46)),$EA46,$EA$2&ROW($EA46)),$DZ46,$DZ$2&ROW($DZ46)),$DY46,$DY$2&ROW($DY46)),$DX46,$DX$2&ROW($DX46)),$DW46,$DW$2&ROW($DW46)),$DV46,$DV$2&ROW($DV46)),$DU46,$DU$2&ROW($DU46)),$DT46,$DT$2&ROW($DT46)),$DS46,$DS$2&ROW($DS46)))","v":0},{"$f":"IF(R46=\"\",0,\"X=\"&SUBSTITUTE(SUBSTITUTE(SUBSTITUTE(SUBSTITUTE(SUBSTITUTE(SUBSTITUTE(SUBSTITUTE(SUBSTITUTE(SUBSTITUTE(SUBSTITUTE(SUBSTITUTE(SUBSTITUTE(R46,$ED46,$ED$2&ROW($ED46)),$EC46,$EC$2&ROW($EC46)),$EB46,$EB$2&ROW($EB46)),$EA46,$EA$2&ROW($EA46)),$DZ46,$DZ$2&ROW($DZ46)),$DY46,$DY$2&ROW($DY46)),$DX46,$DX$2&ROW($DX46)),$DW46,$DW$2&ROW($DW46)),$DV46,$DV$2&ROW($DV46)),$DU46,$DU$2&ROW($DU46)),$DT46,$DT$2&ROW($DT46)),$DS46,$DS$2&ROW($DS46)))","v":"X=AS46 *Max(AU46*47.4/3.412*(if(BC46<>6,0,1/BE46)-1/BG46)/1600,BI46/1000*(1/AY46-1/BA46))"},{"$f":"IF(S46=\"\",0,\"X=\"&SUBSTITUTE(SUBSTITUTE(SUBSTITUTE(SUBSTITUTE(SUBSTITUTE(SUBSTITUTE(SUBSTITUTE(SUBSTITUTE(SUBSTITUTE(SUBSTITUTE(SUBSTITUTE(SUBSTITUTE(S46,$ED46,$ED$2&ROW($ED46)),$EC46,$EC$2&ROW($EC46)),$EB46,$EB$2&ROW($EB46)),$EA46,$EA$2&ROW($EA46)),$DZ46,$DZ$2&ROW($DZ46)),$DY46,$DY$2&ROW($DY46)),$DX46,$DX$2&ROW($DX46)),$DW46,$DW$2&ROW($DW46)),$DV46,$DV$2&ROW($DV46)),$DU46,$DU$2&ROW($DU46)),$DT46,$DT$2&ROW($DT46)),$DS46,$DS$2&ROW($DS46)))","v":0},{"$f":"IF(T46=\"\",0,\"X=\"&SUBSTITUTE(SUBSTITUTE(SUBSTITUTE(SUBSTITUTE(SUBSTITUTE(SUBSTITUTE(SUBSTITUTE(SUBSTITUTE(SUBSTITUTE(SUBSTITUTE(SUBSTITUTE(SUBSTITUTE(T46,$ED46,$ED$2&ROW($ED46)),$EC46,$EC$2&ROW($EC46)),$EB46,$EB$2&ROW($EB46)),$EA46,$EA$2&ROW($EA46)),$DZ46,$DZ$2&ROW($DZ46)),$DY46,$DY$2&ROW($DY46)),$DX46,$DX$2&ROW($DX46)),$DW46,$DW$2&ROW($DW46)),$DV46,$DV$2&ROW($DV46)),$DU46,$DU$2&ROW($DU46)),$DT46,$DT$2&ROW($DT46)),$DS46,$DS$2&ROW($DS46)))","v":0},{"$f":"IF(U46=\"\",0,\"X=\"&SUBSTITUTE(SUBSTITUTE(SUBSTITUTE(SUBSTITUTE(SUBSTITUTE(SUBSTITUTE(SUBSTITUTE(SUBSTITUTE(SUBSTITUTE(SUBSTITUTE(SUBSTITUTE(SUBSTITUTE(U46,$ED46,$ED$2&ROW($ED46)),$EC46,$EC$2&ROW($EC46)),$EB46,$EB$2&ROW($EB46)),$EA46,$EA$2&ROW($EA46)),$DZ46,$DZ$2&ROW($DZ46)),$DY46,$DY$2&ROW($DY46)),$DX46,$DX$2&ROW($DX46)),$DW46,$DW$2&ROW($DW46)),$DV46,$DV$2&ROW($DV46)),$DU46,$DU$2&ROW($DU46)),$DT46,$DT$2&ROW($DT46)),$DS46,$DS$2&ROW($DS46)))","v":"X=AS46 * (AU46*47.4/3.412*(if(BC46<>6,0,1/BE46)-1/BG46)/1600*AF46)"},{"$f":"IF(V46=\"\",0,\"X=\"&SUBSTITUTE(SUBSTITUTE(SUBSTITUTE(SUBSTITUTE(SUBSTITUTE(SUBSTITUTE(SUBSTITUTE(SUBSTITUTE(SUBSTITUTE(SUBSTITUTE(SUBSTITUTE(SUBSTITUTE(V46,$ED46,$ED$2&ROW($ED46)),$EC46,$EC$2&ROW($EC46)),$EB46,$EB$2&ROW($EB46)),$EA46,$EA$2&ROW($EA46)),$DZ46,$DZ$2&ROW($DZ46)),$DY46,$DY$2&ROW($DY46)),$DX46,$DX$2&ROW($DX46)),$DW46,$DW$2&ROW($DW46)),$DV46,$DV$2&ROW($DV46)),$DU46,$DU$2&ROW($DU46)),$DT46,$DT$2&ROW($DT46)),$DS46,$DS$2&ROW($DS46)))","v":"X=AS46 * (BI46/1000*(1/AY46-1/BA46)*AG46)"},{"$f":"IF(W46=\"\",0,\"X=\"&SUBSTITUTE(SUBSTITUTE(SUBSTITUTE(SUBSTITUTE(SUBSTITUTE(SUBSTITUTE(SUBSTITUTE(SUBSTITUTE(SUBSTITUTE(SUBSTITUTE(SUBSTITUTE(SUBSTITUTE(W46,$ED46,$ED$2&ROW($ED46)),$EC46,$EC$2&ROW($EC46)),$EB46,$EB$2&ROW($EB46)),$EA46,$EA$2&ROW($EA46)),$DZ46,$DZ$2&ROW($DZ46)),$DY46,$DY$2&ROW($DY46)),$DX46,$DX$2&ROW($DX46)),$DW46,$DW$2&ROW($DW46)),$DV46,$DV$2&ROW($DV46)),$DU46,$DU$2&ROW($DU46)),$DT46,$DT$2&ROW($DT46)),$DS46,$DS$2&ROW($DS46)))","v":"X=if(BC46=1,AS46 * AU46*47.4/1000*1/BE46,0)*10"},{"$f":"IF(X46=\"\",0,\"X=\"&SUBSTITUTE(SUBSTITUTE(SUBSTITUTE(SUBSTITUTE(SUBSTITUTE(SUBSTITUTE(SUBSTITUTE(SUBSTITUTE(SUBSTITUTE(SUBSTITUTE(SUBSTITUTE(SUBSTITUTE(X46,$ED46,$ED$2&ROW($ED46)),$EC46,$EC$2&ROW($EC46)),$EB46,$EB$2&ROW($EB46)),$EA46,$EA$2&ROW($EA46)),$DZ46,$DZ$2&ROW($DZ46)),$DY46,$DY$2&ROW($DY46)),$DX46,$DX$2&ROW($DX46)),$DW46,$DW$2&ROW($DW46)),$DV46,$DV$2&ROW($DV46)),$DU46,$DU$2&ROW($DU46)),$DT46,$DT$2&ROW($DT46)),$DS46,$DS$2&ROW($DS46)))","v":"X=if(BC46=2,AS46 * AU46*47.4/1000*1/BE46,0)"},{"$f":"IF(Y46=\"\",0,\"X=\"&SUBSTITUTE(SUBSTITUTE(SUBSTITUTE(SUBSTITUTE(SUBSTITUTE(SUBSTITUTE(SUBSTITUTE(SUBSTITUTE(SUBSTITUTE(SUBSTITUTE(SUBSTITUTE(SUBSTITUTE(Y46,$ED46,$ED$2&ROW($ED46)),$EC46,$EC$2&ROW($EC46)),$EB46,$EB$2&ROW($EB46)),$EA46,$EA$2&ROW($EA46)),$DZ46,$DZ$2&ROW($DZ46)),$DY46,$DY$2&ROW($DY46)),$DX46,$DX$2&ROW($DX46)),$DW46,$DW$2&ROW($DW46)),$DV46,$DV$2&ROW($DV46)),$DU46,$DU$2&ROW($DU46)),$DT46,$DT$2&ROW($DT46)),$DS46,$DS$2&ROW($DS46)))","v":"X=if(BC46=3,AS46 * AU46*47.4/1000*1/BE46,0)"},{"$f":"IF(Z46=\"\",0,\"X=\"&SUBSTITUTE(SUBSTITUTE(SUBSTITUTE(SUBSTITUTE(SUBSTITUTE(SUBSTITUTE(SUBSTITUTE(SUBSTITUTE(SUBSTITUTE(SUBSTITUTE(SUBSTITUTE(SUBSTITUTE(Z46,$ED46,$ED$2&ROW($ED46)),$EC46,$EC$2&ROW($EC46)),$EB46,$EB$2&ROW($EB46)),$EA46,$EA$2&ROW($EA46)),$DZ46,$DZ$2&ROW($DZ46)),$DY46,$DY$2&ROW($DY46)),$DX46,$DX$2&ROW($DX46)),$DW46,$DW$2&ROW($DW46)),$DV46,$DV$2&ROW($DV46)),$DU46,$DU$2&ROW($DU46)),$DT46,$DT$2&ROW($DT46)),$DS46,$DS$2&ROW($DS46)))","v":"X=if(BC46=4,AS46 * AU46*47.4/1000*1/BE46,0)"},{"$f":"IF(AA46=\"\",0,\"X=\"&SUBSTITUTE(SUBSTITUTE(SUBSTITUTE(SUBSTITUTE(SUBSTITUTE(SUBSTITUTE(SUBSTITUTE(SUBSTITUTE(SUBSTITUTE(SUBSTITUTE(SUBSTITUTE(SUBSTITUTE(AA46,$ED46,$ED$2&ROW($ED46)),$EC46,$EC$2&ROW($EC46)),$EB46,$EB$2&ROW($EB46)),$EA46,$EA$2&ROW($EA46)),$DZ46,$DZ$2&ROW($DZ46)),$DY46,$DY$2&ROW($DY46)),$DX46,$DX$2&ROW($DX46)),$DW46,$DW$2&ROW($DW46)),$DV46,$DV$2&ROW($DV46)),$DU46,$DU$2&ROW($DU46)),$DT46,$DT$2&ROW($DT46)),$DS46,$DS$2&ROW($DS46)))","v":"X=if(BC46=5,AS46 * AU46*47.4/1000*1/BE46,0)"},{"$f":"IF(AB46=\"\",0,\"X=\"&SUBSTITUTE(SUBSTITUTE(SUBSTITUTE(SUBSTITUTE(SUBSTITUTE(SUBSTITUTE(SUBSTITUTE(SUBSTITUTE(SUBSTITUTE(SUBSTITUTE(SUBSTITUTE(SUBSTITUTE(AB46,$ED46,$ED$2&ROW($ED46)),$EC46,$EC$2&ROW($EC46)),$EB46,$EB$2&ROW($EB46)),$EA46,$EA$2&ROW($EA46)),$DZ46,$DZ$2&ROW($DZ46)),$DY46,$DY$2&ROW($DY46)),$DX46,$DX$2&ROW($DX46)),$DW46,$DW$2&ROW($DW46)),$DV46,$DV$2&ROW($DV46)),$DU46,$DU$2&ROW($DU46)),$DT46,$DT$2&ROW($DT46)),$DS46,$DS$2&ROW($DS46)))","v":0},null,null,"{Factor:WinterCF}","{Factor:SummerCF}",{"$f":"IFERROR(INDEX($EG46:$IV46,MATCH(0,COUNTIF($DR46:DT46,$EG46:$IV46),0)),\"\")","v":"{Measure:Quantity}"},{"$f":"IFERROR(INDEX($EG46:$IV46,MATCH(0,COUNTIF($DR46:DU46,$EG46:$IV46),0)),\"\")","v":"{Square Feet Served}"},{"$f":"IFERROR(INDEX($EG46:$IV46,MATCH(0,COUNTIF($DR46:DV46,$EG46:$IV46),0)),\"\")","v":"{Incremental Cost per SQFT}"},{"$f":"IFERROR(INDEX($EG46:$IV46,MATCH(0,COUNTIF($DR46:DW46,$EG46:$IV46),0)),\"\")","v":"{IEER_base}"},{"$f":"IFERROR(INDEX($EG46:$IV46,MATCH(0,COUNTIF($DR46:DX46,$EG46:$IV46),0)),\"\")","v":"{IEER}"},{"$f":"IFERROR(INDEX($EG46:$IV46,MATCH(0,COUNTIF($DR46:DY46,$EG46:$IV46),0)),\"\")","v":"{Alternate Heating Fuel}"},{"$f":"IFERROR(INDEX($EG46:$IV46,MATCH(0,COUNTIF($DR46:DZ46,$EG46:$IV46),0)),\"\")","v":"{COP_base}"},{"$f":"IFERROR(INDEX($EG46:$IV46,MATCH(0,COUNTIF($DR46:EA46,$EG46:$IV46),0)),\"\")","v":"{COP}"},{"$f":"IFERROR(INDEX($EG46:$IV46,MATCH(0,COUNTIF($DR46:EB46,$EG46:$IV46),0)),\"\")","v":"{Cooling Capacity (Btu/h)}"},{"$f":"IFERROR(INDEX($EG46:$IV46,MATCH(0,COUNTIF($DR46:EC46,$EG46:$IV46),0)),\"\")","v":""},null,null,{"$f":"IFERROR(MID($G46,FIND(CHAR(160),SUBSTITUTE($G46,\"{\",CHAR(160),EG$1)),FIND(CHAR(160),SUBSTITUTE($G46,\"}\",CHAR(160),EG$1))-FIND(CHAR(160),SUBSTITUTE($G46,\"{\",CHAR(160),EG$1))+1),\"\")","v":"{Measure:Quantity}"},{"$f":"IFERROR(MID($G46,FIND(CHAR(160),SUBSTITUTE($G46,\"{\",CHAR(160),EH$1)),FIND(CHAR(160),SUBSTITUTE($G46,\"}\",CHAR(160),EH$1))-FIND(CHAR(160),SUBSTITUTE($G46,\"{\",CHAR(160),EH$1))+1),\"\")","v":"{Square Feet Served}"},{"$f":"IFERROR(MID($G46,FIND(CHAR(160),SUBSTITUTE($G46,\"{\",CHAR(160),EI$1)),FIND(CHAR(160),SUBSTITUTE($G46,\"}\",CHAR(160),EI$1))-FIND(CHAR(160),SUBSTITUTE($G46,\"{\",CHAR(160),EI$1))+1),\"\")","v":"{Incremental Cost per SQFT}"},{"$f":"IFERROR(MID($G46,FIND(CHAR(160),SUBSTITUTE($G46,\"{\",CHAR(160),EJ$1)),FIND(CHAR(160),SUBSTITUTE($G46,\"}\",CHAR(160),EJ$1))-FIND(CHAR(160),SUBSTITUTE($G46,\"{\",CHAR(160),EJ$1))+1),\"\")","v":""},{"$f":"IFERROR(MID($G46,FIND(CHAR(160),SUBSTITUTE($G46,\"{\",CHAR(160),EK$1)),FIND(CHAR(160),SUBSTITUTE($G46,\"}\",CHAR(160),EK$1))-FIND(CHAR(160),SUBSTITUTE($G46,\"{\",CHAR(160),EK$1))+1),\"\")","v":""},{"$f":"IFERROR(MID($G46,FIND(CHAR(160),SUBSTITUTE($G46,\"{\",CHAR(160),EL$1)),FIND(CHAR(160),SUBSTITUTE($G46,\"}\",CHAR(160),EL$1))-FIND(CHAR(160),SUBSTITUTE($G46,\"{\",CHAR(160),EL$1))+1),\"\")","v":""},{"$f":"IFERROR(MID($G46,FIND(CHAR(160),SUBSTITUTE($G46,\"{\",CHAR(160),EM$1)),FIND(CHAR(160),SUBSTITUTE($G46,\"}\",CHAR(160),EM$1))-FIND(CHAR(160),SUBSTITUTE($G46,\"{\",CHAR(160),EM$1))+1),\"\")","v":""},{"$f":"IFERROR(MID($G46,FIND(CHAR(160),SUBSTITUTE($G46,\"{\",CHAR(160),EN$1)),FIND(CHAR(160),SUBSTITUTE($G46,\"}\",CHAR(160),EN$1))-FIND(CHAR(160),SUBSTITUTE($G46,\"{\",CHAR(160),EN$1))+1),\"\")","v":""},{"$f":"IFERROR(MID($G46,FIND(CHAR(160),SUBSTITUTE($G46,\"{\",CHAR(160),EO$1)),FIND(CHAR(160),SUBSTITUTE($G46,\"}\",CHAR(160),EO$1))-FIND(CHAR(160),SUBSTITUTE($G46,\"{\",CHAR(160),EO$1))+1),\"\")","v":""},{"$f":"IFERROR(MID($G46,FIND(CHAR(160),SUBSTITUTE($G46,\"{\",CHAR(160),EP$1)),FIND(CHAR(160),SUBSTITUTE($G46,\"}\",CHAR(160),EP$1))-FIND(CHAR(160),SUBSTITUTE($G46,\"{\",CHAR(160),EP$1))+1),\"\")","v":""},{"$f":"IFERROR(MID($J46,FIND(CHAR(160),SUBSTITUTE($J46,\"{\",CHAR(160),EQ$1)),FIND(CHAR(160),SUBSTITUTE($J46,\"}\",CHAR(160),EQ$1))-FIND(CHAR(160),SUBSTITUTE($J46,\"{\",CHAR(160),EQ$1))+1),\"\")","v":"{Measure:Quantity}"},{"$f":"IFERROR(MID($J46,FIND(CHAR(160),SUBSTITUTE($J46,\"{\",CHAR(160),ER$1)),FIND(CHAR(160),SUBSTITUTE($J46,\"}\",CHAR(160),ER$1))-FIND(CHAR(160),SUBSTITUTE($J46,\"{\",CHAR(160),ER$1))+1),\"\")","v":"{Square Feet Served}"},{"$f":"IFERROR(MID($J46,FIND(CHAR(160),SUBSTITUTE($J46,\"{\",CHAR(160),ES$1)),FIND(CHAR(160),SUBSTITUTE($J46,\"}\",CHAR(160),ES$1))-FIND(CHAR(160),SUBSTITUTE($J46,\"{\",CHAR(160),ES$1))+1),\"\")","v":""},{"$f":"IFERROR(MID($J46,FIND(CHAR(160),SUBSTITUTE($J46,\"{\",CHAR(160),ET$1)),FIND(CHAR(160),SUBSTITUTE($J46,\"}\",CHAR(160),ET$1))-FIND(CHAR(160),SUBSTITUTE($J46,\"{\",CHAR(160),ET$1))+1),\"\")","v":""},{"$f":"IFERROR(MID($J46,FIND(CHAR(160),SUBSTITUTE($J46,\"{\",CHAR(160),EU$1)),FIND(CHAR(160),SUBSTITUTE($J46,\"}\",CHAR(160),EU$1))-FIND(CHAR(160),SUBSTITUTE($J46,\"{\",CHAR(160),EU$1))+1),\"\")","v":""},{"$f":"IFERROR(MID($J46,FIND(CHAR(160),SUBSTITUTE($J46,\"{\",CHAR(160),EV$1)),FIND(CHAR(160),SUBSTITUTE($J46,\"}\",CHAR(160),EV$1))-FIND(CHAR(160),SUBSTITUTE($J46,\"{\",CHAR(160),EV$1))+1),\"\")","v":""},{"$f":"IFERROR(MID($J46,FIND(CHAR(160),SUBSTITUTE($J46,\"{\",CHAR(160),EW$1)),FIND(CHAR(160),SUBSTITUTE($J46,\"}\",CHAR(160),EW$1))-FIND(CHAR(160),SUBSTITUTE($J46,\"{\",CHAR(160),EW$1))+1),\"\")","v":""},{"$f":"IFERROR(MID($J46,FIND(CHAR(160),SUBSTITUTE($J46,\"{\",CHAR(160),EX$1)),FIND(CHAR(160),SUBSTITUTE($J46,\"}\",CHAR(160),EX$1))-FIND(CHAR(160),SUBSTITUTE($J46,\"{\",CHAR(160),EX$1))+1),\"\")","v":""},{"$f":"IFERROR(MID($J46,FIND(CHAR(160),SUBSTITUTE($J46,\"{\",CHAR(160),EY$1)),FIND(CHAR(160),SUBSTITUTE($J46,\"}\",CHAR(160),EY$1))-FIND(CHAR(160),SUBSTITUTE($J46,\"{\",CHAR(160),EY$1))+1),\"\")","v":""},{"$f":"IFERROR(MID($J46,FIND(CHAR(160),SUBSTITUTE($J46,\"{\",CHAR(160),EZ$1)),FIND(CHAR(160),SUBSTITUTE($J46,\"}\",CHAR(160),EZ$1))-FIND(CHAR(160),SUBSTITUTE($J46,\"{\",CHAR(160),EZ$1))+1),\"\")","v":""},{"$f":"IFERROR(MID($J46,FIND(CHAR(160),SUBSTITUTE($J46,\"{\",CHAR(160),FA$1)),FIND(CHAR(160),SUBSTITUTE($J46,\"}\",CHAR(160),FA$1))-FIND(CHAR(160),SUBSTITUTE($J46,\"{\",CHAR(160),FA$1))+1),\"\")","v":"{Measure:Quantity}"},{"$f":"IFERROR(MID($J46,FIND(CHAR(160),SUBSTITUTE($J46,\"{\",CHAR(160),FB$1)),FIND(CHAR(160),SUBSTITUTE($J46,\"}\",CHAR(160),FB$1))-FIND(CHAR(160),SUBSTITUTE($J46,\"{\",CHAR(160),FB$1))+1),\"\")","v":"{Square Feet Served}"},{"$f":"IFERROR(MID($O46,FIND(CHAR(160),SUBSTITUTE($O46,\"{\",CHAR(160),FC$1)),FIND(CHAR(160),SUBSTITUTE($O46,\"}\",CHAR(160),FC$1))-FIND(CHAR(160),SUBSTITUTE($O46,\"{\",CHAR(160),FC$1))+1),\"\")","v":"{IEER_base}"},{"$f":"IFERROR(MID($O46,FIND(CHAR(160),SUBSTITUTE($O46,\"{\",CHAR(160),FD$1)),FIND(CHAR(160),SUBSTITUTE($O46,\"}\",CHAR(160),FD$1))-FIND(CHAR(160),SUBSTITUTE($O46,\"{\",CHAR(160),FD$1))+1),\"\")","v":"{IEER}"},{"$f":"IFERROR(MID($O46,FIND(CHAR(160),SUBSTITUTE($O46,\"{\",CHAR(160),FE$1)),FIND(CHAR(160),SUBSTITUTE($O46,\"}\",CHAR(160),FE$1))-FIND(CHAR(160),SUBSTITUTE($O46,\"{\",CHAR(160),FE$1))+1),\"\")","v":"{Square Feet Served}"},{"$f":"IFERROR(MID($O46,FIND(CHAR(160),SUBSTITUTE($O46,\"{\",CHAR(160),FF$1)),FIND(CHAR(160),SUBSTITUTE($O46,\"}\",CHAR(160),FF$1))-FIND(CHAR(160),SUBSTITUTE($O46,\"{\",CHAR(160),FF$1))+1),\"\")","v":"{Alternate Heating Fuel}"},{"$f":"IFERROR(MID($O46,FIND(CHAR(160),SUBSTITUTE($O46,\"{\",CHAR(160),FG$1)),FIND(CHAR(160),SUBSTITUTE($O46,\"}\",CHAR(160),FG$1))-FIND(CHAR(160),SUBSTITUTE($O46,\"{\",CHAR(160),FG$1))+1),\"\")","v":"{COP_base}"},{"$f":"IFERROR(MID($O46,FIND(CHAR(160),SUBSTITUTE($O46,\"{\",CHAR(160),FH$1)),FIND(CHAR(160),SUBSTITUTE($O46,\"}\",CHAR(160),FH$1))-FIND(CHAR(160),SUBSTITUTE($O46,\"{\",CHAR(160),FH$1))+1),\"\")","v":"{COP}"},{"$f":"IFERROR(MID($O46,FIND(CHAR(160),SUBSTITUTE($O46,\"{\",CHAR(160),FI$1)),FIND(CHAR(160),SUBSTITUTE($O46,\"}\",CHAR(160),FI$1))-FIND(CHAR(160),SUBSTITUTE($O46,\"{\",CHAR(160),FI$1))+1),\"\")","v":""},{"$f":"IFERROR(MID($O46,FIND(CHAR(160),SUBSTITUTE($O46,\"{\",CHAR(160),FJ$1)),FIND(CHAR(160),SUBSTITUTE($O46,\"}\",CHAR(160),FJ$1))-FIND(CHAR(160),SUBSTITUTE($O46,\"{\",CHAR(160),FJ$1))+1),\"\")","v":""},{"$f":"IFERROR(MID($O46,FIND(CHAR(160),SUBSTITUTE($O46,\"{\",CHAR(160),FK$1)),FIND(CHAR(160),SUBSTITUTE($O46,\"}\",CHAR(160),FK$1))-FIND(CHAR(160),SUBSTITUTE($O46,\"{\",CHAR(160),FK$1))+1),\"\")","v":"{Measure:Quantity}"},{"$f":"IFERROR(MID($O46,FIND(CHAR(160),SUBSTITUTE($O46,\"{\",CHAR(160),FL$1)),FIND(CHAR(160),SUBSTITUTE($O46,\"}\",CHAR(160),FL$1))-FIND(CHAR(160),SUBSTITUTE($O46,\"{\",CHAR(160),FL$1))+1),\"\")","v":"{Cooling Capacity (Btu/h)}"},{"$f":"IFERROR(MID($R46,FIND(CHAR(160),SUBSTITUTE($R46,\"{\",CHAR(160),FM$1)),FIND(CHAR(160),SUBSTITUTE($R46,\"}\",CHAR(160),FM$1))-FIND(CHAR(160),SUBSTITUTE($R46,\"{\",CHAR(160),FM$1))+1),\"\")","v":"{Alternate Heating Fuel}"},{"$f":"IFERROR(MID($R46,FIND(CHAR(160),SUBSTITUTE($R46,\"{\",CHAR(160),FN$1)),FIND(CHAR(160),SUBSTITUTE($R46,\"}\",CHAR(160),FN$1))-FIND(CHAR(160),SUBSTITUTE($R46,\"{\",CHAR(160),FN$1))+1),\"\")","v":"{COP_base}"},{"$f":"IFERROR(MID($R46,FIND(CHAR(160),SUBSTITUTE($R46,\"{\",CHAR(160),FO$1)),FIND(CHAR(160),SUBSTITUTE($R46,\"}\",CHAR(160),FO$1))-FIND(CHAR(160),SUBSTITUTE($R46,\"{\",CHAR(160),FO$1))+1),\"\")","v":"{COP}"},{"$f":"IFERROR(MID($R46,FIND(CHAR(160),SUBSTITUTE($R46,\"{\",CHAR(160),FP$1)),FIND(CHAR(160),SUBSTITUTE($R46,\"}\",CHAR(160),FP$1))-FIND(CHAR(160),SUBSTITUTE($R46,\"{\",CHAR(160),FP$1))+1),\"\")","v":"{Cooling Capacity (Btu/h)}"},{"$f":"IFERROR(MID($R46,FIND(CHAR(160),SUBSTITUTE($R46,\"{\",CHAR(160),FQ$1)),FIND(CHAR(160),SUBSTITUTE($R46,\"}\",CHAR(160),FQ$1))-FIND(CHAR(160),SUBSTITUTE($R46,\"{\",CHAR(160),FQ$1))+1),\"\")","v":"{IEER_base}"},{"$f":"IFERROR(MID($R46,FIND(CHAR(160),SUBSTITUTE($R46,\"{\",CHAR(160),FR$1)),FIND(CHAR(160),SUBSTITUTE($R46,\"}\",CHAR(160),FR$1))-FIND(CHAR(160),SUBSTITUTE($R46,\"{\",CHAR(160),FR$1))+1),\"\")","v":"{IEER}"},{"$f":"IFERROR(MID($R46,FIND(CHAR(160),SUBSTITUTE($R46,\"{\",CHAR(160),FS$1)),FIND(CHAR(160),SUBSTITUTE($R46,\"}\",CHAR(160),FS$1))-FIND(CHAR(160),SUBSTITUTE($R46,\"{\",CHAR(160),FS$1))+1),\"\")","v":""},{"$f":"IFERROR(MID($R46,FIND(CHAR(160),SUBSTITUTE($R46,\"{\",CHAR(160),FT$1)),FIND(CHAR(160),SUBSTITUTE($R46,\"}\",CHAR(160),FT$1))-FIND(CHAR(160),SUBSTITUTE($R46,\"{\",CHAR(160),FT$1))+1),\"\")","v":""},{"$f":"IFERROR(MID($R46,FIND(CHAR(160),SUBSTITUTE($R46,\"{\",CHAR(160),FU$1)),FIND(CHAR(160),SUBSTITUTE($R46,\"}\",CHAR(160),FU$1))-FIND(CHAR(160),SUBSTITUTE($R46,\"{\",CHAR(160),FU$1))+1),\"\")","v":"{Measure:Quantity}"},{"$f":"IFERROR(MID($R46,FIND(CHAR(160),SUBSTITUTE($R46,\"{\",CHAR(160),FV$1)),FIND(CHAR(160),SUBSTITUTE($R46,\"}\",CHAR(160),FV$1))-FIND(CHAR(160),SUBSTITUTE($R46,\"{\",CHAR(160),FV$1))+1),\"\")","v":"{Square Feet Served}"},{"$f":"IFERROR(MID($U46,FIND(CHAR(160),SUBSTITUTE($U46,\"{\",CHAR(160),FW$1)),FIND(CHAR(160),SUBSTITUTE($U46,\"}\",CHAR(160),FW$1))-FIND(CHAR(160),SUBSTITUTE($U46,\"{\",CHAR(160),FW$1))+1),\"\")","v":"{Alternate Heating Fuel}"},{"$f":"IFERROR(MID($U46,FIND(CHAR(160),SUBSTITUTE($U46,\"{\",CHAR(160),FX$1)),FIND(CHAR(160),SUBSTITUTE($U46,\"}\",CHAR(160),FX$1))-FIND(CHAR(160),SUBSTITUTE($U46,\"{\",CHAR(160),FX$1))+1),\"\")","v":"{COP_base}"},{"$f":"IFERROR(MID($U46,FIND(CHAR(160),SUBSTITUTE($U46,\"{\",CHAR(160),FY$1)),FIND(CHAR(160),SUBSTITUTE($U46,\"}\",CHAR(160),FY$1))-FIND(CHAR(160),SUBSTITUTE($U46,\"{\",CHAR(160),FY$1))+1),\"\")","v":"{COP}"},{"$f":"IFERROR(MID($U46,FIND(CHAR(160),SUBSTITUTE($U46,\"{\",CHAR(160),FZ$1)),FIND(CHAR(160),SUBSTITUTE($U46,\"}\",CHAR(160),FZ$1))-FIND(CHAR(160),SUBSTITUTE($U46,\"{\",CHAR(160),FZ$1))+1),\"\")","v":"{Factor:WinterCF}"},{"$f":"IFERROR(MID($U46,FIND(CHAR(160),SUBSTITUTE($U46,\"{\",CHAR(160),GA$1)),FIND(CHAR(160),SUBSTITUTE($U46,\"}\",CHAR(160),GA$1))-FIND(CHAR(160),SUBSTITUTE($U46,\"{\",CHAR(160),GA$1))+1),\"\")","v":""},{"$f":"IFERROR(MID($U46,FIND(CHAR(160),SUBSTITUTE($U46,\"{\",CHAR(160),GB$1)),FIND(CHAR(160),SUBSTITUTE($U46,\"}\",CHAR(160),GB$1))-FIND(CHAR(160),SUBSTITUTE($U46,\"{\",CHAR(160),GB$1))+1),\"\")","v":""},{"$f":"IFERROR(MID($U46,FIND(CHAR(160),SUBSTITUTE($U46,\"{\",CHAR(160),GC$1)),FIND(CHAR(160),SUBSTITUTE($U46,\"}\",CHAR(160),GC$1))-FIND(CHAR(160),SUBSTITUTE($U46,\"{\",CHAR(160),GC$1))+1),\"\")","v":""},{"$f":"IFERROR(MID($U46,FIND(CHAR(160),SUBSTITUTE($U46,\"{\",CHAR(160),GD$1)),FIND(CHAR(160),SUBSTITUTE($U46,\"}\",CHAR(160),GD$1))-FIND(CHAR(160),SUBSTITUTE($U46,\"{\",CHAR(160),GD$1))+1),\"\")","v":""},{"$f":"IFERROR(MID($U46,FIND(CHAR(160),SUBSTITUTE($U46,\"{\",CHAR(160),GE$1)),FIND(CHAR(160),SUBSTITUTE($U46,\"}\",CHAR(160),GE$1))-FIND(CHAR(160),SUBSTITUTE($U46,\"{\",CHAR(160),GE$1))+1),\"\")","v":"{Measure:Quantity}"},{"$f":"IFERROR(MID($U46,FIND(CHAR(160),SUBSTITUTE($U46,\"{\",CHAR(160),GF$1)),FIND(CHAR(160),SUBSTITUTE($U46,\"}\",CHAR(160),GF$1))-FIND(CHAR(160),SUBSTITUTE($U46,\"{\",CHAR(160),GF$1))+1),\"\")","v":"{Square Feet Served}"},{"$f":"IFERROR(MID($V46,FIND(CHAR(160),SUBSTITUTE($V46,\"{\",CHAR(160),GG$1)),FIND(CHAR(160),SUBSTITUTE($V46,\"}\",CHAR(160),GG$1))-FIND(CHAR(160),SUBSTITUTE($V46,\"{\",CHAR(160),GG$1))+1),\"\")","v":"{IEER_base}"},{"$f":"IFERROR(MID($V46,FIND(CHAR(160),SUBSTITUTE($V46,\"{\",CHAR(160),GH$1)),FIND(CHAR(160),SUBSTITUTE($V46,\"}\",CHAR(160),GH$1))-FIND(CHAR(160),SUBSTITUTE($V46,\"{\",CHAR(160),GH$1))+1),\"\")","v":"{IEER}"},{"$f":"IFERROR(MID($V46,FIND(CHAR(160),SUBSTITUTE($V46,\"{\",CHAR(160),GI$1)),FIND(CHAR(160),SUBSTITUTE($V46,\"}\",CHAR(160),GI$1))-FIND(CHAR(160),SUBSTITUTE($V46,\"{\",CHAR(160),GI$1))+1),\"\")","v":"{Factor:SummerCF}"},{"$f":"IFERROR(MID($V46,FIND(CHAR(160),SUBSTITUTE($V46,\"{\",CHAR(160),GJ$1)),FIND(CHAR(160),SUBSTITUTE($V46,\"}\",CHAR(160),GJ$1))-FIND(CHAR(160),SUBSTITUTE($V46,\"{\",CHAR(160),GJ$1))+1),\"\")","v":""},{"$f":"IFERROR(MID($V46,FIND(CHAR(160),SUBSTITUTE($V46,\"{\",CHAR(160),GK$1)),FIND(CHAR(160),SUBSTITUTE($V46,\"}\",CHAR(160),GK$1))-FIND(CHAR(160),SUBSTITUTE($V46,\"{\",CHAR(160),GK$1))+1),\"\")","v":""},{"$f":"IFERROR(MID($V46,FIND(CHAR(160),SUBSTITUTE($V46,\"{\",CHAR(160),GL$1)),FIND(CHAR(160),SUBSTITUTE($V46,\"}\",CHAR(160),GL$1))-FIND(CHAR(160),SUBSTITUTE($V46,\"{\",CHAR(160),GL$1))+1),\"\")","v":""},{"$f":"IFERROR(MID($V46,FIND(CHAR(160),SUBSTITUTE($V46,\"{\",CHAR(160),GM$1)),FIND(CHAR(160),SUBSTITUTE($V46,\"}\",CHAR(160),GM$1))-FIND(CHAR(160),SUBSTITUTE($V46,\"{\",CHAR(160),GM$1))+1),\"\")","v":""},{"$f":"IFERROR(MID($V46,FIND(CHAR(160),SUBSTITUTE($V46,\"{\",CHAR(160),GN$1)),FIND(CHAR(160),SUBSTITUTE($V46,\"}\",CHAR(160),GN$1))-FIND(CHAR(160),SUBSTITUTE($V46,\"{\",CHAR(160),GN$1))+1),\"\")","v":""},{"$f":"IFERROR(MID($V46,FIND(CHAR(160),SUBSTITUTE($V46,\"{\",CHAR(160),GO$1)),FIND(CHAR(160),SUBSTITUTE($V46,\"}\",CHAR(160),GO$1))-FIND(CHAR(160),SUBSTITUTE($V46,\"{\",CHAR(160),GO$1))+1),\"\")","v":"{Measure:Quantity}"},{"$f":"IFERROR(MID($V46,FIND(CHAR(160),SUBSTITUTE($V46,\"{\",CHAR(160),GP$1)),FIND(CHAR(160),SUBSTITUTE($V46,\"}\",CHAR(160),GP$1))-FIND(CHAR(160),SUBSTITUTE($V46,\"{\",CHAR(160),GP$1))+1),\"\")","v":"{Cooling Capacity (Btu/h)}"},{"$f":"IFERROR(MID($W46,FIND(CHAR(160),SUBSTITUTE($W46,\"{\",CHAR(160),GQ$1)),FIND(CHAR(160),SUBSTITUTE($W46,\"}\",CHAR(160),GQ$1))-FIND(CHAR(160),SUBSTITUTE($W46,\"{\",CHAR(160),GQ$1))+1),\"\")","v":"{Square Feet Served}"},{"$f":"IFERROR(MID($W46,FIND(CHAR(160),SUBSTITUTE($W46,\"{\",CHAR(160),GR$1)),FIND(CHAR(160),SUBSTITUTE($W46,\"}\",CHAR(160),GR$1))-FIND(CHAR(160),SUBSTITUTE($W46,\"{\",CHAR(160),GR$1))+1),\"\")","v":"{COP_base}"},{"$f":"IFERROR(MID($W46,FIND(CHAR(160),SUBSTITUTE($W46,\"{\",CHAR(160),GS$1)),FIND(CHAR(160),SUBSTITUTE($W46,\"}\",CHAR(160),GS$1))-FIND(CHAR(160),SUBSTITUTE($W46,\"{\",CHAR(160),GS$1))+1),\"\")","v":""},{"$f":"IFERROR(MID($W46,FIND(CHAR(160),SUBSTITUTE($W46,\"{\",CHAR(160),GT$1)),FIND(CHAR(160),SUBSTITUTE($W46,\"}\",CHAR(160),GT$1))-FIND(CHAR(160),SUBSTITUTE($W46,\"{\",CHAR(160),GT$1))+1),\"\")","v":""},{"$f":"IFERROR(MID($W46,FIND(CHAR(160),SUBSTITUTE($W46,\"{\",CHAR(160),GU$1)),FIND(CHAR(160),SUBSTITUTE($W46,\"}\",CHAR(160),GU$1))-FIND(CHAR(160),SUBSTITUTE($W46,\"{\",CHAR(160),GU$1))+1),\"\")","v":""},{"$f":"IFERROR(MID($W46,FIND(CHAR(160),SUBSTITUTE($W46,\"{\",CHAR(160),GV$1)),FIND(CHAR(160),SUBSTITUTE($W46,\"}\",CHAR(160),GV$1))-FIND(CHAR(160),SUBSTITUTE($W46,\"{\",CHAR(160),GV$1))+1),\"\")","v":""},{"$f":"IFERROR(MID($W46,FIND(CHAR(160),SUBSTITUTE($W46,\"{\",CHAR(160),GW$1)),FIND(CHAR(160),SUBSTITUTE($W46,\"}\",CHAR(160),GW$1))-FIND(CHAR(160),SUBSTITUTE($W46,\"{\",CHAR(160),GW$1))+1),\"\")","v":""},{"$f":"IFERROR(MID($W46,FIND(CHAR(160),SUBSTITUTE($W46,\"{\",CHAR(160),GX$1)),FIND(CHAR(160),SUBSTITUTE($W46,\"}\",CHAR(160),GX$1))-FIND(CHAR(160),SUBSTITUTE($W46,\"{\",CHAR(160),GX$1))+1),\"\")","v":""},{"$f":"IFERROR(MID($W46,FIND(CHAR(160),SUBSTITUTE($W46,\"{\",CHAR(160),GY$1)),FIND(CHAR(160),SUBSTITUTE($W46,\"}\",CHAR(160),GY$1))-FIND(CHAR(160),SUBSTITUTE($W46,\"{\",CHAR(160),GY$1))+1),\"\")","v":"{Alternate Heating Fuel}"},{"$f":"IFERROR(MID($W46,FIND(CHAR(160),SUBSTITUTE($W46,\"{\",CHAR(160),GZ$1)),FIND(CHAR(160),SUBSTITUTE($W46,\"}\",CHAR(160),GZ$1))-FIND(CHAR(160),SUBSTITUTE($W46,\"{\",CHAR(160),GZ$1))+1),\"\")","v":"{Measure:Quantity}"},{"$f":"IFERROR(MID($X46,FIND(CHAR(160),SUBSTITUTE($X46,\"{\",CHAR(160),HA$1)),FIND(CHAR(160),SUBSTITUTE($X46,\"}\",CHAR(160),HA$1))-FIND(CHAR(160),SUBSTITUTE($X46,\"{\",CHAR(160),HA$1))+1),\"\")","v":"{Square Feet Served}"},{"$f":"IFERROR(MID($X46,FIND(CHAR(160),SUBSTITUTE($X46,\"{\",CHAR(160),HB$1)),FIND(CHAR(160),SUBSTITUTE($X46,\"}\",CHAR(160),HB$1))-FIND(CHAR(160),SUBSTITUTE($X46,\"{\",CHAR(160),HB$1))+1),\"\")","v":"{COP_base}"},{"$f":"IFERROR(MID($X46,FIND(CHAR(160),SUBSTITUTE($X46,\"{\",CHAR(160),HC$1)),FIND(CHAR(160),SUBSTITUTE($X46,\"}\",CHAR(160),HC$1))-FIND(CHAR(160),SUBSTITUTE($X46,\"{\",CHAR(160),HC$1))+1),\"\")","v":""},{"$f":"IFERROR(MID($X46,FIND(CHAR(160),SUBSTITUTE($X46,\"{\",CHAR(160),HD$1)),FIND(CHAR(160),SUBSTITUTE($X46,\"}\",CHAR(160),HD$1))-FIND(CHAR(160),SUBSTITUTE($X46,\"{\",CHAR(160),HD$1))+1),\"\")","v":""},{"$f":"IFERROR(MID($X46,FIND(CHAR(160),SUBSTITUTE($X46,\"{\",CHAR(160),HE$1)),FIND(CHAR(160),SUBSTITUTE($X46,\"}\",CHAR(160),HE$1))-FIND(CHAR(160),SUBSTITUTE($X46,\"{\",CHAR(160),HE$1))+1),\"\")","v":""},{"$f":"IFERROR(MID($X46,FIND(CHAR(160),SUBSTITUTE($X46,\"{\",CHAR(160),HF$1)),FIND(CHAR(160),SUBSTITUTE($X46,\"}\",CHAR(160),HF$1))-FIND(CHAR(160),SUBSTITUTE($X46,\"{\",CHAR(160),HF$1))+1),\"\")","v":""},{"$f":"IFERROR(MID($X46,FIND(CHAR(160),SUBSTITUTE($X46,\"{\",CHAR(160),HG$1)),FIND(CHAR(160),SUBSTITUTE($X46,\"}\",CHAR(160),HG$1))-FIND(CHAR(160),SUBSTITUTE($X46,\"{\",CHAR(160),HG$1))+1),\"\")","v":""},{"$f":"IFERROR(MID($X46,FIND(CHAR(160),SUBSTITUTE($X46,\"{\",CHAR(160),HH$1)),FIND(CHAR(160),SUBSTITUTE($X46,\"}\",CHAR(160),HH$1))-FIND(CHAR(160),SUBSTITUTE($X46,\"{\",CHAR(160),HH$1))+1),\"\")","v":""},{"$f":"IFERROR(MID($X46,FIND(CHAR(160),SUBSTITUTE($X46,\"{\",CHAR(160),HI$1)),FIND(CHAR(160),SUBSTITUTE($X46,\"}\",CHAR(160),HI$1))-FIND(CHAR(160),SUBSTITUTE($X46,\"{\",CHAR(160),HI$1))+1),\"\")","v":"{Alternate Heating Fuel}"},{"$f":"IFERROR(MID($X46,FIND(CHAR(160),SUBSTITUTE($X46,\"{\",CHAR(160),HJ$1)),FIND(CHAR(160),SUBSTITUTE($X46,\"}\",CHAR(160),HJ$1))-FIND(CHAR(160),SUBSTITUTE($X46,\"{\",CHAR(160),HJ$1))+1),\"\")","v":"{Measure:Quantity}"},{"$f":"IFERROR(MID($Y46,FIND(CHAR(160),SUBSTITUTE($Y46,\"{\",CHAR(160),HK$1)),FIND(CHAR(160),SUBSTITUTE($Y46,\"}\",CHAR(160),HK$1))-FIND(CHAR(160),SUBSTITUTE($Y46,\"{\",CHAR(160),HK$1))+1),\"\")","v":"{Square Feet Served}"},{"$f":"IFERROR(MID($Y46,FIND(CHAR(160),SUBSTITUTE($Y46,\"{\",CHAR(160),HL$1)),FIND(CHAR(160),SUBSTITUTE($Y46,\"}\",CHAR(160),HL$1))-FIND(CHAR(160),SUBSTITUTE($Y46,\"{\",CHAR(160),HL$1))+1),\"\")","v":"{COP_base}"},{"$f":"IFERROR(MID($Y46,FIND(CHAR(160),SUBSTITUTE($Y46,\"{\",CHAR(160),HM$1)),FIND(CHAR(160),SUBSTITUTE($Y46,\"}\",CHAR(160),HM$1))-FIND(CHAR(160),SUBSTITUTE($Y46,\"{\",CHAR(160),HM$1))+1),\"\")","v":""},{"$f":"IFERROR(MID($Y46,FIND(CHAR(160),SUBSTITUTE($Y46,\"{\",CHAR(160),HN$1)),FIND(CHAR(160),SUBSTITUTE($Y46,\"}\",CHAR(160),HN$1))-FIND(CHAR(160),SUBSTITUTE($Y46,\"{\",CHAR(160),HN$1))+1),\"\")","v":""},{"$f":"IFERROR(MID($Y46,FIND(CHAR(160),SUBSTITUTE($Y46,\"{\",CHAR(160),HO$1)),FIND(CHAR(160),SUBSTITUTE($Y46,\"}\",CHAR(160),HO$1))-FIND(CHAR(160),SUBSTITUTE($Y46,\"{\",CHAR(160),HO$1))+1),\"\")","v":""},{"$f":"IFERROR(MID($Y46,FIND(CHAR(160),SUBSTITUTE($Y46,\"{\",CHAR(160),HP$1)),FIND(CHAR(160),SUBSTITUTE($Y46,\"}\",CHAR(160),HP$1))-FIND(CHAR(160),SUBSTITUTE($Y46,\"{\",CHAR(160),HP$1))+1),\"\")","v":""},{"$f":"IFERROR(MID($Y46,FIND(CHAR(160),SUBSTITUTE($Y46,\"{\",CHAR(160),HQ$1)),FIND(CHAR(160),SUBSTITUTE($Y46,\"}\",CHAR(160),HQ$1))-FIND(CHAR(160),SUBSTITUTE($Y46,\"{\",CHAR(160),HQ$1))+1),\"\")","v":""},{"$f":"IFERROR(MID($Y46,FIND(CHAR(160),SUBSTITUTE($Y46,\"{\",CHAR(160),HR$1)),FIND(CHAR(160),SUBSTITUTE($Y46,\"}\",CHAR(160),HR$1))-FIND(CHAR(160),SUBSTITUTE($Y46,\"{\",CHAR(160),HR$1))+1),\"\")","v":""},{"$f":"IFERROR(MID($Y46,FIND(CHAR(160),SUBSTITUTE($Y46,\"{\",CHAR(160),HS$1)),FIND(CHAR(160),SUBSTITUTE($Y46,\"}\",CHAR(160),HS$1))-FIND(CHAR(160),SUBSTITUTE($Y46,\"{\",CHAR(160),HS$1))+1),\"\")","v":"{Alternate Heating Fuel}"},{"$f":"IFERROR(MID($Y46,FIND(CHAR(160),SUBSTITUTE($Y46,\"{\",CHAR(160),HT$1)),FIND(CHAR(160),SUBSTITUTE($Y46,\"}\",CHAR(160),HT$1))-FIND(CHAR(160),SUBSTITUTE($Y46,\"{\",CHAR(160),HT$1))+1),\"\")","v":"{Measure:Quantity}"},{"$f":"IFERROR(MID($Z46,FIND(CHAR(160),SUBSTITUTE($Z46,\"{\",CHAR(160),HU$1)),FIND(CHAR(160),SUBSTITUTE($Z46,\"}\",CHAR(160),HU$1))-FIND(CHAR(160),SUBSTITUTE($Z46,\"{\",CHAR(160),HU$1))+1),\"\")","v":"{Square Feet Served}"},{"$f":"IFERROR(MID($Z46,FIND(CHAR(160),SUBSTITUTE($Z46,\"{\",CHAR(160),HV$1)),FIND(CHAR(160),SUBSTITUTE($Z46,\"}\",CHAR(160),HV$1))-FIND(CHAR(160),SUBSTITUTE($Z46,\"{\",CHAR(160),HV$1))+1),\"\")","v":"{COP_base}"},{"$f":"IFERROR(MID($Z46,FIND(CHAR(160),SUBSTITUTE($Z46,\"{\",CHAR(160),HW$1)),FIND(CHAR(160),SUBSTITUTE($Z46,\"}\",CHAR(160),HW$1))-FIND(CHAR(160),SUBSTITUTE($Z46,\"{\",CHAR(160),HW$1))+1),\"\")","v":""},{"$f":"IFERROR(MID($Z46,FIND(CHAR(160),SUBSTITUTE($Z46,\"{\",CHAR(160),HX$1)),FIND(CHAR(160),SUBSTITUTE($Z46,\"}\",CHAR(160),HX$1))-FIND(CHAR(160),SUBSTITUTE($Z46,\"{\",CHAR(160),HX$1))+1),\"\")","v":""},{"$f":"IFERROR(MID($Z46,FIND(CHAR(160),SUBSTITUTE($Z46,\"{\",CHAR(160),HY$1)),FIND(CHAR(160),SUBSTITUTE($Z46,\"}\",CHAR(160),HY$1))-FIND(CHAR(160),SUBSTITUTE($Z46,\"{\",CHAR(160),HY$1))+1),\"\")","v":""},{"$f":"IFERROR(MID($Z46,FIND(CHAR(160),SUBSTITUTE($Z46,\"{\",CHAR(160),HZ$1)),FIND(CHAR(160),SUBSTITUTE($Z46,\"}\",CHAR(160),HZ$1))-FIND(CHAR(160),SUBSTITUTE($Z46,\"{\",CHAR(160),HZ$1))+1),\"\")","v":""},{"$f":"IFERROR(MID($Z46,FIND(CHAR(160),SUBSTITUTE($Z46,\"{\",CHAR(160),IA$1)),FIND(CHAR(160),SUBSTITUTE($Z46,\"}\",CHAR(160),IA$1))-FIND(CHAR(160),SUBSTITUTE($Z46,\"{\",CHAR(160),IA$1))+1),\"\")","v":""},{"$f":"IFERROR(MID($Z46,FIND(CHAR(160),SUBSTITUTE($Z46,\"{\",CHAR(160),IB$1)),FIND(CHAR(160),SUBSTITUTE($Z46,\"}\",CHAR(160),IB$1))-FIND(CHAR(160),SUBSTITUTE($Z46,\"{\",CHAR(160),IB$1))+1),\"\")","v":""},{"$f":"IFERROR(MID($Z46,FIND(CHAR(160),SUBSTITUTE($Z46,\"{\",CHAR(160),IC$1)),FIND(CHAR(160),SUBSTITUTE($Z46,\"}\",CHAR(160),IC$1))-FIND(CHAR(160),SUBSTITUTE($Z46,\"{\",CHAR(160),IC$1))+1),\"\")","v":"{Alternate Heating Fuel}"},{"$f":"IFERROR(MID($Z46,FIND(CHAR(160),SUBSTITUTE($Z46,\"{\",CHAR(160),ID$1)),FIND(CHAR(160),SUBSTITUTE($Z46,\"}\",CHAR(160),ID$1))-FIND(CHAR(160),SUBSTITUTE($Z46,\"{\",CHAR(160),ID$1))+1),\"\")","v":"{Measure:Quantity}"},{"$f":"IFERROR(MID($AA46,FIND(CHAR(160),SUBSTITUTE($AA46,\"{\",CHAR(160),IE$1)),FIND(CHAR(160),SUBSTITUTE($AA46,\"}\",CHAR(160),IE$1))-FIND(CHAR(160),SUBSTITUTE($AA46,\"{\",CHAR(160),IE$1))+1),\"\")","v":"{Square Feet Served}"},{"$f":"IFERROR(MID($AA46,FIND(CHAR(160),SUBSTITUTE($AA46,\"{\",CHAR(160),IF$1)),FIND(CHAR(160),SUBSTITUTE($AA46,\"}\",CHAR(160),IF$1))-FIND(CHAR(160),SUBSTITUTE($AA46,\"{\",CHAR(160),IF$1))+1),\"\")","v":"{COP_base}"},{"$f":"IFERROR(MID($AA46,FIND(CHAR(160),SUBSTITUTE($AA46,\"{\",CHAR(160),IG$1)),FIND(CHAR(160),SUBSTITUTE($AA46,\"}\",CHAR(160),IG$1))-FIND(CHAR(160),SUBSTITUTE($AA46,\"{\",CHAR(160),IG$1))+1),\"\")","v":""},{"$f":"IFERROR(MID($AA46,FIND(CHAR(160),SUBSTITUTE($AA46,\"{\",CHAR(160),IH$1)),FIND(CHAR(160),SUBSTITUTE($AA46,\"}\",CHAR(160),IH$1))-FIND(CHAR(160),SUBSTITUTE($AA46,\"{\",CHAR(160),IH$1))+1),\"\")","v":""},{"$f":"IFERROR(MID($AA46,FIND(CHAR(160),SUBSTITUTE($AA46,\"{\",CHAR(160),II$1)),FIND(CHAR(160),SUBSTITUTE($AA46,\"}\",CHAR(160),II$1))-FIND(CHAR(160),SUBSTITUTE($AA46,\"{\",CHAR(160),II$1))+1),\"\")","v":""},{"$f":"IFERROR(MID($AA46,FIND(CHAR(160),SUBSTITUTE($AA46,\"{\",CHAR(160),IJ$1)),FIND(CHAR(160),SUBSTITUTE($AA46,\"}\",CHAR(160),IJ$1))-FIND(CHAR(160),SUBSTITUTE($AA46,\"{\",CHAR(160),IJ$1))+1),\"\")","v":""},{"$f":"IFERROR(MID($AA46,FIND(CHAR(160),SUBSTITUTE($AA46,\"{\",CHAR(160),IK$1)),FIND(CHAR(160),SUBSTITUTE($AA46,\"}\",CHAR(160),IK$1))-FIND(CHAR(160),SUBSTITUTE($AA46,\"{\",CHAR(160),IK$1))+1),\"\")","v":""},{"$f":"IFERROR(MID($AA46,FIND(CHAR(160),SUBSTITUTE($AA46,\"{\",CHAR(160),IL$1)),FIND(CHAR(160),SUBSTITUTE($AA46,\"}\",CHAR(160),IL$1))-FIND(CHAR(160),SUBSTITUTE($AA46,\"{\",CHAR(160),IL$1))+1),\"\")","v":""},{"$f":"IFERROR(MID($AA46,FIND(CHAR(160),SUBSTITUTE($AA46,\"{\",CHAR(160),IM$1)),FIND(CHAR(160),SUBSTITUTE($AA46,\"}\",CHAR(160),IM$1))-FIND(CHAR(160),SUBSTITUTE($AA46,\"{\",CHAR(160),IM$1))+1),\"\")","v":"{Alternate Heating Fuel}"},{"$f":"IFERROR(MID($AA46,FIND(CHAR(160),SUBSTITUTE($AA46,\"{\",CHAR(160),IN$1)),FIND(CHAR(160),SUBSTITUTE($AA46,\"}\",CHAR(160),IN$1))-FIND(CHAR(160),SUBSTITUTE($AA46,\"{\",CHAR(160),IN$1))+1),\"\")","v":"{Measure:Quantity}"},{"$f":"IFERROR(MID($AB46,FIND(CHAR(160),SUBSTITUTE($AB46,\"{\",CHAR(160),IO$1)),FIND(CHAR(160),SUBSTITUTE($AB46,\"}\",CHAR(160),IO$1))-FIND(CHAR(160),SUBSTITUTE($AB46,\"{\",CHAR(160),IO$1))+1),\"\")","v":""},{"$f":"IFERROR(MID($AB46,FIND(CHAR(160),SUBSTITUTE($AB46,\"{\",CHAR(160),IP$1)),FIND(CHAR(160),SUBSTITUTE($AB46,\"}\",CHAR(160),IP$1))-FIND(CHAR(160),SUBSTITUTE($AB46,\"{\",CHAR(160),IP$1))+1),\"\")","v":""},{"$f":"IFERROR(MID($AB46,FIND(CHAR(160),SUBSTITUTE($AB46,\"{\",CHAR(160),IQ$1)),FIND(CHAR(160),SUBSTITUTE($AB46,\"}\",CHAR(160),IQ$1))-FIND(CHAR(160),SUBSTITUTE($AB46,\"{\",CHAR(160),IQ$1))+1),\"\")","v":""},{"$f":"IFERROR(MID($AB46,FIND(CHAR(160),SUBSTITUTE($AB46,\"{\",CHAR(160),IR$1)),FIND(CHAR(160),SUBSTITUTE($AB46,\"}\",CHAR(160),IR$1))-FIND(CHAR(160),SUBSTITUTE($AB46,\"{\",CHAR(160),IR$1))+1),\"\")","v":""},{"$f":"IFERROR(MID($AB46,FIND(CHAR(160),SUBSTITUTE($AB46,\"{\",CHAR(160),IS$1)),FIND(CHAR(160),SUBSTITUTE($AB46,\"}\",CHAR(160),IS$1))-FIND(CHAR(160),SUBSTITUTE($AB46,\"{\",CHAR(160),IS$1))+1),\"\")","v":""},{"$f":"IFERROR(MID($AB46,FIND(CHAR(160),SUBSTITUTE($AB46,\"{\",CHAR(160),IT$1)),FIND(CHAR(160),SUBSTITUTE($AB46,\"}\",CHAR(160),IT$1))-FIND(CHAR(160),SUBSTITUTE($AB46,\"{\",CHAR(160),IT$1))+1),\"\")","v":""},{"$f":"IFERROR(MID($AB46,FIND(CHAR(160),SUBSTITUTE($AB46,\"{\",CHAR(160),IU$1)),FIND(CHAR(160),SUBSTITUTE($AB46,\"}\",CHAR(160),IU$1))-FIND(CHAR(160),SUBSTITUTE($AB46,\"{\",CHAR(160),IU$1))+1),\"\")","v":""},{"$f":"IFERROR(MID($AB46,FIND(CHAR(160),SUBSTITUTE($AB46,\"{\",CHAR(160),IV$1)),FIND(CHAR(160),SUBSTITUTE($AB46,\"}\",CHAR(160),IV$1))-FIND(CHAR(160),SUBSTITUTE($AB46,\"{\",CHAR(160),IV$1))+1),\"\")","v":""},{"$f":"IFERROR(MID($AB46,FIND(CHAR(160),SUBSTITUTE($AB46,\"{\",CHAR(160),IW$1)),FIND(CHAR(160),SUBSTITUTE($AB46,\"}\",CHAR(160),IW$1))-FIND(CHAR(160),SUBSTITUTE($AB46,\"{\",CHAR(160),IW$1))+1),\"\")","v":""},{"$f":"IFERROR(MID($AB46,FIND(CHAR(160),SUBSTITUTE($AB46,\"{\",CHAR(160),IX$1)),FIND(CHAR(160),SUBSTITUTE($AB46,\"}\",CHAR(160),IX$1))-FIND(CHAR(160),SUBSTITUTE($AB46,\"{\",CHAR(160),IX$1))+1),\"\")","v":""},null,{"$f":"10-COUNTIF(DU46:ED46,\"\")","v":9}]
["C&I HVAC - Electric","VFD: Building Exhaust Fan","BEF","2021-07-01","2021-09-09","Calculated","{Measure:Quantity}*if({Motor HP}=5,2425,if({Motor HP}=7.5,2648,if({Motor HP}=10,2871,if({Motor HP}=15,3317,if({Motor HP}=20,3763,if({Motor HP}=25,4209,if({Motor HP}=30,4655,0)))))))",0,"Calculated","{Measure:Quantity}*if({Motor HP}=5,400,if({Motor HP}=7.5,650,if({Motor HP}=10,1400,if({Motor HP}=15,1650,if({Motor HP}=20,1850,if({Motor HP}=25,2000,if({Motor HP}=30,2300,0)))))))",0,"2021-07-01","2022-06-30","Calculated","{Measure:Quantity}*{Motor HP}*755",null,null,"{Measure:Quantity}*{Motor HP}*.120",null,null,"{Measure:Quantity}*{Factor:WinterCF}*{Motor HP}*.120","{Measure:Quantity}*{Factor:SummerCF}*{Motor HP}*.120",null,null,null,null,null,null,"2021-05-25","2022-06-30",13,0.73699999999999999,0.35499999999999998,0.44400000000000001,0.222,0.16,0.17399999999999999,1,1.1220000000000001,1,0.52,1.6E-2,null,{"$f":"DU47","v":"{Measure:Quantity}"},1,{"$f":"DV47","v":"{Motor HP}"},5,{"$f":"DW47","v":""},null,{"$f":"DX47","v":""},null,{"$f":"DY47","v":""},null,{"$f":"DZ47","v":""},null,{"$f":"EA47","v":""},null,{"$f":"EB47","v":""},null,{"$f":"EC47","v":""},null,{"$f":"ED47","v":""},null,{"$f":"AS47*AU47*755","v":3775},0,0,{"$f":"AS47*AU47*0.12","v":0.6},0,0,{"$f":"AS47*AF47*AU47*0.12","v":0.44219999999999998},{"$f":"AS47*AG47*AU47*0.12","v":0.21299999999999999},0,0,0,0,0,0,null,"Res","Default DR",{"$f":"Benefits(BL47,BR47,BS47,BT47,BU47,BV47,BW47,BX47,BY47,BZ47,AE47,AH47,AI47,AJ47,AK47,AL47,AM47,AN47,AO47,AP47,CA47,CB47)","v":5086.6832116597379},1837.6156335233043,0,0,0,0,0,0,0,{"$f":"SUMPRODUCT(CC47:CK47,--(CC47:CK47>0))","v":6924.2988451830424},{"$f":"-SUMPRODUCT(CC47:CK47,--(CC47:CK47<0))","v":0},null,{"$f":"AS47*IF(AU47=5,2425,IF(AU47=7.5,2648,IF(AU47=10,2871,IF(AU47=15,3317,IF(AU47=20,3763,IF(AU47=25,4209,IF(AU47=30,4655,0)))))))","v":2425},null,null,{"$f":"CM47+CO47","v":2425},{"$f":"IF(NetOrGross=\"Net\",(1-AO47+AP47),1)","v":1},{"$f":"(SUMPRODUCT(CC47:CJ47,--(CC47:CJ47>0))+CN47)*CS47/((-SUMPRODUCT(CC47:CJ47,--(CC47:CJ47<0))+MAX(CO47,CV47)+CP47+CQ47)*CS47+IF(FRIncentives=\"Yes\",CV47*(1-CS47),0))","v":2.8553809670857908},1,{"$f":"AS47*IF(AU47=5,400,IF(AU47=7.5,650,IF(AU47=10,1400,IF(AU47=15,1650,IF(AU47=20,1850,IF(AU47=25,2000,IF(AU47=30,2300,0)))))))","v":400},null,"Electric","y",null,{"$f":"IF(F47=\"Manual Entry\",\"Manual\",IF(G47=\"\",0,\"X=\"&SUBSTITUTE(SUBSTITUTE(SUBSTITUTE(SUBSTITUTE(SUBSTITUTE(SUBSTITUTE(SUBSTITUTE(SUBSTITUTE(SUBSTITUTE(SUBSTITUTE(SUBSTITUTE(SUBSTITUTE(G47,$ED47,$ED$2&ROW($ED47)),$EC47,$EC$2&ROW($EC47)),$EB47,$EB$2&ROW($EB47)),$EA47,$EA$2&ROW($EA47)),$DZ47,$DZ$2&ROW($DZ47)),$DY47,$DY$2&ROW($DY47)),$DX47,$DX$2&ROW($DX47)),$DW47,$DW$2&ROW($DW47)),$DV47,$DV$2&ROW($DV47)),$DU47,$DU$2&ROW($DU47)),$DT47,$DT$2&ROW($DT47)),$DS47,$DS$2&ROW($DS47))))","v":"X=AS47*if(AU47=5,2425,if(AU47=7.5,2648,if(AU47=10,2871,if(AU47=15,3317,if(AU47=20,3763,if(AU47=25,4209,if(AU47=30,4655,0)))))))"},{"$f":"IF(I47=\"Manual Entry\",\"Manual\",IF(J47=\"\",0,\"X=\"&SUBSTITUTE(SUBSTITUTE(SUBSTITUTE(SUBSTITUTE(SUBSTITUTE(SUBSTITUTE(SUBSTITUTE(SUBSTITUTE(SUBSTITUTE(SUBSTITUTE(SUBSTITUTE(SUBSTITUTE(J47,$ED47,$ED$2&ROW($ED47)),$EC47,$EC$2&ROW($EC47)),$EB47,$EB$2&ROW($EB47)),$EA47,$EA$2&ROW($EA47)),$DZ47,$DZ$2&ROW($DZ47)),$DY47,$DY$2&ROW($DY47)),$DX47,$DX$2&ROW($DX47)),$DW47,$DW$2&ROW($DW47)),$DV47,$DV$2&ROW($DV47)),$DU47,$DU$2&ROW($DU47)),$DT47,$DT$2&ROW($DT47)),$DS47,$DS$2&ROW($DS47))))","v":"X=AS47*if(AU47=5,400,if(AU47=7.5,650,if(AU47=10,1400,if(AU47=15,1650,if(AU47=20,1850,if(AU47=25,2000,if(AU47=30,2300,0)))))))"},{"$f":"IF(O47=\"\",0,\"X=\"&SUBSTITUTE(SUBSTITUTE(SUBSTITUTE(SUBSTITUTE(SUBSTITUTE(SUBSTITUTE(SUBSTITUTE(SUBSTITUTE(SUBSTITUTE(SUBSTITUTE(SUBSTITUTE(SUBSTITUTE(O47,$ED47,$ED$2&ROW($ED47)),$EC47,$EC$2&ROW($EC47)),$EB47,$EB$2&ROW($EB47)),$EA47,$EA$2&ROW($EA47)),$DZ47,$DZ$2&ROW($DZ47)),$DY47,$DY$2&ROW($DY47)),$DX47,$DX$2&ROW($DX47)),$DW47,$DW$2&ROW($DW47)),$DV47,$DV$2&ROW($DV47)),$DU47,$DU$2&ROW($DU47)),$DT47,$DT$2&ROW($DT47)),$DS47,$DS$2&ROW($DS47)))","v":"X=AS47*AU47*755"},{"$f":"IF(P47=\"\",0,\"X=\"&SUBSTITUTE(SUBSTITUTE(SUBSTITUTE(SUBSTITUTE(SUBSTITUTE(SUBSTITUTE(SUBSTITUTE(SUBSTITUTE(SUBSTITUTE(SUBSTITUTE(SUBSTITUTE(SUBSTITUTE(P47,$ED47,$ED$2&ROW($ED47)),$EC47,$EC$2&ROW($EC47)),$EB47,$EB$2&ROW($EB47)),$EA47,$EA$2&ROW($EA47)),$DZ47,$DZ$2&ROW($DZ47)),$DY47,$DY$2&ROW($DY47)),$DX47,$DX$2&ROW($DX47)),$DW47,$DW$2&ROW($DW47)),$DV47,$DV$2&ROW($DV47)),$DU47,$DU$2&ROW($DU47)),$DT47,$DT$2&ROW($DT47)),$DS47,$DS$2&ROW($DS47)))","v":0},{"$f":"IF(Q47=\"\",0,\"X=\"&SUBSTITUTE(SUBSTITUTE(SUBSTITUTE(SUBSTITUTE(SUBSTITUTE(SUBSTITUTE(SUBSTITUTE(SUBSTITUTE(SUBSTITUTE(SUBSTITUTE(SUBSTITUTE(SUBSTITUTE(Q47,$ED47,$ED$2&ROW($ED47)),$EC47,$EC$2&ROW($EC47)),$EB47,$EB$2&ROW($EB47)),$EA47,$EA$2&ROW($EA47)),$DZ47,$DZ$2&ROW($DZ47)),$DY47,$DY$2&ROW($DY47)),$DX47,$DX$2&ROW($DX47)),$DW47,$DW$2&ROW($DW47)),$DV47,$DV$2&ROW($DV47)),$DU47,$DU$2&ROW($DU47)),$DT47,$DT$2&ROW($DT47)),$DS47,$DS$2&ROW($DS47)))","v":0},{"$f":"IF(R47=\"\",0,\"X=\"&SUBSTITUTE(SUBSTITUTE(SUBSTITUTE(SUBSTITUTE(SUBSTITUTE(SUBSTITUTE(SUBSTITUTE(SUBSTITUTE(SUBSTITUTE(SUBSTITUTE(SUBSTITUTE(SUBSTITUTE(R47,$ED47,$ED$2&ROW($ED47)),$EC47,$EC$2&ROW($EC47)),$EB47,$EB$2&ROW($EB47)),$EA47,$EA$2&ROW($EA47)),$DZ47,$DZ$2&ROW($DZ47)),$DY47,$DY$2&ROW($DY47)),$DX47,$DX$2&ROW($DX47)),$DW47,$DW$2&ROW($DW47)),$DV47,$DV$2&ROW($DV47)),$DU47,$DU$2&ROW($DU47)),$DT47,$DT$2&ROW($DT47)),$DS47,$DS$2&ROW($DS47)))","v":"X=AS47*AU47*.120"},{"$f":"IF(S47=\"\",0,\"X=\"&SUBSTITUTE(SUBSTITUTE(SUBSTITUTE(SUBSTITUTE(SUBSTITUTE(SUBSTITUTE(SUBSTITUTE(SUBSTITUTE(SUBSTITUTE(SUBSTITUTE(SUBSTITUTE(SUBSTITUTE(S47,$ED47,$ED$2&ROW($ED47)),$EC47,$EC$2&ROW($EC47)),$EB47,$EB$2&ROW($EB47)),$EA47,$EA$2&ROW($EA47)),$DZ47,$DZ$2&ROW($DZ47)),$DY47,$DY$2&ROW($DY47)),$DX47,$DX$2&ROW($DX47)),$DW47,$DW$2&ROW($DW47)),$DV47,$DV$2&ROW($DV47)),$DU47,$DU$2&ROW($DU47)),$DT47,$DT$2&ROW($DT47)),$DS47,$DS$2&ROW($DS47)))","v":0},{"$f":"IF(T47=\"\",0,\"X=\"&SUBSTITUTE(SUBSTITUTE(SUBSTITUTE(SUBSTITUTE(SUBSTITUTE(SUBSTITUTE(SUBSTITUTE(SUBSTITUTE(SUBSTITUTE(SUBSTITUTE(SUBSTITUTE(SUBSTITUTE(T47,$ED47,$ED$2&ROW($ED47)),$EC47,$EC$2&ROW($EC47)),$EB47,$EB$2&ROW($EB47)),$EA47,$EA$2&ROW($EA47)),$DZ47,$DZ$2&ROW($DZ47)),$DY47,$DY$2&ROW($DY47)),$DX47,$DX$2&ROW($DX47)),$DW47,$DW$2&ROW($DW47)),$DV47,$DV$2&ROW($DV47)),$DU47,$DU$2&ROW($DU47)),$DT47,$DT$2&ROW($DT47)),$DS47,$DS$2&ROW($DS47)))","v":0},{"$f":"IF(U47=\"\",0,\"X=\"&SUBSTITUTE(SUBSTITUTE(SUBSTITUTE(SUBSTITUTE(SUBSTITUTE(SUBSTITUTE(SUBSTITUTE(SUBSTITUTE(SUBSTITUTE(SUBSTITUTE(SUBSTITUTE(SUBSTITUTE(U47,$ED47,$ED$2&ROW($ED47)),$EC47,$EC$2&ROW($EC47)),$EB47,$EB$2&ROW($EB47)),$EA47,$EA$2&ROW($EA47)),$DZ47,$DZ$2&ROW($DZ47)),$DY47,$DY$2&ROW($DY47)),$DX47,$DX$2&ROW($DX47)),$DW47,$DW$2&ROW($DW47)),$DV47,$DV$2&ROW($DV47)),$DU47,$DU$2&ROW($DU47)),$DT47,$DT$2&ROW($DT47)),$DS47,$DS$2&ROW($DS47)))","v":"X=AS47*AF47*AU47*.120"},{"$f":"IF(V47=\"\",0,\"X=\"&SUBSTITUTE(SUBSTITUTE(SUBSTITUTE(SUBSTITUTE(SUBSTITUTE(SUBSTITUTE(SUBSTITUTE(SUBSTITUTE(SUBSTITUTE(SUBSTITUTE(SUBSTITUTE(SUBSTITUTE(V47,$ED47,$ED$2&ROW($ED47)),$EC47,$EC$2&ROW($EC47)),$EB47,$EB$2&ROW($EB47)),$EA47,$EA$2&ROW($EA47)),$DZ47,$DZ$2&ROW($DZ47)),$DY47,$DY$2&ROW($DY47)),$DX47,$DX$2&ROW($DX47)),$DW47,$DW$2&ROW($DW47)),$DV47,$DV$2&ROW($DV47)),$DU47,$DU$2&ROW($DU47)),$DT47,$DT$2&ROW($DT47)),$DS47,$DS$2&ROW($DS47)))","v":"X=AS47*AG47*AU47*.120"},{"$f":"IF(W47=\"\",0,\"X=\"&SUBSTITUTE(SUBSTITUTE(SUBSTITUTE(SUBSTITUTE(SUBSTITUTE(SUBSTITUTE(SUBSTITUTE(SUBSTITUTE(SUBSTITUTE(SUBSTITUTE(SUBSTITUTE(SUBSTITUTE(W47,$ED47,$ED$2&ROW($ED47)),$EC47,$EC$2&ROW($EC47)),$EB47,$EB$2&ROW($EB47)),$EA47,$EA$2&ROW($EA47)),$DZ47,$DZ$2&ROW($DZ47)),$DY47,$DY$2&ROW($DY47)),$DX47,$DX$2&ROW($DX47)),$DW47,$DW$2&ROW($DW47)),$DV47,$DV$2&ROW($DV47)),$DU47,$DU$2&ROW($DU47)),$DT47,$DT$2&ROW($DT47)),$DS47,$DS$2&ROW($DS47)))","v":0},{"$f":"IF(X47=\"\",0,\"X=\"&SUBSTITUTE(SUBSTITUTE(SUBSTITUTE(SUBSTITUTE(SUBSTITUTE(SUBSTITUTE(SUBSTITUTE(SUBSTITUTE(SUBSTITUTE(SUBSTITUTE(SUBSTITUTE(SUBSTITUTE(X47,$ED47,$ED$2&ROW($ED47)),$EC47,$EC$2&ROW($EC47)),$EB47,$EB$2&ROW($EB47)),$EA47,$EA$2&ROW($EA47)),$DZ47,$DZ$2&ROW($DZ47)),$DY47,$DY$2&ROW($DY47)),$DX47,$DX$2&ROW($DX47)),$DW47,$DW$2&ROW($DW47)),$DV47,$DV$2&ROW($DV47)),$DU47,$DU$2&ROW($DU47)),$DT47,$DT$2&ROW($DT47)),$DS47,$DS$2&ROW($DS47)))","v":0},{"$f":"IF(Y47=\"\",0,\"X=\"&SUBSTITUTE(SUBSTITUTE(SUBSTITUTE(SUBSTITUTE(SUBSTITUTE(SUBSTITUTE(SUBSTITUTE(SUBSTITUTE(SUBSTITUTE(SUBSTITUTE(SUBSTITUTE(SUBSTITUTE(Y47,$ED47,$ED$2&ROW($ED47)),$EC47,$EC$2&ROW($EC47)),$EB47,$EB$2&ROW($EB47)),$EA47,$EA$2&ROW($EA47)),$DZ47,$DZ$2&ROW($DZ47)),$DY47,$DY$2&ROW($DY47)),$DX47,$DX$2&ROW($DX47)),$DW47,$DW$2&ROW($DW47)),$DV47,$DV$2&ROW($DV47)),$DU47,$DU$2&ROW($DU47)),$DT47,$DT$2&ROW($DT47)),$DS47,$DS$2&ROW($DS47)))","v":0},{"$f":"IF(Z47=\"\",0,\"X=\"&SUBSTITUTE(SUBSTITUTE(SUBSTITUTE(SUBSTITUTE(SUBSTITUTE(SUBSTITUTE(SUBSTITUTE(SUBSTITUTE(SUBSTITUTE(SUBSTITUTE(SUBSTITUTE(SUBSTITUTE(Z47,$ED47,$ED$2&ROW($ED47)),$EC47,$EC$2&ROW($EC47)),$EB47,$EB$2&ROW($EB47)),$EA47,$EA$2&ROW($EA47)),$DZ47,$DZ$2&ROW($DZ47)),$DY47,$DY$2&ROW($DY47)),$DX47,$DX$2&ROW($DX47)),$DW47,$DW$2&ROW($DW47)),$DV47,$DV$2&ROW($DV47)),$DU47,$DU$2&ROW($DU47)),$DT47,$DT$2&ROW($DT47)),$DS47,$DS$2&ROW($DS47)))","v":0},{"$f":"IF(AA47=\"\",0,\"X=\"&SUBSTITUTE(SUBSTITUTE(SUBSTITUTE(SUBSTITUTE(SUBSTITUTE(SUBSTITUTE(SUBSTITUTE(SUBSTITUTE(SUBSTITUTE(SUBSTITUTE(SUBSTITUTE(SUBSTITUTE(AA47,$ED47,$ED$2&ROW($ED47)),$EC47,$EC$2&ROW($EC47)),$EB47,$EB$2&ROW($EB47)),$EA47,$EA$2&ROW($EA47)),$DZ47,$DZ$2&ROW($DZ47)),$DY47,$DY$2&ROW($DY47)),$DX47,$DX$2&ROW($DX47)),$DW47,$DW$2&ROW($DW47)),$DV47,$DV$2&ROW($DV47)),$DU47,$DU$2&ROW($DU47)),$DT47,$DT$2&ROW($DT47)),$DS47,$DS$2&ROW($DS47)))","v":0},{"$f":"IF(AB47=\"\",0,\"X=\"&SUBSTITUTE(SUBSTITUTE(SUBSTITUTE(SUBSTITUTE(SUBSTITUTE(SUBSTITUTE(SUBSTITUTE(SUBSTITUTE(SUBSTITUTE(SUBSTITUTE(SUBSTITUTE(SUBSTITUTE(AB47,$ED47,$ED$2&ROW($ED47)),$EC47,$EC$2&ROW($EC47)),$EB47,$EB$2&ROW($EB47)),$EA47,$EA$2&ROW($EA47)),$DZ47,$DZ$2&ROW($DZ47)),$DY47,$DY$2&ROW($DY47)),$DX47,$DX$2&ROW($DX47)),$DW47,$DW$2&ROW($DW47)),$DV47,$DV$2&ROW($DV47)),$DU47,$DU$2&ROW($DU47)),$DT47,$DT$2&ROW($DT47)),$DS47,$DS$2&ROW($DS47)))","v":0},null,null,"{Factor:WinterCF}","{Factor:SummerCF}",{"$f":"IFERROR(INDEX($EG47:$IV47,MATCH(0,COUNTIF($DR47:DT47,$EG47:$IV47),0)),\"\")","v":"{Measure:Quantity}"},{"$f":"IFERROR(INDEX($EG47:$IV47,MATCH(0,COUNTIF($DR47:DU47,$EG47:$IV47),0)),\"\")","v":"{Motor HP}"},{"$f":"IFERROR(INDEX($EG47:$IV47,MATCH(0,COUNTIF($DR47:DV47,$EG47:$IV47),0)),\"\")","v":""},{"$f":"IFERROR(INDEX($EG47:$IV47,MATCH(0,COUNTIF($DR47:DW47,$EG47:$IV47),0)),\"\")","v":""},{"$f":"IFERROR(INDEX($EG47:$IV47,MATCH(0,COUNTIF($DR47:DX47,$EG47:$IV47),0)),\"\")","v":""},{"$f":"IFERROR(INDEX($EG47:$IV47,MATCH(0,COUNTIF($DR47:DY47,$EG47:$IV47),0)),\"\")","v":""},{"$f":"IFERROR(INDEX($EG47:$IV47,MATCH(0,COUNTIF($DR47:DZ47,$EG47:$IV47),0)),\"\")","v":""},{"$f":"IFERROR(INDEX($EG47:$IV47,MATCH(0,COUNTIF($DR47:EA47,$EG47:$IV47),0)),\"\")","v":""},{"$f":"IFERROR(INDEX($EG47:$IV47,MATCH(0,COUNTIF($DR47:EB47,$EG47:$IV47),0)),\"\")","v":""},{"$f":"IFERROR(INDEX($EG47:$IV47,MATCH(0,COUNTIF($DR47:EC47,$EG47:$IV47),0)),\"\")","v":""},null,null,{"$f":"IFERROR(MID($G47,FIND(CHAR(160),SUBSTITUTE($G47,\"{\",CHAR(160),EG$1)),FIND(CHAR(160),SUBSTITUTE($G47,\"}\",CHAR(160),EG$1))-FIND(CHAR(160),SUBSTITUTE($G47,\"{\",CHAR(160),EG$1))+1),\"\")","v":"{Measure:Quantity}"},{"$f":"IFERROR(MID($G47,FIND(CHAR(160),SUBSTITUTE($G47,\"{\",CHAR(160),EH$1)),FIND(CHAR(160),SUBSTITUTE($G47,\"}\",CHAR(160),EH$1))-FIND(CHAR(160),SUBSTITUTE($G47,\"{\",CHAR(160),EH$1))+1),\"\")","v":"{Motor HP}"},{"$f":"IFERROR(MID($G47,FIND(CHAR(160),SUBSTITUTE($G47,\"{\",CHAR(160),EI$1)),FIND(CHAR(160),SUBSTITUTE($G47,\"}\",CHAR(160),EI$1))-FIND(CHAR(160),SUBSTITUTE($G47,\"{\",CHAR(160),EI$1))+1),\"\")","v":"{Motor HP}"},{"$f":"IFERROR(MID($G47,FIND(CHAR(160),SUBSTITUTE($G47,\"{\",CHAR(160),EJ$1)),FIND(CHAR(160),SUBSTITUTE($G47,\"}\",CHAR(160),EJ$1))-FIND(CHAR(160),SUBSTITUTE($G47,\"{\",CHAR(160),EJ$1))+1),\"\")","v":"{Motor HP}"},{"$f":"IFERROR(MID($G47,FIND(CHAR(160),SUBSTITUTE($G47,\"{\",CHAR(160),EK$1)),FIND(CHAR(160),SUBSTITUTE($G47,\"}\",CHAR(160),EK$1))-FIND(CHAR(160),SUBSTITUTE($G47,\"{\",CHAR(160),EK$1))+1),\"\")","v":"{Motor HP}"},{"$f":"IFERROR(MID($G47,FIND(CHAR(160),SUBSTITUTE($G47,\"{\",CHAR(160),EL$1)),FIND(CHAR(160),SUBSTITUTE($G47,\"}\",CHAR(160),EL$1))-FIND(CHAR(160),SUBSTITUTE($G47,\"{\",CHAR(160),EL$1))+1),\"\")","v":"{Motor HP}"},{"$f":"IFERROR(MID($G47,FIND(CHAR(160),SUBSTITUTE($G47,\"{\",CHAR(160),EM$1)),FIND(CHAR(160),SUBSTITUTE($G47,\"}\",CHAR(160),EM$1))-FIND(CHAR(160),SUBSTITUTE($G47,\"{\",CHAR(160),EM$1))+1),\"\")","v":"{Motor HP}"},{"$f":"IFERROR(MID($G47,FIND(CHAR(160),SUBSTITUTE($G47,\"{\",CHAR(160),EN$1)),FIND(CHAR(160),SUBSTITUTE($G47,\"}\",CHAR(160),EN$1))-FIND(CHAR(160),SUBSTITUTE($G47,\"{\",CHAR(160),EN$1))+1),\"\")","v":"{Motor HP}"},{"$f":"IFERROR(MID($G47,FIND(CHAR(160),SUBSTITUTE($G47,\"{\",CHAR(160),EO$1)),FIND(CHAR(160),SUBSTITUTE($G47,\"}\",CHAR(160),EO$1))-FIND(CHAR(160),SUBSTITUTE($G47,\"{\",CHAR(160),EO$1))+1),\"\")","v":""},{"$f":"IFERROR(MID($G47,FIND(CHAR(160),SUBSTITUTE($G47,\"{\",CHAR(160),EP$1)),FIND(CHAR(160),SUBSTITUTE($G47,\"}\",CHAR(160),EP$1))-FIND(CHAR(160),SUBSTITUTE($G47,\"{\",CHAR(160),EP$1))+1),\"\")","v":""},{"$f":"IFERROR(MID($J47,FIND(CHAR(160),SUBSTITUTE($J47,\"{\",CHAR(160),EQ$1)),FIND(CHAR(160),SUBSTITUTE($J47,\"}\",CHAR(160),EQ$1))-FIND(CHAR(160),SUBSTITUTE($J47,\"{\",CHAR(160),EQ$1))+1),\"\")","v":"{Measure:Quantity}"},{"$f":"IFERROR(MID($J47,FIND(CHAR(160),SUBSTITUTE($J47,\"{\",CHAR(160),ER$1)),FIND(CHAR(160),SUBSTITUTE($J47,\"}\",CHAR(160),ER$1))-FIND(CHAR(160),SUBSTITUTE($J47,\"{\",CHAR(160),ER$1))+1),\"\")","v":"{Motor HP}"},{"$f":"IFERROR(MID($J47,FIND(CHAR(160),SUBSTITUTE($J47,\"{\",CHAR(160),ES$1)),FIND(CHAR(160),SUBSTITUTE($J47,\"}\",CHAR(160),ES$1))-FIND(CHAR(160),SUBSTITUTE($J47,\"{\",CHAR(160),ES$1))+1),\"\")","v":"{Motor HP}"},{"$f":"IFERROR(MID($J47,FIND(CHAR(160),SUBSTITUTE($J47,\"{\",CHAR(160),ET$1)),FIND(CHAR(160),SUBSTITUTE($J47,\"}\",CHAR(160),ET$1))-FIND(CHAR(160),SUBSTITUTE($J47,\"{\",CHAR(160),ET$1))+1),\"\")","v":"{Motor HP}"},{"$f":"IFERROR(MID($J47,FIND(CHAR(160),SUBSTITUTE($J47,\"{\",CHAR(160),EU$1)),FIND(CHAR(160),SUBSTITUTE($J47,\"}\",CHAR(160),EU$1))-FIND(CHAR(160),SUBSTITUTE($J47,\"{\",CHAR(160),EU$1))+1),\"\")","v":"{Motor HP}"},{"$f":"IFERROR(MID($J47,FIND(CHAR(160),SUBSTITUTE($J47,\"{\",CHAR(160),EV$1)),FIND(CHAR(160),SUBSTITUTE($J47,\"}\",CHAR(160),EV$1))-FIND(CHAR(160),SUBSTITUTE($J47,\"{\",CHAR(160),EV$1))+1),\"\")","v":"{Motor HP}"},{"$f":"IFERROR(MID($J47,FIND(CHAR(160),SUBSTITUTE($J47,\"{\",CHAR(160),EW$1)),FIND(CHAR(160),SUBSTITUTE($J47,\"}\",CHAR(160),EW$1))-FIND(CHAR(160),SUBSTITUTE($J47,\"{\",CHAR(160),EW$1))+1),\"\")","v":"{Motor HP}"},{"$f":"IFERROR(MID($J47,FIND(CHAR(160),SUBSTITUTE($J47,\"{\",CHAR(160),EX$1)),FIND(CHAR(160),SUBSTITUTE($J47,\"}\",CHAR(160),EX$1))-FIND(CHAR(160),SUBSTITUTE($J47,\"{\",CHAR(160),EX$1))+1),\"\")","v":"{Motor HP}"},{"$f":"IFERROR(MID($J47,FIND(CHAR(160),SUBSTITUTE($J47,\"{\",CHAR(160),EY$1)),FIND(CHAR(160),SUBSTITUTE($J47,\"}\",CHAR(160),EY$1))-FIND(CHAR(160),SUBSTITUTE($J47,\"{\",CHAR(160),EY$1))+1),\"\")","v":""},{"$f":"IFERROR(MID($J47,FIND(CHAR(160),SUBSTITUTE($J47,\"{\",CHAR(160),EZ$1)),FIND(CHAR(160),SUBSTITUTE($J47,\"}\",CHAR(160),EZ$1))-FIND(CHAR(160),SUBSTITUTE($J47,\"{\",CHAR(160),EZ$1))+1),\"\")","v":""},{"$f":"IFERROR(MID($J47,FIND(CHAR(160),SUBSTITUTE($J47,\"{\",CHAR(160),FA$1)),FIND(CHAR(160),SUBSTITUTE($J47,\"}\",CHAR(160),FA$1))-FIND(CHAR(160),SUBSTITUTE($J47,\"{\",CHAR(160),FA$1))+1),\"\")","v":"{Measure:Quantity}"},{"$f":"IFERROR(MID($J47,FIND(CHAR(160),SUBSTITUTE($J47,\"{\",CHAR(160),FB$1)),FIND(CHAR(160),SUBSTITUTE($J47,\"}\",CHAR(160),FB$1))-FIND(CHAR(160),SUBSTITUTE($J47,\"{\",CHAR(160),FB$1))+1),\"\")","v":"{Motor HP}"},{"$f":"IFERROR(MID($O47,FIND(CHAR(160),SUBSTITUTE($O47,\"{\",CHAR(160),FC$1)),FIND(CHAR(160),SUBSTITUTE($O47,\"}\",CHAR(160),FC$1))-FIND(CHAR(160),SUBSTITUTE($O47,\"{\",CHAR(160),FC$1))+1),\"\")","v":""},{"$f":"IFERROR(MID($O47,FIND(CHAR(160),SUBSTITUTE($O47,\"{\",CHAR(160),FD$1)),FIND(CHAR(160),SUBSTITUTE($O47,\"}\",CHAR(160),FD$1))-FIND(CHAR(160),SUBSTITUTE($O47,\"{\",CHAR(160),FD$1))+1),\"\")","v":""},{"$f":"IFERROR(MID($O47,FIND(CHAR(160),SUBSTITUTE($O47,\"{\",CHAR(160),FE$1)),FIND(CHAR(160),SUBSTITUTE($O47,\"}\",CHAR(160),FE$1))-FIND(CHAR(160),SUBSTITUTE($O47,\"{\",CHAR(160),FE$1))+1),\"\")","v":""},{"$f":"IFERROR(MID($O47,FIND(CHAR(160),SUBSTITUTE($O47,\"{\",CHAR(160),FF$1)),FIND(CHAR(160),SUBSTITUTE($O47,\"}\",CHAR(160),FF$1))-FIND(CHAR(160),SUBSTITUTE($O47,\"{\",CHAR(160),FF$1))+1),\"\")","v":""},{"$f":"IFERROR(MID($O47,FIND(CHAR(160),SUBSTITUTE($O47,\"{\",CHAR(160),FG$1)),FIND(CHAR(160),SUBSTITUTE($O47,\"}\",CHAR(160),FG$1))-FIND(CHAR(160),SUBSTITUTE($O47,\"{\",CHAR(160),FG$1))+1),\"\")","v":""},{"$f":"IFERROR(MID($O47,FIND(CHAR(160),SUBSTITUTE($O47,\"{\",CHAR(160),FH$1)),FIND(CHAR(160),SUBSTITUTE($O47,\"}\",CHAR(160),FH$1))-FIND(CHAR(160),SUBSTITUTE($O47,\"{\",CHAR(160),FH$1))+1),\"\")","v":""},{"$f":"IFERROR(MID($O47,FIND(CHAR(160),SUBSTITUTE($O47,\"{\",CHAR(160),FI$1)),FIND(CHAR(160),SUBSTITUTE($O47,\"}\",CHAR(160),FI$1))-FIND(CHAR(160),SUBSTITUTE($O47,\"{\",CHAR(160),FI$1))+1),\"\")","v":""},{"$f":"IFERROR(MID($O47,FIND(CHAR(160),SUBSTITUTE($O47,\"{\",CHAR(160),FJ$1)),FIND(CHAR(160),SUBSTITUTE($O47,\"}\",CHAR(160),FJ$1))-FIND(CHAR(160),SUBSTITUTE($O47,\"{\",CHAR(160),FJ$1))+1),\"\")","v":""},{"$f":"IFERROR(MID($O47,FIND(CHAR(160),SUBSTITUTE($O47,\"{\",CHAR(160),FK$1)),FIND(CHAR(160),SUBSTITUTE($O47,\"}\",CHAR(160),FK$1))-FIND(CHAR(160),SUBSTITUTE($O47,\"{\",CHAR(160),FK$1))+1),\"\")","v":"{Measure:Quantity}"},{"$f":"IFERROR(MID($O47,FIND(CHAR(160),SUBSTITUTE($O47,\"{\",CHAR(160),FL$1)),FIND(CHAR(160),SUBSTITUTE($O47,\"}\",CHAR(160),FL$1))-FIND(CHAR(160),SUBSTITUTE($O47,\"{\",CHAR(160),FL$1))+1),\"\")","v":"{Motor HP}"},{"$f":"IFERROR(MID($R47,FIND(CHAR(160),SUBSTITUTE($R47,\"{\",CHAR(160),FM$1)),FIND(CHAR(160),SUBSTITUTE($R47,\"}\",CHAR(160),FM$1))-FIND(CHAR(160),SUBSTITUTE($R47,\"{\",CHAR(160),FM$1))+1),\"\")","v":""},{"$f":"IFERROR(MID($R47,FIND(CHAR(160),SUBSTITUTE($R47,\"{\",CHAR(160),FN$1)),FIND(CHAR(160),SUBSTITUTE($R47,\"}\",CHAR(160),FN$1))-FIND(CHAR(160),SUBSTITUTE($R47,\"{\",CHAR(160),FN$1))+1),\"\")","v":""},{"$f":"IFERROR(MID($R47,FIND(CHAR(160),SUBSTITUTE($R47,\"{\",CHAR(160),FO$1)),FIND(CHAR(160),SUBSTITUTE($R47,\"}\",CHAR(160),FO$1))-FIND(CHAR(160),SUBSTITUTE($R47,\"{\",CHAR(160),FO$1))+1),\"\")","v":""},{"$f":"IFERROR(MID($R47,FIND(CHAR(160),SUBSTITUTE($R47,\"{\",CHAR(160),FP$1)),FIND(CHAR(160),SUBSTITUTE($R47,\"}\",CHAR(160),FP$1))-FIND(CHAR(160),SUBSTITUTE($R47,\"{\",CHAR(160),FP$1))+1),\"\")","v":""},{"$f":"IFERROR(MID($R47,FIND(CHAR(160),SUBSTITUTE($R47,\"{\",CHAR(160),FQ$1)),FIND(CHAR(160),SUBSTITUTE($R47,\"}\",CHAR(160),FQ$1))-FIND(CHAR(160),SUBSTITUTE($R47,\"{\",CHAR(160),FQ$1))+1),\"\")","v":""},{"$f":"IFERROR(MID($R47,FIND(CHAR(160),SUBSTITUTE($R47,\"{\",CHAR(160),FR$1)),FIND(CHAR(160),SUBSTITUTE($R47,\"}\",CHAR(160),FR$1))-FIND(CHAR(160),SUBSTITUTE($R47,\"{\",CHAR(160),FR$1))+1),\"\")","v":""},{"$f":"IFERROR(MID($R47,FIND(CHAR(160),SUBSTITUTE($R47,\"{\",CHAR(160),FS$1)),FIND(CHAR(160),SUBSTITUTE($R47,\"}\",CHAR(160),FS$1))-FIND(CHAR(160),SUBSTITUTE($R47,\"{\",CHAR(160),FS$1))+1),\"\")","v":""},{"$f":"IFERROR(MID($R47,FIND(CHAR(160),SUBSTITUTE($R47,\"{\",CHAR(160),FT$1)),FIND(CHAR(160),SUBSTITUTE($R47,\"}\",CHAR(160),FT$1))-FIND(CHAR(160),SUBSTITUTE($R47,\"{\",CHAR(160),FT$1))+1),\"\")","v":""},{"$f":"IFERROR(MID($R47,FIND(CHAR(160),SUBSTITUTE($R47,\"{\",CHAR(160),FU$1)),FIND(CHAR(160),SUBSTITUTE($R47,\"}\",CHAR(160),FU$1))-FIND(CHAR(160),SUBSTITUTE($R47,\"{\",CHAR(160),FU$1))+1),\"\")","v":"{Measure:Quantity}"},{"$f":"IFERROR(MID($R47,FIND(CHAR(160),SUBSTITUTE($R47,\"{\",CHAR(160),FV$1)),FIND(CHAR(160),SUBSTITUTE($R47,\"}\",CHAR(160),FV$1))-FIND(CHAR(160),SUBSTITUTE($R47,\"{\",CHAR(160),FV$1))+1),\"\")","v":"{Motor HP}"},{"$f":"IFERROR(MID($U47,FIND(CHAR(160),SUBSTITUTE($U47,\"{\",CHAR(160),FW$1)),FIND(CHAR(160),SUBSTITUTE($U47,\"}\",CHAR(160),FW$1))-FIND(CHAR(160),SUBSTITUTE($U47,\"{\",CHAR(160),FW$1))+1),\"\")","v":"{Motor HP}"},{"$f":"IFERROR(MID($U47,FIND(CHAR(160),SUBSTITUTE($U47,\"{\",CHAR(160),FX$1)),FIND(CHAR(160),SUBSTITUTE($U47,\"}\",CHAR(160),FX$1))-FIND(CHAR(160),SUBSTITUTE($U47,\"{\",CHAR(160),FX$1))+1),\"\")","v":""},{"$f":"IFERROR(MID($U47,FIND(CHAR(160),SUBSTITUTE($U47,\"{\",CHAR(160),FY$1)),FIND(CHAR(160),SUBSTITUTE($U47,\"}\",CHAR(160),FY$1))-FIND(CHAR(160),SUBSTITUTE($U47,\"{\",CHAR(160),FY$1))+1),\"\")","v":""},{"$f":"IFERROR(MID($U47,FIND(CHAR(160),SUBSTITUTE($U47,\"{\",CHAR(160),FZ$1)),FIND(CHAR(160),SUBSTITUTE($U47,\"}\",CHAR(160),FZ$1))-FIND(CHAR(160),SUBSTITUTE($U47,\"{\",CHAR(160),FZ$1))+1),\"\")","v":""},{"$f":"IFERROR(MID($U47,FIND(CHAR(160),SUBSTITUTE($U47,\"{\",CHAR(160),GA$1)),FIND(CHAR(160),SUBSTITUTE($U47,\"}\",CHAR(160),GA$1))-FIND(CHAR(160),SUBSTITUTE($U47,\"{\",CHAR(160),GA$1))+1),\"\")","v":""},{"$f":"IFERROR(MID($U47,FIND(CHAR(160),SUBSTITUTE($U47,\"{\",CHAR(160),GB$1)),FIND(CHAR(160),SUBSTITUTE($U47,\"}\",CHAR(160),GB$1))-FIND(CHAR(160),SUBSTITUTE($U47,\"{\",CHAR(160),GB$1))+1),\"\")","v":""},{"$f":"IFERROR(MID($U47,FIND(CHAR(160),SUBSTITUTE($U47,\"{\",CHAR(160),GC$1)),FIND(CHAR(160),SUBSTITUTE($U47,\"}\",CHAR(160),GC$1))-FIND(CHAR(160),SUBSTITUTE($U47,\"{\",CHAR(160),GC$1))+1),\"\")","v":""},{"$f":"IFERROR(MID($U47,FIND(CHAR(160),SUBSTITUTE($U47,\"{\",CHAR(160),GD$1)),FIND(CHAR(160),SUBSTITUTE($U47,\"}\",CHAR(160),GD$1))-FIND(CHAR(160),SUBSTITUTE($U47,\"{\",CHAR(160),GD$1))+1),\"\")","v":""},{"$f":"IFERROR(MID($U47,FIND(CHAR(160),SUBSTITUTE($U47,\"{\",CHAR(160),GE$1)),FIND(CHAR(160),SUBSTITUTE($U47,\"}\",CHAR(160),GE$1))-FIND(CHAR(160),SUBSTITUTE($U47,\"{\",CHAR(160),GE$1))+1),\"\")","v":"{Measure:Quantity}"},{"$f":"IFERROR(MID($U47,FIND(CHAR(160),SUBSTITUTE($U47,\"{\",CHAR(160),GF$1)),FIND(CHAR(160),SUBSTITUTE($U47,\"}\",CHAR(160),GF$1))-FIND(CHAR(160),SUBSTITUTE($U47,\"{\",CHAR(160),GF$1))+1),\"\")","v":"{Factor:WinterCF}"},{"$f":"IFERROR(MID($V47,FIND(CHAR(160),SUBSTITUTE($V47,\"{\",CHAR(160),GG$1)),FIND(CHAR(160),SUBSTITUTE($V47,\"}\",CHAR(160),GG$1))-FIND(CHAR(160),SUBSTITUTE($V47,\"{\",CHAR(160),GG$1))+1),\"\")","v":"{Motor HP}"},{"$f":"IFERROR(MID($V47,FIND(CHAR(160),SUBSTITUTE($V47,\"{\",CHAR(160),GH$1)),FIND(CHAR(160),SUBSTITUTE($V47,\"}\",CHAR(160),GH$1))-FIND(CHAR(160),SUBSTITUTE($V47,\"{\",CHAR(160),GH$1))+1),\"\")","v":""},{"$f":"IFERROR(MID($V47,FIND(CHAR(160),SUBSTITUTE($V47,\"{\",CHAR(160),GI$1)),FIND(CHAR(160),SUBSTITUTE($V47,\"}\",CHAR(160),GI$1))-FIND(CHAR(160),SUBSTITUTE($V47,\"{\",CHAR(160),GI$1))+1),\"\")","v":""},{"$f":"IFERROR(MID($V47,FIND(CHAR(160),SUBSTITUTE($V47,\"{\",CHAR(160),GJ$1)),FIND(CHAR(160),SUBSTITUTE($V47,\"}\",CHAR(160),GJ$1))-FIND(CHAR(160),SUBSTITUTE($V47,\"{\",CHAR(160),GJ$1))+1),\"\")","v":""},{"$f":"IFERROR(MID($V47,FIND(CHAR(160),SUBSTITUTE($V47,\"{\",CHAR(160),GK$1)),FIND(CHAR(160),SUBSTITUTE($V47,\"}\",CHAR(160),GK$1))-FIND(CHAR(160),SUBSTITUTE($V47,\"{\",CHAR(160),GK$1))+1),\"\")","v":""},{"$f":"IFERROR(MID($V47,FIND(CHAR(160),SUBSTITUTE($V47,\"{\",CHAR(160),GL$1)),FIND(CHAR(160),SUBSTITUTE($V47,\"}\",CHAR(160),GL$1))-FIND(CHAR(160),SUBSTITUTE($V47,\"{\",CHAR(160),GL$1))+1),\"\")","v":""},{"$f":"IFERROR(MID($V47,FIND(CHAR(160),SUBSTITUTE($V47,\"{\",CHAR(160),GM$1)),FIND(CHAR(160),SUBSTITUTE($V47,\"}\",CHAR(160),GM$1))-FIND(CHAR(160),SUBSTITUTE($V47,\"{\",CHAR(160),GM$1))+1),\"\")","v":""},{"$f":"IFERROR(MID($V47,FIND(CHAR(160),SUBSTITUTE($V47,\"{\",CHAR(160),GN$1)),FIND(CHAR(160),SUBSTITUTE($V47,\"}\",CHAR(160),GN$1))-FIND(CHAR(160),SUBSTITUTE($V47,\"{\",CHAR(160),GN$1))+1),\"\")","v":""},{"$f":"IFERROR(MID($V47,FIND(CHAR(160),SUBSTITUTE($V47,\"{\",CHAR(160),GO$1)),FIND(CHAR(160),SUBSTITUTE($V47,\"}\",CHAR(160),GO$1))-FIND(CHAR(160),SUBSTITUTE($V47,\"{\",CHAR(160),GO$1))+1),\"\")","v":"{Measure:Quantity}"},{"$f":"IFERROR(MID($V47,FIND(CHAR(160),SUBSTITUTE($V47,\"{\",CHAR(160),GP$1)),FIND(CHAR(160),SUBSTITUTE($V47,\"}\",CHAR(160),GP$1))-FIND(CHAR(160),SUBSTITUTE($V47,\"{\",CHAR(160),GP$1))+1),\"\")","v":"{Factor:SummerCF}"},{"$f":"IFERROR(MID($W47,FIND(CHAR(160),SUBSTITUTE($W47,\"{\",CHAR(160),GQ$1)),FIND(CHAR(160),SUBSTITUTE($W47,\"}\",CHAR(160),GQ$1))-FIND(CHAR(160),SUBSTITUTE($W47,\"{\",CHAR(160),GQ$1))+1),\"\")","v":""},{"$f":"IFERROR(MID($W47,FIND(CHAR(160),SUBSTITUTE($W47,\"{\",CHAR(160),GR$1)),FIND(CHAR(160),SUBSTITUTE($W47,\"}\",CHAR(160),GR$1))-FIND(CHAR(160),SUBSTITUTE($W47,\"{\",CHAR(160),GR$1))+1),\"\")","v":""},{"$f":"IFERROR(MID($W47,FIND(CHAR(160),SUBSTITUTE($W47,\"{\",CHAR(160),GS$1)),FIND(CHAR(160),SUBSTITUTE($W47,\"}\",CHAR(160),GS$1))-FIND(CHAR(160),SUBSTITUTE($W47,\"{\",CHAR(160),GS$1))+1),\"\")","v":""},{"$f":"IFERROR(MID($W47,FIND(CHAR(160),SUBSTITUTE($W47,\"{\",CHAR(160),GT$1)),FIND(CHAR(160),SUBSTITUTE($W47,\"}\",CHAR(160),GT$1))-FIND(CHAR(160),SUBSTITUTE($W47,\"{\",CHAR(160),GT$1))+1),\"\")","v":""},{"$f":"IFERROR(MID($W47,FIND(CHAR(160),SUBSTITUTE($W47,\"{\",CHAR(160),GU$1)),FIND(CHAR(160),SUBSTITUTE($W47,\"}\",CHAR(160),GU$1))-FIND(CHAR(160),SUBSTITUTE($W47,\"{\",CHAR(160),GU$1))+1),\"\")","v":""},{"$f":"IFERROR(MID($W47,FIND(CHAR(160),SUBSTITUTE($W47,\"{\",CHAR(160),GV$1)),FIND(CHAR(160),SUBSTITUTE($W47,\"}\",CHAR(160),GV$1))-FIND(CHAR(160),SUBSTITUTE($W47,\"{\",CHAR(160),GV$1))+1),\"\")","v":""},{"$f":"IFERROR(MID($W47,FIND(CHAR(160),SUBSTITUTE($W47,\"{\",CHAR(160),GW$1)),FIND(CHAR(160),SUBSTITUTE($W47,\"}\",CHAR(160),GW$1))-FIND(CHAR(160),SUBSTITUTE($W47,\"{\",CHAR(160),GW$1))+1),\"\")","v":""},{"$f":"IFERROR(MID($W47,FIND(CHAR(160),SUBSTITUTE($W47,\"{\",CHAR(160),GX$1)),FIND(CHAR(160),SUBSTITUTE($W47,\"}\",CHAR(160),GX$1))-FIND(CHAR(160),SUBSTITUTE($W47,\"{\",CHAR(160),GX$1))+1),\"\")","v":""},{"$f":"IFERROR(MID($W47,FIND(CHAR(160),SUBSTITUTE($W47,\"{\",CHAR(160),GY$1)),FIND(CHAR(160),SUBSTITUTE($W47,\"}\",CHAR(160),GY$1))-FIND(CHAR(160),SUBSTITUTE($W47,\"{\",CHAR(160),GY$1))+1),\"\")","v":""},{"$f":"IFERROR(MID($W47,FIND(CHAR(160),SUBSTITUTE($W47,\"{\",CHAR(160),GZ$1)),FIND(CHAR(160),SUBSTITUTE($W47,\"}\",CHAR(160),GZ$1))-FIND(CHAR(160),SUBSTITUTE($W47,\"{\",CHAR(160),GZ$1))+1),\"\")","v":""},{"$f":"IFERROR(MID($X47,FIND(CHAR(160),SUBSTITUTE($X47,\"{\",CHAR(160),HA$1)),FIND(CHAR(160),SUBSTITUTE($X47,\"}\",CHAR(160),HA$1))-FIND(CHAR(160),SUBSTITUTE($X47,\"{\",CHAR(160),HA$1))+1),\"\")","v":""},{"$f":"IFERROR(MID($X47,FIND(CHAR(160),SUBSTITUTE($X47,\"{\",CHAR(160),HB$1)),FIND(CHAR(160),SUBSTITUTE($X47,\"}\",CHAR(160),HB$1))-FIND(CHAR(160),SUBSTITUTE($X47,\"{\",CHAR(160),HB$1))+1),\"\")","v":""},{"$f":"IFERROR(MID($X47,FIND(CHAR(160),SUBSTITUTE($X47,\"{\",CHAR(160),HC$1)),FIND(CHAR(160),SUBSTITUTE($X47,\"}\",CHAR(160),HC$1))-FIND(CHAR(160),SUBSTITUTE($X47,\"{\",CHAR(160),HC$1))+1),\"\")","v":""},{"$f":"IFERROR(MID($X47,FIND(CHAR(160),SUBSTITUTE($X47,\"{\",CHAR(160),HD$1)),FIND(CHAR(160),SUBSTITUTE($X47,\"}\",CHAR(160),HD$1))-FIND(CHAR(160),SUBSTITUTE($X47,\"{\",CHAR(160),HD$1))+1),\"\")","v":""},{"$f":"IFERROR(MID($X47,FIND(CHAR(160),SUBSTITUTE($X47,\"{\",CHAR(160),HE$1)),FIND(CHAR(160),SUBSTITUTE($X47,\"}\",CHAR(160),HE$1))-FIND(CHAR(160),SUBSTITUTE($X47,\"{\",CHAR(160),HE$1))+1),\"\")","v":""},{"$f":"IFERROR(MID($X47,FIND(CHAR(160),SUBSTITUTE($X47,\"{\",CHAR(160),HF$1)),FIND(CHAR(160),SUBSTITUTE($X47,\"}\",CHAR(160),HF$1))-FIND(CHAR(160),SUBSTITUTE($X47,\"{\",CHAR(160),HF$1))+1),\"\")","v":""},{"$f":"IFERROR(MID($X47,FIND(CHAR(160),SUBSTITUTE($X47,\"{\",CHAR(160),HG$1)),FIND(CHAR(160),SUBSTITUTE($X47,\"}\",CHAR(160),HG$1))-FIND(CHAR(160),SUBSTITUTE($X47,\"{\",CHAR(160),HG$1))+1),\"\")","v":""},{"$f":"IFERROR(MID($X47,FIND(CHAR(160),SUBSTITUTE($X47,\"{\",CHAR(160),HH$1)),FIND(CHAR(160),SUBSTITUTE($X47,\"}\",CHAR(160),HH$1))-FIND(CHAR(160),SUBSTITUTE($X47,\"{\",CHAR(160),HH$1))+1),\"\")","v":""},{"$f":"IFERROR(MID($X47,FIND(CHAR(160),SUBSTITUTE($X47,\"{\",CHAR(160),HI$1)),FIND(CHAR(160),SUBSTITUTE($X47,\"}\",CHAR(160),HI$1))-FIND(CHAR(160),SUBSTITUTE($X47,\"{\",CHAR(160),HI$1))+1),\"\")","v":""},{"$f":"IFERROR(MID($X47,FIND(CHAR(160),SUBSTITUTE($X47,\"{\",CHAR(160),HJ$1)),FIND(CHAR(160),SUBSTITUTE($X47,\"}\",CHAR(160),HJ$1))-FIND(CHAR(160),SUBSTITUTE($X47,\"{\",CHAR(160),HJ$1))+1),\"\")","v":""},{"$f":"IFERROR(MID($Y47,FIND(CHAR(160),SUBSTITUTE($Y47,\"{\",CHAR(160),HK$1)),FIND(CHAR(160),SUBSTITUTE($Y47,\"}\",CHAR(160),HK$1))-FIND(CHAR(160),SUBSTITUTE($Y47,\"{\",CHAR(160),HK$1))+1),\"\")","v":""},{"$f":"IFERROR(MID($Y47,FIND(CHAR(160),SUBSTITUTE($Y47,\"{\",CHAR(160),HL$1)),FIND(CHAR(160),SUBSTITUTE($Y47,\"}\",CHAR(160),HL$1))-FIND(CHAR(160),SUBSTITUTE($Y47,\"{\",CHAR(160),HL$1))+1),\"\")","v":""},{"$f":"IFERROR(MID($Y47,FIND(CHAR(160),SUBSTITUTE($Y47,\"{\",CHAR(160),HM$1)),FIND(CHAR(160),SUBSTITUTE($Y47,\"}\",CHAR(160),HM$1))-FIND(CHAR(160),SUBSTITUTE($Y47,\"{\",CHAR(160),HM$1))+1),\"\")","v":""},{"$f":"IFERROR(MID($Y47,FIND(CHAR(160),SUBSTITUTE($Y47,\"{\",CHAR(160),HN$1)),FIND(CHAR(160),SUBSTITUTE($Y47,\"}\",CHAR(160),HN$1))-FIND(CHAR(160),SUBSTITUTE($Y47,\"{\",CHAR(160),HN$1))+1),\"\")","v":""},{"$f":"IFERROR(MID($Y47,FIND(CHAR(160),SUBSTITUTE($Y47,\"{\",CHAR(160),HO$1)),FIND(CHAR(160),SUBSTITUTE($Y47,\"}\",CHAR(160),HO$1))-FIND(CHAR(160),SUBSTITUTE($Y47,\"{\",CHAR(160),HO$1))+1),\"\")","v":""},{"$f":"IFERROR(MID($Y47,FIND(CHAR(160),SUBSTITUTE($Y47,\"{\",CHAR(160),HP$1)),FIND(CHAR(160),SUBSTITUTE($Y47,\"}\",CHAR(160),HP$1))-FIND(CHAR(160),SUBSTITUTE($Y47,\"{\",CHAR(160),HP$1))+1),\"\")","v":""},{"$f":"IFERROR(MID($Y47,FIND(CHAR(160),SUBSTITUTE($Y47,\"{\",CHAR(160),HQ$1)),FIND(CHAR(160),SUBSTITUTE($Y47,\"}\",CHAR(160),HQ$1))-FIND(CHAR(160),SUBSTITUTE($Y47,\"{\",CHAR(160),HQ$1))+1),\"\")","v":""},{"$f":"IFERROR(MID($Y47,FIND(CHAR(160),SUBSTITUTE($Y47,\"{\",CHAR(160),HR$1)),FIND(CHAR(160),SUBSTITUTE($Y47,\"}\",CHAR(160),HR$1))-FIND(CHAR(160),SUBSTITUTE($Y47,\"{\",CHAR(160),HR$1))+1),\"\")","v":""},{"$f":"IFERROR(MID($Y47,FIND(CHAR(160),SUBSTITUTE($Y47,\"{\",CHAR(160),HS$1)),FIND(CHAR(160),SUBSTITUTE($Y47,\"}\",CHAR(160),HS$1))-FIND(CHAR(160),SUBSTITUTE($Y47,\"{\",CHAR(160),HS$1))+1),\"\")","v":""},{"$f":"IFERROR(MID($Y47,FIND(CHAR(160),SUBSTITUTE($Y47,\"{\",CHAR(160),HT$1)),FIND(CHAR(160),SUBSTITUTE($Y47,\"}\",CHAR(160),HT$1))-FIND(CHAR(160),SUBSTITUTE($Y47,\"{\",CHAR(160),HT$1))+1),\"\")","v":""},{"$f":"IFERROR(MID($Z47,FIND(CHAR(160),SUBSTITUTE($Z47,\"{\",CHAR(160),HU$1)),FIND(CHAR(160),SUBSTITUTE($Z47,\"}\",CHAR(160),HU$1))-FIND(CHAR(160),SUBSTITUTE($Z47,\"{\",CHAR(160),HU$1))+1),\"\")","v":""},{"$f":"IFERROR(MID($Z47,FIND(CHAR(160),SUBSTITUTE($Z47,\"{\",CHAR(160),HV$1)),FIND(CHAR(160),SUBSTITUTE($Z47,\"}\",CHAR(160),HV$1))-FIND(CHAR(160),SUBSTITUTE($Z47,\"{\",CHAR(160),HV$1))+1),\"\")","v":""},{"$f":"IFERROR(MID($Z47,FIND(CHAR(160),SUBSTITUTE($Z47,\"{\",CHAR(160),HW$1)),FIND(CHAR(160),SUBSTITUTE($Z47,\"}\",CHAR(160),HW$1))-FIND(CHAR(160),SUBSTITUTE($Z47,\"{\",CHAR(160),HW$1))+1),\"\")","v":""},{"$f":"IFERROR(MID($Z47,FIND(CHAR(160),SUBSTITUTE($Z47,\"{\",CHAR(160),HX$1)),FIND(CHAR(160),SUBSTITUTE($Z47,\"}\",CHAR(160),HX$1))-FIND(CHAR(160),SUBSTITUTE($Z47,\"{\",CHAR(160),HX$1))+1),\"\")","v":""},{"$f":"IFERROR(MID($Z47,FIND(CHAR(160),SUBSTITUTE($Z47,\"{\",CHAR(160),HY$1)),FIND(CHAR(160),SUBSTITUTE($Z47,\"}\",CHAR(160),HY$1))-FIND(CHAR(160),SUBSTITUTE($Z47,\"{\",CHAR(160),HY$1))+1),\"\")","v":""},{"$f":"IFERROR(MID($Z47,FIND(CHAR(160),SUBSTITUTE($Z47,\"{\",CHAR(160),HZ$1)),FIND(CHAR(160),SUBSTITUTE($Z47,\"}\",CHAR(160),HZ$1))-FIND(CHAR(160),SUBSTITUTE($Z47,\"{\",CHAR(160),HZ$1))+1),\"\")","v":""},{"$f":"IFERROR(MID($Z47,FIND(CHAR(160),SUBSTITUTE($Z47,\"{\",CHAR(160),IA$1)),FIND(CHAR(160),SUBSTITUTE($Z47,\"}\",CHAR(160),IA$1))-FIND(CHAR(160),SUBSTITUTE($Z47,\"{\",CHAR(160),IA$1))+1),\"\")","v":""},{"$f":"IFERROR(MID($Z47,FIND(CHAR(160),SUBSTITUTE($Z47,\"{\",CHAR(160),IB$1)),FIND(CHAR(160),SUBSTITUTE($Z47,\"}\",CHAR(160),IB$1))-FIND(CHAR(160),SUBSTITUTE($Z47,\"{\",CHAR(160),IB$1))+1),\"\")","v":""},{"$f":"IFERROR(MID($Z47,FIND(CHAR(160),SUBSTITUTE($Z47,\"{\",CHAR(160),IC$1)),FIND(CHAR(160),SUBSTITUTE($Z47,\"}\",CHAR(160),IC$1))-FIND(CHAR(160),SUBSTITUTE($Z47,\"{\",CHAR(160),IC$1))+1),\"\")","v":""},{"$f":"IFERROR(MID($Z47,FIND(CHAR(160),SUBSTITUTE($Z47,\"{\",CHAR(160),ID$1)),FIND(CHAR(160),SUBSTITUTE($Z47,\"}\",CHAR(160),ID$1))-FIND(CHAR(160),SUBSTITUTE($Z47,\"{\",CHAR(160),ID$1))+1),\"\")","v":""},{"$f":"IFERROR(MID($AA47,FIND(CHAR(160),SUBSTITUTE($AA47,\"{\",CHAR(160),IE$1)),FIND(CHAR(160),SUBSTITUTE($AA47,\"}\",CHAR(160),IE$1))-FIND(CHAR(160),SUBSTITUTE($AA47,\"{\",CHAR(160),IE$1))+1),\"\")","v":""},{"$f":"IFERROR(MID($AA47,FIND(CHAR(160),SUBSTITUTE($AA47,\"{\",CHAR(160),IF$1)),FIND(CHAR(160),SUBSTITUTE($AA47,\"}\",CHAR(160),IF$1))-FIND(CHAR(160),SUBSTITUTE($AA47,\"{\",CHAR(160),IF$1))+1),\"\")","v":""},{"$f":"IFERROR(MID($AA47,FIND(CHAR(160),SUBSTITUTE($AA47,\"{\",CHAR(160),IG$1)),FIND(CHAR(160),SUBSTITUTE($AA47,\"}\",CHAR(160),IG$1))-FIND(CHAR(160),SUBSTITUTE($AA47,\"{\",CHAR(160),IG$1))+1),\"\")","v":""},{"$f":"IFERROR(MID($AA47,FIND(CHAR(160),SUBSTITUTE($AA47,\"{\",CHAR(160),IH$1)),FIND(CHAR(160),SUBSTITUTE($AA47,\"}\",CHAR(160),IH$1))-FIND(CHAR(160),SUBSTITUTE($AA47,\"{\",CHAR(160),IH$1))+1),\"\")","v":""},{"$f":"IFERROR(MID($AA47,FIND(CHAR(160),SUBSTITUTE($AA47,\"{\",CHAR(160),II$1)),FIND(CHAR(160),SUBSTITUTE($AA47,\"}\",CHAR(160),II$1))-FIND(CHAR(160),SUBSTITUTE($AA47,\"{\",CHAR(160),II$1))+1),\"\")","v":""},{"$f":"IFERROR(MID($AA47,FIND(CHAR(160),SUBSTITUTE($AA47,\"{\",CHAR(160),IJ$1)),FIND(CHAR(160),SUBSTITUTE($AA47,\"}\",CHAR(160),IJ$1))-FIND(CHAR(160),SUBSTITUTE($AA47,\"{\",CHAR(160),IJ$1))+1),\"\")","v":""},{"$f":"IFERROR(MID($AA47,FIND(CHAR(160),SUBSTITUTE($AA47,\"{\",CHAR(160),IK$1)),FIND(CHAR(160),SUBSTITUTE($AA47,\"}\",CHAR(160),IK$1))-FIND(CHAR(160),SUBSTITUTE($AA47,\"{\",CHAR(160),IK$1))+1),\"\")","v":""},{"$f":"IFERROR(MID($AA47,FIND(CHAR(160),SUBSTITUTE($AA47,\"{\",CHAR(160),IL$1)),FIND(CHAR(160),SUBSTITUTE($AA47,\"}\",CHAR(160),IL$1))-FIND(CHAR(160),SUBSTITUTE($AA47,\"{\",CHAR(160),IL$1))+1),\"\")","v":""},{"$f":"IFERROR(MID($AA47,FIND(CHAR(160),SUBSTITUTE($AA47,\"{\",CHAR(160),IM$1)),FIND(CHAR(160),SUBSTITUTE($AA47,\"}\",CHAR(160),IM$1))-FIND(CHAR(160),SUBSTITUTE($AA47,\"{\",CHAR(160),IM$1))+1),\"\")","v":""},{"$f":"IFERROR(MID($AA47,FIND(CHAR(160),SUBSTITUTE($AA47,\"{\",CHAR(160),IN$1)),FIND(CHAR(160),SUBSTITUTE($AA47,\"}\",CHAR(160),IN$1))-FIND(CHAR(160),SUBSTITUTE($AA47,\"{\",CHAR(160),IN$1))+1),\"\")","v":""},{"$f":"IFERROR(MID($AB47,FIND(CHAR(160),SUBSTITUTE($AB47,\"{\",CHAR(160),IO$1)),FIND(CHAR(160),SUBSTITUTE($AB47,\"}\",CHAR(160),IO$1))-FIND(CHAR(160),SUBSTITUTE($AB47,\"{\",CHAR(160),IO$1))+1),\"\")","v":""},{"$f":"IFERROR(MID($AB47,FIND(CHAR(160),SUBSTITUTE($AB47,\"{\",CHAR(160),IP$1)),FIND(CHAR(160),SUBSTITUTE($AB47,\"}\",CHAR(160),IP$1))-FIND(CHAR(160),SUBSTITUTE($AB47,\"{\",CHAR(160),IP$1))+1),\"\")","v":""},{"$f":"IFERROR(MID($AB47,FIND(CHAR(160),SUBSTITUTE($AB47,\"{\",CHAR(160),IQ$1)),FIND(CHAR(160),SUBSTITUTE($AB47,\"}\",CHAR(160),IQ$1))-FIND(CHAR(160),SUBSTITUTE($AB47,\"{\",CHAR(160),IQ$1))+1),\"\")","v":""},{"$f":"IFERROR(MID($AB47,FIND(CHAR(160),SUBSTITUTE($AB47,\"{\",CHAR(160),IR$1)),FIND(CHAR(160),SUBSTITUTE($AB47,\"}\",CHAR(160),IR$1))-FIND(CHAR(160),SUBSTITUTE($AB47,\"{\",CHAR(160),IR$1))+1),\"\")","v":""},{"$f":"IFERROR(MID($AB47,FIND(CHAR(160),SUBSTITUTE($AB47,\"{\",CHAR(160),IS$1)),FIND(CHAR(160),SUBSTITUTE($AB47,\"}\",CHAR(160),IS$1))-FIND(CHAR(160),SUBSTITUTE($AB47,\"{\",CHAR(160),IS$1))+1),\"\")","v":""},{"$f":"IFERROR(MID($AB47,FIND(CHAR(160),SUBSTITUTE($AB47,\"{\",CHAR(160),IT$1)),FIND(CHAR(160),SUBSTITUTE($AB47,\"}\",CHAR(160),IT$1))-FIND(CHAR(160),SUBSTITUTE($AB47,\"{\",CHAR(160),IT$1))+1),\"\")","v":""},{"$f":"IFERROR(MID($AB47,FIND(CHAR(160),SUBSTITUTE($AB47,\"{\",CHAR(160),IU$1)),FIND(CHAR(160),SUBSTITUTE($AB47,\"}\",CHAR(160),IU$1))-FIND(CHAR(160),SUBSTITUTE($AB47,\"{\",CHAR(160),IU$1))+1),\"\")","v":""},{"$f":"IFERROR(MID($AB47,FIND(CHAR(160),SUBSTITUTE($AB47,\"{\",CHAR(160),IV$1)),FIND(CHAR(160),SUBSTITUTE($AB47,\"}\",CHAR(160),IV$1))-FIND(CHAR(160),SUBSTITUTE($AB47,\"{\",CHAR(160),IV$1))+1),\"\")","v":""},{"$f":"IFERROR(MID($AB47,FIND(CHAR(160),SUBSTITUTE($AB47,\"{\",CHAR(160),IW$1)),FIND(CHAR(160),SUBSTITUTE($AB47,\"}\",CHAR(160),IW$1))-FIND(CHAR(160),SUBSTITUTE($AB47,\"{\",CHAR(160),IW$1))+1),\"\")","v":""},{"$f":"IFERROR(MID($AB47,FIND(CHAR(160),SUBSTITUTE($AB47,\"{\",CHAR(160),IX$1)),FIND(CHAR(160),SUBSTITUTE($AB47,\"}\",CHAR(160),IX$1))-FIND(CHAR(160),SUBSTITUTE($AB47,\"{\",CHAR(160),IX$1))+1),\"\")","v":""},null,{"$f":"10-COUNTIF(DU47:ED47,\"\")","v":2}]
["C&I HVAC - Electric","Demand Control Ventilation - New Equipment Install","DCV - DCVN","2021-07-01","2021-09-09","Per Measure",850,0,"Per Measure",500,0,"2021-07-01","2022-06-30","Calculated","{Measure:Quantity} * {Area Sq. Ft} * {Space Type} * 0.000433 * 12/ {EER} * 719",1E-4,null,"{Measure:Quantity} * {Area Sq. Ft} * {Space Type} * 0.000433 * 12/ {EER}",null,null,"{Measure:Quantity} * {Area Sq. Ft} * {Space Type} * 0.000433 * 12/ {EER} * {Factor:WinterCF}","{Measure:Quantity} * {Area Sq. Ft} * {Space Type} * 0.000433 * 12/ {EER} * {Factor:SummerCF}",null,null,null,null,null,null,"2021-05-25","2022-06-30",10,1.4999999999999999E-2,0.77700000000000002,0.17,0.03,0.62,0.18,1,1.1220000000000001,1,0.52,1.6E-2,null,{"$f":"DU48","v":"{Space Type}"},1,{"$f":"DV48","v":"{EER}"},8400,{"$f":"DW48","v":"{Measure:Quantity}"},0.37,{"$f":"DX48","v":"{Area Sq. Ft}"},10,{"$f":"DY48","v":""},null,{"$f":"DZ48","v":""},null,{"$f":"EA48","v":""},null,{"$f":"EB48","v":""},null,{"$f":"EC48","v":""},null,{"$f":"ED48","v":""},null,{"$f":"AS48 * AU48 * AW48 * 0.000433 * 12/ AY48 * 719","v":1161.1251792},{"$f":"0.0001","v":1E-4},0,{"$f":"AS48 * AU48 * AW48 * 0.000433 * 12/ AY48","v":1.6149168},0,0,{"$f":"AS48 * AU48 * AW48 * 0.000433 * 12/ AY48 * AF48","v":2.4223752000000001E-2},{"$f":"AS48 * AU48 * AW48 * 0.000433 * 12/ AY48 * AG48","v":1.2547903536},0,0,0,0,0,0,null,"Res","Default DR",{"$f":"Benefits(BL48,BR48,BS48,BT48,BU48,BV48,BW48,BX48,BY48,BZ48,AE48,AH48,AI48,AJ48,AK48,AL48,AM48,AN48,AO48,AP48,CA48,CB48)","v":1178.8795562812611},1738.2170490382946,0,0,0,0,0,0,0,{"$f":"SUMPRODUCT(CC48:CK48,--(CC48:CK48>0))","v":2917.0966053195557},{"$f":"-SUMPRODUCT(CC48:CK48,--(CC48:CK48<0))","v":0},null,{"$f":"850","v":850},null,null,{"$f":"CM48+CO48","v":850},{"$f":"IF(NetOrGross=\"Net\",(1-AO48+AP48),1)","v":1},{"$f":"(SUMPRODUCT(CC48:CJ48,--(CC48:CJ48>0))+CN48)*CS48/((-SUMPRODUCT(CC48:CJ48,--(CC48:CJ48<0))+MAX(CO48,CV48)+CP48+CQ48)*CS48+IF(FRIncentives=\"Yes\",CV48*(1-CS48),0))","v":3.4318783591994775},1,{"$f":"500","v":500},null,"Electric","y",null,{"$f":"IF(F48=\"Manual Entry\",\"Manual\",IF(G48=\"\",0,\"X=\"&SUBSTITUTE(SUBSTITUTE(SUBSTITUTE(SUBSTITUTE(SUBSTITUTE(SUBSTITUTE(SUBSTITUTE(SUBSTITUTE(SUBSTITUTE(SUBSTITUTE(SUBSTITUTE(SUBSTITUTE(G48,$ED48,$ED$2&ROW($ED48)),$EC48,$EC$2&ROW($EC48)),$EB48,$EB$2&ROW($EB48)),$EA48,$EA$2&ROW($EA48)),$DZ48,$DZ$2&ROW($DZ48)),$DY48,$DY$2&ROW($DY48)),$DX48,$DX$2&ROW($DX48)),$DW48,$DW$2&ROW($DW48)),$DV48,$DV$2&ROW($DV48)),$DU48,$DU$2&ROW($DU48)),$DT48,$DT$2&ROW($DT48)),$DS48,$DS$2&ROW($DS48))))","v":"X=850"},{"$f":"IF(I48=\"Manual Entry\",\"Manual\",IF(J48=\"\",0,\"X=\"&SUBSTITUTE(SUBSTITUTE(SUBSTITUTE(SUBSTITUTE(SUBSTITUTE(SUBSTITUTE(SUBSTITUTE(SUBSTITUTE(SUBSTITUTE(SUBSTITUTE(SUBSTITUTE(SUBSTITUTE(J48,$ED48,$ED$2&ROW($ED48)),$EC48,$EC$2&ROW($EC48)),$EB48,$EB$2&ROW($EB48)),$EA48,$EA$2&ROW($EA48)),$DZ48,$DZ$2&ROW($DZ48)),$DY48,$DY$2&ROW($DY48)),$DX48,$DX$2&ROW($DX48)),$DW48,$DW$2&ROW($DW48)),$DV48,$DV$2&ROW($DV48)),$DU48,$DU$2&ROW($DU48)),$DT48,$DT$2&ROW($DT48)),$DS48,$DS$2&ROW($DS48))))","v":"X=500"},{"$f":"IF(O48=\"\",0,\"X=\"&SUBSTITUTE(SUBSTITUTE(SUBSTITUTE(SUBSTITUTE(SUBSTITUTE(SUBSTITUTE(SUBSTITUTE(SUBSTITUTE(SUBSTITUTE(SUBSTITUTE(SUBSTITUTE(SUBSTITUTE(O48,$ED48,$ED$2&ROW($ED48)),$EC48,$EC$2&ROW($EC48)),$EB48,$EB$2&ROW($EB48)),$EA48,$EA$2&ROW($EA48)),$DZ48,$DZ$2&ROW($DZ48)),$DY48,$DY$2&ROW($DY48)),$DX48,$DX$2&ROW($DX48)),$DW48,$DW$2&ROW($DW48)),$DV48,$DV$2&ROW($DV48)),$DU48,$DU$2&ROW($DU48)),$DT48,$DT$2&ROW($DT48)),$DS48,$DS$2&ROW($DS48)))","v":"X=AW48 * AY48 * AS48 * 0.000433 * 12/ AU48 * 719"},{"$f":"IF(P48=\"\",0,\"X=\"&SUBSTITUTE(SUBSTITUTE(SUBSTITUTE(SUBSTITUTE(SUBSTITUTE(SUBSTITUTE(SUBSTITUTE(SUBSTITUTE(SUBSTITUTE(SUBSTITUTE(SUBSTITUTE(SUBSTITUTE(P48,$ED48,$ED$2&ROW($ED48)),$EC48,$EC$2&ROW($EC48)),$EB48,$EB$2&ROW($EB48)),$EA48,$EA$2&ROW($EA48)),$DZ48,$DZ$2&ROW($DZ48)),$DY48,$DY$2&ROW($DY48)),$DX48,$DX$2&ROW($DX48)),$DW48,$DW$2&ROW($DW48)),$DV48,$DV$2&ROW($DV48)),$DU48,$DU$2&ROW($DU48)),$DT48,$DT$2&ROW($DT48)),$DS48,$DS$2&ROW($DS48)))","v":"X=0.0001"},{"$f":"IF(Q48=\"\",0,\"X=\"&SUBSTITUTE(SUBSTITUTE(SUBSTITUTE(SUBSTITUTE(SUBSTITUTE(SUBSTITUTE(SUBSTITUTE(SUBSTITUTE(SUBSTITUTE(SUBSTITUTE(SUBSTITUTE(SUBSTITUTE(Q48,$ED48,$ED$2&ROW($ED48)),$EC48,$EC$2&ROW($EC48)),$EB48,$EB$2&ROW($EB48)),$EA48,$EA$2&ROW($EA48)),$DZ48,$DZ$2&ROW($DZ48)),$DY48,$DY$2&ROW($DY48)),$DX48,$DX$2&ROW($DX48)),$DW48,$DW$2&ROW($DW48)),$DV48,$DV$2&ROW($DV48)),$DU48,$DU$2&ROW($DU48)),$DT48,$DT$2&ROW($DT48)),$DS48,$DS$2&ROW($DS48)))","v":0},{"$f":"IF(R48=\"\",0,\"X=\"&SUBSTITUTE(SUBSTITUTE(SUBSTITUTE(SUBSTITUTE(SUBSTITUTE(SUBSTITUTE(SUBSTITUTE(SUBSTITUTE(SUBSTITUTE(SUBSTITUTE(SUBSTITUTE(SUBSTITUTE(R48,$ED48,$ED$2&ROW($ED48)),$EC48,$EC$2&ROW($EC48)),$EB48,$EB$2&ROW($EB48)),$EA48,$EA$2&ROW($EA48)),$DZ48,$DZ$2&ROW($DZ48)),$DY48,$DY$2&ROW($DY48)),$DX48,$DX$2&ROW($DX48)),$DW48,$DW$2&ROW($DW48)),$DV48,$DV$2&ROW($DV48)),$DU48,$DU$2&ROW($DU48)),$DT48,$DT$2&ROW($DT48)),$DS48,$DS$2&ROW($DS48)))","v":"X=AW48 * AY48 * AS48 * 0.000433 * 12/ AU48"},{"$f":"IF(S48=\"\",0,\"X=\"&SUBSTITUTE(SUBSTITUTE(SUBSTITUTE(SUBSTITUTE(SUBSTITUTE(SUBSTITUTE(SUBSTITUTE(SUBSTITUTE(SUBSTITUTE(SUBSTITUTE(SUBSTITUTE(SUBSTITUTE(S48,$ED48,$ED$2&ROW($ED48)),$EC48,$EC$2&ROW($EC48)),$EB48,$EB$2&ROW($EB48)),$EA48,$EA$2&ROW($EA48)),$DZ48,$DZ$2&ROW($DZ48)),$DY48,$DY$2&ROW($DY48)),$DX48,$DX$2&ROW($DX48)),$DW48,$DW$2&ROW($DW48)),$DV48,$DV$2&ROW($DV48)),$DU48,$DU$2&ROW($DU48)),$DT48,$DT$2&ROW($DT48)),$DS48,$DS$2&ROW($DS48)))","v":0},{"$f":"IF(T48=\"\",0,\"X=\"&SUBSTITUTE(SUBSTITUTE(SUBSTITUTE(SUBSTITUTE(SUBSTITUTE(SUBSTITUTE(SUBSTITUTE(SUBSTITUTE(SUBSTITUTE(SUBSTITUTE(SUBSTITUTE(SUBSTITUTE(T48,$ED48,$ED$2&ROW($ED48)),$EC48,$EC$2&ROW($EC48)),$EB48,$EB$2&ROW($EB48)),$EA48,$EA$2&ROW($EA48)),$DZ48,$DZ$2&ROW($DZ48)),$DY48,$DY$2&ROW($DY48)),$DX48,$DX$2&ROW($DX48)),$DW48,$DW$2&ROW($DW48)),$DV48,$DV$2&ROW($DV48)),$DU48,$DU$2&ROW($DU48)),$DT48,$DT$2&ROW($DT48)),$DS48,$DS$2&ROW($DS48)))","v":0},{"$f":"IF(U48=\"\",0,\"X=\"&SUBSTITUTE(SUBSTITUTE(SUBSTITUTE(SUBSTITUTE(SUBSTITUTE(SUBSTITUTE(SUBSTITUTE(SUBSTITUTE(SUBSTITUTE(SUBSTITUTE(SUBSTITUTE(SUBSTITUTE(U48,$ED48,$ED$2&ROW($ED48)),$EC48,$EC$2&ROW($EC48)),$EB48,$EB$2&ROW($EB48)),$EA48,$EA$2&ROW($EA48)),$DZ48,$DZ$2&ROW($DZ48)),$DY48,$DY$2&ROW($DY48)),$DX48,$DX$2&ROW($DX48)),$DW48,$DW$2&ROW($DW48)),$DV48,$DV$2&ROW($DV48)),$DU48,$DU$2&ROW($DU48)),$DT48,$DT$2&ROW($DT48)),$DS48,$DS$2&ROW($DS48)))","v":"X=AW48 * AY48 * AS48 * 0.000433 * 12/ AU48 * AF48"},{"$f":"IF(V48=\"\",0,\"X=\"&SUBSTITUTE(SUBSTITUTE(SUBSTITUTE(SUBSTITUTE(SUBSTITUTE(SUBSTITUTE(SUBSTITUTE(SUBSTITUTE(SUBSTITUTE(SUBSTITUTE(SUBSTITUTE(SUBSTITUTE(V48,$ED48,$ED$2&ROW($ED48)),$EC48,$EC$2&ROW($EC48)),$EB48,$EB$2&ROW($EB48)),$EA48,$EA$2&ROW($EA48)),$DZ48,$DZ$2&ROW($DZ48)),$DY48,$DY$2&ROW($DY48)),$DX48,$DX$2&ROW($DX48)),$DW48,$DW$2&ROW($DW48)),$DV48,$DV$2&ROW($DV48)),$DU48,$DU$2&ROW($DU48)),$DT48,$DT$2&ROW($DT48)),$DS48,$DS$2&ROW($DS48)))","v":"X=AW48 * AY48 * AS48 * 0.000433 * 12/ AU48 * AG48"},{"$f":"IF(W48=\"\",0,\"X=\"&SUBSTITUTE(SUBSTITUTE(SUBSTITUTE(SUBSTITUTE(SUBSTITUTE(SUBSTITUTE(SUBSTITUTE(SUBSTITUTE(SUBSTITUTE(SUBSTITUTE(SUBSTITUTE(SUBSTITUTE(W48,$ED48,$ED$2&ROW($ED48)),$EC48,$EC$2&ROW($EC48)),$EB48,$EB$2&ROW($EB48)),$EA48,$EA$2&ROW($EA48)),$DZ48,$DZ$2&ROW($DZ48)),$DY48,$DY$2&ROW($DY48)),$DX48,$DX$2&ROW($DX48)),$DW48,$DW$2&ROW($DW48)),$DV48,$DV$2&ROW($DV48)),$DU48,$DU$2&ROW($DU48)),$DT48,$DT$2&ROW($DT48)),$DS48,$DS$2&ROW($DS48)))","v":0},{"$f":"IF(X48=\"\",0,\"X=\"&SUBSTITUTE(SUBSTITUTE(SUBSTITUTE(SUBSTITUTE(SUBSTITUTE(SUBSTITUTE(SUBSTITUTE(SUBSTITUTE(SUBSTITUTE(SUBSTITUTE(SUBSTITUTE(SUBSTITUTE(X48,$ED48,$ED$2&ROW($ED48)),$EC48,$EC$2&ROW($EC48)),$EB48,$EB$2&ROW($EB48)),$EA48,$EA$2&ROW($EA48)),$DZ48,$DZ$2&ROW($DZ48)),$DY48,$DY$2&ROW($DY48)),$DX48,$DX$2&ROW($DX48)),$DW48,$DW$2&ROW($DW48)),$DV48,$DV$2&ROW($DV48)),$DU48,$DU$2&ROW($DU48)),$DT48,$DT$2&ROW($DT48)),$DS48,$DS$2&ROW($DS48)))","v":0},{"$f":"IF(Y48=\"\",0,\"X=\"&SUBSTITUTE(SUBSTITUTE(SUBSTITUTE(SUBSTITUTE(SUBSTITUTE(SUBSTITUTE(SUBSTITUTE(SUBSTITUTE(SUBSTITUTE(SUBSTITUTE(SUBSTITUTE(SUBSTITUTE(Y48,$ED48,$ED$2&ROW($ED48)),$EC48,$EC$2&ROW($EC48)),$EB48,$EB$2&ROW($EB48)),$EA48,$EA$2&ROW($EA48)),$DZ48,$DZ$2&ROW($DZ48)),$DY48,$DY$2&ROW($DY48)),$DX48,$DX$2&ROW($DX48)),$DW48,$DW$2&ROW($DW48)),$DV48,$DV$2&ROW($DV48)),$DU48,$DU$2&ROW($DU48)),$DT48,$DT$2&ROW($DT48)),$DS48,$DS$2&ROW($DS48)))","v":0},{"$f":"IF(Z48=\"\",0,\"X=\"&SUBSTITUTE(SUBSTITUTE(SUBSTITUTE(SUBSTITUTE(SUBSTITUTE(SUBSTITUTE(SUBSTITUTE(SUBSTITUTE(SUBSTITUTE(SUBSTITUTE(SUBSTITUTE(SUBSTITUTE(Z48,$ED48,$ED$2&ROW($ED48)),$EC48,$EC$2&ROW($EC48)),$EB48,$EB$2&ROW($EB48)),$EA48,$EA$2&ROW($EA48)),$DZ48,$DZ$2&ROW($DZ48)),$DY48,$DY$2&ROW($DY48)),$DX48,$DX$2&ROW($DX48)),$DW48,$DW$2&ROW($DW48)),$DV48,$DV$2&ROW($DV48)),$DU48,$DU$2&ROW($DU48)),$DT48,$DT$2&ROW($DT48)),$DS48,$DS$2&ROW($DS48)))","v":0},{"$f":"IF(AA48=\"\",0,\"X=\"&SUBSTITUTE(SUBSTITUTE(SUBSTITUTE(SUBSTITUTE(SUBSTITUTE(SUBSTITUTE(SUBSTITUTE(SUBSTITUTE(SUBSTITUTE(SUBSTITUTE(SUBSTITUTE(SUBSTITUTE(AA48,$ED48,$ED$2&ROW($ED48)),$EC48,$EC$2&ROW($EC48)),$EB48,$EB$2&ROW($EB48)),$EA48,$EA$2&ROW($EA48)),$DZ48,$DZ$2&ROW($DZ48)),$DY48,$DY$2&ROW($DY48)),$DX48,$DX$2&ROW($DX48)),$DW48,$DW$2&ROW($DW48)),$DV48,$DV$2&ROW($DV48)),$DU48,$DU$2&ROW($DU48)),$DT48,$DT$2&ROW($DT48)),$DS48,$DS$2&ROW($DS48)))","v":0},{"$f":"IF(AB48=\"\",0,\"X=\"&SUBSTITUTE(SUBSTITUTE(SUBSTITUTE(SUBSTITUTE(SUBSTITUTE(SUBSTITUTE(SUBSTITUTE(SUBSTITUTE(SUBSTITUTE(SUBSTITUTE(SUBSTITUTE(SUBSTITUTE(AB48,$ED48,$ED$2&ROW($ED48)),$EC48,$EC$2&ROW($EC48)),$EB48,$EB$2&ROW($EB48)),$EA48,$EA$2&ROW($EA48)),$DZ48,$DZ$2&ROW($DZ48)),$DY48,$DY$2&ROW($DY48)),$DX48,$DX$2&ROW($DX48)),$DW48,$DW$2&ROW($DW48)),$DV48,$DV$2&ROW($DV48)),$DU48,$DU$2&ROW($DU48)),$DT48,$DT$2&ROW($DT48)),$DS48,$DS$2&ROW($DS48)))","v":0},null,null,"{Factor:WinterCF}","{Factor:SummerCF}",{"$f":"IFERROR(INDEX($EG48:$IV48,MATCH(0,COUNTIF($DR48:DT48,$EG48:$IV48),0)),\"\")","v":"{Space Type}"},{"$f":"IFERROR(INDEX($EG48:$IV48,MATCH(0,COUNTIF($DR48:DU48,$EG48:$IV48),0)),\"\")","v":"{EER}"},{"$f":"IFERROR(INDEX($EG48:$IV48,MATCH(0,COUNTIF($DR48:DV48,$EG48:$IV48),0)),\"\")","v":"{Measure:Quantity}"},{"$f":"IFERROR(INDEX($EG48:$IV48,MATCH(0,COUNTIF($DR48:DW48,$EG48:$IV48),0)),\"\")","v":"{Area Sq. Ft}"},{"$f":"IFERROR(INDEX($EG48:$IV48,MATCH(0,COUNTIF($DR48:DX48,$EG48:$IV48),0)),\"\")","v":""},{"$f":"IFERROR(INDEX($EG48:$IV48,MATCH(0,COUNTIF($DR48:DY48,$EG48:$IV48),0)),\"\")","v":""},{"$f":"IFERROR(INDEX($EG48:$IV48,MATCH(0,COUNTIF($DR48:DZ48,$EG48:$IV48),0)),\"\")","v":""},{"$f":"IFERROR(INDEX($EG48:$IV48,MATCH(0,COUNTIF($DR48:EA48,$EG48:$IV48),0)),\"\")","v":""},{"$f":"IFERROR(INDEX($EG48:$IV48,MATCH(0,COUNTIF($DR48:EB48,$EG48:$IV48),0)),\"\")","v":""},{"$f":"IFERROR(INDEX($EG48:$IV48,MATCH(0,COUNTIF($DR48:EC48,$EG48:$IV48),0)),\"\")","v":""},null,null,{"$f":"IFERROR(MID($G48,FIND(CHAR(160),SUBSTITUTE($G48,\"{\",CHAR(160),EG$1)),FIND(CHAR(160),SUBSTITUTE($G48,\"}\",CHAR(160),EG$1))-FIND(CHAR(160),SUBSTITUTE($G48,\"{\",CHAR(160),EG$1))+1),\"\")","v":""},{"$f":"IFERROR(MID($G48,FIND(CHAR(160),SUBSTITUTE($G48,\"{\",CHAR(160),EH$1)),FIND(CHAR(160),SUBSTITUTE($G48,\"}\",CHAR(160),EH$1))-FIND(CHAR(160),SUBSTITUTE($G48,\"{\",CHAR(160),EH$1))+1),\"\")","v":""},{"$f":"IFERROR(MID($G48,FIND(CHAR(160),SUBSTITUTE($G48,\"{\",CHAR(160),EI$1)),FIND(CHAR(160),SUBSTITUTE($G48,\"}\",CHAR(160),EI$1))-FIND(CHAR(160),SUBSTITUTE($G48,\"{\",CHAR(160),EI$1))+1),\"\")","v":""},{"$f":"IFERROR(MID($G48,FIND(CHAR(160),SUBSTITUTE($G48,\"{\",CHAR(160),EJ$1)),FIND(CHAR(160),SUBSTITUTE($G48,\"}\",CHAR(160),EJ$1))-FIND(CHAR(160),SUBSTITUTE($G48,\"{\",CHAR(160),EJ$1))+1),\"\")","v":""},{"$f":"IFERROR(MID($G48,FIND(CHAR(160),SUBSTITUTE($G48,\"{\",CHAR(160),EK$1)),FIND(CHAR(160),SUBSTITUTE($G48,\"}\",CHAR(160),EK$1))-FIND(CHAR(160),SUBSTITUTE($G48,\"{\",CHAR(160),EK$1))+1),\"\")","v":""},{"$f":"IFERROR(MID($G48,FIND(CHAR(160),SUBSTITUTE($G48,\"{\",CHAR(160),EL$1)),FIND(CHAR(160),SUBSTITUTE($G48,\"}\",CHAR(160),EL$1))-FIND(CHAR(160),SUBSTITUTE($G48,\"{\",CHAR(160),EL$1))+1),\"\")","v":""},{"$f":"IFERROR(MID($G48,FIND(CHAR(160),SUBSTITUTE($G48,\"{\",CHAR(160),EM$1)),FIND(CHAR(160),SUBSTITUTE($G48,\"}\",CHAR(160),EM$1))-FIND(CHAR(160),SUBSTITUTE($G48,\"{\",CHAR(160),EM$1))+1),\"\")","v":""},{"$f":"IFERROR(MID($G48,FIND(CHAR(160),SUBSTITUTE($G48,\"{\",CHAR(160),EN$1)),FIND(CHAR(160),SUBSTITUTE($G48,\"}\",CHAR(160),EN$1))-FIND(CHAR(160),SUBSTITUTE($G48,\"{\",CHAR(160),EN$1))+1),\"\")","v":""},{"$f":"IFERROR(MID($G48,FIND(CHAR(160),SUBSTITUTE($G48,\"{\",CHAR(160),EO$1)),FIND(CHAR(160),SUBSTITUTE($G48,\"}\",CHAR(160),EO$1))-FIND(CHAR(160),SUBSTITUTE($G48,\"{\",CHAR(160),EO$1))+1),\"\")","v":""},{"$f":"IFERROR(MID($G48,FIND(CHAR(160),SUBSTITUTE($G48,\"{\",CHAR(160),EP$1)),FIND(CHAR(160),SUBSTITUTE($G48,\"}\",CHAR(160),EP$1))-FIND(CHAR(160),SUBSTITUTE($G48,\"{\",CHAR(160),EP$1))+1),\"\")","v":""},{"$f":"IFERROR(MID($J48,FIND(CHAR(160),SUBSTITUTE($J48,\"{\",CHAR(160),EQ$1)),FIND(CHAR(160),SUBSTITUTE($J48,\"}\",CHAR(160),EQ$1))-FIND(CHAR(160),SUBSTITUTE($J48,\"{\",CHAR(160),EQ$1))+1),\"\")","v":""},{"$f":"IFERROR(MID($J48,FIND(CHAR(160),SUBSTITUTE($J48,\"{\",CHAR(160),ER$1)),FIND(CHAR(160),SUBSTITUTE($J48,\"}\",CHAR(160),ER$1))-FIND(CHAR(160),SUBSTITUTE($J48,\"{\",CHAR(160),ER$1))+1),\"\")","v":""},{"$f":"IFERROR(MID($J48,FIND(CHAR(160),SUBSTITUTE($J48,\"{\",CHAR(160),ES$1)),FIND(CHAR(160),SUBSTITUTE($J48,\"}\",CHAR(160),ES$1))-FIND(CHAR(160),SUBSTITUTE($J48,\"{\",CHAR(160),ES$1))+1),\"\")","v":""},{"$f":"IFERROR(MID($J48,FIND(CHAR(160),SUBSTITUTE($J48,\"{\",CHAR(160),ET$1)),FIND(CHAR(160),SUBSTITUTE($J48,\"}\",CHAR(160),ET$1))-FIND(CHAR(160),SUBSTITUTE($J48,\"{\",CHAR(160),ET$1))+1),\"\")","v":""},{"$f":"IFERROR(MID($J48,FIND(CHAR(160),SUBSTITUTE($J48,\"{\",CHAR(160),EU$1)),FIND(CHAR(160),SUBSTITUTE($J48,\"}\",CHAR(160),EU$1))-FIND(CHAR(160),SUBSTITUTE($J48,\"{\",CHAR(160),EU$1))+1),\"\")","v":""},{"$f":"IFERROR(MID($J48,FIND(CHAR(160),SUBSTITUTE($J48,\"{\",CHAR(160),EV$1)),FIND(CHAR(160),SUBSTITUTE($J48,\"}\",CHAR(160),EV$1))-FIND(CHAR(160),SUBSTITUTE($J48,\"{\",CHAR(160),EV$1))+1),\"\")","v":""},{"$f":"IFERROR(MID($J48,FIND(CHAR(160),SUBSTITUTE($J48,\"{\",CHAR(160),EW$1)),FIND(CHAR(160),SUBSTITUTE($J48,\"}\",CHAR(160),EW$1))-FIND(CHAR(160),SUBSTITUTE($J48,\"{\",CHAR(160),EW$1))+1),\"\")","v":""},{"$f":"IFERROR(MID($J48,FIND(CHAR(160),SUBSTITUTE($J48,\"{\",CHAR(160),EX$1)),FIND(CHAR(160),SUBSTITUTE($J48,\"}\",CHAR(160),EX$1))-FIND(CHAR(160),SUBSTITUTE($J48,\"{\",CHAR(160),EX$1))+1),\"\")","v":""},{"$f":"IFERROR(MID($J48,FIND(CHAR(160),SUBSTITUTE($J48,\"{\",CHAR(160),EY$1)),FIND(CHAR(160),SUBSTITUTE($J48,\"}\",CHAR(160),EY$1))-FIND(CHAR(160),SUBSTITUTE($J48,\"{\",CHAR(160),EY$1))+1),\"\")","v":""},{"$f":"IFERROR(MID($J48,FIND(CHAR(160),SUBSTITUTE($J48,\"{\",CHAR(160),EZ$1)),FIND(CHAR(160),SUBSTITUTE($J48,\"}\",CHAR(160),EZ$1))-FIND(CHAR(160),SUBSTITUTE($J48,\"{\",CHAR(160),EZ$1))+1),\"\")","v":""},{"$f":"IFERROR(MID($J48,FIND(CHAR(160),SUBSTITUTE($J48,\"{\",CHAR(160),FA$1)),FIND(CHAR(160),SUBSTITUTE($J48,\"}\",CHAR(160),FA$1))-FIND(CHAR(160),SUBSTITUTE($J48,\"{\",CHAR(160),FA$1))+1),\"\")","v":""},{"$f":"IFERROR(MID($J48,FIND(CHAR(160),SUBSTITUTE($J48,\"{\",CHAR(160),FB$1)),FIND(CHAR(160),SUBSTITUTE($J48,\"}\",CHAR(160),FB$1))-FIND(CHAR(160),SUBSTITUTE($J48,\"{\",CHAR(160),FB$1))+1),\"\")","v":""},{"$f":"IFERROR(MID($O48,FIND(CHAR(160),SUBSTITUTE($O48,\"{\",CHAR(160),FC$1)),FIND(CHAR(160),SUBSTITUTE($O48,\"}\",CHAR(160),FC$1))-FIND(CHAR(160),SUBSTITUTE($O48,\"{\",CHAR(160),FC$1))+1),\"\")","v":"{Space Type}"},{"$f":"IFERROR(MID($O48,FIND(CHAR(160),SUBSTITUTE($O48,\"{\",CHAR(160),FD$1)),FIND(CHAR(160),SUBSTITUTE($O48,\"}\",CHAR(160),FD$1))-FIND(CHAR(160),SUBSTITUTE($O48,\"{\",CHAR(160),FD$1))+1),\"\")","v":"{EER}"},{"$f":"IFERROR(MID($O48,FIND(CHAR(160),SUBSTITUTE($O48,\"{\",CHAR(160),FE$1)),FIND(CHAR(160),SUBSTITUTE($O48,\"}\",CHAR(160),FE$1))-FIND(CHAR(160),SUBSTITUTE($O48,\"{\",CHAR(160),FE$1))+1),\"\")","v":""},{"$f":"IFERROR(MID($O48,FIND(CHAR(160),SUBSTITUTE($O48,\"{\",CHAR(160),FF$1)),FIND(CHAR(160),SUBSTITUTE($O48,\"}\",CHAR(160),FF$1))-FIND(CHAR(160),SUBSTITUTE($O48,\"{\",CHAR(160),FF$1))+1),\"\")","v":""},{"$f":"IFERROR(MID($O48,FIND(CHAR(160),SUBSTITUTE($O48,\"{\",CHAR(160),FG$1)),FIND(CHAR(160),SUBSTITUTE($O48,\"}\",CHAR(160),FG$1))-FIND(CHAR(160),SUBSTITUTE($O48,\"{\",CHAR(160),FG$1))+1),\"\")","v":""},{"$f":"IFERROR(MID($O48,FIND(CHAR(160),SUBSTITUTE($O48,\"{\",CHAR(160),FH$1)),FIND(CHAR(160),SUBSTITUTE($O48,\"}\",CHAR(160),FH$1))-FIND(CHAR(160),SUBSTITUTE($O48,\"{\",CHAR(160),FH$1))+1),\"\")","v":""},{"$f":"IFERROR(MID($O48,FIND(CHAR(160),SUBSTITUTE($O48,\"{\",CHAR(160),FI$1)),FIND(CHAR(160),SUBSTITUTE($O48,\"}\",CHAR(160),FI$1))-FIND(CHAR(160),SUBSTITUTE($O48,\"{\",CHAR(160),FI$1))+1),\"\")","v":""},{"$f":"IFERROR(MID($O48,FIND(CHAR(160),SUBSTITUTE($O48,\"{\",CHAR(160),FJ$1)),FIND(CHAR(160),SUBSTITUTE($O48,\"}\",CHAR(160),FJ$1))-FIND(CHAR(160),SUBSTITUTE($O48,\"{\",CHAR(160),FJ$1))+1),\"\")","v":""},{"$f":"IFERROR(MID($O48,FIND(CHAR(160),SUBSTITUTE($O48,\"{\",CHAR(160),FK$1)),FIND(CHAR(160),SUBSTITUTE($O48,\"}\",CHAR(160),FK$1))-FIND(CHAR(160),SUBSTITUTE($O48,\"{\",CHAR(160),FK$1))+1),\"\")","v":"{Measure:Quantity}"},{"$f":"IFERROR(MID($O48,FIND(CHAR(160),SUBSTITUTE($O48,\"{\",CHAR(160),FL$1)),FIND(CHAR(160),SUBSTITUTE($O48,\"}\",CHAR(160),FL$1))-FIND(CHAR(160),SUBSTITUTE($O48,\"{\",CHAR(160),FL$1))+1),\"\")","v":"{Area Sq. Ft}"},{"$f":"IFERROR(MID($R48,FIND(CHAR(160),SUBSTITUTE($R48,\"{\",CHAR(160),FM$1)),FIND(CHAR(160),SUBSTITUTE($R48,\"}\",CHAR(160),FM$1))-FIND(CHAR(160),SUBSTITUTE($R48,\"{\",CHAR(160),FM$1))+1),\"\")","v":"{Space Type}"},{"$f":"IFERROR(MID($R48,FIND(CHAR(160),SUBSTITUTE($R48,\"{\",CHAR(160),FN$1)),FIND(CHAR(160),SUBSTITUTE($R48,\"}\",CHAR(160),FN$1))-FIND(CHAR(160),SUBSTITUTE($R48,\"{\",CHAR(160),FN$1))+1),\"\")","v":"{EER}"},{"$f":"IFERROR(MID($R48,FIND(CHAR(160),SUBSTITUTE($R48,\"{\",CHAR(160),FO$1)),FIND(CHAR(160),SUBSTITUTE($R48,\"}\",CHAR(160),FO$1))-FIND(CHAR(160),SUBSTITUTE($R48,\"{\",CHAR(160),FO$1))+1),\"\")","v":""},{"$f":"IFERROR(MID($R48,FIND(CHAR(160),SUBSTITUTE($R48,\"{\",CHAR(160),FP$1)),FIND(CHAR(160),SUBSTITUTE($R48,\"}\",CHAR(160),FP$1))-FIND(CHAR(160),SUBSTITUTE($R48,\"{\",CHAR(160),FP$1))+1),\"\")","v":""},{"$f":"IFERROR(MID($R48,FIND(CHAR(160),SUBSTITUTE($R48,\"{\",CHAR(160),FQ$1)),FIND(CHAR(160),SUBSTITUTE($R48,\"}\",CHAR(160),FQ$1))-FIND(CHAR(160),SUBSTITUTE($R48,\"{\",CHAR(160),FQ$1))+1),\"\")","v":""},{"$f":"IFERROR(MID($R48,FIND(CHAR(160),SUBSTITUTE($R48,\"{\",CHAR(160),FR$1)),FIND(CHAR(160),SUBSTITUTE($R48,\"}\",CHAR(160),FR$1))-FIND(CHAR(160),SUBSTITUTE($R48,\"{\",CHAR(160),FR$1))+1),\"\")","v":""},{"$f":"IFERROR(MID($R48,FIND(CHAR(160),SUBSTITUTE($R48,\"{\",CHAR(160),FS$1)),FIND(CHAR(160),SUBSTITUTE($R48,\"}\",CHAR(160),FS$1))-FIND(CHAR(160),SUBSTITUTE($R48,\"{\",CHAR(160),FS$1))+1),\"\")","v":""},{"$f":"IFERROR(MID($R48,FIND(CHAR(160),SUBSTITUTE($R48,\"{\",CHAR(160),FT$1)),FIND(CHAR(160),SUBSTITUTE($R48,\"}\",CHAR(160),FT$1))-FIND(CHAR(160),SUBSTITUTE($R48,\"{\",CHAR(160),FT$1))+1),\"\")","v":""},{"$f":"IFERROR(MID($R48,FIND(CHAR(160),SUBSTITUTE($R48,\"{\",CHAR(160),FU$1)),FIND(CHAR(160),SUBSTITUTE($R48,\"}\",CHAR(160),FU$1))-FIND(CHAR(160),SUBSTITUTE($R48,\"{\",CHAR(160),FU$1))+1),\"\")","v":"{Measure:Quantity}"},{"$f":"IFERROR(MID($R48,FIND(CHAR(160),SUBSTITUTE($R48,\"{\",CHAR(160),FV$1)),FIND(CHAR(160),SUBSTITUTE($R48,\"}\",CHAR(160),FV$1))-FIND(CHAR(160),SUBSTITUTE($R48,\"{\",CHAR(160),FV$1))+1),\"\")","v":"{Area Sq. Ft}"},{"$f":"IFERROR(MID($U48,FIND(CHAR(160),SUBSTITUTE($U48,\"{\",CHAR(160),FW$1)),FIND(CHAR(160),SUBSTITUTE($U48,\"}\",CHAR(160),FW$1))-FIND(CHAR(160),SUBSTITUTE($U48,\"{\",CHAR(160),FW$1))+1),\"\")","v":"{Space Type}"},{"$f":"IFERROR(MID($U48,FIND(CHAR(160),SUBSTITUTE($U48,\"{\",CHAR(160),FX$1)),FIND(CHAR(160),SUBSTITUTE($U48,\"}\",CHAR(160),FX$1))-FIND(CHAR(160),SUBSTITUTE($U48,\"{\",CHAR(160),FX$1))+1),\"\")","v":"{EER}"},{"$f":"IFERROR(MID($U48,FIND(CHAR(160),SUBSTITUTE($U48,\"{\",CHAR(160),FY$1)),FIND(CHAR(160),SUBSTITUTE($U48,\"}\",CHAR(160),FY$1))-FIND(CHAR(160),SUBSTITUTE($U48,\"{\",CHAR(160),FY$1))+1),\"\")","v":"{Factor:WinterCF}"},{"$f":"IFERROR(MID($U48,FIND(CHAR(160),SUBSTITUTE($U48,\"{\",CHAR(160),FZ$1)),FIND(CHAR(160),SUBSTITUTE($U48,\"}\",CHAR(160),FZ$1))-FIND(CHAR(160),SUBSTITUTE($U48,\"{\",CHAR(160),FZ$1))+1),\"\")","v":""},{"$f":"IFERROR(MID($U48,FIND(CHAR(160),SUBSTITUTE($U48,\"{\",CHAR(160),GA$1)),FIND(CHAR(160),SUBSTITUTE($U48,\"}\",CHAR(160),GA$1))-FIND(CHAR(160),SUBSTITUTE($U48,\"{\",CHAR(160),GA$1))+1),\"\")","v":""},{"$f":"IFERROR(MID($U48,FIND(CHAR(160),SUBSTITUTE($U48,\"{\",CHAR(160),GB$1)),FIND(CHAR(160),SUBSTITUTE($U48,\"}\",CHAR(160),GB$1))-FIND(CHAR(160),SUBSTITUTE($U48,\"{\",CHAR(160),GB$1))+1),\"\")","v":""},{"$f":"IFERROR(MID($U48,FIND(CHAR(160),SUBSTITUTE($U48,\"{\",CHAR(160),GC$1)),FIND(CHAR(160),SUBSTITUTE($U48,\"}\",CHAR(160),GC$1))-FIND(CHAR(160),SUBSTITUTE($U48,\"{\",CHAR(160),GC$1))+1),\"\")","v":""},{"$f":"IFERROR(MID($U48,FIND(CHAR(160),SUBSTITUTE($U48,\"{\",CHAR(160),GD$1)),FIND(CHAR(160),SUBSTITUTE($U48,\"}\",CHAR(160),GD$1))-FIND(CHAR(160),SUBSTITUTE($U48,\"{\",CHAR(160),GD$1))+1),\"\")","v":""},{"$f":"IFERROR(MID($U48,FIND(CHAR(160),SUBSTITUTE($U48,\"{\",CHAR(160),GE$1)),FIND(CHAR(160),SUBSTITUTE($U48,\"}\",CHAR(160),GE$1))-FIND(CHAR(160),SUBSTITUTE($U48,\"{\",CHAR(160),GE$1))+1),\"\")","v":"{Measure:Quantity}"},{"$f":"IFERROR(MID($U48,FIND(CHAR(160),SUBSTITUTE($U48,\"{\",CHAR(160),GF$1)),FIND(CHAR(160),SUBSTITUTE($U48,\"}\",CHAR(160),GF$1))-FIND(CHAR(160),SUBSTITUTE($U48,\"{\",CHAR(160),GF$1))+1),\"\")","v":"{Area Sq. Ft}"},{"$f":"IFERROR(MID($V48,FIND(CHAR(160),SUBSTITUTE($V48,\"{\",CHAR(160),GG$1)),FIND(CHAR(160),SUBSTITUTE($V48,\"}\",CHAR(160),GG$1))-FIND(CHAR(160),SUBSTITUTE($V48,\"{\",CHAR(160),GG$1))+1),\"\")","v":"{Space Type}"},{"$f":"IFERROR(MID($V48,FIND(CHAR(160),SUBSTITUTE($V48,\"{\",CHAR(160),GH$1)),FIND(CHAR(160),SUBSTITUTE($V48,\"}\",CHAR(160),GH$1))-FIND(CHAR(160),SUBSTITUTE($V48,\"{\",CHAR(160),GH$1))+1),\"\")","v":"{EER}"},{"$f":"IFERROR(MID($V48,FIND(CHAR(160),SUBSTITUTE($V48,\"{\",CHAR(160),GI$1)),FIND(CHAR(160),SUBSTITUTE($V48,\"}\",CHAR(160),GI$1))-FIND(CHAR(160),SUBSTITUTE($V48,\"{\",CHAR(160),GI$1))+1),\"\")","v":"{Factor:SummerCF}"},{"$f":"IFERROR(MID($V48,FIND(CHAR(160),SUBSTITUTE($V48,\"{\",CHAR(160),GJ$1)),FIND(CHAR(160),SUBSTITUTE($V48,\"}\",CHAR(160),GJ$1))-FIND(CHAR(160),SUBSTITUTE($V48,\"{\",CHAR(160),GJ$1))+1),\"\")","v":""},{"$f":"IFERROR(MID($V48,FIND(CHAR(160),SUBSTITUTE($V48,\"{\",CHAR(160),GK$1)),FIND(CHAR(160),SUBSTITUTE($V48,\"}\",CHAR(160),GK$1))-FIND(CHAR(160),SUBSTITUTE($V48,\"{\",CHAR(160),GK$1))+1),\"\")","v":""},{"$f":"IFERROR(MID($V48,FIND(CHAR(160),SUBSTITUTE($V48,\"{\",CHAR(160),GL$1)),FIND(CHAR(160),SUBSTITUTE($V48,\"}\",CHAR(160),GL$1))-FIND(CHAR(160),SUBSTITUTE($V48,\"{\",CHAR(160),GL$1))+1),\"\")","v":""},{"$f":"IFERROR(MID($V48,FIND(CHAR(160),SUBSTITUTE($V48,\"{\",CHAR(160),GM$1)),FIND(CHAR(160),SUBSTITUTE($V48,\"}\",CHAR(160),GM$1))-FIND(CHAR(160),SUBSTITUTE($V48,\"{\",CHAR(160),GM$1))+1),\"\")","v":""},{"$f":"IFERROR(MID($V48,FIND(CHAR(160),SUBSTITUTE($V48,\"{\",CHAR(160),GN$1)),FIND(CHAR(160),SUBSTITUTE($V48,\"}\",CHAR(160),GN$1))-FIND(CHAR(160),SUBSTITUTE($V48,\"{\",CHAR(160),GN$1))+1),\"\")","v":""},{"$f":"IFERROR(MID($V48,FIND(CHAR(160),SUBSTITUTE($V48,\"{\",CHAR(160),GO$1)),FIND(CHAR(160),SUBSTITUTE($V48,\"}\",CHAR(160),GO$1))-FIND(CHAR(160),SUBSTITUTE($V48,\"{\",CHAR(160),GO$1))+1),\"\")","v":"{Measure:Quantity}"},{"$f":"IFERROR(MID($V48,FIND(CHAR(160),SUBSTITUTE($V48,\"{\",CHAR(160),GP$1)),FIND(CHAR(160),SUBSTITUTE($V48,\"}\",CHAR(160),GP$1))-FIND(CHAR(160),SUBSTITUTE($V48,\"{\",CHAR(160),GP$1))+1),\"\")","v":"{Area Sq. Ft}"},{"$f":"IFERROR(MID($W48,FIND(CHAR(160),SUBSTITUTE($W48,\"{\",CHAR(160),GQ$1)),FIND(CHAR(160),SUBSTITUTE($W48,\"}\",CHAR(160),GQ$1))-FIND(CHAR(160),SUBSTITUTE($W48,\"{\",CHAR(160),GQ$1))+1),\"\")","v":""},{"$f":"IFERROR(MID($W48,FIND(CHAR(160),SUBSTITUTE($W48,\"{\",CHAR(160),GR$1)),FIND(CHAR(160),SUBSTITUTE($W48,\"}\",CHAR(160),GR$1))-FIND(CHAR(160),SUBSTITUTE($W48,\"{\",CHAR(160),GR$1))+1),\"\")","v":""},{"$f":"IFERROR(MID($W48,FIND(CHAR(160),SUBSTITUTE($W48,\"{\",CHAR(160),GS$1)),FIND(CHAR(160),SUBSTITUTE($W48,\"}\",CHAR(160),GS$1))-FIND(CHAR(160),SUBSTITUTE($W48,\"{\",CHAR(160),GS$1))+1),\"\")","v":""},{"$f":"IFERROR(MID($W48,FIND(CHAR(160),SUBSTITUTE($W48,\"{\",CHAR(160),GT$1)),FIND(CHAR(160),SUBSTITUTE($W48,\"}\",CHAR(160),GT$1))-FIND(CHAR(160),SUBSTITUTE($W48,\"{\",CHAR(160),GT$1))+1),\"\")","v":""},{"$f":"IFERROR(MID($W48,FIND(CHAR(160),SUBSTITUTE($W48,\"{\",CHAR(160),GU$1)),FIND(CHAR(160),SUBSTITUTE($W48,\"}\",CHAR(160),GU$1))-FIND(CHAR(160),SUBSTITUTE($W48,\"{\",CHAR(160),GU$1))+1),\"\")","v":""},{"$f":"IFERROR(MID($W48,FIND(CHAR(160),SUBSTITUTE($W48,\"{\",CHAR(160),GV$1)),FIND(CHAR(160),SUBSTITUTE($W48,\"}\",CHAR(160),GV$1))-FIND(CHAR(160),SUBSTITUTE($W48,\"{\",CHAR(160),GV$1))+1),\"\")","v":""},{"$f":"IFERROR(MID($W48,FIND(CHAR(160),SUBSTITUTE($W48,\"{\",CHAR(160),GW$1)),FIND(CHAR(160),SUBSTITUTE($W48,\"}\",CHAR(160),GW$1))-FIND(CHAR(160),SUBSTITUTE($W48,\"{\",CHAR(160),GW$1))+1),\"\")","v":""},{"$f":"IFERROR(MID($W48,FIND(CHAR(160),SUBSTITUTE($W48,\"{\",CHAR(160),GX$1)),FIND(CHAR(160),SUBSTITUTE($W48,\"}\",CHAR(160),GX$1))-FIND(CHAR(160),SUBSTITUTE($W48,\"{\",CHAR(160),GX$1))+1),\"\")","v":""},{"$f":"IFERROR(MID($W48,FIND(CHAR(160),SUBSTITUTE($W48,\"{\",CHAR(160),GY$1)),FIND(CHAR(160),SUBSTITUTE($W48,\"}\",CHAR(160),GY$1))-FIND(CHAR(160),SUBSTITUTE($W48,\"{\",CHAR(160),GY$1))+1),\"\")","v":""},{"$f":"IFERROR(MID($W48,FIND(CHAR(160),SUBSTITUTE($W48,\"{\",CHAR(160),GZ$1)),FIND(CHAR(160),SUBSTITUTE($W48,\"}\",CHAR(160),GZ$1))-FIND(CHAR(160),SUBSTITUTE($W48,\"{\",CHAR(160),GZ$1))+1),\"\")","v":""},{"$f":"IFERROR(MID($X48,FIND(CHAR(160),SUBSTITUTE($X48,\"{\",CHAR(160),HA$1)),FIND(CHAR(160),SUBSTITUTE($X48,\"}\",CHAR(160),HA$1))-FIND(CHAR(160),SUBSTITUTE($X48,\"{\",CHAR(160),HA$1))+1),\"\")","v":""},{"$f":"IFERROR(MID($X48,FIND(CHAR(160),SUBSTITUTE($X48,\"{\",CHAR(160),HB$1)),FIND(CHAR(160),SUBSTITUTE($X48,\"}\",CHAR(160),HB$1))-FIND(CHAR(160),SUBSTITUTE($X48,\"{\",CHAR(160),HB$1))+1),\"\")","v":""},{"$f":"IFERROR(MID($X48,FIND(CHAR(160),SUBSTITUTE($X48,\"{\",CHAR(160),HC$1)),FIND(CHAR(160),SUBSTITUTE($X48,\"}\",CHAR(160),HC$1))-FIND(CHAR(160),SUBSTITUTE($X48,\"{\",CHAR(160),HC$1))+1),\"\")","v":""},{"$f":"IFERROR(MID($X48,FIND(CHAR(160),SUBSTITUTE($X48,\"{\",CHAR(160),HD$1)),FIND(CHAR(160),SUBSTITUTE($X48,\"}\",CHAR(160),HD$1))-FIND(CHAR(160),SUBSTITUTE($X48,\"{\",CHAR(160),HD$1))+1),\"\")","v":""},{"$f":"IFERROR(MID($X48,FIND(CHAR(160),SUBSTITUTE($X48,\"{\",CHAR(160),HE$1)),FIND(CHAR(160),SUBSTITUTE($X48,\"}\",CHAR(160),HE$1))-FIND(CHAR(160),SUBSTITUTE($X48,\"{\",CHAR(160),HE$1))+1),\"\")","v":""},{"$f":"IFERROR(MID($X48,FIND(CHAR(160),SUBSTITUTE($X48,\"{\",CHAR(160),HF$1)),FIND(CHAR(160),SUBSTITUTE($X48,\"}\",CHAR(160),HF$1))-FIND(CHAR(160),SUBSTITUTE($X48,\"{\",CHAR(160),HF$1))+1),\"\")","v":""},{"$f":"IFERROR(MID($X48,FIND(CHAR(160),SUBSTITUTE($X48,\"{\",CHAR(160),HG$1)),FIND(CHAR(160),SUBSTITUTE($X48,\"}\",CHAR(160),HG$1))-FIND(CHAR(160),SUBSTITUTE($X48,\"{\",CHAR(160),HG$1))+1),\"\")","v":""},{"$f":"IFERROR(MID($X48,FIND(CHAR(160),SUBSTITUTE($X48,\"{\",CHAR(160),HH$1)),FIND(CHAR(160),SUBSTITUTE($X48,\"}\",CHAR(160),HH$1))-FIND(CHAR(160),SUBSTITUTE($X48,\"{\",CHAR(160),HH$1))+1),\"\")","v":""},{"$f":"IFERROR(MID($X48,FIND(CHAR(160),SUBSTITUTE($X48,\"{\",CHAR(160),HI$1)),FIND(CHAR(160),SUBSTITUTE($X48,\"}\",CHAR(160),HI$1))-FIND(CHAR(160),SUBSTITUTE($X48,\"{\",CHAR(160),HI$1))+1),\"\")","v":""},{"$f":"IFERROR(MID($X48,FIND(CHAR(160),SUBSTITUTE($X48,\"{\",CHAR(160),HJ$1)),FIND(CHAR(160),SUBSTITUTE($X48,\"}\",CHAR(160),HJ$1))-FIND(CHAR(160),SUBSTITUTE($X48,\"{\",CHAR(160),HJ$1))+1),\"\")","v":""},{"$f":"IFERROR(MID($Y48,FIND(CHAR(160),SUBSTITUTE($Y48,\"{\",CHAR(160),HK$1)),FIND(CHAR(160),SUBSTITUTE($Y48,\"}\",CHAR(160),HK$1))-FIND(CHAR(160),SUBSTITUTE($Y48,\"{\",CHAR(160),HK$1))+1),\"\")","v":""},{"$f":"IFERROR(MID($Y48,FIND(CHAR(160),SUBSTITUTE($Y48,\"{\",CHAR(160),HL$1)),FIND(CHAR(160),SUBSTITUTE($Y48,\"}\",CHAR(160),HL$1))-FIND(CHAR(160),SUBSTITUTE($Y48,\"{\",CHAR(160),HL$1))+1),\"\")","v":""},{"$f":"IFERROR(MID($Y48,FIND(CHAR(160),SUBSTITUTE($Y48,\"{\",CHAR(160),HM$1)),FIND(CHAR(160),SUBSTITUTE($Y48,\"}\",CHAR(160),HM$1))-FIND(CHAR(160),SUBSTITUTE($Y48,\"{\",CHAR(160),HM$1))+1),\"\")","v":""},{"$f":"IFERROR(MID($Y48,FIND(CHAR(160),SUBSTITUTE($Y48,\"{\",CHAR(160),HN$1)),FIND(CHAR(160),SUBSTITUTE($Y48,\"}\",CHAR(160),HN$1))-FIND(CHAR(160),SUBSTITUTE($Y48,\"{\",CHAR(160),HN$1))+1),\"\")","v":""},{"$f":"IFERROR(MID($Y48,FIND(CHAR(160),SUBSTITUTE($Y48,\"{\",CHAR(160),HO$1)),FIND(CHAR(160),SUBSTITUTE($Y48,\"}\",CHAR(160),HO$1))-FIND(CHAR(160),SUBSTITUTE($Y48,\"{\",CHAR(160),HO$1))+1),\"\")","v":""},{"$f":"IFERROR(MID($Y48,FIND(CHAR(160),SUBSTITUTE($Y48,\"{\",CHAR(160),HP$1)),FIND(CHAR(160),SUBSTITUTE($Y48,\"}\",CHAR(160),HP$1))-FIND(CHAR(160),SUBSTITUTE($Y48,\"{\",CHAR(160),HP$1))+1),\"\")","v":""},{"$f":"IFERROR(MID($Y48,FIND(CHAR(160),SUBSTITUTE($Y48,\"{\",CHAR(160),HQ$1)),FIND(CHAR(160),SUBSTITUTE($Y48,\"}\",CHAR(160),HQ$1))-FIND(CHAR(160),SUBSTITUTE($Y48,\"{\",CHAR(160),HQ$1))+1),\"\")","v":""},{"$f":"IFERROR(MID($Y48,FIND(CHAR(160),SUBSTITUTE($Y48,\"{\",CHAR(160),HR$1)),FIND(CHAR(160),SUBSTITUTE($Y48,\"}\",CHAR(160),HR$1))-FIND(CHAR(160),SUBSTITUTE($Y48,\"{\",CHAR(160),HR$1))+1),\"\")","v":""},{"$f":"IFERROR(MID($Y48,FIND(CHAR(160),SUBSTITUTE($Y48,\"{\",CHAR(160),HS$1)),FIND(CHAR(160),SUBSTITUTE($Y48,\"}\",CHAR(160),HS$1))-FIND(CHAR(160),SUBSTITUTE($Y48,\"{\",CHAR(160),HS$1))+1),\"\")","v":""},{"$f":"IFERROR(MID($Y48,FIND(CHAR(160),SUBSTITUTE($Y48,\"{\",CHAR(160),HT$1)),FIND(CHAR(160),SUBSTITUTE($Y48,\"}\",CHAR(160),HT$1))-FIND(CHAR(160),SUBSTITUTE($Y48,\"{\",CHAR(160),HT$1))+1),\"\")","v":""},{"$f":"IFERROR(MID($Z48,FIND(CHAR(160),SUBSTITUTE($Z48,\"{\",CHAR(160),HU$1)),FIND(CHAR(160),SUBSTITUTE($Z48,\"}\",CHAR(160),HU$1))-FIND(CHAR(160),SUBSTITUTE($Z48,\"{\",CHAR(160),HU$1))+1),\"\")","v":""},{"$f":"IFERROR(MID($Z48,FIND(CHAR(160),SUBSTITUTE($Z48,\"{\",CHAR(160),HV$1)),FIND(CHAR(160),SUBSTITUTE($Z48,\"}\",CHAR(160),HV$1))-FIND(CHAR(160),SUBSTITUTE($Z48,\"{\",CHAR(160),HV$1))+1),\"\")","v":""},{"$f":"IFERROR(MID($Z48,FIND(CHAR(160),SUBSTITUTE($Z48,\"{\",CHAR(160),HW$1)),FIND(CHAR(160),SUBSTITUTE($Z48,\"}\",CHAR(160),HW$1))-FIND(CHAR(160),SUBSTITUTE($Z48,\"{\",CHAR(160),HW$1))+1),\"\")","v":""},{"$f":"IFERROR(MID($Z48,FIND(CHAR(160),SUBSTITUTE($Z48,\"{\",CHAR(160),HX$1)),FIND(CHAR(160),SUBSTITUTE($Z48,\"}\",CHAR(160),HX$1))-FIND(CHAR(160),SUBSTITUTE($Z48,\"{\",CHAR(160),HX$1))+1),\"\")","v":""},{"$f":"IFERROR(MID($Z48,FIND(CHAR(160),SUBSTITUTE($Z48,\"{\",CHAR(160),HY$1)),FIND(CHAR(160),SUBSTITUTE($Z48,\"}\",CHAR(160),HY$1))-FIND(CHAR(160),SUBSTITUTE($Z48,\"{\",CHAR(160),HY$1))+1),\"\")","v":""},{"$f":"IFERROR(MID($Z48,FIND(CHAR(160),SUBSTITUTE($Z48,\"{\",CHAR(160),HZ$1)),FIND(CHAR(160),SUBSTITUTE($Z48,\"}\",CHAR(160),HZ$1))-FIND(CHAR(160),SUBSTITUTE($Z48,\"{\",CHAR(160),HZ$1))+1),\"\")","v":""},{"$f":"IFERROR(MID($Z48,FIND(CHAR(160),SUBSTITUTE($Z48,\"{\",CHAR(160),IA$1)),FIND(CHAR(160),SUBSTITUTE($Z48,\"}\",CHAR(160),IA$1))-FIND(CHAR(160),SUBSTITUTE($Z48,\"{\",CHAR(160),IA$1))+1),\"\")","v":""},{"$f":"IFERROR(MID($Z48,FIND(CHAR(160),SUBSTITUTE($Z48,\"{\",CHAR(160),IB$1)),FIND(CHAR(160),SUBSTITUTE($Z48,\"}\",CHAR(160),IB$1))-FIND(CHAR(160),SUBSTITUTE($Z48,\"{\",CHAR(160),IB$1))+1),\"\")","v":""},{"$f":"IFERROR(MID($Z48,FIND(CHAR(160),SUBSTITUTE($Z48,\"{\",CHAR(160),IC$1)),FIND(CHAR(160),SUBSTITUTE($Z48,\"}\",CHAR(160),IC$1))-FIND(CHAR(160),SUBSTITUTE($Z48,\"{\",CHAR(160),IC$1))+1),\"\")","v":""},{"$f":"IFERROR(MID($Z48,FIND(CHAR(160),SUBSTITUTE($Z48,\"{\",CHAR(160),ID$1)),FIND(CHAR(160),SUBSTITUTE($Z48,\"}\",CHAR(160),ID$1))-FIND(CHAR(160),SUBSTITUTE($Z48,\"{\",CHAR(160),ID$1))+1),\"\")","v":""},{"$f":"IFERROR(MID($AA48,FIND(CHAR(160),SUBSTITUTE($AA48,\"{\",CHAR(160),IE$1)),FIND(CHAR(160),SUBSTITUTE($AA48,\"}\",CHAR(160),IE$1))-FIND(CHAR(160),SUBSTITUTE($AA48,\"{\",CHAR(160),IE$1))+1),\"\")","v":""},{"$f":"IFERROR(MID($AA48,FIND(CHAR(160),SUBSTITUTE($AA48,\"{\",CHAR(160),IF$1)),FIND(CHAR(160),SUBSTITUTE($AA48,\"}\",CHAR(160),IF$1))-FIND(CHAR(160),SUBSTITUTE($AA48,\"{\",CHAR(160),IF$1))+1),\"\")","v":""},{"$f":"IFERROR(MID($AA48,FIND(CHAR(160),SUBSTITUTE($AA48,\"{\",CHAR(160),IG$1)),FIND(CHAR(160),SUBSTITUTE($AA48,\"}\",CHAR(160),IG$1))-FIND(CHAR(160),SUBSTITUTE($AA48,\"{\",CHAR(160),IG$1))+1),\"\")","v":""},{"$f":"IFERROR(MID($AA48,FIND(CHAR(160),SUBSTITUTE($AA48,\"{\",CHAR(160),IH$1)),FIND(CHAR(160),SUBSTITUTE($AA48,\"}\",CHAR(160),IH$1))-FIND(CHAR(160),SUBSTITUTE($AA48,\"{\",CHAR(160),IH$1))+1),\"\")","v":""},{"$f":"IFERROR(MID($AA48,FIND(CHAR(160),SUBSTITUTE($AA48,\"{\",CHAR(160),II$1)),FIND(CHAR(160),SUBSTITUTE($AA48,\"}\",CHAR(160),II$1))-FIND(CHAR(160),SUBSTITUTE($AA48,\"{\",CHAR(160),II$1))+1),\"\")","v":""},{"$f":"IFERROR(MID($AA48,FIND(CHAR(160),SUBSTITUTE($AA48,\"{\",CHAR(160),IJ$1)),FIND(CHAR(160),SUBSTITUTE($AA48,\"}\",CHAR(160),IJ$1))-FIND(CHAR(160),SUBSTITUTE($AA48,\"{\",CHAR(160),IJ$1))+1),\"\")","v":""},{"$f":"IFERROR(MID($AA48,FIND(CHAR(160),SUBSTITUTE($AA48,\"{\",CHAR(160),IK$1)),FIND(CHAR(160),SUBSTITUTE($AA48,\"}\",CHAR(160),IK$1))-FIND(CHAR(160),SUBSTITUTE($AA48,\"{\",CHAR(160),IK$1))+1),\"\")","v":""},{"$f":"IFERROR(MID($AA48,FIND(CHAR(160),SUBSTITUTE($AA48,\"{\",CHAR(160),IL$1)),FIND(CHAR(160),SUBSTITUTE($AA48,\"}\",CHAR(160),IL$1))-FIND(CHAR(160),SUBSTITUTE($AA48,\"{\",CHAR(160),IL$1))+1),\"\")","v":""},{"$f":"IFERROR(MID($AA48,FIND(CHAR(160),SUBSTITUTE($AA48,\"{\",CHAR(160),IM$1)),FIND(CHAR(160),SUBSTITUTE($AA48,\"}\",CHAR(160),IM$1))-FIND(CHAR(160),SUBSTITUTE($AA48,\"{\",CHAR(160),IM$1))+1),\"\")","v":""},{"$f":"IFERROR(MID($AA48,FIND(CHAR(160),SUBSTITUTE($AA48,\"{\",CHAR(160),IN$1)),FIND(CHAR(160),SUBSTITUTE($AA48,\"}\",CHAR(160),IN$1))-FIND(CHAR(160),SUBSTITUTE($AA48,\"{\",CHAR(160),IN$1))+1),\"\")","v":""},{"$f":"IFERROR(MID($AB48,FIND(CHAR(160),SUBSTITUTE($AB48,\"{\",CHAR(160),IO$1)),FIND(CHAR(160),SUBSTITUTE($AB48,\"}\",CHAR(160),IO$1))-FIND(CHAR(160),SUBSTITUTE($AB48,\"{\",CHAR(160),IO$1))+1),\"\")","v":""},{"$f":"IFERROR(MID($AB48,FIND(CHAR(160),SUBSTITUTE($AB48,\"{\",CHAR(160),IP$1)),FIND(CHAR(160),SUBSTITUTE($AB48,\"}\",CHAR(160),IP$1))-FIND(CHAR(160),SUBSTITUTE($AB48,\"{\",CHAR(160),IP$1))+1),\"\")","v":""},{"$f":"IFERROR(MID($AB48,FIND(CHAR(160),SUBSTITUTE($AB48,\"{\",CHAR(160),IQ$1)),FIND(CHAR(160),SUBSTITUTE($AB48,\"}\",CHAR(160),IQ$1))-FIND(CHAR(160),SUBSTITUTE($AB48,\"{\",CHAR(160),IQ$1))+1),\"\")","v":""},{"$f":"IFERROR(MID($AB48,FIND(CHAR(160),SUBSTITUTE($AB48,\"{\",CHAR(160),IR$1)),FIND(CHAR(160),SUBSTITUTE($AB48,\"}\",CHAR(160),IR$1))-FIND(CHAR(160),SUBSTITUTE($AB48,\"{\",CHAR(160),IR$1))+1),\"\")","v":""},{"$f":"IFERROR(MID($AB48,FIND(CHAR(160),SUBSTITUTE($AB48,\"{\",CHAR(160),IS$1)),FIND(CHAR(160),SUBSTITUTE($AB48,\"}\",CHAR(160),IS$1))-FIND(CHAR(160),SUBSTITUTE($AB48,\"{\",CHAR(160),IS$1))+1),\"\")","v":""},{"$f":"IFERROR(MID($AB48,FIND(CHAR(160),SUBSTITUTE($AB48,\"{\",CHAR(160),IT$1)),FIND(CHAR(160),SUBSTITUTE($AB48,\"}\",CHAR(160),IT$1))-FIND(CHAR(160),SUBSTITUTE($AB48,\"{\",CHAR(160),IT$1))+1),\"\")","v":""},{"$f":"IFERROR(MID($AB48,FIND(CHAR(160),SUBSTITUTE($AB48,\"{\",CHAR(160),IU$1)),FIND(CHAR(160),SUBSTITUTE($AB48,\"}\",CHAR(160),IU$1))-FIND(CHAR(160),SUBSTITUTE($AB48,\"{\",CHAR(160),IU$1))+1),\"\")","v":""},{"$f":"IFERROR(MID($AB48,FIND(CHAR(160),SUBSTITUTE($AB48,\"{\",CHAR(160),IV$1)),FIND(CHAR(160),SUBSTITUTE($AB48,\"}\",CHAR(160),IV$1))-FIND(CHAR(160),SUBSTITUTE($AB48,\"{\",CHAR(160),IV$1))+1),\"\")","v":""},{"$f":"IFERROR(MID($AB48,FIND(CHAR(160),SUBSTITUTE($AB48,\"{\",CHAR(160),IW$1)),FIND(CHAR(160),SUBSTITUTE($AB48,\"}\",CHAR(160),IW$1))-FIND(CHAR(160),SUBSTITUTE($AB48,\"{\",CHAR(160),IW$1))+1),\"\")","v":""},{"$f":"IFERROR(MID($AB48,FIND(CHAR(160),SUBSTITUTE($AB48,\"{\",CHAR(160),IX$1)),FIND(CHAR(160),SUBSTITUTE($AB48,\"}\",CHAR(160),IX$1))-FIND(CHAR(160),SUBSTITUTE($AB48,\"{\",CHAR(160),IX$1))+1),\"\")","v":""},null,{"$f":"10-COUNTIF(DU48:ED48,\"\")","v":4}]
["C&I HVAC - Electric","HVAC WATER SOURCE HEAT PUMP: < 11.25","WH","2021-07-01","2021-09-09","Calculated","{Measure:Quantity}*{Unit Size  - Tons}*100.0",0,"Calculated","{Measure:Quantity}*{Unit Size  - Tons}*100",0,"2021-07-01","2022-06-30","Calculated","{Measure:Quantity} * ((12 * {Unit Size  - Tons} * (1/13.0 - 1/{EER}) * 829) + ({Heating BTUH}/1000 * (1/4.3 - 1/{COP}) * 1600 / 3.412))",1E-4,null,"{Measure:Quantity} * 12 * {Unit Size  - Tons} * (1/13.0 - 1/{EER})",null,null,"{Measure:Quantity} * {Heating BTUH}/1000 * (1/4.3 - 1/{COP}) / 3.412 * {Factor:WinterCF}","{Measure:Quantity} * 12 * {Unit Size  - Tons} * (1/13.0 - 1/{EER}) * {Factor:SummerCF}",null,null,null,null,null,null,"2021-05-25","2022-06-30",15,0.42,0.35699999999999998,0.17,0.03,0.62,0.18,1,1.1220000000000001,1,0.52,1.6E-2,null,{"$f":"DU49","v":"{Measure:Quantity}"},1,{"$f":"DV49","v":"{Unit Size  - Tons}"},3,{"$f":"DW49","v":"{EER}"},16,{"$f":"DX49","v":"{Heating BTUH}"},37538,{"$f":"DY49","v":"{COP}"},4.4000000000000004,{"$f":"DZ49","v":""},null,{"$f":"EA49","v":""},null,{"$f":"EB49","v":""},null,{"$f":"EC49","v":""},null,{"$f":"ED49","v":""},null,{"$f":"AS49 * ((12 * AU49 * (1/13 - 1/AW49) * 829) + (AY49/1000 * (1/4.3 - 1/BA49) * 1600 / 3.412))","v":523.48043453724517},{"$f":"0.0001","v":1E-4},0,{"$f":"AS49 * 12 * AU49 * (1/13 - 1/AW49)","v":0.51923076923076938},0,0,{"$f":"AS49 * AY49/1000 * (1/4.3 - 1/BA49) / 3.412 * AF49","v":2.4422508296796056E-2},{"$f":"AS49 * 12 * AU49 * (1/13 - 1/AW49) * AG49","v":0.18536538461538465},0,0,0,0,0,0,null,"Res","Default DR",{"$f":"Benefits(BL49,BR49,BS49,BT49,BU49,BV49,BW49,BX49,BY49,BZ49,AE49,AH49,AI49,AJ49,AK49,AL49,AM49,AN49,AO49,AP49,CA49,CB49)","v":722.34700899805466},440.97551824963404,0,0,0,0,0,0,0,{"$f":"SUMPRODUCT(CC49:CK49,--(CC49:CK49>0))","v":1163.3225272476886},{"$f":"-SUMPRODUCT(CC49:CK49,--(CC49:CK49<0))","v":0},null,{"$f":"AS49*AU49*100","v":300},null,null,{"$f":"CM49+CO49","v":300},{"$f":"IF(NetOrGross=\"Net\",(1-AO49+AP49),1)","v":1},{"$f":"(SUMPRODUCT(CC49:CJ49,--(CC49:CJ49>0))+CN49)*CS49/((-SUMPRODUCT(CC49:CJ49,--(CC49:CJ49<0))+MAX(CO49,CV49)+CP49+CQ49)*CS49+IF(FRIncentives=\"Yes\",CV49*(1-CS49),0))","v":3.8777417574922954},1,{"$f":"AS49*AU49*100","v":300},null,"Electric","y",null,{"$f":"IF(F49=\"Manual Entry\",\"Manual\",IF(G49=\"\",0,\"X=\"&SUBSTITUTE(SUBSTITUTE(SUBSTITUTE(SUBSTITUTE(SUBSTITUTE(SUBSTITUTE(SUBSTITUTE(SUBSTITUTE(SUBSTITUTE(SUBSTITUTE(SUBSTITUTE(SUBSTITUTE(G49,$ED49,$ED$2&ROW($ED49)),$EC49,$EC$2&ROW($EC49)),$EB49,$EB$2&ROW($EB49)),$EA49,$EA$2&ROW($EA49)),$DZ49,$DZ$2&ROW($DZ49)),$DY49,$DY$2&ROW($DY49)),$DX49,$DX$2&ROW($DX49)),$DW49,$DW$2&ROW($DW49)),$DV49,$DV$2&ROW($DV49)),$DU49,$DU$2&ROW($DU49)),$DT49,$DT$2&ROW($DT49)),$DS49,$DS$2&ROW($DS49))))","v":"X=AS49*AU49*100.0"},{"$f":"IF(I49=\"Manual Entry\",\"Manual\",IF(J49=\"\",0,\"X=\"&SUBSTITUTE(SUBSTITUTE(SUBSTITUTE(SUBSTITUTE(SUBSTITUTE(SUBSTITUTE(SUBSTITUTE(SUBSTITUTE(SUBSTITUTE(SUBSTITUTE(SUBSTITUTE(SUBSTITUTE(J49,$ED49,$ED$2&ROW($ED49)),$EC49,$EC$2&ROW($EC49)),$EB49,$EB$2&ROW($EB49)),$EA49,$EA$2&ROW($EA49)),$DZ49,$DZ$2&ROW($DZ49)),$DY49,$DY$2&ROW($DY49)),$DX49,$DX$2&ROW($DX49)),$DW49,$DW$2&ROW($DW49)),$DV49,$DV$2&ROW($DV49)),$DU49,$DU$2&ROW($DU49)),$DT49,$DT$2&ROW($DT49)),$DS49,$DS$2&ROW($DS49))))","v":"X=AS49*AU49*100"},{"$f":"IF(O49=\"\",0,\"X=\"&SUBSTITUTE(SUBSTITUTE(SUBSTITUTE(SUBSTITUTE(SUBSTITUTE(SUBSTITUTE(SUBSTITUTE(SUBSTITUTE(SUBSTITUTE(SUBSTITUTE(SUBSTITUTE(SUBSTITUTE(O49,$ED49,$ED$2&ROW($ED49)),$EC49,$EC$2&ROW($EC49)),$EB49,$EB$2&ROW($EB49)),$EA49,$EA$2&ROW($EA49)),$DZ49,$DZ$2&ROW($DZ49)),$DY49,$DY$2&ROW($DY49)),$DX49,$DX$2&ROW($DX49)),$DW49,$DW$2&ROW($DW49)),$DV49,$DV$2&ROW($DV49)),$DU49,$DU$2&ROW($DU49)),$DT49,$DT$2&ROW($DT49)),$DS49,$DS$2&ROW($DS49)))","v":"X=AS49 * ((12 * AU49 * (1/13.0 - 1/AW49) * 829) + (AY49/1000 * (1/4.3 - 1/BA49) * 1600 / 3.412))"},{"$f":"IF(P49=\"\",0,\"X=\"&SUBSTITUTE(SUBSTITUTE(SUBSTITUTE(SUBSTITUTE(SUBSTITUTE(SUBSTITUTE(SUBSTITUTE(SUBSTITUTE(SUBSTITUTE(SUBSTITUTE(SUBSTITUTE(SUBSTITUTE(P49,$ED49,$ED$2&ROW($ED49)),$EC49,$EC$2&ROW($EC49)),$EB49,$EB$2&ROW($EB49)),$EA49,$EA$2&ROW($EA49)),$DZ49,$DZ$2&ROW($DZ49)),$DY49,$DY$2&ROW($DY49)),$DX49,$DX$2&ROW($DX49)),$DW49,$DW$2&ROW($DW49)),$DV49,$DV$2&ROW($DV49)),$DU49,$DU$2&ROW($DU49)),$DT49,$DT$2&ROW($DT49)),$DS49,$DS$2&ROW($DS49)))","v":"X=0.0001"},{"$f":"IF(Q49=\"\",0,\"X=\"&SUBSTITUTE(SUBSTITUTE(SUBSTITUTE(SUBSTITUTE(SUBSTITUTE(SUBSTITUTE(SUBSTITUTE(SUBSTITUTE(SUBSTITUTE(SUBSTITUTE(SUBSTITUTE(SUBSTITUTE(Q49,$ED49,$ED$2&ROW($ED49)),$EC49,$EC$2&ROW($EC49)),$EB49,$EB$2&ROW($EB49)),$EA49,$EA$2&ROW($EA49)),$DZ49,$DZ$2&ROW($DZ49)),$DY49,$DY$2&ROW($DY49)),$DX49,$DX$2&ROW($DX49)),$DW49,$DW$2&ROW($DW49)),$DV49,$DV$2&ROW($DV49)),$DU49,$DU$2&ROW($DU49)),$DT49,$DT$2&ROW($DT49)),$DS49,$DS$2&ROW($DS49)))","v":0},{"$f":"IF(R49=\"\",0,\"X=\"&SUBSTITUTE(SUBSTITUTE(SUBSTITUTE(SUBSTITUTE(SUBSTITUTE(SUBSTITUTE(SUBSTITUTE(SUBSTITUTE(SUBSTITUTE(SUBSTITUTE(SUBSTITUTE(SUBSTITUTE(R49,$ED49,$ED$2&ROW($ED49)),$EC49,$EC$2&ROW($EC49)),$EB49,$EB$2&ROW($EB49)),$EA49,$EA$2&ROW($EA49)),$DZ49,$DZ$2&ROW($DZ49)),$DY49,$DY$2&ROW($DY49)),$DX49,$DX$2&ROW($DX49)),$DW49,$DW$2&ROW($DW49)),$DV49,$DV$2&ROW($DV49)),$DU49,$DU$2&ROW($DU49)),$DT49,$DT$2&ROW($DT49)),$DS49,$DS$2&ROW($DS49)))","v":"X=AS49 * 12 * AU49 * (1/13.0 - 1/AW49)"},{"$f":"IF(S49=\"\",0,\"X=\"&SUBSTITUTE(SUBSTITUTE(SUBSTITUTE(SUBSTITUTE(SUBSTITUTE(SUBSTITUTE(SUBSTITUTE(SUBSTITUTE(SUBSTITUTE(SUBSTITUTE(SUBSTITUTE(SUBSTITUTE(S49,$ED49,$ED$2&ROW($ED49)),$EC49,$EC$2&ROW($EC49)),$EB49,$EB$2&ROW($EB49)),$EA49,$EA$2&ROW($EA49)),$DZ49,$DZ$2&ROW($DZ49)),$DY49,$DY$2&ROW($DY49)),$DX49,$DX$2&ROW($DX49)),$DW49,$DW$2&ROW($DW49)),$DV49,$DV$2&ROW($DV49)),$DU49,$DU$2&ROW($DU49)),$DT49,$DT$2&ROW($DT49)),$DS49,$DS$2&ROW($DS49)))","v":0},{"$f":"IF(T49=\"\",0,\"X=\"&SUBSTITUTE(SUBSTITUTE(SUBSTITUTE(SUBSTITUTE(SUBSTITUTE(SUBSTITUTE(SUBSTITUTE(SUBSTITUTE(SUBSTITUTE(SUBSTITUTE(SUBSTITUTE(SUBSTITUTE(T49,$ED49,$ED$2&ROW($ED49)),$EC49,$EC$2&ROW($EC49)),$EB49,$EB$2&ROW($EB49)),$EA49,$EA$2&ROW($EA49)),$DZ49,$DZ$2&ROW($DZ49)),$DY49,$DY$2&ROW($DY49)),$DX49,$DX$2&ROW($DX49)),$DW49,$DW$2&ROW($DW49)),$DV49,$DV$2&ROW($DV49)),$DU49,$DU$2&ROW($DU49)),$DT49,$DT$2&ROW($DT49)),$DS49,$DS$2&ROW($DS49)))","v":0},{"$f":"IF(U49=\"\",0,\"X=\"&SUBSTITUTE(SUBSTITUTE(SUBSTITUTE(SUBSTITUTE(SUBSTITUTE(SUBSTITUTE(SUBSTITUTE(SUBSTITUTE(SUBSTITUTE(SUBSTITUTE(SUBSTITUTE(SUBSTITUTE(U49,$ED49,$ED$2&ROW($ED49)),$EC49,$EC$2&ROW($EC49)),$EB49,$EB$2&ROW($EB49)),$EA49,$EA$2&ROW($EA49)),$DZ49,$DZ$2&ROW($DZ49)),$DY49,$DY$2&ROW($DY49)),$DX49,$DX$2&ROW($DX49)),$DW49,$DW$2&ROW($DW49)),$DV49,$DV$2&ROW($DV49)),$DU49,$DU$2&ROW($DU49)),$DT49,$DT$2&ROW($DT49)),$DS49,$DS$2&ROW($DS49)))","v":"X=AS49 * AY49/1000 * (1/4.3 - 1/BA49) / 3.412 * AF49"},{"$f":"IF(V49=\"\",0,\"X=\"&SUBSTITUTE(SUBSTITUTE(SUBSTITUTE(SUBSTITUTE(SUBSTITUTE(SUBSTITUTE(SUBSTITUTE(SUBSTITUTE(SUBSTITUTE(SUBSTITUTE(SUBSTITUTE(SUBSTITUTE(V49,$ED49,$ED$2&ROW($ED49)),$EC49,$EC$2&ROW($EC49)),$EB49,$EB$2&ROW($EB49)),$EA49,$EA$2&ROW($EA49)),$DZ49,$DZ$2&ROW($DZ49)),$DY49,$DY$2&ROW($DY49)),$DX49,$DX$2&ROW($DX49)),$DW49,$DW$2&ROW($DW49)),$DV49,$DV$2&ROW($DV49)),$DU49,$DU$2&ROW($DU49)),$DT49,$DT$2&ROW($DT49)),$DS49,$DS$2&ROW($DS49)))","v":"X=AS49 * 12 * AU49 * (1/13.0 - 1/AW49) * AG49"},{"$f":"IF(W49=\"\",0,\"X=\"&SUBSTITUTE(SUBSTITUTE(SUBSTITUTE(SUBSTITUTE(SUBSTITUTE(SUBSTITUTE(SUBSTITUTE(SUBSTITUTE(SUBSTITUTE(SUBSTITUTE(SUBSTITUTE(SUBSTITUTE(W49,$ED49,$ED$2&ROW($ED49)),$EC49,$EC$2&ROW($EC49)),$EB49,$EB$2&ROW($EB49)),$EA49,$EA$2&ROW($EA49)),$DZ49,$DZ$2&ROW($DZ49)),$DY49,$DY$2&ROW($DY49)),$DX49,$DX$2&ROW($DX49)),$DW49,$DW$2&ROW($DW49)),$DV49,$DV$2&ROW($DV49)),$DU49,$DU$2&ROW($DU49)),$DT49,$DT$2&ROW($DT49)),$DS49,$DS$2&ROW($DS49)))","v":0},{"$f":"IF(X49=\"\",0,\"X=\"&SUBSTITUTE(SUBSTITUTE(SUBSTITUTE(SUBSTITUTE(SUBSTITUTE(SUBSTITUTE(SUBSTITUTE(SUBSTITUTE(SUBSTITUTE(SUBSTITUTE(SUBSTITUTE(SUBSTITUTE(X49,$ED49,$ED$2&ROW($ED49)),$EC49,$EC$2&ROW($EC49)),$EB49,$EB$2&ROW($EB49)),$EA49,$EA$2&ROW($EA49)),$DZ49,$DZ$2&ROW($DZ49)),$DY49,$DY$2&ROW($DY49)),$DX49,$DX$2&ROW($DX49)),$DW49,$DW$2&ROW($DW49)),$DV49,$DV$2&ROW($DV49)),$DU49,$DU$2&ROW($DU49)),$DT49,$DT$2&ROW($DT49)),$DS49,$DS$2&ROW($DS49)))","v":0},{"$f":"IF(Y49=\"\",0,\"X=\"&SUBSTITUTE(SUBSTITUTE(SUBSTITUTE(SUBSTITUTE(SUBSTITUTE(SUBSTITUTE(SUBSTITUTE(SUBSTITUTE(SUBSTITUTE(SUBSTITUTE(SUBSTITUTE(SUBSTITUTE(Y49,$ED49,$ED$2&ROW($ED49)),$EC49,$EC$2&ROW($EC49)),$EB49,$EB$2&ROW($EB49)),$EA49,$EA$2&ROW($EA49)),$DZ49,$DZ$2&ROW($DZ49)),$DY49,$DY$2&ROW($DY49)),$DX49,$DX$2&ROW($DX49)),$DW49,$DW$2&ROW($DW49)),$DV49,$DV$2&ROW($DV49)),$DU49,$DU$2&ROW($DU49)),$DT49,$DT$2&ROW($DT49)),$DS49,$DS$2&ROW($DS49)))","v":0},{"$f":"IF(Z49=\"\",0,\"X=\"&SUBSTITUTE(SUBSTITUTE(SUBSTITUTE(SUBSTITUTE(SUBSTITUTE(SUBSTITUTE(SUBSTITUTE(SUBSTITUTE(SUBSTITUTE(SUBSTITUTE(SUBSTITUTE(SUBSTITUTE(Z49,$ED49,$ED$2&ROW($ED49)),$EC49,$EC$2&ROW($EC49)),$EB49,$EB$2&ROW($EB49)),$EA49,$EA$2&ROW($EA49)),$DZ49,$DZ$2&ROW($DZ49)),$DY49,$DY$2&ROW($DY49)),$DX49,$DX$2&ROW($DX49)),$DW49,$DW$2&ROW($DW49)),$DV49,$DV$2&ROW($DV49)),$DU49,$DU$2&ROW($DU49)),$DT49,$DT$2&ROW($DT49)),$DS49,$DS$2&ROW($DS49)))","v":0},{"$f":"IF(AA49=\"\",0,\"X=\"&SUBSTITUTE(SUBSTITUTE(SUBSTITUTE(SUBSTITUTE(SUBSTITUTE(SUBSTITUTE(SUBSTITUTE(SUBSTITUTE(SUBSTITUTE(SUBSTITUTE(SUBSTITUTE(SUBSTITUTE(AA49,$ED49,$ED$2&ROW($ED49)),$EC49,$EC$2&ROW($EC49)),$EB49,$EB$2&ROW($EB49)),$EA49,$EA$2&ROW($EA49)),$DZ49,$DZ$2&ROW($DZ49)),$DY49,$DY$2&ROW($DY49)),$DX49,$DX$2&ROW($DX49)),$DW49,$DW$2&ROW($DW49)),$DV49,$DV$2&ROW($DV49)),$DU49,$DU$2&ROW($DU49)),$DT49,$DT$2&ROW($DT49)),$DS49,$DS$2&ROW($DS49)))","v":0},{"$f":"IF(AB49=\"\",0,\"X=\"&SUBSTITUTE(SUBSTITUTE(SUBSTITUTE(SUBSTITUTE(SUBSTITUTE(SUBSTITUTE(SUBSTITUTE(SUBSTITUTE(SUBSTITUTE(SUBSTITUTE(SUBSTITUTE(SUBSTITUTE(AB49,$ED49,$ED$2&ROW($ED49)),$EC49,$EC$2&ROW($EC49)),$EB49,$EB$2&ROW($EB49)),$EA49,$EA$2&ROW($EA49)),$DZ49,$DZ$2&ROW($DZ49)),$DY49,$DY$2&ROW($DY49)),$DX49,$DX$2&ROW($DX49)),$DW49,$DW$2&ROW($DW49)),$DV49,$DV$2&ROW($DV49)),$DU49,$DU$2&ROW($DU49)),$DT49,$DT$2&ROW($DT49)),$DS49,$DS$2&ROW($DS49)))","v":0},null,null,"{Factor:WinterCF}","{Factor:SummerCF}",{"$f":"IFERROR(INDEX($EG49:$IV49,MATCH(0,COUNTIF($DR49:DT49,$EG49:$IV49),0)),\"\")","v":"{Measure:Quantity}"},{"$f":"IFERROR(INDEX($EG49:$IV49,MATCH(0,COUNTIF($DR49:DU49,$EG49:$IV49),0)),\"\")","v":"{Unit Size  - Tons}"},{"$f":"IFERROR(INDEX($EG49:$IV49,MATCH(0,COUNTIF($DR49:DV49,$EG49:$IV49),0)),\"\")","v":"{EER}"},{"$f":"IFERROR(INDEX($EG49:$IV49,MATCH(0,COUNTIF($DR49:DW49,$EG49:$IV49),0)),\"\")","v":"{Heating BTUH}"},{"$f":"IFERROR(INDEX($EG49:$IV49,MATCH(0,COUNTIF($DR49:DX49,$EG49:$IV49),0)),\"\")","v":"{COP}"},{"$f":"IFERROR(INDEX($EG49:$IV49,MATCH(0,COUNTIF($DR49:DY49,$EG49:$IV49),0)),\"\")","v":""},{"$f":"IFERROR(INDEX($EG49:$IV49,MATCH(0,COUNTIF($DR49:DZ49,$EG49:$IV49),0)),\"\")","v":""},{"$f":"IFERROR(INDEX($EG49:$IV49,MATCH(0,COUNTIF($DR49:EA49,$EG49:$IV49),0)),\"\")","v":""},{"$f":"IFERROR(INDEX($EG49:$IV49,MATCH(0,COUNTIF($DR49:EB49,$EG49:$IV49),0)),\"\")","v":""},{"$f":"IFERROR(INDEX($EG49:$IV49,MATCH(0,COUNTIF($DR49:EC49,$EG49:$IV49),0)),\"\")","v":""},null,null,{"$f":"IFERROR(MID($G49,FIND(CHAR(160),SUBSTITUTE($G49,\"{\",CHAR(160),EG$1)),FIND(CHAR(160),SUBSTITUTE($G49,\"}\",CHAR(160),EG$1))-FIND(CHAR(160),SUBSTITUTE($G49,\"{\",CHAR(160),EG$1))+1),\"\")","v":"{Measure:Quantity}"},{"$f":"IFERROR(MID($G49,FIND(CHAR(160),SUBSTITUTE($G49,\"{\",CHAR(160),EH$1)),FIND(CHAR(160),SUBSTITUTE($G49,\"}\",CHAR(160),EH$1))-FIND(CHAR(160),SUBSTITUTE($G49,\"{\",CHAR(160),EH$1))+1),\"\")","v":"{Unit Size  - Tons}"},{"$f":"IFERROR(MID($G49,FIND(CHAR(160),SUBSTITUTE($G49,\"{\",CHAR(160),EI$1)),FIND(CHAR(160),SUBSTITUTE($G49,\"}\",CHAR(160),EI$1))-FIND(CHAR(160),SUBSTITUTE($G49,\"{\",CHAR(160),EI$1))+1),\"\")","v":""},{"$f":"IFERROR(MID($G49,FIND(CHAR(160),SUBSTITUTE($G49,\"{\",CHAR(160),EJ$1)),FIND(CHAR(160),SUBSTITUTE($G49,\"}\",CHAR(160),EJ$1))-FIND(CHAR(160),SUBSTITUTE($G49,\"{\",CHAR(160),EJ$1))+1),\"\")","v":""},{"$f":"IFERROR(MID($G49,FIND(CHAR(160),SUBSTITUTE($G49,\"{\",CHAR(160),EK$1)),FIND(CHAR(160),SUBSTITUTE($G49,\"}\",CHAR(160),EK$1))-FIND(CHAR(160),SUBSTITUTE($G49,\"{\",CHAR(160),EK$1))+1),\"\")","v":""},{"$f":"IFERROR(MID($G49,FIND(CHAR(160),SUBSTITUTE($G49,\"{\",CHAR(160),EL$1)),FIND(CHAR(160),SUBSTITUTE($G49,\"}\",CHAR(160),EL$1))-FIND(CHAR(160),SUBSTITUTE($G49,\"{\",CHAR(160),EL$1))+1),\"\")","v":""},{"$f":"IFERROR(MID($G49,FIND(CHAR(160),SUBSTITUTE($G49,\"{\",CHAR(160),EM$1)),FIND(CHAR(160),SUBSTITUTE($G49,\"}\",CHAR(160),EM$1))-FIND(CHAR(160),SUBSTITUTE($G49,\"{\",CHAR(160),EM$1))+1),\"\")","v":""},{"$f":"IFERROR(MID($G49,FIND(CHAR(160),SUBSTITUTE($G49,\"{\",CHAR(160),EN$1)),FIND(CHAR(160),SUBSTITUTE($G49,\"}\",CHAR(160),EN$1))-FIND(CHAR(160),SUBSTITUTE($G49,\"{\",CHAR(160),EN$1))+1),\"\")","v":""},{"$f":"IFERROR(MID($G49,FIND(CHAR(160),SUBSTITUTE($G49,\"{\",CHAR(160),EO$1)),FIND(CHAR(160),SUBSTITUTE($G49,\"}\",CHAR(160),EO$1))-FIND(CHAR(160),SUBSTITUTE($G49,\"{\",CHAR(160),EO$1))+1),\"\")","v":""},{"$f":"IFERROR(MID($G49,FIND(CHAR(160),SUBSTITUTE($G49,\"{\",CHAR(160),EP$1)),FIND(CHAR(160),SUBSTITUTE($G49,\"}\",CHAR(160),EP$1))-FIND(CHAR(160),SUBSTITUTE($G49,\"{\",CHAR(160),EP$1))+1),\"\")","v":""},{"$f":"IFERROR(MID($J49,FIND(CHAR(160),SUBSTITUTE($J49,\"{\",CHAR(160),EQ$1)),FIND(CHAR(160),SUBSTITUTE($J49,\"}\",CHAR(160),EQ$1))-FIND(CHAR(160),SUBSTITUTE($J49,\"{\",CHAR(160),EQ$1))+1),\"\")","v":"{Measure:Quantity}"},{"$f":"IFERROR(MID($J49,FIND(CHAR(160),SUBSTITUTE($J49,\"{\",CHAR(160),ER$1)),FIND(CHAR(160),SUBSTITUTE($J49,\"}\",CHAR(160),ER$1))-FIND(CHAR(160),SUBSTITUTE($J49,\"{\",CHAR(160),ER$1))+1),\"\")","v":"{Unit Size  - Tons}"},{"$f":"IFERROR(MID($J49,FIND(CHAR(160),SUBSTITUTE($J49,\"{\",CHAR(160),ES$1)),FIND(CHAR(160),SUBSTITUTE($J49,\"}\",CHAR(160),ES$1))-FIND(CHAR(160),SUBSTITUTE($J49,\"{\",CHAR(160),ES$1))+1),\"\")","v":""},{"$f":"IFERROR(MID($J49,FIND(CHAR(160),SUBSTITUTE($J49,\"{\",CHAR(160),ET$1)),FIND(CHAR(160),SUBSTITUTE($J49,\"}\",CHAR(160),ET$1))-FIND(CHAR(160),SUBSTITUTE($J49,\"{\",CHAR(160),ET$1))+1),\"\")","v":""},{"$f":"IFERROR(MID($J49,FIND(CHAR(160),SUBSTITUTE($J49,\"{\",CHAR(160),EU$1)),FIND(CHAR(160),SUBSTITUTE($J49,\"}\",CHAR(160),EU$1))-FIND(CHAR(160),SUBSTITUTE($J49,\"{\",CHAR(160),EU$1))+1),\"\")","v":""},{"$f":"IFERROR(MID($J49,FIND(CHAR(160),SUBSTITUTE($J49,\"{\",CHAR(160),EV$1)),FIND(CHAR(160),SUBSTITUTE($J49,\"}\",CHAR(160),EV$1))-FIND(CHAR(160),SUBSTITUTE($J49,\"{\",CHAR(160),EV$1))+1),\"\")","v":""},{"$f":"IFERROR(MID($J49,FIND(CHAR(160),SUBSTITUTE($J49,\"{\",CHAR(160),EW$1)),FIND(CHAR(160),SUBSTITUTE($J49,\"}\",CHAR(160),EW$1))-FIND(CHAR(160),SUBSTITUTE($J49,\"{\",CHAR(160),EW$1))+1),\"\")","v":""},{"$f":"IFERROR(MID($J49,FIND(CHAR(160),SUBSTITUTE($J49,\"{\",CHAR(160),EX$1)),FIND(CHAR(160),SUBSTITUTE($J49,\"}\",CHAR(160),EX$1))-FIND(CHAR(160),SUBSTITUTE($J49,\"{\",CHAR(160),EX$1))+1),\"\")","v":""},{"$f":"IFERROR(MID($J49,FIND(CHAR(160),SUBSTITUTE($J49,\"{\",CHAR(160),EY$1)),FIND(CHAR(160),SUBSTITUTE($J49,\"}\",CHAR(160),EY$1))-FIND(CHAR(160),SUBSTITUTE($J49,\"{\",CHAR(160),EY$1))+1),\"\")","v":""},{"$f":"IFERROR(MID($J49,FIND(CHAR(160),SUBSTITUTE($J49,\"{\",CHAR(160),EZ$1)),FIND(CHAR(160),SUBSTITUTE($J49,\"}\",CHAR(160),EZ$1))-FIND(CHAR(160),SUBSTITUTE($J49,\"{\",CHAR(160),EZ$1))+1),\"\")","v":""},{"$f":"IFERROR(MID($J49,FIND(CHAR(160),SUBSTITUTE($J49,\"{\",CHAR(160),FA$1)),FIND(CHAR(160),SUBSTITUTE($J49,\"}\",CHAR(160),FA$1))-FIND(CHAR(160),SUBSTITUTE($J49,\"{\",CHAR(160),FA$1))+1),\"\")","v":"{Measure:Quantity}"},{"$f":"IFERROR(MID($J49,FIND(CHAR(160),SUBSTITUTE($J49,\"{\",CHAR(160),FB$1)),FIND(CHAR(160),SUBSTITUTE($J49,\"}\",CHAR(160),FB$1))-FIND(CHAR(160),SUBSTITUTE($J49,\"{\",CHAR(160),FB$1))+1),\"\")","v":"{Unit Size  - Tons}"},{"$f":"IFERROR(MID($O49,FIND(CHAR(160),SUBSTITUTE($O49,\"{\",CHAR(160),FC$1)),FIND(CHAR(160),SUBSTITUTE($O49,\"}\",CHAR(160),FC$1))-FIND(CHAR(160),SUBSTITUTE($O49,\"{\",CHAR(160),FC$1))+1),\"\")","v":"{EER}"},{"$f":"IFERROR(MID($O49,FIND(CHAR(160),SUBSTITUTE($O49,\"{\",CHAR(160),FD$1)),FIND(CHAR(160),SUBSTITUTE($O49,\"}\",CHAR(160),FD$1))-FIND(CHAR(160),SUBSTITUTE($O49,\"{\",CHAR(160),FD$1))+1),\"\")","v":"{Heating BTUH}"},{"$f":"IFERROR(MID($O49,FIND(CHAR(160),SUBSTITUTE($O49,\"{\",CHAR(160),FE$1)),FIND(CHAR(160),SUBSTITUTE($O49,\"}\",CHAR(160),FE$1))-FIND(CHAR(160),SUBSTITUTE($O49,\"{\",CHAR(160),FE$1))+1),\"\")","v":"{COP}"},{"$f":"IFERROR(MID($O49,FIND(CHAR(160),SUBSTITUTE($O49,\"{\",CHAR(160),FF$1)),FIND(CHAR(160),SUBSTITUTE($O49,\"}\",CHAR(160),FF$1))-FIND(CHAR(160),SUBSTITUTE($O49,\"{\",CHAR(160),FF$1))+1),\"\")","v":""},{"$f":"IFERROR(MID($O49,FIND(CHAR(160),SUBSTITUTE($O49,\"{\",CHAR(160),FG$1)),FIND(CHAR(160),SUBSTITUTE($O49,\"}\",CHAR(160),FG$1))-FIND(CHAR(160),SUBSTITUTE($O49,\"{\",CHAR(160),FG$1))+1),\"\")","v":""},{"$f":"IFERROR(MID($O49,FIND(CHAR(160),SUBSTITUTE($O49,\"{\",CHAR(160),FH$1)),FIND(CHAR(160),SUBSTITUTE($O49,\"}\",CHAR(160),FH$1))-FIND(CHAR(160),SUBSTITUTE($O49,\"{\",CHAR(160),FH$1))+1),\"\")","v":""},{"$f":"IFERROR(MID($O49,FIND(CHAR(160),SUBSTITUTE($O49,\"{\",CHAR(160),FI$1)),FIND(CHAR(160),SUBSTITUTE($O49,\"}\",CHAR(160),FI$1))-FIND(CHAR(160),SUBSTITUTE($O49,\"{\",CHAR(160),FI$1))+1),\"\")","v":""},{"$f":"IFERROR(MID($O49,FIND(CHAR(160),SUBSTITUTE($O49,\"{\",CHAR(160),FJ$1)),FIND(CHAR(160),SUBSTITUTE($O49,\"}\",CHAR(160),FJ$1))-FIND(CHAR(160),SUBSTITUTE($O49,\"{\",CHAR(160),FJ$1))+1),\"\")","v":""},{"$f":"IFERROR(MID($O49,FIND(CHAR(160),SUBSTITUTE($O49,\"{\",CHAR(160),FK$1)),FIND(CHAR(160),SUBSTITUTE($O49,\"}\",CHAR(160),FK$1))-FIND(CHAR(160),SUBSTITUTE($O49,\"{\",CHAR(160),FK$1))+1),\"\")","v":"{Measure:Quantity}"},{"$f":"IFERROR(MID($O49,FIND(CHAR(160),SUBSTITUTE($O49,\"{\",CHAR(160),FL$1)),FIND(CHAR(160),SUBSTITUTE($O49,\"}\",CHAR(160),FL$1))-FIND(CHAR(160),SUBSTITUTE($O49,\"{\",CHAR(160),FL$1))+1),\"\")","v":"{Unit Size  - Tons}"},{"$f":"IFERROR(MID($R49,FIND(CHAR(160),SUBSTITUTE($R49,\"{\",CHAR(160),FM$1)),FIND(CHAR(160),SUBSTITUTE($R49,\"}\",CHAR(160),FM$1))-FIND(CHAR(160),SUBSTITUTE($R49,\"{\",CHAR(160),FM$1))+1),\"\")","v":"{EER}"},{"$f":"IFERROR(MID($R49,FIND(CHAR(160),SUBSTITUTE($R49,\"{\",CHAR(160),FN$1)),FIND(CHAR(160),SUBSTITUTE($R49,\"}\",CHAR(160),FN$1))-FIND(CHAR(160),SUBSTITUTE($R49,\"{\",CHAR(160),FN$1))+1),\"\")","v":""},{"$f":"IFERROR(MID($R49,FIND(CHAR(160),SUBSTITUTE($R49,\"{\",CHAR(160),FO$1)),FIND(CHAR(160),SUBSTITUTE($R49,\"}\",CHAR(160),FO$1))-FIND(CHAR(160),SUBSTITUTE($R49,\"{\",CHAR(160),FO$1))+1),\"\")","v":""},{"$f":"IFERROR(MID($R49,FIND(CHAR(160),SUBSTITUTE($R49,\"{\",CHAR(160),FP$1)),FIND(CHAR(160),SUBSTITUTE($R49,\"}\",CHAR(160),FP$1))-FIND(CHAR(160),SUBSTITUTE($R49,\"{\",CHAR(160),FP$1))+1),\"\")","v":""},{"$f":"IFERROR(MID($R49,FIND(CHAR(160),SUBSTITUTE($R49,\"{\",CHAR(160),FQ$1)),FIND(CHAR(160),SUBSTITUTE($R49,\"}\",CHAR(160),FQ$1))-FIND(CHAR(160),SUBSTITUTE($R49,\"{\",CHAR(160),FQ$1))+1),\"\")","v":""},{"$f":"IFERROR(MID($R49,FIND(CHAR(160),SUBSTITUTE($R49,\"{\",CHAR(160),FR$1)),FIND(CHAR(160),SUBSTITUTE($R49,\"}\",CHAR(160),FR$1))-FIND(CHAR(160),SUBSTITUTE($R49,\"{\",CHAR(160),FR$1))+1),\"\")","v":""},{"$f":"IFERROR(MID($R49,FIND(CHAR(160),SUBSTITUTE($R49,\"{\",CHAR(160),FS$1)),FIND(CHAR(160),SUBSTITUTE($R49,\"}\",CHAR(160),FS$1))-FIND(CHAR(160),SUBSTITUTE($R49,\"{\",CHAR(160),FS$1))+1),\"\")","v":""},{"$f":"IFERROR(MID($R49,FIND(CHAR(160),SUBSTITUTE($R49,\"{\",CHAR(160),FT$1)),FIND(CHAR(160),SUBSTITUTE($R49,\"}\",CHAR(160),FT$1))-FIND(CHAR(160),SUBSTITUTE($R49,\"{\",CHAR(160),FT$1))+1),\"\")","v":""},{"$f":"IFERROR(MID($R49,FIND(CHAR(160),SUBSTITUTE($R49,\"{\",CHAR(160),FU$1)),FIND(CHAR(160),SUBSTITUTE($R49,\"}\",CHAR(160),FU$1))-FIND(CHAR(160),SUBSTITUTE($R49,\"{\",CHAR(160),FU$1))+1),\"\")","v":"{Measure:Quantity}"},{"$f":"IFERROR(MID($R49,FIND(CHAR(160),SUBSTITUTE($R49,\"{\",CHAR(160),FV$1)),FIND(CHAR(160),SUBSTITUTE($R49,\"}\",CHAR(160),FV$1))-FIND(CHAR(160),SUBSTITUTE($R49,\"{\",CHAR(160),FV$1))+1),\"\")","v":"{Unit Size  - Tons}"},{"$f":"IFERROR(MID($U49,FIND(CHAR(160),SUBSTITUTE($U49,\"{\",CHAR(160),FW$1)),FIND(CHAR(160),SUBSTITUTE($U49,\"}\",CHAR(160),FW$1))-FIND(CHAR(160),SUBSTITUTE($U49,\"{\",CHAR(160),FW$1))+1),\"\")","v":"{COP}"},{"$f":"IFERROR(MID($U49,FIND(CHAR(160),SUBSTITUTE($U49,\"{\",CHAR(160),FX$1)),FIND(CHAR(160),SUBSTITUTE($U49,\"}\",CHAR(160),FX$1))-FIND(CHAR(160),SUBSTITUTE($U49,\"{\",CHAR(160),FX$1))+1),\"\")","v":"{Factor:WinterCF}"},{"$f":"IFERROR(MID($U49,FIND(CHAR(160),SUBSTITUTE($U49,\"{\",CHAR(160),FY$1)),FIND(CHAR(160),SUBSTITUTE($U49,\"}\",CHAR(160),FY$1))-FIND(CHAR(160),SUBSTITUTE($U49,\"{\",CHAR(160),FY$1))+1),\"\")","v":""},{"$f":"IFERROR(MID($U49,FIND(CHAR(160),SUBSTITUTE($U49,\"{\",CHAR(160),FZ$1)),FIND(CHAR(160),SUBSTITUTE($U49,\"}\",CHAR(160),FZ$1))-FIND(CHAR(160),SUBSTITUTE($U49,\"{\",CHAR(160),FZ$1))+1),\"\")","v":""},{"$f":"IFERROR(MID($U49,FIND(CHAR(160),SUBSTITUTE($U49,\"{\",CHAR(160),GA$1)),FIND(CHAR(160),SUBSTITUTE($U49,\"}\",CHAR(160),GA$1))-FIND(CHAR(160),SUBSTITUTE($U49,\"{\",CHAR(160),GA$1))+1),\"\")","v":""},{"$f":"IFERROR(MID($U49,FIND(CHAR(160),SUBSTITUTE($U49,\"{\",CHAR(160),GB$1)),FIND(CHAR(160),SUBSTITUTE($U49,\"}\",CHAR(160),GB$1))-FIND(CHAR(160),SUBSTITUTE($U49,\"{\",CHAR(160),GB$1))+1),\"\")","v":""},{"$f":"IFERROR(MID($U49,FIND(CHAR(160),SUBSTITUTE($U49,\"{\",CHAR(160),GC$1)),FIND(CHAR(160),SUBSTITUTE($U49,\"}\",CHAR(160),GC$1))-FIND(CHAR(160),SUBSTITUTE($U49,\"{\",CHAR(160),GC$1))+1),\"\")","v":""},{"$f":"IFERROR(MID($U49,FIND(CHAR(160),SUBSTITUTE($U49,\"{\",CHAR(160),GD$1)),FIND(CHAR(160),SUBSTITUTE($U49,\"}\",CHAR(160),GD$1))-FIND(CHAR(160),SUBSTITUTE($U49,\"{\",CHAR(160),GD$1))+1),\"\")","v":""},{"$f":"IFERROR(MID($U49,FIND(CHAR(160),SUBSTITUTE($U49,\"{\",CHAR(160),GE$1)),FIND(CHAR(160),SUBSTITUTE($U49,\"}\",CHAR(160),GE$1))-FIND(CHAR(160),SUBSTITUTE($U49,\"{\",CHAR(160),GE$1))+1),\"\")","v":"{Measure:Quantity}"},{"$f":"IFERROR(MID($U49,FIND(CHAR(160),SUBSTITUTE($U49,\"{\",CHAR(160),GF$1)),FIND(CHAR(160),SUBSTITUTE($U49,\"}\",CHAR(160),GF$1))-FIND(CHAR(160),SUBSTITUTE($U49,\"{\",CHAR(160),GF$1))+1),\"\")","v":"{Heating BTUH}"},{"$f":"IFERROR(MID($V49,FIND(CHAR(160),SUBSTITUTE($V49,\"{\",CHAR(160),GG$1)),FIND(CHAR(160),SUBSTITUTE($V49,\"}\",CHAR(160),GG$1))-FIND(CHAR(160),SUBSTITUTE($V49,\"{\",CHAR(160),GG$1))+1),\"\")","v":"{EER}"},{"$f":"IFERROR(MID($V49,FIND(CHAR(160),SUBSTITUTE($V49,\"{\",CHAR(160),GH$1)),FIND(CHAR(160),SUBSTITUTE($V49,\"}\",CHAR(160),GH$1))-FIND(CHAR(160),SUBSTITUTE($V49,\"{\",CHAR(160),GH$1))+1),\"\")","v":"{Factor:SummerCF}"},{"$f":"IFERROR(MID($V49,FIND(CHAR(160),SUBSTITUTE($V49,\"{\",CHAR(160),GI$1)),FIND(CHAR(160),SUBSTITUTE($V49,\"}\",CHAR(160),GI$1))-FIND(CHAR(160),SUBSTITUTE($V49,\"{\",CHAR(160),GI$1))+1),\"\")","v":""},{"$f":"IFERROR(MID($V49,FIND(CHAR(160),SUBSTITUTE($V49,\"{\",CHAR(160),GJ$1)),FIND(CHAR(160),SUBSTITUTE($V49,\"}\",CHAR(160),GJ$1))-FIND(CHAR(160),SUBSTITUTE($V49,\"{\",CHAR(160),GJ$1))+1),\"\")","v":""},{"$f":"IFERROR(MID($V49,FIND(CHAR(160),SUBSTITUTE($V49,\"{\",CHAR(160),GK$1)),FIND(CHAR(160),SUBSTITUTE($V49,\"}\",CHAR(160),GK$1))-FIND(CHAR(160),SUBSTITUTE($V49,\"{\",CHAR(160),GK$1))+1),\"\")","v":""},{"$f":"IFERROR(MID($V49,FIND(CHAR(160),SUBSTITUTE($V49,\"{\",CHAR(160),GL$1)),FIND(CHAR(160),SUBSTITUTE($V49,\"}\",CHAR(160),GL$1))-FIND(CHAR(160),SUBSTITUTE($V49,\"{\",CHAR(160),GL$1))+1),\"\")","v":""},{"$f":"IFERROR(MID($V49,FIND(CHAR(160),SUBSTITUTE($V49,\"{\",CHAR(160),GM$1)),FIND(CHAR(160),SUBSTITUTE($V49,\"}\",CHAR(160),GM$1))-FIND(CHAR(160),SUBSTITUTE($V49,\"{\",CHAR(160),GM$1))+1),\"\")","v":""},{"$f":"IFERROR(MID($V49,FIND(CHAR(160),SUBSTITUTE($V49,\"{\",CHAR(160),GN$1)),FIND(CHAR(160),SUBSTITUTE($V49,\"}\",CHAR(160),GN$1))-FIND(CHAR(160),SUBSTITUTE($V49,\"{\",CHAR(160),GN$1))+1),\"\")","v":""},{"$f":"IFERROR(MID($V49,FIND(CHAR(160),SUBSTITUTE($V49,\"{\",CHAR(160),GO$1)),FIND(CHAR(160),SUBSTITUTE($V49,\"}\",CHAR(160),GO$1))-FIND(CHAR(160),SUBSTITUTE($V49,\"{\",CHAR(160),GO$1))+1),\"\")","v":"{Measure:Quantity}"},{"$f":"IFERROR(MID($V49,FIND(CHAR(160),SUBSTITUTE($V49,\"{\",CHAR(160),GP$1)),FIND(CHAR(160),SUBSTITUTE($V49,\"}\",CHAR(160),GP$1))-FIND(CHAR(160),SUBSTITUTE($V49,\"{\",CHAR(160),GP$1))+1),\"\")","v":"{Unit Size  - Tons}"},{"$f":"IFERROR(MID($W49,FIND(CHAR(160),SUBSTITUTE($W49,\"{\",CHAR(160),GQ$1)),FIND(CHAR(160),SUBSTITUTE($W49,\"}\",CHAR(160),GQ$1))-FIND(CHAR(160),SUBSTITUTE($W49,\"{\",CHAR(160),GQ$1))+1),\"\")","v":""},{"$f":"IFERROR(MID($W49,FIND(CHAR(160),SUBSTITUTE($W49,\"{\",CHAR(160),GR$1)),FIND(CHAR(160),SUBSTITUTE($W49,\"}\",CHAR(160),GR$1))-FIND(CHAR(160),SUBSTITUTE($W49,\"{\",CHAR(160),GR$1))+1),\"\")","v":""},{"$f":"IFERROR(MID($W49,FIND(CHAR(160),SUBSTITUTE($W49,\"{\",CHAR(160),GS$1)),FIND(CHAR(160),SUBSTITUTE($W49,\"}\",CHAR(160),GS$1))-FIND(CHAR(160),SUBSTITUTE($W49,\"{\",CHAR(160),GS$1))+1),\"\")","v":""},{"$f":"IFERROR(MID($W49,FIND(CHAR(160),SUBSTITUTE($W49,\"{\",CHAR(160),GT$1)),FIND(CHAR(160),SUBSTITUTE($W49,\"}\",CHAR(160),GT$1))-FIND(CHAR(160),SUBSTITUTE($W49,\"{\",CHAR(160),GT$1))+1),\"\")","v":""},{"$f":"IFERROR(MID($W49,FIND(CHAR(160),SUBSTITUTE($W49,\"{\",CHAR(160),GU$1)),FIND(CHAR(160),SUBSTITUTE($W49,\"}\",CHAR(160),GU$1))-FIND(CHAR(160),SUBSTITUTE($W49,\"{\",CHAR(160),GU$1))+1),\"\")","v":""},{"$f":"IFERROR(MID($W49,FIND(CHAR(160),SUBSTITUTE($W49,\"{\",CHAR(160),GV$1)),FIND(CHAR(160),SUBSTITUTE($W49,\"}\",CHAR(160),GV$1))-FIND(CHAR(160),SUBSTITUTE($W49,\"{\",CHAR(160),GV$1))+1),\"\")","v":""},{"$f":"IFERROR(MID($W49,FIND(CHAR(160),SUBSTITUTE($W49,\"{\",CHAR(160),GW$1)),FIND(CHAR(160),SUBSTITUTE($W49,\"}\",CHAR(160),GW$1))-FIND(CHAR(160),SUBSTITUTE($W49,\"{\",CHAR(160),GW$1))+1),\"\")","v":""},{"$f":"IFERROR(MID($W49,FIND(CHAR(160),SUBSTITUTE($W49,\"{\",CHAR(160),GX$1)),FIND(CHAR(160),SUBSTITUTE($W49,\"}\",CHAR(160),GX$1))-FIND(CHAR(160),SUBSTITUTE($W49,\"{\",CHAR(160),GX$1))+1),\"\")","v":""},{"$f":"IFERROR(MID($W49,FIND(CHAR(160),SUBSTITUTE($W49,\"{\",CHAR(160),GY$1)),FIND(CHAR(160),SUBSTITUTE($W49,\"}\",CHAR(160),GY$1))-FIND(CHAR(160),SUBSTITUTE($W49,\"{\",CHAR(160),GY$1))+1),\"\")","v":""},{"$f":"IFERROR(MID($W49,FIND(CHAR(160),SUBSTITUTE($W49,\"{\",CHAR(160),GZ$1)),FIND(CHAR(160),SUBSTITUTE($W49,\"}\",CHAR(160),GZ$1))-FIND(CHAR(160),SUBSTITUTE($W49,\"{\",CHAR(160),GZ$1))+1),\"\")","v":""},{"$f":"IFERROR(MID($X49,FIND(CHAR(160),SUBSTITUTE($X49,\"{\",CHAR(160),HA$1)),FIND(CHAR(160),SUBSTITUTE($X49,\"}\",CHAR(160),HA$1))-FIND(CHAR(160),SUBSTITUTE($X49,\"{\",CHAR(160),HA$1))+1),\"\")","v":""},{"$f":"IFERROR(MID($X49,FIND(CHAR(160),SUBSTITUTE($X49,\"{\",CHAR(160),HB$1)),FIND(CHAR(160),SUBSTITUTE($X49,\"}\",CHAR(160),HB$1))-FIND(CHAR(160),SUBSTITUTE($X49,\"{\",CHAR(160),HB$1))+1),\"\")","v":""},{"$f":"IFERROR(MID($X49,FIND(CHAR(160),SUBSTITUTE($X49,\"{\",CHAR(160),HC$1)),FIND(CHAR(160),SUBSTITUTE($X49,\"}\",CHAR(160),HC$1))-FIND(CHAR(160),SUBSTITUTE($X49,\"{\",CHAR(160),HC$1))+1),\"\")","v":""},{"$f":"IFERROR(MID($X49,FIND(CHAR(160),SUBSTITUTE($X49,\"{\",CHAR(160),HD$1)),FIND(CHAR(160),SUBSTITUTE($X49,\"}\",CHAR(160),HD$1))-FIND(CHAR(160),SUBSTITUTE($X49,\"{\",CHAR(160),HD$1))+1),\"\")","v":""},{"$f":"IFERROR(MID($X49,FIND(CHAR(160),SUBSTITUTE($X49,\"{\",CHAR(160),HE$1)),FIND(CHAR(160),SUBSTITUTE($X49,\"}\",CHAR(160),HE$1))-FIND(CHAR(160),SUBSTITUTE($X49,\"{\",CHAR(160),HE$1))+1),\"\")","v":""},{"$f":"IFERROR(MID($X49,FIND(CHAR(160),SUBSTITUTE($X49,\"{\",CHAR(160),HF$1)),FIND(CHAR(160),SUBSTITUTE($X49,\"}\",CHAR(160),HF$1))-FIND(CHAR(160),SUBSTITUTE($X49,\"{\",CHAR(160),HF$1))+1),\"\")","v":""},{"$f":"IFERROR(MID($X49,FIND(CHAR(160),SUBSTITUTE($X49,\"{\",CHAR(160),HG$1)),FIND(CHAR(160),SUBSTITUTE($X49,\"}\",CHAR(160),HG$1))-FIND(CHAR(160),SUBSTITUTE($X49,\"{\",CHAR(160),HG$1))+1),\"\")","v":""},{"$f":"IFERROR(MID($X49,FIND(CHAR(160),SUBSTITUTE($X49,\"{\",CHAR(160),HH$1)),FIND(CHAR(160),SUBSTITUTE($X49,\"}\",CHAR(160),HH$1))-FIND(CHAR(160),SUBSTITUTE($X49,\"{\",CHAR(160),HH$1))+1),\"\")","v":""},{"$f":"IFERROR(MID($X49,FIND(CHAR(160),SUBSTITUTE($X49,\"{\",CHAR(160),HI$1)),FIND(CHAR(160),SUBSTITUTE($X49,\"}\",CHAR(160),HI$1))-FIND(CHAR(160),SUBSTITUTE($X49,\"{\",CHAR(160),HI$1))+1),\"\")","v":""},{"$f":"IFERROR(MID($X49,FIND(CHAR(160),SUBSTITUTE($X49,\"{\",CHAR(160),HJ$1)),FIND(CHAR(160),SUBSTITUTE($X49,\"}\",CHAR(160),HJ$1))-FIND(CHAR(160),SUBSTITUTE($X49,\"{\",CHAR(160),HJ$1))+1),\"\")","v":""},{"$f":"IFERROR(MID($Y49,FIND(CHAR(160),SUBSTITUTE($Y49,\"{\",CHAR(160),HK$1)),FIND(CHAR(160),SUBSTITUTE($Y49,\"}\",CHAR(160),HK$1))-FIND(CHAR(160),SUBSTITUTE($Y49,\"{\",CHAR(160),HK$1))+1),\"\")","v":""},{"$f":"IFERROR(MID($Y49,FIND(CHAR(160),SUBSTITUTE($Y49,\"{\",CHAR(160),HL$1)),FIND(CHAR(160),SUBSTITUTE($Y49,\"}\",CHAR(160),HL$1))-FIND(CHAR(160),SUBSTITUTE($Y49,\"{\",CHAR(160),HL$1))+1),\"\")","v":""},{"$f":"IFERROR(MID($Y49,FIND(CHAR(160),SUBSTITUTE($Y49,\"{\",CHAR(160),HM$1)),FIND(CHAR(160),SUBSTITUTE($Y49,\"}\",CHAR(160),HM$1))-FIND(CHAR(160),SUBSTITUTE($Y49,\"{\",CHAR(160),HM$1))+1),\"\")","v":""},{"$f":"IFERROR(MID($Y49,FIND(CHAR(160),SUBSTITUTE($Y49,\"{\",CHAR(160),HN$1)),FIND(CHAR(160),SUBSTITUTE($Y49,\"}\",CHAR(160),HN$1))-FIND(CHAR(160),SUBSTITUTE($Y49,\"{\",CHAR(160),HN$1))+1),\"\")","v":""},{"$f":"IFERROR(MID($Y49,FIND(CHAR(160),SUBSTITUTE($Y49,\"{\",CHAR(160),HO$1)),FIND(CHAR(160),SUBSTITUTE($Y49,\"}\",CHAR(160),HO$1))-FIND(CHAR(160),SUBSTITUTE($Y49,\"{\",CHAR(160),HO$1))+1),\"\")","v":""},{"$f":"IFERROR(MID($Y49,FIND(CHAR(160),SUBSTITUTE($Y49,\"{\",CHAR(160),HP$1)),FIND(CHAR(160),SUBSTITUTE($Y49,\"}\",CHAR(160),HP$1))-FIND(CHAR(160),SUBSTITUTE($Y49,\"{\",CHAR(160),HP$1))+1),\"\")","v":""},{"$f":"IFERROR(MID($Y49,FIND(CHAR(160),SUBSTITUTE($Y49,\"{\",CHAR(160),HQ$1)),FIND(CHAR(160),SUBSTITUTE($Y49,\"}\",CHAR(160),HQ$1))-FIND(CHAR(160),SUBSTITUTE($Y49,\"{\",CHAR(160),HQ$1))+1),\"\")","v":""},{"$f":"IFERROR(MID($Y49,FIND(CHAR(160),SUBSTITUTE($Y49,\"{\",CHAR(160),HR$1)),FIND(CHAR(160),SUBSTITUTE($Y49,\"}\",CHAR(160),HR$1))-FIND(CHAR(160),SUBSTITUTE($Y49,\"{\",CHAR(160),HR$1))+1),\"\")","v":""},{"$f":"IFERROR(MID($Y49,FIND(CHAR(160),SUBSTITUTE($Y49,\"{\",CHAR(160),HS$1)),FIND(CHAR(160),SUBSTITUTE($Y49,\"}\",CHAR(160),HS$1))-FIND(CHAR(160),SUBSTITUTE($Y49,\"{\",CHAR(160),HS$1))+1),\"\")","v":""},{"$f":"IFERROR(MID($Y49,FIND(CHAR(160),SUBSTITUTE($Y49,\"{\",CHAR(160),HT$1)),FIND(CHAR(160),SUBSTITUTE($Y49,\"}\",CHAR(160),HT$1))-FIND(CHAR(160),SUBSTITUTE($Y49,\"{\",CHAR(160),HT$1))+1),\"\")","v":""},{"$f":"IFERROR(MID($Z49,FIND(CHAR(160),SUBSTITUTE($Z49,\"{\",CHAR(160),HU$1)),FIND(CHAR(160),SUBSTITUTE($Z49,\"}\",CHAR(160),HU$1))-FIND(CHAR(160),SUBSTITUTE($Z49,\"{\",CHAR(160),HU$1))+1),\"\")","v":""},{"$f":"IFERROR(MID($Z49,FIND(CHAR(160),SUBSTITUTE($Z49,\"{\",CHAR(160),HV$1)),FIND(CHAR(160),SUBSTITUTE($Z49,\"}\",CHAR(160),HV$1))-FIND(CHAR(160),SUBSTITUTE($Z49,\"{\",CHAR(160),HV$1))+1),\"\")","v":""},{"$f":"IFERROR(MID($Z49,FIND(CHAR(160),SUBSTITUTE($Z49,\"{\",CHAR(160),HW$1)),FIND(CHAR(160),SUBSTITUTE($Z49,\"}\",CHAR(160),HW$1))-FIND(CHAR(160),SUBSTITUTE($Z49,\"{\",CHAR(160),HW$1))+1),\"\")","v":""},{"$f":"IFERROR(MID($Z49,FIND(CHAR(160),SUBSTITUTE($Z49,\"{\",CHAR(160),HX$1)),FIND(CHAR(160),SUBSTITUTE($Z49,\"}\",CHAR(160),HX$1))-FIND(CHAR(160),SUBSTITUTE($Z49,\"{\",CHAR(160),HX$1))+1),\"\")","v":""},{"$f":"IFERROR(MID($Z49,FIND(CHAR(160),SUBSTITUTE($Z49,\"{\",CHAR(160),HY$1)),FIND(CHAR(160),SUBSTITUTE($Z49,\"}\",CHAR(160),HY$1))-FIND(CHAR(160),SUBSTITUTE($Z49,\"{\",CHAR(160),HY$1))+1),\"\")","v":""},{"$f":"IFERROR(MID($Z49,FIND(CHAR(160),SUBSTITUTE($Z49,\"{\",CHAR(160),HZ$1)),FIND(CHAR(160),SUBSTITUTE($Z49,\"}\",CHAR(160),HZ$1))-FIND(CHAR(160),SUBSTITUTE($Z49,\"{\",CHAR(160),HZ$1))+1),\"\")","v":""},{"$f":"IFERROR(MID($Z49,FIND(CHAR(160),SUBSTITUTE($Z49,\"{\",CHAR(160),IA$1)),FIND(CHAR(160),SUBSTITUTE($Z49,\"}\",CHAR(160),IA$1))-FIND(CHAR(160),SUBSTITUTE($Z49,\"{\",CHAR(160),IA$1))+1),\"\")","v":""},{"$f":"IFERROR(MID($Z49,FIND(CHAR(160),SUBSTITUTE($Z49,\"{\",CHAR(160),IB$1)),FIND(CHAR(160),SUBSTITUTE($Z49,\"}\",CHAR(160),IB$1))-FIND(CHAR(160),SUBSTITUTE($Z49,\"{\",CHAR(160),IB$1))+1),\"\")","v":""},{"$f":"IFERROR(MID($Z49,FIND(CHAR(160),SUBSTITUTE($Z49,\"{\",CHAR(160),IC$1)),FIND(CHAR(160),SUBSTITUTE($Z49,\"}\",CHAR(160),IC$1))-FIND(CHAR(160),SUBSTITUTE($Z49,\"{\",CHAR(160),IC$1))+1),\"\")","v":""},{"$f":"IFERROR(MID($Z49,FIND(CHAR(160),SUBSTITUTE($Z49,\"{\",CHAR(160),ID$1)),FIND(CHAR(160),SUBSTITUTE($Z49,\"}\",CHAR(160),ID$1))-FIND(CHAR(160),SUBSTITUTE($Z49,\"{\",CHAR(160),ID$1))+1),\"\")","v":""},{"$f":"IFERROR(MID($AA49,FIND(CHAR(160),SUBSTITUTE($AA49,\"{\",CHAR(160),IE$1)),FIND(CHAR(160),SUBSTITUTE($AA49,\"}\",CHAR(160),IE$1))-FIND(CHAR(160),SUBSTITUTE($AA49,\"{\",CHAR(160),IE$1))+1),\"\")","v":""},{"$f":"IFERROR(MID($AA49,FIND(CHAR(160),SUBSTITUTE($AA49,\"{\",CHAR(160),IF$1)),FIND(CHAR(160),SUBSTITUTE($AA49,\"}\",CHAR(160),IF$1))-FIND(CHAR(160),SUBSTITUTE($AA49,\"{\",CHAR(160),IF$1))+1),\"\")","v":""},{"$f":"IFERROR(MID($AA49,FIND(CHAR(160),SUBSTITUTE($AA49,\"{\",CHAR(160),IG$1)),FIND(CHAR(160),SUBSTITUTE($AA49,\"}\",CHAR(160),IG$1))-FIND(CHAR(160),SUBSTITUTE($AA49,\"{\",CHAR(160),IG$1))+1),\"\")","v":""},{"$f":"IFERROR(MID($AA49,FIND(CHAR(160),SUBSTITUTE($AA49,\"{\",CHAR(160),IH$1)),FIND(CHAR(160),SUBSTITUTE($AA49,\"}\",CHAR(160),IH$1))-FIND(CHAR(160),SUBSTITUTE($AA49,\"{\",CHAR(160),IH$1))+1),\"\")","v":""},{"$f":"IFERROR(MID($AA49,FIND(CHAR(160),SUBSTITUTE($AA49,\"{\",CHAR(160),II$1)),FIND(CHAR(160),SUBSTITUTE($AA49,\"}\",CHAR(160),II$1))-FIND(CHAR(160),SUBSTITUTE($AA49,\"{\",CHAR(160),II$1))+1),\"\")","v":""},{"$f":"IFERROR(MID($AA49,FIND(CHAR(160),SUBSTITUTE($AA49,\"{\",CHAR(160),IJ$1)),FIND(CHAR(160),SUBSTITUTE($AA49,\"}\",CHAR(160),IJ$1))-FIND(CHAR(160),SUBSTITUTE($AA49,\"{\",CHAR(160),IJ$1))+1),\"\")","v":""},{"$f":"IFERROR(MID($AA49,FIND(CHAR(160),SUBSTITUTE($AA49,\"{\",CHAR(160),IK$1)),FIND(CHAR(160),SUBSTITUTE($AA49,\"}\",CHAR(160),IK$1))-FIND(CHAR(160),SUBSTITUTE($AA49,\"{\",CHAR(160),IK$1))+1),\"\")","v":""},{"$f":"IFERROR(MID($AA49,FIND(CHAR(160),SUBSTITUTE($AA49,\"{\",CHAR(160),IL$1)),FIND(CHAR(160),SUBSTITUTE($AA49,\"}\",CHAR(160),IL$1))-FIND(CHAR(160),SUBSTITUTE($AA49,\"{\",CHAR(160),IL$1))+1),\"\")","v":""},{"$f":"IFERROR(MID($AA49,FIND(CHAR(160),SUBSTITUTE($AA49,\"{\",CHAR(160),IM$1)),FIND(CHAR(160),SUBSTITUTE($AA49,\"}\",CHAR(160),IM$1))-FIND(CHAR(160),SUBSTITUTE($AA49,\"{\",CHAR(160),IM$1))+1),\"\")","v":""},{"$f":"IFERROR(MID($AA49,FIND(CHAR(160),SUBSTITUTE($AA49,\"{\",CHAR(160),IN$1)),FIND(CHAR(160),SUBSTITUTE($AA49,\"}\",CHAR(160),IN$1))-FIND(CHAR(160),SUBSTITUTE($AA49,\"{\",CHAR(160),IN$1))+1),\"\")","v":""},{"$f":"IFERROR(MID($AB49,FIND(CHAR(160),SUBSTITUTE($AB49,\"{\",CHAR(160),IO$1)),FIND(CHAR(160),SUBSTITUTE($AB49,\"}\",CHAR(160),IO$1))-FIND(CHAR(160),SUBSTITUTE($AB49,\"{\",CHAR(160),IO$1))+1),\"\")","v":""},{"$f":"IFERROR(MID($AB49,FIND(CHAR(160),SUBSTITUTE($AB49,\"{\",CHAR(160),IP$1)),FIND(CHAR(160),SUBSTITUTE($AB49,\"}\",CHAR(160),IP$1))-FIND(CHAR(160),SUBSTITUTE($AB49,\"{\",CHAR(160),IP$1))+1),\"\")","v":""},{"$f":"IFERROR(MID($AB49,FIND(CHAR(160),SUBSTITUTE($AB49,\"{\",CHAR(160),IQ$1)),FIND(CHAR(160),SUBSTITUTE($AB49,\"}\",CHAR(160),IQ$1))-FIND(CHAR(160),SUBSTITUTE($AB49,\"{\",CHAR(160),IQ$1))+1),\"\")","v":""},{"$f":"IFERROR(MID($AB49,FIND(CHAR(160),SUBSTITUTE($AB49,\"{\",CHAR(160),IR$1)),FIND(CHAR(160),SUBSTITUTE($AB49,\"}\",CHAR(160),IR$1))-FIND(CHAR(160),SUBSTITUTE($AB49,\"{\",CHAR(160),IR$1))+1),\"\")","v":""},{"$f":"IFERROR(MID($AB49,FIND(CHAR(160),SUBSTITUTE($AB49,\"{\",CHAR(160),IS$1)),FIND(CHAR(160),SUBSTITUTE($AB49,\"}\",CHAR(160),IS$1))-FIND(CHAR(160),SUBSTITUTE($AB49,\"{\",CHAR(160),IS$1))+1),\"\")","v":""},{"$f":"IFERROR(MID($AB49,FIND(CHAR(160),SUBSTITUTE($AB49,\"{\",CHAR(160),IT$1)),FIND(CHAR(160),SUBSTITUTE($AB49,\"}\",CHAR(160),IT$1))-FIND(CHAR(160),SUBSTITUTE($AB49,\"{\",CHAR(160),IT$1))+1),\"\")","v":""},{"$f":"IFERROR(MID($AB49,FIND(CHAR(160),SUBSTITUTE($AB49,\"{\",CHAR(160),IU$1)),FIND(CHAR(160),SUBSTITUTE($AB49,\"}\",CHAR(160),IU$1))-FIND(CHAR(160),SUBSTITUTE($AB49,\"{\",CHAR(160),IU$1))+1),\"\")","v":""},{"$f":"IFERROR(MID($AB49,FIND(CHAR(160),SUBSTITUTE($AB49,\"{\",CHAR(160),IV$1)),FIND(CHAR(160),SUBSTITUTE($AB49,\"}\",CHAR(160),IV$1))-FIND(CHAR(160),SUBSTITUTE($AB49,\"{\",CHAR(160),IV$1))+1),\"\")","v":""},{"$f":"IFERROR(MID($AB49,FIND(CHAR(160),SUBSTITUTE($AB49,\"{\",CHAR(160),IW$1)),FIND(CHAR(160),SUBSTITUTE($AB49,\"}\",CHAR(160),IW$1))-FIND(CHAR(160),SUBSTITUTE($AB49,\"{\",CHAR(160),IW$1))+1),\"\")","v":""},{"$f":"IFERROR(MID($AB49,FIND(CHAR(160),SUBSTITUTE($AB49,\"{\",CHAR(160),IX$1)),FIND(CHAR(160),SUBSTITUTE($AB49,\"}\",CHAR(160),IX$1))-FIND(CHAR(160),SUBSTITUTE($AB49,\"{\",CHAR(160),IX$1))+1),\"\")","v":""},null,{"$f":"10-COUNTIF(DU49:ED49,\"\")","v":5}]
["C&I HVAC - Electric","Vertical Packaged Terminal Heat Pump Retrofit","VPTHPR","2021-07-01","2021-09-09","Calculated","({Supplier Price for Materials}+{Labor Cost})",0,"Calculated","{Measure:Quantity}*if({Cooling Capacity (Btu/h)}<7000,1100,if({Cooling Capacity (Btu/h)}<=15000,1350,1600))",0,null,null,"Calculated","{Measure:Quantity} * ({Cooling Capacity (Btu/h)}/1000*(1/{EER_base}-1/{EER})*829*if({Operation Jun-Oct}=0,0,1)+{Heating Capacity (Btu/h)}/1000/3.412*(1/{COP_base}-1/{COP})*2200*({Operation Jun-Oct}+{Operation Nov}+{Operation Dec-Mar}+{Operation Apr}+{Operation May})/100)",null,null,"{Measure:Quantity} *Max(if({Operation Dec-Mar}=0,0,{Heating Capacity (Btu/h)}/1000/3.412*(1/{COP_base}-1/{COP})),if({Operation Jun-Oct}=0,0,{Cooling Capacity (Btu/h)}/1000*(1/{EER_base}-1/{EER})))",null,null,"if({Operation Dec-Mar}=0,0,{Measure:Quantity} * ({Heating Capacity (Btu/h)}/1000/3.412*(1/{COP_base}-1/{COP})*{Factor:WinterCF}))","if({Operation Jun-Oct}=0,0,{Measure:Quantity} * ({Cooling Capacity (Btu/h)}/1000*(1/{EER_base}-1/{EER})*{Factor:SummerCF}))",null,null,null,null,null,null,"2021-05-25","2022-06-30",15,0.56999999999999995,0.372,0.17,0.03,0.62,0.18,1,1,1,0.25,0,null,{"$f":"DU50","v":"{Supplier Price for Materials}"},800,{"$f":"DV50","v":"{Labor Cost}"},500,{"$f":"DW50","v":"{Measure:Quantity}"},1,{"$f":"DX50","v":"{Cooling Capacity (Btu/h)}"},20000,{"$f":"DY50","v":"{EER_base}"},11.9,{"$f":"DZ50","v":"{EER}"},13,{"$f":"EA50","v":"{Operation Jun-Oct}"},11,{"$f":"EB50","v":"{Heating Capacity (Btu/h)}"},7000,{"$f":"EC50","v":"{COP_base}"},1,{"$f":"ED50","v":"{COP}"},4,{"$f":"AW50 * (AY50/1000*(1/BA50-1/BC50)*829*IF(BE50=0,0,1)+BG50/1000/3.412*(1/BI50-1/BK50)*2200*(BE50+11+66+8+4)/100)","v":3503.0040671692968},0,0,{"$f":"AW50 *MAX(IF(11=0,0,BG50/1000/3.412*(1/BI50-1/BK50)),IF(BE50=0,0,AY50/1000*(1/BA50-1/BC50)))","v":1.5386869871043376},0,0,{"$f":"IF(11=0,0,AW50 * (BG50/1000/3.412*(1/BI50-1/BK50)*AF50))","v":0.87705158264947236},{"$f":"IF(BE50=0,0,AW50 * (AY50/1000*(1/BA50-1/BC50)*AG50))","v":5.2902391725921052E-2},0,0,0,0,0,0,null,"Com","Default DR",{"$f":"Benefits(BL50,BR50,BS50,BT50,BU50,BV50,BW50,BX50,BY50,BZ50,AE50,AH50,AI50,AJ50,AK50,AL50,AM50,AN50,AO50,AP50,CA50,CB50)","v":4308.1737404263267},3402.2622730491598,0,0,0,0,0,0,0,{"$f":"SUMPRODUCT(CC50:CK50,--(CC50:CK50>0))","v":7710.4360134754861},{"$f":"-SUMPRODUCT(CC50:CK50,--(CC50:CK50<0))","v":0},null,{"$f":"(AS50+AU50)","v":1300},null,null,{"$f":"CM50+CO50","v":1300},{"$f":"IF(NetOrGross=\"Net\",(1-AO50+AP50),1)","v":1},{"$f":"(SUMPRODUCT(CC50:CJ50,--(CC50:CJ50>0))+CN50)*CS50/((-SUMPRODUCT(CC50:CJ50,--(CC50:CJ50<0))+MAX(CO50,CV50)+CP50+CQ50)*CS50+IF(FRIncentives=\"Yes\",CV50*(1-CS50),0))","v":4.8190225084221785},1,{"$f":"AW50*IF(AY50<7000,1100,IF(AY50<=15000,1350,1600))","v":1600},null,"RGGI","y",null,{"$f":"IF(F50=\"Manual Entry\",\"Manual\",IF(G50=\"\",0,\"X=\"&SUBSTITUTE(SUBSTITUTE(SUBSTITUTE(SUBSTITUTE(SUBSTITUTE(SUBSTITUTE(SUBSTITUTE(SUBSTITUTE(SUBSTITUTE(SUBSTITUTE(SUBSTITUTE(SUBSTITUTE(G50,$ED50,$ED$2&ROW($ED50)),$EC50,$EC$2&ROW($EC50)),$EB50,$EB$2&ROW($EB50)),$EA50,$EA$2&ROW($EA50)),$DZ50,$DZ$2&ROW($DZ50)),$DY50,$DY$2&ROW($DY50)),$DX50,$DX$2&ROW($DX50)),$DW50,$DW$2&ROW($DW50)),$DV50,$DV$2&ROW($DV50)),$DU50,$DU$2&ROW($DU50)),$DT50,$DT$2&ROW($DT50)),$DS50,$DS$2&ROW($DS50))))","v":"X=(AS50+AU50)"},{"$f":"IF(I50=\"Manual Entry\",\"Manual\",IF(J50=\"\",0,\"X=\"&SUBSTITUTE(SUBSTITUTE(SUBSTITUTE(SUBSTITUTE(SUBSTITUTE(SUBSTITUTE(SUBSTITUTE(SUBSTITUTE(SUBSTITUTE(SUBSTITUTE(SUBSTITUTE(SUBSTITUTE(J50,$ED50,$ED$2&ROW($ED50)),$EC50,$EC$2&ROW($EC50)),$EB50,$EB$2&ROW($EB50)),$EA50,$EA$2&ROW($EA50)),$DZ50,$DZ$2&ROW($DZ50)),$DY50,$DY$2&ROW($DY50)),$DX50,$DX$2&ROW($DX50)),$DW50,$DW$2&ROW($DW50)),$DV50,$DV$2&ROW($DV50)),$DU50,$DU$2&ROW($DU50)),$DT50,$DT$2&ROW($DT50)),$DS50,$DS$2&ROW($DS50))))","v":"X=AW50*if(AY50<7000,1100,if(AY50<=15000,1350,1600))"},{"$f":"IF(O50=\"\",0,\"X=\"&SUBSTITUTE(SUBSTITUTE(SUBSTITUTE(SUBSTITUTE(SUBSTITUTE(SUBSTITUTE(SUBSTITUTE(SUBSTITUTE(SUBSTITUTE(SUBSTITUTE(SUBSTITUTE(SUBSTITUTE(O50,$ED50,$ED$2&ROW($ED50)),$EC50,$EC$2&ROW($EC50)),$EB50,$EB$2&ROW($EB50)),$EA50,$EA$2&ROW($EA50)),$DZ50,$DZ$2&ROW($DZ50)),$DY50,$DY$2&ROW($DY50)),$DX50,$DX$2&ROW($DX50)),$DW50,$DW$2&ROW($DW50)),$DV50,$DV$2&ROW($DV50)),$DU50,$DU$2&ROW($DU50)),$DT50,$DT$2&ROW($DT50)),$DS50,$DS$2&ROW($DS50)))","v":"X=AW50 * (AY50/1000*(1/BA50-1/BC50)*829*if(BE50=0,0,1)+BG50/1000/3.412*(1/BI50-1/BK50)*2200*(BE50+{Operation Nov}+{Operation Dec-Mar}+{Operation Apr}+{Operation May})/100)"},{"$f":"IF(P50=\"\",0,\"X=\"&SUBSTITUTE(SUBSTITUTE(SUBSTITUTE(SUBSTITUTE(SUBSTITUTE(SUBSTITUTE(SUBSTITUTE(SUBSTITUTE(SUBSTITUTE(SUBSTITUTE(SUBSTITUTE(SUBSTITUTE(P50,$ED50,$ED$2&ROW($ED50)),$EC50,$EC$2&ROW($EC50)),$EB50,$EB$2&ROW($EB50)),$EA50,$EA$2&ROW($EA50)),$DZ50,$DZ$2&ROW($DZ50)),$DY50,$DY$2&ROW($DY50)),$DX50,$DX$2&ROW($DX50)),$DW50,$DW$2&ROW($DW50)),$DV50,$DV$2&ROW($DV50)),$DU50,$DU$2&ROW($DU50)),$DT50,$DT$2&ROW($DT50)),$DS50,$DS$2&ROW($DS50)))","v":0},{"$f":"IF(Q50=\"\",0,\"X=\"&SUBSTITUTE(SUBSTITUTE(SUBSTITUTE(SUBSTITUTE(SUBSTITUTE(SUBSTITUTE(SUBSTITUTE(SUBSTITUTE(SUBSTITUTE(SUBSTITUTE(SUBSTITUTE(SUBSTITUTE(Q50,$ED50,$ED$2&ROW($ED50)),$EC50,$EC$2&ROW($EC50)),$EB50,$EB$2&ROW($EB50)),$EA50,$EA$2&ROW($EA50)),$DZ50,$DZ$2&ROW($DZ50)),$DY50,$DY$2&ROW($DY50)),$DX50,$DX$2&ROW($DX50)),$DW50,$DW$2&ROW($DW50)),$DV50,$DV$2&ROW($DV50)),$DU50,$DU$2&ROW($DU50)),$DT50,$DT$2&ROW($DT50)),$DS50,$DS$2&ROW($DS50)))","v":0},{"$f":"IF(R50=\"\",0,\"X=\"&SUBSTITUTE(SUBSTITUTE(SUBSTITUTE(SUBSTITUTE(SUBSTITUTE(SUBSTITUTE(SUBSTITUTE(SUBSTITUTE(SUBSTITUTE(SUBSTITUTE(SUBSTITUTE(SUBSTITUTE(R50,$ED50,$ED$2&ROW($ED50)),$EC50,$EC$2&ROW($EC50)),$EB50,$EB$2&ROW($EB50)),$EA50,$EA$2&ROW($EA50)),$DZ50,$DZ$2&ROW($DZ50)),$DY50,$DY$2&ROW($DY50)),$DX50,$DX$2&ROW($DX50)),$DW50,$DW$2&ROW($DW50)),$DV50,$DV$2&ROW($DV50)),$DU50,$DU$2&ROW($DU50)),$DT50,$DT$2&ROW($DT50)),$DS50,$DS$2&ROW($DS50)))","v":"X=AW50 *Max(if({Operation Dec-Mar}=0,0,BG50/1000/3.412*(1/BI50-1/BK50)),if(BE50=0,0,AY50/1000*(1/BA50-1/BC50)))"},{"$f":"IF(S50=\"\",0,\"X=\"&SUBSTITUTE(SUBSTITUTE(SUBSTITUTE(SUBSTITUTE(SUBSTITUTE(SUBSTITUTE(SUBSTITUTE(SUBSTITUTE(SUBSTITUTE(SUBSTITUTE(SUBSTITUTE(SUBSTITUTE(S50,$ED50,$ED$2&ROW($ED50)),$EC50,$EC$2&ROW($EC50)),$EB50,$EB$2&ROW($EB50)),$EA50,$EA$2&ROW($EA50)),$DZ50,$DZ$2&ROW($DZ50)),$DY50,$DY$2&ROW($DY50)),$DX50,$DX$2&ROW($DX50)),$DW50,$DW$2&ROW($DW50)),$DV50,$DV$2&ROW($DV50)),$DU50,$DU$2&ROW($DU50)),$DT50,$DT$2&ROW($DT50)),$DS50,$DS$2&ROW($DS50)))","v":0},{"$f":"IF(T50=\"\",0,\"X=\"&SUBSTITUTE(SUBSTITUTE(SUBSTITUTE(SUBSTITUTE(SUBSTITUTE(SUBSTITUTE(SUBSTITUTE(SUBSTITUTE(SUBSTITUTE(SUBSTITUTE(SUBSTITUTE(SUBSTITUTE(T50,$ED50,$ED$2&ROW($ED50)),$EC50,$EC$2&ROW($EC50)),$EB50,$EB$2&ROW($EB50)),$EA50,$EA$2&ROW($EA50)),$DZ50,$DZ$2&ROW($DZ50)),$DY50,$DY$2&ROW($DY50)),$DX50,$DX$2&ROW($DX50)),$DW50,$DW$2&ROW($DW50)),$DV50,$DV$2&ROW($DV50)),$DU50,$DU$2&ROW($DU50)),$DT50,$DT$2&ROW($DT50)),$DS50,$DS$2&ROW($DS50)))","v":0},{"$f":"IF(U50=\"\",0,\"X=\"&SUBSTITUTE(SUBSTITUTE(SUBSTITUTE(SUBSTITUTE(SUBSTITUTE(SUBSTITUTE(SUBSTITUTE(SUBSTITUTE(SUBSTITUTE(SUBSTITUTE(SUBSTITUTE(SUBSTITUTE(U50,$ED50,$ED$2&ROW($ED50)),$EC50,$EC$2&ROW($EC50)),$EB50,$EB$2&ROW($EB50)),$EA50,$EA$2&ROW($EA50)),$DZ50,$DZ$2&ROW($DZ50)),$DY50,$DY$2&ROW($DY50)),$DX50,$DX$2&ROW($DX50)),$DW50,$DW$2&ROW($DW50)),$DV50,$DV$2&ROW($DV50)),$DU50,$DU$2&ROW($DU50)),$DT50,$DT$2&ROW($DT50)),$DS50,$DS$2&ROW($DS50)))","v":"X=if({Operation Dec-Mar}=0,0,AW50 * (BG50/1000/3.412*(1/BI50-1/BK50)*AF50))"},{"$f":"IF(V50=\"\",0,\"X=\"&SUBSTITUTE(SUBSTITUTE(SUBSTITUTE(SUBSTITUTE(SUBSTITUTE(SUBSTITUTE(SUBSTITUTE(SUBSTITUTE(SUBSTITUTE(SUBSTITUTE(SUBSTITUTE(SUBSTITUTE(V50,$ED50,$ED$2&ROW($ED50)),$EC50,$EC$2&ROW($EC50)),$EB50,$EB$2&ROW($EB50)),$EA50,$EA$2&ROW($EA50)),$DZ50,$DZ$2&ROW($DZ50)),$DY50,$DY$2&ROW($DY50)),$DX50,$DX$2&ROW($DX50)),$DW50,$DW$2&ROW($DW50)),$DV50,$DV$2&ROW($DV50)),$DU50,$DU$2&ROW($DU50)),$DT50,$DT$2&ROW($DT50)),$DS50,$DS$2&ROW($DS50)))","v":"X=if(BE50=0,0,AW50 * (AY50/1000*(1/BA50-1/BC50)*AG50))"},{"$f":"IF(W50=\"\",0,\"X=\"&SUBSTITUTE(SUBSTITUTE(SUBSTITUTE(SUBSTITUTE(SUBSTITUTE(SUBSTITUTE(SUBSTITUTE(SUBSTITUTE(SUBSTITUTE(SUBSTITUTE(SUBSTITUTE(SUBSTITUTE(W50,$ED50,$ED$2&ROW($ED50)),$EC50,$EC$2&ROW($EC50)),$EB50,$EB$2&ROW($EB50)),$EA50,$EA$2&ROW($EA50)),$DZ50,$DZ$2&ROW($DZ50)),$DY50,$DY$2&ROW($DY50)),$DX50,$DX$2&ROW($DX50)),$DW50,$DW$2&ROW($DW50)),$DV50,$DV$2&ROW($DV50)),$DU50,$DU$2&ROW($DU50)),$DT50,$DT$2&ROW($DT50)),$DS50,$DS$2&ROW($DS50)))","v":0},{"$f":"IF(X50=\"\",0,\"X=\"&SUBSTITUTE(SUBSTITUTE(SUBSTITUTE(SUBSTITUTE(SUBSTITUTE(SUBSTITUTE(SUBSTITUTE(SUBSTITUTE(SUBSTITUTE(SUBSTITUTE(SUBSTITUTE(SUBSTITUTE(X50,$ED50,$ED$2&ROW($ED50)),$EC50,$EC$2&ROW($EC50)),$EB50,$EB$2&ROW($EB50)),$EA50,$EA$2&ROW($EA50)),$DZ50,$DZ$2&ROW($DZ50)),$DY50,$DY$2&ROW($DY50)),$DX50,$DX$2&ROW($DX50)),$DW50,$DW$2&ROW($DW50)),$DV50,$DV$2&ROW($DV50)),$DU50,$DU$2&ROW($DU50)),$DT50,$DT$2&ROW($DT50)),$DS50,$DS$2&ROW($DS50)))","v":0},{"$f":"IF(Y50=\"\",0,\"X=\"&SUBSTITUTE(SUBSTITUTE(SUBSTITUTE(SUBSTITUTE(SUBSTITUTE(SUBSTITUTE(SUBSTITUTE(SUBSTITUTE(SUBSTITUTE(SUBSTITUTE(SUBSTITUTE(SUBSTITUTE(Y50,$ED50,$ED$2&ROW($ED50)),$EC50,$EC$2&ROW($EC50)),$EB50,$EB$2&ROW($EB50)),$EA50,$EA$2&ROW($EA50)),$DZ50,$DZ$2&ROW($DZ50)),$DY50,$DY$2&ROW($DY50)),$DX50,$DX$2&ROW($DX50)),$DW50,$DW$2&ROW($DW50)),$DV50,$DV$2&ROW($DV50)),$DU50,$DU$2&ROW($DU50)),$DT50,$DT$2&ROW($DT50)),$DS50,$DS$2&ROW($DS50)))","v":0},{"$f":"IF(Z50=\"\",0,\"X=\"&SUBSTITUTE(SUBSTITUTE(SUBSTITUTE(SUBSTITUTE(SUBSTITUTE(SUBSTITUTE(SUBSTITUTE(SUBSTITUTE(SUBSTITUTE(SUBSTITUTE(SUBSTITUTE(SUBSTITUTE(Z50,$ED50,$ED$2&ROW($ED50)),$EC50,$EC$2&ROW($EC50)),$EB50,$EB$2&ROW($EB50)),$EA50,$EA$2&ROW($EA50)),$DZ50,$DZ$2&ROW($DZ50)),$DY50,$DY$2&ROW($DY50)),$DX50,$DX$2&ROW($DX50)),$DW50,$DW$2&ROW($DW50)),$DV50,$DV$2&ROW($DV50)),$DU50,$DU$2&ROW($DU50)),$DT50,$DT$2&ROW($DT50)),$DS50,$DS$2&ROW($DS50)))","v":0},{"$f":"IF(AA50=\"\",0,\"X=\"&SUBSTITUTE(SUBSTITUTE(SUBSTITUTE(SUBSTITUTE(SUBSTITUTE(SUBSTITUTE(SUBSTITUTE(SUBSTITUTE(SUBSTITUTE(SUBSTITUTE(SUBSTITUTE(SUBSTITUTE(AA50,$ED50,$ED$2&ROW($ED50)),$EC50,$EC$2&ROW($EC50)),$EB50,$EB$2&ROW($EB50)),$EA50,$EA$2&ROW($EA50)),$DZ50,$DZ$2&ROW($DZ50)),$DY50,$DY$2&ROW($DY50)),$DX50,$DX$2&ROW($DX50)),$DW50,$DW$2&ROW($DW50)),$DV50,$DV$2&ROW($DV50)),$DU50,$DU$2&ROW($DU50)),$DT50,$DT$2&ROW($DT50)),$DS50,$DS$2&ROW($DS50)))","v":0},{"$f":"IF(AB50=\"\",0,\"X=\"&SUBSTITUTE(SUBSTITUTE(SUBSTITUTE(SUBSTITUTE(SUBSTITUTE(SUBSTITUTE(SUBSTITUTE(SUBSTITUTE(SUBSTITUTE(SUBSTITUTE(SUBSTITUTE(SUBSTITUTE(AB50,$ED50,$ED$2&ROW($ED50)),$EC50,$EC$2&ROW($EC50)),$EB50,$EB$2&ROW($EB50)),$EA50,$EA$2&ROW($EA50)),$DZ50,$DZ$2&ROW($DZ50)),$DY50,$DY$2&ROW($DY50)),$DX50,$DX$2&ROW($DX50)),$DW50,$DW$2&ROW($DW50)),$DV50,$DV$2&ROW($DV50)),$DU50,$DU$2&ROW($DU50)),$DT50,$DT$2&ROW($DT50)),$DS50,$DS$2&ROW($DS50)))","v":0},null,null,"{Factor:WinterCF}","{Factor:SummerCF}",{"$f":"IFERROR(INDEX($EG50:$IV50,MATCH(0,COUNTIF($DR50:DT50,$EG50:$IV50),0)),\"\")","v":"{Supplier Price for Materials}"},{"$f":"IFERROR(INDEX($EG50:$IV50,MATCH(0,COUNTIF($DR50:DU50,$EG50:$IV50),0)),\"\")","v":"{Labor Cost}"},{"$f":"IFERROR(INDEX($EG50:$IV50,MATCH(0,COUNTIF($DR50:DV50,$EG50:$IV50),0)),\"\")","v":"{Measure:Quantity}"},{"$f":"IFERROR(INDEX($EG50:$IV50,MATCH(0,COUNTIF($DR50:DW50,$EG50:$IV50),0)),\"\")","v":"{Cooling Capacity (Btu/h)}"},{"$f":"IFERROR(INDEX($EG50:$IV50,MATCH(0,COUNTIF($DR50:DX50,$EG50:$IV50),0)),\"\")","v":"{EER_base}"},{"$f":"IFERROR(INDEX($EG50:$IV50,MATCH(0,COUNTIF($DR50:DY50,$EG50:$IV50),0)),\"\")","v":"{EER}"},{"$f":"IFERROR(INDEX($EG50:$IV50,MATCH(0,COUNTIF($DR50:DZ50,$EG50:$IV50),0)),\"\")","v":"{Operation Jun-Oct}"},{"$f":"IFERROR(INDEX($EG50:$IV50,MATCH(0,COUNTIF($DR50:EA50,$EG50:$IV50),0)),\"\")","v":"{Heating Capacity (Btu/h)}"},{"$f":"IFERROR(INDEX($EG50:$IV50,MATCH(0,COUNTIF($DR50:EB50,$EG50:$IV50),0)),\"\")","v":"{COP_base}"},{"$f":"IFERROR(INDEX($EG50:$IV50,MATCH(0,COUNTIF($DR50:EC50,$EG50:$IV50),0)),\"\")","v":"{COP}"},null,null,{"$f":"IFERROR(MID($G50,FIND(CHAR(160),SUBSTITUTE($G50,\"{\",CHAR(160),EG$1)),FIND(CHAR(160),SUBSTITUTE($G50,\"}\",CHAR(160),EG$1))-FIND(CHAR(160),SUBSTITUTE($G50,\"{\",CHAR(160),EG$1))+1),\"\")","v":"{Supplier Price for Materials}"},{"$f":"IFERROR(MID($G50,FIND(CHAR(160),SUBSTITUTE($G50,\"{\",CHAR(160),EH$1)),FIND(CHAR(160),SUBSTITUTE($G50,\"}\",CHAR(160),EH$1))-FIND(CHAR(160),SUBSTITUTE($G50,\"{\",CHAR(160),EH$1))+1),\"\")","v":"{Labor Cost}"},{"$f":"IFERROR(MID($G50,FIND(CHAR(160),SUBSTITUTE($G50,\"{\",CHAR(160),EI$1)),FIND(CHAR(160),SUBSTITUTE($G50,\"}\",CHAR(160),EI$1))-FIND(CHAR(160),SUBSTITUTE($G50,\"{\",CHAR(160),EI$1))+1),\"\")","v":""},{"$f":"IFERROR(MID($G50,FIND(CHAR(160),SUBSTITUTE($G50,\"{\",CHAR(160),EJ$1)),FIND(CHAR(160),SUBSTITUTE($G50,\"}\",CHAR(160),EJ$1))-FIND(CHAR(160),SUBSTITUTE($G50,\"{\",CHAR(160),EJ$1))+1),\"\")","v":""},{"$f":"IFERROR(MID($G50,FIND(CHAR(160),SUBSTITUTE($G50,\"{\",CHAR(160),EK$1)),FIND(CHAR(160),SUBSTITUTE($G50,\"}\",CHAR(160),EK$1))-FIND(CHAR(160),SUBSTITUTE($G50,\"{\",CHAR(160),EK$1))+1),\"\")","v":""},{"$f":"IFERROR(MID($G50,FIND(CHAR(160),SUBSTITUTE($G50,\"{\",CHAR(160),EL$1)),FIND(CHAR(160),SUBSTITUTE($G50,\"}\",CHAR(160),EL$1))-FIND(CHAR(160),SUBSTITUTE($G50,\"{\",CHAR(160),EL$1))+1),\"\")","v":""},{"$f":"IFERROR(MID($G50,FIND(CHAR(160),SUBSTITUTE($G50,\"{\",CHAR(160),EM$1)),FIND(CHAR(160),SUBSTITUTE($G50,\"}\",CHAR(160),EM$1))-FIND(CHAR(160),SUBSTITUTE($G50,\"{\",CHAR(160),EM$1))+1),\"\")","v":""},{"$f":"IFERROR(MID($G50,FIND(CHAR(160),SUBSTITUTE($G50,\"{\",CHAR(160),EN$1)),FIND(CHAR(160),SUBSTITUTE($G50,\"}\",CHAR(160),EN$1))-FIND(CHAR(160),SUBSTITUTE($G50,\"{\",CHAR(160),EN$1))+1),\"\")","v":""},{"$f":"IFERROR(MID($G50,FIND(CHAR(160),SUBSTITUTE($G50,\"{\",CHAR(160),EO$1)),FIND(CHAR(160),SUBSTITUTE($G50,\"}\",CHAR(160),EO$1))-FIND(CHAR(160),SUBSTITUTE($G50,\"{\",CHAR(160),EO$1))+1),\"\")","v":""},{"$f":"IFERROR(MID($G50,FIND(CHAR(160),SUBSTITUTE($G50,\"{\",CHAR(160),EP$1)),FIND(CHAR(160),SUBSTITUTE($G50,\"}\",CHAR(160),EP$1))-FIND(CHAR(160),SUBSTITUTE($G50,\"{\",CHAR(160),EP$1))+1),\"\")","v":""},{"$f":"IFERROR(MID($J50,FIND(CHAR(160),SUBSTITUTE($J50,\"{\",CHAR(160),EQ$1)),FIND(CHAR(160),SUBSTITUTE($J50,\"}\",CHAR(160),EQ$1))-FIND(CHAR(160),SUBSTITUTE($J50,\"{\",CHAR(160),EQ$1))+1),\"\")","v":"{Measure:Quantity}"},{"$f":"IFERROR(MID($J50,FIND(CHAR(160),SUBSTITUTE($J50,\"{\",CHAR(160),ER$1)),FIND(CHAR(160),SUBSTITUTE($J50,\"}\",CHAR(160),ER$1))-FIND(CHAR(160),SUBSTITUTE($J50,\"{\",CHAR(160),ER$1))+1),\"\")","v":"{Cooling Capacity (Btu/h)}"},{"$f":"IFERROR(MID($J50,FIND(CHAR(160),SUBSTITUTE($J50,\"{\",CHAR(160),ES$1)),FIND(CHAR(160),SUBSTITUTE($J50,\"}\",CHAR(160),ES$1))-FIND(CHAR(160),SUBSTITUTE($J50,\"{\",CHAR(160),ES$1))+1),\"\")","v":"{Cooling Capacity (Btu/h)}"},{"$f":"IFERROR(MID($J50,FIND(CHAR(160),SUBSTITUTE($J50,\"{\",CHAR(160),ET$1)),FIND(CHAR(160),SUBSTITUTE($J50,\"}\",CHAR(160),ET$1))-FIND(CHAR(160),SUBSTITUTE($J50,\"{\",CHAR(160),ET$1))+1),\"\")","v":""},{"$f":"IFERROR(MID($J50,FIND(CHAR(160),SUBSTITUTE($J50,\"{\",CHAR(160),EU$1)),FIND(CHAR(160),SUBSTITUTE($J50,\"}\",CHAR(160),EU$1))-FIND(CHAR(160),SUBSTITUTE($J50,\"{\",CHAR(160),EU$1))+1),\"\")","v":""},{"$f":"IFERROR(MID($J50,FIND(CHAR(160),SUBSTITUTE($J50,\"{\",CHAR(160),EV$1)),FIND(CHAR(160),SUBSTITUTE($J50,\"}\",CHAR(160),EV$1))-FIND(CHAR(160),SUBSTITUTE($J50,\"{\",CHAR(160),EV$1))+1),\"\")","v":""},{"$f":"IFERROR(MID($J50,FIND(CHAR(160),SUBSTITUTE($J50,\"{\",CHAR(160),EW$1)),FIND(CHAR(160),SUBSTITUTE($J50,\"}\",CHAR(160),EW$1))-FIND(CHAR(160),SUBSTITUTE($J50,\"{\",CHAR(160),EW$1))+1),\"\")","v":""},{"$f":"IFERROR(MID($J50,FIND(CHAR(160),SUBSTITUTE($J50,\"{\",CHAR(160),EX$1)),FIND(CHAR(160),SUBSTITUTE($J50,\"}\",CHAR(160),EX$1))-FIND(CHAR(160),SUBSTITUTE($J50,\"{\",CHAR(160),EX$1))+1),\"\")","v":""},{"$f":"IFERROR(MID($J50,FIND(CHAR(160),SUBSTITUTE($J50,\"{\",CHAR(160),EY$1)),FIND(CHAR(160),SUBSTITUTE($J50,\"}\",CHAR(160),EY$1))-FIND(CHAR(160),SUBSTITUTE($J50,\"{\",CHAR(160),EY$1))+1),\"\")","v":""},{"$f":"IFERROR(MID($J50,FIND(CHAR(160),SUBSTITUTE($J50,\"{\",CHAR(160),EZ$1)),FIND(CHAR(160),SUBSTITUTE($J50,\"}\",CHAR(160),EZ$1))-FIND(CHAR(160),SUBSTITUTE($J50,\"{\",CHAR(160),EZ$1))+1),\"\")","v":""},{"$f":"IFERROR(MID($J50,FIND(CHAR(160),SUBSTITUTE($J50,\"{\",CHAR(160),FA$1)),FIND(CHAR(160),SUBSTITUTE($J50,\"}\",CHAR(160),FA$1))-FIND(CHAR(160),SUBSTITUTE($J50,\"{\",CHAR(160),FA$1))+1),\"\")","v":"{Measure:Quantity}"},{"$f":"IFERROR(MID($J50,FIND(CHAR(160),SUBSTITUTE($J50,\"{\",CHAR(160),FB$1)),FIND(CHAR(160),SUBSTITUTE($J50,\"}\",CHAR(160),FB$1))-FIND(CHAR(160),SUBSTITUTE($J50,\"{\",CHAR(160),FB$1))+1),\"\")","v":"{Cooling Capacity (Btu/h)}"},{"$f":"IFERROR(MID($O50,FIND(CHAR(160),SUBSTITUTE($O50,\"{\",CHAR(160),FC$1)),FIND(CHAR(160),SUBSTITUTE($O50,\"}\",CHAR(160),FC$1))-FIND(CHAR(160),SUBSTITUTE($O50,\"{\",CHAR(160),FC$1))+1),\"\")","v":"{EER_base}"},{"$f":"IFERROR(MID($O50,FIND(CHAR(160),SUBSTITUTE($O50,\"{\",CHAR(160),FD$1)),FIND(CHAR(160),SUBSTITUTE($O50,\"}\",CHAR(160),FD$1))-FIND(CHAR(160),SUBSTITUTE($O50,\"{\",CHAR(160),FD$1))+1),\"\")","v":"{EER}"},{"$f":"IFERROR(MID($O50,FIND(CHAR(160),SUBSTITUTE($O50,\"{\",CHAR(160),FE$1)),FIND(CHAR(160),SUBSTITUTE($O50,\"}\",CHAR(160),FE$1))-FIND(CHAR(160),SUBSTITUTE($O50,\"{\",CHAR(160),FE$1))+1),\"\")","v":"{Operation Jun-Oct}"},{"$f":"IFERROR(MID($O50,FIND(CHAR(160),SUBSTITUTE($O50,\"{\",CHAR(160),FF$1)),FIND(CHAR(160),SUBSTITUTE($O50,\"}\",CHAR(160),FF$1))-FIND(CHAR(160),SUBSTITUTE($O50,\"{\",CHAR(160),FF$1))+1),\"\")","v":"{Heating Capacity (Btu/h)}"},{"$f":"IFERROR(MID($O50,FIND(CHAR(160),SUBSTITUTE($O50,\"{\",CHAR(160),FG$1)),FIND(CHAR(160),SUBSTITUTE($O50,\"}\",CHAR(160),FG$1))-FIND(CHAR(160),SUBSTITUTE($O50,\"{\",CHAR(160),FG$1))+1),\"\")","v":"{COP_base}"},{"$f":"IFERROR(MID($O50,FIND(CHAR(160),SUBSTITUTE($O50,\"{\",CHAR(160),FH$1)),FIND(CHAR(160),SUBSTITUTE($O50,\"}\",CHAR(160),FH$1))-FIND(CHAR(160),SUBSTITUTE($O50,\"{\",CHAR(160),FH$1))+1),\"\")","v":"{COP}"},{"$f":"IFERROR(MID($O50,FIND(CHAR(160),SUBSTITUTE($O50,\"{\",CHAR(160),FI$1)),FIND(CHAR(160),SUBSTITUTE($O50,\"}\",CHAR(160),FI$1))-FIND(CHAR(160),SUBSTITUTE($O50,\"{\",CHAR(160),FI$1))+1),\"\")","v":"{Operation Jun-Oct}"},{"$f":"IFERROR(MID($O50,FIND(CHAR(160),SUBSTITUTE($O50,\"{\",CHAR(160),FJ$1)),FIND(CHAR(160),SUBSTITUTE($O50,\"}\",CHAR(160),FJ$1))-FIND(CHAR(160),SUBSTITUTE($O50,\"{\",CHAR(160),FJ$1))+1),\"\")","v":"{Operation Nov}"},{"$f":"IFERROR(MID($O50,FIND(CHAR(160),SUBSTITUTE($O50,\"{\",CHAR(160),FK$1)),FIND(CHAR(160),SUBSTITUTE($O50,\"}\",CHAR(160),FK$1))-FIND(CHAR(160),SUBSTITUTE($O50,\"{\",CHAR(160),FK$1))+1),\"\")","v":"{Measure:Quantity}"},{"$f":"IFERROR(MID($O50,FIND(CHAR(160),SUBSTITUTE($O50,\"{\",CHAR(160),FL$1)),FIND(CHAR(160),SUBSTITUTE($O50,\"}\",CHAR(160),FL$1))-FIND(CHAR(160),SUBSTITUTE($O50,\"{\",CHAR(160),FL$1))+1),\"\")","v":"{Cooling Capacity (Btu/h)}"},{"$f":"IFERROR(MID($R50,FIND(CHAR(160),SUBSTITUTE($R50,\"{\",CHAR(160),FM$1)),FIND(CHAR(160),SUBSTITUTE($R50,\"}\",CHAR(160),FM$1))-FIND(CHAR(160),SUBSTITUTE($R50,\"{\",CHAR(160),FM$1))+1),\"\")","v":"{Heating Capacity (Btu/h)}"},{"$f":"IFERROR(MID($R50,FIND(CHAR(160),SUBSTITUTE($R50,\"{\",CHAR(160),FN$1)),FIND(CHAR(160),SUBSTITUTE($R50,\"}\",CHAR(160),FN$1))-FIND(CHAR(160),SUBSTITUTE($R50,\"{\",CHAR(160),FN$1))+1),\"\")","v":"{COP_base}"},{"$f":"IFERROR(MID($R50,FIND(CHAR(160),SUBSTITUTE($R50,\"{\",CHAR(160),FO$1)),FIND(CHAR(160),SUBSTITUTE($R50,\"}\",CHAR(160),FO$1))-FIND(CHAR(160),SUBSTITUTE($R50,\"{\",CHAR(160),FO$1))+1),\"\")","v":"{COP}"},{"$f":"IFERROR(MID($R50,FIND(CHAR(160),SUBSTITUTE($R50,\"{\",CHAR(160),FP$1)),FIND(CHAR(160),SUBSTITUTE($R50,\"}\",CHAR(160),FP$1))-FIND(CHAR(160),SUBSTITUTE($R50,\"{\",CHAR(160),FP$1))+1),\"\")","v":"{Operation Jun-Oct}"},{"$f":"IFERROR(MID($R50,FIND(CHAR(160),SUBSTITUTE($R50,\"{\",CHAR(160),FQ$1)),FIND(CHAR(160),SUBSTITUTE($R50,\"}\",CHAR(160),FQ$1))-FIND(CHAR(160),SUBSTITUTE($R50,\"{\",CHAR(160),FQ$1))+1),\"\")","v":"{Cooling Capacity (Btu/h)}"},{"$f":"IFERROR(MID($R50,FIND(CHAR(160),SUBSTITUTE($R50,\"{\",CHAR(160),FR$1)),FIND(CHAR(160),SUBSTITUTE($R50,\"}\",CHAR(160),FR$1))-FIND(CHAR(160),SUBSTITUTE($R50,\"{\",CHAR(160),FR$1))+1),\"\")","v":"{EER_base}"},{"$f":"IFERROR(MID($R50,FIND(CHAR(160),SUBSTITUTE($R50,\"{\",CHAR(160),FS$1)),FIND(CHAR(160),SUBSTITUTE($R50,\"}\",CHAR(160),FS$1))-FIND(CHAR(160),SUBSTITUTE($R50,\"{\",CHAR(160),FS$1))+1),\"\")","v":"{EER}"},{"$f":"IFERROR(MID($R50,FIND(CHAR(160),SUBSTITUTE($R50,\"{\",CHAR(160),FT$1)),FIND(CHAR(160),SUBSTITUTE($R50,\"}\",CHAR(160),FT$1))-FIND(CHAR(160),SUBSTITUTE($R50,\"{\",CHAR(160),FT$1))+1),\"\")","v":""},{"$f":"IFERROR(MID($R50,FIND(CHAR(160),SUBSTITUTE($R50,\"{\",CHAR(160),FU$1)),FIND(CHAR(160),SUBSTITUTE($R50,\"}\",CHAR(160),FU$1))-FIND(CHAR(160),SUBSTITUTE($R50,\"{\",CHAR(160),FU$1))+1),\"\")","v":"{Measure:Quantity}"},{"$f":"IFERROR(MID($R50,FIND(CHAR(160),SUBSTITUTE($R50,\"{\",CHAR(160),FV$1)),FIND(CHAR(160),SUBSTITUTE($R50,\"}\",CHAR(160),FV$1))-FIND(CHAR(160),SUBSTITUTE($R50,\"{\",CHAR(160),FV$1))+1),\"\")","v":"{Operation Dec-Mar}"},{"$f":"IFERROR(MID($U50,FIND(CHAR(160),SUBSTITUTE($U50,\"{\",CHAR(160),FW$1)),FIND(CHAR(160),SUBSTITUTE($U50,\"}\",CHAR(160),FW$1))-FIND(CHAR(160),SUBSTITUTE($U50,\"{\",CHAR(160),FW$1))+1),\"\")","v":"{Heating Capacity (Btu/h)}"},{"$f":"IFERROR(MID($U50,FIND(CHAR(160),SUBSTITUTE($U50,\"{\",CHAR(160),FX$1)),FIND(CHAR(160),SUBSTITUTE($U50,\"}\",CHAR(160),FX$1))-FIND(CHAR(160),SUBSTITUTE($U50,\"{\",CHAR(160),FX$1))+1),\"\")","v":"{COP_base}"},{"$f":"IFERROR(MID($U50,FIND(CHAR(160),SUBSTITUTE($U50,\"{\",CHAR(160),FY$1)),FIND(CHAR(160),SUBSTITUTE($U50,\"}\",CHAR(160),FY$1))-FIND(CHAR(160),SUBSTITUTE($U50,\"{\",CHAR(160),FY$1))+1),\"\")","v":"{COP}"},{"$f":"IFERROR(MID($U50,FIND(CHAR(160),SUBSTITUTE($U50,\"{\",CHAR(160),FZ$1)),FIND(CHAR(160),SUBSTITUTE($U50,\"}\",CHAR(160),FZ$1))-FIND(CHAR(160),SUBSTITUTE($U50,\"{\",CHAR(160),FZ$1))+1),\"\")","v":"{Factor:WinterCF}"},{"$f":"IFERROR(MID($U50,FIND(CHAR(160),SUBSTITUTE($U50,\"{\",CHAR(160),GA$1)),FIND(CHAR(160),SUBSTITUTE($U50,\"}\",CHAR(160),GA$1))-FIND(CHAR(160),SUBSTITUTE($U50,\"{\",CHAR(160),GA$1))+1),\"\")","v":""},{"$f":"IFERROR(MID($U50,FIND(CHAR(160),SUBSTITUTE($U50,\"{\",CHAR(160),GB$1)),FIND(CHAR(160),SUBSTITUTE($U50,\"}\",CHAR(160),GB$1))-FIND(CHAR(160),SUBSTITUTE($U50,\"{\",CHAR(160),GB$1))+1),\"\")","v":""},{"$f":"IFERROR(MID($U50,FIND(CHAR(160),SUBSTITUTE($U50,\"{\",CHAR(160),GC$1)),FIND(CHAR(160),SUBSTITUTE($U50,\"}\",CHAR(160),GC$1))-FIND(CHAR(160),SUBSTITUTE($U50,\"{\",CHAR(160),GC$1))+1),\"\")","v":""},{"$f":"IFERROR(MID($U50,FIND(CHAR(160),SUBSTITUTE($U50,\"{\",CHAR(160),GD$1)),FIND(CHAR(160),SUBSTITUTE($U50,\"}\",CHAR(160),GD$1))-FIND(CHAR(160),SUBSTITUTE($U50,\"{\",CHAR(160),GD$1))+1),\"\")","v":""},{"$f":"IFERROR(MID($U50,FIND(CHAR(160),SUBSTITUTE($U50,\"{\",CHAR(160),GE$1)),FIND(CHAR(160),SUBSTITUTE($U50,\"}\",CHAR(160),GE$1))-FIND(CHAR(160),SUBSTITUTE($U50,\"{\",CHAR(160),GE$1))+1),\"\")","v":"{Operation Dec-Mar}"},{"$f":"IFERROR(MID($U50,FIND(CHAR(160),SUBSTITUTE($U50,\"{\",CHAR(160),GF$1)),FIND(CHAR(160),SUBSTITUTE($U50,\"}\",CHAR(160),GF$1))-FIND(CHAR(160),SUBSTITUTE($U50,\"{\",CHAR(160),GF$1))+1),\"\")","v":"{Measure:Quantity}"},{"$f":"IFERROR(MID($V50,FIND(CHAR(160),SUBSTITUTE($V50,\"{\",CHAR(160),GG$1)),FIND(CHAR(160),SUBSTITUTE($V50,\"}\",CHAR(160),GG$1))-FIND(CHAR(160),SUBSTITUTE($V50,\"{\",CHAR(160),GG$1))+1),\"\")","v":"{Cooling Capacity (Btu/h)}"},{"$f":"IFERROR(MID($V50,FIND(CHAR(160),SUBSTITUTE($V50,\"{\",CHAR(160),GH$1)),FIND(CHAR(160),SUBSTITUTE($V50,\"}\",CHAR(160),GH$1))-FIND(CHAR(160),SUBSTITUTE($V50,\"{\",CHAR(160),GH$1))+1),\"\")","v":"{EER_base}"},{"$f":"IFERROR(MID($V50,FIND(CHAR(160),SUBSTITUTE($V50,\"{\",CHAR(160),GI$1)),FIND(CHAR(160),SUBSTITUTE($V50,\"}\",CHAR(160),GI$1))-FIND(CHAR(160),SUBSTITUTE($V50,\"{\",CHAR(160),GI$1))+1),\"\")","v":"{EER}"},{"$f":"IFERROR(MID($V50,FIND(CHAR(160),SUBSTITUTE($V50,\"{\",CHAR(160),GJ$1)),FIND(CHAR(160),SUBSTITUTE($V50,\"}\",CHAR(160),GJ$1))-FIND(CHAR(160),SUBSTITUTE($V50,\"{\",CHAR(160),GJ$1))+1),\"\")","v":"{Factor:SummerCF}"},{"$f":"IFERROR(MID($V50,FIND(CHAR(160),SUBSTITUTE($V50,\"{\",CHAR(160),GK$1)),FIND(CHAR(160),SUBSTITUTE($V50,\"}\",CHAR(160),GK$1))-FIND(CHAR(160),SUBSTITUTE($V50,\"{\",CHAR(160),GK$1))+1),\"\")","v":""},{"$f":"IFERROR(MID($V50,FIND(CHAR(160),SUBSTITUTE($V50,\"{\",CHAR(160),GL$1)),FIND(CHAR(160),SUBSTITUTE($V50,\"}\",CHAR(160),GL$1))-FIND(CHAR(160),SUBSTITUTE($V50,\"{\",CHAR(160),GL$1))+1),\"\")","v":""},{"$f":"IFERROR(MID($V50,FIND(CHAR(160),SUBSTITUTE($V50,\"{\",CHAR(160),GM$1)),FIND(CHAR(160),SUBSTITUTE($V50,\"}\",CHAR(160),GM$1))-FIND(CHAR(160),SUBSTITUTE($V50,\"{\",CHAR(160),GM$1))+1),\"\")","v":""},{"$f":"IFERROR(MID($V50,FIND(CHAR(160),SUBSTITUTE($V50,\"{\",CHAR(160),GN$1)),FIND(CHAR(160),SUBSTITUTE($V50,\"}\",CHAR(160),GN$1))-FIND(CHAR(160),SUBSTITUTE($V50,\"{\",CHAR(160),GN$1))+1),\"\")","v":""},{"$f":"IFERROR(MID($V50,FIND(CHAR(160),SUBSTITUTE($V50,\"{\",CHAR(160),GO$1)),FIND(CHAR(160),SUBSTITUTE($V50,\"}\",CHAR(160),GO$1))-FIND(CHAR(160),SUBSTITUTE($V50,\"{\",CHAR(160),GO$1))+1),\"\")","v":"{Operation Jun-Oct}"},{"$f":"IFERROR(MID($V50,FIND(CHAR(160),SUBSTITUTE($V50,\"{\",CHAR(160),GP$1)),FIND(CHAR(160),SUBSTITUTE($V50,\"}\",CHAR(160),GP$1))-FIND(CHAR(160),SUBSTITUTE($V50,\"{\",CHAR(160),GP$1))+1),\"\")","v":"{Measure:Quantity}"},{"$f":"IFERROR(MID($W50,FIND(CHAR(160),SUBSTITUTE($W50,\"{\",CHAR(160),GQ$1)),FIND(CHAR(160),SUBSTITUTE($W50,\"}\",CHAR(160),GQ$1))-FIND(CHAR(160),SUBSTITUTE($W50,\"{\",CHAR(160),GQ$1))+1),\"\")","v":""},{"$f":"IFERROR(MID($W50,FIND(CHAR(160),SUBSTITUTE($W50,\"{\",CHAR(160),GR$1)),FIND(CHAR(160),SUBSTITUTE($W50,\"}\",CHAR(160),GR$1))-FIND(CHAR(160),SUBSTITUTE($W50,\"{\",CHAR(160),GR$1))+1),\"\")","v":""},{"$f":"IFERROR(MID($W50,FIND(CHAR(160),SUBSTITUTE($W50,\"{\",CHAR(160),GS$1)),FIND(CHAR(160),SUBSTITUTE($W50,\"}\",CHAR(160),GS$1))-FIND(CHAR(160),SUBSTITUTE($W50,\"{\",CHAR(160),GS$1))+1),\"\")","v":""},{"$f":"IFERROR(MID($W50,FIND(CHAR(160),SUBSTITUTE($W50,\"{\",CHAR(160),GT$1)),FIND(CHAR(160),SUBSTITUTE($W50,\"}\",CHAR(160),GT$1))-FIND(CHAR(160),SUBSTITUTE($W50,\"{\",CHAR(160),GT$1))+1),\"\")","v":""},{"$f":"IFERROR(MID($W50,FIND(CHAR(160),SUBSTITUTE($W50,\"{\",CHAR(160),GU$1)),FIND(CHAR(160),SUBSTITUTE($W50,\"}\",CHAR(160),GU$1))-FIND(CHAR(160),SUBSTITUTE($W50,\"{\",CHAR(160),GU$1))+1),\"\")","v":""},{"$f":"IFERROR(MID($W50,FIND(CHAR(160),SUBSTITUTE($W50,\"{\",CHAR(160),GV$1)),FIND(CHAR(160),SUBSTITUTE($W50,\"}\",CHAR(160),GV$1))-FIND(CHAR(160),SUBSTITUTE($W50,\"{\",CHAR(160),GV$1))+1),\"\")","v":""},{"$f":"IFERROR(MID($W50,FIND(CHAR(160),SUBSTITUTE($W50,\"{\",CHAR(160),GW$1)),FIND(CHAR(160),SUBSTITUTE($W50,\"}\",CHAR(160),GW$1))-FIND(CHAR(160),SUBSTITUTE($W50,\"{\",CHAR(160),GW$1))+1),\"\")","v":""},{"$f":"IFERROR(MID($W50,FIND(CHAR(160),SUBSTITUTE($W50,\"{\",CHAR(160),GX$1)),FIND(CHAR(160),SUBSTITUTE($W50,\"}\",CHAR(160),GX$1))-FIND(CHAR(160),SUBSTITUTE($W50,\"{\",CHAR(160),GX$1))+1),\"\")","v":""},{"$f":"IFERROR(MID($W50,FIND(CHAR(160),SUBSTITUTE($W50,\"{\",CHAR(160),GY$1)),FIND(CHAR(160),SUBSTITUTE($W50,\"}\",CHAR(160),GY$1))-FIND(CHAR(160),SUBSTITUTE($W50,\"{\",CHAR(160),GY$1))+1),\"\")","v":""},{"$f":"IFERROR(MID($W50,FIND(CHAR(160),SUBSTITUTE($W50,\"{\",CHAR(160),GZ$1)),FIND(CHAR(160),SUBSTITUTE($W50,\"}\",CHAR(160),GZ$1))-FIND(CHAR(160),SUBSTITUTE($W50,\"{\",CHAR(160),GZ$1))+1),\"\")","v":""},{"$f":"IFERROR(MID($X50,FIND(CHAR(160),SUBSTITUTE($X50,\"{\",CHAR(160),HA$1)),FIND(CHAR(160),SUBSTITUTE($X50,\"}\",CHAR(160),HA$1))-FIND(CHAR(160),SUBSTITUTE($X50,\"{\",CHAR(160),HA$1))+1),\"\")","v":""},{"$f":"IFERROR(MID($X50,FIND(CHAR(160),SUBSTITUTE($X50,\"{\",CHAR(160),HB$1)),FIND(CHAR(160),SUBSTITUTE($X50,\"}\",CHAR(160),HB$1))-FIND(CHAR(160),SUBSTITUTE($X50,\"{\",CHAR(160),HB$1))+1),\"\")","v":""},{"$f":"IFERROR(MID($X50,FIND(CHAR(160),SUBSTITUTE($X50,\"{\",CHAR(160),HC$1)),FIND(CHAR(160),SUBSTITUTE($X50,\"}\",CHAR(160),HC$1))-FIND(CHAR(160),SUBSTITUTE($X50,\"{\",CHAR(160),HC$1))+1),\"\")","v":""},{"$f":"IFERROR(MID($X50,FIND(CHAR(160),SUBSTITUTE($X50,\"{\",CHAR(160),HD$1)),FIND(CHAR(160),SUBSTITUTE($X50,\"}\",CHAR(160),HD$1))-FIND(CHAR(160),SUBSTITUTE($X50,\"{\",CHAR(160),HD$1))+1),\"\")","v":""},{"$f":"IFERROR(MID($X50,FIND(CHAR(160),SUBSTITUTE($X50,\"{\",CHAR(160),HE$1)),FIND(CHAR(160),SUBSTITUTE($X50,\"}\",CHAR(160),HE$1))-FIND(CHAR(160),SUBSTITUTE($X50,\"{\",CHAR(160),HE$1))+1),\"\")","v":""},{"$f":"IFERROR(MID($X50,FIND(CHAR(160),SUBSTITUTE($X50,\"{\",CHAR(160),HF$1)),FIND(CHAR(160),SUBSTITUTE($X50,\"}\",CHAR(160),HF$1))-FIND(CHAR(160),SUBSTITUTE($X50,\"{\",CHAR(160),HF$1))+1),\"\")","v":""},{"$f":"IFERROR(MID($X50,FIND(CHAR(160),SUBSTITUTE($X50,\"{\",CHAR(160),HG$1)),FIND(CHAR(160),SUBSTITUTE($X50,\"}\",CHAR(160),HG$1))-FIND(CHAR(160),SUBSTITUTE($X50,\"{\",CHAR(160),HG$1))+1),\"\")","v":""},{"$f":"IFERROR(MID($X50,FIND(CHAR(160),SUBSTITUTE($X50,\"{\",CHAR(160),HH$1)),FIND(CHAR(160),SUBSTITUTE($X50,\"}\",CHAR(160),HH$1))-FIND(CHAR(160),SUBSTITUTE($X50,\"{\",CHAR(160),HH$1))+1),\"\")","v":""},{"$f":"IFERROR(MID($X50,FIND(CHAR(160),SUBSTITUTE($X50,\"{\",CHAR(160),HI$1)),FIND(CHAR(160),SUBSTITUTE($X50,\"}\",CHAR(160),HI$1))-FIND(CHAR(160),SUBSTITUTE($X50,\"{\",CHAR(160),HI$1))+1),\"\")","v":""},{"$f":"IFERROR(MID($X50,FIND(CHAR(160),SUBSTITUTE($X50,\"{\",CHAR(160),HJ$1)),FIND(CHAR(160),SUBSTITUTE($X50,\"}\",CHAR(160),HJ$1))-FIND(CHAR(160),SUBSTITUTE($X50,\"{\",CHAR(160),HJ$1))+1),\"\")","v":""},{"$f":"IFERROR(MID($Y50,FIND(CHAR(160),SUBSTITUTE($Y50,\"{\",CHAR(160),HK$1)),FIND(CHAR(160),SUBSTITUTE($Y50,\"}\",CHAR(160),HK$1))-FIND(CHAR(160),SUBSTITUTE($Y50,\"{\",CHAR(160),HK$1))+1),\"\")","v":""},{"$f":"IFERROR(MID($Y50,FIND(CHAR(160),SUBSTITUTE($Y50,\"{\",CHAR(160),HL$1)),FIND(CHAR(160),SUBSTITUTE($Y50,\"}\",CHAR(160),HL$1))-FIND(CHAR(160),SUBSTITUTE($Y50,\"{\",CHAR(160),HL$1))+1),\"\")","v":""},{"$f":"IFERROR(MID($Y50,FIND(CHAR(160),SUBSTITUTE($Y50,\"{\",CHAR(160),HM$1)),FIND(CHAR(160),SUBSTITUTE($Y50,\"}\",CHAR(160),HM$1))-FIND(CHAR(160),SUBSTITUTE($Y50,\"{\",CHAR(160),HM$1))+1),\"\")","v":""},{"$f":"IFERROR(MID($Y50,FIND(CHAR(160),SUBSTITUTE($Y50,\"{\",CHAR(160),HN$1)),FIND(CHAR(160),SUBSTITUTE($Y50,\"}\",CHAR(160),HN$1))-FIND(CHAR(160),SUBSTITUTE($Y50,\"{\",CHAR(160),HN$1))+1),\"\")","v":""},{"$f":"IFERROR(MID($Y50,FIND(CHAR(160),SUBSTITUTE($Y50,\"{\",CHAR(160),HO$1)),FIND(CHAR(160),SUBSTITUTE($Y50,\"}\",CHAR(160),HO$1))-FIND(CHAR(160),SUBSTITUTE($Y50,\"{\",CHAR(160),HO$1))+1),\"\")","v":""},{"$f":"IFERROR(MID($Y50,FIND(CHAR(160),SUBSTITUTE($Y50,\"{\",CHAR(160),HP$1)),FIND(CHAR(160),SUBSTITUTE($Y50,\"}\",CHAR(160),HP$1))-FIND(CHAR(160),SUBSTITUTE($Y50,\"{\",CHAR(160),HP$1))+1),\"\")","v":""},{"$f":"IFERROR(MID($Y50,FIND(CHAR(160),SUBSTITUTE($Y50,\"{\",CHAR(160),HQ$1)),FIND(CHAR(160),SUBSTITUTE($Y50,\"}\",CHAR(160),HQ$1))-FIND(CHAR(160),SUBSTITUTE($Y50,\"{\",CHAR(160),HQ$1))+1),\"\")","v":""},{"$f":"IFERROR(MID($Y50,FIND(CHAR(160),SUBSTITUTE($Y50,\"{\",CHAR(160),HR$1)),FIND(CHAR(160),SUBSTITUTE($Y50,\"}\",CHAR(160),HR$1))-FIND(CHAR(160),SUBSTITUTE($Y50,\"{\",CHAR(160),HR$1))+1),\"\")","v":""},{"$f":"IFERROR(MID($Y50,FIND(CHAR(160),SUBSTITUTE($Y50,\"{\",CHAR(160),HS$1)),FIND(CHAR(160),SUBSTITUTE($Y50,\"}\",CHAR(160),HS$1))-FIND(CHAR(160),SUBSTITUTE($Y50,\"{\",CHAR(160),HS$1))+1),\"\")","v":""},{"$f":"IFERROR(MID($Y50,FIND(CHAR(160),SUBSTITUTE($Y50,\"{\",CHAR(160),HT$1)),FIND(CHAR(160),SUBSTITUTE($Y50,\"}\",CHAR(160),HT$1))-FIND(CHAR(160),SUBSTITUTE($Y50,\"{\",CHAR(160),HT$1))+1),\"\")","v":""},{"$f":"IFERROR(MID($Z50,FIND(CHAR(160),SUBSTITUTE($Z50,\"{\",CHAR(160),HU$1)),FIND(CHAR(160),SUBSTITUTE($Z50,\"}\",CHAR(160),HU$1))-FIND(CHAR(160),SUBSTITUTE($Z50,\"{\",CHAR(160),HU$1))+1),\"\")","v":""},{"$f":"IFERROR(MID($Z50,FIND(CHAR(160),SUBSTITUTE($Z50,\"{\",CHAR(160),HV$1)),FIND(CHAR(160),SUBSTITUTE($Z50,\"}\",CHAR(160),HV$1))-FIND(CHAR(160),SUBSTITUTE($Z50,\"{\",CHAR(160),HV$1))+1),\"\")","v":""},{"$f":"IFERROR(MID($Z50,FIND(CHAR(160),SUBSTITUTE($Z50,\"{\",CHAR(160),HW$1)),FIND(CHAR(160),SUBSTITUTE($Z50,\"}\",CHAR(160),HW$1))-FIND(CHAR(160),SUBSTITUTE($Z50,\"{\",CHAR(160),HW$1))+1),\"\")","v":""},{"$f":"IFERROR(MID($Z50,FIND(CHAR(160),SUBSTITUTE($Z50,\"{\",CHAR(160),HX$1)),FIND(CHAR(160),SUBSTITUTE($Z50,\"}\",CHAR(160),HX$1))-FIND(CHAR(160),SUBSTITUTE($Z50,\"{\",CHAR(160),HX$1))+1),\"\")","v":""},{"$f":"IFERROR(MID($Z50,FIND(CHAR(160),SUBSTITUTE($Z50,\"{\",CHAR(160),HY$1)),FIND(CHAR(160),SUBSTITUTE($Z50,\"}\",CHAR(160),HY$1))-FIND(CHAR(160),SUBSTITUTE($Z50,\"{\",CHAR(160),HY$1))+1),\"\")","v":""},{"$f":"IFERROR(MID($Z50,FIND(CHAR(160),SUBSTITUTE($Z50,\"{\",CHAR(160),HZ$1)),FIND(CHAR(160),SUBSTITUTE($Z50,\"}\",CHAR(160),HZ$1))-FIND(CHAR(160),SUBSTITUTE($Z50,\"{\",CHAR(160),HZ$1))+1),\"\")","v":""},{"$f":"IFERROR(MID($Z50,FIND(CHAR(160),SUBSTITUTE($Z50,\"{\",CHAR(160),IA$1)),FIND(CHAR(160),SUBSTITUTE($Z50,\"}\",CHAR(160),IA$1))-FIND(CHAR(160),SUBSTITUTE($Z50,\"{\",CHAR(160),IA$1))+1),\"\")","v":""},{"$f":"IFERROR(MID($Z50,FIND(CHAR(160),SUBSTITUTE($Z50,\"{\",CHAR(160),IB$1)),FIND(CHAR(160),SUBSTITUTE($Z50,\"}\",CHAR(160),IB$1))-FIND(CHAR(160),SUBSTITUTE($Z50,\"{\",CHAR(160),IB$1))+1),\"\")","v":""},{"$f":"IFERROR(MID($Z50,FIND(CHAR(160),SUBSTITUTE($Z50,\"{\",CHAR(160),IC$1)),FIND(CHAR(160),SUBSTITUTE($Z50,\"}\",CHAR(160),IC$1))-FIND(CHAR(160),SUBSTITUTE($Z50,\"{\",CHAR(160),IC$1))+1),\"\")","v":""},{"$f":"IFERROR(MID($Z50,FIND(CHAR(160),SUBSTITUTE($Z50,\"{\",CHAR(160),ID$1)),FIND(CHAR(160),SUBSTITUTE($Z50,\"}\",CHAR(160),ID$1))-FIND(CHAR(160),SUBSTITUTE($Z50,\"{\",CHAR(160),ID$1))+1),\"\")","v":""},{"$f":"IFERROR(MID($AA50,FIND(CHAR(160),SUBSTITUTE($AA50,\"{\",CHAR(160),IE$1)),FIND(CHAR(160),SUBSTITUTE($AA50,\"}\",CHAR(160),IE$1))-FIND(CHAR(160),SUBSTITUTE($AA50,\"{\",CHAR(160),IE$1))+1),\"\")","v":""},{"$f":"IFERROR(MID($AA50,FIND(CHAR(160),SUBSTITUTE($AA50,\"{\",CHAR(160),IF$1)),FIND(CHAR(160),SUBSTITUTE($AA50,\"}\",CHAR(160),IF$1))-FIND(CHAR(160),SUBSTITUTE($AA50,\"{\",CHAR(160),IF$1))+1),\"\")","v":""},{"$f":"IFERROR(MID($AA50,FIND(CHAR(160),SUBSTITUTE($AA50,\"{\",CHAR(160),IG$1)),FIND(CHAR(160),SUBSTITUTE($AA50,\"}\",CHAR(160),IG$1))-FIND(CHAR(160),SUBSTITUTE($AA50,\"{\",CHAR(160),IG$1))+1),\"\")","v":""},{"$f":"IFERROR(MID($AA50,FIND(CHAR(160),SUBSTITUTE($AA50,\"{\",CHAR(160),IH$1)),FIND(CHAR(160),SUBSTITUTE($AA50,\"}\",CHAR(160),IH$1))-FIND(CHAR(160),SUBSTITUTE($AA50,\"{\",CHAR(160),IH$1))+1),\"\")","v":""},{"$f":"IFERROR(MID($AA50,FIND(CHAR(160),SUBSTITUTE($AA50,\"{\",CHAR(160),II$1)),FIND(CHAR(160),SUBSTITUTE($AA50,\"}\",CHAR(160),II$1))-FIND(CHAR(160),SUBSTITUTE($AA50,\"{\",CHAR(160),II$1))+1),\"\")","v":""},{"$f":"IFERROR(MID($AA50,FIND(CHAR(160),SUBSTITUTE($AA50,\"{\",CHAR(160),IJ$1)),FIND(CHAR(160),SUBSTITUTE($AA50,\"}\",CHAR(160),IJ$1))-FIND(CHAR(160),SUBSTITUTE($AA50,\"{\",CHAR(160),IJ$1))+1),\"\")","v":""},{"$f":"IFERROR(MID($AA50,FIND(CHAR(160),SUBSTITUTE($AA50,\"{\",CHAR(160),IK$1)),FIND(CHAR(160),SUBSTITUTE($AA50,\"}\",CHAR(160),IK$1))-FIND(CHAR(160),SUBSTITUTE($AA50,\"{\",CHAR(160),IK$1))+1),\"\")","v":""},{"$f":"IFERROR(MID($AA50,FIND(CHAR(160),SUBSTITUTE($AA50,\"{\",CHAR(160),IL$1)),FIND(CHAR(160),SUBSTITUTE($AA50,\"}\",CHAR(160),IL$1))-FIND(CHAR(160),SUBSTITUTE($AA50,\"{\",CHAR(160),IL$1))+1),\"\")","v":""},{"$f":"IFERROR(MID($AA50,FIND(CHAR(160),SUBSTITUTE($AA50,\"{\",CHAR(160),IM$1)),FIND(CHAR(160),SUBSTITUTE($AA50,\"}\",CHAR(160),IM$1))-FIND(CHAR(160),SUBSTITUTE($AA50,\"{\",CHAR(160),IM$1))+1),\"\")","v":""},{"$f":"IFERROR(MID($AA50,FIND(CHAR(160),SUBSTITUTE($AA50,\"{\",CHAR(160),IN$1)),FIND(CHAR(160),SUBSTITUTE($AA50,\"}\",CHAR(160),IN$1))-FIND(CHAR(160),SUBSTITUTE($AA50,\"{\",CHAR(160),IN$1))+1),\"\")","v":""},{"$f":"IFERROR(MID($AB50,FIND(CHAR(160),SUBSTITUTE($AB50,\"{\",CHAR(160),IO$1)),FIND(CHAR(160),SUBSTITUTE($AB50,\"}\",CHAR(160),IO$1))-FIND(CHAR(160),SUBSTITUTE($AB50,\"{\",CHAR(160),IO$1))+1),\"\")","v":""},{"$f":"IFERROR(MID($AB50,FIND(CHAR(160),SUBSTITUTE($AB50,\"{\",CHAR(160),IP$1)),FIND(CHAR(160),SUBSTITUTE($AB50,\"}\",CHAR(160),IP$1))-FIND(CHAR(160),SUBSTITUTE($AB50,\"{\",CHAR(160),IP$1))+1),\"\")","v":""},{"$f":"IFERROR(MID($AB50,FIND(CHAR(160),SUBSTITUTE($AB50,\"{\",CHAR(160),IQ$1)),FIND(CHAR(160),SUBSTITUTE($AB50,\"}\",CHAR(160),IQ$1))-FIND(CHAR(160),SUBSTITUTE($AB50,\"{\",CHAR(160),IQ$1))+1),\"\")","v":""},{"$f":"IFERROR(MID($AB50,FIND(CHAR(160),SUBSTITUTE($AB50,\"{\",CHAR(160),IR$1)),FIND(CHAR(160),SUBSTITUTE($AB50,\"}\",CHAR(160),IR$1))-FIND(CHAR(160),SUBSTITUTE($AB50,\"{\",CHAR(160),IR$1))+1),\"\")","v":""},{"$f":"IFERROR(MID($AB50,FIND(CHAR(160),SUBSTITUTE($AB50,\"{\",CHAR(160),IS$1)),FIND(CHAR(160),SUBSTITUTE($AB50,\"}\",CHAR(160),IS$1))-FIND(CHAR(160),SUBSTITUTE($AB50,\"{\",CHAR(160),IS$1))+1),\"\")","v":""},{"$f":"IFERROR(MID($AB50,FIND(CHAR(160),SUBSTITUTE($AB50,\"{\",CHAR(160),IT$1)),FIND(CHAR(160),SUBSTITUTE($AB50,\"}\",CHAR(160),IT$1))-FIND(CHAR(160),SUBSTITUTE($AB50,\"{\",CHAR(160),IT$1))+1),\"\")","v":""},{"$f":"IFERROR(MID($AB50,FIND(CHAR(160),SUBSTITUTE($AB50,\"{\",CHAR(160),IU$1)),FIND(CHAR(160),SUBSTITUTE($AB50,\"}\",CHAR(160),IU$1))-FIND(CHAR(160),SUBSTITUTE($AB50,\"{\",CHAR(160),IU$1))+1),\"\")","v":""},{"$f":"IFERROR(MID($AB50,FIND(CHAR(160),SUBSTITUTE($AB50,\"{\",CHAR(160),IV$1)),FIND(CHAR(160),SUBSTITUTE($AB50,\"}\",CHAR(160),IV$1))-FIND(CHAR(160),SUBSTITUTE($AB50,\"{\",CHAR(160),IV$1))+1),\"\")","v":""},{"$f":"IFERROR(MID($AB50,FIND(CHAR(160),SUBSTITUTE($AB50,\"{\",CHAR(160),IW$1)),FIND(CHAR(160),SUBSTITUTE($AB50,\"}\",CHAR(160),IW$1))-FIND(CHAR(160),SUBSTITUTE($AB50,\"{\",CHAR(160),IW$1))+1),\"\")","v":""},{"$f":"IFERROR(MID($AB50,FIND(CHAR(160),SUBSTITUTE($AB50,\"{\",CHAR(160),IX$1)),FIND(CHAR(160),SUBSTITUTE($AB50,\"}\",CHAR(160),IX$1))-FIND(CHAR(160),SUBSTITUTE($AB50,\"{\",CHAR(160),IX$1))+1),\"\")","v":""},null,{"$f":"10-COUNTIF(DU50:ED50,\"\")","v":10}]
["C&I HVAC - Electric","VFD: Chilled Water Pumps","CWP","2021-07-01","2021-09-09","Calculated","{Measure:Quantity}*if({Motor HP}=5,2425,if({Motor HP}=7.5,2648,if({Motor HP}=10,2871,if({Motor HP}=15,3317,if({Motor HP}=20,3763,if({Motor HP}=25,4209,if({Motor HP}=30,4655,0)))))))",0,"Calculated","{Measure:Quantity}*if({Motor HP}=5,400,if({Motor HP}=7.5,650,if({Motor HP}=10,1400,if({Motor HP}=15,1650,if({Motor HP}=20,1850,if({Motor HP}=25,2000,if({Motor HP}=30,2300,0)))))))",0,"2021-07-01","2022-06-30","Calculated","{Measure:Quantity}*{Motor HP}*1633",null,null,"{Measure:Quantity}*{Motor HP}*.183",null,null,"{Measure:Quantity}*{Factor:WinterCF}*{Motor HP}*.183","{Measure:Quantity}*{Factor:SummerCF}*{Motor HP}*.183",null,null,null,null,null,null,"2021-05-25","2022-06-30",13,0,0.86499999999999999,0.309,0.18099999999999999,0.35899999999999999,0.151,1,1.1220000000000001,1,0.52,1.6E-2,null,{"$f":"DU51","v":"{Measure:Quantity}"},1,{"$f":"DV51","v":"{Motor HP}"},5,{"$f":"DW51","v":""},null,{"$f":"DX51","v":""},null,{"$f":"DY51","v":""},null,{"$f":"DZ51","v":""},null,{"$f":"EA51","v":""},null,{"$f":"EB51","v":""},null,{"$f":"EC51","v":""},null,{"$f":"ED51","v":""},null,{"$f":"AS51*AU51*1633","v":8165},0,0,{"$f":"AS51*AU51*0.183","v":0.91500000000000004},0,0,{"$f":"AS51*AF51*AU51*0.183","v":0},{"$f":"AS51*AG51*AU51*0.183","v":0.79147500000000004},0,0,0,0,0,0,null,"Res","Default DR",{"$f":"Benefits(BL51,BR51,BS51,BT51,BU51,BV51,BW51,BX51,BY51,BZ51,AE51,AH51,AI51,AJ51,AK51,AL51,AM51,AN51,AO51,AP51,CA51,CB51)","v":10670.141750147999},1325.3388313676485,0,0,0,0,0,0,0,{"$f":"SUMPRODUCT(CC51:CK51,--(CC51:CK51>0))","v":11995.480581515647},{"$f":"-SUMPRODUCT(CC51:CK51,--(CC51:CK51<0))","v":0},null,{"$f":"AS51*IF(AU51=5,2425,IF(AU51=7.5,2648,IF(AU51=10,2871,IF(AU51=15,3317,IF(AU51=20,3763,IF(AU51=25,4209,IF(AU51=30,4655,0)))))))","v":2425},null,null,{"$f":"CM51+CO51","v":2425},{"$f":"IF(NetOrGross=\"Net\",(1-AO51+AP51),1)","v":1},{"$f":"(SUMPRODUCT(CC51:CJ51,--(CC51:CJ51>0))+CN51)*CS51/((-SUMPRODUCT(CC51:CJ51,--(CC51:CJ51<0))+MAX(CO51,CV51)+CP51+CQ51)*CS51+IF(FRIncentives=\"Yes\",CV51*(1-CS51),0))","v":4.9465899305219159},1,{"$f":"AS51*IF(AU51=5,400,IF(AU51=7.5,650,IF(AU51=10,1400,IF(AU51=15,1650,IF(AU51=20,1850,IF(AU51=25,2000,IF(AU51=30,2300,0)))))))","v":400},null,"Electric","y",null,{"$f":"IF(F51=\"Manual Entry\",\"Manual\",IF(G51=\"\",0,\"X=\"&SUBSTITUTE(SUBSTITUTE(SUBSTITUTE(SUBSTITUTE(SUBSTITUTE(SUBSTITUTE(SUBSTITUTE(SUBSTITUTE(SUBSTITUTE(SUBSTITUTE(SUBSTITUTE(SUBSTITUTE(G51,$ED51,$ED$2&ROW($ED51)),$EC51,$EC$2&ROW($EC51)),$EB51,$EB$2&ROW($EB51)),$EA51,$EA$2&ROW($EA51)),$DZ51,$DZ$2&ROW($DZ51)),$DY51,$DY$2&ROW($DY51)),$DX51,$DX$2&ROW($DX51)),$DW51,$DW$2&ROW($DW51)),$DV51,$DV$2&ROW($DV51)),$DU51,$DU$2&ROW($DU51)),$DT51,$DT$2&ROW($DT51)),$DS51,$DS$2&ROW($DS51))))","v":"X=AS51*if(AU51=5,2425,if(AU51=7.5,2648,if(AU51=10,2871,if(AU51=15,3317,if(AU51=20,3763,if(AU51=25,4209,if(AU51=30,4655,0)))))))"},{"$f":"IF(I51=\"Manual Entry\",\"Manual\",IF(J51=\"\",0,\"X=\"&SUBSTITUTE(SUBSTITUTE(SUBSTITUTE(SUBSTITUTE(SUBSTITUTE(SUBSTITUTE(SUBSTITUTE(SUBSTITUTE(SUBSTITUTE(SUBSTITUTE(SUBSTITUTE(SUBSTITUTE(J51,$ED51,$ED$2&ROW($ED51)),$EC51,$EC$2&ROW($EC51)),$EB51,$EB$2&ROW($EB51)),$EA51,$EA$2&ROW($EA51)),$DZ51,$DZ$2&ROW($DZ51)),$DY51,$DY$2&ROW($DY51)),$DX51,$DX$2&ROW($DX51)),$DW51,$DW$2&ROW($DW51)),$DV51,$DV$2&ROW($DV51)),$DU51,$DU$2&ROW($DU51)),$DT51,$DT$2&ROW($DT51)),$DS51,$DS$2&ROW($DS51))))","v":"X=AS51*if(AU51=5,400,if(AU51=7.5,650,if(AU51=10,1400,if(AU51=15,1650,if(AU51=20,1850,if(AU51=25,2000,if(AU51=30,2300,0)))))))"},{"$f":"IF(O51=\"\",0,\"X=\"&SUBSTITUTE(SUBSTITUTE(SUBSTITUTE(SUBSTITUTE(SUBSTITUTE(SUBSTITUTE(SUBSTITUTE(SUBSTITUTE(SUBSTITUTE(SUBSTITUTE(SUBSTITUTE(SUBSTITUTE(O51,$ED51,$ED$2&ROW($ED51)),$EC51,$EC$2&ROW($EC51)),$EB51,$EB$2&ROW($EB51)),$EA51,$EA$2&ROW($EA51)),$DZ51,$DZ$2&ROW($DZ51)),$DY51,$DY$2&ROW($DY51)),$DX51,$DX$2&ROW($DX51)),$DW51,$DW$2&ROW($DW51)),$DV51,$DV$2&ROW($DV51)),$DU51,$DU$2&ROW($DU51)),$DT51,$DT$2&ROW($DT51)),$DS51,$DS$2&ROW($DS51)))","v":"X=AS51*AU51*1633"},{"$f":"IF(P51=\"\",0,\"X=\"&SUBSTITUTE(SUBSTITUTE(SUBSTITUTE(SUBSTITUTE(SUBSTITUTE(SUBSTITUTE(SUBSTITUTE(SUBSTITUTE(SUBSTITUTE(SUBSTITUTE(SUBSTITUTE(SUBSTITUTE(P51,$ED51,$ED$2&ROW($ED51)),$EC51,$EC$2&ROW($EC51)),$EB51,$EB$2&ROW($EB51)),$EA51,$EA$2&ROW($EA51)),$DZ51,$DZ$2&ROW($DZ51)),$DY51,$DY$2&ROW($DY51)),$DX51,$DX$2&ROW($DX51)),$DW51,$DW$2&ROW($DW51)),$DV51,$DV$2&ROW($DV51)),$DU51,$DU$2&ROW($DU51)),$DT51,$DT$2&ROW($DT51)),$DS51,$DS$2&ROW($DS51)))","v":0},{"$f":"IF(Q51=\"\",0,\"X=\"&SUBSTITUTE(SUBSTITUTE(SUBSTITUTE(SUBSTITUTE(SUBSTITUTE(SUBSTITUTE(SUBSTITUTE(SUBSTITUTE(SUBSTITUTE(SUBSTITUTE(SUBSTITUTE(SUBSTITUTE(Q51,$ED51,$ED$2&ROW($ED51)),$EC51,$EC$2&ROW($EC51)),$EB51,$EB$2&ROW($EB51)),$EA51,$EA$2&ROW($EA51)),$DZ51,$DZ$2&ROW($DZ51)),$DY51,$DY$2&ROW($DY51)),$DX51,$DX$2&ROW($DX51)),$DW51,$DW$2&ROW($DW51)),$DV51,$DV$2&ROW($DV51)),$DU51,$DU$2&ROW($DU51)),$DT51,$DT$2&ROW($DT51)),$DS51,$DS$2&ROW($DS51)))","v":0},{"$f":"IF(R51=\"\",0,\"X=\"&SUBSTITUTE(SUBSTITUTE(SUBSTITUTE(SUBSTITUTE(SUBSTITUTE(SUBSTITUTE(SUBSTITUTE(SUBSTITUTE(SUBSTITUTE(SUBSTITUTE(SUBSTITUTE(SUBSTITUTE(R51,$ED51,$ED$2&ROW($ED51)),$EC51,$EC$2&ROW($EC51)),$EB51,$EB$2&ROW($EB51)),$EA51,$EA$2&ROW($EA51)),$DZ51,$DZ$2&ROW($DZ51)),$DY51,$DY$2&ROW($DY51)),$DX51,$DX$2&ROW($DX51)),$DW51,$DW$2&ROW($DW51)),$DV51,$DV$2&ROW($DV51)),$DU51,$DU$2&ROW($DU51)),$DT51,$DT$2&ROW($DT51)),$DS51,$DS$2&ROW($DS51)))","v":"X=AS51*AU51*.183"},{"$f":"IF(S51=\"\",0,\"X=\"&SUBSTITUTE(SUBSTITUTE(SUBSTITUTE(SUBSTITUTE(SUBSTITUTE(SUBSTITUTE(SUBSTITUTE(SUBSTITUTE(SUBSTITUTE(SUBSTITUTE(SUBSTITUTE(SUBSTITUTE(S51,$ED51,$ED$2&ROW($ED51)),$EC51,$EC$2&ROW($EC51)),$EB51,$EB$2&ROW($EB51)),$EA51,$EA$2&ROW($EA51)),$DZ51,$DZ$2&ROW($DZ51)),$DY51,$DY$2&ROW($DY51)),$DX51,$DX$2&ROW($DX51)),$DW51,$DW$2&ROW($DW51)),$DV51,$DV$2&ROW($DV51)),$DU51,$DU$2&ROW($DU51)),$DT51,$DT$2&ROW($DT51)),$DS51,$DS$2&ROW($DS51)))","v":0},{"$f":"IF(T51=\"\",0,\"X=\"&SUBSTITUTE(SUBSTITUTE(SUBSTITUTE(SUBSTITUTE(SUBSTITUTE(SUBSTITUTE(SUBSTITUTE(SUBSTITUTE(SUBSTITUTE(SUBSTITUTE(SUBSTITUTE(SUBSTITUTE(T51,$ED51,$ED$2&ROW($ED51)),$EC51,$EC$2&ROW($EC51)),$EB51,$EB$2&ROW($EB51)),$EA51,$EA$2&ROW($EA51)),$DZ51,$DZ$2&ROW($DZ51)),$DY51,$DY$2&ROW($DY51)),$DX51,$DX$2&ROW($DX51)),$DW51,$DW$2&ROW($DW51)),$DV51,$DV$2&ROW($DV51)),$DU51,$DU$2&ROW($DU51)),$DT51,$DT$2&ROW($DT51)),$DS51,$DS$2&ROW($DS51)))","v":0},{"$f":"IF(U51=\"\",0,\"X=\"&SUBSTITUTE(SUBSTITUTE(SUBSTITUTE(SUBSTITUTE(SUBSTITUTE(SUBSTITUTE(SUBSTITUTE(SUBSTITUTE(SUBSTITUTE(SUBSTITUTE(SUBSTITUTE(SUBSTITUTE(U51,$ED51,$ED$2&ROW($ED51)),$EC51,$EC$2&ROW($EC51)),$EB51,$EB$2&ROW($EB51)),$EA51,$EA$2&ROW($EA51)),$DZ51,$DZ$2&ROW($DZ51)),$DY51,$DY$2&ROW($DY51)),$DX51,$DX$2&ROW($DX51)),$DW51,$DW$2&ROW($DW51)),$DV51,$DV$2&ROW($DV51)),$DU51,$DU$2&ROW($DU51)),$DT51,$DT$2&ROW($DT51)),$DS51,$DS$2&ROW($DS51)))","v":"X=AS51*AF51*AU51*.183"},{"$f":"IF(V51=\"\",0,\"X=\"&SUBSTITUTE(SUBSTITUTE(SUBSTITUTE(SUBSTITUTE(SUBSTITUTE(SUBSTITUTE(SUBSTITUTE(SUBSTITUTE(SUBSTITUTE(SUBSTITUTE(SUBSTITUTE(SUBSTITUTE(V51,$ED51,$ED$2&ROW($ED51)),$EC51,$EC$2&ROW($EC51)),$EB51,$EB$2&ROW($EB51)),$EA51,$EA$2&ROW($EA51)),$DZ51,$DZ$2&ROW($DZ51)),$DY51,$DY$2&ROW($DY51)),$DX51,$DX$2&ROW($DX51)),$DW51,$DW$2&ROW($DW51)),$DV51,$DV$2&ROW($DV51)),$DU51,$DU$2&ROW($DU51)),$DT51,$DT$2&ROW($DT51)),$DS51,$DS$2&ROW($DS51)))","v":"X=AS51*AG51*AU51*.183"},{"$f":"IF(W51=\"\",0,\"X=\"&SUBSTITUTE(SUBSTITUTE(SUBSTITUTE(SUBSTITUTE(SUBSTITUTE(SUBSTITUTE(SUBSTITUTE(SUBSTITUTE(SUBSTITUTE(SUBSTITUTE(SUBSTITUTE(SUBSTITUTE(W51,$ED51,$ED$2&ROW($ED51)),$EC51,$EC$2&ROW($EC51)),$EB51,$EB$2&ROW($EB51)),$EA51,$EA$2&ROW($EA51)),$DZ51,$DZ$2&ROW($DZ51)),$DY51,$DY$2&ROW($DY51)),$DX51,$DX$2&ROW($DX51)),$DW51,$DW$2&ROW($DW51)),$DV51,$DV$2&ROW($DV51)),$DU51,$DU$2&ROW($DU51)),$DT51,$DT$2&ROW($DT51)),$DS51,$DS$2&ROW($DS51)))","v":0},{"$f":"IF(X51=\"\",0,\"X=\"&SUBSTITUTE(SUBSTITUTE(SUBSTITUTE(SUBSTITUTE(SUBSTITUTE(SUBSTITUTE(SUBSTITUTE(SUBSTITUTE(SUBSTITUTE(SUBSTITUTE(SUBSTITUTE(SUBSTITUTE(X51,$ED51,$ED$2&ROW($ED51)),$EC51,$EC$2&ROW($EC51)),$EB51,$EB$2&ROW($EB51)),$EA51,$EA$2&ROW($EA51)),$DZ51,$DZ$2&ROW($DZ51)),$DY51,$DY$2&ROW($DY51)),$DX51,$DX$2&ROW($DX51)),$DW51,$DW$2&ROW($DW51)),$DV51,$DV$2&ROW($DV51)),$DU51,$DU$2&ROW($DU51)),$DT51,$DT$2&ROW($DT51)),$DS51,$DS$2&ROW($DS51)))","v":0},{"$f":"IF(Y51=\"\",0,\"X=\"&SUBSTITUTE(SUBSTITUTE(SUBSTITUTE(SUBSTITUTE(SUBSTITUTE(SUBSTITUTE(SUBSTITUTE(SUBSTITUTE(SUBSTITUTE(SUBSTITUTE(SUBSTITUTE(SUBSTITUTE(Y51,$ED51,$ED$2&ROW($ED51)),$EC51,$EC$2&ROW($EC51)),$EB51,$EB$2&ROW($EB51)),$EA51,$EA$2&ROW($EA51)),$DZ51,$DZ$2&ROW($DZ51)),$DY51,$DY$2&ROW($DY51)),$DX51,$DX$2&ROW($DX51)),$DW51,$DW$2&ROW($DW51)),$DV51,$DV$2&ROW($DV51)),$DU51,$DU$2&ROW($DU51)),$DT51,$DT$2&ROW($DT51)),$DS51,$DS$2&ROW($DS51)))","v":0},{"$f":"IF(Z51=\"\",0,\"X=\"&SUBSTITUTE(SUBSTITUTE(SUBSTITUTE(SUBSTITUTE(SUBSTITUTE(SUBSTITUTE(SUBSTITUTE(SUBSTITUTE(SUBSTITUTE(SUBSTITUTE(SUBSTITUTE(SUBSTITUTE(Z51,$ED51,$ED$2&ROW($ED51)),$EC51,$EC$2&ROW($EC51)),$EB51,$EB$2&ROW($EB51)),$EA51,$EA$2&ROW($EA51)),$DZ51,$DZ$2&ROW($DZ51)),$DY51,$DY$2&ROW($DY51)),$DX51,$DX$2&ROW($DX51)),$DW51,$DW$2&ROW($DW51)),$DV51,$DV$2&ROW($DV51)),$DU51,$DU$2&ROW($DU51)),$DT51,$DT$2&ROW($DT51)),$DS51,$DS$2&ROW($DS51)))","v":0},{"$f":"IF(AA51=\"\",0,\"X=\"&SUBSTITUTE(SUBSTITUTE(SUBSTITUTE(SUBSTITUTE(SUBSTITUTE(SUBSTITUTE(SUBSTITUTE(SUBSTITUTE(SUBSTITUTE(SUBSTITUTE(SUBSTITUTE(SUBSTITUTE(AA51,$ED51,$ED$2&ROW($ED51)),$EC51,$EC$2&ROW($EC51)),$EB51,$EB$2&ROW($EB51)),$EA51,$EA$2&ROW($EA51)),$DZ51,$DZ$2&ROW($DZ51)),$DY51,$DY$2&ROW($DY51)),$DX51,$DX$2&ROW($DX51)),$DW51,$DW$2&ROW($DW51)),$DV51,$DV$2&ROW($DV51)),$DU51,$DU$2&ROW($DU51)),$DT51,$DT$2&ROW($DT51)),$DS51,$DS$2&ROW($DS51)))","v":0},{"$f":"IF(AB51=\"\",0,\"X=\"&SUBSTITUTE(SUBSTITUTE(SUBSTITUTE(SUBSTITUTE(SUBSTITUTE(SUBSTITUTE(SUBSTITUTE(SUBSTITUTE(SUBSTITUTE(SUBSTITUTE(SUBSTITUTE(SUBSTITUTE(AB51,$ED51,$ED$2&ROW($ED51)),$EC51,$EC$2&ROW($EC51)),$EB51,$EB$2&ROW($EB51)),$EA51,$EA$2&ROW($EA51)),$DZ51,$DZ$2&ROW($DZ51)),$DY51,$DY$2&ROW($DY51)),$DX51,$DX$2&ROW($DX51)),$DW51,$DW$2&ROW($DW51)),$DV51,$DV$2&ROW($DV51)),$DU51,$DU$2&ROW($DU51)),$DT51,$DT$2&ROW($DT51)),$DS51,$DS$2&ROW($DS51)))","v":0},null,null,"{Factor:WinterCF}","{Factor:SummerCF}",{"$f":"IFERROR(INDEX($EG51:$IV51,MATCH(0,COUNTIF($DR51:DT51,$EG51:$IV51),0)),\"\")","v":"{Measure:Quantity}"},{"$f":"IFERROR(INDEX($EG51:$IV51,MATCH(0,COUNTIF($DR51:DU51,$EG51:$IV51),0)),\"\")","v":"{Motor HP}"},{"$f":"IFERROR(INDEX($EG51:$IV51,MATCH(0,COUNTIF($DR51:DV51,$EG51:$IV51),0)),\"\")","v":""},{"$f":"IFERROR(INDEX($EG51:$IV51,MATCH(0,COUNTIF($DR51:DW51,$EG51:$IV51),0)),\"\")","v":""},{"$f":"IFERROR(INDEX($EG51:$IV51,MATCH(0,COUNTIF($DR51:DX51,$EG51:$IV51),0)),\"\")","v":""},{"$f":"IFERROR(INDEX($EG51:$IV51,MATCH(0,COUNTIF($DR51:DY51,$EG51:$IV51),0)),\"\")","v":""},{"$f":"IFERROR(INDEX($EG51:$IV51,MATCH(0,COUNTIF($DR51:DZ51,$EG51:$IV51),0)),\"\")","v":""},{"$f":"IFERROR(INDEX($EG51:$IV51,MATCH(0,COUNTIF($DR51:EA51,$EG51:$IV51),0)),\"\")","v":""},{"$f":"IFERROR(INDEX($EG51:$IV51,MATCH(0,COUNTIF($DR51:EB51,$EG51:$IV51),0)),\"\")","v":""},{"$f":"IFERROR(INDEX($EG51:$IV51,MATCH(0,COUNTIF($DR51:EC51,$EG51:$IV51),0)),\"\")","v":""},null,null,{"$f":"IFERROR(MID($G51,FIND(CHAR(160),SUBSTITUTE($G51,\"{\",CHAR(160),EG$1)),FIND(CHAR(160),SUBSTITUTE($G51,\"}\",CHAR(160),EG$1))-FIND(CHAR(160),SUBSTITUTE($G51,\"{\",CHAR(160),EG$1))+1),\"\")","v":"{Measure:Quantity}"},{"$f":"IFERROR(MID($G51,FIND(CHAR(160),SUBSTITUTE($G51,\"{\",CHAR(160),EH$1)),FIND(CHAR(160),SUBSTITUTE($G51,\"}\",CHAR(160),EH$1))-FIND(CHAR(160),SUBSTITUTE($G51,\"{\",CHAR(160),EH$1))+1),\"\")","v":"{Motor HP}"},{"$f":"IFERROR(MID($G51,FIND(CHAR(160),SUBSTITUTE($G51,\"{\",CHAR(160),EI$1)),FIND(CHAR(160),SUBSTITUTE($G51,\"}\",CHAR(160),EI$1))-FIND(CHAR(160),SUBSTITUTE($G51,\"{\",CHAR(160),EI$1))+1),\"\")","v":"{Motor HP}"},{"$f":"IFERROR(MID($G51,FIND(CHAR(160),SUBSTITUTE($G51,\"{\",CHAR(160),EJ$1)),FIND(CHAR(160),SUBSTITUTE($G51,\"}\",CHAR(160),EJ$1))-FIND(CHAR(160),SUBSTITUTE($G51,\"{\",CHAR(160),EJ$1))+1),\"\")","v":"{Motor HP}"},{"$f":"IFERROR(MID($G51,FIND(CHAR(160),SUBSTITUTE($G51,\"{\",CHAR(160),EK$1)),FIND(CHAR(160),SUBSTITUTE($G51,\"}\",CHAR(160),EK$1))-FIND(CHAR(160),SUBSTITUTE($G51,\"{\",CHAR(160),EK$1))+1),\"\")","v":"{Motor HP}"},{"$f":"IFERROR(MID($G51,FIND(CHAR(160),SUBSTITUTE($G51,\"{\",CHAR(160),EL$1)),FIND(CHAR(160),SUBSTITUTE($G51,\"}\",CHAR(160),EL$1))-FIND(CHAR(160),SUBSTITUTE($G51,\"{\",CHAR(160),EL$1))+1),\"\")","v":"{Motor HP}"},{"$f":"IFERROR(MID($G51,FIND(CHAR(160),SUBSTITUTE($G51,\"{\",CHAR(160),EM$1)),FIND(CHAR(160),SUBSTITUTE($G51,\"}\",CHAR(160),EM$1))-FIND(CHAR(160),SUBSTITUTE($G51,\"{\",CHAR(160),EM$1))+1),\"\")","v":"{Motor HP}"},{"$f":"IFERROR(MID($G51,FIND(CHAR(160),SUBSTITUTE($G51,\"{\",CHAR(160),EN$1)),FIND(CHAR(160),SUBSTITUTE($G51,\"}\",CHAR(160),EN$1))-FIND(CHAR(160),SUBSTITUTE($G51,\"{\",CHAR(160),EN$1))+1),\"\")","v":"{Motor HP}"},{"$f":"IFERROR(MID($G51,FIND(CHAR(160),SUBSTITUTE($G51,\"{\",CHAR(160),EO$1)),FIND(CHAR(160),SUBSTITUTE($G51,\"}\",CHAR(160),EO$1))-FIND(CHAR(160),SUBSTITUTE($G51,\"{\",CHAR(160),EO$1))+1),\"\")","v":""},{"$f":"IFERROR(MID($G51,FIND(CHAR(160),SUBSTITUTE($G51,\"{\",CHAR(160),EP$1)),FIND(CHAR(160),SUBSTITUTE($G51,\"}\",CHAR(160),EP$1))-FIND(CHAR(160),SUBSTITUTE($G51,\"{\",CHAR(160),EP$1))+1),\"\")","v":""},{"$f":"IFERROR(MID($J51,FIND(CHAR(160),SUBSTITUTE($J51,\"{\",CHAR(160),EQ$1)),FIND(CHAR(160),SUBSTITUTE($J51,\"}\",CHAR(160),EQ$1))-FIND(CHAR(160),SUBSTITUTE($J51,\"{\",CHAR(160),EQ$1))+1),\"\")","v":"{Measure:Quantity}"},{"$f":"IFERROR(MID($J51,FIND(CHAR(160),SUBSTITUTE($J51,\"{\",CHAR(160),ER$1)),FIND(CHAR(160),SUBSTITUTE($J51,\"}\",CHAR(160),ER$1))-FIND(CHAR(160),SUBSTITUTE($J51,\"{\",CHAR(160),ER$1))+1),\"\")","v":"{Motor HP}"},{"$f":"IFERROR(MID($J51,FIND(CHAR(160),SUBSTITUTE($J51,\"{\",CHAR(160),ES$1)),FIND(CHAR(160),SUBSTITUTE($J51,\"}\",CHAR(160),ES$1))-FIND(CHAR(160),SUBSTITUTE($J51,\"{\",CHAR(160),ES$1))+1),\"\")","v":"{Motor HP}"},{"$f":"IFERROR(MID($J51,FIND(CHAR(160),SUBSTITUTE($J51,\"{\",CHAR(160),ET$1)),FIND(CHAR(160),SUBSTITUTE($J51,\"}\",CHAR(160),ET$1))-FIND(CHAR(160),SUBSTITUTE($J51,\"{\",CHAR(160),ET$1))+1),\"\")","v":"{Motor HP}"},{"$f":"IFERROR(MID($J51,FIND(CHAR(160),SUBSTITUTE($J51,\"{\",CHAR(160),EU$1)),FIND(CHAR(160),SUBSTITUTE($J51,\"}\",CHAR(160),EU$1))-FIND(CHAR(160),SUBSTITUTE($J51,\"{\",CHAR(160),EU$1))+1),\"\")","v":"{Motor HP}"},{"$f":"IFERROR(MID($J51,FIND(CHAR(160),SUBSTITUTE($J51,\"{\",CHAR(160),EV$1)),FIND(CHAR(160),SUBSTITUTE($J51,\"}\",CHAR(160),EV$1))-FIND(CHAR(160),SUBSTITUTE($J51,\"{\",CHAR(160),EV$1))+1),\"\")","v":"{Motor HP}"},{"$f":"IFERROR(MID($J51,FIND(CHAR(160),SUBSTITUTE($J51,\"{\",CHAR(160),EW$1)),FIND(CHAR(160),SUBSTITUTE($J51,\"}\",CHAR(160),EW$1))-FIND(CHAR(160),SUBSTITUTE($J51,\"{\",CHAR(160),EW$1))+1),\"\")","v":"{Motor HP}"},{"$f":"IFERROR(MID($J51,FIND(CHAR(160),SUBSTITUTE($J51,\"{\",CHAR(160),EX$1)),FIND(CHAR(160),SUBSTITUTE($J51,\"}\",CHAR(160),EX$1))-FIND(CHAR(160),SUBSTITUTE($J51,\"{\",CHAR(160),EX$1))+1),\"\")","v":"{Motor HP}"},{"$f":"IFERROR(MID($J51,FIND(CHAR(160),SUBSTITUTE($J51,\"{\",CHAR(160),EY$1)),FIND(CHAR(160),SUBSTITUTE($J51,\"}\",CHAR(160),EY$1))-FIND(CHAR(160),SUBSTITUTE($J51,\"{\",CHAR(160),EY$1))+1),\"\")","v":""},{"$f":"IFERROR(MID($J51,FIND(CHAR(160),SUBSTITUTE($J51,\"{\",CHAR(160),EZ$1)),FIND(CHAR(160),SUBSTITUTE($J51,\"}\",CHAR(160),EZ$1))-FIND(CHAR(160),SUBSTITUTE($J51,\"{\",CHAR(160),EZ$1))+1),\"\")","v":""},{"$f":"IFERROR(MID($J51,FIND(CHAR(160),SUBSTITUTE($J51,\"{\",CHAR(160),FA$1)),FIND(CHAR(160),SUBSTITUTE($J51,\"}\",CHAR(160),FA$1))-FIND(CHAR(160),SUBSTITUTE($J51,\"{\",CHAR(160),FA$1))+1),\"\")","v":"{Measure:Quantity}"},{"$f":"IFERROR(MID($J51,FIND(CHAR(160),SUBSTITUTE($J51,\"{\",CHAR(160),FB$1)),FIND(CHAR(160),SUBSTITUTE($J51,\"}\",CHAR(160),FB$1))-FIND(CHAR(160),SUBSTITUTE($J51,\"{\",CHAR(160),FB$1))+1),\"\")","v":"{Motor HP}"},{"$f":"IFERROR(MID($O51,FIND(CHAR(160),SUBSTITUTE($O51,\"{\",CHAR(160),FC$1)),FIND(CHAR(160),SUBSTITUTE($O51,\"}\",CHAR(160),FC$1))-FIND(CHAR(160),SUBSTITUTE($O51,\"{\",CHAR(160),FC$1))+1),\"\")","v":""},{"$f":"IFERROR(MID($O51,FIND(CHAR(160),SUBSTITUTE($O51,\"{\",CHAR(160),FD$1)),FIND(CHAR(160),SUBSTITUTE($O51,\"}\",CHAR(160),FD$1))-FIND(CHAR(160),SUBSTITUTE($O51,\"{\",CHAR(160),FD$1))+1),\"\")","v":""},{"$f":"IFERROR(MID($O51,FIND(CHAR(160),SUBSTITUTE($O51,\"{\",CHAR(160),FE$1)),FIND(CHAR(160),SUBSTITUTE($O51,\"}\",CHAR(160),FE$1))-FIND(CHAR(160),SUBSTITUTE($O51,\"{\",CHAR(160),FE$1))+1),\"\")","v":""},{"$f":"IFERROR(MID($O51,FIND(CHAR(160),SUBSTITUTE($O51,\"{\",CHAR(160),FF$1)),FIND(CHAR(160),SUBSTITUTE($O51,\"}\",CHAR(160),FF$1))-FIND(CHAR(160),SUBSTITUTE($O51,\"{\",CHAR(160),FF$1))+1),\"\")","v":""},{"$f":"IFERROR(MID($O51,FIND(CHAR(160),SUBSTITUTE($O51,\"{\",CHAR(160),FG$1)),FIND(CHAR(160),SUBSTITUTE($O51,\"}\",CHAR(160),FG$1))-FIND(CHAR(160),SUBSTITUTE($O51,\"{\",CHAR(160),FG$1))+1),\"\")","v":""},{"$f":"IFERROR(MID($O51,FIND(CHAR(160),SUBSTITUTE($O51,\"{\",CHAR(160),FH$1)),FIND(CHAR(160),SUBSTITUTE($O51,\"}\",CHAR(160),FH$1))-FIND(CHAR(160),SUBSTITUTE($O51,\"{\",CHAR(160),FH$1))+1),\"\")","v":""},{"$f":"IFERROR(MID($O51,FIND(CHAR(160),SUBSTITUTE($O51,\"{\",CHAR(160),FI$1)),FIND(CHAR(160),SUBSTITUTE($O51,\"}\",CHAR(160),FI$1))-FIND(CHAR(160),SUBSTITUTE($O51,\"{\",CHAR(160),FI$1))+1),\"\")","v":""},{"$f":"IFERROR(MID($O51,FIND(CHAR(160),SUBSTITUTE($O51,\"{\",CHAR(160),FJ$1)),FIND(CHAR(160),SUBSTITUTE($O51,\"}\",CHAR(160),FJ$1))-FIND(CHAR(160),SUBSTITUTE($O51,\"{\",CHAR(160),FJ$1))+1),\"\")","v":""},{"$f":"IFERROR(MID($O51,FIND(CHAR(160),SUBSTITUTE($O51,\"{\",CHAR(160),FK$1)),FIND(CHAR(160),SUBSTITUTE($O51,\"}\",CHAR(160),FK$1))-FIND(CHAR(160),SUBSTITUTE($O51,\"{\",CHAR(160),FK$1))+1),\"\")","v":"{Measure:Quantity}"},{"$f":"IFERROR(MID($O51,FIND(CHAR(160),SUBSTITUTE($O51,\"{\",CHAR(160),FL$1)),FIND(CHAR(160),SUBSTITUTE($O51,\"}\",CHAR(160),FL$1))-FIND(CHAR(160),SUBSTITUTE($O51,\"{\",CHAR(160),FL$1))+1),\"\")","v":"{Motor HP}"},{"$f":"IFERROR(MID($R51,FIND(CHAR(160),SUBSTITUTE($R51,\"{\",CHAR(160),FM$1)),FIND(CHAR(160),SUBSTITUTE($R51,\"}\",CHAR(160),FM$1))-FIND(CHAR(160),SUBSTITUTE($R51,\"{\",CHAR(160),FM$1))+1),\"\")","v":""},{"$f":"IFERROR(MID($R51,FIND(CHAR(160),SUBSTITUTE($R51,\"{\",CHAR(160),FN$1)),FIND(CHAR(160),SUBSTITUTE($R51,\"}\",CHAR(160),FN$1))-FIND(CHAR(160),SUBSTITUTE($R51,\"{\",CHAR(160),FN$1))+1),\"\")","v":""},{"$f":"IFERROR(MID($R51,FIND(CHAR(160),SUBSTITUTE($R51,\"{\",CHAR(160),FO$1)),FIND(CHAR(160),SUBSTITUTE($R51,\"}\",CHAR(160),FO$1))-FIND(CHAR(160),SUBSTITUTE($R51,\"{\",CHAR(160),FO$1))+1),\"\")","v":""},{"$f":"IFERROR(MID($R51,FIND(CHAR(160),SUBSTITUTE($R51,\"{\",CHAR(160),FP$1)),FIND(CHAR(160),SUBSTITUTE($R51,\"}\",CHAR(160),FP$1))-FIND(CHAR(160),SUBSTITUTE($R51,\"{\",CHAR(160),FP$1))+1),\"\")","v":""},{"$f":"IFERROR(MID($R51,FIND(CHAR(160),SUBSTITUTE($R51,\"{\",CHAR(160),FQ$1)),FIND(CHAR(160),SUBSTITUTE($R51,\"}\",CHAR(160),FQ$1))-FIND(CHAR(160),SUBSTITUTE($R51,\"{\",CHAR(160),FQ$1))+1),\"\")","v":""},{"$f":"IFERROR(MID($R51,FIND(CHAR(160),SUBSTITUTE($R51,\"{\",CHAR(160),FR$1)),FIND(CHAR(160),SUBSTITUTE($R51,\"}\",CHAR(160),FR$1))-FIND(CHAR(160),SUBSTITUTE($R51,\"{\",CHAR(160),FR$1))+1),\"\")","v":""},{"$f":"IFERROR(MID($R51,FIND(CHAR(160),SUBSTITUTE($R51,\"{\",CHAR(160),FS$1)),FIND(CHAR(160),SUBSTITUTE($R51,\"}\",CHAR(160),FS$1))-FIND(CHAR(160),SUBSTITUTE($R51,\"{\",CHAR(160),FS$1))+1),\"\")","v":""},{"$f":"IFERROR(MID($R51,FIND(CHAR(160),SUBSTITUTE($R51,\"{\",CHAR(160),FT$1)),FIND(CHAR(160),SUBSTITUTE($R51,\"}\",CHAR(160),FT$1))-FIND(CHAR(160),SUBSTITUTE($R51,\"{\",CHAR(160),FT$1))+1),\"\")","v":""},{"$f":"IFERROR(MID($R51,FIND(CHAR(160),SUBSTITUTE($R51,\"{\",CHAR(160),FU$1)),FIND(CHAR(160),SUBSTITUTE($R51,\"}\",CHAR(160),FU$1))-FIND(CHAR(160),SUBSTITUTE($R51,\"{\",CHAR(160),FU$1))+1),\"\")","v":"{Measure:Quantity}"},{"$f":"IFERROR(MID($R51,FIND(CHAR(160),SUBSTITUTE($R51,\"{\",CHAR(160),FV$1)),FIND(CHAR(160),SUBSTITUTE($R51,\"}\",CHAR(160),FV$1))-FIND(CHAR(160),SUBSTITUTE($R51,\"{\",CHAR(160),FV$1))+1),\"\")","v":"{Motor HP}"},{"$f":"IFERROR(MID($U51,FIND(CHAR(160),SUBSTITUTE($U51,\"{\",CHAR(160),FW$1)),FIND(CHAR(160),SUBSTITUTE($U51,\"}\",CHAR(160),FW$1))-FIND(CHAR(160),SUBSTITUTE($U51,\"{\",CHAR(160),FW$1))+1),\"\")","v":"{Motor HP}"},{"$f":"IFERROR(MID($U51,FIND(CHAR(160),SUBSTITUTE($U51,\"{\",CHAR(160),FX$1)),FIND(CHAR(160),SUBSTITUTE($U51,\"}\",CHAR(160),FX$1))-FIND(CHAR(160),SUBSTITUTE($U51,\"{\",CHAR(160),FX$1))+1),\"\")","v":""},{"$f":"IFERROR(MID($U51,FIND(CHAR(160),SUBSTITUTE($U51,\"{\",CHAR(160),FY$1)),FIND(CHAR(160),SUBSTITUTE($U51,\"}\",CHAR(160),FY$1))-FIND(CHAR(160),SUBSTITUTE($U51,\"{\",CHAR(160),FY$1))+1),\"\")","v":""},{"$f":"IFERROR(MID($U51,FIND(CHAR(160),SUBSTITUTE($U51,\"{\",CHAR(160),FZ$1)),FIND(CHAR(160),SUBSTITUTE($U51,\"}\",CHAR(160),FZ$1))-FIND(CHAR(160),SUBSTITUTE($U51,\"{\",CHAR(160),FZ$1))+1),\"\")","v":""},{"$f":"IFERROR(MID($U51,FIND(CHAR(160),SUBSTITUTE($U51,\"{\",CHAR(160),GA$1)),FIND(CHAR(160),SUBSTITUTE($U51,\"}\",CHAR(160),GA$1))-FIND(CHAR(160),SUBSTITUTE($U51,\"{\",CHAR(160),GA$1))+1),\"\")","v":""},{"$f":"IFERROR(MID($U51,FIND(CHAR(160),SUBSTITUTE($U51,\"{\",CHAR(160),GB$1)),FIND(CHAR(160),SUBSTITUTE($U51,\"}\",CHAR(160),GB$1))-FIND(CHAR(160),SUBSTITUTE($U51,\"{\",CHAR(160),GB$1))+1),\"\")","v":""},{"$f":"IFERROR(MID($U51,FIND(CHAR(160),SUBSTITUTE($U51,\"{\",CHAR(160),GC$1)),FIND(CHAR(160),SUBSTITUTE($U51,\"}\",CHAR(160),GC$1))-FIND(CHAR(160),SUBSTITUTE($U51,\"{\",CHAR(160),GC$1))+1),\"\")","v":""},{"$f":"IFERROR(MID($U51,FIND(CHAR(160),SUBSTITUTE($U51,\"{\",CHAR(160),GD$1)),FIND(CHAR(160),SUBSTITUTE($U51,\"}\",CHAR(160),GD$1))-FIND(CHAR(160),SUBSTITUTE($U51,\"{\",CHAR(160),GD$1))+1),\"\")","v":""},{"$f":"IFERROR(MID($U51,FIND(CHAR(160),SUBSTITUTE($U51,\"{\",CHAR(160),GE$1)),FIND(CHAR(160),SUBSTITUTE($U51,\"}\",CHAR(160),GE$1))-FIND(CHAR(160),SUBSTITUTE($U51,\"{\",CHAR(160),GE$1))+1),\"\")","v":"{Measure:Quantity}"},{"$f":"IFERROR(MID($U51,FIND(CHAR(160),SUBSTITUTE($U51,\"{\",CHAR(160),GF$1)),FIND(CHAR(160),SUBSTITUTE($U51,\"}\",CHAR(160),GF$1))-FIND(CHAR(160),SUBSTITUTE($U51,\"{\",CHAR(160),GF$1))+1),\"\")","v":"{Factor:WinterCF}"},{"$f":"IFERROR(MID($V51,FIND(CHAR(160),SUBSTITUTE($V51,\"{\",CHAR(160),GG$1)),FIND(CHAR(160),SUBSTITUTE($V51,\"}\",CHAR(160),GG$1))-FIND(CHAR(160),SUBSTITUTE($V51,\"{\",CHAR(160),GG$1))+1),\"\")","v":"{Motor HP}"},{"$f":"IFERROR(MID($V51,FIND(CHAR(160),SUBSTITUTE($V51,\"{\",CHAR(160),GH$1)),FIND(CHAR(160),SUBSTITUTE($V51,\"}\",CHAR(160),GH$1))-FIND(CHAR(160),SUBSTITUTE($V51,\"{\",CHAR(160),GH$1))+1),\"\")","v":""},{"$f":"IFERROR(MID($V51,FIND(CHAR(160),SUBSTITUTE($V51,\"{\",CHAR(160),GI$1)),FIND(CHAR(160),SUBSTITUTE($V51,\"}\",CHAR(160),GI$1))-FIND(CHAR(160),SUBSTITUTE($V51,\"{\",CHAR(160),GI$1))+1),\"\")","v":""},{"$f":"IFERROR(MID($V51,FIND(CHAR(160),SUBSTITUTE($V51,\"{\",CHAR(160),GJ$1)),FIND(CHAR(160),SUBSTITUTE($V51,\"}\",CHAR(160),GJ$1))-FIND(CHAR(160),SUBSTITUTE($V51,\"{\",CHAR(160),GJ$1))+1),\"\")","v":""},{"$f":"IFERROR(MID($V51,FIND(CHAR(160),SUBSTITUTE($V51,\"{\",CHAR(160),GK$1)),FIND(CHAR(160),SUBSTITUTE($V51,\"}\",CHAR(160),GK$1))-FIND(CHAR(160),SUBSTITUTE($V51,\"{\",CHAR(160),GK$1))+1),\"\")","v":""},{"$f":"IFERROR(MID($V51,FIND(CHAR(160),SUBSTITUTE($V51,\"{\",CHAR(160),GL$1)),FIND(CHAR(160),SUBSTITUTE($V51,\"}\",CHAR(160),GL$1))-FIND(CHAR(160),SUBSTITUTE($V51,\"{\",CHAR(160),GL$1))+1),\"\")","v":""},{"$f":"IFERROR(MID($V51,FIND(CHAR(160),SUBSTITUTE($V51,\"{\",CHAR(160),GM$1)),FIND(CHAR(160),SUBSTITUTE($V51,\"}\",CHAR(160),GM$1))-FIND(CHAR(160),SUBSTITUTE($V51,\"{\",CHAR(160),GM$1))+1),\"\")","v":""},{"$f":"IFERROR(MID($V51,FIND(CHAR(160),SUBSTITUTE($V51,\"{\",CHAR(160),GN$1)),FIND(CHAR(160),SUBSTITUTE($V51,\"}\",CHAR(160),GN$1))-FIND(CHAR(160),SUBSTITUTE($V51,\"{\",CHAR(160),GN$1))+1),\"\")","v":""},{"$f":"IFERROR(MID($V51,FIND(CHAR(160),SUBSTITUTE($V51,\"{\",CHAR(160),GO$1)),FIND(CHAR(160),SUBSTITUTE($V51,\"}\",CHAR(160),GO$1))-FIND(CHAR(160),SUBSTITUTE($V51,\"{\",CHAR(160),GO$1))+1),\"\")","v":"{Measure:Quantity}"},{"$f":"IFERROR(MID($V51,FIND(CHAR(160),SUBSTITUTE($V51,\"{\",CHAR(160),GP$1)),FIND(CHAR(160),SUBSTITUTE($V51,\"}\",CHAR(160),GP$1))-FIND(CHAR(160),SUBSTITUTE($V51,\"{\",CHAR(160),GP$1))+1),\"\")","v":"{Factor:SummerCF}"},{"$f":"IFERROR(MID($W51,FIND(CHAR(160),SUBSTITUTE($W51,\"{\",CHAR(160),GQ$1)),FIND(CHAR(160),SUBSTITUTE($W51,\"}\",CHAR(160),GQ$1))-FIND(CHAR(160),SUBSTITUTE($W51,\"{\",CHAR(160),GQ$1))+1),\"\")","v":""},{"$f":"IFERROR(MID($W51,FIND(CHAR(160),SUBSTITUTE($W51,\"{\",CHAR(160),GR$1)),FIND(CHAR(160),SUBSTITUTE($W51,\"}\",CHAR(160),GR$1))-FIND(CHAR(160),SUBSTITUTE($W51,\"{\",CHAR(160),GR$1))+1),\"\")","v":""},{"$f":"IFERROR(MID($W51,FIND(CHAR(160),SUBSTITUTE($W51,\"{\",CHAR(160),GS$1)),FIND(CHAR(160),SUBSTITUTE($W51,\"}\",CHAR(160),GS$1))-FIND(CHAR(160),SUBSTITUTE($W51,\"{\",CHAR(160),GS$1))+1),\"\")","v":""},{"$f":"IFERROR(MID($W51,FIND(CHAR(160),SUBSTITUTE($W51,\"{\",CHAR(160),GT$1)),FIND(CHAR(160),SUBSTITUTE($W51,\"}\",CHAR(160),GT$1))-FIND(CHAR(160),SUBSTITUTE($W51,\"{\",CHAR(160),GT$1))+1),\"\")","v":""},{"$f":"IFERROR(MID($W51,FIND(CHAR(160),SUBSTITUTE($W51,\"{\",CHAR(160),GU$1)),FIND(CHAR(160),SUBSTITUTE($W51,\"}\",CHAR(160),GU$1))-FIND(CHAR(160),SUBSTITUTE($W51,\"{\",CHAR(160),GU$1))+1),\"\")","v":""},{"$f":"IFERROR(MID($W51,FIND(CHAR(160),SUBSTITUTE($W51,\"{\",CHAR(160),GV$1)),FIND(CHAR(160),SUBSTITUTE($W51,\"}\",CHAR(160),GV$1))-FIND(CHAR(160),SUBSTITUTE($W51,\"{\",CHAR(160),GV$1))+1),\"\")","v":""},{"$f":"IFERROR(MID($W51,FIND(CHAR(160),SUBSTITUTE($W51,\"{\",CHAR(160),GW$1)),FIND(CHAR(160),SUBSTITUTE($W51,\"}\",CHAR(160),GW$1))-FIND(CHAR(160),SUBSTITUTE($W51,\"{\",CHAR(160),GW$1))+1),\"\")","v":""},{"$f":"IFERROR(MID($W51,FIND(CHAR(160),SUBSTITUTE($W51,\"{\",CHAR(160),GX$1)),FIND(CHAR(160),SUBSTITUTE($W51,\"}\",CHAR(160),GX$1))-FIND(CHAR(160),SUBSTITUTE($W51,\"{\",CHAR(160),GX$1))+1),\"\")","v":""},{"$f":"IFERROR(MID($W51,FIND(CHAR(160),SUBSTITUTE($W51,\"{\",CHAR(160),GY$1)),FIND(CHAR(160),SUBSTITUTE($W51,\"}\",CHAR(160),GY$1))-FIND(CHAR(160),SUBSTITUTE($W51,\"{\",CHAR(160),GY$1))+1),\"\")","v":""},{"$f":"IFERROR(MID($W51,FIND(CHAR(160),SUBSTITUTE($W51,\"{\",CHAR(160),GZ$1)),FIND(CHAR(160),SUBSTITUTE($W51,\"}\",CHAR(160),GZ$1))-FIND(CHAR(160),SUBSTITUTE($W51,\"{\",CHAR(160),GZ$1))+1),\"\")","v":""},{"$f":"IFERROR(MID($X51,FIND(CHAR(160),SUBSTITUTE($X51,\"{\",CHAR(160),HA$1)),FIND(CHAR(160),SUBSTITUTE($X51,\"}\",CHAR(160),HA$1))-FIND(CHAR(160),SUBSTITUTE($X51,\"{\",CHAR(160),HA$1))+1),\"\")","v":""},{"$f":"IFERROR(MID($X51,FIND(CHAR(160),SUBSTITUTE($X51,\"{\",CHAR(160),HB$1)),FIND(CHAR(160),SUBSTITUTE($X51,\"}\",CHAR(160),HB$1))-FIND(CHAR(160),SUBSTITUTE($X51,\"{\",CHAR(160),HB$1))+1),\"\")","v":""},{"$f":"IFERROR(MID($X51,FIND(CHAR(160),SUBSTITUTE($X51,\"{\",CHAR(160),HC$1)),FIND(CHAR(160),SUBSTITUTE($X51,\"}\",CHAR(160),HC$1))-FIND(CHAR(160),SUBSTITUTE($X51,\"{\",CHAR(160),HC$1))+1),\"\")","v":""},{"$f":"IFERROR(MID($X51,FIND(CHAR(160),SUBSTITUTE($X51,\"{\",CHAR(160),HD$1)),FIND(CHAR(160),SUBSTITUTE($X51,\"}\",CHAR(160),HD$1))-FIND(CHAR(160),SUBSTITUTE($X51,\"{\",CHAR(160),HD$1))+1),\"\")","v":""},{"$f":"IFERROR(MID($X51,FIND(CHAR(160),SUBSTITUTE($X51,\"{\",CHAR(160),HE$1)),FIND(CHAR(160),SUBSTITUTE($X51,\"}\",CHAR(160),HE$1))-FIND(CHAR(160),SUBSTITUTE($X51,\"{\",CHAR(160),HE$1))+1),\"\")","v":""},{"$f":"IFERROR(MID($X51,FIND(CHAR(160),SUBSTITUTE($X51,\"{\",CHAR(160),HF$1)),FIND(CHAR(160),SUBSTITUTE($X51,\"}\",CHAR(160),HF$1))-FIND(CHAR(160),SUBSTITUTE($X51,\"{\",CHAR(160),HF$1))+1),\"\")","v":""},{"$f":"IFERROR(MID($X51,FIND(CHAR(160),SUBSTITUTE($X51,\"{\",CHAR(160),HG$1)),FIND(CHAR(160),SUBSTITUTE($X51,\"}\",CHAR(160),HG$1))-FIND(CHAR(160),SUBSTITUTE($X51,\"{\",CHAR(160),HG$1))+1),\"\")","v":""},{"$f":"IFERROR(MID($X51,FIND(CHAR(160),SUBSTITUTE($X51,\"{\",CHAR(160),HH$1)),FIND(CHAR(160),SUBSTITUTE($X51,\"}\",CHAR(160),HH$1))-FIND(CHAR(160),SUBSTITUTE($X51,\"{\",CHAR(160),HH$1))+1),\"\")","v":""},{"$f":"IFERROR(MID($X51,FIND(CHAR(160),SUBSTITUTE($X51,\"{\",CHAR(160),HI$1)),FIND(CHAR(160),SUBSTITUTE($X51,\"}\",CHAR(160),HI$1))-FIND(CHAR(160),SUBSTITUTE($X51,\"{\",CHAR(160),HI$1))+1),\"\")","v":""},{"$f":"IFERROR(MID($X51,FIND(CHAR(160),SUBSTITUTE($X51,\"{\",CHAR(160),HJ$1)),FIND(CHAR(160),SUBSTITUTE($X51,\"}\",CHAR(160),HJ$1))-FIND(CHAR(160),SUBSTITUTE($X51,\"{\",CHAR(160),HJ$1))+1),\"\")","v":""},{"$f":"IFERROR(MID($Y51,FIND(CHAR(160),SUBSTITUTE($Y51,\"{\",CHAR(160),HK$1)),FIND(CHAR(160),SUBSTITUTE($Y51,\"}\",CHAR(160),HK$1))-FIND(CHAR(160),SUBSTITUTE($Y51,\"{\",CHAR(160),HK$1))+1),\"\")","v":""},{"$f":"IFERROR(MID($Y51,FIND(CHAR(160),SUBSTITUTE($Y51,\"{\",CHAR(160),HL$1)),FIND(CHAR(160),SUBSTITUTE($Y51,\"}\",CHAR(160),HL$1))-FIND(CHAR(160),SUBSTITUTE($Y51,\"{\",CHAR(160),HL$1))+1),\"\")","v":""},{"$f":"IFERROR(MID($Y51,FIND(CHAR(160),SUBSTITUTE($Y51,\"{\",CHAR(160),HM$1)),FIND(CHAR(160),SUBSTITUTE($Y51,\"}\",CHAR(160),HM$1))-FIND(CHAR(160),SUBSTITUTE($Y51,\"{\",CHAR(160),HM$1))+1),\"\")","v":""},{"$f":"IFERROR(MID($Y51,FIND(CHAR(160),SUBSTITUTE($Y51,\"{\",CHAR(160),HN$1)),FIND(CHAR(160),SUBSTITUTE($Y51,\"}\",CHAR(160),HN$1))-FIND(CHAR(160),SUBSTITUTE($Y51,\"{\",CHAR(160),HN$1))+1),\"\")","v":""},{"$f":"IFERROR(MID($Y51,FIND(CHAR(160),SUBSTITUTE($Y51,\"{\",CHAR(160),HO$1)),FIND(CHAR(160),SUBSTITUTE($Y51,\"}\",CHAR(160),HO$1))-FIND(CHAR(160),SUBSTITUTE($Y51,\"{\",CHAR(160),HO$1))+1),\"\")","v":""},{"$f":"IFERROR(MID($Y51,FIND(CHAR(160),SUBSTITUTE($Y51,\"{\",CHAR(160),HP$1)),FIND(CHAR(160),SUBSTITUTE($Y51,\"}\",CHAR(160),HP$1))-FIND(CHAR(160),SUBSTITUTE($Y51,\"{\",CHAR(160),HP$1))+1),\"\")","v":""},{"$f":"IFERROR(MID($Y51,FIND(CHAR(160),SUBSTITUTE($Y51,\"{\",CHAR(160),HQ$1)),FIND(CHAR(160),SUBSTITUTE($Y51,\"}\",CHAR(160),HQ$1))-FIND(CHAR(160),SUBSTITUTE($Y51,\"{\",CHAR(160),HQ$1))+1),\"\")","v":""},{"$f":"IFERROR(MID($Y51,FIND(CHAR(160),SUBSTITUTE($Y51,\"{\",CHAR(160),HR$1)),FIND(CHAR(160),SUBSTITUTE($Y51,\"}\",CHAR(160),HR$1))-FIND(CHAR(160),SUBSTITUTE($Y51,\"{\",CHAR(160),HR$1))+1),\"\")","v":""},{"$f":"IFERROR(MID($Y51,FIND(CHAR(160),SUBSTITUTE($Y51,\"{\",CHAR(160),HS$1)),FIND(CHAR(160),SUBSTITUTE($Y51,\"}\",CHAR(160),HS$1))-FIND(CHAR(160),SUBSTITUTE($Y51,\"{\",CHAR(160),HS$1))+1),\"\")","v":""},{"$f":"IFERROR(MID($Y51,FIND(CHAR(160),SUBSTITUTE($Y51,\"{\",CHAR(160),HT$1)),FIND(CHAR(160),SUBSTITUTE($Y51,\"}\",CHAR(160),HT$1))-FIND(CHAR(160),SUBSTITUTE($Y51,\"{\",CHAR(160),HT$1))+1),\"\")","v":""},{"$f":"IFERROR(MID($Z51,FIND(CHAR(160),SUBSTITUTE($Z51,\"{\",CHAR(160),HU$1)),FIND(CHAR(160),SUBSTITUTE($Z51,\"}\",CHAR(160),HU$1))-FIND(CHAR(160),SUBSTITUTE($Z51,\"{\",CHAR(160),HU$1))+1),\"\")","v":""},{"$f":"IFERROR(MID($Z51,FIND(CHAR(160),SUBSTITUTE($Z51,\"{\",CHAR(160),HV$1)),FIND(CHAR(160),SUBSTITUTE($Z51,\"}\",CHAR(160),HV$1))-FIND(CHAR(160),SUBSTITUTE($Z51,\"{\",CHAR(160),HV$1))+1),\"\")","v":""},{"$f":"IFERROR(MID($Z51,FIND(CHAR(160),SUBSTITUTE($Z51,\"{\",CHAR(160),HW$1)),FIND(CHAR(160),SUBSTITUTE($Z51,\"}\",CHAR(160),HW$1))-FIND(CHAR(160),SUBSTITUTE($Z51,\"{\",CHAR(160),HW$1))+1),\"\")","v":""},{"$f":"IFERROR(MID($Z51,FIND(CHAR(160),SUBSTITUTE($Z51,\"{\",CHAR(160),HX$1)),FIND(CHAR(160),SUBSTITUTE($Z51,\"}\",CHAR(160),HX$1))-FIND(CHAR(160),SUBSTITUTE($Z51,\"{\",CHAR(160),HX$1))+1),\"\")","v":""},{"$f":"IFERROR(MID($Z51,FIND(CHAR(160),SUBSTITUTE($Z51,\"{\",CHAR(160),HY$1)),FIND(CHAR(160),SUBSTITUTE($Z51,\"}\",CHAR(160),HY$1))-FIND(CHAR(160),SUBSTITUTE($Z51,\"{\",CHAR(160),HY$1))+1),\"\")","v":""},{"$f":"IFERROR(MID($Z51,FIND(CHAR(160),SUBSTITUTE($Z51,\"{\",CHAR(160),HZ$1)),FIND(CHAR(160),SUBSTITUTE($Z51,\"}\",CHAR(160),HZ$1))-FIND(CHAR(160),SUBSTITUTE($Z51,\"{\",CHAR(160),HZ$1))+1),\"\")","v":""},{"$f":"IFERROR(MID($Z51,FIND(CHAR(160),SUBSTITUTE($Z51,\"{\",CHAR(160),IA$1)),FIND(CHAR(160),SUBSTITUTE($Z51,\"}\",CHAR(160),IA$1))-FIND(CHAR(160),SUBSTITUTE($Z51,\"{\",CHAR(160),IA$1))+1),\"\")","v":""},{"$f":"IFERROR(MID($Z51,FIND(CHAR(160),SUBSTITUTE($Z51,\"{\",CHAR(160),IB$1)),FIND(CHAR(160),SUBSTITUTE($Z51,\"}\",CHAR(160),IB$1))-FIND(CHAR(160),SUBSTITUTE($Z51,\"{\",CHAR(160),IB$1))+1),\"\")","v":""},{"$f":"IFERROR(MID($Z51,FIND(CHAR(160),SUBSTITUTE($Z51,\"{\",CHAR(160),IC$1)),FIND(CHAR(160),SUBSTITUTE($Z51,\"}\",CHAR(160),IC$1))-FIND(CHAR(160),SUBSTITUTE($Z51,\"{\",CHAR(160),IC$1))+1),\"\")","v":""},{"$f":"IFERROR(MID($Z51,FIND(CHAR(160),SUBSTITUTE($Z51,\"{\",CHAR(160),ID$1)),FIND(CHAR(160),SUBSTITUTE($Z51,\"}\",CHAR(160),ID$1))-FIND(CHAR(160),SUBSTITUTE($Z51,\"{\",CHAR(160),ID$1))+1),\"\")","v":""},{"$f":"IFERROR(MID($AA51,FIND(CHAR(160),SUBSTITUTE($AA51,\"{\",CHAR(160),IE$1)),FIND(CHAR(160),SUBSTITUTE($AA51,\"}\",CHAR(160),IE$1))-FIND(CHAR(160),SUBSTITUTE($AA51,\"{\",CHAR(160),IE$1))+1),\"\")","v":""},{"$f":"IFERROR(MID($AA51,FIND(CHAR(160),SUBSTITUTE($AA51,\"{\",CHAR(160),IF$1)),FIND(CHAR(160),SUBSTITUTE($AA51,\"}\",CHAR(160),IF$1))-FIND(CHAR(160),SUBSTITUTE($AA51,\"{\",CHAR(160),IF$1))+1),\"\")","v":""},{"$f":"IFERROR(MID($AA51,FIND(CHAR(160),SUBSTITUTE($AA51,\"{\",CHAR(160),IG$1)),FIND(CHAR(160),SUBSTITUTE($AA51,\"}\",CHAR(160),IG$1))-FIND(CHAR(160),SUBSTITUTE($AA51,\"{\",CHAR(160),IG$1))+1),\"\")","v":""},{"$f":"IFERROR(MID($AA51,FIND(CHAR(160),SUBSTITUTE($AA51,\"{\",CHAR(160),IH$1)),FIND(CHAR(160),SUBSTITUTE($AA51,\"}\",CHAR(160),IH$1))-FIND(CHAR(160),SUBSTITUTE($AA51,\"{\",CHAR(160),IH$1))+1),\"\")","v":""},{"$f":"IFERROR(MID($AA51,FIND(CHAR(160),SUBSTITUTE($AA51,\"{\",CHAR(160),II$1)),FIND(CHAR(160),SUBSTITUTE($AA51,\"}\",CHAR(160),II$1))-FIND(CHAR(160),SUBSTITUTE($AA51,\"{\",CHAR(160),II$1))+1),\"\")","v":""},{"$f":"IFERROR(MID($AA51,FIND(CHAR(160),SUBSTITUTE($AA51,\"{\",CHAR(160),IJ$1)),FIND(CHAR(160),SUBSTITUTE($AA51,\"}\",CHAR(160),IJ$1))-FIND(CHAR(160),SUBSTITUTE($AA51,\"{\",CHAR(160),IJ$1))+1),\"\")","v":""},{"$f":"IFERROR(MID($AA51,FIND(CHAR(160),SUBSTITUTE($AA51,\"{\",CHAR(160),IK$1)),FIND(CHAR(160),SUBSTITUTE($AA51,\"}\",CHAR(160),IK$1))-FIND(CHAR(160),SUBSTITUTE($AA51,\"{\",CHAR(160),IK$1))+1),\"\")","v":""},{"$f":"IFERROR(MID($AA51,FIND(CHAR(160),SUBSTITUTE($AA51,\"{\",CHAR(160),IL$1)),FIND(CHAR(160),SUBSTITUTE($AA51,\"}\",CHAR(160),IL$1))-FIND(CHAR(160),SUBSTITUTE($AA51,\"{\",CHAR(160),IL$1))+1),\"\")","v":""},{"$f":"IFERROR(MID($AA51,FIND(CHAR(160),SUBSTITUTE($AA51,\"{\",CHAR(160),IM$1)),FIND(CHAR(160),SUBSTITUTE($AA51,\"}\",CHAR(160),IM$1))-FIND(CHAR(160),SUBSTITUTE($AA51,\"{\",CHAR(160),IM$1))+1),\"\")","v":""},{"$f":"IFERROR(MID($AA51,FIND(CHAR(160),SUBSTITUTE($AA51,\"{\",CHAR(160),IN$1)),FIND(CHAR(160),SUBSTITUTE($AA51,\"}\",CHAR(160),IN$1))-FIND(CHAR(160),SUBSTITUTE($AA51,\"{\",CHAR(160),IN$1))+1),\"\")","v":""},{"$f":"IFERROR(MID($AB51,FIND(CHAR(160),SUBSTITUTE($AB51,\"{\",CHAR(160),IO$1)),FIND(CHAR(160),SUBSTITUTE($AB51,\"}\",CHAR(160),IO$1))-FIND(CHAR(160),SUBSTITUTE($AB51,\"{\",CHAR(160),IO$1))+1),\"\")","v":""},{"$f":"IFERROR(MID($AB51,FIND(CHAR(160),SUBSTITUTE($AB51,\"{\",CHAR(160),IP$1)),FIND(CHAR(160),SUBSTITUTE($AB51,\"}\",CHAR(160),IP$1))-FIND(CHAR(160),SUBSTITUTE($AB51,\"{\",CHAR(160),IP$1))+1),\"\")","v":""},{"$f":"IFERROR(MID($AB51,FIND(CHAR(160),SUBSTITUTE($AB51,\"{\",CHAR(160),IQ$1)),FIND(CHAR(160),SUBSTITUTE($AB51,\"}\",CHAR(160),IQ$1))-FIND(CHAR(160),SUBSTITUTE($AB51,\"{\",CHAR(160),IQ$1))+1),\"\")","v":""},{"$f":"IFERROR(MID($AB51,FIND(CHAR(160),SUBSTITUTE($AB51,\"{\",CHAR(160),IR$1)),FIND(CHAR(160),SUBSTITUTE($AB51,\"}\",CHAR(160),IR$1))-FIND(CHAR(160),SUBSTITUTE($AB51,\"{\",CHAR(160),IR$1))+1),\"\")","v":""},{"$f":"IFERROR(MID($AB51,FIND(CHAR(160),SUBSTITUTE($AB51,\"{\",CHAR(160),IS$1)),FIND(CHAR(160),SUBSTITUTE($AB51,\"}\",CHAR(160),IS$1))-FIND(CHAR(160),SUBSTITUTE($AB51,\"{\",CHAR(160),IS$1))+1),\"\")","v":""},{"$f":"IFERROR(MID($AB51,FIND(CHAR(160),SUBSTITUTE($AB51,\"{\",CHAR(160),IT$1)),FIND(CHAR(160),SUBSTITUTE($AB51,\"}\",CHAR(160),IT$1))-FIND(CHAR(160),SUBSTITUTE($AB51,\"{\",CHAR(160),IT$1))+1),\"\")","v":""},{"$f":"IFERROR(MID($AB51,FIND(CHAR(160),SUBSTITUTE($AB51,\"{\",CHAR(160),IU$1)),FIND(CHAR(160),SUBSTITUTE($AB51,\"}\",CHAR(160),IU$1))-FIND(CHAR(160),SUBSTITUTE($AB51,\"{\",CHAR(160),IU$1))+1),\"\")","v":""},{"$f":"IFERROR(MID($AB51,FIND(CHAR(160),SUBSTITUTE($AB51,\"{\",CHAR(160),IV$1)),FIND(CHAR(160),SUBSTITUTE($AB51,\"}\",CHAR(160),IV$1))-FIND(CHAR(160),SUBSTITUTE($AB51,\"{\",CHAR(160),IV$1))+1),\"\")","v":""},{"$f":"IFERROR(MID($AB51,FIND(CHAR(160),SUBSTITUTE($AB51,\"{\",CHAR(160),IW$1)),FIND(CHAR(160),SUBSTITUTE($AB51,\"}\",CHAR(160),IW$1))-FIND(CHAR(160),SUBSTITUTE($AB51,\"{\",CHAR(160),IW$1))+1),\"\")","v":""},{"$f":"IFERROR(MID($AB51,FIND(CHAR(160),SUBSTITUTE($AB51,\"{\",CHAR(160),IX$1)),FIND(CHAR(160),SUBSTITUTE($AB51,\"}\",CHAR(160),IX$1))-FIND(CHAR(160),SUBSTITUTE($AB51,\"{\",CHAR(160),IX$1))+1),\"\")","v":""},null,{"$f":"10-COUNTIF(DU51:ED51,\"\")","v":2}]
["C&I HVAC - Electric","VFD: Heating Hot Water Circulation Pump","HHWP","2021-07-01","2021-09-09","Calculated","{Measure:Quantity}*if({Motor HP}=5,2425,if({Motor HP}=7.5,2648,if({Motor HP}=10,2871,if({Motor HP}=15,3317,if({Motor HP}=20,3763,if({Motor HP}=25,4209,if({Motor HP}=30,4655,0)))))))",0,"Calculated","{Measure:Quantity}*if({Motor HP}=5,400,if({Motor HP}=7.5,650,if({Motor HP}=10,1400,if({Motor HP}=15,1650,if({Motor HP}=20,1850,if({Motor HP}=25,2000,if({Motor HP}=30,2300,0)))))))",0,"2021-07-01","2022-06-30","Calculated","{Measure:Quantity}*{Motor HP}*1548",null,null,"{Measure:Quantity}*{Motor HP}*.096",null,null,"{Measure:Quantity}*{Factor:WinterCF}*{Motor HP}*.096","{Measure:Quantity}*{Factor:SummerCF}*{Motor HP}*.096",null,null,null,null,null,null,"2021-05-25","2022-06-30",13,0.73699999999999999,0,0.53600000000000003,0.46300000000000002,0,1E-3,1,1.1220000000000001,1,0.52,1.6E-2,null,{"$f":"DU52","v":"{Measure:Quantity}"},1,{"$f":"DV52","v":"{Motor HP}"},5,{"$f":"DW52","v":""},null,{"$f":"DX52","v":""},null,{"$f":"DY52","v":""},null,{"$f":"DZ52","v":""},null,{"$f":"EA52","v":""},null,{"$f":"EB52","v":""},null,{"$f":"EC52","v":""},null,{"$f":"ED52","v":""},null,{"$f":"AS52*AU52*1548","v":7740},0,0,{"$f":"AS52*AU52*0.096","v":0.48},0,0,{"$f":"AS52*AF52*AU52*0.096","v":0.35376000000000002},{"$f":"AS52*AG52*AU52*0.096","v":0},0,0,0,0,0,0,null,"Res","Default DR",{"$f":"Benefits(BL52,BR52,BS52,BT52,BU52,BV52,BW52,BX52,BY52,BZ52,AE52,AH52,AI52,AJ52,AK52,AL52,AM52,AN52,AO52,AP52,CA52,CB52)","v":10983.087896241661},1184.7547047844068,0,0,0,0,0,0,0,{"$f":"SUMPRODUCT(CC52:CK52,--(CC52:CK52>0))","v":12167.842601026068},{"$f":"-SUMPRODUCT(CC52:CK52,--(CC52:CK52<0))","v":0},null,{"$f":"AS52*IF(AU52=5,2425,IF(AU52=7.5,2648,IF(AU52=10,2871,IF(AU52=15,3317,IF(AU52=20,3763,IF(AU52=25,4209,IF(AU52=30,4655,0)))))))","v":2425},null,null,{"$f":"CM52+CO52","v":2425},{"$f":"IF(NetOrGross=\"Net\",(1-AO52+AP52),1)","v":1},{"$f":"(SUMPRODUCT(CC52:CJ52,--(CC52:CJ52>0))+CN52)*CS52/((-SUMPRODUCT(CC52:CJ52,--(CC52:CJ52<0))+MAX(CO52,CV52)+CP52+CQ52)*CS52+IF(FRIncentives=\"Yes\",CV52*(1-CS52),0))","v":5.0176670519695126},1,{"$f":"AS52*IF(AU52=5,400,IF(AU52=7.5,650,IF(AU52=10,1400,IF(AU52=15,1650,IF(AU52=20,1850,IF(AU52=25,2000,IF(AU52=30,2300,0)))))))","v":400},null,"Electric","y",null,{"$f":"IF(F52=\"Manual Entry\",\"Manual\",IF(G52=\"\",0,\"X=\"&SUBSTITUTE(SUBSTITUTE(SUBSTITUTE(SUBSTITUTE(SUBSTITUTE(SUBSTITUTE(SUBSTITUTE(SUBSTITUTE(SUBSTITUTE(SUBSTITUTE(SUBSTITUTE(SUBSTITUTE(G52,$ED52,$ED$2&ROW($ED52)),$EC52,$EC$2&ROW($EC52)),$EB52,$EB$2&ROW($EB52)),$EA52,$EA$2&ROW($EA52)),$DZ52,$DZ$2&ROW($DZ52)),$DY52,$DY$2&ROW($DY52)),$DX52,$DX$2&ROW($DX52)),$DW52,$DW$2&ROW($DW52)),$DV52,$DV$2&ROW($DV52)),$DU52,$DU$2&ROW($DU52)),$DT52,$DT$2&ROW($DT52)),$DS52,$DS$2&ROW($DS52))))","v":"X=AS52*if(AU52=5,2425,if(AU52=7.5,2648,if(AU52=10,2871,if(AU52=15,3317,if(AU52=20,3763,if(AU52=25,4209,if(AU52=30,4655,0)))))))"},{"$f":"IF(I52=\"Manual Entry\",\"Manual\",IF(J52=\"\",0,\"X=\"&SUBSTITUTE(SUBSTITUTE(SUBSTITUTE(SUBSTITUTE(SUBSTITUTE(SUBSTITUTE(SUBSTITUTE(SUBSTITUTE(SUBSTITUTE(SUBSTITUTE(SUBSTITUTE(SUBSTITUTE(J52,$ED52,$ED$2&ROW($ED52)),$EC52,$EC$2&ROW($EC52)),$EB52,$EB$2&ROW($EB52)),$EA52,$EA$2&ROW($EA52)),$DZ52,$DZ$2&ROW($DZ52)),$DY52,$DY$2&ROW($DY52)),$DX52,$DX$2&ROW($DX52)),$DW52,$DW$2&ROW($DW52)),$DV52,$DV$2&ROW($DV52)),$DU52,$DU$2&ROW($DU52)),$DT52,$DT$2&ROW($DT52)),$DS52,$DS$2&ROW($DS52))))","v":"X=AS52*if(AU52=5,400,if(AU52=7.5,650,if(AU52=10,1400,if(AU52=15,1650,if(AU52=20,1850,if(AU52=25,2000,if(AU52=30,2300,0)))))))"},{"$f":"IF(O52=\"\",0,\"X=\"&SUBSTITUTE(SUBSTITUTE(SUBSTITUTE(SUBSTITUTE(SUBSTITUTE(SUBSTITUTE(SUBSTITUTE(SUBSTITUTE(SUBSTITUTE(SUBSTITUTE(SUBSTITUTE(SUBSTITUTE(O52,$ED52,$ED$2&ROW($ED52)),$EC52,$EC$2&ROW($EC52)),$EB52,$EB$2&ROW($EB52)),$EA52,$EA$2&ROW($EA52)),$DZ52,$DZ$2&ROW($DZ52)),$DY52,$DY$2&ROW($DY52)),$DX52,$DX$2&ROW($DX52)),$DW52,$DW$2&ROW($DW52)),$DV52,$DV$2&ROW($DV52)),$DU52,$DU$2&ROW($DU52)),$DT52,$DT$2&ROW($DT52)),$DS52,$DS$2&ROW($DS52)))","v":"X=AS52*AU52*1548"},{"$f":"IF(P52=\"\",0,\"X=\"&SUBSTITUTE(SUBSTITUTE(SUBSTITUTE(SUBSTITUTE(SUBSTITUTE(SUBSTITUTE(SUBSTITUTE(SUBSTITUTE(SUBSTITUTE(SUBSTITUTE(SUBSTITUTE(SUBSTITUTE(P52,$ED52,$ED$2&ROW($ED52)),$EC52,$EC$2&ROW($EC52)),$EB52,$EB$2&ROW($EB52)),$EA52,$EA$2&ROW($EA52)),$DZ52,$DZ$2&ROW($DZ52)),$DY52,$DY$2&ROW($DY52)),$DX52,$DX$2&ROW($DX52)),$DW52,$DW$2&ROW($DW52)),$DV52,$DV$2&ROW($DV52)),$DU52,$DU$2&ROW($DU52)),$DT52,$DT$2&ROW($DT52)),$DS52,$DS$2&ROW($DS52)))","v":0},{"$f":"IF(Q52=\"\",0,\"X=\"&SUBSTITUTE(SUBSTITUTE(SUBSTITUTE(SUBSTITUTE(SUBSTITUTE(SUBSTITUTE(SUBSTITUTE(SUBSTITUTE(SUBSTITUTE(SUBSTITUTE(SUBSTITUTE(SUBSTITUTE(Q52,$ED52,$ED$2&ROW($ED52)),$EC52,$EC$2&ROW($EC52)),$EB52,$EB$2&ROW($EB52)),$EA52,$EA$2&ROW($EA52)),$DZ52,$DZ$2&ROW($DZ52)),$DY52,$DY$2&ROW($DY52)),$DX52,$DX$2&ROW($DX52)),$DW52,$DW$2&ROW($DW52)),$DV52,$DV$2&ROW($DV52)),$DU52,$DU$2&ROW($DU52)),$DT52,$DT$2&ROW($DT52)),$DS52,$DS$2&ROW($DS52)))","v":0},{"$f":"IF(R52=\"\",0,\"X=\"&SUBSTITUTE(SUBSTITUTE(SUBSTITUTE(SUBSTITUTE(SUBSTITUTE(SUBSTITUTE(SUBSTITUTE(SUBSTITUTE(SUBSTITUTE(SUBSTITUTE(SUBSTITUTE(SUBSTITUTE(R52,$ED52,$ED$2&ROW($ED52)),$EC52,$EC$2&ROW($EC52)),$EB52,$EB$2&ROW($EB52)),$EA52,$EA$2&ROW($EA52)),$DZ52,$DZ$2&ROW($DZ52)),$DY52,$DY$2&ROW($DY52)),$DX52,$DX$2&ROW($DX52)),$DW52,$DW$2&ROW($DW52)),$DV52,$DV$2&ROW($DV52)),$DU52,$DU$2&ROW($DU52)),$DT52,$DT$2&ROW($DT52)),$DS52,$DS$2&ROW($DS52)))","v":"X=AS52*AU52*.096"},{"$f":"IF(S52=\"\",0,\"X=\"&SUBSTITUTE(SUBSTITUTE(SUBSTITUTE(SUBSTITUTE(SUBSTITUTE(SUBSTITUTE(SUBSTITUTE(SUBSTITUTE(SUBSTITUTE(SUBSTITUTE(SUBSTITUTE(SUBSTITUTE(S52,$ED52,$ED$2&ROW($ED52)),$EC52,$EC$2&ROW($EC52)),$EB52,$EB$2&ROW($EB52)),$EA52,$EA$2&ROW($EA52)),$DZ52,$DZ$2&ROW($DZ52)),$DY52,$DY$2&ROW($DY52)),$DX52,$DX$2&ROW($DX52)),$DW52,$DW$2&ROW($DW52)),$DV52,$DV$2&ROW($DV52)),$DU52,$DU$2&ROW($DU52)),$DT52,$DT$2&ROW($DT52)),$DS52,$DS$2&ROW($DS52)))","v":0},{"$f":"IF(T52=\"\",0,\"X=\"&SUBSTITUTE(SUBSTITUTE(SUBSTITUTE(SUBSTITUTE(SUBSTITUTE(SUBSTITUTE(SUBSTITUTE(SUBSTITUTE(SUBSTITUTE(SUBSTITUTE(SUBSTITUTE(SUBSTITUTE(T52,$ED52,$ED$2&ROW($ED52)),$EC52,$EC$2&ROW($EC52)),$EB52,$EB$2&ROW($EB52)),$EA52,$EA$2&ROW($EA52)),$DZ52,$DZ$2&ROW($DZ52)),$DY52,$DY$2&ROW($DY52)),$DX52,$DX$2&ROW($DX52)),$DW52,$DW$2&ROW($DW52)),$DV52,$DV$2&ROW($DV52)),$DU52,$DU$2&ROW($DU52)),$DT52,$DT$2&ROW($DT52)),$DS52,$DS$2&ROW($DS52)))","v":0},{"$f":"IF(U52=\"\",0,\"X=\"&SUBSTITUTE(SUBSTITUTE(SUBSTITUTE(SUBSTITUTE(SUBSTITUTE(SUBSTITUTE(SUBSTITUTE(SUBSTITUTE(SUBSTITUTE(SUBSTITUTE(SUBSTITUTE(SUBSTITUTE(U52,$ED52,$ED$2&ROW($ED52)),$EC52,$EC$2&ROW($EC52)),$EB52,$EB$2&ROW($EB52)),$EA52,$EA$2&ROW($EA52)),$DZ52,$DZ$2&ROW($DZ52)),$DY52,$DY$2&ROW($DY52)),$DX52,$DX$2&ROW($DX52)),$DW52,$DW$2&ROW($DW52)),$DV52,$DV$2&ROW($DV52)),$DU52,$DU$2&ROW($DU52)),$DT52,$DT$2&ROW($DT52)),$DS52,$DS$2&ROW($DS52)))","v":"X=AS52*AF52*AU52*.096"},{"$f":"IF(V52=\"\",0,\"X=\"&SUBSTITUTE(SUBSTITUTE(SUBSTITUTE(SUBSTITUTE(SUBSTITUTE(SUBSTITUTE(SUBSTITUTE(SUBSTITUTE(SUBSTITUTE(SUBSTITUTE(SUBSTITUTE(SUBSTITUTE(V52,$ED52,$ED$2&ROW($ED52)),$EC52,$EC$2&ROW($EC52)),$EB52,$EB$2&ROW($EB52)),$EA52,$EA$2&ROW($EA52)),$DZ52,$DZ$2&ROW($DZ52)),$DY52,$DY$2&ROW($DY52)),$DX52,$DX$2&ROW($DX52)),$DW52,$DW$2&ROW($DW52)),$DV52,$DV$2&ROW($DV52)),$DU52,$DU$2&ROW($DU52)),$DT52,$DT$2&ROW($DT52)),$DS52,$DS$2&ROW($DS52)))","v":"X=AS52*AG52*AU52*.096"},{"$f":"IF(W52=\"\",0,\"X=\"&SUBSTITUTE(SUBSTITUTE(SUBSTITUTE(SUBSTITUTE(SUBSTITUTE(SUBSTITUTE(SUBSTITUTE(SUBSTITUTE(SUBSTITUTE(SUBSTITUTE(SUBSTITUTE(SUBSTITUTE(W52,$ED52,$ED$2&ROW($ED52)),$EC52,$EC$2&ROW($EC52)),$EB52,$EB$2&ROW($EB52)),$EA52,$EA$2&ROW($EA52)),$DZ52,$DZ$2&ROW($DZ52)),$DY52,$DY$2&ROW($DY52)),$DX52,$DX$2&ROW($DX52)),$DW52,$DW$2&ROW($DW52)),$DV52,$DV$2&ROW($DV52)),$DU52,$DU$2&ROW($DU52)),$DT52,$DT$2&ROW($DT52)),$DS52,$DS$2&ROW($DS52)))","v":0},{"$f":"IF(X52=\"\",0,\"X=\"&SUBSTITUTE(SUBSTITUTE(SUBSTITUTE(SUBSTITUTE(SUBSTITUTE(SUBSTITUTE(SUBSTITUTE(SUBSTITUTE(SUBSTITUTE(SUBSTITUTE(SUBSTITUTE(SUBSTITUTE(X52,$ED52,$ED$2&ROW($ED52)),$EC52,$EC$2&ROW($EC52)),$EB52,$EB$2&ROW($EB52)),$EA52,$EA$2&ROW($EA52)),$DZ52,$DZ$2&ROW($DZ52)),$DY52,$DY$2&ROW($DY52)),$DX52,$DX$2&ROW($DX52)),$DW52,$DW$2&ROW($DW52)),$DV52,$DV$2&ROW($DV52)),$DU52,$DU$2&ROW($DU52)),$DT52,$DT$2&ROW($DT52)),$DS52,$DS$2&ROW($DS52)))","v":0},{"$f":"IF(Y52=\"\",0,\"X=\"&SUBSTITUTE(SUBSTITUTE(SUBSTITUTE(SUBSTITUTE(SUBSTITUTE(SUBSTITUTE(SUBSTITUTE(SUBSTITUTE(SUBSTITUTE(SUBSTITUTE(SUBSTITUTE(SUBSTITUTE(Y52,$ED52,$ED$2&ROW($ED52)),$EC52,$EC$2&ROW($EC52)),$EB52,$EB$2&ROW($EB52)),$EA52,$EA$2&ROW($EA52)),$DZ52,$DZ$2&ROW($DZ52)),$DY52,$DY$2&ROW($DY52)),$DX52,$DX$2&ROW($DX52)),$DW52,$DW$2&ROW($DW52)),$DV52,$DV$2&ROW($DV52)),$DU52,$DU$2&ROW($DU52)),$DT52,$DT$2&ROW($DT52)),$DS52,$DS$2&ROW($DS52)))","v":0},{"$f":"IF(Z52=\"\",0,\"X=\"&SUBSTITUTE(SUBSTITUTE(SUBSTITUTE(SUBSTITUTE(SUBSTITUTE(SUBSTITUTE(SUBSTITUTE(SUBSTITUTE(SUBSTITUTE(SUBSTITUTE(SUBSTITUTE(SUBSTITUTE(Z52,$ED52,$ED$2&ROW($ED52)),$EC52,$EC$2&ROW($EC52)),$EB52,$EB$2&ROW($EB52)),$EA52,$EA$2&ROW($EA52)),$DZ52,$DZ$2&ROW($DZ52)),$DY52,$DY$2&ROW($DY52)),$DX52,$DX$2&ROW($DX52)),$DW52,$DW$2&ROW($DW52)),$DV52,$DV$2&ROW($DV52)),$DU52,$DU$2&ROW($DU52)),$DT52,$DT$2&ROW($DT52)),$DS52,$DS$2&ROW($DS52)))","v":0},{"$f":"IF(AA52=\"\",0,\"X=\"&SUBSTITUTE(SUBSTITUTE(SUBSTITUTE(SUBSTITUTE(SUBSTITUTE(SUBSTITUTE(SUBSTITUTE(SUBSTITUTE(SUBSTITUTE(SUBSTITUTE(SUBSTITUTE(SUBSTITUTE(AA52,$ED52,$ED$2&ROW($ED52)),$EC52,$EC$2&ROW($EC52)),$EB52,$EB$2&ROW($EB52)),$EA52,$EA$2&ROW($EA52)),$DZ52,$DZ$2&ROW($DZ52)),$DY52,$DY$2&ROW($DY52)),$DX52,$DX$2&ROW($DX52)),$DW52,$DW$2&ROW($DW52)),$DV52,$DV$2&ROW($DV52)),$DU52,$DU$2&ROW($DU52)),$DT52,$DT$2&ROW($DT52)),$DS52,$DS$2&ROW($DS52)))","v":0},{"$f":"IF(AB52=\"\",0,\"X=\"&SUBSTITUTE(SUBSTITUTE(SUBSTITUTE(SUBSTITUTE(SUBSTITUTE(SUBSTITUTE(SUBSTITUTE(SUBSTITUTE(SUBSTITUTE(SUBSTITUTE(SUBSTITUTE(SUBSTITUTE(AB52,$ED52,$ED$2&ROW($ED52)),$EC52,$EC$2&ROW($EC52)),$EB52,$EB$2&ROW($EB52)),$EA52,$EA$2&ROW($EA52)),$DZ52,$DZ$2&ROW($DZ52)),$DY52,$DY$2&ROW($DY52)),$DX52,$DX$2&ROW($DX52)),$DW52,$DW$2&ROW($DW52)),$DV52,$DV$2&ROW($DV52)),$DU52,$DU$2&ROW($DU52)),$DT52,$DT$2&ROW($DT52)),$DS52,$DS$2&ROW($DS52)))","v":0},null,null,"{Factor:WinterCF}","{Factor:SummerCF}",{"$f":"IFERROR(INDEX($EG52:$IV52,MATCH(0,COUNTIF($DR52:DT52,$EG52:$IV52),0)),\"\")","v":"{Measure:Quantity}"},{"$f":"IFERROR(INDEX($EG52:$IV52,MATCH(0,COUNTIF($DR52:DU52,$EG52:$IV52),0)),\"\")","v":"{Motor HP}"},{"$f":"IFERROR(INDEX($EG52:$IV52,MATCH(0,COUNTIF($DR52:DV52,$EG52:$IV52),0)),\"\")","v":""},{"$f":"IFERROR(INDEX($EG52:$IV52,MATCH(0,COUNTIF($DR52:DW52,$EG52:$IV52),0)),\"\")","v":""},{"$f":"IFERROR(INDEX($EG52:$IV52,MATCH(0,COUNTIF($DR52:DX52,$EG52:$IV52),0)),\"\")","v":""},{"$f":"IFERROR(INDEX($EG52:$IV52,MATCH(0,COUNTIF($DR52:DY52,$EG52:$IV52),0)),\"\")","v":""},{"$f":"IFERROR(INDEX($EG52:$IV52,MATCH(0,COUNTIF($DR52:DZ52,$EG52:$IV52),0)),\"\")","v":""},{"$f":"IFERROR(INDEX($EG52:$IV52,MATCH(0,COUNTIF($DR52:EA52,$EG52:$IV52),0)),\"\")","v":""},{"$f":"IFERROR(INDEX($EG52:$IV52,MATCH(0,COUNTIF($DR52:EB52,$EG52:$IV52),0)),\"\")","v":""},{"$f":"IFERROR(INDEX($EG52:$IV52,MATCH(0,COUNTIF($DR52:EC52,$EG52:$IV52),0)),\"\")","v":""},null,null,{"$f":"IFERROR(MID($G52,FIND(CHAR(160),SUBSTITUTE($G52,\"{\",CHAR(160),EG$1)),FIND(CHAR(160),SUBSTITUTE($G52,\"}\",CHAR(160),EG$1))-FIND(CHAR(160),SUBSTITUTE($G52,\"{\",CHAR(160),EG$1))+1),\"\")","v":"{Measure:Quantity}"},{"$f":"IFERROR(MID($G52,FIND(CHAR(160),SUBSTITUTE($G52,\"{\",CHAR(160),EH$1)),FIND(CHAR(160),SUBSTITUTE($G52,\"}\",CHAR(160),EH$1))-FIND(CHAR(160),SUBSTITUTE($G52,\"{\",CHAR(160),EH$1))+1),\"\")","v":"{Motor HP}"},{"$f":"IFERROR(MID($G52,FIND(CHAR(160),SUBSTITUTE($G52,\"{\",CHAR(160),EI$1)),FIND(CHAR(160),SUBSTITUTE($G52,\"}\",CHAR(160),EI$1))-FIND(CHAR(160),SUBSTITUTE($G52,\"{\",CHAR(160),EI$1))+1),\"\")","v":"{Motor HP}"},{"$f":"IFERROR(MID($G52,FIND(CHAR(160),SUBSTITUTE($G52,\"{\",CHAR(160),EJ$1)),FIND(CHAR(160),SUBSTITUTE($G52,\"}\",CHAR(160),EJ$1))-FIND(CHAR(160),SUBSTITUTE($G52,\"{\",CHAR(160),EJ$1))+1),\"\")","v":"{Motor HP}"},{"$f":"IFERROR(MID($G52,FIND(CHAR(160),SUBSTITUTE($G52,\"{\",CHAR(160),EK$1)),FIND(CHAR(160),SUBSTITUTE($G52,\"}\",CHAR(160),EK$1))-FIND(CHAR(160),SUBSTITUTE($G52,\"{\",CHAR(160),EK$1))+1),\"\")","v":"{Motor HP}"},{"$f":"IFERROR(MID($G52,FIND(CHAR(160),SUBSTITUTE($G52,\"{\",CHAR(160),EL$1)),FIND(CHAR(160),SUBSTITUTE($G52,\"}\",CHAR(160),EL$1))-FIND(CHAR(160),SUBSTITUTE($G52,\"{\",CHAR(160),EL$1))+1),\"\")","v":"{Motor HP}"},{"$f":"IFERROR(MID($G52,FIND(CHAR(160),SUBSTITUTE($G52,\"{\",CHAR(160),EM$1)),FIND(CHAR(160),SUBSTITUTE($G52,\"}\",CHAR(160),EM$1))-FIND(CHAR(160),SUBSTITUTE($G52,\"{\",CHAR(160),EM$1))+1),\"\")","v":"{Motor HP}"},{"$f":"IFERROR(MID($G52,FIND(CHAR(160),SUBSTITUTE($G52,\"{\",CHAR(160),EN$1)),FIND(CHAR(160),SUBSTITUTE($G52,\"}\",CHAR(160),EN$1))-FIND(CHAR(160),SUBSTITUTE($G52,\"{\",CHAR(160),EN$1))+1),\"\")","v":"{Motor HP}"},{"$f":"IFERROR(MID($G52,FIND(CHAR(160),SUBSTITUTE($G52,\"{\",CHAR(160),EO$1)),FIND(CHAR(160),SUBSTITUTE($G52,\"}\",CHAR(160),EO$1))-FIND(CHAR(160),SUBSTITUTE($G52,\"{\",CHAR(160),EO$1))+1),\"\")","v":""},{"$f":"IFERROR(MID($G52,FIND(CHAR(160),SUBSTITUTE($G52,\"{\",CHAR(160),EP$1)),FIND(CHAR(160),SUBSTITUTE($G52,\"}\",CHAR(160),EP$1))-FIND(CHAR(160),SUBSTITUTE($G52,\"{\",CHAR(160),EP$1))+1),\"\")","v":""},{"$f":"IFERROR(MID($J52,FIND(CHAR(160),SUBSTITUTE($J52,\"{\",CHAR(160),EQ$1)),FIND(CHAR(160),SUBSTITUTE($J52,\"}\",CHAR(160),EQ$1))-FIND(CHAR(160),SUBSTITUTE($J52,\"{\",CHAR(160),EQ$1))+1),\"\")","v":"{Measure:Quantity}"},{"$f":"IFERROR(MID($J52,FIND(CHAR(160),SUBSTITUTE($J52,\"{\",CHAR(160),ER$1)),FIND(CHAR(160),SUBSTITUTE($J52,\"}\",CHAR(160),ER$1))-FIND(CHAR(160),SUBSTITUTE($J52,\"{\",CHAR(160),ER$1))+1),\"\")","v":"{Motor HP}"},{"$f":"IFERROR(MID($J52,FIND(CHAR(160),SUBSTITUTE($J52,\"{\",CHAR(160),ES$1)),FIND(CHAR(160),SUBSTITUTE($J52,\"}\",CHAR(160),ES$1))-FIND(CHAR(160),SUBSTITUTE($J52,\"{\",CHAR(160),ES$1))+1),\"\")","v":"{Motor HP}"},{"$f":"IFERROR(MID($J52,FIND(CHAR(160),SUBSTITUTE($J52,\"{\",CHAR(160),ET$1)),FIND(CHAR(160),SUBSTITUTE($J52,\"}\",CHAR(160),ET$1))-FIND(CHAR(160),SUBSTITUTE($J52,\"{\",CHAR(160),ET$1))+1),\"\")","v":"{Motor HP}"},{"$f":"IFERROR(MID($J52,FIND(CHAR(160),SUBSTITUTE($J52,\"{\",CHAR(160),EU$1)),FIND(CHAR(160),SUBSTITUTE($J52,\"}\",CHAR(160),EU$1))-FIND(CHAR(160),SUBSTITUTE($J52,\"{\",CHAR(160),EU$1))+1),\"\")","v":"{Motor HP}"},{"$f":"IFERROR(MID($J52,FIND(CHAR(160),SUBSTITUTE($J52,\"{\",CHAR(160),EV$1)),FIND(CHAR(160),SUBSTITUTE($J52,\"}\",CHAR(160),EV$1))-FIND(CHAR(160),SUBSTITUTE($J52,\"{\",CHAR(160),EV$1))+1),\"\")","v":"{Motor HP}"},{"$f":"IFERROR(MID($J52,FIND(CHAR(160),SUBSTITUTE($J52,\"{\",CHAR(160),EW$1)),FIND(CHAR(160),SUBSTITUTE($J52,\"}\",CHAR(160),EW$1))-FIND(CHAR(160),SUBSTITUTE($J52,\"{\",CHAR(160),EW$1))+1),\"\")","v":"{Motor HP}"},{"$f":"IFERROR(MID($J52,FIND(CHAR(160),SUBSTITUTE($J52,\"{\",CHAR(160),EX$1)),FIND(CHAR(160),SUBSTITUTE($J52,\"}\",CHAR(160),EX$1))-FIND(CHAR(160),SUBSTITUTE($J52,\"{\",CHAR(160),EX$1))+1),\"\")","v":"{Motor HP}"},{"$f":"IFERROR(MID($J52,FIND(CHAR(160),SUBSTITUTE($J52,\"{\",CHAR(160),EY$1)),FIND(CHAR(160),SUBSTITUTE($J52,\"}\",CHAR(160),EY$1))-FIND(CHAR(160),SUBSTITUTE($J52,\"{\",CHAR(160),EY$1))+1),\"\")","v":""},{"$f":"IFERROR(MID($J52,FIND(CHAR(160),SUBSTITUTE($J52,\"{\",CHAR(160),EZ$1)),FIND(CHAR(160),SUBSTITUTE($J52,\"}\",CHAR(160),EZ$1))-FIND(CHAR(160),SUBSTITUTE($J52,\"{\",CHAR(160),EZ$1))+1),\"\")","v":""},{"$f":"IFERROR(MID($J52,FIND(CHAR(160),SUBSTITUTE($J52,\"{\",CHAR(160),FA$1)),FIND(CHAR(160),SUBSTITUTE($J52,\"}\",CHAR(160),FA$1))-FIND(CHAR(160),SUBSTITUTE($J52,\"{\",CHAR(160),FA$1))+1),\"\")","v":"{Measure:Quantity}"},{"$f":"IFERROR(MID($J52,FIND(CHAR(160),SUBSTITUTE($J52,\"{\",CHAR(160),FB$1)),FIND(CHAR(160),SUBSTITUTE($J52,\"}\",CHAR(160),FB$1))-FIND(CHAR(160),SUBSTITUTE($J52,\"{\",CHAR(160),FB$1))+1),\"\")","v":"{Motor HP}"},{"$f":"IFERROR(MID($O52,FIND(CHAR(160),SUBSTITUTE($O52,\"{\",CHAR(160),FC$1)),FIND(CHAR(160),SUBSTITUTE($O52,\"}\",CHAR(160),FC$1))-FIND(CHAR(160),SUBSTITUTE($O52,\"{\",CHAR(160),FC$1))+1),\"\")","v":""},{"$f":"IFERROR(MID($O52,FIND(CHAR(160),SUBSTITUTE($O52,\"{\",CHAR(160),FD$1)),FIND(CHAR(160),SUBSTITUTE($O52,\"}\",CHAR(160),FD$1))-FIND(CHAR(160),SUBSTITUTE($O52,\"{\",CHAR(160),FD$1))+1),\"\")","v":""},{"$f":"IFERROR(MID($O52,FIND(CHAR(160),SUBSTITUTE($O52,\"{\",CHAR(160),FE$1)),FIND(CHAR(160),SUBSTITUTE($O52,\"}\",CHAR(160),FE$1))-FIND(CHAR(160),SUBSTITUTE($O52,\"{\",CHAR(160),FE$1))+1),\"\")","v":""},{"$f":"IFERROR(MID($O52,FIND(CHAR(160),SUBSTITUTE($O52,\"{\",CHAR(160),FF$1)),FIND(CHAR(160),SUBSTITUTE($O52,\"}\",CHAR(160),FF$1))-FIND(CHAR(160),SUBSTITUTE($O52,\"{\",CHAR(160),FF$1))+1),\"\")","v":""},{"$f":"IFERROR(MID($O52,FIND(CHAR(160),SUBSTITUTE($O52,\"{\",CHAR(160),FG$1)),FIND(CHAR(160),SUBSTITUTE($O52,\"}\",CHAR(160),FG$1))-FIND(CHAR(160),SUBSTITUTE($O52,\"{\",CHAR(160),FG$1))+1),\"\")","v":""},{"$f":"IFERROR(MID($O52,FIND(CHAR(160),SUBSTITUTE($O52,\"{\",CHAR(160),FH$1)),FIND(CHAR(160),SUBSTITUTE($O52,\"}\",CHAR(160),FH$1))-FIND(CHAR(160),SUBSTITUTE($O52,\"{\",CHAR(160),FH$1))+1),\"\")","v":""},{"$f":"IFERROR(MID($O52,FIND(CHAR(160),SUBSTITUTE($O52,\"{\",CHAR(160),FI$1)),FIND(CHAR(160),SUBSTITUTE($O52,\"}\",CHAR(160),FI$1))-FIND(CHAR(160),SUBSTITUTE($O52,\"{\",CHAR(160),FI$1))+1),\"\")","v":""},{"$f":"IFERROR(MID($O52,FIND(CHAR(160),SUBSTITUTE($O52,\"{\",CHAR(160),FJ$1)),FIND(CHAR(160),SUBSTITUTE($O52,\"}\",CHAR(160),FJ$1))-FIND(CHAR(160),SUBSTITUTE($O52,\"{\",CHAR(160),FJ$1))+1),\"\")","v":""},{"$f":"IFERROR(MID($O52,FIND(CHAR(160),SUBSTITUTE($O52,\"{\",CHAR(160),FK$1)),FIND(CHAR(160),SUBSTITUTE($O52,\"}\",CHAR(160),FK$1))-FIND(CHAR(160),SUBSTITUTE($O52,\"{\",CHAR(160),FK$1))+1),\"\")","v":"{Measure:Quantity}"},{"$f":"IFERROR(MID($O52,FIND(CHAR(160),SUBSTITUTE($O52,\"{\",CHAR(160),FL$1)),FIND(CHAR(160),SUBSTITUTE($O52,\"}\",CHAR(160),FL$1))-FIND(CHAR(160),SUBSTITUTE($O52,\"{\",CHAR(160),FL$1))+1),\"\")","v":"{Motor HP}"},{"$f":"IFERROR(MID($R52,FIND(CHAR(160),SUBSTITUTE($R52,\"{\",CHAR(160),FM$1)),FIND(CHAR(160),SUBSTITUTE($R52,\"}\",CHAR(160),FM$1))-FIND(CHAR(160),SUBSTITUTE($R52,\"{\",CHAR(160),FM$1))+1),\"\")","v":""},{"$f":"IFERROR(MID($R52,FIND(CHAR(160),SUBSTITUTE($R52,\"{\",CHAR(160),FN$1)),FIND(CHAR(160),SUBSTITUTE($R52,\"}\",CHAR(160),FN$1))-FIND(CHAR(160),SUBSTITUTE($R52,\"{\",CHAR(160),FN$1))+1),\"\")","v":""},{"$f":"IFERROR(MID($R52,FIND(CHAR(160),SUBSTITUTE($R52,\"{\",CHAR(160),FO$1)),FIND(CHAR(160),SUBSTITUTE($R52,\"}\",CHAR(160),FO$1))-FIND(CHAR(160),SUBSTITUTE($R52,\"{\",CHAR(160),FO$1))+1),\"\")","v":""},{"$f":"IFERROR(MID($R52,FIND(CHAR(160),SUBSTITUTE($R52,\"{\",CHAR(160),FP$1)),FIND(CHAR(160),SUBSTITUTE($R52,\"}\",CHAR(160),FP$1))-FIND(CHAR(160),SUBSTITUTE($R52,\"{\",CHAR(160),FP$1))+1),\"\")","v":""},{"$f":"IFERROR(MID($R52,FIND(CHAR(160),SUBSTITUTE($R52,\"{\",CHAR(160),FQ$1)),FIND(CHAR(160),SUBSTITUTE($R52,\"}\",CHAR(160),FQ$1))-FIND(CHAR(160),SUBSTITUTE($R52,\"{\",CHAR(160),FQ$1))+1),\"\")","v":""},{"$f":"IFERROR(MID($R52,FIND(CHAR(160),SUBSTITUTE($R52,\"{\",CHAR(160),FR$1)),FIND(CHAR(160),SUBSTITUTE($R52,\"}\",CHAR(160),FR$1))-FIND(CHAR(160),SUBSTITUTE($R52,\"{\",CHAR(160),FR$1))+1),\"\")","v":""},{"$f":"IFERROR(MID($R52,FIND(CHAR(160),SUBSTITUTE($R52,\"{\",CHAR(160),FS$1)),FIND(CHAR(160),SUBSTITUTE($R52,\"}\",CHAR(160),FS$1))-FIND(CHAR(160),SUBSTITUTE($R52,\"{\",CHAR(160),FS$1))+1),\"\")","v":""},{"$f":"IFERROR(MID($R52,FIND(CHAR(160),SUBSTITUTE($R52,\"{\",CHAR(160),FT$1)),FIND(CHAR(160),SUBSTITUTE($R52,\"}\",CHAR(160),FT$1))-FIND(CHAR(160),SUBSTITUTE($R52,\"{\",CHAR(160),FT$1))+1),\"\")","v":""},{"$f":"IFERROR(MID($R52,FIND(CHAR(160),SUBSTITUTE($R52,\"{\",CHAR(160),FU$1)),FIND(CHAR(160),SUBSTITUTE($R52,\"}\",CHAR(160),FU$1))-FIND(CHAR(160),SUBSTITUTE($R52,\"{\",CHAR(160),FU$1))+1),\"\")","v":"{Measure:Quantity}"},{"$f":"IFERROR(MID($R52,FIND(CHAR(160),SUBSTITUTE($R52,\"{\",CHAR(160),FV$1)),FIND(CHAR(160),SUBSTITUTE($R52,\"}\",CHAR(160),FV$1))-FIND(CHAR(160),SUBSTITUTE($R52,\"{\",CHAR(160),FV$1))+1),\"\")","v":"{Motor HP}"},{"$f":"IFERROR(MID($U52,FIND(CHAR(160),SUBSTITUTE($U52,\"{\",CHAR(160),FW$1)),FIND(CHAR(160),SUBSTITUTE($U52,\"}\",CHAR(160),FW$1))-FIND(CHAR(160),SUBSTITUTE($U52,\"{\",CHAR(160),FW$1))+1),\"\")","v":"{Motor HP}"},{"$f":"IFERROR(MID($U52,FIND(CHAR(160),SUBSTITUTE($U52,\"{\",CHAR(160),FX$1)),FIND(CHAR(160),SUBSTITUTE($U52,\"}\",CHAR(160),FX$1))-FIND(CHAR(160),SUBSTITUTE($U52,\"{\",CHAR(160),FX$1))+1),\"\")","v":""},{"$f":"IFERROR(MID($U52,FIND(CHAR(160),SUBSTITUTE($U52,\"{\",CHAR(160),FY$1)),FIND(CHAR(160),SUBSTITUTE($U52,\"}\",CHAR(160),FY$1))-FIND(CHAR(160),SUBSTITUTE($U52,\"{\",CHAR(160),FY$1))+1),\"\")","v":""},{"$f":"IFERROR(MID($U52,FIND(CHAR(160),SUBSTITUTE($U52,\"{\",CHAR(160),FZ$1)),FIND(CHAR(160),SUBSTITUTE($U52,\"}\",CHAR(160),FZ$1))-FIND(CHAR(160),SUBSTITUTE($U52,\"{\",CHAR(160),FZ$1))+1),\"\")","v":""},{"$f":"IFERROR(MID($U52,FIND(CHAR(160),SUBSTITUTE($U52,\"{\",CHAR(160),GA$1)),FIND(CHAR(160),SUBSTITUTE($U52,\"}\",CHAR(160),GA$1))-FIND(CHAR(160),SUBSTITUTE($U52,\"{\",CHAR(160),GA$1))+1),\"\")","v":""},{"$f":"IFERROR(MID($U52,FIND(CHAR(160),SUBSTITUTE($U52,\"{\",CHAR(160),GB$1)),FIND(CHAR(160),SUBSTITUTE($U52,\"}\",CHAR(160),GB$1))-FIND(CHAR(160),SUBSTITUTE($U52,\"{\",CHAR(160),GB$1))+1),\"\")","v":""},{"$f":"IFERROR(MID($U52,FIND(CHAR(160),SUBSTITUTE($U52,\"{\",CHAR(160),GC$1)),FIND(CHAR(160),SUBSTITUTE($U52,\"}\",CHAR(160),GC$1))-FIND(CHAR(160),SUBSTITUTE($U52,\"{\",CHAR(160),GC$1))+1),\"\")","v":""},{"$f":"IFERROR(MID($U52,FIND(CHAR(160),SUBSTITUTE($U52,\"{\",CHAR(160),GD$1)),FIND(CHAR(160),SUBSTITUTE($U52,\"}\",CHAR(160),GD$1))-FIND(CHAR(160),SUBSTITUTE($U52,\"{\",CHAR(160),GD$1))+1),\"\")","v":""},{"$f":"IFERROR(MID($U52,FIND(CHAR(160),SUBSTITUTE($U52,\"{\",CHAR(160),GE$1)),FIND(CHAR(160),SUBSTITUTE($U52,\"}\",CHAR(160),GE$1))-FIND(CHAR(160),SUBSTITUTE($U52,\"{\",CHAR(160),GE$1))+1),\"\")","v":"{Measure:Quantity}"},{"$f":"IFERROR(MID($U52,FIND(CHAR(160),SUBSTITUTE($U52,\"{\",CHAR(160),GF$1)),FIND(CHAR(160),SUBSTITUTE($U52,\"}\",CHAR(160),GF$1))-FIND(CHAR(160),SUBSTITUTE($U52,\"{\",CHAR(160),GF$1))+1),\"\")","v":"{Factor:WinterCF}"},{"$f":"IFERROR(MID($V52,FIND(CHAR(160),SUBSTITUTE($V52,\"{\",CHAR(160),GG$1)),FIND(CHAR(160),SUBSTITUTE($V52,\"}\",CHAR(160),GG$1))-FIND(CHAR(160),SUBSTITUTE($V52,\"{\",CHAR(160),GG$1))+1),\"\")","v":"{Motor HP}"},{"$f":"IFERROR(MID($V52,FIND(CHAR(160),SUBSTITUTE($V52,\"{\",CHAR(160),GH$1)),FIND(CHAR(160),SUBSTITUTE($V52,\"}\",CHAR(160),GH$1))-FIND(CHAR(160),SUBSTITUTE($V52,\"{\",CHAR(160),GH$1))+1),\"\")","v":""},{"$f":"IFERROR(MID($V52,FIND(CHAR(160),SUBSTITUTE($V52,\"{\",CHAR(160),GI$1)),FIND(CHAR(160),SUBSTITUTE($V52,\"}\",CHAR(160),GI$1))-FIND(CHAR(160),SUBSTITUTE($V52,\"{\",CHAR(160),GI$1))+1),\"\")","v":""},{"$f":"IFERROR(MID($V52,FIND(CHAR(160),SUBSTITUTE($V52,\"{\",CHAR(160),GJ$1)),FIND(CHAR(160),SUBSTITUTE($V52,\"}\",CHAR(160),GJ$1))-FIND(CHAR(160),SUBSTITUTE($V52,\"{\",CHAR(160),GJ$1))+1),\"\")","v":""},{"$f":"IFERROR(MID($V52,FIND(CHAR(160),SUBSTITUTE($V52,\"{\",CHAR(160),GK$1)),FIND(CHAR(160),SUBSTITUTE($V52,\"}\",CHAR(160),GK$1))-FIND(CHAR(160),SUBSTITUTE($V52,\"{\",CHAR(160),GK$1))+1),\"\")","v":""},{"$f":"IFERROR(MID($V52,FIND(CHAR(160),SUBSTITUTE($V52,\"{\",CHAR(160),GL$1)),FIND(CHAR(160),SUBSTITUTE($V52,\"}\",CHAR(160),GL$1))-FIND(CHAR(160),SUBSTITUTE($V52,\"{\",CHAR(160),GL$1))+1),\"\")","v":""},{"$f":"IFERROR(MID($V52,FIND(CHAR(160),SUBSTITUTE($V52,\"{\",CHAR(160),GM$1)),FIND(CHAR(160),SUBSTITUTE($V52,\"}\",CHAR(160),GM$1))-FIND(CHAR(160),SUBSTITUTE($V52,\"{\",CHAR(160),GM$1))+1),\"\")","v":""},{"$f":"IFERROR(MID($V52,FIND(CHAR(160),SUBSTITUTE($V52,\"{\",CHAR(160),GN$1)),FIND(CHAR(160),SUBSTITUTE($V52,\"}\",CHAR(160),GN$1))-FIND(CHAR(160),SUBSTITUTE($V52,\"{\",CHAR(160),GN$1))+1),\"\")","v":""},{"$f":"IFERROR(MID($V52,FIND(CHAR(160),SUBSTITUTE($V52,\"{\",CHAR(160),GO$1)),FIND(CHAR(160),SUBSTITUTE($V52,\"}\",CHAR(160),GO$1))-FIND(CHAR(160),SUBSTITUTE($V52,\"{\",CHAR(160),GO$1))+1),\"\")","v":"{Measure:Quantity}"},{"$f":"IFERROR(MID($V52,FIND(CHAR(160),SUBSTITUTE($V52,\"{\",CHAR(160),GP$1)),FIND(CHAR(160),SUBSTITUTE($V52,\"}\",CHAR(160),GP$1))-FIND(CHAR(160),SUBSTITUTE($V52,\"{\",CHAR(160),GP$1))+1),\"\")","v":"{Factor:SummerCF}"},{"$f":"IFERROR(MID($W52,FIND(CHAR(160),SUBSTITUTE($W52,\"{\",CHAR(160),GQ$1)),FIND(CHAR(160),SUBSTITUTE($W52,\"}\",CHAR(160),GQ$1))-FIND(CHAR(160),SUBSTITUTE($W52,\"{\",CHAR(160),GQ$1))+1),\"\")","v":""},{"$f":"IFERROR(MID($W52,FIND(CHAR(160),SUBSTITUTE($W52,\"{\",CHAR(160),GR$1)),FIND(CHAR(160),SUBSTITUTE($W52,\"}\",CHAR(160),GR$1))-FIND(CHAR(160),SUBSTITUTE($W52,\"{\",CHAR(160),GR$1))+1),\"\")","v":""},{"$f":"IFERROR(MID($W52,FIND(CHAR(160),SUBSTITUTE($W52,\"{\",CHAR(160),GS$1)),FIND(CHAR(160),SUBSTITUTE($W52,\"}\",CHAR(160),GS$1))-FIND(CHAR(160),SUBSTITUTE($W52,\"{\",CHAR(160),GS$1))+1),\"\")","v":""},{"$f":"IFERROR(MID($W52,FIND(CHAR(160),SUBSTITUTE($W52,\"{\",CHAR(160),GT$1)),FIND(CHAR(160),SUBSTITUTE($W52,\"}\",CHAR(160),GT$1))-FIND(CHAR(160),SUBSTITUTE($W52,\"{\",CHAR(160),GT$1))+1),\"\")","v":""},{"$f":"IFERROR(MID($W52,FIND(CHAR(160),SUBSTITUTE($W52,\"{\",CHAR(160),GU$1)),FIND(CHAR(160),SUBSTITUTE($W52,\"}\",CHAR(160),GU$1))-FIND(CHAR(160),SUBSTITUTE($W52,\"{\",CHAR(160),GU$1))+1),\"\")","v":""},{"$f":"IFERROR(MID($W52,FIND(CHAR(160),SUBSTITUTE($W52,\"{\",CHAR(160),GV$1)),FIND(CHAR(160),SUBSTITUTE($W52,\"}\",CHAR(160),GV$1))-FIND(CHAR(160),SUBSTITUTE($W52,\"{\",CHAR(160),GV$1))+1),\"\")","v":""},{"$f":"IFERROR(MID($W52,FIND(CHAR(160),SUBSTITUTE($W52,\"{\",CHAR(160),GW$1)),FIND(CHAR(160),SUBSTITUTE($W52,\"}\",CHAR(160),GW$1))-FIND(CHAR(160),SUBSTITUTE($W52,\"{\",CHAR(160),GW$1))+1),\"\")","v":""},{"$f":"IFERROR(MID($W52,FIND(CHAR(160),SUBSTITUTE($W52,\"{\",CHAR(160),GX$1)),FIND(CHAR(160),SUBSTITUTE($W52,\"}\",CHAR(160),GX$1))-FIND(CHAR(160),SUBSTITUTE($W52,\"{\",CHAR(160),GX$1))+1),\"\")","v":""},{"$f":"IFERROR(MID($W52,FIND(CHAR(160),SUBSTITUTE($W52,\"{\",CHAR(160),GY$1)),FIND(CHAR(160),SUBSTITUTE($W52,\"}\",CHAR(160),GY$1))-FIND(CHAR(160),SUBSTITUTE($W52,\"{\",CHAR(160),GY$1))+1),\"\")","v":""},{"$f":"IFERROR(MID($W52,FIND(CHAR(160),SUBSTITUTE($W52,\"{\",CHAR(160),GZ$1)),FIND(CHAR(160),SUBSTITUTE($W52,\"}\",CHAR(160),GZ$1))-FIND(CHAR(160),SUBSTITUTE($W52,\"{\",CHAR(160),GZ$1))+1),\"\")","v":""},{"$f":"IFERROR(MID($X52,FIND(CHAR(160),SUBSTITUTE($X52,\"{\",CHAR(160),HA$1)),FIND(CHAR(160),SUBSTITUTE($X52,\"}\",CHAR(160),HA$1))-FIND(CHAR(160),SUBSTITUTE($X52,\"{\",CHAR(160),HA$1))+1),\"\")","v":""},{"$f":"IFERROR(MID($X52,FIND(CHAR(160),SUBSTITUTE($X52,\"{\",CHAR(160),HB$1)),FIND(CHAR(160),SUBSTITUTE($X52,\"}\",CHAR(160),HB$1))-FIND(CHAR(160),SUBSTITUTE($X52,\"{\",CHAR(160),HB$1))+1),\"\")","v":""},{"$f":"IFERROR(MID($X52,FIND(CHAR(160),SUBSTITUTE($X52,\"{\",CHAR(160),HC$1)),FIND(CHAR(160),SUBSTITUTE($X52,\"}\",CHAR(160),HC$1))-FIND(CHAR(160),SUBSTITUTE($X52,\"{\",CHAR(160),HC$1))+1),\"\")","v":""},{"$f":"IFERROR(MID($X52,FIND(CHAR(160),SUBSTITUTE($X52,\"{\",CHAR(160),HD$1)),FIND(CHAR(160),SUBSTITUTE($X52,\"}\",CHAR(160),HD$1))-FIND(CHAR(160),SUBSTITUTE($X52,\"{\",CHAR(160),HD$1))+1),\"\")","v":""},{"$f":"IFERROR(MID($X52,FIND(CHAR(160),SUBSTITUTE($X52,\"{\",CHAR(160),HE$1)),FIND(CHAR(160),SUBSTITUTE($X52,\"}\",CHAR(160),HE$1))-FIND(CHAR(160),SUBSTITUTE($X52,\"{\",CHAR(160),HE$1))+1),\"\")","v":""},{"$f":"IFERROR(MID($X52,FIND(CHAR(160),SUBSTITUTE($X52,\"{\",CHAR(160),HF$1)),FIND(CHAR(160),SUBSTITUTE($X52,\"}\",CHAR(160),HF$1))-FIND(CHAR(160),SUBSTITUTE($X52,\"{\",CHAR(160),HF$1))+1),\"\")","v":""},{"$f":"IFERROR(MID($X52,FIND(CHAR(160),SUBSTITUTE($X52,\"{\",CHAR(160),HG$1)),FIND(CHAR(160),SUBSTITUTE($X52,\"}\",CHAR(160),HG$1))-FIND(CHAR(160),SUBSTITUTE($X52,\"{\",CHAR(160),HG$1))+1),\"\")","v":""},{"$f":"IFERROR(MID($X52,FIND(CHAR(160),SUBSTITUTE($X52,\"{\",CHAR(160),HH$1)),FIND(CHAR(160),SUBSTITUTE($X52,\"}\",CHAR(160),HH$1))-FIND(CHAR(160),SUBSTITUTE($X52,\"{\",CHAR(160),HH$1))+1),\"\")","v":""},{"$f":"IFERROR(MID($X52,FIND(CHAR(160),SUBSTITUTE($X52,\"{\",CHAR(160),HI$1)),FIND(CHAR(160),SUBSTITUTE($X52,\"}\",CHAR(160),HI$1))-FIND(CHAR(160),SUBSTITUTE($X52,\"{\",CHAR(160),HI$1))+1),\"\")","v":""},{"$f":"IFERROR(MID($X52,FIND(CHAR(160),SUBSTITUTE($X52,\"{\",CHAR(160),HJ$1)),FIND(CHAR(160),SUBSTITUTE($X52,\"}\",CHAR(160),HJ$1))-FIND(CHAR(160),SUBSTITUTE($X52,\"{\",CHAR(160),HJ$1))+1),\"\")","v":""},{"$f":"IFERROR(MID($Y52,FIND(CHAR(160),SUBSTITUTE($Y52,\"{\",CHAR(160),HK$1)),FIND(CHAR(160),SUBSTITUTE($Y52,\"}\",CHAR(160),HK$1))-FIND(CHAR(160),SUBSTITUTE($Y52,\"{\",CHAR(160),HK$1))+1),\"\")","v":""},{"$f":"IFERROR(MID($Y52,FIND(CHAR(160),SUBSTITUTE($Y52,\"{\",CHAR(160),HL$1)),FIND(CHAR(160),SUBSTITUTE($Y52,\"}\",CHAR(160),HL$1))-FIND(CHAR(160),SUBSTITUTE($Y52,\"{\",CHAR(160),HL$1))+1),\"\")","v":""},{"$f":"IFERROR(MID($Y52,FIND(CHAR(160),SUBSTITUTE($Y52,\"{\",CHAR(160),HM$1)),FIND(CHAR(160),SUBSTITUTE($Y52,\"}\",CHAR(160),HM$1))-FIND(CHAR(160),SUBSTITUTE($Y52,\"{\",CHAR(160),HM$1))+1),\"\")","v":""},{"$f":"IFERROR(MID($Y52,FIND(CHAR(160),SUBSTITUTE($Y52,\"{\",CHAR(160),HN$1)),FIND(CHAR(160),SUBSTITUTE($Y52,\"}\",CHAR(160),HN$1))-FIND(CHAR(160),SUBSTITUTE($Y52,\"{\",CHAR(160),HN$1))+1),\"\")","v":""},{"$f":"IFERROR(MID($Y52,FIND(CHAR(160),SUBSTITUTE($Y52,\"{\",CHAR(160),HO$1)),FIND(CHAR(160),SUBSTITUTE($Y52,\"}\",CHAR(160),HO$1))-FIND(CHAR(160),SUBSTITUTE($Y52,\"{\",CHAR(160),HO$1))+1),\"\")","v":""},{"$f":"IFERROR(MID($Y52,FIND(CHAR(160),SUBSTITUTE($Y52,\"{\",CHAR(160),HP$1)),FIND(CHAR(160),SUBSTITUTE($Y52,\"}\",CHAR(160),HP$1))-FIND(CHAR(160),SUBSTITUTE($Y52,\"{\",CHAR(160),HP$1))+1),\"\")","v":""},{"$f":"IFERROR(MID($Y52,FIND(CHAR(160),SUBSTITUTE($Y52,\"{\",CHAR(160),HQ$1)),FIND(CHAR(160),SUBSTITUTE($Y52,\"}\",CHAR(160),HQ$1))-FIND(CHAR(160),SUBSTITUTE($Y52,\"{\",CHAR(160),HQ$1))+1),\"\")","v":""},{"$f":"IFERROR(MID($Y52,FIND(CHAR(160),SUBSTITUTE($Y52,\"{\",CHAR(160),HR$1)),FIND(CHAR(160),SUBSTITUTE($Y52,\"}\",CHAR(160),HR$1))-FIND(CHAR(160),SUBSTITUTE($Y52,\"{\",CHAR(160),HR$1))+1),\"\")","v":""},{"$f":"IFERROR(MID($Y52,FIND(CHAR(160),SUBSTITUTE($Y52,\"{\",CHAR(160),HS$1)),FIND(CHAR(160),SUBSTITUTE($Y52,\"}\",CHAR(160),HS$1))-FIND(CHAR(160),SUBSTITUTE($Y52,\"{\",CHAR(160),HS$1))+1),\"\")","v":""},{"$f":"IFERROR(MID($Y52,FIND(CHAR(160),SUBSTITUTE($Y52,\"{\",CHAR(160),HT$1)),FIND(CHAR(160),SUBSTITUTE($Y52,\"}\",CHAR(160),HT$1))-FIND(CHAR(160),SUBSTITUTE($Y52,\"{\",CHAR(160),HT$1))+1),\"\")","v":""},{"$f":"IFERROR(MID($Z52,FIND(CHAR(160),SUBSTITUTE($Z52,\"{\",CHAR(160),HU$1)),FIND(CHAR(160),SUBSTITUTE($Z52,\"}\",CHAR(160),HU$1))-FIND(CHAR(160),SUBSTITUTE($Z52,\"{\",CHAR(160),HU$1))+1),\"\")","v":""},{"$f":"IFERROR(MID($Z52,FIND(CHAR(160),SUBSTITUTE($Z52,\"{\",CHAR(160),HV$1)),FIND(CHAR(160),SUBSTITUTE($Z52,\"}\",CHAR(160),HV$1))-FIND(CHAR(160),SUBSTITUTE($Z52,\"{\",CHAR(160),HV$1))+1),\"\")","v":""},{"$f":"IFERROR(MID($Z52,FIND(CHAR(160),SUBSTITUTE($Z52,\"{\",CHAR(160),HW$1)),FIND(CHAR(160),SUBSTITUTE($Z52,\"}\",CHAR(160),HW$1))-FIND(CHAR(160),SUBSTITUTE($Z52,\"{\",CHAR(160),HW$1))+1),\"\")","v":""},{"$f":"IFERROR(MID($Z52,FIND(CHAR(160),SUBSTITUTE($Z52,\"{\",CHAR(160),HX$1)),FIND(CHAR(160),SUBSTITUTE($Z52,\"}\",CHAR(160),HX$1))-FIND(CHAR(160),SUBSTITUTE($Z52,\"{\",CHAR(160),HX$1))+1),\"\")","v":""},{"$f":"IFERROR(MID($Z52,FIND(CHAR(160),SUBSTITUTE($Z52,\"{\",CHAR(160),HY$1)),FIND(CHAR(160),SUBSTITUTE($Z52,\"}\",CHAR(160),HY$1))-FIND(CHAR(160),SUBSTITUTE($Z52,\"{\",CHAR(160),HY$1))+1),\"\")","v":""},{"$f":"IFERROR(MID($Z52,FIND(CHAR(160),SUBSTITUTE($Z52,\"{\",CHAR(160),HZ$1)),FIND(CHAR(160),SUBSTITUTE($Z52,\"}\",CHAR(160),HZ$1))-FIND(CHAR(160),SUBSTITUTE($Z52,\"{\",CHAR(160),HZ$1))+1),\"\")","v":""},{"$f":"IFERROR(MID($Z52,FIND(CHAR(160),SUBSTITUTE($Z52,\"{\",CHAR(160),IA$1)),FIND(CHAR(160),SUBSTITUTE($Z52,\"}\",CHAR(160),IA$1))-FIND(CHAR(160),SUBSTITUTE($Z52,\"{\",CHAR(160),IA$1))+1),\"\")","v":""},{"$f":"IFERROR(MID($Z52,FIND(CHAR(160),SUBSTITUTE($Z52,\"{\",CHAR(160),IB$1)),FIND(CHAR(160),SUBSTITUTE($Z52,\"}\",CHAR(160),IB$1))-FIND(CHAR(160),SUBSTITUTE($Z52,\"{\",CHAR(160),IB$1))+1),\"\")","v":""},{"$f":"IFERROR(MID($Z52,FIND(CHAR(160),SUBSTITUTE($Z52,\"{\",CHAR(160),IC$1)),FIND(CHAR(160),SUBSTITUTE($Z52,\"}\",CHAR(160),IC$1))-FIND(CHAR(160),SUBSTITUTE($Z52,\"{\",CHAR(160),IC$1))+1),\"\")","v":""},{"$f":"IFERROR(MID($Z52,FIND(CHAR(160),SUBSTITUTE($Z52,\"{\",CHAR(160),ID$1)),FIND(CHAR(160),SUBSTITUTE($Z52,\"}\",CHAR(160),ID$1))-FIND(CHAR(160),SUBSTITUTE($Z52,\"{\",CHAR(160),ID$1))+1),\"\")","v":""},{"$f":"IFERROR(MID($AA52,FIND(CHAR(160),SUBSTITUTE($AA52,\"{\",CHAR(160),IE$1)),FIND(CHAR(160),SUBSTITUTE($AA52,\"}\",CHAR(160),IE$1))-FIND(CHAR(160),SUBSTITUTE($AA52,\"{\",CHAR(160),IE$1))+1),\"\")","v":""},{"$f":"IFERROR(MID($AA52,FIND(CHAR(160),SUBSTITUTE($AA52,\"{\",CHAR(160),IF$1)),FIND(CHAR(160),SUBSTITUTE($AA52,\"}\",CHAR(160),IF$1))-FIND(CHAR(160),SUBSTITUTE($AA52,\"{\",CHAR(160),IF$1))+1),\"\")","v":""},{"$f":"IFERROR(MID($AA52,FIND(CHAR(160),SUBSTITUTE($AA52,\"{\",CHAR(160),IG$1)),FIND(CHAR(160),SUBSTITUTE($AA52,\"}\",CHAR(160),IG$1))-FIND(CHAR(160),SUBSTITUTE($AA52,\"{\",CHAR(160),IG$1))+1),\"\")","v":""},{"$f":"IFERROR(MID($AA52,FIND(CHAR(160),SUBSTITUTE($AA52,\"{\",CHAR(160),IH$1)),FIND(CHAR(160),SUBSTITUTE($AA52,\"}\",CHAR(160),IH$1))-FIND(CHAR(160),SUBSTITUTE($AA52,\"{\",CHAR(160),IH$1))+1),\"\")","v":""},{"$f":"IFERROR(MID($AA52,FIND(CHAR(160),SUBSTITUTE($AA52,\"{\",CHAR(160),II$1)),FIND(CHAR(160),SUBSTITUTE($AA52,\"}\",CHAR(160),II$1))-FIND(CHAR(160),SUBSTITUTE($AA52,\"{\",CHAR(160),II$1))+1),\"\")","v":""},{"$f":"IFERROR(MID($AA52,FIND(CHAR(160),SUBSTITUTE($AA52,\"{\",CHAR(160),IJ$1)),FIND(CHAR(160),SUBSTITUTE($AA52,\"}\",CHAR(160),IJ$1))-FIND(CHAR(160),SUBSTITUTE($AA52,\"{\",CHAR(160),IJ$1))+1),\"\")","v":""},{"$f":"IFERROR(MID($AA52,FIND(CHAR(160),SUBSTITUTE($AA52,\"{\",CHAR(160),IK$1)),FIND(CHAR(160),SUBSTITUTE($AA52,\"}\",CHAR(160),IK$1))-FIND(CHAR(160),SUBSTITUTE($AA52,\"{\",CHAR(160),IK$1))+1),\"\")","v":""},{"$f":"IFERROR(MID($AA52,FIND(CHAR(160),SUBSTITUTE($AA52,\"{\",CHAR(160),IL$1)),FIND(CHAR(160),SUBSTITUTE($AA52,\"}\",CHAR(160),IL$1))-FIND(CHAR(160),SUBSTITUTE($AA52,\"{\",CHAR(160),IL$1))+1),\"\")","v":""},{"$f":"IFERROR(MID($AA52,FIND(CHAR(160),SUBSTITUTE($AA52,\"{\",CHAR(160),IM$1)),FIND(CHAR(160),SUBSTITUTE($AA52,\"}\",CHAR(160),IM$1))-FIND(CHAR(160),SUBSTITUTE($AA52,\"{\",CHAR(160),IM$1))+1),\"\")","v":""},{"$f":"IFERROR(MID($AA52,FIND(CHAR(160),SUBSTITUTE($AA52,\"{\",CHAR(160),IN$1)),FIND(CHAR(160),SUBSTITUTE($AA52,\"}\",CHAR(160),IN$1))-FIND(CHAR(160),SUBSTITUTE($AA52,\"{\",CHAR(160),IN$1))+1),\"\")","v":""},{"$f":"IFERROR(MID($AB52,FIND(CHAR(160),SUBSTITUTE($AB52,\"{\",CHAR(160),IO$1)),FIND(CHAR(160),SUBSTITUTE($AB52,\"}\",CHAR(160),IO$1))-FIND(CHAR(160),SUBSTITUTE($AB52,\"{\",CHAR(160),IO$1))+1),\"\")","v":""},{"$f":"IFERROR(MID($AB52,FIND(CHAR(160),SUBSTITUTE($AB52,\"{\",CHAR(160),IP$1)),FIND(CHAR(160),SUBSTITUTE($AB52,\"}\",CHAR(160),IP$1))-FIND(CHAR(160),SUBSTITUTE($AB52,\"{\",CHAR(160),IP$1))+1),\"\")","v":""},{"$f":"IFERROR(MID($AB52,FIND(CHAR(160),SUBSTITUTE($AB52,\"{\",CHAR(160),IQ$1)),FIND(CHAR(160),SUBSTITUTE($AB52,\"}\",CHAR(160),IQ$1))-FIND(CHAR(160),SUBSTITUTE($AB52,\"{\",CHAR(160),IQ$1))+1),\"\")","v":""},{"$f":"IFERROR(MID($AB52,FIND(CHAR(160),SUBSTITUTE($AB52,\"{\",CHAR(160),IR$1)),FIND(CHAR(160),SUBSTITUTE($AB52,\"}\",CHAR(160),IR$1))-FIND(CHAR(160),SUBSTITUTE($AB52,\"{\",CHAR(160),IR$1))+1),\"\")","v":""},{"$f":"IFERROR(MID($AB52,FIND(CHAR(160),SUBSTITUTE($AB52,\"{\",CHAR(160),IS$1)),FIND(CHAR(160),SUBSTITUTE($AB52,\"}\",CHAR(160),IS$1))-FIND(CHAR(160),SUBSTITUTE($AB52,\"{\",CHAR(160),IS$1))+1),\"\")","v":""},{"$f":"IFERROR(MID($AB52,FIND(CHAR(160),SUBSTITUTE($AB52,\"{\",CHAR(160),IT$1)),FIND(CHAR(160),SUBSTITUTE($AB52,\"}\",CHAR(160),IT$1))-FIND(CHAR(160),SUBSTITUTE($AB52,\"{\",CHAR(160),IT$1))+1),\"\")","v":""},{"$f":"IFERROR(MID($AB52,FIND(CHAR(160),SUBSTITUTE($AB52,\"{\",CHAR(160),IU$1)),FIND(CHAR(160),SUBSTITUTE($AB52,\"}\",CHAR(160),IU$1))-FIND(CHAR(160),SUBSTITUTE($AB52,\"{\",CHAR(160),IU$1))+1),\"\")","v":""},{"$f":"IFERROR(MID($AB52,FIND(CHAR(160),SUBSTITUTE($AB52,\"{\",CHAR(160),IV$1)),FIND(CHAR(160),SUBSTITUTE($AB52,\"}\",CHAR(160),IV$1))-FIND(CHAR(160),SUBSTITUTE($AB52,\"{\",CHAR(160),IV$1))+1),\"\")","v":""},{"$f":"IFERROR(MID($AB52,FIND(CHAR(160),SUBSTITUTE($AB52,\"{\",CHAR(160),IW$1)),FIND(CHAR(160),SUBSTITUTE($AB52,\"}\",CHAR(160),IW$1))-FIND(CHAR(160),SUBSTITUTE($AB52,\"{\",CHAR(160),IW$1))+1),\"\")","v":""},{"$f":"IFERROR(MID($AB52,FIND(CHAR(160),SUBSTITUTE($AB52,\"{\",CHAR(160),IX$1)),FIND(CHAR(160),SUBSTITUTE($AB52,\"}\",CHAR(160),IX$1))-FIND(CHAR(160),SUBSTITUTE($AB52,\"{\",CHAR(160),IX$1))+1),\"\")","v":""},null,{"$f":"10-COUNTIF(DU52:ED52,\"\")","v":2}]
["C&I HVAC - Electric","VFD: Return Fan on VAV Air Handler","RFA","2021-07-01","2021-09-09","Calculated","{Measure:Quantity}*if({Motor HP}=5,2425,if({Motor HP}=7.5,2648,if({Motor HP}=10,2871,if({Motor HP}=15,3317,if({Motor HP}=20,3763,if({Motor HP}=25,4209,if({Motor HP}=30,4655,0)))))))",0,"Calculated","{Measure:Quantity}*if({Motor HP}=5,400,if({Motor HP}=7.5,650,if({Motor HP}=10,1400,if({Motor HP}=15,1650,if({Motor HP}=20,1850,if({Motor HP}=25,2000,if({Motor HP}=30,2300,0)))))))",0,"2021-07-01","2022-06-30","Calculated","{Measure:Quantity}*{Motor HP}*1788",null,null,"{Measure:Quantity}*{Motor HP}*.302",null,null,"{Measure:Quantity}*{Factor:WinterCF}*{Motor HP}*.302","{Measure:Quantity}*{Factor:SummerCF}*{Motor HP}*.302",null,null,null,null,null,null,"2021-05-25","2022-06-30",13,0.21,0.68300000000000005,0.39,0.308,0.214,8.7999999999999995E-2,1,1.1220000000000001,1,0.52,1.6E-2,null,{"$f":"DU53","v":"{Measure:Quantity}"},1,{"$f":"DV53","v":"{Motor HP}"},5,{"$f":"DW53","v":""},null,{"$f":"DX53","v":""},null,{"$f":"DY53","v":""},null,{"$f":"DZ53","v":""},null,{"$f":"EA53","v":""},null,{"$f":"EB53","v":""},null,{"$f":"EC53","v":""},null,{"$f":"ED53","v":""},null,{"$f":"AS53*AU53*1788","v":8940},0,0,{"$f":"AS53*AU53*0.302","v":1.51},0,0,{"$f":"AS53*AF53*AU53*0.302","v":0.31709999999999999},{"$f":"AS53*AG53*AU53*0.302","v":1.0313300000000001},0,0,0,0,0,0,null,"Res","Default DR",{"$f":"Benefits(BL53,BR53,BS53,BT53,BU53,BV53,BW53,BX53,BY53,BZ53,AE53,AH53,AI53,AJ53,AK53,AL53,AM53,AN53,AO53,AP53,CA53,CB53)","v":12094.689196231971},2788.9593275943762,0,0,0,0,0,0,0,{"$f":"SUMPRODUCT(CC53:CK53,--(CC53:CK53>0))","v":14883.648523826349},{"$f":"-SUMPRODUCT(CC53:CK53,--(CC53:CK53<0))","v":0},null,{"$f":"AS53*IF(AU53=5,2425,IF(AU53=7.5,2648,IF(AU53=10,2871,IF(AU53=15,3317,IF(AU53=20,3763,IF(AU53=25,4209,IF(AU53=30,4655,0)))))))","v":2425},null,null,{"$f":"CM53+CO53","v":2425},{"$f":"IF(NetOrGross=\"Net\",(1-AO53+AP53),1)","v":1},{"$f":"(SUMPRODUCT(CC53:CJ53,--(CC53:CJ53>0))+CN53)*CS53/((-SUMPRODUCT(CC53:CJ53,--(CC53:CJ53<0))+MAX(CO53,CV53)+CP53+CQ53)*CS53+IF(FRIncentives=\"Yes\",CV53*(1-CS53),0))","v":6.1375870201345766},1,{"$f":"AS53*IF(AU53=5,400,IF(AU53=7.5,650,IF(AU53=10,1400,IF(AU53=15,1650,IF(AU53=20,1850,IF(AU53=25,2000,IF(AU53=30,2300,0)))))))","v":400},null,"Electric","y",null,{"$f":"IF(F53=\"Manual Entry\",\"Manual\",IF(G53=\"\",0,\"X=\"&SUBSTITUTE(SUBSTITUTE(SUBSTITUTE(SUBSTITUTE(SUBSTITUTE(SUBSTITUTE(SUBSTITUTE(SUBSTITUTE(SUBSTITUTE(SUBSTITUTE(SUBSTITUTE(SUBSTITUTE(G53,$ED53,$ED$2&ROW($ED53)),$EC53,$EC$2&ROW($EC53)),$EB53,$EB$2&ROW($EB53)),$EA53,$EA$2&ROW($EA53)),$DZ53,$DZ$2&ROW($DZ53)),$DY53,$DY$2&ROW($DY53)),$DX53,$DX$2&ROW($DX53)),$DW53,$DW$2&ROW($DW53)),$DV53,$DV$2&ROW($DV53)),$DU53,$DU$2&ROW($DU53)),$DT53,$DT$2&ROW($DT53)),$DS53,$DS$2&ROW($DS53))))","v":"X=AS53*if(AU53=5,2425,if(AU53=7.5,2648,if(AU53=10,2871,if(AU53=15,3317,if(AU53=20,3763,if(AU53=25,4209,if(AU53=30,4655,0)))))))"},{"$f":"IF(I53=\"Manual Entry\",\"Manual\",IF(J53=\"\",0,\"X=\"&SUBSTITUTE(SUBSTITUTE(SUBSTITUTE(SUBSTITUTE(SUBSTITUTE(SUBSTITUTE(SUBSTITUTE(SUBSTITUTE(SUBSTITUTE(SUBSTITUTE(SUBSTITUTE(SUBSTITUTE(J53,$ED53,$ED$2&ROW($ED53)),$EC53,$EC$2&ROW($EC53)),$EB53,$EB$2&ROW($EB53)),$EA53,$EA$2&ROW($EA53)),$DZ53,$DZ$2&ROW($DZ53)),$DY53,$DY$2&ROW($DY53)),$DX53,$DX$2&ROW($DX53)),$DW53,$DW$2&ROW($DW53)),$DV53,$DV$2&ROW($DV53)),$DU53,$DU$2&ROW($DU53)),$DT53,$DT$2&ROW($DT53)),$DS53,$DS$2&ROW($DS53))))","v":"X=AS53*if(AU53=5,400,if(AU53=7.5,650,if(AU53=10,1400,if(AU53=15,1650,if(AU53=20,1850,if(AU53=25,2000,if(AU53=30,2300,0)))))))"},{"$f":"IF(O53=\"\",0,\"X=\"&SUBSTITUTE(SUBSTITUTE(SUBSTITUTE(SUBSTITUTE(SUBSTITUTE(SUBSTITUTE(SUBSTITUTE(SUBSTITUTE(SUBSTITUTE(SUBSTITUTE(SUBSTITUTE(SUBSTITUTE(O53,$ED53,$ED$2&ROW($ED53)),$EC53,$EC$2&ROW($EC53)),$EB53,$EB$2&ROW($EB53)),$EA53,$EA$2&ROW($EA53)),$DZ53,$DZ$2&ROW($DZ53)),$DY53,$DY$2&ROW($DY53)),$DX53,$DX$2&ROW($DX53)),$DW53,$DW$2&ROW($DW53)),$DV53,$DV$2&ROW($DV53)),$DU53,$DU$2&ROW($DU53)),$DT53,$DT$2&ROW($DT53)),$DS53,$DS$2&ROW($DS53)))","v":"X=AS53*AU53*1788"},{"$f":"IF(P53=\"\",0,\"X=\"&SUBSTITUTE(SUBSTITUTE(SUBSTITUTE(SUBSTITUTE(SUBSTITUTE(SUBSTITUTE(SUBSTITUTE(SUBSTITUTE(SUBSTITUTE(SUBSTITUTE(SUBSTITUTE(SUBSTITUTE(P53,$ED53,$ED$2&ROW($ED53)),$EC53,$EC$2&ROW($EC53)),$EB53,$EB$2&ROW($EB53)),$EA53,$EA$2&ROW($EA53)),$DZ53,$DZ$2&ROW($DZ53)),$DY53,$DY$2&ROW($DY53)),$DX53,$DX$2&ROW($DX53)),$DW53,$DW$2&ROW($DW53)),$DV53,$DV$2&ROW($DV53)),$DU53,$DU$2&ROW($DU53)),$DT53,$DT$2&ROW($DT53)),$DS53,$DS$2&ROW($DS53)))","v":0},{"$f":"IF(Q53=\"\",0,\"X=\"&SUBSTITUTE(SUBSTITUTE(SUBSTITUTE(SUBSTITUTE(SUBSTITUTE(SUBSTITUTE(SUBSTITUTE(SUBSTITUTE(SUBSTITUTE(SUBSTITUTE(SUBSTITUTE(SUBSTITUTE(Q53,$ED53,$ED$2&ROW($ED53)),$EC53,$EC$2&ROW($EC53)),$EB53,$EB$2&ROW($EB53)),$EA53,$EA$2&ROW($EA53)),$DZ53,$DZ$2&ROW($DZ53)),$DY53,$DY$2&ROW($DY53)),$DX53,$DX$2&ROW($DX53)),$DW53,$DW$2&ROW($DW53)),$DV53,$DV$2&ROW($DV53)),$DU53,$DU$2&ROW($DU53)),$DT53,$DT$2&ROW($DT53)),$DS53,$DS$2&ROW($DS53)))","v":0},{"$f":"IF(R53=\"\",0,\"X=\"&SUBSTITUTE(SUBSTITUTE(SUBSTITUTE(SUBSTITUTE(SUBSTITUTE(SUBSTITUTE(SUBSTITUTE(SUBSTITUTE(SUBSTITUTE(SUBSTITUTE(SUBSTITUTE(SUBSTITUTE(R53,$ED53,$ED$2&ROW($ED53)),$EC53,$EC$2&ROW($EC53)),$EB53,$EB$2&ROW($EB53)),$EA53,$EA$2&ROW($EA53)),$DZ53,$DZ$2&ROW($DZ53)),$DY53,$DY$2&ROW($DY53)),$DX53,$DX$2&ROW($DX53)),$DW53,$DW$2&ROW($DW53)),$DV53,$DV$2&ROW($DV53)),$DU53,$DU$2&ROW($DU53)),$DT53,$DT$2&ROW($DT53)),$DS53,$DS$2&ROW($DS53)))","v":"X=AS53*AU53*.302"},{"$f":"IF(S53=\"\",0,\"X=\"&SUBSTITUTE(SUBSTITUTE(SUBSTITUTE(SUBSTITUTE(SUBSTITUTE(SUBSTITUTE(SUBSTITUTE(SUBSTITUTE(SUBSTITUTE(SUBSTITUTE(SUBSTITUTE(SUBSTITUTE(S53,$ED53,$ED$2&ROW($ED53)),$EC53,$EC$2&ROW($EC53)),$EB53,$EB$2&ROW($EB53)),$EA53,$EA$2&ROW($EA53)),$DZ53,$DZ$2&ROW($DZ53)),$DY53,$DY$2&ROW($DY53)),$DX53,$DX$2&ROW($DX53)),$DW53,$DW$2&ROW($DW53)),$DV53,$DV$2&ROW($DV53)),$DU53,$DU$2&ROW($DU53)),$DT53,$DT$2&ROW($DT53)),$DS53,$DS$2&ROW($DS53)))","v":0},{"$f":"IF(T53=\"\",0,\"X=\"&SUBSTITUTE(SUBSTITUTE(SUBSTITUTE(SUBSTITUTE(SUBSTITUTE(SUBSTITUTE(SUBSTITUTE(SUBSTITUTE(SUBSTITUTE(SUBSTITUTE(SUBSTITUTE(SUBSTITUTE(T53,$ED53,$ED$2&ROW($ED53)),$EC53,$EC$2&ROW($EC53)),$EB53,$EB$2&ROW($EB53)),$EA53,$EA$2&ROW($EA53)),$DZ53,$DZ$2&ROW($DZ53)),$DY53,$DY$2&ROW($DY53)),$DX53,$DX$2&ROW($DX53)),$DW53,$DW$2&ROW($DW53)),$DV53,$DV$2&ROW($DV53)),$DU53,$DU$2&ROW($DU53)),$DT53,$DT$2&ROW($DT53)),$DS53,$DS$2&ROW($DS53)))","v":0},{"$f":"IF(U53=\"\",0,\"X=\"&SUBSTITUTE(SUBSTITUTE(SUBSTITUTE(SUBSTITUTE(SUBSTITUTE(SUBSTITUTE(SUBSTITUTE(SUBSTITUTE(SUBSTITUTE(SUBSTITUTE(SUBSTITUTE(SUBSTITUTE(U53,$ED53,$ED$2&ROW($ED53)),$EC53,$EC$2&ROW($EC53)),$EB53,$EB$2&ROW($EB53)),$EA53,$EA$2&ROW($EA53)),$DZ53,$DZ$2&ROW($DZ53)),$DY53,$DY$2&ROW($DY53)),$DX53,$DX$2&ROW($DX53)),$DW53,$DW$2&ROW($DW53)),$DV53,$DV$2&ROW($DV53)),$DU53,$DU$2&ROW($DU53)),$DT53,$DT$2&ROW($DT53)),$DS53,$DS$2&ROW($DS53)))","v":"X=AS53*AF53*AU53*.302"},{"$f":"IF(V53=\"\",0,\"X=\"&SUBSTITUTE(SUBSTITUTE(SUBSTITUTE(SUBSTITUTE(SUBSTITUTE(SUBSTITUTE(SUBSTITUTE(SUBSTITUTE(SUBSTITUTE(SUBSTITUTE(SUBSTITUTE(SUBSTITUTE(V53,$ED53,$ED$2&ROW($ED53)),$EC53,$EC$2&ROW($EC53)),$EB53,$EB$2&ROW($EB53)),$EA53,$EA$2&ROW($EA53)),$DZ53,$DZ$2&ROW($DZ53)),$DY53,$DY$2&ROW($DY53)),$DX53,$DX$2&ROW($DX53)),$DW53,$DW$2&ROW($DW53)),$DV53,$DV$2&ROW($DV53)),$DU53,$DU$2&ROW($DU53)),$DT53,$DT$2&ROW($DT53)),$DS53,$DS$2&ROW($DS53)))","v":"X=AS53*AG53*AU53*.302"},{"$f":"IF(W53=\"\",0,\"X=\"&SUBSTITUTE(SUBSTITUTE(SUBSTITUTE(SUBSTITUTE(SUBSTITUTE(SUBSTITUTE(SUBSTITUTE(SUBSTITUTE(SUBSTITUTE(SUBSTITUTE(SUBSTITUTE(SUBSTITUTE(W53,$ED53,$ED$2&ROW($ED53)),$EC53,$EC$2&ROW($EC53)),$EB53,$EB$2&ROW($EB53)),$EA53,$EA$2&ROW($EA53)),$DZ53,$DZ$2&ROW($DZ53)),$DY53,$DY$2&ROW($DY53)),$DX53,$DX$2&ROW($DX53)),$DW53,$DW$2&ROW($DW53)),$DV53,$DV$2&ROW($DV53)),$DU53,$DU$2&ROW($DU53)),$DT53,$DT$2&ROW($DT53)),$DS53,$DS$2&ROW($DS53)))","v":0},{"$f":"IF(X53=\"\",0,\"X=\"&SUBSTITUTE(SUBSTITUTE(SUBSTITUTE(SUBSTITUTE(SUBSTITUTE(SUBSTITUTE(SUBSTITUTE(SUBSTITUTE(SUBSTITUTE(SUBSTITUTE(SUBSTITUTE(SUBSTITUTE(X53,$ED53,$ED$2&ROW($ED53)),$EC53,$EC$2&ROW($EC53)),$EB53,$EB$2&ROW($EB53)),$EA53,$EA$2&ROW($EA53)),$DZ53,$DZ$2&ROW($DZ53)),$DY53,$DY$2&ROW($DY53)),$DX53,$DX$2&ROW($DX53)),$DW53,$DW$2&ROW($DW53)),$DV53,$DV$2&ROW($DV53)),$DU53,$DU$2&ROW($DU53)),$DT53,$DT$2&ROW($DT53)),$DS53,$DS$2&ROW($DS53)))","v":0},{"$f":"IF(Y53=\"\",0,\"X=\"&SUBSTITUTE(SUBSTITUTE(SUBSTITUTE(SUBSTITUTE(SUBSTITUTE(SUBSTITUTE(SUBSTITUTE(SUBSTITUTE(SUBSTITUTE(SUBSTITUTE(SUBSTITUTE(SUBSTITUTE(Y53,$ED53,$ED$2&ROW($ED53)),$EC53,$EC$2&ROW($EC53)),$EB53,$EB$2&ROW($EB53)),$EA53,$EA$2&ROW($EA53)),$DZ53,$DZ$2&ROW($DZ53)),$DY53,$DY$2&ROW($DY53)),$DX53,$DX$2&ROW($DX53)),$DW53,$DW$2&ROW($DW53)),$DV53,$DV$2&ROW($DV53)),$DU53,$DU$2&ROW($DU53)),$DT53,$DT$2&ROW($DT53)),$DS53,$DS$2&ROW($DS53)))","v":0},{"$f":"IF(Z53=\"\",0,\"X=\"&SUBSTITUTE(SUBSTITUTE(SUBSTITUTE(SUBSTITUTE(SUBSTITUTE(SUBSTITUTE(SUBSTITUTE(SUBSTITUTE(SUBSTITUTE(SUBSTITUTE(SUBSTITUTE(SUBSTITUTE(Z53,$ED53,$ED$2&ROW($ED53)),$EC53,$EC$2&ROW($EC53)),$EB53,$EB$2&ROW($EB53)),$EA53,$EA$2&ROW($EA53)),$DZ53,$DZ$2&ROW($DZ53)),$DY53,$DY$2&ROW($DY53)),$DX53,$DX$2&ROW($DX53)),$DW53,$DW$2&ROW($DW53)),$DV53,$DV$2&ROW($DV53)),$DU53,$DU$2&ROW($DU53)),$DT53,$DT$2&ROW($DT53)),$DS53,$DS$2&ROW($DS53)))","v":0},{"$f":"IF(AA53=\"\",0,\"X=\"&SUBSTITUTE(SUBSTITUTE(SUBSTITUTE(SUBSTITUTE(SUBSTITUTE(SUBSTITUTE(SUBSTITUTE(SUBSTITUTE(SUBSTITUTE(SUBSTITUTE(SUBSTITUTE(SUBSTITUTE(AA53,$ED53,$ED$2&ROW($ED53)),$EC53,$EC$2&ROW($EC53)),$EB53,$EB$2&ROW($EB53)),$EA53,$EA$2&ROW($EA53)),$DZ53,$DZ$2&ROW($DZ53)),$DY53,$DY$2&ROW($DY53)),$DX53,$DX$2&ROW($DX53)),$DW53,$DW$2&ROW($DW53)),$DV53,$DV$2&ROW($DV53)),$DU53,$DU$2&ROW($DU53)),$DT53,$DT$2&ROW($DT53)),$DS53,$DS$2&ROW($DS53)))","v":0},{"$f":"IF(AB53=\"\",0,\"X=\"&SUBSTITUTE(SUBSTITUTE(SUBSTITUTE(SUBSTITUTE(SUBSTITUTE(SUBSTITUTE(SUBSTITUTE(SUBSTITUTE(SUBSTITUTE(SUBSTITUTE(SUBSTITUTE(SUBSTITUTE(AB53,$ED53,$ED$2&ROW($ED53)),$EC53,$EC$2&ROW($EC53)),$EB53,$EB$2&ROW($EB53)),$EA53,$EA$2&ROW($EA53)),$DZ53,$DZ$2&ROW($DZ53)),$DY53,$DY$2&ROW($DY53)),$DX53,$DX$2&ROW($DX53)),$DW53,$DW$2&ROW($DW53)),$DV53,$DV$2&ROW($DV53)),$DU53,$DU$2&ROW($DU53)),$DT53,$DT$2&ROW($DT53)),$DS53,$DS$2&ROW($DS53)))","v":0},null,null,"{Factor:WinterCF}","{Factor:SummerCF}",{"$f":"IFERROR(INDEX($EG53:$IV53,MATCH(0,COUNTIF($DR53:DT53,$EG53:$IV53),0)),\"\")","v":"{Measure:Quantity}"},{"$f":"IFERROR(INDEX($EG53:$IV53,MATCH(0,COUNTIF($DR53:DU53,$EG53:$IV53),0)),\"\")","v":"{Motor HP}"},{"$f":"IFERROR(INDEX($EG53:$IV53,MATCH(0,COUNTIF($DR53:DV53,$EG53:$IV53),0)),\"\")","v":""},{"$f":"IFERROR(INDEX($EG53:$IV53,MATCH(0,COUNTIF($DR53:DW53,$EG53:$IV53),0)),\"\")","v":""},{"$f":"IFERROR(INDEX($EG53:$IV53,MATCH(0,COUNTIF($DR53:DX53,$EG53:$IV53),0)),\"\")","v":""},{"$f":"IFERROR(INDEX($EG53:$IV53,MATCH(0,COUNTIF($DR53:DY53,$EG53:$IV53),0)),\"\")","v":""},{"$f":"IFERROR(INDEX($EG53:$IV53,MATCH(0,COUNTIF($DR53:DZ53,$EG53:$IV53),0)),\"\")","v":""},{"$f":"IFERROR(INDEX($EG53:$IV53,MATCH(0,COUNTIF($DR53:EA53,$EG53:$IV53),0)),\"\")","v":""},{"$f":"IFERROR(INDEX($EG53:$IV53,MATCH(0,COUNTIF($DR53:EB53,$EG53:$IV53),0)),\"\")","v":""},{"$f":"IFERROR(INDEX($EG53:$IV53,MATCH(0,COUNTIF($DR53:EC53,$EG53:$IV53),0)),\"\")","v":""},null,null,{"$f":"IFERROR(MID($G53,FIND(CHAR(160),SUBSTITUTE($G53,\"{\",CHAR(160),EG$1)),FIND(CHAR(160),SUBSTITUTE($G53,\"}\",CHAR(160),EG$1))-FIND(CHAR(160),SUBSTITUTE($G53,\"{\",CHAR(160),EG$1))+1),\"\")","v":"{Measure:Quantity}"},{"$f":"IFERROR(MID($G53,FIND(CHAR(160),SUBSTITUTE($G53,\"{\",CHAR(160),EH$1)),FIND(CHAR(160),SUBSTITUTE($G53,\"}\",CHAR(160),EH$1))-FIND(CHAR(160),SUBSTITUTE($G53,\"{\",CHAR(160),EH$1))+1),\"\")","v":"{Motor HP}"},{"$f":"IFERROR(MID($G53,FIND(CHAR(160),SUBSTITUTE($G53,\"{\",CHAR(160),EI$1)),FIND(CHAR(160),SUBSTITUTE($G53,\"}\",CHAR(160),EI$1))-FIND(CHAR(160),SUBSTITUTE($G53,\"{\",CHAR(160),EI$1))+1),\"\")","v":"{Motor HP}"},{"$f":"IFERROR(MID($G53,FIND(CHAR(160),SUBSTITUTE($G53,\"{\",CHAR(160),EJ$1)),FIND(CHAR(160),SUBSTITUTE($G53,\"}\",CHAR(160),EJ$1))-FIND(CHAR(160),SUBSTITUTE($G53,\"{\",CHAR(160),EJ$1))+1),\"\")","v":"{Motor HP}"},{"$f":"IFERROR(MID($G53,FIND(CHAR(160),SUBSTITUTE($G53,\"{\",CHAR(160),EK$1)),FIND(CHAR(160),SUBSTITUTE($G53,\"}\",CHAR(160),EK$1))-FIND(CHAR(160),SUBSTITUTE($G53,\"{\",CHAR(160),EK$1))+1),\"\")","v":"{Motor HP}"},{"$f":"IFERROR(MID($G53,FIND(CHAR(160),SUBSTITUTE($G53,\"{\",CHAR(160),EL$1)),FIND(CHAR(160),SUBSTITUTE($G53,\"}\",CHAR(160),EL$1))-FIND(CHAR(160),SUBSTITUTE($G53,\"{\",CHAR(160),EL$1))+1),\"\")","v":"{Motor HP}"},{"$f":"IFERROR(MID($G53,FIND(CHAR(160),SUBSTITUTE($G53,\"{\",CHAR(160),EM$1)),FIND(CHAR(160),SUBSTITUTE($G53,\"}\",CHAR(160),EM$1))-FIND(CHAR(160),SUBSTITUTE($G53,\"{\",CHAR(160),EM$1))+1),\"\")","v":"{Motor HP}"},{"$f":"IFERROR(MID($G53,FIND(CHAR(160),SUBSTITUTE($G53,\"{\",CHAR(160),EN$1)),FIND(CHAR(160),SUBSTITUTE($G53,\"}\",CHAR(160),EN$1))-FIND(CHAR(160),SUBSTITUTE($G53,\"{\",CHAR(160),EN$1))+1),\"\")","v":"{Motor HP}"},{"$f":"IFERROR(MID($G53,FIND(CHAR(160),SUBSTITUTE($G53,\"{\",CHAR(160),EO$1)),FIND(CHAR(160),SUBSTITUTE($G53,\"}\",CHAR(160),EO$1))-FIND(CHAR(160),SUBSTITUTE($G53,\"{\",CHAR(160),EO$1))+1),\"\")","v":""},{"$f":"IFERROR(MID($G53,FIND(CHAR(160),SUBSTITUTE($G53,\"{\",CHAR(160),EP$1)),FIND(CHAR(160),SUBSTITUTE($G53,\"}\",CHAR(160),EP$1))-FIND(CHAR(160),SUBSTITUTE($G53,\"{\",CHAR(160),EP$1))+1),\"\")","v":""},{"$f":"IFERROR(MID($J53,FIND(CHAR(160),SUBSTITUTE($J53,\"{\",CHAR(160),EQ$1)),FIND(CHAR(160),SUBSTITUTE($J53,\"}\",CHAR(160),EQ$1))-FIND(CHAR(160),SUBSTITUTE($J53,\"{\",CHAR(160),EQ$1))+1),\"\")","v":"{Measure:Quantity}"},{"$f":"IFERROR(MID($J53,FIND(CHAR(160),SUBSTITUTE($J53,\"{\",CHAR(160),ER$1)),FIND(CHAR(160),SUBSTITUTE($J53,\"}\",CHAR(160),ER$1))-FIND(CHAR(160),SUBSTITUTE($J53,\"{\",CHAR(160),ER$1))+1),\"\")","v":"{Motor HP}"},{"$f":"IFERROR(MID($J53,FIND(CHAR(160),SUBSTITUTE($J53,\"{\",CHAR(160),ES$1)),FIND(CHAR(160),SUBSTITUTE($J53,\"}\",CHAR(160),ES$1))-FIND(CHAR(160),SUBSTITUTE($J53,\"{\",CHAR(160),ES$1))+1),\"\")","v":"{Motor HP}"},{"$f":"IFERROR(MID($J53,FIND(CHAR(160),SUBSTITUTE($J53,\"{\",CHAR(160),ET$1)),FIND(CHAR(160),SUBSTITUTE($J53,\"}\",CHAR(160),ET$1))-FIND(CHAR(160),SUBSTITUTE($J53,\"{\",CHAR(160),ET$1))+1),\"\")","v":"{Motor HP}"},{"$f":"IFERROR(MID($J53,FIND(CHAR(160),SUBSTITUTE($J53,\"{\",CHAR(160),EU$1)),FIND(CHAR(160),SUBSTITUTE($J53,\"}\",CHAR(160),EU$1))-FIND(CHAR(160),SUBSTITUTE($J53,\"{\",CHAR(160),EU$1))+1),\"\")","v":"{Motor HP}"},{"$f":"IFERROR(MID($J53,FIND(CHAR(160),SUBSTITUTE($J53,\"{\",CHAR(160),EV$1)),FIND(CHAR(160),SUBSTITUTE($J53,\"}\",CHAR(160),EV$1))-FIND(CHAR(160),SUBSTITUTE($J53,\"{\",CHAR(160),EV$1))+1),\"\")","v":"{Motor HP}"},{"$f":"IFERROR(MID($J53,FIND(CHAR(160),SUBSTITUTE($J53,\"{\",CHAR(160),EW$1)),FIND(CHAR(160),SUBSTITUTE($J53,\"}\",CHAR(160),EW$1))-FIND(CHAR(160),SUBSTITUTE($J53,\"{\",CHAR(160),EW$1))+1),\"\")","v":"{Motor HP}"},{"$f":"IFERROR(MID($J53,FIND(CHAR(160),SUBSTITUTE($J53,\"{\",CHAR(160),EX$1)),FIND(CHAR(160),SUBSTITUTE($J53,\"}\",CHAR(160),EX$1))-FIND(CHAR(160),SUBSTITUTE($J53,\"{\",CHAR(160),EX$1))+1),\"\")","v":"{Motor HP}"},{"$f":"IFERROR(MID($J53,FIND(CHAR(160),SUBSTITUTE($J53,\"{\",CHAR(160),EY$1)),FIND(CHAR(160),SUBSTITUTE($J53,\"}\",CHAR(160),EY$1))-FIND(CHAR(160),SUBSTITUTE($J53,\"{\",CHAR(160),EY$1))+1),\"\")","v":""},{"$f":"IFERROR(MID($J53,FIND(CHAR(160),SUBSTITUTE($J53,\"{\",CHAR(160),EZ$1)),FIND(CHAR(160),SUBSTITUTE($J53,\"}\",CHAR(160),EZ$1))-FIND(CHAR(160),SUBSTITUTE($J53,\"{\",CHAR(160),EZ$1))+1),\"\")","v":""},{"$f":"IFERROR(MID($J53,FIND(CHAR(160),SUBSTITUTE($J53,\"{\",CHAR(160),FA$1)),FIND(CHAR(160),SUBSTITUTE($J53,\"}\",CHAR(160),FA$1))-FIND(CHAR(160),SUBSTITUTE($J53,\"{\",CHAR(160),FA$1))+1),\"\")","v":"{Measure:Quantity}"},{"$f":"IFERROR(MID($J53,FIND(CHAR(160),SUBSTITUTE($J53,\"{\",CHAR(160),FB$1)),FIND(CHAR(160),SUBSTITUTE($J53,\"}\",CHAR(160),FB$1))-FIND(CHAR(160),SUBSTITUTE($J53,\"{\",CHAR(160),FB$1))+1),\"\")","v":"{Motor HP}"},{"$f":"IFERROR(MID($O53,FIND(CHAR(160),SUBSTITUTE($O53,\"{\",CHAR(160),FC$1)),FIND(CHAR(160),SUBSTITUTE($O53,\"}\",CHAR(160),FC$1))-FIND(CHAR(160),SUBSTITUTE($O53,\"{\",CHAR(160),FC$1))+1),\"\")","v":""},{"$f":"IFERROR(MID($O53,FIND(CHAR(160),SUBSTITUTE($O53,\"{\",CHAR(160),FD$1)),FIND(CHAR(160),SUBSTITUTE($O53,\"}\",CHAR(160),FD$1))-FIND(CHAR(160),SUBSTITUTE($O53,\"{\",CHAR(160),FD$1))+1),\"\")","v":""},{"$f":"IFERROR(MID($O53,FIND(CHAR(160),SUBSTITUTE($O53,\"{\",CHAR(160),FE$1)),FIND(CHAR(160),SUBSTITUTE($O53,\"}\",CHAR(160),FE$1))-FIND(CHAR(160),SUBSTITUTE($O53,\"{\",CHAR(160),FE$1))+1),\"\")","v":""},{"$f":"IFERROR(MID($O53,FIND(CHAR(160),SUBSTITUTE($O53,\"{\",CHAR(160),FF$1)),FIND(CHAR(160),SUBSTITUTE($O53,\"}\",CHAR(160),FF$1))-FIND(CHAR(160),SUBSTITUTE($O53,\"{\",CHAR(160),FF$1))+1),\"\")","v":""},{"$f":"IFERROR(MID($O53,FIND(CHAR(160),SUBSTITUTE($O53,\"{\",CHAR(160),FG$1)),FIND(CHAR(160),SUBSTITUTE($O53,\"}\",CHAR(160),FG$1))-FIND(CHAR(160),SUBSTITUTE($O53,\"{\",CHAR(160),FG$1))+1),\"\")","v":""},{"$f":"IFERROR(MID($O53,FIND(CHAR(160),SUBSTITUTE($O53,\"{\",CHAR(160),FH$1)),FIND(CHAR(160),SUBSTITUTE($O53,\"}\",CHAR(160),FH$1))-FIND(CHAR(160),SUBSTITUTE($O53,\"{\",CHAR(160),FH$1))+1),\"\")","v":""},{"$f":"IFERROR(MID($O53,FIND(CHAR(160),SUBSTITUTE($O53,\"{\",CHAR(160),FI$1)),FIND(CHAR(160),SUBSTITUTE($O53,\"}\",CHAR(160),FI$1))-FIND(CHAR(160),SUBSTITUTE($O53,\"{\",CHAR(160),FI$1))+1),\"\")","v":""},{"$f":"IFERROR(MID($O53,FIND(CHAR(160),SUBSTITUTE($O53,\"{\",CHAR(160),FJ$1)),FIND(CHAR(160),SUBSTITUTE($O53,\"}\",CHAR(160),FJ$1))-FIND(CHAR(160),SUBSTITUTE($O53,\"{\",CHAR(160),FJ$1))+1),\"\")","v":""},{"$f":"IFERROR(MID($O53,FIND(CHAR(160),SUBSTITUTE($O53,\"{\",CHAR(160),FK$1)),FIND(CHAR(160),SUBSTITUTE($O53,\"}\",CHAR(160),FK$1))-FIND(CHAR(160),SUBSTITUTE($O53,\"{\",CHAR(160),FK$1))+1),\"\")","v":"{Measure:Quantity}"},{"$f":"IFERROR(MID($O53,FIND(CHAR(160),SUBSTITUTE($O53,\"{\",CHAR(160),FL$1)),FIND(CHAR(160),SUBSTITUTE($O53,\"}\",CHAR(160),FL$1))-FIND(CHAR(160),SUBSTITUTE($O53,\"{\",CHAR(160),FL$1))+1),\"\")","v":"{Motor HP}"},{"$f":"IFERROR(MID($R53,FIND(CHAR(160),SUBSTITUTE($R53,\"{\",CHAR(160),FM$1)),FIND(CHAR(160),SUBSTITUTE($R53,\"}\",CHAR(160),FM$1))-FIND(CHAR(160),SUBSTITUTE($R53,\"{\",CHAR(160),FM$1))+1),\"\")","v":""},{"$f":"IFERROR(MID($R53,FIND(CHAR(160),SUBSTITUTE($R53,\"{\",CHAR(160),FN$1)),FIND(CHAR(160),SUBSTITUTE($R53,\"}\",CHAR(160),FN$1))-FIND(CHAR(160),SUBSTITUTE($R53,\"{\",CHAR(160),FN$1))+1),\"\")","v":""},{"$f":"IFERROR(MID($R53,FIND(CHAR(160),SUBSTITUTE($R53,\"{\",CHAR(160),FO$1)),FIND(CHAR(160),SUBSTITUTE($R53,\"}\",CHAR(160),FO$1))-FIND(CHAR(160),SUBSTITUTE($R53,\"{\",CHAR(160),FO$1))+1),\"\")","v":""},{"$f":"IFERROR(MID($R53,FIND(CHAR(160),SUBSTITUTE($R53,\"{\",CHAR(160),FP$1)),FIND(CHAR(160),SUBSTITUTE($R53,\"}\",CHAR(160),FP$1))-FIND(CHAR(160),SUBSTITUTE($R53,\"{\",CHAR(160),FP$1))+1),\"\")","v":""},{"$f":"IFERROR(MID($R53,FIND(CHAR(160),SUBSTITUTE($R53,\"{\",CHAR(160),FQ$1)),FIND(CHAR(160),SUBSTITUTE($R53,\"}\",CHAR(160),FQ$1))-FIND(CHAR(160),SUBSTITUTE($R53,\"{\",CHAR(160),FQ$1))+1),\"\")","v":""},{"$f":"IFERROR(MID($R53,FIND(CHAR(160),SUBSTITUTE($R53,\"{\",CHAR(160),FR$1)),FIND(CHAR(160),SUBSTITUTE($R53,\"}\",CHAR(160),FR$1))-FIND(CHAR(160),SUBSTITUTE($R53,\"{\",CHAR(160),FR$1))+1),\"\")","v":""},{"$f":"IFERROR(MID($R53,FIND(CHAR(160),SUBSTITUTE($R53,\"{\",CHAR(160),FS$1)),FIND(CHAR(160),SUBSTITUTE($R53,\"}\",CHAR(160),FS$1))-FIND(CHAR(160),SUBSTITUTE($R53,\"{\",CHAR(160),FS$1))+1),\"\")","v":""},{"$f":"IFERROR(MID($R53,FIND(CHAR(160),SUBSTITUTE($R53,\"{\",CHAR(160),FT$1)),FIND(CHAR(160),SUBSTITUTE($R53,\"}\",CHAR(160),FT$1))-FIND(CHAR(160),SUBSTITUTE($R53,\"{\",CHAR(160),FT$1))+1),\"\")","v":""},{"$f":"IFERROR(MID($R53,FIND(CHAR(160),SUBSTITUTE($R53,\"{\",CHAR(160),FU$1)),FIND(CHAR(160),SUBSTITUTE($R53,\"}\",CHAR(160),FU$1))-FIND(CHAR(160),SUBSTITUTE($R53,\"{\",CHAR(160),FU$1))+1),\"\")","v":"{Measure:Quantity}"},{"$f":"IFERROR(MID($R53,FIND(CHAR(160),SUBSTITUTE($R53,\"{\",CHAR(160),FV$1)),FIND(CHAR(160),SUBSTITUTE($R53,\"}\",CHAR(160),FV$1))-FIND(CHAR(160),SUBSTITUTE($R53,\"{\",CHAR(160),FV$1))+1),\"\")","v":"{Motor HP}"},{"$f":"IFERROR(MID($U53,FIND(CHAR(160),SUBSTITUTE($U53,\"{\",CHAR(160),FW$1)),FIND(CHAR(160),SUBSTITUTE($U53,\"}\",CHAR(160),FW$1))-FIND(CHAR(160),SUBSTITUTE($U53,\"{\",CHAR(160),FW$1))+1),\"\")","v":"{Motor HP}"},{"$f":"IFERROR(MID($U53,FIND(CHAR(160),SUBSTITUTE($U53,\"{\",CHAR(160),FX$1)),FIND(CHAR(160),SUBSTITUTE($U53,\"}\",CHAR(160),FX$1))-FIND(CHAR(160),SUBSTITUTE($U53,\"{\",CHAR(160),FX$1))+1),\"\")","v":""},{"$f":"IFERROR(MID($U53,FIND(CHAR(160),SUBSTITUTE($U53,\"{\",CHAR(160),FY$1)),FIND(CHAR(160),SUBSTITUTE($U53,\"}\",CHAR(160),FY$1))-FIND(CHAR(160),SUBSTITUTE($U53,\"{\",CHAR(160),FY$1))+1),\"\")","v":""},{"$f":"IFERROR(MID($U53,FIND(CHAR(160),SUBSTITUTE($U53,\"{\",CHAR(160),FZ$1)),FIND(CHAR(160),SUBSTITUTE($U53,\"}\",CHAR(160),FZ$1))-FIND(CHAR(160),SUBSTITUTE($U53,\"{\",CHAR(160),FZ$1))+1),\"\")","v":""},{"$f":"IFERROR(MID($U53,FIND(CHAR(160),SUBSTITUTE($U53,\"{\",CHAR(160),GA$1)),FIND(CHAR(160),SUBSTITUTE($U53,\"}\",CHAR(160),GA$1))-FIND(CHAR(160),SUBSTITUTE($U53,\"{\",CHAR(160),GA$1))+1),\"\")","v":""},{"$f":"IFERROR(MID($U53,FIND(CHAR(160),SUBSTITUTE($U53,\"{\",CHAR(160),GB$1)),FIND(CHAR(160),SUBSTITUTE($U53,\"}\",CHAR(160),GB$1))-FIND(CHAR(160),SUBSTITUTE($U53,\"{\",CHAR(160),GB$1))+1),\"\")","v":""},{"$f":"IFERROR(MID($U53,FIND(CHAR(160),SUBSTITUTE($U53,\"{\",CHAR(160),GC$1)),FIND(CHAR(160),SUBSTITUTE($U53,\"}\",CHAR(160),GC$1))-FIND(CHAR(160),SUBSTITUTE($U53,\"{\",CHAR(160),GC$1))+1),\"\")","v":""},{"$f":"IFERROR(MID($U53,FIND(CHAR(160),SUBSTITUTE($U53,\"{\",CHAR(160),GD$1)),FIND(CHAR(160),SUBSTITUTE($U53,\"}\",CHAR(160),GD$1))-FIND(CHAR(160),SUBSTITUTE($U53,\"{\",CHAR(160),GD$1))+1),\"\")","v":""},{"$f":"IFERROR(MID($U53,FIND(CHAR(160),SUBSTITUTE($U53,\"{\",CHAR(160),GE$1)),FIND(CHAR(160),SUBSTITUTE($U53,\"}\",CHAR(160),GE$1))-FIND(CHAR(160),SUBSTITUTE($U53,\"{\",CHAR(160),GE$1))+1),\"\")","v":"{Measure:Quantity}"},{"$f":"IFERROR(MID($U53,FIND(CHAR(160),SUBSTITUTE($U53,\"{\",CHAR(160),GF$1)),FIND(CHAR(160),SUBSTITUTE($U53,\"}\",CHAR(160),GF$1))-FIND(CHAR(160),SUBSTITUTE($U53,\"{\",CHAR(160),GF$1))+1),\"\")","v":"{Factor:WinterCF}"},{"$f":"IFERROR(MID($V53,FIND(CHAR(160),SUBSTITUTE($V53,\"{\",CHAR(160),GG$1)),FIND(CHAR(160),SUBSTITUTE($V53,\"}\",CHAR(160),GG$1))-FIND(CHAR(160),SUBSTITUTE($V53,\"{\",CHAR(160),GG$1))+1),\"\")","v":"{Motor HP}"},{"$f":"IFERROR(MID($V53,FIND(CHAR(160),SUBSTITUTE($V53,\"{\",CHAR(160),GH$1)),FIND(CHAR(160),SUBSTITUTE($V53,\"}\",CHAR(160),GH$1))-FIND(CHAR(160),SUBSTITUTE($V53,\"{\",CHAR(160),GH$1))+1),\"\")","v":""},{"$f":"IFERROR(MID($V53,FIND(CHAR(160),SUBSTITUTE($V53,\"{\",CHAR(160),GI$1)),FIND(CHAR(160),SUBSTITUTE($V53,\"}\",CHAR(160),GI$1))-FIND(CHAR(160),SUBSTITUTE($V53,\"{\",CHAR(160),GI$1))+1),\"\")","v":""},{"$f":"IFERROR(MID($V53,FIND(CHAR(160),SUBSTITUTE($V53,\"{\",CHAR(160),GJ$1)),FIND(CHAR(160),SUBSTITUTE($V53,\"}\",CHAR(160),GJ$1))-FIND(CHAR(160),SUBSTITUTE($V53,\"{\",CHAR(160),GJ$1))+1),\"\")","v":""},{"$f":"IFERROR(MID($V53,FIND(CHAR(160),SUBSTITUTE($V53,\"{\",CHAR(160),GK$1)),FIND(CHAR(160),SUBSTITUTE($V53,\"}\",CHAR(160),GK$1))-FIND(CHAR(160),SUBSTITUTE($V53,\"{\",CHAR(160),GK$1))+1),\"\")","v":""},{"$f":"IFERROR(MID($V53,FIND(CHAR(160),SUBSTITUTE($V53,\"{\",CHAR(160),GL$1)),FIND(CHAR(160),SUBSTITUTE($V53,\"}\",CHAR(160),GL$1))-FIND(CHAR(160),SUBSTITUTE($V53,\"{\",CHAR(160),GL$1))+1),\"\")","v":""},{"$f":"IFERROR(MID($V53,FIND(CHAR(160),SUBSTITUTE($V53,\"{\",CHAR(160),GM$1)),FIND(CHAR(160),SUBSTITUTE($V53,\"}\",CHAR(160),GM$1))-FIND(CHAR(160),SUBSTITUTE($V53,\"{\",CHAR(160),GM$1))+1),\"\")","v":""},{"$f":"IFERROR(MID($V53,FIND(CHAR(160),SUBSTITUTE($V53,\"{\",CHAR(160),GN$1)),FIND(CHAR(160),SUBSTITUTE($V53,\"}\",CHAR(160),GN$1))-FIND(CHAR(160),SUBSTITUTE($V53,\"{\",CHAR(160),GN$1))+1),\"\")","v":""},{"$f":"IFERROR(MID($V53,FIND(CHAR(160),SUBSTITUTE($V53,\"{\",CHAR(160),GO$1)),FIND(CHAR(160),SUBSTITUTE($V53,\"}\",CHAR(160),GO$1))-FIND(CHAR(160),SUBSTITUTE($V53,\"{\",CHAR(160),GO$1))+1),\"\")","v":"{Measure:Quantity}"},{"$f":"IFERROR(MID($V53,FIND(CHAR(160),SUBSTITUTE($V53,\"{\",CHAR(160),GP$1)),FIND(CHAR(160),SUBSTITUTE($V53,\"}\",CHAR(160),GP$1))-FIND(CHAR(160),SUBSTITUTE($V53,\"{\",CHAR(160),GP$1))+1),\"\")","v":"{Factor:SummerCF}"},{"$f":"IFERROR(MID($W53,FIND(CHAR(160),SUBSTITUTE($W53,\"{\",CHAR(160),GQ$1)),FIND(CHAR(160),SUBSTITUTE($W53,\"}\",CHAR(160),GQ$1))-FIND(CHAR(160),SUBSTITUTE($W53,\"{\",CHAR(160),GQ$1))+1),\"\")","v":""},{"$f":"IFERROR(MID($W53,FIND(CHAR(160),SUBSTITUTE($W53,\"{\",CHAR(160),GR$1)),FIND(CHAR(160),SUBSTITUTE($W53,\"}\",CHAR(160),GR$1))-FIND(CHAR(160),SUBSTITUTE($W53,\"{\",CHAR(160),GR$1))+1),\"\")","v":""},{"$f":"IFERROR(MID($W53,FIND(CHAR(160),SUBSTITUTE($W53,\"{\",CHAR(160),GS$1)),FIND(CHAR(160),SUBSTITUTE($W53,\"}\",CHAR(160),GS$1))-FIND(CHAR(160),SUBSTITUTE($W53,\"{\",CHAR(160),GS$1))+1),\"\")","v":""},{"$f":"IFERROR(MID($W53,FIND(CHAR(160),SUBSTITUTE($W53,\"{\",CHAR(160),GT$1)),FIND(CHAR(160),SUBSTITUTE($W53,\"}\",CHAR(160),GT$1))-FIND(CHAR(160),SUBSTITUTE($W53,\"{\",CHAR(160),GT$1))+1),\"\")","v":""},{"$f":"IFERROR(MID($W53,FIND(CHAR(160),SUBSTITUTE($W53,\"{\",CHAR(160),GU$1)),FIND(CHAR(160),SUBSTITUTE($W53,\"}\",CHAR(160),GU$1))-FIND(CHAR(160),SUBSTITUTE($W53,\"{\",CHAR(160),GU$1))+1),\"\")","v":""},{"$f":"IFERROR(MID($W53,FIND(CHAR(160),SUBSTITUTE($W53,\"{\",CHAR(160),GV$1)),FIND(CHAR(160),SUBSTITUTE($W53,\"}\",CHAR(160),GV$1))-FIND(CHAR(160),SUBSTITUTE($W53,\"{\",CHAR(160),GV$1))+1),\"\")","v":""},{"$f":"IFERROR(MID($W53,FIND(CHAR(160),SUBSTITUTE($W53,\"{\",CHAR(160),GW$1)),FIND(CHAR(160),SUBSTITUTE($W53,\"}\",CHAR(160),GW$1))-FIND(CHAR(160),SUBSTITUTE($W53,\"{\",CHAR(160),GW$1))+1),\"\")","v":""},{"$f":"IFERROR(MID($W53,FIND(CHAR(160),SUBSTITUTE($W53,\"{\",CHAR(160),GX$1)),FIND(CHAR(160),SUBSTITUTE($W53,\"}\",CHAR(160),GX$1))-FIND(CHAR(160),SUBSTITUTE($W53,\"{\",CHAR(160),GX$1))+1),\"\")","v":""},{"$f":"IFERROR(MID($W53,FIND(CHAR(160),SUBSTITUTE($W53,\"{\",CHAR(160),GY$1)),FIND(CHAR(160),SUBSTITUTE($W53,\"}\",CHAR(160),GY$1))-FIND(CHAR(160),SUBSTITUTE($W53,\"{\",CHAR(160),GY$1))+1),\"\")","v":""},{"$f":"IFERROR(MID($W53,FIND(CHAR(160),SUBSTITUTE($W53,\"{\",CHAR(160),GZ$1)),FIND(CHAR(160),SUBSTITUTE($W53,\"}\",CHAR(160),GZ$1))-FIND(CHAR(160),SUBSTITUTE($W53,\"{\",CHAR(160),GZ$1))+1),\"\")","v":""},{"$f":"IFERROR(MID($X53,FIND(CHAR(160),SUBSTITUTE($X53,\"{\",CHAR(160),HA$1)),FIND(CHAR(160),SUBSTITUTE($X53,\"}\",CHAR(160),HA$1))-FIND(CHAR(160),SUBSTITUTE($X53,\"{\",CHAR(160),HA$1))+1),\"\")","v":""},{"$f":"IFERROR(MID($X53,FIND(CHAR(160),SUBSTITUTE($X53,\"{\",CHAR(160),HB$1)),FIND(CHAR(160),SUBSTITUTE($X53,\"}\",CHAR(160),HB$1))-FIND(CHAR(160),SUBSTITUTE($X53,\"{\",CHAR(160),HB$1))+1),\"\")","v":""},{"$f":"IFERROR(MID($X53,FIND(CHAR(160),SUBSTITUTE($X53,\"{\",CHAR(160),HC$1)),FIND(CHAR(160),SUBSTITUTE($X53,\"}\",CHAR(160),HC$1))-FIND(CHAR(160),SUBSTITUTE($X53,\"{\",CHAR(160),HC$1))+1),\"\")","v":""},{"$f":"IFERROR(MID($X53,FIND(CHAR(160),SUBSTITUTE($X53,\"{\",CHAR(160),HD$1)),FIND(CHAR(160),SUBSTITUTE($X53,\"}\",CHAR(160),HD$1))-FIND(CHAR(160),SUBSTITUTE($X53,\"{\",CHAR(160),HD$1))+1),\"\")","v":""},{"$f":"IFERROR(MID($X53,FIND(CHAR(160),SUBSTITUTE($X53,\"{\",CHAR(160),HE$1)),FIND(CHAR(160),SUBSTITUTE($X53,\"}\",CHAR(160),HE$1))-FIND(CHAR(160),SUBSTITUTE($X53,\"{\",CHAR(160),HE$1))+1),\"\")","v":""},{"$f":"IFERROR(MID($X53,FIND(CHAR(160),SUBSTITUTE($X53,\"{\",CHAR(160),HF$1)),FIND(CHAR(160),SUBSTITUTE($X53,\"}\",CHAR(160),HF$1))-FIND(CHAR(160),SUBSTITUTE($X53,\"{\",CHAR(160),HF$1))+1),\"\")","v":""},{"$f":"IFERROR(MID($X53,FIND(CHAR(160),SUBSTITUTE($X53,\"{\",CHAR(160),HG$1)),FIND(CHAR(160),SUBSTITUTE($X53,\"}\",CHAR(160),HG$1))-FIND(CHAR(160),SUBSTITUTE($X53,\"{\",CHAR(160),HG$1))+1),\"\")","v":""},{"$f":"IFERROR(MID($X53,FIND(CHAR(160),SUBSTITUTE($X53,\"{\",CHAR(160),HH$1)),FIND(CHAR(160),SUBSTITUTE($X53,\"}\",CHAR(160),HH$1))-FIND(CHAR(160),SUBSTITUTE($X53,\"{\",CHAR(160),HH$1))+1),\"\")","v":""},{"$f":"IFERROR(MID($X53,FIND(CHAR(160),SUBSTITUTE($X53,\"{\",CHAR(160),HI$1)),FIND(CHAR(160),SUBSTITUTE($X53,\"}\",CHAR(160),HI$1))-FIND(CHAR(160),SUBSTITUTE($X53,\"{\",CHAR(160),HI$1))+1),\"\")","v":""},{"$f":"IFERROR(MID($X53,FIND(CHAR(160),SUBSTITUTE($X53,\"{\",CHAR(160),HJ$1)),FIND(CHAR(160),SUBSTITUTE($X53,\"}\",CHAR(160),HJ$1))-FIND(CHAR(160),SUBSTITUTE($X53,\"{\",CHAR(160),HJ$1))+1),\"\")","v":""},{"$f":"IFERROR(MID($Y53,FIND(CHAR(160),SUBSTITUTE($Y53,\"{\",CHAR(160),HK$1)),FIND(CHAR(160),SUBSTITUTE($Y53,\"}\",CHAR(160),HK$1))-FIND(CHAR(160),SUBSTITUTE($Y53,\"{\",CHAR(160),HK$1))+1),\"\")","v":""},{"$f":"IFERROR(MID($Y53,FIND(CHAR(160),SUBSTITUTE($Y53,\"{\",CHAR(160),HL$1)),FIND(CHAR(160),SUBSTITUTE($Y53,\"}\",CHAR(160),HL$1))-FIND(CHAR(160),SUBSTITUTE($Y53,\"{\",CHAR(160),HL$1))+1),\"\")","v":""},{"$f":"IFERROR(MID($Y53,FIND(CHAR(160),SUBSTITUTE($Y53,\"{\",CHAR(160),HM$1)),FIND(CHAR(160),SUBSTITUTE($Y53,\"}\",CHAR(160),HM$1))-FIND(CHAR(160),SUBSTITUTE($Y53,\"{\",CHAR(160),HM$1))+1),\"\")","v":""},{"$f":"IFERROR(MID($Y53,FIND(CHAR(160),SUBSTITUTE($Y53,\"{\",CHAR(160),HN$1)),FIND(CHAR(160),SUBSTITUTE($Y53,\"}\",CHAR(160),HN$1))-FIND(CHAR(160),SUBSTITUTE($Y53,\"{\",CHAR(160),HN$1))+1),\"\")","v":""},{"$f":"IFERROR(MID($Y53,FIND(CHAR(160),SUBSTITUTE($Y53,\"{\",CHAR(160),HO$1)),FIND(CHAR(160),SUBSTITUTE($Y53,\"}\",CHAR(160),HO$1))-FIND(CHAR(160),SUBSTITUTE($Y53,\"{\",CHAR(160),HO$1))+1),\"\")","v":""},{"$f":"IFERROR(MID($Y53,FIND(CHAR(160),SUBSTITUTE($Y53,\"{\",CHAR(160),HP$1)),FIND(CHAR(160),SUBSTITUTE($Y53,\"}\",CHAR(160),HP$1))-FIND(CHAR(160),SUBSTITUTE($Y53,\"{\",CHAR(160),HP$1))+1),\"\")","v":""},{"$f":"IFERROR(MID($Y53,FIND(CHAR(160),SUBSTITUTE($Y53,\"{\",CHAR(160),HQ$1)),FIND(CHAR(160),SUBSTITUTE($Y53,\"}\",CHAR(160),HQ$1))-FIND(CHAR(160),SUBSTITUTE($Y53,\"{\",CHAR(160),HQ$1))+1),\"\")","v":""},{"$f":"IFERROR(MID($Y53,FIND(CHAR(160),SUBSTITUTE($Y53,\"{\",CHAR(160),HR$1)),FIND(CHAR(160),SUBSTITUTE($Y53,\"}\",CHAR(160),HR$1))-FIND(CHAR(160),SUBSTITUTE($Y53,\"{\",CHAR(160),HR$1))+1),\"\")","v":""},{"$f":"IFERROR(MID($Y53,FIND(CHAR(160),SUBSTITUTE($Y53,\"{\",CHAR(160),HS$1)),FIND(CHAR(160),SUBSTITUTE($Y53,\"}\",CHAR(160),HS$1))-FIND(CHAR(160),SUBSTITUTE($Y53,\"{\",CHAR(160),HS$1))+1),\"\")","v":""},{"$f":"IFERROR(MID($Y53,FIND(CHAR(160),SUBSTITUTE($Y53,\"{\",CHAR(160),HT$1)),FIND(CHAR(160),SUBSTITUTE($Y53,\"}\",CHAR(160),HT$1))-FIND(CHAR(160),SUBSTITUTE($Y53,\"{\",CHAR(160),HT$1))+1),\"\")","v":""},{"$f":"IFERROR(MID($Z53,FIND(CHAR(160),SUBSTITUTE($Z53,\"{\",CHAR(160),HU$1)),FIND(CHAR(160),SUBSTITUTE($Z53,\"}\",CHAR(160),HU$1))-FIND(CHAR(160),SUBSTITUTE($Z53,\"{\",CHAR(160),HU$1))+1),\"\")","v":""},{"$f":"IFERROR(MID($Z53,FIND(CHAR(160),SUBSTITUTE($Z53,\"{\",CHAR(160),HV$1)),FIND(CHAR(160),SUBSTITUTE($Z53,\"}\",CHAR(160),HV$1))-FIND(CHAR(160),SUBSTITUTE($Z53,\"{\",CHAR(160),HV$1))+1),\"\")","v":""},{"$f":"IFERROR(MID($Z53,FIND(CHAR(160),SUBSTITUTE($Z53,\"{\",CHAR(160),HW$1)),FIND(CHAR(160),SUBSTITUTE($Z53,\"}\",CHAR(160),HW$1))-FIND(CHAR(160),SUBSTITUTE($Z53,\"{\",CHAR(160),HW$1))+1),\"\")","v":""},{"$f":"IFERROR(MID($Z53,FIND(CHAR(160),SUBSTITUTE($Z53,\"{\",CHAR(160),HX$1)),FIND(CHAR(160),SUBSTITUTE($Z53,\"}\",CHAR(160),HX$1))-FIND(CHAR(160),SUBSTITUTE($Z53,\"{\",CHAR(160),HX$1))+1),\"\")","v":""},{"$f":"IFERROR(MID($Z53,FIND(CHAR(160),SUBSTITUTE($Z53,\"{\",CHAR(160),HY$1)),FIND(CHAR(160),SUBSTITUTE($Z53,\"}\",CHAR(160),HY$1))-FIND(CHAR(160),SUBSTITUTE($Z53,\"{\",CHAR(160),HY$1))+1),\"\")","v":""},{"$f":"IFERROR(MID($Z53,FIND(CHAR(160),SUBSTITUTE($Z53,\"{\",CHAR(160),HZ$1)),FIND(CHAR(160),SUBSTITUTE($Z53,\"}\",CHAR(160),HZ$1))-FIND(CHAR(160),SUBSTITUTE($Z53,\"{\",CHAR(160),HZ$1))+1),\"\")","v":""},{"$f":"IFERROR(MID($Z53,FIND(CHAR(160),SUBSTITUTE($Z53,\"{\",CHAR(160),IA$1)),FIND(CHAR(160),SUBSTITUTE($Z53,\"}\",CHAR(160),IA$1))-FIND(CHAR(160),SUBSTITUTE($Z53,\"{\",CHAR(160),IA$1))+1),\"\")","v":""},{"$f":"IFERROR(MID($Z53,FIND(CHAR(160),SUBSTITUTE($Z53,\"{\",CHAR(160),IB$1)),FIND(CHAR(160),SUBSTITUTE($Z53,\"}\",CHAR(160),IB$1))-FIND(CHAR(160),SUBSTITUTE($Z53,\"{\",CHAR(160),IB$1))+1),\"\")","v":""},{"$f":"IFERROR(MID($Z53,FIND(CHAR(160),SUBSTITUTE($Z53,\"{\",CHAR(160),IC$1)),FIND(CHAR(160),SUBSTITUTE($Z53,\"}\",CHAR(160),IC$1))-FIND(CHAR(160),SUBSTITUTE($Z53,\"{\",CHAR(160),IC$1))+1),\"\")","v":""},{"$f":"IFERROR(MID($Z53,FIND(CHAR(160),SUBSTITUTE($Z53,\"{\",CHAR(160),ID$1)),FIND(CHAR(160),SUBSTITUTE($Z53,\"}\",CHAR(160),ID$1))-FIND(CHAR(160),SUBSTITUTE($Z53,\"{\",CHAR(160),ID$1))+1),\"\")","v":""},{"$f":"IFERROR(MID($AA53,FIND(CHAR(160),SUBSTITUTE($AA53,\"{\",CHAR(160),IE$1)),FIND(CHAR(160),SUBSTITUTE($AA53,\"}\",CHAR(160),IE$1))-FIND(CHAR(160),SUBSTITUTE($AA53,\"{\",CHAR(160),IE$1))+1),\"\")","v":""},{"$f":"IFERROR(MID($AA53,FIND(CHAR(160),SUBSTITUTE($AA53,\"{\",CHAR(160),IF$1)),FIND(CHAR(160),SUBSTITUTE($AA53,\"}\",CHAR(160),IF$1))-FIND(CHAR(160),SUBSTITUTE($AA53,\"{\",CHAR(160),IF$1))+1),\"\")","v":""},{"$f":"IFERROR(MID($AA53,FIND(CHAR(160),SUBSTITUTE($AA53,\"{\",CHAR(160),IG$1)),FIND(CHAR(160),SUBSTITUTE($AA53,\"}\",CHAR(160),IG$1))-FIND(CHAR(160),SUBSTITUTE($AA53,\"{\",CHAR(160),IG$1))+1),\"\")","v":""},{"$f":"IFERROR(MID($AA53,FIND(CHAR(160),SUBSTITUTE($AA53,\"{\",CHAR(160),IH$1)),FIND(CHAR(160),SUBSTITUTE($AA53,\"}\",CHAR(160),IH$1))-FIND(CHAR(160),SUBSTITUTE($AA53,\"{\",CHAR(160),IH$1))+1),\"\")","v":""},{"$f":"IFERROR(MID($AA53,FIND(CHAR(160),SUBSTITUTE($AA53,\"{\",CHAR(160),II$1)),FIND(CHAR(160),SUBSTITUTE($AA53,\"}\",CHAR(160),II$1))-FIND(CHAR(160),SUBSTITUTE($AA53,\"{\",CHAR(160),II$1))+1),\"\")","v":""},{"$f":"IFERROR(MID($AA53,FIND(CHAR(160),SUBSTITUTE($AA53,\"{\",CHAR(160),IJ$1)),FIND(CHAR(160),SUBSTITUTE($AA53,\"}\",CHAR(160),IJ$1))-FIND(CHAR(160),SUBSTITUTE($AA53,\"{\",CHAR(160),IJ$1))+1),\"\")","v":""},{"$f":"IFERROR(MID($AA53,FIND(CHAR(160),SUBSTITUTE($AA53,\"{\",CHAR(160),IK$1)),FIND(CHAR(160),SUBSTITUTE($AA53,\"}\",CHAR(160),IK$1))-FIND(CHAR(160),SUBSTITUTE($AA53,\"{\",CHAR(160),IK$1))+1),\"\")","v":""},{"$f":"IFERROR(MID($AA53,FIND(CHAR(160),SUBSTITUTE($AA53,\"{\",CHAR(160),IL$1)),FIND(CHAR(160),SUBSTITUTE($AA53,\"}\",CHAR(160),IL$1))-FIND(CHAR(160),SUBSTITUTE($AA53,\"{\",CHAR(160),IL$1))+1),\"\")","v":""},{"$f":"IFERROR(MID($AA53,FIND(CHAR(160),SUBSTITUTE($AA53,\"{\",CHAR(160),IM$1)),FIND(CHAR(160),SUBSTITUTE($AA53,\"}\",CHAR(160),IM$1))-FIND(CHAR(160),SUBSTITUTE($AA53,\"{\",CHAR(160),IM$1))+1),\"\")","v":""},{"$f":"IFERROR(MID($AA53,FIND(CHAR(160),SUBSTITUTE($AA53,\"{\",CHAR(160),IN$1)),FIND(CHAR(160),SUBSTITUTE($AA53,\"}\",CHAR(160),IN$1))-FIND(CHAR(160),SUBSTITUTE($AA53,\"{\",CHAR(160),IN$1))+1),\"\")","v":""},{"$f":"IFERROR(MID($AB53,FIND(CHAR(160),SUBSTITUTE($AB53,\"{\",CHAR(160),IO$1)),FIND(CHAR(160),SUBSTITUTE($AB53,\"}\",CHAR(160),IO$1))-FIND(CHAR(160),SUBSTITUTE($AB53,\"{\",CHAR(160),IO$1))+1),\"\")","v":""},{"$f":"IFERROR(MID($AB53,FIND(CHAR(160),SUBSTITUTE($AB53,\"{\",CHAR(160),IP$1)),FIND(CHAR(160),SUBSTITUTE($AB53,\"}\",CHAR(160),IP$1))-FIND(CHAR(160),SUBSTITUTE($AB53,\"{\",CHAR(160),IP$1))+1),\"\")","v":""},{"$f":"IFERROR(MID($AB53,FIND(CHAR(160),SUBSTITUTE($AB53,\"{\",CHAR(160),IQ$1)),FIND(CHAR(160),SUBSTITUTE($AB53,\"}\",CHAR(160),IQ$1))-FIND(CHAR(160),SUBSTITUTE($AB53,\"{\",CHAR(160),IQ$1))+1),\"\")","v":""},{"$f":"IFERROR(MID($AB53,FIND(CHAR(160),SUBSTITUTE($AB53,\"{\",CHAR(160),IR$1)),FIND(CHAR(160),SUBSTITUTE($AB53,\"}\",CHAR(160),IR$1))-FIND(CHAR(160),SUBSTITUTE($AB53,\"{\",CHAR(160),IR$1))+1),\"\")","v":""},{"$f":"IFERROR(MID($AB53,FIND(CHAR(160),SUBSTITUTE($AB53,\"{\",CHAR(160),IS$1)),FIND(CHAR(160),SUBSTITUTE($AB53,\"}\",CHAR(160),IS$1))-FIND(CHAR(160),SUBSTITUTE($AB53,\"{\",CHAR(160),IS$1))+1),\"\")","v":""},{"$f":"IFERROR(MID($AB53,FIND(CHAR(160),SUBSTITUTE($AB53,\"{\",CHAR(160),IT$1)),FIND(CHAR(160),SUBSTITUTE($AB53,\"}\",CHAR(160),IT$1))-FIND(CHAR(160),SUBSTITUTE($AB53,\"{\",CHAR(160),IT$1))+1),\"\")","v":""},{"$f":"IFERROR(MID($AB53,FIND(CHAR(160),SUBSTITUTE($AB53,\"{\",CHAR(160),IU$1)),FIND(CHAR(160),SUBSTITUTE($AB53,\"}\",CHAR(160),IU$1))-FIND(CHAR(160),SUBSTITUTE($AB53,\"{\",CHAR(160),IU$1))+1),\"\")","v":""},{"$f":"IFERROR(MID($AB53,FIND(CHAR(160),SUBSTITUTE($AB53,\"{\",CHAR(160),IV$1)),FIND(CHAR(160),SUBSTITUTE($AB53,\"}\",CHAR(160),IV$1))-FIND(CHAR(160),SUBSTITUTE($AB53,\"{\",CHAR(160),IV$1))+1),\"\")","v":""},{"$f":"IFERROR(MID($AB53,FIND(CHAR(160),SUBSTITUTE($AB53,\"{\",CHAR(160),IW$1)),FIND(CHAR(160),SUBSTITUTE($AB53,\"}\",CHAR(160),IW$1))-FIND(CHAR(160),SUBSTITUTE($AB53,\"{\",CHAR(160),IW$1))+1),\"\")","v":""},{"$f":"IFERROR(MID($AB53,FIND(CHAR(160),SUBSTITUTE($AB53,\"{\",CHAR(160),IX$1)),FIND(CHAR(160),SUBSTITUTE($AB53,\"}\",CHAR(160),IX$1))-FIND(CHAR(160),SUBSTITUTE($AB53,\"{\",CHAR(160),IX$1))+1),\"\")","v":""},null,{"$f":"10-COUNTIF(DU53:ED53,\"\")","v":2}]
["C&I HVAC - Electric","VFD: Return Fan on VAV Packaged or Rooftop HVAC Unit","RFP","2021-07-01","2021-09-09","Calculated","{Measure:Quantity}*if({Motor HP}=5,2425,if({Motor HP}=7.5,2648,if({Motor HP}=10,2871,if({Motor HP}=15,3317,if({Motor HP}=20,3763,if({Motor HP}=25,4209,if({Motor HP}=30,4655,0)))))))",0,"Calculated","{Measure:Quantity}*if({Motor HP}=5,400,if({Motor HP}=7.5,650,if({Motor HP}=10,1400,if({Motor HP}=15,1650,if({Motor HP}=20,1850,if({Motor HP}=25,2000,if({Motor HP}=30,2300,0)))))))",0,"2021-07-01","2022-06-30","Calculated","{Measure:Quantity}*{Motor HP}*1788",null,null,"{Measure:Quantity}*{Motor HP}*.302",null,null,"{Measure:Quantity}*{Factor:WinterCF}*{Motor HP}*.302","{Measure:Quantity}*{Factor:SummerCF}*{Motor HP}*.302",null,null,null,null,null,null,"2021-05-25","2022-06-30",13,0.21,0.68300000000000005,0.39,0.308,0.214,8.7999999999999995E-2,1,1.1220000000000001,1,0.52,1.6E-2,null,{"$f":"DU54","v":"{Measure:Quantity}"},1,{"$f":"DV54","v":"{Motor HP}"},5,{"$f":"DW54","v":""},null,{"$f":"DX54","v":""},null,{"$f":"DY54","v":""},null,{"$f":"DZ54","v":""},null,{"$f":"EA54","v":""},null,{"$f":"EB54","v":""},null,{"$f":"EC54","v":""},null,{"$f":"ED54","v":""},null,{"$f":"AS54*AU54*1788","v":8940},0,0,{"$f":"AS54*AU54*0.302","v":1.51},0,0,{"$f":"AS54*AF54*AU54*0.302","v":0.31709999999999999},{"$f":"AS54*AG54*AU54*0.302","v":1.0313300000000001},0,0,0,0,0,0,null,"Res","Default DR",{"$f":"Benefits(BL54,BR54,BS54,BT54,BU54,BV54,BW54,BX54,BY54,BZ54,AE54,AH54,AI54,AJ54,AK54,AL54,AM54,AN54,AO54,AP54,CA54,CB54)","v":12094.689196231971},2788.9593275943762,0,0,0,0,0,0,0,{"$f":"SUMPRODUCT(CC54:CK54,--(CC54:CK54>0))","v":14883.648523826349},{"$f":"-SUMPRODUCT(CC54:CK54,--(CC54:CK54<0))","v":0},null,{"$f":"AS54*IF(AU54=5,2425,IF(AU54=7.5,2648,IF(AU54=10,2871,IF(AU54=15,3317,IF(AU54=20,3763,IF(AU54=25,4209,IF(AU54=30,4655,0)))))))","v":2425},null,null,{"$f":"CM54+CO54","v":2425},{"$f":"IF(NetOrGross=\"Net\",(1-AO54+AP54),1)","v":1},{"$f":"(SUMPRODUCT(CC54:CJ54,--(CC54:CJ54>0))+CN54)*CS54/((-SUMPRODUCT(CC54:CJ54,--(CC54:CJ54<0))+MAX(CO54,CV54)+CP54+CQ54)*CS54+IF(FRIncentives=\"Yes\",CV54*(1-CS54),0))","v":6.1375870201345766},1,{"$f":"AS54*IF(AU54=5,400,IF(AU54=7.5,650,IF(AU54=10,1400,IF(AU54=15,1650,IF(AU54=20,1850,IF(AU54=25,2000,IF(AU54=30,2300,0)))))))","v":400},null,"Electric","y",null,{"$f":"IF(F54=\"Manual Entry\",\"Manual\",IF(G54=\"\",0,\"X=\"&SUBSTITUTE(SUBSTITUTE(SUBSTITUTE(SUBSTITUTE(SUBSTITUTE(SUBSTITUTE(SUBSTITUTE(SUBSTITUTE(SUBSTITUTE(SUBSTITUTE(SUBSTITUTE(SUBSTITUTE(G54,$ED54,$ED$2&ROW($ED54)),$EC54,$EC$2&ROW($EC54)),$EB54,$EB$2&ROW($EB54)),$EA54,$EA$2&ROW($EA54)),$DZ54,$DZ$2&ROW($DZ54)),$DY54,$DY$2&ROW($DY54)),$DX54,$DX$2&ROW($DX54)),$DW54,$DW$2&ROW($DW54)),$DV54,$DV$2&ROW($DV54)),$DU54,$DU$2&ROW($DU54)),$DT54,$DT$2&ROW($DT54)),$DS54,$DS$2&ROW($DS54))))","v":"X=AS54*if(AU54=5,2425,if(AU54=7.5,2648,if(AU54=10,2871,if(AU54=15,3317,if(AU54=20,3763,if(AU54=25,4209,if(AU54=30,4655,0)))))))"},{"$f":"IF(I54=\"Manual Entry\",\"Manual\",IF(J54=\"\",0,\"X=\"&SUBSTITUTE(SUBSTITUTE(SUBSTITUTE(SUBSTITUTE(SUBSTITUTE(SUBSTITUTE(SUBSTITUTE(SUBSTITUTE(SUBSTITUTE(SUBSTITUTE(SUBSTITUTE(SUBSTITUTE(J54,$ED54,$ED$2&ROW($ED54)),$EC54,$EC$2&ROW($EC54)),$EB54,$EB$2&ROW($EB54)),$EA54,$EA$2&ROW($EA54)),$DZ54,$DZ$2&ROW($DZ54)),$DY54,$DY$2&ROW($DY54)),$DX54,$DX$2&ROW($DX54)),$DW54,$DW$2&ROW($DW54)),$DV54,$DV$2&ROW($DV54)),$DU54,$DU$2&ROW($DU54)),$DT54,$DT$2&ROW($DT54)),$DS54,$DS$2&ROW($DS54))))","v":"X=AS54*if(AU54=5,400,if(AU54=7.5,650,if(AU54=10,1400,if(AU54=15,1650,if(AU54=20,1850,if(AU54=25,2000,if(AU54=30,2300,0)))))))"},{"$f":"IF(O54=\"\",0,\"X=\"&SUBSTITUTE(SUBSTITUTE(SUBSTITUTE(SUBSTITUTE(SUBSTITUTE(SUBSTITUTE(SUBSTITUTE(SUBSTITUTE(SUBSTITUTE(SUBSTITUTE(SUBSTITUTE(SUBSTITUTE(O54,$ED54,$ED$2&ROW($ED54)),$EC54,$EC$2&ROW($EC54)),$EB54,$EB$2&ROW($EB54)),$EA54,$EA$2&ROW($EA54)),$DZ54,$DZ$2&ROW($DZ54)),$DY54,$DY$2&ROW($DY54)),$DX54,$DX$2&ROW($DX54)),$DW54,$DW$2&ROW($DW54)),$DV54,$DV$2&ROW($DV54)),$DU54,$DU$2&ROW($DU54)),$DT54,$DT$2&ROW($DT54)),$DS54,$DS$2&ROW($DS54)))","v":"X=AS54*AU54*1788"},{"$f":"IF(P54=\"\",0,\"X=\"&SUBSTITUTE(SUBSTITUTE(SUBSTITUTE(SUBSTITUTE(SUBSTITUTE(SUBSTITUTE(SUBSTITUTE(SUBSTITUTE(SUBSTITUTE(SUBSTITUTE(SUBSTITUTE(SUBSTITUTE(P54,$ED54,$ED$2&ROW($ED54)),$EC54,$EC$2&ROW($EC54)),$EB54,$EB$2&ROW($EB54)),$EA54,$EA$2&ROW($EA54)),$DZ54,$DZ$2&ROW($DZ54)),$DY54,$DY$2&ROW($DY54)),$DX54,$DX$2&ROW($DX54)),$DW54,$DW$2&ROW($DW54)),$DV54,$DV$2&ROW($DV54)),$DU54,$DU$2&ROW($DU54)),$DT54,$DT$2&ROW($DT54)),$DS54,$DS$2&ROW($DS54)))","v":0},{"$f":"IF(Q54=\"\",0,\"X=\"&SUBSTITUTE(SUBSTITUTE(SUBSTITUTE(SUBSTITUTE(SUBSTITUTE(SUBSTITUTE(SUBSTITUTE(SUBSTITUTE(SUBSTITUTE(SUBSTITUTE(SUBSTITUTE(SUBSTITUTE(Q54,$ED54,$ED$2&ROW($ED54)),$EC54,$EC$2&ROW($EC54)),$EB54,$EB$2&ROW($EB54)),$EA54,$EA$2&ROW($EA54)),$DZ54,$DZ$2&ROW($DZ54)),$DY54,$DY$2&ROW($DY54)),$DX54,$DX$2&ROW($DX54)),$DW54,$DW$2&ROW($DW54)),$DV54,$DV$2&ROW($DV54)),$DU54,$DU$2&ROW($DU54)),$DT54,$DT$2&ROW($DT54)),$DS54,$DS$2&ROW($DS54)))","v":0},{"$f":"IF(R54=\"\",0,\"X=\"&SUBSTITUTE(SUBSTITUTE(SUBSTITUTE(SUBSTITUTE(SUBSTITUTE(SUBSTITUTE(SUBSTITUTE(SUBSTITUTE(SUBSTITUTE(SUBSTITUTE(SUBSTITUTE(SUBSTITUTE(R54,$ED54,$ED$2&ROW($ED54)),$EC54,$EC$2&ROW($EC54)),$EB54,$EB$2&ROW($EB54)),$EA54,$EA$2&ROW($EA54)),$DZ54,$DZ$2&ROW($DZ54)),$DY54,$DY$2&ROW($DY54)),$DX54,$DX$2&ROW($DX54)),$DW54,$DW$2&ROW($DW54)),$DV54,$DV$2&ROW($DV54)),$DU54,$DU$2&ROW($DU54)),$DT54,$DT$2&ROW($DT54)),$DS54,$DS$2&ROW($DS54)))","v":"X=AS54*AU54*.302"},{"$f":"IF(S54=\"\",0,\"X=\"&SUBSTITUTE(SUBSTITUTE(SUBSTITUTE(SUBSTITUTE(SUBSTITUTE(SUBSTITUTE(SUBSTITUTE(SUBSTITUTE(SUBSTITUTE(SUBSTITUTE(SUBSTITUTE(SUBSTITUTE(S54,$ED54,$ED$2&ROW($ED54)),$EC54,$EC$2&ROW($EC54)),$EB54,$EB$2&ROW($EB54)),$EA54,$EA$2&ROW($EA54)),$DZ54,$DZ$2&ROW($DZ54)),$DY54,$DY$2&ROW($DY54)),$DX54,$DX$2&ROW($DX54)),$DW54,$DW$2&ROW($DW54)),$DV54,$DV$2&ROW($DV54)),$DU54,$DU$2&ROW($DU54)),$DT54,$DT$2&ROW($DT54)),$DS54,$DS$2&ROW($DS54)))","v":0},{"$f":"IF(T54=\"\",0,\"X=\"&SUBSTITUTE(SUBSTITUTE(SUBSTITUTE(SUBSTITUTE(SUBSTITUTE(SUBSTITUTE(SUBSTITUTE(SUBSTITUTE(SUBSTITUTE(SUBSTITUTE(SUBSTITUTE(SUBSTITUTE(T54,$ED54,$ED$2&ROW($ED54)),$EC54,$EC$2&ROW($EC54)),$EB54,$EB$2&ROW($EB54)),$EA54,$EA$2&ROW($EA54)),$DZ54,$DZ$2&ROW($DZ54)),$DY54,$DY$2&ROW($DY54)),$DX54,$DX$2&ROW($DX54)),$DW54,$DW$2&ROW($DW54)),$DV54,$DV$2&ROW($DV54)),$DU54,$DU$2&ROW($DU54)),$DT54,$DT$2&ROW($DT54)),$DS54,$DS$2&ROW($DS54)))","v":0},{"$f":"IF(U54=\"\",0,\"X=\"&SUBSTITUTE(SUBSTITUTE(SUBSTITUTE(SUBSTITUTE(SUBSTITUTE(SUBSTITUTE(SUBSTITUTE(SUBSTITUTE(SUBSTITUTE(SUBSTITUTE(SUBSTITUTE(SUBSTITUTE(U54,$ED54,$ED$2&ROW($ED54)),$EC54,$EC$2&ROW($EC54)),$EB54,$EB$2&ROW($EB54)),$EA54,$EA$2&ROW($EA54)),$DZ54,$DZ$2&ROW($DZ54)),$DY54,$DY$2&ROW($DY54)),$DX54,$DX$2&ROW($DX54)),$DW54,$DW$2&ROW($DW54)),$DV54,$DV$2&ROW($DV54)),$DU54,$DU$2&ROW($DU54)),$DT54,$DT$2&ROW($DT54)),$DS54,$DS$2&ROW($DS54)))","v":"X=AS54*AF54*AU54*.302"},{"$f":"IF(V54=\"\",0,\"X=\"&SUBSTITUTE(SUBSTITUTE(SUBSTITUTE(SUBSTITUTE(SUBSTITUTE(SUBSTITUTE(SUBSTITUTE(SUBSTITUTE(SUBSTITUTE(SUBSTITUTE(SUBSTITUTE(SUBSTITUTE(V54,$ED54,$ED$2&ROW($ED54)),$EC54,$EC$2&ROW($EC54)),$EB54,$EB$2&ROW($EB54)),$EA54,$EA$2&ROW($EA54)),$DZ54,$DZ$2&ROW($DZ54)),$DY54,$DY$2&ROW($DY54)),$DX54,$DX$2&ROW($DX54)),$DW54,$DW$2&ROW($DW54)),$DV54,$DV$2&ROW($DV54)),$DU54,$DU$2&ROW($DU54)),$DT54,$DT$2&ROW($DT54)),$DS54,$DS$2&ROW($DS54)))","v":"X=AS54*AG54*AU54*.302"},{"$f":"IF(W54=\"\",0,\"X=\"&SUBSTITUTE(SUBSTITUTE(SUBSTITUTE(SUBSTITUTE(SUBSTITUTE(SUBSTITUTE(SUBSTITUTE(SUBSTITUTE(SUBSTITUTE(SUBSTITUTE(SUBSTITUTE(SUBSTITUTE(W54,$ED54,$ED$2&ROW($ED54)),$EC54,$EC$2&ROW($EC54)),$EB54,$EB$2&ROW($EB54)),$EA54,$EA$2&ROW($EA54)),$DZ54,$DZ$2&ROW($DZ54)),$DY54,$DY$2&ROW($DY54)),$DX54,$DX$2&ROW($DX54)),$DW54,$DW$2&ROW($DW54)),$DV54,$DV$2&ROW($DV54)),$DU54,$DU$2&ROW($DU54)),$DT54,$DT$2&ROW($DT54)),$DS54,$DS$2&ROW($DS54)))","v":0},{"$f":"IF(X54=\"\",0,\"X=\"&SUBSTITUTE(SUBSTITUTE(SUBSTITUTE(SUBSTITUTE(SUBSTITUTE(SUBSTITUTE(SUBSTITUTE(SUBSTITUTE(SUBSTITUTE(SUBSTITUTE(SUBSTITUTE(SUBSTITUTE(X54,$ED54,$ED$2&ROW($ED54)),$EC54,$EC$2&ROW($EC54)),$EB54,$EB$2&ROW($EB54)),$EA54,$EA$2&ROW($EA54)),$DZ54,$DZ$2&ROW($DZ54)),$DY54,$DY$2&ROW($DY54)),$DX54,$DX$2&ROW($DX54)),$DW54,$DW$2&ROW($DW54)),$DV54,$DV$2&ROW($DV54)),$DU54,$DU$2&ROW($DU54)),$DT54,$DT$2&ROW($DT54)),$DS54,$DS$2&ROW($DS54)))","v":0},{"$f":"IF(Y54=\"\",0,\"X=\"&SUBSTITUTE(SUBSTITUTE(SUBSTITUTE(SUBSTITUTE(SUBSTITUTE(SUBSTITUTE(SUBSTITUTE(SUBSTITUTE(SUBSTITUTE(SUBSTITUTE(SUBSTITUTE(SUBSTITUTE(Y54,$ED54,$ED$2&ROW($ED54)),$EC54,$EC$2&ROW($EC54)),$EB54,$EB$2&ROW($EB54)),$EA54,$EA$2&ROW($EA54)),$DZ54,$DZ$2&ROW($DZ54)),$DY54,$DY$2&ROW($DY54)),$DX54,$DX$2&ROW($DX54)),$DW54,$DW$2&ROW($DW54)),$DV54,$DV$2&ROW($DV54)),$DU54,$DU$2&ROW($DU54)),$DT54,$DT$2&ROW($DT54)),$DS54,$DS$2&ROW($DS54)))","v":0},{"$f":"IF(Z54=\"\",0,\"X=\"&SUBSTITUTE(SUBSTITUTE(SUBSTITUTE(SUBSTITUTE(SUBSTITUTE(SUBSTITUTE(SUBSTITUTE(SUBSTITUTE(SUBSTITUTE(SUBSTITUTE(SUBSTITUTE(SUBSTITUTE(Z54,$ED54,$ED$2&ROW($ED54)),$EC54,$EC$2&ROW($EC54)),$EB54,$EB$2&ROW($EB54)),$EA54,$EA$2&ROW($EA54)),$DZ54,$DZ$2&ROW($DZ54)),$DY54,$DY$2&ROW($DY54)),$DX54,$DX$2&ROW($DX54)),$DW54,$DW$2&ROW($DW54)),$DV54,$DV$2&ROW($DV54)),$DU54,$DU$2&ROW($DU54)),$DT54,$DT$2&ROW($DT54)),$DS54,$DS$2&ROW($DS54)))","v":0},{"$f":"IF(AA54=\"\",0,\"X=\"&SUBSTITUTE(SUBSTITUTE(SUBSTITUTE(SUBSTITUTE(SUBSTITUTE(SUBSTITUTE(SUBSTITUTE(SUBSTITUTE(SUBSTITUTE(SUBSTITUTE(SUBSTITUTE(SUBSTITUTE(AA54,$ED54,$ED$2&ROW($ED54)),$EC54,$EC$2&ROW($EC54)),$EB54,$EB$2&ROW($EB54)),$EA54,$EA$2&ROW($EA54)),$DZ54,$DZ$2&ROW($DZ54)),$DY54,$DY$2&ROW($DY54)),$DX54,$DX$2&ROW($DX54)),$DW54,$DW$2&ROW($DW54)),$DV54,$DV$2&ROW($DV54)),$DU54,$DU$2&ROW($DU54)),$DT54,$DT$2&ROW($DT54)),$DS54,$DS$2&ROW($DS54)))","v":0},{"$f":"IF(AB54=\"\",0,\"X=\"&SUBSTITUTE(SUBSTITUTE(SUBSTITUTE(SUBSTITUTE(SUBSTITUTE(SUBSTITUTE(SUBSTITUTE(SUBSTITUTE(SUBSTITUTE(SUBSTITUTE(SUBSTITUTE(SUBSTITUTE(AB54,$ED54,$ED$2&ROW($ED54)),$EC54,$EC$2&ROW($EC54)),$EB54,$EB$2&ROW($EB54)),$EA54,$EA$2&ROW($EA54)),$DZ54,$DZ$2&ROW($DZ54)),$DY54,$DY$2&ROW($DY54)),$DX54,$DX$2&ROW($DX54)),$DW54,$DW$2&ROW($DW54)),$DV54,$DV$2&ROW($DV54)),$DU54,$DU$2&ROW($DU54)),$DT54,$DT$2&ROW($DT54)),$DS54,$DS$2&ROW($DS54)))","v":0},null,null,"{Factor:WinterCF}","{Factor:SummerCF}",{"$f":"IFERROR(INDEX($EG54:$IV54,MATCH(0,COUNTIF($DR54:DT54,$EG54:$IV54),0)),\"\")","v":"{Measure:Quantity}"},{"$f":"IFERROR(INDEX($EG54:$IV54,MATCH(0,COUNTIF($DR54:DU54,$EG54:$IV54),0)),\"\")","v":"{Motor HP}"},{"$f":"IFERROR(INDEX($EG54:$IV54,MATCH(0,COUNTIF($DR54:DV54,$EG54:$IV54),0)),\"\")","v":""},{"$f":"IFERROR(INDEX($EG54:$IV54,MATCH(0,COUNTIF($DR54:DW54,$EG54:$IV54),0)),\"\")","v":""},{"$f":"IFERROR(INDEX($EG54:$IV54,MATCH(0,COUNTIF($DR54:DX54,$EG54:$IV54),0)),\"\")","v":""},{"$f":"IFERROR(INDEX($EG54:$IV54,MATCH(0,COUNTIF($DR54:DY54,$EG54:$IV54),0)),\"\")","v":""},{"$f":"IFERROR(INDEX($EG54:$IV54,MATCH(0,COUNTIF($DR54:DZ54,$EG54:$IV54),0)),\"\")","v":""},{"$f":"IFERROR(INDEX($EG54:$IV54,MATCH(0,COUNTIF($DR54:EA54,$EG54:$IV54),0)),\"\")","v":""},{"$f":"IFERROR(INDEX($EG54:$IV54,MATCH(0,COUNTIF($DR54:EB54,$EG54:$IV54),0)),\"\")","v":""},{"$f":"IFERROR(INDEX($EG54:$IV54,MATCH(0,COUNTIF($DR54:EC54,$EG54:$IV54),0)),\"\")","v":""},null,null,{"$f":"IFERROR(MID($G54,FIND(CHAR(160),SUBSTITUTE($G54,\"{\",CHAR(160),EG$1)),FIND(CHAR(160),SUBSTITUTE($G54,\"}\",CHAR(160),EG$1))-FIND(CHAR(160),SUBSTITUTE($G54,\"{\",CHAR(160),EG$1))+1),\"\")","v":"{Measure:Quantity}"},{"$f":"IFERROR(MID($G54,FIND(CHAR(160),SUBSTITUTE($G54,\"{\",CHAR(160),EH$1)),FIND(CHAR(160),SUBSTITUTE($G54,\"}\",CHAR(160),EH$1))-FIND(CHAR(160),SUBSTITUTE($G54,\"{\",CHAR(160),EH$1))+1),\"\")","v":"{Motor HP}"},{"$f":"IFERROR(MID($G54,FIND(CHAR(160),SUBSTITUTE($G54,\"{\",CHAR(160),EI$1)),FIND(CHAR(160),SUBSTITUTE($G54,\"}\",CHAR(160),EI$1))-FIND(CHAR(160),SUBSTITUTE($G54,\"{\",CHAR(160),EI$1))+1),\"\")","v":"{Motor HP}"},{"$f":"IFERROR(MID($G54,FIND(CHAR(160),SUBSTITUTE($G54,\"{\",CHAR(160),EJ$1)),FIND(CHAR(160),SUBSTITUTE($G54,\"}\",CHAR(160),EJ$1))-FIND(CHAR(160),SUBSTITUTE($G54,\"{\",CHAR(160),EJ$1))+1),\"\")","v":"{Motor HP}"},{"$f":"IFERROR(MID($G54,FIND(CHAR(160),SUBSTITUTE($G54,\"{\",CHAR(160),EK$1)),FIND(CHAR(160),SUBSTITUTE($G54,\"}\",CHAR(160),EK$1))-FIND(CHAR(160),SUBSTITUTE($G54,\"{\",CHAR(160),EK$1))+1),\"\")","v":"{Motor HP}"},{"$f":"IFERROR(MID($G54,FIND(CHAR(160),SUBSTITUTE($G54,\"{\",CHAR(160),EL$1)),FIND(CHAR(160),SUBSTITUTE($G54,\"}\",CHAR(160),EL$1))-FIND(CHAR(160),SUBSTITUTE($G54,\"{\",CHAR(160),EL$1))+1),\"\")","v":"{Motor HP}"},{"$f":"IFERROR(MID($G54,FIND(CHAR(160),SUBSTITUTE($G54,\"{\",CHAR(160),EM$1)),FIND(CHAR(160),SUBSTITUTE($G54,\"}\",CHAR(160),EM$1))-FIND(CHAR(160),SUBSTITUTE($G54,\"{\",CHAR(160),EM$1))+1),\"\")","v":"{Motor HP}"},{"$f":"IFERROR(MID($G54,FIND(CHAR(160),SUBSTITUTE($G54,\"{\",CHAR(160),EN$1)),FIND(CHAR(160),SUBSTITUTE($G54,\"}\",CHAR(160),EN$1))-FIND(CHAR(160),SUBSTITUTE($G54,\"{\",CHAR(160),EN$1))+1),\"\")","v":"{Motor HP}"},{"$f":"IFERROR(MID($G54,FIND(CHAR(160),SUBSTITUTE($G54,\"{\",CHAR(160),EO$1)),FIND(CHAR(160),SUBSTITUTE($G54,\"}\",CHAR(160),EO$1))-FIND(CHAR(160),SUBSTITUTE($G54,\"{\",CHAR(160),EO$1))+1),\"\")","v":""},{"$f":"IFERROR(MID($G54,FIND(CHAR(160),SUBSTITUTE($G54,\"{\",CHAR(160),EP$1)),FIND(CHAR(160),SUBSTITUTE($G54,\"}\",CHAR(160),EP$1))-FIND(CHAR(160),SUBSTITUTE($G54,\"{\",CHAR(160),EP$1))+1),\"\")","v":""},{"$f":"IFERROR(MID($J54,FIND(CHAR(160),SUBSTITUTE($J54,\"{\",CHAR(160),EQ$1)),FIND(CHAR(160),SUBSTITUTE($J54,\"}\",CHAR(160),EQ$1))-FIND(CHAR(160),SUBSTITUTE($J54,\"{\",CHAR(160),EQ$1))+1),\"\")","v":"{Measure:Quantity}"},{"$f":"IFERROR(MID($J54,FIND(CHAR(160),SUBSTITUTE($J54,\"{\",CHAR(160),ER$1)),FIND(CHAR(160),SUBSTITUTE($J54,\"}\",CHAR(160),ER$1))-FIND(CHAR(160),SUBSTITUTE($J54,\"{\",CHAR(160),ER$1))+1),\"\")","v":"{Motor HP}"},{"$f":"IFERROR(MID($J54,FIND(CHAR(160),SUBSTITUTE($J54,\"{\",CHAR(160),ES$1)),FIND(CHAR(160),SUBSTITUTE($J54,\"}\",CHAR(160),ES$1))-FIND(CHAR(160),SUBSTITUTE($J54,\"{\",CHAR(160),ES$1))+1),\"\")","v":"{Motor HP}"},{"$f":"IFERROR(MID($J54,FIND(CHAR(160),SUBSTITUTE($J54,\"{\",CHAR(160),ET$1)),FIND(CHAR(160),SUBSTITUTE($J54,\"}\",CHAR(160),ET$1))-FIND(CHAR(160),SUBSTITUTE($J54,\"{\",CHAR(160),ET$1))+1),\"\")","v":"{Motor HP}"},{"$f":"IFERROR(MID($J54,FIND(CHAR(160),SUBSTITUTE($J54,\"{\",CHAR(160),EU$1)),FIND(CHAR(160),SUBSTITUTE($J54,\"}\",CHAR(160),EU$1))-FIND(CHAR(160),SUBSTITUTE($J54,\"{\",CHAR(160),EU$1))+1),\"\")","v":"{Motor HP}"},{"$f":"IFERROR(MID($J54,FIND(CHAR(160),SUBSTITUTE($J54,\"{\",CHAR(160),EV$1)),FIND(CHAR(160),SUBSTITUTE($J54,\"}\",CHAR(160),EV$1))-FIND(CHAR(160),SUBSTITUTE($J54,\"{\",CHAR(160),EV$1))+1),\"\")","v":"{Motor HP}"},{"$f":"IFERROR(MID($J54,FIND(CHAR(160),SUBSTITUTE($J54,\"{\",CHAR(160),EW$1)),FIND(CHAR(160),SUBSTITUTE($J54,\"}\",CHAR(160),EW$1))-FIND(CHAR(160),SUBSTITUTE($J54,\"{\",CHAR(160),EW$1))+1),\"\")","v":"{Motor HP}"},{"$f":"IFERROR(MID($J54,FIND(CHAR(160),SUBSTITUTE($J54,\"{\",CHAR(160),EX$1)),FIND(CHAR(160),SUBSTITUTE($J54,\"}\",CHAR(160),EX$1))-FIND(CHAR(160),SUBSTITUTE($J54,\"{\",CHAR(160),EX$1))+1),\"\")","v":"{Motor HP}"},{"$f":"IFERROR(MID($J54,FIND(CHAR(160),SUBSTITUTE($J54,\"{\",CHAR(160),EY$1)),FIND(CHAR(160),SUBSTITUTE($J54,\"}\",CHAR(160),EY$1))-FIND(CHAR(160),SUBSTITUTE($J54,\"{\",CHAR(160),EY$1))+1),\"\")","v":""},{"$f":"IFERROR(MID($J54,FIND(CHAR(160),SUBSTITUTE($J54,\"{\",CHAR(160),EZ$1)),FIND(CHAR(160),SUBSTITUTE($J54,\"}\",CHAR(160),EZ$1))-FIND(CHAR(160),SUBSTITUTE($J54,\"{\",CHAR(160),EZ$1))+1),\"\")","v":""},{"$f":"IFERROR(MID($J54,FIND(CHAR(160),SUBSTITUTE($J54,\"{\",CHAR(160),FA$1)),FIND(CHAR(160),SUBSTITUTE($J54,\"}\",CHAR(160),FA$1))-FIND(CHAR(160),SUBSTITUTE($J54,\"{\",CHAR(160),FA$1))+1),\"\")","v":"{Measure:Quantity}"},{"$f":"IFERROR(MID($J54,FIND(CHAR(160),SUBSTITUTE($J54,\"{\",CHAR(160),FB$1)),FIND(CHAR(160),SUBSTITUTE($J54,\"}\",CHAR(160),FB$1))-FIND(CHAR(160),SUBSTITUTE($J54,\"{\",CHAR(160),FB$1))+1),\"\")","v":"{Motor HP}"},{"$f":"IFERROR(MID($O54,FIND(CHAR(160),SUBSTITUTE($O54,\"{\",CHAR(160),FC$1)),FIND(CHAR(160),SUBSTITUTE($O54,\"}\",CHAR(160),FC$1))-FIND(CHAR(160),SUBSTITUTE($O54,\"{\",CHAR(160),FC$1))+1),\"\")","v":""},{"$f":"IFERROR(MID($O54,FIND(CHAR(160),SUBSTITUTE($O54,\"{\",CHAR(160),FD$1)),FIND(CHAR(160),SUBSTITUTE($O54,\"}\",CHAR(160),FD$1))-FIND(CHAR(160),SUBSTITUTE($O54,\"{\",CHAR(160),FD$1))+1),\"\")","v":""},{"$f":"IFERROR(MID($O54,FIND(CHAR(160),SUBSTITUTE($O54,\"{\",CHAR(160),FE$1)),FIND(CHAR(160),SUBSTITUTE($O54,\"}\",CHAR(160),FE$1))-FIND(CHAR(160),SUBSTITUTE($O54,\"{\",CHAR(160),FE$1))+1),\"\")","v":""},{"$f":"IFERROR(MID($O54,FIND(CHAR(160),SUBSTITUTE($O54,\"{\",CHAR(160),FF$1)),FIND(CHAR(160),SUBSTITUTE($O54,\"}\",CHAR(160),FF$1))-FIND(CHAR(160),SUBSTITUTE($O54,\"{\",CHAR(160),FF$1))+1),\"\")","v":""},{"$f":"IFERROR(MID($O54,FIND(CHAR(160),SUBSTITUTE($O54,\"{\",CHAR(160),FG$1)),FIND(CHAR(160),SUBSTITUTE($O54,\"}\",CHAR(160),FG$1))-FIND(CHAR(160),SUBSTITUTE($O54,\"{\",CHAR(160),FG$1))+1),\"\")","v":""},{"$f":"IFERROR(MID($O54,FIND(CHAR(160),SUBSTITUTE($O54,\"{\",CHAR(160),FH$1)),FIND(CHAR(160),SUBSTITUTE($O54,\"}\",CHAR(160),FH$1))-FIND(CHAR(160),SUBSTITUTE($O54,\"{\",CHAR(160),FH$1))+1),\"\")","v":""},{"$f":"IFERROR(MID($O54,FIND(CHAR(160),SUBSTITUTE($O54,\"{\",CHAR(160),FI$1)),FIND(CHAR(160),SUBSTITUTE($O54,\"}\",CHAR(160),FI$1))-FIND(CHAR(160),SUBSTITUTE($O54,\"{\",CHAR(160),FI$1))+1),\"\")","v":""},{"$f":"IFERROR(MID($O54,FIND(CHAR(160),SUBSTITUTE($O54,\"{\",CHAR(160),FJ$1)),FIND(CHAR(160),SUBSTITUTE($O54,\"}\",CHAR(160),FJ$1))-FIND(CHAR(160),SUBSTITUTE($O54,\"{\",CHAR(160),FJ$1))+1),\"\")","v":""},{"$f":"IFERROR(MID($O54,FIND(CHAR(160),SUBSTITUTE($O54,\"{\",CHAR(160),FK$1)),FIND(CHAR(160),SUBSTITUTE($O54,\"}\",CHAR(160),FK$1))-FIND(CHAR(160),SUBSTITUTE($O54,\"{\",CHAR(160),FK$1))+1),\"\")","v":"{Measure:Quantity}"},{"$f":"IFERROR(MID($O54,FIND(CHAR(160),SUBSTITUTE($O54,\"{\",CHAR(160),FL$1)),FIND(CHAR(160),SUBSTITUTE($O54,\"}\",CHAR(160),FL$1))-FIND(CHAR(160),SUBSTITUTE($O54,\"{\",CHAR(160),FL$1))+1),\"\")","v":"{Motor HP}"},{"$f":"IFERROR(MID($R54,FIND(CHAR(160),SUBSTITUTE($R54,\"{\",CHAR(160),FM$1)),FIND(CHAR(160),SUBSTITUTE($R54,\"}\",CHAR(160),FM$1))-FIND(CHAR(160),SUBSTITUTE($R54,\"{\",CHAR(160),FM$1))+1),\"\")","v":""},{"$f":"IFERROR(MID($R54,FIND(CHAR(160),SUBSTITUTE($R54,\"{\",CHAR(160),FN$1)),FIND(CHAR(160),SUBSTITUTE($R54,\"}\",CHAR(160),FN$1))-FIND(CHAR(160),SUBSTITUTE($R54,\"{\",CHAR(160),FN$1))+1),\"\")","v":""},{"$f":"IFERROR(MID($R54,FIND(CHAR(160),SUBSTITUTE($R54,\"{\",CHAR(160),FO$1)),FIND(CHAR(160),SUBSTITUTE($R54,\"}\",CHAR(160),FO$1))-FIND(CHAR(160),SUBSTITUTE($R54,\"{\",CHAR(160),FO$1))+1),\"\")","v":""},{"$f":"IFERROR(MID($R54,FIND(CHAR(160),SUBSTITUTE($R54,\"{\",CHAR(160),FP$1)),FIND(CHAR(160),SUBSTITUTE($R54,\"}\",CHAR(160),FP$1))-FIND(CHAR(160),SUBSTITUTE($R54,\"{\",CHAR(160),FP$1))+1),\"\")","v":""},{"$f":"IFERROR(MID($R54,FIND(CHAR(160),SUBSTITUTE($R54,\"{\",CHAR(160),FQ$1)),FIND(CHAR(160),SUBSTITUTE($R54,\"}\",CHAR(160),FQ$1))-FIND(CHAR(160),SUBSTITUTE($R54,\"{\",CHAR(160),FQ$1))+1),\"\")","v":""},{"$f":"IFERROR(MID($R54,FIND(CHAR(160),SUBSTITUTE($R54,\"{\",CHAR(160),FR$1)),FIND(CHAR(160),SUBSTITUTE($R54,\"}\",CHAR(160),FR$1))-FIND(CHAR(160),SUBSTITUTE($R54,\"{\",CHAR(160),FR$1))+1),\"\")","v":""},{"$f":"IFERROR(MID($R54,FIND(CHAR(160),SUBSTITUTE($R54,\"{\",CHAR(160),FS$1)),FIND(CHAR(160),SUBSTITUTE($R54,\"}\",CHAR(160),FS$1))-FIND(CHAR(160),SUBSTITUTE($R54,\"{\",CHAR(160),FS$1))+1),\"\")","v":""},{"$f":"IFERROR(MID($R54,FIND(CHAR(160),SUBSTITUTE($R54,\"{\",CHAR(160),FT$1)),FIND(CHAR(160),SUBSTITUTE($R54,\"}\",CHAR(160),FT$1))-FIND(CHAR(160),SUBSTITUTE($R54,\"{\",CHAR(160),FT$1))+1),\"\")","v":""},{"$f":"IFERROR(MID($R54,FIND(CHAR(160),SUBSTITUTE($R54,\"{\",CHAR(160),FU$1)),FIND(CHAR(160),SUBSTITUTE($R54,\"}\",CHAR(160),FU$1))-FIND(CHAR(160),SUBSTITUTE($R54,\"{\",CHAR(160),FU$1))+1),\"\")","v":"{Measure:Quantity}"},{"$f":"IFERROR(MID($R54,FIND(CHAR(160),SUBSTITUTE($R54,\"{\",CHAR(160),FV$1)),FIND(CHAR(160),SUBSTITUTE($R54,\"}\",CHAR(160),FV$1))-FIND(CHAR(160),SUBSTITUTE($R54,\"{\",CHAR(160),FV$1))+1),\"\")","v":"{Motor HP}"},{"$f":"IFERROR(MID($U54,FIND(CHAR(160),SUBSTITUTE($U54,\"{\",CHAR(160),FW$1)),FIND(CHAR(160),SUBSTITUTE($U54,\"}\",CHAR(160),FW$1))-FIND(CHAR(160),SUBSTITUTE($U54,\"{\",CHAR(160),FW$1))+1),\"\")","v":"{Motor HP}"},{"$f":"IFERROR(MID($U54,FIND(CHAR(160),SUBSTITUTE($U54,\"{\",CHAR(160),FX$1)),FIND(CHAR(160),SUBSTITUTE($U54,\"}\",CHAR(160),FX$1))-FIND(CHAR(160),SUBSTITUTE($U54,\"{\",CHAR(160),FX$1))+1),\"\")","v":""},{"$f":"IFERROR(MID($U54,FIND(CHAR(160),SUBSTITUTE($U54,\"{\",CHAR(160),FY$1)),FIND(CHAR(160),SUBSTITUTE($U54,\"}\",CHAR(160),FY$1))-FIND(CHAR(160),SUBSTITUTE($U54,\"{\",CHAR(160),FY$1))+1),\"\")","v":""},{"$f":"IFERROR(MID($U54,FIND(CHAR(160),SUBSTITUTE($U54,\"{\",CHAR(160),FZ$1)),FIND(CHAR(160),SUBSTITUTE($U54,\"}\",CHAR(160),FZ$1))-FIND(CHAR(160),SUBSTITUTE($U54,\"{\",CHAR(160),FZ$1))+1),\"\")","v":""},{"$f":"IFERROR(MID($U54,FIND(CHAR(160),SUBSTITUTE($U54,\"{\",CHAR(160),GA$1)),FIND(CHAR(160),SUBSTITUTE($U54,\"}\",CHAR(160),GA$1))-FIND(CHAR(160),SUBSTITUTE($U54,\"{\",CHAR(160),GA$1))+1),\"\")","v":""},{"$f":"IFERROR(MID($U54,FIND(CHAR(160),SUBSTITUTE($U54,\"{\",CHAR(160),GB$1)),FIND(CHAR(160),SUBSTITUTE($U54,\"}\",CHAR(160),GB$1))-FIND(CHAR(160),SUBSTITUTE($U54,\"{\",CHAR(160),GB$1))+1),\"\")","v":""},{"$f":"IFERROR(MID($U54,FIND(CHAR(160),SUBSTITUTE($U54,\"{\",CHAR(160),GC$1)),FIND(CHAR(160),SUBSTITUTE($U54,\"}\",CHAR(160),GC$1))-FIND(CHAR(160),SUBSTITUTE($U54,\"{\",CHAR(160),GC$1))+1),\"\")","v":""},{"$f":"IFERROR(MID($U54,FIND(CHAR(160),SUBSTITUTE($U54,\"{\",CHAR(160),GD$1)),FIND(CHAR(160),SUBSTITUTE($U54,\"}\",CHAR(160),GD$1))-FIND(CHAR(160),SUBSTITUTE($U54,\"{\",CHAR(160),GD$1))+1),\"\")","v":""},{"$f":"IFERROR(MID($U54,FIND(CHAR(160),SUBSTITUTE($U54,\"{\",CHAR(160),GE$1)),FIND(CHAR(160),SUBSTITUTE($U54,\"}\",CHAR(160),GE$1))-FIND(CHAR(160),SUBSTITUTE($U54,\"{\",CHAR(160),GE$1))+1),\"\")","v":"{Measure:Quantity}"},{"$f":"IFERROR(MID($U54,FIND(CHAR(160),SUBSTITUTE($U54,\"{\",CHAR(160),GF$1)),FIND(CHAR(160),SUBSTITUTE($U54,\"}\",CHAR(160),GF$1))-FIND(CHAR(160),SUBSTITUTE($U54,\"{\",CHAR(160),GF$1))+1),\"\")","v":"{Factor:WinterCF}"},{"$f":"IFERROR(MID($V54,FIND(CHAR(160),SUBSTITUTE($V54,\"{\",CHAR(160),GG$1)),FIND(CHAR(160),SUBSTITUTE($V54,\"}\",CHAR(160),GG$1))-FIND(CHAR(160),SUBSTITUTE($V54,\"{\",CHAR(160),GG$1))+1),\"\")","v":"{Motor HP}"},{"$f":"IFERROR(MID($V54,FIND(CHAR(160),SUBSTITUTE($V54,\"{\",CHAR(160),GH$1)),FIND(CHAR(160),SUBSTITUTE($V54,\"}\",CHAR(160),GH$1))-FIND(CHAR(160),SUBSTITUTE($V54,\"{\",CHAR(160),GH$1))+1),\"\")","v":""},{"$f":"IFERROR(MID($V54,FIND(CHAR(160),SUBSTITUTE($V54,\"{\",CHAR(160),GI$1)),FIND(CHAR(160),SUBSTITUTE($V54,\"}\",CHAR(160),GI$1))-FIND(CHAR(160),SUBSTITUTE($V54,\"{\",CHAR(160),GI$1))+1),\"\")","v":""},{"$f":"IFERROR(MID($V54,FIND(CHAR(160),SUBSTITUTE($V54,\"{\",CHAR(160),GJ$1)),FIND(CHAR(160),SUBSTITUTE($V54,\"}\",CHAR(160),GJ$1))-FIND(CHAR(160),SUBSTITUTE($V54,\"{\",CHAR(160),GJ$1))+1),\"\")","v":""},{"$f":"IFERROR(MID($V54,FIND(CHAR(160),SUBSTITUTE($V54,\"{\",CHAR(160),GK$1)),FIND(CHAR(160),SUBSTITUTE($V54,\"}\",CHAR(160),GK$1))-FIND(CHAR(160),SUBSTITUTE($V54,\"{\",CHAR(160),GK$1))+1),\"\")","v":""},{"$f":"IFERROR(MID($V54,FIND(CHAR(160),SUBSTITUTE($V54,\"{\",CHAR(160),GL$1)),FIND(CHAR(160),SUBSTITUTE($V54,\"}\",CHAR(160),GL$1))-FIND(CHAR(160),SUBSTITUTE($V54,\"{\",CHAR(160),GL$1))+1),\"\")","v":""},{"$f":"IFERROR(MID($V54,FIND(CHAR(160),SUBSTITUTE($V54,\"{\",CHAR(160),GM$1)),FIND(CHAR(160),SUBSTITUTE($V54,\"}\",CHAR(160),GM$1))-FIND(CHAR(160),SUBSTITUTE($V54,\"{\",CHAR(160),GM$1))+1),\"\")","v":""},{"$f":"IFERROR(MID($V54,FIND(CHAR(160),SUBSTITUTE($V54,\"{\",CHAR(160),GN$1)),FIND(CHAR(160),SUBSTITUTE($V54,\"}\",CHAR(160),GN$1))-FIND(CHAR(160),SUBSTITUTE($V54,\"{\",CHAR(160),GN$1))+1),\"\")","v":""},{"$f":"IFERROR(MID($V54,FIND(CHAR(160),SUBSTITUTE($V54,\"{\",CHAR(160),GO$1)),FIND(CHAR(160),SUBSTITUTE($V54,\"}\",CHAR(160),GO$1))-FIND(CHAR(160),SUBSTITUTE($V54,\"{\",CHAR(160),GO$1))+1),\"\")","v":"{Measure:Quantity}"},{"$f":"IFERROR(MID($V54,FIND(CHAR(160),SUBSTITUTE($V54,\"{\",CHAR(160),GP$1)),FIND(CHAR(160),SUBSTITUTE($V54,\"}\",CHAR(160),GP$1))-FIND(CHAR(160),SUBSTITUTE($V54,\"{\",CHAR(160),GP$1))+1),\"\")","v":"{Factor:SummerCF}"},{"$f":"IFERROR(MID($W54,FIND(CHAR(160),SUBSTITUTE($W54,\"{\",CHAR(160),GQ$1)),FIND(CHAR(160),SUBSTITUTE($W54,\"}\",CHAR(160),GQ$1))-FIND(CHAR(160),SUBSTITUTE($W54,\"{\",CHAR(160),GQ$1))+1),\"\")","v":""},{"$f":"IFERROR(MID($W54,FIND(CHAR(160),SUBSTITUTE($W54,\"{\",CHAR(160),GR$1)),FIND(CHAR(160),SUBSTITUTE($W54,\"}\",CHAR(160),GR$1))-FIND(CHAR(160),SUBSTITUTE($W54,\"{\",CHAR(160),GR$1))+1),\"\")","v":""},{"$f":"IFERROR(MID($W54,FIND(CHAR(160),SUBSTITUTE($W54,\"{\",CHAR(160),GS$1)),FIND(CHAR(160),SUBSTITUTE($W54,\"}\",CHAR(160),GS$1))-FIND(CHAR(160),SUBSTITUTE($W54,\"{\",CHAR(160),GS$1))+1),\"\")","v":""},{"$f":"IFERROR(MID($W54,FIND(CHAR(160),SUBSTITUTE($W54,\"{\",CHAR(160),GT$1)),FIND(CHAR(160),SUBSTITUTE($W54,\"}\",CHAR(160),GT$1))-FIND(CHAR(160),SUBSTITUTE($W54,\"{\",CHAR(160),GT$1))+1),\"\")","v":""},{"$f":"IFERROR(MID($W54,FIND(CHAR(160),SUBSTITUTE($W54,\"{\",CHAR(160),GU$1)),FIND(CHAR(160),SUBSTITUTE($W54,\"}\",CHAR(160),GU$1))-FIND(CHAR(160),SUBSTITUTE($W54,\"{\",CHAR(160),GU$1))+1),\"\")","v":""},{"$f":"IFERROR(MID($W54,FIND(CHAR(160),SUBSTITUTE($W54,\"{\",CHAR(160),GV$1)),FIND(CHAR(160),SUBSTITUTE($W54,\"}\",CHAR(160),GV$1))-FIND(CHAR(160),SUBSTITUTE($W54,\"{\",CHAR(160),GV$1))+1),\"\")","v":""},{"$f":"IFERROR(MID($W54,FIND(CHAR(160),SUBSTITUTE($W54,\"{\",CHAR(160),GW$1)),FIND(CHAR(160),SUBSTITUTE($W54,\"}\",CHAR(160),GW$1))-FIND(CHAR(160),SUBSTITUTE($W54,\"{\",CHAR(160),GW$1))+1),\"\")","v":""},{"$f":"IFERROR(MID($W54,FIND(CHAR(160),SUBSTITUTE($W54,\"{\",CHAR(160),GX$1)),FIND(CHAR(160),SUBSTITUTE($W54,\"}\",CHAR(160),GX$1))-FIND(CHAR(160),SUBSTITUTE($W54,\"{\",CHAR(160),GX$1))+1),\"\")","v":""},{"$f":"IFERROR(MID($W54,FIND(CHAR(160),SUBSTITUTE($W54,\"{\",CHAR(160),GY$1)),FIND(CHAR(160),SUBSTITUTE($W54,\"}\",CHAR(160),GY$1))-FIND(CHAR(160),SUBSTITUTE($W54,\"{\",CHAR(160),GY$1))+1),\"\")","v":""},{"$f":"IFERROR(MID($W54,FIND(CHAR(160),SUBSTITUTE($W54,\"{\",CHAR(160),GZ$1)),FIND(CHAR(160),SUBSTITUTE($W54,\"}\",CHAR(160),GZ$1))-FIND(CHAR(160),SUBSTITUTE($W54,\"{\",CHAR(160),GZ$1))+1),\"\")","v":""},{"$f":"IFERROR(MID($X54,FIND(CHAR(160),SUBSTITUTE($X54,\"{\",CHAR(160),HA$1)),FIND(CHAR(160),SUBSTITUTE($X54,\"}\",CHAR(160),HA$1))-FIND(CHAR(160),SUBSTITUTE($X54,\"{\",CHAR(160),HA$1))+1),\"\")","v":""},{"$f":"IFERROR(MID($X54,FIND(CHAR(160),SUBSTITUTE($X54,\"{\",CHAR(160),HB$1)),FIND(CHAR(160),SUBSTITUTE($X54,\"}\",CHAR(160),HB$1))-FIND(CHAR(160),SUBSTITUTE($X54,\"{\",CHAR(160),HB$1))+1),\"\")","v":""},{"$f":"IFERROR(MID($X54,FIND(CHAR(160),SUBSTITUTE($X54,\"{\",CHAR(160),HC$1)),FIND(CHAR(160),SUBSTITUTE($X54,\"}\",CHAR(160),HC$1))-FIND(CHAR(160),SUBSTITUTE($X54,\"{\",CHAR(160),HC$1))+1),\"\")","v":""},{"$f":"IFERROR(MID($X54,FIND(CHAR(160),SUBSTITUTE($X54,\"{\",CHAR(160),HD$1)),FIND(CHAR(160),SUBSTITUTE($X54,\"}\",CHAR(160),HD$1))-FIND(CHAR(160),SUBSTITUTE($X54,\"{\",CHAR(160),HD$1))+1),\"\")","v":""},{"$f":"IFERROR(MID($X54,FIND(CHAR(160),SUBSTITUTE($X54,\"{\",CHAR(160),HE$1)),FIND(CHAR(160),SUBSTITUTE($X54,\"}\",CHAR(160),HE$1))-FIND(CHAR(160),SUBSTITUTE($X54,\"{\",CHAR(160),HE$1))+1),\"\")","v":""},{"$f":"IFERROR(MID($X54,FIND(CHAR(160),SUBSTITUTE($X54,\"{\",CHAR(160),HF$1)),FIND(CHAR(160),SUBSTITUTE($X54,\"}\",CHAR(160),HF$1))-FIND(CHAR(160),SUBSTITUTE($X54,\"{\",CHAR(160),HF$1))+1),\"\")","v":""},{"$f":"IFERROR(MID($X54,FIND(CHAR(160),SUBSTITUTE($X54,\"{\",CHAR(160),HG$1)),FIND(CHAR(160),SUBSTITUTE($X54,\"}\",CHAR(160),HG$1))-FIND(CHAR(160),SUBSTITUTE($X54,\"{\",CHAR(160),HG$1))+1),\"\")","v":""},{"$f":"IFERROR(MID($X54,FIND(CHAR(160),SUBSTITUTE($X54,\"{\",CHAR(160),HH$1)),FIND(CHAR(160),SUBSTITUTE($X54,\"}\",CHAR(160),HH$1))-FIND(CHAR(160),SUBSTITUTE($X54,\"{\",CHAR(160),HH$1))+1),\"\")","v":""},{"$f":"IFERROR(MID($X54,FIND(CHAR(160),SUBSTITUTE($X54,\"{\",CHAR(160),HI$1)),FIND(CHAR(160),SUBSTITUTE($X54,\"}\",CHAR(160),HI$1))-FIND(CHAR(160),SUBSTITUTE($X54,\"{\",CHAR(160),HI$1))+1),\"\")","v":""},{"$f":"IFERROR(MID($X54,FIND(CHAR(160),SUBSTITUTE($X54,\"{\",CHAR(160),HJ$1)),FIND(CHAR(160),SUBSTITUTE($X54,\"}\",CHAR(160),HJ$1))-FIND(CHAR(160),SUBSTITUTE($X54,\"{\",CHAR(160),HJ$1))+1),\"\")","v":""},{"$f":"IFERROR(MID($Y54,FIND(CHAR(160),SUBSTITUTE($Y54,\"{\",CHAR(160),HK$1)),FIND(CHAR(160),SUBSTITUTE($Y54,\"}\",CHAR(160),HK$1))-FIND(CHAR(160),SUBSTITUTE($Y54,\"{\",CHAR(160),HK$1))+1),\"\")","v":""},{"$f":"IFERROR(MID($Y54,FIND(CHAR(160),SUBSTITUTE($Y54,\"{\",CHAR(160),HL$1)),FIND(CHAR(160),SUBSTITUTE($Y54,\"}\",CHAR(160),HL$1))-FIND(CHAR(160),SUBSTITUTE($Y54,\"{\",CHAR(160),HL$1))+1),\"\")","v":""},{"$f":"IFERROR(MID($Y54,FIND(CHAR(160),SUBSTITUTE($Y54,\"{\",CHAR(160),HM$1)),FIND(CHAR(160),SUBSTITUTE($Y54,\"}\",CHAR(160),HM$1))-FIND(CHAR(160),SUBSTITUTE($Y54,\"{\",CHAR(160),HM$1))+1),\"\")","v":""},{"$f":"IFERROR(MID($Y54,FIND(CHAR(160),SUBSTITUTE($Y54,\"{\",CHAR(160),HN$1)),FIND(CHAR(160),SUBSTITUTE($Y54,\"}\",CHAR(160),HN$1))-FIND(CHAR(160),SUBSTITUTE($Y54,\"{\",CHAR(160),HN$1))+1),\"\")","v":""},{"$f":"IFERROR(MID($Y54,FIND(CHAR(160),SUBSTITUTE($Y54,\"{\",CHAR(160),HO$1)),FIND(CHAR(160),SUBSTITUTE($Y54,\"}\",CHAR(160),HO$1))-FIND(CHAR(160),SUBSTITUTE($Y54,\"{\",CHAR(160),HO$1))+1),\"\")","v":""},{"$f":"IFERROR(MID($Y54,FIND(CHAR(160),SUBSTITUTE($Y54,\"{\",CHAR(160),HP$1)),FIND(CHAR(160),SUBSTITUTE($Y54,\"}\",CHAR(160),HP$1))-FIND(CHAR(160),SUBSTITUTE($Y54,\"{\",CHAR(160),HP$1))+1),\"\")","v":""},{"$f":"IFERROR(MID($Y54,FIND(CHAR(160),SUBSTITUTE($Y54,\"{\",CHAR(160),HQ$1)),FIND(CHAR(160),SUBSTITUTE($Y54,\"}\",CHAR(160),HQ$1))-FIND(CHAR(160),SUBSTITUTE($Y54,\"{\",CHAR(160),HQ$1))+1),\"\")","v":""},{"$f":"IFERROR(MID($Y54,FIND(CHAR(160),SUBSTITUTE($Y54,\"{\",CHAR(160),HR$1)),FIND(CHAR(160),SUBSTITUTE($Y54,\"}\",CHAR(160),HR$1))-FIND(CHAR(160),SUBSTITUTE($Y54,\"{\",CHAR(160),HR$1))+1),\"\")","v":""},{"$f":"IFERROR(MID($Y54,FIND(CHAR(160),SUBSTITUTE($Y54,\"{\",CHAR(160),HS$1)),FIND(CHAR(160),SUBSTITUTE($Y54,\"}\",CHAR(160),HS$1))-FIND(CHAR(160),SUBSTITUTE($Y54,\"{\",CHAR(160),HS$1))+1),\"\")","v":""},{"$f":"IFERROR(MID($Y54,FIND(CHAR(160),SUBSTITUTE($Y54,\"{\",CHAR(160),HT$1)),FIND(CHAR(160),SUBSTITUTE($Y54,\"}\",CHAR(160),HT$1))-FIND(CHAR(160),SUBSTITUTE($Y54,\"{\",CHAR(160),HT$1))+1),\"\")","v":""},{"$f":"IFERROR(MID($Z54,FIND(CHAR(160),SUBSTITUTE($Z54,\"{\",CHAR(160),HU$1)),FIND(CHAR(160),SUBSTITUTE($Z54,\"}\",CHAR(160),HU$1))-FIND(CHAR(160),SUBSTITUTE($Z54,\"{\",CHAR(160),HU$1))+1),\"\")","v":""},{"$f":"IFERROR(MID($Z54,FIND(CHAR(160),SUBSTITUTE($Z54,\"{\",CHAR(160),HV$1)),FIND(CHAR(160),SUBSTITUTE($Z54,\"}\",CHAR(160),HV$1))-FIND(CHAR(160),SUBSTITUTE($Z54,\"{\",CHAR(160),HV$1))+1),\"\")","v":""},{"$f":"IFERROR(MID($Z54,FIND(CHAR(160),SUBSTITUTE($Z54,\"{\",CHAR(160),HW$1)),FIND(CHAR(160),SUBSTITUTE($Z54,\"}\",CHAR(160),HW$1))-FIND(CHAR(160),SUBSTITUTE($Z54,\"{\",CHAR(160),HW$1))+1),\"\")","v":""},{"$f":"IFERROR(MID($Z54,FIND(CHAR(160),SUBSTITUTE($Z54,\"{\",CHAR(160),HX$1)),FIND(CHAR(160),SUBSTITUTE($Z54,\"}\",CHAR(160),HX$1))-FIND(CHAR(160),SUBSTITUTE($Z54,\"{\",CHAR(160),HX$1))+1),\"\")","v":""},{"$f":"IFERROR(MID($Z54,FIND(CHAR(160),SUBSTITUTE($Z54,\"{\",CHAR(160),HY$1)),FIND(CHAR(160),SUBSTITUTE($Z54,\"}\",CHAR(160),HY$1))-FIND(CHAR(160),SUBSTITUTE($Z54,\"{\",CHAR(160),HY$1))+1),\"\")","v":""},{"$f":"IFERROR(MID($Z54,FIND(CHAR(160),SUBSTITUTE($Z54,\"{\",CHAR(160),HZ$1)),FIND(CHAR(160),SUBSTITUTE($Z54,\"}\",CHAR(160),HZ$1))-FIND(CHAR(160),SUBSTITUTE($Z54,\"{\",CHAR(160),HZ$1))+1),\"\")","v":""},{"$f":"IFERROR(MID($Z54,FIND(CHAR(160),SUBSTITUTE($Z54,\"{\",CHAR(160),IA$1)),FIND(CHAR(160),SUBSTITUTE($Z54,\"}\",CHAR(160),IA$1))-FIND(CHAR(160),SUBSTITUTE($Z54,\"{\",CHAR(160),IA$1))+1),\"\")","v":""},{"$f":"IFERROR(MID($Z54,FIND(CHAR(160),SUBSTITUTE($Z54,\"{\",CHAR(160),IB$1)),FIND(CHAR(160),SUBSTITUTE($Z54,\"}\",CHAR(160),IB$1))-FIND(CHAR(160),SUBSTITUTE($Z54,\"{\",CHAR(160),IB$1))+1),\"\")","v":""},{"$f":"IFERROR(MID($Z54,FIND(CHAR(160),SUBSTITUTE($Z54,\"{\",CHAR(160),IC$1)),FIND(CHAR(160),SUBSTITUTE($Z54,\"}\",CHAR(160),IC$1))-FIND(CHAR(160),SUBSTITUTE($Z54,\"{\",CHAR(160),IC$1))+1),\"\")","v":""},{"$f":"IFERROR(MID($Z54,FIND(CHAR(160),SUBSTITUTE($Z54,\"{\",CHAR(160),ID$1)),FIND(CHAR(160),SUBSTITUTE($Z54,\"}\",CHAR(160),ID$1))-FIND(CHAR(160),SUBSTITUTE($Z54,\"{\",CHAR(160),ID$1))+1),\"\")","v":""},{"$f":"IFERROR(MID($AA54,FIND(CHAR(160),SUBSTITUTE($AA54,\"{\",CHAR(160),IE$1)),FIND(CHAR(160),SUBSTITUTE($AA54,\"}\",CHAR(160),IE$1))-FIND(CHAR(160),SUBSTITUTE($AA54,\"{\",CHAR(160),IE$1))+1),\"\")","v":""},{"$f":"IFERROR(MID($AA54,FIND(CHAR(160),SUBSTITUTE($AA54,\"{\",CHAR(160),IF$1)),FIND(CHAR(160),SUBSTITUTE($AA54,\"}\",CHAR(160),IF$1))-FIND(CHAR(160),SUBSTITUTE($AA54,\"{\",CHAR(160),IF$1))+1),\"\")","v":""},{"$f":"IFERROR(MID($AA54,FIND(CHAR(160),SUBSTITUTE($AA54,\"{\",CHAR(160),IG$1)),FIND(CHAR(160),SUBSTITUTE($AA54,\"}\",CHAR(160),IG$1))-FIND(CHAR(160),SUBSTITUTE($AA54,\"{\",CHAR(160),IG$1))+1),\"\")","v":""},{"$f":"IFERROR(MID($AA54,FIND(CHAR(160),SUBSTITUTE($AA54,\"{\",CHAR(160),IH$1)),FIND(CHAR(160),SUBSTITUTE($AA54,\"}\",CHAR(160),IH$1))-FIND(CHAR(160),SUBSTITUTE($AA54,\"{\",CHAR(160),IH$1))+1),\"\")","v":""},{"$f":"IFERROR(MID($AA54,FIND(CHAR(160),SUBSTITUTE($AA54,\"{\",CHAR(160),II$1)),FIND(CHAR(160),SUBSTITUTE($AA54,\"}\",CHAR(160),II$1))-FIND(CHAR(160),SUBSTITUTE($AA54,\"{\",CHAR(160),II$1))+1),\"\")","v":""},{"$f":"IFERROR(MID($AA54,FIND(CHAR(160),SUBSTITUTE($AA54,\"{\",CHAR(160),IJ$1)),FIND(CHAR(160),SUBSTITUTE($AA54,\"}\",CHAR(160),IJ$1))-FIND(CHAR(160),SUBSTITUTE($AA54,\"{\",CHAR(160),IJ$1))+1),\"\")","v":""},{"$f":"IFERROR(MID($AA54,FIND(CHAR(160),SUBSTITUTE($AA54,\"{\",CHAR(160),IK$1)),FIND(CHAR(160),SUBSTITUTE($AA54,\"}\",CHAR(160),IK$1))-FIND(CHAR(160),SUBSTITUTE($AA54,\"{\",CHAR(160),IK$1))+1),\"\")","v":""},{"$f":"IFERROR(MID($AA54,FIND(CHAR(160),SUBSTITUTE($AA54,\"{\",CHAR(160),IL$1)),FIND(CHAR(160),SUBSTITUTE($AA54,\"}\",CHAR(160),IL$1))-FIND(CHAR(160),SUBSTITUTE($AA54,\"{\",CHAR(160),IL$1))+1),\"\")","v":""},{"$f":"IFERROR(MID($AA54,FIND(CHAR(160),SUBSTITUTE($AA54,\"{\",CHAR(160),IM$1)),FIND(CHAR(160),SUBSTITUTE($AA54,\"}\",CHAR(160),IM$1))-FIND(CHAR(160),SUBSTITUTE($AA54,\"{\",CHAR(160),IM$1))+1),\"\")","v":""},{"$f":"IFERROR(MID($AA54,FIND(CHAR(160),SUBSTITUTE($AA54,\"{\",CHAR(160),IN$1)),FIND(CHAR(160),SUBSTITUTE($AA54,\"}\",CHAR(160),IN$1))-FIND(CHAR(160),SUBSTITUTE($AA54,\"{\",CHAR(160),IN$1))+1),\"\")","v":""},{"$f":"IFERROR(MID($AB54,FIND(CHAR(160),SUBSTITUTE($AB54,\"{\",CHAR(160),IO$1)),FIND(CHAR(160),SUBSTITUTE($AB54,\"}\",CHAR(160),IO$1))-FIND(CHAR(160),SUBSTITUTE($AB54,\"{\",CHAR(160),IO$1))+1),\"\")","v":""},{"$f":"IFERROR(MID($AB54,FIND(CHAR(160),SUBSTITUTE($AB54,\"{\",CHAR(160),IP$1)),FIND(CHAR(160),SUBSTITUTE($AB54,\"}\",CHAR(160),IP$1))-FIND(CHAR(160),SUBSTITUTE($AB54,\"{\",CHAR(160),IP$1))+1),\"\")","v":""},{"$f":"IFERROR(MID($AB54,FIND(CHAR(160),SUBSTITUTE($AB54,\"{\",CHAR(160),IQ$1)),FIND(CHAR(160),SUBSTITUTE($AB54,\"}\",CHAR(160),IQ$1))-FIND(CHAR(160),SUBSTITUTE($AB54,\"{\",CHAR(160),IQ$1))+1),\"\")","v":""},{"$f":"IFERROR(MID($AB54,FIND(CHAR(160),SUBSTITUTE($AB54,\"{\",CHAR(160),IR$1)),FIND(CHAR(160),SUBSTITUTE($AB54,\"}\",CHAR(160),IR$1))-FIND(CHAR(160),SUBSTITUTE($AB54,\"{\",CHAR(160),IR$1))+1),\"\")","v":""},{"$f":"IFERROR(MID($AB54,FIND(CHAR(160),SUBSTITUTE($AB54,\"{\",CHAR(160),IS$1)),FIND(CHAR(160),SUBSTITUTE($AB54,\"}\",CHAR(160),IS$1))-FIND(CHAR(160),SUBSTITUTE($AB54,\"{\",CHAR(160),IS$1))+1),\"\")","v":""},{"$f":"IFERROR(MID($AB54,FIND(CHAR(160),SUBSTITUTE($AB54,\"{\",CHAR(160),IT$1)),FIND(CHAR(160),SUBSTITUTE($AB54,\"}\",CHAR(160),IT$1))-FIND(CHAR(160),SUBSTITUTE($AB54,\"{\",CHAR(160),IT$1))+1),\"\")","v":""},{"$f":"IFERROR(MID($AB54,FIND(CHAR(160),SUBSTITUTE($AB54,\"{\",CHAR(160),IU$1)),FIND(CHAR(160),SUBSTITUTE($AB54,\"}\",CHAR(160),IU$1))-FIND(CHAR(160),SUBSTITUTE($AB54,\"{\",CHAR(160),IU$1))+1),\"\")","v":""},{"$f":"IFERROR(MID($AB54,FIND(CHAR(160),SUBSTITUTE($AB54,\"{\",CHAR(160),IV$1)),FIND(CHAR(160),SUBSTITUTE($AB54,\"}\",CHAR(160),IV$1))-FIND(CHAR(160),SUBSTITUTE($AB54,\"{\",CHAR(160),IV$1))+1),\"\")","v":""},{"$f":"IFERROR(MID($AB54,FIND(CHAR(160),SUBSTITUTE($AB54,\"{\",CHAR(160),IW$1)),FIND(CHAR(160),SUBSTITUTE($AB54,\"}\",CHAR(160),IW$1))-FIND(CHAR(160),SUBSTITUTE($AB54,\"{\",CHAR(160),IW$1))+1),\"\")","v":""},{"$f":"IFERROR(MID($AB54,FIND(CHAR(160),SUBSTITUTE($AB54,\"{\",CHAR(160),IX$1)),FIND(CHAR(160),SUBSTITUTE($AB54,\"}\",CHAR(160),IX$1))-FIND(CHAR(160),SUBSTITUTE($AB54,\"{\",CHAR(160),IX$1))+1),\"\")","v":""},null,{"$f":"10-COUNTIF(DU54:ED54,\"\")","v":2}]
["C&I HVAC - Electric","VFD: Supply Fan on VAV Air Handler","SFA","2021-07-01","2021-09-09","Calculated","{Measure:Quantity}*if({Motor HP}=5,2425,if({Motor HP}=7.5,2648,if({Motor HP}=10,2871,if({Motor HP}=15,3317,if({Motor HP}=20,3763,if({Motor HP}=25,4209,if({Motor HP}=30,4655,0)))))))",0,"Calculated","{Measure:Quantity}*if({Motor HP}=5,400,if({Motor HP}=7.5,650,if({Motor HP}=10,1400,if({Motor HP}=15,1650,if({Motor HP}=20,1850,if({Motor HP}=25,2000,if({Motor HP}=30,2300,0)))))))",0,"2021-07-01","2022-06-30","Calculated","{Measure:Quantity}*{Motor HP}*2033",null,null,"{Measure:Quantity}*{Motor HP}*.288",null,null,"{Measure:Quantity}*{Factor:WinterCF}*{Motor HP}*.288","{Measure:Quantity}*{Factor:SummerCF}*{Motor HP}*.288",null,null,null,null,null,null,"2021-05-25","2022-06-30",13,0.14599999999999999,0.48699999999999999,0.39,0.30499999999999999,0.216,8.8999999999999996E-2,1,1.1220000000000001,1,0.52,1.6E-2,null,{"$f":"DU55","v":"{Measure:Quantity}"},1,{"$f":"DV55","v":"{Motor HP}"},5,{"$f":"DW55","v":""},null,{"$f":"DX55","v":""},null,{"$f":"DY55","v":""},null,{"$f":"DZ55","v":""},null,{"$f":"EA55","v":""},null,{"$f":"EB55","v":""},null,{"$f":"EC55","v":""},null,{"$f":"ED55","v":""},null,{"$f":"AS55*AU55*2033","v":10165},0,0,{"$f":"AS55*AU55*0.288","v":1.44},0,0,{"$f":"AS55*AF55*AU55*0.288","v":0.21023999999999998},{"$f":"AS55*AG55*AU55*0.288","v":0.70128000000000001},0,0,0,0,0,0,null,"Res","Default DR",{"$f":"Benefits(BL55,BR55,BS55,BT55,BU55,BV55,BW55,BX55,BY55,BZ55,AE55,AH55,AI55,AJ55,AK55,AL55,AM55,AN55,AO55,AP55,CA55,CB55)","v":13744.956792968991},1878.4068826873533,0,0,0,0,0,0,0,{"$f":"SUMPRODUCT(CC55:CK55,--(CC55:CK55>0))","v":15623.363675656345},{"$f":"-SUMPRODUCT(CC55:CK55,--(CC55:CK55<0))","v":0},null,{"$f":"AS55*IF(AU55=5,2425,IF(AU55=7.5,2648,IF(AU55=10,2871,IF(AU55=15,3317,IF(AU55=20,3763,IF(AU55=25,4209,IF(AU55=30,4655,0)))))))","v":2425},null,null,{"$f":"CM55+CO55","v":2425},{"$f":"IF(NetOrGross=\"Net\",(1-AO55+AP55),1)","v":1},{"$f":"(SUMPRODUCT(CC55:CJ55,--(CC55:CJ55>0))+CN55)*CS55/((-SUMPRODUCT(CC55:CJ55,--(CC55:CJ55<0))+MAX(CO55,CV55)+CP55+CQ55)*CS55+IF(FRIncentives=\"Yes\",CV55*(1-CS55),0))","v":6.4426241961469461},1,{"$f":"AS55*IF(AU55=5,400,IF(AU55=7.5,650,IF(AU55=10,1400,IF(AU55=15,1650,IF(AU55=20,1850,IF(AU55=25,2000,IF(AU55=30,2300,0)))))))","v":400},null,"Electric","y",null,{"$f":"IF(F55=\"Manual Entry\",\"Manual\",IF(G55=\"\",0,\"X=\"&SUBSTITUTE(SUBSTITUTE(SUBSTITUTE(SUBSTITUTE(SUBSTITUTE(SUBSTITUTE(SUBSTITUTE(SUBSTITUTE(SUBSTITUTE(SUBSTITUTE(SUBSTITUTE(SUBSTITUTE(G55,$ED55,$ED$2&ROW($ED55)),$EC55,$EC$2&ROW($EC55)),$EB55,$EB$2&ROW($EB55)),$EA55,$EA$2&ROW($EA55)),$DZ55,$DZ$2&ROW($DZ55)),$DY55,$DY$2&ROW($DY55)),$DX55,$DX$2&ROW($DX55)),$DW55,$DW$2&ROW($DW55)),$DV55,$DV$2&ROW($DV55)),$DU55,$DU$2&ROW($DU55)),$DT55,$DT$2&ROW($DT55)),$DS55,$DS$2&ROW($DS55))))","v":"X=AS55*if(AU55=5,2425,if(AU55=7.5,2648,if(AU55=10,2871,if(AU55=15,3317,if(AU55=20,3763,if(AU55=25,4209,if(AU55=30,4655,0)))))))"},{"$f":"IF(I55=\"Manual Entry\",\"Manual\",IF(J55=\"\",0,\"X=\"&SUBSTITUTE(SUBSTITUTE(SUBSTITUTE(SUBSTITUTE(SUBSTITUTE(SUBSTITUTE(SUBSTITUTE(SUBSTITUTE(SUBSTITUTE(SUBSTITUTE(SUBSTITUTE(SUBSTITUTE(J55,$ED55,$ED$2&ROW($ED55)),$EC55,$EC$2&ROW($EC55)),$EB55,$EB$2&ROW($EB55)),$EA55,$EA$2&ROW($EA55)),$DZ55,$DZ$2&ROW($DZ55)),$DY55,$DY$2&ROW($DY55)),$DX55,$DX$2&ROW($DX55)),$DW55,$DW$2&ROW($DW55)),$DV55,$DV$2&ROW($DV55)),$DU55,$DU$2&ROW($DU55)),$DT55,$DT$2&ROW($DT55)),$DS55,$DS$2&ROW($DS55))))","v":"X=AS55*if(AU55=5,400,if(AU55=7.5,650,if(AU55=10,1400,if(AU55=15,1650,if(AU55=20,1850,if(AU55=25,2000,if(AU55=30,2300,0)))))))"},{"$f":"IF(O55=\"\",0,\"X=\"&SUBSTITUTE(SUBSTITUTE(SUBSTITUTE(SUBSTITUTE(SUBSTITUTE(SUBSTITUTE(SUBSTITUTE(SUBSTITUTE(SUBSTITUTE(SUBSTITUTE(SUBSTITUTE(SUBSTITUTE(O55,$ED55,$ED$2&ROW($ED55)),$EC55,$EC$2&ROW($EC55)),$EB55,$EB$2&ROW($EB55)),$EA55,$EA$2&ROW($EA55)),$DZ55,$DZ$2&ROW($DZ55)),$DY55,$DY$2&ROW($DY55)),$DX55,$DX$2&ROW($DX55)),$DW55,$DW$2&ROW($DW55)),$DV55,$DV$2&ROW($DV55)),$DU55,$DU$2&ROW($DU55)),$DT55,$DT$2&ROW($DT55)),$DS55,$DS$2&ROW($DS55)))","v":"X=AS55*AU55*2033"},{"$f":"IF(P55=\"\",0,\"X=\"&SUBSTITUTE(SUBSTITUTE(SUBSTITUTE(SUBSTITUTE(SUBSTITUTE(SUBSTITUTE(SUBSTITUTE(SUBSTITUTE(SUBSTITUTE(SUBSTITUTE(SUBSTITUTE(SUBSTITUTE(P55,$ED55,$ED$2&ROW($ED55)),$EC55,$EC$2&ROW($EC55)),$EB55,$EB$2&ROW($EB55)),$EA55,$EA$2&ROW($EA55)),$DZ55,$DZ$2&ROW($DZ55)),$DY55,$DY$2&ROW($DY55)),$DX55,$DX$2&ROW($DX55)),$DW55,$DW$2&ROW($DW55)),$DV55,$DV$2&ROW($DV55)),$DU55,$DU$2&ROW($DU55)),$DT55,$DT$2&ROW($DT55)),$DS55,$DS$2&ROW($DS55)))","v":0},{"$f":"IF(Q55=\"\",0,\"X=\"&SUBSTITUTE(SUBSTITUTE(SUBSTITUTE(SUBSTITUTE(SUBSTITUTE(SUBSTITUTE(SUBSTITUTE(SUBSTITUTE(SUBSTITUTE(SUBSTITUTE(SUBSTITUTE(SUBSTITUTE(Q55,$ED55,$ED$2&ROW($ED55)),$EC55,$EC$2&ROW($EC55)),$EB55,$EB$2&ROW($EB55)),$EA55,$EA$2&ROW($EA55)),$DZ55,$DZ$2&ROW($DZ55)),$DY55,$DY$2&ROW($DY55)),$DX55,$DX$2&ROW($DX55)),$DW55,$DW$2&ROW($DW55)),$DV55,$DV$2&ROW($DV55)),$DU55,$DU$2&ROW($DU55)),$DT55,$DT$2&ROW($DT55)),$DS55,$DS$2&ROW($DS55)))","v":0},{"$f":"IF(R55=\"\",0,\"X=\"&SUBSTITUTE(SUBSTITUTE(SUBSTITUTE(SUBSTITUTE(SUBSTITUTE(SUBSTITUTE(SUBSTITUTE(SUBSTITUTE(SUBSTITUTE(SUBSTITUTE(SUBSTITUTE(SUBSTITUTE(R55,$ED55,$ED$2&ROW($ED55)),$EC55,$EC$2&ROW($EC55)),$EB55,$EB$2&ROW($EB55)),$EA55,$EA$2&ROW($EA55)),$DZ55,$DZ$2&ROW($DZ55)),$DY55,$DY$2&ROW($DY55)),$DX55,$DX$2&ROW($DX55)),$DW55,$DW$2&ROW($DW55)),$DV55,$DV$2&ROW($DV55)),$DU55,$DU$2&ROW($DU55)),$DT55,$DT$2&ROW($DT55)),$DS55,$DS$2&ROW($DS55)))","v":"X=AS55*AU55*.288"},{"$f":"IF(S55=\"\",0,\"X=\"&SUBSTITUTE(SUBSTITUTE(SUBSTITUTE(SUBSTITUTE(SUBSTITUTE(SUBSTITUTE(SUBSTITUTE(SUBSTITUTE(SUBSTITUTE(SUBSTITUTE(SUBSTITUTE(SUBSTITUTE(S55,$ED55,$ED$2&ROW($ED55)),$EC55,$EC$2&ROW($EC55)),$EB55,$EB$2&ROW($EB55)),$EA55,$EA$2&ROW($EA55)),$DZ55,$DZ$2&ROW($DZ55)),$DY55,$DY$2&ROW($DY55)),$DX55,$DX$2&ROW($DX55)),$DW55,$DW$2&ROW($DW55)),$DV55,$DV$2&ROW($DV55)),$DU55,$DU$2&ROW($DU55)),$DT55,$DT$2&ROW($DT55)),$DS55,$DS$2&ROW($DS55)))","v":0},{"$f":"IF(T55=\"\",0,\"X=\"&SUBSTITUTE(SUBSTITUTE(SUBSTITUTE(SUBSTITUTE(SUBSTITUTE(SUBSTITUTE(SUBSTITUTE(SUBSTITUTE(SUBSTITUTE(SUBSTITUTE(SUBSTITUTE(SUBSTITUTE(T55,$ED55,$ED$2&ROW($ED55)),$EC55,$EC$2&ROW($EC55)),$EB55,$EB$2&ROW($EB55)),$EA55,$EA$2&ROW($EA55)),$DZ55,$DZ$2&ROW($DZ55)),$DY55,$DY$2&ROW($DY55)),$DX55,$DX$2&ROW($DX55)),$DW55,$DW$2&ROW($DW55)),$DV55,$DV$2&ROW($DV55)),$DU55,$DU$2&ROW($DU55)),$DT55,$DT$2&ROW($DT55)),$DS55,$DS$2&ROW($DS55)))","v":0},{"$f":"IF(U55=\"\",0,\"X=\"&SUBSTITUTE(SUBSTITUTE(SUBSTITUTE(SUBSTITUTE(SUBSTITUTE(SUBSTITUTE(SUBSTITUTE(SUBSTITUTE(SUBSTITUTE(SUBSTITUTE(SUBSTITUTE(SUBSTITUTE(U55,$ED55,$ED$2&ROW($ED55)),$EC55,$EC$2&ROW($EC55)),$EB55,$EB$2&ROW($EB55)),$EA55,$EA$2&ROW($EA55)),$DZ55,$DZ$2&ROW($DZ55)),$DY55,$DY$2&ROW($DY55)),$DX55,$DX$2&ROW($DX55)),$DW55,$DW$2&ROW($DW55)),$DV55,$DV$2&ROW($DV55)),$DU55,$DU$2&ROW($DU55)),$DT55,$DT$2&ROW($DT55)),$DS55,$DS$2&ROW($DS55)))","v":"X=AS55*AF55*AU55*.288"},{"$f":"IF(V55=\"\",0,\"X=\"&SUBSTITUTE(SUBSTITUTE(SUBSTITUTE(SUBSTITUTE(SUBSTITUTE(SUBSTITUTE(SUBSTITUTE(SUBSTITUTE(SUBSTITUTE(SUBSTITUTE(SUBSTITUTE(SUBSTITUTE(V55,$ED55,$ED$2&ROW($ED55)),$EC55,$EC$2&ROW($EC55)),$EB55,$EB$2&ROW($EB55)),$EA55,$EA$2&ROW($EA55)),$DZ55,$DZ$2&ROW($DZ55)),$DY55,$DY$2&ROW($DY55)),$DX55,$DX$2&ROW($DX55)),$DW55,$DW$2&ROW($DW55)),$DV55,$DV$2&ROW($DV55)),$DU55,$DU$2&ROW($DU55)),$DT55,$DT$2&ROW($DT55)),$DS55,$DS$2&ROW($DS55)))","v":"X=AS55*AG55*AU55*.288"},{"$f":"IF(W55=\"\",0,\"X=\"&SUBSTITUTE(SUBSTITUTE(SUBSTITUTE(SUBSTITUTE(SUBSTITUTE(SUBSTITUTE(SUBSTITUTE(SUBSTITUTE(SUBSTITUTE(SUBSTITUTE(SUBSTITUTE(SUBSTITUTE(W55,$ED55,$ED$2&ROW($ED55)),$EC55,$EC$2&ROW($EC55)),$EB55,$EB$2&ROW($EB55)),$EA55,$EA$2&ROW($EA55)),$DZ55,$DZ$2&ROW($DZ55)),$DY55,$DY$2&ROW($DY55)),$DX55,$DX$2&ROW($DX55)),$DW55,$DW$2&ROW($DW55)),$DV55,$DV$2&ROW($DV55)),$DU55,$DU$2&ROW($DU55)),$DT55,$DT$2&ROW($DT55)),$DS55,$DS$2&ROW($DS55)))","v":0},{"$f":"IF(X55=\"\",0,\"X=\"&SUBSTITUTE(SUBSTITUTE(SUBSTITUTE(SUBSTITUTE(SUBSTITUTE(SUBSTITUTE(SUBSTITUTE(SUBSTITUTE(SUBSTITUTE(SUBSTITUTE(SUBSTITUTE(SUBSTITUTE(X55,$ED55,$ED$2&ROW($ED55)),$EC55,$EC$2&ROW($EC55)),$EB55,$EB$2&ROW($EB55)),$EA55,$EA$2&ROW($EA55)),$DZ55,$DZ$2&ROW($DZ55)),$DY55,$DY$2&ROW($DY55)),$DX55,$DX$2&ROW($DX55)),$DW55,$DW$2&ROW($DW55)),$DV55,$DV$2&ROW($DV55)),$DU55,$DU$2&ROW($DU55)),$DT55,$DT$2&ROW($DT55)),$DS55,$DS$2&ROW($DS55)))","v":0},{"$f":"IF(Y55=\"\",0,\"X=\"&SUBSTITUTE(SUBSTITUTE(SUBSTITUTE(SUBSTITUTE(SUBSTITUTE(SUBSTITUTE(SUBSTITUTE(SUBSTITUTE(SUBSTITUTE(SUBSTITUTE(SUBSTITUTE(SUBSTITUTE(Y55,$ED55,$ED$2&ROW($ED55)),$EC55,$EC$2&ROW($EC55)),$EB55,$EB$2&ROW($EB55)),$EA55,$EA$2&ROW($EA55)),$DZ55,$DZ$2&ROW($DZ55)),$DY55,$DY$2&ROW($DY55)),$DX55,$DX$2&ROW($DX55)),$DW55,$DW$2&ROW($DW55)),$DV55,$DV$2&ROW($DV55)),$DU55,$DU$2&ROW($DU55)),$DT55,$DT$2&ROW($DT55)),$DS55,$DS$2&ROW($DS55)))","v":0},{"$f":"IF(Z55=\"\",0,\"X=\"&SUBSTITUTE(SUBSTITUTE(SUBSTITUTE(SUBSTITUTE(SUBSTITUTE(SUBSTITUTE(SUBSTITUTE(SUBSTITUTE(SUBSTITUTE(SUBSTITUTE(SUBSTITUTE(SUBSTITUTE(Z55,$ED55,$ED$2&ROW($ED55)),$EC55,$EC$2&ROW($EC55)),$EB55,$EB$2&ROW($EB55)),$EA55,$EA$2&ROW($EA55)),$DZ55,$DZ$2&ROW($DZ55)),$DY55,$DY$2&ROW($DY55)),$DX55,$DX$2&ROW($DX55)),$DW55,$DW$2&ROW($DW55)),$DV55,$DV$2&ROW($DV55)),$DU55,$DU$2&ROW($DU55)),$DT55,$DT$2&ROW($DT55)),$DS55,$DS$2&ROW($DS55)))","v":0},{"$f":"IF(AA55=\"\",0,\"X=\"&SUBSTITUTE(SUBSTITUTE(SUBSTITUTE(SUBSTITUTE(SUBSTITUTE(SUBSTITUTE(SUBSTITUTE(SUBSTITUTE(SUBSTITUTE(SUBSTITUTE(SUBSTITUTE(SUBSTITUTE(AA55,$ED55,$ED$2&ROW($ED55)),$EC55,$EC$2&ROW($EC55)),$EB55,$EB$2&ROW($EB55)),$EA55,$EA$2&ROW($EA55)),$DZ55,$DZ$2&ROW($DZ55)),$DY55,$DY$2&ROW($DY55)),$DX55,$DX$2&ROW($DX55)),$DW55,$DW$2&ROW($DW55)),$DV55,$DV$2&ROW($DV55)),$DU55,$DU$2&ROW($DU55)),$DT55,$DT$2&ROW($DT55)),$DS55,$DS$2&ROW($DS55)))","v":0},{"$f":"IF(AB55=\"\",0,\"X=\"&SUBSTITUTE(SUBSTITUTE(SUBSTITUTE(SUBSTITUTE(SUBSTITUTE(SUBSTITUTE(SUBSTITUTE(SUBSTITUTE(SUBSTITUTE(SUBSTITUTE(SUBSTITUTE(SUBSTITUTE(AB55,$ED55,$ED$2&ROW($ED55)),$EC55,$EC$2&ROW($EC55)),$EB55,$EB$2&ROW($EB55)),$EA55,$EA$2&ROW($EA55)),$DZ55,$DZ$2&ROW($DZ55)),$DY55,$DY$2&ROW($DY55)),$DX55,$DX$2&ROW($DX55)),$DW55,$DW$2&ROW($DW55)),$DV55,$DV$2&ROW($DV55)),$DU55,$DU$2&ROW($DU55)),$DT55,$DT$2&ROW($DT55)),$DS55,$DS$2&ROW($DS55)))","v":0},null,null,"{Factor:WinterCF}","{Factor:SummerCF}",{"$f":"IFERROR(INDEX($EG55:$IV55,MATCH(0,COUNTIF($DR55:DT55,$EG55:$IV55),0)),\"\")","v":"{Measure:Quantity}"},{"$f":"IFERROR(INDEX($EG55:$IV55,MATCH(0,COUNTIF($DR55:DU55,$EG55:$IV55),0)),\"\")","v":"{Motor HP}"},{"$f":"IFERROR(INDEX($EG55:$IV55,MATCH(0,COUNTIF($DR55:DV55,$EG55:$IV55),0)),\"\")","v":""},{"$f":"IFERROR(INDEX($EG55:$IV55,MATCH(0,COUNTIF($DR55:DW55,$EG55:$IV55),0)),\"\")","v":""},{"$f":"IFERROR(INDEX($EG55:$IV55,MATCH(0,COUNTIF($DR55:DX55,$EG55:$IV55),0)),\"\")","v":""},{"$f":"IFERROR(INDEX($EG55:$IV55,MATCH(0,COUNTIF($DR55:DY55,$EG55:$IV55),0)),\"\")","v":""},{"$f":"IFERROR(INDEX($EG55:$IV55,MATCH(0,COUNTIF($DR55:DZ55,$EG55:$IV55),0)),\"\")","v":""},{"$f":"IFERROR(INDEX($EG55:$IV55,MATCH(0,COUNTIF($DR55:EA55,$EG55:$IV55),0)),\"\")","v":""},{"$f":"IFERROR(INDEX($EG55:$IV55,MATCH(0,COUNTIF($DR55:EB55,$EG55:$IV55),0)),\"\")","v":""},{"$f":"IFERROR(INDEX($EG55:$IV55,MATCH(0,COUNTIF($DR55:EC55,$EG55:$IV55),0)),\"\")","v":""},null,null,{"$f":"IFERROR(MID($G55,FIND(CHAR(160),SUBSTITUTE($G55,\"{\",CHAR(160),EG$1)),FIND(CHAR(160),SUBSTITUTE($G55,\"}\",CHAR(160),EG$1))-FIND(CHAR(160),SUBSTITUTE($G55,\"{\",CHAR(160),EG$1))+1),\"\")","v":"{Measure:Quantity}"},{"$f":"IFERROR(MID($G55,FIND(CHAR(160),SUBSTITUTE($G55,\"{\",CHAR(160),EH$1)),FIND(CHAR(160),SUBSTITUTE($G55,\"}\",CHAR(160),EH$1))-FIND(CHAR(160),SUBSTITUTE($G55,\"{\",CHAR(160),EH$1))+1),\"\")","v":"{Motor HP}"},{"$f":"IFERROR(MID($G55,FIND(CHAR(160),SUBSTITUTE($G55,\"{\",CHAR(160),EI$1)),FIND(CHAR(160),SUBSTITUTE($G55,\"}\",CHAR(160),EI$1))-FIND(CHAR(160),SUBSTITUTE($G55,\"{\",CHAR(160),EI$1))+1),\"\")","v":"{Motor HP}"},{"$f":"IFERROR(MID($G55,FIND(CHAR(160),SUBSTITUTE($G55,\"{\",CHAR(160),EJ$1)),FIND(CHAR(160),SUBSTITUTE($G55,\"}\",CHAR(160),EJ$1))-FIND(CHAR(160),SUBSTITUTE($G55,\"{\",CHAR(160),EJ$1))+1),\"\")","v":"{Motor HP}"},{"$f":"IFERROR(MID($G55,FIND(CHAR(160),SUBSTITUTE($G55,\"{\",CHAR(160),EK$1)),FIND(CHAR(160),SUBSTITUTE($G55,\"}\",CHAR(160),EK$1))-FIND(CHAR(160),SUBSTITUTE($G55,\"{\",CHAR(160),EK$1))+1),\"\")","v":"{Motor HP}"},{"$f":"IFERROR(MID($G55,FIND(CHAR(160),SUBSTITUTE($G55,\"{\",CHAR(160),EL$1)),FIND(CHAR(160),SUBSTITUTE($G55,\"}\",CHAR(160),EL$1))-FIND(CHAR(160),SUBSTITUTE($G55,\"{\",CHAR(160),EL$1))+1),\"\")","v":"{Motor HP}"},{"$f":"IFERROR(MID($G55,FIND(CHAR(160),SUBSTITUTE($G55,\"{\",CHAR(160),EM$1)),FIND(CHAR(160),SUBSTITUTE($G55,\"}\",CHAR(160),EM$1))-FIND(CHAR(160),SUBSTITUTE($G55,\"{\",CHAR(160),EM$1))+1),\"\")","v":"{Motor HP}"},{"$f":"IFERROR(MID($G55,FIND(CHAR(160),SUBSTITUTE($G55,\"{\",CHAR(160),EN$1)),FIND(CHAR(160),SUBSTITUTE($G55,\"}\",CHAR(160),EN$1))-FIND(CHAR(160),SUBSTITUTE($G55,\"{\",CHAR(160),EN$1))+1),\"\")","v":"{Motor HP}"},{"$f":"IFERROR(MID($G55,FIND(CHAR(160),SUBSTITUTE($G55,\"{\",CHAR(160),EO$1)),FIND(CHAR(160),SUBSTITUTE($G55,\"}\",CHAR(160),EO$1))-FIND(CHAR(160),SUBSTITUTE($G55,\"{\",CHAR(160),EO$1))+1),\"\")","v":""},{"$f":"IFERROR(MID($G55,FIND(CHAR(160),SUBSTITUTE($G55,\"{\",CHAR(160),EP$1)),FIND(CHAR(160),SUBSTITUTE($G55,\"}\",CHAR(160),EP$1))-FIND(CHAR(160),SUBSTITUTE($G55,\"{\",CHAR(160),EP$1))+1),\"\")","v":""},{"$f":"IFERROR(MID($J55,FIND(CHAR(160),SUBSTITUTE($J55,\"{\",CHAR(160),EQ$1)),FIND(CHAR(160),SUBSTITUTE($J55,\"}\",CHAR(160),EQ$1))-FIND(CHAR(160),SUBSTITUTE($J55,\"{\",CHAR(160),EQ$1))+1),\"\")","v":"{Measure:Quantity}"},{"$f":"IFERROR(MID($J55,FIND(CHAR(160),SUBSTITUTE($J55,\"{\",CHAR(160),ER$1)),FIND(CHAR(160),SUBSTITUTE($J55,\"}\",CHAR(160),ER$1))-FIND(CHAR(160),SUBSTITUTE($J55,\"{\",CHAR(160),ER$1))+1),\"\")","v":"{Motor HP}"},{"$f":"IFERROR(MID($J55,FIND(CHAR(160),SUBSTITUTE($J55,\"{\",CHAR(160),ES$1)),FIND(CHAR(160),SUBSTITUTE($J55,\"}\",CHAR(160),ES$1))-FIND(CHAR(160),SUBSTITUTE($J55,\"{\",CHAR(160),ES$1))+1),\"\")","v":"{Motor HP}"},{"$f":"IFERROR(MID($J55,FIND(CHAR(160),SUBSTITUTE($J55,\"{\",CHAR(160),ET$1)),FIND(CHAR(160),SUBSTITUTE($J55,\"}\",CHAR(160),ET$1))-FIND(CHAR(160),SUBSTITUTE($J55,\"{\",CHAR(160),ET$1))+1),\"\")","v":"{Motor HP}"},{"$f":"IFERROR(MID($J55,FIND(CHAR(160),SUBSTITUTE($J55,\"{\",CHAR(160),EU$1)),FIND(CHAR(160),SUBSTITUTE($J55,\"}\",CHAR(160),EU$1))-FIND(CHAR(160),SUBSTITUTE($J55,\"{\",CHAR(160),EU$1))+1),\"\")","v":"{Motor HP}"},{"$f":"IFERROR(MID($J55,FIND(CHAR(160),SUBSTITUTE($J55,\"{\",CHAR(160),EV$1)),FIND(CHAR(160),SUBSTITUTE($J55,\"}\",CHAR(160),EV$1))-FIND(CHAR(160),SUBSTITUTE($J55,\"{\",CHAR(160),EV$1))+1),\"\")","v":"{Motor HP}"},{"$f":"IFERROR(MID($J55,FIND(CHAR(160),SUBSTITUTE($J55,\"{\",CHAR(160),EW$1)),FIND(CHAR(160),SUBSTITUTE($J55,\"}\",CHAR(160),EW$1))-FIND(CHAR(160),SUBSTITUTE($J55,\"{\",CHAR(160),EW$1))+1),\"\")","v":"{Motor HP}"},{"$f":"IFERROR(MID($J55,FIND(CHAR(160),SUBSTITUTE($J55,\"{\",CHAR(160),EX$1)),FIND(CHAR(160),SUBSTITUTE($J55,\"}\",CHAR(160),EX$1))-FIND(CHAR(160),SUBSTITUTE($J55,\"{\",CHAR(160),EX$1))+1),\"\")","v":"{Motor HP}"},{"$f":"IFERROR(MID($J55,FIND(CHAR(160),SUBSTITUTE($J55,\"{\",CHAR(160),EY$1)),FIND(CHAR(160),SUBSTITUTE($J55,\"}\",CHAR(160),EY$1))-FIND(CHAR(160),SUBSTITUTE($J55,\"{\",CHAR(160),EY$1))+1),\"\")","v":""},{"$f":"IFERROR(MID($J55,FIND(CHAR(160),SUBSTITUTE($J55,\"{\",CHAR(160),EZ$1)),FIND(CHAR(160),SUBSTITUTE($J55,\"}\",CHAR(160),EZ$1))-FIND(CHAR(160),SUBSTITUTE($J55,\"{\",CHAR(160),EZ$1))+1),\"\")","v":""},{"$f":"IFERROR(MID($J55,FIND(CHAR(160),SUBSTITUTE($J55,\"{\",CHAR(160),FA$1)),FIND(CHAR(160),SUBSTITUTE($J55,\"}\",CHAR(160),FA$1))-FIND(CHAR(160),SUBSTITUTE($J55,\"{\",CHAR(160),FA$1))+1),\"\")","v":"{Measure:Quantity}"},{"$f":"IFERROR(MID($J55,FIND(CHAR(160),SUBSTITUTE($J55,\"{\",CHAR(160),FB$1)),FIND(CHAR(160),SUBSTITUTE($J55,\"}\",CHAR(160),FB$1))-FIND(CHAR(160),SUBSTITUTE($J55,\"{\",CHAR(160),FB$1))+1),\"\")","v":"{Motor HP}"},{"$f":"IFERROR(MID($O55,FIND(CHAR(160),SUBSTITUTE($O55,\"{\",CHAR(160),FC$1)),FIND(CHAR(160),SUBSTITUTE($O55,\"}\",CHAR(160),FC$1))-FIND(CHAR(160),SUBSTITUTE($O55,\"{\",CHAR(160),FC$1))+1),\"\")","v":""},{"$f":"IFERROR(MID($O55,FIND(CHAR(160),SUBSTITUTE($O55,\"{\",CHAR(160),FD$1)),FIND(CHAR(160),SUBSTITUTE($O55,\"}\",CHAR(160),FD$1))-FIND(CHAR(160),SUBSTITUTE($O55,\"{\",CHAR(160),FD$1))+1),\"\")","v":""},{"$f":"IFERROR(MID($O55,FIND(CHAR(160),SUBSTITUTE($O55,\"{\",CHAR(160),FE$1)),FIND(CHAR(160),SUBSTITUTE($O55,\"}\",CHAR(160),FE$1))-FIND(CHAR(160),SUBSTITUTE($O55,\"{\",CHAR(160),FE$1))+1),\"\")","v":""},{"$f":"IFERROR(MID($O55,FIND(CHAR(160),SUBSTITUTE($O55,\"{\",CHAR(160),FF$1)),FIND(CHAR(160),SUBSTITUTE($O55,\"}\",CHAR(160),FF$1))-FIND(CHAR(160),SUBSTITUTE($O55,\"{\",CHAR(160),FF$1))+1),\"\")","v":""},{"$f":"IFERROR(MID($O55,FIND(CHAR(160),SUBSTITUTE($O55,\"{\",CHAR(160),FG$1)),FIND(CHAR(160),SUBSTITUTE($O55,\"}\",CHAR(160),FG$1))-FIND(CHAR(160),SUBSTITUTE($O55,\"{\",CHAR(160),FG$1))+1),\"\")","v":""},{"$f":"IFERROR(MID($O55,FIND(CHAR(160),SUBSTITUTE($O55,\"{\",CHAR(160),FH$1)),FIND(CHAR(160),SUBSTITUTE($O55,\"}\",CHAR(160),FH$1))-FIND(CHAR(160),SUBSTITUTE($O55,\"{\",CHAR(160),FH$1))+1),\"\")","v":""},{"$f":"IFERROR(MID($O55,FIND(CHAR(160),SUBSTITUTE($O55,\"{\",CHAR(160),FI$1)),FIND(CHAR(160),SUBSTITUTE($O55,\"}\",CHAR(160),FI$1))-FIND(CHAR(160),SUBSTITUTE($O55,\"{\",CHAR(160),FI$1))+1),\"\")","v":""},{"$f":"IFERROR(MID($O55,FIND(CHAR(160),SUBSTITUTE($O55,\"{\",CHAR(160),FJ$1)),FIND(CHAR(160),SUBSTITUTE($O55,\"}\",CHAR(160),FJ$1))-FIND(CHAR(160),SUBSTITUTE($O55,\"{\",CHAR(160),FJ$1))+1),\"\")","v":""},{"$f":"IFERROR(MID($O55,FIND(CHAR(160),SUBSTITUTE($O55,\"{\",CHAR(160),FK$1)),FIND(CHAR(160),SUBSTITUTE($O55,\"}\",CHAR(160),FK$1))-FIND(CHAR(160),SUBSTITUTE($O55,\"{\",CHAR(160),FK$1))+1),\"\")","v":"{Measure:Quantity}"},{"$f":"IFERROR(MID($O55,FIND(CHAR(160),SUBSTITUTE($O55,\"{\",CHAR(160),FL$1)),FIND(CHAR(160),SUBSTITUTE($O55,\"}\",CHAR(160),FL$1))-FIND(CHAR(160),SUBSTITUTE($O55,\"{\",CHAR(160),FL$1))+1),\"\")","v":"{Motor HP}"},{"$f":"IFERROR(MID($R55,FIND(CHAR(160),SUBSTITUTE($R55,\"{\",CHAR(160),FM$1)),FIND(CHAR(160),SUBSTITUTE($R55,\"}\",CHAR(160),FM$1))-FIND(CHAR(160),SUBSTITUTE($R55,\"{\",CHAR(160),FM$1))+1),\"\")","v":""},{"$f":"IFERROR(MID($R55,FIND(CHAR(160),SUBSTITUTE($R55,\"{\",CHAR(160),FN$1)),FIND(CHAR(160),SUBSTITUTE($R55,\"}\",CHAR(160),FN$1))-FIND(CHAR(160),SUBSTITUTE($R55,\"{\",CHAR(160),FN$1))+1),\"\")","v":""},{"$f":"IFERROR(MID($R55,FIND(CHAR(160),SUBSTITUTE($R55,\"{\",CHAR(160),FO$1)),FIND(CHAR(160),SUBSTITUTE($R55,\"}\",CHAR(160),FO$1))-FIND(CHAR(160),SUBSTITUTE($R55,\"{\",CHAR(160),FO$1))+1),\"\")","v":""},{"$f":"IFERROR(MID($R55,FIND(CHAR(160),SUBSTITUTE($R55,\"{\",CHAR(160),FP$1)),FIND(CHAR(160),SUBSTITUTE($R55,\"}\",CHAR(160),FP$1))-FIND(CHAR(160),SUBSTITUTE($R55,\"{\",CHAR(160),FP$1))+1),\"\")","v":""},{"$f":"IFERROR(MID($R55,FIND(CHAR(160),SUBSTITUTE($R55,\"{\",CHAR(160),FQ$1)),FIND(CHAR(160),SUBSTITUTE($R55,\"}\",CHAR(160),FQ$1))-FIND(CHAR(160),SUBSTITUTE($R55,\"{\",CHAR(160),FQ$1))+1),\"\")","v":""},{"$f":"IFERROR(MID($R55,FIND(CHAR(160),SUBSTITUTE($R55,\"{\",CHAR(160),FR$1)),FIND(CHAR(160),SUBSTITUTE($R55,\"}\",CHAR(160),FR$1))-FIND(CHAR(160),SUBSTITUTE($R55,\"{\",CHAR(160),FR$1))+1),\"\")","v":""},{"$f":"IFERROR(MID($R55,FIND(CHAR(160),SUBSTITUTE($R55,\"{\",CHAR(160),FS$1)),FIND(CHAR(160),SUBSTITUTE($R55,\"}\",CHAR(160),FS$1))-FIND(CHAR(160),SUBSTITUTE($R55,\"{\",CHAR(160),FS$1))+1),\"\")","v":""},{"$f":"IFERROR(MID($R55,FIND(CHAR(160),SUBSTITUTE($R55,\"{\",CHAR(160),FT$1)),FIND(CHAR(160),SUBSTITUTE($R55,\"}\",CHAR(160),FT$1))-FIND(CHAR(160),SUBSTITUTE($R55,\"{\",CHAR(160),FT$1))+1),\"\")","v":""},{"$f":"IFERROR(MID($R55,FIND(CHAR(160),SUBSTITUTE($R55,\"{\",CHAR(160),FU$1)),FIND(CHAR(160),SUBSTITUTE($R55,\"}\",CHAR(160),FU$1))-FIND(CHAR(160),SUBSTITUTE($R55,\"{\",CHAR(160),FU$1))+1),\"\")","v":"{Measure:Quantity}"},{"$f":"IFERROR(MID($R55,FIND(CHAR(160),SUBSTITUTE($R55,\"{\",CHAR(160),FV$1)),FIND(CHAR(160),SUBSTITUTE($R55,\"}\",CHAR(160),FV$1))-FIND(CHAR(160),SUBSTITUTE($R55,\"{\",CHAR(160),FV$1))+1),\"\")","v":"{Motor HP}"},{"$f":"IFERROR(MID($U55,FIND(CHAR(160),SUBSTITUTE($U55,\"{\",CHAR(160),FW$1)),FIND(CHAR(160),SUBSTITUTE($U55,\"}\",CHAR(160),FW$1))-FIND(CHAR(160),SUBSTITUTE($U55,\"{\",CHAR(160),FW$1))+1),\"\")","v":"{Motor HP}"},{"$f":"IFERROR(MID($U55,FIND(CHAR(160),SUBSTITUTE($U55,\"{\",CHAR(160),FX$1)),FIND(CHAR(160),SUBSTITUTE($U55,\"}\",CHAR(160),FX$1))-FIND(CHAR(160),SUBSTITUTE($U55,\"{\",CHAR(160),FX$1))+1),\"\")","v":""},{"$f":"IFERROR(MID($U55,FIND(CHAR(160),SUBSTITUTE($U55,\"{\",CHAR(160),FY$1)),FIND(CHAR(160),SUBSTITUTE($U55,\"}\",CHAR(160),FY$1))-FIND(CHAR(160),SUBSTITUTE($U55,\"{\",CHAR(160),FY$1))+1),\"\")","v":""},{"$f":"IFERROR(MID($U55,FIND(CHAR(160),SUBSTITUTE($U55,\"{\",CHAR(160),FZ$1)),FIND(CHAR(160),SUBSTITUTE($U55,\"}\",CHAR(160),FZ$1))-FIND(CHAR(160),SUBSTITUTE($U55,\"{\",CHAR(160),FZ$1))+1),\"\")","v":""},{"$f":"IFERROR(MID($U55,FIND(CHAR(160),SUBSTITUTE($U55,\"{\",CHAR(160),GA$1)),FIND(CHAR(160),SUBSTITUTE($U55,\"}\",CHAR(160),GA$1))-FIND(CHAR(160),SUBSTITUTE($U55,\"{\",CHAR(160),GA$1))+1),\"\")","v":""},{"$f":"IFERROR(MID($U55,FIND(CHAR(160),SUBSTITUTE($U55,\"{\",CHAR(160),GB$1)),FIND(CHAR(160),SUBSTITUTE($U55,\"}\",CHAR(160),GB$1))-FIND(CHAR(160),SUBSTITUTE($U55,\"{\",CHAR(160),GB$1))+1),\"\")","v":""},{"$f":"IFERROR(MID($U55,FIND(CHAR(160),SUBSTITUTE($U55,\"{\",CHAR(160),GC$1)),FIND(CHAR(160),SUBSTITUTE($U55,\"}\",CHAR(160),GC$1))-FIND(CHAR(160),SUBSTITUTE($U55,\"{\",CHAR(160),GC$1))+1),\"\")","v":""},{"$f":"IFERROR(MID($U55,FIND(CHAR(160),SUBSTITUTE($U55,\"{\",CHAR(160),GD$1)),FIND(CHAR(160),SUBSTITUTE($U55,\"}\",CHAR(160),GD$1))-FIND(CHAR(160),SUBSTITUTE($U55,\"{\",CHAR(160),GD$1))+1),\"\")","v":""},{"$f":"IFERROR(MID($U55,FIND(CHAR(160),SUBSTITUTE($U55,\"{\",CHAR(160),GE$1)),FIND(CHAR(160),SUBSTITUTE($U55,\"}\",CHAR(160),GE$1))-FIND(CHAR(160),SUBSTITUTE($U55,\"{\",CHAR(160),GE$1))+1),\"\")","v":"{Measure:Quantity}"},{"$f":"IFERROR(MID($U55,FIND(CHAR(160),SUBSTITUTE($U55,\"{\",CHAR(160),GF$1)),FIND(CHAR(160),SUBSTITUTE($U55,\"}\",CHAR(160),GF$1))-FIND(CHAR(160),SUBSTITUTE($U55,\"{\",CHAR(160),GF$1))+1),\"\")","v":"{Factor:WinterCF}"},{"$f":"IFERROR(MID($V55,FIND(CHAR(160),SUBSTITUTE($V55,\"{\",CHAR(160),GG$1)),FIND(CHAR(160),SUBSTITUTE($V55,\"}\",CHAR(160),GG$1))-FIND(CHAR(160),SUBSTITUTE($V55,\"{\",CHAR(160),GG$1))+1),\"\")","v":"{Motor HP}"},{"$f":"IFERROR(MID($V55,FIND(CHAR(160),SUBSTITUTE($V55,\"{\",CHAR(160),GH$1)),FIND(CHAR(160),SUBSTITUTE($V55,\"}\",CHAR(160),GH$1))-FIND(CHAR(160),SUBSTITUTE($V55,\"{\",CHAR(160),GH$1))+1),\"\")","v":""},{"$f":"IFERROR(MID($V55,FIND(CHAR(160),SUBSTITUTE($V55,\"{\",CHAR(160),GI$1)),FIND(CHAR(160),SUBSTITUTE($V55,\"}\",CHAR(160),GI$1))-FIND(CHAR(160),SUBSTITUTE($V55,\"{\",CHAR(160),GI$1))+1),\"\")","v":""},{"$f":"IFERROR(MID($V55,FIND(CHAR(160),SUBSTITUTE($V55,\"{\",CHAR(160),GJ$1)),FIND(CHAR(160),SUBSTITUTE($V55,\"}\",CHAR(160),GJ$1))-FIND(CHAR(160),SUBSTITUTE($V55,\"{\",CHAR(160),GJ$1))+1),\"\")","v":""},{"$f":"IFERROR(MID($V55,FIND(CHAR(160),SUBSTITUTE($V55,\"{\",CHAR(160),GK$1)),FIND(CHAR(160),SUBSTITUTE($V55,\"}\",CHAR(160),GK$1))-FIND(CHAR(160),SUBSTITUTE($V55,\"{\",CHAR(160),GK$1))+1),\"\")","v":""},{"$f":"IFERROR(MID($V55,FIND(CHAR(160),SUBSTITUTE($V55,\"{\",CHAR(160),GL$1)),FIND(CHAR(160),SUBSTITUTE($V55,\"}\",CHAR(160),GL$1))-FIND(CHAR(160),SUBSTITUTE($V55,\"{\",CHAR(160),GL$1))+1),\"\")","v":""},{"$f":"IFERROR(MID($V55,FIND(CHAR(160),SUBSTITUTE($V55,\"{\",CHAR(160),GM$1)),FIND(CHAR(160),SUBSTITUTE($V55,\"}\",CHAR(160),GM$1))-FIND(CHAR(160),SUBSTITUTE($V55,\"{\",CHAR(160),GM$1))+1),\"\")","v":""},{"$f":"IFERROR(MID($V55,FIND(CHAR(160),SUBSTITUTE($V55,\"{\",CHAR(160),GN$1)),FIND(CHAR(160),SUBSTITUTE($V55,\"}\",CHAR(160),GN$1))-FIND(CHAR(160),SUBSTITUTE($V55,\"{\",CHAR(160),GN$1))+1),\"\")","v":""},{"$f":"IFERROR(MID($V55,FIND(CHAR(160),SUBSTITUTE($V55,\"{\",CHAR(160),GO$1)),FIND(CHAR(160),SUBSTITUTE($V55,\"}\",CHAR(160),GO$1))-FIND(CHAR(160),SUBSTITUTE($V55,\"{\",CHAR(160),GO$1))+1),\"\")","v":"{Measure:Quantity}"},{"$f":"IFERROR(MID($V55,FIND(CHAR(160),SUBSTITUTE($V55,\"{\",CHAR(160),GP$1)),FIND(CHAR(160),SUBSTITUTE($V55,\"}\",CHAR(160),GP$1))-FIND(CHAR(160),SUBSTITUTE($V55,\"{\",CHAR(160),GP$1))+1),\"\")","v":"{Factor:SummerCF}"},{"$f":"IFERROR(MID($W55,FIND(CHAR(160),SUBSTITUTE($W55,\"{\",CHAR(160),GQ$1)),FIND(CHAR(160),SUBSTITUTE($W55,\"}\",CHAR(160),GQ$1))-FIND(CHAR(160),SUBSTITUTE($W55,\"{\",CHAR(160),GQ$1))+1),\"\")","v":""},{"$f":"IFERROR(MID($W55,FIND(CHAR(160),SUBSTITUTE($W55,\"{\",CHAR(160),GR$1)),FIND(CHAR(160),SUBSTITUTE($W55,\"}\",CHAR(160),GR$1))-FIND(CHAR(160),SUBSTITUTE($W55,\"{\",CHAR(160),GR$1))+1),\"\")","v":""},{"$f":"IFERROR(MID($W55,FIND(CHAR(160),SUBSTITUTE($W55,\"{\",CHAR(160),GS$1)),FIND(CHAR(160),SUBSTITUTE($W55,\"}\",CHAR(160),GS$1))-FIND(CHAR(160),SUBSTITUTE($W55,\"{\",CHAR(160),GS$1))+1),\"\")","v":""},{"$f":"IFERROR(MID($W55,FIND(CHAR(160),SUBSTITUTE($W55,\"{\",CHAR(160),GT$1)),FIND(CHAR(160),SUBSTITUTE($W55,\"}\",CHAR(160),GT$1))-FIND(CHAR(160),SUBSTITUTE($W55,\"{\",CHAR(160),GT$1))+1),\"\")","v":""},{"$f":"IFERROR(MID($W55,FIND(CHAR(160),SUBSTITUTE($W55,\"{\",CHAR(160),GU$1)),FIND(CHAR(160),SUBSTITUTE($W55,\"}\",CHAR(160),GU$1))-FIND(CHAR(160),SUBSTITUTE($W55,\"{\",CHAR(160),GU$1))+1),\"\")","v":""},{"$f":"IFERROR(MID($W55,FIND(CHAR(160),SUBSTITUTE($W55,\"{\",CHAR(160),GV$1)),FIND(CHAR(160),SUBSTITUTE($W55,\"}\",CHAR(160),GV$1))-FIND(CHAR(160),SUBSTITUTE($W55,\"{\",CHAR(160),GV$1))+1),\"\")","v":""},{"$f":"IFERROR(MID($W55,FIND(CHAR(160),SUBSTITUTE($W55,\"{\",CHAR(160),GW$1)),FIND(CHAR(160),SUBSTITUTE($W55,\"}\",CHAR(160),GW$1))-FIND(CHAR(160),SUBSTITUTE($W55,\"{\",CHAR(160),GW$1))+1),\"\")","v":""},{"$f":"IFERROR(MID($W55,FIND(CHAR(160),SUBSTITUTE($W55,\"{\",CHAR(160),GX$1)),FIND(CHAR(160),SUBSTITUTE($W55,\"}\",CHAR(160),GX$1))-FIND(CHAR(160),SUBSTITUTE($W55,\"{\",CHAR(160),GX$1))+1),\"\")","v":""},{"$f":"IFERROR(MID($W55,FIND(CHAR(160),SUBSTITUTE($W55,\"{\",CHAR(160),GY$1)),FIND(CHAR(160),SUBSTITUTE($W55,\"}\",CHAR(160),GY$1))-FIND(CHAR(160),SUBSTITUTE($W55,\"{\",CHAR(160),GY$1))+1),\"\")","v":""},{"$f":"IFERROR(MID($W55,FIND(CHAR(160),SUBSTITUTE($W55,\"{\",CHAR(160),GZ$1)),FIND(CHAR(160),SUBSTITUTE($W55,\"}\",CHAR(160),GZ$1))-FIND(CHAR(160),SUBSTITUTE($W55,\"{\",CHAR(160),GZ$1))+1),\"\")","v":""},{"$f":"IFERROR(MID($X55,FIND(CHAR(160),SUBSTITUTE($X55,\"{\",CHAR(160),HA$1)),FIND(CHAR(160),SUBSTITUTE($X55,\"}\",CHAR(160),HA$1))-FIND(CHAR(160),SUBSTITUTE($X55,\"{\",CHAR(160),HA$1))+1),\"\")","v":""},{"$f":"IFERROR(MID($X55,FIND(CHAR(160),SUBSTITUTE($X55,\"{\",CHAR(160),HB$1)),FIND(CHAR(160),SUBSTITUTE($X55,\"}\",CHAR(160),HB$1))-FIND(CHAR(160),SUBSTITUTE($X55,\"{\",CHAR(160),HB$1))+1),\"\")","v":""},{"$f":"IFERROR(MID($X55,FIND(CHAR(160),SUBSTITUTE($X55,\"{\",CHAR(160),HC$1)),FIND(CHAR(160),SUBSTITUTE($X55,\"}\",CHAR(160),HC$1))-FIND(CHAR(160),SUBSTITUTE($X55,\"{\",CHAR(160),HC$1))+1),\"\")","v":""},{"$f":"IFERROR(MID($X55,FIND(CHAR(160),SUBSTITUTE($X55,\"{\",CHAR(160),HD$1)),FIND(CHAR(160),SUBSTITUTE($X55,\"}\",CHAR(160),HD$1))-FIND(CHAR(160),SUBSTITUTE($X55,\"{\",CHAR(160),HD$1))+1),\"\")","v":""},{"$f":"IFERROR(MID($X55,FIND(CHAR(160),SUBSTITUTE($X55,\"{\",CHAR(160),HE$1)),FIND(CHAR(160),SUBSTITUTE($X55,\"}\",CHAR(160),HE$1))-FIND(CHAR(160),SUBSTITUTE($X55,\"{\",CHAR(160),HE$1))+1),\"\")","v":""},{"$f":"IFERROR(MID($X55,FIND(CHAR(160),SUBSTITUTE($X55,\"{\",CHAR(160),HF$1)),FIND(CHAR(160),SUBSTITUTE($X55,\"}\",CHAR(160),HF$1))-FIND(CHAR(160),SUBSTITUTE($X55,\"{\",CHAR(160),HF$1))+1),\"\")","v":""},{"$f":"IFERROR(MID($X55,FIND(CHAR(160),SUBSTITUTE($X55,\"{\",CHAR(160),HG$1)),FIND(CHAR(160),SUBSTITUTE($X55,\"}\",CHAR(160),HG$1))-FIND(CHAR(160),SUBSTITUTE($X55,\"{\",CHAR(160),HG$1))+1),\"\")","v":""},{"$f":"IFERROR(MID($X55,FIND(CHAR(160),SUBSTITUTE($X55,\"{\",CHAR(160),HH$1)),FIND(CHAR(160),SUBSTITUTE($X55,\"}\",CHAR(160),HH$1))-FIND(CHAR(160),SUBSTITUTE($X55,\"{\",CHAR(160),HH$1))+1),\"\")","v":""},{"$f":"IFERROR(MID($X55,FIND(CHAR(160),SUBSTITUTE($X55,\"{\",CHAR(160),HI$1)),FIND(CHAR(160),SUBSTITUTE($X55,\"}\",CHAR(160),HI$1))-FIND(CHAR(160),SUBSTITUTE($X55,\"{\",CHAR(160),HI$1))+1),\"\")","v":""},{"$f":"IFERROR(MID($X55,FIND(CHAR(160),SUBSTITUTE($X55,\"{\",CHAR(160),HJ$1)),FIND(CHAR(160),SUBSTITUTE($X55,\"}\",CHAR(160),HJ$1))-FIND(CHAR(160),SUBSTITUTE($X55,\"{\",CHAR(160),HJ$1))+1),\"\")","v":""},{"$f":"IFERROR(MID($Y55,FIND(CHAR(160),SUBSTITUTE($Y55,\"{\",CHAR(160),HK$1)),FIND(CHAR(160),SUBSTITUTE($Y55,\"}\",CHAR(160),HK$1))-FIND(CHAR(160),SUBSTITUTE($Y55,\"{\",CHAR(160),HK$1))+1),\"\")","v":""},{"$f":"IFERROR(MID($Y55,FIND(CHAR(160),SUBSTITUTE($Y55,\"{\",CHAR(160),HL$1)),FIND(CHAR(160),SUBSTITUTE($Y55,\"}\",CHAR(160),HL$1))-FIND(CHAR(160),SUBSTITUTE($Y55,\"{\",CHAR(160),HL$1))+1),\"\")","v":""},{"$f":"IFERROR(MID($Y55,FIND(CHAR(160),SUBSTITUTE($Y55,\"{\",CHAR(160),HM$1)),FIND(CHAR(160),SUBSTITUTE($Y55,\"}\",CHAR(160),HM$1))-FIND(CHAR(160),SUBSTITUTE($Y55,\"{\",CHAR(160),HM$1))+1),\"\")","v":""},{"$f":"IFERROR(MID($Y55,FIND(CHAR(160),SUBSTITUTE($Y55,\"{\",CHAR(160),HN$1)),FIND(CHAR(160),SUBSTITUTE($Y55,\"}\",CHAR(160),HN$1))-FIND(CHAR(160),SUBSTITUTE($Y55,\"{\",CHAR(160),HN$1))+1),\"\")","v":""},{"$f":"IFERROR(MID($Y55,FIND(CHAR(160),SUBSTITUTE($Y55,\"{\",CHAR(160),HO$1)),FIND(CHAR(160),SUBSTITUTE($Y55,\"}\",CHAR(160),HO$1))-FIND(CHAR(160),SUBSTITUTE($Y55,\"{\",CHAR(160),HO$1))+1),\"\")","v":""},{"$f":"IFERROR(MID($Y55,FIND(CHAR(160),SUBSTITUTE($Y55,\"{\",CHAR(160),HP$1)),FIND(CHAR(160),SUBSTITUTE($Y55,\"}\",CHAR(160),HP$1))-FIND(CHAR(160),SUBSTITUTE($Y55,\"{\",CHAR(160),HP$1))+1),\"\")","v":""},{"$f":"IFERROR(MID($Y55,FIND(CHAR(160),SUBSTITUTE($Y55,\"{\",CHAR(160),HQ$1)),FIND(CHAR(160),SUBSTITUTE($Y55,\"}\",CHAR(160),HQ$1))-FIND(CHAR(160),SUBSTITUTE($Y55,\"{\",CHAR(160),HQ$1))+1),\"\")","v":""},{"$f":"IFERROR(MID($Y55,FIND(CHAR(160),SUBSTITUTE($Y55,\"{\",CHAR(160),HR$1)),FIND(CHAR(160),SUBSTITUTE($Y55,\"}\",CHAR(160),HR$1))-FIND(CHAR(160),SUBSTITUTE($Y55,\"{\",CHAR(160),HR$1))+1),\"\")","v":""},{"$f":"IFERROR(MID($Y55,FIND(CHAR(160),SUBSTITUTE($Y55,\"{\",CHAR(160),HS$1)),FIND(CHAR(160),SUBSTITUTE($Y55,\"}\",CHAR(160),HS$1))-FIND(CHAR(160),SUBSTITUTE($Y55,\"{\",CHAR(160),HS$1))+1),\"\")","v":""},{"$f":"IFERROR(MID($Y55,FIND(CHAR(160),SUBSTITUTE($Y55,\"{\",CHAR(160),HT$1)),FIND(CHAR(160),SUBSTITUTE($Y55,\"}\",CHAR(160),HT$1))-FIND(CHAR(160),SUBSTITUTE($Y55,\"{\",CHAR(160),HT$1))+1),\"\")","v":""},{"$f":"IFERROR(MID($Z55,FIND(CHAR(160),SUBSTITUTE($Z55,\"{\",CHAR(160),HU$1)),FIND(CHAR(160),SUBSTITUTE($Z55,\"}\",CHAR(160),HU$1))-FIND(CHAR(160),SUBSTITUTE($Z55,\"{\",CHAR(160),HU$1))+1),\"\")","v":""},{"$f":"IFERROR(MID($Z55,FIND(CHAR(160),SUBSTITUTE($Z55,\"{\",CHAR(160),HV$1)),FIND(CHAR(160),SUBSTITUTE($Z55,\"}\",CHAR(160),HV$1))-FIND(CHAR(160),SUBSTITUTE($Z55,\"{\",CHAR(160),HV$1))+1),\"\")","v":""},{"$f":"IFERROR(MID($Z55,FIND(CHAR(160),SUBSTITUTE($Z55,\"{\",CHAR(160),HW$1)),FIND(CHAR(160),SUBSTITUTE($Z55,\"}\",CHAR(160),HW$1))-FIND(CHAR(160),SUBSTITUTE($Z55,\"{\",CHAR(160),HW$1))+1),\"\")","v":""},{"$f":"IFERROR(MID($Z55,FIND(CHAR(160),SUBSTITUTE($Z55,\"{\",CHAR(160),HX$1)),FIND(CHAR(160),SUBSTITUTE($Z55,\"}\",CHAR(160),HX$1))-FIND(CHAR(160),SUBSTITUTE($Z55,\"{\",CHAR(160),HX$1))+1),\"\")","v":""},{"$f":"IFERROR(MID($Z55,FIND(CHAR(160),SUBSTITUTE($Z55,\"{\",CHAR(160),HY$1)),FIND(CHAR(160),SUBSTITUTE($Z55,\"}\",CHAR(160),HY$1))-FIND(CHAR(160),SUBSTITUTE($Z55,\"{\",CHAR(160),HY$1))+1),\"\")","v":""},{"$f":"IFERROR(MID($Z55,FIND(CHAR(160),SUBSTITUTE($Z55,\"{\",CHAR(160),HZ$1)),FIND(CHAR(160),SUBSTITUTE($Z55,\"}\",CHAR(160),HZ$1))-FIND(CHAR(160),SUBSTITUTE($Z55,\"{\",CHAR(160),HZ$1))+1),\"\")","v":""},{"$f":"IFERROR(MID($Z55,FIND(CHAR(160),SUBSTITUTE($Z55,\"{\",CHAR(160),IA$1)),FIND(CHAR(160),SUBSTITUTE($Z55,\"}\",CHAR(160),IA$1))-FIND(CHAR(160),SUBSTITUTE($Z55,\"{\",CHAR(160),IA$1))+1),\"\")","v":""},{"$f":"IFERROR(MID($Z55,FIND(CHAR(160),SUBSTITUTE($Z55,\"{\",CHAR(160),IB$1)),FIND(CHAR(160),SUBSTITUTE($Z55,\"}\",CHAR(160),IB$1))-FIND(CHAR(160),SUBSTITUTE($Z55,\"{\",CHAR(160),IB$1))+1),\"\")","v":""},{"$f":"IFERROR(MID($Z55,FIND(CHAR(160),SUBSTITUTE($Z55,\"{\",CHAR(160),IC$1)),FIND(CHAR(160),SUBSTITUTE($Z55,\"}\",CHAR(160),IC$1))-FIND(CHAR(160),SUBSTITUTE($Z55,\"{\",CHAR(160),IC$1))+1),\"\")","v":""},{"$f":"IFERROR(MID($Z55,FIND(CHAR(160),SUBSTITUTE($Z55,\"{\",CHAR(160),ID$1)),FIND(CHAR(160),SUBSTITUTE($Z55,\"}\",CHAR(160),ID$1))-FIND(CHAR(160),SUBSTITUTE($Z55,\"{\",CHAR(160),ID$1))+1),\"\")","v":""},{"$f":"IFERROR(MID($AA55,FIND(CHAR(160),SUBSTITUTE($AA55,\"{\",CHAR(160),IE$1)),FIND(CHAR(160),SUBSTITUTE($AA55,\"}\",CHAR(160),IE$1))-FIND(CHAR(160),SUBSTITUTE($AA55,\"{\",CHAR(160),IE$1))+1),\"\")","v":""},{"$f":"IFERROR(MID($AA55,FIND(CHAR(160),SUBSTITUTE($AA55,\"{\",CHAR(160),IF$1)),FIND(CHAR(160),SUBSTITUTE($AA55,\"}\",CHAR(160),IF$1))-FIND(CHAR(160),SUBSTITUTE($AA55,\"{\",CHAR(160),IF$1))+1),\"\")","v":""},{"$f":"IFERROR(MID($AA55,FIND(CHAR(160),SUBSTITUTE($AA55,\"{\",CHAR(160),IG$1)),FIND(CHAR(160),SUBSTITUTE($AA55,\"}\",CHAR(160),IG$1))-FIND(CHAR(160),SUBSTITUTE($AA55,\"{\",CHAR(160),IG$1))+1),\"\")","v":""},{"$f":"IFERROR(MID($AA55,FIND(CHAR(160),SUBSTITUTE($AA55,\"{\",CHAR(160),IH$1)),FIND(CHAR(160),SUBSTITUTE($AA55,\"}\",CHAR(160),IH$1))-FIND(CHAR(160),SUBSTITUTE($AA55,\"{\",CHAR(160),IH$1))+1),\"\")","v":""},{"$f":"IFERROR(MID($AA55,FIND(CHAR(160),SUBSTITUTE($AA55,\"{\",CHAR(160),II$1)),FIND(CHAR(160),SUBSTITUTE($AA55,\"}\",CHAR(160),II$1))-FIND(CHAR(160),SUBSTITUTE($AA55,\"{\",CHAR(160),II$1))+1),\"\")","v":""},{"$f":"IFERROR(MID($AA55,FIND(CHAR(160),SUBSTITUTE($AA55,\"{\",CHAR(160),IJ$1)),FIND(CHAR(160),SUBSTITUTE($AA55,\"}\",CHAR(160),IJ$1))-FIND(CHAR(160),SUBSTITUTE($AA55,\"{\",CHAR(160),IJ$1))+1),\"\")","v":""},{"$f":"IFERROR(MID($AA55,FIND(CHAR(160),SUBSTITUTE($AA55,\"{\",CHAR(160),IK$1)),FIND(CHAR(160),SUBSTITUTE($AA55,\"}\",CHAR(160),IK$1))-FIND(CHAR(160),SUBSTITUTE($AA55,\"{\",CHAR(160),IK$1))+1),\"\")","v":""},{"$f":"IFERROR(MID($AA55,FIND(CHAR(160),SUBSTITUTE($AA55,\"{\",CHAR(160),IL$1)),FIND(CHAR(160),SUBSTITUTE($AA55,\"}\",CHAR(160),IL$1))-FIND(CHAR(160),SUBSTITUTE($AA55,\"{\",CHAR(160),IL$1))+1),\"\")","v":""},{"$f":"IFERROR(MID($AA55,FIND(CHAR(160),SUBSTITUTE($AA55,\"{\",CHAR(160),IM$1)),FIND(CHAR(160),SUBSTITUTE($AA55,\"}\",CHAR(160),IM$1))-FIND(CHAR(160),SUBSTITUTE($AA55,\"{\",CHAR(160),IM$1))+1),\"\")","v":""},{"$f":"IFERROR(MID($AA55,FIND(CHAR(160),SUBSTITUTE($AA55,\"{\",CHAR(160),IN$1)),FIND(CHAR(160),SUBSTITUTE($AA55,\"}\",CHAR(160),IN$1))-FIND(CHAR(160),SUBSTITUTE($AA55,\"{\",CHAR(160),IN$1))+1),\"\")","v":""},{"$f":"IFERROR(MID($AB55,FIND(CHAR(160),SUBSTITUTE($AB55,\"{\",CHAR(160),IO$1)),FIND(CHAR(160),SUBSTITUTE($AB55,\"}\",CHAR(160),IO$1))-FIND(CHAR(160),SUBSTITUTE($AB55,\"{\",CHAR(160),IO$1))+1),\"\")","v":""},{"$f":"IFERROR(MID($AB55,FIND(CHAR(160),SUBSTITUTE($AB55,\"{\",CHAR(160),IP$1)),FIND(CHAR(160),SUBSTITUTE($AB55,\"}\",CHAR(160),IP$1))-FIND(CHAR(160),SUBSTITUTE($AB55,\"{\",CHAR(160),IP$1))+1),\"\")","v":""},{"$f":"IFERROR(MID($AB55,FIND(CHAR(160),SUBSTITUTE($AB55,\"{\",CHAR(160),IQ$1)),FIND(CHAR(160),SUBSTITUTE($AB55,\"}\",CHAR(160),IQ$1))-FIND(CHAR(160),SUBSTITUTE($AB55,\"{\",CHAR(160),IQ$1))+1),\"\")","v":""},{"$f":"IFERROR(MID($AB55,FIND(CHAR(160),SUBSTITUTE($AB55,\"{\",CHAR(160),IR$1)),FIND(CHAR(160),SUBSTITUTE($AB55,\"}\",CHAR(160),IR$1))-FIND(CHAR(160),SUBSTITUTE($AB55,\"{\",CHAR(160),IR$1))+1),\"\")","v":""},{"$f":"IFERROR(MID($AB55,FIND(CHAR(160),SUBSTITUTE($AB55,\"{\",CHAR(160),IS$1)),FIND(CHAR(160),SUBSTITUTE($AB55,\"}\",CHAR(160),IS$1))-FIND(CHAR(160),SUBSTITUTE($AB55,\"{\",CHAR(160),IS$1))+1),\"\")","v":""},{"$f":"IFERROR(MID($AB55,FIND(CHAR(160),SUBSTITUTE($AB55,\"{\",CHAR(160),IT$1)),FIND(CHAR(160),SUBSTITUTE($AB55,\"}\",CHAR(160),IT$1))-FIND(CHAR(160),SUBSTITUTE($AB55,\"{\",CHAR(160),IT$1))+1),\"\")","v":""},{"$f":"IFERROR(MID($AB55,FIND(CHAR(160),SUBSTITUTE($AB55,\"{\",CHAR(160),IU$1)),FIND(CHAR(160),SUBSTITUTE($AB55,\"}\",CHAR(160),IU$1))-FIND(CHAR(160),SUBSTITUTE($AB55,\"{\",CHAR(160),IU$1))+1),\"\")","v":""},{"$f":"IFERROR(MID($AB55,FIND(CHAR(160),SUBSTITUTE($AB55,\"{\",CHAR(160),IV$1)),FIND(CHAR(160),SUBSTITUTE($AB55,\"}\",CHAR(160),IV$1))-FIND(CHAR(160),SUBSTITUTE($AB55,\"{\",CHAR(160),IV$1))+1),\"\")","v":""},{"$f":"IFERROR(MID($AB55,FIND(CHAR(160),SUBSTITUTE($AB55,\"{\",CHAR(160),IW$1)),FIND(CHAR(160),SUBSTITUTE($AB55,\"}\",CHAR(160),IW$1))-FIND(CHAR(160),SUBSTITUTE($AB55,\"{\",CHAR(160),IW$1))+1),\"\")","v":""},{"$f":"IFERROR(MID($AB55,FIND(CHAR(160),SUBSTITUTE($AB55,\"{\",CHAR(160),IX$1)),FIND(CHAR(160),SUBSTITUTE($AB55,\"}\",CHAR(160),IX$1))-FIND(CHAR(160),SUBSTITUTE($AB55,\"{\",CHAR(160),IX$1))+1),\"\")","v":""},null,{"$f":"10-COUNTIF(DU55:ED55,\"\")","v":2}]
["C&I HVAC - Electric","VFD: Supply Fan on VAV Packaged or Rooftop HVAC Unit","SFP","2021-07-01","2021-09-09","Calculated","{Measure:Quantity}*if({Motor HP}=5,2425,if({Motor HP}=7.5,2648,if({Motor HP}=10,2871,if({Motor HP}=15,3317,if({Motor HP}=20,3763,if({Motor HP}=25,4209,if({Motor HP}=30,4655,0)))))))",0,"Calculated","{Measure:Quantity}*if({Motor HP}=5,400,if({Motor HP}=7.5,650,if({Motor HP}=10,1400,if({Motor HP}=15,1650,if({Motor HP}=20,1850,if({Motor HP}=25,2000,if({Motor HP}=30,2300,0)))))))",0,"2021-07-01","2022-06-30","Calculated","{Measure:Quantity}*{Motor HP}*2033",null,null,"{Measure:Quantity}*{Motor HP}*.288",null,null,"{Measure:Quantity}*{Factor:WinterCF}*{Motor HP}*.288","{Measure:Quantity}*{Factor:SummerCF}*{Motor HP}*.288",null,null,null,null,null,null,"2021-05-25","2022-06-30",13,0.14599999999999999,0.48699999999999999,0.39,0.30499999999999999,0.216,8.8999999999999996E-2,1,1.1220000000000001,1,0.52,1.6E-2,null,{"$f":"DU56","v":"{Measure:Quantity}"},1,{"$f":"DV56","v":"{Motor HP}"},5,{"$f":"DW56","v":""},null,{"$f":"DX56","v":""},null,{"$f":"DY56","v":""},null,{"$f":"DZ56","v":""},null,{"$f":"EA56","v":""},null,{"$f":"EB56","v":""},null,{"$f":"EC56","v":""},null,{"$f":"ED56","v":""},null,{"$f":"AS56*AU56*2033","v":10165},0,0,{"$f":"AS56*AU56*0.288","v":1.44},0,0,{"$f":"AS56*AF56*AU56*0.288","v":0.21023999999999998},{"$f":"AS56*AG56*AU56*0.288","v":0.70128000000000001},0,0,0,0,0,0,null,"Res","Default DR",{"$f":"Benefits(BL56,BR56,BS56,BT56,BU56,BV56,BW56,BX56,BY56,BZ56,AE56,AH56,AI56,AJ56,AK56,AL56,AM56,AN56,AO56,AP56,CA56,CB56)","v":13744.956792968991},1878.4068826873533,0,0,0,0,0,0,0,{"$f":"SUMPRODUCT(CC56:CK56,--(CC56:CK56>0))","v":15623.363675656345},{"$f":"-SUMPRODUCT(CC56:CK56,--(CC56:CK56<0))","v":0},null,{"$f":"AS56*IF(AU56=5,2425,IF(AU56=7.5,2648,IF(AU56=10,2871,IF(AU56=15,3317,IF(AU56=20,3763,IF(AU56=25,4209,IF(AU56=30,4655,0)))))))","v":2425},null,null,{"$f":"CM56+CO56","v":2425},{"$f":"IF(NetOrGross=\"Net\",(1-AO56+AP56),1)","v":1},{"$f":"(SUMPRODUCT(CC56:CJ56,--(CC56:CJ56>0))+CN56)*CS56/((-SUMPRODUCT(CC56:CJ56,--(CC56:CJ56<0))+MAX(CO56,CV56)+CP56+CQ56)*CS56+IF(FRIncentives=\"Yes\",CV56*(1-CS56),0))","v":6.4426241961469461},1,{"$f":"AS56*IF(AU56=5,400,IF(AU56=7.5,650,IF(AU56=10,1400,IF(AU56=15,1650,IF(AU56=20,1850,IF(AU56=25,2000,IF(AU56=30,2300,0)))))))","v":400},null,"Electric","y",null,{"$f":"IF(F56=\"Manual Entry\",\"Manual\",IF(G56=\"\",0,\"X=\"&SUBSTITUTE(SUBSTITUTE(SUBSTITUTE(SUBSTITUTE(SUBSTITUTE(SUBSTITUTE(SUBSTITUTE(SUBSTITUTE(SUBSTITUTE(SUBSTITUTE(SUBSTITUTE(SUBSTITUTE(G56,$ED56,$ED$2&ROW($ED56)),$EC56,$EC$2&ROW($EC56)),$EB56,$EB$2&ROW($EB56)),$EA56,$EA$2&ROW($EA56)),$DZ56,$DZ$2&ROW($DZ56)),$DY56,$DY$2&ROW($DY56)),$DX56,$DX$2&ROW($DX56)),$DW56,$DW$2&ROW($DW56)),$DV56,$DV$2&ROW($DV56)),$DU56,$DU$2&ROW($DU56)),$DT56,$DT$2&ROW($DT56)),$DS56,$DS$2&ROW($DS56))))","v":"X=AS56*if(AU56=5,2425,if(AU56=7.5,2648,if(AU56=10,2871,if(AU56=15,3317,if(AU56=20,3763,if(AU56=25,4209,if(AU56=30,4655,0)))))))"},{"$f":"IF(I56=\"Manual Entry\",\"Manual\",IF(J56=\"\",0,\"X=\"&SUBSTITUTE(SUBSTITUTE(SUBSTITUTE(SUBSTITUTE(SUBSTITUTE(SUBSTITUTE(SUBSTITUTE(SUBSTITUTE(SUBSTITUTE(SUBSTITUTE(SUBSTITUTE(SUBSTITUTE(J56,$ED56,$ED$2&ROW($ED56)),$EC56,$EC$2&ROW($EC56)),$EB56,$EB$2&ROW($EB56)),$EA56,$EA$2&ROW($EA56)),$DZ56,$DZ$2&ROW($DZ56)),$DY56,$DY$2&ROW($DY56)),$DX56,$DX$2&ROW($DX56)),$DW56,$DW$2&ROW($DW56)),$DV56,$DV$2&ROW($DV56)),$DU56,$DU$2&ROW($DU56)),$DT56,$DT$2&ROW($DT56)),$DS56,$DS$2&ROW($DS56))))","v":"X=AS56*if(AU56=5,400,if(AU56=7.5,650,if(AU56=10,1400,if(AU56=15,1650,if(AU56=20,1850,if(AU56=25,2000,if(AU56=30,2300,0)))))))"},{"$f":"IF(O56=\"\",0,\"X=\"&SUBSTITUTE(SUBSTITUTE(SUBSTITUTE(SUBSTITUTE(SUBSTITUTE(SUBSTITUTE(SUBSTITUTE(SUBSTITUTE(SUBSTITUTE(SUBSTITUTE(SUBSTITUTE(SUBSTITUTE(O56,$ED56,$ED$2&ROW($ED56)),$EC56,$EC$2&ROW($EC56)),$EB56,$EB$2&ROW($EB56)),$EA56,$EA$2&ROW($EA56)),$DZ56,$DZ$2&ROW($DZ56)),$DY56,$DY$2&ROW($DY56)),$DX56,$DX$2&ROW($DX56)),$DW56,$DW$2&ROW($DW56)),$DV56,$DV$2&ROW($DV56)),$DU56,$DU$2&ROW($DU56)),$DT56,$DT$2&ROW($DT56)),$DS56,$DS$2&ROW($DS56)))","v":"X=AS56*AU56*2033"},{"$f":"IF(P56=\"\",0,\"X=\"&SUBSTITUTE(SUBSTITUTE(SUBSTITUTE(SUBSTITUTE(SUBSTITUTE(SUBSTITUTE(SUBSTITUTE(SUBSTITUTE(SUBSTITUTE(SUBSTITUTE(SUBSTITUTE(SUBSTITUTE(P56,$ED56,$ED$2&ROW($ED56)),$EC56,$EC$2&ROW($EC56)),$EB56,$EB$2&ROW($EB56)),$EA56,$EA$2&ROW($EA56)),$DZ56,$DZ$2&ROW($DZ56)),$DY56,$DY$2&ROW($DY56)),$DX56,$DX$2&ROW($DX56)),$DW56,$DW$2&ROW($DW56)),$DV56,$DV$2&ROW($DV56)),$DU56,$DU$2&ROW($DU56)),$DT56,$DT$2&ROW($DT56)),$DS56,$DS$2&ROW($DS56)))","v":0},{"$f":"IF(Q56=\"\",0,\"X=\"&SUBSTITUTE(SUBSTITUTE(SUBSTITUTE(SUBSTITUTE(SUBSTITUTE(SUBSTITUTE(SUBSTITUTE(SUBSTITUTE(SUBSTITUTE(SUBSTITUTE(SUBSTITUTE(SUBSTITUTE(Q56,$ED56,$ED$2&ROW($ED56)),$EC56,$EC$2&ROW($EC56)),$EB56,$EB$2&ROW($EB56)),$EA56,$EA$2&ROW($EA56)),$DZ56,$DZ$2&ROW($DZ56)),$DY56,$DY$2&ROW($DY56)),$DX56,$DX$2&ROW($DX56)),$DW56,$DW$2&ROW($DW56)),$DV56,$DV$2&ROW($DV56)),$DU56,$DU$2&ROW($DU56)),$DT56,$DT$2&ROW($DT56)),$DS56,$DS$2&ROW($DS56)))","v":0},{"$f":"IF(R56=\"\",0,\"X=\"&SUBSTITUTE(SUBSTITUTE(SUBSTITUTE(SUBSTITUTE(SUBSTITUTE(SUBSTITUTE(SUBSTITUTE(SUBSTITUTE(SUBSTITUTE(SUBSTITUTE(SUBSTITUTE(SUBSTITUTE(R56,$ED56,$ED$2&ROW($ED56)),$EC56,$EC$2&ROW($EC56)),$EB56,$EB$2&ROW($EB56)),$EA56,$EA$2&ROW($EA56)),$DZ56,$DZ$2&ROW($DZ56)),$DY56,$DY$2&ROW($DY56)),$DX56,$DX$2&ROW($DX56)),$DW56,$DW$2&ROW($DW56)),$DV56,$DV$2&ROW($DV56)),$DU56,$DU$2&ROW($DU56)),$DT56,$DT$2&ROW($DT56)),$DS56,$DS$2&ROW($DS56)))","v":"X=AS56*AU56*.288"},{"$f":"IF(S56=\"\",0,\"X=\"&SUBSTITUTE(SUBSTITUTE(SUBSTITUTE(SUBSTITUTE(SUBSTITUTE(SUBSTITUTE(SUBSTITUTE(SUBSTITUTE(SUBSTITUTE(SUBSTITUTE(SUBSTITUTE(SUBSTITUTE(S56,$ED56,$ED$2&ROW($ED56)),$EC56,$EC$2&ROW($EC56)),$EB56,$EB$2&ROW($EB56)),$EA56,$EA$2&ROW($EA56)),$DZ56,$DZ$2&ROW($DZ56)),$DY56,$DY$2&ROW($DY56)),$DX56,$DX$2&ROW($DX56)),$DW56,$DW$2&ROW($DW56)),$DV56,$DV$2&ROW($DV56)),$DU56,$DU$2&ROW($DU56)),$DT56,$DT$2&ROW($DT56)),$DS56,$DS$2&ROW($DS56)))","v":0},{"$f":"IF(T56=\"\",0,\"X=\"&SUBSTITUTE(SUBSTITUTE(SUBSTITUTE(SUBSTITUTE(SUBSTITUTE(SUBSTITUTE(SUBSTITUTE(SUBSTITUTE(SUBSTITUTE(SUBSTITUTE(SUBSTITUTE(SUBSTITUTE(T56,$ED56,$ED$2&ROW($ED56)),$EC56,$EC$2&ROW($EC56)),$EB56,$EB$2&ROW($EB56)),$EA56,$EA$2&ROW($EA56)),$DZ56,$DZ$2&ROW($DZ56)),$DY56,$DY$2&ROW($DY56)),$DX56,$DX$2&ROW($DX56)),$DW56,$DW$2&ROW($DW56)),$DV56,$DV$2&ROW($DV56)),$DU56,$DU$2&ROW($DU56)),$DT56,$DT$2&ROW($DT56)),$DS56,$DS$2&ROW($DS56)))","v":0},{"$f":"IF(U56=\"\",0,\"X=\"&SUBSTITUTE(SUBSTITUTE(SUBSTITUTE(SUBSTITUTE(SUBSTITUTE(SUBSTITUTE(SUBSTITUTE(SUBSTITUTE(SUBSTITUTE(SUBSTITUTE(SUBSTITUTE(SUBSTITUTE(U56,$ED56,$ED$2&ROW($ED56)),$EC56,$EC$2&ROW($EC56)),$EB56,$EB$2&ROW($EB56)),$EA56,$EA$2&ROW($EA56)),$DZ56,$DZ$2&ROW($DZ56)),$DY56,$DY$2&ROW($DY56)),$DX56,$DX$2&ROW($DX56)),$DW56,$DW$2&ROW($DW56)),$DV56,$DV$2&ROW($DV56)),$DU56,$DU$2&ROW($DU56)),$DT56,$DT$2&ROW($DT56)),$DS56,$DS$2&ROW($DS56)))","v":"X=AS56*AF56*AU56*.288"},{"$f":"IF(V56=\"\",0,\"X=\"&SUBSTITUTE(SUBSTITUTE(SUBSTITUTE(SUBSTITUTE(SUBSTITUTE(SUBSTITUTE(SUBSTITUTE(SUBSTITUTE(SUBSTITUTE(SUBSTITUTE(SUBSTITUTE(SUBSTITUTE(V56,$ED56,$ED$2&ROW($ED56)),$EC56,$EC$2&ROW($EC56)),$EB56,$EB$2&ROW($EB56)),$EA56,$EA$2&ROW($EA56)),$DZ56,$DZ$2&ROW($DZ56)),$DY56,$DY$2&ROW($DY56)),$DX56,$DX$2&ROW($DX56)),$DW56,$DW$2&ROW($DW56)),$DV56,$DV$2&ROW($DV56)),$DU56,$DU$2&ROW($DU56)),$DT56,$DT$2&ROW($DT56)),$DS56,$DS$2&ROW($DS56)))","v":"X=AS56*AG56*AU56*.288"},{"$f":"IF(W56=\"\",0,\"X=\"&SUBSTITUTE(SUBSTITUTE(SUBSTITUTE(SUBSTITUTE(SUBSTITUTE(SUBSTITUTE(SUBSTITUTE(SUBSTITUTE(SUBSTITUTE(SUBSTITUTE(SUBSTITUTE(SUBSTITUTE(W56,$ED56,$ED$2&ROW($ED56)),$EC56,$EC$2&ROW($EC56)),$EB56,$EB$2&ROW($EB56)),$EA56,$EA$2&ROW($EA56)),$DZ56,$DZ$2&ROW($DZ56)),$DY56,$DY$2&ROW($DY56)),$DX56,$DX$2&ROW($DX56)),$DW56,$DW$2&ROW($DW56)),$DV56,$DV$2&ROW($DV56)),$DU56,$DU$2&ROW($DU56)),$DT56,$DT$2&ROW($DT56)),$DS56,$DS$2&ROW($DS56)))","v":0},{"$f":"IF(X56=\"\",0,\"X=\"&SUBSTITUTE(SUBSTITUTE(SUBSTITUTE(SUBSTITUTE(SUBSTITUTE(SUBSTITUTE(SUBSTITUTE(SUBSTITUTE(SUBSTITUTE(SUBSTITUTE(SUBSTITUTE(SUBSTITUTE(X56,$ED56,$ED$2&ROW($ED56)),$EC56,$EC$2&ROW($EC56)),$EB56,$EB$2&ROW($EB56)),$EA56,$EA$2&ROW($EA56)),$DZ56,$DZ$2&ROW($DZ56)),$DY56,$DY$2&ROW($DY56)),$DX56,$DX$2&ROW($DX56)),$DW56,$DW$2&ROW($DW56)),$DV56,$DV$2&ROW($DV56)),$DU56,$DU$2&ROW($DU56)),$DT56,$DT$2&ROW($DT56)),$DS56,$DS$2&ROW($DS56)))","v":0},{"$f":"IF(Y56=\"\",0,\"X=\"&SUBSTITUTE(SUBSTITUTE(SUBSTITUTE(SUBSTITUTE(SUBSTITUTE(SUBSTITUTE(SUBSTITUTE(SUBSTITUTE(SUBSTITUTE(SUBSTITUTE(SUBSTITUTE(SUBSTITUTE(Y56,$ED56,$ED$2&ROW($ED56)),$EC56,$EC$2&ROW($EC56)),$EB56,$EB$2&ROW($EB56)),$EA56,$EA$2&ROW($EA56)),$DZ56,$DZ$2&ROW($DZ56)),$DY56,$DY$2&ROW($DY56)),$DX56,$DX$2&ROW($DX56)),$DW56,$DW$2&ROW($DW56)),$DV56,$DV$2&ROW($DV56)),$DU56,$DU$2&ROW($DU56)),$DT56,$DT$2&ROW($DT56)),$DS56,$DS$2&ROW($DS56)))","v":0},{"$f":"IF(Z56=\"\",0,\"X=\"&SUBSTITUTE(SUBSTITUTE(SUBSTITUTE(SUBSTITUTE(SUBSTITUTE(SUBSTITUTE(SUBSTITUTE(SUBSTITUTE(SUBSTITUTE(SUBSTITUTE(SUBSTITUTE(SUBSTITUTE(Z56,$ED56,$ED$2&ROW($ED56)),$EC56,$EC$2&ROW($EC56)),$EB56,$EB$2&ROW($EB56)),$EA56,$EA$2&ROW($EA56)),$DZ56,$DZ$2&ROW($DZ56)),$DY56,$DY$2&ROW($DY56)),$DX56,$DX$2&ROW($DX56)),$DW56,$DW$2&ROW($DW56)),$DV56,$DV$2&ROW($DV56)),$DU56,$DU$2&ROW($DU56)),$DT56,$DT$2&ROW($DT56)),$DS56,$DS$2&ROW($DS56)))","v":0},{"$f":"IF(AA56=\"\",0,\"X=\"&SUBSTITUTE(SUBSTITUTE(SUBSTITUTE(SUBSTITUTE(SUBSTITUTE(SUBSTITUTE(SUBSTITUTE(SUBSTITUTE(SUBSTITUTE(SUBSTITUTE(SUBSTITUTE(SUBSTITUTE(AA56,$ED56,$ED$2&ROW($ED56)),$EC56,$EC$2&ROW($EC56)),$EB56,$EB$2&ROW($EB56)),$EA56,$EA$2&ROW($EA56)),$DZ56,$DZ$2&ROW($DZ56)),$DY56,$DY$2&ROW($DY56)),$DX56,$DX$2&ROW($DX56)),$DW56,$DW$2&ROW($DW56)),$DV56,$DV$2&ROW($DV56)),$DU56,$DU$2&ROW($DU56)),$DT56,$DT$2&ROW($DT56)),$DS56,$DS$2&ROW($DS56)))","v":0},{"$f":"IF(AB56=\"\",0,\"X=\"&SUBSTITUTE(SUBSTITUTE(SUBSTITUTE(SUBSTITUTE(SUBSTITUTE(SUBSTITUTE(SUBSTITUTE(SUBSTITUTE(SUBSTITUTE(SUBSTITUTE(SUBSTITUTE(SUBSTITUTE(AB56,$ED56,$ED$2&ROW($ED56)),$EC56,$EC$2&ROW($EC56)),$EB56,$EB$2&ROW($EB56)),$EA56,$EA$2&ROW($EA56)),$DZ56,$DZ$2&ROW($DZ56)),$DY56,$DY$2&ROW($DY56)),$DX56,$DX$2&ROW($DX56)),$DW56,$DW$2&ROW($DW56)),$DV56,$DV$2&ROW($DV56)),$DU56,$DU$2&ROW($DU56)),$DT56,$DT$2&ROW($DT56)),$DS56,$DS$2&ROW($DS56)))","v":0},null,null,"{Factor:WinterCF}","{Factor:SummerCF}",{"$f":"IFERROR(INDEX($EG56:$IV56,MATCH(0,COUNTIF($DR56:DT56,$EG56:$IV56),0)),\"\")","v":"{Measure:Quantity}"},{"$f":"IFERROR(INDEX($EG56:$IV56,MATCH(0,COUNTIF($DR56:DU56,$EG56:$IV56),0)),\"\")","v":"{Motor HP}"},{"$f":"IFERROR(INDEX($EG56:$IV56,MATCH(0,COUNTIF($DR56:DV56,$EG56:$IV56),0)),\"\")","v":""},{"$f":"IFERROR(INDEX($EG56:$IV56,MATCH(0,COUNTIF($DR56:DW56,$EG56:$IV56),0)),\"\")","v":""},{"$f":"IFERROR(INDEX($EG56:$IV56,MATCH(0,COUNTIF($DR56:DX56,$EG56:$IV56),0)),\"\")","v":""},{"$f":"IFERROR(INDEX($EG56:$IV56,MATCH(0,COUNTIF($DR56:DY56,$EG56:$IV56),0)),\"\")","v":""},{"$f":"IFERROR(INDEX($EG56:$IV56,MATCH(0,COUNTIF($DR56:DZ56,$EG56:$IV56),0)),\"\")","v":""},{"$f":"IFERROR(INDEX($EG56:$IV56,MATCH(0,COUNTIF($DR56:EA56,$EG56:$IV56),0)),\"\")","v":""},{"$f":"IFERROR(INDEX($EG56:$IV56,MATCH(0,COUNTIF($DR56:EB56,$EG56:$IV56),0)),\"\")","v":""},{"$f":"IFERROR(INDEX($EG56:$IV56,MATCH(0,COUNTIF($DR56:EC56,$EG56:$IV56),0)),\"\")","v":""},null,null,{"$f":"IFERROR(MID($G56,FIND(CHAR(160),SUBSTITUTE($G56,\"{\",CHAR(160),EG$1)),FIND(CHAR(160),SUBSTITUTE($G56,\"}\",CHAR(160),EG$1))-FIND(CHAR(160),SUBSTITUTE($G56,\"{\",CHAR(160),EG$1))+1),\"\")","v":"{Measure:Quantity}"},{"$f":"IFERROR(MID($G56,FIND(CHAR(160),SUBSTITUTE($G56,\"{\",CHAR(160),EH$1)),FIND(CHAR(160),SUBSTITUTE($G56,\"}\",CHAR(160),EH$1))-FIND(CHAR(160),SUBSTITUTE($G56,\"{\",CHAR(160),EH$1))+1),\"\")","v":"{Motor HP}"},{"$f":"IFERROR(MID($G56,FIND(CHAR(160),SUBSTITUTE($G56,\"{\",CHAR(160),EI$1)),FIND(CHAR(160),SUBSTITUTE($G56,\"}\",CHAR(160),EI$1))-FIND(CHAR(160),SUBSTITUTE($G56,\"{\",CHAR(160),EI$1))+1),\"\")","v":"{Motor HP}"},{"$f":"IFERROR(MID($G56,FIND(CHAR(160),SUBSTITUTE($G56,\"{\",CHAR(160),EJ$1)),FIND(CHAR(160),SUBSTITUTE($G56,\"}\",CHAR(160),EJ$1))-FIND(CHAR(160),SUBSTITUTE($G56,\"{\",CHAR(160),EJ$1))+1),\"\")","v":"{Motor HP}"},{"$f":"IFERROR(MID($G56,FIND(CHAR(160),SUBSTITUTE($G56,\"{\",CHAR(160),EK$1)),FIND(CHAR(160),SUBSTITUTE($G56,\"}\",CHAR(160),EK$1))-FIND(CHAR(160),SUBSTITUTE($G56,\"{\",CHAR(160),EK$1))+1),\"\")","v":"{Motor HP}"},{"$f":"IFERROR(MID($G56,FIND(CHAR(160),SUBSTITUTE($G56,\"{\",CHAR(160),EL$1)),FIND(CHAR(160),SUBSTITUTE($G56,\"}\",CHAR(160),EL$1))-FIND(CHAR(160),SUBSTITUTE($G56,\"{\",CHAR(160),EL$1))+1),\"\")","v":"{Motor HP}"},{"$f":"IFERROR(MID($G56,FIND(CHAR(160),SUBSTITUTE($G56,\"{\",CHAR(160),EM$1)),FIND(CHAR(160),SUBSTITUTE($G56,\"}\",CHAR(160),EM$1))-FIND(CHAR(160),SUBSTITUTE($G56,\"{\",CHAR(160),EM$1))+1),\"\")","v":"{Motor HP}"},{"$f":"IFERROR(MID($G56,FIND(CHAR(160),SUBSTITUTE($G56,\"{\",CHAR(160),EN$1)),FIND(CHAR(160),SUBSTITUTE($G56,\"}\",CHAR(160),EN$1))-FIND(CHAR(160),SUBSTITUTE($G56,\"{\",CHAR(160),EN$1))+1),\"\")","v":"{Motor HP}"},{"$f":"IFERROR(MID($G56,FIND(CHAR(160),SUBSTITUTE($G56,\"{\",CHAR(160),EO$1)),FIND(CHAR(160),SUBSTITUTE($G56,\"}\",CHAR(160),EO$1))-FIND(CHAR(160),SUBSTITUTE($G56,\"{\",CHAR(160),EO$1))+1),\"\")","v":""},{"$f":"IFERROR(MID($G56,FIND(CHAR(160),SUBSTITUTE($G56,\"{\",CHAR(160),EP$1)),FIND(CHAR(160),SUBSTITUTE($G56,\"}\",CHAR(160),EP$1))-FIND(CHAR(160),SUBSTITUTE($G56,\"{\",CHAR(160),EP$1))+1),\"\")","v":""},{"$f":"IFERROR(MID($J56,FIND(CHAR(160),SUBSTITUTE($J56,\"{\",CHAR(160),EQ$1)),FIND(CHAR(160),SUBSTITUTE($J56,\"}\",CHAR(160),EQ$1))-FIND(CHAR(160),SUBSTITUTE($J56,\"{\",CHAR(160),EQ$1))+1),\"\")","v":"{Measure:Quantity}"},{"$f":"IFERROR(MID($J56,FIND(CHAR(160),SUBSTITUTE($J56,\"{\",CHAR(160),ER$1)),FIND(CHAR(160),SUBSTITUTE($J56,\"}\",CHAR(160),ER$1))-FIND(CHAR(160),SUBSTITUTE($J56,\"{\",CHAR(160),ER$1))+1),\"\")","v":"{Motor HP}"},{"$f":"IFERROR(MID($J56,FIND(CHAR(160),SUBSTITUTE($J56,\"{\",CHAR(160),ES$1)),FIND(CHAR(160),SUBSTITUTE($J56,\"}\",CHAR(160),ES$1))-FIND(CHAR(160),SUBSTITUTE($J56,\"{\",CHAR(160),ES$1))+1),\"\")","v":"{Motor HP}"},{"$f":"IFERROR(MID($J56,FIND(CHAR(160),SUBSTITUTE($J56,\"{\",CHAR(160),ET$1)),FIND(CHAR(160),SUBSTITUTE($J56,\"}\",CHAR(160),ET$1))-FIND(CHAR(160),SUBSTITUTE($J56,\"{\",CHAR(160),ET$1))+1),\"\")","v":"{Motor HP}"},{"$f":"IFERROR(MID($J56,FIND(CHAR(160),SUBSTITUTE($J56,\"{\",CHAR(160),EU$1)),FIND(CHAR(160),SUBSTITUTE($J56,\"}\",CHAR(160),EU$1))-FIND(CHAR(160),SUBSTITUTE($J56,\"{\",CHAR(160),EU$1))+1),\"\")","v":"{Motor HP}"},{"$f":"IFERROR(MID($J56,FIND(CHAR(160),SUBSTITUTE($J56,\"{\",CHAR(160),EV$1)),FIND(CHAR(160),SUBSTITUTE($J56,\"}\",CHAR(160),EV$1))-FIND(CHAR(160),SUBSTITUTE($J56,\"{\",CHAR(160),EV$1))+1),\"\")","v":"{Motor HP}"},{"$f":"IFERROR(MID($J56,FIND(CHAR(160),SUBSTITUTE($J56,\"{\",CHAR(160),EW$1)),FIND(CHAR(160),SUBSTITUTE($J56,\"}\",CHAR(160),EW$1))-FIND(CHAR(160),SUBSTITUTE($J56,\"{\",CHAR(160),EW$1))+1),\"\")","v":"{Motor HP}"},{"$f":"IFERROR(MID($J56,FIND(CHAR(160),SUBSTITUTE($J56,\"{\",CHAR(160),EX$1)),FIND(CHAR(160),SUBSTITUTE($J56,\"}\",CHAR(160),EX$1))-FIND(CHAR(160),SUBSTITUTE($J56,\"{\",CHAR(160),EX$1))+1),\"\")","v":"{Motor HP}"},{"$f":"IFERROR(MID($J56,FIND(CHAR(160),SUBSTITUTE($J56,\"{\",CHAR(160),EY$1)),FIND(CHAR(160),SUBSTITUTE($J56,\"}\",CHAR(160),EY$1))-FIND(CHAR(160),SUBSTITUTE($J56,\"{\",CHAR(160),EY$1))+1),\"\")","v":""},{"$f":"IFERROR(MID($J56,FIND(CHAR(160),SUBSTITUTE($J56,\"{\",CHAR(160),EZ$1)),FIND(CHAR(160),SUBSTITUTE($J56,\"}\",CHAR(160),EZ$1))-FIND(CHAR(160),SUBSTITUTE($J56,\"{\",CHAR(160),EZ$1))+1),\"\")","v":""},{"$f":"IFERROR(MID($J56,FIND(CHAR(160),SUBSTITUTE($J56,\"{\",CHAR(160),FA$1)),FIND(CHAR(160),SUBSTITUTE($J56,\"}\",CHAR(160),FA$1))-FIND(CHAR(160),SUBSTITUTE($J56,\"{\",CHAR(160),FA$1))+1),\"\")","v":"{Measure:Quantity}"},{"$f":"IFERROR(MID($J56,FIND(CHAR(160),SUBSTITUTE($J56,\"{\",CHAR(160),FB$1)),FIND(CHAR(160),SUBSTITUTE($J56,\"}\",CHAR(160),FB$1))-FIND(CHAR(160),SUBSTITUTE($J56,\"{\",CHAR(160),FB$1))+1),\"\")","v":"{Motor HP}"},{"$f":"IFERROR(MID($O56,FIND(CHAR(160),SUBSTITUTE($O56,\"{\",CHAR(160),FC$1)),FIND(CHAR(160),SUBSTITUTE($O56,\"}\",CHAR(160),FC$1))-FIND(CHAR(160),SUBSTITUTE($O56,\"{\",CHAR(160),FC$1))+1),\"\")","v":""},{"$f":"IFERROR(MID($O56,FIND(CHAR(160),SUBSTITUTE($O56,\"{\",CHAR(160),FD$1)),FIND(CHAR(160),SUBSTITUTE($O56,\"}\",CHAR(160),FD$1))-FIND(CHAR(160),SUBSTITUTE($O56,\"{\",CHAR(160),FD$1))+1),\"\")","v":""},{"$f":"IFERROR(MID($O56,FIND(CHAR(160),SUBSTITUTE($O56,\"{\",CHAR(160),FE$1)),FIND(CHAR(160),SUBSTITUTE($O56,\"}\",CHAR(160),FE$1))-FIND(CHAR(160),SUBSTITUTE($O56,\"{\",CHAR(160),FE$1))+1),\"\")","v":""},{"$f":"IFERROR(MID($O56,FIND(CHAR(160),SUBSTITUTE($O56,\"{\",CHAR(160),FF$1)),FIND(CHAR(160),SUBSTITUTE($O56,\"}\",CHAR(160),FF$1))-FIND(CHAR(160),SUBSTITUTE($O56,\"{\",CHAR(160),FF$1))+1),\"\")","v":""},{"$f":"IFERROR(MID($O56,FIND(CHAR(160),SUBSTITUTE($O56,\"{\",CHAR(160),FG$1)),FIND(CHAR(160),SUBSTITUTE($O56,\"}\",CHAR(160),FG$1))-FIND(CHAR(160),SUBSTITUTE($O56,\"{\",CHAR(160),FG$1))+1),\"\")","v":""},{"$f":"IFERROR(MID($O56,FIND(CHAR(160),SUBSTITUTE($O56,\"{\",CHAR(160),FH$1)),FIND(CHAR(160),SUBSTITUTE($O56,\"}\",CHAR(160),FH$1))-FIND(CHAR(160),SUBSTITUTE($O56,\"{\",CHAR(160),FH$1))+1),\"\")","v":""},{"$f":"IFERROR(MID($O56,FIND(CHAR(160),SUBSTITUTE($O56,\"{\",CHAR(160),FI$1)),FIND(CHAR(160),SUBSTITUTE($O56,\"}\",CHAR(160),FI$1))-FIND(CHAR(160),SUBSTITUTE($O56,\"{\",CHAR(160),FI$1))+1),\"\")","v":""},{"$f":"IFERROR(MID($O56,FIND(CHAR(160),SUBSTITUTE($O56,\"{\",CHAR(160),FJ$1)),FIND(CHAR(160),SUBSTITUTE($O56,\"}\",CHAR(160),FJ$1))-FIND(CHAR(160),SUBSTITUTE($O56,\"{\",CHAR(160),FJ$1))+1),\"\")","v":""},{"$f":"IFERROR(MID($O56,FIND(CHAR(160),SUBSTITUTE($O56,\"{\",CHAR(160),FK$1)),FIND(CHAR(160),SUBSTITUTE($O56,\"}\",CHAR(160),FK$1))-FIND(CHAR(160),SUBSTITUTE($O56,\"{\",CHAR(160),FK$1))+1),\"\")","v":"{Measure:Quantity}"},{"$f":"IFERROR(MID($O56,FIND(CHAR(160),SUBSTITUTE($O56,\"{\",CHAR(160),FL$1)),FIND(CHAR(160),SUBSTITUTE($O56,\"}\",CHAR(160),FL$1))-FIND(CHAR(160),SUBSTITUTE($O56,\"{\",CHAR(160),FL$1))+1),\"\")","v":"{Motor HP}"},{"$f":"IFERROR(MID($R56,FIND(CHAR(160),SUBSTITUTE($R56,\"{\",CHAR(160),FM$1)),FIND(CHAR(160),SUBSTITUTE($R56,\"}\",CHAR(160),FM$1))-FIND(CHAR(160),SUBSTITUTE($R56,\"{\",CHAR(160),FM$1))+1),\"\")","v":""},{"$f":"IFERROR(MID($R56,FIND(CHAR(160),SUBSTITUTE($R56,\"{\",CHAR(160),FN$1)),FIND(CHAR(160),SUBSTITUTE($R56,\"}\",CHAR(160),FN$1))-FIND(CHAR(160),SUBSTITUTE($R56,\"{\",CHAR(160),FN$1))+1),\"\")","v":""},{"$f":"IFERROR(MID($R56,FIND(CHAR(160),SUBSTITUTE($R56,\"{\",CHAR(160),FO$1)),FIND(CHAR(160),SUBSTITUTE($R56,\"}\",CHAR(160),FO$1))-FIND(CHAR(160),SUBSTITUTE($R56,\"{\",CHAR(160),FO$1))+1),\"\")","v":""},{"$f":"IFERROR(MID($R56,FIND(CHAR(160),SUBSTITUTE($R56,\"{\",CHAR(160),FP$1)),FIND(CHAR(160),SUBSTITUTE($R56,\"}\",CHAR(160),FP$1))-FIND(CHAR(160),SUBSTITUTE($R56,\"{\",CHAR(160),FP$1))+1),\"\")","v":""},{"$f":"IFERROR(MID($R56,FIND(CHAR(160),SUBSTITUTE($R56,\"{\",CHAR(160),FQ$1)),FIND(CHAR(160),SUBSTITUTE($R56,\"}\",CHAR(160),FQ$1))-FIND(CHAR(160),SUBSTITUTE($R56,\"{\",CHAR(160),FQ$1))+1),\"\")","v":""},{"$f":"IFERROR(MID($R56,FIND(CHAR(160),SUBSTITUTE($R56,\"{\",CHAR(160),FR$1)),FIND(CHAR(160),SUBSTITUTE($R56,\"}\",CHAR(160),FR$1))-FIND(CHAR(160),SUBSTITUTE($R56,\"{\",CHAR(160),FR$1))+1),\"\")","v":""},{"$f":"IFERROR(MID($R56,FIND(CHAR(160),SUBSTITUTE($R56,\"{\",CHAR(160),FS$1)),FIND(CHAR(160),SUBSTITUTE($R56,\"}\",CHAR(160),FS$1))-FIND(CHAR(160),SUBSTITUTE($R56,\"{\",CHAR(160),FS$1))+1),\"\")","v":""},{"$f":"IFERROR(MID($R56,FIND(CHAR(160),SUBSTITUTE($R56,\"{\",CHAR(160),FT$1)),FIND(CHAR(160),SUBSTITUTE($R56,\"}\",CHAR(160),FT$1))-FIND(CHAR(160),SUBSTITUTE($R56,\"{\",CHAR(160),FT$1))+1),\"\")","v":""},{"$f":"IFERROR(MID($R56,FIND(CHAR(160),SUBSTITUTE($R56,\"{\",CHAR(160),FU$1)),FIND(CHAR(160),SUBSTITUTE($R56,\"}\",CHAR(160),FU$1))-FIND(CHAR(160),SUBSTITUTE($R56,\"{\",CHAR(160),FU$1))+1),\"\")","v":"{Measure:Quantity}"},{"$f":"IFERROR(MID($R56,FIND(CHAR(160),SUBSTITUTE($R56,\"{\",CHAR(160),FV$1)),FIND(CHAR(160),SUBSTITUTE($R56,\"}\",CHAR(160),FV$1))-FIND(CHAR(160),SUBSTITUTE($R56,\"{\",CHAR(160),FV$1))+1),\"\")","v":"{Motor HP}"},{"$f":"IFERROR(MID($U56,FIND(CHAR(160),SUBSTITUTE($U56,\"{\",CHAR(160),FW$1)),FIND(CHAR(160),SUBSTITUTE($U56,\"}\",CHAR(160),FW$1))-FIND(CHAR(160),SUBSTITUTE($U56,\"{\",CHAR(160),FW$1))+1),\"\")","v":"{Motor HP}"},{"$f":"IFERROR(MID($U56,FIND(CHAR(160),SUBSTITUTE($U56,\"{\",CHAR(160),FX$1)),FIND(CHAR(160),SUBSTITUTE($U56,\"}\",CHAR(160),FX$1))-FIND(CHAR(160),SUBSTITUTE($U56,\"{\",CHAR(160),FX$1))+1),\"\")","v":""},{"$f":"IFERROR(MID($U56,FIND(CHAR(160),SUBSTITUTE($U56,\"{\",CHAR(160),FY$1)),FIND(CHAR(160),SUBSTITUTE($U56,\"}\",CHAR(160),FY$1))-FIND(CHAR(160),SUBSTITUTE($U56,\"{\",CHAR(160),FY$1))+1),\"\")","v":""},{"$f":"IFERROR(MID($U56,FIND(CHAR(160),SUBSTITUTE($U56,\"{\",CHAR(160),FZ$1)),FIND(CHAR(160),SUBSTITUTE($U56,\"}\",CHAR(160),FZ$1))-FIND(CHAR(160),SUBSTITUTE($U56,\"{\",CHAR(160),FZ$1))+1),\"\")","v":""},{"$f":"IFERROR(MID($U56,FIND(CHAR(160),SUBSTITUTE($U56,\"{\",CHAR(160),GA$1)),FIND(CHAR(160),SUBSTITUTE($U56,\"}\",CHAR(160),GA$1))-FIND(CHAR(160),SUBSTITUTE($U56,\"{\",CHAR(160),GA$1))+1),\"\")","v":""},{"$f":"IFERROR(MID($U56,FIND(CHAR(160),SUBSTITUTE($U56,\"{\",CHAR(160),GB$1)),FIND(CHAR(160),SUBSTITUTE($U56,\"}\",CHAR(160),GB$1))-FIND(CHAR(160),SUBSTITUTE($U56,\"{\",CHAR(160),GB$1))+1),\"\")","v":""},{"$f":"IFERROR(MID($U56,FIND(CHAR(160),SUBSTITUTE($U56,\"{\",CHAR(160),GC$1)),FIND(CHAR(160),SUBSTITUTE($U56,\"}\",CHAR(160),GC$1))-FIND(CHAR(160),SUBSTITUTE($U56,\"{\",CHAR(160),GC$1))+1),\"\")","v":""},{"$f":"IFERROR(MID($U56,FIND(CHAR(160),SUBSTITUTE($U56,\"{\",CHAR(160),GD$1)),FIND(CHAR(160),SUBSTITUTE($U56,\"}\",CHAR(160),GD$1))-FIND(CHAR(160),SUBSTITUTE($U56,\"{\",CHAR(160),GD$1))+1),\"\")","v":""},{"$f":"IFERROR(MID($U56,FIND(CHAR(160),SUBSTITUTE($U56,\"{\",CHAR(160),GE$1)),FIND(CHAR(160),SUBSTITUTE($U56,\"}\",CHAR(160),GE$1))-FIND(CHAR(160),SUBSTITUTE($U56,\"{\",CHAR(160),GE$1))+1),\"\")","v":"{Measure:Quantity}"},{"$f":"IFERROR(MID($U56,FIND(CHAR(160),SUBSTITUTE($U56,\"{\",CHAR(160),GF$1)),FIND(CHAR(160),SUBSTITUTE($U56,\"}\",CHAR(160),GF$1))-FIND(CHAR(160),SUBSTITUTE($U56,\"{\",CHAR(160),GF$1))+1),\"\")","v":"{Factor:WinterCF}"},{"$f":"IFERROR(MID($V56,FIND(CHAR(160),SUBSTITUTE($V56,\"{\",CHAR(160),GG$1)),FIND(CHAR(160),SUBSTITUTE($V56,\"}\",CHAR(160),GG$1))-FIND(CHAR(160),SUBSTITUTE($V56,\"{\",CHAR(160),GG$1))+1),\"\")","v":"{Motor HP}"},{"$f":"IFERROR(MID($V56,FIND(CHAR(160),SUBSTITUTE($V56,\"{\",CHAR(160),GH$1)),FIND(CHAR(160),SUBSTITUTE($V56,\"}\",CHAR(160),GH$1))-FIND(CHAR(160),SUBSTITUTE($V56,\"{\",CHAR(160),GH$1))+1),\"\")","v":""},{"$f":"IFERROR(MID($V56,FIND(CHAR(160),SUBSTITUTE($V56,\"{\",CHAR(160),GI$1)),FIND(CHAR(160),SUBSTITUTE($V56,\"}\",CHAR(160),GI$1))-FIND(CHAR(160),SUBSTITUTE($V56,\"{\",CHAR(160),GI$1))+1),\"\")","v":""},{"$f":"IFERROR(MID($V56,FIND(CHAR(160),SUBSTITUTE($V56,\"{\",CHAR(160),GJ$1)),FIND(CHAR(160),SUBSTITUTE($V56,\"}\",CHAR(160),GJ$1))-FIND(CHAR(160),SUBSTITUTE($V56,\"{\",CHAR(160),GJ$1))+1),\"\")","v":""},{"$f":"IFERROR(MID($V56,FIND(CHAR(160),SUBSTITUTE($V56,\"{\",CHAR(160),GK$1)),FIND(CHAR(160),SUBSTITUTE($V56,\"}\",CHAR(160),GK$1))-FIND(CHAR(160),SUBSTITUTE($V56,\"{\",CHAR(160),GK$1))+1),\"\")","v":""},{"$f":"IFERROR(MID($V56,FIND(CHAR(160),SUBSTITUTE($V56,\"{\",CHAR(160),GL$1)),FIND(CHAR(160),SUBSTITUTE($V56,\"}\",CHAR(160),GL$1))-FIND(CHAR(160),SUBSTITUTE($V56,\"{\",CHAR(160),GL$1))+1),\"\")","v":""},{"$f":"IFERROR(MID($V56,FIND(CHAR(160),SUBSTITUTE($V56,\"{\",CHAR(160),GM$1)),FIND(CHAR(160),SUBSTITUTE($V56,\"}\",CHAR(160),GM$1))-FIND(CHAR(160),SUBSTITUTE($V56,\"{\",CHAR(160),GM$1))+1),\"\")","v":""},{"$f":"IFERROR(MID($V56,FIND(CHAR(160),SUBSTITUTE($V56,\"{\",CHAR(160),GN$1)),FIND(CHAR(160),SUBSTITUTE($V56,\"}\",CHAR(160),GN$1))-FIND(CHAR(160),SUBSTITUTE($V56,\"{\",CHAR(160),GN$1))+1),\"\")","v":""},{"$f":"IFERROR(MID($V56,FIND(CHAR(160),SUBSTITUTE($V56,\"{\",CHAR(160),GO$1)),FIND(CHAR(160),SUBSTITUTE($V56,\"}\",CHAR(160),GO$1))-FIND(CHAR(160),SUBSTITUTE($V56,\"{\",CHAR(160),GO$1))+1),\"\")","v":"{Measure:Quantity}"},{"$f":"IFERROR(MID($V56,FIND(CHAR(160),SUBSTITUTE($V56,\"{\",CHAR(160),GP$1)),FIND(CHAR(160),SUBSTITUTE($V56,\"}\",CHAR(160),GP$1))-FIND(CHAR(160),SUBSTITUTE($V56,\"{\",CHAR(160),GP$1))+1),\"\")","v":"{Factor:SummerCF}"},{"$f":"IFERROR(MID($W56,FIND(CHAR(160),SUBSTITUTE($W56,\"{\",CHAR(160),GQ$1)),FIND(CHAR(160),SUBSTITUTE($W56,\"}\",CHAR(160),GQ$1))-FIND(CHAR(160),SUBSTITUTE($W56,\"{\",CHAR(160),GQ$1))+1),\"\")","v":""},{"$f":"IFERROR(MID($W56,FIND(CHAR(160),SUBSTITUTE($W56,\"{\",CHAR(160),GR$1)),FIND(CHAR(160),SUBSTITUTE($W56,\"}\",CHAR(160),GR$1))-FIND(CHAR(160),SUBSTITUTE($W56,\"{\",CHAR(160),GR$1))+1),\"\")","v":""},{"$f":"IFERROR(MID($W56,FIND(CHAR(160),SUBSTITUTE($W56,\"{\",CHAR(160),GS$1)),FIND(CHAR(160),SUBSTITUTE($W56,\"}\",CHAR(160),GS$1))-FIND(CHAR(160),SUBSTITUTE($W56,\"{\",CHAR(160),GS$1))+1),\"\")","v":""},{"$f":"IFERROR(MID($W56,FIND(CHAR(160),SUBSTITUTE($W56,\"{\",CHAR(160),GT$1)),FIND(CHAR(160),SUBSTITUTE($W56,\"}\",CHAR(160),GT$1))-FIND(CHAR(160),SUBSTITUTE($W56,\"{\",CHAR(160),GT$1))+1),\"\")","v":""},{"$f":"IFERROR(MID($W56,FIND(CHAR(160),SUBSTITUTE($W56,\"{\",CHAR(160),GU$1)),FIND(CHAR(160),SUBSTITUTE($W56,\"}\",CHAR(160),GU$1))-FIND(CHAR(160),SUBSTITUTE($W56,\"{\",CHAR(160),GU$1))+1),\"\")","v":""},{"$f":"IFERROR(MID($W56,FIND(CHAR(160),SUBSTITUTE($W56,\"{\",CHAR(160),GV$1)),FIND(CHAR(160),SUBSTITUTE($W56,\"}\",CHAR(160),GV$1))-FIND(CHAR(160),SUBSTITUTE($W56,\"{\",CHAR(160),GV$1))+1),\"\")","v":""},{"$f":"IFERROR(MID($W56,FIND(CHAR(160),SUBSTITUTE($W56,\"{\",CHAR(160),GW$1)),FIND(CHAR(160),SUBSTITUTE($W56,\"}\",CHAR(160),GW$1))-FIND(CHAR(160),SUBSTITUTE($W56,\"{\",CHAR(160),GW$1))+1),\"\")","v":""},{"$f":"IFERROR(MID($W56,FIND(CHAR(160),SUBSTITUTE($W56,\"{\",CHAR(160),GX$1)),FIND(CHAR(160),SUBSTITUTE($W56,\"}\",CHAR(160),GX$1))-FIND(CHAR(160),SUBSTITUTE($W56,\"{\",CHAR(160),GX$1))+1),\"\")","v":""},{"$f":"IFERROR(MID($W56,FIND(CHAR(160),SUBSTITUTE($W56,\"{\",CHAR(160),GY$1)),FIND(CHAR(160),SUBSTITUTE($W56,\"}\",CHAR(160),GY$1))-FIND(CHAR(160),SUBSTITUTE($W56,\"{\",CHAR(160),GY$1))+1),\"\")","v":""},{"$f":"IFERROR(MID($W56,FIND(CHAR(160),SUBSTITUTE($W56,\"{\",CHAR(160),GZ$1)),FIND(CHAR(160),SUBSTITUTE($W56,\"}\",CHAR(160),GZ$1))-FIND(CHAR(160),SUBSTITUTE($W56,\"{\",CHAR(160),GZ$1))+1),\"\")","v":""},{"$f":"IFERROR(MID($X56,FIND(CHAR(160),SUBSTITUTE($X56,\"{\",CHAR(160),HA$1)),FIND(CHAR(160),SUBSTITUTE($X56,\"}\",CHAR(160),HA$1))-FIND(CHAR(160),SUBSTITUTE($X56,\"{\",CHAR(160),HA$1))+1),\"\")","v":""},{"$f":"IFERROR(MID($X56,FIND(CHAR(160),SUBSTITUTE($X56,\"{\",CHAR(160),HB$1)),FIND(CHAR(160),SUBSTITUTE($X56,\"}\",CHAR(160),HB$1))-FIND(CHAR(160),SUBSTITUTE($X56,\"{\",CHAR(160),HB$1))+1),\"\")","v":""},{"$f":"IFERROR(MID($X56,FIND(CHAR(160),SUBSTITUTE($X56,\"{\",CHAR(160),HC$1)),FIND(CHAR(160),SUBSTITUTE($X56,\"}\",CHAR(160),HC$1))-FIND(CHAR(160),SUBSTITUTE($X56,\"{\",CHAR(160),HC$1))+1),\"\")","v":""},{"$f":"IFERROR(MID($X56,FIND(CHAR(160),SUBSTITUTE($X56,\"{\",CHAR(160),HD$1)),FIND(CHAR(160),SUBSTITUTE($X56,\"}\",CHAR(160),HD$1))-FIND(CHAR(160),SUBSTITUTE($X56,\"{\",CHAR(160),HD$1))+1),\"\")","v":""},{"$f":"IFERROR(MID($X56,FIND(CHAR(160),SUBSTITUTE($X56,\"{\",CHAR(160),HE$1)),FIND(CHAR(160),SUBSTITUTE($X56,\"}\",CHAR(160),HE$1))-FIND(CHAR(160),SUBSTITUTE($X56,\"{\",CHAR(160),HE$1))+1),\"\")","v":""},{"$f":"IFERROR(MID($X56,FIND(CHAR(160),SUBSTITUTE($X56,\"{\",CHAR(160),HF$1)),FIND(CHAR(160),SUBSTITUTE($X56,\"}\",CHAR(160),HF$1))-FIND(CHAR(160),SUBSTITUTE($X56,\"{\",CHAR(160),HF$1))+1),\"\")","v":""},{"$f":"IFERROR(MID($X56,FIND(CHAR(160),SUBSTITUTE($X56,\"{\",CHAR(160),HG$1)),FIND(CHAR(160),SUBSTITUTE($X56,\"}\",CHAR(160),HG$1))-FIND(CHAR(160),SUBSTITUTE($X56,\"{\",CHAR(160),HG$1))+1),\"\")","v":""},{"$f":"IFERROR(MID($X56,FIND(CHAR(160),SUBSTITUTE($X56,\"{\",CHAR(160),HH$1)),FIND(CHAR(160),SUBSTITUTE($X56,\"}\",CHAR(160),HH$1))-FIND(CHAR(160),SUBSTITUTE($X56,\"{\",CHAR(160),HH$1))+1),\"\")","v":""},{"$f":"IFERROR(MID($X56,FIND(CHAR(160),SUBSTITUTE($X56,\"{\",CHAR(160),HI$1)),FIND(CHAR(160),SUBSTITUTE($X56,\"}\",CHAR(160),HI$1))-FIND(CHAR(160),SUBSTITUTE($X56,\"{\",CHAR(160),HI$1))+1),\"\")","v":""},{"$f":"IFERROR(MID($X56,FIND(CHAR(160),SUBSTITUTE($X56,\"{\",CHAR(160),HJ$1)),FIND(CHAR(160),SUBSTITUTE($X56,\"}\",CHAR(160),HJ$1))-FIND(CHAR(160),SUBSTITUTE($X56,\"{\",CHAR(160),HJ$1))+1),\"\")","v":""},{"$f":"IFERROR(MID($Y56,FIND(CHAR(160),SUBSTITUTE($Y56,\"{\",CHAR(160),HK$1)),FIND(CHAR(160),SUBSTITUTE($Y56,\"}\",CHAR(160),HK$1))-FIND(CHAR(160),SUBSTITUTE($Y56,\"{\",CHAR(160),HK$1))+1),\"\")","v":""},{"$f":"IFERROR(MID($Y56,FIND(CHAR(160),SUBSTITUTE($Y56,\"{\",CHAR(160),HL$1)),FIND(CHAR(160),SUBSTITUTE($Y56,\"}\",CHAR(160),HL$1))-FIND(CHAR(160),SUBSTITUTE($Y56,\"{\",CHAR(160),HL$1))+1),\"\")","v":""},{"$f":"IFERROR(MID($Y56,FIND(CHAR(160),SUBSTITUTE($Y56,\"{\",CHAR(160),HM$1)),FIND(CHAR(160),SUBSTITUTE($Y56,\"}\",CHAR(160),HM$1))-FIND(CHAR(160),SUBSTITUTE($Y56,\"{\",CHAR(160),HM$1))+1),\"\")","v":""},{"$f":"IFERROR(MID($Y56,FIND(CHAR(160),SUBSTITUTE($Y56,\"{\",CHAR(160),HN$1)),FIND(CHAR(160),SUBSTITUTE($Y56,\"}\",CHAR(160),HN$1))-FIND(CHAR(160),SUBSTITUTE($Y56,\"{\",CHAR(160),HN$1))+1),\"\")","v":""},{"$f":"IFERROR(MID($Y56,FIND(CHAR(160),SUBSTITUTE($Y56,\"{\",CHAR(160),HO$1)),FIND(CHAR(160),SUBSTITUTE($Y56,\"}\",CHAR(160),HO$1))-FIND(CHAR(160),SUBSTITUTE($Y56,\"{\",CHAR(160),HO$1))+1),\"\")","v":""},{"$f":"IFERROR(MID($Y56,FIND(CHAR(160),SUBSTITUTE($Y56,\"{\",CHAR(160),HP$1)),FIND(CHAR(160),SUBSTITUTE($Y56,\"}\",CHAR(160),HP$1))-FIND(CHAR(160),SUBSTITUTE($Y56,\"{\",CHAR(160),HP$1))+1),\"\")","v":""},{"$f":"IFERROR(MID($Y56,FIND(CHAR(160),SUBSTITUTE($Y56,\"{\",CHAR(160),HQ$1)),FIND(CHAR(160),SUBSTITUTE($Y56,\"}\",CHAR(160),HQ$1))-FIND(CHAR(160),SUBSTITUTE($Y56,\"{\",CHAR(160),HQ$1))+1),\"\")","v":""},{"$f":"IFERROR(MID($Y56,FIND(CHAR(160),SUBSTITUTE($Y56,\"{\",CHAR(160),HR$1)),FIND(CHAR(160),SUBSTITUTE($Y56,\"}\",CHAR(160),HR$1))-FIND(CHAR(160),SUBSTITUTE($Y56,\"{\",CHAR(160),HR$1))+1),\"\")","v":""},{"$f":"IFERROR(MID($Y56,FIND(CHAR(160),SUBSTITUTE($Y56,\"{\",CHAR(160),HS$1)),FIND(CHAR(160),SUBSTITUTE($Y56,\"}\",CHAR(160),HS$1))-FIND(CHAR(160),SUBSTITUTE($Y56,\"{\",CHAR(160),HS$1))+1),\"\")","v":""},{"$f":"IFERROR(MID($Y56,FIND(CHAR(160),SUBSTITUTE($Y56,\"{\",CHAR(160),HT$1)),FIND(CHAR(160),SUBSTITUTE($Y56,\"}\",CHAR(160),HT$1))-FIND(CHAR(160),SUBSTITUTE($Y56,\"{\",CHAR(160),HT$1))+1),\"\")","v":""},{"$f":"IFERROR(MID($Z56,FIND(CHAR(160),SUBSTITUTE($Z56,\"{\",CHAR(160),HU$1)),FIND(CHAR(160),SUBSTITUTE($Z56,\"}\",CHAR(160),HU$1))-FIND(CHAR(160),SUBSTITUTE($Z56,\"{\",CHAR(160),HU$1))+1),\"\")","v":""},{"$f":"IFERROR(MID($Z56,FIND(CHAR(160),SUBSTITUTE($Z56,\"{\",CHAR(160),HV$1)),FIND(CHAR(160),SUBSTITUTE($Z56,\"}\",CHAR(160),HV$1))-FIND(CHAR(160),SUBSTITUTE($Z56,\"{\",CHAR(160),HV$1))+1),\"\")","v":""},{"$f":"IFERROR(MID($Z56,FIND(CHAR(160),SUBSTITUTE($Z56,\"{\",CHAR(160),HW$1)),FIND(CHAR(160),SUBSTITUTE($Z56,\"}\",CHAR(160),HW$1))-FIND(CHAR(160),SUBSTITUTE($Z56,\"{\",CHAR(160),HW$1))+1),\"\")","v":""},{"$f":"IFERROR(MID($Z56,FIND(CHAR(160),SUBSTITUTE($Z56,\"{\",CHAR(160),HX$1)),FIND(CHAR(160),SUBSTITUTE($Z56,\"}\",CHAR(160),HX$1))-FIND(CHAR(160),SUBSTITUTE($Z56,\"{\",CHAR(160),HX$1))+1),\"\")","v":""},{"$f":"IFERROR(MID($Z56,FIND(CHAR(160),SUBSTITUTE($Z56,\"{\",CHAR(160),HY$1)),FIND(CHAR(160),SUBSTITUTE($Z56,\"}\",CHAR(160),HY$1))-FIND(CHAR(160),SUBSTITUTE($Z56,\"{\",CHAR(160),HY$1))+1),\"\")","v":""},{"$f":"IFERROR(MID($Z56,FIND(CHAR(160),SUBSTITUTE($Z56,\"{\",CHAR(160),HZ$1)),FIND(CHAR(160),SUBSTITUTE($Z56,\"}\",CHAR(160),HZ$1))-FIND(CHAR(160),SUBSTITUTE($Z56,\"{\",CHAR(160),HZ$1))+1),\"\")","v":""},{"$f":"IFERROR(MID($Z56,FIND(CHAR(160),SUBSTITUTE($Z56,\"{\",CHAR(160),IA$1)),FIND(CHAR(160),SUBSTITUTE($Z56,\"}\",CHAR(160),IA$1))-FIND(CHAR(160),SUBSTITUTE($Z56,\"{\",CHAR(160),IA$1))+1),\"\")","v":""},{"$f":"IFERROR(MID($Z56,FIND(CHAR(160),SUBSTITUTE($Z56,\"{\",CHAR(160),IB$1)),FIND(CHAR(160),SUBSTITUTE($Z56,\"}\",CHAR(160),IB$1))-FIND(CHAR(160),SUBSTITUTE($Z56,\"{\",CHAR(160),IB$1))+1),\"\")","v":""},{"$f":"IFERROR(MID($Z56,FIND(CHAR(160),SUBSTITUTE($Z56,\"{\",CHAR(160),IC$1)),FIND(CHAR(160),SUBSTITUTE($Z56,\"}\",CHAR(160),IC$1))-FIND(CHAR(160),SUBSTITUTE($Z56,\"{\",CHAR(160),IC$1))+1),\"\")","v":""},{"$f":"IFERROR(MID($Z56,FIND(CHAR(160),SUBSTITUTE($Z56,\"{\",CHAR(160),ID$1)),FIND(CHAR(160),SUBSTITUTE($Z56,\"}\",CHAR(160),ID$1))-FIND(CHAR(160),SUBSTITUTE($Z56,\"{\",CHAR(160),ID$1))+1),\"\")","v":""},{"$f":"IFERROR(MID($AA56,FIND(CHAR(160),SUBSTITUTE($AA56,\"{\",CHAR(160),IE$1)),FIND(CHAR(160),SUBSTITUTE($AA56,\"}\",CHAR(160),IE$1))-FIND(CHAR(160),SUBSTITUTE($AA56,\"{\",CHAR(160),IE$1))+1),\"\")","v":""},{"$f":"IFERROR(MID($AA56,FIND(CHAR(160),SUBSTITUTE($AA56,\"{\",CHAR(160),IF$1)),FIND(CHAR(160),SUBSTITUTE($AA56,\"}\",CHAR(160),IF$1))-FIND(CHAR(160),SUBSTITUTE($AA56,\"{\",CHAR(160),IF$1))+1),\"\")","v":""},{"$f":"IFERROR(MID($AA56,FIND(CHAR(160),SUBSTITUTE($AA56,\"{\",CHAR(160),IG$1)),FIND(CHAR(160),SUBSTITUTE($AA56,\"}\",CHAR(160),IG$1))-FIND(CHAR(160),SUBSTITUTE($AA56,\"{\",CHAR(160),IG$1))+1),\"\")","v":""},{"$f":"IFERROR(MID($AA56,FIND(CHAR(160),SUBSTITUTE($AA56,\"{\",CHAR(160),IH$1)),FIND(CHAR(160),SUBSTITUTE($AA56,\"}\",CHAR(160),IH$1))-FIND(CHAR(160),SUBSTITUTE($AA56,\"{\",CHAR(160),IH$1))+1),\"\")","v":""},{"$f":"IFERROR(MID($AA56,FIND(CHAR(160),SUBSTITUTE($AA56,\"{\",CHAR(160),II$1)),FIND(CHAR(160),SUBSTITUTE($AA56,\"}\",CHAR(160),II$1))-FIND(CHAR(160),SUBSTITUTE($AA56,\"{\",CHAR(160),II$1))+1),\"\")","v":""},{"$f":"IFERROR(MID($AA56,FIND(CHAR(160),SUBSTITUTE($AA56,\"{\",CHAR(160),IJ$1)),FIND(CHAR(160),SUBSTITUTE($AA56,\"}\",CHAR(160),IJ$1))-FIND(CHAR(160),SUBSTITUTE($AA56,\"{\",CHAR(160),IJ$1))+1),\"\")","v":""},{"$f":"IFERROR(MID($AA56,FIND(CHAR(160),SUBSTITUTE($AA56,\"{\",CHAR(160),IK$1)),FIND(CHAR(160),SUBSTITUTE($AA56,\"}\",CHAR(160),IK$1))-FIND(CHAR(160),SUBSTITUTE($AA56,\"{\",CHAR(160),IK$1))+1),\"\")","v":""},{"$f":"IFERROR(MID($AA56,FIND(CHAR(160),SUBSTITUTE($AA56,\"{\",CHAR(160),IL$1)),FIND(CHAR(160),SUBSTITUTE($AA56,\"}\",CHAR(160),IL$1))-FIND(CHAR(160),SUBSTITUTE($AA56,\"{\",CHAR(160),IL$1))+1),\"\")","v":""},{"$f":"IFERROR(MID($AA56,FIND(CHAR(160),SUBSTITUTE($AA56,\"{\",CHAR(160),IM$1)),FIND(CHAR(160),SUBSTITUTE($AA56,\"}\",CHAR(160),IM$1))-FIND(CHAR(160),SUBSTITUTE($AA56,\"{\",CHAR(160),IM$1))+1),\"\")","v":""},{"$f":"IFERROR(MID($AA56,FIND(CHAR(160),SUBSTITUTE($AA56,\"{\",CHAR(160),IN$1)),FIND(CHAR(160),SUBSTITUTE($AA56,\"}\",CHAR(160),IN$1))-FIND(CHAR(160),SUBSTITUTE($AA56,\"{\",CHAR(160),IN$1))+1),\"\")","v":""},{"$f":"IFERROR(MID($AB56,FIND(CHAR(160),SUBSTITUTE($AB56,\"{\",CHAR(160),IO$1)),FIND(CHAR(160),SUBSTITUTE($AB56,\"}\",CHAR(160),IO$1))-FIND(CHAR(160),SUBSTITUTE($AB56,\"{\",CHAR(160),IO$1))+1),\"\")","v":""},{"$f":"IFERROR(MID($AB56,FIND(CHAR(160),SUBSTITUTE($AB56,\"{\",CHAR(160),IP$1)),FIND(CHAR(160),SUBSTITUTE($AB56,\"}\",CHAR(160),IP$1))-FIND(CHAR(160),SUBSTITUTE($AB56,\"{\",CHAR(160),IP$1))+1),\"\")","v":""},{"$f":"IFERROR(MID($AB56,FIND(CHAR(160),SUBSTITUTE($AB56,\"{\",CHAR(160),IQ$1)),FIND(CHAR(160),SUBSTITUTE($AB56,\"}\",CHAR(160),IQ$1))-FIND(CHAR(160),SUBSTITUTE($AB56,\"{\",CHAR(160),IQ$1))+1),\"\")","v":""},{"$f":"IFERROR(MID($AB56,FIND(CHAR(160),SUBSTITUTE($AB56,\"{\",CHAR(160),IR$1)),FIND(CHAR(160),SUBSTITUTE($AB56,\"}\",CHAR(160),IR$1))-FIND(CHAR(160),SUBSTITUTE($AB56,\"{\",CHAR(160),IR$1))+1),\"\")","v":""},{"$f":"IFERROR(MID($AB56,FIND(CHAR(160),SUBSTITUTE($AB56,\"{\",CHAR(160),IS$1)),FIND(CHAR(160),SUBSTITUTE($AB56,\"}\",CHAR(160),IS$1))-FIND(CHAR(160),SUBSTITUTE($AB56,\"{\",CHAR(160),IS$1))+1),\"\")","v":""},{"$f":"IFERROR(MID($AB56,FIND(CHAR(160),SUBSTITUTE($AB56,\"{\",CHAR(160),IT$1)),FIND(CHAR(160),SUBSTITUTE($AB56,\"}\",CHAR(160),IT$1))-FIND(CHAR(160),SUBSTITUTE($AB56,\"{\",CHAR(160),IT$1))+1),\"\")","v":""},{"$f":"IFERROR(MID($AB56,FIND(CHAR(160),SUBSTITUTE($AB56,\"{\",CHAR(160),IU$1)),FIND(CHAR(160),SUBSTITUTE($AB56,\"}\",CHAR(160),IU$1))-FIND(CHAR(160),SUBSTITUTE($AB56,\"{\",CHAR(160),IU$1))+1),\"\")","v":""},{"$f":"IFERROR(MID($AB56,FIND(CHAR(160),SUBSTITUTE($AB56,\"{\",CHAR(160),IV$1)),FIND(CHAR(160),SUBSTITUTE($AB56,\"}\",CHAR(160),IV$1))-FIND(CHAR(160),SUBSTITUTE($AB56,\"{\",CHAR(160),IV$1))+1),\"\")","v":""},{"$f":"IFERROR(MID($AB56,FIND(CHAR(160),SUBSTITUTE($AB56,\"{\",CHAR(160),IW$1)),FIND(CHAR(160),SUBSTITUTE($AB56,\"}\",CHAR(160),IW$1))-FIND(CHAR(160),SUBSTITUTE($AB56,\"{\",CHAR(160),IW$1))+1),\"\")","v":""},{"$f":"IFERROR(MID($AB56,FIND(CHAR(160),SUBSTITUTE($AB56,\"{\",CHAR(160),IX$1)),FIND(CHAR(160),SUBSTITUTE($AB56,\"}\",CHAR(160),IX$1))-FIND(CHAR(160),SUBSTITUTE($AB56,\"{\",CHAR(160),IX$1))+1),\"\")","v":""},null,{"$f":"10-COUNTIF(DU56:ED56,\"\")","v":2}]
["C&I HVAC - Electric","HVAC AIR-TO-AIR HEAT PUMP: < 5.4 Split","AH1","2021-07-01","2021-09-09","Calculated","{Measure:Quantity}*{Unit Size  - Tons}*100.0",0,"Calculated","{Measure:Quantity}*{Unit Size  - Tons}*50",0,"2021-07-01","2022-06-30","Calculated","{Measure:Quantity} * ((12 * {Unit Size  - Tons} * (1/14.0 - 1/{SEER}) * 829) + ({Heating BTUH}/1000 * (1/8.2 - 1/{HSPF}) * 2200))",1E-4,null,"{Measure:Quantity} * 12 * {Unit Size  - Tons} * (1/14.0 - 1/{SEER})",null,null,"{Measure:Quantity} * {Heating BTUH}/1000 * (1/8.2 - 1/{HSPF}) * {Factor:WinterCF}","{Measure:Quantity} * 12 * {Unit Size  - Tons} * (1/14.0 - 1/{SEER}) * {Factor:SummerCF}",null,null,null,null,null,null,"2021-05-25","2022-06-30",15,0.42,0.35699999999999998,0.17,0.03,0.62,0.18,1,1.1220000000000001,1,0.52,1.6E-2,null,{"$f":"DU57","v":"{Measure:Quantity}"},1,{"$f":"DV57","v":"{Unit Size  - Tons}"},5,{"$f":"DW57","v":"{SEER}"},16,{"$f":"DX57","v":"{Heating BTUH}"},56500,{"$f":"DY57","v":"{HSPF}"},9,{"$f":"DZ57","v":""},null,{"$f":"EA57","v":""},null,{"$f":"EB57","v":""},null,{"$f":"EC57","v":""},null,{"$f":"ED57","v":""},null,{"$f":"AS57 * ((12 * AU57 * (1/14 - 1/AW57) * 829) + (AY57/1000 * (1/8.2 - 1/BA57) * 2200))","v":1791.5326171118875},{"$f":"0.0001","v":1E-4},0,{"$f":"AS57 * 12 * AU57 * (1/14 - 1/AW57)","v":0.53571428571428548},0,0,{"$f":"AS57 * AY57/1000 * (1/8.2 - 1/BA57) * AF57","v":0.25723577235772399},{"$f":"AS57 * 12 * AU57 * (1/14 - 1/AW57) * AG57","v":0.19124999999999992},0,0,0,0,0,0,null,"Res","Default DR",{"$f":"Benefits(BL57,BR57,BS57,BT57,BU57,BV57,BW57,BX57,BY57,BZ57,AE57,AH57,AI57,AJ57,AK57,AL57,AM57,AN57,AO57,AP57,CA57,CB57)","v":2472.1233920370223},1328.7451040363921,0,0,0,0,0,0,0,{"$f":"SUMPRODUCT(CC57:CK57,--(CC57:CK57>0))","v":3800.8684960734145},{"$f":"-SUMPRODUCT(CC57:CK57,--(CC57:CK57<0))","v":0},null,{"$f":"AS57*AU57*100","v":500},null,null,{"$f":"CM57+CO57","v":500},{"$f":"IF(NetOrGross=\"Net\",(1-AO57+AP57),1)","v":1},{"$f":"(SUMPRODUCT(CC57:CJ57,--(CC57:CJ57>0))+CN57)*CS57/((-SUMPRODUCT(CC57:CJ57,--(CC57:CJ57<0))+MAX(CO57,CV57)+CP57+CQ57)*CS57+IF(FRIncentives=\"Yes\",CV57*(1-CS57),0))","v":7.6017369921468285},1,{"$f":"AS57*AU57*50","v":250},null,"Electric","y",null,{"$f":"IF(F57=\"Manual Entry\",\"Manual\",IF(G57=\"\",0,\"X=\"&SUBSTITUTE(SUBSTITUTE(SUBSTITUTE(SUBSTITUTE(SUBSTITUTE(SUBSTITUTE(SUBSTITUTE(SUBSTITUTE(SUBSTITUTE(SUBSTITUTE(SUBSTITUTE(SUBSTITUTE(G57,$ED57,$ED$2&ROW($ED57)),$EC57,$EC$2&ROW($EC57)),$EB57,$EB$2&ROW($EB57)),$EA57,$EA$2&ROW($EA57)),$DZ57,$DZ$2&ROW($DZ57)),$DY57,$DY$2&ROW($DY57)),$DX57,$DX$2&ROW($DX57)),$DW57,$DW$2&ROW($DW57)),$DV57,$DV$2&ROW($DV57)),$DU57,$DU$2&ROW($DU57)),$DT57,$DT$2&ROW($DT57)),$DS57,$DS$2&ROW($DS57))))","v":"X=AS57*AU57*100.0"},{"$f":"IF(I57=\"Manual Entry\",\"Manual\",IF(J57=\"\",0,\"X=\"&SUBSTITUTE(SUBSTITUTE(SUBSTITUTE(SUBSTITUTE(SUBSTITUTE(SUBSTITUTE(SUBSTITUTE(SUBSTITUTE(SUBSTITUTE(SUBSTITUTE(SUBSTITUTE(SUBSTITUTE(J57,$ED57,$ED$2&ROW($ED57)),$EC57,$EC$2&ROW($EC57)),$EB57,$EB$2&ROW($EB57)),$EA57,$EA$2&ROW($EA57)),$DZ57,$DZ$2&ROW($DZ57)),$DY57,$DY$2&ROW($DY57)),$DX57,$DX$2&ROW($DX57)),$DW57,$DW$2&ROW($DW57)),$DV57,$DV$2&ROW($DV57)),$DU57,$DU$2&ROW($DU57)),$DT57,$DT$2&ROW($DT57)),$DS57,$DS$2&ROW($DS57))))","v":"X=AS57*AU57*50"},{"$f":"IF(O57=\"\",0,\"X=\"&SUBSTITUTE(SUBSTITUTE(SUBSTITUTE(SUBSTITUTE(SUBSTITUTE(SUBSTITUTE(SUBSTITUTE(SUBSTITUTE(SUBSTITUTE(SUBSTITUTE(SUBSTITUTE(SUBSTITUTE(O57,$ED57,$ED$2&ROW($ED57)),$EC57,$EC$2&ROW($EC57)),$EB57,$EB$2&ROW($EB57)),$EA57,$EA$2&ROW($EA57)),$DZ57,$DZ$2&ROW($DZ57)),$DY57,$DY$2&ROW($DY57)),$DX57,$DX$2&ROW($DX57)),$DW57,$DW$2&ROW($DW57)),$DV57,$DV$2&ROW($DV57)),$DU57,$DU$2&ROW($DU57)),$DT57,$DT$2&ROW($DT57)),$DS57,$DS$2&ROW($DS57)))","v":"X=AS57 * ((12 * AU57 * (1/14.0 - 1/AW57) * 829) + (AY57/1000 * (1/8.2 - 1/BA57) * 2200))"},{"$f":"IF(P57=\"\",0,\"X=\"&SUBSTITUTE(SUBSTITUTE(SUBSTITUTE(SUBSTITUTE(SUBSTITUTE(SUBSTITUTE(SUBSTITUTE(SUBSTITUTE(SUBSTITUTE(SUBSTITUTE(SUBSTITUTE(SUBSTITUTE(P57,$ED57,$ED$2&ROW($ED57)),$EC57,$EC$2&ROW($EC57)),$EB57,$EB$2&ROW($EB57)),$EA57,$EA$2&ROW($EA57)),$DZ57,$DZ$2&ROW($DZ57)),$DY57,$DY$2&ROW($DY57)),$DX57,$DX$2&ROW($DX57)),$DW57,$DW$2&ROW($DW57)),$DV57,$DV$2&ROW($DV57)),$DU57,$DU$2&ROW($DU57)),$DT57,$DT$2&ROW($DT57)),$DS57,$DS$2&ROW($DS57)))","v":"X=0.0001"},{"$f":"IF(Q57=\"\",0,\"X=\"&SUBSTITUTE(SUBSTITUTE(SUBSTITUTE(SUBSTITUTE(SUBSTITUTE(SUBSTITUTE(SUBSTITUTE(SUBSTITUTE(SUBSTITUTE(SUBSTITUTE(SUBSTITUTE(SUBSTITUTE(Q57,$ED57,$ED$2&ROW($ED57)),$EC57,$EC$2&ROW($EC57)),$EB57,$EB$2&ROW($EB57)),$EA57,$EA$2&ROW($EA57)),$DZ57,$DZ$2&ROW($DZ57)),$DY57,$DY$2&ROW($DY57)),$DX57,$DX$2&ROW($DX57)),$DW57,$DW$2&ROW($DW57)),$DV57,$DV$2&ROW($DV57)),$DU57,$DU$2&ROW($DU57)),$DT57,$DT$2&ROW($DT57)),$DS57,$DS$2&ROW($DS57)))","v":0},{"$f":"IF(R57=\"\",0,\"X=\"&SUBSTITUTE(SUBSTITUTE(SUBSTITUTE(SUBSTITUTE(SUBSTITUTE(SUBSTITUTE(SUBSTITUTE(SUBSTITUTE(SUBSTITUTE(SUBSTITUTE(SUBSTITUTE(SUBSTITUTE(R57,$ED57,$ED$2&ROW($ED57)),$EC57,$EC$2&ROW($EC57)),$EB57,$EB$2&ROW($EB57)),$EA57,$EA$2&ROW($EA57)),$DZ57,$DZ$2&ROW($DZ57)),$DY57,$DY$2&ROW($DY57)),$DX57,$DX$2&ROW($DX57)),$DW57,$DW$2&ROW($DW57)),$DV57,$DV$2&ROW($DV57)),$DU57,$DU$2&ROW($DU57)),$DT57,$DT$2&ROW($DT57)),$DS57,$DS$2&ROW($DS57)))","v":"X=AS57 * 12 * AU57 * (1/14.0 - 1/AW57)"},{"$f":"IF(S57=\"\",0,\"X=\"&SUBSTITUTE(SUBSTITUTE(SUBSTITUTE(SUBSTITUTE(SUBSTITUTE(SUBSTITUTE(SUBSTITUTE(SUBSTITUTE(SUBSTITUTE(SUBSTITUTE(SUBSTITUTE(SUBSTITUTE(S57,$ED57,$ED$2&ROW($ED57)),$EC57,$EC$2&ROW($EC57)),$EB57,$EB$2&ROW($EB57)),$EA57,$EA$2&ROW($EA57)),$DZ57,$DZ$2&ROW($DZ57)),$DY57,$DY$2&ROW($DY57)),$DX57,$DX$2&ROW($DX57)),$DW57,$DW$2&ROW($DW57)),$DV57,$DV$2&ROW($DV57)),$DU57,$DU$2&ROW($DU57)),$DT57,$DT$2&ROW($DT57)),$DS57,$DS$2&ROW($DS57)))","v":0},{"$f":"IF(T57=\"\",0,\"X=\"&SUBSTITUTE(SUBSTITUTE(SUBSTITUTE(SUBSTITUTE(SUBSTITUTE(SUBSTITUTE(SUBSTITUTE(SUBSTITUTE(SUBSTITUTE(SUBSTITUTE(SUBSTITUTE(SUBSTITUTE(T57,$ED57,$ED$2&ROW($ED57)),$EC57,$EC$2&ROW($EC57)),$EB57,$EB$2&ROW($EB57)),$EA57,$EA$2&ROW($EA57)),$DZ57,$DZ$2&ROW($DZ57)),$DY57,$DY$2&ROW($DY57)),$DX57,$DX$2&ROW($DX57)),$DW57,$DW$2&ROW($DW57)),$DV57,$DV$2&ROW($DV57)),$DU57,$DU$2&ROW($DU57)),$DT57,$DT$2&ROW($DT57)),$DS57,$DS$2&ROW($DS57)))","v":0},{"$f":"IF(U57=\"\",0,\"X=\"&SUBSTITUTE(SUBSTITUTE(SUBSTITUTE(SUBSTITUTE(SUBSTITUTE(SUBSTITUTE(SUBSTITUTE(SUBSTITUTE(SUBSTITUTE(SUBSTITUTE(SUBSTITUTE(SUBSTITUTE(U57,$ED57,$ED$2&ROW($ED57)),$EC57,$EC$2&ROW($EC57)),$EB57,$EB$2&ROW($EB57)),$EA57,$EA$2&ROW($EA57)),$DZ57,$DZ$2&ROW($DZ57)),$DY57,$DY$2&ROW($DY57)),$DX57,$DX$2&ROW($DX57)),$DW57,$DW$2&ROW($DW57)),$DV57,$DV$2&ROW($DV57)),$DU57,$DU$2&ROW($DU57)),$DT57,$DT$2&ROW($DT57)),$DS57,$DS$2&ROW($DS57)))","v":"X=AS57 * AY57/1000 * (1/8.2 - 1/BA57) * AF57"},{"$f":"IF(V57=\"\",0,\"X=\"&SUBSTITUTE(SUBSTITUTE(SUBSTITUTE(SUBSTITUTE(SUBSTITUTE(SUBSTITUTE(SUBSTITUTE(SUBSTITUTE(SUBSTITUTE(SUBSTITUTE(SUBSTITUTE(SUBSTITUTE(V57,$ED57,$ED$2&ROW($ED57)),$EC57,$EC$2&ROW($EC57)),$EB57,$EB$2&ROW($EB57)),$EA57,$EA$2&ROW($EA57)),$DZ57,$DZ$2&ROW($DZ57)),$DY57,$DY$2&ROW($DY57)),$DX57,$DX$2&ROW($DX57)),$DW57,$DW$2&ROW($DW57)),$DV57,$DV$2&ROW($DV57)),$DU57,$DU$2&ROW($DU57)),$DT57,$DT$2&ROW($DT57)),$DS57,$DS$2&ROW($DS57)))","v":"X=AS57 * 12 * AU57 * (1/14.0 - 1/AW57) * AG57"},{"$f":"IF(W57=\"\",0,\"X=\"&SUBSTITUTE(SUBSTITUTE(SUBSTITUTE(SUBSTITUTE(SUBSTITUTE(SUBSTITUTE(SUBSTITUTE(SUBSTITUTE(SUBSTITUTE(SUBSTITUTE(SUBSTITUTE(SUBSTITUTE(W57,$ED57,$ED$2&ROW($ED57)),$EC57,$EC$2&ROW($EC57)),$EB57,$EB$2&ROW($EB57)),$EA57,$EA$2&ROW($EA57)),$DZ57,$DZ$2&ROW($DZ57)),$DY57,$DY$2&ROW($DY57)),$DX57,$DX$2&ROW($DX57)),$DW57,$DW$2&ROW($DW57)),$DV57,$DV$2&ROW($DV57)),$DU57,$DU$2&ROW($DU57)),$DT57,$DT$2&ROW($DT57)),$DS57,$DS$2&ROW($DS57)))","v":0},{"$f":"IF(X57=\"\",0,\"X=\"&SUBSTITUTE(SUBSTITUTE(SUBSTITUTE(SUBSTITUTE(SUBSTITUTE(SUBSTITUTE(SUBSTITUTE(SUBSTITUTE(SUBSTITUTE(SUBSTITUTE(SUBSTITUTE(SUBSTITUTE(X57,$ED57,$ED$2&ROW($ED57)),$EC57,$EC$2&ROW($EC57)),$EB57,$EB$2&ROW($EB57)),$EA57,$EA$2&ROW($EA57)),$DZ57,$DZ$2&ROW($DZ57)),$DY57,$DY$2&ROW($DY57)),$DX57,$DX$2&ROW($DX57)),$DW57,$DW$2&ROW($DW57)),$DV57,$DV$2&ROW($DV57)),$DU57,$DU$2&ROW($DU57)),$DT57,$DT$2&ROW($DT57)),$DS57,$DS$2&ROW($DS57)))","v":0},{"$f":"IF(Y57=\"\",0,\"X=\"&SUBSTITUTE(SUBSTITUTE(SUBSTITUTE(SUBSTITUTE(SUBSTITUTE(SUBSTITUTE(SUBSTITUTE(SUBSTITUTE(SUBSTITUTE(SUBSTITUTE(SUBSTITUTE(SUBSTITUTE(Y57,$ED57,$ED$2&ROW($ED57)),$EC57,$EC$2&ROW($EC57)),$EB57,$EB$2&ROW($EB57)),$EA57,$EA$2&ROW($EA57)),$DZ57,$DZ$2&ROW($DZ57)),$DY57,$DY$2&ROW($DY57)),$DX57,$DX$2&ROW($DX57)),$DW57,$DW$2&ROW($DW57)),$DV57,$DV$2&ROW($DV57)),$DU57,$DU$2&ROW($DU57)),$DT57,$DT$2&ROW($DT57)),$DS57,$DS$2&ROW($DS57)))","v":0},{"$f":"IF(Z57=\"\",0,\"X=\"&SUBSTITUTE(SUBSTITUTE(SUBSTITUTE(SUBSTITUTE(SUBSTITUTE(SUBSTITUTE(SUBSTITUTE(SUBSTITUTE(SUBSTITUTE(SUBSTITUTE(SUBSTITUTE(SUBSTITUTE(Z57,$ED57,$ED$2&ROW($ED57)),$EC57,$EC$2&ROW($EC57)),$EB57,$EB$2&ROW($EB57)),$EA57,$EA$2&ROW($EA57)),$DZ57,$DZ$2&ROW($DZ57)),$DY57,$DY$2&ROW($DY57)),$DX57,$DX$2&ROW($DX57)),$DW57,$DW$2&ROW($DW57)),$DV57,$DV$2&ROW($DV57)),$DU57,$DU$2&ROW($DU57)),$DT57,$DT$2&ROW($DT57)),$DS57,$DS$2&ROW($DS57)))","v":0},{"$f":"IF(AA57=\"\",0,\"X=\"&SUBSTITUTE(SUBSTITUTE(SUBSTITUTE(SUBSTITUTE(SUBSTITUTE(SUBSTITUTE(SUBSTITUTE(SUBSTITUTE(SUBSTITUTE(SUBSTITUTE(SUBSTITUTE(SUBSTITUTE(AA57,$ED57,$ED$2&ROW($ED57)),$EC57,$EC$2&ROW($EC57)),$EB57,$EB$2&ROW($EB57)),$EA57,$EA$2&ROW($EA57)),$DZ57,$DZ$2&ROW($DZ57)),$DY57,$DY$2&ROW($DY57)),$DX57,$DX$2&ROW($DX57)),$DW57,$DW$2&ROW($DW57)),$DV57,$DV$2&ROW($DV57)),$DU57,$DU$2&ROW($DU57)),$DT57,$DT$2&ROW($DT57)),$DS57,$DS$2&ROW($DS57)))","v":0},{"$f":"IF(AB57=\"\",0,\"X=\"&SUBSTITUTE(SUBSTITUTE(SUBSTITUTE(SUBSTITUTE(SUBSTITUTE(SUBSTITUTE(SUBSTITUTE(SUBSTITUTE(SUBSTITUTE(SUBSTITUTE(SUBSTITUTE(SUBSTITUTE(AB57,$ED57,$ED$2&ROW($ED57)),$EC57,$EC$2&ROW($EC57)),$EB57,$EB$2&ROW($EB57)),$EA57,$EA$2&ROW($EA57)),$DZ57,$DZ$2&ROW($DZ57)),$DY57,$DY$2&ROW($DY57)),$DX57,$DX$2&ROW($DX57)),$DW57,$DW$2&ROW($DW57)),$DV57,$DV$2&ROW($DV57)),$DU57,$DU$2&ROW($DU57)),$DT57,$DT$2&ROW($DT57)),$DS57,$DS$2&ROW($DS57)))","v":0},null,null,"{Factor:WinterCF}","{Factor:SummerCF}",{"$f":"IFERROR(INDEX($EG57:$IV57,MATCH(0,COUNTIF($DR57:DT57,$EG57:$IV57),0)),\"\")","v":"{Measure:Quantity}"},{"$f":"IFERROR(INDEX($EG57:$IV57,MATCH(0,COUNTIF($DR57:DU57,$EG57:$IV57),0)),\"\")","v":"{Unit Size  - Tons}"},{"$f":"IFERROR(INDEX($EG57:$IV57,MATCH(0,COUNTIF($DR57:DV57,$EG57:$IV57),0)),\"\")","v":"{SEER}"},{"$f":"IFERROR(INDEX($EG57:$IV57,MATCH(0,COUNTIF($DR57:DW57,$EG57:$IV57),0)),\"\")","v":"{Heating BTUH}"},{"$f":"IFERROR(INDEX($EG57:$IV57,MATCH(0,COUNTIF($DR57:DX57,$EG57:$IV57),0)),\"\")","v":"{HSPF}"},{"$f":"IFERROR(INDEX($EG57:$IV57,MATCH(0,COUNTIF($DR57:DY57,$EG57:$IV57),0)),\"\")","v":""},{"$f":"IFERROR(INDEX($EG57:$IV57,MATCH(0,COUNTIF($DR57:DZ57,$EG57:$IV57),0)),\"\")","v":""},{"$f":"IFERROR(INDEX($EG57:$IV57,MATCH(0,COUNTIF($DR57:EA57,$EG57:$IV57),0)),\"\")","v":""},{"$f":"IFERROR(INDEX($EG57:$IV57,MATCH(0,COUNTIF($DR57:EB57,$EG57:$IV57),0)),\"\")","v":""},{"$f":"IFERROR(INDEX($EG57:$IV57,MATCH(0,COUNTIF($DR57:EC57,$EG57:$IV57),0)),\"\")","v":""},null,null,{"$f":"IFERROR(MID($G57,FIND(CHAR(160),SUBSTITUTE($G57,\"{\",CHAR(160),EG$1)),FIND(CHAR(160),SUBSTITUTE($G57,\"}\",CHAR(160),EG$1))-FIND(CHAR(160),SUBSTITUTE($G57,\"{\",CHAR(160),EG$1))+1),\"\")","v":"{Measure:Quantity}"},{"$f":"IFERROR(MID($G57,FIND(CHAR(160),SUBSTITUTE($G57,\"{\",CHAR(160),EH$1)),FIND(CHAR(160),SUBSTITUTE($G57,\"}\",CHAR(160),EH$1))-FIND(CHAR(160),SUBSTITUTE($G57,\"{\",CHAR(160),EH$1))+1),\"\")","v":"{Unit Size  - Tons}"},{"$f":"IFERROR(MID($G57,FIND(CHAR(160),SUBSTITUTE($G57,\"{\",CHAR(160),EI$1)),FIND(CHAR(160),SUBSTITUTE($G57,\"}\",CHAR(160),EI$1))-FIND(CHAR(160),SUBSTITUTE($G57,\"{\",CHAR(160),EI$1))+1),\"\")","v":""},{"$f":"IFERROR(MID($G57,FIND(CHAR(160),SUBSTITUTE($G57,\"{\",CHAR(160),EJ$1)),FIND(CHAR(160),SUBSTITUTE($G57,\"}\",CHAR(160),EJ$1))-FIND(CHAR(160),SUBSTITUTE($G57,\"{\",CHAR(160),EJ$1))+1),\"\")","v":""},{"$f":"IFERROR(MID($G57,FIND(CHAR(160),SUBSTITUTE($G57,\"{\",CHAR(160),EK$1)),FIND(CHAR(160),SUBSTITUTE($G57,\"}\",CHAR(160),EK$1))-FIND(CHAR(160),SUBSTITUTE($G57,\"{\",CHAR(160),EK$1))+1),\"\")","v":""},{"$f":"IFERROR(MID($G57,FIND(CHAR(160),SUBSTITUTE($G57,\"{\",CHAR(160),EL$1)),FIND(CHAR(160),SUBSTITUTE($G57,\"}\",CHAR(160),EL$1))-FIND(CHAR(160),SUBSTITUTE($G57,\"{\",CHAR(160),EL$1))+1),\"\")","v":""},{"$f":"IFERROR(MID($G57,FIND(CHAR(160),SUBSTITUTE($G57,\"{\",CHAR(160),EM$1)),FIND(CHAR(160),SUBSTITUTE($G57,\"}\",CHAR(160),EM$1))-FIND(CHAR(160),SUBSTITUTE($G57,\"{\",CHAR(160),EM$1))+1),\"\")","v":""},{"$f":"IFERROR(MID($G57,FIND(CHAR(160),SUBSTITUTE($G57,\"{\",CHAR(160),EN$1)),FIND(CHAR(160),SUBSTITUTE($G57,\"}\",CHAR(160),EN$1))-FIND(CHAR(160),SUBSTITUTE($G57,\"{\",CHAR(160),EN$1))+1),\"\")","v":""},{"$f":"IFERROR(MID($G57,FIND(CHAR(160),SUBSTITUTE($G57,\"{\",CHAR(160),EO$1)),FIND(CHAR(160),SUBSTITUTE($G57,\"}\",CHAR(160),EO$1))-FIND(CHAR(160),SUBSTITUTE($G57,\"{\",CHAR(160),EO$1))+1),\"\")","v":""},{"$f":"IFERROR(MID($G57,FIND(CHAR(160),SUBSTITUTE($G57,\"{\",CHAR(160),EP$1)),FIND(CHAR(160),SUBSTITUTE($G57,\"}\",CHAR(160),EP$1))-FIND(CHAR(160),SUBSTITUTE($G57,\"{\",CHAR(160),EP$1))+1),\"\")","v":""},{"$f":"IFERROR(MID($J57,FIND(CHAR(160),SUBSTITUTE($J57,\"{\",CHAR(160),EQ$1)),FIND(CHAR(160),SUBSTITUTE($J57,\"}\",CHAR(160),EQ$1))-FIND(CHAR(160),SUBSTITUTE($J57,\"{\",CHAR(160),EQ$1))+1),\"\")","v":"{Measure:Quantity}"},{"$f":"IFERROR(MID($J57,FIND(CHAR(160),SUBSTITUTE($J57,\"{\",CHAR(160),ER$1)),FIND(CHAR(160),SUBSTITUTE($J57,\"}\",CHAR(160),ER$1))-FIND(CHAR(160),SUBSTITUTE($J57,\"{\",CHAR(160),ER$1))+1),\"\")","v":"{Unit Size  - Tons}"},{"$f":"IFERROR(MID($J57,FIND(CHAR(160),SUBSTITUTE($J57,\"{\",CHAR(160),ES$1)),FIND(CHAR(160),SUBSTITUTE($J57,\"}\",CHAR(160),ES$1))-FIND(CHAR(160),SUBSTITUTE($J57,\"{\",CHAR(160),ES$1))+1),\"\")","v":""},{"$f":"IFERROR(MID($J57,FIND(CHAR(160),SUBSTITUTE($J57,\"{\",CHAR(160),ET$1)),FIND(CHAR(160),SUBSTITUTE($J57,\"}\",CHAR(160),ET$1))-FIND(CHAR(160),SUBSTITUTE($J57,\"{\",CHAR(160),ET$1))+1),\"\")","v":""},{"$f":"IFERROR(MID($J57,FIND(CHAR(160),SUBSTITUTE($J57,\"{\",CHAR(160),EU$1)),FIND(CHAR(160),SUBSTITUTE($J57,\"}\",CHAR(160),EU$1))-FIND(CHAR(160),SUBSTITUTE($J57,\"{\",CHAR(160),EU$1))+1),\"\")","v":""},{"$f":"IFERROR(MID($J57,FIND(CHAR(160),SUBSTITUTE($J57,\"{\",CHAR(160),EV$1)),FIND(CHAR(160),SUBSTITUTE($J57,\"}\",CHAR(160),EV$1))-FIND(CHAR(160),SUBSTITUTE($J57,\"{\",CHAR(160),EV$1))+1),\"\")","v":""},{"$f":"IFERROR(MID($J57,FIND(CHAR(160),SUBSTITUTE($J57,\"{\",CHAR(160),EW$1)),FIND(CHAR(160),SUBSTITUTE($J57,\"}\",CHAR(160),EW$1))-FIND(CHAR(160),SUBSTITUTE($J57,\"{\",CHAR(160),EW$1))+1),\"\")","v":""},{"$f":"IFERROR(MID($J57,FIND(CHAR(160),SUBSTITUTE($J57,\"{\",CHAR(160),EX$1)),FIND(CHAR(160),SUBSTITUTE($J57,\"}\",CHAR(160),EX$1))-FIND(CHAR(160),SUBSTITUTE($J57,\"{\",CHAR(160),EX$1))+1),\"\")","v":""},{"$f":"IFERROR(MID($J57,FIND(CHAR(160),SUBSTITUTE($J57,\"{\",CHAR(160),EY$1)),FIND(CHAR(160),SUBSTITUTE($J57,\"}\",CHAR(160),EY$1))-FIND(CHAR(160),SUBSTITUTE($J57,\"{\",CHAR(160),EY$1))+1),\"\")","v":""},{"$f":"IFERROR(MID($J57,FIND(CHAR(160),SUBSTITUTE($J57,\"{\",CHAR(160),EZ$1)),FIND(CHAR(160),SUBSTITUTE($J57,\"}\",CHAR(160),EZ$1))-FIND(CHAR(160),SUBSTITUTE($J57,\"{\",CHAR(160),EZ$1))+1),\"\")","v":""},{"$f":"IFERROR(MID($J57,FIND(CHAR(160),SUBSTITUTE($J57,\"{\",CHAR(160),FA$1)),FIND(CHAR(160),SUBSTITUTE($J57,\"}\",CHAR(160),FA$1))-FIND(CHAR(160),SUBSTITUTE($J57,\"{\",CHAR(160),FA$1))+1),\"\")","v":"{Measure:Quantity}"},{"$f":"IFERROR(MID($J57,FIND(CHAR(160),SUBSTITUTE($J57,\"{\",CHAR(160),FB$1)),FIND(CHAR(160),SUBSTITUTE($J57,\"}\",CHAR(160),FB$1))-FIND(CHAR(160),SUBSTITUTE($J57,\"{\",CHAR(160),FB$1))+1),\"\")","v":"{Unit Size  - Tons}"},{"$f":"IFERROR(MID($O57,FIND(CHAR(160),SUBSTITUTE($O57,\"{\",CHAR(160),FC$1)),FIND(CHAR(160),SUBSTITUTE($O57,\"}\",CHAR(160),FC$1))-FIND(CHAR(160),SUBSTITUTE($O57,\"{\",CHAR(160),FC$1))+1),\"\")","v":"{SEER}"},{"$f":"IFERROR(MID($O57,FIND(CHAR(160),SUBSTITUTE($O57,\"{\",CHAR(160),FD$1)),FIND(CHAR(160),SUBSTITUTE($O57,\"}\",CHAR(160),FD$1))-FIND(CHAR(160),SUBSTITUTE($O57,\"{\",CHAR(160),FD$1))+1),\"\")","v":"{Heating BTUH}"},{"$f":"IFERROR(MID($O57,FIND(CHAR(160),SUBSTITUTE($O57,\"{\",CHAR(160),FE$1)),FIND(CHAR(160),SUBSTITUTE($O57,\"}\",CHAR(160),FE$1))-FIND(CHAR(160),SUBSTITUTE($O57,\"{\",CHAR(160),FE$1))+1),\"\")","v":"{HSPF}"},{"$f":"IFERROR(MID($O57,FIND(CHAR(160),SUBSTITUTE($O57,\"{\",CHAR(160),FF$1)),FIND(CHAR(160),SUBSTITUTE($O57,\"}\",CHAR(160),FF$1))-FIND(CHAR(160),SUBSTITUTE($O57,\"{\",CHAR(160),FF$1))+1),\"\")","v":""},{"$f":"IFERROR(MID($O57,FIND(CHAR(160),SUBSTITUTE($O57,\"{\",CHAR(160),FG$1)),FIND(CHAR(160),SUBSTITUTE($O57,\"}\",CHAR(160),FG$1))-FIND(CHAR(160),SUBSTITUTE($O57,\"{\",CHAR(160),FG$1))+1),\"\")","v":""},{"$f":"IFERROR(MID($O57,FIND(CHAR(160),SUBSTITUTE($O57,\"{\",CHAR(160),FH$1)),FIND(CHAR(160),SUBSTITUTE($O57,\"}\",CHAR(160),FH$1))-FIND(CHAR(160),SUBSTITUTE($O57,\"{\",CHAR(160),FH$1))+1),\"\")","v":""},{"$f":"IFERROR(MID($O57,FIND(CHAR(160),SUBSTITUTE($O57,\"{\",CHAR(160),FI$1)),FIND(CHAR(160),SUBSTITUTE($O57,\"}\",CHAR(160),FI$1))-FIND(CHAR(160),SUBSTITUTE($O57,\"{\",CHAR(160),FI$1))+1),\"\")","v":""},{"$f":"IFERROR(MID($O57,FIND(CHAR(160),SUBSTITUTE($O57,\"{\",CHAR(160),FJ$1)),FIND(CHAR(160),SUBSTITUTE($O57,\"}\",CHAR(160),FJ$1))-FIND(CHAR(160),SUBSTITUTE($O57,\"{\",CHAR(160),FJ$1))+1),\"\")","v":""},{"$f":"IFERROR(MID($O57,FIND(CHAR(160),SUBSTITUTE($O57,\"{\",CHAR(160),FK$1)),FIND(CHAR(160),SUBSTITUTE($O57,\"}\",CHAR(160),FK$1))-FIND(CHAR(160),SUBSTITUTE($O57,\"{\",CHAR(160),FK$1))+1),\"\")","v":"{Measure:Quantity}"},{"$f":"IFERROR(MID($O57,FIND(CHAR(160),SUBSTITUTE($O57,\"{\",CHAR(160),FL$1)),FIND(CHAR(160),SUBSTITUTE($O57,\"}\",CHAR(160),FL$1))-FIND(CHAR(160),SUBSTITUTE($O57,\"{\",CHAR(160),FL$1))+1),\"\")","v":"{Unit Size  - Tons}"},{"$f":"IFERROR(MID($R57,FIND(CHAR(160),SUBSTITUTE($R57,\"{\",CHAR(160),FM$1)),FIND(CHAR(160),SUBSTITUTE($R57,\"}\",CHAR(160),FM$1))-FIND(CHAR(160),SUBSTITUTE($R57,\"{\",CHAR(160),FM$1))+1),\"\")","v":"{SEER}"},{"$f":"IFERROR(MID($R57,FIND(CHAR(160),SUBSTITUTE($R57,\"{\",CHAR(160),FN$1)),FIND(CHAR(160),SUBSTITUTE($R57,\"}\",CHAR(160),FN$1))-FIND(CHAR(160),SUBSTITUTE($R57,\"{\",CHAR(160),FN$1))+1),\"\")","v":""},{"$f":"IFERROR(MID($R57,FIND(CHAR(160),SUBSTITUTE($R57,\"{\",CHAR(160),FO$1)),FIND(CHAR(160),SUBSTITUTE($R57,\"}\",CHAR(160),FO$1))-FIND(CHAR(160),SUBSTITUTE($R57,\"{\",CHAR(160),FO$1))+1),\"\")","v":""},{"$f":"IFERROR(MID($R57,FIND(CHAR(160),SUBSTITUTE($R57,\"{\",CHAR(160),FP$1)),FIND(CHAR(160),SUBSTITUTE($R57,\"}\",CHAR(160),FP$1))-FIND(CHAR(160),SUBSTITUTE($R57,\"{\",CHAR(160),FP$1))+1),\"\")","v":""},{"$f":"IFERROR(MID($R57,FIND(CHAR(160),SUBSTITUTE($R57,\"{\",CHAR(160),FQ$1)),FIND(CHAR(160),SUBSTITUTE($R57,\"}\",CHAR(160),FQ$1))-FIND(CHAR(160),SUBSTITUTE($R57,\"{\",CHAR(160),FQ$1))+1),\"\")","v":""},{"$f":"IFERROR(MID($R57,FIND(CHAR(160),SUBSTITUTE($R57,\"{\",CHAR(160),FR$1)),FIND(CHAR(160),SUBSTITUTE($R57,\"}\",CHAR(160),FR$1))-FIND(CHAR(160),SUBSTITUTE($R57,\"{\",CHAR(160),FR$1))+1),\"\")","v":""},{"$f":"IFERROR(MID($R57,FIND(CHAR(160),SUBSTITUTE($R57,\"{\",CHAR(160),FS$1)),FIND(CHAR(160),SUBSTITUTE($R57,\"}\",CHAR(160),FS$1))-FIND(CHAR(160),SUBSTITUTE($R57,\"{\",CHAR(160),FS$1))+1),\"\")","v":""},{"$f":"IFERROR(MID($R57,FIND(CHAR(160),SUBSTITUTE($R57,\"{\",CHAR(160),FT$1)),FIND(CHAR(160),SUBSTITUTE($R57,\"}\",CHAR(160),FT$1))-FIND(CHAR(160),SUBSTITUTE($R57,\"{\",CHAR(160),FT$1))+1),\"\")","v":""},{"$f":"IFERROR(MID($R57,FIND(CHAR(160),SUBSTITUTE($R57,\"{\",CHAR(160),FU$1)),FIND(CHAR(160),SUBSTITUTE($R57,\"}\",CHAR(160),FU$1))-FIND(CHAR(160),SUBSTITUTE($R57,\"{\",CHAR(160),FU$1))+1),\"\")","v":"{Measure:Quantity}"},{"$f":"IFERROR(MID($R57,FIND(CHAR(160),SUBSTITUTE($R57,\"{\",CHAR(160),FV$1)),FIND(CHAR(160),SUBSTITUTE($R57,\"}\",CHAR(160),FV$1))-FIND(CHAR(160),SUBSTITUTE($R57,\"{\",CHAR(160),FV$1))+1),\"\")","v":"{Unit Size  - Tons}"},{"$f":"IFERROR(MID($U57,FIND(CHAR(160),SUBSTITUTE($U57,\"{\",CHAR(160),FW$1)),FIND(CHAR(160),SUBSTITUTE($U57,\"}\",CHAR(160),FW$1))-FIND(CHAR(160),SUBSTITUTE($U57,\"{\",CHAR(160),FW$1))+1),\"\")","v":"{HSPF}"},{"$f":"IFERROR(MID($U57,FIND(CHAR(160),SUBSTITUTE($U57,\"{\",CHAR(160),FX$1)),FIND(CHAR(160),SUBSTITUTE($U57,\"}\",CHAR(160),FX$1))-FIND(CHAR(160),SUBSTITUTE($U57,\"{\",CHAR(160),FX$1))+1),\"\")","v":"{Factor:WinterCF}"},{"$f":"IFERROR(MID($U57,FIND(CHAR(160),SUBSTITUTE($U57,\"{\",CHAR(160),FY$1)),FIND(CHAR(160),SUBSTITUTE($U57,\"}\",CHAR(160),FY$1))-FIND(CHAR(160),SUBSTITUTE($U57,\"{\",CHAR(160),FY$1))+1),\"\")","v":""},{"$f":"IFERROR(MID($U57,FIND(CHAR(160),SUBSTITUTE($U57,\"{\",CHAR(160),FZ$1)),FIND(CHAR(160),SUBSTITUTE($U57,\"}\",CHAR(160),FZ$1))-FIND(CHAR(160),SUBSTITUTE($U57,\"{\",CHAR(160),FZ$1))+1),\"\")","v":""},{"$f":"IFERROR(MID($U57,FIND(CHAR(160),SUBSTITUTE($U57,\"{\",CHAR(160),GA$1)),FIND(CHAR(160),SUBSTITUTE($U57,\"}\",CHAR(160),GA$1))-FIND(CHAR(160),SUBSTITUTE($U57,\"{\",CHAR(160),GA$1))+1),\"\")","v":""},{"$f":"IFERROR(MID($U57,FIND(CHAR(160),SUBSTITUTE($U57,\"{\",CHAR(160),GB$1)),FIND(CHAR(160),SUBSTITUTE($U57,\"}\",CHAR(160),GB$1))-FIND(CHAR(160),SUBSTITUTE($U57,\"{\",CHAR(160),GB$1))+1),\"\")","v":""},{"$f":"IFERROR(MID($U57,FIND(CHAR(160),SUBSTITUTE($U57,\"{\",CHAR(160),GC$1)),FIND(CHAR(160),SUBSTITUTE($U57,\"}\",CHAR(160),GC$1))-FIND(CHAR(160),SUBSTITUTE($U57,\"{\",CHAR(160),GC$1))+1),\"\")","v":""},{"$f":"IFERROR(MID($U57,FIND(CHAR(160),SUBSTITUTE($U57,\"{\",CHAR(160),GD$1)),FIND(CHAR(160),SUBSTITUTE($U57,\"}\",CHAR(160),GD$1))-FIND(CHAR(160),SUBSTITUTE($U57,\"{\",CHAR(160),GD$1))+1),\"\")","v":""},{"$f":"IFERROR(MID($U57,FIND(CHAR(160),SUBSTITUTE($U57,\"{\",CHAR(160),GE$1)),FIND(CHAR(160),SUBSTITUTE($U57,\"}\",CHAR(160),GE$1))-FIND(CHAR(160),SUBSTITUTE($U57,\"{\",CHAR(160),GE$1))+1),\"\")","v":"{Measure:Quantity}"},{"$f":"IFERROR(MID($U57,FIND(CHAR(160),SUBSTITUTE($U57,\"{\",CHAR(160),GF$1)),FIND(CHAR(160),SUBSTITUTE($U57,\"}\",CHAR(160),GF$1))-FIND(CHAR(160),SUBSTITUTE($U57,\"{\",CHAR(160),GF$1))+1),\"\")","v":"{Heating BTUH}"},{"$f":"IFERROR(MID($V57,FIND(CHAR(160),SUBSTITUTE($V57,\"{\",CHAR(160),GG$1)),FIND(CHAR(160),SUBSTITUTE($V57,\"}\",CHAR(160),GG$1))-FIND(CHAR(160),SUBSTITUTE($V57,\"{\",CHAR(160),GG$1))+1),\"\")","v":"{SEER}"},{"$f":"IFERROR(MID($V57,FIND(CHAR(160),SUBSTITUTE($V57,\"{\",CHAR(160),GH$1)),FIND(CHAR(160),SUBSTITUTE($V57,\"}\",CHAR(160),GH$1))-FIND(CHAR(160),SUBSTITUTE($V57,\"{\",CHAR(160),GH$1))+1),\"\")","v":"{Factor:SummerCF}"},{"$f":"IFERROR(MID($V57,FIND(CHAR(160),SUBSTITUTE($V57,\"{\",CHAR(160),GI$1)),FIND(CHAR(160),SUBSTITUTE($V57,\"}\",CHAR(160),GI$1))-FIND(CHAR(160),SUBSTITUTE($V57,\"{\",CHAR(160),GI$1))+1),\"\")","v":""},{"$f":"IFERROR(MID($V57,FIND(CHAR(160),SUBSTITUTE($V57,\"{\",CHAR(160),GJ$1)),FIND(CHAR(160),SUBSTITUTE($V57,\"}\",CHAR(160),GJ$1))-FIND(CHAR(160),SUBSTITUTE($V57,\"{\",CHAR(160),GJ$1))+1),\"\")","v":""},{"$f":"IFERROR(MID($V57,FIND(CHAR(160),SUBSTITUTE($V57,\"{\",CHAR(160),GK$1)),FIND(CHAR(160),SUBSTITUTE($V57,\"}\",CHAR(160),GK$1))-FIND(CHAR(160),SUBSTITUTE($V57,\"{\",CHAR(160),GK$1))+1),\"\")","v":""},{"$f":"IFERROR(MID($V57,FIND(CHAR(160),SUBSTITUTE($V57,\"{\",CHAR(160),GL$1)),FIND(CHAR(160),SUBSTITUTE($V57,\"}\",CHAR(160),GL$1))-FIND(CHAR(160),SUBSTITUTE($V57,\"{\",CHAR(160),GL$1))+1),\"\")","v":""},{"$f":"IFERROR(MID($V57,FIND(CHAR(160),SUBSTITUTE($V57,\"{\",CHAR(160),GM$1)),FIND(CHAR(160),SUBSTITUTE($V57,\"}\",CHAR(160),GM$1))-FIND(CHAR(160),SUBSTITUTE($V57,\"{\",CHAR(160),GM$1))+1),\"\")","v":""},{"$f":"IFERROR(MID($V57,FIND(CHAR(160),SUBSTITUTE($V57,\"{\",CHAR(160),GN$1)),FIND(CHAR(160),SUBSTITUTE($V57,\"}\",CHAR(160),GN$1))-FIND(CHAR(160),SUBSTITUTE($V57,\"{\",CHAR(160),GN$1))+1),\"\")","v":""},{"$f":"IFERROR(MID($V57,FIND(CHAR(160),SUBSTITUTE($V57,\"{\",CHAR(160),GO$1)),FIND(CHAR(160),SUBSTITUTE($V57,\"}\",CHAR(160),GO$1))-FIND(CHAR(160),SUBSTITUTE($V57,\"{\",CHAR(160),GO$1))+1),\"\")","v":"{Measure:Quantity}"},{"$f":"IFERROR(MID($V57,FIND(CHAR(160),SUBSTITUTE($V57,\"{\",CHAR(160),GP$1)),FIND(CHAR(160),SUBSTITUTE($V57,\"}\",CHAR(160),GP$1))-FIND(CHAR(160),SUBSTITUTE($V57,\"{\",CHAR(160),GP$1))+1),\"\")","v":"{Unit Size  - Tons}"},{"$f":"IFERROR(MID($W57,FIND(CHAR(160),SUBSTITUTE($W57,\"{\",CHAR(160),GQ$1)),FIND(CHAR(160),SUBSTITUTE($W57,\"}\",CHAR(160),GQ$1))-FIND(CHAR(160),SUBSTITUTE($W57,\"{\",CHAR(160),GQ$1))+1),\"\")","v":""},{"$f":"IFERROR(MID($W57,FIND(CHAR(160),SUBSTITUTE($W57,\"{\",CHAR(160),GR$1)),FIND(CHAR(160),SUBSTITUTE($W57,\"}\",CHAR(160),GR$1))-FIND(CHAR(160),SUBSTITUTE($W57,\"{\",CHAR(160),GR$1))+1),\"\")","v":""},{"$f":"IFERROR(MID($W57,FIND(CHAR(160),SUBSTITUTE($W57,\"{\",CHAR(160),GS$1)),FIND(CHAR(160),SUBSTITUTE($W57,\"}\",CHAR(160),GS$1))-FIND(CHAR(160),SUBSTITUTE($W57,\"{\",CHAR(160),GS$1))+1),\"\")","v":""},{"$f":"IFERROR(MID($W57,FIND(CHAR(160),SUBSTITUTE($W57,\"{\",CHAR(160),GT$1)),FIND(CHAR(160),SUBSTITUTE($W57,\"}\",CHAR(160),GT$1))-FIND(CHAR(160),SUBSTITUTE($W57,\"{\",CHAR(160),GT$1))+1),\"\")","v":""},{"$f":"IFERROR(MID($W57,FIND(CHAR(160),SUBSTITUTE($W57,\"{\",CHAR(160),GU$1)),FIND(CHAR(160),SUBSTITUTE($W57,\"}\",CHAR(160),GU$1))-FIND(CHAR(160),SUBSTITUTE($W57,\"{\",CHAR(160),GU$1))+1),\"\")","v":""},{"$f":"IFERROR(MID($W57,FIND(CHAR(160),SUBSTITUTE($W57,\"{\",CHAR(160),GV$1)),FIND(CHAR(160),SUBSTITUTE($W57,\"}\",CHAR(160),GV$1))-FIND(CHAR(160),SUBSTITUTE($W57,\"{\",CHAR(160),GV$1))+1),\"\")","v":""},{"$f":"IFERROR(MID($W57,FIND(CHAR(160),SUBSTITUTE($W57,\"{\",CHAR(160),GW$1)),FIND(CHAR(160),SUBSTITUTE($W57,\"}\",CHAR(160),GW$1))-FIND(CHAR(160),SUBSTITUTE($W57,\"{\",CHAR(160),GW$1))+1),\"\")","v":""},{"$f":"IFERROR(MID($W57,FIND(CHAR(160),SUBSTITUTE($W57,\"{\",CHAR(160),GX$1)),FIND(CHAR(160),SUBSTITUTE($W57,\"}\",CHAR(160),GX$1))-FIND(CHAR(160),SUBSTITUTE($W57,\"{\",CHAR(160),GX$1))+1),\"\")","v":""},{"$f":"IFERROR(MID($W57,FIND(CHAR(160),SUBSTITUTE($W57,\"{\",CHAR(160),GY$1)),FIND(CHAR(160),SUBSTITUTE($W57,\"}\",CHAR(160),GY$1))-FIND(CHAR(160),SUBSTITUTE($W57,\"{\",CHAR(160),GY$1))+1),\"\")","v":""},{"$f":"IFERROR(MID($W57,FIND(CHAR(160),SUBSTITUTE($W57,\"{\",CHAR(160),GZ$1)),FIND(CHAR(160),SUBSTITUTE($W57,\"}\",CHAR(160),GZ$1))-FIND(CHAR(160),SUBSTITUTE($W57,\"{\",CHAR(160),GZ$1))+1),\"\")","v":""},{"$f":"IFERROR(MID($X57,FIND(CHAR(160),SUBSTITUTE($X57,\"{\",CHAR(160),HA$1)),FIND(CHAR(160),SUBSTITUTE($X57,\"}\",CHAR(160),HA$1))-FIND(CHAR(160),SUBSTITUTE($X57,\"{\",CHAR(160),HA$1))+1),\"\")","v":""},{"$f":"IFERROR(MID($X57,FIND(CHAR(160),SUBSTITUTE($X57,\"{\",CHAR(160),HB$1)),FIND(CHAR(160),SUBSTITUTE($X57,\"}\",CHAR(160),HB$1))-FIND(CHAR(160),SUBSTITUTE($X57,\"{\",CHAR(160),HB$1))+1),\"\")","v":""},{"$f":"IFERROR(MID($X57,FIND(CHAR(160),SUBSTITUTE($X57,\"{\",CHAR(160),HC$1)),FIND(CHAR(160),SUBSTITUTE($X57,\"}\",CHAR(160),HC$1))-FIND(CHAR(160),SUBSTITUTE($X57,\"{\",CHAR(160),HC$1))+1),\"\")","v":""},{"$f":"IFERROR(MID($X57,FIND(CHAR(160),SUBSTITUTE($X57,\"{\",CHAR(160),HD$1)),FIND(CHAR(160),SUBSTITUTE($X57,\"}\",CHAR(160),HD$1))-FIND(CHAR(160),SUBSTITUTE($X57,\"{\",CHAR(160),HD$1))+1),\"\")","v":""},{"$f":"IFERROR(MID($X57,FIND(CHAR(160),SUBSTITUTE($X57,\"{\",CHAR(160),HE$1)),FIND(CHAR(160),SUBSTITUTE($X57,\"}\",CHAR(160),HE$1))-FIND(CHAR(160),SUBSTITUTE($X57,\"{\",CHAR(160),HE$1))+1),\"\")","v":""},{"$f":"IFERROR(MID($X57,FIND(CHAR(160),SUBSTITUTE($X57,\"{\",CHAR(160),HF$1)),FIND(CHAR(160),SUBSTITUTE($X57,\"}\",CHAR(160),HF$1))-FIND(CHAR(160),SUBSTITUTE($X57,\"{\",CHAR(160),HF$1))+1),\"\")","v":""},{"$f":"IFERROR(MID($X57,FIND(CHAR(160),SUBSTITUTE($X57,\"{\",CHAR(160),HG$1)),FIND(CHAR(160),SUBSTITUTE($X57,\"}\",CHAR(160),HG$1))-FIND(CHAR(160),SUBSTITUTE($X57,\"{\",CHAR(160),HG$1))+1),\"\")","v":""},{"$f":"IFERROR(MID($X57,FIND(CHAR(160),SUBSTITUTE($X57,\"{\",CHAR(160),HH$1)),FIND(CHAR(160),SUBSTITUTE($X57,\"}\",CHAR(160),HH$1))-FIND(CHAR(160),SUBSTITUTE($X57,\"{\",CHAR(160),HH$1))+1),\"\")","v":""},{"$f":"IFERROR(MID($X57,FIND(CHAR(160),SUBSTITUTE($X57,\"{\",CHAR(160),HI$1)),FIND(CHAR(160),SUBSTITUTE($X57,\"}\",CHAR(160),HI$1))-FIND(CHAR(160),SUBSTITUTE($X57,\"{\",CHAR(160),HI$1))+1),\"\")","v":""},{"$f":"IFERROR(MID($X57,FIND(CHAR(160),SUBSTITUTE($X57,\"{\",CHAR(160),HJ$1)),FIND(CHAR(160),SUBSTITUTE($X57,\"}\",CHAR(160),HJ$1))-FIND(CHAR(160),SUBSTITUTE($X57,\"{\",CHAR(160),HJ$1))+1),\"\")","v":""},{"$f":"IFERROR(MID($Y57,FIND(CHAR(160),SUBSTITUTE($Y57,\"{\",CHAR(160),HK$1)),FIND(CHAR(160),SUBSTITUTE($Y57,\"}\",CHAR(160),HK$1))-FIND(CHAR(160),SUBSTITUTE($Y57,\"{\",CHAR(160),HK$1))+1),\"\")","v":""},{"$f":"IFERROR(MID($Y57,FIND(CHAR(160),SUBSTITUTE($Y57,\"{\",CHAR(160),HL$1)),FIND(CHAR(160),SUBSTITUTE($Y57,\"}\",CHAR(160),HL$1))-FIND(CHAR(160),SUBSTITUTE($Y57,\"{\",CHAR(160),HL$1))+1),\"\")","v":""},{"$f":"IFERROR(MID($Y57,FIND(CHAR(160),SUBSTITUTE($Y57,\"{\",CHAR(160),HM$1)),FIND(CHAR(160),SUBSTITUTE($Y57,\"}\",CHAR(160),HM$1))-FIND(CHAR(160),SUBSTITUTE($Y57,\"{\",CHAR(160),HM$1))+1),\"\")","v":""},{"$f":"IFERROR(MID($Y57,FIND(CHAR(160),SUBSTITUTE($Y57,\"{\",CHAR(160),HN$1)),FIND(CHAR(160),SUBSTITUTE($Y57,\"}\",CHAR(160),HN$1))-FIND(CHAR(160),SUBSTITUTE($Y57,\"{\",CHAR(160),HN$1))+1),\"\")","v":""},{"$f":"IFERROR(MID($Y57,FIND(CHAR(160),SUBSTITUTE($Y57,\"{\",CHAR(160),HO$1)),FIND(CHAR(160),SUBSTITUTE($Y57,\"}\",CHAR(160),HO$1))-FIND(CHAR(160),SUBSTITUTE($Y57,\"{\",CHAR(160),HO$1))+1),\"\")","v":""},{"$f":"IFERROR(MID($Y57,FIND(CHAR(160),SUBSTITUTE($Y57,\"{\",CHAR(160),HP$1)),FIND(CHAR(160),SUBSTITUTE($Y57,\"}\",CHAR(160),HP$1))-FIND(CHAR(160),SUBSTITUTE($Y57,\"{\",CHAR(160),HP$1))+1),\"\")","v":""},{"$f":"IFERROR(MID($Y57,FIND(CHAR(160),SUBSTITUTE($Y57,\"{\",CHAR(160),HQ$1)),FIND(CHAR(160),SUBSTITUTE($Y57,\"}\",CHAR(160),HQ$1))-FIND(CHAR(160),SUBSTITUTE($Y57,\"{\",CHAR(160),HQ$1))+1),\"\")","v":""},{"$f":"IFERROR(MID($Y57,FIND(CHAR(160),SUBSTITUTE($Y57,\"{\",CHAR(160),HR$1)),FIND(CHAR(160),SUBSTITUTE($Y57,\"}\",CHAR(160),HR$1))-FIND(CHAR(160),SUBSTITUTE($Y57,\"{\",CHAR(160),HR$1))+1),\"\")","v":""},{"$f":"IFERROR(MID($Y57,FIND(CHAR(160),SUBSTITUTE($Y57,\"{\",CHAR(160),HS$1)),FIND(CHAR(160),SUBSTITUTE($Y57,\"}\",CHAR(160),HS$1))-FIND(CHAR(160),SUBSTITUTE($Y57,\"{\",CHAR(160),HS$1))+1),\"\")","v":""},{"$f":"IFERROR(MID($Y57,FIND(CHAR(160),SUBSTITUTE($Y57,\"{\",CHAR(160),HT$1)),FIND(CHAR(160),SUBSTITUTE($Y57,\"}\",CHAR(160),HT$1))-FIND(CHAR(160),SUBSTITUTE($Y57,\"{\",CHAR(160),HT$1))+1),\"\")","v":""},{"$f":"IFERROR(MID($Z57,FIND(CHAR(160),SUBSTITUTE($Z57,\"{\",CHAR(160),HU$1)),FIND(CHAR(160),SUBSTITUTE($Z57,\"}\",CHAR(160),HU$1))-FIND(CHAR(160),SUBSTITUTE($Z57,\"{\",CHAR(160),HU$1))+1),\"\")","v":""},{"$f":"IFERROR(MID($Z57,FIND(CHAR(160),SUBSTITUTE($Z57,\"{\",CHAR(160),HV$1)),FIND(CHAR(160),SUBSTITUTE($Z57,\"}\",CHAR(160),HV$1))-FIND(CHAR(160),SUBSTITUTE($Z57,\"{\",CHAR(160),HV$1))+1),\"\")","v":""},{"$f":"IFERROR(MID($Z57,FIND(CHAR(160),SUBSTITUTE($Z57,\"{\",CHAR(160),HW$1)),FIND(CHAR(160),SUBSTITUTE($Z57,\"}\",CHAR(160),HW$1))-FIND(CHAR(160),SUBSTITUTE($Z57,\"{\",CHAR(160),HW$1))+1),\"\")","v":""},{"$f":"IFERROR(MID($Z57,FIND(CHAR(160),SUBSTITUTE($Z57,\"{\",CHAR(160),HX$1)),FIND(CHAR(160),SUBSTITUTE($Z57,\"}\",CHAR(160),HX$1))-FIND(CHAR(160),SUBSTITUTE($Z57,\"{\",CHAR(160),HX$1))+1),\"\")","v":""},{"$f":"IFERROR(MID($Z57,FIND(CHAR(160),SUBSTITUTE($Z57,\"{\",CHAR(160),HY$1)),FIND(CHAR(160),SUBSTITUTE($Z57,\"}\",CHAR(160),HY$1))-FIND(CHAR(160),SUBSTITUTE($Z57,\"{\",CHAR(160),HY$1))+1),\"\")","v":""},{"$f":"IFERROR(MID($Z57,FIND(CHAR(160),SUBSTITUTE($Z57,\"{\",CHAR(160),HZ$1)),FIND(CHAR(160),SUBSTITUTE($Z57,\"}\",CHAR(160),HZ$1))-FIND(CHAR(160),SUBSTITUTE($Z57,\"{\",CHAR(160),HZ$1))+1),\"\")","v":""},{"$f":"IFERROR(MID($Z57,FIND(CHAR(160),SUBSTITUTE($Z57,\"{\",CHAR(160),IA$1)),FIND(CHAR(160),SUBSTITUTE($Z57,\"}\",CHAR(160),IA$1))-FIND(CHAR(160),SUBSTITUTE($Z57,\"{\",CHAR(160),IA$1))+1),\"\")","v":""},{"$f":"IFERROR(MID($Z57,FIND(CHAR(160),SUBSTITUTE($Z57,\"{\",CHAR(160),IB$1)),FIND(CHAR(160),SUBSTITUTE($Z57,\"}\",CHAR(160),IB$1))-FIND(CHAR(160),SUBSTITUTE($Z57,\"{\",CHAR(160),IB$1))+1),\"\")","v":""},{"$f":"IFERROR(MID($Z57,FIND(CHAR(160),SUBSTITUTE($Z57,\"{\",CHAR(160),IC$1)),FIND(CHAR(160),SUBSTITUTE($Z57,\"}\",CHAR(160),IC$1))-FIND(CHAR(160),SUBSTITUTE($Z57,\"{\",CHAR(160),IC$1))+1),\"\")","v":""},{"$f":"IFERROR(MID($Z57,FIND(CHAR(160),SUBSTITUTE($Z57,\"{\",CHAR(160),ID$1)),FIND(CHAR(160),SUBSTITUTE($Z57,\"}\",CHAR(160),ID$1))-FIND(CHAR(160),SUBSTITUTE($Z57,\"{\",CHAR(160),ID$1))+1),\"\")","v":""},{"$f":"IFERROR(MID($AA57,FIND(CHAR(160),SUBSTITUTE($AA57,\"{\",CHAR(160),IE$1)),FIND(CHAR(160),SUBSTITUTE($AA57,\"}\",CHAR(160),IE$1))-FIND(CHAR(160),SUBSTITUTE($AA57,\"{\",CHAR(160),IE$1))+1),\"\")","v":""},{"$f":"IFERROR(MID($AA57,FIND(CHAR(160),SUBSTITUTE($AA57,\"{\",CHAR(160),IF$1)),FIND(CHAR(160),SUBSTITUTE($AA57,\"}\",CHAR(160),IF$1))-FIND(CHAR(160),SUBSTITUTE($AA57,\"{\",CHAR(160),IF$1))+1),\"\")","v":""},{"$f":"IFERROR(MID($AA57,FIND(CHAR(160),SUBSTITUTE($AA57,\"{\",CHAR(160),IG$1)),FIND(CHAR(160),SUBSTITUTE($AA57,\"}\",CHAR(160),IG$1))-FIND(CHAR(160),SUBSTITUTE($AA57,\"{\",CHAR(160),IG$1))+1),\"\")","v":""},{"$f":"IFERROR(MID($AA57,FIND(CHAR(160),SUBSTITUTE($AA57,\"{\",CHAR(160),IH$1)),FIND(CHAR(160),SUBSTITUTE($AA57,\"}\",CHAR(160),IH$1))-FIND(CHAR(160),SUBSTITUTE($AA57,\"{\",CHAR(160),IH$1))+1),\"\")","v":""},{"$f":"IFERROR(MID($AA57,FIND(CHAR(160),SUBSTITUTE($AA57,\"{\",CHAR(160),II$1)),FIND(CHAR(160),SUBSTITUTE($AA57,\"}\",CHAR(160),II$1))-FIND(CHAR(160),SUBSTITUTE($AA57,\"{\",CHAR(160),II$1))+1),\"\")","v":""},{"$f":"IFERROR(MID($AA57,FIND(CHAR(160),SUBSTITUTE($AA57,\"{\",CHAR(160),IJ$1)),FIND(CHAR(160),SUBSTITUTE($AA57,\"}\",CHAR(160),IJ$1))-FIND(CHAR(160),SUBSTITUTE($AA57,\"{\",CHAR(160),IJ$1))+1),\"\")","v":""},{"$f":"IFERROR(MID($AA57,FIND(CHAR(160),SUBSTITUTE($AA57,\"{\",CHAR(160),IK$1)),FIND(CHAR(160),SUBSTITUTE($AA57,\"}\",CHAR(160),IK$1))-FIND(CHAR(160),SUBSTITUTE($AA57,\"{\",CHAR(160),IK$1))+1),\"\")","v":""},{"$f":"IFERROR(MID($AA57,FIND(CHAR(160),SUBSTITUTE($AA57,\"{\",CHAR(160),IL$1)),FIND(CHAR(160),SUBSTITUTE($AA57,\"}\",CHAR(160),IL$1))-FIND(CHAR(160),SUBSTITUTE($AA57,\"{\",CHAR(160),IL$1))+1),\"\")","v":""},{"$f":"IFERROR(MID($AA57,FIND(CHAR(160),SUBSTITUTE($AA57,\"{\",CHAR(160),IM$1)),FIND(CHAR(160),SUBSTITUTE($AA57,\"}\",CHAR(160),IM$1))-FIND(CHAR(160),SUBSTITUTE($AA57,\"{\",CHAR(160),IM$1))+1),\"\")","v":""},{"$f":"IFERROR(MID($AA57,FIND(CHAR(160),SUBSTITUTE($AA57,\"{\",CHAR(160),IN$1)),FIND(CHAR(160),SUBSTITUTE($AA57,\"}\",CHAR(160),IN$1))-FIND(CHAR(160),SUBSTITUTE($AA57,\"{\",CHAR(160),IN$1))+1),\"\")","v":""},{"$f":"IFERROR(MID($AB57,FIND(CHAR(160),SUBSTITUTE($AB57,\"{\",CHAR(160),IO$1)),FIND(CHAR(160),SUBSTITUTE($AB57,\"}\",CHAR(160),IO$1))-FIND(CHAR(160),SUBSTITUTE($AB57,\"{\",CHAR(160),IO$1))+1),\"\")","v":""},{"$f":"IFERROR(MID($AB57,FIND(CHAR(160),SUBSTITUTE($AB57,\"{\",CHAR(160),IP$1)),FIND(CHAR(160),SUBSTITUTE($AB57,\"}\",CHAR(160),IP$1))-FIND(CHAR(160),SUBSTITUTE($AB57,\"{\",CHAR(160),IP$1))+1),\"\")","v":""},{"$f":"IFERROR(MID($AB57,FIND(CHAR(160),SUBSTITUTE($AB57,\"{\",CHAR(160),IQ$1)),FIND(CHAR(160),SUBSTITUTE($AB57,\"}\",CHAR(160),IQ$1))-FIND(CHAR(160),SUBSTITUTE($AB57,\"{\",CHAR(160),IQ$1))+1),\"\")","v":""},{"$f":"IFERROR(MID($AB57,FIND(CHAR(160),SUBSTITUTE($AB57,\"{\",CHAR(160),IR$1)),FIND(CHAR(160),SUBSTITUTE($AB57,\"}\",CHAR(160),IR$1))-FIND(CHAR(160),SUBSTITUTE($AB57,\"{\",CHAR(160),IR$1))+1),\"\")","v":""},{"$f":"IFERROR(MID($AB57,FIND(CHAR(160),SUBSTITUTE($AB57,\"{\",CHAR(160),IS$1)),FIND(CHAR(160),SUBSTITUTE($AB57,\"}\",CHAR(160),IS$1))-FIND(CHAR(160),SUBSTITUTE($AB57,\"{\",CHAR(160),IS$1))+1),\"\")","v":""},{"$f":"IFERROR(MID($AB57,FIND(CHAR(160),SUBSTITUTE($AB57,\"{\",CHAR(160),IT$1)),FIND(CHAR(160),SUBSTITUTE($AB57,\"}\",CHAR(160),IT$1))-FIND(CHAR(160),SUBSTITUTE($AB57,\"{\",CHAR(160),IT$1))+1),\"\")","v":""},{"$f":"IFERROR(MID($AB57,FIND(CHAR(160),SUBSTITUTE($AB57,\"{\",CHAR(160),IU$1)),FIND(CHAR(160),SUBSTITUTE($AB57,\"}\",CHAR(160),IU$1))-FIND(CHAR(160),SUBSTITUTE($AB57,\"{\",CHAR(160),IU$1))+1),\"\")","v":""},{"$f":"IFERROR(MID($AB57,FIND(CHAR(160),SUBSTITUTE($AB57,\"{\",CHAR(160),IV$1)),FIND(CHAR(160),SUBSTITUTE($AB57,\"}\",CHAR(160),IV$1))-FIND(CHAR(160),SUBSTITUTE($AB57,\"{\",CHAR(160),IV$1))+1),\"\")","v":""},{"$f":"IFERROR(MID($AB57,FIND(CHAR(160),SUBSTITUTE($AB57,\"{\",CHAR(160),IW$1)),FIND(CHAR(160),SUBSTITUTE($AB57,\"}\",CHAR(160),IW$1))-FIND(CHAR(160),SUBSTITUTE($AB57,\"{\",CHAR(160),IW$1))+1),\"\")","v":""},{"$f":"IFERROR(MID($AB57,FIND(CHAR(160),SUBSTITUTE($AB57,\"{\",CHAR(160),IX$1)),FIND(CHAR(160),SUBSTITUTE($AB57,\"}\",CHAR(160),IX$1))-FIND(CHAR(160),SUBSTITUTE($AB57,\"{\",CHAR(160),IX$1))+1),\"\")","v":""},null,{"$f":"10-COUNTIF(DU57:ED57,\"\")","v":5}]
["C&I HVAC - Electric","Packaged Terminal Heat Pump Retrofit","PTHPR","2021-07-01","2021-09-09","Calculated","({Supplier Price for Materials}+{Labor Cost})",0,"Calculated","{Measure:Quantity}*if({Cooling Capacity (Btu/h)}<7000,430,if({Cooling Capacity (Btu/h)}<=15000,450,480))",0,"2021-07-01","2022-06-30","Calculated","{Measure:Quantity} * ({Cooling Capacity (Btu/h)}/1000*(1/{EER_base}-1/{EER})*829*if({Operation Jun-Oct}=0,0,1)+{Heating Capacity (Btu/h)}/1000/3.412*(1/{COP_base}-1/{COP})*2200*({Operation Jun-Oct}+{Operation Nov}+{Operation Dec-Mar}+{Operation Apr}+{Operation May})/100)",null,null,"{Measure:Quantity} *Max(if({Operation Dec-Mar}=0,0,{Heating Capacity (Btu/h)}/1000/3.412*(1/{COP_base}-1/{COP})),if({Operation Jun-Oct}=0,0,{Cooling Capacity (Btu/h)}/1000*(1/{EER_base}-1/{EER})))",null,null,"if({Operation Dec-Mar}=0,0,{Measure:Quantity} * ({Heating Capacity (Btu/h)}/1000/3.412*(1/{COP_base}-1/{COP})*{Factor:WinterCF}))","if({Operation Jun-Oct}=0,0,{Measure:Quantity} * ({Cooling Capacity (Btu/h)}/1000*(1/{EER_base}-1/{EER})*{Factor:SummerCF}))",null,null,null,null,null,null,"2021-05-25","2022-06-30",15,0.56999999999999995,0.372,0.17,0.03,0.62,0.18,1,1,1,0.25,0,null,{"$f":"DU58","v":"{Supplier Price for Materials}"},800,{"$f":"DV58","v":"{Labor Cost}"},100,{"$f":"DW58","v":"{Measure:Quantity}"},1,{"$f":"DX58","v":"{Cooling Capacity (Btu/h)}"},7000,{"$f":"DY58","v":"{EER_base}"},11.9,{"$f":"DZ58","v":"{EER}"},13,{"$f":"EA58","v":"{Operation Jun-Oct}"},11,{"$f":"EB58","v":"{Heating Capacity (Btu/h)}"},7000,{"$f":"EC58","v":"{COP_base}"},1,{"$f":"ED58","v":"{COP}"},4,{"$f":"AW58 * (AY58/1000*(1/BA58-1/BC58)*829*IF(BE58=0,0,1)+BG58/1000/3.412*(1/BI58-1/BK58)*2200*(BE58+11+66+8+4)/100)","v":3426.3738150684567},0,0,{"$f":"AW58 *MAX(IF(11=0,0,BG58/1000/3.412*(1/BI58-1/BK58)),IF(BE58=0,0,AY58/1000*(1/BA58-1/BC58)))","v":1.5386869871043376},0,0,{"$f":"IF(11=0,0,AW58 * (BG58/1000/3.412*(1/BI58-1/BK58)*AF58))","v":0.87705158264947236},{"$f":"IF(BE58=0,0,AW58 * (AY58/1000*(1/BA58-1/BC58)*AG58))","v":1.8515837104072369E-2},0,0,0,0,0,0,null,"Com","Default DR",{"$f":"Benefits(BL58,BR58,BS58,BT58,BU58,BV58,BW58,BX58,BY58,BZ58,AE58,AH58,AI58,AJ58,AK58,AL58,AM58,AN58,AO58,AP58,CA58,CB58)","v":4213.9299332560249},3337.5186550590297,0,0,0,0,0,0,0,{"$f":"SUMPRODUCT(CC58:CK58,--(CC58:CK58>0))","v":7551.4485883150546},{"$f":"-SUMPRODUCT(CC58:CK58,--(CC58:CK58<0))","v":0},null,{"$f":"(AS58+AU58)","v":900},null,null,{"$f":"CM58+CO58","v":900},{"$f":"IF(NetOrGross=\"Net\",(1-AO58+AP58),1)","v":1},{"$f":"(SUMPRODUCT(CC58:CJ58,--(CC58:CJ58>0))+CN58)*CS58/((-SUMPRODUCT(CC58:CJ58,--(CC58:CJ58<0))+MAX(CO58,CV58)+CP58+CQ58)*CS58+IF(FRIncentives=\"Yes\",CV58*(1-CS58),0))","v":8.3904984314611717},1,{"$f":"AW58*IF(AY58<7000,430,IF(AY58<=15000,450,480))","v":450},null,"RGGI","y",null,{"$f":"IF(F58=\"Manual Entry\",\"Manual\",IF(G58=\"\",0,\"X=\"&SUBSTITUTE(SUBSTITUTE(SUBSTITUTE(SUBSTITUTE(SUBSTITUTE(SUBSTITUTE(SUBSTITUTE(SUBSTITUTE(SUBSTITUTE(SUBSTITUTE(SUBSTITUTE(SUBSTITUTE(G58,$ED58,$ED$2&ROW($ED58)),$EC58,$EC$2&ROW($EC58)),$EB58,$EB$2&ROW($EB58)),$EA58,$EA$2&ROW($EA58)),$DZ58,$DZ$2&ROW($DZ58)),$DY58,$DY$2&ROW($DY58)),$DX58,$DX$2&ROW($DX58)),$DW58,$DW$2&ROW($DW58)),$DV58,$DV$2&ROW($DV58)),$DU58,$DU$2&ROW($DU58)),$DT58,$DT$2&ROW($DT58)),$DS58,$DS$2&ROW($DS58))))","v":"X=(AS58+AU58)"},{"$f":"IF(I58=\"Manual Entry\",\"Manual\",IF(J58=\"\",0,\"X=\"&SUBSTITUTE(SUBSTITUTE(SUBSTITUTE(SUBSTITUTE(SUBSTITUTE(SUBSTITUTE(SUBSTITUTE(SUBSTITUTE(SUBSTITUTE(SUBSTITUTE(SUBSTITUTE(SUBSTITUTE(J58,$ED58,$ED$2&ROW($ED58)),$EC58,$EC$2&ROW($EC58)),$EB58,$EB$2&ROW($EB58)),$EA58,$EA$2&ROW($EA58)),$DZ58,$DZ$2&ROW($DZ58)),$DY58,$DY$2&ROW($DY58)),$DX58,$DX$2&ROW($DX58)),$DW58,$DW$2&ROW($DW58)),$DV58,$DV$2&ROW($DV58)),$DU58,$DU$2&ROW($DU58)),$DT58,$DT$2&ROW($DT58)),$DS58,$DS$2&ROW($DS58))))","v":"X=AW58*if(AY58<7000,430,if(AY58<=15000,450,480))"},{"$f":"IF(O58=\"\",0,\"X=\"&SUBSTITUTE(SUBSTITUTE(SUBSTITUTE(SUBSTITUTE(SUBSTITUTE(SUBSTITUTE(SUBSTITUTE(SUBSTITUTE(SUBSTITUTE(SUBSTITUTE(SUBSTITUTE(SUBSTITUTE(O58,$ED58,$ED$2&ROW($ED58)),$EC58,$EC$2&ROW($EC58)),$EB58,$EB$2&ROW($EB58)),$EA58,$EA$2&ROW($EA58)),$DZ58,$DZ$2&ROW($DZ58)),$DY58,$DY$2&ROW($DY58)),$DX58,$DX$2&ROW($DX58)),$DW58,$DW$2&ROW($DW58)),$DV58,$DV$2&ROW($DV58)),$DU58,$DU$2&ROW($DU58)),$DT58,$DT$2&ROW($DT58)),$DS58,$DS$2&ROW($DS58)))","v":"X=AW58 * (AY58/1000*(1/BA58-1/BC58)*829*if(BE58=0,0,1)+BG58/1000/3.412*(1/BI58-1/BK58)*2200*(BE58+{Operation Nov}+{Operation Dec-Mar}+{Operation Apr}+{Operation May})/100)"},{"$f":"IF(P58=\"\",0,\"X=\"&SUBSTITUTE(SUBSTITUTE(SUBSTITUTE(SUBSTITUTE(SUBSTITUTE(SUBSTITUTE(SUBSTITUTE(SUBSTITUTE(SUBSTITUTE(SUBSTITUTE(SUBSTITUTE(SUBSTITUTE(P58,$ED58,$ED$2&ROW($ED58)),$EC58,$EC$2&ROW($EC58)),$EB58,$EB$2&ROW($EB58)),$EA58,$EA$2&ROW($EA58)),$DZ58,$DZ$2&ROW($DZ58)),$DY58,$DY$2&ROW($DY58)),$DX58,$DX$2&ROW($DX58)),$DW58,$DW$2&ROW($DW58)),$DV58,$DV$2&ROW($DV58)),$DU58,$DU$2&ROW($DU58)),$DT58,$DT$2&ROW($DT58)),$DS58,$DS$2&ROW($DS58)))","v":0},{"$f":"IF(Q58=\"\",0,\"X=\"&SUBSTITUTE(SUBSTITUTE(SUBSTITUTE(SUBSTITUTE(SUBSTITUTE(SUBSTITUTE(SUBSTITUTE(SUBSTITUTE(SUBSTITUTE(SUBSTITUTE(SUBSTITUTE(SUBSTITUTE(Q58,$ED58,$ED$2&ROW($ED58)),$EC58,$EC$2&ROW($EC58)),$EB58,$EB$2&ROW($EB58)),$EA58,$EA$2&ROW($EA58)),$DZ58,$DZ$2&ROW($DZ58)),$DY58,$DY$2&ROW($DY58)),$DX58,$DX$2&ROW($DX58)),$DW58,$DW$2&ROW($DW58)),$DV58,$DV$2&ROW($DV58)),$DU58,$DU$2&ROW($DU58)),$DT58,$DT$2&ROW($DT58)),$DS58,$DS$2&ROW($DS58)))","v":0},{"$f":"IF(R58=\"\",0,\"X=\"&SUBSTITUTE(SUBSTITUTE(SUBSTITUTE(SUBSTITUTE(SUBSTITUTE(SUBSTITUTE(SUBSTITUTE(SUBSTITUTE(SUBSTITUTE(SUBSTITUTE(SUBSTITUTE(SUBSTITUTE(R58,$ED58,$ED$2&ROW($ED58)),$EC58,$EC$2&ROW($EC58)),$EB58,$EB$2&ROW($EB58)),$EA58,$EA$2&ROW($EA58)),$DZ58,$DZ$2&ROW($DZ58)),$DY58,$DY$2&ROW($DY58)),$DX58,$DX$2&ROW($DX58)),$DW58,$DW$2&ROW($DW58)),$DV58,$DV$2&ROW($DV58)),$DU58,$DU$2&ROW($DU58)),$DT58,$DT$2&ROW($DT58)),$DS58,$DS$2&ROW($DS58)))","v":"X=AW58 *Max(if({Operation Dec-Mar}=0,0,BG58/1000/3.412*(1/BI58-1/BK58)),if(BE58=0,0,AY58/1000*(1/BA58-1/BC58)))"},{"$f":"IF(S58=\"\",0,\"X=\"&SUBSTITUTE(SUBSTITUTE(SUBSTITUTE(SUBSTITUTE(SUBSTITUTE(SUBSTITUTE(SUBSTITUTE(SUBSTITUTE(SUBSTITUTE(SUBSTITUTE(SUBSTITUTE(SUBSTITUTE(S58,$ED58,$ED$2&ROW($ED58)),$EC58,$EC$2&ROW($EC58)),$EB58,$EB$2&ROW($EB58)),$EA58,$EA$2&ROW($EA58)),$DZ58,$DZ$2&ROW($DZ58)),$DY58,$DY$2&ROW($DY58)),$DX58,$DX$2&ROW($DX58)),$DW58,$DW$2&ROW($DW58)),$DV58,$DV$2&ROW($DV58)),$DU58,$DU$2&ROW($DU58)),$DT58,$DT$2&ROW($DT58)),$DS58,$DS$2&ROW($DS58)))","v":0},{"$f":"IF(T58=\"\",0,\"X=\"&SUBSTITUTE(SUBSTITUTE(SUBSTITUTE(SUBSTITUTE(SUBSTITUTE(SUBSTITUTE(SUBSTITUTE(SUBSTITUTE(SUBSTITUTE(SUBSTITUTE(SUBSTITUTE(SUBSTITUTE(T58,$ED58,$ED$2&ROW($ED58)),$EC58,$EC$2&ROW($EC58)),$EB58,$EB$2&ROW($EB58)),$EA58,$EA$2&ROW($EA58)),$DZ58,$DZ$2&ROW($DZ58)),$DY58,$DY$2&ROW($DY58)),$DX58,$DX$2&ROW($DX58)),$DW58,$DW$2&ROW($DW58)),$DV58,$DV$2&ROW($DV58)),$DU58,$DU$2&ROW($DU58)),$DT58,$DT$2&ROW($DT58)),$DS58,$DS$2&ROW($DS58)))","v":0},{"$f":"IF(U58=\"\",0,\"X=\"&SUBSTITUTE(SUBSTITUTE(SUBSTITUTE(SUBSTITUTE(SUBSTITUTE(SUBSTITUTE(SUBSTITUTE(SUBSTITUTE(SUBSTITUTE(SUBSTITUTE(SUBSTITUTE(SUBSTITUTE(U58,$ED58,$ED$2&ROW($ED58)),$EC58,$EC$2&ROW($EC58)),$EB58,$EB$2&ROW($EB58)),$EA58,$EA$2&ROW($EA58)),$DZ58,$DZ$2&ROW($DZ58)),$DY58,$DY$2&ROW($DY58)),$DX58,$DX$2&ROW($DX58)),$DW58,$DW$2&ROW($DW58)),$DV58,$DV$2&ROW($DV58)),$DU58,$DU$2&ROW($DU58)),$DT58,$DT$2&ROW($DT58)),$DS58,$DS$2&ROW($DS58)))","v":"X=if({Operation Dec-Mar}=0,0,AW58 * (BG58/1000/3.412*(1/BI58-1/BK58)*AF58))"},{"$f":"IF(V58=\"\",0,\"X=\"&SUBSTITUTE(SUBSTITUTE(SUBSTITUTE(SUBSTITUTE(SUBSTITUTE(SUBSTITUTE(SUBSTITUTE(SUBSTITUTE(SUBSTITUTE(SUBSTITUTE(SUBSTITUTE(SUBSTITUTE(V58,$ED58,$ED$2&ROW($ED58)),$EC58,$EC$2&ROW($EC58)),$EB58,$EB$2&ROW($EB58)),$EA58,$EA$2&ROW($EA58)),$DZ58,$DZ$2&ROW($DZ58)),$DY58,$DY$2&ROW($DY58)),$DX58,$DX$2&ROW($DX58)),$DW58,$DW$2&ROW($DW58)),$DV58,$DV$2&ROW($DV58)),$DU58,$DU$2&ROW($DU58)),$DT58,$DT$2&ROW($DT58)),$DS58,$DS$2&ROW($DS58)))","v":"X=if(BE58=0,0,AW58 * (AY58/1000*(1/BA58-1/BC58)*AG58))"},{"$f":"IF(W58=\"\",0,\"X=\"&SUBSTITUTE(SUBSTITUTE(SUBSTITUTE(SUBSTITUTE(SUBSTITUTE(SUBSTITUTE(SUBSTITUTE(SUBSTITUTE(SUBSTITUTE(SUBSTITUTE(SUBSTITUTE(SUBSTITUTE(W58,$ED58,$ED$2&ROW($ED58)),$EC58,$EC$2&ROW($EC58)),$EB58,$EB$2&ROW($EB58)),$EA58,$EA$2&ROW($EA58)),$DZ58,$DZ$2&ROW($DZ58)),$DY58,$DY$2&ROW($DY58)),$DX58,$DX$2&ROW($DX58)),$DW58,$DW$2&ROW($DW58)),$DV58,$DV$2&ROW($DV58)),$DU58,$DU$2&ROW($DU58)),$DT58,$DT$2&ROW($DT58)),$DS58,$DS$2&ROW($DS58)))","v":0},{"$f":"IF(X58=\"\",0,\"X=\"&SUBSTITUTE(SUBSTITUTE(SUBSTITUTE(SUBSTITUTE(SUBSTITUTE(SUBSTITUTE(SUBSTITUTE(SUBSTITUTE(SUBSTITUTE(SUBSTITUTE(SUBSTITUTE(SUBSTITUTE(X58,$ED58,$ED$2&ROW($ED58)),$EC58,$EC$2&ROW($EC58)),$EB58,$EB$2&ROW($EB58)),$EA58,$EA$2&ROW($EA58)),$DZ58,$DZ$2&ROW($DZ58)),$DY58,$DY$2&ROW($DY58)),$DX58,$DX$2&ROW($DX58)),$DW58,$DW$2&ROW($DW58)),$DV58,$DV$2&ROW($DV58)),$DU58,$DU$2&ROW($DU58)),$DT58,$DT$2&ROW($DT58)),$DS58,$DS$2&ROW($DS58)))","v":0},{"$f":"IF(Y58=\"\",0,\"X=\"&SUBSTITUTE(SUBSTITUTE(SUBSTITUTE(SUBSTITUTE(SUBSTITUTE(SUBSTITUTE(SUBSTITUTE(SUBSTITUTE(SUBSTITUTE(SUBSTITUTE(SUBSTITUTE(SUBSTITUTE(Y58,$ED58,$ED$2&ROW($ED58)),$EC58,$EC$2&ROW($EC58)),$EB58,$EB$2&ROW($EB58)),$EA58,$EA$2&ROW($EA58)),$DZ58,$DZ$2&ROW($DZ58)),$DY58,$DY$2&ROW($DY58)),$DX58,$DX$2&ROW($DX58)),$DW58,$DW$2&ROW($DW58)),$DV58,$DV$2&ROW($DV58)),$DU58,$DU$2&ROW($DU58)),$DT58,$DT$2&ROW($DT58)),$DS58,$DS$2&ROW($DS58)))","v":0},{"$f":"IF(Z58=\"\",0,\"X=\"&SUBSTITUTE(SUBSTITUTE(SUBSTITUTE(SUBSTITUTE(SUBSTITUTE(SUBSTITUTE(SUBSTITUTE(SUBSTITUTE(SUBSTITUTE(SUBSTITUTE(SUBSTITUTE(SUBSTITUTE(Z58,$ED58,$ED$2&ROW($ED58)),$EC58,$EC$2&ROW($EC58)),$EB58,$EB$2&ROW($EB58)),$EA58,$EA$2&ROW($EA58)),$DZ58,$DZ$2&ROW($DZ58)),$DY58,$DY$2&ROW($DY58)),$DX58,$DX$2&ROW($DX58)),$DW58,$DW$2&ROW($DW58)),$DV58,$DV$2&ROW($DV58)),$DU58,$DU$2&ROW($DU58)),$DT58,$DT$2&ROW($DT58)),$DS58,$DS$2&ROW($DS58)))","v":0},{"$f":"IF(AA58=\"\",0,\"X=\"&SUBSTITUTE(SUBSTITUTE(SUBSTITUTE(SUBSTITUTE(SUBSTITUTE(SUBSTITUTE(SUBSTITUTE(SUBSTITUTE(SUBSTITUTE(SUBSTITUTE(SUBSTITUTE(SUBSTITUTE(AA58,$ED58,$ED$2&ROW($ED58)),$EC58,$EC$2&ROW($EC58)),$EB58,$EB$2&ROW($EB58)),$EA58,$EA$2&ROW($EA58)),$DZ58,$DZ$2&ROW($DZ58)),$DY58,$DY$2&ROW($DY58)),$DX58,$DX$2&ROW($DX58)),$DW58,$DW$2&ROW($DW58)),$DV58,$DV$2&ROW($DV58)),$DU58,$DU$2&ROW($DU58)),$DT58,$DT$2&ROW($DT58)),$DS58,$DS$2&ROW($DS58)))","v":0},{"$f":"IF(AB58=\"\",0,\"X=\"&SUBSTITUTE(SUBSTITUTE(SUBSTITUTE(SUBSTITUTE(SUBSTITUTE(SUBSTITUTE(SUBSTITUTE(SUBSTITUTE(SUBSTITUTE(SUBSTITUTE(SUBSTITUTE(SUBSTITUTE(AB58,$ED58,$ED$2&ROW($ED58)),$EC58,$EC$2&ROW($EC58)),$EB58,$EB$2&ROW($EB58)),$EA58,$EA$2&ROW($EA58)),$DZ58,$DZ$2&ROW($DZ58)),$DY58,$DY$2&ROW($DY58)),$DX58,$DX$2&ROW($DX58)),$DW58,$DW$2&ROW($DW58)),$DV58,$DV$2&ROW($DV58)),$DU58,$DU$2&ROW($DU58)),$DT58,$DT$2&ROW($DT58)),$DS58,$DS$2&ROW($DS58)))","v":0},null,null,"{Factor:WinterCF}","{Factor:SummerCF}",{"$f":"IFERROR(INDEX($EG58:$IV58,MATCH(0,COUNTIF($DR58:DT58,$EG58:$IV58),0)),\"\")","v":"{Supplier Price for Materials}"},{"$f":"IFERROR(INDEX($EG58:$IV58,MATCH(0,COUNTIF($DR58:DU58,$EG58:$IV58),0)),\"\")","v":"{Labor Cost}"},{"$f":"IFERROR(INDEX($EG58:$IV58,MATCH(0,COUNTIF($DR58:DV58,$EG58:$IV58),0)),\"\")","v":"{Measure:Quantity}"},{"$f":"IFERROR(INDEX($EG58:$IV58,MATCH(0,COUNTIF($DR58:DW58,$EG58:$IV58),0)),\"\")","v":"{Cooling Capacity (Btu/h)}"},{"$f":"IFERROR(INDEX($EG58:$IV58,MATCH(0,COUNTIF($DR58:DX58,$EG58:$IV58),0)),\"\")","v":"{EER_base}"},{"$f":"IFERROR(INDEX($EG58:$IV58,MATCH(0,COUNTIF($DR58:DY58,$EG58:$IV58),0)),\"\")","v":"{EER}"},{"$f":"IFERROR(INDEX($EG58:$IV58,MATCH(0,COUNTIF($DR58:DZ58,$EG58:$IV58),0)),\"\")","v":"{Operation Jun-Oct}"},{"$f":"IFERROR(INDEX($EG58:$IV58,MATCH(0,COUNTIF($DR58:EA58,$EG58:$IV58),0)),\"\")","v":"{Heating Capacity (Btu/h)}"},{"$f":"IFERROR(INDEX($EG58:$IV58,MATCH(0,COUNTIF($DR58:EB58,$EG58:$IV58),0)),\"\")","v":"{COP_base}"},{"$f":"IFERROR(INDEX($EG58:$IV58,MATCH(0,COUNTIF($DR58:EC58,$EG58:$IV58),0)),\"\")","v":"{COP}"},null,null,{"$f":"IFERROR(MID($G58,FIND(CHAR(160),SUBSTITUTE($G58,\"{\",CHAR(160),EG$1)),FIND(CHAR(160),SUBSTITUTE($G58,\"}\",CHAR(160),EG$1))-FIND(CHAR(160),SUBSTITUTE($G58,\"{\",CHAR(160),EG$1))+1),\"\")","v":"{Supplier Price for Materials}"},{"$f":"IFERROR(MID($G58,FIND(CHAR(160),SUBSTITUTE($G58,\"{\",CHAR(160),EH$1)),FIND(CHAR(160),SUBSTITUTE($G58,\"}\",CHAR(160),EH$1))-FIND(CHAR(160),SUBSTITUTE($G58,\"{\",CHAR(160),EH$1))+1),\"\")","v":"{Labor Cost}"},{"$f":"IFERROR(MID($G58,FIND(CHAR(160),SUBSTITUTE($G58,\"{\",CHAR(160),EI$1)),FIND(CHAR(160),SUBSTITUTE($G58,\"}\",CHAR(160),EI$1))-FIND(CHAR(160),SUBSTITUTE($G58,\"{\",CHAR(160),EI$1))+1),\"\")","v":""},{"$f":"IFERROR(MID($G58,FIND(CHAR(160),SUBSTITUTE($G58,\"{\",CHAR(160),EJ$1)),FIND(CHAR(160),SUBSTITUTE($G58,\"}\",CHAR(160),EJ$1))-FIND(CHAR(160),SUBSTITUTE($G58,\"{\",CHAR(160),EJ$1))+1),\"\")","v":""},{"$f":"IFERROR(MID($G58,FIND(CHAR(160),SUBSTITUTE($G58,\"{\",CHAR(160),EK$1)),FIND(CHAR(160),SUBSTITUTE($G58,\"}\",CHAR(160),EK$1))-FIND(CHAR(160),SUBSTITUTE($G58,\"{\",CHAR(160),EK$1))+1),\"\")","v":""},{"$f":"IFERROR(MID($G58,FIND(CHAR(160),SUBSTITUTE($G58,\"{\",CHAR(160),EL$1)),FIND(CHAR(160),SUBSTITUTE($G58,\"}\",CHAR(160),EL$1))-FIND(CHAR(160),SUBSTITUTE($G58,\"{\",CHAR(160),EL$1))+1),\"\")","v":""},{"$f":"IFERROR(MID($G58,FIND(CHAR(160),SUBSTITUTE($G58,\"{\",CHAR(160),EM$1)),FIND(CHAR(160),SUBSTITUTE($G58,\"}\",CHAR(160),EM$1))-FIND(CHAR(160),SUBSTITUTE($G58,\"{\",CHAR(160),EM$1))+1),\"\")","v":""},{"$f":"IFERROR(MID($G58,FIND(CHAR(160),SUBSTITUTE($G58,\"{\",CHAR(160),EN$1)),FIND(CHAR(160),SUBSTITUTE($G58,\"}\",CHAR(160),EN$1))-FIND(CHAR(160),SUBSTITUTE($G58,\"{\",CHAR(160),EN$1))+1),\"\")","v":""},{"$f":"IFERROR(MID($G58,FIND(CHAR(160),SUBSTITUTE($G58,\"{\",CHAR(160),EO$1)),FIND(CHAR(160),SUBSTITUTE($G58,\"}\",CHAR(160),EO$1))-FIND(CHAR(160),SUBSTITUTE($G58,\"{\",CHAR(160),EO$1))+1),\"\")","v":""},{"$f":"IFERROR(MID($G58,FIND(CHAR(160),SUBSTITUTE($G58,\"{\",CHAR(160),EP$1)),FIND(CHAR(160),SUBSTITUTE($G58,\"}\",CHAR(160),EP$1))-FIND(CHAR(160),SUBSTITUTE($G58,\"{\",CHAR(160),EP$1))+1),\"\")","v":""},{"$f":"IFERROR(MID($J58,FIND(CHAR(160),SUBSTITUTE($J58,\"{\",CHAR(160),EQ$1)),FIND(CHAR(160),SUBSTITUTE($J58,\"}\",CHAR(160),EQ$1))-FIND(CHAR(160),SUBSTITUTE($J58,\"{\",CHAR(160),EQ$1))+1),\"\")","v":"{Measure:Quantity}"},{"$f":"IFERROR(MID($J58,FIND(CHAR(160),SUBSTITUTE($J58,\"{\",CHAR(160),ER$1)),FIND(CHAR(160),SUBSTITUTE($J58,\"}\",CHAR(160),ER$1))-FIND(CHAR(160),SUBSTITUTE($J58,\"{\",CHAR(160),ER$1))+1),\"\")","v":"{Cooling Capacity (Btu/h)}"},{"$f":"IFERROR(MID($J58,FIND(CHAR(160),SUBSTITUTE($J58,\"{\",CHAR(160),ES$1)),FIND(CHAR(160),SUBSTITUTE($J58,\"}\",CHAR(160),ES$1))-FIND(CHAR(160),SUBSTITUTE($J58,\"{\",CHAR(160),ES$1))+1),\"\")","v":"{Cooling Capacity (Btu/h)}"},{"$f":"IFERROR(MID($J58,FIND(CHAR(160),SUBSTITUTE($J58,\"{\",CHAR(160),ET$1)),FIND(CHAR(160),SUBSTITUTE($J58,\"}\",CHAR(160),ET$1))-FIND(CHAR(160),SUBSTITUTE($J58,\"{\",CHAR(160),ET$1))+1),\"\")","v":""},{"$f":"IFERROR(MID($J58,FIND(CHAR(160),SUBSTITUTE($J58,\"{\",CHAR(160),EU$1)),FIND(CHAR(160),SUBSTITUTE($J58,\"}\",CHAR(160),EU$1))-FIND(CHAR(160),SUBSTITUTE($J58,\"{\",CHAR(160),EU$1))+1),\"\")","v":""},{"$f":"IFERROR(MID($J58,FIND(CHAR(160),SUBSTITUTE($J58,\"{\",CHAR(160),EV$1)),FIND(CHAR(160),SUBSTITUTE($J58,\"}\",CHAR(160),EV$1))-FIND(CHAR(160),SUBSTITUTE($J58,\"{\",CHAR(160),EV$1))+1),\"\")","v":""},{"$f":"IFERROR(MID($J58,FIND(CHAR(160),SUBSTITUTE($J58,\"{\",CHAR(160),EW$1)),FIND(CHAR(160),SUBSTITUTE($J58,\"}\",CHAR(160),EW$1))-FIND(CHAR(160),SUBSTITUTE($J58,\"{\",CHAR(160),EW$1))+1),\"\")","v":""},{"$f":"IFERROR(MID($J58,FIND(CHAR(160),SUBSTITUTE($J58,\"{\",CHAR(160),EX$1)),FIND(CHAR(160),SUBSTITUTE($J58,\"}\",CHAR(160),EX$1))-FIND(CHAR(160),SUBSTITUTE($J58,\"{\",CHAR(160),EX$1))+1),\"\")","v":""},{"$f":"IFERROR(MID($J58,FIND(CHAR(160),SUBSTITUTE($J58,\"{\",CHAR(160),EY$1)),FIND(CHAR(160),SUBSTITUTE($J58,\"}\",CHAR(160),EY$1))-FIND(CHAR(160),SUBSTITUTE($J58,\"{\",CHAR(160),EY$1))+1),\"\")","v":""},{"$f":"IFERROR(MID($J58,FIND(CHAR(160),SUBSTITUTE($J58,\"{\",CHAR(160),EZ$1)),FIND(CHAR(160),SUBSTITUTE($J58,\"}\",CHAR(160),EZ$1))-FIND(CHAR(160),SUBSTITUTE($J58,\"{\",CHAR(160),EZ$1))+1),\"\")","v":""},{"$f":"IFERROR(MID($J58,FIND(CHAR(160),SUBSTITUTE($J58,\"{\",CHAR(160),FA$1)),FIND(CHAR(160),SUBSTITUTE($J58,\"}\",CHAR(160),FA$1))-FIND(CHAR(160),SUBSTITUTE($J58,\"{\",CHAR(160),FA$1))+1),\"\")","v":"{Measure:Quantity}"},{"$f":"IFERROR(MID($J58,FIND(CHAR(160),SUBSTITUTE($J58,\"{\",CHAR(160),FB$1)),FIND(CHAR(160),SUBSTITUTE($J58,\"}\",CHAR(160),FB$1))-FIND(CHAR(160),SUBSTITUTE($J58,\"{\",CHAR(160),FB$1))+1),\"\")","v":"{Cooling Capacity (Btu/h)}"},{"$f":"IFERROR(MID($O58,FIND(CHAR(160),SUBSTITUTE($O58,\"{\",CHAR(160),FC$1)),FIND(CHAR(160),SUBSTITUTE($O58,\"}\",CHAR(160),FC$1))-FIND(CHAR(160),SUBSTITUTE($O58,\"{\",CHAR(160),FC$1))+1),\"\")","v":"{EER_base}"},{"$f":"IFERROR(MID($O58,FIND(CHAR(160),SUBSTITUTE($O58,\"{\",CHAR(160),FD$1)),FIND(CHAR(160),SUBSTITUTE($O58,\"}\",CHAR(160),FD$1))-FIND(CHAR(160),SUBSTITUTE($O58,\"{\",CHAR(160),FD$1))+1),\"\")","v":"{EER}"},{"$f":"IFERROR(MID($O58,FIND(CHAR(160),SUBSTITUTE($O58,\"{\",CHAR(160),FE$1)),FIND(CHAR(160),SUBSTITUTE($O58,\"}\",CHAR(160),FE$1))-FIND(CHAR(160),SUBSTITUTE($O58,\"{\",CHAR(160),FE$1))+1),\"\")","v":"{Operation Jun-Oct}"},{"$f":"IFERROR(MID($O58,FIND(CHAR(160),SUBSTITUTE($O58,\"{\",CHAR(160),FF$1)),FIND(CHAR(160),SUBSTITUTE($O58,\"}\",CHAR(160),FF$1))-FIND(CHAR(160),SUBSTITUTE($O58,\"{\",CHAR(160),FF$1))+1),\"\")","v":"{Heating Capacity (Btu/h)}"},{"$f":"IFERROR(MID($O58,FIND(CHAR(160),SUBSTITUTE($O58,\"{\",CHAR(160),FG$1)),FIND(CHAR(160),SUBSTITUTE($O58,\"}\",CHAR(160),FG$1))-FIND(CHAR(160),SUBSTITUTE($O58,\"{\",CHAR(160),FG$1))+1),\"\")","v":"{COP_base}"},{"$f":"IFERROR(MID($O58,FIND(CHAR(160),SUBSTITUTE($O58,\"{\",CHAR(160),FH$1)),FIND(CHAR(160),SUBSTITUTE($O58,\"}\",CHAR(160),FH$1))-FIND(CHAR(160),SUBSTITUTE($O58,\"{\",CHAR(160),FH$1))+1),\"\")","v":"{COP}"},{"$f":"IFERROR(MID($O58,FIND(CHAR(160),SUBSTITUTE($O58,\"{\",CHAR(160),FI$1)),FIND(CHAR(160),SUBSTITUTE($O58,\"}\",CHAR(160),FI$1))-FIND(CHAR(160),SUBSTITUTE($O58,\"{\",CHAR(160),FI$1))+1),\"\")","v":"{Operation Jun-Oct}"},{"$f":"IFERROR(MID($O58,FIND(CHAR(160),SUBSTITUTE($O58,\"{\",CHAR(160),FJ$1)),FIND(CHAR(160),SUBSTITUTE($O58,\"}\",CHAR(160),FJ$1))-FIND(CHAR(160),SUBSTITUTE($O58,\"{\",CHAR(160),FJ$1))+1),\"\")","v":"{Operation Nov}"},{"$f":"IFERROR(MID($O58,FIND(CHAR(160),SUBSTITUTE($O58,\"{\",CHAR(160),FK$1)),FIND(CHAR(160),SUBSTITUTE($O58,\"}\",CHAR(160),FK$1))-FIND(CHAR(160),SUBSTITUTE($O58,\"{\",CHAR(160),FK$1))+1),\"\")","v":"{Measure:Quantity}"},{"$f":"IFERROR(MID($O58,FIND(CHAR(160),SUBSTITUTE($O58,\"{\",CHAR(160),FL$1)),FIND(CHAR(160),SUBSTITUTE($O58,\"}\",CHAR(160),FL$1))-FIND(CHAR(160),SUBSTITUTE($O58,\"{\",CHAR(160),FL$1))+1),\"\")","v":"{Cooling Capacity (Btu/h)}"},{"$f":"IFERROR(MID($R58,FIND(CHAR(160),SUBSTITUTE($R58,\"{\",CHAR(160),FM$1)),FIND(CHAR(160),SUBSTITUTE($R58,\"}\",CHAR(160),FM$1))-FIND(CHAR(160),SUBSTITUTE($R58,\"{\",CHAR(160),FM$1))+1),\"\")","v":"{Heating Capacity (Btu/h)}"},{"$f":"IFERROR(MID($R58,FIND(CHAR(160),SUBSTITUTE($R58,\"{\",CHAR(160),FN$1)),FIND(CHAR(160),SUBSTITUTE($R58,\"}\",CHAR(160),FN$1))-FIND(CHAR(160),SUBSTITUTE($R58,\"{\",CHAR(160),FN$1))+1),\"\")","v":"{COP_base}"},{"$f":"IFERROR(MID($R58,FIND(CHAR(160),SUBSTITUTE($R58,\"{\",CHAR(160),FO$1)),FIND(CHAR(160),SUBSTITUTE($R58,\"}\",CHAR(160),FO$1))-FIND(CHAR(160),SUBSTITUTE($R58,\"{\",CHAR(160),FO$1))+1),\"\")","v":"{COP}"},{"$f":"IFERROR(MID($R58,FIND(CHAR(160),SUBSTITUTE($R58,\"{\",CHAR(160),FP$1)),FIND(CHAR(160),SUBSTITUTE($R58,\"}\",CHAR(160),FP$1))-FIND(CHAR(160),SUBSTITUTE($R58,\"{\",CHAR(160),FP$1))+1),\"\")","v":"{Operation Jun-Oct}"},{"$f":"IFERROR(MID($R58,FIND(CHAR(160),SUBSTITUTE($R58,\"{\",CHAR(160),FQ$1)),FIND(CHAR(160),SUBSTITUTE($R58,\"}\",CHAR(160),FQ$1))-FIND(CHAR(160),SUBSTITUTE($R58,\"{\",CHAR(160),FQ$1))+1),\"\")","v":"{Cooling Capacity (Btu/h)}"},{"$f":"IFERROR(MID($R58,FIND(CHAR(160),SUBSTITUTE($R58,\"{\",CHAR(160),FR$1)),FIND(CHAR(160),SUBSTITUTE($R58,\"}\",CHAR(160),FR$1))-FIND(CHAR(160),SUBSTITUTE($R58,\"{\",CHAR(160),FR$1))+1),\"\")","v":"{EER_base}"},{"$f":"IFERROR(MID($R58,FIND(CHAR(160),SUBSTITUTE($R58,\"{\",CHAR(160),FS$1)),FIND(CHAR(160),SUBSTITUTE($R58,\"}\",CHAR(160),FS$1))-FIND(CHAR(160),SUBSTITUTE($R58,\"{\",CHAR(160),FS$1))+1),\"\")","v":"{EER}"},{"$f":"IFERROR(MID($R58,FIND(CHAR(160),SUBSTITUTE($R58,\"{\",CHAR(160),FT$1)),FIND(CHAR(160),SUBSTITUTE($R58,\"}\",CHAR(160),FT$1))-FIND(CHAR(160),SUBSTITUTE($R58,\"{\",CHAR(160),FT$1))+1),\"\")","v":""},{"$f":"IFERROR(MID($R58,FIND(CHAR(160),SUBSTITUTE($R58,\"{\",CHAR(160),FU$1)),FIND(CHAR(160),SUBSTITUTE($R58,\"}\",CHAR(160),FU$1))-FIND(CHAR(160),SUBSTITUTE($R58,\"{\",CHAR(160),FU$1))+1),\"\")","v":"{Measure:Quantity}"},{"$f":"IFERROR(MID($R58,FIND(CHAR(160),SUBSTITUTE($R58,\"{\",CHAR(160),FV$1)),FIND(CHAR(160),SUBSTITUTE($R58,\"}\",CHAR(160),FV$1))-FIND(CHAR(160),SUBSTITUTE($R58,\"{\",CHAR(160),FV$1))+1),\"\")","v":"{Operation Dec-Mar}"},{"$f":"IFERROR(MID($U58,FIND(CHAR(160),SUBSTITUTE($U58,\"{\",CHAR(160),FW$1)),FIND(CHAR(160),SUBSTITUTE($U58,\"}\",CHAR(160),FW$1))-FIND(CHAR(160),SUBSTITUTE($U58,\"{\",CHAR(160),FW$1))+1),\"\")","v":"{Heating Capacity (Btu/h)}"},{"$f":"IFERROR(MID($U58,FIND(CHAR(160),SUBSTITUTE($U58,\"{\",CHAR(160),FX$1)),FIND(CHAR(160),SUBSTITUTE($U58,\"}\",CHAR(160),FX$1))-FIND(CHAR(160),SUBSTITUTE($U58,\"{\",CHAR(160),FX$1))+1),\"\")","v":"{COP_base}"},{"$f":"IFERROR(MID($U58,FIND(CHAR(160),SUBSTITUTE($U58,\"{\",CHAR(160),FY$1)),FIND(CHAR(160),SUBSTITUTE($U58,\"}\",CHAR(160),FY$1))-FIND(CHAR(160),SUBSTITUTE($U58,\"{\",CHAR(160),FY$1))+1),\"\")","v":"{COP}"},{"$f":"IFERROR(MID($U58,FIND(CHAR(160),SUBSTITUTE($U58,\"{\",CHAR(160),FZ$1)),FIND(CHAR(160),SUBSTITUTE($U58,\"}\",CHAR(160),FZ$1))-FIND(CHAR(160),SUBSTITUTE($U58,\"{\",CHAR(160),FZ$1))+1),\"\")","v":"{Factor:WinterCF}"},{"$f":"IFERROR(MID($U58,FIND(CHAR(160),SUBSTITUTE($U58,\"{\",CHAR(160),GA$1)),FIND(CHAR(160),SUBSTITUTE($U58,\"}\",CHAR(160),GA$1))-FIND(CHAR(160),SUBSTITUTE($U58,\"{\",CHAR(160),GA$1))+1),\"\")","v":""},{"$f":"IFERROR(MID($U58,FIND(CHAR(160),SUBSTITUTE($U58,\"{\",CHAR(160),GB$1)),FIND(CHAR(160),SUBSTITUTE($U58,\"}\",CHAR(160),GB$1))-FIND(CHAR(160),SUBSTITUTE($U58,\"{\",CHAR(160),GB$1))+1),\"\")","v":""},{"$f":"IFERROR(MID($U58,FIND(CHAR(160),SUBSTITUTE($U58,\"{\",CHAR(160),GC$1)),FIND(CHAR(160),SUBSTITUTE($U58,\"}\",CHAR(160),GC$1))-FIND(CHAR(160),SUBSTITUTE($U58,\"{\",CHAR(160),GC$1))+1),\"\")","v":""},{"$f":"IFERROR(MID($U58,FIND(CHAR(160),SUBSTITUTE($U58,\"{\",CHAR(160),GD$1)),FIND(CHAR(160),SUBSTITUTE($U58,\"}\",CHAR(160),GD$1))-FIND(CHAR(160),SUBSTITUTE($U58,\"{\",CHAR(160),GD$1))+1),\"\")","v":""},{"$f":"IFERROR(MID($U58,FIND(CHAR(160),SUBSTITUTE($U58,\"{\",CHAR(160),GE$1)),FIND(CHAR(160),SUBSTITUTE($U58,\"}\",CHAR(160),GE$1))-FIND(CHAR(160),SUBSTITUTE($U58,\"{\",CHAR(160),GE$1))+1),\"\")","v":"{Operation Dec-Mar}"},{"$f":"IFERROR(MID($U58,FIND(CHAR(160),SUBSTITUTE($U58,\"{\",CHAR(160),GF$1)),FIND(CHAR(160),SUBSTITUTE($U58,\"}\",CHAR(160),GF$1))-FIND(CHAR(160),SUBSTITUTE($U58,\"{\",CHAR(160),GF$1))+1),\"\")","v":"{Measure:Quantity}"},{"$f":"IFERROR(MID($V58,FIND(CHAR(160),SUBSTITUTE($V58,\"{\",CHAR(160),GG$1)),FIND(CHAR(160),SUBSTITUTE($V58,\"}\",CHAR(160),GG$1))-FIND(CHAR(160),SUBSTITUTE($V58,\"{\",CHAR(160),GG$1))+1),\"\")","v":"{Cooling Capacity (Btu/h)}"},{"$f":"IFERROR(MID($V58,FIND(CHAR(160),SUBSTITUTE($V58,\"{\",CHAR(160),GH$1)),FIND(CHAR(160),SUBSTITUTE($V58,\"}\",CHAR(160),GH$1))-FIND(CHAR(160),SUBSTITUTE($V58,\"{\",CHAR(160),GH$1))+1),\"\")","v":"{EER_base}"},{"$f":"IFERROR(MID($V58,FIND(CHAR(160),SUBSTITUTE($V58,\"{\",CHAR(160),GI$1)),FIND(CHAR(160),SUBSTITUTE($V58,\"}\",CHAR(160),GI$1))-FIND(CHAR(160),SUBSTITUTE($V58,\"{\",CHAR(160),GI$1))+1),\"\")","v":"{EER}"},{"$f":"IFERROR(MID($V58,FIND(CHAR(160),SUBSTITUTE($V58,\"{\",CHAR(160),GJ$1)),FIND(CHAR(160),SUBSTITUTE($V58,\"}\",CHAR(160),GJ$1))-FIND(CHAR(160),SUBSTITUTE($V58,\"{\",CHAR(160),GJ$1))+1),\"\")","v":"{Factor:SummerCF}"},{"$f":"IFERROR(MID($V58,FIND(CHAR(160),SUBSTITUTE($V58,\"{\",CHAR(160),GK$1)),FIND(CHAR(160),SUBSTITUTE($V58,\"}\",CHAR(160),GK$1))-FIND(CHAR(160),SUBSTITUTE($V58,\"{\",CHAR(160),GK$1))+1),\"\")","v":""},{"$f":"IFERROR(MID($V58,FIND(CHAR(160),SUBSTITUTE($V58,\"{\",CHAR(160),GL$1)),FIND(CHAR(160),SUBSTITUTE($V58,\"}\",CHAR(160),GL$1))-FIND(CHAR(160),SUBSTITUTE($V58,\"{\",CHAR(160),GL$1))+1),\"\")","v":""},{"$f":"IFERROR(MID($V58,FIND(CHAR(160),SUBSTITUTE($V58,\"{\",CHAR(160),GM$1)),FIND(CHAR(160),SUBSTITUTE($V58,\"}\",CHAR(160),GM$1))-FIND(CHAR(160),SUBSTITUTE($V58,\"{\",CHAR(160),GM$1))+1),\"\")","v":""},{"$f":"IFERROR(MID($V58,FIND(CHAR(160),SUBSTITUTE($V58,\"{\",CHAR(160),GN$1)),FIND(CHAR(160),SUBSTITUTE($V58,\"}\",CHAR(160),GN$1))-FIND(CHAR(160),SUBSTITUTE($V58,\"{\",CHAR(160),GN$1))+1),\"\")","v":""},{"$f":"IFERROR(MID($V58,FIND(CHAR(160),SUBSTITUTE($V58,\"{\",CHAR(160),GO$1)),FIND(CHAR(160),SUBSTITUTE($V58,\"}\",CHAR(160),GO$1))-FIND(CHAR(160),SUBSTITUTE($V58,\"{\",CHAR(160),GO$1))+1),\"\")","v":"{Operation Jun-Oct}"},{"$f":"IFERROR(MID($V58,FIND(CHAR(160),SUBSTITUTE($V58,\"{\",CHAR(160),GP$1)),FIND(CHAR(160),SUBSTITUTE($V58,\"}\",CHAR(160),GP$1))-FIND(CHAR(160),SUBSTITUTE($V58,\"{\",CHAR(160),GP$1))+1),\"\")","v":"{Measure:Quantity}"},{"$f":"IFERROR(MID($W58,FIND(CHAR(160),SUBSTITUTE($W58,\"{\",CHAR(160),GQ$1)),FIND(CHAR(160),SUBSTITUTE($W58,\"}\",CHAR(160),GQ$1))-FIND(CHAR(160),SUBSTITUTE($W58,\"{\",CHAR(160),GQ$1))+1),\"\")","v":""},{"$f":"IFERROR(MID($W58,FIND(CHAR(160),SUBSTITUTE($W58,\"{\",CHAR(160),GR$1)),FIND(CHAR(160),SUBSTITUTE($W58,\"}\",CHAR(160),GR$1))-FIND(CHAR(160),SUBSTITUTE($W58,\"{\",CHAR(160),GR$1))+1),\"\")","v":""},{"$f":"IFERROR(MID($W58,FIND(CHAR(160),SUBSTITUTE($W58,\"{\",CHAR(160),GS$1)),FIND(CHAR(160),SUBSTITUTE($W58,\"}\",CHAR(160),GS$1))-FIND(CHAR(160),SUBSTITUTE($W58,\"{\",CHAR(160),GS$1))+1),\"\")","v":""},{"$f":"IFERROR(MID($W58,FIND(CHAR(160),SUBSTITUTE($W58,\"{\",CHAR(160),GT$1)),FIND(CHAR(160),SUBSTITUTE($W58,\"}\",CHAR(160),GT$1))-FIND(CHAR(160),SUBSTITUTE($W58,\"{\",CHAR(160),GT$1))+1),\"\")","v":""},{"$f":"IFERROR(MID($W58,FIND(CHAR(160),SUBSTITUTE($W58,\"{\",CHAR(160),GU$1)),FIND(CHAR(160),SUBSTITUTE($W58,\"}\",CHAR(160),GU$1))-FIND(CHAR(160),SUBSTITUTE($W58,\"{\",CHAR(160),GU$1))+1),\"\")","v":""},{"$f":"IFERROR(MID($W58,FIND(CHAR(160),SUBSTITUTE($W58,\"{\",CHAR(160),GV$1)),FIND(CHAR(160),SUBSTITUTE($W58,\"}\",CHAR(160),GV$1))-FIND(CHAR(160),SUBSTITUTE($W58,\"{\",CHAR(160),GV$1))+1),\"\")","v":""},{"$f":"IFERROR(MID($W58,FIND(CHAR(160),SUBSTITUTE($W58,\"{\",CHAR(160),GW$1)),FIND(CHAR(160),SUBSTITUTE($W58,\"}\",CHAR(160),GW$1))-FIND(CHAR(160),SUBSTITUTE($W58,\"{\",CHAR(160),GW$1))+1),\"\")","v":""},{"$f":"IFERROR(MID($W58,FIND(CHAR(160),SUBSTITUTE($W58,\"{\",CHAR(160),GX$1)),FIND(CHAR(160),SUBSTITUTE($W58,\"}\",CHAR(160),GX$1))-FIND(CHAR(160),SUBSTITUTE($W58,\"{\",CHAR(160),GX$1))+1),\"\")","v":""},{"$f":"IFERROR(MID($W58,FIND(CHAR(160),SUBSTITUTE($W58,\"{\",CHAR(160),GY$1)),FIND(CHAR(160),SUBSTITUTE($W58,\"}\",CHAR(160),GY$1))-FIND(CHAR(160),SUBSTITUTE($W58,\"{\",CHAR(160),GY$1))+1),\"\")","v":""},{"$f":"IFERROR(MID($W58,FIND(CHAR(160),SUBSTITUTE($W58,\"{\",CHAR(160),GZ$1)),FIND(CHAR(160),SUBSTITUTE($W58,\"}\",CHAR(160),GZ$1))-FIND(CHAR(160),SUBSTITUTE($W58,\"{\",CHAR(160),GZ$1))+1),\"\")","v":""},{"$f":"IFERROR(MID($X58,FIND(CHAR(160),SUBSTITUTE($X58,\"{\",CHAR(160),HA$1)),FIND(CHAR(160),SUBSTITUTE($X58,\"}\",CHAR(160),HA$1))-FIND(CHAR(160),SUBSTITUTE($X58,\"{\",CHAR(160),HA$1))+1),\"\")","v":""},{"$f":"IFERROR(MID($X58,FIND(CHAR(160),SUBSTITUTE($X58,\"{\",CHAR(160),HB$1)),FIND(CHAR(160),SUBSTITUTE($X58,\"}\",CHAR(160),HB$1))-FIND(CHAR(160),SUBSTITUTE($X58,\"{\",CHAR(160),HB$1))+1),\"\")","v":""},{"$f":"IFERROR(MID($X58,FIND(CHAR(160),SUBSTITUTE($X58,\"{\",CHAR(160),HC$1)),FIND(CHAR(160),SUBSTITUTE($X58,\"}\",CHAR(160),HC$1))-FIND(CHAR(160),SUBSTITUTE($X58,\"{\",CHAR(160),HC$1))+1),\"\")","v":""},{"$f":"IFERROR(MID($X58,FIND(CHAR(160),SUBSTITUTE($X58,\"{\",CHAR(160),HD$1)),FIND(CHAR(160),SUBSTITUTE($X58,\"}\",CHAR(160),HD$1))-FIND(CHAR(160),SUBSTITUTE($X58,\"{\",CHAR(160),HD$1))+1),\"\")","v":""},{"$f":"IFERROR(MID($X58,FIND(CHAR(160),SUBSTITUTE($X58,\"{\",CHAR(160),HE$1)),FIND(CHAR(160),SUBSTITUTE($X58,\"}\",CHAR(160),HE$1))-FIND(CHAR(160),SUBSTITUTE($X58,\"{\",CHAR(160),HE$1))+1),\"\")","v":""},{"$f":"IFERROR(MID($X58,FIND(CHAR(160),SUBSTITUTE($X58,\"{\",CHAR(160),HF$1)),FIND(CHAR(160),SUBSTITUTE($X58,\"}\",CHAR(160),HF$1))-FIND(CHAR(160),SUBSTITUTE($X58,\"{\",CHAR(160),HF$1))+1),\"\")","v":""},{"$f":"IFERROR(MID($X58,FIND(CHAR(160),SUBSTITUTE($X58,\"{\",CHAR(160),HG$1)),FIND(CHAR(160),SUBSTITUTE($X58,\"}\",CHAR(160),HG$1))-FIND(CHAR(160),SUBSTITUTE($X58,\"{\",CHAR(160),HG$1))+1),\"\")","v":""},{"$f":"IFERROR(MID($X58,FIND(CHAR(160),SUBSTITUTE($X58,\"{\",CHAR(160),HH$1)),FIND(CHAR(160),SUBSTITUTE($X58,\"}\",CHAR(160),HH$1))-FIND(CHAR(160),SUBSTITUTE($X58,\"{\",CHAR(160),HH$1))+1),\"\")","v":""},{"$f":"IFERROR(MID($X58,FIND(CHAR(160),SUBSTITUTE($X58,\"{\",CHAR(160),HI$1)),FIND(CHAR(160),SUBSTITUTE($X58,\"}\",CHAR(160),HI$1))-FIND(CHAR(160),SUBSTITUTE($X58,\"{\",CHAR(160),HI$1))+1),\"\")","v":""},{"$f":"IFERROR(MID($X58,FIND(CHAR(160),SUBSTITUTE($X58,\"{\",CHAR(160),HJ$1)),FIND(CHAR(160),SUBSTITUTE($X58,\"}\",CHAR(160),HJ$1))-FIND(CHAR(160),SUBSTITUTE($X58,\"{\",CHAR(160),HJ$1))+1),\"\")","v":""},{"$f":"IFERROR(MID($Y58,FIND(CHAR(160),SUBSTITUTE($Y58,\"{\",CHAR(160),HK$1)),FIND(CHAR(160),SUBSTITUTE($Y58,\"}\",CHAR(160),HK$1))-FIND(CHAR(160),SUBSTITUTE($Y58,\"{\",CHAR(160),HK$1))+1),\"\")","v":""},{"$f":"IFERROR(MID($Y58,FIND(CHAR(160),SUBSTITUTE($Y58,\"{\",CHAR(160),HL$1)),FIND(CHAR(160),SUBSTITUTE($Y58,\"}\",CHAR(160),HL$1))-FIND(CHAR(160),SUBSTITUTE($Y58,\"{\",CHAR(160),HL$1))+1),\"\")","v":""},{"$f":"IFERROR(MID($Y58,FIND(CHAR(160),SUBSTITUTE($Y58,\"{\",CHAR(160),HM$1)),FIND(CHAR(160),SUBSTITUTE($Y58,\"}\",CHAR(160),HM$1))-FIND(CHAR(160),SUBSTITUTE($Y58,\"{\",CHAR(160),HM$1))+1),\"\")","v":""},{"$f":"IFERROR(MID($Y58,FIND(CHAR(160),SUBSTITUTE($Y58,\"{\",CHAR(160),HN$1)),FIND(CHAR(160),SUBSTITUTE($Y58,\"}\",CHAR(160),HN$1))-FIND(CHAR(160),SUBSTITUTE($Y58,\"{\",CHAR(160),HN$1))+1),\"\")","v":""},{"$f":"IFERROR(MID($Y58,FIND(CHAR(160),SUBSTITUTE($Y58,\"{\",CHAR(160),HO$1)),FIND(CHAR(160),SUBSTITUTE($Y58,\"}\",CHAR(160),HO$1))-FIND(CHAR(160),SUBSTITUTE($Y58,\"{\",CHAR(160),HO$1))+1),\"\")","v":""},{"$f":"IFERROR(MID($Y58,FIND(CHAR(160),SUBSTITUTE($Y58,\"{\",CHAR(160),HP$1)),FIND(CHAR(160),SUBSTITUTE($Y58,\"}\",CHAR(160),HP$1))-FIND(CHAR(160),SUBSTITUTE($Y58,\"{\",CHAR(160),HP$1))+1),\"\")","v":""},{"$f":"IFERROR(MID($Y58,FIND(CHAR(160),SUBSTITUTE($Y58,\"{\",CHAR(160),HQ$1)),FIND(CHAR(160),SUBSTITUTE($Y58,\"}\",CHAR(160),HQ$1))-FIND(CHAR(160),SUBSTITUTE($Y58,\"{\",CHAR(160),HQ$1))+1),\"\")","v":""},{"$f":"IFERROR(MID($Y58,FIND(CHAR(160),SUBSTITUTE($Y58,\"{\",CHAR(160),HR$1)),FIND(CHAR(160),SUBSTITUTE($Y58,\"}\",CHAR(160),HR$1))-FIND(CHAR(160),SUBSTITUTE($Y58,\"{\",CHAR(160),HR$1))+1),\"\")","v":""},{"$f":"IFERROR(MID($Y58,FIND(CHAR(160),SUBSTITUTE($Y58,\"{\",CHAR(160),HS$1)),FIND(CHAR(160),SUBSTITUTE($Y58,\"}\",CHAR(160),HS$1))-FIND(CHAR(160),SUBSTITUTE($Y58,\"{\",CHAR(160),HS$1))+1),\"\")","v":""},{"$f":"IFERROR(MID($Y58,FIND(CHAR(160),SUBSTITUTE($Y58,\"{\",CHAR(160),HT$1)),FIND(CHAR(160),SUBSTITUTE($Y58,\"}\",CHAR(160),HT$1))-FIND(CHAR(160),SUBSTITUTE($Y58,\"{\",CHAR(160),HT$1))+1),\"\")","v":""},{"$f":"IFERROR(MID($Z58,FIND(CHAR(160),SUBSTITUTE($Z58,\"{\",CHAR(160),HU$1)),FIND(CHAR(160),SUBSTITUTE($Z58,\"}\",CHAR(160),HU$1))-FIND(CHAR(160),SUBSTITUTE($Z58,\"{\",CHAR(160),HU$1))+1),\"\")","v":""},{"$f":"IFERROR(MID($Z58,FIND(CHAR(160),SUBSTITUTE($Z58,\"{\",CHAR(160),HV$1)),FIND(CHAR(160),SUBSTITUTE($Z58,\"}\",CHAR(160),HV$1))-FIND(CHAR(160),SUBSTITUTE($Z58,\"{\",CHAR(160),HV$1))+1),\"\")","v":""},{"$f":"IFERROR(MID($Z58,FIND(CHAR(160),SUBSTITUTE($Z58,\"{\",CHAR(160),HW$1)),FIND(CHAR(160),SUBSTITUTE($Z58,\"}\",CHAR(160),HW$1))-FIND(CHAR(160),SUBSTITUTE($Z58,\"{\",CHAR(160),HW$1))+1),\"\")","v":""},{"$f":"IFERROR(MID($Z58,FIND(CHAR(160),SUBSTITUTE($Z58,\"{\",CHAR(160),HX$1)),FIND(CHAR(160),SUBSTITUTE($Z58,\"}\",CHAR(160),HX$1))-FIND(CHAR(160),SUBSTITUTE($Z58,\"{\",CHAR(160),HX$1))+1),\"\")","v":""},{"$f":"IFERROR(MID($Z58,FIND(CHAR(160),SUBSTITUTE($Z58,\"{\",CHAR(160),HY$1)),FIND(CHAR(160),SUBSTITUTE($Z58,\"}\",CHAR(160),HY$1))-FIND(CHAR(160),SUBSTITUTE($Z58,\"{\",CHAR(160),HY$1))+1),\"\")","v":""},{"$f":"IFERROR(MID($Z58,FIND(CHAR(160),SUBSTITUTE($Z58,\"{\",CHAR(160),HZ$1)),FIND(CHAR(160),SUBSTITUTE($Z58,\"}\",CHAR(160),HZ$1))-FIND(CHAR(160),SUBSTITUTE($Z58,\"{\",CHAR(160),HZ$1))+1),\"\")","v":""},{"$f":"IFERROR(MID($Z58,FIND(CHAR(160),SUBSTITUTE($Z58,\"{\",CHAR(160),IA$1)),FIND(CHAR(160),SUBSTITUTE($Z58,\"}\",CHAR(160),IA$1))-FIND(CHAR(160),SUBSTITUTE($Z58,\"{\",CHAR(160),IA$1))+1),\"\")","v":""},{"$f":"IFERROR(MID($Z58,FIND(CHAR(160),SUBSTITUTE($Z58,\"{\",CHAR(160),IB$1)),FIND(CHAR(160),SUBSTITUTE($Z58,\"}\",CHAR(160),IB$1))-FIND(CHAR(160),SUBSTITUTE($Z58,\"{\",CHAR(160),IB$1))+1),\"\")","v":""},{"$f":"IFERROR(MID($Z58,FIND(CHAR(160),SUBSTITUTE($Z58,\"{\",CHAR(160),IC$1)),FIND(CHAR(160),SUBSTITUTE($Z58,\"}\",CHAR(160),IC$1))-FIND(CHAR(160),SUBSTITUTE($Z58,\"{\",CHAR(160),IC$1))+1),\"\")","v":""},{"$f":"IFERROR(MID($Z58,FIND(CHAR(160),SUBSTITUTE($Z58,\"{\",CHAR(160),ID$1)),FIND(CHAR(160),SUBSTITUTE($Z58,\"}\",CHAR(160),ID$1))-FIND(CHAR(160),SUBSTITUTE($Z58,\"{\",CHAR(160),ID$1))+1),\"\")","v":""},{"$f":"IFERROR(MID($AA58,FIND(CHAR(160),SUBSTITUTE($AA58,\"{\",CHAR(160),IE$1)),FIND(CHAR(160),SUBSTITUTE($AA58,\"}\",CHAR(160),IE$1))-FIND(CHAR(160),SUBSTITUTE($AA58,\"{\",CHAR(160),IE$1))+1),\"\")","v":""},{"$f":"IFERROR(MID($AA58,FIND(CHAR(160),SUBSTITUTE($AA58,\"{\",CHAR(160),IF$1)),FIND(CHAR(160),SUBSTITUTE($AA58,\"}\",CHAR(160),IF$1))-FIND(CHAR(160),SUBSTITUTE($AA58,\"{\",CHAR(160),IF$1))+1),\"\")","v":""},{"$f":"IFERROR(MID($AA58,FIND(CHAR(160),SUBSTITUTE($AA58,\"{\",CHAR(160),IG$1)),FIND(CHAR(160),SUBSTITUTE($AA58,\"}\",CHAR(160),IG$1))-FIND(CHAR(160),SUBSTITUTE($AA58,\"{\",CHAR(160),IG$1))+1),\"\")","v":""},{"$f":"IFERROR(MID($AA58,FIND(CHAR(160),SUBSTITUTE($AA58,\"{\",CHAR(160),IH$1)),FIND(CHAR(160),SUBSTITUTE($AA58,\"}\",CHAR(160),IH$1))-FIND(CHAR(160),SUBSTITUTE($AA58,\"{\",CHAR(160),IH$1))+1),\"\")","v":""},{"$f":"IFERROR(MID($AA58,FIND(CHAR(160),SUBSTITUTE($AA58,\"{\",CHAR(160),II$1)),FIND(CHAR(160),SUBSTITUTE($AA58,\"}\",CHAR(160),II$1))-FIND(CHAR(160),SUBSTITUTE($AA58,\"{\",CHAR(160),II$1))+1),\"\")","v":""},{"$f":"IFERROR(MID($AA58,FIND(CHAR(160),SUBSTITUTE($AA58,\"{\",CHAR(160),IJ$1)),FIND(CHAR(160),SUBSTITUTE($AA58,\"}\",CHAR(160),IJ$1))-FIND(CHAR(160),SUBSTITUTE($AA58,\"{\",CHAR(160),IJ$1))+1),\"\")","v":""},{"$f":"IFERROR(MID($AA58,FIND(CHAR(160),SUBSTITUTE($AA58,\"{\",CHAR(160),IK$1)),FIND(CHAR(160),SUBSTITUTE($AA58,\"}\",CHAR(160),IK$1))-FIND(CHAR(160),SUBSTITUTE($AA58,\"{\",CHAR(160),IK$1))+1),\"\")","v":""},{"$f":"IFERROR(MID($AA58,FIND(CHAR(160),SUBSTITUTE($AA58,\"{\",CHAR(160),IL$1)),FIND(CHAR(160),SUBSTITUTE($AA58,\"}\",CHAR(160),IL$1))-FIND(CHAR(160),SUBSTITUTE($AA58,\"{\",CHAR(160),IL$1))+1),\"\")","v":""},{"$f":"IFERROR(MID($AA58,FIND(CHAR(160),SUBSTITUTE($AA58,\"{\",CHAR(160),IM$1)),FIND(CHAR(160),SUBSTITUTE($AA58,\"}\",CHAR(160),IM$1))-FIND(CHAR(160),SUBSTITUTE($AA58,\"{\",CHAR(160),IM$1))+1),\"\")","v":""},{"$f":"IFERROR(MID($AA58,FIND(CHAR(160),SUBSTITUTE($AA58,\"{\",CHAR(160),IN$1)),FIND(CHAR(160),SUBSTITUTE($AA58,\"}\",CHAR(160),IN$1))-FIND(CHAR(160),SUBSTITUTE($AA58,\"{\",CHAR(160),IN$1))+1),\"\")","v":""},{"$f":"IFERROR(MID($AB58,FIND(CHAR(160),SUBSTITUTE($AB58,\"{\",CHAR(160),IO$1)),FIND(CHAR(160),SUBSTITUTE($AB58,\"}\",CHAR(160),IO$1))-FIND(CHAR(160),SUBSTITUTE($AB58,\"{\",CHAR(160),IO$1))+1),\"\")","v":""},{"$f":"IFERROR(MID($AB58,FIND(CHAR(160),SUBSTITUTE($AB58,\"{\",CHAR(160),IP$1)),FIND(CHAR(160),SUBSTITUTE($AB58,\"}\",CHAR(160),IP$1))-FIND(CHAR(160),SUBSTITUTE($AB58,\"{\",CHAR(160),IP$1))+1),\"\")","v":""},{"$f":"IFERROR(MID($AB58,FIND(CHAR(160),SUBSTITUTE($AB58,\"{\",CHAR(160),IQ$1)),FIND(CHAR(160),SUBSTITUTE($AB58,\"}\",CHAR(160),IQ$1))-FIND(CHAR(160),SUBSTITUTE($AB58,\"{\",CHAR(160),IQ$1))+1),\"\")","v":""},{"$f":"IFERROR(MID($AB58,FIND(CHAR(160),SUBSTITUTE($AB58,\"{\",CHAR(160),IR$1)),FIND(CHAR(160),SUBSTITUTE($AB58,\"}\",CHAR(160),IR$1))-FIND(CHAR(160),SUBSTITUTE($AB58,\"{\",CHAR(160),IR$1))+1),\"\")","v":""},{"$f":"IFERROR(MID($AB58,FIND(CHAR(160),SUBSTITUTE($AB58,\"{\",CHAR(160),IS$1)),FIND(CHAR(160),SUBSTITUTE($AB58,\"}\",CHAR(160),IS$1))-FIND(CHAR(160),SUBSTITUTE($AB58,\"{\",CHAR(160),IS$1))+1),\"\")","v":""},{"$f":"IFERROR(MID($AB58,FIND(CHAR(160),SUBSTITUTE($AB58,\"{\",CHAR(160),IT$1)),FIND(CHAR(160),SUBSTITUTE($AB58,\"}\",CHAR(160),IT$1))-FIND(CHAR(160),SUBSTITUTE($AB58,\"{\",CHAR(160),IT$1))+1),\"\")","v":""},{"$f":"IFERROR(MID($AB58,FIND(CHAR(160),SUBSTITUTE($AB58,\"{\",CHAR(160),IU$1)),FIND(CHAR(160),SUBSTITUTE($AB58,\"}\",CHAR(160),IU$1))-FIND(CHAR(160),SUBSTITUTE($AB58,\"{\",CHAR(160),IU$1))+1),\"\")","v":""},{"$f":"IFERROR(MID($AB58,FIND(CHAR(160),SUBSTITUTE($AB58,\"{\",CHAR(160),IV$1)),FIND(CHAR(160),SUBSTITUTE($AB58,\"}\",CHAR(160),IV$1))-FIND(CHAR(160),SUBSTITUTE($AB58,\"{\",CHAR(160),IV$1))+1),\"\")","v":""},{"$f":"IFERROR(MID($AB58,FIND(CHAR(160),SUBSTITUTE($AB58,\"{\",CHAR(160),IW$1)),FIND(CHAR(160),SUBSTITUTE($AB58,\"}\",CHAR(160),IW$1))-FIND(CHAR(160),SUBSTITUTE($AB58,\"{\",CHAR(160),IW$1))+1),\"\")","v":""},{"$f":"IFERROR(MID($AB58,FIND(CHAR(160),SUBSTITUTE($AB58,\"{\",CHAR(160),IX$1)),FIND(CHAR(160),SUBSTITUTE($AB58,\"}\",CHAR(160),IX$1))-FIND(CHAR(160),SUBSTITUTE($AB58,\"{\",CHAR(160),IX$1))+1),\"\")","v":""},null,{"$f":"10-COUNTIF(DU58:ED58,\"\")","v":10}]
["C&I HVAC - Electric","HVAC AIR-TO-AIR HEAT PUMP: > = 5.4 to < 11.25","AH3","2021-07-01","2021-09-09","Calculated","{Measure:Quantity}*{Unit Size  - Tons}*100.0",0,"Calculated","{Measure:Quantity}*{Unit Size  - Tons}*50",0,"2021-07-01","2022-06-30","Calculated","{Measure:Quantity} * ((12 * {Unit Size  - Tons} * (1/11.0 - 1/{EER}) * 829) + ({Heating BTUH}/1000 * (1/3.3 - 1/{COP}) * 1600 / 3.412))",1E-4,null,"{Measure:Quantity} * 12 * {Unit Size  - Tons} * (1/11.0 - 1/{EER})",null,null,"{Measure:Quantity} * {Heating BTUH}/1000 * (1/3.3 - 1/{COP}) / 3.412 * {Factor:WinterCF}","{Measure:Quantity} * 12 * {Unit Size  - Tons} * (1/11.0 - 1/{EER}) * {Factor:SummerCF}",null,null,null,null,null,null,"2021-05-25","2022-06-30",15,0.42,0.35699999999999998,0.17,0.03,0.62,0.18,1,1.1220000000000001,1,0.52,1.6E-2,null,{"$f":"DU59","v":"{Measure:Quantity}"},1,{"$f":"DV59","v":"{Unit Size  - Tons}"},8,{"$f":"DW59","v":"{EER}"},12,{"$f":"DX59","v":"{Heating BTUH}"},92000,{"$f":"DY59","v":"{COP}"},4,{"$f":"DZ59","v":""},null,{"$f":"EA59","v":""},null,{"$f":"EB59","v":""},null,{"$f":"EC59","v":""},null,{"$f":"ED59","v":""},null,{"$f":"AS59 * ((12 * AU59 * (1/11 - 1/AW59) * 829) + (AY59/1000 * (1/3.3 - 1/BA59) * 1600 / 3.412))","v":2890.7345909268547},{"$f":"0.0001","v":1E-4},0,{"$f":"AS59 * 12 * AU59 * (1/11 - 1/AW59)","v":0.72727272727272796},0,0,{"$f":"AS59 * AY59/1000 * (1/3.3 - 1/BA59) / 3.412 * AF59","v":0.60055419375466279},{"$f":"AS59 * 12 * AU59 * (1/11 - 1/AW59) * AG59","v":0.25963636363636389},0,0,0,0,0,0,null,"Res","Default DR",{"$f":"Benefits(BL59,BR59,BS59,BT59,BU59,BV59,BW59,BX59,BY59,BZ59,AE59,AH59,AI59,AJ59,AK59,AL59,AM59,AN59,AO59,AP59,CA59,CB59)","v":3988.9045469466564},2750.3162555626686,0,0,0,0,0,0,0,{"$f":"SUMPRODUCT(CC59:CK59,--(CC59:CK59>0))","v":6739.220802509325},{"$f":"-SUMPRODUCT(CC59:CK59,--(CC59:CK59<0))","v":0},null,{"$f":"AS59*AU59*100","v":800},null,null,{"$f":"CM59+CO59","v":800},{"$f":"IF(NetOrGross=\"Net\",(1-AO59+AP59),1)","v":1},{"$f":"(SUMPRODUCT(CC59:CJ59,--(CC59:CJ59>0))+CN59)*CS59/((-SUMPRODUCT(CC59:CJ59,--(CC59:CJ59<0))+MAX(CO59,CV59)+CP59+CQ59)*CS59+IF(FRIncentives=\"Yes\",CV59*(1-CS59),0))","v":8.4240260031366567},1,{"$f":"AS59*AU59*50","v":400},null,"Electric","y",null,{"$f":"IF(F59=\"Manual Entry\",\"Manual\",IF(G59=\"\",0,\"X=\"&SUBSTITUTE(SUBSTITUTE(SUBSTITUTE(SUBSTITUTE(SUBSTITUTE(SUBSTITUTE(SUBSTITUTE(SUBSTITUTE(SUBSTITUTE(SUBSTITUTE(SUBSTITUTE(SUBSTITUTE(G59,$ED59,$ED$2&ROW($ED59)),$EC59,$EC$2&ROW($EC59)),$EB59,$EB$2&ROW($EB59)),$EA59,$EA$2&ROW($EA59)),$DZ59,$DZ$2&ROW($DZ59)),$DY59,$DY$2&ROW($DY59)),$DX59,$DX$2&ROW($DX59)),$DW59,$DW$2&ROW($DW59)),$DV59,$DV$2&ROW($DV59)),$DU59,$DU$2&ROW($DU59)),$DT59,$DT$2&ROW($DT59)),$DS59,$DS$2&ROW($DS59))))","v":"X=AS59*AU59*100.0"},{"$f":"IF(I59=\"Manual Entry\",\"Manual\",IF(J59=\"\",0,\"X=\"&SUBSTITUTE(SUBSTITUTE(SUBSTITUTE(SUBSTITUTE(SUBSTITUTE(SUBSTITUTE(SUBSTITUTE(SUBSTITUTE(SUBSTITUTE(SUBSTITUTE(SUBSTITUTE(SUBSTITUTE(J59,$ED59,$ED$2&ROW($ED59)),$EC59,$EC$2&ROW($EC59)),$EB59,$EB$2&ROW($EB59)),$EA59,$EA$2&ROW($EA59)),$DZ59,$DZ$2&ROW($DZ59)),$DY59,$DY$2&ROW($DY59)),$DX59,$DX$2&ROW($DX59)),$DW59,$DW$2&ROW($DW59)),$DV59,$DV$2&ROW($DV59)),$DU59,$DU$2&ROW($DU59)),$DT59,$DT$2&ROW($DT59)),$DS59,$DS$2&ROW($DS59))))","v":"X=AS59*AU59*50"},{"$f":"IF(O59=\"\",0,\"X=\"&SUBSTITUTE(SUBSTITUTE(SUBSTITUTE(SUBSTITUTE(SUBSTITUTE(SUBSTITUTE(SUBSTITUTE(SUBSTITUTE(SUBSTITUTE(SUBSTITUTE(SUBSTITUTE(SUBSTITUTE(O59,$ED59,$ED$2&ROW($ED59)),$EC59,$EC$2&ROW($EC59)),$EB59,$EB$2&ROW($EB59)),$EA59,$EA$2&ROW($EA59)),$DZ59,$DZ$2&ROW($DZ59)),$DY59,$DY$2&ROW($DY59)),$DX59,$DX$2&ROW($DX59)),$DW59,$DW$2&ROW($DW59)),$DV59,$DV$2&ROW($DV59)),$DU59,$DU$2&ROW($DU59)),$DT59,$DT$2&ROW($DT59)),$DS59,$DS$2&ROW($DS59)))","v":"X=AS59 * ((12 * AU59 * (1/11.0 - 1/AW59) * 829) + (AY59/1000 * (1/3.3 - 1/BA59) * 1600 / 3.412))"},{"$f":"IF(P59=\"\",0,\"X=\"&SUBSTITUTE(SUBSTITUTE(SUBSTITUTE(SUBSTITUTE(SUBSTITUTE(SUBSTITUTE(SUBSTITUTE(SUBSTITUTE(SUBSTITUTE(SUBSTITUTE(SUBSTITUTE(SUBSTITUTE(P59,$ED59,$ED$2&ROW($ED59)),$EC59,$EC$2&ROW($EC59)),$EB59,$EB$2&ROW($EB59)),$EA59,$EA$2&ROW($EA59)),$DZ59,$DZ$2&ROW($DZ59)),$DY59,$DY$2&ROW($DY59)),$DX59,$DX$2&ROW($DX59)),$DW59,$DW$2&ROW($DW59)),$DV59,$DV$2&ROW($DV59)),$DU59,$DU$2&ROW($DU59)),$DT59,$DT$2&ROW($DT59)),$DS59,$DS$2&ROW($DS59)))","v":"X=0.0001"},{"$f":"IF(Q59=\"\",0,\"X=\"&SUBSTITUTE(SUBSTITUTE(SUBSTITUTE(SUBSTITUTE(SUBSTITUTE(SUBSTITUTE(SUBSTITUTE(SUBSTITUTE(SUBSTITUTE(SUBSTITUTE(SUBSTITUTE(SUBSTITUTE(Q59,$ED59,$ED$2&ROW($ED59)),$EC59,$EC$2&ROW($EC59)),$EB59,$EB$2&ROW($EB59)),$EA59,$EA$2&ROW($EA59)),$DZ59,$DZ$2&ROW($DZ59)),$DY59,$DY$2&ROW($DY59)),$DX59,$DX$2&ROW($DX59)),$DW59,$DW$2&ROW($DW59)),$DV59,$DV$2&ROW($DV59)),$DU59,$DU$2&ROW($DU59)),$DT59,$DT$2&ROW($DT59)),$DS59,$DS$2&ROW($DS59)))","v":0},{"$f":"IF(R59=\"\",0,\"X=\"&SUBSTITUTE(SUBSTITUTE(SUBSTITUTE(SUBSTITUTE(SUBSTITUTE(SUBSTITUTE(SUBSTITUTE(SUBSTITUTE(SUBSTITUTE(SUBSTITUTE(SUBSTITUTE(SUBSTITUTE(R59,$ED59,$ED$2&ROW($ED59)),$EC59,$EC$2&ROW($EC59)),$EB59,$EB$2&ROW($EB59)),$EA59,$EA$2&ROW($EA59)),$DZ59,$DZ$2&ROW($DZ59)),$DY59,$DY$2&ROW($DY59)),$DX59,$DX$2&ROW($DX59)),$DW59,$DW$2&ROW($DW59)),$DV59,$DV$2&ROW($DV59)),$DU59,$DU$2&ROW($DU59)),$DT59,$DT$2&ROW($DT59)),$DS59,$DS$2&ROW($DS59)))","v":"X=AS59 * 12 * AU59 * (1/11.0 - 1/AW59)"},{"$f":"IF(S59=\"\",0,\"X=\"&SUBSTITUTE(SUBSTITUTE(SUBSTITUTE(SUBSTITUTE(SUBSTITUTE(SUBSTITUTE(SUBSTITUTE(SUBSTITUTE(SUBSTITUTE(SUBSTITUTE(SUBSTITUTE(SUBSTITUTE(S59,$ED59,$ED$2&ROW($ED59)),$EC59,$EC$2&ROW($EC59)),$EB59,$EB$2&ROW($EB59)),$EA59,$EA$2&ROW($EA59)),$DZ59,$DZ$2&ROW($DZ59)),$DY59,$DY$2&ROW($DY59)),$DX59,$DX$2&ROW($DX59)),$DW59,$DW$2&ROW($DW59)),$DV59,$DV$2&ROW($DV59)),$DU59,$DU$2&ROW($DU59)),$DT59,$DT$2&ROW($DT59)),$DS59,$DS$2&ROW($DS59)))","v":0},{"$f":"IF(T59=\"\",0,\"X=\"&SUBSTITUTE(SUBSTITUTE(SUBSTITUTE(SUBSTITUTE(SUBSTITUTE(SUBSTITUTE(SUBSTITUTE(SUBSTITUTE(SUBSTITUTE(SUBSTITUTE(SUBSTITUTE(SUBSTITUTE(T59,$ED59,$ED$2&ROW($ED59)),$EC59,$EC$2&ROW($EC59)),$EB59,$EB$2&ROW($EB59)),$EA59,$EA$2&ROW($EA59)),$DZ59,$DZ$2&ROW($DZ59)),$DY59,$DY$2&ROW($DY59)),$DX59,$DX$2&ROW($DX59)),$DW59,$DW$2&ROW($DW59)),$DV59,$DV$2&ROW($DV59)),$DU59,$DU$2&ROW($DU59)),$DT59,$DT$2&ROW($DT59)),$DS59,$DS$2&ROW($DS59)))","v":0},{"$f":"IF(U59=\"\",0,\"X=\"&SUBSTITUTE(SUBSTITUTE(SUBSTITUTE(SUBSTITUTE(SUBSTITUTE(SUBSTITUTE(SUBSTITUTE(SUBSTITUTE(SUBSTITUTE(SUBSTITUTE(SUBSTITUTE(SUBSTITUTE(U59,$ED59,$ED$2&ROW($ED59)),$EC59,$EC$2&ROW($EC59)),$EB59,$EB$2&ROW($EB59)),$EA59,$EA$2&ROW($EA59)),$DZ59,$DZ$2&ROW($DZ59)),$DY59,$DY$2&ROW($DY59)),$DX59,$DX$2&ROW($DX59)),$DW59,$DW$2&ROW($DW59)),$DV59,$DV$2&ROW($DV59)),$DU59,$DU$2&ROW($DU59)),$DT59,$DT$2&ROW($DT59)),$DS59,$DS$2&ROW($DS59)))","v":"X=AS59 * AY59/1000 * (1/3.3 - 1/BA59) / 3.412 * AF59"},{"$f":"IF(V59=\"\",0,\"X=\"&SUBSTITUTE(SUBSTITUTE(SUBSTITUTE(SUBSTITUTE(SUBSTITUTE(SUBSTITUTE(SUBSTITUTE(SUBSTITUTE(SUBSTITUTE(SUBSTITUTE(SUBSTITUTE(SUBSTITUTE(V59,$ED59,$ED$2&ROW($ED59)),$EC59,$EC$2&ROW($EC59)),$EB59,$EB$2&ROW($EB59)),$EA59,$EA$2&ROW($EA59)),$DZ59,$DZ$2&ROW($DZ59)),$DY59,$DY$2&ROW($DY59)),$DX59,$DX$2&ROW($DX59)),$DW59,$DW$2&ROW($DW59)),$DV59,$DV$2&ROW($DV59)),$DU59,$DU$2&ROW($DU59)),$DT59,$DT$2&ROW($DT59)),$DS59,$DS$2&ROW($DS59)))","v":"X=AS59 * 12 * AU59 * (1/11.0 - 1/AW59) * AG59"},{"$f":"IF(W59=\"\",0,\"X=\"&SUBSTITUTE(SUBSTITUTE(SUBSTITUTE(SUBSTITUTE(SUBSTITUTE(SUBSTITUTE(SUBSTITUTE(SUBSTITUTE(SUBSTITUTE(SUBSTITUTE(SUBSTITUTE(SUBSTITUTE(W59,$ED59,$ED$2&ROW($ED59)),$EC59,$EC$2&ROW($EC59)),$EB59,$EB$2&ROW($EB59)),$EA59,$EA$2&ROW($EA59)),$DZ59,$DZ$2&ROW($DZ59)),$DY59,$DY$2&ROW($DY59)),$DX59,$DX$2&ROW($DX59)),$DW59,$DW$2&ROW($DW59)),$DV59,$DV$2&ROW($DV59)),$DU59,$DU$2&ROW($DU59)),$DT59,$DT$2&ROW($DT59)),$DS59,$DS$2&ROW($DS59)))","v":0},{"$f":"IF(X59=\"\",0,\"X=\"&SUBSTITUTE(SUBSTITUTE(SUBSTITUTE(SUBSTITUTE(SUBSTITUTE(SUBSTITUTE(SUBSTITUTE(SUBSTITUTE(SUBSTITUTE(SUBSTITUTE(SUBSTITUTE(SUBSTITUTE(X59,$ED59,$ED$2&ROW($ED59)),$EC59,$EC$2&ROW($EC59)),$EB59,$EB$2&ROW($EB59)),$EA59,$EA$2&ROW($EA59)),$DZ59,$DZ$2&ROW($DZ59)),$DY59,$DY$2&ROW($DY59)),$DX59,$DX$2&ROW($DX59)),$DW59,$DW$2&ROW($DW59)),$DV59,$DV$2&ROW($DV59)),$DU59,$DU$2&ROW($DU59)),$DT59,$DT$2&ROW($DT59)),$DS59,$DS$2&ROW($DS59)))","v":0},{"$f":"IF(Y59=\"\",0,\"X=\"&SUBSTITUTE(SUBSTITUTE(SUBSTITUTE(SUBSTITUTE(SUBSTITUTE(SUBSTITUTE(SUBSTITUTE(SUBSTITUTE(SUBSTITUTE(SUBSTITUTE(SUBSTITUTE(SUBSTITUTE(Y59,$ED59,$ED$2&ROW($ED59)),$EC59,$EC$2&ROW($EC59)),$EB59,$EB$2&ROW($EB59)),$EA59,$EA$2&ROW($EA59)),$DZ59,$DZ$2&ROW($DZ59)),$DY59,$DY$2&ROW($DY59)),$DX59,$DX$2&ROW($DX59)),$DW59,$DW$2&ROW($DW59)),$DV59,$DV$2&ROW($DV59)),$DU59,$DU$2&ROW($DU59)),$DT59,$DT$2&ROW($DT59)),$DS59,$DS$2&ROW($DS59)))","v":0},{"$f":"IF(Z59=\"\",0,\"X=\"&SUBSTITUTE(SUBSTITUTE(SUBSTITUTE(SUBSTITUTE(SUBSTITUTE(SUBSTITUTE(SUBSTITUTE(SUBSTITUTE(SUBSTITUTE(SUBSTITUTE(SUBSTITUTE(SUBSTITUTE(Z59,$ED59,$ED$2&ROW($ED59)),$EC59,$EC$2&ROW($EC59)),$EB59,$EB$2&ROW($EB59)),$EA59,$EA$2&ROW($EA59)),$DZ59,$DZ$2&ROW($DZ59)),$DY59,$DY$2&ROW($DY59)),$DX59,$DX$2&ROW($DX59)),$DW59,$DW$2&ROW($DW59)),$DV59,$DV$2&ROW($DV59)),$DU59,$DU$2&ROW($DU59)),$DT59,$DT$2&ROW($DT59)),$DS59,$DS$2&ROW($DS59)))","v":0},{"$f":"IF(AA59=\"\",0,\"X=\"&SUBSTITUTE(SUBSTITUTE(SUBSTITUTE(SUBSTITUTE(SUBSTITUTE(SUBSTITUTE(SUBSTITUTE(SUBSTITUTE(SUBSTITUTE(SUBSTITUTE(SUBSTITUTE(SUBSTITUTE(AA59,$ED59,$ED$2&ROW($ED59)),$EC59,$EC$2&ROW($EC59)),$EB59,$EB$2&ROW($EB59)),$EA59,$EA$2&ROW($EA59)),$DZ59,$DZ$2&ROW($DZ59)),$DY59,$DY$2&ROW($DY59)),$DX59,$DX$2&ROW($DX59)),$DW59,$DW$2&ROW($DW59)),$DV59,$DV$2&ROW($DV59)),$DU59,$DU$2&ROW($DU59)),$DT59,$DT$2&ROW($DT59)),$DS59,$DS$2&ROW($DS59)))","v":0},{"$f":"IF(AB59=\"\",0,\"X=\"&SUBSTITUTE(SUBSTITUTE(SUBSTITUTE(SUBSTITUTE(SUBSTITUTE(SUBSTITUTE(SUBSTITUTE(SUBSTITUTE(SUBSTITUTE(SUBSTITUTE(SUBSTITUTE(SUBSTITUTE(AB59,$ED59,$ED$2&ROW($ED59)),$EC59,$EC$2&ROW($EC59)),$EB59,$EB$2&ROW($EB59)),$EA59,$EA$2&ROW($EA59)),$DZ59,$DZ$2&ROW($DZ59)),$DY59,$DY$2&ROW($DY59)),$DX59,$DX$2&ROW($DX59)),$DW59,$DW$2&ROW($DW59)),$DV59,$DV$2&ROW($DV59)),$DU59,$DU$2&ROW($DU59)),$DT59,$DT$2&ROW($DT59)),$DS59,$DS$2&ROW($DS59)))","v":0},null,null,"{Factor:WinterCF}","{Factor:SummerCF}",{"$f":"IFERROR(INDEX($EG59:$IV59,MATCH(0,COUNTIF($DR59:DT59,$EG59:$IV59),0)),\"\")","v":"{Measure:Quantity}"},{"$f":"IFERROR(INDEX($EG59:$IV59,MATCH(0,COUNTIF($DR59:DU59,$EG59:$IV59),0)),\"\")","v":"{Unit Size  - Tons}"},{"$f":"IFERROR(INDEX($EG59:$IV59,MATCH(0,COUNTIF($DR59:DV59,$EG59:$IV59),0)),\"\")","v":"{EER}"},{"$f":"IFERROR(INDEX($EG59:$IV59,MATCH(0,COUNTIF($DR59:DW59,$EG59:$IV59),0)),\"\")","v":"{Heating BTUH}"},{"$f":"IFERROR(INDEX($EG59:$IV59,MATCH(0,COUNTIF($DR59:DX59,$EG59:$IV59),0)),\"\")","v":"{COP}"},{"$f":"IFERROR(INDEX($EG59:$IV59,MATCH(0,COUNTIF($DR59:DY59,$EG59:$IV59),0)),\"\")","v":""},{"$f":"IFERROR(INDEX($EG59:$IV59,MATCH(0,COUNTIF($DR59:DZ59,$EG59:$IV59),0)),\"\")","v":""},{"$f":"IFERROR(INDEX($EG59:$IV59,MATCH(0,COUNTIF($DR59:EA59,$EG59:$IV59),0)),\"\")","v":""},{"$f":"IFERROR(INDEX($EG59:$IV59,MATCH(0,COUNTIF($DR59:EB59,$EG59:$IV59),0)),\"\")","v":""},{"$f":"IFERROR(INDEX($EG59:$IV59,MATCH(0,COUNTIF($DR59:EC59,$EG59:$IV59),0)),\"\")","v":""},null,null,{"$f":"IFERROR(MID($G59,FIND(CHAR(160),SUBSTITUTE($G59,\"{\",CHAR(160),EG$1)),FIND(CHAR(160),SUBSTITUTE($G59,\"}\",CHAR(160),EG$1))-FIND(CHAR(160),SUBSTITUTE($G59,\"{\",CHAR(160),EG$1))+1),\"\")","v":"{Measure:Quantity}"},{"$f":"IFERROR(MID($G59,FIND(CHAR(160),SUBSTITUTE($G59,\"{\",CHAR(160),EH$1)),FIND(CHAR(160),SUBSTITUTE($G59,\"}\",CHAR(160),EH$1))-FIND(CHAR(160),SUBSTITUTE($G59,\"{\",CHAR(160),EH$1))+1),\"\")","v":"{Unit Size  - Tons}"},{"$f":"IFERROR(MID($G59,FIND(CHAR(160),SUBSTITUTE($G59,\"{\",CHAR(160),EI$1)),FIND(CHAR(160),SUBSTITUTE($G59,\"}\",CHAR(160),EI$1))-FIND(CHAR(160),SUBSTITUTE($G59,\"{\",CHAR(160),EI$1))+1),\"\")","v":""},{"$f":"IFERROR(MID($G59,FIND(CHAR(160),SUBSTITUTE($G59,\"{\",CHAR(160),EJ$1)),FIND(CHAR(160),SUBSTITUTE($G59,\"}\",CHAR(160),EJ$1))-FIND(CHAR(160),SUBSTITUTE($G59,\"{\",CHAR(160),EJ$1))+1),\"\")","v":""},{"$f":"IFERROR(MID($G59,FIND(CHAR(160),SUBSTITUTE($G59,\"{\",CHAR(160),EK$1)),FIND(CHAR(160),SUBSTITUTE($G59,\"}\",CHAR(160),EK$1))-FIND(CHAR(160),SUBSTITUTE($G59,\"{\",CHAR(160),EK$1))+1),\"\")","v":""},{"$f":"IFERROR(MID($G59,FIND(CHAR(160),SUBSTITUTE($G59,\"{\",CHAR(160),EL$1)),FIND(CHAR(160),SUBSTITUTE($G59,\"}\",CHAR(160),EL$1))-FIND(CHAR(160),SUBSTITUTE($G59,\"{\",CHAR(160),EL$1))+1),\"\")","v":""},{"$f":"IFERROR(MID($G59,FIND(CHAR(160),SUBSTITUTE($G59,\"{\",CHAR(160),EM$1)),FIND(CHAR(160),SUBSTITUTE($G59,\"}\",CHAR(160),EM$1))-FIND(CHAR(160),SUBSTITUTE($G59,\"{\",CHAR(160),EM$1))+1),\"\")","v":""},{"$f":"IFERROR(MID($G59,FIND(CHAR(160),SUBSTITUTE($G59,\"{\",CHAR(160),EN$1)),FIND(CHAR(160),SUBSTITUTE($G59,\"}\",CHAR(160),EN$1))-FIND(CHAR(160),SUBSTITUTE($G59,\"{\",CHAR(160),EN$1))+1),\"\")","v":""},{"$f":"IFERROR(MID($G59,FIND(CHAR(160),SUBSTITUTE($G59,\"{\",CHAR(160),EO$1)),FIND(CHAR(160),SUBSTITUTE($G59,\"}\",CHAR(160),EO$1))-FIND(CHAR(160),SUBSTITUTE($G59,\"{\",CHAR(160),EO$1))+1),\"\")","v":""},{"$f":"IFERROR(MID($G59,FIND(CHAR(160),SUBSTITUTE($G59,\"{\",CHAR(160),EP$1)),FIND(CHAR(160),SUBSTITUTE($G59,\"}\",CHAR(160),EP$1))-FIND(CHAR(160),SUBSTITUTE($G59,\"{\",CHAR(160),EP$1))+1),\"\")","v":""},{"$f":"IFERROR(MID($J59,FIND(CHAR(160),SUBSTITUTE($J59,\"{\",CHAR(160),EQ$1)),FIND(CHAR(160),SUBSTITUTE($J59,\"}\",CHAR(160),EQ$1))-FIND(CHAR(160),SUBSTITUTE($J59,\"{\",CHAR(160),EQ$1))+1),\"\")","v":"{Measure:Quantity}"},{"$f":"IFERROR(MID($J59,FIND(CHAR(160),SUBSTITUTE($J59,\"{\",CHAR(160),ER$1)),FIND(CHAR(160),SUBSTITUTE($J59,\"}\",CHAR(160),ER$1))-FIND(CHAR(160),SUBSTITUTE($J59,\"{\",CHAR(160),ER$1))+1),\"\")","v":"{Unit Size  - Tons}"},{"$f":"IFERROR(MID($J59,FIND(CHAR(160),SUBSTITUTE($J59,\"{\",CHAR(160),ES$1)),FIND(CHAR(160),SUBSTITUTE($J59,\"}\",CHAR(160),ES$1))-FIND(CHAR(160),SUBSTITUTE($J59,\"{\",CHAR(160),ES$1))+1),\"\")","v":""},{"$f":"IFERROR(MID($J59,FIND(CHAR(160),SUBSTITUTE($J59,\"{\",CHAR(160),ET$1)),FIND(CHAR(160),SUBSTITUTE($J59,\"}\",CHAR(160),ET$1))-FIND(CHAR(160),SUBSTITUTE($J59,\"{\",CHAR(160),ET$1))+1),\"\")","v":""},{"$f":"IFERROR(MID($J59,FIND(CHAR(160),SUBSTITUTE($J59,\"{\",CHAR(160),EU$1)),FIND(CHAR(160),SUBSTITUTE($J59,\"}\",CHAR(160),EU$1))-FIND(CHAR(160),SUBSTITUTE($J59,\"{\",CHAR(160),EU$1))+1),\"\")","v":""},{"$f":"IFERROR(MID($J59,FIND(CHAR(160),SUBSTITUTE($J59,\"{\",CHAR(160),EV$1)),FIND(CHAR(160),SUBSTITUTE($J59,\"}\",CHAR(160),EV$1))-FIND(CHAR(160),SUBSTITUTE($J59,\"{\",CHAR(160),EV$1))+1),\"\")","v":""},{"$f":"IFERROR(MID($J59,FIND(CHAR(160),SUBSTITUTE($J59,\"{\",CHAR(160),EW$1)),FIND(CHAR(160),SUBSTITUTE($J59,\"}\",CHAR(160),EW$1))-FIND(CHAR(160),SUBSTITUTE($J59,\"{\",CHAR(160),EW$1))+1),\"\")","v":""},{"$f":"IFERROR(MID($J59,FIND(CHAR(160),SUBSTITUTE($J59,\"{\",CHAR(160),EX$1)),FIND(CHAR(160),SUBSTITUTE($J59,\"}\",CHAR(160),EX$1))-FIND(CHAR(160),SUBSTITUTE($J59,\"{\",CHAR(160),EX$1))+1),\"\")","v":""},{"$f":"IFERROR(MID($J59,FIND(CHAR(160),SUBSTITUTE($J59,\"{\",CHAR(160),EY$1)),FIND(CHAR(160),SUBSTITUTE($J59,\"}\",CHAR(160),EY$1))-FIND(CHAR(160),SUBSTITUTE($J59,\"{\",CHAR(160),EY$1))+1),\"\")","v":""},{"$f":"IFERROR(MID($J59,FIND(CHAR(160),SUBSTITUTE($J59,\"{\",CHAR(160),EZ$1)),FIND(CHAR(160),SUBSTITUTE($J59,\"}\",CHAR(160),EZ$1))-FIND(CHAR(160),SUBSTITUTE($J59,\"{\",CHAR(160),EZ$1))+1),\"\")","v":""},{"$f":"IFERROR(MID($J59,FIND(CHAR(160),SUBSTITUTE($J59,\"{\",CHAR(160),FA$1)),FIND(CHAR(160),SUBSTITUTE($J59,\"}\",CHAR(160),FA$1))-FIND(CHAR(160),SUBSTITUTE($J59,\"{\",CHAR(160),FA$1))+1),\"\")","v":"{Measure:Quantity}"},{"$f":"IFERROR(MID($J59,FIND(CHAR(160),SUBSTITUTE($J59,\"{\",CHAR(160),FB$1)),FIND(CHAR(160),SUBSTITUTE($J59,\"}\",CHAR(160),FB$1))-FIND(CHAR(160),SUBSTITUTE($J59,\"{\",CHAR(160),FB$1))+1),\"\")","v":"{Unit Size  - Tons}"},{"$f":"IFERROR(MID($O59,FIND(CHAR(160),SUBSTITUTE($O59,\"{\",CHAR(160),FC$1)),FIND(CHAR(160),SUBSTITUTE($O59,\"}\",CHAR(160),FC$1))-FIND(CHAR(160),SUBSTITUTE($O59,\"{\",CHAR(160),FC$1))+1),\"\")","v":"{EER}"},{"$f":"IFERROR(MID($O59,FIND(CHAR(160),SUBSTITUTE($O59,\"{\",CHAR(160),FD$1)),FIND(CHAR(160),SUBSTITUTE($O59,\"}\",CHAR(160),FD$1))-FIND(CHAR(160),SUBSTITUTE($O59,\"{\",CHAR(160),FD$1))+1),\"\")","v":"{Heating BTUH}"},{"$f":"IFERROR(MID($O59,FIND(CHAR(160),SUBSTITUTE($O59,\"{\",CHAR(160),FE$1)),FIND(CHAR(160),SUBSTITUTE($O59,\"}\",CHAR(160),FE$1))-FIND(CHAR(160),SUBSTITUTE($O59,\"{\",CHAR(160),FE$1))+1),\"\")","v":"{COP}"},{"$f":"IFERROR(MID($O59,FIND(CHAR(160),SUBSTITUTE($O59,\"{\",CHAR(160),FF$1)),FIND(CHAR(160),SUBSTITUTE($O59,\"}\",CHAR(160),FF$1))-FIND(CHAR(160),SUBSTITUTE($O59,\"{\",CHAR(160),FF$1))+1),\"\")","v":""},{"$f":"IFERROR(MID($O59,FIND(CHAR(160),SUBSTITUTE($O59,\"{\",CHAR(160),FG$1)),FIND(CHAR(160),SUBSTITUTE($O59,\"}\",CHAR(160),FG$1))-FIND(CHAR(160),SUBSTITUTE($O59,\"{\",CHAR(160),FG$1))+1),\"\")","v":""},{"$f":"IFERROR(MID($O59,FIND(CHAR(160),SUBSTITUTE($O59,\"{\",CHAR(160),FH$1)),FIND(CHAR(160),SUBSTITUTE($O59,\"}\",CHAR(160),FH$1))-FIND(CHAR(160),SUBSTITUTE($O59,\"{\",CHAR(160),FH$1))+1),\"\")","v":""},{"$f":"IFERROR(MID($O59,FIND(CHAR(160),SUBSTITUTE($O59,\"{\",CHAR(160),FI$1)),FIND(CHAR(160),SUBSTITUTE($O59,\"}\",CHAR(160),FI$1))-FIND(CHAR(160),SUBSTITUTE($O59,\"{\",CHAR(160),FI$1))+1),\"\")","v":""},{"$f":"IFERROR(MID($O59,FIND(CHAR(160),SUBSTITUTE($O59,\"{\",CHAR(160),FJ$1)),FIND(CHAR(160),SUBSTITUTE($O59,\"}\",CHAR(160),FJ$1))-FIND(CHAR(160),SUBSTITUTE($O59,\"{\",CHAR(160),FJ$1))+1),\"\")","v":""},{"$f":"IFERROR(MID($O59,FIND(CHAR(160),SUBSTITUTE($O59,\"{\",CHAR(160),FK$1)),FIND(CHAR(160),SUBSTITUTE($O59,\"}\",CHAR(160),FK$1))-FIND(CHAR(160),SUBSTITUTE($O59,\"{\",CHAR(160),FK$1))+1),\"\")","v":"{Measure:Quantity}"},{"$f":"IFERROR(MID($O59,FIND(CHAR(160),SUBSTITUTE($O59,\"{\",CHAR(160),FL$1)),FIND(CHAR(160),SUBSTITUTE($O59,\"}\",CHAR(160),FL$1))-FIND(CHAR(160),SUBSTITUTE($O59,\"{\",CHAR(160),FL$1))+1),\"\")","v":"{Unit Size  - Tons}"},{"$f":"IFERROR(MID($R59,FIND(CHAR(160),SUBSTITUTE($R59,\"{\",CHAR(160),FM$1)),FIND(CHAR(160),SUBSTITUTE($R59,\"}\",CHAR(160),FM$1))-FIND(CHAR(160),SUBSTITUTE($R59,\"{\",CHAR(160),FM$1))+1),\"\")","v":"{EER}"},{"$f":"IFERROR(MID($R59,FIND(CHAR(160),SUBSTITUTE($R59,\"{\",CHAR(160),FN$1)),FIND(CHAR(160),SUBSTITUTE($R59,\"}\",CHAR(160),FN$1))-FIND(CHAR(160),SUBSTITUTE($R59,\"{\",CHAR(160),FN$1))+1),\"\")","v":""},{"$f":"IFERROR(MID($R59,FIND(CHAR(160),SUBSTITUTE($R59,\"{\",CHAR(160),FO$1)),FIND(CHAR(160),SUBSTITUTE($R59,\"}\",CHAR(160),FO$1))-FIND(CHAR(160),SUBSTITUTE($R59,\"{\",CHAR(160),FO$1))+1),\"\")","v":""},{"$f":"IFERROR(MID($R59,FIND(CHAR(160),SUBSTITUTE($R59,\"{\",CHAR(160),FP$1)),FIND(CHAR(160),SUBSTITUTE($R59,\"}\",CHAR(160),FP$1))-FIND(CHAR(160),SUBSTITUTE($R59,\"{\",CHAR(160),FP$1))+1),\"\")","v":""},{"$f":"IFERROR(MID($R59,FIND(CHAR(160),SUBSTITUTE($R59,\"{\",CHAR(160),FQ$1)),FIND(CHAR(160),SUBSTITUTE($R59,\"}\",CHAR(160),FQ$1))-FIND(CHAR(160),SUBSTITUTE($R59,\"{\",CHAR(160),FQ$1))+1),\"\")","v":""},{"$f":"IFERROR(MID($R59,FIND(CHAR(160),SUBSTITUTE($R59,\"{\",CHAR(160),FR$1)),FIND(CHAR(160),SUBSTITUTE($R59,\"}\",CHAR(160),FR$1))-FIND(CHAR(160),SUBSTITUTE($R59,\"{\",CHAR(160),FR$1))+1),\"\")","v":""},{"$f":"IFERROR(MID($R59,FIND(CHAR(160),SUBSTITUTE($R59,\"{\",CHAR(160),FS$1)),FIND(CHAR(160),SUBSTITUTE($R59,\"}\",CHAR(160),FS$1))-FIND(CHAR(160),SUBSTITUTE($R59,\"{\",CHAR(160),FS$1))+1),\"\")","v":""},{"$f":"IFERROR(MID($R59,FIND(CHAR(160),SUBSTITUTE($R59,\"{\",CHAR(160),FT$1)),FIND(CHAR(160),SUBSTITUTE($R59,\"}\",CHAR(160),FT$1))-FIND(CHAR(160),SUBSTITUTE($R59,\"{\",CHAR(160),FT$1))+1),\"\")","v":""},{"$f":"IFERROR(MID($R59,FIND(CHAR(160),SUBSTITUTE($R59,\"{\",CHAR(160),FU$1)),FIND(CHAR(160),SUBSTITUTE($R59,\"}\",CHAR(160),FU$1))-FIND(CHAR(160),SUBSTITUTE($R59,\"{\",CHAR(160),FU$1))+1),\"\")","v":"{Measure:Quantity}"},{"$f":"IFERROR(MID($R59,FIND(CHAR(160),SUBSTITUTE($R59,\"{\",CHAR(160),FV$1)),FIND(CHAR(160),SUBSTITUTE($R59,\"}\",CHAR(160),FV$1))-FIND(CHAR(160),SUBSTITUTE($R59,\"{\",CHAR(160),FV$1))+1),\"\")","v":"{Unit Size  - Tons}"},{"$f":"IFERROR(MID($U59,FIND(CHAR(160),SUBSTITUTE($U59,\"{\",CHAR(160),FW$1)),FIND(CHAR(160),SUBSTITUTE($U59,\"}\",CHAR(160),FW$1))-FIND(CHAR(160),SUBSTITUTE($U59,\"{\",CHAR(160),FW$1))+1),\"\")","v":"{COP}"},{"$f":"IFERROR(MID($U59,FIND(CHAR(160),SUBSTITUTE($U59,\"{\",CHAR(160),FX$1)),FIND(CHAR(160),SUBSTITUTE($U59,\"}\",CHAR(160),FX$1))-FIND(CHAR(160),SUBSTITUTE($U59,\"{\",CHAR(160),FX$1))+1),\"\")","v":"{Factor:WinterCF}"},{"$f":"IFERROR(MID($U59,FIND(CHAR(160),SUBSTITUTE($U59,\"{\",CHAR(160),FY$1)),FIND(CHAR(160),SUBSTITUTE($U59,\"}\",CHAR(160),FY$1))-FIND(CHAR(160),SUBSTITUTE($U59,\"{\",CHAR(160),FY$1))+1),\"\")","v":""},{"$f":"IFERROR(MID($U59,FIND(CHAR(160),SUBSTITUTE($U59,\"{\",CHAR(160),FZ$1)),FIND(CHAR(160),SUBSTITUTE($U59,\"}\",CHAR(160),FZ$1))-FIND(CHAR(160),SUBSTITUTE($U59,\"{\",CHAR(160),FZ$1))+1),\"\")","v":""},{"$f":"IFERROR(MID($U59,FIND(CHAR(160),SUBSTITUTE($U59,\"{\",CHAR(160),GA$1)),FIND(CHAR(160),SUBSTITUTE($U59,\"}\",CHAR(160),GA$1))-FIND(CHAR(160),SUBSTITUTE($U59,\"{\",CHAR(160),GA$1))+1),\"\")","v":""},{"$f":"IFERROR(MID($U59,FIND(CHAR(160),SUBSTITUTE($U59,\"{\",CHAR(160),GB$1)),FIND(CHAR(160),SUBSTITUTE($U59,\"}\",CHAR(160),GB$1))-FIND(CHAR(160),SUBSTITUTE($U59,\"{\",CHAR(160),GB$1))+1),\"\")","v":""},{"$f":"IFERROR(MID($U59,FIND(CHAR(160),SUBSTITUTE($U59,\"{\",CHAR(160),GC$1)),FIND(CHAR(160),SUBSTITUTE($U59,\"}\",CHAR(160),GC$1))-FIND(CHAR(160),SUBSTITUTE($U59,\"{\",CHAR(160),GC$1))+1),\"\")","v":""},{"$f":"IFERROR(MID($U59,FIND(CHAR(160),SUBSTITUTE($U59,\"{\",CHAR(160),GD$1)),FIND(CHAR(160),SUBSTITUTE($U59,\"}\",CHAR(160),GD$1))-FIND(CHAR(160),SUBSTITUTE($U59,\"{\",CHAR(160),GD$1))+1),\"\")","v":""},{"$f":"IFERROR(MID($U59,FIND(CHAR(160),SUBSTITUTE($U59,\"{\",CHAR(160),GE$1)),FIND(CHAR(160),SUBSTITUTE($U59,\"}\",CHAR(160),GE$1))-FIND(CHAR(160),SUBSTITUTE($U59,\"{\",CHAR(160),GE$1))+1),\"\")","v":"{Measure:Quantity}"},{"$f":"IFERROR(MID($U59,FIND(CHAR(160),SUBSTITUTE($U59,\"{\",CHAR(160),GF$1)),FIND(CHAR(160),SUBSTITUTE($U59,\"}\",CHAR(160),GF$1))-FIND(CHAR(160),SUBSTITUTE($U59,\"{\",CHAR(160),GF$1))+1),\"\")","v":"{Heating BTUH}"},{"$f":"IFERROR(MID($V59,FIND(CHAR(160),SUBSTITUTE($V59,\"{\",CHAR(160),GG$1)),FIND(CHAR(160),SUBSTITUTE($V59,\"}\",CHAR(160),GG$1))-FIND(CHAR(160),SUBSTITUTE($V59,\"{\",CHAR(160),GG$1))+1),\"\")","v":"{EER}"},{"$f":"IFERROR(MID($V59,FIND(CHAR(160),SUBSTITUTE($V59,\"{\",CHAR(160),GH$1)),FIND(CHAR(160),SUBSTITUTE($V59,\"}\",CHAR(160),GH$1))-FIND(CHAR(160),SUBSTITUTE($V59,\"{\",CHAR(160),GH$1))+1),\"\")","v":"{Factor:SummerCF}"},{"$f":"IFERROR(MID($V59,FIND(CHAR(160),SUBSTITUTE($V59,\"{\",CHAR(160),GI$1)),FIND(CHAR(160),SUBSTITUTE($V59,\"}\",CHAR(160),GI$1))-FIND(CHAR(160),SUBSTITUTE($V59,\"{\",CHAR(160),GI$1))+1),\"\")","v":""},{"$f":"IFERROR(MID($V59,FIND(CHAR(160),SUBSTITUTE($V59,\"{\",CHAR(160),GJ$1)),FIND(CHAR(160),SUBSTITUTE($V59,\"}\",CHAR(160),GJ$1))-FIND(CHAR(160),SUBSTITUTE($V59,\"{\",CHAR(160),GJ$1))+1),\"\")","v":""},{"$f":"IFERROR(MID($V59,FIND(CHAR(160),SUBSTITUTE($V59,\"{\",CHAR(160),GK$1)),FIND(CHAR(160),SUBSTITUTE($V59,\"}\",CHAR(160),GK$1))-FIND(CHAR(160),SUBSTITUTE($V59,\"{\",CHAR(160),GK$1))+1),\"\")","v":""},{"$f":"IFERROR(MID($V59,FIND(CHAR(160),SUBSTITUTE($V59,\"{\",CHAR(160),GL$1)),FIND(CHAR(160),SUBSTITUTE($V59,\"}\",CHAR(160),GL$1))-FIND(CHAR(160),SUBSTITUTE($V59,\"{\",CHAR(160),GL$1))+1),\"\")","v":""},{"$f":"IFERROR(MID($V59,FIND(CHAR(160),SUBSTITUTE($V59,\"{\",CHAR(160),GM$1)),FIND(CHAR(160),SUBSTITUTE($V59,\"}\",CHAR(160),GM$1))-FIND(CHAR(160),SUBSTITUTE($V59,\"{\",CHAR(160),GM$1))+1),\"\")","v":""},{"$f":"IFERROR(MID($V59,FIND(CHAR(160),SUBSTITUTE($V59,\"{\",CHAR(160),GN$1)),FIND(CHAR(160),SUBSTITUTE($V59,\"}\",CHAR(160),GN$1))-FIND(CHAR(160),SUBSTITUTE($V59,\"{\",CHAR(160),GN$1))+1),\"\")","v":""},{"$f":"IFERROR(MID($V59,FIND(CHAR(160),SUBSTITUTE($V59,\"{\",CHAR(160),GO$1)),FIND(CHAR(160),SUBSTITUTE($V59,\"}\",CHAR(160),GO$1))-FIND(CHAR(160),SUBSTITUTE($V59,\"{\",CHAR(160),GO$1))+1),\"\")","v":"{Measure:Quantity}"},{"$f":"IFERROR(MID($V59,FIND(CHAR(160),SUBSTITUTE($V59,\"{\",CHAR(160),GP$1)),FIND(CHAR(160),SUBSTITUTE($V59,\"}\",CHAR(160),GP$1))-FIND(CHAR(160),SUBSTITUTE($V59,\"{\",CHAR(160),GP$1))+1),\"\")","v":"{Unit Size  - Tons}"},{"$f":"IFERROR(MID($W59,FIND(CHAR(160),SUBSTITUTE($W59,\"{\",CHAR(160),GQ$1)),FIND(CHAR(160),SUBSTITUTE($W59,\"}\",CHAR(160),GQ$1))-FIND(CHAR(160),SUBSTITUTE($W59,\"{\",CHAR(160),GQ$1))+1),\"\")","v":""},{"$f":"IFERROR(MID($W59,FIND(CHAR(160),SUBSTITUTE($W59,\"{\",CHAR(160),GR$1)),FIND(CHAR(160),SUBSTITUTE($W59,\"}\",CHAR(160),GR$1))-FIND(CHAR(160),SUBSTITUTE($W59,\"{\",CHAR(160),GR$1))+1),\"\")","v":""},{"$f":"IFERROR(MID($W59,FIND(CHAR(160),SUBSTITUTE($W59,\"{\",CHAR(160),GS$1)),FIND(CHAR(160),SUBSTITUTE($W59,\"}\",CHAR(160),GS$1))-FIND(CHAR(160),SUBSTITUTE($W59,\"{\",CHAR(160),GS$1))+1),\"\")","v":""},{"$f":"IFERROR(MID($W59,FIND(CHAR(160),SUBSTITUTE($W59,\"{\",CHAR(160),GT$1)),FIND(CHAR(160),SUBSTITUTE($W59,\"}\",CHAR(160),GT$1))-FIND(CHAR(160),SUBSTITUTE($W59,\"{\",CHAR(160),GT$1))+1),\"\")","v":""},{"$f":"IFERROR(MID($W59,FIND(CHAR(160),SUBSTITUTE($W59,\"{\",CHAR(160),GU$1)),FIND(CHAR(160),SUBSTITUTE($W59,\"}\",CHAR(160),GU$1))-FIND(CHAR(160),SUBSTITUTE($W59,\"{\",CHAR(160),GU$1))+1),\"\")","v":""},{"$f":"IFERROR(MID($W59,FIND(CHAR(160),SUBSTITUTE($W59,\"{\",CHAR(160),GV$1)),FIND(CHAR(160),SUBSTITUTE($W59,\"}\",CHAR(160),GV$1))-FIND(CHAR(160),SUBSTITUTE($W59,\"{\",CHAR(160),GV$1))+1),\"\")","v":""},{"$f":"IFERROR(MID($W59,FIND(CHAR(160),SUBSTITUTE($W59,\"{\",CHAR(160),GW$1)),FIND(CHAR(160),SUBSTITUTE($W59,\"}\",CHAR(160),GW$1))-FIND(CHAR(160),SUBSTITUTE($W59,\"{\",CHAR(160),GW$1))+1),\"\")","v":""},{"$f":"IFERROR(MID($W59,FIND(CHAR(160),SUBSTITUTE($W59,\"{\",CHAR(160),GX$1)),FIND(CHAR(160),SUBSTITUTE($W59,\"}\",CHAR(160),GX$1))-FIND(CHAR(160),SUBSTITUTE($W59,\"{\",CHAR(160),GX$1))+1),\"\")","v":""},{"$f":"IFERROR(MID($W59,FIND(CHAR(160),SUBSTITUTE($W59,\"{\",CHAR(160),GY$1)),FIND(CHAR(160),SUBSTITUTE($W59,\"}\",CHAR(160),GY$1))-FIND(CHAR(160),SUBSTITUTE($W59,\"{\",CHAR(160),GY$1))+1),\"\")","v":""},{"$f":"IFERROR(MID($W59,FIND(CHAR(160),SUBSTITUTE($W59,\"{\",CHAR(160),GZ$1)),FIND(CHAR(160),SUBSTITUTE($W59,\"}\",CHAR(160),GZ$1))-FIND(CHAR(160),SUBSTITUTE($W59,\"{\",CHAR(160),GZ$1))+1),\"\")","v":""},{"$f":"IFERROR(MID($X59,FIND(CHAR(160),SUBSTITUTE($X59,\"{\",CHAR(160),HA$1)),FIND(CHAR(160),SUBSTITUTE($X59,\"}\",CHAR(160),HA$1))-FIND(CHAR(160),SUBSTITUTE($X59,\"{\",CHAR(160),HA$1))+1),\"\")","v":""},{"$f":"IFERROR(MID($X59,FIND(CHAR(160),SUBSTITUTE($X59,\"{\",CHAR(160),HB$1)),FIND(CHAR(160),SUBSTITUTE($X59,\"}\",CHAR(160),HB$1))-FIND(CHAR(160),SUBSTITUTE($X59,\"{\",CHAR(160),HB$1))+1),\"\")","v":""},{"$f":"IFERROR(MID($X59,FIND(CHAR(160),SUBSTITUTE($X59,\"{\",CHAR(160),HC$1)),FIND(CHAR(160),SUBSTITUTE($X59,\"}\",CHAR(160),HC$1))-FIND(CHAR(160),SUBSTITUTE($X59,\"{\",CHAR(160),HC$1))+1),\"\")","v":""},{"$f":"IFERROR(MID($X59,FIND(CHAR(160),SUBSTITUTE($X59,\"{\",CHAR(160),HD$1)),FIND(CHAR(160),SUBSTITUTE($X59,\"}\",CHAR(160),HD$1))-FIND(CHAR(160),SUBSTITUTE($X59,\"{\",CHAR(160),HD$1))+1),\"\")","v":""},{"$f":"IFERROR(MID($X59,FIND(CHAR(160),SUBSTITUTE($X59,\"{\",CHAR(160),HE$1)),FIND(CHAR(160),SUBSTITUTE($X59,\"}\",CHAR(160),HE$1))-FIND(CHAR(160),SUBSTITUTE($X59,\"{\",CHAR(160),HE$1))+1),\"\")","v":""},{"$f":"IFERROR(MID($X59,FIND(CHAR(160),SUBSTITUTE($X59,\"{\",CHAR(160),HF$1)),FIND(CHAR(160),SUBSTITUTE($X59,\"}\",CHAR(160),HF$1))-FIND(CHAR(160),SUBSTITUTE($X59,\"{\",CHAR(160),HF$1))+1),\"\")","v":""},{"$f":"IFERROR(MID($X59,FIND(CHAR(160),SUBSTITUTE($X59,\"{\",CHAR(160),HG$1)),FIND(CHAR(160),SUBSTITUTE($X59,\"}\",CHAR(160),HG$1))-FIND(CHAR(160),SUBSTITUTE($X59,\"{\",CHAR(160),HG$1))+1),\"\")","v":""},{"$f":"IFERROR(MID($X59,FIND(CHAR(160),SUBSTITUTE($X59,\"{\",CHAR(160),HH$1)),FIND(CHAR(160),SUBSTITUTE($X59,\"}\",CHAR(160),HH$1))-FIND(CHAR(160),SUBSTITUTE($X59,\"{\",CHAR(160),HH$1))+1),\"\")","v":""},{"$f":"IFERROR(MID($X59,FIND(CHAR(160),SUBSTITUTE($X59,\"{\",CHAR(160),HI$1)),FIND(CHAR(160),SUBSTITUTE($X59,\"}\",CHAR(160),HI$1))-FIND(CHAR(160),SUBSTITUTE($X59,\"{\",CHAR(160),HI$1))+1),\"\")","v":""},{"$f":"IFERROR(MID($X59,FIND(CHAR(160),SUBSTITUTE($X59,\"{\",CHAR(160),HJ$1)),FIND(CHAR(160),SUBSTITUTE($X59,\"}\",CHAR(160),HJ$1))-FIND(CHAR(160),SUBSTITUTE($X59,\"{\",CHAR(160),HJ$1))+1),\"\")","v":""},{"$f":"IFERROR(MID($Y59,FIND(CHAR(160),SUBSTITUTE($Y59,\"{\",CHAR(160),HK$1)),FIND(CHAR(160),SUBSTITUTE($Y59,\"}\",CHAR(160),HK$1))-FIND(CHAR(160),SUBSTITUTE($Y59,\"{\",CHAR(160),HK$1))+1),\"\")","v":""},{"$f":"IFERROR(MID($Y59,FIND(CHAR(160),SUBSTITUTE($Y59,\"{\",CHAR(160),HL$1)),FIND(CHAR(160),SUBSTITUTE($Y59,\"}\",CHAR(160),HL$1))-FIND(CHAR(160),SUBSTITUTE($Y59,\"{\",CHAR(160),HL$1))+1),\"\")","v":""},{"$f":"IFERROR(MID($Y59,FIND(CHAR(160),SUBSTITUTE($Y59,\"{\",CHAR(160),HM$1)),FIND(CHAR(160),SUBSTITUTE($Y59,\"}\",CHAR(160),HM$1))-FIND(CHAR(160),SUBSTITUTE($Y59,\"{\",CHAR(160),HM$1))+1),\"\")","v":""},{"$f":"IFERROR(MID($Y59,FIND(CHAR(160),SUBSTITUTE($Y59,\"{\",CHAR(160),HN$1)),FIND(CHAR(160),SUBSTITUTE($Y59,\"}\",CHAR(160),HN$1))-FIND(CHAR(160),SUBSTITUTE($Y59,\"{\",CHAR(160),HN$1))+1),\"\")","v":""},{"$f":"IFERROR(MID($Y59,FIND(CHAR(160),SUBSTITUTE($Y59,\"{\",CHAR(160),HO$1)),FIND(CHAR(160),SUBSTITUTE($Y59,\"}\",CHAR(160),HO$1))-FIND(CHAR(160),SUBSTITUTE($Y59,\"{\",CHAR(160),HO$1))+1),\"\")","v":""},{"$f":"IFERROR(MID($Y59,FIND(CHAR(160),SUBSTITUTE($Y59,\"{\",CHAR(160),HP$1)),FIND(CHAR(160),SUBSTITUTE($Y59,\"}\",CHAR(160),HP$1))-FIND(CHAR(160),SUBSTITUTE($Y59,\"{\",CHAR(160),HP$1))+1),\"\")","v":""},{"$f":"IFERROR(MID($Y59,FIND(CHAR(160),SUBSTITUTE($Y59,\"{\",CHAR(160),HQ$1)),FIND(CHAR(160),SUBSTITUTE($Y59,\"}\",CHAR(160),HQ$1))-FIND(CHAR(160),SUBSTITUTE($Y59,\"{\",CHAR(160),HQ$1))+1),\"\")","v":""},{"$f":"IFERROR(MID($Y59,FIND(CHAR(160),SUBSTITUTE($Y59,\"{\",CHAR(160),HR$1)),FIND(CHAR(160),SUBSTITUTE($Y59,\"}\",CHAR(160),HR$1))-FIND(CHAR(160),SUBSTITUTE($Y59,\"{\",CHAR(160),HR$1))+1),\"\")","v":""},{"$f":"IFERROR(MID($Y59,FIND(CHAR(160),SUBSTITUTE($Y59,\"{\",CHAR(160),HS$1)),FIND(CHAR(160),SUBSTITUTE($Y59,\"}\",CHAR(160),HS$1))-FIND(CHAR(160),SUBSTITUTE($Y59,\"{\",CHAR(160),HS$1))+1),\"\")","v":""},{"$f":"IFERROR(MID($Y59,FIND(CHAR(160),SUBSTITUTE($Y59,\"{\",CHAR(160),HT$1)),FIND(CHAR(160),SUBSTITUTE($Y59,\"}\",CHAR(160),HT$1))-FIND(CHAR(160),SUBSTITUTE($Y59,\"{\",CHAR(160),HT$1))+1),\"\")","v":""},{"$f":"IFERROR(MID($Z59,FIND(CHAR(160),SUBSTITUTE($Z59,\"{\",CHAR(160),HU$1)),FIND(CHAR(160),SUBSTITUTE($Z59,\"}\",CHAR(160),HU$1))-FIND(CHAR(160),SUBSTITUTE($Z59,\"{\",CHAR(160),HU$1))+1),\"\")","v":""},{"$f":"IFERROR(MID($Z59,FIND(CHAR(160),SUBSTITUTE($Z59,\"{\",CHAR(160),HV$1)),FIND(CHAR(160),SUBSTITUTE($Z59,\"}\",CHAR(160),HV$1))-FIND(CHAR(160),SUBSTITUTE($Z59,\"{\",CHAR(160),HV$1))+1),\"\")","v":""},{"$f":"IFERROR(MID($Z59,FIND(CHAR(160),SUBSTITUTE($Z59,\"{\",CHAR(160),HW$1)),FIND(CHAR(160),SUBSTITUTE($Z59,\"}\",CHAR(160),HW$1))-FIND(CHAR(160),SUBSTITUTE($Z59,\"{\",CHAR(160),HW$1))+1),\"\")","v":""},{"$f":"IFERROR(MID($Z59,FIND(CHAR(160),SUBSTITUTE($Z59,\"{\",CHAR(160),HX$1)),FIND(CHAR(160),SUBSTITUTE($Z59,\"}\",CHAR(160),HX$1))-FIND(CHAR(160),SUBSTITUTE($Z59,\"{\",CHAR(160),HX$1))+1),\"\")","v":""},{"$f":"IFERROR(MID($Z59,FIND(CHAR(160),SUBSTITUTE($Z59,\"{\",CHAR(160),HY$1)),FIND(CHAR(160),SUBSTITUTE($Z59,\"}\",CHAR(160),HY$1))-FIND(CHAR(160),SUBSTITUTE($Z59,\"{\",CHAR(160),HY$1))+1),\"\")","v":""},{"$f":"IFERROR(MID($Z59,FIND(CHAR(160),SUBSTITUTE($Z59,\"{\",CHAR(160),HZ$1)),FIND(CHAR(160),SUBSTITUTE($Z59,\"}\",CHAR(160),HZ$1))-FIND(CHAR(160),SUBSTITUTE($Z59,\"{\",CHAR(160),HZ$1))+1),\"\")","v":""},{"$f":"IFERROR(MID($Z59,FIND(CHAR(160),SUBSTITUTE($Z59,\"{\",CHAR(160),IA$1)),FIND(CHAR(160),SUBSTITUTE($Z59,\"}\",CHAR(160),IA$1))-FIND(CHAR(160),SUBSTITUTE($Z59,\"{\",CHAR(160),IA$1))+1),\"\")","v":""},{"$f":"IFERROR(MID($Z59,FIND(CHAR(160),SUBSTITUTE($Z59,\"{\",CHAR(160),IB$1)),FIND(CHAR(160),SUBSTITUTE($Z59,\"}\",CHAR(160),IB$1))-FIND(CHAR(160),SUBSTITUTE($Z59,\"{\",CHAR(160),IB$1))+1),\"\")","v":""},{"$f":"IFERROR(MID($Z59,FIND(CHAR(160),SUBSTITUTE($Z59,\"{\",CHAR(160),IC$1)),FIND(CHAR(160),SUBSTITUTE($Z59,\"}\",CHAR(160),IC$1))-FIND(CHAR(160),SUBSTITUTE($Z59,\"{\",CHAR(160),IC$1))+1),\"\")","v":""},{"$f":"IFERROR(MID($Z59,FIND(CHAR(160),SUBSTITUTE($Z59,\"{\",CHAR(160),ID$1)),FIND(CHAR(160),SUBSTITUTE($Z59,\"}\",CHAR(160),ID$1))-FIND(CHAR(160),SUBSTITUTE($Z59,\"{\",CHAR(160),ID$1))+1),\"\")","v":""},{"$f":"IFERROR(MID($AA59,FIND(CHAR(160),SUBSTITUTE($AA59,\"{\",CHAR(160),IE$1)),FIND(CHAR(160),SUBSTITUTE($AA59,\"}\",CHAR(160),IE$1))-FIND(CHAR(160),SUBSTITUTE($AA59,\"{\",CHAR(160),IE$1))+1),\"\")","v":""},{"$f":"IFERROR(MID($AA59,FIND(CHAR(160),SUBSTITUTE($AA59,\"{\",CHAR(160),IF$1)),FIND(CHAR(160),SUBSTITUTE($AA59,\"}\",CHAR(160),IF$1))-FIND(CHAR(160),SUBSTITUTE($AA59,\"{\",CHAR(160),IF$1))+1),\"\")","v":""},{"$f":"IFERROR(MID($AA59,FIND(CHAR(160),SUBSTITUTE($AA59,\"{\",CHAR(160),IG$1)),FIND(CHAR(160),SUBSTITUTE($AA59,\"}\",CHAR(160),IG$1))-FIND(CHAR(160),SUBSTITUTE($AA59,\"{\",CHAR(160),IG$1))+1),\"\")","v":""},{"$f":"IFERROR(MID($AA59,FIND(CHAR(160),SUBSTITUTE($AA59,\"{\",CHAR(160),IH$1)),FIND(CHAR(160),SUBSTITUTE($AA59,\"}\",CHAR(160),IH$1))-FIND(CHAR(160),SUBSTITUTE($AA59,\"{\",CHAR(160),IH$1))+1),\"\")","v":""},{"$f":"IFERROR(MID($AA59,FIND(CHAR(160),SUBSTITUTE($AA59,\"{\",CHAR(160),II$1)),FIND(CHAR(160),SUBSTITUTE($AA59,\"}\",CHAR(160),II$1))-FIND(CHAR(160),SUBSTITUTE($AA59,\"{\",CHAR(160),II$1))+1),\"\")","v":""},{"$f":"IFERROR(MID($AA59,FIND(CHAR(160),SUBSTITUTE($AA59,\"{\",CHAR(160),IJ$1)),FIND(CHAR(160),SUBSTITUTE($AA59,\"}\",CHAR(160),IJ$1))-FIND(CHAR(160),SUBSTITUTE($AA59,\"{\",CHAR(160),IJ$1))+1),\"\")","v":""},{"$f":"IFERROR(MID($AA59,FIND(CHAR(160),SUBSTITUTE($AA59,\"{\",CHAR(160),IK$1)),FIND(CHAR(160),SUBSTITUTE($AA59,\"}\",CHAR(160),IK$1))-FIND(CHAR(160),SUBSTITUTE($AA59,\"{\",CHAR(160),IK$1))+1),\"\")","v":""},{"$f":"IFERROR(MID($AA59,FIND(CHAR(160),SUBSTITUTE($AA59,\"{\",CHAR(160),IL$1)),FIND(CHAR(160),SUBSTITUTE($AA59,\"}\",CHAR(160),IL$1))-FIND(CHAR(160),SUBSTITUTE($AA59,\"{\",CHAR(160),IL$1))+1),\"\")","v":""},{"$f":"IFERROR(MID($AA59,FIND(CHAR(160),SUBSTITUTE($AA59,\"{\",CHAR(160),IM$1)),FIND(CHAR(160),SUBSTITUTE($AA59,\"}\",CHAR(160),IM$1))-FIND(CHAR(160),SUBSTITUTE($AA59,\"{\",CHAR(160),IM$1))+1),\"\")","v":""},{"$f":"IFERROR(MID($AA59,FIND(CHAR(160),SUBSTITUTE($AA59,\"{\",CHAR(160),IN$1)),FIND(CHAR(160),SUBSTITUTE($AA59,\"}\",CHAR(160),IN$1))-FIND(CHAR(160),SUBSTITUTE($AA59,\"{\",CHAR(160),IN$1))+1),\"\")","v":""},{"$f":"IFERROR(MID($AB59,FIND(CHAR(160),SUBSTITUTE($AB59,\"{\",CHAR(160),IO$1)),FIND(CHAR(160),SUBSTITUTE($AB59,\"}\",CHAR(160),IO$1))-FIND(CHAR(160),SUBSTITUTE($AB59,\"{\",CHAR(160),IO$1))+1),\"\")","v":""},{"$f":"IFERROR(MID($AB59,FIND(CHAR(160),SUBSTITUTE($AB59,\"{\",CHAR(160),IP$1)),FIND(CHAR(160),SUBSTITUTE($AB59,\"}\",CHAR(160),IP$1))-FIND(CHAR(160),SUBSTITUTE($AB59,\"{\",CHAR(160),IP$1))+1),\"\")","v":""},{"$f":"IFERROR(MID($AB59,FIND(CHAR(160),SUBSTITUTE($AB59,\"{\",CHAR(160),IQ$1)),FIND(CHAR(160),SUBSTITUTE($AB59,\"}\",CHAR(160),IQ$1))-FIND(CHAR(160),SUBSTITUTE($AB59,\"{\",CHAR(160),IQ$1))+1),\"\")","v":""},{"$f":"IFERROR(MID($AB59,FIND(CHAR(160),SUBSTITUTE($AB59,\"{\",CHAR(160),IR$1)),FIND(CHAR(160),SUBSTITUTE($AB59,\"}\",CHAR(160),IR$1))-FIND(CHAR(160),SUBSTITUTE($AB59,\"{\",CHAR(160),IR$1))+1),\"\")","v":""},{"$f":"IFERROR(MID($AB59,FIND(CHAR(160),SUBSTITUTE($AB59,\"{\",CHAR(160),IS$1)),FIND(CHAR(160),SUBSTITUTE($AB59,\"}\",CHAR(160),IS$1))-FIND(CHAR(160),SUBSTITUTE($AB59,\"{\",CHAR(160),IS$1))+1),\"\")","v":""},{"$f":"IFERROR(MID($AB59,FIND(CHAR(160),SUBSTITUTE($AB59,\"{\",CHAR(160),IT$1)),FIND(CHAR(160),SUBSTITUTE($AB59,\"}\",CHAR(160),IT$1))-FIND(CHAR(160),SUBSTITUTE($AB59,\"{\",CHAR(160),IT$1))+1),\"\")","v":""},{"$f":"IFERROR(MID($AB59,FIND(CHAR(160),SUBSTITUTE($AB59,\"{\",CHAR(160),IU$1)),FIND(CHAR(160),SUBSTITUTE($AB59,\"}\",CHAR(160),IU$1))-FIND(CHAR(160),SUBSTITUTE($AB59,\"{\",CHAR(160),IU$1))+1),\"\")","v":""},{"$f":"IFERROR(MID($AB59,FIND(CHAR(160),SUBSTITUTE($AB59,\"{\",CHAR(160),IV$1)),FIND(CHAR(160),SUBSTITUTE($AB59,\"}\",CHAR(160),IV$1))-FIND(CHAR(160),SUBSTITUTE($AB59,\"{\",CHAR(160),IV$1))+1),\"\")","v":""},{"$f":"IFERROR(MID($AB59,FIND(CHAR(160),SUBSTITUTE($AB59,\"{\",CHAR(160),IW$1)),FIND(CHAR(160),SUBSTITUTE($AB59,\"}\",CHAR(160),IW$1))-FIND(CHAR(160),SUBSTITUTE($AB59,\"{\",CHAR(160),IW$1))+1),\"\")","v":""},{"$f":"IFERROR(MID($AB59,FIND(CHAR(160),SUBSTITUTE($AB59,\"{\",CHAR(160),IX$1)),FIND(CHAR(160),SUBSTITUTE($AB59,\"}\",CHAR(160),IX$1))-FIND(CHAR(160),SUBSTITUTE($AB59,\"{\",CHAR(160),IX$1))+1),\"\")","v":""},null,{"$f":"10-COUNTIF(DU59:ED59,\"\")","v":5}]
["C&I HVAC - Electric","Energy Recovery Ventilator","ERV","2021-07-01","2021-09-09","Calculated","{Measure:Quantity}*{Ventilation Air Rate}*3.75",0,"Calculated","{Measure:Quantity}*{Ventilation Air Rate}*if({Eff Heating} < 0.65, 2.25, if({Eff Heating} < 0.75, 2.50, if({Eff Heating} < 0.85, 2.75, 3.00)))",0,"2021-07-01","2022-06-30","Calculated","{Measure:Quantity} *(0.0075*60*{Ventilation Air Rate}*{Eff Cooling}*(31.1-28.3)/{SEER}/1000*932*.77-{Ventilation Air Rate}*{Calculated Pressure Drop}/((33013/5.202)*0.67*0.70)*0.746*8760*.77+if({Heating Fuel Type} >=6, 1.08*{Ventilation Air Rate}*(68-36.5)*{Eff Heating}*6492*.77/1000000/{AFUE}/0.003412,0))",null,null,"{Measure:Quantity} *(0.0075*60*{Ventilation Air Rate}*{Eff Cooling}*(31.1-28.3)/{SEER}/1000-{Ventilation Air Rate}*{Calculated Pressure Drop}/((33013/5.202)*0.67*0.70)*0.746)",null,null,"{Measure:Quantity}*-{Ventilation Air Rate}*{Calculated Pressure Drop}/((33013/5.202)*0.67*0.70)*0.746*{Factor:WinterCF}","{Measure:Quantity} *(0.0075*60*{Ventilation Air Rate}*{Eff Cooling}*(31.1-28.3)/{SEER}/1000-{Ventilation Air Rate}*{Calculated Pressure Drop}/((33013/5.202)*0.67*0.70)*0.746)*{Factor:SummerCF}","{Measure:Quantity}*if({Heating Fuel Type} =1, 1.08*{Ventilation Air Rate}*(68-36.5)*{Eff Heating}*6492*.77/1000000/{AFUE},0)*10","{Measure:Quantity}*if({Heating Fuel Type} =2, 1.08*{Ventilation Air Rate}*(68-36.5)*{Eff Heating}*6492*.77/1000000/{AFUE},0)","{Measure:Quantity}*if({Heating Fuel Type} =3, 1.08*{Ventilation Air Rate}*(68-36.5)*{Eff Heating}*6492*.77/1000000/{AFUE},0)","{Measure:Quantity}*if({Heating Fuel Type} =4, 1.08*{Ventilation Air Rate}*(68-36.5)*{Eff Heating}*6492*.77/1000000/{AFUE},0)","{Measure:Quantity}*if({Heating Fuel Type} =5, 1.08*{Ventilation Air Rate}*(68-36.5)*{Eff Heating}*6492*.77/1000000/{AFUE},0)",null,"2021-05-25","2022-06-30",15,0.7,1,0.40939999999999999,0.25690000000000002,0.2084,0.12529999999999999,1,1,1,0.25,0,null,{"$f":"DU60","v":"{Measure:Quantity}"},1,{"$f":"DV60","v":"{Ventilation Air Rate}"},7200,{"$f":"DW60","v":"{Eff Heating}"},0.68,{"$f":"DX60","v":"{Eff Cooling}"},0.65,{"$f":"DY60","v":"{SEER}"},18,{"$f":"DZ60","v":"{Calculated Pressure Drop}"},1,{"$f":"EA60","v":"{Heating Fuel Type}"},6,{"$f":"EB60","v":"{AFUE}"},1,{"$f":"EC60","v":""},null,{"$f":"ED60","v":""},null,{"$f":"AS60 *(0.0075*60*AU60*AY60*(31.1-28.3)/BA60/1000*932*0.77-AU60*BC60/((33013/5.202)*0.67*0.7)*0.746*8760*0.77+IF(BE60 >=6, 1.08*AU60*(68-36.5)*AW60*6492*0.77/1000000/BG60/0.003412,0))","v":232088.53519929785},0,0,{"$f":"AS60 *(0.0075*60*AU60*AY60*(31.1-28.3)/BA60/1000-AU60*BC60/((33013/5.202)*0.67*0.7)*0.746)","v":-1.4770119842819556},0,0,{"$f":"AS60*-AU60*BC60/((33013/5.202)*0.67*0.7)*0.746*AF60","v":-1.263228388997369},{"$f":"AS60 *(0.0075*60*AU60*AY60*(31.1-28.3)/BA60/1000-AU60*BC60/((33013/5.202)*0.67*0.7)*0.746)*AG60","v":-1.4770119842819556},{"$f":"AS60*IF(BE60 =1, 1.08*AU60*(68-36.5)*AW60*6492*0.77/1000000/BG60,0)*10","v":0},{"$f":"AS60*IF(BE60 =2, 1.08*AU60*(68-36.5)*AW60*6492*0.77/1000000/BG60,0)","v":0},{"$f":"AS60*IF(BE60 =3, 1.08*AU60*(68-36.5)*AW60*6492*0.77/1000000/BG60,0)","v":0},{"$f":"AS60*IF(BE60 =4, 1.08*AU60*(68-36.5)*AW60*6492*0.77/1000000/BG60,0)","v":0},{"$f":"AS60*IF(BE60 =5, 1.08*AU60*(68-36.5)*AW60*6492*0.77/1000000/BG60,0)","v":0},0,null,"Res","Default DR",{"$f":"Benefits(BL60,BR60,BS60,BT60,BU60,BV60,BW60,BX60,BY60,BZ60,AE60,AH60,AI60,AJ60,AK60,AL60,AM60,AN60,AO60,AP60,CA60,CB60)","v":309197.10492286773},-7537.802348350705,0,0,0,0,0,0,0,{"$f":"SUMPRODUCT(CC60:CK60,--(CC60:CK60>0))","v":309197.10492286773},{"$f":"-SUMPRODUCT(CC60:CK60,--(CC60:CK60<0))","v":7537.802348350705},null,{"$f":"AS60*AU60*3.75","v":27000},null,null,{"$f":"CM60+CO60","v":34537.802348350706},{"$f":"IF(NetOrGross=\"Net\",(1-AO60+AP60),1)","v":1},{"$f":"(SUMPRODUCT(CC60:CJ60,--(CC60:CJ60>0))+CN60)*CS60/((-SUMPRODUCT(CC60:CJ60,--(CC60:CJ60<0))+MAX(CO60,CV60)+CP60+CQ60)*CS60+IF(FRIncentives=\"Yes\",CV60*(1-CS60),0))","v":8.9524255713865042},1,{"$f":"AS60*AU60*IF(AW60 < 0.65, 2.25, IF(AW60 < 0.75, 2.5, IF(AW60 < 0.85, 2.75, 3)))","v":18000},null,"Electric","y",null,{"$f":"IF(F60=\"Manual Entry\",\"Manual\",IF(G60=\"\",0,\"X=\"&SUBSTITUTE(SUBSTITUTE(SUBSTITUTE(SUBSTITUTE(SUBSTITUTE(SUBSTITUTE(SUBSTITUTE(SUBSTITUTE(SUBSTITUTE(SUBSTITUTE(SUBSTITUTE(SUBSTITUTE(G60,$ED60,$ED$2&ROW($ED60)),$EC60,$EC$2&ROW($EC60)),$EB60,$EB$2&ROW($EB60)),$EA60,$EA$2&ROW($EA60)),$DZ60,$DZ$2&ROW($DZ60)),$DY60,$DY$2&ROW($DY60)),$DX60,$DX$2&ROW($DX60)),$DW60,$DW$2&ROW($DW60)),$DV60,$DV$2&ROW($DV60)),$DU60,$DU$2&ROW($DU60)),$DT60,$DT$2&ROW($DT60)),$DS60,$DS$2&ROW($DS60))))","v":"X=AS60*AU60*3.75"},{"$f":"IF(I60=\"Manual Entry\",\"Manual\",IF(J60=\"\",0,\"X=\"&SUBSTITUTE(SUBSTITUTE(SUBSTITUTE(SUBSTITUTE(SUBSTITUTE(SUBSTITUTE(SUBSTITUTE(SUBSTITUTE(SUBSTITUTE(SUBSTITUTE(SUBSTITUTE(SUBSTITUTE(J60,$ED60,$ED$2&ROW($ED60)),$EC60,$EC$2&ROW($EC60)),$EB60,$EB$2&ROW($EB60)),$EA60,$EA$2&ROW($EA60)),$DZ60,$DZ$2&ROW($DZ60)),$DY60,$DY$2&ROW($DY60)),$DX60,$DX$2&ROW($DX60)),$DW60,$DW$2&ROW($DW60)),$DV60,$DV$2&ROW($DV60)),$DU60,$DU$2&ROW($DU60)),$DT60,$DT$2&ROW($DT60)),$DS60,$DS$2&ROW($DS60))))","v":"X=AS60*AU60*if(AW60 < 0.65, 2.25, if(AW60 < 0.75, 2.50, if(AW60 < 0.85, 2.75, 3.00)))"},{"$f":"IF(O60=\"\",0,\"X=\"&SUBSTITUTE(SUBSTITUTE(SUBSTITUTE(SUBSTITUTE(SUBSTITUTE(SUBSTITUTE(SUBSTITUTE(SUBSTITUTE(SUBSTITUTE(SUBSTITUTE(SUBSTITUTE(SUBSTITUTE(O60,$ED60,$ED$2&ROW($ED60)),$EC60,$EC$2&ROW($EC60)),$EB60,$EB$2&ROW($EB60)),$EA60,$EA$2&ROW($EA60)),$DZ60,$DZ$2&ROW($DZ60)),$DY60,$DY$2&ROW($DY60)),$DX60,$DX$2&ROW($DX60)),$DW60,$DW$2&ROW($DW60)),$DV60,$DV$2&ROW($DV60)),$DU60,$DU$2&ROW($DU60)),$DT60,$DT$2&ROW($DT60)),$DS60,$DS$2&ROW($DS60)))","v":"X=AS60 *(0.0075*60*AU60*AY60*(31.1-28.3)/BA60/1000*932*.77-AU60*BC60/((33013/5.202)*0.67*0.70)*0.746*8760*.77+if(BE60 >=6, 1.08*AU60*(68-36.5)*AW60*6492*.77/1000000/BG60/0.003412,0))"},{"$f":"IF(P60=\"\",0,\"X=\"&SUBSTITUTE(SUBSTITUTE(SUBSTITUTE(SUBSTITUTE(SUBSTITUTE(SUBSTITUTE(SUBSTITUTE(SUBSTITUTE(SUBSTITUTE(SUBSTITUTE(SUBSTITUTE(SUBSTITUTE(P60,$ED60,$ED$2&ROW($ED60)),$EC60,$EC$2&ROW($EC60)),$EB60,$EB$2&ROW($EB60)),$EA60,$EA$2&ROW($EA60)),$DZ60,$DZ$2&ROW($DZ60)),$DY60,$DY$2&ROW($DY60)),$DX60,$DX$2&ROW($DX60)),$DW60,$DW$2&ROW($DW60)),$DV60,$DV$2&ROW($DV60)),$DU60,$DU$2&ROW($DU60)),$DT60,$DT$2&ROW($DT60)),$DS60,$DS$2&ROW($DS60)))","v":0},{"$f":"IF(Q60=\"\",0,\"X=\"&SUBSTITUTE(SUBSTITUTE(SUBSTITUTE(SUBSTITUTE(SUBSTITUTE(SUBSTITUTE(SUBSTITUTE(SUBSTITUTE(SUBSTITUTE(SUBSTITUTE(SUBSTITUTE(SUBSTITUTE(Q60,$ED60,$ED$2&ROW($ED60)),$EC60,$EC$2&ROW($EC60)),$EB60,$EB$2&ROW($EB60)),$EA60,$EA$2&ROW($EA60)),$DZ60,$DZ$2&ROW($DZ60)),$DY60,$DY$2&ROW($DY60)),$DX60,$DX$2&ROW($DX60)),$DW60,$DW$2&ROW($DW60)),$DV60,$DV$2&ROW($DV60)),$DU60,$DU$2&ROW($DU60)),$DT60,$DT$2&ROW($DT60)),$DS60,$DS$2&ROW($DS60)))","v":0},{"$f":"IF(R60=\"\",0,\"X=\"&SUBSTITUTE(SUBSTITUTE(SUBSTITUTE(SUBSTITUTE(SUBSTITUTE(SUBSTITUTE(SUBSTITUTE(SUBSTITUTE(SUBSTITUTE(SUBSTITUTE(SUBSTITUTE(SUBSTITUTE(R60,$ED60,$ED$2&ROW($ED60)),$EC60,$EC$2&ROW($EC60)),$EB60,$EB$2&ROW($EB60)),$EA60,$EA$2&ROW($EA60)),$DZ60,$DZ$2&ROW($DZ60)),$DY60,$DY$2&ROW($DY60)),$DX60,$DX$2&ROW($DX60)),$DW60,$DW$2&ROW($DW60)),$DV60,$DV$2&ROW($DV60)),$DU60,$DU$2&ROW($DU60)),$DT60,$DT$2&ROW($DT60)),$DS60,$DS$2&ROW($DS60)))","v":"X=AS60 *(0.0075*60*AU60*AY60*(31.1-28.3)/BA60/1000-AU60*BC60/((33013/5.202)*0.67*0.70)*0.746)"},{"$f":"IF(S60=\"\",0,\"X=\"&SUBSTITUTE(SUBSTITUTE(SUBSTITUTE(SUBSTITUTE(SUBSTITUTE(SUBSTITUTE(SUBSTITUTE(SUBSTITUTE(SUBSTITUTE(SUBSTITUTE(SUBSTITUTE(SUBSTITUTE(S60,$ED60,$ED$2&ROW($ED60)),$EC60,$EC$2&ROW($EC60)),$EB60,$EB$2&ROW($EB60)),$EA60,$EA$2&ROW($EA60)),$DZ60,$DZ$2&ROW($DZ60)),$DY60,$DY$2&ROW($DY60)),$DX60,$DX$2&ROW($DX60)),$DW60,$DW$2&ROW($DW60)),$DV60,$DV$2&ROW($DV60)),$DU60,$DU$2&ROW($DU60)),$DT60,$DT$2&ROW($DT60)),$DS60,$DS$2&ROW($DS60)))","v":0},{"$f":"IF(T60=\"\",0,\"X=\"&SUBSTITUTE(SUBSTITUTE(SUBSTITUTE(SUBSTITUTE(SUBSTITUTE(SUBSTITUTE(SUBSTITUTE(SUBSTITUTE(SUBSTITUTE(SUBSTITUTE(SUBSTITUTE(SUBSTITUTE(T60,$ED60,$ED$2&ROW($ED60)),$EC60,$EC$2&ROW($EC60)),$EB60,$EB$2&ROW($EB60)),$EA60,$EA$2&ROW($EA60)),$DZ60,$DZ$2&ROW($DZ60)),$DY60,$DY$2&ROW($DY60)),$DX60,$DX$2&ROW($DX60)),$DW60,$DW$2&ROW($DW60)),$DV60,$DV$2&ROW($DV60)),$DU60,$DU$2&ROW($DU60)),$DT60,$DT$2&ROW($DT60)),$DS60,$DS$2&ROW($DS60)))","v":0},{"$f":"IF(U60=\"\",0,\"X=\"&SUBSTITUTE(SUBSTITUTE(SUBSTITUTE(SUBSTITUTE(SUBSTITUTE(SUBSTITUTE(SUBSTITUTE(SUBSTITUTE(SUBSTITUTE(SUBSTITUTE(SUBSTITUTE(SUBSTITUTE(U60,$ED60,$ED$2&ROW($ED60)),$EC60,$EC$2&ROW($EC60)),$EB60,$EB$2&ROW($EB60)),$EA60,$EA$2&ROW($EA60)),$DZ60,$DZ$2&ROW($DZ60)),$DY60,$DY$2&ROW($DY60)),$DX60,$DX$2&ROW($DX60)),$DW60,$DW$2&ROW($DW60)),$DV60,$DV$2&ROW($DV60)),$DU60,$DU$2&ROW($DU60)),$DT60,$DT$2&ROW($DT60)),$DS60,$DS$2&ROW($DS60)))","v":"X=AS60*-AU60*BC60/((33013/5.202)*0.67*0.70)*0.746*AF60"},{"$f":"IF(V60=\"\",0,\"X=\"&SUBSTITUTE(SUBSTITUTE(SUBSTITUTE(SUBSTITUTE(SUBSTITUTE(SUBSTITUTE(SUBSTITUTE(SUBSTITUTE(SUBSTITUTE(SUBSTITUTE(SUBSTITUTE(SUBSTITUTE(V60,$ED60,$ED$2&ROW($ED60)),$EC60,$EC$2&ROW($EC60)),$EB60,$EB$2&ROW($EB60)),$EA60,$EA$2&ROW($EA60)),$DZ60,$DZ$2&ROW($DZ60)),$DY60,$DY$2&ROW($DY60)),$DX60,$DX$2&ROW($DX60)),$DW60,$DW$2&ROW($DW60)),$DV60,$DV$2&ROW($DV60)),$DU60,$DU$2&ROW($DU60)),$DT60,$DT$2&ROW($DT60)),$DS60,$DS$2&ROW($DS60)))","v":"X=AS60 *(0.0075*60*AU60*AY60*(31.1-28.3)/BA60/1000-AU60*BC60/((33013/5.202)*0.67*0.70)*0.746)*AG60"},{"$f":"IF(W60=\"\",0,\"X=\"&SUBSTITUTE(SUBSTITUTE(SUBSTITUTE(SUBSTITUTE(SUBSTITUTE(SUBSTITUTE(SUBSTITUTE(SUBSTITUTE(SUBSTITUTE(SUBSTITUTE(SUBSTITUTE(SUBSTITUTE(W60,$ED60,$ED$2&ROW($ED60)),$EC60,$EC$2&ROW($EC60)),$EB60,$EB$2&ROW($EB60)),$EA60,$EA$2&ROW($EA60)),$DZ60,$DZ$2&ROW($DZ60)),$DY60,$DY$2&ROW($DY60)),$DX60,$DX$2&ROW($DX60)),$DW60,$DW$2&ROW($DW60)),$DV60,$DV$2&ROW($DV60)),$DU60,$DU$2&ROW($DU60)),$DT60,$DT$2&ROW($DT60)),$DS60,$DS$2&ROW($DS60)))","v":"X=AS60*if(BE60 =1, 1.08*AU60*(68-36.5)*AW60*6492*.77/1000000/BG60,0)*10"},{"$f":"IF(X60=\"\",0,\"X=\"&SUBSTITUTE(SUBSTITUTE(SUBSTITUTE(SUBSTITUTE(SUBSTITUTE(SUBSTITUTE(SUBSTITUTE(SUBSTITUTE(SUBSTITUTE(SUBSTITUTE(SUBSTITUTE(SUBSTITUTE(X60,$ED60,$ED$2&ROW($ED60)),$EC60,$EC$2&ROW($EC60)),$EB60,$EB$2&ROW($EB60)),$EA60,$EA$2&ROW($EA60)),$DZ60,$DZ$2&ROW($DZ60)),$DY60,$DY$2&ROW($DY60)),$DX60,$DX$2&ROW($DX60)),$DW60,$DW$2&ROW($DW60)),$DV60,$DV$2&ROW($DV60)),$DU60,$DU$2&ROW($DU60)),$DT60,$DT$2&ROW($DT60)),$DS60,$DS$2&ROW($DS60)))","v":"X=AS60*if(BE60 =2, 1.08*AU60*(68-36.5)*AW60*6492*.77/1000000/BG60,0)"},{"$f":"IF(Y60=\"\",0,\"X=\"&SUBSTITUTE(SUBSTITUTE(SUBSTITUTE(SUBSTITUTE(SUBSTITUTE(SUBSTITUTE(SUBSTITUTE(SUBSTITUTE(SUBSTITUTE(SUBSTITUTE(SUBSTITUTE(SUBSTITUTE(Y60,$ED60,$ED$2&ROW($ED60)),$EC60,$EC$2&ROW($EC60)),$EB60,$EB$2&ROW($EB60)),$EA60,$EA$2&ROW($EA60)),$DZ60,$DZ$2&ROW($DZ60)),$DY60,$DY$2&ROW($DY60)),$DX60,$DX$2&ROW($DX60)),$DW60,$DW$2&ROW($DW60)),$DV60,$DV$2&ROW($DV60)),$DU60,$DU$2&ROW($DU60)),$DT60,$DT$2&ROW($DT60)),$DS60,$DS$2&ROW($DS60)))","v":"X=AS60*if(BE60 =3, 1.08*AU60*(68-36.5)*AW60*6492*.77/1000000/BG60,0)"},{"$f":"IF(Z60=\"\",0,\"X=\"&SUBSTITUTE(SUBSTITUTE(SUBSTITUTE(SUBSTITUTE(SUBSTITUTE(SUBSTITUTE(SUBSTITUTE(SUBSTITUTE(SUBSTITUTE(SUBSTITUTE(SUBSTITUTE(SUBSTITUTE(Z60,$ED60,$ED$2&ROW($ED60)),$EC60,$EC$2&ROW($EC60)),$EB60,$EB$2&ROW($EB60)),$EA60,$EA$2&ROW($EA60)),$DZ60,$DZ$2&ROW($DZ60)),$DY60,$DY$2&ROW($DY60)),$DX60,$DX$2&ROW($DX60)),$DW60,$DW$2&ROW($DW60)),$DV60,$DV$2&ROW($DV60)),$DU60,$DU$2&ROW($DU60)),$DT60,$DT$2&ROW($DT60)),$DS60,$DS$2&ROW($DS60)))","v":"X=AS60*if(BE60 =4, 1.08*AU60*(68-36.5)*AW60*6492*.77/1000000/BG60,0)"},{"$f":"IF(AA60=\"\",0,\"X=\"&SUBSTITUTE(SUBSTITUTE(SUBSTITUTE(SUBSTITUTE(SUBSTITUTE(SUBSTITUTE(SUBSTITUTE(SUBSTITUTE(SUBSTITUTE(SUBSTITUTE(SUBSTITUTE(SUBSTITUTE(AA60,$ED60,$ED$2&ROW($ED60)),$EC60,$EC$2&ROW($EC60)),$EB60,$EB$2&ROW($EB60)),$EA60,$EA$2&ROW($EA60)),$DZ60,$DZ$2&ROW($DZ60)),$DY60,$DY$2&ROW($DY60)),$DX60,$DX$2&ROW($DX60)),$DW60,$DW$2&ROW($DW60)),$DV60,$DV$2&ROW($DV60)),$DU60,$DU$2&ROW($DU60)),$DT60,$DT$2&ROW($DT60)),$DS60,$DS$2&ROW($DS60)))","v":"X=AS60*if(BE60 =5, 1.08*AU60*(68-36.5)*AW60*6492*.77/1000000/BG60,0)"},{"$f":"IF(AB60=\"\",0,\"X=\"&SUBSTITUTE(SUBSTITUTE(SUBSTITUTE(SUBSTITUTE(SUBSTITUTE(SUBSTITUTE(SUBSTITUTE(SUBSTITUTE(SUBSTITUTE(SUBSTITUTE(SUBSTITUTE(SUBSTITUTE(AB60,$ED60,$ED$2&ROW($ED60)),$EC60,$EC$2&ROW($EC60)),$EB60,$EB$2&ROW($EB60)),$EA60,$EA$2&ROW($EA60)),$DZ60,$DZ$2&ROW($DZ60)),$DY60,$DY$2&ROW($DY60)),$DX60,$DX$2&ROW($DX60)),$DW60,$DW$2&ROW($DW60)),$DV60,$DV$2&ROW($DV60)),$DU60,$DU$2&ROW($DU60)),$DT60,$DT$2&ROW($DT60)),$DS60,$DS$2&ROW($DS60)))","v":0},null,null,"{Factor:WinterCF}","{Factor:SummerCF}",{"$f":"IFERROR(INDEX($EG60:$IV60,MATCH(0,COUNTIF($DR60:DT60,$EG60:$IV60),0)),\"\")","v":"{Measure:Quantity}"},{"$f":"IFERROR(INDEX($EG60:$IV60,MATCH(0,COUNTIF($DR60:DU60,$EG60:$IV60),0)),\"\")","v":"{Ventilation Air Rate}"},{"$f":"IFERROR(INDEX($EG60:$IV60,MATCH(0,COUNTIF($DR60:DV60,$EG60:$IV60),0)),\"\")","v":"{Eff Heating}"},{"$f":"IFERROR(INDEX($EG60:$IV60,MATCH(0,COUNTIF($DR60:DW60,$EG60:$IV60),0)),\"\")","v":"{Eff Cooling}"},{"$f":"IFERROR(INDEX($EG60:$IV60,MATCH(0,COUNTIF($DR60:DX60,$EG60:$IV60),0)),\"\")","v":"{SEER}"},{"$f":"IFERROR(INDEX($EG60:$IV60,MATCH(0,COUNTIF($DR60:DY60,$EG60:$IV60),0)),\"\")","v":"{Calculated Pressure Drop}"},{"$f":"IFERROR(INDEX($EG60:$IV60,MATCH(0,COUNTIF($DR60:DZ60,$EG60:$IV60),0)),\"\")","v":"{Heating Fuel Type}"},{"$f":"IFERROR(INDEX($EG60:$IV60,MATCH(0,COUNTIF($DR60:EA60,$EG60:$IV60),0)),\"\")","v":"{AFUE}"},{"$f":"IFERROR(INDEX($EG60:$IV60,MATCH(0,COUNTIF($DR60:EB60,$EG60:$IV60),0)),\"\")","v":""},{"$f":"IFERROR(INDEX($EG60:$IV60,MATCH(0,COUNTIF($DR60:EC60,$EG60:$IV60),0)),\"\")","v":""},null,null,{"$f":"IFERROR(MID($G60,FIND(CHAR(160),SUBSTITUTE($G60,\"{\",CHAR(160),EG$1)),FIND(CHAR(160),SUBSTITUTE($G60,\"}\",CHAR(160),EG$1))-FIND(CHAR(160),SUBSTITUTE($G60,\"{\",CHAR(160),EG$1))+1),\"\")","v":"{Measure:Quantity}"},{"$f":"IFERROR(MID($G60,FIND(CHAR(160),SUBSTITUTE($G60,\"{\",CHAR(160),EH$1)),FIND(CHAR(160),SUBSTITUTE($G60,\"}\",CHAR(160),EH$1))-FIND(CHAR(160),SUBSTITUTE($G60,\"{\",CHAR(160),EH$1))+1),\"\")","v":"{Ventilation Air Rate}"},{"$f":"IFERROR(MID($G60,FIND(CHAR(160),SUBSTITUTE($G60,\"{\",CHAR(160),EI$1)),FIND(CHAR(160),SUBSTITUTE($G60,\"}\",CHAR(160),EI$1))-FIND(CHAR(160),SUBSTITUTE($G60,\"{\",CHAR(160),EI$1))+1),\"\")","v":""},{"$f":"IFERROR(MID($G60,FIND(CHAR(160),SUBSTITUTE($G60,\"{\",CHAR(160),EJ$1)),FIND(CHAR(160),SUBSTITUTE($G60,\"}\",CHAR(160),EJ$1))-FIND(CHAR(160),SUBSTITUTE($G60,\"{\",CHAR(160),EJ$1))+1),\"\")","v":""},{"$f":"IFERROR(MID($G60,FIND(CHAR(160),SUBSTITUTE($G60,\"{\",CHAR(160),EK$1)),FIND(CHAR(160),SUBSTITUTE($G60,\"}\",CHAR(160),EK$1))-FIND(CHAR(160),SUBSTITUTE($G60,\"{\",CHAR(160),EK$1))+1),\"\")","v":""},{"$f":"IFERROR(MID($G60,FIND(CHAR(160),SUBSTITUTE($G60,\"{\",CHAR(160),EL$1)),FIND(CHAR(160),SUBSTITUTE($G60,\"}\",CHAR(160),EL$1))-FIND(CHAR(160),SUBSTITUTE($G60,\"{\",CHAR(160),EL$1))+1),\"\")","v":""},{"$f":"IFERROR(MID($G60,FIND(CHAR(160),SUBSTITUTE($G60,\"{\",CHAR(160),EM$1)),FIND(CHAR(160),SUBSTITUTE($G60,\"}\",CHAR(160),EM$1))-FIND(CHAR(160),SUBSTITUTE($G60,\"{\",CHAR(160),EM$1))+1),\"\")","v":""},{"$f":"IFERROR(MID($G60,FIND(CHAR(160),SUBSTITUTE($G60,\"{\",CHAR(160),EN$1)),FIND(CHAR(160),SUBSTITUTE($G60,\"}\",CHAR(160),EN$1))-FIND(CHAR(160),SUBSTITUTE($G60,\"{\",CHAR(160),EN$1))+1),\"\")","v":""},{"$f":"IFERROR(MID($G60,FIND(CHAR(160),SUBSTITUTE($G60,\"{\",CHAR(160),EO$1)),FIND(CHAR(160),SUBSTITUTE($G60,\"}\",CHAR(160),EO$1))-FIND(CHAR(160),SUBSTITUTE($G60,\"{\",CHAR(160),EO$1))+1),\"\")","v":""},{"$f":"IFERROR(MID($G60,FIND(CHAR(160),SUBSTITUTE($G60,\"{\",CHAR(160),EP$1)),FIND(CHAR(160),SUBSTITUTE($G60,\"}\",CHAR(160),EP$1))-FIND(CHAR(160),SUBSTITUTE($G60,\"{\",CHAR(160),EP$1))+1),\"\")","v":""},{"$f":"IFERROR(MID($J60,FIND(CHAR(160),SUBSTITUTE($J60,\"{\",CHAR(160),EQ$1)),FIND(CHAR(160),SUBSTITUTE($J60,\"}\",CHAR(160),EQ$1))-FIND(CHAR(160),SUBSTITUTE($J60,\"{\",CHAR(160),EQ$1))+1),\"\")","v":"{Measure:Quantity}"},{"$f":"IFERROR(MID($J60,FIND(CHAR(160),SUBSTITUTE($J60,\"{\",CHAR(160),ER$1)),FIND(CHAR(160),SUBSTITUTE($J60,\"}\",CHAR(160),ER$1))-FIND(CHAR(160),SUBSTITUTE($J60,\"{\",CHAR(160),ER$1))+1),\"\")","v":"{Ventilation Air Rate}"},{"$f":"IFERROR(MID($J60,FIND(CHAR(160),SUBSTITUTE($J60,\"{\",CHAR(160),ES$1)),FIND(CHAR(160),SUBSTITUTE($J60,\"}\",CHAR(160),ES$1))-FIND(CHAR(160),SUBSTITUTE($J60,\"{\",CHAR(160),ES$1))+1),\"\")","v":"{Eff Heating}"},{"$f":"IFERROR(MID($J60,FIND(CHAR(160),SUBSTITUTE($J60,\"{\",CHAR(160),ET$1)),FIND(CHAR(160),SUBSTITUTE($J60,\"}\",CHAR(160),ET$1))-FIND(CHAR(160),SUBSTITUTE($J60,\"{\",CHAR(160),ET$1))+1),\"\")","v":"{Eff Heating}"},{"$f":"IFERROR(MID($J60,FIND(CHAR(160),SUBSTITUTE($J60,\"{\",CHAR(160),EU$1)),FIND(CHAR(160),SUBSTITUTE($J60,\"}\",CHAR(160),EU$1))-FIND(CHAR(160),SUBSTITUTE($J60,\"{\",CHAR(160),EU$1))+1),\"\")","v":"{Eff Heating}"},{"$f":"IFERROR(MID($J60,FIND(CHAR(160),SUBSTITUTE($J60,\"{\",CHAR(160),EV$1)),FIND(CHAR(160),SUBSTITUTE($J60,\"}\",CHAR(160),EV$1))-FIND(CHAR(160),SUBSTITUTE($J60,\"{\",CHAR(160),EV$1))+1),\"\")","v":""},{"$f":"IFERROR(MID($J60,FIND(CHAR(160),SUBSTITUTE($J60,\"{\",CHAR(160),EW$1)),FIND(CHAR(160),SUBSTITUTE($J60,\"}\",CHAR(160),EW$1))-FIND(CHAR(160),SUBSTITUTE($J60,\"{\",CHAR(160),EW$1))+1),\"\")","v":""},{"$f":"IFERROR(MID($J60,FIND(CHAR(160),SUBSTITUTE($J60,\"{\",CHAR(160),EX$1)),FIND(CHAR(160),SUBSTITUTE($J60,\"}\",CHAR(160),EX$1))-FIND(CHAR(160),SUBSTITUTE($J60,\"{\",CHAR(160),EX$1))+1),\"\")","v":""},{"$f":"IFERROR(MID($J60,FIND(CHAR(160),SUBSTITUTE($J60,\"{\",CHAR(160),EY$1)),FIND(CHAR(160),SUBSTITUTE($J60,\"}\",CHAR(160),EY$1))-FIND(CHAR(160),SUBSTITUTE($J60,\"{\",CHAR(160),EY$1))+1),\"\")","v":""},{"$f":"IFERROR(MID($J60,FIND(CHAR(160),SUBSTITUTE($J60,\"{\",CHAR(160),EZ$1)),FIND(CHAR(160),SUBSTITUTE($J60,\"}\",CHAR(160),EZ$1))-FIND(CHAR(160),SUBSTITUTE($J60,\"{\",CHAR(160),EZ$1))+1),\"\")","v":""},{"$f":"IFERROR(MID($J60,FIND(CHAR(160),SUBSTITUTE($J60,\"{\",CHAR(160),FA$1)),FIND(CHAR(160),SUBSTITUTE($J60,\"}\",CHAR(160),FA$1))-FIND(CHAR(160),SUBSTITUTE($J60,\"{\",CHAR(160),FA$1))+1),\"\")","v":"{Measure:Quantity}"},{"$f":"IFERROR(MID($J60,FIND(CHAR(160),SUBSTITUTE($J60,\"{\",CHAR(160),FB$1)),FIND(CHAR(160),SUBSTITUTE($J60,\"}\",CHAR(160),FB$1))-FIND(CHAR(160),SUBSTITUTE($J60,\"{\",CHAR(160),FB$1))+1),\"\")","v":"{Ventilation Air Rate}"},{"$f":"IFERROR(MID($O60,FIND(CHAR(160),SUBSTITUTE($O60,\"{\",CHAR(160),FC$1)),FIND(CHAR(160),SUBSTITUTE($O60,\"}\",CHAR(160),FC$1))-FIND(CHAR(160),SUBSTITUTE($O60,\"{\",CHAR(160),FC$1))+1),\"\")","v":"{Eff Cooling}"},{"$f":"IFERROR(MID($O60,FIND(CHAR(160),SUBSTITUTE($O60,\"{\",CHAR(160),FD$1)),FIND(CHAR(160),SUBSTITUTE($O60,\"}\",CHAR(160),FD$1))-FIND(CHAR(160),SUBSTITUTE($O60,\"{\",CHAR(160),FD$1))+1),\"\")","v":"{SEER}"},{"$f":"IFERROR(MID($O60,FIND(CHAR(160),SUBSTITUTE($O60,\"{\",CHAR(160),FE$1)),FIND(CHAR(160),SUBSTITUTE($O60,\"}\",CHAR(160),FE$1))-FIND(CHAR(160),SUBSTITUTE($O60,\"{\",CHAR(160),FE$1))+1),\"\")","v":"{Ventilation Air Rate}"},{"$f":"IFERROR(MID($O60,FIND(CHAR(160),SUBSTITUTE($O60,\"{\",CHAR(160),FF$1)),FIND(CHAR(160),SUBSTITUTE($O60,\"}\",CHAR(160),FF$1))-FIND(CHAR(160),SUBSTITUTE($O60,\"{\",CHAR(160),FF$1))+1),\"\")","v":"{Calculated Pressure Drop}"},{"$f":"IFERROR(MID($O60,FIND(CHAR(160),SUBSTITUTE($O60,\"{\",CHAR(160),FG$1)),FIND(CHAR(160),SUBSTITUTE($O60,\"}\",CHAR(160),FG$1))-FIND(CHAR(160),SUBSTITUTE($O60,\"{\",CHAR(160),FG$1))+1),\"\")","v":"{Heating Fuel Type}"},{"$f":"IFERROR(MID($O60,FIND(CHAR(160),SUBSTITUTE($O60,\"{\",CHAR(160),FH$1)),FIND(CHAR(160),SUBSTITUTE($O60,\"}\",CHAR(160),FH$1))-FIND(CHAR(160),SUBSTITUTE($O60,\"{\",CHAR(160),FH$1))+1),\"\")","v":"{Ventilation Air Rate}"},{"$f":"IFERROR(MID($O60,FIND(CHAR(160),SUBSTITUTE($O60,\"{\",CHAR(160),FI$1)),FIND(CHAR(160),SUBSTITUTE($O60,\"}\",CHAR(160),FI$1))-FIND(CHAR(160),SUBSTITUTE($O60,\"{\",CHAR(160),FI$1))+1),\"\")","v":"{Eff Heating}"},{"$f":"IFERROR(MID($O60,FIND(CHAR(160),SUBSTITUTE($O60,\"{\",CHAR(160),FJ$1)),FIND(CHAR(160),SUBSTITUTE($O60,\"}\",CHAR(160),FJ$1))-FIND(CHAR(160),SUBSTITUTE($O60,\"{\",CHAR(160),FJ$1))+1),\"\")","v":"{AFUE}"},{"$f":"IFERROR(MID($O60,FIND(CHAR(160),SUBSTITUTE($O60,\"{\",CHAR(160),FK$1)),FIND(CHAR(160),SUBSTITUTE($O60,\"}\",CHAR(160),FK$1))-FIND(CHAR(160),SUBSTITUTE($O60,\"{\",CHAR(160),FK$1))+1),\"\")","v":"{Measure:Quantity}"},{"$f":"IFERROR(MID($O60,FIND(CHAR(160),SUBSTITUTE($O60,\"{\",CHAR(160),FL$1)),FIND(CHAR(160),SUBSTITUTE($O60,\"}\",CHAR(160),FL$1))-FIND(CHAR(160),SUBSTITUTE($O60,\"{\",CHAR(160),FL$1))+1),\"\")","v":"{Ventilation Air Rate}"},{"$f":"IFERROR(MID($R60,FIND(CHAR(160),SUBSTITUTE($R60,\"{\",CHAR(160),FM$1)),FIND(CHAR(160),SUBSTITUTE($R60,\"}\",CHAR(160),FM$1))-FIND(CHAR(160),SUBSTITUTE($R60,\"{\",CHAR(160),FM$1))+1),\"\")","v":"{Eff Cooling}"},{"$f":"IFERROR(MID($R60,FIND(CHAR(160),SUBSTITUTE($R60,\"{\",CHAR(160),FN$1)),FIND(CHAR(160),SUBSTITUTE($R60,\"}\",CHAR(160),FN$1))-FIND(CHAR(160),SUBSTITUTE($R60,\"{\",CHAR(160),FN$1))+1),\"\")","v":"{SEER}"},{"$f":"IFERROR(MID($R60,FIND(CHAR(160),SUBSTITUTE($R60,\"{\",CHAR(160),FO$1)),FIND(CHAR(160),SUBSTITUTE($R60,\"}\",CHAR(160),FO$1))-FIND(CHAR(160),SUBSTITUTE($R60,\"{\",CHAR(160),FO$1))+1),\"\")","v":"{Ventilation Air Rate}"},{"$f":"IFERROR(MID($R60,FIND(CHAR(160),SUBSTITUTE($R60,\"{\",CHAR(160),FP$1)),FIND(CHAR(160),SUBSTITUTE($R60,\"}\",CHAR(160),FP$1))-FIND(CHAR(160),SUBSTITUTE($R60,\"{\",CHAR(160),FP$1))+1),\"\")","v":"{Calculated Pressure Drop}"},{"$f":"IFERROR(MID($R60,FIND(CHAR(160),SUBSTITUTE($R60,\"{\",CHAR(160),FQ$1)),FIND(CHAR(160),SUBSTITUTE($R60,\"}\",CHAR(160),FQ$1))-FIND(CHAR(160),SUBSTITUTE($R60,\"{\",CHAR(160),FQ$1))+1),\"\")","v":""},{"$f":"IFERROR(MID($R60,FIND(CHAR(160),SUBSTITUTE($R60,\"{\",CHAR(160),FR$1)),FIND(CHAR(160),SUBSTITUTE($R60,\"}\",CHAR(160),FR$1))-FIND(CHAR(160),SUBSTITUTE($R60,\"{\",CHAR(160),FR$1))+1),\"\")","v":""},{"$f":"IFERROR(MID($R60,FIND(CHAR(160),SUBSTITUTE($R60,\"{\",CHAR(160),FS$1)),FIND(CHAR(160),SUBSTITUTE($R60,\"}\",CHAR(160),FS$1))-FIND(CHAR(160),SUBSTITUTE($R60,\"{\",CHAR(160),FS$1))+1),\"\")","v":""},{"$f":"IFERROR(MID($R60,FIND(CHAR(160),SUBSTITUTE($R60,\"{\",CHAR(160),FT$1)),FIND(CHAR(160),SUBSTITUTE($R60,\"}\",CHAR(160),FT$1))-FIND(CHAR(160),SUBSTITUTE($R60,\"{\",CHAR(160),FT$1))+1),\"\")","v":""},{"$f":"IFERROR(MID($R60,FIND(CHAR(160),SUBSTITUTE($R60,\"{\",CHAR(160),FU$1)),FIND(CHAR(160),SUBSTITUTE($R60,\"}\",CHAR(160),FU$1))-FIND(CHAR(160),SUBSTITUTE($R60,\"{\",CHAR(160),FU$1))+1),\"\")","v":"{Measure:Quantity}"},{"$f":"IFERROR(MID($R60,FIND(CHAR(160),SUBSTITUTE($R60,\"{\",CHAR(160),FV$1)),FIND(CHAR(160),SUBSTITUTE($R60,\"}\",CHAR(160),FV$1))-FIND(CHAR(160),SUBSTITUTE($R60,\"{\",CHAR(160),FV$1))+1),\"\")","v":"{Ventilation Air Rate}"},{"$f":"IFERROR(MID($U60,FIND(CHAR(160),SUBSTITUTE($U60,\"{\",CHAR(160),FW$1)),FIND(CHAR(160),SUBSTITUTE($U60,\"}\",CHAR(160),FW$1))-FIND(CHAR(160),SUBSTITUTE($U60,\"{\",CHAR(160),FW$1))+1),\"\")","v":"{Calculated Pressure Drop}"},{"$f":"IFERROR(MID($U60,FIND(CHAR(160),SUBSTITUTE($U60,\"{\",CHAR(160),FX$1)),FIND(CHAR(160),SUBSTITUTE($U60,\"}\",CHAR(160),FX$1))-FIND(CHAR(160),SUBSTITUTE($U60,\"{\",CHAR(160),FX$1))+1),\"\")","v":"{Factor:WinterCF}"},{"$f":"IFERROR(MID($U60,FIND(CHAR(160),SUBSTITUTE($U60,\"{\",CHAR(160),FY$1)),FIND(CHAR(160),SUBSTITUTE($U60,\"}\",CHAR(160),FY$1))-FIND(CHAR(160),SUBSTITUTE($U60,\"{\",CHAR(160),FY$1))+1),\"\")","v":""},{"$f":"IFERROR(MID($U60,FIND(CHAR(160),SUBSTITUTE($U60,\"{\",CHAR(160),FZ$1)),FIND(CHAR(160),SUBSTITUTE($U60,\"}\",CHAR(160),FZ$1))-FIND(CHAR(160),SUBSTITUTE($U60,\"{\",CHAR(160),FZ$1))+1),\"\")","v":""},{"$f":"IFERROR(MID($U60,FIND(CHAR(160),SUBSTITUTE($U60,\"{\",CHAR(160),GA$1)),FIND(CHAR(160),SUBSTITUTE($U60,\"}\",CHAR(160),GA$1))-FIND(CHAR(160),SUBSTITUTE($U60,\"{\",CHAR(160),GA$1))+1),\"\")","v":""},{"$f":"IFERROR(MID($U60,FIND(CHAR(160),SUBSTITUTE($U60,\"{\",CHAR(160),GB$1)),FIND(CHAR(160),SUBSTITUTE($U60,\"}\",CHAR(160),GB$1))-FIND(CHAR(160),SUBSTITUTE($U60,\"{\",CHAR(160),GB$1))+1),\"\")","v":""},{"$f":"IFERROR(MID($U60,FIND(CHAR(160),SUBSTITUTE($U60,\"{\",CHAR(160),GC$1)),FIND(CHAR(160),SUBSTITUTE($U60,\"}\",CHAR(160),GC$1))-FIND(CHAR(160),SUBSTITUTE($U60,\"{\",CHAR(160),GC$1))+1),\"\")","v":""},{"$f":"IFERROR(MID($U60,FIND(CHAR(160),SUBSTITUTE($U60,\"{\",CHAR(160),GD$1)),FIND(CHAR(160),SUBSTITUTE($U60,\"}\",CHAR(160),GD$1))-FIND(CHAR(160),SUBSTITUTE($U60,\"{\",CHAR(160),GD$1))+1),\"\")","v":""},{"$f":"IFERROR(MID($U60,FIND(CHAR(160),SUBSTITUTE($U60,\"{\",CHAR(160),GE$1)),FIND(CHAR(160),SUBSTITUTE($U60,\"}\",CHAR(160),GE$1))-FIND(CHAR(160),SUBSTITUTE($U60,\"{\",CHAR(160),GE$1))+1),\"\")","v":"{Measure:Quantity}"},{"$f":"IFERROR(MID($U60,FIND(CHAR(160),SUBSTITUTE($U60,\"{\",CHAR(160),GF$1)),FIND(CHAR(160),SUBSTITUTE($U60,\"}\",CHAR(160),GF$1))-FIND(CHAR(160),SUBSTITUTE($U60,\"{\",CHAR(160),GF$1))+1),\"\")","v":"{Ventilation Air Rate}"},{"$f":"IFERROR(MID($V60,FIND(CHAR(160),SUBSTITUTE($V60,\"{\",CHAR(160),GG$1)),FIND(CHAR(160),SUBSTITUTE($V60,\"}\",CHAR(160),GG$1))-FIND(CHAR(160),SUBSTITUTE($V60,\"{\",CHAR(160),GG$1))+1),\"\")","v":"{Eff Cooling}"},{"$f":"IFERROR(MID($V60,FIND(CHAR(160),SUBSTITUTE($V60,\"{\",CHAR(160),GH$1)),FIND(CHAR(160),SUBSTITUTE($V60,\"}\",CHAR(160),GH$1))-FIND(CHAR(160),SUBSTITUTE($V60,\"{\",CHAR(160),GH$1))+1),\"\")","v":"{SEER}"},{"$f":"IFERROR(MID($V60,FIND(CHAR(160),SUBSTITUTE($V60,\"{\",CHAR(160),GI$1)),FIND(CHAR(160),SUBSTITUTE($V60,\"}\",CHAR(160),GI$1))-FIND(CHAR(160),SUBSTITUTE($V60,\"{\",CHAR(160),GI$1))+1),\"\")","v":"{Ventilation Air Rate}"},{"$f":"IFERROR(MID($V60,FIND(CHAR(160),SUBSTITUTE($V60,\"{\",CHAR(160),GJ$1)),FIND(CHAR(160),SUBSTITUTE($V60,\"}\",CHAR(160),GJ$1))-FIND(CHAR(160),SUBSTITUTE($V60,\"{\",CHAR(160),GJ$1))+1),\"\")","v":"{Calculated Pressure Drop}"},{"$f":"IFERROR(MID($V60,FIND(CHAR(160),SUBSTITUTE($V60,\"{\",CHAR(160),GK$1)),FIND(CHAR(160),SUBSTITUTE($V60,\"}\",CHAR(160),GK$1))-FIND(CHAR(160),SUBSTITUTE($V60,\"{\",CHAR(160),GK$1))+1),\"\")","v":"{Factor:SummerCF}"},{"$f":"IFERROR(MID($V60,FIND(CHAR(160),SUBSTITUTE($V60,\"{\",CHAR(160),GL$1)),FIND(CHAR(160),SUBSTITUTE($V60,\"}\",CHAR(160),GL$1))-FIND(CHAR(160),SUBSTITUTE($V60,\"{\",CHAR(160),GL$1))+1),\"\")","v":""},{"$f":"IFERROR(MID($V60,FIND(CHAR(160),SUBSTITUTE($V60,\"{\",CHAR(160),GM$1)),FIND(CHAR(160),SUBSTITUTE($V60,\"}\",CHAR(160),GM$1))-FIND(CHAR(160),SUBSTITUTE($V60,\"{\",CHAR(160),GM$1))+1),\"\")","v":""},{"$f":"IFERROR(MID($V60,FIND(CHAR(160),SUBSTITUTE($V60,\"{\",CHAR(160),GN$1)),FIND(CHAR(160),SUBSTITUTE($V60,\"}\",CHAR(160),GN$1))-FIND(CHAR(160),SUBSTITUTE($V60,\"{\",CHAR(160),GN$1))+1),\"\")","v":""},{"$f":"IFERROR(MID($V60,FIND(CHAR(160),SUBSTITUTE($V60,\"{\",CHAR(160),GO$1)),FIND(CHAR(160),SUBSTITUTE($V60,\"}\",CHAR(160),GO$1))-FIND(CHAR(160),SUBSTITUTE($V60,\"{\",CHAR(160),GO$1))+1),\"\")","v":"{Measure:Quantity}"},{"$f":"IFERROR(MID($V60,FIND(CHAR(160),SUBSTITUTE($V60,\"{\",CHAR(160),GP$1)),FIND(CHAR(160),SUBSTITUTE($V60,\"}\",CHAR(160),GP$1))-FIND(CHAR(160),SUBSTITUTE($V60,\"{\",CHAR(160),GP$1))+1),\"\")","v":"{Ventilation Air Rate}"},{"$f":"IFERROR(MID($W60,FIND(CHAR(160),SUBSTITUTE($W60,\"{\",CHAR(160),GQ$1)),FIND(CHAR(160),SUBSTITUTE($W60,\"}\",CHAR(160),GQ$1))-FIND(CHAR(160),SUBSTITUTE($W60,\"{\",CHAR(160),GQ$1))+1),\"\")","v":"{Ventilation Air Rate}"},{"$f":"IFERROR(MID($W60,FIND(CHAR(160),SUBSTITUTE($W60,\"{\",CHAR(160),GR$1)),FIND(CHAR(160),SUBSTITUTE($W60,\"}\",CHAR(160),GR$1))-FIND(CHAR(160),SUBSTITUTE($W60,\"{\",CHAR(160),GR$1))+1),\"\")","v":"{Eff Heating}"},{"$f":"IFERROR(MID($W60,FIND(CHAR(160),SUBSTITUTE($W60,\"{\",CHAR(160),GS$1)),FIND(CHAR(160),SUBSTITUTE($W60,\"}\",CHAR(160),GS$1))-FIND(CHAR(160),SUBSTITUTE($W60,\"{\",CHAR(160),GS$1))+1),\"\")","v":"{AFUE}"},{"$f":"IFERROR(MID($W60,FIND(CHAR(160),SUBSTITUTE($W60,\"{\",CHAR(160),GT$1)),FIND(CHAR(160),SUBSTITUTE($W60,\"}\",CHAR(160),GT$1))-FIND(CHAR(160),SUBSTITUTE($W60,\"{\",CHAR(160),GT$1))+1),\"\")","v":""},{"$f":"IFERROR(MID($W60,FIND(CHAR(160),SUBSTITUTE($W60,\"{\",CHAR(160),GU$1)),FIND(CHAR(160),SUBSTITUTE($W60,\"}\",CHAR(160),GU$1))-FIND(CHAR(160),SUBSTITUTE($W60,\"{\",CHAR(160),GU$1))+1),\"\")","v":""},{"$f":"IFERROR(MID($W60,FIND(CHAR(160),SUBSTITUTE($W60,\"{\",CHAR(160),GV$1)),FIND(CHAR(160),SUBSTITUTE($W60,\"}\",CHAR(160),GV$1))-FIND(CHAR(160),SUBSTITUTE($W60,\"{\",CHAR(160),GV$1))+1),\"\")","v":""},{"$f":"IFERROR(MID($W60,FIND(CHAR(160),SUBSTITUTE($W60,\"{\",CHAR(160),GW$1)),FIND(CHAR(160),SUBSTITUTE($W60,\"}\",CHAR(160),GW$1))-FIND(CHAR(160),SUBSTITUTE($W60,\"{\",CHAR(160),GW$1))+1),\"\")","v":""},{"$f":"IFERROR(MID($W60,FIND(CHAR(160),SUBSTITUTE($W60,\"{\",CHAR(160),GX$1)),FIND(CHAR(160),SUBSTITUTE($W60,\"}\",CHAR(160),GX$1))-FIND(CHAR(160),SUBSTITUTE($W60,\"{\",CHAR(160),GX$1))+1),\"\")","v":""},{"$f":"IFERROR(MID($W60,FIND(CHAR(160),SUBSTITUTE($W60,\"{\",CHAR(160),GY$1)),FIND(CHAR(160),SUBSTITUTE($W60,\"}\",CHAR(160),GY$1))-FIND(CHAR(160),SUBSTITUTE($W60,\"{\",CHAR(160),GY$1))+1),\"\")","v":"{Measure:Quantity}"},{"$f":"IFERROR(MID($W60,FIND(CHAR(160),SUBSTITUTE($W60,\"{\",CHAR(160),GZ$1)),FIND(CHAR(160),SUBSTITUTE($W60,\"}\",CHAR(160),GZ$1))-FIND(CHAR(160),SUBSTITUTE($W60,\"{\",CHAR(160),GZ$1))+1),\"\")","v":"{Heating Fuel Type}"},{"$f":"IFERROR(MID($X60,FIND(CHAR(160),SUBSTITUTE($X60,\"{\",CHAR(160),HA$1)),FIND(CHAR(160),SUBSTITUTE($X60,\"}\",CHAR(160),HA$1))-FIND(CHAR(160),SUBSTITUTE($X60,\"{\",CHAR(160),HA$1))+1),\"\")","v":"{Ventilation Air Rate}"},{"$f":"IFERROR(MID($X60,FIND(CHAR(160),SUBSTITUTE($X60,\"{\",CHAR(160),HB$1)),FIND(CHAR(160),SUBSTITUTE($X60,\"}\",CHAR(160),HB$1))-FIND(CHAR(160),SUBSTITUTE($X60,\"{\",CHAR(160),HB$1))+1),\"\")","v":"{Eff Heating}"},{"$f":"IFERROR(MID($X60,FIND(CHAR(160),SUBSTITUTE($X60,\"{\",CHAR(160),HC$1)),FIND(CHAR(160),SUBSTITUTE($X60,\"}\",CHAR(160),HC$1))-FIND(CHAR(160),SUBSTITUTE($X60,\"{\",CHAR(160),HC$1))+1),\"\")","v":"{AFUE}"},{"$f":"IFERROR(MID($X60,FIND(CHAR(160),SUBSTITUTE($X60,\"{\",CHAR(160),HD$1)),FIND(CHAR(160),SUBSTITUTE($X60,\"}\",CHAR(160),HD$1))-FIND(CHAR(160),SUBSTITUTE($X60,\"{\",CHAR(160),HD$1))+1),\"\")","v":""},{"$f":"IFERROR(MID($X60,FIND(CHAR(160),SUBSTITUTE($X60,\"{\",CHAR(160),HE$1)),FIND(CHAR(160),SUBSTITUTE($X60,\"}\",CHAR(160),HE$1))-FIND(CHAR(160),SUBSTITUTE($X60,\"{\",CHAR(160),HE$1))+1),\"\")","v":""},{"$f":"IFERROR(MID($X60,FIND(CHAR(160),SUBSTITUTE($X60,\"{\",CHAR(160),HF$1)),FIND(CHAR(160),SUBSTITUTE($X60,\"}\",CHAR(160),HF$1))-FIND(CHAR(160),SUBSTITUTE($X60,\"{\",CHAR(160),HF$1))+1),\"\")","v":""},{"$f":"IFERROR(MID($X60,FIND(CHAR(160),SUBSTITUTE($X60,\"{\",CHAR(160),HG$1)),FIND(CHAR(160),SUBSTITUTE($X60,\"}\",CHAR(160),HG$1))-FIND(CHAR(160),SUBSTITUTE($X60,\"{\",CHAR(160),HG$1))+1),\"\")","v":""},{"$f":"IFERROR(MID($X60,FIND(CHAR(160),SUBSTITUTE($X60,\"{\",CHAR(160),HH$1)),FIND(CHAR(160),SUBSTITUTE($X60,\"}\",CHAR(160),HH$1))-FIND(CHAR(160),SUBSTITUTE($X60,\"{\",CHAR(160),HH$1))+1),\"\")","v":""},{"$f":"IFERROR(MID($X60,FIND(CHAR(160),SUBSTITUTE($X60,\"{\",CHAR(160),HI$1)),FIND(CHAR(160),SUBSTITUTE($X60,\"}\",CHAR(160),HI$1))-FIND(CHAR(160),SUBSTITUTE($X60,\"{\",CHAR(160),HI$1))+1),\"\")","v":"{Measure:Quantity}"},{"$f":"IFERROR(MID($X60,FIND(CHAR(160),SUBSTITUTE($X60,\"{\",CHAR(160),HJ$1)),FIND(CHAR(160),SUBSTITUTE($X60,\"}\",CHAR(160),HJ$1))-FIND(CHAR(160),SUBSTITUTE($X60,\"{\",CHAR(160),HJ$1))+1),\"\")","v":"{Heating Fuel Type}"},{"$f":"IFERROR(MID($Y60,FIND(CHAR(160),SUBSTITUTE($Y60,\"{\",CHAR(160),HK$1)),FIND(CHAR(160),SUBSTITUTE($Y60,\"}\",CHAR(160),HK$1))-FIND(CHAR(160),SUBSTITUTE($Y60,\"{\",CHAR(160),HK$1))+1),\"\")","v":"{Ventilation Air Rate}"},{"$f":"IFERROR(MID($Y60,FIND(CHAR(160),SUBSTITUTE($Y60,\"{\",CHAR(160),HL$1)),FIND(CHAR(160),SUBSTITUTE($Y60,\"}\",CHAR(160),HL$1))-FIND(CHAR(160),SUBSTITUTE($Y60,\"{\",CHAR(160),HL$1))+1),\"\")","v":"{Eff Heating}"},{"$f":"IFERROR(MID($Y60,FIND(CHAR(160),SUBSTITUTE($Y60,\"{\",CHAR(160),HM$1)),FIND(CHAR(160),SUBSTITUTE($Y60,\"}\",CHAR(160),HM$1))-FIND(CHAR(160),SUBSTITUTE($Y60,\"{\",CHAR(160),HM$1))+1),\"\")","v":"{AFUE}"},{"$f":"IFERROR(MID($Y60,FIND(CHAR(160),SUBSTITUTE($Y60,\"{\",CHAR(160),HN$1)),FIND(CHAR(160),SUBSTITUTE($Y60,\"}\",CHAR(160),HN$1))-FIND(CHAR(160),SUBSTITUTE($Y60,\"{\",CHAR(160),HN$1))+1),\"\")","v":""},{"$f":"IFERROR(MID($Y60,FIND(CHAR(160),SUBSTITUTE($Y60,\"{\",CHAR(160),HO$1)),FIND(CHAR(160),SUBSTITUTE($Y60,\"}\",CHAR(160),HO$1))-FIND(CHAR(160),SUBSTITUTE($Y60,\"{\",CHAR(160),HO$1))+1),\"\")","v":""},{"$f":"IFERROR(MID($Y60,FIND(CHAR(160),SUBSTITUTE($Y60,\"{\",CHAR(160),HP$1)),FIND(CHAR(160),SUBSTITUTE($Y60,\"}\",CHAR(160),HP$1))-FIND(CHAR(160),SUBSTITUTE($Y60,\"{\",CHAR(160),HP$1))+1),\"\")","v":""},{"$f":"IFERROR(MID($Y60,FIND(CHAR(160),SUBSTITUTE($Y60,\"{\",CHAR(160),HQ$1)),FIND(CHAR(160),SUBSTITUTE($Y60,\"}\",CHAR(160),HQ$1))-FIND(CHAR(160),SUBSTITUTE($Y60,\"{\",CHAR(160),HQ$1))+1),\"\")","v":""},{"$f":"IFERROR(MID($Y60,FIND(CHAR(160),SUBSTITUTE($Y60,\"{\",CHAR(160),HR$1)),FIND(CHAR(160),SUBSTITUTE($Y60,\"}\",CHAR(160),HR$1))-FIND(CHAR(160),SUBSTITUTE($Y60,\"{\",CHAR(160),HR$1))+1),\"\")","v":""},{"$f":"IFERROR(MID($Y60,FIND(CHAR(160),SUBSTITUTE($Y60,\"{\",CHAR(160),HS$1)),FIND(CHAR(160),SUBSTITUTE($Y60,\"}\",CHAR(160),HS$1))-FIND(CHAR(160),SUBSTITUTE($Y60,\"{\",CHAR(160),HS$1))+1),\"\")","v":"{Measure:Quantity}"},{"$f":"IFERROR(MID($Y60,FIND(CHAR(160),SUBSTITUTE($Y60,\"{\",CHAR(160),HT$1)),FIND(CHAR(160),SUBSTITUTE($Y60,\"}\",CHAR(160),HT$1))-FIND(CHAR(160),SUBSTITUTE($Y60,\"{\",CHAR(160),HT$1))+1),\"\")","v":"{Heating Fuel Type}"},{"$f":"IFERROR(MID($Z60,FIND(CHAR(160),SUBSTITUTE($Z60,\"{\",CHAR(160),HU$1)),FIND(CHAR(160),SUBSTITUTE($Z60,\"}\",CHAR(160),HU$1))-FIND(CHAR(160),SUBSTITUTE($Z60,\"{\",CHAR(160),HU$1))+1),\"\")","v":"{Ventilation Air Rate}"},{"$f":"IFERROR(MID($Z60,FIND(CHAR(160),SUBSTITUTE($Z60,\"{\",CHAR(160),HV$1)),FIND(CHAR(160),SUBSTITUTE($Z60,\"}\",CHAR(160),HV$1))-FIND(CHAR(160),SUBSTITUTE($Z60,\"{\",CHAR(160),HV$1))+1),\"\")","v":"{Eff Heating}"},{"$f":"IFERROR(MID($Z60,FIND(CHAR(160),SUBSTITUTE($Z60,\"{\",CHAR(160),HW$1)),FIND(CHAR(160),SUBSTITUTE($Z60,\"}\",CHAR(160),HW$1))-FIND(CHAR(160),SUBSTITUTE($Z60,\"{\",CHAR(160),HW$1))+1),\"\")","v":"{AFUE}"},{"$f":"IFERROR(MID($Z60,FIND(CHAR(160),SUBSTITUTE($Z60,\"{\",CHAR(160),HX$1)),FIND(CHAR(160),SUBSTITUTE($Z60,\"}\",CHAR(160),HX$1))-FIND(CHAR(160),SUBSTITUTE($Z60,\"{\",CHAR(160),HX$1))+1),\"\")","v":""},{"$f":"IFERROR(MID($Z60,FIND(CHAR(160),SUBSTITUTE($Z60,\"{\",CHAR(160),HY$1)),FIND(CHAR(160),SUBSTITUTE($Z60,\"}\",CHAR(160),HY$1))-FIND(CHAR(160),SUBSTITUTE($Z60,\"{\",CHAR(160),HY$1))+1),\"\")","v":""},{"$f":"IFERROR(MID($Z60,FIND(CHAR(160),SUBSTITUTE($Z60,\"{\",CHAR(160),HZ$1)),FIND(CHAR(160),SUBSTITUTE($Z60,\"}\",CHAR(160),HZ$1))-FIND(CHAR(160),SUBSTITUTE($Z60,\"{\",CHAR(160),HZ$1))+1),\"\")","v":""},{"$f":"IFERROR(MID($Z60,FIND(CHAR(160),SUBSTITUTE($Z60,\"{\",CHAR(160),IA$1)),FIND(CHAR(160),SUBSTITUTE($Z60,\"}\",CHAR(160),IA$1))-FIND(CHAR(160),SUBSTITUTE($Z60,\"{\",CHAR(160),IA$1))+1),\"\")","v":""},{"$f":"IFERROR(MID($Z60,FIND(CHAR(160),SUBSTITUTE($Z60,\"{\",CHAR(160),IB$1)),FIND(CHAR(160),SUBSTITUTE($Z60,\"}\",CHAR(160),IB$1))-FIND(CHAR(160),SUBSTITUTE($Z60,\"{\",CHAR(160),IB$1))+1),\"\")","v":""},{"$f":"IFERROR(MID($Z60,FIND(CHAR(160),SUBSTITUTE($Z60,\"{\",CHAR(160),IC$1)),FIND(CHAR(160),SUBSTITUTE($Z60,\"}\",CHAR(160),IC$1))-FIND(CHAR(160),SUBSTITUTE($Z60,\"{\",CHAR(160),IC$1))+1),\"\")","v":"{Measure:Quantity}"},{"$f":"IFERROR(MID($Z60,FIND(CHAR(160),SUBSTITUTE($Z60,\"{\",CHAR(160),ID$1)),FIND(CHAR(160),SUBSTITUTE($Z60,\"}\",CHAR(160),ID$1))-FIND(CHAR(160),SUBSTITUTE($Z60,\"{\",CHAR(160),ID$1))+1),\"\")","v":"{Heating Fuel Type}"},{"$f":"IFERROR(MID($AA60,FIND(CHAR(160),SUBSTITUTE($AA60,\"{\",CHAR(160),IE$1)),FIND(CHAR(160),SUBSTITUTE($AA60,\"}\",CHAR(160),IE$1))-FIND(CHAR(160),SUBSTITUTE($AA60,\"{\",CHAR(160),IE$1))+1),\"\")","v":"{Ventilation Air Rate}"},{"$f":"IFERROR(MID($AA60,FIND(CHAR(160),SUBSTITUTE($AA60,\"{\",CHAR(160),IF$1)),FIND(CHAR(160),SUBSTITUTE($AA60,\"}\",CHAR(160),IF$1))-FIND(CHAR(160),SUBSTITUTE($AA60,\"{\",CHAR(160),IF$1))+1),\"\")","v":"{Eff Heating}"},{"$f":"IFERROR(MID($AA60,FIND(CHAR(160),SUBSTITUTE($AA60,\"{\",CHAR(160),IG$1)),FIND(CHAR(160),SUBSTITUTE($AA60,\"}\",CHAR(160),IG$1))-FIND(CHAR(160),SUBSTITUTE($AA60,\"{\",CHAR(160),IG$1))+1),\"\")","v":"{AFUE}"},{"$f":"IFERROR(MID($AA60,FIND(CHAR(160),SUBSTITUTE($AA60,\"{\",CHAR(160),IH$1)),FIND(CHAR(160),SUBSTITUTE($AA60,\"}\",CHAR(160),IH$1))-FIND(CHAR(160),SUBSTITUTE($AA60,\"{\",CHAR(160),IH$1))+1),\"\")","v":""},{"$f":"IFERROR(MID($AA60,FIND(CHAR(160),SUBSTITUTE($AA60,\"{\",CHAR(160),II$1)),FIND(CHAR(160),SUBSTITUTE($AA60,\"}\",CHAR(160),II$1))-FIND(CHAR(160),SUBSTITUTE($AA60,\"{\",CHAR(160),II$1))+1),\"\")","v":""},{"$f":"IFERROR(MID($AA60,FIND(CHAR(160),SUBSTITUTE($AA60,\"{\",CHAR(160),IJ$1)),FIND(CHAR(160),SUBSTITUTE($AA60,\"}\",CHAR(160),IJ$1))-FIND(CHAR(160),SUBSTITUTE($AA60,\"{\",CHAR(160),IJ$1))+1),\"\")","v":""},{"$f":"IFERROR(MID($AA60,FIND(CHAR(160),SUBSTITUTE($AA60,\"{\",CHAR(160),IK$1)),FIND(CHAR(160),SUBSTITUTE($AA60,\"}\",CHAR(160),IK$1))-FIND(CHAR(160),SUBSTITUTE($AA60,\"{\",CHAR(160),IK$1))+1),\"\")","v":""},{"$f":"IFERROR(MID($AA60,FIND(CHAR(160),SUBSTITUTE($AA60,\"{\",CHAR(160),IL$1)),FIND(CHAR(160),SUBSTITUTE($AA60,\"}\",CHAR(160),IL$1))-FIND(CHAR(160),SUBSTITUTE($AA60,\"{\",CHAR(160),IL$1))+1),\"\")","v":""},{"$f":"IFERROR(MID($AA60,FIND(CHAR(160),SUBSTITUTE($AA60,\"{\",CHAR(160),IM$1)),FIND(CHAR(160),SUBSTITUTE($AA60,\"}\",CHAR(160),IM$1))-FIND(CHAR(160),SUBSTITUTE($AA60,\"{\",CHAR(160),IM$1))+1),\"\")","v":"{Measure:Quantity}"},{"$f":"IFERROR(MID($AA60,FIND(CHAR(160),SUBSTITUTE($AA60,\"{\",CHAR(160),IN$1)),FIND(CHAR(160),SUBSTITUTE($AA60,\"}\",CHAR(160),IN$1))-FIND(CHAR(160),SUBSTITUTE($AA60,\"{\",CHAR(160),IN$1))+1),\"\")","v":"{Heating Fuel Type}"},{"$f":"IFERROR(MID($AB60,FIND(CHAR(160),SUBSTITUTE($AB60,\"{\",CHAR(160),IO$1)),FIND(CHAR(160),SUBSTITUTE($AB60,\"}\",CHAR(160),IO$1))-FIND(CHAR(160),SUBSTITUTE($AB60,\"{\",CHAR(160),IO$1))+1),\"\")","v":""},{"$f":"IFERROR(MID($AB60,FIND(CHAR(160),SUBSTITUTE($AB60,\"{\",CHAR(160),IP$1)),FIND(CHAR(160),SUBSTITUTE($AB60,\"}\",CHAR(160),IP$1))-FIND(CHAR(160),SUBSTITUTE($AB60,\"{\",CHAR(160),IP$1))+1),\"\")","v":""},{"$f":"IFERROR(MID($AB60,FIND(CHAR(160),SUBSTITUTE($AB60,\"{\",CHAR(160),IQ$1)),FIND(CHAR(160),SUBSTITUTE($AB60,\"}\",CHAR(160),IQ$1))-FIND(CHAR(160),SUBSTITUTE($AB60,\"{\",CHAR(160),IQ$1))+1),\"\")","v":""},{"$f":"IFERROR(MID($AB60,FIND(CHAR(160),SUBSTITUTE($AB60,\"{\",CHAR(160),IR$1)),FIND(CHAR(160),SUBSTITUTE($AB60,\"}\",CHAR(160),IR$1))-FIND(CHAR(160),SUBSTITUTE($AB60,\"{\",CHAR(160),IR$1))+1),\"\")","v":""},{"$f":"IFERROR(MID($AB60,FIND(CHAR(160),SUBSTITUTE($AB60,\"{\",CHAR(160),IS$1)),FIND(CHAR(160),SUBSTITUTE($AB60,\"}\",CHAR(160),IS$1))-FIND(CHAR(160),SUBSTITUTE($AB60,\"{\",CHAR(160),IS$1))+1),\"\")","v":""},{"$f":"IFERROR(MID($AB60,FIND(CHAR(160),SUBSTITUTE($AB60,\"{\",CHAR(160),IT$1)),FIND(CHAR(160),SUBSTITUTE($AB60,\"}\",CHAR(160),IT$1))-FIND(CHAR(160),SUBSTITUTE($AB60,\"{\",CHAR(160),IT$1))+1),\"\")","v":""},{"$f":"IFERROR(MID($AB60,FIND(CHAR(160),SUBSTITUTE($AB60,\"{\",CHAR(160),IU$1)),FIND(CHAR(160),SUBSTITUTE($AB60,\"}\",CHAR(160),IU$1))-FIND(CHAR(160),SUBSTITUTE($AB60,\"{\",CHAR(160),IU$1))+1),\"\")","v":""},{"$f":"IFERROR(MID($AB60,FIND(CHAR(160),SUBSTITUTE($AB60,\"{\",CHAR(160),IV$1)),FIND(CHAR(160),SUBSTITUTE($AB60,\"}\",CHAR(160),IV$1))-FIND(CHAR(160),SUBSTITUTE($AB60,\"{\",CHAR(160),IV$1))+1),\"\")","v":""},{"$f":"IFERROR(MID($AB60,FIND(CHAR(160),SUBSTITUTE($AB60,\"{\",CHAR(160),IW$1)),FIND(CHAR(160),SUBSTITUTE($AB60,\"}\",CHAR(160),IW$1))-FIND(CHAR(160),SUBSTITUTE($AB60,\"{\",CHAR(160),IW$1))+1),\"\")","v":""},{"$f":"IFERROR(MID($AB60,FIND(CHAR(160),SUBSTITUTE($AB60,\"{\",CHAR(160),IX$1)),FIND(CHAR(160),SUBSTITUTE($AB60,\"}\",CHAR(160),IX$1))-FIND(CHAR(160),SUBSTITUTE($AB60,\"{\",CHAR(160),IX$1))+1),\"\")","v":""},null,{"$f":"10-COUNTIF(DU60:ED60,\"\")","v":8}]
["C&I HVAC - Electric","HVAC AIR-TO-AIR HEAT PUMP: < 5.4 Packaged","AH2","2021-07-01","2021-09-09","Calculated","{Measure:Quantity}*{Unit Size  - Tons}*100.0",0,"Calculated","{Measure:Quantity}*{Unit Size  - Tons}*50",0,"2021-07-01","2022-06-30","Calculated","{Measure:Quantity} * ((12 * {Unit Size  - Tons} * (1/14.0 - 1/{SEER}) * 829) + ({Heating BTUH}/1000 * (1/8 - 1/{HSPF}) * 2200))",1E-4,null,"{Measure:Quantity} * 12 * {Unit Size  - Tons} * (1/14.0 - 1/{SEER})",null,null,"{Measure:Quantity} * {Heating BTUH}/1000 * (1/8 - 1/{HSPF}) * {Factor:WinterCF}","{Measure:Quantity} * 12 * {Unit Size  - Tons} * (1/14.0 - 1/{SEER}) * {Factor:SummerCF}",null,null,null,null,null,null,"2021-05-25","2022-06-30",15,0.42,0.35699999999999998,0.17,0.03,0.62,0.18,1,1.1220000000000001,1,0.52,1.6E-2,null,{"$f":"DU61","v":"{Measure:Quantity}"},1,{"$f":"DV61","v":"{Unit Size  - Tons}"},5,{"$f":"DW61","v":"{SEER}"},16,{"$f":"DX61","v":"{Heating BTUH}"},56500,{"$f":"DY61","v":"{HSPF}"},9,{"$f":"DZ61","v":""},null,{"$f":"EA61","v":""},null,{"$f":"EB61","v":""},null,{"$f":"EC61","v":""},null,{"$f":"ED61","v":""},null,{"$f":"AS61 * ((12 * AU61 * (1/14 - 1/AW61) * 829) + (AY61/1000 * (1/8 - 1/BA61) * 2200))","v":2170.4960317460323},{"$f":"0.0001","v":1E-4},0,{"$f":"AS61 * 12 * AU61 * (1/14 - 1/AW61)","v":0.53571428571428548},0,0,{"$f":"AS61 * AY61/1000 * (1/8 - 1/BA61) * AF61","v":0.32958333333333345},{"$f":"AS61 * 12 * AU61 * (1/14 - 1/AW61) * AG61","v":0.19124999999999992},0,0,0,0,0,0,null,"Res","Default DR",{"$f":"Benefits(BL61,BR61,BS61,BT61,BU61,BV61,BW61,BX61,BY61,BZ61,AE61,AH61,AI61,AJ61,AK61,AL61,AM61,AN61,AO61,AP61,CA61,CB61)","v":2995.0523708873061},1601.1796588694217,0,0,0,0,0,0,0,{"$f":"SUMPRODUCT(CC61:CK61,--(CC61:CK61>0))","v":4596.2320297567276},{"$f":"-SUMPRODUCT(CC61:CK61,--(CC61:CK61<0))","v":0},null,{"$f":"AS61*AU61*100","v":500},null,null,{"$f":"CM61+CO61","v":500},{"$f":"IF(NetOrGross=\"Net\",(1-AO61+AP61),1)","v":1},{"$f":"(SUMPRODUCT(CC61:CJ61,--(CC61:CJ61>0))+CN61)*CS61/((-SUMPRODUCT(CC61:CJ61,--(CC61:CJ61<0))+MAX(CO61,CV61)+CP61+CQ61)*CS61+IF(FRIncentives=\"Yes\",CV61*(1-CS61),0))","v":9.1924640595134548},1,{"$f":"AS61*AU61*50","v":250},null,"Electric","y",null,{"$f":"IF(F61=\"Manual Entry\",\"Manual\",IF(G61=\"\",0,\"X=\"&SUBSTITUTE(SUBSTITUTE(SUBSTITUTE(SUBSTITUTE(SUBSTITUTE(SUBSTITUTE(SUBSTITUTE(SUBSTITUTE(SUBSTITUTE(SUBSTITUTE(SUBSTITUTE(SUBSTITUTE(G61,$ED61,$ED$2&ROW($ED61)),$EC61,$EC$2&ROW($EC61)),$EB61,$EB$2&ROW($EB61)),$EA61,$EA$2&ROW($EA61)),$DZ61,$DZ$2&ROW($DZ61)),$DY61,$DY$2&ROW($DY61)),$DX61,$DX$2&ROW($DX61)),$DW61,$DW$2&ROW($DW61)),$DV61,$DV$2&ROW($DV61)),$DU61,$DU$2&ROW($DU61)),$DT61,$DT$2&ROW($DT61)),$DS61,$DS$2&ROW($DS61))))","v":"X=AS61*AU61*100.0"},{"$f":"IF(I61=\"Manual Entry\",\"Manual\",IF(J61=\"\",0,\"X=\"&SUBSTITUTE(SUBSTITUTE(SUBSTITUTE(SUBSTITUTE(SUBSTITUTE(SUBSTITUTE(SUBSTITUTE(SUBSTITUTE(SUBSTITUTE(SUBSTITUTE(SUBSTITUTE(SUBSTITUTE(J61,$ED61,$ED$2&ROW($ED61)),$EC61,$EC$2&ROW($EC61)),$EB61,$EB$2&ROW($EB61)),$EA61,$EA$2&ROW($EA61)),$DZ61,$DZ$2&ROW($DZ61)),$DY61,$DY$2&ROW($DY61)),$DX61,$DX$2&ROW($DX61)),$DW61,$DW$2&ROW($DW61)),$DV61,$DV$2&ROW($DV61)),$DU61,$DU$2&ROW($DU61)),$DT61,$DT$2&ROW($DT61)),$DS61,$DS$2&ROW($DS61))))","v":"X=AS61*AU61*50"},{"$f":"IF(O61=\"\",0,\"X=\"&SUBSTITUTE(SUBSTITUTE(SUBSTITUTE(SUBSTITUTE(SUBSTITUTE(SUBSTITUTE(SUBSTITUTE(SUBSTITUTE(SUBSTITUTE(SUBSTITUTE(SUBSTITUTE(SUBSTITUTE(O61,$ED61,$ED$2&ROW($ED61)),$EC61,$EC$2&ROW($EC61)),$EB61,$EB$2&ROW($EB61)),$EA61,$EA$2&ROW($EA61)),$DZ61,$DZ$2&ROW($DZ61)),$DY61,$DY$2&ROW($DY61)),$DX61,$DX$2&ROW($DX61)),$DW61,$DW$2&ROW($DW61)),$DV61,$DV$2&ROW($DV61)),$DU61,$DU$2&ROW($DU61)),$DT61,$DT$2&ROW($DT61)),$DS61,$DS$2&ROW($DS61)))","v":"X=AS61 * ((12 * AU61 * (1/14.0 - 1/AW61) * 829) + (AY61/1000 * (1/8 - 1/BA61) * 2200))"},{"$f":"IF(P61=\"\",0,\"X=\"&SUBSTITUTE(SUBSTITUTE(SUBSTITUTE(SUBSTITUTE(SUBSTITUTE(SUBSTITUTE(SUBSTITUTE(SUBSTITUTE(SUBSTITUTE(SUBSTITUTE(SUBSTITUTE(SUBSTITUTE(P61,$ED61,$ED$2&ROW($ED61)),$EC61,$EC$2&ROW($EC61)),$EB61,$EB$2&ROW($EB61)),$EA61,$EA$2&ROW($EA61)),$DZ61,$DZ$2&ROW($DZ61)),$DY61,$DY$2&ROW($DY61)),$DX61,$DX$2&ROW($DX61)),$DW61,$DW$2&ROW($DW61)),$DV61,$DV$2&ROW($DV61)),$DU61,$DU$2&ROW($DU61)),$DT61,$DT$2&ROW($DT61)),$DS61,$DS$2&ROW($DS61)))","v":"X=0.0001"},{"$f":"IF(Q61=\"\",0,\"X=\"&SUBSTITUTE(SUBSTITUTE(SUBSTITUTE(SUBSTITUTE(SUBSTITUTE(SUBSTITUTE(SUBSTITUTE(SUBSTITUTE(SUBSTITUTE(SUBSTITUTE(SUBSTITUTE(SUBSTITUTE(Q61,$ED61,$ED$2&ROW($ED61)),$EC61,$EC$2&ROW($EC61)),$EB61,$EB$2&ROW($EB61)),$EA61,$EA$2&ROW($EA61)),$DZ61,$DZ$2&ROW($DZ61)),$DY61,$DY$2&ROW($DY61)),$DX61,$DX$2&ROW($DX61)),$DW61,$DW$2&ROW($DW61)),$DV61,$DV$2&ROW($DV61)),$DU61,$DU$2&ROW($DU61)),$DT61,$DT$2&ROW($DT61)),$DS61,$DS$2&ROW($DS61)))","v":0},{"$f":"IF(R61=\"\",0,\"X=\"&SUBSTITUTE(SUBSTITUTE(SUBSTITUTE(SUBSTITUTE(SUBSTITUTE(SUBSTITUTE(SUBSTITUTE(SUBSTITUTE(SUBSTITUTE(SUBSTITUTE(SUBSTITUTE(SUBSTITUTE(R61,$ED61,$ED$2&ROW($ED61)),$EC61,$EC$2&ROW($EC61)),$EB61,$EB$2&ROW($EB61)),$EA61,$EA$2&ROW($EA61)),$DZ61,$DZ$2&ROW($DZ61)),$DY61,$DY$2&ROW($DY61)),$DX61,$DX$2&ROW($DX61)),$DW61,$DW$2&ROW($DW61)),$DV61,$DV$2&ROW($DV61)),$DU61,$DU$2&ROW($DU61)),$DT61,$DT$2&ROW($DT61)),$DS61,$DS$2&ROW($DS61)))","v":"X=AS61 * 12 * AU61 * (1/14.0 - 1/AW61)"},{"$f":"IF(S61=\"\",0,\"X=\"&SUBSTITUTE(SUBSTITUTE(SUBSTITUTE(SUBSTITUTE(SUBSTITUTE(SUBSTITUTE(SUBSTITUTE(SUBSTITUTE(SUBSTITUTE(SUBSTITUTE(SUBSTITUTE(SUBSTITUTE(S61,$ED61,$ED$2&ROW($ED61)),$EC61,$EC$2&ROW($EC61)),$EB61,$EB$2&ROW($EB61)),$EA61,$EA$2&ROW($EA61)),$DZ61,$DZ$2&ROW($DZ61)),$DY61,$DY$2&ROW($DY61)),$DX61,$DX$2&ROW($DX61)),$DW61,$DW$2&ROW($DW61)),$DV61,$DV$2&ROW($DV61)),$DU61,$DU$2&ROW($DU61)),$DT61,$DT$2&ROW($DT61)),$DS61,$DS$2&ROW($DS61)))","v":0},{"$f":"IF(T61=\"\",0,\"X=\"&SUBSTITUTE(SUBSTITUTE(SUBSTITUTE(SUBSTITUTE(SUBSTITUTE(SUBSTITUTE(SUBSTITUTE(SUBSTITUTE(SUBSTITUTE(SUBSTITUTE(SUBSTITUTE(SUBSTITUTE(T61,$ED61,$ED$2&ROW($ED61)),$EC61,$EC$2&ROW($EC61)),$EB61,$EB$2&ROW($EB61)),$EA61,$EA$2&ROW($EA61)),$DZ61,$DZ$2&ROW($DZ61)),$DY61,$DY$2&ROW($DY61)),$DX61,$DX$2&ROW($DX61)),$DW61,$DW$2&ROW($DW61)),$DV61,$DV$2&ROW($DV61)),$DU61,$DU$2&ROW($DU61)),$DT61,$DT$2&ROW($DT61)),$DS61,$DS$2&ROW($DS61)))","v":0},{"$f":"IF(U61=\"\",0,\"X=\"&SUBSTITUTE(SUBSTITUTE(SUBSTITUTE(SUBSTITUTE(SUBSTITUTE(SUBSTITUTE(SUBSTITUTE(SUBSTITUTE(SUBSTITUTE(SUBSTITUTE(SUBSTITUTE(SUBSTITUTE(U61,$ED61,$ED$2&ROW($ED61)),$EC61,$EC$2&ROW($EC61)),$EB61,$EB$2&ROW($EB61)),$EA61,$EA$2&ROW($EA61)),$DZ61,$DZ$2&ROW($DZ61)),$DY61,$DY$2&ROW($DY61)),$DX61,$DX$2&ROW($DX61)),$DW61,$DW$2&ROW($DW61)),$DV61,$DV$2&ROW($DV61)),$DU61,$DU$2&ROW($DU61)),$DT61,$DT$2&ROW($DT61)),$DS61,$DS$2&ROW($DS61)))","v":"X=AS61 * AY61/1000 * (1/8 - 1/BA61) * AF61"},{"$f":"IF(V61=\"\",0,\"X=\"&SUBSTITUTE(SUBSTITUTE(SUBSTITUTE(SUBSTITUTE(SUBSTITUTE(SUBSTITUTE(SUBSTITUTE(SUBSTITUTE(SUBSTITUTE(SUBSTITUTE(SUBSTITUTE(SUBSTITUTE(V61,$ED61,$ED$2&ROW($ED61)),$EC61,$EC$2&ROW($EC61)),$EB61,$EB$2&ROW($EB61)),$EA61,$EA$2&ROW($EA61)),$DZ61,$DZ$2&ROW($DZ61)),$DY61,$DY$2&ROW($DY61)),$DX61,$DX$2&ROW($DX61)),$DW61,$DW$2&ROW($DW61)),$DV61,$DV$2&ROW($DV61)),$DU61,$DU$2&ROW($DU61)),$DT61,$DT$2&ROW($DT61)),$DS61,$DS$2&ROW($DS61)))","v":"X=AS61 * 12 * AU61 * (1/14.0 - 1/AW61) * AG61"},{"$f":"IF(W61=\"\",0,\"X=\"&SUBSTITUTE(SUBSTITUTE(SUBSTITUTE(SUBSTITUTE(SUBSTITUTE(SUBSTITUTE(SUBSTITUTE(SUBSTITUTE(SUBSTITUTE(SUBSTITUTE(SUBSTITUTE(SUBSTITUTE(W61,$ED61,$ED$2&ROW($ED61)),$EC61,$EC$2&ROW($EC61)),$EB61,$EB$2&ROW($EB61)),$EA61,$EA$2&ROW($EA61)),$DZ61,$DZ$2&ROW($DZ61)),$DY61,$DY$2&ROW($DY61)),$DX61,$DX$2&ROW($DX61)),$DW61,$DW$2&ROW($DW61)),$DV61,$DV$2&ROW($DV61)),$DU61,$DU$2&ROW($DU61)),$DT61,$DT$2&ROW($DT61)),$DS61,$DS$2&ROW($DS61)))","v":0},{"$f":"IF(X61=\"\",0,\"X=\"&SUBSTITUTE(SUBSTITUTE(SUBSTITUTE(SUBSTITUTE(SUBSTITUTE(SUBSTITUTE(SUBSTITUTE(SUBSTITUTE(SUBSTITUTE(SUBSTITUTE(SUBSTITUTE(SUBSTITUTE(X61,$ED61,$ED$2&ROW($ED61)),$EC61,$EC$2&ROW($EC61)),$EB61,$EB$2&ROW($EB61)),$EA61,$EA$2&ROW($EA61)),$DZ61,$DZ$2&ROW($DZ61)),$DY61,$DY$2&ROW($DY61)),$DX61,$DX$2&ROW($DX61)),$DW61,$DW$2&ROW($DW61)),$DV61,$DV$2&ROW($DV61)),$DU61,$DU$2&ROW($DU61)),$DT61,$DT$2&ROW($DT61)),$DS61,$DS$2&ROW($DS61)))","v":0},{"$f":"IF(Y61=\"\",0,\"X=\"&SUBSTITUTE(SUBSTITUTE(SUBSTITUTE(SUBSTITUTE(SUBSTITUTE(SUBSTITUTE(SUBSTITUTE(SUBSTITUTE(SUBSTITUTE(SUBSTITUTE(SUBSTITUTE(SUBSTITUTE(Y61,$ED61,$ED$2&ROW($ED61)),$EC61,$EC$2&ROW($EC61)),$EB61,$EB$2&ROW($EB61)),$EA61,$EA$2&ROW($EA61)),$DZ61,$DZ$2&ROW($DZ61)),$DY61,$DY$2&ROW($DY61)),$DX61,$DX$2&ROW($DX61)),$DW61,$DW$2&ROW($DW61)),$DV61,$DV$2&ROW($DV61)),$DU61,$DU$2&ROW($DU61)),$DT61,$DT$2&ROW($DT61)),$DS61,$DS$2&ROW($DS61)))","v":0},{"$f":"IF(Z61=\"\",0,\"X=\"&SUBSTITUTE(SUBSTITUTE(SUBSTITUTE(SUBSTITUTE(SUBSTITUTE(SUBSTITUTE(SUBSTITUTE(SUBSTITUTE(SUBSTITUTE(SUBSTITUTE(SUBSTITUTE(SUBSTITUTE(Z61,$ED61,$ED$2&ROW($ED61)),$EC61,$EC$2&ROW($EC61)),$EB61,$EB$2&ROW($EB61)),$EA61,$EA$2&ROW($EA61)),$DZ61,$DZ$2&ROW($DZ61)),$DY61,$DY$2&ROW($DY61)),$DX61,$DX$2&ROW($DX61)),$DW61,$DW$2&ROW($DW61)),$DV61,$DV$2&ROW($DV61)),$DU61,$DU$2&ROW($DU61)),$DT61,$DT$2&ROW($DT61)),$DS61,$DS$2&ROW($DS61)))","v":0},{"$f":"IF(AA61=\"\",0,\"X=\"&SUBSTITUTE(SUBSTITUTE(SUBSTITUTE(SUBSTITUTE(SUBSTITUTE(SUBSTITUTE(SUBSTITUTE(SUBSTITUTE(SUBSTITUTE(SUBSTITUTE(SUBSTITUTE(SUBSTITUTE(AA61,$ED61,$ED$2&ROW($ED61)),$EC61,$EC$2&ROW($EC61)),$EB61,$EB$2&ROW($EB61)),$EA61,$EA$2&ROW($EA61)),$DZ61,$DZ$2&ROW($DZ61)),$DY61,$DY$2&ROW($DY61)),$DX61,$DX$2&ROW($DX61)),$DW61,$DW$2&ROW($DW61)),$DV61,$DV$2&ROW($DV61)),$DU61,$DU$2&ROW($DU61)),$DT61,$DT$2&ROW($DT61)),$DS61,$DS$2&ROW($DS61)))","v":0},{"$f":"IF(AB61=\"\",0,\"X=\"&SUBSTITUTE(SUBSTITUTE(SUBSTITUTE(SUBSTITUTE(SUBSTITUTE(SUBSTITUTE(SUBSTITUTE(SUBSTITUTE(SUBSTITUTE(SUBSTITUTE(SUBSTITUTE(SUBSTITUTE(AB61,$ED61,$ED$2&ROW($ED61)),$EC61,$EC$2&ROW($EC61)),$EB61,$EB$2&ROW($EB61)),$EA61,$EA$2&ROW($EA61)),$DZ61,$DZ$2&ROW($DZ61)),$DY61,$DY$2&ROW($DY61)),$DX61,$DX$2&ROW($DX61)),$DW61,$DW$2&ROW($DW61)),$DV61,$DV$2&ROW($DV61)),$DU61,$DU$2&ROW($DU61)),$DT61,$DT$2&ROW($DT61)),$DS61,$DS$2&ROW($DS61)))","v":0},null,null,"{Factor:WinterCF}","{Factor:SummerCF}",{"$f":"IFERROR(INDEX($EG61:$IV61,MATCH(0,COUNTIF($DR61:DT61,$EG61:$IV61),0)),\"\")","v":"{Measure:Quantity}"},{"$f":"IFERROR(INDEX($EG61:$IV61,MATCH(0,COUNTIF($DR61:DU61,$EG61:$IV61),0)),\"\")","v":"{Unit Size  - Tons}"},{"$f":"IFERROR(INDEX($EG61:$IV61,MATCH(0,COUNTIF($DR61:DV61,$EG61:$IV61),0)),\"\")","v":"{SEER}"},{"$f":"IFERROR(INDEX($EG61:$IV61,MATCH(0,COUNTIF($DR61:DW61,$EG61:$IV61),0)),\"\")","v":"{Heating BTUH}"},{"$f":"IFERROR(INDEX($EG61:$IV61,MATCH(0,COUNTIF($DR61:DX61,$EG61:$IV61),0)),\"\")","v":"{HSPF}"},{"$f":"IFERROR(INDEX($EG61:$IV61,MATCH(0,COUNTIF($DR61:DY61,$EG61:$IV61),0)),\"\")","v":""},{"$f":"IFERROR(INDEX($EG61:$IV61,MATCH(0,COUNTIF($DR61:DZ61,$EG61:$IV61),0)),\"\")","v":""},{"$f":"IFERROR(INDEX($EG61:$IV61,MATCH(0,COUNTIF($DR61:EA61,$EG61:$IV61),0)),\"\")","v":""},{"$f":"IFERROR(INDEX($EG61:$IV61,MATCH(0,COUNTIF($DR61:EB61,$EG61:$IV61),0)),\"\")","v":""},{"$f":"IFERROR(INDEX($EG61:$IV61,MATCH(0,COUNTIF($DR61:EC61,$EG61:$IV61),0)),\"\")","v":""},null,null,{"$f":"IFERROR(MID($G61,FIND(CHAR(160),SUBSTITUTE($G61,\"{\",CHAR(160),EG$1)),FIND(CHAR(160),SUBSTITUTE($G61,\"}\",CHAR(160),EG$1))-FIND(CHAR(160),SUBSTITUTE($G61,\"{\",CHAR(160),EG$1))+1),\"\")","v":"{Measure:Quantity}"},{"$f":"IFERROR(MID($G61,FIND(CHAR(160),SUBSTITUTE($G61,\"{\",CHAR(160),EH$1)),FIND(CHAR(160),SUBSTITUTE($G61,\"}\",CHAR(160),EH$1))-FIND(CHAR(160),SUBSTITUTE($G61,\"{\",CHAR(160),EH$1))+1),\"\")","v":"{Unit Size  - Tons}"},{"$f":"IFERROR(MID($G61,FIND(CHAR(160),SUBSTITUTE($G61,\"{\",CHAR(160),EI$1)),FIND(CHAR(160),SUBSTITUTE($G61,\"}\",CHAR(160),EI$1))-FIND(CHAR(160),SUBSTITUTE($G61,\"{\",CHAR(160),EI$1))+1),\"\")","v":""},{"$f":"IFERROR(MID($G61,FIND(CHAR(160),SUBSTITUTE($G61,\"{\",CHAR(160),EJ$1)),FIND(CHAR(160),SUBSTITUTE($G61,\"}\",CHAR(160),EJ$1))-FIND(CHAR(160),SUBSTITUTE($G61,\"{\",CHAR(160),EJ$1))+1),\"\")","v":""},{"$f":"IFERROR(MID($G61,FIND(CHAR(160),SUBSTITUTE($G61,\"{\",CHAR(160),EK$1)),FIND(CHAR(160),SUBSTITUTE($G61,\"}\",CHAR(160),EK$1))-FIND(CHAR(160),SUBSTITUTE($G61,\"{\",CHAR(160),EK$1))+1),\"\")","v":""},{"$f":"IFERROR(MID($G61,FIND(CHAR(160),SUBSTITUTE($G61,\"{\",CHAR(160),EL$1)),FIND(CHAR(160),SUBSTITUTE($G61,\"}\",CHAR(160),EL$1))-FIND(CHAR(160),SUBSTITUTE($G61,\"{\",CHAR(160),EL$1))+1),\"\")","v":""},{"$f":"IFERROR(MID($G61,FIND(CHAR(160),SUBSTITUTE($G61,\"{\",CHAR(160),EM$1)),FIND(CHAR(160),SUBSTITUTE($G61,\"}\",CHAR(160),EM$1))-FIND(CHAR(160),SUBSTITUTE($G61,\"{\",CHAR(160),EM$1))+1),\"\")","v":""},{"$f":"IFERROR(MID($G61,FIND(CHAR(160),SUBSTITUTE($G61,\"{\",CHAR(160),EN$1)),FIND(CHAR(160),SUBSTITUTE($G61,\"}\",CHAR(160),EN$1))-FIND(CHAR(160),SUBSTITUTE($G61,\"{\",CHAR(160),EN$1))+1),\"\")","v":""},{"$f":"IFERROR(MID($G61,FIND(CHAR(160),SUBSTITUTE($G61,\"{\",CHAR(160),EO$1)),FIND(CHAR(160),SUBSTITUTE($G61,\"}\",CHAR(160),EO$1))-FIND(CHAR(160),SUBSTITUTE($G61,\"{\",CHAR(160),EO$1))+1),\"\")","v":""},{"$f":"IFERROR(MID($G61,FIND(CHAR(160),SUBSTITUTE($G61,\"{\",CHAR(160),EP$1)),FIND(CHAR(160),SUBSTITUTE($G61,\"}\",CHAR(160),EP$1))-FIND(CHAR(160),SUBSTITUTE($G61,\"{\",CHAR(160),EP$1))+1),\"\")","v":""},{"$f":"IFERROR(MID($J61,FIND(CHAR(160),SUBSTITUTE($J61,\"{\",CHAR(160),EQ$1)),FIND(CHAR(160),SUBSTITUTE($J61,\"}\",CHAR(160),EQ$1))-FIND(CHAR(160),SUBSTITUTE($J61,\"{\",CHAR(160),EQ$1))+1),\"\")","v":"{Measure:Quantity}"},{"$f":"IFERROR(MID($J61,FIND(CHAR(160),SUBSTITUTE($J61,\"{\",CHAR(160),ER$1)),FIND(CHAR(160),SUBSTITUTE($J61,\"}\",CHAR(160),ER$1))-FIND(CHAR(160),SUBSTITUTE($J61,\"{\",CHAR(160),ER$1))+1),\"\")","v":"{Unit Size  - Tons}"},{"$f":"IFERROR(MID($J61,FIND(CHAR(160),SUBSTITUTE($J61,\"{\",CHAR(160),ES$1)),FIND(CHAR(160),SUBSTITUTE($J61,\"}\",CHAR(160),ES$1))-FIND(CHAR(160),SUBSTITUTE($J61,\"{\",CHAR(160),ES$1))+1),\"\")","v":""},{"$f":"IFERROR(MID($J61,FIND(CHAR(160),SUBSTITUTE($J61,\"{\",CHAR(160),ET$1)),FIND(CHAR(160),SUBSTITUTE($J61,\"}\",CHAR(160),ET$1))-FIND(CHAR(160),SUBSTITUTE($J61,\"{\",CHAR(160),ET$1))+1),\"\")","v":""},{"$f":"IFERROR(MID($J61,FIND(CHAR(160),SUBSTITUTE($J61,\"{\",CHAR(160),EU$1)),FIND(CHAR(160),SUBSTITUTE($J61,\"}\",CHAR(160),EU$1))-FIND(CHAR(160),SUBSTITUTE($J61,\"{\",CHAR(160),EU$1))+1),\"\")","v":""},{"$f":"IFERROR(MID($J61,FIND(CHAR(160),SUBSTITUTE($J61,\"{\",CHAR(160),EV$1)),FIND(CHAR(160),SUBSTITUTE($J61,\"}\",CHAR(160),EV$1))-FIND(CHAR(160),SUBSTITUTE($J61,\"{\",CHAR(160),EV$1))+1),\"\")","v":""},{"$f":"IFERROR(MID($J61,FIND(CHAR(160),SUBSTITUTE($J61,\"{\",CHAR(160),EW$1)),FIND(CHAR(160),SUBSTITUTE($J61,\"}\",CHAR(160),EW$1))-FIND(CHAR(160),SUBSTITUTE($J61,\"{\",CHAR(160),EW$1))+1),\"\")","v":""},{"$f":"IFERROR(MID($J61,FIND(CHAR(160),SUBSTITUTE($J61,\"{\",CHAR(160),EX$1)),FIND(CHAR(160),SUBSTITUTE($J61,\"}\",CHAR(160),EX$1))-FIND(CHAR(160),SUBSTITUTE($J61,\"{\",CHAR(160),EX$1))+1),\"\")","v":""},{"$f":"IFERROR(MID($J61,FIND(CHAR(160),SUBSTITUTE($J61,\"{\",CHAR(160),EY$1)),FIND(CHAR(160),SUBSTITUTE($J61,\"}\",CHAR(160),EY$1))-FIND(CHAR(160),SUBSTITUTE($J61,\"{\",CHAR(160),EY$1))+1),\"\")","v":""},{"$f":"IFERROR(MID($J61,FIND(CHAR(160),SUBSTITUTE($J61,\"{\",CHAR(160),EZ$1)),FIND(CHAR(160),SUBSTITUTE($J61,\"}\",CHAR(160),EZ$1))-FIND(CHAR(160),SUBSTITUTE($J61,\"{\",CHAR(160),EZ$1))+1),\"\")","v":""},{"$f":"IFERROR(MID($J61,FIND(CHAR(160),SUBSTITUTE($J61,\"{\",CHAR(160),FA$1)),FIND(CHAR(160),SUBSTITUTE($J61,\"}\",CHAR(160),FA$1))-FIND(CHAR(160),SUBSTITUTE($J61,\"{\",CHAR(160),FA$1))+1),\"\")","v":"{Measure:Quantity}"},{"$f":"IFERROR(MID($J61,FIND(CHAR(160),SUBSTITUTE($J61,\"{\",CHAR(160),FB$1)),FIND(CHAR(160),SUBSTITUTE($J61,\"}\",CHAR(160),FB$1))-FIND(CHAR(160),SUBSTITUTE($J61,\"{\",CHAR(160),FB$1))+1),\"\")","v":"{Unit Size  - Tons}"},{"$f":"IFERROR(MID($O61,FIND(CHAR(160),SUBSTITUTE($O61,\"{\",CHAR(160),FC$1)),FIND(CHAR(160),SUBSTITUTE($O61,\"}\",CHAR(160),FC$1))-FIND(CHAR(160),SUBSTITUTE($O61,\"{\",CHAR(160),FC$1))+1),\"\")","v":"{SEER}"},{"$f":"IFERROR(MID($O61,FIND(CHAR(160),SUBSTITUTE($O61,\"{\",CHAR(160),FD$1)),FIND(CHAR(160),SUBSTITUTE($O61,\"}\",CHAR(160),FD$1))-FIND(CHAR(160),SUBSTITUTE($O61,\"{\",CHAR(160),FD$1))+1),\"\")","v":"{Heating BTUH}"},{"$f":"IFERROR(MID($O61,FIND(CHAR(160),SUBSTITUTE($O61,\"{\",CHAR(160),FE$1)),FIND(CHAR(160),SUBSTITUTE($O61,\"}\",CHAR(160),FE$1))-FIND(CHAR(160),SUBSTITUTE($O61,\"{\",CHAR(160),FE$1))+1),\"\")","v":"{HSPF}"},{"$f":"IFERROR(MID($O61,FIND(CHAR(160),SUBSTITUTE($O61,\"{\",CHAR(160),FF$1)),FIND(CHAR(160),SUBSTITUTE($O61,\"}\",CHAR(160),FF$1))-FIND(CHAR(160),SUBSTITUTE($O61,\"{\",CHAR(160),FF$1))+1),\"\")","v":""},{"$f":"IFERROR(MID($O61,FIND(CHAR(160),SUBSTITUTE($O61,\"{\",CHAR(160),FG$1)),FIND(CHAR(160),SUBSTITUTE($O61,\"}\",CHAR(160),FG$1))-FIND(CHAR(160),SUBSTITUTE($O61,\"{\",CHAR(160),FG$1))+1),\"\")","v":""},{"$f":"IFERROR(MID($O61,FIND(CHAR(160),SUBSTITUTE($O61,\"{\",CHAR(160),FH$1)),FIND(CHAR(160),SUBSTITUTE($O61,\"}\",CHAR(160),FH$1))-FIND(CHAR(160),SUBSTITUTE($O61,\"{\",CHAR(160),FH$1))+1),\"\")","v":""},{"$f":"IFERROR(MID($O61,FIND(CHAR(160),SUBSTITUTE($O61,\"{\",CHAR(160),FI$1)),FIND(CHAR(160),SUBSTITUTE($O61,\"}\",CHAR(160),FI$1))-FIND(CHAR(160),SUBSTITUTE($O61,\"{\",CHAR(160),FI$1))+1),\"\")","v":""},{"$f":"IFERROR(MID($O61,FIND(CHAR(160),SUBSTITUTE($O61,\"{\",CHAR(160),FJ$1)),FIND(CHAR(160),SUBSTITUTE($O61,\"}\",CHAR(160),FJ$1))-FIND(CHAR(160),SUBSTITUTE($O61,\"{\",CHAR(160),FJ$1))+1),\"\")","v":""},{"$f":"IFERROR(MID($O61,FIND(CHAR(160),SUBSTITUTE($O61,\"{\",CHAR(160),FK$1)),FIND(CHAR(160),SUBSTITUTE($O61,\"}\",CHAR(160),FK$1))-FIND(CHAR(160),SUBSTITUTE($O61,\"{\",CHAR(160),FK$1))+1),\"\")","v":"{Measure:Quantity}"},{"$f":"IFERROR(MID($O61,FIND(CHAR(160),SUBSTITUTE($O61,\"{\",CHAR(160),FL$1)),FIND(CHAR(160),SUBSTITUTE($O61,\"}\",CHAR(160),FL$1))-FIND(CHAR(160),SUBSTITUTE($O61,\"{\",CHAR(160),FL$1))+1),\"\")","v":"{Unit Size  - Tons}"},{"$f":"IFERROR(MID($R61,FIND(CHAR(160),SUBSTITUTE($R61,\"{\",CHAR(160),FM$1)),FIND(CHAR(160),SUBSTITUTE($R61,\"}\",CHAR(160),FM$1))-FIND(CHAR(160),SUBSTITUTE($R61,\"{\",CHAR(160),FM$1))+1),\"\")","v":"{SEER}"},{"$f":"IFERROR(MID($R61,FIND(CHAR(160),SUBSTITUTE($R61,\"{\",CHAR(160),FN$1)),FIND(CHAR(160),SUBSTITUTE($R61,\"}\",CHAR(160),FN$1))-FIND(CHAR(160),SUBSTITUTE($R61,\"{\",CHAR(160),FN$1))+1),\"\")","v":""},{"$f":"IFERROR(MID($R61,FIND(CHAR(160),SUBSTITUTE($R61,\"{\",CHAR(160),FO$1)),FIND(CHAR(160),SUBSTITUTE($R61,\"}\",CHAR(160),FO$1))-FIND(CHAR(160),SUBSTITUTE($R61,\"{\",CHAR(160),FO$1))+1),\"\")","v":""},{"$f":"IFERROR(MID($R61,FIND(CHAR(160),SUBSTITUTE($R61,\"{\",CHAR(160),FP$1)),FIND(CHAR(160),SUBSTITUTE($R61,\"}\",CHAR(160),FP$1))-FIND(CHAR(160),SUBSTITUTE($R61,\"{\",CHAR(160),FP$1))+1),\"\")","v":""},{"$f":"IFERROR(MID($R61,FIND(CHAR(160),SUBSTITUTE($R61,\"{\",CHAR(160),FQ$1)),FIND(CHAR(160),SUBSTITUTE($R61,\"}\",CHAR(160),FQ$1))-FIND(CHAR(160),SUBSTITUTE($R61,\"{\",CHAR(160),FQ$1))+1),\"\")","v":""},{"$f":"IFERROR(MID($R61,FIND(CHAR(160),SUBSTITUTE($R61,\"{\",CHAR(160),FR$1)),FIND(CHAR(160),SUBSTITUTE($R61,\"}\",CHAR(160),FR$1))-FIND(CHAR(160),SUBSTITUTE($R61,\"{\",CHAR(160),FR$1))+1),\"\")","v":""},{"$f":"IFERROR(MID($R61,FIND(CHAR(160),SUBSTITUTE($R61,\"{\",CHAR(160),FS$1)),FIND(CHAR(160),SUBSTITUTE($R61,\"}\",CHAR(160),FS$1))-FIND(CHAR(160),SUBSTITUTE($R61,\"{\",CHAR(160),FS$1))+1),\"\")","v":""},{"$f":"IFERROR(MID($R61,FIND(CHAR(160),SUBSTITUTE($R61,\"{\",CHAR(160),FT$1)),FIND(CHAR(160),SUBSTITUTE($R61,\"}\",CHAR(160),FT$1))-FIND(CHAR(160),SUBSTITUTE($R61,\"{\",CHAR(160),FT$1))+1),\"\")","v":""},{"$f":"IFERROR(MID($R61,FIND(CHAR(160),SUBSTITUTE($R61,\"{\",CHAR(160),FU$1)),FIND(CHAR(160),SUBSTITUTE($R61,\"}\",CHAR(160),FU$1))-FIND(CHAR(160),SUBSTITUTE($R61,\"{\",CHAR(160),FU$1))+1),\"\")","v":"{Measure:Quantity}"},{"$f":"IFERROR(MID($R61,FIND(CHAR(160),SUBSTITUTE($R61,\"{\",CHAR(160),FV$1)),FIND(CHAR(160),SUBSTITUTE($R61,\"}\",CHAR(160),FV$1))-FIND(CHAR(160),SUBSTITUTE($R61,\"{\",CHAR(160),FV$1))+1),\"\")","v":"{Unit Size  - Tons}"},{"$f":"IFERROR(MID($U61,FIND(CHAR(160),SUBSTITUTE($U61,\"{\",CHAR(160),FW$1)),FIND(CHAR(160),SUBSTITUTE($U61,\"}\",CHAR(160),FW$1))-FIND(CHAR(160),SUBSTITUTE($U61,\"{\",CHAR(160),FW$1))+1),\"\")","v":"{HSPF}"},{"$f":"IFERROR(MID($U61,FIND(CHAR(160),SUBSTITUTE($U61,\"{\",CHAR(160),FX$1)),FIND(CHAR(160),SUBSTITUTE($U61,\"}\",CHAR(160),FX$1))-FIND(CHAR(160),SUBSTITUTE($U61,\"{\",CHAR(160),FX$1))+1),\"\")","v":"{Factor:WinterCF}"},{"$f":"IFERROR(MID($U61,FIND(CHAR(160),SUBSTITUTE($U61,\"{\",CHAR(160),FY$1)),FIND(CHAR(160),SUBSTITUTE($U61,\"}\",CHAR(160),FY$1))-FIND(CHAR(160),SUBSTITUTE($U61,\"{\",CHAR(160),FY$1))+1),\"\")","v":""},{"$f":"IFERROR(MID($U61,FIND(CHAR(160),SUBSTITUTE($U61,\"{\",CHAR(160),FZ$1)),FIND(CHAR(160),SUBSTITUTE($U61,\"}\",CHAR(160),FZ$1))-FIND(CHAR(160),SUBSTITUTE($U61,\"{\",CHAR(160),FZ$1))+1),\"\")","v":""},{"$f":"IFERROR(MID($U61,FIND(CHAR(160),SUBSTITUTE($U61,\"{\",CHAR(160),GA$1)),FIND(CHAR(160),SUBSTITUTE($U61,\"}\",CHAR(160),GA$1))-FIND(CHAR(160),SUBSTITUTE($U61,\"{\",CHAR(160),GA$1))+1),\"\")","v":""},{"$f":"IFERROR(MID($U61,FIND(CHAR(160),SUBSTITUTE($U61,\"{\",CHAR(160),GB$1)),FIND(CHAR(160),SUBSTITUTE($U61,\"}\",CHAR(160),GB$1))-FIND(CHAR(160),SUBSTITUTE($U61,\"{\",CHAR(160),GB$1))+1),\"\")","v":""},{"$f":"IFERROR(MID($U61,FIND(CHAR(160),SUBSTITUTE($U61,\"{\",CHAR(160),GC$1)),FIND(CHAR(160),SUBSTITUTE($U61,\"}\",CHAR(160),GC$1))-FIND(CHAR(160),SUBSTITUTE($U61,\"{\",CHAR(160),GC$1))+1),\"\")","v":""},{"$f":"IFERROR(MID($U61,FIND(CHAR(160),SUBSTITUTE($U61,\"{\",CHAR(160),GD$1)),FIND(CHAR(160),SUBSTITUTE($U61,\"}\",CHAR(160),GD$1))-FIND(CHAR(160),SUBSTITUTE($U61,\"{\",CHAR(160),GD$1))+1),\"\")","v":""},{"$f":"IFERROR(MID($U61,FIND(CHAR(160),SUBSTITUTE($U61,\"{\",CHAR(160),GE$1)),FIND(CHAR(160),SUBSTITUTE($U61,\"}\",CHAR(160),GE$1))-FIND(CHAR(160),SUBSTITUTE($U61,\"{\",CHAR(160),GE$1))+1),\"\")","v":"{Measure:Quantity}"},{"$f":"IFERROR(MID($U61,FIND(CHAR(160),SUBSTITUTE($U61,\"{\",CHAR(160),GF$1)),FIND(CHAR(160),SUBSTITUTE($U61,\"}\",CHAR(160),GF$1))-FIND(CHAR(160),SUBSTITUTE($U61,\"{\",CHAR(160),GF$1))+1),\"\")","v":"{Heating BTUH}"},{"$f":"IFERROR(MID($V61,FIND(CHAR(160),SUBSTITUTE($V61,\"{\",CHAR(160),GG$1)),FIND(CHAR(160),SUBSTITUTE($V61,\"}\",CHAR(160),GG$1))-FIND(CHAR(160),SUBSTITUTE($V61,\"{\",CHAR(160),GG$1))+1),\"\")","v":"{SEER}"},{"$f":"IFERROR(MID($V61,FIND(CHAR(160),SUBSTITUTE($V61,\"{\",CHAR(160),GH$1)),FIND(CHAR(160),SUBSTITUTE($V61,\"}\",CHAR(160),GH$1))-FIND(CHAR(160),SUBSTITUTE($V61,\"{\",CHAR(160),GH$1))+1),\"\")","v":"{Factor:SummerCF}"},{"$f":"IFERROR(MID($V61,FIND(CHAR(160),SUBSTITUTE($V61,\"{\",CHAR(160),GI$1)),FIND(CHAR(160),SUBSTITUTE($V61,\"}\",CHAR(160),GI$1))-FIND(CHAR(160),SUBSTITUTE($V61,\"{\",CHAR(160),GI$1))+1),\"\")","v":""},{"$f":"IFERROR(MID($V61,FIND(CHAR(160),SUBSTITUTE($V61,\"{\",CHAR(160),GJ$1)),FIND(CHAR(160),SUBSTITUTE($V61,\"}\",CHAR(160),GJ$1))-FIND(CHAR(160),SUBSTITUTE($V61,\"{\",CHAR(160),GJ$1))+1),\"\")","v":""},{"$f":"IFERROR(MID($V61,FIND(CHAR(160),SUBSTITUTE($V61,\"{\",CHAR(160),GK$1)),FIND(CHAR(160),SUBSTITUTE($V61,\"}\",CHAR(160),GK$1))-FIND(CHAR(160),SUBSTITUTE($V61,\"{\",CHAR(160),GK$1))+1),\"\")","v":""},{"$f":"IFERROR(MID($V61,FIND(CHAR(160),SUBSTITUTE($V61,\"{\",CHAR(160),GL$1)),FIND(CHAR(160),SUBSTITUTE($V61,\"}\",CHAR(160),GL$1))-FIND(CHAR(160),SUBSTITUTE($V61,\"{\",CHAR(160),GL$1))+1),\"\")","v":""},{"$f":"IFERROR(MID($V61,FIND(CHAR(160),SUBSTITUTE($V61,\"{\",CHAR(160),GM$1)),FIND(CHAR(160),SUBSTITUTE($V61,\"}\",CHAR(160),GM$1))-FIND(CHAR(160),SUBSTITUTE($V61,\"{\",CHAR(160),GM$1))+1),\"\")","v":""},{"$f":"IFERROR(MID($V61,FIND(CHAR(160),SUBSTITUTE($V61,\"{\",CHAR(160),GN$1)),FIND(CHAR(160),SUBSTITUTE($V61,\"}\",CHAR(160),GN$1))-FIND(CHAR(160),SUBSTITUTE($V61,\"{\",CHAR(160),GN$1))+1),\"\")","v":""},{"$f":"IFERROR(MID($V61,FIND(CHAR(160),SUBSTITUTE($V61,\"{\",CHAR(160),GO$1)),FIND(CHAR(160),SUBSTITUTE($V61,\"}\",CHAR(160),GO$1))-FIND(CHAR(160),SUBSTITUTE($V61,\"{\",CHAR(160),GO$1))+1),\"\")","v":"{Measure:Quantity}"},{"$f":"IFERROR(MID($V61,FIND(CHAR(160),SUBSTITUTE($V61,\"{\",CHAR(160),GP$1)),FIND(CHAR(160),SUBSTITUTE($V61,\"}\",CHAR(160),GP$1))-FIND(CHAR(160),SUBSTITUTE($V61,\"{\",CHAR(160),GP$1))+1),\"\")","v":"{Unit Size  - Tons}"},{"$f":"IFERROR(MID($W61,FIND(CHAR(160),SUBSTITUTE($W61,\"{\",CHAR(160),GQ$1)),FIND(CHAR(160),SUBSTITUTE($W61,\"}\",CHAR(160),GQ$1))-FIND(CHAR(160),SUBSTITUTE($W61,\"{\",CHAR(160),GQ$1))+1),\"\")","v":""},{"$f":"IFERROR(MID($W61,FIND(CHAR(160),SUBSTITUTE($W61,\"{\",CHAR(160),GR$1)),FIND(CHAR(160),SUBSTITUTE($W61,\"}\",CHAR(160),GR$1))-FIND(CHAR(160),SUBSTITUTE($W61,\"{\",CHAR(160),GR$1))+1),\"\")","v":""},{"$f":"IFERROR(MID($W61,FIND(CHAR(160),SUBSTITUTE($W61,\"{\",CHAR(160),GS$1)),FIND(CHAR(160),SUBSTITUTE($W61,\"}\",CHAR(160),GS$1))-FIND(CHAR(160),SUBSTITUTE($W61,\"{\",CHAR(160),GS$1))+1),\"\")","v":""},{"$f":"IFERROR(MID($W61,FIND(CHAR(160),SUBSTITUTE($W61,\"{\",CHAR(160),GT$1)),FIND(CHAR(160),SUBSTITUTE($W61,\"}\",CHAR(160),GT$1))-FIND(CHAR(160),SUBSTITUTE($W61,\"{\",CHAR(160),GT$1))+1),\"\")","v":""},{"$f":"IFERROR(MID($W61,FIND(CHAR(160),SUBSTITUTE($W61,\"{\",CHAR(160),GU$1)),FIND(CHAR(160),SUBSTITUTE($W61,\"}\",CHAR(160),GU$1))-FIND(CHAR(160),SUBSTITUTE($W61,\"{\",CHAR(160),GU$1))+1),\"\")","v":""},{"$f":"IFERROR(MID($W61,FIND(CHAR(160),SUBSTITUTE($W61,\"{\",CHAR(160),GV$1)),FIND(CHAR(160),SUBSTITUTE($W61,\"}\",CHAR(160),GV$1))-FIND(CHAR(160),SUBSTITUTE($W61,\"{\",CHAR(160),GV$1))+1),\"\")","v":""},{"$f":"IFERROR(MID($W61,FIND(CHAR(160),SUBSTITUTE($W61,\"{\",CHAR(160),GW$1)),FIND(CHAR(160),SUBSTITUTE($W61,\"}\",CHAR(160),GW$1))-FIND(CHAR(160),SUBSTITUTE($W61,\"{\",CHAR(160),GW$1))+1),\"\")","v":""},{"$f":"IFERROR(MID($W61,FIND(CHAR(160),SUBSTITUTE($W61,\"{\",CHAR(160),GX$1)),FIND(CHAR(160),SUBSTITUTE($W61,\"}\",CHAR(160),GX$1))-FIND(CHAR(160),SUBSTITUTE($W61,\"{\",CHAR(160),GX$1))+1),\"\")","v":""},{"$f":"IFERROR(MID($W61,FIND(CHAR(160),SUBSTITUTE($W61,\"{\",CHAR(160),GY$1)),FIND(CHAR(160),SUBSTITUTE($W61,\"}\",CHAR(160),GY$1))-FIND(CHAR(160),SUBSTITUTE($W61,\"{\",CHAR(160),GY$1))+1),\"\")","v":""},{"$f":"IFERROR(MID($W61,FIND(CHAR(160),SUBSTITUTE($W61,\"{\",CHAR(160),GZ$1)),FIND(CHAR(160),SUBSTITUTE($W61,\"}\",CHAR(160),GZ$1))-FIND(CHAR(160),SUBSTITUTE($W61,\"{\",CHAR(160),GZ$1))+1),\"\")","v":""},{"$f":"IFERROR(MID($X61,FIND(CHAR(160),SUBSTITUTE($X61,\"{\",CHAR(160),HA$1)),FIND(CHAR(160),SUBSTITUTE($X61,\"}\",CHAR(160),HA$1))-FIND(CHAR(160),SUBSTITUTE($X61,\"{\",CHAR(160),HA$1))+1),\"\")","v":""},{"$f":"IFERROR(MID($X61,FIND(CHAR(160),SUBSTITUTE($X61,\"{\",CHAR(160),HB$1)),FIND(CHAR(160),SUBSTITUTE($X61,\"}\",CHAR(160),HB$1))-FIND(CHAR(160),SUBSTITUTE($X61,\"{\",CHAR(160),HB$1))+1),\"\")","v":""},{"$f":"IFERROR(MID($X61,FIND(CHAR(160),SUBSTITUTE($X61,\"{\",CHAR(160),HC$1)),FIND(CHAR(160),SUBSTITUTE($X61,\"}\",CHAR(160),HC$1))-FIND(CHAR(160),SUBSTITUTE($X61,\"{\",CHAR(160),HC$1))+1),\"\")","v":""},{"$f":"IFERROR(MID($X61,FIND(CHAR(160),SUBSTITUTE($X61,\"{\",CHAR(160),HD$1)),FIND(CHAR(160),SUBSTITUTE($X61,\"}\",CHAR(160),HD$1))-FIND(CHAR(160),SUBSTITUTE($X61,\"{\",CHAR(160),HD$1))+1),\"\")","v":""},{"$f":"IFERROR(MID($X61,FIND(CHAR(160),SUBSTITUTE($X61,\"{\",CHAR(160),HE$1)),FIND(CHAR(160),SUBSTITUTE($X61,\"}\",CHAR(160),HE$1))-FIND(CHAR(160),SUBSTITUTE($X61,\"{\",CHAR(160),HE$1))+1),\"\")","v":""},{"$f":"IFERROR(MID($X61,FIND(CHAR(160),SUBSTITUTE($X61,\"{\",CHAR(160),HF$1)),FIND(CHAR(160),SUBSTITUTE($X61,\"}\",CHAR(160),HF$1))-FIND(CHAR(160),SUBSTITUTE($X61,\"{\",CHAR(160),HF$1))+1),\"\")","v":""},{"$f":"IFERROR(MID($X61,FIND(CHAR(160),SUBSTITUTE($X61,\"{\",CHAR(160),HG$1)),FIND(CHAR(160),SUBSTITUTE($X61,\"}\",CHAR(160),HG$1))-FIND(CHAR(160),SUBSTITUTE($X61,\"{\",CHAR(160),HG$1))+1),\"\")","v":""},{"$f":"IFERROR(MID($X61,FIND(CHAR(160),SUBSTITUTE($X61,\"{\",CHAR(160),HH$1)),FIND(CHAR(160),SUBSTITUTE($X61,\"}\",CHAR(160),HH$1))-FIND(CHAR(160),SUBSTITUTE($X61,\"{\",CHAR(160),HH$1))+1),\"\")","v":""},{"$f":"IFERROR(MID($X61,FIND(CHAR(160),SUBSTITUTE($X61,\"{\",CHAR(160),HI$1)),FIND(CHAR(160),SUBSTITUTE($X61,\"}\",CHAR(160),HI$1))-FIND(CHAR(160),SUBSTITUTE($X61,\"{\",CHAR(160),HI$1))+1),\"\")","v":""},{"$f":"IFERROR(MID($X61,FIND(CHAR(160),SUBSTITUTE($X61,\"{\",CHAR(160),HJ$1)),FIND(CHAR(160),SUBSTITUTE($X61,\"}\",CHAR(160),HJ$1))-FIND(CHAR(160),SUBSTITUTE($X61,\"{\",CHAR(160),HJ$1))+1),\"\")","v":""},{"$f":"IFERROR(MID($Y61,FIND(CHAR(160),SUBSTITUTE($Y61,\"{\",CHAR(160),HK$1)),FIND(CHAR(160),SUBSTITUTE($Y61,\"}\",CHAR(160),HK$1))-FIND(CHAR(160),SUBSTITUTE($Y61,\"{\",CHAR(160),HK$1))+1),\"\")","v":""},{"$f":"IFERROR(MID($Y61,FIND(CHAR(160),SUBSTITUTE($Y61,\"{\",CHAR(160),HL$1)),FIND(CHAR(160),SUBSTITUTE($Y61,\"}\",CHAR(160),HL$1))-FIND(CHAR(160),SUBSTITUTE($Y61,\"{\",CHAR(160),HL$1))+1),\"\")","v":""},{"$f":"IFERROR(MID($Y61,FIND(CHAR(160),SUBSTITUTE($Y61,\"{\",CHAR(160),HM$1)),FIND(CHAR(160),SUBSTITUTE($Y61,\"}\",CHAR(160),HM$1))-FIND(CHAR(160),SUBSTITUTE($Y61,\"{\",CHAR(160),HM$1))+1),\"\")","v":""},{"$f":"IFERROR(MID($Y61,FIND(CHAR(160),SUBSTITUTE($Y61,\"{\",CHAR(160),HN$1)),FIND(CHAR(160),SUBSTITUTE($Y61,\"}\",CHAR(160),HN$1))-FIND(CHAR(160),SUBSTITUTE($Y61,\"{\",CHAR(160),HN$1))+1),\"\")","v":""},{"$f":"IFERROR(MID($Y61,FIND(CHAR(160),SUBSTITUTE($Y61,\"{\",CHAR(160),HO$1)),FIND(CHAR(160),SUBSTITUTE($Y61,\"}\",CHAR(160),HO$1))-FIND(CHAR(160),SUBSTITUTE($Y61,\"{\",CHAR(160),HO$1))+1),\"\")","v":""},{"$f":"IFERROR(MID($Y61,FIND(CHAR(160),SUBSTITUTE($Y61,\"{\",CHAR(160),HP$1)),FIND(CHAR(160),SUBSTITUTE($Y61,\"}\",CHAR(160),HP$1))-FIND(CHAR(160),SUBSTITUTE($Y61,\"{\",CHAR(160),HP$1))+1),\"\")","v":""},{"$f":"IFERROR(MID($Y61,FIND(CHAR(160),SUBSTITUTE($Y61,\"{\",CHAR(160),HQ$1)),FIND(CHAR(160),SUBSTITUTE($Y61,\"}\",CHAR(160),HQ$1))-FIND(CHAR(160),SUBSTITUTE($Y61,\"{\",CHAR(160),HQ$1))+1),\"\")","v":""},{"$f":"IFERROR(MID($Y61,FIND(CHAR(160),SUBSTITUTE($Y61,\"{\",CHAR(160),HR$1)),FIND(CHAR(160),SUBSTITUTE($Y61,\"}\",CHAR(160),HR$1))-FIND(CHAR(160),SUBSTITUTE($Y61,\"{\",CHAR(160),HR$1))+1),\"\")","v":""},{"$f":"IFERROR(MID($Y61,FIND(CHAR(160),SUBSTITUTE($Y61,\"{\",CHAR(160),HS$1)),FIND(CHAR(160),SUBSTITUTE($Y61,\"}\",CHAR(160),HS$1))-FIND(CHAR(160),SUBSTITUTE($Y61,\"{\",CHAR(160),HS$1))+1),\"\")","v":""},{"$f":"IFERROR(MID($Y61,FIND(CHAR(160),SUBSTITUTE($Y61,\"{\",CHAR(160),HT$1)),FIND(CHAR(160),SUBSTITUTE($Y61,\"}\",CHAR(160),HT$1))-FIND(CHAR(160),SUBSTITUTE($Y61,\"{\",CHAR(160),HT$1))+1),\"\")","v":""},{"$f":"IFERROR(MID($Z61,FIND(CHAR(160),SUBSTITUTE($Z61,\"{\",CHAR(160),HU$1)),FIND(CHAR(160),SUBSTITUTE($Z61,\"}\",CHAR(160),HU$1))-FIND(CHAR(160),SUBSTITUTE($Z61,\"{\",CHAR(160),HU$1))+1),\"\")","v":""},{"$f":"IFERROR(MID($Z61,FIND(CHAR(160),SUBSTITUTE($Z61,\"{\",CHAR(160),HV$1)),FIND(CHAR(160),SUBSTITUTE($Z61,\"}\",CHAR(160),HV$1))-FIND(CHAR(160),SUBSTITUTE($Z61,\"{\",CHAR(160),HV$1))+1),\"\")","v":""},{"$f":"IFERROR(MID($Z61,FIND(CHAR(160),SUBSTITUTE($Z61,\"{\",CHAR(160),HW$1)),FIND(CHAR(160),SUBSTITUTE($Z61,\"}\",CHAR(160),HW$1))-FIND(CHAR(160),SUBSTITUTE($Z61,\"{\",CHAR(160),HW$1))+1),\"\")","v":""},{"$f":"IFERROR(MID($Z61,FIND(CHAR(160),SUBSTITUTE($Z61,\"{\",CHAR(160),HX$1)),FIND(CHAR(160),SUBSTITUTE($Z61,\"}\",CHAR(160),HX$1))-FIND(CHAR(160),SUBSTITUTE($Z61,\"{\",CHAR(160),HX$1))+1),\"\")","v":""},{"$f":"IFERROR(MID($Z61,FIND(CHAR(160),SUBSTITUTE($Z61,\"{\",CHAR(160),HY$1)),FIND(CHAR(160),SUBSTITUTE($Z61,\"}\",CHAR(160),HY$1))-FIND(CHAR(160),SUBSTITUTE($Z61,\"{\",CHAR(160),HY$1))+1),\"\")","v":""},{"$f":"IFERROR(MID($Z61,FIND(CHAR(160),SUBSTITUTE($Z61,\"{\",CHAR(160),HZ$1)),FIND(CHAR(160),SUBSTITUTE($Z61,\"}\",CHAR(160),HZ$1))-FIND(CHAR(160),SUBSTITUTE($Z61,\"{\",CHAR(160),HZ$1))+1),\"\")","v":""},{"$f":"IFERROR(MID($Z61,FIND(CHAR(160),SUBSTITUTE($Z61,\"{\",CHAR(160),IA$1)),FIND(CHAR(160),SUBSTITUTE($Z61,\"}\",CHAR(160),IA$1))-FIND(CHAR(160),SUBSTITUTE($Z61,\"{\",CHAR(160),IA$1))+1),\"\")","v":""},{"$f":"IFERROR(MID($Z61,FIND(CHAR(160),SUBSTITUTE($Z61,\"{\",CHAR(160),IB$1)),FIND(CHAR(160),SUBSTITUTE($Z61,\"}\",CHAR(160),IB$1))-FIND(CHAR(160),SUBSTITUTE($Z61,\"{\",CHAR(160),IB$1))+1),\"\")","v":""},{"$f":"IFERROR(MID($Z61,FIND(CHAR(160),SUBSTITUTE($Z61,\"{\",CHAR(160),IC$1)),FIND(CHAR(160),SUBSTITUTE($Z61,\"}\",CHAR(160),IC$1))-FIND(CHAR(160),SUBSTITUTE($Z61,\"{\",CHAR(160),IC$1))+1),\"\")","v":""},{"$f":"IFERROR(MID($Z61,FIND(CHAR(160),SUBSTITUTE($Z61,\"{\",CHAR(160),ID$1)),FIND(CHAR(160),SUBSTITUTE($Z61,\"}\",CHAR(160),ID$1))-FIND(CHAR(160),SUBSTITUTE($Z61,\"{\",CHAR(160),ID$1))+1),\"\")","v":""},{"$f":"IFERROR(MID($AA61,FIND(CHAR(160),SUBSTITUTE($AA61,\"{\",CHAR(160),IE$1)),FIND(CHAR(160),SUBSTITUTE($AA61,\"}\",CHAR(160),IE$1))-FIND(CHAR(160),SUBSTITUTE($AA61,\"{\",CHAR(160),IE$1))+1),\"\")","v":""},{"$f":"IFERROR(MID($AA61,FIND(CHAR(160),SUBSTITUTE($AA61,\"{\",CHAR(160),IF$1)),FIND(CHAR(160),SUBSTITUTE($AA61,\"}\",CHAR(160),IF$1))-FIND(CHAR(160),SUBSTITUTE($AA61,\"{\",CHAR(160),IF$1))+1),\"\")","v":""},{"$f":"IFERROR(MID($AA61,FIND(CHAR(160),SUBSTITUTE($AA61,\"{\",CHAR(160),IG$1)),FIND(CHAR(160),SUBSTITUTE($AA61,\"}\",CHAR(160),IG$1))-FIND(CHAR(160),SUBSTITUTE($AA61,\"{\",CHAR(160),IG$1))+1),\"\")","v":""},{"$f":"IFERROR(MID($AA61,FIND(CHAR(160),SUBSTITUTE($AA61,\"{\",CHAR(160),IH$1)),FIND(CHAR(160),SUBSTITUTE($AA61,\"}\",CHAR(160),IH$1))-FIND(CHAR(160),SUBSTITUTE($AA61,\"{\",CHAR(160),IH$1))+1),\"\")","v":""},{"$f":"IFERROR(MID($AA61,FIND(CHAR(160),SUBSTITUTE($AA61,\"{\",CHAR(160),II$1)),FIND(CHAR(160),SUBSTITUTE($AA61,\"}\",CHAR(160),II$1))-FIND(CHAR(160),SUBSTITUTE($AA61,\"{\",CHAR(160),II$1))+1),\"\")","v":""},{"$f":"IFERROR(MID($AA61,FIND(CHAR(160),SUBSTITUTE($AA61,\"{\",CHAR(160),IJ$1)),FIND(CHAR(160),SUBSTITUTE($AA61,\"}\",CHAR(160),IJ$1))-FIND(CHAR(160),SUBSTITUTE($AA61,\"{\",CHAR(160),IJ$1))+1),\"\")","v":""},{"$f":"IFERROR(MID($AA61,FIND(CHAR(160),SUBSTITUTE($AA61,\"{\",CHAR(160),IK$1)),FIND(CHAR(160),SUBSTITUTE($AA61,\"}\",CHAR(160),IK$1))-FIND(CHAR(160),SUBSTITUTE($AA61,\"{\",CHAR(160),IK$1))+1),\"\")","v":""},{"$f":"IFERROR(MID($AA61,FIND(CHAR(160),SUBSTITUTE($AA61,\"{\",CHAR(160),IL$1)),FIND(CHAR(160),SUBSTITUTE($AA61,\"}\",CHAR(160),IL$1))-FIND(CHAR(160),SUBSTITUTE($AA61,\"{\",CHAR(160),IL$1))+1),\"\")","v":""},{"$f":"IFERROR(MID($AA61,FIND(CHAR(160),SUBSTITUTE($AA61,\"{\",CHAR(160),IM$1)),FIND(CHAR(160),SUBSTITUTE($AA61,\"}\",CHAR(160),IM$1))-FIND(CHAR(160),SUBSTITUTE($AA61,\"{\",CHAR(160),IM$1))+1),\"\")","v":""},{"$f":"IFERROR(MID($AA61,FIND(CHAR(160),SUBSTITUTE($AA61,\"{\",CHAR(160),IN$1)),FIND(CHAR(160),SUBSTITUTE($AA61,\"}\",CHAR(160),IN$1))-FIND(CHAR(160),SUBSTITUTE($AA61,\"{\",CHAR(160),IN$1))+1),\"\")","v":""},{"$f":"IFERROR(MID($AB61,FIND(CHAR(160),SUBSTITUTE($AB61,\"{\",CHAR(160),IO$1)),FIND(CHAR(160),SUBSTITUTE($AB61,\"}\",CHAR(160),IO$1))-FIND(CHAR(160),SUBSTITUTE($AB61,\"{\",CHAR(160),IO$1))+1),\"\")","v":""},{"$f":"IFERROR(MID($AB61,FIND(CHAR(160),SUBSTITUTE($AB61,\"{\",CHAR(160),IP$1)),FIND(CHAR(160),SUBSTITUTE($AB61,\"}\",CHAR(160),IP$1))-FIND(CHAR(160),SUBSTITUTE($AB61,\"{\",CHAR(160),IP$1))+1),\"\")","v":""},{"$f":"IFERROR(MID($AB61,FIND(CHAR(160),SUBSTITUTE($AB61,\"{\",CHAR(160),IQ$1)),FIND(CHAR(160),SUBSTITUTE($AB61,\"}\",CHAR(160),IQ$1))-FIND(CHAR(160),SUBSTITUTE($AB61,\"{\",CHAR(160),IQ$1))+1),\"\")","v":""},{"$f":"IFERROR(MID($AB61,FIND(CHAR(160),SUBSTITUTE($AB61,\"{\",CHAR(160),IR$1)),FIND(CHAR(160),SUBSTITUTE($AB61,\"}\",CHAR(160),IR$1))-FIND(CHAR(160),SUBSTITUTE($AB61,\"{\",CHAR(160),IR$1))+1),\"\")","v":""},{"$f":"IFERROR(MID($AB61,FIND(CHAR(160),SUBSTITUTE($AB61,\"{\",CHAR(160),IS$1)),FIND(CHAR(160),SUBSTITUTE($AB61,\"}\",CHAR(160),IS$1))-FIND(CHAR(160),SUBSTITUTE($AB61,\"{\",CHAR(160),IS$1))+1),\"\")","v":""},{"$f":"IFERROR(MID($AB61,FIND(CHAR(160),SUBSTITUTE($AB61,\"{\",CHAR(160),IT$1)),FIND(CHAR(160),SUBSTITUTE($AB61,\"}\",CHAR(160),IT$1))-FIND(CHAR(160),SUBSTITUTE($AB61,\"{\",CHAR(160),IT$1))+1),\"\")","v":""},{"$f":"IFERROR(MID($AB61,FIND(CHAR(160),SUBSTITUTE($AB61,\"{\",CHAR(160),IU$1)),FIND(CHAR(160),SUBSTITUTE($AB61,\"}\",CHAR(160),IU$1))-FIND(CHAR(160),SUBSTITUTE($AB61,\"{\",CHAR(160),IU$1))+1),\"\")","v":""},{"$f":"IFERROR(MID($AB61,FIND(CHAR(160),SUBSTITUTE($AB61,\"{\",CHAR(160),IV$1)),FIND(CHAR(160),SUBSTITUTE($AB61,\"}\",CHAR(160),IV$1))-FIND(CHAR(160),SUBSTITUTE($AB61,\"{\",CHAR(160),IV$1))+1),\"\")","v":""},{"$f":"IFERROR(MID($AB61,FIND(CHAR(160),SUBSTITUTE($AB61,\"{\",CHAR(160),IW$1)),FIND(CHAR(160),SUBSTITUTE($AB61,\"}\",CHAR(160),IW$1))-FIND(CHAR(160),SUBSTITUTE($AB61,\"{\",CHAR(160),IW$1))+1),\"\")","v":""},{"$f":"IFERROR(MID($AB61,FIND(CHAR(160),SUBSTITUTE($AB61,\"{\",CHAR(160),IX$1)),FIND(CHAR(160),SUBSTITUTE($AB61,\"}\",CHAR(160),IX$1))-FIND(CHAR(160),SUBSTITUTE($AB61,\"{\",CHAR(160),IX$1))+1),\"\")","v":""},null,{"$f":"10-COUNTIF(DU61:ED61,\"\")","v":5}]
["C&I HVAC - Electric","Variable Refrigerant Flow - Single Phase","VRFSP","2021-07-01","2021-09-09","Calculated","{Measure:Quantity}*{Square Feet Served}*{Incremental Cost per SQFT}",0,"Calculated","{Measure:Quantity}*{Square Feet Served}*2.75",0,"2021-07-01","2022-06-30","Calculated","{Measure:Quantity} * ({Cooling Capacity (Btu/h)}/1000*(1/{SEER_base}-1/{SEER})*829+{Square Feet Served}*47.4/3.412*(if({Alternate Heating Fuel}<>6,0,1/{COP_base})-3.412/{HSPF}))",null,null,"{Measure:Quantity} *Max({Square Feet Served}*47.4/3.412*(if({Alternate Heating Fuel}<>6,0,1/{COP_base})-3.412/{HSPF})/1600,{Cooling Capacity (Btu/h)}/1000*(1/{SEER_base}-1/{SEER}))",null,null,"{Measure:Quantity} * ({Square Feet Served}*47.4/3.412*(if({Alternate Heating Fuel}<>6,0,1/{COP_base})-3.412/{HSPF})/1600*{Factor:WinterCF})","{Measure:Quantity} * ({Cooling Capacity (Btu/h)}/1000*(1/{SEER_base}-1/{SEER})*{Factor:SummerCF})","if({Alternate Heating Fuel}=1,{Measure:Quantity} * {Square Feet Served}*47.4/1000*1/{COP_base},0)*10","if({Alternate Heating Fuel}=2,{Measure:Quantity} * {Square Feet Served}*47.4/1000*1/{COP_base},0)","if({Alternate Heating Fuel}=3,{Measure:Quantity} * {Square Feet Served}*47.4/1000*1/{COP_base},0)","if({Alternate Heating Fuel}=4,{Measure:Quantity} * {Square Feet Served}*47.4/1000*1/{COP_base},0)","if({Alternate Heating Fuel}=5,{Measure:Quantity} * {Square Feet Served}*47.4/1000*1/{COP_base},0)",null,"2021-05-25","2022-06-30",20,0.42,0.35699999999999998,0.17,0.03,0.62,0.18,1,1.1220000000000001,1,0.25,0,null,{"$f":"DU62","v":"{Measure:Quantity}"},1,{"$f":"DV62","v":"{Square Feet Served}"},2000,{"$f":"DW62","v":"{Incremental Cost per SQFT}"},1.55,{"$f":"DX62","v":"{SEER_base}"},50000,{"$f":"DY62","v":"{SEER}"},12.5,{"$f":"DZ62","v":"{Alternate Heating Fuel}"},17,{"$f":"EA62","v":"{COP_base}"},6,{"$f":"EB62","v":"{HSPF}"},1,{"$f":"EC62","v":"{Cooling Capacity (Btu/h)}"},10,{"$f":"ED62","v":""},null,{"$f":"AS62 * (AY62/1000*(1/BA62-1/BC62)*829+AU62*47.4/3.412*(IF(BE62<>6,0,1/BG62)-3.412/BI62))","v":19182.055444452108},0,0,{"$f":"AS62 *MAX(AU62*47.4/3.412*(IF(BE62<>6,0,1/BG62)-3.412/BI62)/1600,AY62/1000*(1/BA62-1/BC62))","v":11.440181711606096},0,0,{"$f":"AS62 * (AU62*47.4/3.412*(IF(BE62<>6,0,1/BG62)-3.412/BI62)/1600*AF62)","v":4.8048763188745598},{"$f":"AS62 * (AY62/1000*(1/BA62-1/BC62)*AG62)","v":0.37800000000000006},{"$f":"IF(BE62=1,AS62 * AU62*47.4/1000*1/BG62,0)*10","v":0},{"$f":"IF(BE62=2,AS62 * AU62*47.4/1000*1/BG62,0)","v":0},{"$f":"IF(BE62=3,AS62 * AU62*47.4/1000*1/BG62,0)","v":0},{"$f":"IF(BE62=4,AS62 * AU62*47.4/1000*1/BG62,0)","v":0},{"$f":"IF(BE62=5,AS62 * AU62*47.4/1000*1/BG62,0)","v":0},0,null,"Com","Default DR",{"$f":"Benefits(BL62,BR62,BS62,BT62,BU62,BV62,BW62,BX62,BY62,BZ62,AE62,AH62,AI62,AJ62,AK62,AL62,AM62,AN62,AO62,AP62,CA62,CB62)","v":32372.473589980691},23565.996346395044,0,0,0,0,0,0,0,{"$f":"SUMPRODUCT(CC62:CK62,--(CC62:CK62>0))","v":55938.469936375739},{"$f":"-SUMPRODUCT(CC62:CK62,--(CC62:CK62<0))","v":0},null,{"$f":"AS62*AU62*AW62","v":3100},null,null,{"$f":"CM62+CO62","v":3100},{"$f":"IF(NetOrGross=\"Net\",(1-AO62+AP62),1)","v":1},{"$f":"(SUMPRODUCT(CC62:CJ62,--(CC62:CJ62>0))+CN62)*CS62/((-SUMPRODUCT(CC62:CJ62,--(CC62:CJ62<0))+MAX(CO62,CV62)+CP62+CQ62)*CS62+IF(FRIncentives=\"Yes\",CV62*(1-CS62),0))","v":10.170630897522862},1,{"$f":"AS62*AU62*2.75","v":5500},null,"RGGI","y",null,{"$f":"IF(F62=\"Manual Entry\",\"Manual\",IF(G62=\"\",0,\"X=\"&SUBSTITUTE(SUBSTITUTE(SUBSTITUTE(SUBSTITUTE(SUBSTITUTE(SUBSTITUTE(SUBSTITUTE(SUBSTITUTE(SUBSTITUTE(SUBSTITUTE(SUBSTITUTE(SUBSTITUTE(G62,$ED62,$ED$2&ROW($ED62)),$EC62,$EC$2&ROW($EC62)),$EB62,$EB$2&ROW($EB62)),$EA62,$EA$2&ROW($EA62)),$DZ62,$DZ$2&ROW($DZ62)),$DY62,$DY$2&ROW($DY62)),$DX62,$DX$2&ROW($DX62)),$DW62,$DW$2&ROW($DW62)),$DV62,$DV$2&ROW($DV62)),$DU62,$DU$2&ROW($DU62)),$DT62,$DT$2&ROW($DT62)),$DS62,$DS$2&ROW($DS62))))","v":"X=AS62*AU62*AW62"},{"$f":"IF(I62=\"Manual Entry\",\"Manual\",IF(J62=\"\",0,\"X=\"&SUBSTITUTE(SUBSTITUTE(SUBSTITUTE(SUBSTITUTE(SUBSTITUTE(SUBSTITUTE(SUBSTITUTE(SUBSTITUTE(SUBSTITUTE(SUBSTITUTE(SUBSTITUTE(SUBSTITUTE(J62,$ED62,$ED$2&ROW($ED62)),$EC62,$EC$2&ROW($EC62)),$EB62,$EB$2&ROW($EB62)),$EA62,$EA$2&ROW($EA62)),$DZ62,$DZ$2&ROW($DZ62)),$DY62,$DY$2&ROW($DY62)),$DX62,$DX$2&ROW($DX62)),$DW62,$DW$2&ROW($DW62)),$DV62,$DV$2&ROW($DV62)),$DU62,$DU$2&ROW($DU62)),$DT62,$DT$2&ROW($DT62)),$DS62,$DS$2&ROW($DS62))))","v":"X=AS62*AU62*2.75"},{"$f":"IF(O62=\"\",0,\"X=\"&SUBSTITUTE(SUBSTITUTE(SUBSTITUTE(SUBSTITUTE(SUBSTITUTE(SUBSTITUTE(SUBSTITUTE(SUBSTITUTE(SUBSTITUTE(SUBSTITUTE(SUBSTITUTE(SUBSTITUTE(O62,$ED62,$ED$2&ROW($ED62)),$EC62,$EC$2&ROW($EC62)),$EB62,$EB$2&ROW($EB62)),$EA62,$EA$2&ROW($EA62)),$DZ62,$DZ$2&ROW($DZ62)),$DY62,$DY$2&ROW($DY62)),$DX62,$DX$2&ROW($DX62)),$DW62,$DW$2&ROW($DW62)),$DV62,$DV$2&ROW($DV62)),$DU62,$DU$2&ROW($DU62)),$DT62,$DT$2&ROW($DT62)),$DS62,$DS$2&ROW($DS62)))","v":"X=AS62 * (BI62/1000*(1/AY62-1/BA62)*829+AU62*47.4/3.412*(if(BC62<>6,0,1/BE62)-3.412/BG62))"},{"$f":"IF(P62=\"\",0,\"X=\"&SUBSTITUTE(SUBSTITUTE(SUBSTITUTE(SUBSTITUTE(SUBSTITUTE(SUBSTITUTE(SUBSTITUTE(SUBSTITUTE(SUBSTITUTE(SUBSTITUTE(SUBSTITUTE(SUBSTITUTE(P62,$ED62,$ED$2&ROW($ED62)),$EC62,$EC$2&ROW($EC62)),$EB62,$EB$2&ROW($EB62)),$EA62,$EA$2&ROW($EA62)),$DZ62,$DZ$2&ROW($DZ62)),$DY62,$DY$2&ROW($DY62)),$DX62,$DX$2&ROW($DX62)),$DW62,$DW$2&ROW($DW62)),$DV62,$DV$2&ROW($DV62)),$DU62,$DU$2&ROW($DU62)),$DT62,$DT$2&ROW($DT62)),$DS62,$DS$2&ROW($DS62)))","v":0},{"$f":"IF(Q62=\"\",0,\"X=\"&SUBSTITUTE(SUBSTITUTE(SUBSTITUTE(SUBSTITUTE(SUBSTITUTE(SUBSTITUTE(SUBSTITUTE(SUBSTITUTE(SUBSTITUTE(SUBSTITUTE(SUBSTITUTE(SUBSTITUTE(Q62,$ED62,$ED$2&ROW($ED62)),$EC62,$EC$2&ROW($EC62)),$EB62,$EB$2&ROW($EB62)),$EA62,$EA$2&ROW($EA62)),$DZ62,$DZ$2&ROW($DZ62)),$DY62,$DY$2&ROW($DY62)),$DX62,$DX$2&ROW($DX62)),$DW62,$DW$2&ROW($DW62)),$DV62,$DV$2&ROW($DV62)),$DU62,$DU$2&ROW($DU62)),$DT62,$DT$2&ROW($DT62)),$DS62,$DS$2&ROW($DS62)))","v":0},{"$f":"IF(R62=\"\",0,\"X=\"&SUBSTITUTE(SUBSTITUTE(SUBSTITUTE(SUBSTITUTE(SUBSTITUTE(SUBSTITUTE(SUBSTITUTE(SUBSTITUTE(SUBSTITUTE(SUBSTITUTE(SUBSTITUTE(SUBSTITUTE(R62,$ED62,$ED$2&ROW($ED62)),$EC62,$EC$2&ROW($EC62)),$EB62,$EB$2&ROW($EB62)),$EA62,$EA$2&ROW($EA62)),$DZ62,$DZ$2&ROW($DZ62)),$DY62,$DY$2&ROW($DY62)),$DX62,$DX$2&ROW($DX62)),$DW62,$DW$2&ROW($DW62)),$DV62,$DV$2&ROW($DV62)),$DU62,$DU$2&ROW($DU62)),$DT62,$DT$2&ROW($DT62)),$DS62,$DS$2&ROW($DS62)))","v":"X=AS62 *Max(AU62*47.4/3.412*(if(BC62<>6,0,1/BE62)-3.412/BG62)/1600,BI62/1000*(1/AY62-1/BA62))"},{"$f":"IF(S62=\"\",0,\"X=\"&SUBSTITUTE(SUBSTITUTE(SUBSTITUTE(SUBSTITUTE(SUBSTITUTE(SUBSTITUTE(SUBSTITUTE(SUBSTITUTE(SUBSTITUTE(SUBSTITUTE(SUBSTITUTE(SUBSTITUTE(S62,$ED62,$ED$2&ROW($ED62)),$EC62,$EC$2&ROW($EC62)),$EB62,$EB$2&ROW($EB62)),$EA62,$EA$2&ROW($EA62)),$DZ62,$DZ$2&ROW($DZ62)),$DY62,$DY$2&ROW($DY62)),$DX62,$DX$2&ROW($DX62)),$DW62,$DW$2&ROW($DW62)),$DV62,$DV$2&ROW($DV62)),$DU62,$DU$2&ROW($DU62)),$DT62,$DT$2&ROW($DT62)),$DS62,$DS$2&ROW($DS62)))","v":0},{"$f":"IF(T62=\"\",0,\"X=\"&SUBSTITUTE(SUBSTITUTE(SUBSTITUTE(SUBSTITUTE(SUBSTITUTE(SUBSTITUTE(SUBSTITUTE(SUBSTITUTE(SUBSTITUTE(SUBSTITUTE(SUBSTITUTE(SUBSTITUTE(T62,$ED62,$ED$2&ROW($ED62)),$EC62,$EC$2&ROW($EC62)),$EB62,$EB$2&ROW($EB62)),$EA62,$EA$2&ROW($EA62)),$DZ62,$DZ$2&ROW($DZ62)),$DY62,$DY$2&ROW($DY62)),$DX62,$DX$2&ROW($DX62)),$DW62,$DW$2&ROW($DW62)),$DV62,$DV$2&ROW($DV62)),$DU62,$DU$2&ROW($DU62)),$DT62,$DT$2&ROW($DT62)),$DS62,$DS$2&ROW($DS62)))","v":0},{"$f":"IF(U62=\"\",0,\"X=\"&SUBSTITUTE(SUBSTITUTE(SUBSTITUTE(SUBSTITUTE(SUBSTITUTE(SUBSTITUTE(SUBSTITUTE(SUBSTITUTE(SUBSTITUTE(SUBSTITUTE(SUBSTITUTE(SUBSTITUTE(U62,$ED62,$ED$2&ROW($ED62)),$EC62,$EC$2&ROW($EC62)),$EB62,$EB$2&ROW($EB62)),$EA62,$EA$2&ROW($EA62)),$DZ62,$DZ$2&ROW($DZ62)),$DY62,$DY$2&ROW($DY62)),$DX62,$DX$2&ROW($DX62)),$DW62,$DW$2&ROW($DW62)),$DV62,$DV$2&ROW($DV62)),$DU62,$DU$2&ROW($DU62)),$DT62,$DT$2&ROW($DT62)),$DS62,$DS$2&ROW($DS62)))","v":"X=AS62 * (AU62*47.4/3.412*(if(BC62<>6,0,1/BE62)-3.412/BG62)/1600*AF62)"},{"$f":"IF(V62=\"\",0,\"X=\"&SUBSTITUTE(SUBSTITUTE(SUBSTITUTE(SUBSTITUTE(SUBSTITUTE(SUBSTITUTE(SUBSTITUTE(SUBSTITUTE(SUBSTITUTE(SUBSTITUTE(SUBSTITUTE(SUBSTITUTE(V62,$ED62,$ED$2&ROW($ED62)),$EC62,$EC$2&ROW($EC62)),$EB62,$EB$2&ROW($EB62)),$EA62,$EA$2&ROW($EA62)),$DZ62,$DZ$2&ROW($DZ62)),$DY62,$DY$2&ROW($DY62)),$DX62,$DX$2&ROW($DX62)),$DW62,$DW$2&ROW($DW62)),$DV62,$DV$2&ROW($DV62)),$DU62,$DU$2&ROW($DU62)),$DT62,$DT$2&ROW($DT62)),$DS62,$DS$2&ROW($DS62)))","v":"X=AS62 * (BI62/1000*(1/AY62-1/BA62)*AG62)"},{"$f":"IF(W62=\"\",0,\"X=\"&SUBSTITUTE(SUBSTITUTE(SUBSTITUTE(SUBSTITUTE(SUBSTITUTE(SUBSTITUTE(SUBSTITUTE(SUBSTITUTE(SUBSTITUTE(SUBSTITUTE(SUBSTITUTE(SUBSTITUTE(W62,$ED62,$ED$2&ROW($ED62)),$EC62,$EC$2&ROW($EC62)),$EB62,$EB$2&ROW($EB62)),$EA62,$EA$2&ROW($EA62)),$DZ62,$DZ$2&ROW($DZ62)),$DY62,$DY$2&ROW($DY62)),$DX62,$DX$2&ROW($DX62)),$DW62,$DW$2&ROW($DW62)),$DV62,$DV$2&ROW($DV62)),$DU62,$DU$2&ROW($DU62)),$DT62,$DT$2&ROW($DT62)),$DS62,$DS$2&ROW($DS62)))","v":"X=if(BC62=1,AS62 * AU62*47.4/1000*1/BE62,0)*10"},{"$f":"IF(X62=\"\",0,\"X=\"&SUBSTITUTE(SUBSTITUTE(SUBSTITUTE(SUBSTITUTE(SUBSTITUTE(SUBSTITUTE(SUBSTITUTE(SUBSTITUTE(SUBSTITUTE(SUBSTITUTE(SUBSTITUTE(SUBSTITUTE(X62,$ED62,$ED$2&ROW($ED62)),$EC62,$EC$2&ROW($EC62)),$EB62,$EB$2&ROW($EB62)),$EA62,$EA$2&ROW($EA62)),$DZ62,$DZ$2&ROW($DZ62)),$DY62,$DY$2&ROW($DY62)),$DX62,$DX$2&ROW($DX62)),$DW62,$DW$2&ROW($DW62)),$DV62,$DV$2&ROW($DV62)),$DU62,$DU$2&ROW($DU62)),$DT62,$DT$2&ROW($DT62)),$DS62,$DS$2&ROW($DS62)))","v":"X=if(BC62=2,AS62 * AU62*47.4/1000*1/BE62,0)"},{"$f":"IF(Y62=\"\",0,\"X=\"&SUBSTITUTE(SUBSTITUTE(SUBSTITUTE(SUBSTITUTE(SUBSTITUTE(SUBSTITUTE(SUBSTITUTE(SUBSTITUTE(SUBSTITUTE(SUBSTITUTE(SUBSTITUTE(SUBSTITUTE(Y62,$ED62,$ED$2&ROW($ED62)),$EC62,$EC$2&ROW($EC62)),$EB62,$EB$2&ROW($EB62)),$EA62,$EA$2&ROW($EA62)),$DZ62,$DZ$2&ROW($DZ62)),$DY62,$DY$2&ROW($DY62)),$DX62,$DX$2&ROW($DX62)),$DW62,$DW$2&ROW($DW62)),$DV62,$DV$2&ROW($DV62)),$DU62,$DU$2&ROW($DU62)),$DT62,$DT$2&ROW($DT62)),$DS62,$DS$2&ROW($DS62)))","v":"X=if(BC62=3,AS62 * AU62*47.4/1000*1/BE62,0)"},{"$f":"IF(Z62=\"\",0,\"X=\"&SUBSTITUTE(SUBSTITUTE(SUBSTITUTE(SUBSTITUTE(SUBSTITUTE(SUBSTITUTE(SUBSTITUTE(SUBSTITUTE(SUBSTITUTE(SUBSTITUTE(SUBSTITUTE(SUBSTITUTE(Z62,$ED62,$ED$2&ROW($ED62)),$EC62,$EC$2&ROW($EC62)),$EB62,$EB$2&ROW($EB62)),$EA62,$EA$2&ROW($EA62)),$DZ62,$DZ$2&ROW($DZ62)),$DY62,$DY$2&ROW($DY62)),$DX62,$DX$2&ROW($DX62)),$DW62,$DW$2&ROW($DW62)),$DV62,$DV$2&ROW($DV62)),$DU62,$DU$2&ROW($DU62)),$DT62,$DT$2&ROW($DT62)),$DS62,$DS$2&ROW($DS62)))","v":"X=if(BC62=4,AS62 * AU62*47.4/1000*1/BE62,0)"},{"$f":"IF(AA62=\"\",0,\"X=\"&SUBSTITUTE(SUBSTITUTE(SUBSTITUTE(SUBSTITUTE(SUBSTITUTE(SUBSTITUTE(SUBSTITUTE(SUBSTITUTE(SUBSTITUTE(SUBSTITUTE(SUBSTITUTE(SUBSTITUTE(AA62,$ED62,$ED$2&ROW($ED62)),$EC62,$EC$2&ROW($EC62)),$EB62,$EB$2&ROW($EB62)),$EA62,$EA$2&ROW($EA62)),$DZ62,$DZ$2&ROW($DZ62)),$DY62,$DY$2&ROW($DY62)),$DX62,$DX$2&ROW($DX62)),$DW62,$DW$2&ROW($DW62)),$DV62,$DV$2&ROW($DV62)),$DU62,$DU$2&ROW($DU62)),$DT62,$DT$2&ROW($DT62)),$DS62,$DS$2&ROW($DS62)))","v":"X=if(BC62=5,AS62 * AU62*47.4/1000*1/BE62,0)"},{"$f":"IF(AB62=\"\",0,\"X=\"&SUBSTITUTE(SUBSTITUTE(SUBSTITUTE(SUBSTITUTE(SUBSTITUTE(SUBSTITUTE(SUBSTITUTE(SUBSTITUTE(SUBSTITUTE(SUBSTITUTE(SUBSTITUTE(SUBSTITUTE(AB62,$ED62,$ED$2&ROW($ED62)),$EC62,$EC$2&ROW($EC62)),$EB62,$EB$2&ROW($EB62)),$EA62,$EA$2&ROW($EA62)),$DZ62,$DZ$2&ROW($DZ62)),$DY62,$DY$2&ROW($DY62)),$DX62,$DX$2&ROW($DX62)),$DW62,$DW$2&ROW($DW62)),$DV62,$DV$2&ROW($DV62)),$DU62,$DU$2&ROW($DU62)),$DT62,$DT$2&ROW($DT62)),$DS62,$DS$2&ROW($DS62)))","v":0},null,null,"{Factor:WinterCF}","{Factor:SummerCF}",{"$f":"IFERROR(INDEX($EG62:$IV62,MATCH(0,COUNTIF($DR62:DT62,$EG62:$IV62),0)),\"\")","v":"{Measure:Quantity}"},{"$f":"IFERROR(INDEX($EG62:$IV62,MATCH(0,COUNTIF($DR62:DU62,$EG62:$IV62),0)),\"\")","v":"{Square Feet Served}"},{"$f":"IFERROR(INDEX($EG62:$IV62,MATCH(0,COUNTIF($DR62:DV62,$EG62:$IV62),0)),\"\")","v":"{Incremental Cost per SQFT}"},{"$f":"IFERROR(INDEX($EG62:$IV62,MATCH(0,COUNTIF($DR62:DW62,$EG62:$IV62),0)),\"\")","v":"{SEER_base}"},{"$f":"IFERROR(INDEX($EG62:$IV62,MATCH(0,COUNTIF($DR62:DX62,$EG62:$IV62),0)),\"\")","v":"{SEER}"},{"$f":"IFERROR(INDEX($EG62:$IV62,MATCH(0,COUNTIF($DR62:DY62,$EG62:$IV62),0)),\"\")","v":"{Alternate Heating Fuel}"},{"$f":"IFERROR(INDEX($EG62:$IV62,MATCH(0,COUNTIF($DR62:DZ62,$EG62:$IV62),0)),\"\")","v":"{COP_base}"},{"$f":"IFERROR(INDEX($EG62:$IV62,MATCH(0,COUNTIF($DR62:EA62,$EG62:$IV62),0)),\"\")","v":"{HSPF}"},{"$f":"IFERROR(INDEX($EG62:$IV62,MATCH(0,COUNTIF($DR62:EB62,$EG62:$IV62),0)),\"\")","v":"{Cooling Capacity (Btu/h)}"},{"$f":"IFERROR(INDEX($EG62:$IV62,MATCH(0,COUNTIF($DR62:EC62,$EG62:$IV62),0)),\"\")","v":""},null,null,{"$f":"IFERROR(MID($G62,FIND(CHAR(160),SUBSTITUTE($G62,\"{\",CHAR(160),EG$1)),FIND(CHAR(160),SUBSTITUTE($G62,\"}\",CHAR(160),EG$1))-FIND(CHAR(160),SUBSTITUTE($G62,\"{\",CHAR(160),EG$1))+1),\"\")","v":"{Measure:Quantity}"},{"$f":"IFERROR(MID($G62,FIND(CHAR(160),SUBSTITUTE($G62,\"{\",CHAR(160),EH$1)),FIND(CHAR(160),SUBSTITUTE($G62,\"}\",CHAR(160),EH$1))-FIND(CHAR(160),SUBSTITUTE($G62,\"{\",CHAR(160),EH$1))+1),\"\")","v":"{Square Feet Served}"},{"$f":"IFERROR(MID($G62,FIND(CHAR(160),SUBSTITUTE($G62,\"{\",CHAR(160),EI$1)),FIND(CHAR(160),SUBSTITUTE($G62,\"}\",CHAR(160),EI$1))-FIND(CHAR(160),SUBSTITUTE($G62,\"{\",CHAR(160),EI$1))+1),\"\")","v":"{Incremental Cost per SQFT}"},{"$f":"IFERROR(MID($G62,FIND(CHAR(160),SUBSTITUTE($G62,\"{\",CHAR(160),EJ$1)),FIND(CHAR(160),SUBSTITUTE($G62,\"}\",CHAR(160),EJ$1))-FIND(CHAR(160),SUBSTITUTE($G62,\"{\",CHAR(160),EJ$1))+1),\"\")","v":""},{"$f":"IFERROR(MID($G62,FIND(CHAR(160),SUBSTITUTE($G62,\"{\",CHAR(160),EK$1)),FIND(CHAR(160),SUBSTITUTE($G62,\"}\",CHAR(160),EK$1))-FIND(CHAR(160),SUBSTITUTE($G62,\"{\",CHAR(160),EK$1))+1),\"\")","v":""},{"$f":"IFERROR(MID($G62,FIND(CHAR(160),SUBSTITUTE($G62,\"{\",CHAR(160),EL$1)),FIND(CHAR(160),SUBSTITUTE($G62,\"}\",CHAR(160),EL$1))-FIND(CHAR(160),SUBSTITUTE($G62,\"{\",CHAR(160),EL$1))+1),\"\")","v":""},{"$f":"IFERROR(MID($G62,FIND(CHAR(160),SUBSTITUTE($G62,\"{\",CHAR(160),EM$1)),FIND(CHAR(160),SUBSTITUTE($G62,\"}\",CHAR(160),EM$1))-FIND(CHAR(160),SUBSTITUTE($G62,\"{\",CHAR(160),EM$1))+1),\"\")","v":""},{"$f":"IFERROR(MID($G62,FIND(CHAR(160),SUBSTITUTE($G62,\"{\",CHAR(160),EN$1)),FIND(CHAR(160),SUBSTITUTE($G62,\"}\",CHAR(160),EN$1))-FIND(CHAR(160),SUBSTITUTE($G62,\"{\",CHAR(160),EN$1))+1),\"\")","v":""},{"$f":"IFERROR(MID($G62,FIND(CHAR(160),SUBSTITUTE($G62,\"{\",CHAR(160),EO$1)),FIND(CHAR(160),SUBSTITUTE($G62,\"}\",CHAR(160),EO$1))-FIND(CHAR(160),SUBSTITUTE($G62,\"{\",CHAR(160),EO$1))+1),\"\")","v":""},{"$f":"IFERROR(MID($G62,FIND(CHAR(160),SUBSTITUTE($G62,\"{\",CHAR(160),EP$1)),FIND(CHAR(160),SUBSTITUTE($G62,\"}\",CHAR(160),EP$1))-FIND(CHAR(160),SUBSTITUTE($G62,\"{\",CHAR(160),EP$1))+1),\"\")","v":""},{"$f":"IFERROR(MID($J62,FIND(CHAR(160),SUBSTITUTE($J62,\"{\",CHAR(160),EQ$1)),FIND(CHAR(160),SUBSTITUTE($J62,\"}\",CHAR(160),EQ$1))-FIND(CHAR(160),SUBSTITUTE($J62,\"{\",CHAR(160),EQ$1))+1),\"\")","v":"{Measure:Quantity}"},{"$f":"IFERROR(MID($J62,FIND(CHAR(160),SUBSTITUTE($J62,\"{\",CHAR(160),ER$1)),FIND(CHAR(160),SUBSTITUTE($J62,\"}\",CHAR(160),ER$1))-FIND(CHAR(160),SUBSTITUTE($J62,\"{\",CHAR(160),ER$1))+1),\"\")","v":"{Square Feet Served}"},{"$f":"IFERROR(MID($J62,FIND(CHAR(160),SUBSTITUTE($J62,\"{\",CHAR(160),ES$1)),FIND(CHAR(160),SUBSTITUTE($J62,\"}\",CHAR(160),ES$1))-FIND(CHAR(160),SUBSTITUTE($J62,\"{\",CHAR(160),ES$1))+1),\"\")","v":""},{"$f":"IFERROR(MID($J62,FIND(CHAR(160),SUBSTITUTE($J62,\"{\",CHAR(160),ET$1)),FIND(CHAR(160),SUBSTITUTE($J62,\"}\",CHAR(160),ET$1))-FIND(CHAR(160),SUBSTITUTE($J62,\"{\",CHAR(160),ET$1))+1),\"\")","v":""},{"$f":"IFERROR(MID($J62,FIND(CHAR(160),SUBSTITUTE($J62,\"{\",CHAR(160),EU$1)),FIND(CHAR(160),SUBSTITUTE($J62,\"}\",CHAR(160),EU$1))-FIND(CHAR(160),SUBSTITUTE($J62,\"{\",CHAR(160),EU$1))+1),\"\")","v":""},{"$f":"IFERROR(MID($J62,FIND(CHAR(160),SUBSTITUTE($J62,\"{\",CHAR(160),EV$1)),FIND(CHAR(160),SUBSTITUTE($J62,\"}\",CHAR(160),EV$1))-FIND(CHAR(160),SUBSTITUTE($J62,\"{\",CHAR(160),EV$1))+1),\"\")","v":""},{"$f":"IFERROR(MID($J62,FIND(CHAR(160),SUBSTITUTE($J62,\"{\",CHAR(160),EW$1)),FIND(CHAR(160),SUBSTITUTE($J62,\"}\",CHAR(160),EW$1))-FIND(CHAR(160),SUBSTITUTE($J62,\"{\",CHAR(160),EW$1))+1),\"\")","v":""},{"$f":"IFERROR(MID($J62,FIND(CHAR(160),SUBSTITUTE($J62,\"{\",CHAR(160),EX$1)),FIND(CHAR(160),SUBSTITUTE($J62,\"}\",CHAR(160),EX$1))-FIND(CHAR(160),SUBSTITUTE($J62,\"{\",CHAR(160),EX$1))+1),\"\")","v":""},{"$f":"IFERROR(MID($J62,FIND(CHAR(160),SUBSTITUTE($J62,\"{\",CHAR(160),EY$1)),FIND(CHAR(160),SUBSTITUTE($J62,\"}\",CHAR(160),EY$1))-FIND(CHAR(160),SUBSTITUTE($J62,\"{\",CHAR(160),EY$1))+1),\"\")","v":""},{"$f":"IFERROR(MID($J62,FIND(CHAR(160),SUBSTITUTE($J62,\"{\",CHAR(160),EZ$1)),FIND(CHAR(160),SUBSTITUTE($J62,\"}\",CHAR(160),EZ$1))-FIND(CHAR(160),SUBSTITUTE($J62,\"{\",CHAR(160),EZ$1))+1),\"\")","v":""},{"$f":"IFERROR(MID($J62,FIND(CHAR(160),SUBSTITUTE($J62,\"{\",CHAR(160),FA$1)),FIND(CHAR(160),SUBSTITUTE($J62,\"}\",CHAR(160),FA$1))-FIND(CHAR(160),SUBSTITUTE($J62,\"{\",CHAR(160),FA$1))+1),\"\")","v":"{Measure:Quantity}"},{"$f":"IFERROR(MID($J62,FIND(CHAR(160),SUBSTITUTE($J62,\"{\",CHAR(160),FB$1)),FIND(CHAR(160),SUBSTITUTE($J62,\"}\",CHAR(160),FB$1))-FIND(CHAR(160),SUBSTITUTE($J62,\"{\",CHAR(160),FB$1))+1),\"\")","v":"{Square Feet Served}"},{"$f":"IFERROR(MID($O62,FIND(CHAR(160),SUBSTITUTE($O62,\"{\",CHAR(160),FC$1)),FIND(CHAR(160),SUBSTITUTE($O62,\"}\",CHAR(160),FC$1))-FIND(CHAR(160),SUBSTITUTE($O62,\"{\",CHAR(160),FC$1))+1),\"\")","v":"{SEER_base}"},{"$f":"IFERROR(MID($O62,FIND(CHAR(160),SUBSTITUTE($O62,\"{\",CHAR(160),FD$1)),FIND(CHAR(160),SUBSTITUTE($O62,\"}\",CHAR(160),FD$1))-FIND(CHAR(160),SUBSTITUTE($O62,\"{\",CHAR(160),FD$1))+1),\"\")","v":"{SEER}"},{"$f":"IFERROR(MID($O62,FIND(CHAR(160),SUBSTITUTE($O62,\"{\",CHAR(160),FE$1)),FIND(CHAR(160),SUBSTITUTE($O62,\"}\",CHAR(160),FE$1))-FIND(CHAR(160),SUBSTITUTE($O62,\"{\",CHAR(160),FE$1))+1),\"\")","v":"{Square Feet Served}"},{"$f":"IFERROR(MID($O62,FIND(CHAR(160),SUBSTITUTE($O62,\"{\",CHAR(160),FF$1)),FIND(CHAR(160),SUBSTITUTE($O62,\"}\",CHAR(160),FF$1))-FIND(CHAR(160),SUBSTITUTE($O62,\"{\",CHAR(160),FF$1))+1),\"\")","v":"{Alternate Heating Fuel}"},{"$f":"IFERROR(MID($O62,FIND(CHAR(160),SUBSTITUTE($O62,\"{\",CHAR(160),FG$1)),FIND(CHAR(160),SUBSTITUTE($O62,\"}\",CHAR(160),FG$1))-FIND(CHAR(160),SUBSTITUTE($O62,\"{\",CHAR(160),FG$1))+1),\"\")","v":"{COP_base}"},{"$f":"IFERROR(MID($O62,FIND(CHAR(160),SUBSTITUTE($O62,\"{\",CHAR(160),FH$1)),FIND(CHAR(160),SUBSTITUTE($O62,\"}\",CHAR(160),FH$1))-FIND(CHAR(160),SUBSTITUTE($O62,\"{\",CHAR(160),FH$1))+1),\"\")","v":"{HSPF}"},{"$f":"IFERROR(MID($O62,FIND(CHAR(160),SUBSTITUTE($O62,\"{\",CHAR(160),FI$1)),FIND(CHAR(160),SUBSTITUTE($O62,\"}\",CHAR(160),FI$1))-FIND(CHAR(160),SUBSTITUTE($O62,\"{\",CHAR(160),FI$1))+1),\"\")","v":""},{"$f":"IFERROR(MID($O62,FIND(CHAR(160),SUBSTITUTE($O62,\"{\",CHAR(160),FJ$1)),FIND(CHAR(160),SUBSTITUTE($O62,\"}\",CHAR(160),FJ$1))-FIND(CHAR(160),SUBSTITUTE($O62,\"{\",CHAR(160),FJ$1))+1),\"\")","v":""},{"$f":"IFERROR(MID($O62,FIND(CHAR(160),SUBSTITUTE($O62,\"{\",CHAR(160),FK$1)),FIND(CHAR(160),SUBSTITUTE($O62,\"}\",CHAR(160),FK$1))-FIND(CHAR(160),SUBSTITUTE($O62,\"{\",CHAR(160),FK$1))+1),\"\")","v":"{Measure:Quantity}"},{"$f":"IFERROR(MID($O62,FIND(CHAR(160),SUBSTITUTE($O62,\"{\",CHAR(160),FL$1)),FIND(CHAR(160),SUBSTITUTE($O62,\"}\",CHAR(160),FL$1))-FIND(CHAR(160),SUBSTITUTE($O62,\"{\",CHAR(160),FL$1))+1),\"\")","v":"{Cooling Capacity (Btu/h)}"},{"$f":"IFERROR(MID($R62,FIND(CHAR(160),SUBSTITUTE($R62,\"{\",CHAR(160),FM$1)),FIND(CHAR(160),SUBSTITUTE($R62,\"}\",CHAR(160),FM$1))-FIND(CHAR(160),SUBSTITUTE($R62,\"{\",CHAR(160),FM$1))+1),\"\")","v":"{Alternate Heating Fuel}"},{"$f":"IFERROR(MID($R62,FIND(CHAR(160),SUBSTITUTE($R62,\"{\",CHAR(160),FN$1)),FIND(CHAR(160),SUBSTITUTE($R62,\"}\",CHAR(160),FN$1))-FIND(CHAR(160),SUBSTITUTE($R62,\"{\",CHAR(160),FN$1))+1),\"\")","v":"{COP_base}"},{"$f":"IFERROR(MID($R62,FIND(CHAR(160),SUBSTITUTE($R62,\"{\",CHAR(160),FO$1)),FIND(CHAR(160),SUBSTITUTE($R62,\"}\",CHAR(160),FO$1))-FIND(CHAR(160),SUBSTITUTE($R62,\"{\",CHAR(160),FO$1))+1),\"\")","v":"{HSPF}"},{"$f":"IFERROR(MID($R62,FIND(CHAR(160),SUBSTITUTE($R62,\"{\",CHAR(160),FP$1)),FIND(CHAR(160),SUBSTITUTE($R62,\"}\",CHAR(160),FP$1))-FIND(CHAR(160),SUBSTITUTE($R62,\"{\",CHAR(160),FP$1))+1),\"\")","v":"{Cooling Capacity (Btu/h)}"},{"$f":"IFERROR(MID($R62,FIND(CHAR(160),SUBSTITUTE($R62,\"{\",CHAR(160),FQ$1)),FIND(CHAR(160),SUBSTITUTE($R62,\"}\",CHAR(160),FQ$1))-FIND(CHAR(160),SUBSTITUTE($R62,\"{\",CHAR(160),FQ$1))+1),\"\")","v":"{SEER_base}"},{"$f":"IFERROR(MID($R62,FIND(CHAR(160),SUBSTITUTE($R62,\"{\",CHAR(160),FR$1)),FIND(CHAR(160),SUBSTITUTE($R62,\"}\",CHAR(160),FR$1))-FIND(CHAR(160),SUBSTITUTE($R62,\"{\",CHAR(160),FR$1))+1),\"\")","v":"{SEER}"},{"$f":"IFERROR(MID($R62,FIND(CHAR(160),SUBSTITUTE($R62,\"{\",CHAR(160),FS$1)),FIND(CHAR(160),SUBSTITUTE($R62,\"}\",CHAR(160),FS$1))-FIND(CHAR(160),SUBSTITUTE($R62,\"{\",CHAR(160),FS$1))+1),\"\")","v":""},{"$f":"IFERROR(MID($R62,FIND(CHAR(160),SUBSTITUTE($R62,\"{\",CHAR(160),FT$1)),FIND(CHAR(160),SUBSTITUTE($R62,\"}\",CHAR(160),FT$1))-FIND(CHAR(160),SUBSTITUTE($R62,\"{\",CHAR(160),FT$1))+1),\"\")","v":""},{"$f":"IFERROR(MID($R62,FIND(CHAR(160),SUBSTITUTE($R62,\"{\",CHAR(160),FU$1)),FIND(CHAR(160),SUBSTITUTE($R62,\"}\",CHAR(160),FU$1))-FIND(CHAR(160),SUBSTITUTE($R62,\"{\",CHAR(160),FU$1))+1),\"\")","v":"{Measure:Quantity}"},{"$f":"IFERROR(MID($R62,FIND(CHAR(160),SUBSTITUTE($R62,\"{\",CHAR(160),FV$1)),FIND(CHAR(160),SUBSTITUTE($R62,\"}\",CHAR(160),FV$1))-FIND(CHAR(160),SUBSTITUTE($R62,\"{\",CHAR(160),FV$1))+1),\"\")","v":"{Square Feet Served}"},{"$f":"IFERROR(MID($U62,FIND(CHAR(160),SUBSTITUTE($U62,\"{\",CHAR(160),FW$1)),FIND(CHAR(160),SUBSTITUTE($U62,\"}\",CHAR(160),FW$1))-FIND(CHAR(160),SUBSTITUTE($U62,\"{\",CHAR(160),FW$1))+1),\"\")","v":"{Alternate Heating Fuel}"},{"$f":"IFERROR(MID($U62,FIND(CHAR(160),SUBSTITUTE($U62,\"{\",CHAR(160),FX$1)),FIND(CHAR(160),SUBSTITUTE($U62,\"}\",CHAR(160),FX$1))-FIND(CHAR(160),SUBSTITUTE($U62,\"{\",CHAR(160),FX$1))+1),\"\")","v":"{COP_base}"},{"$f":"IFERROR(MID($U62,FIND(CHAR(160),SUBSTITUTE($U62,\"{\",CHAR(160),FY$1)),FIND(CHAR(160),SUBSTITUTE($U62,\"}\",CHAR(160),FY$1))-FIND(CHAR(160),SUBSTITUTE($U62,\"{\",CHAR(160),FY$1))+1),\"\")","v":"{HSPF}"},{"$f":"IFERROR(MID($U62,FIND(CHAR(160),SUBSTITUTE($U62,\"{\",CHAR(160),FZ$1)),FIND(CHAR(160),SUBSTITUTE($U62,\"}\",CHAR(160),FZ$1))-FIND(CHAR(160),SUBSTITUTE($U62,\"{\",CHAR(160),FZ$1))+1),\"\")","v":"{Factor:WinterCF}"},{"$f":"IFERROR(MID($U62,FIND(CHAR(160),SUBSTITUTE($U62,\"{\",CHAR(160),GA$1)),FIND(CHAR(160),SUBSTITUTE($U62,\"}\",CHAR(160),GA$1))-FIND(CHAR(160),SUBSTITUTE($U62,\"{\",CHAR(160),GA$1))+1),\"\")","v":""},{"$f":"IFERROR(MID($U62,FIND(CHAR(160),SUBSTITUTE($U62,\"{\",CHAR(160),GB$1)),FIND(CHAR(160),SUBSTITUTE($U62,\"}\",CHAR(160),GB$1))-FIND(CHAR(160),SUBSTITUTE($U62,\"{\",CHAR(160),GB$1))+1),\"\")","v":""},{"$f":"IFERROR(MID($U62,FIND(CHAR(160),SUBSTITUTE($U62,\"{\",CHAR(160),GC$1)),FIND(CHAR(160),SUBSTITUTE($U62,\"}\",CHAR(160),GC$1))-FIND(CHAR(160),SUBSTITUTE($U62,\"{\",CHAR(160),GC$1))+1),\"\")","v":""},{"$f":"IFERROR(MID($U62,FIND(CHAR(160),SUBSTITUTE($U62,\"{\",CHAR(160),GD$1)),FIND(CHAR(160),SUBSTITUTE($U62,\"}\",CHAR(160),GD$1))-FIND(CHAR(160),SUBSTITUTE($U62,\"{\",CHAR(160),GD$1))+1),\"\")","v":""},{"$f":"IFERROR(MID($U62,FIND(CHAR(160),SUBSTITUTE($U62,\"{\",CHAR(160),GE$1)),FIND(CHAR(160),SUBSTITUTE($U62,\"}\",CHAR(160),GE$1))-FIND(CHAR(160),SUBSTITUTE($U62,\"{\",CHAR(160),GE$1))+1),\"\")","v":"{Measure:Quantity}"},{"$f":"IFERROR(MID($U62,FIND(CHAR(160),SUBSTITUTE($U62,\"{\",CHAR(160),GF$1)),FIND(CHAR(160),SUBSTITUTE($U62,\"}\",CHAR(160),GF$1))-FIND(CHAR(160),SUBSTITUTE($U62,\"{\",CHAR(160),GF$1))+1),\"\")","v":"{Square Feet Served}"},{"$f":"IFERROR(MID($V62,FIND(CHAR(160),SUBSTITUTE($V62,\"{\",CHAR(160),GG$1)),FIND(CHAR(160),SUBSTITUTE($V62,\"}\",CHAR(160),GG$1))-FIND(CHAR(160),SUBSTITUTE($V62,\"{\",CHAR(160),GG$1))+1),\"\")","v":"{SEER_base}"},{"$f":"IFERROR(MID($V62,FIND(CHAR(160),SUBSTITUTE($V62,\"{\",CHAR(160),GH$1)),FIND(CHAR(160),SUBSTITUTE($V62,\"}\",CHAR(160),GH$1))-FIND(CHAR(160),SUBSTITUTE($V62,\"{\",CHAR(160),GH$1))+1),\"\")","v":"{SEER}"},{"$f":"IFERROR(MID($V62,FIND(CHAR(160),SUBSTITUTE($V62,\"{\",CHAR(160),GI$1)),FIND(CHAR(160),SUBSTITUTE($V62,\"}\",CHAR(160),GI$1))-FIND(CHAR(160),SUBSTITUTE($V62,\"{\",CHAR(160),GI$1))+1),\"\")","v":"{Factor:SummerCF}"},{"$f":"IFERROR(MID($V62,FIND(CHAR(160),SUBSTITUTE($V62,\"{\",CHAR(160),GJ$1)),FIND(CHAR(160),SUBSTITUTE($V62,\"}\",CHAR(160),GJ$1))-FIND(CHAR(160),SUBSTITUTE($V62,\"{\",CHAR(160),GJ$1))+1),\"\")","v":""},{"$f":"IFERROR(MID($V62,FIND(CHAR(160),SUBSTITUTE($V62,\"{\",CHAR(160),GK$1)),FIND(CHAR(160),SUBSTITUTE($V62,\"}\",CHAR(160),GK$1))-FIND(CHAR(160),SUBSTITUTE($V62,\"{\",CHAR(160),GK$1))+1),\"\")","v":""},{"$f":"IFERROR(MID($V62,FIND(CHAR(160),SUBSTITUTE($V62,\"{\",CHAR(160),GL$1)),FIND(CHAR(160),SUBSTITUTE($V62,\"}\",CHAR(160),GL$1))-FIND(CHAR(160),SUBSTITUTE($V62,\"{\",CHAR(160),GL$1))+1),\"\")","v":""},{"$f":"IFERROR(MID($V62,FIND(CHAR(160),SUBSTITUTE($V62,\"{\",CHAR(160),GM$1)),FIND(CHAR(160),SUBSTITUTE($V62,\"}\",CHAR(160),GM$1))-FIND(CHAR(160),SUBSTITUTE($V62,\"{\",CHAR(160),GM$1))+1),\"\")","v":""},{"$f":"IFERROR(MID($V62,FIND(CHAR(160),SUBSTITUTE($V62,\"{\",CHAR(160),GN$1)),FIND(CHAR(160),SUBSTITUTE($V62,\"}\",CHAR(160),GN$1))-FIND(CHAR(160),SUBSTITUTE($V62,\"{\",CHAR(160),GN$1))+1),\"\")","v":""},{"$f":"IFERROR(MID($V62,FIND(CHAR(160),SUBSTITUTE($V62,\"{\",CHAR(160),GO$1)),FIND(CHAR(160),SUBSTITUTE($V62,\"}\",CHAR(160),GO$1))-FIND(CHAR(160),SUBSTITUTE($V62,\"{\",CHAR(160),GO$1))+1),\"\")","v":"{Measure:Quantity}"},{"$f":"IFERROR(MID($V62,FIND(CHAR(160),SUBSTITUTE($V62,\"{\",CHAR(160),GP$1)),FIND(CHAR(160),SUBSTITUTE($V62,\"}\",CHAR(160),GP$1))-FIND(CHAR(160),SUBSTITUTE($V62,\"{\",CHAR(160),GP$1))+1),\"\")","v":"{Cooling Capacity (Btu/h)}"},{"$f":"IFERROR(MID($W62,FIND(CHAR(160),SUBSTITUTE($W62,\"{\",CHAR(160),GQ$1)),FIND(CHAR(160),SUBSTITUTE($W62,\"}\",CHAR(160),GQ$1))-FIND(CHAR(160),SUBSTITUTE($W62,\"{\",CHAR(160),GQ$1))+1),\"\")","v":"{Square Feet Served}"},{"$f":"IFERROR(MID($W62,FIND(CHAR(160),SUBSTITUTE($W62,\"{\",CHAR(160),GR$1)),FIND(CHAR(160),SUBSTITUTE($W62,\"}\",CHAR(160),GR$1))-FIND(CHAR(160),SUBSTITUTE($W62,\"{\",CHAR(160),GR$1))+1),\"\")","v":"{COP_base}"},{"$f":"IFERROR(MID($W62,FIND(CHAR(160),SUBSTITUTE($W62,\"{\",CHAR(160),GS$1)),FIND(CHAR(160),SUBSTITUTE($W62,\"}\",CHAR(160),GS$1))-FIND(CHAR(160),SUBSTITUTE($W62,\"{\",CHAR(160),GS$1))+1),\"\")","v":""},{"$f":"IFERROR(MID($W62,FIND(CHAR(160),SUBSTITUTE($W62,\"{\",CHAR(160),GT$1)),FIND(CHAR(160),SUBSTITUTE($W62,\"}\",CHAR(160),GT$1))-FIND(CHAR(160),SUBSTITUTE($W62,\"{\",CHAR(160),GT$1))+1),\"\")","v":""},{"$f":"IFERROR(MID($W62,FIND(CHAR(160),SUBSTITUTE($W62,\"{\",CHAR(160),GU$1)),FIND(CHAR(160),SUBSTITUTE($W62,\"}\",CHAR(160),GU$1))-FIND(CHAR(160),SUBSTITUTE($W62,\"{\",CHAR(160),GU$1))+1),\"\")","v":""},{"$f":"IFERROR(MID($W62,FIND(CHAR(160),SUBSTITUTE($W62,\"{\",CHAR(160),GV$1)),FIND(CHAR(160),SUBSTITUTE($W62,\"}\",CHAR(160),GV$1))-FIND(CHAR(160),SUBSTITUTE($W62,\"{\",CHAR(160),GV$1))+1),\"\")","v":""},{"$f":"IFERROR(MID($W62,FIND(CHAR(160),SUBSTITUTE($W62,\"{\",CHAR(160),GW$1)),FIND(CHAR(160),SUBSTITUTE($W62,\"}\",CHAR(160),GW$1))-FIND(CHAR(160),SUBSTITUTE($W62,\"{\",CHAR(160),GW$1))+1),\"\")","v":""},{"$f":"IFERROR(MID($W62,FIND(CHAR(160),SUBSTITUTE($W62,\"{\",CHAR(160),GX$1)),FIND(CHAR(160),SUBSTITUTE($W62,\"}\",CHAR(160),GX$1))-FIND(CHAR(160),SUBSTITUTE($W62,\"{\",CHAR(160),GX$1))+1),\"\")","v":""},{"$f":"IFERROR(MID($W62,FIND(CHAR(160),SUBSTITUTE($W62,\"{\",CHAR(160),GY$1)),FIND(CHAR(160),SUBSTITUTE($W62,\"}\",CHAR(160),GY$1))-FIND(CHAR(160),SUBSTITUTE($W62,\"{\",CHAR(160),GY$1))+1),\"\")","v":"{Alternate Heating Fuel}"},{"$f":"IFERROR(MID($W62,FIND(CHAR(160),SUBSTITUTE($W62,\"{\",CHAR(160),GZ$1)),FIND(CHAR(160),SUBSTITUTE($W62,\"}\",CHAR(160),GZ$1))-FIND(CHAR(160),SUBSTITUTE($W62,\"{\",CHAR(160),GZ$1))+1),\"\")","v":"{Measure:Quantity}"},{"$f":"IFERROR(MID($X62,FIND(CHAR(160),SUBSTITUTE($X62,\"{\",CHAR(160),HA$1)),FIND(CHAR(160),SUBSTITUTE($X62,\"}\",CHAR(160),HA$1))-FIND(CHAR(160),SUBSTITUTE($X62,\"{\",CHAR(160),HA$1))+1),\"\")","v":"{Square Feet Served}"},{"$f":"IFERROR(MID($X62,FIND(CHAR(160),SUBSTITUTE($X62,\"{\",CHAR(160),HB$1)),FIND(CHAR(160),SUBSTITUTE($X62,\"}\",CHAR(160),HB$1))-FIND(CHAR(160),SUBSTITUTE($X62,\"{\",CHAR(160),HB$1))+1),\"\")","v":"{COP_base}"},{"$f":"IFERROR(MID($X62,FIND(CHAR(160),SUBSTITUTE($X62,\"{\",CHAR(160),HC$1)),FIND(CHAR(160),SUBSTITUTE($X62,\"}\",CHAR(160),HC$1))-FIND(CHAR(160),SUBSTITUTE($X62,\"{\",CHAR(160),HC$1))+1),\"\")","v":""},{"$f":"IFERROR(MID($X62,FIND(CHAR(160),SUBSTITUTE($X62,\"{\",CHAR(160),HD$1)),FIND(CHAR(160),SUBSTITUTE($X62,\"}\",CHAR(160),HD$1))-FIND(CHAR(160),SUBSTITUTE($X62,\"{\",CHAR(160),HD$1))+1),\"\")","v":""},{"$f":"IFERROR(MID($X62,FIND(CHAR(160),SUBSTITUTE($X62,\"{\",CHAR(160),HE$1)),FIND(CHAR(160),SUBSTITUTE($X62,\"}\",CHAR(160),HE$1))-FIND(CHAR(160),SUBSTITUTE($X62,\"{\",CHAR(160),HE$1))+1),\"\")","v":""},{"$f":"IFERROR(MID($X62,FIND(CHAR(160),SUBSTITUTE($X62,\"{\",CHAR(160),HF$1)),FIND(CHAR(160),SUBSTITUTE($X62,\"}\",CHAR(160),HF$1))-FIND(CHAR(160),SUBSTITUTE($X62,\"{\",CHAR(160),HF$1))+1),\"\")","v":""},{"$f":"IFERROR(MID($X62,FIND(CHAR(160),SUBSTITUTE($X62,\"{\",CHAR(160),HG$1)),FIND(CHAR(160),SUBSTITUTE($X62,\"}\",CHAR(160),HG$1))-FIND(CHAR(160),SUBSTITUTE($X62,\"{\",CHAR(160),HG$1))+1),\"\")","v":""},{"$f":"IFERROR(MID($X62,FIND(CHAR(160),SUBSTITUTE($X62,\"{\",CHAR(160),HH$1)),FIND(CHAR(160),SUBSTITUTE($X62,\"}\",CHAR(160),HH$1))-FIND(CHAR(160),SUBSTITUTE($X62,\"{\",CHAR(160),HH$1))+1),\"\")","v":""},{"$f":"IFERROR(MID($X62,FIND(CHAR(160),SUBSTITUTE($X62,\"{\",CHAR(160),HI$1)),FIND(CHAR(160),SUBSTITUTE($X62,\"}\",CHAR(160),HI$1))-FIND(CHAR(160),SUBSTITUTE($X62,\"{\",CHAR(160),HI$1))+1),\"\")","v":"{Alternate Heating Fuel}"},{"$f":"IFERROR(MID($X62,FIND(CHAR(160),SUBSTITUTE($X62,\"{\",CHAR(160),HJ$1)),FIND(CHAR(160),SUBSTITUTE($X62,\"}\",CHAR(160),HJ$1))-FIND(CHAR(160),SUBSTITUTE($X62,\"{\",CHAR(160),HJ$1))+1),\"\")","v":"{Measure:Quantity}"},{"$f":"IFERROR(MID($Y62,FIND(CHAR(160),SUBSTITUTE($Y62,\"{\",CHAR(160),HK$1)),FIND(CHAR(160),SUBSTITUTE($Y62,\"}\",CHAR(160),HK$1))-FIND(CHAR(160),SUBSTITUTE($Y62,\"{\",CHAR(160),HK$1))+1),\"\")","v":"{Square Feet Served}"},{"$f":"IFERROR(MID($Y62,FIND(CHAR(160),SUBSTITUTE($Y62,\"{\",CHAR(160),HL$1)),FIND(CHAR(160),SUBSTITUTE($Y62,\"}\",CHAR(160),HL$1))-FIND(CHAR(160),SUBSTITUTE($Y62,\"{\",CHAR(160),HL$1))+1),\"\")","v":"{COP_base}"},{"$f":"IFERROR(MID($Y62,FIND(CHAR(160),SUBSTITUTE($Y62,\"{\",CHAR(160),HM$1)),FIND(CHAR(160),SUBSTITUTE($Y62,\"}\",CHAR(160),HM$1))-FIND(CHAR(160),SUBSTITUTE($Y62,\"{\",CHAR(160),HM$1))+1),\"\")","v":""},{"$f":"IFERROR(MID($Y62,FIND(CHAR(160),SUBSTITUTE($Y62,\"{\",CHAR(160),HN$1)),FIND(CHAR(160),SUBSTITUTE($Y62,\"}\",CHAR(160),HN$1))-FIND(CHAR(160),SUBSTITUTE($Y62,\"{\",CHAR(160),HN$1))+1),\"\")","v":""},{"$f":"IFERROR(MID($Y62,FIND(CHAR(160),SUBSTITUTE($Y62,\"{\",CHAR(160),HO$1)),FIND(CHAR(160),SUBSTITUTE($Y62,\"}\",CHAR(160),HO$1))-FIND(CHAR(160),SUBSTITUTE($Y62,\"{\",CHAR(160),HO$1))+1),\"\")","v":""},{"$f":"IFERROR(MID($Y62,FIND(CHAR(160),SUBSTITUTE($Y62,\"{\",CHAR(160),HP$1)),FIND(CHAR(160),SUBSTITUTE($Y62,\"}\",CHAR(160),HP$1))-FIND(CHAR(160),SUBSTITUTE($Y62,\"{\",CHAR(160),HP$1))+1),\"\")","v":""},{"$f":"IFERROR(MID($Y62,FIND(CHAR(160),SUBSTITUTE($Y62,\"{\",CHAR(160),HQ$1)),FIND(CHAR(160),SUBSTITUTE($Y62,\"}\",CHAR(160),HQ$1))-FIND(CHAR(160),SUBSTITUTE($Y62,\"{\",CHAR(160),HQ$1))+1),\"\")","v":""},{"$f":"IFERROR(MID($Y62,FIND(CHAR(160),SUBSTITUTE($Y62,\"{\",CHAR(160),HR$1)),FIND(CHAR(160),SUBSTITUTE($Y62,\"}\",CHAR(160),HR$1))-FIND(CHAR(160),SUBSTITUTE($Y62,\"{\",CHAR(160),HR$1))+1),\"\")","v":""},{"$f":"IFERROR(MID($Y62,FIND(CHAR(160),SUBSTITUTE($Y62,\"{\",CHAR(160),HS$1)),FIND(CHAR(160),SUBSTITUTE($Y62,\"}\",CHAR(160),HS$1))-FIND(CHAR(160),SUBSTITUTE($Y62,\"{\",CHAR(160),HS$1))+1),\"\")","v":"{Alternate Heating Fuel}"},{"$f":"IFERROR(MID($Y62,FIND(CHAR(160),SUBSTITUTE($Y62,\"{\",CHAR(160),HT$1)),FIND(CHAR(160),SUBSTITUTE($Y62,\"}\",CHAR(160),HT$1))-FIND(CHAR(160),SUBSTITUTE($Y62,\"{\",CHAR(160),HT$1))+1),\"\")","v":"{Measure:Quantity}"},{"$f":"IFERROR(MID($Z62,FIND(CHAR(160),SUBSTITUTE($Z62,\"{\",CHAR(160),HU$1)),FIND(CHAR(160),SUBSTITUTE($Z62,\"}\",CHAR(160),HU$1))-FIND(CHAR(160),SUBSTITUTE($Z62,\"{\",CHAR(160),HU$1))+1),\"\")","v":"{Square Feet Served}"},{"$f":"IFERROR(MID($Z62,FIND(CHAR(160),SUBSTITUTE($Z62,\"{\",CHAR(160),HV$1)),FIND(CHAR(160),SUBSTITUTE($Z62,\"}\",CHAR(160),HV$1))-FIND(CHAR(160),SUBSTITUTE($Z62,\"{\",CHAR(160),HV$1))+1),\"\")","v":"{COP_base}"},{"$f":"IFERROR(MID($Z62,FIND(CHAR(160),SUBSTITUTE($Z62,\"{\",CHAR(160),HW$1)),FIND(CHAR(160),SUBSTITUTE($Z62,\"}\",CHAR(160),HW$1))-FIND(CHAR(160),SUBSTITUTE($Z62,\"{\",CHAR(160),HW$1))+1),\"\")","v":""},{"$f":"IFERROR(MID($Z62,FIND(CHAR(160),SUBSTITUTE($Z62,\"{\",CHAR(160),HX$1)),FIND(CHAR(160),SUBSTITUTE($Z62,\"}\",CHAR(160),HX$1))-FIND(CHAR(160),SUBSTITUTE($Z62,\"{\",CHAR(160),HX$1))+1),\"\")","v":""},{"$f":"IFERROR(MID($Z62,FIND(CHAR(160),SUBSTITUTE($Z62,\"{\",CHAR(160),HY$1)),FIND(CHAR(160),SUBSTITUTE($Z62,\"}\",CHAR(160),HY$1))-FIND(CHAR(160),SUBSTITUTE($Z62,\"{\",CHAR(160),HY$1))+1),\"\")","v":""},{"$f":"IFERROR(MID($Z62,FIND(CHAR(160),SUBSTITUTE($Z62,\"{\",CHAR(160),HZ$1)),FIND(CHAR(160),SUBSTITUTE($Z62,\"}\",CHAR(160),HZ$1))-FIND(CHAR(160),SUBSTITUTE($Z62,\"{\",CHAR(160),HZ$1))+1),\"\")","v":""},{"$f":"IFERROR(MID($Z62,FIND(CHAR(160),SUBSTITUTE($Z62,\"{\",CHAR(160),IA$1)),FIND(CHAR(160),SUBSTITUTE($Z62,\"}\",CHAR(160),IA$1))-FIND(CHAR(160),SUBSTITUTE($Z62,\"{\",CHAR(160),IA$1))+1),\"\")","v":""},{"$f":"IFERROR(MID($Z62,FIND(CHAR(160),SUBSTITUTE($Z62,\"{\",CHAR(160),IB$1)),FIND(CHAR(160),SUBSTITUTE($Z62,\"}\",CHAR(160),IB$1))-FIND(CHAR(160),SUBSTITUTE($Z62,\"{\",CHAR(160),IB$1))+1),\"\")","v":""},{"$f":"IFERROR(MID($Z62,FIND(CHAR(160),SUBSTITUTE($Z62,\"{\",CHAR(160),IC$1)),FIND(CHAR(160),SUBSTITUTE($Z62,\"}\",CHAR(160),IC$1))-FIND(CHAR(160),SUBSTITUTE($Z62,\"{\",CHAR(160),IC$1))+1),\"\")","v":"{Alternate Heating Fuel}"},{"$f":"IFERROR(MID($Z62,FIND(CHAR(160),SUBSTITUTE($Z62,\"{\",CHAR(160),ID$1)),FIND(CHAR(160),SUBSTITUTE($Z62,\"}\",CHAR(160),ID$1))-FIND(CHAR(160),SUBSTITUTE($Z62,\"{\",CHAR(160),ID$1))+1),\"\")","v":"{Measure:Quantity}"},{"$f":"IFERROR(MID($AA62,FIND(CHAR(160),SUBSTITUTE($AA62,\"{\",CHAR(160),IE$1)),FIND(CHAR(160),SUBSTITUTE($AA62,\"}\",CHAR(160),IE$1))-FIND(CHAR(160),SUBSTITUTE($AA62,\"{\",CHAR(160),IE$1))+1),\"\")","v":"{Square Feet Served}"},{"$f":"IFERROR(MID($AA62,FIND(CHAR(160),SUBSTITUTE($AA62,\"{\",CHAR(160),IF$1)),FIND(CHAR(160),SUBSTITUTE($AA62,\"}\",CHAR(160),IF$1))-FIND(CHAR(160),SUBSTITUTE($AA62,\"{\",CHAR(160),IF$1))+1),\"\")","v":"{COP_base}"},{"$f":"IFERROR(MID($AA62,FIND(CHAR(160),SUBSTITUTE($AA62,\"{\",CHAR(160),IG$1)),FIND(CHAR(160),SUBSTITUTE($AA62,\"}\",CHAR(160),IG$1))-FIND(CHAR(160),SUBSTITUTE($AA62,\"{\",CHAR(160),IG$1))+1),\"\")","v":""},{"$f":"IFERROR(MID($AA62,FIND(CHAR(160),SUBSTITUTE($AA62,\"{\",CHAR(160),IH$1)),FIND(CHAR(160),SUBSTITUTE($AA62,\"}\",CHAR(160),IH$1))-FIND(CHAR(160),SUBSTITUTE($AA62,\"{\",CHAR(160),IH$1))+1),\"\")","v":""},{"$f":"IFERROR(MID($AA62,FIND(CHAR(160),SUBSTITUTE($AA62,\"{\",CHAR(160),II$1)),FIND(CHAR(160),SUBSTITUTE($AA62,\"}\",CHAR(160),II$1))-FIND(CHAR(160),SUBSTITUTE($AA62,\"{\",CHAR(160),II$1))+1),\"\")","v":""},{"$f":"IFERROR(MID($AA62,FIND(CHAR(160),SUBSTITUTE($AA62,\"{\",CHAR(160),IJ$1)),FIND(CHAR(160),SUBSTITUTE($AA62,\"}\",CHAR(160),IJ$1))-FIND(CHAR(160),SUBSTITUTE($AA62,\"{\",CHAR(160),IJ$1))+1),\"\")","v":""},{"$f":"IFERROR(MID($AA62,FIND(CHAR(160),SUBSTITUTE($AA62,\"{\",CHAR(160),IK$1)),FIND(CHAR(160),SUBSTITUTE($AA62,\"}\",CHAR(160),IK$1))-FIND(CHAR(160),SUBSTITUTE($AA62,\"{\",CHAR(160),IK$1))+1),\"\")","v":""},{"$f":"IFERROR(MID($AA62,FIND(CHAR(160),SUBSTITUTE($AA62,\"{\",CHAR(160),IL$1)),FIND(CHAR(160),SUBSTITUTE($AA62,\"}\",CHAR(160),IL$1))-FIND(CHAR(160),SUBSTITUTE($AA62,\"{\",CHAR(160),IL$1))+1),\"\")","v":""},{"$f":"IFERROR(MID($AA62,FIND(CHAR(160),SUBSTITUTE($AA62,\"{\",CHAR(160),IM$1)),FIND(CHAR(160),SUBSTITUTE($AA62,\"}\",CHAR(160),IM$1))-FIND(CHAR(160),SUBSTITUTE($AA62,\"{\",CHAR(160),IM$1))+1),\"\")","v":"{Alternate Heating Fuel}"},{"$f":"IFERROR(MID($AA62,FIND(CHAR(160),SUBSTITUTE($AA62,\"{\",CHAR(160),IN$1)),FIND(CHAR(160),SUBSTITUTE($AA62,\"}\",CHAR(160),IN$1))-FIND(CHAR(160),SUBSTITUTE($AA62,\"{\",CHAR(160),IN$1))+1),\"\")","v":"{Measure:Quantity}"},{"$f":"IFERROR(MID($AB62,FIND(CHAR(160),SUBSTITUTE($AB62,\"{\",CHAR(160),IO$1)),FIND(CHAR(160),SUBSTITUTE($AB62,\"}\",CHAR(160),IO$1))-FIND(CHAR(160),SUBSTITUTE($AB62,\"{\",CHAR(160),IO$1))+1),\"\")","v":""},{"$f":"IFERROR(MID($AB62,FIND(CHAR(160),SUBSTITUTE($AB62,\"{\",CHAR(160),IP$1)),FIND(CHAR(160),SUBSTITUTE($AB62,\"}\",CHAR(160),IP$1))-FIND(CHAR(160),SUBSTITUTE($AB62,\"{\",CHAR(160),IP$1))+1),\"\")","v":""},{"$f":"IFERROR(MID($AB62,FIND(CHAR(160),SUBSTITUTE($AB62,\"{\",CHAR(160),IQ$1)),FIND(CHAR(160),SUBSTITUTE($AB62,\"}\",CHAR(160),IQ$1))-FIND(CHAR(160),SUBSTITUTE($AB62,\"{\",CHAR(160),IQ$1))+1),\"\")","v":""},{"$f":"IFERROR(MID($AB62,FIND(CHAR(160),SUBSTITUTE($AB62,\"{\",CHAR(160),IR$1)),FIND(CHAR(160),SUBSTITUTE($AB62,\"}\",CHAR(160),IR$1))-FIND(CHAR(160),SUBSTITUTE($AB62,\"{\",CHAR(160),IR$1))+1),\"\")","v":""},{"$f":"IFERROR(MID($AB62,FIND(CHAR(160),SUBSTITUTE($AB62,\"{\",CHAR(160),IS$1)),FIND(CHAR(160),SUBSTITUTE($AB62,\"}\",CHAR(160),IS$1))-FIND(CHAR(160),SUBSTITUTE($AB62,\"{\",CHAR(160),IS$1))+1),\"\")","v":""},{"$f":"IFERROR(MID($AB62,FIND(CHAR(160),SUBSTITUTE($AB62,\"{\",CHAR(160),IT$1)),FIND(CHAR(160),SUBSTITUTE($AB62,\"}\",CHAR(160),IT$1))-FIND(CHAR(160),SUBSTITUTE($AB62,\"{\",CHAR(160),IT$1))+1),\"\")","v":""},{"$f":"IFERROR(MID($AB62,FIND(CHAR(160),SUBSTITUTE($AB62,\"{\",CHAR(160),IU$1)),FIND(CHAR(160),SUBSTITUTE($AB62,\"}\",CHAR(160),IU$1))-FIND(CHAR(160),SUBSTITUTE($AB62,\"{\",CHAR(160),IU$1))+1),\"\")","v":""},{"$f":"IFERROR(MID($AB62,FIND(CHAR(160),SUBSTITUTE($AB62,\"{\",CHAR(160),IV$1)),FIND(CHAR(160),SUBSTITUTE($AB62,\"}\",CHAR(160),IV$1))-FIND(CHAR(160),SUBSTITUTE($AB62,\"{\",CHAR(160),IV$1))+1),\"\")","v":""},{"$f":"IFERROR(MID($AB62,FIND(CHAR(160),SUBSTITUTE($AB62,\"{\",CHAR(160),IW$1)),FIND(CHAR(160),SUBSTITUTE($AB62,\"}\",CHAR(160),IW$1))-FIND(CHAR(160),SUBSTITUTE($AB62,\"{\",CHAR(160),IW$1))+1),\"\")","v":""},{"$f":"IFERROR(MID($AB62,FIND(CHAR(160),SUBSTITUTE($AB62,\"{\",CHAR(160),IX$1)),FIND(CHAR(160),SUBSTITUTE($AB62,\"}\",CHAR(160),IX$1))-FIND(CHAR(160),SUBSTITUTE($AB62,\"{\",CHAR(160),IX$1))+1),\"\")","v":""},null,{"$f":"10-COUNTIF(DU62:ED62,\"\")","v":9}]
["C&I HVAC - Electric","Programmable Thermostat","AF6","2021-07-01","2021-09-09","Per Measure",157,0,"Calculated","{Measure:Quantity}*100",0,"2021-07-01","2022-06-30","Calculated","{Measure:Quantity} * ({Capacity (MBTUH)} * 1565 *0.068) / 1000 /0.003412",null,null,null,null,null,null,null,null,null,null,null,null,null,"2021-05-25","2022-06-30",8,1,1,0.39,0.30499999999999999,0.216,8.8999999999999996E-2,1,1,0,0.52,1.6E-2,null,{"$f":"DU63","v":"{Measure:Quantity}"},1,{"$f":"DV63","v":"{Capacity (MBTUH)}"},90,{"$f":"DW63","v":""},null,{"$f":"DX63","v":""},null,{"$f":"DY63","v":""},null,{"$f":"DZ63","v":""},null,{"$f":"EA63","v":""},null,{"$f":"EB63","v":""},null,{"$f":"EC63","v":""},null,{"$f":"ED63","v":""},null,{"$f":"AS63 * (AU63 * 1565 *0.068) / 1000 /0.003412","v":2807.0926143024622},0,0,0,0,0,0,0,0,0,0,0,0,0,null,"Res","Default DR",{"$f":"Benefits(BL63,BR63,BS63,BT63,BU63,BV63,BW63,BX63,BY63,BZ63,AE63,AH63,AI63,AJ63,AK63,AL63,AM63,AN63,AO63,AP63,CA63,CB63)","v":2303.4467270632981},0,0,0,0,0,0,0,0,{"$f":"SUMPRODUCT(CC63:CK63,--(CC63:CK63>0))","v":2303.4467270632981},{"$f":"-SUMPRODUCT(CC63:CK63,--(CC63:CK63<0))","v":0},null,{"$f":"157","v":157},null,null,{"$f":"CM63+CO63","v":157},{"$f":"IF(NetOrGross=\"Net\",(1-AO63+AP63),1)","v":1},{"$f":"(SUMPRODUCT(CC63:CJ63,--(CC63:CJ63>0))+CN63)*CS63/((-SUMPRODUCT(CC63:CJ63,--(CC63:CJ63<0))+MAX(CO63,CV63)+CP63+CQ63)*CS63+IF(FRIncentives=\"Yes\",CV63*(1-CS63),0))","v":14.671635204224829},1,{"$f":"AS63*100","v":100},null,"Electric","y",null,{"$f":"IF(F63=\"Manual Entry\",\"Manual\",IF(G63=\"\",0,\"X=\"&SUBSTITUTE(SUBSTITUTE(SUBSTITUTE(SUBSTITUTE(SUBSTITUTE(SUBSTITUTE(SUBSTITUTE(SUBSTITUTE(SUBSTITUTE(SUBSTITUTE(SUBSTITUTE(SUBSTITUTE(G63,$ED63,$ED$2&ROW($ED63)),$EC63,$EC$2&ROW($EC63)),$EB63,$EB$2&ROW($EB63)),$EA63,$EA$2&ROW($EA63)),$DZ63,$DZ$2&ROW($DZ63)),$DY63,$DY$2&ROW($DY63)),$DX63,$DX$2&ROW($DX63)),$DW63,$DW$2&ROW($DW63)),$DV63,$DV$2&ROW($DV63)),$DU63,$DU$2&ROW($DU63)),$DT63,$DT$2&ROW($DT63)),$DS63,$DS$2&ROW($DS63))))","v":"X=157"},{"$f":"IF(I63=\"Manual Entry\",\"Manual\",IF(J63=\"\",0,\"X=\"&SUBSTITUTE(SUBSTITUTE(SUBSTITUTE(SUBSTITUTE(SUBSTITUTE(SUBSTITUTE(SUBSTITUTE(SUBSTITUTE(SUBSTITUTE(SUBSTITUTE(SUBSTITUTE(SUBSTITUTE(J63,$ED63,$ED$2&ROW($ED63)),$EC63,$EC$2&ROW($EC63)),$EB63,$EB$2&ROW($EB63)),$EA63,$EA$2&ROW($EA63)),$DZ63,$DZ$2&ROW($DZ63)),$DY63,$DY$2&ROW($DY63)),$DX63,$DX$2&ROW($DX63)),$DW63,$DW$2&ROW($DW63)),$DV63,$DV$2&ROW($DV63)),$DU63,$DU$2&ROW($DU63)),$DT63,$DT$2&ROW($DT63)),$DS63,$DS$2&ROW($DS63))))","v":"X=AS63*100"},{"$f":"IF(O63=\"\",0,\"X=\"&SUBSTITUTE(SUBSTITUTE(SUBSTITUTE(SUBSTITUTE(SUBSTITUTE(SUBSTITUTE(SUBSTITUTE(SUBSTITUTE(SUBSTITUTE(SUBSTITUTE(SUBSTITUTE(SUBSTITUTE(O63,$ED63,$ED$2&ROW($ED63)),$EC63,$EC$2&ROW($EC63)),$EB63,$EB$2&ROW($EB63)),$EA63,$EA$2&ROW($EA63)),$DZ63,$DZ$2&ROW($DZ63)),$DY63,$DY$2&ROW($DY63)),$DX63,$DX$2&ROW($DX63)),$DW63,$DW$2&ROW($DW63)),$DV63,$DV$2&ROW($DV63)),$DU63,$DU$2&ROW($DU63)),$DT63,$DT$2&ROW($DT63)),$DS63,$DS$2&ROW($DS63)))","v":"X=AS63 * (AU63 * 1565 *0.068) / 1000 /0.003412"},{"$f":"IF(P63=\"\",0,\"X=\"&SUBSTITUTE(SUBSTITUTE(SUBSTITUTE(SUBSTITUTE(SUBSTITUTE(SUBSTITUTE(SUBSTITUTE(SUBSTITUTE(SUBSTITUTE(SUBSTITUTE(SUBSTITUTE(SUBSTITUTE(P63,$ED63,$ED$2&ROW($ED63)),$EC63,$EC$2&ROW($EC63)),$EB63,$EB$2&ROW($EB63)),$EA63,$EA$2&ROW($EA63)),$DZ63,$DZ$2&ROW($DZ63)),$DY63,$DY$2&ROW($DY63)),$DX63,$DX$2&ROW($DX63)),$DW63,$DW$2&ROW($DW63)),$DV63,$DV$2&ROW($DV63)),$DU63,$DU$2&ROW($DU63)),$DT63,$DT$2&ROW($DT63)),$DS63,$DS$2&ROW($DS63)))","v":0},{"$f":"IF(Q63=\"\",0,\"X=\"&SUBSTITUTE(SUBSTITUTE(SUBSTITUTE(SUBSTITUTE(SUBSTITUTE(SUBSTITUTE(SUBSTITUTE(SUBSTITUTE(SUBSTITUTE(SUBSTITUTE(SUBSTITUTE(SUBSTITUTE(Q63,$ED63,$ED$2&ROW($ED63)),$EC63,$EC$2&ROW($EC63)),$EB63,$EB$2&ROW($EB63)),$EA63,$EA$2&ROW($EA63)),$DZ63,$DZ$2&ROW($DZ63)),$DY63,$DY$2&ROW($DY63)),$DX63,$DX$2&ROW($DX63)),$DW63,$DW$2&ROW($DW63)),$DV63,$DV$2&ROW($DV63)),$DU63,$DU$2&ROW($DU63)),$DT63,$DT$2&ROW($DT63)),$DS63,$DS$2&ROW($DS63)))","v":0},{"$f":"IF(R63=\"\",0,\"X=\"&SUBSTITUTE(SUBSTITUTE(SUBSTITUTE(SUBSTITUTE(SUBSTITUTE(SUBSTITUTE(SUBSTITUTE(SUBSTITUTE(SUBSTITUTE(SUBSTITUTE(SUBSTITUTE(SUBSTITUTE(R63,$ED63,$ED$2&ROW($ED63)),$EC63,$EC$2&ROW($EC63)),$EB63,$EB$2&ROW($EB63)),$EA63,$EA$2&ROW($EA63)),$DZ63,$DZ$2&ROW($DZ63)),$DY63,$DY$2&ROW($DY63)),$DX63,$DX$2&ROW($DX63)),$DW63,$DW$2&ROW($DW63)),$DV63,$DV$2&ROW($DV63)),$DU63,$DU$2&ROW($DU63)),$DT63,$DT$2&ROW($DT63)),$DS63,$DS$2&ROW($DS63)))","v":0},{"$f":"IF(S63=\"\",0,\"X=\"&SUBSTITUTE(SUBSTITUTE(SUBSTITUTE(SUBSTITUTE(SUBSTITUTE(SUBSTITUTE(SUBSTITUTE(SUBSTITUTE(SUBSTITUTE(SUBSTITUTE(SUBSTITUTE(SUBSTITUTE(S63,$ED63,$ED$2&ROW($ED63)),$EC63,$EC$2&ROW($EC63)),$EB63,$EB$2&ROW($EB63)),$EA63,$EA$2&ROW($EA63)),$DZ63,$DZ$2&ROW($DZ63)),$DY63,$DY$2&ROW($DY63)),$DX63,$DX$2&ROW($DX63)),$DW63,$DW$2&ROW($DW63)),$DV63,$DV$2&ROW($DV63)),$DU63,$DU$2&ROW($DU63)),$DT63,$DT$2&ROW($DT63)),$DS63,$DS$2&ROW($DS63)))","v":0},{"$f":"IF(T63=\"\",0,\"X=\"&SUBSTITUTE(SUBSTITUTE(SUBSTITUTE(SUBSTITUTE(SUBSTITUTE(SUBSTITUTE(SUBSTITUTE(SUBSTITUTE(SUBSTITUTE(SUBSTITUTE(SUBSTITUTE(SUBSTITUTE(T63,$ED63,$ED$2&ROW($ED63)),$EC63,$EC$2&ROW($EC63)),$EB63,$EB$2&ROW($EB63)),$EA63,$EA$2&ROW($EA63)),$DZ63,$DZ$2&ROW($DZ63)),$DY63,$DY$2&ROW($DY63)),$DX63,$DX$2&ROW($DX63)),$DW63,$DW$2&ROW($DW63)),$DV63,$DV$2&ROW($DV63)),$DU63,$DU$2&ROW($DU63)),$DT63,$DT$2&ROW($DT63)),$DS63,$DS$2&ROW($DS63)))","v":0},{"$f":"IF(U63=\"\",0,\"X=\"&SUBSTITUTE(SUBSTITUTE(SUBSTITUTE(SUBSTITUTE(SUBSTITUTE(SUBSTITUTE(SUBSTITUTE(SUBSTITUTE(SUBSTITUTE(SUBSTITUTE(SUBSTITUTE(SUBSTITUTE(U63,$ED63,$ED$2&ROW($ED63)),$EC63,$EC$2&ROW($EC63)),$EB63,$EB$2&ROW($EB63)),$EA63,$EA$2&ROW($EA63)),$DZ63,$DZ$2&ROW($DZ63)),$DY63,$DY$2&ROW($DY63)),$DX63,$DX$2&ROW($DX63)),$DW63,$DW$2&ROW($DW63)),$DV63,$DV$2&ROW($DV63)),$DU63,$DU$2&ROW($DU63)),$DT63,$DT$2&ROW($DT63)),$DS63,$DS$2&ROW($DS63)))","v":0},{"$f":"IF(V63=\"\",0,\"X=\"&SUBSTITUTE(SUBSTITUTE(SUBSTITUTE(SUBSTITUTE(SUBSTITUTE(SUBSTITUTE(SUBSTITUTE(SUBSTITUTE(SUBSTITUTE(SUBSTITUTE(SUBSTITUTE(SUBSTITUTE(V63,$ED63,$ED$2&ROW($ED63)),$EC63,$EC$2&ROW($EC63)),$EB63,$EB$2&ROW($EB63)),$EA63,$EA$2&ROW($EA63)),$DZ63,$DZ$2&ROW($DZ63)),$DY63,$DY$2&ROW($DY63)),$DX63,$DX$2&ROW($DX63)),$DW63,$DW$2&ROW($DW63)),$DV63,$DV$2&ROW($DV63)),$DU63,$DU$2&ROW($DU63)),$DT63,$DT$2&ROW($DT63)),$DS63,$DS$2&ROW($DS63)))","v":0},{"$f":"IF(W63=\"\",0,\"X=\"&SUBSTITUTE(SUBSTITUTE(SUBSTITUTE(SUBSTITUTE(SUBSTITUTE(SUBSTITUTE(SUBSTITUTE(SUBSTITUTE(SUBSTITUTE(SUBSTITUTE(SUBSTITUTE(SUBSTITUTE(W63,$ED63,$ED$2&ROW($ED63)),$EC63,$EC$2&ROW($EC63)),$EB63,$EB$2&ROW($EB63)),$EA63,$EA$2&ROW($EA63)),$DZ63,$DZ$2&ROW($DZ63)),$DY63,$DY$2&ROW($DY63)),$DX63,$DX$2&ROW($DX63)),$DW63,$DW$2&ROW($DW63)),$DV63,$DV$2&ROW($DV63)),$DU63,$DU$2&ROW($DU63)),$DT63,$DT$2&ROW($DT63)),$DS63,$DS$2&ROW($DS63)))","v":0},{"$f":"IF(X63=\"\",0,\"X=\"&SUBSTITUTE(SUBSTITUTE(SUBSTITUTE(SUBSTITUTE(SUBSTITUTE(SUBSTITUTE(SUBSTITUTE(SUBSTITUTE(SUBSTITUTE(SUBSTITUTE(SUBSTITUTE(SUBSTITUTE(X63,$ED63,$ED$2&ROW($ED63)),$EC63,$EC$2&ROW($EC63)),$EB63,$EB$2&ROW($EB63)),$EA63,$EA$2&ROW($EA63)),$DZ63,$DZ$2&ROW($DZ63)),$DY63,$DY$2&ROW($DY63)),$DX63,$DX$2&ROW($DX63)),$DW63,$DW$2&ROW($DW63)),$DV63,$DV$2&ROW($DV63)),$DU63,$DU$2&ROW($DU63)),$DT63,$DT$2&ROW($DT63)),$DS63,$DS$2&ROW($DS63)))","v":0},{"$f":"IF(Y63=\"\",0,\"X=\"&SUBSTITUTE(SUBSTITUTE(SUBSTITUTE(SUBSTITUTE(SUBSTITUTE(SUBSTITUTE(SUBSTITUTE(SUBSTITUTE(SUBSTITUTE(SUBSTITUTE(SUBSTITUTE(SUBSTITUTE(Y63,$ED63,$ED$2&ROW($ED63)),$EC63,$EC$2&ROW($EC63)),$EB63,$EB$2&ROW($EB63)),$EA63,$EA$2&ROW($EA63)),$DZ63,$DZ$2&ROW($DZ63)),$DY63,$DY$2&ROW($DY63)),$DX63,$DX$2&ROW($DX63)),$DW63,$DW$2&ROW($DW63)),$DV63,$DV$2&ROW($DV63)),$DU63,$DU$2&ROW($DU63)),$DT63,$DT$2&ROW($DT63)),$DS63,$DS$2&ROW($DS63)))","v":0},{"$f":"IF(Z63=\"\",0,\"X=\"&SUBSTITUTE(SUBSTITUTE(SUBSTITUTE(SUBSTITUTE(SUBSTITUTE(SUBSTITUTE(SUBSTITUTE(SUBSTITUTE(SUBSTITUTE(SUBSTITUTE(SUBSTITUTE(SUBSTITUTE(Z63,$ED63,$ED$2&ROW($ED63)),$EC63,$EC$2&ROW($EC63)),$EB63,$EB$2&ROW($EB63)),$EA63,$EA$2&ROW($EA63)),$DZ63,$DZ$2&ROW($DZ63)),$DY63,$DY$2&ROW($DY63)),$DX63,$DX$2&ROW($DX63)),$DW63,$DW$2&ROW($DW63)),$DV63,$DV$2&ROW($DV63)),$DU63,$DU$2&ROW($DU63)),$DT63,$DT$2&ROW($DT63)),$DS63,$DS$2&ROW($DS63)))","v":0},{"$f":"IF(AA63=\"\",0,\"X=\"&SUBSTITUTE(SUBSTITUTE(SUBSTITUTE(SUBSTITUTE(SUBSTITUTE(SUBSTITUTE(SUBSTITUTE(SUBSTITUTE(SUBSTITUTE(SUBSTITUTE(SUBSTITUTE(SUBSTITUTE(AA63,$ED63,$ED$2&ROW($ED63)),$EC63,$EC$2&ROW($EC63)),$EB63,$EB$2&ROW($EB63)),$EA63,$EA$2&ROW($EA63)),$DZ63,$DZ$2&ROW($DZ63)),$DY63,$DY$2&ROW($DY63)),$DX63,$DX$2&ROW($DX63)),$DW63,$DW$2&ROW($DW63)),$DV63,$DV$2&ROW($DV63)),$DU63,$DU$2&ROW($DU63)),$DT63,$DT$2&ROW($DT63)),$DS63,$DS$2&ROW($DS63)))","v":0},{"$f":"IF(AB63=\"\",0,\"X=\"&SUBSTITUTE(SUBSTITUTE(SUBSTITUTE(SUBSTITUTE(SUBSTITUTE(SUBSTITUTE(SUBSTITUTE(SUBSTITUTE(SUBSTITUTE(SUBSTITUTE(SUBSTITUTE(SUBSTITUTE(AB63,$ED63,$ED$2&ROW($ED63)),$EC63,$EC$2&ROW($EC63)),$EB63,$EB$2&ROW($EB63)),$EA63,$EA$2&ROW($EA63)),$DZ63,$DZ$2&ROW($DZ63)),$DY63,$DY$2&ROW($DY63)),$DX63,$DX$2&ROW($DX63)),$DW63,$DW$2&ROW($DW63)),$DV63,$DV$2&ROW($DV63)),$DU63,$DU$2&ROW($DU63)),$DT63,$DT$2&ROW($DT63)),$DS63,$DS$2&ROW($DS63)))","v":0},null,null,"{Factor:WinterCF}","{Factor:SummerCF}",{"$f":"IFERROR(INDEX($EG63:$IV63,MATCH(0,COUNTIF($DR63:DT63,$EG63:$IV63),0)),\"\")","v":"{Measure:Quantity}"},{"$f":"IFERROR(INDEX($EG63:$IV63,MATCH(0,COUNTIF($DR63:DU63,$EG63:$IV63),0)),\"\")","v":"{Capacity (MBTUH)}"},{"$f":"IFERROR(INDEX($EG63:$IV63,MATCH(0,COUNTIF($DR63:DV63,$EG63:$IV63),0)),\"\")","v":""},{"$f":"IFERROR(INDEX($EG63:$IV63,MATCH(0,COUNTIF($DR63:DW63,$EG63:$IV63),0)),\"\")","v":""},{"$f":"IFERROR(INDEX($EG63:$IV63,MATCH(0,COUNTIF($DR63:DX63,$EG63:$IV63),0)),\"\")","v":""},{"$f":"IFERROR(INDEX($EG63:$IV63,MATCH(0,COUNTIF($DR63:DY63,$EG63:$IV63),0)),\"\")","v":""},{"$f":"IFERROR(INDEX($EG63:$IV63,MATCH(0,COUNTIF($DR63:DZ63,$EG63:$IV63),0)),\"\")","v":""},{"$f":"IFERROR(INDEX($EG63:$IV63,MATCH(0,COUNTIF($DR63:EA63,$EG63:$IV63),0)),\"\")","v":""},{"$f":"IFERROR(INDEX($EG63:$IV63,MATCH(0,COUNTIF($DR63:EB63,$EG63:$IV63),0)),\"\")","v":""},{"$f":"IFERROR(INDEX($EG63:$IV63,MATCH(0,COUNTIF($DR63:EC63,$EG63:$IV63),0)),\"\")","v":""},null,null,{"$f":"IFERROR(MID($G63,FIND(CHAR(160),SUBSTITUTE($G63,\"{\",CHAR(160),EG$1)),FIND(CHAR(160),SUBSTITUTE($G63,\"}\",CHAR(160),EG$1))-FIND(CHAR(160),SUBSTITUTE($G63,\"{\",CHAR(160),EG$1))+1),\"\")","v":""},{"$f":"IFERROR(MID($G63,FIND(CHAR(160),SUBSTITUTE($G63,\"{\",CHAR(160),EH$1)),FIND(CHAR(160),SUBSTITUTE($G63,\"}\",CHAR(160),EH$1))-FIND(CHAR(160),SUBSTITUTE($G63,\"{\",CHAR(160),EH$1))+1),\"\")","v":""},{"$f":"IFERROR(MID($G63,FIND(CHAR(160),SUBSTITUTE($G63,\"{\",CHAR(160),EI$1)),FIND(CHAR(160),SUBSTITUTE($G63,\"}\",CHAR(160),EI$1))-FIND(CHAR(160),SUBSTITUTE($G63,\"{\",CHAR(160),EI$1))+1),\"\")","v":""},{"$f":"IFERROR(MID($G63,FIND(CHAR(160),SUBSTITUTE($G63,\"{\",CHAR(160),EJ$1)),FIND(CHAR(160),SUBSTITUTE($G63,\"}\",CHAR(160),EJ$1))-FIND(CHAR(160),SUBSTITUTE($G63,\"{\",CHAR(160),EJ$1))+1),\"\")","v":""},{"$f":"IFERROR(MID($G63,FIND(CHAR(160),SUBSTITUTE($G63,\"{\",CHAR(160),EK$1)),FIND(CHAR(160),SUBSTITUTE($G63,\"}\",CHAR(160),EK$1))-FIND(CHAR(160),SUBSTITUTE($G63,\"{\",CHAR(160),EK$1))+1),\"\")","v":""},{"$f":"IFERROR(MID($G63,FIND(CHAR(160),SUBSTITUTE($G63,\"{\",CHAR(160),EL$1)),FIND(CHAR(160),SUBSTITUTE($G63,\"}\",CHAR(160),EL$1))-FIND(CHAR(160),SUBSTITUTE($G63,\"{\",CHAR(160),EL$1))+1),\"\")","v":""},{"$f":"IFERROR(MID($G63,FIND(CHAR(160),SUBSTITUTE($G63,\"{\",CHAR(160),EM$1)),FIND(CHAR(160),SUBSTITUTE($G63,\"}\",CHAR(160),EM$1))-FIND(CHAR(160),SUBSTITUTE($G63,\"{\",CHAR(160),EM$1))+1),\"\")","v":""},{"$f":"IFERROR(MID($G63,FIND(CHAR(160),SUBSTITUTE($G63,\"{\",CHAR(160),EN$1)),FIND(CHAR(160),SUBSTITUTE($G63,\"}\",CHAR(160),EN$1))-FIND(CHAR(160),SUBSTITUTE($G63,\"{\",CHAR(160),EN$1))+1),\"\")","v":""},{"$f":"IFERROR(MID($G63,FIND(CHAR(160),SUBSTITUTE($G63,\"{\",CHAR(160),EO$1)),FIND(CHAR(160),SUBSTITUTE($G63,\"}\",CHAR(160),EO$1))-FIND(CHAR(160),SUBSTITUTE($G63,\"{\",CHAR(160),EO$1))+1),\"\")","v":""},{"$f":"IFERROR(MID($G63,FIND(CHAR(160),SUBSTITUTE($G63,\"{\",CHAR(160),EP$1)),FIND(CHAR(160),SUBSTITUTE($G63,\"}\",CHAR(160),EP$1))-FIND(CHAR(160),SUBSTITUTE($G63,\"{\",CHAR(160),EP$1))+1),\"\")","v":""},{"$f":"IFERROR(MID($J63,FIND(CHAR(160),SUBSTITUTE($J63,\"{\",CHAR(160),EQ$1)),FIND(CHAR(160),SUBSTITUTE($J63,\"}\",CHAR(160),EQ$1))-FIND(CHAR(160),SUBSTITUTE($J63,\"{\",CHAR(160),EQ$1))+1),\"\")","v":"{Measure:Quantity}"},{"$f":"IFERROR(MID($J63,FIND(CHAR(160),SUBSTITUTE($J63,\"{\",CHAR(160),ER$1)),FIND(CHAR(160),SUBSTITUTE($J63,\"}\",CHAR(160),ER$1))-FIND(CHAR(160),SUBSTITUTE($J63,\"{\",CHAR(160),ER$1))+1),\"\")","v":""},{"$f":"IFERROR(MID($J63,FIND(CHAR(160),SUBSTITUTE($J63,\"{\",CHAR(160),ES$1)),FIND(CHAR(160),SUBSTITUTE($J63,\"}\",CHAR(160),ES$1))-FIND(CHAR(160),SUBSTITUTE($J63,\"{\",CHAR(160),ES$1))+1),\"\")","v":""},{"$f":"IFERROR(MID($J63,FIND(CHAR(160),SUBSTITUTE($J63,\"{\",CHAR(160),ET$1)),FIND(CHAR(160),SUBSTITUTE($J63,\"}\",CHAR(160),ET$1))-FIND(CHAR(160),SUBSTITUTE($J63,\"{\",CHAR(160),ET$1))+1),\"\")","v":""},{"$f":"IFERROR(MID($J63,FIND(CHAR(160),SUBSTITUTE($J63,\"{\",CHAR(160),EU$1)),FIND(CHAR(160),SUBSTITUTE($J63,\"}\",CHAR(160),EU$1))-FIND(CHAR(160),SUBSTITUTE($J63,\"{\",CHAR(160),EU$1))+1),\"\")","v":""},{"$f":"IFERROR(MID($J63,FIND(CHAR(160),SUBSTITUTE($J63,\"{\",CHAR(160),EV$1)),FIND(CHAR(160),SUBSTITUTE($J63,\"}\",CHAR(160),EV$1))-FIND(CHAR(160),SUBSTITUTE($J63,\"{\",CHAR(160),EV$1))+1),\"\")","v":""},{"$f":"IFERROR(MID($J63,FIND(CHAR(160),SUBSTITUTE($J63,\"{\",CHAR(160),EW$1)),FIND(CHAR(160),SUBSTITUTE($J63,\"}\",CHAR(160),EW$1))-FIND(CHAR(160),SUBSTITUTE($J63,\"{\",CHAR(160),EW$1))+1),\"\")","v":""},{"$f":"IFERROR(MID($J63,FIND(CHAR(160),SUBSTITUTE($J63,\"{\",CHAR(160),EX$1)),FIND(CHAR(160),SUBSTITUTE($J63,\"}\",CHAR(160),EX$1))-FIND(CHAR(160),SUBSTITUTE($J63,\"{\",CHAR(160),EX$1))+1),\"\")","v":""},{"$f":"IFERROR(MID($J63,FIND(CHAR(160),SUBSTITUTE($J63,\"{\",CHAR(160),EY$1)),FIND(CHAR(160),SUBSTITUTE($J63,\"}\",CHAR(160),EY$1))-FIND(CHAR(160),SUBSTITUTE($J63,\"{\",CHAR(160),EY$1))+1),\"\")","v":""},{"$f":"IFERROR(MID($J63,FIND(CHAR(160),SUBSTITUTE($J63,\"{\",CHAR(160),EZ$1)),FIND(CHAR(160),SUBSTITUTE($J63,\"}\",CHAR(160),EZ$1))-FIND(CHAR(160),SUBSTITUTE($J63,\"{\",CHAR(160),EZ$1))+1),\"\")","v":""},{"$f":"IFERROR(MID($J63,FIND(CHAR(160),SUBSTITUTE($J63,\"{\",CHAR(160),FA$1)),FIND(CHAR(160),SUBSTITUTE($J63,\"}\",CHAR(160),FA$1))-FIND(CHAR(160),SUBSTITUTE($J63,\"{\",CHAR(160),FA$1))+1),\"\")","v":"{Measure:Quantity}"},{"$f":"IFERROR(MID($J63,FIND(CHAR(160),SUBSTITUTE($J63,\"{\",CHAR(160),FB$1)),FIND(CHAR(160),SUBSTITUTE($J63,\"}\",CHAR(160),FB$1))-FIND(CHAR(160),SUBSTITUTE($J63,\"{\",CHAR(160),FB$1))+1),\"\")","v":""},{"$f":"IFERROR(MID($O63,FIND(CHAR(160),SUBSTITUTE($O63,\"{\",CHAR(160),FC$1)),FIND(CHAR(160),SUBSTITUTE($O63,\"}\",CHAR(160),FC$1))-FIND(CHAR(160),SUBSTITUTE($O63,\"{\",CHAR(160),FC$1))+1),\"\")","v":""},{"$f":"IFERROR(MID($O63,FIND(CHAR(160),SUBSTITUTE($O63,\"{\",CHAR(160),FD$1)),FIND(CHAR(160),SUBSTITUTE($O63,\"}\",CHAR(160),FD$1))-FIND(CHAR(160),SUBSTITUTE($O63,\"{\",CHAR(160),FD$1))+1),\"\")","v":""},{"$f":"IFERROR(MID($O63,FIND(CHAR(160),SUBSTITUTE($O63,\"{\",CHAR(160),FE$1)),FIND(CHAR(160),SUBSTITUTE($O63,\"}\",CHAR(160),FE$1))-FIND(CHAR(160),SUBSTITUTE($O63,\"{\",CHAR(160),FE$1))+1),\"\")","v":""},{"$f":"IFERROR(MID($O63,FIND(CHAR(160),SUBSTITUTE($O63,\"{\",CHAR(160),FF$1)),FIND(CHAR(160),SUBSTITUTE($O63,\"}\",CHAR(160),FF$1))-FIND(CHAR(160),SUBSTITUTE($O63,\"{\",CHAR(160),FF$1))+1),\"\")","v":""},{"$f":"IFERROR(MID($O63,FIND(CHAR(160),SUBSTITUTE($O63,\"{\",CHAR(160),FG$1)),FIND(CHAR(160),SUBSTITUTE($O63,\"}\",CHAR(160),FG$1))-FIND(CHAR(160),SUBSTITUTE($O63,\"{\",CHAR(160),FG$1))+1),\"\")","v":""},{"$f":"IFERROR(MID($O63,FIND(CHAR(160),SUBSTITUTE($O63,\"{\",CHAR(160),FH$1)),FIND(CHAR(160),SUBSTITUTE($O63,\"}\",CHAR(160),FH$1))-FIND(CHAR(160),SUBSTITUTE($O63,\"{\",CHAR(160),FH$1))+1),\"\")","v":""},{"$f":"IFERROR(MID($O63,FIND(CHAR(160),SUBSTITUTE($O63,\"{\",CHAR(160),FI$1)),FIND(CHAR(160),SUBSTITUTE($O63,\"}\",CHAR(160),FI$1))-FIND(CHAR(160),SUBSTITUTE($O63,\"{\",CHAR(160),FI$1))+1),\"\")","v":""},{"$f":"IFERROR(MID($O63,FIND(CHAR(160),SUBSTITUTE($O63,\"{\",CHAR(160),FJ$1)),FIND(CHAR(160),SUBSTITUTE($O63,\"}\",CHAR(160),FJ$1))-FIND(CHAR(160),SUBSTITUTE($O63,\"{\",CHAR(160),FJ$1))+1),\"\")","v":""},{"$f":"IFERROR(MID($O63,FIND(CHAR(160),SUBSTITUTE($O63,\"{\",CHAR(160),FK$1)),FIND(CHAR(160),SUBSTITUTE($O63,\"}\",CHAR(160),FK$1))-FIND(CHAR(160),SUBSTITUTE($O63,\"{\",CHAR(160),FK$1))+1),\"\")","v":"{Measure:Quantity}"},{"$f":"IFERROR(MID($O63,FIND(CHAR(160),SUBSTITUTE($O63,\"{\",CHAR(160),FL$1)),FIND(CHAR(160),SUBSTITUTE($O63,\"}\",CHAR(160),FL$1))-FIND(CHAR(160),SUBSTITUTE($O63,\"{\",CHAR(160),FL$1))+1),\"\")","v":"{Capacity (MBTUH)}"},{"$f":"IFERROR(MID($R63,FIND(CHAR(160),SUBSTITUTE($R63,\"{\",CHAR(160),FM$1)),FIND(CHAR(160),SUBSTITUTE($R63,\"}\",CHAR(160),FM$1))-FIND(CHAR(160),SUBSTITUTE($R63,\"{\",CHAR(160),FM$1))+1),\"\")","v":""},{"$f":"IFERROR(MID($R63,FIND(CHAR(160),SUBSTITUTE($R63,\"{\",CHAR(160),FN$1)),FIND(CHAR(160),SUBSTITUTE($R63,\"}\",CHAR(160),FN$1))-FIND(CHAR(160),SUBSTITUTE($R63,\"{\",CHAR(160),FN$1))+1),\"\")","v":""},{"$f":"IFERROR(MID($R63,FIND(CHAR(160),SUBSTITUTE($R63,\"{\",CHAR(160),FO$1)),FIND(CHAR(160),SUBSTITUTE($R63,\"}\",CHAR(160),FO$1))-FIND(CHAR(160),SUBSTITUTE($R63,\"{\",CHAR(160),FO$1))+1),\"\")","v":""},{"$f":"IFERROR(MID($R63,FIND(CHAR(160),SUBSTITUTE($R63,\"{\",CHAR(160),FP$1)),FIND(CHAR(160),SUBSTITUTE($R63,\"}\",CHAR(160),FP$1))-FIND(CHAR(160),SUBSTITUTE($R63,\"{\",CHAR(160),FP$1))+1),\"\")","v":""},{"$f":"IFERROR(MID($R63,FIND(CHAR(160),SUBSTITUTE($R63,\"{\",CHAR(160),FQ$1)),FIND(CHAR(160),SUBSTITUTE($R63,\"}\",CHAR(160),FQ$1))-FIND(CHAR(160),SUBSTITUTE($R63,\"{\",CHAR(160),FQ$1))+1),\"\")","v":""},{"$f":"IFERROR(MID($R63,FIND(CHAR(160),SUBSTITUTE($R63,\"{\",CHAR(160),FR$1)),FIND(CHAR(160),SUBSTITUTE($R63,\"}\",CHAR(160),FR$1))-FIND(CHAR(160),SUBSTITUTE($R63,\"{\",CHAR(160),FR$1))+1),\"\")","v":""},{"$f":"IFERROR(MID($R63,FIND(CHAR(160),SUBSTITUTE($R63,\"{\",CHAR(160),FS$1)),FIND(CHAR(160),SUBSTITUTE($R63,\"}\",CHAR(160),FS$1))-FIND(CHAR(160),SUBSTITUTE($R63,\"{\",CHAR(160),FS$1))+1),\"\")","v":""},{"$f":"IFERROR(MID($R63,FIND(CHAR(160),SUBSTITUTE($R63,\"{\",CHAR(160),FT$1)),FIND(CHAR(160),SUBSTITUTE($R63,\"}\",CHAR(160),FT$1))-FIND(CHAR(160),SUBSTITUTE($R63,\"{\",CHAR(160),FT$1))+1),\"\")","v":""},{"$f":"IFERROR(MID($R63,FIND(CHAR(160),SUBSTITUTE($R63,\"{\",CHAR(160),FU$1)),FIND(CHAR(160),SUBSTITUTE($R63,\"}\",CHAR(160),FU$1))-FIND(CHAR(160),SUBSTITUTE($R63,\"{\",CHAR(160),FU$1))+1),\"\")","v":""},{"$f":"IFERROR(MID($R63,FIND(CHAR(160),SUBSTITUTE($R63,\"{\",CHAR(160),FV$1)),FIND(CHAR(160),SUBSTITUTE($R63,\"}\",CHAR(160),FV$1))-FIND(CHAR(160),SUBSTITUTE($R63,\"{\",CHAR(160),FV$1))+1),\"\")","v":""},{"$f":"IFERROR(MID($U63,FIND(CHAR(160),SUBSTITUTE($U63,\"{\",CHAR(160),FW$1)),FIND(CHAR(160),SUBSTITUTE($U63,\"}\",CHAR(160),FW$1))-FIND(CHAR(160),SUBSTITUTE($U63,\"{\",CHAR(160),FW$1))+1),\"\")","v":""},{"$f":"IFERROR(MID($U63,FIND(CHAR(160),SUBSTITUTE($U63,\"{\",CHAR(160),FX$1)),FIND(CHAR(160),SUBSTITUTE($U63,\"}\",CHAR(160),FX$1))-FIND(CHAR(160),SUBSTITUTE($U63,\"{\",CHAR(160),FX$1))+1),\"\")","v":""},{"$f":"IFERROR(MID($U63,FIND(CHAR(160),SUBSTITUTE($U63,\"{\",CHAR(160),FY$1)),FIND(CHAR(160),SUBSTITUTE($U63,\"}\",CHAR(160),FY$1))-FIND(CHAR(160),SUBSTITUTE($U63,\"{\",CHAR(160),FY$1))+1),\"\")","v":""},{"$f":"IFERROR(MID($U63,FIND(CHAR(160),SUBSTITUTE($U63,\"{\",CHAR(160),FZ$1)),FIND(CHAR(160),SUBSTITUTE($U63,\"}\",CHAR(160),FZ$1))-FIND(CHAR(160),SUBSTITUTE($U63,\"{\",CHAR(160),FZ$1))+1),\"\")","v":""},{"$f":"IFERROR(MID($U63,FIND(CHAR(160),SUBSTITUTE($U63,\"{\",CHAR(160),GA$1)),FIND(CHAR(160),SUBSTITUTE($U63,\"}\",CHAR(160),GA$1))-FIND(CHAR(160),SUBSTITUTE($U63,\"{\",CHAR(160),GA$1))+1),\"\")","v":""},{"$f":"IFERROR(MID($U63,FIND(CHAR(160),SUBSTITUTE($U63,\"{\",CHAR(160),GB$1)),FIND(CHAR(160),SUBSTITUTE($U63,\"}\",CHAR(160),GB$1))-FIND(CHAR(160),SUBSTITUTE($U63,\"{\",CHAR(160),GB$1))+1),\"\")","v":""},{"$f":"IFERROR(MID($U63,FIND(CHAR(160),SUBSTITUTE($U63,\"{\",CHAR(160),GC$1)),FIND(CHAR(160),SUBSTITUTE($U63,\"}\",CHAR(160),GC$1))-FIND(CHAR(160),SUBSTITUTE($U63,\"{\",CHAR(160),GC$1))+1),\"\")","v":""},{"$f":"IFERROR(MID($U63,FIND(CHAR(160),SUBSTITUTE($U63,\"{\",CHAR(160),GD$1)),FIND(CHAR(160),SUBSTITUTE($U63,\"}\",CHAR(160),GD$1))-FIND(CHAR(160),SUBSTITUTE($U63,\"{\",CHAR(160),GD$1))+1),\"\")","v":""},{"$f":"IFERROR(MID($U63,FIND(CHAR(160),SUBSTITUTE($U63,\"{\",CHAR(160),GE$1)),FIND(CHAR(160),SUBSTITUTE($U63,\"}\",CHAR(160),GE$1))-FIND(CHAR(160),SUBSTITUTE($U63,\"{\",CHAR(160),GE$1))+1),\"\")","v":""},{"$f":"IFERROR(MID($U63,FIND(CHAR(160),SUBSTITUTE($U63,\"{\",CHAR(160),GF$1)),FIND(CHAR(160),SUBSTITUTE($U63,\"}\",CHAR(160),GF$1))-FIND(CHAR(160),SUBSTITUTE($U63,\"{\",CHAR(160),GF$1))+1),\"\")","v":""},{"$f":"IFERROR(MID($V63,FIND(CHAR(160),SUBSTITUTE($V63,\"{\",CHAR(160),GG$1)),FIND(CHAR(160),SUBSTITUTE($V63,\"}\",CHAR(160),GG$1))-FIND(CHAR(160),SUBSTITUTE($V63,\"{\",CHAR(160),GG$1))+1),\"\")","v":""},{"$f":"IFERROR(MID($V63,FIND(CHAR(160),SUBSTITUTE($V63,\"{\",CHAR(160),GH$1)),FIND(CHAR(160),SUBSTITUTE($V63,\"}\",CHAR(160),GH$1))-FIND(CHAR(160),SUBSTITUTE($V63,\"{\",CHAR(160),GH$1))+1),\"\")","v":""},{"$f":"IFERROR(MID($V63,FIND(CHAR(160),SUBSTITUTE($V63,\"{\",CHAR(160),GI$1)),FIND(CHAR(160),SUBSTITUTE($V63,\"}\",CHAR(160),GI$1))-FIND(CHAR(160),SUBSTITUTE($V63,\"{\",CHAR(160),GI$1))+1),\"\")","v":""},{"$f":"IFERROR(MID($V63,FIND(CHAR(160),SUBSTITUTE($V63,\"{\",CHAR(160),GJ$1)),FIND(CHAR(160),SUBSTITUTE($V63,\"}\",CHAR(160),GJ$1))-FIND(CHAR(160),SUBSTITUTE($V63,\"{\",CHAR(160),GJ$1))+1),\"\")","v":""},{"$f":"IFERROR(MID($V63,FIND(CHAR(160),SUBSTITUTE($V63,\"{\",CHAR(160),GK$1)),FIND(CHAR(160),SUBSTITUTE($V63,\"}\",CHAR(160),GK$1))-FIND(CHAR(160),SUBSTITUTE($V63,\"{\",CHAR(160),GK$1))+1),\"\")","v":""},{"$f":"IFERROR(MID($V63,FIND(CHAR(160),SUBSTITUTE($V63,\"{\",CHAR(160),GL$1)),FIND(CHAR(160),SUBSTITUTE($V63,\"}\",CHAR(160),GL$1))-FIND(CHAR(160),SUBSTITUTE($V63,\"{\",CHAR(160),GL$1))+1),\"\")","v":""},{"$f":"IFERROR(MID($V63,FIND(CHAR(160),SUBSTITUTE($V63,\"{\",CHAR(160),GM$1)),FIND(CHAR(160),SUBSTITUTE($V63,\"}\",CHAR(160),GM$1))-FIND(CHAR(160),SUBSTITUTE($V63,\"{\",CHAR(160),GM$1))+1),\"\")","v":""},{"$f":"IFERROR(MID($V63,FIND(CHAR(160),SUBSTITUTE($V63,\"{\",CHAR(160),GN$1)),FIND(CHAR(160),SUBSTITUTE($V63,\"}\",CHAR(160),GN$1))-FIND(CHAR(160),SUBSTITUTE($V63,\"{\",CHAR(160),GN$1))+1),\"\")","v":""},{"$f":"IFERROR(MID($V63,FIND(CHAR(160),SUBSTITUTE($V63,\"{\",CHAR(160),GO$1)),FIND(CHAR(160),SUBSTITUTE($V63,\"}\",CHAR(160),GO$1))-FIND(CHAR(160),SUBSTITUTE($V63,\"{\",CHAR(160),GO$1))+1),\"\")","v":""},{"$f":"IFERROR(MID($V63,FIND(CHAR(160),SUBSTITUTE($V63,\"{\",CHAR(160),GP$1)),FIND(CHAR(160),SUBSTITUTE($V63,\"}\",CHAR(160),GP$1))-FIND(CHAR(160),SUBSTITUTE($V63,\"{\",CHAR(160),GP$1))+1),\"\")","v":""},{"$f":"IFERROR(MID($W63,FIND(CHAR(160),SUBSTITUTE($W63,\"{\",CHAR(160),GQ$1)),FIND(CHAR(160),SUBSTITUTE($W63,\"}\",CHAR(160),GQ$1))-FIND(CHAR(160),SUBSTITUTE($W63,\"{\",CHAR(160),GQ$1))+1),\"\")","v":""},{"$f":"IFERROR(MID($W63,FIND(CHAR(160),SUBSTITUTE($W63,\"{\",CHAR(160),GR$1)),FIND(CHAR(160),SUBSTITUTE($W63,\"}\",CHAR(160),GR$1))-FIND(CHAR(160),SUBSTITUTE($W63,\"{\",CHAR(160),GR$1))+1),\"\")","v":""},{"$f":"IFERROR(MID($W63,FIND(CHAR(160),SUBSTITUTE($W63,\"{\",CHAR(160),GS$1)),FIND(CHAR(160),SUBSTITUTE($W63,\"}\",CHAR(160),GS$1))-FIND(CHAR(160),SUBSTITUTE($W63,\"{\",CHAR(160),GS$1))+1),\"\")","v":""},{"$f":"IFERROR(MID($W63,FIND(CHAR(160),SUBSTITUTE($W63,\"{\",CHAR(160),GT$1)),FIND(CHAR(160),SUBSTITUTE($W63,\"}\",CHAR(160),GT$1))-FIND(CHAR(160),SUBSTITUTE($W63,\"{\",CHAR(160),GT$1))+1),\"\")","v":""},{"$f":"IFERROR(MID($W63,FIND(CHAR(160),SUBSTITUTE($W63,\"{\",CHAR(160),GU$1)),FIND(CHAR(160),SUBSTITUTE($W63,\"}\",CHAR(160),GU$1))-FIND(CHAR(160),SUBSTITUTE($W63,\"{\",CHAR(160),GU$1))+1),\"\")","v":""},{"$f":"IFERROR(MID($W63,FIND(CHAR(160),SUBSTITUTE($W63,\"{\",CHAR(160),GV$1)),FIND(CHAR(160),SUBSTITUTE($W63,\"}\",CHAR(160),GV$1))-FIND(CHAR(160),SUBSTITUTE($W63,\"{\",CHAR(160),GV$1))+1),\"\")","v":""},{"$f":"IFERROR(MID($W63,FIND(CHAR(160),SUBSTITUTE($W63,\"{\",CHAR(160),GW$1)),FIND(CHAR(160),SUBSTITUTE($W63,\"}\",CHAR(160),GW$1))-FIND(CHAR(160),SUBSTITUTE($W63,\"{\",CHAR(160),GW$1))+1),\"\")","v":""},{"$f":"IFERROR(MID($W63,FIND(CHAR(160),SUBSTITUTE($W63,\"{\",CHAR(160),GX$1)),FIND(CHAR(160),SUBSTITUTE($W63,\"}\",CHAR(160),GX$1))-FIND(CHAR(160),SUBSTITUTE($W63,\"{\",CHAR(160),GX$1))+1),\"\")","v":""},{"$f":"IFERROR(MID($W63,FIND(CHAR(160),SUBSTITUTE($W63,\"{\",CHAR(160),GY$1)),FIND(CHAR(160),SUBSTITUTE($W63,\"}\",CHAR(160),GY$1))-FIND(CHAR(160),SUBSTITUTE($W63,\"{\",CHAR(160),GY$1))+1),\"\")","v":""},{"$f":"IFERROR(MID($W63,FIND(CHAR(160),SUBSTITUTE($W63,\"{\",CHAR(160),GZ$1)),FIND(CHAR(160),SUBSTITUTE($W63,\"}\",CHAR(160),GZ$1))-FIND(CHAR(160),SUBSTITUTE($W63,\"{\",CHAR(160),GZ$1))+1),\"\")","v":""},{"$f":"IFERROR(MID($X63,FIND(CHAR(160),SUBSTITUTE($X63,\"{\",CHAR(160),HA$1)),FIND(CHAR(160),SUBSTITUTE($X63,\"}\",CHAR(160),HA$1))-FIND(CHAR(160),SUBSTITUTE($X63,\"{\",CHAR(160),HA$1))+1),\"\")","v":""},{"$f":"IFERROR(MID($X63,FIND(CHAR(160),SUBSTITUTE($X63,\"{\",CHAR(160),HB$1)),FIND(CHAR(160),SUBSTITUTE($X63,\"}\",CHAR(160),HB$1))-FIND(CHAR(160),SUBSTITUTE($X63,\"{\",CHAR(160),HB$1))+1),\"\")","v":""},{"$f":"IFERROR(MID($X63,FIND(CHAR(160),SUBSTITUTE($X63,\"{\",CHAR(160),HC$1)),FIND(CHAR(160),SUBSTITUTE($X63,\"}\",CHAR(160),HC$1))-FIND(CHAR(160),SUBSTITUTE($X63,\"{\",CHAR(160),HC$1))+1),\"\")","v":""},{"$f":"IFERROR(MID($X63,FIND(CHAR(160),SUBSTITUTE($X63,\"{\",CHAR(160),HD$1)),FIND(CHAR(160),SUBSTITUTE($X63,\"}\",CHAR(160),HD$1))-FIND(CHAR(160),SUBSTITUTE($X63,\"{\",CHAR(160),HD$1))+1),\"\")","v":""},{"$f":"IFERROR(MID($X63,FIND(CHAR(160),SUBSTITUTE($X63,\"{\",CHAR(160),HE$1)),FIND(CHAR(160),SUBSTITUTE($X63,\"}\",CHAR(160),HE$1))-FIND(CHAR(160),SUBSTITUTE($X63,\"{\",CHAR(160),HE$1))+1),\"\")","v":""},{"$f":"IFERROR(MID($X63,FIND(CHAR(160),SUBSTITUTE($X63,\"{\",CHAR(160),HF$1)),FIND(CHAR(160),SUBSTITUTE($X63,\"}\",CHAR(160),HF$1))-FIND(CHAR(160),SUBSTITUTE($X63,\"{\",CHAR(160),HF$1))+1),\"\")","v":""},{"$f":"IFERROR(MID($X63,FIND(CHAR(160),SUBSTITUTE($X63,\"{\",CHAR(160),HG$1)),FIND(CHAR(160),SUBSTITUTE($X63,\"}\",CHAR(160),HG$1))-FIND(CHAR(160),SUBSTITUTE($X63,\"{\",CHAR(160),HG$1))+1),\"\")","v":""},{"$f":"IFERROR(MID($X63,FIND(CHAR(160),SUBSTITUTE($X63,\"{\",CHAR(160),HH$1)),FIND(CHAR(160),SUBSTITUTE($X63,\"}\",CHAR(160),HH$1))-FIND(CHAR(160),SUBSTITUTE($X63,\"{\",CHAR(160),HH$1))+1),\"\")","v":""},{"$f":"IFERROR(MID($X63,FIND(CHAR(160),SUBSTITUTE($X63,\"{\",CHAR(160),HI$1)),FIND(CHAR(160),SUBSTITUTE($X63,\"}\",CHAR(160),HI$1))-FIND(CHAR(160),SUBSTITUTE($X63,\"{\",CHAR(160),HI$1))+1),\"\")","v":""},{"$f":"IFERROR(MID($X63,FIND(CHAR(160),SUBSTITUTE($X63,\"{\",CHAR(160),HJ$1)),FIND(CHAR(160),SUBSTITUTE($X63,\"}\",CHAR(160),HJ$1))-FIND(CHAR(160),SUBSTITUTE($X63,\"{\",CHAR(160),HJ$1))+1),\"\")","v":""},{"$f":"IFERROR(MID($Y63,FIND(CHAR(160),SUBSTITUTE($Y63,\"{\",CHAR(160),HK$1)),FIND(CHAR(160),SUBSTITUTE($Y63,\"}\",CHAR(160),HK$1))-FIND(CHAR(160),SUBSTITUTE($Y63,\"{\",CHAR(160),HK$1))+1),\"\")","v":""},{"$f":"IFERROR(MID($Y63,FIND(CHAR(160),SUBSTITUTE($Y63,\"{\",CHAR(160),HL$1)),FIND(CHAR(160),SUBSTITUTE($Y63,\"}\",CHAR(160),HL$1))-FIND(CHAR(160),SUBSTITUTE($Y63,\"{\",CHAR(160),HL$1))+1),\"\")","v":""},{"$f":"IFERROR(MID($Y63,FIND(CHAR(160),SUBSTITUTE($Y63,\"{\",CHAR(160),HM$1)),FIND(CHAR(160),SUBSTITUTE($Y63,\"}\",CHAR(160),HM$1))-FIND(CHAR(160),SUBSTITUTE($Y63,\"{\",CHAR(160),HM$1))+1),\"\")","v":""},{"$f":"IFERROR(MID($Y63,FIND(CHAR(160),SUBSTITUTE($Y63,\"{\",CHAR(160),HN$1)),FIND(CHAR(160),SUBSTITUTE($Y63,\"}\",CHAR(160),HN$1))-FIND(CHAR(160),SUBSTITUTE($Y63,\"{\",CHAR(160),HN$1))+1),\"\")","v":""},{"$f":"IFERROR(MID($Y63,FIND(CHAR(160),SUBSTITUTE($Y63,\"{\",CHAR(160),HO$1)),FIND(CHAR(160),SUBSTITUTE($Y63,\"}\",CHAR(160),HO$1))-FIND(CHAR(160),SUBSTITUTE($Y63,\"{\",CHAR(160),HO$1))+1),\"\")","v":""},{"$f":"IFERROR(MID($Y63,FIND(CHAR(160),SUBSTITUTE($Y63,\"{\",CHAR(160),HP$1)),FIND(CHAR(160),SUBSTITUTE($Y63,\"}\",CHAR(160),HP$1))-FIND(CHAR(160),SUBSTITUTE($Y63,\"{\",CHAR(160),HP$1))+1),\"\")","v":""},{"$f":"IFERROR(MID($Y63,FIND(CHAR(160),SUBSTITUTE($Y63,\"{\",CHAR(160),HQ$1)),FIND(CHAR(160),SUBSTITUTE($Y63,\"}\",CHAR(160),HQ$1))-FIND(CHAR(160),SUBSTITUTE($Y63,\"{\",CHAR(160),HQ$1))+1),\"\")","v":""},{"$f":"IFERROR(MID($Y63,FIND(CHAR(160),SUBSTITUTE($Y63,\"{\",CHAR(160),HR$1)),FIND(CHAR(160),SUBSTITUTE($Y63,\"}\",CHAR(160),HR$1))-FIND(CHAR(160),SUBSTITUTE($Y63,\"{\",CHAR(160),HR$1))+1),\"\")","v":""},{"$f":"IFERROR(MID($Y63,FIND(CHAR(160),SUBSTITUTE($Y63,\"{\",CHAR(160),HS$1)),FIND(CHAR(160),SUBSTITUTE($Y63,\"}\",CHAR(160),HS$1))-FIND(CHAR(160),SUBSTITUTE($Y63,\"{\",CHAR(160),HS$1))+1),\"\")","v":""},{"$f":"IFERROR(MID($Y63,FIND(CHAR(160),SUBSTITUTE($Y63,\"{\",CHAR(160),HT$1)),FIND(CHAR(160),SUBSTITUTE($Y63,\"}\",CHAR(160),HT$1))-FIND(CHAR(160),SUBSTITUTE($Y63,\"{\",CHAR(160),HT$1))+1),\"\")","v":""},{"$f":"IFERROR(MID($Z63,FIND(CHAR(160),SUBSTITUTE($Z63,\"{\",CHAR(160),HU$1)),FIND(CHAR(160),SUBSTITUTE($Z63,\"}\",CHAR(160),HU$1))-FIND(CHAR(160),SUBSTITUTE($Z63,\"{\",CHAR(160),HU$1))+1),\"\")","v":""},{"$f":"IFERROR(MID($Z63,FIND(CHAR(160),SUBSTITUTE($Z63,\"{\",CHAR(160),HV$1)),FIND(CHAR(160),SUBSTITUTE($Z63,\"}\",CHAR(160),HV$1))-FIND(CHAR(160),SUBSTITUTE($Z63,\"{\",CHAR(160),HV$1))+1),\"\")","v":""},{"$f":"IFERROR(MID($Z63,FIND(CHAR(160),SUBSTITUTE($Z63,\"{\",CHAR(160),HW$1)),FIND(CHAR(160),SUBSTITUTE($Z63,\"}\",CHAR(160),HW$1))-FIND(CHAR(160),SUBSTITUTE($Z63,\"{\",CHAR(160),HW$1))+1),\"\")","v":""},{"$f":"IFERROR(MID($Z63,FIND(CHAR(160),SUBSTITUTE($Z63,\"{\",CHAR(160),HX$1)),FIND(CHAR(160),SUBSTITUTE($Z63,\"}\",CHAR(160),HX$1))-FIND(CHAR(160),SUBSTITUTE($Z63,\"{\",CHAR(160),HX$1))+1),\"\")","v":""},{"$f":"IFERROR(MID($Z63,FIND(CHAR(160),SUBSTITUTE($Z63,\"{\",CHAR(160),HY$1)),FIND(CHAR(160),SUBSTITUTE($Z63,\"}\",CHAR(160),HY$1))-FIND(CHAR(160),SUBSTITUTE($Z63,\"{\",CHAR(160),HY$1))+1),\"\")","v":""},{"$f":"IFERROR(MID($Z63,FIND(CHAR(160),SUBSTITUTE($Z63,\"{\",CHAR(160),HZ$1)),FIND(CHAR(160),SUBSTITUTE($Z63,\"}\",CHAR(160),HZ$1))-FIND(CHAR(160),SUBSTITUTE($Z63,\"{\",CHAR(160),HZ$1))+1),\"\")","v":""},{"$f":"IFERROR(MID($Z63,FIND(CHAR(160),SUBSTITUTE($Z63,\"{\",CHAR(160),IA$1)),FIND(CHAR(160),SUBSTITUTE($Z63,\"}\",CHAR(160),IA$1))-FIND(CHAR(160),SUBSTITUTE($Z63,\"{\",CHAR(160),IA$1))+1),\"\")","v":""},{"$f":"IFERROR(MID($Z63,FIND(CHAR(160),SUBSTITUTE($Z63,\"{\",CHAR(160),IB$1)),FIND(CHAR(160),SUBSTITUTE($Z63,\"}\",CHAR(160),IB$1))-FIND(CHAR(160),SUBSTITUTE($Z63,\"{\",CHAR(160),IB$1))+1),\"\")","v":""},{"$f":"IFERROR(MID($Z63,FIND(CHAR(160),SUBSTITUTE($Z63,\"{\",CHAR(160),IC$1)),FIND(CHAR(160),SUBSTITUTE($Z63,\"}\",CHAR(160),IC$1))-FIND(CHAR(160),SUBSTITUTE($Z63,\"{\",CHAR(160),IC$1))+1),\"\")","v":""},{"$f":"IFERROR(MID($Z63,FIND(CHAR(160),SUBSTITUTE($Z63,\"{\",CHAR(160),ID$1)),FIND(CHAR(160),SUBSTITUTE($Z63,\"}\",CHAR(160),ID$1))-FIND(CHAR(160),SUBSTITUTE($Z63,\"{\",CHAR(160),ID$1))+1),\"\")","v":""},{"$f":"IFERROR(MID($AA63,FIND(CHAR(160),SUBSTITUTE($AA63,\"{\",CHAR(160),IE$1)),FIND(CHAR(160),SUBSTITUTE($AA63,\"}\",CHAR(160),IE$1))-FIND(CHAR(160),SUBSTITUTE($AA63,\"{\",CHAR(160),IE$1))+1),\"\")","v":""},{"$f":"IFERROR(MID($AA63,FIND(CHAR(160),SUBSTITUTE($AA63,\"{\",CHAR(160),IF$1)),FIND(CHAR(160),SUBSTITUTE($AA63,\"}\",CHAR(160),IF$1))-FIND(CHAR(160),SUBSTITUTE($AA63,\"{\",CHAR(160),IF$1))+1),\"\")","v":""},{"$f":"IFERROR(MID($AA63,FIND(CHAR(160),SUBSTITUTE($AA63,\"{\",CHAR(160),IG$1)),FIND(CHAR(160),SUBSTITUTE($AA63,\"}\",CHAR(160),IG$1))-FIND(CHAR(160),SUBSTITUTE($AA63,\"{\",CHAR(160),IG$1))+1),\"\")","v":""},{"$f":"IFERROR(MID($AA63,FIND(CHAR(160),SUBSTITUTE($AA63,\"{\",CHAR(160),IH$1)),FIND(CHAR(160),SUBSTITUTE($AA63,\"}\",CHAR(160),IH$1))-FIND(CHAR(160),SUBSTITUTE($AA63,\"{\",CHAR(160),IH$1))+1),\"\")","v":""},{"$f":"IFERROR(MID($AA63,FIND(CHAR(160),SUBSTITUTE($AA63,\"{\",CHAR(160),II$1)),FIND(CHAR(160),SUBSTITUTE($AA63,\"}\",CHAR(160),II$1))-FIND(CHAR(160),SUBSTITUTE($AA63,\"{\",CHAR(160),II$1))+1),\"\")","v":""},{"$f":"IFERROR(MID($AA63,FIND(CHAR(160),SUBSTITUTE($AA63,\"{\",CHAR(160),IJ$1)),FIND(CHAR(160),SUBSTITUTE($AA63,\"}\",CHAR(160),IJ$1))-FIND(CHAR(160),SUBSTITUTE($AA63,\"{\",CHAR(160),IJ$1))+1),\"\")","v":""},{"$f":"IFERROR(MID($AA63,FIND(CHAR(160),SUBSTITUTE($AA63,\"{\",CHAR(160),IK$1)),FIND(CHAR(160),SUBSTITUTE($AA63,\"}\",CHAR(160),IK$1))-FIND(CHAR(160),SUBSTITUTE($AA63,\"{\",CHAR(160),IK$1))+1),\"\")","v":""},{"$f":"IFERROR(MID($AA63,FIND(CHAR(160),SUBSTITUTE($AA63,\"{\",CHAR(160),IL$1)),FIND(CHAR(160),SUBSTITUTE($AA63,\"}\",CHAR(160),IL$1))-FIND(CHAR(160),SUBSTITUTE($AA63,\"{\",CHAR(160),IL$1))+1),\"\")","v":""},{"$f":"IFERROR(MID($AA63,FIND(CHAR(160),SUBSTITUTE($AA63,\"{\",CHAR(160),IM$1)),FIND(CHAR(160),SUBSTITUTE($AA63,\"}\",CHAR(160),IM$1))-FIND(CHAR(160),SUBSTITUTE($AA63,\"{\",CHAR(160),IM$1))+1),\"\")","v":""},{"$f":"IFERROR(MID($AA63,FIND(CHAR(160),SUBSTITUTE($AA63,\"{\",CHAR(160),IN$1)),FIND(CHAR(160),SUBSTITUTE($AA63,\"}\",CHAR(160),IN$1))-FIND(CHAR(160),SUBSTITUTE($AA63,\"{\",CHAR(160),IN$1))+1),\"\")","v":""},{"$f":"IFERROR(MID($AB63,FIND(CHAR(160),SUBSTITUTE($AB63,\"{\",CHAR(160),IO$1)),FIND(CHAR(160),SUBSTITUTE($AB63,\"}\",CHAR(160),IO$1))-FIND(CHAR(160),SUBSTITUTE($AB63,\"{\",CHAR(160),IO$1))+1),\"\")","v":""},{"$f":"IFERROR(MID($AB63,FIND(CHAR(160),SUBSTITUTE($AB63,\"{\",CHAR(160),IP$1)),FIND(CHAR(160),SUBSTITUTE($AB63,\"}\",CHAR(160),IP$1))-FIND(CHAR(160),SUBSTITUTE($AB63,\"{\",CHAR(160),IP$1))+1),\"\")","v":""},{"$f":"IFERROR(MID($AB63,FIND(CHAR(160),SUBSTITUTE($AB63,\"{\",CHAR(160),IQ$1)),FIND(CHAR(160),SUBSTITUTE($AB63,\"}\",CHAR(160),IQ$1))-FIND(CHAR(160),SUBSTITUTE($AB63,\"{\",CHAR(160),IQ$1))+1),\"\")","v":""},{"$f":"IFERROR(MID($AB63,FIND(CHAR(160),SUBSTITUTE($AB63,\"{\",CHAR(160),IR$1)),FIND(CHAR(160),SUBSTITUTE($AB63,\"}\",CHAR(160),IR$1))-FIND(CHAR(160),SUBSTITUTE($AB63,\"{\",CHAR(160),IR$1))+1),\"\")","v":""},{"$f":"IFERROR(MID($AB63,FIND(CHAR(160),SUBSTITUTE($AB63,\"{\",CHAR(160),IS$1)),FIND(CHAR(160),SUBSTITUTE($AB63,\"}\",CHAR(160),IS$1))-FIND(CHAR(160),SUBSTITUTE($AB63,\"{\",CHAR(160),IS$1))+1),\"\")","v":""},{"$f":"IFERROR(MID($AB63,FIND(CHAR(160),SUBSTITUTE($AB63,\"{\",CHAR(160),IT$1)),FIND(CHAR(160),SUBSTITUTE($AB63,\"}\",CHAR(160),IT$1))-FIND(CHAR(160),SUBSTITUTE($AB63,\"{\",CHAR(160),IT$1))+1),\"\")","v":""},{"$f":"IFERROR(MID($AB63,FIND(CHAR(160),SUBSTITUTE($AB63,\"{\",CHAR(160),IU$1)),FIND(CHAR(160),SUBSTITUTE($AB63,\"}\",CHAR(160),IU$1))-FIND(CHAR(160),SUBSTITUTE($AB63,\"{\",CHAR(160),IU$1))+1),\"\")","v":""},{"$f":"IFERROR(MID($AB63,FIND(CHAR(160),SUBSTITUTE($AB63,\"{\",CHAR(160),IV$1)),FIND(CHAR(160),SUBSTITUTE($AB63,\"}\",CHAR(160),IV$1))-FIND(CHAR(160),SUBSTITUTE($AB63,\"{\",CHAR(160),IV$1))+1),\"\")","v":""},{"$f":"IFERROR(MID($AB63,FIND(CHAR(160),SUBSTITUTE($AB63,\"{\",CHAR(160),IW$1)),FIND(CHAR(160),SUBSTITUTE($AB63,\"}\",CHAR(160),IW$1))-FIND(CHAR(160),SUBSTITUTE($AB63,\"{\",CHAR(160),IW$1))+1),\"\")","v":""},{"$f":"IFERROR(MID($AB63,FIND(CHAR(160),SUBSTITUTE($AB63,\"{\",CHAR(160),IX$1)),FIND(CHAR(160),SUBSTITUTE($AB63,\"}\",CHAR(160),IX$1))-FIND(CHAR(160),SUBSTITUTE($AB63,\"{\",CHAR(160),IX$1))+1),\"\")","v":""},null,{"$f":"10-COUNTIF(DU63:ED63,\"\")","v":2}]
["C&I HVAC - Heat Pump Retrofits for Small Business","Ductless Heat Pump Retrofit","DHPCR","2021-07-01","2022-06-30","Per Measure",2605,0,"Calculated","if({Existing Heating System Fuel}=1,0,Min(Min({Measure:Quantity},3),{Number of existing zones/thermostats})*(1600+{SBI Active Region}*400)*{SGS/General Service Customer})",0,"2021-07-01","2022-06-30","Calculated","if({Existing Heating System Fuel}=6,6169,if({Existing Heating System Fuel}=0,-1323.8,-3197))+({Measure:Quantity}-1)*if({Existing Heating System Fuel}=6,3797,if({Existing Heating System Fuel}=0,-867.8,-2034))",null,null,null,null,null,"if({Existing Heating System Fuel}=6,1.169,if({Existing Heating System Fuel}=0,-0.305,-0.673))+({Measure:Quantity}-1)*if({Existing Heating System Fuel}=6,0.755,if({Existing Heating System Fuel}=0,-0.207,-0.448))","0.071+(1*{Measure:Quantity}-1)*0.039","10*(if({Existing Heating System Fuel}=1,1,if({Existing Heating System Fuel}=0,0.23,0))*37.71+(1*{Measure:Quantity}-1)*if({Existing Heating System Fuel}=1,1,if({Existing Heating System Fuel}=0,0.23,0))*23.96)","if({Existing Heating System Fuel}=2,1,if({Existing Heating System Fuel}=0,0.09,0))*37.71+(1*{Measure:Quantity}-1)*if({Existing Heating System Fuel}=2,1,if({Existing Heating System Fuel}=0,0.09,0))*23.96","if({Existing Heating System Fuel}=3,1,if({Existing Heating System Fuel}=0,0.48,0))*37.71+(1*{Measure:Quantity}-1)*if({Existing Heating System Fuel}=3,1,if({Existing Heating System Fuel}=0,0.48,0))*23.96","if({Existing Heating System Fuel}=4,1,if({Existing Heating System Fuel}=0,0,0))*37.71+(1*{Measure:Quantity}-1)*if({Existing Heating System Fuel}=4,1,if({Existing Heating System Fuel}=0,0,0))*23.96","if({Existing Heating System Fuel}=5,1,if({Existing Heating System Fuel}=0,0,0))*37.71+(1*{Measure:Quantity}-1)*if({Existing Heating System Fuel}=5,1,if({Existing Heating System Fuel}=0,0,0))*23.96","","2020-07-16","2022-06-30",18,1,1,0.38,0.53300000000000003,4.4999999999999998E-2,4.1000000000000002E-2,1,1,1,0.25,0,null,{"$f":"DU64","v":"{Existing Heating System Fuel}"},0,{"$f":"DV64","v":"{Measure:Quantity}"},1,{"$f":"DW64","v":"{Number of existing zones/thermostats}"},1,{"$f":"DX64","v":"{SBI Active Region}"},0,{"$f":"DY64","v":"{SGS/General Service Customer}"},1,{"$f":"DZ64","v":""},null,{"$f":"EA64","v":""},null,{"$f":"EB64","v":""},null,{"$f":"EC64","v":""},null,{"$f":"ED64","v":""},null,{"$f":"IF(AS64=6,6169,IF(AS64=0,-1323.8,-3197))+(AU64-1)*IF(AS64=6,3797,IF(AS64=0,-867.8,-2034))","v":-1323.8},0,0,0,0,0,{"$f":"IF(AS64=6,1.169,IF(AS64=0,-0.305,-0.673))+(AU64-1)*IF(AS64=6,0.755,IF(AS64=0,-0.207,-0.448))","v":-0.30499999999999999},{"$f":"0.071+(1*AU64-1)*0.039","v":7.0999999999999994E-2},{"$f":"10*(IF(AS64=1,1,IF(AS64=0,0.23,0))*37.71+(1*AU64-1)*IF(AS64=1,1,IF(AS64=0,0.23,0))*23.96)","v":86.733000000000004},{"$f":"IF(AS64=2,1,IF(AS64=0,0.09,0))*37.71+(1*AU64-1)*IF(AS64=2,1,IF(AS64=0,0.09,0))*23.96","v":3.3938999999999999},{"$f":"IF(AS64=3,1,IF(AS64=0,0.48,0))*37.71+(1*AU64-1)*IF(AS64=3,1,IF(AS64=0,0.48,0))*23.96","v":18.1008},{"$f":"IF(AS64=4,1,IF(AS64=0,0,0))*37.71+(1*AU64-1)*IF(AS64=4,1,IF(AS64=0,0,0))*23.96","v":0},{"$f":"IF(AS64=5,1,IF(AS64=0,0,0))*37.71+(1*AU64-1)*IF(AS64=5,1,IF(AS64=0,0,0))*23.96","v":0},0,null,"Res","Default DR",{"$f":"Benefits(BL64,BR64,BS64,BT64,BU64,BV64,BW64,BX64,BY64,BZ64,AE64,AH64,AI64,AJ64,AK64,AL64,AM64,AN64,AO64,AP64,CA64,CB64)","v":-2083.9665499092389},-1172.8877821580795,1926.216899064533,8744.9109433321446,0,2299.7923575394639,0,0,0,{"$f":"SUMPRODUCT(CC64:CK64,--(CC64:CK64>0))","v":12970.920199936141},{"$f":"-SUMPRODUCT(CC64:CK64,--(CC64:CK64<0))","v":3256.8543320673184},null,{"$f":"2605","v":2605},null,null,{"$f":"CM64+CO64","v":5861.854332067318},{"$f":"IF(NetOrGross=\"Net\",(1-AO64+AP64),1)","v":1},{"$f":"(SUMPRODUCT(CC64:CJ64,--(CC64:CJ64>0))+CN64)*CS64/((-SUMPRODUCT(CC64:CJ64,--(CC64:CJ64<0))+MAX(CO64,CV64)+CP64+CQ64)*CS64+IF(FRIncentives=\"Yes\",CV64*(1-CS64),0))","v":2.2127674051841626},1,{"$f":"IF(AS64=1,0,MIN(MIN(AU64,3),AW64)*(1600+AY64*400)*BA64)","v":1600},null,"Electric","y",1,{"$f":"IF(F64=\"Manual Entry\",\"Manual\",IF(G64=\"\",0,\"X=\"&SUBSTITUTE(SUBSTITUTE(SUBSTITUTE(SUBSTITUTE(SUBSTITUTE(SUBSTITUTE(SUBSTITUTE(SUBSTITUTE(SUBSTITUTE(SUBSTITUTE(SUBSTITUTE(SUBSTITUTE(G64,$ED64,$ED$2&ROW($ED64)),$EC64,$EC$2&ROW($EC64)),$EB64,$EB$2&ROW($EB64)),$EA64,$EA$2&ROW($EA64)),$DZ64,$DZ$2&ROW($DZ64)),$DY64,$DY$2&ROW($DY64)),$DX64,$DX$2&ROW($DX64)),$DW64,$DW$2&ROW($DW64)),$DV64,$DV$2&ROW($DV64)),$DU64,$DU$2&ROW($DU64)),$DT64,$DT$2&ROW($DT64)),$DS64,$DS$2&ROW($DS64))))","v":"X=2605"},{"$f":"IF(I64=\"Manual Entry\",\"Manual\",IF(J64=\"\",0,\"X=\"&SUBSTITUTE(SUBSTITUTE(SUBSTITUTE(SUBSTITUTE(SUBSTITUTE(SUBSTITUTE(SUBSTITUTE(SUBSTITUTE(SUBSTITUTE(SUBSTITUTE(SUBSTITUTE(SUBSTITUTE(J64,$ED64,$ED$2&ROW($ED64)),$EC64,$EC$2&ROW($EC64)),$EB64,$EB$2&ROW($EB64)),$EA64,$EA$2&ROW($EA64)),$DZ64,$DZ$2&ROW($DZ64)),$DY64,$DY$2&ROW($DY64)),$DX64,$DX$2&ROW($DX64)),$DW64,$DW$2&ROW($DW64)),$DV64,$DV$2&ROW($DV64)),$DU64,$DU$2&ROW($DU64)),$DT64,$DT$2&ROW($DT64)),$DS64,$DS$2&ROW($DS64))))","v":"X=if(AS64=1,0,Min(Min(AU64,3),AW64)*(1600+AY64*400)*BA64)"},{"$f":"IF(O64=\"\",0,\"X=\"&SUBSTITUTE(SUBSTITUTE(SUBSTITUTE(SUBSTITUTE(SUBSTITUTE(SUBSTITUTE(SUBSTITUTE(SUBSTITUTE(SUBSTITUTE(SUBSTITUTE(SUBSTITUTE(SUBSTITUTE(O64,$ED64,$ED$2&ROW($ED64)),$EC64,$EC$2&ROW($EC64)),$EB64,$EB$2&ROW($EB64)),$EA64,$EA$2&ROW($EA64)),$DZ64,$DZ$2&ROW($DZ64)),$DY64,$DY$2&ROW($DY64)),$DX64,$DX$2&ROW($DX64)),$DW64,$DW$2&ROW($DW64)),$DV64,$DV$2&ROW($DV64)),$DU64,$DU$2&ROW($DU64)),$DT64,$DT$2&ROW($DT64)),$DS64,$DS$2&ROW($DS64)))","v":"X=if(AS64=6,6169,if(AS64=0,-1323.8,-3197))+(AU64-1)*if(AS64=6,3797,if(AS64=0,-867.8,-2034))"},{"$f":"IF(P64=\"\",0,\"X=\"&SUBSTITUTE(SUBSTITUTE(SUBSTITUTE(SUBSTITUTE(SUBSTITUTE(SUBSTITUTE(SUBSTITUTE(SUBSTITUTE(SUBSTITUTE(SUBSTITUTE(SUBSTITUTE(SUBSTITUTE(P64,$ED64,$ED$2&ROW($ED64)),$EC64,$EC$2&ROW($EC64)),$EB64,$EB$2&ROW($EB64)),$EA64,$EA$2&ROW($EA64)),$DZ64,$DZ$2&ROW($DZ64)),$DY64,$DY$2&ROW($DY64)),$DX64,$DX$2&ROW($DX64)),$DW64,$DW$2&ROW($DW64)),$DV64,$DV$2&ROW($DV64)),$DU64,$DU$2&ROW($DU64)),$DT64,$DT$2&ROW($DT64)),$DS64,$DS$2&ROW($DS64)))","v":0},{"$f":"IF(Q64=\"\",0,\"X=\"&SUBSTITUTE(SUBSTITUTE(SUBSTITUTE(SUBSTITUTE(SUBSTITUTE(SUBSTITUTE(SUBSTITUTE(SUBSTITUTE(SUBSTITUTE(SUBSTITUTE(SUBSTITUTE(SUBSTITUTE(Q64,$ED64,$ED$2&ROW($ED64)),$EC64,$EC$2&ROW($EC64)),$EB64,$EB$2&ROW($EB64)),$EA64,$EA$2&ROW($EA64)),$DZ64,$DZ$2&ROW($DZ64)),$DY64,$DY$2&ROW($DY64)),$DX64,$DX$2&ROW($DX64)),$DW64,$DW$2&ROW($DW64)),$DV64,$DV$2&ROW($DV64)),$DU64,$DU$2&ROW($DU64)),$DT64,$DT$2&ROW($DT64)),$DS64,$DS$2&ROW($DS64)))","v":0},{"$f":"IF(R64=\"\",0,\"X=\"&SUBSTITUTE(SUBSTITUTE(SUBSTITUTE(SUBSTITUTE(SUBSTITUTE(SUBSTITUTE(SUBSTITUTE(SUBSTITUTE(SUBSTITUTE(SUBSTITUTE(SUBSTITUTE(SUBSTITUTE(R64,$ED64,$ED$2&ROW($ED64)),$EC64,$EC$2&ROW($EC64)),$EB64,$EB$2&ROW($EB64)),$EA64,$EA$2&ROW($EA64)),$DZ64,$DZ$2&ROW($DZ64)),$DY64,$DY$2&ROW($DY64)),$DX64,$DX$2&ROW($DX64)),$DW64,$DW$2&ROW($DW64)),$DV64,$DV$2&ROW($DV64)),$DU64,$DU$2&ROW($DU64)),$DT64,$DT$2&ROW($DT64)),$DS64,$DS$2&ROW($DS64)))","v":0},{"$f":"IF(S64=\"\",0,\"X=\"&SUBSTITUTE(SUBSTITUTE(SUBSTITUTE(SUBSTITUTE(SUBSTITUTE(SUBSTITUTE(SUBSTITUTE(SUBSTITUTE(SUBSTITUTE(SUBSTITUTE(SUBSTITUTE(SUBSTITUTE(S64,$ED64,$ED$2&ROW($ED64)),$EC64,$EC$2&ROW($EC64)),$EB64,$EB$2&ROW($EB64)),$EA64,$EA$2&ROW($EA64)),$DZ64,$DZ$2&ROW($DZ64)),$DY64,$DY$2&ROW($DY64)),$DX64,$DX$2&ROW($DX64)),$DW64,$DW$2&ROW($DW64)),$DV64,$DV$2&ROW($DV64)),$DU64,$DU$2&ROW($DU64)),$DT64,$DT$2&ROW($DT64)),$DS64,$DS$2&ROW($DS64)))","v":0},{"$f":"IF(T64=\"\",0,\"X=\"&SUBSTITUTE(SUBSTITUTE(SUBSTITUTE(SUBSTITUTE(SUBSTITUTE(SUBSTITUTE(SUBSTITUTE(SUBSTITUTE(SUBSTITUTE(SUBSTITUTE(SUBSTITUTE(SUBSTITUTE(T64,$ED64,$ED$2&ROW($ED64)),$EC64,$EC$2&ROW($EC64)),$EB64,$EB$2&ROW($EB64)),$EA64,$EA$2&ROW($EA64)),$DZ64,$DZ$2&ROW($DZ64)),$DY64,$DY$2&ROW($DY64)),$DX64,$DX$2&ROW($DX64)),$DW64,$DW$2&ROW($DW64)),$DV64,$DV$2&ROW($DV64)),$DU64,$DU$2&ROW($DU64)),$DT64,$DT$2&ROW($DT64)),$DS64,$DS$2&ROW($DS64)))","v":0},{"$f":"IF(U64=\"\",0,\"X=\"&SUBSTITUTE(SUBSTITUTE(SUBSTITUTE(SUBSTITUTE(SUBSTITUTE(SUBSTITUTE(SUBSTITUTE(SUBSTITUTE(SUBSTITUTE(SUBSTITUTE(SUBSTITUTE(SUBSTITUTE(U64,$ED64,$ED$2&ROW($ED64)),$EC64,$EC$2&ROW($EC64)),$EB64,$EB$2&ROW($EB64)),$EA64,$EA$2&ROW($EA64)),$DZ64,$DZ$2&ROW($DZ64)),$DY64,$DY$2&ROW($DY64)),$DX64,$DX$2&ROW($DX64)),$DW64,$DW$2&ROW($DW64)),$DV64,$DV$2&ROW($DV64)),$DU64,$DU$2&ROW($DU64)),$DT64,$DT$2&ROW($DT64)),$DS64,$DS$2&ROW($DS64)))","v":"X=if(AS64=6,1.169,if(AS64=0,-0.305,-0.673))+(AU64-1)*if(AS64=6,0.755,if(AS64=0,-0.207,-0.448))"},{"$f":"IF(V64=\"\",0,\"X=\"&SUBSTITUTE(SUBSTITUTE(SUBSTITUTE(SUBSTITUTE(SUBSTITUTE(SUBSTITUTE(SUBSTITUTE(SUBSTITUTE(SUBSTITUTE(SUBSTITUTE(SUBSTITUTE(SUBSTITUTE(V64,$ED64,$ED$2&ROW($ED64)),$EC64,$EC$2&ROW($EC64)),$EB64,$EB$2&ROW($EB64)),$EA64,$EA$2&ROW($EA64)),$DZ64,$DZ$2&ROW($DZ64)),$DY64,$DY$2&ROW($DY64)),$DX64,$DX$2&ROW($DX64)),$DW64,$DW$2&ROW($DW64)),$DV64,$DV$2&ROW($DV64)),$DU64,$DU$2&ROW($DU64)),$DT64,$DT$2&ROW($DT64)),$DS64,$DS$2&ROW($DS64)))","v":"X=0.071+(1*AU64-1)*0.039"},{"$f":"IF(W64=\"\",0,\"X=\"&SUBSTITUTE(SUBSTITUTE(SUBSTITUTE(SUBSTITUTE(SUBSTITUTE(SUBSTITUTE(SUBSTITUTE(SUBSTITUTE(SUBSTITUTE(SUBSTITUTE(SUBSTITUTE(SUBSTITUTE(W64,$ED64,$ED$2&ROW($ED64)),$EC64,$EC$2&ROW($EC64)),$EB64,$EB$2&ROW($EB64)),$EA64,$EA$2&ROW($EA64)),$DZ64,$DZ$2&ROW($DZ64)),$DY64,$DY$2&ROW($DY64)),$DX64,$DX$2&ROW($DX64)),$DW64,$DW$2&ROW($DW64)),$DV64,$DV$2&ROW($DV64)),$DU64,$DU$2&ROW($DU64)),$DT64,$DT$2&ROW($DT64)),$DS64,$DS$2&ROW($DS64)))","v":"X=10*(if(AS64=1,1,if(AS64=0,0.23,0))*37.71+(1*AU64-1)*if(AS64=1,1,if(AS64=0,0.23,0))*23.96)"},{"$f":"IF(X64=\"\",0,\"X=\"&SUBSTITUTE(SUBSTITUTE(SUBSTITUTE(SUBSTITUTE(SUBSTITUTE(SUBSTITUTE(SUBSTITUTE(SUBSTITUTE(SUBSTITUTE(SUBSTITUTE(SUBSTITUTE(SUBSTITUTE(X64,$ED64,$ED$2&ROW($ED64)),$EC64,$EC$2&ROW($EC64)),$EB64,$EB$2&ROW($EB64)),$EA64,$EA$2&ROW($EA64)),$DZ64,$DZ$2&ROW($DZ64)),$DY64,$DY$2&ROW($DY64)),$DX64,$DX$2&ROW($DX64)),$DW64,$DW$2&ROW($DW64)),$DV64,$DV$2&ROW($DV64)),$DU64,$DU$2&ROW($DU64)),$DT64,$DT$2&ROW($DT64)),$DS64,$DS$2&ROW($DS64)))","v":"X=if(AS64=2,1,if(AS64=0,0.09,0))*37.71+(1*AU64-1)*if(AS64=2,1,if(AS64=0,0.09,0))*23.96"},{"$f":"IF(Y64=\"\",0,\"X=\"&SUBSTITUTE(SUBSTITUTE(SUBSTITUTE(SUBSTITUTE(SUBSTITUTE(SUBSTITUTE(SUBSTITUTE(SUBSTITUTE(SUBSTITUTE(SUBSTITUTE(SUBSTITUTE(SUBSTITUTE(Y64,$ED64,$ED$2&ROW($ED64)),$EC64,$EC$2&ROW($EC64)),$EB64,$EB$2&ROW($EB64)),$EA64,$EA$2&ROW($EA64)),$DZ64,$DZ$2&ROW($DZ64)),$DY64,$DY$2&ROW($DY64)),$DX64,$DX$2&ROW($DX64)),$DW64,$DW$2&ROW($DW64)),$DV64,$DV$2&ROW($DV64)),$DU64,$DU$2&ROW($DU64)),$DT64,$DT$2&ROW($DT64)),$DS64,$DS$2&ROW($DS64)))","v":"X=if(AS64=3,1,if(AS64=0,0.48,0))*37.71+(1*AU64-1)*if(AS64=3,1,if(AS64=0,0.48,0))*23.96"},{"$f":"IF(Z64=\"\",0,\"X=\"&SUBSTITUTE(SUBSTITUTE(SUBSTITUTE(SUBSTITUTE(SUBSTITUTE(SUBSTITUTE(SUBSTITUTE(SUBSTITUTE(SUBSTITUTE(SUBSTITUTE(SUBSTITUTE(SUBSTITUTE(Z64,$ED64,$ED$2&ROW($ED64)),$EC64,$EC$2&ROW($EC64)),$EB64,$EB$2&ROW($EB64)),$EA64,$EA$2&ROW($EA64)),$DZ64,$DZ$2&ROW($DZ64)),$DY64,$DY$2&ROW($DY64)),$DX64,$DX$2&ROW($DX64)),$DW64,$DW$2&ROW($DW64)),$DV64,$DV$2&ROW($DV64)),$DU64,$DU$2&ROW($DU64)),$DT64,$DT$2&ROW($DT64)),$DS64,$DS$2&ROW($DS64)))","v":"X=if(AS64=4,1,if(AS64=0,0,0))*37.71+(1*AU64-1)*if(AS64=4,1,if(AS64=0,0,0))*23.96"},{"$f":"IF(AA64=\"\",0,\"X=\"&SUBSTITUTE(SUBSTITUTE(SUBSTITUTE(SUBSTITUTE(SUBSTITUTE(SUBSTITUTE(SUBSTITUTE(SUBSTITUTE(SUBSTITUTE(SUBSTITUTE(SUBSTITUTE(SUBSTITUTE(AA64,$ED64,$ED$2&ROW($ED64)),$EC64,$EC$2&ROW($EC64)),$EB64,$EB$2&ROW($EB64)),$EA64,$EA$2&ROW($EA64)),$DZ64,$DZ$2&ROW($DZ64)),$DY64,$DY$2&ROW($DY64)),$DX64,$DX$2&ROW($DX64)),$DW64,$DW$2&ROW($DW64)),$DV64,$DV$2&ROW($DV64)),$DU64,$DU$2&ROW($DU64)),$DT64,$DT$2&ROW($DT64)),$DS64,$DS$2&ROW($DS64)))","v":"X=if(AS64=5,1,if(AS64=0,0,0))*37.71+(1*AU64-1)*if(AS64=5,1,if(AS64=0,0,0))*23.96"},{"$f":"IF(AB64=\"\",0,\"X=\"&SUBSTITUTE(SUBSTITUTE(SUBSTITUTE(SUBSTITUTE(SUBSTITUTE(SUBSTITUTE(SUBSTITUTE(SUBSTITUTE(SUBSTITUTE(SUBSTITUTE(SUBSTITUTE(SUBSTITUTE(AB64,$ED64,$ED$2&ROW($ED64)),$EC64,$EC$2&ROW($EC64)),$EB64,$EB$2&ROW($EB64)),$EA64,$EA$2&ROW($EA64)),$DZ64,$DZ$2&ROW($DZ64)),$DY64,$DY$2&ROW($DY64)),$DX64,$DX$2&ROW($DX64)),$DW64,$DW$2&ROW($DW64)),$DV64,$DV$2&ROW($DV64)),$DU64,$DU$2&ROW($DU64)),$DT64,$DT$2&ROW($DT64)),$DS64,$DS$2&ROW($DS64)))","v":0},null,null,"{Factor:WinterCF}","{Factor:SummerCF}",{"$f":"IFERROR(INDEX($EG64:$IV64,MATCH(0,COUNTIF($DR64:DT64,$EG64:$IV64),0)),\"\")","v":"{Existing Heating System Fuel}"},{"$f":"IFERROR(INDEX($EG64:$IV64,MATCH(0,COUNTIF($DR64:DU64,$EG64:$IV64),0)),\"\")","v":"{Measure:Quantity}"},{"$f":"IFERROR(INDEX($EG64:$IV64,MATCH(0,COUNTIF($DR64:DV64,$EG64:$IV64),0)),\"\")","v":"{Number of existing zones/thermostats}"},{"$f":"IFERROR(INDEX($EG64:$IV64,MATCH(0,COUNTIF($DR64:DW64,$EG64:$IV64),0)),\"\")","v":"{SBI Active Region}"},{"$f":"IFERROR(INDEX($EG64:$IV64,MATCH(0,COUNTIF($DR64:DX64,$EG64:$IV64),0)),\"\")","v":"{SGS/General Service Customer}"},{"$f":"IFERROR(INDEX($EG64:$IV64,MATCH(0,COUNTIF($DR64:DY64,$EG64:$IV64),0)),\"\")","v":""},{"$f":"IFERROR(INDEX($EG64:$IV64,MATCH(0,COUNTIF($DR64:DZ64,$EG64:$IV64),0)),\"\")","v":""},{"$f":"IFERROR(INDEX($EG64:$IV64,MATCH(0,COUNTIF($DR64:EA64,$EG64:$IV64),0)),\"\")","v":""},{"$f":"IFERROR(INDEX($EG64:$IV64,MATCH(0,COUNTIF($DR64:EB64,$EG64:$IV64),0)),\"\")","v":""},{"$f":"IFERROR(INDEX($EG64:$IV64,MATCH(0,COUNTIF($DR64:EC64,$EG64:$IV64),0)),\"\")","v":""},null,null,{"$f":"IFERROR(MID($G64,FIND(CHAR(160),SUBSTITUTE($G64,\"{\",CHAR(160),EG$1)),FIND(CHAR(160),SUBSTITUTE($G64,\"}\",CHAR(160),EG$1))-FIND(CHAR(160),SUBSTITUTE($G64,\"{\",CHAR(160),EG$1))+1),\"\")","v":""},{"$f":"IFERROR(MID($G64,FIND(CHAR(160),SUBSTITUTE($G64,\"{\",CHAR(160),EH$1)),FIND(CHAR(160),SUBSTITUTE($G64,\"}\",CHAR(160),EH$1))-FIND(CHAR(160),SUBSTITUTE($G64,\"{\",CHAR(160),EH$1))+1),\"\")","v":""},{"$f":"IFERROR(MID($G64,FIND(CHAR(160),SUBSTITUTE($G64,\"{\",CHAR(160),EI$1)),FIND(CHAR(160),SUBSTITUTE($G64,\"}\",CHAR(160),EI$1))-FIND(CHAR(160),SUBSTITUTE($G64,\"{\",CHAR(160),EI$1))+1),\"\")","v":""},{"$f":"IFERROR(MID($G64,FIND(CHAR(160),SUBSTITUTE($G64,\"{\",CHAR(160),EJ$1)),FIND(CHAR(160),SUBSTITUTE($G64,\"}\",CHAR(160),EJ$1))-FIND(CHAR(160),SUBSTITUTE($G64,\"{\",CHAR(160),EJ$1))+1),\"\")","v":""},{"$f":"IFERROR(MID($G64,FIND(CHAR(160),SUBSTITUTE($G64,\"{\",CHAR(160),EK$1)),FIND(CHAR(160),SUBSTITUTE($G64,\"}\",CHAR(160),EK$1))-FIND(CHAR(160),SUBSTITUTE($G64,\"{\",CHAR(160),EK$1))+1),\"\")","v":""},{"$f":"IFERROR(MID($G64,FIND(CHAR(160),SUBSTITUTE($G64,\"{\",CHAR(160),EL$1)),FIND(CHAR(160),SUBSTITUTE($G64,\"}\",CHAR(160),EL$1))-FIND(CHAR(160),SUBSTITUTE($G64,\"{\",CHAR(160),EL$1))+1),\"\")","v":""},{"$f":"IFERROR(MID($G64,FIND(CHAR(160),SUBSTITUTE($G64,\"{\",CHAR(160),EM$1)),FIND(CHAR(160),SUBSTITUTE($G64,\"}\",CHAR(160),EM$1))-FIND(CHAR(160),SUBSTITUTE($G64,\"{\",CHAR(160),EM$1))+1),\"\")","v":""},{"$f":"IFERROR(MID($G64,FIND(CHAR(160),SUBSTITUTE($G64,\"{\",CHAR(160),EN$1)),FIND(CHAR(160),SUBSTITUTE($G64,\"}\",CHAR(160),EN$1))-FIND(CHAR(160),SUBSTITUTE($G64,\"{\",CHAR(160),EN$1))+1),\"\")","v":""},{"$f":"IFERROR(MID($G64,FIND(CHAR(160),SUBSTITUTE($G64,\"{\",CHAR(160),EO$1)),FIND(CHAR(160),SUBSTITUTE($G64,\"}\",CHAR(160),EO$1))-FIND(CHAR(160),SUBSTITUTE($G64,\"{\",CHAR(160),EO$1))+1),\"\")","v":""},{"$f":"IFERROR(MID($G64,FIND(CHAR(160),SUBSTITUTE($G64,\"{\",CHAR(160),EP$1)),FIND(CHAR(160),SUBSTITUTE($G64,\"}\",CHAR(160),EP$1))-FIND(CHAR(160),SUBSTITUTE($G64,\"{\",CHAR(160),EP$1))+1),\"\")","v":""},{"$f":"IFERROR(MID($J64,FIND(CHAR(160),SUBSTITUTE($J64,\"{\",CHAR(160),EQ$1)),FIND(CHAR(160),SUBSTITUTE($J64,\"}\",CHAR(160),EQ$1))-FIND(CHAR(160),SUBSTITUTE($J64,\"{\",CHAR(160),EQ$1))+1),\"\")","v":"{Existing Heating System Fuel}"},{"$f":"IFERROR(MID($J64,FIND(CHAR(160),SUBSTITUTE($J64,\"{\",CHAR(160),ER$1)),FIND(CHAR(160),SUBSTITUTE($J64,\"}\",CHAR(160),ER$1))-FIND(CHAR(160),SUBSTITUTE($J64,\"{\",CHAR(160),ER$1))+1),\"\")","v":"{Measure:Quantity}"},{"$f":"IFERROR(MID($J64,FIND(CHAR(160),SUBSTITUTE($J64,\"{\",CHAR(160),ES$1)),FIND(CHAR(160),SUBSTITUTE($J64,\"}\",CHAR(160),ES$1))-FIND(CHAR(160),SUBSTITUTE($J64,\"{\",CHAR(160),ES$1))+1),\"\")","v":"{Number of existing zones/thermostats}"},{"$f":"IFERROR(MID($J64,FIND(CHAR(160),SUBSTITUTE($J64,\"{\",CHAR(160),ET$1)),FIND(CHAR(160),SUBSTITUTE($J64,\"}\",CHAR(160),ET$1))-FIND(CHAR(160),SUBSTITUTE($J64,\"{\",CHAR(160),ET$1))+1),\"\")","v":"{SBI Active Region}"},{"$f":"IFERROR(MID($J64,FIND(CHAR(160),SUBSTITUTE($J64,\"{\",CHAR(160),EU$1)),FIND(CHAR(160),SUBSTITUTE($J64,\"}\",CHAR(160),EU$1))-FIND(CHAR(160),SUBSTITUTE($J64,\"{\",CHAR(160),EU$1))+1),\"\")","v":"{SGS/General Service Customer}"},{"$f":"IFERROR(MID($J64,FIND(CHAR(160),SUBSTITUTE($J64,\"{\",CHAR(160),EV$1)),FIND(CHAR(160),SUBSTITUTE($J64,\"}\",CHAR(160),EV$1))-FIND(CHAR(160),SUBSTITUTE($J64,\"{\",CHAR(160),EV$1))+1),\"\")","v":""},{"$f":"IFERROR(MID($J64,FIND(CHAR(160),SUBSTITUTE($J64,\"{\",CHAR(160),EW$1)),FIND(CHAR(160),SUBSTITUTE($J64,\"}\",CHAR(160),EW$1))-FIND(CHAR(160),SUBSTITUTE($J64,\"{\",CHAR(160),EW$1))+1),\"\")","v":""},{"$f":"IFERROR(MID($J64,FIND(CHAR(160),SUBSTITUTE($J64,\"{\",CHAR(160),EX$1)),FIND(CHAR(160),SUBSTITUTE($J64,\"}\",CHAR(160),EX$1))-FIND(CHAR(160),SUBSTITUTE($J64,\"{\",CHAR(160),EX$1))+1),\"\")","v":""},{"$f":"IFERROR(MID($J64,FIND(CHAR(160),SUBSTITUTE($J64,\"{\",CHAR(160),EY$1)),FIND(CHAR(160),SUBSTITUTE($J64,\"}\",CHAR(160),EY$1))-FIND(CHAR(160),SUBSTITUTE($J64,\"{\",CHAR(160),EY$1))+1),\"\")","v":""},{"$f":"IFERROR(MID($J64,FIND(CHAR(160),SUBSTITUTE($J64,\"{\",CHAR(160),EZ$1)),FIND(CHAR(160),SUBSTITUTE($J64,\"}\",CHAR(160),EZ$1))-FIND(CHAR(160),SUBSTITUTE($J64,\"{\",CHAR(160),EZ$1))+1),\"\")","v":""},{"$f":"IFERROR(MID($J64,FIND(CHAR(160),SUBSTITUTE($J64,\"{\",CHAR(160),FA$1)),FIND(CHAR(160),SUBSTITUTE($J64,\"}\",CHAR(160),FA$1))-FIND(CHAR(160),SUBSTITUTE($J64,\"{\",CHAR(160),FA$1))+1),\"\")","v":"{Existing Heating System Fuel}"},{"$f":"IFERROR(MID($J64,FIND(CHAR(160),SUBSTITUTE($J64,\"{\",CHAR(160),FB$1)),FIND(CHAR(160),SUBSTITUTE($J64,\"}\",CHAR(160),FB$1))-FIND(CHAR(160),SUBSTITUTE($J64,\"{\",CHAR(160),FB$1))+1),\"\")","v":"{Measure:Quantity}"},{"$f":"IFERROR(MID($O64,FIND(CHAR(160),SUBSTITUTE($O64,\"{\",CHAR(160),FC$1)),FIND(CHAR(160),SUBSTITUTE($O64,\"}\",CHAR(160),FC$1))-FIND(CHAR(160),SUBSTITUTE($O64,\"{\",CHAR(160),FC$1))+1),\"\")","v":"{Measure:Quantity}"},{"$f":"IFERROR(MID($O64,FIND(CHAR(160),SUBSTITUTE($O64,\"{\",CHAR(160),FD$1)),FIND(CHAR(160),SUBSTITUTE($O64,\"}\",CHAR(160),FD$1))-FIND(CHAR(160),SUBSTITUTE($O64,\"{\",CHAR(160),FD$1))+1),\"\")","v":"{Existing Heating System Fuel}"},{"$f":"IFERROR(MID($O64,FIND(CHAR(160),SUBSTITUTE($O64,\"{\",CHAR(160),FE$1)),FIND(CHAR(160),SUBSTITUTE($O64,\"}\",CHAR(160),FE$1))-FIND(CHAR(160),SUBSTITUTE($O64,\"{\",CHAR(160),FE$1))+1),\"\")","v":"{Existing Heating System Fuel}"},{"$f":"IFERROR(MID($O64,FIND(CHAR(160),SUBSTITUTE($O64,\"{\",CHAR(160),FF$1)),FIND(CHAR(160),SUBSTITUTE($O64,\"}\",CHAR(160),FF$1))-FIND(CHAR(160),SUBSTITUTE($O64,\"{\",CHAR(160),FF$1))+1),\"\")","v":""},{"$f":"IFERROR(MID($O64,FIND(CHAR(160),SUBSTITUTE($O64,\"{\",CHAR(160),FG$1)),FIND(CHAR(160),SUBSTITUTE($O64,\"}\",CHAR(160),FG$1))-FIND(CHAR(160),SUBSTITUTE($O64,\"{\",CHAR(160),FG$1))+1),\"\")","v":""},{"$f":"IFERROR(MID($O64,FIND(CHAR(160),SUBSTITUTE($O64,\"{\",CHAR(160),FH$1)),FIND(CHAR(160),SUBSTITUTE($O64,\"}\",CHAR(160),FH$1))-FIND(CHAR(160),SUBSTITUTE($O64,\"{\",CHAR(160),FH$1))+1),\"\")","v":""},{"$f":"IFERROR(MID($O64,FIND(CHAR(160),SUBSTITUTE($O64,\"{\",CHAR(160),FI$1)),FIND(CHAR(160),SUBSTITUTE($O64,\"}\",CHAR(160),FI$1))-FIND(CHAR(160),SUBSTITUTE($O64,\"{\",CHAR(160),FI$1))+1),\"\")","v":""},{"$f":"IFERROR(MID($O64,FIND(CHAR(160),SUBSTITUTE($O64,\"{\",CHAR(160),FJ$1)),FIND(CHAR(160),SUBSTITUTE($O64,\"}\",CHAR(160),FJ$1))-FIND(CHAR(160),SUBSTITUTE($O64,\"{\",CHAR(160),FJ$1))+1),\"\")","v":""},{"$f":"IFERROR(MID($O64,FIND(CHAR(160),SUBSTITUTE($O64,\"{\",CHAR(160),FK$1)),FIND(CHAR(160),SUBSTITUTE($O64,\"}\",CHAR(160),FK$1))-FIND(CHAR(160),SUBSTITUTE($O64,\"{\",CHAR(160),FK$1))+1),\"\")","v":"{Existing Heating System Fuel}"},{"$f":"IFERROR(MID($O64,FIND(CHAR(160),SUBSTITUTE($O64,\"{\",CHAR(160),FL$1)),FIND(CHAR(160),SUBSTITUTE($O64,\"}\",CHAR(160),FL$1))-FIND(CHAR(160),SUBSTITUTE($O64,\"{\",CHAR(160),FL$1))+1),\"\")","v":"{Existing Heating System Fuel}"},{"$f":"IFERROR(MID($R64,FIND(CHAR(160),SUBSTITUTE($R64,\"{\",CHAR(160),FM$1)),FIND(CHAR(160),SUBSTITUTE($R64,\"}\",CHAR(160),FM$1))-FIND(CHAR(160),SUBSTITUTE($R64,\"{\",CHAR(160),FM$1))+1),\"\")","v":""},{"$f":"IFERROR(MID($R64,FIND(CHAR(160),SUBSTITUTE($R64,\"{\",CHAR(160),FN$1)),FIND(CHAR(160),SUBSTITUTE($R64,\"}\",CHAR(160),FN$1))-FIND(CHAR(160),SUBSTITUTE($R64,\"{\",CHAR(160),FN$1))+1),\"\")","v":""},{"$f":"IFERROR(MID($R64,FIND(CHAR(160),SUBSTITUTE($R64,\"{\",CHAR(160),FO$1)),FIND(CHAR(160),SUBSTITUTE($R64,\"}\",CHAR(160),FO$1))-FIND(CHAR(160),SUBSTITUTE($R64,\"{\",CHAR(160),FO$1))+1),\"\")","v":""},{"$f":"IFERROR(MID($R64,FIND(CHAR(160),SUBSTITUTE($R64,\"{\",CHAR(160),FP$1)),FIND(CHAR(160),SUBSTITUTE($R64,\"}\",CHAR(160),FP$1))-FIND(CHAR(160),SUBSTITUTE($R64,\"{\",CHAR(160),FP$1))+1),\"\")","v":""},{"$f":"IFERROR(MID($R64,FIND(CHAR(160),SUBSTITUTE($R64,\"{\",CHAR(160),FQ$1)),FIND(CHAR(160),SUBSTITUTE($R64,\"}\",CHAR(160),FQ$1))-FIND(CHAR(160),SUBSTITUTE($R64,\"{\",CHAR(160),FQ$1))+1),\"\")","v":""},{"$f":"IFERROR(MID($R64,FIND(CHAR(160),SUBSTITUTE($R64,\"{\",CHAR(160),FR$1)),FIND(CHAR(160),SUBSTITUTE($R64,\"}\",CHAR(160),FR$1))-FIND(CHAR(160),SUBSTITUTE($R64,\"{\",CHAR(160),FR$1))+1),\"\")","v":""},{"$f":"IFERROR(MID($R64,FIND(CHAR(160),SUBSTITUTE($R64,\"{\",CHAR(160),FS$1)),FIND(CHAR(160),SUBSTITUTE($R64,\"}\",CHAR(160),FS$1))-FIND(CHAR(160),SUBSTITUTE($R64,\"{\",CHAR(160),FS$1))+1),\"\")","v":""},{"$f":"IFERROR(MID($R64,FIND(CHAR(160),SUBSTITUTE($R64,\"{\",CHAR(160),FT$1)),FIND(CHAR(160),SUBSTITUTE($R64,\"}\",CHAR(160),FT$1))-FIND(CHAR(160),SUBSTITUTE($R64,\"{\",CHAR(160),FT$1))+1),\"\")","v":""},{"$f":"IFERROR(MID($R64,FIND(CHAR(160),SUBSTITUTE($R64,\"{\",CHAR(160),FU$1)),FIND(CHAR(160),SUBSTITUTE($R64,\"}\",CHAR(160),FU$1))-FIND(CHAR(160),SUBSTITUTE($R64,\"{\",CHAR(160),FU$1))+1),\"\")","v":""},{"$f":"IFERROR(MID($R64,FIND(CHAR(160),SUBSTITUTE($R64,\"{\",CHAR(160),FV$1)),FIND(CHAR(160),SUBSTITUTE($R64,\"}\",CHAR(160),FV$1))-FIND(CHAR(160),SUBSTITUTE($R64,\"{\",CHAR(160),FV$1))+1),\"\")","v":""},{"$f":"IFERROR(MID($U64,FIND(CHAR(160),SUBSTITUTE($U64,\"{\",CHAR(160),FW$1)),FIND(CHAR(160),SUBSTITUTE($U64,\"}\",CHAR(160),FW$1))-FIND(CHAR(160),SUBSTITUTE($U64,\"{\",CHAR(160),FW$1))+1),\"\")","v":"{Measure:Quantity}"},{"$f":"IFERROR(MID($U64,FIND(CHAR(160),SUBSTITUTE($U64,\"{\",CHAR(160),FX$1)),FIND(CHAR(160),SUBSTITUTE($U64,\"}\",CHAR(160),FX$1))-FIND(CHAR(160),SUBSTITUTE($U64,\"{\",CHAR(160),FX$1))+1),\"\")","v":"{Existing Heating System Fuel}"},{"$f":"IFERROR(MID($U64,FIND(CHAR(160),SUBSTITUTE($U64,\"{\",CHAR(160),FY$1)),FIND(CHAR(160),SUBSTITUTE($U64,\"}\",CHAR(160),FY$1))-FIND(CHAR(160),SUBSTITUTE($U64,\"{\",CHAR(160),FY$1))+1),\"\")","v":"{Existing Heating System Fuel}"},{"$f":"IFERROR(MID($U64,FIND(CHAR(160),SUBSTITUTE($U64,\"{\",CHAR(160),FZ$1)),FIND(CHAR(160),SUBSTITUTE($U64,\"}\",CHAR(160),FZ$1))-FIND(CHAR(160),SUBSTITUTE($U64,\"{\",CHAR(160),FZ$1))+1),\"\")","v":""},{"$f":"IFERROR(MID($U64,FIND(CHAR(160),SUBSTITUTE($U64,\"{\",CHAR(160),GA$1)),FIND(CHAR(160),SUBSTITUTE($U64,\"}\",CHAR(160),GA$1))-FIND(CHAR(160),SUBSTITUTE($U64,\"{\",CHAR(160),GA$1))+1),\"\")","v":""},{"$f":"IFERROR(MID($U64,FIND(CHAR(160),SUBSTITUTE($U64,\"{\",CHAR(160),GB$1)),FIND(CHAR(160),SUBSTITUTE($U64,\"}\",CHAR(160),GB$1))-FIND(CHAR(160),SUBSTITUTE($U64,\"{\",CHAR(160),GB$1))+1),\"\")","v":""},{"$f":"IFERROR(MID($U64,FIND(CHAR(160),SUBSTITUTE($U64,\"{\",CHAR(160),GC$1)),FIND(CHAR(160),SUBSTITUTE($U64,\"}\",CHAR(160),GC$1))-FIND(CHAR(160),SUBSTITUTE($U64,\"{\",CHAR(160),GC$1))+1),\"\")","v":""},{"$f":"IFERROR(MID($U64,FIND(CHAR(160),SUBSTITUTE($U64,\"{\",CHAR(160),GD$1)),FIND(CHAR(160),SUBSTITUTE($U64,\"}\",CHAR(160),GD$1))-FIND(CHAR(160),SUBSTITUTE($U64,\"{\",CHAR(160),GD$1))+1),\"\")","v":""},{"$f":"IFERROR(MID($U64,FIND(CHAR(160),SUBSTITUTE($U64,\"{\",CHAR(160),GE$1)),FIND(CHAR(160),SUBSTITUTE($U64,\"}\",CHAR(160),GE$1))-FIND(CHAR(160),SUBSTITUTE($U64,\"{\",CHAR(160),GE$1))+1),\"\")","v":"{Existing Heating System Fuel}"},{"$f":"IFERROR(MID($U64,FIND(CHAR(160),SUBSTITUTE($U64,\"{\",CHAR(160),GF$1)),FIND(CHAR(160),SUBSTITUTE($U64,\"}\",CHAR(160),GF$1))-FIND(CHAR(160),SUBSTITUTE($U64,\"{\",CHAR(160),GF$1))+1),\"\")","v":"{Existing Heating System Fuel}"},{"$f":"IFERROR(MID($V64,FIND(CHAR(160),SUBSTITUTE($V64,\"{\",CHAR(160),GG$1)),FIND(CHAR(160),SUBSTITUTE($V64,\"}\",CHAR(160),GG$1))-FIND(CHAR(160),SUBSTITUTE($V64,\"{\",CHAR(160),GG$1))+1),\"\")","v":""},{"$f":"IFERROR(MID($V64,FIND(CHAR(160),SUBSTITUTE($V64,\"{\",CHAR(160),GH$1)),FIND(CHAR(160),SUBSTITUTE($V64,\"}\",CHAR(160),GH$1))-FIND(CHAR(160),SUBSTITUTE($V64,\"{\",CHAR(160),GH$1))+1),\"\")","v":""},{"$f":"IFERROR(MID($V64,FIND(CHAR(160),SUBSTITUTE($V64,\"{\",CHAR(160),GI$1)),FIND(CHAR(160),SUBSTITUTE($V64,\"}\",CHAR(160),GI$1))-FIND(CHAR(160),SUBSTITUTE($V64,\"{\",CHAR(160),GI$1))+1),\"\")","v":""},{"$f":"IFERROR(MID($V64,FIND(CHAR(160),SUBSTITUTE($V64,\"{\",CHAR(160),GJ$1)),FIND(CHAR(160),SUBSTITUTE($V64,\"}\",CHAR(160),GJ$1))-FIND(CHAR(160),SUBSTITUTE($V64,\"{\",CHAR(160),GJ$1))+1),\"\")","v":""},{"$f":"IFERROR(MID($V64,FIND(CHAR(160),SUBSTITUTE($V64,\"{\",CHAR(160),GK$1)),FIND(CHAR(160),SUBSTITUTE($V64,\"}\",CHAR(160),GK$1))-FIND(CHAR(160),SUBSTITUTE($V64,\"{\",CHAR(160),GK$1))+1),\"\")","v":""},{"$f":"IFERROR(MID($V64,FIND(CHAR(160),SUBSTITUTE($V64,\"{\",CHAR(160),GL$1)),FIND(CHAR(160),SUBSTITUTE($V64,\"}\",CHAR(160),GL$1))-FIND(CHAR(160),SUBSTITUTE($V64,\"{\",CHAR(160),GL$1))+1),\"\")","v":""},{"$f":"IFERROR(MID($V64,FIND(CHAR(160),SUBSTITUTE($V64,\"{\",CHAR(160),GM$1)),FIND(CHAR(160),SUBSTITUTE($V64,\"}\",CHAR(160),GM$1))-FIND(CHAR(160),SUBSTITUTE($V64,\"{\",CHAR(160),GM$1))+1),\"\")","v":""},{"$f":"IFERROR(MID($V64,FIND(CHAR(160),SUBSTITUTE($V64,\"{\",CHAR(160),GN$1)),FIND(CHAR(160),SUBSTITUTE($V64,\"}\",CHAR(160),GN$1))-FIND(CHAR(160),SUBSTITUTE($V64,\"{\",CHAR(160),GN$1))+1),\"\")","v":""},{"$f":"IFERROR(MID($V64,FIND(CHAR(160),SUBSTITUTE($V64,\"{\",CHAR(160),GO$1)),FIND(CHAR(160),SUBSTITUTE($V64,\"}\",CHAR(160),GO$1))-FIND(CHAR(160),SUBSTITUTE($V64,\"{\",CHAR(160),GO$1))+1),\"\")","v":"{Measure:Quantity}"},{"$f":"IFERROR(MID($V64,FIND(CHAR(160),SUBSTITUTE($V64,\"{\",CHAR(160),GP$1)),FIND(CHAR(160),SUBSTITUTE($V64,\"}\",CHAR(160),GP$1))-FIND(CHAR(160),SUBSTITUTE($V64,\"{\",CHAR(160),GP$1))+1),\"\")","v":""},{"$f":"IFERROR(MID($W64,FIND(CHAR(160),SUBSTITUTE($W64,\"{\",CHAR(160),GQ$1)),FIND(CHAR(160),SUBSTITUTE($W64,\"}\",CHAR(160),GQ$1))-FIND(CHAR(160),SUBSTITUTE($W64,\"{\",CHAR(160),GQ$1))+1),\"\")","v":"{Measure:Quantity}"},{"$f":"IFERROR(MID($W64,FIND(CHAR(160),SUBSTITUTE($W64,\"{\",CHAR(160),GR$1)),FIND(CHAR(160),SUBSTITUTE($W64,\"}\",CHAR(160),GR$1))-FIND(CHAR(160),SUBSTITUTE($W64,\"{\",CHAR(160),GR$1))+1),\"\")","v":"{Existing Heating System Fuel}"},{"$f":"IFERROR(MID($W64,FIND(CHAR(160),SUBSTITUTE($W64,\"{\",CHAR(160),GS$1)),FIND(CHAR(160),SUBSTITUTE($W64,\"}\",CHAR(160),GS$1))-FIND(CHAR(160),SUBSTITUTE($W64,\"{\",CHAR(160),GS$1))+1),\"\")","v":"{Existing Heating System Fuel}"},{"$f":"IFERROR(MID($W64,FIND(CHAR(160),SUBSTITUTE($W64,\"{\",CHAR(160),GT$1)),FIND(CHAR(160),SUBSTITUTE($W64,\"}\",CHAR(160),GT$1))-FIND(CHAR(160),SUBSTITUTE($W64,\"{\",CHAR(160),GT$1))+1),\"\")","v":""},{"$f":"IFERROR(MID($W64,FIND(CHAR(160),SUBSTITUTE($W64,\"{\",CHAR(160),GU$1)),FIND(CHAR(160),SUBSTITUTE($W64,\"}\",CHAR(160),GU$1))-FIND(CHAR(160),SUBSTITUTE($W64,\"{\",CHAR(160),GU$1))+1),\"\")","v":""},{"$f":"IFERROR(MID($W64,FIND(CHAR(160),SUBSTITUTE($W64,\"{\",CHAR(160),GV$1)),FIND(CHAR(160),SUBSTITUTE($W64,\"}\",CHAR(160),GV$1))-FIND(CHAR(160),SUBSTITUTE($W64,\"{\",CHAR(160),GV$1))+1),\"\")","v":""},{"$f":"IFERROR(MID($W64,FIND(CHAR(160),SUBSTITUTE($W64,\"{\",CHAR(160),GW$1)),FIND(CHAR(160),SUBSTITUTE($W64,\"}\",CHAR(160),GW$1))-FIND(CHAR(160),SUBSTITUTE($W64,\"{\",CHAR(160),GW$1))+1),\"\")","v":""},{"$f":"IFERROR(MID($W64,FIND(CHAR(160),SUBSTITUTE($W64,\"{\",CHAR(160),GX$1)),FIND(CHAR(160),SUBSTITUTE($W64,\"}\",CHAR(160),GX$1))-FIND(CHAR(160),SUBSTITUTE($W64,\"{\",CHAR(160),GX$1))+1),\"\")","v":""},{"$f":"IFERROR(MID($W64,FIND(CHAR(160),SUBSTITUTE($W64,\"{\",CHAR(160),GY$1)),FIND(CHAR(160),SUBSTITUTE($W64,\"}\",CHAR(160),GY$1))-FIND(CHAR(160),SUBSTITUTE($W64,\"{\",CHAR(160),GY$1))+1),\"\")","v":"{Existing Heating System Fuel}"},{"$f":"IFERROR(MID($W64,FIND(CHAR(160),SUBSTITUTE($W64,\"{\",CHAR(160),GZ$1)),FIND(CHAR(160),SUBSTITUTE($W64,\"}\",CHAR(160),GZ$1))-FIND(CHAR(160),SUBSTITUTE($W64,\"{\",CHAR(160),GZ$1))+1),\"\")","v":"{Existing Heating System Fuel}"},{"$f":"IFERROR(MID($X64,FIND(CHAR(160),SUBSTITUTE($X64,\"{\",CHAR(160),HA$1)),FIND(CHAR(160),SUBSTITUTE($X64,\"}\",CHAR(160),HA$1))-FIND(CHAR(160),SUBSTITUTE($X64,\"{\",CHAR(160),HA$1))+1),\"\")","v":"{Measure:Quantity}"},{"$f":"IFERROR(MID($X64,FIND(CHAR(160),SUBSTITUTE($X64,\"{\",CHAR(160),HB$1)),FIND(CHAR(160),SUBSTITUTE($X64,\"}\",CHAR(160),HB$1))-FIND(CHAR(160),SUBSTITUTE($X64,\"{\",CHAR(160),HB$1))+1),\"\")","v":"{Existing Heating System Fuel}"},{"$f":"IFERROR(MID($X64,FIND(CHAR(160),SUBSTITUTE($X64,\"{\",CHAR(160),HC$1)),FIND(CHAR(160),SUBSTITUTE($X64,\"}\",CHAR(160),HC$1))-FIND(CHAR(160),SUBSTITUTE($X64,\"{\",CHAR(160),HC$1))+1),\"\")","v":"{Existing Heating System Fuel}"},{"$f":"IFERROR(MID($X64,FIND(CHAR(160),SUBSTITUTE($X64,\"{\",CHAR(160),HD$1)),FIND(CHAR(160),SUBSTITUTE($X64,\"}\",CHAR(160),HD$1))-FIND(CHAR(160),SUBSTITUTE($X64,\"{\",CHAR(160),HD$1))+1),\"\")","v":""},{"$f":"IFERROR(MID($X64,FIND(CHAR(160),SUBSTITUTE($X64,\"{\",CHAR(160),HE$1)),FIND(CHAR(160),SUBSTITUTE($X64,\"}\",CHAR(160),HE$1))-FIND(CHAR(160),SUBSTITUTE($X64,\"{\",CHAR(160),HE$1))+1),\"\")","v":""},{"$f":"IFERROR(MID($X64,FIND(CHAR(160),SUBSTITUTE($X64,\"{\",CHAR(160),HF$1)),FIND(CHAR(160),SUBSTITUTE($X64,\"}\",CHAR(160),HF$1))-FIND(CHAR(160),SUBSTITUTE($X64,\"{\",CHAR(160),HF$1))+1),\"\")","v":""},{"$f":"IFERROR(MID($X64,FIND(CHAR(160),SUBSTITUTE($X64,\"{\",CHAR(160),HG$1)),FIND(CHAR(160),SUBSTITUTE($X64,\"}\",CHAR(160),HG$1))-FIND(CHAR(160),SUBSTITUTE($X64,\"{\",CHAR(160),HG$1))+1),\"\")","v":""},{"$f":"IFERROR(MID($X64,FIND(CHAR(160),SUBSTITUTE($X64,\"{\",CHAR(160),HH$1)),FIND(CHAR(160),SUBSTITUTE($X64,\"}\",CHAR(160),HH$1))-FIND(CHAR(160),SUBSTITUTE($X64,\"{\",CHAR(160),HH$1))+1),\"\")","v":""},{"$f":"IFERROR(MID($X64,FIND(CHAR(160),SUBSTITUTE($X64,\"{\",CHAR(160),HI$1)),FIND(CHAR(160),SUBSTITUTE($X64,\"}\",CHAR(160),HI$1))-FIND(CHAR(160),SUBSTITUTE($X64,\"{\",CHAR(160),HI$1))+1),\"\")","v":"{Existing Heating System Fuel}"},{"$f":"IFERROR(MID($X64,FIND(CHAR(160),SUBSTITUTE($X64,\"{\",CHAR(160),HJ$1)),FIND(CHAR(160),SUBSTITUTE($X64,\"}\",CHAR(160),HJ$1))-FIND(CHAR(160),SUBSTITUTE($X64,\"{\",CHAR(160),HJ$1))+1),\"\")","v":"{Existing Heating System Fuel}"},{"$f":"IFERROR(MID($Y64,FIND(CHAR(160),SUBSTITUTE($Y64,\"{\",CHAR(160),HK$1)),FIND(CHAR(160),SUBSTITUTE($Y64,\"}\",CHAR(160),HK$1))-FIND(CHAR(160),SUBSTITUTE($Y64,\"{\",CHAR(160),HK$1))+1),\"\")","v":"{Measure:Quantity}"},{"$f":"IFERROR(MID($Y64,FIND(CHAR(160),SUBSTITUTE($Y64,\"{\",CHAR(160),HL$1)),FIND(CHAR(160),SUBSTITUTE($Y64,\"}\",CHAR(160),HL$1))-FIND(CHAR(160),SUBSTITUTE($Y64,\"{\",CHAR(160),HL$1))+1),\"\")","v":"{Existing Heating System Fuel}"},{"$f":"IFERROR(MID($Y64,FIND(CHAR(160),SUBSTITUTE($Y64,\"{\",CHAR(160),HM$1)),FIND(CHAR(160),SUBSTITUTE($Y64,\"}\",CHAR(160),HM$1))-FIND(CHAR(160),SUBSTITUTE($Y64,\"{\",CHAR(160),HM$1))+1),\"\")","v":"{Existing Heating System Fuel}"},{"$f":"IFERROR(MID($Y64,FIND(CHAR(160),SUBSTITUTE($Y64,\"{\",CHAR(160),HN$1)),FIND(CHAR(160),SUBSTITUTE($Y64,\"}\",CHAR(160),HN$1))-FIND(CHAR(160),SUBSTITUTE($Y64,\"{\",CHAR(160),HN$1))+1),\"\")","v":""},{"$f":"IFERROR(MID($Y64,FIND(CHAR(160),SUBSTITUTE($Y64,\"{\",CHAR(160),HO$1)),FIND(CHAR(160),SUBSTITUTE($Y64,\"}\",CHAR(160),HO$1))-FIND(CHAR(160),SUBSTITUTE($Y64,\"{\",CHAR(160),HO$1))+1),\"\")","v":""},{"$f":"IFERROR(MID($Y64,FIND(CHAR(160),SUBSTITUTE($Y64,\"{\",CHAR(160),HP$1)),FIND(CHAR(160),SUBSTITUTE($Y64,\"}\",CHAR(160),HP$1))-FIND(CHAR(160),SUBSTITUTE($Y64,\"{\",CHAR(160),HP$1))+1),\"\")","v":""},{"$f":"IFERROR(MID($Y64,FIND(CHAR(160),SUBSTITUTE($Y64,\"{\",CHAR(160),HQ$1)),FIND(CHAR(160),SUBSTITUTE($Y64,\"}\",CHAR(160),HQ$1))-FIND(CHAR(160),SUBSTITUTE($Y64,\"{\",CHAR(160),HQ$1))+1),\"\")","v":""},{"$f":"IFERROR(MID($Y64,FIND(CHAR(160),SUBSTITUTE($Y64,\"{\",CHAR(160),HR$1)),FIND(CHAR(160),SUBSTITUTE($Y64,\"}\",CHAR(160),HR$1))-FIND(CHAR(160),SUBSTITUTE($Y64,\"{\",CHAR(160),HR$1))+1),\"\")","v":""},{"$f":"IFERROR(MID($Y64,FIND(CHAR(160),SUBSTITUTE($Y64,\"{\",CHAR(160),HS$1)),FIND(CHAR(160),SUBSTITUTE($Y64,\"}\",CHAR(160),HS$1))-FIND(CHAR(160),SUBSTITUTE($Y64,\"{\",CHAR(160),HS$1))+1),\"\")","v":"{Existing Heating System Fuel}"},{"$f":"IFERROR(MID($Y64,FIND(CHAR(160),SUBSTITUTE($Y64,\"{\",CHAR(160),HT$1)),FIND(CHAR(160),SUBSTITUTE($Y64,\"}\",CHAR(160),HT$1))-FIND(CHAR(160),SUBSTITUTE($Y64,\"{\",CHAR(160),HT$1))+1),\"\")","v":"{Existing Heating System Fuel}"},{"$f":"IFERROR(MID($Z64,FIND(CHAR(160),SUBSTITUTE($Z64,\"{\",CHAR(160),HU$1)),FIND(CHAR(160),SUBSTITUTE($Z64,\"}\",CHAR(160),HU$1))-FIND(CHAR(160),SUBSTITUTE($Z64,\"{\",CHAR(160),HU$1))+1),\"\")","v":"{Measure:Quantity}"},{"$f":"IFERROR(MID($Z64,FIND(CHAR(160),SUBSTITUTE($Z64,\"{\",CHAR(160),HV$1)),FIND(CHAR(160),SUBSTITUTE($Z64,\"}\",CHAR(160),HV$1))-FIND(CHAR(160),SUBSTITUTE($Z64,\"{\",CHAR(160),HV$1))+1),\"\")","v":"{Existing Heating System Fuel}"},{"$f":"IFERROR(MID($Z64,FIND(CHAR(160),SUBSTITUTE($Z64,\"{\",CHAR(160),HW$1)),FIND(CHAR(160),SUBSTITUTE($Z64,\"}\",CHAR(160),HW$1))-FIND(CHAR(160),SUBSTITUTE($Z64,\"{\",CHAR(160),HW$1))+1),\"\")","v":"{Existing Heating System Fuel}"},{"$f":"IFERROR(MID($Z64,FIND(CHAR(160),SUBSTITUTE($Z64,\"{\",CHAR(160),HX$1)),FIND(CHAR(160),SUBSTITUTE($Z64,\"}\",CHAR(160),HX$1))-FIND(CHAR(160),SUBSTITUTE($Z64,\"{\",CHAR(160),HX$1))+1),\"\")","v":""},{"$f":"IFERROR(MID($Z64,FIND(CHAR(160),SUBSTITUTE($Z64,\"{\",CHAR(160),HY$1)),FIND(CHAR(160),SUBSTITUTE($Z64,\"}\",CHAR(160),HY$1))-FIND(CHAR(160),SUBSTITUTE($Z64,\"{\",CHAR(160),HY$1))+1),\"\")","v":""},{"$f":"IFERROR(MID($Z64,FIND(CHAR(160),SUBSTITUTE($Z64,\"{\",CHAR(160),HZ$1)),FIND(CHAR(160),SUBSTITUTE($Z64,\"}\",CHAR(160),HZ$1))-FIND(CHAR(160),SUBSTITUTE($Z64,\"{\",CHAR(160),HZ$1))+1),\"\")","v":""},{"$f":"IFERROR(MID($Z64,FIND(CHAR(160),SUBSTITUTE($Z64,\"{\",CHAR(160),IA$1)),FIND(CHAR(160),SUBSTITUTE($Z64,\"}\",CHAR(160),IA$1))-FIND(CHAR(160),SUBSTITUTE($Z64,\"{\",CHAR(160),IA$1))+1),\"\")","v":""},{"$f":"IFERROR(MID($Z64,FIND(CHAR(160),SUBSTITUTE($Z64,\"{\",CHAR(160),IB$1)),FIND(CHAR(160),SUBSTITUTE($Z64,\"}\",CHAR(160),IB$1))-FIND(CHAR(160),SUBSTITUTE($Z64,\"{\",CHAR(160),IB$1))+1),\"\")","v":""},{"$f":"IFERROR(MID($Z64,FIND(CHAR(160),SUBSTITUTE($Z64,\"{\",CHAR(160),IC$1)),FIND(CHAR(160),SUBSTITUTE($Z64,\"}\",CHAR(160),IC$1))-FIND(CHAR(160),SUBSTITUTE($Z64,\"{\",CHAR(160),IC$1))+1),\"\")","v":"{Existing Heating System Fuel}"},{"$f":"IFERROR(MID($Z64,FIND(CHAR(160),SUBSTITUTE($Z64,\"{\",CHAR(160),ID$1)),FIND(CHAR(160),SUBSTITUTE($Z64,\"}\",CHAR(160),ID$1))-FIND(CHAR(160),SUBSTITUTE($Z64,\"{\",CHAR(160),ID$1))+1),\"\")","v":"{Existing Heating System Fuel}"},{"$f":"IFERROR(MID($AA64,FIND(CHAR(160),SUBSTITUTE($AA64,\"{\",CHAR(160),IE$1)),FIND(CHAR(160),SUBSTITUTE($AA64,\"}\",CHAR(160),IE$1))-FIND(CHAR(160),SUBSTITUTE($AA64,\"{\",CHAR(160),IE$1))+1),\"\")","v":"{Measure:Quantity}"},{"$f":"IFERROR(MID($AA64,FIND(CHAR(160),SUBSTITUTE($AA64,\"{\",CHAR(160),IF$1)),FIND(CHAR(160),SUBSTITUTE($AA64,\"}\",CHAR(160),IF$1))-FIND(CHAR(160),SUBSTITUTE($AA64,\"{\",CHAR(160),IF$1))+1),\"\")","v":"{Existing Heating System Fuel}"},{"$f":"IFERROR(MID($AA64,FIND(CHAR(160),SUBSTITUTE($AA64,\"{\",CHAR(160),IG$1)),FIND(CHAR(160),SUBSTITUTE($AA64,\"}\",CHAR(160),IG$1))-FIND(CHAR(160),SUBSTITUTE($AA64,\"{\",CHAR(160),IG$1))+1),\"\")","v":"{Existing Heating System Fuel}"},{"$f":"IFERROR(MID($AA64,FIND(CHAR(160),SUBSTITUTE($AA64,\"{\",CHAR(160),IH$1)),FIND(CHAR(160),SUBSTITUTE($AA64,\"}\",CHAR(160),IH$1))-FIND(CHAR(160),SUBSTITUTE($AA64,\"{\",CHAR(160),IH$1))+1),\"\")","v":""},{"$f":"IFERROR(MID($AA64,FIND(CHAR(160),SUBSTITUTE($AA64,\"{\",CHAR(160),II$1)),FIND(CHAR(160),SUBSTITUTE($AA64,\"}\",CHAR(160),II$1))-FIND(CHAR(160),SUBSTITUTE($AA64,\"{\",CHAR(160),II$1))+1),\"\")","v":""},{"$f":"IFERROR(MID($AA64,FIND(CHAR(160),SUBSTITUTE($AA64,\"{\",CHAR(160),IJ$1)),FIND(CHAR(160),SUBSTITUTE($AA64,\"}\",CHAR(160),IJ$1))-FIND(CHAR(160),SUBSTITUTE($AA64,\"{\",CHAR(160),IJ$1))+1),\"\")","v":""},{"$f":"IFERROR(MID($AA64,FIND(CHAR(160),SUBSTITUTE($AA64,\"{\",CHAR(160),IK$1)),FIND(CHAR(160),SUBSTITUTE($AA64,\"}\",CHAR(160),IK$1))-FIND(CHAR(160),SUBSTITUTE($AA64,\"{\",CHAR(160),IK$1))+1),\"\")","v":""},{"$f":"IFERROR(MID($AA64,FIND(CHAR(160),SUBSTITUTE($AA64,\"{\",CHAR(160),IL$1)),FIND(CHAR(160),SUBSTITUTE($AA64,\"}\",CHAR(160),IL$1))-FIND(CHAR(160),SUBSTITUTE($AA64,\"{\",CHAR(160),IL$1))+1),\"\")","v":""},{"$f":"IFERROR(MID($AA64,FIND(CHAR(160),SUBSTITUTE($AA64,\"{\",CHAR(160),IM$1)),FIND(CHAR(160),SUBSTITUTE($AA64,\"}\",CHAR(160),IM$1))-FIND(CHAR(160),SUBSTITUTE($AA64,\"{\",CHAR(160),IM$1))+1),\"\")","v":"{Existing Heating System Fuel}"},{"$f":"IFERROR(MID($AA64,FIND(CHAR(160),SUBSTITUTE($AA64,\"{\",CHAR(160),IN$1)),FIND(CHAR(160),SUBSTITUTE($AA64,\"}\",CHAR(160),IN$1))-FIND(CHAR(160),SUBSTITUTE($AA64,\"{\",CHAR(160),IN$1))+1),\"\")","v":"{Existing Heating System Fuel}"},{"$f":"IFERROR(MID($AB64,FIND(CHAR(160),SUBSTITUTE($AB64,\"{\",CHAR(160),IO$1)),FIND(CHAR(160),SUBSTITUTE($AB64,\"}\",CHAR(160),IO$1))-FIND(CHAR(160),SUBSTITUTE($AB64,\"{\",CHAR(160),IO$1))+1),\"\")","v":""},{"$f":"IFERROR(MID($AB64,FIND(CHAR(160),SUBSTITUTE($AB64,\"{\",CHAR(160),IP$1)),FIND(CHAR(160),SUBSTITUTE($AB64,\"}\",CHAR(160),IP$1))-FIND(CHAR(160),SUBSTITUTE($AB64,\"{\",CHAR(160),IP$1))+1),\"\")","v":""},{"$f":"IFERROR(MID($AB64,FIND(CHAR(160),SUBSTITUTE($AB64,\"{\",CHAR(160),IQ$1)),FIND(CHAR(160),SUBSTITUTE($AB64,\"}\",CHAR(160),IQ$1))-FIND(CHAR(160),SUBSTITUTE($AB64,\"{\",CHAR(160),IQ$1))+1),\"\")","v":""},{"$f":"IFERROR(MID($AB64,FIND(CHAR(160),SUBSTITUTE($AB64,\"{\",CHAR(160),IR$1)),FIND(CHAR(160),SUBSTITUTE($AB64,\"}\",CHAR(160),IR$1))-FIND(CHAR(160),SUBSTITUTE($AB64,\"{\",CHAR(160),IR$1))+1),\"\")","v":""},{"$f":"IFERROR(MID($AB64,FIND(CHAR(160),SUBSTITUTE($AB64,\"{\",CHAR(160),IS$1)),FIND(CHAR(160),SUBSTITUTE($AB64,\"}\",CHAR(160),IS$1))-FIND(CHAR(160),SUBSTITUTE($AB64,\"{\",CHAR(160),IS$1))+1),\"\")","v":""},{"$f":"IFERROR(MID($AB64,FIND(CHAR(160),SUBSTITUTE($AB64,\"{\",CHAR(160),IT$1)),FIND(CHAR(160),SUBSTITUTE($AB64,\"}\",CHAR(160),IT$1))-FIND(CHAR(160),SUBSTITUTE($AB64,\"{\",CHAR(160),IT$1))+1),\"\")","v":""},{"$f":"IFERROR(MID($AB64,FIND(CHAR(160),SUBSTITUTE($AB64,\"{\",CHAR(160),IU$1)),FIND(CHAR(160),SUBSTITUTE($AB64,\"}\",CHAR(160),IU$1))-FIND(CHAR(160),SUBSTITUTE($AB64,\"{\",CHAR(160),IU$1))+1),\"\")","v":""},{"$f":"IFERROR(MID($AB64,FIND(CHAR(160),SUBSTITUTE($AB64,\"{\",CHAR(160),IV$1)),FIND(CHAR(160),SUBSTITUTE($AB64,\"}\",CHAR(160),IV$1))-FIND(CHAR(160),SUBSTITUTE($AB64,\"{\",CHAR(160),IV$1))+1),\"\")","v":""},{"$f":"IFERROR(MID($AB64,FIND(CHAR(160),SUBSTITUTE($AB64,\"{\",CHAR(160),IW$1)),FIND(CHAR(160),SUBSTITUTE($AB64,\"}\",CHAR(160),IW$1))-FIND(CHAR(160),SUBSTITUTE($AB64,\"{\",CHAR(160),IW$1))+1),\"\")","v":""},{"$f":"IFERROR(MID($AB64,FIND(CHAR(160),SUBSTITUTE($AB64,\"{\",CHAR(160),IX$1)),FIND(CHAR(160),SUBSTITUTE($AB64,\"}\",CHAR(160),IX$1))-FIND(CHAR(160),SUBSTITUTE($AB64,\"{\",CHAR(160),IX$1))+1),\"\")","v":""},null,{"$f":"10-COUNTIF(DU64:ED64,\"\")","v":5}]
["C&I HVAC - High Performance Heat Pumps","Ductless Heat Pump Multi-Family","MPDHPNC","2021-07-01","2022-06-30","Per Measure",682,0,"Calculated","{Measure:Quantity}*(500+({Number of Zones}-1)*250)",0,"2021-07-01","2022-06-30","Calculated","if({Backup Heating System Fuel}=6,381,if({Backup Heating System Fuel}=0,187,179))+({Number of Zones}*{Measure:Quantity}-1)*if({Backup Heating System Fuel}=6,406,if({Backup Heating System Fuel}=0,194.8,142))",null,null,null,null,null,"if({Backup Heating System Fuel}=6,0.034,if({Backup Heating System Fuel}=0,0.026,0.026))+({Number of Zones}*{Measure:Quantity}-1)*if({Backup Heating System Fuel}=6,0.024,if({Backup Heating System Fuel}=0,0.015,0.015))","0.058+({Number of Zones}*{Measure:Quantity}-1)*0.064","10*(if({Backup Heating System Fuel}=1,1,if({Backup Heating System Fuel}=0,0.06,0))*0.89+({Number of Zones}*{Measure:Quantity}-1)*if({Backup Heating System Fuel}=1,1,if({Backup Heating System Fuel}=0,0.06,0))*1.12)","if({Backup Heating System Fuel}=2,1,if({Backup Heating System Fuel}=0,0.2,0))*0.89+({Number of Zones}*{Measure:Quantity}-1)*if({Backup Heating System Fuel}=2,1,if({Backup Heating System Fuel}=0,0.2,0))*1.12","if({Backup Heating System Fuel}=3,1,if({Backup Heating System Fuel}=0,0.43,0))*0.89+({Number of Zones}*{Measure:Quantity}-1)*if({Backup Heating System Fuel}=3,1,if({Backup Heating System Fuel}=0,0.43,0))*1.12","if({Backup Heating System Fuel}=4,1,if({Backup Heating System Fuel}=0,0.02,0))*0.89+({Number of Zones}*{Measure:Quantity}-1)*if({Backup Heating System Fuel}=4,1,if({Backup Heating System Fuel}=0,0.02,0))*1.12","if({Backup Heating System Fuel}=5,1,if({Backup Heating System Fuel}=0,0.25,0))*0.89+({Number of Zones}*{Measure:Quantity}-1)*if({Backup Heating System Fuel}=5,1,if({Backup Heating System Fuel}=0,0.25,0))*1.12",null,"2021-07-01","2022-06-30",18,1,1,0.38500000000000001,0.54,4.1000000000000002E-2,3.4000000000000002E-2,1,1,1,0.11,0.01,null,{"$f":"DU65","v":"{Measure:Quantity}"},1,{"$f":"DV65","v":"{Number of Zones}"},1,{"$f":"DW65","v":"{Backup Heating System Fuel}"},0,{"$f":"DX65","v":""},null,{"$f":"DY65","v":""},null,{"$f":"DZ65","v":""},null,{"$f":"EA65","v":""},null,{"$f":"EB65","v":""},null,{"$f":"EC65","v":""},null,{"$f":"ED65","v":""},null,{"$f":"IF(AW65=6,381,IF(AW65=0,187,179))+(AU65*AS65-1)*IF(AW65=6,406,IF(AW65=0,194.8,142))","v":187},0,0,0,0,0,{"$f":"IF(AW65=6,0.034,IF(AW65=0,0.026,0.026))+(AU65*AS65-1)*IF(AW65=6,0.024,IF(AW65=0,0.015,0.015))","v":2.5999999999999999E-2},{"$f":"0.058+(AU65*AS65-1)*0.064","v":5.8000000000000003E-2},{"$f":"10*(IF(AW65=1,1,IF(AW65=0,0.06,0))*0.89+(AU65*AS65-1)*IF(AW65=1,1,IF(AW65=0,0.06,0))*1.12)","v":0.53399999999999992},{"$f":"IF(AW65=2,1,IF(AW65=0,0.2,0))*0.89+(AU65*AS65-1)*IF(AW65=2,1,IF(AW65=0,0.2,0))*1.12","v":0.17800000000000002},{"$f":"IF(AW65=3,1,IF(AW65=0,0.43,0))*0.89+(AU65*AS65-1)*IF(AW65=3,1,IF(AW65=0,0.43,0))*1.12","v":0.38269999999999998},{"$f":"IF(AW65=4,1,IF(AW65=0,0.02,0))*0.89+(AU65*AS65-1)*IF(AW65=4,1,IF(AW65=0,0.02,0))*1.12","v":1.78E-2},{"$f":"IF(AW65=5,1,IF(AW65=0,0.25,0))*0.89+(AU65*AS65-1)*IF(AW65=5,1,IF(AW65=0,0.25,0))*1.12","v":0.2225},0,null,"Res","Default DR",{"$f":"Benefits(BL65,BR65,BS65,BT65,BU65,BV65,BW65,BX65,BY65,BZ65,AE65,AH65,AI65,AJ65,AK65,AL65,AM65,AN65,AO65,AP65,CA65,CB65)","v":295.15833961302008},239.36485350164884,11.859382519922754,184.89113287883478,10.030806860341455,120.61729563099225,68.622224681332867,0,0,{"$f":"SUMPRODUCT(CC65:CK65,--(CC65:CK65>0))","v":930.54403568609303},{"$f":"-SUMPRODUCT(CC65:CK65,--(CC65:CK65<0))","v":0},null,{"$f":"682","v":682},null,null,{"$f":"CM65+CO65","v":682},{"$f":"IF(NetOrGross=\"Net\",(1-AO65+AP65),1)","v":1},{"$f":"(SUMPRODUCT(CC65:CJ65,--(CC65:CJ65>0))+CN65)*CS65/((-SUMPRODUCT(CC65:CJ65,--(CC65:CJ65<0))+MAX(CO65,CV65)+CP65+CQ65)*CS65+IF(FRIncentives=\"Yes\",CV65*(1-CS65),0))","v":1.3644340699209576},1,{"$f":"AS65*(500+(AU65-1)*250)","v":500},null,"Electric","y",1,{"$f":"IF(F65=\"Manual Entry\",\"Manual\",IF(G65=\"\",0,\"X=\"&SUBSTITUTE(SUBSTITUTE(SUBSTITUTE(SUBSTITUTE(SUBSTITUTE(SUBSTITUTE(SUBSTITUTE(SUBSTITUTE(SUBSTITUTE(SUBSTITUTE(SUBSTITUTE(SUBSTITUTE(G65,$ED65,$ED$2&ROW($ED65)),$EC65,$EC$2&ROW($EC65)),$EB65,$EB$2&ROW($EB65)),$EA65,$EA$2&ROW($EA65)),$DZ65,$DZ$2&ROW($DZ65)),$DY65,$DY$2&ROW($DY65)),$DX65,$DX$2&ROW($DX65)),$DW65,$DW$2&ROW($DW65)),$DV65,$DV$2&ROW($DV65)),$DU65,$DU$2&ROW($DU65)),$DT65,$DT$2&ROW($DT65)),$DS65,$DS$2&ROW($DS65))))","v":"X=682"},{"$f":"IF(I65=\"Manual Entry\",\"Manual\",IF(J65=\"\",0,\"X=\"&SUBSTITUTE(SUBSTITUTE(SUBSTITUTE(SUBSTITUTE(SUBSTITUTE(SUBSTITUTE(SUBSTITUTE(SUBSTITUTE(SUBSTITUTE(SUBSTITUTE(SUBSTITUTE(SUBSTITUTE(J65,$ED65,$ED$2&ROW($ED65)),$EC65,$EC$2&ROW($EC65)),$EB65,$EB$2&ROW($EB65)),$EA65,$EA$2&ROW($EA65)),$DZ65,$DZ$2&ROW($DZ65)),$DY65,$DY$2&ROW($DY65)),$DX65,$DX$2&ROW($DX65)),$DW65,$DW$2&ROW($DW65)),$DV65,$DV$2&ROW($DV65)),$DU65,$DU$2&ROW($DU65)),$DT65,$DT$2&ROW($DT65)),$DS65,$DS$2&ROW($DS65))))","v":"X=AS65*(500+(AU65-1)*250)"},{"$f":"IF(O65=\"\",0,\"X=\"&SUBSTITUTE(SUBSTITUTE(SUBSTITUTE(SUBSTITUTE(SUBSTITUTE(SUBSTITUTE(SUBSTITUTE(SUBSTITUTE(SUBSTITUTE(SUBSTITUTE(SUBSTITUTE(SUBSTITUTE(O65,$ED65,$ED$2&ROW($ED65)),$EC65,$EC$2&ROW($EC65)),$EB65,$EB$2&ROW($EB65)),$EA65,$EA$2&ROW($EA65)),$DZ65,$DZ$2&ROW($DZ65)),$DY65,$DY$2&ROW($DY65)),$DX65,$DX$2&ROW($DX65)),$DW65,$DW$2&ROW($DW65)),$DV65,$DV$2&ROW($DV65)),$DU65,$DU$2&ROW($DU65)),$DT65,$DT$2&ROW($DT65)),$DS65,$DS$2&ROW($DS65)))","v":"X=if(AW65=6,381,if(AW65=0,187,179))+(AU65*AS65-1)*if(AW65=6,406,if(AW65=0,194.8,142))"},{"$f":"IF(P65=\"\",0,\"X=\"&SUBSTITUTE(SUBSTITUTE(SUBSTITUTE(SUBSTITUTE(SUBSTITUTE(SUBSTITUTE(SUBSTITUTE(SUBSTITUTE(SUBSTITUTE(SUBSTITUTE(SUBSTITUTE(SUBSTITUTE(P65,$ED65,$ED$2&ROW($ED65)),$EC65,$EC$2&ROW($EC65)),$EB65,$EB$2&ROW($EB65)),$EA65,$EA$2&ROW($EA65)),$DZ65,$DZ$2&ROW($DZ65)),$DY65,$DY$2&ROW($DY65)),$DX65,$DX$2&ROW($DX65)),$DW65,$DW$2&ROW($DW65)),$DV65,$DV$2&ROW($DV65)),$DU65,$DU$2&ROW($DU65)),$DT65,$DT$2&ROW($DT65)),$DS65,$DS$2&ROW($DS65)))","v":0},{"$f":"IF(Q65=\"\",0,\"X=\"&SUBSTITUTE(SUBSTITUTE(SUBSTITUTE(SUBSTITUTE(SUBSTITUTE(SUBSTITUTE(SUBSTITUTE(SUBSTITUTE(SUBSTITUTE(SUBSTITUTE(SUBSTITUTE(SUBSTITUTE(Q65,$ED65,$ED$2&ROW($ED65)),$EC65,$EC$2&ROW($EC65)),$EB65,$EB$2&ROW($EB65)),$EA65,$EA$2&ROW($EA65)),$DZ65,$DZ$2&ROW($DZ65)),$DY65,$DY$2&ROW($DY65)),$DX65,$DX$2&ROW($DX65)),$DW65,$DW$2&ROW($DW65)),$DV65,$DV$2&ROW($DV65)),$DU65,$DU$2&ROW($DU65)),$DT65,$DT$2&ROW($DT65)),$DS65,$DS$2&ROW($DS65)))","v":0},{"$f":"IF(R65=\"\",0,\"X=\"&SUBSTITUTE(SUBSTITUTE(SUBSTITUTE(SUBSTITUTE(SUBSTITUTE(SUBSTITUTE(SUBSTITUTE(SUBSTITUTE(SUBSTITUTE(SUBSTITUTE(SUBSTITUTE(SUBSTITUTE(R65,$ED65,$ED$2&ROW($ED65)),$EC65,$EC$2&ROW($EC65)),$EB65,$EB$2&ROW($EB65)),$EA65,$EA$2&ROW($EA65)),$DZ65,$DZ$2&ROW($DZ65)),$DY65,$DY$2&ROW($DY65)),$DX65,$DX$2&ROW($DX65)),$DW65,$DW$2&ROW($DW65)),$DV65,$DV$2&ROW($DV65)),$DU65,$DU$2&ROW($DU65)),$DT65,$DT$2&ROW($DT65)),$DS65,$DS$2&ROW($DS65)))","v":0},{"$f":"IF(S65=\"\",0,\"X=\"&SUBSTITUTE(SUBSTITUTE(SUBSTITUTE(SUBSTITUTE(SUBSTITUTE(SUBSTITUTE(SUBSTITUTE(SUBSTITUTE(SUBSTITUTE(SUBSTITUTE(SUBSTITUTE(SUBSTITUTE(S65,$ED65,$ED$2&ROW($ED65)),$EC65,$EC$2&ROW($EC65)),$EB65,$EB$2&ROW($EB65)),$EA65,$EA$2&ROW($EA65)),$DZ65,$DZ$2&ROW($DZ65)),$DY65,$DY$2&ROW($DY65)),$DX65,$DX$2&ROW($DX65)),$DW65,$DW$2&ROW($DW65)),$DV65,$DV$2&ROW($DV65)),$DU65,$DU$2&ROW($DU65)),$DT65,$DT$2&ROW($DT65)),$DS65,$DS$2&ROW($DS65)))","v":0},{"$f":"IF(T65=\"\",0,\"X=\"&SUBSTITUTE(SUBSTITUTE(SUBSTITUTE(SUBSTITUTE(SUBSTITUTE(SUBSTITUTE(SUBSTITUTE(SUBSTITUTE(SUBSTITUTE(SUBSTITUTE(SUBSTITUTE(SUBSTITUTE(T65,$ED65,$ED$2&ROW($ED65)),$EC65,$EC$2&ROW($EC65)),$EB65,$EB$2&ROW($EB65)),$EA65,$EA$2&ROW($EA65)),$DZ65,$DZ$2&ROW($DZ65)),$DY65,$DY$2&ROW($DY65)),$DX65,$DX$2&ROW($DX65)),$DW65,$DW$2&ROW($DW65)),$DV65,$DV$2&ROW($DV65)),$DU65,$DU$2&ROW($DU65)),$DT65,$DT$2&ROW($DT65)),$DS65,$DS$2&ROW($DS65)))","v":0},{"$f":"IF(U65=\"\",0,\"X=\"&SUBSTITUTE(SUBSTITUTE(SUBSTITUTE(SUBSTITUTE(SUBSTITUTE(SUBSTITUTE(SUBSTITUTE(SUBSTITUTE(SUBSTITUTE(SUBSTITUTE(SUBSTITUTE(SUBSTITUTE(U65,$ED65,$ED$2&ROW($ED65)),$EC65,$EC$2&ROW($EC65)),$EB65,$EB$2&ROW($EB65)),$EA65,$EA$2&ROW($EA65)),$DZ65,$DZ$2&ROW($DZ65)),$DY65,$DY$2&ROW($DY65)),$DX65,$DX$2&ROW($DX65)),$DW65,$DW$2&ROW($DW65)),$DV65,$DV$2&ROW($DV65)),$DU65,$DU$2&ROW($DU65)),$DT65,$DT$2&ROW($DT65)),$DS65,$DS$2&ROW($DS65)))","v":"X=if(AW65=6,0.034,if(AW65=0,0.026,0.026))+(AU65*AS65-1)*if(AW65=6,0.024,if(AW65=0,0.015,0.015))"},{"$f":"IF(V65=\"\",0,\"X=\"&SUBSTITUTE(SUBSTITUTE(SUBSTITUTE(SUBSTITUTE(SUBSTITUTE(SUBSTITUTE(SUBSTITUTE(SUBSTITUTE(SUBSTITUTE(SUBSTITUTE(SUBSTITUTE(SUBSTITUTE(V65,$ED65,$ED$2&ROW($ED65)),$EC65,$EC$2&ROW($EC65)),$EB65,$EB$2&ROW($EB65)),$EA65,$EA$2&ROW($EA65)),$DZ65,$DZ$2&ROW($DZ65)),$DY65,$DY$2&ROW($DY65)),$DX65,$DX$2&ROW($DX65)),$DW65,$DW$2&ROW($DW65)),$DV65,$DV$2&ROW($DV65)),$DU65,$DU$2&ROW($DU65)),$DT65,$DT$2&ROW($DT65)),$DS65,$DS$2&ROW($DS65)))","v":"X=0.058+(AU65*AS65-1)*0.064"},{"$f":"IF(W65=\"\",0,\"X=\"&SUBSTITUTE(SUBSTITUTE(SUBSTITUTE(SUBSTITUTE(SUBSTITUTE(SUBSTITUTE(SUBSTITUTE(SUBSTITUTE(SUBSTITUTE(SUBSTITUTE(SUBSTITUTE(SUBSTITUTE(W65,$ED65,$ED$2&ROW($ED65)),$EC65,$EC$2&ROW($EC65)),$EB65,$EB$2&ROW($EB65)),$EA65,$EA$2&ROW($EA65)),$DZ65,$DZ$2&ROW($DZ65)),$DY65,$DY$2&ROW($DY65)),$DX65,$DX$2&ROW($DX65)),$DW65,$DW$2&ROW($DW65)),$DV65,$DV$2&ROW($DV65)),$DU65,$DU$2&ROW($DU65)),$DT65,$DT$2&ROW($DT65)),$DS65,$DS$2&ROW($DS65)))","v":"X=10*(if(AW65=1,1,if(AW65=0,0.06,0))*0.89+(AU65*AS65-1)*if(AW65=1,1,if(AW65=0,0.06,0))*1.12)"},{"$f":"IF(X65=\"\",0,\"X=\"&SUBSTITUTE(SUBSTITUTE(SUBSTITUTE(SUBSTITUTE(SUBSTITUTE(SUBSTITUTE(SUBSTITUTE(SUBSTITUTE(SUBSTITUTE(SUBSTITUTE(SUBSTITUTE(SUBSTITUTE(X65,$ED65,$ED$2&ROW($ED65)),$EC65,$EC$2&ROW($EC65)),$EB65,$EB$2&ROW($EB65)),$EA65,$EA$2&ROW($EA65)),$DZ65,$DZ$2&ROW($DZ65)),$DY65,$DY$2&ROW($DY65)),$DX65,$DX$2&ROW($DX65)),$DW65,$DW$2&ROW($DW65)),$DV65,$DV$2&ROW($DV65)),$DU65,$DU$2&ROW($DU65)),$DT65,$DT$2&ROW($DT65)),$DS65,$DS$2&ROW($DS65)))","v":"X=if(AW65=2,1,if(AW65=0,0.2,0))*0.89+(AU65*AS65-1)*if(AW65=2,1,if(AW65=0,0.2,0))*1.12"},{"$f":"IF(Y65=\"\",0,\"X=\"&SUBSTITUTE(SUBSTITUTE(SUBSTITUTE(SUBSTITUTE(SUBSTITUTE(SUBSTITUTE(SUBSTITUTE(SUBSTITUTE(SUBSTITUTE(SUBSTITUTE(SUBSTITUTE(SUBSTITUTE(Y65,$ED65,$ED$2&ROW($ED65)),$EC65,$EC$2&ROW($EC65)),$EB65,$EB$2&ROW($EB65)),$EA65,$EA$2&ROW($EA65)),$DZ65,$DZ$2&ROW($DZ65)),$DY65,$DY$2&ROW($DY65)),$DX65,$DX$2&ROW($DX65)),$DW65,$DW$2&ROW($DW65)),$DV65,$DV$2&ROW($DV65)),$DU65,$DU$2&ROW($DU65)),$DT65,$DT$2&ROW($DT65)),$DS65,$DS$2&ROW($DS65)))","v":"X=if(AW65=3,1,if(AW65=0,0.43,0))*0.89+(AU65*AS65-1)*if(AW65=3,1,if(AW65=0,0.43,0))*1.12"},{"$f":"IF(Z65=\"\",0,\"X=\"&SUBSTITUTE(SUBSTITUTE(SUBSTITUTE(SUBSTITUTE(SUBSTITUTE(SUBSTITUTE(SUBSTITUTE(SUBSTITUTE(SUBSTITUTE(SUBSTITUTE(SUBSTITUTE(SUBSTITUTE(Z65,$ED65,$ED$2&ROW($ED65)),$EC65,$EC$2&ROW($EC65)),$EB65,$EB$2&ROW($EB65)),$EA65,$EA$2&ROW($EA65)),$DZ65,$DZ$2&ROW($DZ65)),$DY65,$DY$2&ROW($DY65)),$DX65,$DX$2&ROW($DX65)),$DW65,$DW$2&ROW($DW65)),$DV65,$DV$2&ROW($DV65)),$DU65,$DU$2&ROW($DU65)),$DT65,$DT$2&ROW($DT65)),$DS65,$DS$2&ROW($DS65)))","v":"X=if(AW65=4,1,if(AW65=0,0.02,0))*0.89+(AU65*AS65-1)*if(AW65=4,1,if(AW65=0,0.02,0))*1.12"},{"$f":"IF(AA65=\"\",0,\"X=\"&SUBSTITUTE(SUBSTITUTE(SUBSTITUTE(SUBSTITUTE(SUBSTITUTE(SUBSTITUTE(SUBSTITUTE(SUBSTITUTE(SUBSTITUTE(SUBSTITUTE(SUBSTITUTE(SUBSTITUTE(AA65,$ED65,$ED$2&ROW($ED65)),$EC65,$EC$2&ROW($EC65)),$EB65,$EB$2&ROW($EB65)),$EA65,$EA$2&ROW($EA65)),$DZ65,$DZ$2&ROW($DZ65)),$DY65,$DY$2&ROW($DY65)),$DX65,$DX$2&ROW($DX65)),$DW65,$DW$2&ROW($DW65)),$DV65,$DV$2&ROW($DV65)),$DU65,$DU$2&ROW($DU65)),$DT65,$DT$2&ROW($DT65)),$DS65,$DS$2&ROW($DS65)))","v":"X=if(AW65=5,1,if(AW65=0,0.25,0))*0.89+(AU65*AS65-1)*if(AW65=5,1,if(AW65=0,0.25,0))*1.12"},{"$f":"IF(AB65=\"\",0,\"X=\"&SUBSTITUTE(SUBSTITUTE(SUBSTITUTE(SUBSTITUTE(SUBSTITUTE(SUBSTITUTE(SUBSTITUTE(SUBSTITUTE(SUBSTITUTE(SUBSTITUTE(SUBSTITUTE(SUBSTITUTE(AB65,$ED65,$ED$2&ROW($ED65)),$EC65,$EC$2&ROW($EC65)),$EB65,$EB$2&ROW($EB65)),$EA65,$EA$2&ROW($EA65)),$DZ65,$DZ$2&ROW($DZ65)),$DY65,$DY$2&ROW($DY65)),$DX65,$DX$2&ROW($DX65)),$DW65,$DW$2&ROW($DW65)),$DV65,$DV$2&ROW($DV65)),$DU65,$DU$2&ROW($DU65)),$DT65,$DT$2&ROW($DT65)),$DS65,$DS$2&ROW($DS65)))","v":0},null,null,"{Factor:WinterCF}","{Factor:SummerCF}",{"$f":"IFERROR(INDEX($EG65:$IV65,MATCH(0,COUNTIF($DR65:DT65,$EG65:$IV65),0)),\"\")","v":"{Measure:Quantity}"},{"$f":"IFERROR(INDEX($EG65:$IV65,MATCH(0,COUNTIF($DR65:DU65,$EG65:$IV65),0)),\"\")","v":"{Number of Zones}"},{"$f":"IFERROR(INDEX($EG65:$IV65,MATCH(0,COUNTIF($DR65:DV65,$EG65:$IV65),0)),\"\")","v":"{Backup Heating System Fuel}"},{"$f":"IFERROR(INDEX($EG65:$IV65,MATCH(0,COUNTIF($DR65:DW65,$EG65:$IV65),0)),\"\")","v":""},{"$f":"IFERROR(INDEX($EG65:$IV65,MATCH(0,COUNTIF($DR65:DX65,$EG65:$IV65),0)),\"\")","v":""},{"$f":"IFERROR(INDEX($EG65:$IV65,MATCH(0,COUNTIF($DR65:DY65,$EG65:$IV65),0)),\"\")","v":""},{"$f":"IFERROR(INDEX($EG65:$IV65,MATCH(0,COUNTIF($DR65:DZ65,$EG65:$IV65),0)),\"\")","v":""},{"$f":"IFERROR(INDEX($EG65:$IV65,MATCH(0,COUNTIF($DR65:EA65,$EG65:$IV65),0)),\"\")","v":""},{"$f":"IFERROR(INDEX($EG65:$IV65,MATCH(0,COUNTIF($DR65:EB65,$EG65:$IV65),0)),\"\")","v":""},{"$f":"IFERROR(INDEX($EG65:$IV65,MATCH(0,COUNTIF($DR65:EC65,$EG65:$IV65),0)),\"\")","v":""},null,null,{"$f":"IFERROR(MID($G65,FIND(CHAR(160),SUBSTITUTE($G65,\"{\",CHAR(160),EG$1)),FIND(CHAR(160),SUBSTITUTE($G65,\"}\",CHAR(160),EG$1))-FIND(CHAR(160),SUBSTITUTE($G65,\"{\",CHAR(160),EG$1))+1),\"\")","v":""},{"$f":"IFERROR(MID($G65,FIND(CHAR(160),SUBSTITUTE($G65,\"{\",CHAR(160),EH$1)),FIND(CHAR(160),SUBSTITUTE($G65,\"}\",CHAR(160),EH$1))-FIND(CHAR(160),SUBSTITUTE($G65,\"{\",CHAR(160),EH$1))+1),\"\")","v":""},{"$f":"IFERROR(MID($G65,FIND(CHAR(160),SUBSTITUTE($G65,\"{\",CHAR(160),EI$1)),FIND(CHAR(160),SUBSTITUTE($G65,\"}\",CHAR(160),EI$1))-FIND(CHAR(160),SUBSTITUTE($G65,\"{\",CHAR(160),EI$1))+1),\"\")","v":""},{"$f":"IFERROR(MID($G65,FIND(CHAR(160),SUBSTITUTE($G65,\"{\",CHAR(160),EJ$1)),FIND(CHAR(160),SUBSTITUTE($G65,\"}\",CHAR(160),EJ$1))-FIND(CHAR(160),SUBSTITUTE($G65,\"{\",CHAR(160),EJ$1))+1),\"\")","v":""},{"$f":"IFERROR(MID($G65,FIND(CHAR(160),SUBSTITUTE($G65,\"{\",CHAR(160),EK$1)),FIND(CHAR(160),SUBSTITUTE($G65,\"}\",CHAR(160),EK$1))-FIND(CHAR(160),SUBSTITUTE($G65,\"{\",CHAR(160),EK$1))+1),\"\")","v":""},{"$f":"IFERROR(MID($G65,FIND(CHAR(160),SUBSTITUTE($G65,\"{\",CHAR(160),EL$1)),FIND(CHAR(160),SUBSTITUTE($G65,\"}\",CHAR(160),EL$1))-FIND(CHAR(160),SUBSTITUTE($G65,\"{\",CHAR(160),EL$1))+1),\"\")","v":""},{"$f":"IFERROR(MID($G65,FIND(CHAR(160),SUBSTITUTE($G65,\"{\",CHAR(160),EM$1)),FIND(CHAR(160),SUBSTITUTE($G65,\"}\",CHAR(160),EM$1))-FIND(CHAR(160),SUBSTITUTE($G65,\"{\",CHAR(160),EM$1))+1),\"\")","v":""},{"$f":"IFERROR(MID($G65,FIND(CHAR(160),SUBSTITUTE($G65,\"{\",CHAR(160),EN$1)),FIND(CHAR(160),SUBSTITUTE($G65,\"}\",CHAR(160),EN$1))-FIND(CHAR(160),SUBSTITUTE($G65,\"{\",CHAR(160),EN$1))+1),\"\")","v":""},{"$f":"IFERROR(MID($G65,FIND(CHAR(160),SUBSTITUTE($G65,\"{\",CHAR(160),EO$1)),FIND(CHAR(160),SUBSTITUTE($G65,\"}\",CHAR(160),EO$1))-FIND(CHAR(160),SUBSTITUTE($G65,\"{\",CHAR(160),EO$1))+1),\"\")","v":""},{"$f":"IFERROR(MID($G65,FIND(CHAR(160),SUBSTITUTE($G65,\"{\",CHAR(160),EP$1)),FIND(CHAR(160),SUBSTITUTE($G65,\"}\",CHAR(160),EP$1))-FIND(CHAR(160),SUBSTITUTE($G65,\"{\",CHAR(160),EP$1))+1),\"\")","v":""},{"$f":"IFERROR(MID($J65,FIND(CHAR(160),SUBSTITUTE($J65,\"{\",CHAR(160),EQ$1)),FIND(CHAR(160),SUBSTITUTE($J65,\"}\",CHAR(160),EQ$1))-FIND(CHAR(160),SUBSTITUTE($J65,\"{\",CHAR(160),EQ$1))+1),\"\")","v":"{Measure:Quantity}"},{"$f":"IFERROR(MID($J65,FIND(CHAR(160),SUBSTITUTE($J65,\"{\",CHAR(160),ER$1)),FIND(CHAR(160),SUBSTITUTE($J65,\"}\",CHAR(160),ER$1))-FIND(CHAR(160),SUBSTITUTE($J65,\"{\",CHAR(160),ER$1))+1),\"\")","v":"{Number of Zones}"},{"$f":"IFERROR(MID($J65,FIND(CHAR(160),SUBSTITUTE($J65,\"{\",CHAR(160),ES$1)),FIND(CHAR(160),SUBSTITUTE($J65,\"}\",CHAR(160),ES$1))-FIND(CHAR(160),SUBSTITUTE($J65,\"{\",CHAR(160),ES$1))+1),\"\")","v":""},{"$f":"IFERROR(MID($J65,FIND(CHAR(160),SUBSTITUTE($J65,\"{\",CHAR(160),ET$1)),FIND(CHAR(160),SUBSTITUTE($J65,\"}\",CHAR(160),ET$1))-FIND(CHAR(160),SUBSTITUTE($J65,\"{\",CHAR(160),ET$1))+1),\"\")","v":""},{"$f":"IFERROR(MID($J65,FIND(CHAR(160),SUBSTITUTE($J65,\"{\",CHAR(160),EU$1)),FIND(CHAR(160),SUBSTITUTE($J65,\"}\",CHAR(160),EU$1))-FIND(CHAR(160),SUBSTITUTE($J65,\"{\",CHAR(160),EU$1))+1),\"\")","v":""},{"$f":"IFERROR(MID($J65,FIND(CHAR(160),SUBSTITUTE($J65,\"{\",CHAR(160),EV$1)),FIND(CHAR(160),SUBSTITUTE($J65,\"}\",CHAR(160),EV$1))-FIND(CHAR(160),SUBSTITUTE($J65,\"{\",CHAR(160),EV$1))+1),\"\")","v":""},{"$f":"IFERROR(MID($J65,FIND(CHAR(160),SUBSTITUTE($J65,\"{\",CHAR(160),EW$1)),FIND(CHAR(160),SUBSTITUTE($J65,\"}\",CHAR(160),EW$1))-FIND(CHAR(160),SUBSTITUTE($J65,\"{\",CHAR(160),EW$1))+1),\"\")","v":""},{"$f":"IFERROR(MID($J65,FIND(CHAR(160),SUBSTITUTE($J65,\"{\",CHAR(160),EX$1)),FIND(CHAR(160),SUBSTITUTE($J65,\"}\",CHAR(160),EX$1))-FIND(CHAR(160),SUBSTITUTE($J65,\"{\",CHAR(160),EX$1))+1),\"\")","v":""},{"$f":"IFERROR(MID($J65,FIND(CHAR(160),SUBSTITUTE($J65,\"{\",CHAR(160),EY$1)),FIND(CHAR(160),SUBSTITUTE($J65,\"}\",CHAR(160),EY$1))-FIND(CHAR(160),SUBSTITUTE($J65,\"{\",CHAR(160),EY$1))+1),\"\")","v":""},{"$f":"IFERROR(MID($J65,FIND(CHAR(160),SUBSTITUTE($J65,\"{\",CHAR(160),EZ$1)),FIND(CHAR(160),SUBSTITUTE($J65,\"}\",CHAR(160),EZ$1))-FIND(CHAR(160),SUBSTITUTE($J65,\"{\",CHAR(160),EZ$1))+1),\"\")","v":""},{"$f":"IFERROR(MID($J65,FIND(CHAR(160),SUBSTITUTE($J65,\"{\",CHAR(160),FA$1)),FIND(CHAR(160),SUBSTITUTE($J65,\"}\",CHAR(160),FA$1))-FIND(CHAR(160),SUBSTITUTE($J65,\"{\",CHAR(160),FA$1))+1),\"\")","v":"{Measure:Quantity}"},{"$f":"IFERROR(MID($J65,FIND(CHAR(160),SUBSTITUTE($J65,\"{\",CHAR(160),FB$1)),FIND(CHAR(160),SUBSTITUTE($J65,\"}\",CHAR(160),FB$1))-FIND(CHAR(160),SUBSTITUTE($J65,\"{\",CHAR(160),FB$1))+1),\"\")","v":"{Number of Zones}"},{"$f":"IFERROR(MID($O65,FIND(CHAR(160),SUBSTITUTE($O65,\"{\",CHAR(160),FC$1)),FIND(CHAR(160),SUBSTITUTE($O65,\"}\",CHAR(160),FC$1))-FIND(CHAR(160),SUBSTITUTE($O65,\"{\",CHAR(160),FC$1))+1),\"\")","v":"{Number of Zones}"},{"$f":"IFERROR(MID($O65,FIND(CHAR(160),SUBSTITUTE($O65,\"{\",CHAR(160),FD$1)),FIND(CHAR(160),SUBSTITUTE($O65,\"}\",CHAR(160),FD$1))-FIND(CHAR(160),SUBSTITUTE($O65,\"{\",CHAR(160),FD$1))+1),\"\")","v":"{Measure:Quantity}"},{"$f":"IFERROR(MID($O65,FIND(CHAR(160),SUBSTITUTE($O65,\"{\",CHAR(160),FE$1)),FIND(CHAR(160),SUBSTITUTE($O65,\"}\",CHAR(160),FE$1))-FIND(CHAR(160),SUBSTITUTE($O65,\"{\",CHAR(160),FE$1))+1),\"\")","v":"{Backup Heating System Fuel}"},{"$f":"IFERROR(MID($O65,FIND(CHAR(160),SUBSTITUTE($O65,\"{\",CHAR(160),FF$1)),FIND(CHAR(160),SUBSTITUTE($O65,\"}\",CHAR(160),FF$1))-FIND(CHAR(160),SUBSTITUTE($O65,\"{\",CHAR(160),FF$1))+1),\"\")","v":"{Backup Heating System Fuel}"},{"$f":"IFERROR(MID($O65,FIND(CHAR(160),SUBSTITUTE($O65,\"{\",CHAR(160),FG$1)),FIND(CHAR(160),SUBSTITUTE($O65,\"}\",CHAR(160),FG$1))-FIND(CHAR(160),SUBSTITUTE($O65,\"{\",CHAR(160),FG$1))+1),\"\")","v":""},{"$f":"IFERROR(MID($O65,FIND(CHAR(160),SUBSTITUTE($O65,\"{\",CHAR(160),FH$1)),FIND(CHAR(160),SUBSTITUTE($O65,\"}\",CHAR(160),FH$1))-FIND(CHAR(160),SUBSTITUTE($O65,\"{\",CHAR(160),FH$1))+1),\"\")","v":""},{"$f":"IFERROR(MID($O65,FIND(CHAR(160),SUBSTITUTE($O65,\"{\",CHAR(160),FI$1)),FIND(CHAR(160),SUBSTITUTE($O65,\"}\",CHAR(160),FI$1))-FIND(CHAR(160),SUBSTITUTE($O65,\"{\",CHAR(160),FI$1))+1),\"\")","v":""},{"$f":"IFERROR(MID($O65,FIND(CHAR(160),SUBSTITUTE($O65,\"{\",CHAR(160),FJ$1)),FIND(CHAR(160),SUBSTITUTE($O65,\"}\",CHAR(160),FJ$1))-FIND(CHAR(160),SUBSTITUTE($O65,\"{\",CHAR(160),FJ$1))+1),\"\")","v":""},{"$f":"IFERROR(MID($O65,FIND(CHAR(160),SUBSTITUTE($O65,\"{\",CHAR(160),FK$1)),FIND(CHAR(160),SUBSTITUTE($O65,\"}\",CHAR(160),FK$1))-FIND(CHAR(160),SUBSTITUTE($O65,\"{\",CHAR(160),FK$1))+1),\"\")","v":"{Backup Heating System Fuel}"},{"$f":"IFERROR(MID($O65,FIND(CHAR(160),SUBSTITUTE($O65,\"{\",CHAR(160),FL$1)),FIND(CHAR(160),SUBSTITUTE($O65,\"}\",CHAR(160),FL$1))-FIND(CHAR(160),SUBSTITUTE($O65,\"{\",CHAR(160),FL$1))+1),\"\")","v":"{Backup Heating System Fuel}"},{"$f":"IFERROR(MID($R65,FIND(CHAR(160),SUBSTITUTE($R65,\"{\",CHAR(160),FM$1)),FIND(CHAR(160),SUBSTITUTE($R65,\"}\",CHAR(160),FM$1))-FIND(CHAR(160),SUBSTITUTE($R65,\"{\",CHAR(160),FM$1))+1),\"\")","v":""},{"$f":"IFERROR(MID($R65,FIND(CHAR(160),SUBSTITUTE($R65,\"{\",CHAR(160),FN$1)),FIND(CHAR(160),SUBSTITUTE($R65,\"}\",CHAR(160),FN$1))-FIND(CHAR(160),SUBSTITUTE($R65,\"{\",CHAR(160),FN$1))+1),\"\")","v":""},{"$f":"IFERROR(MID($R65,FIND(CHAR(160),SUBSTITUTE($R65,\"{\",CHAR(160),FO$1)),FIND(CHAR(160),SUBSTITUTE($R65,\"}\",CHAR(160),FO$1))-FIND(CHAR(160),SUBSTITUTE($R65,\"{\",CHAR(160),FO$1))+1),\"\")","v":""},{"$f":"IFERROR(MID($R65,FIND(CHAR(160),SUBSTITUTE($R65,\"{\",CHAR(160),FP$1)),FIND(CHAR(160),SUBSTITUTE($R65,\"}\",CHAR(160),FP$1))-FIND(CHAR(160),SUBSTITUTE($R65,\"{\",CHAR(160),FP$1))+1),\"\")","v":""},{"$f":"IFERROR(MID($R65,FIND(CHAR(160),SUBSTITUTE($R65,\"{\",CHAR(160),FQ$1)),FIND(CHAR(160),SUBSTITUTE($R65,\"}\",CHAR(160),FQ$1))-FIND(CHAR(160),SUBSTITUTE($R65,\"{\",CHAR(160),FQ$1))+1),\"\")","v":""},{"$f":"IFERROR(MID($R65,FIND(CHAR(160),SUBSTITUTE($R65,\"{\",CHAR(160),FR$1)),FIND(CHAR(160),SUBSTITUTE($R65,\"}\",CHAR(160),FR$1))-FIND(CHAR(160),SUBSTITUTE($R65,\"{\",CHAR(160),FR$1))+1),\"\")","v":""},{"$f":"IFERROR(MID($R65,FIND(CHAR(160),SUBSTITUTE($R65,\"{\",CHAR(160),FS$1)),FIND(CHAR(160),SUBSTITUTE($R65,\"}\",CHAR(160),FS$1))-FIND(CHAR(160),SUBSTITUTE($R65,\"{\",CHAR(160),FS$1))+1),\"\")","v":""},{"$f":"IFERROR(MID($R65,FIND(CHAR(160),SUBSTITUTE($R65,\"{\",CHAR(160),FT$1)),FIND(CHAR(160),SUBSTITUTE($R65,\"}\",CHAR(160),FT$1))-FIND(CHAR(160),SUBSTITUTE($R65,\"{\",CHAR(160),FT$1))+1),\"\")","v":""},{"$f":"IFERROR(MID($R65,FIND(CHAR(160),SUBSTITUTE($R65,\"{\",CHAR(160),FU$1)),FIND(CHAR(160),SUBSTITUTE($R65,\"}\",CHAR(160),FU$1))-FIND(CHAR(160),SUBSTITUTE($R65,\"{\",CHAR(160),FU$1))+1),\"\")","v":""},{"$f":"IFERROR(MID($R65,FIND(CHAR(160),SUBSTITUTE($R65,\"{\",CHAR(160),FV$1)),FIND(CHAR(160),SUBSTITUTE($R65,\"}\",CHAR(160),FV$1))-FIND(CHAR(160),SUBSTITUTE($R65,\"{\",CHAR(160),FV$1))+1),\"\")","v":""},{"$f":"IFERROR(MID($U65,FIND(CHAR(160),SUBSTITUTE($U65,\"{\",CHAR(160),FW$1)),FIND(CHAR(160),SUBSTITUTE($U65,\"}\",CHAR(160),FW$1))-FIND(CHAR(160),SUBSTITUTE($U65,\"{\",CHAR(160),FW$1))+1),\"\")","v":"{Number of Zones}"},{"$f":"IFERROR(MID($U65,FIND(CHAR(160),SUBSTITUTE($U65,\"{\",CHAR(160),FX$1)),FIND(CHAR(160),SUBSTITUTE($U65,\"}\",CHAR(160),FX$1))-FIND(CHAR(160),SUBSTITUTE($U65,\"{\",CHAR(160),FX$1))+1),\"\")","v":"{Measure:Quantity}"},{"$f":"IFERROR(MID($U65,FIND(CHAR(160),SUBSTITUTE($U65,\"{\",CHAR(160),FY$1)),FIND(CHAR(160),SUBSTITUTE($U65,\"}\",CHAR(160),FY$1))-FIND(CHAR(160),SUBSTITUTE($U65,\"{\",CHAR(160),FY$1))+1),\"\")","v":"{Backup Heating System Fuel}"},{"$f":"IFERROR(MID($U65,FIND(CHAR(160),SUBSTITUTE($U65,\"{\",CHAR(160),FZ$1)),FIND(CHAR(160),SUBSTITUTE($U65,\"}\",CHAR(160),FZ$1))-FIND(CHAR(160),SUBSTITUTE($U65,\"{\",CHAR(160),FZ$1))+1),\"\")","v":"{Backup Heating System Fuel}"},{"$f":"IFERROR(MID($U65,FIND(CHAR(160),SUBSTITUTE($U65,\"{\",CHAR(160),GA$1)),FIND(CHAR(160),SUBSTITUTE($U65,\"}\",CHAR(160),GA$1))-FIND(CHAR(160),SUBSTITUTE($U65,\"{\",CHAR(160),GA$1))+1),\"\")","v":""},{"$f":"IFERROR(MID($U65,FIND(CHAR(160),SUBSTITUTE($U65,\"{\",CHAR(160),GB$1)),FIND(CHAR(160),SUBSTITUTE($U65,\"}\",CHAR(160),GB$1))-FIND(CHAR(160),SUBSTITUTE($U65,\"{\",CHAR(160),GB$1))+1),\"\")","v":""},{"$f":"IFERROR(MID($U65,FIND(CHAR(160),SUBSTITUTE($U65,\"{\",CHAR(160),GC$1)),FIND(CHAR(160),SUBSTITUTE($U65,\"}\",CHAR(160),GC$1))-FIND(CHAR(160),SUBSTITUTE($U65,\"{\",CHAR(160),GC$1))+1),\"\")","v":""},{"$f":"IFERROR(MID($U65,FIND(CHAR(160),SUBSTITUTE($U65,\"{\",CHAR(160),GD$1)),FIND(CHAR(160),SUBSTITUTE($U65,\"}\",CHAR(160),GD$1))-FIND(CHAR(160),SUBSTITUTE($U65,\"{\",CHAR(160),GD$1))+1),\"\")","v":""},{"$f":"IFERROR(MID($U65,FIND(CHAR(160),SUBSTITUTE($U65,\"{\",CHAR(160),GE$1)),FIND(CHAR(160),SUBSTITUTE($U65,\"}\",CHAR(160),GE$1))-FIND(CHAR(160),SUBSTITUTE($U65,\"{\",CHAR(160),GE$1))+1),\"\")","v":"{Backup Heating System Fuel}"},{"$f":"IFERROR(MID($U65,FIND(CHAR(160),SUBSTITUTE($U65,\"{\",CHAR(160),GF$1)),FIND(CHAR(160),SUBSTITUTE($U65,\"}\",CHAR(160),GF$1))-FIND(CHAR(160),SUBSTITUTE($U65,\"{\",CHAR(160),GF$1))+1),\"\")","v":"{Backup Heating System Fuel}"},{"$f":"IFERROR(MID($V65,FIND(CHAR(160),SUBSTITUTE($V65,\"{\",CHAR(160),GG$1)),FIND(CHAR(160),SUBSTITUTE($V65,\"}\",CHAR(160),GG$1))-FIND(CHAR(160),SUBSTITUTE($V65,\"{\",CHAR(160),GG$1))+1),\"\")","v":""},{"$f":"IFERROR(MID($V65,FIND(CHAR(160),SUBSTITUTE($V65,\"{\",CHAR(160),GH$1)),FIND(CHAR(160),SUBSTITUTE($V65,\"}\",CHAR(160),GH$1))-FIND(CHAR(160),SUBSTITUTE($V65,\"{\",CHAR(160),GH$1))+1),\"\")","v":""},{"$f":"IFERROR(MID($V65,FIND(CHAR(160),SUBSTITUTE($V65,\"{\",CHAR(160),GI$1)),FIND(CHAR(160),SUBSTITUTE($V65,\"}\",CHAR(160),GI$1))-FIND(CHAR(160),SUBSTITUTE($V65,\"{\",CHAR(160),GI$1))+1),\"\")","v":""},{"$f":"IFERROR(MID($V65,FIND(CHAR(160),SUBSTITUTE($V65,\"{\",CHAR(160),GJ$1)),FIND(CHAR(160),SUBSTITUTE($V65,\"}\",CHAR(160),GJ$1))-FIND(CHAR(160),SUBSTITUTE($V65,\"{\",CHAR(160),GJ$1))+1),\"\")","v":""},{"$f":"IFERROR(MID($V65,FIND(CHAR(160),SUBSTITUTE($V65,\"{\",CHAR(160),GK$1)),FIND(CHAR(160),SUBSTITUTE($V65,\"}\",CHAR(160),GK$1))-FIND(CHAR(160),SUBSTITUTE($V65,\"{\",CHAR(160),GK$1))+1),\"\")","v":""},{"$f":"IFERROR(MID($V65,FIND(CHAR(160),SUBSTITUTE($V65,\"{\",CHAR(160),GL$1)),FIND(CHAR(160),SUBSTITUTE($V65,\"}\",CHAR(160),GL$1))-FIND(CHAR(160),SUBSTITUTE($V65,\"{\",CHAR(160),GL$1))+1),\"\")","v":""},{"$f":"IFERROR(MID($V65,FIND(CHAR(160),SUBSTITUTE($V65,\"{\",CHAR(160),GM$1)),FIND(CHAR(160),SUBSTITUTE($V65,\"}\",CHAR(160),GM$1))-FIND(CHAR(160),SUBSTITUTE($V65,\"{\",CHAR(160),GM$1))+1),\"\")","v":""},{"$f":"IFERROR(MID($V65,FIND(CHAR(160),SUBSTITUTE($V65,\"{\",CHAR(160),GN$1)),FIND(CHAR(160),SUBSTITUTE($V65,\"}\",CHAR(160),GN$1))-FIND(CHAR(160),SUBSTITUTE($V65,\"{\",CHAR(160),GN$1))+1),\"\")","v":""},{"$f":"IFERROR(MID($V65,FIND(CHAR(160),SUBSTITUTE($V65,\"{\",CHAR(160),GO$1)),FIND(CHAR(160),SUBSTITUTE($V65,\"}\",CHAR(160),GO$1))-FIND(CHAR(160),SUBSTITUTE($V65,\"{\",CHAR(160),GO$1))+1),\"\")","v":"{Number of Zones}"},{"$f":"IFERROR(MID($V65,FIND(CHAR(160),SUBSTITUTE($V65,\"{\",CHAR(160),GP$1)),FIND(CHAR(160),SUBSTITUTE($V65,\"}\",CHAR(160),GP$1))-FIND(CHAR(160),SUBSTITUTE($V65,\"{\",CHAR(160),GP$1))+1),\"\")","v":"{Measure:Quantity}"},{"$f":"IFERROR(MID($W65,FIND(CHAR(160),SUBSTITUTE($W65,\"{\",CHAR(160),GQ$1)),FIND(CHAR(160),SUBSTITUTE($W65,\"}\",CHAR(160),GQ$1))-FIND(CHAR(160),SUBSTITUTE($W65,\"{\",CHAR(160),GQ$1))+1),\"\")","v":"{Number of Zones}"},{"$f":"IFERROR(MID($W65,FIND(CHAR(160),SUBSTITUTE($W65,\"{\",CHAR(160),GR$1)),FIND(CHAR(160),SUBSTITUTE($W65,\"}\",CHAR(160),GR$1))-FIND(CHAR(160),SUBSTITUTE($W65,\"{\",CHAR(160),GR$1))+1),\"\")","v":"{Measure:Quantity}"},{"$f":"IFERROR(MID($W65,FIND(CHAR(160),SUBSTITUTE($W65,\"{\",CHAR(160),GS$1)),FIND(CHAR(160),SUBSTITUTE($W65,\"}\",CHAR(160),GS$1))-FIND(CHAR(160),SUBSTITUTE($W65,\"{\",CHAR(160),GS$1))+1),\"\")","v":"{Backup Heating System Fuel}"},{"$f":"IFERROR(MID($W65,FIND(CHAR(160),SUBSTITUTE($W65,\"{\",CHAR(160),GT$1)),FIND(CHAR(160),SUBSTITUTE($W65,\"}\",CHAR(160),GT$1))-FIND(CHAR(160),SUBSTITUTE($W65,\"{\",CHAR(160),GT$1))+1),\"\")","v":"{Backup Heating System Fuel}"},{"$f":"IFERROR(MID($W65,FIND(CHAR(160),SUBSTITUTE($W65,\"{\",CHAR(160),GU$1)),FIND(CHAR(160),SUBSTITUTE($W65,\"}\",CHAR(160),GU$1))-FIND(CHAR(160),SUBSTITUTE($W65,\"{\",CHAR(160),GU$1))+1),\"\")","v":""},{"$f":"IFERROR(MID($W65,FIND(CHAR(160),SUBSTITUTE($W65,\"{\",CHAR(160),GV$1)),FIND(CHAR(160),SUBSTITUTE($W65,\"}\",CHAR(160),GV$1))-FIND(CHAR(160),SUBSTITUTE($W65,\"{\",CHAR(160),GV$1))+1),\"\")","v":""},{"$f":"IFERROR(MID($W65,FIND(CHAR(160),SUBSTITUTE($W65,\"{\",CHAR(160),GW$1)),FIND(CHAR(160),SUBSTITUTE($W65,\"}\",CHAR(160),GW$1))-FIND(CHAR(160),SUBSTITUTE($W65,\"{\",CHAR(160),GW$1))+1),\"\")","v":""},{"$f":"IFERROR(MID($W65,FIND(CHAR(160),SUBSTITUTE($W65,\"{\",CHAR(160),GX$1)),FIND(CHAR(160),SUBSTITUTE($W65,\"}\",CHAR(160),GX$1))-FIND(CHAR(160),SUBSTITUTE($W65,\"{\",CHAR(160),GX$1))+1),\"\")","v":""},{"$f":"IFERROR(MID($W65,FIND(CHAR(160),SUBSTITUTE($W65,\"{\",CHAR(160),GY$1)),FIND(CHAR(160),SUBSTITUTE($W65,\"}\",CHAR(160),GY$1))-FIND(CHAR(160),SUBSTITUTE($W65,\"{\",CHAR(160),GY$1))+1),\"\")","v":"{Backup Heating System Fuel}"},{"$f":"IFERROR(MID($W65,FIND(CHAR(160),SUBSTITUTE($W65,\"{\",CHAR(160),GZ$1)),FIND(CHAR(160),SUBSTITUTE($W65,\"}\",CHAR(160),GZ$1))-FIND(CHAR(160),SUBSTITUTE($W65,\"{\",CHAR(160),GZ$1))+1),\"\")","v":"{Backup Heating System Fuel}"},{"$f":"IFERROR(MID($X65,FIND(CHAR(160),SUBSTITUTE($X65,\"{\",CHAR(160),HA$1)),FIND(CHAR(160),SUBSTITUTE($X65,\"}\",CHAR(160),HA$1))-FIND(CHAR(160),SUBSTITUTE($X65,\"{\",CHAR(160),HA$1))+1),\"\")","v":"{Number of Zones}"},{"$f":"IFERROR(MID($X65,FIND(CHAR(160),SUBSTITUTE($X65,\"{\",CHAR(160),HB$1)),FIND(CHAR(160),SUBSTITUTE($X65,\"}\",CHAR(160),HB$1))-FIND(CHAR(160),SUBSTITUTE($X65,\"{\",CHAR(160),HB$1))+1),\"\")","v":"{Measure:Quantity}"},{"$f":"IFERROR(MID($X65,FIND(CHAR(160),SUBSTITUTE($X65,\"{\",CHAR(160),HC$1)),FIND(CHAR(160),SUBSTITUTE($X65,\"}\",CHAR(160),HC$1))-FIND(CHAR(160),SUBSTITUTE($X65,\"{\",CHAR(160),HC$1))+1),\"\")","v":"{Backup Heating System Fuel}"},{"$f":"IFERROR(MID($X65,FIND(CHAR(160),SUBSTITUTE($X65,\"{\",CHAR(160),HD$1)),FIND(CHAR(160),SUBSTITUTE($X65,\"}\",CHAR(160),HD$1))-FIND(CHAR(160),SUBSTITUTE($X65,\"{\",CHAR(160),HD$1))+1),\"\")","v":"{Backup Heating System Fuel}"},{"$f":"IFERROR(MID($X65,FIND(CHAR(160),SUBSTITUTE($X65,\"{\",CHAR(160),HE$1)),FIND(CHAR(160),SUBSTITUTE($X65,\"}\",CHAR(160),HE$1))-FIND(CHAR(160),SUBSTITUTE($X65,\"{\",CHAR(160),HE$1))+1),\"\")","v":""},{"$f":"IFERROR(MID($X65,FIND(CHAR(160),SUBSTITUTE($X65,\"{\",CHAR(160),HF$1)),FIND(CHAR(160),SUBSTITUTE($X65,\"}\",CHAR(160),HF$1))-FIND(CHAR(160),SUBSTITUTE($X65,\"{\",CHAR(160),HF$1))+1),\"\")","v":""},{"$f":"IFERROR(MID($X65,FIND(CHAR(160),SUBSTITUTE($X65,\"{\",CHAR(160),HG$1)),FIND(CHAR(160),SUBSTITUTE($X65,\"}\",CHAR(160),HG$1))-FIND(CHAR(160),SUBSTITUTE($X65,\"{\",CHAR(160),HG$1))+1),\"\")","v":""},{"$f":"IFERROR(MID($X65,FIND(CHAR(160),SUBSTITUTE($X65,\"{\",CHAR(160),HH$1)),FIND(CHAR(160),SUBSTITUTE($X65,\"}\",CHAR(160),HH$1))-FIND(CHAR(160),SUBSTITUTE($X65,\"{\",CHAR(160),HH$1))+1),\"\")","v":""},{"$f":"IFERROR(MID($X65,FIND(CHAR(160),SUBSTITUTE($X65,\"{\",CHAR(160),HI$1)),FIND(CHAR(160),SUBSTITUTE($X65,\"}\",CHAR(160),HI$1))-FIND(CHAR(160),SUBSTITUTE($X65,\"{\",CHAR(160),HI$1))+1),\"\")","v":"{Backup Heating System Fuel}"},{"$f":"IFERROR(MID($X65,FIND(CHAR(160),SUBSTITUTE($X65,\"{\",CHAR(160),HJ$1)),FIND(CHAR(160),SUBSTITUTE($X65,\"}\",CHAR(160),HJ$1))-FIND(CHAR(160),SUBSTITUTE($X65,\"{\",CHAR(160),HJ$1))+1),\"\")","v":"{Backup Heating System Fuel}"},{"$f":"IFERROR(MID($Y65,FIND(CHAR(160),SUBSTITUTE($Y65,\"{\",CHAR(160),HK$1)),FIND(CHAR(160),SUBSTITUTE($Y65,\"}\",CHAR(160),HK$1))-FIND(CHAR(160),SUBSTITUTE($Y65,\"{\",CHAR(160),HK$1))+1),\"\")","v":"{Number of Zones}"},{"$f":"IFERROR(MID($Y65,FIND(CHAR(160),SUBSTITUTE($Y65,\"{\",CHAR(160),HL$1)),FIND(CHAR(160),SUBSTITUTE($Y65,\"}\",CHAR(160),HL$1))-FIND(CHAR(160),SUBSTITUTE($Y65,\"{\",CHAR(160),HL$1))+1),\"\")","v":"{Measure:Quantity}"},{"$f":"IFERROR(MID($Y65,FIND(CHAR(160),SUBSTITUTE($Y65,\"{\",CHAR(160),HM$1)),FIND(CHAR(160),SUBSTITUTE($Y65,\"}\",CHAR(160),HM$1))-FIND(CHAR(160),SUBSTITUTE($Y65,\"{\",CHAR(160),HM$1))+1),\"\")","v":"{Backup Heating System Fuel}"},{"$f":"IFERROR(MID($Y65,FIND(CHAR(160),SUBSTITUTE($Y65,\"{\",CHAR(160),HN$1)),FIND(CHAR(160),SUBSTITUTE($Y65,\"}\",CHAR(160),HN$1))-FIND(CHAR(160),SUBSTITUTE($Y65,\"{\",CHAR(160),HN$1))+1),\"\")","v":"{Backup Heating System Fuel}"},{"$f":"IFERROR(MID($Y65,FIND(CHAR(160),SUBSTITUTE($Y65,\"{\",CHAR(160),HO$1)),FIND(CHAR(160),SUBSTITUTE($Y65,\"}\",CHAR(160),HO$1))-FIND(CHAR(160),SUBSTITUTE($Y65,\"{\",CHAR(160),HO$1))+1),\"\")","v":""},{"$f":"IFERROR(MID($Y65,FIND(CHAR(160),SUBSTITUTE($Y65,\"{\",CHAR(160),HP$1)),FIND(CHAR(160),SUBSTITUTE($Y65,\"}\",CHAR(160),HP$1))-FIND(CHAR(160),SUBSTITUTE($Y65,\"{\",CHAR(160),HP$1))+1),\"\")","v":""},{"$f":"IFERROR(MID($Y65,FIND(CHAR(160),SUBSTITUTE($Y65,\"{\",CHAR(160),HQ$1)),FIND(CHAR(160),SUBSTITUTE($Y65,\"}\",CHAR(160),HQ$1))-FIND(CHAR(160),SUBSTITUTE($Y65,\"{\",CHAR(160),HQ$1))+1),\"\")","v":""},{"$f":"IFERROR(MID($Y65,FIND(CHAR(160),SUBSTITUTE($Y65,\"{\",CHAR(160),HR$1)),FIND(CHAR(160),SUBSTITUTE($Y65,\"}\",CHAR(160),HR$1))-FIND(CHAR(160),SUBSTITUTE($Y65,\"{\",CHAR(160),HR$1))+1),\"\")","v":""},{"$f":"IFERROR(MID($Y65,FIND(CHAR(160),SUBSTITUTE($Y65,\"{\",CHAR(160),HS$1)),FIND(CHAR(160),SUBSTITUTE($Y65,\"}\",CHAR(160),HS$1))-FIND(CHAR(160),SUBSTITUTE($Y65,\"{\",CHAR(160),HS$1))+1),\"\")","v":"{Backup Heating System Fuel}"},{"$f":"IFERROR(MID($Y65,FIND(CHAR(160),SUBSTITUTE($Y65,\"{\",CHAR(160),HT$1)),FIND(CHAR(160),SUBSTITUTE($Y65,\"}\",CHAR(160),HT$1))-FIND(CHAR(160),SUBSTITUTE($Y65,\"{\",CHAR(160),HT$1))+1),\"\")","v":"{Backup Heating System Fuel}"},{"$f":"IFERROR(MID($Z65,FIND(CHAR(160),SUBSTITUTE($Z65,\"{\",CHAR(160),HU$1)),FIND(CHAR(160),SUBSTITUTE($Z65,\"}\",CHAR(160),HU$1))-FIND(CHAR(160),SUBSTITUTE($Z65,\"{\",CHAR(160),HU$1))+1),\"\")","v":"{Number of Zones}"},{"$f":"IFERROR(MID($Z65,FIND(CHAR(160),SUBSTITUTE($Z65,\"{\",CHAR(160),HV$1)),FIND(CHAR(160),SUBSTITUTE($Z65,\"}\",CHAR(160),HV$1))-FIND(CHAR(160),SUBSTITUTE($Z65,\"{\",CHAR(160),HV$1))+1),\"\")","v":"{Measure:Quantity}"},{"$f":"IFERROR(MID($Z65,FIND(CHAR(160),SUBSTITUTE($Z65,\"{\",CHAR(160),HW$1)),FIND(CHAR(160),SUBSTITUTE($Z65,\"}\",CHAR(160),HW$1))-FIND(CHAR(160),SUBSTITUTE($Z65,\"{\",CHAR(160),HW$1))+1),\"\")","v":"{Backup Heating System Fuel}"},{"$f":"IFERROR(MID($Z65,FIND(CHAR(160),SUBSTITUTE($Z65,\"{\",CHAR(160),HX$1)),FIND(CHAR(160),SUBSTITUTE($Z65,\"}\",CHAR(160),HX$1))-FIND(CHAR(160),SUBSTITUTE($Z65,\"{\",CHAR(160),HX$1))+1),\"\")","v":"{Backup Heating System Fuel}"},{"$f":"IFERROR(MID($Z65,FIND(CHAR(160),SUBSTITUTE($Z65,\"{\",CHAR(160),HY$1)),FIND(CHAR(160),SUBSTITUTE($Z65,\"}\",CHAR(160),HY$1))-FIND(CHAR(160),SUBSTITUTE($Z65,\"{\",CHAR(160),HY$1))+1),\"\")","v":""},{"$f":"IFERROR(MID($Z65,FIND(CHAR(160),SUBSTITUTE($Z65,\"{\",CHAR(160),HZ$1)),FIND(CHAR(160),SUBSTITUTE($Z65,\"}\",CHAR(160),HZ$1))-FIND(CHAR(160),SUBSTITUTE($Z65,\"{\",CHAR(160),HZ$1))+1),\"\")","v":""},{"$f":"IFERROR(MID($Z65,FIND(CHAR(160),SUBSTITUTE($Z65,\"{\",CHAR(160),IA$1)),FIND(CHAR(160),SUBSTITUTE($Z65,\"}\",CHAR(160),IA$1))-FIND(CHAR(160),SUBSTITUTE($Z65,\"{\",CHAR(160),IA$1))+1),\"\")","v":""},{"$f":"IFERROR(MID($Z65,FIND(CHAR(160),SUBSTITUTE($Z65,\"{\",CHAR(160),IB$1)),FIND(CHAR(160),SUBSTITUTE($Z65,\"}\",CHAR(160),IB$1))-FIND(CHAR(160),SUBSTITUTE($Z65,\"{\",CHAR(160),IB$1))+1),\"\")","v":""},{"$f":"IFERROR(MID($Z65,FIND(CHAR(160),SUBSTITUTE($Z65,\"{\",CHAR(160),IC$1)),FIND(CHAR(160),SUBSTITUTE($Z65,\"}\",CHAR(160),IC$1))-FIND(CHAR(160),SUBSTITUTE($Z65,\"{\",CHAR(160),IC$1))+1),\"\")","v":"{Backup Heating System Fuel}"},{"$f":"IFERROR(MID($Z65,FIND(CHAR(160),SUBSTITUTE($Z65,\"{\",CHAR(160),ID$1)),FIND(CHAR(160),SUBSTITUTE($Z65,\"}\",CHAR(160),ID$1))-FIND(CHAR(160),SUBSTITUTE($Z65,\"{\",CHAR(160),ID$1))+1),\"\")","v":"{Backup Heating System Fuel}"},{"$f":"IFERROR(MID($AA65,FIND(CHAR(160),SUBSTITUTE($AA65,\"{\",CHAR(160),IE$1)),FIND(CHAR(160),SUBSTITUTE($AA65,\"}\",CHAR(160),IE$1))-FIND(CHAR(160),SUBSTITUTE($AA65,\"{\",CHAR(160),IE$1))+1),\"\")","v":"{Number of Zones}"},{"$f":"IFERROR(MID($AA65,FIND(CHAR(160),SUBSTITUTE($AA65,\"{\",CHAR(160),IF$1)),FIND(CHAR(160),SUBSTITUTE($AA65,\"}\",CHAR(160),IF$1))-FIND(CHAR(160),SUBSTITUTE($AA65,\"{\",CHAR(160),IF$1))+1),\"\")","v":"{Measure:Quantity}"},{"$f":"IFERROR(MID($AA65,FIND(CHAR(160),SUBSTITUTE($AA65,\"{\",CHAR(160),IG$1)),FIND(CHAR(160),SUBSTITUTE($AA65,\"}\",CHAR(160),IG$1))-FIND(CHAR(160),SUBSTITUTE($AA65,\"{\",CHAR(160),IG$1))+1),\"\")","v":"{Backup Heating System Fuel}"},{"$f":"IFERROR(MID($AA65,FIND(CHAR(160),SUBSTITUTE($AA65,\"{\",CHAR(160),IH$1)),FIND(CHAR(160),SUBSTITUTE($AA65,\"}\",CHAR(160),IH$1))-FIND(CHAR(160),SUBSTITUTE($AA65,\"{\",CHAR(160),IH$1))+1),\"\")","v":"{Backup Heating System Fuel}"},{"$f":"IFERROR(MID($AA65,FIND(CHAR(160),SUBSTITUTE($AA65,\"{\",CHAR(160),II$1)),FIND(CHAR(160),SUBSTITUTE($AA65,\"}\",CHAR(160),II$1))-FIND(CHAR(160),SUBSTITUTE($AA65,\"{\",CHAR(160),II$1))+1),\"\")","v":""},{"$f":"IFERROR(MID($AA65,FIND(CHAR(160),SUBSTITUTE($AA65,\"{\",CHAR(160),IJ$1)),FIND(CHAR(160),SUBSTITUTE($AA65,\"}\",CHAR(160),IJ$1))-FIND(CHAR(160),SUBSTITUTE($AA65,\"{\",CHAR(160),IJ$1))+1),\"\")","v":""},{"$f":"IFERROR(MID($AA65,FIND(CHAR(160),SUBSTITUTE($AA65,\"{\",CHAR(160),IK$1)),FIND(CHAR(160),SUBSTITUTE($AA65,\"}\",CHAR(160),IK$1))-FIND(CHAR(160),SUBSTITUTE($AA65,\"{\",CHAR(160),IK$1))+1),\"\")","v":""},{"$f":"IFERROR(MID($AA65,FIND(CHAR(160),SUBSTITUTE($AA65,\"{\",CHAR(160),IL$1)),FIND(CHAR(160),SUBSTITUTE($AA65,\"}\",CHAR(160),IL$1))-FIND(CHAR(160),SUBSTITUTE($AA65,\"{\",CHAR(160),IL$1))+1),\"\")","v":""},{"$f":"IFERROR(MID($AA65,FIND(CHAR(160),SUBSTITUTE($AA65,\"{\",CHAR(160),IM$1)),FIND(CHAR(160),SUBSTITUTE($AA65,\"}\",CHAR(160),IM$1))-FIND(CHAR(160),SUBSTITUTE($AA65,\"{\",CHAR(160),IM$1))+1),\"\")","v":"{Backup Heating System Fuel}"},{"$f":"IFERROR(MID($AA65,FIND(CHAR(160),SUBSTITUTE($AA65,\"{\",CHAR(160),IN$1)),FIND(CHAR(160),SUBSTITUTE($AA65,\"}\",CHAR(160),IN$1))-FIND(CHAR(160),SUBSTITUTE($AA65,\"{\",CHAR(160),IN$1))+1),\"\")","v":"{Backup Heating System Fuel}"},{"$f":"IFERROR(MID($AB65,FIND(CHAR(160),SUBSTITUTE($AB65,\"{\",CHAR(160),IO$1)),FIND(CHAR(160),SUBSTITUTE($AB65,\"}\",CHAR(160),IO$1))-FIND(CHAR(160),SUBSTITUTE($AB65,\"{\",CHAR(160),IO$1))+1),\"\")","v":""},{"$f":"IFERROR(MID($AB65,FIND(CHAR(160),SUBSTITUTE($AB65,\"{\",CHAR(160),IP$1)),FIND(CHAR(160),SUBSTITUTE($AB65,\"}\",CHAR(160),IP$1))-FIND(CHAR(160),SUBSTITUTE($AB65,\"{\",CHAR(160),IP$1))+1),\"\")","v":""},{"$f":"IFERROR(MID($AB65,FIND(CHAR(160),SUBSTITUTE($AB65,\"{\",CHAR(160),IQ$1)),FIND(CHAR(160),SUBSTITUTE($AB65,\"}\",CHAR(160),IQ$1))-FIND(CHAR(160),SUBSTITUTE($AB65,\"{\",CHAR(160),IQ$1))+1),\"\")","v":""},{"$f":"IFERROR(MID($AB65,FIND(CHAR(160),SUBSTITUTE($AB65,\"{\",CHAR(160),IR$1)),FIND(CHAR(160),SUBSTITUTE($AB65,\"}\",CHAR(160),IR$1))-FIND(CHAR(160),SUBSTITUTE($AB65,\"{\",CHAR(160),IR$1))+1),\"\")","v":""},{"$f":"IFERROR(MID($AB65,FIND(CHAR(160),SUBSTITUTE($AB65,\"{\",CHAR(160),IS$1)),FIND(CHAR(160),SUBSTITUTE($AB65,\"}\",CHAR(160),IS$1))-FIND(CHAR(160),SUBSTITUTE($AB65,\"{\",CHAR(160),IS$1))+1),\"\")","v":""},{"$f":"IFERROR(MID($AB65,FIND(CHAR(160),SUBSTITUTE($AB65,\"{\",CHAR(160),IT$1)),FIND(CHAR(160),SUBSTITUTE($AB65,\"}\",CHAR(160),IT$1))-FIND(CHAR(160),SUBSTITUTE($AB65,\"{\",CHAR(160),IT$1))+1),\"\")","v":""},{"$f":"IFERROR(MID($AB65,FIND(CHAR(160),SUBSTITUTE($AB65,\"{\",CHAR(160),IU$1)),FIND(CHAR(160),SUBSTITUTE($AB65,\"}\",CHAR(160),IU$1))-FIND(CHAR(160),SUBSTITUTE($AB65,\"{\",CHAR(160),IU$1))+1),\"\")","v":""},{"$f":"IFERROR(MID($AB65,FIND(CHAR(160),SUBSTITUTE($AB65,\"{\",CHAR(160),IV$1)),FIND(CHAR(160),SUBSTITUTE($AB65,\"}\",CHAR(160),IV$1))-FIND(CHAR(160),SUBSTITUTE($AB65,\"{\",CHAR(160),IV$1))+1),\"\")","v":""},{"$f":"IFERROR(MID($AB65,FIND(CHAR(160),SUBSTITUTE($AB65,\"{\",CHAR(160),IW$1)),FIND(CHAR(160),SUBSTITUTE($AB65,\"}\",CHAR(160),IW$1))-FIND(CHAR(160),SUBSTITUTE($AB65,\"{\",CHAR(160),IW$1))+1),\"\")","v":""},{"$f":"IFERROR(MID($AB65,FIND(CHAR(160),SUBSTITUTE($AB65,\"{\",CHAR(160),IX$1)),FIND(CHAR(160),SUBSTITUTE($AB65,\"}\",CHAR(160),IX$1))-FIND(CHAR(160),SUBSTITUTE($AB65,\"{\",CHAR(160),IX$1))+1),\"\")","v":""},null,{"$f":"10-COUNTIF(DU65:ED65,\"\")","v":3}]
["C&I HVAC - High Performance Heat Pumps","DHP Lost Opportunity Single Zone","DHP1L","2021-07-01","2022-06-30","Per Measure",682,0,"Per Measure",500,0,"2021-07-01","2022-06-30","Calculated","if({Backup Heating System Fuel}=6,717,if({Backup Heating System Fuel}=0,275.4,165))+({Measure:Quantity}-1)*if({Backup Heating System Fuel}=6,406,if({Backup Heating System Fuel}=0,194.8,142))",null,null,null,null,null,"if({Backup Heating System Fuel}=6,0.04,if({Backup Heating System Fuel}=0,0.027,0.024))+({Measure:Quantity}-1)*if({Backup Heating System Fuel}=6,0.024,if({Backup Heating System Fuel}=0,0.017,0.015))","0.116+(1*{Measure:Quantity}-1)*0.064","10*(if({Backup Heating System Fuel}=1,1,if({Backup Heating System Fuel}=0,0.23,0))*2.3+(1*{Measure:Quantity}-1)*if({Backup Heating System Fuel}=1,1,if({Backup Heating System Fuel}=0,0.23,0))*1.12)","if({Backup Heating System Fuel}=2,1,if({Backup Heating System Fuel}=0,0.09,0))*2.3+(1*{Measure:Quantity}-1)*if({Backup Heating System Fuel}=2,1,if({Backup Heating System Fuel}=0,0.09,0))*1.12","if({Backup Heating System Fuel}=3,1,if({Backup Heating System Fuel}=0,0.48,0))*2.3+(1*{Measure:Quantity}-1)*if({Backup Heating System Fuel}=3,1,if({Backup Heating System Fuel}=0,0.48,0))*1.12","if({Backup Heating System Fuel}=4,1,if({Backup Heating System Fuel}=0,0,0))*2.3+(1*{Measure:Quantity}-1)*if({Backup Heating System Fuel}=4,1,if({Backup Heating System Fuel}=0,0,0))*1.12","if({Backup Heating System Fuel}=5,1,if({Backup Heating System Fuel}=0,0,0))*2.3+(1*{Measure:Quantity}-1)*if({Backup Heating System Fuel}=5,1,if({Backup Heating System Fuel}=0,0,0))*1.12",null,"2021-07-01","2022-06-30",18,1,1,0.37,0.51200000000000001,6.5000000000000002E-2,5.1999999999999998E-2,1,1,1,0.33,1.6E-2,null,{"$f":"DU66","v":"{Measure:Quantity}"},1,{"$f":"DV66","v":"{Backup Heating System Fuel}"},0,{"$f":"DW66","v":""},null,{"$f":"DX66","v":""},null,{"$f":"DY66","v":""},null,{"$f":"DZ66","v":""},null,{"$f":"EA66","v":""},null,{"$f":"EB66","v":""},null,{"$f":"EC66","v":""},null,{"$f":"ED66","v":""},null,{"$f":"IF(AU66=6,717,IF(AU66=0,275.4,165))+(AS66-1)*IF(AU66=6,406,IF(AU66=0,194.8,142))","v":275.39999999999998},0,0,0,0,0,{"$f":"IF(AU66=6,0.04,IF(AU66=0,0.027,0.024))+(AS66-1)*IF(AU66=6,0.024,IF(AU66=0,0.017,0.015))","v":2.7E-2},{"$f":"0.116+(1*AS66-1)*0.064","v":0.11600000000000001},{"$f":"10*(IF(AU66=1,1,IF(AU66=0,0.23,0))*2.3+(1*AS66-1)*IF(AU66=1,1,IF(AU66=0,0.23,0))*1.12)","v":5.29},{"$f":"IF(AU66=2,1,IF(AU66=0,0.09,0))*2.3+(1*AS66-1)*IF(AU66=2,1,IF(AU66=0,0.09,0))*1.12","v":0.20699999999999999},{"$f":"IF(AU66=3,1,IF(AU66=0,0.48,0))*2.3+(1*AS66-1)*IF(AU66=3,1,IF(AU66=0,0.48,0))*1.12","v":1.1039999999999999},{"$f":"IF(AU66=4,1,IF(AU66=0,0,0))*2.3+(1*AS66-1)*IF(AU66=4,1,IF(AU66=0,0,0))*1.12","v":0},{"$f":"IF(AU66=5,1,IF(AU66=0,0,0))*2.3+(1*AS66-1)*IF(AU66=5,1,IF(AU66=0,0,0))*1.12","v":0},0,null,"Res","Default DR",{"$f":"Benefits(BL66,BR66,BS66,BT66,BU66,BV66,BW66,BX66,BY66,BZ66,AE66,AH66,AI66,AJ66,AK66,AL66,AM66,AN66,AO66,AP66,CA66,CB66)","v":431.47690004439636},369.92750086618463,117.48339612432844,533.36767885611062,0,140.26842806525499,0,0,0,{"$f":"SUMPRODUCT(CC66:CK66,--(CC66:CK66>0))","v":1592.523903956275},{"$f":"-SUMPRODUCT(CC66:CK66,--(CC66:CK66<0))","v":0},null,{"$f":"682","v":682},null,null,{"$f":"CM66+CO66","v":682},{"$f":"IF(NetOrGross=\"Net\",(1-AO66+AP66),1)","v":1},{"$f":"(SUMPRODUCT(CC66:CJ66,--(CC66:CJ66>0))+CN66)*CS66/((-SUMPRODUCT(CC66:CJ66,--(CC66:CJ66<0))+MAX(CO66,CV66)+CP66+CQ66)*CS66+IF(FRIncentives=\"Yes\",CV66*(1-CS66),0))","v":2.3350790380590545},1,{"$f":"500","v":500},null,"Electric","y",1,{"$f":"IF(F66=\"Manual Entry\",\"Manual\",IF(G66=\"\",0,\"X=\"&SUBSTITUTE(SUBSTITUTE(SUBSTITUTE(SUBSTITUTE(SUBSTITUTE(SUBSTITUTE(SUBSTITUTE(SUBSTITUTE(SUBSTITUTE(SUBSTITUTE(SUBSTITUTE(SUBSTITUTE(G66,$ED66,$ED$2&ROW($ED66)),$EC66,$EC$2&ROW($EC66)),$EB66,$EB$2&ROW($EB66)),$EA66,$EA$2&ROW($EA66)),$DZ66,$DZ$2&ROW($DZ66)),$DY66,$DY$2&ROW($DY66)),$DX66,$DX$2&ROW($DX66)),$DW66,$DW$2&ROW($DW66)),$DV66,$DV$2&ROW($DV66)),$DU66,$DU$2&ROW($DU66)),$DT66,$DT$2&ROW($DT66)),$DS66,$DS$2&ROW($DS66))))","v":"X=682"},{"$f":"IF(I66=\"Manual Entry\",\"Manual\",IF(J66=\"\",0,\"X=\"&SUBSTITUTE(SUBSTITUTE(SUBSTITUTE(SUBSTITUTE(SUBSTITUTE(SUBSTITUTE(SUBSTITUTE(SUBSTITUTE(SUBSTITUTE(SUBSTITUTE(SUBSTITUTE(SUBSTITUTE(J66,$ED66,$ED$2&ROW($ED66)),$EC66,$EC$2&ROW($EC66)),$EB66,$EB$2&ROW($EB66)),$EA66,$EA$2&ROW($EA66)),$DZ66,$DZ$2&ROW($DZ66)),$DY66,$DY$2&ROW($DY66)),$DX66,$DX$2&ROW($DX66)),$DW66,$DW$2&ROW($DW66)),$DV66,$DV$2&ROW($DV66)),$DU66,$DU$2&ROW($DU66)),$DT66,$DT$2&ROW($DT66)),$DS66,$DS$2&ROW($DS66))))","v":"X=500"},{"$f":"IF(O66=\"\",0,\"X=\"&SUBSTITUTE(SUBSTITUTE(SUBSTITUTE(SUBSTITUTE(SUBSTITUTE(SUBSTITUTE(SUBSTITUTE(SUBSTITUTE(SUBSTITUTE(SUBSTITUTE(SUBSTITUTE(SUBSTITUTE(O66,$ED66,$ED$2&ROW($ED66)),$EC66,$EC$2&ROW($EC66)),$EB66,$EB$2&ROW($EB66)),$EA66,$EA$2&ROW($EA66)),$DZ66,$DZ$2&ROW($DZ66)),$DY66,$DY$2&ROW($DY66)),$DX66,$DX$2&ROW($DX66)),$DW66,$DW$2&ROW($DW66)),$DV66,$DV$2&ROW($DV66)),$DU66,$DU$2&ROW($DU66)),$DT66,$DT$2&ROW($DT66)),$DS66,$DS$2&ROW($DS66)))","v":"X=if(AU66=6,717,if(AU66=0,275.4,165))+(AS66-1)*if(AU66=6,406,if(AU66=0,194.8,142))"},{"$f":"IF(P66=\"\",0,\"X=\"&SUBSTITUTE(SUBSTITUTE(SUBSTITUTE(SUBSTITUTE(SUBSTITUTE(SUBSTITUTE(SUBSTITUTE(SUBSTITUTE(SUBSTITUTE(SUBSTITUTE(SUBSTITUTE(SUBSTITUTE(P66,$ED66,$ED$2&ROW($ED66)),$EC66,$EC$2&ROW($EC66)),$EB66,$EB$2&ROW($EB66)),$EA66,$EA$2&ROW($EA66)),$DZ66,$DZ$2&ROW($DZ66)),$DY66,$DY$2&ROW($DY66)),$DX66,$DX$2&ROW($DX66)),$DW66,$DW$2&ROW($DW66)),$DV66,$DV$2&ROW($DV66)),$DU66,$DU$2&ROW($DU66)),$DT66,$DT$2&ROW($DT66)),$DS66,$DS$2&ROW($DS66)))","v":0},{"$f":"IF(Q66=\"\",0,\"X=\"&SUBSTITUTE(SUBSTITUTE(SUBSTITUTE(SUBSTITUTE(SUBSTITUTE(SUBSTITUTE(SUBSTITUTE(SUBSTITUTE(SUBSTITUTE(SUBSTITUTE(SUBSTITUTE(SUBSTITUTE(Q66,$ED66,$ED$2&ROW($ED66)),$EC66,$EC$2&ROW($EC66)),$EB66,$EB$2&ROW($EB66)),$EA66,$EA$2&ROW($EA66)),$DZ66,$DZ$2&ROW($DZ66)),$DY66,$DY$2&ROW($DY66)),$DX66,$DX$2&ROW($DX66)),$DW66,$DW$2&ROW($DW66)),$DV66,$DV$2&ROW($DV66)),$DU66,$DU$2&ROW($DU66)),$DT66,$DT$2&ROW($DT66)),$DS66,$DS$2&ROW($DS66)))","v":0},{"$f":"IF(R66=\"\",0,\"X=\"&SUBSTITUTE(SUBSTITUTE(SUBSTITUTE(SUBSTITUTE(SUBSTITUTE(SUBSTITUTE(SUBSTITUTE(SUBSTITUTE(SUBSTITUTE(SUBSTITUTE(SUBSTITUTE(SUBSTITUTE(R66,$ED66,$ED$2&ROW($ED66)),$EC66,$EC$2&ROW($EC66)),$EB66,$EB$2&ROW($EB66)),$EA66,$EA$2&ROW($EA66)),$DZ66,$DZ$2&ROW($DZ66)),$DY66,$DY$2&ROW($DY66)),$DX66,$DX$2&ROW($DX66)),$DW66,$DW$2&ROW($DW66)),$DV66,$DV$2&ROW($DV66)),$DU66,$DU$2&ROW($DU66)),$DT66,$DT$2&ROW($DT66)),$DS66,$DS$2&ROW($DS66)))","v":0},{"$f":"IF(S66=\"\",0,\"X=\"&SUBSTITUTE(SUBSTITUTE(SUBSTITUTE(SUBSTITUTE(SUBSTITUTE(SUBSTITUTE(SUBSTITUTE(SUBSTITUTE(SUBSTITUTE(SUBSTITUTE(SUBSTITUTE(SUBSTITUTE(S66,$ED66,$ED$2&ROW($ED66)),$EC66,$EC$2&ROW($EC66)),$EB66,$EB$2&ROW($EB66)),$EA66,$EA$2&ROW($EA66)),$DZ66,$DZ$2&ROW($DZ66)),$DY66,$DY$2&ROW($DY66)),$DX66,$DX$2&ROW($DX66)),$DW66,$DW$2&ROW($DW66)),$DV66,$DV$2&ROW($DV66)),$DU66,$DU$2&ROW($DU66)),$DT66,$DT$2&ROW($DT66)),$DS66,$DS$2&ROW($DS66)))","v":0},{"$f":"IF(T66=\"\",0,\"X=\"&SUBSTITUTE(SUBSTITUTE(SUBSTITUTE(SUBSTITUTE(SUBSTITUTE(SUBSTITUTE(SUBSTITUTE(SUBSTITUTE(SUBSTITUTE(SUBSTITUTE(SUBSTITUTE(SUBSTITUTE(T66,$ED66,$ED$2&ROW($ED66)),$EC66,$EC$2&ROW($EC66)),$EB66,$EB$2&ROW($EB66)),$EA66,$EA$2&ROW($EA66)),$DZ66,$DZ$2&ROW($DZ66)),$DY66,$DY$2&ROW($DY66)),$DX66,$DX$2&ROW($DX66)),$DW66,$DW$2&ROW($DW66)),$DV66,$DV$2&ROW($DV66)),$DU66,$DU$2&ROW($DU66)),$DT66,$DT$2&ROW($DT66)),$DS66,$DS$2&ROW($DS66)))","v":0},{"$f":"IF(U66=\"\",0,\"X=\"&SUBSTITUTE(SUBSTITUTE(SUBSTITUTE(SUBSTITUTE(SUBSTITUTE(SUBSTITUTE(SUBSTITUTE(SUBSTITUTE(SUBSTITUTE(SUBSTITUTE(SUBSTITUTE(SUBSTITUTE(U66,$ED66,$ED$2&ROW($ED66)),$EC66,$EC$2&ROW($EC66)),$EB66,$EB$2&ROW($EB66)),$EA66,$EA$2&ROW($EA66)),$DZ66,$DZ$2&ROW($DZ66)),$DY66,$DY$2&ROW($DY66)),$DX66,$DX$2&ROW($DX66)),$DW66,$DW$2&ROW($DW66)),$DV66,$DV$2&ROW($DV66)),$DU66,$DU$2&ROW($DU66)),$DT66,$DT$2&ROW($DT66)),$DS66,$DS$2&ROW($DS66)))","v":"X=if(AU66=6,0.04,if(AU66=0,0.027,0.024))+(AS66-1)*if(AU66=6,0.024,if(AU66=0,0.017,0.015))"},{"$f":"IF(V66=\"\",0,\"X=\"&SUBSTITUTE(SUBSTITUTE(SUBSTITUTE(SUBSTITUTE(SUBSTITUTE(SUBSTITUTE(SUBSTITUTE(SUBSTITUTE(SUBSTITUTE(SUBSTITUTE(SUBSTITUTE(SUBSTITUTE(V66,$ED66,$ED$2&ROW($ED66)),$EC66,$EC$2&ROW($EC66)),$EB66,$EB$2&ROW($EB66)),$EA66,$EA$2&ROW($EA66)),$DZ66,$DZ$2&ROW($DZ66)),$DY66,$DY$2&ROW($DY66)),$DX66,$DX$2&ROW($DX66)),$DW66,$DW$2&ROW($DW66)),$DV66,$DV$2&ROW($DV66)),$DU66,$DU$2&ROW($DU66)),$DT66,$DT$2&ROW($DT66)),$DS66,$DS$2&ROW($DS66)))","v":"X=0.116+(1*AS66-1)*0.064"},{"$f":"IF(W66=\"\",0,\"X=\"&SUBSTITUTE(SUBSTITUTE(SUBSTITUTE(SUBSTITUTE(SUBSTITUTE(SUBSTITUTE(SUBSTITUTE(SUBSTITUTE(SUBSTITUTE(SUBSTITUTE(SUBSTITUTE(SUBSTITUTE(W66,$ED66,$ED$2&ROW($ED66)),$EC66,$EC$2&ROW($EC66)),$EB66,$EB$2&ROW($EB66)),$EA66,$EA$2&ROW($EA66)),$DZ66,$DZ$2&ROW($DZ66)),$DY66,$DY$2&ROW($DY66)),$DX66,$DX$2&ROW($DX66)),$DW66,$DW$2&ROW($DW66)),$DV66,$DV$2&ROW($DV66)),$DU66,$DU$2&ROW($DU66)),$DT66,$DT$2&ROW($DT66)),$DS66,$DS$2&ROW($DS66)))","v":"X=10*(if(AU66=1,1,if(AU66=0,0.23,0))*2.3+(1*AS66-1)*if(AU66=1,1,if(AU66=0,0.23,0))*1.12)"},{"$f":"IF(X66=\"\",0,\"X=\"&SUBSTITUTE(SUBSTITUTE(SUBSTITUTE(SUBSTITUTE(SUBSTITUTE(SUBSTITUTE(SUBSTITUTE(SUBSTITUTE(SUBSTITUTE(SUBSTITUTE(SUBSTITUTE(SUBSTITUTE(X66,$ED66,$ED$2&ROW($ED66)),$EC66,$EC$2&ROW($EC66)),$EB66,$EB$2&ROW($EB66)),$EA66,$EA$2&ROW($EA66)),$DZ66,$DZ$2&ROW($DZ66)),$DY66,$DY$2&ROW($DY66)),$DX66,$DX$2&ROW($DX66)),$DW66,$DW$2&ROW($DW66)),$DV66,$DV$2&ROW($DV66)),$DU66,$DU$2&ROW($DU66)),$DT66,$DT$2&ROW($DT66)),$DS66,$DS$2&ROW($DS66)))","v":"X=if(AU66=2,1,if(AU66=0,0.09,0))*2.3+(1*AS66-1)*if(AU66=2,1,if(AU66=0,0.09,0))*1.12"},{"$f":"IF(Y66=\"\",0,\"X=\"&SUBSTITUTE(SUBSTITUTE(SUBSTITUTE(SUBSTITUTE(SUBSTITUTE(SUBSTITUTE(SUBSTITUTE(SUBSTITUTE(SUBSTITUTE(SUBSTITUTE(SUBSTITUTE(SUBSTITUTE(Y66,$ED66,$ED$2&ROW($ED66)),$EC66,$EC$2&ROW($EC66)),$EB66,$EB$2&ROW($EB66)),$EA66,$EA$2&ROW($EA66)),$DZ66,$DZ$2&ROW($DZ66)),$DY66,$DY$2&ROW($DY66)),$DX66,$DX$2&ROW($DX66)),$DW66,$DW$2&ROW($DW66)),$DV66,$DV$2&ROW($DV66)),$DU66,$DU$2&ROW($DU66)),$DT66,$DT$2&ROW($DT66)),$DS66,$DS$2&ROW($DS66)))","v":"X=if(AU66=3,1,if(AU66=0,0.48,0))*2.3+(1*AS66-1)*if(AU66=3,1,if(AU66=0,0.48,0))*1.12"},{"$f":"IF(Z66=\"\",0,\"X=\"&SUBSTITUTE(SUBSTITUTE(SUBSTITUTE(SUBSTITUTE(SUBSTITUTE(SUBSTITUTE(SUBSTITUTE(SUBSTITUTE(SUBSTITUTE(SUBSTITUTE(SUBSTITUTE(SUBSTITUTE(Z66,$ED66,$ED$2&ROW($ED66)),$EC66,$EC$2&ROW($EC66)),$EB66,$EB$2&ROW($EB66)),$EA66,$EA$2&ROW($EA66)),$DZ66,$DZ$2&ROW($DZ66)),$DY66,$DY$2&ROW($DY66)),$DX66,$DX$2&ROW($DX66)),$DW66,$DW$2&ROW($DW66)),$DV66,$DV$2&ROW($DV66)),$DU66,$DU$2&ROW($DU66)),$DT66,$DT$2&ROW($DT66)),$DS66,$DS$2&ROW($DS66)))","v":"X=if(AU66=4,1,if(AU66=0,0,0))*2.3+(1*AS66-1)*if(AU66=4,1,if(AU66=0,0,0))*1.12"},{"$f":"IF(AA66=\"\",0,\"X=\"&SUBSTITUTE(SUBSTITUTE(SUBSTITUTE(SUBSTITUTE(SUBSTITUTE(SUBSTITUTE(SUBSTITUTE(SUBSTITUTE(SUBSTITUTE(SUBSTITUTE(SUBSTITUTE(SUBSTITUTE(AA66,$ED66,$ED$2&ROW($ED66)),$EC66,$EC$2&ROW($EC66)),$EB66,$EB$2&ROW($EB66)),$EA66,$EA$2&ROW($EA66)),$DZ66,$DZ$2&ROW($DZ66)),$DY66,$DY$2&ROW($DY66)),$DX66,$DX$2&ROW($DX66)),$DW66,$DW$2&ROW($DW66)),$DV66,$DV$2&ROW($DV66)),$DU66,$DU$2&ROW($DU66)),$DT66,$DT$2&ROW($DT66)),$DS66,$DS$2&ROW($DS66)))","v":"X=if(AU66=5,1,if(AU66=0,0,0))*2.3+(1*AS66-1)*if(AU66=5,1,if(AU66=0,0,0))*1.12"},{"$f":"IF(AB66=\"\",0,\"X=\"&SUBSTITUTE(SUBSTITUTE(SUBSTITUTE(SUBSTITUTE(SUBSTITUTE(SUBSTITUTE(SUBSTITUTE(SUBSTITUTE(SUBSTITUTE(SUBSTITUTE(SUBSTITUTE(SUBSTITUTE(AB66,$ED66,$ED$2&ROW($ED66)),$EC66,$EC$2&ROW($EC66)),$EB66,$EB$2&ROW($EB66)),$EA66,$EA$2&ROW($EA66)),$DZ66,$DZ$2&ROW($DZ66)),$DY66,$DY$2&ROW($DY66)),$DX66,$DX$2&ROW($DX66)),$DW66,$DW$2&ROW($DW66)),$DV66,$DV$2&ROW($DV66)),$DU66,$DU$2&ROW($DU66)),$DT66,$DT$2&ROW($DT66)),$DS66,$DS$2&ROW($DS66)))","v":0},null,null,"{Factor:WinterCF}","{Factor:SummerCF}",{"$f":"IFERROR(INDEX($EG66:$IV66,MATCH(0,COUNTIF($DR66:DT66,$EG66:$IV66),0)),\"\")","v":"{Measure:Quantity}"},{"$f":"IFERROR(INDEX($EG66:$IV66,MATCH(0,COUNTIF($DR66:DU66,$EG66:$IV66),0)),\"\")","v":"{Backup Heating System Fuel}"},{"$f":"IFERROR(INDEX($EG66:$IV66,MATCH(0,COUNTIF($DR66:DV66,$EG66:$IV66),0)),\"\")","v":""},{"$f":"IFERROR(INDEX($EG66:$IV66,MATCH(0,COUNTIF($DR66:DW66,$EG66:$IV66),0)),\"\")","v":""},{"$f":"IFERROR(INDEX($EG66:$IV66,MATCH(0,COUNTIF($DR66:DX66,$EG66:$IV66),0)),\"\")","v":""},{"$f":"IFERROR(INDEX($EG66:$IV66,MATCH(0,COUNTIF($DR66:DY66,$EG66:$IV66),0)),\"\")","v":""},{"$f":"IFERROR(INDEX($EG66:$IV66,MATCH(0,COUNTIF($DR66:DZ66,$EG66:$IV66),0)),\"\")","v":""},{"$f":"IFERROR(INDEX($EG66:$IV66,MATCH(0,COUNTIF($DR66:EA66,$EG66:$IV66),0)),\"\")","v":""},{"$f":"IFERROR(INDEX($EG66:$IV66,MATCH(0,COUNTIF($DR66:EB66,$EG66:$IV66),0)),\"\")","v":""},{"$f":"IFERROR(INDEX($EG66:$IV66,MATCH(0,COUNTIF($DR66:EC66,$EG66:$IV66),0)),\"\")","v":""},null,null,{"$f":"IFERROR(MID($G66,FIND(CHAR(160),SUBSTITUTE($G66,\"{\",CHAR(160),EG$1)),FIND(CHAR(160),SUBSTITUTE($G66,\"}\",CHAR(160),EG$1))-FIND(CHAR(160),SUBSTITUTE($G66,\"{\",CHAR(160),EG$1))+1),\"\")","v":""},{"$f":"IFERROR(MID($G66,FIND(CHAR(160),SUBSTITUTE($G66,\"{\",CHAR(160),EH$1)),FIND(CHAR(160),SUBSTITUTE($G66,\"}\",CHAR(160),EH$1))-FIND(CHAR(160),SUBSTITUTE($G66,\"{\",CHAR(160),EH$1))+1),\"\")","v":""},{"$f":"IFERROR(MID($G66,FIND(CHAR(160),SUBSTITUTE($G66,\"{\",CHAR(160),EI$1)),FIND(CHAR(160),SUBSTITUTE($G66,\"}\",CHAR(160),EI$1))-FIND(CHAR(160),SUBSTITUTE($G66,\"{\",CHAR(160),EI$1))+1),\"\")","v":""},{"$f":"IFERROR(MID($G66,FIND(CHAR(160),SUBSTITUTE($G66,\"{\",CHAR(160),EJ$1)),FIND(CHAR(160),SUBSTITUTE($G66,\"}\",CHAR(160),EJ$1))-FIND(CHAR(160),SUBSTITUTE($G66,\"{\",CHAR(160),EJ$1))+1),\"\")","v":""},{"$f":"IFERROR(MID($G66,FIND(CHAR(160),SUBSTITUTE($G66,\"{\",CHAR(160),EK$1)),FIND(CHAR(160),SUBSTITUTE($G66,\"}\",CHAR(160),EK$1))-FIND(CHAR(160),SUBSTITUTE($G66,\"{\",CHAR(160),EK$1))+1),\"\")","v":""},{"$f":"IFERROR(MID($G66,FIND(CHAR(160),SUBSTITUTE($G66,\"{\",CHAR(160),EL$1)),FIND(CHAR(160),SUBSTITUTE($G66,\"}\",CHAR(160),EL$1))-FIND(CHAR(160),SUBSTITUTE($G66,\"{\",CHAR(160),EL$1))+1),\"\")","v":""},{"$f":"IFERROR(MID($G66,FIND(CHAR(160),SUBSTITUTE($G66,\"{\",CHAR(160),EM$1)),FIND(CHAR(160),SUBSTITUTE($G66,\"}\",CHAR(160),EM$1))-FIND(CHAR(160),SUBSTITUTE($G66,\"{\",CHAR(160),EM$1))+1),\"\")","v":""},{"$f":"IFERROR(MID($G66,FIND(CHAR(160),SUBSTITUTE($G66,\"{\",CHAR(160),EN$1)),FIND(CHAR(160),SUBSTITUTE($G66,\"}\",CHAR(160),EN$1))-FIND(CHAR(160),SUBSTITUTE($G66,\"{\",CHAR(160),EN$1))+1),\"\")","v":""},{"$f":"IFERROR(MID($G66,FIND(CHAR(160),SUBSTITUTE($G66,\"{\",CHAR(160),EO$1)),FIND(CHAR(160),SUBSTITUTE($G66,\"}\",CHAR(160),EO$1))-FIND(CHAR(160),SUBSTITUTE($G66,\"{\",CHAR(160),EO$1))+1),\"\")","v":""},{"$f":"IFERROR(MID($G66,FIND(CHAR(160),SUBSTITUTE($G66,\"{\",CHAR(160),EP$1)),FIND(CHAR(160),SUBSTITUTE($G66,\"}\",CHAR(160),EP$1))-FIND(CHAR(160),SUBSTITUTE($G66,\"{\",CHAR(160),EP$1))+1),\"\")","v":""},{"$f":"IFERROR(MID($J66,FIND(CHAR(160),SUBSTITUTE($J66,\"{\",CHAR(160),EQ$1)),FIND(CHAR(160),SUBSTITUTE($J66,\"}\",CHAR(160),EQ$1))-FIND(CHAR(160),SUBSTITUTE($J66,\"{\",CHAR(160),EQ$1))+1),\"\")","v":""},{"$f":"IFERROR(MID($J66,FIND(CHAR(160),SUBSTITUTE($J66,\"{\",CHAR(160),ER$1)),FIND(CHAR(160),SUBSTITUTE($J66,\"}\",CHAR(160),ER$1))-FIND(CHAR(160),SUBSTITUTE($J66,\"{\",CHAR(160),ER$1))+1),\"\")","v":""},{"$f":"IFERROR(MID($J66,FIND(CHAR(160),SUBSTITUTE($J66,\"{\",CHAR(160),ES$1)),FIND(CHAR(160),SUBSTITUTE($J66,\"}\",CHAR(160),ES$1))-FIND(CHAR(160),SUBSTITUTE($J66,\"{\",CHAR(160),ES$1))+1),\"\")","v":""},{"$f":"IFERROR(MID($J66,FIND(CHAR(160),SUBSTITUTE($J66,\"{\",CHAR(160),ET$1)),FIND(CHAR(160),SUBSTITUTE($J66,\"}\",CHAR(160),ET$1))-FIND(CHAR(160),SUBSTITUTE($J66,\"{\",CHAR(160),ET$1))+1),\"\")","v":""},{"$f":"IFERROR(MID($J66,FIND(CHAR(160),SUBSTITUTE($J66,\"{\",CHAR(160),EU$1)),FIND(CHAR(160),SUBSTITUTE($J66,\"}\",CHAR(160),EU$1))-FIND(CHAR(160),SUBSTITUTE($J66,\"{\",CHAR(160),EU$1))+1),\"\")","v":""},{"$f":"IFERROR(MID($J66,FIND(CHAR(160),SUBSTITUTE($J66,\"{\",CHAR(160),EV$1)),FIND(CHAR(160),SUBSTITUTE($J66,\"}\",CHAR(160),EV$1))-FIND(CHAR(160),SUBSTITUTE($J66,\"{\",CHAR(160),EV$1))+1),\"\")","v":""},{"$f":"IFERROR(MID($J66,FIND(CHAR(160),SUBSTITUTE($J66,\"{\",CHAR(160),EW$1)),FIND(CHAR(160),SUBSTITUTE($J66,\"}\",CHAR(160),EW$1))-FIND(CHAR(160),SUBSTITUTE($J66,\"{\",CHAR(160),EW$1))+1),\"\")","v":""},{"$f":"IFERROR(MID($J66,FIND(CHAR(160),SUBSTITUTE($J66,\"{\",CHAR(160),EX$1)),FIND(CHAR(160),SUBSTITUTE($J66,\"}\",CHAR(160),EX$1))-FIND(CHAR(160),SUBSTITUTE($J66,\"{\",CHAR(160),EX$1))+1),\"\")","v":""},{"$f":"IFERROR(MID($J66,FIND(CHAR(160),SUBSTITUTE($J66,\"{\",CHAR(160),EY$1)),FIND(CHAR(160),SUBSTITUTE($J66,\"}\",CHAR(160),EY$1))-FIND(CHAR(160),SUBSTITUTE($J66,\"{\",CHAR(160),EY$1))+1),\"\")","v":""},{"$f":"IFERROR(MID($J66,FIND(CHAR(160),SUBSTITUTE($J66,\"{\",CHAR(160),EZ$1)),FIND(CHAR(160),SUBSTITUTE($J66,\"}\",CHAR(160),EZ$1))-FIND(CHAR(160),SUBSTITUTE($J66,\"{\",CHAR(160),EZ$1))+1),\"\")","v":""},{"$f":"IFERROR(MID($J66,FIND(CHAR(160),SUBSTITUTE($J66,\"{\",CHAR(160),FA$1)),FIND(CHAR(160),SUBSTITUTE($J66,\"}\",CHAR(160),FA$1))-FIND(CHAR(160),SUBSTITUTE($J66,\"{\",CHAR(160),FA$1))+1),\"\")","v":""},{"$f":"IFERROR(MID($J66,FIND(CHAR(160),SUBSTITUTE($J66,\"{\",CHAR(160),FB$1)),FIND(CHAR(160),SUBSTITUTE($J66,\"}\",CHAR(160),FB$1))-FIND(CHAR(160),SUBSTITUTE($J66,\"{\",CHAR(160),FB$1))+1),\"\")","v":""},{"$f":"IFERROR(MID($O66,FIND(CHAR(160),SUBSTITUTE($O66,\"{\",CHAR(160),FC$1)),FIND(CHAR(160),SUBSTITUTE($O66,\"}\",CHAR(160),FC$1))-FIND(CHAR(160),SUBSTITUTE($O66,\"{\",CHAR(160),FC$1))+1),\"\")","v":"{Measure:Quantity}"},{"$f":"IFERROR(MID($O66,FIND(CHAR(160),SUBSTITUTE($O66,\"{\",CHAR(160),FD$1)),FIND(CHAR(160),SUBSTITUTE($O66,\"}\",CHAR(160),FD$1))-FIND(CHAR(160),SUBSTITUTE($O66,\"{\",CHAR(160),FD$1))+1),\"\")","v":"{Backup Heating System Fuel}"},{"$f":"IFERROR(MID($O66,FIND(CHAR(160),SUBSTITUTE($O66,\"{\",CHAR(160),FE$1)),FIND(CHAR(160),SUBSTITUTE($O66,\"}\",CHAR(160),FE$1))-FIND(CHAR(160),SUBSTITUTE($O66,\"{\",CHAR(160),FE$1))+1),\"\")","v":"{Backup Heating System Fuel}"},{"$f":"IFERROR(MID($O66,FIND(CHAR(160),SUBSTITUTE($O66,\"{\",CHAR(160),FF$1)),FIND(CHAR(160),SUBSTITUTE($O66,\"}\",CHAR(160),FF$1))-FIND(CHAR(160),SUBSTITUTE($O66,\"{\",CHAR(160),FF$1))+1),\"\")","v":""},{"$f":"IFERROR(MID($O66,FIND(CHAR(160),SUBSTITUTE($O66,\"{\",CHAR(160),FG$1)),FIND(CHAR(160),SUBSTITUTE($O66,\"}\",CHAR(160),FG$1))-FIND(CHAR(160),SUBSTITUTE($O66,\"{\",CHAR(160),FG$1))+1),\"\")","v":""},{"$f":"IFERROR(MID($O66,FIND(CHAR(160),SUBSTITUTE($O66,\"{\",CHAR(160),FH$1)),FIND(CHAR(160),SUBSTITUTE($O66,\"}\",CHAR(160),FH$1))-FIND(CHAR(160),SUBSTITUTE($O66,\"{\",CHAR(160),FH$1))+1),\"\")","v":""},{"$f":"IFERROR(MID($O66,FIND(CHAR(160),SUBSTITUTE($O66,\"{\",CHAR(160),FI$1)),FIND(CHAR(160),SUBSTITUTE($O66,\"}\",CHAR(160),FI$1))-FIND(CHAR(160),SUBSTITUTE($O66,\"{\",CHAR(160),FI$1))+1),\"\")","v":""},{"$f":"IFERROR(MID($O66,FIND(CHAR(160),SUBSTITUTE($O66,\"{\",CHAR(160),FJ$1)),FIND(CHAR(160),SUBSTITUTE($O66,\"}\",CHAR(160),FJ$1))-FIND(CHAR(160),SUBSTITUTE($O66,\"{\",CHAR(160),FJ$1))+1),\"\")","v":""},{"$f":"IFERROR(MID($O66,FIND(CHAR(160),SUBSTITUTE($O66,\"{\",CHAR(160),FK$1)),FIND(CHAR(160),SUBSTITUTE($O66,\"}\",CHAR(160),FK$1))-FIND(CHAR(160),SUBSTITUTE($O66,\"{\",CHAR(160),FK$1))+1),\"\")","v":"{Backup Heating System Fuel}"},{"$f":"IFERROR(MID($O66,FIND(CHAR(160),SUBSTITUTE($O66,\"{\",CHAR(160),FL$1)),FIND(CHAR(160),SUBSTITUTE($O66,\"}\",CHAR(160),FL$1))-FIND(CHAR(160),SUBSTITUTE($O66,\"{\",CHAR(160),FL$1))+1),\"\")","v":"{Backup Heating System Fuel}"},{"$f":"IFERROR(MID($R66,FIND(CHAR(160),SUBSTITUTE($R66,\"{\",CHAR(160),FM$1)),FIND(CHAR(160),SUBSTITUTE($R66,\"}\",CHAR(160),FM$1))-FIND(CHAR(160),SUBSTITUTE($R66,\"{\",CHAR(160),FM$1))+1),\"\")","v":""},{"$f":"IFERROR(MID($R66,FIND(CHAR(160),SUBSTITUTE($R66,\"{\",CHAR(160),FN$1)),FIND(CHAR(160),SUBSTITUTE($R66,\"}\",CHAR(160),FN$1))-FIND(CHAR(160),SUBSTITUTE($R66,\"{\",CHAR(160),FN$1))+1),\"\")","v":""},{"$f":"IFERROR(MID($R66,FIND(CHAR(160),SUBSTITUTE($R66,\"{\",CHAR(160),FO$1)),FIND(CHAR(160),SUBSTITUTE($R66,\"}\",CHAR(160),FO$1))-FIND(CHAR(160),SUBSTITUTE($R66,\"{\",CHAR(160),FO$1))+1),\"\")","v":""},{"$f":"IFERROR(MID($R66,FIND(CHAR(160),SUBSTITUTE($R66,\"{\",CHAR(160),FP$1)),FIND(CHAR(160),SUBSTITUTE($R66,\"}\",CHAR(160),FP$1))-FIND(CHAR(160),SUBSTITUTE($R66,\"{\",CHAR(160),FP$1))+1),\"\")","v":""},{"$f":"IFERROR(MID($R66,FIND(CHAR(160),SUBSTITUTE($R66,\"{\",CHAR(160),FQ$1)),FIND(CHAR(160),SUBSTITUTE($R66,\"}\",CHAR(160),FQ$1))-FIND(CHAR(160),SUBSTITUTE($R66,\"{\",CHAR(160),FQ$1))+1),\"\")","v":""},{"$f":"IFERROR(MID($R66,FIND(CHAR(160),SUBSTITUTE($R66,\"{\",CHAR(160),FR$1)),FIND(CHAR(160),SUBSTITUTE($R66,\"}\",CHAR(160),FR$1))-FIND(CHAR(160),SUBSTITUTE($R66,\"{\",CHAR(160),FR$1))+1),\"\")","v":""},{"$f":"IFERROR(MID($R66,FIND(CHAR(160),SUBSTITUTE($R66,\"{\",CHAR(160),FS$1)),FIND(CHAR(160),SUBSTITUTE($R66,\"}\",CHAR(160),FS$1))-FIND(CHAR(160),SUBSTITUTE($R66,\"{\",CHAR(160),FS$1))+1),\"\")","v":""},{"$f":"IFERROR(MID($R66,FIND(CHAR(160),SUBSTITUTE($R66,\"{\",CHAR(160),FT$1)),FIND(CHAR(160),SUBSTITUTE($R66,\"}\",CHAR(160),FT$1))-FIND(CHAR(160),SUBSTITUTE($R66,\"{\",CHAR(160),FT$1))+1),\"\")","v":""},{"$f":"IFERROR(MID($R66,FIND(CHAR(160),SUBSTITUTE($R66,\"{\",CHAR(160),FU$1)),FIND(CHAR(160),SUBSTITUTE($R66,\"}\",CHAR(160),FU$1))-FIND(CHAR(160),SUBSTITUTE($R66,\"{\",CHAR(160),FU$1))+1),\"\")","v":""},{"$f":"IFERROR(MID($R66,FIND(CHAR(160),SUBSTITUTE($R66,\"{\",CHAR(160),FV$1)),FIND(CHAR(160),SUBSTITUTE($R66,\"}\",CHAR(160),FV$1))-FIND(CHAR(160),SUBSTITUTE($R66,\"{\",CHAR(160),FV$1))+1),\"\")","v":""},{"$f":"IFERROR(MID($U66,FIND(CHAR(160),SUBSTITUTE($U66,\"{\",CHAR(160),FW$1)),FIND(CHAR(160),SUBSTITUTE($U66,\"}\",CHAR(160),FW$1))-FIND(CHAR(160),SUBSTITUTE($U66,\"{\",CHAR(160),FW$1))+1),\"\")","v":"{Measure:Quantity}"},{"$f":"IFERROR(MID($U66,FIND(CHAR(160),SUBSTITUTE($U66,\"{\",CHAR(160),FX$1)),FIND(CHAR(160),SUBSTITUTE($U66,\"}\",CHAR(160),FX$1))-FIND(CHAR(160),SUBSTITUTE($U66,\"{\",CHAR(160),FX$1))+1),\"\")","v":"{Backup Heating System Fuel}"},{"$f":"IFERROR(MID($U66,FIND(CHAR(160),SUBSTITUTE($U66,\"{\",CHAR(160),FY$1)),FIND(CHAR(160),SUBSTITUTE($U66,\"}\",CHAR(160),FY$1))-FIND(CHAR(160),SUBSTITUTE($U66,\"{\",CHAR(160),FY$1))+1),\"\")","v":"{Backup Heating System Fuel}"},{"$f":"IFERROR(MID($U66,FIND(CHAR(160),SUBSTITUTE($U66,\"{\",CHAR(160),FZ$1)),FIND(CHAR(160),SUBSTITUTE($U66,\"}\",CHAR(160),FZ$1))-FIND(CHAR(160),SUBSTITUTE($U66,\"{\",CHAR(160),FZ$1))+1),\"\")","v":""},{"$f":"IFERROR(MID($U66,FIND(CHAR(160),SUBSTITUTE($U66,\"{\",CHAR(160),GA$1)),FIND(CHAR(160),SUBSTITUTE($U66,\"}\",CHAR(160),GA$1))-FIND(CHAR(160),SUBSTITUTE($U66,\"{\",CHAR(160),GA$1))+1),\"\")","v":""},{"$f":"IFERROR(MID($U66,FIND(CHAR(160),SUBSTITUTE($U66,\"{\",CHAR(160),GB$1)),FIND(CHAR(160),SUBSTITUTE($U66,\"}\",CHAR(160),GB$1))-FIND(CHAR(160),SUBSTITUTE($U66,\"{\",CHAR(160),GB$1))+1),\"\")","v":""},{"$f":"IFERROR(MID($U66,FIND(CHAR(160),SUBSTITUTE($U66,\"{\",CHAR(160),GC$1)),FIND(CHAR(160),SUBSTITUTE($U66,\"}\",CHAR(160),GC$1))-FIND(CHAR(160),SUBSTITUTE($U66,\"{\",CHAR(160),GC$1))+1),\"\")","v":""},{"$f":"IFERROR(MID($U66,FIND(CHAR(160),SUBSTITUTE($U66,\"{\",CHAR(160),GD$1)),FIND(CHAR(160),SUBSTITUTE($U66,\"}\",CHAR(160),GD$1))-FIND(CHAR(160),SUBSTITUTE($U66,\"{\",CHAR(160),GD$1))+1),\"\")","v":""},{"$f":"IFERROR(MID($U66,FIND(CHAR(160),SUBSTITUTE($U66,\"{\",CHAR(160),GE$1)),FIND(CHAR(160),SUBSTITUTE($U66,\"}\",CHAR(160),GE$1))-FIND(CHAR(160),SUBSTITUTE($U66,\"{\",CHAR(160),GE$1))+1),\"\")","v":"{Backup Heating System Fuel}"},{"$f":"IFERROR(MID($U66,FIND(CHAR(160),SUBSTITUTE($U66,\"{\",CHAR(160),GF$1)),FIND(CHAR(160),SUBSTITUTE($U66,\"}\",CHAR(160),GF$1))-FIND(CHAR(160),SUBSTITUTE($U66,\"{\",CHAR(160),GF$1))+1),\"\")","v":"{Backup Heating System Fuel}"},{"$f":"IFERROR(MID($V66,FIND(CHAR(160),SUBSTITUTE($V66,\"{\",CHAR(160),GG$1)),FIND(CHAR(160),SUBSTITUTE($V66,\"}\",CHAR(160),GG$1))-FIND(CHAR(160),SUBSTITUTE($V66,\"{\",CHAR(160),GG$1))+1),\"\")","v":""},{"$f":"IFERROR(MID($V66,FIND(CHAR(160),SUBSTITUTE($V66,\"{\",CHAR(160),GH$1)),FIND(CHAR(160),SUBSTITUTE($V66,\"}\",CHAR(160),GH$1))-FIND(CHAR(160),SUBSTITUTE($V66,\"{\",CHAR(160),GH$1))+1),\"\")","v":""},{"$f":"IFERROR(MID($V66,FIND(CHAR(160),SUBSTITUTE($V66,\"{\",CHAR(160),GI$1)),FIND(CHAR(160),SUBSTITUTE($V66,\"}\",CHAR(160),GI$1))-FIND(CHAR(160),SUBSTITUTE($V66,\"{\",CHAR(160),GI$1))+1),\"\")","v":""},{"$f":"IFERROR(MID($V66,FIND(CHAR(160),SUBSTITUTE($V66,\"{\",CHAR(160),GJ$1)),FIND(CHAR(160),SUBSTITUTE($V66,\"}\",CHAR(160),GJ$1))-FIND(CHAR(160),SUBSTITUTE($V66,\"{\",CHAR(160),GJ$1))+1),\"\")","v":""},{"$f":"IFERROR(MID($V66,FIND(CHAR(160),SUBSTITUTE($V66,\"{\",CHAR(160),GK$1)),FIND(CHAR(160),SUBSTITUTE($V66,\"}\",CHAR(160),GK$1))-FIND(CHAR(160),SUBSTITUTE($V66,\"{\",CHAR(160),GK$1))+1),\"\")","v":""},{"$f":"IFERROR(MID($V66,FIND(CHAR(160),SUBSTITUTE($V66,\"{\",CHAR(160),GL$1)),FIND(CHAR(160),SUBSTITUTE($V66,\"}\",CHAR(160),GL$1))-FIND(CHAR(160),SUBSTITUTE($V66,\"{\",CHAR(160),GL$1))+1),\"\")","v":""},{"$f":"IFERROR(MID($V66,FIND(CHAR(160),SUBSTITUTE($V66,\"{\",CHAR(160),GM$1)),FIND(CHAR(160),SUBSTITUTE($V66,\"}\",CHAR(160),GM$1))-FIND(CHAR(160),SUBSTITUTE($V66,\"{\",CHAR(160),GM$1))+1),\"\")","v":""},{"$f":"IFERROR(MID($V66,FIND(CHAR(160),SUBSTITUTE($V66,\"{\",CHAR(160),GN$1)),FIND(CHAR(160),SUBSTITUTE($V66,\"}\",CHAR(160),GN$1))-FIND(CHAR(160),SUBSTITUTE($V66,\"{\",CHAR(160),GN$1))+1),\"\")","v":""},{"$f":"IFERROR(MID($V66,FIND(CHAR(160),SUBSTITUTE($V66,\"{\",CHAR(160),GO$1)),FIND(CHAR(160),SUBSTITUTE($V66,\"}\",CHAR(160),GO$1))-FIND(CHAR(160),SUBSTITUTE($V66,\"{\",CHAR(160),GO$1))+1),\"\")","v":"{Measure:Quantity}"},{"$f":"IFERROR(MID($V66,FIND(CHAR(160),SUBSTITUTE($V66,\"{\",CHAR(160),GP$1)),FIND(CHAR(160),SUBSTITUTE($V66,\"}\",CHAR(160),GP$1))-FIND(CHAR(160),SUBSTITUTE($V66,\"{\",CHAR(160),GP$1))+1),\"\")","v":""},{"$f":"IFERROR(MID($W66,FIND(CHAR(160),SUBSTITUTE($W66,\"{\",CHAR(160),GQ$1)),FIND(CHAR(160),SUBSTITUTE($W66,\"}\",CHAR(160),GQ$1))-FIND(CHAR(160),SUBSTITUTE($W66,\"{\",CHAR(160),GQ$1))+1),\"\")","v":"{Measure:Quantity}"},{"$f":"IFERROR(MID($W66,FIND(CHAR(160),SUBSTITUTE($W66,\"{\",CHAR(160),GR$1)),FIND(CHAR(160),SUBSTITUTE($W66,\"}\",CHAR(160),GR$1))-FIND(CHAR(160),SUBSTITUTE($W66,\"{\",CHAR(160),GR$1))+1),\"\")","v":"{Backup Heating System Fuel}"},{"$f":"IFERROR(MID($W66,FIND(CHAR(160),SUBSTITUTE($W66,\"{\",CHAR(160),GS$1)),FIND(CHAR(160),SUBSTITUTE($W66,\"}\",CHAR(160),GS$1))-FIND(CHAR(160),SUBSTITUTE($W66,\"{\",CHAR(160),GS$1))+1),\"\")","v":"{Backup Heating System Fuel}"},{"$f":"IFERROR(MID($W66,FIND(CHAR(160),SUBSTITUTE($W66,\"{\",CHAR(160),GT$1)),FIND(CHAR(160),SUBSTITUTE($W66,\"}\",CHAR(160),GT$1))-FIND(CHAR(160),SUBSTITUTE($W66,\"{\",CHAR(160),GT$1))+1),\"\")","v":""},{"$f":"IFERROR(MID($W66,FIND(CHAR(160),SUBSTITUTE($W66,\"{\",CHAR(160),GU$1)),FIND(CHAR(160),SUBSTITUTE($W66,\"}\",CHAR(160),GU$1))-FIND(CHAR(160),SUBSTITUTE($W66,\"{\",CHAR(160),GU$1))+1),\"\")","v":""},{"$f":"IFERROR(MID($W66,FIND(CHAR(160),SUBSTITUTE($W66,\"{\",CHAR(160),GV$1)),FIND(CHAR(160),SUBSTITUTE($W66,\"}\",CHAR(160),GV$1))-FIND(CHAR(160),SUBSTITUTE($W66,\"{\",CHAR(160),GV$1))+1),\"\")","v":""},{"$f":"IFERROR(MID($W66,FIND(CHAR(160),SUBSTITUTE($W66,\"{\",CHAR(160),GW$1)),FIND(CHAR(160),SUBSTITUTE($W66,\"}\",CHAR(160),GW$1))-FIND(CHAR(160),SUBSTITUTE($W66,\"{\",CHAR(160),GW$1))+1),\"\")","v":""},{"$f":"IFERROR(MID($W66,FIND(CHAR(160),SUBSTITUTE($W66,\"{\",CHAR(160),GX$1)),FIND(CHAR(160),SUBSTITUTE($W66,\"}\",CHAR(160),GX$1))-FIND(CHAR(160),SUBSTITUTE($W66,\"{\",CHAR(160),GX$1))+1),\"\")","v":""},{"$f":"IFERROR(MID($W66,FIND(CHAR(160),SUBSTITUTE($W66,\"{\",CHAR(160),GY$1)),FIND(CHAR(160),SUBSTITUTE($W66,\"}\",CHAR(160),GY$1))-FIND(CHAR(160),SUBSTITUTE($W66,\"{\",CHAR(160),GY$1))+1),\"\")","v":"{Backup Heating System Fuel}"},{"$f":"IFERROR(MID($W66,FIND(CHAR(160),SUBSTITUTE($W66,\"{\",CHAR(160),GZ$1)),FIND(CHAR(160),SUBSTITUTE($W66,\"}\",CHAR(160),GZ$1))-FIND(CHAR(160),SUBSTITUTE($W66,\"{\",CHAR(160),GZ$1))+1),\"\")","v":"{Backup Heating System Fuel}"},{"$f":"IFERROR(MID($X66,FIND(CHAR(160),SUBSTITUTE($X66,\"{\",CHAR(160),HA$1)),FIND(CHAR(160),SUBSTITUTE($X66,\"}\",CHAR(160),HA$1))-FIND(CHAR(160),SUBSTITUTE($X66,\"{\",CHAR(160),HA$1))+1),\"\")","v":"{Measure:Quantity}"},{"$f":"IFERROR(MID($X66,FIND(CHAR(160),SUBSTITUTE($X66,\"{\",CHAR(160),HB$1)),FIND(CHAR(160),SUBSTITUTE($X66,\"}\",CHAR(160),HB$1))-FIND(CHAR(160),SUBSTITUTE($X66,\"{\",CHAR(160),HB$1))+1),\"\")","v":"{Backup Heating System Fuel}"},{"$f":"IFERROR(MID($X66,FIND(CHAR(160),SUBSTITUTE($X66,\"{\",CHAR(160),HC$1)),FIND(CHAR(160),SUBSTITUTE($X66,\"}\",CHAR(160),HC$1))-FIND(CHAR(160),SUBSTITUTE($X66,\"{\",CHAR(160),HC$1))+1),\"\")","v":"{Backup Heating System Fuel}"},{"$f":"IFERROR(MID($X66,FIND(CHAR(160),SUBSTITUTE($X66,\"{\",CHAR(160),HD$1)),FIND(CHAR(160),SUBSTITUTE($X66,\"}\",CHAR(160),HD$1))-FIND(CHAR(160),SUBSTITUTE($X66,\"{\",CHAR(160),HD$1))+1),\"\")","v":""},{"$f":"IFERROR(MID($X66,FIND(CHAR(160),SUBSTITUTE($X66,\"{\",CHAR(160),HE$1)),FIND(CHAR(160),SUBSTITUTE($X66,\"}\",CHAR(160),HE$1))-FIND(CHAR(160),SUBSTITUTE($X66,\"{\",CHAR(160),HE$1))+1),\"\")","v":""},{"$f":"IFERROR(MID($X66,FIND(CHAR(160),SUBSTITUTE($X66,\"{\",CHAR(160),HF$1)),FIND(CHAR(160),SUBSTITUTE($X66,\"}\",CHAR(160),HF$1))-FIND(CHAR(160),SUBSTITUTE($X66,\"{\",CHAR(160),HF$1))+1),\"\")","v":""},{"$f":"IFERROR(MID($X66,FIND(CHAR(160),SUBSTITUTE($X66,\"{\",CHAR(160),HG$1)),FIND(CHAR(160),SUBSTITUTE($X66,\"}\",CHAR(160),HG$1))-FIND(CHAR(160),SUBSTITUTE($X66,\"{\",CHAR(160),HG$1))+1),\"\")","v":""},{"$f":"IFERROR(MID($X66,FIND(CHAR(160),SUBSTITUTE($X66,\"{\",CHAR(160),HH$1)),FIND(CHAR(160),SUBSTITUTE($X66,\"}\",CHAR(160),HH$1))-FIND(CHAR(160),SUBSTITUTE($X66,\"{\",CHAR(160),HH$1))+1),\"\")","v":""},{"$f":"IFERROR(MID($X66,FIND(CHAR(160),SUBSTITUTE($X66,\"{\",CHAR(160),HI$1)),FIND(CHAR(160),SUBSTITUTE($X66,\"}\",CHAR(160),HI$1))-FIND(CHAR(160),SUBSTITUTE($X66,\"{\",CHAR(160),HI$1))+1),\"\")","v":"{Backup Heating System Fuel}"},{"$f":"IFERROR(MID($X66,FIND(CHAR(160),SUBSTITUTE($X66,\"{\",CHAR(160),HJ$1)),FIND(CHAR(160),SUBSTITUTE($X66,\"}\",CHAR(160),HJ$1))-FIND(CHAR(160),SUBSTITUTE($X66,\"{\",CHAR(160),HJ$1))+1),\"\")","v":"{Backup Heating System Fuel}"},{"$f":"IFERROR(MID($Y66,FIND(CHAR(160),SUBSTITUTE($Y66,\"{\",CHAR(160),HK$1)),FIND(CHAR(160),SUBSTITUTE($Y66,\"}\",CHAR(160),HK$1))-FIND(CHAR(160),SUBSTITUTE($Y66,\"{\",CHAR(160),HK$1))+1),\"\")","v":"{Measure:Quantity}"},{"$f":"IFERROR(MID($Y66,FIND(CHAR(160),SUBSTITUTE($Y66,\"{\",CHAR(160),HL$1)),FIND(CHAR(160),SUBSTITUTE($Y66,\"}\",CHAR(160),HL$1))-FIND(CHAR(160),SUBSTITUTE($Y66,\"{\",CHAR(160),HL$1))+1),\"\")","v":"{Backup Heating System Fuel}"},{"$f":"IFERROR(MID($Y66,FIND(CHAR(160),SUBSTITUTE($Y66,\"{\",CHAR(160),HM$1)),FIND(CHAR(160),SUBSTITUTE($Y66,\"}\",CHAR(160),HM$1))-FIND(CHAR(160),SUBSTITUTE($Y66,\"{\",CHAR(160),HM$1))+1),\"\")","v":"{Backup Heating System Fuel}"},{"$f":"IFERROR(MID($Y66,FIND(CHAR(160),SUBSTITUTE($Y66,\"{\",CHAR(160),HN$1)),FIND(CHAR(160),SUBSTITUTE($Y66,\"}\",CHAR(160),HN$1))-FIND(CHAR(160),SUBSTITUTE($Y66,\"{\",CHAR(160),HN$1))+1),\"\")","v":""},{"$f":"IFERROR(MID($Y66,FIND(CHAR(160),SUBSTITUTE($Y66,\"{\",CHAR(160),HO$1)),FIND(CHAR(160),SUBSTITUTE($Y66,\"}\",CHAR(160),HO$1))-FIND(CHAR(160),SUBSTITUTE($Y66,\"{\",CHAR(160),HO$1))+1),\"\")","v":""},{"$f":"IFERROR(MID($Y66,FIND(CHAR(160),SUBSTITUTE($Y66,\"{\",CHAR(160),HP$1)),FIND(CHAR(160),SUBSTITUTE($Y66,\"}\",CHAR(160),HP$1))-FIND(CHAR(160),SUBSTITUTE($Y66,\"{\",CHAR(160),HP$1))+1),\"\")","v":""},{"$f":"IFERROR(MID($Y66,FIND(CHAR(160),SUBSTITUTE($Y66,\"{\",CHAR(160),HQ$1)),FIND(CHAR(160),SUBSTITUTE($Y66,\"}\",CHAR(160),HQ$1))-FIND(CHAR(160),SUBSTITUTE($Y66,\"{\",CHAR(160),HQ$1))+1),\"\")","v":""},{"$f":"IFERROR(MID($Y66,FIND(CHAR(160),SUBSTITUTE($Y66,\"{\",CHAR(160),HR$1)),FIND(CHAR(160),SUBSTITUTE($Y66,\"}\",CHAR(160),HR$1))-FIND(CHAR(160),SUBSTITUTE($Y66,\"{\",CHAR(160),HR$1))+1),\"\")","v":""},{"$f":"IFERROR(MID($Y66,FIND(CHAR(160),SUBSTITUTE($Y66,\"{\",CHAR(160),HS$1)),FIND(CHAR(160),SUBSTITUTE($Y66,\"}\",CHAR(160),HS$1))-FIND(CHAR(160),SUBSTITUTE($Y66,\"{\",CHAR(160),HS$1))+1),\"\")","v":"{Backup Heating System Fuel}"},{"$f":"IFERROR(MID($Y66,FIND(CHAR(160),SUBSTITUTE($Y66,\"{\",CHAR(160),HT$1)),FIND(CHAR(160),SUBSTITUTE($Y66,\"}\",CHAR(160),HT$1))-FIND(CHAR(160),SUBSTITUTE($Y66,\"{\",CHAR(160),HT$1))+1),\"\")","v":"{Backup Heating System Fuel}"},{"$f":"IFERROR(MID($Z66,FIND(CHAR(160),SUBSTITUTE($Z66,\"{\",CHAR(160),HU$1)),FIND(CHAR(160),SUBSTITUTE($Z66,\"}\",CHAR(160),HU$1))-FIND(CHAR(160),SUBSTITUTE($Z66,\"{\",CHAR(160),HU$1))+1),\"\")","v":"{Measure:Quantity}"},{"$f":"IFERROR(MID($Z66,FIND(CHAR(160),SUBSTITUTE($Z66,\"{\",CHAR(160),HV$1)),FIND(CHAR(160),SUBSTITUTE($Z66,\"}\",CHAR(160),HV$1))-FIND(CHAR(160),SUBSTITUTE($Z66,\"{\",CHAR(160),HV$1))+1),\"\")","v":"{Backup Heating System Fuel}"},{"$f":"IFERROR(MID($Z66,FIND(CHAR(160),SUBSTITUTE($Z66,\"{\",CHAR(160),HW$1)),FIND(CHAR(160),SUBSTITUTE($Z66,\"}\",CHAR(160),HW$1))-FIND(CHAR(160),SUBSTITUTE($Z66,\"{\",CHAR(160),HW$1))+1),\"\")","v":"{Backup Heating System Fuel}"},{"$f":"IFERROR(MID($Z66,FIND(CHAR(160),SUBSTITUTE($Z66,\"{\",CHAR(160),HX$1)),FIND(CHAR(160),SUBSTITUTE($Z66,\"}\",CHAR(160),HX$1))-FIND(CHAR(160),SUBSTITUTE($Z66,\"{\",CHAR(160),HX$1))+1),\"\")","v":""},{"$f":"IFERROR(MID($Z66,FIND(CHAR(160),SUBSTITUTE($Z66,\"{\",CHAR(160),HY$1)),FIND(CHAR(160),SUBSTITUTE($Z66,\"}\",CHAR(160),HY$1))-FIND(CHAR(160),SUBSTITUTE($Z66,\"{\",CHAR(160),HY$1))+1),\"\")","v":""},{"$f":"IFERROR(MID($Z66,FIND(CHAR(160),SUBSTITUTE($Z66,\"{\",CHAR(160),HZ$1)),FIND(CHAR(160),SUBSTITUTE($Z66,\"}\",CHAR(160),HZ$1))-FIND(CHAR(160),SUBSTITUTE($Z66,\"{\",CHAR(160),HZ$1))+1),\"\")","v":""},{"$f":"IFERROR(MID($Z66,FIND(CHAR(160),SUBSTITUTE($Z66,\"{\",CHAR(160),IA$1)),FIND(CHAR(160),SUBSTITUTE($Z66,\"}\",CHAR(160),IA$1))-FIND(CHAR(160),SUBSTITUTE($Z66,\"{\",CHAR(160),IA$1))+1),\"\")","v":""},{"$f":"IFERROR(MID($Z66,FIND(CHAR(160),SUBSTITUTE($Z66,\"{\",CHAR(160),IB$1)),FIND(CHAR(160),SUBSTITUTE($Z66,\"}\",CHAR(160),IB$1))-FIND(CHAR(160),SUBSTITUTE($Z66,\"{\",CHAR(160),IB$1))+1),\"\")","v":""},{"$f":"IFERROR(MID($Z66,FIND(CHAR(160),SUBSTITUTE($Z66,\"{\",CHAR(160),IC$1)),FIND(CHAR(160),SUBSTITUTE($Z66,\"}\",CHAR(160),IC$1))-FIND(CHAR(160),SUBSTITUTE($Z66,\"{\",CHAR(160),IC$1))+1),\"\")","v":"{Backup Heating System Fuel}"},{"$f":"IFERROR(MID($Z66,FIND(CHAR(160),SUBSTITUTE($Z66,\"{\",CHAR(160),ID$1)),FIND(CHAR(160),SUBSTITUTE($Z66,\"}\",CHAR(160),ID$1))-FIND(CHAR(160),SUBSTITUTE($Z66,\"{\",CHAR(160),ID$1))+1),\"\")","v":"{Backup Heating System Fuel}"},{"$f":"IFERROR(MID($AA66,FIND(CHAR(160),SUBSTITUTE($AA66,\"{\",CHAR(160),IE$1)),FIND(CHAR(160),SUBSTITUTE($AA66,\"}\",CHAR(160),IE$1))-FIND(CHAR(160),SUBSTITUTE($AA66,\"{\",CHAR(160),IE$1))+1),\"\")","v":"{Measure:Quantity}"},{"$f":"IFERROR(MID($AA66,FIND(CHAR(160),SUBSTITUTE($AA66,\"{\",CHAR(160),IF$1)),FIND(CHAR(160),SUBSTITUTE($AA66,\"}\",CHAR(160),IF$1))-FIND(CHAR(160),SUBSTITUTE($AA66,\"{\",CHAR(160),IF$1))+1),\"\")","v":"{Backup Heating System Fuel}"},{"$f":"IFERROR(MID($AA66,FIND(CHAR(160),SUBSTITUTE($AA66,\"{\",CHAR(160),IG$1)),FIND(CHAR(160),SUBSTITUTE($AA66,\"}\",CHAR(160),IG$1))-FIND(CHAR(160),SUBSTITUTE($AA66,\"{\",CHAR(160),IG$1))+1),\"\")","v":"{Backup Heating System Fuel}"},{"$f":"IFERROR(MID($AA66,FIND(CHAR(160),SUBSTITUTE($AA66,\"{\",CHAR(160),IH$1)),FIND(CHAR(160),SUBSTITUTE($AA66,\"}\",CHAR(160),IH$1))-FIND(CHAR(160),SUBSTITUTE($AA66,\"{\",CHAR(160),IH$1))+1),\"\")","v":""},{"$f":"IFERROR(MID($AA66,FIND(CHAR(160),SUBSTITUTE($AA66,\"{\",CHAR(160),II$1)),FIND(CHAR(160),SUBSTITUTE($AA66,\"}\",CHAR(160),II$1))-FIND(CHAR(160),SUBSTITUTE($AA66,\"{\",CHAR(160),II$1))+1),\"\")","v":""},{"$f":"IFERROR(MID($AA66,FIND(CHAR(160),SUBSTITUTE($AA66,\"{\",CHAR(160),IJ$1)),FIND(CHAR(160),SUBSTITUTE($AA66,\"}\",CHAR(160),IJ$1))-FIND(CHAR(160),SUBSTITUTE($AA66,\"{\",CHAR(160),IJ$1))+1),\"\")","v":""},{"$f":"IFERROR(MID($AA66,FIND(CHAR(160),SUBSTITUTE($AA66,\"{\",CHAR(160),IK$1)),FIND(CHAR(160),SUBSTITUTE($AA66,\"}\",CHAR(160),IK$1))-FIND(CHAR(160),SUBSTITUTE($AA66,\"{\",CHAR(160),IK$1))+1),\"\")","v":""},{"$f":"IFERROR(MID($AA66,FIND(CHAR(160),SUBSTITUTE($AA66,\"{\",CHAR(160),IL$1)),FIND(CHAR(160),SUBSTITUTE($AA66,\"}\",CHAR(160),IL$1))-FIND(CHAR(160),SUBSTITUTE($AA66,\"{\",CHAR(160),IL$1))+1),\"\")","v":""},{"$f":"IFERROR(MID($AA66,FIND(CHAR(160),SUBSTITUTE($AA66,\"{\",CHAR(160),IM$1)),FIND(CHAR(160),SUBSTITUTE($AA66,\"}\",CHAR(160),IM$1))-FIND(CHAR(160),SUBSTITUTE($AA66,\"{\",CHAR(160),IM$1))+1),\"\")","v":"{Backup Heating System Fuel}"},{"$f":"IFERROR(MID($AA66,FIND(CHAR(160),SUBSTITUTE($AA66,\"{\",CHAR(160),IN$1)),FIND(CHAR(160),SUBSTITUTE($AA66,\"}\",CHAR(160),IN$1))-FIND(CHAR(160),SUBSTITUTE($AA66,\"{\",CHAR(160),IN$1))+1),\"\")","v":"{Backup Heating System Fuel}"},{"$f":"IFERROR(MID($AB66,FIND(CHAR(160),SUBSTITUTE($AB66,\"{\",CHAR(160),IO$1)),FIND(CHAR(160),SUBSTITUTE($AB66,\"}\",CHAR(160),IO$1))-FIND(CHAR(160),SUBSTITUTE($AB66,\"{\",CHAR(160),IO$1))+1),\"\")","v":""},{"$f":"IFERROR(MID($AB66,FIND(CHAR(160),SUBSTITUTE($AB66,\"{\",CHAR(160),IP$1)),FIND(CHAR(160),SUBSTITUTE($AB66,\"}\",CHAR(160),IP$1))-FIND(CHAR(160),SUBSTITUTE($AB66,\"{\",CHAR(160),IP$1))+1),\"\")","v":""},{"$f":"IFERROR(MID($AB66,FIND(CHAR(160),SUBSTITUTE($AB66,\"{\",CHAR(160),IQ$1)),FIND(CHAR(160),SUBSTITUTE($AB66,\"}\",CHAR(160),IQ$1))-FIND(CHAR(160),SUBSTITUTE($AB66,\"{\",CHAR(160),IQ$1))+1),\"\")","v":""},{"$f":"IFERROR(MID($AB66,FIND(CHAR(160),SUBSTITUTE($AB66,\"{\",CHAR(160),IR$1)),FIND(CHAR(160),SUBSTITUTE($AB66,\"}\",CHAR(160),IR$1))-FIND(CHAR(160),SUBSTITUTE($AB66,\"{\",CHAR(160),IR$1))+1),\"\")","v":""},{"$f":"IFERROR(MID($AB66,FIND(CHAR(160),SUBSTITUTE($AB66,\"{\",CHAR(160),IS$1)),FIND(CHAR(160),SUBSTITUTE($AB66,\"}\",CHAR(160),IS$1))-FIND(CHAR(160),SUBSTITUTE($AB66,\"{\",CHAR(160),IS$1))+1),\"\")","v":""},{"$f":"IFERROR(MID($AB66,FIND(CHAR(160),SUBSTITUTE($AB66,\"{\",CHAR(160),IT$1)),FIND(CHAR(160),SUBSTITUTE($AB66,\"}\",CHAR(160),IT$1))-FIND(CHAR(160),SUBSTITUTE($AB66,\"{\",CHAR(160),IT$1))+1),\"\")","v":""},{"$f":"IFERROR(MID($AB66,FIND(CHAR(160),SUBSTITUTE($AB66,\"{\",CHAR(160),IU$1)),FIND(CHAR(160),SUBSTITUTE($AB66,\"}\",CHAR(160),IU$1))-FIND(CHAR(160),SUBSTITUTE($AB66,\"{\",CHAR(160),IU$1))+1),\"\")","v":""},{"$f":"IFERROR(MID($AB66,FIND(CHAR(160),SUBSTITUTE($AB66,\"{\",CHAR(160),IV$1)),FIND(CHAR(160),SUBSTITUTE($AB66,\"}\",CHAR(160),IV$1))-FIND(CHAR(160),SUBSTITUTE($AB66,\"{\",CHAR(160),IV$1))+1),\"\")","v":""},{"$f":"IFERROR(MID($AB66,FIND(CHAR(160),SUBSTITUTE($AB66,\"{\",CHAR(160),IW$1)),FIND(CHAR(160),SUBSTITUTE($AB66,\"}\",CHAR(160),IW$1))-FIND(CHAR(160),SUBSTITUTE($AB66,\"{\",CHAR(160),IW$1))+1),\"\")","v":""},{"$f":"IFERROR(MID($AB66,FIND(CHAR(160),SUBSTITUTE($AB66,\"{\",CHAR(160),IX$1)),FIND(CHAR(160),SUBSTITUTE($AB66,\"}\",CHAR(160),IX$1))-FIND(CHAR(160),SUBSTITUTE($AB66,\"{\",CHAR(160),IX$1))+1),\"\")","v":""},null,{"$f":"10-COUNTIF(DU66:ED66,\"\")","v":2}]
["C&I HVAC - High Performance Heat Pumps","DHP Lost Opportunity 2 Zones","DHP2L","2021-07-01","2022-06-30","Per Measure",682,0,"Per Measure",750,0,"2021-07-01","2022-06-30","Calculated","if({Backup Heating System Fuel}=6,717,if({Backup Heating System Fuel}=0,275,165))+(2*{Measure:Quantity}-1)*if({Backup Heating System Fuel}=6,406,if({Backup Heating System Fuel}=0,194.8,142))",null,null,null,null,null,"if({Backup Heating System Fuel}=6,0.04,if({Backup Heating System Fuel}=0,0.027,0.024))+(2*{Measure:Quantity}-1)*if({Backup Heating System Fuel}=6,0.024,if({Backup Heating System Fuel}=0,0.017,0.015))","0.116+(2*{Measure:Quantity}-1)*0.064","10*(if({Backup Heating System Fuel}=1,1,if({Backup Heating System Fuel}=0,0.23,0))*2.3+(2*{Measure:Quantity}-1)*if({Backup Heating System Fuel}=1,1,if({Backup Heating System Fuel}=0,0.23,0))*1.12)","if({Backup Heating System Fuel}=2,1,if({Backup Heating System Fuel}=0,0.09,0))*2.3+(2*{Measure:Quantity}-1)*if({Backup Heating System Fuel}=2,1,if({Backup Heating System Fuel}=0,0.09,0))*1.12","if({Backup Heating System Fuel}=3,1,if({Backup Heating System Fuel}=0,0.48,0))*2.3+(2*{Measure:Quantity}-1)*if({Backup Heating System Fuel}=3,1,if({Backup Heating System Fuel}=0,0.48,0))*1.12","if({Backup Heating System Fuel}=4,1,if({Backup Heating System Fuel}=0,0,0))*2.3+(2*{Measure:Quantity}-1)*if({Backup Heating System Fuel}=4,1,if({Backup Heating System Fuel}=0,0,0))*1.12","if({Backup Heating System Fuel}=5,1,if({Backup Heating System Fuel}=0,0,0))*2.3+(2*{Measure:Quantity}-1)*if({Backup Heating System Fuel}=5,1,if({Backup Heating System Fuel}=0,0,0))*1.12",null,"2021-07-01","2022-06-30",18,1,1,0.38100000000000001,0.52500000000000002,5.0999999999999997E-2,4.2000000000000003E-2,1,1,1,0.33,1.6E-2,null,{"$f":"DU67","v":"{Measure:Quantity}"},1,{"$f":"DV67","v":"{Backup Heating System Fuel}"},0,{"$f":"DW67","v":""},null,{"$f":"DX67","v":""},null,{"$f":"DY67","v":""},null,{"$f":"DZ67","v":""},null,{"$f":"EA67","v":""},null,{"$f":"EB67","v":""},null,{"$f":"EC67","v":""},null,{"$f":"ED67","v":""},null,{"$f":"IF(AU67=6,717,IF(AU67=0,275,165))+(2*AS67-1)*IF(AU67=6,406,IF(AU67=0,194.8,142))","v":469.8},0,0,0,0,0,{"$f":"IF(AU67=6,0.04,IF(AU67=0,0.027,0.024))+(2*AS67-1)*IF(AU67=6,0.024,IF(AU67=0,0.017,0.015))","v":4.3999999999999997E-2},{"$f":"0.116+(2*AS67-1)*0.064","v":0.18},{"$f":"10*(IF(AU67=1,1,IF(AU67=0,0.23,0))*2.3+(2*AS67-1)*IF(AU67=1,1,IF(AU67=0,0.23,0))*1.12)","v":7.8660000000000005},{"$f":"IF(AU67=2,1,IF(AU67=0,0.09,0))*2.3+(2*AS67-1)*IF(AU67=2,1,IF(AU67=0,0.09,0))*1.12","v":0.30779999999999996},{"$f":"IF(AU67=3,1,IF(AU67=0,0.48,0))*2.3+(2*AS67-1)*IF(AU67=3,1,IF(AU67=0,0.48,0))*1.12","v":1.6415999999999999},{"$f":"IF(AU67=4,1,IF(AU67=0,0,0))*2.3+(2*AS67-1)*IF(AU67=4,1,IF(AU67=0,0,0))*1.12","v":0},{"$f":"IF(AU67=5,1,IF(AU67=0,0,0))*2.3+(2*AS67-1)*IF(AU67=5,1,IF(AU67=0,0,0))*1.12","v":0},0,null,"Res","Default DR",{"$f":"Benefits(BL67,BR67,BS67,BT67,BU67,BV67,BW67,BX67,BY67,BZ67,AE67,AH67,AI67,AJ67,AK67,AL67,AM67,AN67,AO67,AP67,CA67,CB67)","v":738.73111250835484},583.17982489492647,174.69270206313189,793.09454855995614,0,208.57305390572702,0,0,0,{"$f":"SUMPRODUCT(CC67:CK67,--(CC67:CK67>0))","v":2498.2712419320965},{"$f":"-SUMPRODUCT(CC67:CK67,--(CC67:CK67<0))","v":0},null,{"$f":"682","v":682},null,null,{"$f":"CM67+CO67","v":682},{"$f":"IF(NetOrGross=\"Net\",(1-AO67+AP67),1)","v":1},{"$f":"(SUMPRODUCT(CC67:CJ67,--(CC67:CJ67>0))+CN67)*CS67/((-SUMPRODUCT(CC67:CJ67,--(CC67:CJ67<0))+MAX(CO67,CV67)+CP67+CQ67)*CS67+IF(FRIncentives=\"Yes\",CV67*(1-CS67),0))","v":3.3310283225761288},1,{"$f":"750","v":750},null,"Electric","y",1,{"$f":"IF(F67=\"Manual Entry\",\"Manual\",IF(G67=\"\",0,\"X=\"&SUBSTITUTE(SUBSTITUTE(SUBSTITUTE(SUBSTITUTE(SUBSTITUTE(SUBSTITUTE(SUBSTITUTE(SUBSTITUTE(SUBSTITUTE(SUBSTITUTE(SUBSTITUTE(SUBSTITUTE(G67,$ED67,$ED$2&ROW($ED67)),$EC67,$EC$2&ROW($EC67)),$EB67,$EB$2&ROW($EB67)),$EA67,$EA$2&ROW($EA67)),$DZ67,$DZ$2&ROW($DZ67)),$DY67,$DY$2&ROW($DY67)),$DX67,$DX$2&ROW($DX67)),$DW67,$DW$2&ROW($DW67)),$DV67,$DV$2&ROW($DV67)),$DU67,$DU$2&ROW($DU67)),$DT67,$DT$2&ROW($DT67)),$DS67,$DS$2&ROW($DS67))))","v":"X=682"},{"$f":"IF(I67=\"Manual Entry\",\"Manual\",IF(J67=\"\",0,\"X=\"&SUBSTITUTE(SUBSTITUTE(SUBSTITUTE(SUBSTITUTE(SUBSTITUTE(SUBSTITUTE(SUBSTITUTE(SUBSTITUTE(SUBSTITUTE(SUBSTITUTE(SUBSTITUTE(SUBSTITUTE(J67,$ED67,$ED$2&ROW($ED67)),$EC67,$EC$2&ROW($EC67)),$EB67,$EB$2&ROW($EB67)),$EA67,$EA$2&ROW($EA67)),$DZ67,$DZ$2&ROW($DZ67)),$DY67,$DY$2&ROW($DY67)),$DX67,$DX$2&ROW($DX67)),$DW67,$DW$2&ROW($DW67)),$DV67,$DV$2&ROW($DV67)),$DU67,$DU$2&ROW($DU67)),$DT67,$DT$2&ROW($DT67)),$DS67,$DS$2&ROW($DS67))))","v":"X=750"},{"$f":"IF(O67=\"\",0,\"X=\"&SUBSTITUTE(SUBSTITUTE(SUBSTITUTE(SUBSTITUTE(SUBSTITUTE(SUBSTITUTE(SUBSTITUTE(SUBSTITUTE(SUBSTITUTE(SUBSTITUTE(SUBSTITUTE(SUBSTITUTE(O67,$ED67,$ED$2&ROW($ED67)),$EC67,$EC$2&ROW($EC67)),$EB67,$EB$2&ROW($EB67)),$EA67,$EA$2&ROW($EA67)),$DZ67,$DZ$2&ROW($DZ67)),$DY67,$DY$2&ROW($DY67)),$DX67,$DX$2&ROW($DX67)),$DW67,$DW$2&ROW($DW67)),$DV67,$DV$2&ROW($DV67)),$DU67,$DU$2&ROW($DU67)),$DT67,$DT$2&ROW($DT67)),$DS67,$DS$2&ROW($DS67)))","v":"X=if(AU67=6,717,if(AU67=0,275,165))+(2*AS67-1)*if(AU67=6,406,if(AU67=0,194.8,142))"},{"$f":"IF(P67=\"\",0,\"X=\"&SUBSTITUTE(SUBSTITUTE(SUBSTITUTE(SUBSTITUTE(SUBSTITUTE(SUBSTITUTE(SUBSTITUTE(SUBSTITUTE(SUBSTITUTE(SUBSTITUTE(SUBSTITUTE(SUBSTITUTE(P67,$ED67,$ED$2&ROW($ED67)),$EC67,$EC$2&ROW($EC67)),$EB67,$EB$2&ROW($EB67)),$EA67,$EA$2&ROW($EA67)),$DZ67,$DZ$2&ROW($DZ67)),$DY67,$DY$2&ROW($DY67)),$DX67,$DX$2&ROW($DX67)),$DW67,$DW$2&ROW($DW67)),$DV67,$DV$2&ROW($DV67)),$DU67,$DU$2&ROW($DU67)),$DT67,$DT$2&ROW($DT67)),$DS67,$DS$2&ROW($DS67)))","v":0},{"$f":"IF(Q67=\"\",0,\"X=\"&SUBSTITUTE(SUBSTITUTE(SUBSTITUTE(SUBSTITUTE(SUBSTITUTE(SUBSTITUTE(SUBSTITUTE(SUBSTITUTE(SUBSTITUTE(SUBSTITUTE(SUBSTITUTE(SUBSTITUTE(Q67,$ED67,$ED$2&ROW($ED67)),$EC67,$EC$2&ROW($EC67)),$EB67,$EB$2&ROW($EB67)),$EA67,$EA$2&ROW($EA67)),$DZ67,$DZ$2&ROW($DZ67)),$DY67,$DY$2&ROW($DY67)),$DX67,$DX$2&ROW($DX67)),$DW67,$DW$2&ROW($DW67)),$DV67,$DV$2&ROW($DV67)),$DU67,$DU$2&ROW($DU67)),$DT67,$DT$2&ROW($DT67)),$DS67,$DS$2&ROW($DS67)))","v":0},{"$f":"IF(R67=\"\",0,\"X=\"&SUBSTITUTE(SUBSTITUTE(SUBSTITUTE(SUBSTITUTE(SUBSTITUTE(SUBSTITUTE(SUBSTITUTE(SUBSTITUTE(SUBSTITUTE(SUBSTITUTE(SUBSTITUTE(SUBSTITUTE(R67,$ED67,$ED$2&ROW($ED67)),$EC67,$EC$2&ROW($EC67)),$EB67,$EB$2&ROW($EB67)),$EA67,$EA$2&ROW($EA67)),$DZ67,$DZ$2&ROW($DZ67)),$DY67,$DY$2&ROW($DY67)),$DX67,$DX$2&ROW($DX67)),$DW67,$DW$2&ROW($DW67)),$DV67,$DV$2&ROW($DV67)),$DU67,$DU$2&ROW($DU67)),$DT67,$DT$2&ROW($DT67)),$DS67,$DS$2&ROW($DS67)))","v":0},{"$f":"IF(S67=\"\",0,\"X=\"&SUBSTITUTE(SUBSTITUTE(SUBSTITUTE(SUBSTITUTE(SUBSTITUTE(SUBSTITUTE(SUBSTITUTE(SUBSTITUTE(SUBSTITUTE(SUBSTITUTE(SUBSTITUTE(SUBSTITUTE(S67,$ED67,$ED$2&ROW($ED67)),$EC67,$EC$2&ROW($EC67)),$EB67,$EB$2&ROW($EB67)),$EA67,$EA$2&ROW($EA67)),$DZ67,$DZ$2&ROW($DZ67)),$DY67,$DY$2&ROW($DY67)),$DX67,$DX$2&ROW($DX67)),$DW67,$DW$2&ROW($DW67)),$DV67,$DV$2&ROW($DV67)),$DU67,$DU$2&ROW($DU67)),$DT67,$DT$2&ROW($DT67)),$DS67,$DS$2&ROW($DS67)))","v":0},{"$f":"IF(T67=\"\",0,\"X=\"&SUBSTITUTE(SUBSTITUTE(SUBSTITUTE(SUBSTITUTE(SUBSTITUTE(SUBSTITUTE(SUBSTITUTE(SUBSTITUTE(SUBSTITUTE(SUBSTITUTE(SUBSTITUTE(SUBSTITUTE(T67,$ED67,$ED$2&ROW($ED67)),$EC67,$EC$2&ROW($EC67)),$EB67,$EB$2&ROW($EB67)),$EA67,$EA$2&ROW($EA67)),$DZ67,$DZ$2&ROW($DZ67)),$DY67,$DY$2&ROW($DY67)),$DX67,$DX$2&ROW($DX67)),$DW67,$DW$2&ROW($DW67)),$DV67,$DV$2&ROW($DV67)),$DU67,$DU$2&ROW($DU67)),$DT67,$DT$2&ROW($DT67)),$DS67,$DS$2&ROW($DS67)))","v":0},{"$f":"IF(U67=\"\",0,\"X=\"&SUBSTITUTE(SUBSTITUTE(SUBSTITUTE(SUBSTITUTE(SUBSTITUTE(SUBSTITUTE(SUBSTITUTE(SUBSTITUTE(SUBSTITUTE(SUBSTITUTE(SUBSTITUTE(SUBSTITUTE(U67,$ED67,$ED$2&ROW($ED67)),$EC67,$EC$2&ROW($EC67)),$EB67,$EB$2&ROW($EB67)),$EA67,$EA$2&ROW($EA67)),$DZ67,$DZ$2&ROW($DZ67)),$DY67,$DY$2&ROW($DY67)),$DX67,$DX$2&ROW($DX67)),$DW67,$DW$2&ROW($DW67)),$DV67,$DV$2&ROW($DV67)),$DU67,$DU$2&ROW($DU67)),$DT67,$DT$2&ROW($DT67)),$DS67,$DS$2&ROW($DS67)))","v":"X=if(AU67=6,0.04,if(AU67=0,0.027,0.024))+(2*AS67-1)*if(AU67=6,0.024,if(AU67=0,0.017,0.015))"},{"$f":"IF(V67=\"\",0,\"X=\"&SUBSTITUTE(SUBSTITUTE(SUBSTITUTE(SUBSTITUTE(SUBSTITUTE(SUBSTITUTE(SUBSTITUTE(SUBSTITUTE(SUBSTITUTE(SUBSTITUTE(SUBSTITUTE(SUBSTITUTE(V67,$ED67,$ED$2&ROW($ED67)),$EC67,$EC$2&ROW($EC67)),$EB67,$EB$2&ROW($EB67)),$EA67,$EA$2&ROW($EA67)),$DZ67,$DZ$2&ROW($DZ67)),$DY67,$DY$2&ROW($DY67)),$DX67,$DX$2&ROW($DX67)),$DW67,$DW$2&ROW($DW67)),$DV67,$DV$2&ROW($DV67)),$DU67,$DU$2&ROW($DU67)),$DT67,$DT$2&ROW($DT67)),$DS67,$DS$2&ROW($DS67)))","v":"X=0.116+(2*AS67-1)*0.064"},{"$f":"IF(W67=\"\",0,\"X=\"&SUBSTITUTE(SUBSTITUTE(SUBSTITUTE(SUBSTITUTE(SUBSTITUTE(SUBSTITUTE(SUBSTITUTE(SUBSTITUTE(SUBSTITUTE(SUBSTITUTE(SUBSTITUTE(SUBSTITUTE(W67,$ED67,$ED$2&ROW($ED67)),$EC67,$EC$2&ROW($EC67)),$EB67,$EB$2&ROW($EB67)),$EA67,$EA$2&ROW($EA67)),$DZ67,$DZ$2&ROW($DZ67)),$DY67,$DY$2&ROW($DY67)),$DX67,$DX$2&ROW($DX67)),$DW67,$DW$2&ROW($DW67)),$DV67,$DV$2&ROW($DV67)),$DU67,$DU$2&ROW($DU67)),$DT67,$DT$2&ROW($DT67)),$DS67,$DS$2&ROW($DS67)))","v":"X=10*(if(AU67=1,1,if(AU67=0,0.23,0))*2.3+(2*AS67-1)*if(AU67=1,1,if(AU67=0,0.23,0))*1.12)"},{"$f":"IF(X67=\"\",0,\"X=\"&SUBSTITUTE(SUBSTITUTE(SUBSTITUTE(SUBSTITUTE(SUBSTITUTE(SUBSTITUTE(SUBSTITUTE(SUBSTITUTE(SUBSTITUTE(SUBSTITUTE(SUBSTITUTE(SUBSTITUTE(X67,$ED67,$ED$2&ROW($ED67)),$EC67,$EC$2&ROW($EC67)),$EB67,$EB$2&ROW($EB67)),$EA67,$EA$2&ROW($EA67)),$DZ67,$DZ$2&ROW($DZ67)),$DY67,$DY$2&ROW($DY67)),$DX67,$DX$2&ROW($DX67)),$DW67,$DW$2&ROW($DW67)),$DV67,$DV$2&ROW($DV67)),$DU67,$DU$2&ROW($DU67)),$DT67,$DT$2&ROW($DT67)),$DS67,$DS$2&ROW($DS67)))","v":"X=if(AU67=2,1,if(AU67=0,0.09,0))*2.3+(2*AS67-1)*if(AU67=2,1,if(AU67=0,0.09,0))*1.12"},{"$f":"IF(Y67=\"\",0,\"X=\"&SUBSTITUTE(SUBSTITUTE(SUBSTITUTE(SUBSTITUTE(SUBSTITUTE(SUBSTITUTE(SUBSTITUTE(SUBSTITUTE(SUBSTITUTE(SUBSTITUTE(SUBSTITUTE(SUBSTITUTE(Y67,$ED67,$ED$2&ROW($ED67)),$EC67,$EC$2&ROW($EC67)),$EB67,$EB$2&ROW($EB67)),$EA67,$EA$2&ROW($EA67)),$DZ67,$DZ$2&ROW($DZ67)),$DY67,$DY$2&ROW($DY67)),$DX67,$DX$2&ROW($DX67)),$DW67,$DW$2&ROW($DW67)),$DV67,$DV$2&ROW($DV67)),$DU67,$DU$2&ROW($DU67)),$DT67,$DT$2&ROW($DT67)),$DS67,$DS$2&ROW($DS67)))","v":"X=if(AU67=3,1,if(AU67=0,0.48,0))*2.3+(2*AS67-1)*if(AU67=3,1,if(AU67=0,0.48,0))*1.12"},{"$f":"IF(Z67=\"\",0,\"X=\"&SUBSTITUTE(SUBSTITUTE(SUBSTITUTE(SUBSTITUTE(SUBSTITUTE(SUBSTITUTE(SUBSTITUTE(SUBSTITUTE(SUBSTITUTE(SUBSTITUTE(SUBSTITUTE(SUBSTITUTE(Z67,$ED67,$ED$2&ROW($ED67)),$EC67,$EC$2&ROW($EC67)),$EB67,$EB$2&ROW($EB67)),$EA67,$EA$2&ROW($EA67)),$DZ67,$DZ$2&ROW($DZ67)),$DY67,$DY$2&ROW($DY67)),$DX67,$DX$2&ROW($DX67)),$DW67,$DW$2&ROW($DW67)),$DV67,$DV$2&ROW($DV67)),$DU67,$DU$2&ROW($DU67)),$DT67,$DT$2&ROW($DT67)),$DS67,$DS$2&ROW($DS67)))","v":"X=if(AU67=4,1,if(AU67=0,0,0))*2.3+(2*AS67-1)*if(AU67=4,1,if(AU67=0,0,0))*1.12"},{"$f":"IF(AA67=\"\",0,\"X=\"&SUBSTITUTE(SUBSTITUTE(SUBSTITUTE(SUBSTITUTE(SUBSTITUTE(SUBSTITUTE(SUBSTITUTE(SUBSTITUTE(SUBSTITUTE(SUBSTITUTE(SUBSTITUTE(SUBSTITUTE(AA67,$ED67,$ED$2&ROW($ED67)),$EC67,$EC$2&ROW($EC67)),$EB67,$EB$2&ROW($EB67)),$EA67,$EA$2&ROW($EA67)),$DZ67,$DZ$2&ROW($DZ67)),$DY67,$DY$2&ROW($DY67)),$DX67,$DX$2&ROW($DX67)),$DW67,$DW$2&ROW($DW67)),$DV67,$DV$2&ROW($DV67)),$DU67,$DU$2&ROW($DU67)),$DT67,$DT$2&ROW($DT67)),$DS67,$DS$2&ROW($DS67)))","v":"X=if(AU67=5,1,if(AU67=0,0,0))*2.3+(2*AS67-1)*if(AU67=5,1,if(AU67=0,0,0))*1.12"},{"$f":"IF(AB67=\"\",0,\"X=\"&SUBSTITUTE(SUBSTITUTE(SUBSTITUTE(SUBSTITUTE(SUBSTITUTE(SUBSTITUTE(SUBSTITUTE(SUBSTITUTE(SUBSTITUTE(SUBSTITUTE(SUBSTITUTE(SUBSTITUTE(AB67,$ED67,$ED$2&ROW($ED67)),$EC67,$EC$2&ROW($EC67)),$EB67,$EB$2&ROW($EB67)),$EA67,$EA$2&ROW($EA67)),$DZ67,$DZ$2&ROW($DZ67)),$DY67,$DY$2&ROW($DY67)),$DX67,$DX$2&ROW($DX67)),$DW67,$DW$2&ROW($DW67)),$DV67,$DV$2&ROW($DV67)),$DU67,$DU$2&ROW($DU67)),$DT67,$DT$2&ROW($DT67)),$DS67,$DS$2&ROW($DS67)))","v":0},null,null,"{Factor:WinterCF}","{Factor:SummerCF}",{"$f":"IFERROR(INDEX($EG67:$IV67,MATCH(0,COUNTIF($DR67:DT67,$EG67:$IV67),0)),\"\")","v":"{Measure:Quantity}"},{"$f":"IFERROR(INDEX($EG67:$IV67,MATCH(0,COUNTIF($DR67:DU67,$EG67:$IV67),0)),\"\")","v":"{Backup Heating System Fuel}"},{"$f":"IFERROR(INDEX($EG67:$IV67,MATCH(0,COUNTIF($DR67:DV67,$EG67:$IV67),0)),\"\")","v":""},{"$f":"IFERROR(INDEX($EG67:$IV67,MATCH(0,COUNTIF($DR67:DW67,$EG67:$IV67),0)),\"\")","v":""},{"$f":"IFERROR(INDEX($EG67:$IV67,MATCH(0,COUNTIF($DR67:DX67,$EG67:$IV67),0)),\"\")","v":""},{"$f":"IFERROR(INDEX($EG67:$IV67,MATCH(0,COUNTIF($DR67:DY67,$EG67:$IV67),0)),\"\")","v":""},{"$f":"IFERROR(INDEX($EG67:$IV67,MATCH(0,COUNTIF($DR67:DZ67,$EG67:$IV67),0)),\"\")","v":""},{"$f":"IFERROR(INDEX($EG67:$IV67,MATCH(0,COUNTIF($DR67:EA67,$EG67:$IV67),0)),\"\")","v":""},{"$f":"IFERROR(INDEX($EG67:$IV67,MATCH(0,COUNTIF($DR67:EB67,$EG67:$IV67),0)),\"\")","v":""},{"$f":"IFERROR(INDEX($EG67:$IV67,MATCH(0,COUNTIF($DR67:EC67,$EG67:$IV67),0)),\"\")","v":""},null,null,{"$f":"IFERROR(MID($G67,FIND(CHAR(160),SUBSTITUTE($G67,\"{\",CHAR(160),EG$1)),FIND(CHAR(160),SUBSTITUTE($G67,\"}\",CHAR(160),EG$1))-FIND(CHAR(160),SUBSTITUTE($G67,\"{\",CHAR(160),EG$1))+1),\"\")","v":""},{"$f":"IFERROR(MID($G67,FIND(CHAR(160),SUBSTITUTE($G67,\"{\",CHAR(160),EH$1)),FIND(CHAR(160),SUBSTITUTE($G67,\"}\",CHAR(160),EH$1))-FIND(CHAR(160),SUBSTITUTE($G67,\"{\",CHAR(160),EH$1))+1),\"\")","v":""},{"$f":"IFERROR(MID($G67,FIND(CHAR(160),SUBSTITUTE($G67,\"{\",CHAR(160),EI$1)),FIND(CHAR(160),SUBSTITUTE($G67,\"}\",CHAR(160),EI$1))-FIND(CHAR(160),SUBSTITUTE($G67,\"{\",CHAR(160),EI$1))+1),\"\")","v":""},{"$f":"IFERROR(MID($G67,FIND(CHAR(160),SUBSTITUTE($G67,\"{\",CHAR(160),EJ$1)),FIND(CHAR(160),SUBSTITUTE($G67,\"}\",CHAR(160),EJ$1))-FIND(CHAR(160),SUBSTITUTE($G67,\"{\",CHAR(160),EJ$1))+1),\"\")","v":""},{"$f":"IFERROR(MID($G67,FIND(CHAR(160),SUBSTITUTE($G67,\"{\",CHAR(160),EK$1)),FIND(CHAR(160),SUBSTITUTE($G67,\"}\",CHAR(160),EK$1))-FIND(CHAR(160),SUBSTITUTE($G67,\"{\",CHAR(160),EK$1))+1),\"\")","v":""},{"$f":"IFERROR(MID($G67,FIND(CHAR(160),SUBSTITUTE($G67,\"{\",CHAR(160),EL$1)),FIND(CHAR(160),SUBSTITUTE($G67,\"}\",CHAR(160),EL$1))-FIND(CHAR(160),SUBSTITUTE($G67,\"{\",CHAR(160),EL$1))+1),\"\")","v":""},{"$f":"IFERROR(MID($G67,FIND(CHAR(160),SUBSTITUTE($G67,\"{\",CHAR(160),EM$1)),FIND(CHAR(160),SUBSTITUTE($G67,\"}\",CHAR(160),EM$1))-FIND(CHAR(160),SUBSTITUTE($G67,\"{\",CHAR(160),EM$1))+1),\"\")","v":""},{"$f":"IFERROR(MID($G67,FIND(CHAR(160),SUBSTITUTE($G67,\"{\",CHAR(160),EN$1)),FIND(CHAR(160),SUBSTITUTE($G67,\"}\",CHAR(160),EN$1))-FIND(CHAR(160),SUBSTITUTE($G67,\"{\",CHAR(160),EN$1))+1),\"\")","v":""},{"$f":"IFERROR(MID($G67,FIND(CHAR(160),SUBSTITUTE($G67,\"{\",CHAR(160),EO$1)),FIND(CHAR(160),SUBSTITUTE($G67,\"}\",CHAR(160),EO$1))-FIND(CHAR(160),SUBSTITUTE($G67,\"{\",CHAR(160),EO$1))+1),\"\")","v":""},{"$f":"IFERROR(MID($G67,FIND(CHAR(160),SUBSTITUTE($G67,\"{\",CHAR(160),EP$1)),FIND(CHAR(160),SUBSTITUTE($G67,\"}\",CHAR(160),EP$1))-FIND(CHAR(160),SUBSTITUTE($G67,\"{\",CHAR(160),EP$1))+1),\"\")","v":""},{"$f":"IFERROR(MID($J67,FIND(CHAR(160),SUBSTITUTE($J67,\"{\",CHAR(160),EQ$1)),FIND(CHAR(160),SUBSTITUTE($J67,\"}\",CHAR(160),EQ$1))-FIND(CHAR(160),SUBSTITUTE($J67,\"{\",CHAR(160),EQ$1))+1),\"\")","v":""},{"$f":"IFERROR(MID($J67,FIND(CHAR(160),SUBSTITUTE($J67,\"{\",CHAR(160),ER$1)),FIND(CHAR(160),SUBSTITUTE($J67,\"}\",CHAR(160),ER$1))-FIND(CHAR(160),SUBSTITUTE($J67,\"{\",CHAR(160),ER$1))+1),\"\")","v":""},{"$f":"IFERROR(MID($J67,FIND(CHAR(160),SUBSTITUTE($J67,\"{\",CHAR(160),ES$1)),FIND(CHAR(160),SUBSTITUTE($J67,\"}\",CHAR(160),ES$1))-FIND(CHAR(160),SUBSTITUTE($J67,\"{\",CHAR(160),ES$1))+1),\"\")","v":""},{"$f":"IFERROR(MID($J67,FIND(CHAR(160),SUBSTITUTE($J67,\"{\",CHAR(160),ET$1)),FIND(CHAR(160),SUBSTITUTE($J67,\"}\",CHAR(160),ET$1))-FIND(CHAR(160),SUBSTITUTE($J67,\"{\",CHAR(160),ET$1))+1),\"\")","v":""},{"$f":"IFERROR(MID($J67,FIND(CHAR(160),SUBSTITUTE($J67,\"{\",CHAR(160),EU$1)),FIND(CHAR(160),SUBSTITUTE($J67,\"}\",CHAR(160),EU$1))-FIND(CHAR(160),SUBSTITUTE($J67,\"{\",CHAR(160),EU$1))+1),\"\")","v":""},{"$f":"IFERROR(MID($J67,FIND(CHAR(160),SUBSTITUTE($J67,\"{\",CHAR(160),EV$1)),FIND(CHAR(160),SUBSTITUTE($J67,\"}\",CHAR(160),EV$1))-FIND(CHAR(160),SUBSTITUTE($J67,\"{\",CHAR(160),EV$1))+1),\"\")","v":""},{"$f":"IFERROR(MID($J67,FIND(CHAR(160),SUBSTITUTE($J67,\"{\",CHAR(160),EW$1)),FIND(CHAR(160),SUBSTITUTE($J67,\"}\",CHAR(160),EW$1))-FIND(CHAR(160),SUBSTITUTE($J67,\"{\",CHAR(160),EW$1))+1),\"\")","v":""},{"$f":"IFERROR(MID($J67,FIND(CHAR(160),SUBSTITUTE($J67,\"{\",CHAR(160),EX$1)),FIND(CHAR(160),SUBSTITUTE($J67,\"}\",CHAR(160),EX$1))-FIND(CHAR(160),SUBSTITUTE($J67,\"{\",CHAR(160),EX$1))+1),\"\")","v":""},{"$f":"IFERROR(MID($J67,FIND(CHAR(160),SUBSTITUTE($J67,\"{\",CHAR(160),EY$1)),FIND(CHAR(160),SUBSTITUTE($J67,\"}\",CHAR(160),EY$1))-FIND(CHAR(160),SUBSTITUTE($J67,\"{\",CHAR(160),EY$1))+1),\"\")","v":""},{"$f":"IFERROR(MID($J67,FIND(CHAR(160),SUBSTITUTE($J67,\"{\",CHAR(160),EZ$1)),FIND(CHAR(160),SUBSTITUTE($J67,\"}\",CHAR(160),EZ$1))-FIND(CHAR(160),SUBSTITUTE($J67,\"{\",CHAR(160),EZ$1))+1),\"\")","v":""},{"$f":"IFERROR(MID($J67,FIND(CHAR(160),SUBSTITUTE($J67,\"{\",CHAR(160),FA$1)),FIND(CHAR(160),SUBSTITUTE($J67,\"}\",CHAR(160),FA$1))-FIND(CHAR(160),SUBSTITUTE($J67,\"{\",CHAR(160),FA$1))+1),\"\")","v":""},{"$f":"IFERROR(MID($J67,FIND(CHAR(160),SUBSTITUTE($J67,\"{\",CHAR(160),FB$1)),FIND(CHAR(160),SUBSTITUTE($J67,\"}\",CHAR(160),FB$1))-FIND(CHAR(160),SUBSTITUTE($J67,\"{\",CHAR(160),FB$1))+1),\"\")","v":""},{"$f":"IFERROR(MID($O67,FIND(CHAR(160),SUBSTITUTE($O67,\"{\",CHAR(160),FC$1)),FIND(CHAR(160),SUBSTITUTE($O67,\"}\",CHAR(160),FC$1))-FIND(CHAR(160),SUBSTITUTE($O67,\"{\",CHAR(160),FC$1))+1),\"\")","v":"{Measure:Quantity}"},{"$f":"IFERROR(MID($O67,FIND(CHAR(160),SUBSTITUTE($O67,\"{\",CHAR(160),FD$1)),FIND(CHAR(160),SUBSTITUTE($O67,\"}\",CHAR(160),FD$1))-FIND(CHAR(160),SUBSTITUTE($O67,\"{\",CHAR(160),FD$1))+1),\"\")","v":"{Backup Heating System Fuel}"},{"$f":"IFERROR(MID($O67,FIND(CHAR(160),SUBSTITUTE($O67,\"{\",CHAR(160),FE$1)),FIND(CHAR(160),SUBSTITUTE($O67,\"}\",CHAR(160),FE$1))-FIND(CHAR(160),SUBSTITUTE($O67,\"{\",CHAR(160),FE$1))+1),\"\")","v":"{Backup Heating System Fuel}"},{"$f":"IFERROR(MID($O67,FIND(CHAR(160),SUBSTITUTE($O67,\"{\",CHAR(160),FF$1)),FIND(CHAR(160),SUBSTITUTE($O67,\"}\",CHAR(160),FF$1))-FIND(CHAR(160),SUBSTITUTE($O67,\"{\",CHAR(160),FF$1))+1),\"\")","v":""},{"$f":"IFERROR(MID($O67,FIND(CHAR(160),SUBSTITUTE($O67,\"{\",CHAR(160),FG$1)),FIND(CHAR(160),SUBSTITUTE($O67,\"}\",CHAR(160),FG$1))-FIND(CHAR(160),SUBSTITUTE($O67,\"{\",CHAR(160),FG$1))+1),\"\")","v":""},{"$f":"IFERROR(MID($O67,FIND(CHAR(160),SUBSTITUTE($O67,\"{\",CHAR(160),FH$1)),FIND(CHAR(160),SUBSTITUTE($O67,\"}\",CHAR(160),FH$1))-FIND(CHAR(160),SUBSTITUTE($O67,\"{\",CHAR(160),FH$1))+1),\"\")","v":""},{"$f":"IFERROR(MID($O67,FIND(CHAR(160),SUBSTITUTE($O67,\"{\",CHAR(160),FI$1)),FIND(CHAR(160),SUBSTITUTE($O67,\"}\",CHAR(160),FI$1))-FIND(CHAR(160),SUBSTITUTE($O67,\"{\",CHAR(160),FI$1))+1),\"\")","v":""},{"$f":"IFERROR(MID($O67,FIND(CHAR(160),SUBSTITUTE($O67,\"{\",CHAR(160),FJ$1)),FIND(CHAR(160),SUBSTITUTE($O67,\"}\",CHAR(160),FJ$1))-FIND(CHAR(160),SUBSTITUTE($O67,\"{\",CHAR(160),FJ$1))+1),\"\")","v":""},{"$f":"IFERROR(MID($O67,FIND(CHAR(160),SUBSTITUTE($O67,\"{\",CHAR(160),FK$1)),FIND(CHAR(160),SUBSTITUTE($O67,\"}\",CHAR(160),FK$1))-FIND(CHAR(160),SUBSTITUTE($O67,\"{\",CHAR(160),FK$1))+1),\"\")","v":"{Backup Heating System Fuel}"},{"$f":"IFERROR(MID($O67,FIND(CHAR(160),SUBSTITUTE($O67,\"{\",CHAR(160),FL$1)),FIND(CHAR(160),SUBSTITUTE($O67,\"}\",CHAR(160),FL$1))-FIND(CHAR(160),SUBSTITUTE($O67,\"{\",CHAR(160),FL$1))+1),\"\")","v":"{Backup Heating System Fuel}"},{"$f":"IFERROR(MID($R67,FIND(CHAR(160),SUBSTITUTE($R67,\"{\",CHAR(160),FM$1)),FIND(CHAR(160),SUBSTITUTE($R67,\"}\",CHAR(160),FM$1))-FIND(CHAR(160),SUBSTITUTE($R67,\"{\",CHAR(160),FM$1))+1),\"\")","v":""},{"$f":"IFERROR(MID($R67,FIND(CHAR(160),SUBSTITUTE($R67,\"{\",CHAR(160),FN$1)),FIND(CHAR(160),SUBSTITUTE($R67,\"}\",CHAR(160),FN$1))-FIND(CHAR(160),SUBSTITUTE($R67,\"{\",CHAR(160),FN$1))+1),\"\")","v":""},{"$f":"IFERROR(MID($R67,FIND(CHAR(160),SUBSTITUTE($R67,\"{\",CHAR(160),FO$1)),FIND(CHAR(160),SUBSTITUTE($R67,\"}\",CHAR(160),FO$1))-FIND(CHAR(160),SUBSTITUTE($R67,\"{\",CHAR(160),FO$1))+1),\"\")","v":""},{"$f":"IFERROR(MID($R67,FIND(CHAR(160),SUBSTITUTE($R67,\"{\",CHAR(160),FP$1)),FIND(CHAR(160),SUBSTITUTE($R67,\"}\",CHAR(160),FP$1))-FIND(CHAR(160),SUBSTITUTE($R67,\"{\",CHAR(160),FP$1))+1),\"\")","v":""},{"$f":"IFERROR(MID($R67,FIND(CHAR(160),SUBSTITUTE($R67,\"{\",CHAR(160),FQ$1)),FIND(CHAR(160),SUBSTITUTE($R67,\"}\",CHAR(160),FQ$1))-FIND(CHAR(160),SUBSTITUTE($R67,\"{\",CHAR(160),FQ$1))+1),\"\")","v":""},{"$f":"IFERROR(MID($R67,FIND(CHAR(160),SUBSTITUTE($R67,\"{\",CHAR(160),FR$1)),FIND(CHAR(160),SUBSTITUTE($R67,\"}\",CHAR(160),FR$1))-FIND(CHAR(160),SUBSTITUTE($R67,\"{\",CHAR(160),FR$1))+1),\"\")","v":""},{"$f":"IFERROR(MID($R67,FIND(CHAR(160),SUBSTITUTE($R67,\"{\",CHAR(160),FS$1)),FIND(CHAR(160),SUBSTITUTE($R67,\"}\",CHAR(160),FS$1))-FIND(CHAR(160),SUBSTITUTE($R67,\"{\",CHAR(160),FS$1))+1),\"\")","v":""},{"$f":"IFERROR(MID($R67,FIND(CHAR(160),SUBSTITUTE($R67,\"{\",CHAR(160),FT$1)),FIND(CHAR(160),SUBSTITUTE($R67,\"}\",CHAR(160),FT$1))-FIND(CHAR(160),SUBSTITUTE($R67,\"{\",CHAR(160),FT$1))+1),\"\")","v":""},{"$f":"IFERROR(MID($R67,FIND(CHAR(160),SUBSTITUTE($R67,\"{\",CHAR(160),FU$1)),FIND(CHAR(160),SUBSTITUTE($R67,\"}\",CHAR(160),FU$1))-FIND(CHAR(160),SUBSTITUTE($R67,\"{\",CHAR(160),FU$1))+1),\"\")","v":""},{"$f":"IFERROR(MID($R67,FIND(CHAR(160),SUBSTITUTE($R67,\"{\",CHAR(160),FV$1)),FIND(CHAR(160),SUBSTITUTE($R67,\"}\",CHAR(160),FV$1))-FIND(CHAR(160),SUBSTITUTE($R67,\"{\",CHAR(160),FV$1))+1),\"\")","v":""},{"$f":"IFERROR(MID($U67,FIND(CHAR(160),SUBSTITUTE($U67,\"{\",CHAR(160),FW$1)),FIND(CHAR(160),SUBSTITUTE($U67,\"}\",CHAR(160),FW$1))-FIND(CHAR(160),SUBSTITUTE($U67,\"{\",CHAR(160),FW$1))+1),\"\")","v":"{Measure:Quantity}"},{"$f":"IFERROR(MID($U67,FIND(CHAR(160),SUBSTITUTE($U67,\"{\",CHAR(160),FX$1)),FIND(CHAR(160),SUBSTITUTE($U67,\"}\",CHAR(160),FX$1))-FIND(CHAR(160),SUBSTITUTE($U67,\"{\",CHAR(160),FX$1))+1),\"\")","v":"{Backup Heating System Fuel}"},{"$f":"IFERROR(MID($U67,FIND(CHAR(160),SUBSTITUTE($U67,\"{\",CHAR(160),FY$1)),FIND(CHAR(160),SUBSTITUTE($U67,\"}\",CHAR(160),FY$1))-FIND(CHAR(160),SUBSTITUTE($U67,\"{\",CHAR(160),FY$1))+1),\"\")","v":"{Backup Heating System Fuel}"},{"$f":"IFERROR(MID($U67,FIND(CHAR(160),SUBSTITUTE($U67,\"{\",CHAR(160),FZ$1)),FIND(CHAR(160),SUBSTITUTE($U67,\"}\",CHAR(160),FZ$1))-FIND(CHAR(160),SUBSTITUTE($U67,\"{\",CHAR(160),FZ$1))+1),\"\")","v":""},{"$f":"IFERROR(MID($U67,FIND(CHAR(160),SUBSTITUTE($U67,\"{\",CHAR(160),GA$1)),FIND(CHAR(160),SUBSTITUTE($U67,\"}\",CHAR(160),GA$1))-FIND(CHAR(160),SUBSTITUTE($U67,\"{\",CHAR(160),GA$1))+1),\"\")","v":""},{"$f":"IFERROR(MID($U67,FIND(CHAR(160),SUBSTITUTE($U67,\"{\",CHAR(160),GB$1)),FIND(CHAR(160),SUBSTITUTE($U67,\"}\",CHAR(160),GB$1))-FIND(CHAR(160),SUBSTITUTE($U67,\"{\",CHAR(160),GB$1))+1),\"\")","v":""},{"$f":"IFERROR(MID($U67,FIND(CHAR(160),SUBSTITUTE($U67,\"{\",CHAR(160),GC$1)),FIND(CHAR(160),SUBSTITUTE($U67,\"}\",CHAR(160),GC$1))-FIND(CHAR(160),SUBSTITUTE($U67,\"{\",CHAR(160),GC$1))+1),\"\")","v":""},{"$f":"IFERROR(MID($U67,FIND(CHAR(160),SUBSTITUTE($U67,\"{\",CHAR(160),GD$1)),FIND(CHAR(160),SUBSTITUTE($U67,\"}\",CHAR(160),GD$1))-FIND(CHAR(160),SUBSTITUTE($U67,\"{\",CHAR(160),GD$1))+1),\"\")","v":""},{"$f":"IFERROR(MID($U67,FIND(CHAR(160),SUBSTITUTE($U67,\"{\",CHAR(160),GE$1)),FIND(CHAR(160),SUBSTITUTE($U67,\"}\",CHAR(160),GE$1))-FIND(CHAR(160),SUBSTITUTE($U67,\"{\",CHAR(160),GE$1))+1),\"\")","v":"{Backup Heating System Fuel}"},{"$f":"IFERROR(MID($U67,FIND(CHAR(160),SUBSTITUTE($U67,\"{\",CHAR(160),GF$1)),FIND(CHAR(160),SUBSTITUTE($U67,\"}\",CHAR(160),GF$1))-FIND(CHAR(160),SUBSTITUTE($U67,\"{\",CHAR(160),GF$1))+1),\"\")","v":"{Backup Heating System Fuel}"},{"$f":"IFERROR(MID($V67,FIND(CHAR(160),SUBSTITUTE($V67,\"{\",CHAR(160),GG$1)),FIND(CHAR(160),SUBSTITUTE($V67,\"}\",CHAR(160),GG$1))-FIND(CHAR(160),SUBSTITUTE($V67,\"{\",CHAR(160),GG$1))+1),\"\")","v":""},{"$f":"IFERROR(MID($V67,FIND(CHAR(160),SUBSTITUTE($V67,\"{\",CHAR(160),GH$1)),FIND(CHAR(160),SUBSTITUTE($V67,\"}\",CHAR(160),GH$1))-FIND(CHAR(160),SUBSTITUTE($V67,\"{\",CHAR(160),GH$1))+1),\"\")","v":""},{"$f":"IFERROR(MID($V67,FIND(CHAR(160),SUBSTITUTE($V67,\"{\",CHAR(160),GI$1)),FIND(CHAR(160),SUBSTITUTE($V67,\"}\",CHAR(160),GI$1))-FIND(CHAR(160),SUBSTITUTE($V67,\"{\",CHAR(160),GI$1))+1),\"\")","v":""},{"$f":"IFERROR(MID($V67,FIND(CHAR(160),SUBSTITUTE($V67,\"{\",CHAR(160),GJ$1)),FIND(CHAR(160),SUBSTITUTE($V67,\"}\",CHAR(160),GJ$1))-FIND(CHAR(160),SUBSTITUTE($V67,\"{\",CHAR(160),GJ$1))+1),\"\")","v":""},{"$f":"IFERROR(MID($V67,FIND(CHAR(160),SUBSTITUTE($V67,\"{\",CHAR(160),GK$1)),FIND(CHAR(160),SUBSTITUTE($V67,\"}\",CHAR(160),GK$1))-FIND(CHAR(160),SUBSTITUTE($V67,\"{\",CHAR(160),GK$1))+1),\"\")","v":""},{"$f":"IFERROR(MID($V67,FIND(CHAR(160),SUBSTITUTE($V67,\"{\",CHAR(160),GL$1)),FIND(CHAR(160),SUBSTITUTE($V67,\"}\",CHAR(160),GL$1))-FIND(CHAR(160),SUBSTITUTE($V67,\"{\",CHAR(160),GL$1))+1),\"\")","v":""},{"$f":"IFERROR(MID($V67,FIND(CHAR(160),SUBSTITUTE($V67,\"{\",CHAR(160),GM$1)),FIND(CHAR(160),SUBSTITUTE($V67,\"}\",CHAR(160),GM$1))-FIND(CHAR(160),SUBSTITUTE($V67,\"{\",CHAR(160),GM$1))+1),\"\")","v":""},{"$f":"IFERROR(MID($V67,FIND(CHAR(160),SUBSTITUTE($V67,\"{\",CHAR(160),GN$1)),FIND(CHAR(160),SUBSTITUTE($V67,\"}\",CHAR(160),GN$1))-FIND(CHAR(160),SUBSTITUTE($V67,\"{\",CHAR(160),GN$1))+1),\"\")","v":""},{"$f":"IFERROR(MID($V67,FIND(CHAR(160),SUBSTITUTE($V67,\"{\",CHAR(160),GO$1)),FIND(CHAR(160),SUBSTITUTE($V67,\"}\",CHAR(160),GO$1))-FIND(CHAR(160),SUBSTITUTE($V67,\"{\",CHAR(160),GO$1))+1),\"\")","v":"{Measure:Quantity}"},{"$f":"IFERROR(MID($V67,FIND(CHAR(160),SUBSTITUTE($V67,\"{\",CHAR(160),GP$1)),FIND(CHAR(160),SUBSTITUTE($V67,\"}\",CHAR(160),GP$1))-FIND(CHAR(160),SUBSTITUTE($V67,\"{\",CHAR(160),GP$1))+1),\"\")","v":""},{"$f":"IFERROR(MID($W67,FIND(CHAR(160),SUBSTITUTE($W67,\"{\",CHAR(160),GQ$1)),FIND(CHAR(160),SUBSTITUTE($W67,\"}\",CHAR(160),GQ$1))-FIND(CHAR(160),SUBSTITUTE($W67,\"{\",CHAR(160),GQ$1))+1),\"\")","v":"{Measure:Quantity}"},{"$f":"IFERROR(MID($W67,FIND(CHAR(160),SUBSTITUTE($W67,\"{\",CHAR(160),GR$1)),FIND(CHAR(160),SUBSTITUTE($W67,\"}\",CHAR(160),GR$1))-FIND(CHAR(160),SUBSTITUTE($W67,\"{\",CHAR(160),GR$1))+1),\"\")","v":"{Backup Heating System Fuel}"},{"$f":"IFERROR(MID($W67,FIND(CHAR(160),SUBSTITUTE($W67,\"{\",CHAR(160),GS$1)),FIND(CHAR(160),SUBSTITUTE($W67,\"}\",CHAR(160),GS$1))-FIND(CHAR(160),SUBSTITUTE($W67,\"{\",CHAR(160),GS$1))+1),\"\")","v":"{Backup Heating System Fuel}"},{"$f":"IFERROR(MID($W67,FIND(CHAR(160),SUBSTITUTE($W67,\"{\",CHAR(160),GT$1)),FIND(CHAR(160),SUBSTITUTE($W67,\"}\",CHAR(160),GT$1))-FIND(CHAR(160),SUBSTITUTE($W67,\"{\",CHAR(160),GT$1))+1),\"\")","v":""},{"$f":"IFERROR(MID($W67,FIND(CHAR(160),SUBSTITUTE($W67,\"{\",CHAR(160),GU$1)),FIND(CHAR(160),SUBSTITUTE($W67,\"}\",CHAR(160),GU$1))-FIND(CHAR(160),SUBSTITUTE($W67,\"{\",CHAR(160),GU$1))+1),\"\")","v":""},{"$f":"IFERROR(MID($W67,FIND(CHAR(160),SUBSTITUTE($W67,\"{\",CHAR(160),GV$1)),FIND(CHAR(160),SUBSTITUTE($W67,\"}\",CHAR(160),GV$1))-FIND(CHAR(160),SUBSTITUTE($W67,\"{\",CHAR(160),GV$1))+1),\"\")","v":""},{"$f":"IFERROR(MID($W67,FIND(CHAR(160),SUBSTITUTE($W67,\"{\",CHAR(160),GW$1)),FIND(CHAR(160),SUBSTITUTE($W67,\"}\",CHAR(160),GW$1))-FIND(CHAR(160),SUBSTITUTE($W67,\"{\",CHAR(160),GW$1))+1),\"\")","v":""},{"$f":"IFERROR(MID($W67,FIND(CHAR(160),SUBSTITUTE($W67,\"{\",CHAR(160),GX$1)),FIND(CHAR(160),SUBSTITUTE($W67,\"}\",CHAR(160),GX$1))-FIND(CHAR(160),SUBSTITUTE($W67,\"{\",CHAR(160),GX$1))+1),\"\")","v":""},{"$f":"IFERROR(MID($W67,FIND(CHAR(160),SUBSTITUTE($W67,\"{\",CHAR(160),GY$1)),FIND(CHAR(160),SUBSTITUTE($W67,\"}\",CHAR(160),GY$1))-FIND(CHAR(160),SUBSTITUTE($W67,\"{\",CHAR(160),GY$1))+1),\"\")","v":"{Backup Heating System Fuel}"},{"$f":"IFERROR(MID($W67,FIND(CHAR(160),SUBSTITUTE($W67,\"{\",CHAR(160),GZ$1)),FIND(CHAR(160),SUBSTITUTE($W67,\"}\",CHAR(160),GZ$1))-FIND(CHAR(160),SUBSTITUTE($W67,\"{\",CHAR(160),GZ$1))+1),\"\")","v":"{Backup Heating System Fuel}"},{"$f":"IFERROR(MID($X67,FIND(CHAR(160),SUBSTITUTE($X67,\"{\",CHAR(160),HA$1)),FIND(CHAR(160),SUBSTITUTE($X67,\"}\",CHAR(160),HA$1))-FIND(CHAR(160),SUBSTITUTE($X67,\"{\",CHAR(160),HA$1))+1),\"\")","v":"{Measure:Quantity}"},{"$f":"IFERROR(MID($X67,FIND(CHAR(160),SUBSTITUTE($X67,\"{\",CHAR(160),HB$1)),FIND(CHAR(160),SUBSTITUTE($X67,\"}\",CHAR(160),HB$1))-FIND(CHAR(160),SUBSTITUTE($X67,\"{\",CHAR(160),HB$1))+1),\"\")","v":"{Backup Heating System Fuel}"},{"$f":"IFERROR(MID($X67,FIND(CHAR(160),SUBSTITUTE($X67,\"{\",CHAR(160),HC$1)),FIND(CHAR(160),SUBSTITUTE($X67,\"}\",CHAR(160),HC$1))-FIND(CHAR(160),SUBSTITUTE($X67,\"{\",CHAR(160),HC$1))+1),\"\")","v":"{Backup Heating System Fuel}"},{"$f":"IFERROR(MID($X67,FIND(CHAR(160),SUBSTITUTE($X67,\"{\",CHAR(160),HD$1)),FIND(CHAR(160),SUBSTITUTE($X67,\"}\",CHAR(160),HD$1))-FIND(CHAR(160),SUBSTITUTE($X67,\"{\",CHAR(160),HD$1))+1),\"\")","v":""},{"$f":"IFERROR(MID($X67,FIND(CHAR(160),SUBSTITUTE($X67,\"{\",CHAR(160),HE$1)),FIND(CHAR(160),SUBSTITUTE($X67,\"}\",CHAR(160),HE$1))-FIND(CHAR(160),SUBSTITUTE($X67,\"{\",CHAR(160),HE$1))+1),\"\")","v":""},{"$f":"IFERROR(MID($X67,FIND(CHAR(160),SUBSTITUTE($X67,\"{\",CHAR(160),HF$1)),FIND(CHAR(160),SUBSTITUTE($X67,\"}\",CHAR(160),HF$1))-FIND(CHAR(160),SUBSTITUTE($X67,\"{\",CHAR(160),HF$1))+1),\"\")","v":""},{"$f":"IFERROR(MID($X67,FIND(CHAR(160),SUBSTITUTE($X67,\"{\",CHAR(160),HG$1)),FIND(CHAR(160),SUBSTITUTE($X67,\"}\",CHAR(160),HG$1))-FIND(CHAR(160),SUBSTITUTE($X67,\"{\",CHAR(160),HG$1))+1),\"\")","v":""},{"$f":"IFERROR(MID($X67,FIND(CHAR(160),SUBSTITUTE($X67,\"{\",CHAR(160),HH$1)),FIND(CHAR(160),SUBSTITUTE($X67,\"}\",CHAR(160),HH$1))-FIND(CHAR(160),SUBSTITUTE($X67,\"{\",CHAR(160),HH$1))+1),\"\")","v":""},{"$f":"IFERROR(MID($X67,FIND(CHAR(160),SUBSTITUTE($X67,\"{\",CHAR(160),HI$1)),FIND(CHAR(160),SUBSTITUTE($X67,\"}\",CHAR(160),HI$1))-FIND(CHAR(160),SUBSTITUTE($X67,\"{\",CHAR(160),HI$1))+1),\"\")","v":"{Backup Heating System Fuel}"},{"$f":"IFERROR(MID($X67,FIND(CHAR(160),SUBSTITUTE($X67,\"{\",CHAR(160),HJ$1)),FIND(CHAR(160),SUBSTITUTE($X67,\"}\",CHAR(160),HJ$1))-FIND(CHAR(160),SUBSTITUTE($X67,\"{\",CHAR(160),HJ$1))+1),\"\")","v":"{Backup Heating System Fuel}"},{"$f":"IFERROR(MID($Y67,FIND(CHAR(160),SUBSTITUTE($Y67,\"{\",CHAR(160),HK$1)),FIND(CHAR(160),SUBSTITUTE($Y67,\"}\",CHAR(160),HK$1))-FIND(CHAR(160),SUBSTITUTE($Y67,\"{\",CHAR(160),HK$1))+1),\"\")","v":"{Measure:Quantity}"},{"$f":"IFERROR(MID($Y67,FIND(CHAR(160),SUBSTITUTE($Y67,\"{\",CHAR(160),HL$1)),FIND(CHAR(160),SUBSTITUTE($Y67,\"}\",CHAR(160),HL$1))-FIND(CHAR(160),SUBSTITUTE($Y67,\"{\",CHAR(160),HL$1))+1),\"\")","v":"{Backup Heating System Fuel}"},{"$f":"IFERROR(MID($Y67,FIND(CHAR(160),SUBSTITUTE($Y67,\"{\",CHAR(160),HM$1)),FIND(CHAR(160),SUBSTITUTE($Y67,\"}\",CHAR(160),HM$1))-FIND(CHAR(160),SUBSTITUTE($Y67,\"{\",CHAR(160),HM$1))+1),\"\")","v":"{Backup Heating System Fuel}"},{"$f":"IFERROR(MID($Y67,FIND(CHAR(160),SUBSTITUTE($Y67,\"{\",CHAR(160),HN$1)),FIND(CHAR(160),SUBSTITUTE($Y67,\"}\",CHAR(160),HN$1))-FIND(CHAR(160),SUBSTITUTE($Y67,\"{\",CHAR(160),HN$1))+1),\"\")","v":""},{"$f":"IFERROR(MID($Y67,FIND(CHAR(160),SUBSTITUTE($Y67,\"{\",CHAR(160),HO$1)),FIND(CHAR(160),SUBSTITUTE($Y67,\"}\",CHAR(160),HO$1))-FIND(CHAR(160),SUBSTITUTE($Y67,\"{\",CHAR(160),HO$1))+1),\"\")","v":""},{"$f":"IFERROR(MID($Y67,FIND(CHAR(160),SUBSTITUTE($Y67,\"{\",CHAR(160),HP$1)),FIND(CHAR(160),SUBSTITUTE($Y67,\"}\",CHAR(160),HP$1))-FIND(CHAR(160),SUBSTITUTE($Y67,\"{\",CHAR(160),HP$1))+1),\"\")","v":""},{"$f":"IFERROR(MID($Y67,FIND(CHAR(160),SUBSTITUTE($Y67,\"{\",CHAR(160),HQ$1)),FIND(CHAR(160),SUBSTITUTE($Y67,\"}\",CHAR(160),HQ$1))-FIND(CHAR(160),SUBSTITUTE($Y67,\"{\",CHAR(160),HQ$1))+1),\"\")","v":""},{"$f":"IFERROR(MID($Y67,FIND(CHAR(160),SUBSTITUTE($Y67,\"{\",CHAR(160),HR$1)),FIND(CHAR(160),SUBSTITUTE($Y67,\"}\",CHAR(160),HR$1))-FIND(CHAR(160),SUBSTITUTE($Y67,\"{\",CHAR(160),HR$1))+1),\"\")","v":""},{"$f":"IFERROR(MID($Y67,FIND(CHAR(160),SUBSTITUTE($Y67,\"{\",CHAR(160),HS$1)),FIND(CHAR(160),SUBSTITUTE($Y67,\"}\",CHAR(160),HS$1))-FIND(CHAR(160),SUBSTITUTE($Y67,\"{\",CHAR(160),HS$1))+1),\"\")","v":"{Backup Heating System Fuel}"},{"$f":"IFERROR(MID($Y67,FIND(CHAR(160),SUBSTITUTE($Y67,\"{\",CHAR(160),HT$1)),FIND(CHAR(160),SUBSTITUTE($Y67,\"}\",CHAR(160),HT$1))-FIND(CHAR(160),SUBSTITUTE($Y67,\"{\",CHAR(160),HT$1))+1),\"\")","v":"{Backup Heating System Fuel}"},{"$f":"IFERROR(MID($Z67,FIND(CHAR(160),SUBSTITUTE($Z67,\"{\",CHAR(160),HU$1)),FIND(CHAR(160),SUBSTITUTE($Z67,\"}\",CHAR(160),HU$1))-FIND(CHAR(160),SUBSTITUTE($Z67,\"{\",CHAR(160),HU$1))+1),\"\")","v":"{Measure:Quantity}"},{"$f":"IFERROR(MID($Z67,FIND(CHAR(160),SUBSTITUTE($Z67,\"{\",CHAR(160),HV$1)),FIND(CHAR(160),SUBSTITUTE($Z67,\"}\",CHAR(160),HV$1))-FIND(CHAR(160),SUBSTITUTE($Z67,\"{\",CHAR(160),HV$1))+1),\"\")","v":"{Backup Heating System Fuel}"},{"$f":"IFERROR(MID($Z67,FIND(CHAR(160),SUBSTITUTE($Z67,\"{\",CHAR(160),HW$1)),FIND(CHAR(160),SUBSTITUTE($Z67,\"}\",CHAR(160),HW$1))-FIND(CHAR(160),SUBSTITUTE($Z67,\"{\",CHAR(160),HW$1))+1),\"\")","v":"{Backup Heating System Fuel}"},{"$f":"IFERROR(MID($Z67,FIND(CHAR(160),SUBSTITUTE($Z67,\"{\",CHAR(160),HX$1)),FIND(CHAR(160),SUBSTITUTE($Z67,\"}\",CHAR(160),HX$1))-FIND(CHAR(160),SUBSTITUTE($Z67,\"{\",CHAR(160),HX$1))+1),\"\")","v":""},{"$f":"IFERROR(MID($Z67,FIND(CHAR(160),SUBSTITUTE($Z67,\"{\",CHAR(160),HY$1)),FIND(CHAR(160),SUBSTITUTE($Z67,\"}\",CHAR(160),HY$1))-FIND(CHAR(160),SUBSTITUTE($Z67,\"{\",CHAR(160),HY$1))+1),\"\")","v":""},{"$f":"IFERROR(MID($Z67,FIND(CHAR(160),SUBSTITUTE($Z67,\"{\",CHAR(160),HZ$1)),FIND(CHAR(160),SUBSTITUTE($Z67,\"}\",CHAR(160),HZ$1))-FIND(CHAR(160),SUBSTITUTE($Z67,\"{\",CHAR(160),HZ$1))+1),\"\")","v":""},{"$f":"IFERROR(MID($Z67,FIND(CHAR(160),SUBSTITUTE($Z67,\"{\",CHAR(160),IA$1)),FIND(CHAR(160),SUBSTITUTE($Z67,\"}\",CHAR(160),IA$1))-FIND(CHAR(160),SUBSTITUTE($Z67,\"{\",CHAR(160),IA$1))+1),\"\")","v":""},{"$f":"IFERROR(MID($Z67,FIND(CHAR(160),SUBSTITUTE($Z67,\"{\",CHAR(160),IB$1)),FIND(CHAR(160),SUBSTITUTE($Z67,\"}\",CHAR(160),IB$1))-FIND(CHAR(160),SUBSTITUTE($Z67,\"{\",CHAR(160),IB$1))+1),\"\")","v":""},{"$f":"IFERROR(MID($Z67,FIND(CHAR(160),SUBSTITUTE($Z67,\"{\",CHAR(160),IC$1)),FIND(CHAR(160),SUBSTITUTE($Z67,\"}\",CHAR(160),IC$1))-FIND(CHAR(160),SUBSTITUTE($Z67,\"{\",CHAR(160),IC$1))+1),\"\")","v":"{Backup Heating System Fuel}"},{"$f":"IFERROR(MID($Z67,FIND(CHAR(160),SUBSTITUTE($Z67,\"{\",CHAR(160),ID$1)),FIND(CHAR(160),SUBSTITUTE($Z67,\"}\",CHAR(160),ID$1))-FIND(CHAR(160),SUBSTITUTE($Z67,\"{\",CHAR(160),ID$1))+1),\"\")","v":"{Backup Heating System Fuel}"},{"$f":"IFERROR(MID($AA67,FIND(CHAR(160),SUBSTITUTE($AA67,\"{\",CHAR(160),IE$1)),FIND(CHAR(160),SUBSTITUTE($AA67,\"}\",CHAR(160),IE$1))-FIND(CHAR(160),SUBSTITUTE($AA67,\"{\",CHAR(160),IE$1))+1),\"\")","v":"{Measure:Quantity}"},{"$f":"IFERROR(MID($AA67,FIND(CHAR(160),SUBSTITUTE($AA67,\"{\",CHAR(160),IF$1)),FIND(CHAR(160),SUBSTITUTE($AA67,\"}\",CHAR(160),IF$1))-FIND(CHAR(160),SUBSTITUTE($AA67,\"{\",CHAR(160),IF$1))+1),\"\")","v":"{Backup Heating System Fuel}"},{"$f":"IFERROR(MID($AA67,FIND(CHAR(160),SUBSTITUTE($AA67,\"{\",CHAR(160),IG$1)),FIND(CHAR(160),SUBSTITUTE($AA67,\"}\",CHAR(160),IG$1))-FIND(CHAR(160),SUBSTITUTE($AA67,\"{\",CHAR(160),IG$1))+1),\"\")","v":"{Backup Heating System Fuel}"},{"$f":"IFERROR(MID($AA67,FIND(CHAR(160),SUBSTITUTE($AA67,\"{\",CHAR(160),IH$1)),FIND(CHAR(160),SUBSTITUTE($AA67,\"}\",CHAR(160),IH$1))-FIND(CHAR(160),SUBSTITUTE($AA67,\"{\",CHAR(160),IH$1))+1),\"\")","v":""},{"$f":"IFERROR(MID($AA67,FIND(CHAR(160),SUBSTITUTE($AA67,\"{\",CHAR(160),II$1)),FIND(CHAR(160),SUBSTITUTE($AA67,\"}\",CHAR(160),II$1))-FIND(CHAR(160),SUBSTITUTE($AA67,\"{\",CHAR(160),II$1))+1),\"\")","v":""},{"$f":"IFERROR(MID($AA67,FIND(CHAR(160),SUBSTITUTE($AA67,\"{\",CHAR(160),IJ$1)),FIND(CHAR(160),SUBSTITUTE($AA67,\"}\",CHAR(160),IJ$1))-FIND(CHAR(160),SUBSTITUTE($AA67,\"{\",CHAR(160),IJ$1))+1),\"\")","v":""},{"$f":"IFERROR(MID($AA67,FIND(CHAR(160),SUBSTITUTE($AA67,\"{\",CHAR(160),IK$1)),FIND(CHAR(160),SUBSTITUTE($AA67,\"}\",CHAR(160),IK$1))-FIND(CHAR(160),SUBSTITUTE($AA67,\"{\",CHAR(160),IK$1))+1),\"\")","v":""},{"$f":"IFERROR(MID($AA67,FIND(CHAR(160),SUBSTITUTE($AA67,\"{\",CHAR(160),IL$1)),FIND(CHAR(160),SUBSTITUTE($AA67,\"}\",CHAR(160),IL$1))-FIND(CHAR(160),SUBSTITUTE($AA67,\"{\",CHAR(160),IL$1))+1),\"\")","v":""},{"$f":"IFERROR(MID($AA67,FIND(CHAR(160),SUBSTITUTE($AA67,\"{\",CHAR(160),IM$1)),FIND(CHAR(160),SUBSTITUTE($AA67,\"}\",CHAR(160),IM$1))-FIND(CHAR(160),SUBSTITUTE($AA67,\"{\",CHAR(160),IM$1))+1),\"\")","v":"{Backup Heating System Fuel}"},{"$f":"IFERROR(MID($AA67,FIND(CHAR(160),SUBSTITUTE($AA67,\"{\",CHAR(160),IN$1)),FIND(CHAR(160),SUBSTITUTE($AA67,\"}\",CHAR(160),IN$1))-FIND(CHAR(160),SUBSTITUTE($AA67,\"{\",CHAR(160),IN$1))+1),\"\")","v":"{Backup Heating System Fuel}"},{"$f":"IFERROR(MID($AB67,FIND(CHAR(160),SUBSTITUTE($AB67,\"{\",CHAR(160),IO$1)),FIND(CHAR(160),SUBSTITUTE($AB67,\"}\",CHAR(160),IO$1))-FIND(CHAR(160),SUBSTITUTE($AB67,\"{\",CHAR(160),IO$1))+1),\"\")","v":""},{"$f":"IFERROR(MID($AB67,FIND(CHAR(160),SUBSTITUTE($AB67,\"{\",CHAR(160),IP$1)),FIND(CHAR(160),SUBSTITUTE($AB67,\"}\",CHAR(160),IP$1))-FIND(CHAR(160),SUBSTITUTE($AB67,\"{\",CHAR(160),IP$1))+1),\"\")","v":""},{"$f":"IFERROR(MID($AB67,FIND(CHAR(160),SUBSTITUTE($AB67,\"{\",CHAR(160),IQ$1)),FIND(CHAR(160),SUBSTITUTE($AB67,\"}\",CHAR(160),IQ$1))-FIND(CHAR(160),SUBSTITUTE($AB67,\"{\",CHAR(160),IQ$1))+1),\"\")","v":""},{"$f":"IFERROR(MID($AB67,FIND(CHAR(160),SUBSTITUTE($AB67,\"{\",CHAR(160),IR$1)),FIND(CHAR(160),SUBSTITUTE($AB67,\"}\",CHAR(160),IR$1))-FIND(CHAR(160),SUBSTITUTE($AB67,\"{\",CHAR(160),IR$1))+1),\"\")","v":""},{"$f":"IFERROR(MID($AB67,FIND(CHAR(160),SUBSTITUTE($AB67,\"{\",CHAR(160),IS$1)),FIND(CHAR(160),SUBSTITUTE($AB67,\"}\",CHAR(160),IS$1))-FIND(CHAR(160),SUBSTITUTE($AB67,\"{\",CHAR(160),IS$1))+1),\"\")","v":""},{"$f":"IFERROR(MID($AB67,FIND(CHAR(160),SUBSTITUTE($AB67,\"{\",CHAR(160),IT$1)),FIND(CHAR(160),SUBSTITUTE($AB67,\"}\",CHAR(160),IT$1))-FIND(CHAR(160),SUBSTITUTE($AB67,\"{\",CHAR(160),IT$1))+1),\"\")","v":""},{"$f":"IFERROR(MID($AB67,FIND(CHAR(160),SUBSTITUTE($AB67,\"{\",CHAR(160),IU$1)),FIND(CHAR(160),SUBSTITUTE($AB67,\"}\",CHAR(160),IU$1))-FIND(CHAR(160),SUBSTITUTE($AB67,\"{\",CHAR(160),IU$1))+1),\"\")","v":""},{"$f":"IFERROR(MID($AB67,FIND(CHAR(160),SUBSTITUTE($AB67,\"{\",CHAR(160),IV$1)),FIND(CHAR(160),SUBSTITUTE($AB67,\"}\",CHAR(160),IV$1))-FIND(CHAR(160),SUBSTITUTE($AB67,\"{\",CHAR(160),IV$1))+1),\"\")","v":""},{"$f":"IFERROR(MID($AB67,FIND(CHAR(160),SUBSTITUTE($AB67,\"{\",CHAR(160),IW$1)),FIND(CHAR(160),SUBSTITUTE($AB67,\"}\",CHAR(160),IW$1))-FIND(CHAR(160),SUBSTITUTE($AB67,\"{\",CHAR(160),IW$1))+1),\"\")","v":""},{"$f":"IFERROR(MID($AB67,FIND(CHAR(160),SUBSTITUTE($AB67,\"{\",CHAR(160),IX$1)),FIND(CHAR(160),SUBSTITUTE($AB67,\"}\",CHAR(160),IX$1))-FIND(CHAR(160),SUBSTITUTE($AB67,\"{\",CHAR(160),IX$1))+1),\"\")","v":""},null,{"$f":"10-COUNTIF(DU67:ED67,\"\")","v":2}]
["C&I HVAC - High Performance Heat Pumps","DHP Lost Opportunity 3 Zones","DHP3L","2021-07-01","2022-06-30","Per Measure",682,0,"Per Measure",1000,0,"2021-07-01","2022-06-30","Calculated","if({Backup Heating System Fuel}=6,717,if({Backup Heating System Fuel}=0,275,165))+(3*{Measure:Quantity}-1)*if({Backup Heating System Fuel}=6,406,if({Backup Heating System Fuel}=0,194.8,142))",null,null,null,null,null,"if({Backup Heating System Fuel}=6,0.04,if({Backup Heating System Fuel}=0,0.027,0.024))+(3*{Measure:Quantity}-1)*if({Backup Heating System Fuel}=6,0.024,if({Backup Heating System Fuel}=0,0.017,0.015))","0.116+(3*{Measure:Quantity}-1)*0.064","10*(if({Backup Heating System Fuel}=1,1,if({Backup Heating System Fuel}=0,0.23,0))*2.3+(3*{Measure:Quantity}-1)*if({Backup Heating System Fuel}=1,1,if({Backup Heating System Fuel}=0,0.23,0))*1.12)","if({Backup Heating System Fuel}=2,1,if({Backup Heating System Fuel}=0,0.09,0))*2.3+(3*{Measure:Quantity}-1)*if({Backup Heating System Fuel}=2,1,if({Backup Heating System Fuel}=0,0.09,0))*1.12","if({Backup Heating System Fuel}=3,1,if({Backup Heating System Fuel}=0,0.48,0))*2.3+(3*{Measure:Quantity}-1)*if({Backup Heating System Fuel}=3,1,if({Backup Heating System Fuel}=0,0.48,0))*1.12","if({Backup Heating System Fuel}=4,1,if({Backup Heating System Fuel}=0,0,0))*2.3+(3*{Measure:Quantity}-1)*if({Backup Heating System Fuel}=4,1,if({Backup Heating System Fuel}=0,0,0))*1.12","if({Backup Heating System Fuel}=5,1,if({Backup Heating System Fuel}=0,0,0))*2.3+(3*{Measure:Quantity}-1)*if({Backup Heating System Fuel}=5,1,if({Backup Heating System Fuel}=0,0,0))*1.12",null,"2021-07-01","2022-06-30",18,1,1,0.38100000000000001,0.52500000000000002,5.0999999999999997E-2,4.2000000000000003E-2,1,1,1,0.33,1.6E-2,null,{"$f":"DU68","v":"{Measure:Quantity}"},1,{"$f":"DV68","v":"{Backup Heating System Fuel}"},0,{"$f":"DW68","v":""},null,{"$f":"DX68","v":""},null,{"$f":"DY68","v":""},null,{"$f":"DZ68","v":""},null,{"$f":"EA68","v":""},null,{"$f":"EB68","v":""},null,{"$f":"EC68","v":""},null,{"$f":"ED68","v":""},null,{"$f":"IF(AU68=6,717,IF(AU68=0,275,165))+(3*AS68-1)*IF(AU68=6,406,IF(AU68=0,194.8,142))","v":664.6},0,0,0,0,0,{"$f":"IF(AU68=6,0.04,IF(AU68=0,0.027,0.024))+(3*AS68-1)*IF(AU68=6,0.024,IF(AU68=0,0.017,0.015))","v":6.0999999999999999E-2},{"$f":"0.116+(3*AS68-1)*0.064","v":0.24399999999999999},{"$f":"10*(IF(AU68=1,1,IF(AU68=0,0.23,0))*2.3+(3*AS68-1)*IF(AU68=1,1,IF(AU68=0,0.23,0))*1.12)","v":10.442},{"$f":"IF(AU68=2,1,IF(AU68=0,0.09,0))*2.3+(3*AS68-1)*IF(AU68=2,1,IF(AU68=0,0.09,0))*1.12","v":0.40859999999999996},{"$f":"IF(AU68=3,1,IF(AU68=0,0.48,0))*2.3+(3*AS68-1)*IF(AU68=3,1,IF(AU68=0,0.48,0))*1.12","v":2.1791999999999998},{"$f":"IF(AU68=4,1,IF(AU68=0,0,0))*2.3+(3*AS68-1)*IF(AU68=4,1,IF(AU68=0,0,0))*1.12","v":0},{"$f":"IF(AU68=5,1,IF(AU68=0,0,0))*2.3+(3*AS68-1)*IF(AU68=5,1,IF(AU68=0,0,0))*1.12","v":0},0,null,"Res","Default DR",{"$f":"Benefits(BL68,BR68,BS68,BT68,BU68,BV68,BW68,BX68,BY68,BZ68,AE68,AH68,AI68,AJ68,AK68,AL68,AM68,AN68,AO68,AP68,CA68,CB68)","v":1045.0419271457056},796.43214892366791,231.90200800193526,1052.8214182638012,0,276.87767974619902,0,0,0,{"$f":"SUMPRODUCT(CC68:CK68,--(CC68:CK68>0))","v":3403.0751820813093},{"$f":"-SUMPRODUCT(CC68:CK68,--(CC68:CK68<0))","v":0},null,{"$f":"682","v":682},null,null,{"$f":"CM68+CO68","v":682},{"$f":"IF(NetOrGross=\"Net\",(1-AO68+AP68),1)","v":1},{"$f":"(SUMPRODUCT(CC68:CJ68,--(CC68:CJ68>0))+CN68)*CS68/((-SUMPRODUCT(CC68:CJ68,--(CC68:CJ68<0))+MAX(CO68,CV68)+CP68+CQ68)*CS68+IF(FRIncentives=\"Yes\",CV68*(1-CS68),0))","v":3.4030751820813094},1,{"$f":"1000","v":1000},null,"Electric","y",1,{"$f":"IF(F68=\"Manual Entry\",\"Manual\",IF(G68=\"\",0,\"X=\"&SUBSTITUTE(SUBSTITUTE(SUBSTITUTE(SUBSTITUTE(SUBSTITUTE(SUBSTITUTE(SUBSTITUTE(SUBSTITUTE(SUBSTITUTE(SUBSTITUTE(SUBSTITUTE(SUBSTITUTE(G68,$ED68,$ED$2&ROW($ED68)),$EC68,$EC$2&ROW($EC68)),$EB68,$EB$2&ROW($EB68)),$EA68,$EA$2&ROW($EA68)),$DZ68,$DZ$2&ROW($DZ68)),$DY68,$DY$2&ROW($DY68)),$DX68,$DX$2&ROW($DX68)),$DW68,$DW$2&ROW($DW68)),$DV68,$DV$2&ROW($DV68)),$DU68,$DU$2&ROW($DU68)),$DT68,$DT$2&ROW($DT68)),$DS68,$DS$2&ROW($DS68))))","v":"X=682"},{"$f":"IF(I68=\"Manual Entry\",\"Manual\",IF(J68=\"\",0,\"X=\"&SUBSTITUTE(SUBSTITUTE(SUBSTITUTE(SUBSTITUTE(SUBSTITUTE(SUBSTITUTE(SUBSTITUTE(SUBSTITUTE(SUBSTITUTE(SUBSTITUTE(SUBSTITUTE(SUBSTITUTE(J68,$ED68,$ED$2&ROW($ED68)),$EC68,$EC$2&ROW($EC68)),$EB68,$EB$2&ROW($EB68)),$EA68,$EA$2&ROW($EA68)),$DZ68,$DZ$2&ROW($DZ68)),$DY68,$DY$2&ROW($DY68)),$DX68,$DX$2&ROW($DX68)),$DW68,$DW$2&ROW($DW68)),$DV68,$DV$2&ROW($DV68)),$DU68,$DU$2&ROW($DU68)),$DT68,$DT$2&ROW($DT68)),$DS68,$DS$2&ROW($DS68))))","v":"X=1000"},{"$f":"IF(O68=\"\",0,\"X=\"&SUBSTITUTE(SUBSTITUTE(SUBSTITUTE(SUBSTITUTE(SUBSTITUTE(SUBSTITUTE(SUBSTITUTE(SUBSTITUTE(SUBSTITUTE(SUBSTITUTE(SUBSTITUTE(SUBSTITUTE(O68,$ED68,$ED$2&ROW($ED68)),$EC68,$EC$2&ROW($EC68)),$EB68,$EB$2&ROW($EB68)),$EA68,$EA$2&ROW($EA68)),$DZ68,$DZ$2&ROW($DZ68)),$DY68,$DY$2&ROW($DY68)),$DX68,$DX$2&ROW($DX68)),$DW68,$DW$2&ROW($DW68)),$DV68,$DV$2&ROW($DV68)),$DU68,$DU$2&ROW($DU68)),$DT68,$DT$2&ROW($DT68)),$DS68,$DS$2&ROW($DS68)))","v":"X=if(AU68=6,717,if(AU68=0,275,165))+(3*AS68-1)*if(AU68=6,406,if(AU68=0,194.8,142))"},{"$f":"IF(P68=\"\",0,\"X=\"&SUBSTITUTE(SUBSTITUTE(SUBSTITUTE(SUBSTITUTE(SUBSTITUTE(SUBSTITUTE(SUBSTITUTE(SUBSTITUTE(SUBSTITUTE(SUBSTITUTE(SUBSTITUTE(SUBSTITUTE(P68,$ED68,$ED$2&ROW($ED68)),$EC68,$EC$2&ROW($EC68)),$EB68,$EB$2&ROW($EB68)),$EA68,$EA$2&ROW($EA68)),$DZ68,$DZ$2&ROW($DZ68)),$DY68,$DY$2&ROW($DY68)),$DX68,$DX$2&ROW($DX68)),$DW68,$DW$2&ROW($DW68)),$DV68,$DV$2&ROW($DV68)),$DU68,$DU$2&ROW($DU68)),$DT68,$DT$2&ROW($DT68)),$DS68,$DS$2&ROW($DS68)))","v":0},{"$f":"IF(Q68=\"\",0,\"X=\"&SUBSTITUTE(SUBSTITUTE(SUBSTITUTE(SUBSTITUTE(SUBSTITUTE(SUBSTITUTE(SUBSTITUTE(SUBSTITUTE(SUBSTITUTE(SUBSTITUTE(SUBSTITUTE(SUBSTITUTE(Q68,$ED68,$ED$2&ROW($ED68)),$EC68,$EC$2&ROW($EC68)),$EB68,$EB$2&ROW($EB68)),$EA68,$EA$2&ROW($EA68)),$DZ68,$DZ$2&ROW($DZ68)),$DY68,$DY$2&ROW($DY68)),$DX68,$DX$2&ROW($DX68)),$DW68,$DW$2&ROW($DW68)),$DV68,$DV$2&ROW($DV68)),$DU68,$DU$2&ROW($DU68)),$DT68,$DT$2&ROW($DT68)),$DS68,$DS$2&ROW($DS68)))","v":0},{"$f":"IF(R68=\"\",0,\"X=\"&SUBSTITUTE(SUBSTITUTE(SUBSTITUTE(SUBSTITUTE(SUBSTITUTE(SUBSTITUTE(SUBSTITUTE(SUBSTITUTE(SUBSTITUTE(SUBSTITUTE(SUBSTITUTE(SUBSTITUTE(R68,$ED68,$ED$2&ROW($ED68)),$EC68,$EC$2&ROW($EC68)),$EB68,$EB$2&ROW($EB68)),$EA68,$EA$2&ROW($EA68)),$DZ68,$DZ$2&ROW($DZ68)),$DY68,$DY$2&ROW($DY68)),$DX68,$DX$2&ROW($DX68)),$DW68,$DW$2&ROW($DW68)),$DV68,$DV$2&ROW($DV68)),$DU68,$DU$2&ROW($DU68)),$DT68,$DT$2&ROW($DT68)),$DS68,$DS$2&ROW($DS68)))","v":0},{"$f":"IF(S68=\"\",0,\"X=\"&SUBSTITUTE(SUBSTITUTE(SUBSTITUTE(SUBSTITUTE(SUBSTITUTE(SUBSTITUTE(SUBSTITUTE(SUBSTITUTE(SUBSTITUTE(SUBSTITUTE(SUBSTITUTE(SUBSTITUTE(S68,$ED68,$ED$2&ROW($ED68)),$EC68,$EC$2&ROW($EC68)),$EB68,$EB$2&ROW($EB68)),$EA68,$EA$2&ROW($EA68)),$DZ68,$DZ$2&ROW($DZ68)),$DY68,$DY$2&ROW($DY68)),$DX68,$DX$2&ROW($DX68)),$DW68,$DW$2&ROW($DW68)),$DV68,$DV$2&ROW($DV68)),$DU68,$DU$2&ROW($DU68)),$DT68,$DT$2&ROW($DT68)),$DS68,$DS$2&ROW($DS68)))","v":0},{"$f":"IF(T68=\"\",0,\"X=\"&SUBSTITUTE(SUBSTITUTE(SUBSTITUTE(SUBSTITUTE(SUBSTITUTE(SUBSTITUTE(SUBSTITUTE(SUBSTITUTE(SUBSTITUTE(SUBSTITUTE(SUBSTITUTE(SUBSTITUTE(T68,$ED68,$ED$2&ROW($ED68)),$EC68,$EC$2&ROW($EC68)),$EB68,$EB$2&ROW($EB68)),$EA68,$EA$2&ROW($EA68)),$DZ68,$DZ$2&ROW($DZ68)),$DY68,$DY$2&ROW($DY68)),$DX68,$DX$2&ROW($DX68)),$DW68,$DW$2&ROW($DW68)),$DV68,$DV$2&ROW($DV68)),$DU68,$DU$2&ROW($DU68)),$DT68,$DT$2&ROW($DT68)),$DS68,$DS$2&ROW($DS68)))","v":0},{"$f":"IF(U68=\"\",0,\"X=\"&SUBSTITUTE(SUBSTITUTE(SUBSTITUTE(SUBSTITUTE(SUBSTITUTE(SUBSTITUTE(SUBSTITUTE(SUBSTITUTE(SUBSTITUTE(SUBSTITUTE(SUBSTITUTE(SUBSTITUTE(U68,$ED68,$ED$2&ROW($ED68)),$EC68,$EC$2&ROW($EC68)),$EB68,$EB$2&ROW($EB68)),$EA68,$EA$2&ROW($EA68)),$DZ68,$DZ$2&ROW($DZ68)),$DY68,$DY$2&ROW($DY68)),$DX68,$DX$2&ROW($DX68)),$DW68,$DW$2&ROW($DW68)),$DV68,$DV$2&ROW($DV68)),$DU68,$DU$2&ROW($DU68)),$DT68,$DT$2&ROW($DT68)),$DS68,$DS$2&ROW($DS68)))","v":"X=if(AU68=6,0.04,if(AU68=0,0.027,0.024))+(3*AS68-1)*if(AU68=6,0.024,if(AU68=0,0.017,0.015))"},{"$f":"IF(V68=\"\",0,\"X=\"&SUBSTITUTE(SUBSTITUTE(SUBSTITUTE(SUBSTITUTE(SUBSTITUTE(SUBSTITUTE(SUBSTITUTE(SUBSTITUTE(SUBSTITUTE(SUBSTITUTE(SUBSTITUTE(SUBSTITUTE(V68,$ED68,$ED$2&ROW($ED68)),$EC68,$EC$2&ROW($EC68)),$EB68,$EB$2&ROW($EB68)),$EA68,$EA$2&ROW($EA68)),$DZ68,$DZ$2&ROW($DZ68)),$DY68,$DY$2&ROW($DY68)),$DX68,$DX$2&ROW($DX68)),$DW68,$DW$2&ROW($DW68)),$DV68,$DV$2&ROW($DV68)),$DU68,$DU$2&ROW($DU68)),$DT68,$DT$2&ROW($DT68)),$DS68,$DS$2&ROW($DS68)))","v":"X=0.116+(3*AS68-1)*0.064"},{"$f":"IF(W68=\"\",0,\"X=\"&SUBSTITUTE(SUBSTITUTE(SUBSTITUTE(SUBSTITUTE(SUBSTITUTE(SUBSTITUTE(SUBSTITUTE(SUBSTITUTE(SUBSTITUTE(SUBSTITUTE(SUBSTITUTE(SUBSTITUTE(W68,$ED68,$ED$2&ROW($ED68)),$EC68,$EC$2&ROW($EC68)),$EB68,$EB$2&ROW($EB68)),$EA68,$EA$2&ROW($EA68)),$DZ68,$DZ$2&ROW($DZ68)),$DY68,$DY$2&ROW($DY68)),$DX68,$DX$2&ROW($DX68)),$DW68,$DW$2&ROW($DW68)),$DV68,$DV$2&ROW($DV68)),$DU68,$DU$2&ROW($DU68)),$DT68,$DT$2&ROW($DT68)),$DS68,$DS$2&ROW($DS68)))","v":"X=10*(if(AU68=1,1,if(AU68=0,0.23,0))*2.3+(3*AS68-1)*if(AU68=1,1,if(AU68=0,0.23,0))*1.12)"},{"$f":"IF(X68=\"\",0,\"X=\"&SUBSTITUTE(SUBSTITUTE(SUBSTITUTE(SUBSTITUTE(SUBSTITUTE(SUBSTITUTE(SUBSTITUTE(SUBSTITUTE(SUBSTITUTE(SUBSTITUTE(SUBSTITUTE(SUBSTITUTE(X68,$ED68,$ED$2&ROW($ED68)),$EC68,$EC$2&ROW($EC68)),$EB68,$EB$2&ROW($EB68)),$EA68,$EA$2&ROW($EA68)),$DZ68,$DZ$2&ROW($DZ68)),$DY68,$DY$2&ROW($DY68)),$DX68,$DX$2&ROW($DX68)),$DW68,$DW$2&ROW($DW68)),$DV68,$DV$2&ROW($DV68)),$DU68,$DU$2&ROW($DU68)),$DT68,$DT$2&ROW($DT68)),$DS68,$DS$2&ROW($DS68)))","v":"X=if(AU68=2,1,if(AU68=0,0.09,0))*2.3+(3*AS68-1)*if(AU68=2,1,if(AU68=0,0.09,0))*1.12"},{"$f":"IF(Y68=\"\",0,\"X=\"&SUBSTITUTE(SUBSTITUTE(SUBSTITUTE(SUBSTITUTE(SUBSTITUTE(SUBSTITUTE(SUBSTITUTE(SUBSTITUTE(SUBSTITUTE(SUBSTITUTE(SUBSTITUTE(SUBSTITUTE(Y68,$ED68,$ED$2&ROW($ED68)),$EC68,$EC$2&ROW($EC68)),$EB68,$EB$2&ROW($EB68)),$EA68,$EA$2&ROW($EA68)),$DZ68,$DZ$2&ROW($DZ68)),$DY68,$DY$2&ROW($DY68)),$DX68,$DX$2&ROW($DX68)),$DW68,$DW$2&ROW($DW68)),$DV68,$DV$2&ROW($DV68)),$DU68,$DU$2&ROW($DU68)),$DT68,$DT$2&ROW($DT68)),$DS68,$DS$2&ROW($DS68)))","v":"X=if(AU68=3,1,if(AU68=0,0.48,0))*2.3+(3*AS68-1)*if(AU68=3,1,if(AU68=0,0.48,0))*1.12"},{"$f":"IF(Z68=\"\",0,\"X=\"&SUBSTITUTE(SUBSTITUTE(SUBSTITUTE(SUBSTITUTE(SUBSTITUTE(SUBSTITUTE(SUBSTITUTE(SUBSTITUTE(SUBSTITUTE(SUBSTITUTE(SUBSTITUTE(SUBSTITUTE(Z68,$ED68,$ED$2&ROW($ED68)),$EC68,$EC$2&ROW($EC68)),$EB68,$EB$2&ROW($EB68)),$EA68,$EA$2&ROW($EA68)),$DZ68,$DZ$2&ROW($DZ68)),$DY68,$DY$2&ROW($DY68)),$DX68,$DX$2&ROW($DX68)),$DW68,$DW$2&ROW($DW68)),$DV68,$DV$2&ROW($DV68)),$DU68,$DU$2&ROW($DU68)),$DT68,$DT$2&ROW($DT68)),$DS68,$DS$2&ROW($DS68)))","v":"X=if(AU68=4,1,if(AU68=0,0,0))*2.3+(3*AS68-1)*if(AU68=4,1,if(AU68=0,0,0))*1.12"},{"$f":"IF(AA68=\"\",0,\"X=\"&SUBSTITUTE(SUBSTITUTE(SUBSTITUTE(SUBSTITUTE(SUBSTITUTE(SUBSTITUTE(SUBSTITUTE(SUBSTITUTE(SUBSTITUTE(SUBSTITUTE(SUBSTITUTE(SUBSTITUTE(AA68,$ED68,$ED$2&ROW($ED68)),$EC68,$EC$2&ROW($EC68)),$EB68,$EB$2&ROW($EB68)),$EA68,$EA$2&ROW($EA68)),$DZ68,$DZ$2&ROW($DZ68)),$DY68,$DY$2&ROW($DY68)),$DX68,$DX$2&ROW($DX68)),$DW68,$DW$2&ROW($DW68)),$DV68,$DV$2&ROW($DV68)),$DU68,$DU$2&ROW($DU68)),$DT68,$DT$2&ROW($DT68)),$DS68,$DS$2&ROW($DS68)))","v":"X=if(AU68=5,1,if(AU68=0,0,0))*2.3+(3*AS68-1)*if(AU68=5,1,if(AU68=0,0,0))*1.12"},{"$f":"IF(AB68=\"\",0,\"X=\"&SUBSTITUTE(SUBSTITUTE(SUBSTITUTE(SUBSTITUTE(SUBSTITUTE(SUBSTITUTE(SUBSTITUTE(SUBSTITUTE(SUBSTITUTE(SUBSTITUTE(SUBSTITUTE(SUBSTITUTE(AB68,$ED68,$ED$2&ROW($ED68)),$EC68,$EC$2&ROW($EC68)),$EB68,$EB$2&ROW($EB68)),$EA68,$EA$2&ROW($EA68)),$DZ68,$DZ$2&ROW($DZ68)),$DY68,$DY$2&ROW($DY68)),$DX68,$DX$2&ROW($DX68)),$DW68,$DW$2&ROW($DW68)),$DV68,$DV$2&ROW($DV68)),$DU68,$DU$2&ROW($DU68)),$DT68,$DT$2&ROW($DT68)),$DS68,$DS$2&ROW($DS68)))","v":0},null,null,"{Factor:WinterCF}","{Factor:SummerCF}",{"$f":"IFERROR(INDEX($EG68:$IV68,MATCH(0,COUNTIF($DR68:DT68,$EG68:$IV68),0)),\"\")","v":"{Measure:Quantity}"},{"$f":"IFERROR(INDEX($EG68:$IV68,MATCH(0,COUNTIF($DR68:DU68,$EG68:$IV68),0)),\"\")","v":"{Backup Heating System Fuel}"},{"$f":"IFERROR(INDEX($EG68:$IV68,MATCH(0,COUNTIF($DR68:DV68,$EG68:$IV68),0)),\"\")","v":""},{"$f":"IFERROR(INDEX($EG68:$IV68,MATCH(0,COUNTIF($DR68:DW68,$EG68:$IV68),0)),\"\")","v":""},{"$f":"IFERROR(INDEX($EG68:$IV68,MATCH(0,COUNTIF($DR68:DX68,$EG68:$IV68),0)),\"\")","v":""},{"$f":"IFERROR(INDEX($EG68:$IV68,MATCH(0,COUNTIF($DR68:DY68,$EG68:$IV68),0)),\"\")","v":""},{"$f":"IFERROR(INDEX($EG68:$IV68,MATCH(0,COUNTIF($DR68:DZ68,$EG68:$IV68),0)),\"\")","v":""},{"$f":"IFERROR(INDEX($EG68:$IV68,MATCH(0,COUNTIF($DR68:EA68,$EG68:$IV68),0)),\"\")","v":""},{"$f":"IFERROR(INDEX($EG68:$IV68,MATCH(0,COUNTIF($DR68:EB68,$EG68:$IV68),0)),\"\")","v":""},{"$f":"IFERROR(INDEX($EG68:$IV68,MATCH(0,COUNTIF($DR68:EC68,$EG68:$IV68),0)),\"\")","v":""},null,null,{"$f":"IFERROR(MID($G68,FIND(CHAR(160),SUBSTITUTE($G68,\"{\",CHAR(160),EG$1)),FIND(CHAR(160),SUBSTITUTE($G68,\"}\",CHAR(160),EG$1))-FIND(CHAR(160),SUBSTITUTE($G68,\"{\",CHAR(160),EG$1))+1),\"\")","v":""},{"$f":"IFERROR(MID($G68,FIND(CHAR(160),SUBSTITUTE($G68,\"{\",CHAR(160),EH$1)),FIND(CHAR(160),SUBSTITUTE($G68,\"}\",CHAR(160),EH$1))-FIND(CHAR(160),SUBSTITUTE($G68,\"{\",CHAR(160),EH$1))+1),\"\")","v":""},{"$f":"IFERROR(MID($G68,FIND(CHAR(160),SUBSTITUTE($G68,\"{\",CHAR(160),EI$1)),FIND(CHAR(160),SUBSTITUTE($G68,\"}\",CHAR(160),EI$1))-FIND(CHAR(160),SUBSTITUTE($G68,\"{\",CHAR(160),EI$1))+1),\"\")","v":""},{"$f":"IFERROR(MID($G68,FIND(CHAR(160),SUBSTITUTE($G68,\"{\",CHAR(160),EJ$1)),FIND(CHAR(160),SUBSTITUTE($G68,\"}\",CHAR(160),EJ$1))-FIND(CHAR(160),SUBSTITUTE($G68,\"{\",CHAR(160),EJ$1))+1),\"\")","v":""},{"$f":"IFERROR(MID($G68,FIND(CHAR(160),SUBSTITUTE($G68,\"{\",CHAR(160),EK$1)),FIND(CHAR(160),SUBSTITUTE($G68,\"}\",CHAR(160),EK$1))-FIND(CHAR(160),SUBSTITUTE($G68,\"{\",CHAR(160),EK$1))+1),\"\")","v":""},{"$f":"IFERROR(MID($G68,FIND(CHAR(160),SUBSTITUTE($G68,\"{\",CHAR(160),EL$1)),FIND(CHAR(160),SUBSTITUTE($G68,\"}\",CHAR(160),EL$1))-FIND(CHAR(160),SUBSTITUTE($G68,\"{\",CHAR(160),EL$1))+1),\"\")","v":""},{"$f":"IFERROR(MID($G68,FIND(CHAR(160),SUBSTITUTE($G68,\"{\",CHAR(160),EM$1)),FIND(CHAR(160),SUBSTITUTE($G68,\"}\",CHAR(160),EM$1))-FIND(CHAR(160),SUBSTITUTE($G68,\"{\",CHAR(160),EM$1))+1),\"\")","v":""},{"$f":"IFERROR(MID($G68,FIND(CHAR(160),SUBSTITUTE($G68,\"{\",CHAR(160),EN$1)),FIND(CHAR(160),SUBSTITUTE($G68,\"}\",CHAR(160),EN$1))-FIND(CHAR(160),SUBSTITUTE($G68,\"{\",CHAR(160),EN$1))+1),\"\")","v":""},{"$f":"IFERROR(MID($G68,FIND(CHAR(160),SUBSTITUTE($G68,\"{\",CHAR(160),EO$1)),FIND(CHAR(160),SUBSTITUTE($G68,\"}\",CHAR(160),EO$1))-FIND(CHAR(160),SUBSTITUTE($G68,\"{\",CHAR(160),EO$1))+1),\"\")","v":""},{"$f":"IFERROR(MID($G68,FIND(CHAR(160),SUBSTITUTE($G68,\"{\",CHAR(160),EP$1)),FIND(CHAR(160),SUBSTITUTE($G68,\"}\",CHAR(160),EP$1))-FIND(CHAR(160),SUBSTITUTE($G68,\"{\",CHAR(160),EP$1))+1),\"\")","v":""},{"$f":"IFERROR(MID($J68,FIND(CHAR(160),SUBSTITUTE($J68,\"{\",CHAR(160),EQ$1)),FIND(CHAR(160),SUBSTITUTE($J68,\"}\",CHAR(160),EQ$1))-FIND(CHAR(160),SUBSTITUTE($J68,\"{\",CHAR(160),EQ$1))+1),\"\")","v":""},{"$f":"IFERROR(MID($J68,FIND(CHAR(160),SUBSTITUTE($J68,\"{\",CHAR(160),ER$1)),FIND(CHAR(160),SUBSTITUTE($J68,\"}\",CHAR(160),ER$1))-FIND(CHAR(160),SUBSTITUTE($J68,\"{\",CHAR(160),ER$1))+1),\"\")","v":""},{"$f":"IFERROR(MID($J68,FIND(CHAR(160),SUBSTITUTE($J68,\"{\",CHAR(160),ES$1)),FIND(CHAR(160),SUBSTITUTE($J68,\"}\",CHAR(160),ES$1))-FIND(CHAR(160),SUBSTITUTE($J68,\"{\",CHAR(160),ES$1))+1),\"\")","v":""},{"$f":"IFERROR(MID($J68,FIND(CHAR(160),SUBSTITUTE($J68,\"{\",CHAR(160),ET$1)),FIND(CHAR(160),SUBSTITUTE($J68,\"}\",CHAR(160),ET$1))-FIND(CHAR(160),SUBSTITUTE($J68,\"{\",CHAR(160),ET$1))+1),\"\")","v":""},{"$f":"IFERROR(MID($J68,FIND(CHAR(160),SUBSTITUTE($J68,\"{\",CHAR(160),EU$1)),FIND(CHAR(160),SUBSTITUTE($J68,\"}\",CHAR(160),EU$1))-FIND(CHAR(160),SUBSTITUTE($J68,\"{\",CHAR(160),EU$1))+1),\"\")","v":""},{"$f":"IFERROR(MID($J68,FIND(CHAR(160),SUBSTITUTE($J68,\"{\",CHAR(160),EV$1)),FIND(CHAR(160),SUBSTITUTE($J68,\"}\",CHAR(160),EV$1))-FIND(CHAR(160),SUBSTITUTE($J68,\"{\",CHAR(160),EV$1))+1),\"\")","v":""},{"$f":"IFERROR(MID($J68,FIND(CHAR(160),SUBSTITUTE($J68,\"{\",CHAR(160),EW$1)),FIND(CHAR(160),SUBSTITUTE($J68,\"}\",CHAR(160),EW$1))-FIND(CHAR(160),SUBSTITUTE($J68,\"{\",CHAR(160),EW$1))+1),\"\")","v":""},{"$f":"IFERROR(MID($J68,FIND(CHAR(160),SUBSTITUTE($J68,\"{\",CHAR(160),EX$1)),FIND(CHAR(160),SUBSTITUTE($J68,\"}\",CHAR(160),EX$1))-FIND(CHAR(160),SUBSTITUTE($J68,\"{\",CHAR(160),EX$1))+1),\"\")","v":""},{"$f":"IFERROR(MID($J68,FIND(CHAR(160),SUBSTITUTE($J68,\"{\",CHAR(160),EY$1)),FIND(CHAR(160),SUBSTITUTE($J68,\"}\",CHAR(160),EY$1))-FIND(CHAR(160),SUBSTITUTE($J68,\"{\",CHAR(160),EY$1))+1),\"\")","v":""},{"$f":"IFERROR(MID($J68,FIND(CHAR(160),SUBSTITUTE($J68,\"{\",CHAR(160),EZ$1)),FIND(CHAR(160),SUBSTITUTE($J68,\"}\",CHAR(160),EZ$1))-FIND(CHAR(160),SUBSTITUTE($J68,\"{\",CHAR(160),EZ$1))+1),\"\")","v":""},{"$f":"IFERROR(MID($J68,FIND(CHAR(160),SUBSTITUTE($J68,\"{\",CHAR(160),FA$1)),FIND(CHAR(160),SUBSTITUTE($J68,\"}\",CHAR(160),FA$1))-FIND(CHAR(160),SUBSTITUTE($J68,\"{\",CHAR(160),FA$1))+1),\"\")","v":""},{"$f":"IFERROR(MID($J68,FIND(CHAR(160),SUBSTITUTE($J68,\"{\",CHAR(160),FB$1)),FIND(CHAR(160),SUBSTITUTE($J68,\"}\",CHAR(160),FB$1))-FIND(CHAR(160),SUBSTITUTE($J68,\"{\",CHAR(160),FB$1))+1),\"\")","v":""},{"$f":"IFERROR(MID($O68,FIND(CHAR(160),SUBSTITUTE($O68,\"{\",CHAR(160),FC$1)),FIND(CHAR(160),SUBSTITUTE($O68,\"}\",CHAR(160),FC$1))-FIND(CHAR(160),SUBSTITUTE($O68,\"{\",CHAR(160),FC$1))+1),\"\")","v":"{Measure:Quantity}"},{"$f":"IFERROR(MID($O68,FIND(CHAR(160),SUBSTITUTE($O68,\"{\",CHAR(160),FD$1)),FIND(CHAR(160),SUBSTITUTE($O68,\"}\",CHAR(160),FD$1))-FIND(CHAR(160),SUBSTITUTE($O68,\"{\",CHAR(160),FD$1))+1),\"\")","v":"{Backup Heating System Fuel}"},{"$f":"IFERROR(MID($O68,FIND(CHAR(160),SUBSTITUTE($O68,\"{\",CHAR(160),FE$1)),FIND(CHAR(160),SUBSTITUTE($O68,\"}\",CHAR(160),FE$1))-FIND(CHAR(160),SUBSTITUTE($O68,\"{\",CHAR(160),FE$1))+1),\"\")","v":"{Backup Heating System Fuel}"},{"$f":"IFERROR(MID($O68,FIND(CHAR(160),SUBSTITUTE($O68,\"{\",CHAR(160),FF$1)),FIND(CHAR(160),SUBSTITUTE($O68,\"}\",CHAR(160),FF$1))-FIND(CHAR(160),SUBSTITUTE($O68,\"{\",CHAR(160),FF$1))+1),\"\")","v":""},{"$f":"IFERROR(MID($O68,FIND(CHAR(160),SUBSTITUTE($O68,\"{\",CHAR(160),FG$1)),FIND(CHAR(160),SUBSTITUTE($O68,\"}\",CHAR(160),FG$1))-FIND(CHAR(160),SUBSTITUTE($O68,\"{\",CHAR(160),FG$1))+1),\"\")","v":""},{"$f":"IFERROR(MID($O68,FIND(CHAR(160),SUBSTITUTE($O68,\"{\",CHAR(160),FH$1)),FIND(CHAR(160),SUBSTITUTE($O68,\"}\",CHAR(160),FH$1))-FIND(CHAR(160),SUBSTITUTE($O68,\"{\",CHAR(160),FH$1))+1),\"\")","v":""},{"$f":"IFERROR(MID($O68,FIND(CHAR(160),SUBSTITUTE($O68,\"{\",CHAR(160),FI$1)),FIND(CHAR(160),SUBSTITUTE($O68,\"}\",CHAR(160),FI$1))-FIND(CHAR(160),SUBSTITUTE($O68,\"{\",CHAR(160),FI$1))+1),\"\")","v":""},{"$f":"IFERROR(MID($O68,FIND(CHAR(160),SUBSTITUTE($O68,\"{\",CHAR(160),FJ$1)),FIND(CHAR(160),SUBSTITUTE($O68,\"}\",CHAR(160),FJ$1))-FIND(CHAR(160),SUBSTITUTE($O68,\"{\",CHAR(160),FJ$1))+1),\"\")","v":""},{"$f":"IFERROR(MID($O68,FIND(CHAR(160),SUBSTITUTE($O68,\"{\",CHAR(160),FK$1)),FIND(CHAR(160),SUBSTITUTE($O68,\"}\",CHAR(160),FK$1))-FIND(CHAR(160),SUBSTITUTE($O68,\"{\",CHAR(160),FK$1))+1),\"\")","v":"{Backup Heating System Fuel}"},{"$f":"IFERROR(MID($O68,FIND(CHAR(160),SUBSTITUTE($O68,\"{\",CHAR(160),FL$1)),FIND(CHAR(160),SUBSTITUTE($O68,\"}\",CHAR(160),FL$1))-FIND(CHAR(160),SUBSTITUTE($O68,\"{\",CHAR(160),FL$1))+1),\"\")","v":"{Backup Heating System Fuel}"},{"$f":"IFERROR(MID($R68,FIND(CHAR(160),SUBSTITUTE($R68,\"{\",CHAR(160),FM$1)),FIND(CHAR(160),SUBSTITUTE($R68,\"}\",CHAR(160),FM$1))-FIND(CHAR(160),SUBSTITUTE($R68,\"{\",CHAR(160),FM$1))+1),\"\")","v":""},{"$f":"IFERROR(MID($R68,FIND(CHAR(160),SUBSTITUTE($R68,\"{\",CHAR(160),FN$1)),FIND(CHAR(160),SUBSTITUTE($R68,\"}\",CHAR(160),FN$1))-FIND(CHAR(160),SUBSTITUTE($R68,\"{\",CHAR(160),FN$1))+1),\"\")","v":""},{"$f":"IFERROR(MID($R68,FIND(CHAR(160),SUBSTITUTE($R68,\"{\",CHAR(160),FO$1)),FIND(CHAR(160),SUBSTITUTE($R68,\"}\",CHAR(160),FO$1))-FIND(CHAR(160),SUBSTITUTE($R68,\"{\",CHAR(160),FO$1))+1),\"\")","v":""},{"$f":"IFERROR(MID($R68,FIND(CHAR(160),SUBSTITUTE($R68,\"{\",CHAR(160),FP$1)),FIND(CHAR(160),SUBSTITUTE($R68,\"}\",CHAR(160),FP$1))-FIND(CHAR(160),SUBSTITUTE($R68,\"{\",CHAR(160),FP$1))+1),\"\")","v":""},{"$f":"IFERROR(MID($R68,FIND(CHAR(160),SUBSTITUTE($R68,\"{\",CHAR(160),FQ$1)),FIND(CHAR(160),SUBSTITUTE($R68,\"}\",CHAR(160),FQ$1))-FIND(CHAR(160),SUBSTITUTE($R68,\"{\",CHAR(160),FQ$1))+1),\"\")","v":""},{"$f":"IFERROR(MID($R68,FIND(CHAR(160),SUBSTITUTE($R68,\"{\",CHAR(160),FR$1)),FIND(CHAR(160),SUBSTITUTE($R68,\"}\",CHAR(160),FR$1))-FIND(CHAR(160),SUBSTITUTE($R68,\"{\",CHAR(160),FR$1))+1),\"\")","v":""},{"$f":"IFERROR(MID($R68,FIND(CHAR(160),SUBSTITUTE($R68,\"{\",CHAR(160),FS$1)),FIND(CHAR(160),SUBSTITUTE($R68,\"}\",CHAR(160),FS$1))-FIND(CHAR(160),SUBSTITUTE($R68,\"{\",CHAR(160),FS$1))+1),\"\")","v":""},{"$f":"IFERROR(MID($R68,FIND(CHAR(160),SUBSTITUTE($R68,\"{\",CHAR(160),FT$1)),FIND(CHAR(160),SUBSTITUTE($R68,\"}\",CHAR(160),FT$1))-FIND(CHAR(160),SUBSTITUTE($R68,\"{\",CHAR(160),FT$1))+1),\"\")","v":""},{"$f":"IFERROR(MID($R68,FIND(CHAR(160),SUBSTITUTE($R68,\"{\",CHAR(160),FU$1)),FIND(CHAR(160),SUBSTITUTE($R68,\"}\",CHAR(160),FU$1))-FIND(CHAR(160),SUBSTITUTE($R68,\"{\",CHAR(160),FU$1))+1),\"\")","v":""},{"$f":"IFERROR(MID($R68,FIND(CHAR(160),SUBSTITUTE($R68,\"{\",CHAR(160),FV$1)),FIND(CHAR(160),SUBSTITUTE($R68,\"}\",CHAR(160),FV$1))-FIND(CHAR(160),SUBSTITUTE($R68,\"{\",CHAR(160),FV$1))+1),\"\")","v":""},{"$f":"IFERROR(MID($U68,FIND(CHAR(160),SUBSTITUTE($U68,\"{\",CHAR(160),FW$1)),FIND(CHAR(160),SUBSTITUTE($U68,\"}\",CHAR(160),FW$1))-FIND(CHAR(160),SUBSTITUTE($U68,\"{\",CHAR(160),FW$1))+1),\"\")","v":"{Measure:Quantity}"},{"$f":"IFERROR(MID($U68,FIND(CHAR(160),SUBSTITUTE($U68,\"{\",CHAR(160),FX$1)),FIND(CHAR(160),SUBSTITUTE($U68,\"}\",CHAR(160),FX$1))-FIND(CHAR(160),SUBSTITUTE($U68,\"{\",CHAR(160),FX$1))+1),\"\")","v":"{Backup Heating System Fuel}"},{"$f":"IFERROR(MID($U68,FIND(CHAR(160),SUBSTITUTE($U68,\"{\",CHAR(160),FY$1)),FIND(CHAR(160),SUBSTITUTE($U68,\"}\",CHAR(160),FY$1))-FIND(CHAR(160),SUBSTITUTE($U68,\"{\",CHAR(160),FY$1))+1),\"\")","v":"{Backup Heating System Fuel}"},{"$f":"IFERROR(MID($U68,FIND(CHAR(160),SUBSTITUTE($U68,\"{\",CHAR(160),FZ$1)),FIND(CHAR(160),SUBSTITUTE($U68,\"}\",CHAR(160),FZ$1))-FIND(CHAR(160),SUBSTITUTE($U68,\"{\",CHAR(160),FZ$1))+1),\"\")","v":""},{"$f":"IFERROR(MID($U68,FIND(CHAR(160),SUBSTITUTE($U68,\"{\",CHAR(160),GA$1)),FIND(CHAR(160),SUBSTITUTE($U68,\"}\",CHAR(160),GA$1))-FIND(CHAR(160),SUBSTITUTE($U68,\"{\",CHAR(160),GA$1))+1),\"\")","v":""},{"$f":"IFERROR(MID($U68,FIND(CHAR(160),SUBSTITUTE($U68,\"{\",CHAR(160),GB$1)),FIND(CHAR(160),SUBSTITUTE($U68,\"}\",CHAR(160),GB$1))-FIND(CHAR(160),SUBSTITUTE($U68,\"{\",CHAR(160),GB$1))+1),\"\")","v":""},{"$f":"IFERROR(MID($U68,FIND(CHAR(160),SUBSTITUTE($U68,\"{\",CHAR(160),GC$1)),FIND(CHAR(160),SUBSTITUTE($U68,\"}\",CHAR(160),GC$1))-FIND(CHAR(160),SUBSTITUTE($U68,\"{\",CHAR(160),GC$1))+1),\"\")","v":""},{"$f":"IFERROR(MID($U68,FIND(CHAR(160),SUBSTITUTE($U68,\"{\",CHAR(160),GD$1)),FIND(CHAR(160),SUBSTITUTE($U68,\"}\",CHAR(160),GD$1))-FIND(CHAR(160),SUBSTITUTE($U68,\"{\",CHAR(160),GD$1))+1),\"\")","v":""},{"$f":"IFERROR(MID($U68,FIND(CHAR(160),SUBSTITUTE($U68,\"{\",CHAR(160),GE$1)),FIND(CHAR(160),SUBSTITUTE($U68,\"}\",CHAR(160),GE$1))-FIND(CHAR(160),SUBSTITUTE($U68,\"{\",CHAR(160),GE$1))+1),\"\")","v":"{Backup Heating System Fuel}"},{"$f":"IFERROR(MID($U68,FIND(CHAR(160),SUBSTITUTE($U68,\"{\",CHAR(160),GF$1)),FIND(CHAR(160),SUBSTITUTE($U68,\"}\",CHAR(160),GF$1))-FIND(CHAR(160),SUBSTITUTE($U68,\"{\",CHAR(160),GF$1))+1),\"\")","v":"{Backup Heating System Fuel}"},{"$f":"IFERROR(MID($V68,FIND(CHAR(160),SUBSTITUTE($V68,\"{\",CHAR(160),GG$1)),FIND(CHAR(160),SUBSTITUTE($V68,\"}\",CHAR(160),GG$1))-FIND(CHAR(160),SUBSTITUTE($V68,\"{\",CHAR(160),GG$1))+1),\"\")","v":""},{"$f":"IFERROR(MID($V68,FIND(CHAR(160),SUBSTITUTE($V68,\"{\",CHAR(160),GH$1)),FIND(CHAR(160),SUBSTITUTE($V68,\"}\",CHAR(160),GH$1))-FIND(CHAR(160),SUBSTITUTE($V68,\"{\",CHAR(160),GH$1))+1),\"\")","v":""},{"$f":"IFERROR(MID($V68,FIND(CHAR(160),SUBSTITUTE($V68,\"{\",CHAR(160),GI$1)),FIND(CHAR(160),SUBSTITUTE($V68,\"}\",CHAR(160),GI$1))-FIND(CHAR(160),SUBSTITUTE($V68,\"{\",CHAR(160),GI$1))+1),\"\")","v":""},{"$f":"IFERROR(MID($V68,FIND(CHAR(160),SUBSTITUTE($V68,\"{\",CHAR(160),GJ$1)),FIND(CHAR(160),SUBSTITUTE($V68,\"}\",CHAR(160),GJ$1))-FIND(CHAR(160),SUBSTITUTE($V68,\"{\",CHAR(160),GJ$1))+1),\"\")","v":""},{"$f":"IFERROR(MID($V68,FIND(CHAR(160),SUBSTITUTE($V68,\"{\",CHAR(160),GK$1)),FIND(CHAR(160),SUBSTITUTE($V68,\"}\",CHAR(160),GK$1))-FIND(CHAR(160),SUBSTITUTE($V68,\"{\",CHAR(160),GK$1))+1),\"\")","v":""},{"$f":"IFERROR(MID($V68,FIND(CHAR(160),SUBSTITUTE($V68,\"{\",CHAR(160),GL$1)),FIND(CHAR(160),SUBSTITUTE($V68,\"}\",CHAR(160),GL$1))-FIND(CHAR(160),SUBSTITUTE($V68,\"{\",CHAR(160),GL$1))+1),\"\")","v":""},{"$f":"IFERROR(MID($V68,FIND(CHAR(160),SUBSTITUTE($V68,\"{\",CHAR(160),GM$1)),FIND(CHAR(160),SUBSTITUTE($V68,\"}\",CHAR(160),GM$1))-FIND(CHAR(160),SUBSTITUTE($V68,\"{\",CHAR(160),GM$1))+1),\"\")","v":""},{"$f":"IFERROR(MID($V68,FIND(CHAR(160),SUBSTITUTE($V68,\"{\",CHAR(160),GN$1)),FIND(CHAR(160),SUBSTITUTE($V68,\"}\",CHAR(160),GN$1))-FIND(CHAR(160),SUBSTITUTE($V68,\"{\",CHAR(160),GN$1))+1),\"\")","v":""},{"$f":"IFERROR(MID($V68,FIND(CHAR(160),SUBSTITUTE($V68,\"{\",CHAR(160),GO$1)),FIND(CHAR(160),SUBSTITUTE($V68,\"}\",CHAR(160),GO$1))-FIND(CHAR(160),SUBSTITUTE($V68,\"{\",CHAR(160),GO$1))+1),\"\")","v":"{Measure:Quantity}"},{"$f":"IFERROR(MID($V68,FIND(CHAR(160),SUBSTITUTE($V68,\"{\",CHAR(160),GP$1)),FIND(CHAR(160),SUBSTITUTE($V68,\"}\",CHAR(160),GP$1))-FIND(CHAR(160),SUBSTITUTE($V68,\"{\",CHAR(160),GP$1))+1),\"\")","v":""},{"$f":"IFERROR(MID($W68,FIND(CHAR(160),SUBSTITUTE($W68,\"{\",CHAR(160),GQ$1)),FIND(CHAR(160),SUBSTITUTE($W68,\"}\",CHAR(160),GQ$1))-FIND(CHAR(160),SUBSTITUTE($W68,\"{\",CHAR(160),GQ$1))+1),\"\")","v":"{Measure:Quantity}"},{"$f":"IFERROR(MID($W68,FIND(CHAR(160),SUBSTITUTE($W68,\"{\",CHAR(160),GR$1)),FIND(CHAR(160),SUBSTITUTE($W68,\"}\",CHAR(160),GR$1))-FIND(CHAR(160),SUBSTITUTE($W68,\"{\",CHAR(160),GR$1))+1),\"\")","v":"{Backup Heating System Fuel}"},{"$f":"IFERROR(MID($W68,FIND(CHAR(160),SUBSTITUTE($W68,\"{\",CHAR(160),GS$1)),FIND(CHAR(160),SUBSTITUTE($W68,\"}\",CHAR(160),GS$1))-FIND(CHAR(160),SUBSTITUTE($W68,\"{\",CHAR(160),GS$1))+1),\"\")","v":"{Backup Heating System Fuel}"},{"$f":"IFERROR(MID($W68,FIND(CHAR(160),SUBSTITUTE($W68,\"{\",CHAR(160),GT$1)),FIND(CHAR(160),SUBSTITUTE($W68,\"}\",CHAR(160),GT$1))-FIND(CHAR(160),SUBSTITUTE($W68,\"{\",CHAR(160),GT$1))+1),\"\")","v":""},{"$f":"IFERROR(MID($W68,FIND(CHAR(160),SUBSTITUTE($W68,\"{\",CHAR(160),GU$1)),FIND(CHAR(160),SUBSTITUTE($W68,\"}\",CHAR(160),GU$1))-FIND(CHAR(160),SUBSTITUTE($W68,\"{\",CHAR(160),GU$1))+1),\"\")","v":""},{"$f":"IFERROR(MID($W68,FIND(CHAR(160),SUBSTITUTE($W68,\"{\",CHAR(160),GV$1)),FIND(CHAR(160),SUBSTITUTE($W68,\"}\",CHAR(160),GV$1))-FIND(CHAR(160),SUBSTITUTE($W68,\"{\",CHAR(160),GV$1))+1),\"\")","v":""},{"$f":"IFERROR(MID($W68,FIND(CHAR(160),SUBSTITUTE($W68,\"{\",CHAR(160),GW$1)),FIND(CHAR(160),SUBSTITUTE($W68,\"}\",CHAR(160),GW$1))-FIND(CHAR(160),SUBSTITUTE($W68,\"{\",CHAR(160),GW$1))+1),\"\")","v":""},{"$f":"IFERROR(MID($W68,FIND(CHAR(160),SUBSTITUTE($W68,\"{\",CHAR(160),GX$1)),FIND(CHAR(160),SUBSTITUTE($W68,\"}\",CHAR(160),GX$1))-FIND(CHAR(160),SUBSTITUTE($W68,\"{\",CHAR(160),GX$1))+1),\"\")","v":""},{"$f":"IFERROR(MID($W68,FIND(CHAR(160),SUBSTITUTE($W68,\"{\",CHAR(160),GY$1)),FIND(CHAR(160),SUBSTITUTE($W68,\"}\",CHAR(160),GY$1))-FIND(CHAR(160),SUBSTITUTE($W68,\"{\",CHAR(160),GY$1))+1),\"\")","v":"{Backup Heating System Fuel}"},{"$f":"IFERROR(MID($W68,FIND(CHAR(160),SUBSTITUTE($W68,\"{\",CHAR(160),GZ$1)),FIND(CHAR(160),SUBSTITUTE($W68,\"}\",CHAR(160),GZ$1))-FIND(CHAR(160),SUBSTITUTE($W68,\"{\",CHAR(160),GZ$1))+1),\"\")","v":"{Backup Heating System Fuel}"},{"$f":"IFERROR(MID($X68,FIND(CHAR(160),SUBSTITUTE($X68,\"{\",CHAR(160),HA$1)),FIND(CHAR(160),SUBSTITUTE($X68,\"}\",CHAR(160),HA$1))-FIND(CHAR(160),SUBSTITUTE($X68,\"{\",CHAR(160),HA$1))+1),\"\")","v":"{Measure:Quantity}"},{"$f":"IFERROR(MID($X68,FIND(CHAR(160),SUBSTITUTE($X68,\"{\",CHAR(160),HB$1)),FIND(CHAR(160),SUBSTITUTE($X68,\"}\",CHAR(160),HB$1))-FIND(CHAR(160),SUBSTITUTE($X68,\"{\",CHAR(160),HB$1))+1),\"\")","v":"{Backup Heating System Fuel}"},{"$f":"IFERROR(MID($X68,FIND(CHAR(160),SUBSTITUTE($X68,\"{\",CHAR(160),HC$1)),FIND(CHAR(160),SUBSTITUTE($X68,\"}\",CHAR(160),HC$1))-FIND(CHAR(160),SUBSTITUTE($X68,\"{\",CHAR(160),HC$1))+1),\"\")","v":"{Backup Heating System Fuel}"},{"$f":"IFERROR(MID($X68,FIND(CHAR(160),SUBSTITUTE($X68,\"{\",CHAR(160),HD$1)),FIND(CHAR(160),SUBSTITUTE($X68,\"}\",CHAR(160),HD$1))-FIND(CHAR(160),SUBSTITUTE($X68,\"{\",CHAR(160),HD$1))+1),\"\")","v":""},{"$f":"IFERROR(MID($X68,FIND(CHAR(160),SUBSTITUTE($X68,\"{\",CHAR(160),HE$1)),FIND(CHAR(160),SUBSTITUTE($X68,\"}\",CHAR(160),HE$1))-FIND(CHAR(160),SUBSTITUTE($X68,\"{\",CHAR(160),HE$1))+1),\"\")","v":""},{"$f":"IFERROR(MID($X68,FIND(CHAR(160),SUBSTITUTE($X68,\"{\",CHAR(160),HF$1)),FIND(CHAR(160),SUBSTITUTE($X68,\"}\",CHAR(160),HF$1))-FIND(CHAR(160),SUBSTITUTE($X68,\"{\",CHAR(160),HF$1))+1),\"\")","v":""},{"$f":"IFERROR(MID($X68,FIND(CHAR(160),SUBSTITUTE($X68,\"{\",CHAR(160),HG$1)),FIND(CHAR(160),SUBSTITUTE($X68,\"}\",CHAR(160),HG$1))-FIND(CHAR(160),SUBSTITUTE($X68,\"{\",CHAR(160),HG$1))+1),\"\")","v":""},{"$f":"IFERROR(MID($X68,FIND(CHAR(160),SUBSTITUTE($X68,\"{\",CHAR(160),HH$1)),FIND(CHAR(160),SUBSTITUTE($X68,\"}\",CHAR(160),HH$1))-FIND(CHAR(160),SUBSTITUTE($X68,\"{\",CHAR(160),HH$1))+1),\"\")","v":""},{"$f":"IFERROR(MID($X68,FIND(CHAR(160),SUBSTITUTE($X68,\"{\",CHAR(160),HI$1)),FIND(CHAR(160),SUBSTITUTE($X68,\"}\",CHAR(160),HI$1))-FIND(CHAR(160),SUBSTITUTE($X68,\"{\",CHAR(160),HI$1))+1),\"\")","v":"{Backup Heating System Fuel}"},{"$f":"IFERROR(MID($X68,FIND(CHAR(160),SUBSTITUTE($X68,\"{\",CHAR(160),HJ$1)),FIND(CHAR(160),SUBSTITUTE($X68,\"}\",CHAR(160),HJ$1))-FIND(CHAR(160),SUBSTITUTE($X68,\"{\",CHAR(160),HJ$1))+1),\"\")","v":"{Backup Heating System Fuel}"},{"$f":"IFERROR(MID($Y68,FIND(CHAR(160),SUBSTITUTE($Y68,\"{\",CHAR(160),HK$1)),FIND(CHAR(160),SUBSTITUTE($Y68,\"}\",CHAR(160),HK$1))-FIND(CHAR(160),SUBSTITUTE($Y68,\"{\",CHAR(160),HK$1))+1),\"\")","v":"{Measure:Quantity}"},{"$f":"IFERROR(MID($Y68,FIND(CHAR(160),SUBSTITUTE($Y68,\"{\",CHAR(160),HL$1)),FIND(CHAR(160),SUBSTITUTE($Y68,\"}\",CHAR(160),HL$1))-FIND(CHAR(160),SUBSTITUTE($Y68,\"{\",CHAR(160),HL$1))+1),\"\")","v":"{Backup Heating System Fuel}"},{"$f":"IFERROR(MID($Y68,FIND(CHAR(160),SUBSTITUTE($Y68,\"{\",CHAR(160),HM$1)),FIND(CHAR(160),SUBSTITUTE($Y68,\"}\",CHAR(160),HM$1))-FIND(CHAR(160),SUBSTITUTE($Y68,\"{\",CHAR(160),HM$1))+1),\"\")","v":"{Backup Heating System Fuel}"},{"$f":"IFERROR(MID($Y68,FIND(CHAR(160),SUBSTITUTE($Y68,\"{\",CHAR(160),HN$1)),FIND(CHAR(160),SUBSTITUTE($Y68,\"}\",CHAR(160),HN$1))-FIND(CHAR(160),SUBSTITUTE($Y68,\"{\",CHAR(160),HN$1))+1),\"\")","v":""},{"$f":"IFERROR(MID($Y68,FIND(CHAR(160),SUBSTITUTE($Y68,\"{\",CHAR(160),HO$1)),FIND(CHAR(160),SUBSTITUTE($Y68,\"}\",CHAR(160),HO$1))-FIND(CHAR(160),SUBSTITUTE($Y68,\"{\",CHAR(160),HO$1))+1),\"\")","v":""},{"$f":"IFERROR(MID($Y68,FIND(CHAR(160),SUBSTITUTE($Y68,\"{\",CHAR(160),HP$1)),FIND(CHAR(160),SUBSTITUTE($Y68,\"}\",CHAR(160),HP$1))-FIND(CHAR(160),SUBSTITUTE($Y68,\"{\",CHAR(160),HP$1))+1),\"\")","v":""},{"$f":"IFERROR(MID($Y68,FIND(CHAR(160),SUBSTITUTE($Y68,\"{\",CHAR(160),HQ$1)),FIND(CHAR(160),SUBSTITUTE($Y68,\"}\",CHAR(160),HQ$1))-FIND(CHAR(160),SUBSTITUTE($Y68,\"{\",CHAR(160),HQ$1))+1),\"\")","v":""},{"$f":"IFERROR(MID($Y68,FIND(CHAR(160),SUBSTITUTE($Y68,\"{\",CHAR(160),HR$1)),FIND(CHAR(160),SUBSTITUTE($Y68,\"}\",CHAR(160),HR$1))-FIND(CHAR(160),SUBSTITUTE($Y68,\"{\",CHAR(160),HR$1))+1),\"\")","v":""},{"$f":"IFERROR(MID($Y68,FIND(CHAR(160),SUBSTITUTE($Y68,\"{\",CHAR(160),HS$1)),FIND(CHAR(160),SUBSTITUTE($Y68,\"}\",CHAR(160),HS$1))-FIND(CHAR(160),SUBSTITUTE($Y68,\"{\",CHAR(160),HS$1))+1),\"\")","v":"{Backup Heating System Fuel}"},{"$f":"IFERROR(MID($Y68,FIND(CHAR(160),SUBSTITUTE($Y68,\"{\",CHAR(160),HT$1)),FIND(CHAR(160),SUBSTITUTE($Y68,\"}\",CHAR(160),HT$1))-FIND(CHAR(160),SUBSTITUTE($Y68,\"{\",CHAR(160),HT$1))+1),\"\")","v":"{Backup Heating System Fuel}"},{"$f":"IFERROR(MID($Z68,FIND(CHAR(160),SUBSTITUTE($Z68,\"{\",CHAR(160),HU$1)),FIND(CHAR(160),SUBSTITUTE($Z68,\"}\",CHAR(160),HU$1))-FIND(CHAR(160),SUBSTITUTE($Z68,\"{\",CHAR(160),HU$1))+1),\"\")","v":"{Measure:Quantity}"},{"$f":"IFERROR(MID($Z68,FIND(CHAR(160),SUBSTITUTE($Z68,\"{\",CHAR(160),HV$1)),FIND(CHAR(160),SUBSTITUTE($Z68,\"}\",CHAR(160),HV$1))-FIND(CHAR(160),SUBSTITUTE($Z68,\"{\",CHAR(160),HV$1))+1),\"\")","v":"{Backup Heating System Fuel}"},{"$f":"IFERROR(MID($Z68,FIND(CHAR(160),SUBSTITUTE($Z68,\"{\",CHAR(160),HW$1)),FIND(CHAR(160),SUBSTITUTE($Z68,\"}\",CHAR(160),HW$1))-FIND(CHAR(160),SUBSTITUTE($Z68,\"{\",CHAR(160),HW$1))+1),\"\")","v":"{Backup Heating System Fuel}"},{"$f":"IFERROR(MID($Z68,FIND(CHAR(160),SUBSTITUTE($Z68,\"{\",CHAR(160),HX$1)),FIND(CHAR(160),SUBSTITUTE($Z68,\"}\",CHAR(160),HX$1))-FIND(CHAR(160),SUBSTITUTE($Z68,\"{\",CHAR(160),HX$1))+1),\"\")","v":""},{"$f":"IFERROR(MID($Z68,FIND(CHAR(160),SUBSTITUTE($Z68,\"{\",CHAR(160),HY$1)),FIND(CHAR(160),SUBSTITUTE($Z68,\"}\",CHAR(160),HY$1))-FIND(CHAR(160),SUBSTITUTE($Z68,\"{\",CHAR(160),HY$1))+1),\"\")","v":""},{"$f":"IFERROR(MID($Z68,FIND(CHAR(160),SUBSTITUTE($Z68,\"{\",CHAR(160),HZ$1)),FIND(CHAR(160),SUBSTITUTE($Z68,\"}\",CHAR(160),HZ$1))-FIND(CHAR(160),SUBSTITUTE($Z68,\"{\",CHAR(160),HZ$1))+1),\"\")","v":""},{"$f":"IFERROR(MID($Z68,FIND(CHAR(160),SUBSTITUTE($Z68,\"{\",CHAR(160),IA$1)),FIND(CHAR(160),SUBSTITUTE($Z68,\"}\",CHAR(160),IA$1))-FIND(CHAR(160),SUBSTITUTE($Z68,\"{\",CHAR(160),IA$1))+1),\"\")","v":""},{"$f":"IFERROR(MID($Z68,FIND(CHAR(160),SUBSTITUTE($Z68,\"{\",CHAR(160),IB$1)),FIND(CHAR(160),SUBSTITUTE($Z68,\"}\",CHAR(160),IB$1))-FIND(CHAR(160),SUBSTITUTE($Z68,\"{\",CHAR(160),IB$1))+1),\"\")","v":""},{"$f":"IFERROR(MID($Z68,FIND(CHAR(160),SUBSTITUTE($Z68,\"{\",CHAR(160),IC$1)),FIND(CHAR(160),SUBSTITUTE($Z68,\"}\",CHAR(160),IC$1))-FIND(CHAR(160),SUBSTITUTE($Z68,\"{\",CHAR(160),IC$1))+1),\"\")","v":"{Backup Heating System Fuel}"},{"$f":"IFERROR(MID($Z68,FIND(CHAR(160),SUBSTITUTE($Z68,\"{\",CHAR(160),ID$1)),FIND(CHAR(160),SUBSTITUTE($Z68,\"}\",CHAR(160),ID$1))-FIND(CHAR(160),SUBSTITUTE($Z68,\"{\",CHAR(160),ID$1))+1),\"\")","v":"{Backup Heating System Fuel}"},{"$f":"IFERROR(MID($AA68,FIND(CHAR(160),SUBSTITUTE($AA68,\"{\",CHAR(160),IE$1)),FIND(CHAR(160),SUBSTITUTE($AA68,\"}\",CHAR(160),IE$1))-FIND(CHAR(160),SUBSTITUTE($AA68,\"{\",CHAR(160),IE$1))+1),\"\")","v":"{Measure:Quantity}"},{"$f":"IFERROR(MID($AA68,FIND(CHAR(160),SUBSTITUTE($AA68,\"{\",CHAR(160),IF$1)),FIND(CHAR(160),SUBSTITUTE($AA68,\"}\",CHAR(160),IF$1))-FIND(CHAR(160),SUBSTITUTE($AA68,\"{\",CHAR(160),IF$1))+1),\"\")","v":"{Backup Heating System Fuel}"},{"$f":"IFERROR(MID($AA68,FIND(CHAR(160),SUBSTITUTE($AA68,\"{\",CHAR(160),IG$1)),FIND(CHAR(160),SUBSTITUTE($AA68,\"}\",CHAR(160),IG$1))-FIND(CHAR(160),SUBSTITUTE($AA68,\"{\",CHAR(160),IG$1))+1),\"\")","v":"{Backup Heating System Fuel}"},{"$f":"IFERROR(MID($AA68,FIND(CHAR(160),SUBSTITUTE($AA68,\"{\",CHAR(160),IH$1)),FIND(CHAR(160),SUBSTITUTE($AA68,\"}\",CHAR(160),IH$1))-FIND(CHAR(160),SUBSTITUTE($AA68,\"{\",CHAR(160),IH$1))+1),\"\")","v":""},{"$f":"IFERROR(MID($AA68,FIND(CHAR(160),SUBSTITUTE($AA68,\"{\",CHAR(160),II$1)),FIND(CHAR(160),SUBSTITUTE($AA68,\"}\",CHAR(160),II$1))-FIND(CHAR(160),SUBSTITUTE($AA68,\"{\",CHAR(160),II$1))+1),\"\")","v":""},{"$f":"IFERROR(MID($AA68,FIND(CHAR(160),SUBSTITUTE($AA68,\"{\",CHAR(160),IJ$1)),FIND(CHAR(160),SUBSTITUTE($AA68,\"}\",CHAR(160),IJ$1))-FIND(CHAR(160),SUBSTITUTE($AA68,\"{\",CHAR(160),IJ$1))+1),\"\")","v":""},{"$f":"IFERROR(MID($AA68,FIND(CHAR(160),SUBSTITUTE($AA68,\"{\",CHAR(160),IK$1)),FIND(CHAR(160),SUBSTITUTE($AA68,\"}\",CHAR(160),IK$1))-FIND(CHAR(160),SUBSTITUTE($AA68,\"{\",CHAR(160),IK$1))+1),\"\")","v":""},{"$f":"IFERROR(MID($AA68,FIND(CHAR(160),SUBSTITUTE($AA68,\"{\",CHAR(160),IL$1)),FIND(CHAR(160),SUBSTITUTE($AA68,\"}\",CHAR(160),IL$1))-FIND(CHAR(160),SUBSTITUTE($AA68,\"{\",CHAR(160),IL$1))+1),\"\")","v":""},{"$f":"IFERROR(MID($AA68,FIND(CHAR(160),SUBSTITUTE($AA68,\"{\",CHAR(160),IM$1)),FIND(CHAR(160),SUBSTITUTE($AA68,\"}\",CHAR(160),IM$1))-FIND(CHAR(160),SUBSTITUTE($AA68,\"{\",CHAR(160),IM$1))+1),\"\")","v":"{Backup Heating System Fuel}"},{"$f":"IFERROR(MID($AA68,FIND(CHAR(160),SUBSTITUTE($AA68,\"{\",CHAR(160),IN$1)),FIND(CHAR(160),SUBSTITUTE($AA68,\"}\",CHAR(160),IN$1))-FIND(CHAR(160),SUBSTITUTE($AA68,\"{\",CHAR(160),IN$1))+1),\"\")","v":"{Backup Heating System Fuel}"},{"$f":"IFERROR(MID($AB68,FIND(CHAR(160),SUBSTITUTE($AB68,\"{\",CHAR(160),IO$1)),FIND(CHAR(160),SUBSTITUTE($AB68,\"}\",CHAR(160),IO$1))-FIND(CHAR(160),SUBSTITUTE($AB68,\"{\",CHAR(160),IO$1))+1),\"\")","v":""},{"$f":"IFERROR(MID($AB68,FIND(CHAR(160),SUBSTITUTE($AB68,\"{\",CHAR(160),IP$1)),FIND(CHAR(160),SUBSTITUTE($AB68,\"}\",CHAR(160),IP$1))-FIND(CHAR(160),SUBSTITUTE($AB68,\"{\",CHAR(160),IP$1))+1),\"\")","v":""},{"$f":"IFERROR(MID($AB68,FIND(CHAR(160),SUBSTITUTE($AB68,\"{\",CHAR(160),IQ$1)),FIND(CHAR(160),SUBSTITUTE($AB68,\"}\",CHAR(160),IQ$1))-FIND(CHAR(160),SUBSTITUTE($AB68,\"{\",CHAR(160),IQ$1))+1),\"\")","v":""},{"$f":"IFERROR(MID($AB68,FIND(CHAR(160),SUBSTITUTE($AB68,\"{\",CHAR(160),IR$1)),FIND(CHAR(160),SUBSTITUTE($AB68,\"}\",CHAR(160),IR$1))-FIND(CHAR(160),SUBSTITUTE($AB68,\"{\",CHAR(160),IR$1))+1),\"\")","v":""},{"$f":"IFERROR(MID($AB68,FIND(CHAR(160),SUBSTITUTE($AB68,\"{\",CHAR(160),IS$1)),FIND(CHAR(160),SUBSTITUTE($AB68,\"}\",CHAR(160),IS$1))-FIND(CHAR(160),SUBSTITUTE($AB68,\"{\",CHAR(160),IS$1))+1),\"\")","v":""},{"$f":"IFERROR(MID($AB68,FIND(CHAR(160),SUBSTITUTE($AB68,\"{\",CHAR(160),IT$1)),FIND(CHAR(160),SUBSTITUTE($AB68,\"}\",CHAR(160),IT$1))-FIND(CHAR(160),SUBSTITUTE($AB68,\"{\",CHAR(160),IT$1))+1),\"\")","v":""},{"$f":"IFERROR(MID($AB68,FIND(CHAR(160),SUBSTITUTE($AB68,\"{\",CHAR(160),IU$1)),FIND(CHAR(160),SUBSTITUTE($AB68,\"}\",CHAR(160),IU$1))-FIND(CHAR(160),SUBSTITUTE($AB68,\"{\",CHAR(160),IU$1))+1),\"\")","v":""},{"$f":"IFERROR(MID($AB68,FIND(CHAR(160),SUBSTITUTE($AB68,\"{\",CHAR(160),IV$1)),FIND(CHAR(160),SUBSTITUTE($AB68,\"}\",CHAR(160),IV$1))-FIND(CHAR(160),SUBSTITUTE($AB68,\"{\",CHAR(160),IV$1))+1),\"\")","v":""},{"$f":"IFERROR(MID($AB68,FIND(CHAR(160),SUBSTITUTE($AB68,\"{\",CHAR(160),IW$1)),FIND(CHAR(160),SUBSTITUTE($AB68,\"}\",CHAR(160),IW$1))-FIND(CHAR(160),SUBSTITUTE($AB68,\"{\",CHAR(160),IW$1))+1),\"\")","v":""},{"$f":"IFERROR(MID($AB68,FIND(CHAR(160),SUBSTITUTE($AB68,\"{\",CHAR(160),IX$1)),FIND(CHAR(160),SUBSTITUTE($AB68,\"}\",CHAR(160),IX$1))-FIND(CHAR(160),SUBSTITUTE($AB68,\"{\",CHAR(160),IX$1))+1),\"\")","v":""},null,{"$f":"10-COUNTIF(DU68:ED68,\"\")","v":2}]
["C&I HVAC - High Performance Heat Pumps","DHP Lost Opportunity 4 Zones","DHP4L","2021-07-01","2022-06-30","Per Measure",682,0,"Per Measure",1250,0,"2021-07-01","2022-06-30","Calculated","if({Backup Heating System Fuel}=6,717,if({Backup Heating System Fuel}=0,275,165))+(4*{Measure:Quantity}-1)*if({Backup Heating System Fuel}=6,406,if({Backup Heating System Fuel}=0,194.8,142))",null,null,null,null,null,"if({Backup Heating System Fuel}=6,0.04,if({Backup Heating System Fuel}=0,0.027,0.024))+(4*{Measure:Quantity}-1)*if({Backup Heating System Fuel}=6,0.024,if({Backup Heating System Fuel}=0,0.017,0.015))","0.116+(4*{Measure:Quantity}-1)*0.064","10*(if({Backup Heating System Fuel}=1,1,if({Backup Heating System Fuel}=0,0.23,0))*2.3+(4*{Measure:Quantity}-1)*if({Backup Heating System Fuel}=1,1,if({Backup Heating System Fuel}=0,0.23,0))*1.12)","if({Backup Heating System Fuel}=2,1,if({Backup Heating System Fuel}=0,0.09,0))*2.3+(4*{Measure:Quantity}-1)*if({Backup Heating System Fuel}=2,1,if({Backup Heating System Fuel}=0,0.09,0))*1.12","if({Backup Heating System Fuel}=3,1,if({Backup Heating System Fuel}=0,0.48,0))*2.3+(4*{Measure:Quantity}-1)*if({Backup Heating System Fuel}=3,1,if({Backup Heating System Fuel}=0,0.48,0))*1.12","if({Backup Heating System Fuel}=4,1,if({Backup Heating System Fuel}=0,0,0))*2.3+(4*{Measure:Quantity}-1)*if({Backup Heating System Fuel}=4,1,if({Backup Heating System Fuel}=0,0,0))*1.12","if({Backup Heating System Fuel}=5,1,if({Backup Heating System Fuel}=0,0,0))*2.3+(4*{Measure:Quantity}-1)*if({Backup Heating System Fuel}=5,1,if({Backup Heating System Fuel}=0,0,0))*1.12",null,"2021-07-01","2022-06-30",18,1,1,0.38100000000000001,0.52500000000000002,5.0999999999999997E-2,4.2000000000000003E-2,1,1,1,0.33,1.6E-2,null,{"$f":"DU69","v":"{Measure:Quantity}"},1,{"$f":"DV69","v":"{Backup Heating System Fuel}"},0,{"$f":"DW69","v":""},null,{"$f":"DX69","v":""},null,{"$f":"DY69","v":""},null,{"$f":"DZ69","v":""},null,{"$f":"EA69","v":""},null,{"$f":"EB69","v":""},null,{"$f":"EC69","v":""},null,{"$f":"ED69","v":""},null,{"$f":"IF(AU69=6,717,IF(AU69=0,275,165))+(4*AS69-1)*IF(AU69=6,406,IF(AU69=0,194.8,142))","v":859.40000000000009},0,0,0,0,0,{"$f":"IF(AU69=6,0.04,IF(AU69=0,0.027,0.024))+(4*AS69-1)*IF(AU69=6,0.024,IF(AU69=0,0.017,0.015))","v":7.8E-2},{"$f":"0.116+(4*AS69-1)*0.064","v":0.308},{"$f":"10*(IF(AU69=1,1,IF(AU69=0,0.23,0))*2.3+(4*AS69-1)*IF(AU69=1,1,IF(AU69=0,0.23,0))*1.12)","v":13.018000000000001},{"$f":"IF(AU69=2,1,IF(AU69=0,0.09,0))*2.3+(4*AS69-1)*IF(AU69=2,1,IF(AU69=0,0.09,0))*1.12","v":0.50940000000000007},{"$f":"IF(AU69=3,1,IF(AU69=0,0.48,0))*2.3+(4*AS69-1)*IF(AU69=3,1,IF(AU69=0,0.48,0))*1.12","v":2.7168000000000001},{"$f":"IF(AU69=4,1,IF(AU69=0,0,0))*2.3+(4*AS69-1)*IF(AU69=4,1,IF(AU69=0,0,0))*1.12","v":0},{"$f":"IF(AU69=5,1,IF(AU69=0,0,0))*2.3+(4*AS69-1)*IF(AU69=5,1,IF(AU69=0,0,0))*1.12","v":0},0,null,"Res","Default DR",{"$f":"Benefits(BL69,BR69,BS69,BT69,BU69,BV69,BW69,BX69,BY69,BZ69,AE69,AH69,AI69,AJ69,AK69,AL69,AM69,AN69,AO69,AP69,CA69,CB69)","v":1351.3527417830571},1009.6844729524098,289.11131394073863,1312.5482879676467,0,345.18230558667113,0,0,0,{"$f":"SUMPRODUCT(CC69:CK69,--(CC69:CK69>0))","v":4307.8791222305226},{"$f":"-SUMPRODUCT(CC69:CK69,--(CC69:CK69<0))","v":0},null,{"$f":"682","v":682},null,null,{"$f":"CM69+CO69","v":682},{"$f":"IF(NetOrGross=\"Net\",(1-AO69+AP69),1)","v":1},{"$f":"(SUMPRODUCT(CC69:CJ69,--(CC69:CJ69>0))+CN69)*CS69/((-SUMPRODUCT(CC69:CJ69,--(CC69:CJ69<0))+MAX(CO69,CV69)+CP69+CQ69)*CS69+IF(FRIncentives=\"Yes\",CV69*(1-CS69),0))","v":3.4463032977844179},1,{"$f":"1250","v":1250},null,"Electric","y",1,{"$f":"IF(F69=\"Manual Entry\",\"Manual\",IF(G69=\"\",0,\"X=\"&SUBSTITUTE(SUBSTITUTE(SUBSTITUTE(SUBSTITUTE(SUBSTITUTE(SUBSTITUTE(SUBSTITUTE(SUBSTITUTE(SUBSTITUTE(SUBSTITUTE(SUBSTITUTE(SUBSTITUTE(G69,$ED69,$ED$2&ROW($ED69)),$EC69,$EC$2&ROW($EC69)),$EB69,$EB$2&ROW($EB69)),$EA69,$EA$2&ROW($EA69)),$DZ69,$DZ$2&ROW($DZ69)),$DY69,$DY$2&ROW($DY69)),$DX69,$DX$2&ROW($DX69)),$DW69,$DW$2&ROW($DW69)),$DV69,$DV$2&ROW($DV69)),$DU69,$DU$2&ROW($DU69)),$DT69,$DT$2&ROW($DT69)),$DS69,$DS$2&ROW($DS69))))","v":"X=682"},{"$f":"IF(I69=\"Manual Entry\",\"Manual\",IF(J69=\"\",0,\"X=\"&SUBSTITUTE(SUBSTITUTE(SUBSTITUTE(SUBSTITUTE(SUBSTITUTE(SUBSTITUTE(SUBSTITUTE(SUBSTITUTE(SUBSTITUTE(SUBSTITUTE(SUBSTITUTE(SUBSTITUTE(J69,$ED69,$ED$2&ROW($ED69)),$EC69,$EC$2&ROW($EC69)),$EB69,$EB$2&ROW($EB69)),$EA69,$EA$2&ROW($EA69)),$DZ69,$DZ$2&ROW($DZ69)),$DY69,$DY$2&ROW($DY69)),$DX69,$DX$2&ROW($DX69)),$DW69,$DW$2&ROW($DW69)),$DV69,$DV$2&ROW($DV69)),$DU69,$DU$2&ROW($DU69)),$DT69,$DT$2&ROW($DT69)),$DS69,$DS$2&ROW($DS69))))","v":"X=1250"},{"$f":"IF(O69=\"\",0,\"X=\"&SUBSTITUTE(SUBSTITUTE(SUBSTITUTE(SUBSTITUTE(SUBSTITUTE(SUBSTITUTE(SUBSTITUTE(SUBSTITUTE(SUBSTITUTE(SUBSTITUTE(SUBSTITUTE(SUBSTITUTE(O69,$ED69,$ED$2&ROW($ED69)),$EC69,$EC$2&ROW($EC69)),$EB69,$EB$2&ROW($EB69)),$EA69,$EA$2&ROW($EA69)),$DZ69,$DZ$2&ROW($DZ69)),$DY69,$DY$2&ROW($DY69)),$DX69,$DX$2&ROW($DX69)),$DW69,$DW$2&ROW($DW69)),$DV69,$DV$2&ROW($DV69)),$DU69,$DU$2&ROW($DU69)),$DT69,$DT$2&ROW($DT69)),$DS69,$DS$2&ROW($DS69)))","v":"X=if(AU69=6,717,if(AU69=0,275,165))+(4*AS69-1)*if(AU69=6,406,if(AU69=0,194.8,142))"},{"$f":"IF(P69=\"\",0,\"X=\"&SUBSTITUTE(SUBSTITUTE(SUBSTITUTE(SUBSTITUTE(SUBSTITUTE(SUBSTITUTE(SUBSTITUTE(SUBSTITUTE(SUBSTITUTE(SUBSTITUTE(SUBSTITUTE(SUBSTITUTE(P69,$ED69,$ED$2&ROW($ED69)),$EC69,$EC$2&ROW($EC69)),$EB69,$EB$2&ROW($EB69)),$EA69,$EA$2&ROW($EA69)),$DZ69,$DZ$2&ROW($DZ69)),$DY69,$DY$2&ROW($DY69)),$DX69,$DX$2&ROW($DX69)),$DW69,$DW$2&ROW($DW69)),$DV69,$DV$2&ROW($DV69)),$DU69,$DU$2&ROW($DU69)),$DT69,$DT$2&ROW($DT69)),$DS69,$DS$2&ROW($DS69)))","v":0},{"$f":"IF(Q69=\"\",0,\"X=\"&SUBSTITUTE(SUBSTITUTE(SUBSTITUTE(SUBSTITUTE(SUBSTITUTE(SUBSTITUTE(SUBSTITUTE(SUBSTITUTE(SUBSTITUTE(SUBSTITUTE(SUBSTITUTE(SUBSTITUTE(Q69,$ED69,$ED$2&ROW($ED69)),$EC69,$EC$2&ROW($EC69)),$EB69,$EB$2&ROW($EB69)),$EA69,$EA$2&ROW($EA69)),$DZ69,$DZ$2&ROW($DZ69)),$DY69,$DY$2&ROW($DY69)),$DX69,$DX$2&ROW($DX69)),$DW69,$DW$2&ROW($DW69)),$DV69,$DV$2&ROW($DV69)),$DU69,$DU$2&ROW($DU69)),$DT69,$DT$2&ROW($DT69)),$DS69,$DS$2&ROW($DS69)))","v":0},{"$f":"IF(R69=\"\",0,\"X=\"&SUBSTITUTE(SUBSTITUTE(SUBSTITUTE(SUBSTITUTE(SUBSTITUTE(SUBSTITUTE(SUBSTITUTE(SUBSTITUTE(SUBSTITUTE(SUBSTITUTE(SUBSTITUTE(SUBSTITUTE(R69,$ED69,$ED$2&ROW($ED69)),$EC69,$EC$2&ROW($EC69)),$EB69,$EB$2&ROW($EB69)),$EA69,$EA$2&ROW($EA69)),$DZ69,$DZ$2&ROW($DZ69)),$DY69,$DY$2&ROW($DY69)),$DX69,$DX$2&ROW($DX69)),$DW69,$DW$2&ROW($DW69)),$DV69,$DV$2&ROW($DV69)),$DU69,$DU$2&ROW($DU69)),$DT69,$DT$2&ROW($DT69)),$DS69,$DS$2&ROW($DS69)))","v":0},{"$f":"IF(S69=\"\",0,\"X=\"&SUBSTITUTE(SUBSTITUTE(SUBSTITUTE(SUBSTITUTE(SUBSTITUTE(SUBSTITUTE(SUBSTITUTE(SUBSTITUTE(SUBSTITUTE(SUBSTITUTE(SUBSTITUTE(SUBSTITUTE(S69,$ED69,$ED$2&ROW($ED69)),$EC69,$EC$2&ROW($EC69)),$EB69,$EB$2&ROW($EB69)),$EA69,$EA$2&ROW($EA69)),$DZ69,$DZ$2&ROW($DZ69)),$DY69,$DY$2&ROW($DY69)),$DX69,$DX$2&ROW($DX69)),$DW69,$DW$2&ROW($DW69)),$DV69,$DV$2&ROW($DV69)),$DU69,$DU$2&ROW($DU69)),$DT69,$DT$2&ROW($DT69)),$DS69,$DS$2&ROW($DS69)))","v":0},{"$f":"IF(T69=\"\",0,\"X=\"&SUBSTITUTE(SUBSTITUTE(SUBSTITUTE(SUBSTITUTE(SUBSTITUTE(SUBSTITUTE(SUBSTITUTE(SUBSTITUTE(SUBSTITUTE(SUBSTITUTE(SUBSTITUTE(SUBSTITUTE(T69,$ED69,$ED$2&ROW($ED69)),$EC69,$EC$2&ROW($EC69)),$EB69,$EB$2&ROW($EB69)),$EA69,$EA$2&ROW($EA69)),$DZ69,$DZ$2&ROW($DZ69)),$DY69,$DY$2&ROW($DY69)),$DX69,$DX$2&ROW($DX69)),$DW69,$DW$2&ROW($DW69)),$DV69,$DV$2&ROW($DV69)),$DU69,$DU$2&ROW($DU69)),$DT69,$DT$2&ROW($DT69)),$DS69,$DS$2&ROW($DS69)))","v":0},{"$f":"IF(U69=\"\",0,\"X=\"&SUBSTITUTE(SUBSTITUTE(SUBSTITUTE(SUBSTITUTE(SUBSTITUTE(SUBSTITUTE(SUBSTITUTE(SUBSTITUTE(SUBSTITUTE(SUBSTITUTE(SUBSTITUTE(SUBSTITUTE(U69,$ED69,$ED$2&ROW($ED69)),$EC69,$EC$2&ROW($EC69)),$EB69,$EB$2&ROW($EB69)),$EA69,$EA$2&ROW($EA69)),$DZ69,$DZ$2&ROW($DZ69)),$DY69,$DY$2&ROW($DY69)),$DX69,$DX$2&ROW($DX69)),$DW69,$DW$2&ROW($DW69)),$DV69,$DV$2&ROW($DV69)),$DU69,$DU$2&ROW($DU69)),$DT69,$DT$2&ROW($DT69)),$DS69,$DS$2&ROW($DS69)))","v":"X=if(AU69=6,0.04,if(AU69=0,0.027,0.024))+(4*AS69-1)*if(AU69=6,0.024,if(AU69=0,0.017,0.015))"},{"$f":"IF(V69=\"\",0,\"X=\"&SUBSTITUTE(SUBSTITUTE(SUBSTITUTE(SUBSTITUTE(SUBSTITUTE(SUBSTITUTE(SUBSTITUTE(SUBSTITUTE(SUBSTITUTE(SUBSTITUTE(SUBSTITUTE(SUBSTITUTE(V69,$ED69,$ED$2&ROW($ED69)),$EC69,$EC$2&ROW($EC69)),$EB69,$EB$2&ROW($EB69)),$EA69,$EA$2&ROW($EA69)),$DZ69,$DZ$2&ROW($DZ69)),$DY69,$DY$2&ROW($DY69)),$DX69,$DX$2&ROW($DX69)),$DW69,$DW$2&ROW($DW69)),$DV69,$DV$2&ROW($DV69)),$DU69,$DU$2&ROW($DU69)),$DT69,$DT$2&ROW($DT69)),$DS69,$DS$2&ROW($DS69)))","v":"X=0.116+(4*AS69-1)*0.064"},{"$f":"IF(W69=\"\",0,\"X=\"&SUBSTITUTE(SUBSTITUTE(SUBSTITUTE(SUBSTITUTE(SUBSTITUTE(SUBSTITUTE(SUBSTITUTE(SUBSTITUTE(SUBSTITUTE(SUBSTITUTE(SUBSTITUTE(SUBSTITUTE(W69,$ED69,$ED$2&ROW($ED69)),$EC69,$EC$2&ROW($EC69)),$EB69,$EB$2&ROW($EB69)),$EA69,$EA$2&ROW($EA69)),$DZ69,$DZ$2&ROW($DZ69)),$DY69,$DY$2&ROW($DY69)),$DX69,$DX$2&ROW($DX69)),$DW69,$DW$2&ROW($DW69)),$DV69,$DV$2&ROW($DV69)),$DU69,$DU$2&ROW($DU69)),$DT69,$DT$2&ROW($DT69)),$DS69,$DS$2&ROW($DS69)))","v":"X=10*(if(AU69=1,1,if(AU69=0,0.23,0))*2.3+(4*AS69-1)*if(AU69=1,1,if(AU69=0,0.23,0))*1.12)"},{"$f":"IF(X69=\"\",0,\"X=\"&SUBSTITUTE(SUBSTITUTE(SUBSTITUTE(SUBSTITUTE(SUBSTITUTE(SUBSTITUTE(SUBSTITUTE(SUBSTITUTE(SUBSTITUTE(SUBSTITUTE(SUBSTITUTE(SUBSTITUTE(X69,$ED69,$ED$2&ROW($ED69)),$EC69,$EC$2&ROW($EC69)),$EB69,$EB$2&ROW($EB69)),$EA69,$EA$2&ROW($EA69)),$DZ69,$DZ$2&ROW($DZ69)),$DY69,$DY$2&ROW($DY69)),$DX69,$DX$2&ROW($DX69)),$DW69,$DW$2&ROW($DW69)),$DV69,$DV$2&ROW($DV69)),$DU69,$DU$2&ROW($DU69)),$DT69,$DT$2&ROW($DT69)),$DS69,$DS$2&ROW($DS69)))","v":"X=if(AU69=2,1,if(AU69=0,0.09,0))*2.3+(4*AS69-1)*if(AU69=2,1,if(AU69=0,0.09,0))*1.12"},{"$f":"IF(Y69=\"\",0,\"X=\"&SUBSTITUTE(SUBSTITUTE(SUBSTITUTE(SUBSTITUTE(SUBSTITUTE(SUBSTITUTE(SUBSTITUTE(SUBSTITUTE(SUBSTITUTE(SUBSTITUTE(SUBSTITUTE(SUBSTITUTE(Y69,$ED69,$ED$2&ROW($ED69)),$EC69,$EC$2&ROW($EC69)),$EB69,$EB$2&ROW($EB69)),$EA69,$EA$2&ROW($EA69)),$DZ69,$DZ$2&ROW($DZ69)),$DY69,$DY$2&ROW($DY69)),$DX69,$DX$2&ROW($DX69)),$DW69,$DW$2&ROW($DW69)),$DV69,$DV$2&ROW($DV69)),$DU69,$DU$2&ROW($DU69)),$DT69,$DT$2&ROW($DT69)),$DS69,$DS$2&ROW($DS69)))","v":"X=if(AU69=3,1,if(AU69=0,0.48,0))*2.3+(4*AS69-1)*if(AU69=3,1,if(AU69=0,0.48,0))*1.12"},{"$f":"IF(Z69=\"\",0,\"X=\"&SUBSTITUTE(SUBSTITUTE(SUBSTITUTE(SUBSTITUTE(SUBSTITUTE(SUBSTITUTE(SUBSTITUTE(SUBSTITUTE(SUBSTITUTE(SUBSTITUTE(SUBSTITUTE(SUBSTITUTE(Z69,$ED69,$ED$2&ROW($ED69)),$EC69,$EC$2&ROW($EC69)),$EB69,$EB$2&ROW($EB69)),$EA69,$EA$2&ROW($EA69)),$DZ69,$DZ$2&ROW($DZ69)),$DY69,$DY$2&ROW($DY69)),$DX69,$DX$2&ROW($DX69)),$DW69,$DW$2&ROW($DW69)),$DV69,$DV$2&ROW($DV69)),$DU69,$DU$2&ROW($DU69)),$DT69,$DT$2&ROW($DT69)),$DS69,$DS$2&ROW($DS69)))","v":"X=if(AU69=4,1,if(AU69=0,0,0))*2.3+(4*AS69-1)*if(AU69=4,1,if(AU69=0,0,0))*1.12"},{"$f":"IF(AA69=\"\",0,\"X=\"&SUBSTITUTE(SUBSTITUTE(SUBSTITUTE(SUBSTITUTE(SUBSTITUTE(SUBSTITUTE(SUBSTITUTE(SUBSTITUTE(SUBSTITUTE(SUBSTITUTE(SUBSTITUTE(SUBSTITUTE(AA69,$ED69,$ED$2&ROW($ED69)),$EC69,$EC$2&ROW($EC69)),$EB69,$EB$2&ROW($EB69)),$EA69,$EA$2&ROW($EA69)),$DZ69,$DZ$2&ROW($DZ69)),$DY69,$DY$2&ROW($DY69)),$DX69,$DX$2&ROW($DX69)),$DW69,$DW$2&ROW($DW69)),$DV69,$DV$2&ROW($DV69)),$DU69,$DU$2&ROW($DU69)),$DT69,$DT$2&ROW($DT69)),$DS69,$DS$2&ROW($DS69)))","v":"X=if(AU69=5,1,if(AU69=0,0,0))*2.3+(4*AS69-1)*if(AU69=5,1,if(AU69=0,0,0))*1.12"},{"$f":"IF(AB69=\"\",0,\"X=\"&SUBSTITUTE(SUBSTITUTE(SUBSTITUTE(SUBSTITUTE(SUBSTITUTE(SUBSTITUTE(SUBSTITUTE(SUBSTITUTE(SUBSTITUTE(SUBSTITUTE(SUBSTITUTE(SUBSTITUTE(AB69,$ED69,$ED$2&ROW($ED69)),$EC69,$EC$2&ROW($EC69)),$EB69,$EB$2&ROW($EB69)),$EA69,$EA$2&ROW($EA69)),$DZ69,$DZ$2&ROW($DZ69)),$DY69,$DY$2&ROW($DY69)),$DX69,$DX$2&ROW($DX69)),$DW69,$DW$2&ROW($DW69)),$DV69,$DV$2&ROW($DV69)),$DU69,$DU$2&ROW($DU69)),$DT69,$DT$2&ROW($DT69)),$DS69,$DS$2&ROW($DS69)))","v":0},null,null,"{Factor:WinterCF}","{Factor:SummerCF}",{"$f":"IFERROR(INDEX($EG69:$IV69,MATCH(0,COUNTIF($DR69:DT69,$EG69:$IV69),0)),\"\")","v":"{Measure:Quantity}"},{"$f":"IFERROR(INDEX($EG69:$IV69,MATCH(0,COUNTIF($DR69:DU69,$EG69:$IV69),0)),\"\")","v":"{Backup Heating System Fuel}"},{"$f":"IFERROR(INDEX($EG69:$IV69,MATCH(0,COUNTIF($DR69:DV69,$EG69:$IV69),0)),\"\")","v":""},{"$f":"IFERROR(INDEX($EG69:$IV69,MATCH(0,COUNTIF($DR69:DW69,$EG69:$IV69),0)),\"\")","v":""},{"$f":"IFERROR(INDEX($EG69:$IV69,MATCH(0,COUNTIF($DR69:DX69,$EG69:$IV69),0)),\"\")","v":""},{"$f":"IFERROR(INDEX($EG69:$IV69,MATCH(0,COUNTIF($DR69:DY69,$EG69:$IV69),0)),\"\")","v":""},{"$f":"IFERROR(INDEX($EG69:$IV69,MATCH(0,COUNTIF($DR69:DZ69,$EG69:$IV69),0)),\"\")","v":""},{"$f":"IFERROR(INDEX($EG69:$IV69,MATCH(0,COUNTIF($DR69:EA69,$EG69:$IV69),0)),\"\")","v":""},{"$f":"IFERROR(INDEX($EG69:$IV69,MATCH(0,COUNTIF($DR69:EB69,$EG69:$IV69),0)),\"\")","v":""},{"$f":"IFERROR(INDEX($EG69:$IV69,MATCH(0,COUNTIF($DR69:EC69,$EG69:$IV69),0)),\"\")","v":""},null,null,{"$f":"IFERROR(MID($G69,FIND(CHAR(160),SUBSTITUTE($G69,\"{\",CHAR(160),EG$1)),FIND(CHAR(160),SUBSTITUTE($G69,\"}\",CHAR(160),EG$1))-FIND(CHAR(160),SUBSTITUTE($G69,\"{\",CHAR(160),EG$1))+1),\"\")","v":""},{"$f":"IFERROR(MID($G69,FIND(CHAR(160),SUBSTITUTE($G69,\"{\",CHAR(160),EH$1)),FIND(CHAR(160),SUBSTITUTE($G69,\"}\",CHAR(160),EH$1))-FIND(CHAR(160),SUBSTITUTE($G69,\"{\",CHAR(160),EH$1))+1),\"\")","v":""},{"$f":"IFERROR(MID($G69,FIND(CHAR(160),SUBSTITUTE($G69,\"{\",CHAR(160),EI$1)),FIND(CHAR(160),SUBSTITUTE($G69,\"}\",CHAR(160),EI$1))-FIND(CHAR(160),SUBSTITUTE($G69,\"{\",CHAR(160),EI$1))+1),\"\")","v":""},{"$f":"IFERROR(MID($G69,FIND(CHAR(160),SUBSTITUTE($G69,\"{\",CHAR(160),EJ$1)),FIND(CHAR(160),SUBSTITUTE($G69,\"}\",CHAR(160),EJ$1))-FIND(CHAR(160),SUBSTITUTE($G69,\"{\",CHAR(160),EJ$1))+1),\"\")","v":""},{"$f":"IFERROR(MID($G69,FIND(CHAR(160),SUBSTITUTE($G69,\"{\",CHAR(160),EK$1)),FIND(CHAR(160),SUBSTITUTE($G69,\"}\",CHAR(160),EK$1))-FIND(CHAR(160),SUBSTITUTE($G69,\"{\",CHAR(160),EK$1))+1),\"\")","v":""},{"$f":"IFERROR(MID($G69,FIND(CHAR(160),SUBSTITUTE($G69,\"{\",CHAR(160),EL$1)),FIND(CHAR(160),SUBSTITUTE($G69,\"}\",CHAR(160),EL$1))-FIND(CHAR(160),SUBSTITUTE($G69,\"{\",CHAR(160),EL$1))+1),\"\")","v":""},{"$f":"IFERROR(MID($G69,FIND(CHAR(160),SUBSTITUTE($G69,\"{\",CHAR(160),EM$1)),FIND(CHAR(160),SUBSTITUTE($G69,\"}\",CHAR(160),EM$1))-FIND(CHAR(160),SUBSTITUTE($G69,\"{\",CHAR(160),EM$1))+1),\"\")","v":""},{"$f":"IFERROR(MID($G69,FIND(CHAR(160),SUBSTITUTE($G69,\"{\",CHAR(160),EN$1)),FIND(CHAR(160),SUBSTITUTE($G69,\"}\",CHAR(160),EN$1))-FIND(CHAR(160),SUBSTITUTE($G69,\"{\",CHAR(160),EN$1))+1),\"\")","v":""},{"$f":"IFERROR(MID($G69,FIND(CHAR(160),SUBSTITUTE($G69,\"{\",CHAR(160),EO$1)),FIND(CHAR(160),SUBSTITUTE($G69,\"}\",CHAR(160),EO$1))-FIND(CHAR(160),SUBSTITUTE($G69,\"{\",CHAR(160),EO$1))+1),\"\")","v":""},{"$f":"IFERROR(MID($G69,FIND(CHAR(160),SUBSTITUTE($G69,\"{\",CHAR(160),EP$1)),FIND(CHAR(160),SUBSTITUTE($G69,\"}\",CHAR(160),EP$1))-FIND(CHAR(160),SUBSTITUTE($G69,\"{\",CHAR(160),EP$1))+1),\"\")","v":""},{"$f":"IFERROR(MID($J69,FIND(CHAR(160),SUBSTITUTE($J69,\"{\",CHAR(160),EQ$1)),FIND(CHAR(160),SUBSTITUTE($J69,\"}\",CHAR(160),EQ$1))-FIND(CHAR(160),SUBSTITUTE($J69,\"{\",CHAR(160),EQ$1))+1),\"\")","v":""},{"$f":"IFERROR(MID($J69,FIND(CHAR(160),SUBSTITUTE($J69,\"{\",CHAR(160),ER$1)),FIND(CHAR(160),SUBSTITUTE($J69,\"}\",CHAR(160),ER$1))-FIND(CHAR(160),SUBSTITUTE($J69,\"{\",CHAR(160),ER$1))+1),\"\")","v":""},{"$f":"IFERROR(MID($J69,FIND(CHAR(160),SUBSTITUTE($J69,\"{\",CHAR(160),ES$1)),FIND(CHAR(160),SUBSTITUTE($J69,\"}\",CHAR(160),ES$1))-FIND(CHAR(160),SUBSTITUTE($J69,\"{\",CHAR(160),ES$1))+1),\"\")","v":""},{"$f":"IFERROR(MID($J69,FIND(CHAR(160),SUBSTITUTE($J69,\"{\",CHAR(160),ET$1)),FIND(CHAR(160),SUBSTITUTE($J69,\"}\",CHAR(160),ET$1))-FIND(CHAR(160),SUBSTITUTE($J69,\"{\",CHAR(160),ET$1))+1),\"\")","v":""},{"$f":"IFERROR(MID($J69,FIND(CHAR(160),SUBSTITUTE($J69,\"{\",CHAR(160),EU$1)),FIND(CHAR(160),SUBSTITUTE($J69,\"}\",CHAR(160),EU$1))-FIND(CHAR(160),SUBSTITUTE($J69,\"{\",CHAR(160),EU$1))+1),\"\")","v":""},{"$f":"IFERROR(MID($J69,FIND(CHAR(160),SUBSTITUTE($J69,\"{\",CHAR(160),EV$1)),FIND(CHAR(160),SUBSTITUTE($J69,\"}\",CHAR(160),EV$1))-FIND(CHAR(160),SUBSTITUTE($J69,\"{\",CHAR(160),EV$1))+1),\"\")","v":""},{"$f":"IFERROR(MID($J69,FIND(CHAR(160),SUBSTITUTE($J69,\"{\",CHAR(160),EW$1)),FIND(CHAR(160),SUBSTITUTE($J69,\"}\",CHAR(160),EW$1))-FIND(CHAR(160),SUBSTITUTE($J69,\"{\",CHAR(160),EW$1))+1),\"\")","v":""},{"$f":"IFERROR(MID($J69,FIND(CHAR(160),SUBSTITUTE($J69,\"{\",CHAR(160),EX$1)),FIND(CHAR(160),SUBSTITUTE($J69,\"}\",CHAR(160),EX$1))-FIND(CHAR(160),SUBSTITUTE($J69,\"{\",CHAR(160),EX$1))+1),\"\")","v":""},{"$f":"IFERROR(MID($J69,FIND(CHAR(160),SUBSTITUTE($J69,\"{\",CHAR(160),EY$1)),FIND(CHAR(160),SUBSTITUTE($J69,\"}\",CHAR(160),EY$1))-FIND(CHAR(160),SUBSTITUTE($J69,\"{\",CHAR(160),EY$1))+1),\"\")","v":""},{"$f":"IFERROR(MID($J69,FIND(CHAR(160),SUBSTITUTE($J69,\"{\",CHAR(160),EZ$1)),FIND(CHAR(160),SUBSTITUTE($J69,\"}\",CHAR(160),EZ$1))-FIND(CHAR(160),SUBSTITUTE($J69,\"{\",CHAR(160),EZ$1))+1),\"\")","v":""},{"$f":"IFERROR(MID($J69,FIND(CHAR(160),SUBSTITUTE($J69,\"{\",CHAR(160),FA$1)),FIND(CHAR(160),SUBSTITUTE($J69,\"}\",CHAR(160),FA$1))-FIND(CHAR(160),SUBSTITUTE($J69,\"{\",CHAR(160),FA$1))+1),\"\")","v":""},{"$f":"IFERROR(MID($J69,FIND(CHAR(160),SUBSTITUTE($J69,\"{\",CHAR(160),FB$1)),FIND(CHAR(160),SUBSTITUTE($J69,\"}\",CHAR(160),FB$1))-FIND(CHAR(160),SUBSTITUTE($J69,\"{\",CHAR(160),FB$1))+1),\"\")","v":""},{"$f":"IFERROR(MID($O69,FIND(CHAR(160),SUBSTITUTE($O69,\"{\",CHAR(160),FC$1)),FIND(CHAR(160),SUBSTITUTE($O69,\"}\",CHAR(160),FC$1))-FIND(CHAR(160),SUBSTITUTE($O69,\"{\",CHAR(160),FC$1))+1),\"\")","v":"{Measure:Quantity}"},{"$f":"IFERROR(MID($O69,FIND(CHAR(160),SUBSTITUTE($O69,\"{\",CHAR(160),FD$1)),FIND(CHAR(160),SUBSTITUTE($O69,\"}\",CHAR(160),FD$1))-FIND(CHAR(160),SUBSTITUTE($O69,\"{\",CHAR(160),FD$1))+1),\"\")","v":"{Backup Heating System Fuel}"},{"$f":"IFERROR(MID($O69,FIND(CHAR(160),SUBSTITUTE($O69,\"{\",CHAR(160),FE$1)),FIND(CHAR(160),SUBSTITUTE($O69,\"}\",CHAR(160),FE$1))-FIND(CHAR(160),SUBSTITUTE($O69,\"{\",CHAR(160),FE$1))+1),\"\")","v":"{Backup Heating System Fuel}"},{"$f":"IFERROR(MID($O69,FIND(CHAR(160),SUBSTITUTE($O69,\"{\",CHAR(160),FF$1)),FIND(CHAR(160),SUBSTITUTE($O69,\"}\",CHAR(160),FF$1))-FIND(CHAR(160),SUBSTITUTE($O69,\"{\",CHAR(160),FF$1))+1),\"\")","v":""},{"$f":"IFERROR(MID($O69,FIND(CHAR(160),SUBSTITUTE($O69,\"{\",CHAR(160),FG$1)),FIND(CHAR(160),SUBSTITUTE($O69,\"}\",CHAR(160),FG$1))-FIND(CHAR(160),SUBSTITUTE($O69,\"{\",CHAR(160),FG$1))+1),\"\")","v":""},{"$f":"IFERROR(MID($O69,FIND(CHAR(160),SUBSTITUTE($O69,\"{\",CHAR(160),FH$1)),FIND(CHAR(160),SUBSTITUTE($O69,\"}\",CHAR(160),FH$1))-FIND(CHAR(160),SUBSTITUTE($O69,\"{\",CHAR(160),FH$1))+1),\"\")","v":""},{"$f":"IFERROR(MID($O69,FIND(CHAR(160),SUBSTITUTE($O69,\"{\",CHAR(160),FI$1)),FIND(CHAR(160),SUBSTITUTE($O69,\"}\",CHAR(160),FI$1))-FIND(CHAR(160),SUBSTITUTE($O69,\"{\",CHAR(160),FI$1))+1),\"\")","v":""},{"$f":"IFERROR(MID($O69,FIND(CHAR(160),SUBSTITUTE($O69,\"{\",CHAR(160),FJ$1)),FIND(CHAR(160),SUBSTITUTE($O69,\"}\",CHAR(160),FJ$1))-FIND(CHAR(160),SUBSTITUTE($O69,\"{\",CHAR(160),FJ$1))+1),\"\")","v":""},{"$f":"IFERROR(MID($O69,FIND(CHAR(160),SUBSTITUTE($O69,\"{\",CHAR(160),FK$1)),FIND(CHAR(160),SUBSTITUTE($O69,\"}\",CHAR(160),FK$1))-FIND(CHAR(160),SUBSTITUTE($O69,\"{\",CHAR(160),FK$1))+1),\"\")","v":"{Backup Heating System Fuel}"},{"$f":"IFERROR(MID($O69,FIND(CHAR(160),SUBSTITUTE($O69,\"{\",CHAR(160),FL$1)),FIND(CHAR(160),SUBSTITUTE($O69,\"}\",CHAR(160),FL$1))-FIND(CHAR(160),SUBSTITUTE($O69,\"{\",CHAR(160),FL$1))+1),\"\")","v":"{Backup Heating System Fuel}"},{"$f":"IFERROR(MID($R69,FIND(CHAR(160),SUBSTITUTE($R69,\"{\",CHAR(160),FM$1)),FIND(CHAR(160),SUBSTITUTE($R69,\"}\",CHAR(160),FM$1))-FIND(CHAR(160),SUBSTITUTE($R69,\"{\",CHAR(160),FM$1))+1),\"\")","v":""},{"$f":"IFERROR(MID($R69,FIND(CHAR(160),SUBSTITUTE($R69,\"{\",CHAR(160),FN$1)),FIND(CHAR(160),SUBSTITUTE($R69,\"}\",CHAR(160),FN$1))-FIND(CHAR(160),SUBSTITUTE($R69,\"{\",CHAR(160),FN$1))+1),\"\")","v":""},{"$f":"IFERROR(MID($R69,FIND(CHAR(160),SUBSTITUTE($R69,\"{\",CHAR(160),FO$1)),FIND(CHAR(160),SUBSTITUTE($R69,\"}\",CHAR(160),FO$1))-FIND(CHAR(160),SUBSTITUTE($R69,\"{\",CHAR(160),FO$1))+1),\"\")","v":""},{"$f":"IFERROR(MID($R69,FIND(CHAR(160),SUBSTITUTE($R69,\"{\",CHAR(160),FP$1)),FIND(CHAR(160),SUBSTITUTE($R69,\"}\",CHAR(160),FP$1))-FIND(CHAR(160),SUBSTITUTE($R69,\"{\",CHAR(160),FP$1))+1),\"\")","v":""},{"$f":"IFERROR(MID($R69,FIND(CHAR(160),SUBSTITUTE($R69,\"{\",CHAR(160),FQ$1)),FIND(CHAR(160),SUBSTITUTE($R69,\"}\",CHAR(160),FQ$1))-FIND(CHAR(160),SUBSTITUTE($R69,\"{\",CHAR(160),FQ$1))+1),\"\")","v":""},{"$f":"IFERROR(MID($R69,FIND(CHAR(160),SUBSTITUTE($R69,\"{\",CHAR(160),FR$1)),FIND(CHAR(160),SUBSTITUTE($R69,\"}\",CHAR(160),FR$1))-FIND(CHAR(160),SUBSTITUTE($R69,\"{\",CHAR(160),FR$1))+1),\"\")","v":""},{"$f":"IFERROR(MID($R69,FIND(CHAR(160),SUBSTITUTE($R69,\"{\",CHAR(160),FS$1)),FIND(CHAR(160),SUBSTITUTE($R69,\"}\",CHAR(160),FS$1))-FIND(CHAR(160),SUBSTITUTE($R69,\"{\",CHAR(160),FS$1))+1),\"\")","v":""},{"$f":"IFERROR(MID($R69,FIND(CHAR(160),SUBSTITUTE($R69,\"{\",CHAR(160),FT$1)),FIND(CHAR(160),SUBSTITUTE($R69,\"}\",CHAR(160),FT$1))-FIND(CHAR(160),SUBSTITUTE($R69,\"{\",CHAR(160),FT$1))+1),\"\")","v":""},{"$f":"IFERROR(MID($R69,FIND(CHAR(160),SUBSTITUTE($R69,\"{\",CHAR(160),FU$1)),FIND(CHAR(160),SUBSTITUTE($R69,\"}\",CHAR(160),FU$1))-FIND(CHAR(160),SUBSTITUTE($R69,\"{\",CHAR(160),FU$1))+1),\"\")","v":""},{"$f":"IFERROR(MID($R69,FIND(CHAR(160),SUBSTITUTE($R69,\"{\",CHAR(160),FV$1)),FIND(CHAR(160),SUBSTITUTE($R69,\"}\",CHAR(160),FV$1))-FIND(CHAR(160),SUBSTITUTE($R69,\"{\",CHAR(160),FV$1))+1),\"\")","v":""},{"$f":"IFERROR(MID($U69,FIND(CHAR(160),SUBSTITUTE($U69,\"{\",CHAR(160),FW$1)),FIND(CHAR(160),SUBSTITUTE($U69,\"}\",CHAR(160),FW$1))-FIND(CHAR(160),SUBSTITUTE($U69,\"{\",CHAR(160),FW$1))+1),\"\")","v":"{Measure:Quantity}"},{"$f":"IFERROR(MID($U69,FIND(CHAR(160),SUBSTITUTE($U69,\"{\",CHAR(160),FX$1)),FIND(CHAR(160),SUBSTITUTE($U69,\"}\",CHAR(160),FX$1))-FIND(CHAR(160),SUBSTITUTE($U69,\"{\",CHAR(160),FX$1))+1),\"\")","v":"{Backup Heating System Fuel}"},{"$f":"IFERROR(MID($U69,FIND(CHAR(160),SUBSTITUTE($U69,\"{\",CHAR(160),FY$1)),FIND(CHAR(160),SUBSTITUTE($U69,\"}\",CHAR(160),FY$1))-FIND(CHAR(160),SUBSTITUTE($U69,\"{\",CHAR(160),FY$1))+1),\"\")","v":"{Backup Heating System Fuel}"},{"$f":"IFERROR(MID($U69,FIND(CHAR(160),SUBSTITUTE($U69,\"{\",CHAR(160),FZ$1)),FIND(CHAR(160),SUBSTITUTE($U69,\"}\",CHAR(160),FZ$1))-FIND(CHAR(160),SUBSTITUTE($U69,\"{\",CHAR(160),FZ$1))+1),\"\")","v":""},{"$f":"IFERROR(MID($U69,FIND(CHAR(160),SUBSTITUTE($U69,\"{\",CHAR(160),GA$1)),FIND(CHAR(160),SUBSTITUTE($U69,\"}\",CHAR(160),GA$1))-FIND(CHAR(160),SUBSTITUTE($U69,\"{\",CHAR(160),GA$1))+1),\"\")","v":""},{"$f":"IFERROR(MID($U69,FIND(CHAR(160),SUBSTITUTE($U69,\"{\",CHAR(160),GB$1)),FIND(CHAR(160),SUBSTITUTE($U69,\"}\",CHAR(160),GB$1))-FIND(CHAR(160),SUBSTITUTE($U69,\"{\",CHAR(160),GB$1))+1),\"\")","v":""},{"$f":"IFERROR(MID($U69,FIND(CHAR(160),SUBSTITUTE($U69,\"{\",CHAR(160),GC$1)),FIND(CHAR(160),SUBSTITUTE($U69,\"}\",CHAR(160),GC$1))-FIND(CHAR(160),SUBSTITUTE($U69,\"{\",CHAR(160),GC$1))+1),\"\")","v":""},{"$f":"IFERROR(MID($U69,FIND(CHAR(160),SUBSTITUTE($U69,\"{\",CHAR(160),GD$1)),FIND(CHAR(160),SUBSTITUTE($U69,\"}\",CHAR(160),GD$1))-FIND(CHAR(160),SUBSTITUTE($U69,\"{\",CHAR(160),GD$1))+1),\"\")","v":""},{"$f":"IFERROR(MID($U69,FIND(CHAR(160),SUBSTITUTE($U69,\"{\",CHAR(160),GE$1)),FIND(CHAR(160),SUBSTITUTE($U69,\"}\",CHAR(160),GE$1))-FIND(CHAR(160),SUBSTITUTE($U69,\"{\",CHAR(160),GE$1))+1),\"\")","v":"{Backup Heating System Fuel}"},{"$f":"IFERROR(MID($U69,FIND(CHAR(160),SUBSTITUTE($U69,\"{\",CHAR(160),GF$1)),FIND(CHAR(160),SUBSTITUTE($U69,\"}\",CHAR(160),GF$1))-FIND(CHAR(160),SUBSTITUTE($U69,\"{\",CHAR(160),GF$1))+1),\"\")","v":"{Backup Heating System Fuel}"},{"$f":"IFERROR(MID($V69,FIND(CHAR(160),SUBSTITUTE($V69,\"{\",CHAR(160),GG$1)),FIND(CHAR(160),SUBSTITUTE($V69,\"}\",CHAR(160),GG$1))-FIND(CHAR(160),SUBSTITUTE($V69,\"{\",CHAR(160),GG$1))+1),\"\")","v":""},{"$f":"IFERROR(MID($V69,FIND(CHAR(160),SUBSTITUTE($V69,\"{\",CHAR(160),GH$1)),FIND(CHAR(160),SUBSTITUTE($V69,\"}\",CHAR(160),GH$1))-FIND(CHAR(160),SUBSTITUTE($V69,\"{\",CHAR(160),GH$1))+1),\"\")","v":""},{"$f":"IFERROR(MID($V69,FIND(CHAR(160),SUBSTITUTE($V69,\"{\",CHAR(160),GI$1)),FIND(CHAR(160),SUBSTITUTE($V69,\"}\",CHAR(160),GI$1))-FIND(CHAR(160),SUBSTITUTE($V69,\"{\",CHAR(160),GI$1))+1),\"\")","v":""},{"$f":"IFERROR(MID($V69,FIND(CHAR(160),SUBSTITUTE($V69,\"{\",CHAR(160),GJ$1)),FIND(CHAR(160),SUBSTITUTE($V69,\"}\",CHAR(160),GJ$1))-FIND(CHAR(160),SUBSTITUTE($V69,\"{\",CHAR(160),GJ$1))+1),\"\")","v":""},{"$f":"IFERROR(MID($V69,FIND(CHAR(160),SUBSTITUTE($V69,\"{\",CHAR(160),GK$1)),FIND(CHAR(160),SUBSTITUTE($V69,\"}\",CHAR(160),GK$1))-FIND(CHAR(160),SUBSTITUTE($V69,\"{\",CHAR(160),GK$1))+1),\"\")","v":""},{"$f":"IFERROR(MID($V69,FIND(CHAR(160),SUBSTITUTE($V69,\"{\",CHAR(160),GL$1)),FIND(CHAR(160),SUBSTITUTE($V69,\"}\",CHAR(160),GL$1))-FIND(CHAR(160),SUBSTITUTE($V69,\"{\",CHAR(160),GL$1))+1),\"\")","v":""},{"$f":"IFERROR(MID($V69,FIND(CHAR(160),SUBSTITUTE($V69,\"{\",CHAR(160),GM$1)),FIND(CHAR(160),SUBSTITUTE($V69,\"}\",CHAR(160),GM$1))-FIND(CHAR(160),SUBSTITUTE($V69,\"{\",CHAR(160),GM$1))+1),\"\")","v":""},{"$f":"IFERROR(MID($V69,FIND(CHAR(160),SUBSTITUTE($V69,\"{\",CHAR(160),GN$1)),FIND(CHAR(160),SUBSTITUTE($V69,\"}\",CHAR(160),GN$1))-FIND(CHAR(160),SUBSTITUTE($V69,\"{\",CHAR(160),GN$1))+1),\"\")","v":""},{"$f":"IFERROR(MID($V69,FIND(CHAR(160),SUBSTITUTE($V69,\"{\",CHAR(160),GO$1)),FIND(CHAR(160),SUBSTITUTE($V69,\"}\",CHAR(160),GO$1))-FIND(CHAR(160),SUBSTITUTE($V69,\"{\",CHAR(160),GO$1))+1),\"\")","v":"{Measure:Quantity}"},{"$f":"IFERROR(MID($V69,FIND(CHAR(160),SUBSTITUTE($V69,\"{\",CHAR(160),GP$1)),FIND(CHAR(160),SUBSTITUTE($V69,\"}\",CHAR(160),GP$1))-FIND(CHAR(160),SUBSTITUTE($V69,\"{\",CHAR(160),GP$1))+1),\"\")","v":""},{"$f":"IFERROR(MID($W69,FIND(CHAR(160),SUBSTITUTE($W69,\"{\",CHAR(160),GQ$1)),FIND(CHAR(160),SUBSTITUTE($W69,\"}\",CHAR(160),GQ$1))-FIND(CHAR(160),SUBSTITUTE($W69,\"{\",CHAR(160),GQ$1))+1),\"\")","v":"{Measure:Quantity}"},{"$f":"IFERROR(MID($W69,FIND(CHAR(160),SUBSTITUTE($W69,\"{\",CHAR(160),GR$1)),FIND(CHAR(160),SUBSTITUTE($W69,\"}\",CHAR(160),GR$1))-FIND(CHAR(160),SUBSTITUTE($W69,\"{\",CHAR(160),GR$1))+1),\"\")","v":"{Backup Heating System Fuel}"},{"$f":"IFERROR(MID($W69,FIND(CHAR(160),SUBSTITUTE($W69,\"{\",CHAR(160),GS$1)),FIND(CHAR(160),SUBSTITUTE($W69,\"}\",CHAR(160),GS$1))-FIND(CHAR(160),SUBSTITUTE($W69,\"{\",CHAR(160),GS$1))+1),\"\")","v":"{Backup Heating System Fuel}"},{"$f":"IFERROR(MID($W69,FIND(CHAR(160),SUBSTITUTE($W69,\"{\",CHAR(160),GT$1)),FIND(CHAR(160),SUBSTITUTE($W69,\"}\",CHAR(160),GT$1))-FIND(CHAR(160),SUBSTITUTE($W69,\"{\",CHAR(160),GT$1))+1),\"\")","v":""},{"$f":"IFERROR(MID($W69,FIND(CHAR(160),SUBSTITUTE($W69,\"{\",CHAR(160),GU$1)),FIND(CHAR(160),SUBSTITUTE($W69,\"}\",CHAR(160),GU$1))-FIND(CHAR(160),SUBSTITUTE($W69,\"{\",CHAR(160),GU$1))+1),\"\")","v":""},{"$f":"IFERROR(MID($W69,FIND(CHAR(160),SUBSTITUTE($W69,\"{\",CHAR(160),GV$1)),FIND(CHAR(160),SUBSTITUTE($W69,\"}\",CHAR(160),GV$1))-FIND(CHAR(160),SUBSTITUTE($W69,\"{\",CHAR(160),GV$1))+1),\"\")","v":""},{"$f":"IFERROR(MID($W69,FIND(CHAR(160),SUBSTITUTE($W69,\"{\",CHAR(160),GW$1)),FIND(CHAR(160),SUBSTITUTE($W69,\"}\",CHAR(160),GW$1))-FIND(CHAR(160),SUBSTITUTE($W69,\"{\",CHAR(160),GW$1))+1),\"\")","v":""},{"$f":"IFERROR(MID($W69,FIND(CHAR(160),SUBSTITUTE($W69,\"{\",CHAR(160),GX$1)),FIND(CHAR(160),SUBSTITUTE($W69,\"}\",CHAR(160),GX$1))-FIND(CHAR(160),SUBSTITUTE($W69,\"{\",CHAR(160),GX$1))+1),\"\")","v":""},{"$f":"IFERROR(MID($W69,FIND(CHAR(160),SUBSTITUTE($W69,\"{\",CHAR(160),GY$1)),FIND(CHAR(160),SUBSTITUTE($W69,\"}\",CHAR(160),GY$1))-FIND(CHAR(160),SUBSTITUTE($W69,\"{\",CHAR(160),GY$1))+1),\"\")","v":"{Backup Heating System Fuel}"},{"$f":"IFERROR(MID($W69,FIND(CHAR(160),SUBSTITUTE($W69,\"{\",CHAR(160),GZ$1)),FIND(CHAR(160),SUBSTITUTE($W69,\"}\",CHAR(160),GZ$1))-FIND(CHAR(160),SUBSTITUTE($W69,\"{\",CHAR(160),GZ$1))+1),\"\")","v":"{Backup Heating System Fuel}"},{"$f":"IFERROR(MID($X69,FIND(CHAR(160),SUBSTITUTE($X69,\"{\",CHAR(160),HA$1)),FIND(CHAR(160),SUBSTITUTE($X69,\"}\",CHAR(160),HA$1))-FIND(CHAR(160),SUBSTITUTE($X69,\"{\",CHAR(160),HA$1))+1),\"\")","v":"{Measure:Quantity}"},{"$f":"IFERROR(MID($X69,FIND(CHAR(160),SUBSTITUTE($X69,\"{\",CHAR(160),HB$1)),FIND(CHAR(160),SUBSTITUTE($X69,\"}\",CHAR(160),HB$1))-FIND(CHAR(160),SUBSTITUTE($X69,\"{\",CHAR(160),HB$1))+1),\"\")","v":"{Backup Heating System Fuel}"},{"$f":"IFERROR(MID($X69,FIND(CHAR(160),SUBSTITUTE($X69,\"{\",CHAR(160),HC$1)),FIND(CHAR(160),SUBSTITUTE($X69,\"}\",CHAR(160),HC$1))-FIND(CHAR(160),SUBSTITUTE($X69,\"{\",CHAR(160),HC$1))+1),\"\")","v":"{Backup Heating System Fuel}"},{"$f":"IFERROR(MID($X69,FIND(CHAR(160),SUBSTITUTE($X69,\"{\",CHAR(160),HD$1)),FIND(CHAR(160),SUBSTITUTE($X69,\"}\",CHAR(160),HD$1))-FIND(CHAR(160),SUBSTITUTE($X69,\"{\",CHAR(160),HD$1))+1),\"\")","v":""},{"$f":"IFERROR(MID($X69,FIND(CHAR(160),SUBSTITUTE($X69,\"{\",CHAR(160),HE$1)),FIND(CHAR(160),SUBSTITUTE($X69,\"}\",CHAR(160),HE$1))-FIND(CHAR(160),SUBSTITUTE($X69,\"{\",CHAR(160),HE$1))+1),\"\")","v":""},{"$f":"IFERROR(MID($X69,FIND(CHAR(160),SUBSTITUTE($X69,\"{\",CHAR(160),HF$1)),FIND(CHAR(160),SUBSTITUTE($X69,\"}\",CHAR(160),HF$1))-FIND(CHAR(160),SUBSTITUTE($X69,\"{\",CHAR(160),HF$1))+1),\"\")","v":""},{"$f":"IFERROR(MID($X69,FIND(CHAR(160),SUBSTITUTE($X69,\"{\",CHAR(160),HG$1)),FIND(CHAR(160),SUBSTITUTE($X69,\"}\",CHAR(160),HG$1))-FIND(CHAR(160),SUBSTITUTE($X69,\"{\",CHAR(160),HG$1))+1),\"\")","v":""},{"$f":"IFERROR(MID($X69,FIND(CHAR(160),SUBSTITUTE($X69,\"{\",CHAR(160),HH$1)),FIND(CHAR(160),SUBSTITUTE($X69,\"}\",CHAR(160),HH$1))-FIND(CHAR(160),SUBSTITUTE($X69,\"{\",CHAR(160),HH$1))+1),\"\")","v":""},{"$f":"IFERROR(MID($X69,FIND(CHAR(160),SUBSTITUTE($X69,\"{\",CHAR(160),HI$1)),FIND(CHAR(160),SUBSTITUTE($X69,\"}\",CHAR(160),HI$1))-FIND(CHAR(160),SUBSTITUTE($X69,\"{\",CHAR(160),HI$1))+1),\"\")","v":"{Backup Heating System Fuel}"},{"$f":"IFERROR(MID($X69,FIND(CHAR(160),SUBSTITUTE($X69,\"{\",CHAR(160),HJ$1)),FIND(CHAR(160),SUBSTITUTE($X69,\"}\",CHAR(160),HJ$1))-FIND(CHAR(160),SUBSTITUTE($X69,\"{\",CHAR(160),HJ$1))+1),\"\")","v":"{Backup Heating System Fuel}"},{"$f":"IFERROR(MID($Y69,FIND(CHAR(160),SUBSTITUTE($Y69,\"{\",CHAR(160),HK$1)),FIND(CHAR(160),SUBSTITUTE($Y69,\"}\",CHAR(160),HK$1))-FIND(CHAR(160),SUBSTITUTE($Y69,\"{\",CHAR(160),HK$1))+1),\"\")","v":"{Measure:Quantity}"},{"$f":"IFERROR(MID($Y69,FIND(CHAR(160),SUBSTITUTE($Y69,\"{\",CHAR(160),HL$1)),FIND(CHAR(160),SUBSTITUTE($Y69,\"}\",CHAR(160),HL$1))-FIND(CHAR(160),SUBSTITUTE($Y69,\"{\",CHAR(160),HL$1))+1),\"\")","v":"{Backup Heating System Fuel}"},{"$f":"IFERROR(MID($Y69,FIND(CHAR(160),SUBSTITUTE($Y69,\"{\",CHAR(160),HM$1)),FIND(CHAR(160),SUBSTITUTE($Y69,\"}\",CHAR(160),HM$1))-FIND(CHAR(160),SUBSTITUTE($Y69,\"{\",CHAR(160),HM$1))+1),\"\")","v":"{Backup Heating System Fuel}"},{"$f":"IFERROR(MID($Y69,FIND(CHAR(160),SUBSTITUTE($Y69,\"{\",CHAR(160),HN$1)),FIND(CHAR(160),SUBSTITUTE($Y69,\"}\",CHAR(160),HN$1))-FIND(CHAR(160),SUBSTITUTE($Y69,\"{\",CHAR(160),HN$1))+1),\"\")","v":""},{"$f":"IFERROR(MID($Y69,FIND(CHAR(160),SUBSTITUTE($Y69,\"{\",CHAR(160),HO$1)),FIND(CHAR(160),SUBSTITUTE($Y69,\"}\",CHAR(160),HO$1))-FIND(CHAR(160),SUBSTITUTE($Y69,\"{\",CHAR(160),HO$1))+1),\"\")","v":""},{"$f":"IFERROR(MID($Y69,FIND(CHAR(160),SUBSTITUTE($Y69,\"{\",CHAR(160),HP$1)),FIND(CHAR(160),SUBSTITUTE($Y69,\"}\",CHAR(160),HP$1))-FIND(CHAR(160),SUBSTITUTE($Y69,\"{\",CHAR(160),HP$1))+1),\"\")","v":""},{"$f":"IFERROR(MID($Y69,FIND(CHAR(160),SUBSTITUTE($Y69,\"{\",CHAR(160),HQ$1)),FIND(CHAR(160),SUBSTITUTE($Y69,\"}\",CHAR(160),HQ$1))-FIND(CHAR(160),SUBSTITUTE($Y69,\"{\",CHAR(160),HQ$1))+1),\"\")","v":""},{"$f":"IFERROR(MID($Y69,FIND(CHAR(160),SUBSTITUTE($Y69,\"{\",CHAR(160),HR$1)),FIND(CHAR(160),SUBSTITUTE($Y69,\"}\",CHAR(160),HR$1))-FIND(CHAR(160),SUBSTITUTE($Y69,\"{\",CHAR(160),HR$1))+1),\"\")","v":""},{"$f":"IFERROR(MID($Y69,FIND(CHAR(160),SUBSTITUTE($Y69,\"{\",CHAR(160),HS$1)),FIND(CHAR(160),SUBSTITUTE($Y69,\"}\",CHAR(160),HS$1))-FIND(CHAR(160),SUBSTITUTE($Y69,\"{\",CHAR(160),HS$1))+1),\"\")","v":"{Backup Heating System Fuel}"},{"$f":"IFERROR(MID($Y69,FIND(CHAR(160),SUBSTITUTE($Y69,\"{\",CHAR(160),HT$1)),FIND(CHAR(160),SUBSTITUTE($Y69,\"}\",CHAR(160),HT$1))-FIND(CHAR(160),SUBSTITUTE($Y69,\"{\",CHAR(160),HT$1))+1),\"\")","v":"{Backup Heating System Fuel}"},{"$f":"IFERROR(MID($Z69,FIND(CHAR(160),SUBSTITUTE($Z69,\"{\",CHAR(160),HU$1)),FIND(CHAR(160),SUBSTITUTE($Z69,\"}\",CHAR(160),HU$1))-FIND(CHAR(160),SUBSTITUTE($Z69,\"{\",CHAR(160),HU$1))+1),\"\")","v":"{Measure:Quantity}"},{"$f":"IFERROR(MID($Z69,FIND(CHAR(160),SUBSTITUTE($Z69,\"{\",CHAR(160),HV$1)),FIND(CHAR(160),SUBSTITUTE($Z69,\"}\",CHAR(160),HV$1))-FIND(CHAR(160),SUBSTITUTE($Z69,\"{\",CHAR(160),HV$1))+1),\"\")","v":"{Backup Heating System Fuel}"},{"$f":"IFERROR(MID($Z69,FIND(CHAR(160),SUBSTITUTE($Z69,\"{\",CHAR(160),HW$1)),FIND(CHAR(160),SUBSTITUTE($Z69,\"}\",CHAR(160),HW$1))-FIND(CHAR(160),SUBSTITUTE($Z69,\"{\",CHAR(160),HW$1))+1),\"\")","v":"{Backup Heating System Fuel}"},{"$f":"IFERROR(MID($Z69,FIND(CHAR(160),SUBSTITUTE($Z69,\"{\",CHAR(160),HX$1)),FIND(CHAR(160),SUBSTITUTE($Z69,\"}\",CHAR(160),HX$1))-FIND(CHAR(160),SUBSTITUTE($Z69,\"{\",CHAR(160),HX$1))+1),\"\")","v":""},{"$f":"IFERROR(MID($Z69,FIND(CHAR(160),SUBSTITUTE($Z69,\"{\",CHAR(160),HY$1)),FIND(CHAR(160),SUBSTITUTE($Z69,\"}\",CHAR(160),HY$1))-FIND(CHAR(160),SUBSTITUTE($Z69,\"{\",CHAR(160),HY$1))+1),\"\")","v":""},{"$f":"IFERROR(MID($Z69,FIND(CHAR(160),SUBSTITUTE($Z69,\"{\",CHAR(160),HZ$1)),FIND(CHAR(160),SUBSTITUTE($Z69,\"}\",CHAR(160),HZ$1))-FIND(CHAR(160),SUBSTITUTE($Z69,\"{\",CHAR(160),HZ$1))+1),\"\")","v":""},{"$f":"IFERROR(MID($Z69,FIND(CHAR(160),SUBSTITUTE($Z69,\"{\",CHAR(160),IA$1)),FIND(CHAR(160),SUBSTITUTE($Z69,\"}\",CHAR(160),IA$1))-FIND(CHAR(160),SUBSTITUTE($Z69,\"{\",CHAR(160),IA$1))+1),\"\")","v":""},{"$f":"IFERROR(MID($Z69,FIND(CHAR(160),SUBSTITUTE($Z69,\"{\",CHAR(160),IB$1)),FIND(CHAR(160),SUBSTITUTE($Z69,\"}\",CHAR(160),IB$1))-FIND(CHAR(160),SUBSTITUTE($Z69,\"{\",CHAR(160),IB$1))+1),\"\")","v":""},{"$f":"IFERROR(MID($Z69,FIND(CHAR(160),SUBSTITUTE($Z69,\"{\",CHAR(160),IC$1)),FIND(CHAR(160),SUBSTITUTE($Z69,\"}\",CHAR(160),IC$1))-FIND(CHAR(160),SUBSTITUTE($Z69,\"{\",CHAR(160),IC$1))+1),\"\")","v":"{Backup Heating System Fuel}"},{"$f":"IFERROR(MID($Z69,FIND(CHAR(160),SUBSTITUTE($Z69,\"{\",CHAR(160),ID$1)),FIND(CHAR(160),SUBSTITUTE($Z69,\"}\",CHAR(160),ID$1))-FIND(CHAR(160),SUBSTITUTE($Z69,\"{\",CHAR(160),ID$1))+1),\"\")","v":"{Backup Heating System Fuel}"},{"$f":"IFERROR(MID($AA69,FIND(CHAR(160),SUBSTITUTE($AA69,\"{\",CHAR(160),IE$1)),FIND(CHAR(160),SUBSTITUTE($AA69,\"}\",CHAR(160),IE$1))-FIND(CHAR(160),SUBSTITUTE($AA69,\"{\",CHAR(160),IE$1))+1),\"\")","v":"{Measure:Quantity}"},{"$f":"IFERROR(MID($AA69,FIND(CHAR(160),SUBSTITUTE($AA69,\"{\",CHAR(160),IF$1)),FIND(CHAR(160),SUBSTITUTE($AA69,\"}\",CHAR(160),IF$1))-FIND(CHAR(160),SUBSTITUTE($AA69,\"{\",CHAR(160),IF$1))+1),\"\")","v":"{Backup Heating System Fuel}"},{"$f":"IFERROR(MID($AA69,FIND(CHAR(160),SUBSTITUTE($AA69,\"{\",CHAR(160),IG$1)),FIND(CHAR(160),SUBSTITUTE($AA69,\"}\",CHAR(160),IG$1))-FIND(CHAR(160),SUBSTITUTE($AA69,\"{\",CHAR(160),IG$1))+1),\"\")","v":"{Backup Heating System Fuel}"},{"$f":"IFERROR(MID($AA69,FIND(CHAR(160),SUBSTITUTE($AA69,\"{\",CHAR(160),IH$1)),FIND(CHAR(160),SUBSTITUTE($AA69,\"}\",CHAR(160),IH$1))-FIND(CHAR(160),SUBSTITUTE($AA69,\"{\",CHAR(160),IH$1))+1),\"\")","v":""},{"$f":"IFERROR(MID($AA69,FIND(CHAR(160),SUBSTITUTE($AA69,\"{\",CHAR(160),II$1)),FIND(CHAR(160),SUBSTITUTE($AA69,\"}\",CHAR(160),II$1))-FIND(CHAR(160),SUBSTITUTE($AA69,\"{\",CHAR(160),II$1))+1),\"\")","v":""},{"$f":"IFERROR(MID($AA69,FIND(CHAR(160),SUBSTITUTE($AA69,\"{\",CHAR(160),IJ$1)),FIND(CHAR(160),SUBSTITUTE($AA69,\"}\",CHAR(160),IJ$1))-FIND(CHAR(160),SUBSTITUTE($AA69,\"{\",CHAR(160),IJ$1))+1),\"\")","v":""},{"$f":"IFERROR(MID($AA69,FIND(CHAR(160),SUBSTITUTE($AA69,\"{\",CHAR(160),IK$1)),FIND(CHAR(160),SUBSTITUTE($AA69,\"}\",CHAR(160),IK$1))-FIND(CHAR(160),SUBSTITUTE($AA69,\"{\",CHAR(160),IK$1))+1),\"\")","v":""},{"$f":"IFERROR(MID($AA69,FIND(CHAR(160),SUBSTITUTE($AA69,\"{\",CHAR(160),IL$1)),FIND(CHAR(160),SUBSTITUTE($AA69,\"}\",CHAR(160),IL$1))-FIND(CHAR(160),SUBSTITUTE($AA69,\"{\",CHAR(160),IL$1))+1),\"\")","v":""},{"$f":"IFERROR(MID($AA69,FIND(CHAR(160),SUBSTITUTE($AA69,\"{\",CHAR(160),IM$1)),FIND(CHAR(160),SUBSTITUTE($AA69,\"}\",CHAR(160),IM$1))-FIND(CHAR(160),SUBSTITUTE($AA69,\"{\",CHAR(160),IM$1))+1),\"\")","v":"{Backup Heating System Fuel}"},{"$f":"IFERROR(MID($AA69,FIND(CHAR(160),SUBSTITUTE($AA69,\"{\",CHAR(160),IN$1)),FIND(CHAR(160),SUBSTITUTE($AA69,\"}\",CHAR(160),IN$1))-FIND(CHAR(160),SUBSTITUTE($AA69,\"{\",CHAR(160),IN$1))+1),\"\")","v":"{Backup Heating System Fuel}"},{"$f":"IFERROR(MID($AB69,FIND(CHAR(160),SUBSTITUTE($AB69,\"{\",CHAR(160),IO$1)),FIND(CHAR(160),SUBSTITUTE($AB69,\"}\",CHAR(160),IO$1))-FIND(CHAR(160),SUBSTITUTE($AB69,\"{\",CHAR(160),IO$1))+1),\"\")","v":""},{"$f":"IFERROR(MID($AB69,FIND(CHAR(160),SUBSTITUTE($AB69,\"{\",CHAR(160),IP$1)),FIND(CHAR(160),SUBSTITUTE($AB69,\"}\",CHAR(160),IP$1))-FIND(CHAR(160),SUBSTITUTE($AB69,\"{\",CHAR(160),IP$1))+1),\"\")","v":""},{"$f":"IFERROR(MID($AB69,FIND(CHAR(160),SUBSTITUTE($AB69,\"{\",CHAR(160),IQ$1)),FIND(CHAR(160),SUBSTITUTE($AB69,\"}\",CHAR(160),IQ$1))-FIND(CHAR(160),SUBSTITUTE($AB69,\"{\",CHAR(160),IQ$1))+1),\"\")","v":""},{"$f":"IFERROR(MID($AB69,FIND(CHAR(160),SUBSTITUTE($AB69,\"{\",CHAR(160),IR$1)),FIND(CHAR(160),SUBSTITUTE($AB69,\"}\",CHAR(160),IR$1))-FIND(CHAR(160),SUBSTITUTE($AB69,\"{\",CHAR(160),IR$1))+1),\"\")","v":""},{"$f":"IFERROR(MID($AB69,FIND(CHAR(160),SUBSTITUTE($AB69,\"{\",CHAR(160),IS$1)),FIND(CHAR(160),SUBSTITUTE($AB69,\"}\",CHAR(160),IS$1))-FIND(CHAR(160),SUBSTITUTE($AB69,\"{\",CHAR(160),IS$1))+1),\"\")","v":""},{"$f":"IFERROR(MID($AB69,FIND(CHAR(160),SUBSTITUTE($AB69,\"{\",CHAR(160),IT$1)),FIND(CHAR(160),SUBSTITUTE($AB69,\"}\",CHAR(160),IT$1))-FIND(CHAR(160),SUBSTITUTE($AB69,\"{\",CHAR(160),IT$1))+1),\"\")","v":""},{"$f":"IFERROR(MID($AB69,FIND(CHAR(160),SUBSTITUTE($AB69,\"{\",CHAR(160),IU$1)),FIND(CHAR(160),SUBSTITUTE($AB69,\"}\",CHAR(160),IU$1))-FIND(CHAR(160),SUBSTITUTE($AB69,\"{\",CHAR(160),IU$1))+1),\"\")","v":""},{"$f":"IFERROR(MID($AB69,FIND(CHAR(160),SUBSTITUTE($AB69,\"{\",CHAR(160),IV$1)),FIND(CHAR(160),SUBSTITUTE($AB69,\"}\",CHAR(160),IV$1))-FIND(CHAR(160),SUBSTITUTE($AB69,\"{\",CHAR(160),IV$1))+1),\"\")","v":""},{"$f":"IFERROR(MID($AB69,FIND(CHAR(160),SUBSTITUTE($AB69,\"{\",CHAR(160),IW$1)),FIND(CHAR(160),SUBSTITUTE($AB69,\"}\",CHAR(160),IW$1))-FIND(CHAR(160),SUBSTITUTE($AB69,\"{\",CHAR(160),IW$1))+1),\"\")","v":""},{"$f":"IFERROR(MID($AB69,FIND(CHAR(160),SUBSTITUTE($AB69,\"{\",CHAR(160),IX$1)),FIND(CHAR(160),SUBSTITUTE($AB69,\"}\",CHAR(160),IX$1))-FIND(CHAR(160),SUBSTITUTE($AB69,\"{\",CHAR(160),IX$1))+1),\"\")","v":""},null,{"$f":"10-COUNTIF(DU69:ED69,\"\")","v":2}]
["C&I HVAC - High Performance VRF Retrofits","Variable Refrigerant Flow - With Heat Recovery Retrofit","VRFWHRR","2021-07-01","2022-06-30","Calculated","{Measure:Quantity}*{Square Feet Served}*{Cost per SQFT}",0,"Calculated","{Measure:Quantity}*{Square Feet Served}*6",0,"2020-07-01","2022-06-30","Calculated","{Measure:Quantity} * ({Cooling Capacity (Btu/h)}/1000*(1/{IEER_base}-1/{IEER})*829+{Square Feet Served}*47.4/3.412*(if({Existing Heating Fuel}<>6,0,1/{COP_base})-1/{COP}))",null,null,"{Measure:Quantity} *Max({Square Feet Served}*47.4/3.412*(if({Existing Heating Fuel}<>6,0,1/{COP_base})-1/{COP})/1600,{Cooling Capacity (Btu/h)}/1000*(1/{IEER_base}-1/{IEER}))",null,null,"{Measure:Quantity} * ({Square Feet Served}*47.4/3.412*(if({Existing Heating Fuel}<>6,0,1/{COP_base})-1/{COP})/1600*{Factor:WinterCF})","{Measure:Quantity} * ({Cooling Capacity (Btu/h)}/1000*(1/{IEER_base}-1/{IEER})*{Factor:SummerCF})","if({Existing Heating Fuel}=1,{Measure:Quantity} * {Square Feet Served}*47.4/1000*1/{COP_base},0)*10","if({Existing Heating Fuel}=2,{Measure:Quantity} * {Square Feet Served}*47.4/1000*1/{COP_base},0)","if({Existing Heating Fuel}=3,{Measure:Quantity} * {Square Feet Served}*47.4/1000*1/{COP_base},0)","if({Existing Heating Fuel}=4,{Measure:Quantity} * {Square Feet Served}*47.4/1000*1/{COP_base},0)","if({Existing Heating Fuel}=5,{Measure:Quantity} * {Square Feet Served}*47.4/1000*1/{COP_base},0)",null,"2020-07-01","2022-06-30",20,0.42,0.35699999999999998,0.17,0.03,0.62,0.18,1,1.1220000000000001,1,0.25,0,null,{"$f":"DU70","v":"{Measure:Quantity}"},1,{"$f":"DV70","v":"{Square Feet Served}"},6330,{"$f":"DW70","v":"{Cost per SQFT}"},13.33,{"$f":"DX70","v":"{IEER_base}"},141000,{"$f":"DY70","v":"{IEER}"},9.5,{"$f":"DZ70","v":"{Existing Heating Fuel}"},21,{"$f":"EA70","v":"{COP_base}"},3,{"$f":"EB70","v":"{COP}"},0.8,{"$f":"EC70","v":"{Cooling Capacity (Btu/h)}"},3.78,{"$f":"ED70","v":""},null,{"$f":"AS70 * (AY70/1000*(1/BA70-1/BC70)*829+AU70*47.4/3.412*(IF(BE70<>6,0,1/BG70)-1/BI70))","v":-16525.868331438211},0,0,{"$f":"AS70 *MAX(AU70*47.4/3.412*(IF(BE70<>6,0,1/BG70)-1/BI70)/1600,AY70/1000*(1/BA70-1/BC70))","v":8.1278195488721803},0,0,{"$f":"AS70 * (AU70*47.4/3.412*(IF(BE70<>6,0,1/BG70)-1/BI70)/1600*AF70)","v":-6.1067555685814776},{"$f":"AS70 * (AY70/1000*(1/BA70-1/BC70)*AG70)","v":2.9016315789473683},{"$f":"IF(BE70=1,AS70 * AU70*47.4/1000*1/BG70,0)*10","v":0},{"$f":"IF(BE70=2,AS70 * AU70*47.4/1000*1/BG70,0)","v":0},{"$f":"IF(BE70=3,AS70 * AU70*47.4/1000*1/BG70,0)","v":375.05249999999995},{"$f":"IF(BE70=4,AS70 * AU70*47.4/1000*1/BG70,0)","v":0},{"$f":"IF(BE70=5,AS70 * AU70*47.4/1000*1/BG70,0)","v":0},0,null,"Com","Default DR",{"$f":"Benefits(BL70,BR70,BS70,BT70,BU70,BV70,BW70,BX70,BY70,BZ70,AE70,AH70,AI70,AJ70,AK70,AL70,AM70,AN70,AO70,AP70,CA70,CB70)","v":-27889.776341237259},-21971.280988436047,0,205027.92964529549,0,0,0,0,0,{"$f":"SUMPRODUCT(CC70:CK70,--(CC70:CK70>0))","v":205027.92964529549},{"$f":"-SUMPRODUCT(CC70:CK70,--(CC70:CK70<0))","v":49861.057329673306},null,{"$f":"AS70*AU70*AW70","v":84378.9},null,null,{"$f":"CM70+CO70","v":134239.95732967329},{"$f":"IF(NetOrGross=\"Net\",(1-AO70+AP70),1)","v":1},{"$f":"(SUMPRODUCT(CC70:CJ70,--(CC70:CJ70>0))+CN70)*CS70/((-SUMPRODUCT(CC70:CJ70,--(CC70:CJ70<0))+MAX(CO70,CV70)+CP70+CQ70)*CS70+IF(FRIncentives=\"Yes\",CV70*(1-CS70),0))","v":1.5273241568587326},1,{"$f":"AS70*AU70*6","v":37980},null,"RGGI","y",null,{"$f":"IF(F70=\"Manual Entry\",\"Manual\",IF(G70=\"\",0,\"X=\"&SUBSTITUTE(SUBSTITUTE(SUBSTITUTE(SUBSTITUTE(SUBSTITUTE(SUBSTITUTE(SUBSTITUTE(SUBSTITUTE(SUBSTITUTE(SUBSTITUTE(SUBSTITUTE(SUBSTITUTE(G70,$ED70,$ED$2&ROW($ED70)),$EC70,$EC$2&ROW($EC70)),$EB70,$EB$2&ROW($EB70)),$EA70,$EA$2&ROW($EA70)),$DZ70,$DZ$2&ROW($DZ70)),$DY70,$DY$2&ROW($DY70)),$DX70,$DX$2&ROW($DX70)),$DW70,$DW$2&ROW($DW70)),$DV70,$DV$2&ROW($DV70)),$DU70,$DU$2&ROW($DU70)),$DT70,$DT$2&ROW($DT70)),$DS70,$DS$2&ROW($DS70))))","v":"X=AS70*AU70*AW70"},{"$f":"IF(I70=\"Manual Entry\",\"Manual\",IF(J70=\"\",0,\"X=\"&SUBSTITUTE(SUBSTITUTE(SUBSTITUTE(SUBSTITUTE(SUBSTITUTE(SUBSTITUTE(SUBSTITUTE(SUBSTITUTE(SUBSTITUTE(SUBSTITUTE(SUBSTITUTE(SUBSTITUTE(J70,$ED70,$ED$2&ROW($ED70)),$EC70,$EC$2&ROW($EC70)),$EB70,$EB$2&ROW($EB70)),$EA70,$EA$2&ROW($EA70)),$DZ70,$DZ$2&ROW($DZ70)),$DY70,$DY$2&ROW($DY70)),$DX70,$DX$2&ROW($DX70)),$DW70,$DW$2&ROW($DW70)),$DV70,$DV$2&ROW($DV70)),$DU70,$DU$2&ROW($DU70)),$DT70,$DT$2&ROW($DT70)),$DS70,$DS$2&ROW($DS70))))","v":"X=AS70*AU70*6"},{"$f":"IF(O70=\"\",0,\"X=\"&SUBSTITUTE(SUBSTITUTE(SUBSTITUTE(SUBSTITUTE(SUBSTITUTE(SUBSTITUTE(SUBSTITUTE(SUBSTITUTE(SUBSTITUTE(SUBSTITUTE(SUBSTITUTE(SUBSTITUTE(O70,$ED70,$ED$2&ROW($ED70)),$EC70,$EC$2&ROW($EC70)),$EB70,$EB$2&ROW($EB70)),$EA70,$EA$2&ROW($EA70)),$DZ70,$DZ$2&ROW($DZ70)),$DY70,$DY$2&ROW($DY70)),$DX70,$DX$2&ROW($DX70)),$DW70,$DW$2&ROW($DW70)),$DV70,$DV$2&ROW($DV70)),$DU70,$DU$2&ROW($DU70)),$DT70,$DT$2&ROW($DT70)),$DS70,$DS$2&ROW($DS70)))","v":"X=AS70 * (BI70/1000*(1/AY70-1/BA70)*829+AU70*47.4/3.412*(if(BC70<>6,0,1/BE70)-1/BG70))"},{"$f":"IF(P70=\"\",0,\"X=\"&SUBSTITUTE(SUBSTITUTE(SUBSTITUTE(SUBSTITUTE(SUBSTITUTE(SUBSTITUTE(SUBSTITUTE(SUBSTITUTE(SUBSTITUTE(SUBSTITUTE(SUBSTITUTE(SUBSTITUTE(P70,$ED70,$ED$2&ROW($ED70)),$EC70,$EC$2&ROW($EC70)),$EB70,$EB$2&ROW($EB70)),$EA70,$EA$2&ROW($EA70)),$DZ70,$DZ$2&ROW($DZ70)),$DY70,$DY$2&ROW($DY70)),$DX70,$DX$2&ROW($DX70)),$DW70,$DW$2&ROW($DW70)),$DV70,$DV$2&ROW($DV70)),$DU70,$DU$2&ROW($DU70)),$DT70,$DT$2&ROW($DT70)),$DS70,$DS$2&ROW($DS70)))","v":0},{"$f":"IF(Q70=\"\",0,\"X=\"&SUBSTITUTE(SUBSTITUTE(SUBSTITUTE(SUBSTITUTE(SUBSTITUTE(SUBSTITUTE(SUBSTITUTE(SUBSTITUTE(SUBSTITUTE(SUBSTITUTE(SUBSTITUTE(SUBSTITUTE(Q70,$ED70,$ED$2&ROW($ED70)),$EC70,$EC$2&ROW($EC70)),$EB70,$EB$2&ROW($EB70)),$EA70,$EA$2&ROW($EA70)),$DZ70,$DZ$2&ROW($DZ70)),$DY70,$DY$2&ROW($DY70)),$DX70,$DX$2&ROW($DX70)),$DW70,$DW$2&ROW($DW70)),$DV70,$DV$2&ROW($DV70)),$DU70,$DU$2&ROW($DU70)),$DT70,$DT$2&ROW($DT70)),$DS70,$DS$2&ROW($DS70)))","v":0},{"$f":"IF(R70=\"\",0,\"X=\"&SUBSTITUTE(SUBSTITUTE(SUBSTITUTE(SUBSTITUTE(SUBSTITUTE(SUBSTITUTE(SUBSTITUTE(SUBSTITUTE(SUBSTITUTE(SUBSTITUTE(SUBSTITUTE(SUBSTITUTE(R70,$ED70,$ED$2&ROW($ED70)),$EC70,$EC$2&ROW($EC70)),$EB70,$EB$2&ROW($EB70)),$EA70,$EA$2&ROW($EA70)),$DZ70,$DZ$2&ROW($DZ70)),$DY70,$DY$2&ROW($DY70)),$DX70,$DX$2&ROW($DX70)),$DW70,$DW$2&ROW($DW70)),$DV70,$DV$2&ROW($DV70)),$DU70,$DU$2&ROW($DU70)),$DT70,$DT$2&ROW($DT70)),$DS70,$DS$2&ROW($DS70)))","v":"X=AS70 *Max(AU70*47.4/3.412*(if(BC70<>6,0,1/BE70)-1/BG70)/1600,BI70/1000*(1/AY70-1/BA70))"},{"$f":"IF(S70=\"\",0,\"X=\"&SUBSTITUTE(SUBSTITUTE(SUBSTITUTE(SUBSTITUTE(SUBSTITUTE(SUBSTITUTE(SUBSTITUTE(SUBSTITUTE(SUBSTITUTE(SUBSTITUTE(SUBSTITUTE(SUBSTITUTE(S70,$ED70,$ED$2&ROW($ED70)),$EC70,$EC$2&ROW($EC70)),$EB70,$EB$2&ROW($EB70)),$EA70,$EA$2&ROW($EA70)),$DZ70,$DZ$2&ROW($DZ70)),$DY70,$DY$2&ROW($DY70)),$DX70,$DX$2&ROW($DX70)),$DW70,$DW$2&ROW($DW70)),$DV70,$DV$2&ROW($DV70)),$DU70,$DU$2&ROW($DU70)),$DT70,$DT$2&ROW($DT70)),$DS70,$DS$2&ROW($DS70)))","v":0},{"$f":"IF(T70=\"\",0,\"X=\"&SUBSTITUTE(SUBSTITUTE(SUBSTITUTE(SUBSTITUTE(SUBSTITUTE(SUBSTITUTE(SUBSTITUTE(SUBSTITUTE(SUBSTITUTE(SUBSTITUTE(SUBSTITUTE(SUBSTITUTE(T70,$ED70,$ED$2&ROW($ED70)),$EC70,$EC$2&ROW($EC70)),$EB70,$EB$2&ROW($EB70)),$EA70,$EA$2&ROW($EA70)),$DZ70,$DZ$2&ROW($DZ70)),$DY70,$DY$2&ROW($DY70)),$DX70,$DX$2&ROW($DX70)),$DW70,$DW$2&ROW($DW70)),$DV70,$DV$2&ROW($DV70)),$DU70,$DU$2&ROW($DU70)),$DT70,$DT$2&ROW($DT70)),$DS70,$DS$2&ROW($DS70)))","v":0},{"$f":"IF(U70=\"\",0,\"X=\"&SUBSTITUTE(SUBSTITUTE(SUBSTITUTE(SUBSTITUTE(SUBSTITUTE(SUBSTITUTE(SUBSTITUTE(SUBSTITUTE(SUBSTITUTE(SUBSTITUTE(SUBSTITUTE(SUBSTITUTE(U70,$ED70,$ED$2&ROW($ED70)),$EC70,$EC$2&ROW($EC70)),$EB70,$EB$2&ROW($EB70)),$EA70,$EA$2&ROW($EA70)),$DZ70,$DZ$2&ROW($DZ70)),$DY70,$DY$2&ROW($DY70)),$DX70,$DX$2&ROW($DX70)),$DW70,$DW$2&ROW($DW70)),$DV70,$DV$2&ROW($DV70)),$DU70,$DU$2&ROW($DU70)),$DT70,$DT$2&ROW($DT70)),$DS70,$DS$2&ROW($DS70)))","v":"X=AS70 * (AU70*47.4/3.412*(if(BC70<>6,0,1/BE70)-1/BG70)/1600*AF70)"},{"$f":"IF(V70=\"\",0,\"X=\"&SUBSTITUTE(SUBSTITUTE(SUBSTITUTE(SUBSTITUTE(SUBSTITUTE(SUBSTITUTE(SUBSTITUTE(SUBSTITUTE(SUBSTITUTE(SUBSTITUTE(SUBSTITUTE(SUBSTITUTE(V70,$ED70,$ED$2&ROW($ED70)),$EC70,$EC$2&ROW($EC70)),$EB70,$EB$2&ROW($EB70)),$EA70,$EA$2&ROW($EA70)),$DZ70,$DZ$2&ROW($DZ70)),$DY70,$DY$2&ROW($DY70)),$DX70,$DX$2&ROW($DX70)),$DW70,$DW$2&ROW($DW70)),$DV70,$DV$2&ROW($DV70)),$DU70,$DU$2&ROW($DU70)),$DT70,$DT$2&ROW($DT70)),$DS70,$DS$2&ROW($DS70)))","v":"X=AS70 * (BI70/1000*(1/AY70-1/BA70)*AG70)"},{"$f":"IF(W70=\"\",0,\"X=\"&SUBSTITUTE(SUBSTITUTE(SUBSTITUTE(SUBSTITUTE(SUBSTITUTE(SUBSTITUTE(SUBSTITUTE(SUBSTITUTE(SUBSTITUTE(SUBSTITUTE(SUBSTITUTE(SUBSTITUTE(W70,$ED70,$ED$2&ROW($ED70)),$EC70,$EC$2&ROW($EC70)),$EB70,$EB$2&ROW($EB70)),$EA70,$EA$2&ROW($EA70)),$DZ70,$DZ$2&ROW($DZ70)),$DY70,$DY$2&ROW($DY70)),$DX70,$DX$2&ROW($DX70)),$DW70,$DW$2&ROW($DW70)),$DV70,$DV$2&ROW($DV70)),$DU70,$DU$2&ROW($DU70)),$DT70,$DT$2&ROW($DT70)),$DS70,$DS$2&ROW($DS70)))","v":"X=if(BC70=1,AS70 * AU70*47.4/1000*1/BE70,0)*10"},{"$f":"IF(X70=\"\",0,\"X=\"&SUBSTITUTE(SUBSTITUTE(SUBSTITUTE(SUBSTITUTE(SUBSTITUTE(SUBSTITUTE(SUBSTITUTE(SUBSTITUTE(SUBSTITUTE(SUBSTITUTE(SUBSTITUTE(SUBSTITUTE(X70,$ED70,$ED$2&ROW($ED70)),$EC70,$EC$2&ROW($EC70)),$EB70,$EB$2&ROW($EB70)),$EA70,$EA$2&ROW($EA70)),$DZ70,$DZ$2&ROW($DZ70)),$DY70,$DY$2&ROW($DY70)),$DX70,$DX$2&ROW($DX70)),$DW70,$DW$2&ROW($DW70)),$DV70,$DV$2&ROW($DV70)),$DU70,$DU$2&ROW($DU70)),$DT70,$DT$2&ROW($DT70)),$DS70,$DS$2&ROW($DS70)))","v":"X=if(BC70=2,AS70 * AU70*47.4/1000*1/BE70,0)"},{"$f":"IF(Y70=\"\",0,\"X=\"&SUBSTITUTE(SUBSTITUTE(SUBSTITUTE(SUBSTITUTE(SUBSTITUTE(SUBSTITUTE(SUBSTITUTE(SUBSTITUTE(SUBSTITUTE(SUBSTITUTE(SUBSTITUTE(SUBSTITUTE(Y70,$ED70,$ED$2&ROW($ED70)),$EC70,$EC$2&ROW($EC70)),$EB70,$EB$2&ROW($EB70)),$EA70,$EA$2&ROW($EA70)),$DZ70,$DZ$2&ROW($DZ70)),$DY70,$DY$2&ROW($DY70)),$DX70,$DX$2&ROW($DX70)),$DW70,$DW$2&ROW($DW70)),$DV70,$DV$2&ROW($DV70)),$DU70,$DU$2&ROW($DU70)),$DT70,$DT$2&ROW($DT70)),$DS70,$DS$2&ROW($DS70)))","v":"X=if(BC70=3,AS70 * AU70*47.4/1000*1/BE70,0)"},{"$f":"IF(Z70=\"\",0,\"X=\"&SUBSTITUTE(SUBSTITUTE(SUBSTITUTE(SUBSTITUTE(SUBSTITUTE(SUBSTITUTE(SUBSTITUTE(SUBSTITUTE(SUBSTITUTE(SUBSTITUTE(SUBSTITUTE(SUBSTITUTE(Z70,$ED70,$ED$2&ROW($ED70)),$EC70,$EC$2&ROW($EC70)),$EB70,$EB$2&ROW($EB70)),$EA70,$EA$2&ROW($EA70)),$DZ70,$DZ$2&ROW($DZ70)),$DY70,$DY$2&ROW($DY70)),$DX70,$DX$2&ROW($DX70)),$DW70,$DW$2&ROW($DW70)),$DV70,$DV$2&ROW($DV70)),$DU70,$DU$2&ROW($DU70)),$DT70,$DT$2&ROW($DT70)),$DS70,$DS$2&ROW($DS70)))","v":"X=if(BC70=4,AS70 * AU70*47.4/1000*1/BE70,0)"},{"$f":"IF(AA70=\"\",0,\"X=\"&SUBSTITUTE(SUBSTITUTE(SUBSTITUTE(SUBSTITUTE(SUBSTITUTE(SUBSTITUTE(SUBSTITUTE(SUBSTITUTE(SUBSTITUTE(SUBSTITUTE(SUBSTITUTE(SUBSTITUTE(AA70,$ED70,$ED$2&ROW($ED70)),$EC70,$EC$2&ROW($EC70)),$EB70,$EB$2&ROW($EB70)),$EA70,$EA$2&ROW($EA70)),$DZ70,$DZ$2&ROW($DZ70)),$DY70,$DY$2&ROW($DY70)),$DX70,$DX$2&ROW($DX70)),$DW70,$DW$2&ROW($DW70)),$DV70,$DV$2&ROW($DV70)),$DU70,$DU$2&ROW($DU70)),$DT70,$DT$2&ROW($DT70)),$DS70,$DS$2&ROW($DS70)))","v":"X=if(BC70=5,AS70 * AU70*47.4/1000*1/BE70,0)"},{"$f":"IF(AB70=\"\",0,\"X=\"&SUBSTITUTE(SUBSTITUTE(SUBSTITUTE(SUBSTITUTE(SUBSTITUTE(SUBSTITUTE(SUBSTITUTE(SUBSTITUTE(SUBSTITUTE(SUBSTITUTE(SUBSTITUTE(SUBSTITUTE(AB70,$ED70,$ED$2&ROW($ED70)),$EC70,$EC$2&ROW($EC70)),$EB70,$EB$2&ROW($EB70)),$EA70,$EA$2&ROW($EA70)),$DZ70,$DZ$2&ROW($DZ70)),$DY70,$DY$2&ROW($DY70)),$DX70,$DX$2&ROW($DX70)),$DW70,$DW$2&ROW($DW70)),$DV70,$DV$2&ROW($DV70)),$DU70,$DU$2&ROW($DU70)),$DT70,$DT$2&ROW($DT70)),$DS70,$DS$2&ROW($DS70)))","v":0},null,null,"{Factor:WinterCF}","{Factor:SummerCF}",{"$f":"IFERROR(INDEX($EG70:$IV70,MATCH(0,COUNTIF($DR70:DT70,$EG70:$IV70),0)),\"\")","v":"{Measure:Quantity}"},{"$f":"IFERROR(INDEX($EG70:$IV70,MATCH(0,COUNTIF($DR70:DU70,$EG70:$IV70),0)),\"\")","v":"{Square Feet Served}"},{"$f":"IFERROR(INDEX($EG70:$IV70,MATCH(0,COUNTIF($DR70:DV70,$EG70:$IV70),0)),\"\")","v":"{Cost per SQFT}"},{"$f":"IFERROR(INDEX($EG70:$IV70,MATCH(0,COUNTIF($DR70:DW70,$EG70:$IV70),0)),\"\")","v":"{IEER_base}"},{"$f":"IFERROR(INDEX($EG70:$IV70,MATCH(0,COUNTIF($DR70:DX70,$EG70:$IV70),0)),\"\")","v":"{IEER}"},{"$f":"IFERROR(INDEX($EG70:$IV70,MATCH(0,COUNTIF($DR70:DY70,$EG70:$IV70),0)),\"\")","v":"{Existing Heating Fuel}"},{"$f":"IFERROR(INDEX($EG70:$IV70,MATCH(0,COUNTIF($DR70:DZ70,$EG70:$IV70),0)),\"\")","v":"{COP_base}"},{"$f":"IFERROR(INDEX($EG70:$IV70,MATCH(0,COUNTIF($DR70:EA70,$EG70:$IV70),0)),\"\")","v":"{COP}"},{"$f":"IFERROR(INDEX($EG70:$IV70,MATCH(0,COUNTIF($DR70:EB70,$EG70:$IV70),0)),\"\")","v":"{Cooling Capacity (Btu/h)}"},{"$f":"IFERROR(INDEX($EG70:$IV70,MATCH(0,COUNTIF($DR70:EC70,$EG70:$IV70),0)),\"\")","v":""},null,null,{"$f":"IFERROR(MID($G70,FIND(CHAR(160),SUBSTITUTE($G70,\"{\",CHAR(160),EG$1)),FIND(CHAR(160),SUBSTITUTE($G70,\"}\",CHAR(160),EG$1))-FIND(CHAR(160),SUBSTITUTE($G70,\"{\",CHAR(160),EG$1))+1),\"\")","v":"{Measure:Quantity}"},{"$f":"IFERROR(MID($G70,FIND(CHAR(160),SUBSTITUTE($G70,\"{\",CHAR(160),EH$1)),FIND(CHAR(160),SUBSTITUTE($G70,\"}\",CHAR(160),EH$1))-FIND(CHAR(160),SUBSTITUTE($G70,\"{\",CHAR(160),EH$1))+1),\"\")","v":"{Square Feet Served}"},{"$f":"IFERROR(MID($G70,FIND(CHAR(160),SUBSTITUTE($G70,\"{\",CHAR(160),EI$1)),FIND(CHAR(160),SUBSTITUTE($G70,\"}\",CHAR(160),EI$1))-FIND(CHAR(160),SUBSTITUTE($G70,\"{\",CHAR(160),EI$1))+1),\"\")","v":"{Cost per SQFT}"},{"$f":"IFERROR(MID($G70,FIND(CHAR(160),SUBSTITUTE($G70,\"{\",CHAR(160),EJ$1)),FIND(CHAR(160),SUBSTITUTE($G70,\"}\",CHAR(160),EJ$1))-FIND(CHAR(160),SUBSTITUTE($G70,\"{\",CHAR(160),EJ$1))+1),\"\")","v":""},{"$f":"IFERROR(MID($G70,FIND(CHAR(160),SUBSTITUTE($G70,\"{\",CHAR(160),EK$1)),FIND(CHAR(160),SUBSTITUTE($G70,\"}\",CHAR(160),EK$1))-FIND(CHAR(160),SUBSTITUTE($G70,\"{\",CHAR(160),EK$1))+1),\"\")","v":""},{"$f":"IFERROR(MID($G70,FIND(CHAR(160),SUBSTITUTE($G70,\"{\",CHAR(160),EL$1)),FIND(CHAR(160),SUBSTITUTE($G70,\"}\",CHAR(160),EL$1))-FIND(CHAR(160),SUBSTITUTE($G70,\"{\",CHAR(160),EL$1))+1),\"\")","v":""},{"$f":"IFERROR(MID($G70,FIND(CHAR(160),SUBSTITUTE($G70,\"{\",CHAR(160),EM$1)),FIND(CHAR(160),SUBSTITUTE($G70,\"}\",CHAR(160),EM$1))-FIND(CHAR(160),SUBSTITUTE($G70,\"{\",CHAR(160),EM$1))+1),\"\")","v":""},{"$f":"IFERROR(MID($G70,FIND(CHAR(160),SUBSTITUTE($G70,\"{\",CHAR(160),EN$1)),FIND(CHAR(160),SUBSTITUTE($G70,\"}\",CHAR(160),EN$1))-FIND(CHAR(160),SUBSTITUTE($G70,\"{\",CHAR(160),EN$1))+1),\"\")","v":""},{"$f":"IFERROR(MID($G70,FIND(CHAR(160),SUBSTITUTE($G70,\"{\",CHAR(160),EO$1)),FIND(CHAR(160),SUBSTITUTE($G70,\"}\",CHAR(160),EO$1))-FIND(CHAR(160),SUBSTITUTE($G70,\"{\",CHAR(160),EO$1))+1),\"\")","v":""},{"$f":"IFERROR(MID($G70,FIND(CHAR(160),SUBSTITUTE($G70,\"{\",CHAR(160),EP$1)),FIND(CHAR(160),SUBSTITUTE($G70,\"}\",CHAR(160),EP$1))-FIND(CHAR(160),SUBSTITUTE($G70,\"{\",CHAR(160),EP$1))+1),\"\")","v":""},{"$f":"IFERROR(MID($J70,FIND(CHAR(160),SUBSTITUTE($J70,\"{\",CHAR(160),EQ$1)),FIND(CHAR(160),SUBSTITUTE($J70,\"}\",CHAR(160),EQ$1))-FIND(CHAR(160),SUBSTITUTE($J70,\"{\",CHAR(160),EQ$1))+1),\"\")","v":"{Measure:Quantity}"},{"$f":"IFERROR(MID($J70,FIND(CHAR(160),SUBSTITUTE($J70,\"{\",CHAR(160),ER$1)),FIND(CHAR(160),SUBSTITUTE($J70,\"}\",CHAR(160),ER$1))-FIND(CHAR(160),SUBSTITUTE($J70,\"{\",CHAR(160),ER$1))+1),\"\")","v":"{Square Feet Served}"},{"$f":"IFERROR(MID($J70,FIND(CHAR(160),SUBSTITUTE($J70,\"{\",CHAR(160),ES$1)),FIND(CHAR(160),SUBSTITUTE($J70,\"}\",CHAR(160),ES$1))-FIND(CHAR(160),SUBSTITUTE($J70,\"{\",CHAR(160),ES$1))+1),\"\")","v":""},{"$f":"IFERROR(MID($J70,FIND(CHAR(160),SUBSTITUTE($J70,\"{\",CHAR(160),ET$1)),FIND(CHAR(160),SUBSTITUTE($J70,\"}\",CHAR(160),ET$1))-FIND(CHAR(160),SUBSTITUTE($J70,\"{\",CHAR(160),ET$1))+1),\"\")","v":""},{"$f":"IFERROR(MID($J70,FIND(CHAR(160),SUBSTITUTE($J70,\"{\",CHAR(160),EU$1)),FIND(CHAR(160),SUBSTITUTE($J70,\"}\",CHAR(160),EU$1))-FIND(CHAR(160),SUBSTITUTE($J70,\"{\",CHAR(160),EU$1))+1),\"\")","v":""},{"$f":"IFERROR(MID($J70,FIND(CHAR(160),SUBSTITUTE($J70,\"{\",CHAR(160),EV$1)),FIND(CHAR(160),SUBSTITUTE($J70,\"}\",CHAR(160),EV$1))-FIND(CHAR(160),SUBSTITUTE($J70,\"{\",CHAR(160),EV$1))+1),\"\")","v":""},{"$f":"IFERROR(MID($J70,FIND(CHAR(160),SUBSTITUTE($J70,\"{\",CHAR(160),EW$1)),FIND(CHAR(160),SUBSTITUTE($J70,\"}\",CHAR(160),EW$1))-FIND(CHAR(160),SUBSTITUTE($J70,\"{\",CHAR(160),EW$1))+1),\"\")","v":""},{"$f":"IFERROR(MID($J70,FIND(CHAR(160),SUBSTITUTE($J70,\"{\",CHAR(160),EX$1)),FIND(CHAR(160),SUBSTITUTE($J70,\"}\",CHAR(160),EX$1))-FIND(CHAR(160),SUBSTITUTE($J70,\"{\",CHAR(160),EX$1))+1),\"\")","v":""},{"$f":"IFERROR(MID($J70,FIND(CHAR(160),SUBSTITUTE($J70,\"{\",CHAR(160),EY$1)),FIND(CHAR(160),SUBSTITUTE($J70,\"}\",CHAR(160),EY$1))-FIND(CHAR(160),SUBSTITUTE($J70,\"{\",CHAR(160),EY$1))+1),\"\")","v":""},{"$f":"IFERROR(MID($J70,FIND(CHAR(160),SUBSTITUTE($J70,\"{\",CHAR(160),EZ$1)),FIND(CHAR(160),SUBSTITUTE($J70,\"}\",CHAR(160),EZ$1))-FIND(CHAR(160),SUBSTITUTE($J70,\"{\",CHAR(160),EZ$1))+1),\"\")","v":""},{"$f":"IFERROR(MID($J70,FIND(CHAR(160),SUBSTITUTE($J70,\"{\",CHAR(160),FA$1)),FIND(CHAR(160),SUBSTITUTE($J70,\"}\",CHAR(160),FA$1))-FIND(CHAR(160),SUBSTITUTE($J70,\"{\",CHAR(160),FA$1))+1),\"\")","v":"{Measure:Quantity}"},{"$f":"IFERROR(MID($J70,FIND(CHAR(160),SUBSTITUTE($J70,\"{\",CHAR(160),FB$1)),FIND(CHAR(160),SUBSTITUTE($J70,\"}\",CHAR(160),FB$1))-FIND(CHAR(160),SUBSTITUTE($J70,\"{\",CHAR(160),FB$1))+1),\"\")","v":"{Square Feet Served}"},{"$f":"IFERROR(MID($O70,FIND(CHAR(160),SUBSTITUTE($O70,\"{\",CHAR(160),FC$1)),FIND(CHAR(160),SUBSTITUTE($O70,\"}\",CHAR(160),FC$1))-FIND(CHAR(160),SUBSTITUTE($O70,\"{\",CHAR(160),FC$1))+1),\"\")","v":"{IEER_base}"},{"$f":"IFERROR(MID($O70,FIND(CHAR(160),SUBSTITUTE($O70,\"{\",CHAR(160),FD$1)),FIND(CHAR(160),SUBSTITUTE($O70,\"}\",CHAR(160),FD$1))-FIND(CHAR(160),SUBSTITUTE($O70,\"{\",CHAR(160),FD$1))+1),\"\")","v":"{IEER}"},{"$f":"IFERROR(MID($O70,FIND(CHAR(160),SUBSTITUTE($O70,\"{\",CHAR(160),FE$1)),FIND(CHAR(160),SUBSTITUTE($O70,\"}\",CHAR(160),FE$1))-FIND(CHAR(160),SUBSTITUTE($O70,\"{\",CHAR(160),FE$1))+1),\"\")","v":"{Square Feet Served}"},{"$f":"IFERROR(MID($O70,FIND(CHAR(160),SUBSTITUTE($O70,\"{\",CHAR(160),FF$1)),FIND(CHAR(160),SUBSTITUTE($O70,\"}\",CHAR(160),FF$1))-FIND(CHAR(160),SUBSTITUTE($O70,\"{\",CHAR(160),FF$1))+1),\"\")","v":"{Existing Heating Fuel}"},{"$f":"IFERROR(MID($O70,FIND(CHAR(160),SUBSTITUTE($O70,\"{\",CHAR(160),FG$1)),FIND(CHAR(160),SUBSTITUTE($O70,\"}\",CHAR(160),FG$1))-FIND(CHAR(160),SUBSTITUTE($O70,\"{\",CHAR(160),FG$1))+1),\"\")","v":"{COP_base}"},{"$f":"IFERROR(MID($O70,FIND(CHAR(160),SUBSTITUTE($O70,\"{\",CHAR(160),FH$1)),FIND(CHAR(160),SUBSTITUTE($O70,\"}\",CHAR(160),FH$1))-FIND(CHAR(160),SUBSTITUTE($O70,\"{\",CHAR(160),FH$1))+1),\"\")","v":"{COP}"},{"$f":"IFERROR(MID($O70,FIND(CHAR(160),SUBSTITUTE($O70,\"{\",CHAR(160),FI$1)),FIND(CHAR(160),SUBSTITUTE($O70,\"}\",CHAR(160),FI$1))-FIND(CHAR(160),SUBSTITUTE($O70,\"{\",CHAR(160),FI$1))+1),\"\")","v":""},{"$f":"IFERROR(MID($O70,FIND(CHAR(160),SUBSTITUTE($O70,\"{\",CHAR(160),FJ$1)),FIND(CHAR(160),SUBSTITUTE($O70,\"}\",CHAR(160),FJ$1))-FIND(CHAR(160),SUBSTITUTE($O70,\"{\",CHAR(160),FJ$1))+1),\"\")","v":""},{"$f":"IFERROR(MID($O70,FIND(CHAR(160),SUBSTITUTE($O70,\"{\",CHAR(160),FK$1)),FIND(CHAR(160),SUBSTITUTE($O70,\"}\",CHAR(160),FK$1))-FIND(CHAR(160),SUBSTITUTE($O70,\"{\",CHAR(160),FK$1))+1),\"\")","v":"{Measure:Quantity}"},{"$f":"IFERROR(MID($O70,FIND(CHAR(160),SUBSTITUTE($O70,\"{\",CHAR(160),FL$1)),FIND(CHAR(160),SUBSTITUTE($O70,\"}\",CHAR(160),FL$1))-FIND(CHAR(160),SUBSTITUTE($O70,\"{\",CHAR(160),FL$1))+1),\"\")","v":"{Cooling Capacity (Btu/h)}"},{"$f":"IFERROR(MID($R70,FIND(CHAR(160),SUBSTITUTE($R70,\"{\",CHAR(160),FM$1)),FIND(CHAR(160),SUBSTITUTE($R70,\"}\",CHAR(160),FM$1))-FIND(CHAR(160),SUBSTITUTE($R70,\"{\",CHAR(160),FM$1))+1),\"\")","v":"{Existing Heating Fuel}"},{"$f":"IFERROR(MID($R70,FIND(CHAR(160),SUBSTITUTE($R70,\"{\",CHAR(160),FN$1)),FIND(CHAR(160),SUBSTITUTE($R70,\"}\",CHAR(160),FN$1))-FIND(CHAR(160),SUBSTITUTE($R70,\"{\",CHAR(160),FN$1))+1),\"\")","v":"{COP_base}"},{"$f":"IFERROR(MID($R70,FIND(CHAR(160),SUBSTITUTE($R70,\"{\",CHAR(160),FO$1)),FIND(CHAR(160),SUBSTITUTE($R70,\"}\",CHAR(160),FO$1))-FIND(CHAR(160),SUBSTITUTE($R70,\"{\",CHAR(160),FO$1))+1),\"\")","v":"{COP}"},{"$f":"IFERROR(MID($R70,FIND(CHAR(160),SUBSTITUTE($R70,\"{\",CHAR(160),FP$1)),FIND(CHAR(160),SUBSTITUTE($R70,\"}\",CHAR(160),FP$1))-FIND(CHAR(160),SUBSTITUTE($R70,\"{\",CHAR(160),FP$1))+1),\"\")","v":"{Cooling Capacity (Btu/h)}"},{"$f":"IFERROR(MID($R70,FIND(CHAR(160),SUBSTITUTE($R70,\"{\",CHAR(160),FQ$1)),FIND(CHAR(160),SUBSTITUTE($R70,\"}\",CHAR(160),FQ$1))-FIND(CHAR(160),SUBSTITUTE($R70,\"{\",CHAR(160),FQ$1))+1),\"\")","v":"{IEER_base}"},{"$f":"IFERROR(MID($R70,FIND(CHAR(160),SUBSTITUTE($R70,\"{\",CHAR(160),FR$1)),FIND(CHAR(160),SUBSTITUTE($R70,\"}\",CHAR(160),FR$1))-FIND(CHAR(160),SUBSTITUTE($R70,\"{\",CHAR(160),FR$1))+1),\"\")","v":"{IEER}"},{"$f":"IFERROR(MID($R70,FIND(CHAR(160),SUBSTITUTE($R70,\"{\",CHAR(160),FS$1)),FIND(CHAR(160),SUBSTITUTE($R70,\"}\",CHAR(160),FS$1))-FIND(CHAR(160),SUBSTITUTE($R70,\"{\",CHAR(160),FS$1))+1),\"\")","v":""},{"$f":"IFERROR(MID($R70,FIND(CHAR(160),SUBSTITUTE($R70,\"{\",CHAR(160),FT$1)),FIND(CHAR(160),SUBSTITUTE($R70,\"}\",CHAR(160),FT$1))-FIND(CHAR(160),SUBSTITUTE($R70,\"{\",CHAR(160),FT$1))+1),\"\")","v":""},{"$f":"IFERROR(MID($R70,FIND(CHAR(160),SUBSTITUTE($R70,\"{\",CHAR(160),FU$1)),FIND(CHAR(160),SUBSTITUTE($R70,\"}\",CHAR(160),FU$1))-FIND(CHAR(160),SUBSTITUTE($R70,\"{\",CHAR(160),FU$1))+1),\"\")","v":"{Measure:Quantity}"},{"$f":"IFERROR(MID($R70,FIND(CHAR(160),SUBSTITUTE($R70,\"{\",CHAR(160),FV$1)),FIND(CHAR(160),SUBSTITUTE($R70,\"}\",CHAR(160),FV$1))-FIND(CHAR(160),SUBSTITUTE($R70,\"{\",CHAR(160),FV$1))+1),\"\")","v":"{Square Feet Served}"},{"$f":"IFERROR(MID($U70,FIND(CHAR(160),SUBSTITUTE($U70,\"{\",CHAR(160),FW$1)),FIND(CHAR(160),SUBSTITUTE($U70,\"}\",CHAR(160),FW$1))-FIND(CHAR(160),SUBSTITUTE($U70,\"{\",CHAR(160),FW$1))+1),\"\")","v":"{Existing Heating Fuel}"},{"$f":"IFERROR(MID($U70,FIND(CHAR(160),SUBSTITUTE($U70,\"{\",CHAR(160),FX$1)),FIND(CHAR(160),SUBSTITUTE($U70,\"}\",CHAR(160),FX$1))-FIND(CHAR(160),SUBSTITUTE($U70,\"{\",CHAR(160),FX$1))+1),\"\")","v":"{COP_base}"},{"$f":"IFERROR(MID($U70,FIND(CHAR(160),SUBSTITUTE($U70,\"{\",CHAR(160),FY$1)),FIND(CHAR(160),SUBSTITUTE($U70,\"}\",CHAR(160),FY$1))-FIND(CHAR(160),SUBSTITUTE($U70,\"{\",CHAR(160),FY$1))+1),\"\")","v":"{COP}"},{"$f":"IFERROR(MID($U70,FIND(CHAR(160),SUBSTITUTE($U70,\"{\",CHAR(160),FZ$1)),FIND(CHAR(160),SUBSTITUTE($U70,\"}\",CHAR(160),FZ$1))-FIND(CHAR(160),SUBSTITUTE($U70,\"{\",CHAR(160),FZ$1))+1),\"\")","v":"{Factor:WinterCF}"},{"$f":"IFERROR(MID($U70,FIND(CHAR(160),SUBSTITUTE($U70,\"{\",CHAR(160),GA$1)),FIND(CHAR(160),SUBSTITUTE($U70,\"}\",CHAR(160),GA$1))-FIND(CHAR(160),SUBSTITUTE($U70,\"{\",CHAR(160),GA$1))+1),\"\")","v":""},{"$f":"IFERROR(MID($U70,FIND(CHAR(160),SUBSTITUTE($U70,\"{\",CHAR(160),GB$1)),FIND(CHAR(160),SUBSTITUTE($U70,\"}\",CHAR(160),GB$1))-FIND(CHAR(160),SUBSTITUTE($U70,\"{\",CHAR(160),GB$1))+1),\"\")","v":""},{"$f":"IFERROR(MID($U70,FIND(CHAR(160),SUBSTITUTE($U70,\"{\",CHAR(160),GC$1)),FIND(CHAR(160),SUBSTITUTE($U70,\"}\",CHAR(160),GC$1))-FIND(CHAR(160),SUBSTITUTE($U70,\"{\",CHAR(160),GC$1))+1),\"\")","v":""},{"$f":"IFERROR(MID($U70,FIND(CHAR(160),SUBSTITUTE($U70,\"{\",CHAR(160),GD$1)),FIND(CHAR(160),SUBSTITUTE($U70,\"}\",CHAR(160),GD$1))-FIND(CHAR(160),SUBSTITUTE($U70,\"{\",CHAR(160),GD$1))+1),\"\")","v":""},{"$f":"IFERROR(MID($U70,FIND(CHAR(160),SUBSTITUTE($U70,\"{\",CHAR(160),GE$1)),FIND(CHAR(160),SUBSTITUTE($U70,\"}\",CHAR(160),GE$1))-FIND(CHAR(160),SUBSTITUTE($U70,\"{\",CHAR(160),GE$1))+1),\"\")","v":"{Measure:Quantity}"},{"$f":"IFERROR(MID($U70,FIND(CHAR(160),SUBSTITUTE($U70,\"{\",CHAR(160),GF$1)),FIND(CHAR(160),SUBSTITUTE($U70,\"}\",CHAR(160),GF$1))-FIND(CHAR(160),SUBSTITUTE($U70,\"{\",CHAR(160),GF$1))+1),\"\")","v":"{Square Feet Served}"},{"$f":"IFERROR(MID($V70,FIND(CHAR(160),SUBSTITUTE($V70,\"{\",CHAR(160),GG$1)),FIND(CHAR(160),SUBSTITUTE($V70,\"}\",CHAR(160),GG$1))-FIND(CHAR(160),SUBSTITUTE($V70,\"{\",CHAR(160),GG$1))+1),\"\")","v":"{IEER_base}"},{"$f":"IFERROR(MID($V70,FIND(CHAR(160),SUBSTITUTE($V70,\"{\",CHAR(160),GH$1)),FIND(CHAR(160),SUBSTITUTE($V70,\"}\",CHAR(160),GH$1))-FIND(CHAR(160),SUBSTITUTE($V70,\"{\",CHAR(160),GH$1))+1),\"\")","v":"{IEER}"},{"$f":"IFERROR(MID($V70,FIND(CHAR(160),SUBSTITUTE($V70,\"{\",CHAR(160),GI$1)),FIND(CHAR(160),SUBSTITUTE($V70,\"}\",CHAR(160),GI$1))-FIND(CHAR(160),SUBSTITUTE($V70,\"{\",CHAR(160),GI$1))+1),\"\")","v":"{Factor:SummerCF}"},{"$f":"IFERROR(MID($V70,FIND(CHAR(160),SUBSTITUTE($V70,\"{\",CHAR(160),GJ$1)),FIND(CHAR(160),SUBSTITUTE($V70,\"}\",CHAR(160),GJ$1))-FIND(CHAR(160),SUBSTITUTE($V70,\"{\",CHAR(160),GJ$1))+1),\"\")","v":""},{"$f":"IFERROR(MID($V70,FIND(CHAR(160),SUBSTITUTE($V70,\"{\",CHAR(160),GK$1)),FIND(CHAR(160),SUBSTITUTE($V70,\"}\",CHAR(160),GK$1))-FIND(CHAR(160),SUBSTITUTE($V70,\"{\",CHAR(160),GK$1))+1),\"\")","v":""},{"$f":"IFERROR(MID($V70,FIND(CHAR(160),SUBSTITUTE($V70,\"{\",CHAR(160),GL$1)),FIND(CHAR(160),SUBSTITUTE($V70,\"}\",CHAR(160),GL$1))-FIND(CHAR(160),SUBSTITUTE($V70,\"{\",CHAR(160),GL$1))+1),\"\")","v":""},{"$f":"IFERROR(MID($V70,FIND(CHAR(160),SUBSTITUTE($V70,\"{\",CHAR(160),GM$1)),FIND(CHAR(160),SUBSTITUTE($V70,\"}\",CHAR(160),GM$1))-FIND(CHAR(160),SUBSTITUTE($V70,\"{\",CHAR(160),GM$1))+1),\"\")","v":""},{"$f":"IFERROR(MID($V70,FIND(CHAR(160),SUBSTITUTE($V70,\"{\",CHAR(160),GN$1)),FIND(CHAR(160),SUBSTITUTE($V70,\"}\",CHAR(160),GN$1))-FIND(CHAR(160),SUBSTITUTE($V70,\"{\",CHAR(160),GN$1))+1),\"\")","v":""},{"$f":"IFERROR(MID($V70,FIND(CHAR(160),SUBSTITUTE($V70,\"{\",CHAR(160),GO$1)),FIND(CHAR(160),SUBSTITUTE($V70,\"}\",CHAR(160),GO$1))-FIND(CHAR(160),SUBSTITUTE($V70,\"{\",CHAR(160),GO$1))+1),\"\")","v":"{Measure:Quantity}"},{"$f":"IFERROR(MID($V70,FIND(CHAR(160),SUBSTITUTE($V70,\"{\",CHAR(160),GP$1)),FIND(CHAR(160),SUBSTITUTE($V70,\"}\",CHAR(160),GP$1))-FIND(CHAR(160),SUBSTITUTE($V70,\"{\",CHAR(160),GP$1))+1),\"\")","v":"{Cooling Capacity (Btu/h)}"},{"$f":"IFERROR(MID($W70,FIND(CHAR(160),SUBSTITUTE($W70,\"{\",CHAR(160),GQ$1)),FIND(CHAR(160),SUBSTITUTE($W70,\"}\",CHAR(160),GQ$1))-FIND(CHAR(160),SUBSTITUTE($W70,\"{\",CHAR(160),GQ$1))+1),\"\")","v":"{Square Feet Served}"},{"$f":"IFERROR(MID($W70,FIND(CHAR(160),SUBSTITUTE($W70,\"{\",CHAR(160),GR$1)),FIND(CHAR(160),SUBSTITUTE($W70,\"}\",CHAR(160),GR$1))-FIND(CHAR(160),SUBSTITUTE($W70,\"{\",CHAR(160),GR$1))+1),\"\")","v":"{COP_base}"},{"$f":"IFERROR(MID($W70,FIND(CHAR(160),SUBSTITUTE($W70,\"{\",CHAR(160),GS$1)),FIND(CHAR(160),SUBSTITUTE($W70,\"}\",CHAR(160),GS$1))-FIND(CHAR(160),SUBSTITUTE($W70,\"{\",CHAR(160),GS$1))+1),\"\")","v":""},{"$f":"IFERROR(MID($W70,FIND(CHAR(160),SUBSTITUTE($W70,\"{\",CHAR(160),GT$1)),FIND(CHAR(160),SUBSTITUTE($W70,\"}\",CHAR(160),GT$1))-FIND(CHAR(160),SUBSTITUTE($W70,\"{\",CHAR(160),GT$1))+1),\"\")","v":""},{"$f":"IFERROR(MID($W70,FIND(CHAR(160),SUBSTITUTE($W70,\"{\",CHAR(160),GU$1)),FIND(CHAR(160),SUBSTITUTE($W70,\"}\",CHAR(160),GU$1))-FIND(CHAR(160),SUBSTITUTE($W70,\"{\",CHAR(160),GU$1))+1),\"\")","v":""},{"$f":"IFERROR(MID($W70,FIND(CHAR(160),SUBSTITUTE($W70,\"{\",CHAR(160),GV$1)),FIND(CHAR(160),SUBSTITUTE($W70,\"}\",CHAR(160),GV$1))-FIND(CHAR(160),SUBSTITUTE($W70,\"{\",CHAR(160),GV$1))+1),\"\")","v":""},{"$f":"IFERROR(MID($W70,FIND(CHAR(160),SUBSTITUTE($W70,\"{\",CHAR(160),GW$1)),FIND(CHAR(160),SUBSTITUTE($W70,\"}\",CHAR(160),GW$1))-FIND(CHAR(160),SUBSTITUTE($W70,\"{\",CHAR(160),GW$1))+1),\"\")","v":""},{"$f":"IFERROR(MID($W70,FIND(CHAR(160),SUBSTITUTE($W70,\"{\",CHAR(160),GX$1)),FIND(CHAR(160),SUBSTITUTE($W70,\"}\",CHAR(160),GX$1))-FIND(CHAR(160),SUBSTITUTE($W70,\"{\",CHAR(160),GX$1))+1),\"\")","v":""},{"$f":"IFERROR(MID($W70,FIND(CHAR(160),SUBSTITUTE($W70,\"{\",CHAR(160),GY$1)),FIND(CHAR(160),SUBSTITUTE($W70,\"}\",CHAR(160),GY$1))-FIND(CHAR(160),SUBSTITUTE($W70,\"{\",CHAR(160),GY$1))+1),\"\")","v":"{Existing Heating Fuel}"},{"$f":"IFERROR(MID($W70,FIND(CHAR(160),SUBSTITUTE($W70,\"{\",CHAR(160),GZ$1)),FIND(CHAR(160),SUBSTITUTE($W70,\"}\",CHAR(160),GZ$1))-FIND(CHAR(160),SUBSTITUTE($W70,\"{\",CHAR(160),GZ$1))+1),\"\")","v":"{Measure:Quantity}"},{"$f":"IFERROR(MID($X70,FIND(CHAR(160),SUBSTITUTE($X70,\"{\",CHAR(160),HA$1)),FIND(CHAR(160),SUBSTITUTE($X70,\"}\",CHAR(160),HA$1))-FIND(CHAR(160),SUBSTITUTE($X70,\"{\",CHAR(160),HA$1))+1),\"\")","v":"{Square Feet Served}"},{"$f":"IFERROR(MID($X70,FIND(CHAR(160),SUBSTITUTE($X70,\"{\",CHAR(160),HB$1)),FIND(CHAR(160),SUBSTITUTE($X70,\"}\",CHAR(160),HB$1))-FIND(CHAR(160),SUBSTITUTE($X70,\"{\",CHAR(160),HB$1))+1),\"\")","v":"{COP_base}"},{"$f":"IFERROR(MID($X70,FIND(CHAR(160),SUBSTITUTE($X70,\"{\",CHAR(160),HC$1)),FIND(CHAR(160),SUBSTITUTE($X70,\"}\",CHAR(160),HC$1))-FIND(CHAR(160),SUBSTITUTE($X70,\"{\",CHAR(160),HC$1))+1),\"\")","v":""},{"$f":"IFERROR(MID($X70,FIND(CHAR(160),SUBSTITUTE($X70,\"{\",CHAR(160),HD$1)),FIND(CHAR(160),SUBSTITUTE($X70,\"}\",CHAR(160),HD$1))-FIND(CHAR(160),SUBSTITUTE($X70,\"{\",CHAR(160),HD$1))+1),\"\")","v":""},{"$f":"IFERROR(MID($X70,FIND(CHAR(160),SUBSTITUTE($X70,\"{\",CHAR(160),HE$1)),FIND(CHAR(160),SUBSTITUTE($X70,\"}\",CHAR(160),HE$1))-FIND(CHAR(160),SUBSTITUTE($X70,\"{\",CHAR(160),HE$1))+1),\"\")","v":""},{"$f":"IFERROR(MID($X70,FIND(CHAR(160),SUBSTITUTE($X70,\"{\",CHAR(160),HF$1)),FIND(CHAR(160),SUBSTITUTE($X70,\"}\",CHAR(160),HF$1))-FIND(CHAR(160),SUBSTITUTE($X70,\"{\",CHAR(160),HF$1))+1),\"\")","v":""},{"$f":"IFERROR(MID($X70,FIND(CHAR(160),SUBSTITUTE($X70,\"{\",CHAR(160),HG$1)),FIND(CHAR(160),SUBSTITUTE($X70,\"}\",CHAR(160),HG$1))-FIND(CHAR(160),SUBSTITUTE($X70,\"{\",CHAR(160),HG$1))+1),\"\")","v":""},{"$f":"IFERROR(MID($X70,FIND(CHAR(160),SUBSTITUTE($X70,\"{\",CHAR(160),HH$1)),FIND(CHAR(160),SUBSTITUTE($X70,\"}\",CHAR(160),HH$1))-FIND(CHAR(160),SUBSTITUTE($X70,\"{\",CHAR(160),HH$1))+1),\"\")","v":""},{"$f":"IFERROR(MID($X70,FIND(CHAR(160),SUBSTITUTE($X70,\"{\",CHAR(160),HI$1)),FIND(CHAR(160),SUBSTITUTE($X70,\"}\",CHAR(160),HI$1))-FIND(CHAR(160),SUBSTITUTE($X70,\"{\",CHAR(160),HI$1))+1),\"\")","v":"{Existing Heating Fuel}"},{"$f":"IFERROR(MID($X70,FIND(CHAR(160),SUBSTITUTE($X70,\"{\",CHAR(160),HJ$1)),FIND(CHAR(160),SUBSTITUTE($X70,\"}\",CHAR(160),HJ$1))-FIND(CHAR(160),SUBSTITUTE($X70,\"{\",CHAR(160),HJ$1))+1),\"\")","v":"{Measure:Quantity}"},{"$f":"IFERROR(MID($Y70,FIND(CHAR(160),SUBSTITUTE($Y70,\"{\",CHAR(160),HK$1)),FIND(CHAR(160),SUBSTITUTE($Y70,\"}\",CHAR(160),HK$1))-FIND(CHAR(160),SUBSTITUTE($Y70,\"{\",CHAR(160),HK$1))+1),\"\")","v":"{Square Feet Served}"},{"$f":"IFERROR(MID($Y70,FIND(CHAR(160),SUBSTITUTE($Y70,\"{\",CHAR(160),HL$1)),FIND(CHAR(160),SUBSTITUTE($Y70,\"}\",CHAR(160),HL$1))-FIND(CHAR(160),SUBSTITUTE($Y70,\"{\",CHAR(160),HL$1))+1),\"\")","v":"{COP_base}"},{"$f":"IFERROR(MID($Y70,FIND(CHAR(160),SUBSTITUTE($Y70,\"{\",CHAR(160),HM$1)),FIND(CHAR(160),SUBSTITUTE($Y70,\"}\",CHAR(160),HM$1))-FIND(CHAR(160),SUBSTITUTE($Y70,\"{\",CHAR(160),HM$1))+1),\"\")","v":""},{"$f":"IFERROR(MID($Y70,FIND(CHAR(160),SUBSTITUTE($Y70,\"{\",CHAR(160),HN$1)),FIND(CHAR(160),SUBSTITUTE($Y70,\"}\",CHAR(160),HN$1))-FIND(CHAR(160),SUBSTITUTE($Y70,\"{\",CHAR(160),HN$1))+1),\"\")","v":""},{"$f":"IFERROR(MID($Y70,FIND(CHAR(160),SUBSTITUTE($Y70,\"{\",CHAR(160),HO$1)),FIND(CHAR(160),SUBSTITUTE($Y70,\"}\",CHAR(160),HO$1))-FIND(CHAR(160),SUBSTITUTE($Y70,\"{\",CHAR(160),HO$1))+1),\"\")","v":""},{"$f":"IFERROR(MID($Y70,FIND(CHAR(160),SUBSTITUTE($Y70,\"{\",CHAR(160),HP$1)),FIND(CHAR(160),SUBSTITUTE($Y70,\"}\",CHAR(160),HP$1))-FIND(CHAR(160),SUBSTITUTE($Y70,\"{\",CHAR(160),HP$1))+1),\"\")","v":""},{"$f":"IFERROR(MID($Y70,FIND(CHAR(160),SUBSTITUTE($Y70,\"{\",CHAR(160),HQ$1)),FIND(CHAR(160),SUBSTITUTE($Y70,\"}\",CHAR(160),HQ$1))-FIND(CHAR(160),SUBSTITUTE($Y70,\"{\",CHAR(160),HQ$1))+1),\"\")","v":""},{"$f":"IFERROR(MID($Y70,FIND(CHAR(160),SUBSTITUTE($Y70,\"{\",CHAR(160),HR$1)),FIND(CHAR(160),SUBSTITUTE($Y70,\"}\",CHAR(160),HR$1))-FIND(CHAR(160),SUBSTITUTE($Y70,\"{\",CHAR(160),HR$1))+1),\"\")","v":""},{"$f":"IFERROR(MID($Y70,FIND(CHAR(160),SUBSTITUTE($Y70,\"{\",CHAR(160),HS$1)),FIND(CHAR(160),SUBSTITUTE($Y70,\"}\",CHAR(160),HS$1))-FIND(CHAR(160),SUBSTITUTE($Y70,\"{\",CHAR(160),HS$1))+1),\"\")","v":"{Existing Heating Fuel}"},{"$f":"IFERROR(MID($Y70,FIND(CHAR(160),SUBSTITUTE($Y70,\"{\",CHAR(160),HT$1)),FIND(CHAR(160),SUBSTITUTE($Y70,\"}\",CHAR(160),HT$1))-FIND(CHAR(160),SUBSTITUTE($Y70,\"{\",CHAR(160),HT$1))+1),\"\")","v":"{Measure:Quantity}"},{"$f":"IFERROR(MID($Z70,FIND(CHAR(160),SUBSTITUTE($Z70,\"{\",CHAR(160),HU$1)),FIND(CHAR(160),SUBSTITUTE($Z70,\"}\",CHAR(160),HU$1))-FIND(CHAR(160),SUBSTITUTE($Z70,\"{\",CHAR(160),HU$1))+1),\"\")","v":"{Square Feet Served}"},{"$f":"IFERROR(MID($Z70,FIND(CHAR(160),SUBSTITUTE($Z70,\"{\",CHAR(160),HV$1)),FIND(CHAR(160),SUBSTITUTE($Z70,\"}\",CHAR(160),HV$1))-FIND(CHAR(160),SUBSTITUTE($Z70,\"{\",CHAR(160),HV$1))+1),\"\")","v":"{COP_base}"},{"$f":"IFERROR(MID($Z70,FIND(CHAR(160),SUBSTITUTE($Z70,\"{\",CHAR(160),HW$1)),FIND(CHAR(160),SUBSTITUTE($Z70,\"}\",CHAR(160),HW$1))-FIND(CHAR(160),SUBSTITUTE($Z70,\"{\",CHAR(160),HW$1))+1),\"\")","v":""},{"$f":"IFERROR(MID($Z70,FIND(CHAR(160),SUBSTITUTE($Z70,\"{\",CHAR(160),HX$1)),FIND(CHAR(160),SUBSTITUTE($Z70,\"}\",CHAR(160),HX$1))-FIND(CHAR(160),SUBSTITUTE($Z70,\"{\",CHAR(160),HX$1))+1),\"\")","v":""},{"$f":"IFERROR(MID($Z70,FIND(CHAR(160),SUBSTITUTE($Z70,\"{\",CHAR(160),HY$1)),FIND(CHAR(160),SUBSTITUTE($Z70,\"}\",CHAR(160),HY$1))-FIND(CHAR(160),SUBSTITUTE($Z70,\"{\",CHAR(160),HY$1))+1),\"\")","v":""},{"$f":"IFERROR(MID($Z70,FIND(CHAR(160),SUBSTITUTE($Z70,\"{\",CHAR(160),HZ$1)),FIND(CHAR(160),SUBSTITUTE($Z70,\"}\",CHAR(160),HZ$1))-FIND(CHAR(160),SUBSTITUTE($Z70,\"{\",CHAR(160),HZ$1))+1),\"\")","v":""},{"$f":"IFERROR(MID($Z70,FIND(CHAR(160),SUBSTITUTE($Z70,\"{\",CHAR(160),IA$1)),FIND(CHAR(160),SUBSTITUTE($Z70,\"}\",CHAR(160),IA$1))-FIND(CHAR(160),SUBSTITUTE($Z70,\"{\",CHAR(160),IA$1))+1),\"\")","v":""},{"$f":"IFERROR(MID($Z70,FIND(CHAR(160),SUBSTITUTE($Z70,\"{\",CHAR(160),IB$1)),FIND(CHAR(160),SUBSTITUTE($Z70,\"}\",CHAR(160),IB$1))-FIND(CHAR(160),SUBSTITUTE($Z70,\"{\",CHAR(160),IB$1))+1),\"\")","v":""},{"$f":"IFERROR(MID($Z70,FIND(CHAR(160),SUBSTITUTE($Z70,\"{\",CHAR(160),IC$1)),FIND(CHAR(160),SUBSTITUTE($Z70,\"}\",CHAR(160),IC$1))-FIND(CHAR(160),SUBSTITUTE($Z70,\"{\",CHAR(160),IC$1))+1),\"\")","v":"{Existing Heating Fuel}"},{"$f":"IFERROR(MID($Z70,FIND(CHAR(160),SUBSTITUTE($Z70,\"{\",CHAR(160),ID$1)),FIND(CHAR(160),SUBSTITUTE($Z70,\"}\",CHAR(160),ID$1))-FIND(CHAR(160),SUBSTITUTE($Z70,\"{\",CHAR(160),ID$1))+1),\"\")","v":"{Measure:Quantity}"},{"$f":"IFERROR(MID($AA70,FIND(CHAR(160),SUBSTITUTE($AA70,\"{\",CHAR(160),IE$1)),FIND(CHAR(160),SUBSTITUTE($AA70,\"}\",CHAR(160),IE$1))-FIND(CHAR(160),SUBSTITUTE($AA70,\"{\",CHAR(160),IE$1))+1),\"\")","v":"{Square Feet Served}"},{"$f":"IFERROR(MID($AA70,FIND(CHAR(160),SUBSTITUTE($AA70,\"{\",CHAR(160),IF$1)),FIND(CHAR(160),SUBSTITUTE($AA70,\"}\",CHAR(160),IF$1))-FIND(CHAR(160),SUBSTITUTE($AA70,\"{\",CHAR(160),IF$1))+1),\"\")","v":"{COP_base}"},{"$f":"IFERROR(MID($AA70,FIND(CHAR(160),SUBSTITUTE($AA70,\"{\",CHAR(160),IG$1)),FIND(CHAR(160),SUBSTITUTE($AA70,\"}\",CHAR(160),IG$1))-FIND(CHAR(160),SUBSTITUTE($AA70,\"{\",CHAR(160),IG$1))+1),\"\")","v":""},{"$f":"IFERROR(MID($AA70,FIND(CHAR(160),SUBSTITUTE($AA70,\"{\",CHAR(160),IH$1)),FIND(CHAR(160),SUBSTITUTE($AA70,\"}\",CHAR(160),IH$1))-FIND(CHAR(160),SUBSTITUTE($AA70,\"{\",CHAR(160),IH$1))+1),\"\")","v":""},{"$f":"IFERROR(MID($AA70,FIND(CHAR(160),SUBSTITUTE($AA70,\"{\",CHAR(160),II$1)),FIND(CHAR(160),SUBSTITUTE($AA70,\"}\",CHAR(160),II$1))-FIND(CHAR(160),SUBSTITUTE($AA70,\"{\",CHAR(160),II$1))+1),\"\")","v":""},{"$f":"IFERROR(MID($AA70,FIND(CHAR(160),SUBSTITUTE($AA70,\"{\",CHAR(160),IJ$1)),FIND(CHAR(160),SUBSTITUTE($AA70,\"}\",CHAR(160),IJ$1))-FIND(CHAR(160),SUBSTITUTE($AA70,\"{\",CHAR(160),IJ$1))+1),\"\")","v":""},{"$f":"IFERROR(MID($AA70,FIND(CHAR(160),SUBSTITUTE($AA70,\"{\",CHAR(160),IK$1)),FIND(CHAR(160),SUBSTITUTE($AA70,\"}\",CHAR(160),IK$1))-FIND(CHAR(160),SUBSTITUTE($AA70,\"{\",CHAR(160),IK$1))+1),\"\")","v":""},{"$f":"IFERROR(MID($AA70,FIND(CHAR(160),SUBSTITUTE($AA70,\"{\",CHAR(160),IL$1)),FIND(CHAR(160),SUBSTITUTE($AA70,\"}\",CHAR(160),IL$1))-FIND(CHAR(160),SUBSTITUTE($AA70,\"{\",CHAR(160),IL$1))+1),\"\")","v":""},{"$f":"IFERROR(MID($AA70,FIND(CHAR(160),SUBSTITUTE($AA70,\"{\",CHAR(160),IM$1)),FIND(CHAR(160),SUBSTITUTE($AA70,\"}\",CHAR(160),IM$1))-FIND(CHAR(160),SUBSTITUTE($AA70,\"{\",CHAR(160),IM$1))+1),\"\")","v":"{Existing Heating Fuel}"},{"$f":"IFERROR(MID($AA70,FIND(CHAR(160),SUBSTITUTE($AA70,\"{\",CHAR(160),IN$1)),FIND(CHAR(160),SUBSTITUTE($AA70,\"}\",CHAR(160),IN$1))-FIND(CHAR(160),SUBSTITUTE($AA70,\"{\",CHAR(160),IN$1))+1),\"\")","v":"{Measure:Quantity}"},{"$f":"IFERROR(MID($AB70,FIND(CHAR(160),SUBSTITUTE($AB70,\"{\",CHAR(160),IO$1)),FIND(CHAR(160),SUBSTITUTE($AB70,\"}\",CHAR(160),IO$1))-FIND(CHAR(160),SUBSTITUTE($AB70,\"{\",CHAR(160),IO$1))+1),\"\")","v":""},{"$f":"IFERROR(MID($AB70,FIND(CHAR(160),SUBSTITUTE($AB70,\"{\",CHAR(160),IP$1)),FIND(CHAR(160),SUBSTITUTE($AB70,\"}\",CHAR(160),IP$1))-FIND(CHAR(160),SUBSTITUTE($AB70,\"{\",CHAR(160),IP$1))+1),\"\")","v":""},{"$f":"IFERROR(MID($AB70,FIND(CHAR(160),SUBSTITUTE($AB70,\"{\",CHAR(160),IQ$1)),FIND(CHAR(160),SUBSTITUTE($AB70,\"}\",CHAR(160),IQ$1))-FIND(CHAR(160),SUBSTITUTE($AB70,\"{\",CHAR(160),IQ$1))+1),\"\")","v":""},{"$f":"IFERROR(MID($AB70,FIND(CHAR(160),SUBSTITUTE($AB70,\"{\",CHAR(160),IR$1)),FIND(CHAR(160),SUBSTITUTE($AB70,\"}\",CHAR(160),IR$1))-FIND(CHAR(160),SUBSTITUTE($AB70,\"{\",CHAR(160),IR$1))+1),\"\")","v":""},{"$f":"IFERROR(MID($AB70,FIND(CHAR(160),SUBSTITUTE($AB70,\"{\",CHAR(160),IS$1)),FIND(CHAR(160),SUBSTITUTE($AB70,\"}\",CHAR(160),IS$1))-FIND(CHAR(160),SUBSTITUTE($AB70,\"{\",CHAR(160),IS$1))+1),\"\")","v":""},{"$f":"IFERROR(MID($AB70,FIND(CHAR(160),SUBSTITUTE($AB70,\"{\",CHAR(160),IT$1)),FIND(CHAR(160),SUBSTITUTE($AB70,\"}\",CHAR(160),IT$1))-FIND(CHAR(160),SUBSTITUTE($AB70,\"{\",CHAR(160),IT$1))+1),\"\")","v":""},{"$f":"IFERROR(MID($AB70,FIND(CHAR(160),SUBSTITUTE($AB70,\"{\",CHAR(160),IU$1)),FIND(CHAR(160),SUBSTITUTE($AB70,\"}\",CHAR(160),IU$1))-FIND(CHAR(160),SUBSTITUTE($AB70,\"{\",CHAR(160),IU$1))+1),\"\")","v":""},{"$f":"IFERROR(MID($AB70,FIND(CHAR(160),SUBSTITUTE($AB70,\"{\",CHAR(160),IV$1)),FIND(CHAR(160),SUBSTITUTE($AB70,\"}\",CHAR(160),IV$1))-FIND(CHAR(160),SUBSTITUTE($AB70,\"{\",CHAR(160),IV$1))+1),\"\")","v":""},{"$f":"IFERROR(MID($AB70,FIND(CHAR(160),SUBSTITUTE($AB70,\"{\",CHAR(160),IW$1)),FIND(CHAR(160),SUBSTITUTE($AB70,\"}\",CHAR(160),IW$1))-FIND(CHAR(160),SUBSTITUTE($AB70,\"{\",CHAR(160),IW$1))+1),\"\")","v":""},{"$f":"IFERROR(MID($AB70,FIND(CHAR(160),SUBSTITUTE($AB70,\"{\",CHAR(160),IX$1)),FIND(CHAR(160),SUBSTITUTE($AB70,\"}\",CHAR(160),IX$1))-FIND(CHAR(160),SUBSTITUTE($AB70,\"{\",CHAR(160),IX$1))+1),\"\")","v":""},null,{"$f":"10-COUNTIF(DU70:ED70,\"\")","v":9}]
["C&I HVAC - High Performance VRF Retrofits","Variable Refrigerant Flow - Without Heat Recovery Retrofit","VRFWOHRR","2021-07-01","2022-06-30","Calculated","{Measure:Quantity}*{Square Feet Served}*{Cost per SQFT}",0,"Calculated","{Measure:Quantity}*{Square Feet Served}*4",0,"2020-07-01","2022-06-30","Calculated","{Measure:Quantity} * ({Cooling Capacity (Btu/h)}/1000*(1/{IEER_base}-1/{IEER})*829+{Square Feet Served}*47.4/3.412*(if({Existing Heating Fuel}<>6,0,1/{COP_base})-1/{COP}))",null,null,"{Measure:Quantity} *Max({Square Feet Served}*47.4/3.412*(if({Existing Heating Fuel}<>6,0,1/{COP_base})-1/{COP})/1600,{Cooling Capacity (Btu/h)}/1000*(1/{IEER_base}-1/{IEER}))",null,null,"{Measure:Quantity} * ({Square Feet Served}*47.4/3.412*(if({Existing Heating Fuel}<>6,0,1/{COP_base})-1/{COP})/1600*{Factor:WinterCF})","{Measure:Quantity} * ({Cooling Capacity (Btu/h)}/1000*(1/{IEER_base}-1/{IEER})*{Factor:SummerCF})","if({Existing Heating Fuel}=1,{Measure:Quantity} * {Square Feet Served}*47.4/1000*1/{COP_base},0)*10","if({Existing Heating Fuel}=2,{Measure:Quantity} * {Square Feet Served}*47.4/1000*1/{COP_base},0)","if({Existing Heating Fuel}=3,{Measure:Quantity} * {Square Feet Served}*47.4/1000*1/{COP_base},0)","if({Existing Heating Fuel}=4,{Measure:Quantity} * {Square Feet Served}*47.4/1000*1/{COP_base},0)","if({Existing Heating Fuel}=5,{Measure:Quantity} * {Square Feet Served}*47.4/1000*1/{COP_base},0)",null,"2020-07-01","2022-06-30",20,0.42,0.35699999999999998,0.17,0.03,0.62,0.18,1,1.1220000000000001,1,0.25,0,null,{"$f":"DU71","v":"{Measure:Quantity}"},1,{"$f":"DV71","v":"{Square Feet Served}"},6330,{"$f":"DW71","v":"{Cost per SQFT}"},11.57,{"$f":"DX71","v":"{IEER_base}"},141000,{"$f":"DY71","v":"{IEER}"},9.5,{"$f":"DZ71","v":"{Existing Heating Fuel}"},21,{"$f":"EA71","v":"{COP_base}"},3,{"$f":"EB71","v":"{COP}"},0.8,{"$f":"EC71","v":"{Cooling Capacity (Btu/h)}"},3.78,{"$f":"ED71","v":""},null,{"$f":"AS71 * (AY71/1000*(1/BA71-1/BC71)*829+AU71*47.4/3.412*(IF(BE71<>6,0,1/BG71)-1/BI71))","v":-16525.868331438211},0,0,{"$f":"AS71 *MAX(AU71*47.4/3.412*(IF(BE71<>6,0,1/BG71)-1/BI71)/1600,AY71/1000*(1/BA71-1/BC71))","v":8.1278195488721803},0,0,{"$f":"AS71 * (AU71*47.4/3.412*(IF(BE71<>6,0,1/BG71)-1/BI71)/1600*AF71)","v":-6.1067555685814776},{"$f":"AS71 * (AY71/1000*(1/BA71-1/BC71)*AG71)","v":2.9016315789473683},{"$f":"IF(BE71=1,AS71 * AU71*47.4/1000*1/BG71,0)*10","v":0},{"$f":"IF(BE71=2,AS71 * AU71*47.4/1000*1/BG71,0)","v":0},{"$f":"IF(BE71=3,AS71 * AU71*47.4/1000*1/BG71,0)","v":375.05249999999995},{"$f":"IF(BE71=4,AS71 * AU71*47.4/1000*1/BG71,0)","v":0},{"$f":"IF(BE71=5,AS71 * AU71*47.4/1000*1/BG71,0)","v":0},0,null,"Com","Default DR",{"$f":"Benefits(BL71,BR71,BS71,BT71,BU71,BV71,BW71,BX71,BY71,BZ71,AE71,AH71,AI71,AJ71,AK71,AL71,AM71,AN71,AO71,AP71,CA71,CB71)","v":-27889.776341237259},-21971.280988436047,0,205027.92964529549,0,0,0,0,0,{"$f":"SUMPRODUCT(CC71:CK71,--(CC71:CK71>0))","v":205027.92964529549},{"$f":"-SUMPRODUCT(CC71:CK71,--(CC71:CK71<0))","v":49861.057329673306},null,{"$f":"AS71*AU71*AW71","v":73238.100000000006},null,null,{"$f":"CM71+CO71","v":123099.15732967331},{"$f":"IF(NetOrGross=\"Net\",(1-AO71+AP71),1)","v":1},{"$f":"(SUMPRODUCT(CC71:CJ71,--(CC71:CJ71>0))+CN71)*CS71/((-SUMPRODUCT(CC71:CJ71,--(CC71:CJ71<0))+MAX(CO71,CV71)+CP71+CQ71)*CS71+IF(FRIncentives=\"Yes\",CV71*(1-CS71),0))","v":1.6655510410701493},1,{"$f":"AS71*AU71*4","v":25320},null,"RGGI","y",null,{"$f":"IF(F71=\"Manual Entry\",\"Manual\",IF(G71=\"\",0,\"X=\"&SUBSTITUTE(SUBSTITUTE(SUBSTITUTE(SUBSTITUTE(SUBSTITUTE(SUBSTITUTE(SUBSTITUTE(SUBSTITUTE(SUBSTITUTE(SUBSTITUTE(SUBSTITUTE(SUBSTITUTE(G71,$ED71,$ED$2&ROW($ED71)),$EC71,$EC$2&ROW($EC71)),$EB71,$EB$2&ROW($EB71)),$EA71,$EA$2&ROW($EA71)),$DZ71,$DZ$2&ROW($DZ71)),$DY71,$DY$2&ROW($DY71)),$DX71,$DX$2&ROW($DX71)),$DW71,$DW$2&ROW($DW71)),$DV71,$DV$2&ROW($DV71)),$DU71,$DU$2&ROW($DU71)),$DT71,$DT$2&ROW($DT71)),$DS71,$DS$2&ROW($DS71))))","v":"X=AS71*AU71*AW71"},{"$f":"IF(I71=\"Manual Entry\",\"Manual\",IF(J71=\"\",0,\"X=\"&SUBSTITUTE(SUBSTITUTE(SUBSTITUTE(SUBSTITUTE(SUBSTITUTE(SUBSTITUTE(SUBSTITUTE(SUBSTITUTE(SUBSTITUTE(SUBSTITUTE(SUBSTITUTE(SUBSTITUTE(J71,$ED71,$ED$2&ROW($ED71)),$EC71,$EC$2&ROW($EC71)),$EB71,$EB$2&ROW($EB71)),$EA71,$EA$2&ROW($EA71)),$DZ71,$DZ$2&ROW($DZ71)),$DY71,$DY$2&ROW($DY71)),$DX71,$DX$2&ROW($DX71)),$DW71,$DW$2&ROW($DW71)),$DV71,$DV$2&ROW($DV71)),$DU71,$DU$2&ROW($DU71)),$DT71,$DT$2&ROW($DT71)),$DS71,$DS$2&ROW($DS71))))","v":"X=AS71*AU71*4"},{"$f":"IF(O71=\"\",0,\"X=\"&SUBSTITUTE(SUBSTITUTE(SUBSTITUTE(SUBSTITUTE(SUBSTITUTE(SUBSTITUTE(SUBSTITUTE(SUBSTITUTE(SUBSTITUTE(SUBSTITUTE(SUBSTITUTE(SUBSTITUTE(O71,$ED71,$ED$2&ROW($ED71)),$EC71,$EC$2&ROW($EC71)),$EB71,$EB$2&ROW($EB71)),$EA71,$EA$2&ROW($EA71)),$DZ71,$DZ$2&ROW($DZ71)),$DY71,$DY$2&ROW($DY71)),$DX71,$DX$2&ROW($DX71)),$DW71,$DW$2&ROW($DW71)),$DV71,$DV$2&ROW($DV71)),$DU71,$DU$2&ROW($DU71)),$DT71,$DT$2&ROW($DT71)),$DS71,$DS$2&ROW($DS71)))","v":"X=AS71 * (BI71/1000*(1/AY71-1/BA71)*829+AU71*47.4/3.412*(if(BC71<>6,0,1/BE71)-1/BG71))"},{"$f":"IF(P71=\"\",0,\"X=\"&SUBSTITUTE(SUBSTITUTE(SUBSTITUTE(SUBSTITUTE(SUBSTITUTE(SUBSTITUTE(SUBSTITUTE(SUBSTITUTE(SUBSTITUTE(SUBSTITUTE(SUBSTITUTE(SUBSTITUTE(P71,$ED71,$ED$2&ROW($ED71)),$EC71,$EC$2&ROW($EC71)),$EB71,$EB$2&ROW($EB71)),$EA71,$EA$2&ROW($EA71)),$DZ71,$DZ$2&ROW($DZ71)),$DY71,$DY$2&ROW($DY71)),$DX71,$DX$2&ROW($DX71)),$DW71,$DW$2&ROW($DW71)),$DV71,$DV$2&ROW($DV71)),$DU71,$DU$2&ROW($DU71)),$DT71,$DT$2&ROW($DT71)),$DS71,$DS$2&ROW($DS71)))","v":0},{"$f":"IF(Q71=\"\",0,\"X=\"&SUBSTITUTE(SUBSTITUTE(SUBSTITUTE(SUBSTITUTE(SUBSTITUTE(SUBSTITUTE(SUBSTITUTE(SUBSTITUTE(SUBSTITUTE(SUBSTITUTE(SUBSTITUTE(SUBSTITUTE(Q71,$ED71,$ED$2&ROW($ED71)),$EC71,$EC$2&ROW($EC71)),$EB71,$EB$2&ROW($EB71)),$EA71,$EA$2&ROW($EA71)),$DZ71,$DZ$2&ROW($DZ71)),$DY71,$DY$2&ROW($DY71)),$DX71,$DX$2&ROW($DX71)),$DW71,$DW$2&ROW($DW71)),$DV71,$DV$2&ROW($DV71)),$DU71,$DU$2&ROW($DU71)),$DT71,$DT$2&ROW($DT71)),$DS71,$DS$2&ROW($DS71)))","v":0},{"$f":"IF(R71=\"\",0,\"X=\"&SUBSTITUTE(SUBSTITUTE(SUBSTITUTE(SUBSTITUTE(SUBSTITUTE(SUBSTITUTE(SUBSTITUTE(SUBSTITUTE(SUBSTITUTE(SUBSTITUTE(SUBSTITUTE(SUBSTITUTE(R71,$ED71,$ED$2&ROW($ED71)),$EC71,$EC$2&ROW($EC71)),$EB71,$EB$2&ROW($EB71)),$EA71,$EA$2&ROW($EA71)),$DZ71,$DZ$2&ROW($DZ71)),$DY71,$DY$2&ROW($DY71)),$DX71,$DX$2&ROW($DX71)),$DW71,$DW$2&ROW($DW71)),$DV71,$DV$2&ROW($DV71)),$DU71,$DU$2&ROW($DU71)),$DT71,$DT$2&ROW($DT71)),$DS71,$DS$2&ROW($DS71)))","v":"X=AS71 *Max(AU71*47.4/3.412*(if(BC71<>6,0,1/BE71)-1/BG71)/1600,BI71/1000*(1/AY71-1/BA71))"},{"$f":"IF(S71=\"\",0,\"X=\"&SUBSTITUTE(SUBSTITUTE(SUBSTITUTE(SUBSTITUTE(SUBSTITUTE(SUBSTITUTE(SUBSTITUTE(SUBSTITUTE(SUBSTITUTE(SUBSTITUTE(SUBSTITUTE(SUBSTITUTE(S71,$ED71,$ED$2&ROW($ED71)),$EC71,$EC$2&ROW($EC71)),$EB71,$EB$2&ROW($EB71)),$EA71,$EA$2&ROW($EA71)),$DZ71,$DZ$2&ROW($DZ71)),$DY71,$DY$2&ROW($DY71)),$DX71,$DX$2&ROW($DX71)),$DW71,$DW$2&ROW($DW71)),$DV71,$DV$2&ROW($DV71)),$DU71,$DU$2&ROW($DU71)),$DT71,$DT$2&ROW($DT71)),$DS71,$DS$2&ROW($DS71)))","v":0},{"$f":"IF(T71=\"\",0,\"X=\"&SUBSTITUTE(SUBSTITUTE(SUBSTITUTE(SUBSTITUTE(SUBSTITUTE(SUBSTITUTE(SUBSTITUTE(SUBSTITUTE(SUBSTITUTE(SUBSTITUTE(SUBSTITUTE(SUBSTITUTE(T71,$ED71,$ED$2&ROW($ED71)),$EC71,$EC$2&ROW($EC71)),$EB71,$EB$2&ROW($EB71)),$EA71,$EA$2&ROW($EA71)),$DZ71,$DZ$2&ROW($DZ71)),$DY71,$DY$2&ROW($DY71)),$DX71,$DX$2&ROW($DX71)),$DW71,$DW$2&ROW($DW71)),$DV71,$DV$2&ROW($DV71)),$DU71,$DU$2&ROW($DU71)),$DT71,$DT$2&ROW($DT71)),$DS71,$DS$2&ROW($DS71)))","v":0},{"$f":"IF(U71=\"\",0,\"X=\"&SUBSTITUTE(SUBSTITUTE(SUBSTITUTE(SUBSTITUTE(SUBSTITUTE(SUBSTITUTE(SUBSTITUTE(SUBSTITUTE(SUBSTITUTE(SUBSTITUTE(SUBSTITUTE(SUBSTITUTE(U71,$ED71,$ED$2&ROW($ED71)),$EC71,$EC$2&ROW($EC71)),$EB71,$EB$2&ROW($EB71)),$EA71,$EA$2&ROW($EA71)),$DZ71,$DZ$2&ROW($DZ71)),$DY71,$DY$2&ROW($DY71)),$DX71,$DX$2&ROW($DX71)),$DW71,$DW$2&ROW($DW71)),$DV71,$DV$2&ROW($DV71)),$DU71,$DU$2&ROW($DU71)),$DT71,$DT$2&ROW($DT71)),$DS71,$DS$2&ROW($DS71)))","v":"X=AS71 * (AU71*47.4/3.412*(if(BC71<>6,0,1/BE71)-1/BG71)/1600*AF71)"},{"$f":"IF(V71=\"\",0,\"X=\"&SUBSTITUTE(SUBSTITUTE(SUBSTITUTE(SUBSTITUTE(SUBSTITUTE(SUBSTITUTE(SUBSTITUTE(SUBSTITUTE(SUBSTITUTE(SUBSTITUTE(SUBSTITUTE(SUBSTITUTE(V71,$ED71,$ED$2&ROW($ED71)),$EC71,$EC$2&ROW($EC71)),$EB71,$EB$2&ROW($EB71)),$EA71,$EA$2&ROW($EA71)),$DZ71,$DZ$2&ROW($DZ71)),$DY71,$DY$2&ROW($DY71)),$DX71,$DX$2&ROW($DX71)),$DW71,$DW$2&ROW($DW71)),$DV71,$DV$2&ROW($DV71)),$DU71,$DU$2&ROW($DU71)),$DT71,$DT$2&ROW($DT71)),$DS71,$DS$2&ROW($DS71)))","v":"X=AS71 * (BI71/1000*(1/AY71-1/BA71)*AG71)"},{"$f":"IF(W71=\"\",0,\"X=\"&SUBSTITUTE(SUBSTITUTE(SUBSTITUTE(SUBSTITUTE(SUBSTITUTE(SUBSTITUTE(SUBSTITUTE(SUBSTITUTE(SUBSTITUTE(SUBSTITUTE(SUBSTITUTE(SUBSTITUTE(W71,$ED71,$ED$2&ROW($ED71)),$EC71,$EC$2&ROW($EC71)),$EB71,$EB$2&ROW($EB71)),$EA71,$EA$2&ROW($EA71)),$DZ71,$DZ$2&ROW($DZ71)),$DY71,$DY$2&ROW($DY71)),$DX71,$DX$2&ROW($DX71)),$DW71,$DW$2&ROW($DW71)),$DV71,$DV$2&ROW($DV71)),$DU71,$DU$2&ROW($DU71)),$DT71,$DT$2&ROW($DT71)),$DS71,$DS$2&ROW($DS71)))","v":"X=if(BC71=1,AS71 * AU71*47.4/1000*1/BE71,0)*10"},{"$f":"IF(X71=\"\",0,\"X=\"&SUBSTITUTE(SUBSTITUTE(SUBSTITUTE(SUBSTITUTE(SUBSTITUTE(SUBSTITUTE(SUBSTITUTE(SUBSTITUTE(SUBSTITUTE(SUBSTITUTE(SUBSTITUTE(SUBSTITUTE(X71,$ED71,$ED$2&ROW($ED71)),$EC71,$EC$2&ROW($EC71)),$EB71,$EB$2&ROW($EB71)),$EA71,$EA$2&ROW($EA71)),$DZ71,$DZ$2&ROW($DZ71)),$DY71,$DY$2&ROW($DY71)),$DX71,$DX$2&ROW($DX71)),$DW71,$DW$2&ROW($DW71)),$DV71,$DV$2&ROW($DV71)),$DU71,$DU$2&ROW($DU71)),$DT71,$DT$2&ROW($DT71)),$DS71,$DS$2&ROW($DS71)))","v":"X=if(BC71=2,AS71 * AU71*47.4/1000*1/BE71,0)"},{"$f":"IF(Y71=\"\",0,\"X=\"&SUBSTITUTE(SUBSTITUTE(SUBSTITUTE(SUBSTITUTE(SUBSTITUTE(SUBSTITUTE(SUBSTITUTE(SUBSTITUTE(SUBSTITUTE(SUBSTITUTE(SUBSTITUTE(SUBSTITUTE(Y71,$ED71,$ED$2&ROW($ED71)),$EC71,$EC$2&ROW($EC71)),$EB71,$EB$2&ROW($EB71)),$EA71,$EA$2&ROW($EA71)),$DZ71,$DZ$2&ROW($DZ71)),$DY71,$DY$2&ROW($DY71)),$DX71,$DX$2&ROW($DX71)),$DW71,$DW$2&ROW($DW71)),$DV71,$DV$2&ROW($DV71)),$DU71,$DU$2&ROW($DU71)),$DT71,$DT$2&ROW($DT71)),$DS71,$DS$2&ROW($DS71)))","v":"X=if(BC71=3,AS71 * AU71*47.4/1000*1/BE71,0)"},{"$f":"IF(Z71=\"\",0,\"X=\"&SUBSTITUTE(SUBSTITUTE(SUBSTITUTE(SUBSTITUTE(SUBSTITUTE(SUBSTITUTE(SUBSTITUTE(SUBSTITUTE(SUBSTITUTE(SUBSTITUTE(SUBSTITUTE(SUBSTITUTE(Z71,$ED71,$ED$2&ROW($ED71)),$EC71,$EC$2&ROW($EC71)),$EB71,$EB$2&ROW($EB71)),$EA71,$EA$2&ROW($EA71)),$DZ71,$DZ$2&ROW($DZ71)),$DY71,$DY$2&ROW($DY71)),$DX71,$DX$2&ROW($DX71)),$DW71,$DW$2&ROW($DW71)),$DV71,$DV$2&ROW($DV71)),$DU71,$DU$2&ROW($DU71)),$DT71,$DT$2&ROW($DT71)),$DS71,$DS$2&ROW($DS71)))","v":"X=if(BC71=4,AS71 * AU71*47.4/1000*1/BE71,0)"},{"$f":"IF(AA71=\"\",0,\"X=\"&SUBSTITUTE(SUBSTITUTE(SUBSTITUTE(SUBSTITUTE(SUBSTITUTE(SUBSTITUTE(SUBSTITUTE(SUBSTITUTE(SUBSTITUTE(SUBSTITUTE(SUBSTITUTE(SUBSTITUTE(AA71,$ED71,$ED$2&ROW($ED71)),$EC71,$EC$2&ROW($EC71)),$EB71,$EB$2&ROW($EB71)),$EA71,$EA$2&ROW($EA71)),$DZ71,$DZ$2&ROW($DZ71)),$DY71,$DY$2&ROW($DY71)),$DX71,$DX$2&ROW($DX71)),$DW71,$DW$2&ROW($DW71)),$DV71,$DV$2&ROW($DV71)),$DU71,$DU$2&ROW($DU71)),$DT71,$DT$2&ROW($DT71)),$DS71,$DS$2&ROW($DS71)))","v":"X=if(BC71=5,AS71 * AU71*47.4/1000*1/BE71,0)"},{"$f":"IF(AB71=\"\",0,\"X=\"&SUBSTITUTE(SUBSTITUTE(SUBSTITUTE(SUBSTITUTE(SUBSTITUTE(SUBSTITUTE(SUBSTITUTE(SUBSTITUTE(SUBSTITUTE(SUBSTITUTE(SUBSTITUTE(SUBSTITUTE(AB71,$ED71,$ED$2&ROW($ED71)),$EC71,$EC$2&ROW($EC71)),$EB71,$EB$2&ROW($EB71)),$EA71,$EA$2&ROW($EA71)),$DZ71,$DZ$2&ROW($DZ71)),$DY71,$DY$2&ROW($DY71)),$DX71,$DX$2&ROW($DX71)),$DW71,$DW$2&ROW($DW71)),$DV71,$DV$2&ROW($DV71)),$DU71,$DU$2&ROW($DU71)),$DT71,$DT$2&ROW($DT71)),$DS71,$DS$2&ROW($DS71)))","v":0},null,null,"{Factor:WinterCF}","{Factor:SummerCF}",{"$f":"IFERROR(INDEX($EG71:$IV71,MATCH(0,COUNTIF($DR71:DT71,$EG71:$IV71),0)),\"\")","v":"{Measure:Quantity}"},{"$f":"IFERROR(INDEX($EG71:$IV71,MATCH(0,COUNTIF($DR71:DU71,$EG71:$IV71),0)),\"\")","v":"{Square Feet Served}"},{"$f":"IFERROR(INDEX($EG71:$IV71,MATCH(0,COUNTIF($DR71:DV71,$EG71:$IV71),0)),\"\")","v":"{Cost per SQFT}"},{"$f":"IFERROR(INDEX($EG71:$IV71,MATCH(0,COUNTIF($DR71:DW71,$EG71:$IV71),0)),\"\")","v":"{IEER_base}"},{"$f":"IFERROR(INDEX($EG71:$IV71,MATCH(0,COUNTIF($DR71:DX71,$EG71:$IV71),0)),\"\")","v":"{IEER}"},{"$f":"IFERROR(INDEX($EG71:$IV71,MATCH(0,COUNTIF($DR71:DY71,$EG71:$IV71),0)),\"\")","v":"{Existing Heating Fuel}"},{"$f":"IFERROR(INDEX($EG71:$IV71,MATCH(0,COUNTIF($DR71:DZ71,$EG71:$IV71),0)),\"\")","v":"{COP_base}"},{"$f":"IFERROR(INDEX($EG71:$IV71,MATCH(0,COUNTIF($DR71:EA71,$EG71:$IV71),0)),\"\")","v":"{COP}"},{"$f":"IFERROR(INDEX($EG71:$IV71,MATCH(0,COUNTIF($DR71:EB71,$EG71:$IV71),0)),\"\")","v":"{Cooling Capacity (Btu/h)}"},{"$f":"IFERROR(INDEX($EG71:$IV71,MATCH(0,COUNTIF($DR71:EC71,$EG71:$IV71),0)),\"\")","v":""},null,null,{"$f":"IFERROR(MID($G71,FIND(CHAR(160),SUBSTITUTE($G71,\"{\",CHAR(160),EG$1)),FIND(CHAR(160),SUBSTITUTE($G71,\"}\",CHAR(160),EG$1))-FIND(CHAR(160),SUBSTITUTE($G71,\"{\",CHAR(160),EG$1))+1),\"\")","v":"{Measure:Quantity}"},{"$f":"IFERROR(MID($G71,FIND(CHAR(160),SUBSTITUTE($G71,\"{\",CHAR(160),EH$1)),FIND(CHAR(160),SUBSTITUTE($G71,\"}\",CHAR(160),EH$1))-FIND(CHAR(160),SUBSTITUTE($G71,\"{\",CHAR(160),EH$1))+1),\"\")","v":"{Square Feet Served}"},{"$f":"IFERROR(MID($G71,FIND(CHAR(160),SUBSTITUTE($G71,\"{\",CHAR(160),EI$1)),FIND(CHAR(160),SUBSTITUTE($G71,\"}\",CHAR(160),EI$1))-FIND(CHAR(160),SUBSTITUTE($G71,\"{\",CHAR(160),EI$1))+1),\"\")","v":"{Cost per SQFT}"},{"$f":"IFERROR(MID($G71,FIND(CHAR(160),SUBSTITUTE($G71,\"{\",CHAR(160),EJ$1)),FIND(CHAR(160),SUBSTITUTE($G71,\"}\",CHAR(160),EJ$1))-FIND(CHAR(160),SUBSTITUTE($G71,\"{\",CHAR(160),EJ$1))+1),\"\")","v":""},{"$f":"IFERROR(MID($G71,FIND(CHAR(160),SUBSTITUTE($G71,\"{\",CHAR(160),EK$1)),FIND(CHAR(160),SUBSTITUTE($G71,\"}\",CHAR(160),EK$1))-FIND(CHAR(160),SUBSTITUTE($G71,\"{\",CHAR(160),EK$1))+1),\"\")","v":""},{"$f":"IFERROR(MID($G71,FIND(CHAR(160),SUBSTITUTE($G71,\"{\",CHAR(160),EL$1)),FIND(CHAR(160),SUBSTITUTE($G71,\"}\",CHAR(160),EL$1))-FIND(CHAR(160),SUBSTITUTE($G71,\"{\",CHAR(160),EL$1))+1),\"\")","v":""},{"$f":"IFERROR(MID($G71,FIND(CHAR(160),SUBSTITUTE($G71,\"{\",CHAR(160),EM$1)),FIND(CHAR(160),SUBSTITUTE($G71,\"}\",CHAR(160),EM$1))-FIND(CHAR(160),SUBSTITUTE($G71,\"{\",CHAR(160),EM$1))+1),\"\")","v":""},{"$f":"IFERROR(MID($G71,FIND(CHAR(160),SUBSTITUTE($G71,\"{\",CHAR(160),EN$1)),FIND(CHAR(160),SUBSTITUTE($G71,\"}\",CHAR(160),EN$1))-FIND(CHAR(160),SUBSTITUTE($G71,\"{\",CHAR(160),EN$1))+1),\"\")","v":""},{"$f":"IFERROR(MID($G71,FIND(CHAR(160),SUBSTITUTE($G71,\"{\",CHAR(160),EO$1)),FIND(CHAR(160),SUBSTITUTE($G71,\"}\",CHAR(160),EO$1))-FIND(CHAR(160),SUBSTITUTE($G71,\"{\",CHAR(160),EO$1))+1),\"\")","v":""},{"$f":"IFERROR(MID($G71,FIND(CHAR(160),SUBSTITUTE($G71,\"{\",CHAR(160),EP$1)),FIND(CHAR(160),SUBSTITUTE($G71,\"}\",CHAR(160),EP$1))-FIND(CHAR(160),SUBSTITUTE($G71,\"{\",CHAR(160),EP$1))+1),\"\")","v":""},{"$f":"IFERROR(MID($J71,FIND(CHAR(160),SUBSTITUTE($J71,\"{\",CHAR(160),EQ$1)),FIND(CHAR(160),SUBSTITUTE($J71,\"}\",CHAR(160),EQ$1))-FIND(CHAR(160),SUBSTITUTE($J71,\"{\",CHAR(160),EQ$1))+1),\"\")","v":"{Measure:Quantity}"},{"$f":"IFERROR(MID($J71,FIND(CHAR(160),SUBSTITUTE($J71,\"{\",CHAR(160),ER$1)),FIND(CHAR(160),SUBSTITUTE($J71,\"}\",CHAR(160),ER$1))-FIND(CHAR(160),SUBSTITUTE($J71,\"{\",CHAR(160),ER$1))+1),\"\")","v":"{Square Feet Served}"},{"$f":"IFERROR(MID($J71,FIND(CHAR(160),SUBSTITUTE($J71,\"{\",CHAR(160),ES$1)),FIND(CHAR(160),SUBSTITUTE($J71,\"}\",CHAR(160),ES$1))-FIND(CHAR(160),SUBSTITUTE($J71,\"{\",CHAR(160),ES$1))+1),\"\")","v":""},{"$f":"IFERROR(MID($J71,FIND(CHAR(160),SUBSTITUTE($J71,\"{\",CHAR(160),ET$1)),FIND(CHAR(160),SUBSTITUTE($J71,\"}\",CHAR(160),ET$1))-FIND(CHAR(160),SUBSTITUTE($J71,\"{\",CHAR(160),ET$1))+1),\"\")","v":""},{"$f":"IFERROR(MID($J71,FIND(CHAR(160),SUBSTITUTE($J71,\"{\",CHAR(160),EU$1)),FIND(CHAR(160),SUBSTITUTE($J71,\"}\",CHAR(160),EU$1))-FIND(CHAR(160),SUBSTITUTE($J71,\"{\",CHAR(160),EU$1))+1),\"\")","v":""},{"$f":"IFERROR(MID($J71,FIND(CHAR(160),SUBSTITUTE($J71,\"{\",CHAR(160),EV$1)),FIND(CHAR(160),SUBSTITUTE($J71,\"}\",CHAR(160),EV$1))-FIND(CHAR(160),SUBSTITUTE($J71,\"{\",CHAR(160),EV$1))+1),\"\")","v":""},{"$f":"IFERROR(MID($J71,FIND(CHAR(160),SUBSTITUTE($J71,\"{\",CHAR(160),EW$1)),FIND(CHAR(160),SUBSTITUTE($J71,\"}\",CHAR(160),EW$1))-FIND(CHAR(160),SUBSTITUTE($J71,\"{\",CHAR(160),EW$1))+1),\"\")","v":""},{"$f":"IFERROR(MID($J71,FIND(CHAR(160),SUBSTITUTE($J71,\"{\",CHAR(160),EX$1)),FIND(CHAR(160),SUBSTITUTE($J71,\"}\",CHAR(160),EX$1))-FIND(CHAR(160),SUBSTITUTE($J71,\"{\",CHAR(160),EX$1))+1),\"\")","v":""},{"$f":"IFERROR(MID($J71,FIND(CHAR(160),SUBSTITUTE($J71,\"{\",CHAR(160),EY$1)),FIND(CHAR(160),SUBSTITUTE($J71,\"}\",CHAR(160),EY$1))-FIND(CHAR(160),SUBSTITUTE($J71,\"{\",CHAR(160),EY$1))+1),\"\")","v":""},{"$f":"IFERROR(MID($J71,FIND(CHAR(160),SUBSTITUTE($J71,\"{\",CHAR(160),EZ$1)),FIND(CHAR(160),SUBSTITUTE($J71,\"}\",CHAR(160),EZ$1))-FIND(CHAR(160),SUBSTITUTE($J71,\"{\",CHAR(160),EZ$1))+1),\"\")","v":""},{"$f":"IFERROR(MID($J71,FIND(CHAR(160),SUBSTITUTE($J71,\"{\",CHAR(160),FA$1)),FIND(CHAR(160),SUBSTITUTE($J71,\"}\",CHAR(160),FA$1))-FIND(CHAR(160),SUBSTITUTE($J71,\"{\",CHAR(160),FA$1))+1),\"\")","v":"{Measure:Quantity}"},{"$f":"IFERROR(MID($J71,FIND(CHAR(160),SUBSTITUTE($J71,\"{\",CHAR(160),FB$1)),FIND(CHAR(160),SUBSTITUTE($J71,\"}\",CHAR(160),FB$1))-FIND(CHAR(160),SUBSTITUTE($J71,\"{\",CHAR(160),FB$1))+1),\"\")","v":"{Square Feet Served}"},{"$f":"IFERROR(MID($O71,FIND(CHAR(160),SUBSTITUTE($O71,\"{\",CHAR(160),FC$1)),FIND(CHAR(160),SUBSTITUTE($O71,\"}\",CHAR(160),FC$1))-FIND(CHAR(160),SUBSTITUTE($O71,\"{\",CHAR(160),FC$1))+1),\"\")","v":"{IEER_base}"},{"$f":"IFERROR(MID($O71,FIND(CHAR(160),SUBSTITUTE($O71,\"{\",CHAR(160),FD$1)),FIND(CHAR(160),SUBSTITUTE($O71,\"}\",CHAR(160),FD$1))-FIND(CHAR(160),SUBSTITUTE($O71,\"{\",CHAR(160),FD$1))+1),\"\")","v":"{IEER}"},{"$f":"IFERROR(MID($O71,FIND(CHAR(160),SUBSTITUTE($O71,\"{\",CHAR(160),FE$1)),FIND(CHAR(160),SUBSTITUTE($O71,\"}\",CHAR(160),FE$1))-FIND(CHAR(160),SUBSTITUTE($O71,\"{\",CHAR(160),FE$1))+1),\"\")","v":"{Square Feet Served}"},{"$f":"IFERROR(MID($O71,FIND(CHAR(160),SUBSTITUTE($O71,\"{\",CHAR(160),FF$1)),FIND(CHAR(160),SUBSTITUTE($O71,\"}\",CHAR(160),FF$1))-FIND(CHAR(160),SUBSTITUTE($O71,\"{\",CHAR(160),FF$1))+1),\"\")","v":"{Existing Heating Fuel}"},{"$f":"IFERROR(MID($O71,FIND(CHAR(160),SUBSTITUTE($O71,\"{\",CHAR(160),FG$1)),FIND(CHAR(160),SUBSTITUTE($O71,\"}\",CHAR(160),FG$1))-FIND(CHAR(160),SUBSTITUTE($O71,\"{\",CHAR(160),FG$1))+1),\"\")","v":"{COP_base}"},{"$f":"IFERROR(MID($O71,FIND(CHAR(160),SUBSTITUTE($O71,\"{\",CHAR(160),FH$1)),FIND(CHAR(160),SUBSTITUTE($O71,\"}\",CHAR(160),FH$1))-FIND(CHAR(160),SUBSTITUTE($O71,\"{\",CHAR(160),FH$1))+1),\"\")","v":"{COP}"},{"$f":"IFERROR(MID($O71,FIND(CHAR(160),SUBSTITUTE($O71,\"{\",CHAR(160),FI$1)),FIND(CHAR(160),SUBSTITUTE($O71,\"}\",CHAR(160),FI$1))-FIND(CHAR(160),SUBSTITUTE($O71,\"{\",CHAR(160),FI$1))+1),\"\")","v":""},{"$f":"IFERROR(MID($O71,FIND(CHAR(160),SUBSTITUTE($O71,\"{\",CHAR(160),FJ$1)),FIND(CHAR(160),SUBSTITUTE($O71,\"}\",CHAR(160),FJ$1))-FIND(CHAR(160),SUBSTITUTE($O71,\"{\",CHAR(160),FJ$1))+1),\"\")","v":""},{"$f":"IFERROR(MID($O71,FIND(CHAR(160),SUBSTITUTE($O71,\"{\",CHAR(160),FK$1)),FIND(CHAR(160),SUBSTITUTE($O71,\"}\",CHAR(160),FK$1))-FIND(CHAR(160),SUBSTITUTE($O71,\"{\",CHAR(160),FK$1))+1),\"\")","v":"{Measure:Quantity}"},{"$f":"IFERROR(MID($O71,FIND(CHAR(160),SUBSTITUTE($O71,\"{\",CHAR(160),FL$1)),FIND(CHAR(160),SUBSTITUTE($O71,\"}\",CHAR(160),FL$1))-FIND(CHAR(160),SUBSTITUTE($O71,\"{\",CHAR(160),FL$1))+1),\"\")","v":"{Cooling Capacity (Btu/h)}"},{"$f":"IFERROR(MID($R71,FIND(CHAR(160),SUBSTITUTE($R71,\"{\",CHAR(160),FM$1)),FIND(CHAR(160),SUBSTITUTE($R71,\"}\",CHAR(160),FM$1))-FIND(CHAR(160),SUBSTITUTE($R71,\"{\",CHAR(160),FM$1))+1),\"\")","v":"{Existing Heating Fuel}"},{"$f":"IFERROR(MID($R71,FIND(CHAR(160),SUBSTITUTE($R71,\"{\",CHAR(160),FN$1)),FIND(CHAR(160),SUBSTITUTE($R71,\"}\",CHAR(160),FN$1))-FIND(CHAR(160),SUBSTITUTE($R71,\"{\",CHAR(160),FN$1))+1),\"\")","v":"{COP_base}"},{"$f":"IFERROR(MID($R71,FIND(CHAR(160),SUBSTITUTE($R71,\"{\",CHAR(160),FO$1)),FIND(CHAR(160),SUBSTITUTE($R71,\"}\",CHAR(160),FO$1))-FIND(CHAR(160),SUBSTITUTE($R71,\"{\",CHAR(160),FO$1))+1),\"\")","v":"{COP}"},{"$f":"IFERROR(MID($R71,FIND(CHAR(160),SUBSTITUTE($R71,\"{\",CHAR(160),FP$1)),FIND(CHAR(160),SUBSTITUTE($R71,\"}\",CHAR(160),FP$1))-FIND(CHAR(160),SUBSTITUTE($R71,\"{\",CHAR(160),FP$1))+1),\"\")","v":"{Cooling Capacity (Btu/h)}"},{"$f":"IFERROR(MID($R71,FIND(CHAR(160),SUBSTITUTE($R71,\"{\",CHAR(160),FQ$1)),FIND(CHAR(160),SUBSTITUTE($R71,\"}\",CHAR(160),FQ$1))-FIND(CHAR(160),SUBSTITUTE($R71,\"{\",CHAR(160),FQ$1))+1),\"\")","v":"{IEER_base}"},{"$f":"IFERROR(MID($R71,FIND(CHAR(160),SUBSTITUTE($R71,\"{\",CHAR(160),FR$1)),FIND(CHAR(160),SUBSTITUTE($R71,\"}\",CHAR(160),FR$1))-FIND(CHAR(160),SUBSTITUTE($R71,\"{\",CHAR(160),FR$1))+1),\"\")","v":"{IEER}"},{"$f":"IFERROR(MID($R71,FIND(CHAR(160),SUBSTITUTE($R71,\"{\",CHAR(160),FS$1)),FIND(CHAR(160),SUBSTITUTE($R71,\"}\",CHAR(160),FS$1))-FIND(CHAR(160),SUBSTITUTE($R71,\"{\",CHAR(160),FS$1))+1),\"\")","v":""},{"$f":"IFERROR(MID($R71,FIND(CHAR(160),SUBSTITUTE($R71,\"{\",CHAR(160),FT$1)),FIND(CHAR(160),SUBSTITUTE($R71,\"}\",CHAR(160),FT$1))-FIND(CHAR(160),SUBSTITUTE($R71,\"{\",CHAR(160),FT$1))+1),\"\")","v":""},{"$f":"IFERROR(MID($R71,FIND(CHAR(160),SUBSTITUTE($R71,\"{\",CHAR(160),FU$1)),FIND(CHAR(160),SUBSTITUTE($R71,\"}\",CHAR(160),FU$1))-FIND(CHAR(160),SUBSTITUTE($R71,\"{\",CHAR(160),FU$1))+1),\"\")","v":"{Measure:Quantity}"},{"$f":"IFERROR(MID($R71,FIND(CHAR(160),SUBSTITUTE($R71,\"{\",CHAR(160),FV$1)),FIND(CHAR(160),SUBSTITUTE($R71,\"}\",CHAR(160),FV$1))-FIND(CHAR(160),SUBSTITUTE($R71,\"{\",CHAR(160),FV$1))+1),\"\")","v":"{Square Feet Served}"},{"$f":"IFERROR(MID($U71,FIND(CHAR(160),SUBSTITUTE($U71,\"{\",CHAR(160),FW$1)),FIND(CHAR(160),SUBSTITUTE($U71,\"}\",CHAR(160),FW$1))-FIND(CHAR(160),SUBSTITUTE($U71,\"{\",CHAR(160),FW$1))+1),\"\")","v":"{Existing Heating Fuel}"},{"$f":"IFERROR(MID($U71,FIND(CHAR(160),SUBSTITUTE($U71,\"{\",CHAR(160),FX$1)),FIND(CHAR(160),SUBSTITUTE($U71,\"}\",CHAR(160),FX$1))-FIND(CHAR(160),SUBSTITUTE($U71,\"{\",CHAR(160),FX$1))+1),\"\")","v":"{COP_base}"},{"$f":"IFERROR(MID($U71,FIND(CHAR(160),SUBSTITUTE($U71,\"{\",CHAR(160),FY$1)),FIND(CHAR(160),SUBSTITUTE($U71,\"}\",CHAR(160),FY$1))-FIND(CHAR(160),SUBSTITUTE($U71,\"{\",CHAR(160),FY$1))+1),\"\")","v":"{COP}"},{"$f":"IFERROR(MID($U71,FIND(CHAR(160),SUBSTITUTE($U71,\"{\",CHAR(160),FZ$1)),FIND(CHAR(160),SUBSTITUTE($U71,\"}\",CHAR(160),FZ$1))-FIND(CHAR(160),SUBSTITUTE($U71,\"{\",CHAR(160),FZ$1))+1),\"\")","v":"{Factor:WinterCF}"},{"$f":"IFERROR(MID($U71,FIND(CHAR(160),SUBSTITUTE($U71,\"{\",CHAR(160),GA$1)),FIND(CHAR(160),SUBSTITUTE($U71,\"}\",CHAR(160),GA$1))-FIND(CHAR(160),SUBSTITUTE($U71,\"{\",CHAR(160),GA$1))+1),\"\")","v":""},{"$f":"IFERROR(MID($U71,FIND(CHAR(160),SUBSTITUTE($U71,\"{\",CHAR(160),GB$1)),FIND(CHAR(160),SUBSTITUTE($U71,\"}\",CHAR(160),GB$1))-FIND(CHAR(160),SUBSTITUTE($U71,\"{\",CHAR(160),GB$1))+1),\"\")","v":""},{"$f":"IFERROR(MID($U71,FIND(CHAR(160),SUBSTITUTE($U71,\"{\",CHAR(160),GC$1)),FIND(CHAR(160),SUBSTITUTE($U71,\"}\",CHAR(160),GC$1))-FIND(CHAR(160),SUBSTITUTE($U71,\"{\",CHAR(160),GC$1))+1),\"\")","v":""},{"$f":"IFERROR(MID($U71,FIND(CHAR(160),SUBSTITUTE($U71,\"{\",CHAR(160),GD$1)),FIND(CHAR(160),SUBSTITUTE($U71,\"}\",CHAR(160),GD$1))-FIND(CHAR(160),SUBSTITUTE($U71,\"{\",CHAR(160),GD$1))+1),\"\")","v":""},{"$f":"IFERROR(MID($U71,FIND(CHAR(160),SUBSTITUTE($U71,\"{\",CHAR(160),GE$1)),FIND(CHAR(160),SUBSTITUTE($U71,\"}\",CHAR(160),GE$1))-FIND(CHAR(160),SUBSTITUTE($U71,\"{\",CHAR(160),GE$1))+1),\"\")","v":"{Measure:Quantity}"},{"$f":"IFERROR(MID($U71,FIND(CHAR(160),SUBSTITUTE($U71,\"{\",CHAR(160),GF$1)),FIND(CHAR(160),SUBSTITUTE($U71,\"}\",CHAR(160),GF$1))-FIND(CHAR(160),SUBSTITUTE($U71,\"{\",CHAR(160),GF$1))+1),\"\")","v":"{Square Feet Served}"},{"$f":"IFERROR(MID($V71,FIND(CHAR(160),SUBSTITUTE($V71,\"{\",CHAR(160),GG$1)),FIND(CHAR(160),SUBSTITUTE($V71,\"}\",CHAR(160),GG$1))-FIND(CHAR(160),SUBSTITUTE($V71,\"{\",CHAR(160),GG$1))+1),\"\")","v":"{IEER_base}"},{"$f":"IFERROR(MID($V71,FIND(CHAR(160),SUBSTITUTE($V71,\"{\",CHAR(160),GH$1)),FIND(CHAR(160),SUBSTITUTE($V71,\"}\",CHAR(160),GH$1))-FIND(CHAR(160),SUBSTITUTE($V71,\"{\",CHAR(160),GH$1))+1),\"\")","v":"{IEER}"},{"$f":"IFERROR(MID($V71,FIND(CHAR(160),SUBSTITUTE($V71,\"{\",CHAR(160),GI$1)),FIND(CHAR(160),SUBSTITUTE($V71,\"}\",CHAR(160),GI$1))-FIND(CHAR(160),SUBSTITUTE($V71,\"{\",CHAR(160),GI$1))+1),\"\")","v":"{Factor:SummerCF}"},{"$f":"IFERROR(MID($V71,FIND(CHAR(160),SUBSTITUTE($V71,\"{\",CHAR(160),GJ$1)),FIND(CHAR(160),SUBSTITUTE($V71,\"}\",CHAR(160),GJ$1))-FIND(CHAR(160),SUBSTITUTE($V71,\"{\",CHAR(160),GJ$1))+1),\"\")","v":""},{"$f":"IFERROR(MID($V71,FIND(CHAR(160),SUBSTITUTE($V71,\"{\",CHAR(160),GK$1)),FIND(CHAR(160),SUBSTITUTE($V71,\"}\",CHAR(160),GK$1))-FIND(CHAR(160),SUBSTITUTE($V71,\"{\",CHAR(160),GK$1))+1),\"\")","v":""},{"$f":"IFERROR(MID($V71,FIND(CHAR(160),SUBSTITUTE($V71,\"{\",CHAR(160),GL$1)),FIND(CHAR(160),SUBSTITUTE($V71,\"}\",CHAR(160),GL$1))-FIND(CHAR(160),SUBSTITUTE($V71,\"{\",CHAR(160),GL$1))+1),\"\")","v":""},{"$f":"IFERROR(MID($V71,FIND(CHAR(160),SUBSTITUTE($V71,\"{\",CHAR(160),GM$1)),FIND(CHAR(160),SUBSTITUTE($V71,\"}\",CHAR(160),GM$1))-FIND(CHAR(160),SUBSTITUTE($V71,\"{\",CHAR(160),GM$1))+1),\"\")","v":""},{"$f":"IFERROR(MID($V71,FIND(CHAR(160),SUBSTITUTE($V71,\"{\",CHAR(160),GN$1)),FIND(CHAR(160),SUBSTITUTE($V71,\"}\",CHAR(160),GN$1))-FIND(CHAR(160),SUBSTITUTE($V71,\"{\",CHAR(160),GN$1))+1),\"\")","v":""},{"$f":"IFERROR(MID($V71,FIND(CHAR(160),SUBSTITUTE($V71,\"{\",CHAR(160),GO$1)),FIND(CHAR(160),SUBSTITUTE($V71,\"}\",CHAR(160),GO$1))-FIND(CHAR(160),SUBSTITUTE($V71,\"{\",CHAR(160),GO$1))+1),\"\")","v":"{Measure:Quantity}"},{"$f":"IFERROR(MID($V71,FIND(CHAR(160),SUBSTITUTE($V71,\"{\",CHAR(160),GP$1)),FIND(CHAR(160),SUBSTITUTE($V71,\"}\",CHAR(160),GP$1))-FIND(CHAR(160),SUBSTITUTE($V71,\"{\",CHAR(160),GP$1))+1),\"\")","v":"{Cooling Capacity (Btu/h)}"},{"$f":"IFERROR(MID($W71,FIND(CHAR(160),SUBSTITUTE($W71,\"{\",CHAR(160),GQ$1)),FIND(CHAR(160),SUBSTITUTE($W71,\"}\",CHAR(160),GQ$1))-FIND(CHAR(160),SUBSTITUTE($W71,\"{\",CHAR(160),GQ$1))+1),\"\")","v":"{Square Feet Served}"},{"$f":"IFERROR(MID($W71,FIND(CHAR(160),SUBSTITUTE($W71,\"{\",CHAR(160),GR$1)),FIND(CHAR(160),SUBSTITUTE($W71,\"}\",CHAR(160),GR$1))-FIND(CHAR(160),SUBSTITUTE($W71,\"{\",CHAR(160),GR$1))+1),\"\")","v":"{COP_base}"},{"$f":"IFERROR(MID($W71,FIND(CHAR(160),SUBSTITUTE($W71,\"{\",CHAR(160),GS$1)),FIND(CHAR(160),SUBSTITUTE($W71,\"}\",CHAR(160),GS$1))-FIND(CHAR(160),SUBSTITUTE($W71,\"{\",CHAR(160),GS$1))+1),\"\")","v":""},{"$f":"IFERROR(MID($W71,FIND(CHAR(160),SUBSTITUTE($W71,\"{\",CHAR(160),GT$1)),FIND(CHAR(160),SUBSTITUTE($W71,\"}\",CHAR(160),GT$1))-FIND(CHAR(160),SUBSTITUTE($W71,\"{\",CHAR(160),GT$1))+1),\"\")","v":""},{"$f":"IFERROR(MID($W71,FIND(CHAR(160),SUBSTITUTE($W71,\"{\",CHAR(160),GU$1)),FIND(CHAR(160),SUBSTITUTE($W71,\"}\",CHAR(160),GU$1))-FIND(CHAR(160),SUBSTITUTE($W71,\"{\",CHAR(160),GU$1))+1),\"\")","v":""},{"$f":"IFERROR(MID($W71,FIND(CHAR(160),SUBSTITUTE($W71,\"{\",CHAR(160),GV$1)),FIND(CHAR(160),SUBSTITUTE($W71,\"}\",CHAR(160),GV$1))-FIND(CHAR(160),SUBSTITUTE($W71,\"{\",CHAR(160),GV$1))+1),\"\")","v":""},{"$f":"IFERROR(MID($W71,FIND(CHAR(160),SUBSTITUTE($W71,\"{\",CHAR(160),GW$1)),FIND(CHAR(160),SUBSTITUTE($W71,\"}\",CHAR(160),GW$1))-FIND(CHAR(160),SUBSTITUTE($W71,\"{\",CHAR(160),GW$1))+1),\"\")","v":""},{"$f":"IFERROR(MID($W71,FIND(CHAR(160),SUBSTITUTE($W71,\"{\",CHAR(160),GX$1)),FIND(CHAR(160),SUBSTITUTE($W71,\"}\",CHAR(160),GX$1))-FIND(CHAR(160),SUBSTITUTE($W71,\"{\",CHAR(160),GX$1))+1),\"\")","v":""},{"$f":"IFERROR(MID($W71,FIND(CHAR(160),SUBSTITUTE($W71,\"{\",CHAR(160),GY$1)),FIND(CHAR(160),SUBSTITUTE($W71,\"}\",CHAR(160),GY$1))-FIND(CHAR(160),SUBSTITUTE($W71,\"{\",CHAR(160),GY$1))+1),\"\")","v":"{Existing Heating Fuel}"},{"$f":"IFERROR(MID($W71,FIND(CHAR(160),SUBSTITUTE($W71,\"{\",CHAR(160),GZ$1)),FIND(CHAR(160),SUBSTITUTE($W71,\"}\",CHAR(160),GZ$1))-FIND(CHAR(160),SUBSTITUTE($W71,\"{\",CHAR(160),GZ$1))+1),\"\")","v":"{Measure:Quantity}"},{"$f":"IFERROR(MID($X71,FIND(CHAR(160),SUBSTITUTE($X71,\"{\",CHAR(160),HA$1)),FIND(CHAR(160),SUBSTITUTE($X71,\"}\",CHAR(160),HA$1))-FIND(CHAR(160),SUBSTITUTE($X71,\"{\",CHAR(160),HA$1))+1),\"\")","v":"{Square Feet Served}"},{"$f":"IFERROR(MID($X71,FIND(CHAR(160),SUBSTITUTE($X71,\"{\",CHAR(160),HB$1)),FIND(CHAR(160),SUBSTITUTE($X71,\"}\",CHAR(160),HB$1))-FIND(CHAR(160),SUBSTITUTE($X71,\"{\",CHAR(160),HB$1))+1),\"\")","v":"{COP_base}"},{"$f":"IFERROR(MID($X71,FIND(CHAR(160),SUBSTITUTE($X71,\"{\",CHAR(160),HC$1)),FIND(CHAR(160),SUBSTITUTE($X71,\"}\",CHAR(160),HC$1))-FIND(CHAR(160),SUBSTITUTE($X71,\"{\",CHAR(160),HC$1))+1),\"\")","v":""},{"$f":"IFERROR(MID($X71,FIND(CHAR(160),SUBSTITUTE($X71,\"{\",CHAR(160),HD$1)),FIND(CHAR(160),SUBSTITUTE($X71,\"}\",CHAR(160),HD$1))-FIND(CHAR(160),SUBSTITUTE($X71,\"{\",CHAR(160),HD$1))+1),\"\")","v":""},{"$f":"IFERROR(MID($X71,FIND(CHAR(160),SUBSTITUTE($X71,\"{\",CHAR(160),HE$1)),FIND(CHAR(160),SUBSTITUTE($X71,\"}\",CHAR(160),HE$1))-FIND(CHAR(160),SUBSTITUTE($X71,\"{\",CHAR(160),HE$1))+1),\"\")","v":""},{"$f":"IFERROR(MID($X71,FIND(CHAR(160),SUBSTITUTE($X71,\"{\",CHAR(160),HF$1)),FIND(CHAR(160),SUBSTITUTE($X71,\"}\",CHAR(160),HF$1))-FIND(CHAR(160),SUBSTITUTE($X71,\"{\",CHAR(160),HF$1))+1),\"\")","v":""},{"$f":"IFERROR(MID($X71,FIND(CHAR(160),SUBSTITUTE($X71,\"{\",CHAR(160),HG$1)),FIND(CHAR(160),SUBSTITUTE($X71,\"}\",CHAR(160),HG$1))-FIND(CHAR(160),SUBSTITUTE($X71,\"{\",CHAR(160),HG$1))+1),\"\")","v":""},{"$f":"IFERROR(MID($X71,FIND(CHAR(160),SUBSTITUTE($X71,\"{\",CHAR(160),HH$1)),FIND(CHAR(160),SUBSTITUTE($X71,\"}\",CHAR(160),HH$1))-FIND(CHAR(160),SUBSTITUTE($X71,\"{\",CHAR(160),HH$1))+1),\"\")","v":""},{"$f":"IFERROR(MID($X71,FIND(CHAR(160),SUBSTITUTE($X71,\"{\",CHAR(160),HI$1)),FIND(CHAR(160),SUBSTITUTE($X71,\"}\",CHAR(160),HI$1))-FIND(CHAR(160),SUBSTITUTE($X71,\"{\",CHAR(160),HI$1))+1),\"\")","v":"{Existing Heating Fuel}"},{"$f":"IFERROR(MID($X71,FIND(CHAR(160),SUBSTITUTE($X71,\"{\",CHAR(160),HJ$1)),FIND(CHAR(160),SUBSTITUTE($X71,\"}\",CHAR(160),HJ$1))-FIND(CHAR(160),SUBSTITUTE($X71,\"{\",CHAR(160),HJ$1))+1),\"\")","v":"{Measure:Quantity}"},{"$f":"IFERROR(MID($Y71,FIND(CHAR(160),SUBSTITUTE($Y71,\"{\",CHAR(160),HK$1)),FIND(CHAR(160),SUBSTITUTE($Y71,\"}\",CHAR(160),HK$1))-FIND(CHAR(160),SUBSTITUTE($Y71,\"{\",CHAR(160),HK$1))+1),\"\")","v":"{Square Feet Served}"},{"$f":"IFERROR(MID($Y71,FIND(CHAR(160),SUBSTITUTE($Y71,\"{\",CHAR(160),HL$1)),FIND(CHAR(160),SUBSTITUTE($Y71,\"}\",CHAR(160),HL$1))-FIND(CHAR(160),SUBSTITUTE($Y71,\"{\",CHAR(160),HL$1))+1),\"\")","v":"{COP_base}"},{"$f":"IFERROR(MID($Y71,FIND(CHAR(160),SUBSTITUTE($Y71,\"{\",CHAR(160),HM$1)),FIND(CHAR(160),SUBSTITUTE($Y71,\"}\",CHAR(160),HM$1))-FIND(CHAR(160),SUBSTITUTE($Y71,\"{\",CHAR(160),HM$1))+1),\"\")","v":""},{"$f":"IFERROR(MID($Y71,FIND(CHAR(160),SUBSTITUTE($Y71,\"{\",CHAR(160),HN$1)),FIND(CHAR(160),SUBSTITUTE($Y71,\"}\",CHAR(160),HN$1))-FIND(CHAR(160),SUBSTITUTE($Y71,\"{\",CHAR(160),HN$1))+1),\"\")","v":""},{"$f":"IFERROR(MID($Y71,FIND(CHAR(160),SUBSTITUTE($Y71,\"{\",CHAR(160),HO$1)),FIND(CHAR(160),SUBSTITUTE($Y71,\"}\",CHAR(160),HO$1))-FIND(CHAR(160),SUBSTITUTE($Y71,\"{\",CHAR(160),HO$1))+1),\"\")","v":""},{"$f":"IFERROR(MID($Y71,FIND(CHAR(160),SUBSTITUTE($Y71,\"{\",CHAR(160),HP$1)),FIND(CHAR(160),SUBSTITUTE($Y71,\"}\",CHAR(160),HP$1))-FIND(CHAR(160),SUBSTITUTE($Y71,\"{\",CHAR(160),HP$1))+1),\"\")","v":""},{"$f":"IFERROR(MID($Y71,FIND(CHAR(160),SUBSTITUTE($Y71,\"{\",CHAR(160),HQ$1)),FIND(CHAR(160),SUBSTITUTE($Y71,\"}\",CHAR(160),HQ$1))-FIND(CHAR(160),SUBSTITUTE($Y71,\"{\",CHAR(160),HQ$1))+1),\"\")","v":""},{"$f":"IFERROR(MID($Y71,FIND(CHAR(160),SUBSTITUTE($Y71,\"{\",CHAR(160),HR$1)),FIND(CHAR(160),SUBSTITUTE($Y71,\"}\",CHAR(160),HR$1))-FIND(CHAR(160),SUBSTITUTE($Y71,\"{\",CHAR(160),HR$1))+1),\"\")","v":""},{"$f":"IFERROR(MID($Y71,FIND(CHAR(160),SUBSTITUTE($Y71,\"{\",CHAR(160),HS$1)),FIND(CHAR(160),SUBSTITUTE($Y71,\"}\",CHAR(160),HS$1))-FIND(CHAR(160),SUBSTITUTE($Y71,\"{\",CHAR(160),HS$1))+1),\"\")","v":"{Existing Heating Fuel}"},{"$f":"IFERROR(MID($Y71,FIND(CHAR(160),SUBSTITUTE($Y71,\"{\",CHAR(160),HT$1)),FIND(CHAR(160),SUBSTITUTE($Y71,\"}\",CHAR(160),HT$1))-FIND(CHAR(160),SUBSTITUTE($Y71,\"{\",CHAR(160),HT$1))+1),\"\")","v":"{Measure:Quantity}"},{"$f":"IFERROR(MID($Z71,FIND(CHAR(160),SUBSTITUTE($Z71,\"{\",CHAR(160),HU$1)),FIND(CHAR(160),SUBSTITUTE($Z71,\"}\",CHAR(160),HU$1))-FIND(CHAR(160),SUBSTITUTE($Z71,\"{\",CHAR(160),HU$1))+1),\"\")","v":"{Square Feet Served}"},{"$f":"IFERROR(MID($Z71,FIND(CHAR(160),SUBSTITUTE($Z71,\"{\",CHAR(160),HV$1)),FIND(CHAR(160),SUBSTITUTE($Z71,\"}\",CHAR(160),HV$1))-FIND(CHAR(160),SUBSTITUTE($Z71,\"{\",CHAR(160),HV$1))+1),\"\")","v":"{COP_base}"},{"$f":"IFERROR(MID($Z71,FIND(CHAR(160),SUBSTITUTE($Z71,\"{\",CHAR(160),HW$1)),FIND(CHAR(160),SUBSTITUTE($Z71,\"}\",CHAR(160),HW$1))-FIND(CHAR(160),SUBSTITUTE($Z71,\"{\",CHAR(160),HW$1))+1),\"\")","v":""},{"$f":"IFERROR(MID($Z71,FIND(CHAR(160),SUBSTITUTE($Z71,\"{\",CHAR(160),HX$1)),FIND(CHAR(160),SUBSTITUTE($Z71,\"}\",CHAR(160),HX$1))-FIND(CHAR(160),SUBSTITUTE($Z71,\"{\",CHAR(160),HX$1))+1),\"\")","v":""},{"$f":"IFERROR(MID($Z71,FIND(CHAR(160),SUBSTITUTE($Z71,\"{\",CHAR(160),HY$1)),FIND(CHAR(160),SUBSTITUTE($Z71,\"}\",CHAR(160),HY$1))-FIND(CHAR(160),SUBSTITUTE($Z71,\"{\",CHAR(160),HY$1))+1),\"\")","v":""},{"$f":"IFERROR(MID($Z71,FIND(CHAR(160),SUBSTITUTE($Z71,\"{\",CHAR(160),HZ$1)),FIND(CHAR(160),SUBSTITUTE($Z71,\"}\",CHAR(160),HZ$1))-FIND(CHAR(160),SUBSTITUTE($Z71,\"{\",CHAR(160),HZ$1))+1),\"\")","v":""},{"$f":"IFERROR(MID($Z71,FIND(CHAR(160),SUBSTITUTE($Z71,\"{\",CHAR(160),IA$1)),FIND(CHAR(160),SUBSTITUTE($Z71,\"}\",CHAR(160),IA$1))-FIND(CHAR(160),SUBSTITUTE($Z71,\"{\",CHAR(160),IA$1))+1),\"\")","v":""},{"$f":"IFERROR(MID($Z71,FIND(CHAR(160),SUBSTITUTE($Z71,\"{\",CHAR(160),IB$1)),FIND(CHAR(160),SUBSTITUTE($Z71,\"}\",CHAR(160),IB$1))-FIND(CHAR(160),SUBSTITUTE($Z71,\"{\",CHAR(160),IB$1))+1),\"\")","v":""},{"$f":"IFERROR(MID($Z71,FIND(CHAR(160),SUBSTITUTE($Z71,\"{\",CHAR(160),IC$1)),FIND(CHAR(160),SUBSTITUTE($Z71,\"}\",CHAR(160),IC$1))-FIND(CHAR(160),SUBSTITUTE($Z71,\"{\",CHAR(160),IC$1))+1),\"\")","v":"{Existing Heating Fuel}"},{"$f":"IFERROR(MID($Z71,FIND(CHAR(160),SUBSTITUTE($Z71,\"{\",CHAR(160),ID$1)),FIND(CHAR(160),SUBSTITUTE($Z71,\"}\",CHAR(160),ID$1))-FIND(CHAR(160),SUBSTITUTE($Z71,\"{\",CHAR(160),ID$1))+1),\"\")","v":"{Measure:Quantity}"},{"$f":"IFERROR(MID($AA71,FIND(CHAR(160),SUBSTITUTE($AA71,\"{\",CHAR(160),IE$1)),FIND(CHAR(160),SUBSTITUTE($AA71,\"}\",CHAR(160),IE$1))-FIND(CHAR(160),SUBSTITUTE($AA71,\"{\",CHAR(160),IE$1))+1),\"\")","v":"{Square Feet Served}"},{"$f":"IFERROR(MID($AA71,FIND(CHAR(160),SUBSTITUTE($AA71,\"{\",CHAR(160),IF$1)),FIND(CHAR(160),SUBSTITUTE($AA71,\"}\",CHAR(160),IF$1))-FIND(CHAR(160),SUBSTITUTE($AA71,\"{\",CHAR(160),IF$1))+1),\"\")","v":"{COP_base}"},{"$f":"IFERROR(MID($AA71,FIND(CHAR(160),SUBSTITUTE($AA71,\"{\",CHAR(160),IG$1)),FIND(CHAR(160),SUBSTITUTE($AA71,\"}\",CHAR(160),IG$1))-FIND(CHAR(160),SUBSTITUTE($AA71,\"{\",CHAR(160),IG$1))+1),\"\")","v":""},{"$f":"IFERROR(MID($AA71,FIND(CHAR(160),SUBSTITUTE($AA71,\"{\",CHAR(160),IH$1)),FIND(CHAR(160),SUBSTITUTE($AA71,\"}\",CHAR(160),IH$1))-FIND(CHAR(160),SUBSTITUTE($AA71,\"{\",CHAR(160),IH$1))+1),\"\")","v":""},{"$f":"IFERROR(MID($AA71,FIND(CHAR(160),SUBSTITUTE($AA71,\"{\",CHAR(160),II$1)),FIND(CHAR(160),SUBSTITUTE($AA71,\"}\",CHAR(160),II$1))-FIND(CHAR(160),SUBSTITUTE($AA71,\"{\",CHAR(160),II$1))+1),\"\")","v":""},{"$f":"IFERROR(MID($AA71,FIND(CHAR(160),SUBSTITUTE($AA71,\"{\",CHAR(160),IJ$1)),FIND(CHAR(160),SUBSTITUTE($AA71,\"}\",CHAR(160),IJ$1))-FIND(CHAR(160),SUBSTITUTE($AA71,\"{\",CHAR(160),IJ$1))+1),\"\")","v":""},{"$f":"IFERROR(MID($AA71,FIND(CHAR(160),SUBSTITUTE($AA71,\"{\",CHAR(160),IK$1)),FIND(CHAR(160),SUBSTITUTE($AA71,\"}\",CHAR(160),IK$1))-FIND(CHAR(160),SUBSTITUTE($AA71,\"{\",CHAR(160),IK$1))+1),\"\")","v":""},{"$f":"IFERROR(MID($AA71,FIND(CHAR(160),SUBSTITUTE($AA71,\"{\",CHAR(160),IL$1)),FIND(CHAR(160),SUBSTITUTE($AA71,\"}\",CHAR(160),IL$1))-FIND(CHAR(160),SUBSTITUTE($AA71,\"{\",CHAR(160),IL$1))+1),\"\")","v":""},{"$f":"IFERROR(MID($AA71,FIND(CHAR(160),SUBSTITUTE($AA71,\"{\",CHAR(160),IM$1)),FIND(CHAR(160),SUBSTITUTE($AA71,\"}\",CHAR(160),IM$1))-FIND(CHAR(160),SUBSTITUTE($AA71,\"{\",CHAR(160),IM$1))+1),\"\")","v":"{Existing Heating Fuel}"},{"$f":"IFERROR(MID($AA71,FIND(CHAR(160),SUBSTITUTE($AA71,\"{\",CHAR(160),IN$1)),FIND(CHAR(160),SUBSTITUTE($AA71,\"}\",CHAR(160),IN$1))-FIND(CHAR(160),SUBSTITUTE($AA71,\"{\",CHAR(160),IN$1))+1),\"\")","v":"{Measure:Quantity}"},{"$f":"IFERROR(MID($AB71,FIND(CHAR(160),SUBSTITUTE($AB71,\"{\",CHAR(160),IO$1)),FIND(CHAR(160),SUBSTITUTE($AB71,\"}\",CHAR(160),IO$1))-FIND(CHAR(160),SUBSTITUTE($AB71,\"{\",CHAR(160),IO$1))+1),\"\")","v":""},{"$f":"IFERROR(MID($AB71,FIND(CHAR(160),SUBSTITUTE($AB71,\"{\",CHAR(160),IP$1)),FIND(CHAR(160),SUBSTITUTE($AB71,\"}\",CHAR(160),IP$1))-FIND(CHAR(160),SUBSTITUTE($AB71,\"{\",CHAR(160),IP$1))+1),\"\")","v":""},{"$f":"IFERROR(MID($AB71,FIND(CHAR(160),SUBSTITUTE($AB71,\"{\",CHAR(160),IQ$1)),FIND(CHAR(160),SUBSTITUTE($AB71,\"}\",CHAR(160),IQ$1))-FIND(CHAR(160),SUBSTITUTE($AB71,\"{\",CHAR(160),IQ$1))+1),\"\")","v":""},{"$f":"IFERROR(MID($AB71,FIND(CHAR(160),SUBSTITUTE($AB71,\"{\",CHAR(160),IR$1)),FIND(CHAR(160),SUBSTITUTE($AB71,\"}\",CHAR(160),IR$1))-FIND(CHAR(160),SUBSTITUTE($AB71,\"{\",CHAR(160),IR$1))+1),\"\")","v":""},{"$f":"IFERROR(MID($AB71,FIND(CHAR(160),SUBSTITUTE($AB71,\"{\",CHAR(160),IS$1)),FIND(CHAR(160),SUBSTITUTE($AB71,\"}\",CHAR(160),IS$1))-FIND(CHAR(160),SUBSTITUTE($AB71,\"{\",CHAR(160),IS$1))+1),\"\")","v":""},{"$f":"IFERROR(MID($AB71,FIND(CHAR(160),SUBSTITUTE($AB71,\"{\",CHAR(160),IT$1)),FIND(CHAR(160),SUBSTITUTE($AB71,\"}\",CHAR(160),IT$1))-FIND(CHAR(160),SUBSTITUTE($AB71,\"{\",CHAR(160),IT$1))+1),\"\")","v":""},{"$f":"IFERROR(MID($AB71,FIND(CHAR(160),SUBSTITUTE($AB71,\"{\",CHAR(160),IU$1)),FIND(CHAR(160),SUBSTITUTE($AB71,\"}\",CHAR(160),IU$1))-FIND(CHAR(160),SUBSTITUTE($AB71,\"{\",CHAR(160),IU$1))+1),\"\")","v":""},{"$f":"IFERROR(MID($AB71,FIND(CHAR(160),SUBSTITUTE($AB71,\"{\",CHAR(160),IV$1)),FIND(CHAR(160),SUBSTITUTE($AB71,\"}\",CHAR(160),IV$1))-FIND(CHAR(160),SUBSTITUTE($AB71,\"{\",CHAR(160),IV$1))+1),\"\")","v":""},{"$f":"IFERROR(MID($AB71,FIND(CHAR(160),SUBSTITUTE($AB71,\"{\",CHAR(160),IW$1)),FIND(CHAR(160),SUBSTITUTE($AB71,\"}\",CHAR(160),IW$1))-FIND(CHAR(160),SUBSTITUTE($AB71,\"{\",CHAR(160),IW$1))+1),\"\")","v":""},{"$f":"IFERROR(MID($AB71,FIND(CHAR(160),SUBSTITUTE($AB71,\"{\",CHAR(160),IX$1)),FIND(CHAR(160),SUBSTITUTE($AB71,\"}\",CHAR(160),IX$1))-FIND(CHAR(160),SUBSTITUTE($AB71,\"{\",CHAR(160),IX$1))+1),\"\")","v":""},null,{"$f":"10-COUNTIF(DU71:ED71,\"\")","v":9}]
["C&I HVAC - High Performance VRF Retrofits","Variable Refrigerant Flow - Single Phase Retrofit","VRFSPR","2021-07-01","2022-06-30","Calculated","{Measure:Quantity}*{Square Feet Served}*{Cost per SQFT}",0,"Calculated","{Measure:Quantity}*{Square Feet Served}*4",0,"2020-07-01","2022-06-30","Calculated","{Measure:Quantity} * ({Cooling Capacity (Btu/h)}/1000*(1/{SEER_base}-1/{SEER})*829+{Square Feet Served}*47.4/3.412*(if({Existing Heating Fuel}<>6,0,1/{COP_base})-3.412/{HSPF}))",null,null,"{Measure:Quantity} *Max({Square Feet Served}*47.4/3.412*(if({Existing Heating Fuel}<>6,0,1/{COP_base})-3.412/{HSPF})/1600,{Cooling Capacity (Btu/h)}/1000*(1/{SEER_base}-1/{SEER}))",null,null,"{Measure:Quantity} * ({Square Feet Served}*47.4/3.412*(if({Existing Heating Fuel}<>6,0,1/{COP_base})-3.412/{HSPF})/1600*{Factor:WinterCF})","{Measure:Quantity} * ({Cooling Capacity (Btu/h)}/1000*(1/{SEER_base}-1/{SEER})*{Factor:SummerCF})","if({Existing Heating Fuel}=1,{Measure:Quantity} * {Square Feet Served}*47.4/1000*1/{COP_base},0)*10","if({Existing Heating Fuel}=2,{Measure:Quantity} * {Square Feet Served}*47.4/1000*1/{COP_base},0)","if({Existing Heating Fuel}=3,{Measure:Quantity} * {Square Feet Served}*47.4/1000*1/{COP_base},0)","if({Existing Heating Fuel}=4,{Measure:Quantity} * {Square Feet Served}*47.4/1000*1/{COP_base},0)","if({Existing Heating Fuel}=5,{Measure:Quantity} * {Square Feet Served}*47.4/1000*1/{COP_base},0)",null,"2020-07-01","2022-06-30",20,0.42,0.35699999999999998,0.17,0.03,0.62,0.18,1,1.1220000000000001,1,0.25,0,null,{"$f":"DU72","v":"{Measure:Quantity}"},1,{"$f":"DV72","v":"{Square Feet Served}"},2000,{"$f":"DW72","v":"{Cost per SQFT}"},11.33,{"$f":"DX72","v":"{SEER_base}"},50000,{"$f":"DY72","v":"{SEER}"},12.5,{"$f":"DZ72","v":"{Existing Heating Fuel}"},17,{"$f":"EA72","v":"{COP_base}"},6,{"$f":"EB72","v":"{HSPF}"},1,{"$f":"EC72","v":"{Cooling Capacity (Btu/h)}"},10,{"$f":"ED72","v":""},null,{"$f":"AS72 * (AY72/1000*(1/BA72-1/BC72)*829+AU72*47.4/3.412*(IF(BE72<>6,0,1/BG72)-3.412/BI72))","v":19182.055444452108},0,0,{"$f":"AS72 *MAX(AU72*47.4/3.412*(IF(BE72<>6,0,1/BG72)-3.412/BI72)/1600,AY72/1000*(1/BA72-1/BC72))","v":11.440181711606096},0,0,{"$f":"AS72 * (AU72*47.4/3.412*(IF(BE72<>6,0,1/BG72)-3.412/BI72)/1600*AF72)","v":4.8048763188745598},{"$f":"AS72 * (AY72/1000*(1/BA72-1/BC72)*AG72)","v":0.37800000000000006},{"$f":"IF(BE72=1,AS72 * AU72*47.4/1000*1/BG72,0)*10","v":0},{"$f":"IF(BE72=2,AS72 * AU72*47.4/1000*1/BG72,0)","v":0},{"$f":"IF(BE72=3,AS72 * AU72*47.4/1000*1/BG72,0)","v":0},{"$f":"IF(BE72=4,AS72 * AU72*47.4/1000*1/BG72,0)","v":0},{"$f":"IF(BE72=5,AS72 * AU72*47.4/1000*1/BG72,0)","v":0},0,null,"Com","Default DR",{"$f":"Benefits(BL72,BR72,BS72,BT72,BU72,BV72,BW72,BX72,BY72,BZ72,AE72,AH72,AI72,AJ72,AK72,AL72,AM72,AN72,AO72,AP72,CA72,CB72)","v":32372.473589980691},23565.996346395044,0,0,0,0,0,0,0,{"$f":"SUMPRODUCT(CC72:CK72,--(CC72:CK72>0))","v":55938.469936375739},{"$f":"-SUMPRODUCT(CC72:CK72,--(CC72:CK72<0))","v":0},null,{"$f":"AS72*AU72*AW72","v":22660},null,null,{"$f":"CM72+CO72","v":22660},{"$f":"IF(NetOrGross=\"Net\",(1-AO72+AP72),1)","v":1},{"$f":"(SUMPRODUCT(CC72:CJ72,--(CC72:CJ72>0))+CN72)*CS72/((-SUMPRODUCT(CC72:CJ72,--(CC72:CJ72<0))+MAX(CO72,CV72)+CP72+CQ72)*CS72+IF(FRIncentives=\"Yes\",CV72*(1-CS72),0))","v":2.4685997324084616},1,{"$f":"AS72*AU72*4","v":8000},null,"RGGI","y",null,{"$f":"IF(F72=\"Manual Entry\",\"Manual\",IF(G72=\"\",0,\"X=\"&SUBSTITUTE(SUBSTITUTE(SUBSTITUTE(SUBSTITUTE(SUBSTITUTE(SUBSTITUTE(SUBSTITUTE(SUBSTITUTE(SUBSTITUTE(SUBSTITUTE(SUBSTITUTE(SUBSTITUTE(G72,$ED72,$ED$2&ROW($ED72)),$EC72,$EC$2&ROW($EC72)),$EB72,$EB$2&ROW($EB72)),$EA72,$EA$2&ROW($EA72)),$DZ72,$DZ$2&ROW($DZ72)),$DY72,$DY$2&ROW($DY72)),$DX72,$DX$2&ROW($DX72)),$DW72,$DW$2&ROW($DW72)),$DV72,$DV$2&ROW($DV72)),$DU72,$DU$2&ROW($DU72)),$DT72,$DT$2&ROW($DT72)),$DS72,$DS$2&ROW($DS72))))","v":"X=AS72*AU72*AW72"},{"$f":"IF(I72=\"Manual Entry\",\"Manual\",IF(J72=\"\",0,\"X=\"&SUBSTITUTE(SUBSTITUTE(SUBSTITUTE(SUBSTITUTE(SUBSTITUTE(SUBSTITUTE(SUBSTITUTE(SUBSTITUTE(SUBSTITUTE(SUBSTITUTE(SUBSTITUTE(SUBSTITUTE(J72,$ED72,$ED$2&ROW($ED72)),$EC72,$EC$2&ROW($EC72)),$EB72,$EB$2&ROW($EB72)),$EA72,$EA$2&ROW($EA72)),$DZ72,$DZ$2&ROW($DZ72)),$DY72,$DY$2&ROW($DY72)),$DX72,$DX$2&ROW($DX72)),$DW72,$DW$2&ROW($DW72)),$DV72,$DV$2&ROW($DV72)),$DU72,$DU$2&ROW($DU72)),$DT72,$DT$2&ROW($DT72)),$DS72,$DS$2&ROW($DS72))))","v":"X=AS72*AU72*4"},{"$f":"IF(O72=\"\",0,\"X=\"&SUBSTITUTE(SUBSTITUTE(SUBSTITUTE(SUBSTITUTE(SUBSTITUTE(SUBSTITUTE(SUBSTITUTE(SUBSTITUTE(SUBSTITUTE(SUBSTITUTE(SUBSTITUTE(SUBSTITUTE(O72,$ED72,$ED$2&ROW($ED72)),$EC72,$EC$2&ROW($EC72)),$EB72,$EB$2&ROW($EB72)),$EA72,$EA$2&ROW($EA72)),$DZ72,$DZ$2&ROW($DZ72)),$DY72,$DY$2&ROW($DY72)),$DX72,$DX$2&ROW($DX72)),$DW72,$DW$2&ROW($DW72)),$DV72,$DV$2&ROW($DV72)),$DU72,$DU$2&ROW($DU72)),$DT72,$DT$2&ROW($DT72)),$DS72,$DS$2&ROW($DS72)))","v":"X=AS72 * (BI72/1000*(1/AY72-1/BA72)*829+AU72*47.4/3.412*(if(BC72<>6,0,1/BE72)-3.412/BG72))"},{"$f":"IF(P72=\"\",0,\"X=\"&SUBSTITUTE(SUBSTITUTE(SUBSTITUTE(SUBSTITUTE(SUBSTITUTE(SUBSTITUTE(SUBSTITUTE(SUBSTITUTE(SUBSTITUTE(SUBSTITUTE(SUBSTITUTE(SUBSTITUTE(P72,$ED72,$ED$2&ROW($ED72)),$EC72,$EC$2&ROW($EC72)),$EB72,$EB$2&ROW($EB72)),$EA72,$EA$2&ROW($EA72)),$DZ72,$DZ$2&ROW($DZ72)),$DY72,$DY$2&ROW($DY72)),$DX72,$DX$2&ROW($DX72)),$DW72,$DW$2&ROW($DW72)),$DV72,$DV$2&ROW($DV72)),$DU72,$DU$2&ROW($DU72)),$DT72,$DT$2&ROW($DT72)),$DS72,$DS$2&ROW($DS72)))","v":0},{"$f":"IF(Q72=\"\",0,\"X=\"&SUBSTITUTE(SUBSTITUTE(SUBSTITUTE(SUBSTITUTE(SUBSTITUTE(SUBSTITUTE(SUBSTITUTE(SUBSTITUTE(SUBSTITUTE(SUBSTITUTE(SUBSTITUTE(SUBSTITUTE(Q72,$ED72,$ED$2&ROW($ED72)),$EC72,$EC$2&ROW($EC72)),$EB72,$EB$2&ROW($EB72)),$EA72,$EA$2&ROW($EA72)),$DZ72,$DZ$2&ROW($DZ72)),$DY72,$DY$2&ROW($DY72)),$DX72,$DX$2&ROW($DX72)),$DW72,$DW$2&ROW($DW72)),$DV72,$DV$2&ROW($DV72)),$DU72,$DU$2&ROW($DU72)),$DT72,$DT$2&ROW($DT72)),$DS72,$DS$2&ROW($DS72)))","v":0},{"$f":"IF(R72=\"\",0,\"X=\"&SUBSTITUTE(SUBSTITUTE(SUBSTITUTE(SUBSTITUTE(SUBSTITUTE(SUBSTITUTE(SUBSTITUTE(SUBSTITUTE(SUBSTITUTE(SUBSTITUTE(SUBSTITUTE(SUBSTITUTE(R72,$ED72,$ED$2&ROW($ED72)),$EC72,$EC$2&ROW($EC72)),$EB72,$EB$2&ROW($EB72)),$EA72,$EA$2&ROW($EA72)),$DZ72,$DZ$2&ROW($DZ72)),$DY72,$DY$2&ROW($DY72)),$DX72,$DX$2&ROW($DX72)),$DW72,$DW$2&ROW($DW72)),$DV72,$DV$2&ROW($DV72)),$DU72,$DU$2&ROW($DU72)),$DT72,$DT$2&ROW($DT72)),$DS72,$DS$2&ROW($DS72)))","v":"X=AS72 *Max(AU72*47.4/3.412*(if(BC72<>6,0,1/BE72)-3.412/BG72)/1600,BI72/1000*(1/AY72-1/BA72))"},{"$f":"IF(S72=\"\",0,\"X=\"&SUBSTITUTE(SUBSTITUTE(SUBSTITUTE(SUBSTITUTE(SUBSTITUTE(SUBSTITUTE(SUBSTITUTE(SUBSTITUTE(SUBSTITUTE(SUBSTITUTE(SUBSTITUTE(SUBSTITUTE(S72,$ED72,$ED$2&ROW($ED72)),$EC72,$EC$2&ROW($EC72)),$EB72,$EB$2&ROW($EB72)),$EA72,$EA$2&ROW($EA72)),$DZ72,$DZ$2&ROW($DZ72)),$DY72,$DY$2&ROW($DY72)),$DX72,$DX$2&ROW($DX72)),$DW72,$DW$2&ROW($DW72)),$DV72,$DV$2&ROW($DV72)),$DU72,$DU$2&ROW($DU72)),$DT72,$DT$2&ROW($DT72)),$DS72,$DS$2&ROW($DS72)))","v":0},{"$f":"IF(T72=\"\",0,\"X=\"&SUBSTITUTE(SUBSTITUTE(SUBSTITUTE(SUBSTITUTE(SUBSTITUTE(SUBSTITUTE(SUBSTITUTE(SUBSTITUTE(SUBSTITUTE(SUBSTITUTE(SUBSTITUTE(SUBSTITUTE(T72,$ED72,$ED$2&ROW($ED72)),$EC72,$EC$2&ROW($EC72)),$EB72,$EB$2&ROW($EB72)),$EA72,$EA$2&ROW($EA72)),$DZ72,$DZ$2&ROW($DZ72)),$DY72,$DY$2&ROW($DY72)),$DX72,$DX$2&ROW($DX72)),$DW72,$DW$2&ROW($DW72)),$DV72,$DV$2&ROW($DV72)),$DU72,$DU$2&ROW($DU72)),$DT72,$DT$2&ROW($DT72)),$DS72,$DS$2&ROW($DS72)))","v":0},{"$f":"IF(U72=\"\",0,\"X=\"&SUBSTITUTE(SUBSTITUTE(SUBSTITUTE(SUBSTITUTE(SUBSTITUTE(SUBSTITUTE(SUBSTITUTE(SUBSTITUTE(SUBSTITUTE(SUBSTITUTE(SUBSTITUTE(SUBSTITUTE(U72,$ED72,$ED$2&ROW($ED72)),$EC72,$EC$2&ROW($EC72)),$EB72,$EB$2&ROW($EB72)),$EA72,$EA$2&ROW($EA72)),$DZ72,$DZ$2&ROW($DZ72)),$DY72,$DY$2&ROW($DY72)),$DX72,$DX$2&ROW($DX72)),$DW72,$DW$2&ROW($DW72)),$DV72,$DV$2&ROW($DV72)),$DU72,$DU$2&ROW($DU72)),$DT72,$DT$2&ROW($DT72)),$DS72,$DS$2&ROW($DS72)))","v":"X=AS72 * (AU72*47.4/3.412*(if(BC72<>6,0,1/BE72)-3.412/BG72)/1600*AF72)"},{"$f":"IF(V72=\"\",0,\"X=\"&SUBSTITUTE(SUBSTITUTE(SUBSTITUTE(SUBSTITUTE(SUBSTITUTE(SUBSTITUTE(SUBSTITUTE(SUBSTITUTE(SUBSTITUTE(SUBSTITUTE(SUBSTITUTE(SUBSTITUTE(V72,$ED72,$ED$2&ROW($ED72)),$EC72,$EC$2&ROW($EC72)),$EB72,$EB$2&ROW($EB72)),$EA72,$EA$2&ROW($EA72)),$DZ72,$DZ$2&ROW($DZ72)),$DY72,$DY$2&ROW($DY72)),$DX72,$DX$2&ROW($DX72)),$DW72,$DW$2&ROW($DW72)),$DV72,$DV$2&ROW($DV72)),$DU72,$DU$2&ROW($DU72)),$DT72,$DT$2&ROW($DT72)),$DS72,$DS$2&ROW($DS72)))","v":"X=AS72 * (BI72/1000*(1/AY72-1/BA72)*AG72)"},{"$f":"IF(W72=\"\",0,\"X=\"&SUBSTITUTE(SUBSTITUTE(SUBSTITUTE(SUBSTITUTE(SUBSTITUTE(SUBSTITUTE(SUBSTITUTE(SUBSTITUTE(SUBSTITUTE(SUBSTITUTE(SUBSTITUTE(SUBSTITUTE(W72,$ED72,$ED$2&ROW($ED72)),$EC72,$EC$2&ROW($EC72)),$EB72,$EB$2&ROW($EB72)),$EA72,$EA$2&ROW($EA72)),$DZ72,$DZ$2&ROW($DZ72)),$DY72,$DY$2&ROW($DY72)),$DX72,$DX$2&ROW($DX72)),$DW72,$DW$2&ROW($DW72)),$DV72,$DV$2&ROW($DV72)),$DU72,$DU$2&ROW($DU72)),$DT72,$DT$2&ROW($DT72)),$DS72,$DS$2&ROW($DS72)))","v":"X=if(BC72=1,AS72 * AU72*47.4/1000*1/BE72,0)*10"},{"$f":"IF(X72=\"\",0,\"X=\"&SUBSTITUTE(SUBSTITUTE(SUBSTITUTE(SUBSTITUTE(SUBSTITUTE(SUBSTITUTE(SUBSTITUTE(SUBSTITUTE(SUBSTITUTE(SUBSTITUTE(SUBSTITUTE(SUBSTITUTE(X72,$ED72,$ED$2&ROW($ED72)),$EC72,$EC$2&ROW($EC72)),$EB72,$EB$2&ROW($EB72)),$EA72,$EA$2&ROW($EA72)),$DZ72,$DZ$2&ROW($DZ72)),$DY72,$DY$2&ROW($DY72)),$DX72,$DX$2&ROW($DX72)),$DW72,$DW$2&ROW($DW72)),$DV72,$DV$2&ROW($DV72)),$DU72,$DU$2&ROW($DU72)),$DT72,$DT$2&ROW($DT72)),$DS72,$DS$2&ROW($DS72)))","v":"X=if(BC72=2,AS72 * AU72*47.4/1000*1/BE72,0)"},{"$f":"IF(Y72=\"\",0,\"X=\"&SUBSTITUTE(SUBSTITUTE(SUBSTITUTE(SUBSTITUTE(SUBSTITUTE(SUBSTITUTE(SUBSTITUTE(SUBSTITUTE(SUBSTITUTE(SUBSTITUTE(SUBSTITUTE(SUBSTITUTE(Y72,$ED72,$ED$2&ROW($ED72)),$EC72,$EC$2&ROW($EC72)),$EB72,$EB$2&ROW($EB72)),$EA72,$EA$2&ROW($EA72)),$DZ72,$DZ$2&ROW($DZ72)),$DY72,$DY$2&ROW($DY72)),$DX72,$DX$2&ROW($DX72)),$DW72,$DW$2&ROW($DW72)),$DV72,$DV$2&ROW($DV72)),$DU72,$DU$2&ROW($DU72)),$DT72,$DT$2&ROW($DT72)),$DS72,$DS$2&ROW($DS72)))","v":"X=if(BC72=3,AS72 * AU72*47.4/1000*1/BE72,0)"},{"$f":"IF(Z72=\"\",0,\"X=\"&SUBSTITUTE(SUBSTITUTE(SUBSTITUTE(SUBSTITUTE(SUBSTITUTE(SUBSTITUTE(SUBSTITUTE(SUBSTITUTE(SUBSTITUTE(SUBSTITUTE(SUBSTITUTE(SUBSTITUTE(Z72,$ED72,$ED$2&ROW($ED72)),$EC72,$EC$2&ROW($EC72)),$EB72,$EB$2&ROW($EB72)),$EA72,$EA$2&ROW($EA72)),$DZ72,$DZ$2&ROW($DZ72)),$DY72,$DY$2&ROW($DY72)),$DX72,$DX$2&ROW($DX72)),$DW72,$DW$2&ROW($DW72)),$DV72,$DV$2&ROW($DV72)),$DU72,$DU$2&ROW($DU72)),$DT72,$DT$2&ROW($DT72)),$DS72,$DS$2&ROW($DS72)))","v":"X=if(BC72=4,AS72 * AU72*47.4/1000*1/BE72,0)"},{"$f":"IF(AA72=\"\",0,\"X=\"&SUBSTITUTE(SUBSTITUTE(SUBSTITUTE(SUBSTITUTE(SUBSTITUTE(SUBSTITUTE(SUBSTITUTE(SUBSTITUTE(SUBSTITUTE(SUBSTITUTE(SUBSTITUTE(SUBSTITUTE(AA72,$ED72,$ED$2&ROW($ED72)),$EC72,$EC$2&ROW($EC72)),$EB72,$EB$2&ROW($EB72)),$EA72,$EA$2&ROW($EA72)),$DZ72,$DZ$2&ROW($DZ72)),$DY72,$DY$2&ROW($DY72)),$DX72,$DX$2&ROW($DX72)),$DW72,$DW$2&ROW($DW72)),$DV72,$DV$2&ROW($DV72)),$DU72,$DU$2&ROW($DU72)),$DT72,$DT$2&ROW($DT72)),$DS72,$DS$2&ROW($DS72)))","v":"X=if(BC72=5,AS72 * AU72*47.4/1000*1/BE72,0)"},{"$f":"IF(AB72=\"\",0,\"X=\"&SUBSTITUTE(SUBSTITUTE(SUBSTITUTE(SUBSTITUTE(SUBSTITUTE(SUBSTITUTE(SUBSTITUTE(SUBSTITUTE(SUBSTITUTE(SUBSTITUTE(SUBSTITUTE(SUBSTITUTE(AB72,$ED72,$ED$2&ROW($ED72)),$EC72,$EC$2&ROW($EC72)),$EB72,$EB$2&ROW($EB72)),$EA72,$EA$2&ROW($EA72)),$DZ72,$DZ$2&ROW($DZ72)),$DY72,$DY$2&ROW($DY72)),$DX72,$DX$2&ROW($DX72)),$DW72,$DW$2&ROW($DW72)),$DV72,$DV$2&ROW($DV72)),$DU72,$DU$2&ROW($DU72)),$DT72,$DT$2&ROW($DT72)),$DS72,$DS$2&ROW($DS72)))","v":0},null,null,"{Factor:WinterCF}","{Factor:SummerCF}",{"$f":"IFERROR(INDEX($EG72:$IV72,MATCH(0,COUNTIF($DR72:DT72,$EG72:$IV72),0)),\"\")","v":"{Measure:Quantity}"},{"$f":"IFERROR(INDEX($EG72:$IV72,MATCH(0,COUNTIF($DR72:DU72,$EG72:$IV72),0)),\"\")","v":"{Square Feet Served}"},{"$f":"IFERROR(INDEX($EG72:$IV72,MATCH(0,COUNTIF($DR72:DV72,$EG72:$IV72),0)),\"\")","v":"{Cost per SQFT}"},{"$f":"IFERROR(INDEX($EG72:$IV72,MATCH(0,COUNTIF($DR72:DW72,$EG72:$IV72),0)),\"\")","v":"{SEER_base}"},{"$f":"IFERROR(INDEX($EG72:$IV72,MATCH(0,COUNTIF($DR72:DX72,$EG72:$IV72),0)),\"\")","v":"{SEER}"},{"$f":"IFERROR(INDEX($EG72:$IV72,MATCH(0,COUNTIF($DR72:DY72,$EG72:$IV72),0)),\"\")","v":"{Existing Heating Fuel}"},{"$f":"IFERROR(INDEX($EG72:$IV72,MATCH(0,COUNTIF($DR72:DZ72,$EG72:$IV72),0)),\"\")","v":"{COP_base}"},{"$f":"IFERROR(INDEX($EG72:$IV72,MATCH(0,COUNTIF($DR72:EA72,$EG72:$IV72),0)),\"\")","v":"{HSPF}"},{"$f":"IFERROR(INDEX($EG72:$IV72,MATCH(0,COUNTIF($DR72:EB72,$EG72:$IV72),0)),\"\")","v":"{Cooling Capacity (Btu/h)}"},{"$f":"IFERROR(INDEX($EG72:$IV72,MATCH(0,COUNTIF($DR72:EC72,$EG72:$IV72),0)),\"\")","v":""},null,null,{"$f":"IFERROR(MID($G72,FIND(CHAR(160),SUBSTITUTE($G72,\"{\",CHAR(160),EG$1)),FIND(CHAR(160),SUBSTITUTE($G72,\"}\",CHAR(160),EG$1))-FIND(CHAR(160),SUBSTITUTE($G72,\"{\",CHAR(160),EG$1))+1),\"\")","v":"{Measure:Quantity}"},{"$f":"IFERROR(MID($G72,FIND(CHAR(160),SUBSTITUTE($G72,\"{\",CHAR(160),EH$1)),FIND(CHAR(160),SUBSTITUTE($G72,\"}\",CHAR(160),EH$1))-FIND(CHAR(160),SUBSTITUTE($G72,\"{\",CHAR(160),EH$1))+1),\"\")","v":"{Square Feet Served}"},{"$f":"IFERROR(MID($G72,FIND(CHAR(160),SUBSTITUTE($G72,\"{\",CHAR(160),EI$1)),FIND(CHAR(160),SUBSTITUTE($G72,\"}\",CHAR(160),EI$1))-FIND(CHAR(160),SUBSTITUTE($G72,\"{\",CHAR(160),EI$1))+1),\"\")","v":"{Cost per SQFT}"},{"$f":"IFERROR(MID($G72,FIND(CHAR(160),SUBSTITUTE($G72,\"{\",CHAR(160),EJ$1)),FIND(CHAR(160),SUBSTITUTE($G72,\"}\",CHAR(160),EJ$1))-FIND(CHAR(160),SUBSTITUTE($G72,\"{\",CHAR(160),EJ$1))+1),\"\")","v":""},{"$f":"IFERROR(MID($G72,FIND(CHAR(160),SUBSTITUTE($G72,\"{\",CHAR(160),EK$1)),FIND(CHAR(160),SUBSTITUTE($G72,\"}\",CHAR(160),EK$1))-FIND(CHAR(160),SUBSTITUTE($G72,\"{\",CHAR(160),EK$1))+1),\"\")","v":""},{"$f":"IFERROR(MID($G72,FIND(CHAR(160),SUBSTITUTE($G72,\"{\",CHAR(160),EL$1)),FIND(CHAR(160),SUBSTITUTE($G72,\"}\",CHAR(160),EL$1))-FIND(CHAR(160),SUBSTITUTE($G72,\"{\",CHAR(160),EL$1))+1),\"\")","v":""},{"$f":"IFERROR(MID($G72,FIND(CHAR(160),SUBSTITUTE($G72,\"{\",CHAR(160),EM$1)),FIND(CHAR(160),SUBSTITUTE($G72,\"}\",CHAR(160),EM$1))-FIND(CHAR(160),SUBSTITUTE($G72,\"{\",CHAR(160),EM$1))+1),\"\")","v":""},{"$f":"IFERROR(MID($G72,FIND(CHAR(160),SUBSTITUTE($G72,\"{\",CHAR(160),EN$1)),FIND(CHAR(160),SUBSTITUTE($G72,\"}\",CHAR(160),EN$1))-FIND(CHAR(160),SUBSTITUTE($G72,\"{\",CHAR(160),EN$1))+1),\"\")","v":""},{"$f":"IFERROR(MID($G72,FIND(CHAR(160),SUBSTITUTE($G72,\"{\",CHAR(160),EO$1)),FIND(CHAR(160),SUBSTITUTE($G72,\"}\",CHAR(160),EO$1))-FIND(CHAR(160),SUBSTITUTE($G72,\"{\",CHAR(160),EO$1))+1),\"\")","v":""},{"$f":"IFERROR(MID($G72,FIND(CHAR(160),SUBSTITUTE($G72,\"{\",CHAR(160),EP$1)),FIND(CHAR(160),SUBSTITUTE($G72,\"}\",CHAR(160),EP$1))-FIND(CHAR(160),SUBSTITUTE($G72,\"{\",CHAR(160),EP$1))+1),\"\")","v":""},{"$f":"IFERROR(MID($J72,FIND(CHAR(160),SUBSTITUTE($J72,\"{\",CHAR(160),EQ$1)),FIND(CHAR(160),SUBSTITUTE($J72,\"}\",CHAR(160),EQ$1))-FIND(CHAR(160),SUBSTITUTE($J72,\"{\",CHAR(160),EQ$1))+1),\"\")","v":"{Measure:Quantity}"},{"$f":"IFERROR(MID($J72,FIND(CHAR(160),SUBSTITUTE($J72,\"{\",CHAR(160),ER$1)),FIND(CHAR(160),SUBSTITUTE($J72,\"}\",CHAR(160),ER$1))-FIND(CHAR(160),SUBSTITUTE($J72,\"{\",CHAR(160),ER$1))+1),\"\")","v":"{Square Feet Served}"},{"$f":"IFERROR(MID($J72,FIND(CHAR(160),SUBSTITUTE($J72,\"{\",CHAR(160),ES$1)),FIND(CHAR(160),SUBSTITUTE($J72,\"}\",CHAR(160),ES$1))-FIND(CHAR(160),SUBSTITUTE($J72,\"{\",CHAR(160),ES$1))+1),\"\")","v":""},{"$f":"IFERROR(MID($J72,FIND(CHAR(160),SUBSTITUTE($J72,\"{\",CHAR(160),ET$1)),FIND(CHAR(160),SUBSTITUTE($J72,\"}\",CHAR(160),ET$1))-FIND(CHAR(160),SUBSTITUTE($J72,\"{\",CHAR(160),ET$1))+1),\"\")","v":""},{"$f":"IFERROR(MID($J72,FIND(CHAR(160),SUBSTITUTE($J72,\"{\",CHAR(160),EU$1)),FIND(CHAR(160),SUBSTITUTE($J72,\"}\",CHAR(160),EU$1))-FIND(CHAR(160),SUBSTITUTE($J72,\"{\",CHAR(160),EU$1))+1),\"\")","v":""},{"$f":"IFERROR(MID($J72,FIND(CHAR(160),SUBSTITUTE($J72,\"{\",CHAR(160),EV$1)),FIND(CHAR(160),SUBSTITUTE($J72,\"}\",CHAR(160),EV$1))-FIND(CHAR(160),SUBSTITUTE($J72,\"{\",CHAR(160),EV$1))+1),\"\")","v":""},{"$f":"IFERROR(MID($J72,FIND(CHAR(160),SUBSTITUTE($J72,\"{\",CHAR(160),EW$1)),FIND(CHAR(160),SUBSTITUTE($J72,\"}\",CHAR(160),EW$1))-FIND(CHAR(160),SUBSTITUTE($J72,\"{\",CHAR(160),EW$1))+1),\"\")","v":""},{"$f":"IFERROR(MID($J72,FIND(CHAR(160),SUBSTITUTE($J72,\"{\",CHAR(160),EX$1)),FIND(CHAR(160),SUBSTITUTE($J72,\"}\",CHAR(160),EX$1))-FIND(CHAR(160),SUBSTITUTE($J72,\"{\",CHAR(160),EX$1))+1),\"\")","v":""},{"$f":"IFERROR(MID($J72,FIND(CHAR(160),SUBSTITUTE($J72,\"{\",CHAR(160),EY$1)),FIND(CHAR(160),SUBSTITUTE($J72,\"}\",CHAR(160),EY$1))-FIND(CHAR(160),SUBSTITUTE($J72,\"{\",CHAR(160),EY$1))+1),\"\")","v":""},{"$f":"IFERROR(MID($J72,FIND(CHAR(160),SUBSTITUTE($J72,\"{\",CHAR(160),EZ$1)),FIND(CHAR(160),SUBSTITUTE($J72,\"}\",CHAR(160),EZ$1))-FIND(CHAR(160),SUBSTITUTE($J72,\"{\",CHAR(160),EZ$1))+1),\"\")","v":""},{"$f":"IFERROR(MID($J72,FIND(CHAR(160),SUBSTITUTE($J72,\"{\",CHAR(160),FA$1)),FIND(CHAR(160),SUBSTITUTE($J72,\"}\",CHAR(160),FA$1))-FIND(CHAR(160),SUBSTITUTE($J72,\"{\",CHAR(160),FA$1))+1),\"\")","v":"{Measure:Quantity}"},{"$f":"IFERROR(MID($J72,FIND(CHAR(160),SUBSTITUTE($J72,\"{\",CHAR(160),FB$1)),FIND(CHAR(160),SUBSTITUTE($J72,\"}\",CHAR(160),FB$1))-FIND(CHAR(160),SUBSTITUTE($J72,\"{\",CHAR(160),FB$1))+1),\"\")","v":"{Square Feet Served}"},{"$f":"IFERROR(MID($O72,FIND(CHAR(160),SUBSTITUTE($O72,\"{\",CHAR(160),FC$1)),FIND(CHAR(160),SUBSTITUTE($O72,\"}\",CHAR(160),FC$1))-FIND(CHAR(160),SUBSTITUTE($O72,\"{\",CHAR(160),FC$1))+1),\"\")","v":"{SEER_base}"},{"$f":"IFERROR(MID($O72,FIND(CHAR(160),SUBSTITUTE($O72,\"{\",CHAR(160),FD$1)),FIND(CHAR(160),SUBSTITUTE($O72,\"}\",CHAR(160),FD$1))-FIND(CHAR(160),SUBSTITUTE($O72,\"{\",CHAR(160),FD$1))+1),\"\")","v":"{SEER}"},{"$f":"IFERROR(MID($O72,FIND(CHAR(160),SUBSTITUTE($O72,\"{\",CHAR(160),FE$1)),FIND(CHAR(160),SUBSTITUTE($O72,\"}\",CHAR(160),FE$1))-FIND(CHAR(160),SUBSTITUTE($O72,\"{\",CHAR(160),FE$1))+1),\"\")","v":"{Square Feet Served}"},{"$f":"IFERROR(MID($O72,FIND(CHAR(160),SUBSTITUTE($O72,\"{\",CHAR(160),FF$1)),FIND(CHAR(160),SUBSTITUTE($O72,\"}\",CHAR(160),FF$1))-FIND(CHAR(160),SUBSTITUTE($O72,\"{\",CHAR(160),FF$1))+1),\"\")","v":"{Existing Heating Fuel}"},{"$f":"IFERROR(MID($O72,FIND(CHAR(160),SUBSTITUTE($O72,\"{\",CHAR(160),FG$1)),FIND(CHAR(160),SUBSTITUTE($O72,\"}\",CHAR(160),FG$1))-FIND(CHAR(160),SUBSTITUTE($O72,\"{\",CHAR(160),FG$1))+1),\"\")","v":"{COP_base}"},{"$f":"IFERROR(MID($O72,FIND(CHAR(160),SUBSTITUTE($O72,\"{\",CHAR(160),FH$1)),FIND(CHAR(160),SUBSTITUTE($O72,\"}\",CHAR(160),FH$1))-FIND(CHAR(160),SUBSTITUTE($O72,\"{\",CHAR(160),FH$1))+1),\"\")","v":"{HSPF}"},{"$f":"IFERROR(MID($O72,FIND(CHAR(160),SUBSTITUTE($O72,\"{\",CHAR(160),FI$1)),FIND(CHAR(160),SUBSTITUTE($O72,\"}\",CHAR(160),FI$1))-FIND(CHAR(160),SUBSTITUTE($O72,\"{\",CHAR(160),FI$1))+1),\"\")","v":""},{"$f":"IFERROR(MID($O72,FIND(CHAR(160),SUBSTITUTE($O72,\"{\",CHAR(160),FJ$1)),FIND(CHAR(160),SUBSTITUTE($O72,\"}\",CHAR(160),FJ$1))-FIND(CHAR(160),SUBSTITUTE($O72,\"{\",CHAR(160),FJ$1))+1),\"\")","v":""},{"$f":"IFERROR(MID($O72,FIND(CHAR(160),SUBSTITUTE($O72,\"{\",CHAR(160),FK$1)),FIND(CHAR(160),SUBSTITUTE($O72,\"}\",CHAR(160),FK$1))-FIND(CHAR(160),SUBSTITUTE($O72,\"{\",CHAR(160),FK$1))+1),\"\")","v":"{Measure:Quantity}"},{"$f":"IFERROR(MID($O72,FIND(CHAR(160),SUBSTITUTE($O72,\"{\",CHAR(160),FL$1)),FIND(CHAR(160),SUBSTITUTE($O72,\"}\",CHAR(160),FL$1))-FIND(CHAR(160),SUBSTITUTE($O72,\"{\",CHAR(160),FL$1))+1),\"\")","v":"{Cooling Capacity (Btu/h)}"},{"$f":"IFERROR(MID($R72,FIND(CHAR(160),SUBSTITUTE($R72,\"{\",CHAR(160),FM$1)),FIND(CHAR(160),SUBSTITUTE($R72,\"}\",CHAR(160),FM$1))-FIND(CHAR(160),SUBSTITUTE($R72,\"{\",CHAR(160),FM$1))+1),\"\")","v":"{Existing Heating Fuel}"},{"$f":"IFERROR(MID($R72,FIND(CHAR(160),SUBSTITUTE($R72,\"{\",CHAR(160),FN$1)),FIND(CHAR(160),SUBSTITUTE($R72,\"}\",CHAR(160),FN$1))-FIND(CHAR(160),SUBSTITUTE($R72,\"{\",CHAR(160),FN$1))+1),\"\")","v":"{COP_base}"},{"$f":"IFERROR(MID($R72,FIND(CHAR(160),SUBSTITUTE($R72,\"{\",CHAR(160),FO$1)),FIND(CHAR(160),SUBSTITUTE($R72,\"}\",CHAR(160),FO$1))-FIND(CHAR(160),SUBSTITUTE($R72,\"{\",CHAR(160),FO$1))+1),\"\")","v":"{HSPF}"},{"$f":"IFERROR(MID($R72,FIND(CHAR(160),SUBSTITUTE($R72,\"{\",CHAR(160),FP$1)),FIND(CHAR(160),SUBSTITUTE($R72,\"}\",CHAR(160),FP$1))-FIND(CHAR(160),SUBSTITUTE($R72,\"{\",CHAR(160),FP$1))+1),\"\")","v":"{Cooling Capacity (Btu/h)}"},{"$f":"IFERROR(MID($R72,FIND(CHAR(160),SUBSTITUTE($R72,\"{\",CHAR(160),FQ$1)),FIND(CHAR(160),SUBSTITUTE($R72,\"}\",CHAR(160),FQ$1))-FIND(CHAR(160),SUBSTITUTE($R72,\"{\",CHAR(160),FQ$1))+1),\"\")","v":"{SEER_base}"},{"$f":"IFERROR(MID($R72,FIND(CHAR(160),SUBSTITUTE($R72,\"{\",CHAR(160),FR$1)),FIND(CHAR(160),SUBSTITUTE($R72,\"}\",CHAR(160),FR$1))-FIND(CHAR(160),SUBSTITUTE($R72,\"{\",CHAR(160),FR$1))+1),\"\")","v":"{SEER}"},{"$f":"IFERROR(MID($R72,FIND(CHAR(160),SUBSTITUTE($R72,\"{\",CHAR(160),FS$1)),FIND(CHAR(160),SUBSTITUTE($R72,\"}\",CHAR(160),FS$1))-FIND(CHAR(160),SUBSTITUTE($R72,\"{\",CHAR(160),FS$1))+1),\"\")","v":""},{"$f":"IFERROR(MID($R72,FIND(CHAR(160),SUBSTITUTE($R72,\"{\",CHAR(160),FT$1)),FIND(CHAR(160),SUBSTITUTE($R72,\"}\",CHAR(160),FT$1))-FIND(CHAR(160),SUBSTITUTE($R72,\"{\",CHAR(160),FT$1))+1),\"\")","v":""},{"$f":"IFERROR(MID($R72,FIND(CHAR(160),SUBSTITUTE($R72,\"{\",CHAR(160),FU$1)),FIND(CHAR(160),SUBSTITUTE($R72,\"}\",CHAR(160),FU$1))-FIND(CHAR(160),SUBSTITUTE($R72,\"{\",CHAR(160),FU$1))+1),\"\")","v":"{Measure:Quantity}"},{"$f":"IFERROR(MID($R72,FIND(CHAR(160),SUBSTITUTE($R72,\"{\",CHAR(160),FV$1)),FIND(CHAR(160),SUBSTITUTE($R72,\"}\",CHAR(160),FV$1))-FIND(CHAR(160),SUBSTITUTE($R72,\"{\",CHAR(160),FV$1))+1),\"\")","v":"{Square Feet Served}"},{"$f":"IFERROR(MID($U72,FIND(CHAR(160),SUBSTITUTE($U72,\"{\",CHAR(160),FW$1)),FIND(CHAR(160),SUBSTITUTE($U72,\"}\",CHAR(160),FW$1))-FIND(CHAR(160),SUBSTITUTE($U72,\"{\",CHAR(160),FW$1))+1),\"\")","v":"{Existing Heating Fuel}"},{"$f":"IFERROR(MID($U72,FIND(CHAR(160),SUBSTITUTE($U72,\"{\",CHAR(160),FX$1)),FIND(CHAR(160),SUBSTITUTE($U72,\"}\",CHAR(160),FX$1))-FIND(CHAR(160),SUBSTITUTE($U72,\"{\",CHAR(160),FX$1))+1),\"\")","v":"{COP_base}"},{"$f":"IFERROR(MID($U72,FIND(CHAR(160),SUBSTITUTE($U72,\"{\",CHAR(160),FY$1)),FIND(CHAR(160),SUBSTITUTE($U72,\"}\",CHAR(160),FY$1))-FIND(CHAR(160),SUBSTITUTE($U72,\"{\",CHAR(160),FY$1))+1),\"\")","v":"{HSPF}"},{"$f":"IFERROR(MID($U72,FIND(CHAR(160),SUBSTITUTE($U72,\"{\",CHAR(160),FZ$1)),FIND(CHAR(160),SUBSTITUTE($U72,\"}\",CHAR(160),FZ$1))-FIND(CHAR(160),SUBSTITUTE($U72,\"{\",CHAR(160),FZ$1))+1),\"\")","v":"{Factor:WinterCF}"},{"$f":"IFERROR(MID($U72,FIND(CHAR(160),SUBSTITUTE($U72,\"{\",CHAR(160),GA$1)),FIND(CHAR(160),SUBSTITUTE($U72,\"}\",CHAR(160),GA$1))-FIND(CHAR(160),SUBSTITUTE($U72,\"{\",CHAR(160),GA$1))+1),\"\")","v":""},{"$f":"IFERROR(MID($U72,FIND(CHAR(160),SUBSTITUTE($U72,\"{\",CHAR(160),GB$1)),FIND(CHAR(160),SUBSTITUTE($U72,\"}\",CHAR(160),GB$1))-FIND(CHAR(160),SUBSTITUTE($U72,\"{\",CHAR(160),GB$1))+1),\"\")","v":""},{"$f":"IFERROR(MID($U72,FIND(CHAR(160),SUBSTITUTE($U72,\"{\",CHAR(160),GC$1)),FIND(CHAR(160),SUBSTITUTE($U72,\"}\",CHAR(160),GC$1))-FIND(CHAR(160),SUBSTITUTE($U72,\"{\",CHAR(160),GC$1))+1),\"\")","v":""},{"$f":"IFERROR(MID($U72,FIND(CHAR(160),SUBSTITUTE($U72,\"{\",CHAR(160),GD$1)),FIND(CHAR(160),SUBSTITUTE($U72,\"}\",CHAR(160),GD$1))-FIND(CHAR(160),SUBSTITUTE($U72,\"{\",CHAR(160),GD$1))+1),\"\")","v":""},{"$f":"IFERROR(MID($U72,FIND(CHAR(160),SUBSTITUTE($U72,\"{\",CHAR(160),GE$1)),FIND(CHAR(160),SUBSTITUTE($U72,\"}\",CHAR(160),GE$1))-FIND(CHAR(160),SUBSTITUTE($U72,\"{\",CHAR(160),GE$1))+1),\"\")","v":"{Measure:Quantity}"},{"$f":"IFERROR(MID($U72,FIND(CHAR(160),SUBSTITUTE($U72,\"{\",CHAR(160),GF$1)),FIND(CHAR(160),SUBSTITUTE($U72,\"}\",CHAR(160),GF$1))-FIND(CHAR(160),SUBSTITUTE($U72,\"{\",CHAR(160),GF$1))+1),\"\")","v":"{Square Feet Served}"},{"$f":"IFERROR(MID($V72,FIND(CHAR(160),SUBSTITUTE($V72,\"{\",CHAR(160),GG$1)),FIND(CHAR(160),SUBSTITUTE($V72,\"}\",CHAR(160),GG$1))-FIND(CHAR(160),SUBSTITUTE($V72,\"{\",CHAR(160),GG$1))+1),\"\")","v":"{SEER_base}"},{"$f":"IFERROR(MID($V72,FIND(CHAR(160),SUBSTITUTE($V72,\"{\",CHAR(160),GH$1)),FIND(CHAR(160),SUBSTITUTE($V72,\"}\",CHAR(160),GH$1))-FIND(CHAR(160),SUBSTITUTE($V72,\"{\",CHAR(160),GH$1))+1),\"\")","v":"{SEER}"},{"$f":"IFERROR(MID($V72,FIND(CHAR(160),SUBSTITUTE($V72,\"{\",CHAR(160),GI$1)),FIND(CHAR(160),SUBSTITUTE($V72,\"}\",CHAR(160),GI$1))-FIND(CHAR(160),SUBSTITUTE($V72,\"{\",CHAR(160),GI$1))+1),\"\")","v":"{Factor:SummerCF}"},{"$f":"IFERROR(MID($V72,FIND(CHAR(160),SUBSTITUTE($V72,\"{\",CHAR(160),GJ$1)),FIND(CHAR(160),SUBSTITUTE($V72,\"}\",CHAR(160),GJ$1))-FIND(CHAR(160),SUBSTITUTE($V72,\"{\",CHAR(160),GJ$1))+1),\"\")","v":""},{"$f":"IFERROR(MID($V72,FIND(CHAR(160),SUBSTITUTE($V72,\"{\",CHAR(160),GK$1)),FIND(CHAR(160),SUBSTITUTE($V72,\"}\",CHAR(160),GK$1))-FIND(CHAR(160),SUBSTITUTE($V72,\"{\",CHAR(160),GK$1))+1),\"\")","v":""},{"$f":"IFERROR(MID($V72,FIND(CHAR(160),SUBSTITUTE($V72,\"{\",CHAR(160),GL$1)),FIND(CHAR(160),SUBSTITUTE($V72,\"}\",CHAR(160),GL$1))-FIND(CHAR(160),SUBSTITUTE($V72,\"{\",CHAR(160),GL$1))+1),\"\")","v":""},{"$f":"IFERROR(MID($V72,FIND(CHAR(160),SUBSTITUTE($V72,\"{\",CHAR(160),GM$1)),FIND(CHAR(160),SUBSTITUTE($V72,\"}\",CHAR(160),GM$1))-FIND(CHAR(160),SUBSTITUTE($V72,\"{\",CHAR(160),GM$1))+1),\"\")","v":""},{"$f":"IFERROR(MID($V72,FIND(CHAR(160),SUBSTITUTE($V72,\"{\",CHAR(160),GN$1)),FIND(CHAR(160),SUBSTITUTE($V72,\"}\",CHAR(160),GN$1))-FIND(CHAR(160),SUBSTITUTE($V72,\"{\",CHAR(160),GN$1))+1),\"\")","v":""},{"$f":"IFERROR(MID($V72,FIND(CHAR(160),SUBSTITUTE($V72,\"{\",CHAR(160),GO$1)),FIND(CHAR(160),SUBSTITUTE($V72,\"}\",CHAR(160),GO$1))-FIND(CHAR(160),SUBSTITUTE($V72,\"{\",CHAR(160),GO$1))+1),\"\")","v":"{Measure:Quantity}"},{"$f":"IFERROR(MID($V72,FIND(CHAR(160),SUBSTITUTE($V72,\"{\",CHAR(160),GP$1)),FIND(CHAR(160),SUBSTITUTE($V72,\"}\",CHAR(160),GP$1))-FIND(CHAR(160),SUBSTITUTE($V72,\"{\",CHAR(160),GP$1))+1),\"\")","v":"{Cooling Capacity (Btu/h)}"},{"$f":"IFERROR(MID($W72,FIND(CHAR(160),SUBSTITUTE($W72,\"{\",CHAR(160),GQ$1)),FIND(CHAR(160),SUBSTITUTE($W72,\"}\",CHAR(160),GQ$1))-FIND(CHAR(160),SUBSTITUTE($W72,\"{\",CHAR(160),GQ$1))+1),\"\")","v":"{Square Feet Served}"},{"$f":"IFERROR(MID($W72,FIND(CHAR(160),SUBSTITUTE($W72,\"{\",CHAR(160),GR$1)),FIND(CHAR(160),SUBSTITUTE($W72,\"}\",CHAR(160),GR$1))-FIND(CHAR(160),SUBSTITUTE($W72,\"{\",CHAR(160),GR$1))+1),\"\")","v":"{COP_base}"},{"$f":"IFERROR(MID($W72,FIND(CHAR(160),SUBSTITUTE($W72,\"{\",CHAR(160),GS$1)),FIND(CHAR(160),SUBSTITUTE($W72,\"}\",CHAR(160),GS$1))-FIND(CHAR(160),SUBSTITUTE($W72,\"{\",CHAR(160),GS$1))+1),\"\")","v":""},{"$f":"IFERROR(MID($W72,FIND(CHAR(160),SUBSTITUTE($W72,\"{\",CHAR(160),GT$1)),FIND(CHAR(160),SUBSTITUTE($W72,\"}\",CHAR(160),GT$1))-FIND(CHAR(160),SUBSTITUTE($W72,\"{\",CHAR(160),GT$1))+1),\"\")","v":""},{"$f":"IFERROR(MID($W72,FIND(CHAR(160),SUBSTITUTE($W72,\"{\",CHAR(160),GU$1)),FIND(CHAR(160),SUBSTITUTE($W72,\"}\",CHAR(160),GU$1))-FIND(CHAR(160),SUBSTITUTE($W72,\"{\",CHAR(160),GU$1))+1),\"\")","v":""},{"$f":"IFERROR(MID($W72,FIND(CHAR(160),SUBSTITUTE($W72,\"{\",CHAR(160),GV$1)),FIND(CHAR(160),SUBSTITUTE($W72,\"}\",CHAR(160),GV$1))-FIND(CHAR(160),SUBSTITUTE($W72,\"{\",CHAR(160),GV$1))+1),\"\")","v":""},{"$f":"IFERROR(MID($W72,FIND(CHAR(160),SUBSTITUTE($W72,\"{\",CHAR(160),GW$1)),FIND(CHAR(160),SUBSTITUTE($W72,\"}\",CHAR(160),GW$1))-FIND(CHAR(160),SUBSTITUTE($W72,\"{\",CHAR(160),GW$1))+1),\"\")","v":""},{"$f":"IFERROR(MID($W72,FIND(CHAR(160),SUBSTITUTE($W72,\"{\",CHAR(160),GX$1)),FIND(CHAR(160),SUBSTITUTE($W72,\"}\",CHAR(160),GX$1))-FIND(CHAR(160),SUBSTITUTE($W72,\"{\",CHAR(160),GX$1))+1),\"\")","v":""},{"$f":"IFERROR(MID($W72,FIND(CHAR(160),SUBSTITUTE($W72,\"{\",CHAR(160),GY$1)),FIND(CHAR(160),SUBSTITUTE($W72,\"}\",CHAR(160),GY$1))-FIND(CHAR(160),SUBSTITUTE($W72,\"{\",CHAR(160),GY$1))+1),\"\")","v":"{Existing Heating Fuel}"},{"$f":"IFERROR(MID($W72,FIND(CHAR(160),SUBSTITUTE($W72,\"{\",CHAR(160),GZ$1)),FIND(CHAR(160),SUBSTITUTE($W72,\"}\",CHAR(160),GZ$1))-FIND(CHAR(160),SUBSTITUTE($W72,\"{\",CHAR(160),GZ$1))+1),\"\")","v":"{Measure:Quantity}"},{"$f":"IFERROR(MID($X72,FIND(CHAR(160),SUBSTITUTE($X72,\"{\",CHAR(160),HA$1)),FIND(CHAR(160),SUBSTITUTE($X72,\"}\",CHAR(160),HA$1))-FIND(CHAR(160),SUBSTITUTE($X72,\"{\",CHAR(160),HA$1))+1),\"\")","v":"{Square Feet Served}"},{"$f":"IFERROR(MID($X72,FIND(CHAR(160),SUBSTITUTE($X72,\"{\",CHAR(160),HB$1)),FIND(CHAR(160),SUBSTITUTE($X72,\"}\",CHAR(160),HB$1))-FIND(CHAR(160),SUBSTITUTE($X72,\"{\",CHAR(160),HB$1))+1),\"\")","v":"{COP_base}"},{"$f":"IFERROR(MID($X72,FIND(CHAR(160),SUBSTITUTE($X72,\"{\",CHAR(160),HC$1)),FIND(CHAR(160),SUBSTITUTE($X72,\"}\",CHAR(160),HC$1))-FIND(CHAR(160),SUBSTITUTE($X72,\"{\",CHAR(160),HC$1))+1),\"\")","v":""},{"$f":"IFERROR(MID($X72,FIND(CHAR(160),SUBSTITUTE($X72,\"{\",CHAR(160),HD$1)),FIND(CHAR(160),SUBSTITUTE($X72,\"}\",CHAR(160),HD$1))-FIND(CHAR(160),SUBSTITUTE($X72,\"{\",CHAR(160),HD$1))+1),\"\")","v":""},{"$f":"IFERROR(MID($X72,FIND(CHAR(160),SUBSTITUTE($X72,\"{\",CHAR(160),HE$1)),FIND(CHAR(160),SUBSTITUTE($X72,\"}\",CHAR(160),HE$1))-FIND(CHAR(160),SUBSTITUTE($X72,\"{\",CHAR(160),HE$1))+1),\"\")","v":""},{"$f":"IFERROR(MID($X72,FIND(CHAR(160),SUBSTITUTE($X72,\"{\",CHAR(160),HF$1)),FIND(CHAR(160),SUBSTITUTE($X72,\"}\",CHAR(160),HF$1))-FIND(CHAR(160),SUBSTITUTE($X72,\"{\",CHAR(160),HF$1))+1),\"\")","v":""},{"$f":"IFERROR(MID($X72,FIND(CHAR(160),SUBSTITUTE($X72,\"{\",CHAR(160),HG$1)),FIND(CHAR(160),SUBSTITUTE($X72,\"}\",CHAR(160),HG$1))-FIND(CHAR(160),SUBSTITUTE($X72,\"{\",CHAR(160),HG$1))+1),\"\")","v":""},{"$f":"IFERROR(MID($X72,FIND(CHAR(160),SUBSTITUTE($X72,\"{\",CHAR(160),HH$1)),FIND(CHAR(160),SUBSTITUTE($X72,\"}\",CHAR(160),HH$1))-FIND(CHAR(160),SUBSTITUTE($X72,\"{\",CHAR(160),HH$1))+1),\"\")","v":""},{"$f":"IFERROR(MID($X72,FIND(CHAR(160),SUBSTITUTE($X72,\"{\",CHAR(160),HI$1)),FIND(CHAR(160),SUBSTITUTE($X72,\"}\",CHAR(160),HI$1))-FIND(CHAR(160),SUBSTITUTE($X72,\"{\",CHAR(160),HI$1))+1),\"\")","v":"{Existing Heating Fuel}"},{"$f":"IFERROR(MID($X72,FIND(CHAR(160),SUBSTITUTE($X72,\"{\",CHAR(160),HJ$1)),FIND(CHAR(160),SUBSTITUTE($X72,\"}\",CHAR(160),HJ$1))-FIND(CHAR(160),SUBSTITUTE($X72,\"{\",CHAR(160),HJ$1))+1),\"\")","v":"{Measure:Quantity}"},{"$f":"IFERROR(MID($Y72,FIND(CHAR(160),SUBSTITUTE($Y72,\"{\",CHAR(160),HK$1)),FIND(CHAR(160),SUBSTITUTE($Y72,\"}\",CHAR(160),HK$1))-FIND(CHAR(160),SUBSTITUTE($Y72,\"{\",CHAR(160),HK$1))+1),\"\")","v":"{Square Feet Served}"},{"$f":"IFERROR(MID($Y72,FIND(CHAR(160),SUBSTITUTE($Y72,\"{\",CHAR(160),HL$1)),FIND(CHAR(160),SUBSTITUTE($Y72,\"}\",CHAR(160),HL$1))-FIND(CHAR(160),SUBSTITUTE($Y72,\"{\",CHAR(160),HL$1))+1),\"\")","v":"{COP_base}"},{"$f":"IFERROR(MID($Y72,FIND(CHAR(160),SUBSTITUTE($Y72,\"{\",CHAR(160),HM$1)),FIND(CHAR(160),SUBSTITUTE($Y72,\"}\",CHAR(160),HM$1))-FIND(CHAR(160),SUBSTITUTE($Y72,\"{\",CHAR(160),HM$1))+1),\"\")","v":""},{"$f":"IFERROR(MID($Y72,FIND(CHAR(160),SUBSTITUTE($Y72,\"{\",CHAR(160),HN$1)),FIND(CHAR(160),SUBSTITUTE($Y72,\"}\",CHAR(160),HN$1))-FIND(CHAR(160),SUBSTITUTE($Y72,\"{\",CHAR(160),HN$1))+1),\"\")","v":""},{"$f":"IFERROR(MID($Y72,FIND(CHAR(160),SUBSTITUTE($Y72,\"{\",CHAR(160),HO$1)),FIND(CHAR(160),SUBSTITUTE($Y72,\"}\",CHAR(160),HO$1))-FIND(CHAR(160),SUBSTITUTE($Y72,\"{\",CHAR(160),HO$1))+1),\"\")","v":""},{"$f":"IFERROR(MID($Y72,FIND(CHAR(160),SUBSTITUTE($Y72,\"{\",CHAR(160),HP$1)),FIND(CHAR(160),SUBSTITUTE($Y72,\"}\",CHAR(160),HP$1))-FIND(CHAR(160),SUBSTITUTE($Y72,\"{\",CHAR(160),HP$1))+1),\"\")","v":""},{"$f":"IFERROR(MID($Y72,FIND(CHAR(160),SUBSTITUTE($Y72,\"{\",CHAR(160),HQ$1)),FIND(CHAR(160),SUBSTITUTE($Y72,\"}\",CHAR(160),HQ$1))-FIND(CHAR(160),SUBSTITUTE($Y72,\"{\",CHAR(160),HQ$1))+1),\"\")","v":""},{"$f":"IFERROR(MID($Y72,FIND(CHAR(160),SUBSTITUTE($Y72,\"{\",CHAR(160),HR$1)),FIND(CHAR(160),SUBSTITUTE($Y72,\"}\",CHAR(160),HR$1))-FIND(CHAR(160),SUBSTITUTE($Y72,\"{\",CHAR(160),HR$1))+1),\"\")","v":""},{"$f":"IFERROR(MID($Y72,FIND(CHAR(160),SUBSTITUTE($Y72,\"{\",CHAR(160),HS$1)),FIND(CHAR(160),SUBSTITUTE($Y72,\"}\",CHAR(160),HS$1))-FIND(CHAR(160),SUBSTITUTE($Y72,\"{\",CHAR(160),HS$1))+1),\"\")","v":"{Existing Heating Fuel}"},{"$f":"IFERROR(MID($Y72,FIND(CHAR(160),SUBSTITUTE($Y72,\"{\",CHAR(160),HT$1)),FIND(CHAR(160),SUBSTITUTE($Y72,\"}\",CHAR(160),HT$1))-FIND(CHAR(160),SUBSTITUTE($Y72,\"{\",CHAR(160),HT$1))+1),\"\")","v":"{Measure:Quantity}"},{"$f":"IFERROR(MID($Z72,FIND(CHAR(160),SUBSTITUTE($Z72,\"{\",CHAR(160),HU$1)),FIND(CHAR(160),SUBSTITUTE($Z72,\"}\",CHAR(160),HU$1))-FIND(CHAR(160),SUBSTITUTE($Z72,\"{\",CHAR(160),HU$1))+1),\"\")","v":"{Square Feet Served}"},{"$f":"IFERROR(MID($Z72,FIND(CHAR(160),SUBSTITUTE($Z72,\"{\",CHAR(160),HV$1)),FIND(CHAR(160),SUBSTITUTE($Z72,\"}\",CHAR(160),HV$1))-FIND(CHAR(160),SUBSTITUTE($Z72,\"{\",CHAR(160),HV$1))+1),\"\")","v":"{COP_base}"},{"$f":"IFERROR(MID($Z72,FIND(CHAR(160),SUBSTITUTE($Z72,\"{\",CHAR(160),HW$1)),FIND(CHAR(160),SUBSTITUTE($Z72,\"}\",CHAR(160),HW$1))-FIND(CHAR(160),SUBSTITUTE($Z72,\"{\",CHAR(160),HW$1))+1),\"\")","v":""},{"$f":"IFERROR(MID($Z72,FIND(CHAR(160),SUBSTITUTE($Z72,\"{\",CHAR(160),HX$1)),FIND(CHAR(160),SUBSTITUTE($Z72,\"}\",CHAR(160),HX$1))-FIND(CHAR(160),SUBSTITUTE($Z72,\"{\",CHAR(160),HX$1))+1),\"\")","v":""},{"$f":"IFERROR(MID($Z72,FIND(CHAR(160),SUBSTITUTE($Z72,\"{\",CHAR(160),HY$1)),FIND(CHAR(160),SUBSTITUTE($Z72,\"}\",CHAR(160),HY$1))-FIND(CHAR(160),SUBSTITUTE($Z72,\"{\",CHAR(160),HY$1))+1),\"\")","v":""},{"$f":"IFERROR(MID($Z72,FIND(CHAR(160),SUBSTITUTE($Z72,\"{\",CHAR(160),HZ$1)),FIND(CHAR(160),SUBSTITUTE($Z72,\"}\",CHAR(160),HZ$1))-FIND(CHAR(160),SUBSTITUTE($Z72,\"{\",CHAR(160),HZ$1))+1),\"\")","v":""},{"$f":"IFERROR(MID($Z72,FIND(CHAR(160),SUBSTITUTE($Z72,\"{\",CHAR(160),IA$1)),FIND(CHAR(160),SUBSTITUTE($Z72,\"}\",CHAR(160),IA$1))-FIND(CHAR(160),SUBSTITUTE($Z72,\"{\",CHAR(160),IA$1))+1),\"\")","v":""},{"$f":"IFERROR(MID($Z72,FIND(CHAR(160),SUBSTITUTE($Z72,\"{\",CHAR(160),IB$1)),FIND(CHAR(160),SUBSTITUTE($Z72,\"}\",CHAR(160),IB$1))-FIND(CHAR(160),SUBSTITUTE($Z72,\"{\",CHAR(160),IB$1))+1),\"\")","v":""},{"$f":"IFERROR(MID($Z72,FIND(CHAR(160),SUBSTITUTE($Z72,\"{\",CHAR(160),IC$1)),FIND(CHAR(160),SUBSTITUTE($Z72,\"}\",CHAR(160),IC$1))-FIND(CHAR(160),SUBSTITUTE($Z72,\"{\",CHAR(160),IC$1))+1),\"\")","v":"{Existing Heating Fuel}"},{"$f":"IFERROR(MID($Z72,FIND(CHAR(160),SUBSTITUTE($Z72,\"{\",CHAR(160),ID$1)),FIND(CHAR(160),SUBSTITUTE($Z72,\"}\",CHAR(160),ID$1))-FIND(CHAR(160),SUBSTITUTE($Z72,\"{\",CHAR(160),ID$1))+1),\"\")","v":"{Measure:Quantity}"},{"$f":"IFERROR(MID($AA72,FIND(CHAR(160),SUBSTITUTE($AA72,\"{\",CHAR(160),IE$1)),FIND(CHAR(160),SUBSTITUTE($AA72,\"}\",CHAR(160),IE$1))-FIND(CHAR(160),SUBSTITUTE($AA72,\"{\",CHAR(160),IE$1))+1),\"\")","v":"{Square Feet Served}"},{"$f":"IFERROR(MID($AA72,FIND(CHAR(160),SUBSTITUTE($AA72,\"{\",CHAR(160),IF$1)),FIND(CHAR(160),SUBSTITUTE($AA72,\"}\",CHAR(160),IF$1))-FIND(CHAR(160),SUBSTITUTE($AA72,\"{\",CHAR(160),IF$1))+1),\"\")","v":"{COP_base}"},{"$f":"IFERROR(MID($AA72,FIND(CHAR(160),SUBSTITUTE($AA72,\"{\",CHAR(160),IG$1)),FIND(CHAR(160),SUBSTITUTE($AA72,\"}\",CHAR(160),IG$1))-FIND(CHAR(160),SUBSTITUTE($AA72,\"{\",CHAR(160),IG$1))+1),\"\")","v":""},{"$f":"IFERROR(MID($AA72,FIND(CHAR(160),SUBSTITUTE($AA72,\"{\",CHAR(160),IH$1)),FIND(CHAR(160),SUBSTITUTE($AA72,\"}\",CHAR(160),IH$1))-FIND(CHAR(160),SUBSTITUTE($AA72,\"{\",CHAR(160),IH$1))+1),\"\")","v":""},{"$f":"IFERROR(MID($AA72,FIND(CHAR(160),SUBSTITUTE($AA72,\"{\",CHAR(160),II$1)),FIND(CHAR(160),SUBSTITUTE($AA72,\"}\",CHAR(160),II$1))-FIND(CHAR(160),SUBSTITUTE($AA72,\"{\",CHAR(160),II$1))+1),\"\")","v":""},{"$f":"IFERROR(MID($AA72,FIND(CHAR(160),SUBSTITUTE($AA72,\"{\",CHAR(160),IJ$1)),FIND(CHAR(160),SUBSTITUTE($AA72,\"}\",CHAR(160),IJ$1))-FIND(CHAR(160),SUBSTITUTE($AA72,\"{\",CHAR(160),IJ$1))+1),\"\")","v":""},{"$f":"IFERROR(MID($AA72,FIND(CHAR(160),SUBSTITUTE($AA72,\"{\",CHAR(160),IK$1)),FIND(CHAR(160),SUBSTITUTE($AA72,\"}\",CHAR(160),IK$1))-FIND(CHAR(160),SUBSTITUTE($AA72,\"{\",CHAR(160),IK$1))+1),\"\")","v":""},{"$f":"IFERROR(MID($AA72,FIND(CHAR(160),SUBSTITUTE($AA72,\"{\",CHAR(160),IL$1)),FIND(CHAR(160),SUBSTITUTE($AA72,\"}\",CHAR(160),IL$1))-FIND(CHAR(160),SUBSTITUTE($AA72,\"{\",CHAR(160),IL$1))+1),\"\")","v":""},{"$f":"IFERROR(MID($AA72,FIND(CHAR(160),SUBSTITUTE($AA72,\"{\",CHAR(160),IM$1)),FIND(CHAR(160),SUBSTITUTE($AA72,\"}\",CHAR(160),IM$1))-FIND(CHAR(160),SUBSTITUTE($AA72,\"{\",CHAR(160),IM$1))+1),\"\")","v":"{Existing Heating Fuel}"},{"$f":"IFERROR(MID($AA72,FIND(CHAR(160),SUBSTITUTE($AA72,\"{\",CHAR(160),IN$1)),FIND(CHAR(160),SUBSTITUTE($AA72,\"}\",CHAR(160),IN$1))-FIND(CHAR(160),SUBSTITUTE($AA72,\"{\",CHAR(160),IN$1))+1),\"\")","v":"{Measure:Quantity}"},{"$f":"IFERROR(MID($AB72,FIND(CHAR(160),SUBSTITUTE($AB72,\"{\",CHAR(160),IO$1)),FIND(CHAR(160),SUBSTITUTE($AB72,\"}\",CHAR(160),IO$1))-FIND(CHAR(160),SUBSTITUTE($AB72,\"{\",CHAR(160),IO$1))+1),\"\")","v":""},{"$f":"IFERROR(MID($AB72,FIND(CHAR(160),SUBSTITUTE($AB72,\"{\",CHAR(160),IP$1)),FIND(CHAR(160),SUBSTITUTE($AB72,\"}\",CHAR(160),IP$1))-FIND(CHAR(160),SUBSTITUTE($AB72,\"{\",CHAR(160),IP$1))+1),\"\")","v":""},{"$f":"IFERROR(MID($AB72,FIND(CHAR(160),SUBSTITUTE($AB72,\"{\",CHAR(160),IQ$1)),FIND(CHAR(160),SUBSTITUTE($AB72,\"}\",CHAR(160),IQ$1))-FIND(CHAR(160),SUBSTITUTE($AB72,\"{\",CHAR(160),IQ$1))+1),\"\")","v":""},{"$f":"IFERROR(MID($AB72,FIND(CHAR(160),SUBSTITUTE($AB72,\"{\",CHAR(160),IR$1)),FIND(CHAR(160),SUBSTITUTE($AB72,\"}\",CHAR(160),IR$1))-FIND(CHAR(160),SUBSTITUTE($AB72,\"{\",CHAR(160),IR$1))+1),\"\")","v":""},{"$f":"IFERROR(MID($AB72,FIND(CHAR(160),SUBSTITUTE($AB72,\"{\",CHAR(160),IS$1)),FIND(CHAR(160),SUBSTITUTE($AB72,\"}\",CHAR(160),IS$1))-FIND(CHAR(160),SUBSTITUTE($AB72,\"{\",CHAR(160),IS$1))+1),\"\")","v":""},{"$f":"IFERROR(MID($AB72,FIND(CHAR(160),SUBSTITUTE($AB72,\"{\",CHAR(160),IT$1)),FIND(CHAR(160),SUBSTITUTE($AB72,\"}\",CHAR(160),IT$1))-FIND(CHAR(160),SUBSTITUTE($AB72,\"{\",CHAR(160),IT$1))+1),\"\")","v":""},{"$f":"IFERROR(MID($AB72,FIND(CHAR(160),SUBSTITUTE($AB72,\"{\",CHAR(160),IU$1)),FIND(CHAR(160),SUBSTITUTE($AB72,\"}\",CHAR(160),IU$1))-FIND(CHAR(160),SUBSTITUTE($AB72,\"{\",CHAR(160),IU$1))+1),\"\")","v":""},{"$f":"IFERROR(MID($AB72,FIND(CHAR(160),SUBSTITUTE($AB72,\"{\",CHAR(160),IV$1)),FIND(CHAR(160),SUBSTITUTE($AB72,\"}\",CHAR(160),IV$1))-FIND(CHAR(160),SUBSTITUTE($AB72,\"{\",CHAR(160),IV$1))+1),\"\")","v":""},{"$f":"IFERROR(MID($AB72,FIND(CHAR(160),SUBSTITUTE($AB72,\"{\",CHAR(160),IW$1)),FIND(CHAR(160),SUBSTITUTE($AB72,\"}\",CHAR(160),IW$1))-FIND(CHAR(160),SUBSTITUTE($AB72,\"{\",CHAR(160),IW$1))+1),\"\")","v":""},{"$f":"IFERROR(MID($AB72,FIND(CHAR(160),SUBSTITUTE($AB72,\"{\",CHAR(160),IX$1)),FIND(CHAR(160),SUBSTITUTE($AB72,\"}\",CHAR(160),IX$1))-FIND(CHAR(160),SUBSTITUTE($AB72,\"{\",CHAR(160),IX$1))+1),\"\")","v":""},null,{"$f":"10-COUNTIF(DU72:ED72,\"\")","v":9}]
["C&I HVAC - Natural Gas","Oxygen Trim for Boilers and Heaters","AF4","2021-07-01","2022-06-30","Calculated","{Measure:Quantity}*20000.00",0,"Calculated","{Measure:Quantity}*{Capacity (MBTUH)}*0.75",0,"2021-05-25","2022-06-30","Calculated",null,null,null,null,null,null,null,null,"if({Existing Fuel}<>1,0,{Measure:Quantity} * ({Capacity (MBTUH)} * 0.02 * if({End-Use}=1,1565,{Annual Hours of Operation})) / 1000 * 10)",null,null,null,null,null,"2021-05-25","2022-06-30",15,0,0,0,0,0,0,1,1,0,0.52,1.6E-2,null,{"$f":"DU73","v":"{Measure:Quantity}"},1,{"$f":"DV73","v":"{Capacity (MBTUH)}"},2200,{"$f":"DW73","v":"{End-Use}"},1,{"$f":"DX73","v":"{Annual Hours of Operation}"},1,{"$f":"DY73","v":"{Existing Fuel}"},3250,{"$f":"DZ73","v":""},null,{"$f":"EA73","v":""},null,{"$f":"EB73","v":""},null,{"$f":"EC73","v":""},null,{"$f":"ED73","v":""},null,0,0,0,0,0,0,0,0,{"$f":"IF(AW73<>1,0,AS73 * (AU73 * 0.02 * IF(AY73=1,1565,BA73)) / 1000 * 10)","v":688.6},0,0,0,0,0,null,"Res","Default DR",{"$f":"Benefits(BL73,BR73,BS73,BT73,BU73,BV73,BW73,BX73,BY73,BZ73,AE73,AH73,AI73,AJ73,AK73,AL73,AM73,AN73,AO73,AP73,CA73,CB73)","v":0},0,13617.223621925048,0,0,0,0,0,0,{"$f":"SUMPRODUCT(CC73:CK73,--(CC73:CK73>0))","v":13617.223621925048},{"$f":"-SUMPRODUCT(CC73:CK73,--(CC73:CK73<0))","v":0},null,{"$f":"AS73*20000","v":20000},null,null,{"$f":"CM73+CO73","v":20000},{"$f":"IF(NetOrGross=\"Net\",(1-AO73+AP73),1)","v":1},{"$f":"(SUMPRODUCT(CC73:CJ73,--(CC73:CJ73>0))+CN73)*CS73/((-SUMPRODUCT(CC73:CJ73,--(CC73:CJ73<0))+MAX(CO73,CV73)+CP73+CQ73)*CS73+IF(FRIncentives=\"Yes\",CV73*(1-CS73),0))","v":0.68086118109625238},1,{"$f":"AS73*AU73*0.75","v":1650},null,"NG","y",null,{"$f":"IF(F73=\"Manual Entry\",\"Manual\",IF(G73=\"\",0,\"X=\"&SUBSTITUTE(SUBSTITUTE(SUBSTITUTE(SUBSTITUTE(SUBSTITUTE(SUBSTITUTE(SUBSTITUTE(SUBSTITUTE(SUBSTITUTE(SUBSTITUTE(SUBSTITUTE(SUBSTITUTE(G73,$ED73,$ED$2&ROW($ED73)),$EC73,$EC$2&ROW($EC73)),$EB73,$EB$2&ROW($EB73)),$EA73,$EA$2&ROW($EA73)),$DZ73,$DZ$2&ROW($DZ73)),$DY73,$DY$2&ROW($DY73)),$DX73,$DX$2&ROW($DX73)),$DW73,$DW$2&ROW($DW73)),$DV73,$DV$2&ROW($DV73)),$DU73,$DU$2&ROW($DU73)),$DT73,$DT$2&ROW($DT73)),$DS73,$DS$2&ROW($DS73))))","v":"X=AS73*20000.00"},{"$f":"IF(I73=\"Manual Entry\",\"Manual\",IF(J73=\"\",0,\"X=\"&SUBSTITUTE(SUBSTITUTE(SUBSTITUTE(SUBSTITUTE(SUBSTITUTE(SUBSTITUTE(SUBSTITUTE(SUBSTITUTE(SUBSTITUTE(SUBSTITUTE(SUBSTITUTE(SUBSTITUTE(J73,$ED73,$ED$2&ROW($ED73)),$EC73,$EC$2&ROW($EC73)),$EB73,$EB$2&ROW($EB73)),$EA73,$EA$2&ROW($EA73)),$DZ73,$DZ$2&ROW($DZ73)),$DY73,$DY$2&ROW($DY73)),$DX73,$DX$2&ROW($DX73)),$DW73,$DW$2&ROW($DW73)),$DV73,$DV$2&ROW($DV73)),$DU73,$DU$2&ROW($DU73)),$DT73,$DT$2&ROW($DT73)),$DS73,$DS$2&ROW($DS73))))","v":"X=AS73*AU73*0.75"},{"$f":"IF(O73=\"\",0,\"X=\"&SUBSTITUTE(SUBSTITUTE(SUBSTITUTE(SUBSTITUTE(SUBSTITUTE(SUBSTITUTE(SUBSTITUTE(SUBSTITUTE(SUBSTITUTE(SUBSTITUTE(SUBSTITUTE(SUBSTITUTE(O73,$ED73,$ED$2&ROW($ED73)),$EC73,$EC$2&ROW($EC73)),$EB73,$EB$2&ROW($EB73)),$EA73,$EA$2&ROW($EA73)),$DZ73,$DZ$2&ROW($DZ73)),$DY73,$DY$2&ROW($DY73)),$DX73,$DX$2&ROW($DX73)),$DW73,$DW$2&ROW($DW73)),$DV73,$DV$2&ROW($DV73)),$DU73,$DU$2&ROW($DU73)),$DT73,$DT$2&ROW($DT73)),$DS73,$DS$2&ROW($DS73)))","v":0},{"$f":"IF(P73=\"\",0,\"X=\"&SUBSTITUTE(SUBSTITUTE(SUBSTITUTE(SUBSTITUTE(SUBSTITUTE(SUBSTITUTE(SUBSTITUTE(SUBSTITUTE(SUBSTITUTE(SUBSTITUTE(SUBSTITUTE(SUBSTITUTE(P73,$ED73,$ED$2&ROW($ED73)),$EC73,$EC$2&ROW($EC73)),$EB73,$EB$2&ROW($EB73)),$EA73,$EA$2&ROW($EA73)),$DZ73,$DZ$2&ROW($DZ73)),$DY73,$DY$2&ROW($DY73)),$DX73,$DX$2&ROW($DX73)),$DW73,$DW$2&ROW($DW73)),$DV73,$DV$2&ROW($DV73)),$DU73,$DU$2&ROW($DU73)),$DT73,$DT$2&ROW($DT73)),$DS73,$DS$2&ROW($DS73)))","v":0},{"$f":"IF(Q73=\"\",0,\"X=\"&SUBSTITUTE(SUBSTITUTE(SUBSTITUTE(SUBSTITUTE(SUBSTITUTE(SUBSTITUTE(SUBSTITUTE(SUBSTITUTE(SUBSTITUTE(SUBSTITUTE(SUBSTITUTE(SUBSTITUTE(Q73,$ED73,$ED$2&ROW($ED73)),$EC73,$EC$2&ROW($EC73)),$EB73,$EB$2&ROW($EB73)),$EA73,$EA$2&ROW($EA73)),$DZ73,$DZ$2&ROW($DZ73)),$DY73,$DY$2&ROW($DY73)),$DX73,$DX$2&ROW($DX73)),$DW73,$DW$2&ROW($DW73)),$DV73,$DV$2&ROW($DV73)),$DU73,$DU$2&ROW($DU73)),$DT73,$DT$2&ROW($DT73)),$DS73,$DS$2&ROW($DS73)))","v":0},{"$f":"IF(R73=\"\",0,\"X=\"&SUBSTITUTE(SUBSTITUTE(SUBSTITUTE(SUBSTITUTE(SUBSTITUTE(SUBSTITUTE(SUBSTITUTE(SUBSTITUTE(SUBSTITUTE(SUBSTITUTE(SUBSTITUTE(SUBSTITUTE(R73,$ED73,$ED$2&ROW($ED73)),$EC73,$EC$2&ROW($EC73)),$EB73,$EB$2&ROW($EB73)),$EA73,$EA$2&ROW($EA73)),$DZ73,$DZ$2&ROW($DZ73)),$DY73,$DY$2&ROW($DY73)),$DX73,$DX$2&ROW($DX73)),$DW73,$DW$2&ROW($DW73)),$DV73,$DV$2&ROW($DV73)),$DU73,$DU$2&ROW($DU73)),$DT73,$DT$2&ROW($DT73)),$DS73,$DS$2&ROW($DS73)))","v":0},{"$f":"IF(S73=\"\",0,\"X=\"&SUBSTITUTE(SUBSTITUTE(SUBSTITUTE(SUBSTITUTE(SUBSTITUTE(SUBSTITUTE(SUBSTITUTE(SUBSTITUTE(SUBSTITUTE(SUBSTITUTE(SUBSTITUTE(SUBSTITUTE(S73,$ED73,$ED$2&ROW($ED73)),$EC73,$EC$2&ROW($EC73)),$EB73,$EB$2&ROW($EB73)),$EA73,$EA$2&ROW($EA73)),$DZ73,$DZ$2&ROW($DZ73)),$DY73,$DY$2&ROW($DY73)),$DX73,$DX$2&ROW($DX73)),$DW73,$DW$2&ROW($DW73)),$DV73,$DV$2&ROW($DV73)),$DU73,$DU$2&ROW($DU73)),$DT73,$DT$2&ROW($DT73)),$DS73,$DS$2&ROW($DS73)))","v":0},{"$f":"IF(T73=\"\",0,\"X=\"&SUBSTITUTE(SUBSTITUTE(SUBSTITUTE(SUBSTITUTE(SUBSTITUTE(SUBSTITUTE(SUBSTITUTE(SUBSTITUTE(SUBSTITUTE(SUBSTITUTE(SUBSTITUTE(SUBSTITUTE(T73,$ED73,$ED$2&ROW($ED73)),$EC73,$EC$2&ROW($EC73)),$EB73,$EB$2&ROW($EB73)),$EA73,$EA$2&ROW($EA73)),$DZ73,$DZ$2&ROW($DZ73)),$DY73,$DY$2&ROW($DY73)),$DX73,$DX$2&ROW($DX73)),$DW73,$DW$2&ROW($DW73)),$DV73,$DV$2&ROW($DV73)),$DU73,$DU$2&ROW($DU73)),$DT73,$DT$2&ROW($DT73)),$DS73,$DS$2&ROW($DS73)))","v":0},{"$f":"IF(U73=\"\",0,\"X=\"&SUBSTITUTE(SUBSTITUTE(SUBSTITUTE(SUBSTITUTE(SUBSTITUTE(SUBSTITUTE(SUBSTITUTE(SUBSTITUTE(SUBSTITUTE(SUBSTITUTE(SUBSTITUTE(SUBSTITUTE(U73,$ED73,$ED$2&ROW($ED73)),$EC73,$EC$2&ROW($EC73)),$EB73,$EB$2&ROW($EB73)),$EA73,$EA$2&ROW($EA73)),$DZ73,$DZ$2&ROW($DZ73)),$DY73,$DY$2&ROW($DY73)),$DX73,$DX$2&ROW($DX73)),$DW73,$DW$2&ROW($DW73)),$DV73,$DV$2&ROW($DV73)),$DU73,$DU$2&ROW($DU73)),$DT73,$DT$2&ROW($DT73)),$DS73,$DS$2&ROW($DS73)))","v":0},{"$f":"IF(V73=\"\",0,\"X=\"&SUBSTITUTE(SUBSTITUTE(SUBSTITUTE(SUBSTITUTE(SUBSTITUTE(SUBSTITUTE(SUBSTITUTE(SUBSTITUTE(SUBSTITUTE(SUBSTITUTE(SUBSTITUTE(SUBSTITUTE(V73,$ED73,$ED$2&ROW($ED73)),$EC73,$EC$2&ROW($EC73)),$EB73,$EB$2&ROW($EB73)),$EA73,$EA$2&ROW($EA73)),$DZ73,$DZ$2&ROW($DZ73)),$DY73,$DY$2&ROW($DY73)),$DX73,$DX$2&ROW($DX73)),$DW73,$DW$2&ROW($DW73)),$DV73,$DV$2&ROW($DV73)),$DU73,$DU$2&ROW($DU73)),$DT73,$DT$2&ROW($DT73)),$DS73,$DS$2&ROW($DS73)))","v":0},{"$f":"IF(W73=\"\",0,\"X=\"&SUBSTITUTE(SUBSTITUTE(SUBSTITUTE(SUBSTITUTE(SUBSTITUTE(SUBSTITUTE(SUBSTITUTE(SUBSTITUTE(SUBSTITUTE(SUBSTITUTE(SUBSTITUTE(SUBSTITUTE(W73,$ED73,$ED$2&ROW($ED73)),$EC73,$EC$2&ROW($EC73)),$EB73,$EB$2&ROW($EB73)),$EA73,$EA$2&ROW($EA73)),$DZ73,$DZ$2&ROW($DZ73)),$DY73,$DY$2&ROW($DY73)),$DX73,$DX$2&ROW($DX73)),$DW73,$DW$2&ROW($DW73)),$DV73,$DV$2&ROW($DV73)),$DU73,$DU$2&ROW($DU73)),$DT73,$DT$2&ROW($DT73)),$DS73,$DS$2&ROW($DS73)))","v":"X=if(BA73<>1,0,AS73 * (AU73 * 0.02 * if(AW73=1,1565,AY73)) / 1000 * 10)"},{"$f":"IF(X73=\"\",0,\"X=\"&SUBSTITUTE(SUBSTITUTE(SUBSTITUTE(SUBSTITUTE(SUBSTITUTE(SUBSTITUTE(SUBSTITUTE(SUBSTITUTE(SUBSTITUTE(SUBSTITUTE(SUBSTITUTE(SUBSTITUTE(X73,$ED73,$ED$2&ROW($ED73)),$EC73,$EC$2&ROW($EC73)),$EB73,$EB$2&ROW($EB73)),$EA73,$EA$2&ROW($EA73)),$DZ73,$DZ$2&ROW($DZ73)),$DY73,$DY$2&ROW($DY73)),$DX73,$DX$2&ROW($DX73)),$DW73,$DW$2&ROW($DW73)),$DV73,$DV$2&ROW($DV73)),$DU73,$DU$2&ROW($DU73)),$DT73,$DT$2&ROW($DT73)),$DS73,$DS$2&ROW($DS73)))","v":0},{"$f":"IF(Y73=\"\",0,\"X=\"&SUBSTITUTE(SUBSTITUTE(SUBSTITUTE(SUBSTITUTE(SUBSTITUTE(SUBSTITUTE(SUBSTITUTE(SUBSTITUTE(SUBSTITUTE(SUBSTITUTE(SUBSTITUTE(SUBSTITUTE(Y73,$ED73,$ED$2&ROW($ED73)),$EC73,$EC$2&ROW($EC73)),$EB73,$EB$2&ROW($EB73)),$EA73,$EA$2&ROW($EA73)),$DZ73,$DZ$2&ROW($DZ73)),$DY73,$DY$2&ROW($DY73)),$DX73,$DX$2&ROW($DX73)),$DW73,$DW$2&ROW($DW73)),$DV73,$DV$2&ROW($DV73)),$DU73,$DU$2&ROW($DU73)),$DT73,$DT$2&ROW($DT73)),$DS73,$DS$2&ROW($DS73)))","v":0},{"$f":"IF(Z73=\"\",0,\"X=\"&SUBSTITUTE(SUBSTITUTE(SUBSTITUTE(SUBSTITUTE(SUBSTITUTE(SUBSTITUTE(SUBSTITUTE(SUBSTITUTE(SUBSTITUTE(SUBSTITUTE(SUBSTITUTE(SUBSTITUTE(Z73,$ED73,$ED$2&ROW($ED73)),$EC73,$EC$2&ROW($EC73)),$EB73,$EB$2&ROW($EB73)),$EA73,$EA$2&ROW($EA73)),$DZ73,$DZ$2&ROW($DZ73)),$DY73,$DY$2&ROW($DY73)),$DX73,$DX$2&ROW($DX73)),$DW73,$DW$2&ROW($DW73)),$DV73,$DV$2&ROW($DV73)),$DU73,$DU$2&ROW($DU73)),$DT73,$DT$2&ROW($DT73)),$DS73,$DS$2&ROW($DS73)))","v":0},{"$f":"IF(AA73=\"\",0,\"X=\"&SUBSTITUTE(SUBSTITUTE(SUBSTITUTE(SUBSTITUTE(SUBSTITUTE(SUBSTITUTE(SUBSTITUTE(SUBSTITUTE(SUBSTITUTE(SUBSTITUTE(SUBSTITUTE(SUBSTITUTE(AA73,$ED73,$ED$2&ROW($ED73)),$EC73,$EC$2&ROW($EC73)),$EB73,$EB$2&ROW($EB73)),$EA73,$EA$2&ROW($EA73)),$DZ73,$DZ$2&ROW($DZ73)),$DY73,$DY$2&ROW($DY73)),$DX73,$DX$2&ROW($DX73)),$DW73,$DW$2&ROW($DW73)),$DV73,$DV$2&ROW($DV73)),$DU73,$DU$2&ROW($DU73)),$DT73,$DT$2&ROW($DT73)),$DS73,$DS$2&ROW($DS73)))","v":0},{"$f":"IF(AB73=\"\",0,\"X=\"&SUBSTITUTE(SUBSTITUTE(SUBSTITUTE(SUBSTITUTE(SUBSTITUTE(SUBSTITUTE(SUBSTITUTE(SUBSTITUTE(SUBSTITUTE(SUBSTITUTE(SUBSTITUTE(SUBSTITUTE(AB73,$ED73,$ED$2&ROW($ED73)),$EC73,$EC$2&ROW($EC73)),$EB73,$EB$2&ROW($EB73)),$EA73,$EA$2&ROW($EA73)),$DZ73,$DZ$2&ROW($DZ73)),$DY73,$DY$2&ROW($DY73)),$DX73,$DX$2&ROW($DX73)),$DW73,$DW$2&ROW($DW73)),$DV73,$DV$2&ROW($DV73)),$DU73,$DU$2&ROW($DU73)),$DT73,$DT$2&ROW($DT73)),$DS73,$DS$2&ROW($DS73)))","v":0},null,null,"{Factor:WinterCF}","{Factor:SummerCF}",{"$f":"IFERROR(INDEX($EG73:$IV73,MATCH(0,COUNTIF($DR73:DT73,$EG73:$IV73),0)),\"\")","v":"{Measure:Quantity}"},{"$f":"IFERROR(INDEX($EG73:$IV73,MATCH(0,COUNTIF($DR73:DU73,$EG73:$IV73),0)),\"\")","v":"{Capacity (MBTUH)}"},{"$f":"IFERROR(INDEX($EG73:$IV73,MATCH(0,COUNTIF($DR73:DV73,$EG73:$IV73),0)),\"\")","v":"{End-Use}"},{"$f":"IFERROR(INDEX($EG73:$IV73,MATCH(0,COUNTIF($DR73:DW73,$EG73:$IV73),0)),\"\")","v":"{Annual Hours of Operation}"},{"$f":"IFERROR(INDEX($EG73:$IV73,MATCH(0,COUNTIF($DR73:DX73,$EG73:$IV73),0)),\"\")","v":"{Existing Fuel}"},{"$f":"IFERROR(INDEX($EG73:$IV73,MATCH(0,COUNTIF($DR73:DY73,$EG73:$IV73),0)),\"\")","v":""},{"$f":"IFERROR(INDEX($EG73:$IV73,MATCH(0,COUNTIF($DR73:DZ73,$EG73:$IV73),0)),\"\")","v":""},{"$f":"IFERROR(INDEX($EG73:$IV73,MATCH(0,COUNTIF($DR73:EA73,$EG73:$IV73),0)),\"\")","v":""},{"$f":"IFERROR(INDEX($EG73:$IV73,MATCH(0,COUNTIF($DR73:EB73,$EG73:$IV73),0)),\"\")","v":""},{"$f":"IFERROR(INDEX($EG73:$IV73,MATCH(0,COUNTIF($DR73:EC73,$EG73:$IV73),0)),\"\")","v":""},null,null,{"$f":"IFERROR(MID($G73,FIND(CHAR(160),SUBSTITUTE($G73,\"{\",CHAR(160),EG$1)),FIND(CHAR(160),SUBSTITUTE($G73,\"}\",CHAR(160),EG$1))-FIND(CHAR(160),SUBSTITUTE($G73,\"{\",CHAR(160),EG$1))+1),\"\")","v":"{Measure:Quantity}"},{"$f":"IFERROR(MID($G73,FIND(CHAR(160),SUBSTITUTE($G73,\"{\",CHAR(160),EH$1)),FIND(CHAR(160),SUBSTITUTE($G73,\"}\",CHAR(160),EH$1))-FIND(CHAR(160),SUBSTITUTE($G73,\"{\",CHAR(160),EH$1))+1),\"\")","v":""},{"$f":"IFERROR(MID($G73,FIND(CHAR(160),SUBSTITUTE($G73,\"{\",CHAR(160),EI$1)),FIND(CHAR(160),SUBSTITUTE($G73,\"}\",CHAR(160),EI$1))-FIND(CHAR(160),SUBSTITUTE($G73,\"{\",CHAR(160),EI$1))+1),\"\")","v":""},{"$f":"IFERROR(MID($G73,FIND(CHAR(160),SUBSTITUTE($G73,\"{\",CHAR(160),EJ$1)),FIND(CHAR(160),SUBSTITUTE($G73,\"}\",CHAR(160),EJ$1))-FIND(CHAR(160),SUBSTITUTE($G73,\"{\",CHAR(160),EJ$1))+1),\"\")","v":""},{"$f":"IFERROR(MID($G73,FIND(CHAR(160),SUBSTITUTE($G73,\"{\",CHAR(160),EK$1)),FIND(CHAR(160),SUBSTITUTE($G73,\"}\",CHAR(160),EK$1))-FIND(CHAR(160),SUBSTITUTE($G73,\"{\",CHAR(160),EK$1))+1),\"\")","v":""},{"$f":"IFERROR(MID($G73,FIND(CHAR(160),SUBSTITUTE($G73,\"{\",CHAR(160),EL$1)),FIND(CHAR(160),SUBSTITUTE($G73,\"}\",CHAR(160),EL$1))-FIND(CHAR(160),SUBSTITUTE($G73,\"{\",CHAR(160),EL$1))+1),\"\")","v":""},{"$f":"IFERROR(MID($G73,FIND(CHAR(160),SUBSTITUTE($G73,\"{\",CHAR(160),EM$1)),FIND(CHAR(160),SUBSTITUTE($G73,\"}\",CHAR(160),EM$1))-FIND(CHAR(160),SUBSTITUTE($G73,\"{\",CHAR(160),EM$1))+1),\"\")","v":""},{"$f":"IFERROR(MID($G73,FIND(CHAR(160),SUBSTITUTE($G73,\"{\",CHAR(160),EN$1)),FIND(CHAR(160),SUBSTITUTE($G73,\"}\",CHAR(160),EN$1))-FIND(CHAR(160),SUBSTITUTE($G73,\"{\",CHAR(160),EN$1))+1),\"\")","v":""},{"$f":"IFERROR(MID($G73,FIND(CHAR(160),SUBSTITUTE($G73,\"{\",CHAR(160),EO$1)),FIND(CHAR(160),SUBSTITUTE($G73,\"}\",CHAR(160),EO$1))-FIND(CHAR(160),SUBSTITUTE($G73,\"{\",CHAR(160),EO$1))+1),\"\")","v":""},{"$f":"IFERROR(MID($G73,FIND(CHAR(160),SUBSTITUTE($G73,\"{\",CHAR(160),EP$1)),FIND(CHAR(160),SUBSTITUTE($G73,\"}\",CHAR(160),EP$1))-FIND(CHAR(160),SUBSTITUTE($G73,\"{\",CHAR(160),EP$1))+1),\"\")","v":""},{"$f":"IFERROR(MID($J73,FIND(CHAR(160),SUBSTITUTE($J73,\"{\",CHAR(160),EQ$1)),FIND(CHAR(160),SUBSTITUTE($J73,\"}\",CHAR(160),EQ$1))-FIND(CHAR(160),SUBSTITUTE($J73,\"{\",CHAR(160),EQ$1))+1),\"\")","v":"{Measure:Quantity}"},{"$f":"IFERROR(MID($J73,FIND(CHAR(160),SUBSTITUTE($J73,\"{\",CHAR(160),ER$1)),FIND(CHAR(160),SUBSTITUTE($J73,\"}\",CHAR(160),ER$1))-FIND(CHAR(160),SUBSTITUTE($J73,\"{\",CHAR(160),ER$1))+1),\"\")","v":"{Capacity (MBTUH)}"},{"$f":"IFERROR(MID($J73,FIND(CHAR(160),SUBSTITUTE($J73,\"{\",CHAR(160),ES$1)),FIND(CHAR(160),SUBSTITUTE($J73,\"}\",CHAR(160),ES$1))-FIND(CHAR(160),SUBSTITUTE($J73,\"{\",CHAR(160),ES$1))+1),\"\")","v":""},{"$f":"IFERROR(MID($J73,FIND(CHAR(160),SUBSTITUTE($J73,\"{\",CHAR(160),ET$1)),FIND(CHAR(160),SUBSTITUTE($J73,\"}\",CHAR(160),ET$1))-FIND(CHAR(160),SUBSTITUTE($J73,\"{\",CHAR(160),ET$1))+1),\"\")","v":""},{"$f":"IFERROR(MID($J73,FIND(CHAR(160),SUBSTITUTE($J73,\"{\",CHAR(160),EU$1)),FIND(CHAR(160),SUBSTITUTE($J73,\"}\",CHAR(160),EU$1))-FIND(CHAR(160),SUBSTITUTE($J73,\"{\",CHAR(160),EU$1))+1),\"\")","v":""},{"$f":"IFERROR(MID($J73,FIND(CHAR(160),SUBSTITUTE($J73,\"{\",CHAR(160),EV$1)),FIND(CHAR(160),SUBSTITUTE($J73,\"}\",CHAR(160),EV$1))-FIND(CHAR(160),SUBSTITUTE($J73,\"{\",CHAR(160),EV$1))+1),\"\")","v":""},{"$f":"IFERROR(MID($J73,FIND(CHAR(160),SUBSTITUTE($J73,\"{\",CHAR(160),EW$1)),FIND(CHAR(160),SUBSTITUTE($J73,\"}\",CHAR(160),EW$1))-FIND(CHAR(160),SUBSTITUTE($J73,\"{\",CHAR(160),EW$1))+1),\"\")","v":""},{"$f":"IFERROR(MID($J73,FIND(CHAR(160),SUBSTITUTE($J73,\"{\",CHAR(160),EX$1)),FIND(CHAR(160),SUBSTITUTE($J73,\"}\",CHAR(160),EX$1))-FIND(CHAR(160),SUBSTITUTE($J73,\"{\",CHAR(160),EX$1))+1),\"\")","v":""},{"$f":"IFERROR(MID($J73,FIND(CHAR(160),SUBSTITUTE($J73,\"{\",CHAR(160),EY$1)),FIND(CHAR(160),SUBSTITUTE($J73,\"}\",CHAR(160),EY$1))-FIND(CHAR(160),SUBSTITUTE($J73,\"{\",CHAR(160),EY$1))+1),\"\")","v":""},{"$f":"IFERROR(MID($J73,FIND(CHAR(160),SUBSTITUTE($J73,\"{\",CHAR(160),EZ$1)),FIND(CHAR(160),SUBSTITUTE($J73,\"}\",CHAR(160),EZ$1))-FIND(CHAR(160),SUBSTITUTE($J73,\"{\",CHAR(160),EZ$1))+1),\"\")","v":""},{"$f":"IFERROR(MID($J73,FIND(CHAR(160),SUBSTITUTE($J73,\"{\",CHAR(160),FA$1)),FIND(CHAR(160),SUBSTITUTE($J73,\"}\",CHAR(160),FA$1))-FIND(CHAR(160),SUBSTITUTE($J73,\"{\",CHAR(160),FA$1))+1),\"\")","v":"{Measure:Quantity}"},{"$f":"IFERROR(MID($J73,FIND(CHAR(160),SUBSTITUTE($J73,\"{\",CHAR(160),FB$1)),FIND(CHAR(160),SUBSTITUTE($J73,\"}\",CHAR(160),FB$1))-FIND(CHAR(160),SUBSTITUTE($J73,\"{\",CHAR(160),FB$1))+1),\"\")","v":"{Capacity (MBTUH)}"},{"$f":"IFERROR(MID($O73,FIND(CHAR(160),SUBSTITUTE($O73,\"{\",CHAR(160),FC$1)),FIND(CHAR(160),SUBSTITUTE($O73,\"}\",CHAR(160),FC$1))-FIND(CHAR(160),SUBSTITUTE($O73,\"{\",CHAR(160),FC$1))+1),\"\")","v":""},{"$f":"IFERROR(MID($O73,FIND(CHAR(160),SUBSTITUTE($O73,\"{\",CHAR(160),FD$1)),FIND(CHAR(160),SUBSTITUTE($O73,\"}\",CHAR(160),FD$1))-FIND(CHAR(160),SUBSTITUTE($O73,\"{\",CHAR(160),FD$1))+1),\"\")","v":""},{"$f":"IFERROR(MID($O73,FIND(CHAR(160),SUBSTITUTE($O73,\"{\",CHAR(160),FE$1)),FIND(CHAR(160),SUBSTITUTE($O73,\"}\",CHAR(160),FE$1))-FIND(CHAR(160),SUBSTITUTE($O73,\"{\",CHAR(160),FE$1))+1),\"\")","v":""},{"$f":"IFERROR(MID($O73,FIND(CHAR(160),SUBSTITUTE($O73,\"{\",CHAR(160),FF$1)),FIND(CHAR(160),SUBSTITUTE($O73,\"}\",CHAR(160),FF$1))-FIND(CHAR(160),SUBSTITUTE($O73,\"{\",CHAR(160),FF$1))+1),\"\")","v":""},{"$f":"IFERROR(MID($O73,FIND(CHAR(160),SUBSTITUTE($O73,\"{\",CHAR(160),FG$1)),FIND(CHAR(160),SUBSTITUTE($O73,\"}\",CHAR(160),FG$1))-FIND(CHAR(160),SUBSTITUTE($O73,\"{\",CHAR(160),FG$1))+1),\"\")","v":""},{"$f":"IFERROR(MID($O73,FIND(CHAR(160),SUBSTITUTE($O73,\"{\",CHAR(160),FH$1)),FIND(CHAR(160),SUBSTITUTE($O73,\"}\",CHAR(160),FH$1))-FIND(CHAR(160),SUBSTITUTE($O73,\"{\",CHAR(160),FH$1))+1),\"\")","v":""},{"$f":"IFERROR(MID($O73,FIND(CHAR(160),SUBSTITUTE($O73,\"{\",CHAR(160),FI$1)),FIND(CHAR(160),SUBSTITUTE($O73,\"}\",CHAR(160),FI$1))-FIND(CHAR(160),SUBSTITUTE($O73,\"{\",CHAR(160),FI$1))+1),\"\")","v":""},{"$f":"IFERROR(MID($O73,FIND(CHAR(160),SUBSTITUTE($O73,\"{\",CHAR(160),FJ$1)),FIND(CHAR(160),SUBSTITUTE($O73,\"}\",CHAR(160),FJ$1))-FIND(CHAR(160),SUBSTITUTE($O73,\"{\",CHAR(160),FJ$1))+1),\"\")","v":""},{"$f":"IFERROR(MID($O73,FIND(CHAR(160),SUBSTITUTE($O73,\"{\",CHAR(160),FK$1)),FIND(CHAR(160),SUBSTITUTE($O73,\"}\",CHAR(160),FK$1))-FIND(CHAR(160),SUBSTITUTE($O73,\"{\",CHAR(160),FK$1))+1),\"\")","v":""},{"$f":"IFERROR(MID($O73,FIND(CHAR(160),SUBSTITUTE($O73,\"{\",CHAR(160),FL$1)),FIND(CHAR(160),SUBSTITUTE($O73,\"}\",CHAR(160),FL$1))-FIND(CHAR(160),SUBSTITUTE($O73,\"{\",CHAR(160),FL$1))+1),\"\")","v":""},{"$f":"IFERROR(MID($R73,FIND(CHAR(160),SUBSTITUTE($R73,\"{\",CHAR(160),FM$1)),FIND(CHAR(160),SUBSTITUTE($R73,\"}\",CHAR(160),FM$1))-FIND(CHAR(160),SUBSTITUTE($R73,\"{\",CHAR(160),FM$1))+1),\"\")","v":""},{"$f":"IFERROR(MID($R73,FIND(CHAR(160),SUBSTITUTE($R73,\"{\",CHAR(160),FN$1)),FIND(CHAR(160),SUBSTITUTE($R73,\"}\",CHAR(160),FN$1))-FIND(CHAR(160),SUBSTITUTE($R73,\"{\",CHAR(160),FN$1))+1),\"\")","v":""},{"$f":"IFERROR(MID($R73,FIND(CHAR(160),SUBSTITUTE($R73,\"{\",CHAR(160),FO$1)),FIND(CHAR(160),SUBSTITUTE($R73,\"}\",CHAR(160),FO$1))-FIND(CHAR(160),SUBSTITUTE($R73,\"{\",CHAR(160),FO$1))+1),\"\")","v":""},{"$f":"IFERROR(MID($R73,FIND(CHAR(160),SUBSTITUTE($R73,\"{\",CHAR(160),FP$1)),FIND(CHAR(160),SUBSTITUTE($R73,\"}\",CHAR(160),FP$1))-FIND(CHAR(160),SUBSTITUTE($R73,\"{\",CHAR(160),FP$1))+1),\"\")","v":""},{"$f":"IFERROR(MID($R73,FIND(CHAR(160),SUBSTITUTE($R73,\"{\",CHAR(160),FQ$1)),FIND(CHAR(160),SUBSTITUTE($R73,\"}\",CHAR(160),FQ$1))-FIND(CHAR(160),SUBSTITUTE($R73,\"{\",CHAR(160),FQ$1))+1),\"\")","v":""},{"$f":"IFERROR(MID($R73,FIND(CHAR(160),SUBSTITUTE($R73,\"{\",CHAR(160),FR$1)),FIND(CHAR(160),SUBSTITUTE($R73,\"}\",CHAR(160),FR$1))-FIND(CHAR(160),SUBSTITUTE($R73,\"{\",CHAR(160),FR$1))+1),\"\")","v":""},{"$f":"IFERROR(MID($R73,FIND(CHAR(160),SUBSTITUTE($R73,\"{\",CHAR(160),FS$1)),FIND(CHAR(160),SUBSTITUTE($R73,\"}\",CHAR(160),FS$1))-FIND(CHAR(160),SUBSTITUTE($R73,\"{\",CHAR(160),FS$1))+1),\"\")","v":""},{"$f":"IFERROR(MID($R73,FIND(CHAR(160),SUBSTITUTE($R73,\"{\",CHAR(160),FT$1)),FIND(CHAR(160),SUBSTITUTE($R73,\"}\",CHAR(160),FT$1))-FIND(CHAR(160),SUBSTITUTE($R73,\"{\",CHAR(160),FT$1))+1),\"\")","v":""},{"$f":"IFERROR(MID($R73,FIND(CHAR(160),SUBSTITUTE($R73,\"{\",CHAR(160),FU$1)),FIND(CHAR(160),SUBSTITUTE($R73,\"}\",CHAR(160),FU$1))-FIND(CHAR(160),SUBSTITUTE($R73,\"{\",CHAR(160),FU$1))+1),\"\")","v":""},{"$f":"IFERROR(MID($R73,FIND(CHAR(160),SUBSTITUTE($R73,\"{\",CHAR(160),FV$1)),FIND(CHAR(160),SUBSTITUTE($R73,\"}\",CHAR(160),FV$1))-FIND(CHAR(160),SUBSTITUTE($R73,\"{\",CHAR(160),FV$1))+1),\"\")","v":""},{"$f":"IFERROR(MID($U73,FIND(CHAR(160),SUBSTITUTE($U73,\"{\",CHAR(160),FW$1)),FIND(CHAR(160),SUBSTITUTE($U73,\"}\",CHAR(160),FW$1))-FIND(CHAR(160),SUBSTITUTE($U73,\"{\",CHAR(160),FW$1))+1),\"\")","v":""},{"$f":"IFERROR(MID($U73,FIND(CHAR(160),SUBSTITUTE($U73,\"{\",CHAR(160),FX$1)),FIND(CHAR(160),SUBSTITUTE($U73,\"}\",CHAR(160),FX$1))-FIND(CHAR(160),SUBSTITUTE($U73,\"{\",CHAR(160),FX$1))+1),\"\")","v":""},{"$f":"IFERROR(MID($U73,FIND(CHAR(160),SUBSTITUTE($U73,\"{\",CHAR(160),FY$1)),FIND(CHAR(160),SUBSTITUTE($U73,\"}\",CHAR(160),FY$1))-FIND(CHAR(160),SUBSTITUTE($U73,\"{\",CHAR(160),FY$1))+1),\"\")","v":""},{"$f":"IFERROR(MID($U73,FIND(CHAR(160),SUBSTITUTE($U73,\"{\",CHAR(160),FZ$1)),FIND(CHAR(160),SUBSTITUTE($U73,\"}\",CHAR(160),FZ$1))-FIND(CHAR(160),SUBSTITUTE($U73,\"{\",CHAR(160),FZ$1))+1),\"\")","v":""},{"$f":"IFERROR(MID($U73,FIND(CHAR(160),SUBSTITUTE($U73,\"{\",CHAR(160),GA$1)),FIND(CHAR(160),SUBSTITUTE($U73,\"}\",CHAR(160),GA$1))-FIND(CHAR(160),SUBSTITUTE($U73,\"{\",CHAR(160),GA$1))+1),\"\")","v":""},{"$f":"IFERROR(MID($U73,FIND(CHAR(160),SUBSTITUTE($U73,\"{\",CHAR(160),GB$1)),FIND(CHAR(160),SUBSTITUTE($U73,\"}\",CHAR(160),GB$1))-FIND(CHAR(160),SUBSTITUTE($U73,\"{\",CHAR(160),GB$1))+1),\"\")","v":""},{"$f":"IFERROR(MID($U73,FIND(CHAR(160),SUBSTITUTE($U73,\"{\",CHAR(160),GC$1)),FIND(CHAR(160),SUBSTITUTE($U73,\"}\",CHAR(160),GC$1))-FIND(CHAR(160),SUBSTITUTE($U73,\"{\",CHAR(160),GC$1))+1),\"\")","v":""},{"$f":"IFERROR(MID($U73,FIND(CHAR(160),SUBSTITUTE($U73,\"{\",CHAR(160),GD$1)),FIND(CHAR(160),SUBSTITUTE($U73,\"}\",CHAR(160),GD$1))-FIND(CHAR(160),SUBSTITUTE($U73,\"{\",CHAR(160),GD$1))+1),\"\")","v":""},{"$f":"IFERROR(MID($U73,FIND(CHAR(160),SUBSTITUTE($U73,\"{\",CHAR(160),GE$1)),FIND(CHAR(160),SUBSTITUTE($U73,\"}\",CHAR(160),GE$1))-FIND(CHAR(160),SUBSTITUTE($U73,\"{\",CHAR(160),GE$1))+1),\"\")","v":""},{"$f":"IFERROR(MID($U73,FIND(CHAR(160),SUBSTITUTE($U73,\"{\",CHAR(160),GF$1)),FIND(CHAR(160),SUBSTITUTE($U73,\"}\",CHAR(160),GF$1))-FIND(CHAR(160),SUBSTITUTE($U73,\"{\",CHAR(160),GF$1))+1),\"\")","v":""},{"$f":"IFERROR(MID($V73,FIND(CHAR(160),SUBSTITUTE($V73,\"{\",CHAR(160),GG$1)),FIND(CHAR(160),SUBSTITUTE($V73,\"}\",CHAR(160),GG$1))-FIND(CHAR(160),SUBSTITUTE($V73,\"{\",CHAR(160),GG$1))+1),\"\")","v":""},{"$f":"IFERROR(MID($V73,FIND(CHAR(160),SUBSTITUTE($V73,\"{\",CHAR(160),GH$1)),FIND(CHAR(160),SUBSTITUTE($V73,\"}\",CHAR(160),GH$1))-FIND(CHAR(160),SUBSTITUTE($V73,\"{\",CHAR(160),GH$1))+1),\"\")","v":""},{"$f":"IFERROR(MID($V73,FIND(CHAR(160),SUBSTITUTE($V73,\"{\",CHAR(160),GI$1)),FIND(CHAR(160),SUBSTITUTE($V73,\"}\",CHAR(160),GI$1))-FIND(CHAR(160),SUBSTITUTE($V73,\"{\",CHAR(160),GI$1))+1),\"\")","v":""},{"$f":"IFERROR(MID($V73,FIND(CHAR(160),SUBSTITUTE($V73,\"{\",CHAR(160),GJ$1)),FIND(CHAR(160),SUBSTITUTE($V73,\"}\",CHAR(160),GJ$1))-FIND(CHAR(160),SUBSTITUTE($V73,\"{\",CHAR(160),GJ$1))+1),\"\")","v":""},{"$f":"IFERROR(MID($V73,FIND(CHAR(160),SUBSTITUTE($V73,\"{\",CHAR(160),GK$1)),FIND(CHAR(160),SUBSTITUTE($V73,\"}\",CHAR(160),GK$1))-FIND(CHAR(160),SUBSTITUTE($V73,\"{\",CHAR(160),GK$1))+1),\"\")","v":""},{"$f":"IFERROR(MID($V73,FIND(CHAR(160),SUBSTITUTE($V73,\"{\",CHAR(160),GL$1)),FIND(CHAR(160),SUBSTITUTE($V73,\"}\",CHAR(160),GL$1))-FIND(CHAR(160),SUBSTITUTE($V73,\"{\",CHAR(160),GL$1))+1),\"\")","v":""},{"$f":"IFERROR(MID($V73,FIND(CHAR(160),SUBSTITUTE($V73,\"{\",CHAR(160),GM$1)),FIND(CHAR(160),SUBSTITUTE($V73,\"}\",CHAR(160),GM$1))-FIND(CHAR(160),SUBSTITUTE($V73,\"{\",CHAR(160),GM$1))+1),\"\")","v":""},{"$f":"IFERROR(MID($V73,FIND(CHAR(160),SUBSTITUTE($V73,\"{\",CHAR(160),GN$1)),FIND(CHAR(160),SUBSTITUTE($V73,\"}\",CHAR(160),GN$1))-FIND(CHAR(160),SUBSTITUTE($V73,\"{\",CHAR(160),GN$1))+1),\"\")","v":""},{"$f":"IFERROR(MID($V73,FIND(CHAR(160),SUBSTITUTE($V73,\"{\",CHAR(160),GO$1)),FIND(CHAR(160),SUBSTITUTE($V73,\"}\",CHAR(160),GO$1))-FIND(CHAR(160),SUBSTITUTE($V73,\"{\",CHAR(160),GO$1))+1),\"\")","v":""},{"$f":"IFERROR(MID($V73,FIND(CHAR(160),SUBSTITUTE($V73,\"{\",CHAR(160),GP$1)),FIND(CHAR(160),SUBSTITUTE($V73,\"}\",CHAR(160),GP$1))-FIND(CHAR(160),SUBSTITUTE($V73,\"{\",CHAR(160),GP$1))+1),\"\")","v":""},{"$f":"IFERROR(MID($W73,FIND(CHAR(160),SUBSTITUTE($W73,\"{\",CHAR(160),GQ$1)),FIND(CHAR(160),SUBSTITUTE($W73,\"}\",CHAR(160),GQ$1))-FIND(CHAR(160),SUBSTITUTE($W73,\"{\",CHAR(160),GQ$1))+1),\"\")","v":"{Capacity (MBTUH)}"},{"$f":"IFERROR(MID($W73,FIND(CHAR(160),SUBSTITUTE($W73,\"{\",CHAR(160),GR$1)),FIND(CHAR(160),SUBSTITUTE($W73,\"}\",CHAR(160),GR$1))-FIND(CHAR(160),SUBSTITUTE($W73,\"{\",CHAR(160),GR$1))+1),\"\")","v":"{End-Use}"},{"$f":"IFERROR(MID($W73,FIND(CHAR(160),SUBSTITUTE($W73,\"{\",CHAR(160),GS$1)),FIND(CHAR(160),SUBSTITUTE($W73,\"}\",CHAR(160),GS$1))-FIND(CHAR(160),SUBSTITUTE($W73,\"{\",CHAR(160),GS$1))+1),\"\")","v":"{Annual Hours of Operation}"},{"$f":"IFERROR(MID($W73,FIND(CHAR(160),SUBSTITUTE($W73,\"{\",CHAR(160),GT$1)),FIND(CHAR(160),SUBSTITUTE($W73,\"}\",CHAR(160),GT$1))-FIND(CHAR(160),SUBSTITUTE($W73,\"{\",CHAR(160),GT$1))+1),\"\")","v":""},{"$f":"IFERROR(MID($W73,FIND(CHAR(160),SUBSTITUTE($W73,\"{\",CHAR(160),GU$1)),FIND(CHAR(160),SUBSTITUTE($W73,\"}\",CHAR(160),GU$1))-FIND(CHAR(160),SUBSTITUTE($W73,\"{\",CHAR(160),GU$1))+1),\"\")","v":""},{"$f":"IFERROR(MID($W73,FIND(CHAR(160),SUBSTITUTE($W73,\"{\",CHAR(160),GV$1)),FIND(CHAR(160),SUBSTITUTE($W73,\"}\",CHAR(160),GV$1))-FIND(CHAR(160),SUBSTITUTE($W73,\"{\",CHAR(160),GV$1))+1),\"\")","v":""},{"$f":"IFERROR(MID($W73,FIND(CHAR(160),SUBSTITUTE($W73,\"{\",CHAR(160),GW$1)),FIND(CHAR(160),SUBSTITUTE($W73,\"}\",CHAR(160),GW$1))-FIND(CHAR(160),SUBSTITUTE($W73,\"{\",CHAR(160),GW$1))+1),\"\")","v":""},{"$f":"IFERROR(MID($W73,FIND(CHAR(160),SUBSTITUTE($W73,\"{\",CHAR(160),GX$1)),FIND(CHAR(160),SUBSTITUTE($W73,\"}\",CHAR(160),GX$1))-FIND(CHAR(160),SUBSTITUTE($W73,\"{\",CHAR(160),GX$1))+1),\"\")","v":""},{"$f":"IFERROR(MID($W73,FIND(CHAR(160),SUBSTITUTE($W73,\"{\",CHAR(160),GY$1)),FIND(CHAR(160),SUBSTITUTE($W73,\"}\",CHAR(160),GY$1))-FIND(CHAR(160),SUBSTITUTE($W73,\"{\",CHAR(160),GY$1))+1),\"\")","v":"{Existing Fuel}"},{"$f":"IFERROR(MID($W73,FIND(CHAR(160),SUBSTITUTE($W73,\"{\",CHAR(160),GZ$1)),FIND(CHAR(160),SUBSTITUTE($W73,\"}\",CHAR(160),GZ$1))-FIND(CHAR(160),SUBSTITUTE($W73,\"{\",CHAR(160),GZ$1))+1),\"\")","v":"{Measure:Quantity}"},{"$f":"IFERROR(MID($X73,FIND(CHAR(160),SUBSTITUTE($X73,\"{\",CHAR(160),HA$1)),FIND(CHAR(160),SUBSTITUTE($X73,\"}\",CHAR(160),HA$1))-FIND(CHAR(160),SUBSTITUTE($X73,\"{\",CHAR(160),HA$1))+1),\"\")","v":""},{"$f":"IFERROR(MID($X73,FIND(CHAR(160),SUBSTITUTE($X73,\"{\",CHAR(160),HB$1)),FIND(CHAR(160),SUBSTITUTE($X73,\"}\",CHAR(160),HB$1))-FIND(CHAR(160),SUBSTITUTE($X73,\"{\",CHAR(160),HB$1))+1),\"\")","v":""},{"$f":"IFERROR(MID($X73,FIND(CHAR(160),SUBSTITUTE($X73,\"{\",CHAR(160),HC$1)),FIND(CHAR(160),SUBSTITUTE($X73,\"}\",CHAR(160),HC$1))-FIND(CHAR(160),SUBSTITUTE($X73,\"{\",CHAR(160),HC$1))+1),\"\")","v":""},{"$f":"IFERROR(MID($X73,FIND(CHAR(160),SUBSTITUTE($X73,\"{\",CHAR(160),HD$1)),FIND(CHAR(160),SUBSTITUTE($X73,\"}\",CHAR(160),HD$1))-FIND(CHAR(160),SUBSTITUTE($X73,\"{\",CHAR(160),HD$1))+1),\"\")","v":""},{"$f":"IFERROR(MID($X73,FIND(CHAR(160),SUBSTITUTE($X73,\"{\",CHAR(160),HE$1)),FIND(CHAR(160),SUBSTITUTE($X73,\"}\",CHAR(160),HE$1))-FIND(CHAR(160),SUBSTITUTE($X73,\"{\",CHAR(160),HE$1))+1),\"\")","v":""},{"$f":"IFERROR(MID($X73,FIND(CHAR(160),SUBSTITUTE($X73,\"{\",CHAR(160),HF$1)),FIND(CHAR(160),SUBSTITUTE($X73,\"}\",CHAR(160),HF$1))-FIND(CHAR(160),SUBSTITUTE($X73,\"{\",CHAR(160),HF$1))+1),\"\")","v":""},{"$f":"IFERROR(MID($X73,FIND(CHAR(160),SUBSTITUTE($X73,\"{\",CHAR(160),HG$1)),FIND(CHAR(160),SUBSTITUTE($X73,\"}\",CHAR(160),HG$1))-FIND(CHAR(160),SUBSTITUTE($X73,\"{\",CHAR(160),HG$1))+1),\"\")","v":""},{"$f":"IFERROR(MID($X73,FIND(CHAR(160),SUBSTITUTE($X73,\"{\",CHAR(160),HH$1)),FIND(CHAR(160),SUBSTITUTE($X73,\"}\",CHAR(160),HH$1))-FIND(CHAR(160),SUBSTITUTE($X73,\"{\",CHAR(160),HH$1))+1),\"\")","v":""},{"$f":"IFERROR(MID($X73,FIND(CHAR(160),SUBSTITUTE($X73,\"{\",CHAR(160),HI$1)),FIND(CHAR(160),SUBSTITUTE($X73,\"}\",CHAR(160),HI$1))-FIND(CHAR(160),SUBSTITUTE($X73,\"{\",CHAR(160),HI$1))+1),\"\")","v":""},{"$f":"IFERROR(MID($X73,FIND(CHAR(160),SUBSTITUTE($X73,\"{\",CHAR(160),HJ$1)),FIND(CHAR(160),SUBSTITUTE($X73,\"}\",CHAR(160),HJ$1))-FIND(CHAR(160),SUBSTITUTE($X73,\"{\",CHAR(160),HJ$1))+1),\"\")","v":""},{"$f":"IFERROR(MID($Y73,FIND(CHAR(160),SUBSTITUTE($Y73,\"{\",CHAR(160),HK$1)),FIND(CHAR(160),SUBSTITUTE($Y73,\"}\",CHAR(160),HK$1))-FIND(CHAR(160),SUBSTITUTE($Y73,\"{\",CHAR(160),HK$1))+1),\"\")","v":""},{"$f":"IFERROR(MID($Y73,FIND(CHAR(160),SUBSTITUTE($Y73,\"{\",CHAR(160),HL$1)),FIND(CHAR(160),SUBSTITUTE($Y73,\"}\",CHAR(160),HL$1))-FIND(CHAR(160),SUBSTITUTE($Y73,\"{\",CHAR(160),HL$1))+1),\"\")","v":""},{"$f":"IFERROR(MID($Y73,FIND(CHAR(160),SUBSTITUTE($Y73,\"{\",CHAR(160),HM$1)),FIND(CHAR(160),SUBSTITUTE($Y73,\"}\",CHAR(160),HM$1))-FIND(CHAR(160),SUBSTITUTE($Y73,\"{\",CHAR(160),HM$1))+1),\"\")","v":""},{"$f":"IFERROR(MID($Y73,FIND(CHAR(160),SUBSTITUTE($Y73,\"{\",CHAR(160),HN$1)),FIND(CHAR(160),SUBSTITUTE($Y73,\"}\",CHAR(160),HN$1))-FIND(CHAR(160),SUBSTITUTE($Y73,\"{\",CHAR(160),HN$1))+1),\"\")","v":""},{"$f":"IFERROR(MID($Y73,FIND(CHAR(160),SUBSTITUTE($Y73,\"{\",CHAR(160),HO$1)),FIND(CHAR(160),SUBSTITUTE($Y73,\"}\",CHAR(160),HO$1))-FIND(CHAR(160),SUBSTITUTE($Y73,\"{\",CHAR(160),HO$1))+1),\"\")","v":""},{"$f":"IFERROR(MID($Y73,FIND(CHAR(160),SUBSTITUTE($Y73,\"{\",CHAR(160),HP$1)),FIND(CHAR(160),SUBSTITUTE($Y73,\"}\",CHAR(160),HP$1))-FIND(CHAR(160),SUBSTITUTE($Y73,\"{\",CHAR(160),HP$1))+1),\"\")","v":""},{"$f":"IFERROR(MID($Y73,FIND(CHAR(160),SUBSTITUTE($Y73,\"{\",CHAR(160),HQ$1)),FIND(CHAR(160),SUBSTITUTE($Y73,\"}\",CHAR(160),HQ$1))-FIND(CHAR(160),SUBSTITUTE($Y73,\"{\",CHAR(160),HQ$1))+1),\"\")","v":""},{"$f":"IFERROR(MID($Y73,FIND(CHAR(160),SUBSTITUTE($Y73,\"{\",CHAR(160),HR$1)),FIND(CHAR(160),SUBSTITUTE($Y73,\"}\",CHAR(160),HR$1))-FIND(CHAR(160),SUBSTITUTE($Y73,\"{\",CHAR(160),HR$1))+1),\"\")","v":""},{"$f":"IFERROR(MID($Y73,FIND(CHAR(160),SUBSTITUTE($Y73,\"{\",CHAR(160),HS$1)),FIND(CHAR(160),SUBSTITUTE($Y73,\"}\",CHAR(160),HS$1))-FIND(CHAR(160),SUBSTITUTE($Y73,\"{\",CHAR(160),HS$1))+1),\"\")","v":""},{"$f":"IFERROR(MID($Y73,FIND(CHAR(160),SUBSTITUTE($Y73,\"{\",CHAR(160),HT$1)),FIND(CHAR(160),SUBSTITUTE($Y73,\"}\",CHAR(160),HT$1))-FIND(CHAR(160),SUBSTITUTE($Y73,\"{\",CHAR(160),HT$1))+1),\"\")","v":""},{"$f":"IFERROR(MID($Z73,FIND(CHAR(160),SUBSTITUTE($Z73,\"{\",CHAR(160),HU$1)),FIND(CHAR(160),SUBSTITUTE($Z73,\"}\",CHAR(160),HU$1))-FIND(CHAR(160),SUBSTITUTE($Z73,\"{\",CHAR(160),HU$1))+1),\"\")","v":""},{"$f":"IFERROR(MID($Z73,FIND(CHAR(160),SUBSTITUTE($Z73,\"{\",CHAR(160),HV$1)),FIND(CHAR(160),SUBSTITUTE($Z73,\"}\",CHAR(160),HV$1))-FIND(CHAR(160),SUBSTITUTE($Z73,\"{\",CHAR(160),HV$1))+1),\"\")","v":""},{"$f":"IFERROR(MID($Z73,FIND(CHAR(160),SUBSTITUTE($Z73,\"{\",CHAR(160),HW$1)),FIND(CHAR(160),SUBSTITUTE($Z73,\"}\",CHAR(160),HW$1))-FIND(CHAR(160),SUBSTITUTE($Z73,\"{\",CHAR(160),HW$1))+1),\"\")","v":""},{"$f":"IFERROR(MID($Z73,FIND(CHAR(160),SUBSTITUTE($Z73,\"{\",CHAR(160),HX$1)),FIND(CHAR(160),SUBSTITUTE($Z73,\"}\",CHAR(160),HX$1))-FIND(CHAR(160),SUBSTITUTE($Z73,\"{\",CHAR(160),HX$1))+1),\"\")","v":""},{"$f":"IFERROR(MID($Z73,FIND(CHAR(160),SUBSTITUTE($Z73,\"{\",CHAR(160),HY$1)),FIND(CHAR(160),SUBSTITUTE($Z73,\"}\",CHAR(160),HY$1))-FIND(CHAR(160),SUBSTITUTE($Z73,\"{\",CHAR(160),HY$1))+1),\"\")","v":""},{"$f":"IFERROR(MID($Z73,FIND(CHAR(160),SUBSTITUTE($Z73,\"{\",CHAR(160),HZ$1)),FIND(CHAR(160),SUBSTITUTE($Z73,\"}\",CHAR(160),HZ$1))-FIND(CHAR(160),SUBSTITUTE($Z73,\"{\",CHAR(160),HZ$1))+1),\"\")","v":""},{"$f":"IFERROR(MID($Z73,FIND(CHAR(160),SUBSTITUTE($Z73,\"{\",CHAR(160),IA$1)),FIND(CHAR(160),SUBSTITUTE($Z73,\"}\",CHAR(160),IA$1))-FIND(CHAR(160),SUBSTITUTE($Z73,\"{\",CHAR(160),IA$1))+1),\"\")","v":""},{"$f":"IFERROR(MID($Z73,FIND(CHAR(160),SUBSTITUTE($Z73,\"{\",CHAR(160),IB$1)),FIND(CHAR(160),SUBSTITUTE($Z73,\"}\",CHAR(160),IB$1))-FIND(CHAR(160),SUBSTITUTE($Z73,\"{\",CHAR(160),IB$1))+1),\"\")","v":""},{"$f":"IFERROR(MID($Z73,FIND(CHAR(160),SUBSTITUTE($Z73,\"{\",CHAR(160),IC$1)),FIND(CHAR(160),SUBSTITUTE($Z73,\"}\",CHAR(160),IC$1))-FIND(CHAR(160),SUBSTITUTE($Z73,\"{\",CHAR(160),IC$1))+1),\"\")","v":""},{"$f":"IFERROR(MID($Z73,FIND(CHAR(160),SUBSTITUTE($Z73,\"{\",CHAR(160),ID$1)),FIND(CHAR(160),SUBSTITUTE($Z73,\"}\",CHAR(160),ID$1))-FIND(CHAR(160),SUBSTITUTE($Z73,\"{\",CHAR(160),ID$1))+1),\"\")","v":""},{"$f":"IFERROR(MID($AA73,FIND(CHAR(160),SUBSTITUTE($AA73,\"{\",CHAR(160),IE$1)),FIND(CHAR(160),SUBSTITUTE($AA73,\"}\",CHAR(160),IE$1))-FIND(CHAR(160),SUBSTITUTE($AA73,\"{\",CHAR(160),IE$1))+1),\"\")","v":""},{"$f":"IFERROR(MID($AA73,FIND(CHAR(160),SUBSTITUTE($AA73,\"{\",CHAR(160),IF$1)),FIND(CHAR(160),SUBSTITUTE($AA73,\"}\",CHAR(160),IF$1))-FIND(CHAR(160),SUBSTITUTE($AA73,\"{\",CHAR(160),IF$1))+1),\"\")","v":""},{"$f":"IFERROR(MID($AA73,FIND(CHAR(160),SUBSTITUTE($AA73,\"{\",CHAR(160),IG$1)),FIND(CHAR(160),SUBSTITUTE($AA73,\"}\",CHAR(160),IG$1))-FIND(CHAR(160),SUBSTITUTE($AA73,\"{\",CHAR(160),IG$1))+1),\"\")","v":""},{"$f":"IFERROR(MID($AA73,FIND(CHAR(160),SUBSTITUTE($AA73,\"{\",CHAR(160),IH$1)),FIND(CHAR(160),SUBSTITUTE($AA73,\"}\",CHAR(160),IH$1))-FIND(CHAR(160),SUBSTITUTE($AA73,\"{\",CHAR(160),IH$1))+1),\"\")","v":""},{"$f":"IFERROR(MID($AA73,FIND(CHAR(160),SUBSTITUTE($AA73,\"{\",CHAR(160),II$1)),FIND(CHAR(160),SUBSTITUTE($AA73,\"}\",CHAR(160),II$1))-FIND(CHAR(160),SUBSTITUTE($AA73,\"{\",CHAR(160),II$1))+1),\"\")","v":""},{"$f":"IFERROR(MID($AA73,FIND(CHAR(160),SUBSTITUTE($AA73,\"{\",CHAR(160),IJ$1)),FIND(CHAR(160),SUBSTITUTE($AA73,\"}\",CHAR(160),IJ$1))-FIND(CHAR(160),SUBSTITUTE($AA73,\"{\",CHAR(160),IJ$1))+1),\"\")","v":""},{"$f":"IFERROR(MID($AA73,FIND(CHAR(160),SUBSTITUTE($AA73,\"{\",CHAR(160),IK$1)),FIND(CHAR(160),SUBSTITUTE($AA73,\"}\",CHAR(160),IK$1))-FIND(CHAR(160),SUBSTITUTE($AA73,\"{\",CHAR(160),IK$1))+1),\"\")","v":""},{"$f":"IFERROR(MID($AA73,FIND(CHAR(160),SUBSTITUTE($AA73,\"{\",CHAR(160),IL$1)),FIND(CHAR(160),SUBSTITUTE($AA73,\"}\",CHAR(160),IL$1))-FIND(CHAR(160),SUBSTITUTE($AA73,\"{\",CHAR(160),IL$1))+1),\"\")","v":""},{"$f":"IFERROR(MID($AA73,FIND(CHAR(160),SUBSTITUTE($AA73,\"{\",CHAR(160),IM$1)),FIND(CHAR(160),SUBSTITUTE($AA73,\"}\",CHAR(160),IM$1))-FIND(CHAR(160),SUBSTITUTE($AA73,\"{\",CHAR(160),IM$1))+1),\"\")","v":""},{"$f":"IFERROR(MID($AA73,FIND(CHAR(160),SUBSTITUTE($AA73,\"{\",CHAR(160),IN$1)),FIND(CHAR(160),SUBSTITUTE($AA73,\"}\",CHAR(160),IN$1))-FIND(CHAR(160),SUBSTITUTE($AA73,\"{\",CHAR(160),IN$1))+1),\"\")","v":""},{"$f":"IFERROR(MID($AB73,FIND(CHAR(160),SUBSTITUTE($AB73,\"{\",CHAR(160),IO$1)),FIND(CHAR(160),SUBSTITUTE($AB73,\"}\",CHAR(160),IO$1))-FIND(CHAR(160),SUBSTITUTE($AB73,\"{\",CHAR(160),IO$1))+1),\"\")","v":""},{"$f":"IFERROR(MID($AB73,FIND(CHAR(160),SUBSTITUTE($AB73,\"{\",CHAR(160),IP$1)),FIND(CHAR(160),SUBSTITUTE($AB73,\"}\",CHAR(160),IP$1))-FIND(CHAR(160),SUBSTITUTE($AB73,\"{\",CHAR(160),IP$1))+1),\"\")","v":""},{"$f":"IFERROR(MID($AB73,FIND(CHAR(160),SUBSTITUTE($AB73,\"{\",CHAR(160),IQ$1)),FIND(CHAR(160),SUBSTITUTE($AB73,\"}\",CHAR(160),IQ$1))-FIND(CHAR(160),SUBSTITUTE($AB73,\"{\",CHAR(160),IQ$1))+1),\"\")","v":""},{"$f":"IFERROR(MID($AB73,FIND(CHAR(160),SUBSTITUTE($AB73,\"{\",CHAR(160),IR$1)),FIND(CHAR(160),SUBSTITUTE($AB73,\"}\",CHAR(160),IR$1))-FIND(CHAR(160),SUBSTITUTE($AB73,\"{\",CHAR(160),IR$1))+1),\"\")","v":""},{"$f":"IFERROR(MID($AB73,FIND(CHAR(160),SUBSTITUTE($AB73,\"{\",CHAR(160),IS$1)),FIND(CHAR(160),SUBSTITUTE($AB73,\"}\",CHAR(160),IS$1))-FIND(CHAR(160),SUBSTITUTE($AB73,\"{\",CHAR(160),IS$1))+1),\"\")","v":""},{"$f":"IFERROR(MID($AB73,FIND(CHAR(160),SUBSTITUTE($AB73,\"{\",CHAR(160),IT$1)),FIND(CHAR(160),SUBSTITUTE($AB73,\"}\",CHAR(160),IT$1))-FIND(CHAR(160),SUBSTITUTE($AB73,\"{\",CHAR(160),IT$1))+1),\"\")","v":""},{"$f":"IFERROR(MID($AB73,FIND(CHAR(160),SUBSTITUTE($AB73,\"{\",CHAR(160),IU$1)),FIND(CHAR(160),SUBSTITUTE($AB73,\"}\",CHAR(160),IU$1))-FIND(CHAR(160),SUBSTITUTE($AB73,\"{\",CHAR(160),IU$1))+1),\"\")","v":""},{"$f":"IFERROR(MID($AB73,FIND(CHAR(160),SUBSTITUTE($AB73,\"{\",CHAR(160),IV$1)),FIND(CHAR(160),SUBSTITUTE($AB73,\"}\",CHAR(160),IV$1))-FIND(CHAR(160),SUBSTITUTE($AB73,\"{\",CHAR(160),IV$1))+1),\"\")","v":""},{"$f":"IFERROR(MID($AB73,FIND(CHAR(160),SUBSTITUTE($AB73,\"{\",CHAR(160),IW$1)),FIND(CHAR(160),SUBSTITUTE($AB73,\"}\",CHAR(160),IW$1))-FIND(CHAR(160),SUBSTITUTE($AB73,\"{\",CHAR(160),IW$1))+1),\"\")","v":""},{"$f":"IFERROR(MID($AB73,FIND(CHAR(160),SUBSTITUTE($AB73,\"{\",CHAR(160),IX$1)),FIND(CHAR(160),SUBSTITUTE($AB73,\"}\",CHAR(160),IX$1))-FIND(CHAR(160),SUBSTITUTE($AB73,\"{\",CHAR(160),IX$1))+1),\"\")","v":""},null,{"$f":"10-COUNTIF(DU73:ED73,\"\")","v":5}]
["C&I HVAC - Natural Gas","VFD: Building Exhaust Fan","BEF","2021-07-01","2022-06-30","Calculated","{Measure:Quantity}*if({Motor HP}=5,2425,if({Motor HP}=7.5,2648,if({Motor HP}=10,2871,if({Motor HP}=15,3317,if({Motor HP}=20,3763,if({Motor HP}=25,4209,if({Motor HP}=30,4655,0)))))))",0,"Calculated","{Measure:Quantity}*if({Motor HP}=5,400,if({Motor HP}=7.5,650,if({Motor HP}=10,1400,if({Motor HP}=15,1650,if({Motor HP}=20,1850,if({Motor HP}=25,2000,if({Motor HP}=30,2300,0)))))))",0,"2021-05-25","2022-06-30","Calculated","{Measure:Quantity}*{Motor HP}*755",null,null,"{Measure:Quantity}*{Motor HP}*.120",null,null,"{Measure:Quantity}*{Factor:WinterCF}*{Motor HP}*.120","{Measure:Quantity}*{Factor:SummerCF}*{Motor HP}*.120",null,null,null,null,null,null,"2021-05-25","2022-06-30",13,0.73699999999999999,0.35499999999999998,0.44400000000000001,0.222,0.16,0.17399999999999999,1,1.1220000000000001,1,0.52,1.6E-2,null,{"$f":"DU74","v":"{Measure:Quantity}"},1,{"$f":"DV74","v":"{Motor HP}"},5,{"$f":"DW74","v":""},null,{"$f":"DX74","v":""},null,{"$f":"DY74","v":""},null,{"$f":"DZ74","v":""},null,{"$f":"EA74","v":""},null,{"$f":"EB74","v":""},null,{"$f":"EC74","v":""},null,{"$f":"ED74","v":""},null,{"$f":"AS74*AU74*755","v":3775},0,0,{"$f":"AS74*AU74*0.12","v":0.6},0,0,{"$f":"AS74*AF74*AU74*0.12","v":0.44219999999999998},{"$f":"AS74*AG74*AU74*0.12","v":0.21299999999999999},0,0,0,0,0,0,null,"Res","Default DR",{"$f":"Benefits(BL74,BR74,BS74,BT74,BU74,BV74,BW74,BX74,BY74,BZ74,AE74,AH74,AI74,AJ74,AK74,AL74,AM74,AN74,AO74,AP74,CA74,CB74)","v":5086.6832116597379},1837.6156335233043,0,0,0,0,0,0,0,{"$f":"SUMPRODUCT(CC74:CK74,--(CC74:CK74>0))","v":6924.2988451830424},{"$f":"-SUMPRODUCT(CC74:CK74,--(CC74:CK74<0))","v":0},null,{"$f":"AS74*IF(AU74=5,2425,IF(AU74=7.5,2648,IF(AU74=10,2871,IF(AU74=15,3317,IF(AU74=20,3763,IF(AU74=25,4209,IF(AU74=30,4655,0)))))))","v":2425},null,null,{"$f":"CM74+CO74","v":2425},{"$f":"IF(NetOrGross=\"Net\",(1-AO74+AP74),1)","v":1},{"$f":"(SUMPRODUCT(CC74:CJ74,--(CC74:CJ74>0))+CN74)*CS74/((-SUMPRODUCT(CC74:CJ74,--(CC74:CJ74<0))+MAX(CO74,CV74)+CP74+CQ74)*CS74+IF(FRIncentives=\"Yes\",CV74*(1-CS74),0))","v":2.8553809670857908},1,{"$f":"AS74*IF(AU74=5,400,IF(AU74=7.5,650,IF(AU74=10,1400,IF(AU74=15,1650,IF(AU74=20,1850,IF(AU74=25,2000,IF(AU74=30,2300,0)))))))","v":400},null,"NG","y",null,{"$f":"IF(F74=\"Manual Entry\",\"Manual\",IF(G74=\"\",0,\"X=\"&SUBSTITUTE(SUBSTITUTE(SUBSTITUTE(SUBSTITUTE(SUBSTITUTE(SUBSTITUTE(SUBSTITUTE(SUBSTITUTE(SUBSTITUTE(SUBSTITUTE(SUBSTITUTE(SUBSTITUTE(G74,$ED74,$ED$2&ROW($ED74)),$EC74,$EC$2&ROW($EC74)),$EB74,$EB$2&ROW($EB74)),$EA74,$EA$2&ROW($EA74)),$DZ74,$DZ$2&ROW($DZ74)),$DY74,$DY$2&ROW($DY74)),$DX74,$DX$2&ROW($DX74)),$DW74,$DW$2&ROW($DW74)),$DV74,$DV$2&ROW($DV74)),$DU74,$DU$2&ROW($DU74)),$DT74,$DT$2&ROW($DT74)),$DS74,$DS$2&ROW($DS74))))","v":"X=AS74*if(AU74=5,2425,if(AU74=7.5,2648,if(AU74=10,2871,if(AU74=15,3317,if(AU74=20,3763,if(AU74=25,4209,if(AU74=30,4655,0)))))))"},{"$f":"IF(I74=\"Manual Entry\",\"Manual\",IF(J74=\"\",0,\"X=\"&SUBSTITUTE(SUBSTITUTE(SUBSTITUTE(SUBSTITUTE(SUBSTITUTE(SUBSTITUTE(SUBSTITUTE(SUBSTITUTE(SUBSTITUTE(SUBSTITUTE(SUBSTITUTE(SUBSTITUTE(J74,$ED74,$ED$2&ROW($ED74)),$EC74,$EC$2&ROW($EC74)),$EB74,$EB$2&ROW($EB74)),$EA74,$EA$2&ROW($EA74)),$DZ74,$DZ$2&ROW($DZ74)),$DY74,$DY$2&ROW($DY74)),$DX74,$DX$2&ROW($DX74)),$DW74,$DW$2&ROW($DW74)),$DV74,$DV$2&ROW($DV74)),$DU74,$DU$2&ROW($DU74)),$DT74,$DT$2&ROW($DT74)),$DS74,$DS$2&ROW($DS74))))","v":"X=AS74*if(AU74=5,400,if(AU74=7.5,650,if(AU74=10,1400,if(AU74=15,1650,if(AU74=20,1850,if(AU74=25,2000,if(AU74=30,2300,0)))))))"},{"$f":"IF(O74=\"\",0,\"X=\"&SUBSTITUTE(SUBSTITUTE(SUBSTITUTE(SUBSTITUTE(SUBSTITUTE(SUBSTITUTE(SUBSTITUTE(SUBSTITUTE(SUBSTITUTE(SUBSTITUTE(SUBSTITUTE(SUBSTITUTE(O74,$ED74,$ED$2&ROW($ED74)),$EC74,$EC$2&ROW($EC74)),$EB74,$EB$2&ROW($EB74)),$EA74,$EA$2&ROW($EA74)),$DZ74,$DZ$2&ROW($DZ74)),$DY74,$DY$2&ROW($DY74)),$DX74,$DX$2&ROW($DX74)),$DW74,$DW$2&ROW($DW74)),$DV74,$DV$2&ROW($DV74)),$DU74,$DU$2&ROW($DU74)),$DT74,$DT$2&ROW($DT74)),$DS74,$DS$2&ROW($DS74)))","v":"X=AS74*AU74*755"},{"$f":"IF(P74=\"\",0,\"X=\"&SUBSTITUTE(SUBSTITUTE(SUBSTITUTE(SUBSTITUTE(SUBSTITUTE(SUBSTITUTE(SUBSTITUTE(SUBSTITUTE(SUBSTITUTE(SUBSTITUTE(SUBSTITUTE(SUBSTITUTE(P74,$ED74,$ED$2&ROW($ED74)),$EC74,$EC$2&ROW($EC74)),$EB74,$EB$2&ROW($EB74)),$EA74,$EA$2&ROW($EA74)),$DZ74,$DZ$2&ROW($DZ74)),$DY74,$DY$2&ROW($DY74)),$DX74,$DX$2&ROW($DX74)),$DW74,$DW$2&ROW($DW74)),$DV74,$DV$2&ROW($DV74)),$DU74,$DU$2&ROW($DU74)),$DT74,$DT$2&ROW($DT74)),$DS74,$DS$2&ROW($DS74)))","v":0},{"$f":"IF(Q74=\"\",0,\"X=\"&SUBSTITUTE(SUBSTITUTE(SUBSTITUTE(SUBSTITUTE(SUBSTITUTE(SUBSTITUTE(SUBSTITUTE(SUBSTITUTE(SUBSTITUTE(SUBSTITUTE(SUBSTITUTE(SUBSTITUTE(Q74,$ED74,$ED$2&ROW($ED74)),$EC74,$EC$2&ROW($EC74)),$EB74,$EB$2&ROW($EB74)),$EA74,$EA$2&ROW($EA74)),$DZ74,$DZ$2&ROW($DZ74)),$DY74,$DY$2&ROW($DY74)),$DX74,$DX$2&ROW($DX74)),$DW74,$DW$2&ROW($DW74)),$DV74,$DV$2&ROW($DV74)),$DU74,$DU$2&ROW($DU74)),$DT74,$DT$2&ROW($DT74)),$DS74,$DS$2&ROW($DS74)))","v":0},{"$f":"IF(R74=\"\",0,\"X=\"&SUBSTITUTE(SUBSTITUTE(SUBSTITUTE(SUBSTITUTE(SUBSTITUTE(SUBSTITUTE(SUBSTITUTE(SUBSTITUTE(SUBSTITUTE(SUBSTITUTE(SUBSTITUTE(SUBSTITUTE(R74,$ED74,$ED$2&ROW($ED74)),$EC74,$EC$2&ROW($EC74)),$EB74,$EB$2&ROW($EB74)),$EA74,$EA$2&ROW($EA74)),$DZ74,$DZ$2&ROW($DZ74)),$DY74,$DY$2&ROW($DY74)),$DX74,$DX$2&ROW($DX74)),$DW74,$DW$2&ROW($DW74)),$DV74,$DV$2&ROW($DV74)),$DU74,$DU$2&ROW($DU74)),$DT74,$DT$2&ROW($DT74)),$DS74,$DS$2&ROW($DS74)))","v":"X=AS74*AU74*.120"},{"$f":"IF(S74=\"\",0,\"X=\"&SUBSTITUTE(SUBSTITUTE(SUBSTITUTE(SUBSTITUTE(SUBSTITUTE(SUBSTITUTE(SUBSTITUTE(SUBSTITUTE(SUBSTITUTE(SUBSTITUTE(SUBSTITUTE(SUBSTITUTE(S74,$ED74,$ED$2&ROW($ED74)),$EC74,$EC$2&ROW($EC74)),$EB74,$EB$2&ROW($EB74)),$EA74,$EA$2&ROW($EA74)),$DZ74,$DZ$2&ROW($DZ74)),$DY74,$DY$2&ROW($DY74)),$DX74,$DX$2&ROW($DX74)),$DW74,$DW$2&ROW($DW74)),$DV74,$DV$2&ROW($DV74)),$DU74,$DU$2&ROW($DU74)),$DT74,$DT$2&ROW($DT74)),$DS74,$DS$2&ROW($DS74)))","v":0},{"$f":"IF(T74=\"\",0,\"X=\"&SUBSTITUTE(SUBSTITUTE(SUBSTITUTE(SUBSTITUTE(SUBSTITUTE(SUBSTITUTE(SUBSTITUTE(SUBSTITUTE(SUBSTITUTE(SUBSTITUTE(SUBSTITUTE(SUBSTITUTE(T74,$ED74,$ED$2&ROW($ED74)),$EC74,$EC$2&ROW($EC74)),$EB74,$EB$2&ROW($EB74)),$EA74,$EA$2&ROW($EA74)),$DZ74,$DZ$2&ROW($DZ74)),$DY74,$DY$2&ROW($DY74)),$DX74,$DX$2&ROW($DX74)),$DW74,$DW$2&ROW($DW74)),$DV74,$DV$2&ROW($DV74)),$DU74,$DU$2&ROW($DU74)),$DT74,$DT$2&ROW($DT74)),$DS74,$DS$2&ROW($DS74)))","v":0},{"$f":"IF(U74=\"\",0,\"X=\"&SUBSTITUTE(SUBSTITUTE(SUBSTITUTE(SUBSTITUTE(SUBSTITUTE(SUBSTITUTE(SUBSTITUTE(SUBSTITUTE(SUBSTITUTE(SUBSTITUTE(SUBSTITUTE(SUBSTITUTE(U74,$ED74,$ED$2&ROW($ED74)),$EC74,$EC$2&ROW($EC74)),$EB74,$EB$2&ROW($EB74)),$EA74,$EA$2&ROW($EA74)),$DZ74,$DZ$2&ROW($DZ74)),$DY74,$DY$2&ROW($DY74)),$DX74,$DX$2&ROW($DX74)),$DW74,$DW$2&ROW($DW74)),$DV74,$DV$2&ROW($DV74)),$DU74,$DU$2&ROW($DU74)),$DT74,$DT$2&ROW($DT74)),$DS74,$DS$2&ROW($DS74)))","v":"X=AS74*AF74*AU74*.120"},{"$f":"IF(V74=\"\",0,\"X=\"&SUBSTITUTE(SUBSTITUTE(SUBSTITUTE(SUBSTITUTE(SUBSTITUTE(SUBSTITUTE(SUBSTITUTE(SUBSTITUTE(SUBSTITUTE(SUBSTITUTE(SUBSTITUTE(SUBSTITUTE(V74,$ED74,$ED$2&ROW($ED74)),$EC74,$EC$2&ROW($EC74)),$EB74,$EB$2&ROW($EB74)),$EA74,$EA$2&ROW($EA74)),$DZ74,$DZ$2&ROW($DZ74)),$DY74,$DY$2&ROW($DY74)),$DX74,$DX$2&ROW($DX74)),$DW74,$DW$2&ROW($DW74)),$DV74,$DV$2&ROW($DV74)),$DU74,$DU$2&ROW($DU74)),$DT74,$DT$2&ROW($DT74)),$DS74,$DS$2&ROW($DS74)))","v":"X=AS74*AG74*AU74*.120"},{"$f":"IF(W74=\"\",0,\"X=\"&SUBSTITUTE(SUBSTITUTE(SUBSTITUTE(SUBSTITUTE(SUBSTITUTE(SUBSTITUTE(SUBSTITUTE(SUBSTITUTE(SUBSTITUTE(SUBSTITUTE(SUBSTITUTE(SUBSTITUTE(W74,$ED74,$ED$2&ROW($ED74)),$EC74,$EC$2&ROW($EC74)),$EB74,$EB$2&ROW($EB74)),$EA74,$EA$2&ROW($EA74)),$DZ74,$DZ$2&ROW($DZ74)),$DY74,$DY$2&ROW($DY74)),$DX74,$DX$2&ROW($DX74)),$DW74,$DW$2&ROW($DW74)),$DV74,$DV$2&ROW($DV74)),$DU74,$DU$2&ROW($DU74)),$DT74,$DT$2&ROW($DT74)),$DS74,$DS$2&ROW($DS74)))","v":0},{"$f":"IF(X74=\"\",0,\"X=\"&SUBSTITUTE(SUBSTITUTE(SUBSTITUTE(SUBSTITUTE(SUBSTITUTE(SUBSTITUTE(SUBSTITUTE(SUBSTITUTE(SUBSTITUTE(SUBSTITUTE(SUBSTITUTE(SUBSTITUTE(X74,$ED74,$ED$2&ROW($ED74)),$EC74,$EC$2&ROW($EC74)),$EB74,$EB$2&ROW($EB74)),$EA74,$EA$2&ROW($EA74)),$DZ74,$DZ$2&ROW($DZ74)),$DY74,$DY$2&ROW($DY74)),$DX74,$DX$2&ROW($DX74)),$DW74,$DW$2&ROW($DW74)),$DV74,$DV$2&ROW($DV74)),$DU74,$DU$2&ROW($DU74)),$DT74,$DT$2&ROW($DT74)),$DS74,$DS$2&ROW($DS74)))","v":0},{"$f":"IF(Y74=\"\",0,\"X=\"&SUBSTITUTE(SUBSTITUTE(SUBSTITUTE(SUBSTITUTE(SUBSTITUTE(SUBSTITUTE(SUBSTITUTE(SUBSTITUTE(SUBSTITUTE(SUBSTITUTE(SUBSTITUTE(SUBSTITUTE(Y74,$ED74,$ED$2&ROW($ED74)),$EC74,$EC$2&ROW($EC74)),$EB74,$EB$2&ROW($EB74)),$EA74,$EA$2&ROW($EA74)),$DZ74,$DZ$2&ROW($DZ74)),$DY74,$DY$2&ROW($DY74)),$DX74,$DX$2&ROW($DX74)),$DW74,$DW$2&ROW($DW74)),$DV74,$DV$2&ROW($DV74)),$DU74,$DU$2&ROW($DU74)),$DT74,$DT$2&ROW($DT74)),$DS74,$DS$2&ROW($DS74)))","v":0},{"$f":"IF(Z74=\"\",0,\"X=\"&SUBSTITUTE(SUBSTITUTE(SUBSTITUTE(SUBSTITUTE(SUBSTITUTE(SUBSTITUTE(SUBSTITUTE(SUBSTITUTE(SUBSTITUTE(SUBSTITUTE(SUBSTITUTE(SUBSTITUTE(Z74,$ED74,$ED$2&ROW($ED74)),$EC74,$EC$2&ROW($EC74)),$EB74,$EB$2&ROW($EB74)),$EA74,$EA$2&ROW($EA74)),$DZ74,$DZ$2&ROW($DZ74)),$DY74,$DY$2&ROW($DY74)),$DX74,$DX$2&ROW($DX74)),$DW74,$DW$2&ROW($DW74)),$DV74,$DV$2&ROW($DV74)),$DU74,$DU$2&ROW($DU74)),$DT74,$DT$2&ROW($DT74)),$DS74,$DS$2&ROW($DS74)))","v":0},{"$f":"IF(AA74=\"\",0,\"X=\"&SUBSTITUTE(SUBSTITUTE(SUBSTITUTE(SUBSTITUTE(SUBSTITUTE(SUBSTITUTE(SUBSTITUTE(SUBSTITUTE(SUBSTITUTE(SUBSTITUTE(SUBSTITUTE(SUBSTITUTE(AA74,$ED74,$ED$2&ROW($ED74)),$EC74,$EC$2&ROW($EC74)),$EB74,$EB$2&ROW($EB74)),$EA74,$EA$2&ROW($EA74)),$DZ74,$DZ$2&ROW($DZ74)),$DY74,$DY$2&ROW($DY74)),$DX74,$DX$2&ROW($DX74)),$DW74,$DW$2&ROW($DW74)),$DV74,$DV$2&ROW($DV74)),$DU74,$DU$2&ROW($DU74)),$DT74,$DT$2&ROW($DT74)),$DS74,$DS$2&ROW($DS74)))","v":0},{"$f":"IF(AB74=\"\",0,\"X=\"&SUBSTITUTE(SUBSTITUTE(SUBSTITUTE(SUBSTITUTE(SUBSTITUTE(SUBSTITUTE(SUBSTITUTE(SUBSTITUTE(SUBSTITUTE(SUBSTITUTE(SUBSTITUTE(SUBSTITUTE(AB74,$ED74,$ED$2&ROW($ED74)),$EC74,$EC$2&ROW($EC74)),$EB74,$EB$2&ROW($EB74)),$EA74,$EA$2&ROW($EA74)),$DZ74,$DZ$2&ROW($DZ74)),$DY74,$DY$2&ROW($DY74)),$DX74,$DX$2&ROW($DX74)),$DW74,$DW$2&ROW($DW74)),$DV74,$DV$2&ROW($DV74)),$DU74,$DU$2&ROW($DU74)),$DT74,$DT$2&ROW($DT74)),$DS74,$DS$2&ROW($DS74)))","v":0},null,null,"{Factor:WinterCF}","{Factor:SummerCF}",{"$f":"IFERROR(INDEX($EG74:$IV74,MATCH(0,COUNTIF($DR74:DT74,$EG74:$IV74),0)),\"\")","v":"{Measure:Quantity}"},{"$f":"IFERROR(INDEX($EG74:$IV74,MATCH(0,COUNTIF($DR74:DU74,$EG74:$IV74),0)),\"\")","v":"{Motor HP}"},{"$f":"IFERROR(INDEX($EG74:$IV74,MATCH(0,COUNTIF($DR74:DV74,$EG74:$IV74),0)),\"\")","v":""},{"$f":"IFERROR(INDEX($EG74:$IV74,MATCH(0,COUNTIF($DR74:DW74,$EG74:$IV74),0)),\"\")","v":""},{"$f":"IFERROR(INDEX($EG74:$IV74,MATCH(0,COUNTIF($DR74:DX74,$EG74:$IV74),0)),\"\")","v":""},{"$f":"IFERROR(INDEX($EG74:$IV74,MATCH(0,COUNTIF($DR74:DY74,$EG74:$IV74),0)),\"\")","v":""},{"$f":"IFERROR(INDEX($EG74:$IV74,MATCH(0,COUNTIF($DR74:DZ74,$EG74:$IV74),0)),\"\")","v":""},{"$f":"IFERROR(INDEX($EG74:$IV74,MATCH(0,COUNTIF($DR74:EA74,$EG74:$IV74),0)),\"\")","v":""},{"$f":"IFERROR(INDEX($EG74:$IV74,MATCH(0,COUNTIF($DR74:EB74,$EG74:$IV74),0)),\"\")","v":""},{"$f":"IFERROR(INDEX($EG74:$IV74,MATCH(0,COUNTIF($DR74:EC74,$EG74:$IV74),0)),\"\")","v":""},null,null,{"$f":"IFERROR(MID($G74,FIND(CHAR(160),SUBSTITUTE($G74,\"{\",CHAR(160),EG$1)),FIND(CHAR(160),SUBSTITUTE($G74,\"}\",CHAR(160),EG$1))-FIND(CHAR(160),SUBSTITUTE($G74,\"{\",CHAR(160),EG$1))+1),\"\")","v":"{Measure:Quantity}"},{"$f":"IFERROR(MID($G74,FIND(CHAR(160),SUBSTITUTE($G74,\"{\",CHAR(160),EH$1)),FIND(CHAR(160),SUBSTITUTE($G74,\"}\",CHAR(160),EH$1))-FIND(CHAR(160),SUBSTITUTE($G74,\"{\",CHAR(160),EH$1))+1),\"\")","v":"{Motor HP}"},{"$f":"IFERROR(MID($G74,FIND(CHAR(160),SUBSTITUTE($G74,\"{\",CHAR(160),EI$1)),FIND(CHAR(160),SUBSTITUTE($G74,\"}\",CHAR(160),EI$1))-FIND(CHAR(160),SUBSTITUTE($G74,\"{\",CHAR(160),EI$1))+1),\"\")","v":"{Motor HP}"},{"$f":"IFERROR(MID($G74,FIND(CHAR(160),SUBSTITUTE($G74,\"{\",CHAR(160),EJ$1)),FIND(CHAR(160),SUBSTITUTE($G74,\"}\",CHAR(160),EJ$1))-FIND(CHAR(160),SUBSTITUTE($G74,\"{\",CHAR(160),EJ$1))+1),\"\")","v":"{Motor HP}"},{"$f":"IFERROR(MID($G74,FIND(CHAR(160),SUBSTITUTE($G74,\"{\",CHAR(160),EK$1)),FIND(CHAR(160),SUBSTITUTE($G74,\"}\",CHAR(160),EK$1))-FIND(CHAR(160),SUBSTITUTE($G74,\"{\",CHAR(160),EK$1))+1),\"\")","v":"{Motor HP}"},{"$f":"IFERROR(MID($G74,FIND(CHAR(160),SUBSTITUTE($G74,\"{\",CHAR(160),EL$1)),FIND(CHAR(160),SUBSTITUTE($G74,\"}\",CHAR(160),EL$1))-FIND(CHAR(160),SUBSTITUTE($G74,\"{\",CHAR(160),EL$1))+1),\"\")","v":"{Motor HP}"},{"$f":"IFERROR(MID($G74,FIND(CHAR(160),SUBSTITUTE($G74,\"{\",CHAR(160),EM$1)),FIND(CHAR(160),SUBSTITUTE($G74,\"}\",CHAR(160),EM$1))-FIND(CHAR(160),SUBSTITUTE($G74,\"{\",CHAR(160),EM$1))+1),\"\")","v":"{Motor HP}"},{"$f":"IFERROR(MID($G74,FIND(CHAR(160),SUBSTITUTE($G74,\"{\",CHAR(160),EN$1)),FIND(CHAR(160),SUBSTITUTE($G74,\"}\",CHAR(160),EN$1))-FIND(CHAR(160),SUBSTITUTE($G74,\"{\",CHAR(160),EN$1))+1),\"\")","v":"{Motor HP}"},{"$f":"IFERROR(MID($G74,FIND(CHAR(160),SUBSTITUTE($G74,\"{\",CHAR(160),EO$1)),FIND(CHAR(160),SUBSTITUTE($G74,\"}\",CHAR(160),EO$1))-FIND(CHAR(160),SUBSTITUTE($G74,\"{\",CHAR(160),EO$1))+1),\"\")","v":""},{"$f":"IFERROR(MID($G74,FIND(CHAR(160),SUBSTITUTE($G74,\"{\",CHAR(160),EP$1)),FIND(CHAR(160),SUBSTITUTE($G74,\"}\",CHAR(160),EP$1))-FIND(CHAR(160),SUBSTITUTE($G74,\"{\",CHAR(160),EP$1))+1),\"\")","v":""},{"$f":"IFERROR(MID($J74,FIND(CHAR(160),SUBSTITUTE($J74,\"{\",CHAR(160),EQ$1)),FIND(CHAR(160),SUBSTITUTE($J74,\"}\",CHAR(160),EQ$1))-FIND(CHAR(160),SUBSTITUTE($J74,\"{\",CHAR(160),EQ$1))+1),\"\")","v":"{Measure:Quantity}"},{"$f":"IFERROR(MID($J74,FIND(CHAR(160),SUBSTITUTE($J74,\"{\",CHAR(160),ER$1)),FIND(CHAR(160),SUBSTITUTE($J74,\"}\",CHAR(160),ER$1))-FIND(CHAR(160),SUBSTITUTE($J74,\"{\",CHAR(160),ER$1))+1),\"\")","v":"{Motor HP}"},{"$f":"IFERROR(MID($J74,FIND(CHAR(160),SUBSTITUTE($J74,\"{\",CHAR(160),ES$1)),FIND(CHAR(160),SUBSTITUTE($J74,\"}\",CHAR(160),ES$1))-FIND(CHAR(160),SUBSTITUTE($J74,\"{\",CHAR(160),ES$1))+1),\"\")","v":"{Motor HP}"},{"$f":"IFERROR(MID($J74,FIND(CHAR(160),SUBSTITUTE($J74,\"{\",CHAR(160),ET$1)),FIND(CHAR(160),SUBSTITUTE($J74,\"}\",CHAR(160),ET$1))-FIND(CHAR(160),SUBSTITUTE($J74,\"{\",CHAR(160),ET$1))+1),\"\")","v":"{Motor HP}"},{"$f":"IFERROR(MID($J74,FIND(CHAR(160),SUBSTITUTE($J74,\"{\",CHAR(160),EU$1)),FIND(CHAR(160),SUBSTITUTE($J74,\"}\",CHAR(160),EU$1))-FIND(CHAR(160),SUBSTITUTE($J74,\"{\",CHAR(160),EU$1))+1),\"\")","v":"{Motor HP}"},{"$f":"IFERROR(MID($J74,FIND(CHAR(160),SUBSTITUTE($J74,\"{\",CHAR(160),EV$1)),FIND(CHAR(160),SUBSTITUTE($J74,\"}\",CHAR(160),EV$1))-FIND(CHAR(160),SUBSTITUTE($J74,\"{\",CHAR(160),EV$1))+1),\"\")","v":"{Motor HP}"},{"$f":"IFERROR(MID($J74,FIND(CHAR(160),SUBSTITUTE($J74,\"{\",CHAR(160),EW$1)),FIND(CHAR(160),SUBSTITUTE($J74,\"}\",CHAR(160),EW$1))-FIND(CHAR(160),SUBSTITUTE($J74,\"{\",CHAR(160),EW$1))+1),\"\")","v":"{Motor HP}"},{"$f":"IFERROR(MID($J74,FIND(CHAR(160),SUBSTITUTE($J74,\"{\",CHAR(160),EX$1)),FIND(CHAR(160),SUBSTITUTE($J74,\"}\",CHAR(160),EX$1))-FIND(CHAR(160),SUBSTITUTE($J74,\"{\",CHAR(160),EX$1))+1),\"\")","v":"{Motor HP}"},{"$f":"IFERROR(MID($J74,FIND(CHAR(160),SUBSTITUTE($J74,\"{\",CHAR(160),EY$1)),FIND(CHAR(160),SUBSTITUTE($J74,\"}\",CHAR(160),EY$1))-FIND(CHAR(160),SUBSTITUTE($J74,\"{\",CHAR(160),EY$1))+1),\"\")","v":""},{"$f":"IFERROR(MID($J74,FIND(CHAR(160),SUBSTITUTE($J74,\"{\",CHAR(160),EZ$1)),FIND(CHAR(160),SUBSTITUTE($J74,\"}\",CHAR(160),EZ$1))-FIND(CHAR(160),SUBSTITUTE($J74,\"{\",CHAR(160),EZ$1))+1),\"\")","v":""},{"$f":"IFERROR(MID($J74,FIND(CHAR(160),SUBSTITUTE($J74,\"{\",CHAR(160),FA$1)),FIND(CHAR(160),SUBSTITUTE($J74,\"}\",CHAR(160),FA$1))-FIND(CHAR(160),SUBSTITUTE($J74,\"{\",CHAR(160),FA$1))+1),\"\")","v":"{Measure:Quantity}"},{"$f":"IFERROR(MID($J74,FIND(CHAR(160),SUBSTITUTE($J74,\"{\",CHAR(160),FB$1)),FIND(CHAR(160),SUBSTITUTE($J74,\"}\",CHAR(160),FB$1))-FIND(CHAR(160),SUBSTITUTE($J74,\"{\",CHAR(160),FB$1))+1),\"\")","v":"{Motor HP}"},{"$f":"IFERROR(MID($O74,FIND(CHAR(160),SUBSTITUTE($O74,\"{\",CHAR(160),FC$1)),FIND(CHAR(160),SUBSTITUTE($O74,\"}\",CHAR(160),FC$1))-FIND(CHAR(160),SUBSTITUTE($O74,\"{\",CHAR(160),FC$1))+1),\"\")","v":""},{"$f":"IFERROR(MID($O74,FIND(CHAR(160),SUBSTITUTE($O74,\"{\",CHAR(160),FD$1)),FIND(CHAR(160),SUBSTITUTE($O74,\"}\",CHAR(160),FD$1))-FIND(CHAR(160),SUBSTITUTE($O74,\"{\",CHAR(160),FD$1))+1),\"\")","v":""},{"$f":"IFERROR(MID($O74,FIND(CHAR(160),SUBSTITUTE($O74,\"{\",CHAR(160),FE$1)),FIND(CHAR(160),SUBSTITUTE($O74,\"}\",CHAR(160),FE$1))-FIND(CHAR(160),SUBSTITUTE($O74,\"{\",CHAR(160),FE$1))+1),\"\")","v":""},{"$f":"IFERROR(MID($O74,FIND(CHAR(160),SUBSTITUTE($O74,\"{\",CHAR(160),FF$1)),FIND(CHAR(160),SUBSTITUTE($O74,\"}\",CHAR(160),FF$1))-FIND(CHAR(160),SUBSTITUTE($O74,\"{\",CHAR(160),FF$1))+1),\"\")","v":""},{"$f":"IFERROR(MID($O74,FIND(CHAR(160),SUBSTITUTE($O74,\"{\",CHAR(160),FG$1)),FIND(CHAR(160),SUBSTITUTE($O74,\"}\",CHAR(160),FG$1))-FIND(CHAR(160),SUBSTITUTE($O74,\"{\",CHAR(160),FG$1))+1),\"\")","v":""},{"$f":"IFERROR(MID($O74,FIND(CHAR(160),SUBSTITUTE($O74,\"{\",CHAR(160),FH$1)),FIND(CHAR(160),SUBSTITUTE($O74,\"}\",CHAR(160),FH$1))-FIND(CHAR(160),SUBSTITUTE($O74,\"{\",CHAR(160),FH$1))+1),\"\")","v":""},{"$f":"IFERROR(MID($O74,FIND(CHAR(160),SUBSTITUTE($O74,\"{\",CHAR(160),FI$1)),FIND(CHAR(160),SUBSTITUTE($O74,\"}\",CHAR(160),FI$1))-FIND(CHAR(160),SUBSTITUTE($O74,\"{\",CHAR(160),FI$1))+1),\"\")","v":""},{"$f":"IFERROR(MID($O74,FIND(CHAR(160),SUBSTITUTE($O74,\"{\",CHAR(160),FJ$1)),FIND(CHAR(160),SUBSTITUTE($O74,\"}\",CHAR(160),FJ$1))-FIND(CHAR(160),SUBSTITUTE($O74,\"{\",CHAR(160),FJ$1))+1),\"\")","v":""},{"$f":"IFERROR(MID($O74,FIND(CHAR(160),SUBSTITUTE($O74,\"{\",CHAR(160),FK$1)),FIND(CHAR(160),SUBSTITUTE($O74,\"}\",CHAR(160),FK$1))-FIND(CHAR(160),SUBSTITUTE($O74,\"{\",CHAR(160),FK$1))+1),\"\")","v":"{Measure:Quantity}"},{"$f":"IFERROR(MID($O74,FIND(CHAR(160),SUBSTITUTE($O74,\"{\",CHAR(160),FL$1)),FIND(CHAR(160),SUBSTITUTE($O74,\"}\",CHAR(160),FL$1))-FIND(CHAR(160),SUBSTITUTE($O74,\"{\",CHAR(160),FL$1))+1),\"\")","v":"{Motor HP}"},{"$f":"IFERROR(MID($R74,FIND(CHAR(160),SUBSTITUTE($R74,\"{\",CHAR(160),FM$1)),FIND(CHAR(160),SUBSTITUTE($R74,\"}\",CHAR(160),FM$1))-FIND(CHAR(160),SUBSTITUTE($R74,\"{\",CHAR(160),FM$1))+1),\"\")","v":""},{"$f":"IFERROR(MID($R74,FIND(CHAR(160),SUBSTITUTE($R74,\"{\",CHAR(160),FN$1)),FIND(CHAR(160),SUBSTITUTE($R74,\"}\",CHAR(160),FN$1))-FIND(CHAR(160),SUBSTITUTE($R74,\"{\",CHAR(160),FN$1))+1),\"\")","v":""},{"$f":"IFERROR(MID($R74,FIND(CHAR(160),SUBSTITUTE($R74,\"{\",CHAR(160),FO$1)),FIND(CHAR(160),SUBSTITUTE($R74,\"}\",CHAR(160),FO$1))-FIND(CHAR(160),SUBSTITUTE($R74,\"{\",CHAR(160),FO$1))+1),\"\")","v":""},{"$f":"IFERROR(MID($R74,FIND(CHAR(160),SUBSTITUTE($R74,\"{\",CHAR(160),FP$1)),FIND(CHAR(160),SUBSTITUTE($R74,\"}\",CHAR(160),FP$1))-FIND(CHAR(160),SUBSTITUTE($R74,\"{\",CHAR(160),FP$1))+1),\"\")","v":""},{"$f":"IFERROR(MID($R74,FIND(CHAR(160),SUBSTITUTE($R74,\"{\",CHAR(160),FQ$1)),FIND(CHAR(160),SUBSTITUTE($R74,\"}\",CHAR(160),FQ$1))-FIND(CHAR(160),SUBSTITUTE($R74,\"{\",CHAR(160),FQ$1))+1),\"\")","v":""},{"$f":"IFERROR(MID($R74,FIND(CHAR(160),SUBSTITUTE($R74,\"{\",CHAR(160),FR$1)),FIND(CHAR(160),SUBSTITUTE($R74,\"}\",CHAR(160),FR$1))-FIND(CHAR(160),SUBSTITUTE($R74,\"{\",CHAR(160),FR$1))+1),\"\")","v":""},{"$f":"IFERROR(MID($R74,FIND(CHAR(160),SUBSTITUTE($R74,\"{\",CHAR(160),FS$1)),FIND(CHAR(160),SUBSTITUTE($R74,\"}\",CHAR(160),FS$1))-FIND(CHAR(160),SUBSTITUTE($R74,\"{\",CHAR(160),FS$1))+1),\"\")","v":""},{"$f":"IFERROR(MID($R74,FIND(CHAR(160),SUBSTITUTE($R74,\"{\",CHAR(160),FT$1)),FIND(CHAR(160),SUBSTITUTE($R74,\"}\",CHAR(160),FT$1))-FIND(CHAR(160),SUBSTITUTE($R74,\"{\",CHAR(160),FT$1))+1),\"\")","v":""},{"$f":"IFERROR(MID($R74,FIND(CHAR(160),SUBSTITUTE($R74,\"{\",CHAR(160),FU$1)),FIND(CHAR(160),SUBSTITUTE($R74,\"}\",CHAR(160),FU$1))-FIND(CHAR(160),SUBSTITUTE($R74,\"{\",CHAR(160),FU$1))+1),\"\")","v":"{Measure:Quantity}"},{"$f":"IFERROR(MID($R74,FIND(CHAR(160),SUBSTITUTE($R74,\"{\",CHAR(160),FV$1)),FIND(CHAR(160),SUBSTITUTE($R74,\"}\",CHAR(160),FV$1))-FIND(CHAR(160),SUBSTITUTE($R74,\"{\",CHAR(160),FV$1))+1),\"\")","v":"{Motor HP}"},{"$f":"IFERROR(MID($U74,FIND(CHAR(160),SUBSTITUTE($U74,\"{\",CHAR(160),FW$1)),FIND(CHAR(160),SUBSTITUTE($U74,\"}\",CHAR(160),FW$1))-FIND(CHAR(160),SUBSTITUTE($U74,\"{\",CHAR(160),FW$1))+1),\"\")","v":"{Motor HP}"},{"$f":"IFERROR(MID($U74,FIND(CHAR(160),SUBSTITUTE($U74,\"{\",CHAR(160),FX$1)),FIND(CHAR(160),SUBSTITUTE($U74,\"}\",CHAR(160),FX$1))-FIND(CHAR(160),SUBSTITUTE($U74,\"{\",CHAR(160),FX$1))+1),\"\")","v":""},{"$f":"IFERROR(MID($U74,FIND(CHAR(160),SUBSTITUTE($U74,\"{\",CHAR(160),FY$1)),FIND(CHAR(160),SUBSTITUTE($U74,\"}\",CHAR(160),FY$1))-FIND(CHAR(160),SUBSTITUTE($U74,\"{\",CHAR(160),FY$1))+1),\"\")","v":""},{"$f":"IFERROR(MID($U74,FIND(CHAR(160),SUBSTITUTE($U74,\"{\",CHAR(160),FZ$1)),FIND(CHAR(160),SUBSTITUTE($U74,\"}\",CHAR(160),FZ$1))-FIND(CHAR(160),SUBSTITUTE($U74,\"{\",CHAR(160),FZ$1))+1),\"\")","v":""},{"$f":"IFERROR(MID($U74,FIND(CHAR(160),SUBSTITUTE($U74,\"{\",CHAR(160),GA$1)),FIND(CHAR(160),SUBSTITUTE($U74,\"}\",CHAR(160),GA$1))-FIND(CHAR(160),SUBSTITUTE($U74,\"{\",CHAR(160),GA$1))+1),\"\")","v":""},{"$f":"IFERROR(MID($U74,FIND(CHAR(160),SUBSTITUTE($U74,\"{\",CHAR(160),GB$1)),FIND(CHAR(160),SUBSTITUTE($U74,\"}\",CHAR(160),GB$1))-FIND(CHAR(160),SUBSTITUTE($U74,\"{\",CHAR(160),GB$1))+1),\"\")","v":""},{"$f":"IFERROR(MID($U74,FIND(CHAR(160),SUBSTITUTE($U74,\"{\",CHAR(160),GC$1)),FIND(CHAR(160),SUBSTITUTE($U74,\"}\",CHAR(160),GC$1))-FIND(CHAR(160),SUBSTITUTE($U74,\"{\",CHAR(160),GC$1))+1),\"\")","v":""},{"$f":"IFERROR(MID($U74,FIND(CHAR(160),SUBSTITUTE($U74,\"{\",CHAR(160),GD$1)),FIND(CHAR(160),SUBSTITUTE($U74,\"}\",CHAR(160),GD$1))-FIND(CHAR(160),SUBSTITUTE($U74,\"{\",CHAR(160),GD$1))+1),\"\")","v":""},{"$f":"IFERROR(MID($U74,FIND(CHAR(160),SUBSTITUTE($U74,\"{\",CHAR(160),GE$1)),FIND(CHAR(160),SUBSTITUTE($U74,\"}\",CHAR(160),GE$1))-FIND(CHAR(160),SUBSTITUTE($U74,\"{\",CHAR(160),GE$1))+1),\"\")","v":"{Measure:Quantity}"},{"$f":"IFERROR(MID($U74,FIND(CHAR(160),SUBSTITUTE($U74,\"{\",CHAR(160),GF$1)),FIND(CHAR(160),SUBSTITUTE($U74,\"}\",CHAR(160),GF$1))-FIND(CHAR(160),SUBSTITUTE($U74,\"{\",CHAR(160),GF$1))+1),\"\")","v":"{Factor:WinterCF}"},{"$f":"IFERROR(MID($V74,FIND(CHAR(160),SUBSTITUTE($V74,\"{\",CHAR(160),GG$1)),FIND(CHAR(160),SUBSTITUTE($V74,\"}\",CHAR(160),GG$1))-FIND(CHAR(160),SUBSTITUTE($V74,\"{\",CHAR(160),GG$1))+1),\"\")","v":"{Motor HP}"},{"$f":"IFERROR(MID($V74,FIND(CHAR(160),SUBSTITUTE($V74,\"{\",CHAR(160),GH$1)),FIND(CHAR(160),SUBSTITUTE($V74,\"}\",CHAR(160),GH$1))-FIND(CHAR(160),SUBSTITUTE($V74,\"{\",CHAR(160),GH$1))+1),\"\")","v":""},{"$f":"IFERROR(MID($V74,FIND(CHAR(160),SUBSTITUTE($V74,\"{\",CHAR(160),GI$1)),FIND(CHAR(160),SUBSTITUTE($V74,\"}\",CHAR(160),GI$1))-FIND(CHAR(160),SUBSTITUTE($V74,\"{\",CHAR(160),GI$1))+1),\"\")","v":""},{"$f":"IFERROR(MID($V74,FIND(CHAR(160),SUBSTITUTE($V74,\"{\",CHAR(160),GJ$1)),FIND(CHAR(160),SUBSTITUTE($V74,\"}\",CHAR(160),GJ$1))-FIND(CHAR(160),SUBSTITUTE($V74,\"{\",CHAR(160),GJ$1))+1),\"\")","v":""},{"$f":"IFERROR(MID($V74,FIND(CHAR(160),SUBSTITUTE($V74,\"{\",CHAR(160),GK$1)),FIND(CHAR(160),SUBSTITUTE($V74,\"}\",CHAR(160),GK$1))-FIND(CHAR(160),SUBSTITUTE($V74,\"{\",CHAR(160),GK$1))+1),\"\")","v":""},{"$f":"IFERROR(MID($V74,FIND(CHAR(160),SUBSTITUTE($V74,\"{\",CHAR(160),GL$1)),FIND(CHAR(160),SUBSTITUTE($V74,\"}\",CHAR(160),GL$1))-FIND(CHAR(160),SUBSTITUTE($V74,\"{\",CHAR(160),GL$1))+1),\"\")","v":""},{"$f":"IFERROR(MID($V74,FIND(CHAR(160),SUBSTITUTE($V74,\"{\",CHAR(160),GM$1)),FIND(CHAR(160),SUBSTITUTE($V74,\"}\",CHAR(160),GM$1))-FIND(CHAR(160),SUBSTITUTE($V74,\"{\",CHAR(160),GM$1))+1),\"\")","v":""},{"$f":"IFERROR(MID($V74,FIND(CHAR(160),SUBSTITUTE($V74,\"{\",CHAR(160),GN$1)),FIND(CHAR(160),SUBSTITUTE($V74,\"}\",CHAR(160),GN$1))-FIND(CHAR(160),SUBSTITUTE($V74,\"{\",CHAR(160),GN$1))+1),\"\")","v":""},{"$f":"IFERROR(MID($V74,FIND(CHAR(160),SUBSTITUTE($V74,\"{\",CHAR(160),GO$1)),FIND(CHAR(160),SUBSTITUTE($V74,\"}\",CHAR(160),GO$1))-FIND(CHAR(160),SUBSTITUTE($V74,\"{\",CHAR(160),GO$1))+1),\"\")","v":"{Measure:Quantity}"},{"$f":"IFERROR(MID($V74,FIND(CHAR(160),SUBSTITUTE($V74,\"{\",CHAR(160),GP$1)),FIND(CHAR(160),SUBSTITUTE($V74,\"}\",CHAR(160),GP$1))-FIND(CHAR(160),SUBSTITUTE($V74,\"{\",CHAR(160),GP$1))+1),\"\")","v":"{Factor:SummerCF}"},{"$f":"IFERROR(MID($W74,FIND(CHAR(160),SUBSTITUTE($W74,\"{\",CHAR(160),GQ$1)),FIND(CHAR(160),SUBSTITUTE($W74,\"}\",CHAR(160),GQ$1))-FIND(CHAR(160),SUBSTITUTE($W74,\"{\",CHAR(160),GQ$1))+1),\"\")","v":""},{"$f":"IFERROR(MID($W74,FIND(CHAR(160),SUBSTITUTE($W74,\"{\",CHAR(160),GR$1)),FIND(CHAR(160),SUBSTITUTE($W74,\"}\",CHAR(160),GR$1))-FIND(CHAR(160),SUBSTITUTE($W74,\"{\",CHAR(160),GR$1))+1),\"\")","v":""},{"$f":"IFERROR(MID($W74,FIND(CHAR(160),SUBSTITUTE($W74,\"{\",CHAR(160),GS$1)),FIND(CHAR(160),SUBSTITUTE($W74,\"}\",CHAR(160),GS$1))-FIND(CHAR(160),SUBSTITUTE($W74,\"{\",CHAR(160),GS$1))+1),\"\")","v":""},{"$f":"IFERROR(MID($W74,FIND(CHAR(160),SUBSTITUTE($W74,\"{\",CHAR(160),GT$1)),FIND(CHAR(160),SUBSTITUTE($W74,\"}\",CHAR(160),GT$1))-FIND(CHAR(160),SUBSTITUTE($W74,\"{\",CHAR(160),GT$1))+1),\"\")","v":""},{"$f":"IFERROR(MID($W74,FIND(CHAR(160),SUBSTITUTE($W74,\"{\",CHAR(160),GU$1)),FIND(CHAR(160),SUBSTITUTE($W74,\"}\",CHAR(160),GU$1))-FIND(CHAR(160),SUBSTITUTE($W74,\"{\",CHAR(160),GU$1))+1),\"\")","v":""},{"$f":"IFERROR(MID($W74,FIND(CHAR(160),SUBSTITUTE($W74,\"{\",CHAR(160),GV$1)),FIND(CHAR(160),SUBSTITUTE($W74,\"}\",CHAR(160),GV$1))-FIND(CHAR(160),SUBSTITUTE($W74,\"{\",CHAR(160),GV$1))+1),\"\")","v":""},{"$f":"IFERROR(MID($W74,FIND(CHAR(160),SUBSTITUTE($W74,\"{\",CHAR(160),GW$1)),FIND(CHAR(160),SUBSTITUTE($W74,\"}\",CHAR(160),GW$1))-FIND(CHAR(160),SUBSTITUTE($W74,\"{\",CHAR(160),GW$1))+1),\"\")","v":""},{"$f":"IFERROR(MID($W74,FIND(CHAR(160),SUBSTITUTE($W74,\"{\",CHAR(160),GX$1)),FIND(CHAR(160),SUBSTITUTE($W74,\"}\",CHAR(160),GX$1))-FIND(CHAR(160),SUBSTITUTE($W74,\"{\",CHAR(160),GX$1))+1),\"\")","v":""},{"$f":"IFERROR(MID($W74,FIND(CHAR(160),SUBSTITUTE($W74,\"{\",CHAR(160),GY$1)),FIND(CHAR(160),SUBSTITUTE($W74,\"}\",CHAR(160),GY$1))-FIND(CHAR(160),SUBSTITUTE($W74,\"{\",CHAR(160),GY$1))+1),\"\")","v":""},{"$f":"IFERROR(MID($W74,FIND(CHAR(160),SUBSTITUTE($W74,\"{\",CHAR(160),GZ$1)),FIND(CHAR(160),SUBSTITUTE($W74,\"}\",CHAR(160),GZ$1))-FIND(CHAR(160),SUBSTITUTE($W74,\"{\",CHAR(160),GZ$1))+1),\"\")","v":""},{"$f":"IFERROR(MID($X74,FIND(CHAR(160),SUBSTITUTE($X74,\"{\",CHAR(160),HA$1)),FIND(CHAR(160),SUBSTITUTE($X74,\"}\",CHAR(160),HA$1))-FIND(CHAR(160),SUBSTITUTE($X74,\"{\",CHAR(160),HA$1))+1),\"\")","v":""},{"$f":"IFERROR(MID($X74,FIND(CHAR(160),SUBSTITUTE($X74,\"{\",CHAR(160),HB$1)),FIND(CHAR(160),SUBSTITUTE($X74,\"}\",CHAR(160),HB$1))-FIND(CHAR(160),SUBSTITUTE($X74,\"{\",CHAR(160),HB$1))+1),\"\")","v":""},{"$f":"IFERROR(MID($X74,FIND(CHAR(160),SUBSTITUTE($X74,\"{\",CHAR(160),HC$1)),FIND(CHAR(160),SUBSTITUTE($X74,\"}\",CHAR(160),HC$1))-FIND(CHAR(160),SUBSTITUTE($X74,\"{\",CHAR(160),HC$1))+1),\"\")","v":""},{"$f":"IFERROR(MID($X74,FIND(CHAR(160),SUBSTITUTE($X74,\"{\",CHAR(160),HD$1)),FIND(CHAR(160),SUBSTITUTE($X74,\"}\",CHAR(160),HD$1))-FIND(CHAR(160),SUBSTITUTE($X74,\"{\",CHAR(160),HD$1))+1),\"\")","v":""},{"$f":"IFERROR(MID($X74,FIND(CHAR(160),SUBSTITUTE($X74,\"{\",CHAR(160),HE$1)),FIND(CHAR(160),SUBSTITUTE($X74,\"}\",CHAR(160),HE$1))-FIND(CHAR(160),SUBSTITUTE($X74,\"{\",CHAR(160),HE$1))+1),\"\")","v":""},{"$f":"IFERROR(MID($X74,FIND(CHAR(160),SUBSTITUTE($X74,\"{\",CHAR(160),HF$1)),FIND(CHAR(160),SUBSTITUTE($X74,\"}\",CHAR(160),HF$1))-FIND(CHAR(160),SUBSTITUTE($X74,\"{\",CHAR(160),HF$1))+1),\"\")","v":""},{"$f":"IFERROR(MID($X74,FIND(CHAR(160),SUBSTITUTE($X74,\"{\",CHAR(160),HG$1)),FIND(CHAR(160),SUBSTITUTE($X74,\"}\",CHAR(160),HG$1))-FIND(CHAR(160),SUBSTITUTE($X74,\"{\",CHAR(160),HG$1))+1),\"\")","v":""},{"$f":"IFERROR(MID($X74,FIND(CHAR(160),SUBSTITUTE($X74,\"{\",CHAR(160),HH$1)),FIND(CHAR(160),SUBSTITUTE($X74,\"}\",CHAR(160),HH$1))-FIND(CHAR(160),SUBSTITUTE($X74,\"{\",CHAR(160),HH$1))+1),\"\")","v":""},{"$f":"IFERROR(MID($X74,FIND(CHAR(160),SUBSTITUTE($X74,\"{\",CHAR(160),HI$1)),FIND(CHAR(160),SUBSTITUTE($X74,\"}\",CHAR(160),HI$1))-FIND(CHAR(160),SUBSTITUTE($X74,\"{\",CHAR(160),HI$1))+1),\"\")","v":""},{"$f":"IFERROR(MID($X74,FIND(CHAR(160),SUBSTITUTE($X74,\"{\",CHAR(160),HJ$1)),FIND(CHAR(160),SUBSTITUTE($X74,\"}\",CHAR(160),HJ$1))-FIND(CHAR(160),SUBSTITUTE($X74,\"{\",CHAR(160),HJ$1))+1),\"\")","v":""},{"$f":"IFERROR(MID($Y74,FIND(CHAR(160),SUBSTITUTE($Y74,\"{\",CHAR(160),HK$1)),FIND(CHAR(160),SUBSTITUTE($Y74,\"}\",CHAR(160),HK$1))-FIND(CHAR(160),SUBSTITUTE($Y74,\"{\",CHAR(160),HK$1))+1),\"\")","v":""},{"$f":"IFERROR(MID($Y74,FIND(CHAR(160),SUBSTITUTE($Y74,\"{\",CHAR(160),HL$1)),FIND(CHAR(160),SUBSTITUTE($Y74,\"}\",CHAR(160),HL$1))-FIND(CHAR(160),SUBSTITUTE($Y74,\"{\",CHAR(160),HL$1))+1),\"\")","v":""},{"$f":"IFERROR(MID($Y74,FIND(CHAR(160),SUBSTITUTE($Y74,\"{\",CHAR(160),HM$1)),FIND(CHAR(160),SUBSTITUTE($Y74,\"}\",CHAR(160),HM$1))-FIND(CHAR(160),SUBSTITUTE($Y74,\"{\",CHAR(160),HM$1))+1),\"\")","v":""},{"$f":"IFERROR(MID($Y74,FIND(CHAR(160),SUBSTITUTE($Y74,\"{\",CHAR(160),HN$1)),FIND(CHAR(160),SUBSTITUTE($Y74,\"}\",CHAR(160),HN$1))-FIND(CHAR(160),SUBSTITUTE($Y74,\"{\",CHAR(160),HN$1))+1),\"\")","v":""},{"$f":"IFERROR(MID($Y74,FIND(CHAR(160),SUBSTITUTE($Y74,\"{\",CHAR(160),HO$1)),FIND(CHAR(160),SUBSTITUTE($Y74,\"}\",CHAR(160),HO$1))-FIND(CHAR(160),SUBSTITUTE($Y74,\"{\",CHAR(160),HO$1))+1),\"\")","v":""},{"$f":"IFERROR(MID($Y74,FIND(CHAR(160),SUBSTITUTE($Y74,\"{\",CHAR(160),HP$1)),FIND(CHAR(160),SUBSTITUTE($Y74,\"}\",CHAR(160),HP$1))-FIND(CHAR(160),SUBSTITUTE($Y74,\"{\",CHAR(160),HP$1))+1),\"\")","v":""},{"$f":"IFERROR(MID($Y74,FIND(CHAR(160),SUBSTITUTE($Y74,\"{\",CHAR(160),HQ$1)),FIND(CHAR(160),SUBSTITUTE($Y74,\"}\",CHAR(160),HQ$1))-FIND(CHAR(160),SUBSTITUTE($Y74,\"{\",CHAR(160),HQ$1))+1),\"\")","v":""},{"$f":"IFERROR(MID($Y74,FIND(CHAR(160),SUBSTITUTE($Y74,\"{\",CHAR(160),HR$1)),FIND(CHAR(160),SUBSTITUTE($Y74,\"}\",CHAR(160),HR$1))-FIND(CHAR(160),SUBSTITUTE($Y74,\"{\",CHAR(160),HR$1))+1),\"\")","v":""},{"$f":"IFERROR(MID($Y74,FIND(CHAR(160),SUBSTITUTE($Y74,\"{\",CHAR(160),HS$1)),FIND(CHAR(160),SUBSTITUTE($Y74,\"}\",CHAR(160),HS$1))-FIND(CHAR(160),SUBSTITUTE($Y74,\"{\",CHAR(160),HS$1))+1),\"\")","v":""},{"$f":"IFERROR(MID($Y74,FIND(CHAR(160),SUBSTITUTE($Y74,\"{\",CHAR(160),HT$1)),FIND(CHAR(160),SUBSTITUTE($Y74,\"}\",CHAR(160),HT$1))-FIND(CHAR(160),SUBSTITUTE($Y74,\"{\",CHAR(160),HT$1))+1),\"\")","v":""},{"$f":"IFERROR(MID($Z74,FIND(CHAR(160),SUBSTITUTE($Z74,\"{\",CHAR(160),HU$1)),FIND(CHAR(160),SUBSTITUTE($Z74,\"}\",CHAR(160),HU$1))-FIND(CHAR(160),SUBSTITUTE($Z74,\"{\",CHAR(160),HU$1))+1),\"\")","v":""},{"$f":"IFERROR(MID($Z74,FIND(CHAR(160),SUBSTITUTE($Z74,\"{\",CHAR(160),HV$1)),FIND(CHAR(160),SUBSTITUTE($Z74,\"}\",CHAR(160),HV$1))-FIND(CHAR(160),SUBSTITUTE($Z74,\"{\",CHAR(160),HV$1))+1),\"\")","v":""},{"$f":"IFERROR(MID($Z74,FIND(CHAR(160),SUBSTITUTE($Z74,\"{\",CHAR(160),HW$1)),FIND(CHAR(160),SUBSTITUTE($Z74,\"}\",CHAR(160),HW$1))-FIND(CHAR(160),SUBSTITUTE($Z74,\"{\",CHAR(160),HW$1))+1),\"\")","v":""},{"$f":"IFERROR(MID($Z74,FIND(CHAR(160),SUBSTITUTE($Z74,\"{\",CHAR(160),HX$1)),FIND(CHAR(160),SUBSTITUTE($Z74,\"}\",CHAR(160),HX$1))-FIND(CHAR(160),SUBSTITUTE($Z74,\"{\",CHAR(160),HX$1))+1),\"\")","v":""},{"$f":"IFERROR(MID($Z74,FIND(CHAR(160),SUBSTITUTE($Z74,\"{\",CHAR(160),HY$1)),FIND(CHAR(160),SUBSTITUTE($Z74,\"}\",CHAR(160),HY$1))-FIND(CHAR(160),SUBSTITUTE($Z74,\"{\",CHAR(160),HY$1))+1),\"\")","v":""},{"$f":"IFERROR(MID($Z74,FIND(CHAR(160),SUBSTITUTE($Z74,\"{\",CHAR(160),HZ$1)),FIND(CHAR(160),SUBSTITUTE($Z74,\"}\",CHAR(160),HZ$1))-FIND(CHAR(160),SUBSTITUTE($Z74,\"{\",CHAR(160),HZ$1))+1),\"\")","v":""},{"$f":"IFERROR(MID($Z74,FIND(CHAR(160),SUBSTITUTE($Z74,\"{\",CHAR(160),IA$1)),FIND(CHAR(160),SUBSTITUTE($Z74,\"}\",CHAR(160),IA$1))-FIND(CHAR(160),SUBSTITUTE($Z74,\"{\",CHAR(160),IA$1))+1),\"\")","v":""},{"$f":"IFERROR(MID($Z74,FIND(CHAR(160),SUBSTITUTE($Z74,\"{\",CHAR(160),IB$1)),FIND(CHAR(160),SUBSTITUTE($Z74,\"}\",CHAR(160),IB$1))-FIND(CHAR(160),SUBSTITUTE($Z74,\"{\",CHAR(160),IB$1))+1),\"\")","v":""},{"$f":"IFERROR(MID($Z74,FIND(CHAR(160),SUBSTITUTE($Z74,\"{\",CHAR(160),IC$1)),FIND(CHAR(160),SUBSTITUTE($Z74,\"}\",CHAR(160),IC$1))-FIND(CHAR(160),SUBSTITUTE($Z74,\"{\",CHAR(160),IC$1))+1),\"\")","v":""},{"$f":"IFERROR(MID($Z74,FIND(CHAR(160),SUBSTITUTE($Z74,\"{\",CHAR(160),ID$1)),FIND(CHAR(160),SUBSTITUTE($Z74,\"}\",CHAR(160),ID$1))-FIND(CHAR(160),SUBSTITUTE($Z74,\"{\",CHAR(160),ID$1))+1),\"\")","v":""},{"$f":"IFERROR(MID($AA74,FIND(CHAR(160),SUBSTITUTE($AA74,\"{\",CHAR(160),IE$1)),FIND(CHAR(160),SUBSTITUTE($AA74,\"}\",CHAR(160),IE$1))-FIND(CHAR(160),SUBSTITUTE($AA74,\"{\",CHAR(160),IE$1))+1),\"\")","v":""},{"$f":"IFERROR(MID($AA74,FIND(CHAR(160),SUBSTITUTE($AA74,\"{\",CHAR(160),IF$1)),FIND(CHAR(160),SUBSTITUTE($AA74,\"}\",CHAR(160),IF$1))-FIND(CHAR(160),SUBSTITUTE($AA74,\"{\",CHAR(160),IF$1))+1),\"\")","v":""},{"$f":"IFERROR(MID($AA74,FIND(CHAR(160),SUBSTITUTE($AA74,\"{\",CHAR(160),IG$1)),FIND(CHAR(160),SUBSTITUTE($AA74,\"}\",CHAR(160),IG$1))-FIND(CHAR(160),SUBSTITUTE($AA74,\"{\",CHAR(160),IG$1))+1),\"\")","v":""},{"$f":"IFERROR(MID($AA74,FIND(CHAR(160),SUBSTITUTE($AA74,\"{\",CHAR(160),IH$1)),FIND(CHAR(160),SUBSTITUTE($AA74,\"}\",CHAR(160),IH$1))-FIND(CHAR(160),SUBSTITUTE($AA74,\"{\",CHAR(160),IH$1))+1),\"\")","v":""},{"$f":"IFERROR(MID($AA74,FIND(CHAR(160),SUBSTITUTE($AA74,\"{\",CHAR(160),II$1)),FIND(CHAR(160),SUBSTITUTE($AA74,\"}\",CHAR(160),II$1))-FIND(CHAR(160),SUBSTITUTE($AA74,\"{\",CHAR(160),II$1))+1),\"\")","v":""},{"$f":"IFERROR(MID($AA74,FIND(CHAR(160),SUBSTITUTE($AA74,\"{\",CHAR(160),IJ$1)),FIND(CHAR(160),SUBSTITUTE($AA74,\"}\",CHAR(160),IJ$1))-FIND(CHAR(160),SUBSTITUTE($AA74,\"{\",CHAR(160),IJ$1))+1),\"\")","v":""},{"$f":"IFERROR(MID($AA74,FIND(CHAR(160),SUBSTITUTE($AA74,\"{\",CHAR(160),IK$1)),FIND(CHAR(160),SUBSTITUTE($AA74,\"}\",CHAR(160),IK$1))-FIND(CHAR(160),SUBSTITUTE($AA74,\"{\",CHAR(160),IK$1))+1),\"\")","v":""},{"$f":"IFERROR(MID($AA74,FIND(CHAR(160),SUBSTITUTE($AA74,\"{\",CHAR(160),IL$1)),FIND(CHAR(160),SUBSTITUTE($AA74,\"}\",CHAR(160),IL$1))-FIND(CHAR(160),SUBSTITUTE($AA74,\"{\",CHAR(160),IL$1))+1),\"\")","v":""},{"$f":"IFERROR(MID($AA74,FIND(CHAR(160),SUBSTITUTE($AA74,\"{\",CHAR(160),IM$1)),FIND(CHAR(160),SUBSTITUTE($AA74,\"}\",CHAR(160),IM$1))-FIND(CHAR(160),SUBSTITUTE($AA74,\"{\",CHAR(160),IM$1))+1),\"\")","v":""},{"$f":"IFERROR(MID($AA74,FIND(CHAR(160),SUBSTITUTE($AA74,\"{\",CHAR(160),IN$1)),FIND(CHAR(160),SUBSTITUTE($AA74,\"}\",CHAR(160),IN$1))-FIND(CHAR(160),SUBSTITUTE($AA74,\"{\",CHAR(160),IN$1))+1),\"\")","v":""},{"$f":"IFERROR(MID($AB74,FIND(CHAR(160),SUBSTITUTE($AB74,\"{\",CHAR(160),IO$1)),FIND(CHAR(160),SUBSTITUTE($AB74,\"}\",CHAR(160),IO$1))-FIND(CHAR(160),SUBSTITUTE($AB74,\"{\",CHAR(160),IO$1))+1),\"\")","v":""},{"$f":"IFERROR(MID($AB74,FIND(CHAR(160),SUBSTITUTE($AB74,\"{\",CHAR(160),IP$1)),FIND(CHAR(160),SUBSTITUTE($AB74,\"}\",CHAR(160),IP$1))-FIND(CHAR(160),SUBSTITUTE($AB74,\"{\",CHAR(160),IP$1))+1),\"\")","v":""},{"$f":"IFERROR(MID($AB74,FIND(CHAR(160),SUBSTITUTE($AB74,\"{\",CHAR(160),IQ$1)),FIND(CHAR(160),SUBSTITUTE($AB74,\"}\",CHAR(160),IQ$1))-FIND(CHAR(160),SUBSTITUTE($AB74,\"{\",CHAR(160),IQ$1))+1),\"\")","v":""},{"$f":"IFERROR(MID($AB74,FIND(CHAR(160),SUBSTITUTE($AB74,\"{\",CHAR(160),IR$1)),FIND(CHAR(160),SUBSTITUTE($AB74,\"}\",CHAR(160),IR$1))-FIND(CHAR(160),SUBSTITUTE($AB74,\"{\",CHAR(160),IR$1))+1),\"\")","v":""},{"$f":"IFERROR(MID($AB74,FIND(CHAR(160),SUBSTITUTE($AB74,\"{\",CHAR(160),IS$1)),FIND(CHAR(160),SUBSTITUTE($AB74,\"}\",CHAR(160),IS$1))-FIND(CHAR(160),SUBSTITUTE($AB74,\"{\",CHAR(160),IS$1))+1),\"\")","v":""},{"$f":"IFERROR(MID($AB74,FIND(CHAR(160),SUBSTITUTE($AB74,\"{\",CHAR(160),IT$1)),FIND(CHAR(160),SUBSTITUTE($AB74,\"}\",CHAR(160),IT$1))-FIND(CHAR(160),SUBSTITUTE($AB74,\"{\",CHAR(160),IT$1))+1),\"\")","v":""},{"$f":"IFERROR(MID($AB74,FIND(CHAR(160),SUBSTITUTE($AB74,\"{\",CHAR(160),IU$1)),FIND(CHAR(160),SUBSTITUTE($AB74,\"}\",CHAR(160),IU$1))-FIND(CHAR(160),SUBSTITUTE($AB74,\"{\",CHAR(160),IU$1))+1),\"\")","v":""},{"$f":"IFERROR(MID($AB74,FIND(CHAR(160),SUBSTITUTE($AB74,\"{\",CHAR(160),IV$1)),FIND(CHAR(160),SUBSTITUTE($AB74,\"}\",CHAR(160),IV$1))-FIND(CHAR(160),SUBSTITUTE($AB74,\"{\",CHAR(160),IV$1))+1),\"\")","v":""},{"$f":"IFERROR(MID($AB74,FIND(CHAR(160),SUBSTITUTE($AB74,\"{\",CHAR(160),IW$1)),FIND(CHAR(160),SUBSTITUTE($AB74,\"}\",CHAR(160),IW$1))-FIND(CHAR(160),SUBSTITUTE($AB74,\"{\",CHAR(160),IW$1))+1),\"\")","v":""},{"$f":"IFERROR(MID($AB74,FIND(CHAR(160),SUBSTITUTE($AB74,\"{\",CHAR(160),IX$1)),FIND(CHAR(160),SUBSTITUTE($AB74,\"}\",CHAR(160),IX$1))-FIND(CHAR(160),SUBSTITUTE($AB74,\"{\",CHAR(160),IX$1))+1),\"\")","v":""},null,{"$f":"10-COUNTIF(DU74:ED74,\"\")","v":2}]
["C&I HVAC - Natural Gas","Energy Recovery Ventilator","ERV","2021-07-01","2022-06-30","Calculated","{Measure:Quantity}*{Ventilation Air Rate}*3.75",0,"Calculated","{Measure:Quantity}*{Ventilation Air Rate}*if({Eff Heating} < 0.65, 2.25, if({Eff Heating} < 0.75, 2.50, if({Eff Heating} < 0.85, 2.75, 3.00)))",0,"2021-05-25","2022-06-30","Calculated","{Measure:Quantity} *(0.0075*60*{Ventilation Air Rate}*{Eff Cooling}*(31.1-28.3)/{SEER}/1000*932*.77-{Ventilation Air Rate}*{Calculated Pressure Drop}/((33013/5.202)*0.67*0.70)*0.746*8760*.77+if({Heating Fuel Type} >=6, 1.08*{Ventilation Air Rate}*(68-36.5)*{Eff Heating}*6492*.77/1000000/{AFUE}/0.003412,0))",null,null,"{Measure:Quantity} *(0.0075*60*{Ventilation Air Rate}*{Eff Cooling}*(31.1-28.3)/{SEER}/1000-{Ventilation Air Rate}*{Calculated Pressure Drop}/((33013/5.202)*0.67*0.70)*0.746)",null,null,"{Measure:Quantity}*-{Ventilation Air Rate}*{Calculated Pressure Drop}/((33013/5.202)*0.67*0.70)*0.746*{Factor:WinterCF}","{Measure:Quantity} *(0.0075*60*{Ventilation Air Rate}*{Eff Cooling}*(31.1-28.3)/{SEER}/1000-{Ventilation Air Rate}*{Calculated Pressure Drop}/((33013/5.202)*0.67*0.70)*0.746)*{Factor:SummerCF}","{Measure:Quantity}*if({Heating Fuel Type} =1, 1.08*{Ventilation Air Rate}*(68-36.5)*{Eff Heating}*6492*.77/1000000/{AFUE},0)*10","{Measure:Quantity}*if({Heating Fuel Type} =2, 1.08*{Ventilation Air Rate}*(68-36.5)*{Eff Heating}*6492*.77/1000000/{AFUE},0)","{Measure:Quantity}*if({Heating Fuel Type} =3, 1.08*{Ventilation Air Rate}*(68-36.5)*{Eff Heating}*6492*.77/1000000/{AFUE},0)","{Measure:Quantity}*if({Heating Fuel Type} =4, 1.08*{Ventilation Air Rate}*(68-36.5)*{Eff Heating}*6492*.77/1000000/{AFUE},0)","{Measure:Quantity}*if({Heating Fuel Type} =5, 1.08*{Ventilation Air Rate}*(68-36.5)*{Eff Heating}*6492*.77/1000000/{AFUE},0)",null,"2021-05-25","2022-06-30",15,0.7,1,0.40939999999999999,0.25690000000000002,0.2084,0.12529999999999999,1,1,1,0.25,0,null,{"$f":"DU75","v":"{Measure:Quantity}"},1,{"$f":"DV75","v":"{Ventilation Air Rate}"},700,{"$f":"DW75","v":"{Eff Heating}"},0.68,{"$f":"DX75","v":"{Eff Cooling}"},0.68,{"$f":"DY75","v":"{SEER}"},18,{"$f":"DZ75","v":"{Calculated Pressure Drop}"},1,{"$f":"EA75","v":"{Heating Fuel Type}"},1,{"$f":"EB75","v":"{AFUE}"},0.95,{"$f":"EC75","v":""},null,{"$f":"ED75","v":""},null,{"$f":"AS75 *(0.0075*60*AU75*AY75*(31.1-28.3)/BA75/1000*932*0.77-AU75*BC75/((33013/5.202)*0.67*0.7)*0.746*8760*0.77+IF(BE75 >=6, 1.08*AU75*(68-36.5)*AW75*6492*0.77/1000000/BG75/0.003412,0))","v":-1159.522697625702},0,0,{"$f":"AS75 *(0.0075*60*AU75*AY75*(31.1-28.3)/BA75/1000-AU75*BC75/((33013/5.202)*0.67*0.7)*0.746)","v":-0.14212838736074568},0,0,{"$f":"AS75*-AU75*BC75/((33013/5.202)*0.67*0.7)*0.746*AF75","v":-0.12281387115252197},{"$f":"AS75 *(0.0075*60*AU75*AY75*(31.1-28.3)/BA75/1000-AU75*BC75/((33013/5.202)*0.67*0.7)*0.746)*AG75","v":-0.14212838736074568},{"$f":"AS75*IF(BE75 =1, 1.08*AU75*(68-36.5)*AW75*6492*0.77/1000000/BG75,0)*10","v":852.0927949136842},{"$f":"AS75*IF(BE75 =2, 1.08*AU75*(68-36.5)*AW75*6492*0.77/1000000/BG75,0)","v":0},{"$f":"AS75*IF(BE75 =3, 1.08*AU75*(68-36.5)*AW75*6492*0.77/1000000/BG75,0)","v":0},{"$f":"AS75*IF(BE75 =4, 1.08*AU75*(68-36.5)*AW75*6492*0.77/1000000/BG75,0)","v":0},{"$f":"AS75*IF(BE75 =5, 1.08*AU75*(68-36.5)*AW75*6492*0.77/1000000/BG75,0)","v":0},0,null,"Res","Default DR",{"$f":"Benefits(BL75,BR75,BS75,BT75,BU75,BV75,BW75,BX75,BY75,BZ75,AE75,AH75,AI75,AJ75,AK75,AL75,AM75,AN75,AO75,AP75,CA75,CB75)","v":-1544.7598947115309},-730.07415277545817,16850.331302600578,0,0,0,0,0,0,{"$f":"SUMPRODUCT(CC75:CK75,--(CC75:CK75>0))","v":16850.331302600578},{"$f":"-SUMPRODUCT(CC75:CK75,--(CC75:CK75<0))","v":2274.8340474869892},null,{"$f":"AS75*AU75*3.75","v":2625},null,null,{"$f":"CM75+CO75","v":4899.8340474869892},{"$f":"IF(NetOrGross=\"Net\",(1-AO75+AP75),1)","v":1},{"$f":"(SUMPRODUCT(CC75:CJ75,--(CC75:CJ75>0))+CN75)*CS75/((-SUMPRODUCT(CC75:CJ75,--(CC75:CJ75<0))+MAX(CO75,CV75)+CP75+CQ75)*CS75+IF(FRIncentives=\"Yes\",CV75*(1-CS75),0))","v":3.438959593181063},1,{"$f":"AS75*AU75*IF(AW75 < 0.65, 2.25, IF(AW75 < 0.75, 2.5, IF(AW75 < 0.85, 2.75, 3)))","v":1750},null,"Electric","y",null,{"$f":"IF(F75=\"Manual Entry\",\"Manual\",IF(G75=\"\",0,\"X=\"&SUBSTITUTE(SUBSTITUTE(SUBSTITUTE(SUBSTITUTE(SUBSTITUTE(SUBSTITUTE(SUBSTITUTE(SUBSTITUTE(SUBSTITUTE(SUBSTITUTE(SUBSTITUTE(SUBSTITUTE(G75,$ED75,$ED$2&ROW($ED75)),$EC75,$EC$2&ROW($EC75)),$EB75,$EB$2&ROW($EB75)),$EA75,$EA$2&ROW($EA75)),$DZ75,$DZ$2&ROW($DZ75)),$DY75,$DY$2&ROW($DY75)),$DX75,$DX$2&ROW($DX75)),$DW75,$DW$2&ROW($DW75)),$DV75,$DV$2&ROW($DV75)),$DU75,$DU$2&ROW($DU75)),$DT75,$DT$2&ROW($DT75)),$DS75,$DS$2&ROW($DS75))))","v":"X=AS75*AU75*3.75"},{"$f":"IF(I75=\"Manual Entry\",\"Manual\",IF(J75=\"\",0,\"X=\"&SUBSTITUTE(SUBSTITUTE(SUBSTITUTE(SUBSTITUTE(SUBSTITUTE(SUBSTITUTE(SUBSTITUTE(SUBSTITUTE(SUBSTITUTE(SUBSTITUTE(SUBSTITUTE(SUBSTITUTE(J75,$ED75,$ED$2&ROW($ED75)),$EC75,$EC$2&ROW($EC75)),$EB75,$EB$2&ROW($EB75)),$EA75,$EA$2&ROW($EA75)),$DZ75,$DZ$2&ROW($DZ75)),$DY75,$DY$2&ROW($DY75)),$DX75,$DX$2&ROW($DX75)),$DW75,$DW$2&ROW($DW75)),$DV75,$DV$2&ROW($DV75)),$DU75,$DU$2&ROW($DU75)),$DT75,$DT$2&ROW($DT75)),$DS75,$DS$2&ROW($DS75))))","v":"X=AS75*AU75*if(AW75 < 0.65, 2.25, if(AW75 < 0.75, 2.50, if(AW75 < 0.85, 2.75, 3.00)))"},{"$f":"IF(O75=\"\",0,\"X=\"&SUBSTITUTE(SUBSTITUTE(SUBSTITUTE(SUBSTITUTE(SUBSTITUTE(SUBSTITUTE(SUBSTITUTE(SUBSTITUTE(SUBSTITUTE(SUBSTITUTE(SUBSTITUTE(SUBSTITUTE(O75,$ED75,$ED$2&ROW($ED75)),$EC75,$EC$2&ROW($EC75)),$EB75,$EB$2&ROW($EB75)),$EA75,$EA$2&ROW($EA75)),$DZ75,$DZ$2&ROW($DZ75)),$DY75,$DY$2&ROW($DY75)),$DX75,$DX$2&ROW($DX75)),$DW75,$DW$2&ROW($DW75)),$DV75,$DV$2&ROW($DV75)),$DU75,$DU$2&ROW($DU75)),$DT75,$DT$2&ROW($DT75)),$DS75,$DS$2&ROW($DS75)))","v":"X=AS75 *(0.0075*60*AU75*AY75*(31.1-28.3)/BA75/1000*932*.77-AU75*BC75/((33013/5.202)*0.67*0.70)*0.746*8760*.77+if(BE75 >=6, 1.08*AU75*(68-36.5)*AW75*6492*.77/1000000/BG75/0.003412,0))"},{"$f":"IF(P75=\"\",0,\"X=\"&SUBSTITUTE(SUBSTITUTE(SUBSTITUTE(SUBSTITUTE(SUBSTITUTE(SUBSTITUTE(SUBSTITUTE(SUBSTITUTE(SUBSTITUTE(SUBSTITUTE(SUBSTITUTE(SUBSTITUTE(P75,$ED75,$ED$2&ROW($ED75)),$EC75,$EC$2&ROW($EC75)),$EB75,$EB$2&ROW($EB75)),$EA75,$EA$2&ROW($EA75)),$DZ75,$DZ$2&ROW($DZ75)),$DY75,$DY$2&ROW($DY75)),$DX75,$DX$2&ROW($DX75)),$DW75,$DW$2&ROW($DW75)),$DV75,$DV$2&ROW($DV75)),$DU75,$DU$2&ROW($DU75)),$DT75,$DT$2&ROW($DT75)),$DS75,$DS$2&ROW($DS75)))","v":0},{"$f":"IF(Q75=\"\",0,\"X=\"&SUBSTITUTE(SUBSTITUTE(SUBSTITUTE(SUBSTITUTE(SUBSTITUTE(SUBSTITUTE(SUBSTITUTE(SUBSTITUTE(SUBSTITUTE(SUBSTITUTE(SUBSTITUTE(SUBSTITUTE(Q75,$ED75,$ED$2&ROW($ED75)),$EC75,$EC$2&ROW($EC75)),$EB75,$EB$2&ROW($EB75)),$EA75,$EA$2&ROW($EA75)),$DZ75,$DZ$2&ROW($DZ75)),$DY75,$DY$2&ROW($DY75)),$DX75,$DX$2&ROW($DX75)),$DW75,$DW$2&ROW($DW75)),$DV75,$DV$2&ROW($DV75)),$DU75,$DU$2&ROW($DU75)),$DT75,$DT$2&ROW($DT75)),$DS75,$DS$2&ROW($DS75)))","v":0},{"$f":"IF(R75=\"\",0,\"X=\"&SUBSTITUTE(SUBSTITUTE(SUBSTITUTE(SUBSTITUTE(SUBSTITUTE(SUBSTITUTE(SUBSTITUTE(SUBSTITUTE(SUBSTITUTE(SUBSTITUTE(SUBSTITUTE(SUBSTITUTE(R75,$ED75,$ED$2&ROW($ED75)),$EC75,$EC$2&ROW($EC75)),$EB75,$EB$2&ROW($EB75)),$EA75,$EA$2&ROW($EA75)),$DZ75,$DZ$2&ROW($DZ75)),$DY75,$DY$2&ROW($DY75)),$DX75,$DX$2&ROW($DX75)),$DW75,$DW$2&ROW($DW75)),$DV75,$DV$2&ROW($DV75)),$DU75,$DU$2&ROW($DU75)),$DT75,$DT$2&ROW($DT75)),$DS75,$DS$2&ROW($DS75)))","v":"X=AS75 *(0.0075*60*AU75*AY75*(31.1-28.3)/BA75/1000-AU75*BC75/((33013/5.202)*0.67*0.70)*0.746)"},{"$f":"IF(S75=\"\",0,\"X=\"&SUBSTITUTE(SUBSTITUTE(SUBSTITUTE(SUBSTITUTE(SUBSTITUTE(SUBSTITUTE(SUBSTITUTE(SUBSTITUTE(SUBSTITUTE(SUBSTITUTE(SUBSTITUTE(SUBSTITUTE(S75,$ED75,$ED$2&ROW($ED75)),$EC75,$EC$2&ROW($EC75)),$EB75,$EB$2&ROW($EB75)),$EA75,$EA$2&ROW($EA75)),$DZ75,$DZ$2&ROW($DZ75)),$DY75,$DY$2&ROW($DY75)),$DX75,$DX$2&ROW($DX75)),$DW75,$DW$2&ROW($DW75)),$DV75,$DV$2&ROW($DV75)),$DU75,$DU$2&ROW($DU75)),$DT75,$DT$2&ROW($DT75)),$DS75,$DS$2&ROW($DS75)))","v":0},{"$f":"IF(T75=\"\",0,\"X=\"&SUBSTITUTE(SUBSTITUTE(SUBSTITUTE(SUBSTITUTE(SUBSTITUTE(SUBSTITUTE(SUBSTITUTE(SUBSTITUTE(SUBSTITUTE(SUBSTITUTE(SUBSTITUTE(SUBSTITUTE(T75,$ED75,$ED$2&ROW($ED75)),$EC75,$EC$2&ROW($EC75)),$EB75,$EB$2&ROW($EB75)),$EA75,$EA$2&ROW($EA75)),$DZ75,$DZ$2&ROW($DZ75)),$DY75,$DY$2&ROW($DY75)),$DX75,$DX$2&ROW($DX75)),$DW75,$DW$2&ROW($DW75)),$DV75,$DV$2&ROW($DV75)),$DU75,$DU$2&ROW($DU75)),$DT75,$DT$2&ROW($DT75)),$DS75,$DS$2&ROW($DS75)))","v":0},{"$f":"IF(U75=\"\",0,\"X=\"&SUBSTITUTE(SUBSTITUTE(SUBSTITUTE(SUBSTITUTE(SUBSTITUTE(SUBSTITUTE(SUBSTITUTE(SUBSTITUTE(SUBSTITUTE(SUBSTITUTE(SUBSTITUTE(SUBSTITUTE(U75,$ED75,$ED$2&ROW($ED75)),$EC75,$EC$2&ROW($EC75)),$EB75,$EB$2&ROW($EB75)),$EA75,$EA$2&ROW($EA75)),$DZ75,$DZ$2&ROW($DZ75)),$DY75,$DY$2&ROW($DY75)),$DX75,$DX$2&ROW($DX75)),$DW75,$DW$2&ROW($DW75)),$DV75,$DV$2&ROW($DV75)),$DU75,$DU$2&ROW($DU75)),$DT75,$DT$2&ROW($DT75)),$DS75,$DS$2&ROW($DS75)))","v":"X=AS75*-AU75*BC75/((33013/5.202)*0.67*0.70)*0.746*AF75"},{"$f":"IF(V75=\"\",0,\"X=\"&SUBSTITUTE(SUBSTITUTE(SUBSTITUTE(SUBSTITUTE(SUBSTITUTE(SUBSTITUTE(SUBSTITUTE(SUBSTITUTE(SUBSTITUTE(SUBSTITUTE(SUBSTITUTE(SUBSTITUTE(V75,$ED75,$ED$2&ROW($ED75)),$EC75,$EC$2&ROW($EC75)),$EB75,$EB$2&ROW($EB75)),$EA75,$EA$2&ROW($EA75)),$DZ75,$DZ$2&ROW($DZ75)),$DY75,$DY$2&ROW($DY75)),$DX75,$DX$2&ROW($DX75)),$DW75,$DW$2&ROW($DW75)),$DV75,$DV$2&ROW($DV75)),$DU75,$DU$2&ROW($DU75)),$DT75,$DT$2&ROW($DT75)),$DS75,$DS$2&ROW($DS75)))","v":"X=AS75 *(0.0075*60*AU75*AY75*(31.1-28.3)/BA75/1000-AU75*BC75/((33013/5.202)*0.67*0.70)*0.746)*AG75"},{"$f":"IF(W75=\"\",0,\"X=\"&SUBSTITUTE(SUBSTITUTE(SUBSTITUTE(SUBSTITUTE(SUBSTITUTE(SUBSTITUTE(SUBSTITUTE(SUBSTITUTE(SUBSTITUTE(SUBSTITUTE(SUBSTITUTE(SUBSTITUTE(W75,$ED75,$ED$2&ROW($ED75)),$EC75,$EC$2&ROW($EC75)),$EB75,$EB$2&ROW($EB75)),$EA75,$EA$2&ROW($EA75)),$DZ75,$DZ$2&ROW($DZ75)),$DY75,$DY$2&ROW($DY75)),$DX75,$DX$2&ROW($DX75)),$DW75,$DW$2&ROW($DW75)),$DV75,$DV$2&ROW($DV75)),$DU75,$DU$2&ROW($DU75)),$DT75,$DT$2&ROW($DT75)),$DS75,$DS$2&ROW($DS75)))","v":"X=AS75*if(BE75 =1, 1.08*AU75*(68-36.5)*AW75*6492*.77/1000000/BG75,0)*10"},{"$f":"IF(X75=\"\",0,\"X=\"&SUBSTITUTE(SUBSTITUTE(SUBSTITUTE(SUBSTITUTE(SUBSTITUTE(SUBSTITUTE(SUBSTITUTE(SUBSTITUTE(SUBSTITUTE(SUBSTITUTE(SUBSTITUTE(SUBSTITUTE(X75,$ED75,$ED$2&ROW($ED75)),$EC75,$EC$2&ROW($EC75)),$EB75,$EB$2&ROW($EB75)),$EA75,$EA$2&ROW($EA75)),$DZ75,$DZ$2&ROW($DZ75)),$DY75,$DY$2&ROW($DY75)),$DX75,$DX$2&ROW($DX75)),$DW75,$DW$2&ROW($DW75)),$DV75,$DV$2&ROW($DV75)),$DU75,$DU$2&ROW($DU75)),$DT75,$DT$2&ROW($DT75)),$DS75,$DS$2&ROW($DS75)))","v":"X=AS75*if(BE75 =2, 1.08*AU75*(68-36.5)*AW75*6492*.77/1000000/BG75,0)"},{"$f":"IF(Y75=\"\",0,\"X=\"&SUBSTITUTE(SUBSTITUTE(SUBSTITUTE(SUBSTITUTE(SUBSTITUTE(SUBSTITUTE(SUBSTITUTE(SUBSTITUTE(SUBSTITUTE(SUBSTITUTE(SUBSTITUTE(SUBSTITUTE(Y75,$ED75,$ED$2&ROW($ED75)),$EC75,$EC$2&ROW($EC75)),$EB75,$EB$2&ROW($EB75)),$EA75,$EA$2&ROW($EA75)),$DZ75,$DZ$2&ROW($DZ75)),$DY75,$DY$2&ROW($DY75)),$DX75,$DX$2&ROW($DX75)),$DW75,$DW$2&ROW($DW75)),$DV75,$DV$2&ROW($DV75)),$DU75,$DU$2&ROW($DU75)),$DT75,$DT$2&ROW($DT75)),$DS75,$DS$2&ROW($DS75)))","v":"X=AS75*if(BE75 =3, 1.08*AU75*(68-36.5)*AW75*6492*.77/1000000/BG75,0)"},{"$f":"IF(Z75=\"\",0,\"X=\"&SUBSTITUTE(SUBSTITUTE(SUBSTITUTE(SUBSTITUTE(SUBSTITUTE(SUBSTITUTE(SUBSTITUTE(SUBSTITUTE(SUBSTITUTE(SUBSTITUTE(SUBSTITUTE(SUBSTITUTE(Z75,$ED75,$ED$2&ROW($ED75)),$EC75,$EC$2&ROW($EC75)),$EB75,$EB$2&ROW($EB75)),$EA75,$EA$2&ROW($EA75)),$DZ75,$DZ$2&ROW($DZ75)),$DY75,$DY$2&ROW($DY75)),$DX75,$DX$2&ROW($DX75)),$DW75,$DW$2&ROW($DW75)),$DV75,$DV$2&ROW($DV75)),$DU75,$DU$2&ROW($DU75)),$DT75,$DT$2&ROW($DT75)),$DS75,$DS$2&ROW($DS75)))","v":"X=AS75*if(BE75 =4, 1.08*AU75*(68-36.5)*AW75*6492*.77/1000000/BG75,0)"},{"$f":"IF(AA75=\"\",0,\"X=\"&SUBSTITUTE(SUBSTITUTE(SUBSTITUTE(SUBSTITUTE(SUBSTITUTE(SUBSTITUTE(SUBSTITUTE(SUBSTITUTE(SUBSTITUTE(SUBSTITUTE(SUBSTITUTE(SUBSTITUTE(AA75,$ED75,$ED$2&ROW($ED75)),$EC75,$EC$2&ROW($EC75)),$EB75,$EB$2&ROW($EB75)),$EA75,$EA$2&ROW($EA75)),$DZ75,$DZ$2&ROW($DZ75)),$DY75,$DY$2&ROW($DY75)),$DX75,$DX$2&ROW($DX75)),$DW75,$DW$2&ROW($DW75)),$DV75,$DV$2&ROW($DV75)),$DU75,$DU$2&ROW($DU75)),$DT75,$DT$2&ROW($DT75)),$DS75,$DS$2&ROW($DS75)))","v":"X=AS75*if(BE75 =5, 1.08*AU75*(68-36.5)*AW75*6492*.77/1000000/BG75,0)"},{"$f":"IF(AB75=\"\",0,\"X=\"&SUBSTITUTE(SUBSTITUTE(SUBSTITUTE(SUBSTITUTE(SUBSTITUTE(SUBSTITUTE(SUBSTITUTE(SUBSTITUTE(SUBSTITUTE(SUBSTITUTE(SUBSTITUTE(SUBSTITUTE(AB75,$ED75,$ED$2&ROW($ED75)),$EC75,$EC$2&ROW($EC75)),$EB75,$EB$2&ROW($EB75)),$EA75,$EA$2&ROW($EA75)),$DZ75,$DZ$2&ROW($DZ75)),$DY75,$DY$2&ROW($DY75)),$DX75,$DX$2&ROW($DX75)),$DW75,$DW$2&ROW($DW75)),$DV75,$DV$2&ROW($DV75)),$DU75,$DU$2&ROW($DU75)),$DT75,$DT$2&ROW($DT75)),$DS75,$DS$2&ROW($DS75)))","v":0},null,null,"{Factor:WinterCF}","{Factor:SummerCF}",{"$f":"IFERROR(INDEX($EG75:$IV75,MATCH(0,COUNTIF($DR75:DT75,$EG75:$IV75),0)),\"\")","v":"{Measure:Quantity}"},{"$f":"IFERROR(INDEX($EG75:$IV75,MATCH(0,COUNTIF($DR75:DU75,$EG75:$IV75),0)),\"\")","v":"{Ventilation Air Rate}"},{"$f":"IFERROR(INDEX($EG75:$IV75,MATCH(0,COUNTIF($DR75:DV75,$EG75:$IV75),0)),\"\")","v":"{Eff Heating}"},{"$f":"IFERROR(INDEX($EG75:$IV75,MATCH(0,COUNTIF($DR75:DW75,$EG75:$IV75),0)),\"\")","v":"{Eff Cooling}"},{"$f":"IFERROR(INDEX($EG75:$IV75,MATCH(0,COUNTIF($DR75:DX75,$EG75:$IV75),0)),\"\")","v":"{SEER}"},{"$f":"IFERROR(INDEX($EG75:$IV75,MATCH(0,COUNTIF($DR75:DY75,$EG75:$IV75),0)),\"\")","v":"{Calculated Pressure Drop}"},{"$f":"IFERROR(INDEX($EG75:$IV75,MATCH(0,COUNTIF($DR75:DZ75,$EG75:$IV75),0)),\"\")","v":"{Heating Fuel Type}"},{"$f":"IFERROR(INDEX($EG75:$IV75,MATCH(0,COUNTIF($DR75:EA75,$EG75:$IV75),0)),\"\")","v":"{AFUE}"},{"$f":"IFERROR(INDEX($EG75:$IV75,MATCH(0,COUNTIF($DR75:EB75,$EG75:$IV75),0)),\"\")","v":""},{"$f":"IFERROR(INDEX($EG75:$IV75,MATCH(0,COUNTIF($DR75:EC75,$EG75:$IV75),0)),\"\")","v":""},null,null,{"$f":"IFERROR(MID($G75,FIND(CHAR(160),SUBSTITUTE($G75,\"{\",CHAR(160),EG$1)),FIND(CHAR(160),SUBSTITUTE($G75,\"}\",CHAR(160),EG$1))-FIND(CHAR(160),SUBSTITUTE($G75,\"{\",CHAR(160),EG$1))+1),\"\")","v":"{Measure:Quantity}"},{"$f":"IFERROR(MID($G75,FIND(CHAR(160),SUBSTITUTE($G75,\"{\",CHAR(160),EH$1)),FIND(CHAR(160),SUBSTITUTE($G75,\"}\",CHAR(160),EH$1))-FIND(CHAR(160),SUBSTITUTE($G75,\"{\",CHAR(160),EH$1))+1),\"\")","v":"{Ventilation Air Rate}"},{"$f":"IFERROR(MID($G75,FIND(CHAR(160),SUBSTITUTE($G75,\"{\",CHAR(160),EI$1)),FIND(CHAR(160),SUBSTITUTE($G75,\"}\",CHAR(160),EI$1))-FIND(CHAR(160),SUBSTITUTE($G75,\"{\",CHAR(160),EI$1))+1),\"\")","v":""},{"$f":"IFERROR(MID($G75,FIND(CHAR(160),SUBSTITUTE($G75,\"{\",CHAR(160),EJ$1)),FIND(CHAR(160),SUBSTITUTE($G75,\"}\",CHAR(160),EJ$1))-FIND(CHAR(160),SUBSTITUTE($G75,\"{\",CHAR(160),EJ$1))+1),\"\")","v":""},{"$f":"IFERROR(MID($G75,FIND(CHAR(160),SUBSTITUTE($G75,\"{\",CHAR(160),EK$1)),FIND(CHAR(160),SUBSTITUTE($G75,\"}\",CHAR(160),EK$1))-FIND(CHAR(160),SUBSTITUTE($G75,\"{\",CHAR(160),EK$1))+1),\"\")","v":""},{"$f":"IFERROR(MID($G75,FIND(CHAR(160),SUBSTITUTE($G75,\"{\",CHAR(160),EL$1)),FIND(CHAR(160),SUBSTITUTE($G75,\"}\",CHAR(160),EL$1))-FIND(CHAR(160),SUBSTITUTE($G75,\"{\",CHAR(160),EL$1))+1),\"\")","v":""},{"$f":"IFERROR(MID($G75,FIND(CHAR(160),SUBSTITUTE($G75,\"{\",CHAR(160),EM$1)),FIND(CHAR(160),SUBSTITUTE($G75,\"}\",CHAR(160),EM$1))-FIND(CHAR(160),SUBSTITUTE($G75,\"{\",CHAR(160),EM$1))+1),\"\")","v":""},{"$f":"IFERROR(MID($G75,FIND(CHAR(160),SUBSTITUTE($G75,\"{\",CHAR(160),EN$1)),FIND(CHAR(160),SUBSTITUTE($G75,\"}\",CHAR(160),EN$1))-FIND(CHAR(160),SUBSTITUTE($G75,\"{\",CHAR(160),EN$1))+1),\"\")","v":""},{"$f":"IFERROR(MID($G75,FIND(CHAR(160),SUBSTITUTE($G75,\"{\",CHAR(160),EO$1)),FIND(CHAR(160),SUBSTITUTE($G75,\"}\",CHAR(160),EO$1))-FIND(CHAR(160),SUBSTITUTE($G75,\"{\",CHAR(160),EO$1))+1),\"\")","v":""},{"$f":"IFERROR(MID($G75,FIND(CHAR(160),SUBSTITUTE($G75,\"{\",CHAR(160),EP$1)),FIND(CHAR(160),SUBSTITUTE($G75,\"}\",CHAR(160),EP$1))-FIND(CHAR(160),SUBSTITUTE($G75,\"{\",CHAR(160),EP$1))+1),\"\")","v":""},{"$f":"IFERROR(MID($J75,FIND(CHAR(160),SUBSTITUTE($J75,\"{\",CHAR(160),EQ$1)),FIND(CHAR(160),SUBSTITUTE($J75,\"}\",CHAR(160),EQ$1))-FIND(CHAR(160),SUBSTITUTE($J75,\"{\",CHAR(160),EQ$1))+1),\"\")","v":"{Measure:Quantity}"},{"$f":"IFERROR(MID($J75,FIND(CHAR(160),SUBSTITUTE($J75,\"{\",CHAR(160),ER$1)),FIND(CHAR(160),SUBSTITUTE($J75,\"}\",CHAR(160),ER$1))-FIND(CHAR(160),SUBSTITUTE($J75,\"{\",CHAR(160),ER$1))+1),\"\")","v":"{Ventilation Air Rate}"},{"$f":"IFERROR(MID($J75,FIND(CHAR(160),SUBSTITUTE($J75,\"{\",CHAR(160),ES$1)),FIND(CHAR(160),SUBSTITUTE($J75,\"}\",CHAR(160),ES$1))-FIND(CHAR(160),SUBSTITUTE($J75,\"{\",CHAR(160),ES$1))+1),\"\")","v":"{Eff Heating}"},{"$f":"IFERROR(MID($J75,FIND(CHAR(160),SUBSTITUTE($J75,\"{\",CHAR(160),ET$1)),FIND(CHAR(160),SUBSTITUTE($J75,\"}\",CHAR(160),ET$1))-FIND(CHAR(160),SUBSTITUTE($J75,\"{\",CHAR(160),ET$1))+1),\"\")","v":"{Eff Heating}"},{"$f":"IFERROR(MID($J75,FIND(CHAR(160),SUBSTITUTE($J75,\"{\",CHAR(160),EU$1)),FIND(CHAR(160),SUBSTITUTE($J75,\"}\",CHAR(160),EU$1))-FIND(CHAR(160),SUBSTITUTE($J75,\"{\",CHAR(160),EU$1))+1),\"\")","v":"{Eff Heating}"},{"$f":"IFERROR(MID($J75,FIND(CHAR(160),SUBSTITUTE($J75,\"{\",CHAR(160),EV$1)),FIND(CHAR(160),SUBSTITUTE($J75,\"}\",CHAR(160),EV$1))-FIND(CHAR(160),SUBSTITUTE($J75,\"{\",CHAR(160),EV$1))+1),\"\")","v":""},{"$f":"IFERROR(MID($J75,FIND(CHAR(160),SUBSTITUTE($J75,\"{\",CHAR(160),EW$1)),FIND(CHAR(160),SUBSTITUTE($J75,\"}\",CHAR(160),EW$1))-FIND(CHAR(160),SUBSTITUTE($J75,\"{\",CHAR(160),EW$1))+1),\"\")","v":""},{"$f":"IFERROR(MID($J75,FIND(CHAR(160),SUBSTITUTE($J75,\"{\",CHAR(160),EX$1)),FIND(CHAR(160),SUBSTITUTE($J75,\"}\",CHAR(160),EX$1))-FIND(CHAR(160),SUBSTITUTE($J75,\"{\",CHAR(160),EX$1))+1),\"\")","v":""},{"$f":"IFERROR(MID($J75,FIND(CHAR(160),SUBSTITUTE($J75,\"{\",CHAR(160),EY$1)),FIND(CHAR(160),SUBSTITUTE($J75,\"}\",CHAR(160),EY$1))-FIND(CHAR(160),SUBSTITUTE($J75,\"{\",CHAR(160),EY$1))+1),\"\")","v":""},{"$f":"IFERROR(MID($J75,FIND(CHAR(160),SUBSTITUTE($J75,\"{\",CHAR(160),EZ$1)),FIND(CHAR(160),SUBSTITUTE($J75,\"}\",CHAR(160),EZ$1))-FIND(CHAR(160),SUBSTITUTE($J75,\"{\",CHAR(160),EZ$1))+1),\"\")","v":""},{"$f":"IFERROR(MID($J75,FIND(CHAR(160),SUBSTITUTE($J75,\"{\",CHAR(160),FA$1)),FIND(CHAR(160),SUBSTITUTE($J75,\"}\",CHAR(160),FA$1))-FIND(CHAR(160),SUBSTITUTE($J75,\"{\",CHAR(160),FA$1))+1),\"\")","v":"{Measure:Quantity}"},{"$f":"IFERROR(MID($J75,FIND(CHAR(160),SUBSTITUTE($J75,\"{\",CHAR(160),FB$1)),FIND(CHAR(160),SUBSTITUTE($J75,\"}\",CHAR(160),FB$1))-FIND(CHAR(160),SUBSTITUTE($J75,\"{\",CHAR(160),FB$1))+1),\"\")","v":"{Ventilation Air Rate}"},{"$f":"IFERROR(MID($O75,FIND(CHAR(160),SUBSTITUTE($O75,\"{\",CHAR(160),FC$1)),FIND(CHAR(160),SUBSTITUTE($O75,\"}\",CHAR(160),FC$1))-FIND(CHAR(160),SUBSTITUTE($O75,\"{\",CHAR(160),FC$1))+1),\"\")","v":"{Eff Cooling}"},{"$f":"IFERROR(MID($O75,FIND(CHAR(160),SUBSTITUTE($O75,\"{\",CHAR(160),FD$1)),FIND(CHAR(160),SUBSTITUTE($O75,\"}\",CHAR(160),FD$1))-FIND(CHAR(160),SUBSTITUTE($O75,\"{\",CHAR(160),FD$1))+1),\"\")","v":"{SEER}"},{"$f":"IFERROR(MID($O75,FIND(CHAR(160),SUBSTITUTE($O75,\"{\",CHAR(160),FE$1)),FIND(CHAR(160),SUBSTITUTE($O75,\"}\",CHAR(160),FE$1))-FIND(CHAR(160),SUBSTITUTE($O75,\"{\",CHAR(160),FE$1))+1),\"\")","v":"{Ventilation Air Rate}"},{"$f":"IFERROR(MID($O75,FIND(CHAR(160),SUBSTITUTE($O75,\"{\",CHAR(160),FF$1)),FIND(CHAR(160),SUBSTITUTE($O75,\"}\",CHAR(160),FF$1))-FIND(CHAR(160),SUBSTITUTE($O75,\"{\",CHAR(160),FF$1))+1),\"\")","v":"{Calculated Pressure Drop}"},{"$f":"IFERROR(MID($O75,FIND(CHAR(160),SUBSTITUTE($O75,\"{\",CHAR(160),FG$1)),FIND(CHAR(160),SUBSTITUTE($O75,\"}\",CHAR(160),FG$1))-FIND(CHAR(160),SUBSTITUTE($O75,\"{\",CHAR(160),FG$1))+1),\"\")","v":"{Heating Fuel Type}"},{"$f":"IFERROR(MID($O75,FIND(CHAR(160),SUBSTITUTE($O75,\"{\",CHAR(160),FH$1)),FIND(CHAR(160),SUBSTITUTE($O75,\"}\",CHAR(160),FH$1))-FIND(CHAR(160),SUBSTITUTE($O75,\"{\",CHAR(160),FH$1))+1),\"\")","v":"{Ventilation Air Rate}"},{"$f":"IFERROR(MID($O75,FIND(CHAR(160),SUBSTITUTE($O75,\"{\",CHAR(160),FI$1)),FIND(CHAR(160),SUBSTITUTE($O75,\"}\",CHAR(160),FI$1))-FIND(CHAR(160),SUBSTITUTE($O75,\"{\",CHAR(160),FI$1))+1),\"\")","v":"{Eff Heating}"},{"$f":"IFERROR(MID($O75,FIND(CHAR(160),SUBSTITUTE($O75,\"{\",CHAR(160),FJ$1)),FIND(CHAR(160),SUBSTITUTE($O75,\"}\",CHAR(160),FJ$1))-FIND(CHAR(160),SUBSTITUTE($O75,\"{\",CHAR(160),FJ$1))+1),\"\")","v":"{AFUE}"},{"$f":"IFERROR(MID($O75,FIND(CHAR(160),SUBSTITUTE($O75,\"{\",CHAR(160),FK$1)),FIND(CHAR(160),SUBSTITUTE($O75,\"}\",CHAR(160),FK$1))-FIND(CHAR(160),SUBSTITUTE($O75,\"{\",CHAR(160),FK$1))+1),\"\")","v":"{Measure:Quantity}"},{"$f":"IFERROR(MID($O75,FIND(CHAR(160),SUBSTITUTE($O75,\"{\",CHAR(160),FL$1)),FIND(CHAR(160),SUBSTITUTE($O75,\"}\",CHAR(160),FL$1))-FIND(CHAR(160),SUBSTITUTE($O75,\"{\",CHAR(160),FL$1))+1),\"\")","v":"{Ventilation Air Rate}"},{"$f":"IFERROR(MID($R75,FIND(CHAR(160),SUBSTITUTE($R75,\"{\",CHAR(160),FM$1)),FIND(CHAR(160),SUBSTITUTE($R75,\"}\",CHAR(160),FM$1))-FIND(CHAR(160),SUBSTITUTE($R75,\"{\",CHAR(160),FM$1))+1),\"\")","v":"{Eff Cooling}"},{"$f":"IFERROR(MID($R75,FIND(CHAR(160),SUBSTITUTE($R75,\"{\",CHAR(160),FN$1)),FIND(CHAR(160),SUBSTITUTE($R75,\"}\",CHAR(160),FN$1))-FIND(CHAR(160),SUBSTITUTE($R75,\"{\",CHAR(160),FN$1))+1),\"\")","v":"{SEER}"},{"$f":"IFERROR(MID($R75,FIND(CHAR(160),SUBSTITUTE($R75,\"{\",CHAR(160),FO$1)),FIND(CHAR(160),SUBSTITUTE($R75,\"}\",CHAR(160),FO$1))-FIND(CHAR(160),SUBSTITUTE($R75,\"{\",CHAR(160),FO$1))+1),\"\")","v":"{Ventilation Air Rate}"},{"$f":"IFERROR(MID($R75,FIND(CHAR(160),SUBSTITUTE($R75,\"{\",CHAR(160),FP$1)),FIND(CHAR(160),SUBSTITUTE($R75,\"}\",CHAR(160),FP$1))-FIND(CHAR(160),SUBSTITUTE($R75,\"{\",CHAR(160),FP$1))+1),\"\")","v":"{Calculated Pressure Drop}"},{"$f":"IFERROR(MID($R75,FIND(CHAR(160),SUBSTITUTE($R75,\"{\",CHAR(160),FQ$1)),FIND(CHAR(160),SUBSTITUTE($R75,\"}\",CHAR(160),FQ$1))-FIND(CHAR(160),SUBSTITUTE($R75,\"{\",CHAR(160),FQ$1))+1),\"\")","v":""},{"$f":"IFERROR(MID($R75,FIND(CHAR(160),SUBSTITUTE($R75,\"{\",CHAR(160),FR$1)),FIND(CHAR(160),SUBSTITUTE($R75,\"}\",CHAR(160),FR$1))-FIND(CHAR(160),SUBSTITUTE($R75,\"{\",CHAR(160),FR$1))+1),\"\")","v":""},{"$f":"IFERROR(MID($R75,FIND(CHAR(160),SUBSTITUTE($R75,\"{\",CHAR(160),FS$1)),FIND(CHAR(160),SUBSTITUTE($R75,\"}\",CHAR(160),FS$1))-FIND(CHAR(160),SUBSTITUTE($R75,\"{\",CHAR(160),FS$1))+1),\"\")","v":""},{"$f":"IFERROR(MID($R75,FIND(CHAR(160),SUBSTITUTE($R75,\"{\",CHAR(160),FT$1)),FIND(CHAR(160),SUBSTITUTE($R75,\"}\",CHAR(160),FT$1))-FIND(CHAR(160),SUBSTITUTE($R75,\"{\",CHAR(160),FT$1))+1),\"\")","v":""},{"$f":"IFERROR(MID($R75,FIND(CHAR(160),SUBSTITUTE($R75,\"{\",CHAR(160),FU$1)),FIND(CHAR(160),SUBSTITUTE($R75,\"}\",CHAR(160),FU$1))-FIND(CHAR(160),SUBSTITUTE($R75,\"{\",CHAR(160),FU$1))+1),\"\")","v":"{Measure:Quantity}"},{"$f":"IFERROR(MID($R75,FIND(CHAR(160),SUBSTITUTE($R75,\"{\",CHAR(160),FV$1)),FIND(CHAR(160),SUBSTITUTE($R75,\"}\",CHAR(160),FV$1))-FIND(CHAR(160),SUBSTITUTE($R75,\"{\",CHAR(160),FV$1))+1),\"\")","v":"{Ventilation Air Rate}"},{"$f":"IFERROR(MID($U75,FIND(CHAR(160),SUBSTITUTE($U75,\"{\",CHAR(160),FW$1)),FIND(CHAR(160),SUBSTITUTE($U75,\"}\",CHAR(160),FW$1))-FIND(CHAR(160),SUBSTITUTE($U75,\"{\",CHAR(160),FW$1))+1),\"\")","v":"{Calculated Pressure Drop}"},{"$f":"IFERROR(MID($U75,FIND(CHAR(160),SUBSTITUTE($U75,\"{\",CHAR(160),FX$1)),FIND(CHAR(160),SUBSTITUTE($U75,\"}\",CHAR(160),FX$1))-FIND(CHAR(160),SUBSTITUTE($U75,\"{\",CHAR(160),FX$1))+1),\"\")","v":"{Factor:WinterCF}"},{"$f":"IFERROR(MID($U75,FIND(CHAR(160),SUBSTITUTE($U75,\"{\",CHAR(160),FY$1)),FIND(CHAR(160),SUBSTITUTE($U75,\"}\",CHAR(160),FY$1))-FIND(CHAR(160),SUBSTITUTE($U75,\"{\",CHAR(160),FY$1))+1),\"\")","v":""},{"$f":"IFERROR(MID($U75,FIND(CHAR(160),SUBSTITUTE($U75,\"{\",CHAR(160),FZ$1)),FIND(CHAR(160),SUBSTITUTE($U75,\"}\",CHAR(160),FZ$1))-FIND(CHAR(160),SUBSTITUTE($U75,\"{\",CHAR(160),FZ$1))+1),\"\")","v":""},{"$f":"IFERROR(MID($U75,FIND(CHAR(160),SUBSTITUTE($U75,\"{\",CHAR(160),GA$1)),FIND(CHAR(160),SUBSTITUTE($U75,\"}\",CHAR(160),GA$1))-FIND(CHAR(160),SUBSTITUTE($U75,\"{\",CHAR(160),GA$1))+1),\"\")","v":""},{"$f":"IFERROR(MID($U75,FIND(CHAR(160),SUBSTITUTE($U75,\"{\",CHAR(160),GB$1)),FIND(CHAR(160),SUBSTITUTE($U75,\"}\",CHAR(160),GB$1))-FIND(CHAR(160),SUBSTITUTE($U75,\"{\",CHAR(160),GB$1))+1),\"\")","v":""},{"$f":"IFERROR(MID($U75,FIND(CHAR(160),SUBSTITUTE($U75,\"{\",CHAR(160),GC$1)),FIND(CHAR(160),SUBSTITUTE($U75,\"}\",CHAR(160),GC$1))-FIND(CHAR(160),SUBSTITUTE($U75,\"{\",CHAR(160),GC$1))+1),\"\")","v":""},{"$f":"IFERROR(MID($U75,FIND(CHAR(160),SUBSTITUTE($U75,\"{\",CHAR(160),GD$1)),FIND(CHAR(160),SUBSTITUTE($U75,\"}\",CHAR(160),GD$1))-FIND(CHAR(160),SUBSTITUTE($U75,\"{\",CHAR(160),GD$1))+1),\"\")","v":""},{"$f":"IFERROR(MID($U75,FIND(CHAR(160),SUBSTITUTE($U75,\"{\",CHAR(160),GE$1)),FIND(CHAR(160),SUBSTITUTE($U75,\"}\",CHAR(160),GE$1))-FIND(CHAR(160),SUBSTITUTE($U75,\"{\",CHAR(160),GE$1))+1),\"\")","v":"{Measure:Quantity}"},{"$f":"IFERROR(MID($U75,FIND(CHAR(160),SUBSTITUTE($U75,\"{\",CHAR(160),GF$1)),FIND(CHAR(160),SUBSTITUTE($U75,\"}\",CHAR(160),GF$1))-FIND(CHAR(160),SUBSTITUTE($U75,\"{\",CHAR(160),GF$1))+1),\"\")","v":"{Ventilation Air Rate}"},{"$f":"IFERROR(MID($V75,FIND(CHAR(160),SUBSTITUTE($V75,\"{\",CHAR(160),GG$1)),FIND(CHAR(160),SUBSTITUTE($V75,\"}\",CHAR(160),GG$1))-FIND(CHAR(160),SUBSTITUTE($V75,\"{\",CHAR(160),GG$1))+1),\"\")","v":"{Eff Cooling}"},{"$f":"IFERROR(MID($V75,FIND(CHAR(160),SUBSTITUTE($V75,\"{\",CHAR(160),GH$1)),FIND(CHAR(160),SUBSTITUTE($V75,\"}\",CHAR(160),GH$1))-FIND(CHAR(160),SUBSTITUTE($V75,\"{\",CHAR(160),GH$1))+1),\"\")","v":"{SEER}"},{"$f":"IFERROR(MID($V75,FIND(CHAR(160),SUBSTITUTE($V75,\"{\",CHAR(160),GI$1)),FIND(CHAR(160),SUBSTITUTE($V75,\"}\",CHAR(160),GI$1))-FIND(CHAR(160),SUBSTITUTE($V75,\"{\",CHAR(160),GI$1))+1),\"\")","v":"{Ventilation Air Rate}"},{"$f":"IFERROR(MID($V75,FIND(CHAR(160),SUBSTITUTE($V75,\"{\",CHAR(160),GJ$1)),FIND(CHAR(160),SUBSTITUTE($V75,\"}\",CHAR(160),GJ$1))-FIND(CHAR(160),SUBSTITUTE($V75,\"{\",CHAR(160),GJ$1))+1),\"\")","v":"{Calculated Pressure Drop}"},{"$f":"IFERROR(MID($V75,FIND(CHAR(160),SUBSTITUTE($V75,\"{\",CHAR(160),GK$1)),FIND(CHAR(160),SUBSTITUTE($V75,\"}\",CHAR(160),GK$1))-FIND(CHAR(160),SUBSTITUTE($V75,\"{\",CHAR(160),GK$1))+1),\"\")","v":"{Factor:SummerCF}"},{"$f":"IFERROR(MID($V75,FIND(CHAR(160),SUBSTITUTE($V75,\"{\",CHAR(160),GL$1)),FIND(CHAR(160),SUBSTITUTE($V75,\"}\",CHAR(160),GL$1))-FIND(CHAR(160),SUBSTITUTE($V75,\"{\",CHAR(160),GL$1))+1),\"\")","v":""},{"$f":"IFERROR(MID($V75,FIND(CHAR(160),SUBSTITUTE($V75,\"{\",CHAR(160),GM$1)),FIND(CHAR(160),SUBSTITUTE($V75,\"}\",CHAR(160),GM$1))-FIND(CHAR(160),SUBSTITUTE($V75,\"{\",CHAR(160),GM$1))+1),\"\")","v":""},{"$f":"IFERROR(MID($V75,FIND(CHAR(160),SUBSTITUTE($V75,\"{\",CHAR(160),GN$1)),FIND(CHAR(160),SUBSTITUTE($V75,\"}\",CHAR(160),GN$1))-FIND(CHAR(160),SUBSTITUTE($V75,\"{\",CHAR(160),GN$1))+1),\"\")","v":""},{"$f":"IFERROR(MID($V75,FIND(CHAR(160),SUBSTITUTE($V75,\"{\",CHAR(160),GO$1)),FIND(CHAR(160),SUBSTITUTE($V75,\"}\",CHAR(160),GO$1))-FIND(CHAR(160),SUBSTITUTE($V75,\"{\",CHAR(160),GO$1))+1),\"\")","v":"{Measure:Quantity}"},{"$f":"IFERROR(MID($V75,FIND(CHAR(160),SUBSTITUTE($V75,\"{\",CHAR(160),GP$1)),FIND(CHAR(160),SUBSTITUTE($V75,\"}\",CHAR(160),GP$1))-FIND(CHAR(160),SUBSTITUTE($V75,\"{\",CHAR(160),GP$1))+1),\"\")","v":"{Ventilation Air Rate}"},{"$f":"IFERROR(MID($W75,FIND(CHAR(160),SUBSTITUTE($W75,\"{\",CHAR(160),GQ$1)),FIND(CHAR(160),SUBSTITUTE($W75,\"}\",CHAR(160),GQ$1))-FIND(CHAR(160),SUBSTITUTE($W75,\"{\",CHAR(160),GQ$1))+1),\"\")","v":"{Ventilation Air Rate}"},{"$f":"IFERROR(MID($W75,FIND(CHAR(160),SUBSTITUTE($W75,\"{\",CHAR(160),GR$1)),FIND(CHAR(160),SUBSTITUTE($W75,\"}\",CHAR(160),GR$1))-FIND(CHAR(160),SUBSTITUTE($W75,\"{\",CHAR(160),GR$1))+1),\"\")","v":"{Eff Heating}"},{"$f":"IFERROR(MID($W75,FIND(CHAR(160),SUBSTITUTE($W75,\"{\",CHAR(160),GS$1)),FIND(CHAR(160),SUBSTITUTE($W75,\"}\",CHAR(160),GS$1))-FIND(CHAR(160),SUBSTITUTE($W75,\"{\",CHAR(160),GS$1))+1),\"\")","v":"{AFUE}"},{"$f":"IFERROR(MID($W75,FIND(CHAR(160),SUBSTITUTE($W75,\"{\",CHAR(160),GT$1)),FIND(CHAR(160),SUBSTITUTE($W75,\"}\",CHAR(160),GT$1))-FIND(CHAR(160),SUBSTITUTE($W75,\"{\",CHAR(160),GT$1))+1),\"\")","v":""},{"$f":"IFERROR(MID($W75,FIND(CHAR(160),SUBSTITUTE($W75,\"{\",CHAR(160),GU$1)),FIND(CHAR(160),SUBSTITUTE($W75,\"}\",CHAR(160),GU$1))-FIND(CHAR(160),SUBSTITUTE($W75,\"{\",CHAR(160),GU$1))+1),\"\")","v":""},{"$f":"IFERROR(MID($W75,FIND(CHAR(160),SUBSTITUTE($W75,\"{\",CHAR(160),GV$1)),FIND(CHAR(160),SUBSTITUTE($W75,\"}\",CHAR(160),GV$1))-FIND(CHAR(160),SUBSTITUTE($W75,\"{\",CHAR(160),GV$1))+1),\"\")","v":""},{"$f":"IFERROR(MID($W75,FIND(CHAR(160),SUBSTITUTE($W75,\"{\",CHAR(160),GW$1)),FIND(CHAR(160),SUBSTITUTE($W75,\"}\",CHAR(160),GW$1))-FIND(CHAR(160),SUBSTITUTE($W75,\"{\",CHAR(160),GW$1))+1),\"\")","v":""},{"$f":"IFERROR(MID($W75,FIND(CHAR(160),SUBSTITUTE($W75,\"{\",CHAR(160),GX$1)),FIND(CHAR(160),SUBSTITUTE($W75,\"}\",CHAR(160),GX$1))-FIND(CHAR(160),SUBSTITUTE($W75,\"{\",CHAR(160),GX$1))+1),\"\")","v":""},{"$f":"IFERROR(MID($W75,FIND(CHAR(160),SUBSTITUTE($W75,\"{\",CHAR(160),GY$1)),FIND(CHAR(160),SUBSTITUTE($W75,\"}\",CHAR(160),GY$1))-FIND(CHAR(160),SUBSTITUTE($W75,\"{\",CHAR(160),GY$1))+1),\"\")","v":"{Measure:Quantity}"},{"$f":"IFERROR(MID($W75,FIND(CHAR(160),SUBSTITUTE($W75,\"{\",CHAR(160),GZ$1)),FIND(CHAR(160),SUBSTITUTE($W75,\"}\",CHAR(160),GZ$1))-FIND(CHAR(160),SUBSTITUTE($W75,\"{\",CHAR(160),GZ$1))+1),\"\")","v":"{Heating Fuel Type}"},{"$f":"IFERROR(MID($X75,FIND(CHAR(160),SUBSTITUTE($X75,\"{\",CHAR(160),HA$1)),FIND(CHAR(160),SUBSTITUTE($X75,\"}\",CHAR(160),HA$1))-FIND(CHAR(160),SUBSTITUTE($X75,\"{\",CHAR(160),HA$1))+1),\"\")","v":"{Ventilation Air Rate}"},{"$f":"IFERROR(MID($X75,FIND(CHAR(160),SUBSTITUTE($X75,\"{\",CHAR(160),HB$1)),FIND(CHAR(160),SUBSTITUTE($X75,\"}\",CHAR(160),HB$1))-FIND(CHAR(160),SUBSTITUTE($X75,\"{\",CHAR(160),HB$1))+1),\"\")","v":"{Eff Heating}"},{"$f":"IFERROR(MID($X75,FIND(CHAR(160),SUBSTITUTE($X75,\"{\",CHAR(160),HC$1)),FIND(CHAR(160),SUBSTITUTE($X75,\"}\",CHAR(160),HC$1))-FIND(CHAR(160),SUBSTITUTE($X75,\"{\",CHAR(160),HC$1))+1),\"\")","v":"{AFUE}"},{"$f":"IFERROR(MID($X75,FIND(CHAR(160),SUBSTITUTE($X75,\"{\",CHAR(160),HD$1)),FIND(CHAR(160),SUBSTITUTE($X75,\"}\",CHAR(160),HD$1))-FIND(CHAR(160),SUBSTITUTE($X75,\"{\",CHAR(160),HD$1))+1),\"\")","v":""},{"$f":"IFERROR(MID($X75,FIND(CHAR(160),SUBSTITUTE($X75,\"{\",CHAR(160),HE$1)),FIND(CHAR(160),SUBSTITUTE($X75,\"}\",CHAR(160),HE$1))-FIND(CHAR(160),SUBSTITUTE($X75,\"{\",CHAR(160),HE$1))+1),\"\")","v":""},{"$f":"IFERROR(MID($X75,FIND(CHAR(160),SUBSTITUTE($X75,\"{\",CHAR(160),HF$1)),FIND(CHAR(160),SUBSTITUTE($X75,\"}\",CHAR(160),HF$1))-FIND(CHAR(160),SUBSTITUTE($X75,\"{\",CHAR(160),HF$1))+1),\"\")","v":""},{"$f":"IFERROR(MID($X75,FIND(CHAR(160),SUBSTITUTE($X75,\"{\",CHAR(160),HG$1)),FIND(CHAR(160),SUBSTITUTE($X75,\"}\",CHAR(160),HG$1))-FIND(CHAR(160),SUBSTITUTE($X75,\"{\",CHAR(160),HG$1))+1),\"\")","v":""},{"$f":"IFERROR(MID($X75,FIND(CHAR(160),SUBSTITUTE($X75,\"{\",CHAR(160),HH$1)),FIND(CHAR(160),SUBSTITUTE($X75,\"}\",CHAR(160),HH$1))-FIND(CHAR(160),SUBSTITUTE($X75,\"{\",CHAR(160),HH$1))+1),\"\")","v":""},{"$f":"IFERROR(MID($X75,FIND(CHAR(160),SUBSTITUTE($X75,\"{\",CHAR(160),HI$1)),FIND(CHAR(160),SUBSTITUTE($X75,\"}\",CHAR(160),HI$1))-FIND(CHAR(160),SUBSTITUTE($X75,\"{\",CHAR(160),HI$1))+1),\"\")","v":"{Measure:Quantity}"},{"$f":"IFERROR(MID($X75,FIND(CHAR(160),SUBSTITUTE($X75,\"{\",CHAR(160),HJ$1)),FIND(CHAR(160),SUBSTITUTE($X75,\"}\",CHAR(160),HJ$1))-FIND(CHAR(160),SUBSTITUTE($X75,\"{\",CHAR(160),HJ$1))+1),\"\")","v":"{Heating Fuel Type}"},{"$f":"IFERROR(MID($Y75,FIND(CHAR(160),SUBSTITUTE($Y75,\"{\",CHAR(160),HK$1)),FIND(CHAR(160),SUBSTITUTE($Y75,\"}\",CHAR(160),HK$1))-FIND(CHAR(160),SUBSTITUTE($Y75,\"{\",CHAR(160),HK$1))+1),\"\")","v":"{Ventilation Air Rate}"},{"$f":"IFERROR(MID($Y75,FIND(CHAR(160),SUBSTITUTE($Y75,\"{\",CHAR(160),HL$1)),FIND(CHAR(160),SUBSTITUTE($Y75,\"}\",CHAR(160),HL$1))-FIND(CHAR(160),SUBSTITUTE($Y75,\"{\",CHAR(160),HL$1))+1),\"\")","v":"{Eff Heating}"},{"$f":"IFERROR(MID($Y75,FIND(CHAR(160),SUBSTITUTE($Y75,\"{\",CHAR(160),HM$1)),FIND(CHAR(160),SUBSTITUTE($Y75,\"}\",CHAR(160),HM$1))-FIND(CHAR(160),SUBSTITUTE($Y75,\"{\",CHAR(160),HM$1))+1),\"\")","v":"{AFUE}"},{"$f":"IFERROR(MID($Y75,FIND(CHAR(160),SUBSTITUTE($Y75,\"{\",CHAR(160),HN$1)),FIND(CHAR(160),SUBSTITUTE($Y75,\"}\",CHAR(160),HN$1))-FIND(CHAR(160),SUBSTITUTE($Y75,\"{\",CHAR(160),HN$1))+1),\"\")","v":""},{"$f":"IFERROR(MID($Y75,FIND(CHAR(160),SUBSTITUTE($Y75,\"{\",CHAR(160),HO$1)),FIND(CHAR(160),SUBSTITUTE($Y75,\"}\",CHAR(160),HO$1))-FIND(CHAR(160),SUBSTITUTE($Y75,\"{\",CHAR(160),HO$1))+1),\"\")","v":""},{"$f":"IFERROR(MID($Y75,FIND(CHAR(160),SUBSTITUTE($Y75,\"{\",CHAR(160),HP$1)),FIND(CHAR(160),SUBSTITUTE($Y75,\"}\",CHAR(160),HP$1))-FIND(CHAR(160),SUBSTITUTE($Y75,\"{\",CHAR(160),HP$1))+1),\"\")","v":""},{"$f":"IFERROR(MID($Y75,FIND(CHAR(160),SUBSTITUTE($Y75,\"{\",CHAR(160),HQ$1)),FIND(CHAR(160),SUBSTITUTE($Y75,\"}\",CHAR(160),HQ$1))-FIND(CHAR(160),SUBSTITUTE($Y75,\"{\",CHAR(160),HQ$1))+1),\"\")","v":""},{"$f":"IFERROR(MID($Y75,FIND(CHAR(160),SUBSTITUTE($Y75,\"{\",CHAR(160),HR$1)),FIND(CHAR(160),SUBSTITUTE($Y75,\"}\",CHAR(160),HR$1))-FIND(CHAR(160),SUBSTITUTE($Y75,\"{\",CHAR(160),HR$1))+1),\"\")","v":""},{"$f":"IFERROR(MID($Y75,FIND(CHAR(160),SUBSTITUTE($Y75,\"{\",CHAR(160),HS$1)),FIND(CHAR(160),SUBSTITUTE($Y75,\"}\",CHAR(160),HS$1))-FIND(CHAR(160),SUBSTITUTE($Y75,\"{\",CHAR(160),HS$1))+1),\"\")","v":"{Measure:Quantity}"},{"$f":"IFERROR(MID($Y75,FIND(CHAR(160),SUBSTITUTE($Y75,\"{\",CHAR(160),HT$1)),FIND(CHAR(160),SUBSTITUTE($Y75,\"}\",CHAR(160),HT$1))-FIND(CHAR(160),SUBSTITUTE($Y75,\"{\",CHAR(160),HT$1))+1),\"\")","v":"{Heating Fuel Type}"},{"$f":"IFERROR(MID($Z75,FIND(CHAR(160),SUBSTITUTE($Z75,\"{\",CHAR(160),HU$1)),FIND(CHAR(160),SUBSTITUTE($Z75,\"}\",CHAR(160),HU$1))-FIND(CHAR(160),SUBSTITUTE($Z75,\"{\",CHAR(160),HU$1))+1),\"\")","v":"{Ventilation Air Rate}"},{"$f":"IFERROR(MID($Z75,FIND(CHAR(160),SUBSTITUTE($Z75,\"{\",CHAR(160),HV$1)),FIND(CHAR(160),SUBSTITUTE($Z75,\"}\",CHAR(160),HV$1))-FIND(CHAR(160),SUBSTITUTE($Z75,\"{\",CHAR(160),HV$1))+1),\"\")","v":"{Eff Heating}"},{"$f":"IFERROR(MID($Z75,FIND(CHAR(160),SUBSTITUTE($Z75,\"{\",CHAR(160),HW$1)),FIND(CHAR(160),SUBSTITUTE($Z75,\"}\",CHAR(160),HW$1))-FIND(CHAR(160),SUBSTITUTE($Z75,\"{\",CHAR(160),HW$1))+1),\"\")","v":"{AFUE}"},{"$f":"IFERROR(MID($Z75,FIND(CHAR(160),SUBSTITUTE($Z75,\"{\",CHAR(160),HX$1)),FIND(CHAR(160),SUBSTITUTE($Z75,\"}\",CHAR(160),HX$1))-FIND(CHAR(160),SUBSTITUTE($Z75,\"{\",CHAR(160),HX$1))+1),\"\")","v":""},{"$f":"IFERROR(MID($Z75,FIND(CHAR(160),SUBSTITUTE($Z75,\"{\",CHAR(160),HY$1)),FIND(CHAR(160),SUBSTITUTE($Z75,\"}\",CHAR(160),HY$1))-FIND(CHAR(160),SUBSTITUTE($Z75,\"{\",CHAR(160),HY$1))+1),\"\")","v":""},{"$f":"IFERROR(MID($Z75,FIND(CHAR(160),SUBSTITUTE($Z75,\"{\",CHAR(160),HZ$1)),FIND(CHAR(160),SUBSTITUTE($Z75,\"}\",CHAR(160),HZ$1))-FIND(CHAR(160),SUBSTITUTE($Z75,\"{\",CHAR(160),HZ$1))+1),\"\")","v":""},{"$f":"IFERROR(MID($Z75,FIND(CHAR(160),SUBSTITUTE($Z75,\"{\",CHAR(160),IA$1)),FIND(CHAR(160),SUBSTITUTE($Z75,\"}\",CHAR(160),IA$1))-FIND(CHAR(160),SUBSTITUTE($Z75,\"{\",CHAR(160),IA$1))+1),\"\")","v":""},{"$f":"IFERROR(MID($Z75,FIND(CHAR(160),SUBSTITUTE($Z75,\"{\",CHAR(160),IB$1)),FIND(CHAR(160),SUBSTITUTE($Z75,\"}\",CHAR(160),IB$1))-FIND(CHAR(160),SUBSTITUTE($Z75,\"{\",CHAR(160),IB$1))+1),\"\")","v":""},{"$f":"IFERROR(MID($Z75,FIND(CHAR(160),SUBSTITUTE($Z75,\"{\",CHAR(160),IC$1)),FIND(CHAR(160),SUBSTITUTE($Z75,\"}\",CHAR(160),IC$1))-FIND(CHAR(160),SUBSTITUTE($Z75,\"{\",CHAR(160),IC$1))+1),\"\")","v":"{Measure:Quantity}"},{"$f":"IFERROR(MID($Z75,FIND(CHAR(160),SUBSTITUTE($Z75,\"{\",CHAR(160),ID$1)),FIND(CHAR(160),SUBSTITUTE($Z75,\"}\",CHAR(160),ID$1))-FIND(CHAR(160),SUBSTITUTE($Z75,\"{\",CHAR(160),ID$1))+1),\"\")","v":"{Heating Fuel Type}"},{"$f":"IFERROR(MID($AA75,FIND(CHAR(160),SUBSTITUTE($AA75,\"{\",CHAR(160),IE$1)),FIND(CHAR(160),SUBSTITUTE($AA75,\"}\",CHAR(160),IE$1))-FIND(CHAR(160),SUBSTITUTE($AA75,\"{\",CHAR(160),IE$1))+1),\"\")","v":"{Ventilation Air Rate}"},{"$f":"IFERROR(MID($AA75,FIND(CHAR(160),SUBSTITUTE($AA75,\"{\",CHAR(160),IF$1)),FIND(CHAR(160),SUBSTITUTE($AA75,\"}\",CHAR(160),IF$1))-FIND(CHAR(160),SUBSTITUTE($AA75,\"{\",CHAR(160),IF$1))+1),\"\")","v":"{Eff Heating}"},{"$f":"IFERROR(MID($AA75,FIND(CHAR(160),SUBSTITUTE($AA75,\"{\",CHAR(160),IG$1)),FIND(CHAR(160),SUBSTITUTE($AA75,\"}\",CHAR(160),IG$1))-FIND(CHAR(160),SUBSTITUTE($AA75,\"{\",CHAR(160),IG$1))+1),\"\")","v":"{AFUE}"},{"$f":"IFERROR(MID($AA75,FIND(CHAR(160),SUBSTITUTE($AA75,\"{\",CHAR(160),IH$1)),FIND(CHAR(160),SUBSTITUTE($AA75,\"}\",CHAR(160),IH$1))-FIND(CHAR(160),SUBSTITUTE($AA75,\"{\",CHAR(160),IH$1))+1),\"\")","v":""},{"$f":"IFERROR(MID($AA75,FIND(CHAR(160),SUBSTITUTE($AA75,\"{\",CHAR(160),II$1)),FIND(CHAR(160),SUBSTITUTE($AA75,\"}\",CHAR(160),II$1))-FIND(CHAR(160),SUBSTITUTE($AA75,\"{\",CHAR(160),II$1))+1),\"\")","v":""},{"$f":"IFERROR(MID($AA75,FIND(CHAR(160),SUBSTITUTE($AA75,\"{\",CHAR(160),IJ$1)),FIND(CHAR(160),SUBSTITUTE($AA75,\"}\",CHAR(160),IJ$1))-FIND(CHAR(160),SUBSTITUTE($AA75,\"{\",CHAR(160),IJ$1))+1),\"\")","v":""},{"$f":"IFERROR(MID($AA75,FIND(CHAR(160),SUBSTITUTE($AA75,\"{\",CHAR(160),IK$1)),FIND(CHAR(160),SUBSTITUTE($AA75,\"}\",CHAR(160),IK$1))-FIND(CHAR(160),SUBSTITUTE($AA75,\"{\",CHAR(160),IK$1))+1),\"\")","v":""},{"$f":"IFERROR(MID($AA75,FIND(CHAR(160),SUBSTITUTE($AA75,\"{\",CHAR(160),IL$1)),FIND(CHAR(160),SUBSTITUTE($AA75,\"}\",CHAR(160),IL$1))-FIND(CHAR(160),SUBSTITUTE($AA75,\"{\",CHAR(160),IL$1))+1),\"\")","v":""},{"$f":"IFERROR(MID($AA75,FIND(CHAR(160),SUBSTITUTE($AA75,\"{\",CHAR(160),IM$1)),FIND(CHAR(160),SUBSTITUTE($AA75,\"}\",CHAR(160),IM$1))-FIND(CHAR(160),SUBSTITUTE($AA75,\"{\",CHAR(160),IM$1))+1),\"\")","v":"{Measure:Quantity}"},{"$f":"IFERROR(MID($AA75,FIND(CHAR(160),SUBSTITUTE($AA75,\"{\",CHAR(160),IN$1)),FIND(CHAR(160),SUBSTITUTE($AA75,\"}\",CHAR(160),IN$1))-FIND(CHAR(160),SUBSTITUTE($AA75,\"{\",CHAR(160),IN$1))+1),\"\")","v":"{Heating Fuel Type}"},{"$f":"IFERROR(MID($AB75,FIND(CHAR(160),SUBSTITUTE($AB75,\"{\",CHAR(160),IO$1)),FIND(CHAR(160),SUBSTITUTE($AB75,\"}\",CHAR(160),IO$1))-FIND(CHAR(160),SUBSTITUTE($AB75,\"{\",CHAR(160),IO$1))+1),\"\")","v":""},{"$f":"IFERROR(MID($AB75,FIND(CHAR(160),SUBSTITUTE($AB75,\"{\",CHAR(160),IP$1)),FIND(CHAR(160),SUBSTITUTE($AB75,\"}\",CHAR(160),IP$1))-FIND(CHAR(160),SUBSTITUTE($AB75,\"{\",CHAR(160),IP$1))+1),\"\")","v":""},{"$f":"IFERROR(MID($AB75,FIND(CHAR(160),SUBSTITUTE($AB75,\"{\",CHAR(160),IQ$1)),FIND(CHAR(160),SUBSTITUTE($AB75,\"}\",CHAR(160),IQ$1))-FIND(CHAR(160),SUBSTITUTE($AB75,\"{\",CHAR(160),IQ$1))+1),\"\")","v":""},{"$f":"IFERROR(MID($AB75,FIND(CHAR(160),SUBSTITUTE($AB75,\"{\",CHAR(160),IR$1)),FIND(CHAR(160),SUBSTITUTE($AB75,\"}\",CHAR(160),IR$1))-FIND(CHAR(160),SUBSTITUTE($AB75,\"{\",CHAR(160),IR$1))+1),\"\")","v":""},{"$f":"IFERROR(MID($AB75,FIND(CHAR(160),SUBSTITUTE($AB75,\"{\",CHAR(160),IS$1)),FIND(CHAR(160),SUBSTITUTE($AB75,\"}\",CHAR(160),IS$1))-FIND(CHAR(160),SUBSTITUTE($AB75,\"{\",CHAR(160),IS$1))+1),\"\")","v":""},{"$f":"IFERROR(MID($AB75,FIND(CHAR(160),SUBSTITUTE($AB75,\"{\",CHAR(160),IT$1)),FIND(CHAR(160),SUBSTITUTE($AB75,\"}\",CHAR(160),IT$1))-FIND(CHAR(160),SUBSTITUTE($AB75,\"{\",CHAR(160),IT$1))+1),\"\")","v":""},{"$f":"IFERROR(MID($AB75,FIND(CHAR(160),SUBSTITUTE($AB75,\"{\",CHAR(160),IU$1)),FIND(CHAR(160),SUBSTITUTE($AB75,\"}\",CHAR(160),IU$1))-FIND(CHAR(160),SUBSTITUTE($AB75,\"{\",CHAR(160),IU$1))+1),\"\")","v":""},{"$f":"IFERROR(MID($AB75,FIND(CHAR(160),SUBSTITUTE($AB75,\"{\",CHAR(160),IV$1)),FIND(CHAR(160),SUBSTITUTE($AB75,\"}\",CHAR(160),IV$1))-FIND(CHAR(160),SUBSTITUTE($AB75,\"{\",CHAR(160),IV$1))+1),\"\")","v":""},{"$f":"IFERROR(MID($AB75,FIND(CHAR(160),SUBSTITUTE($AB75,\"{\",CHAR(160),IW$1)),FIND(CHAR(160),SUBSTITUTE($AB75,\"}\",CHAR(160),IW$1))-FIND(CHAR(160),SUBSTITUTE($AB75,\"{\",CHAR(160),IW$1))+1),\"\")","v":""},{"$f":"IFERROR(MID($AB75,FIND(CHAR(160),SUBSTITUTE($AB75,\"{\",CHAR(160),IX$1)),FIND(CHAR(160),SUBSTITUTE($AB75,\"}\",CHAR(160),IX$1))-FIND(CHAR(160),SUBSTITUTE($AB75,\"{\",CHAR(160),IX$1))+1),\"\")","v":""},null,{"$f":"10-COUNTIF(DU75:ED75,\"\")","v":8}]
["C&I HVAC - Natural Gas","VFD: Heating Hot Water Circulation Pump","HHWP","2021-07-01","2022-06-30","Calculated","{Measure:Quantity}*if({Motor HP}=5,2425,if({Motor HP}=7.5,2648,if({Motor HP}=10,2871,if({Motor HP}=15,3317,if({Motor HP}=20,3763,if({Motor HP}=25,4209,if({Motor HP}=30,4655,0)))))))",0,"Calculated","{Measure:Quantity}*if({Motor HP}=5,400,if({Motor HP}=7.5,650,if({Motor HP}=10,1400,if({Motor HP}=15,1650,if({Motor HP}=20,1850,if({Motor HP}=25,2000,if({Motor HP}=30,2300,0)))))))",0,"2021-05-25","2022-06-30","Calculated","{Measure:Quantity}*{Motor HP}*1548",null,null,"{Measure:Quantity}*{Motor HP}*.096",null,null,"{Measure:Quantity}*{Factor:WinterCF}*{Motor HP}*.096","{Measure:Quantity}*{Factor:SummerCF}*{Motor HP}*.096",null,null,null,null,null,null,"2021-05-25","2022-06-30",13,0.73699999999999999,0,0.53600000000000003,0.46300000000000002,0,1E-3,1,1.1220000000000001,1,0.52,1.6E-2,null,{"$f":"DU76","v":"{Measure:Quantity}"},1,{"$f":"DV76","v":"{Motor HP}"},5,{"$f":"DW76","v":""},null,{"$f":"DX76","v":""},null,{"$f":"DY76","v":""},null,{"$f":"DZ76","v":""},null,{"$f":"EA76","v":""},null,{"$f":"EB76","v":""},null,{"$f":"EC76","v":""},null,{"$f":"ED76","v":""},null,{"$f":"AS76*AU76*1548","v":7740},0,0,{"$f":"AS76*AU76*0.096","v":0.48},0,0,{"$f":"AS76*AF76*AU76*0.096","v":0.35376000000000002},{"$f":"AS76*AG76*AU76*0.096","v":0},0,0,0,0,0,0,null,"Res","Default DR",{"$f":"Benefits(BL76,BR76,BS76,BT76,BU76,BV76,BW76,BX76,BY76,BZ76,AE76,AH76,AI76,AJ76,AK76,AL76,AM76,AN76,AO76,AP76,CA76,CB76)","v":10983.087896241661},1184.7547047844068,0,0,0,0,0,0,0,{"$f":"SUMPRODUCT(CC76:CK76,--(CC76:CK76>0))","v":12167.842601026068},{"$f":"-SUMPRODUCT(CC76:CK76,--(CC76:CK76<0))","v":0},null,{"$f":"AS76*IF(AU76=5,2425,IF(AU76=7.5,2648,IF(AU76=10,2871,IF(AU76=15,3317,IF(AU76=20,3763,IF(AU76=25,4209,IF(AU76=30,4655,0)))))))","v":2425},null,null,{"$f":"CM76+CO76","v":2425},{"$f":"IF(NetOrGross=\"Net\",(1-AO76+AP76),1)","v":1},{"$f":"(SUMPRODUCT(CC76:CJ76,--(CC76:CJ76>0))+CN76)*CS76/((-SUMPRODUCT(CC76:CJ76,--(CC76:CJ76<0))+MAX(CO76,CV76)+CP76+CQ76)*CS76+IF(FRIncentives=\"Yes\",CV76*(1-CS76),0))","v":5.0176670519695126},1,{"$f":"AS76*IF(AU76=5,400,IF(AU76=7.5,650,IF(AU76=10,1400,IF(AU76=15,1650,IF(AU76=20,1850,IF(AU76=25,2000,IF(AU76=30,2300,0)))))))","v":400},null,"NG","y",null,{"$f":"IF(F76=\"Manual Entry\",\"Manual\",IF(G76=\"\",0,\"X=\"&SUBSTITUTE(SUBSTITUTE(SUBSTITUTE(SUBSTITUTE(SUBSTITUTE(SUBSTITUTE(SUBSTITUTE(SUBSTITUTE(SUBSTITUTE(SUBSTITUTE(SUBSTITUTE(SUBSTITUTE(G76,$ED76,$ED$2&ROW($ED76)),$EC76,$EC$2&ROW($EC76)),$EB76,$EB$2&ROW($EB76)),$EA76,$EA$2&ROW($EA76)),$DZ76,$DZ$2&ROW($DZ76)),$DY76,$DY$2&ROW($DY76)),$DX76,$DX$2&ROW($DX76)),$DW76,$DW$2&ROW($DW76)),$DV76,$DV$2&ROW($DV76)),$DU76,$DU$2&ROW($DU76)),$DT76,$DT$2&ROW($DT76)),$DS76,$DS$2&ROW($DS76))))","v":"X=AS76*if(AU76=5,2425,if(AU76=7.5,2648,if(AU76=10,2871,if(AU76=15,3317,if(AU76=20,3763,if(AU76=25,4209,if(AU76=30,4655,0)))))))"},{"$f":"IF(I76=\"Manual Entry\",\"Manual\",IF(J76=\"\",0,\"X=\"&SUBSTITUTE(SUBSTITUTE(SUBSTITUTE(SUBSTITUTE(SUBSTITUTE(SUBSTITUTE(SUBSTITUTE(SUBSTITUTE(SUBSTITUTE(SUBSTITUTE(SUBSTITUTE(SUBSTITUTE(J76,$ED76,$ED$2&ROW($ED76)),$EC76,$EC$2&ROW($EC76)),$EB76,$EB$2&ROW($EB76)),$EA76,$EA$2&ROW($EA76)),$DZ76,$DZ$2&ROW($DZ76)),$DY76,$DY$2&ROW($DY76)),$DX76,$DX$2&ROW($DX76)),$DW76,$DW$2&ROW($DW76)),$DV76,$DV$2&ROW($DV76)),$DU76,$DU$2&ROW($DU76)),$DT76,$DT$2&ROW($DT76)),$DS76,$DS$2&ROW($DS76))))","v":"X=AS76*if(AU76=5,400,if(AU76=7.5,650,if(AU76=10,1400,if(AU76=15,1650,if(AU76=20,1850,if(AU76=25,2000,if(AU76=30,2300,0)))))))"},{"$f":"IF(O76=\"\",0,\"X=\"&SUBSTITUTE(SUBSTITUTE(SUBSTITUTE(SUBSTITUTE(SUBSTITUTE(SUBSTITUTE(SUBSTITUTE(SUBSTITUTE(SUBSTITUTE(SUBSTITUTE(SUBSTITUTE(SUBSTITUTE(O76,$ED76,$ED$2&ROW($ED76)),$EC76,$EC$2&ROW($EC76)),$EB76,$EB$2&ROW($EB76)),$EA76,$EA$2&ROW($EA76)),$DZ76,$DZ$2&ROW($DZ76)),$DY76,$DY$2&ROW($DY76)),$DX76,$DX$2&ROW($DX76)),$DW76,$DW$2&ROW($DW76)),$DV76,$DV$2&ROW($DV76)),$DU76,$DU$2&ROW($DU76)),$DT76,$DT$2&ROW($DT76)),$DS76,$DS$2&ROW($DS76)))","v":"X=AS76*AU76*1548"},{"$f":"IF(P76=\"\",0,\"X=\"&SUBSTITUTE(SUBSTITUTE(SUBSTITUTE(SUBSTITUTE(SUBSTITUTE(SUBSTITUTE(SUBSTITUTE(SUBSTITUTE(SUBSTITUTE(SUBSTITUTE(SUBSTITUTE(SUBSTITUTE(P76,$ED76,$ED$2&ROW($ED76)),$EC76,$EC$2&ROW($EC76)),$EB76,$EB$2&ROW($EB76)),$EA76,$EA$2&ROW($EA76)),$DZ76,$DZ$2&ROW($DZ76)),$DY76,$DY$2&ROW($DY76)),$DX76,$DX$2&ROW($DX76)),$DW76,$DW$2&ROW($DW76)),$DV76,$DV$2&ROW($DV76)),$DU76,$DU$2&ROW($DU76)),$DT76,$DT$2&ROW($DT76)),$DS76,$DS$2&ROW($DS76)))","v":0},{"$f":"IF(Q76=\"\",0,\"X=\"&SUBSTITUTE(SUBSTITUTE(SUBSTITUTE(SUBSTITUTE(SUBSTITUTE(SUBSTITUTE(SUBSTITUTE(SUBSTITUTE(SUBSTITUTE(SUBSTITUTE(SUBSTITUTE(SUBSTITUTE(Q76,$ED76,$ED$2&ROW($ED76)),$EC76,$EC$2&ROW($EC76)),$EB76,$EB$2&ROW($EB76)),$EA76,$EA$2&ROW($EA76)),$DZ76,$DZ$2&ROW($DZ76)),$DY76,$DY$2&ROW($DY76)),$DX76,$DX$2&ROW($DX76)),$DW76,$DW$2&ROW($DW76)),$DV76,$DV$2&ROW($DV76)),$DU76,$DU$2&ROW($DU76)),$DT76,$DT$2&ROW($DT76)),$DS76,$DS$2&ROW($DS76)))","v":0},{"$f":"IF(R76=\"\",0,\"X=\"&SUBSTITUTE(SUBSTITUTE(SUBSTITUTE(SUBSTITUTE(SUBSTITUTE(SUBSTITUTE(SUBSTITUTE(SUBSTITUTE(SUBSTITUTE(SUBSTITUTE(SUBSTITUTE(SUBSTITUTE(R76,$ED76,$ED$2&ROW($ED76)),$EC76,$EC$2&ROW($EC76)),$EB76,$EB$2&ROW($EB76)),$EA76,$EA$2&ROW($EA76)),$DZ76,$DZ$2&ROW($DZ76)),$DY76,$DY$2&ROW($DY76)),$DX76,$DX$2&ROW($DX76)),$DW76,$DW$2&ROW($DW76)),$DV76,$DV$2&ROW($DV76)),$DU76,$DU$2&ROW($DU76)),$DT76,$DT$2&ROW($DT76)),$DS76,$DS$2&ROW($DS76)))","v":"X=AS76*AU76*.096"},{"$f":"IF(S76=\"\",0,\"X=\"&SUBSTITUTE(SUBSTITUTE(SUBSTITUTE(SUBSTITUTE(SUBSTITUTE(SUBSTITUTE(SUBSTITUTE(SUBSTITUTE(SUBSTITUTE(SUBSTITUTE(SUBSTITUTE(SUBSTITUTE(S76,$ED76,$ED$2&ROW($ED76)),$EC76,$EC$2&ROW($EC76)),$EB76,$EB$2&ROW($EB76)),$EA76,$EA$2&ROW($EA76)),$DZ76,$DZ$2&ROW($DZ76)),$DY76,$DY$2&ROW($DY76)),$DX76,$DX$2&ROW($DX76)),$DW76,$DW$2&ROW($DW76)),$DV76,$DV$2&ROW($DV76)),$DU76,$DU$2&ROW($DU76)),$DT76,$DT$2&ROW($DT76)),$DS76,$DS$2&ROW($DS76)))","v":0},{"$f":"IF(T76=\"\",0,\"X=\"&SUBSTITUTE(SUBSTITUTE(SUBSTITUTE(SUBSTITUTE(SUBSTITUTE(SUBSTITUTE(SUBSTITUTE(SUBSTITUTE(SUBSTITUTE(SUBSTITUTE(SUBSTITUTE(SUBSTITUTE(T76,$ED76,$ED$2&ROW($ED76)),$EC76,$EC$2&ROW($EC76)),$EB76,$EB$2&ROW($EB76)),$EA76,$EA$2&ROW($EA76)),$DZ76,$DZ$2&ROW($DZ76)),$DY76,$DY$2&ROW($DY76)),$DX76,$DX$2&ROW($DX76)),$DW76,$DW$2&ROW($DW76)),$DV76,$DV$2&ROW($DV76)),$DU76,$DU$2&ROW($DU76)),$DT76,$DT$2&ROW($DT76)),$DS76,$DS$2&ROW($DS76)))","v":0},{"$f":"IF(U76=\"\",0,\"X=\"&SUBSTITUTE(SUBSTITUTE(SUBSTITUTE(SUBSTITUTE(SUBSTITUTE(SUBSTITUTE(SUBSTITUTE(SUBSTITUTE(SUBSTITUTE(SUBSTITUTE(SUBSTITUTE(SUBSTITUTE(U76,$ED76,$ED$2&ROW($ED76)),$EC76,$EC$2&ROW($EC76)),$EB76,$EB$2&ROW($EB76)),$EA76,$EA$2&ROW($EA76)),$DZ76,$DZ$2&ROW($DZ76)),$DY76,$DY$2&ROW($DY76)),$DX76,$DX$2&ROW($DX76)),$DW76,$DW$2&ROW($DW76)),$DV76,$DV$2&ROW($DV76)),$DU76,$DU$2&ROW($DU76)),$DT76,$DT$2&ROW($DT76)),$DS76,$DS$2&ROW($DS76)))","v":"X=AS76*AF76*AU76*.096"},{"$f":"IF(V76=\"\",0,\"X=\"&SUBSTITUTE(SUBSTITUTE(SUBSTITUTE(SUBSTITUTE(SUBSTITUTE(SUBSTITUTE(SUBSTITUTE(SUBSTITUTE(SUBSTITUTE(SUBSTITUTE(SUBSTITUTE(SUBSTITUTE(V76,$ED76,$ED$2&ROW($ED76)),$EC76,$EC$2&ROW($EC76)),$EB76,$EB$2&ROW($EB76)),$EA76,$EA$2&ROW($EA76)),$DZ76,$DZ$2&ROW($DZ76)),$DY76,$DY$2&ROW($DY76)),$DX76,$DX$2&ROW($DX76)),$DW76,$DW$2&ROW($DW76)),$DV76,$DV$2&ROW($DV76)),$DU76,$DU$2&ROW($DU76)),$DT76,$DT$2&ROW($DT76)),$DS76,$DS$2&ROW($DS76)))","v":"X=AS76*AG76*AU76*.096"},{"$f":"IF(W76=\"\",0,\"X=\"&SUBSTITUTE(SUBSTITUTE(SUBSTITUTE(SUBSTITUTE(SUBSTITUTE(SUBSTITUTE(SUBSTITUTE(SUBSTITUTE(SUBSTITUTE(SUBSTITUTE(SUBSTITUTE(SUBSTITUTE(W76,$ED76,$ED$2&ROW($ED76)),$EC76,$EC$2&ROW($EC76)),$EB76,$EB$2&ROW($EB76)),$EA76,$EA$2&ROW($EA76)),$DZ76,$DZ$2&ROW($DZ76)),$DY76,$DY$2&ROW($DY76)),$DX76,$DX$2&ROW($DX76)),$DW76,$DW$2&ROW($DW76)),$DV76,$DV$2&ROW($DV76)),$DU76,$DU$2&ROW($DU76)),$DT76,$DT$2&ROW($DT76)),$DS76,$DS$2&ROW($DS76)))","v":0},{"$f":"IF(X76=\"\",0,\"X=\"&SUBSTITUTE(SUBSTITUTE(SUBSTITUTE(SUBSTITUTE(SUBSTITUTE(SUBSTITUTE(SUBSTITUTE(SUBSTITUTE(SUBSTITUTE(SUBSTITUTE(SUBSTITUTE(SUBSTITUTE(X76,$ED76,$ED$2&ROW($ED76)),$EC76,$EC$2&ROW($EC76)),$EB76,$EB$2&ROW($EB76)),$EA76,$EA$2&ROW($EA76)),$DZ76,$DZ$2&ROW($DZ76)),$DY76,$DY$2&ROW($DY76)),$DX76,$DX$2&ROW($DX76)),$DW76,$DW$2&ROW($DW76)),$DV76,$DV$2&ROW($DV76)),$DU76,$DU$2&ROW($DU76)),$DT76,$DT$2&ROW($DT76)),$DS76,$DS$2&ROW($DS76)))","v":0},{"$f":"IF(Y76=\"\",0,\"X=\"&SUBSTITUTE(SUBSTITUTE(SUBSTITUTE(SUBSTITUTE(SUBSTITUTE(SUBSTITUTE(SUBSTITUTE(SUBSTITUTE(SUBSTITUTE(SUBSTITUTE(SUBSTITUTE(SUBSTITUTE(Y76,$ED76,$ED$2&ROW($ED76)),$EC76,$EC$2&ROW($EC76)),$EB76,$EB$2&ROW($EB76)),$EA76,$EA$2&ROW($EA76)),$DZ76,$DZ$2&ROW($DZ76)),$DY76,$DY$2&ROW($DY76)),$DX76,$DX$2&ROW($DX76)),$DW76,$DW$2&ROW($DW76)),$DV76,$DV$2&ROW($DV76)),$DU76,$DU$2&ROW($DU76)),$DT76,$DT$2&ROW($DT76)),$DS76,$DS$2&ROW($DS76)))","v":0},{"$f":"IF(Z76=\"\",0,\"X=\"&SUBSTITUTE(SUBSTITUTE(SUBSTITUTE(SUBSTITUTE(SUBSTITUTE(SUBSTITUTE(SUBSTITUTE(SUBSTITUTE(SUBSTITUTE(SUBSTITUTE(SUBSTITUTE(SUBSTITUTE(Z76,$ED76,$ED$2&ROW($ED76)),$EC76,$EC$2&ROW($EC76)),$EB76,$EB$2&ROW($EB76)),$EA76,$EA$2&ROW($EA76)),$DZ76,$DZ$2&ROW($DZ76)),$DY76,$DY$2&ROW($DY76)),$DX76,$DX$2&ROW($DX76)),$DW76,$DW$2&ROW($DW76)),$DV76,$DV$2&ROW($DV76)),$DU76,$DU$2&ROW($DU76)),$DT76,$DT$2&ROW($DT76)),$DS76,$DS$2&ROW($DS76)))","v":0},{"$f":"IF(AA76=\"\",0,\"X=\"&SUBSTITUTE(SUBSTITUTE(SUBSTITUTE(SUBSTITUTE(SUBSTITUTE(SUBSTITUTE(SUBSTITUTE(SUBSTITUTE(SUBSTITUTE(SUBSTITUTE(SUBSTITUTE(SUBSTITUTE(AA76,$ED76,$ED$2&ROW($ED76)),$EC76,$EC$2&ROW($EC76)),$EB76,$EB$2&ROW($EB76)),$EA76,$EA$2&ROW($EA76)),$DZ76,$DZ$2&ROW($DZ76)),$DY76,$DY$2&ROW($DY76)),$DX76,$DX$2&ROW($DX76)),$DW76,$DW$2&ROW($DW76)),$DV76,$DV$2&ROW($DV76)),$DU76,$DU$2&ROW($DU76)),$DT76,$DT$2&ROW($DT76)),$DS76,$DS$2&ROW($DS76)))","v":0},{"$f":"IF(AB76=\"\",0,\"X=\"&SUBSTITUTE(SUBSTITUTE(SUBSTITUTE(SUBSTITUTE(SUBSTITUTE(SUBSTITUTE(SUBSTITUTE(SUBSTITUTE(SUBSTITUTE(SUBSTITUTE(SUBSTITUTE(SUBSTITUTE(AB76,$ED76,$ED$2&ROW($ED76)),$EC76,$EC$2&ROW($EC76)),$EB76,$EB$2&ROW($EB76)),$EA76,$EA$2&ROW($EA76)),$DZ76,$DZ$2&ROW($DZ76)),$DY76,$DY$2&ROW($DY76)),$DX76,$DX$2&ROW($DX76)),$DW76,$DW$2&ROW($DW76)),$DV76,$DV$2&ROW($DV76)),$DU76,$DU$2&ROW($DU76)),$DT76,$DT$2&ROW($DT76)),$DS76,$DS$2&ROW($DS76)))","v":0},null,null,"{Factor:WinterCF}","{Factor:SummerCF}",{"$f":"IFERROR(INDEX($EG76:$IV76,MATCH(0,COUNTIF($DR76:DT76,$EG76:$IV76),0)),\"\")","v":"{Measure:Quantity}"},{"$f":"IFERROR(INDEX($EG76:$IV76,MATCH(0,COUNTIF($DR76:DU76,$EG76:$IV76),0)),\"\")","v":"{Motor HP}"},{"$f":"IFERROR(INDEX($EG76:$IV76,MATCH(0,COUNTIF($DR76:DV76,$EG76:$IV76),0)),\"\")","v":""},{"$f":"IFERROR(INDEX($EG76:$IV76,MATCH(0,COUNTIF($DR76:DW76,$EG76:$IV76),0)),\"\")","v":""},{"$f":"IFERROR(INDEX($EG76:$IV76,MATCH(0,COUNTIF($DR76:DX76,$EG76:$IV76),0)),\"\")","v":""},{"$f":"IFERROR(INDEX($EG76:$IV76,MATCH(0,COUNTIF($DR76:DY76,$EG76:$IV76),0)),\"\")","v":""},{"$f":"IFERROR(INDEX($EG76:$IV76,MATCH(0,COUNTIF($DR76:DZ76,$EG76:$IV76),0)),\"\")","v":""},{"$f":"IFERROR(INDEX($EG76:$IV76,MATCH(0,COUNTIF($DR76:EA76,$EG76:$IV76),0)),\"\")","v":""},{"$f":"IFERROR(INDEX($EG76:$IV76,MATCH(0,COUNTIF($DR76:EB76,$EG76:$IV76),0)),\"\")","v":""},{"$f":"IFERROR(INDEX($EG76:$IV76,MATCH(0,COUNTIF($DR76:EC76,$EG76:$IV76),0)),\"\")","v":""},null,null,{"$f":"IFERROR(MID($G76,FIND(CHAR(160),SUBSTITUTE($G76,\"{\",CHAR(160),EG$1)),FIND(CHAR(160),SUBSTITUTE($G76,\"}\",CHAR(160),EG$1))-FIND(CHAR(160),SUBSTITUTE($G76,\"{\",CHAR(160),EG$1))+1),\"\")","v":"{Measure:Quantity}"},{"$f":"IFERROR(MID($G76,FIND(CHAR(160),SUBSTITUTE($G76,\"{\",CHAR(160),EH$1)),FIND(CHAR(160),SUBSTITUTE($G76,\"}\",CHAR(160),EH$1))-FIND(CHAR(160),SUBSTITUTE($G76,\"{\",CHAR(160),EH$1))+1),\"\")","v":"{Motor HP}"},{"$f":"IFERROR(MID($G76,FIND(CHAR(160),SUBSTITUTE($G76,\"{\",CHAR(160),EI$1)),FIND(CHAR(160),SUBSTITUTE($G76,\"}\",CHAR(160),EI$1))-FIND(CHAR(160),SUBSTITUTE($G76,\"{\",CHAR(160),EI$1))+1),\"\")","v":"{Motor HP}"},{"$f":"IFERROR(MID($G76,FIND(CHAR(160),SUBSTITUTE($G76,\"{\",CHAR(160),EJ$1)),FIND(CHAR(160),SUBSTITUTE($G76,\"}\",CHAR(160),EJ$1))-FIND(CHAR(160),SUBSTITUTE($G76,\"{\",CHAR(160),EJ$1))+1),\"\")","v":"{Motor HP}"},{"$f":"IFERROR(MID($G76,FIND(CHAR(160),SUBSTITUTE($G76,\"{\",CHAR(160),EK$1)),FIND(CHAR(160),SUBSTITUTE($G76,\"}\",CHAR(160),EK$1))-FIND(CHAR(160),SUBSTITUTE($G76,\"{\",CHAR(160),EK$1))+1),\"\")","v":"{Motor HP}"},{"$f":"IFERROR(MID($G76,FIND(CHAR(160),SUBSTITUTE($G76,\"{\",CHAR(160),EL$1)),FIND(CHAR(160),SUBSTITUTE($G76,\"}\",CHAR(160),EL$1))-FIND(CHAR(160),SUBSTITUTE($G76,\"{\",CHAR(160),EL$1))+1),\"\")","v":"{Motor HP}"},{"$f":"IFERROR(MID($G76,FIND(CHAR(160),SUBSTITUTE($G76,\"{\",CHAR(160),EM$1)),FIND(CHAR(160),SUBSTITUTE($G76,\"}\",CHAR(160),EM$1))-FIND(CHAR(160),SUBSTITUTE($G76,\"{\",CHAR(160),EM$1))+1),\"\")","v":"{Motor HP}"},{"$f":"IFERROR(MID($G76,FIND(CHAR(160),SUBSTITUTE($G76,\"{\",CHAR(160),EN$1)),FIND(CHAR(160),SUBSTITUTE($G76,\"}\",CHAR(160),EN$1))-FIND(CHAR(160),SUBSTITUTE($G76,\"{\",CHAR(160),EN$1))+1),\"\")","v":"{Motor HP}"},{"$f":"IFERROR(MID($G76,FIND(CHAR(160),SUBSTITUTE($G76,\"{\",CHAR(160),EO$1)),FIND(CHAR(160),SUBSTITUTE($G76,\"}\",CHAR(160),EO$1))-FIND(CHAR(160),SUBSTITUTE($G76,\"{\",CHAR(160),EO$1))+1),\"\")","v":""},{"$f":"IFERROR(MID($G76,FIND(CHAR(160),SUBSTITUTE($G76,\"{\",CHAR(160),EP$1)),FIND(CHAR(160),SUBSTITUTE($G76,\"}\",CHAR(160),EP$1))-FIND(CHAR(160),SUBSTITUTE($G76,\"{\",CHAR(160),EP$1))+1),\"\")","v":""},{"$f":"IFERROR(MID($J76,FIND(CHAR(160),SUBSTITUTE($J76,\"{\",CHAR(160),EQ$1)),FIND(CHAR(160),SUBSTITUTE($J76,\"}\",CHAR(160),EQ$1))-FIND(CHAR(160),SUBSTITUTE($J76,\"{\",CHAR(160),EQ$1))+1),\"\")","v":"{Measure:Quantity}"},{"$f":"IFERROR(MID($J76,FIND(CHAR(160),SUBSTITUTE($J76,\"{\",CHAR(160),ER$1)),FIND(CHAR(160),SUBSTITUTE($J76,\"}\",CHAR(160),ER$1))-FIND(CHAR(160),SUBSTITUTE($J76,\"{\",CHAR(160),ER$1))+1),\"\")","v":"{Motor HP}"},{"$f":"IFERROR(MID($J76,FIND(CHAR(160),SUBSTITUTE($J76,\"{\",CHAR(160),ES$1)),FIND(CHAR(160),SUBSTITUTE($J76,\"}\",CHAR(160),ES$1))-FIND(CHAR(160),SUBSTITUTE($J76,\"{\",CHAR(160),ES$1))+1),\"\")","v":"{Motor HP}"},{"$f":"IFERROR(MID($J76,FIND(CHAR(160),SUBSTITUTE($J76,\"{\",CHAR(160),ET$1)),FIND(CHAR(160),SUBSTITUTE($J76,\"}\",CHAR(160),ET$1))-FIND(CHAR(160),SUBSTITUTE($J76,\"{\",CHAR(160),ET$1))+1),\"\")","v":"{Motor HP}"},{"$f":"IFERROR(MID($J76,FIND(CHAR(160),SUBSTITUTE($J76,\"{\",CHAR(160),EU$1)),FIND(CHAR(160),SUBSTITUTE($J76,\"}\",CHAR(160),EU$1))-FIND(CHAR(160),SUBSTITUTE($J76,\"{\",CHAR(160),EU$1))+1),\"\")","v":"{Motor HP}"},{"$f":"IFERROR(MID($J76,FIND(CHAR(160),SUBSTITUTE($J76,\"{\",CHAR(160),EV$1)),FIND(CHAR(160),SUBSTITUTE($J76,\"}\",CHAR(160),EV$1))-FIND(CHAR(160),SUBSTITUTE($J76,\"{\",CHAR(160),EV$1))+1),\"\")","v":"{Motor HP}"},{"$f":"IFERROR(MID($J76,FIND(CHAR(160),SUBSTITUTE($J76,\"{\",CHAR(160),EW$1)),FIND(CHAR(160),SUBSTITUTE($J76,\"}\",CHAR(160),EW$1))-FIND(CHAR(160),SUBSTITUTE($J76,\"{\",CHAR(160),EW$1))+1),\"\")","v":"{Motor HP}"},{"$f":"IFERROR(MID($J76,FIND(CHAR(160),SUBSTITUTE($J76,\"{\",CHAR(160),EX$1)),FIND(CHAR(160),SUBSTITUTE($J76,\"}\",CHAR(160),EX$1))-FIND(CHAR(160),SUBSTITUTE($J76,\"{\",CHAR(160),EX$1))+1),\"\")","v":"{Motor HP}"},{"$f":"IFERROR(MID($J76,FIND(CHAR(160),SUBSTITUTE($J76,\"{\",CHAR(160),EY$1)),FIND(CHAR(160),SUBSTITUTE($J76,\"}\",CHAR(160),EY$1))-FIND(CHAR(160),SUBSTITUTE($J76,\"{\",CHAR(160),EY$1))+1),\"\")","v":""},{"$f":"IFERROR(MID($J76,FIND(CHAR(160),SUBSTITUTE($J76,\"{\",CHAR(160),EZ$1)),FIND(CHAR(160),SUBSTITUTE($J76,\"}\",CHAR(160),EZ$1))-FIND(CHAR(160),SUBSTITUTE($J76,\"{\",CHAR(160),EZ$1))+1),\"\")","v":""},{"$f":"IFERROR(MID($J76,FIND(CHAR(160),SUBSTITUTE($J76,\"{\",CHAR(160),FA$1)),FIND(CHAR(160),SUBSTITUTE($J76,\"}\",CHAR(160),FA$1))-FIND(CHAR(160),SUBSTITUTE($J76,\"{\",CHAR(160),FA$1))+1),\"\")","v":"{Measure:Quantity}"},{"$f":"IFERROR(MID($J76,FIND(CHAR(160),SUBSTITUTE($J76,\"{\",CHAR(160),FB$1)),FIND(CHAR(160),SUBSTITUTE($J76,\"}\",CHAR(160),FB$1))-FIND(CHAR(160),SUBSTITUTE($J76,\"{\",CHAR(160),FB$1))+1),\"\")","v":"{Motor HP}"},{"$f":"IFERROR(MID($O76,FIND(CHAR(160),SUBSTITUTE($O76,\"{\",CHAR(160),FC$1)),FIND(CHAR(160),SUBSTITUTE($O76,\"}\",CHAR(160),FC$1))-FIND(CHAR(160),SUBSTITUTE($O76,\"{\",CHAR(160),FC$1))+1),\"\")","v":""},{"$f":"IFERROR(MID($O76,FIND(CHAR(160),SUBSTITUTE($O76,\"{\",CHAR(160),FD$1)),FIND(CHAR(160),SUBSTITUTE($O76,\"}\",CHAR(160),FD$1))-FIND(CHAR(160),SUBSTITUTE($O76,\"{\",CHAR(160),FD$1))+1),\"\")","v":""},{"$f":"IFERROR(MID($O76,FIND(CHAR(160),SUBSTITUTE($O76,\"{\",CHAR(160),FE$1)),FIND(CHAR(160),SUBSTITUTE($O76,\"}\",CHAR(160),FE$1))-FIND(CHAR(160),SUBSTITUTE($O76,\"{\",CHAR(160),FE$1))+1),\"\")","v":""},{"$f":"IFERROR(MID($O76,FIND(CHAR(160),SUBSTITUTE($O76,\"{\",CHAR(160),FF$1)),FIND(CHAR(160),SUBSTITUTE($O76,\"}\",CHAR(160),FF$1))-FIND(CHAR(160),SUBSTITUTE($O76,\"{\",CHAR(160),FF$1))+1),\"\")","v":""},{"$f":"IFERROR(MID($O76,FIND(CHAR(160),SUBSTITUTE($O76,\"{\",CHAR(160),FG$1)),FIND(CHAR(160),SUBSTITUTE($O76,\"}\",CHAR(160),FG$1))-FIND(CHAR(160),SUBSTITUTE($O76,\"{\",CHAR(160),FG$1))+1),\"\")","v":""},{"$f":"IFERROR(MID($O76,FIND(CHAR(160),SUBSTITUTE($O76,\"{\",CHAR(160),FH$1)),FIND(CHAR(160),SUBSTITUTE($O76,\"}\",CHAR(160),FH$1))-FIND(CHAR(160),SUBSTITUTE($O76,\"{\",CHAR(160),FH$1))+1),\"\")","v":""},{"$f":"IFERROR(MID($O76,FIND(CHAR(160),SUBSTITUTE($O76,\"{\",CHAR(160),FI$1)),FIND(CHAR(160),SUBSTITUTE($O76,\"}\",CHAR(160),FI$1))-FIND(CHAR(160),SUBSTITUTE($O76,\"{\",CHAR(160),FI$1))+1),\"\")","v":""},{"$f":"IFERROR(MID($O76,FIND(CHAR(160),SUBSTITUTE($O76,\"{\",CHAR(160),FJ$1)),FIND(CHAR(160),SUBSTITUTE($O76,\"}\",CHAR(160),FJ$1))-FIND(CHAR(160),SUBSTITUTE($O76,\"{\",CHAR(160),FJ$1))+1),\"\")","v":""},{"$f":"IFERROR(MID($O76,FIND(CHAR(160),SUBSTITUTE($O76,\"{\",CHAR(160),FK$1)),FIND(CHAR(160),SUBSTITUTE($O76,\"}\",CHAR(160),FK$1))-FIND(CHAR(160),SUBSTITUTE($O76,\"{\",CHAR(160),FK$1))+1),\"\")","v":"{Measure:Quantity}"},{"$f":"IFERROR(MID($O76,FIND(CHAR(160),SUBSTITUTE($O76,\"{\",CHAR(160),FL$1)),FIND(CHAR(160),SUBSTITUTE($O76,\"}\",CHAR(160),FL$1))-FIND(CHAR(160),SUBSTITUTE($O76,\"{\",CHAR(160),FL$1))+1),\"\")","v":"{Motor HP}"},{"$f":"IFERROR(MID($R76,FIND(CHAR(160),SUBSTITUTE($R76,\"{\",CHAR(160),FM$1)),FIND(CHAR(160),SUBSTITUTE($R76,\"}\",CHAR(160),FM$1))-FIND(CHAR(160),SUBSTITUTE($R76,\"{\",CHAR(160),FM$1))+1),\"\")","v":""},{"$f":"IFERROR(MID($R76,FIND(CHAR(160),SUBSTITUTE($R76,\"{\",CHAR(160),FN$1)),FIND(CHAR(160),SUBSTITUTE($R76,\"}\",CHAR(160),FN$1))-FIND(CHAR(160),SUBSTITUTE($R76,\"{\",CHAR(160),FN$1))+1),\"\")","v":""},{"$f":"IFERROR(MID($R76,FIND(CHAR(160),SUBSTITUTE($R76,\"{\",CHAR(160),FO$1)),FIND(CHAR(160),SUBSTITUTE($R76,\"}\",CHAR(160),FO$1))-FIND(CHAR(160),SUBSTITUTE($R76,\"{\",CHAR(160),FO$1))+1),\"\")","v":""},{"$f":"IFERROR(MID($R76,FIND(CHAR(160),SUBSTITUTE($R76,\"{\",CHAR(160),FP$1)),FIND(CHAR(160),SUBSTITUTE($R76,\"}\",CHAR(160),FP$1))-FIND(CHAR(160),SUBSTITUTE($R76,\"{\",CHAR(160),FP$1))+1),\"\")","v":""},{"$f":"IFERROR(MID($R76,FIND(CHAR(160),SUBSTITUTE($R76,\"{\",CHAR(160),FQ$1)),FIND(CHAR(160),SUBSTITUTE($R76,\"}\",CHAR(160),FQ$1))-FIND(CHAR(160),SUBSTITUTE($R76,\"{\",CHAR(160),FQ$1))+1),\"\")","v":""},{"$f":"IFERROR(MID($R76,FIND(CHAR(160),SUBSTITUTE($R76,\"{\",CHAR(160),FR$1)),FIND(CHAR(160),SUBSTITUTE($R76,\"}\",CHAR(160),FR$1))-FIND(CHAR(160),SUBSTITUTE($R76,\"{\",CHAR(160),FR$1))+1),\"\")","v":""},{"$f":"IFERROR(MID($R76,FIND(CHAR(160),SUBSTITUTE($R76,\"{\",CHAR(160),FS$1)),FIND(CHAR(160),SUBSTITUTE($R76,\"}\",CHAR(160),FS$1))-FIND(CHAR(160),SUBSTITUTE($R76,\"{\",CHAR(160),FS$1))+1),\"\")","v":""},{"$f":"IFERROR(MID($R76,FIND(CHAR(160),SUBSTITUTE($R76,\"{\",CHAR(160),FT$1)),FIND(CHAR(160),SUBSTITUTE($R76,\"}\",CHAR(160),FT$1))-FIND(CHAR(160),SUBSTITUTE($R76,\"{\",CHAR(160),FT$1))+1),\"\")","v":""},{"$f":"IFERROR(MID($R76,FIND(CHAR(160),SUBSTITUTE($R76,\"{\",CHAR(160),FU$1)),FIND(CHAR(160),SUBSTITUTE($R76,\"}\",CHAR(160),FU$1))-FIND(CHAR(160),SUBSTITUTE($R76,\"{\",CHAR(160),FU$1))+1),\"\")","v":"{Measure:Quantity}"},{"$f":"IFERROR(MID($R76,FIND(CHAR(160),SUBSTITUTE($R76,\"{\",CHAR(160),FV$1)),FIND(CHAR(160),SUBSTITUTE($R76,\"}\",CHAR(160),FV$1))-FIND(CHAR(160),SUBSTITUTE($R76,\"{\",CHAR(160),FV$1))+1),\"\")","v":"{Motor HP}"},{"$f":"IFERROR(MID($U76,FIND(CHAR(160),SUBSTITUTE($U76,\"{\",CHAR(160),FW$1)),FIND(CHAR(160),SUBSTITUTE($U76,\"}\",CHAR(160),FW$1))-FIND(CHAR(160),SUBSTITUTE($U76,\"{\",CHAR(160),FW$1))+1),\"\")","v":"{Motor HP}"},{"$f":"IFERROR(MID($U76,FIND(CHAR(160),SUBSTITUTE($U76,\"{\",CHAR(160),FX$1)),FIND(CHAR(160),SUBSTITUTE($U76,\"}\",CHAR(160),FX$1))-FIND(CHAR(160),SUBSTITUTE($U76,\"{\",CHAR(160),FX$1))+1),\"\")","v":""},{"$f":"IFERROR(MID($U76,FIND(CHAR(160),SUBSTITUTE($U76,\"{\",CHAR(160),FY$1)),FIND(CHAR(160),SUBSTITUTE($U76,\"}\",CHAR(160),FY$1))-FIND(CHAR(160),SUBSTITUTE($U76,\"{\",CHAR(160),FY$1))+1),\"\")","v":""},{"$f":"IFERROR(MID($U76,FIND(CHAR(160),SUBSTITUTE($U76,\"{\",CHAR(160),FZ$1)),FIND(CHAR(160),SUBSTITUTE($U76,\"}\",CHAR(160),FZ$1))-FIND(CHAR(160),SUBSTITUTE($U76,\"{\",CHAR(160),FZ$1))+1),\"\")","v":""},{"$f":"IFERROR(MID($U76,FIND(CHAR(160),SUBSTITUTE($U76,\"{\",CHAR(160),GA$1)),FIND(CHAR(160),SUBSTITUTE($U76,\"}\",CHAR(160),GA$1))-FIND(CHAR(160),SUBSTITUTE($U76,\"{\",CHAR(160),GA$1))+1),\"\")","v":""},{"$f":"IFERROR(MID($U76,FIND(CHAR(160),SUBSTITUTE($U76,\"{\",CHAR(160),GB$1)),FIND(CHAR(160),SUBSTITUTE($U76,\"}\",CHAR(160),GB$1))-FIND(CHAR(160),SUBSTITUTE($U76,\"{\",CHAR(160),GB$1))+1),\"\")","v":""},{"$f":"IFERROR(MID($U76,FIND(CHAR(160),SUBSTITUTE($U76,\"{\",CHAR(160),GC$1)),FIND(CHAR(160),SUBSTITUTE($U76,\"}\",CHAR(160),GC$1))-FIND(CHAR(160),SUBSTITUTE($U76,\"{\",CHAR(160),GC$1))+1),\"\")","v":""},{"$f":"IFERROR(MID($U76,FIND(CHAR(160),SUBSTITUTE($U76,\"{\",CHAR(160),GD$1)),FIND(CHAR(160),SUBSTITUTE($U76,\"}\",CHAR(160),GD$1))-FIND(CHAR(160),SUBSTITUTE($U76,\"{\",CHAR(160),GD$1))+1),\"\")","v":""},{"$f":"IFERROR(MID($U76,FIND(CHAR(160),SUBSTITUTE($U76,\"{\",CHAR(160),GE$1)),FIND(CHAR(160),SUBSTITUTE($U76,\"}\",CHAR(160),GE$1))-FIND(CHAR(160),SUBSTITUTE($U76,\"{\",CHAR(160),GE$1))+1),\"\")","v":"{Measure:Quantity}"},{"$f":"IFERROR(MID($U76,FIND(CHAR(160),SUBSTITUTE($U76,\"{\",CHAR(160),GF$1)),FIND(CHAR(160),SUBSTITUTE($U76,\"}\",CHAR(160),GF$1))-FIND(CHAR(160),SUBSTITUTE($U76,\"{\",CHAR(160),GF$1))+1),\"\")","v":"{Factor:WinterCF}"},{"$f":"IFERROR(MID($V76,FIND(CHAR(160),SUBSTITUTE($V76,\"{\",CHAR(160),GG$1)),FIND(CHAR(160),SUBSTITUTE($V76,\"}\",CHAR(160),GG$1))-FIND(CHAR(160),SUBSTITUTE($V76,\"{\",CHAR(160),GG$1))+1),\"\")","v":"{Motor HP}"},{"$f":"IFERROR(MID($V76,FIND(CHAR(160),SUBSTITUTE($V76,\"{\",CHAR(160),GH$1)),FIND(CHAR(160),SUBSTITUTE($V76,\"}\",CHAR(160),GH$1))-FIND(CHAR(160),SUBSTITUTE($V76,\"{\",CHAR(160),GH$1))+1),\"\")","v":""},{"$f":"IFERROR(MID($V76,FIND(CHAR(160),SUBSTITUTE($V76,\"{\",CHAR(160),GI$1)),FIND(CHAR(160),SUBSTITUTE($V76,\"}\",CHAR(160),GI$1))-FIND(CHAR(160),SUBSTITUTE($V76,\"{\",CHAR(160),GI$1))+1),\"\")","v":""},{"$f":"IFERROR(MID($V76,FIND(CHAR(160),SUBSTITUTE($V76,\"{\",CHAR(160),GJ$1)),FIND(CHAR(160),SUBSTITUTE($V76,\"}\",CHAR(160),GJ$1))-FIND(CHAR(160),SUBSTITUTE($V76,\"{\",CHAR(160),GJ$1))+1),\"\")","v":""},{"$f":"IFERROR(MID($V76,FIND(CHAR(160),SUBSTITUTE($V76,\"{\",CHAR(160),GK$1)),FIND(CHAR(160),SUBSTITUTE($V76,\"}\",CHAR(160),GK$1))-FIND(CHAR(160),SUBSTITUTE($V76,\"{\",CHAR(160),GK$1))+1),\"\")","v":""},{"$f":"IFERROR(MID($V76,FIND(CHAR(160),SUBSTITUTE($V76,\"{\",CHAR(160),GL$1)),FIND(CHAR(160),SUBSTITUTE($V76,\"}\",CHAR(160),GL$1))-FIND(CHAR(160),SUBSTITUTE($V76,\"{\",CHAR(160),GL$1))+1),\"\")","v":""},{"$f":"IFERROR(MID($V76,FIND(CHAR(160),SUBSTITUTE($V76,\"{\",CHAR(160),GM$1)),FIND(CHAR(160),SUBSTITUTE($V76,\"}\",CHAR(160),GM$1))-FIND(CHAR(160),SUBSTITUTE($V76,\"{\",CHAR(160),GM$1))+1),\"\")","v":""},{"$f":"IFERROR(MID($V76,FIND(CHAR(160),SUBSTITUTE($V76,\"{\",CHAR(160),GN$1)),FIND(CHAR(160),SUBSTITUTE($V76,\"}\",CHAR(160),GN$1))-FIND(CHAR(160),SUBSTITUTE($V76,\"{\",CHAR(160),GN$1))+1),\"\")","v":""},{"$f":"IFERROR(MID($V76,FIND(CHAR(160),SUBSTITUTE($V76,\"{\",CHAR(160),GO$1)),FIND(CHAR(160),SUBSTITUTE($V76,\"}\",CHAR(160),GO$1))-FIND(CHAR(160),SUBSTITUTE($V76,\"{\",CHAR(160),GO$1))+1),\"\")","v":"{Measure:Quantity}"},{"$f":"IFERROR(MID($V76,FIND(CHAR(160),SUBSTITUTE($V76,\"{\",CHAR(160),GP$1)),FIND(CHAR(160),SUBSTITUTE($V76,\"}\",CHAR(160),GP$1))-FIND(CHAR(160),SUBSTITUTE($V76,\"{\",CHAR(160),GP$1))+1),\"\")","v":"{Factor:SummerCF}"},{"$f":"IFERROR(MID($W76,FIND(CHAR(160),SUBSTITUTE($W76,\"{\",CHAR(160),GQ$1)),FIND(CHAR(160),SUBSTITUTE($W76,\"}\",CHAR(160),GQ$1))-FIND(CHAR(160),SUBSTITUTE($W76,\"{\",CHAR(160),GQ$1))+1),\"\")","v":""},{"$f":"IFERROR(MID($W76,FIND(CHAR(160),SUBSTITUTE($W76,\"{\",CHAR(160),GR$1)),FIND(CHAR(160),SUBSTITUTE($W76,\"}\",CHAR(160),GR$1))-FIND(CHAR(160),SUBSTITUTE($W76,\"{\",CHAR(160),GR$1))+1),\"\")","v":""},{"$f":"IFERROR(MID($W76,FIND(CHAR(160),SUBSTITUTE($W76,\"{\",CHAR(160),GS$1)),FIND(CHAR(160),SUBSTITUTE($W76,\"}\",CHAR(160),GS$1))-FIND(CHAR(160),SUBSTITUTE($W76,\"{\",CHAR(160),GS$1))+1),\"\")","v":""},{"$f":"IFERROR(MID($W76,FIND(CHAR(160),SUBSTITUTE($W76,\"{\",CHAR(160),GT$1)),FIND(CHAR(160),SUBSTITUTE($W76,\"}\",CHAR(160),GT$1))-FIND(CHAR(160),SUBSTITUTE($W76,\"{\",CHAR(160),GT$1))+1),\"\")","v":""},{"$f":"IFERROR(MID($W76,FIND(CHAR(160),SUBSTITUTE($W76,\"{\",CHAR(160),GU$1)),FIND(CHAR(160),SUBSTITUTE($W76,\"}\",CHAR(160),GU$1))-FIND(CHAR(160),SUBSTITUTE($W76,\"{\",CHAR(160),GU$1))+1),\"\")","v":""},{"$f":"IFERROR(MID($W76,FIND(CHAR(160),SUBSTITUTE($W76,\"{\",CHAR(160),GV$1)),FIND(CHAR(160),SUBSTITUTE($W76,\"}\",CHAR(160),GV$1))-FIND(CHAR(160),SUBSTITUTE($W76,\"{\",CHAR(160),GV$1))+1),\"\")","v":""},{"$f":"IFERROR(MID($W76,FIND(CHAR(160),SUBSTITUTE($W76,\"{\",CHAR(160),GW$1)),FIND(CHAR(160),SUBSTITUTE($W76,\"}\",CHAR(160),GW$1))-FIND(CHAR(160),SUBSTITUTE($W76,\"{\",CHAR(160),GW$1))+1),\"\")","v":""},{"$f":"IFERROR(MID($W76,FIND(CHAR(160),SUBSTITUTE($W76,\"{\",CHAR(160),GX$1)),FIND(CHAR(160),SUBSTITUTE($W76,\"}\",CHAR(160),GX$1))-FIND(CHAR(160),SUBSTITUTE($W76,\"{\",CHAR(160),GX$1))+1),\"\")","v":""},{"$f":"IFERROR(MID($W76,FIND(CHAR(160),SUBSTITUTE($W76,\"{\",CHAR(160),GY$1)),FIND(CHAR(160),SUBSTITUTE($W76,\"}\",CHAR(160),GY$1))-FIND(CHAR(160),SUBSTITUTE($W76,\"{\",CHAR(160),GY$1))+1),\"\")","v":""},{"$f":"IFERROR(MID($W76,FIND(CHAR(160),SUBSTITUTE($W76,\"{\",CHAR(160),GZ$1)),FIND(CHAR(160),SUBSTITUTE($W76,\"}\",CHAR(160),GZ$1))-FIND(CHAR(160),SUBSTITUTE($W76,\"{\",CHAR(160),GZ$1))+1),\"\")","v":""},{"$f":"IFERROR(MID($X76,FIND(CHAR(160),SUBSTITUTE($X76,\"{\",CHAR(160),HA$1)),FIND(CHAR(160),SUBSTITUTE($X76,\"}\",CHAR(160),HA$1))-FIND(CHAR(160),SUBSTITUTE($X76,\"{\",CHAR(160),HA$1))+1),\"\")","v":""},{"$f":"IFERROR(MID($X76,FIND(CHAR(160),SUBSTITUTE($X76,\"{\",CHAR(160),HB$1)),FIND(CHAR(160),SUBSTITUTE($X76,\"}\",CHAR(160),HB$1))-FIND(CHAR(160),SUBSTITUTE($X76,\"{\",CHAR(160),HB$1))+1),\"\")","v":""},{"$f":"IFERROR(MID($X76,FIND(CHAR(160),SUBSTITUTE($X76,\"{\",CHAR(160),HC$1)),FIND(CHAR(160),SUBSTITUTE($X76,\"}\",CHAR(160),HC$1))-FIND(CHAR(160),SUBSTITUTE($X76,\"{\",CHAR(160),HC$1))+1),\"\")","v":""},{"$f":"IFERROR(MID($X76,FIND(CHAR(160),SUBSTITUTE($X76,\"{\",CHAR(160),HD$1)),FIND(CHAR(160),SUBSTITUTE($X76,\"}\",CHAR(160),HD$1))-FIND(CHAR(160),SUBSTITUTE($X76,\"{\",CHAR(160),HD$1))+1),\"\")","v":""},{"$f":"IFERROR(MID($X76,FIND(CHAR(160),SUBSTITUTE($X76,\"{\",CHAR(160),HE$1)),FIND(CHAR(160),SUBSTITUTE($X76,\"}\",CHAR(160),HE$1))-FIND(CHAR(160),SUBSTITUTE($X76,\"{\",CHAR(160),HE$1))+1),\"\")","v":""},{"$f":"IFERROR(MID($X76,FIND(CHAR(160),SUBSTITUTE($X76,\"{\",CHAR(160),HF$1)),FIND(CHAR(160),SUBSTITUTE($X76,\"}\",CHAR(160),HF$1))-FIND(CHAR(160),SUBSTITUTE($X76,\"{\",CHAR(160),HF$1))+1),\"\")","v":""},{"$f":"IFERROR(MID($X76,FIND(CHAR(160),SUBSTITUTE($X76,\"{\",CHAR(160),HG$1)),FIND(CHAR(160),SUBSTITUTE($X76,\"}\",CHAR(160),HG$1))-FIND(CHAR(160),SUBSTITUTE($X76,\"{\",CHAR(160),HG$1))+1),\"\")","v":""},{"$f":"IFERROR(MID($X76,FIND(CHAR(160),SUBSTITUTE($X76,\"{\",CHAR(160),HH$1)),FIND(CHAR(160),SUBSTITUTE($X76,\"}\",CHAR(160),HH$1))-FIND(CHAR(160),SUBSTITUTE($X76,\"{\",CHAR(160),HH$1))+1),\"\")","v":""},{"$f":"IFERROR(MID($X76,FIND(CHAR(160),SUBSTITUTE($X76,\"{\",CHAR(160),HI$1)),FIND(CHAR(160),SUBSTITUTE($X76,\"}\",CHAR(160),HI$1))-FIND(CHAR(160),SUBSTITUTE($X76,\"{\",CHAR(160),HI$1))+1),\"\")","v":""},{"$f":"IFERROR(MID($X76,FIND(CHAR(160),SUBSTITUTE($X76,\"{\",CHAR(160),HJ$1)),FIND(CHAR(160),SUBSTITUTE($X76,\"}\",CHAR(160),HJ$1))-FIND(CHAR(160),SUBSTITUTE($X76,\"{\",CHAR(160),HJ$1))+1),\"\")","v":""},{"$f":"IFERROR(MID($Y76,FIND(CHAR(160),SUBSTITUTE($Y76,\"{\",CHAR(160),HK$1)),FIND(CHAR(160),SUBSTITUTE($Y76,\"}\",CHAR(160),HK$1))-FIND(CHAR(160),SUBSTITUTE($Y76,\"{\",CHAR(160),HK$1))+1),\"\")","v":""},{"$f":"IFERROR(MID($Y76,FIND(CHAR(160),SUBSTITUTE($Y76,\"{\",CHAR(160),HL$1)),FIND(CHAR(160),SUBSTITUTE($Y76,\"}\",CHAR(160),HL$1))-FIND(CHAR(160),SUBSTITUTE($Y76,\"{\",CHAR(160),HL$1))+1),\"\")","v":""},{"$f":"IFERROR(MID($Y76,FIND(CHAR(160),SUBSTITUTE($Y76,\"{\",CHAR(160),HM$1)),FIND(CHAR(160),SUBSTITUTE($Y76,\"}\",CHAR(160),HM$1))-FIND(CHAR(160),SUBSTITUTE($Y76,\"{\",CHAR(160),HM$1))+1),\"\")","v":""},{"$f":"IFERROR(MID($Y76,FIND(CHAR(160),SUBSTITUTE($Y76,\"{\",CHAR(160),HN$1)),FIND(CHAR(160),SUBSTITUTE($Y76,\"}\",CHAR(160),HN$1))-FIND(CHAR(160),SUBSTITUTE($Y76,\"{\",CHAR(160),HN$1))+1),\"\")","v":""},{"$f":"IFERROR(MID($Y76,FIND(CHAR(160),SUBSTITUTE($Y76,\"{\",CHAR(160),HO$1)),FIND(CHAR(160),SUBSTITUTE($Y76,\"}\",CHAR(160),HO$1))-FIND(CHAR(160),SUBSTITUTE($Y76,\"{\",CHAR(160),HO$1))+1),\"\")","v":""},{"$f":"IFERROR(MID($Y76,FIND(CHAR(160),SUBSTITUTE($Y76,\"{\",CHAR(160),HP$1)),FIND(CHAR(160),SUBSTITUTE($Y76,\"}\",CHAR(160),HP$1))-FIND(CHAR(160),SUBSTITUTE($Y76,\"{\",CHAR(160),HP$1))+1),\"\")","v":""},{"$f":"IFERROR(MID($Y76,FIND(CHAR(160),SUBSTITUTE($Y76,\"{\",CHAR(160),HQ$1)),FIND(CHAR(160),SUBSTITUTE($Y76,\"}\",CHAR(160),HQ$1))-FIND(CHAR(160),SUBSTITUTE($Y76,\"{\",CHAR(160),HQ$1))+1),\"\")","v":""},{"$f":"IFERROR(MID($Y76,FIND(CHAR(160),SUBSTITUTE($Y76,\"{\",CHAR(160),HR$1)),FIND(CHAR(160),SUBSTITUTE($Y76,\"}\",CHAR(160),HR$1))-FIND(CHAR(160),SUBSTITUTE($Y76,\"{\",CHAR(160),HR$1))+1),\"\")","v":""},{"$f":"IFERROR(MID($Y76,FIND(CHAR(160),SUBSTITUTE($Y76,\"{\",CHAR(160),HS$1)),FIND(CHAR(160),SUBSTITUTE($Y76,\"}\",CHAR(160),HS$1))-FIND(CHAR(160),SUBSTITUTE($Y76,\"{\",CHAR(160),HS$1))+1),\"\")","v":""},{"$f":"IFERROR(MID($Y76,FIND(CHAR(160),SUBSTITUTE($Y76,\"{\",CHAR(160),HT$1)),FIND(CHAR(160),SUBSTITUTE($Y76,\"}\",CHAR(160),HT$1))-FIND(CHAR(160),SUBSTITUTE($Y76,\"{\",CHAR(160),HT$1))+1),\"\")","v":""},{"$f":"IFERROR(MID($Z76,FIND(CHAR(160),SUBSTITUTE($Z76,\"{\",CHAR(160),HU$1)),FIND(CHAR(160),SUBSTITUTE($Z76,\"}\",CHAR(160),HU$1))-FIND(CHAR(160),SUBSTITUTE($Z76,\"{\",CHAR(160),HU$1))+1),\"\")","v":""},{"$f":"IFERROR(MID($Z76,FIND(CHAR(160),SUBSTITUTE($Z76,\"{\",CHAR(160),HV$1)),FIND(CHAR(160),SUBSTITUTE($Z76,\"}\",CHAR(160),HV$1))-FIND(CHAR(160),SUBSTITUTE($Z76,\"{\",CHAR(160),HV$1))+1),\"\")","v":""},{"$f":"IFERROR(MID($Z76,FIND(CHAR(160),SUBSTITUTE($Z76,\"{\",CHAR(160),HW$1)),FIND(CHAR(160),SUBSTITUTE($Z76,\"}\",CHAR(160),HW$1))-FIND(CHAR(160),SUBSTITUTE($Z76,\"{\",CHAR(160),HW$1))+1),\"\")","v":""},{"$f":"IFERROR(MID($Z76,FIND(CHAR(160),SUBSTITUTE($Z76,\"{\",CHAR(160),HX$1)),FIND(CHAR(160),SUBSTITUTE($Z76,\"}\",CHAR(160),HX$1))-FIND(CHAR(160),SUBSTITUTE($Z76,\"{\",CHAR(160),HX$1))+1),\"\")","v":""},{"$f":"IFERROR(MID($Z76,FIND(CHAR(160),SUBSTITUTE($Z76,\"{\",CHAR(160),HY$1)),FIND(CHAR(160),SUBSTITUTE($Z76,\"}\",CHAR(160),HY$1))-FIND(CHAR(160),SUBSTITUTE($Z76,\"{\",CHAR(160),HY$1))+1),\"\")","v":""},{"$f":"IFERROR(MID($Z76,FIND(CHAR(160),SUBSTITUTE($Z76,\"{\",CHAR(160),HZ$1)),FIND(CHAR(160),SUBSTITUTE($Z76,\"}\",CHAR(160),HZ$1))-FIND(CHAR(160),SUBSTITUTE($Z76,\"{\",CHAR(160),HZ$1))+1),\"\")","v":""},{"$f":"IFERROR(MID($Z76,FIND(CHAR(160),SUBSTITUTE($Z76,\"{\",CHAR(160),IA$1)),FIND(CHAR(160),SUBSTITUTE($Z76,\"}\",CHAR(160),IA$1))-FIND(CHAR(160),SUBSTITUTE($Z76,\"{\",CHAR(160),IA$1))+1),\"\")","v":""},{"$f":"IFERROR(MID($Z76,FIND(CHAR(160),SUBSTITUTE($Z76,\"{\",CHAR(160),IB$1)),FIND(CHAR(160),SUBSTITUTE($Z76,\"}\",CHAR(160),IB$1))-FIND(CHAR(160),SUBSTITUTE($Z76,\"{\",CHAR(160),IB$1))+1),\"\")","v":""},{"$f":"IFERROR(MID($Z76,FIND(CHAR(160),SUBSTITUTE($Z76,\"{\",CHAR(160),IC$1)),FIND(CHAR(160),SUBSTITUTE($Z76,\"}\",CHAR(160),IC$1))-FIND(CHAR(160),SUBSTITUTE($Z76,\"{\",CHAR(160),IC$1))+1),\"\")","v":""},{"$f":"IFERROR(MID($Z76,FIND(CHAR(160),SUBSTITUTE($Z76,\"{\",CHAR(160),ID$1)),FIND(CHAR(160),SUBSTITUTE($Z76,\"}\",CHAR(160),ID$1))-FIND(CHAR(160),SUBSTITUTE($Z76,\"{\",CHAR(160),ID$1))+1),\"\")","v":""},{"$f":"IFERROR(MID($AA76,FIND(CHAR(160),SUBSTITUTE($AA76,\"{\",CHAR(160),IE$1)),FIND(CHAR(160),SUBSTITUTE($AA76,\"}\",CHAR(160),IE$1))-FIND(CHAR(160),SUBSTITUTE($AA76,\"{\",CHAR(160),IE$1))+1),\"\")","v":""},{"$f":"IFERROR(MID($AA76,FIND(CHAR(160),SUBSTITUTE($AA76,\"{\",CHAR(160),IF$1)),FIND(CHAR(160),SUBSTITUTE($AA76,\"}\",CHAR(160),IF$1))-FIND(CHAR(160),SUBSTITUTE($AA76,\"{\",CHAR(160),IF$1))+1),\"\")","v":""},{"$f":"IFERROR(MID($AA76,FIND(CHAR(160),SUBSTITUTE($AA76,\"{\",CHAR(160),IG$1)),FIND(CHAR(160),SUBSTITUTE($AA76,\"}\",CHAR(160),IG$1))-FIND(CHAR(160),SUBSTITUTE($AA76,\"{\",CHAR(160),IG$1))+1),\"\")","v":""},{"$f":"IFERROR(MID($AA76,FIND(CHAR(160),SUBSTITUTE($AA76,\"{\",CHAR(160),IH$1)),FIND(CHAR(160),SUBSTITUTE($AA76,\"}\",CHAR(160),IH$1))-FIND(CHAR(160),SUBSTITUTE($AA76,\"{\",CHAR(160),IH$1))+1),\"\")","v":""},{"$f":"IFERROR(MID($AA76,FIND(CHAR(160),SUBSTITUTE($AA76,\"{\",CHAR(160),II$1)),FIND(CHAR(160),SUBSTITUTE($AA76,\"}\",CHAR(160),II$1))-FIND(CHAR(160),SUBSTITUTE($AA76,\"{\",CHAR(160),II$1))+1),\"\")","v":""},{"$f":"IFERROR(MID($AA76,FIND(CHAR(160),SUBSTITUTE($AA76,\"{\",CHAR(160),IJ$1)),FIND(CHAR(160),SUBSTITUTE($AA76,\"}\",CHAR(160),IJ$1))-FIND(CHAR(160),SUBSTITUTE($AA76,\"{\",CHAR(160),IJ$1))+1),\"\")","v":""},{"$f":"IFERROR(MID($AA76,FIND(CHAR(160),SUBSTITUTE($AA76,\"{\",CHAR(160),IK$1)),FIND(CHAR(160),SUBSTITUTE($AA76,\"}\",CHAR(160),IK$1))-FIND(CHAR(160),SUBSTITUTE($AA76,\"{\",CHAR(160),IK$1))+1),\"\")","v":""},{"$f":"IFERROR(MID($AA76,FIND(CHAR(160),SUBSTITUTE($AA76,\"{\",CHAR(160),IL$1)),FIND(CHAR(160),SUBSTITUTE($AA76,\"}\",CHAR(160),IL$1))-FIND(CHAR(160),SUBSTITUTE($AA76,\"{\",CHAR(160),IL$1))+1),\"\")","v":""},{"$f":"IFERROR(MID($AA76,FIND(CHAR(160),SUBSTITUTE($AA76,\"{\",CHAR(160),IM$1)),FIND(CHAR(160),SUBSTITUTE($AA76,\"}\",CHAR(160),IM$1))-FIND(CHAR(160),SUBSTITUTE($AA76,\"{\",CHAR(160),IM$1))+1),\"\")","v":""},{"$f":"IFERROR(MID($AA76,FIND(CHAR(160),SUBSTITUTE($AA76,\"{\",CHAR(160),IN$1)),FIND(CHAR(160),SUBSTITUTE($AA76,\"}\",CHAR(160),IN$1))-FIND(CHAR(160),SUBSTITUTE($AA76,\"{\",CHAR(160),IN$1))+1),\"\")","v":""},{"$f":"IFERROR(MID($AB76,FIND(CHAR(160),SUBSTITUTE($AB76,\"{\",CHAR(160),IO$1)),FIND(CHAR(160),SUBSTITUTE($AB76,\"}\",CHAR(160),IO$1))-FIND(CHAR(160),SUBSTITUTE($AB76,\"{\",CHAR(160),IO$1))+1),\"\")","v":""},{"$f":"IFERROR(MID($AB76,FIND(CHAR(160),SUBSTITUTE($AB76,\"{\",CHAR(160),IP$1)),FIND(CHAR(160),SUBSTITUTE($AB76,\"}\",CHAR(160),IP$1))-FIND(CHAR(160),SUBSTITUTE($AB76,\"{\",CHAR(160),IP$1))+1),\"\")","v":""},{"$f":"IFERROR(MID($AB76,FIND(CHAR(160),SUBSTITUTE($AB76,\"{\",CHAR(160),IQ$1)),FIND(CHAR(160),SUBSTITUTE($AB76,\"}\",CHAR(160),IQ$1))-FIND(CHAR(160),SUBSTITUTE($AB76,\"{\",CHAR(160),IQ$1))+1),\"\")","v":""},{"$f":"IFERROR(MID($AB76,FIND(CHAR(160),SUBSTITUTE($AB76,\"{\",CHAR(160),IR$1)),FIND(CHAR(160),SUBSTITUTE($AB76,\"}\",CHAR(160),IR$1))-FIND(CHAR(160),SUBSTITUTE($AB76,\"{\",CHAR(160),IR$1))+1),\"\")","v":""},{"$f":"IFERROR(MID($AB76,FIND(CHAR(160),SUBSTITUTE($AB76,\"{\",CHAR(160),IS$1)),FIND(CHAR(160),SUBSTITUTE($AB76,\"}\",CHAR(160),IS$1))-FIND(CHAR(160),SUBSTITUTE($AB76,\"{\",CHAR(160),IS$1))+1),\"\")","v":""},{"$f":"IFERROR(MID($AB76,FIND(CHAR(160),SUBSTITUTE($AB76,\"{\",CHAR(160),IT$1)),FIND(CHAR(160),SUBSTITUTE($AB76,\"}\",CHAR(160),IT$1))-FIND(CHAR(160),SUBSTITUTE($AB76,\"{\",CHAR(160),IT$1))+1),\"\")","v":""},{"$f":"IFERROR(MID($AB76,FIND(CHAR(160),SUBSTITUTE($AB76,\"{\",CHAR(160),IU$1)),FIND(CHAR(160),SUBSTITUTE($AB76,\"}\",CHAR(160),IU$1))-FIND(CHAR(160),SUBSTITUTE($AB76,\"{\",CHAR(160),IU$1))+1),\"\")","v":""},{"$f":"IFERROR(MID($AB76,FIND(CHAR(160),SUBSTITUTE($AB76,\"{\",CHAR(160),IV$1)),FIND(CHAR(160),SUBSTITUTE($AB76,\"}\",CHAR(160),IV$1))-FIND(CHAR(160),SUBSTITUTE($AB76,\"{\",CHAR(160),IV$1))+1),\"\")","v":""},{"$f":"IFERROR(MID($AB76,FIND(CHAR(160),SUBSTITUTE($AB76,\"{\",CHAR(160),IW$1)),FIND(CHAR(160),SUBSTITUTE($AB76,\"}\",CHAR(160),IW$1))-FIND(CHAR(160),SUBSTITUTE($AB76,\"{\",CHAR(160),IW$1))+1),\"\")","v":""},{"$f":"IFERROR(MID($AB76,FIND(CHAR(160),SUBSTITUTE($AB76,\"{\",CHAR(160),IX$1)),FIND(CHAR(160),SUBSTITUTE($AB76,\"}\",CHAR(160),IX$1))-FIND(CHAR(160),SUBSTITUTE($AB76,\"{\",CHAR(160),IX$1))+1),\"\")","v":""},null,{"$f":"10-COUNTIF(DU76:ED76,\"\")","v":2}]
["C&I HVAC - Natural Gas","Modulating Burner Controls for Boilers and Heaters","AF1","2021-07-01","2022-06-30","Calculated","{Measure:Quantity}*{Capacity (MBTUH)}*2.14",0,"Calculated","{Measure:Quantity}*{Capacity (MBTUH)}*1.25",0,"2021-05-25","2022-06-30","Calculated",null,null,null,null,null,null,null,null,"if({Existing Fuel}<>1,0,{Measure:Quantity} * ({Capacity (MBTUH)} * 0.03 * if({End-Use}=1,1565,{Annual Hours of Operation})) / 1000 * 10)",null,null,null,null,null,"2021-05-25","2022-06-30",21,0,0,0,0,0,0,1,1,0,0.52,1.6E-2,null,{"$f":"DU77","v":"{Measure:Quantity}"},1,{"$f":"DV77","v":"{Capacity (MBTUH)}"},1000,{"$f":"DW77","v":"{End-Use}"},1,{"$f":"DX77","v":"{Annual Hours of Operation}"},1,{"$f":"DY77","v":"{Existing Fuel}"},2000,{"$f":"DZ77","v":""},null,{"$f":"EA77","v":""},null,{"$f":"EB77","v":""},null,{"$f":"EC77","v":""},null,{"$f":"ED77","v":""},null,0,0,0,0,0,0,0,0,{"$f":"IF(AW77<>1,0,AS77 * (AU77 * 0.03 * IF(AY77=1,1565,BA77)) / 1000 * 10)","v":469.5},0,0,0,0,0,null,"Res","Default DR",{"$f":"Benefits(BL77,BR77,BS77,BT77,BU77,BV77,BW77,BX77,BY77,BZ77,AE77,AH77,AI77,AJ77,AK77,AL77,AM77,AN77,AO77,AP77,CA77,CB77)","v":0},0,11419.915878218078,0,0,0,0,0,0,{"$f":"SUMPRODUCT(CC77:CK77,--(CC77:CK77>0))","v":11419.915878218078},{"$f":"-SUMPRODUCT(CC77:CK77,--(CC77:CK77<0))","v":0},null,{"$f":"AS77*AU77*2.14","v":2140},null,null,{"$f":"CM77+CO77","v":2140},{"$f":"IF(NetOrGross=\"Net\",(1-AO77+AP77),1)","v":1},{"$f":"(SUMPRODUCT(CC77:CJ77,--(CC77:CJ77>0))+CN77)*CS77/((-SUMPRODUCT(CC77:CJ77,--(CC77:CJ77<0))+MAX(CO77,CV77)+CP77+CQ77)*CS77+IF(FRIncentives=\"Yes\",CV77*(1-CS77),0))","v":5.3364092888869523},1,{"$f":"AS77*AU77*1.25","v":1250},null,"NG","y",null,{"$f":"IF(F77=\"Manual Entry\",\"Manual\",IF(G77=\"\",0,\"X=\"&SUBSTITUTE(SUBSTITUTE(SUBSTITUTE(SUBSTITUTE(SUBSTITUTE(SUBSTITUTE(SUBSTITUTE(SUBSTITUTE(SUBSTITUTE(SUBSTITUTE(SUBSTITUTE(SUBSTITUTE(G77,$ED77,$ED$2&ROW($ED77)),$EC77,$EC$2&ROW($EC77)),$EB77,$EB$2&ROW($EB77)),$EA77,$EA$2&ROW($EA77)),$DZ77,$DZ$2&ROW($DZ77)),$DY77,$DY$2&ROW($DY77)),$DX77,$DX$2&ROW($DX77)),$DW77,$DW$2&ROW($DW77)),$DV77,$DV$2&ROW($DV77)),$DU77,$DU$2&ROW($DU77)),$DT77,$DT$2&ROW($DT77)),$DS77,$DS$2&ROW($DS77))))","v":"X=AS77*AU77*2.14"},{"$f":"IF(I77=\"Manual Entry\",\"Manual\",IF(J77=\"\",0,\"X=\"&SUBSTITUTE(SUBSTITUTE(SUBSTITUTE(SUBSTITUTE(SUBSTITUTE(SUBSTITUTE(SUBSTITUTE(SUBSTITUTE(SUBSTITUTE(SUBSTITUTE(SUBSTITUTE(SUBSTITUTE(J77,$ED77,$ED$2&ROW($ED77)),$EC77,$EC$2&ROW($EC77)),$EB77,$EB$2&ROW($EB77)),$EA77,$EA$2&ROW($EA77)),$DZ77,$DZ$2&ROW($DZ77)),$DY77,$DY$2&ROW($DY77)),$DX77,$DX$2&ROW($DX77)),$DW77,$DW$2&ROW($DW77)),$DV77,$DV$2&ROW($DV77)),$DU77,$DU$2&ROW($DU77)),$DT77,$DT$2&ROW($DT77)),$DS77,$DS$2&ROW($DS77))))","v":"X=AS77*AU77*1.25"},{"$f":"IF(O77=\"\",0,\"X=\"&SUBSTITUTE(SUBSTITUTE(SUBSTITUTE(SUBSTITUTE(SUBSTITUTE(SUBSTITUTE(SUBSTITUTE(SUBSTITUTE(SUBSTITUTE(SUBSTITUTE(SUBSTITUTE(SUBSTITUTE(O77,$ED77,$ED$2&ROW($ED77)),$EC77,$EC$2&ROW($EC77)),$EB77,$EB$2&ROW($EB77)),$EA77,$EA$2&ROW($EA77)),$DZ77,$DZ$2&ROW($DZ77)),$DY77,$DY$2&ROW($DY77)),$DX77,$DX$2&ROW($DX77)),$DW77,$DW$2&ROW($DW77)),$DV77,$DV$2&ROW($DV77)),$DU77,$DU$2&ROW($DU77)),$DT77,$DT$2&ROW($DT77)),$DS77,$DS$2&ROW($DS77)))","v":0},{"$f":"IF(P77=\"\",0,\"X=\"&SUBSTITUTE(SUBSTITUTE(SUBSTITUTE(SUBSTITUTE(SUBSTITUTE(SUBSTITUTE(SUBSTITUTE(SUBSTITUTE(SUBSTITUTE(SUBSTITUTE(SUBSTITUTE(SUBSTITUTE(P77,$ED77,$ED$2&ROW($ED77)),$EC77,$EC$2&ROW($EC77)),$EB77,$EB$2&ROW($EB77)),$EA77,$EA$2&ROW($EA77)),$DZ77,$DZ$2&ROW($DZ77)),$DY77,$DY$2&ROW($DY77)),$DX77,$DX$2&ROW($DX77)),$DW77,$DW$2&ROW($DW77)),$DV77,$DV$2&ROW($DV77)),$DU77,$DU$2&ROW($DU77)),$DT77,$DT$2&ROW($DT77)),$DS77,$DS$2&ROW($DS77)))","v":0},{"$f":"IF(Q77=\"\",0,\"X=\"&SUBSTITUTE(SUBSTITUTE(SUBSTITUTE(SUBSTITUTE(SUBSTITUTE(SUBSTITUTE(SUBSTITUTE(SUBSTITUTE(SUBSTITUTE(SUBSTITUTE(SUBSTITUTE(SUBSTITUTE(Q77,$ED77,$ED$2&ROW($ED77)),$EC77,$EC$2&ROW($EC77)),$EB77,$EB$2&ROW($EB77)),$EA77,$EA$2&ROW($EA77)),$DZ77,$DZ$2&ROW($DZ77)),$DY77,$DY$2&ROW($DY77)),$DX77,$DX$2&ROW($DX77)),$DW77,$DW$2&ROW($DW77)),$DV77,$DV$2&ROW($DV77)),$DU77,$DU$2&ROW($DU77)),$DT77,$DT$2&ROW($DT77)),$DS77,$DS$2&ROW($DS77)))","v":0},{"$f":"IF(R77=\"\",0,\"X=\"&SUBSTITUTE(SUBSTITUTE(SUBSTITUTE(SUBSTITUTE(SUBSTITUTE(SUBSTITUTE(SUBSTITUTE(SUBSTITUTE(SUBSTITUTE(SUBSTITUTE(SUBSTITUTE(SUBSTITUTE(R77,$ED77,$ED$2&ROW($ED77)),$EC77,$EC$2&ROW($EC77)),$EB77,$EB$2&ROW($EB77)),$EA77,$EA$2&ROW($EA77)),$DZ77,$DZ$2&ROW($DZ77)),$DY77,$DY$2&ROW($DY77)),$DX77,$DX$2&ROW($DX77)),$DW77,$DW$2&ROW($DW77)),$DV77,$DV$2&ROW($DV77)),$DU77,$DU$2&ROW($DU77)),$DT77,$DT$2&ROW($DT77)),$DS77,$DS$2&ROW($DS77)))","v":0},{"$f":"IF(S77=\"\",0,\"X=\"&SUBSTITUTE(SUBSTITUTE(SUBSTITUTE(SUBSTITUTE(SUBSTITUTE(SUBSTITUTE(SUBSTITUTE(SUBSTITUTE(SUBSTITUTE(SUBSTITUTE(SUBSTITUTE(SUBSTITUTE(S77,$ED77,$ED$2&ROW($ED77)),$EC77,$EC$2&ROW($EC77)),$EB77,$EB$2&ROW($EB77)),$EA77,$EA$2&ROW($EA77)),$DZ77,$DZ$2&ROW($DZ77)),$DY77,$DY$2&ROW($DY77)),$DX77,$DX$2&ROW($DX77)),$DW77,$DW$2&ROW($DW77)),$DV77,$DV$2&ROW($DV77)),$DU77,$DU$2&ROW($DU77)),$DT77,$DT$2&ROW($DT77)),$DS77,$DS$2&ROW($DS77)))","v":0},{"$f":"IF(T77=\"\",0,\"X=\"&SUBSTITUTE(SUBSTITUTE(SUBSTITUTE(SUBSTITUTE(SUBSTITUTE(SUBSTITUTE(SUBSTITUTE(SUBSTITUTE(SUBSTITUTE(SUBSTITUTE(SUBSTITUTE(SUBSTITUTE(T77,$ED77,$ED$2&ROW($ED77)),$EC77,$EC$2&ROW($EC77)),$EB77,$EB$2&ROW($EB77)),$EA77,$EA$2&ROW($EA77)),$DZ77,$DZ$2&ROW($DZ77)),$DY77,$DY$2&ROW($DY77)),$DX77,$DX$2&ROW($DX77)),$DW77,$DW$2&ROW($DW77)),$DV77,$DV$2&ROW($DV77)),$DU77,$DU$2&ROW($DU77)),$DT77,$DT$2&ROW($DT77)),$DS77,$DS$2&ROW($DS77)))","v":0},{"$f":"IF(U77=\"\",0,\"X=\"&SUBSTITUTE(SUBSTITUTE(SUBSTITUTE(SUBSTITUTE(SUBSTITUTE(SUBSTITUTE(SUBSTITUTE(SUBSTITUTE(SUBSTITUTE(SUBSTITUTE(SUBSTITUTE(SUBSTITUTE(U77,$ED77,$ED$2&ROW($ED77)),$EC77,$EC$2&ROW($EC77)),$EB77,$EB$2&ROW($EB77)),$EA77,$EA$2&ROW($EA77)),$DZ77,$DZ$2&ROW($DZ77)),$DY77,$DY$2&ROW($DY77)),$DX77,$DX$2&ROW($DX77)),$DW77,$DW$2&ROW($DW77)),$DV77,$DV$2&ROW($DV77)),$DU77,$DU$2&ROW($DU77)),$DT77,$DT$2&ROW($DT77)),$DS77,$DS$2&ROW($DS77)))","v":0},{"$f":"IF(V77=\"\",0,\"X=\"&SUBSTITUTE(SUBSTITUTE(SUBSTITUTE(SUBSTITUTE(SUBSTITUTE(SUBSTITUTE(SUBSTITUTE(SUBSTITUTE(SUBSTITUTE(SUBSTITUTE(SUBSTITUTE(SUBSTITUTE(V77,$ED77,$ED$2&ROW($ED77)),$EC77,$EC$2&ROW($EC77)),$EB77,$EB$2&ROW($EB77)),$EA77,$EA$2&ROW($EA77)),$DZ77,$DZ$2&ROW($DZ77)),$DY77,$DY$2&ROW($DY77)),$DX77,$DX$2&ROW($DX77)),$DW77,$DW$2&ROW($DW77)),$DV77,$DV$2&ROW($DV77)),$DU77,$DU$2&ROW($DU77)),$DT77,$DT$2&ROW($DT77)),$DS77,$DS$2&ROW($DS77)))","v":0},{"$f":"IF(W77=\"\",0,\"X=\"&SUBSTITUTE(SUBSTITUTE(SUBSTITUTE(SUBSTITUTE(SUBSTITUTE(SUBSTITUTE(SUBSTITUTE(SUBSTITUTE(SUBSTITUTE(SUBSTITUTE(SUBSTITUTE(SUBSTITUTE(W77,$ED77,$ED$2&ROW($ED77)),$EC77,$EC$2&ROW($EC77)),$EB77,$EB$2&ROW($EB77)),$EA77,$EA$2&ROW($EA77)),$DZ77,$DZ$2&ROW($DZ77)),$DY77,$DY$2&ROW($DY77)),$DX77,$DX$2&ROW($DX77)),$DW77,$DW$2&ROW($DW77)),$DV77,$DV$2&ROW($DV77)),$DU77,$DU$2&ROW($DU77)),$DT77,$DT$2&ROW($DT77)),$DS77,$DS$2&ROW($DS77)))","v":"X=if(BA77<>1,0,AS77 * (AU77 * 0.03 * if(AW77=1,1565,AY77)) / 1000 * 10)"},{"$f":"IF(X77=\"\",0,\"X=\"&SUBSTITUTE(SUBSTITUTE(SUBSTITUTE(SUBSTITUTE(SUBSTITUTE(SUBSTITUTE(SUBSTITUTE(SUBSTITUTE(SUBSTITUTE(SUBSTITUTE(SUBSTITUTE(SUBSTITUTE(X77,$ED77,$ED$2&ROW($ED77)),$EC77,$EC$2&ROW($EC77)),$EB77,$EB$2&ROW($EB77)),$EA77,$EA$2&ROW($EA77)),$DZ77,$DZ$2&ROW($DZ77)),$DY77,$DY$2&ROW($DY77)),$DX77,$DX$2&ROW($DX77)),$DW77,$DW$2&ROW($DW77)),$DV77,$DV$2&ROW($DV77)),$DU77,$DU$2&ROW($DU77)),$DT77,$DT$2&ROW($DT77)),$DS77,$DS$2&ROW($DS77)))","v":0},{"$f":"IF(Y77=\"\",0,\"X=\"&SUBSTITUTE(SUBSTITUTE(SUBSTITUTE(SUBSTITUTE(SUBSTITUTE(SUBSTITUTE(SUBSTITUTE(SUBSTITUTE(SUBSTITUTE(SUBSTITUTE(SUBSTITUTE(SUBSTITUTE(Y77,$ED77,$ED$2&ROW($ED77)),$EC77,$EC$2&ROW($EC77)),$EB77,$EB$2&ROW($EB77)),$EA77,$EA$2&ROW($EA77)),$DZ77,$DZ$2&ROW($DZ77)),$DY77,$DY$2&ROW($DY77)),$DX77,$DX$2&ROW($DX77)),$DW77,$DW$2&ROW($DW77)),$DV77,$DV$2&ROW($DV77)),$DU77,$DU$2&ROW($DU77)),$DT77,$DT$2&ROW($DT77)),$DS77,$DS$2&ROW($DS77)))","v":0},{"$f":"IF(Z77=\"\",0,\"X=\"&SUBSTITUTE(SUBSTITUTE(SUBSTITUTE(SUBSTITUTE(SUBSTITUTE(SUBSTITUTE(SUBSTITUTE(SUBSTITUTE(SUBSTITUTE(SUBSTITUTE(SUBSTITUTE(SUBSTITUTE(Z77,$ED77,$ED$2&ROW($ED77)),$EC77,$EC$2&ROW($EC77)),$EB77,$EB$2&ROW($EB77)),$EA77,$EA$2&ROW($EA77)),$DZ77,$DZ$2&ROW($DZ77)),$DY77,$DY$2&ROW($DY77)),$DX77,$DX$2&ROW($DX77)),$DW77,$DW$2&ROW($DW77)),$DV77,$DV$2&ROW($DV77)),$DU77,$DU$2&ROW($DU77)),$DT77,$DT$2&ROW($DT77)),$DS77,$DS$2&ROW($DS77)))","v":0},{"$f":"IF(AA77=\"\",0,\"X=\"&SUBSTITUTE(SUBSTITUTE(SUBSTITUTE(SUBSTITUTE(SUBSTITUTE(SUBSTITUTE(SUBSTITUTE(SUBSTITUTE(SUBSTITUTE(SUBSTITUTE(SUBSTITUTE(SUBSTITUTE(AA77,$ED77,$ED$2&ROW($ED77)),$EC77,$EC$2&ROW($EC77)),$EB77,$EB$2&ROW($EB77)),$EA77,$EA$2&ROW($EA77)),$DZ77,$DZ$2&ROW($DZ77)),$DY77,$DY$2&ROW($DY77)),$DX77,$DX$2&ROW($DX77)),$DW77,$DW$2&ROW($DW77)),$DV77,$DV$2&ROW($DV77)),$DU77,$DU$2&ROW($DU77)),$DT77,$DT$2&ROW($DT77)),$DS77,$DS$2&ROW($DS77)))","v":0},{"$f":"IF(AB77=\"\",0,\"X=\"&SUBSTITUTE(SUBSTITUTE(SUBSTITUTE(SUBSTITUTE(SUBSTITUTE(SUBSTITUTE(SUBSTITUTE(SUBSTITUTE(SUBSTITUTE(SUBSTITUTE(SUBSTITUTE(SUBSTITUTE(AB77,$ED77,$ED$2&ROW($ED77)),$EC77,$EC$2&ROW($EC77)),$EB77,$EB$2&ROW($EB77)),$EA77,$EA$2&ROW($EA77)),$DZ77,$DZ$2&ROW($DZ77)),$DY77,$DY$2&ROW($DY77)),$DX77,$DX$2&ROW($DX77)),$DW77,$DW$2&ROW($DW77)),$DV77,$DV$2&ROW($DV77)),$DU77,$DU$2&ROW($DU77)),$DT77,$DT$2&ROW($DT77)),$DS77,$DS$2&ROW($DS77)))","v":0},null,null,"{Factor:WinterCF}","{Factor:SummerCF}",{"$f":"IFERROR(INDEX($EG77:$IV77,MATCH(0,COUNTIF($DR77:DT77,$EG77:$IV77),0)),\"\")","v":"{Measure:Quantity}"},{"$f":"IFERROR(INDEX($EG77:$IV77,MATCH(0,COUNTIF($DR77:DU77,$EG77:$IV77),0)),\"\")","v":"{Capacity (MBTUH)}"},{"$f":"IFERROR(INDEX($EG77:$IV77,MATCH(0,COUNTIF($DR77:DV77,$EG77:$IV77),0)),\"\")","v":"{End-Use}"},{"$f":"IFERROR(INDEX($EG77:$IV77,MATCH(0,COUNTIF($DR77:DW77,$EG77:$IV77),0)),\"\")","v":"{Annual Hours of Operation}"},{"$f":"IFERROR(INDEX($EG77:$IV77,MATCH(0,COUNTIF($DR77:DX77,$EG77:$IV77),0)),\"\")","v":"{Existing Fuel}"},{"$f":"IFERROR(INDEX($EG77:$IV77,MATCH(0,COUNTIF($DR77:DY77,$EG77:$IV77),0)),\"\")","v":""},{"$f":"IFERROR(INDEX($EG77:$IV77,MATCH(0,COUNTIF($DR77:DZ77,$EG77:$IV77),0)),\"\")","v":""},{"$f":"IFERROR(INDEX($EG77:$IV77,MATCH(0,COUNTIF($DR77:EA77,$EG77:$IV77),0)),\"\")","v":""},{"$f":"IFERROR(INDEX($EG77:$IV77,MATCH(0,COUNTIF($DR77:EB77,$EG77:$IV77),0)),\"\")","v":""},{"$f":"IFERROR(INDEX($EG77:$IV77,MATCH(0,COUNTIF($DR77:EC77,$EG77:$IV77),0)),\"\")","v":""},null,null,{"$f":"IFERROR(MID($G77,FIND(CHAR(160),SUBSTITUTE($G77,\"{\",CHAR(160),EG$1)),FIND(CHAR(160),SUBSTITUTE($G77,\"}\",CHAR(160),EG$1))-FIND(CHAR(160),SUBSTITUTE($G77,\"{\",CHAR(160),EG$1))+1),\"\")","v":"{Measure:Quantity}"},{"$f":"IFERROR(MID($G77,FIND(CHAR(160),SUBSTITUTE($G77,\"{\",CHAR(160),EH$1)),FIND(CHAR(160),SUBSTITUTE($G77,\"}\",CHAR(160),EH$1))-FIND(CHAR(160),SUBSTITUTE($G77,\"{\",CHAR(160),EH$1))+1),\"\")","v":"{Capacity (MBTUH)}"},{"$f":"IFERROR(MID($G77,FIND(CHAR(160),SUBSTITUTE($G77,\"{\",CHAR(160),EI$1)),FIND(CHAR(160),SUBSTITUTE($G77,\"}\",CHAR(160),EI$1))-FIND(CHAR(160),SUBSTITUTE($G77,\"{\",CHAR(160),EI$1))+1),\"\")","v":""},{"$f":"IFERROR(MID($G77,FIND(CHAR(160),SUBSTITUTE($G77,\"{\",CHAR(160),EJ$1)),FIND(CHAR(160),SUBSTITUTE($G77,\"}\",CHAR(160),EJ$1))-FIND(CHAR(160),SUBSTITUTE($G77,\"{\",CHAR(160),EJ$1))+1),\"\")","v":""},{"$f":"IFERROR(MID($G77,FIND(CHAR(160),SUBSTITUTE($G77,\"{\",CHAR(160),EK$1)),FIND(CHAR(160),SUBSTITUTE($G77,\"}\",CHAR(160),EK$1))-FIND(CHAR(160),SUBSTITUTE($G77,\"{\",CHAR(160),EK$1))+1),\"\")","v":""},{"$f":"IFERROR(MID($G77,FIND(CHAR(160),SUBSTITUTE($G77,\"{\",CHAR(160),EL$1)),FIND(CHAR(160),SUBSTITUTE($G77,\"}\",CHAR(160),EL$1))-FIND(CHAR(160),SUBSTITUTE($G77,\"{\",CHAR(160),EL$1))+1),\"\")","v":""},{"$f":"IFERROR(MID($G77,FIND(CHAR(160),SUBSTITUTE($G77,\"{\",CHAR(160),EM$1)),FIND(CHAR(160),SUBSTITUTE($G77,\"}\",CHAR(160),EM$1))-FIND(CHAR(160),SUBSTITUTE($G77,\"{\",CHAR(160),EM$1))+1),\"\")","v":""},{"$f":"IFERROR(MID($G77,FIND(CHAR(160),SUBSTITUTE($G77,\"{\",CHAR(160),EN$1)),FIND(CHAR(160),SUBSTITUTE($G77,\"}\",CHAR(160),EN$1))-FIND(CHAR(160),SUBSTITUTE($G77,\"{\",CHAR(160),EN$1))+1),\"\")","v":""},{"$f":"IFERROR(MID($G77,FIND(CHAR(160),SUBSTITUTE($G77,\"{\",CHAR(160),EO$1)),FIND(CHAR(160),SUBSTITUTE($G77,\"}\",CHAR(160),EO$1))-FIND(CHAR(160),SUBSTITUTE($G77,\"{\",CHAR(160),EO$1))+1),\"\")","v":""},{"$f":"IFERROR(MID($G77,FIND(CHAR(160),SUBSTITUTE($G77,\"{\",CHAR(160),EP$1)),FIND(CHAR(160),SUBSTITUTE($G77,\"}\",CHAR(160),EP$1))-FIND(CHAR(160),SUBSTITUTE($G77,\"{\",CHAR(160),EP$1))+1),\"\")","v":""},{"$f":"IFERROR(MID($J77,FIND(CHAR(160),SUBSTITUTE($J77,\"{\",CHAR(160),EQ$1)),FIND(CHAR(160),SUBSTITUTE($J77,\"}\",CHAR(160),EQ$1))-FIND(CHAR(160),SUBSTITUTE($J77,\"{\",CHAR(160),EQ$1))+1),\"\")","v":"{Measure:Quantity}"},{"$f":"IFERROR(MID($J77,FIND(CHAR(160),SUBSTITUTE($J77,\"{\",CHAR(160),ER$1)),FIND(CHAR(160),SUBSTITUTE($J77,\"}\",CHAR(160),ER$1))-FIND(CHAR(160),SUBSTITUTE($J77,\"{\",CHAR(160),ER$1))+1),\"\")","v":"{Capacity (MBTUH)}"},{"$f":"IFERROR(MID($J77,FIND(CHAR(160),SUBSTITUTE($J77,\"{\",CHAR(160),ES$1)),FIND(CHAR(160),SUBSTITUTE($J77,\"}\",CHAR(160),ES$1))-FIND(CHAR(160),SUBSTITUTE($J77,\"{\",CHAR(160),ES$1))+1),\"\")","v":""},{"$f":"IFERROR(MID($J77,FIND(CHAR(160),SUBSTITUTE($J77,\"{\",CHAR(160),ET$1)),FIND(CHAR(160),SUBSTITUTE($J77,\"}\",CHAR(160),ET$1))-FIND(CHAR(160),SUBSTITUTE($J77,\"{\",CHAR(160),ET$1))+1),\"\")","v":""},{"$f":"IFERROR(MID($J77,FIND(CHAR(160),SUBSTITUTE($J77,\"{\",CHAR(160),EU$1)),FIND(CHAR(160),SUBSTITUTE($J77,\"}\",CHAR(160),EU$1))-FIND(CHAR(160),SUBSTITUTE($J77,\"{\",CHAR(160),EU$1))+1),\"\")","v":""},{"$f":"IFERROR(MID($J77,FIND(CHAR(160),SUBSTITUTE($J77,\"{\",CHAR(160),EV$1)),FIND(CHAR(160),SUBSTITUTE($J77,\"}\",CHAR(160),EV$1))-FIND(CHAR(160),SUBSTITUTE($J77,\"{\",CHAR(160),EV$1))+1),\"\")","v":""},{"$f":"IFERROR(MID($J77,FIND(CHAR(160),SUBSTITUTE($J77,\"{\",CHAR(160),EW$1)),FIND(CHAR(160),SUBSTITUTE($J77,\"}\",CHAR(160),EW$1))-FIND(CHAR(160),SUBSTITUTE($J77,\"{\",CHAR(160),EW$1))+1),\"\")","v":""},{"$f":"IFERROR(MID($J77,FIND(CHAR(160),SUBSTITUTE($J77,\"{\",CHAR(160),EX$1)),FIND(CHAR(160),SUBSTITUTE($J77,\"}\",CHAR(160),EX$1))-FIND(CHAR(160),SUBSTITUTE($J77,\"{\",CHAR(160),EX$1))+1),\"\")","v":""},{"$f":"IFERROR(MID($J77,FIND(CHAR(160),SUBSTITUTE($J77,\"{\",CHAR(160),EY$1)),FIND(CHAR(160),SUBSTITUTE($J77,\"}\",CHAR(160),EY$1))-FIND(CHAR(160),SUBSTITUTE($J77,\"{\",CHAR(160),EY$1))+1),\"\")","v":""},{"$f":"IFERROR(MID($J77,FIND(CHAR(160),SUBSTITUTE($J77,\"{\",CHAR(160),EZ$1)),FIND(CHAR(160),SUBSTITUTE($J77,\"}\",CHAR(160),EZ$1))-FIND(CHAR(160),SUBSTITUTE($J77,\"{\",CHAR(160),EZ$1))+1),\"\")","v":""},{"$f":"IFERROR(MID($J77,FIND(CHAR(160),SUBSTITUTE($J77,\"{\",CHAR(160),FA$1)),FIND(CHAR(160),SUBSTITUTE($J77,\"}\",CHAR(160),FA$1))-FIND(CHAR(160),SUBSTITUTE($J77,\"{\",CHAR(160),FA$1))+1),\"\")","v":"{Measure:Quantity}"},{"$f":"IFERROR(MID($J77,FIND(CHAR(160),SUBSTITUTE($J77,\"{\",CHAR(160),FB$1)),FIND(CHAR(160),SUBSTITUTE($J77,\"}\",CHAR(160),FB$1))-FIND(CHAR(160),SUBSTITUTE($J77,\"{\",CHAR(160),FB$1))+1),\"\")","v":"{Capacity (MBTUH)}"},{"$f":"IFERROR(MID($O77,FIND(CHAR(160),SUBSTITUTE($O77,\"{\",CHAR(160),FC$1)),FIND(CHAR(160),SUBSTITUTE($O77,\"}\",CHAR(160),FC$1))-FIND(CHAR(160),SUBSTITUTE($O77,\"{\",CHAR(160),FC$1))+1),\"\")","v":""},{"$f":"IFERROR(MID($O77,FIND(CHAR(160),SUBSTITUTE($O77,\"{\",CHAR(160),FD$1)),FIND(CHAR(160),SUBSTITUTE($O77,\"}\",CHAR(160),FD$1))-FIND(CHAR(160),SUBSTITUTE($O77,\"{\",CHAR(160),FD$1))+1),\"\")","v":""},{"$f":"IFERROR(MID($O77,FIND(CHAR(160),SUBSTITUTE($O77,\"{\",CHAR(160),FE$1)),FIND(CHAR(160),SUBSTITUTE($O77,\"}\",CHAR(160),FE$1))-FIND(CHAR(160),SUBSTITUTE($O77,\"{\",CHAR(160),FE$1))+1),\"\")","v":""},{"$f":"IFERROR(MID($O77,FIND(CHAR(160),SUBSTITUTE($O77,\"{\",CHAR(160),FF$1)),FIND(CHAR(160),SUBSTITUTE($O77,\"}\",CHAR(160),FF$1))-FIND(CHAR(160),SUBSTITUTE($O77,\"{\",CHAR(160),FF$1))+1),\"\")","v":""},{"$f":"IFERROR(MID($O77,FIND(CHAR(160),SUBSTITUTE($O77,\"{\",CHAR(160),FG$1)),FIND(CHAR(160),SUBSTITUTE($O77,\"}\",CHAR(160),FG$1))-FIND(CHAR(160),SUBSTITUTE($O77,\"{\",CHAR(160),FG$1))+1),\"\")","v":""},{"$f":"IFERROR(MID($O77,FIND(CHAR(160),SUBSTITUTE($O77,\"{\",CHAR(160),FH$1)),FIND(CHAR(160),SUBSTITUTE($O77,\"}\",CHAR(160),FH$1))-FIND(CHAR(160),SUBSTITUTE($O77,\"{\",CHAR(160),FH$1))+1),\"\")","v":""},{"$f":"IFERROR(MID($O77,FIND(CHAR(160),SUBSTITUTE($O77,\"{\",CHAR(160),FI$1)),FIND(CHAR(160),SUBSTITUTE($O77,\"}\",CHAR(160),FI$1))-FIND(CHAR(160),SUBSTITUTE($O77,\"{\",CHAR(160),FI$1))+1),\"\")","v":""},{"$f":"IFERROR(MID($O77,FIND(CHAR(160),SUBSTITUTE($O77,\"{\",CHAR(160),FJ$1)),FIND(CHAR(160),SUBSTITUTE($O77,\"}\",CHAR(160),FJ$1))-FIND(CHAR(160),SUBSTITUTE($O77,\"{\",CHAR(160),FJ$1))+1),\"\")","v":""},{"$f":"IFERROR(MID($O77,FIND(CHAR(160),SUBSTITUTE($O77,\"{\",CHAR(160),FK$1)),FIND(CHAR(160),SUBSTITUTE($O77,\"}\",CHAR(160),FK$1))-FIND(CHAR(160),SUBSTITUTE($O77,\"{\",CHAR(160),FK$1))+1),\"\")","v":""},{"$f":"IFERROR(MID($O77,FIND(CHAR(160),SUBSTITUTE($O77,\"{\",CHAR(160),FL$1)),FIND(CHAR(160),SUBSTITUTE($O77,\"}\",CHAR(160),FL$1))-FIND(CHAR(160),SUBSTITUTE($O77,\"{\",CHAR(160),FL$1))+1),\"\")","v":""},{"$f":"IFERROR(MID($R77,FIND(CHAR(160),SUBSTITUTE($R77,\"{\",CHAR(160),FM$1)),FIND(CHAR(160),SUBSTITUTE($R77,\"}\",CHAR(160),FM$1))-FIND(CHAR(160),SUBSTITUTE($R77,\"{\",CHAR(160),FM$1))+1),\"\")","v":""},{"$f":"IFERROR(MID($R77,FIND(CHAR(160),SUBSTITUTE($R77,\"{\",CHAR(160),FN$1)),FIND(CHAR(160),SUBSTITUTE($R77,\"}\",CHAR(160),FN$1))-FIND(CHAR(160),SUBSTITUTE($R77,\"{\",CHAR(160),FN$1))+1),\"\")","v":""},{"$f":"IFERROR(MID($R77,FIND(CHAR(160),SUBSTITUTE($R77,\"{\",CHAR(160),FO$1)),FIND(CHAR(160),SUBSTITUTE($R77,\"}\",CHAR(160),FO$1))-FIND(CHAR(160),SUBSTITUTE($R77,\"{\",CHAR(160),FO$1))+1),\"\")","v":""},{"$f":"IFERROR(MID($R77,FIND(CHAR(160),SUBSTITUTE($R77,\"{\",CHAR(160),FP$1)),FIND(CHAR(160),SUBSTITUTE($R77,\"}\",CHAR(160),FP$1))-FIND(CHAR(160),SUBSTITUTE($R77,\"{\",CHAR(160),FP$1))+1),\"\")","v":""},{"$f":"IFERROR(MID($R77,FIND(CHAR(160),SUBSTITUTE($R77,\"{\",CHAR(160),FQ$1)),FIND(CHAR(160),SUBSTITUTE($R77,\"}\",CHAR(160),FQ$1))-FIND(CHAR(160),SUBSTITUTE($R77,\"{\",CHAR(160),FQ$1))+1),\"\")","v":""},{"$f":"IFERROR(MID($R77,FIND(CHAR(160),SUBSTITUTE($R77,\"{\",CHAR(160),FR$1)),FIND(CHAR(160),SUBSTITUTE($R77,\"}\",CHAR(160),FR$1))-FIND(CHAR(160),SUBSTITUTE($R77,\"{\",CHAR(160),FR$1))+1),\"\")","v":""},{"$f":"IFERROR(MID($R77,FIND(CHAR(160),SUBSTITUTE($R77,\"{\",CHAR(160),FS$1)),FIND(CHAR(160),SUBSTITUTE($R77,\"}\",CHAR(160),FS$1))-FIND(CHAR(160),SUBSTITUTE($R77,\"{\",CHAR(160),FS$1))+1),\"\")","v":""},{"$f":"IFERROR(MID($R77,FIND(CHAR(160),SUBSTITUTE($R77,\"{\",CHAR(160),FT$1)),FIND(CHAR(160),SUBSTITUTE($R77,\"}\",CHAR(160),FT$1))-FIND(CHAR(160),SUBSTITUTE($R77,\"{\",CHAR(160),FT$1))+1),\"\")","v":""},{"$f":"IFERROR(MID($R77,FIND(CHAR(160),SUBSTITUTE($R77,\"{\",CHAR(160),FU$1)),FIND(CHAR(160),SUBSTITUTE($R77,\"}\",CHAR(160),FU$1))-FIND(CHAR(160),SUBSTITUTE($R77,\"{\",CHAR(160),FU$1))+1),\"\")","v":""},{"$f":"IFERROR(MID($R77,FIND(CHAR(160),SUBSTITUTE($R77,\"{\",CHAR(160),FV$1)),FIND(CHAR(160),SUBSTITUTE($R77,\"}\",CHAR(160),FV$1))-FIND(CHAR(160),SUBSTITUTE($R77,\"{\",CHAR(160),FV$1))+1),\"\")","v":""},{"$f":"IFERROR(MID($U77,FIND(CHAR(160),SUBSTITUTE($U77,\"{\",CHAR(160),FW$1)),FIND(CHAR(160),SUBSTITUTE($U77,\"}\",CHAR(160),FW$1))-FIND(CHAR(160),SUBSTITUTE($U77,\"{\",CHAR(160),FW$1))+1),\"\")","v":""},{"$f":"IFERROR(MID($U77,FIND(CHAR(160),SUBSTITUTE($U77,\"{\",CHAR(160),FX$1)),FIND(CHAR(160),SUBSTITUTE($U77,\"}\",CHAR(160),FX$1))-FIND(CHAR(160),SUBSTITUTE($U77,\"{\",CHAR(160),FX$1))+1),\"\")","v":""},{"$f":"IFERROR(MID($U77,FIND(CHAR(160),SUBSTITUTE($U77,\"{\",CHAR(160),FY$1)),FIND(CHAR(160),SUBSTITUTE($U77,\"}\",CHAR(160),FY$1))-FIND(CHAR(160),SUBSTITUTE($U77,\"{\",CHAR(160),FY$1))+1),\"\")","v":""},{"$f":"IFERROR(MID($U77,FIND(CHAR(160),SUBSTITUTE($U77,\"{\",CHAR(160),FZ$1)),FIND(CHAR(160),SUBSTITUTE($U77,\"}\",CHAR(160),FZ$1))-FIND(CHAR(160),SUBSTITUTE($U77,\"{\",CHAR(160),FZ$1))+1),\"\")","v":""},{"$f":"IFERROR(MID($U77,FIND(CHAR(160),SUBSTITUTE($U77,\"{\",CHAR(160),GA$1)),FIND(CHAR(160),SUBSTITUTE($U77,\"}\",CHAR(160),GA$1))-FIND(CHAR(160),SUBSTITUTE($U77,\"{\",CHAR(160),GA$1))+1),\"\")","v":""},{"$f":"IFERROR(MID($U77,FIND(CHAR(160),SUBSTITUTE($U77,\"{\",CHAR(160),GB$1)),FIND(CHAR(160),SUBSTITUTE($U77,\"}\",CHAR(160),GB$1))-FIND(CHAR(160),SUBSTITUTE($U77,\"{\",CHAR(160),GB$1))+1),\"\")","v":""},{"$f":"IFERROR(MID($U77,FIND(CHAR(160),SUBSTITUTE($U77,\"{\",CHAR(160),GC$1)),FIND(CHAR(160),SUBSTITUTE($U77,\"}\",CHAR(160),GC$1))-FIND(CHAR(160),SUBSTITUTE($U77,\"{\",CHAR(160),GC$1))+1),\"\")","v":""},{"$f":"IFERROR(MID($U77,FIND(CHAR(160),SUBSTITUTE($U77,\"{\",CHAR(160),GD$1)),FIND(CHAR(160),SUBSTITUTE($U77,\"}\",CHAR(160),GD$1))-FIND(CHAR(160),SUBSTITUTE($U77,\"{\",CHAR(160),GD$1))+1),\"\")","v":""},{"$f":"IFERROR(MID($U77,FIND(CHAR(160),SUBSTITUTE($U77,\"{\",CHAR(160),GE$1)),FIND(CHAR(160),SUBSTITUTE($U77,\"}\",CHAR(160),GE$1))-FIND(CHAR(160),SUBSTITUTE($U77,\"{\",CHAR(160),GE$1))+1),\"\")","v":""},{"$f":"IFERROR(MID($U77,FIND(CHAR(160),SUBSTITUTE($U77,\"{\",CHAR(160),GF$1)),FIND(CHAR(160),SUBSTITUTE($U77,\"}\",CHAR(160),GF$1))-FIND(CHAR(160),SUBSTITUTE($U77,\"{\",CHAR(160),GF$1))+1),\"\")","v":""},{"$f":"IFERROR(MID($V77,FIND(CHAR(160),SUBSTITUTE($V77,\"{\",CHAR(160),GG$1)),FIND(CHAR(160),SUBSTITUTE($V77,\"}\",CHAR(160),GG$1))-FIND(CHAR(160),SUBSTITUTE($V77,\"{\",CHAR(160),GG$1))+1),\"\")","v":""},{"$f":"IFERROR(MID($V77,FIND(CHAR(160),SUBSTITUTE($V77,\"{\",CHAR(160),GH$1)),FIND(CHAR(160),SUBSTITUTE($V77,\"}\",CHAR(160),GH$1))-FIND(CHAR(160),SUBSTITUTE($V77,\"{\",CHAR(160),GH$1))+1),\"\")","v":""},{"$f":"IFERROR(MID($V77,FIND(CHAR(160),SUBSTITUTE($V77,\"{\",CHAR(160),GI$1)),FIND(CHAR(160),SUBSTITUTE($V77,\"}\",CHAR(160),GI$1))-FIND(CHAR(160),SUBSTITUTE($V77,\"{\",CHAR(160),GI$1))+1),\"\")","v":""},{"$f":"IFERROR(MID($V77,FIND(CHAR(160),SUBSTITUTE($V77,\"{\",CHAR(160),GJ$1)),FIND(CHAR(160),SUBSTITUTE($V77,\"}\",CHAR(160),GJ$1))-FIND(CHAR(160),SUBSTITUTE($V77,\"{\",CHAR(160),GJ$1))+1),\"\")","v":""},{"$f":"IFERROR(MID($V77,FIND(CHAR(160),SUBSTITUTE($V77,\"{\",CHAR(160),GK$1)),FIND(CHAR(160),SUBSTITUTE($V77,\"}\",CHAR(160),GK$1))-FIND(CHAR(160),SUBSTITUTE($V77,\"{\",CHAR(160),GK$1))+1),\"\")","v":""},{"$f":"IFERROR(MID($V77,FIND(CHAR(160),SUBSTITUTE($V77,\"{\",CHAR(160),GL$1)),FIND(CHAR(160),SUBSTITUTE($V77,\"}\",CHAR(160),GL$1))-FIND(CHAR(160),SUBSTITUTE($V77,\"{\",CHAR(160),GL$1))+1),\"\")","v":""},{"$f":"IFERROR(MID($V77,FIND(CHAR(160),SUBSTITUTE($V77,\"{\",CHAR(160),GM$1)),FIND(CHAR(160),SUBSTITUTE($V77,\"}\",CHAR(160),GM$1))-FIND(CHAR(160),SUBSTITUTE($V77,\"{\",CHAR(160),GM$1))+1),\"\")","v":""},{"$f":"IFERROR(MID($V77,FIND(CHAR(160),SUBSTITUTE($V77,\"{\",CHAR(160),GN$1)),FIND(CHAR(160),SUBSTITUTE($V77,\"}\",CHAR(160),GN$1))-FIND(CHAR(160),SUBSTITUTE($V77,\"{\",CHAR(160),GN$1))+1),\"\")","v":""},{"$f":"IFERROR(MID($V77,FIND(CHAR(160),SUBSTITUTE($V77,\"{\",CHAR(160),GO$1)),FIND(CHAR(160),SUBSTITUTE($V77,\"}\",CHAR(160),GO$1))-FIND(CHAR(160),SUBSTITUTE($V77,\"{\",CHAR(160),GO$1))+1),\"\")","v":""},{"$f":"IFERROR(MID($V77,FIND(CHAR(160),SUBSTITUTE($V77,\"{\",CHAR(160),GP$1)),FIND(CHAR(160),SUBSTITUTE($V77,\"}\",CHAR(160),GP$1))-FIND(CHAR(160),SUBSTITUTE($V77,\"{\",CHAR(160),GP$1))+1),\"\")","v":""},{"$f":"IFERROR(MID($W77,FIND(CHAR(160),SUBSTITUTE($W77,\"{\",CHAR(160),GQ$1)),FIND(CHAR(160),SUBSTITUTE($W77,\"}\",CHAR(160),GQ$1))-FIND(CHAR(160),SUBSTITUTE($W77,\"{\",CHAR(160),GQ$1))+1),\"\")","v":"{Capacity (MBTUH)}"},{"$f":"IFERROR(MID($W77,FIND(CHAR(160),SUBSTITUTE($W77,\"{\",CHAR(160),GR$1)),FIND(CHAR(160),SUBSTITUTE($W77,\"}\",CHAR(160),GR$1))-FIND(CHAR(160),SUBSTITUTE($W77,\"{\",CHAR(160),GR$1))+1),\"\")","v":"{End-Use}"},{"$f":"IFERROR(MID($W77,FIND(CHAR(160),SUBSTITUTE($W77,\"{\",CHAR(160),GS$1)),FIND(CHAR(160),SUBSTITUTE($W77,\"}\",CHAR(160),GS$1))-FIND(CHAR(160),SUBSTITUTE($W77,\"{\",CHAR(160),GS$1))+1),\"\")","v":"{Annual Hours of Operation}"},{"$f":"IFERROR(MID($W77,FIND(CHAR(160),SUBSTITUTE($W77,\"{\",CHAR(160),GT$1)),FIND(CHAR(160),SUBSTITUTE($W77,\"}\",CHAR(160),GT$1))-FIND(CHAR(160),SUBSTITUTE($W77,\"{\",CHAR(160),GT$1))+1),\"\")","v":""},{"$f":"IFERROR(MID($W77,FIND(CHAR(160),SUBSTITUTE($W77,\"{\",CHAR(160),GU$1)),FIND(CHAR(160),SUBSTITUTE($W77,\"}\",CHAR(160),GU$1))-FIND(CHAR(160),SUBSTITUTE($W77,\"{\",CHAR(160),GU$1))+1),\"\")","v":""},{"$f":"IFERROR(MID($W77,FIND(CHAR(160),SUBSTITUTE($W77,\"{\",CHAR(160),GV$1)),FIND(CHAR(160),SUBSTITUTE($W77,\"}\",CHAR(160),GV$1))-FIND(CHAR(160),SUBSTITUTE($W77,\"{\",CHAR(160),GV$1))+1),\"\")","v":""},{"$f":"IFERROR(MID($W77,FIND(CHAR(160),SUBSTITUTE($W77,\"{\",CHAR(160),GW$1)),FIND(CHAR(160),SUBSTITUTE($W77,\"}\",CHAR(160),GW$1))-FIND(CHAR(160),SUBSTITUTE($W77,\"{\",CHAR(160),GW$1))+1),\"\")","v":""},{"$f":"IFERROR(MID($W77,FIND(CHAR(160),SUBSTITUTE($W77,\"{\",CHAR(160),GX$1)),FIND(CHAR(160),SUBSTITUTE($W77,\"}\",CHAR(160),GX$1))-FIND(CHAR(160),SUBSTITUTE($W77,\"{\",CHAR(160),GX$1))+1),\"\")","v":""},{"$f":"IFERROR(MID($W77,FIND(CHAR(160),SUBSTITUTE($W77,\"{\",CHAR(160),GY$1)),FIND(CHAR(160),SUBSTITUTE($W77,\"}\",CHAR(160),GY$1))-FIND(CHAR(160),SUBSTITUTE($W77,\"{\",CHAR(160),GY$1))+1),\"\")","v":"{Existing Fuel}"},{"$f":"IFERROR(MID($W77,FIND(CHAR(160),SUBSTITUTE($W77,\"{\",CHAR(160),GZ$1)),FIND(CHAR(160),SUBSTITUTE($W77,\"}\",CHAR(160),GZ$1))-FIND(CHAR(160),SUBSTITUTE($W77,\"{\",CHAR(160),GZ$1))+1),\"\")","v":"{Measure:Quantity}"},{"$f":"IFERROR(MID($X77,FIND(CHAR(160),SUBSTITUTE($X77,\"{\",CHAR(160),HA$1)),FIND(CHAR(160),SUBSTITUTE($X77,\"}\",CHAR(160),HA$1))-FIND(CHAR(160),SUBSTITUTE($X77,\"{\",CHAR(160),HA$1))+1),\"\")","v":""},{"$f":"IFERROR(MID($X77,FIND(CHAR(160),SUBSTITUTE($X77,\"{\",CHAR(160),HB$1)),FIND(CHAR(160),SUBSTITUTE($X77,\"}\",CHAR(160),HB$1))-FIND(CHAR(160),SUBSTITUTE($X77,\"{\",CHAR(160),HB$1))+1),\"\")","v":""},{"$f":"IFERROR(MID($X77,FIND(CHAR(160),SUBSTITUTE($X77,\"{\",CHAR(160),HC$1)),FIND(CHAR(160),SUBSTITUTE($X77,\"}\",CHAR(160),HC$1))-FIND(CHAR(160),SUBSTITUTE($X77,\"{\",CHAR(160),HC$1))+1),\"\")","v":""},{"$f":"IFERROR(MID($X77,FIND(CHAR(160),SUBSTITUTE($X77,\"{\",CHAR(160),HD$1)),FIND(CHAR(160),SUBSTITUTE($X77,\"}\",CHAR(160),HD$1))-FIND(CHAR(160),SUBSTITUTE($X77,\"{\",CHAR(160),HD$1))+1),\"\")","v":""},{"$f":"IFERROR(MID($X77,FIND(CHAR(160),SUBSTITUTE($X77,\"{\",CHAR(160),HE$1)),FIND(CHAR(160),SUBSTITUTE($X77,\"}\",CHAR(160),HE$1))-FIND(CHAR(160),SUBSTITUTE($X77,\"{\",CHAR(160),HE$1))+1),\"\")","v":""},{"$f":"IFERROR(MID($X77,FIND(CHAR(160),SUBSTITUTE($X77,\"{\",CHAR(160),HF$1)),FIND(CHAR(160),SUBSTITUTE($X77,\"}\",CHAR(160),HF$1))-FIND(CHAR(160),SUBSTITUTE($X77,\"{\",CHAR(160),HF$1))+1),\"\")","v":""},{"$f":"IFERROR(MID($X77,FIND(CHAR(160),SUBSTITUTE($X77,\"{\",CHAR(160),HG$1)),FIND(CHAR(160),SUBSTITUTE($X77,\"}\",CHAR(160),HG$1))-FIND(CHAR(160),SUBSTITUTE($X77,\"{\",CHAR(160),HG$1))+1),\"\")","v":""},{"$f":"IFERROR(MID($X77,FIND(CHAR(160),SUBSTITUTE($X77,\"{\",CHAR(160),HH$1)),FIND(CHAR(160),SUBSTITUTE($X77,\"}\",CHAR(160),HH$1))-FIND(CHAR(160),SUBSTITUTE($X77,\"{\",CHAR(160),HH$1))+1),\"\")","v":""},{"$f":"IFERROR(MID($X77,FIND(CHAR(160),SUBSTITUTE($X77,\"{\",CHAR(160),HI$1)),FIND(CHAR(160),SUBSTITUTE($X77,\"}\",CHAR(160),HI$1))-FIND(CHAR(160),SUBSTITUTE($X77,\"{\",CHAR(160),HI$1))+1),\"\")","v":""},{"$f":"IFERROR(MID($X77,FIND(CHAR(160),SUBSTITUTE($X77,\"{\",CHAR(160),HJ$1)),FIND(CHAR(160),SUBSTITUTE($X77,\"}\",CHAR(160),HJ$1))-FIND(CHAR(160),SUBSTITUTE($X77,\"{\",CHAR(160),HJ$1))+1),\"\")","v":""},{"$f":"IFERROR(MID($Y77,FIND(CHAR(160),SUBSTITUTE($Y77,\"{\",CHAR(160),HK$1)),FIND(CHAR(160),SUBSTITUTE($Y77,\"}\",CHAR(160),HK$1))-FIND(CHAR(160),SUBSTITUTE($Y77,\"{\",CHAR(160),HK$1))+1),\"\")","v":""},{"$f":"IFERROR(MID($Y77,FIND(CHAR(160),SUBSTITUTE($Y77,\"{\",CHAR(160),HL$1)),FIND(CHAR(160),SUBSTITUTE($Y77,\"}\",CHAR(160),HL$1))-FIND(CHAR(160),SUBSTITUTE($Y77,\"{\",CHAR(160),HL$1))+1),\"\")","v":""},{"$f":"IFERROR(MID($Y77,FIND(CHAR(160),SUBSTITUTE($Y77,\"{\",CHAR(160),HM$1)),FIND(CHAR(160),SUBSTITUTE($Y77,\"}\",CHAR(160),HM$1))-FIND(CHAR(160),SUBSTITUTE($Y77,\"{\",CHAR(160),HM$1))+1),\"\")","v":""},{"$f":"IFERROR(MID($Y77,FIND(CHAR(160),SUBSTITUTE($Y77,\"{\",CHAR(160),HN$1)),FIND(CHAR(160),SUBSTITUTE($Y77,\"}\",CHAR(160),HN$1))-FIND(CHAR(160),SUBSTITUTE($Y77,\"{\",CHAR(160),HN$1))+1),\"\")","v":""},{"$f":"IFERROR(MID($Y77,FIND(CHAR(160),SUBSTITUTE($Y77,\"{\",CHAR(160),HO$1)),FIND(CHAR(160),SUBSTITUTE($Y77,\"}\",CHAR(160),HO$1))-FIND(CHAR(160),SUBSTITUTE($Y77,\"{\",CHAR(160),HO$1))+1),\"\")","v":""},{"$f":"IFERROR(MID($Y77,FIND(CHAR(160),SUBSTITUTE($Y77,\"{\",CHAR(160),HP$1)),FIND(CHAR(160),SUBSTITUTE($Y77,\"}\",CHAR(160),HP$1))-FIND(CHAR(160),SUBSTITUTE($Y77,\"{\",CHAR(160),HP$1))+1),\"\")","v":""},{"$f":"IFERROR(MID($Y77,FIND(CHAR(160),SUBSTITUTE($Y77,\"{\",CHAR(160),HQ$1)),FIND(CHAR(160),SUBSTITUTE($Y77,\"}\",CHAR(160),HQ$1))-FIND(CHAR(160),SUBSTITUTE($Y77,\"{\",CHAR(160),HQ$1))+1),\"\")","v":""},{"$f":"IFERROR(MID($Y77,FIND(CHAR(160),SUBSTITUTE($Y77,\"{\",CHAR(160),HR$1)),FIND(CHAR(160),SUBSTITUTE($Y77,\"}\",CHAR(160),HR$1))-FIND(CHAR(160),SUBSTITUTE($Y77,\"{\",CHAR(160),HR$1))+1),\"\")","v":""},{"$f":"IFERROR(MID($Y77,FIND(CHAR(160),SUBSTITUTE($Y77,\"{\",CHAR(160),HS$1)),FIND(CHAR(160),SUBSTITUTE($Y77,\"}\",CHAR(160),HS$1))-FIND(CHAR(160),SUBSTITUTE($Y77,\"{\",CHAR(160),HS$1))+1),\"\")","v":""},{"$f":"IFERROR(MID($Y77,FIND(CHAR(160),SUBSTITUTE($Y77,\"{\",CHAR(160),HT$1)),FIND(CHAR(160),SUBSTITUTE($Y77,\"}\",CHAR(160),HT$1))-FIND(CHAR(160),SUBSTITUTE($Y77,\"{\",CHAR(160),HT$1))+1),\"\")","v":""},{"$f":"IFERROR(MID($Z77,FIND(CHAR(160),SUBSTITUTE($Z77,\"{\",CHAR(160),HU$1)),FIND(CHAR(160),SUBSTITUTE($Z77,\"}\",CHAR(160),HU$1))-FIND(CHAR(160),SUBSTITUTE($Z77,\"{\",CHAR(160),HU$1))+1),\"\")","v":""},{"$f":"IFERROR(MID($Z77,FIND(CHAR(160),SUBSTITUTE($Z77,\"{\",CHAR(160),HV$1)),FIND(CHAR(160),SUBSTITUTE($Z77,\"}\",CHAR(160),HV$1))-FIND(CHAR(160),SUBSTITUTE($Z77,\"{\",CHAR(160),HV$1))+1),\"\")","v":""},{"$f":"IFERROR(MID($Z77,FIND(CHAR(160),SUBSTITUTE($Z77,\"{\",CHAR(160),HW$1)),FIND(CHAR(160),SUBSTITUTE($Z77,\"}\",CHAR(160),HW$1))-FIND(CHAR(160),SUBSTITUTE($Z77,\"{\",CHAR(160),HW$1))+1),\"\")","v":""},{"$f":"IFERROR(MID($Z77,FIND(CHAR(160),SUBSTITUTE($Z77,\"{\",CHAR(160),HX$1)),FIND(CHAR(160),SUBSTITUTE($Z77,\"}\",CHAR(160),HX$1))-FIND(CHAR(160),SUBSTITUTE($Z77,\"{\",CHAR(160),HX$1))+1),\"\")","v":""},{"$f":"IFERROR(MID($Z77,FIND(CHAR(160),SUBSTITUTE($Z77,\"{\",CHAR(160),HY$1)),FIND(CHAR(160),SUBSTITUTE($Z77,\"}\",CHAR(160),HY$1))-FIND(CHAR(160),SUBSTITUTE($Z77,\"{\",CHAR(160),HY$1))+1),\"\")","v":""},{"$f":"IFERROR(MID($Z77,FIND(CHAR(160),SUBSTITUTE($Z77,\"{\",CHAR(160),HZ$1)),FIND(CHAR(160),SUBSTITUTE($Z77,\"}\",CHAR(160),HZ$1))-FIND(CHAR(160),SUBSTITUTE($Z77,\"{\",CHAR(160),HZ$1))+1),\"\")","v":""},{"$f":"IFERROR(MID($Z77,FIND(CHAR(160),SUBSTITUTE($Z77,\"{\",CHAR(160),IA$1)),FIND(CHAR(160),SUBSTITUTE($Z77,\"}\",CHAR(160),IA$1))-FIND(CHAR(160),SUBSTITUTE($Z77,\"{\",CHAR(160),IA$1))+1),\"\")","v":""},{"$f":"IFERROR(MID($Z77,FIND(CHAR(160),SUBSTITUTE($Z77,\"{\",CHAR(160),IB$1)),FIND(CHAR(160),SUBSTITUTE($Z77,\"}\",CHAR(160),IB$1))-FIND(CHAR(160),SUBSTITUTE($Z77,\"{\",CHAR(160),IB$1))+1),\"\")","v":""},{"$f":"IFERROR(MID($Z77,FIND(CHAR(160),SUBSTITUTE($Z77,\"{\",CHAR(160),IC$1)),FIND(CHAR(160),SUBSTITUTE($Z77,\"}\",CHAR(160),IC$1))-FIND(CHAR(160),SUBSTITUTE($Z77,\"{\",CHAR(160),IC$1))+1),\"\")","v":""},{"$f":"IFERROR(MID($Z77,FIND(CHAR(160),SUBSTITUTE($Z77,\"{\",CHAR(160),ID$1)),FIND(CHAR(160),SUBSTITUTE($Z77,\"}\",CHAR(160),ID$1))-FIND(CHAR(160),SUBSTITUTE($Z77,\"{\",CHAR(160),ID$1))+1),\"\")","v":""},{"$f":"IFERROR(MID($AA77,FIND(CHAR(160),SUBSTITUTE($AA77,\"{\",CHAR(160),IE$1)),FIND(CHAR(160),SUBSTITUTE($AA77,\"}\",CHAR(160),IE$1))-FIND(CHAR(160),SUBSTITUTE($AA77,\"{\",CHAR(160),IE$1))+1),\"\")","v":""},{"$f":"IFERROR(MID($AA77,FIND(CHAR(160),SUBSTITUTE($AA77,\"{\",CHAR(160),IF$1)),FIND(CHAR(160),SUBSTITUTE($AA77,\"}\",CHAR(160),IF$1))-FIND(CHAR(160),SUBSTITUTE($AA77,\"{\",CHAR(160),IF$1))+1),\"\")","v":""},{"$f":"IFERROR(MID($AA77,FIND(CHAR(160),SUBSTITUTE($AA77,\"{\",CHAR(160),IG$1)),FIND(CHAR(160),SUBSTITUTE($AA77,\"}\",CHAR(160),IG$1))-FIND(CHAR(160),SUBSTITUTE($AA77,\"{\",CHAR(160),IG$1))+1),\"\")","v":""},{"$f":"IFERROR(MID($AA77,FIND(CHAR(160),SUBSTITUTE($AA77,\"{\",CHAR(160),IH$1)),FIND(CHAR(160),SUBSTITUTE($AA77,\"}\",CHAR(160),IH$1))-FIND(CHAR(160),SUBSTITUTE($AA77,\"{\",CHAR(160),IH$1))+1),\"\")","v":""},{"$f":"IFERROR(MID($AA77,FIND(CHAR(160),SUBSTITUTE($AA77,\"{\",CHAR(160),II$1)),FIND(CHAR(160),SUBSTITUTE($AA77,\"}\",CHAR(160),II$1))-FIND(CHAR(160),SUBSTITUTE($AA77,\"{\",CHAR(160),II$1))+1),\"\")","v":""},{"$f":"IFERROR(MID($AA77,FIND(CHAR(160),SUBSTITUTE($AA77,\"{\",CHAR(160),IJ$1)),FIND(CHAR(160),SUBSTITUTE($AA77,\"}\",CHAR(160),IJ$1))-FIND(CHAR(160),SUBSTITUTE($AA77,\"{\",CHAR(160),IJ$1))+1),\"\")","v":""},{"$f":"IFERROR(MID($AA77,FIND(CHAR(160),SUBSTITUTE($AA77,\"{\",CHAR(160),IK$1)),FIND(CHAR(160),SUBSTITUTE($AA77,\"}\",CHAR(160),IK$1))-FIND(CHAR(160),SUBSTITUTE($AA77,\"{\",CHAR(160),IK$1))+1),\"\")","v":""},{"$f":"IFERROR(MID($AA77,FIND(CHAR(160),SUBSTITUTE($AA77,\"{\",CHAR(160),IL$1)),FIND(CHAR(160),SUBSTITUTE($AA77,\"}\",CHAR(160),IL$1))-FIND(CHAR(160),SUBSTITUTE($AA77,\"{\",CHAR(160),IL$1))+1),\"\")","v":""},{"$f":"IFERROR(MID($AA77,FIND(CHAR(160),SUBSTITUTE($AA77,\"{\",CHAR(160),IM$1)),FIND(CHAR(160),SUBSTITUTE($AA77,\"}\",CHAR(160),IM$1))-FIND(CHAR(160),SUBSTITUTE($AA77,\"{\",CHAR(160),IM$1))+1),\"\")","v":""},{"$f":"IFERROR(MID($AA77,FIND(CHAR(160),SUBSTITUTE($AA77,\"{\",CHAR(160),IN$1)),FIND(CHAR(160),SUBSTITUTE($AA77,\"}\",CHAR(160),IN$1))-FIND(CHAR(160),SUBSTITUTE($AA77,\"{\",CHAR(160),IN$1))+1),\"\")","v":""},{"$f":"IFERROR(MID($AB77,FIND(CHAR(160),SUBSTITUTE($AB77,\"{\",CHAR(160),IO$1)),FIND(CHAR(160),SUBSTITUTE($AB77,\"}\",CHAR(160),IO$1))-FIND(CHAR(160),SUBSTITUTE($AB77,\"{\",CHAR(160),IO$1))+1),\"\")","v":""},{"$f":"IFERROR(MID($AB77,FIND(CHAR(160),SUBSTITUTE($AB77,\"{\",CHAR(160),IP$1)),FIND(CHAR(160),SUBSTITUTE($AB77,\"}\",CHAR(160),IP$1))-FIND(CHAR(160),SUBSTITUTE($AB77,\"{\",CHAR(160),IP$1))+1),\"\")","v":""},{"$f":"IFERROR(MID($AB77,FIND(CHAR(160),SUBSTITUTE($AB77,\"{\",CHAR(160),IQ$1)),FIND(CHAR(160),SUBSTITUTE($AB77,\"}\",CHAR(160),IQ$1))-FIND(CHAR(160),SUBSTITUTE($AB77,\"{\",CHAR(160),IQ$1))+1),\"\")","v":""},{"$f":"IFERROR(MID($AB77,FIND(CHAR(160),SUBSTITUTE($AB77,\"{\",CHAR(160),IR$1)),FIND(CHAR(160),SUBSTITUTE($AB77,\"}\",CHAR(160),IR$1))-FIND(CHAR(160),SUBSTITUTE($AB77,\"{\",CHAR(160),IR$1))+1),\"\")","v":""},{"$f":"IFERROR(MID($AB77,FIND(CHAR(160),SUBSTITUTE($AB77,\"{\",CHAR(160),IS$1)),FIND(CHAR(160),SUBSTITUTE($AB77,\"}\",CHAR(160),IS$1))-FIND(CHAR(160),SUBSTITUTE($AB77,\"{\",CHAR(160),IS$1))+1),\"\")","v":""},{"$f":"IFERROR(MID($AB77,FIND(CHAR(160),SUBSTITUTE($AB77,\"{\",CHAR(160),IT$1)),FIND(CHAR(160),SUBSTITUTE($AB77,\"}\",CHAR(160),IT$1))-FIND(CHAR(160),SUBSTITUTE($AB77,\"{\",CHAR(160),IT$1))+1),\"\")","v":""},{"$f":"IFERROR(MID($AB77,FIND(CHAR(160),SUBSTITUTE($AB77,\"{\",CHAR(160),IU$1)),FIND(CHAR(160),SUBSTITUTE($AB77,\"}\",CHAR(160),IU$1))-FIND(CHAR(160),SUBSTITUTE($AB77,\"{\",CHAR(160),IU$1))+1),\"\")","v":""},{"$f":"IFERROR(MID($AB77,FIND(CHAR(160),SUBSTITUTE($AB77,\"{\",CHAR(160),IV$1)),FIND(CHAR(160),SUBSTITUTE($AB77,\"}\",CHAR(160),IV$1))-FIND(CHAR(160),SUBSTITUTE($AB77,\"{\",CHAR(160),IV$1))+1),\"\")","v":""},{"$f":"IFERROR(MID($AB77,FIND(CHAR(160),SUBSTITUTE($AB77,\"{\",CHAR(160),IW$1)),FIND(CHAR(160),SUBSTITUTE($AB77,\"}\",CHAR(160),IW$1))-FIND(CHAR(160),SUBSTITUTE($AB77,\"{\",CHAR(160),IW$1))+1),\"\")","v":""},{"$f":"IFERROR(MID($AB77,FIND(CHAR(160),SUBSTITUTE($AB77,\"{\",CHAR(160),IX$1)),FIND(CHAR(160),SUBSTITUTE($AB77,\"}\",CHAR(160),IX$1))-FIND(CHAR(160),SUBSTITUTE($AB77,\"{\",CHAR(160),IX$1))+1),\"\")","v":""},null,{"$f":"10-COUNTIF(DU77:ED77,\"\")","v":5}]
["C&I HVAC - Natural Gas","VFD: Return Fan on VAV Air Handler","RFA","2021-07-01","2022-06-30","Calculated","{Measure:Quantity}*if({Motor HP}=5,2425,if({Motor HP}=7.5,2648,if({Motor HP}=10,2871,if({Motor HP}=15,3317,if({Motor HP}=20,3763,if({Motor HP}=25,4209,if({Motor HP}=30,4655,0)))))))",0,"Calculated","{Measure:Quantity}*if({Motor HP}=5,400,if({Motor HP}=7.5,650,if({Motor HP}=10,1400,if({Motor HP}=15,1650,if({Motor HP}=20,1850,if({Motor HP}=25,2000,if({Motor HP}=30,2300,0)))))))",0,"2021-05-25","2022-06-30","Calculated","{Measure:Quantity}*{Motor HP}*1788",null,null,"{Measure:Quantity}*{Motor HP}*.302",null,null,"{Measure:Quantity}*{Factor:WinterCF}*{Motor HP}*.302","{Measure:Quantity}*{Factor:SummerCF}*{Motor HP}*.302",null,null,null,null,null,null,"2021-05-25","2022-06-30",13,0.21,0.68300000000000005,0.39,0.308,0.214,8.7999999999999995E-2,1,1.1220000000000001,1,0.52,1.6E-2,null,{"$f":"DU78","v":"{Measure:Quantity}"},1,{"$f":"DV78","v":"{Motor HP}"},5,{"$f":"DW78","v":""},null,{"$f":"DX78","v":""},null,{"$f":"DY78","v":""},null,{"$f":"DZ78","v":""},null,{"$f":"EA78","v":""},null,{"$f":"EB78","v":""},null,{"$f":"EC78","v":""},null,{"$f":"ED78","v":""},null,{"$f":"AS78*AU78*1788","v":8940},0,0,{"$f":"AS78*AU78*0.302","v":1.51},0,0,{"$f":"AS78*AF78*AU78*0.302","v":0.31709999999999999},{"$f":"AS78*AG78*AU78*0.302","v":1.0313300000000001},0,0,0,0,0,0,null,"Res","Default DR",{"$f":"Benefits(BL78,BR78,BS78,BT78,BU78,BV78,BW78,BX78,BY78,BZ78,AE78,AH78,AI78,AJ78,AK78,AL78,AM78,AN78,AO78,AP78,CA78,CB78)","v":12094.689196231971},2788.9593275943762,0,0,0,0,0,0,0,{"$f":"SUMPRODUCT(CC78:CK78,--(CC78:CK78>0))","v":14883.648523826349},{"$f":"-SUMPRODUCT(CC78:CK78,--(CC78:CK78<0))","v":0},null,{"$f":"AS78*IF(AU78=5,2425,IF(AU78=7.5,2648,IF(AU78=10,2871,IF(AU78=15,3317,IF(AU78=20,3763,IF(AU78=25,4209,IF(AU78=30,4655,0)))))))","v":2425},null,null,{"$f":"CM78+CO78","v":2425},{"$f":"IF(NetOrGross=\"Net\",(1-AO78+AP78),1)","v":1},{"$f":"(SUMPRODUCT(CC78:CJ78,--(CC78:CJ78>0))+CN78)*CS78/((-SUMPRODUCT(CC78:CJ78,--(CC78:CJ78<0))+MAX(CO78,CV78)+CP78+CQ78)*CS78+IF(FRIncentives=\"Yes\",CV78*(1-CS78),0))","v":6.1375870201345766},1,{"$f":"AS78*IF(AU78=5,400,IF(AU78=7.5,650,IF(AU78=10,1400,IF(AU78=15,1650,IF(AU78=20,1850,IF(AU78=25,2000,IF(AU78=30,2300,0)))))))","v":400},null,"NG","y",null,{"$f":"IF(F78=\"Manual Entry\",\"Manual\",IF(G78=\"\",0,\"X=\"&SUBSTITUTE(SUBSTITUTE(SUBSTITUTE(SUBSTITUTE(SUBSTITUTE(SUBSTITUTE(SUBSTITUTE(SUBSTITUTE(SUBSTITUTE(SUBSTITUTE(SUBSTITUTE(SUBSTITUTE(G78,$ED78,$ED$2&ROW($ED78)),$EC78,$EC$2&ROW($EC78)),$EB78,$EB$2&ROW($EB78)),$EA78,$EA$2&ROW($EA78)),$DZ78,$DZ$2&ROW($DZ78)),$DY78,$DY$2&ROW($DY78)),$DX78,$DX$2&ROW($DX78)),$DW78,$DW$2&ROW($DW78)),$DV78,$DV$2&ROW($DV78)),$DU78,$DU$2&ROW($DU78)),$DT78,$DT$2&ROW($DT78)),$DS78,$DS$2&ROW($DS78))))","v":"X=AS78*if(AU78=5,2425,if(AU78=7.5,2648,if(AU78=10,2871,if(AU78=15,3317,if(AU78=20,3763,if(AU78=25,4209,if(AU78=30,4655,0)))))))"},{"$f":"IF(I78=\"Manual Entry\",\"Manual\",IF(J78=\"\",0,\"X=\"&SUBSTITUTE(SUBSTITUTE(SUBSTITUTE(SUBSTITUTE(SUBSTITUTE(SUBSTITUTE(SUBSTITUTE(SUBSTITUTE(SUBSTITUTE(SUBSTITUTE(SUBSTITUTE(SUBSTITUTE(J78,$ED78,$ED$2&ROW($ED78)),$EC78,$EC$2&ROW($EC78)),$EB78,$EB$2&ROW($EB78)),$EA78,$EA$2&ROW($EA78)),$DZ78,$DZ$2&ROW($DZ78)),$DY78,$DY$2&ROW($DY78)),$DX78,$DX$2&ROW($DX78)),$DW78,$DW$2&ROW($DW78)),$DV78,$DV$2&ROW($DV78)),$DU78,$DU$2&ROW($DU78)),$DT78,$DT$2&ROW($DT78)),$DS78,$DS$2&ROW($DS78))))","v":"X=AS78*if(AU78=5,400,if(AU78=7.5,650,if(AU78=10,1400,if(AU78=15,1650,if(AU78=20,1850,if(AU78=25,2000,if(AU78=30,2300,0)))))))"},{"$f":"IF(O78=\"\",0,\"X=\"&SUBSTITUTE(SUBSTITUTE(SUBSTITUTE(SUBSTITUTE(SUBSTITUTE(SUBSTITUTE(SUBSTITUTE(SUBSTITUTE(SUBSTITUTE(SUBSTITUTE(SUBSTITUTE(SUBSTITUTE(O78,$ED78,$ED$2&ROW($ED78)),$EC78,$EC$2&ROW($EC78)),$EB78,$EB$2&ROW($EB78)),$EA78,$EA$2&ROW($EA78)),$DZ78,$DZ$2&ROW($DZ78)),$DY78,$DY$2&ROW($DY78)),$DX78,$DX$2&ROW($DX78)),$DW78,$DW$2&ROW($DW78)),$DV78,$DV$2&ROW($DV78)),$DU78,$DU$2&ROW($DU78)),$DT78,$DT$2&ROW($DT78)),$DS78,$DS$2&ROW($DS78)))","v":"X=AS78*AU78*1788"},{"$f":"IF(P78=\"\",0,\"X=\"&SUBSTITUTE(SUBSTITUTE(SUBSTITUTE(SUBSTITUTE(SUBSTITUTE(SUBSTITUTE(SUBSTITUTE(SUBSTITUTE(SUBSTITUTE(SUBSTITUTE(SUBSTITUTE(SUBSTITUTE(P78,$ED78,$ED$2&ROW($ED78)),$EC78,$EC$2&ROW($EC78)),$EB78,$EB$2&ROW($EB78)),$EA78,$EA$2&ROW($EA78)),$DZ78,$DZ$2&ROW($DZ78)),$DY78,$DY$2&ROW($DY78)),$DX78,$DX$2&ROW($DX78)),$DW78,$DW$2&ROW($DW78)),$DV78,$DV$2&ROW($DV78)),$DU78,$DU$2&ROW($DU78)),$DT78,$DT$2&ROW($DT78)),$DS78,$DS$2&ROW($DS78)))","v":0},{"$f":"IF(Q78=\"\",0,\"X=\"&SUBSTITUTE(SUBSTITUTE(SUBSTITUTE(SUBSTITUTE(SUBSTITUTE(SUBSTITUTE(SUBSTITUTE(SUBSTITUTE(SUBSTITUTE(SUBSTITUTE(SUBSTITUTE(SUBSTITUTE(Q78,$ED78,$ED$2&ROW($ED78)),$EC78,$EC$2&ROW($EC78)),$EB78,$EB$2&ROW($EB78)),$EA78,$EA$2&ROW($EA78)),$DZ78,$DZ$2&ROW($DZ78)),$DY78,$DY$2&ROW($DY78)),$DX78,$DX$2&ROW($DX78)),$DW78,$DW$2&ROW($DW78)),$DV78,$DV$2&ROW($DV78)),$DU78,$DU$2&ROW($DU78)),$DT78,$DT$2&ROW($DT78)),$DS78,$DS$2&ROW($DS78)))","v":0},{"$f":"IF(R78=\"\",0,\"X=\"&SUBSTITUTE(SUBSTITUTE(SUBSTITUTE(SUBSTITUTE(SUBSTITUTE(SUBSTITUTE(SUBSTITUTE(SUBSTITUTE(SUBSTITUTE(SUBSTITUTE(SUBSTITUTE(SUBSTITUTE(R78,$ED78,$ED$2&ROW($ED78)),$EC78,$EC$2&ROW($EC78)),$EB78,$EB$2&ROW($EB78)),$EA78,$EA$2&ROW($EA78)),$DZ78,$DZ$2&ROW($DZ78)),$DY78,$DY$2&ROW($DY78)),$DX78,$DX$2&ROW($DX78)),$DW78,$DW$2&ROW($DW78)),$DV78,$DV$2&ROW($DV78)),$DU78,$DU$2&ROW($DU78)),$DT78,$DT$2&ROW($DT78)),$DS78,$DS$2&ROW($DS78)))","v":"X=AS78*AU78*.302"},{"$f":"IF(S78=\"\",0,\"X=\"&SUBSTITUTE(SUBSTITUTE(SUBSTITUTE(SUBSTITUTE(SUBSTITUTE(SUBSTITUTE(SUBSTITUTE(SUBSTITUTE(SUBSTITUTE(SUBSTITUTE(SUBSTITUTE(SUBSTITUTE(S78,$ED78,$ED$2&ROW($ED78)),$EC78,$EC$2&ROW($EC78)),$EB78,$EB$2&ROW($EB78)),$EA78,$EA$2&ROW($EA78)),$DZ78,$DZ$2&ROW($DZ78)),$DY78,$DY$2&ROW($DY78)),$DX78,$DX$2&ROW($DX78)),$DW78,$DW$2&ROW($DW78)),$DV78,$DV$2&ROW($DV78)),$DU78,$DU$2&ROW($DU78)),$DT78,$DT$2&ROW($DT78)),$DS78,$DS$2&ROW($DS78)))","v":0},{"$f":"IF(T78=\"\",0,\"X=\"&SUBSTITUTE(SUBSTITUTE(SUBSTITUTE(SUBSTITUTE(SUBSTITUTE(SUBSTITUTE(SUBSTITUTE(SUBSTITUTE(SUBSTITUTE(SUBSTITUTE(SUBSTITUTE(SUBSTITUTE(T78,$ED78,$ED$2&ROW($ED78)),$EC78,$EC$2&ROW($EC78)),$EB78,$EB$2&ROW($EB78)),$EA78,$EA$2&ROW($EA78)),$DZ78,$DZ$2&ROW($DZ78)),$DY78,$DY$2&ROW($DY78)),$DX78,$DX$2&ROW($DX78)),$DW78,$DW$2&ROW($DW78)),$DV78,$DV$2&ROW($DV78)),$DU78,$DU$2&ROW($DU78)),$DT78,$DT$2&ROW($DT78)),$DS78,$DS$2&ROW($DS78)))","v":0},{"$f":"IF(U78=\"\",0,\"X=\"&SUBSTITUTE(SUBSTITUTE(SUBSTITUTE(SUBSTITUTE(SUBSTITUTE(SUBSTITUTE(SUBSTITUTE(SUBSTITUTE(SUBSTITUTE(SUBSTITUTE(SUBSTITUTE(SUBSTITUTE(U78,$ED78,$ED$2&ROW($ED78)),$EC78,$EC$2&ROW($EC78)),$EB78,$EB$2&ROW($EB78)),$EA78,$EA$2&ROW($EA78)),$DZ78,$DZ$2&ROW($DZ78)),$DY78,$DY$2&ROW($DY78)),$DX78,$DX$2&ROW($DX78)),$DW78,$DW$2&ROW($DW78)),$DV78,$DV$2&ROW($DV78)),$DU78,$DU$2&ROW($DU78)),$DT78,$DT$2&ROW($DT78)),$DS78,$DS$2&ROW($DS78)))","v":"X=AS78*AF78*AU78*.302"},{"$f":"IF(V78=\"\",0,\"X=\"&SUBSTITUTE(SUBSTITUTE(SUBSTITUTE(SUBSTITUTE(SUBSTITUTE(SUBSTITUTE(SUBSTITUTE(SUBSTITUTE(SUBSTITUTE(SUBSTITUTE(SUBSTITUTE(SUBSTITUTE(V78,$ED78,$ED$2&ROW($ED78)),$EC78,$EC$2&ROW($EC78)),$EB78,$EB$2&ROW($EB78)),$EA78,$EA$2&ROW($EA78)),$DZ78,$DZ$2&ROW($DZ78)),$DY78,$DY$2&ROW($DY78)),$DX78,$DX$2&ROW($DX78)),$DW78,$DW$2&ROW($DW78)),$DV78,$DV$2&ROW($DV78)),$DU78,$DU$2&ROW($DU78)),$DT78,$DT$2&ROW($DT78)),$DS78,$DS$2&ROW($DS78)))","v":"X=AS78*AG78*AU78*.302"},{"$f":"IF(W78=\"\",0,\"X=\"&SUBSTITUTE(SUBSTITUTE(SUBSTITUTE(SUBSTITUTE(SUBSTITUTE(SUBSTITUTE(SUBSTITUTE(SUBSTITUTE(SUBSTITUTE(SUBSTITUTE(SUBSTITUTE(SUBSTITUTE(W78,$ED78,$ED$2&ROW($ED78)),$EC78,$EC$2&ROW($EC78)),$EB78,$EB$2&ROW($EB78)),$EA78,$EA$2&ROW($EA78)),$DZ78,$DZ$2&ROW($DZ78)),$DY78,$DY$2&ROW($DY78)),$DX78,$DX$2&ROW($DX78)),$DW78,$DW$2&ROW($DW78)),$DV78,$DV$2&ROW($DV78)),$DU78,$DU$2&ROW($DU78)),$DT78,$DT$2&ROW($DT78)),$DS78,$DS$2&ROW($DS78)))","v":0},{"$f":"IF(X78=\"\",0,\"X=\"&SUBSTITUTE(SUBSTITUTE(SUBSTITUTE(SUBSTITUTE(SUBSTITUTE(SUBSTITUTE(SUBSTITUTE(SUBSTITUTE(SUBSTITUTE(SUBSTITUTE(SUBSTITUTE(SUBSTITUTE(X78,$ED78,$ED$2&ROW($ED78)),$EC78,$EC$2&ROW($EC78)),$EB78,$EB$2&ROW($EB78)),$EA78,$EA$2&ROW($EA78)),$DZ78,$DZ$2&ROW($DZ78)),$DY78,$DY$2&ROW($DY78)),$DX78,$DX$2&ROW($DX78)),$DW78,$DW$2&ROW($DW78)),$DV78,$DV$2&ROW($DV78)),$DU78,$DU$2&ROW($DU78)),$DT78,$DT$2&ROW($DT78)),$DS78,$DS$2&ROW($DS78)))","v":0},{"$f":"IF(Y78=\"\",0,\"X=\"&SUBSTITUTE(SUBSTITUTE(SUBSTITUTE(SUBSTITUTE(SUBSTITUTE(SUBSTITUTE(SUBSTITUTE(SUBSTITUTE(SUBSTITUTE(SUBSTITUTE(SUBSTITUTE(SUBSTITUTE(Y78,$ED78,$ED$2&ROW($ED78)),$EC78,$EC$2&ROW($EC78)),$EB78,$EB$2&ROW($EB78)),$EA78,$EA$2&ROW($EA78)),$DZ78,$DZ$2&ROW($DZ78)),$DY78,$DY$2&ROW($DY78)),$DX78,$DX$2&ROW($DX78)),$DW78,$DW$2&ROW($DW78)),$DV78,$DV$2&ROW($DV78)),$DU78,$DU$2&ROW($DU78)),$DT78,$DT$2&ROW($DT78)),$DS78,$DS$2&ROW($DS78)))","v":0},{"$f":"IF(Z78=\"\",0,\"X=\"&SUBSTITUTE(SUBSTITUTE(SUBSTITUTE(SUBSTITUTE(SUBSTITUTE(SUBSTITUTE(SUBSTITUTE(SUBSTITUTE(SUBSTITUTE(SUBSTITUTE(SUBSTITUTE(SUBSTITUTE(Z78,$ED78,$ED$2&ROW($ED78)),$EC78,$EC$2&ROW($EC78)),$EB78,$EB$2&ROW($EB78)),$EA78,$EA$2&ROW($EA78)),$DZ78,$DZ$2&ROW($DZ78)),$DY78,$DY$2&ROW($DY78)),$DX78,$DX$2&ROW($DX78)),$DW78,$DW$2&ROW($DW78)),$DV78,$DV$2&ROW($DV78)),$DU78,$DU$2&ROW($DU78)),$DT78,$DT$2&ROW($DT78)),$DS78,$DS$2&ROW($DS78)))","v":0},{"$f":"IF(AA78=\"\",0,\"X=\"&SUBSTITUTE(SUBSTITUTE(SUBSTITUTE(SUBSTITUTE(SUBSTITUTE(SUBSTITUTE(SUBSTITUTE(SUBSTITUTE(SUBSTITUTE(SUBSTITUTE(SUBSTITUTE(SUBSTITUTE(AA78,$ED78,$ED$2&ROW($ED78)),$EC78,$EC$2&ROW($EC78)),$EB78,$EB$2&ROW($EB78)),$EA78,$EA$2&ROW($EA78)),$DZ78,$DZ$2&ROW($DZ78)),$DY78,$DY$2&ROW($DY78)),$DX78,$DX$2&ROW($DX78)),$DW78,$DW$2&ROW($DW78)),$DV78,$DV$2&ROW($DV78)),$DU78,$DU$2&ROW($DU78)),$DT78,$DT$2&ROW($DT78)),$DS78,$DS$2&ROW($DS78)))","v":0},{"$f":"IF(AB78=\"\",0,\"X=\"&SUBSTITUTE(SUBSTITUTE(SUBSTITUTE(SUBSTITUTE(SUBSTITUTE(SUBSTITUTE(SUBSTITUTE(SUBSTITUTE(SUBSTITUTE(SUBSTITUTE(SUBSTITUTE(SUBSTITUTE(AB78,$ED78,$ED$2&ROW($ED78)),$EC78,$EC$2&ROW($EC78)),$EB78,$EB$2&ROW($EB78)),$EA78,$EA$2&ROW($EA78)),$DZ78,$DZ$2&ROW($DZ78)),$DY78,$DY$2&ROW($DY78)),$DX78,$DX$2&ROW($DX78)),$DW78,$DW$2&ROW($DW78)),$DV78,$DV$2&ROW($DV78)),$DU78,$DU$2&ROW($DU78)),$DT78,$DT$2&ROW($DT78)),$DS78,$DS$2&ROW($DS78)))","v":0},null,null,"{Factor:WinterCF}","{Factor:SummerCF}",{"$f":"IFERROR(INDEX($EG78:$IV78,MATCH(0,COUNTIF($DR78:DT78,$EG78:$IV78),0)),\"\")","v":"{Measure:Quantity}"},{"$f":"IFERROR(INDEX($EG78:$IV78,MATCH(0,COUNTIF($DR78:DU78,$EG78:$IV78),0)),\"\")","v":"{Motor HP}"},{"$f":"IFERROR(INDEX($EG78:$IV78,MATCH(0,COUNTIF($DR78:DV78,$EG78:$IV78),0)),\"\")","v":""},{"$f":"IFERROR(INDEX($EG78:$IV78,MATCH(0,COUNTIF($DR78:DW78,$EG78:$IV78),0)),\"\")","v":""},{"$f":"IFERROR(INDEX($EG78:$IV78,MATCH(0,COUNTIF($DR78:DX78,$EG78:$IV78),0)),\"\")","v":""},{"$f":"IFERROR(INDEX($EG78:$IV78,MATCH(0,COUNTIF($DR78:DY78,$EG78:$IV78),0)),\"\")","v":""},{"$f":"IFERROR(INDEX($EG78:$IV78,MATCH(0,COUNTIF($DR78:DZ78,$EG78:$IV78),0)),\"\")","v":""},{"$f":"IFERROR(INDEX($EG78:$IV78,MATCH(0,COUNTIF($DR78:EA78,$EG78:$IV78),0)),\"\")","v":""},{"$f":"IFERROR(INDEX($EG78:$IV78,MATCH(0,COUNTIF($DR78:EB78,$EG78:$IV78),0)),\"\")","v":""},{"$f":"IFERROR(INDEX($EG78:$IV78,MATCH(0,COUNTIF($DR78:EC78,$EG78:$IV78),0)),\"\")","v":""},null,null,{"$f":"IFERROR(MID($G78,FIND(CHAR(160),SUBSTITUTE($G78,\"{\",CHAR(160),EG$1)),FIND(CHAR(160),SUBSTITUTE($G78,\"}\",CHAR(160),EG$1))-FIND(CHAR(160),SUBSTITUTE($G78,\"{\",CHAR(160),EG$1))+1),\"\")","v":"{Measure:Quantity}"},{"$f":"IFERROR(MID($G78,FIND(CHAR(160),SUBSTITUTE($G78,\"{\",CHAR(160),EH$1)),FIND(CHAR(160),SUBSTITUTE($G78,\"}\",CHAR(160),EH$1))-FIND(CHAR(160),SUBSTITUTE($G78,\"{\",CHAR(160),EH$1))+1),\"\")","v":"{Motor HP}"},{"$f":"IFERROR(MID($G78,FIND(CHAR(160),SUBSTITUTE($G78,\"{\",CHAR(160),EI$1)),FIND(CHAR(160),SUBSTITUTE($G78,\"}\",CHAR(160),EI$1))-FIND(CHAR(160),SUBSTITUTE($G78,\"{\",CHAR(160),EI$1))+1),\"\")","v":"{Motor HP}"},{"$f":"IFERROR(MID($G78,FIND(CHAR(160),SUBSTITUTE($G78,\"{\",CHAR(160),EJ$1)),FIND(CHAR(160),SUBSTITUTE($G78,\"}\",CHAR(160),EJ$1))-FIND(CHAR(160),SUBSTITUTE($G78,\"{\",CHAR(160),EJ$1))+1),\"\")","v":"{Motor HP}"},{"$f":"IFERROR(MID($G78,FIND(CHAR(160),SUBSTITUTE($G78,\"{\",CHAR(160),EK$1)),FIND(CHAR(160),SUBSTITUTE($G78,\"}\",CHAR(160),EK$1))-FIND(CHAR(160),SUBSTITUTE($G78,\"{\",CHAR(160),EK$1))+1),\"\")","v":"{Motor HP}"},{"$f":"IFERROR(MID($G78,FIND(CHAR(160),SUBSTITUTE($G78,\"{\",CHAR(160),EL$1)),FIND(CHAR(160),SUBSTITUTE($G78,\"}\",CHAR(160),EL$1))-FIND(CHAR(160),SUBSTITUTE($G78,\"{\",CHAR(160),EL$1))+1),\"\")","v":"{Motor HP}"},{"$f":"IFERROR(MID($G78,FIND(CHAR(160),SUBSTITUTE($G78,\"{\",CHAR(160),EM$1)),FIND(CHAR(160),SUBSTITUTE($G78,\"}\",CHAR(160),EM$1))-FIND(CHAR(160),SUBSTITUTE($G78,\"{\",CHAR(160),EM$1))+1),\"\")","v":"{Motor HP}"},{"$f":"IFERROR(MID($G78,FIND(CHAR(160),SUBSTITUTE($G78,\"{\",CHAR(160),EN$1)),FIND(CHAR(160),SUBSTITUTE($G78,\"}\",CHAR(160),EN$1))-FIND(CHAR(160),SUBSTITUTE($G78,\"{\",CHAR(160),EN$1))+1),\"\")","v":"{Motor HP}"},{"$f":"IFERROR(MID($G78,FIND(CHAR(160),SUBSTITUTE($G78,\"{\",CHAR(160),EO$1)),FIND(CHAR(160),SUBSTITUTE($G78,\"}\",CHAR(160),EO$1))-FIND(CHAR(160),SUBSTITUTE($G78,\"{\",CHAR(160),EO$1))+1),\"\")","v":""},{"$f":"IFERROR(MID($G78,FIND(CHAR(160),SUBSTITUTE($G78,\"{\",CHAR(160),EP$1)),FIND(CHAR(160),SUBSTITUTE($G78,\"}\",CHAR(160),EP$1))-FIND(CHAR(160),SUBSTITUTE($G78,\"{\",CHAR(160),EP$1))+1),\"\")","v":""},{"$f":"IFERROR(MID($J78,FIND(CHAR(160),SUBSTITUTE($J78,\"{\",CHAR(160),EQ$1)),FIND(CHAR(160),SUBSTITUTE($J78,\"}\",CHAR(160),EQ$1))-FIND(CHAR(160),SUBSTITUTE($J78,\"{\",CHAR(160),EQ$1))+1),\"\")","v":"{Measure:Quantity}"},{"$f":"IFERROR(MID($J78,FIND(CHAR(160),SUBSTITUTE($J78,\"{\",CHAR(160),ER$1)),FIND(CHAR(160),SUBSTITUTE($J78,\"}\",CHAR(160),ER$1))-FIND(CHAR(160),SUBSTITUTE($J78,\"{\",CHAR(160),ER$1))+1),\"\")","v":"{Motor HP}"},{"$f":"IFERROR(MID($J78,FIND(CHAR(160),SUBSTITUTE($J78,\"{\",CHAR(160),ES$1)),FIND(CHAR(160),SUBSTITUTE($J78,\"}\",CHAR(160),ES$1))-FIND(CHAR(160),SUBSTITUTE($J78,\"{\",CHAR(160),ES$1))+1),\"\")","v":"{Motor HP}"},{"$f":"IFERROR(MID($J78,FIND(CHAR(160),SUBSTITUTE($J78,\"{\",CHAR(160),ET$1)),FIND(CHAR(160),SUBSTITUTE($J78,\"}\",CHAR(160),ET$1))-FIND(CHAR(160),SUBSTITUTE($J78,\"{\",CHAR(160),ET$1))+1),\"\")","v":"{Motor HP}"},{"$f":"IFERROR(MID($J78,FIND(CHAR(160),SUBSTITUTE($J78,\"{\",CHAR(160),EU$1)),FIND(CHAR(160),SUBSTITUTE($J78,\"}\",CHAR(160),EU$1))-FIND(CHAR(160),SUBSTITUTE($J78,\"{\",CHAR(160),EU$1))+1),\"\")","v":"{Motor HP}"},{"$f":"IFERROR(MID($J78,FIND(CHAR(160),SUBSTITUTE($J78,\"{\",CHAR(160),EV$1)),FIND(CHAR(160),SUBSTITUTE($J78,\"}\",CHAR(160),EV$1))-FIND(CHAR(160),SUBSTITUTE($J78,\"{\",CHAR(160),EV$1))+1),\"\")","v":"{Motor HP}"},{"$f":"IFERROR(MID($J78,FIND(CHAR(160),SUBSTITUTE($J78,\"{\",CHAR(160),EW$1)),FIND(CHAR(160),SUBSTITUTE($J78,\"}\",CHAR(160),EW$1))-FIND(CHAR(160),SUBSTITUTE($J78,\"{\",CHAR(160),EW$1))+1),\"\")","v":"{Motor HP}"},{"$f":"IFERROR(MID($J78,FIND(CHAR(160),SUBSTITUTE($J78,\"{\",CHAR(160),EX$1)),FIND(CHAR(160),SUBSTITUTE($J78,\"}\",CHAR(160),EX$1))-FIND(CHAR(160),SUBSTITUTE($J78,\"{\",CHAR(160),EX$1))+1),\"\")","v":"{Motor HP}"},{"$f":"IFERROR(MID($J78,FIND(CHAR(160),SUBSTITUTE($J78,\"{\",CHAR(160),EY$1)),FIND(CHAR(160),SUBSTITUTE($J78,\"}\",CHAR(160),EY$1))-FIND(CHAR(160),SUBSTITUTE($J78,\"{\",CHAR(160),EY$1))+1),\"\")","v":""},{"$f":"IFERROR(MID($J78,FIND(CHAR(160),SUBSTITUTE($J78,\"{\",CHAR(160),EZ$1)),FIND(CHAR(160),SUBSTITUTE($J78,\"}\",CHAR(160),EZ$1))-FIND(CHAR(160),SUBSTITUTE($J78,\"{\",CHAR(160),EZ$1))+1),\"\")","v":""},{"$f":"IFERROR(MID($J78,FIND(CHAR(160),SUBSTITUTE($J78,\"{\",CHAR(160),FA$1)),FIND(CHAR(160),SUBSTITUTE($J78,\"}\",CHAR(160),FA$1))-FIND(CHAR(160),SUBSTITUTE($J78,\"{\",CHAR(160),FA$1))+1),\"\")","v":"{Measure:Quantity}"},{"$f":"IFERROR(MID($J78,FIND(CHAR(160),SUBSTITUTE($J78,\"{\",CHAR(160),FB$1)),FIND(CHAR(160),SUBSTITUTE($J78,\"}\",CHAR(160),FB$1))-FIND(CHAR(160),SUBSTITUTE($J78,\"{\",CHAR(160),FB$1))+1),\"\")","v":"{Motor HP}"},{"$f":"IFERROR(MID($O78,FIND(CHAR(160),SUBSTITUTE($O78,\"{\",CHAR(160),FC$1)),FIND(CHAR(160),SUBSTITUTE($O78,\"}\",CHAR(160),FC$1))-FIND(CHAR(160),SUBSTITUTE($O78,\"{\",CHAR(160),FC$1))+1),\"\")","v":""},{"$f":"IFERROR(MID($O78,FIND(CHAR(160),SUBSTITUTE($O78,\"{\",CHAR(160),FD$1)),FIND(CHAR(160),SUBSTITUTE($O78,\"}\",CHAR(160),FD$1))-FIND(CHAR(160),SUBSTITUTE($O78,\"{\",CHAR(160),FD$1))+1),\"\")","v":""},{"$f":"IFERROR(MID($O78,FIND(CHAR(160),SUBSTITUTE($O78,\"{\",CHAR(160),FE$1)),FIND(CHAR(160),SUBSTITUTE($O78,\"}\",CHAR(160),FE$1))-FIND(CHAR(160),SUBSTITUTE($O78,\"{\",CHAR(160),FE$1))+1),\"\")","v":""},{"$f":"IFERROR(MID($O78,FIND(CHAR(160),SUBSTITUTE($O78,\"{\",CHAR(160),FF$1)),FIND(CHAR(160),SUBSTITUTE($O78,\"}\",CHAR(160),FF$1))-FIND(CHAR(160),SUBSTITUTE($O78,\"{\",CHAR(160),FF$1))+1),\"\")","v":""},{"$f":"IFERROR(MID($O78,FIND(CHAR(160),SUBSTITUTE($O78,\"{\",CHAR(160),FG$1)),FIND(CHAR(160),SUBSTITUTE($O78,\"}\",CHAR(160),FG$1))-FIND(CHAR(160),SUBSTITUTE($O78,\"{\",CHAR(160),FG$1))+1),\"\")","v":""},{"$f":"IFERROR(MID($O78,FIND(CHAR(160),SUBSTITUTE($O78,\"{\",CHAR(160),FH$1)),FIND(CHAR(160),SUBSTITUTE($O78,\"}\",CHAR(160),FH$1))-FIND(CHAR(160),SUBSTITUTE($O78,\"{\",CHAR(160),FH$1))+1),\"\")","v":""},{"$f":"IFERROR(MID($O78,FIND(CHAR(160),SUBSTITUTE($O78,\"{\",CHAR(160),FI$1)),FIND(CHAR(160),SUBSTITUTE($O78,\"}\",CHAR(160),FI$1))-FIND(CHAR(160),SUBSTITUTE($O78,\"{\",CHAR(160),FI$1))+1),\"\")","v":""},{"$f":"IFERROR(MID($O78,FIND(CHAR(160),SUBSTITUTE($O78,\"{\",CHAR(160),FJ$1)),FIND(CHAR(160),SUBSTITUTE($O78,\"}\",CHAR(160),FJ$1))-FIND(CHAR(160),SUBSTITUTE($O78,\"{\",CHAR(160),FJ$1))+1),\"\")","v":""},{"$f":"IFERROR(MID($O78,FIND(CHAR(160),SUBSTITUTE($O78,\"{\",CHAR(160),FK$1)),FIND(CHAR(160),SUBSTITUTE($O78,\"}\",CHAR(160),FK$1))-FIND(CHAR(160),SUBSTITUTE($O78,\"{\",CHAR(160),FK$1))+1),\"\")","v":"{Measure:Quantity}"},{"$f":"IFERROR(MID($O78,FIND(CHAR(160),SUBSTITUTE($O78,\"{\",CHAR(160),FL$1)),FIND(CHAR(160),SUBSTITUTE($O78,\"}\",CHAR(160),FL$1))-FIND(CHAR(160),SUBSTITUTE($O78,\"{\",CHAR(160),FL$1))+1),\"\")","v":"{Motor HP}"},{"$f":"IFERROR(MID($R78,FIND(CHAR(160),SUBSTITUTE($R78,\"{\",CHAR(160),FM$1)),FIND(CHAR(160),SUBSTITUTE($R78,\"}\",CHAR(160),FM$1))-FIND(CHAR(160),SUBSTITUTE($R78,\"{\",CHAR(160),FM$1))+1),\"\")","v":""},{"$f":"IFERROR(MID($R78,FIND(CHAR(160),SUBSTITUTE($R78,\"{\",CHAR(160),FN$1)),FIND(CHAR(160),SUBSTITUTE($R78,\"}\",CHAR(160),FN$1))-FIND(CHAR(160),SUBSTITUTE($R78,\"{\",CHAR(160),FN$1))+1),\"\")","v":""},{"$f":"IFERROR(MID($R78,FIND(CHAR(160),SUBSTITUTE($R78,\"{\",CHAR(160),FO$1)),FIND(CHAR(160),SUBSTITUTE($R78,\"}\",CHAR(160),FO$1))-FIND(CHAR(160),SUBSTITUTE($R78,\"{\",CHAR(160),FO$1))+1),\"\")","v":""},{"$f":"IFERROR(MID($R78,FIND(CHAR(160),SUBSTITUTE($R78,\"{\",CHAR(160),FP$1)),FIND(CHAR(160),SUBSTITUTE($R78,\"}\",CHAR(160),FP$1))-FIND(CHAR(160),SUBSTITUTE($R78,\"{\",CHAR(160),FP$1))+1),\"\")","v":""},{"$f":"IFERROR(MID($R78,FIND(CHAR(160),SUBSTITUTE($R78,\"{\",CHAR(160),FQ$1)),FIND(CHAR(160),SUBSTITUTE($R78,\"}\",CHAR(160),FQ$1))-FIND(CHAR(160),SUBSTITUTE($R78,\"{\",CHAR(160),FQ$1))+1),\"\")","v":""},{"$f":"IFERROR(MID($R78,FIND(CHAR(160),SUBSTITUTE($R78,\"{\",CHAR(160),FR$1)),FIND(CHAR(160),SUBSTITUTE($R78,\"}\",CHAR(160),FR$1))-FIND(CHAR(160),SUBSTITUTE($R78,\"{\",CHAR(160),FR$1))+1),\"\")","v":""},{"$f":"IFERROR(MID($R78,FIND(CHAR(160),SUBSTITUTE($R78,\"{\",CHAR(160),FS$1)),FIND(CHAR(160),SUBSTITUTE($R78,\"}\",CHAR(160),FS$1))-FIND(CHAR(160),SUBSTITUTE($R78,\"{\",CHAR(160),FS$1))+1),\"\")","v":""},{"$f":"IFERROR(MID($R78,FIND(CHAR(160),SUBSTITUTE($R78,\"{\",CHAR(160),FT$1)),FIND(CHAR(160),SUBSTITUTE($R78,\"}\",CHAR(160),FT$1))-FIND(CHAR(160),SUBSTITUTE($R78,\"{\",CHAR(160),FT$1))+1),\"\")","v":""},{"$f":"IFERROR(MID($R78,FIND(CHAR(160),SUBSTITUTE($R78,\"{\",CHAR(160),FU$1)),FIND(CHAR(160),SUBSTITUTE($R78,\"}\",CHAR(160),FU$1))-FIND(CHAR(160),SUBSTITUTE($R78,\"{\",CHAR(160),FU$1))+1),\"\")","v":"{Measure:Quantity}"},{"$f":"IFERROR(MID($R78,FIND(CHAR(160),SUBSTITUTE($R78,\"{\",CHAR(160),FV$1)),FIND(CHAR(160),SUBSTITUTE($R78,\"}\",CHAR(160),FV$1))-FIND(CHAR(160),SUBSTITUTE($R78,\"{\",CHAR(160),FV$1))+1),\"\")","v":"{Motor HP}"},{"$f":"IFERROR(MID($U78,FIND(CHAR(160),SUBSTITUTE($U78,\"{\",CHAR(160),FW$1)),FIND(CHAR(160),SUBSTITUTE($U78,\"}\",CHAR(160),FW$1))-FIND(CHAR(160),SUBSTITUTE($U78,\"{\",CHAR(160),FW$1))+1),\"\")","v":"{Motor HP}"},{"$f":"IFERROR(MID($U78,FIND(CHAR(160),SUBSTITUTE($U78,\"{\",CHAR(160),FX$1)),FIND(CHAR(160),SUBSTITUTE($U78,\"}\",CHAR(160),FX$1))-FIND(CHAR(160),SUBSTITUTE($U78,\"{\",CHAR(160),FX$1))+1),\"\")","v":""},{"$f":"IFERROR(MID($U78,FIND(CHAR(160),SUBSTITUTE($U78,\"{\",CHAR(160),FY$1)),FIND(CHAR(160),SUBSTITUTE($U78,\"}\",CHAR(160),FY$1))-FIND(CHAR(160),SUBSTITUTE($U78,\"{\",CHAR(160),FY$1))+1),\"\")","v":""},{"$f":"IFERROR(MID($U78,FIND(CHAR(160),SUBSTITUTE($U78,\"{\",CHAR(160),FZ$1)),FIND(CHAR(160),SUBSTITUTE($U78,\"}\",CHAR(160),FZ$1))-FIND(CHAR(160),SUBSTITUTE($U78,\"{\",CHAR(160),FZ$1))+1),\"\")","v":""},{"$f":"IFERROR(MID($U78,FIND(CHAR(160),SUBSTITUTE($U78,\"{\",CHAR(160),GA$1)),FIND(CHAR(160),SUBSTITUTE($U78,\"}\",CHAR(160),GA$1))-FIND(CHAR(160),SUBSTITUTE($U78,\"{\",CHAR(160),GA$1))+1),\"\")","v":""},{"$f":"IFERROR(MID($U78,FIND(CHAR(160),SUBSTITUTE($U78,\"{\",CHAR(160),GB$1)),FIND(CHAR(160),SUBSTITUTE($U78,\"}\",CHAR(160),GB$1))-FIND(CHAR(160),SUBSTITUTE($U78,\"{\",CHAR(160),GB$1))+1),\"\")","v":""},{"$f":"IFERROR(MID($U78,FIND(CHAR(160),SUBSTITUTE($U78,\"{\",CHAR(160),GC$1)),FIND(CHAR(160),SUBSTITUTE($U78,\"}\",CHAR(160),GC$1))-FIND(CHAR(160),SUBSTITUTE($U78,\"{\",CHAR(160),GC$1))+1),\"\")","v":""},{"$f":"IFERROR(MID($U78,FIND(CHAR(160),SUBSTITUTE($U78,\"{\",CHAR(160),GD$1)),FIND(CHAR(160),SUBSTITUTE($U78,\"}\",CHAR(160),GD$1))-FIND(CHAR(160),SUBSTITUTE($U78,\"{\",CHAR(160),GD$1))+1),\"\")","v":""},{"$f":"IFERROR(MID($U78,FIND(CHAR(160),SUBSTITUTE($U78,\"{\",CHAR(160),GE$1)),FIND(CHAR(160),SUBSTITUTE($U78,\"}\",CHAR(160),GE$1))-FIND(CHAR(160),SUBSTITUTE($U78,\"{\",CHAR(160),GE$1))+1),\"\")","v":"{Measure:Quantity}"},{"$f":"IFERROR(MID($U78,FIND(CHAR(160),SUBSTITUTE($U78,\"{\",CHAR(160),GF$1)),FIND(CHAR(160),SUBSTITUTE($U78,\"}\",CHAR(160),GF$1))-FIND(CHAR(160),SUBSTITUTE($U78,\"{\",CHAR(160),GF$1))+1),\"\")","v":"{Factor:WinterCF}"},{"$f":"IFERROR(MID($V78,FIND(CHAR(160),SUBSTITUTE($V78,\"{\",CHAR(160),GG$1)),FIND(CHAR(160),SUBSTITUTE($V78,\"}\",CHAR(160),GG$1))-FIND(CHAR(160),SUBSTITUTE($V78,\"{\",CHAR(160),GG$1))+1),\"\")","v":"{Motor HP}"},{"$f":"IFERROR(MID($V78,FIND(CHAR(160),SUBSTITUTE($V78,\"{\",CHAR(160),GH$1)),FIND(CHAR(160),SUBSTITUTE($V78,\"}\",CHAR(160),GH$1))-FIND(CHAR(160),SUBSTITUTE($V78,\"{\",CHAR(160),GH$1))+1),\"\")","v":""},{"$f":"IFERROR(MID($V78,FIND(CHAR(160),SUBSTITUTE($V78,\"{\",CHAR(160),GI$1)),FIND(CHAR(160),SUBSTITUTE($V78,\"}\",CHAR(160),GI$1))-FIND(CHAR(160),SUBSTITUTE($V78,\"{\",CHAR(160),GI$1))+1),\"\")","v":""},{"$f":"IFERROR(MID($V78,FIND(CHAR(160),SUBSTITUTE($V78,\"{\",CHAR(160),GJ$1)),FIND(CHAR(160),SUBSTITUTE($V78,\"}\",CHAR(160),GJ$1))-FIND(CHAR(160),SUBSTITUTE($V78,\"{\",CHAR(160),GJ$1))+1),\"\")","v":""},{"$f":"IFERROR(MID($V78,FIND(CHAR(160),SUBSTITUTE($V78,\"{\",CHAR(160),GK$1)),FIND(CHAR(160),SUBSTITUTE($V78,\"}\",CHAR(160),GK$1))-FIND(CHAR(160),SUBSTITUTE($V78,\"{\",CHAR(160),GK$1))+1),\"\")","v":""},{"$f":"IFERROR(MID($V78,FIND(CHAR(160),SUBSTITUTE($V78,\"{\",CHAR(160),GL$1)),FIND(CHAR(160),SUBSTITUTE($V78,\"}\",CHAR(160),GL$1))-FIND(CHAR(160),SUBSTITUTE($V78,\"{\",CHAR(160),GL$1))+1),\"\")","v":""},{"$f":"IFERROR(MID($V78,FIND(CHAR(160),SUBSTITUTE($V78,\"{\",CHAR(160),GM$1)),FIND(CHAR(160),SUBSTITUTE($V78,\"}\",CHAR(160),GM$1))-FIND(CHAR(160),SUBSTITUTE($V78,\"{\",CHAR(160),GM$1))+1),\"\")","v":""},{"$f":"IFERROR(MID($V78,FIND(CHAR(160),SUBSTITUTE($V78,\"{\",CHAR(160),GN$1)),FIND(CHAR(160),SUBSTITUTE($V78,\"}\",CHAR(160),GN$1))-FIND(CHAR(160),SUBSTITUTE($V78,\"{\",CHAR(160),GN$1))+1),\"\")","v":""},{"$f":"IFERROR(MID($V78,FIND(CHAR(160),SUBSTITUTE($V78,\"{\",CHAR(160),GO$1)),FIND(CHAR(160),SUBSTITUTE($V78,\"}\",CHAR(160),GO$1))-FIND(CHAR(160),SUBSTITUTE($V78,\"{\",CHAR(160),GO$1))+1),\"\")","v":"{Measure:Quantity}"},{"$f":"IFERROR(MID($V78,FIND(CHAR(160),SUBSTITUTE($V78,\"{\",CHAR(160),GP$1)),FIND(CHAR(160),SUBSTITUTE($V78,\"}\",CHAR(160),GP$1))-FIND(CHAR(160),SUBSTITUTE($V78,\"{\",CHAR(160),GP$1))+1),\"\")","v":"{Factor:SummerCF}"},{"$f":"IFERROR(MID($W78,FIND(CHAR(160),SUBSTITUTE($W78,\"{\",CHAR(160),GQ$1)),FIND(CHAR(160),SUBSTITUTE($W78,\"}\",CHAR(160),GQ$1))-FIND(CHAR(160),SUBSTITUTE($W78,\"{\",CHAR(160),GQ$1))+1),\"\")","v":""},{"$f":"IFERROR(MID($W78,FIND(CHAR(160),SUBSTITUTE($W78,\"{\",CHAR(160),GR$1)),FIND(CHAR(160),SUBSTITUTE($W78,\"}\",CHAR(160),GR$1))-FIND(CHAR(160),SUBSTITUTE($W78,\"{\",CHAR(160),GR$1))+1),\"\")","v":""},{"$f":"IFERROR(MID($W78,FIND(CHAR(160),SUBSTITUTE($W78,\"{\",CHAR(160),GS$1)),FIND(CHAR(160),SUBSTITUTE($W78,\"}\",CHAR(160),GS$1))-FIND(CHAR(160),SUBSTITUTE($W78,\"{\",CHAR(160),GS$1))+1),\"\")","v":""},{"$f":"IFERROR(MID($W78,FIND(CHAR(160),SUBSTITUTE($W78,\"{\",CHAR(160),GT$1)),FIND(CHAR(160),SUBSTITUTE($W78,\"}\",CHAR(160),GT$1))-FIND(CHAR(160),SUBSTITUTE($W78,\"{\",CHAR(160),GT$1))+1),\"\")","v":""},{"$f":"IFERROR(MID($W78,FIND(CHAR(160),SUBSTITUTE($W78,\"{\",CHAR(160),GU$1)),FIND(CHAR(160),SUBSTITUTE($W78,\"}\",CHAR(160),GU$1))-FIND(CHAR(160),SUBSTITUTE($W78,\"{\",CHAR(160),GU$1))+1),\"\")","v":""},{"$f":"IFERROR(MID($W78,FIND(CHAR(160),SUBSTITUTE($W78,\"{\",CHAR(160),GV$1)),FIND(CHAR(160),SUBSTITUTE($W78,\"}\",CHAR(160),GV$1))-FIND(CHAR(160),SUBSTITUTE($W78,\"{\",CHAR(160),GV$1))+1),\"\")","v":""},{"$f":"IFERROR(MID($W78,FIND(CHAR(160),SUBSTITUTE($W78,\"{\",CHAR(160),GW$1)),FIND(CHAR(160),SUBSTITUTE($W78,\"}\",CHAR(160),GW$1))-FIND(CHAR(160),SUBSTITUTE($W78,\"{\",CHAR(160),GW$1))+1),\"\")","v":""},{"$f":"IFERROR(MID($W78,FIND(CHAR(160),SUBSTITUTE($W78,\"{\",CHAR(160),GX$1)),FIND(CHAR(160),SUBSTITUTE($W78,\"}\",CHAR(160),GX$1))-FIND(CHAR(160),SUBSTITUTE($W78,\"{\",CHAR(160),GX$1))+1),\"\")","v":""},{"$f":"IFERROR(MID($W78,FIND(CHAR(160),SUBSTITUTE($W78,\"{\",CHAR(160),GY$1)),FIND(CHAR(160),SUBSTITUTE($W78,\"}\",CHAR(160),GY$1))-FIND(CHAR(160),SUBSTITUTE($W78,\"{\",CHAR(160),GY$1))+1),\"\")","v":""},{"$f":"IFERROR(MID($W78,FIND(CHAR(160),SUBSTITUTE($W78,\"{\",CHAR(160),GZ$1)),FIND(CHAR(160),SUBSTITUTE($W78,\"}\",CHAR(160),GZ$1))-FIND(CHAR(160),SUBSTITUTE($W78,\"{\",CHAR(160),GZ$1))+1),\"\")","v":""},{"$f":"IFERROR(MID($X78,FIND(CHAR(160),SUBSTITUTE($X78,\"{\",CHAR(160),HA$1)),FIND(CHAR(160),SUBSTITUTE($X78,\"}\",CHAR(160),HA$1))-FIND(CHAR(160),SUBSTITUTE($X78,\"{\",CHAR(160),HA$1))+1),\"\")","v":""},{"$f":"IFERROR(MID($X78,FIND(CHAR(160),SUBSTITUTE($X78,\"{\",CHAR(160),HB$1)),FIND(CHAR(160),SUBSTITUTE($X78,\"}\",CHAR(160),HB$1))-FIND(CHAR(160),SUBSTITUTE($X78,\"{\",CHAR(160),HB$1))+1),\"\")","v":""},{"$f":"IFERROR(MID($X78,FIND(CHAR(160),SUBSTITUTE($X78,\"{\",CHAR(160),HC$1)),FIND(CHAR(160),SUBSTITUTE($X78,\"}\",CHAR(160),HC$1))-FIND(CHAR(160),SUBSTITUTE($X78,\"{\",CHAR(160),HC$1))+1),\"\")","v":""},{"$f":"IFERROR(MID($X78,FIND(CHAR(160),SUBSTITUTE($X78,\"{\",CHAR(160),HD$1)),FIND(CHAR(160),SUBSTITUTE($X78,\"}\",CHAR(160),HD$1))-FIND(CHAR(160),SUBSTITUTE($X78,\"{\",CHAR(160),HD$1))+1),\"\")","v":""},{"$f":"IFERROR(MID($X78,FIND(CHAR(160),SUBSTITUTE($X78,\"{\",CHAR(160),HE$1)),FIND(CHAR(160),SUBSTITUTE($X78,\"}\",CHAR(160),HE$1))-FIND(CHAR(160),SUBSTITUTE($X78,\"{\",CHAR(160),HE$1))+1),\"\")","v":""},{"$f":"IFERROR(MID($X78,FIND(CHAR(160),SUBSTITUTE($X78,\"{\",CHAR(160),HF$1)),FIND(CHAR(160),SUBSTITUTE($X78,\"}\",CHAR(160),HF$1))-FIND(CHAR(160),SUBSTITUTE($X78,\"{\",CHAR(160),HF$1))+1),\"\")","v":""},{"$f":"IFERROR(MID($X78,FIND(CHAR(160),SUBSTITUTE($X78,\"{\",CHAR(160),HG$1)),FIND(CHAR(160),SUBSTITUTE($X78,\"}\",CHAR(160),HG$1))-FIND(CHAR(160),SUBSTITUTE($X78,\"{\",CHAR(160),HG$1))+1),\"\")","v":""},{"$f":"IFERROR(MID($X78,FIND(CHAR(160),SUBSTITUTE($X78,\"{\",CHAR(160),HH$1)),FIND(CHAR(160),SUBSTITUTE($X78,\"}\",CHAR(160),HH$1))-FIND(CHAR(160),SUBSTITUTE($X78,\"{\",CHAR(160),HH$1))+1),\"\")","v":""},{"$f":"IFERROR(MID($X78,FIND(CHAR(160),SUBSTITUTE($X78,\"{\",CHAR(160),HI$1)),FIND(CHAR(160),SUBSTITUTE($X78,\"}\",CHAR(160),HI$1))-FIND(CHAR(160),SUBSTITUTE($X78,\"{\",CHAR(160),HI$1))+1),\"\")","v":""},{"$f":"IFERROR(MID($X78,FIND(CHAR(160),SUBSTITUTE($X78,\"{\",CHAR(160),HJ$1)),FIND(CHAR(160),SUBSTITUTE($X78,\"}\",CHAR(160),HJ$1))-FIND(CHAR(160),SUBSTITUTE($X78,\"{\",CHAR(160),HJ$1))+1),\"\")","v":""},{"$f":"IFERROR(MID($Y78,FIND(CHAR(160),SUBSTITUTE($Y78,\"{\",CHAR(160),HK$1)),FIND(CHAR(160),SUBSTITUTE($Y78,\"}\",CHAR(160),HK$1))-FIND(CHAR(160),SUBSTITUTE($Y78,\"{\",CHAR(160),HK$1))+1),\"\")","v":""},{"$f":"IFERROR(MID($Y78,FIND(CHAR(160),SUBSTITUTE($Y78,\"{\",CHAR(160),HL$1)),FIND(CHAR(160),SUBSTITUTE($Y78,\"}\",CHAR(160),HL$1))-FIND(CHAR(160),SUBSTITUTE($Y78,\"{\",CHAR(160),HL$1))+1),\"\")","v":""},{"$f":"IFERROR(MID($Y78,FIND(CHAR(160),SUBSTITUTE($Y78,\"{\",CHAR(160),HM$1)),FIND(CHAR(160),SUBSTITUTE($Y78,\"}\",CHAR(160),HM$1))-FIND(CHAR(160),SUBSTITUTE($Y78,\"{\",CHAR(160),HM$1))+1),\"\")","v":""},{"$f":"IFERROR(MID($Y78,FIND(CHAR(160),SUBSTITUTE($Y78,\"{\",CHAR(160),HN$1)),FIND(CHAR(160),SUBSTITUTE($Y78,\"}\",CHAR(160),HN$1))-FIND(CHAR(160),SUBSTITUTE($Y78,\"{\",CHAR(160),HN$1))+1),\"\")","v":""},{"$f":"IFERROR(MID($Y78,FIND(CHAR(160),SUBSTITUTE($Y78,\"{\",CHAR(160),HO$1)),FIND(CHAR(160),SUBSTITUTE($Y78,\"}\",CHAR(160),HO$1))-FIND(CHAR(160),SUBSTITUTE($Y78,\"{\",CHAR(160),HO$1))+1),\"\")","v":""},{"$f":"IFERROR(MID($Y78,FIND(CHAR(160),SUBSTITUTE($Y78,\"{\",CHAR(160),HP$1)),FIND(CHAR(160),SUBSTITUTE($Y78,\"}\",CHAR(160),HP$1))-FIND(CHAR(160),SUBSTITUTE($Y78,\"{\",CHAR(160),HP$1))+1),\"\")","v":""},{"$f":"IFERROR(MID($Y78,FIND(CHAR(160),SUBSTITUTE($Y78,\"{\",CHAR(160),HQ$1)),FIND(CHAR(160),SUBSTITUTE($Y78,\"}\",CHAR(160),HQ$1))-FIND(CHAR(160),SUBSTITUTE($Y78,\"{\",CHAR(160),HQ$1))+1),\"\")","v":""},{"$f":"IFERROR(MID($Y78,FIND(CHAR(160),SUBSTITUTE($Y78,\"{\",CHAR(160),HR$1)),FIND(CHAR(160),SUBSTITUTE($Y78,\"}\",CHAR(160),HR$1))-FIND(CHAR(160),SUBSTITUTE($Y78,\"{\",CHAR(160),HR$1))+1),\"\")","v":""},{"$f":"IFERROR(MID($Y78,FIND(CHAR(160),SUBSTITUTE($Y78,\"{\",CHAR(160),HS$1)),FIND(CHAR(160),SUBSTITUTE($Y78,\"}\",CHAR(160),HS$1))-FIND(CHAR(160),SUBSTITUTE($Y78,\"{\",CHAR(160),HS$1))+1),\"\")","v":""},{"$f":"IFERROR(MID($Y78,FIND(CHAR(160),SUBSTITUTE($Y78,\"{\",CHAR(160),HT$1)),FIND(CHAR(160),SUBSTITUTE($Y78,\"}\",CHAR(160),HT$1))-FIND(CHAR(160),SUBSTITUTE($Y78,\"{\",CHAR(160),HT$1))+1),\"\")","v":""},{"$f":"IFERROR(MID($Z78,FIND(CHAR(160),SUBSTITUTE($Z78,\"{\",CHAR(160),HU$1)),FIND(CHAR(160),SUBSTITUTE($Z78,\"}\",CHAR(160),HU$1))-FIND(CHAR(160),SUBSTITUTE($Z78,\"{\",CHAR(160),HU$1))+1),\"\")","v":""},{"$f":"IFERROR(MID($Z78,FIND(CHAR(160),SUBSTITUTE($Z78,\"{\",CHAR(160),HV$1)),FIND(CHAR(160),SUBSTITUTE($Z78,\"}\",CHAR(160),HV$1))-FIND(CHAR(160),SUBSTITUTE($Z78,\"{\",CHAR(160),HV$1))+1),\"\")","v":""},{"$f":"IFERROR(MID($Z78,FIND(CHAR(160),SUBSTITUTE($Z78,\"{\",CHAR(160),HW$1)),FIND(CHAR(160),SUBSTITUTE($Z78,\"}\",CHAR(160),HW$1))-FIND(CHAR(160),SUBSTITUTE($Z78,\"{\",CHAR(160),HW$1))+1),\"\")","v":""},{"$f":"IFERROR(MID($Z78,FIND(CHAR(160),SUBSTITUTE($Z78,\"{\",CHAR(160),HX$1)),FIND(CHAR(160),SUBSTITUTE($Z78,\"}\",CHAR(160),HX$1))-FIND(CHAR(160),SUBSTITUTE($Z78,\"{\",CHAR(160),HX$1))+1),\"\")","v":""},{"$f":"IFERROR(MID($Z78,FIND(CHAR(160),SUBSTITUTE($Z78,\"{\",CHAR(160),HY$1)),FIND(CHAR(160),SUBSTITUTE($Z78,\"}\",CHAR(160),HY$1))-FIND(CHAR(160),SUBSTITUTE($Z78,\"{\",CHAR(160),HY$1))+1),\"\")","v":""},{"$f":"IFERROR(MID($Z78,FIND(CHAR(160),SUBSTITUTE($Z78,\"{\",CHAR(160),HZ$1)),FIND(CHAR(160),SUBSTITUTE($Z78,\"}\",CHAR(160),HZ$1))-FIND(CHAR(160),SUBSTITUTE($Z78,\"{\",CHAR(160),HZ$1))+1),\"\")","v":""},{"$f":"IFERROR(MID($Z78,FIND(CHAR(160),SUBSTITUTE($Z78,\"{\",CHAR(160),IA$1)),FIND(CHAR(160),SUBSTITUTE($Z78,\"}\",CHAR(160),IA$1))-FIND(CHAR(160),SUBSTITUTE($Z78,\"{\",CHAR(160),IA$1))+1),\"\")","v":""},{"$f":"IFERROR(MID($Z78,FIND(CHAR(160),SUBSTITUTE($Z78,\"{\",CHAR(160),IB$1)),FIND(CHAR(160),SUBSTITUTE($Z78,\"}\",CHAR(160),IB$1))-FIND(CHAR(160),SUBSTITUTE($Z78,\"{\",CHAR(160),IB$1))+1),\"\")","v":""},{"$f":"IFERROR(MID($Z78,FIND(CHAR(160),SUBSTITUTE($Z78,\"{\",CHAR(160),IC$1)),FIND(CHAR(160),SUBSTITUTE($Z78,\"}\",CHAR(160),IC$1))-FIND(CHAR(160),SUBSTITUTE($Z78,\"{\",CHAR(160),IC$1))+1),\"\")","v":""},{"$f":"IFERROR(MID($Z78,FIND(CHAR(160),SUBSTITUTE($Z78,\"{\",CHAR(160),ID$1)),FIND(CHAR(160),SUBSTITUTE($Z78,\"}\",CHAR(160),ID$1))-FIND(CHAR(160),SUBSTITUTE($Z78,\"{\",CHAR(160),ID$1))+1),\"\")","v":""},{"$f":"IFERROR(MID($AA78,FIND(CHAR(160),SUBSTITUTE($AA78,\"{\",CHAR(160),IE$1)),FIND(CHAR(160),SUBSTITUTE($AA78,\"}\",CHAR(160),IE$1))-FIND(CHAR(160),SUBSTITUTE($AA78,\"{\",CHAR(160),IE$1))+1),\"\")","v":""},{"$f":"IFERROR(MID($AA78,FIND(CHAR(160),SUBSTITUTE($AA78,\"{\",CHAR(160),IF$1)),FIND(CHAR(160),SUBSTITUTE($AA78,\"}\",CHAR(160),IF$1))-FIND(CHAR(160),SUBSTITUTE($AA78,\"{\",CHAR(160),IF$1))+1),\"\")","v":""},{"$f":"IFERROR(MID($AA78,FIND(CHAR(160),SUBSTITUTE($AA78,\"{\",CHAR(160),IG$1)),FIND(CHAR(160),SUBSTITUTE($AA78,\"}\",CHAR(160),IG$1))-FIND(CHAR(160),SUBSTITUTE($AA78,\"{\",CHAR(160),IG$1))+1),\"\")","v":""},{"$f":"IFERROR(MID($AA78,FIND(CHAR(160),SUBSTITUTE($AA78,\"{\",CHAR(160),IH$1)),FIND(CHAR(160),SUBSTITUTE($AA78,\"}\",CHAR(160),IH$1))-FIND(CHAR(160),SUBSTITUTE($AA78,\"{\",CHAR(160),IH$1))+1),\"\")","v":""},{"$f":"IFERROR(MID($AA78,FIND(CHAR(160),SUBSTITUTE($AA78,\"{\",CHAR(160),II$1)),FIND(CHAR(160),SUBSTITUTE($AA78,\"}\",CHAR(160),II$1))-FIND(CHAR(160),SUBSTITUTE($AA78,\"{\",CHAR(160),II$1))+1),\"\")","v":""},{"$f":"IFERROR(MID($AA78,FIND(CHAR(160),SUBSTITUTE($AA78,\"{\",CHAR(160),IJ$1)),FIND(CHAR(160),SUBSTITUTE($AA78,\"}\",CHAR(160),IJ$1))-FIND(CHAR(160),SUBSTITUTE($AA78,\"{\",CHAR(160),IJ$1))+1),\"\")","v":""},{"$f":"IFERROR(MID($AA78,FIND(CHAR(160),SUBSTITUTE($AA78,\"{\",CHAR(160),IK$1)),FIND(CHAR(160),SUBSTITUTE($AA78,\"}\",CHAR(160),IK$1))-FIND(CHAR(160),SUBSTITUTE($AA78,\"{\",CHAR(160),IK$1))+1),\"\")","v":""},{"$f":"IFERROR(MID($AA78,FIND(CHAR(160),SUBSTITUTE($AA78,\"{\",CHAR(160),IL$1)),FIND(CHAR(160),SUBSTITUTE($AA78,\"}\",CHAR(160),IL$1))-FIND(CHAR(160),SUBSTITUTE($AA78,\"{\",CHAR(160),IL$1))+1),\"\")","v":""},{"$f":"IFERROR(MID($AA78,FIND(CHAR(160),SUBSTITUTE($AA78,\"{\",CHAR(160),IM$1)),FIND(CHAR(160),SUBSTITUTE($AA78,\"}\",CHAR(160),IM$1))-FIND(CHAR(160),SUBSTITUTE($AA78,\"{\",CHAR(160),IM$1))+1),\"\")","v":""},{"$f":"IFERROR(MID($AA78,FIND(CHAR(160),SUBSTITUTE($AA78,\"{\",CHAR(160),IN$1)),FIND(CHAR(160),SUBSTITUTE($AA78,\"}\",CHAR(160),IN$1))-FIND(CHAR(160),SUBSTITUTE($AA78,\"{\",CHAR(160),IN$1))+1),\"\")","v":""},{"$f":"IFERROR(MID($AB78,FIND(CHAR(160),SUBSTITUTE($AB78,\"{\",CHAR(160),IO$1)),FIND(CHAR(160),SUBSTITUTE($AB78,\"}\",CHAR(160),IO$1))-FIND(CHAR(160),SUBSTITUTE($AB78,\"{\",CHAR(160),IO$1))+1),\"\")","v":""},{"$f":"IFERROR(MID($AB78,FIND(CHAR(160),SUBSTITUTE($AB78,\"{\",CHAR(160),IP$1)),FIND(CHAR(160),SUBSTITUTE($AB78,\"}\",CHAR(160),IP$1))-FIND(CHAR(160),SUBSTITUTE($AB78,\"{\",CHAR(160),IP$1))+1),\"\")","v":""},{"$f":"IFERROR(MID($AB78,FIND(CHAR(160),SUBSTITUTE($AB78,\"{\",CHAR(160),IQ$1)),FIND(CHAR(160),SUBSTITUTE($AB78,\"}\",CHAR(160),IQ$1))-FIND(CHAR(160),SUBSTITUTE($AB78,\"{\",CHAR(160),IQ$1))+1),\"\")","v":""},{"$f":"IFERROR(MID($AB78,FIND(CHAR(160),SUBSTITUTE($AB78,\"{\",CHAR(160),IR$1)),FIND(CHAR(160),SUBSTITUTE($AB78,\"}\",CHAR(160),IR$1))-FIND(CHAR(160),SUBSTITUTE($AB78,\"{\",CHAR(160),IR$1))+1),\"\")","v":""},{"$f":"IFERROR(MID($AB78,FIND(CHAR(160),SUBSTITUTE($AB78,\"{\",CHAR(160),IS$1)),FIND(CHAR(160),SUBSTITUTE($AB78,\"}\",CHAR(160),IS$1))-FIND(CHAR(160),SUBSTITUTE($AB78,\"{\",CHAR(160),IS$1))+1),\"\")","v":""},{"$f":"IFERROR(MID($AB78,FIND(CHAR(160),SUBSTITUTE($AB78,\"{\",CHAR(160),IT$1)),FIND(CHAR(160),SUBSTITUTE($AB78,\"}\",CHAR(160),IT$1))-FIND(CHAR(160),SUBSTITUTE($AB78,\"{\",CHAR(160),IT$1))+1),\"\")","v":""},{"$f":"IFERROR(MID($AB78,FIND(CHAR(160),SUBSTITUTE($AB78,\"{\",CHAR(160),IU$1)),FIND(CHAR(160),SUBSTITUTE($AB78,\"}\",CHAR(160),IU$1))-FIND(CHAR(160),SUBSTITUTE($AB78,\"{\",CHAR(160),IU$1))+1),\"\")","v":""},{"$f":"IFERROR(MID($AB78,FIND(CHAR(160),SUBSTITUTE($AB78,\"{\",CHAR(160),IV$1)),FIND(CHAR(160),SUBSTITUTE($AB78,\"}\",CHAR(160),IV$1))-FIND(CHAR(160),SUBSTITUTE($AB78,\"{\",CHAR(160),IV$1))+1),\"\")","v":""},{"$f":"IFERROR(MID($AB78,FIND(CHAR(160),SUBSTITUTE($AB78,\"{\",CHAR(160),IW$1)),FIND(CHAR(160),SUBSTITUTE($AB78,\"}\",CHAR(160),IW$1))-FIND(CHAR(160),SUBSTITUTE($AB78,\"{\",CHAR(160),IW$1))+1),\"\")","v":""},{"$f":"IFERROR(MID($AB78,FIND(CHAR(160),SUBSTITUTE($AB78,\"{\",CHAR(160),IX$1)),FIND(CHAR(160),SUBSTITUTE($AB78,\"}\",CHAR(160),IX$1))-FIND(CHAR(160),SUBSTITUTE($AB78,\"{\",CHAR(160),IX$1))+1),\"\")","v":""},null,{"$f":"10-COUNTIF(DU78:ED78,\"\")","v":2}]
["C&I HVAC - Natural Gas","VFD: Return Fan on VAV Packaged or Rooftop HVAC Unit","RFP","2021-07-01","2022-06-30","Calculated","{Measure:Quantity}*if({Motor HP}=5,2425,if({Motor HP}=7.5,2648,if({Motor HP}=10,2871,if({Motor HP}=15,3317,if({Motor HP}=20,3763,if({Motor HP}=25,4209,if({Motor HP}=30,4655,0)))))))",0,"Calculated","{Measure:Quantity}*if({Motor HP}=5,400,if({Motor HP}=7.5,650,if({Motor HP}=10,1400,if({Motor HP}=15,1650,if({Motor HP}=20,1850,if({Motor HP}=25,2000,if({Motor HP}=30,2300,0)))))))",0,"2021-05-25","2022-06-30","Calculated","{Measure:Quantity}*{Motor HP}*1788",null,null,"{Measure:Quantity}*{Motor HP}*.302",null,null,"{Measure:Quantity}*{Factor:WinterCF}*{Motor HP}*.302","{Measure:Quantity}*{Factor:SummerCF}*{Motor HP}*.302",null,null,null,null,null,null,"2021-05-25","2022-06-30",13,0.21,0.68300000000000005,0.39,0.308,0.214,8.7999999999999995E-2,1,1.1220000000000001,1,0.52,1.6E-2,null,{"$f":"DU79","v":"{Measure:Quantity}"},1,{"$f":"DV79","v":"{Motor HP}"},5,{"$f":"DW79","v":""},null,{"$f":"DX79","v":""},null,{"$f":"DY79","v":""},null,{"$f":"DZ79","v":""},null,{"$f":"EA79","v":""},null,{"$f":"EB79","v":""},null,{"$f":"EC79","v":""},null,{"$f":"ED79","v":""},null,{"$f":"AS79*AU79*1788","v":8940},0,0,{"$f":"AS79*AU79*0.302","v":1.51},0,0,{"$f":"AS79*AF79*AU79*0.302","v":0.31709999999999999},{"$f":"AS79*AG79*AU79*0.302","v":1.0313300000000001},0,0,0,0,0,0,null,"Res","Default DR",{"$f":"Benefits(BL79,BR79,BS79,BT79,BU79,BV79,BW79,BX79,BY79,BZ79,AE79,AH79,AI79,AJ79,AK79,AL79,AM79,AN79,AO79,AP79,CA79,CB79)","v":12094.689196231971},2788.9593275943762,0,0,0,0,0,0,0,{"$f":"SUMPRODUCT(CC79:CK79,--(CC79:CK79>0))","v":14883.648523826349},{"$f":"-SUMPRODUCT(CC79:CK79,--(CC79:CK79<0))","v":0},null,{"$f":"AS79*IF(AU79=5,2425,IF(AU79=7.5,2648,IF(AU79=10,2871,IF(AU79=15,3317,IF(AU79=20,3763,IF(AU79=25,4209,IF(AU79=30,4655,0)))))))","v":2425},null,null,{"$f":"CM79+CO79","v":2425},{"$f":"IF(NetOrGross=\"Net\",(1-AO79+AP79),1)","v":1},{"$f":"(SUMPRODUCT(CC79:CJ79,--(CC79:CJ79>0))+CN79)*CS79/((-SUMPRODUCT(CC79:CJ79,--(CC79:CJ79<0))+MAX(CO79,CV79)+CP79+CQ79)*CS79+IF(FRIncentives=\"Yes\",CV79*(1-CS79),0))","v":6.1375870201345766},1,{"$f":"AS79*IF(AU79=5,400,IF(AU79=7.5,650,IF(AU79=10,1400,IF(AU79=15,1650,IF(AU79=20,1850,IF(AU79=25,2000,IF(AU79=30,2300,0)))))))","v":400},null,"NG","y",null,{"$f":"IF(F79=\"Manual Entry\",\"Manual\",IF(G79=\"\",0,\"X=\"&SUBSTITUTE(SUBSTITUTE(SUBSTITUTE(SUBSTITUTE(SUBSTITUTE(SUBSTITUTE(SUBSTITUTE(SUBSTITUTE(SUBSTITUTE(SUBSTITUTE(SUBSTITUTE(SUBSTITUTE(G79,$ED79,$ED$2&ROW($ED79)),$EC79,$EC$2&ROW($EC79)),$EB79,$EB$2&ROW($EB79)),$EA79,$EA$2&ROW($EA79)),$DZ79,$DZ$2&ROW($DZ79)),$DY79,$DY$2&ROW($DY79)),$DX79,$DX$2&ROW($DX79)),$DW79,$DW$2&ROW($DW79)),$DV79,$DV$2&ROW($DV79)),$DU79,$DU$2&ROW($DU79)),$DT79,$DT$2&ROW($DT79)),$DS79,$DS$2&ROW($DS79))))","v":"X=AS79*if(AU79=5,2425,if(AU79=7.5,2648,if(AU79=10,2871,if(AU79=15,3317,if(AU79=20,3763,if(AU79=25,4209,if(AU79=30,4655,0)))))))"},{"$f":"IF(I79=\"Manual Entry\",\"Manual\",IF(J79=\"\",0,\"X=\"&SUBSTITUTE(SUBSTITUTE(SUBSTITUTE(SUBSTITUTE(SUBSTITUTE(SUBSTITUTE(SUBSTITUTE(SUBSTITUTE(SUBSTITUTE(SUBSTITUTE(SUBSTITUTE(SUBSTITUTE(J79,$ED79,$ED$2&ROW($ED79)),$EC79,$EC$2&ROW($EC79)),$EB79,$EB$2&ROW($EB79)),$EA79,$EA$2&ROW($EA79)),$DZ79,$DZ$2&ROW($DZ79)),$DY79,$DY$2&ROW($DY79)),$DX79,$DX$2&ROW($DX79)),$DW79,$DW$2&ROW($DW79)),$DV79,$DV$2&ROW($DV79)),$DU79,$DU$2&ROW($DU79)),$DT79,$DT$2&ROW($DT79)),$DS79,$DS$2&ROW($DS79))))","v":"X=AS79*if(AU79=5,400,if(AU79=7.5,650,if(AU79=10,1400,if(AU79=15,1650,if(AU79=20,1850,if(AU79=25,2000,if(AU79=30,2300,0)))))))"},{"$f":"IF(O79=\"\",0,\"X=\"&SUBSTITUTE(SUBSTITUTE(SUBSTITUTE(SUBSTITUTE(SUBSTITUTE(SUBSTITUTE(SUBSTITUTE(SUBSTITUTE(SUBSTITUTE(SUBSTITUTE(SUBSTITUTE(SUBSTITUTE(O79,$ED79,$ED$2&ROW($ED79)),$EC79,$EC$2&ROW($EC79)),$EB79,$EB$2&ROW($EB79)),$EA79,$EA$2&ROW($EA79)),$DZ79,$DZ$2&ROW($DZ79)),$DY79,$DY$2&ROW($DY79)),$DX79,$DX$2&ROW($DX79)),$DW79,$DW$2&ROW($DW79)),$DV79,$DV$2&ROW($DV79)),$DU79,$DU$2&ROW($DU79)),$DT79,$DT$2&ROW($DT79)),$DS79,$DS$2&ROW($DS79)))","v":"X=AS79*AU79*1788"},{"$f":"IF(P79=\"\",0,\"X=\"&SUBSTITUTE(SUBSTITUTE(SUBSTITUTE(SUBSTITUTE(SUBSTITUTE(SUBSTITUTE(SUBSTITUTE(SUBSTITUTE(SUBSTITUTE(SUBSTITUTE(SUBSTITUTE(SUBSTITUTE(P79,$ED79,$ED$2&ROW($ED79)),$EC79,$EC$2&ROW($EC79)),$EB79,$EB$2&ROW($EB79)),$EA79,$EA$2&ROW($EA79)),$DZ79,$DZ$2&ROW($DZ79)),$DY79,$DY$2&ROW($DY79)),$DX79,$DX$2&ROW($DX79)),$DW79,$DW$2&ROW($DW79)),$DV79,$DV$2&ROW($DV79)),$DU79,$DU$2&ROW($DU79)),$DT79,$DT$2&ROW($DT79)),$DS79,$DS$2&ROW($DS79)))","v":0},{"$f":"IF(Q79=\"\",0,\"X=\"&SUBSTITUTE(SUBSTITUTE(SUBSTITUTE(SUBSTITUTE(SUBSTITUTE(SUBSTITUTE(SUBSTITUTE(SUBSTITUTE(SUBSTITUTE(SUBSTITUTE(SUBSTITUTE(SUBSTITUTE(Q79,$ED79,$ED$2&ROW($ED79)),$EC79,$EC$2&ROW($EC79)),$EB79,$EB$2&ROW($EB79)),$EA79,$EA$2&ROW($EA79)),$DZ79,$DZ$2&ROW($DZ79)),$DY79,$DY$2&ROW($DY79)),$DX79,$DX$2&ROW($DX79)),$DW79,$DW$2&ROW($DW79)),$DV79,$DV$2&ROW($DV79)),$DU79,$DU$2&ROW($DU79)),$DT79,$DT$2&ROW($DT79)),$DS79,$DS$2&ROW($DS79)))","v":0},{"$f":"IF(R79=\"\",0,\"X=\"&SUBSTITUTE(SUBSTITUTE(SUBSTITUTE(SUBSTITUTE(SUBSTITUTE(SUBSTITUTE(SUBSTITUTE(SUBSTITUTE(SUBSTITUTE(SUBSTITUTE(SUBSTITUTE(SUBSTITUTE(R79,$ED79,$ED$2&ROW($ED79)),$EC79,$EC$2&ROW($EC79)),$EB79,$EB$2&ROW($EB79)),$EA79,$EA$2&ROW($EA79)),$DZ79,$DZ$2&ROW($DZ79)),$DY79,$DY$2&ROW($DY79)),$DX79,$DX$2&ROW($DX79)),$DW79,$DW$2&ROW($DW79)),$DV79,$DV$2&ROW($DV79)),$DU79,$DU$2&ROW($DU79)),$DT79,$DT$2&ROW($DT79)),$DS79,$DS$2&ROW($DS79)))","v":"X=AS79*AU79*.302"},{"$f":"IF(S79=\"\",0,\"X=\"&SUBSTITUTE(SUBSTITUTE(SUBSTITUTE(SUBSTITUTE(SUBSTITUTE(SUBSTITUTE(SUBSTITUTE(SUBSTITUTE(SUBSTITUTE(SUBSTITUTE(SUBSTITUTE(SUBSTITUTE(S79,$ED79,$ED$2&ROW($ED79)),$EC79,$EC$2&ROW($EC79)),$EB79,$EB$2&ROW($EB79)),$EA79,$EA$2&ROW($EA79)),$DZ79,$DZ$2&ROW($DZ79)),$DY79,$DY$2&ROW($DY79)),$DX79,$DX$2&ROW($DX79)),$DW79,$DW$2&ROW($DW79)),$DV79,$DV$2&ROW($DV79)),$DU79,$DU$2&ROW($DU79)),$DT79,$DT$2&ROW($DT79)),$DS79,$DS$2&ROW($DS79)))","v":0},{"$f":"IF(T79=\"\",0,\"X=\"&SUBSTITUTE(SUBSTITUTE(SUBSTITUTE(SUBSTITUTE(SUBSTITUTE(SUBSTITUTE(SUBSTITUTE(SUBSTITUTE(SUBSTITUTE(SUBSTITUTE(SUBSTITUTE(SUBSTITUTE(T79,$ED79,$ED$2&ROW($ED79)),$EC79,$EC$2&ROW($EC79)),$EB79,$EB$2&ROW($EB79)),$EA79,$EA$2&ROW($EA79)),$DZ79,$DZ$2&ROW($DZ79)),$DY79,$DY$2&ROW($DY79)),$DX79,$DX$2&ROW($DX79)),$DW79,$DW$2&ROW($DW79)),$DV79,$DV$2&ROW($DV79)),$DU79,$DU$2&ROW($DU79)),$DT79,$DT$2&ROW($DT79)),$DS79,$DS$2&ROW($DS79)))","v":0},{"$f":"IF(U79=\"\",0,\"X=\"&SUBSTITUTE(SUBSTITUTE(SUBSTITUTE(SUBSTITUTE(SUBSTITUTE(SUBSTITUTE(SUBSTITUTE(SUBSTITUTE(SUBSTITUTE(SUBSTITUTE(SUBSTITUTE(SUBSTITUTE(U79,$ED79,$ED$2&ROW($ED79)),$EC79,$EC$2&ROW($EC79)),$EB79,$EB$2&ROW($EB79)),$EA79,$EA$2&ROW($EA79)),$DZ79,$DZ$2&ROW($DZ79)),$DY79,$DY$2&ROW($DY79)),$DX79,$DX$2&ROW($DX79)),$DW79,$DW$2&ROW($DW79)),$DV79,$DV$2&ROW($DV79)),$DU79,$DU$2&ROW($DU79)),$DT79,$DT$2&ROW($DT79)),$DS79,$DS$2&ROW($DS79)))","v":"X=AS79*AF79*AU79*.302"},{"$f":"IF(V79=\"\",0,\"X=\"&SUBSTITUTE(SUBSTITUTE(SUBSTITUTE(SUBSTITUTE(SUBSTITUTE(SUBSTITUTE(SUBSTITUTE(SUBSTITUTE(SUBSTITUTE(SUBSTITUTE(SUBSTITUTE(SUBSTITUTE(V79,$ED79,$ED$2&ROW($ED79)),$EC79,$EC$2&ROW($EC79)),$EB79,$EB$2&ROW($EB79)),$EA79,$EA$2&ROW($EA79)),$DZ79,$DZ$2&ROW($DZ79)),$DY79,$DY$2&ROW($DY79)),$DX79,$DX$2&ROW($DX79)),$DW79,$DW$2&ROW($DW79)),$DV79,$DV$2&ROW($DV79)),$DU79,$DU$2&ROW($DU79)),$DT79,$DT$2&ROW($DT79)),$DS79,$DS$2&ROW($DS79)))","v":"X=AS79*AG79*AU79*.302"},{"$f":"IF(W79=\"\",0,\"X=\"&SUBSTITUTE(SUBSTITUTE(SUBSTITUTE(SUBSTITUTE(SUBSTITUTE(SUBSTITUTE(SUBSTITUTE(SUBSTITUTE(SUBSTITUTE(SUBSTITUTE(SUBSTITUTE(SUBSTITUTE(W79,$ED79,$ED$2&ROW($ED79)),$EC79,$EC$2&ROW($EC79)),$EB79,$EB$2&ROW($EB79)),$EA79,$EA$2&ROW($EA79)),$DZ79,$DZ$2&ROW($DZ79)),$DY79,$DY$2&ROW($DY79)),$DX79,$DX$2&ROW($DX79)),$DW79,$DW$2&ROW($DW79)),$DV79,$DV$2&ROW($DV79)),$DU79,$DU$2&ROW($DU79)),$DT79,$DT$2&ROW($DT79)),$DS79,$DS$2&ROW($DS79)))","v":0},{"$f":"IF(X79=\"\",0,\"X=\"&SUBSTITUTE(SUBSTITUTE(SUBSTITUTE(SUBSTITUTE(SUBSTITUTE(SUBSTITUTE(SUBSTITUTE(SUBSTITUTE(SUBSTITUTE(SUBSTITUTE(SUBSTITUTE(SUBSTITUTE(X79,$ED79,$ED$2&ROW($ED79)),$EC79,$EC$2&ROW($EC79)),$EB79,$EB$2&ROW($EB79)),$EA79,$EA$2&ROW($EA79)),$DZ79,$DZ$2&ROW($DZ79)),$DY79,$DY$2&ROW($DY79)),$DX79,$DX$2&ROW($DX79)),$DW79,$DW$2&ROW($DW79)),$DV79,$DV$2&ROW($DV79)),$DU79,$DU$2&ROW($DU79)),$DT79,$DT$2&ROW($DT79)),$DS79,$DS$2&ROW($DS79)))","v":0},{"$f":"IF(Y79=\"\",0,\"X=\"&SUBSTITUTE(SUBSTITUTE(SUBSTITUTE(SUBSTITUTE(SUBSTITUTE(SUBSTITUTE(SUBSTITUTE(SUBSTITUTE(SUBSTITUTE(SUBSTITUTE(SUBSTITUTE(SUBSTITUTE(Y79,$ED79,$ED$2&ROW($ED79)),$EC79,$EC$2&ROW($EC79)),$EB79,$EB$2&ROW($EB79)),$EA79,$EA$2&ROW($EA79)),$DZ79,$DZ$2&ROW($DZ79)),$DY79,$DY$2&ROW($DY79)),$DX79,$DX$2&ROW($DX79)),$DW79,$DW$2&ROW($DW79)),$DV79,$DV$2&ROW($DV79)),$DU79,$DU$2&ROW($DU79)),$DT79,$DT$2&ROW($DT79)),$DS79,$DS$2&ROW($DS79)))","v":0},{"$f":"IF(Z79=\"\",0,\"X=\"&SUBSTITUTE(SUBSTITUTE(SUBSTITUTE(SUBSTITUTE(SUBSTITUTE(SUBSTITUTE(SUBSTITUTE(SUBSTITUTE(SUBSTITUTE(SUBSTITUTE(SUBSTITUTE(SUBSTITUTE(Z79,$ED79,$ED$2&ROW($ED79)),$EC79,$EC$2&ROW($EC79)),$EB79,$EB$2&ROW($EB79)),$EA79,$EA$2&ROW($EA79)),$DZ79,$DZ$2&ROW($DZ79)),$DY79,$DY$2&ROW($DY79)),$DX79,$DX$2&ROW($DX79)),$DW79,$DW$2&ROW($DW79)),$DV79,$DV$2&ROW($DV79)),$DU79,$DU$2&ROW($DU79)),$DT79,$DT$2&ROW($DT79)),$DS79,$DS$2&ROW($DS79)))","v":0},{"$f":"IF(AA79=\"\",0,\"X=\"&SUBSTITUTE(SUBSTITUTE(SUBSTITUTE(SUBSTITUTE(SUBSTITUTE(SUBSTITUTE(SUBSTITUTE(SUBSTITUTE(SUBSTITUTE(SUBSTITUTE(SUBSTITUTE(SUBSTITUTE(AA79,$ED79,$ED$2&ROW($ED79)),$EC79,$EC$2&ROW($EC79)),$EB79,$EB$2&ROW($EB79)),$EA79,$EA$2&ROW($EA79)),$DZ79,$DZ$2&ROW($DZ79)),$DY79,$DY$2&ROW($DY79)),$DX79,$DX$2&ROW($DX79)),$DW79,$DW$2&ROW($DW79)),$DV79,$DV$2&ROW($DV79)),$DU79,$DU$2&ROW($DU79)),$DT79,$DT$2&ROW($DT79)),$DS79,$DS$2&ROW($DS79)))","v":0},{"$f":"IF(AB79=\"\",0,\"X=\"&SUBSTITUTE(SUBSTITUTE(SUBSTITUTE(SUBSTITUTE(SUBSTITUTE(SUBSTITUTE(SUBSTITUTE(SUBSTITUTE(SUBSTITUTE(SUBSTITUTE(SUBSTITUTE(SUBSTITUTE(AB79,$ED79,$ED$2&ROW($ED79)),$EC79,$EC$2&ROW($EC79)),$EB79,$EB$2&ROW($EB79)),$EA79,$EA$2&ROW($EA79)),$DZ79,$DZ$2&ROW($DZ79)),$DY79,$DY$2&ROW($DY79)),$DX79,$DX$2&ROW($DX79)),$DW79,$DW$2&ROW($DW79)),$DV79,$DV$2&ROW($DV79)),$DU79,$DU$2&ROW($DU79)),$DT79,$DT$2&ROW($DT79)),$DS79,$DS$2&ROW($DS79)))","v":0},null,null,"{Factor:WinterCF}","{Factor:SummerCF}",{"$f":"IFERROR(INDEX($EG79:$IV79,MATCH(0,COUNTIF($DR79:DT79,$EG79:$IV79),0)),\"\")","v":"{Measure:Quantity}"},{"$f":"IFERROR(INDEX($EG79:$IV79,MATCH(0,COUNTIF($DR79:DU79,$EG79:$IV79),0)),\"\")","v":"{Motor HP}"},{"$f":"IFERROR(INDEX($EG79:$IV79,MATCH(0,COUNTIF($DR79:DV79,$EG79:$IV79),0)),\"\")","v":""},{"$f":"IFERROR(INDEX($EG79:$IV79,MATCH(0,COUNTIF($DR79:DW79,$EG79:$IV79),0)),\"\")","v":""},{"$f":"IFERROR(INDEX($EG79:$IV79,MATCH(0,COUNTIF($DR79:DX79,$EG79:$IV79),0)),\"\")","v":""},{"$f":"IFERROR(INDEX($EG79:$IV79,MATCH(0,COUNTIF($DR79:DY79,$EG79:$IV79),0)),\"\")","v":""},{"$f":"IFERROR(INDEX($EG79:$IV79,MATCH(0,COUNTIF($DR79:DZ79,$EG79:$IV79),0)),\"\")","v":""},{"$f":"IFERROR(INDEX($EG79:$IV79,MATCH(0,COUNTIF($DR79:EA79,$EG79:$IV79),0)),\"\")","v":""},{"$f":"IFERROR(INDEX($EG79:$IV79,MATCH(0,COUNTIF($DR79:EB79,$EG79:$IV79),0)),\"\")","v":""},{"$f":"IFERROR(INDEX($EG79:$IV79,MATCH(0,COUNTIF($DR79:EC79,$EG79:$IV79),0)),\"\")","v":""},null,null,{"$f":"IFERROR(MID($G79,FIND(CHAR(160),SUBSTITUTE($G79,\"{\",CHAR(160),EG$1)),FIND(CHAR(160),SUBSTITUTE($G79,\"}\",CHAR(160),EG$1))-FIND(CHAR(160),SUBSTITUTE($G79,\"{\",CHAR(160),EG$1))+1),\"\")","v":"{Measure:Quantity}"},{"$f":"IFERROR(MID($G79,FIND(CHAR(160),SUBSTITUTE($G79,\"{\",CHAR(160),EH$1)),FIND(CHAR(160),SUBSTITUTE($G79,\"}\",CHAR(160),EH$1))-FIND(CHAR(160),SUBSTITUTE($G79,\"{\",CHAR(160),EH$1))+1),\"\")","v":"{Motor HP}"},{"$f":"IFERROR(MID($G79,FIND(CHAR(160),SUBSTITUTE($G79,\"{\",CHAR(160),EI$1)),FIND(CHAR(160),SUBSTITUTE($G79,\"}\",CHAR(160),EI$1))-FIND(CHAR(160),SUBSTITUTE($G79,\"{\",CHAR(160),EI$1))+1),\"\")","v":"{Motor HP}"},{"$f":"IFERROR(MID($G79,FIND(CHAR(160),SUBSTITUTE($G79,\"{\",CHAR(160),EJ$1)),FIND(CHAR(160),SUBSTITUTE($G79,\"}\",CHAR(160),EJ$1))-FIND(CHAR(160),SUBSTITUTE($G79,\"{\",CHAR(160),EJ$1))+1),\"\")","v":"{Motor HP}"},{"$f":"IFERROR(MID($G79,FIND(CHAR(160),SUBSTITUTE($G79,\"{\",CHAR(160),EK$1)),FIND(CHAR(160),SUBSTITUTE($G79,\"}\",CHAR(160),EK$1))-FIND(CHAR(160),SUBSTITUTE($G79,\"{\",CHAR(160),EK$1))+1),\"\")","v":"{Motor HP}"},{"$f":"IFERROR(MID($G79,FIND(CHAR(160),SUBSTITUTE($G79,\"{\",CHAR(160),EL$1)),FIND(CHAR(160),SUBSTITUTE($G79,\"}\",CHAR(160),EL$1))-FIND(CHAR(160),SUBSTITUTE($G79,\"{\",CHAR(160),EL$1))+1),\"\")","v":"{Motor HP}"},{"$f":"IFERROR(MID($G79,FIND(CHAR(160),SUBSTITUTE($G79,\"{\",CHAR(160),EM$1)),FIND(CHAR(160),SUBSTITUTE($G79,\"}\",CHAR(160),EM$1))-FIND(CHAR(160),SUBSTITUTE($G79,\"{\",CHAR(160),EM$1))+1),\"\")","v":"{Motor HP}"},{"$f":"IFERROR(MID($G79,FIND(CHAR(160),SUBSTITUTE($G79,\"{\",CHAR(160),EN$1)),FIND(CHAR(160),SUBSTITUTE($G79,\"}\",CHAR(160),EN$1))-FIND(CHAR(160),SUBSTITUTE($G79,\"{\",CHAR(160),EN$1))+1),\"\")","v":"{Motor HP}"},{"$f":"IFERROR(MID($G79,FIND(CHAR(160),SUBSTITUTE($G79,\"{\",CHAR(160),EO$1)),FIND(CHAR(160),SUBSTITUTE($G79,\"}\",CHAR(160),EO$1))-FIND(CHAR(160),SUBSTITUTE($G79,\"{\",CHAR(160),EO$1))+1),\"\")","v":""},{"$f":"IFERROR(MID($G79,FIND(CHAR(160),SUBSTITUTE($G79,\"{\",CHAR(160),EP$1)),FIND(CHAR(160),SUBSTITUTE($G79,\"}\",CHAR(160),EP$1))-FIND(CHAR(160),SUBSTITUTE($G79,\"{\",CHAR(160),EP$1))+1),\"\")","v":""},{"$f":"IFERROR(MID($J79,FIND(CHAR(160),SUBSTITUTE($J79,\"{\",CHAR(160),EQ$1)),FIND(CHAR(160),SUBSTITUTE($J79,\"}\",CHAR(160),EQ$1))-FIND(CHAR(160),SUBSTITUTE($J79,\"{\",CHAR(160),EQ$1))+1),\"\")","v":"{Measure:Quantity}"},{"$f":"IFERROR(MID($J79,FIND(CHAR(160),SUBSTITUTE($J79,\"{\",CHAR(160),ER$1)),FIND(CHAR(160),SUBSTITUTE($J79,\"}\",CHAR(160),ER$1))-FIND(CHAR(160),SUBSTITUTE($J79,\"{\",CHAR(160),ER$1))+1),\"\")","v":"{Motor HP}"},{"$f":"IFERROR(MID($J79,FIND(CHAR(160),SUBSTITUTE($J79,\"{\",CHAR(160),ES$1)),FIND(CHAR(160),SUBSTITUTE($J79,\"}\",CHAR(160),ES$1))-FIND(CHAR(160),SUBSTITUTE($J79,\"{\",CHAR(160),ES$1))+1),\"\")","v":"{Motor HP}"},{"$f":"IFERROR(MID($J79,FIND(CHAR(160),SUBSTITUTE($J79,\"{\",CHAR(160),ET$1)),FIND(CHAR(160),SUBSTITUTE($J79,\"}\",CHAR(160),ET$1))-FIND(CHAR(160),SUBSTITUTE($J79,\"{\",CHAR(160),ET$1))+1),\"\")","v":"{Motor HP}"},{"$f":"IFERROR(MID($J79,FIND(CHAR(160),SUBSTITUTE($J79,\"{\",CHAR(160),EU$1)),FIND(CHAR(160),SUBSTITUTE($J79,\"}\",CHAR(160),EU$1))-FIND(CHAR(160),SUBSTITUTE($J79,\"{\",CHAR(160),EU$1))+1),\"\")","v":"{Motor HP}"},{"$f":"IFERROR(MID($J79,FIND(CHAR(160),SUBSTITUTE($J79,\"{\",CHAR(160),EV$1)),FIND(CHAR(160),SUBSTITUTE($J79,\"}\",CHAR(160),EV$1))-FIND(CHAR(160),SUBSTITUTE($J79,\"{\",CHAR(160),EV$1))+1),\"\")","v":"{Motor HP}"},{"$f":"IFERROR(MID($J79,FIND(CHAR(160),SUBSTITUTE($J79,\"{\",CHAR(160),EW$1)),FIND(CHAR(160),SUBSTITUTE($J79,\"}\",CHAR(160),EW$1))-FIND(CHAR(160),SUBSTITUTE($J79,\"{\",CHAR(160),EW$1))+1),\"\")","v":"{Motor HP}"},{"$f":"IFERROR(MID($J79,FIND(CHAR(160),SUBSTITUTE($J79,\"{\",CHAR(160),EX$1)),FIND(CHAR(160),SUBSTITUTE($J79,\"}\",CHAR(160),EX$1))-FIND(CHAR(160),SUBSTITUTE($J79,\"{\",CHAR(160),EX$1))+1),\"\")","v":"{Motor HP}"},{"$f":"IFERROR(MID($J79,FIND(CHAR(160),SUBSTITUTE($J79,\"{\",CHAR(160),EY$1)),FIND(CHAR(160),SUBSTITUTE($J79,\"}\",CHAR(160),EY$1))-FIND(CHAR(160),SUBSTITUTE($J79,\"{\",CHAR(160),EY$1))+1),\"\")","v":""},{"$f":"IFERROR(MID($J79,FIND(CHAR(160),SUBSTITUTE($J79,\"{\",CHAR(160),EZ$1)),FIND(CHAR(160),SUBSTITUTE($J79,\"}\",CHAR(160),EZ$1))-FIND(CHAR(160),SUBSTITUTE($J79,\"{\",CHAR(160),EZ$1))+1),\"\")","v":""},{"$f":"IFERROR(MID($J79,FIND(CHAR(160),SUBSTITUTE($J79,\"{\",CHAR(160),FA$1)),FIND(CHAR(160),SUBSTITUTE($J79,\"}\",CHAR(160),FA$1))-FIND(CHAR(160),SUBSTITUTE($J79,\"{\",CHAR(160),FA$1))+1),\"\")","v":"{Measure:Quantity}"},{"$f":"IFERROR(MID($J79,FIND(CHAR(160),SUBSTITUTE($J79,\"{\",CHAR(160),FB$1)),FIND(CHAR(160),SUBSTITUTE($J79,\"}\",CHAR(160),FB$1))-FIND(CHAR(160),SUBSTITUTE($J79,\"{\",CHAR(160),FB$1))+1),\"\")","v":"{Motor HP}"},{"$f":"IFERROR(MID($O79,FIND(CHAR(160),SUBSTITUTE($O79,\"{\",CHAR(160),FC$1)),FIND(CHAR(160),SUBSTITUTE($O79,\"}\",CHAR(160),FC$1))-FIND(CHAR(160),SUBSTITUTE($O79,\"{\",CHAR(160),FC$1))+1),\"\")","v":""},{"$f":"IFERROR(MID($O79,FIND(CHAR(160),SUBSTITUTE($O79,\"{\",CHAR(160),FD$1)),FIND(CHAR(160),SUBSTITUTE($O79,\"}\",CHAR(160),FD$1))-FIND(CHAR(160),SUBSTITUTE($O79,\"{\",CHAR(160),FD$1))+1),\"\")","v":""},{"$f":"IFERROR(MID($O79,FIND(CHAR(160),SUBSTITUTE($O79,\"{\",CHAR(160),FE$1)),FIND(CHAR(160),SUBSTITUTE($O79,\"}\",CHAR(160),FE$1))-FIND(CHAR(160),SUBSTITUTE($O79,\"{\",CHAR(160),FE$1))+1),\"\")","v":""},{"$f":"IFERROR(MID($O79,FIND(CHAR(160),SUBSTITUTE($O79,\"{\",CHAR(160),FF$1)),FIND(CHAR(160),SUBSTITUTE($O79,\"}\",CHAR(160),FF$1))-FIND(CHAR(160),SUBSTITUTE($O79,\"{\",CHAR(160),FF$1))+1),\"\")","v":""},{"$f":"IFERROR(MID($O79,FIND(CHAR(160),SUBSTITUTE($O79,\"{\",CHAR(160),FG$1)),FIND(CHAR(160),SUBSTITUTE($O79,\"}\",CHAR(160),FG$1))-FIND(CHAR(160),SUBSTITUTE($O79,\"{\",CHAR(160),FG$1))+1),\"\")","v":""},{"$f":"IFERROR(MID($O79,FIND(CHAR(160),SUBSTITUTE($O79,\"{\",CHAR(160),FH$1)),FIND(CHAR(160),SUBSTITUTE($O79,\"}\",CHAR(160),FH$1))-FIND(CHAR(160),SUBSTITUTE($O79,\"{\",CHAR(160),FH$1))+1),\"\")","v":""},{"$f":"IFERROR(MID($O79,FIND(CHAR(160),SUBSTITUTE($O79,\"{\",CHAR(160),FI$1)),FIND(CHAR(160),SUBSTITUTE($O79,\"}\",CHAR(160),FI$1))-FIND(CHAR(160),SUBSTITUTE($O79,\"{\",CHAR(160),FI$1))+1),\"\")","v":""},{"$f":"IFERROR(MID($O79,FIND(CHAR(160),SUBSTITUTE($O79,\"{\",CHAR(160),FJ$1)),FIND(CHAR(160),SUBSTITUTE($O79,\"}\",CHAR(160),FJ$1))-FIND(CHAR(160),SUBSTITUTE($O79,\"{\",CHAR(160),FJ$1))+1),\"\")","v":""},{"$f":"IFERROR(MID($O79,FIND(CHAR(160),SUBSTITUTE($O79,\"{\",CHAR(160),FK$1)),FIND(CHAR(160),SUBSTITUTE($O79,\"}\",CHAR(160),FK$1))-FIND(CHAR(160),SUBSTITUTE($O79,\"{\",CHAR(160),FK$1))+1),\"\")","v":"{Measure:Quantity}"},{"$f":"IFERROR(MID($O79,FIND(CHAR(160),SUBSTITUTE($O79,\"{\",CHAR(160),FL$1)),FIND(CHAR(160),SUBSTITUTE($O79,\"}\",CHAR(160),FL$1))-FIND(CHAR(160),SUBSTITUTE($O79,\"{\",CHAR(160),FL$1))+1),\"\")","v":"{Motor HP}"},{"$f":"IFERROR(MID($R79,FIND(CHAR(160),SUBSTITUTE($R79,\"{\",CHAR(160),FM$1)),FIND(CHAR(160),SUBSTITUTE($R79,\"}\",CHAR(160),FM$1))-FIND(CHAR(160),SUBSTITUTE($R79,\"{\",CHAR(160),FM$1))+1),\"\")","v":""},{"$f":"IFERROR(MID($R79,FIND(CHAR(160),SUBSTITUTE($R79,\"{\",CHAR(160),FN$1)),FIND(CHAR(160),SUBSTITUTE($R79,\"}\",CHAR(160),FN$1))-FIND(CHAR(160),SUBSTITUTE($R79,\"{\",CHAR(160),FN$1))+1),\"\")","v":""},{"$f":"IFERROR(MID($R79,FIND(CHAR(160),SUBSTITUTE($R79,\"{\",CHAR(160),FO$1)),FIND(CHAR(160),SUBSTITUTE($R79,\"}\",CHAR(160),FO$1))-FIND(CHAR(160),SUBSTITUTE($R79,\"{\",CHAR(160),FO$1))+1),\"\")","v":""},{"$f":"IFERROR(MID($R79,FIND(CHAR(160),SUBSTITUTE($R79,\"{\",CHAR(160),FP$1)),FIND(CHAR(160),SUBSTITUTE($R79,\"}\",CHAR(160),FP$1))-FIND(CHAR(160),SUBSTITUTE($R79,\"{\",CHAR(160),FP$1))+1),\"\")","v":""},{"$f":"IFERROR(MID($R79,FIND(CHAR(160),SUBSTITUTE($R79,\"{\",CHAR(160),FQ$1)),FIND(CHAR(160),SUBSTITUTE($R79,\"}\",CHAR(160),FQ$1))-FIND(CHAR(160),SUBSTITUTE($R79,\"{\",CHAR(160),FQ$1))+1),\"\")","v":""},{"$f":"IFERROR(MID($R79,FIND(CHAR(160),SUBSTITUTE($R79,\"{\",CHAR(160),FR$1)),FIND(CHAR(160),SUBSTITUTE($R79,\"}\",CHAR(160),FR$1))-FIND(CHAR(160),SUBSTITUTE($R79,\"{\",CHAR(160),FR$1))+1),\"\")","v":""},{"$f":"IFERROR(MID($R79,FIND(CHAR(160),SUBSTITUTE($R79,\"{\",CHAR(160),FS$1)),FIND(CHAR(160),SUBSTITUTE($R79,\"}\",CHAR(160),FS$1))-FIND(CHAR(160),SUBSTITUTE($R79,\"{\",CHAR(160),FS$1))+1),\"\")","v":""},{"$f":"IFERROR(MID($R79,FIND(CHAR(160),SUBSTITUTE($R79,\"{\",CHAR(160),FT$1)),FIND(CHAR(160),SUBSTITUTE($R79,\"}\",CHAR(160),FT$1))-FIND(CHAR(160),SUBSTITUTE($R79,\"{\",CHAR(160),FT$1))+1),\"\")","v":""},{"$f":"IFERROR(MID($R79,FIND(CHAR(160),SUBSTITUTE($R79,\"{\",CHAR(160),FU$1)),FIND(CHAR(160),SUBSTITUTE($R79,\"}\",CHAR(160),FU$1))-FIND(CHAR(160),SUBSTITUTE($R79,\"{\",CHAR(160),FU$1))+1),\"\")","v":"{Measure:Quantity}"},{"$f":"IFERROR(MID($R79,FIND(CHAR(160),SUBSTITUTE($R79,\"{\",CHAR(160),FV$1)),FIND(CHAR(160),SUBSTITUTE($R79,\"}\",CHAR(160),FV$1))-FIND(CHAR(160),SUBSTITUTE($R79,\"{\",CHAR(160),FV$1))+1),\"\")","v":"{Motor HP}"},{"$f":"IFERROR(MID($U79,FIND(CHAR(160),SUBSTITUTE($U79,\"{\",CHAR(160),FW$1)),FIND(CHAR(160),SUBSTITUTE($U79,\"}\",CHAR(160),FW$1))-FIND(CHAR(160),SUBSTITUTE($U79,\"{\",CHAR(160),FW$1))+1),\"\")","v":"{Motor HP}"},{"$f":"IFERROR(MID($U79,FIND(CHAR(160),SUBSTITUTE($U79,\"{\",CHAR(160),FX$1)),FIND(CHAR(160),SUBSTITUTE($U79,\"}\",CHAR(160),FX$1))-FIND(CHAR(160),SUBSTITUTE($U79,\"{\",CHAR(160),FX$1))+1),\"\")","v":""},{"$f":"IFERROR(MID($U79,FIND(CHAR(160),SUBSTITUTE($U79,\"{\",CHAR(160),FY$1)),FIND(CHAR(160),SUBSTITUTE($U79,\"}\",CHAR(160),FY$1))-FIND(CHAR(160),SUBSTITUTE($U79,\"{\",CHAR(160),FY$1))+1),\"\")","v":""},{"$f":"IFERROR(MID($U79,FIND(CHAR(160),SUBSTITUTE($U79,\"{\",CHAR(160),FZ$1)),FIND(CHAR(160),SUBSTITUTE($U79,\"}\",CHAR(160),FZ$1))-FIND(CHAR(160),SUBSTITUTE($U79,\"{\",CHAR(160),FZ$1))+1),\"\")","v":""},{"$f":"IFERROR(MID($U79,FIND(CHAR(160),SUBSTITUTE($U79,\"{\",CHAR(160),GA$1)),FIND(CHAR(160),SUBSTITUTE($U79,\"}\",CHAR(160),GA$1))-FIND(CHAR(160),SUBSTITUTE($U79,\"{\",CHAR(160),GA$1))+1),\"\")","v":""},{"$f":"IFERROR(MID($U79,FIND(CHAR(160),SUBSTITUTE($U79,\"{\",CHAR(160),GB$1)),FIND(CHAR(160),SUBSTITUTE($U79,\"}\",CHAR(160),GB$1))-FIND(CHAR(160),SUBSTITUTE($U79,\"{\",CHAR(160),GB$1))+1),\"\")","v":""},{"$f":"IFERROR(MID($U79,FIND(CHAR(160),SUBSTITUTE($U79,\"{\",CHAR(160),GC$1)),FIND(CHAR(160),SUBSTITUTE($U79,\"}\",CHAR(160),GC$1))-FIND(CHAR(160),SUBSTITUTE($U79,\"{\",CHAR(160),GC$1))+1),\"\")","v":""},{"$f":"IFERROR(MID($U79,FIND(CHAR(160),SUBSTITUTE($U79,\"{\",CHAR(160),GD$1)),FIND(CHAR(160),SUBSTITUTE($U79,\"}\",CHAR(160),GD$1))-FIND(CHAR(160),SUBSTITUTE($U79,\"{\",CHAR(160),GD$1))+1),\"\")","v":""},{"$f":"IFERROR(MID($U79,FIND(CHAR(160),SUBSTITUTE($U79,\"{\",CHAR(160),GE$1)),FIND(CHAR(160),SUBSTITUTE($U79,\"}\",CHAR(160),GE$1))-FIND(CHAR(160),SUBSTITUTE($U79,\"{\",CHAR(160),GE$1))+1),\"\")","v":"{Measure:Quantity}"},{"$f":"IFERROR(MID($U79,FIND(CHAR(160),SUBSTITUTE($U79,\"{\",CHAR(160),GF$1)),FIND(CHAR(160),SUBSTITUTE($U79,\"}\",CHAR(160),GF$1))-FIND(CHAR(160),SUBSTITUTE($U79,\"{\",CHAR(160),GF$1))+1),\"\")","v":"{Factor:WinterCF}"},{"$f":"IFERROR(MID($V79,FIND(CHAR(160),SUBSTITUTE($V79,\"{\",CHAR(160),GG$1)),FIND(CHAR(160),SUBSTITUTE($V79,\"}\",CHAR(160),GG$1))-FIND(CHAR(160),SUBSTITUTE($V79,\"{\",CHAR(160),GG$1))+1),\"\")","v":"{Motor HP}"},{"$f":"IFERROR(MID($V79,FIND(CHAR(160),SUBSTITUTE($V79,\"{\",CHAR(160),GH$1)),FIND(CHAR(160),SUBSTITUTE($V79,\"}\",CHAR(160),GH$1))-FIND(CHAR(160),SUBSTITUTE($V79,\"{\",CHAR(160),GH$1))+1),\"\")","v":""},{"$f":"IFERROR(MID($V79,FIND(CHAR(160),SUBSTITUTE($V79,\"{\",CHAR(160),GI$1)),FIND(CHAR(160),SUBSTITUTE($V79,\"}\",CHAR(160),GI$1))-FIND(CHAR(160),SUBSTITUTE($V79,\"{\",CHAR(160),GI$1))+1),\"\")","v":""},{"$f":"IFERROR(MID($V79,FIND(CHAR(160),SUBSTITUTE($V79,\"{\",CHAR(160),GJ$1)),FIND(CHAR(160),SUBSTITUTE($V79,\"}\",CHAR(160),GJ$1))-FIND(CHAR(160),SUBSTITUTE($V79,\"{\",CHAR(160),GJ$1))+1),\"\")","v":""},{"$f":"IFERROR(MID($V79,FIND(CHAR(160),SUBSTITUTE($V79,\"{\",CHAR(160),GK$1)),FIND(CHAR(160),SUBSTITUTE($V79,\"}\",CHAR(160),GK$1))-FIND(CHAR(160),SUBSTITUTE($V79,\"{\",CHAR(160),GK$1))+1),\"\")","v":""},{"$f":"IFERROR(MID($V79,FIND(CHAR(160),SUBSTITUTE($V79,\"{\",CHAR(160),GL$1)),FIND(CHAR(160),SUBSTITUTE($V79,\"}\",CHAR(160),GL$1))-FIND(CHAR(160),SUBSTITUTE($V79,\"{\",CHAR(160),GL$1))+1),\"\")","v":""},{"$f":"IFERROR(MID($V79,FIND(CHAR(160),SUBSTITUTE($V79,\"{\",CHAR(160),GM$1)),FIND(CHAR(160),SUBSTITUTE($V79,\"}\",CHAR(160),GM$1))-FIND(CHAR(160),SUBSTITUTE($V79,\"{\",CHAR(160),GM$1))+1),\"\")","v":""},{"$f":"IFERROR(MID($V79,FIND(CHAR(160),SUBSTITUTE($V79,\"{\",CHAR(160),GN$1)),FIND(CHAR(160),SUBSTITUTE($V79,\"}\",CHAR(160),GN$1))-FIND(CHAR(160),SUBSTITUTE($V79,\"{\",CHAR(160),GN$1))+1),\"\")","v":""},{"$f":"IFERROR(MID($V79,FIND(CHAR(160),SUBSTITUTE($V79,\"{\",CHAR(160),GO$1)),FIND(CHAR(160),SUBSTITUTE($V79,\"}\",CHAR(160),GO$1))-FIND(CHAR(160),SUBSTITUTE($V79,\"{\",CHAR(160),GO$1))+1),\"\")","v":"{Measure:Quantity}"},{"$f":"IFERROR(MID($V79,FIND(CHAR(160),SUBSTITUTE($V79,\"{\",CHAR(160),GP$1)),FIND(CHAR(160),SUBSTITUTE($V79,\"}\",CHAR(160),GP$1))-FIND(CHAR(160),SUBSTITUTE($V79,\"{\",CHAR(160),GP$1))+1),\"\")","v":"{Factor:SummerCF}"},{"$f":"IFERROR(MID($W79,FIND(CHAR(160),SUBSTITUTE($W79,\"{\",CHAR(160),GQ$1)),FIND(CHAR(160),SUBSTITUTE($W79,\"}\",CHAR(160),GQ$1))-FIND(CHAR(160),SUBSTITUTE($W79,\"{\",CHAR(160),GQ$1))+1),\"\")","v":""},{"$f":"IFERROR(MID($W79,FIND(CHAR(160),SUBSTITUTE($W79,\"{\",CHAR(160),GR$1)),FIND(CHAR(160),SUBSTITUTE($W79,\"}\",CHAR(160),GR$1))-FIND(CHAR(160),SUBSTITUTE($W79,\"{\",CHAR(160),GR$1))+1),\"\")","v":""},{"$f":"IFERROR(MID($W79,FIND(CHAR(160),SUBSTITUTE($W79,\"{\",CHAR(160),GS$1)),FIND(CHAR(160),SUBSTITUTE($W79,\"}\",CHAR(160),GS$1))-FIND(CHAR(160),SUBSTITUTE($W79,\"{\",CHAR(160),GS$1))+1),\"\")","v":""},{"$f":"IFERROR(MID($W79,FIND(CHAR(160),SUBSTITUTE($W79,\"{\",CHAR(160),GT$1)),FIND(CHAR(160),SUBSTITUTE($W79,\"}\",CHAR(160),GT$1))-FIND(CHAR(160),SUBSTITUTE($W79,\"{\",CHAR(160),GT$1))+1),\"\")","v":""},{"$f":"IFERROR(MID($W79,FIND(CHAR(160),SUBSTITUTE($W79,\"{\",CHAR(160),GU$1)),FIND(CHAR(160),SUBSTITUTE($W79,\"}\",CHAR(160),GU$1))-FIND(CHAR(160),SUBSTITUTE($W79,\"{\",CHAR(160),GU$1))+1),\"\")","v":""},{"$f":"IFERROR(MID($W79,FIND(CHAR(160),SUBSTITUTE($W79,\"{\",CHAR(160),GV$1)),FIND(CHAR(160),SUBSTITUTE($W79,\"}\",CHAR(160),GV$1))-FIND(CHAR(160),SUBSTITUTE($W79,\"{\",CHAR(160),GV$1))+1),\"\")","v":""},{"$f":"IFERROR(MID($W79,FIND(CHAR(160),SUBSTITUTE($W79,\"{\",CHAR(160),GW$1)),FIND(CHAR(160),SUBSTITUTE($W79,\"}\",CHAR(160),GW$1))-FIND(CHAR(160),SUBSTITUTE($W79,\"{\",CHAR(160),GW$1))+1),\"\")","v":""},{"$f":"IFERROR(MID($W79,FIND(CHAR(160),SUBSTITUTE($W79,\"{\",CHAR(160),GX$1)),FIND(CHAR(160),SUBSTITUTE($W79,\"}\",CHAR(160),GX$1))-FIND(CHAR(160),SUBSTITUTE($W79,\"{\",CHAR(160),GX$1))+1),\"\")","v":""},{"$f":"IFERROR(MID($W79,FIND(CHAR(160),SUBSTITUTE($W79,\"{\",CHAR(160),GY$1)),FIND(CHAR(160),SUBSTITUTE($W79,\"}\",CHAR(160),GY$1))-FIND(CHAR(160),SUBSTITUTE($W79,\"{\",CHAR(160),GY$1))+1),\"\")","v":""},{"$f":"IFERROR(MID($W79,FIND(CHAR(160),SUBSTITUTE($W79,\"{\",CHAR(160),GZ$1)),FIND(CHAR(160),SUBSTITUTE($W79,\"}\",CHAR(160),GZ$1))-FIND(CHAR(160),SUBSTITUTE($W79,\"{\",CHAR(160),GZ$1))+1),\"\")","v":""},{"$f":"IFERROR(MID($X79,FIND(CHAR(160),SUBSTITUTE($X79,\"{\",CHAR(160),HA$1)),FIND(CHAR(160),SUBSTITUTE($X79,\"}\",CHAR(160),HA$1))-FIND(CHAR(160),SUBSTITUTE($X79,\"{\",CHAR(160),HA$1))+1),\"\")","v":""},{"$f":"IFERROR(MID($X79,FIND(CHAR(160),SUBSTITUTE($X79,\"{\",CHAR(160),HB$1)),FIND(CHAR(160),SUBSTITUTE($X79,\"}\",CHAR(160),HB$1))-FIND(CHAR(160),SUBSTITUTE($X79,\"{\",CHAR(160),HB$1))+1),\"\")","v":""},{"$f":"IFERROR(MID($X79,FIND(CHAR(160),SUBSTITUTE($X79,\"{\",CHAR(160),HC$1)),FIND(CHAR(160),SUBSTITUTE($X79,\"}\",CHAR(160),HC$1))-FIND(CHAR(160),SUBSTITUTE($X79,\"{\",CHAR(160),HC$1))+1),\"\")","v":""},{"$f":"IFERROR(MID($X79,FIND(CHAR(160),SUBSTITUTE($X79,\"{\",CHAR(160),HD$1)),FIND(CHAR(160),SUBSTITUTE($X79,\"}\",CHAR(160),HD$1))-FIND(CHAR(160),SUBSTITUTE($X79,\"{\",CHAR(160),HD$1))+1),\"\")","v":""},{"$f":"IFERROR(MID($X79,FIND(CHAR(160),SUBSTITUTE($X79,\"{\",CHAR(160),HE$1)),FIND(CHAR(160),SUBSTITUTE($X79,\"}\",CHAR(160),HE$1))-FIND(CHAR(160),SUBSTITUTE($X79,\"{\",CHAR(160),HE$1))+1),\"\")","v":""},{"$f":"IFERROR(MID($X79,FIND(CHAR(160),SUBSTITUTE($X79,\"{\",CHAR(160),HF$1)),FIND(CHAR(160),SUBSTITUTE($X79,\"}\",CHAR(160),HF$1))-FIND(CHAR(160),SUBSTITUTE($X79,\"{\",CHAR(160),HF$1))+1),\"\")","v":""},{"$f":"IFERROR(MID($X79,FIND(CHAR(160),SUBSTITUTE($X79,\"{\",CHAR(160),HG$1)),FIND(CHAR(160),SUBSTITUTE($X79,\"}\",CHAR(160),HG$1))-FIND(CHAR(160),SUBSTITUTE($X79,\"{\",CHAR(160),HG$1))+1),\"\")","v":""},{"$f":"IFERROR(MID($X79,FIND(CHAR(160),SUBSTITUTE($X79,\"{\",CHAR(160),HH$1)),FIND(CHAR(160),SUBSTITUTE($X79,\"}\",CHAR(160),HH$1))-FIND(CHAR(160),SUBSTITUTE($X79,\"{\",CHAR(160),HH$1))+1),\"\")","v":""},{"$f":"IFERROR(MID($X79,FIND(CHAR(160),SUBSTITUTE($X79,\"{\",CHAR(160),HI$1)),FIND(CHAR(160),SUBSTITUTE($X79,\"}\",CHAR(160),HI$1))-FIND(CHAR(160),SUBSTITUTE($X79,\"{\",CHAR(160),HI$1))+1),\"\")","v":""},{"$f":"IFERROR(MID($X79,FIND(CHAR(160),SUBSTITUTE($X79,\"{\",CHAR(160),HJ$1)),FIND(CHAR(160),SUBSTITUTE($X79,\"}\",CHAR(160),HJ$1))-FIND(CHAR(160),SUBSTITUTE($X79,\"{\",CHAR(160),HJ$1))+1),\"\")","v":""},{"$f":"IFERROR(MID($Y79,FIND(CHAR(160),SUBSTITUTE($Y79,\"{\",CHAR(160),HK$1)),FIND(CHAR(160),SUBSTITUTE($Y79,\"}\",CHAR(160),HK$1))-FIND(CHAR(160),SUBSTITUTE($Y79,\"{\",CHAR(160),HK$1))+1),\"\")","v":""},{"$f":"IFERROR(MID($Y79,FIND(CHAR(160),SUBSTITUTE($Y79,\"{\",CHAR(160),HL$1)),FIND(CHAR(160),SUBSTITUTE($Y79,\"}\",CHAR(160),HL$1))-FIND(CHAR(160),SUBSTITUTE($Y79,\"{\",CHAR(160),HL$1))+1),\"\")","v":""},{"$f":"IFERROR(MID($Y79,FIND(CHAR(160),SUBSTITUTE($Y79,\"{\",CHAR(160),HM$1)),FIND(CHAR(160),SUBSTITUTE($Y79,\"}\",CHAR(160),HM$1))-FIND(CHAR(160),SUBSTITUTE($Y79,\"{\",CHAR(160),HM$1))+1),\"\")","v":""},{"$f":"IFERROR(MID($Y79,FIND(CHAR(160),SUBSTITUTE($Y79,\"{\",CHAR(160),HN$1)),FIND(CHAR(160),SUBSTITUTE($Y79,\"}\",CHAR(160),HN$1))-FIND(CHAR(160),SUBSTITUTE($Y79,\"{\",CHAR(160),HN$1))+1),\"\")","v":""},{"$f":"IFERROR(MID($Y79,FIND(CHAR(160),SUBSTITUTE($Y79,\"{\",CHAR(160),HO$1)),FIND(CHAR(160),SUBSTITUTE($Y79,\"}\",CHAR(160),HO$1))-FIND(CHAR(160),SUBSTITUTE($Y79,\"{\",CHAR(160),HO$1))+1),\"\")","v":""},{"$f":"IFERROR(MID($Y79,FIND(CHAR(160),SUBSTITUTE($Y79,\"{\",CHAR(160),HP$1)),FIND(CHAR(160),SUBSTITUTE($Y79,\"}\",CHAR(160),HP$1))-FIND(CHAR(160),SUBSTITUTE($Y79,\"{\",CHAR(160),HP$1))+1),\"\")","v":""},{"$f":"IFERROR(MID($Y79,FIND(CHAR(160),SUBSTITUTE($Y79,\"{\",CHAR(160),HQ$1)),FIND(CHAR(160),SUBSTITUTE($Y79,\"}\",CHAR(160),HQ$1))-FIND(CHAR(160),SUBSTITUTE($Y79,\"{\",CHAR(160),HQ$1))+1),\"\")","v":""},{"$f":"IFERROR(MID($Y79,FIND(CHAR(160),SUBSTITUTE($Y79,\"{\",CHAR(160),HR$1)),FIND(CHAR(160),SUBSTITUTE($Y79,\"}\",CHAR(160),HR$1))-FIND(CHAR(160),SUBSTITUTE($Y79,\"{\",CHAR(160),HR$1))+1),\"\")","v":""},{"$f":"IFERROR(MID($Y79,FIND(CHAR(160),SUBSTITUTE($Y79,\"{\",CHAR(160),HS$1)),FIND(CHAR(160),SUBSTITUTE($Y79,\"}\",CHAR(160),HS$1))-FIND(CHAR(160),SUBSTITUTE($Y79,\"{\",CHAR(160),HS$1))+1),\"\")","v":""},{"$f":"IFERROR(MID($Y79,FIND(CHAR(160),SUBSTITUTE($Y79,\"{\",CHAR(160),HT$1)),FIND(CHAR(160),SUBSTITUTE($Y79,\"}\",CHAR(160),HT$1))-FIND(CHAR(160),SUBSTITUTE($Y79,\"{\",CHAR(160),HT$1))+1),\"\")","v":""},{"$f":"IFERROR(MID($Z79,FIND(CHAR(160),SUBSTITUTE($Z79,\"{\",CHAR(160),HU$1)),FIND(CHAR(160),SUBSTITUTE($Z79,\"}\",CHAR(160),HU$1))-FIND(CHAR(160),SUBSTITUTE($Z79,\"{\",CHAR(160),HU$1))+1),\"\")","v":""},{"$f":"IFERROR(MID($Z79,FIND(CHAR(160),SUBSTITUTE($Z79,\"{\",CHAR(160),HV$1)),FIND(CHAR(160),SUBSTITUTE($Z79,\"}\",CHAR(160),HV$1))-FIND(CHAR(160),SUBSTITUTE($Z79,\"{\",CHAR(160),HV$1))+1),\"\")","v":""},{"$f":"IFERROR(MID($Z79,FIND(CHAR(160),SUBSTITUTE($Z79,\"{\",CHAR(160),HW$1)),FIND(CHAR(160),SUBSTITUTE($Z79,\"}\",CHAR(160),HW$1))-FIND(CHAR(160),SUBSTITUTE($Z79,\"{\",CHAR(160),HW$1))+1),\"\")","v":""},{"$f":"IFERROR(MID($Z79,FIND(CHAR(160),SUBSTITUTE($Z79,\"{\",CHAR(160),HX$1)),FIND(CHAR(160),SUBSTITUTE($Z79,\"}\",CHAR(160),HX$1))-FIND(CHAR(160),SUBSTITUTE($Z79,\"{\",CHAR(160),HX$1))+1),\"\")","v":""},{"$f":"IFERROR(MID($Z79,FIND(CHAR(160),SUBSTITUTE($Z79,\"{\",CHAR(160),HY$1)),FIND(CHAR(160),SUBSTITUTE($Z79,\"}\",CHAR(160),HY$1))-FIND(CHAR(160),SUBSTITUTE($Z79,\"{\",CHAR(160),HY$1))+1),\"\")","v":""},{"$f":"IFERROR(MID($Z79,FIND(CHAR(160),SUBSTITUTE($Z79,\"{\",CHAR(160),HZ$1)),FIND(CHAR(160),SUBSTITUTE($Z79,\"}\",CHAR(160),HZ$1))-FIND(CHAR(160),SUBSTITUTE($Z79,\"{\",CHAR(160),HZ$1))+1),\"\")","v":""},{"$f":"IFERROR(MID($Z79,FIND(CHAR(160),SUBSTITUTE($Z79,\"{\",CHAR(160),IA$1)),FIND(CHAR(160),SUBSTITUTE($Z79,\"}\",CHAR(160),IA$1))-FIND(CHAR(160),SUBSTITUTE($Z79,\"{\",CHAR(160),IA$1))+1),\"\")","v":""},{"$f":"IFERROR(MID($Z79,FIND(CHAR(160),SUBSTITUTE($Z79,\"{\",CHAR(160),IB$1)),FIND(CHAR(160),SUBSTITUTE($Z79,\"}\",CHAR(160),IB$1))-FIND(CHAR(160),SUBSTITUTE($Z79,\"{\",CHAR(160),IB$1))+1),\"\")","v":""},{"$f":"IFERROR(MID($Z79,FIND(CHAR(160),SUBSTITUTE($Z79,\"{\",CHAR(160),IC$1)),FIND(CHAR(160),SUBSTITUTE($Z79,\"}\",CHAR(160),IC$1))-FIND(CHAR(160),SUBSTITUTE($Z79,\"{\",CHAR(160),IC$1))+1),\"\")","v":""},{"$f":"IFERROR(MID($Z79,FIND(CHAR(160),SUBSTITUTE($Z79,\"{\",CHAR(160),ID$1)),FIND(CHAR(160),SUBSTITUTE($Z79,\"}\",CHAR(160),ID$1))-FIND(CHAR(160),SUBSTITUTE($Z79,\"{\",CHAR(160),ID$1))+1),\"\")","v":""},{"$f":"IFERROR(MID($AA79,FIND(CHAR(160),SUBSTITUTE($AA79,\"{\",CHAR(160),IE$1)),FIND(CHAR(160),SUBSTITUTE($AA79,\"}\",CHAR(160),IE$1))-FIND(CHAR(160),SUBSTITUTE($AA79,\"{\",CHAR(160),IE$1))+1),\"\")","v":""},{"$f":"IFERROR(MID($AA79,FIND(CHAR(160),SUBSTITUTE($AA79,\"{\",CHAR(160),IF$1)),FIND(CHAR(160),SUBSTITUTE($AA79,\"}\",CHAR(160),IF$1))-FIND(CHAR(160),SUBSTITUTE($AA79,\"{\",CHAR(160),IF$1))+1),\"\")","v":""},{"$f":"IFERROR(MID($AA79,FIND(CHAR(160),SUBSTITUTE($AA79,\"{\",CHAR(160),IG$1)),FIND(CHAR(160),SUBSTITUTE($AA79,\"}\",CHAR(160),IG$1))-FIND(CHAR(160),SUBSTITUTE($AA79,\"{\",CHAR(160),IG$1))+1),\"\")","v":""},{"$f":"IFERROR(MID($AA79,FIND(CHAR(160),SUBSTITUTE($AA79,\"{\",CHAR(160),IH$1)),FIND(CHAR(160),SUBSTITUTE($AA79,\"}\",CHAR(160),IH$1))-FIND(CHAR(160),SUBSTITUTE($AA79,\"{\",CHAR(160),IH$1))+1),\"\")","v":""},{"$f":"IFERROR(MID($AA79,FIND(CHAR(160),SUBSTITUTE($AA79,\"{\",CHAR(160),II$1)),FIND(CHAR(160),SUBSTITUTE($AA79,\"}\",CHAR(160),II$1))-FIND(CHAR(160),SUBSTITUTE($AA79,\"{\",CHAR(160),II$1))+1),\"\")","v":""},{"$f":"IFERROR(MID($AA79,FIND(CHAR(160),SUBSTITUTE($AA79,\"{\",CHAR(160),IJ$1)),FIND(CHAR(160),SUBSTITUTE($AA79,\"}\",CHAR(160),IJ$1))-FIND(CHAR(160),SUBSTITUTE($AA79,\"{\",CHAR(160),IJ$1))+1),\"\")","v":""},{"$f":"IFERROR(MID($AA79,FIND(CHAR(160),SUBSTITUTE($AA79,\"{\",CHAR(160),IK$1)),FIND(CHAR(160),SUBSTITUTE($AA79,\"}\",CHAR(160),IK$1))-FIND(CHAR(160),SUBSTITUTE($AA79,\"{\",CHAR(160),IK$1))+1),\"\")","v":""},{"$f":"IFERROR(MID($AA79,FIND(CHAR(160),SUBSTITUTE($AA79,\"{\",CHAR(160),IL$1)),FIND(CHAR(160),SUBSTITUTE($AA79,\"}\",CHAR(160),IL$1))-FIND(CHAR(160),SUBSTITUTE($AA79,\"{\",CHAR(160),IL$1))+1),\"\")","v":""},{"$f":"IFERROR(MID($AA79,FIND(CHAR(160),SUBSTITUTE($AA79,\"{\",CHAR(160),IM$1)),FIND(CHAR(160),SUBSTITUTE($AA79,\"}\",CHAR(160),IM$1))-FIND(CHAR(160),SUBSTITUTE($AA79,\"{\",CHAR(160),IM$1))+1),\"\")","v":""},{"$f":"IFERROR(MID($AA79,FIND(CHAR(160),SUBSTITUTE($AA79,\"{\",CHAR(160),IN$1)),FIND(CHAR(160),SUBSTITUTE($AA79,\"}\",CHAR(160),IN$1))-FIND(CHAR(160),SUBSTITUTE($AA79,\"{\",CHAR(160),IN$1))+1),\"\")","v":""},{"$f":"IFERROR(MID($AB79,FIND(CHAR(160),SUBSTITUTE($AB79,\"{\",CHAR(160),IO$1)),FIND(CHAR(160),SUBSTITUTE($AB79,\"}\",CHAR(160),IO$1))-FIND(CHAR(160),SUBSTITUTE($AB79,\"{\",CHAR(160),IO$1))+1),\"\")","v":""},{"$f":"IFERROR(MID($AB79,FIND(CHAR(160),SUBSTITUTE($AB79,\"{\",CHAR(160),IP$1)),FIND(CHAR(160),SUBSTITUTE($AB79,\"}\",CHAR(160),IP$1))-FIND(CHAR(160),SUBSTITUTE($AB79,\"{\",CHAR(160),IP$1))+1),\"\")","v":""},{"$f":"IFERROR(MID($AB79,FIND(CHAR(160),SUBSTITUTE($AB79,\"{\",CHAR(160),IQ$1)),FIND(CHAR(160),SUBSTITUTE($AB79,\"}\",CHAR(160),IQ$1))-FIND(CHAR(160),SUBSTITUTE($AB79,\"{\",CHAR(160),IQ$1))+1),\"\")","v":""},{"$f":"IFERROR(MID($AB79,FIND(CHAR(160),SUBSTITUTE($AB79,\"{\",CHAR(160),IR$1)),FIND(CHAR(160),SUBSTITUTE($AB79,\"}\",CHAR(160),IR$1))-FIND(CHAR(160),SUBSTITUTE($AB79,\"{\",CHAR(160),IR$1))+1),\"\")","v":""},{"$f":"IFERROR(MID($AB79,FIND(CHAR(160),SUBSTITUTE($AB79,\"{\",CHAR(160),IS$1)),FIND(CHAR(160),SUBSTITUTE($AB79,\"}\",CHAR(160),IS$1))-FIND(CHAR(160),SUBSTITUTE($AB79,\"{\",CHAR(160),IS$1))+1),\"\")","v":""},{"$f":"IFERROR(MID($AB79,FIND(CHAR(160),SUBSTITUTE($AB79,\"{\",CHAR(160),IT$1)),FIND(CHAR(160),SUBSTITUTE($AB79,\"}\",CHAR(160),IT$1))-FIND(CHAR(160),SUBSTITUTE($AB79,\"{\",CHAR(160),IT$1))+1),\"\")","v":""},{"$f":"IFERROR(MID($AB79,FIND(CHAR(160),SUBSTITUTE($AB79,\"{\",CHAR(160),IU$1)),FIND(CHAR(160),SUBSTITUTE($AB79,\"}\",CHAR(160),IU$1))-FIND(CHAR(160),SUBSTITUTE($AB79,\"{\",CHAR(160),IU$1))+1),\"\")","v":""},{"$f":"IFERROR(MID($AB79,FIND(CHAR(160),SUBSTITUTE($AB79,\"{\",CHAR(160),IV$1)),FIND(CHAR(160),SUBSTITUTE($AB79,\"}\",CHAR(160),IV$1))-FIND(CHAR(160),SUBSTITUTE($AB79,\"{\",CHAR(160),IV$1))+1),\"\")","v":""},{"$f":"IFERROR(MID($AB79,FIND(CHAR(160),SUBSTITUTE($AB79,\"{\",CHAR(160),IW$1)),FIND(CHAR(160),SUBSTITUTE($AB79,\"}\",CHAR(160),IW$1))-FIND(CHAR(160),SUBSTITUTE($AB79,\"{\",CHAR(160),IW$1))+1),\"\")","v":""},{"$f":"IFERROR(MID($AB79,FIND(CHAR(160),SUBSTITUTE($AB79,\"{\",CHAR(160),IX$1)),FIND(CHAR(160),SUBSTITUTE($AB79,\"}\",CHAR(160),IX$1))-FIND(CHAR(160),SUBSTITUTE($AB79,\"{\",CHAR(160),IX$1))+1),\"\")","v":""},null,{"$f":"10-COUNTIF(DU79:ED79,\"\")","v":2}]
["C&I HVAC - Natural Gas","VFD: Supply Fan on VAV Air Handler","SFA","2021-07-01","2022-06-30","Calculated","{Measure:Quantity}*if({Motor HP}=5,2425,if({Motor HP}=7.5,2648,if({Motor HP}=10,2871,if({Motor HP}=15,3317,if({Motor HP}=20,3763,if({Motor HP}=25,4209,if({Motor HP}=30,4655,0)))))))",0,"Calculated","{Measure:Quantity}*if({Motor HP}=5,400,if({Motor HP}=7.5,650,if({Motor HP}=10,1400,if({Motor HP}=15,1650,if({Motor HP}=20,1850,if({Motor HP}=25,2000,if({Motor HP}=30,2300,0)))))))",0,"2021-05-25","2022-06-30","Calculated","{Measure:Quantity}*{Motor HP}*2033",null,null,"{Measure:Quantity}*{Motor HP}*.288",null,null,"{Measure:Quantity}*{Factor:WinterCF}*{Motor HP}*.288","{Measure:Quantity}*{Factor:SummerCF}*{Motor HP}*.288",null,null,null,null,null,null,"2021-05-25","2022-06-30",13,0.14599999999999999,0.48699999999999999,0.39,0.30499999999999999,0.216,8.8999999999999996E-2,1,1.1220000000000001,1,0.52,1.6E-2,null,{"$f":"DU80","v":"{Measure:Quantity}"},1,{"$f":"DV80","v":"{Motor HP}"},5,{"$f":"DW80","v":""},null,{"$f":"DX80","v":""},null,{"$f":"DY80","v":""},null,{"$f":"DZ80","v":""},null,{"$f":"EA80","v":""},null,{"$f":"EB80","v":""},null,{"$f":"EC80","v":""},null,{"$f":"ED80","v":""},null,{"$f":"AS80*AU80*2033","v":10165},0,0,{"$f":"AS80*AU80*0.288","v":1.44},0,0,{"$f":"AS80*AF80*AU80*0.288","v":0.21023999999999998},{"$f":"AS80*AG80*AU80*0.288","v":0.70128000000000001},0,0,0,0,0,0,null,"Res","Default DR",{"$f":"Benefits(BL80,BR80,BS80,BT80,BU80,BV80,BW80,BX80,BY80,BZ80,AE80,AH80,AI80,AJ80,AK80,AL80,AM80,AN80,AO80,AP80,CA80,CB80)","v":13744.956792968991},1878.4068826873533,0,0,0,0,0,0,0,{"$f":"SUMPRODUCT(CC80:CK80,--(CC80:CK80>0))","v":15623.363675656345},{"$f":"-SUMPRODUCT(CC80:CK80,--(CC80:CK80<0))","v":0},null,{"$f":"AS80*IF(AU80=5,2425,IF(AU80=7.5,2648,IF(AU80=10,2871,IF(AU80=15,3317,IF(AU80=20,3763,IF(AU80=25,4209,IF(AU80=30,4655,0)))))))","v":2425},null,null,{"$f":"CM80+CO80","v":2425},{"$f":"IF(NetOrGross=\"Net\",(1-AO80+AP80),1)","v":1},{"$f":"(SUMPRODUCT(CC80:CJ80,--(CC80:CJ80>0))+CN80)*CS80/((-SUMPRODUCT(CC80:CJ80,--(CC80:CJ80<0))+MAX(CO80,CV80)+CP80+CQ80)*CS80+IF(FRIncentives=\"Yes\",CV80*(1-CS80),0))","v":6.4426241961469461},1,{"$f":"AS80*IF(AU80=5,400,IF(AU80=7.5,650,IF(AU80=10,1400,IF(AU80=15,1650,IF(AU80=20,1850,IF(AU80=25,2000,IF(AU80=30,2300,0)))))))","v":400},null,"NG","y",null,{"$f":"IF(F80=\"Manual Entry\",\"Manual\",IF(G80=\"\",0,\"X=\"&SUBSTITUTE(SUBSTITUTE(SUBSTITUTE(SUBSTITUTE(SUBSTITUTE(SUBSTITUTE(SUBSTITUTE(SUBSTITUTE(SUBSTITUTE(SUBSTITUTE(SUBSTITUTE(SUBSTITUTE(G80,$ED80,$ED$2&ROW($ED80)),$EC80,$EC$2&ROW($EC80)),$EB80,$EB$2&ROW($EB80)),$EA80,$EA$2&ROW($EA80)),$DZ80,$DZ$2&ROW($DZ80)),$DY80,$DY$2&ROW($DY80)),$DX80,$DX$2&ROW($DX80)),$DW80,$DW$2&ROW($DW80)),$DV80,$DV$2&ROW($DV80)),$DU80,$DU$2&ROW($DU80)),$DT80,$DT$2&ROW($DT80)),$DS80,$DS$2&ROW($DS80))))","v":"X=AS80*if(AU80=5,2425,if(AU80=7.5,2648,if(AU80=10,2871,if(AU80=15,3317,if(AU80=20,3763,if(AU80=25,4209,if(AU80=30,4655,0)))))))"},{"$f":"IF(I80=\"Manual Entry\",\"Manual\",IF(J80=\"\",0,\"X=\"&SUBSTITUTE(SUBSTITUTE(SUBSTITUTE(SUBSTITUTE(SUBSTITUTE(SUBSTITUTE(SUBSTITUTE(SUBSTITUTE(SUBSTITUTE(SUBSTITUTE(SUBSTITUTE(SUBSTITUTE(J80,$ED80,$ED$2&ROW($ED80)),$EC80,$EC$2&ROW($EC80)),$EB80,$EB$2&ROW($EB80)),$EA80,$EA$2&ROW($EA80)),$DZ80,$DZ$2&ROW($DZ80)),$DY80,$DY$2&ROW($DY80)),$DX80,$DX$2&ROW($DX80)),$DW80,$DW$2&ROW($DW80)),$DV80,$DV$2&ROW($DV80)),$DU80,$DU$2&ROW($DU80)),$DT80,$DT$2&ROW($DT80)),$DS80,$DS$2&ROW($DS80))))","v":"X=AS80*if(AU80=5,400,if(AU80=7.5,650,if(AU80=10,1400,if(AU80=15,1650,if(AU80=20,1850,if(AU80=25,2000,if(AU80=30,2300,0)))))))"},{"$f":"IF(O80=\"\",0,\"X=\"&SUBSTITUTE(SUBSTITUTE(SUBSTITUTE(SUBSTITUTE(SUBSTITUTE(SUBSTITUTE(SUBSTITUTE(SUBSTITUTE(SUBSTITUTE(SUBSTITUTE(SUBSTITUTE(SUBSTITUTE(O80,$ED80,$ED$2&ROW($ED80)),$EC80,$EC$2&ROW($EC80)),$EB80,$EB$2&ROW($EB80)),$EA80,$EA$2&ROW($EA80)),$DZ80,$DZ$2&ROW($DZ80)),$DY80,$DY$2&ROW($DY80)),$DX80,$DX$2&ROW($DX80)),$DW80,$DW$2&ROW($DW80)),$DV80,$DV$2&ROW($DV80)),$DU80,$DU$2&ROW($DU80)),$DT80,$DT$2&ROW($DT80)),$DS80,$DS$2&ROW($DS80)))","v":"X=AS80*AU80*2033"},{"$f":"IF(P80=\"\",0,\"X=\"&SUBSTITUTE(SUBSTITUTE(SUBSTITUTE(SUBSTITUTE(SUBSTITUTE(SUBSTITUTE(SUBSTITUTE(SUBSTITUTE(SUBSTITUTE(SUBSTITUTE(SUBSTITUTE(SUBSTITUTE(P80,$ED80,$ED$2&ROW($ED80)),$EC80,$EC$2&ROW($EC80)),$EB80,$EB$2&ROW($EB80)),$EA80,$EA$2&ROW($EA80)),$DZ80,$DZ$2&ROW($DZ80)),$DY80,$DY$2&ROW($DY80)),$DX80,$DX$2&ROW($DX80)),$DW80,$DW$2&ROW($DW80)),$DV80,$DV$2&ROW($DV80)),$DU80,$DU$2&ROW($DU80)),$DT80,$DT$2&ROW($DT80)),$DS80,$DS$2&ROW($DS80)))","v":0},{"$f":"IF(Q80=\"\",0,\"X=\"&SUBSTITUTE(SUBSTITUTE(SUBSTITUTE(SUBSTITUTE(SUBSTITUTE(SUBSTITUTE(SUBSTITUTE(SUBSTITUTE(SUBSTITUTE(SUBSTITUTE(SUBSTITUTE(SUBSTITUTE(Q80,$ED80,$ED$2&ROW($ED80)),$EC80,$EC$2&ROW($EC80)),$EB80,$EB$2&ROW($EB80)),$EA80,$EA$2&ROW($EA80)),$DZ80,$DZ$2&ROW($DZ80)),$DY80,$DY$2&ROW($DY80)),$DX80,$DX$2&ROW($DX80)),$DW80,$DW$2&ROW($DW80)),$DV80,$DV$2&ROW($DV80)),$DU80,$DU$2&ROW($DU80)),$DT80,$DT$2&ROW($DT80)),$DS80,$DS$2&ROW($DS80)))","v":0},{"$f":"IF(R80=\"\",0,\"X=\"&SUBSTITUTE(SUBSTITUTE(SUBSTITUTE(SUBSTITUTE(SUBSTITUTE(SUBSTITUTE(SUBSTITUTE(SUBSTITUTE(SUBSTITUTE(SUBSTITUTE(SUBSTITUTE(SUBSTITUTE(R80,$ED80,$ED$2&ROW($ED80)),$EC80,$EC$2&ROW($EC80)),$EB80,$EB$2&ROW($EB80)),$EA80,$EA$2&ROW($EA80)),$DZ80,$DZ$2&ROW($DZ80)),$DY80,$DY$2&ROW($DY80)),$DX80,$DX$2&ROW($DX80)),$DW80,$DW$2&ROW($DW80)),$DV80,$DV$2&ROW($DV80)),$DU80,$DU$2&ROW($DU80)),$DT80,$DT$2&ROW($DT80)),$DS80,$DS$2&ROW($DS80)))","v":"X=AS80*AU80*.288"},{"$f":"IF(S80=\"\",0,\"X=\"&SUBSTITUTE(SUBSTITUTE(SUBSTITUTE(SUBSTITUTE(SUBSTITUTE(SUBSTITUTE(SUBSTITUTE(SUBSTITUTE(SUBSTITUTE(SUBSTITUTE(SUBSTITUTE(SUBSTITUTE(S80,$ED80,$ED$2&ROW($ED80)),$EC80,$EC$2&ROW($EC80)),$EB80,$EB$2&ROW($EB80)),$EA80,$EA$2&ROW($EA80)),$DZ80,$DZ$2&ROW($DZ80)),$DY80,$DY$2&ROW($DY80)),$DX80,$DX$2&ROW($DX80)),$DW80,$DW$2&ROW($DW80)),$DV80,$DV$2&ROW($DV80)),$DU80,$DU$2&ROW($DU80)),$DT80,$DT$2&ROW($DT80)),$DS80,$DS$2&ROW($DS80)))","v":0},{"$f":"IF(T80=\"\",0,\"X=\"&SUBSTITUTE(SUBSTITUTE(SUBSTITUTE(SUBSTITUTE(SUBSTITUTE(SUBSTITUTE(SUBSTITUTE(SUBSTITUTE(SUBSTITUTE(SUBSTITUTE(SUBSTITUTE(SUBSTITUTE(T80,$ED80,$ED$2&ROW($ED80)),$EC80,$EC$2&ROW($EC80)),$EB80,$EB$2&ROW($EB80)),$EA80,$EA$2&ROW($EA80)),$DZ80,$DZ$2&ROW($DZ80)),$DY80,$DY$2&ROW($DY80)),$DX80,$DX$2&ROW($DX80)),$DW80,$DW$2&ROW($DW80)),$DV80,$DV$2&ROW($DV80)),$DU80,$DU$2&ROW($DU80)),$DT80,$DT$2&ROW($DT80)),$DS80,$DS$2&ROW($DS80)))","v":0},{"$f":"IF(U80=\"\",0,\"X=\"&SUBSTITUTE(SUBSTITUTE(SUBSTITUTE(SUBSTITUTE(SUBSTITUTE(SUBSTITUTE(SUBSTITUTE(SUBSTITUTE(SUBSTITUTE(SUBSTITUTE(SUBSTITUTE(SUBSTITUTE(U80,$ED80,$ED$2&ROW($ED80)),$EC80,$EC$2&ROW($EC80)),$EB80,$EB$2&ROW($EB80)),$EA80,$EA$2&ROW($EA80)),$DZ80,$DZ$2&ROW($DZ80)),$DY80,$DY$2&ROW($DY80)),$DX80,$DX$2&ROW($DX80)),$DW80,$DW$2&ROW($DW80)),$DV80,$DV$2&ROW($DV80)),$DU80,$DU$2&ROW($DU80)),$DT80,$DT$2&ROW($DT80)),$DS80,$DS$2&ROW($DS80)))","v":"X=AS80*AF80*AU80*.288"},{"$f":"IF(V80=\"\",0,\"X=\"&SUBSTITUTE(SUBSTITUTE(SUBSTITUTE(SUBSTITUTE(SUBSTITUTE(SUBSTITUTE(SUBSTITUTE(SUBSTITUTE(SUBSTITUTE(SUBSTITUTE(SUBSTITUTE(SUBSTITUTE(V80,$ED80,$ED$2&ROW($ED80)),$EC80,$EC$2&ROW($EC80)),$EB80,$EB$2&ROW($EB80)),$EA80,$EA$2&ROW($EA80)),$DZ80,$DZ$2&ROW($DZ80)),$DY80,$DY$2&ROW($DY80)),$DX80,$DX$2&ROW($DX80)),$DW80,$DW$2&ROW($DW80)),$DV80,$DV$2&ROW($DV80)),$DU80,$DU$2&ROW($DU80)),$DT80,$DT$2&ROW($DT80)),$DS80,$DS$2&ROW($DS80)))","v":"X=AS80*AG80*AU80*.288"},{"$f":"IF(W80=\"\",0,\"X=\"&SUBSTITUTE(SUBSTITUTE(SUBSTITUTE(SUBSTITUTE(SUBSTITUTE(SUBSTITUTE(SUBSTITUTE(SUBSTITUTE(SUBSTITUTE(SUBSTITUTE(SUBSTITUTE(SUBSTITUTE(W80,$ED80,$ED$2&ROW($ED80)),$EC80,$EC$2&ROW($EC80)),$EB80,$EB$2&ROW($EB80)),$EA80,$EA$2&ROW($EA80)),$DZ80,$DZ$2&ROW($DZ80)),$DY80,$DY$2&ROW($DY80)),$DX80,$DX$2&ROW($DX80)),$DW80,$DW$2&ROW($DW80)),$DV80,$DV$2&ROW($DV80)),$DU80,$DU$2&ROW($DU80)),$DT80,$DT$2&ROW($DT80)),$DS80,$DS$2&ROW($DS80)))","v":0},{"$f":"IF(X80=\"\",0,\"X=\"&SUBSTITUTE(SUBSTITUTE(SUBSTITUTE(SUBSTITUTE(SUBSTITUTE(SUBSTITUTE(SUBSTITUTE(SUBSTITUTE(SUBSTITUTE(SUBSTITUTE(SUBSTITUTE(SUBSTITUTE(X80,$ED80,$ED$2&ROW($ED80)),$EC80,$EC$2&ROW($EC80)),$EB80,$EB$2&ROW($EB80)),$EA80,$EA$2&ROW($EA80)),$DZ80,$DZ$2&ROW($DZ80)),$DY80,$DY$2&ROW($DY80)),$DX80,$DX$2&ROW($DX80)),$DW80,$DW$2&ROW($DW80)),$DV80,$DV$2&ROW($DV80)),$DU80,$DU$2&ROW($DU80)),$DT80,$DT$2&ROW($DT80)),$DS80,$DS$2&ROW($DS80)))","v":0},{"$f":"IF(Y80=\"\",0,\"X=\"&SUBSTITUTE(SUBSTITUTE(SUBSTITUTE(SUBSTITUTE(SUBSTITUTE(SUBSTITUTE(SUBSTITUTE(SUBSTITUTE(SUBSTITUTE(SUBSTITUTE(SUBSTITUTE(SUBSTITUTE(Y80,$ED80,$ED$2&ROW($ED80)),$EC80,$EC$2&ROW($EC80)),$EB80,$EB$2&ROW($EB80)),$EA80,$EA$2&ROW($EA80)),$DZ80,$DZ$2&ROW($DZ80)),$DY80,$DY$2&ROW($DY80)),$DX80,$DX$2&ROW($DX80)),$DW80,$DW$2&ROW($DW80)),$DV80,$DV$2&ROW($DV80)),$DU80,$DU$2&ROW($DU80)),$DT80,$DT$2&ROW($DT80)),$DS80,$DS$2&ROW($DS80)))","v":0},{"$f":"IF(Z80=\"\",0,\"X=\"&SUBSTITUTE(SUBSTITUTE(SUBSTITUTE(SUBSTITUTE(SUBSTITUTE(SUBSTITUTE(SUBSTITUTE(SUBSTITUTE(SUBSTITUTE(SUBSTITUTE(SUBSTITUTE(SUBSTITUTE(Z80,$ED80,$ED$2&ROW($ED80)),$EC80,$EC$2&ROW($EC80)),$EB80,$EB$2&ROW($EB80)),$EA80,$EA$2&ROW($EA80)),$DZ80,$DZ$2&ROW($DZ80)),$DY80,$DY$2&ROW($DY80)),$DX80,$DX$2&ROW($DX80)),$DW80,$DW$2&ROW($DW80)),$DV80,$DV$2&ROW($DV80)),$DU80,$DU$2&ROW($DU80)),$DT80,$DT$2&ROW($DT80)),$DS80,$DS$2&ROW($DS80)))","v":0},{"$f":"IF(AA80=\"\",0,\"X=\"&SUBSTITUTE(SUBSTITUTE(SUBSTITUTE(SUBSTITUTE(SUBSTITUTE(SUBSTITUTE(SUBSTITUTE(SUBSTITUTE(SUBSTITUTE(SUBSTITUTE(SUBSTITUTE(SUBSTITUTE(AA80,$ED80,$ED$2&ROW($ED80)),$EC80,$EC$2&ROW($EC80)),$EB80,$EB$2&ROW($EB80)),$EA80,$EA$2&ROW($EA80)),$DZ80,$DZ$2&ROW($DZ80)),$DY80,$DY$2&ROW($DY80)),$DX80,$DX$2&ROW($DX80)),$DW80,$DW$2&ROW($DW80)),$DV80,$DV$2&ROW($DV80)),$DU80,$DU$2&ROW($DU80)),$DT80,$DT$2&ROW($DT80)),$DS80,$DS$2&ROW($DS80)))","v":0},{"$f":"IF(AB80=\"\",0,\"X=\"&SUBSTITUTE(SUBSTITUTE(SUBSTITUTE(SUBSTITUTE(SUBSTITUTE(SUBSTITUTE(SUBSTITUTE(SUBSTITUTE(SUBSTITUTE(SUBSTITUTE(SUBSTITUTE(SUBSTITUTE(AB80,$ED80,$ED$2&ROW($ED80)),$EC80,$EC$2&ROW($EC80)),$EB80,$EB$2&ROW($EB80)),$EA80,$EA$2&ROW($EA80)),$DZ80,$DZ$2&ROW($DZ80)),$DY80,$DY$2&ROW($DY80)),$DX80,$DX$2&ROW($DX80)),$DW80,$DW$2&ROW($DW80)),$DV80,$DV$2&ROW($DV80)),$DU80,$DU$2&ROW($DU80)),$DT80,$DT$2&ROW($DT80)),$DS80,$DS$2&ROW($DS80)))","v":0},null,null,"{Factor:WinterCF}","{Factor:SummerCF}",{"$f":"IFERROR(INDEX($EG80:$IV80,MATCH(0,COUNTIF($DR80:DT80,$EG80:$IV80),0)),\"\")","v":"{Measure:Quantity}"},{"$f":"IFERROR(INDEX($EG80:$IV80,MATCH(0,COUNTIF($DR80:DU80,$EG80:$IV80),0)),\"\")","v":"{Motor HP}"},{"$f":"IFERROR(INDEX($EG80:$IV80,MATCH(0,COUNTIF($DR80:DV80,$EG80:$IV80),0)),\"\")","v":""},{"$f":"IFERROR(INDEX($EG80:$IV80,MATCH(0,COUNTIF($DR80:DW80,$EG80:$IV80),0)),\"\")","v":""},{"$f":"IFERROR(INDEX($EG80:$IV80,MATCH(0,COUNTIF($DR80:DX80,$EG80:$IV80),0)),\"\")","v":""},{"$f":"IFERROR(INDEX($EG80:$IV80,MATCH(0,COUNTIF($DR80:DY80,$EG80:$IV80),0)),\"\")","v":""},{"$f":"IFERROR(INDEX($EG80:$IV80,MATCH(0,COUNTIF($DR80:DZ80,$EG80:$IV80),0)),\"\")","v":""},{"$f":"IFERROR(INDEX($EG80:$IV80,MATCH(0,COUNTIF($DR80:EA80,$EG80:$IV80),0)),\"\")","v":""},{"$f":"IFERROR(INDEX($EG80:$IV80,MATCH(0,COUNTIF($DR80:EB80,$EG80:$IV80),0)),\"\")","v":""},{"$f":"IFERROR(INDEX($EG80:$IV80,MATCH(0,COUNTIF($DR80:EC80,$EG80:$IV80),0)),\"\")","v":""},null,null,{"$f":"IFERROR(MID($G80,FIND(CHAR(160),SUBSTITUTE($G80,\"{\",CHAR(160),EG$1)),FIND(CHAR(160),SUBSTITUTE($G80,\"}\",CHAR(160),EG$1))-FIND(CHAR(160),SUBSTITUTE($G80,\"{\",CHAR(160),EG$1))+1),\"\")","v":"{Measure:Quantity}"},{"$f":"IFERROR(MID($G80,FIND(CHAR(160),SUBSTITUTE($G80,\"{\",CHAR(160),EH$1)),FIND(CHAR(160),SUBSTITUTE($G80,\"}\",CHAR(160),EH$1))-FIND(CHAR(160),SUBSTITUTE($G80,\"{\",CHAR(160),EH$1))+1),\"\")","v":"{Motor HP}"},{"$f":"IFERROR(MID($G80,FIND(CHAR(160),SUBSTITUTE($G80,\"{\",CHAR(160),EI$1)),FIND(CHAR(160),SUBSTITUTE($G80,\"}\",CHAR(160),EI$1))-FIND(CHAR(160),SUBSTITUTE($G80,\"{\",CHAR(160),EI$1))+1),\"\")","v":"{Motor HP}"},{"$f":"IFERROR(MID($G80,FIND(CHAR(160),SUBSTITUTE($G80,\"{\",CHAR(160),EJ$1)),FIND(CHAR(160),SUBSTITUTE($G80,\"}\",CHAR(160),EJ$1))-FIND(CHAR(160),SUBSTITUTE($G80,\"{\",CHAR(160),EJ$1))+1),\"\")","v":"{Motor HP}"},{"$f":"IFERROR(MID($G80,FIND(CHAR(160),SUBSTITUTE($G80,\"{\",CHAR(160),EK$1)),FIND(CHAR(160),SUBSTITUTE($G80,\"}\",CHAR(160),EK$1))-FIND(CHAR(160),SUBSTITUTE($G80,\"{\",CHAR(160),EK$1))+1),\"\")","v":"{Motor HP}"},{"$f":"IFERROR(MID($G80,FIND(CHAR(160),SUBSTITUTE($G80,\"{\",CHAR(160),EL$1)),FIND(CHAR(160),SUBSTITUTE($G80,\"}\",CHAR(160),EL$1))-FIND(CHAR(160),SUBSTITUTE($G80,\"{\",CHAR(160),EL$1))+1),\"\")","v":"{Motor HP}"},{"$f":"IFERROR(MID($G80,FIND(CHAR(160),SUBSTITUTE($G80,\"{\",CHAR(160),EM$1)),FIND(CHAR(160),SUBSTITUTE($G80,\"}\",CHAR(160),EM$1))-FIND(CHAR(160),SUBSTITUTE($G80,\"{\",CHAR(160),EM$1))+1),\"\")","v":"{Motor HP}"},{"$f":"IFERROR(MID($G80,FIND(CHAR(160),SUBSTITUTE($G80,\"{\",CHAR(160),EN$1)),FIND(CHAR(160),SUBSTITUTE($G80,\"}\",CHAR(160),EN$1))-FIND(CHAR(160),SUBSTITUTE($G80,\"{\",CHAR(160),EN$1))+1),\"\")","v":"{Motor HP}"},{"$f":"IFERROR(MID($G80,FIND(CHAR(160),SUBSTITUTE($G80,\"{\",CHAR(160),EO$1)),FIND(CHAR(160),SUBSTITUTE($G80,\"}\",CHAR(160),EO$1))-FIND(CHAR(160),SUBSTITUTE($G80,\"{\",CHAR(160),EO$1))+1),\"\")","v":""},{"$f":"IFERROR(MID($G80,FIND(CHAR(160),SUBSTITUTE($G80,\"{\",CHAR(160),EP$1)),FIND(CHAR(160),SUBSTITUTE($G80,\"}\",CHAR(160),EP$1))-FIND(CHAR(160),SUBSTITUTE($G80,\"{\",CHAR(160),EP$1))+1),\"\")","v":""},{"$f":"IFERROR(MID($J80,FIND(CHAR(160),SUBSTITUTE($J80,\"{\",CHAR(160),EQ$1)),FIND(CHAR(160),SUBSTITUTE($J80,\"}\",CHAR(160),EQ$1))-FIND(CHAR(160),SUBSTITUTE($J80,\"{\",CHAR(160),EQ$1))+1),\"\")","v":"{Measure:Quantity}"},{"$f":"IFERROR(MID($J80,FIND(CHAR(160),SUBSTITUTE($J80,\"{\",CHAR(160),ER$1)),FIND(CHAR(160),SUBSTITUTE($J80,\"}\",CHAR(160),ER$1))-FIND(CHAR(160),SUBSTITUTE($J80,\"{\",CHAR(160),ER$1))+1),\"\")","v":"{Motor HP}"},{"$f":"IFERROR(MID($J80,FIND(CHAR(160),SUBSTITUTE($J80,\"{\",CHAR(160),ES$1)),FIND(CHAR(160),SUBSTITUTE($J80,\"}\",CHAR(160),ES$1))-FIND(CHAR(160),SUBSTITUTE($J80,\"{\",CHAR(160),ES$1))+1),\"\")","v":"{Motor HP}"},{"$f":"IFERROR(MID($J80,FIND(CHAR(160),SUBSTITUTE($J80,\"{\",CHAR(160),ET$1)),FIND(CHAR(160),SUBSTITUTE($J80,\"}\",CHAR(160),ET$1))-FIND(CHAR(160),SUBSTITUTE($J80,\"{\",CHAR(160),ET$1))+1),\"\")","v":"{Motor HP}"},{"$f":"IFERROR(MID($J80,FIND(CHAR(160),SUBSTITUTE($J80,\"{\",CHAR(160),EU$1)),FIND(CHAR(160),SUBSTITUTE($J80,\"}\",CHAR(160),EU$1))-FIND(CHAR(160),SUBSTITUTE($J80,\"{\",CHAR(160),EU$1))+1),\"\")","v":"{Motor HP}"},{"$f":"IFERROR(MID($J80,FIND(CHAR(160),SUBSTITUTE($J80,\"{\",CHAR(160),EV$1)),FIND(CHAR(160),SUBSTITUTE($J80,\"}\",CHAR(160),EV$1))-FIND(CHAR(160),SUBSTITUTE($J80,\"{\",CHAR(160),EV$1))+1),\"\")","v":"{Motor HP}"},{"$f":"IFERROR(MID($J80,FIND(CHAR(160),SUBSTITUTE($J80,\"{\",CHAR(160),EW$1)),FIND(CHAR(160),SUBSTITUTE($J80,\"}\",CHAR(160),EW$1))-FIND(CHAR(160),SUBSTITUTE($J80,\"{\",CHAR(160),EW$1))+1),\"\")","v":"{Motor HP}"},{"$f":"IFERROR(MID($J80,FIND(CHAR(160),SUBSTITUTE($J80,\"{\",CHAR(160),EX$1)),FIND(CHAR(160),SUBSTITUTE($J80,\"}\",CHAR(160),EX$1))-FIND(CHAR(160),SUBSTITUTE($J80,\"{\",CHAR(160),EX$1))+1),\"\")","v":"{Motor HP}"},{"$f":"IFERROR(MID($J80,FIND(CHAR(160),SUBSTITUTE($J80,\"{\",CHAR(160),EY$1)),FIND(CHAR(160),SUBSTITUTE($J80,\"}\",CHAR(160),EY$1))-FIND(CHAR(160),SUBSTITUTE($J80,\"{\",CHAR(160),EY$1))+1),\"\")","v":""},{"$f":"IFERROR(MID($J80,FIND(CHAR(160),SUBSTITUTE($J80,\"{\",CHAR(160),EZ$1)),FIND(CHAR(160),SUBSTITUTE($J80,\"}\",CHAR(160),EZ$1))-FIND(CHAR(160),SUBSTITUTE($J80,\"{\",CHAR(160),EZ$1))+1),\"\")","v":""},{"$f":"IFERROR(MID($J80,FIND(CHAR(160),SUBSTITUTE($J80,\"{\",CHAR(160),FA$1)),FIND(CHAR(160),SUBSTITUTE($J80,\"}\",CHAR(160),FA$1))-FIND(CHAR(160),SUBSTITUTE($J80,\"{\",CHAR(160),FA$1))+1),\"\")","v":"{Measure:Quantity}"},{"$f":"IFERROR(MID($J80,FIND(CHAR(160),SUBSTITUTE($J80,\"{\",CHAR(160),FB$1)),FIND(CHAR(160),SUBSTITUTE($J80,\"}\",CHAR(160),FB$1))-FIND(CHAR(160),SUBSTITUTE($J80,\"{\",CHAR(160),FB$1))+1),\"\")","v":"{Motor HP}"},{"$f":"IFERROR(MID($O80,FIND(CHAR(160),SUBSTITUTE($O80,\"{\",CHAR(160),FC$1)),FIND(CHAR(160),SUBSTITUTE($O80,\"}\",CHAR(160),FC$1))-FIND(CHAR(160),SUBSTITUTE($O80,\"{\",CHAR(160),FC$1))+1),\"\")","v":""},{"$f":"IFERROR(MID($O80,FIND(CHAR(160),SUBSTITUTE($O80,\"{\",CHAR(160),FD$1)),FIND(CHAR(160),SUBSTITUTE($O80,\"}\",CHAR(160),FD$1))-FIND(CHAR(160),SUBSTITUTE($O80,\"{\",CHAR(160),FD$1))+1),\"\")","v":""},{"$f":"IFERROR(MID($O80,FIND(CHAR(160),SUBSTITUTE($O80,\"{\",CHAR(160),FE$1)),FIND(CHAR(160),SUBSTITUTE($O80,\"}\",CHAR(160),FE$1))-FIND(CHAR(160),SUBSTITUTE($O80,\"{\",CHAR(160),FE$1))+1),\"\")","v":""},{"$f":"IFERROR(MID($O80,FIND(CHAR(160),SUBSTITUTE($O80,\"{\",CHAR(160),FF$1)),FIND(CHAR(160),SUBSTITUTE($O80,\"}\",CHAR(160),FF$1))-FIND(CHAR(160),SUBSTITUTE($O80,\"{\",CHAR(160),FF$1))+1),\"\")","v":""},{"$f":"IFERROR(MID($O80,FIND(CHAR(160),SUBSTITUTE($O80,\"{\",CHAR(160),FG$1)),FIND(CHAR(160),SUBSTITUTE($O80,\"}\",CHAR(160),FG$1))-FIND(CHAR(160),SUBSTITUTE($O80,\"{\",CHAR(160),FG$1))+1),\"\")","v":""},{"$f":"IFERROR(MID($O80,FIND(CHAR(160),SUBSTITUTE($O80,\"{\",CHAR(160),FH$1)),FIND(CHAR(160),SUBSTITUTE($O80,\"}\",CHAR(160),FH$1))-FIND(CHAR(160),SUBSTITUTE($O80,\"{\",CHAR(160),FH$1))+1),\"\")","v":""},{"$f":"IFERROR(MID($O80,FIND(CHAR(160),SUBSTITUTE($O80,\"{\",CHAR(160),FI$1)),FIND(CHAR(160),SUBSTITUTE($O80,\"}\",CHAR(160),FI$1))-FIND(CHAR(160),SUBSTITUTE($O80,\"{\",CHAR(160),FI$1))+1),\"\")","v":""},{"$f":"IFERROR(MID($O80,FIND(CHAR(160),SUBSTITUTE($O80,\"{\",CHAR(160),FJ$1)),FIND(CHAR(160),SUBSTITUTE($O80,\"}\",CHAR(160),FJ$1))-FIND(CHAR(160),SUBSTITUTE($O80,\"{\",CHAR(160),FJ$1))+1),\"\")","v":""},{"$f":"IFERROR(MID($O80,FIND(CHAR(160),SUBSTITUTE($O80,\"{\",CHAR(160),FK$1)),FIND(CHAR(160),SUBSTITUTE($O80,\"}\",CHAR(160),FK$1))-FIND(CHAR(160),SUBSTITUTE($O80,\"{\",CHAR(160),FK$1))+1),\"\")","v":"{Measure:Quantity}"},{"$f":"IFERROR(MID($O80,FIND(CHAR(160),SUBSTITUTE($O80,\"{\",CHAR(160),FL$1)),FIND(CHAR(160),SUBSTITUTE($O80,\"}\",CHAR(160),FL$1))-FIND(CHAR(160),SUBSTITUTE($O80,\"{\",CHAR(160),FL$1))+1),\"\")","v":"{Motor HP}"},{"$f":"IFERROR(MID($R80,FIND(CHAR(160),SUBSTITUTE($R80,\"{\",CHAR(160),FM$1)),FIND(CHAR(160),SUBSTITUTE($R80,\"}\",CHAR(160),FM$1))-FIND(CHAR(160),SUBSTITUTE($R80,\"{\",CHAR(160),FM$1))+1),\"\")","v":""},{"$f":"IFERROR(MID($R80,FIND(CHAR(160),SUBSTITUTE($R80,\"{\",CHAR(160),FN$1)),FIND(CHAR(160),SUBSTITUTE($R80,\"}\",CHAR(160),FN$1))-FIND(CHAR(160),SUBSTITUTE($R80,\"{\",CHAR(160),FN$1))+1),\"\")","v":""},{"$f":"IFERROR(MID($R80,FIND(CHAR(160),SUBSTITUTE($R80,\"{\",CHAR(160),FO$1)),FIND(CHAR(160),SUBSTITUTE($R80,\"}\",CHAR(160),FO$1))-FIND(CHAR(160),SUBSTITUTE($R80,\"{\",CHAR(160),FO$1))+1),\"\")","v":""},{"$f":"IFERROR(MID($R80,FIND(CHAR(160),SUBSTITUTE($R80,\"{\",CHAR(160),FP$1)),FIND(CHAR(160),SUBSTITUTE($R80,\"}\",CHAR(160),FP$1))-FIND(CHAR(160),SUBSTITUTE($R80,\"{\",CHAR(160),FP$1))+1),\"\")","v":""},{"$f":"IFERROR(MID($R80,FIND(CHAR(160),SUBSTITUTE($R80,\"{\",CHAR(160),FQ$1)),FIND(CHAR(160),SUBSTITUTE($R80,\"}\",CHAR(160),FQ$1))-FIND(CHAR(160),SUBSTITUTE($R80,\"{\",CHAR(160),FQ$1))+1),\"\")","v":""},{"$f":"IFERROR(MID($R80,FIND(CHAR(160),SUBSTITUTE($R80,\"{\",CHAR(160),FR$1)),FIND(CHAR(160),SUBSTITUTE($R80,\"}\",CHAR(160),FR$1))-FIND(CHAR(160),SUBSTITUTE($R80,\"{\",CHAR(160),FR$1))+1),\"\")","v":""},{"$f":"IFERROR(MID($R80,FIND(CHAR(160),SUBSTITUTE($R80,\"{\",CHAR(160),FS$1)),FIND(CHAR(160),SUBSTITUTE($R80,\"}\",CHAR(160),FS$1))-FIND(CHAR(160),SUBSTITUTE($R80,\"{\",CHAR(160),FS$1))+1),\"\")","v":""},{"$f":"IFERROR(MID($R80,FIND(CHAR(160),SUBSTITUTE($R80,\"{\",CHAR(160),FT$1)),FIND(CHAR(160),SUBSTITUTE($R80,\"}\",CHAR(160),FT$1))-FIND(CHAR(160),SUBSTITUTE($R80,\"{\",CHAR(160),FT$1))+1),\"\")","v":""},{"$f":"IFERROR(MID($R80,FIND(CHAR(160),SUBSTITUTE($R80,\"{\",CHAR(160),FU$1)),FIND(CHAR(160),SUBSTITUTE($R80,\"}\",CHAR(160),FU$1))-FIND(CHAR(160),SUBSTITUTE($R80,\"{\",CHAR(160),FU$1))+1),\"\")","v":"{Measure:Quantity}"},{"$f":"IFERROR(MID($R80,FIND(CHAR(160),SUBSTITUTE($R80,\"{\",CHAR(160),FV$1)),FIND(CHAR(160),SUBSTITUTE($R80,\"}\",CHAR(160),FV$1))-FIND(CHAR(160),SUBSTITUTE($R80,\"{\",CHAR(160),FV$1))+1),\"\")","v":"{Motor HP}"},{"$f":"IFERROR(MID($U80,FIND(CHAR(160),SUBSTITUTE($U80,\"{\",CHAR(160),FW$1)),FIND(CHAR(160),SUBSTITUTE($U80,\"}\",CHAR(160),FW$1))-FIND(CHAR(160),SUBSTITUTE($U80,\"{\",CHAR(160),FW$1))+1),\"\")","v":"{Motor HP}"},{"$f":"IFERROR(MID($U80,FIND(CHAR(160),SUBSTITUTE($U80,\"{\",CHAR(160),FX$1)),FIND(CHAR(160),SUBSTITUTE($U80,\"}\",CHAR(160),FX$1))-FIND(CHAR(160),SUBSTITUTE($U80,\"{\",CHAR(160),FX$1))+1),\"\")","v":""},{"$f":"IFERROR(MID($U80,FIND(CHAR(160),SUBSTITUTE($U80,\"{\",CHAR(160),FY$1)),FIND(CHAR(160),SUBSTITUTE($U80,\"}\",CHAR(160),FY$1))-FIND(CHAR(160),SUBSTITUTE($U80,\"{\",CHAR(160),FY$1))+1),\"\")","v":""},{"$f":"IFERROR(MID($U80,FIND(CHAR(160),SUBSTITUTE($U80,\"{\",CHAR(160),FZ$1)),FIND(CHAR(160),SUBSTITUTE($U80,\"}\",CHAR(160),FZ$1))-FIND(CHAR(160),SUBSTITUTE($U80,\"{\",CHAR(160),FZ$1))+1),\"\")","v":""},{"$f":"IFERROR(MID($U80,FIND(CHAR(160),SUBSTITUTE($U80,\"{\",CHAR(160),GA$1)),FIND(CHAR(160),SUBSTITUTE($U80,\"}\",CHAR(160),GA$1))-FIND(CHAR(160),SUBSTITUTE($U80,\"{\",CHAR(160),GA$1))+1),\"\")","v":""},{"$f":"IFERROR(MID($U80,FIND(CHAR(160),SUBSTITUTE($U80,\"{\",CHAR(160),GB$1)),FIND(CHAR(160),SUBSTITUTE($U80,\"}\",CHAR(160),GB$1))-FIND(CHAR(160),SUBSTITUTE($U80,\"{\",CHAR(160),GB$1))+1),\"\")","v":""},{"$f":"IFERROR(MID($U80,FIND(CHAR(160),SUBSTITUTE($U80,\"{\",CHAR(160),GC$1)),FIND(CHAR(160),SUBSTITUTE($U80,\"}\",CHAR(160),GC$1))-FIND(CHAR(160),SUBSTITUTE($U80,\"{\",CHAR(160),GC$1))+1),\"\")","v":""},{"$f":"IFERROR(MID($U80,FIND(CHAR(160),SUBSTITUTE($U80,\"{\",CHAR(160),GD$1)),FIND(CHAR(160),SUBSTITUTE($U80,\"}\",CHAR(160),GD$1))-FIND(CHAR(160),SUBSTITUTE($U80,\"{\",CHAR(160),GD$1))+1),\"\")","v":""},{"$f":"IFERROR(MID($U80,FIND(CHAR(160),SUBSTITUTE($U80,\"{\",CHAR(160),GE$1)),FIND(CHAR(160),SUBSTITUTE($U80,\"}\",CHAR(160),GE$1))-FIND(CHAR(160),SUBSTITUTE($U80,\"{\",CHAR(160),GE$1))+1),\"\")","v":"{Measure:Quantity}"},{"$f":"IFERROR(MID($U80,FIND(CHAR(160),SUBSTITUTE($U80,\"{\",CHAR(160),GF$1)),FIND(CHAR(160),SUBSTITUTE($U80,\"}\",CHAR(160),GF$1))-FIND(CHAR(160),SUBSTITUTE($U80,\"{\",CHAR(160),GF$1))+1),\"\")","v":"{Factor:WinterCF}"},{"$f":"IFERROR(MID($V80,FIND(CHAR(160),SUBSTITUTE($V80,\"{\",CHAR(160),GG$1)),FIND(CHAR(160),SUBSTITUTE($V80,\"}\",CHAR(160),GG$1))-FIND(CHAR(160),SUBSTITUTE($V80,\"{\",CHAR(160),GG$1))+1),\"\")","v":"{Motor HP}"},{"$f":"IFERROR(MID($V80,FIND(CHAR(160),SUBSTITUTE($V80,\"{\",CHAR(160),GH$1)),FIND(CHAR(160),SUBSTITUTE($V80,\"}\",CHAR(160),GH$1))-FIND(CHAR(160),SUBSTITUTE($V80,\"{\",CHAR(160),GH$1))+1),\"\")","v":""},{"$f":"IFERROR(MID($V80,FIND(CHAR(160),SUBSTITUTE($V80,\"{\",CHAR(160),GI$1)),FIND(CHAR(160),SUBSTITUTE($V80,\"}\",CHAR(160),GI$1))-FIND(CHAR(160),SUBSTITUTE($V80,\"{\",CHAR(160),GI$1))+1),\"\")","v":""},{"$f":"IFERROR(MID($V80,FIND(CHAR(160),SUBSTITUTE($V80,\"{\",CHAR(160),GJ$1)),FIND(CHAR(160),SUBSTITUTE($V80,\"}\",CHAR(160),GJ$1))-FIND(CHAR(160),SUBSTITUTE($V80,\"{\",CHAR(160),GJ$1))+1),\"\")","v":""},{"$f":"IFERROR(MID($V80,FIND(CHAR(160),SUBSTITUTE($V80,\"{\",CHAR(160),GK$1)),FIND(CHAR(160),SUBSTITUTE($V80,\"}\",CHAR(160),GK$1))-FIND(CHAR(160),SUBSTITUTE($V80,\"{\",CHAR(160),GK$1))+1),\"\")","v":""},{"$f":"IFERROR(MID($V80,FIND(CHAR(160),SUBSTITUTE($V80,\"{\",CHAR(160),GL$1)),FIND(CHAR(160),SUBSTITUTE($V80,\"}\",CHAR(160),GL$1))-FIND(CHAR(160),SUBSTITUTE($V80,\"{\",CHAR(160),GL$1))+1),\"\")","v":""},{"$f":"IFERROR(MID($V80,FIND(CHAR(160),SUBSTITUTE($V80,\"{\",CHAR(160),GM$1)),FIND(CHAR(160),SUBSTITUTE($V80,\"}\",CHAR(160),GM$1))-FIND(CHAR(160),SUBSTITUTE($V80,\"{\",CHAR(160),GM$1))+1),\"\")","v":""},{"$f":"IFERROR(MID($V80,FIND(CHAR(160),SUBSTITUTE($V80,\"{\",CHAR(160),GN$1)),FIND(CHAR(160),SUBSTITUTE($V80,\"}\",CHAR(160),GN$1))-FIND(CHAR(160),SUBSTITUTE($V80,\"{\",CHAR(160),GN$1))+1),\"\")","v":""},{"$f":"IFERROR(MID($V80,FIND(CHAR(160),SUBSTITUTE($V80,\"{\",CHAR(160),GO$1)),FIND(CHAR(160),SUBSTITUTE($V80,\"}\",CHAR(160),GO$1))-FIND(CHAR(160),SUBSTITUTE($V80,\"{\",CHAR(160),GO$1))+1),\"\")","v":"{Measure:Quantity}"},{"$f":"IFERROR(MID($V80,FIND(CHAR(160),SUBSTITUTE($V80,\"{\",CHAR(160),GP$1)),FIND(CHAR(160),SUBSTITUTE($V80,\"}\",CHAR(160),GP$1))-FIND(CHAR(160),SUBSTITUTE($V80,\"{\",CHAR(160),GP$1))+1),\"\")","v":"{Factor:SummerCF}"},{"$f":"IFERROR(MID($W80,FIND(CHAR(160),SUBSTITUTE($W80,\"{\",CHAR(160),GQ$1)),FIND(CHAR(160),SUBSTITUTE($W80,\"}\",CHAR(160),GQ$1))-FIND(CHAR(160),SUBSTITUTE($W80,\"{\",CHAR(160),GQ$1))+1),\"\")","v":""},{"$f":"IFERROR(MID($W80,FIND(CHAR(160),SUBSTITUTE($W80,\"{\",CHAR(160),GR$1)),FIND(CHAR(160),SUBSTITUTE($W80,\"}\",CHAR(160),GR$1))-FIND(CHAR(160),SUBSTITUTE($W80,\"{\",CHAR(160),GR$1))+1),\"\")","v":""},{"$f":"IFERROR(MID($W80,FIND(CHAR(160),SUBSTITUTE($W80,\"{\",CHAR(160),GS$1)),FIND(CHAR(160),SUBSTITUTE($W80,\"}\",CHAR(160),GS$1))-FIND(CHAR(160),SUBSTITUTE($W80,\"{\",CHAR(160),GS$1))+1),\"\")","v":""},{"$f":"IFERROR(MID($W80,FIND(CHAR(160),SUBSTITUTE($W80,\"{\",CHAR(160),GT$1)),FIND(CHAR(160),SUBSTITUTE($W80,\"}\",CHAR(160),GT$1))-FIND(CHAR(160),SUBSTITUTE($W80,\"{\",CHAR(160),GT$1))+1),\"\")","v":""},{"$f":"IFERROR(MID($W80,FIND(CHAR(160),SUBSTITUTE($W80,\"{\",CHAR(160),GU$1)),FIND(CHAR(160),SUBSTITUTE($W80,\"}\",CHAR(160),GU$1))-FIND(CHAR(160),SUBSTITUTE($W80,\"{\",CHAR(160),GU$1))+1),\"\")","v":""},{"$f":"IFERROR(MID($W80,FIND(CHAR(160),SUBSTITUTE($W80,\"{\",CHAR(160),GV$1)),FIND(CHAR(160),SUBSTITUTE($W80,\"}\",CHAR(160),GV$1))-FIND(CHAR(160),SUBSTITUTE($W80,\"{\",CHAR(160),GV$1))+1),\"\")","v":""},{"$f":"IFERROR(MID($W80,FIND(CHAR(160),SUBSTITUTE($W80,\"{\",CHAR(160),GW$1)),FIND(CHAR(160),SUBSTITUTE($W80,\"}\",CHAR(160),GW$1))-FIND(CHAR(160),SUBSTITUTE($W80,\"{\",CHAR(160),GW$1))+1),\"\")","v":""},{"$f":"IFERROR(MID($W80,FIND(CHAR(160),SUBSTITUTE($W80,\"{\",CHAR(160),GX$1)),FIND(CHAR(160),SUBSTITUTE($W80,\"}\",CHAR(160),GX$1))-FIND(CHAR(160),SUBSTITUTE($W80,\"{\",CHAR(160),GX$1))+1),\"\")","v":""},{"$f":"IFERROR(MID($W80,FIND(CHAR(160),SUBSTITUTE($W80,\"{\",CHAR(160),GY$1)),FIND(CHAR(160),SUBSTITUTE($W80,\"}\",CHAR(160),GY$1))-FIND(CHAR(160),SUBSTITUTE($W80,\"{\",CHAR(160),GY$1))+1),\"\")","v":""},{"$f":"IFERROR(MID($W80,FIND(CHAR(160),SUBSTITUTE($W80,\"{\",CHAR(160),GZ$1)),FIND(CHAR(160),SUBSTITUTE($W80,\"}\",CHAR(160),GZ$1))-FIND(CHAR(160),SUBSTITUTE($W80,\"{\",CHAR(160),GZ$1))+1),\"\")","v":""},{"$f":"IFERROR(MID($X80,FIND(CHAR(160),SUBSTITUTE($X80,\"{\",CHAR(160),HA$1)),FIND(CHAR(160),SUBSTITUTE($X80,\"}\",CHAR(160),HA$1))-FIND(CHAR(160),SUBSTITUTE($X80,\"{\",CHAR(160),HA$1))+1),\"\")","v":""},{"$f":"IFERROR(MID($X80,FIND(CHAR(160),SUBSTITUTE($X80,\"{\",CHAR(160),HB$1)),FIND(CHAR(160),SUBSTITUTE($X80,\"}\",CHAR(160),HB$1))-FIND(CHAR(160),SUBSTITUTE($X80,\"{\",CHAR(160),HB$1))+1),\"\")","v":""},{"$f":"IFERROR(MID($X80,FIND(CHAR(160),SUBSTITUTE($X80,\"{\",CHAR(160),HC$1)),FIND(CHAR(160),SUBSTITUTE($X80,\"}\",CHAR(160),HC$1))-FIND(CHAR(160),SUBSTITUTE($X80,\"{\",CHAR(160),HC$1))+1),\"\")","v":""},{"$f":"IFERROR(MID($X80,FIND(CHAR(160),SUBSTITUTE($X80,\"{\",CHAR(160),HD$1)),FIND(CHAR(160),SUBSTITUTE($X80,\"}\",CHAR(160),HD$1))-FIND(CHAR(160),SUBSTITUTE($X80,\"{\",CHAR(160),HD$1))+1),\"\")","v":""},{"$f":"IFERROR(MID($X80,FIND(CHAR(160),SUBSTITUTE($X80,\"{\",CHAR(160),HE$1)),FIND(CHAR(160),SUBSTITUTE($X80,\"}\",CHAR(160),HE$1))-FIND(CHAR(160),SUBSTITUTE($X80,\"{\",CHAR(160),HE$1))+1),\"\")","v":""},{"$f":"IFERROR(MID($X80,FIND(CHAR(160),SUBSTITUTE($X80,\"{\",CHAR(160),HF$1)),FIND(CHAR(160),SUBSTITUTE($X80,\"}\",CHAR(160),HF$1))-FIND(CHAR(160),SUBSTITUTE($X80,\"{\",CHAR(160),HF$1))+1),\"\")","v":""},{"$f":"IFERROR(MID($X80,FIND(CHAR(160),SUBSTITUTE($X80,\"{\",CHAR(160),HG$1)),FIND(CHAR(160),SUBSTITUTE($X80,\"}\",CHAR(160),HG$1))-FIND(CHAR(160),SUBSTITUTE($X80,\"{\",CHAR(160),HG$1))+1),\"\")","v":""},{"$f":"IFERROR(MID($X80,FIND(CHAR(160),SUBSTITUTE($X80,\"{\",CHAR(160),HH$1)),FIND(CHAR(160),SUBSTITUTE($X80,\"}\",CHAR(160),HH$1))-FIND(CHAR(160),SUBSTITUTE($X80,\"{\",CHAR(160),HH$1))+1),\"\")","v":""},{"$f":"IFERROR(MID($X80,FIND(CHAR(160),SUBSTITUTE($X80,\"{\",CHAR(160),HI$1)),FIND(CHAR(160),SUBSTITUTE($X80,\"}\",CHAR(160),HI$1))-FIND(CHAR(160),SUBSTITUTE($X80,\"{\",CHAR(160),HI$1))+1),\"\")","v":""},{"$f":"IFERROR(MID($X80,FIND(CHAR(160),SUBSTITUTE($X80,\"{\",CHAR(160),HJ$1)),FIND(CHAR(160),SUBSTITUTE($X80,\"}\",CHAR(160),HJ$1))-FIND(CHAR(160),SUBSTITUTE($X80,\"{\",CHAR(160),HJ$1))+1),\"\")","v":""},{"$f":"IFERROR(MID($Y80,FIND(CHAR(160),SUBSTITUTE($Y80,\"{\",CHAR(160),HK$1)),FIND(CHAR(160),SUBSTITUTE($Y80,\"}\",CHAR(160),HK$1))-FIND(CHAR(160),SUBSTITUTE($Y80,\"{\",CHAR(160),HK$1))+1),\"\")","v":""},{"$f":"IFERROR(MID($Y80,FIND(CHAR(160),SUBSTITUTE($Y80,\"{\",CHAR(160),HL$1)),FIND(CHAR(160),SUBSTITUTE($Y80,\"}\",CHAR(160),HL$1))-FIND(CHAR(160),SUBSTITUTE($Y80,\"{\",CHAR(160),HL$1))+1),\"\")","v":""},{"$f":"IFERROR(MID($Y80,FIND(CHAR(160),SUBSTITUTE($Y80,\"{\",CHAR(160),HM$1)),FIND(CHAR(160),SUBSTITUTE($Y80,\"}\",CHAR(160),HM$1))-FIND(CHAR(160),SUBSTITUTE($Y80,\"{\",CHAR(160),HM$1))+1),\"\")","v":""},{"$f":"IFERROR(MID($Y80,FIND(CHAR(160),SUBSTITUTE($Y80,\"{\",CHAR(160),HN$1)),FIND(CHAR(160),SUBSTITUTE($Y80,\"}\",CHAR(160),HN$1))-FIND(CHAR(160),SUBSTITUTE($Y80,\"{\",CHAR(160),HN$1))+1),\"\")","v":""},{"$f":"IFERROR(MID($Y80,FIND(CHAR(160),SUBSTITUTE($Y80,\"{\",CHAR(160),HO$1)),FIND(CHAR(160),SUBSTITUTE($Y80,\"}\",CHAR(160),HO$1))-FIND(CHAR(160),SUBSTITUTE($Y80,\"{\",CHAR(160),HO$1))+1),\"\")","v":""},{"$f":"IFERROR(MID($Y80,FIND(CHAR(160),SUBSTITUTE($Y80,\"{\",CHAR(160),HP$1)),FIND(CHAR(160),SUBSTITUTE($Y80,\"}\",CHAR(160),HP$1))-FIND(CHAR(160),SUBSTITUTE($Y80,\"{\",CHAR(160),HP$1))+1),\"\")","v":""},{"$f":"IFERROR(MID($Y80,FIND(CHAR(160),SUBSTITUTE($Y80,\"{\",CHAR(160),HQ$1)),FIND(CHAR(160),SUBSTITUTE($Y80,\"}\",CHAR(160),HQ$1))-FIND(CHAR(160),SUBSTITUTE($Y80,\"{\",CHAR(160),HQ$1))+1),\"\")","v":""},{"$f":"IFERROR(MID($Y80,FIND(CHAR(160),SUBSTITUTE($Y80,\"{\",CHAR(160),HR$1)),FIND(CHAR(160),SUBSTITUTE($Y80,\"}\",CHAR(160),HR$1))-FIND(CHAR(160),SUBSTITUTE($Y80,\"{\",CHAR(160),HR$1))+1),\"\")","v":""},{"$f":"IFERROR(MID($Y80,FIND(CHAR(160),SUBSTITUTE($Y80,\"{\",CHAR(160),HS$1)),FIND(CHAR(160),SUBSTITUTE($Y80,\"}\",CHAR(160),HS$1))-FIND(CHAR(160),SUBSTITUTE($Y80,\"{\",CHAR(160),HS$1))+1),\"\")","v":""},{"$f":"IFERROR(MID($Y80,FIND(CHAR(160),SUBSTITUTE($Y80,\"{\",CHAR(160),HT$1)),FIND(CHAR(160),SUBSTITUTE($Y80,\"}\",CHAR(160),HT$1))-FIND(CHAR(160),SUBSTITUTE($Y80,\"{\",CHAR(160),HT$1))+1),\"\")","v":""},{"$f":"IFERROR(MID($Z80,FIND(CHAR(160),SUBSTITUTE($Z80,\"{\",CHAR(160),HU$1)),FIND(CHAR(160),SUBSTITUTE($Z80,\"}\",CHAR(160),HU$1))-FIND(CHAR(160),SUBSTITUTE($Z80,\"{\",CHAR(160),HU$1))+1),\"\")","v":""},{"$f":"IFERROR(MID($Z80,FIND(CHAR(160),SUBSTITUTE($Z80,\"{\",CHAR(160),HV$1)),FIND(CHAR(160),SUBSTITUTE($Z80,\"}\",CHAR(160),HV$1))-FIND(CHAR(160),SUBSTITUTE($Z80,\"{\",CHAR(160),HV$1))+1),\"\")","v":""},{"$f":"IFERROR(MID($Z80,FIND(CHAR(160),SUBSTITUTE($Z80,\"{\",CHAR(160),HW$1)),FIND(CHAR(160),SUBSTITUTE($Z80,\"}\",CHAR(160),HW$1))-FIND(CHAR(160),SUBSTITUTE($Z80,\"{\",CHAR(160),HW$1))+1),\"\")","v":""},{"$f":"IFERROR(MID($Z80,FIND(CHAR(160),SUBSTITUTE($Z80,\"{\",CHAR(160),HX$1)),FIND(CHAR(160),SUBSTITUTE($Z80,\"}\",CHAR(160),HX$1))-FIND(CHAR(160),SUBSTITUTE($Z80,\"{\",CHAR(160),HX$1))+1),\"\")","v":""},{"$f":"IFERROR(MID($Z80,FIND(CHAR(160),SUBSTITUTE($Z80,\"{\",CHAR(160),HY$1)),FIND(CHAR(160),SUBSTITUTE($Z80,\"}\",CHAR(160),HY$1))-FIND(CHAR(160),SUBSTITUTE($Z80,\"{\",CHAR(160),HY$1))+1),\"\")","v":""},{"$f":"IFERROR(MID($Z80,FIND(CHAR(160),SUBSTITUTE($Z80,\"{\",CHAR(160),HZ$1)),FIND(CHAR(160),SUBSTITUTE($Z80,\"}\",CHAR(160),HZ$1))-FIND(CHAR(160),SUBSTITUTE($Z80,\"{\",CHAR(160),HZ$1))+1),\"\")","v":""},{"$f":"IFERROR(MID($Z80,FIND(CHAR(160),SUBSTITUTE($Z80,\"{\",CHAR(160),IA$1)),FIND(CHAR(160),SUBSTITUTE($Z80,\"}\",CHAR(160),IA$1))-FIND(CHAR(160),SUBSTITUTE($Z80,\"{\",CHAR(160),IA$1))+1),\"\")","v":""},{"$f":"IFERROR(MID($Z80,FIND(CHAR(160),SUBSTITUTE($Z80,\"{\",CHAR(160),IB$1)),FIND(CHAR(160),SUBSTITUTE($Z80,\"}\",CHAR(160),IB$1))-FIND(CHAR(160),SUBSTITUTE($Z80,\"{\",CHAR(160),IB$1))+1),\"\")","v":""},{"$f":"IFERROR(MID($Z80,FIND(CHAR(160),SUBSTITUTE($Z80,\"{\",CHAR(160),IC$1)),FIND(CHAR(160),SUBSTITUTE($Z80,\"}\",CHAR(160),IC$1))-FIND(CHAR(160),SUBSTITUTE($Z80,\"{\",CHAR(160),IC$1))+1),\"\")","v":""},{"$f":"IFERROR(MID($Z80,FIND(CHAR(160),SUBSTITUTE($Z80,\"{\",CHAR(160),ID$1)),FIND(CHAR(160),SUBSTITUTE($Z80,\"}\",CHAR(160),ID$1))-FIND(CHAR(160),SUBSTITUTE($Z80,\"{\",CHAR(160),ID$1))+1),\"\")","v":""},{"$f":"IFERROR(MID($AA80,FIND(CHAR(160),SUBSTITUTE($AA80,\"{\",CHAR(160),IE$1)),FIND(CHAR(160),SUBSTITUTE($AA80,\"}\",CHAR(160),IE$1))-FIND(CHAR(160),SUBSTITUTE($AA80,\"{\",CHAR(160),IE$1))+1),\"\")","v":""},{"$f":"IFERROR(MID($AA80,FIND(CHAR(160),SUBSTITUTE($AA80,\"{\",CHAR(160),IF$1)),FIND(CHAR(160),SUBSTITUTE($AA80,\"}\",CHAR(160),IF$1))-FIND(CHAR(160),SUBSTITUTE($AA80,\"{\",CHAR(160),IF$1))+1),\"\")","v":""},{"$f":"IFERROR(MID($AA80,FIND(CHAR(160),SUBSTITUTE($AA80,\"{\",CHAR(160),IG$1)),FIND(CHAR(160),SUBSTITUTE($AA80,\"}\",CHAR(160),IG$1))-FIND(CHAR(160),SUBSTITUTE($AA80,\"{\",CHAR(160),IG$1))+1),\"\")","v":""},{"$f":"IFERROR(MID($AA80,FIND(CHAR(160),SUBSTITUTE($AA80,\"{\",CHAR(160),IH$1)),FIND(CHAR(160),SUBSTITUTE($AA80,\"}\",CHAR(160),IH$1))-FIND(CHAR(160),SUBSTITUTE($AA80,\"{\",CHAR(160),IH$1))+1),\"\")","v":""},{"$f":"IFERROR(MID($AA80,FIND(CHAR(160),SUBSTITUTE($AA80,\"{\",CHAR(160),II$1)),FIND(CHAR(160),SUBSTITUTE($AA80,\"}\",CHAR(160),II$1))-FIND(CHAR(160),SUBSTITUTE($AA80,\"{\",CHAR(160),II$1))+1),\"\")","v":""},{"$f":"IFERROR(MID($AA80,FIND(CHAR(160),SUBSTITUTE($AA80,\"{\",CHAR(160),IJ$1)),FIND(CHAR(160),SUBSTITUTE($AA80,\"}\",CHAR(160),IJ$1))-FIND(CHAR(160),SUBSTITUTE($AA80,\"{\",CHAR(160),IJ$1))+1),\"\")","v":""},{"$f":"IFERROR(MID($AA80,FIND(CHAR(160),SUBSTITUTE($AA80,\"{\",CHAR(160),IK$1)),FIND(CHAR(160),SUBSTITUTE($AA80,\"}\",CHAR(160),IK$1))-FIND(CHAR(160),SUBSTITUTE($AA80,\"{\",CHAR(160),IK$1))+1),\"\")","v":""},{"$f":"IFERROR(MID($AA80,FIND(CHAR(160),SUBSTITUTE($AA80,\"{\",CHAR(160),IL$1)),FIND(CHAR(160),SUBSTITUTE($AA80,\"}\",CHAR(160),IL$1))-FIND(CHAR(160),SUBSTITUTE($AA80,\"{\",CHAR(160),IL$1))+1),\"\")","v":""},{"$f":"IFERROR(MID($AA80,FIND(CHAR(160),SUBSTITUTE($AA80,\"{\",CHAR(160),IM$1)),FIND(CHAR(160),SUBSTITUTE($AA80,\"}\",CHAR(160),IM$1))-FIND(CHAR(160),SUBSTITUTE($AA80,\"{\",CHAR(160),IM$1))+1),\"\")","v":""},{"$f":"IFERROR(MID($AA80,FIND(CHAR(160),SUBSTITUTE($AA80,\"{\",CHAR(160),IN$1)),FIND(CHAR(160),SUBSTITUTE($AA80,\"}\",CHAR(160),IN$1))-FIND(CHAR(160),SUBSTITUTE($AA80,\"{\",CHAR(160),IN$1))+1),\"\")","v":""},{"$f":"IFERROR(MID($AB80,FIND(CHAR(160),SUBSTITUTE($AB80,\"{\",CHAR(160),IO$1)),FIND(CHAR(160),SUBSTITUTE($AB80,\"}\",CHAR(160),IO$1))-FIND(CHAR(160),SUBSTITUTE($AB80,\"{\",CHAR(160),IO$1))+1),\"\")","v":""},{"$f":"IFERROR(MID($AB80,FIND(CHAR(160),SUBSTITUTE($AB80,\"{\",CHAR(160),IP$1)),FIND(CHAR(160),SUBSTITUTE($AB80,\"}\",CHAR(160),IP$1))-FIND(CHAR(160),SUBSTITUTE($AB80,\"{\",CHAR(160),IP$1))+1),\"\")","v":""},{"$f":"IFERROR(MID($AB80,FIND(CHAR(160),SUBSTITUTE($AB80,\"{\",CHAR(160),IQ$1)),FIND(CHAR(160),SUBSTITUTE($AB80,\"}\",CHAR(160),IQ$1))-FIND(CHAR(160),SUBSTITUTE($AB80,\"{\",CHAR(160),IQ$1))+1),\"\")","v":""},{"$f":"IFERROR(MID($AB80,FIND(CHAR(160),SUBSTITUTE($AB80,\"{\",CHAR(160),IR$1)),FIND(CHAR(160),SUBSTITUTE($AB80,\"}\",CHAR(160),IR$1))-FIND(CHAR(160),SUBSTITUTE($AB80,\"{\",CHAR(160),IR$1))+1),\"\")","v":""},{"$f":"IFERROR(MID($AB80,FIND(CHAR(160),SUBSTITUTE($AB80,\"{\",CHAR(160),IS$1)),FIND(CHAR(160),SUBSTITUTE($AB80,\"}\",CHAR(160),IS$1))-FIND(CHAR(160),SUBSTITUTE($AB80,\"{\",CHAR(160),IS$1))+1),\"\")","v":""},{"$f":"IFERROR(MID($AB80,FIND(CHAR(160),SUBSTITUTE($AB80,\"{\",CHAR(160),IT$1)),FIND(CHAR(160),SUBSTITUTE($AB80,\"}\",CHAR(160),IT$1))-FIND(CHAR(160),SUBSTITUTE($AB80,\"{\",CHAR(160),IT$1))+1),\"\")","v":""},{"$f":"IFERROR(MID($AB80,FIND(CHAR(160),SUBSTITUTE($AB80,\"{\",CHAR(160),IU$1)),FIND(CHAR(160),SUBSTITUTE($AB80,\"}\",CHAR(160),IU$1))-FIND(CHAR(160),SUBSTITUTE($AB80,\"{\",CHAR(160),IU$1))+1),\"\")","v":""},{"$f":"IFERROR(MID($AB80,FIND(CHAR(160),SUBSTITUTE($AB80,\"{\",CHAR(160),IV$1)),FIND(CHAR(160),SUBSTITUTE($AB80,\"}\",CHAR(160),IV$1))-FIND(CHAR(160),SUBSTITUTE($AB80,\"{\",CHAR(160),IV$1))+1),\"\")","v":""},{"$f":"IFERROR(MID($AB80,FIND(CHAR(160),SUBSTITUTE($AB80,\"{\",CHAR(160),IW$1)),FIND(CHAR(160),SUBSTITUTE($AB80,\"}\",CHAR(160),IW$1))-FIND(CHAR(160),SUBSTITUTE($AB80,\"{\",CHAR(160),IW$1))+1),\"\")","v":""},{"$f":"IFERROR(MID($AB80,FIND(CHAR(160),SUBSTITUTE($AB80,\"{\",CHAR(160),IX$1)),FIND(CHAR(160),SUBSTITUTE($AB80,\"}\",CHAR(160),IX$1))-FIND(CHAR(160),SUBSTITUTE($AB80,\"{\",CHAR(160),IX$1))+1),\"\")","v":""},null,{"$f":"10-COUNTIF(DU80:ED80,\"\")","v":2}]
["C&I HVAC - Natural Gas","VFD: Supply Fan on VAV Packaged or Rooftop HVAC Unit","SFP","2021-07-01","2022-06-30","Calculated","{Measure:Quantity}*if({Motor HP}=5,2425,if({Motor HP}=7.5,2648,if({Motor HP}=10,2871,if({Motor HP}=15,3317,if({Motor HP}=20,3763,if({Motor HP}=25,4209,if({Motor HP}=30,4655,0)))))))",0,"Calculated","{Measure:Quantity}*if({Motor HP}=5,400,if({Motor HP}=7.5,650,if({Motor HP}=10,1400,if({Motor HP}=15,1650,if({Motor HP}=20,1850,if({Motor HP}=25,2000,if({Motor HP}=30,2300,0)))))))",0,"2021-05-25","2022-06-30","Calculated","{Measure:Quantity}*{Motor HP}*2033",null,null,"{Measure:Quantity}*{Motor HP}*.288",null,null,"{Measure:Quantity}*{Factor:WinterCF}*{Motor HP}*.288","{Measure:Quantity}*{Factor:SummerCF}*{Motor HP}*.288",null,null,null,null,null,null,"2021-05-25","2022-06-30",13,0.14599999999999999,0.48699999999999999,0.39,0.30499999999999999,0.216,8.8999999999999996E-2,1,1.1220000000000001,1,0.52,1.6E-2,null,{"$f":"DU81","v":"{Measure:Quantity}"},1,{"$f":"DV81","v":"{Motor HP}"},5,{"$f":"DW81","v":""},null,{"$f":"DX81","v":""},null,{"$f":"DY81","v":""},null,{"$f":"DZ81","v":""},null,{"$f":"EA81","v":""},null,{"$f":"EB81","v":""},null,{"$f":"EC81","v":""},null,{"$f":"ED81","v":""},null,{"$f":"AS81*AU81*2033","v":10165},0,0,{"$f":"AS81*AU81*0.288","v":1.44},0,0,{"$f":"AS81*AF81*AU81*0.288","v":0.21023999999999998},{"$f":"AS81*AG81*AU81*0.288","v":0.70128000000000001},0,0,0,0,0,0,null,"Res","Default DR",{"$f":"Benefits(BL81,BR81,BS81,BT81,BU81,BV81,BW81,BX81,BY81,BZ81,AE81,AH81,AI81,AJ81,AK81,AL81,AM81,AN81,AO81,AP81,CA81,CB81)","v":13744.956792968991},1878.4068826873533,0,0,0,0,0,0,0,{"$f":"SUMPRODUCT(CC81:CK81,--(CC81:CK81>0))","v":15623.363675656345},{"$f":"-SUMPRODUCT(CC81:CK81,--(CC81:CK81<0))","v":0},null,{"$f":"AS81*IF(AU81=5,2425,IF(AU81=7.5,2648,IF(AU81=10,2871,IF(AU81=15,3317,IF(AU81=20,3763,IF(AU81=25,4209,IF(AU81=30,4655,0)))))))","v":2425},null,null,{"$f":"CM81+CO81","v":2425},{"$f":"IF(NetOrGross=\"Net\",(1-AO81+AP81),1)","v":1},{"$f":"(SUMPRODUCT(CC81:CJ81,--(CC81:CJ81>0))+CN81)*CS81/((-SUMPRODUCT(CC81:CJ81,--(CC81:CJ81<0))+MAX(CO81,CV81)+CP81+CQ81)*CS81+IF(FRIncentives=\"Yes\",CV81*(1-CS81),0))","v":6.4426241961469461},1,{"$f":"AS81*IF(AU81=5,400,IF(AU81=7.5,650,IF(AU81=10,1400,IF(AU81=15,1650,IF(AU81=20,1850,IF(AU81=25,2000,IF(AU81=30,2300,0)))))))","v":400},null,"NG","y",null,{"$f":"IF(F81=\"Manual Entry\",\"Manual\",IF(G81=\"\",0,\"X=\"&SUBSTITUTE(SUBSTITUTE(SUBSTITUTE(SUBSTITUTE(SUBSTITUTE(SUBSTITUTE(SUBSTITUTE(SUBSTITUTE(SUBSTITUTE(SUBSTITUTE(SUBSTITUTE(SUBSTITUTE(G81,$ED81,$ED$2&ROW($ED81)),$EC81,$EC$2&ROW($EC81)),$EB81,$EB$2&ROW($EB81)),$EA81,$EA$2&ROW($EA81)),$DZ81,$DZ$2&ROW($DZ81)),$DY81,$DY$2&ROW($DY81)),$DX81,$DX$2&ROW($DX81)),$DW81,$DW$2&ROW($DW81)),$DV81,$DV$2&ROW($DV81)),$DU81,$DU$2&ROW($DU81)),$DT81,$DT$2&ROW($DT81)),$DS81,$DS$2&ROW($DS81))))","v":"X=AS81*if(AU81=5,2425,if(AU81=7.5,2648,if(AU81=10,2871,if(AU81=15,3317,if(AU81=20,3763,if(AU81=25,4209,if(AU81=30,4655,0)))))))"},{"$f":"IF(I81=\"Manual Entry\",\"Manual\",IF(J81=\"\",0,\"X=\"&SUBSTITUTE(SUBSTITUTE(SUBSTITUTE(SUBSTITUTE(SUBSTITUTE(SUBSTITUTE(SUBSTITUTE(SUBSTITUTE(SUBSTITUTE(SUBSTITUTE(SUBSTITUTE(SUBSTITUTE(J81,$ED81,$ED$2&ROW($ED81)),$EC81,$EC$2&ROW($EC81)),$EB81,$EB$2&ROW($EB81)),$EA81,$EA$2&ROW($EA81)),$DZ81,$DZ$2&ROW($DZ81)),$DY81,$DY$2&ROW($DY81)),$DX81,$DX$2&ROW($DX81)),$DW81,$DW$2&ROW($DW81)),$DV81,$DV$2&ROW($DV81)),$DU81,$DU$2&ROW($DU81)),$DT81,$DT$2&ROW($DT81)),$DS81,$DS$2&ROW($DS81))))","v":"X=AS81*if(AU81=5,400,if(AU81=7.5,650,if(AU81=10,1400,if(AU81=15,1650,if(AU81=20,1850,if(AU81=25,2000,if(AU81=30,2300,0)))))))"},{"$f":"IF(O81=\"\",0,\"X=\"&SUBSTITUTE(SUBSTITUTE(SUBSTITUTE(SUBSTITUTE(SUBSTITUTE(SUBSTITUTE(SUBSTITUTE(SUBSTITUTE(SUBSTITUTE(SUBSTITUTE(SUBSTITUTE(SUBSTITUTE(O81,$ED81,$ED$2&ROW($ED81)),$EC81,$EC$2&ROW($EC81)),$EB81,$EB$2&ROW($EB81)),$EA81,$EA$2&ROW($EA81)),$DZ81,$DZ$2&ROW($DZ81)),$DY81,$DY$2&ROW($DY81)),$DX81,$DX$2&ROW($DX81)),$DW81,$DW$2&ROW($DW81)),$DV81,$DV$2&ROW($DV81)),$DU81,$DU$2&ROW($DU81)),$DT81,$DT$2&ROW($DT81)),$DS81,$DS$2&ROW($DS81)))","v":"X=AS81*AU81*2033"},{"$f":"IF(P81=\"\",0,\"X=\"&SUBSTITUTE(SUBSTITUTE(SUBSTITUTE(SUBSTITUTE(SUBSTITUTE(SUBSTITUTE(SUBSTITUTE(SUBSTITUTE(SUBSTITUTE(SUBSTITUTE(SUBSTITUTE(SUBSTITUTE(P81,$ED81,$ED$2&ROW($ED81)),$EC81,$EC$2&ROW($EC81)),$EB81,$EB$2&ROW($EB81)),$EA81,$EA$2&ROW($EA81)),$DZ81,$DZ$2&ROW($DZ81)),$DY81,$DY$2&ROW($DY81)),$DX81,$DX$2&ROW($DX81)),$DW81,$DW$2&ROW($DW81)),$DV81,$DV$2&ROW($DV81)),$DU81,$DU$2&ROW($DU81)),$DT81,$DT$2&ROW($DT81)),$DS81,$DS$2&ROW($DS81)))","v":0},{"$f":"IF(Q81=\"\",0,\"X=\"&SUBSTITUTE(SUBSTITUTE(SUBSTITUTE(SUBSTITUTE(SUBSTITUTE(SUBSTITUTE(SUBSTITUTE(SUBSTITUTE(SUBSTITUTE(SUBSTITUTE(SUBSTITUTE(SUBSTITUTE(Q81,$ED81,$ED$2&ROW($ED81)),$EC81,$EC$2&ROW($EC81)),$EB81,$EB$2&ROW($EB81)),$EA81,$EA$2&ROW($EA81)),$DZ81,$DZ$2&ROW($DZ81)),$DY81,$DY$2&ROW($DY81)),$DX81,$DX$2&ROW($DX81)),$DW81,$DW$2&ROW($DW81)),$DV81,$DV$2&ROW($DV81)),$DU81,$DU$2&ROW($DU81)),$DT81,$DT$2&ROW($DT81)),$DS81,$DS$2&ROW($DS81)))","v":0},{"$f":"IF(R81=\"\",0,\"X=\"&SUBSTITUTE(SUBSTITUTE(SUBSTITUTE(SUBSTITUTE(SUBSTITUTE(SUBSTITUTE(SUBSTITUTE(SUBSTITUTE(SUBSTITUTE(SUBSTITUTE(SUBSTITUTE(SUBSTITUTE(R81,$ED81,$ED$2&ROW($ED81)),$EC81,$EC$2&ROW($EC81)),$EB81,$EB$2&ROW($EB81)),$EA81,$EA$2&ROW($EA81)),$DZ81,$DZ$2&ROW($DZ81)),$DY81,$DY$2&ROW($DY81)),$DX81,$DX$2&ROW($DX81)),$DW81,$DW$2&ROW($DW81)),$DV81,$DV$2&ROW($DV81)),$DU81,$DU$2&ROW($DU81)),$DT81,$DT$2&ROW($DT81)),$DS81,$DS$2&ROW($DS81)))","v":"X=AS81*AU81*.288"},{"$f":"IF(S81=\"\",0,\"X=\"&SUBSTITUTE(SUBSTITUTE(SUBSTITUTE(SUBSTITUTE(SUBSTITUTE(SUBSTITUTE(SUBSTITUTE(SUBSTITUTE(SUBSTITUTE(SUBSTITUTE(SUBSTITUTE(SUBSTITUTE(S81,$ED81,$ED$2&ROW($ED81)),$EC81,$EC$2&ROW($EC81)),$EB81,$EB$2&ROW($EB81)),$EA81,$EA$2&ROW($EA81)),$DZ81,$DZ$2&ROW($DZ81)),$DY81,$DY$2&ROW($DY81)),$DX81,$DX$2&ROW($DX81)),$DW81,$DW$2&ROW($DW81)),$DV81,$DV$2&ROW($DV81)),$DU81,$DU$2&ROW($DU81)),$DT81,$DT$2&ROW($DT81)),$DS81,$DS$2&ROW($DS81)))","v":0},{"$f":"IF(T81=\"\",0,\"X=\"&SUBSTITUTE(SUBSTITUTE(SUBSTITUTE(SUBSTITUTE(SUBSTITUTE(SUBSTITUTE(SUBSTITUTE(SUBSTITUTE(SUBSTITUTE(SUBSTITUTE(SUBSTITUTE(SUBSTITUTE(T81,$ED81,$ED$2&ROW($ED81)),$EC81,$EC$2&ROW($EC81)),$EB81,$EB$2&ROW($EB81)),$EA81,$EA$2&ROW($EA81)),$DZ81,$DZ$2&ROW($DZ81)),$DY81,$DY$2&ROW($DY81)),$DX81,$DX$2&ROW($DX81)),$DW81,$DW$2&ROW($DW81)),$DV81,$DV$2&ROW($DV81)),$DU81,$DU$2&ROW($DU81)),$DT81,$DT$2&ROW($DT81)),$DS81,$DS$2&ROW($DS81)))","v":0},{"$f":"IF(U81=\"\",0,\"X=\"&SUBSTITUTE(SUBSTITUTE(SUBSTITUTE(SUBSTITUTE(SUBSTITUTE(SUBSTITUTE(SUBSTITUTE(SUBSTITUTE(SUBSTITUTE(SUBSTITUTE(SUBSTITUTE(SUBSTITUTE(U81,$ED81,$ED$2&ROW($ED81)),$EC81,$EC$2&ROW($EC81)),$EB81,$EB$2&ROW($EB81)),$EA81,$EA$2&ROW($EA81)),$DZ81,$DZ$2&ROW($DZ81)),$DY81,$DY$2&ROW($DY81)),$DX81,$DX$2&ROW($DX81)),$DW81,$DW$2&ROW($DW81)),$DV81,$DV$2&ROW($DV81)),$DU81,$DU$2&ROW($DU81)),$DT81,$DT$2&ROW($DT81)),$DS81,$DS$2&ROW($DS81)))","v":"X=AS81*AF81*AU81*.288"},{"$f":"IF(V81=\"\",0,\"X=\"&SUBSTITUTE(SUBSTITUTE(SUBSTITUTE(SUBSTITUTE(SUBSTITUTE(SUBSTITUTE(SUBSTITUTE(SUBSTITUTE(SUBSTITUTE(SUBSTITUTE(SUBSTITUTE(SUBSTITUTE(V81,$ED81,$ED$2&ROW($ED81)),$EC81,$EC$2&ROW($EC81)),$EB81,$EB$2&ROW($EB81)),$EA81,$EA$2&ROW($EA81)),$DZ81,$DZ$2&ROW($DZ81)),$DY81,$DY$2&ROW($DY81)),$DX81,$DX$2&ROW($DX81)),$DW81,$DW$2&ROW($DW81)),$DV81,$DV$2&ROW($DV81)),$DU81,$DU$2&ROW($DU81)),$DT81,$DT$2&ROW($DT81)),$DS81,$DS$2&ROW($DS81)))","v":"X=AS81*AG81*AU81*.288"},{"$f":"IF(W81=\"\",0,\"X=\"&SUBSTITUTE(SUBSTITUTE(SUBSTITUTE(SUBSTITUTE(SUBSTITUTE(SUBSTITUTE(SUBSTITUTE(SUBSTITUTE(SUBSTITUTE(SUBSTITUTE(SUBSTITUTE(SUBSTITUTE(W81,$ED81,$ED$2&ROW($ED81)),$EC81,$EC$2&ROW($EC81)),$EB81,$EB$2&ROW($EB81)),$EA81,$EA$2&ROW($EA81)),$DZ81,$DZ$2&ROW($DZ81)),$DY81,$DY$2&ROW($DY81)),$DX81,$DX$2&ROW($DX81)),$DW81,$DW$2&ROW($DW81)),$DV81,$DV$2&ROW($DV81)),$DU81,$DU$2&ROW($DU81)),$DT81,$DT$2&ROW($DT81)),$DS81,$DS$2&ROW($DS81)))","v":0},{"$f":"IF(X81=\"\",0,\"X=\"&SUBSTITUTE(SUBSTITUTE(SUBSTITUTE(SUBSTITUTE(SUBSTITUTE(SUBSTITUTE(SUBSTITUTE(SUBSTITUTE(SUBSTITUTE(SUBSTITUTE(SUBSTITUTE(SUBSTITUTE(X81,$ED81,$ED$2&ROW($ED81)),$EC81,$EC$2&ROW($EC81)),$EB81,$EB$2&ROW($EB81)),$EA81,$EA$2&ROW($EA81)),$DZ81,$DZ$2&ROW($DZ81)),$DY81,$DY$2&ROW($DY81)),$DX81,$DX$2&ROW($DX81)),$DW81,$DW$2&ROW($DW81)),$DV81,$DV$2&ROW($DV81)),$DU81,$DU$2&ROW($DU81)),$DT81,$DT$2&ROW($DT81)),$DS81,$DS$2&ROW($DS81)))","v":0},{"$f":"IF(Y81=\"\",0,\"X=\"&SUBSTITUTE(SUBSTITUTE(SUBSTITUTE(SUBSTITUTE(SUBSTITUTE(SUBSTITUTE(SUBSTITUTE(SUBSTITUTE(SUBSTITUTE(SUBSTITUTE(SUBSTITUTE(SUBSTITUTE(Y81,$ED81,$ED$2&ROW($ED81)),$EC81,$EC$2&ROW($EC81)),$EB81,$EB$2&ROW($EB81)),$EA81,$EA$2&ROW($EA81)),$DZ81,$DZ$2&ROW($DZ81)),$DY81,$DY$2&ROW($DY81)),$DX81,$DX$2&ROW($DX81)),$DW81,$DW$2&ROW($DW81)),$DV81,$DV$2&ROW($DV81)),$DU81,$DU$2&ROW($DU81)),$DT81,$DT$2&ROW($DT81)),$DS81,$DS$2&ROW($DS81)))","v":0},{"$f":"IF(Z81=\"\",0,\"X=\"&SUBSTITUTE(SUBSTITUTE(SUBSTITUTE(SUBSTITUTE(SUBSTITUTE(SUBSTITUTE(SUBSTITUTE(SUBSTITUTE(SUBSTITUTE(SUBSTITUTE(SUBSTITUTE(SUBSTITUTE(Z81,$ED81,$ED$2&ROW($ED81)),$EC81,$EC$2&ROW($EC81)),$EB81,$EB$2&ROW($EB81)),$EA81,$EA$2&ROW($EA81)),$DZ81,$DZ$2&ROW($DZ81)),$DY81,$DY$2&ROW($DY81)),$DX81,$DX$2&ROW($DX81)),$DW81,$DW$2&ROW($DW81)),$DV81,$DV$2&ROW($DV81)),$DU81,$DU$2&ROW($DU81)),$DT81,$DT$2&ROW($DT81)),$DS81,$DS$2&ROW($DS81)))","v":0},{"$f":"IF(AA81=\"\",0,\"X=\"&SUBSTITUTE(SUBSTITUTE(SUBSTITUTE(SUBSTITUTE(SUBSTITUTE(SUBSTITUTE(SUBSTITUTE(SUBSTITUTE(SUBSTITUTE(SUBSTITUTE(SUBSTITUTE(SUBSTITUTE(AA81,$ED81,$ED$2&ROW($ED81)),$EC81,$EC$2&ROW($EC81)),$EB81,$EB$2&ROW($EB81)),$EA81,$EA$2&ROW($EA81)),$DZ81,$DZ$2&ROW($DZ81)),$DY81,$DY$2&ROW($DY81)),$DX81,$DX$2&ROW($DX81)),$DW81,$DW$2&ROW($DW81)),$DV81,$DV$2&ROW($DV81)),$DU81,$DU$2&ROW($DU81)),$DT81,$DT$2&ROW($DT81)),$DS81,$DS$2&ROW($DS81)))","v":0},{"$f":"IF(AB81=\"\",0,\"X=\"&SUBSTITUTE(SUBSTITUTE(SUBSTITUTE(SUBSTITUTE(SUBSTITUTE(SUBSTITUTE(SUBSTITUTE(SUBSTITUTE(SUBSTITUTE(SUBSTITUTE(SUBSTITUTE(SUBSTITUTE(AB81,$ED81,$ED$2&ROW($ED81)),$EC81,$EC$2&ROW($EC81)),$EB81,$EB$2&ROW($EB81)),$EA81,$EA$2&ROW($EA81)),$DZ81,$DZ$2&ROW($DZ81)),$DY81,$DY$2&ROW($DY81)),$DX81,$DX$2&ROW($DX81)),$DW81,$DW$2&ROW($DW81)),$DV81,$DV$2&ROW($DV81)),$DU81,$DU$2&ROW($DU81)),$DT81,$DT$2&ROW($DT81)),$DS81,$DS$2&ROW($DS81)))","v":0},null,null,"{Factor:WinterCF}","{Factor:SummerCF}",{"$f":"IFERROR(INDEX($EG81:$IV81,MATCH(0,COUNTIF($DR81:DT81,$EG81:$IV81),0)),\"\")","v":"{Measure:Quantity}"},{"$f":"IFERROR(INDEX($EG81:$IV81,MATCH(0,COUNTIF($DR81:DU81,$EG81:$IV81),0)),\"\")","v":"{Motor HP}"},{"$f":"IFERROR(INDEX($EG81:$IV81,MATCH(0,COUNTIF($DR81:DV81,$EG81:$IV81),0)),\"\")","v":""},{"$f":"IFERROR(INDEX($EG81:$IV81,MATCH(0,COUNTIF($DR81:DW81,$EG81:$IV81),0)),\"\")","v":""},{"$f":"IFERROR(INDEX($EG81:$IV81,MATCH(0,COUNTIF($DR81:DX81,$EG81:$IV81),0)),\"\")","v":""},{"$f":"IFERROR(INDEX($EG81:$IV81,MATCH(0,COUNTIF($DR81:DY81,$EG81:$IV81),0)),\"\")","v":""},{"$f":"IFERROR(INDEX($EG81:$IV81,MATCH(0,COUNTIF($DR81:DZ81,$EG81:$IV81),0)),\"\")","v":""},{"$f":"IFERROR(INDEX($EG81:$IV81,MATCH(0,COUNTIF($DR81:EA81,$EG81:$IV81),0)),\"\")","v":""},{"$f":"IFERROR(INDEX($EG81:$IV81,MATCH(0,COUNTIF($DR81:EB81,$EG81:$IV81),0)),\"\")","v":""},{"$f":"IFERROR(INDEX($EG81:$IV81,MATCH(0,COUNTIF($DR81:EC81,$EG81:$IV81),0)),\"\")","v":""},null,null,{"$f":"IFERROR(MID($G81,FIND(CHAR(160),SUBSTITUTE($G81,\"{\",CHAR(160),EG$1)),FIND(CHAR(160),SUBSTITUTE($G81,\"}\",CHAR(160),EG$1))-FIND(CHAR(160),SUBSTITUTE($G81,\"{\",CHAR(160),EG$1))+1),\"\")","v":"{Measure:Quantity}"},{"$f":"IFERROR(MID($G81,FIND(CHAR(160),SUBSTITUTE($G81,\"{\",CHAR(160),EH$1)),FIND(CHAR(160),SUBSTITUTE($G81,\"}\",CHAR(160),EH$1))-FIND(CHAR(160),SUBSTITUTE($G81,\"{\",CHAR(160),EH$1))+1),\"\")","v":"{Motor HP}"},{"$f":"IFERROR(MID($G81,FIND(CHAR(160),SUBSTITUTE($G81,\"{\",CHAR(160),EI$1)),FIND(CHAR(160),SUBSTITUTE($G81,\"}\",CHAR(160),EI$1))-FIND(CHAR(160),SUBSTITUTE($G81,\"{\",CHAR(160),EI$1))+1),\"\")","v":"{Motor HP}"},{"$f":"IFERROR(MID($G81,FIND(CHAR(160),SUBSTITUTE($G81,\"{\",CHAR(160),EJ$1)),FIND(CHAR(160),SUBSTITUTE($G81,\"}\",CHAR(160),EJ$1))-FIND(CHAR(160),SUBSTITUTE($G81,\"{\",CHAR(160),EJ$1))+1),\"\")","v":"{Motor HP}"},{"$f":"IFERROR(MID($G81,FIND(CHAR(160),SUBSTITUTE($G81,\"{\",CHAR(160),EK$1)),FIND(CHAR(160),SUBSTITUTE($G81,\"}\",CHAR(160),EK$1))-FIND(CHAR(160),SUBSTITUTE($G81,\"{\",CHAR(160),EK$1))+1),\"\")","v":"{Motor HP}"},{"$f":"IFERROR(MID($G81,FIND(CHAR(160),SUBSTITUTE($G81,\"{\",CHAR(160),EL$1)),FIND(CHAR(160),SUBSTITUTE($G81,\"}\",CHAR(160),EL$1))-FIND(CHAR(160),SUBSTITUTE($G81,\"{\",CHAR(160),EL$1))+1),\"\")","v":"{Motor HP}"},{"$f":"IFERROR(MID($G81,FIND(CHAR(160),SUBSTITUTE($G81,\"{\",CHAR(160),EM$1)),FIND(CHAR(160),SUBSTITUTE($G81,\"}\",CHAR(160),EM$1))-FIND(CHAR(160),SUBSTITUTE($G81,\"{\",CHAR(160),EM$1))+1),\"\")","v":"{Motor HP}"},{"$f":"IFERROR(MID($G81,FIND(CHAR(160),SUBSTITUTE($G81,\"{\",CHAR(160),EN$1)),FIND(CHAR(160),SUBSTITUTE($G81,\"}\",CHAR(160),EN$1))-FIND(CHAR(160),SUBSTITUTE($G81,\"{\",CHAR(160),EN$1))+1),\"\")","v":"{Motor HP}"},{"$f":"IFERROR(MID($G81,FIND(CHAR(160),SUBSTITUTE($G81,\"{\",CHAR(160),EO$1)),FIND(CHAR(160),SUBSTITUTE($G81,\"}\",CHAR(160),EO$1))-FIND(CHAR(160),SUBSTITUTE($G81,\"{\",CHAR(160),EO$1))+1),\"\")","v":""},{"$f":"IFERROR(MID($G81,FIND(CHAR(160),SUBSTITUTE($G81,\"{\",CHAR(160),EP$1)),FIND(CHAR(160),SUBSTITUTE($G81,\"}\",CHAR(160),EP$1))-FIND(CHAR(160),SUBSTITUTE($G81,\"{\",CHAR(160),EP$1))+1),\"\")","v":""},{"$f":"IFERROR(MID($J81,FIND(CHAR(160),SUBSTITUTE($J81,\"{\",CHAR(160),EQ$1)),FIND(CHAR(160),SUBSTITUTE($J81,\"}\",CHAR(160),EQ$1))-FIND(CHAR(160),SUBSTITUTE($J81,\"{\",CHAR(160),EQ$1))+1),\"\")","v":"{Measure:Quantity}"},{"$f":"IFERROR(MID($J81,FIND(CHAR(160),SUBSTITUTE($J81,\"{\",CHAR(160),ER$1)),FIND(CHAR(160),SUBSTITUTE($J81,\"}\",CHAR(160),ER$1))-FIND(CHAR(160),SUBSTITUTE($J81,\"{\",CHAR(160),ER$1))+1),\"\")","v":"{Motor HP}"},{"$f":"IFERROR(MID($J81,FIND(CHAR(160),SUBSTITUTE($J81,\"{\",CHAR(160),ES$1)),FIND(CHAR(160),SUBSTITUTE($J81,\"}\",CHAR(160),ES$1))-FIND(CHAR(160),SUBSTITUTE($J81,\"{\",CHAR(160),ES$1))+1),\"\")","v":"{Motor HP}"},{"$f":"IFERROR(MID($J81,FIND(CHAR(160),SUBSTITUTE($J81,\"{\",CHAR(160),ET$1)),FIND(CHAR(160),SUBSTITUTE($J81,\"}\",CHAR(160),ET$1))-FIND(CHAR(160),SUBSTITUTE($J81,\"{\",CHAR(160),ET$1))+1),\"\")","v":"{Motor HP}"},{"$f":"IFERROR(MID($J81,FIND(CHAR(160),SUBSTITUTE($J81,\"{\",CHAR(160),EU$1)),FIND(CHAR(160),SUBSTITUTE($J81,\"}\",CHAR(160),EU$1))-FIND(CHAR(160),SUBSTITUTE($J81,\"{\",CHAR(160),EU$1))+1),\"\")","v":"{Motor HP}"},{"$f":"IFERROR(MID($J81,FIND(CHAR(160),SUBSTITUTE($J81,\"{\",CHAR(160),EV$1)),FIND(CHAR(160),SUBSTITUTE($J81,\"}\",CHAR(160),EV$1))-FIND(CHAR(160),SUBSTITUTE($J81,\"{\",CHAR(160),EV$1))+1),\"\")","v":"{Motor HP}"},{"$f":"IFERROR(MID($J81,FIND(CHAR(160),SUBSTITUTE($J81,\"{\",CHAR(160),EW$1)),FIND(CHAR(160),SUBSTITUTE($J81,\"}\",CHAR(160),EW$1))-FIND(CHAR(160),SUBSTITUTE($J81,\"{\",CHAR(160),EW$1))+1),\"\")","v":"{Motor HP}"},{"$f":"IFERROR(MID($J81,FIND(CHAR(160),SUBSTITUTE($J81,\"{\",CHAR(160),EX$1)),FIND(CHAR(160),SUBSTITUTE($J81,\"}\",CHAR(160),EX$1))-FIND(CHAR(160),SUBSTITUTE($J81,\"{\",CHAR(160),EX$1))+1),\"\")","v":"{Motor HP}"},{"$f":"IFERROR(MID($J81,FIND(CHAR(160),SUBSTITUTE($J81,\"{\",CHAR(160),EY$1)),FIND(CHAR(160),SUBSTITUTE($J81,\"}\",CHAR(160),EY$1))-FIND(CHAR(160),SUBSTITUTE($J81,\"{\",CHAR(160),EY$1))+1),\"\")","v":""},{"$f":"IFERROR(MID($J81,FIND(CHAR(160),SUBSTITUTE($J81,\"{\",CHAR(160),EZ$1)),FIND(CHAR(160),SUBSTITUTE($J81,\"}\",CHAR(160),EZ$1))-FIND(CHAR(160),SUBSTITUTE($J81,\"{\",CHAR(160),EZ$1))+1),\"\")","v":""},{"$f":"IFERROR(MID($J81,FIND(CHAR(160),SUBSTITUTE($J81,\"{\",CHAR(160),FA$1)),FIND(CHAR(160),SUBSTITUTE($J81,\"}\",CHAR(160),FA$1))-FIND(CHAR(160),SUBSTITUTE($J81,\"{\",CHAR(160),FA$1))+1),\"\")","v":"{Measure:Quantity}"},{"$f":"IFERROR(MID($J81,FIND(CHAR(160),SUBSTITUTE($J81,\"{\",CHAR(160),FB$1)),FIND(CHAR(160),SUBSTITUTE($J81,\"}\",CHAR(160),FB$1))-FIND(CHAR(160),SUBSTITUTE($J81,\"{\",CHAR(160),FB$1))+1),\"\")","v":"{Motor HP}"},{"$f":"IFERROR(MID($O81,FIND(CHAR(160),SUBSTITUTE($O81,\"{\",CHAR(160),FC$1)),FIND(CHAR(160),SUBSTITUTE($O81,\"}\",CHAR(160),FC$1))-FIND(CHAR(160),SUBSTITUTE($O81,\"{\",CHAR(160),FC$1))+1),\"\")","v":""},{"$f":"IFERROR(MID($O81,FIND(CHAR(160),SUBSTITUTE($O81,\"{\",CHAR(160),FD$1)),FIND(CHAR(160),SUBSTITUTE($O81,\"}\",CHAR(160),FD$1))-FIND(CHAR(160),SUBSTITUTE($O81,\"{\",CHAR(160),FD$1))+1),\"\")","v":""},{"$f":"IFERROR(MID($O81,FIND(CHAR(160),SUBSTITUTE($O81,\"{\",CHAR(160),FE$1)),FIND(CHAR(160),SUBSTITUTE($O81,\"}\",CHAR(160),FE$1))-FIND(CHAR(160),SUBSTITUTE($O81,\"{\",CHAR(160),FE$1))+1),\"\")","v":""},{"$f":"IFERROR(MID($O81,FIND(CHAR(160),SUBSTITUTE($O81,\"{\",CHAR(160),FF$1)),FIND(CHAR(160),SUBSTITUTE($O81,\"}\",CHAR(160),FF$1))-FIND(CHAR(160),SUBSTITUTE($O81,\"{\",CHAR(160),FF$1))+1),\"\")","v":""},{"$f":"IFERROR(MID($O81,FIND(CHAR(160),SUBSTITUTE($O81,\"{\",CHAR(160),FG$1)),FIND(CHAR(160),SUBSTITUTE($O81,\"}\",CHAR(160),FG$1))-FIND(CHAR(160),SUBSTITUTE($O81,\"{\",CHAR(160),FG$1))+1),\"\")","v":""},{"$f":"IFERROR(MID($O81,FIND(CHAR(160),SUBSTITUTE($O81,\"{\",CHAR(160),FH$1)),FIND(CHAR(160),SUBSTITUTE($O81,\"}\",CHAR(160),FH$1))-FIND(CHAR(160),SUBSTITUTE($O81,\"{\",CHAR(160),FH$1))+1),\"\")","v":""},{"$f":"IFERROR(MID($O81,FIND(CHAR(160),SUBSTITUTE($O81,\"{\",CHAR(160),FI$1)),FIND(CHAR(160),SUBSTITUTE($O81,\"}\",CHAR(160),FI$1))-FIND(CHAR(160),SUBSTITUTE($O81,\"{\",CHAR(160),FI$1))+1),\"\")","v":""},{"$f":"IFERROR(MID($O81,FIND(CHAR(160),SUBSTITUTE($O81,\"{\",CHAR(160),FJ$1)),FIND(CHAR(160),SUBSTITUTE($O81,\"}\",CHAR(160),FJ$1))-FIND(CHAR(160),SUBSTITUTE($O81,\"{\",CHAR(160),FJ$1))+1),\"\")","v":""},{"$f":"IFERROR(MID($O81,FIND(CHAR(160),SUBSTITUTE($O81,\"{\",CHAR(160),FK$1)),FIND(CHAR(160),SUBSTITUTE($O81,\"}\",CHAR(160),FK$1))-FIND(CHAR(160),SUBSTITUTE($O81,\"{\",CHAR(160),FK$1))+1),\"\")","v":"{Measure:Quantity}"},{"$f":"IFERROR(MID($O81,FIND(CHAR(160),SUBSTITUTE($O81,\"{\",CHAR(160),FL$1)),FIND(CHAR(160),SUBSTITUTE($O81,\"}\",CHAR(160),FL$1))-FIND(CHAR(160),SUBSTITUTE($O81,\"{\",CHAR(160),FL$1))+1),\"\")","v":"{Motor HP}"},{"$f":"IFERROR(MID($R81,FIND(CHAR(160),SUBSTITUTE($R81,\"{\",CHAR(160),FM$1)),FIND(CHAR(160),SUBSTITUTE($R81,\"}\",CHAR(160),FM$1))-FIND(CHAR(160),SUBSTITUTE($R81,\"{\",CHAR(160),FM$1))+1),\"\")","v":""},{"$f":"IFERROR(MID($R81,FIND(CHAR(160),SUBSTITUTE($R81,\"{\",CHAR(160),FN$1)),FIND(CHAR(160),SUBSTITUTE($R81,\"}\",CHAR(160),FN$1))-FIND(CHAR(160),SUBSTITUTE($R81,\"{\",CHAR(160),FN$1))+1),\"\")","v":""},{"$f":"IFERROR(MID($R81,FIND(CHAR(160),SUBSTITUTE($R81,\"{\",CHAR(160),FO$1)),FIND(CHAR(160),SUBSTITUTE($R81,\"}\",CHAR(160),FO$1))-FIND(CHAR(160),SUBSTITUTE($R81,\"{\",CHAR(160),FO$1))+1),\"\")","v":""},{"$f":"IFERROR(MID($R81,FIND(CHAR(160),SUBSTITUTE($R81,\"{\",CHAR(160),FP$1)),FIND(CHAR(160),SUBSTITUTE($R81,\"}\",CHAR(160),FP$1))-FIND(CHAR(160),SUBSTITUTE($R81,\"{\",CHAR(160),FP$1))+1),\"\")","v":""},{"$f":"IFERROR(MID($R81,FIND(CHAR(160),SUBSTITUTE($R81,\"{\",CHAR(160),FQ$1)),FIND(CHAR(160),SUBSTITUTE($R81,\"}\",CHAR(160),FQ$1))-FIND(CHAR(160),SUBSTITUTE($R81,\"{\",CHAR(160),FQ$1))+1),\"\")","v":""},{"$f":"IFERROR(MID($R81,FIND(CHAR(160),SUBSTITUTE($R81,\"{\",CHAR(160),FR$1)),FIND(CHAR(160),SUBSTITUTE($R81,\"}\",CHAR(160),FR$1))-FIND(CHAR(160),SUBSTITUTE($R81,\"{\",CHAR(160),FR$1))+1),\"\")","v":""},{"$f":"IFERROR(MID($R81,FIND(CHAR(160),SUBSTITUTE($R81,\"{\",CHAR(160),FS$1)),FIND(CHAR(160),SUBSTITUTE($R81,\"}\",CHAR(160),FS$1))-FIND(CHAR(160),SUBSTITUTE($R81,\"{\",CHAR(160),FS$1))+1),\"\")","v":""},{"$f":"IFERROR(MID($R81,FIND(CHAR(160),SUBSTITUTE($R81,\"{\",CHAR(160),FT$1)),FIND(CHAR(160),SUBSTITUTE($R81,\"}\",CHAR(160),FT$1))-FIND(CHAR(160),SUBSTITUTE($R81,\"{\",CHAR(160),FT$1))+1),\"\")","v":""},{"$f":"IFERROR(MID($R81,FIND(CHAR(160),SUBSTITUTE($R81,\"{\",CHAR(160),FU$1)),FIND(CHAR(160),SUBSTITUTE($R81,\"}\",CHAR(160),FU$1))-FIND(CHAR(160),SUBSTITUTE($R81,\"{\",CHAR(160),FU$1))+1),\"\")","v":"{Measure:Quantity}"},{"$f":"IFERROR(MID($R81,FIND(CHAR(160),SUBSTITUTE($R81,\"{\",CHAR(160),FV$1)),FIND(CHAR(160),SUBSTITUTE($R81,\"}\",CHAR(160),FV$1))-FIND(CHAR(160),SUBSTITUTE($R81,\"{\",CHAR(160),FV$1))+1),\"\")","v":"{Motor HP}"},{"$f":"IFERROR(MID($U81,FIND(CHAR(160),SUBSTITUTE($U81,\"{\",CHAR(160),FW$1)),FIND(CHAR(160),SUBSTITUTE($U81,\"}\",CHAR(160),FW$1))-FIND(CHAR(160),SUBSTITUTE($U81,\"{\",CHAR(160),FW$1))+1),\"\")","v":"{Motor HP}"},{"$f":"IFERROR(MID($U81,FIND(CHAR(160),SUBSTITUTE($U81,\"{\",CHAR(160),FX$1)),FIND(CHAR(160),SUBSTITUTE($U81,\"}\",CHAR(160),FX$1))-FIND(CHAR(160),SUBSTITUTE($U81,\"{\",CHAR(160),FX$1))+1),\"\")","v":""},{"$f":"IFERROR(MID($U81,FIND(CHAR(160),SUBSTITUTE($U81,\"{\",CHAR(160),FY$1)),FIND(CHAR(160),SUBSTITUTE($U81,\"}\",CHAR(160),FY$1))-FIND(CHAR(160),SUBSTITUTE($U81,\"{\",CHAR(160),FY$1))+1),\"\")","v":""},{"$f":"IFERROR(MID($U81,FIND(CHAR(160),SUBSTITUTE($U81,\"{\",CHAR(160),FZ$1)),FIND(CHAR(160),SUBSTITUTE($U81,\"}\",CHAR(160),FZ$1))-FIND(CHAR(160),SUBSTITUTE($U81,\"{\",CHAR(160),FZ$1))+1),\"\")","v":""},{"$f":"IFERROR(MID($U81,FIND(CHAR(160),SUBSTITUTE($U81,\"{\",CHAR(160),GA$1)),FIND(CHAR(160),SUBSTITUTE($U81,\"}\",CHAR(160),GA$1))-FIND(CHAR(160),SUBSTITUTE($U81,\"{\",CHAR(160),GA$1))+1),\"\")","v":""},{"$f":"IFERROR(MID($U81,FIND(CHAR(160),SUBSTITUTE($U81,\"{\",CHAR(160),GB$1)),FIND(CHAR(160),SUBSTITUTE($U81,\"}\",CHAR(160),GB$1))-FIND(CHAR(160),SUBSTITUTE($U81,\"{\",CHAR(160),GB$1))+1),\"\")","v":""},{"$f":"IFERROR(MID($U81,FIND(CHAR(160),SUBSTITUTE($U81,\"{\",CHAR(160),GC$1)),FIND(CHAR(160),SUBSTITUTE($U81,\"}\",CHAR(160),GC$1))-FIND(CHAR(160),SUBSTITUTE($U81,\"{\",CHAR(160),GC$1))+1),\"\")","v":""},{"$f":"IFERROR(MID($U81,FIND(CHAR(160),SUBSTITUTE($U81,\"{\",CHAR(160),GD$1)),FIND(CHAR(160),SUBSTITUTE($U81,\"}\",CHAR(160),GD$1))-FIND(CHAR(160),SUBSTITUTE($U81,\"{\",CHAR(160),GD$1))+1),\"\")","v":""},{"$f":"IFERROR(MID($U81,FIND(CHAR(160),SUBSTITUTE($U81,\"{\",CHAR(160),GE$1)),FIND(CHAR(160),SUBSTITUTE($U81,\"}\",CHAR(160),GE$1))-FIND(CHAR(160),SUBSTITUTE($U81,\"{\",CHAR(160),GE$1))+1),\"\")","v":"{Measure:Quantity}"},{"$f":"IFERROR(MID($U81,FIND(CHAR(160),SUBSTITUTE($U81,\"{\",CHAR(160),GF$1)),FIND(CHAR(160),SUBSTITUTE($U81,\"}\",CHAR(160),GF$1))-FIND(CHAR(160),SUBSTITUTE($U81,\"{\",CHAR(160),GF$1))+1),\"\")","v":"{Factor:WinterCF}"},{"$f":"IFERROR(MID($V81,FIND(CHAR(160),SUBSTITUTE($V81,\"{\",CHAR(160),GG$1)),FIND(CHAR(160),SUBSTITUTE($V81,\"}\",CHAR(160),GG$1))-FIND(CHAR(160),SUBSTITUTE($V81,\"{\",CHAR(160),GG$1))+1),\"\")","v":"{Motor HP}"},{"$f":"IFERROR(MID($V81,FIND(CHAR(160),SUBSTITUTE($V81,\"{\",CHAR(160),GH$1)),FIND(CHAR(160),SUBSTITUTE($V81,\"}\",CHAR(160),GH$1))-FIND(CHAR(160),SUBSTITUTE($V81,\"{\",CHAR(160),GH$1))+1),\"\")","v":""},{"$f":"IFERROR(MID($V81,FIND(CHAR(160),SUBSTITUTE($V81,\"{\",CHAR(160),GI$1)),FIND(CHAR(160),SUBSTITUTE($V81,\"}\",CHAR(160),GI$1))-FIND(CHAR(160),SUBSTITUTE($V81,\"{\",CHAR(160),GI$1))+1),\"\")","v":""},{"$f":"IFERROR(MID($V81,FIND(CHAR(160),SUBSTITUTE($V81,\"{\",CHAR(160),GJ$1)),FIND(CHAR(160),SUBSTITUTE($V81,\"}\",CHAR(160),GJ$1))-FIND(CHAR(160),SUBSTITUTE($V81,\"{\",CHAR(160),GJ$1))+1),\"\")","v":""},{"$f":"IFERROR(MID($V81,FIND(CHAR(160),SUBSTITUTE($V81,\"{\",CHAR(160),GK$1)),FIND(CHAR(160),SUBSTITUTE($V81,\"}\",CHAR(160),GK$1))-FIND(CHAR(160),SUBSTITUTE($V81,\"{\",CHAR(160),GK$1))+1),\"\")","v":""},{"$f":"IFERROR(MID($V81,FIND(CHAR(160),SUBSTITUTE($V81,\"{\",CHAR(160),GL$1)),FIND(CHAR(160),SUBSTITUTE($V81,\"}\",CHAR(160),GL$1))-FIND(CHAR(160),SUBSTITUTE($V81,\"{\",CHAR(160),GL$1))+1),\"\")","v":""},{"$f":"IFERROR(MID($V81,FIND(CHAR(160),SUBSTITUTE($V81,\"{\",CHAR(160),GM$1)),FIND(CHAR(160),SUBSTITUTE($V81,\"}\",CHAR(160),GM$1))-FIND(CHAR(160),SUBSTITUTE($V81,\"{\",CHAR(160),GM$1))+1),\"\")","v":""},{"$f":"IFERROR(MID($V81,FIND(CHAR(160),SUBSTITUTE($V81,\"{\",CHAR(160),GN$1)),FIND(CHAR(160),SUBSTITUTE($V81,\"}\",CHAR(160),GN$1))-FIND(CHAR(160),SUBSTITUTE($V81,\"{\",CHAR(160),GN$1))+1),\"\")","v":""},{"$f":"IFERROR(MID($V81,FIND(CHAR(160),SUBSTITUTE($V81,\"{\",CHAR(160),GO$1)),FIND(CHAR(160),SUBSTITUTE($V81,\"}\",CHAR(160),GO$1))-FIND(CHAR(160),SUBSTITUTE($V81,\"{\",CHAR(160),GO$1))+1),\"\")","v":"{Measure:Quantity}"},{"$f":"IFERROR(MID($V81,FIND(CHAR(160),SUBSTITUTE($V81,\"{\",CHAR(160),GP$1)),FIND(CHAR(160),SUBSTITUTE($V81,\"}\",CHAR(160),GP$1))-FIND(CHAR(160),SUBSTITUTE($V81,\"{\",CHAR(160),GP$1))+1),\"\")","v":"{Factor:SummerCF}"},{"$f":"IFERROR(MID($W81,FIND(CHAR(160),SUBSTITUTE($W81,\"{\",CHAR(160),GQ$1)),FIND(CHAR(160),SUBSTITUTE($W81,\"}\",CHAR(160),GQ$1))-FIND(CHAR(160),SUBSTITUTE($W81,\"{\",CHAR(160),GQ$1))+1),\"\")","v":""},{"$f":"IFERROR(MID($W81,FIND(CHAR(160),SUBSTITUTE($W81,\"{\",CHAR(160),GR$1)),FIND(CHAR(160),SUBSTITUTE($W81,\"}\",CHAR(160),GR$1))-FIND(CHAR(160),SUBSTITUTE($W81,\"{\",CHAR(160),GR$1))+1),\"\")","v":""},{"$f":"IFERROR(MID($W81,FIND(CHAR(160),SUBSTITUTE($W81,\"{\",CHAR(160),GS$1)),FIND(CHAR(160),SUBSTITUTE($W81,\"}\",CHAR(160),GS$1))-FIND(CHAR(160),SUBSTITUTE($W81,\"{\",CHAR(160),GS$1))+1),\"\")","v":""},{"$f":"IFERROR(MID($W81,FIND(CHAR(160),SUBSTITUTE($W81,\"{\",CHAR(160),GT$1)),FIND(CHAR(160),SUBSTITUTE($W81,\"}\",CHAR(160),GT$1))-FIND(CHAR(160),SUBSTITUTE($W81,\"{\",CHAR(160),GT$1))+1),\"\")","v":""},{"$f":"IFERROR(MID($W81,FIND(CHAR(160),SUBSTITUTE($W81,\"{\",CHAR(160),GU$1)),FIND(CHAR(160),SUBSTITUTE($W81,\"}\",CHAR(160),GU$1))-FIND(CHAR(160),SUBSTITUTE($W81,\"{\",CHAR(160),GU$1))+1),\"\")","v":""},{"$f":"IFERROR(MID($W81,FIND(CHAR(160),SUBSTITUTE($W81,\"{\",CHAR(160),GV$1)),FIND(CHAR(160),SUBSTITUTE($W81,\"}\",CHAR(160),GV$1))-FIND(CHAR(160),SUBSTITUTE($W81,\"{\",CHAR(160),GV$1))+1),\"\")","v":""},{"$f":"IFERROR(MID($W81,FIND(CHAR(160),SUBSTITUTE($W81,\"{\",CHAR(160),GW$1)),FIND(CHAR(160),SUBSTITUTE($W81,\"}\",CHAR(160),GW$1))-FIND(CHAR(160),SUBSTITUTE($W81,\"{\",CHAR(160),GW$1))+1),\"\")","v":""},{"$f":"IFERROR(MID($W81,FIND(CHAR(160),SUBSTITUTE($W81,\"{\",CHAR(160),GX$1)),FIND(CHAR(160),SUBSTITUTE($W81,\"}\",CHAR(160),GX$1))-FIND(CHAR(160),SUBSTITUTE($W81,\"{\",CHAR(160),GX$1))+1),\"\")","v":""},{"$f":"IFERROR(MID($W81,FIND(CHAR(160),SUBSTITUTE($W81,\"{\",CHAR(160),GY$1)),FIND(CHAR(160),SUBSTITUTE($W81,\"}\",CHAR(160),GY$1))-FIND(CHAR(160),SUBSTITUTE($W81,\"{\",CHAR(160),GY$1))+1),\"\")","v":""},{"$f":"IFERROR(MID($W81,FIND(CHAR(160),SUBSTITUTE($W81,\"{\",CHAR(160),GZ$1)),FIND(CHAR(160),SUBSTITUTE($W81,\"}\",CHAR(160),GZ$1))-FIND(CHAR(160),SUBSTITUTE($W81,\"{\",CHAR(160),GZ$1))+1),\"\")","v":""},{"$f":"IFERROR(MID($X81,FIND(CHAR(160),SUBSTITUTE($X81,\"{\",CHAR(160),HA$1)),FIND(CHAR(160),SUBSTITUTE($X81,\"}\",CHAR(160),HA$1))-FIND(CHAR(160),SUBSTITUTE($X81,\"{\",CHAR(160),HA$1))+1),\"\")","v":""},{"$f":"IFERROR(MID($X81,FIND(CHAR(160),SUBSTITUTE($X81,\"{\",CHAR(160),HB$1)),FIND(CHAR(160),SUBSTITUTE($X81,\"}\",CHAR(160),HB$1))-FIND(CHAR(160),SUBSTITUTE($X81,\"{\",CHAR(160),HB$1))+1),\"\")","v":""},{"$f":"IFERROR(MID($X81,FIND(CHAR(160),SUBSTITUTE($X81,\"{\",CHAR(160),HC$1)),FIND(CHAR(160),SUBSTITUTE($X81,\"}\",CHAR(160),HC$1))-FIND(CHAR(160),SUBSTITUTE($X81,\"{\",CHAR(160),HC$1))+1),\"\")","v":""},{"$f":"IFERROR(MID($X81,FIND(CHAR(160),SUBSTITUTE($X81,\"{\",CHAR(160),HD$1)),FIND(CHAR(160),SUBSTITUTE($X81,\"}\",CHAR(160),HD$1))-FIND(CHAR(160),SUBSTITUTE($X81,\"{\",CHAR(160),HD$1))+1),\"\")","v":""},{"$f":"IFERROR(MID($X81,FIND(CHAR(160),SUBSTITUTE($X81,\"{\",CHAR(160),HE$1)),FIND(CHAR(160),SUBSTITUTE($X81,\"}\",CHAR(160),HE$1))-FIND(CHAR(160),SUBSTITUTE($X81,\"{\",CHAR(160),HE$1))+1),\"\")","v":""},{"$f":"IFERROR(MID($X81,FIND(CHAR(160),SUBSTITUTE($X81,\"{\",CHAR(160),HF$1)),FIND(CHAR(160),SUBSTITUTE($X81,\"}\",CHAR(160),HF$1))-FIND(CHAR(160),SUBSTITUTE($X81,\"{\",CHAR(160),HF$1))+1),\"\")","v":""},{"$f":"IFERROR(MID($X81,FIND(CHAR(160),SUBSTITUTE($X81,\"{\",CHAR(160),HG$1)),FIND(CHAR(160),SUBSTITUTE($X81,\"}\",CHAR(160),HG$1))-FIND(CHAR(160),SUBSTITUTE($X81,\"{\",CHAR(160),HG$1))+1),\"\")","v":""},{"$f":"IFERROR(MID($X81,FIND(CHAR(160),SUBSTITUTE($X81,\"{\",CHAR(160),HH$1)),FIND(CHAR(160),SUBSTITUTE($X81,\"}\",CHAR(160),HH$1))-FIND(CHAR(160),SUBSTITUTE($X81,\"{\",CHAR(160),HH$1))+1),\"\")","v":""},{"$f":"IFERROR(MID($X81,FIND(CHAR(160),SUBSTITUTE($X81,\"{\",CHAR(160),HI$1)),FIND(CHAR(160),SUBSTITUTE($X81,\"}\",CHAR(160),HI$1))-FIND(CHAR(160),SUBSTITUTE($X81,\"{\",CHAR(160),HI$1))+1),\"\")","v":""},{"$f":"IFERROR(MID($X81,FIND(CHAR(160),SUBSTITUTE($X81,\"{\",CHAR(160),HJ$1)),FIND(CHAR(160),SUBSTITUTE($X81,\"}\",CHAR(160),HJ$1))-FIND(CHAR(160),SUBSTITUTE($X81,\"{\",CHAR(160),HJ$1))+1),\"\")","v":""},{"$f":"IFERROR(MID($Y81,FIND(CHAR(160),SUBSTITUTE($Y81,\"{\",CHAR(160),HK$1)),FIND(CHAR(160),SUBSTITUTE($Y81,\"}\",CHAR(160),HK$1))-FIND(CHAR(160),SUBSTITUTE($Y81,\"{\",CHAR(160),HK$1))+1),\"\")","v":""},{"$f":"IFERROR(MID($Y81,FIND(CHAR(160),SUBSTITUTE($Y81,\"{\",CHAR(160),HL$1)),FIND(CHAR(160),SUBSTITUTE($Y81,\"}\",CHAR(160),HL$1))-FIND(CHAR(160),SUBSTITUTE($Y81,\"{\",CHAR(160),HL$1))+1),\"\")","v":""},{"$f":"IFERROR(MID($Y81,FIND(CHAR(160),SUBSTITUTE($Y81,\"{\",CHAR(160),HM$1)),FIND(CHAR(160),SUBSTITUTE($Y81,\"}\",CHAR(160),HM$1))-FIND(CHAR(160),SUBSTITUTE($Y81,\"{\",CHAR(160),HM$1))+1),\"\")","v":""},{"$f":"IFERROR(MID($Y81,FIND(CHAR(160),SUBSTITUTE($Y81,\"{\",CHAR(160),HN$1)),FIND(CHAR(160),SUBSTITUTE($Y81,\"}\",CHAR(160),HN$1))-FIND(CHAR(160),SUBSTITUTE($Y81,\"{\",CHAR(160),HN$1))+1),\"\")","v":""},{"$f":"IFERROR(MID($Y81,FIND(CHAR(160),SUBSTITUTE($Y81,\"{\",CHAR(160),HO$1)),FIND(CHAR(160),SUBSTITUTE($Y81,\"}\",CHAR(160),HO$1))-FIND(CHAR(160),SUBSTITUTE($Y81,\"{\",CHAR(160),HO$1))+1),\"\")","v":""},{"$f":"IFERROR(MID($Y81,FIND(CHAR(160),SUBSTITUTE($Y81,\"{\",CHAR(160),HP$1)),FIND(CHAR(160),SUBSTITUTE($Y81,\"}\",CHAR(160),HP$1))-FIND(CHAR(160),SUBSTITUTE($Y81,\"{\",CHAR(160),HP$1))+1),\"\")","v":""},{"$f":"IFERROR(MID($Y81,FIND(CHAR(160),SUBSTITUTE($Y81,\"{\",CHAR(160),HQ$1)),FIND(CHAR(160),SUBSTITUTE($Y81,\"}\",CHAR(160),HQ$1))-FIND(CHAR(160),SUBSTITUTE($Y81,\"{\",CHAR(160),HQ$1))+1),\"\")","v":""},{"$f":"IFERROR(MID($Y81,FIND(CHAR(160),SUBSTITUTE($Y81,\"{\",CHAR(160),HR$1)),FIND(CHAR(160),SUBSTITUTE($Y81,\"}\",CHAR(160),HR$1))-FIND(CHAR(160),SUBSTITUTE($Y81,\"{\",CHAR(160),HR$1))+1),\"\")","v":""},{"$f":"IFERROR(MID($Y81,FIND(CHAR(160),SUBSTITUTE($Y81,\"{\",CHAR(160),HS$1)),FIND(CHAR(160),SUBSTITUTE($Y81,\"}\",CHAR(160),HS$1))-FIND(CHAR(160),SUBSTITUTE($Y81,\"{\",CHAR(160),HS$1))+1),\"\")","v":""},{"$f":"IFERROR(MID($Y81,FIND(CHAR(160),SUBSTITUTE($Y81,\"{\",CHAR(160),HT$1)),FIND(CHAR(160),SUBSTITUTE($Y81,\"}\",CHAR(160),HT$1))-FIND(CHAR(160),SUBSTITUTE($Y81,\"{\",CHAR(160),HT$1))+1),\"\")","v":""},{"$f":"IFERROR(MID($Z81,FIND(CHAR(160),SUBSTITUTE($Z81,\"{\",CHAR(160),HU$1)),FIND(CHAR(160),SUBSTITUTE($Z81,\"}\",CHAR(160),HU$1))-FIND(CHAR(160),SUBSTITUTE($Z81,\"{\",CHAR(160),HU$1))+1),\"\")","v":""},{"$f":"IFERROR(MID($Z81,FIND(CHAR(160),SUBSTITUTE($Z81,\"{\",CHAR(160),HV$1)),FIND(CHAR(160),SUBSTITUTE($Z81,\"}\",CHAR(160),HV$1))-FIND(CHAR(160),SUBSTITUTE($Z81,\"{\",CHAR(160),HV$1))+1),\"\")","v":""},{"$f":"IFERROR(MID($Z81,FIND(CHAR(160),SUBSTITUTE($Z81,\"{\",CHAR(160),HW$1)),FIND(CHAR(160),SUBSTITUTE($Z81,\"}\",CHAR(160),HW$1))-FIND(CHAR(160),SUBSTITUTE($Z81,\"{\",CHAR(160),HW$1))+1),\"\")","v":""},{"$f":"IFERROR(MID($Z81,FIND(CHAR(160),SUBSTITUTE($Z81,\"{\",CHAR(160),HX$1)),FIND(CHAR(160),SUBSTITUTE($Z81,\"}\",CHAR(160),HX$1))-FIND(CHAR(160),SUBSTITUTE($Z81,\"{\",CHAR(160),HX$1))+1),\"\")","v":""},{"$f":"IFERROR(MID($Z81,FIND(CHAR(160),SUBSTITUTE($Z81,\"{\",CHAR(160),HY$1)),FIND(CHAR(160),SUBSTITUTE($Z81,\"}\",CHAR(160),HY$1))-FIND(CHAR(160),SUBSTITUTE($Z81,\"{\",CHAR(160),HY$1))+1),\"\")","v":""},{"$f":"IFERROR(MID($Z81,FIND(CHAR(160),SUBSTITUTE($Z81,\"{\",CHAR(160),HZ$1)),FIND(CHAR(160),SUBSTITUTE($Z81,\"}\",CHAR(160),HZ$1))-FIND(CHAR(160),SUBSTITUTE($Z81,\"{\",CHAR(160),HZ$1))+1),\"\")","v":""},{"$f":"IFERROR(MID($Z81,FIND(CHAR(160),SUBSTITUTE($Z81,\"{\",CHAR(160),IA$1)),FIND(CHAR(160),SUBSTITUTE($Z81,\"}\",CHAR(160),IA$1))-FIND(CHAR(160),SUBSTITUTE($Z81,\"{\",CHAR(160),IA$1))+1),\"\")","v":""},{"$f":"IFERROR(MID($Z81,FIND(CHAR(160),SUBSTITUTE($Z81,\"{\",CHAR(160),IB$1)),FIND(CHAR(160),SUBSTITUTE($Z81,\"}\",CHAR(160),IB$1))-FIND(CHAR(160),SUBSTITUTE($Z81,\"{\",CHAR(160),IB$1))+1),\"\")","v":""},{"$f":"IFERROR(MID($Z81,FIND(CHAR(160),SUBSTITUTE($Z81,\"{\",CHAR(160),IC$1)),FIND(CHAR(160),SUBSTITUTE($Z81,\"}\",CHAR(160),IC$1))-FIND(CHAR(160),SUBSTITUTE($Z81,\"{\",CHAR(160),IC$1))+1),\"\")","v":""},{"$f":"IFERROR(MID($Z81,FIND(CHAR(160),SUBSTITUTE($Z81,\"{\",CHAR(160),ID$1)),FIND(CHAR(160),SUBSTITUTE($Z81,\"}\",CHAR(160),ID$1))-FIND(CHAR(160),SUBSTITUTE($Z81,\"{\",CHAR(160),ID$1))+1),\"\")","v":""},{"$f":"IFERROR(MID($AA81,FIND(CHAR(160),SUBSTITUTE($AA81,\"{\",CHAR(160),IE$1)),FIND(CHAR(160),SUBSTITUTE($AA81,\"}\",CHAR(160),IE$1))-FIND(CHAR(160),SUBSTITUTE($AA81,\"{\",CHAR(160),IE$1))+1),\"\")","v":""},{"$f":"IFERROR(MID($AA81,FIND(CHAR(160),SUBSTITUTE($AA81,\"{\",CHAR(160),IF$1)),FIND(CHAR(160),SUBSTITUTE($AA81,\"}\",CHAR(160),IF$1))-FIND(CHAR(160),SUBSTITUTE($AA81,\"{\",CHAR(160),IF$1))+1),\"\")","v":""},{"$f":"IFERROR(MID($AA81,FIND(CHAR(160),SUBSTITUTE($AA81,\"{\",CHAR(160),IG$1)),FIND(CHAR(160),SUBSTITUTE($AA81,\"}\",CHAR(160),IG$1))-FIND(CHAR(160),SUBSTITUTE($AA81,\"{\",CHAR(160),IG$1))+1),\"\")","v":""},{"$f":"IFERROR(MID($AA81,FIND(CHAR(160),SUBSTITUTE($AA81,\"{\",CHAR(160),IH$1)),FIND(CHAR(160),SUBSTITUTE($AA81,\"}\",CHAR(160),IH$1))-FIND(CHAR(160),SUBSTITUTE($AA81,\"{\",CHAR(160),IH$1))+1),\"\")","v":""},{"$f":"IFERROR(MID($AA81,FIND(CHAR(160),SUBSTITUTE($AA81,\"{\",CHAR(160),II$1)),FIND(CHAR(160),SUBSTITUTE($AA81,\"}\",CHAR(160),II$1))-FIND(CHAR(160),SUBSTITUTE($AA81,\"{\",CHAR(160),II$1))+1),\"\")","v":""},{"$f":"IFERROR(MID($AA81,FIND(CHAR(160),SUBSTITUTE($AA81,\"{\",CHAR(160),IJ$1)),FIND(CHAR(160),SUBSTITUTE($AA81,\"}\",CHAR(160),IJ$1))-FIND(CHAR(160),SUBSTITUTE($AA81,\"{\",CHAR(160),IJ$1))+1),\"\")","v":""},{"$f":"IFERROR(MID($AA81,FIND(CHAR(160),SUBSTITUTE($AA81,\"{\",CHAR(160),IK$1)),FIND(CHAR(160),SUBSTITUTE($AA81,\"}\",CHAR(160),IK$1))-FIND(CHAR(160),SUBSTITUTE($AA81,\"{\",CHAR(160),IK$1))+1),\"\")","v":""},{"$f":"IFERROR(MID($AA81,FIND(CHAR(160),SUBSTITUTE($AA81,\"{\",CHAR(160),IL$1)),FIND(CHAR(160),SUBSTITUTE($AA81,\"}\",CHAR(160),IL$1))-FIND(CHAR(160),SUBSTITUTE($AA81,\"{\",CHAR(160),IL$1))+1),\"\")","v":""},{"$f":"IFERROR(MID($AA81,FIND(CHAR(160),SUBSTITUTE($AA81,\"{\",CHAR(160),IM$1)),FIND(CHAR(160),SUBSTITUTE($AA81,\"}\",CHAR(160),IM$1))-FIND(CHAR(160),SUBSTITUTE($AA81,\"{\",CHAR(160),IM$1))+1),\"\")","v":""},{"$f":"IFERROR(MID($AA81,FIND(CHAR(160),SUBSTITUTE($AA81,\"{\",CHAR(160),IN$1)),FIND(CHAR(160),SUBSTITUTE($AA81,\"}\",CHAR(160),IN$1))-FIND(CHAR(160),SUBSTITUTE($AA81,\"{\",CHAR(160),IN$1))+1),\"\")","v":""},{"$f":"IFERROR(MID($AB81,FIND(CHAR(160),SUBSTITUTE($AB81,\"{\",CHAR(160),IO$1)),FIND(CHAR(160),SUBSTITUTE($AB81,\"}\",CHAR(160),IO$1))-FIND(CHAR(160),SUBSTITUTE($AB81,\"{\",CHAR(160),IO$1))+1),\"\")","v":""},{"$f":"IFERROR(MID($AB81,FIND(CHAR(160),SUBSTITUTE($AB81,\"{\",CHAR(160),IP$1)),FIND(CHAR(160),SUBSTITUTE($AB81,\"}\",CHAR(160),IP$1))-FIND(CHAR(160),SUBSTITUTE($AB81,\"{\",CHAR(160),IP$1))+1),\"\")","v":""},{"$f":"IFERROR(MID($AB81,FIND(CHAR(160),SUBSTITUTE($AB81,\"{\",CHAR(160),IQ$1)),FIND(CHAR(160),SUBSTITUTE($AB81,\"}\",CHAR(160),IQ$1))-FIND(CHAR(160),SUBSTITUTE($AB81,\"{\",CHAR(160),IQ$1))+1),\"\")","v":""},{"$f":"IFERROR(MID($AB81,FIND(CHAR(160),SUBSTITUTE($AB81,\"{\",CHAR(160),IR$1)),FIND(CHAR(160),SUBSTITUTE($AB81,\"}\",CHAR(160),IR$1))-FIND(CHAR(160),SUBSTITUTE($AB81,\"{\",CHAR(160),IR$1))+1),\"\")","v":""},{"$f":"IFERROR(MID($AB81,FIND(CHAR(160),SUBSTITUTE($AB81,\"{\",CHAR(160),IS$1)),FIND(CHAR(160),SUBSTITUTE($AB81,\"}\",CHAR(160),IS$1))-FIND(CHAR(160),SUBSTITUTE($AB81,\"{\",CHAR(160),IS$1))+1),\"\")","v":""},{"$f":"IFERROR(MID($AB81,FIND(CHAR(160),SUBSTITUTE($AB81,\"{\",CHAR(160),IT$1)),FIND(CHAR(160),SUBSTITUTE($AB81,\"}\",CHAR(160),IT$1))-FIND(CHAR(160),SUBSTITUTE($AB81,\"{\",CHAR(160),IT$1))+1),\"\")","v":""},{"$f":"IFERROR(MID($AB81,FIND(CHAR(160),SUBSTITUTE($AB81,\"{\",CHAR(160),IU$1)),FIND(CHAR(160),SUBSTITUTE($AB81,\"}\",CHAR(160),IU$1))-FIND(CHAR(160),SUBSTITUTE($AB81,\"{\",CHAR(160),IU$1))+1),\"\")","v":""},{"$f":"IFERROR(MID($AB81,FIND(CHAR(160),SUBSTITUTE($AB81,\"{\",CHAR(160),IV$1)),FIND(CHAR(160),SUBSTITUTE($AB81,\"}\",CHAR(160),IV$1))-FIND(CHAR(160),SUBSTITUTE($AB81,\"{\",CHAR(160),IV$1))+1),\"\")","v":""},{"$f":"IFERROR(MID($AB81,FIND(CHAR(160),SUBSTITUTE($AB81,\"{\",CHAR(160),IW$1)),FIND(CHAR(160),SUBSTITUTE($AB81,\"}\",CHAR(160),IW$1))-FIND(CHAR(160),SUBSTITUTE($AB81,\"{\",CHAR(160),IW$1))+1),\"\")","v":""},{"$f":"IFERROR(MID($AB81,FIND(CHAR(160),SUBSTITUTE($AB81,\"{\",CHAR(160),IX$1)),FIND(CHAR(160),SUBSTITUTE($AB81,\"}\",CHAR(160),IX$1))-FIND(CHAR(160),SUBSTITUTE($AB81,\"{\",CHAR(160),IX$1))+1),\"\")","v":""},null,{"$f":"10-COUNTIF(DU81:ED81,\"\")","v":2}]
["C&I HVAC - Natural Gas","Boiler Stack Heat Exchanger (Economizer)","AF2","2021-07-01","2022-06-30","Calculated","{Measure:Quantity}*{Capacity (MBTUH)}/1000*if({Economizer Type}=1,2120,1500)",0,"Calculated","{Measure:Quantity}*{Capacity (MBTUH)}/1000*if({Economizer Type}=1,1325,950)",0,"2021-05-25","2022-06-30","Calculated",null,null,null,null,null,null,null,null,"if({Existing Fuel}<>1,0,{Measure:Quantity} * ({Capacity (MBTUH)} * 1565 * if({Economizer Type}=1,0.1,0.05)) / 1000 * 10)",null,null,null,null,null,"2021-05-25","2022-06-30",20,0,0,0,0,0,0,1,1,0,0.52,1.6E-2,null,{"$f":"DU82","v":"{Measure:Quantity}"},1,{"$f":"DV82","v":"{Capacity (MBTUH)}"},1000,{"$f":"DW82","v":"{Economizer Type}"},0,{"$f":"DX82","v":"{Existing Fuel}"},1,{"$f":"DY82","v":""},null,{"$f":"DZ82","v":""},null,{"$f":"EA82","v":""},null,{"$f":"EB82","v":""},null,{"$f":"EC82","v":""},null,{"$f":"ED82","v":""},null,0,0,0,0,0,0,0,0,{"$f":"IF(AY82<>1,0,AS82 * (AU82 * 1565 * IF(AW82=1,0.1,0.05)) / 1000 * 10)","v":782.5},0,0,0,0,0,null,"Res","Default DR",{"$f":"Benefits(BL82,BR82,BS82,BT82,BU82,BV82,BW82,BX82,BY82,BZ82,AE82,AH82,AI82,AJ82,AK82,AL82,AM82,AN82,AO82,AP82,CA82,CB82)","v":0},0,18505.71779042502,0,0,0,0,0,0,{"$f":"SUMPRODUCT(CC82:CK82,--(CC82:CK82>0))","v":18505.71779042502},{"$f":"-SUMPRODUCT(CC82:CK82,--(CC82:CK82<0))","v":0},null,{"$f":"AS82*AU82/1000*IF(AW82=1,2120,1500)","v":1500},null,null,{"$f":"CM82+CO82","v":1500},{"$f":"IF(NetOrGross=\"Net\",(1-AO82+AP82),1)","v":1},{"$f":"(SUMPRODUCT(CC82:CJ82,--(CC82:CJ82>0))+CN82)*CS82/((-SUMPRODUCT(CC82:CJ82,--(CC82:CJ82<0))+MAX(CO82,CV82)+CP82+CQ82)*CS82+IF(FRIncentives=\"Yes\",CV82*(1-CS82),0))","v":12.33714519361668},1,{"$f":"AS82*AU82/1000*IF(AW82=1,1325,950)","v":950},null,"NG","y",null,{"$f":"IF(F82=\"Manual Entry\",\"Manual\",IF(G82=\"\",0,\"X=\"&SUBSTITUTE(SUBSTITUTE(SUBSTITUTE(SUBSTITUTE(SUBSTITUTE(SUBSTITUTE(SUBSTITUTE(SUBSTITUTE(SUBSTITUTE(SUBSTITUTE(SUBSTITUTE(SUBSTITUTE(G82,$ED82,$ED$2&ROW($ED82)),$EC82,$EC$2&ROW($EC82)),$EB82,$EB$2&ROW($EB82)),$EA82,$EA$2&ROW($EA82)),$DZ82,$DZ$2&ROW($DZ82)),$DY82,$DY$2&ROW($DY82)),$DX82,$DX$2&ROW($DX82)),$DW82,$DW$2&ROW($DW82)),$DV82,$DV$2&ROW($DV82)),$DU82,$DU$2&ROW($DU82)),$DT82,$DT$2&ROW($DT82)),$DS82,$DS$2&ROW($DS82))))","v":"X=AS82*AU82/1000*if(AW82=1,2120,1500)"},{"$f":"IF(I82=\"Manual Entry\",\"Manual\",IF(J82=\"\",0,\"X=\"&SUBSTITUTE(SUBSTITUTE(SUBSTITUTE(SUBSTITUTE(SUBSTITUTE(SUBSTITUTE(SUBSTITUTE(SUBSTITUTE(SUBSTITUTE(SUBSTITUTE(SUBSTITUTE(SUBSTITUTE(J82,$ED82,$ED$2&ROW($ED82)),$EC82,$EC$2&ROW($EC82)),$EB82,$EB$2&ROW($EB82)),$EA82,$EA$2&ROW($EA82)),$DZ82,$DZ$2&ROW($DZ82)),$DY82,$DY$2&ROW($DY82)),$DX82,$DX$2&ROW($DX82)),$DW82,$DW$2&ROW($DW82)),$DV82,$DV$2&ROW($DV82)),$DU82,$DU$2&ROW($DU82)),$DT82,$DT$2&ROW($DT82)),$DS82,$DS$2&ROW($DS82))))","v":"X=AS82*AU82/1000*if(AW82=1,1325,950)"},{"$f":"IF(O82=\"\",0,\"X=\"&SUBSTITUTE(SUBSTITUTE(SUBSTITUTE(SUBSTITUTE(SUBSTITUTE(SUBSTITUTE(SUBSTITUTE(SUBSTITUTE(SUBSTITUTE(SUBSTITUTE(SUBSTITUTE(SUBSTITUTE(O82,$ED82,$ED$2&ROW($ED82)),$EC82,$EC$2&ROW($EC82)),$EB82,$EB$2&ROW($EB82)),$EA82,$EA$2&ROW($EA82)),$DZ82,$DZ$2&ROW($DZ82)),$DY82,$DY$2&ROW($DY82)),$DX82,$DX$2&ROW($DX82)),$DW82,$DW$2&ROW($DW82)),$DV82,$DV$2&ROW($DV82)),$DU82,$DU$2&ROW($DU82)),$DT82,$DT$2&ROW($DT82)),$DS82,$DS$2&ROW($DS82)))","v":0},{"$f":"IF(P82=\"\",0,\"X=\"&SUBSTITUTE(SUBSTITUTE(SUBSTITUTE(SUBSTITUTE(SUBSTITUTE(SUBSTITUTE(SUBSTITUTE(SUBSTITUTE(SUBSTITUTE(SUBSTITUTE(SUBSTITUTE(SUBSTITUTE(P82,$ED82,$ED$2&ROW($ED82)),$EC82,$EC$2&ROW($EC82)),$EB82,$EB$2&ROW($EB82)),$EA82,$EA$2&ROW($EA82)),$DZ82,$DZ$2&ROW($DZ82)),$DY82,$DY$2&ROW($DY82)),$DX82,$DX$2&ROW($DX82)),$DW82,$DW$2&ROW($DW82)),$DV82,$DV$2&ROW($DV82)),$DU82,$DU$2&ROW($DU82)),$DT82,$DT$2&ROW($DT82)),$DS82,$DS$2&ROW($DS82)))","v":0},{"$f":"IF(Q82=\"\",0,\"X=\"&SUBSTITUTE(SUBSTITUTE(SUBSTITUTE(SUBSTITUTE(SUBSTITUTE(SUBSTITUTE(SUBSTITUTE(SUBSTITUTE(SUBSTITUTE(SUBSTITUTE(SUBSTITUTE(SUBSTITUTE(Q82,$ED82,$ED$2&ROW($ED82)),$EC82,$EC$2&ROW($EC82)),$EB82,$EB$2&ROW($EB82)),$EA82,$EA$2&ROW($EA82)),$DZ82,$DZ$2&ROW($DZ82)),$DY82,$DY$2&ROW($DY82)),$DX82,$DX$2&ROW($DX82)),$DW82,$DW$2&ROW($DW82)),$DV82,$DV$2&ROW($DV82)),$DU82,$DU$2&ROW($DU82)),$DT82,$DT$2&ROW($DT82)),$DS82,$DS$2&ROW($DS82)))","v":0},{"$f":"IF(R82=\"\",0,\"X=\"&SUBSTITUTE(SUBSTITUTE(SUBSTITUTE(SUBSTITUTE(SUBSTITUTE(SUBSTITUTE(SUBSTITUTE(SUBSTITUTE(SUBSTITUTE(SUBSTITUTE(SUBSTITUTE(SUBSTITUTE(R82,$ED82,$ED$2&ROW($ED82)),$EC82,$EC$2&ROW($EC82)),$EB82,$EB$2&ROW($EB82)),$EA82,$EA$2&ROW($EA82)),$DZ82,$DZ$2&ROW($DZ82)),$DY82,$DY$2&ROW($DY82)),$DX82,$DX$2&ROW($DX82)),$DW82,$DW$2&ROW($DW82)),$DV82,$DV$2&ROW($DV82)),$DU82,$DU$2&ROW($DU82)),$DT82,$DT$2&ROW($DT82)),$DS82,$DS$2&ROW($DS82)))","v":0},{"$f":"IF(S82=\"\",0,\"X=\"&SUBSTITUTE(SUBSTITUTE(SUBSTITUTE(SUBSTITUTE(SUBSTITUTE(SUBSTITUTE(SUBSTITUTE(SUBSTITUTE(SUBSTITUTE(SUBSTITUTE(SUBSTITUTE(SUBSTITUTE(S82,$ED82,$ED$2&ROW($ED82)),$EC82,$EC$2&ROW($EC82)),$EB82,$EB$2&ROW($EB82)),$EA82,$EA$2&ROW($EA82)),$DZ82,$DZ$2&ROW($DZ82)),$DY82,$DY$2&ROW($DY82)),$DX82,$DX$2&ROW($DX82)),$DW82,$DW$2&ROW($DW82)),$DV82,$DV$2&ROW($DV82)),$DU82,$DU$2&ROW($DU82)),$DT82,$DT$2&ROW($DT82)),$DS82,$DS$2&ROW($DS82)))","v":0},{"$f":"IF(T82=\"\",0,\"X=\"&SUBSTITUTE(SUBSTITUTE(SUBSTITUTE(SUBSTITUTE(SUBSTITUTE(SUBSTITUTE(SUBSTITUTE(SUBSTITUTE(SUBSTITUTE(SUBSTITUTE(SUBSTITUTE(SUBSTITUTE(T82,$ED82,$ED$2&ROW($ED82)),$EC82,$EC$2&ROW($EC82)),$EB82,$EB$2&ROW($EB82)),$EA82,$EA$2&ROW($EA82)),$DZ82,$DZ$2&ROW($DZ82)),$DY82,$DY$2&ROW($DY82)),$DX82,$DX$2&ROW($DX82)),$DW82,$DW$2&ROW($DW82)),$DV82,$DV$2&ROW($DV82)),$DU82,$DU$2&ROW($DU82)),$DT82,$DT$2&ROW($DT82)),$DS82,$DS$2&ROW($DS82)))","v":0},{"$f":"IF(U82=\"\",0,\"X=\"&SUBSTITUTE(SUBSTITUTE(SUBSTITUTE(SUBSTITUTE(SUBSTITUTE(SUBSTITUTE(SUBSTITUTE(SUBSTITUTE(SUBSTITUTE(SUBSTITUTE(SUBSTITUTE(SUBSTITUTE(U82,$ED82,$ED$2&ROW($ED82)),$EC82,$EC$2&ROW($EC82)),$EB82,$EB$2&ROW($EB82)),$EA82,$EA$2&ROW($EA82)),$DZ82,$DZ$2&ROW($DZ82)),$DY82,$DY$2&ROW($DY82)),$DX82,$DX$2&ROW($DX82)),$DW82,$DW$2&ROW($DW82)),$DV82,$DV$2&ROW($DV82)),$DU82,$DU$2&ROW($DU82)),$DT82,$DT$2&ROW($DT82)),$DS82,$DS$2&ROW($DS82)))","v":0},{"$f":"IF(V82=\"\",0,\"X=\"&SUBSTITUTE(SUBSTITUTE(SUBSTITUTE(SUBSTITUTE(SUBSTITUTE(SUBSTITUTE(SUBSTITUTE(SUBSTITUTE(SUBSTITUTE(SUBSTITUTE(SUBSTITUTE(SUBSTITUTE(V82,$ED82,$ED$2&ROW($ED82)),$EC82,$EC$2&ROW($EC82)),$EB82,$EB$2&ROW($EB82)),$EA82,$EA$2&ROW($EA82)),$DZ82,$DZ$2&ROW($DZ82)),$DY82,$DY$2&ROW($DY82)),$DX82,$DX$2&ROW($DX82)),$DW82,$DW$2&ROW($DW82)),$DV82,$DV$2&ROW($DV82)),$DU82,$DU$2&ROW($DU82)),$DT82,$DT$2&ROW($DT82)),$DS82,$DS$2&ROW($DS82)))","v":0},{"$f":"IF(W82=\"\",0,\"X=\"&SUBSTITUTE(SUBSTITUTE(SUBSTITUTE(SUBSTITUTE(SUBSTITUTE(SUBSTITUTE(SUBSTITUTE(SUBSTITUTE(SUBSTITUTE(SUBSTITUTE(SUBSTITUTE(SUBSTITUTE(W82,$ED82,$ED$2&ROW($ED82)),$EC82,$EC$2&ROW($EC82)),$EB82,$EB$2&ROW($EB82)),$EA82,$EA$2&ROW($EA82)),$DZ82,$DZ$2&ROW($DZ82)),$DY82,$DY$2&ROW($DY82)),$DX82,$DX$2&ROW($DX82)),$DW82,$DW$2&ROW($DW82)),$DV82,$DV$2&ROW($DV82)),$DU82,$DU$2&ROW($DU82)),$DT82,$DT$2&ROW($DT82)),$DS82,$DS$2&ROW($DS82)))","v":"X=if(AY82<>1,0,AS82 * (AU82 * 1565 * if(AW82=1,0.1,0.05)) / 1000 * 10)"},{"$f":"IF(X82=\"\",0,\"X=\"&SUBSTITUTE(SUBSTITUTE(SUBSTITUTE(SUBSTITUTE(SUBSTITUTE(SUBSTITUTE(SUBSTITUTE(SUBSTITUTE(SUBSTITUTE(SUBSTITUTE(SUBSTITUTE(SUBSTITUTE(X82,$ED82,$ED$2&ROW($ED82)),$EC82,$EC$2&ROW($EC82)),$EB82,$EB$2&ROW($EB82)),$EA82,$EA$2&ROW($EA82)),$DZ82,$DZ$2&ROW($DZ82)),$DY82,$DY$2&ROW($DY82)),$DX82,$DX$2&ROW($DX82)),$DW82,$DW$2&ROW($DW82)),$DV82,$DV$2&ROW($DV82)),$DU82,$DU$2&ROW($DU82)),$DT82,$DT$2&ROW($DT82)),$DS82,$DS$2&ROW($DS82)))","v":0},{"$f":"IF(Y82=\"\",0,\"X=\"&SUBSTITUTE(SUBSTITUTE(SUBSTITUTE(SUBSTITUTE(SUBSTITUTE(SUBSTITUTE(SUBSTITUTE(SUBSTITUTE(SUBSTITUTE(SUBSTITUTE(SUBSTITUTE(SUBSTITUTE(Y82,$ED82,$ED$2&ROW($ED82)),$EC82,$EC$2&ROW($EC82)),$EB82,$EB$2&ROW($EB82)),$EA82,$EA$2&ROW($EA82)),$DZ82,$DZ$2&ROW($DZ82)),$DY82,$DY$2&ROW($DY82)),$DX82,$DX$2&ROW($DX82)),$DW82,$DW$2&ROW($DW82)),$DV82,$DV$2&ROW($DV82)),$DU82,$DU$2&ROW($DU82)),$DT82,$DT$2&ROW($DT82)),$DS82,$DS$2&ROW($DS82)))","v":0},{"$f":"IF(Z82=\"\",0,\"X=\"&SUBSTITUTE(SUBSTITUTE(SUBSTITUTE(SUBSTITUTE(SUBSTITUTE(SUBSTITUTE(SUBSTITUTE(SUBSTITUTE(SUBSTITUTE(SUBSTITUTE(SUBSTITUTE(SUBSTITUTE(Z82,$ED82,$ED$2&ROW($ED82)),$EC82,$EC$2&ROW($EC82)),$EB82,$EB$2&ROW($EB82)),$EA82,$EA$2&ROW($EA82)),$DZ82,$DZ$2&ROW($DZ82)),$DY82,$DY$2&ROW($DY82)),$DX82,$DX$2&ROW($DX82)),$DW82,$DW$2&ROW($DW82)),$DV82,$DV$2&ROW($DV82)),$DU82,$DU$2&ROW($DU82)),$DT82,$DT$2&ROW($DT82)),$DS82,$DS$2&ROW($DS82)))","v":0},{"$f":"IF(AA82=\"\",0,\"X=\"&SUBSTITUTE(SUBSTITUTE(SUBSTITUTE(SUBSTITUTE(SUBSTITUTE(SUBSTITUTE(SUBSTITUTE(SUBSTITUTE(SUBSTITUTE(SUBSTITUTE(SUBSTITUTE(SUBSTITUTE(AA82,$ED82,$ED$2&ROW($ED82)),$EC82,$EC$2&ROW($EC82)),$EB82,$EB$2&ROW($EB82)),$EA82,$EA$2&ROW($EA82)),$DZ82,$DZ$2&ROW($DZ82)),$DY82,$DY$2&ROW($DY82)),$DX82,$DX$2&ROW($DX82)),$DW82,$DW$2&ROW($DW82)),$DV82,$DV$2&ROW($DV82)),$DU82,$DU$2&ROW($DU82)),$DT82,$DT$2&ROW($DT82)),$DS82,$DS$2&ROW($DS82)))","v":0},{"$f":"IF(AB82=\"\",0,\"X=\"&SUBSTITUTE(SUBSTITUTE(SUBSTITUTE(SUBSTITUTE(SUBSTITUTE(SUBSTITUTE(SUBSTITUTE(SUBSTITUTE(SUBSTITUTE(SUBSTITUTE(SUBSTITUTE(SUBSTITUTE(AB82,$ED82,$ED$2&ROW($ED82)),$EC82,$EC$2&ROW($EC82)),$EB82,$EB$2&ROW($EB82)),$EA82,$EA$2&ROW($EA82)),$DZ82,$DZ$2&ROW($DZ82)),$DY82,$DY$2&ROW($DY82)),$DX82,$DX$2&ROW($DX82)),$DW82,$DW$2&ROW($DW82)),$DV82,$DV$2&ROW($DV82)),$DU82,$DU$2&ROW($DU82)),$DT82,$DT$2&ROW($DT82)),$DS82,$DS$2&ROW($DS82)))","v":0},null,null,"{Factor:WinterCF}","{Factor:SummerCF}",{"$f":"IFERROR(INDEX($EG82:$IV82,MATCH(0,COUNTIF($DR82:DT82,$EG82:$IV82),0)),\"\")","v":"{Measure:Quantity}"},{"$f":"IFERROR(INDEX($EG82:$IV82,MATCH(0,COUNTIF($DR82:DU82,$EG82:$IV82),0)),\"\")","v":"{Capacity (MBTUH)}"},{"$f":"IFERROR(INDEX($EG82:$IV82,MATCH(0,COUNTIF($DR82:DV82,$EG82:$IV82),0)),\"\")","v":"{Economizer Type}"},{"$f":"IFERROR(INDEX($EG82:$IV82,MATCH(0,COUNTIF($DR82:DW82,$EG82:$IV82),0)),\"\")","v":"{Existing Fuel}"},{"$f":"IFERROR(INDEX($EG82:$IV82,MATCH(0,COUNTIF($DR82:DX82,$EG82:$IV82),0)),\"\")","v":""},{"$f":"IFERROR(INDEX($EG82:$IV82,MATCH(0,COUNTIF($DR82:DY82,$EG82:$IV82),0)),\"\")","v":""},{"$f":"IFERROR(INDEX($EG82:$IV82,MATCH(0,COUNTIF($DR82:DZ82,$EG82:$IV82),0)),\"\")","v":""},{"$f":"IFERROR(INDEX($EG82:$IV82,MATCH(0,COUNTIF($DR82:EA82,$EG82:$IV82),0)),\"\")","v":""},{"$f":"IFERROR(INDEX($EG82:$IV82,MATCH(0,COUNTIF($DR82:EB82,$EG82:$IV82),0)),\"\")","v":""},{"$f":"IFERROR(INDEX($EG82:$IV82,MATCH(0,COUNTIF($DR82:EC82,$EG82:$IV82),0)),\"\")","v":""},null,null,{"$f":"IFERROR(MID($G82,FIND(CHAR(160),SUBSTITUTE($G82,\"{\",CHAR(160),EG$1)),FIND(CHAR(160),SUBSTITUTE($G82,\"}\",CHAR(160),EG$1))-FIND(CHAR(160),SUBSTITUTE($G82,\"{\",CHAR(160),EG$1))+1),\"\")","v":"{Measure:Quantity}"},{"$f":"IFERROR(MID($G82,FIND(CHAR(160),SUBSTITUTE($G82,\"{\",CHAR(160),EH$1)),FIND(CHAR(160),SUBSTITUTE($G82,\"}\",CHAR(160),EH$1))-FIND(CHAR(160),SUBSTITUTE($G82,\"{\",CHAR(160),EH$1))+1),\"\")","v":"{Capacity (MBTUH)}"},{"$f":"IFERROR(MID($G82,FIND(CHAR(160),SUBSTITUTE($G82,\"{\",CHAR(160),EI$1)),FIND(CHAR(160),SUBSTITUTE($G82,\"}\",CHAR(160),EI$1))-FIND(CHAR(160),SUBSTITUTE($G82,\"{\",CHAR(160),EI$1))+1),\"\")","v":"{Economizer Type}"},{"$f":"IFERROR(MID($G82,FIND(CHAR(160),SUBSTITUTE($G82,\"{\",CHAR(160),EJ$1)),FIND(CHAR(160),SUBSTITUTE($G82,\"}\",CHAR(160),EJ$1))-FIND(CHAR(160),SUBSTITUTE($G82,\"{\",CHAR(160),EJ$1))+1),\"\")","v":""},{"$f":"IFERROR(MID($G82,FIND(CHAR(160),SUBSTITUTE($G82,\"{\",CHAR(160),EK$1)),FIND(CHAR(160),SUBSTITUTE($G82,\"}\",CHAR(160),EK$1))-FIND(CHAR(160),SUBSTITUTE($G82,\"{\",CHAR(160),EK$1))+1),\"\")","v":""},{"$f":"IFERROR(MID($G82,FIND(CHAR(160),SUBSTITUTE($G82,\"{\",CHAR(160),EL$1)),FIND(CHAR(160),SUBSTITUTE($G82,\"}\",CHAR(160),EL$1))-FIND(CHAR(160),SUBSTITUTE($G82,\"{\",CHAR(160),EL$1))+1),\"\")","v":""},{"$f":"IFERROR(MID($G82,FIND(CHAR(160),SUBSTITUTE($G82,\"{\",CHAR(160),EM$1)),FIND(CHAR(160),SUBSTITUTE($G82,\"}\",CHAR(160),EM$1))-FIND(CHAR(160),SUBSTITUTE($G82,\"{\",CHAR(160),EM$1))+1),\"\")","v":""},{"$f":"IFERROR(MID($G82,FIND(CHAR(160),SUBSTITUTE($G82,\"{\",CHAR(160),EN$1)),FIND(CHAR(160),SUBSTITUTE($G82,\"}\",CHAR(160),EN$1))-FIND(CHAR(160),SUBSTITUTE($G82,\"{\",CHAR(160),EN$1))+1),\"\")","v":""},{"$f":"IFERROR(MID($G82,FIND(CHAR(160),SUBSTITUTE($G82,\"{\",CHAR(160),EO$1)),FIND(CHAR(160),SUBSTITUTE($G82,\"}\",CHAR(160),EO$1))-FIND(CHAR(160),SUBSTITUTE($G82,\"{\",CHAR(160),EO$1))+1),\"\")","v":""},{"$f":"IFERROR(MID($G82,FIND(CHAR(160),SUBSTITUTE($G82,\"{\",CHAR(160),EP$1)),FIND(CHAR(160),SUBSTITUTE($G82,\"}\",CHAR(160),EP$1))-FIND(CHAR(160),SUBSTITUTE($G82,\"{\",CHAR(160),EP$1))+1),\"\")","v":""},{"$f":"IFERROR(MID($J82,FIND(CHAR(160),SUBSTITUTE($J82,\"{\",CHAR(160),EQ$1)),FIND(CHAR(160),SUBSTITUTE($J82,\"}\",CHAR(160),EQ$1))-FIND(CHAR(160),SUBSTITUTE($J82,\"{\",CHAR(160),EQ$1))+1),\"\")","v":"{Measure:Quantity}"},{"$f":"IFERROR(MID($J82,FIND(CHAR(160),SUBSTITUTE($J82,\"{\",CHAR(160),ER$1)),FIND(CHAR(160),SUBSTITUTE($J82,\"}\",CHAR(160),ER$1))-FIND(CHAR(160),SUBSTITUTE($J82,\"{\",CHAR(160),ER$1))+1),\"\")","v":"{Capacity (MBTUH)}"},{"$f":"IFERROR(MID($J82,FIND(CHAR(160),SUBSTITUTE($J82,\"{\",CHAR(160),ES$1)),FIND(CHAR(160),SUBSTITUTE($J82,\"}\",CHAR(160),ES$1))-FIND(CHAR(160),SUBSTITUTE($J82,\"{\",CHAR(160),ES$1))+1),\"\")","v":"{Economizer Type}"},{"$f":"IFERROR(MID($J82,FIND(CHAR(160),SUBSTITUTE($J82,\"{\",CHAR(160),ET$1)),FIND(CHAR(160),SUBSTITUTE($J82,\"}\",CHAR(160),ET$1))-FIND(CHAR(160),SUBSTITUTE($J82,\"{\",CHAR(160),ET$1))+1),\"\")","v":""},{"$f":"IFERROR(MID($J82,FIND(CHAR(160),SUBSTITUTE($J82,\"{\",CHAR(160),EU$1)),FIND(CHAR(160),SUBSTITUTE($J82,\"}\",CHAR(160),EU$1))-FIND(CHAR(160),SUBSTITUTE($J82,\"{\",CHAR(160),EU$1))+1),\"\")","v":""},{"$f":"IFERROR(MID($J82,FIND(CHAR(160),SUBSTITUTE($J82,\"{\",CHAR(160),EV$1)),FIND(CHAR(160),SUBSTITUTE($J82,\"}\",CHAR(160),EV$1))-FIND(CHAR(160),SUBSTITUTE($J82,\"{\",CHAR(160),EV$1))+1),\"\")","v":""},{"$f":"IFERROR(MID($J82,FIND(CHAR(160),SUBSTITUTE($J82,\"{\",CHAR(160),EW$1)),FIND(CHAR(160),SUBSTITUTE($J82,\"}\",CHAR(160),EW$1))-FIND(CHAR(160),SUBSTITUTE($J82,\"{\",CHAR(160),EW$1))+1),\"\")","v":""},{"$f":"IFERROR(MID($J82,FIND(CHAR(160),SUBSTITUTE($J82,\"{\",CHAR(160),EX$1)),FIND(CHAR(160),SUBSTITUTE($J82,\"}\",CHAR(160),EX$1))-FIND(CHAR(160),SUBSTITUTE($J82,\"{\",CHAR(160),EX$1))+1),\"\")","v":""},{"$f":"IFERROR(MID($J82,FIND(CHAR(160),SUBSTITUTE($J82,\"{\",CHAR(160),EY$1)),FIND(CHAR(160),SUBSTITUTE($J82,\"}\",CHAR(160),EY$1))-FIND(CHAR(160),SUBSTITUTE($J82,\"{\",CHAR(160),EY$1))+1),\"\")","v":""},{"$f":"IFERROR(MID($J82,FIND(CHAR(160),SUBSTITUTE($J82,\"{\",CHAR(160),EZ$1)),FIND(CHAR(160),SUBSTITUTE($J82,\"}\",CHAR(160),EZ$1))-FIND(CHAR(160),SUBSTITUTE($J82,\"{\",CHAR(160),EZ$1))+1),\"\")","v":""},{"$f":"IFERROR(MID($J82,FIND(CHAR(160),SUBSTITUTE($J82,\"{\",CHAR(160),FA$1)),FIND(CHAR(160),SUBSTITUTE($J82,\"}\",CHAR(160),FA$1))-FIND(CHAR(160),SUBSTITUTE($J82,\"{\",CHAR(160),FA$1))+1),\"\")","v":"{Measure:Quantity}"},{"$f":"IFERROR(MID($J82,FIND(CHAR(160),SUBSTITUTE($J82,\"{\",CHAR(160),FB$1)),FIND(CHAR(160),SUBSTITUTE($J82,\"}\",CHAR(160),FB$1))-FIND(CHAR(160),SUBSTITUTE($J82,\"{\",CHAR(160),FB$1))+1),\"\")","v":"{Capacity (MBTUH)}"},{"$f":"IFERROR(MID($O82,FIND(CHAR(160),SUBSTITUTE($O82,\"{\",CHAR(160),FC$1)),FIND(CHAR(160),SUBSTITUTE($O82,\"}\",CHAR(160),FC$1))-FIND(CHAR(160),SUBSTITUTE($O82,\"{\",CHAR(160),FC$1))+1),\"\")","v":""},{"$f":"IFERROR(MID($O82,FIND(CHAR(160),SUBSTITUTE($O82,\"{\",CHAR(160),FD$1)),FIND(CHAR(160),SUBSTITUTE($O82,\"}\",CHAR(160),FD$1))-FIND(CHAR(160),SUBSTITUTE($O82,\"{\",CHAR(160),FD$1))+1),\"\")","v":""},{"$f":"IFERROR(MID($O82,FIND(CHAR(160),SUBSTITUTE($O82,\"{\",CHAR(160),FE$1)),FIND(CHAR(160),SUBSTITUTE($O82,\"}\",CHAR(160),FE$1))-FIND(CHAR(160),SUBSTITUTE($O82,\"{\",CHAR(160),FE$1))+1),\"\")","v":""},{"$f":"IFERROR(MID($O82,FIND(CHAR(160),SUBSTITUTE($O82,\"{\",CHAR(160),FF$1)),FIND(CHAR(160),SUBSTITUTE($O82,\"}\",CHAR(160),FF$1))-FIND(CHAR(160),SUBSTITUTE($O82,\"{\",CHAR(160),FF$1))+1),\"\")","v":""},{"$f":"IFERROR(MID($O82,FIND(CHAR(160),SUBSTITUTE($O82,\"{\",CHAR(160),FG$1)),FIND(CHAR(160),SUBSTITUTE($O82,\"}\",CHAR(160),FG$1))-FIND(CHAR(160),SUBSTITUTE($O82,\"{\",CHAR(160),FG$1))+1),\"\")","v":""},{"$f":"IFERROR(MID($O82,FIND(CHAR(160),SUBSTITUTE($O82,\"{\",CHAR(160),FH$1)),FIND(CHAR(160),SUBSTITUTE($O82,\"}\",CHAR(160),FH$1))-FIND(CHAR(160),SUBSTITUTE($O82,\"{\",CHAR(160),FH$1))+1),\"\")","v":""},{"$f":"IFERROR(MID($O82,FIND(CHAR(160),SUBSTITUTE($O82,\"{\",CHAR(160),FI$1)),FIND(CHAR(160),SUBSTITUTE($O82,\"}\",CHAR(160),FI$1))-FIND(CHAR(160),SUBSTITUTE($O82,\"{\",CHAR(160),FI$1))+1),\"\")","v":""},{"$f":"IFERROR(MID($O82,FIND(CHAR(160),SUBSTITUTE($O82,\"{\",CHAR(160),FJ$1)),FIND(CHAR(160),SUBSTITUTE($O82,\"}\",CHAR(160),FJ$1))-FIND(CHAR(160),SUBSTITUTE($O82,\"{\",CHAR(160),FJ$1))+1),\"\")","v":""},{"$f":"IFERROR(MID($O82,FIND(CHAR(160),SUBSTITUTE($O82,\"{\",CHAR(160),FK$1)),FIND(CHAR(160),SUBSTITUTE($O82,\"}\",CHAR(160),FK$1))-FIND(CHAR(160),SUBSTITUTE($O82,\"{\",CHAR(160),FK$1))+1),\"\")","v":""},{"$f":"IFERROR(MID($O82,FIND(CHAR(160),SUBSTITUTE($O82,\"{\",CHAR(160),FL$1)),FIND(CHAR(160),SUBSTITUTE($O82,\"}\",CHAR(160),FL$1))-FIND(CHAR(160),SUBSTITUTE($O82,\"{\",CHAR(160),FL$1))+1),\"\")","v":""},{"$f":"IFERROR(MID($R82,FIND(CHAR(160),SUBSTITUTE($R82,\"{\",CHAR(160),FM$1)),FIND(CHAR(160),SUBSTITUTE($R82,\"}\",CHAR(160),FM$1))-FIND(CHAR(160),SUBSTITUTE($R82,\"{\",CHAR(160),FM$1))+1),\"\")","v":""},{"$f":"IFERROR(MID($R82,FIND(CHAR(160),SUBSTITUTE($R82,\"{\",CHAR(160),FN$1)),FIND(CHAR(160),SUBSTITUTE($R82,\"}\",CHAR(160),FN$1))-FIND(CHAR(160),SUBSTITUTE($R82,\"{\",CHAR(160),FN$1))+1),\"\")","v":""},{"$f":"IFERROR(MID($R82,FIND(CHAR(160),SUBSTITUTE($R82,\"{\",CHAR(160),FO$1)),FIND(CHAR(160),SUBSTITUTE($R82,\"}\",CHAR(160),FO$1))-FIND(CHAR(160),SUBSTITUTE($R82,\"{\",CHAR(160),FO$1))+1),\"\")","v":""},{"$f":"IFERROR(MID($R82,FIND(CHAR(160),SUBSTITUTE($R82,\"{\",CHAR(160),FP$1)),FIND(CHAR(160),SUBSTITUTE($R82,\"}\",CHAR(160),FP$1))-FIND(CHAR(160),SUBSTITUTE($R82,\"{\",CHAR(160),FP$1))+1),\"\")","v":""},{"$f":"IFERROR(MID($R82,FIND(CHAR(160),SUBSTITUTE($R82,\"{\",CHAR(160),FQ$1)),FIND(CHAR(160),SUBSTITUTE($R82,\"}\",CHAR(160),FQ$1))-FIND(CHAR(160),SUBSTITUTE($R82,\"{\",CHAR(160),FQ$1))+1),\"\")","v":""},{"$f":"IFERROR(MID($R82,FIND(CHAR(160),SUBSTITUTE($R82,\"{\",CHAR(160),FR$1)),FIND(CHAR(160),SUBSTITUTE($R82,\"}\",CHAR(160),FR$1))-FIND(CHAR(160),SUBSTITUTE($R82,\"{\",CHAR(160),FR$1))+1),\"\")","v":""},{"$f":"IFERROR(MID($R82,FIND(CHAR(160),SUBSTITUTE($R82,\"{\",CHAR(160),FS$1)),FIND(CHAR(160),SUBSTITUTE($R82,\"}\",CHAR(160),FS$1))-FIND(CHAR(160),SUBSTITUTE($R82,\"{\",CHAR(160),FS$1))+1),\"\")","v":""},{"$f":"IFERROR(MID($R82,FIND(CHAR(160),SUBSTITUTE($R82,\"{\",CHAR(160),FT$1)),FIND(CHAR(160),SUBSTITUTE($R82,\"}\",CHAR(160),FT$1))-FIND(CHAR(160),SUBSTITUTE($R82,\"{\",CHAR(160),FT$1))+1),\"\")","v":""},{"$f":"IFERROR(MID($R82,FIND(CHAR(160),SUBSTITUTE($R82,\"{\",CHAR(160),FU$1)),FIND(CHAR(160),SUBSTITUTE($R82,\"}\",CHAR(160),FU$1))-FIND(CHAR(160),SUBSTITUTE($R82,\"{\",CHAR(160),FU$1))+1),\"\")","v":""},{"$f":"IFERROR(MID($R82,FIND(CHAR(160),SUBSTITUTE($R82,\"{\",CHAR(160),FV$1)),FIND(CHAR(160),SUBSTITUTE($R82,\"}\",CHAR(160),FV$1))-FIND(CHAR(160),SUBSTITUTE($R82,\"{\",CHAR(160),FV$1))+1),\"\")","v":""},{"$f":"IFERROR(MID($U82,FIND(CHAR(160),SUBSTITUTE($U82,\"{\",CHAR(160),FW$1)),FIND(CHAR(160),SUBSTITUTE($U82,\"}\",CHAR(160),FW$1))-FIND(CHAR(160),SUBSTITUTE($U82,\"{\",CHAR(160),FW$1))+1),\"\")","v":""},{"$f":"IFERROR(MID($U82,FIND(CHAR(160),SUBSTITUTE($U82,\"{\",CHAR(160),FX$1)),FIND(CHAR(160),SUBSTITUTE($U82,\"}\",CHAR(160),FX$1))-FIND(CHAR(160),SUBSTITUTE($U82,\"{\",CHAR(160),FX$1))+1),\"\")","v":""},{"$f":"IFERROR(MID($U82,FIND(CHAR(160),SUBSTITUTE($U82,\"{\",CHAR(160),FY$1)),FIND(CHAR(160),SUBSTITUTE($U82,\"}\",CHAR(160),FY$1))-FIND(CHAR(160),SUBSTITUTE($U82,\"{\",CHAR(160),FY$1))+1),\"\")","v":""},{"$f":"IFERROR(MID($U82,FIND(CHAR(160),SUBSTITUTE($U82,\"{\",CHAR(160),FZ$1)),FIND(CHAR(160),SUBSTITUTE($U82,\"}\",CHAR(160),FZ$1))-FIND(CHAR(160),SUBSTITUTE($U82,\"{\",CHAR(160),FZ$1))+1),\"\")","v":""},{"$f":"IFERROR(MID($U82,FIND(CHAR(160),SUBSTITUTE($U82,\"{\",CHAR(160),GA$1)),FIND(CHAR(160),SUBSTITUTE($U82,\"}\",CHAR(160),GA$1))-FIND(CHAR(160),SUBSTITUTE($U82,\"{\",CHAR(160),GA$1))+1),\"\")","v":""},{"$f":"IFERROR(MID($U82,FIND(CHAR(160),SUBSTITUTE($U82,\"{\",CHAR(160),GB$1)),FIND(CHAR(160),SUBSTITUTE($U82,\"}\",CHAR(160),GB$1))-FIND(CHAR(160),SUBSTITUTE($U82,\"{\",CHAR(160),GB$1))+1),\"\")","v":""},{"$f":"IFERROR(MID($U82,FIND(CHAR(160),SUBSTITUTE($U82,\"{\",CHAR(160),GC$1)),FIND(CHAR(160),SUBSTITUTE($U82,\"}\",CHAR(160),GC$1))-FIND(CHAR(160),SUBSTITUTE($U82,\"{\",CHAR(160),GC$1))+1),\"\")","v":""},{"$f":"IFERROR(MID($U82,FIND(CHAR(160),SUBSTITUTE($U82,\"{\",CHAR(160),GD$1)),FIND(CHAR(160),SUBSTITUTE($U82,\"}\",CHAR(160),GD$1))-FIND(CHAR(160),SUBSTITUTE($U82,\"{\",CHAR(160),GD$1))+1),\"\")","v":""},{"$f":"IFERROR(MID($U82,FIND(CHAR(160),SUBSTITUTE($U82,\"{\",CHAR(160),GE$1)),FIND(CHAR(160),SUBSTITUTE($U82,\"}\",CHAR(160),GE$1))-FIND(CHAR(160),SUBSTITUTE($U82,\"{\",CHAR(160),GE$1))+1),\"\")","v":""},{"$f":"IFERROR(MID($U82,FIND(CHAR(160),SUBSTITUTE($U82,\"{\",CHAR(160),GF$1)),FIND(CHAR(160),SUBSTITUTE($U82,\"}\",CHAR(160),GF$1))-FIND(CHAR(160),SUBSTITUTE($U82,\"{\",CHAR(160),GF$1))+1),\"\")","v":""},{"$f":"IFERROR(MID($V82,FIND(CHAR(160),SUBSTITUTE($V82,\"{\",CHAR(160),GG$1)),FIND(CHAR(160),SUBSTITUTE($V82,\"}\",CHAR(160),GG$1))-FIND(CHAR(160),SUBSTITUTE($V82,\"{\",CHAR(160),GG$1))+1),\"\")","v":""},{"$f":"IFERROR(MID($V82,FIND(CHAR(160),SUBSTITUTE($V82,\"{\",CHAR(160),GH$1)),FIND(CHAR(160),SUBSTITUTE($V82,\"}\",CHAR(160),GH$1))-FIND(CHAR(160),SUBSTITUTE($V82,\"{\",CHAR(160),GH$1))+1),\"\")","v":""},{"$f":"IFERROR(MID($V82,FIND(CHAR(160),SUBSTITUTE($V82,\"{\",CHAR(160),GI$1)),FIND(CHAR(160),SUBSTITUTE($V82,\"}\",CHAR(160),GI$1))-FIND(CHAR(160),SUBSTITUTE($V82,\"{\",CHAR(160),GI$1))+1),\"\")","v":""},{"$f":"IFERROR(MID($V82,FIND(CHAR(160),SUBSTITUTE($V82,\"{\",CHAR(160),GJ$1)),FIND(CHAR(160),SUBSTITUTE($V82,\"}\",CHAR(160),GJ$1))-FIND(CHAR(160),SUBSTITUTE($V82,\"{\",CHAR(160),GJ$1))+1),\"\")","v":""},{"$f":"IFERROR(MID($V82,FIND(CHAR(160),SUBSTITUTE($V82,\"{\",CHAR(160),GK$1)),FIND(CHAR(160),SUBSTITUTE($V82,\"}\",CHAR(160),GK$1))-FIND(CHAR(160),SUBSTITUTE($V82,\"{\",CHAR(160),GK$1))+1),\"\")","v":""},{"$f":"IFERROR(MID($V82,FIND(CHAR(160),SUBSTITUTE($V82,\"{\",CHAR(160),GL$1)),FIND(CHAR(160),SUBSTITUTE($V82,\"}\",CHAR(160),GL$1))-FIND(CHAR(160),SUBSTITUTE($V82,\"{\",CHAR(160),GL$1))+1),\"\")","v":""},{"$f":"IFERROR(MID($V82,FIND(CHAR(160),SUBSTITUTE($V82,\"{\",CHAR(160),GM$1)),FIND(CHAR(160),SUBSTITUTE($V82,\"}\",CHAR(160),GM$1))-FIND(CHAR(160),SUBSTITUTE($V82,\"{\",CHAR(160),GM$1))+1),\"\")","v":""},{"$f":"IFERROR(MID($V82,FIND(CHAR(160),SUBSTITUTE($V82,\"{\",CHAR(160),GN$1)),FIND(CHAR(160),SUBSTITUTE($V82,\"}\",CHAR(160),GN$1))-FIND(CHAR(160),SUBSTITUTE($V82,\"{\",CHAR(160),GN$1))+1),\"\")","v":""},{"$f":"IFERROR(MID($V82,FIND(CHAR(160),SUBSTITUTE($V82,\"{\",CHAR(160),GO$1)),FIND(CHAR(160),SUBSTITUTE($V82,\"}\",CHAR(160),GO$1))-FIND(CHAR(160),SUBSTITUTE($V82,\"{\",CHAR(160),GO$1))+1),\"\")","v":""},{"$f":"IFERROR(MID($V82,FIND(CHAR(160),SUBSTITUTE($V82,\"{\",CHAR(160),GP$1)),FIND(CHAR(160),SUBSTITUTE($V82,\"}\",CHAR(160),GP$1))-FIND(CHAR(160),SUBSTITUTE($V82,\"{\",CHAR(160),GP$1))+1),\"\")","v":""},{"$f":"IFERROR(MID($W82,FIND(CHAR(160),SUBSTITUTE($W82,\"{\",CHAR(160),GQ$1)),FIND(CHAR(160),SUBSTITUTE($W82,\"}\",CHAR(160),GQ$1))-FIND(CHAR(160),SUBSTITUTE($W82,\"{\",CHAR(160),GQ$1))+1),\"\")","v":"{Capacity (MBTUH)}"},{"$f":"IFERROR(MID($W82,FIND(CHAR(160),SUBSTITUTE($W82,\"{\",CHAR(160),GR$1)),FIND(CHAR(160),SUBSTITUTE($W82,\"}\",CHAR(160),GR$1))-FIND(CHAR(160),SUBSTITUTE($W82,\"{\",CHAR(160),GR$1))+1),\"\")","v":"{Economizer Type}"},{"$f":"IFERROR(MID($W82,FIND(CHAR(160),SUBSTITUTE($W82,\"{\",CHAR(160),GS$1)),FIND(CHAR(160),SUBSTITUTE($W82,\"}\",CHAR(160),GS$1))-FIND(CHAR(160),SUBSTITUTE($W82,\"{\",CHAR(160),GS$1))+1),\"\")","v":""},{"$f":"IFERROR(MID($W82,FIND(CHAR(160),SUBSTITUTE($W82,\"{\",CHAR(160),GT$1)),FIND(CHAR(160),SUBSTITUTE($W82,\"}\",CHAR(160),GT$1))-FIND(CHAR(160),SUBSTITUTE($W82,\"{\",CHAR(160),GT$1))+1),\"\")","v":""},{"$f":"IFERROR(MID($W82,FIND(CHAR(160),SUBSTITUTE($W82,\"{\",CHAR(160),GU$1)),FIND(CHAR(160),SUBSTITUTE($W82,\"}\",CHAR(160),GU$1))-FIND(CHAR(160),SUBSTITUTE($W82,\"{\",CHAR(160),GU$1))+1),\"\")","v":""},{"$f":"IFERROR(MID($W82,FIND(CHAR(160),SUBSTITUTE($W82,\"{\",CHAR(160),GV$1)),FIND(CHAR(160),SUBSTITUTE($W82,\"}\",CHAR(160),GV$1))-FIND(CHAR(160),SUBSTITUTE($W82,\"{\",CHAR(160),GV$1))+1),\"\")","v":""},{"$f":"IFERROR(MID($W82,FIND(CHAR(160),SUBSTITUTE($W82,\"{\",CHAR(160),GW$1)),FIND(CHAR(160),SUBSTITUTE($W82,\"}\",CHAR(160),GW$1))-FIND(CHAR(160),SUBSTITUTE($W82,\"{\",CHAR(160),GW$1))+1),\"\")","v":""},{"$f":"IFERROR(MID($W82,FIND(CHAR(160),SUBSTITUTE($W82,\"{\",CHAR(160),GX$1)),FIND(CHAR(160),SUBSTITUTE($W82,\"}\",CHAR(160),GX$1))-FIND(CHAR(160),SUBSTITUTE($W82,\"{\",CHAR(160),GX$1))+1),\"\")","v":""},{"$f":"IFERROR(MID($W82,FIND(CHAR(160),SUBSTITUTE($W82,\"{\",CHAR(160),GY$1)),FIND(CHAR(160),SUBSTITUTE($W82,\"}\",CHAR(160),GY$1))-FIND(CHAR(160),SUBSTITUTE($W82,\"{\",CHAR(160),GY$1))+1),\"\")","v":"{Existing Fuel}"},{"$f":"IFERROR(MID($W82,FIND(CHAR(160),SUBSTITUTE($W82,\"{\",CHAR(160),GZ$1)),FIND(CHAR(160),SUBSTITUTE($W82,\"}\",CHAR(160),GZ$1))-FIND(CHAR(160),SUBSTITUTE($W82,\"{\",CHAR(160),GZ$1))+1),\"\")","v":"{Measure:Quantity}"},{"$f":"IFERROR(MID($X82,FIND(CHAR(160),SUBSTITUTE($X82,\"{\",CHAR(160),HA$1)),FIND(CHAR(160),SUBSTITUTE($X82,\"}\",CHAR(160),HA$1))-FIND(CHAR(160),SUBSTITUTE($X82,\"{\",CHAR(160),HA$1))+1),\"\")","v":""},{"$f":"IFERROR(MID($X82,FIND(CHAR(160),SUBSTITUTE($X82,\"{\",CHAR(160),HB$1)),FIND(CHAR(160),SUBSTITUTE($X82,\"}\",CHAR(160),HB$1))-FIND(CHAR(160),SUBSTITUTE($X82,\"{\",CHAR(160),HB$1))+1),\"\")","v":""},{"$f":"IFERROR(MID($X82,FIND(CHAR(160),SUBSTITUTE($X82,\"{\",CHAR(160),HC$1)),FIND(CHAR(160),SUBSTITUTE($X82,\"}\",CHAR(160),HC$1))-FIND(CHAR(160),SUBSTITUTE($X82,\"{\",CHAR(160),HC$1))+1),\"\")","v":""},{"$f":"IFERROR(MID($X82,FIND(CHAR(160),SUBSTITUTE($X82,\"{\",CHAR(160),HD$1)),FIND(CHAR(160),SUBSTITUTE($X82,\"}\",CHAR(160),HD$1))-FIND(CHAR(160),SUBSTITUTE($X82,\"{\",CHAR(160),HD$1))+1),\"\")","v":""},{"$f":"IFERROR(MID($X82,FIND(CHAR(160),SUBSTITUTE($X82,\"{\",CHAR(160),HE$1)),FIND(CHAR(160),SUBSTITUTE($X82,\"}\",CHAR(160),HE$1))-FIND(CHAR(160),SUBSTITUTE($X82,\"{\",CHAR(160),HE$1))+1),\"\")","v":""},{"$f":"IFERROR(MID($X82,FIND(CHAR(160),SUBSTITUTE($X82,\"{\",CHAR(160),HF$1)),FIND(CHAR(160),SUBSTITUTE($X82,\"}\",CHAR(160),HF$1))-FIND(CHAR(160),SUBSTITUTE($X82,\"{\",CHAR(160),HF$1))+1),\"\")","v":""},{"$f":"IFERROR(MID($X82,FIND(CHAR(160),SUBSTITUTE($X82,\"{\",CHAR(160),HG$1)),FIND(CHAR(160),SUBSTITUTE($X82,\"}\",CHAR(160),HG$1))-FIND(CHAR(160),SUBSTITUTE($X82,\"{\",CHAR(160),HG$1))+1),\"\")","v":""},{"$f":"IFERROR(MID($X82,FIND(CHAR(160),SUBSTITUTE($X82,\"{\",CHAR(160),HH$1)),FIND(CHAR(160),SUBSTITUTE($X82,\"}\",CHAR(160),HH$1))-FIND(CHAR(160),SUBSTITUTE($X82,\"{\",CHAR(160),HH$1))+1),\"\")","v":""},{"$f":"IFERROR(MID($X82,FIND(CHAR(160),SUBSTITUTE($X82,\"{\",CHAR(160),HI$1)),FIND(CHAR(160),SUBSTITUTE($X82,\"}\",CHAR(160),HI$1))-FIND(CHAR(160),SUBSTITUTE($X82,\"{\",CHAR(160),HI$1))+1),\"\")","v":""},{"$f":"IFERROR(MID($X82,FIND(CHAR(160),SUBSTITUTE($X82,\"{\",CHAR(160),HJ$1)),FIND(CHAR(160),SUBSTITUTE($X82,\"}\",CHAR(160),HJ$1))-FIND(CHAR(160),SUBSTITUTE($X82,\"{\",CHAR(160),HJ$1))+1),\"\")","v":""},{"$f":"IFERROR(MID($Y82,FIND(CHAR(160),SUBSTITUTE($Y82,\"{\",CHAR(160),HK$1)),FIND(CHAR(160),SUBSTITUTE($Y82,\"}\",CHAR(160),HK$1))-FIND(CHAR(160),SUBSTITUTE($Y82,\"{\",CHAR(160),HK$1))+1),\"\")","v":""},{"$f":"IFERROR(MID($Y82,FIND(CHAR(160),SUBSTITUTE($Y82,\"{\",CHAR(160),HL$1)),FIND(CHAR(160),SUBSTITUTE($Y82,\"}\",CHAR(160),HL$1))-FIND(CHAR(160),SUBSTITUTE($Y82,\"{\",CHAR(160),HL$1))+1),\"\")","v":""},{"$f":"IFERROR(MID($Y82,FIND(CHAR(160),SUBSTITUTE($Y82,\"{\",CHAR(160),HM$1)),FIND(CHAR(160),SUBSTITUTE($Y82,\"}\",CHAR(160),HM$1))-FIND(CHAR(160),SUBSTITUTE($Y82,\"{\",CHAR(160),HM$1))+1),\"\")","v":""},{"$f":"IFERROR(MID($Y82,FIND(CHAR(160),SUBSTITUTE($Y82,\"{\",CHAR(160),HN$1)),FIND(CHAR(160),SUBSTITUTE($Y82,\"}\",CHAR(160),HN$1))-FIND(CHAR(160),SUBSTITUTE($Y82,\"{\",CHAR(160),HN$1))+1),\"\")","v":""},{"$f":"IFERROR(MID($Y82,FIND(CHAR(160),SUBSTITUTE($Y82,\"{\",CHAR(160),HO$1)),FIND(CHAR(160),SUBSTITUTE($Y82,\"}\",CHAR(160),HO$1))-FIND(CHAR(160),SUBSTITUTE($Y82,\"{\",CHAR(160),HO$1))+1),\"\")","v":""},{"$f":"IFERROR(MID($Y82,FIND(CHAR(160),SUBSTITUTE($Y82,\"{\",CHAR(160),HP$1)),FIND(CHAR(160),SUBSTITUTE($Y82,\"}\",CHAR(160),HP$1))-FIND(CHAR(160),SUBSTITUTE($Y82,\"{\",CHAR(160),HP$1))+1),\"\")","v":""},{"$f":"IFERROR(MID($Y82,FIND(CHAR(160),SUBSTITUTE($Y82,\"{\",CHAR(160),HQ$1)),FIND(CHAR(160),SUBSTITUTE($Y82,\"}\",CHAR(160),HQ$1))-FIND(CHAR(160),SUBSTITUTE($Y82,\"{\",CHAR(160),HQ$1))+1),\"\")","v":""},{"$f":"IFERROR(MID($Y82,FIND(CHAR(160),SUBSTITUTE($Y82,\"{\",CHAR(160),HR$1)),FIND(CHAR(160),SUBSTITUTE($Y82,\"}\",CHAR(160),HR$1))-FIND(CHAR(160),SUBSTITUTE($Y82,\"{\",CHAR(160),HR$1))+1),\"\")","v":""},{"$f":"IFERROR(MID($Y82,FIND(CHAR(160),SUBSTITUTE($Y82,\"{\",CHAR(160),HS$1)),FIND(CHAR(160),SUBSTITUTE($Y82,\"}\",CHAR(160),HS$1))-FIND(CHAR(160),SUBSTITUTE($Y82,\"{\",CHAR(160),HS$1))+1),\"\")","v":""},{"$f":"IFERROR(MID($Y82,FIND(CHAR(160),SUBSTITUTE($Y82,\"{\",CHAR(160),HT$1)),FIND(CHAR(160),SUBSTITUTE($Y82,\"}\",CHAR(160),HT$1))-FIND(CHAR(160),SUBSTITUTE($Y82,\"{\",CHAR(160),HT$1))+1),\"\")","v":""},{"$f":"IFERROR(MID($Z82,FIND(CHAR(160),SUBSTITUTE($Z82,\"{\",CHAR(160),HU$1)),FIND(CHAR(160),SUBSTITUTE($Z82,\"}\",CHAR(160),HU$1))-FIND(CHAR(160),SUBSTITUTE($Z82,\"{\",CHAR(160),HU$1))+1),\"\")","v":""},{"$f":"IFERROR(MID($Z82,FIND(CHAR(160),SUBSTITUTE($Z82,\"{\",CHAR(160),HV$1)),FIND(CHAR(160),SUBSTITUTE($Z82,\"}\",CHAR(160),HV$1))-FIND(CHAR(160),SUBSTITUTE($Z82,\"{\",CHAR(160),HV$1))+1),\"\")","v":""},{"$f":"IFERROR(MID($Z82,FIND(CHAR(160),SUBSTITUTE($Z82,\"{\",CHAR(160),HW$1)),FIND(CHAR(160),SUBSTITUTE($Z82,\"}\",CHAR(160),HW$1))-FIND(CHAR(160),SUBSTITUTE($Z82,\"{\",CHAR(160),HW$1))+1),\"\")","v":""},{"$f":"IFERROR(MID($Z82,FIND(CHAR(160),SUBSTITUTE($Z82,\"{\",CHAR(160),HX$1)),FIND(CHAR(160),SUBSTITUTE($Z82,\"}\",CHAR(160),HX$1))-FIND(CHAR(160),SUBSTITUTE($Z82,\"{\",CHAR(160),HX$1))+1),\"\")","v":""},{"$f":"IFERROR(MID($Z82,FIND(CHAR(160),SUBSTITUTE($Z82,\"{\",CHAR(160),HY$1)),FIND(CHAR(160),SUBSTITUTE($Z82,\"}\",CHAR(160),HY$1))-FIND(CHAR(160),SUBSTITUTE($Z82,\"{\",CHAR(160),HY$1))+1),\"\")","v":""},{"$f":"IFERROR(MID($Z82,FIND(CHAR(160),SUBSTITUTE($Z82,\"{\",CHAR(160),HZ$1)),FIND(CHAR(160),SUBSTITUTE($Z82,\"}\",CHAR(160),HZ$1))-FIND(CHAR(160),SUBSTITUTE($Z82,\"{\",CHAR(160),HZ$1))+1),\"\")","v":""},{"$f":"IFERROR(MID($Z82,FIND(CHAR(160),SUBSTITUTE($Z82,\"{\",CHAR(160),IA$1)),FIND(CHAR(160),SUBSTITUTE($Z82,\"}\",CHAR(160),IA$1))-FIND(CHAR(160),SUBSTITUTE($Z82,\"{\",CHAR(160),IA$1))+1),\"\")","v":""},{"$f":"IFERROR(MID($Z82,FIND(CHAR(160),SUBSTITUTE($Z82,\"{\",CHAR(160),IB$1)),FIND(CHAR(160),SUBSTITUTE($Z82,\"}\",CHAR(160),IB$1))-FIND(CHAR(160),SUBSTITUTE($Z82,\"{\",CHAR(160),IB$1))+1),\"\")","v":""},{"$f":"IFERROR(MID($Z82,FIND(CHAR(160),SUBSTITUTE($Z82,\"{\",CHAR(160),IC$1)),FIND(CHAR(160),SUBSTITUTE($Z82,\"}\",CHAR(160),IC$1))-FIND(CHAR(160),SUBSTITUTE($Z82,\"{\",CHAR(160),IC$1))+1),\"\")","v":""},{"$f":"IFERROR(MID($Z82,FIND(CHAR(160),SUBSTITUTE($Z82,\"{\",CHAR(160),ID$1)),FIND(CHAR(160),SUBSTITUTE($Z82,\"}\",CHAR(160),ID$1))-FIND(CHAR(160),SUBSTITUTE($Z82,\"{\",CHAR(160),ID$1))+1),\"\")","v":""},{"$f":"IFERROR(MID($AA82,FIND(CHAR(160),SUBSTITUTE($AA82,\"{\",CHAR(160),IE$1)),FIND(CHAR(160),SUBSTITUTE($AA82,\"}\",CHAR(160),IE$1))-FIND(CHAR(160),SUBSTITUTE($AA82,\"{\",CHAR(160),IE$1))+1),\"\")","v":""},{"$f":"IFERROR(MID($AA82,FIND(CHAR(160),SUBSTITUTE($AA82,\"{\",CHAR(160),IF$1)),FIND(CHAR(160),SUBSTITUTE($AA82,\"}\",CHAR(160),IF$1))-FIND(CHAR(160),SUBSTITUTE($AA82,\"{\",CHAR(160),IF$1))+1),\"\")","v":""},{"$f":"IFERROR(MID($AA82,FIND(CHAR(160),SUBSTITUTE($AA82,\"{\",CHAR(160),IG$1)),FIND(CHAR(160),SUBSTITUTE($AA82,\"}\",CHAR(160),IG$1))-FIND(CHAR(160),SUBSTITUTE($AA82,\"{\",CHAR(160),IG$1))+1),\"\")","v":""},{"$f":"IFERROR(MID($AA82,FIND(CHAR(160),SUBSTITUTE($AA82,\"{\",CHAR(160),IH$1)),FIND(CHAR(160),SUBSTITUTE($AA82,\"}\",CHAR(160),IH$1))-FIND(CHAR(160),SUBSTITUTE($AA82,\"{\",CHAR(160),IH$1))+1),\"\")","v":""},{"$f":"IFERROR(MID($AA82,FIND(CHAR(160),SUBSTITUTE($AA82,\"{\",CHAR(160),II$1)),FIND(CHAR(160),SUBSTITUTE($AA82,\"}\",CHAR(160),II$1))-FIND(CHAR(160),SUBSTITUTE($AA82,\"{\",CHAR(160),II$1))+1),\"\")","v":""},{"$f":"IFERROR(MID($AA82,FIND(CHAR(160),SUBSTITUTE($AA82,\"{\",CHAR(160),IJ$1)),FIND(CHAR(160),SUBSTITUTE($AA82,\"}\",CHAR(160),IJ$1))-FIND(CHAR(160),SUBSTITUTE($AA82,\"{\",CHAR(160),IJ$1))+1),\"\")","v":""},{"$f":"IFERROR(MID($AA82,FIND(CHAR(160),SUBSTITUTE($AA82,\"{\",CHAR(160),IK$1)),FIND(CHAR(160),SUBSTITUTE($AA82,\"}\",CHAR(160),IK$1))-FIND(CHAR(160),SUBSTITUTE($AA82,\"{\",CHAR(160),IK$1))+1),\"\")","v":""},{"$f":"IFERROR(MID($AA82,FIND(CHAR(160),SUBSTITUTE($AA82,\"{\",CHAR(160),IL$1)),FIND(CHAR(160),SUBSTITUTE($AA82,\"}\",CHAR(160),IL$1))-FIND(CHAR(160),SUBSTITUTE($AA82,\"{\",CHAR(160),IL$1))+1),\"\")","v":""},{"$f":"IFERROR(MID($AA82,FIND(CHAR(160),SUBSTITUTE($AA82,\"{\",CHAR(160),IM$1)),FIND(CHAR(160),SUBSTITUTE($AA82,\"}\",CHAR(160),IM$1))-FIND(CHAR(160),SUBSTITUTE($AA82,\"{\",CHAR(160),IM$1))+1),\"\")","v":""},{"$f":"IFERROR(MID($AA82,FIND(CHAR(160),SUBSTITUTE($AA82,\"{\",CHAR(160),IN$1)),FIND(CHAR(160),SUBSTITUTE($AA82,\"}\",CHAR(160),IN$1))-FIND(CHAR(160),SUBSTITUTE($AA82,\"{\",CHAR(160),IN$1))+1),\"\")","v":""},{"$f":"IFERROR(MID($AB82,FIND(CHAR(160),SUBSTITUTE($AB82,\"{\",CHAR(160),IO$1)),FIND(CHAR(160),SUBSTITUTE($AB82,\"}\",CHAR(160),IO$1))-FIND(CHAR(160),SUBSTITUTE($AB82,\"{\",CHAR(160),IO$1))+1),\"\")","v":""},{"$f":"IFERROR(MID($AB82,FIND(CHAR(160),SUBSTITUTE($AB82,\"{\",CHAR(160),IP$1)),FIND(CHAR(160),SUBSTITUTE($AB82,\"}\",CHAR(160),IP$1))-FIND(CHAR(160),SUBSTITUTE($AB82,\"{\",CHAR(160),IP$1))+1),\"\")","v":""},{"$f":"IFERROR(MID($AB82,FIND(CHAR(160),SUBSTITUTE($AB82,\"{\",CHAR(160),IQ$1)),FIND(CHAR(160),SUBSTITUTE($AB82,\"}\",CHAR(160),IQ$1))-FIND(CHAR(160),SUBSTITUTE($AB82,\"{\",CHAR(160),IQ$1))+1),\"\")","v":""},{"$f":"IFERROR(MID($AB82,FIND(CHAR(160),SUBSTITUTE($AB82,\"{\",CHAR(160),IR$1)),FIND(CHAR(160),SUBSTITUTE($AB82,\"}\",CHAR(160),IR$1))-FIND(CHAR(160),SUBSTITUTE($AB82,\"{\",CHAR(160),IR$1))+1),\"\")","v":""},{"$f":"IFERROR(MID($AB82,FIND(CHAR(160),SUBSTITUTE($AB82,\"{\",CHAR(160),IS$1)),FIND(CHAR(160),SUBSTITUTE($AB82,\"}\",CHAR(160),IS$1))-FIND(CHAR(160),SUBSTITUTE($AB82,\"{\",CHAR(160),IS$1))+1),\"\")","v":""},{"$f":"IFERROR(MID($AB82,FIND(CHAR(160),SUBSTITUTE($AB82,\"{\",CHAR(160),IT$1)),FIND(CHAR(160),SUBSTITUTE($AB82,\"}\",CHAR(160),IT$1))-FIND(CHAR(160),SUBSTITUTE($AB82,\"{\",CHAR(160),IT$1))+1),\"\")","v":""},{"$f":"IFERROR(MID($AB82,FIND(CHAR(160),SUBSTITUTE($AB82,\"{\",CHAR(160),IU$1)),FIND(CHAR(160),SUBSTITUTE($AB82,\"}\",CHAR(160),IU$1))-FIND(CHAR(160),SUBSTITUTE($AB82,\"{\",CHAR(160),IU$1))+1),\"\")","v":""},{"$f":"IFERROR(MID($AB82,FIND(CHAR(160),SUBSTITUTE($AB82,\"{\",CHAR(160),IV$1)),FIND(CHAR(160),SUBSTITUTE($AB82,\"}\",CHAR(160),IV$1))-FIND(CHAR(160),SUBSTITUTE($AB82,\"{\",CHAR(160),IV$1))+1),\"\")","v":""},{"$f":"IFERROR(MID($AB82,FIND(CHAR(160),SUBSTITUTE($AB82,\"{\",CHAR(160),IW$1)),FIND(CHAR(160),SUBSTITUTE($AB82,\"}\",CHAR(160),IW$1))-FIND(CHAR(160),SUBSTITUTE($AB82,\"{\",CHAR(160),IW$1))+1),\"\")","v":""},{"$f":"IFERROR(MID($AB82,FIND(CHAR(160),SUBSTITUTE($AB82,\"{\",CHAR(160),IX$1)),FIND(CHAR(160),SUBSTITUTE($AB82,\"}\",CHAR(160),IX$1))-FIND(CHAR(160),SUBSTITUTE($AB82,\"{\",CHAR(160),IX$1))+1),\"\")","v":""},null,{"$f":"10-COUNTIF(DU82:ED82,\"\")","v":4}]
["C&I HVAC - Natural Gas","Programmable Thermostat","AF6","2021-07-01","2022-06-30","Per Measure",157,0,"Calculated","{Measure:Quantity}*100",0,"2021-05-25","2022-06-30","Calculated",null,null,null,null,null,null,null,null,"if({Existing Fuel}<>1,0,{Measure:Quantity} * ({Capacity (MBTUH)} * 1565 *0.068) / 1000 * 10)",null,null,null,null,null,"2021-05-25","2022-06-30",8,0,0,0,0,0,0,1,1,0,0.52,1.6E-2,null,{"$f":"DU83","v":"{Measure:Quantity}"},1,{"$f":"DV83","v":"{Capacity (MBTUH)}"},1,{"$f":"DW83","v":"{Existing Fuel}"},223,{"$f":"DX83","v":""},null,{"$f":"DY83","v":""},null,{"$f":"DZ83","v":""},null,{"$f":"EA83","v":""},null,{"$f":"EB83","v":""},null,{"$f":"EC83","v":""},null,{"$f":"ED83","v":""},null,0,0,0,0,0,0,0,0,{"$f":"IF(AU83<>1,0,AS83 * (AW83 * 1565 *0.068) / 1000 * 10)","v":237.31660000000005},0,0,0,0,0,null,"Res","Default DR",{"$f":"Benefits(BL83,BR83,BS83,BT83,BU83,BV83,BW83,BX83,BY83,BZ83,AE83,AH83,AI83,AJ83,AK83,AL83,AM83,AN83,AO83,AP83,CA83,CB83)","v":0},0,2910.9547547197744,0,0,0,0,0,0,{"$f":"SUMPRODUCT(CC83:CK83,--(CC83:CK83>0))","v":2910.9547547197744},{"$f":"-SUMPRODUCT(CC83:CK83,--(CC83:CK83<0))","v":0},null,{"$f":"157","v":157},null,null,{"$f":"CM83+CO83","v":157},{"$f":"IF(NetOrGross=\"Net\",(1-AO83+AP83),1)","v":1},{"$f":"(SUMPRODUCT(CC83:CJ83,--(CC83:CJ83>0))+CN83)*CS83/((-SUMPRODUCT(CC83:CJ83,--(CC83:CJ83<0))+MAX(CO83,CV83)+CP83+CQ83)*CS83+IF(FRIncentives=\"Yes\",CV83*(1-CS83),0))","v":18.5411130873871},1,{"$f":"AS83*100","v":100},null,"NG","y",null,{"$f":"IF(F83=\"Manual Entry\",\"Manual\",IF(G83=\"\",0,\"X=\"&SUBSTITUTE(SUBSTITUTE(SUBSTITUTE(SUBSTITUTE(SUBSTITUTE(SUBSTITUTE(SUBSTITUTE(SUBSTITUTE(SUBSTITUTE(SUBSTITUTE(SUBSTITUTE(SUBSTITUTE(G83,$ED83,$ED$2&ROW($ED83)),$EC83,$EC$2&ROW($EC83)),$EB83,$EB$2&ROW($EB83)),$EA83,$EA$2&ROW($EA83)),$DZ83,$DZ$2&ROW($DZ83)),$DY83,$DY$2&ROW($DY83)),$DX83,$DX$2&ROW($DX83)),$DW83,$DW$2&ROW($DW83)),$DV83,$DV$2&ROW($DV83)),$DU83,$DU$2&ROW($DU83)),$DT83,$DT$2&ROW($DT83)),$DS83,$DS$2&ROW($DS83))))","v":"X=157"},{"$f":"IF(I83=\"Manual Entry\",\"Manual\",IF(J83=\"\",0,\"X=\"&SUBSTITUTE(SUBSTITUTE(SUBSTITUTE(SUBSTITUTE(SUBSTITUTE(SUBSTITUTE(SUBSTITUTE(SUBSTITUTE(SUBSTITUTE(SUBSTITUTE(SUBSTITUTE(SUBSTITUTE(J83,$ED83,$ED$2&ROW($ED83)),$EC83,$EC$2&ROW($EC83)),$EB83,$EB$2&ROW($EB83)),$EA83,$EA$2&ROW($EA83)),$DZ83,$DZ$2&ROW($DZ83)),$DY83,$DY$2&ROW($DY83)),$DX83,$DX$2&ROW($DX83)),$DW83,$DW$2&ROW($DW83)),$DV83,$DV$2&ROW($DV83)),$DU83,$DU$2&ROW($DU83)),$DT83,$DT$2&ROW($DT83)),$DS83,$DS$2&ROW($DS83))))","v":"X=AS83*100"},{"$f":"IF(O83=\"\",0,\"X=\"&SUBSTITUTE(SUBSTITUTE(SUBSTITUTE(SUBSTITUTE(SUBSTITUTE(SUBSTITUTE(SUBSTITUTE(SUBSTITUTE(SUBSTITUTE(SUBSTITUTE(SUBSTITUTE(SUBSTITUTE(O83,$ED83,$ED$2&ROW($ED83)),$EC83,$EC$2&ROW($EC83)),$EB83,$EB$2&ROW($EB83)),$EA83,$EA$2&ROW($EA83)),$DZ83,$DZ$2&ROW($DZ83)),$DY83,$DY$2&ROW($DY83)),$DX83,$DX$2&ROW($DX83)),$DW83,$DW$2&ROW($DW83)),$DV83,$DV$2&ROW($DV83)),$DU83,$DU$2&ROW($DU83)),$DT83,$DT$2&ROW($DT83)),$DS83,$DS$2&ROW($DS83)))","v":0},{"$f":"IF(P83=\"\",0,\"X=\"&SUBSTITUTE(SUBSTITUTE(SUBSTITUTE(SUBSTITUTE(SUBSTITUTE(SUBSTITUTE(SUBSTITUTE(SUBSTITUTE(SUBSTITUTE(SUBSTITUTE(SUBSTITUTE(SUBSTITUTE(P83,$ED83,$ED$2&ROW($ED83)),$EC83,$EC$2&ROW($EC83)),$EB83,$EB$2&ROW($EB83)),$EA83,$EA$2&ROW($EA83)),$DZ83,$DZ$2&ROW($DZ83)),$DY83,$DY$2&ROW($DY83)),$DX83,$DX$2&ROW($DX83)),$DW83,$DW$2&ROW($DW83)),$DV83,$DV$2&ROW($DV83)),$DU83,$DU$2&ROW($DU83)),$DT83,$DT$2&ROW($DT83)),$DS83,$DS$2&ROW($DS83)))","v":0},{"$f":"IF(Q83=\"\",0,\"X=\"&SUBSTITUTE(SUBSTITUTE(SUBSTITUTE(SUBSTITUTE(SUBSTITUTE(SUBSTITUTE(SUBSTITUTE(SUBSTITUTE(SUBSTITUTE(SUBSTITUTE(SUBSTITUTE(SUBSTITUTE(Q83,$ED83,$ED$2&ROW($ED83)),$EC83,$EC$2&ROW($EC83)),$EB83,$EB$2&ROW($EB83)),$EA83,$EA$2&ROW($EA83)),$DZ83,$DZ$2&ROW($DZ83)),$DY83,$DY$2&ROW($DY83)),$DX83,$DX$2&ROW($DX83)),$DW83,$DW$2&ROW($DW83)),$DV83,$DV$2&ROW($DV83)),$DU83,$DU$2&ROW($DU83)),$DT83,$DT$2&ROW($DT83)),$DS83,$DS$2&ROW($DS83)))","v":0},{"$f":"IF(R83=\"\",0,\"X=\"&SUBSTITUTE(SUBSTITUTE(SUBSTITUTE(SUBSTITUTE(SUBSTITUTE(SUBSTITUTE(SUBSTITUTE(SUBSTITUTE(SUBSTITUTE(SUBSTITUTE(SUBSTITUTE(SUBSTITUTE(R83,$ED83,$ED$2&ROW($ED83)),$EC83,$EC$2&ROW($EC83)),$EB83,$EB$2&ROW($EB83)),$EA83,$EA$2&ROW($EA83)),$DZ83,$DZ$2&ROW($DZ83)),$DY83,$DY$2&ROW($DY83)),$DX83,$DX$2&ROW($DX83)),$DW83,$DW$2&ROW($DW83)),$DV83,$DV$2&ROW($DV83)),$DU83,$DU$2&ROW($DU83)),$DT83,$DT$2&ROW($DT83)),$DS83,$DS$2&ROW($DS83)))","v":0},{"$f":"IF(S83=\"\",0,\"X=\"&SUBSTITUTE(SUBSTITUTE(SUBSTITUTE(SUBSTITUTE(SUBSTITUTE(SUBSTITUTE(SUBSTITUTE(SUBSTITUTE(SUBSTITUTE(SUBSTITUTE(SUBSTITUTE(SUBSTITUTE(S83,$ED83,$ED$2&ROW($ED83)),$EC83,$EC$2&ROW($EC83)),$EB83,$EB$2&ROW($EB83)),$EA83,$EA$2&ROW($EA83)),$DZ83,$DZ$2&ROW($DZ83)),$DY83,$DY$2&ROW($DY83)),$DX83,$DX$2&ROW($DX83)),$DW83,$DW$2&ROW($DW83)),$DV83,$DV$2&ROW($DV83)),$DU83,$DU$2&ROW($DU83)),$DT83,$DT$2&ROW($DT83)),$DS83,$DS$2&ROW($DS83)))","v":0},{"$f":"IF(T83=\"\",0,\"X=\"&SUBSTITUTE(SUBSTITUTE(SUBSTITUTE(SUBSTITUTE(SUBSTITUTE(SUBSTITUTE(SUBSTITUTE(SUBSTITUTE(SUBSTITUTE(SUBSTITUTE(SUBSTITUTE(SUBSTITUTE(T83,$ED83,$ED$2&ROW($ED83)),$EC83,$EC$2&ROW($EC83)),$EB83,$EB$2&ROW($EB83)),$EA83,$EA$2&ROW($EA83)),$DZ83,$DZ$2&ROW($DZ83)),$DY83,$DY$2&ROW($DY83)),$DX83,$DX$2&ROW($DX83)),$DW83,$DW$2&ROW($DW83)),$DV83,$DV$2&ROW($DV83)),$DU83,$DU$2&ROW($DU83)),$DT83,$DT$2&ROW($DT83)),$DS83,$DS$2&ROW($DS83)))","v":0},{"$f":"IF(U83=\"\",0,\"X=\"&SUBSTITUTE(SUBSTITUTE(SUBSTITUTE(SUBSTITUTE(SUBSTITUTE(SUBSTITUTE(SUBSTITUTE(SUBSTITUTE(SUBSTITUTE(SUBSTITUTE(SUBSTITUTE(SUBSTITUTE(U83,$ED83,$ED$2&ROW($ED83)),$EC83,$EC$2&ROW($EC83)),$EB83,$EB$2&ROW($EB83)),$EA83,$EA$2&ROW($EA83)),$DZ83,$DZ$2&ROW($DZ83)),$DY83,$DY$2&ROW($DY83)),$DX83,$DX$2&ROW($DX83)),$DW83,$DW$2&ROW($DW83)),$DV83,$DV$2&ROW($DV83)),$DU83,$DU$2&ROW($DU83)),$DT83,$DT$2&ROW($DT83)),$DS83,$DS$2&ROW($DS83)))","v":0},{"$f":"IF(V83=\"\",0,\"X=\"&SUBSTITUTE(SUBSTITUTE(SUBSTITUTE(SUBSTITUTE(SUBSTITUTE(SUBSTITUTE(SUBSTITUTE(SUBSTITUTE(SUBSTITUTE(SUBSTITUTE(SUBSTITUTE(SUBSTITUTE(V83,$ED83,$ED$2&ROW($ED83)),$EC83,$EC$2&ROW($EC83)),$EB83,$EB$2&ROW($EB83)),$EA83,$EA$2&ROW($EA83)),$DZ83,$DZ$2&ROW($DZ83)),$DY83,$DY$2&ROW($DY83)),$DX83,$DX$2&ROW($DX83)),$DW83,$DW$2&ROW($DW83)),$DV83,$DV$2&ROW($DV83)),$DU83,$DU$2&ROW($DU83)),$DT83,$DT$2&ROW($DT83)),$DS83,$DS$2&ROW($DS83)))","v":0},{"$f":"IF(W83=\"\",0,\"X=\"&SUBSTITUTE(SUBSTITUTE(SUBSTITUTE(SUBSTITUTE(SUBSTITUTE(SUBSTITUTE(SUBSTITUTE(SUBSTITUTE(SUBSTITUTE(SUBSTITUTE(SUBSTITUTE(SUBSTITUTE(W83,$ED83,$ED$2&ROW($ED83)),$EC83,$EC$2&ROW($EC83)),$EB83,$EB$2&ROW($EB83)),$EA83,$EA$2&ROW($EA83)),$DZ83,$DZ$2&ROW($DZ83)),$DY83,$DY$2&ROW($DY83)),$DX83,$DX$2&ROW($DX83)),$DW83,$DW$2&ROW($DW83)),$DV83,$DV$2&ROW($DV83)),$DU83,$DU$2&ROW($DU83)),$DT83,$DT$2&ROW($DT83)),$DS83,$DS$2&ROW($DS83)))","v":"X=if(AW83<>1,0,AS83 * (AU83 * 1565 *0.068) / 1000 * 10)"},{"$f":"IF(X83=\"\",0,\"X=\"&SUBSTITUTE(SUBSTITUTE(SUBSTITUTE(SUBSTITUTE(SUBSTITUTE(SUBSTITUTE(SUBSTITUTE(SUBSTITUTE(SUBSTITUTE(SUBSTITUTE(SUBSTITUTE(SUBSTITUTE(X83,$ED83,$ED$2&ROW($ED83)),$EC83,$EC$2&ROW($EC83)),$EB83,$EB$2&ROW($EB83)),$EA83,$EA$2&ROW($EA83)),$DZ83,$DZ$2&ROW($DZ83)),$DY83,$DY$2&ROW($DY83)),$DX83,$DX$2&ROW($DX83)),$DW83,$DW$2&ROW($DW83)),$DV83,$DV$2&ROW($DV83)),$DU83,$DU$2&ROW($DU83)),$DT83,$DT$2&ROW($DT83)),$DS83,$DS$2&ROW($DS83)))","v":0},{"$f":"IF(Y83=\"\",0,\"X=\"&SUBSTITUTE(SUBSTITUTE(SUBSTITUTE(SUBSTITUTE(SUBSTITUTE(SUBSTITUTE(SUBSTITUTE(SUBSTITUTE(SUBSTITUTE(SUBSTITUTE(SUBSTITUTE(SUBSTITUTE(Y83,$ED83,$ED$2&ROW($ED83)),$EC83,$EC$2&ROW($EC83)),$EB83,$EB$2&ROW($EB83)),$EA83,$EA$2&ROW($EA83)),$DZ83,$DZ$2&ROW($DZ83)),$DY83,$DY$2&ROW($DY83)),$DX83,$DX$2&ROW($DX83)),$DW83,$DW$2&ROW($DW83)),$DV83,$DV$2&ROW($DV83)),$DU83,$DU$2&ROW($DU83)),$DT83,$DT$2&ROW($DT83)),$DS83,$DS$2&ROW($DS83)))","v":0},{"$f":"IF(Z83=\"\",0,\"X=\"&SUBSTITUTE(SUBSTITUTE(SUBSTITUTE(SUBSTITUTE(SUBSTITUTE(SUBSTITUTE(SUBSTITUTE(SUBSTITUTE(SUBSTITUTE(SUBSTITUTE(SUBSTITUTE(SUBSTITUTE(Z83,$ED83,$ED$2&ROW($ED83)),$EC83,$EC$2&ROW($EC83)),$EB83,$EB$2&ROW($EB83)),$EA83,$EA$2&ROW($EA83)),$DZ83,$DZ$2&ROW($DZ83)),$DY83,$DY$2&ROW($DY83)),$DX83,$DX$2&ROW($DX83)),$DW83,$DW$2&ROW($DW83)),$DV83,$DV$2&ROW($DV83)),$DU83,$DU$2&ROW($DU83)),$DT83,$DT$2&ROW($DT83)),$DS83,$DS$2&ROW($DS83)))","v":0},{"$f":"IF(AA83=\"\",0,\"X=\"&SUBSTITUTE(SUBSTITUTE(SUBSTITUTE(SUBSTITUTE(SUBSTITUTE(SUBSTITUTE(SUBSTITUTE(SUBSTITUTE(SUBSTITUTE(SUBSTITUTE(SUBSTITUTE(SUBSTITUTE(AA83,$ED83,$ED$2&ROW($ED83)),$EC83,$EC$2&ROW($EC83)),$EB83,$EB$2&ROW($EB83)),$EA83,$EA$2&ROW($EA83)),$DZ83,$DZ$2&ROW($DZ83)),$DY83,$DY$2&ROW($DY83)),$DX83,$DX$2&ROW($DX83)),$DW83,$DW$2&ROW($DW83)),$DV83,$DV$2&ROW($DV83)),$DU83,$DU$2&ROW($DU83)),$DT83,$DT$2&ROW($DT83)),$DS83,$DS$2&ROW($DS83)))","v":0},{"$f":"IF(AB83=\"\",0,\"X=\"&SUBSTITUTE(SUBSTITUTE(SUBSTITUTE(SUBSTITUTE(SUBSTITUTE(SUBSTITUTE(SUBSTITUTE(SUBSTITUTE(SUBSTITUTE(SUBSTITUTE(SUBSTITUTE(SUBSTITUTE(AB83,$ED83,$ED$2&ROW($ED83)),$EC83,$EC$2&ROW($EC83)),$EB83,$EB$2&ROW($EB83)),$EA83,$EA$2&ROW($EA83)),$DZ83,$DZ$2&ROW($DZ83)),$DY83,$DY$2&ROW($DY83)),$DX83,$DX$2&ROW($DX83)),$DW83,$DW$2&ROW($DW83)),$DV83,$DV$2&ROW($DV83)),$DU83,$DU$2&ROW($DU83)),$DT83,$DT$2&ROW($DT83)),$DS83,$DS$2&ROW($DS83)))","v":0},null,null,"{Factor:WinterCF}","{Factor:SummerCF}",{"$f":"IFERROR(INDEX($EG83:$IV83,MATCH(0,COUNTIF($DR83:DT83,$EG83:$IV83),0)),\"\")","v":"{Measure:Quantity}"},{"$f":"IFERROR(INDEX($EG83:$IV83,MATCH(0,COUNTIF($DR83:DU83,$EG83:$IV83),0)),\"\")","v":"{Capacity (MBTUH)}"},{"$f":"IFERROR(INDEX($EG83:$IV83,MATCH(0,COUNTIF($DR83:DV83,$EG83:$IV83),0)),\"\")","v":"{Existing Fuel}"},{"$f":"IFERROR(INDEX($EG83:$IV83,MATCH(0,COUNTIF($DR83:DW83,$EG83:$IV83),0)),\"\")","v":""},{"$f":"IFERROR(INDEX($EG83:$IV83,MATCH(0,COUNTIF($DR83:DX83,$EG83:$IV83),0)),\"\")","v":""},{"$f":"IFERROR(INDEX($EG83:$IV83,MATCH(0,COUNTIF($DR83:DY83,$EG83:$IV83),0)),\"\")","v":""},{"$f":"IFERROR(INDEX($EG83:$IV83,MATCH(0,COUNTIF($DR83:DZ83,$EG83:$IV83),0)),\"\")","v":""},{"$f":"IFERROR(INDEX($EG83:$IV83,MATCH(0,COUNTIF($DR83:EA83,$EG83:$IV83),0)),\"\")","v":""},{"$f":"IFERROR(INDEX($EG83:$IV83,MATCH(0,COUNTIF($DR83:EB83,$EG83:$IV83),0)),\"\")","v":""},{"$f":"IFERROR(INDEX($EG83:$IV83,MATCH(0,COUNTIF($DR83:EC83,$EG83:$IV83),0)),\"\")","v":""},null,null,{"$f":"IFERROR(MID($G83,FIND(CHAR(160),SUBSTITUTE($G83,\"{\",CHAR(160),EG$1)),FIND(CHAR(160),SUBSTITUTE($G83,\"}\",CHAR(160),EG$1))-FIND(CHAR(160),SUBSTITUTE($G83,\"{\",CHAR(160),EG$1))+1),\"\")","v":""},{"$f":"IFERROR(MID($G83,FIND(CHAR(160),SUBSTITUTE($G83,\"{\",CHAR(160),EH$1)),FIND(CHAR(160),SUBSTITUTE($G83,\"}\",CHAR(160),EH$1))-FIND(CHAR(160),SUBSTITUTE($G83,\"{\",CHAR(160),EH$1))+1),\"\")","v":""},{"$f":"IFERROR(MID($G83,FIND(CHAR(160),SUBSTITUTE($G83,\"{\",CHAR(160),EI$1)),FIND(CHAR(160),SUBSTITUTE($G83,\"}\",CHAR(160),EI$1))-FIND(CHAR(160),SUBSTITUTE($G83,\"{\",CHAR(160),EI$1))+1),\"\")","v":""},{"$f":"IFERROR(MID($G83,FIND(CHAR(160),SUBSTITUTE($G83,\"{\",CHAR(160),EJ$1)),FIND(CHAR(160),SUBSTITUTE($G83,\"}\",CHAR(160),EJ$1))-FIND(CHAR(160),SUBSTITUTE($G83,\"{\",CHAR(160),EJ$1))+1),\"\")","v":""},{"$f":"IFERROR(MID($G83,FIND(CHAR(160),SUBSTITUTE($G83,\"{\",CHAR(160),EK$1)),FIND(CHAR(160),SUBSTITUTE($G83,\"}\",CHAR(160),EK$1))-FIND(CHAR(160),SUBSTITUTE($G83,\"{\",CHAR(160),EK$1))+1),\"\")","v":""},{"$f":"IFERROR(MID($G83,FIND(CHAR(160),SUBSTITUTE($G83,\"{\",CHAR(160),EL$1)),FIND(CHAR(160),SUBSTITUTE($G83,\"}\",CHAR(160),EL$1))-FIND(CHAR(160),SUBSTITUTE($G83,\"{\",CHAR(160),EL$1))+1),\"\")","v":""},{"$f":"IFERROR(MID($G83,FIND(CHAR(160),SUBSTITUTE($G83,\"{\",CHAR(160),EM$1)),FIND(CHAR(160),SUBSTITUTE($G83,\"}\",CHAR(160),EM$1))-FIND(CHAR(160),SUBSTITUTE($G83,\"{\",CHAR(160),EM$1))+1),\"\")","v":""},{"$f":"IFERROR(MID($G83,FIND(CHAR(160),SUBSTITUTE($G83,\"{\",CHAR(160),EN$1)),FIND(CHAR(160),SUBSTITUTE($G83,\"}\",CHAR(160),EN$1))-FIND(CHAR(160),SUBSTITUTE($G83,\"{\",CHAR(160),EN$1))+1),\"\")","v":""},{"$f":"IFERROR(MID($G83,FIND(CHAR(160),SUBSTITUTE($G83,\"{\",CHAR(160),EO$1)),FIND(CHAR(160),SUBSTITUTE($G83,\"}\",CHAR(160),EO$1))-FIND(CHAR(160),SUBSTITUTE($G83,\"{\",CHAR(160),EO$1))+1),\"\")","v":""},{"$f":"IFERROR(MID($G83,FIND(CHAR(160),SUBSTITUTE($G83,\"{\",CHAR(160),EP$1)),FIND(CHAR(160),SUBSTITUTE($G83,\"}\",CHAR(160),EP$1))-FIND(CHAR(160),SUBSTITUTE($G83,\"{\",CHAR(160),EP$1))+1),\"\")","v":""},{"$f":"IFERROR(MID($J83,FIND(CHAR(160),SUBSTITUTE($J83,\"{\",CHAR(160),EQ$1)),FIND(CHAR(160),SUBSTITUTE($J83,\"}\",CHAR(160),EQ$1))-FIND(CHAR(160),SUBSTITUTE($J83,\"{\",CHAR(160),EQ$1))+1),\"\")","v":"{Measure:Quantity}"},{"$f":"IFERROR(MID($J83,FIND(CHAR(160),SUBSTITUTE($J83,\"{\",CHAR(160),ER$1)),FIND(CHAR(160),SUBSTITUTE($J83,\"}\",CHAR(160),ER$1))-FIND(CHAR(160),SUBSTITUTE($J83,\"{\",CHAR(160),ER$1))+1),\"\")","v":""},{"$f":"IFERROR(MID($J83,FIND(CHAR(160),SUBSTITUTE($J83,\"{\",CHAR(160),ES$1)),FIND(CHAR(160),SUBSTITUTE($J83,\"}\",CHAR(160),ES$1))-FIND(CHAR(160),SUBSTITUTE($J83,\"{\",CHAR(160),ES$1))+1),\"\")","v":""},{"$f":"IFERROR(MID($J83,FIND(CHAR(160),SUBSTITUTE($J83,\"{\",CHAR(160),ET$1)),FIND(CHAR(160),SUBSTITUTE($J83,\"}\",CHAR(160),ET$1))-FIND(CHAR(160),SUBSTITUTE($J83,\"{\",CHAR(160),ET$1))+1),\"\")","v":""},{"$f":"IFERROR(MID($J83,FIND(CHAR(160),SUBSTITUTE($J83,\"{\",CHAR(160),EU$1)),FIND(CHAR(160),SUBSTITUTE($J83,\"}\",CHAR(160),EU$1))-FIND(CHAR(160),SUBSTITUTE($J83,\"{\",CHAR(160),EU$1))+1),\"\")","v":""},{"$f":"IFERROR(MID($J83,FIND(CHAR(160),SUBSTITUTE($J83,\"{\",CHAR(160),EV$1)),FIND(CHAR(160),SUBSTITUTE($J83,\"}\",CHAR(160),EV$1))-FIND(CHAR(160),SUBSTITUTE($J83,\"{\",CHAR(160),EV$1))+1),\"\")","v":""},{"$f":"IFERROR(MID($J83,FIND(CHAR(160),SUBSTITUTE($J83,\"{\",CHAR(160),EW$1)),FIND(CHAR(160),SUBSTITUTE($J83,\"}\",CHAR(160),EW$1))-FIND(CHAR(160),SUBSTITUTE($J83,\"{\",CHAR(160),EW$1))+1),\"\")","v":""},{"$f":"IFERROR(MID($J83,FIND(CHAR(160),SUBSTITUTE($J83,\"{\",CHAR(160),EX$1)),FIND(CHAR(160),SUBSTITUTE($J83,\"}\",CHAR(160),EX$1))-FIND(CHAR(160),SUBSTITUTE($J83,\"{\",CHAR(160),EX$1))+1),\"\")","v":""},{"$f":"IFERROR(MID($J83,FIND(CHAR(160),SUBSTITUTE($J83,\"{\",CHAR(160),EY$1)),FIND(CHAR(160),SUBSTITUTE($J83,\"}\",CHAR(160),EY$1))-FIND(CHAR(160),SUBSTITUTE($J83,\"{\",CHAR(160),EY$1))+1),\"\")","v":""},{"$f":"IFERROR(MID($J83,FIND(CHAR(160),SUBSTITUTE($J83,\"{\",CHAR(160),EZ$1)),FIND(CHAR(160),SUBSTITUTE($J83,\"}\",CHAR(160),EZ$1))-FIND(CHAR(160),SUBSTITUTE($J83,\"{\",CHAR(160),EZ$1))+1),\"\")","v":""},{"$f":"IFERROR(MID($J83,FIND(CHAR(160),SUBSTITUTE($J83,\"{\",CHAR(160),FA$1)),FIND(CHAR(160),SUBSTITUTE($J83,\"}\",CHAR(160),FA$1))-FIND(CHAR(160),SUBSTITUTE($J83,\"{\",CHAR(160),FA$1))+1),\"\")","v":"{Measure:Quantity}"},{"$f":"IFERROR(MID($J83,FIND(CHAR(160),SUBSTITUTE($J83,\"{\",CHAR(160),FB$1)),FIND(CHAR(160),SUBSTITUTE($J83,\"}\",CHAR(160),FB$1))-FIND(CHAR(160),SUBSTITUTE($J83,\"{\",CHAR(160),FB$1))+1),\"\")","v":""},{"$f":"IFERROR(MID($O83,FIND(CHAR(160),SUBSTITUTE($O83,\"{\",CHAR(160),FC$1)),FIND(CHAR(160),SUBSTITUTE($O83,\"}\",CHAR(160),FC$1))-FIND(CHAR(160),SUBSTITUTE($O83,\"{\",CHAR(160),FC$1))+1),\"\")","v":""},{"$f":"IFERROR(MID($O83,FIND(CHAR(160),SUBSTITUTE($O83,\"{\",CHAR(160),FD$1)),FIND(CHAR(160),SUBSTITUTE($O83,\"}\",CHAR(160),FD$1))-FIND(CHAR(160),SUBSTITUTE($O83,\"{\",CHAR(160),FD$1))+1),\"\")","v":""},{"$f":"IFERROR(MID($O83,FIND(CHAR(160),SUBSTITUTE($O83,\"{\",CHAR(160),FE$1)),FIND(CHAR(160),SUBSTITUTE($O83,\"}\",CHAR(160),FE$1))-FIND(CHAR(160),SUBSTITUTE($O83,\"{\",CHAR(160),FE$1))+1),\"\")","v":""},{"$f":"IFERROR(MID($O83,FIND(CHAR(160),SUBSTITUTE($O83,\"{\",CHAR(160),FF$1)),FIND(CHAR(160),SUBSTITUTE($O83,\"}\",CHAR(160),FF$1))-FIND(CHAR(160),SUBSTITUTE($O83,\"{\",CHAR(160),FF$1))+1),\"\")","v":""},{"$f":"IFERROR(MID($O83,FIND(CHAR(160),SUBSTITUTE($O83,\"{\",CHAR(160),FG$1)),FIND(CHAR(160),SUBSTITUTE($O83,\"}\",CHAR(160),FG$1))-FIND(CHAR(160),SUBSTITUTE($O83,\"{\",CHAR(160),FG$1))+1),\"\")","v":""},{"$f":"IFERROR(MID($O83,FIND(CHAR(160),SUBSTITUTE($O83,\"{\",CHAR(160),FH$1)),FIND(CHAR(160),SUBSTITUTE($O83,\"}\",CHAR(160),FH$1))-FIND(CHAR(160),SUBSTITUTE($O83,\"{\",CHAR(160),FH$1))+1),\"\")","v":""},{"$f":"IFERROR(MID($O83,FIND(CHAR(160),SUBSTITUTE($O83,\"{\",CHAR(160),FI$1)),FIND(CHAR(160),SUBSTITUTE($O83,\"}\",CHAR(160),FI$1))-FIND(CHAR(160),SUBSTITUTE($O83,\"{\",CHAR(160),FI$1))+1),\"\")","v":""},{"$f":"IFERROR(MID($O83,FIND(CHAR(160),SUBSTITUTE($O83,\"{\",CHAR(160),FJ$1)),FIND(CHAR(160),SUBSTITUTE($O83,\"}\",CHAR(160),FJ$1))-FIND(CHAR(160),SUBSTITUTE($O83,\"{\",CHAR(160),FJ$1))+1),\"\")","v":""},{"$f":"IFERROR(MID($O83,FIND(CHAR(160),SUBSTITUTE($O83,\"{\",CHAR(160),FK$1)),FIND(CHAR(160),SUBSTITUTE($O83,\"}\",CHAR(160),FK$1))-FIND(CHAR(160),SUBSTITUTE($O83,\"{\",CHAR(160),FK$1))+1),\"\")","v":""},{"$f":"IFERROR(MID($O83,FIND(CHAR(160),SUBSTITUTE($O83,\"{\",CHAR(160),FL$1)),FIND(CHAR(160),SUBSTITUTE($O83,\"}\",CHAR(160),FL$1))-FIND(CHAR(160),SUBSTITUTE($O83,\"{\",CHAR(160),FL$1))+1),\"\")","v":""},{"$f":"IFERROR(MID($R83,FIND(CHAR(160),SUBSTITUTE($R83,\"{\",CHAR(160),FM$1)),FIND(CHAR(160),SUBSTITUTE($R83,\"}\",CHAR(160),FM$1))-FIND(CHAR(160),SUBSTITUTE($R83,\"{\",CHAR(160),FM$1))+1),\"\")","v":""},{"$f":"IFERROR(MID($R83,FIND(CHAR(160),SUBSTITUTE($R83,\"{\",CHAR(160),FN$1)),FIND(CHAR(160),SUBSTITUTE($R83,\"}\",CHAR(160),FN$1))-FIND(CHAR(160),SUBSTITUTE($R83,\"{\",CHAR(160),FN$1))+1),\"\")","v":""},{"$f":"IFERROR(MID($R83,FIND(CHAR(160),SUBSTITUTE($R83,\"{\",CHAR(160),FO$1)),FIND(CHAR(160),SUBSTITUTE($R83,\"}\",CHAR(160),FO$1))-FIND(CHAR(160),SUBSTITUTE($R83,\"{\",CHAR(160),FO$1))+1),\"\")","v":""},{"$f":"IFERROR(MID($R83,FIND(CHAR(160),SUBSTITUTE($R83,\"{\",CHAR(160),FP$1)),FIND(CHAR(160),SUBSTITUTE($R83,\"}\",CHAR(160),FP$1))-FIND(CHAR(160),SUBSTITUTE($R83,\"{\",CHAR(160),FP$1))+1),\"\")","v":""},{"$f":"IFERROR(MID($R83,FIND(CHAR(160),SUBSTITUTE($R83,\"{\",CHAR(160),FQ$1)),FIND(CHAR(160),SUBSTITUTE($R83,\"}\",CHAR(160),FQ$1))-FIND(CHAR(160),SUBSTITUTE($R83,\"{\",CHAR(160),FQ$1))+1),\"\")","v":""},{"$f":"IFERROR(MID($R83,FIND(CHAR(160),SUBSTITUTE($R83,\"{\",CHAR(160),FR$1)),FIND(CHAR(160),SUBSTITUTE($R83,\"}\",CHAR(160),FR$1))-FIND(CHAR(160),SUBSTITUTE($R83,\"{\",CHAR(160),FR$1))+1),\"\")","v":""},{"$f":"IFERROR(MID($R83,FIND(CHAR(160),SUBSTITUTE($R83,\"{\",CHAR(160),FS$1)),FIND(CHAR(160),SUBSTITUTE($R83,\"}\",CHAR(160),FS$1))-FIND(CHAR(160),SUBSTITUTE($R83,\"{\",CHAR(160),FS$1))+1),\"\")","v":""},{"$f":"IFERROR(MID($R83,FIND(CHAR(160),SUBSTITUTE($R83,\"{\",CHAR(160),FT$1)),FIND(CHAR(160),SUBSTITUTE($R83,\"}\",CHAR(160),FT$1))-FIND(CHAR(160),SUBSTITUTE($R83,\"{\",CHAR(160),FT$1))+1),\"\")","v":""},{"$f":"IFERROR(MID($R83,FIND(CHAR(160),SUBSTITUTE($R83,\"{\",CHAR(160),FU$1)),FIND(CHAR(160),SUBSTITUTE($R83,\"}\",CHAR(160),FU$1))-FIND(CHAR(160),SUBSTITUTE($R83,\"{\",CHAR(160),FU$1))+1),\"\")","v":""},{"$f":"IFERROR(MID($R83,FIND(CHAR(160),SUBSTITUTE($R83,\"{\",CHAR(160),FV$1)),FIND(CHAR(160),SUBSTITUTE($R83,\"}\",CHAR(160),FV$1))-FIND(CHAR(160),SUBSTITUTE($R83,\"{\",CHAR(160),FV$1))+1),\"\")","v":""},{"$f":"IFERROR(MID($U83,FIND(CHAR(160),SUBSTITUTE($U83,\"{\",CHAR(160),FW$1)),FIND(CHAR(160),SUBSTITUTE($U83,\"}\",CHAR(160),FW$1))-FIND(CHAR(160),SUBSTITUTE($U83,\"{\",CHAR(160),FW$1))+1),\"\")","v":""},{"$f":"IFERROR(MID($U83,FIND(CHAR(160),SUBSTITUTE($U83,\"{\",CHAR(160),FX$1)),FIND(CHAR(160),SUBSTITUTE($U83,\"}\",CHAR(160),FX$1))-FIND(CHAR(160),SUBSTITUTE($U83,\"{\",CHAR(160),FX$1))+1),\"\")","v":""},{"$f":"IFERROR(MID($U83,FIND(CHAR(160),SUBSTITUTE($U83,\"{\",CHAR(160),FY$1)),FIND(CHAR(160),SUBSTITUTE($U83,\"}\",CHAR(160),FY$1))-FIND(CHAR(160),SUBSTITUTE($U83,\"{\",CHAR(160),FY$1))+1),\"\")","v":""},{"$f":"IFERROR(MID($U83,FIND(CHAR(160),SUBSTITUTE($U83,\"{\",CHAR(160),FZ$1)),FIND(CHAR(160),SUBSTITUTE($U83,\"}\",CHAR(160),FZ$1))-FIND(CHAR(160),SUBSTITUTE($U83,\"{\",CHAR(160),FZ$1))+1),\"\")","v":""},{"$f":"IFERROR(MID($U83,FIND(CHAR(160),SUBSTITUTE($U83,\"{\",CHAR(160),GA$1)),FIND(CHAR(160),SUBSTITUTE($U83,\"}\",CHAR(160),GA$1))-FIND(CHAR(160),SUBSTITUTE($U83,\"{\",CHAR(160),GA$1))+1),\"\")","v":""},{"$f":"IFERROR(MID($U83,FIND(CHAR(160),SUBSTITUTE($U83,\"{\",CHAR(160),GB$1)),FIND(CHAR(160),SUBSTITUTE($U83,\"}\",CHAR(160),GB$1))-FIND(CHAR(160),SUBSTITUTE($U83,\"{\",CHAR(160),GB$1))+1),\"\")","v":""},{"$f":"IFERROR(MID($U83,FIND(CHAR(160),SUBSTITUTE($U83,\"{\",CHAR(160),GC$1)),FIND(CHAR(160),SUBSTITUTE($U83,\"}\",CHAR(160),GC$1))-FIND(CHAR(160),SUBSTITUTE($U83,\"{\",CHAR(160),GC$1))+1),\"\")","v":""},{"$f":"IFERROR(MID($U83,FIND(CHAR(160),SUBSTITUTE($U83,\"{\",CHAR(160),GD$1)),FIND(CHAR(160),SUBSTITUTE($U83,\"}\",CHAR(160),GD$1))-FIND(CHAR(160),SUBSTITUTE($U83,\"{\",CHAR(160),GD$1))+1),\"\")","v":""},{"$f":"IFERROR(MID($U83,FIND(CHAR(160),SUBSTITUTE($U83,\"{\",CHAR(160),GE$1)),FIND(CHAR(160),SUBSTITUTE($U83,\"}\",CHAR(160),GE$1))-FIND(CHAR(160),SUBSTITUTE($U83,\"{\",CHAR(160),GE$1))+1),\"\")","v":""},{"$f":"IFERROR(MID($U83,FIND(CHAR(160),SUBSTITUTE($U83,\"{\",CHAR(160),GF$1)),FIND(CHAR(160),SUBSTITUTE($U83,\"}\",CHAR(160),GF$1))-FIND(CHAR(160),SUBSTITUTE($U83,\"{\",CHAR(160),GF$1))+1),\"\")","v":""},{"$f":"IFERROR(MID($V83,FIND(CHAR(160),SUBSTITUTE($V83,\"{\",CHAR(160),GG$1)),FIND(CHAR(160),SUBSTITUTE($V83,\"}\",CHAR(160),GG$1))-FIND(CHAR(160),SUBSTITUTE($V83,\"{\",CHAR(160),GG$1))+1),\"\")","v":""},{"$f":"IFERROR(MID($V83,FIND(CHAR(160),SUBSTITUTE($V83,\"{\",CHAR(160),GH$1)),FIND(CHAR(160),SUBSTITUTE($V83,\"}\",CHAR(160),GH$1))-FIND(CHAR(160),SUBSTITUTE($V83,\"{\",CHAR(160),GH$1))+1),\"\")","v":""},{"$f":"IFERROR(MID($V83,FIND(CHAR(160),SUBSTITUTE($V83,\"{\",CHAR(160),GI$1)),FIND(CHAR(160),SUBSTITUTE($V83,\"}\",CHAR(160),GI$1))-FIND(CHAR(160),SUBSTITUTE($V83,\"{\",CHAR(160),GI$1))+1),\"\")","v":""},{"$f":"IFERROR(MID($V83,FIND(CHAR(160),SUBSTITUTE($V83,\"{\",CHAR(160),GJ$1)),FIND(CHAR(160),SUBSTITUTE($V83,\"}\",CHAR(160),GJ$1))-FIND(CHAR(160),SUBSTITUTE($V83,\"{\",CHAR(160),GJ$1))+1),\"\")","v":""},{"$f":"IFERROR(MID($V83,FIND(CHAR(160),SUBSTITUTE($V83,\"{\",CHAR(160),GK$1)),FIND(CHAR(160),SUBSTITUTE($V83,\"}\",CHAR(160),GK$1))-FIND(CHAR(160),SUBSTITUTE($V83,\"{\",CHAR(160),GK$1))+1),\"\")","v":""},{"$f":"IFERROR(MID($V83,FIND(CHAR(160),SUBSTITUTE($V83,\"{\",CHAR(160),GL$1)),FIND(CHAR(160),SUBSTITUTE($V83,\"}\",CHAR(160),GL$1))-FIND(CHAR(160),SUBSTITUTE($V83,\"{\",CHAR(160),GL$1))+1),\"\")","v":""},{"$f":"IFERROR(MID($V83,FIND(CHAR(160),SUBSTITUTE($V83,\"{\",CHAR(160),GM$1)),FIND(CHAR(160),SUBSTITUTE($V83,\"}\",CHAR(160),GM$1))-FIND(CHAR(160),SUBSTITUTE($V83,\"{\",CHAR(160),GM$1))+1),\"\")","v":""},{"$f":"IFERROR(MID($V83,FIND(CHAR(160),SUBSTITUTE($V83,\"{\",CHAR(160),GN$1)),FIND(CHAR(160),SUBSTITUTE($V83,\"}\",CHAR(160),GN$1))-FIND(CHAR(160),SUBSTITUTE($V83,\"{\",CHAR(160),GN$1))+1),\"\")","v":""},{"$f":"IFERROR(MID($V83,FIND(CHAR(160),SUBSTITUTE($V83,\"{\",CHAR(160),GO$1)),FIND(CHAR(160),SUBSTITUTE($V83,\"}\",CHAR(160),GO$1))-FIND(CHAR(160),SUBSTITUTE($V83,\"{\",CHAR(160),GO$1))+1),\"\")","v":""},{"$f":"IFERROR(MID($V83,FIND(CHAR(160),SUBSTITUTE($V83,\"{\",CHAR(160),GP$1)),FIND(CHAR(160),SUBSTITUTE($V83,\"}\",CHAR(160),GP$1))-FIND(CHAR(160),SUBSTITUTE($V83,\"{\",CHAR(160),GP$1))+1),\"\")","v":""},{"$f":"IFERROR(MID($W83,FIND(CHAR(160),SUBSTITUTE($W83,\"{\",CHAR(160),GQ$1)),FIND(CHAR(160),SUBSTITUTE($W83,\"}\",CHAR(160),GQ$1))-FIND(CHAR(160),SUBSTITUTE($W83,\"{\",CHAR(160),GQ$1))+1),\"\")","v":"{Capacity (MBTUH)}"},{"$f":"IFERROR(MID($W83,FIND(CHAR(160),SUBSTITUTE($W83,\"{\",CHAR(160),GR$1)),FIND(CHAR(160),SUBSTITUTE($W83,\"}\",CHAR(160),GR$1))-FIND(CHAR(160),SUBSTITUTE($W83,\"{\",CHAR(160),GR$1))+1),\"\")","v":""},{"$f":"IFERROR(MID($W83,FIND(CHAR(160),SUBSTITUTE($W83,\"{\",CHAR(160),GS$1)),FIND(CHAR(160),SUBSTITUTE($W83,\"}\",CHAR(160),GS$1))-FIND(CHAR(160),SUBSTITUTE($W83,\"{\",CHAR(160),GS$1))+1),\"\")","v":""},{"$f":"IFERROR(MID($W83,FIND(CHAR(160),SUBSTITUTE($W83,\"{\",CHAR(160),GT$1)),FIND(CHAR(160),SUBSTITUTE($W83,\"}\",CHAR(160),GT$1))-FIND(CHAR(160),SUBSTITUTE($W83,\"{\",CHAR(160),GT$1))+1),\"\")","v":""},{"$f":"IFERROR(MID($W83,FIND(CHAR(160),SUBSTITUTE($W83,\"{\",CHAR(160),GU$1)),FIND(CHAR(160),SUBSTITUTE($W83,\"}\",CHAR(160),GU$1))-FIND(CHAR(160),SUBSTITUTE($W83,\"{\",CHAR(160),GU$1))+1),\"\")","v":""},{"$f":"IFERROR(MID($W83,FIND(CHAR(160),SUBSTITUTE($W83,\"{\",CHAR(160),GV$1)),FIND(CHAR(160),SUBSTITUTE($W83,\"}\",CHAR(160),GV$1))-FIND(CHAR(160),SUBSTITUTE($W83,\"{\",CHAR(160),GV$1))+1),\"\")","v":""},{"$f":"IFERROR(MID($W83,FIND(CHAR(160),SUBSTITUTE($W83,\"{\",CHAR(160),GW$1)),FIND(CHAR(160),SUBSTITUTE($W83,\"}\",CHAR(160),GW$1))-FIND(CHAR(160),SUBSTITUTE($W83,\"{\",CHAR(160),GW$1))+1),\"\")","v":""},{"$f":"IFERROR(MID($W83,FIND(CHAR(160),SUBSTITUTE($W83,\"{\",CHAR(160),GX$1)),FIND(CHAR(160),SUBSTITUTE($W83,\"}\",CHAR(160),GX$1))-FIND(CHAR(160),SUBSTITUTE($W83,\"{\",CHAR(160),GX$1))+1),\"\")","v":""},{"$f":"IFERROR(MID($W83,FIND(CHAR(160),SUBSTITUTE($W83,\"{\",CHAR(160),GY$1)),FIND(CHAR(160),SUBSTITUTE($W83,\"}\",CHAR(160),GY$1))-FIND(CHAR(160),SUBSTITUTE($W83,\"{\",CHAR(160),GY$1))+1),\"\")","v":"{Existing Fuel}"},{"$f":"IFERROR(MID($W83,FIND(CHAR(160),SUBSTITUTE($W83,\"{\",CHAR(160),GZ$1)),FIND(CHAR(160),SUBSTITUTE($W83,\"}\",CHAR(160),GZ$1))-FIND(CHAR(160),SUBSTITUTE($W83,\"{\",CHAR(160),GZ$1))+1),\"\")","v":"{Measure:Quantity}"},{"$f":"IFERROR(MID($X83,FIND(CHAR(160),SUBSTITUTE($X83,\"{\",CHAR(160),HA$1)),FIND(CHAR(160),SUBSTITUTE($X83,\"}\",CHAR(160),HA$1))-FIND(CHAR(160),SUBSTITUTE($X83,\"{\",CHAR(160),HA$1))+1),\"\")","v":""},{"$f":"IFERROR(MID($X83,FIND(CHAR(160),SUBSTITUTE($X83,\"{\",CHAR(160),HB$1)),FIND(CHAR(160),SUBSTITUTE($X83,\"}\",CHAR(160),HB$1))-FIND(CHAR(160),SUBSTITUTE($X83,\"{\",CHAR(160),HB$1))+1),\"\")","v":""},{"$f":"IFERROR(MID($X83,FIND(CHAR(160),SUBSTITUTE($X83,\"{\",CHAR(160),HC$1)),FIND(CHAR(160),SUBSTITUTE($X83,\"}\",CHAR(160),HC$1))-FIND(CHAR(160),SUBSTITUTE($X83,\"{\",CHAR(160),HC$1))+1),\"\")","v":""},{"$f":"IFERROR(MID($X83,FIND(CHAR(160),SUBSTITUTE($X83,\"{\",CHAR(160),HD$1)),FIND(CHAR(160),SUBSTITUTE($X83,\"}\",CHAR(160),HD$1))-FIND(CHAR(160),SUBSTITUTE($X83,\"{\",CHAR(160),HD$1))+1),\"\")","v":""},{"$f":"IFERROR(MID($X83,FIND(CHAR(160),SUBSTITUTE($X83,\"{\",CHAR(160),HE$1)),FIND(CHAR(160),SUBSTITUTE($X83,\"}\",CHAR(160),HE$1))-FIND(CHAR(160),SUBSTITUTE($X83,\"{\",CHAR(160),HE$1))+1),\"\")","v":""},{"$f":"IFERROR(MID($X83,FIND(CHAR(160),SUBSTITUTE($X83,\"{\",CHAR(160),HF$1)),FIND(CHAR(160),SUBSTITUTE($X83,\"}\",CHAR(160),HF$1))-FIND(CHAR(160),SUBSTITUTE($X83,\"{\",CHAR(160),HF$1))+1),\"\")","v":""},{"$f":"IFERROR(MID($X83,FIND(CHAR(160),SUBSTITUTE($X83,\"{\",CHAR(160),HG$1)),FIND(CHAR(160),SUBSTITUTE($X83,\"}\",CHAR(160),HG$1))-FIND(CHAR(160),SUBSTITUTE($X83,\"{\",CHAR(160),HG$1))+1),\"\")","v":""},{"$f":"IFERROR(MID($X83,FIND(CHAR(160),SUBSTITUTE($X83,\"{\",CHAR(160),HH$1)),FIND(CHAR(160),SUBSTITUTE($X83,\"}\",CHAR(160),HH$1))-FIND(CHAR(160),SUBSTITUTE($X83,\"{\",CHAR(160),HH$1))+1),\"\")","v":""},{"$f":"IFERROR(MID($X83,FIND(CHAR(160),SUBSTITUTE($X83,\"{\",CHAR(160),HI$1)),FIND(CHAR(160),SUBSTITUTE($X83,\"}\",CHAR(160),HI$1))-FIND(CHAR(160),SUBSTITUTE($X83,\"{\",CHAR(160),HI$1))+1),\"\")","v":""},{"$f":"IFERROR(MID($X83,FIND(CHAR(160),SUBSTITUTE($X83,\"{\",CHAR(160),HJ$1)),FIND(CHAR(160),SUBSTITUTE($X83,\"}\",CHAR(160),HJ$1))-FIND(CHAR(160),SUBSTITUTE($X83,\"{\",CHAR(160),HJ$1))+1),\"\")","v":""},{"$f":"IFERROR(MID($Y83,FIND(CHAR(160),SUBSTITUTE($Y83,\"{\",CHAR(160),HK$1)),FIND(CHAR(160),SUBSTITUTE($Y83,\"}\",CHAR(160),HK$1))-FIND(CHAR(160),SUBSTITUTE($Y83,\"{\",CHAR(160),HK$1))+1),\"\")","v":""},{"$f":"IFERROR(MID($Y83,FIND(CHAR(160),SUBSTITUTE($Y83,\"{\",CHAR(160),HL$1)),FIND(CHAR(160),SUBSTITUTE($Y83,\"}\",CHAR(160),HL$1))-FIND(CHAR(160),SUBSTITUTE($Y83,\"{\",CHAR(160),HL$1))+1),\"\")","v":""},{"$f":"IFERROR(MID($Y83,FIND(CHAR(160),SUBSTITUTE($Y83,\"{\",CHAR(160),HM$1)),FIND(CHAR(160),SUBSTITUTE($Y83,\"}\",CHAR(160),HM$1))-FIND(CHAR(160),SUBSTITUTE($Y83,\"{\",CHAR(160),HM$1))+1),\"\")","v":""},{"$f":"IFERROR(MID($Y83,FIND(CHAR(160),SUBSTITUTE($Y83,\"{\",CHAR(160),HN$1)),FIND(CHAR(160),SUBSTITUTE($Y83,\"}\",CHAR(160),HN$1))-FIND(CHAR(160),SUBSTITUTE($Y83,\"{\",CHAR(160),HN$1))+1),\"\")","v":""},{"$f":"IFERROR(MID($Y83,FIND(CHAR(160),SUBSTITUTE($Y83,\"{\",CHAR(160),HO$1)),FIND(CHAR(160),SUBSTITUTE($Y83,\"}\",CHAR(160),HO$1))-FIND(CHAR(160),SUBSTITUTE($Y83,\"{\",CHAR(160),HO$1))+1),\"\")","v":""},{"$f":"IFERROR(MID($Y83,FIND(CHAR(160),SUBSTITUTE($Y83,\"{\",CHAR(160),HP$1)),FIND(CHAR(160),SUBSTITUTE($Y83,\"}\",CHAR(160),HP$1))-FIND(CHAR(160),SUBSTITUTE($Y83,\"{\",CHAR(160),HP$1))+1),\"\")","v":""},{"$f":"IFERROR(MID($Y83,FIND(CHAR(160),SUBSTITUTE($Y83,\"{\",CHAR(160),HQ$1)),FIND(CHAR(160),SUBSTITUTE($Y83,\"}\",CHAR(160),HQ$1))-FIND(CHAR(160),SUBSTITUTE($Y83,\"{\",CHAR(160),HQ$1))+1),\"\")","v":""},{"$f":"IFERROR(MID($Y83,FIND(CHAR(160),SUBSTITUTE($Y83,\"{\",CHAR(160),HR$1)),FIND(CHAR(160),SUBSTITUTE($Y83,\"}\",CHAR(160),HR$1))-FIND(CHAR(160),SUBSTITUTE($Y83,\"{\",CHAR(160),HR$1))+1),\"\")","v":""},{"$f":"IFERROR(MID($Y83,FIND(CHAR(160),SUBSTITUTE($Y83,\"{\",CHAR(160),HS$1)),FIND(CHAR(160),SUBSTITUTE($Y83,\"}\",CHAR(160),HS$1))-FIND(CHAR(160),SUBSTITUTE($Y83,\"{\",CHAR(160),HS$1))+1),\"\")","v":""},{"$f":"IFERROR(MID($Y83,FIND(CHAR(160),SUBSTITUTE($Y83,\"{\",CHAR(160),HT$1)),FIND(CHAR(160),SUBSTITUTE($Y83,\"}\",CHAR(160),HT$1))-FIND(CHAR(160),SUBSTITUTE($Y83,\"{\",CHAR(160),HT$1))+1),\"\")","v":""},{"$f":"IFERROR(MID($Z83,FIND(CHAR(160),SUBSTITUTE($Z83,\"{\",CHAR(160),HU$1)),FIND(CHAR(160),SUBSTITUTE($Z83,\"}\",CHAR(160),HU$1))-FIND(CHAR(160),SUBSTITUTE($Z83,\"{\",CHAR(160),HU$1))+1),\"\")","v":""},{"$f":"IFERROR(MID($Z83,FIND(CHAR(160),SUBSTITUTE($Z83,\"{\",CHAR(160),HV$1)),FIND(CHAR(160),SUBSTITUTE($Z83,\"}\",CHAR(160),HV$1))-FIND(CHAR(160),SUBSTITUTE($Z83,\"{\",CHAR(160),HV$1))+1),\"\")","v":""},{"$f":"IFERROR(MID($Z83,FIND(CHAR(160),SUBSTITUTE($Z83,\"{\",CHAR(160),HW$1)),FIND(CHAR(160),SUBSTITUTE($Z83,\"}\",CHAR(160),HW$1))-FIND(CHAR(160),SUBSTITUTE($Z83,\"{\",CHAR(160),HW$1))+1),\"\")","v":""},{"$f":"IFERROR(MID($Z83,FIND(CHAR(160),SUBSTITUTE($Z83,\"{\",CHAR(160),HX$1)),FIND(CHAR(160),SUBSTITUTE($Z83,\"}\",CHAR(160),HX$1))-FIND(CHAR(160),SUBSTITUTE($Z83,\"{\",CHAR(160),HX$1))+1),\"\")","v":""},{"$f":"IFERROR(MID($Z83,FIND(CHAR(160),SUBSTITUTE($Z83,\"{\",CHAR(160),HY$1)),FIND(CHAR(160),SUBSTITUTE($Z83,\"}\",CHAR(160),HY$1))-FIND(CHAR(160),SUBSTITUTE($Z83,\"{\",CHAR(160),HY$1))+1),\"\")","v":""},{"$f":"IFERROR(MID($Z83,FIND(CHAR(160),SUBSTITUTE($Z83,\"{\",CHAR(160),HZ$1)),FIND(CHAR(160),SUBSTITUTE($Z83,\"}\",CHAR(160),HZ$1))-FIND(CHAR(160),SUBSTITUTE($Z83,\"{\",CHAR(160),HZ$1))+1),\"\")","v":""},{"$f":"IFERROR(MID($Z83,FIND(CHAR(160),SUBSTITUTE($Z83,\"{\",CHAR(160),IA$1)),FIND(CHAR(160),SUBSTITUTE($Z83,\"}\",CHAR(160),IA$1))-FIND(CHAR(160),SUBSTITUTE($Z83,\"{\",CHAR(160),IA$1))+1),\"\")","v":""},{"$f":"IFERROR(MID($Z83,FIND(CHAR(160),SUBSTITUTE($Z83,\"{\",CHAR(160),IB$1)),FIND(CHAR(160),SUBSTITUTE($Z83,\"}\",CHAR(160),IB$1))-FIND(CHAR(160),SUBSTITUTE($Z83,\"{\",CHAR(160),IB$1))+1),\"\")","v":""},{"$f":"IFERROR(MID($Z83,FIND(CHAR(160),SUBSTITUTE($Z83,\"{\",CHAR(160),IC$1)),FIND(CHAR(160),SUBSTITUTE($Z83,\"}\",CHAR(160),IC$1))-FIND(CHAR(160),SUBSTITUTE($Z83,\"{\",CHAR(160),IC$1))+1),\"\")","v":""},{"$f":"IFERROR(MID($Z83,FIND(CHAR(160),SUBSTITUTE($Z83,\"{\",CHAR(160),ID$1)),FIND(CHAR(160),SUBSTITUTE($Z83,\"}\",CHAR(160),ID$1))-FIND(CHAR(160),SUBSTITUTE($Z83,\"{\",CHAR(160),ID$1))+1),\"\")","v":""},{"$f":"IFERROR(MID($AA83,FIND(CHAR(160),SUBSTITUTE($AA83,\"{\",CHAR(160),IE$1)),FIND(CHAR(160),SUBSTITUTE($AA83,\"}\",CHAR(160),IE$1))-FIND(CHAR(160),SUBSTITUTE($AA83,\"{\",CHAR(160),IE$1))+1),\"\")","v":""},{"$f":"IFERROR(MID($AA83,FIND(CHAR(160),SUBSTITUTE($AA83,\"{\",CHAR(160),IF$1)),FIND(CHAR(160),SUBSTITUTE($AA83,\"}\",CHAR(160),IF$1))-FIND(CHAR(160),SUBSTITUTE($AA83,\"{\",CHAR(160),IF$1))+1),\"\")","v":""},{"$f":"IFERROR(MID($AA83,FIND(CHAR(160),SUBSTITUTE($AA83,\"{\",CHAR(160),IG$1)),FIND(CHAR(160),SUBSTITUTE($AA83,\"}\",CHAR(160),IG$1))-FIND(CHAR(160),SUBSTITUTE($AA83,\"{\",CHAR(160),IG$1))+1),\"\")","v":""},{"$f":"IFERROR(MID($AA83,FIND(CHAR(160),SUBSTITUTE($AA83,\"{\",CHAR(160),IH$1)),FIND(CHAR(160),SUBSTITUTE($AA83,\"}\",CHAR(160),IH$1))-FIND(CHAR(160),SUBSTITUTE($AA83,\"{\",CHAR(160),IH$1))+1),\"\")","v":""},{"$f":"IFERROR(MID($AA83,FIND(CHAR(160),SUBSTITUTE($AA83,\"{\",CHAR(160),II$1)),FIND(CHAR(160),SUBSTITUTE($AA83,\"}\",CHAR(160),II$1))-FIND(CHAR(160),SUBSTITUTE($AA83,\"{\",CHAR(160),II$1))+1),\"\")","v":""},{"$f":"IFERROR(MID($AA83,FIND(CHAR(160),SUBSTITUTE($AA83,\"{\",CHAR(160),IJ$1)),FIND(CHAR(160),SUBSTITUTE($AA83,\"}\",CHAR(160),IJ$1))-FIND(CHAR(160),SUBSTITUTE($AA83,\"{\",CHAR(160),IJ$1))+1),\"\")","v":""},{"$f":"IFERROR(MID($AA83,FIND(CHAR(160),SUBSTITUTE($AA83,\"{\",CHAR(160),IK$1)),FIND(CHAR(160),SUBSTITUTE($AA83,\"}\",CHAR(160),IK$1))-FIND(CHAR(160),SUBSTITUTE($AA83,\"{\",CHAR(160),IK$1))+1),\"\")","v":""},{"$f":"IFERROR(MID($AA83,FIND(CHAR(160),SUBSTITUTE($AA83,\"{\",CHAR(160),IL$1)),FIND(CHAR(160),SUBSTITUTE($AA83,\"}\",CHAR(160),IL$1))-FIND(CHAR(160),SUBSTITUTE($AA83,\"{\",CHAR(160),IL$1))+1),\"\")","v":""},{"$f":"IFERROR(MID($AA83,FIND(CHAR(160),SUBSTITUTE($AA83,\"{\",CHAR(160),IM$1)),FIND(CHAR(160),SUBSTITUTE($AA83,\"}\",CHAR(160),IM$1))-FIND(CHAR(160),SUBSTITUTE($AA83,\"{\",CHAR(160),IM$1))+1),\"\")","v":""},{"$f":"IFERROR(MID($AA83,FIND(CHAR(160),SUBSTITUTE($AA83,\"{\",CHAR(160),IN$1)),FIND(CHAR(160),SUBSTITUTE($AA83,\"}\",CHAR(160),IN$1))-FIND(CHAR(160),SUBSTITUTE($AA83,\"{\",CHAR(160),IN$1))+1),\"\")","v":""},{"$f":"IFERROR(MID($AB83,FIND(CHAR(160),SUBSTITUTE($AB83,\"{\",CHAR(160),IO$1)),FIND(CHAR(160),SUBSTITUTE($AB83,\"}\",CHAR(160),IO$1))-FIND(CHAR(160),SUBSTITUTE($AB83,\"{\",CHAR(160),IO$1))+1),\"\")","v":""},{"$f":"IFERROR(MID($AB83,FIND(CHAR(160),SUBSTITUTE($AB83,\"{\",CHAR(160),IP$1)),FIND(CHAR(160),SUBSTITUTE($AB83,\"}\",CHAR(160),IP$1))-FIND(CHAR(160),SUBSTITUTE($AB83,\"{\",CHAR(160),IP$1))+1),\"\")","v":""},{"$f":"IFERROR(MID($AB83,FIND(CHAR(160),SUBSTITUTE($AB83,\"{\",CHAR(160),IQ$1)),FIND(CHAR(160),SUBSTITUTE($AB83,\"}\",CHAR(160),IQ$1))-FIND(CHAR(160),SUBSTITUTE($AB83,\"{\",CHAR(160),IQ$1))+1),\"\")","v":""},{"$f":"IFERROR(MID($AB83,FIND(CHAR(160),SUBSTITUTE($AB83,\"{\",CHAR(160),IR$1)),FIND(CHAR(160),SUBSTITUTE($AB83,\"}\",CHAR(160),IR$1))-FIND(CHAR(160),SUBSTITUTE($AB83,\"{\",CHAR(160),IR$1))+1),\"\")","v":""},{"$f":"IFERROR(MID($AB83,FIND(CHAR(160),SUBSTITUTE($AB83,\"{\",CHAR(160),IS$1)),FIND(CHAR(160),SUBSTITUTE($AB83,\"}\",CHAR(160),IS$1))-FIND(CHAR(160),SUBSTITUTE($AB83,\"{\",CHAR(160),IS$1))+1),\"\")","v":""},{"$f":"IFERROR(MID($AB83,FIND(CHAR(160),SUBSTITUTE($AB83,\"{\",CHAR(160),IT$1)),FIND(CHAR(160),SUBSTITUTE($AB83,\"}\",CHAR(160),IT$1))-FIND(CHAR(160),SUBSTITUTE($AB83,\"{\",CHAR(160),IT$1))+1),\"\")","v":""},{"$f":"IFERROR(MID($AB83,FIND(CHAR(160),SUBSTITUTE($AB83,\"{\",CHAR(160),IU$1)),FIND(CHAR(160),SUBSTITUTE($AB83,\"}\",CHAR(160),IU$1))-FIND(CHAR(160),SUBSTITUTE($AB83,\"{\",CHAR(160),IU$1))+1),\"\")","v":""},{"$f":"IFERROR(MID($AB83,FIND(CHAR(160),SUBSTITUTE($AB83,\"{\",CHAR(160),IV$1)),FIND(CHAR(160),SUBSTITUTE($AB83,\"}\",CHAR(160),IV$1))-FIND(CHAR(160),SUBSTITUTE($AB83,\"{\",CHAR(160),IV$1))+1),\"\")","v":""},{"$f":"IFERROR(MID($AB83,FIND(CHAR(160),SUBSTITUTE($AB83,\"{\",CHAR(160),IW$1)),FIND(CHAR(160),SUBSTITUTE($AB83,\"}\",CHAR(160),IW$1))-FIND(CHAR(160),SUBSTITUTE($AB83,\"{\",CHAR(160),IW$1))+1),\"\")","v":""},{"$f":"IFERROR(MID($AB83,FIND(CHAR(160),SUBSTITUTE($AB83,\"{\",CHAR(160),IX$1)),FIND(CHAR(160),SUBSTITUTE($AB83,\"}\",CHAR(160),IX$1))-FIND(CHAR(160),SUBSTITUTE($AB83,\"{\",CHAR(160),IX$1))+1),\"\")","v":""},null,{"$f":"10-COUNTIF(DU83:ED83,\"\")","v":3}]
["C&I HVAC - Natural Gas","G10 Gas-fired condensing hot water boiler >1000 MBtu/h and <=2500 MBtu/h","G10","2021-07-01","2022-06-30","Calculated","{Measure:Quantity}*({Equipment Capacity MBtu/h}*3.47+1982)",0,"Calculated","{Measure:Quantity}*9375",0,"2021-05-25","2022-06-30","Calculated",null,null,null,null,null,null,null,null,"{Measure:Quantity} * ({Design Load (Btu/h)}/({Indoor Design Temp (oF)}-{Outdoor Design Temp (oF)})*186648/1000000) * (100/80-100/{Unit Efficiency - AFUE or Thermal Efficiency}) * 10",null,null,null,null,null,"2021-05-25","2022-06-30",24,0,0,1,0,0,0,1,1,0,0.52,1.6E-2,null,{"$f":"DU84","v":"{Measure:Quantity}"},1,{"$f":"DV84","v":"{Equipment Capacity MBtu/h}"},1456,{"$f":"DW84","v":"{Indoor Design Temp (oF)}"},1352549,{"$f":"DX84","v":"{Outdoor Design Temp (oF)}"},71.5,{"$f":"DY84","v":"{Unit Efficiency - AFUE or Thermal Efficiency}"},-4,{"$f":"DZ84","v":"{Design Load (Btu/h)}"},95.674999999999997,{"$f":"EA84","v":""},null,{"$f":"EB84","v":""},null,{"$f":"EC84","v":""},null,{"$f":"ED84","v":""},null,0,0,0,0,0,0,0,0,{"$f":"AS84 * (AW84/(AY84-BA84)*186648/1000000) * (100/80-100/BC84) * 10","v":6847.7593296888408},0,0,0,0,0,null,"Res","Default DR",{"$f":"Benefits(BL84,BR84,BS84,BT84,BU84,BV84,BW84,BX84,BY84,BZ84,AE84,AH84,AI84,AJ84,AK84,AL84,AM84,AN84,AO84,AP84,CA84,CB84)","v":0},0,179314.48824580168,0,0,0,0,0,0,{"$f":"SUMPRODUCT(CC84:CK84,--(CC84:CK84>0))","v":179314.48824580168},{"$f":"-SUMPRODUCT(CC84:CK84,--(CC84:CK84<0))","v":0},null,{"$f":"AS84*(AU84*3.47+1982)","v":7034.3200000000006},null,null,{"$f":"CM84+CO84","v":7034.3200000000006},{"$f":"IF(NetOrGross=\"Net\",(1-AO84+AP84),1)","v":1},{"$f":"(SUMPRODUCT(CC84:CJ84,--(CC84:CJ84>0))+CN84)*CS84/((-SUMPRODUCT(CC84:CJ84,--(CC84:CJ84<0))+MAX(CO84,CV84)+CP84+CQ84)*CS84+IF(FRIncentives=\"Yes\",CV84*(1-CS84),0))","v":19.126878746218846},1,{"$f":"AS84*9375","v":9375},null,"NG","y",null,{"$f":"IF(F84=\"Manual Entry\",\"Manual\",IF(G84=\"\",0,\"X=\"&SUBSTITUTE(SUBSTITUTE(SUBSTITUTE(SUBSTITUTE(SUBSTITUTE(SUBSTITUTE(SUBSTITUTE(SUBSTITUTE(SUBSTITUTE(SUBSTITUTE(SUBSTITUTE(SUBSTITUTE(G84,$ED84,$ED$2&ROW($ED84)),$EC84,$EC$2&ROW($EC84)),$EB84,$EB$2&ROW($EB84)),$EA84,$EA$2&ROW($EA84)),$DZ84,$DZ$2&ROW($DZ84)),$DY84,$DY$2&ROW($DY84)),$DX84,$DX$2&ROW($DX84)),$DW84,$DW$2&ROW($DW84)),$DV84,$DV$2&ROW($DV84)),$DU84,$DU$2&ROW($DU84)),$DT84,$DT$2&ROW($DT84)),$DS84,$DS$2&ROW($DS84))))","v":"X=AS84*(AU84*3.47+1982)"},{"$f":"IF(I84=\"Manual Entry\",\"Manual\",IF(J84=\"\",0,\"X=\"&SUBSTITUTE(SUBSTITUTE(SUBSTITUTE(SUBSTITUTE(SUBSTITUTE(SUBSTITUTE(SUBSTITUTE(SUBSTITUTE(SUBSTITUTE(SUBSTITUTE(SUBSTITUTE(SUBSTITUTE(J84,$ED84,$ED$2&ROW($ED84)),$EC84,$EC$2&ROW($EC84)),$EB84,$EB$2&ROW($EB84)),$EA84,$EA$2&ROW($EA84)),$DZ84,$DZ$2&ROW($DZ84)),$DY84,$DY$2&ROW($DY84)),$DX84,$DX$2&ROW($DX84)),$DW84,$DW$2&ROW($DW84)),$DV84,$DV$2&ROW($DV84)),$DU84,$DU$2&ROW($DU84)),$DT84,$DT$2&ROW($DT84)),$DS84,$DS$2&ROW($DS84))))","v":"X=AS84*9375"},{"$f":"IF(O84=\"\",0,\"X=\"&SUBSTITUTE(SUBSTITUTE(SUBSTITUTE(SUBSTITUTE(SUBSTITUTE(SUBSTITUTE(SUBSTITUTE(SUBSTITUTE(SUBSTITUTE(SUBSTITUTE(SUBSTITUTE(SUBSTITUTE(O84,$ED84,$ED$2&ROW($ED84)),$EC84,$EC$2&ROW($EC84)),$EB84,$EB$2&ROW($EB84)),$EA84,$EA$2&ROW($EA84)),$DZ84,$DZ$2&ROW($DZ84)),$DY84,$DY$2&ROW($DY84)),$DX84,$DX$2&ROW($DX84)),$DW84,$DW$2&ROW($DW84)),$DV84,$DV$2&ROW($DV84)),$DU84,$DU$2&ROW($DU84)),$DT84,$DT$2&ROW($DT84)),$DS84,$DS$2&ROW($DS84)))","v":0},{"$f":"IF(P84=\"\",0,\"X=\"&SUBSTITUTE(SUBSTITUTE(SUBSTITUTE(SUBSTITUTE(SUBSTITUTE(SUBSTITUTE(SUBSTITUTE(SUBSTITUTE(SUBSTITUTE(SUBSTITUTE(SUBSTITUTE(SUBSTITUTE(P84,$ED84,$ED$2&ROW($ED84)),$EC84,$EC$2&ROW($EC84)),$EB84,$EB$2&ROW($EB84)),$EA84,$EA$2&ROW($EA84)),$DZ84,$DZ$2&ROW($DZ84)),$DY84,$DY$2&ROW($DY84)),$DX84,$DX$2&ROW($DX84)),$DW84,$DW$2&ROW($DW84)),$DV84,$DV$2&ROW($DV84)),$DU84,$DU$2&ROW($DU84)),$DT84,$DT$2&ROW($DT84)),$DS84,$DS$2&ROW($DS84)))","v":0},{"$f":"IF(Q84=\"\",0,\"X=\"&SUBSTITUTE(SUBSTITUTE(SUBSTITUTE(SUBSTITUTE(SUBSTITUTE(SUBSTITUTE(SUBSTITUTE(SUBSTITUTE(SUBSTITUTE(SUBSTITUTE(SUBSTITUTE(SUBSTITUTE(Q84,$ED84,$ED$2&ROW($ED84)),$EC84,$EC$2&ROW($EC84)),$EB84,$EB$2&ROW($EB84)),$EA84,$EA$2&ROW($EA84)),$DZ84,$DZ$2&ROW($DZ84)),$DY84,$DY$2&ROW($DY84)),$DX84,$DX$2&ROW($DX84)),$DW84,$DW$2&ROW($DW84)),$DV84,$DV$2&ROW($DV84)),$DU84,$DU$2&ROW($DU84)),$DT84,$DT$2&ROW($DT84)),$DS84,$DS$2&ROW($DS84)))","v":0},{"$f":"IF(R84=\"\",0,\"X=\"&SUBSTITUTE(SUBSTITUTE(SUBSTITUTE(SUBSTITUTE(SUBSTITUTE(SUBSTITUTE(SUBSTITUTE(SUBSTITUTE(SUBSTITUTE(SUBSTITUTE(SUBSTITUTE(SUBSTITUTE(R84,$ED84,$ED$2&ROW($ED84)),$EC84,$EC$2&ROW($EC84)),$EB84,$EB$2&ROW($EB84)),$EA84,$EA$2&ROW($EA84)),$DZ84,$DZ$2&ROW($DZ84)),$DY84,$DY$2&ROW($DY84)),$DX84,$DX$2&ROW($DX84)),$DW84,$DW$2&ROW($DW84)),$DV84,$DV$2&ROW($DV84)),$DU84,$DU$2&ROW($DU84)),$DT84,$DT$2&ROW($DT84)),$DS84,$DS$2&ROW($DS84)))","v":0},{"$f":"IF(S84=\"\",0,\"X=\"&SUBSTITUTE(SUBSTITUTE(SUBSTITUTE(SUBSTITUTE(SUBSTITUTE(SUBSTITUTE(SUBSTITUTE(SUBSTITUTE(SUBSTITUTE(SUBSTITUTE(SUBSTITUTE(SUBSTITUTE(S84,$ED84,$ED$2&ROW($ED84)),$EC84,$EC$2&ROW($EC84)),$EB84,$EB$2&ROW($EB84)),$EA84,$EA$2&ROW($EA84)),$DZ84,$DZ$2&ROW($DZ84)),$DY84,$DY$2&ROW($DY84)),$DX84,$DX$2&ROW($DX84)),$DW84,$DW$2&ROW($DW84)),$DV84,$DV$2&ROW($DV84)),$DU84,$DU$2&ROW($DU84)),$DT84,$DT$2&ROW($DT84)),$DS84,$DS$2&ROW($DS84)))","v":0},{"$f":"IF(T84=\"\",0,\"X=\"&SUBSTITUTE(SUBSTITUTE(SUBSTITUTE(SUBSTITUTE(SUBSTITUTE(SUBSTITUTE(SUBSTITUTE(SUBSTITUTE(SUBSTITUTE(SUBSTITUTE(SUBSTITUTE(SUBSTITUTE(T84,$ED84,$ED$2&ROW($ED84)),$EC84,$EC$2&ROW($EC84)),$EB84,$EB$2&ROW($EB84)),$EA84,$EA$2&ROW($EA84)),$DZ84,$DZ$2&ROW($DZ84)),$DY84,$DY$2&ROW($DY84)),$DX84,$DX$2&ROW($DX84)),$DW84,$DW$2&ROW($DW84)),$DV84,$DV$2&ROW($DV84)),$DU84,$DU$2&ROW($DU84)),$DT84,$DT$2&ROW($DT84)),$DS84,$DS$2&ROW($DS84)))","v":0},{"$f":"IF(U84=\"\",0,\"X=\"&SUBSTITUTE(SUBSTITUTE(SUBSTITUTE(SUBSTITUTE(SUBSTITUTE(SUBSTITUTE(SUBSTITUTE(SUBSTITUTE(SUBSTITUTE(SUBSTITUTE(SUBSTITUTE(SUBSTITUTE(U84,$ED84,$ED$2&ROW($ED84)),$EC84,$EC$2&ROW($EC84)),$EB84,$EB$2&ROW($EB84)),$EA84,$EA$2&ROW($EA84)),$DZ84,$DZ$2&ROW($DZ84)),$DY84,$DY$2&ROW($DY84)),$DX84,$DX$2&ROW($DX84)),$DW84,$DW$2&ROW($DW84)),$DV84,$DV$2&ROW($DV84)),$DU84,$DU$2&ROW($DU84)),$DT84,$DT$2&ROW($DT84)),$DS84,$DS$2&ROW($DS84)))","v":0},{"$f":"IF(V84=\"\",0,\"X=\"&SUBSTITUTE(SUBSTITUTE(SUBSTITUTE(SUBSTITUTE(SUBSTITUTE(SUBSTITUTE(SUBSTITUTE(SUBSTITUTE(SUBSTITUTE(SUBSTITUTE(SUBSTITUTE(SUBSTITUTE(V84,$ED84,$ED$2&ROW($ED84)),$EC84,$EC$2&ROW($EC84)),$EB84,$EB$2&ROW($EB84)),$EA84,$EA$2&ROW($EA84)),$DZ84,$DZ$2&ROW($DZ84)),$DY84,$DY$2&ROW($DY84)),$DX84,$DX$2&ROW($DX84)),$DW84,$DW$2&ROW($DW84)),$DV84,$DV$2&ROW($DV84)),$DU84,$DU$2&ROW($DU84)),$DT84,$DT$2&ROW($DT84)),$DS84,$DS$2&ROW($DS84)))","v":0},{"$f":"IF(W84=\"\",0,\"X=\"&SUBSTITUTE(SUBSTITUTE(SUBSTITUTE(SUBSTITUTE(SUBSTITUTE(SUBSTITUTE(SUBSTITUTE(SUBSTITUTE(SUBSTITUTE(SUBSTITUTE(SUBSTITUTE(SUBSTITUTE(W84,$ED84,$ED$2&ROW($ED84)),$EC84,$EC$2&ROW($EC84)),$EB84,$EB$2&ROW($EB84)),$EA84,$EA$2&ROW($EA84)),$DZ84,$DZ$2&ROW($DZ84)),$DY84,$DY$2&ROW($DY84)),$DX84,$DX$2&ROW($DX84)),$DW84,$DW$2&ROW($DW84)),$DV84,$DV$2&ROW($DV84)),$DU84,$DU$2&ROW($DU84)),$DT84,$DT$2&ROW($DT84)),$DS84,$DS$2&ROW($DS84)))","v":"X=AS84 * (BC84/(AW84-AY84)*186648/1000000) * (100/80-100/BA84) * 10"},{"$f":"IF(X84=\"\",0,\"X=\"&SUBSTITUTE(SUBSTITUTE(SUBSTITUTE(SUBSTITUTE(SUBSTITUTE(SUBSTITUTE(SUBSTITUTE(SUBSTITUTE(SUBSTITUTE(SUBSTITUTE(SUBSTITUTE(SUBSTITUTE(X84,$ED84,$ED$2&ROW($ED84)),$EC84,$EC$2&ROW($EC84)),$EB84,$EB$2&ROW($EB84)),$EA84,$EA$2&ROW($EA84)),$DZ84,$DZ$2&ROW($DZ84)),$DY84,$DY$2&ROW($DY84)),$DX84,$DX$2&ROW($DX84)),$DW84,$DW$2&ROW($DW84)),$DV84,$DV$2&ROW($DV84)),$DU84,$DU$2&ROW($DU84)),$DT84,$DT$2&ROW($DT84)),$DS84,$DS$2&ROW($DS84)))","v":0},{"$f":"IF(Y84=\"\",0,\"X=\"&SUBSTITUTE(SUBSTITUTE(SUBSTITUTE(SUBSTITUTE(SUBSTITUTE(SUBSTITUTE(SUBSTITUTE(SUBSTITUTE(SUBSTITUTE(SUBSTITUTE(SUBSTITUTE(SUBSTITUTE(Y84,$ED84,$ED$2&ROW($ED84)),$EC84,$EC$2&ROW($EC84)),$EB84,$EB$2&ROW($EB84)),$EA84,$EA$2&ROW($EA84)),$DZ84,$DZ$2&ROW($DZ84)),$DY84,$DY$2&ROW($DY84)),$DX84,$DX$2&ROW($DX84)),$DW84,$DW$2&ROW($DW84)),$DV84,$DV$2&ROW($DV84)),$DU84,$DU$2&ROW($DU84)),$DT84,$DT$2&ROW($DT84)),$DS84,$DS$2&ROW($DS84)))","v":0},{"$f":"IF(Z84=\"\",0,\"X=\"&SUBSTITUTE(SUBSTITUTE(SUBSTITUTE(SUBSTITUTE(SUBSTITUTE(SUBSTITUTE(SUBSTITUTE(SUBSTITUTE(SUBSTITUTE(SUBSTITUTE(SUBSTITUTE(SUBSTITUTE(Z84,$ED84,$ED$2&ROW($ED84)),$EC84,$EC$2&ROW($EC84)),$EB84,$EB$2&ROW($EB84)),$EA84,$EA$2&ROW($EA84)),$DZ84,$DZ$2&ROW($DZ84)),$DY84,$DY$2&ROW($DY84)),$DX84,$DX$2&ROW($DX84)),$DW84,$DW$2&ROW($DW84)),$DV84,$DV$2&ROW($DV84)),$DU84,$DU$2&ROW($DU84)),$DT84,$DT$2&ROW($DT84)),$DS84,$DS$2&ROW($DS84)))","v":0},{"$f":"IF(AA84=\"\",0,\"X=\"&SUBSTITUTE(SUBSTITUTE(SUBSTITUTE(SUBSTITUTE(SUBSTITUTE(SUBSTITUTE(SUBSTITUTE(SUBSTITUTE(SUBSTITUTE(SUBSTITUTE(SUBSTITUTE(SUBSTITUTE(AA84,$ED84,$ED$2&ROW($ED84)),$EC84,$EC$2&ROW($EC84)),$EB84,$EB$2&ROW($EB84)),$EA84,$EA$2&ROW($EA84)),$DZ84,$DZ$2&ROW($DZ84)),$DY84,$DY$2&ROW($DY84)),$DX84,$DX$2&ROW($DX84)),$DW84,$DW$2&ROW($DW84)),$DV84,$DV$2&ROW($DV84)),$DU84,$DU$2&ROW($DU84)),$DT84,$DT$2&ROW($DT84)),$DS84,$DS$2&ROW($DS84)))","v":0},{"$f":"IF(AB84=\"\",0,\"X=\"&SUBSTITUTE(SUBSTITUTE(SUBSTITUTE(SUBSTITUTE(SUBSTITUTE(SUBSTITUTE(SUBSTITUTE(SUBSTITUTE(SUBSTITUTE(SUBSTITUTE(SUBSTITUTE(SUBSTITUTE(AB84,$ED84,$ED$2&ROW($ED84)),$EC84,$EC$2&ROW($EC84)),$EB84,$EB$2&ROW($EB84)),$EA84,$EA$2&ROW($EA84)),$DZ84,$DZ$2&ROW($DZ84)),$DY84,$DY$2&ROW($DY84)),$DX84,$DX$2&ROW($DX84)),$DW84,$DW$2&ROW($DW84)),$DV84,$DV$2&ROW($DV84)),$DU84,$DU$2&ROW($DU84)),$DT84,$DT$2&ROW($DT84)),$DS84,$DS$2&ROW($DS84)))","v":0},null,null,"{Factor:WinterCF}","{Factor:SummerCF}",{"$f":"IFERROR(INDEX($EG84:$IV84,MATCH(0,COUNTIF($DR84:DT84,$EG84:$IV84),0)),\"\")","v":"{Measure:Quantity}"},{"$f":"IFERROR(INDEX($EG84:$IV84,MATCH(0,COUNTIF($DR84:DU84,$EG84:$IV84),0)),\"\")","v":"{Equipment Capacity MBtu/h}"},{"$f":"IFERROR(INDEX($EG84:$IV84,MATCH(0,COUNTIF($DR84:DV84,$EG84:$IV84),0)),\"\")","v":"{Indoor Design Temp (oF)}"},{"$f":"IFERROR(INDEX($EG84:$IV84,MATCH(0,COUNTIF($DR84:DW84,$EG84:$IV84),0)),\"\")","v":"{Outdoor Design Temp (oF)}"},{"$f":"IFERROR(INDEX($EG84:$IV84,MATCH(0,COUNTIF($DR84:DX84,$EG84:$IV84),0)),\"\")","v":"{Unit Efficiency - AFUE or Thermal Efficiency}"},{"$f":"IFERROR(INDEX($EG84:$IV84,MATCH(0,COUNTIF($DR84:DY84,$EG84:$IV84),0)),\"\")","v":"{Design Load (Btu/h)}"},{"$f":"IFERROR(INDEX($EG84:$IV84,MATCH(0,COUNTIF($DR84:DZ84,$EG84:$IV84),0)),\"\")","v":""},{"$f":"IFERROR(INDEX($EG84:$IV84,MATCH(0,COUNTIF($DR84:EA84,$EG84:$IV84),0)),\"\")","v":""},{"$f":"IFERROR(INDEX($EG84:$IV84,MATCH(0,COUNTIF($DR84:EB84,$EG84:$IV84),0)),\"\")","v":""},{"$f":"IFERROR(INDEX($EG84:$IV84,MATCH(0,COUNTIF($DR84:EC84,$EG84:$IV84),0)),\"\")","v":""},null,null,{"$f":"IFERROR(MID($G84,FIND(CHAR(160),SUBSTITUTE($G84,\"{\",CHAR(160),EG$1)),FIND(CHAR(160),SUBSTITUTE($G84,\"}\",CHAR(160),EG$1))-FIND(CHAR(160),SUBSTITUTE($G84,\"{\",CHAR(160),EG$1))+1),\"\")","v":"{Measure:Quantity}"},{"$f":"IFERROR(MID($G84,FIND(CHAR(160),SUBSTITUTE($G84,\"{\",CHAR(160),EH$1)),FIND(CHAR(160),SUBSTITUTE($G84,\"}\",CHAR(160),EH$1))-FIND(CHAR(160),SUBSTITUTE($G84,\"{\",CHAR(160),EH$1))+1),\"\")","v":"{Equipment Capacity MBtu/h}"},{"$f":"IFERROR(MID($G84,FIND(CHAR(160),SUBSTITUTE($G84,\"{\",CHAR(160),EI$1)),FIND(CHAR(160),SUBSTITUTE($G84,\"}\",CHAR(160),EI$1))-FIND(CHAR(160),SUBSTITUTE($G84,\"{\",CHAR(160),EI$1))+1),\"\")","v":""},{"$f":"IFERROR(MID($G84,FIND(CHAR(160),SUBSTITUTE($G84,\"{\",CHAR(160),EJ$1)),FIND(CHAR(160),SUBSTITUTE($G84,\"}\",CHAR(160),EJ$1))-FIND(CHAR(160),SUBSTITUTE($G84,\"{\",CHAR(160),EJ$1))+1),\"\")","v":""},{"$f":"IFERROR(MID($G84,FIND(CHAR(160),SUBSTITUTE($G84,\"{\",CHAR(160),EK$1)),FIND(CHAR(160),SUBSTITUTE($G84,\"}\",CHAR(160),EK$1))-FIND(CHAR(160),SUBSTITUTE($G84,\"{\",CHAR(160),EK$1))+1),\"\")","v":""},{"$f":"IFERROR(MID($G84,FIND(CHAR(160),SUBSTITUTE($G84,\"{\",CHAR(160),EL$1)),FIND(CHAR(160),SUBSTITUTE($G84,\"}\",CHAR(160),EL$1))-FIND(CHAR(160),SUBSTITUTE($G84,\"{\",CHAR(160),EL$1))+1),\"\")","v":""},{"$f":"IFERROR(MID($G84,FIND(CHAR(160),SUBSTITUTE($G84,\"{\",CHAR(160),EM$1)),FIND(CHAR(160),SUBSTITUTE($G84,\"}\",CHAR(160),EM$1))-FIND(CHAR(160),SUBSTITUTE($G84,\"{\",CHAR(160),EM$1))+1),\"\")","v":""},{"$f":"IFERROR(MID($G84,FIND(CHAR(160),SUBSTITUTE($G84,\"{\",CHAR(160),EN$1)),FIND(CHAR(160),SUBSTITUTE($G84,\"}\",CHAR(160),EN$1))-FIND(CHAR(160),SUBSTITUTE($G84,\"{\",CHAR(160),EN$1))+1),\"\")","v":""},{"$f":"IFERROR(MID($G84,FIND(CHAR(160),SUBSTITUTE($G84,\"{\",CHAR(160),EO$1)),FIND(CHAR(160),SUBSTITUTE($G84,\"}\",CHAR(160),EO$1))-FIND(CHAR(160),SUBSTITUTE($G84,\"{\",CHAR(160),EO$1))+1),\"\")","v":""},{"$f":"IFERROR(MID($G84,FIND(CHAR(160),SUBSTITUTE($G84,\"{\",CHAR(160),EP$1)),FIND(CHAR(160),SUBSTITUTE($G84,\"}\",CHAR(160),EP$1))-FIND(CHAR(160),SUBSTITUTE($G84,\"{\",CHAR(160),EP$1))+1),\"\")","v":""},{"$f":"IFERROR(MID($J84,FIND(CHAR(160),SUBSTITUTE($J84,\"{\",CHAR(160),EQ$1)),FIND(CHAR(160),SUBSTITUTE($J84,\"}\",CHAR(160),EQ$1))-FIND(CHAR(160),SUBSTITUTE($J84,\"{\",CHAR(160),EQ$1))+1),\"\")","v":"{Measure:Quantity}"},{"$f":"IFERROR(MID($J84,FIND(CHAR(160),SUBSTITUTE($J84,\"{\",CHAR(160),ER$1)),FIND(CHAR(160),SUBSTITUTE($J84,\"}\",CHAR(160),ER$1))-FIND(CHAR(160),SUBSTITUTE($J84,\"{\",CHAR(160),ER$1))+1),\"\")","v":""},{"$f":"IFERROR(MID($J84,FIND(CHAR(160),SUBSTITUTE($J84,\"{\",CHAR(160),ES$1)),FIND(CHAR(160),SUBSTITUTE($J84,\"}\",CHAR(160),ES$1))-FIND(CHAR(160),SUBSTITUTE($J84,\"{\",CHAR(160),ES$1))+1),\"\")","v":""},{"$f":"IFERROR(MID($J84,FIND(CHAR(160),SUBSTITUTE($J84,\"{\",CHAR(160),ET$1)),FIND(CHAR(160),SUBSTITUTE($J84,\"}\",CHAR(160),ET$1))-FIND(CHAR(160),SUBSTITUTE($J84,\"{\",CHAR(160),ET$1))+1),\"\")","v":""},{"$f":"IFERROR(MID($J84,FIND(CHAR(160),SUBSTITUTE($J84,\"{\",CHAR(160),EU$1)),FIND(CHAR(160),SUBSTITUTE($J84,\"}\",CHAR(160),EU$1))-FIND(CHAR(160),SUBSTITUTE($J84,\"{\",CHAR(160),EU$1))+1),\"\")","v":""},{"$f":"IFERROR(MID($J84,FIND(CHAR(160),SUBSTITUTE($J84,\"{\",CHAR(160),EV$1)),FIND(CHAR(160),SUBSTITUTE($J84,\"}\",CHAR(160),EV$1))-FIND(CHAR(160),SUBSTITUTE($J84,\"{\",CHAR(160),EV$1))+1),\"\")","v":""},{"$f":"IFERROR(MID($J84,FIND(CHAR(160),SUBSTITUTE($J84,\"{\",CHAR(160),EW$1)),FIND(CHAR(160),SUBSTITUTE($J84,\"}\",CHAR(160),EW$1))-FIND(CHAR(160),SUBSTITUTE($J84,\"{\",CHAR(160),EW$1))+1),\"\")","v":""},{"$f":"IFERROR(MID($J84,FIND(CHAR(160),SUBSTITUTE($J84,\"{\",CHAR(160),EX$1)),FIND(CHAR(160),SUBSTITUTE($J84,\"}\",CHAR(160),EX$1))-FIND(CHAR(160),SUBSTITUTE($J84,\"{\",CHAR(160),EX$1))+1),\"\")","v":""},{"$f":"IFERROR(MID($J84,FIND(CHAR(160),SUBSTITUTE($J84,\"{\",CHAR(160),EY$1)),FIND(CHAR(160),SUBSTITUTE($J84,\"}\",CHAR(160),EY$1))-FIND(CHAR(160),SUBSTITUTE($J84,\"{\",CHAR(160),EY$1))+1),\"\")","v":""},{"$f":"IFERROR(MID($J84,FIND(CHAR(160),SUBSTITUTE($J84,\"{\",CHAR(160),EZ$1)),FIND(CHAR(160),SUBSTITUTE($J84,\"}\",CHAR(160),EZ$1))-FIND(CHAR(160),SUBSTITUTE($J84,\"{\",CHAR(160),EZ$1))+1),\"\")","v":""},{"$f":"IFERROR(MID($J84,FIND(CHAR(160),SUBSTITUTE($J84,\"{\",CHAR(160),FA$1)),FIND(CHAR(160),SUBSTITUTE($J84,\"}\",CHAR(160),FA$1))-FIND(CHAR(160),SUBSTITUTE($J84,\"{\",CHAR(160),FA$1))+1),\"\")","v":"{Measure:Quantity}"},{"$f":"IFERROR(MID($J84,FIND(CHAR(160),SUBSTITUTE($J84,\"{\",CHAR(160),FB$1)),FIND(CHAR(160),SUBSTITUTE($J84,\"}\",CHAR(160),FB$1))-FIND(CHAR(160),SUBSTITUTE($J84,\"{\",CHAR(160),FB$1))+1),\"\")","v":""},{"$f":"IFERROR(MID($O84,FIND(CHAR(160),SUBSTITUTE($O84,\"{\",CHAR(160),FC$1)),FIND(CHAR(160),SUBSTITUTE($O84,\"}\",CHAR(160),FC$1))-FIND(CHAR(160),SUBSTITUTE($O84,\"{\",CHAR(160),FC$1))+1),\"\")","v":""},{"$f":"IFERROR(MID($O84,FIND(CHAR(160),SUBSTITUTE($O84,\"{\",CHAR(160),FD$1)),FIND(CHAR(160),SUBSTITUTE($O84,\"}\",CHAR(160),FD$1))-FIND(CHAR(160),SUBSTITUTE($O84,\"{\",CHAR(160),FD$1))+1),\"\")","v":""},{"$f":"IFERROR(MID($O84,FIND(CHAR(160),SUBSTITUTE($O84,\"{\",CHAR(160),FE$1)),FIND(CHAR(160),SUBSTITUTE($O84,\"}\",CHAR(160),FE$1))-FIND(CHAR(160),SUBSTITUTE($O84,\"{\",CHAR(160),FE$1))+1),\"\")","v":""},{"$f":"IFERROR(MID($O84,FIND(CHAR(160),SUBSTITUTE($O84,\"{\",CHAR(160),FF$1)),FIND(CHAR(160),SUBSTITUTE($O84,\"}\",CHAR(160),FF$1))-FIND(CHAR(160),SUBSTITUTE($O84,\"{\",CHAR(160),FF$1))+1),\"\")","v":""},{"$f":"IFERROR(MID($O84,FIND(CHAR(160),SUBSTITUTE($O84,\"{\",CHAR(160),FG$1)),FIND(CHAR(160),SUBSTITUTE($O84,\"}\",CHAR(160),FG$1))-FIND(CHAR(160),SUBSTITUTE($O84,\"{\",CHAR(160),FG$1))+1),\"\")","v":""},{"$f":"IFERROR(MID($O84,FIND(CHAR(160),SUBSTITUTE($O84,\"{\",CHAR(160),FH$1)),FIND(CHAR(160),SUBSTITUTE($O84,\"}\",CHAR(160),FH$1))-FIND(CHAR(160),SUBSTITUTE($O84,\"{\",CHAR(160),FH$1))+1),\"\")","v":""},{"$f":"IFERROR(MID($O84,FIND(CHAR(160),SUBSTITUTE($O84,\"{\",CHAR(160),FI$1)),FIND(CHAR(160),SUBSTITUTE($O84,\"}\",CHAR(160),FI$1))-FIND(CHAR(160),SUBSTITUTE($O84,\"{\",CHAR(160),FI$1))+1),\"\")","v":""},{"$f":"IFERROR(MID($O84,FIND(CHAR(160),SUBSTITUTE($O84,\"{\",CHAR(160),FJ$1)),FIND(CHAR(160),SUBSTITUTE($O84,\"}\",CHAR(160),FJ$1))-FIND(CHAR(160),SUBSTITUTE($O84,\"{\",CHAR(160),FJ$1))+1),\"\")","v":""},{"$f":"IFERROR(MID($O84,FIND(CHAR(160),SUBSTITUTE($O84,\"{\",CHAR(160),FK$1)),FIND(CHAR(160),SUBSTITUTE($O84,\"}\",CHAR(160),FK$1))-FIND(CHAR(160),SUBSTITUTE($O84,\"{\",CHAR(160),FK$1))+1),\"\")","v":""},{"$f":"IFERROR(MID($O84,FIND(CHAR(160),SUBSTITUTE($O84,\"{\",CHAR(160),FL$1)),FIND(CHAR(160),SUBSTITUTE($O84,\"}\",CHAR(160),FL$1))-FIND(CHAR(160),SUBSTITUTE($O84,\"{\",CHAR(160),FL$1))+1),\"\")","v":""},{"$f":"IFERROR(MID($R84,FIND(CHAR(160),SUBSTITUTE($R84,\"{\",CHAR(160),FM$1)),FIND(CHAR(160),SUBSTITUTE($R84,\"}\",CHAR(160),FM$1))-FIND(CHAR(160),SUBSTITUTE($R84,\"{\",CHAR(160),FM$1))+1),\"\")","v":""},{"$f":"IFERROR(MID($R84,FIND(CHAR(160),SUBSTITUTE($R84,\"{\",CHAR(160),FN$1)),FIND(CHAR(160),SUBSTITUTE($R84,\"}\",CHAR(160),FN$1))-FIND(CHAR(160),SUBSTITUTE($R84,\"{\",CHAR(160),FN$1))+1),\"\")","v":""},{"$f":"IFERROR(MID($R84,FIND(CHAR(160),SUBSTITUTE($R84,\"{\",CHAR(160),FO$1)),FIND(CHAR(160),SUBSTITUTE($R84,\"}\",CHAR(160),FO$1))-FIND(CHAR(160),SUBSTITUTE($R84,\"{\",CHAR(160),FO$1))+1),\"\")","v":""},{"$f":"IFERROR(MID($R84,FIND(CHAR(160),SUBSTITUTE($R84,\"{\",CHAR(160),FP$1)),FIND(CHAR(160),SUBSTITUTE($R84,\"}\",CHAR(160),FP$1))-FIND(CHAR(160),SUBSTITUTE($R84,\"{\",CHAR(160),FP$1))+1),\"\")","v":""},{"$f":"IFERROR(MID($R84,FIND(CHAR(160),SUBSTITUTE($R84,\"{\",CHAR(160),FQ$1)),FIND(CHAR(160),SUBSTITUTE($R84,\"}\",CHAR(160),FQ$1))-FIND(CHAR(160),SUBSTITUTE($R84,\"{\",CHAR(160),FQ$1))+1),\"\")","v":""},{"$f":"IFERROR(MID($R84,FIND(CHAR(160),SUBSTITUTE($R84,\"{\",CHAR(160),FR$1)),FIND(CHAR(160),SUBSTITUTE($R84,\"}\",CHAR(160),FR$1))-FIND(CHAR(160),SUBSTITUTE($R84,\"{\",CHAR(160),FR$1))+1),\"\")","v":""},{"$f":"IFERROR(MID($R84,FIND(CHAR(160),SUBSTITUTE($R84,\"{\",CHAR(160),FS$1)),FIND(CHAR(160),SUBSTITUTE($R84,\"}\",CHAR(160),FS$1))-FIND(CHAR(160),SUBSTITUTE($R84,\"{\",CHAR(160),FS$1))+1),\"\")","v":""},{"$f":"IFERROR(MID($R84,FIND(CHAR(160),SUBSTITUTE($R84,\"{\",CHAR(160),FT$1)),FIND(CHAR(160),SUBSTITUTE($R84,\"}\",CHAR(160),FT$1))-FIND(CHAR(160),SUBSTITUTE($R84,\"{\",CHAR(160),FT$1))+1),\"\")","v":""},{"$f":"IFERROR(MID($R84,FIND(CHAR(160),SUBSTITUTE($R84,\"{\",CHAR(160),FU$1)),FIND(CHAR(160),SUBSTITUTE($R84,\"}\",CHAR(160),FU$1))-FIND(CHAR(160),SUBSTITUTE($R84,\"{\",CHAR(160),FU$1))+1),\"\")","v":""},{"$f":"IFERROR(MID($R84,FIND(CHAR(160),SUBSTITUTE($R84,\"{\",CHAR(160),FV$1)),FIND(CHAR(160),SUBSTITUTE($R84,\"}\",CHAR(160),FV$1))-FIND(CHAR(160),SUBSTITUTE($R84,\"{\",CHAR(160),FV$1))+1),\"\")","v":""},{"$f":"IFERROR(MID($U84,FIND(CHAR(160),SUBSTITUTE($U84,\"{\",CHAR(160),FW$1)),FIND(CHAR(160),SUBSTITUTE($U84,\"}\",CHAR(160),FW$1))-FIND(CHAR(160),SUBSTITUTE($U84,\"{\",CHAR(160),FW$1))+1),\"\")","v":""},{"$f":"IFERROR(MID($U84,FIND(CHAR(160),SUBSTITUTE($U84,\"{\",CHAR(160),FX$1)),FIND(CHAR(160),SUBSTITUTE($U84,\"}\",CHAR(160),FX$1))-FIND(CHAR(160),SUBSTITUTE($U84,\"{\",CHAR(160),FX$1))+1),\"\")","v":""},{"$f":"IFERROR(MID($U84,FIND(CHAR(160),SUBSTITUTE($U84,\"{\",CHAR(160),FY$1)),FIND(CHAR(160),SUBSTITUTE($U84,\"}\",CHAR(160),FY$1))-FIND(CHAR(160),SUBSTITUTE($U84,\"{\",CHAR(160),FY$1))+1),\"\")","v":""},{"$f":"IFERROR(MID($U84,FIND(CHAR(160),SUBSTITUTE($U84,\"{\",CHAR(160),FZ$1)),FIND(CHAR(160),SUBSTITUTE($U84,\"}\",CHAR(160),FZ$1))-FIND(CHAR(160),SUBSTITUTE($U84,\"{\",CHAR(160),FZ$1))+1),\"\")","v":""},{"$f":"IFERROR(MID($U84,FIND(CHAR(160),SUBSTITUTE($U84,\"{\",CHAR(160),GA$1)),FIND(CHAR(160),SUBSTITUTE($U84,\"}\",CHAR(160),GA$1))-FIND(CHAR(160),SUBSTITUTE($U84,\"{\",CHAR(160),GA$1))+1),\"\")","v":""},{"$f":"IFERROR(MID($U84,FIND(CHAR(160),SUBSTITUTE($U84,\"{\",CHAR(160),GB$1)),FIND(CHAR(160),SUBSTITUTE($U84,\"}\",CHAR(160),GB$1))-FIND(CHAR(160),SUBSTITUTE($U84,\"{\",CHAR(160),GB$1))+1),\"\")","v":""},{"$f":"IFERROR(MID($U84,FIND(CHAR(160),SUBSTITUTE($U84,\"{\",CHAR(160),GC$1)),FIND(CHAR(160),SUBSTITUTE($U84,\"}\",CHAR(160),GC$1))-FIND(CHAR(160),SUBSTITUTE($U84,\"{\",CHAR(160),GC$1))+1),\"\")","v":""},{"$f":"IFERROR(MID($U84,FIND(CHAR(160),SUBSTITUTE($U84,\"{\",CHAR(160),GD$1)),FIND(CHAR(160),SUBSTITUTE($U84,\"}\",CHAR(160),GD$1))-FIND(CHAR(160),SUBSTITUTE($U84,\"{\",CHAR(160),GD$1))+1),\"\")","v":""},{"$f":"IFERROR(MID($U84,FIND(CHAR(160),SUBSTITUTE($U84,\"{\",CHAR(160),GE$1)),FIND(CHAR(160),SUBSTITUTE($U84,\"}\",CHAR(160),GE$1))-FIND(CHAR(160),SUBSTITUTE($U84,\"{\",CHAR(160),GE$1))+1),\"\")","v":""},{"$f":"IFERROR(MID($U84,FIND(CHAR(160),SUBSTITUTE($U84,\"{\",CHAR(160),GF$1)),FIND(CHAR(160),SUBSTITUTE($U84,\"}\",CHAR(160),GF$1))-FIND(CHAR(160),SUBSTITUTE($U84,\"{\",CHAR(160),GF$1))+1),\"\")","v":""},{"$f":"IFERROR(MID($V84,FIND(CHAR(160),SUBSTITUTE($V84,\"{\",CHAR(160),GG$1)),FIND(CHAR(160),SUBSTITUTE($V84,\"}\",CHAR(160),GG$1))-FIND(CHAR(160),SUBSTITUTE($V84,\"{\",CHAR(160),GG$1))+1),\"\")","v":""},{"$f":"IFERROR(MID($V84,FIND(CHAR(160),SUBSTITUTE($V84,\"{\",CHAR(160),GH$1)),FIND(CHAR(160),SUBSTITUTE($V84,\"}\",CHAR(160),GH$1))-FIND(CHAR(160),SUBSTITUTE($V84,\"{\",CHAR(160),GH$1))+1),\"\")","v":""},{"$f":"IFERROR(MID($V84,FIND(CHAR(160),SUBSTITUTE($V84,\"{\",CHAR(160),GI$1)),FIND(CHAR(160),SUBSTITUTE($V84,\"}\",CHAR(160),GI$1))-FIND(CHAR(160),SUBSTITUTE($V84,\"{\",CHAR(160),GI$1))+1),\"\")","v":""},{"$f":"IFERROR(MID($V84,FIND(CHAR(160),SUBSTITUTE($V84,\"{\",CHAR(160),GJ$1)),FIND(CHAR(160),SUBSTITUTE($V84,\"}\",CHAR(160),GJ$1))-FIND(CHAR(160),SUBSTITUTE($V84,\"{\",CHAR(160),GJ$1))+1),\"\")","v":""},{"$f":"IFERROR(MID($V84,FIND(CHAR(160),SUBSTITUTE($V84,\"{\",CHAR(160),GK$1)),FIND(CHAR(160),SUBSTITUTE($V84,\"}\",CHAR(160),GK$1))-FIND(CHAR(160),SUBSTITUTE($V84,\"{\",CHAR(160),GK$1))+1),\"\")","v":""},{"$f":"IFERROR(MID($V84,FIND(CHAR(160),SUBSTITUTE($V84,\"{\",CHAR(160),GL$1)),FIND(CHAR(160),SUBSTITUTE($V84,\"}\",CHAR(160),GL$1))-FIND(CHAR(160),SUBSTITUTE($V84,\"{\",CHAR(160),GL$1))+1),\"\")","v":""},{"$f":"IFERROR(MID($V84,FIND(CHAR(160),SUBSTITUTE($V84,\"{\",CHAR(160),GM$1)),FIND(CHAR(160),SUBSTITUTE($V84,\"}\",CHAR(160),GM$1))-FIND(CHAR(160),SUBSTITUTE($V84,\"{\",CHAR(160),GM$1))+1),\"\")","v":""},{"$f":"IFERROR(MID($V84,FIND(CHAR(160),SUBSTITUTE($V84,\"{\",CHAR(160),GN$1)),FIND(CHAR(160),SUBSTITUTE($V84,\"}\",CHAR(160),GN$1))-FIND(CHAR(160),SUBSTITUTE($V84,\"{\",CHAR(160),GN$1))+1),\"\")","v":""},{"$f":"IFERROR(MID($V84,FIND(CHAR(160),SUBSTITUTE($V84,\"{\",CHAR(160),GO$1)),FIND(CHAR(160),SUBSTITUTE($V84,\"}\",CHAR(160),GO$1))-FIND(CHAR(160),SUBSTITUTE($V84,\"{\",CHAR(160),GO$1))+1),\"\")","v":""},{"$f":"IFERROR(MID($V84,FIND(CHAR(160),SUBSTITUTE($V84,\"{\",CHAR(160),GP$1)),FIND(CHAR(160),SUBSTITUTE($V84,\"}\",CHAR(160),GP$1))-FIND(CHAR(160),SUBSTITUTE($V84,\"{\",CHAR(160),GP$1))+1),\"\")","v":""},{"$f":"IFERROR(MID($W84,FIND(CHAR(160),SUBSTITUTE($W84,\"{\",CHAR(160),GQ$1)),FIND(CHAR(160),SUBSTITUTE($W84,\"}\",CHAR(160),GQ$1))-FIND(CHAR(160),SUBSTITUTE($W84,\"{\",CHAR(160),GQ$1))+1),\"\")","v":"{Indoor Design Temp (oF)}"},{"$f":"IFERROR(MID($W84,FIND(CHAR(160),SUBSTITUTE($W84,\"{\",CHAR(160),GR$1)),FIND(CHAR(160),SUBSTITUTE($W84,\"}\",CHAR(160),GR$1))-FIND(CHAR(160),SUBSTITUTE($W84,\"{\",CHAR(160),GR$1))+1),\"\")","v":"{Outdoor Design Temp (oF)}"},{"$f":"IFERROR(MID($W84,FIND(CHAR(160),SUBSTITUTE($W84,\"{\",CHAR(160),GS$1)),FIND(CHAR(160),SUBSTITUTE($W84,\"}\",CHAR(160),GS$1))-FIND(CHAR(160),SUBSTITUTE($W84,\"{\",CHAR(160),GS$1))+1),\"\")","v":"{Unit Efficiency - AFUE or Thermal Efficiency}"},{"$f":"IFERROR(MID($W84,FIND(CHAR(160),SUBSTITUTE($W84,\"{\",CHAR(160),GT$1)),FIND(CHAR(160),SUBSTITUTE($W84,\"}\",CHAR(160),GT$1))-FIND(CHAR(160),SUBSTITUTE($W84,\"{\",CHAR(160),GT$1))+1),\"\")","v":""},{"$f":"IFERROR(MID($W84,FIND(CHAR(160),SUBSTITUTE($W84,\"{\",CHAR(160),GU$1)),FIND(CHAR(160),SUBSTITUTE($W84,\"}\",CHAR(160),GU$1))-FIND(CHAR(160),SUBSTITUTE($W84,\"{\",CHAR(160),GU$1))+1),\"\")","v":""},{"$f":"IFERROR(MID($W84,FIND(CHAR(160),SUBSTITUTE($W84,\"{\",CHAR(160),GV$1)),FIND(CHAR(160),SUBSTITUTE($W84,\"}\",CHAR(160),GV$1))-FIND(CHAR(160),SUBSTITUTE($W84,\"{\",CHAR(160),GV$1))+1),\"\")","v":""},{"$f":"IFERROR(MID($W84,FIND(CHAR(160),SUBSTITUTE($W84,\"{\",CHAR(160),GW$1)),FIND(CHAR(160),SUBSTITUTE($W84,\"}\",CHAR(160),GW$1))-FIND(CHAR(160),SUBSTITUTE($W84,\"{\",CHAR(160),GW$1))+1),\"\")","v":""},{"$f":"IFERROR(MID($W84,FIND(CHAR(160),SUBSTITUTE($W84,\"{\",CHAR(160),GX$1)),FIND(CHAR(160),SUBSTITUTE($W84,\"}\",CHAR(160),GX$1))-FIND(CHAR(160),SUBSTITUTE($W84,\"{\",CHAR(160),GX$1))+1),\"\")","v":""},{"$f":"IFERROR(MID($W84,FIND(CHAR(160),SUBSTITUTE($W84,\"{\",CHAR(160),GY$1)),FIND(CHAR(160),SUBSTITUTE($W84,\"}\",CHAR(160),GY$1))-FIND(CHAR(160),SUBSTITUTE($W84,\"{\",CHAR(160),GY$1))+1),\"\")","v":"{Measure:Quantity}"},{"$f":"IFERROR(MID($W84,FIND(CHAR(160),SUBSTITUTE($W84,\"{\",CHAR(160),GZ$1)),FIND(CHAR(160),SUBSTITUTE($W84,\"}\",CHAR(160),GZ$1))-FIND(CHAR(160),SUBSTITUTE($W84,\"{\",CHAR(160),GZ$1))+1),\"\")","v":"{Design Load (Btu/h)}"},{"$f":"IFERROR(MID($X84,FIND(CHAR(160),SUBSTITUTE($X84,\"{\",CHAR(160),HA$1)),FIND(CHAR(160),SUBSTITUTE($X84,\"}\",CHAR(160),HA$1))-FIND(CHAR(160),SUBSTITUTE($X84,\"{\",CHAR(160),HA$1))+1),\"\")","v":""},{"$f":"IFERROR(MID($X84,FIND(CHAR(160),SUBSTITUTE($X84,\"{\",CHAR(160),HB$1)),FIND(CHAR(160),SUBSTITUTE($X84,\"}\",CHAR(160),HB$1))-FIND(CHAR(160),SUBSTITUTE($X84,\"{\",CHAR(160),HB$1))+1),\"\")","v":""},{"$f":"IFERROR(MID($X84,FIND(CHAR(160),SUBSTITUTE($X84,\"{\",CHAR(160),HC$1)),FIND(CHAR(160),SUBSTITUTE($X84,\"}\",CHAR(160),HC$1))-FIND(CHAR(160),SUBSTITUTE($X84,\"{\",CHAR(160),HC$1))+1),\"\")","v":""},{"$f":"IFERROR(MID($X84,FIND(CHAR(160),SUBSTITUTE($X84,\"{\",CHAR(160),HD$1)),FIND(CHAR(160),SUBSTITUTE($X84,\"}\",CHAR(160),HD$1))-FIND(CHAR(160),SUBSTITUTE($X84,\"{\",CHAR(160),HD$1))+1),\"\")","v":""},{"$f":"IFERROR(MID($X84,FIND(CHAR(160),SUBSTITUTE($X84,\"{\",CHAR(160),HE$1)),FIND(CHAR(160),SUBSTITUTE($X84,\"}\",CHAR(160),HE$1))-FIND(CHAR(160),SUBSTITUTE($X84,\"{\",CHAR(160),HE$1))+1),\"\")","v":""},{"$f":"IFERROR(MID($X84,FIND(CHAR(160),SUBSTITUTE($X84,\"{\",CHAR(160),HF$1)),FIND(CHAR(160),SUBSTITUTE($X84,\"}\",CHAR(160),HF$1))-FIND(CHAR(160),SUBSTITUTE($X84,\"{\",CHAR(160),HF$1))+1),\"\")","v":""},{"$f":"IFERROR(MID($X84,FIND(CHAR(160),SUBSTITUTE($X84,\"{\",CHAR(160),HG$1)),FIND(CHAR(160),SUBSTITUTE($X84,\"}\",CHAR(160),HG$1))-FIND(CHAR(160),SUBSTITUTE($X84,\"{\",CHAR(160),HG$1))+1),\"\")","v":""},{"$f":"IFERROR(MID($X84,FIND(CHAR(160),SUBSTITUTE($X84,\"{\",CHAR(160),HH$1)),FIND(CHAR(160),SUBSTITUTE($X84,\"}\",CHAR(160),HH$1))-FIND(CHAR(160),SUBSTITUTE($X84,\"{\",CHAR(160),HH$1))+1),\"\")","v":""},{"$f":"IFERROR(MID($X84,FIND(CHAR(160),SUBSTITUTE($X84,\"{\",CHAR(160),HI$1)),FIND(CHAR(160),SUBSTITUTE($X84,\"}\",CHAR(160),HI$1))-FIND(CHAR(160),SUBSTITUTE($X84,\"{\",CHAR(160),HI$1))+1),\"\")","v":""},{"$f":"IFERROR(MID($X84,FIND(CHAR(160),SUBSTITUTE($X84,\"{\",CHAR(160),HJ$1)),FIND(CHAR(160),SUBSTITUTE($X84,\"}\",CHAR(160),HJ$1))-FIND(CHAR(160),SUBSTITUTE($X84,\"{\",CHAR(160),HJ$1))+1),\"\")","v":""},{"$f":"IFERROR(MID($Y84,FIND(CHAR(160),SUBSTITUTE($Y84,\"{\",CHAR(160),HK$1)),FIND(CHAR(160),SUBSTITUTE($Y84,\"}\",CHAR(160),HK$1))-FIND(CHAR(160),SUBSTITUTE($Y84,\"{\",CHAR(160),HK$1))+1),\"\")","v":""},{"$f":"IFERROR(MID($Y84,FIND(CHAR(160),SUBSTITUTE($Y84,\"{\",CHAR(160),HL$1)),FIND(CHAR(160),SUBSTITUTE($Y84,\"}\",CHAR(160),HL$1))-FIND(CHAR(160),SUBSTITUTE($Y84,\"{\",CHAR(160),HL$1))+1),\"\")","v":""},{"$f":"IFERROR(MID($Y84,FIND(CHAR(160),SUBSTITUTE($Y84,\"{\",CHAR(160),HM$1)),FIND(CHAR(160),SUBSTITUTE($Y84,\"}\",CHAR(160),HM$1))-FIND(CHAR(160),SUBSTITUTE($Y84,\"{\",CHAR(160),HM$1))+1),\"\")","v":""},{"$f":"IFERROR(MID($Y84,FIND(CHAR(160),SUBSTITUTE($Y84,\"{\",CHAR(160),HN$1)),FIND(CHAR(160),SUBSTITUTE($Y84,\"}\",CHAR(160),HN$1))-FIND(CHAR(160),SUBSTITUTE($Y84,\"{\",CHAR(160),HN$1))+1),\"\")","v":""},{"$f":"IFERROR(MID($Y84,FIND(CHAR(160),SUBSTITUTE($Y84,\"{\",CHAR(160),HO$1)),FIND(CHAR(160),SUBSTITUTE($Y84,\"}\",CHAR(160),HO$1))-FIND(CHAR(160),SUBSTITUTE($Y84,\"{\",CHAR(160),HO$1))+1),\"\")","v":""},{"$f":"IFERROR(MID($Y84,FIND(CHAR(160),SUBSTITUTE($Y84,\"{\",CHAR(160),HP$1)),FIND(CHAR(160),SUBSTITUTE($Y84,\"}\",CHAR(160),HP$1))-FIND(CHAR(160),SUBSTITUTE($Y84,\"{\",CHAR(160),HP$1))+1),\"\")","v":""},{"$f":"IFERROR(MID($Y84,FIND(CHAR(160),SUBSTITUTE($Y84,\"{\",CHAR(160),HQ$1)),FIND(CHAR(160),SUBSTITUTE($Y84,\"}\",CHAR(160),HQ$1))-FIND(CHAR(160),SUBSTITUTE($Y84,\"{\",CHAR(160),HQ$1))+1),\"\")","v":""},{"$f":"IFERROR(MID($Y84,FIND(CHAR(160),SUBSTITUTE($Y84,\"{\",CHAR(160),HR$1)),FIND(CHAR(160),SUBSTITUTE($Y84,\"}\",CHAR(160),HR$1))-FIND(CHAR(160),SUBSTITUTE($Y84,\"{\",CHAR(160),HR$1))+1),\"\")","v":""},{"$f":"IFERROR(MID($Y84,FIND(CHAR(160),SUBSTITUTE($Y84,\"{\",CHAR(160),HS$1)),FIND(CHAR(160),SUBSTITUTE($Y84,\"}\",CHAR(160),HS$1))-FIND(CHAR(160),SUBSTITUTE($Y84,\"{\",CHAR(160),HS$1))+1),\"\")","v":""},{"$f":"IFERROR(MID($Y84,FIND(CHAR(160),SUBSTITUTE($Y84,\"{\",CHAR(160),HT$1)),FIND(CHAR(160),SUBSTITUTE($Y84,\"}\",CHAR(160),HT$1))-FIND(CHAR(160),SUBSTITUTE($Y84,\"{\",CHAR(160),HT$1))+1),\"\")","v":""},{"$f":"IFERROR(MID($Z84,FIND(CHAR(160),SUBSTITUTE($Z84,\"{\",CHAR(160),HU$1)),FIND(CHAR(160),SUBSTITUTE($Z84,\"}\",CHAR(160),HU$1))-FIND(CHAR(160),SUBSTITUTE($Z84,\"{\",CHAR(160),HU$1))+1),\"\")","v":""},{"$f":"IFERROR(MID($Z84,FIND(CHAR(160),SUBSTITUTE($Z84,\"{\",CHAR(160),HV$1)),FIND(CHAR(160),SUBSTITUTE($Z84,\"}\",CHAR(160),HV$1))-FIND(CHAR(160),SUBSTITUTE($Z84,\"{\",CHAR(160),HV$1))+1),\"\")","v":""},{"$f":"IFERROR(MID($Z84,FIND(CHAR(160),SUBSTITUTE($Z84,\"{\",CHAR(160),HW$1)),FIND(CHAR(160),SUBSTITUTE($Z84,\"}\",CHAR(160),HW$1))-FIND(CHAR(160),SUBSTITUTE($Z84,\"{\",CHAR(160),HW$1))+1),\"\")","v":""},{"$f":"IFERROR(MID($Z84,FIND(CHAR(160),SUBSTITUTE($Z84,\"{\",CHAR(160),HX$1)),FIND(CHAR(160),SUBSTITUTE($Z84,\"}\",CHAR(160),HX$1))-FIND(CHAR(160),SUBSTITUTE($Z84,\"{\",CHAR(160),HX$1))+1),\"\")","v":""},{"$f":"IFERROR(MID($Z84,FIND(CHAR(160),SUBSTITUTE($Z84,\"{\",CHAR(160),HY$1)),FIND(CHAR(160),SUBSTITUTE($Z84,\"}\",CHAR(160),HY$1))-FIND(CHAR(160),SUBSTITUTE($Z84,\"{\",CHAR(160),HY$1))+1),\"\")","v":""},{"$f":"IFERROR(MID($Z84,FIND(CHAR(160),SUBSTITUTE($Z84,\"{\",CHAR(160),HZ$1)),FIND(CHAR(160),SUBSTITUTE($Z84,\"}\",CHAR(160),HZ$1))-FIND(CHAR(160),SUBSTITUTE($Z84,\"{\",CHAR(160),HZ$1))+1),\"\")","v":""},{"$f":"IFERROR(MID($Z84,FIND(CHAR(160),SUBSTITUTE($Z84,\"{\",CHAR(160),IA$1)),FIND(CHAR(160),SUBSTITUTE($Z84,\"}\",CHAR(160),IA$1))-FIND(CHAR(160),SUBSTITUTE($Z84,\"{\",CHAR(160),IA$1))+1),\"\")","v":""},{"$f":"IFERROR(MID($Z84,FIND(CHAR(160),SUBSTITUTE($Z84,\"{\",CHAR(160),IB$1)),FIND(CHAR(160),SUBSTITUTE($Z84,\"}\",CHAR(160),IB$1))-FIND(CHAR(160),SUBSTITUTE($Z84,\"{\",CHAR(160),IB$1))+1),\"\")","v":""},{"$f":"IFERROR(MID($Z84,FIND(CHAR(160),SUBSTITUTE($Z84,\"{\",CHAR(160),IC$1)),FIND(CHAR(160),SUBSTITUTE($Z84,\"}\",CHAR(160),IC$1))-FIND(CHAR(160),SUBSTITUTE($Z84,\"{\",CHAR(160),IC$1))+1),\"\")","v":""},{"$f":"IFERROR(MID($Z84,FIND(CHAR(160),SUBSTITUTE($Z84,\"{\",CHAR(160),ID$1)),FIND(CHAR(160),SUBSTITUTE($Z84,\"}\",CHAR(160),ID$1))-FIND(CHAR(160),SUBSTITUTE($Z84,\"{\",CHAR(160),ID$1))+1),\"\")","v":""},{"$f":"IFERROR(MID($AA84,FIND(CHAR(160),SUBSTITUTE($AA84,\"{\",CHAR(160),IE$1)),FIND(CHAR(160),SUBSTITUTE($AA84,\"}\",CHAR(160),IE$1))-FIND(CHAR(160),SUBSTITUTE($AA84,\"{\",CHAR(160),IE$1))+1),\"\")","v":""},{"$f":"IFERROR(MID($AA84,FIND(CHAR(160),SUBSTITUTE($AA84,\"{\",CHAR(160),IF$1)),FIND(CHAR(160),SUBSTITUTE($AA84,\"}\",CHAR(160),IF$1))-FIND(CHAR(160),SUBSTITUTE($AA84,\"{\",CHAR(160),IF$1))+1),\"\")","v":""},{"$f":"IFERROR(MID($AA84,FIND(CHAR(160),SUBSTITUTE($AA84,\"{\",CHAR(160),IG$1)),FIND(CHAR(160),SUBSTITUTE($AA84,\"}\",CHAR(160),IG$1))-FIND(CHAR(160),SUBSTITUTE($AA84,\"{\",CHAR(160),IG$1))+1),\"\")","v":""},{"$f":"IFERROR(MID($AA84,FIND(CHAR(160),SUBSTITUTE($AA84,\"{\",CHAR(160),IH$1)),FIND(CHAR(160),SUBSTITUTE($AA84,\"}\",CHAR(160),IH$1))-FIND(CHAR(160),SUBSTITUTE($AA84,\"{\",CHAR(160),IH$1))+1),\"\")","v":""},{"$f":"IFERROR(MID($AA84,FIND(CHAR(160),SUBSTITUTE($AA84,\"{\",CHAR(160),II$1)),FIND(CHAR(160),SUBSTITUTE($AA84,\"}\",CHAR(160),II$1))-FIND(CHAR(160),SUBSTITUTE($AA84,\"{\",CHAR(160),II$1))+1),\"\")","v":""},{"$f":"IFERROR(MID($AA84,FIND(CHAR(160),SUBSTITUTE($AA84,\"{\",CHAR(160),IJ$1)),FIND(CHAR(160),SUBSTITUTE($AA84,\"}\",CHAR(160),IJ$1))-FIND(CHAR(160),SUBSTITUTE($AA84,\"{\",CHAR(160),IJ$1))+1),\"\")","v":""},{"$f":"IFERROR(MID($AA84,FIND(CHAR(160),SUBSTITUTE($AA84,\"{\",CHAR(160),IK$1)),FIND(CHAR(160),SUBSTITUTE($AA84,\"}\",CHAR(160),IK$1))-FIND(CHAR(160),SUBSTITUTE($AA84,\"{\",CHAR(160),IK$1))+1),\"\")","v":""},{"$f":"IFERROR(MID($AA84,FIND(CHAR(160),SUBSTITUTE($AA84,\"{\",CHAR(160),IL$1)),FIND(CHAR(160),SUBSTITUTE($AA84,\"}\",CHAR(160),IL$1))-FIND(CHAR(160),SUBSTITUTE($AA84,\"{\",CHAR(160),IL$1))+1),\"\")","v":""},{"$f":"IFERROR(MID($AA84,FIND(CHAR(160),SUBSTITUTE($AA84,\"{\",CHAR(160),IM$1)),FIND(CHAR(160),SUBSTITUTE($AA84,\"}\",CHAR(160),IM$1))-FIND(CHAR(160),SUBSTITUTE($AA84,\"{\",CHAR(160),IM$1))+1),\"\")","v":""},{"$f":"IFERROR(MID($AA84,FIND(CHAR(160),SUBSTITUTE($AA84,\"{\",CHAR(160),IN$1)),FIND(CHAR(160),SUBSTITUTE($AA84,\"}\",CHAR(160),IN$1))-FIND(CHAR(160),SUBSTITUTE($AA84,\"{\",CHAR(160),IN$1))+1),\"\")","v":""},{"$f":"IFERROR(MID($AB84,FIND(CHAR(160),SUBSTITUTE($AB84,\"{\",CHAR(160),IO$1)),FIND(CHAR(160),SUBSTITUTE($AB84,\"}\",CHAR(160),IO$1))-FIND(CHAR(160),SUBSTITUTE($AB84,\"{\",CHAR(160),IO$1))+1),\"\")","v":""},{"$f":"IFERROR(MID($AB84,FIND(CHAR(160),SUBSTITUTE($AB84,\"{\",CHAR(160),IP$1)),FIND(CHAR(160),SUBSTITUTE($AB84,\"}\",CHAR(160),IP$1))-FIND(CHAR(160),SUBSTITUTE($AB84,\"{\",CHAR(160),IP$1))+1),\"\")","v":""},{"$f":"IFERROR(MID($AB84,FIND(CHAR(160),SUBSTITUTE($AB84,\"{\",CHAR(160),IQ$1)),FIND(CHAR(160),SUBSTITUTE($AB84,\"}\",CHAR(160),IQ$1))-FIND(CHAR(160),SUBSTITUTE($AB84,\"{\",CHAR(160),IQ$1))+1),\"\")","v":""},{"$f":"IFERROR(MID($AB84,FIND(CHAR(160),SUBSTITUTE($AB84,\"{\",CHAR(160),IR$1)),FIND(CHAR(160),SUBSTITUTE($AB84,\"}\",CHAR(160),IR$1))-FIND(CHAR(160),SUBSTITUTE($AB84,\"{\",CHAR(160),IR$1))+1),\"\")","v":""},{"$f":"IFERROR(MID($AB84,FIND(CHAR(160),SUBSTITUTE($AB84,\"{\",CHAR(160),IS$1)),FIND(CHAR(160),SUBSTITUTE($AB84,\"}\",CHAR(160),IS$1))-FIND(CHAR(160),SUBSTITUTE($AB84,\"{\",CHAR(160),IS$1))+1),\"\")","v":""},{"$f":"IFERROR(MID($AB84,FIND(CHAR(160),SUBSTITUTE($AB84,\"{\",CHAR(160),IT$1)),FIND(CHAR(160),SUBSTITUTE($AB84,\"}\",CHAR(160),IT$1))-FIND(CHAR(160),SUBSTITUTE($AB84,\"{\",CHAR(160),IT$1))+1),\"\")","v":""},{"$f":"IFERROR(MID($AB84,FIND(CHAR(160),SUBSTITUTE($AB84,\"{\",CHAR(160),IU$1)),FIND(CHAR(160),SUBSTITUTE($AB84,\"}\",CHAR(160),IU$1))-FIND(CHAR(160),SUBSTITUTE($AB84,\"{\",CHAR(160),IU$1))+1),\"\")","v":""},{"$f":"IFERROR(MID($AB84,FIND(CHAR(160),SUBSTITUTE($AB84,\"{\",CHAR(160),IV$1)),FIND(CHAR(160),SUBSTITUTE($AB84,\"}\",CHAR(160),IV$1))-FIND(CHAR(160),SUBSTITUTE($AB84,\"{\",CHAR(160),IV$1))+1),\"\")","v":""},{"$f":"IFERROR(MID($AB84,FIND(CHAR(160),SUBSTITUTE($AB84,\"{\",CHAR(160),IW$1)),FIND(CHAR(160),SUBSTITUTE($AB84,\"}\",CHAR(160),IW$1))-FIND(CHAR(160),SUBSTITUTE($AB84,\"{\",CHAR(160),IW$1))+1),\"\")","v":""},{"$f":"IFERROR(MID($AB84,FIND(CHAR(160),SUBSTITUTE($AB84,\"{\",CHAR(160),IX$1)),FIND(CHAR(160),SUBSTITUTE($AB84,\"}\",CHAR(160),IX$1))-FIND(CHAR(160),SUBSTITUTE($AB84,\"{\",CHAR(160),IX$1))+1),\"\")","v":""},null,{"$f":"10-COUNTIF(DU84:ED84,\"\")","v":6}]
["C&I HVAC - Natural Gas","G9 Gas-fired condensing hot water boiler >500 MBtu/h and <=1000 MBtu/h","G9","2021-07-01","2022-06-30","Calculated","{Measure:Quantity}*({Equipment Capacity MBtu/h}*3.47+1982)",0,"Calculated","{Measure:Quantity}*5000",0,"2021-05-25","2022-06-30","Calculated",null,null,null,null,null,null,null,null,"{Measure:Quantity} * ({Design Load (Btu/h)}/({Indoor Design Temp (oF)}-{Outdoor Design Temp (oF)})*186648/1000000) * (100/80-100/{Unit Efficiency - AFUE or Thermal Efficiency}) * 10",null,null,null,null,null,"2021-05-25","2022-06-30",24,0,0,1,0,0,0,1,1,0,0.52,1.6E-2,null,{"$f":"DU85","v":"{Measure:Quantity}"},1,{"$f":"DV85","v":"{Equipment Capacity MBtu/h}"},805,{"$f":"DW85","v":"{Indoor Design Temp (oF)}"},982898,{"$f":"DX85","v":"{Outdoor Design Temp (oF)}"},70.5,{"$f":"DY85","v":"{Unit Efficiency - AFUE or Thermal Efficiency}"},-8.75,{"$f":"DZ85","v":"{Design Load (Btu/h)}"},96.25,{"$f":"EA85","v":""},null,{"$f":"EB85","v":""},null,{"$f":"EC85","v":""},null,{"$f":"ED85","v":""},null,0,0,0,0,0,0,0,0,{"$f":"AS85 * (AW85/(AY85-BA85)*186648/1000000) * (100/80-100/BC85) * 10","v":4885.3441287066271},0,0,0,0,0,null,"Res","Default DR",{"$f":"Benefits(BL85,BR85,BS85,BT85,BU85,BV85,BW85,BX85,BY85,BZ85,AE85,AH85,AI85,AJ85,AK85,AL85,AM85,AN85,AO85,AP85,CA85,CB85)","v":0},0,127926.95247709098,0,0,0,0,0,0,{"$f":"SUMPRODUCT(CC85:CK85,--(CC85:CK85>0))","v":127926.95247709098},{"$f":"-SUMPRODUCT(CC85:CK85,--(CC85:CK85<0))","v":0},null,{"$f":"AS85*(AU85*3.47+1982)","v":4775.3500000000004},null,null,{"$f":"CM85+CO85","v":4775.3500000000004},{"$f":"IF(NetOrGross=\"Net\",(1-AO85+AP85),1)","v":1},{"$f":"(SUMPRODUCT(CC85:CJ85,--(CC85:CJ85>0))+CN85)*CS85/((-SUMPRODUCT(CC85:CJ85,--(CC85:CJ85<0))+MAX(CO85,CV85)+CP85+CQ85)*CS85+IF(FRIncentives=\"Yes\",CV85*(1-CS85),0))","v":25.585390495418196},1,{"$f":"AS85*5000","v":5000},null,"NG","y",null,{"$f":"IF(F85=\"Manual Entry\",\"Manual\",IF(G85=\"\",0,\"X=\"&SUBSTITUTE(SUBSTITUTE(SUBSTITUTE(SUBSTITUTE(SUBSTITUTE(SUBSTITUTE(SUBSTITUTE(SUBSTITUTE(SUBSTITUTE(SUBSTITUTE(SUBSTITUTE(SUBSTITUTE(G85,$ED85,$ED$2&ROW($ED85)),$EC85,$EC$2&ROW($EC85)),$EB85,$EB$2&ROW($EB85)),$EA85,$EA$2&ROW($EA85)),$DZ85,$DZ$2&ROW($DZ85)),$DY85,$DY$2&ROW($DY85)),$DX85,$DX$2&ROW($DX85)),$DW85,$DW$2&ROW($DW85)),$DV85,$DV$2&ROW($DV85)),$DU85,$DU$2&ROW($DU85)),$DT85,$DT$2&ROW($DT85)),$DS85,$DS$2&ROW($DS85))))","v":"X=AS85*(AU85*3.47+1982)"},{"$f":"IF(I85=\"Manual Entry\",\"Manual\",IF(J85=\"\",0,\"X=\"&SUBSTITUTE(SUBSTITUTE(SUBSTITUTE(SUBSTITUTE(SUBSTITUTE(SUBSTITUTE(SUBSTITUTE(SUBSTITUTE(SUBSTITUTE(SUBSTITUTE(SUBSTITUTE(SUBSTITUTE(J85,$ED85,$ED$2&ROW($ED85)),$EC85,$EC$2&ROW($EC85)),$EB85,$EB$2&ROW($EB85)),$EA85,$EA$2&ROW($EA85)),$DZ85,$DZ$2&ROW($DZ85)),$DY85,$DY$2&ROW($DY85)),$DX85,$DX$2&ROW($DX85)),$DW85,$DW$2&ROW($DW85)),$DV85,$DV$2&ROW($DV85)),$DU85,$DU$2&ROW($DU85)),$DT85,$DT$2&ROW($DT85)),$DS85,$DS$2&ROW($DS85))))","v":"X=AS85*5000"},{"$f":"IF(O85=\"\",0,\"X=\"&SUBSTITUTE(SUBSTITUTE(SUBSTITUTE(SUBSTITUTE(SUBSTITUTE(SUBSTITUTE(SUBSTITUTE(SUBSTITUTE(SUBSTITUTE(SUBSTITUTE(SUBSTITUTE(SUBSTITUTE(O85,$ED85,$ED$2&ROW($ED85)),$EC85,$EC$2&ROW($EC85)),$EB85,$EB$2&ROW($EB85)),$EA85,$EA$2&ROW($EA85)),$DZ85,$DZ$2&ROW($DZ85)),$DY85,$DY$2&ROW($DY85)),$DX85,$DX$2&ROW($DX85)),$DW85,$DW$2&ROW($DW85)),$DV85,$DV$2&ROW($DV85)),$DU85,$DU$2&ROW($DU85)),$DT85,$DT$2&ROW($DT85)),$DS85,$DS$2&ROW($DS85)))","v":0},{"$f":"IF(P85=\"\",0,\"X=\"&SUBSTITUTE(SUBSTITUTE(SUBSTITUTE(SUBSTITUTE(SUBSTITUTE(SUBSTITUTE(SUBSTITUTE(SUBSTITUTE(SUBSTITUTE(SUBSTITUTE(SUBSTITUTE(SUBSTITUTE(P85,$ED85,$ED$2&ROW($ED85)),$EC85,$EC$2&ROW($EC85)),$EB85,$EB$2&ROW($EB85)),$EA85,$EA$2&ROW($EA85)),$DZ85,$DZ$2&ROW($DZ85)),$DY85,$DY$2&ROW($DY85)),$DX85,$DX$2&ROW($DX85)),$DW85,$DW$2&ROW($DW85)),$DV85,$DV$2&ROW($DV85)),$DU85,$DU$2&ROW($DU85)),$DT85,$DT$2&ROW($DT85)),$DS85,$DS$2&ROW($DS85)))","v":0},{"$f":"IF(Q85=\"\",0,\"X=\"&SUBSTITUTE(SUBSTITUTE(SUBSTITUTE(SUBSTITUTE(SUBSTITUTE(SUBSTITUTE(SUBSTITUTE(SUBSTITUTE(SUBSTITUTE(SUBSTITUTE(SUBSTITUTE(SUBSTITUTE(Q85,$ED85,$ED$2&ROW($ED85)),$EC85,$EC$2&ROW($EC85)),$EB85,$EB$2&ROW($EB85)),$EA85,$EA$2&ROW($EA85)),$DZ85,$DZ$2&ROW($DZ85)),$DY85,$DY$2&ROW($DY85)),$DX85,$DX$2&ROW($DX85)),$DW85,$DW$2&ROW($DW85)),$DV85,$DV$2&ROW($DV85)),$DU85,$DU$2&ROW($DU85)),$DT85,$DT$2&ROW($DT85)),$DS85,$DS$2&ROW($DS85)))","v":0},{"$f":"IF(R85=\"\",0,\"X=\"&SUBSTITUTE(SUBSTITUTE(SUBSTITUTE(SUBSTITUTE(SUBSTITUTE(SUBSTITUTE(SUBSTITUTE(SUBSTITUTE(SUBSTITUTE(SUBSTITUTE(SUBSTITUTE(SUBSTITUTE(R85,$ED85,$ED$2&ROW($ED85)),$EC85,$EC$2&ROW($EC85)),$EB85,$EB$2&ROW($EB85)),$EA85,$EA$2&ROW($EA85)),$DZ85,$DZ$2&ROW($DZ85)),$DY85,$DY$2&ROW($DY85)),$DX85,$DX$2&ROW($DX85)),$DW85,$DW$2&ROW($DW85)),$DV85,$DV$2&ROW($DV85)),$DU85,$DU$2&ROW($DU85)),$DT85,$DT$2&ROW($DT85)),$DS85,$DS$2&ROW($DS85)))","v":0},{"$f":"IF(S85=\"\",0,\"X=\"&SUBSTITUTE(SUBSTITUTE(SUBSTITUTE(SUBSTITUTE(SUBSTITUTE(SUBSTITUTE(SUBSTITUTE(SUBSTITUTE(SUBSTITUTE(SUBSTITUTE(SUBSTITUTE(SUBSTITUTE(S85,$ED85,$ED$2&ROW($ED85)),$EC85,$EC$2&ROW($EC85)),$EB85,$EB$2&ROW($EB85)),$EA85,$EA$2&ROW($EA85)),$DZ85,$DZ$2&ROW($DZ85)),$DY85,$DY$2&ROW($DY85)),$DX85,$DX$2&ROW($DX85)),$DW85,$DW$2&ROW($DW85)),$DV85,$DV$2&ROW($DV85)),$DU85,$DU$2&ROW($DU85)),$DT85,$DT$2&ROW($DT85)),$DS85,$DS$2&ROW($DS85)))","v":0},{"$f":"IF(T85=\"\",0,\"X=\"&SUBSTITUTE(SUBSTITUTE(SUBSTITUTE(SUBSTITUTE(SUBSTITUTE(SUBSTITUTE(SUBSTITUTE(SUBSTITUTE(SUBSTITUTE(SUBSTITUTE(SUBSTITUTE(SUBSTITUTE(T85,$ED85,$ED$2&ROW($ED85)),$EC85,$EC$2&ROW($EC85)),$EB85,$EB$2&ROW($EB85)),$EA85,$EA$2&ROW($EA85)),$DZ85,$DZ$2&ROW($DZ85)),$DY85,$DY$2&ROW($DY85)),$DX85,$DX$2&ROW($DX85)),$DW85,$DW$2&ROW($DW85)),$DV85,$DV$2&ROW($DV85)),$DU85,$DU$2&ROW($DU85)),$DT85,$DT$2&ROW($DT85)),$DS85,$DS$2&ROW($DS85)))","v":0},{"$f":"IF(U85=\"\",0,\"X=\"&SUBSTITUTE(SUBSTITUTE(SUBSTITUTE(SUBSTITUTE(SUBSTITUTE(SUBSTITUTE(SUBSTITUTE(SUBSTITUTE(SUBSTITUTE(SUBSTITUTE(SUBSTITUTE(SUBSTITUTE(U85,$ED85,$ED$2&ROW($ED85)),$EC85,$EC$2&ROW($EC85)),$EB85,$EB$2&ROW($EB85)),$EA85,$EA$2&ROW($EA85)),$DZ85,$DZ$2&ROW($DZ85)),$DY85,$DY$2&ROW($DY85)),$DX85,$DX$2&ROW($DX85)),$DW85,$DW$2&ROW($DW85)),$DV85,$DV$2&ROW($DV85)),$DU85,$DU$2&ROW($DU85)),$DT85,$DT$2&ROW($DT85)),$DS85,$DS$2&ROW($DS85)))","v":0},{"$f":"IF(V85=\"\",0,\"X=\"&SUBSTITUTE(SUBSTITUTE(SUBSTITUTE(SUBSTITUTE(SUBSTITUTE(SUBSTITUTE(SUBSTITUTE(SUBSTITUTE(SUBSTITUTE(SUBSTITUTE(SUBSTITUTE(SUBSTITUTE(V85,$ED85,$ED$2&ROW($ED85)),$EC85,$EC$2&ROW($EC85)),$EB85,$EB$2&ROW($EB85)),$EA85,$EA$2&ROW($EA85)),$DZ85,$DZ$2&ROW($DZ85)),$DY85,$DY$2&ROW($DY85)),$DX85,$DX$2&ROW($DX85)),$DW85,$DW$2&ROW($DW85)),$DV85,$DV$2&ROW($DV85)),$DU85,$DU$2&ROW($DU85)),$DT85,$DT$2&ROW($DT85)),$DS85,$DS$2&ROW($DS85)))","v":0},{"$f":"IF(W85=\"\",0,\"X=\"&SUBSTITUTE(SUBSTITUTE(SUBSTITUTE(SUBSTITUTE(SUBSTITUTE(SUBSTITUTE(SUBSTITUTE(SUBSTITUTE(SUBSTITUTE(SUBSTITUTE(SUBSTITUTE(SUBSTITUTE(W85,$ED85,$ED$2&ROW($ED85)),$EC85,$EC$2&ROW($EC85)),$EB85,$EB$2&ROW($EB85)),$EA85,$EA$2&ROW($EA85)),$DZ85,$DZ$2&ROW($DZ85)),$DY85,$DY$2&ROW($DY85)),$DX85,$DX$2&ROW($DX85)),$DW85,$DW$2&ROW($DW85)),$DV85,$DV$2&ROW($DV85)),$DU85,$DU$2&ROW($DU85)),$DT85,$DT$2&ROW($DT85)),$DS85,$DS$2&ROW($DS85)))","v":"X=AS85 * (BC85/(AW85-AY85)*186648/1000000) * (100/80-100/BA85) * 10"},{"$f":"IF(X85=\"\",0,\"X=\"&SUBSTITUTE(SUBSTITUTE(SUBSTITUTE(SUBSTITUTE(SUBSTITUTE(SUBSTITUTE(SUBSTITUTE(SUBSTITUTE(SUBSTITUTE(SUBSTITUTE(SUBSTITUTE(SUBSTITUTE(X85,$ED85,$ED$2&ROW($ED85)),$EC85,$EC$2&ROW($EC85)),$EB85,$EB$2&ROW($EB85)),$EA85,$EA$2&ROW($EA85)),$DZ85,$DZ$2&ROW($DZ85)),$DY85,$DY$2&ROW($DY85)),$DX85,$DX$2&ROW($DX85)),$DW85,$DW$2&ROW($DW85)),$DV85,$DV$2&ROW($DV85)),$DU85,$DU$2&ROW($DU85)),$DT85,$DT$2&ROW($DT85)),$DS85,$DS$2&ROW($DS85)))","v":0},{"$f":"IF(Y85=\"\",0,\"X=\"&SUBSTITUTE(SUBSTITUTE(SUBSTITUTE(SUBSTITUTE(SUBSTITUTE(SUBSTITUTE(SUBSTITUTE(SUBSTITUTE(SUBSTITUTE(SUBSTITUTE(SUBSTITUTE(SUBSTITUTE(Y85,$ED85,$ED$2&ROW($ED85)),$EC85,$EC$2&ROW($EC85)),$EB85,$EB$2&ROW($EB85)),$EA85,$EA$2&ROW($EA85)),$DZ85,$DZ$2&ROW($DZ85)),$DY85,$DY$2&ROW($DY85)),$DX85,$DX$2&ROW($DX85)),$DW85,$DW$2&ROW($DW85)),$DV85,$DV$2&ROW($DV85)),$DU85,$DU$2&ROW($DU85)),$DT85,$DT$2&ROW($DT85)),$DS85,$DS$2&ROW($DS85)))","v":0},{"$f":"IF(Z85=\"\",0,\"X=\"&SUBSTITUTE(SUBSTITUTE(SUBSTITUTE(SUBSTITUTE(SUBSTITUTE(SUBSTITUTE(SUBSTITUTE(SUBSTITUTE(SUBSTITUTE(SUBSTITUTE(SUBSTITUTE(SUBSTITUTE(Z85,$ED85,$ED$2&ROW($ED85)),$EC85,$EC$2&ROW($EC85)),$EB85,$EB$2&ROW($EB85)),$EA85,$EA$2&ROW($EA85)),$DZ85,$DZ$2&ROW($DZ85)),$DY85,$DY$2&ROW($DY85)),$DX85,$DX$2&ROW($DX85)),$DW85,$DW$2&ROW($DW85)),$DV85,$DV$2&ROW($DV85)),$DU85,$DU$2&ROW($DU85)),$DT85,$DT$2&ROW($DT85)),$DS85,$DS$2&ROW($DS85)))","v":0},{"$f":"IF(AA85=\"\",0,\"X=\"&SUBSTITUTE(SUBSTITUTE(SUBSTITUTE(SUBSTITUTE(SUBSTITUTE(SUBSTITUTE(SUBSTITUTE(SUBSTITUTE(SUBSTITUTE(SUBSTITUTE(SUBSTITUTE(SUBSTITUTE(AA85,$ED85,$ED$2&ROW($ED85)),$EC85,$EC$2&ROW($EC85)),$EB85,$EB$2&ROW($EB85)),$EA85,$EA$2&ROW($EA85)),$DZ85,$DZ$2&ROW($DZ85)),$DY85,$DY$2&ROW($DY85)),$DX85,$DX$2&ROW($DX85)),$DW85,$DW$2&ROW($DW85)),$DV85,$DV$2&ROW($DV85)),$DU85,$DU$2&ROW($DU85)),$DT85,$DT$2&ROW($DT85)),$DS85,$DS$2&ROW($DS85)))","v":0},{"$f":"IF(AB85=\"\",0,\"X=\"&SUBSTITUTE(SUBSTITUTE(SUBSTITUTE(SUBSTITUTE(SUBSTITUTE(SUBSTITUTE(SUBSTITUTE(SUBSTITUTE(SUBSTITUTE(SUBSTITUTE(SUBSTITUTE(SUBSTITUTE(AB85,$ED85,$ED$2&ROW($ED85)),$EC85,$EC$2&ROW($EC85)),$EB85,$EB$2&ROW($EB85)),$EA85,$EA$2&ROW($EA85)),$DZ85,$DZ$2&ROW($DZ85)),$DY85,$DY$2&ROW($DY85)),$DX85,$DX$2&ROW($DX85)),$DW85,$DW$2&ROW($DW85)),$DV85,$DV$2&ROW($DV85)),$DU85,$DU$2&ROW($DU85)),$DT85,$DT$2&ROW($DT85)),$DS85,$DS$2&ROW($DS85)))","v":0},null,null,"{Factor:WinterCF}","{Factor:SummerCF}",{"$f":"IFERROR(INDEX($EG85:$IV85,MATCH(0,COUNTIF($DR85:DT85,$EG85:$IV85),0)),\"\")","v":"{Measure:Quantity}"},{"$f":"IFERROR(INDEX($EG85:$IV85,MATCH(0,COUNTIF($DR85:DU85,$EG85:$IV85),0)),\"\")","v":"{Equipment Capacity MBtu/h}"},{"$f":"IFERROR(INDEX($EG85:$IV85,MATCH(0,COUNTIF($DR85:DV85,$EG85:$IV85),0)),\"\")","v":"{Indoor Design Temp (oF)}"},{"$f":"IFERROR(INDEX($EG85:$IV85,MATCH(0,COUNTIF($DR85:DW85,$EG85:$IV85),0)),\"\")","v":"{Outdoor Design Temp (oF)}"},{"$f":"IFERROR(INDEX($EG85:$IV85,MATCH(0,COUNTIF($DR85:DX85,$EG85:$IV85),0)),\"\")","v":"{Unit Efficiency - AFUE or Thermal Efficiency}"},{"$f":"IFERROR(INDEX($EG85:$IV85,MATCH(0,COUNTIF($DR85:DY85,$EG85:$IV85),0)),\"\")","v":"{Design Load (Btu/h)}"},{"$f":"IFERROR(INDEX($EG85:$IV85,MATCH(0,COUNTIF($DR85:DZ85,$EG85:$IV85),0)),\"\")","v":""},{"$f":"IFERROR(INDEX($EG85:$IV85,MATCH(0,COUNTIF($DR85:EA85,$EG85:$IV85),0)),\"\")","v":""},{"$f":"IFERROR(INDEX($EG85:$IV85,MATCH(0,COUNTIF($DR85:EB85,$EG85:$IV85),0)),\"\")","v":""},{"$f":"IFERROR(INDEX($EG85:$IV85,MATCH(0,COUNTIF($DR85:EC85,$EG85:$IV85),0)),\"\")","v":""},null,null,{"$f":"IFERROR(MID($G85,FIND(CHAR(160),SUBSTITUTE($G85,\"{\",CHAR(160),EG$1)),FIND(CHAR(160),SUBSTITUTE($G85,\"}\",CHAR(160),EG$1))-FIND(CHAR(160),SUBSTITUTE($G85,\"{\",CHAR(160),EG$1))+1),\"\")","v":"{Measure:Quantity}"},{"$f":"IFERROR(MID($G85,FIND(CHAR(160),SUBSTITUTE($G85,\"{\",CHAR(160),EH$1)),FIND(CHAR(160),SUBSTITUTE($G85,\"}\",CHAR(160),EH$1))-FIND(CHAR(160),SUBSTITUTE($G85,\"{\",CHAR(160),EH$1))+1),\"\")","v":"{Equipment Capacity MBtu/h}"},{"$f":"IFERROR(MID($G85,FIND(CHAR(160),SUBSTITUTE($G85,\"{\",CHAR(160),EI$1)),FIND(CHAR(160),SUBSTITUTE($G85,\"}\",CHAR(160),EI$1))-FIND(CHAR(160),SUBSTITUTE($G85,\"{\",CHAR(160),EI$1))+1),\"\")","v":""},{"$f":"IFERROR(MID($G85,FIND(CHAR(160),SUBSTITUTE($G85,\"{\",CHAR(160),EJ$1)),FIND(CHAR(160),SUBSTITUTE($G85,\"}\",CHAR(160),EJ$1))-FIND(CHAR(160),SUBSTITUTE($G85,\"{\",CHAR(160),EJ$1))+1),\"\")","v":""},{"$f":"IFERROR(MID($G85,FIND(CHAR(160),SUBSTITUTE($G85,\"{\",CHAR(160),EK$1)),FIND(CHAR(160),SUBSTITUTE($G85,\"}\",CHAR(160),EK$1))-FIND(CHAR(160),SUBSTITUTE($G85,\"{\",CHAR(160),EK$1))+1),\"\")","v":""},{"$f":"IFERROR(MID($G85,FIND(CHAR(160),SUBSTITUTE($G85,\"{\",CHAR(160),EL$1)),FIND(CHAR(160),SUBSTITUTE($G85,\"}\",CHAR(160),EL$1))-FIND(CHAR(160),SUBSTITUTE($G85,\"{\",CHAR(160),EL$1))+1),\"\")","v":""},{"$f":"IFERROR(MID($G85,FIND(CHAR(160),SUBSTITUTE($G85,\"{\",CHAR(160),EM$1)),FIND(CHAR(160),SUBSTITUTE($G85,\"}\",CHAR(160),EM$1))-FIND(CHAR(160),SUBSTITUTE($G85,\"{\",CHAR(160),EM$1))+1),\"\")","v":""},{"$f":"IFERROR(MID($G85,FIND(CHAR(160),SUBSTITUTE($G85,\"{\",CHAR(160),EN$1)),FIND(CHAR(160),SUBSTITUTE($G85,\"}\",CHAR(160),EN$1))-FIND(CHAR(160),SUBSTITUTE($G85,\"{\",CHAR(160),EN$1))+1),\"\")","v":""},{"$f":"IFERROR(MID($G85,FIND(CHAR(160),SUBSTITUTE($G85,\"{\",CHAR(160),EO$1)),FIND(CHAR(160),SUBSTITUTE($G85,\"}\",CHAR(160),EO$1))-FIND(CHAR(160),SUBSTITUTE($G85,\"{\",CHAR(160),EO$1))+1),\"\")","v":""},{"$f":"IFERROR(MID($G85,FIND(CHAR(160),SUBSTITUTE($G85,\"{\",CHAR(160),EP$1)),FIND(CHAR(160),SUBSTITUTE($G85,\"}\",CHAR(160),EP$1))-FIND(CHAR(160),SUBSTITUTE($G85,\"{\",CHAR(160),EP$1))+1),\"\")","v":""},{"$f":"IFERROR(MID($J85,FIND(CHAR(160),SUBSTITUTE($J85,\"{\",CHAR(160),EQ$1)),FIND(CHAR(160),SUBSTITUTE($J85,\"}\",CHAR(160),EQ$1))-FIND(CHAR(160),SUBSTITUTE($J85,\"{\",CHAR(160),EQ$1))+1),\"\")","v":"{Measure:Quantity}"},{"$f":"IFERROR(MID($J85,FIND(CHAR(160),SUBSTITUTE($J85,\"{\",CHAR(160),ER$1)),FIND(CHAR(160),SUBSTITUTE($J85,\"}\",CHAR(160),ER$1))-FIND(CHAR(160),SUBSTITUTE($J85,\"{\",CHAR(160),ER$1))+1),\"\")","v":""},{"$f":"IFERROR(MID($J85,FIND(CHAR(160),SUBSTITUTE($J85,\"{\",CHAR(160),ES$1)),FIND(CHAR(160),SUBSTITUTE($J85,\"}\",CHAR(160),ES$1))-FIND(CHAR(160),SUBSTITUTE($J85,\"{\",CHAR(160),ES$1))+1),\"\")","v":""},{"$f":"IFERROR(MID($J85,FIND(CHAR(160),SUBSTITUTE($J85,\"{\",CHAR(160),ET$1)),FIND(CHAR(160),SUBSTITUTE($J85,\"}\",CHAR(160),ET$1))-FIND(CHAR(160),SUBSTITUTE($J85,\"{\",CHAR(160),ET$1))+1),\"\")","v":""},{"$f":"IFERROR(MID($J85,FIND(CHAR(160),SUBSTITUTE($J85,\"{\",CHAR(160),EU$1)),FIND(CHAR(160),SUBSTITUTE($J85,\"}\",CHAR(160),EU$1))-FIND(CHAR(160),SUBSTITUTE($J85,\"{\",CHAR(160),EU$1))+1),\"\")","v":""},{"$f":"IFERROR(MID($J85,FIND(CHAR(160),SUBSTITUTE($J85,\"{\",CHAR(160),EV$1)),FIND(CHAR(160),SUBSTITUTE($J85,\"}\",CHAR(160),EV$1))-FIND(CHAR(160),SUBSTITUTE($J85,\"{\",CHAR(160),EV$1))+1),\"\")","v":""},{"$f":"IFERROR(MID($J85,FIND(CHAR(160),SUBSTITUTE($J85,\"{\",CHAR(160),EW$1)),FIND(CHAR(160),SUBSTITUTE($J85,\"}\",CHAR(160),EW$1))-FIND(CHAR(160),SUBSTITUTE($J85,\"{\",CHAR(160),EW$1))+1),\"\")","v":""},{"$f":"IFERROR(MID($J85,FIND(CHAR(160),SUBSTITUTE($J85,\"{\",CHAR(160),EX$1)),FIND(CHAR(160),SUBSTITUTE($J85,\"}\",CHAR(160),EX$1))-FIND(CHAR(160),SUBSTITUTE($J85,\"{\",CHAR(160),EX$1))+1),\"\")","v":""},{"$f":"IFERROR(MID($J85,FIND(CHAR(160),SUBSTITUTE($J85,\"{\",CHAR(160),EY$1)),FIND(CHAR(160),SUBSTITUTE($J85,\"}\",CHAR(160),EY$1))-FIND(CHAR(160),SUBSTITUTE($J85,\"{\",CHAR(160),EY$1))+1),\"\")","v":""},{"$f":"IFERROR(MID($J85,FIND(CHAR(160),SUBSTITUTE($J85,\"{\",CHAR(160),EZ$1)),FIND(CHAR(160),SUBSTITUTE($J85,\"}\",CHAR(160),EZ$1))-FIND(CHAR(160),SUBSTITUTE($J85,\"{\",CHAR(160),EZ$1))+1),\"\")","v":""},{"$f":"IFERROR(MID($J85,FIND(CHAR(160),SUBSTITUTE($J85,\"{\",CHAR(160),FA$1)),FIND(CHAR(160),SUBSTITUTE($J85,\"}\",CHAR(160),FA$1))-FIND(CHAR(160),SUBSTITUTE($J85,\"{\",CHAR(160),FA$1))+1),\"\")","v":"{Measure:Quantity}"},{"$f":"IFERROR(MID($J85,FIND(CHAR(160),SUBSTITUTE($J85,\"{\",CHAR(160),FB$1)),FIND(CHAR(160),SUBSTITUTE($J85,\"}\",CHAR(160),FB$1))-FIND(CHAR(160),SUBSTITUTE($J85,\"{\",CHAR(160),FB$1))+1),\"\")","v":""},{"$f":"IFERROR(MID($O85,FIND(CHAR(160),SUBSTITUTE($O85,\"{\",CHAR(160),FC$1)),FIND(CHAR(160),SUBSTITUTE($O85,\"}\",CHAR(160),FC$1))-FIND(CHAR(160),SUBSTITUTE($O85,\"{\",CHAR(160),FC$1))+1),\"\")","v":""},{"$f":"IFERROR(MID($O85,FIND(CHAR(160),SUBSTITUTE($O85,\"{\",CHAR(160),FD$1)),FIND(CHAR(160),SUBSTITUTE($O85,\"}\",CHAR(160),FD$1))-FIND(CHAR(160),SUBSTITUTE($O85,\"{\",CHAR(160),FD$1))+1),\"\")","v":""},{"$f":"IFERROR(MID($O85,FIND(CHAR(160),SUBSTITUTE($O85,\"{\",CHAR(160),FE$1)),FIND(CHAR(160),SUBSTITUTE($O85,\"}\",CHAR(160),FE$1))-FIND(CHAR(160),SUBSTITUTE($O85,\"{\",CHAR(160),FE$1))+1),\"\")","v":""},{"$f":"IFERROR(MID($O85,FIND(CHAR(160),SUBSTITUTE($O85,\"{\",CHAR(160),FF$1)),FIND(CHAR(160),SUBSTITUTE($O85,\"}\",CHAR(160),FF$1))-FIND(CHAR(160),SUBSTITUTE($O85,\"{\",CHAR(160),FF$1))+1),\"\")","v":""},{"$f":"IFERROR(MID($O85,FIND(CHAR(160),SUBSTITUTE($O85,\"{\",CHAR(160),FG$1)),FIND(CHAR(160),SUBSTITUTE($O85,\"}\",CHAR(160),FG$1))-FIND(CHAR(160),SUBSTITUTE($O85,\"{\",CHAR(160),FG$1))+1),\"\")","v":""},{"$f":"IFERROR(MID($O85,FIND(CHAR(160),SUBSTITUTE($O85,\"{\",CHAR(160),FH$1)),FIND(CHAR(160),SUBSTITUTE($O85,\"}\",CHAR(160),FH$1))-FIND(CHAR(160),SUBSTITUTE($O85,\"{\",CHAR(160),FH$1))+1),\"\")","v":""},{"$f":"IFERROR(MID($O85,FIND(CHAR(160),SUBSTITUTE($O85,\"{\",CHAR(160),FI$1)),FIND(CHAR(160),SUBSTITUTE($O85,\"}\",CHAR(160),FI$1))-FIND(CHAR(160),SUBSTITUTE($O85,\"{\",CHAR(160),FI$1))+1),\"\")","v":""},{"$f":"IFERROR(MID($O85,FIND(CHAR(160),SUBSTITUTE($O85,\"{\",CHAR(160),FJ$1)),FIND(CHAR(160),SUBSTITUTE($O85,\"}\",CHAR(160),FJ$1))-FIND(CHAR(160),SUBSTITUTE($O85,\"{\",CHAR(160),FJ$1))+1),\"\")","v":""},{"$f":"IFERROR(MID($O85,FIND(CHAR(160),SUBSTITUTE($O85,\"{\",CHAR(160),FK$1)),FIND(CHAR(160),SUBSTITUTE($O85,\"}\",CHAR(160),FK$1))-FIND(CHAR(160),SUBSTITUTE($O85,\"{\",CHAR(160),FK$1))+1),\"\")","v":""},{"$f":"IFERROR(MID($O85,FIND(CHAR(160),SUBSTITUTE($O85,\"{\",CHAR(160),FL$1)),FIND(CHAR(160),SUBSTITUTE($O85,\"}\",CHAR(160),FL$1))-FIND(CHAR(160),SUBSTITUTE($O85,\"{\",CHAR(160),FL$1))+1),\"\")","v":""},{"$f":"IFERROR(MID($R85,FIND(CHAR(160),SUBSTITUTE($R85,\"{\",CHAR(160),FM$1)),FIND(CHAR(160),SUBSTITUTE($R85,\"}\",CHAR(160),FM$1))-FIND(CHAR(160),SUBSTITUTE($R85,\"{\",CHAR(160),FM$1))+1),\"\")","v":""},{"$f":"IFERROR(MID($R85,FIND(CHAR(160),SUBSTITUTE($R85,\"{\",CHAR(160),FN$1)),FIND(CHAR(160),SUBSTITUTE($R85,\"}\",CHAR(160),FN$1))-FIND(CHAR(160),SUBSTITUTE($R85,\"{\",CHAR(160),FN$1))+1),\"\")","v":""},{"$f":"IFERROR(MID($R85,FIND(CHAR(160),SUBSTITUTE($R85,\"{\",CHAR(160),FO$1)),FIND(CHAR(160),SUBSTITUTE($R85,\"}\",CHAR(160),FO$1))-FIND(CHAR(160),SUBSTITUTE($R85,\"{\",CHAR(160),FO$1))+1),\"\")","v":""},{"$f":"IFERROR(MID($R85,FIND(CHAR(160),SUBSTITUTE($R85,\"{\",CHAR(160),FP$1)),FIND(CHAR(160),SUBSTITUTE($R85,\"}\",CHAR(160),FP$1))-FIND(CHAR(160),SUBSTITUTE($R85,\"{\",CHAR(160),FP$1))+1),\"\")","v":""},{"$f":"IFERROR(MID($R85,FIND(CHAR(160),SUBSTITUTE($R85,\"{\",CHAR(160),FQ$1)),FIND(CHAR(160),SUBSTITUTE($R85,\"}\",CHAR(160),FQ$1))-FIND(CHAR(160),SUBSTITUTE($R85,\"{\",CHAR(160),FQ$1))+1),\"\")","v":""},{"$f":"IFERROR(MID($R85,FIND(CHAR(160),SUBSTITUTE($R85,\"{\",CHAR(160),FR$1)),FIND(CHAR(160),SUBSTITUTE($R85,\"}\",CHAR(160),FR$1))-FIND(CHAR(160),SUBSTITUTE($R85,\"{\",CHAR(160),FR$1))+1),\"\")","v":""},{"$f":"IFERROR(MID($R85,FIND(CHAR(160),SUBSTITUTE($R85,\"{\",CHAR(160),FS$1)),FIND(CHAR(160),SUBSTITUTE($R85,\"}\",CHAR(160),FS$1))-FIND(CHAR(160),SUBSTITUTE($R85,\"{\",CHAR(160),FS$1))+1),\"\")","v":""},{"$f":"IFERROR(MID($R85,FIND(CHAR(160),SUBSTITUTE($R85,\"{\",CHAR(160),FT$1)),FIND(CHAR(160),SUBSTITUTE($R85,\"}\",CHAR(160),FT$1))-FIND(CHAR(160),SUBSTITUTE($R85,\"{\",CHAR(160),FT$1))+1),\"\")","v":""},{"$f":"IFERROR(MID($R85,FIND(CHAR(160),SUBSTITUTE($R85,\"{\",CHAR(160),FU$1)),FIND(CHAR(160),SUBSTITUTE($R85,\"}\",CHAR(160),FU$1))-FIND(CHAR(160),SUBSTITUTE($R85,\"{\",CHAR(160),FU$1))+1),\"\")","v":""},{"$f":"IFERROR(MID($R85,FIND(CHAR(160),SUBSTITUTE($R85,\"{\",CHAR(160),FV$1)),FIND(CHAR(160),SUBSTITUTE($R85,\"}\",CHAR(160),FV$1))-FIND(CHAR(160),SUBSTITUTE($R85,\"{\",CHAR(160),FV$1))+1),\"\")","v":""},{"$f":"IFERROR(MID($U85,FIND(CHAR(160),SUBSTITUTE($U85,\"{\",CHAR(160),FW$1)),FIND(CHAR(160),SUBSTITUTE($U85,\"}\",CHAR(160),FW$1))-FIND(CHAR(160),SUBSTITUTE($U85,\"{\",CHAR(160),FW$1))+1),\"\")","v":""},{"$f":"IFERROR(MID($U85,FIND(CHAR(160),SUBSTITUTE($U85,\"{\",CHAR(160),FX$1)),FIND(CHAR(160),SUBSTITUTE($U85,\"}\",CHAR(160),FX$1))-FIND(CHAR(160),SUBSTITUTE($U85,\"{\",CHAR(160),FX$1))+1),\"\")","v":""},{"$f":"IFERROR(MID($U85,FIND(CHAR(160),SUBSTITUTE($U85,\"{\",CHAR(160),FY$1)),FIND(CHAR(160),SUBSTITUTE($U85,\"}\",CHAR(160),FY$1))-FIND(CHAR(160),SUBSTITUTE($U85,\"{\",CHAR(160),FY$1))+1),\"\")","v":""},{"$f":"IFERROR(MID($U85,FIND(CHAR(160),SUBSTITUTE($U85,\"{\",CHAR(160),FZ$1)),FIND(CHAR(160),SUBSTITUTE($U85,\"}\",CHAR(160),FZ$1))-FIND(CHAR(160),SUBSTITUTE($U85,\"{\",CHAR(160),FZ$1))+1),\"\")","v":""},{"$f":"IFERROR(MID($U85,FIND(CHAR(160),SUBSTITUTE($U85,\"{\",CHAR(160),GA$1)),FIND(CHAR(160),SUBSTITUTE($U85,\"}\",CHAR(160),GA$1))-FIND(CHAR(160),SUBSTITUTE($U85,\"{\",CHAR(160),GA$1))+1),\"\")","v":""},{"$f":"IFERROR(MID($U85,FIND(CHAR(160),SUBSTITUTE($U85,\"{\",CHAR(160),GB$1)),FIND(CHAR(160),SUBSTITUTE($U85,\"}\",CHAR(160),GB$1))-FIND(CHAR(160),SUBSTITUTE($U85,\"{\",CHAR(160),GB$1))+1),\"\")","v":""},{"$f":"IFERROR(MID($U85,FIND(CHAR(160),SUBSTITUTE($U85,\"{\",CHAR(160),GC$1)),FIND(CHAR(160),SUBSTITUTE($U85,\"}\",CHAR(160),GC$1))-FIND(CHAR(160),SUBSTITUTE($U85,\"{\",CHAR(160),GC$1))+1),\"\")","v":""},{"$f":"IFERROR(MID($U85,FIND(CHAR(160),SUBSTITUTE($U85,\"{\",CHAR(160),GD$1)),FIND(CHAR(160),SUBSTITUTE($U85,\"}\",CHAR(160),GD$1))-FIND(CHAR(160),SUBSTITUTE($U85,\"{\",CHAR(160),GD$1))+1),\"\")","v":""},{"$f":"IFERROR(MID($U85,FIND(CHAR(160),SUBSTITUTE($U85,\"{\",CHAR(160),GE$1)),FIND(CHAR(160),SUBSTITUTE($U85,\"}\",CHAR(160),GE$1))-FIND(CHAR(160),SUBSTITUTE($U85,\"{\",CHAR(160),GE$1))+1),\"\")","v":""},{"$f":"IFERROR(MID($U85,FIND(CHAR(160),SUBSTITUTE($U85,\"{\",CHAR(160),GF$1)),FIND(CHAR(160),SUBSTITUTE($U85,\"}\",CHAR(160),GF$1))-FIND(CHAR(160),SUBSTITUTE($U85,\"{\",CHAR(160),GF$1))+1),\"\")","v":""},{"$f":"IFERROR(MID($V85,FIND(CHAR(160),SUBSTITUTE($V85,\"{\",CHAR(160),GG$1)),FIND(CHAR(160),SUBSTITUTE($V85,\"}\",CHAR(160),GG$1))-FIND(CHAR(160),SUBSTITUTE($V85,\"{\",CHAR(160),GG$1))+1),\"\")","v":""},{"$f":"IFERROR(MID($V85,FIND(CHAR(160),SUBSTITUTE($V85,\"{\",CHAR(160),GH$1)),FIND(CHAR(160),SUBSTITUTE($V85,\"}\",CHAR(160),GH$1))-FIND(CHAR(160),SUBSTITUTE($V85,\"{\",CHAR(160),GH$1))+1),\"\")","v":""},{"$f":"IFERROR(MID($V85,FIND(CHAR(160),SUBSTITUTE($V85,\"{\",CHAR(160),GI$1)),FIND(CHAR(160),SUBSTITUTE($V85,\"}\",CHAR(160),GI$1))-FIND(CHAR(160),SUBSTITUTE($V85,\"{\",CHAR(160),GI$1))+1),\"\")","v":""},{"$f":"IFERROR(MID($V85,FIND(CHAR(160),SUBSTITUTE($V85,\"{\",CHAR(160),GJ$1)),FIND(CHAR(160),SUBSTITUTE($V85,\"}\",CHAR(160),GJ$1))-FIND(CHAR(160),SUBSTITUTE($V85,\"{\",CHAR(160),GJ$1))+1),\"\")","v":""},{"$f":"IFERROR(MID($V85,FIND(CHAR(160),SUBSTITUTE($V85,\"{\",CHAR(160),GK$1)),FIND(CHAR(160),SUBSTITUTE($V85,\"}\",CHAR(160),GK$1))-FIND(CHAR(160),SUBSTITUTE($V85,\"{\",CHAR(160),GK$1))+1),\"\")","v":""},{"$f":"IFERROR(MID($V85,FIND(CHAR(160),SUBSTITUTE($V85,\"{\",CHAR(160),GL$1)),FIND(CHAR(160),SUBSTITUTE($V85,\"}\",CHAR(160),GL$1))-FIND(CHAR(160),SUBSTITUTE($V85,\"{\",CHAR(160),GL$1))+1),\"\")","v":""},{"$f":"IFERROR(MID($V85,FIND(CHAR(160),SUBSTITUTE($V85,\"{\",CHAR(160),GM$1)),FIND(CHAR(160),SUBSTITUTE($V85,\"}\",CHAR(160),GM$1))-FIND(CHAR(160),SUBSTITUTE($V85,\"{\",CHAR(160),GM$1))+1),\"\")","v":""},{"$f":"IFERROR(MID($V85,FIND(CHAR(160),SUBSTITUTE($V85,\"{\",CHAR(160),GN$1)),FIND(CHAR(160),SUBSTITUTE($V85,\"}\",CHAR(160),GN$1))-FIND(CHAR(160),SUBSTITUTE($V85,\"{\",CHAR(160),GN$1))+1),\"\")","v":""},{"$f":"IFERROR(MID($V85,FIND(CHAR(160),SUBSTITUTE($V85,\"{\",CHAR(160),GO$1)),FIND(CHAR(160),SUBSTITUTE($V85,\"}\",CHAR(160),GO$1))-FIND(CHAR(160),SUBSTITUTE($V85,\"{\",CHAR(160),GO$1))+1),\"\")","v":""},{"$f":"IFERROR(MID($V85,FIND(CHAR(160),SUBSTITUTE($V85,\"{\",CHAR(160),GP$1)),FIND(CHAR(160),SUBSTITUTE($V85,\"}\",CHAR(160),GP$1))-FIND(CHAR(160),SUBSTITUTE($V85,\"{\",CHAR(160),GP$1))+1),\"\")","v":""},{"$f":"IFERROR(MID($W85,FIND(CHAR(160),SUBSTITUTE($W85,\"{\",CHAR(160),GQ$1)),FIND(CHAR(160),SUBSTITUTE($W85,\"}\",CHAR(160),GQ$1))-FIND(CHAR(160),SUBSTITUTE($W85,\"{\",CHAR(160),GQ$1))+1),\"\")","v":"{Indoor Design Temp (oF)}"},{"$f":"IFERROR(MID($W85,FIND(CHAR(160),SUBSTITUTE($W85,\"{\",CHAR(160),GR$1)),FIND(CHAR(160),SUBSTITUTE($W85,\"}\",CHAR(160),GR$1))-FIND(CHAR(160),SUBSTITUTE($W85,\"{\",CHAR(160),GR$1))+1),\"\")","v":"{Outdoor Design Temp (oF)}"},{"$f":"IFERROR(MID($W85,FIND(CHAR(160),SUBSTITUTE($W85,\"{\",CHAR(160),GS$1)),FIND(CHAR(160),SUBSTITUTE($W85,\"}\",CHAR(160),GS$1))-FIND(CHAR(160),SUBSTITUTE($W85,\"{\",CHAR(160),GS$1))+1),\"\")","v":"{Unit Efficiency - AFUE or Thermal Efficiency}"},{"$f":"IFERROR(MID($W85,FIND(CHAR(160),SUBSTITUTE($W85,\"{\",CHAR(160),GT$1)),FIND(CHAR(160),SUBSTITUTE($W85,\"}\",CHAR(160),GT$1))-FIND(CHAR(160),SUBSTITUTE($W85,\"{\",CHAR(160),GT$1))+1),\"\")","v":""},{"$f":"IFERROR(MID($W85,FIND(CHAR(160),SUBSTITUTE($W85,\"{\",CHAR(160),GU$1)),FIND(CHAR(160),SUBSTITUTE($W85,\"}\",CHAR(160),GU$1))-FIND(CHAR(160),SUBSTITUTE($W85,\"{\",CHAR(160),GU$1))+1),\"\")","v":""},{"$f":"IFERROR(MID($W85,FIND(CHAR(160),SUBSTITUTE($W85,\"{\",CHAR(160),GV$1)),FIND(CHAR(160),SUBSTITUTE($W85,\"}\",CHAR(160),GV$1))-FIND(CHAR(160),SUBSTITUTE($W85,\"{\",CHAR(160),GV$1))+1),\"\")","v":""},{"$f":"IFERROR(MID($W85,FIND(CHAR(160),SUBSTITUTE($W85,\"{\",CHAR(160),GW$1)),FIND(CHAR(160),SUBSTITUTE($W85,\"}\",CHAR(160),GW$1))-FIND(CHAR(160),SUBSTITUTE($W85,\"{\",CHAR(160),GW$1))+1),\"\")","v":""},{"$f":"IFERROR(MID($W85,FIND(CHAR(160),SUBSTITUTE($W85,\"{\",CHAR(160),GX$1)),FIND(CHAR(160),SUBSTITUTE($W85,\"}\",CHAR(160),GX$1))-FIND(CHAR(160),SUBSTITUTE($W85,\"{\",CHAR(160),GX$1))+1),\"\")","v":""},{"$f":"IFERROR(MID($W85,FIND(CHAR(160),SUBSTITUTE($W85,\"{\",CHAR(160),GY$1)),FIND(CHAR(160),SUBSTITUTE($W85,\"}\",CHAR(160),GY$1))-FIND(CHAR(160),SUBSTITUTE($W85,\"{\",CHAR(160),GY$1))+1),\"\")","v":"{Measure:Quantity}"},{"$f":"IFERROR(MID($W85,FIND(CHAR(160),SUBSTITUTE($W85,\"{\",CHAR(160),GZ$1)),FIND(CHAR(160),SUBSTITUTE($W85,\"}\",CHAR(160),GZ$1))-FIND(CHAR(160),SUBSTITUTE($W85,\"{\",CHAR(160),GZ$1))+1),\"\")","v":"{Design Load (Btu/h)}"},{"$f":"IFERROR(MID($X85,FIND(CHAR(160),SUBSTITUTE($X85,\"{\",CHAR(160),HA$1)),FIND(CHAR(160),SUBSTITUTE($X85,\"}\",CHAR(160),HA$1))-FIND(CHAR(160),SUBSTITUTE($X85,\"{\",CHAR(160),HA$1))+1),\"\")","v":""},{"$f":"IFERROR(MID($X85,FIND(CHAR(160),SUBSTITUTE($X85,\"{\",CHAR(160),HB$1)),FIND(CHAR(160),SUBSTITUTE($X85,\"}\",CHAR(160),HB$1))-FIND(CHAR(160),SUBSTITUTE($X85,\"{\",CHAR(160),HB$1))+1),\"\")","v":""},{"$f":"IFERROR(MID($X85,FIND(CHAR(160),SUBSTITUTE($X85,\"{\",CHAR(160),HC$1)),FIND(CHAR(160),SUBSTITUTE($X85,\"}\",CHAR(160),HC$1))-FIND(CHAR(160),SUBSTITUTE($X85,\"{\",CHAR(160),HC$1))+1),\"\")","v":""},{"$f":"IFERROR(MID($X85,FIND(CHAR(160),SUBSTITUTE($X85,\"{\",CHAR(160),HD$1)),FIND(CHAR(160),SUBSTITUTE($X85,\"}\",CHAR(160),HD$1))-FIND(CHAR(160),SUBSTITUTE($X85,\"{\",CHAR(160),HD$1))+1),\"\")","v":""},{"$f":"IFERROR(MID($X85,FIND(CHAR(160),SUBSTITUTE($X85,\"{\",CHAR(160),HE$1)),FIND(CHAR(160),SUBSTITUTE($X85,\"}\",CHAR(160),HE$1))-FIND(CHAR(160),SUBSTITUTE($X85,\"{\",CHAR(160),HE$1))+1),\"\")","v":""},{"$f":"IFERROR(MID($X85,FIND(CHAR(160),SUBSTITUTE($X85,\"{\",CHAR(160),HF$1)),FIND(CHAR(160),SUBSTITUTE($X85,\"}\",CHAR(160),HF$1))-FIND(CHAR(160),SUBSTITUTE($X85,\"{\",CHAR(160),HF$1))+1),\"\")","v":""},{"$f":"IFERROR(MID($X85,FIND(CHAR(160),SUBSTITUTE($X85,\"{\",CHAR(160),HG$1)),FIND(CHAR(160),SUBSTITUTE($X85,\"}\",CHAR(160),HG$1))-FIND(CHAR(160),SUBSTITUTE($X85,\"{\",CHAR(160),HG$1))+1),\"\")","v":""},{"$f":"IFERROR(MID($X85,FIND(CHAR(160),SUBSTITUTE($X85,\"{\",CHAR(160),HH$1)),FIND(CHAR(160),SUBSTITUTE($X85,\"}\",CHAR(160),HH$1))-FIND(CHAR(160),SUBSTITUTE($X85,\"{\",CHAR(160),HH$1))+1),\"\")","v":""},{"$f":"IFERROR(MID($X85,FIND(CHAR(160),SUBSTITUTE($X85,\"{\",CHAR(160),HI$1)),FIND(CHAR(160),SUBSTITUTE($X85,\"}\",CHAR(160),HI$1))-FIND(CHAR(160),SUBSTITUTE($X85,\"{\",CHAR(160),HI$1))+1),\"\")","v":""},{"$f":"IFERROR(MID($X85,FIND(CHAR(160),SUBSTITUTE($X85,\"{\",CHAR(160),HJ$1)),FIND(CHAR(160),SUBSTITUTE($X85,\"}\",CHAR(160),HJ$1))-FIND(CHAR(160),SUBSTITUTE($X85,\"{\",CHAR(160),HJ$1))+1),\"\")","v":""},{"$f":"IFERROR(MID($Y85,FIND(CHAR(160),SUBSTITUTE($Y85,\"{\",CHAR(160),HK$1)),FIND(CHAR(160),SUBSTITUTE($Y85,\"}\",CHAR(160),HK$1))-FIND(CHAR(160),SUBSTITUTE($Y85,\"{\",CHAR(160),HK$1))+1),\"\")","v":""},{"$f":"IFERROR(MID($Y85,FIND(CHAR(160),SUBSTITUTE($Y85,\"{\",CHAR(160),HL$1)),FIND(CHAR(160),SUBSTITUTE($Y85,\"}\",CHAR(160),HL$1))-FIND(CHAR(160),SUBSTITUTE($Y85,\"{\",CHAR(160),HL$1))+1),\"\")","v":""},{"$f":"IFERROR(MID($Y85,FIND(CHAR(160),SUBSTITUTE($Y85,\"{\",CHAR(160),HM$1)),FIND(CHAR(160),SUBSTITUTE($Y85,\"}\",CHAR(160),HM$1))-FIND(CHAR(160),SUBSTITUTE($Y85,\"{\",CHAR(160),HM$1))+1),\"\")","v":""},{"$f":"IFERROR(MID($Y85,FIND(CHAR(160),SUBSTITUTE($Y85,\"{\",CHAR(160),HN$1)),FIND(CHAR(160),SUBSTITUTE($Y85,\"}\",CHAR(160),HN$1))-FIND(CHAR(160),SUBSTITUTE($Y85,\"{\",CHAR(160),HN$1))+1),\"\")","v":""},{"$f":"IFERROR(MID($Y85,FIND(CHAR(160),SUBSTITUTE($Y85,\"{\",CHAR(160),HO$1)),FIND(CHAR(160),SUBSTITUTE($Y85,\"}\",CHAR(160),HO$1))-FIND(CHAR(160),SUBSTITUTE($Y85,\"{\",CHAR(160),HO$1))+1),\"\")","v":""},{"$f":"IFERROR(MID($Y85,FIND(CHAR(160),SUBSTITUTE($Y85,\"{\",CHAR(160),HP$1)),FIND(CHAR(160),SUBSTITUTE($Y85,\"}\",CHAR(160),HP$1))-FIND(CHAR(160),SUBSTITUTE($Y85,\"{\",CHAR(160),HP$1))+1),\"\")","v":""},{"$f":"IFERROR(MID($Y85,FIND(CHAR(160),SUBSTITUTE($Y85,\"{\",CHAR(160),HQ$1)),FIND(CHAR(160),SUBSTITUTE($Y85,\"}\",CHAR(160),HQ$1))-FIND(CHAR(160),SUBSTITUTE($Y85,\"{\",CHAR(160),HQ$1))+1),\"\")","v":""},{"$f":"IFERROR(MID($Y85,FIND(CHAR(160),SUBSTITUTE($Y85,\"{\",CHAR(160),HR$1)),FIND(CHAR(160),SUBSTITUTE($Y85,\"}\",CHAR(160),HR$1))-FIND(CHAR(160),SUBSTITUTE($Y85,\"{\",CHAR(160),HR$1))+1),\"\")","v":""},{"$f":"IFERROR(MID($Y85,FIND(CHAR(160),SUBSTITUTE($Y85,\"{\",CHAR(160),HS$1)),FIND(CHAR(160),SUBSTITUTE($Y85,\"}\",CHAR(160),HS$1))-FIND(CHAR(160),SUBSTITUTE($Y85,\"{\",CHAR(160),HS$1))+1),\"\")","v":""},{"$f":"IFERROR(MID($Y85,FIND(CHAR(160),SUBSTITUTE($Y85,\"{\",CHAR(160),HT$1)),FIND(CHAR(160),SUBSTITUTE($Y85,\"}\",CHAR(160),HT$1))-FIND(CHAR(160),SUBSTITUTE($Y85,\"{\",CHAR(160),HT$1))+1),\"\")","v":""},{"$f":"IFERROR(MID($Z85,FIND(CHAR(160),SUBSTITUTE($Z85,\"{\",CHAR(160),HU$1)),FIND(CHAR(160),SUBSTITUTE($Z85,\"}\",CHAR(160),HU$1))-FIND(CHAR(160),SUBSTITUTE($Z85,\"{\",CHAR(160),HU$1))+1),\"\")","v":""},{"$f":"IFERROR(MID($Z85,FIND(CHAR(160),SUBSTITUTE($Z85,\"{\",CHAR(160),HV$1)),FIND(CHAR(160),SUBSTITUTE($Z85,\"}\",CHAR(160),HV$1))-FIND(CHAR(160),SUBSTITUTE($Z85,\"{\",CHAR(160),HV$1))+1),\"\")","v":""},{"$f":"IFERROR(MID($Z85,FIND(CHAR(160),SUBSTITUTE($Z85,\"{\",CHAR(160),HW$1)),FIND(CHAR(160),SUBSTITUTE($Z85,\"}\",CHAR(160),HW$1))-FIND(CHAR(160),SUBSTITUTE($Z85,\"{\",CHAR(160),HW$1))+1),\"\")","v":""},{"$f":"IFERROR(MID($Z85,FIND(CHAR(160),SUBSTITUTE($Z85,\"{\",CHAR(160),HX$1)),FIND(CHAR(160),SUBSTITUTE($Z85,\"}\",CHAR(160),HX$1))-FIND(CHAR(160),SUBSTITUTE($Z85,\"{\",CHAR(160),HX$1))+1),\"\")","v":""},{"$f":"IFERROR(MID($Z85,FIND(CHAR(160),SUBSTITUTE($Z85,\"{\",CHAR(160),HY$1)),FIND(CHAR(160),SUBSTITUTE($Z85,\"}\",CHAR(160),HY$1))-FIND(CHAR(160),SUBSTITUTE($Z85,\"{\",CHAR(160),HY$1))+1),\"\")","v":""},{"$f":"IFERROR(MID($Z85,FIND(CHAR(160),SUBSTITUTE($Z85,\"{\",CHAR(160),HZ$1)),FIND(CHAR(160),SUBSTITUTE($Z85,\"}\",CHAR(160),HZ$1))-FIND(CHAR(160),SUBSTITUTE($Z85,\"{\",CHAR(160),HZ$1))+1),\"\")","v":""},{"$f":"IFERROR(MID($Z85,FIND(CHAR(160),SUBSTITUTE($Z85,\"{\",CHAR(160),IA$1)),FIND(CHAR(160),SUBSTITUTE($Z85,\"}\",CHAR(160),IA$1))-FIND(CHAR(160),SUBSTITUTE($Z85,\"{\",CHAR(160),IA$1))+1),\"\")","v":""},{"$f":"IFERROR(MID($Z85,FIND(CHAR(160),SUBSTITUTE($Z85,\"{\",CHAR(160),IB$1)),FIND(CHAR(160),SUBSTITUTE($Z85,\"}\",CHAR(160),IB$1))-FIND(CHAR(160),SUBSTITUTE($Z85,\"{\",CHAR(160),IB$1))+1),\"\")","v":""},{"$f":"IFERROR(MID($Z85,FIND(CHAR(160),SUBSTITUTE($Z85,\"{\",CHAR(160),IC$1)),FIND(CHAR(160),SUBSTITUTE($Z85,\"}\",CHAR(160),IC$1))-FIND(CHAR(160),SUBSTITUTE($Z85,\"{\",CHAR(160),IC$1))+1),\"\")","v":""},{"$f":"IFERROR(MID($Z85,FIND(CHAR(160),SUBSTITUTE($Z85,\"{\",CHAR(160),ID$1)),FIND(CHAR(160),SUBSTITUTE($Z85,\"}\",CHAR(160),ID$1))-FIND(CHAR(160),SUBSTITUTE($Z85,\"{\",CHAR(160),ID$1))+1),\"\")","v":""},{"$f":"IFERROR(MID($AA85,FIND(CHAR(160),SUBSTITUTE($AA85,\"{\",CHAR(160),IE$1)),FIND(CHAR(160),SUBSTITUTE($AA85,\"}\",CHAR(160),IE$1))-FIND(CHAR(160),SUBSTITUTE($AA85,\"{\",CHAR(160),IE$1))+1),\"\")","v":""},{"$f":"IFERROR(MID($AA85,FIND(CHAR(160),SUBSTITUTE($AA85,\"{\",CHAR(160),IF$1)),FIND(CHAR(160),SUBSTITUTE($AA85,\"}\",CHAR(160),IF$1))-FIND(CHAR(160),SUBSTITUTE($AA85,\"{\",CHAR(160),IF$1))+1),\"\")","v":""},{"$f":"IFERROR(MID($AA85,FIND(CHAR(160),SUBSTITUTE($AA85,\"{\",CHAR(160),IG$1)),FIND(CHAR(160),SUBSTITUTE($AA85,\"}\",CHAR(160),IG$1))-FIND(CHAR(160),SUBSTITUTE($AA85,\"{\",CHAR(160),IG$1))+1),\"\")","v":""},{"$f":"IFERROR(MID($AA85,FIND(CHAR(160),SUBSTITUTE($AA85,\"{\",CHAR(160),IH$1)),FIND(CHAR(160),SUBSTITUTE($AA85,\"}\",CHAR(160),IH$1))-FIND(CHAR(160),SUBSTITUTE($AA85,\"{\",CHAR(160),IH$1))+1),\"\")","v":""},{"$f":"IFERROR(MID($AA85,FIND(CHAR(160),SUBSTITUTE($AA85,\"{\",CHAR(160),II$1)),FIND(CHAR(160),SUBSTITUTE($AA85,\"}\",CHAR(160),II$1))-FIND(CHAR(160),SUBSTITUTE($AA85,\"{\",CHAR(160),II$1))+1),\"\")","v":""},{"$f":"IFERROR(MID($AA85,FIND(CHAR(160),SUBSTITUTE($AA85,\"{\",CHAR(160),IJ$1)),FIND(CHAR(160),SUBSTITUTE($AA85,\"}\",CHAR(160),IJ$1))-FIND(CHAR(160),SUBSTITUTE($AA85,\"{\",CHAR(160),IJ$1))+1),\"\")","v":""},{"$f":"IFERROR(MID($AA85,FIND(CHAR(160),SUBSTITUTE($AA85,\"{\",CHAR(160),IK$1)),FIND(CHAR(160),SUBSTITUTE($AA85,\"}\",CHAR(160),IK$1))-FIND(CHAR(160),SUBSTITUTE($AA85,\"{\",CHAR(160),IK$1))+1),\"\")","v":""},{"$f":"IFERROR(MID($AA85,FIND(CHAR(160),SUBSTITUTE($AA85,\"{\",CHAR(160),IL$1)),FIND(CHAR(160),SUBSTITUTE($AA85,\"}\",CHAR(160),IL$1))-FIND(CHAR(160),SUBSTITUTE($AA85,\"{\",CHAR(160),IL$1))+1),\"\")","v":""},{"$f":"IFERROR(MID($AA85,FIND(CHAR(160),SUBSTITUTE($AA85,\"{\",CHAR(160),IM$1)),FIND(CHAR(160),SUBSTITUTE($AA85,\"}\",CHAR(160),IM$1))-FIND(CHAR(160),SUBSTITUTE($AA85,\"{\",CHAR(160),IM$1))+1),\"\")","v":""},{"$f":"IFERROR(MID($AA85,FIND(CHAR(160),SUBSTITUTE($AA85,\"{\",CHAR(160),IN$1)),FIND(CHAR(160),SUBSTITUTE($AA85,\"}\",CHAR(160),IN$1))-FIND(CHAR(160),SUBSTITUTE($AA85,\"{\",CHAR(160),IN$1))+1),\"\")","v":""},{"$f":"IFERROR(MID($AB85,FIND(CHAR(160),SUBSTITUTE($AB85,\"{\",CHAR(160),IO$1)),FIND(CHAR(160),SUBSTITUTE($AB85,\"}\",CHAR(160),IO$1))-FIND(CHAR(160),SUBSTITUTE($AB85,\"{\",CHAR(160),IO$1))+1),\"\")","v":""},{"$f":"IFERROR(MID($AB85,FIND(CHAR(160),SUBSTITUTE($AB85,\"{\",CHAR(160),IP$1)),FIND(CHAR(160),SUBSTITUTE($AB85,\"}\",CHAR(160),IP$1))-FIND(CHAR(160),SUBSTITUTE($AB85,\"{\",CHAR(160),IP$1))+1),\"\")","v":""},{"$f":"IFERROR(MID($AB85,FIND(CHAR(160),SUBSTITUTE($AB85,\"{\",CHAR(160),IQ$1)),FIND(CHAR(160),SUBSTITUTE($AB85,\"}\",CHAR(160),IQ$1))-FIND(CHAR(160),SUBSTITUTE($AB85,\"{\",CHAR(160),IQ$1))+1),\"\")","v":""},{"$f":"IFERROR(MID($AB85,FIND(CHAR(160),SUBSTITUTE($AB85,\"{\",CHAR(160),IR$1)),FIND(CHAR(160),SUBSTITUTE($AB85,\"}\",CHAR(160),IR$1))-FIND(CHAR(160),SUBSTITUTE($AB85,\"{\",CHAR(160),IR$1))+1),\"\")","v":""},{"$f":"IFERROR(MID($AB85,FIND(CHAR(160),SUBSTITUTE($AB85,\"{\",CHAR(160),IS$1)),FIND(CHAR(160),SUBSTITUTE($AB85,\"}\",CHAR(160),IS$1))-FIND(CHAR(160),SUBSTITUTE($AB85,\"{\",CHAR(160),IS$1))+1),\"\")","v":""},{"$f":"IFERROR(MID($AB85,FIND(CHAR(160),SUBSTITUTE($AB85,\"{\",CHAR(160),IT$1)),FIND(CHAR(160),SUBSTITUTE($AB85,\"}\",CHAR(160),IT$1))-FIND(CHAR(160),SUBSTITUTE($AB85,\"{\",CHAR(160),IT$1))+1),\"\")","v":""},{"$f":"IFERROR(MID($AB85,FIND(CHAR(160),SUBSTITUTE($AB85,\"{\",CHAR(160),IU$1)),FIND(CHAR(160),SUBSTITUTE($AB85,\"}\",CHAR(160),IU$1))-FIND(CHAR(160),SUBSTITUTE($AB85,\"{\",CHAR(160),IU$1))+1),\"\")","v":""},{"$f":"IFERROR(MID($AB85,FIND(CHAR(160),SUBSTITUTE($AB85,\"{\",CHAR(160),IV$1)),FIND(CHAR(160),SUBSTITUTE($AB85,\"}\",CHAR(160),IV$1))-FIND(CHAR(160),SUBSTITUTE($AB85,\"{\",CHAR(160),IV$1))+1),\"\")","v":""},{"$f":"IFERROR(MID($AB85,FIND(CHAR(160),SUBSTITUTE($AB85,\"{\",CHAR(160),IW$1)),FIND(CHAR(160),SUBSTITUTE($AB85,\"}\",CHAR(160),IW$1))-FIND(CHAR(160),SUBSTITUTE($AB85,\"{\",CHAR(160),IW$1))+1),\"\")","v":""},{"$f":"IFERROR(MID($AB85,FIND(CHAR(160),SUBSTITUTE($AB85,\"{\",CHAR(160),IX$1)),FIND(CHAR(160),SUBSTITUTE($AB85,\"}\",CHAR(160),IX$1))-FIND(CHAR(160),SUBSTITUTE($AB85,\"{\",CHAR(160),IX$1))+1),\"\")","v":""},null,{"$f":"10-COUNTIF(DU85:ED85,\"\")","v":6}]
["C&I HVAC - Natural Gas","G11 Gas-fired condensing hot water boiler > 2500 MBtu/h","G11","2021-07-01","2022-06-30","Calculated","{Measure:Quantity}*({Equipment Capacity MBtu/h}*3.47+1982)",0,"Calculated","{Measure:Quantity}*12500",0,"2021-05-25","2022-06-30","Calculated",null,null,null,null,null,null,null,null,"{Measure:Quantity} * ({Design Load (Btu/h)}/({Indoor Design Temp (oF)}-{Outdoor Design Temp (oF)})*186648/1000000) * (100/82-100/{Unit Efficiency - AFUE or Thermal Efficiency}) * 10",null,null,null,null,null,"2021-05-25","2022-06-30",24,0,0,1,0,0,0,1,1,0,0.52,1.6E-2,null,{"$f":"DU86","v":"{Measure:Quantity}"},1,{"$f":"DV86","v":"{Equipment Capacity MBtu/h}"},2500,{"$f":"DW86","v":"{Indoor Design Temp (oF)}"},3400000,{"$f":"DX86","v":"{Outdoor Design Temp (oF)}"},72,{"$f":"DY86","v":"{Unit Efficiency - AFUE or Thermal Efficiency}"},-1,{"$f":"DZ86","v":"{Design Load (Btu/h)}"},95,{"$f":"EA86","v":""},null,{"$f":"EB86","v":""},null,{"$f":"EC86","v":""},null,{"$f":"ED86","v":""},null,0,0,0,0,0,0,0,0,{"$f":"AS86 * (AW86/(AY86-BA86)*186648/1000000) * (100/82-100/BC86) * 10","v":14507.256581145482},0,0,0,0,0,null,"Res","Default DR",{"$f":"Benefits(BL86,BR86,BS86,BT86,BU86,BV86,BW86,BX86,BY86,BZ86,AE86,AH86,AI86,AJ86,AK86,AL86,AM86,AN86,AO86,AP86,CA86,CB86)","v":0},0,379885.03457186266,0,0,0,0,0,0,{"$f":"SUMPRODUCT(CC86:CK86,--(CC86:CK86>0))","v":379885.03457186266},{"$f":"-SUMPRODUCT(CC86:CK86,--(CC86:CK86<0))","v":0},null,{"$f":"AS86*(AU86*3.47+1982)","v":10657},null,null,{"$f":"CM86+CO86","v":10657},{"$f":"IF(NetOrGross=\"Net\",(1-AO86+AP86),1)","v":1},{"$f":"(SUMPRODUCT(CC86:CJ86,--(CC86:CJ86>0))+CN86)*CS86/((-SUMPRODUCT(CC86:CJ86,--(CC86:CJ86<0))+MAX(CO86,CV86)+CP86+CQ86)*CS86+IF(FRIncentives=\"Yes\",CV86*(1-CS86),0))","v":30.390802765749012},1,{"$f":"AS86*12500","v":12500},null,"NG","y",null,{"$f":"IF(F86=\"Manual Entry\",\"Manual\",IF(G86=\"\",0,\"X=\"&SUBSTITUTE(SUBSTITUTE(SUBSTITUTE(SUBSTITUTE(SUBSTITUTE(SUBSTITUTE(SUBSTITUTE(SUBSTITUTE(SUBSTITUTE(SUBSTITUTE(SUBSTITUTE(SUBSTITUTE(G86,$ED86,$ED$2&ROW($ED86)),$EC86,$EC$2&ROW($EC86)),$EB86,$EB$2&ROW($EB86)),$EA86,$EA$2&ROW($EA86)),$DZ86,$DZ$2&ROW($DZ86)),$DY86,$DY$2&ROW($DY86)),$DX86,$DX$2&ROW($DX86)),$DW86,$DW$2&ROW($DW86)),$DV86,$DV$2&ROW($DV86)),$DU86,$DU$2&ROW($DU86)),$DT86,$DT$2&ROW($DT86)),$DS86,$DS$2&ROW($DS86))))","v":"X=AS86*(AU86*3.47+1982)"},{"$f":"IF(I86=\"Manual Entry\",\"Manual\",IF(J86=\"\",0,\"X=\"&SUBSTITUTE(SUBSTITUTE(SUBSTITUTE(SUBSTITUTE(SUBSTITUTE(SUBSTITUTE(SUBSTITUTE(SUBSTITUTE(SUBSTITUTE(SUBSTITUTE(SUBSTITUTE(SUBSTITUTE(J86,$ED86,$ED$2&ROW($ED86)),$EC86,$EC$2&ROW($EC86)),$EB86,$EB$2&ROW($EB86)),$EA86,$EA$2&ROW($EA86)),$DZ86,$DZ$2&ROW($DZ86)),$DY86,$DY$2&ROW($DY86)),$DX86,$DX$2&ROW($DX86)),$DW86,$DW$2&ROW($DW86)),$DV86,$DV$2&ROW($DV86)),$DU86,$DU$2&ROW($DU86)),$DT86,$DT$2&ROW($DT86)),$DS86,$DS$2&ROW($DS86))))","v":"X=AS86*12500"},{"$f":"IF(O86=\"\",0,\"X=\"&SUBSTITUTE(SUBSTITUTE(SUBSTITUTE(SUBSTITUTE(SUBSTITUTE(SUBSTITUTE(SUBSTITUTE(SUBSTITUTE(SUBSTITUTE(SUBSTITUTE(SUBSTITUTE(SUBSTITUTE(O86,$ED86,$ED$2&ROW($ED86)),$EC86,$EC$2&ROW($EC86)),$EB86,$EB$2&ROW($EB86)),$EA86,$EA$2&ROW($EA86)),$DZ86,$DZ$2&ROW($DZ86)),$DY86,$DY$2&ROW($DY86)),$DX86,$DX$2&ROW($DX86)),$DW86,$DW$2&ROW($DW86)),$DV86,$DV$2&ROW($DV86)),$DU86,$DU$2&ROW($DU86)),$DT86,$DT$2&ROW($DT86)),$DS86,$DS$2&ROW($DS86)))","v":0},{"$f":"IF(P86=\"\",0,\"X=\"&SUBSTITUTE(SUBSTITUTE(SUBSTITUTE(SUBSTITUTE(SUBSTITUTE(SUBSTITUTE(SUBSTITUTE(SUBSTITUTE(SUBSTITUTE(SUBSTITUTE(SUBSTITUTE(SUBSTITUTE(P86,$ED86,$ED$2&ROW($ED86)),$EC86,$EC$2&ROW($EC86)),$EB86,$EB$2&ROW($EB86)),$EA86,$EA$2&ROW($EA86)),$DZ86,$DZ$2&ROW($DZ86)),$DY86,$DY$2&ROW($DY86)),$DX86,$DX$2&ROW($DX86)),$DW86,$DW$2&ROW($DW86)),$DV86,$DV$2&ROW($DV86)),$DU86,$DU$2&ROW($DU86)),$DT86,$DT$2&ROW($DT86)),$DS86,$DS$2&ROW($DS86)))","v":0},{"$f":"IF(Q86=\"\",0,\"X=\"&SUBSTITUTE(SUBSTITUTE(SUBSTITUTE(SUBSTITUTE(SUBSTITUTE(SUBSTITUTE(SUBSTITUTE(SUBSTITUTE(SUBSTITUTE(SUBSTITUTE(SUBSTITUTE(SUBSTITUTE(Q86,$ED86,$ED$2&ROW($ED86)),$EC86,$EC$2&ROW($EC86)),$EB86,$EB$2&ROW($EB86)),$EA86,$EA$2&ROW($EA86)),$DZ86,$DZ$2&ROW($DZ86)),$DY86,$DY$2&ROW($DY86)),$DX86,$DX$2&ROW($DX86)),$DW86,$DW$2&ROW($DW86)),$DV86,$DV$2&ROW($DV86)),$DU86,$DU$2&ROW($DU86)),$DT86,$DT$2&ROW($DT86)),$DS86,$DS$2&ROW($DS86)))","v":0},{"$f":"IF(R86=\"\",0,\"X=\"&SUBSTITUTE(SUBSTITUTE(SUBSTITUTE(SUBSTITUTE(SUBSTITUTE(SUBSTITUTE(SUBSTITUTE(SUBSTITUTE(SUBSTITUTE(SUBSTITUTE(SUBSTITUTE(SUBSTITUTE(R86,$ED86,$ED$2&ROW($ED86)),$EC86,$EC$2&ROW($EC86)),$EB86,$EB$2&ROW($EB86)),$EA86,$EA$2&ROW($EA86)),$DZ86,$DZ$2&ROW($DZ86)),$DY86,$DY$2&ROW($DY86)),$DX86,$DX$2&ROW($DX86)),$DW86,$DW$2&ROW($DW86)),$DV86,$DV$2&ROW($DV86)),$DU86,$DU$2&ROW($DU86)),$DT86,$DT$2&ROW($DT86)),$DS86,$DS$2&ROW($DS86)))","v":0},{"$f":"IF(S86=\"\",0,\"X=\"&SUBSTITUTE(SUBSTITUTE(SUBSTITUTE(SUBSTITUTE(SUBSTITUTE(SUBSTITUTE(SUBSTITUTE(SUBSTITUTE(SUBSTITUTE(SUBSTITUTE(SUBSTITUTE(SUBSTITUTE(S86,$ED86,$ED$2&ROW($ED86)),$EC86,$EC$2&ROW($EC86)),$EB86,$EB$2&ROW($EB86)),$EA86,$EA$2&ROW($EA86)),$DZ86,$DZ$2&ROW($DZ86)),$DY86,$DY$2&ROW($DY86)),$DX86,$DX$2&ROW($DX86)),$DW86,$DW$2&ROW($DW86)),$DV86,$DV$2&ROW($DV86)),$DU86,$DU$2&ROW($DU86)),$DT86,$DT$2&ROW($DT86)),$DS86,$DS$2&ROW($DS86)))","v":0},{"$f":"IF(T86=\"\",0,\"X=\"&SUBSTITUTE(SUBSTITUTE(SUBSTITUTE(SUBSTITUTE(SUBSTITUTE(SUBSTITUTE(SUBSTITUTE(SUBSTITUTE(SUBSTITUTE(SUBSTITUTE(SUBSTITUTE(SUBSTITUTE(T86,$ED86,$ED$2&ROW($ED86)),$EC86,$EC$2&ROW($EC86)),$EB86,$EB$2&ROW($EB86)),$EA86,$EA$2&ROW($EA86)),$DZ86,$DZ$2&ROW($DZ86)),$DY86,$DY$2&ROW($DY86)),$DX86,$DX$2&ROW($DX86)),$DW86,$DW$2&ROW($DW86)),$DV86,$DV$2&ROW($DV86)),$DU86,$DU$2&ROW($DU86)),$DT86,$DT$2&ROW($DT86)),$DS86,$DS$2&ROW($DS86)))","v":0},{"$f":"IF(U86=\"\",0,\"X=\"&SUBSTITUTE(SUBSTITUTE(SUBSTITUTE(SUBSTITUTE(SUBSTITUTE(SUBSTITUTE(SUBSTITUTE(SUBSTITUTE(SUBSTITUTE(SUBSTITUTE(SUBSTITUTE(SUBSTITUTE(U86,$ED86,$ED$2&ROW($ED86)),$EC86,$EC$2&ROW($EC86)),$EB86,$EB$2&ROW($EB86)),$EA86,$EA$2&ROW($EA86)),$DZ86,$DZ$2&ROW($DZ86)),$DY86,$DY$2&ROW($DY86)),$DX86,$DX$2&ROW($DX86)),$DW86,$DW$2&ROW($DW86)),$DV86,$DV$2&ROW($DV86)),$DU86,$DU$2&ROW($DU86)),$DT86,$DT$2&ROW($DT86)),$DS86,$DS$2&ROW($DS86)))","v":0},{"$f":"IF(V86=\"\",0,\"X=\"&SUBSTITUTE(SUBSTITUTE(SUBSTITUTE(SUBSTITUTE(SUBSTITUTE(SUBSTITUTE(SUBSTITUTE(SUBSTITUTE(SUBSTITUTE(SUBSTITUTE(SUBSTITUTE(SUBSTITUTE(V86,$ED86,$ED$2&ROW($ED86)),$EC86,$EC$2&ROW($EC86)),$EB86,$EB$2&ROW($EB86)),$EA86,$EA$2&ROW($EA86)),$DZ86,$DZ$2&ROW($DZ86)),$DY86,$DY$2&ROW($DY86)),$DX86,$DX$2&ROW($DX86)),$DW86,$DW$2&ROW($DW86)),$DV86,$DV$2&ROW($DV86)),$DU86,$DU$2&ROW($DU86)),$DT86,$DT$2&ROW($DT86)),$DS86,$DS$2&ROW($DS86)))","v":0},{"$f":"IF(W86=\"\",0,\"X=\"&SUBSTITUTE(SUBSTITUTE(SUBSTITUTE(SUBSTITUTE(SUBSTITUTE(SUBSTITUTE(SUBSTITUTE(SUBSTITUTE(SUBSTITUTE(SUBSTITUTE(SUBSTITUTE(SUBSTITUTE(W86,$ED86,$ED$2&ROW($ED86)),$EC86,$EC$2&ROW($EC86)),$EB86,$EB$2&ROW($EB86)),$EA86,$EA$2&ROW($EA86)),$DZ86,$DZ$2&ROW($DZ86)),$DY86,$DY$2&ROW($DY86)),$DX86,$DX$2&ROW($DX86)),$DW86,$DW$2&ROW($DW86)),$DV86,$DV$2&ROW($DV86)),$DU86,$DU$2&ROW($DU86)),$DT86,$DT$2&ROW($DT86)),$DS86,$DS$2&ROW($DS86)))","v":"X=AS86 * (BC86/(AW86-AY86)*186648/1000000) * (100/82-100/BA86) * 10"},{"$f":"IF(X86=\"\",0,\"X=\"&SUBSTITUTE(SUBSTITUTE(SUBSTITUTE(SUBSTITUTE(SUBSTITUTE(SUBSTITUTE(SUBSTITUTE(SUBSTITUTE(SUBSTITUTE(SUBSTITUTE(SUBSTITUTE(SUBSTITUTE(X86,$ED86,$ED$2&ROW($ED86)),$EC86,$EC$2&ROW($EC86)),$EB86,$EB$2&ROW($EB86)),$EA86,$EA$2&ROW($EA86)),$DZ86,$DZ$2&ROW($DZ86)),$DY86,$DY$2&ROW($DY86)),$DX86,$DX$2&ROW($DX86)),$DW86,$DW$2&ROW($DW86)),$DV86,$DV$2&ROW($DV86)),$DU86,$DU$2&ROW($DU86)),$DT86,$DT$2&ROW($DT86)),$DS86,$DS$2&ROW($DS86)))","v":0},{"$f":"IF(Y86=\"\",0,\"X=\"&SUBSTITUTE(SUBSTITUTE(SUBSTITUTE(SUBSTITUTE(SUBSTITUTE(SUBSTITUTE(SUBSTITUTE(SUBSTITUTE(SUBSTITUTE(SUBSTITUTE(SUBSTITUTE(SUBSTITUTE(Y86,$ED86,$ED$2&ROW($ED86)),$EC86,$EC$2&ROW($EC86)),$EB86,$EB$2&ROW($EB86)),$EA86,$EA$2&ROW($EA86)),$DZ86,$DZ$2&ROW($DZ86)),$DY86,$DY$2&ROW($DY86)),$DX86,$DX$2&ROW($DX86)),$DW86,$DW$2&ROW($DW86)),$DV86,$DV$2&ROW($DV86)),$DU86,$DU$2&ROW($DU86)),$DT86,$DT$2&ROW($DT86)),$DS86,$DS$2&ROW($DS86)))","v":0},{"$f":"IF(Z86=\"\",0,\"X=\"&SUBSTITUTE(SUBSTITUTE(SUBSTITUTE(SUBSTITUTE(SUBSTITUTE(SUBSTITUTE(SUBSTITUTE(SUBSTITUTE(SUBSTITUTE(SUBSTITUTE(SUBSTITUTE(SUBSTITUTE(Z86,$ED86,$ED$2&ROW($ED86)),$EC86,$EC$2&ROW($EC86)),$EB86,$EB$2&ROW($EB86)),$EA86,$EA$2&ROW($EA86)),$DZ86,$DZ$2&ROW($DZ86)),$DY86,$DY$2&ROW($DY86)),$DX86,$DX$2&ROW($DX86)),$DW86,$DW$2&ROW($DW86)),$DV86,$DV$2&ROW($DV86)),$DU86,$DU$2&ROW($DU86)),$DT86,$DT$2&ROW($DT86)),$DS86,$DS$2&ROW($DS86)))","v":0},{"$f":"IF(AA86=\"\",0,\"X=\"&SUBSTITUTE(SUBSTITUTE(SUBSTITUTE(SUBSTITUTE(SUBSTITUTE(SUBSTITUTE(SUBSTITUTE(SUBSTITUTE(SUBSTITUTE(SUBSTITUTE(SUBSTITUTE(SUBSTITUTE(AA86,$ED86,$ED$2&ROW($ED86)),$EC86,$EC$2&ROW($EC86)),$EB86,$EB$2&ROW($EB86)),$EA86,$EA$2&ROW($EA86)),$DZ86,$DZ$2&ROW($DZ86)),$DY86,$DY$2&ROW($DY86)),$DX86,$DX$2&ROW($DX86)),$DW86,$DW$2&ROW($DW86)),$DV86,$DV$2&ROW($DV86)),$DU86,$DU$2&ROW($DU86)),$DT86,$DT$2&ROW($DT86)),$DS86,$DS$2&ROW($DS86)))","v":0},{"$f":"IF(AB86=\"\",0,\"X=\"&SUBSTITUTE(SUBSTITUTE(SUBSTITUTE(SUBSTITUTE(SUBSTITUTE(SUBSTITUTE(SUBSTITUTE(SUBSTITUTE(SUBSTITUTE(SUBSTITUTE(SUBSTITUTE(SUBSTITUTE(AB86,$ED86,$ED$2&ROW($ED86)),$EC86,$EC$2&ROW($EC86)),$EB86,$EB$2&ROW($EB86)),$EA86,$EA$2&ROW($EA86)),$DZ86,$DZ$2&ROW($DZ86)),$DY86,$DY$2&ROW($DY86)),$DX86,$DX$2&ROW($DX86)),$DW86,$DW$2&ROW($DW86)),$DV86,$DV$2&ROW($DV86)),$DU86,$DU$2&ROW($DU86)),$DT86,$DT$2&ROW($DT86)),$DS86,$DS$2&ROW($DS86)))","v":0},null,null,"{Factor:WinterCF}","{Factor:SummerCF}",{"$f":"IFERROR(INDEX($EG86:$IV86,MATCH(0,COUNTIF($DR86:DT86,$EG86:$IV86),0)),\"\")","v":"{Measure:Quantity}"},{"$f":"IFERROR(INDEX($EG86:$IV86,MATCH(0,COUNTIF($DR86:DU86,$EG86:$IV86),0)),\"\")","v":"{Equipment Capacity MBtu/h}"},{"$f":"IFERROR(INDEX($EG86:$IV86,MATCH(0,COUNTIF($DR86:DV86,$EG86:$IV86),0)),\"\")","v":"{Indoor Design Temp (oF)}"},{"$f":"IFERROR(INDEX($EG86:$IV86,MATCH(0,COUNTIF($DR86:DW86,$EG86:$IV86),0)),\"\")","v":"{Outdoor Design Temp (oF)}"},{"$f":"IFERROR(INDEX($EG86:$IV86,MATCH(0,COUNTIF($DR86:DX86,$EG86:$IV86),0)),\"\")","v":"{Unit Efficiency - AFUE or Thermal Efficiency}"},{"$f":"IFERROR(INDEX($EG86:$IV86,MATCH(0,COUNTIF($DR86:DY86,$EG86:$IV86),0)),\"\")","v":"{Design Load (Btu/h)}"},{"$f":"IFERROR(INDEX($EG86:$IV86,MATCH(0,COUNTIF($DR86:DZ86,$EG86:$IV86),0)),\"\")","v":""},{"$f":"IFERROR(INDEX($EG86:$IV86,MATCH(0,COUNTIF($DR86:EA86,$EG86:$IV86),0)),\"\")","v":""},{"$f":"IFERROR(INDEX($EG86:$IV86,MATCH(0,COUNTIF($DR86:EB86,$EG86:$IV86),0)),\"\")","v":""},{"$f":"IFERROR(INDEX($EG86:$IV86,MATCH(0,COUNTIF($DR86:EC86,$EG86:$IV86),0)),\"\")","v":""},null,null,{"$f":"IFERROR(MID($G86,FIND(CHAR(160),SUBSTITUTE($G86,\"{\",CHAR(160),EG$1)),FIND(CHAR(160),SUBSTITUTE($G86,\"}\",CHAR(160),EG$1))-FIND(CHAR(160),SUBSTITUTE($G86,\"{\",CHAR(160),EG$1))+1),\"\")","v":"{Measure:Quantity}"},{"$f":"IFERROR(MID($G86,FIND(CHAR(160),SUBSTITUTE($G86,\"{\",CHAR(160),EH$1)),FIND(CHAR(160),SUBSTITUTE($G86,\"}\",CHAR(160),EH$1))-FIND(CHAR(160),SUBSTITUTE($G86,\"{\",CHAR(160),EH$1))+1),\"\")","v":"{Equipment Capacity MBtu/h}"},{"$f":"IFERROR(MID($G86,FIND(CHAR(160),SUBSTITUTE($G86,\"{\",CHAR(160),EI$1)),FIND(CHAR(160),SUBSTITUTE($G86,\"}\",CHAR(160),EI$1))-FIND(CHAR(160),SUBSTITUTE($G86,\"{\",CHAR(160),EI$1))+1),\"\")","v":""},{"$f":"IFERROR(MID($G86,FIND(CHAR(160),SUBSTITUTE($G86,\"{\",CHAR(160),EJ$1)),FIND(CHAR(160),SUBSTITUTE($G86,\"}\",CHAR(160),EJ$1))-FIND(CHAR(160),SUBSTITUTE($G86,\"{\",CHAR(160),EJ$1))+1),\"\")","v":""},{"$f":"IFERROR(MID($G86,FIND(CHAR(160),SUBSTITUTE($G86,\"{\",CHAR(160),EK$1)),FIND(CHAR(160),SUBSTITUTE($G86,\"}\",CHAR(160),EK$1))-FIND(CHAR(160),SUBSTITUTE($G86,\"{\",CHAR(160),EK$1))+1),\"\")","v":""},{"$f":"IFERROR(MID($G86,FIND(CHAR(160),SUBSTITUTE($G86,\"{\",CHAR(160),EL$1)),FIND(CHAR(160),SUBSTITUTE($G86,\"}\",CHAR(160),EL$1))-FIND(CHAR(160),SUBSTITUTE($G86,\"{\",CHAR(160),EL$1))+1),\"\")","v":""},{"$f":"IFERROR(MID($G86,FIND(CHAR(160),SUBSTITUTE($G86,\"{\",CHAR(160),EM$1)),FIND(CHAR(160),SUBSTITUTE($G86,\"}\",CHAR(160),EM$1))-FIND(CHAR(160),SUBSTITUTE($G86,\"{\",CHAR(160),EM$1))+1),\"\")","v":""},{"$f":"IFERROR(MID($G86,FIND(CHAR(160),SUBSTITUTE($G86,\"{\",CHAR(160),EN$1)),FIND(CHAR(160),SUBSTITUTE($G86,\"}\",CHAR(160),EN$1))-FIND(CHAR(160),SUBSTITUTE($G86,\"{\",CHAR(160),EN$1))+1),\"\")","v":""},{"$f":"IFERROR(MID($G86,FIND(CHAR(160),SUBSTITUTE($G86,\"{\",CHAR(160),EO$1)),FIND(CHAR(160),SUBSTITUTE($G86,\"}\",CHAR(160),EO$1))-FIND(CHAR(160),SUBSTITUTE($G86,\"{\",CHAR(160),EO$1))+1),\"\")","v":""},{"$f":"IFERROR(MID($G86,FIND(CHAR(160),SUBSTITUTE($G86,\"{\",CHAR(160),EP$1)),FIND(CHAR(160),SUBSTITUTE($G86,\"}\",CHAR(160),EP$1))-FIND(CHAR(160),SUBSTITUTE($G86,\"{\",CHAR(160),EP$1))+1),\"\")","v":""},{"$f":"IFERROR(MID($J86,FIND(CHAR(160),SUBSTITUTE($J86,\"{\",CHAR(160),EQ$1)),FIND(CHAR(160),SUBSTITUTE($J86,\"}\",CHAR(160),EQ$1))-FIND(CHAR(160),SUBSTITUTE($J86,\"{\",CHAR(160),EQ$1))+1),\"\")","v":"{Measure:Quantity}"},{"$f":"IFERROR(MID($J86,FIND(CHAR(160),SUBSTITUTE($J86,\"{\",CHAR(160),ER$1)),FIND(CHAR(160),SUBSTITUTE($J86,\"}\",CHAR(160),ER$1))-FIND(CHAR(160),SUBSTITUTE($J86,\"{\",CHAR(160),ER$1))+1),\"\")","v":""},{"$f":"IFERROR(MID($J86,FIND(CHAR(160),SUBSTITUTE($J86,\"{\",CHAR(160),ES$1)),FIND(CHAR(160),SUBSTITUTE($J86,\"}\",CHAR(160),ES$1))-FIND(CHAR(160),SUBSTITUTE($J86,\"{\",CHAR(160),ES$1))+1),\"\")","v":""},{"$f":"IFERROR(MID($J86,FIND(CHAR(160),SUBSTITUTE($J86,\"{\",CHAR(160),ET$1)),FIND(CHAR(160),SUBSTITUTE($J86,\"}\",CHAR(160),ET$1))-FIND(CHAR(160),SUBSTITUTE($J86,\"{\",CHAR(160),ET$1))+1),\"\")","v":""},{"$f":"IFERROR(MID($J86,FIND(CHAR(160),SUBSTITUTE($J86,\"{\",CHAR(160),EU$1)),FIND(CHAR(160),SUBSTITUTE($J86,\"}\",CHAR(160),EU$1))-FIND(CHAR(160),SUBSTITUTE($J86,\"{\",CHAR(160),EU$1))+1),\"\")","v":""},{"$f":"IFERROR(MID($J86,FIND(CHAR(160),SUBSTITUTE($J86,\"{\",CHAR(160),EV$1)),FIND(CHAR(160),SUBSTITUTE($J86,\"}\",CHAR(160),EV$1))-FIND(CHAR(160),SUBSTITUTE($J86,\"{\",CHAR(160),EV$1))+1),\"\")","v":""},{"$f":"IFERROR(MID($J86,FIND(CHAR(160),SUBSTITUTE($J86,\"{\",CHAR(160),EW$1)),FIND(CHAR(160),SUBSTITUTE($J86,\"}\",CHAR(160),EW$1))-FIND(CHAR(160),SUBSTITUTE($J86,\"{\",CHAR(160),EW$1))+1),\"\")","v":""},{"$f":"IFERROR(MID($J86,FIND(CHAR(160),SUBSTITUTE($J86,\"{\",CHAR(160),EX$1)),FIND(CHAR(160),SUBSTITUTE($J86,\"}\",CHAR(160),EX$1))-FIND(CHAR(160),SUBSTITUTE($J86,\"{\",CHAR(160),EX$1))+1),\"\")","v":""},{"$f":"IFERROR(MID($J86,FIND(CHAR(160),SUBSTITUTE($J86,\"{\",CHAR(160),EY$1)),FIND(CHAR(160),SUBSTITUTE($J86,\"}\",CHAR(160),EY$1))-FIND(CHAR(160),SUBSTITUTE($J86,\"{\",CHAR(160),EY$1))+1),\"\")","v":""},{"$f":"IFERROR(MID($J86,FIND(CHAR(160),SUBSTITUTE($J86,\"{\",CHAR(160),EZ$1)),FIND(CHAR(160),SUBSTITUTE($J86,\"}\",CHAR(160),EZ$1))-FIND(CHAR(160),SUBSTITUTE($J86,\"{\",CHAR(160),EZ$1))+1),\"\")","v":""},{"$f":"IFERROR(MID($J86,FIND(CHAR(160),SUBSTITUTE($J86,\"{\",CHAR(160),FA$1)),FIND(CHAR(160),SUBSTITUTE($J86,\"}\",CHAR(160),FA$1))-FIND(CHAR(160),SUBSTITUTE($J86,\"{\",CHAR(160),FA$1))+1),\"\")","v":"{Measure:Quantity}"},{"$f":"IFERROR(MID($J86,FIND(CHAR(160),SUBSTITUTE($J86,\"{\",CHAR(160),FB$1)),FIND(CHAR(160),SUBSTITUTE($J86,\"}\",CHAR(160),FB$1))-FIND(CHAR(160),SUBSTITUTE($J86,\"{\",CHAR(160),FB$1))+1),\"\")","v":""},{"$f":"IFERROR(MID($O86,FIND(CHAR(160),SUBSTITUTE($O86,\"{\",CHAR(160),FC$1)),FIND(CHAR(160),SUBSTITUTE($O86,\"}\",CHAR(160),FC$1))-FIND(CHAR(160),SUBSTITUTE($O86,\"{\",CHAR(160),FC$1))+1),\"\")","v":""},{"$f":"IFERROR(MID($O86,FIND(CHAR(160),SUBSTITUTE($O86,\"{\",CHAR(160),FD$1)),FIND(CHAR(160),SUBSTITUTE($O86,\"}\",CHAR(160),FD$1))-FIND(CHAR(160),SUBSTITUTE($O86,\"{\",CHAR(160),FD$1))+1),\"\")","v":""},{"$f":"IFERROR(MID($O86,FIND(CHAR(160),SUBSTITUTE($O86,\"{\",CHAR(160),FE$1)),FIND(CHAR(160),SUBSTITUTE($O86,\"}\",CHAR(160),FE$1))-FIND(CHAR(160),SUBSTITUTE($O86,\"{\",CHAR(160),FE$1))+1),\"\")","v":""},{"$f":"IFERROR(MID($O86,FIND(CHAR(160),SUBSTITUTE($O86,\"{\",CHAR(160),FF$1)),FIND(CHAR(160),SUBSTITUTE($O86,\"}\",CHAR(160),FF$1))-FIND(CHAR(160),SUBSTITUTE($O86,\"{\",CHAR(160),FF$1))+1),\"\")","v":""},{"$f":"IFERROR(MID($O86,FIND(CHAR(160),SUBSTITUTE($O86,\"{\",CHAR(160),FG$1)),FIND(CHAR(160),SUBSTITUTE($O86,\"}\",CHAR(160),FG$1))-FIND(CHAR(160),SUBSTITUTE($O86,\"{\",CHAR(160),FG$1))+1),\"\")","v":""},{"$f":"IFERROR(MID($O86,FIND(CHAR(160),SUBSTITUTE($O86,\"{\",CHAR(160),FH$1)),FIND(CHAR(160),SUBSTITUTE($O86,\"}\",CHAR(160),FH$1))-FIND(CHAR(160),SUBSTITUTE($O86,\"{\",CHAR(160),FH$1))+1),\"\")","v":""},{"$f":"IFERROR(MID($O86,FIND(CHAR(160),SUBSTITUTE($O86,\"{\",CHAR(160),FI$1)),FIND(CHAR(160),SUBSTITUTE($O86,\"}\",CHAR(160),FI$1))-FIND(CHAR(160),SUBSTITUTE($O86,\"{\",CHAR(160),FI$1))+1),\"\")","v":""},{"$f":"IFERROR(MID($O86,FIND(CHAR(160),SUBSTITUTE($O86,\"{\",CHAR(160),FJ$1)),FIND(CHAR(160),SUBSTITUTE($O86,\"}\",CHAR(160),FJ$1))-FIND(CHAR(160),SUBSTITUTE($O86,\"{\",CHAR(160),FJ$1))+1),\"\")","v":""},{"$f":"IFERROR(MID($O86,FIND(CHAR(160),SUBSTITUTE($O86,\"{\",CHAR(160),FK$1)),FIND(CHAR(160),SUBSTITUTE($O86,\"}\",CHAR(160),FK$1))-FIND(CHAR(160),SUBSTITUTE($O86,\"{\",CHAR(160),FK$1))+1),\"\")","v":""},{"$f":"IFERROR(MID($O86,FIND(CHAR(160),SUBSTITUTE($O86,\"{\",CHAR(160),FL$1)),FIND(CHAR(160),SUBSTITUTE($O86,\"}\",CHAR(160),FL$1))-FIND(CHAR(160),SUBSTITUTE($O86,\"{\",CHAR(160),FL$1))+1),\"\")","v":""},{"$f":"IFERROR(MID($R86,FIND(CHAR(160),SUBSTITUTE($R86,\"{\",CHAR(160),FM$1)),FIND(CHAR(160),SUBSTITUTE($R86,\"}\",CHAR(160),FM$1))-FIND(CHAR(160),SUBSTITUTE($R86,\"{\",CHAR(160),FM$1))+1),\"\")","v":""},{"$f":"IFERROR(MID($R86,FIND(CHAR(160),SUBSTITUTE($R86,\"{\",CHAR(160),FN$1)),FIND(CHAR(160),SUBSTITUTE($R86,\"}\",CHAR(160),FN$1))-FIND(CHAR(160),SUBSTITUTE($R86,\"{\",CHAR(160),FN$1))+1),\"\")","v":""},{"$f":"IFERROR(MID($R86,FIND(CHAR(160),SUBSTITUTE($R86,\"{\",CHAR(160),FO$1)),FIND(CHAR(160),SUBSTITUTE($R86,\"}\",CHAR(160),FO$1))-FIND(CHAR(160),SUBSTITUTE($R86,\"{\",CHAR(160),FO$1))+1),\"\")","v":""},{"$f":"IFERROR(MID($R86,FIND(CHAR(160),SUBSTITUTE($R86,\"{\",CHAR(160),FP$1)),FIND(CHAR(160),SUBSTITUTE($R86,\"}\",CHAR(160),FP$1))-FIND(CHAR(160),SUBSTITUTE($R86,\"{\",CHAR(160),FP$1))+1),\"\")","v":""},{"$f":"IFERROR(MID($R86,FIND(CHAR(160),SUBSTITUTE($R86,\"{\",CHAR(160),FQ$1)),FIND(CHAR(160),SUBSTITUTE($R86,\"}\",CHAR(160),FQ$1))-FIND(CHAR(160),SUBSTITUTE($R86,\"{\",CHAR(160),FQ$1))+1),\"\")","v":""},{"$f":"IFERROR(MID($R86,FIND(CHAR(160),SUBSTITUTE($R86,\"{\",CHAR(160),FR$1)),FIND(CHAR(160),SUBSTITUTE($R86,\"}\",CHAR(160),FR$1))-FIND(CHAR(160),SUBSTITUTE($R86,\"{\",CHAR(160),FR$1))+1),\"\")","v":""},{"$f":"IFERROR(MID($R86,FIND(CHAR(160),SUBSTITUTE($R86,\"{\",CHAR(160),FS$1)),FIND(CHAR(160),SUBSTITUTE($R86,\"}\",CHAR(160),FS$1))-FIND(CHAR(160),SUBSTITUTE($R86,\"{\",CHAR(160),FS$1))+1),\"\")","v":""},{"$f":"IFERROR(MID($R86,FIND(CHAR(160),SUBSTITUTE($R86,\"{\",CHAR(160),FT$1)),FIND(CHAR(160),SUBSTITUTE($R86,\"}\",CHAR(160),FT$1))-FIND(CHAR(160),SUBSTITUTE($R86,\"{\",CHAR(160),FT$1))+1),\"\")","v":""},{"$f":"IFERROR(MID($R86,FIND(CHAR(160),SUBSTITUTE($R86,\"{\",CHAR(160),FU$1)),FIND(CHAR(160),SUBSTITUTE($R86,\"}\",CHAR(160),FU$1))-FIND(CHAR(160),SUBSTITUTE($R86,\"{\",CHAR(160),FU$1))+1),\"\")","v":""},{"$f":"IFERROR(MID($R86,FIND(CHAR(160),SUBSTITUTE($R86,\"{\",CHAR(160),FV$1)),FIND(CHAR(160),SUBSTITUTE($R86,\"}\",CHAR(160),FV$1))-FIND(CHAR(160),SUBSTITUTE($R86,\"{\",CHAR(160),FV$1))+1),\"\")","v":""},{"$f":"IFERROR(MID($U86,FIND(CHAR(160),SUBSTITUTE($U86,\"{\",CHAR(160),FW$1)),FIND(CHAR(160),SUBSTITUTE($U86,\"}\",CHAR(160),FW$1))-FIND(CHAR(160),SUBSTITUTE($U86,\"{\",CHAR(160),FW$1))+1),\"\")","v":""},{"$f":"IFERROR(MID($U86,FIND(CHAR(160),SUBSTITUTE($U86,\"{\",CHAR(160),FX$1)),FIND(CHAR(160),SUBSTITUTE($U86,\"}\",CHAR(160),FX$1))-FIND(CHAR(160),SUBSTITUTE($U86,\"{\",CHAR(160),FX$1))+1),\"\")","v":""},{"$f":"IFERROR(MID($U86,FIND(CHAR(160),SUBSTITUTE($U86,\"{\",CHAR(160),FY$1)),FIND(CHAR(160),SUBSTITUTE($U86,\"}\",CHAR(160),FY$1))-FIND(CHAR(160),SUBSTITUTE($U86,\"{\",CHAR(160),FY$1))+1),\"\")","v":""},{"$f":"IFERROR(MID($U86,FIND(CHAR(160),SUBSTITUTE($U86,\"{\",CHAR(160),FZ$1)),FIND(CHAR(160),SUBSTITUTE($U86,\"}\",CHAR(160),FZ$1))-FIND(CHAR(160),SUBSTITUTE($U86,\"{\",CHAR(160),FZ$1))+1),\"\")","v":""},{"$f":"IFERROR(MID($U86,FIND(CHAR(160),SUBSTITUTE($U86,\"{\",CHAR(160),GA$1)),FIND(CHAR(160),SUBSTITUTE($U86,\"}\",CHAR(160),GA$1))-FIND(CHAR(160),SUBSTITUTE($U86,\"{\",CHAR(160),GA$1))+1),\"\")","v":""},{"$f":"IFERROR(MID($U86,FIND(CHAR(160),SUBSTITUTE($U86,\"{\",CHAR(160),GB$1)),FIND(CHAR(160),SUBSTITUTE($U86,\"}\",CHAR(160),GB$1))-FIND(CHAR(160),SUBSTITUTE($U86,\"{\",CHAR(160),GB$1))+1),\"\")","v":""},{"$f":"IFERROR(MID($U86,FIND(CHAR(160),SUBSTITUTE($U86,\"{\",CHAR(160),GC$1)),FIND(CHAR(160),SUBSTITUTE($U86,\"}\",CHAR(160),GC$1))-FIND(CHAR(160),SUBSTITUTE($U86,\"{\",CHAR(160),GC$1))+1),\"\")","v":""},{"$f":"IFERROR(MID($U86,FIND(CHAR(160),SUBSTITUTE($U86,\"{\",CHAR(160),GD$1)),FIND(CHAR(160),SUBSTITUTE($U86,\"}\",CHAR(160),GD$1))-FIND(CHAR(160),SUBSTITUTE($U86,\"{\",CHAR(160),GD$1))+1),\"\")","v":""},{"$f":"IFERROR(MID($U86,FIND(CHAR(160),SUBSTITUTE($U86,\"{\",CHAR(160),GE$1)),FIND(CHAR(160),SUBSTITUTE($U86,\"}\",CHAR(160),GE$1))-FIND(CHAR(160),SUBSTITUTE($U86,\"{\",CHAR(160),GE$1))+1),\"\")","v":""},{"$f":"IFERROR(MID($U86,FIND(CHAR(160),SUBSTITUTE($U86,\"{\",CHAR(160),GF$1)),FIND(CHAR(160),SUBSTITUTE($U86,\"}\",CHAR(160),GF$1))-FIND(CHAR(160),SUBSTITUTE($U86,\"{\",CHAR(160),GF$1))+1),\"\")","v":""},{"$f":"IFERROR(MID($V86,FIND(CHAR(160),SUBSTITUTE($V86,\"{\",CHAR(160),GG$1)),FIND(CHAR(160),SUBSTITUTE($V86,\"}\",CHAR(160),GG$1))-FIND(CHAR(160),SUBSTITUTE($V86,\"{\",CHAR(160),GG$1))+1),\"\")","v":""},{"$f":"IFERROR(MID($V86,FIND(CHAR(160),SUBSTITUTE($V86,\"{\",CHAR(160),GH$1)),FIND(CHAR(160),SUBSTITUTE($V86,\"}\",CHAR(160),GH$1))-FIND(CHAR(160),SUBSTITUTE($V86,\"{\",CHAR(160),GH$1))+1),\"\")","v":""},{"$f":"IFERROR(MID($V86,FIND(CHAR(160),SUBSTITUTE($V86,\"{\",CHAR(160),GI$1)),FIND(CHAR(160),SUBSTITUTE($V86,\"}\",CHAR(160),GI$1))-FIND(CHAR(160),SUBSTITUTE($V86,\"{\",CHAR(160),GI$1))+1),\"\")","v":""},{"$f":"IFERROR(MID($V86,FIND(CHAR(160),SUBSTITUTE($V86,\"{\",CHAR(160),GJ$1)),FIND(CHAR(160),SUBSTITUTE($V86,\"}\",CHAR(160),GJ$1))-FIND(CHAR(160),SUBSTITUTE($V86,\"{\",CHAR(160),GJ$1))+1),\"\")","v":""},{"$f":"IFERROR(MID($V86,FIND(CHAR(160),SUBSTITUTE($V86,\"{\",CHAR(160),GK$1)),FIND(CHAR(160),SUBSTITUTE($V86,\"}\",CHAR(160),GK$1))-FIND(CHAR(160),SUBSTITUTE($V86,\"{\",CHAR(160),GK$1))+1),\"\")","v":""},{"$f":"IFERROR(MID($V86,FIND(CHAR(160),SUBSTITUTE($V86,\"{\",CHAR(160),GL$1)),FIND(CHAR(160),SUBSTITUTE($V86,\"}\",CHAR(160),GL$1))-FIND(CHAR(160),SUBSTITUTE($V86,\"{\",CHAR(160),GL$1))+1),\"\")","v":""},{"$f":"IFERROR(MID($V86,FIND(CHAR(160),SUBSTITUTE($V86,\"{\",CHAR(160),GM$1)),FIND(CHAR(160),SUBSTITUTE($V86,\"}\",CHAR(160),GM$1))-FIND(CHAR(160),SUBSTITUTE($V86,\"{\",CHAR(160),GM$1))+1),\"\")","v":""},{"$f":"IFERROR(MID($V86,FIND(CHAR(160),SUBSTITUTE($V86,\"{\",CHAR(160),GN$1)),FIND(CHAR(160),SUBSTITUTE($V86,\"}\",CHAR(160),GN$1))-FIND(CHAR(160),SUBSTITUTE($V86,\"{\",CHAR(160),GN$1))+1),\"\")","v":""},{"$f":"IFERROR(MID($V86,FIND(CHAR(160),SUBSTITUTE($V86,\"{\",CHAR(160),GO$1)),FIND(CHAR(160),SUBSTITUTE($V86,\"}\",CHAR(160),GO$1))-FIND(CHAR(160),SUBSTITUTE($V86,\"{\",CHAR(160),GO$1))+1),\"\")","v":""},{"$f":"IFERROR(MID($V86,FIND(CHAR(160),SUBSTITUTE($V86,\"{\",CHAR(160),GP$1)),FIND(CHAR(160),SUBSTITUTE($V86,\"}\",CHAR(160),GP$1))-FIND(CHAR(160),SUBSTITUTE($V86,\"{\",CHAR(160),GP$1))+1),\"\")","v":""},{"$f":"IFERROR(MID($W86,FIND(CHAR(160),SUBSTITUTE($W86,\"{\",CHAR(160),GQ$1)),FIND(CHAR(160),SUBSTITUTE($W86,\"}\",CHAR(160),GQ$1))-FIND(CHAR(160),SUBSTITUTE($W86,\"{\",CHAR(160),GQ$1))+1),\"\")","v":"{Indoor Design Temp (oF)}"},{"$f":"IFERROR(MID($W86,FIND(CHAR(160),SUBSTITUTE($W86,\"{\",CHAR(160),GR$1)),FIND(CHAR(160),SUBSTITUTE($W86,\"}\",CHAR(160),GR$1))-FIND(CHAR(160),SUBSTITUTE($W86,\"{\",CHAR(160),GR$1))+1),\"\")","v":"{Outdoor Design Temp (oF)}"},{"$f":"IFERROR(MID($W86,FIND(CHAR(160),SUBSTITUTE($W86,\"{\",CHAR(160),GS$1)),FIND(CHAR(160),SUBSTITUTE($W86,\"}\",CHAR(160),GS$1))-FIND(CHAR(160),SUBSTITUTE($W86,\"{\",CHAR(160),GS$1))+1),\"\")","v":"{Unit Efficiency - AFUE or Thermal Efficiency}"},{"$f":"IFERROR(MID($W86,FIND(CHAR(160),SUBSTITUTE($W86,\"{\",CHAR(160),GT$1)),FIND(CHAR(160),SUBSTITUTE($W86,\"}\",CHAR(160),GT$1))-FIND(CHAR(160),SUBSTITUTE($W86,\"{\",CHAR(160),GT$1))+1),\"\")","v":""},{"$f":"IFERROR(MID($W86,FIND(CHAR(160),SUBSTITUTE($W86,\"{\",CHAR(160),GU$1)),FIND(CHAR(160),SUBSTITUTE($W86,\"}\",CHAR(160),GU$1))-FIND(CHAR(160),SUBSTITUTE($W86,\"{\",CHAR(160),GU$1))+1),\"\")","v":""},{"$f":"IFERROR(MID($W86,FIND(CHAR(160),SUBSTITUTE($W86,\"{\",CHAR(160),GV$1)),FIND(CHAR(160),SUBSTITUTE($W86,\"}\",CHAR(160),GV$1))-FIND(CHAR(160),SUBSTITUTE($W86,\"{\",CHAR(160),GV$1))+1),\"\")","v":""},{"$f":"IFERROR(MID($W86,FIND(CHAR(160),SUBSTITUTE($W86,\"{\",CHAR(160),GW$1)),FIND(CHAR(160),SUBSTITUTE($W86,\"}\",CHAR(160),GW$1))-FIND(CHAR(160),SUBSTITUTE($W86,\"{\",CHAR(160),GW$1))+1),\"\")","v":""},{"$f":"IFERROR(MID($W86,FIND(CHAR(160),SUBSTITUTE($W86,\"{\",CHAR(160),GX$1)),FIND(CHAR(160),SUBSTITUTE($W86,\"}\",CHAR(160),GX$1))-FIND(CHAR(160),SUBSTITUTE($W86,\"{\",CHAR(160),GX$1))+1),\"\")","v":""},{"$f":"IFERROR(MID($W86,FIND(CHAR(160),SUBSTITUTE($W86,\"{\",CHAR(160),GY$1)),FIND(CHAR(160),SUBSTITUTE($W86,\"}\",CHAR(160),GY$1))-FIND(CHAR(160),SUBSTITUTE($W86,\"{\",CHAR(160),GY$1))+1),\"\")","v":"{Measure:Quantity}"},{"$f":"IFERROR(MID($W86,FIND(CHAR(160),SUBSTITUTE($W86,\"{\",CHAR(160),GZ$1)),FIND(CHAR(160),SUBSTITUTE($W86,\"}\",CHAR(160),GZ$1))-FIND(CHAR(160),SUBSTITUTE($W86,\"{\",CHAR(160),GZ$1))+1),\"\")","v":"{Design Load (Btu/h)}"},{"$f":"IFERROR(MID($X86,FIND(CHAR(160),SUBSTITUTE($X86,\"{\",CHAR(160),HA$1)),FIND(CHAR(160),SUBSTITUTE($X86,\"}\",CHAR(160),HA$1))-FIND(CHAR(160),SUBSTITUTE($X86,\"{\",CHAR(160),HA$1))+1),\"\")","v":""},{"$f":"IFERROR(MID($X86,FIND(CHAR(160),SUBSTITUTE($X86,\"{\",CHAR(160),HB$1)),FIND(CHAR(160),SUBSTITUTE($X86,\"}\",CHAR(160),HB$1))-FIND(CHAR(160),SUBSTITUTE($X86,\"{\",CHAR(160),HB$1))+1),\"\")","v":""},{"$f":"IFERROR(MID($X86,FIND(CHAR(160),SUBSTITUTE($X86,\"{\",CHAR(160),HC$1)),FIND(CHAR(160),SUBSTITUTE($X86,\"}\",CHAR(160),HC$1))-FIND(CHAR(160),SUBSTITUTE($X86,\"{\",CHAR(160),HC$1))+1),\"\")","v":""},{"$f":"IFERROR(MID($X86,FIND(CHAR(160),SUBSTITUTE($X86,\"{\",CHAR(160),HD$1)),FIND(CHAR(160),SUBSTITUTE($X86,\"}\",CHAR(160),HD$1))-FIND(CHAR(160),SUBSTITUTE($X86,\"{\",CHAR(160),HD$1))+1),\"\")","v":""},{"$f":"IFERROR(MID($X86,FIND(CHAR(160),SUBSTITUTE($X86,\"{\",CHAR(160),HE$1)),FIND(CHAR(160),SUBSTITUTE($X86,\"}\",CHAR(160),HE$1))-FIND(CHAR(160),SUBSTITUTE($X86,\"{\",CHAR(160),HE$1))+1),\"\")","v":""},{"$f":"IFERROR(MID($X86,FIND(CHAR(160),SUBSTITUTE($X86,\"{\",CHAR(160),HF$1)),FIND(CHAR(160),SUBSTITUTE($X86,\"}\",CHAR(160),HF$1))-FIND(CHAR(160),SUBSTITUTE($X86,\"{\",CHAR(160),HF$1))+1),\"\")","v":""},{"$f":"IFERROR(MID($X86,FIND(CHAR(160),SUBSTITUTE($X86,\"{\",CHAR(160),HG$1)),FIND(CHAR(160),SUBSTITUTE($X86,\"}\",CHAR(160),HG$1))-FIND(CHAR(160),SUBSTITUTE($X86,\"{\",CHAR(160),HG$1))+1),\"\")","v":""},{"$f":"IFERROR(MID($X86,FIND(CHAR(160),SUBSTITUTE($X86,\"{\",CHAR(160),HH$1)),FIND(CHAR(160),SUBSTITUTE($X86,\"}\",CHAR(160),HH$1))-FIND(CHAR(160),SUBSTITUTE($X86,\"{\",CHAR(160),HH$1))+1),\"\")","v":""},{"$f":"IFERROR(MID($X86,FIND(CHAR(160),SUBSTITUTE($X86,\"{\",CHAR(160),HI$1)),FIND(CHAR(160),SUBSTITUTE($X86,\"}\",CHAR(160),HI$1))-FIND(CHAR(160),SUBSTITUTE($X86,\"{\",CHAR(160),HI$1))+1),\"\")","v":""},{"$f":"IFERROR(MID($X86,FIND(CHAR(160),SUBSTITUTE($X86,\"{\",CHAR(160),HJ$1)),FIND(CHAR(160),SUBSTITUTE($X86,\"}\",CHAR(160),HJ$1))-FIND(CHAR(160),SUBSTITUTE($X86,\"{\",CHAR(160),HJ$1))+1),\"\")","v":""},{"$f":"IFERROR(MID($Y86,FIND(CHAR(160),SUBSTITUTE($Y86,\"{\",CHAR(160),HK$1)),FIND(CHAR(160),SUBSTITUTE($Y86,\"}\",CHAR(160),HK$1))-FIND(CHAR(160),SUBSTITUTE($Y86,\"{\",CHAR(160),HK$1))+1),\"\")","v":""},{"$f":"IFERROR(MID($Y86,FIND(CHAR(160),SUBSTITUTE($Y86,\"{\",CHAR(160),HL$1)),FIND(CHAR(160),SUBSTITUTE($Y86,\"}\",CHAR(160),HL$1))-FIND(CHAR(160),SUBSTITUTE($Y86,\"{\",CHAR(160),HL$1))+1),\"\")","v":""},{"$f":"IFERROR(MID($Y86,FIND(CHAR(160),SUBSTITUTE($Y86,\"{\",CHAR(160),HM$1)),FIND(CHAR(160),SUBSTITUTE($Y86,\"}\",CHAR(160),HM$1))-FIND(CHAR(160),SUBSTITUTE($Y86,\"{\",CHAR(160),HM$1))+1),\"\")","v":""},{"$f":"IFERROR(MID($Y86,FIND(CHAR(160),SUBSTITUTE($Y86,\"{\",CHAR(160),HN$1)),FIND(CHAR(160),SUBSTITUTE($Y86,\"}\",CHAR(160),HN$1))-FIND(CHAR(160),SUBSTITUTE($Y86,\"{\",CHAR(160),HN$1))+1),\"\")","v":""},{"$f":"IFERROR(MID($Y86,FIND(CHAR(160),SUBSTITUTE($Y86,\"{\",CHAR(160),HO$1)),FIND(CHAR(160),SUBSTITUTE($Y86,\"}\",CHAR(160),HO$1))-FIND(CHAR(160),SUBSTITUTE($Y86,\"{\",CHAR(160),HO$1))+1),\"\")","v":""},{"$f":"IFERROR(MID($Y86,FIND(CHAR(160),SUBSTITUTE($Y86,\"{\",CHAR(160),HP$1)),FIND(CHAR(160),SUBSTITUTE($Y86,\"}\",CHAR(160),HP$1))-FIND(CHAR(160),SUBSTITUTE($Y86,\"{\",CHAR(160),HP$1))+1),\"\")","v":""},{"$f":"IFERROR(MID($Y86,FIND(CHAR(160),SUBSTITUTE($Y86,\"{\",CHAR(160),HQ$1)),FIND(CHAR(160),SUBSTITUTE($Y86,\"}\",CHAR(160),HQ$1))-FIND(CHAR(160),SUBSTITUTE($Y86,\"{\",CHAR(160),HQ$1))+1),\"\")","v":""},{"$f":"IFERROR(MID($Y86,FIND(CHAR(160),SUBSTITUTE($Y86,\"{\",CHAR(160),HR$1)),FIND(CHAR(160),SUBSTITUTE($Y86,\"}\",CHAR(160),HR$1))-FIND(CHAR(160),SUBSTITUTE($Y86,\"{\",CHAR(160),HR$1))+1),\"\")","v":""},{"$f":"IFERROR(MID($Y86,FIND(CHAR(160),SUBSTITUTE($Y86,\"{\",CHAR(160),HS$1)),FIND(CHAR(160),SUBSTITUTE($Y86,\"}\",CHAR(160),HS$1))-FIND(CHAR(160),SUBSTITUTE($Y86,\"{\",CHAR(160),HS$1))+1),\"\")","v":""},{"$f":"IFERROR(MID($Y86,FIND(CHAR(160),SUBSTITUTE($Y86,\"{\",CHAR(160),HT$1)),FIND(CHAR(160),SUBSTITUTE($Y86,\"}\",CHAR(160),HT$1))-FIND(CHAR(160),SUBSTITUTE($Y86,\"{\",CHAR(160),HT$1))+1),\"\")","v":""},{"$f":"IFERROR(MID($Z86,FIND(CHAR(160),SUBSTITUTE($Z86,\"{\",CHAR(160),HU$1)),FIND(CHAR(160),SUBSTITUTE($Z86,\"}\",CHAR(160),HU$1))-FIND(CHAR(160),SUBSTITUTE($Z86,\"{\",CHAR(160),HU$1))+1),\"\")","v":""},{"$f":"IFERROR(MID($Z86,FIND(CHAR(160),SUBSTITUTE($Z86,\"{\",CHAR(160),HV$1)),FIND(CHAR(160),SUBSTITUTE($Z86,\"}\",CHAR(160),HV$1))-FIND(CHAR(160),SUBSTITUTE($Z86,\"{\",CHAR(160),HV$1))+1),\"\")","v":""},{"$f":"IFERROR(MID($Z86,FIND(CHAR(160),SUBSTITUTE($Z86,\"{\",CHAR(160),HW$1)),FIND(CHAR(160),SUBSTITUTE($Z86,\"}\",CHAR(160),HW$1))-FIND(CHAR(160),SUBSTITUTE($Z86,\"{\",CHAR(160),HW$1))+1),\"\")","v":""},{"$f":"IFERROR(MID($Z86,FIND(CHAR(160),SUBSTITUTE($Z86,\"{\",CHAR(160),HX$1)),FIND(CHAR(160),SUBSTITUTE($Z86,\"}\",CHAR(160),HX$1))-FIND(CHAR(160),SUBSTITUTE($Z86,\"{\",CHAR(160),HX$1))+1),\"\")","v":""},{"$f":"IFERROR(MID($Z86,FIND(CHAR(160),SUBSTITUTE($Z86,\"{\",CHAR(160),HY$1)),FIND(CHAR(160),SUBSTITUTE($Z86,\"}\",CHAR(160),HY$1))-FIND(CHAR(160),SUBSTITUTE($Z86,\"{\",CHAR(160),HY$1))+1),\"\")","v":""},{"$f":"IFERROR(MID($Z86,FIND(CHAR(160),SUBSTITUTE($Z86,\"{\",CHAR(160),HZ$1)),FIND(CHAR(160),SUBSTITUTE($Z86,\"}\",CHAR(160),HZ$1))-FIND(CHAR(160),SUBSTITUTE($Z86,\"{\",CHAR(160),HZ$1))+1),\"\")","v":""},{"$f":"IFERROR(MID($Z86,FIND(CHAR(160),SUBSTITUTE($Z86,\"{\",CHAR(160),IA$1)),FIND(CHAR(160),SUBSTITUTE($Z86,\"}\",CHAR(160),IA$1))-FIND(CHAR(160),SUBSTITUTE($Z86,\"{\",CHAR(160),IA$1))+1),\"\")","v":""},{"$f":"IFERROR(MID($Z86,FIND(CHAR(160),SUBSTITUTE($Z86,\"{\",CHAR(160),IB$1)),FIND(CHAR(160),SUBSTITUTE($Z86,\"}\",CHAR(160),IB$1))-FIND(CHAR(160),SUBSTITUTE($Z86,\"{\",CHAR(160),IB$1))+1),\"\")","v":""},{"$f":"IFERROR(MID($Z86,FIND(CHAR(160),SUBSTITUTE($Z86,\"{\",CHAR(160),IC$1)),FIND(CHAR(160),SUBSTITUTE($Z86,\"}\",CHAR(160),IC$1))-FIND(CHAR(160),SUBSTITUTE($Z86,\"{\",CHAR(160),IC$1))+1),\"\")","v":""},{"$f":"IFERROR(MID($Z86,FIND(CHAR(160),SUBSTITUTE($Z86,\"{\",CHAR(160),ID$1)),FIND(CHAR(160),SUBSTITUTE($Z86,\"}\",CHAR(160),ID$1))-FIND(CHAR(160),SUBSTITUTE($Z86,\"{\",CHAR(160),ID$1))+1),\"\")","v":""},{"$f":"IFERROR(MID($AA86,FIND(CHAR(160),SUBSTITUTE($AA86,\"{\",CHAR(160),IE$1)),FIND(CHAR(160),SUBSTITUTE($AA86,\"}\",CHAR(160),IE$1))-FIND(CHAR(160),SUBSTITUTE($AA86,\"{\",CHAR(160),IE$1))+1),\"\")","v":""},{"$f":"IFERROR(MID($AA86,FIND(CHAR(160),SUBSTITUTE($AA86,\"{\",CHAR(160),IF$1)),FIND(CHAR(160),SUBSTITUTE($AA86,\"}\",CHAR(160),IF$1))-FIND(CHAR(160),SUBSTITUTE($AA86,\"{\",CHAR(160),IF$1))+1),\"\")","v":""},{"$f":"IFERROR(MID($AA86,FIND(CHAR(160),SUBSTITUTE($AA86,\"{\",CHAR(160),IG$1)),FIND(CHAR(160),SUBSTITUTE($AA86,\"}\",CHAR(160),IG$1))-FIND(CHAR(160),SUBSTITUTE($AA86,\"{\",CHAR(160),IG$1))+1),\"\")","v":""},{"$f":"IFERROR(MID($AA86,FIND(CHAR(160),SUBSTITUTE($AA86,\"{\",CHAR(160),IH$1)),FIND(CHAR(160),SUBSTITUTE($AA86,\"}\",CHAR(160),IH$1))-FIND(CHAR(160),SUBSTITUTE($AA86,\"{\",CHAR(160),IH$1))+1),\"\")","v":""},{"$f":"IFERROR(MID($AA86,FIND(CHAR(160),SUBSTITUTE($AA86,\"{\",CHAR(160),II$1)),FIND(CHAR(160),SUBSTITUTE($AA86,\"}\",CHAR(160),II$1))-FIND(CHAR(160),SUBSTITUTE($AA86,\"{\",CHAR(160),II$1))+1),\"\")","v":""},{"$f":"IFERROR(MID($AA86,FIND(CHAR(160),SUBSTITUTE($AA86,\"{\",CHAR(160),IJ$1)),FIND(CHAR(160),SUBSTITUTE($AA86,\"}\",CHAR(160),IJ$1))-FIND(CHAR(160),SUBSTITUTE($AA86,\"{\",CHAR(160),IJ$1))+1),\"\")","v":""},{"$f":"IFERROR(MID($AA86,FIND(CHAR(160),SUBSTITUTE($AA86,\"{\",CHAR(160),IK$1)),FIND(CHAR(160),SUBSTITUTE($AA86,\"}\",CHAR(160),IK$1))-FIND(CHAR(160),SUBSTITUTE($AA86,\"{\",CHAR(160),IK$1))+1),\"\")","v":""},{"$f":"IFERROR(MID($AA86,FIND(CHAR(160),SUBSTITUTE($AA86,\"{\",CHAR(160),IL$1)),FIND(CHAR(160),SUBSTITUTE($AA86,\"}\",CHAR(160),IL$1))-FIND(CHAR(160),SUBSTITUTE($AA86,\"{\",CHAR(160),IL$1))+1),\"\")","v":""},{"$f":"IFERROR(MID($AA86,FIND(CHAR(160),SUBSTITUTE($AA86,\"{\",CHAR(160),IM$1)),FIND(CHAR(160),SUBSTITUTE($AA86,\"}\",CHAR(160),IM$1))-FIND(CHAR(160),SUBSTITUTE($AA86,\"{\",CHAR(160),IM$1))+1),\"\")","v":""},{"$f":"IFERROR(MID($AA86,FIND(CHAR(160),SUBSTITUTE($AA86,\"{\",CHAR(160),IN$1)),FIND(CHAR(160),SUBSTITUTE($AA86,\"}\",CHAR(160),IN$1))-FIND(CHAR(160),SUBSTITUTE($AA86,\"{\",CHAR(160),IN$1))+1),\"\")","v":""},{"$f":"IFERROR(MID($AB86,FIND(CHAR(160),SUBSTITUTE($AB86,\"{\",CHAR(160),IO$1)),FIND(CHAR(160),SUBSTITUTE($AB86,\"}\",CHAR(160),IO$1))-FIND(CHAR(160),SUBSTITUTE($AB86,\"{\",CHAR(160),IO$1))+1),\"\")","v":""},{"$f":"IFERROR(MID($AB86,FIND(CHAR(160),SUBSTITUTE($AB86,\"{\",CHAR(160),IP$1)),FIND(CHAR(160),SUBSTITUTE($AB86,\"}\",CHAR(160),IP$1))-FIND(CHAR(160),SUBSTITUTE($AB86,\"{\",CHAR(160),IP$1))+1),\"\")","v":""},{"$f":"IFERROR(MID($AB86,FIND(CHAR(160),SUBSTITUTE($AB86,\"{\",CHAR(160),IQ$1)),FIND(CHAR(160),SUBSTITUTE($AB86,\"}\",CHAR(160),IQ$1))-FIND(CHAR(160),SUBSTITUTE($AB86,\"{\",CHAR(160),IQ$1))+1),\"\")","v":""},{"$f":"IFERROR(MID($AB86,FIND(CHAR(160),SUBSTITUTE($AB86,\"{\",CHAR(160),IR$1)),FIND(CHAR(160),SUBSTITUTE($AB86,\"}\",CHAR(160),IR$1))-FIND(CHAR(160),SUBSTITUTE($AB86,\"{\",CHAR(160),IR$1))+1),\"\")","v":""},{"$f":"IFERROR(MID($AB86,FIND(CHAR(160),SUBSTITUTE($AB86,\"{\",CHAR(160),IS$1)),FIND(CHAR(160),SUBSTITUTE($AB86,\"}\",CHAR(160),IS$1))-FIND(CHAR(160),SUBSTITUTE($AB86,\"{\",CHAR(160),IS$1))+1),\"\")","v":""},{"$f":"IFERROR(MID($AB86,FIND(CHAR(160),SUBSTITUTE($AB86,\"{\",CHAR(160),IT$1)),FIND(CHAR(160),SUBSTITUTE($AB86,\"}\",CHAR(160),IT$1))-FIND(CHAR(160),SUBSTITUTE($AB86,\"{\",CHAR(160),IT$1))+1),\"\")","v":""},{"$f":"IFERROR(MID($AB86,FIND(CHAR(160),SUBSTITUTE($AB86,\"{\",CHAR(160),IU$1)),FIND(CHAR(160),SUBSTITUTE($AB86,\"}\",CHAR(160),IU$1))-FIND(CHAR(160),SUBSTITUTE($AB86,\"{\",CHAR(160),IU$1))+1),\"\")","v":""},{"$f":"IFERROR(MID($AB86,FIND(CHAR(160),SUBSTITUTE($AB86,\"{\",CHAR(160),IV$1)),FIND(CHAR(160),SUBSTITUTE($AB86,\"}\",CHAR(160),IV$1))-FIND(CHAR(160),SUBSTITUTE($AB86,\"{\",CHAR(160),IV$1))+1),\"\")","v":""},{"$f":"IFERROR(MID($AB86,FIND(CHAR(160),SUBSTITUTE($AB86,\"{\",CHAR(160),IW$1)),FIND(CHAR(160),SUBSTITUTE($AB86,\"}\",CHAR(160),IW$1))-FIND(CHAR(160),SUBSTITUTE($AB86,\"{\",CHAR(160),IW$1))+1),\"\")","v":""},{"$f":"IFERROR(MID($AB86,FIND(CHAR(160),SUBSTITUTE($AB86,\"{\",CHAR(160),IX$1)),FIND(CHAR(160),SUBSTITUTE($AB86,\"}\",CHAR(160),IX$1))-FIND(CHAR(160),SUBSTITUTE($AB86,\"{\",CHAR(160),IX$1))+1),\"\")","v":""},null,{"$f":"10-COUNTIF(DU86:ED86,\"\")","v":6}]
["C&I HVAC - Natural Gas","Boiler Reset/Lockout Controls","AF3","2021-07-01","2022-06-30","Calculated","{Measure:Quantity}*612.00",0,"Calculated","{Measure:Quantity}*375",0,"2021-05-25","2022-06-30","Calculated",null,null,null,null,null,null,null,null,"if({Existing Fuel}<>1,0,{Measure:Quantity} * ({Capacity (MBTUH)} * 1565 * 0.08) / 1000 * 10)",null,null,null,null,null,"2021-05-25","2022-06-30",20,0,0,0,0,0,0,1,1,0,0.52,1.6E-2,null,{"$f":"DU87","v":"{Measure:Quantity}"},1,{"$f":"DV87","v":"{Capacity (MBTUH)}"},1,{"$f":"DW87","v":"{Existing Fuel}"},1112,{"$f":"DX87","v":""},null,{"$f":"DY87","v":""},null,{"$f":"DZ87","v":""},null,{"$f":"EA87","v":""},null,{"$f":"EB87","v":""},null,{"$f":"EC87","v":""},null,{"$f":"ED87","v":""},null,0,0,0,0,0,0,0,0,{"$f":"IF(AU87<>1,0,AS87 * (AW87 * 1565 * 0.08) / 1000 * 10)","v":1392.2239999999999},0,0,0,0,0,null,"Res","Default DR",{"$f":"Benefits(BL87,BR87,BS87,BT87,BU87,BV87,BW87,BX87,BY87,BZ87,AE87,AH87,AI87,AJ87,AK87,AL87,AM87,AN87,AO87,AP87,CA87,CB87)","v":0},0,32925.373092724207,0,0,0,0,0,0,{"$f":"SUMPRODUCT(CC87:CK87,--(CC87:CK87>0))","v":32925.373092724207},{"$f":"-SUMPRODUCT(CC87:CK87,--(CC87:CK87<0))","v":0},null,{"$f":"AS87*612","v":612},null,null,{"$f":"CM87+CO87","v":612},{"$f":"IF(NetOrGross=\"Net\",(1-AO87+AP87),1)","v":1},{"$f":"(SUMPRODUCT(CC87:CJ87,--(CC87:CJ87>0))+CN87)*CS87/((-SUMPRODUCT(CC87:CJ87,--(CC87:CJ87<0))+MAX(CO87,CV87)+CP87+CQ87)*CS87+IF(FRIncentives=\"Yes\",CV87*(1-CS87),0))","v":53.799629236477465},1,{"$f":"AS87*375","v":375},null,"NG","y",null,{"$f":"IF(F87=\"Manual Entry\",\"Manual\",IF(G87=\"\",0,\"X=\"&SUBSTITUTE(SUBSTITUTE(SUBSTITUTE(SUBSTITUTE(SUBSTITUTE(SUBSTITUTE(SUBSTITUTE(SUBSTITUTE(SUBSTITUTE(SUBSTITUTE(SUBSTITUTE(SUBSTITUTE(G87,$ED87,$ED$2&ROW($ED87)),$EC87,$EC$2&ROW($EC87)),$EB87,$EB$2&ROW($EB87)),$EA87,$EA$2&ROW($EA87)),$DZ87,$DZ$2&ROW($DZ87)),$DY87,$DY$2&ROW($DY87)),$DX87,$DX$2&ROW($DX87)),$DW87,$DW$2&ROW($DW87)),$DV87,$DV$2&ROW($DV87)),$DU87,$DU$2&ROW($DU87)),$DT87,$DT$2&ROW($DT87)),$DS87,$DS$2&ROW($DS87))))","v":"X=AS87*612.00"},{"$f":"IF(I87=\"Manual Entry\",\"Manual\",IF(J87=\"\",0,\"X=\"&SUBSTITUTE(SUBSTITUTE(SUBSTITUTE(SUBSTITUTE(SUBSTITUTE(SUBSTITUTE(SUBSTITUTE(SUBSTITUTE(SUBSTITUTE(SUBSTITUTE(SUBSTITUTE(SUBSTITUTE(J87,$ED87,$ED$2&ROW($ED87)),$EC87,$EC$2&ROW($EC87)),$EB87,$EB$2&ROW($EB87)),$EA87,$EA$2&ROW($EA87)),$DZ87,$DZ$2&ROW($DZ87)),$DY87,$DY$2&ROW($DY87)),$DX87,$DX$2&ROW($DX87)),$DW87,$DW$2&ROW($DW87)),$DV87,$DV$2&ROW($DV87)),$DU87,$DU$2&ROW($DU87)),$DT87,$DT$2&ROW($DT87)),$DS87,$DS$2&ROW($DS87))))","v":"X=AS87*375"},{"$f":"IF(O87=\"\",0,\"X=\"&SUBSTITUTE(SUBSTITUTE(SUBSTITUTE(SUBSTITUTE(SUBSTITUTE(SUBSTITUTE(SUBSTITUTE(SUBSTITUTE(SUBSTITUTE(SUBSTITUTE(SUBSTITUTE(SUBSTITUTE(O87,$ED87,$ED$2&ROW($ED87)),$EC87,$EC$2&ROW($EC87)),$EB87,$EB$2&ROW($EB87)),$EA87,$EA$2&ROW($EA87)),$DZ87,$DZ$2&ROW($DZ87)),$DY87,$DY$2&ROW($DY87)),$DX87,$DX$2&ROW($DX87)),$DW87,$DW$2&ROW($DW87)),$DV87,$DV$2&ROW($DV87)),$DU87,$DU$2&ROW($DU87)),$DT87,$DT$2&ROW($DT87)),$DS87,$DS$2&ROW($DS87)))","v":0},{"$f":"IF(P87=\"\",0,\"X=\"&SUBSTITUTE(SUBSTITUTE(SUBSTITUTE(SUBSTITUTE(SUBSTITUTE(SUBSTITUTE(SUBSTITUTE(SUBSTITUTE(SUBSTITUTE(SUBSTITUTE(SUBSTITUTE(SUBSTITUTE(P87,$ED87,$ED$2&ROW($ED87)),$EC87,$EC$2&ROW($EC87)),$EB87,$EB$2&ROW($EB87)),$EA87,$EA$2&ROW($EA87)),$DZ87,$DZ$2&ROW($DZ87)),$DY87,$DY$2&ROW($DY87)),$DX87,$DX$2&ROW($DX87)),$DW87,$DW$2&ROW($DW87)),$DV87,$DV$2&ROW($DV87)),$DU87,$DU$2&ROW($DU87)),$DT87,$DT$2&ROW($DT87)),$DS87,$DS$2&ROW($DS87)))","v":0},{"$f":"IF(Q87=\"\",0,\"X=\"&SUBSTITUTE(SUBSTITUTE(SUBSTITUTE(SUBSTITUTE(SUBSTITUTE(SUBSTITUTE(SUBSTITUTE(SUBSTITUTE(SUBSTITUTE(SUBSTITUTE(SUBSTITUTE(SUBSTITUTE(Q87,$ED87,$ED$2&ROW($ED87)),$EC87,$EC$2&ROW($EC87)),$EB87,$EB$2&ROW($EB87)),$EA87,$EA$2&ROW($EA87)),$DZ87,$DZ$2&ROW($DZ87)),$DY87,$DY$2&ROW($DY87)),$DX87,$DX$2&ROW($DX87)),$DW87,$DW$2&ROW($DW87)),$DV87,$DV$2&ROW($DV87)),$DU87,$DU$2&ROW($DU87)),$DT87,$DT$2&ROW($DT87)),$DS87,$DS$2&ROW($DS87)))","v":0},{"$f":"IF(R87=\"\",0,\"X=\"&SUBSTITUTE(SUBSTITUTE(SUBSTITUTE(SUBSTITUTE(SUBSTITUTE(SUBSTITUTE(SUBSTITUTE(SUBSTITUTE(SUBSTITUTE(SUBSTITUTE(SUBSTITUTE(SUBSTITUTE(R87,$ED87,$ED$2&ROW($ED87)),$EC87,$EC$2&ROW($EC87)),$EB87,$EB$2&ROW($EB87)),$EA87,$EA$2&ROW($EA87)),$DZ87,$DZ$2&ROW($DZ87)),$DY87,$DY$2&ROW($DY87)),$DX87,$DX$2&ROW($DX87)),$DW87,$DW$2&ROW($DW87)),$DV87,$DV$2&ROW($DV87)),$DU87,$DU$2&ROW($DU87)),$DT87,$DT$2&ROW($DT87)),$DS87,$DS$2&ROW($DS87)))","v":0},{"$f":"IF(S87=\"\",0,\"X=\"&SUBSTITUTE(SUBSTITUTE(SUBSTITUTE(SUBSTITUTE(SUBSTITUTE(SUBSTITUTE(SUBSTITUTE(SUBSTITUTE(SUBSTITUTE(SUBSTITUTE(SUBSTITUTE(SUBSTITUTE(S87,$ED87,$ED$2&ROW($ED87)),$EC87,$EC$2&ROW($EC87)),$EB87,$EB$2&ROW($EB87)),$EA87,$EA$2&ROW($EA87)),$DZ87,$DZ$2&ROW($DZ87)),$DY87,$DY$2&ROW($DY87)),$DX87,$DX$2&ROW($DX87)),$DW87,$DW$2&ROW($DW87)),$DV87,$DV$2&ROW($DV87)),$DU87,$DU$2&ROW($DU87)),$DT87,$DT$2&ROW($DT87)),$DS87,$DS$2&ROW($DS87)))","v":0},{"$f":"IF(T87=\"\",0,\"X=\"&SUBSTITUTE(SUBSTITUTE(SUBSTITUTE(SUBSTITUTE(SUBSTITUTE(SUBSTITUTE(SUBSTITUTE(SUBSTITUTE(SUBSTITUTE(SUBSTITUTE(SUBSTITUTE(SUBSTITUTE(T87,$ED87,$ED$2&ROW($ED87)),$EC87,$EC$2&ROW($EC87)),$EB87,$EB$2&ROW($EB87)),$EA87,$EA$2&ROW($EA87)),$DZ87,$DZ$2&ROW($DZ87)),$DY87,$DY$2&ROW($DY87)),$DX87,$DX$2&ROW($DX87)),$DW87,$DW$2&ROW($DW87)),$DV87,$DV$2&ROW($DV87)),$DU87,$DU$2&ROW($DU87)),$DT87,$DT$2&ROW($DT87)),$DS87,$DS$2&ROW($DS87)))","v":0},{"$f":"IF(U87=\"\",0,\"X=\"&SUBSTITUTE(SUBSTITUTE(SUBSTITUTE(SUBSTITUTE(SUBSTITUTE(SUBSTITUTE(SUBSTITUTE(SUBSTITUTE(SUBSTITUTE(SUBSTITUTE(SUBSTITUTE(SUBSTITUTE(U87,$ED87,$ED$2&ROW($ED87)),$EC87,$EC$2&ROW($EC87)),$EB87,$EB$2&ROW($EB87)),$EA87,$EA$2&ROW($EA87)),$DZ87,$DZ$2&ROW($DZ87)),$DY87,$DY$2&ROW($DY87)),$DX87,$DX$2&ROW($DX87)),$DW87,$DW$2&ROW($DW87)),$DV87,$DV$2&ROW($DV87)),$DU87,$DU$2&ROW($DU87)),$DT87,$DT$2&ROW($DT87)),$DS87,$DS$2&ROW($DS87)))","v":0},{"$f":"IF(V87=\"\",0,\"X=\"&SUBSTITUTE(SUBSTITUTE(SUBSTITUTE(SUBSTITUTE(SUBSTITUTE(SUBSTITUTE(SUBSTITUTE(SUBSTITUTE(SUBSTITUTE(SUBSTITUTE(SUBSTITUTE(SUBSTITUTE(V87,$ED87,$ED$2&ROW($ED87)),$EC87,$EC$2&ROW($EC87)),$EB87,$EB$2&ROW($EB87)),$EA87,$EA$2&ROW($EA87)),$DZ87,$DZ$2&ROW($DZ87)),$DY87,$DY$2&ROW($DY87)),$DX87,$DX$2&ROW($DX87)),$DW87,$DW$2&ROW($DW87)),$DV87,$DV$2&ROW($DV87)),$DU87,$DU$2&ROW($DU87)),$DT87,$DT$2&ROW($DT87)),$DS87,$DS$2&ROW($DS87)))","v":0},{"$f":"IF(W87=\"\",0,\"X=\"&SUBSTITUTE(SUBSTITUTE(SUBSTITUTE(SUBSTITUTE(SUBSTITUTE(SUBSTITUTE(SUBSTITUTE(SUBSTITUTE(SUBSTITUTE(SUBSTITUTE(SUBSTITUTE(SUBSTITUTE(W87,$ED87,$ED$2&ROW($ED87)),$EC87,$EC$2&ROW($EC87)),$EB87,$EB$2&ROW($EB87)),$EA87,$EA$2&ROW($EA87)),$DZ87,$DZ$2&ROW($DZ87)),$DY87,$DY$2&ROW($DY87)),$DX87,$DX$2&ROW($DX87)),$DW87,$DW$2&ROW($DW87)),$DV87,$DV$2&ROW($DV87)),$DU87,$DU$2&ROW($DU87)),$DT87,$DT$2&ROW($DT87)),$DS87,$DS$2&ROW($DS87)))","v":"X=if(AW87<>1,0,AS87 * (AU87 * 1565 * 0.08) / 1000 * 10)"},{"$f":"IF(X87=\"\",0,\"X=\"&SUBSTITUTE(SUBSTITUTE(SUBSTITUTE(SUBSTITUTE(SUBSTITUTE(SUBSTITUTE(SUBSTITUTE(SUBSTITUTE(SUBSTITUTE(SUBSTITUTE(SUBSTITUTE(SUBSTITUTE(X87,$ED87,$ED$2&ROW($ED87)),$EC87,$EC$2&ROW($EC87)),$EB87,$EB$2&ROW($EB87)),$EA87,$EA$2&ROW($EA87)),$DZ87,$DZ$2&ROW($DZ87)),$DY87,$DY$2&ROW($DY87)),$DX87,$DX$2&ROW($DX87)),$DW87,$DW$2&ROW($DW87)),$DV87,$DV$2&ROW($DV87)),$DU87,$DU$2&ROW($DU87)),$DT87,$DT$2&ROW($DT87)),$DS87,$DS$2&ROW($DS87)))","v":0},{"$f":"IF(Y87=\"\",0,\"X=\"&SUBSTITUTE(SUBSTITUTE(SUBSTITUTE(SUBSTITUTE(SUBSTITUTE(SUBSTITUTE(SUBSTITUTE(SUBSTITUTE(SUBSTITUTE(SUBSTITUTE(SUBSTITUTE(SUBSTITUTE(Y87,$ED87,$ED$2&ROW($ED87)),$EC87,$EC$2&ROW($EC87)),$EB87,$EB$2&ROW($EB87)),$EA87,$EA$2&ROW($EA87)),$DZ87,$DZ$2&ROW($DZ87)),$DY87,$DY$2&ROW($DY87)),$DX87,$DX$2&ROW($DX87)),$DW87,$DW$2&ROW($DW87)),$DV87,$DV$2&ROW($DV87)),$DU87,$DU$2&ROW($DU87)),$DT87,$DT$2&ROW($DT87)),$DS87,$DS$2&ROW($DS87)))","v":0},{"$f":"IF(Z87=\"\",0,\"X=\"&SUBSTITUTE(SUBSTITUTE(SUBSTITUTE(SUBSTITUTE(SUBSTITUTE(SUBSTITUTE(SUBSTITUTE(SUBSTITUTE(SUBSTITUTE(SUBSTITUTE(SUBSTITUTE(SUBSTITUTE(Z87,$ED87,$ED$2&ROW($ED87)),$EC87,$EC$2&ROW($EC87)),$EB87,$EB$2&ROW($EB87)),$EA87,$EA$2&ROW($EA87)),$DZ87,$DZ$2&ROW($DZ87)),$DY87,$DY$2&ROW($DY87)),$DX87,$DX$2&ROW($DX87)),$DW87,$DW$2&ROW($DW87)),$DV87,$DV$2&ROW($DV87)),$DU87,$DU$2&ROW($DU87)),$DT87,$DT$2&ROW($DT87)),$DS87,$DS$2&ROW($DS87)))","v":0},{"$f":"IF(AA87=\"\",0,\"X=\"&SUBSTITUTE(SUBSTITUTE(SUBSTITUTE(SUBSTITUTE(SUBSTITUTE(SUBSTITUTE(SUBSTITUTE(SUBSTITUTE(SUBSTITUTE(SUBSTITUTE(SUBSTITUTE(SUBSTITUTE(AA87,$ED87,$ED$2&ROW($ED87)),$EC87,$EC$2&ROW($EC87)),$EB87,$EB$2&ROW($EB87)),$EA87,$EA$2&ROW($EA87)),$DZ87,$DZ$2&ROW($DZ87)),$DY87,$DY$2&ROW($DY87)),$DX87,$DX$2&ROW($DX87)),$DW87,$DW$2&ROW($DW87)),$DV87,$DV$2&ROW($DV87)),$DU87,$DU$2&ROW($DU87)),$DT87,$DT$2&ROW($DT87)),$DS87,$DS$2&ROW($DS87)))","v":0},{"$f":"IF(AB87=\"\",0,\"X=\"&SUBSTITUTE(SUBSTITUTE(SUBSTITUTE(SUBSTITUTE(SUBSTITUTE(SUBSTITUTE(SUBSTITUTE(SUBSTITUTE(SUBSTITUTE(SUBSTITUTE(SUBSTITUTE(SUBSTITUTE(AB87,$ED87,$ED$2&ROW($ED87)),$EC87,$EC$2&ROW($EC87)),$EB87,$EB$2&ROW($EB87)),$EA87,$EA$2&ROW($EA87)),$DZ87,$DZ$2&ROW($DZ87)),$DY87,$DY$2&ROW($DY87)),$DX87,$DX$2&ROW($DX87)),$DW87,$DW$2&ROW($DW87)),$DV87,$DV$2&ROW($DV87)),$DU87,$DU$2&ROW($DU87)),$DT87,$DT$2&ROW($DT87)),$DS87,$DS$2&ROW($DS87)))","v":0},null,null,"{Factor:WinterCF}","{Factor:SummerCF}",{"$f":"IFERROR(INDEX($EG87:$IV87,MATCH(0,COUNTIF($DR87:DT87,$EG87:$IV87),0)),\"\")","v":"{Measure:Quantity}"},{"$f":"IFERROR(INDEX($EG87:$IV87,MATCH(0,COUNTIF($DR87:DU87,$EG87:$IV87),0)),\"\")","v":"{Capacity (MBTUH)}"},{"$f":"IFERROR(INDEX($EG87:$IV87,MATCH(0,COUNTIF($DR87:DV87,$EG87:$IV87),0)),\"\")","v":"{Existing Fuel}"},{"$f":"IFERROR(INDEX($EG87:$IV87,MATCH(0,COUNTIF($DR87:DW87,$EG87:$IV87),0)),\"\")","v":""},{"$f":"IFERROR(INDEX($EG87:$IV87,MATCH(0,COUNTIF($DR87:DX87,$EG87:$IV87),0)),\"\")","v":""},{"$f":"IFERROR(INDEX($EG87:$IV87,MATCH(0,COUNTIF($DR87:DY87,$EG87:$IV87),0)),\"\")","v":""},{"$f":"IFERROR(INDEX($EG87:$IV87,MATCH(0,COUNTIF($DR87:DZ87,$EG87:$IV87),0)),\"\")","v":""},{"$f":"IFERROR(INDEX($EG87:$IV87,MATCH(0,COUNTIF($DR87:EA87,$EG87:$IV87),0)),\"\")","v":""},{"$f":"IFERROR(INDEX($EG87:$IV87,MATCH(0,COUNTIF($DR87:EB87,$EG87:$IV87),0)),\"\")","v":""},{"$f":"IFERROR(INDEX($EG87:$IV87,MATCH(0,COUNTIF($DR87:EC87,$EG87:$IV87),0)),\"\")","v":""},null,null,{"$f":"IFERROR(MID($G87,FIND(CHAR(160),SUBSTITUTE($G87,\"{\",CHAR(160),EG$1)),FIND(CHAR(160),SUBSTITUTE($G87,\"}\",CHAR(160),EG$1))-FIND(CHAR(160),SUBSTITUTE($G87,\"{\",CHAR(160),EG$1))+1),\"\")","v":"{Measure:Quantity}"},{"$f":"IFERROR(MID($G87,FIND(CHAR(160),SUBSTITUTE($G87,\"{\",CHAR(160),EH$1)),FIND(CHAR(160),SUBSTITUTE($G87,\"}\",CHAR(160),EH$1))-FIND(CHAR(160),SUBSTITUTE($G87,\"{\",CHAR(160),EH$1))+1),\"\")","v":""},{"$f":"IFERROR(MID($G87,FIND(CHAR(160),SUBSTITUTE($G87,\"{\",CHAR(160),EI$1)),FIND(CHAR(160),SUBSTITUTE($G87,\"}\",CHAR(160),EI$1))-FIND(CHAR(160),SUBSTITUTE($G87,\"{\",CHAR(160),EI$1))+1),\"\")","v":""},{"$f":"IFERROR(MID($G87,FIND(CHAR(160),SUBSTITUTE($G87,\"{\",CHAR(160),EJ$1)),FIND(CHAR(160),SUBSTITUTE($G87,\"}\",CHAR(160),EJ$1))-FIND(CHAR(160),SUBSTITUTE($G87,\"{\",CHAR(160),EJ$1))+1),\"\")","v":""},{"$f":"IFERROR(MID($G87,FIND(CHAR(160),SUBSTITUTE($G87,\"{\",CHAR(160),EK$1)),FIND(CHAR(160),SUBSTITUTE($G87,\"}\",CHAR(160),EK$1))-FIND(CHAR(160),SUBSTITUTE($G87,\"{\",CHAR(160),EK$1))+1),\"\")","v":""},{"$f":"IFERROR(MID($G87,FIND(CHAR(160),SUBSTITUTE($G87,\"{\",CHAR(160),EL$1)),FIND(CHAR(160),SUBSTITUTE($G87,\"}\",CHAR(160),EL$1))-FIND(CHAR(160),SUBSTITUTE($G87,\"{\",CHAR(160),EL$1))+1),\"\")","v":""},{"$f":"IFERROR(MID($G87,FIND(CHAR(160),SUBSTITUTE($G87,\"{\",CHAR(160),EM$1)),FIND(CHAR(160),SUBSTITUTE($G87,\"}\",CHAR(160),EM$1))-FIND(CHAR(160),SUBSTITUTE($G87,\"{\",CHAR(160),EM$1))+1),\"\")","v":""},{"$f":"IFERROR(MID($G87,FIND(CHAR(160),SUBSTITUTE($G87,\"{\",CHAR(160),EN$1)),FIND(CHAR(160),SUBSTITUTE($G87,\"}\",CHAR(160),EN$1))-FIND(CHAR(160),SUBSTITUTE($G87,\"{\",CHAR(160),EN$1))+1),\"\")","v":""},{"$f":"IFERROR(MID($G87,FIND(CHAR(160),SUBSTITUTE($G87,\"{\",CHAR(160),EO$1)),FIND(CHAR(160),SUBSTITUTE($G87,\"}\",CHAR(160),EO$1))-FIND(CHAR(160),SUBSTITUTE($G87,\"{\",CHAR(160),EO$1))+1),\"\")","v":""},{"$f":"IFERROR(MID($G87,FIND(CHAR(160),SUBSTITUTE($G87,\"{\",CHAR(160),EP$1)),FIND(CHAR(160),SUBSTITUTE($G87,\"}\",CHAR(160),EP$1))-FIND(CHAR(160),SUBSTITUTE($G87,\"{\",CHAR(160),EP$1))+1),\"\")","v":""},{"$f":"IFERROR(MID($J87,FIND(CHAR(160),SUBSTITUTE($J87,\"{\",CHAR(160),EQ$1)),FIND(CHAR(160),SUBSTITUTE($J87,\"}\",CHAR(160),EQ$1))-FIND(CHAR(160),SUBSTITUTE($J87,\"{\",CHAR(160),EQ$1))+1),\"\")","v":"{Measure:Quantity}"},{"$f":"IFERROR(MID($J87,FIND(CHAR(160),SUBSTITUTE($J87,\"{\",CHAR(160),ER$1)),FIND(CHAR(160),SUBSTITUTE($J87,\"}\",CHAR(160),ER$1))-FIND(CHAR(160),SUBSTITUTE($J87,\"{\",CHAR(160),ER$1))+1),\"\")","v":""},{"$f":"IFERROR(MID($J87,FIND(CHAR(160),SUBSTITUTE($J87,\"{\",CHAR(160),ES$1)),FIND(CHAR(160),SUBSTITUTE($J87,\"}\",CHAR(160),ES$1))-FIND(CHAR(160),SUBSTITUTE($J87,\"{\",CHAR(160),ES$1))+1),\"\")","v":""},{"$f":"IFERROR(MID($J87,FIND(CHAR(160),SUBSTITUTE($J87,\"{\",CHAR(160),ET$1)),FIND(CHAR(160),SUBSTITUTE($J87,\"}\",CHAR(160),ET$1))-FIND(CHAR(160),SUBSTITUTE($J87,\"{\",CHAR(160),ET$1))+1),\"\")","v":""},{"$f":"IFERROR(MID($J87,FIND(CHAR(160),SUBSTITUTE($J87,\"{\",CHAR(160),EU$1)),FIND(CHAR(160),SUBSTITUTE($J87,\"}\",CHAR(160),EU$1))-FIND(CHAR(160),SUBSTITUTE($J87,\"{\",CHAR(160),EU$1))+1),\"\")","v":""},{"$f":"IFERROR(MID($J87,FIND(CHAR(160),SUBSTITUTE($J87,\"{\",CHAR(160),EV$1)),FIND(CHAR(160),SUBSTITUTE($J87,\"}\",CHAR(160),EV$1))-FIND(CHAR(160),SUBSTITUTE($J87,\"{\",CHAR(160),EV$1))+1),\"\")","v":""},{"$f":"IFERROR(MID($J87,FIND(CHAR(160),SUBSTITUTE($J87,\"{\",CHAR(160),EW$1)),FIND(CHAR(160),SUBSTITUTE($J87,\"}\",CHAR(160),EW$1))-FIND(CHAR(160),SUBSTITUTE($J87,\"{\",CHAR(160),EW$1))+1),\"\")","v":""},{"$f":"IFERROR(MID($J87,FIND(CHAR(160),SUBSTITUTE($J87,\"{\",CHAR(160),EX$1)),FIND(CHAR(160),SUBSTITUTE($J87,\"}\",CHAR(160),EX$1))-FIND(CHAR(160),SUBSTITUTE($J87,\"{\",CHAR(160),EX$1))+1),\"\")","v":""},{"$f":"IFERROR(MID($J87,FIND(CHAR(160),SUBSTITUTE($J87,\"{\",CHAR(160),EY$1)),FIND(CHAR(160),SUBSTITUTE($J87,\"}\",CHAR(160),EY$1))-FIND(CHAR(160),SUBSTITUTE($J87,\"{\",CHAR(160),EY$1))+1),\"\")","v":""},{"$f":"IFERROR(MID($J87,FIND(CHAR(160),SUBSTITUTE($J87,\"{\",CHAR(160),EZ$1)),FIND(CHAR(160),SUBSTITUTE($J87,\"}\",CHAR(160),EZ$1))-FIND(CHAR(160),SUBSTITUTE($J87,\"{\",CHAR(160),EZ$1))+1),\"\")","v":""},{"$f":"IFERROR(MID($J87,FIND(CHAR(160),SUBSTITUTE($J87,\"{\",CHAR(160),FA$1)),FIND(CHAR(160),SUBSTITUTE($J87,\"}\",CHAR(160),FA$1))-FIND(CHAR(160),SUBSTITUTE($J87,\"{\",CHAR(160),FA$1))+1),\"\")","v":"{Measure:Quantity}"},{"$f":"IFERROR(MID($J87,FIND(CHAR(160),SUBSTITUTE($J87,\"{\",CHAR(160),FB$1)),FIND(CHAR(160),SUBSTITUTE($J87,\"}\",CHAR(160),FB$1))-FIND(CHAR(160),SUBSTITUTE($J87,\"{\",CHAR(160),FB$1))+1),\"\")","v":""},{"$f":"IFERROR(MID($O87,FIND(CHAR(160),SUBSTITUTE($O87,\"{\",CHAR(160),FC$1)),FIND(CHAR(160),SUBSTITUTE($O87,\"}\",CHAR(160),FC$1))-FIND(CHAR(160),SUBSTITUTE($O87,\"{\",CHAR(160),FC$1))+1),\"\")","v":""},{"$f":"IFERROR(MID($O87,FIND(CHAR(160),SUBSTITUTE($O87,\"{\",CHAR(160),FD$1)),FIND(CHAR(160),SUBSTITUTE($O87,\"}\",CHAR(160),FD$1))-FIND(CHAR(160),SUBSTITUTE($O87,\"{\",CHAR(160),FD$1))+1),\"\")","v":""},{"$f":"IFERROR(MID($O87,FIND(CHAR(160),SUBSTITUTE($O87,\"{\",CHAR(160),FE$1)),FIND(CHAR(160),SUBSTITUTE($O87,\"}\",CHAR(160),FE$1))-FIND(CHAR(160),SUBSTITUTE($O87,\"{\",CHAR(160),FE$1))+1),\"\")","v":""},{"$f":"IFERROR(MID($O87,FIND(CHAR(160),SUBSTITUTE($O87,\"{\",CHAR(160),FF$1)),FIND(CHAR(160),SUBSTITUTE($O87,\"}\",CHAR(160),FF$1))-FIND(CHAR(160),SUBSTITUTE($O87,\"{\",CHAR(160),FF$1))+1),\"\")","v":""},{"$f":"IFERROR(MID($O87,FIND(CHAR(160),SUBSTITUTE($O87,\"{\",CHAR(160),FG$1)),FIND(CHAR(160),SUBSTITUTE($O87,\"}\",CHAR(160),FG$1))-FIND(CHAR(160),SUBSTITUTE($O87,\"{\",CHAR(160),FG$1))+1),\"\")","v":""},{"$f":"IFERROR(MID($O87,FIND(CHAR(160),SUBSTITUTE($O87,\"{\",CHAR(160),FH$1)),FIND(CHAR(160),SUBSTITUTE($O87,\"}\",CHAR(160),FH$1))-FIND(CHAR(160),SUBSTITUTE($O87,\"{\",CHAR(160),FH$1))+1),\"\")","v":""},{"$f":"IFERROR(MID($O87,FIND(CHAR(160),SUBSTITUTE($O87,\"{\",CHAR(160),FI$1)),FIND(CHAR(160),SUBSTITUTE($O87,\"}\",CHAR(160),FI$1))-FIND(CHAR(160),SUBSTITUTE($O87,\"{\",CHAR(160),FI$1))+1),\"\")","v":""},{"$f":"IFERROR(MID($O87,FIND(CHAR(160),SUBSTITUTE($O87,\"{\",CHAR(160),FJ$1)),FIND(CHAR(160),SUBSTITUTE($O87,\"}\",CHAR(160),FJ$1))-FIND(CHAR(160),SUBSTITUTE($O87,\"{\",CHAR(160),FJ$1))+1),\"\")","v":""},{"$f":"IFERROR(MID($O87,FIND(CHAR(160),SUBSTITUTE($O87,\"{\",CHAR(160),FK$1)),FIND(CHAR(160),SUBSTITUTE($O87,\"}\",CHAR(160),FK$1))-FIND(CHAR(160),SUBSTITUTE($O87,\"{\",CHAR(160),FK$1))+1),\"\")","v":""},{"$f":"IFERROR(MID($O87,FIND(CHAR(160),SUBSTITUTE($O87,\"{\",CHAR(160),FL$1)),FIND(CHAR(160),SUBSTITUTE($O87,\"}\",CHAR(160),FL$1))-FIND(CHAR(160),SUBSTITUTE($O87,\"{\",CHAR(160),FL$1))+1),\"\")","v":""},{"$f":"IFERROR(MID($R87,FIND(CHAR(160),SUBSTITUTE($R87,\"{\",CHAR(160),FM$1)),FIND(CHAR(160),SUBSTITUTE($R87,\"}\",CHAR(160),FM$1))-FIND(CHAR(160),SUBSTITUTE($R87,\"{\",CHAR(160),FM$1))+1),\"\")","v":""},{"$f":"IFERROR(MID($R87,FIND(CHAR(160),SUBSTITUTE($R87,\"{\",CHAR(160),FN$1)),FIND(CHAR(160),SUBSTITUTE($R87,\"}\",CHAR(160),FN$1))-FIND(CHAR(160),SUBSTITUTE($R87,\"{\",CHAR(160),FN$1))+1),\"\")","v":""},{"$f":"IFERROR(MID($R87,FIND(CHAR(160),SUBSTITUTE($R87,\"{\",CHAR(160),FO$1)),FIND(CHAR(160),SUBSTITUTE($R87,\"}\",CHAR(160),FO$1))-FIND(CHAR(160),SUBSTITUTE($R87,\"{\",CHAR(160),FO$1))+1),\"\")","v":""},{"$f":"IFERROR(MID($R87,FIND(CHAR(160),SUBSTITUTE($R87,\"{\",CHAR(160),FP$1)),FIND(CHAR(160),SUBSTITUTE($R87,\"}\",CHAR(160),FP$1))-FIND(CHAR(160),SUBSTITUTE($R87,\"{\",CHAR(160),FP$1))+1),\"\")","v":""},{"$f":"IFERROR(MID($R87,FIND(CHAR(160),SUBSTITUTE($R87,\"{\",CHAR(160),FQ$1)),FIND(CHAR(160),SUBSTITUTE($R87,\"}\",CHAR(160),FQ$1))-FIND(CHAR(160),SUBSTITUTE($R87,\"{\",CHAR(160),FQ$1))+1),\"\")","v":""},{"$f":"IFERROR(MID($R87,FIND(CHAR(160),SUBSTITUTE($R87,\"{\",CHAR(160),FR$1)),FIND(CHAR(160),SUBSTITUTE($R87,\"}\",CHAR(160),FR$1))-FIND(CHAR(160),SUBSTITUTE($R87,\"{\",CHAR(160),FR$1))+1),\"\")","v":""},{"$f":"IFERROR(MID($R87,FIND(CHAR(160),SUBSTITUTE($R87,\"{\",CHAR(160),FS$1)),FIND(CHAR(160),SUBSTITUTE($R87,\"}\",CHAR(160),FS$1))-FIND(CHAR(160),SUBSTITUTE($R87,\"{\",CHAR(160),FS$1))+1),\"\")","v":""},{"$f":"IFERROR(MID($R87,FIND(CHAR(160),SUBSTITUTE($R87,\"{\",CHAR(160),FT$1)),FIND(CHAR(160),SUBSTITUTE($R87,\"}\",CHAR(160),FT$1))-FIND(CHAR(160),SUBSTITUTE($R87,\"{\",CHAR(160),FT$1))+1),\"\")","v":""},{"$f":"IFERROR(MID($R87,FIND(CHAR(160),SUBSTITUTE($R87,\"{\",CHAR(160),FU$1)),FIND(CHAR(160),SUBSTITUTE($R87,\"}\",CHAR(160),FU$1))-FIND(CHAR(160),SUBSTITUTE($R87,\"{\",CHAR(160),FU$1))+1),\"\")","v":""},{"$f":"IFERROR(MID($R87,FIND(CHAR(160),SUBSTITUTE($R87,\"{\",CHAR(160),FV$1)),FIND(CHAR(160),SUBSTITUTE($R87,\"}\",CHAR(160),FV$1))-FIND(CHAR(160),SUBSTITUTE($R87,\"{\",CHAR(160),FV$1))+1),\"\")","v":""},{"$f":"IFERROR(MID($U87,FIND(CHAR(160),SUBSTITUTE($U87,\"{\",CHAR(160),FW$1)),FIND(CHAR(160),SUBSTITUTE($U87,\"}\",CHAR(160),FW$1))-FIND(CHAR(160),SUBSTITUTE($U87,\"{\",CHAR(160),FW$1))+1),\"\")","v":""},{"$f":"IFERROR(MID($U87,FIND(CHAR(160),SUBSTITUTE($U87,\"{\",CHAR(160),FX$1)),FIND(CHAR(160),SUBSTITUTE($U87,\"}\",CHAR(160),FX$1))-FIND(CHAR(160),SUBSTITUTE($U87,\"{\",CHAR(160),FX$1))+1),\"\")","v":""},{"$f":"IFERROR(MID($U87,FIND(CHAR(160),SUBSTITUTE($U87,\"{\",CHAR(160),FY$1)),FIND(CHAR(160),SUBSTITUTE($U87,\"}\",CHAR(160),FY$1))-FIND(CHAR(160),SUBSTITUTE($U87,\"{\",CHAR(160),FY$1))+1),\"\")","v":""},{"$f":"IFERROR(MID($U87,FIND(CHAR(160),SUBSTITUTE($U87,\"{\",CHAR(160),FZ$1)),FIND(CHAR(160),SUBSTITUTE($U87,\"}\",CHAR(160),FZ$1))-FIND(CHAR(160),SUBSTITUTE($U87,\"{\",CHAR(160),FZ$1))+1),\"\")","v":""},{"$f":"IFERROR(MID($U87,FIND(CHAR(160),SUBSTITUTE($U87,\"{\",CHAR(160),GA$1)),FIND(CHAR(160),SUBSTITUTE($U87,\"}\",CHAR(160),GA$1))-FIND(CHAR(160),SUBSTITUTE($U87,\"{\",CHAR(160),GA$1))+1),\"\")","v":""},{"$f":"IFERROR(MID($U87,FIND(CHAR(160),SUBSTITUTE($U87,\"{\",CHAR(160),GB$1)),FIND(CHAR(160),SUBSTITUTE($U87,\"}\",CHAR(160),GB$1))-FIND(CHAR(160),SUBSTITUTE($U87,\"{\",CHAR(160),GB$1))+1),\"\")","v":""},{"$f":"IFERROR(MID($U87,FIND(CHAR(160),SUBSTITUTE($U87,\"{\",CHAR(160),GC$1)),FIND(CHAR(160),SUBSTITUTE($U87,\"}\",CHAR(160),GC$1))-FIND(CHAR(160),SUBSTITUTE($U87,\"{\",CHAR(160),GC$1))+1),\"\")","v":""},{"$f":"IFERROR(MID($U87,FIND(CHAR(160),SUBSTITUTE($U87,\"{\",CHAR(160),GD$1)),FIND(CHAR(160),SUBSTITUTE($U87,\"}\",CHAR(160),GD$1))-FIND(CHAR(160),SUBSTITUTE($U87,\"{\",CHAR(160),GD$1))+1),\"\")","v":""},{"$f":"IFERROR(MID($U87,FIND(CHAR(160),SUBSTITUTE($U87,\"{\",CHAR(160),GE$1)),FIND(CHAR(160),SUBSTITUTE($U87,\"}\",CHAR(160),GE$1))-FIND(CHAR(160),SUBSTITUTE($U87,\"{\",CHAR(160),GE$1))+1),\"\")","v":""},{"$f":"IFERROR(MID($U87,FIND(CHAR(160),SUBSTITUTE($U87,\"{\",CHAR(160),GF$1)),FIND(CHAR(160),SUBSTITUTE($U87,\"}\",CHAR(160),GF$1))-FIND(CHAR(160),SUBSTITUTE($U87,\"{\",CHAR(160),GF$1))+1),\"\")","v":""},{"$f":"IFERROR(MID($V87,FIND(CHAR(160),SUBSTITUTE($V87,\"{\",CHAR(160),GG$1)),FIND(CHAR(160),SUBSTITUTE($V87,\"}\",CHAR(160),GG$1))-FIND(CHAR(160),SUBSTITUTE($V87,\"{\",CHAR(160),GG$1))+1),\"\")","v":""},{"$f":"IFERROR(MID($V87,FIND(CHAR(160),SUBSTITUTE($V87,\"{\",CHAR(160),GH$1)),FIND(CHAR(160),SUBSTITUTE($V87,\"}\",CHAR(160),GH$1))-FIND(CHAR(160),SUBSTITUTE($V87,\"{\",CHAR(160),GH$1))+1),\"\")","v":""},{"$f":"IFERROR(MID($V87,FIND(CHAR(160),SUBSTITUTE($V87,\"{\",CHAR(160),GI$1)),FIND(CHAR(160),SUBSTITUTE($V87,\"}\",CHAR(160),GI$1))-FIND(CHAR(160),SUBSTITUTE($V87,\"{\",CHAR(160),GI$1))+1),\"\")","v":""},{"$f":"IFERROR(MID($V87,FIND(CHAR(160),SUBSTITUTE($V87,\"{\",CHAR(160),GJ$1)),FIND(CHAR(160),SUBSTITUTE($V87,\"}\",CHAR(160),GJ$1))-FIND(CHAR(160),SUBSTITUTE($V87,\"{\",CHAR(160),GJ$1))+1),\"\")","v":""},{"$f":"IFERROR(MID($V87,FIND(CHAR(160),SUBSTITUTE($V87,\"{\",CHAR(160),GK$1)),FIND(CHAR(160),SUBSTITUTE($V87,\"}\",CHAR(160),GK$1))-FIND(CHAR(160),SUBSTITUTE($V87,\"{\",CHAR(160),GK$1))+1),\"\")","v":""},{"$f":"IFERROR(MID($V87,FIND(CHAR(160),SUBSTITUTE($V87,\"{\",CHAR(160),GL$1)),FIND(CHAR(160),SUBSTITUTE($V87,\"}\",CHAR(160),GL$1))-FIND(CHAR(160),SUBSTITUTE($V87,\"{\",CHAR(160),GL$1))+1),\"\")","v":""},{"$f":"IFERROR(MID($V87,FIND(CHAR(160),SUBSTITUTE($V87,\"{\",CHAR(160),GM$1)),FIND(CHAR(160),SUBSTITUTE($V87,\"}\",CHAR(160),GM$1))-FIND(CHAR(160),SUBSTITUTE($V87,\"{\",CHAR(160),GM$1))+1),\"\")","v":""},{"$f":"IFERROR(MID($V87,FIND(CHAR(160),SUBSTITUTE($V87,\"{\",CHAR(160),GN$1)),FIND(CHAR(160),SUBSTITUTE($V87,\"}\",CHAR(160),GN$1))-FIND(CHAR(160),SUBSTITUTE($V87,\"{\",CHAR(160),GN$1))+1),\"\")","v":""},{"$f":"IFERROR(MID($V87,FIND(CHAR(160),SUBSTITUTE($V87,\"{\",CHAR(160),GO$1)),FIND(CHAR(160),SUBSTITUTE($V87,\"}\",CHAR(160),GO$1))-FIND(CHAR(160),SUBSTITUTE($V87,\"{\",CHAR(160),GO$1))+1),\"\")","v":""},{"$f":"IFERROR(MID($V87,FIND(CHAR(160),SUBSTITUTE($V87,\"{\",CHAR(160),GP$1)),FIND(CHAR(160),SUBSTITUTE($V87,\"}\",CHAR(160),GP$1))-FIND(CHAR(160),SUBSTITUTE($V87,\"{\",CHAR(160),GP$1))+1),\"\")","v":""},{"$f":"IFERROR(MID($W87,FIND(CHAR(160),SUBSTITUTE($W87,\"{\",CHAR(160),GQ$1)),FIND(CHAR(160),SUBSTITUTE($W87,\"}\",CHAR(160),GQ$1))-FIND(CHAR(160),SUBSTITUTE($W87,\"{\",CHAR(160),GQ$1))+1),\"\")","v":"{Capacity (MBTUH)}"},{"$f":"IFERROR(MID($W87,FIND(CHAR(160),SUBSTITUTE($W87,\"{\",CHAR(160),GR$1)),FIND(CHAR(160),SUBSTITUTE($W87,\"}\",CHAR(160),GR$1))-FIND(CHAR(160),SUBSTITUTE($W87,\"{\",CHAR(160),GR$1))+1),\"\")","v":""},{"$f":"IFERROR(MID($W87,FIND(CHAR(160),SUBSTITUTE($W87,\"{\",CHAR(160),GS$1)),FIND(CHAR(160),SUBSTITUTE($W87,\"}\",CHAR(160),GS$1))-FIND(CHAR(160),SUBSTITUTE($W87,\"{\",CHAR(160),GS$1))+1),\"\")","v":""},{"$f":"IFERROR(MID($W87,FIND(CHAR(160),SUBSTITUTE($W87,\"{\",CHAR(160),GT$1)),FIND(CHAR(160),SUBSTITUTE($W87,\"}\",CHAR(160),GT$1))-FIND(CHAR(160),SUBSTITUTE($W87,\"{\",CHAR(160),GT$1))+1),\"\")","v":""},{"$f":"IFERROR(MID($W87,FIND(CHAR(160),SUBSTITUTE($W87,\"{\",CHAR(160),GU$1)),FIND(CHAR(160),SUBSTITUTE($W87,\"}\",CHAR(160),GU$1))-FIND(CHAR(160),SUBSTITUTE($W87,\"{\",CHAR(160),GU$1))+1),\"\")","v":""},{"$f":"IFERROR(MID($W87,FIND(CHAR(160),SUBSTITUTE($W87,\"{\",CHAR(160),GV$1)),FIND(CHAR(160),SUBSTITUTE($W87,\"}\",CHAR(160),GV$1))-FIND(CHAR(160),SUBSTITUTE($W87,\"{\",CHAR(160),GV$1))+1),\"\")","v":""},{"$f":"IFERROR(MID($W87,FIND(CHAR(160),SUBSTITUTE($W87,\"{\",CHAR(160),GW$1)),FIND(CHAR(160),SUBSTITUTE($W87,\"}\",CHAR(160),GW$1))-FIND(CHAR(160),SUBSTITUTE($W87,\"{\",CHAR(160),GW$1))+1),\"\")","v":""},{"$f":"IFERROR(MID($W87,FIND(CHAR(160),SUBSTITUTE($W87,\"{\",CHAR(160),GX$1)),FIND(CHAR(160),SUBSTITUTE($W87,\"}\",CHAR(160),GX$1))-FIND(CHAR(160),SUBSTITUTE($W87,\"{\",CHAR(160),GX$1))+1),\"\")","v":""},{"$f":"IFERROR(MID($W87,FIND(CHAR(160),SUBSTITUTE($W87,\"{\",CHAR(160),GY$1)),FIND(CHAR(160),SUBSTITUTE($W87,\"}\",CHAR(160),GY$1))-FIND(CHAR(160),SUBSTITUTE($W87,\"{\",CHAR(160),GY$1))+1),\"\")","v":"{Existing Fuel}"},{"$f":"IFERROR(MID($W87,FIND(CHAR(160),SUBSTITUTE($W87,\"{\",CHAR(160),GZ$1)),FIND(CHAR(160),SUBSTITUTE($W87,\"}\",CHAR(160),GZ$1))-FIND(CHAR(160),SUBSTITUTE($W87,\"{\",CHAR(160),GZ$1))+1),\"\")","v":"{Measure:Quantity}"},{"$f":"IFERROR(MID($X87,FIND(CHAR(160),SUBSTITUTE($X87,\"{\",CHAR(160),HA$1)),FIND(CHAR(160),SUBSTITUTE($X87,\"}\",CHAR(160),HA$1))-FIND(CHAR(160),SUBSTITUTE($X87,\"{\",CHAR(160),HA$1))+1),\"\")","v":""},{"$f":"IFERROR(MID($X87,FIND(CHAR(160),SUBSTITUTE($X87,\"{\",CHAR(160),HB$1)),FIND(CHAR(160),SUBSTITUTE($X87,\"}\",CHAR(160),HB$1))-FIND(CHAR(160),SUBSTITUTE($X87,\"{\",CHAR(160),HB$1))+1),\"\")","v":""},{"$f":"IFERROR(MID($X87,FIND(CHAR(160),SUBSTITUTE($X87,\"{\",CHAR(160),HC$1)),FIND(CHAR(160),SUBSTITUTE($X87,\"}\",CHAR(160),HC$1))-FIND(CHAR(160),SUBSTITUTE($X87,\"{\",CHAR(160),HC$1))+1),\"\")","v":""},{"$f":"IFERROR(MID($X87,FIND(CHAR(160),SUBSTITUTE($X87,\"{\",CHAR(160),HD$1)),FIND(CHAR(160),SUBSTITUTE($X87,\"}\",CHAR(160),HD$1))-FIND(CHAR(160),SUBSTITUTE($X87,\"{\",CHAR(160),HD$1))+1),\"\")","v":""},{"$f":"IFERROR(MID($X87,FIND(CHAR(160),SUBSTITUTE($X87,\"{\",CHAR(160),HE$1)),FIND(CHAR(160),SUBSTITUTE($X87,\"}\",CHAR(160),HE$1))-FIND(CHAR(160),SUBSTITUTE($X87,\"{\",CHAR(160),HE$1))+1),\"\")","v":""},{"$f":"IFERROR(MID($X87,FIND(CHAR(160),SUBSTITUTE($X87,\"{\",CHAR(160),HF$1)),FIND(CHAR(160),SUBSTITUTE($X87,\"}\",CHAR(160),HF$1))-FIND(CHAR(160),SUBSTITUTE($X87,\"{\",CHAR(160),HF$1))+1),\"\")","v":""},{"$f":"IFERROR(MID($X87,FIND(CHAR(160),SUBSTITUTE($X87,\"{\",CHAR(160),HG$1)),FIND(CHAR(160),SUBSTITUTE($X87,\"}\",CHAR(160),HG$1))-FIND(CHAR(160),SUBSTITUTE($X87,\"{\",CHAR(160),HG$1))+1),\"\")","v":""},{"$f":"IFERROR(MID($X87,FIND(CHAR(160),SUBSTITUTE($X87,\"{\",CHAR(160),HH$1)),FIND(CHAR(160),SUBSTITUTE($X87,\"}\",CHAR(160),HH$1))-FIND(CHAR(160),SUBSTITUTE($X87,\"{\",CHAR(160),HH$1))+1),\"\")","v":""},{"$f":"IFERROR(MID($X87,FIND(CHAR(160),SUBSTITUTE($X87,\"{\",CHAR(160),HI$1)),FIND(CHAR(160),SUBSTITUTE($X87,\"}\",CHAR(160),HI$1))-FIND(CHAR(160),SUBSTITUTE($X87,\"{\",CHAR(160),HI$1))+1),\"\")","v":""},{"$f":"IFERROR(MID($X87,FIND(CHAR(160),SUBSTITUTE($X87,\"{\",CHAR(160),HJ$1)),FIND(CHAR(160),SUBSTITUTE($X87,\"}\",CHAR(160),HJ$1))-FIND(CHAR(160),SUBSTITUTE($X87,\"{\",CHAR(160),HJ$1))+1),\"\")","v":""},{"$f":"IFERROR(MID($Y87,FIND(CHAR(160),SUBSTITUTE($Y87,\"{\",CHAR(160),HK$1)),FIND(CHAR(160),SUBSTITUTE($Y87,\"}\",CHAR(160),HK$1))-FIND(CHAR(160),SUBSTITUTE($Y87,\"{\",CHAR(160),HK$1))+1),\"\")","v":""},{"$f":"IFERROR(MID($Y87,FIND(CHAR(160),SUBSTITUTE($Y87,\"{\",CHAR(160),HL$1)),FIND(CHAR(160),SUBSTITUTE($Y87,\"}\",CHAR(160),HL$1))-FIND(CHAR(160),SUBSTITUTE($Y87,\"{\",CHAR(160),HL$1))+1),\"\")","v":""},{"$f":"IFERROR(MID($Y87,FIND(CHAR(160),SUBSTITUTE($Y87,\"{\",CHAR(160),HM$1)),FIND(CHAR(160),SUBSTITUTE($Y87,\"}\",CHAR(160),HM$1))-FIND(CHAR(160),SUBSTITUTE($Y87,\"{\",CHAR(160),HM$1))+1),\"\")","v":""},{"$f":"IFERROR(MID($Y87,FIND(CHAR(160),SUBSTITUTE($Y87,\"{\",CHAR(160),HN$1)),FIND(CHAR(160),SUBSTITUTE($Y87,\"}\",CHAR(160),HN$1))-FIND(CHAR(160),SUBSTITUTE($Y87,\"{\",CHAR(160),HN$1))+1),\"\")","v":""},{"$f":"IFERROR(MID($Y87,FIND(CHAR(160),SUBSTITUTE($Y87,\"{\",CHAR(160),HO$1)),FIND(CHAR(160),SUBSTITUTE($Y87,\"}\",CHAR(160),HO$1))-FIND(CHAR(160),SUBSTITUTE($Y87,\"{\",CHAR(160),HO$1))+1),\"\")","v":""},{"$f":"IFERROR(MID($Y87,FIND(CHAR(160),SUBSTITUTE($Y87,\"{\",CHAR(160),HP$1)),FIND(CHAR(160),SUBSTITUTE($Y87,\"}\",CHAR(160),HP$1))-FIND(CHAR(160),SUBSTITUTE($Y87,\"{\",CHAR(160),HP$1))+1),\"\")","v":""},{"$f":"IFERROR(MID($Y87,FIND(CHAR(160),SUBSTITUTE($Y87,\"{\",CHAR(160),HQ$1)),FIND(CHAR(160),SUBSTITUTE($Y87,\"}\",CHAR(160),HQ$1))-FIND(CHAR(160),SUBSTITUTE($Y87,\"{\",CHAR(160),HQ$1))+1),\"\")","v":""},{"$f":"IFERROR(MID($Y87,FIND(CHAR(160),SUBSTITUTE($Y87,\"{\",CHAR(160),HR$1)),FIND(CHAR(160),SUBSTITUTE($Y87,\"}\",CHAR(160),HR$1))-FIND(CHAR(160),SUBSTITUTE($Y87,\"{\",CHAR(160),HR$1))+1),\"\")","v":""},{"$f":"IFERROR(MID($Y87,FIND(CHAR(160),SUBSTITUTE($Y87,\"{\",CHAR(160),HS$1)),FIND(CHAR(160),SUBSTITUTE($Y87,\"}\",CHAR(160),HS$1))-FIND(CHAR(160),SUBSTITUTE($Y87,\"{\",CHAR(160),HS$1))+1),\"\")","v":""},{"$f":"IFERROR(MID($Y87,FIND(CHAR(160),SUBSTITUTE($Y87,\"{\",CHAR(160),HT$1)),FIND(CHAR(160),SUBSTITUTE($Y87,\"}\",CHAR(160),HT$1))-FIND(CHAR(160),SUBSTITUTE($Y87,\"{\",CHAR(160),HT$1))+1),\"\")","v":""},{"$f":"IFERROR(MID($Z87,FIND(CHAR(160),SUBSTITUTE($Z87,\"{\",CHAR(160),HU$1)),FIND(CHAR(160),SUBSTITUTE($Z87,\"}\",CHAR(160),HU$1))-FIND(CHAR(160),SUBSTITUTE($Z87,\"{\",CHAR(160),HU$1))+1),\"\")","v":""},{"$f":"IFERROR(MID($Z87,FIND(CHAR(160),SUBSTITUTE($Z87,\"{\",CHAR(160),HV$1)),FIND(CHAR(160),SUBSTITUTE($Z87,\"}\",CHAR(160),HV$1))-FIND(CHAR(160),SUBSTITUTE($Z87,\"{\",CHAR(160),HV$1))+1),\"\")","v":""},{"$f":"IFERROR(MID($Z87,FIND(CHAR(160),SUBSTITUTE($Z87,\"{\",CHAR(160),HW$1)),FIND(CHAR(160),SUBSTITUTE($Z87,\"}\",CHAR(160),HW$1))-FIND(CHAR(160),SUBSTITUTE($Z87,\"{\",CHAR(160),HW$1))+1),\"\")","v":""},{"$f":"IFERROR(MID($Z87,FIND(CHAR(160),SUBSTITUTE($Z87,\"{\",CHAR(160),HX$1)),FIND(CHAR(160),SUBSTITUTE($Z87,\"}\",CHAR(160),HX$1))-FIND(CHAR(160),SUBSTITUTE($Z87,\"{\",CHAR(160),HX$1))+1),\"\")","v":""},{"$f":"IFERROR(MID($Z87,FIND(CHAR(160),SUBSTITUTE($Z87,\"{\",CHAR(160),HY$1)),FIND(CHAR(160),SUBSTITUTE($Z87,\"}\",CHAR(160),HY$1))-FIND(CHAR(160),SUBSTITUTE($Z87,\"{\",CHAR(160),HY$1))+1),\"\")","v":""},{"$f":"IFERROR(MID($Z87,FIND(CHAR(160),SUBSTITUTE($Z87,\"{\",CHAR(160),HZ$1)),FIND(CHAR(160),SUBSTITUTE($Z87,\"}\",CHAR(160),HZ$1))-FIND(CHAR(160),SUBSTITUTE($Z87,\"{\",CHAR(160),HZ$1))+1),\"\")","v":""},{"$f":"IFERROR(MID($Z87,FIND(CHAR(160),SUBSTITUTE($Z87,\"{\",CHAR(160),IA$1)),FIND(CHAR(160),SUBSTITUTE($Z87,\"}\",CHAR(160),IA$1))-FIND(CHAR(160),SUBSTITUTE($Z87,\"{\",CHAR(160),IA$1))+1),\"\")","v":""},{"$f":"IFERROR(MID($Z87,FIND(CHAR(160),SUBSTITUTE($Z87,\"{\",CHAR(160),IB$1)),FIND(CHAR(160),SUBSTITUTE($Z87,\"}\",CHAR(160),IB$1))-FIND(CHAR(160),SUBSTITUTE($Z87,\"{\",CHAR(160),IB$1))+1),\"\")","v":""},{"$f":"IFERROR(MID($Z87,FIND(CHAR(160),SUBSTITUTE($Z87,\"{\",CHAR(160),IC$1)),FIND(CHAR(160),SUBSTITUTE($Z87,\"}\",CHAR(160),IC$1))-FIND(CHAR(160),SUBSTITUTE($Z87,\"{\",CHAR(160),IC$1))+1),\"\")","v":""},{"$f":"IFERROR(MID($Z87,FIND(CHAR(160),SUBSTITUTE($Z87,\"{\",CHAR(160),ID$1)),FIND(CHAR(160),SUBSTITUTE($Z87,\"}\",CHAR(160),ID$1))-FIND(CHAR(160),SUBSTITUTE($Z87,\"{\",CHAR(160),ID$1))+1),\"\")","v":""},{"$f":"IFERROR(MID($AA87,FIND(CHAR(160),SUBSTITUTE($AA87,\"{\",CHAR(160),IE$1)),FIND(CHAR(160),SUBSTITUTE($AA87,\"}\",CHAR(160),IE$1))-FIND(CHAR(160),SUBSTITUTE($AA87,\"{\",CHAR(160),IE$1))+1),\"\")","v":""},{"$f":"IFERROR(MID($AA87,FIND(CHAR(160),SUBSTITUTE($AA87,\"{\",CHAR(160),IF$1)),FIND(CHAR(160),SUBSTITUTE($AA87,\"}\",CHAR(160),IF$1))-FIND(CHAR(160),SUBSTITUTE($AA87,\"{\",CHAR(160),IF$1))+1),\"\")","v":""},{"$f":"IFERROR(MID($AA87,FIND(CHAR(160),SUBSTITUTE($AA87,\"{\",CHAR(160),IG$1)),FIND(CHAR(160),SUBSTITUTE($AA87,\"}\",CHAR(160),IG$1))-FIND(CHAR(160),SUBSTITUTE($AA87,\"{\",CHAR(160),IG$1))+1),\"\")","v":""},{"$f":"IFERROR(MID($AA87,FIND(CHAR(160),SUBSTITUTE($AA87,\"{\",CHAR(160),IH$1)),FIND(CHAR(160),SUBSTITUTE($AA87,\"}\",CHAR(160),IH$1))-FIND(CHAR(160),SUBSTITUTE($AA87,\"{\",CHAR(160),IH$1))+1),\"\")","v":""},{"$f":"IFERROR(MID($AA87,FIND(CHAR(160),SUBSTITUTE($AA87,\"{\",CHAR(160),II$1)),FIND(CHAR(160),SUBSTITUTE($AA87,\"}\",CHAR(160),II$1))-FIND(CHAR(160),SUBSTITUTE($AA87,\"{\",CHAR(160),II$1))+1),\"\")","v":""},{"$f":"IFERROR(MID($AA87,FIND(CHAR(160),SUBSTITUTE($AA87,\"{\",CHAR(160),IJ$1)),FIND(CHAR(160),SUBSTITUTE($AA87,\"}\",CHAR(160),IJ$1))-FIND(CHAR(160),SUBSTITUTE($AA87,\"{\",CHAR(160),IJ$1))+1),\"\")","v":""},{"$f":"IFERROR(MID($AA87,FIND(CHAR(160),SUBSTITUTE($AA87,\"{\",CHAR(160),IK$1)),FIND(CHAR(160),SUBSTITUTE($AA87,\"}\",CHAR(160),IK$1))-FIND(CHAR(160),SUBSTITUTE($AA87,\"{\",CHAR(160),IK$1))+1),\"\")","v":""},{"$f":"IFERROR(MID($AA87,FIND(CHAR(160),SUBSTITUTE($AA87,\"{\",CHAR(160),IL$1)),FIND(CHAR(160),SUBSTITUTE($AA87,\"}\",CHAR(160),IL$1))-FIND(CHAR(160),SUBSTITUTE($AA87,\"{\",CHAR(160),IL$1))+1),\"\")","v":""},{"$f":"IFERROR(MID($AA87,FIND(CHAR(160),SUBSTITUTE($AA87,\"{\",CHAR(160),IM$1)),FIND(CHAR(160),SUBSTITUTE($AA87,\"}\",CHAR(160),IM$1))-FIND(CHAR(160),SUBSTITUTE($AA87,\"{\",CHAR(160),IM$1))+1),\"\")","v":""},{"$f":"IFERROR(MID($AA87,FIND(CHAR(160),SUBSTITUTE($AA87,\"{\",CHAR(160),IN$1)),FIND(CHAR(160),SUBSTITUTE($AA87,\"}\",CHAR(160),IN$1))-FIND(CHAR(160),SUBSTITUTE($AA87,\"{\",CHAR(160),IN$1))+1),\"\")","v":""},{"$f":"IFERROR(MID($AB87,FIND(CHAR(160),SUBSTITUTE($AB87,\"{\",CHAR(160),IO$1)),FIND(CHAR(160),SUBSTITUTE($AB87,\"}\",CHAR(160),IO$1))-FIND(CHAR(160),SUBSTITUTE($AB87,\"{\",CHAR(160),IO$1))+1),\"\")","v":""},{"$f":"IFERROR(MID($AB87,FIND(CHAR(160),SUBSTITUTE($AB87,\"{\",CHAR(160),IP$1)),FIND(CHAR(160),SUBSTITUTE($AB87,\"}\",CHAR(160),IP$1))-FIND(CHAR(160),SUBSTITUTE($AB87,\"{\",CHAR(160),IP$1))+1),\"\")","v":""},{"$f":"IFERROR(MID($AB87,FIND(CHAR(160),SUBSTITUTE($AB87,\"{\",CHAR(160),IQ$1)),FIND(CHAR(160),SUBSTITUTE($AB87,\"}\",CHAR(160),IQ$1))-FIND(CHAR(160),SUBSTITUTE($AB87,\"{\",CHAR(160),IQ$1))+1),\"\")","v":""},{"$f":"IFERROR(MID($AB87,FIND(CHAR(160),SUBSTITUTE($AB87,\"{\",CHAR(160),IR$1)),FIND(CHAR(160),SUBSTITUTE($AB87,\"}\",CHAR(160),IR$1))-FIND(CHAR(160),SUBSTITUTE($AB87,\"{\",CHAR(160),IR$1))+1),\"\")","v":""},{"$f":"IFERROR(MID($AB87,FIND(CHAR(160),SUBSTITUTE($AB87,\"{\",CHAR(160),IS$1)),FIND(CHAR(160),SUBSTITUTE($AB87,\"}\",CHAR(160),IS$1))-FIND(CHAR(160),SUBSTITUTE($AB87,\"{\",CHAR(160),IS$1))+1),\"\")","v":""},{"$f":"IFERROR(MID($AB87,FIND(CHAR(160),SUBSTITUTE($AB87,\"{\",CHAR(160),IT$1)),FIND(CHAR(160),SUBSTITUTE($AB87,\"}\",CHAR(160),IT$1))-FIND(CHAR(160),SUBSTITUTE($AB87,\"{\",CHAR(160),IT$1))+1),\"\")","v":""},{"$f":"IFERROR(MID($AB87,FIND(CHAR(160),SUBSTITUTE($AB87,\"{\",CHAR(160),IU$1)),FIND(CHAR(160),SUBSTITUTE($AB87,\"}\",CHAR(160),IU$1))-FIND(CHAR(160),SUBSTITUTE($AB87,\"{\",CHAR(160),IU$1))+1),\"\")","v":""},{"$f":"IFERROR(MID($AB87,FIND(CHAR(160),SUBSTITUTE($AB87,\"{\",CHAR(160),IV$1)),FIND(CHAR(160),SUBSTITUTE($AB87,\"}\",CHAR(160),IV$1))-FIND(CHAR(160),SUBSTITUTE($AB87,\"{\",CHAR(160),IV$1))+1),\"\")","v":""},{"$f":"IFERROR(MID($AB87,FIND(CHAR(160),SUBSTITUTE($AB87,\"{\",CHAR(160),IW$1)),FIND(CHAR(160),SUBSTITUTE($AB87,\"}\",CHAR(160),IW$1))-FIND(CHAR(160),SUBSTITUTE($AB87,\"{\",CHAR(160),IW$1))+1),\"\")","v":""},{"$f":"IFERROR(MID($AB87,FIND(CHAR(160),SUBSTITUTE($AB87,\"{\",CHAR(160),IX$1)),FIND(CHAR(160),SUBSTITUTE($AB87,\"}\",CHAR(160),IX$1))-FIND(CHAR(160),SUBSTITUTE($AB87,\"{\",CHAR(160),IX$1))+1),\"\")","v":""},null,{"$f":"10-COUNTIF(DU87:ED87,\"\")","v":3}]
["C&I HVAC - Natural Gas","Boiler Turbulator","AF5","2021-07-01","2022-06-30","Calculated","{Measure:Quantity}*15.00",0,"Calculated","{Measure:Quantity}*9.5",0,"2021-05-25","2022-06-30","Calculated",null,null,null,null,null,null,null,null,"if({Existing Fuel}<>1,0,{Measure:Quantity} * ({Capacity (MBTUH)} * 1565 * 0.7 * ({Flue Gas Temperature Before (oF)}-{Flue Gas Temperature After (oF)})/40/100)/1000 * 10)",null,null,null,null,null,"2021-05-25","2022-06-30",20,0,0,0,0,0,0,1,1,0,0.52,1.6E-2,null,{"$f":"DU88","v":"{Measure:Quantity}"},1,{"$f":"DV88","v":"{Capacity (MBTUH)}"},1,{"$f":"DW88","v":"{Flue Gas Temperature Before (oF)}"},1000,{"$f":"DX88","v":"{Flue Gas Temperature After (oF)}"},270,{"$f":"DY88","v":"{Existing Fuel}"},220,{"$f":"DZ88","v":""},null,{"$f":"EA88","v":""},null,{"$f":"EB88","v":""},null,{"$f":"EC88","v":""},null,{"$f":"ED88","v":""},null,0,0,0,0,0,0,0,0,{"$f":"IF(AU88<>1,0,AS88 * (AW88 * 1565 * 0.7 * (AY88-BA88)/40/100)/1000 * 10)","v":136.9375},0,0,0,0,0,null,"Res","Default DR",{"$f":"Benefits(BL88,BR88,BS88,BT88,BU88,BV88,BW88,BX88,BY88,BZ88,AE88,AH88,AI88,AJ88,AK88,AL88,AM88,AN88,AO88,AP88,CA88,CB88)","v":0},0,3238.5006133243796,0,0,0,0,0,0,{"$f":"SUMPRODUCT(CC88:CK88,--(CC88:CK88>0))","v":3238.5006133243796},{"$f":"-SUMPRODUCT(CC88:CK88,--(CC88:CK88<0))","v":0},null,{"$f":"AS88*15","v":15},null,null,{"$f":"CM88+CO88","v":15},{"$f":"IF(NetOrGross=\"Net\",(1-AO88+AP88),1)","v":1},{"$f":"(SUMPRODUCT(CC88:CJ88,--(CC88:CJ88>0))+CN88)*CS88/((-SUMPRODUCT(CC88:CJ88,--(CC88:CJ88<0))+MAX(CO88,CV88)+CP88+CQ88)*CS88+IF(FRIncentives=\"Yes\",CV88*(1-CS88),0))","v":215.90004088829198},1,{"$f":"AS88*9.5","v":9.5},null,"NG","y",null,{"$f":"IF(F88=\"Manual Entry\",\"Manual\",IF(G88=\"\",0,\"X=\"&SUBSTITUTE(SUBSTITUTE(SUBSTITUTE(SUBSTITUTE(SUBSTITUTE(SUBSTITUTE(SUBSTITUTE(SUBSTITUTE(SUBSTITUTE(SUBSTITUTE(SUBSTITUTE(SUBSTITUTE(G88,$ED88,$ED$2&ROW($ED88)),$EC88,$EC$2&ROW($EC88)),$EB88,$EB$2&ROW($EB88)),$EA88,$EA$2&ROW($EA88)),$DZ88,$DZ$2&ROW($DZ88)),$DY88,$DY$2&ROW($DY88)),$DX88,$DX$2&ROW($DX88)),$DW88,$DW$2&ROW($DW88)),$DV88,$DV$2&ROW($DV88)),$DU88,$DU$2&ROW($DU88)),$DT88,$DT$2&ROW($DT88)),$DS88,$DS$2&ROW($DS88))))","v":"X=AS88*15.00"},{"$f":"IF(I88=\"Manual Entry\",\"Manual\",IF(J88=\"\",0,\"X=\"&SUBSTITUTE(SUBSTITUTE(SUBSTITUTE(SUBSTITUTE(SUBSTITUTE(SUBSTITUTE(SUBSTITUTE(SUBSTITUTE(SUBSTITUTE(SUBSTITUTE(SUBSTITUTE(SUBSTITUTE(J88,$ED88,$ED$2&ROW($ED88)),$EC88,$EC$2&ROW($EC88)),$EB88,$EB$2&ROW($EB88)),$EA88,$EA$2&ROW($EA88)),$DZ88,$DZ$2&ROW($DZ88)),$DY88,$DY$2&ROW($DY88)),$DX88,$DX$2&ROW($DX88)),$DW88,$DW$2&ROW($DW88)),$DV88,$DV$2&ROW($DV88)),$DU88,$DU$2&ROW($DU88)),$DT88,$DT$2&ROW($DT88)),$DS88,$DS$2&ROW($DS88))))","v":"X=AS88*9.5"},{"$f":"IF(O88=\"\",0,\"X=\"&SUBSTITUTE(SUBSTITUTE(SUBSTITUTE(SUBSTITUTE(SUBSTITUTE(SUBSTITUTE(SUBSTITUTE(SUBSTITUTE(SUBSTITUTE(SUBSTITUTE(SUBSTITUTE(SUBSTITUTE(O88,$ED88,$ED$2&ROW($ED88)),$EC88,$EC$2&ROW($EC88)),$EB88,$EB$2&ROW($EB88)),$EA88,$EA$2&ROW($EA88)),$DZ88,$DZ$2&ROW($DZ88)),$DY88,$DY$2&ROW($DY88)),$DX88,$DX$2&ROW($DX88)),$DW88,$DW$2&ROW($DW88)),$DV88,$DV$2&ROW($DV88)),$DU88,$DU$2&ROW($DU88)),$DT88,$DT$2&ROW($DT88)),$DS88,$DS$2&ROW($DS88)))","v":0},{"$f":"IF(P88=\"\",0,\"X=\"&SUBSTITUTE(SUBSTITUTE(SUBSTITUTE(SUBSTITUTE(SUBSTITUTE(SUBSTITUTE(SUBSTITUTE(SUBSTITUTE(SUBSTITUTE(SUBSTITUTE(SUBSTITUTE(SUBSTITUTE(P88,$ED88,$ED$2&ROW($ED88)),$EC88,$EC$2&ROW($EC88)),$EB88,$EB$2&ROW($EB88)),$EA88,$EA$2&ROW($EA88)),$DZ88,$DZ$2&ROW($DZ88)),$DY88,$DY$2&ROW($DY88)),$DX88,$DX$2&ROW($DX88)),$DW88,$DW$2&ROW($DW88)),$DV88,$DV$2&ROW($DV88)),$DU88,$DU$2&ROW($DU88)),$DT88,$DT$2&ROW($DT88)),$DS88,$DS$2&ROW($DS88)))","v":0},{"$f":"IF(Q88=\"\",0,\"X=\"&SUBSTITUTE(SUBSTITUTE(SUBSTITUTE(SUBSTITUTE(SUBSTITUTE(SUBSTITUTE(SUBSTITUTE(SUBSTITUTE(SUBSTITUTE(SUBSTITUTE(SUBSTITUTE(SUBSTITUTE(Q88,$ED88,$ED$2&ROW($ED88)),$EC88,$EC$2&ROW($EC88)),$EB88,$EB$2&ROW($EB88)),$EA88,$EA$2&ROW($EA88)),$DZ88,$DZ$2&ROW($DZ88)),$DY88,$DY$2&ROW($DY88)),$DX88,$DX$2&ROW($DX88)),$DW88,$DW$2&ROW($DW88)),$DV88,$DV$2&ROW($DV88)),$DU88,$DU$2&ROW($DU88)),$DT88,$DT$2&ROW($DT88)),$DS88,$DS$2&ROW($DS88)))","v":0},{"$f":"IF(R88=\"\",0,\"X=\"&SUBSTITUTE(SUBSTITUTE(SUBSTITUTE(SUBSTITUTE(SUBSTITUTE(SUBSTITUTE(SUBSTITUTE(SUBSTITUTE(SUBSTITUTE(SUBSTITUTE(SUBSTITUTE(SUBSTITUTE(R88,$ED88,$ED$2&ROW($ED88)),$EC88,$EC$2&ROW($EC88)),$EB88,$EB$2&ROW($EB88)),$EA88,$EA$2&ROW($EA88)),$DZ88,$DZ$2&ROW($DZ88)),$DY88,$DY$2&ROW($DY88)),$DX88,$DX$2&ROW($DX88)),$DW88,$DW$2&ROW($DW88)),$DV88,$DV$2&ROW($DV88)),$DU88,$DU$2&ROW($DU88)),$DT88,$DT$2&ROW($DT88)),$DS88,$DS$2&ROW($DS88)))","v":0},{"$f":"IF(S88=\"\",0,\"X=\"&SUBSTITUTE(SUBSTITUTE(SUBSTITUTE(SUBSTITUTE(SUBSTITUTE(SUBSTITUTE(SUBSTITUTE(SUBSTITUTE(SUBSTITUTE(SUBSTITUTE(SUBSTITUTE(SUBSTITUTE(S88,$ED88,$ED$2&ROW($ED88)),$EC88,$EC$2&ROW($EC88)),$EB88,$EB$2&ROW($EB88)),$EA88,$EA$2&ROW($EA88)),$DZ88,$DZ$2&ROW($DZ88)),$DY88,$DY$2&ROW($DY88)),$DX88,$DX$2&ROW($DX88)),$DW88,$DW$2&ROW($DW88)),$DV88,$DV$2&ROW($DV88)),$DU88,$DU$2&ROW($DU88)),$DT88,$DT$2&ROW($DT88)),$DS88,$DS$2&ROW($DS88)))","v":0},{"$f":"IF(T88=\"\",0,\"X=\"&SUBSTITUTE(SUBSTITUTE(SUBSTITUTE(SUBSTITUTE(SUBSTITUTE(SUBSTITUTE(SUBSTITUTE(SUBSTITUTE(SUBSTITUTE(SUBSTITUTE(SUBSTITUTE(SUBSTITUTE(T88,$ED88,$ED$2&ROW($ED88)),$EC88,$EC$2&ROW($EC88)),$EB88,$EB$2&ROW($EB88)),$EA88,$EA$2&ROW($EA88)),$DZ88,$DZ$2&ROW($DZ88)),$DY88,$DY$2&ROW($DY88)),$DX88,$DX$2&ROW($DX88)),$DW88,$DW$2&ROW($DW88)),$DV88,$DV$2&ROW($DV88)),$DU88,$DU$2&ROW($DU88)),$DT88,$DT$2&ROW($DT88)),$DS88,$DS$2&ROW($DS88)))","v":0},{"$f":"IF(U88=\"\",0,\"X=\"&SUBSTITUTE(SUBSTITUTE(SUBSTITUTE(SUBSTITUTE(SUBSTITUTE(SUBSTITUTE(SUBSTITUTE(SUBSTITUTE(SUBSTITUTE(SUBSTITUTE(SUBSTITUTE(SUBSTITUTE(U88,$ED88,$ED$2&ROW($ED88)),$EC88,$EC$2&ROW($EC88)),$EB88,$EB$2&ROW($EB88)),$EA88,$EA$2&ROW($EA88)),$DZ88,$DZ$2&ROW($DZ88)),$DY88,$DY$2&ROW($DY88)),$DX88,$DX$2&ROW($DX88)),$DW88,$DW$2&ROW($DW88)),$DV88,$DV$2&ROW($DV88)),$DU88,$DU$2&ROW($DU88)),$DT88,$DT$2&ROW($DT88)),$DS88,$DS$2&ROW($DS88)))","v":0},{"$f":"IF(V88=\"\",0,\"X=\"&SUBSTITUTE(SUBSTITUTE(SUBSTITUTE(SUBSTITUTE(SUBSTITUTE(SUBSTITUTE(SUBSTITUTE(SUBSTITUTE(SUBSTITUTE(SUBSTITUTE(SUBSTITUTE(SUBSTITUTE(V88,$ED88,$ED$2&ROW($ED88)),$EC88,$EC$2&ROW($EC88)),$EB88,$EB$2&ROW($EB88)),$EA88,$EA$2&ROW($EA88)),$DZ88,$DZ$2&ROW($DZ88)),$DY88,$DY$2&ROW($DY88)),$DX88,$DX$2&ROW($DX88)),$DW88,$DW$2&ROW($DW88)),$DV88,$DV$2&ROW($DV88)),$DU88,$DU$2&ROW($DU88)),$DT88,$DT$2&ROW($DT88)),$DS88,$DS$2&ROW($DS88)))","v":0},{"$f":"IF(W88=\"\",0,\"X=\"&SUBSTITUTE(SUBSTITUTE(SUBSTITUTE(SUBSTITUTE(SUBSTITUTE(SUBSTITUTE(SUBSTITUTE(SUBSTITUTE(SUBSTITUTE(SUBSTITUTE(SUBSTITUTE(SUBSTITUTE(W88,$ED88,$ED$2&ROW($ED88)),$EC88,$EC$2&ROW($EC88)),$EB88,$EB$2&ROW($EB88)),$EA88,$EA$2&ROW($EA88)),$DZ88,$DZ$2&ROW($DZ88)),$DY88,$DY$2&ROW($DY88)),$DX88,$DX$2&ROW($DX88)),$DW88,$DW$2&ROW($DW88)),$DV88,$DV$2&ROW($DV88)),$DU88,$DU$2&ROW($DU88)),$DT88,$DT$2&ROW($DT88)),$DS88,$DS$2&ROW($DS88)))","v":"X=if(BA88<>1,0,AS88 * (AU88 * 1565 * 0.7 * (AW88-AY88)/40/100)/1000 * 10)"},{"$f":"IF(X88=\"\",0,\"X=\"&SUBSTITUTE(SUBSTITUTE(SUBSTITUTE(SUBSTITUTE(SUBSTITUTE(SUBSTITUTE(SUBSTITUTE(SUBSTITUTE(SUBSTITUTE(SUBSTITUTE(SUBSTITUTE(SUBSTITUTE(X88,$ED88,$ED$2&ROW($ED88)),$EC88,$EC$2&ROW($EC88)),$EB88,$EB$2&ROW($EB88)),$EA88,$EA$2&ROW($EA88)),$DZ88,$DZ$2&ROW($DZ88)),$DY88,$DY$2&ROW($DY88)),$DX88,$DX$2&ROW($DX88)),$DW88,$DW$2&ROW($DW88)),$DV88,$DV$2&ROW($DV88)),$DU88,$DU$2&ROW($DU88)),$DT88,$DT$2&ROW($DT88)),$DS88,$DS$2&ROW($DS88)))","v":0},{"$f":"IF(Y88=\"\",0,\"X=\"&SUBSTITUTE(SUBSTITUTE(SUBSTITUTE(SUBSTITUTE(SUBSTITUTE(SUBSTITUTE(SUBSTITUTE(SUBSTITUTE(SUBSTITUTE(SUBSTITUTE(SUBSTITUTE(SUBSTITUTE(Y88,$ED88,$ED$2&ROW($ED88)),$EC88,$EC$2&ROW($EC88)),$EB88,$EB$2&ROW($EB88)),$EA88,$EA$2&ROW($EA88)),$DZ88,$DZ$2&ROW($DZ88)),$DY88,$DY$2&ROW($DY88)),$DX88,$DX$2&ROW($DX88)),$DW88,$DW$2&ROW($DW88)),$DV88,$DV$2&ROW($DV88)),$DU88,$DU$2&ROW($DU88)),$DT88,$DT$2&ROW($DT88)),$DS88,$DS$2&ROW($DS88)))","v":0},{"$f":"IF(Z88=\"\",0,\"X=\"&SUBSTITUTE(SUBSTITUTE(SUBSTITUTE(SUBSTITUTE(SUBSTITUTE(SUBSTITUTE(SUBSTITUTE(SUBSTITUTE(SUBSTITUTE(SUBSTITUTE(SUBSTITUTE(SUBSTITUTE(Z88,$ED88,$ED$2&ROW($ED88)),$EC88,$EC$2&ROW($EC88)),$EB88,$EB$2&ROW($EB88)),$EA88,$EA$2&ROW($EA88)),$DZ88,$DZ$2&ROW($DZ88)),$DY88,$DY$2&ROW($DY88)),$DX88,$DX$2&ROW($DX88)),$DW88,$DW$2&ROW($DW88)),$DV88,$DV$2&ROW($DV88)),$DU88,$DU$2&ROW($DU88)),$DT88,$DT$2&ROW($DT88)),$DS88,$DS$2&ROW($DS88)))","v":0},{"$f":"IF(AA88=\"\",0,\"X=\"&SUBSTITUTE(SUBSTITUTE(SUBSTITUTE(SUBSTITUTE(SUBSTITUTE(SUBSTITUTE(SUBSTITUTE(SUBSTITUTE(SUBSTITUTE(SUBSTITUTE(SUBSTITUTE(SUBSTITUTE(AA88,$ED88,$ED$2&ROW($ED88)),$EC88,$EC$2&ROW($EC88)),$EB88,$EB$2&ROW($EB88)),$EA88,$EA$2&ROW($EA88)),$DZ88,$DZ$2&ROW($DZ88)),$DY88,$DY$2&ROW($DY88)),$DX88,$DX$2&ROW($DX88)),$DW88,$DW$2&ROW($DW88)),$DV88,$DV$2&ROW($DV88)),$DU88,$DU$2&ROW($DU88)),$DT88,$DT$2&ROW($DT88)),$DS88,$DS$2&ROW($DS88)))","v":0},{"$f":"IF(AB88=\"\",0,\"X=\"&SUBSTITUTE(SUBSTITUTE(SUBSTITUTE(SUBSTITUTE(SUBSTITUTE(SUBSTITUTE(SUBSTITUTE(SUBSTITUTE(SUBSTITUTE(SUBSTITUTE(SUBSTITUTE(SUBSTITUTE(AB88,$ED88,$ED$2&ROW($ED88)),$EC88,$EC$2&ROW($EC88)),$EB88,$EB$2&ROW($EB88)),$EA88,$EA$2&ROW($EA88)),$DZ88,$DZ$2&ROW($DZ88)),$DY88,$DY$2&ROW($DY88)),$DX88,$DX$2&ROW($DX88)),$DW88,$DW$2&ROW($DW88)),$DV88,$DV$2&ROW($DV88)),$DU88,$DU$2&ROW($DU88)),$DT88,$DT$2&ROW($DT88)),$DS88,$DS$2&ROW($DS88)))","v":0},null,null,"{Factor:WinterCF}","{Factor:SummerCF}",{"$f":"IFERROR(INDEX($EG88:$IV88,MATCH(0,COUNTIF($DR88:DT88,$EG88:$IV88),0)),\"\")","v":"{Measure:Quantity}"},{"$f":"IFERROR(INDEX($EG88:$IV88,MATCH(0,COUNTIF($DR88:DU88,$EG88:$IV88),0)),\"\")","v":"{Capacity (MBTUH)}"},{"$f":"IFERROR(INDEX($EG88:$IV88,MATCH(0,COUNTIF($DR88:DV88,$EG88:$IV88),0)),\"\")","v":"{Flue Gas Temperature Before (oF)}"},{"$f":"IFERROR(INDEX($EG88:$IV88,MATCH(0,COUNTIF($DR88:DW88,$EG88:$IV88),0)),\"\")","v":"{Flue Gas Temperature After (oF)}"},{"$f":"IFERROR(INDEX($EG88:$IV88,MATCH(0,COUNTIF($DR88:DX88,$EG88:$IV88),0)),\"\")","v":"{Existing Fuel}"},{"$f":"IFERROR(INDEX($EG88:$IV88,MATCH(0,COUNTIF($DR88:DY88,$EG88:$IV88),0)),\"\")","v":""},{"$f":"IFERROR(INDEX($EG88:$IV88,MATCH(0,COUNTIF($DR88:DZ88,$EG88:$IV88),0)),\"\")","v":""},{"$f":"IFERROR(INDEX($EG88:$IV88,MATCH(0,COUNTIF($DR88:EA88,$EG88:$IV88),0)),\"\")","v":""},{"$f":"IFERROR(INDEX($EG88:$IV88,MATCH(0,COUNTIF($DR88:EB88,$EG88:$IV88),0)),\"\")","v":""},{"$f":"IFERROR(INDEX($EG88:$IV88,MATCH(0,COUNTIF($DR88:EC88,$EG88:$IV88),0)),\"\")","v":""},null,null,{"$f":"IFERROR(MID($G88,FIND(CHAR(160),SUBSTITUTE($G88,\"{\",CHAR(160),EG$1)),FIND(CHAR(160),SUBSTITUTE($G88,\"}\",CHAR(160),EG$1))-FIND(CHAR(160),SUBSTITUTE($G88,\"{\",CHAR(160),EG$1))+1),\"\")","v":"{Measure:Quantity}"},{"$f":"IFERROR(MID($G88,FIND(CHAR(160),SUBSTITUTE($G88,\"{\",CHAR(160),EH$1)),FIND(CHAR(160),SUBSTITUTE($G88,\"}\",CHAR(160),EH$1))-FIND(CHAR(160),SUBSTITUTE($G88,\"{\",CHAR(160),EH$1))+1),\"\")","v":""},{"$f":"IFERROR(MID($G88,FIND(CHAR(160),SUBSTITUTE($G88,\"{\",CHAR(160),EI$1)),FIND(CHAR(160),SUBSTITUTE($G88,\"}\",CHAR(160),EI$1))-FIND(CHAR(160),SUBSTITUTE($G88,\"{\",CHAR(160),EI$1))+1),\"\")","v":""},{"$f":"IFERROR(MID($G88,FIND(CHAR(160),SUBSTITUTE($G88,\"{\",CHAR(160),EJ$1)),FIND(CHAR(160),SUBSTITUTE($G88,\"}\",CHAR(160),EJ$1))-FIND(CHAR(160),SUBSTITUTE($G88,\"{\",CHAR(160),EJ$1))+1),\"\")","v":""},{"$f":"IFERROR(MID($G88,FIND(CHAR(160),SUBSTITUTE($G88,\"{\",CHAR(160),EK$1)),FIND(CHAR(160),SUBSTITUTE($G88,\"}\",CHAR(160),EK$1))-FIND(CHAR(160),SUBSTITUTE($G88,\"{\",CHAR(160),EK$1))+1),\"\")","v":""},{"$f":"IFERROR(MID($G88,FIND(CHAR(160),SUBSTITUTE($G88,\"{\",CHAR(160),EL$1)),FIND(CHAR(160),SUBSTITUTE($G88,\"}\",CHAR(160),EL$1))-FIND(CHAR(160),SUBSTITUTE($G88,\"{\",CHAR(160),EL$1))+1),\"\")","v":""},{"$f":"IFERROR(MID($G88,FIND(CHAR(160),SUBSTITUTE($G88,\"{\",CHAR(160),EM$1)),FIND(CHAR(160),SUBSTITUTE($G88,\"}\",CHAR(160),EM$1))-FIND(CHAR(160),SUBSTITUTE($G88,\"{\",CHAR(160),EM$1))+1),\"\")","v":""},{"$f":"IFERROR(MID($G88,FIND(CHAR(160),SUBSTITUTE($G88,\"{\",CHAR(160),EN$1)),FIND(CHAR(160),SUBSTITUTE($G88,\"}\",CHAR(160),EN$1))-FIND(CHAR(160),SUBSTITUTE($G88,\"{\",CHAR(160),EN$1))+1),\"\")","v":""},{"$f":"IFERROR(MID($G88,FIND(CHAR(160),SUBSTITUTE($G88,\"{\",CHAR(160),EO$1)),FIND(CHAR(160),SUBSTITUTE($G88,\"}\",CHAR(160),EO$1))-FIND(CHAR(160),SUBSTITUTE($G88,\"{\",CHAR(160),EO$1))+1),\"\")","v":""},{"$f":"IFERROR(MID($G88,FIND(CHAR(160),SUBSTITUTE($G88,\"{\",CHAR(160),EP$1)),FIND(CHAR(160),SUBSTITUTE($G88,\"}\",CHAR(160),EP$1))-FIND(CHAR(160),SUBSTITUTE($G88,\"{\",CHAR(160),EP$1))+1),\"\")","v":""},{"$f":"IFERROR(MID($J88,FIND(CHAR(160),SUBSTITUTE($J88,\"{\",CHAR(160),EQ$1)),FIND(CHAR(160),SUBSTITUTE($J88,\"}\",CHAR(160),EQ$1))-FIND(CHAR(160),SUBSTITUTE($J88,\"{\",CHAR(160),EQ$1))+1),\"\")","v":"{Measure:Quantity}"},{"$f":"IFERROR(MID($J88,FIND(CHAR(160),SUBSTITUTE($J88,\"{\",CHAR(160),ER$1)),FIND(CHAR(160),SUBSTITUTE($J88,\"}\",CHAR(160),ER$1))-FIND(CHAR(160),SUBSTITUTE($J88,\"{\",CHAR(160),ER$1))+1),\"\")","v":""},{"$f":"IFERROR(MID($J88,FIND(CHAR(160),SUBSTITUTE($J88,\"{\",CHAR(160),ES$1)),FIND(CHAR(160),SUBSTITUTE($J88,\"}\",CHAR(160),ES$1))-FIND(CHAR(160),SUBSTITUTE($J88,\"{\",CHAR(160),ES$1))+1),\"\")","v":""},{"$f":"IFERROR(MID($J88,FIND(CHAR(160),SUBSTITUTE($J88,\"{\",CHAR(160),ET$1)),FIND(CHAR(160),SUBSTITUTE($J88,\"}\",CHAR(160),ET$1))-FIND(CHAR(160),SUBSTITUTE($J88,\"{\",CHAR(160),ET$1))+1),\"\")","v":""},{"$f":"IFERROR(MID($J88,FIND(CHAR(160),SUBSTITUTE($J88,\"{\",CHAR(160),EU$1)),FIND(CHAR(160),SUBSTITUTE($J88,\"}\",CHAR(160),EU$1))-FIND(CHAR(160),SUBSTITUTE($J88,\"{\",CHAR(160),EU$1))+1),\"\")","v":""},{"$f":"IFERROR(MID($J88,FIND(CHAR(160),SUBSTITUTE($J88,\"{\",CHAR(160),EV$1)),FIND(CHAR(160),SUBSTITUTE($J88,\"}\",CHAR(160),EV$1))-FIND(CHAR(160),SUBSTITUTE($J88,\"{\",CHAR(160),EV$1))+1),\"\")","v":""},{"$f":"IFERROR(MID($J88,FIND(CHAR(160),SUBSTITUTE($J88,\"{\",CHAR(160),EW$1)),FIND(CHAR(160),SUBSTITUTE($J88,\"}\",CHAR(160),EW$1))-FIND(CHAR(160),SUBSTITUTE($J88,\"{\",CHAR(160),EW$1))+1),\"\")","v":""},{"$f":"IFERROR(MID($J88,FIND(CHAR(160),SUBSTITUTE($J88,\"{\",CHAR(160),EX$1)),FIND(CHAR(160),SUBSTITUTE($J88,\"}\",CHAR(160),EX$1))-FIND(CHAR(160),SUBSTITUTE($J88,\"{\",CHAR(160),EX$1))+1),\"\")","v":""},{"$f":"IFERROR(MID($J88,FIND(CHAR(160),SUBSTITUTE($J88,\"{\",CHAR(160),EY$1)),FIND(CHAR(160),SUBSTITUTE($J88,\"}\",CHAR(160),EY$1))-FIND(CHAR(160),SUBSTITUTE($J88,\"{\",CHAR(160),EY$1))+1),\"\")","v":""},{"$f":"IFERROR(MID($J88,FIND(CHAR(160),SUBSTITUTE($J88,\"{\",CHAR(160),EZ$1)),FIND(CHAR(160),SUBSTITUTE($J88,\"}\",CHAR(160),EZ$1))-FIND(CHAR(160),SUBSTITUTE($J88,\"{\",CHAR(160),EZ$1))+1),\"\")","v":""},{"$f":"IFERROR(MID($J88,FIND(CHAR(160),SUBSTITUTE($J88,\"{\",CHAR(160),FA$1)),FIND(CHAR(160),SUBSTITUTE($J88,\"}\",CHAR(160),FA$1))-FIND(CHAR(160),SUBSTITUTE($J88,\"{\",CHAR(160),FA$1))+1),\"\")","v":"{Measure:Quantity}"},{"$f":"IFERROR(MID($J88,FIND(CHAR(160),SUBSTITUTE($J88,\"{\",CHAR(160),FB$1)),FIND(CHAR(160),SUBSTITUTE($J88,\"}\",CHAR(160),FB$1))-FIND(CHAR(160),SUBSTITUTE($J88,\"{\",CHAR(160),FB$1))+1),\"\")","v":""},{"$f":"IFERROR(MID($O88,FIND(CHAR(160),SUBSTITUTE($O88,\"{\",CHAR(160),FC$1)),FIND(CHAR(160),SUBSTITUTE($O88,\"}\",CHAR(160),FC$1))-FIND(CHAR(160),SUBSTITUTE($O88,\"{\",CHAR(160),FC$1))+1),\"\")","v":""},{"$f":"IFERROR(MID($O88,FIND(CHAR(160),SUBSTITUTE($O88,\"{\",CHAR(160),FD$1)),FIND(CHAR(160),SUBSTITUTE($O88,\"}\",CHAR(160),FD$1))-FIND(CHAR(160),SUBSTITUTE($O88,\"{\",CHAR(160),FD$1))+1),\"\")","v":""},{"$f":"IFERROR(MID($O88,FIND(CHAR(160),SUBSTITUTE($O88,\"{\",CHAR(160),FE$1)),FIND(CHAR(160),SUBSTITUTE($O88,\"}\",CHAR(160),FE$1))-FIND(CHAR(160),SUBSTITUTE($O88,\"{\",CHAR(160),FE$1))+1),\"\")","v":""},{"$f":"IFERROR(MID($O88,FIND(CHAR(160),SUBSTITUTE($O88,\"{\",CHAR(160),FF$1)),FIND(CHAR(160),SUBSTITUTE($O88,\"}\",CHAR(160),FF$1))-FIND(CHAR(160),SUBSTITUTE($O88,\"{\",CHAR(160),FF$1))+1),\"\")","v":""},{"$f":"IFERROR(MID($O88,FIND(CHAR(160),SUBSTITUTE($O88,\"{\",CHAR(160),FG$1)),FIND(CHAR(160),SUBSTITUTE($O88,\"}\",CHAR(160),FG$1))-FIND(CHAR(160),SUBSTITUTE($O88,\"{\",CHAR(160),FG$1))+1),\"\")","v":""},{"$f":"IFERROR(MID($O88,FIND(CHAR(160),SUBSTITUTE($O88,\"{\",CHAR(160),FH$1)),FIND(CHAR(160),SUBSTITUTE($O88,\"}\",CHAR(160),FH$1))-FIND(CHAR(160),SUBSTITUTE($O88,\"{\",CHAR(160),FH$1))+1),\"\")","v":""},{"$f":"IFERROR(MID($O88,FIND(CHAR(160),SUBSTITUTE($O88,\"{\",CHAR(160),FI$1)),FIND(CHAR(160),SUBSTITUTE($O88,\"}\",CHAR(160),FI$1))-FIND(CHAR(160),SUBSTITUTE($O88,\"{\",CHAR(160),FI$1))+1),\"\")","v":""},{"$f":"IFERROR(MID($O88,FIND(CHAR(160),SUBSTITUTE($O88,\"{\",CHAR(160),FJ$1)),FIND(CHAR(160),SUBSTITUTE($O88,\"}\",CHAR(160),FJ$1))-FIND(CHAR(160),SUBSTITUTE($O88,\"{\",CHAR(160),FJ$1))+1),\"\")","v":""},{"$f":"IFERROR(MID($O88,FIND(CHAR(160),SUBSTITUTE($O88,\"{\",CHAR(160),FK$1)),FIND(CHAR(160),SUBSTITUTE($O88,\"}\",CHAR(160),FK$1))-FIND(CHAR(160),SUBSTITUTE($O88,\"{\",CHAR(160),FK$1))+1),\"\")","v":""},{"$f":"IFERROR(MID($O88,FIND(CHAR(160),SUBSTITUTE($O88,\"{\",CHAR(160),FL$1)),FIND(CHAR(160),SUBSTITUTE($O88,\"}\",CHAR(160),FL$1))-FIND(CHAR(160),SUBSTITUTE($O88,\"{\",CHAR(160),FL$1))+1),\"\")","v":""},{"$f":"IFERROR(MID($R88,FIND(CHAR(160),SUBSTITUTE($R88,\"{\",CHAR(160),FM$1)),FIND(CHAR(160),SUBSTITUTE($R88,\"}\",CHAR(160),FM$1))-FIND(CHAR(160),SUBSTITUTE($R88,\"{\",CHAR(160),FM$1))+1),\"\")","v":""},{"$f":"IFERROR(MID($R88,FIND(CHAR(160),SUBSTITUTE($R88,\"{\",CHAR(160),FN$1)),FIND(CHAR(160),SUBSTITUTE($R88,\"}\",CHAR(160),FN$1))-FIND(CHAR(160),SUBSTITUTE($R88,\"{\",CHAR(160),FN$1))+1),\"\")","v":""},{"$f":"IFERROR(MID($R88,FIND(CHAR(160),SUBSTITUTE($R88,\"{\",CHAR(160),FO$1)),FIND(CHAR(160),SUBSTITUTE($R88,\"}\",CHAR(160),FO$1))-FIND(CHAR(160),SUBSTITUTE($R88,\"{\",CHAR(160),FO$1))+1),\"\")","v":""},{"$f":"IFERROR(MID($R88,FIND(CHAR(160),SUBSTITUTE($R88,\"{\",CHAR(160),FP$1)),FIND(CHAR(160),SUBSTITUTE($R88,\"}\",CHAR(160),FP$1))-FIND(CHAR(160),SUBSTITUTE($R88,\"{\",CHAR(160),FP$1))+1),\"\")","v":""},{"$f":"IFERROR(MID($R88,FIND(CHAR(160),SUBSTITUTE($R88,\"{\",CHAR(160),FQ$1)),FIND(CHAR(160),SUBSTITUTE($R88,\"}\",CHAR(160),FQ$1))-FIND(CHAR(160),SUBSTITUTE($R88,\"{\",CHAR(160),FQ$1))+1),\"\")","v":""},{"$f":"IFERROR(MID($R88,FIND(CHAR(160),SUBSTITUTE($R88,\"{\",CHAR(160),FR$1)),FIND(CHAR(160),SUBSTITUTE($R88,\"}\",CHAR(160),FR$1))-FIND(CHAR(160),SUBSTITUTE($R88,\"{\",CHAR(160),FR$1))+1),\"\")","v":""},{"$f":"IFERROR(MID($R88,FIND(CHAR(160),SUBSTITUTE($R88,\"{\",CHAR(160),FS$1)),FIND(CHAR(160),SUBSTITUTE($R88,\"}\",CHAR(160),FS$1))-FIND(CHAR(160),SUBSTITUTE($R88,\"{\",CHAR(160),FS$1))+1),\"\")","v":""},{"$f":"IFERROR(MID($R88,FIND(CHAR(160),SUBSTITUTE($R88,\"{\",CHAR(160),FT$1)),FIND(CHAR(160),SUBSTITUTE($R88,\"}\",CHAR(160),FT$1))-FIND(CHAR(160),SUBSTITUTE($R88,\"{\",CHAR(160),FT$1))+1),\"\")","v":""},{"$f":"IFERROR(MID($R88,FIND(CHAR(160),SUBSTITUTE($R88,\"{\",CHAR(160),FU$1)),FIND(CHAR(160),SUBSTITUTE($R88,\"}\",CHAR(160),FU$1))-FIND(CHAR(160),SUBSTITUTE($R88,\"{\",CHAR(160),FU$1))+1),\"\")","v":""},{"$f":"IFERROR(MID($R88,FIND(CHAR(160),SUBSTITUTE($R88,\"{\",CHAR(160),FV$1)),FIND(CHAR(160),SUBSTITUTE($R88,\"}\",CHAR(160),FV$1))-FIND(CHAR(160),SUBSTITUTE($R88,\"{\",CHAR(160),FV$1))+1),\"\")","v":""},{"$f":"IFERROR(MID($U88,FIND(CHAR(160),SUBSTITUTE($U88,\"{\",CHAR(160),FW$1)),FIND(CHAR(160),SUBSTITUTE($U88,\"}\",CHAR(160),FW$1))-FIND(CHAR(160),SUBSTITUTE($U88,\"{\",CHAR(160),FW$1))+1),\"\")","v":""},{"$f":"IFERROR(MID($U88,FIND(CHAR(160),SUBSTITUTE($U88,\"{\",CHAR(160),FX$1)),FIND(CHAR(160),SUBSTITUTE($U88,\"}\",CHAR(160),FX$1))-FIND(CHAR(160),SUBSTITUTE($U88,\"{\",CHAR(160),FX$1))+1),\"\")","v":""},{"$f":"IFERROR(MID($U88,FIND(CHAR(160),SUBSTITUTE($U88,\"{\",CHAR(160),FY$1)),FIND(CHAR(160),SUBSTITUTE($U88,\"}\",CHAR(160),FY$1))-FIND(CHAR(160),SUBSTITUTE($U88,\"{\",CHAR(160),FY$1))+1),\"\")","v":""},{"$f":"IFERROR(MID($U88,FIND(CHAR(160),SUBSTITUTE($U88,\"{\",CHAR(160),FZ$1)),FIND(CHAR(160),SUBSTITUTE($U88,\"}\",CHAR(160),FZ$1))-FIND(CHAR(160),SUBSTITUTE($U88,\"{\",CHAR(160),FZ$1))+1),\"\")","v":""},{"$f":"IFERROR(MID($U88,FIND(CHAR(160),SUBSTITUTE($U88,\"{\",CHAR(160),GA$1)),FIND(CHAR(160),SUBSTITUTE($U88,\"}\",CHAR(160),GA$1))-FIND(CHAR(160),SUBSTITUTE($U88,\"{\",CHAR(160),GA$1))+1),\"\")","v":""},{"$f":"IFERROR(MID($U88,FIND(CHAR(160),SUBSTITUTE($U88,\"{\",CHAR(160),GB$1)),FIND(CHAR(160),SUBSTITUTE($U88,\"}\",CHAR(160),GB$1))-FIND(CHAR(160),SUBSTITUTE($U88,\"{\",CHAR(160),GB$1))+1),\"\")","v":""},{"$f":"IFERROR(MID($U88,FIND(CHAR(160),SUBSTITUTE($U88,\"{\",CHAR(160),GC$1)),FIND(CHAR(160),SUBSTITUTE($U88,\"}\",CHAR(160),GC$1))-FIND(CHAR(160),SUBSTITUTE($U88,\"{\",CHAR(160),GC$1))+1),\"\")","v":""},{"$f":"IFERROR(MID($U88,FIND(CHAR(160),SUBSTITUTE($U88,\"{\",CHAR(160),GD$1)),FIND(CHAR(160),SUBSTITUTE($U88,\"}\",CHAR(160),GD$1))-FIND(CHAR(160),SUBSTITUTE($U88,\"{\",CHAR(160),GD$1))+1),\"\")","v":""},{"$f":"IFERROR(MID($U88,FIND(CHAR(160),SUBSTITUTE($U88,\"{\",CHAR(160),GE$1)),FIND(CHAR(160),SUBSTITUTE($U88,\"}\",CHAR(160),GE$1))-FIND(CHAR(160),SUBSTITUTE($U88,\"{\",CHAR(160),GE$1))+1),\"\")","v":""},{"$f":"IFERROR(MID($U88,FIND(CHAR(160),SUBSTITUTE($U88,\"{\",CHAR(160),GF$1)),FIND(CHAR(160),SUBSTITUTE($U88,\"}\",CHAR(160),GF$1))-FIND(CHAR(160),SUBSTITUTE($U88,\"{\",CHAR(160),GF$1))+1),\"\")","v":""},{"$f":"IFERROR(MID($V88,FIND(CHAR(160),SUBSTITUTE($V88,\"{\",CHAR(160),GG$1)),FIND(CHAR(160),SUBSTITUTE($V88,\"}\",CHAR(160),GG$1))-FIND(CHAR(160),SUBSTITUTE($V88,\"{\",CHAR(160),GG$1))+1),\"\")","v":""},{"$f":"IFERROR(MID($V88,FIND(CHAR(160),SUBSTITUTE($V88,\"{\",CHAR(160),GH$1)),FIND(CHAR(160),SUBSTITUTE($V88,\"}\",CHAR(160),GH$1))-FIND(CHAR(160),SUBSTITUTE($V88,\"{\",CHAR(160),GH$1))+1),\"\")","v":""},{"$f":"IFERROR(MID($V88,FIND(CHAR(160),SUBSTITUTE($V88,\"{\",CHAR(160),GI$1)),FIND(CHAR(160),SUBSTITUTE($V88,\"}\",CHAR(160),GI$1))-FIND(CHAR(160),SUBSTITUTE($V88,\"{\",CHAR(160),GI$1))+1),\"\")","v":""},{"$f":"IFERROR(MID($V88,FIND(CHAR(160),SUBSTITUTE($V88,\"{\",CHAR(160),GJ$1)),FIND(CHAR(160),SUBSTITUTE($V88,\"}\",CHAR(160),GJ$1))-FIND(CHAR(160),SUBSTITUTE($V88,\"{\",CHAR(160),GJ$1))+1),\"\")","v":""},{"$f":"IFERROR(MID($V88,FIND(CHAR(160),SUBSTITUTE($V88,\"{\",CHAR(160),GK$1)),FIND(CHAR(160),SUBSTITUTE($V88,\"}\",CHAR(160),GK$1))-FIND(CHAR(160),SUBSTITUTE($V88,\"{\",CHAR(160),GK$1))+1),\"\")","v":""},{"$f":"IFERROR(MID($V88,FIND(CHAR(160),SUBSTITUTE($V88,\"{\",CHAR(160),GL$1)),FIND(CHAR(160),SUBSTITUTE($V88,\"}\",CHAR(160),GL$1))-FIND(CHAR(160),SUBSTITUTE($V88,\"{\",CHAR(160),GL$1))+1),\"\")","v":""},{"$f":"IFERROR(MID($V88,FIND(CHAR(160),SUBSTITUTE($V88,\"{\",CHAR(160),GM$1)),FIND(CHAR(160),SUBSTITUTE($V88,\"}\",CHAR(160),GM$1))-FIND(CHAR(160),SUBSTITUTE($V88,\"{\",CHAR(160),GM$1))+1),\"\")","v":""},{"$f":"IFERROR(MID($V88,FIND(CHAR(160),SUBSTITUTE($V88,\"{\",CHAR(160),GN$1)),FIND(CHAR(160),SUBSTITUTE($V88,\"}\",CHAR(160),GN$1))-FIND(CHAR(160),SUBSTITUTE($V88,\"{\",CHAR(160),GN$1))+1),\"\")","v":""},{"$f":"IFERROR(MID($V88,FIND(CHAR(160),SUBSTITUTE($V88,\"{\",CHAR(160),GO$1)),FIND(CHAR(160),SUBSTITUTE($V88,\"}\",CHAR(160),GO$1))-FIND(CHAR(160),SUBSTITUTE($V88,\"{\",CHAR(160),GO$1))+1),\"\")","v":""},{"$f":"IFERROR(MID($V88,FIND(CHAR(160),SUBSTITUTE($V88,\"{\",CHAR(160),GP$1)),FIND(CHAR(160),SUBSTITUTE($V88,\"}\",CHAR(160),GP$1))-FIND(CHAR(160),SUBSTITUTE($V88,\"{\",CHAR(160),GP$1))+1),\"\")","v":""},{"$f":"IFERROR(MID($W88,FIND(CHAR(160),SUBSTITUTE($W88,\"{\",CHAR(160),GQ$1)),FIND(CHAR(160),SUBSTITUTE($W88,\"}\",CHAR(160),GQ$1))-FIND(CHAR(160),SUBSTITUTE($W88,\"{\",CHAR(160),GQ$1))+1),\"\")","v":"{Capacity (MBTUH)}"},{"$f":"IFERROR(MID($W88,FIND(CHAR(160),SUBSTITUTE($W88,\"{\",CHAR(160),GR$1)),FIND(CHAR(160),SUBSTITUTE($W88,\"}\",CHAR(160),GR$1))-FIND(CHAR(160),SUBSTITUTE($W88,\"{\",CHAR(160),GR$1))+1),\"\")","v":"{Flue Gas Temperature Before (oF)}"},{"$f":"IFERROR(MID($W88,FIND(CHAR(160),SUBSTITUTE($W88,\"{\",CHAR(160),GS$1)),FIND(CHAR(160),SUBSTITUTE($W88,\"}\",CHAR(160),GS$1))-FIND(CHAR(160),SUBSTITUTE($W88,\"{\",CHAR(160),GS$1))+1),\"\")","v":"{Flue Gas Temperature After (oF)}"},{"$f":"IFERROR(MID($W88,FIND(CHAR(160),SUBSTITUTE($W88,\"{\",CHAR(160),GT$1)),FIND(CHAR(160),SUBSTITUTE($W88,\"}\",CHAR(160),GT$1))-FIND(CHAR(160),SUBSTITUTE($W88,\"{\",CHAR(160),GT$1))+1),\"\")","v":""},{"$f":"IFERROR(MID($W88,FIND(CHAR(160),SUBSTITUTE($W88,\"{\",CHAR(160),GU$1)),FIND(CHAR(160),SUBSTITUTE($W88,\"}\",CHAR(160),GU$1))-FIND(CHAR(160),SUBSTITUTE($W88,\"{\",CHAR(160),GU$1))+1),\"\")","v":""},{"$f":"IFERROR(MID($W88,FIND(CHAR(160),SUBSTITUTE($W88,\"{\",CHAR(160),GV$1)),FIND(CHAR(160),SUBSTITUTE($W88,\"}\",CHAR(160),GV$1))-FIND(CHAR(160),SUBSTITUTE($W88,\"{\",CHAR(160),GV$1))+1),\"\")","v":""},{"$f":"IFERROR(MID($W88,FIND(CHAR(160),SUBSTITUTE($W88,\"{\",CHAR(160),GW$1)),FIND(CHAR(160),SUBSTITUTE($W88,\"}\",CHAR(160),GW$1))-FIND(CHAR(160),SUBSTITUTE($W88,\"{\",CHAR(160),GW$1))+1),\"\")","v":""},{"$f":"IFERROR(MID($W88,FIND(CHAR(160),SUBSTITUTE($W88,\"{\",CHAR(160),GX$1)),FIND(CHAR(160),SUBSTITUTE($W88,\"}\",CHAR(160),GX$1))-FIND(CHAR(160),SUBSTITUTE($W88,\"{\",CHAR(160),GX$1))+1),\"\")","v":""},{"$f":"IFERROR(MID($W88,FIND(CHAR(160),SUBSTITUTE($W88,\"{\",CHAR(160),GY$1)),FIND(CHAR(160),SUBSTITUTE($W88,\"}\",CHAR(160),GY$1))-FIND(CHAR(160),SUBSTITUTE($W88,\"{\",CHAR(160),GY$1))+1),\"\")","v":"{Existing Fuel}"},{"$f":"IFERROR(MID($W88,FIND(CHAR(160),SUBSTITUTE($W88,\"{\",CHAR(160),GZ$1)),FIND(CHAR(160),SUBSTITUTE($W88,\"}\",CHAR(160),GZ$1))-FIND(CHAR(160),SUBSTITUTE($W88,\"{\",CHAR(160),GZ$1))+1),\"\")","v":"{Measure:Quantity}"},{"$f":"IFERROR(MID($X88,FIND(CHAR(160),SUBSTITUTE($X88,\"{\",CHAR(160),HA$1)),FIND(CHAR(160),SUBSTITUTE($X88,\"}\",CHAR(160),HA$1))-FIND(CHAR(160),SUBSTITUTE($X88,\"{\",CHAR(160),HA$1))+1),\"\")","v":""},{"$f":"IFERROR(MID($X88,FIND(CHAR(160),SUBSTITUTE($X88,\"{\",CHAR(160),HB$1)),FIND(CHAR(160),SUBSTITUTE($X88,\"}\",CHAR(160),HB$1))-FIND(CHAR(160),SUBSTITUTE($X88,\"{\",CHAR(160),HB$1))+1),\"\")","v":""},{"$f":"IFERROR(MID($X88,FIND(CHAR(160),SUBSTITUTE($X88,\"{\",CHAR(160),HC$1)),FIND(CHAR(160),SUBSTITUTE($X88,\"}\",CHAR(160),HC$1))-FIND(CHAR(160),SUBSTITUTE($X88,\"{\",CHAR(160),HC$1))+1),\"\")","v":""},{"$f":"IFERROR(MID($X88,FIND(CHAR(160),SUBSTITUTE($X88,\"{\",CHAR(160),HD$1)),FIND(CHAR(160),SUBSTITUTE($X88,\"}\",CHAR(160),HD$1))-FIND(CHAR(160),SUBSTITUTE($X88,\"{\",CHAR(160),HD$1))+1),\"\")","v":""},{"$f":"IFERROR(MID($X88,FIND(CHAR(160),SUBSTITUTE($X88,\"{\",CHAR(160),HE$1)),FIND(CHAR(160),SUBSTITUTE($X88,\"}\",CHAR(160),HE$1))-FIND(CHAR(160),SUBSTITUTE($X88,\"{\",CHAR(160),HE$1))+1),\"\")","v":""},{"$f":"IFERROR(MID($X88,FIND(CHAR(160),SUBSTITUTE($X88,\"{\",CHAR(160),HF$1)),FIND(CHAR(160),SUBSTITUTE($X88,\"}\",CHAR(160),HF$1))-FIND(CHAR(160),SUBSTITUTE($X88,\"{\",CHAR(160),HF$1))+1),\"\")","v":""},{"$f":"IFERROR(MID($X88,FIND(CHAR(160),SUBSTITUTE($X88,\"{\",CHAR(160),HG$1)),FIND(CHAR(160),SUBSTITUTE($X88,\"}\",CHAR(160),HG$1))-FIND(CHAR(160),SUBSTITUTE($X88,\"{\",CHAR(160),HG$1))+1),\"\")","v":""},{"$f":"IFERROR(MID($X88,FIND(CHAR(160),SUBSTITUTE($X88,\"{\",CHAR(160),HH$1)),FIND(CHAR(160),SUBSTITUTE($X88,\"}\",CHAR(160),HH$1))-FIND(CHAR(160),SUBSTITUTE($X88,\"{\",CHAR(160),HH$1))+1),\"\")","v":""},{"$f":"IFERROR(MID($X88,FIND(CHAR(160),SUBSTITUTE($X88,\"{\",CHAR(160),HI$1)),FIND(CHAR(160),SUBSTITUTE($X88,\"}\",CHAR(160),HI$1))-FIND(CHAR(160),SUBSTITUTE($X88,\"{\",CHAR(160),HI$1))+1),\"\")","v":""},{"$f":"IFERROR(MID($X88,FIND(CHAR(160),SUBSTITUTE($X88,\"{\",CHAR(160),HJ$1)),FIND(CHAR(160),SUBSTITUTE($X88,\"}\",CHAR(160),HJ$1))-FIND(CHAR(160),SUBSTITUTE($X88,\"{\",CHAR(160),HJ$1))+1),\"\")","v":""},{"$f":"IFERROR(MID($Y88,FIND(CHAR(160),SUBSTITUTE($Y88,\"{\",CHAR(160),HK$1)),FIND(CHAR(160),SUBSTITUTE($Y88,\"}\",CHAR(160),HK$1))-FIND(CHAR(160),SUBSTITUTE($Y88,\"{\",CHAR(160),HK$1))+1),\"\")","v":""},{"$f":"IFERROR(MID($Y88,FIND(CHAR(160),SUBSTITUTE($Y88,\"{\",CHAR(160),HL$1)),FIND(CHAR(160),SUBSTITUTE($Y88,\"}\",CHAR(160),HL$1))-FIND(CHAR(160),SUBSTITUTE($Y88,\"{\",CHAR(160),HL$1))+1),\"\")","v":""},{"$f":"IFERROR(MID($Y88,FIND(CHAR(160),SUBSTITUTE($Y88,\"{\",CHAR(160),HM$1)),FIND(CHAR(160),SUBSTITUTE($Y88,\"}\",CHAR(160),HM$1))-FIND(CHAR(160),SUBSTITUTE($Y88,\"{\",CHAR(160),HM$1))+1),\"\")","v":""},{"$f":"IFERROR(MID($Y88,FIND(CHAR(160),SUBSTITUTE($Y88,\"{\",CHAR(160),HN$1)),FIND(CHAR(160),SUBSTITUTE($Y88,\"}\",CHAR(160),HN$1))-FIND(CHAR(160),SUBSTITUTE($Y88,\"{\",CHAR(160),HN$1))+1),\"\")","v":""},{"$f":"IFERROR(MID($Y88,FIND(CHAR(160),SUBSTITUTE($Y88,\"{\",CHAR(160),HO$1)),FIND(CHAR(160),SUBSTITUTE($Y88,\"}\",CHAR(160),HO$1))-FIND(CHAR(160),SUBSTITUTE($Y88,\"{\",CHAR(160),HO$1))+1),\"\")","v":""},{"$f":"IFERROR(MID($Y88,FIND(CHAR(160),SUBSTITUTE($Y88,\"{\",CHAR(160),HP$1)),FIND(CHAR(160),SUBSTITUTE($Y88,\"}\",CHAR(160),HP$1))-FIND(CHAR(160),SUBSTITUTE($Y88,\"{\",CHAR(160),HP$1))+1),\"\")","v":""},{"$f":"IFERROR(MID($Y88,FIND(CHAR(160),SUBSTITUTE($Y88,\"{\",CHAR(160),HQ$1)),FIND(CHAR(160),SUBSTITUTE($Y88,\"}\",CHAR(160),HQ$1))-FIND(CHAR(160),SUBSTITUTE($Y88,\"{\",CHAR(160),HQ$1))+1),\"\")","v":""},{"$f":"IFERROR(MID($Y88,FIND(CHAR(160),SUBSTITUTE($Y88,\"{\",CHAR(160),HR$1)),FIND(CHAR(160),SUBSTITUTE($Y88,\"}\",CHAR(160),HR$1))-FIND(CHAR(160),SUBSTITUTE($Y88,\"{\",CHAR(160),HR$1))+1),\"\")","v":""},{"$f":"IFERROR(MID($Y88,FIND(CHAR(160),SUBSTITUTE($Y88,\"{\",CHAR(160),HS$1)),FIND(CHAR(160),SUBSTITUTE($Y88,\"}\",CHAR(160),HS$1))-FIND(CHAR(160),SUBSTITUTE($Y88,\"{\",CHAR(160),HS$1))+1),\"\")","v":""},{"$f":"IFERROR(MID($Y88,FIND(CHAR(160),SUBSTITUTE($Y88,\"{\",CHAR(160),HT$1)),FIND(CHAR(160),SUBSTITUTE($Y88,\"}\",CHAR(160),HT$1))-FIND(CHAR(160),SUBSTITUTE($Y88,\"{\",CHAR(160),HT$1))+1),\"\")","v":""},{"$f":"IFERROR(MID($Z88,FIND(CHAR(160),SUBSTITUTE($Z88,\"{\",CHAR(160),HU$1)),FIND(CHAR(160),SUBSTITUTE($Z88,\"}\",CHAR(160),HU$1))-FIND(CHAR(160),SUBSTITUTE($Z88,\"{\",CHAR(160),HU$1))+1),\"\")","v":""},{"$f":"IFERROR(MID($Z88,FIND(CHAR(160),SUBSTITUTE($Z88,\"{\",CHAR(160),HV$1)),FIND(CHAR(160),SUBSTITUTE($Z88,\"}\",CHAR(160),HV$1))-FIND(CHAR(160),SUBSTITUTE($Z88,\"{\",CHAR(160),HV$1))+1),\"\")","v":""},{"$f":"IFERROR(MID($Z88,FIND(CHAR(160),SUBSTITUTE($Z88,\"{\",CHAR(160),HW$1)),FIND(CHAR(160),SUBSTITUTE($Z88,\"}\",CHAR(160),HW$1))-FIND(CHAR(160),SUBSTITUTE($Z88,\"{\",CHAR(160),HW$1))+1),\"\")","v":""},{"$f":"IFERROR(MID($Z88,FIND(CHAR(160),SUBSTITUTE($Z88,\"{\",CHAR(160),HX$1)),FIND(CHAR(160),SUBSTITUTE($Z88,\"}\",CHAR(160),HX$1))-FIND(CHAR(160),SUBSTITUTE($Z88,\"{\",CHAR(160),HX$1))+1),\"\")","v":""},{"$f":"IFERROR(MID($Z88,FIND(CHAR(160),SUBSTITUTE($Z88,\"{\",CHAR(160),HY$1)),FIND(CHAR(160),SUBSTITUTE($Z88,\"}\",CHAR(160),HY$1))-FIND(CHAR(160),SUBSTITUTE($Z88,\"{\",CHAR(160),HY$1))+1),\"\")","v":""},{"$f":"IFERROR(MID($Z88,FIND(CHAR(160),SUBSTITUTE($Z88,\"{\",CHAR(160),HZ$1)),FIND(CHAR(160),SUBSTITUTE($Z88,\"}\",CHAR(160),HZ$1))-FIND(CHAR(160),SUBSTITUTE($Z88,\"{\",CHAR(160),HZ$1))+1),\"\")","v":""},{"$f":"IFERROR(MID($Z88,FIND(CHAR(160),SUBSTITUTE($Z88,\"{\",CHAR(160),IA$1)),FIND(CHAR(160),SUBSTITUTE($Z88,\"}\",CHAR(160),IA$1))-FIND(CHAR(160),SUBSTITUTE($Z88,\"{\",CHAR(160),IA$1))+1),\"\")","v":""},{"$f":"IFERROR(MID($Z88,FIND(CHAR(160),SUBSTITUTE($Z88,\"{\",CHAR(160),IB$1)),FIND(CHAR(160),SUBSTITUTE($Z88,\"}\",CHAR(160),IB$1))-FIND(CHAR(160),SUBSTITUTE($Z88,\"{\",CHAR(160),IB$1))+1),\"\")","v":""},{"$f":"IFERROR(MID($Z88,FIND(CHAR(160),SUBSTITUTE($Z88,\"{\",CHAR(160),IC$1)),FIND(CHAR(160),SUBSTITUTE($Z88,\"}\",CHAR(160),IC$1))-FIND(CHAR(160),SUBSTITUTE($Z88,\"{\",CHAR(160),IC$1))+1),\"\")","v":""},{"$f":"IFERROR(MID($Z88,FIND(CHAR(160),SUBSTITUTE($Z88,\"{\",CHAR(160),ID$1)),FIND(CHAR(160),SUBSTITUTE($Z88,\"}\",CHAR(160),ID$1))-FIND(CHAR(160),SUBSTITUTE($Z88,\"{\",CHAR(160),ID$1))+1),\"\")","v":""},{"$f":"IFERROR(MID($AA88,FIND(CHAR(160),SUBSTITUTE($AA88,\"{\",CHAR(160),IE$1)),FIND(CHAR(160),SUBSTITUTE($AA88,\"}\",CHAR(160),IE$1))-FIND(CHAR(160),SUBSTITUTE($AA88,\"{\",CHAR(160),IE$1))+1),\"\")","v":""},{"$f":"IFERROR(MID($AA88,FIND(CHAR(160),SUBSTITUTE($AA88,\"{\",CHAR(160),IF$1)),FIND(CHAR(160),SUBSTITUTE($AA88,\"}\",CHAR(160),IF$1))-FIND(CHAR(160),SUBSTITUTE($AA88,\"{\",CHAR(160),IF$1))+1),\"\")","v":""},{"$f":"IFERROR(MID($AA88,FIND(CHAR(160),SUBSTITUTE($AA88,\"{\",CHAR(160),IG$1)),FIND(CHAR(160),SUBSTITUTE($AA88,\"}\",CHAR(160),IG$1))-FIND(CHAR(160),SUBSTITUTE($AA88,\"{\",CHAR(160),IG$1))+1),\"\")","v":""},{"$f":"IFERROR(MID($AA88,FIND(CHAR(160),SUBSTITUTE($AA88,\"{\",CHAR(160),IH$1)),FIND(CHAR(160),SUBSTITUTE($AA88,\"}\",CHAR(160),IH$1))-FIND(CHAR(160),SUBSTITUTE($AA88,\"{\",CHAR(160),IH$1))+1),\"\")","v":""},{"$f":"IFERROR(MID($AA88,FIND(CHAR(160),SUBSTITUTE($AA88,\"{\",CHAR(160),II$1)),FIND(CHAR(160),SUBSTITUTE($AA88,\"}\",CHAR(160),II$1))-FIND(CHAR(160),SUBSTITUTE($AA88,\"{\",CHAR(160),II$1))+1),\"\")","v":""},{"$f":"IFERROR(MID($AA88,FIND(CHAR(160),SUBSTITUTE($AA88,\"{\",CHAR(160),IJ$1)),FIND(CHAR(160),SUBSTITUTE($AA88,\"}\",CHAR(160),IJ$1))-FIND(CHAR(160),SUBSTITUTE($AA88,\"{\",CHAR(160),IJ$1))+1),\"\")","v":""},{"$f":"IFERROR(MID($AA88,FIND(CHAR(160),SUBSTITUTE($AA88,\"{\",CHAR(160),IK$1)),FIND(CHAR(160),SUBSTITUTE($AA88,\"}\",CHAR(160),IK$1))-FIND(CHAR(160),SUBSTITUTE($AA88,\"{\",CHAR(160),IK$1))+1),\"\")","v":""},{"$f":"IFERROR(MID($AA88,FIND(CHAR(160),SUBSTITUTE($AA88,\"{\",CHAR(160),IL$1)),FIND(CHAR(160),SUBSTITUTE($AA88,\"}\",CHAR(160),IL$1))-FIND(CHAR(160),SUBSTITUTE($AA88,\"{\",CHAR(160),IL$1))+1),\"\")","v":""},{"$f":"IFERROR(MID($AA88,FIND(CHAR(160),SUBSTITUTE($AA88,\"{\",CHAR(160),IM$1)),FIND(CHAR(160),SUBSTITUTE($AA88,\"}\",CHAR(160),IM$1))-FIND(CHAR(160),SUBSTITUTE($AA88,\"{\",CHAR(160),IM$1))+1),\"\")","v":""},{"$f":"IFERROR(MID($AA88,FIND(CHAR(160),SUBSTITUTE($AA88,\"{\",CHAR(160),IN$1)),FIND(CHAR(160),SUBSTITUTE($AA88,\"}\",CHAR(160),IN$1))-FIND(CHAR(160),SUBSTITUTE($AA88,\"{\",CHAR(160),IN$1))+1),\"\")","v":""},{"$f":"IFERROR(MID($AB88,FIND(CHAR(160),SUBSTITUTE($AB88,\"{\",CHAR(160),IO$1)),FIND(CHAR(160),SUBSTITUTE($AB88,\"}\",CHAR(160),IO$1))-FIND(CHAR(160),SUBSTITUTE($AB88,\"{\",CHAR(160),IO$1))+1),\"\")","v":""},{"$f":"IFERROR(MID($AB88,FIND(CHAR(160),SUBSTITUTE($AB88,\"{\",CHAR(160),IP$1)),FIND(CHAR(160),SUBSTITUTE($AB88,\"}\",CHAR(160),IP$1))-FIND(CHAR(160),SUBSTITUTE($AB88,\"{\",CHAR(160),IP$1))+1),\"\")","v":""},{"$f":"IFERROR(MID($AB88,FIND(CHAR(160),SUBSTITUTE($AB88,\"{\",CHAR(160),IQ$1)),FIND(CHAR(160),SUBSTITUTE($AB88,\"}\",CHAR(160),IQ$1))-FIND(CHAR(160),SUBSTITUTE($AB88,\"{\",CHAR(160),IQ$1))+1),\"\")","v":""},{"$f":"IFERROR(MID($AB88,FIND(CHAR(160),SUBSTITUTE($AB88,\"{\",CHAR(160),IR$1)),FIND(CHAR(160),SUBSTITUTE($AB88,\"}\",CHAR(160),IR$1))-FIND(CHAR(160),SUBSTITUTE($AB88,\"{\",CHAR(160),IR$1))+1),\"\")","v":""},{"$f":"IFERROR(MID($AB88,FIND(CHAR(160),SUBSTITUTE($AB88,\"{\",CHAR(160),IS$1)),FIND(CHAR(160),SUBSTITUTE($AB88,\"}\",CHAR(160),IS$1))-FIND(CHAR(160),SUBSTITUTE($AB88,\"{\",CHAR(160),IS$1))+1),\"\")","v":""},{"$f":"IFERROR(MID($AB88,FIND(CHAR(160),SUBSTITUTE($AB88,\"{\",CHAR(160),IT$1)),FIND(CHAR(160),SUBSTITUTE($AB88,\"}\",CHAR(160),IT$1))-FIND(CHAR(160),SUBSTITUTE($AB88,\"{\",CHAR(160),IT$1))+1),\"\")","v":""},{"$f":"IFERROR(MID($AB88,FIND(CHAR(160),SUBSTITUTE($AB88,\"{\",CHAR(160),IU$1)),FIND(CHAR(160),SUBSTITUTE($AB88,\"}\",CHAR(160),IU$1))-FIND(CHAR(160),SUBSTITUTE($AB88,\"{\",CHAR(160),IU$1))+1),\"\")","v":""},{"$f":"IFERROR(MID($AB88,FIND(CHAR(160),SUBSTITUTE($AB88,\"{\",CHAR(160),IV$1)),FIND(CHAR(160),SUBSTITUTE($AB88,\"}\",CHAR(160),IV$1))-FIND(CHAR(160),SUBSTITUTE($AB88,\"{\",CHAR(160),IV$1))+1),\"\")","v":""},{"$f":"IFERROR(MID($AB88,FIND(CHAR(160),SUBSTITUTE($AB88,\"{\",CHAR(160),IW$1)),FIND(CHAR(160),SUBSTITUTE($AB88,\"}\",CHAR(160),IW$1))-FIND(CHAR(160),SUBSTITUTE($AB88,\"{\",CHAR(160),IW$1))+1),\"\")","v":""},{"$f":"IFERROR(MID($AB88,FIND(CHAR(160),SUBSTITUTE($AB88,\"{\",CHAR(160),IX$1)),FIND(CHAR(160),SUBSTITUTE($AB88,\"}\",CHAR(160),IX$1))-FIND(CHAR(160),SUBSTITUTE($AB88,\"{\",CHAR(160),IX$1))+1),\"\")","v":""},null,{"$f":"10-COUNTIF(DU88:ED88,\"\")","v":5}]
["C&I HVAC - Oil","Oxygen Trim for Boilers and Heaters","AF4","2021-07-01","2022-06-30","Calculated","{Measure:Quantity}*20000.00",0,"Calculated","{Measure:Quantity}*{Capacity (MBTUH)}*0.75",0,"2021-05-25","2022-06-30","Calculated",null,null,null,null,null,null,null,null,null,null,"if({Existing Fuel}<>3,0,{Measure:Quantity} * ({Capacity (MBTUH)} * 0.02 * if({End-Use}=1,1565,{Annual Hours of Operation})) / 1000)",null,null,null,"2021-05-24","2022-06-30",15,0,0,0,0,0,0,1,1,0,0.52,1.6E-2,null,{"$f":"DU89","v":"{Measure:Quantity}"},1,{"$f":"DV89","v":"{Capacity (MBTUH)}"},2200,{"$f":"DW89","v":"{End-Use}"},3,{"$f":"DX89","v":"{Annual Hours of Operation}"},1,{"$f":"DY89","v":"{Existing Fuel}"},3250,{"$f":"DZ89","v":""},null,{"$f":"EA89","v":""},null,{"$f":"EB89","v":""},null,{"$f":"EC89","v":""},null,{"$f":"ED89","v":""},null,0,0,0,0,0,0,0,0,0,0,{"$f":"IF(AW89<>3,0,AS89 * (AU89 * 0.02 * IF(AY89=1,1565,BA89)) / 1000)","v":68.86},0,0,0,null,"Res","Default DR",{"$f":"Benefits(BL89,BR89,BS89,BT89,BU89,BV89,BW89,BX89,BY89,BZ89,AE89,AH89,AI89,AJ89,AK89,AL89,AM89,AN89,AO89,AP89,CA89,CB89)","v":0},0,0,29052.799899524962,0,0,0,0,0,{"$f":"SUMPRODUCT(CC89:CK89,--(CC89:CK89>0))","v":29052.799899524962},{"$f":"-SUMPRODUCT(CC89:CK89,--(CC89:CK89<0))","v":0},null,{"$f":"AS89*20000","v":20000},null,null,{"$f":"CM89+CO89","v":20000},{"$f":"IF(NetOrGross=\"Net\",(1-AO89+AP89),1)","v":1},{"$f":"(SUMPRODUCT(CC89:CJ89,--(CC89:CJ89>0))+CN89)*CS89/((-SUMPRODUCT(CC89:CJ89,--(CC89:CJ89<0))+MAX(CO89,CV89)+CP89+CQ89)*CS89+IF(FRIncentives=\"Yes\",CV89*(1-CS89),0))","v":1.4526399949762481},1,{"$f":"AS89*AU89*0.75","v":1650},null,"RGGI","y",null,{"$f":"IF(F89=\"Manual Entry\",\"Manual\",IF(G89=\"\",0,\"X=\"&SUBSTITUTE(SUBSTITUTE(SUBSTITUTE(SUBSTITUTE(SUBSTITUTE(SUBSTITUTE(SUBSTITUTE(SUBSTITUTE(SUBSTITUTE(SUBSTITUTE(SUBSTITUTE(SUBSTITUTE(G89,$ED89,$ED$2&ROW($ED89)),$EC89,$EC$2&ROW($EC89)),$EB89,$EB$2&ROW($EB89)),$EA89,$EA$2&ROW($EA89)),$DZ89,$DZ$2&ROW($DZ89)),$DY89,$DY$2&ROW($DY89)),$DX89,$DX$2&ROW($DX89)),$DW89,$DW$2&ROW($DW89)),$DV89,$DV$2&ROW($DV89)),$DU89,$DU$2&ROW($DU89)),$DT89,$DT$2&ROW($DT89)),$DS89,$DS$2&ROW($DS89))))","v":"X=AS89*20000.00"},{"$f":"IF(I89=\"Manual Entry\",\"Manual\",IF(J89=\"\",0,\"X=\"&SUBSTITUTE(SUBSTITUTE(SUBSTITUTE(SUBSTITUTE(SUBSTITUTE(SUBSTITUTE(SUBSTITUTE(SUBSTITUTE(SUBSTITUTE(SUBSTITUTE(SUBSTITUTE(SUBSTITUTE(J89,$ED89,$ED$2&ROW($ED89)),$EC89,$EC$2&ROW($EC89)),$EB89,$EB$2&ROW($EB89)),$EA89,$EA$2&ROW($EA89)),$DZ89,$DZ$2&ROW($DZ89)),$DY89,$DY$2&ROW($DY89)),$DX89,$DX$2&ROW($DX89)),$DW89,$DW$2&ROW($DW89)),$DV89,$DV$2&ROW($DV89)),$DU89,$DU$2&ROW($DU89)),$DT89,$DT$2&ROW($DT89)),$DS89,$DS$2&ROW($DS89))))","v":"X=AS89*AU89*0.75"},{"$f":"IF(O89=\"\",0,\"X=\"&SUBSTITUTE(SUBSTITUTE(SUBSTITUTE(SUBSTITUTE(SUBSTITUTE(SUBSTITUTE(SUBSTITUTE(SUBSTITUTE(SUBSTITUTE(SUBSTITUTE(SUBSTITUTE(SUBSTITUTE(O89,$ED89,$ED$2&ROW($ED89)),$EC89,$EC$2&ROW($EC89)),$EB89,$EB$2&ROW($EB89)),$EA89,$EA$2&ROW($EA89)),$DZ89,$DZ$2&ROW($DZ89)),$DY89,$DY$2&ROW($DY89)),$DX89,$DX$2&ROW($DX89)),$DW89,$DW$2&ROW($DW89)),$DV89,$DV$2&ROW($DV89)),$DU89,$DU$2&ROW($DU89)),$DT89,$DT$2&ROW($DT89)),$DS89,$DS$2&ROW($DS89)))","v":0},{"$f":"IF(P89=\"\",0,\"X=\"&SUBSTITUTE(SUBSTITUTE(SUBSTITUTE(SUBSTITUTE(SUBSTITUTE(SUBSTITUTE(SUBSTITUTE(SUBSTITUTE(SUBSTITUTE(SUBSTITUTE(SUBSTITUTE(SUBSTITUTE(P89,$ED89,$ED$2&ROW($ED89)),$EC89,$EC$2&ROW($EC89)),$EB89,$EB$2&ROW($EB89)),$EA89,$EA$2&ROW($EA89)),$DZ89,$DZ$2&ROW($DZ89)),$DY89,$DY$2&ROW($DY89)),$DX89,$DX$2&ROW($DX89)),$DW89,$DW$2&ROW($DW89)),$DV89,$DV$2&ROW($DV89)),$DU89,$DU$2&ROW($DU89)),$DT89,$DT$2&ROW($DT89)),$DS89,$DS$2&ROW($DS89)))","v":0},{"$f":"IF(Q89=\"\",0,\"X=\"&SUBSTITUTE(SUBSTITUTE(SUBSTITUTE(SUBSTITUTE(SUBSTITUTE(SUBSTITUTE(SUBSTITUTE(SUBSTITUTE(SUBSTITUTE(SUBSTITUTE(SUBSTITUTE(SUBSTITUTE(Q89,$ED89,$ED$2&ROW($ED89)),$EC89,$EC$2&ROW($EC89)),$EB89,$EB$2&ROW($EB89)),$EA89,$EA$2&ROW($EA89)),$DZ89,$DZ$2&ROW($DZ89)),$DY89,$DY$2&ROW($DY89)),$DX89,$DX$2&ROW($DX89)),$DW89,$DW$2&ROW($DW89)),$DV89,$DV$2&ROW($DV89)),$DU89,$DU$2&ROW($DU89)),$DT89,$DT$2&ROW($DT89)),$DS89,$DS$2&ROW($DS89)))","v":0},{"$f":"IF(R89=\"\",0,\"X=\"&SUBSTITUTE(SUBSTITUTE(SUBSTITUTE(SUBSTITUTE(SUBSTITUTE(SUBSTITUTE(SUBSTITUTE(SUBSTITUTE(SUBSTITUTE(SUBSTITUTE(SUBSTITUTE(SUBSTITUTE(R89,$ED89,$ED$2&ROW($ED89)),$EC89,$EC$2&ROW($EC89)),$EB89,$EB$2&ROW($EB89)),$EA89,$EA$2&ROW($EA89)),$DZ89,$DZ$2&ROW($DZ89)),$DY89,$DY$2&ROW($DY89)),$DX89,$DX$2&ROW($DX89)),$DW89,$DW$2&ROW($DW89)),$DV89,$DV$2&ROW($DV89)),$DU89,$DU$2&ROW($DU89)),$DT89,$DT$2&ROW($DT89)),$DS89,$DS$2&ROW($DS89)))","v":0},{"$f":"IF(S89=\"\",0,\"X=\"&SUBSTITUTE(SUBSTITUTE(SUBSTITUTE(SUBSTITUTE(SUBSTITUTE(SUBSTITUTE(SUBSTITUTE(SUBSTITUTE(SUBSTITUTE(SUBSTITUTE(SUBSTITUTE(SUBSTITUTE(S89,$ED89,$ED$2&ROW($ED89)),$EC89,$EC$2&ROW($EC89)),$EB89,$EB$2&ROW($EB89)),$EA89,$EA$2&ROW($EA89)),$DZ89,$DZ$2&ROW($DZ89)),$DY89,$DY$2&ROW($DY89)),$DX89,$DX$2&ROW($DX89)),$DW89,$DW$2&ROW($DW89)),$DV89,$DV$2&ROW($DV89)),$DU89,$DU$2&ROW($DU89)),$DT89,$DT$2&ROW($DT89)),$DS89,$DS$2&ROW($DS89)))","v":0},{"$f":"IF(T89=\"\",0,\"X=\"&SUBSTITUTE(SUBSTITUTE(SUBSTITUTE(SUBSTITUTE(SUBSTITUTE(SUBSTITUTE(SUBSTITUTE(SUBSTITUTE(SUBSTITUTE(SUBSTITUTE(SUBSTITUTE(SUBSTITUTE(T89,$ED89,$ED$2&ROW($ED89)),$EC89,$EC$2&ROW($EC89)),$EB89,$EB$2&ROW($EB89)),$EA89,$EA$2&ROW($EA89)),$DZ89,$DZ$2&ROW($DZ89)),$DY89,$DY$2&ROW($DY89)),$DX89,$DX$2&ROW($DX89)),$DW89,$DW$2&ROW($DW89)),$DV89,$DV$2&ROW($DV89)),$DU89,$DU$2&ROW($DU89)),$DT89,$DT$2&ROW($DT89)),$DS89,$DS$2&ROW($DS89)))","v":0},{"$f":"IF(U89=\"\",0,\"X=\"&SUBSTITUTE(SUBSTITUTE(SUBSTITUTE(SUBSTITUTE(SUBSTITUTE(SUBSTITUTE(SUBSTITUTE(SUBSTITUTE(SUBSTITUTE(SUBSTITUTE(SUBSTITUTE(SUBSTITUTE(U89,$ED89,$ED$2&ROW($ED89)),$EC89,$EC$2&ROW($EC89)),$EB89,$EB$2&ROW($EB89)),$EA89,$EA$2&ROW($EA89)),$DZ89,$DZ$2&ROW($DZ89)),$DY89,$DY$2&ROW($DY89)),$DX89,$DX$2&ROW($DX89)),$DW89,$DW$2&ROW($DW89)),$DV89,$DV$2&ROW($DV89)),$DU89,$DU$2&ROW($DU89)),$DT89,$DT$2&ROW($DT89)),$DS89,$DS$2&ROW($DS89)))","v":0},{"$f":"IF(V89=\"\",0,\"X=\"&SUBSTITUTE(SUBSTITUTE(SUBSTITUTE(SUBSTITUTE(SUBSTITUTE(SUBSTITUTE(SUBSTITUTE(SUBSTITUTE(SUBSTITUTE(SUBSTITUTE(SUBSTITUTE(SUBSTITUTE(V89,$ED89,$ED$2&ROW($ED89)),$EC89,$EC$2&ROW($EC89)),$EB89,$EB$2&ROW($EB89)),$EA89,$EA$2&ROW($EA89)),$DZ89,$DZ$2&ROW($DZ89)),$DY89,$DY$2&ROW($DY89)),$DX89,$DX$2&ROW($DX89)),$DW89,$DW$2&ROW($DW89)),$DV89,$DV$2&ROW($DV89)),$DU89,$DU$2&ROW($DU89)),$DT89,$DT$2&ROW($DT89)),$DS89,$DS$2&ROW($DS89)))","v":0},{"$f":"IF(W89=\"\",0,\"X=\"&SUBSTITUTE(SUBSTITUTE(SUBSTITUTE(SUBSTITUTE(SUBSTITUTE(SUBSTITUTE(SUBSTITUTE(SUBSTITUTE(SUBSTITUTE(SUBSTITUTE(SUBSTITUTE(SUBSTITUTE(W89,$ED89,$ED$2&ROW($ED89)),$EC89,$EC$2&ROW($EC89)),$EB89,$EB$2&ROW($EB89)),$EA89,$EA$2&ROW($EA89)),$DZ89,$DZ$2&ROW($DZ89)),$DY89,$DY$2&ROW($DY89)),$DX89,$DX$2&ROW($DX89)),$DW89,$DW$2&ROW($DW89)),$DV89,$DV$2&ROW($DV89)),$DU89,$DU$2&ROW($DU89)),$DT89,$DT$2&ROW($DT89)),$DS89,$DS$2&ROW($DS89)))","v":0},{"$f":"IF(X89=\"\",0,\"X=\"&SUBSTITUTE(SUBSTITUTE(SUBSTITUTE(SUBSTITUTE(SUBSTITUTE(SUBSTITUTE(SUBSTITUTE(SUBSTITUTE(SUBSTITUTE(SUBSTITUTE(SUBSTITUTE(SUBSTITUTE(X89,$ED89,$ED$2&ROW($ED89)),$EC89,$EC$2&ROW($EC89)),$EB89,$EB$2&ROW($EB89)),$EA89,$EA$2&ROW($EA89)),$DZ89,$DZ$2&ROW($DZ89)),$DY89,$DY$2&ROW($DY89)),$DX89,$DX$2&ROW($DX89)),$DW89,$DW$2&ROW($DW89)),$DV89,$DV$2&ROW($DV89)),$DU89,$DU$2&ROW($DU89)),$DT89,$DT$2&ROW($DT89)),$DS89,$DS$2&ROW($DS89)))","v":0},{"$f":"IF(Y89=\"\",0,\"X=\"&SUBSTITUTE(SUBSTITUTE(SUBSTITUTE(SUBSTITUTE(SUBSTITUTE(SUBSTITUTE(SUBSTITUTE(SUBSTITUTE(SUBSTITUTE(SUBSTITUTE(SUBSTITUTE(SUBSTITUTE(Y89,$ED89,$ED$2&ROW($ED89)),$EC89,$EC$2&ROW($EC89)),$EB89,$EB$2&ROW($EB89)),$EA89,$EA$2&ROW($EA89)),$DZ89,$DZ$2&ROW($DZ89)),$DY89,$DY$2&ROW($DY89)),$DX89,$DX$2&ROW($DX89)),$DW89,$DW$2&ROW($DW89)),$DV89,$DV$2&ROW($DV89)),$DU89,$DU$2&ROW($DU89)),$DT89,$DT$2&ROW($DT89)),$DS89,$DS$2&ROW($DS89)))","v":"X=if(BA89<>3,0,AS89 * (AU89 * 0.02 * if(AW89=1,1565,AY89)) / 1000)"},{"$f":"IF(Z89=\"\",0,\"X=\"&SUBSTITUTE(SUBSTITUTE(SUBSTITUTE(SUBSTITUTE(SUBSTITUTE(SUBSTITUTE(SUBSTITUTE(SUBSTITUTE(SUBSTITUTE(SUBSTITUTE(SUBSTITUTE(SUBSTITUTE(Z89,$ED89,$ED$2&ROW($ED89)),$EC89,$EC$2&ROW($EC89)),$EB89,$EB$2&ROW($EB89)),$EA89,$EA$2&ROW($EA89)),$DZ89,$DZ$2&ROW($DZ89)),$DY89,$DY$2&ROW($DY89)),$DX89,$DX$2&ROW($DX89)),$DW89,$DW$2&ROW($DW89)),$DV89,$DV$2&ROW($DV89)),$DU89,$DU$2&ROW($DU89)),$DT89,$DT$2&ROW($DT89)),$DS89,$DS$2&ROW($DS89)))","v":0},{"$f":"IF(AA89=\"\",0,\"X=\"&SUBSTITUTE(SUBSTITUTE(SUBSTITUTE(SUBSTITUTE(SUBSTITUTE(SUBSTITUTE(SUBSTITUTE(SUBSTITUTE(SUBSTITUTE(SUBSTITUTE(SUBSTITUTE(SUBSTITUTE(AA89,$ED89,$ED$2&ROW($ED89)),$EC89,$EC$2&ROW($EC89)),$EB89,$EB$2&ROW($EB89)),$EA89,$EA$2&ROW($EA89)),$DZ89,$DZ$2&ROW($DZ89)),$DY89,$DY$2&ROW($DY89)),$DX89,$DX$2&ROW($DX89)),$DW89,$DW$2&ROW($DW89)),$DV89,$DV$2&ROW($DV89)),$DU89,$DU$2&ROW($DU89)),$DT89,$DT$2&ROW($DT89)),$DS89,$DS$2&ROW($DS89)))","v":0},{"$f":"IF(AB89=\"\",0,\"X=\"&SUBSTITUTE(SUBSTITUTE(SUBSTITUTE(SUBSTITUTE(SUBSTITUTE(SUBSTITUTE(SUBSTITUTE(SUBSTITUTE(SUBSTITUTE(SUBSTITUTE(SUBSTITUTE(SUBSTITUTE(AB89,$ED89,$ED$2&ROW($ED89)),$EC89,$EC$2&ROW($EC89)),$EB89,$EB$2&ROW($EB89)),$EA89,$EA$2&ROW($EA89)),$DZ89,$DZ$2&ROW($DZ89)),$DY89,$DY$2&ROW($DY89)),$DX89,$DX$2&ROW($DX89)),$DW89,$DW$2&ROW($DW89)),$DV89,$DV$2&ROW($DV89)),$DU89,$DU$2&ROW($DU89)),$DT89,$DT$2&ROW($DT89)),$DS89,$DS$2&ROW($DS89)))","v":0},null,null,"{Factor:WinterCF}","{Factor:SummerCF}",{"$f":"IFERROR(INDEX($EG89:$IV89,MATCH(0,COUNTIF($DR89:DT89,$EG89:$IV89),0)),\"\")","v":"{Measure:Quantity}"},{"$f":"IFERROR(INDEX($EG89:$IV89,MATCH(0,COUNTIF($DR89:DU89,$EG89:$IV89),0)),\"\")","v":"{Capacity (MBTUH)}"},{"$f":"IFERROR(INDEX($EG89:$IV89,MATCH(0,COUNTIF($DR89:DV89,$EG89:$IV89),0)),\"\")","v":"{End-Use}"},{"$f":"IFERROR(INDEX($EG89:$IV89,MATCH(0,COUNTIF($DR89:DW89,$EG89:$IV89),0)),\"\")","v":"{Annual Hours of Operation}"},{"$f":"IFERROR(INDEX($EG89:$IV89,MATCH(0,COUNTIF($DR89:DX89,$EG89:$IV89),0)),\"\")","v":"{Existing Fuel}"},{"$f":"IFERROR(INDEX($EG89:$IV89,MATCH(0,COUNTIF($DR89:DY89,$EG89:$IV89),0)),\"\")","v":""},{"$f":"IFERROR(INDEX($EG89:$IV89,MATCH(0,COUNTIF($DR89:DZ89,$EG89:$IV89),0)),\"\")","v":""},{"$f":"IFERROR(INDEX($EG89:$IV89,MATCH(0,COUNTIF($DR89:EA89,$EG89:$IV89),0)),\"\")","v":""},{"$f":"IFERROR(INDEX($EG89:$IV89,MATCH(0,COUNTIF($DR89:EB89,$EG89:$IV89),0)),\"\")","v":""},{"$f":"IFERROR(INDEX($EG89:$IV89,MATCH(0,COUNTIF($DR89:EC89,$EG89:$IV89),0)),\"\")","v":""},null,null,{"$f":"IFERROR(MID($G89,FIND(CHAR(160),SUBSTITUTE($G89,\"{\",CHAR(160),EG$1)),FIND(CHAR(160),SUBSTITUTE($G89,\"}\",CHAR(160),EG$1))-FIND(CHAR(160),SUBSTITUTE($G89,\"{\",CHAR(160),EG$1))+1),\"\")","v":"{Measure:Quantity}"},{"$f":"IFERROR(MID($G89,FIND(CHAR(160),SUBSTITUTE($G89,\"{\",CHAR(160),EH$1)),FIND(CHAR(160),SUBSTITUTE($G89,\"}\",CHAR(160),EH$1))-FIND(CHAR(160),SUBSTITUTE($G89,\"{\",CHAR(160),EH$1))+1),\"\")","v":""},{"$f":"IFERROR(MID($G89,FIND(CHAR(160),SUBSTITUTE($G89,\"{\",CHAR(160),EI$1)),FIND(CHAR(160),SUBSTITUTE($G89,\"}\",CHAR(160),EI$1))-FIND(CHAR(160),SUBSTITUTE($G89,\"{\",CHAR(160),EI$1))+1),\"\")","v":""},{"$f":"IFERROR(MID($G89,FIND(CHAR(160),SUBSTITUTE($G89,\"{\",CHAR(160),EJ$1)),FIND(CHAR(160),SUBSTITUTE($G89,\"}\",CHAR(160),EJ$1))-FIND(CHAR(160),SUBSTITUTE($G89,\"{\",CHAR(160),EJ$1))+1),\"\")","v":""},{"$f":"IFERROR(MID($G89,FIND(CHAR(160),SUBSTITUTE($G89,\"{\",CHAR(160),EK$1)),FIND(CHAR(160),SUBSTITUTE($G89,\"}\",CHAR(160),EK$1))-FIND(CHAR(160),SUBSTITUTE($G89,\"{\",CHAR(160),EK$1))+1),\"\")","v":""},{"$f":"IFERROR(MID($G89,FIND(CHAR(160),SUBSTITUTE($G89,\"{\",CHAR(160),EL$1)),FIND(CHAR(160),SUBSTITUTE($G89,\"}\",CHAR(160),EL$1))-FIND(CHAR(160),SUBSTITUTE($G89,\"{\",CHAR(160),EL$1))+1),\"\")","v":""},{"$f":"IFERROR(MID($G89,FIND(CHAR(160),SUBSTITUTE($G89,\"{\",CHAR(160),EM$1)),FIND(CHAR(160),SUBSTITUTE($G89,\"}\",CHAR(160),EM$1))-FIND(CHAR(160),SUBSTITUTE($G89,\"{\",CHAR(160),EM$1))+1),\"\")","v":""},{"$f":"IFERROR(MID($G89,FIND(CHAR(160),SUBSTITUTE($G89,\"{\",CHAR(160),EN$1)),FIND(CHAR(160),SUBSTITUTE($G89,\"}\",CHAR(160),EN$1))-FIND(CHAR(160),SUBSTITUTE($G89,\"{\",CHAR(160),EN$1))+1),\"\")","v":""},{"$f":"IFERROR(MID($G89,FIND(CHAR(160),SUBSTITUTE($G89,\"{\",CHAR(160),EO$1)),FIND(CHAR(160),SUBSTITUTE($G89,\"}\",CHAR(160),EO$1))-FIND(CHAR(160),SUBSTITUTE($G89,\"{\",CHAR(160),EO$1))+1),\"\")","v":""},{"$f":"IFERROR(MID($G89,FIND(CHAR(160),SUBSTITUTE($G89,\"{\",CHAR(160),EP$1)),FIND(CHAR(160),SUBSTITUTE($G89,\"}\",CHAR(160),EP$1))-FIND(CHAR(160),SUBSTITUTE($G89,\"{\",CHAR(160),EP$1))+1),\"\")","v":""},{"$f":"IFERROR(MID($J89,FIND(CHAR(160),SUBSTITUTE($J89,\"{\",CHAR(160),EQ$1)),FIND(CHAR(160),SUBSTITUTE($J89,\"}\",CHAR(160),EQ$1))-FIND(CHAR(160),SUBSTITUTE($J89,\"{\",CHAR(160),EQ$1))+1),\"\")","v":"{Measure:Quantity}"},{"$f":"IFERROR(MID($J89,FIND(CHAR(160),SUBSTITUTE($J89,\"{\",CHAR(160),ER$1)),FIND(CHAR(160),SUBSTITUTE($J89,\"}\",CHAR(160),ER$1))-FIND(CHAR(160),SUBSTITUTE($J89,\"{\",CHAR(160),ER$1))+1),\"\")","v":"{Capacity (MBTUH)}"},{"$f":"IFERROR(MID($J89,FIND(CHAR(160),SUBSTITUTE($J89,\"{\",CHAR(160),ES$1)),FIND(CHAR(160),SUBSTITUTE($J89,\"}\",CHAR(160),ES$1))-FIND(CHAR(160),SUBSTITUTE($J89,\"{\",CHAR(160),ES$1))+1),\"\")","v":""},{"$f":"IFERROR(MID($J89,FIND(CHAR(160),SUBSTITUTE($J89,\"{\",CHAR(160),ET$1)),FIND(CHAR(160),SUBSTITUTE($J89,\"}\",CHAR(160),ET$1))-FIND(CHAR(160),SUBSTITUTE($J89,\"{\",CHAR(160),ET$1))+1),\"\")","v":""},{"$f":"IFERROR(MID($J89,FIND(CHAR(160),SUBSTITUTE($J89,\"{\",CHAR(160),EU$1)),FIND(CHAR(160),SUBSTITUTE($J89,\"}\",CHAR(160),EU$1))-FIND(CHAR(160),SUBSTITUTE($J89,\"{\",CHAR(160),EU$1))+1),\"\")","v":""},{"$f":"IFERROR(MID($J89,FIND(CHAR(160),SUBSTITUTE($J89,\"{\",CHAR(160),EV$1)),FIND(CHAR(160),SUBSTITUTE($J89,\"}\",CHAR(160),EV$1))-FIND(CHAR(160),SUBSTITUTE($J89,\"{\",CHAR(160),EV$1))+1),\"\")","v":""},{"$f":"IFERROR(MID($J89,FIND(CHAR(160),SUBSTITUTE($J89,\"{\",CHAR(160),EW$1)),FIND(CHAR(160),SUBSTITUTE($J89,\"}\",CHAR(160),EW$1))-FIND(CHAR(160),SUBSTITUTE($J89,\"{\",CHAR(160),EW$1))+1),\"\")","v":""},{"$f":"IFERROR(MID($J89,FIND(CHAR(160),SUBSTITUTE($J89,\"{\",CHAR(160),EX$1)),FIND(CHAR(160),SUBSTITUTE($J89,\"}\",CHAR(160),EX$1))-FIND(CHAR(160),SUBSTITUTE($J89,\"{\",CHAR(160),EX$1))+1),\"\")","v":""},{"$f":"IFERROR(MID($J89,FIND(CHAR(160),SUBSTITUTE($J89,\"{\",CHAR(160),EY$1)),FIND(CHAR(160),SUBSTITUTE($J89,\"}\",CHAR(160),EY$1))-FIND(CHAR(160),SUBSTITUTE($J89,\"{\",CHAR(160),EY$1))+1),\"\")","v":""},{"$f":"IFERROR(MID($J89,FIND(CHAR(160),SUBSTITUTE($J89,\"{\",CHAR(160),EZ$1)),FIND(CHAR(160),SUBSTITUTE($J89,\"}\",CHAR(160),EZ$1))-FIND(CHAR(160),SUBSTITUTE($J89,\"{\",CHAR(160),EZ$1))+1),\"\")","v":""},{"$f":"IFERROR(MID($J89,FIND(CHAR(160),SUBSTITUTE($J89,\"{\",CHAR(160),FA$1)),FIND(CHAR(160),SUBSTITUTE($J89,\"}\",CHAR(160),FA$1))-FIND(CHAR(160),SUBSTITUTE($J89,\"{\",CHAR(160),FA$1))+1),\"\")","v":"{Measure:Quantity}"},{"$f":"IFERROR(MID($J89,FIND(CHAR(160),SUBSTITUTE($J89,\"{\",CHAR(160),FB$1)),FIND(CHAR(160),SUBSTITUTE($J89,\"}\",CHAR(160),FB$1))-FIND(CHAR(160),SUBSTITUTE($J89,\"{\",CHAR(160),FB$1))+1),\"\")","v":"{Capacity (MBTUH)}"},{"$f":"IFERROR(MID($O89,FIND(CHAR(160),SUBSTITUTE($O89,\"{\",CHAR(160),FC$1)),FIND(CHAR(160),SUBSTITUTE($O89,\"}\",CHAR(160),FC$1))-FIND(CHAR(160),SUBSTITUTE($O89,\"{\",CHAR(160),FC$1))+1),\"\")","v":""},{"$f":"IFERROR(MID($O89,FIND(CHAR(160),SUBSTITUTE($O89,\"{\",CHAR(160),FD$1)),FIND(CHAR(160),SUBSTITUTE($O89,\"}\",CHAR(160),FD$1))-FIND(CHAR(160),SUBSTITUTE($O89,\"{\",CHAR(160),FD$1))+1),\"\")","v":""},{"$f":"IFERROR(MID($O89,FIND(CHAR(160),SUBSTITUTE($O89,\"{\",CHAR(160),FE$1)),FIND(CHAR(160),SUBSTITUTE($O89,\"}\",CHAR(160),FE$1))-FIND(CHAR(160),SUBSTITUTE($O89,\"{\",CHAR(160),FE$1))+1),\"\")","v":""},{"$f":"IFERROR(MID($O89,FIND(CHAR(160),SUBSTITUTE($O89,\"{\",CHAR(160),FF$1)),FIND(CHAR(160),SUBSTITUTE($O89,\"}\",CHAR(160),FF$1))-FIND(CHAR(160),SUBSTITUTE($O89,\"{\",CHAR(160),FF$1))+1),\"\")","v":""},{"$f":"IFERROR(MID($O89,FIND(CHAR(160),SUBSTITUTE($O89,\"{\",CHAR(160),FG$1)),FIND(CHAR(160),SUBSTITUTE($O89,\"}\",CHAR(160),FG$1))-FIND(CHAR(160),SUBSTITUTE($O89,\"{\",CHAR(160),FG$1))+1),\"\")","v":""},{"$f":"IFERROR(MID($O89,FIND(CHAR(160),SUBSTITUTE($O89,\"{\",CHAR(160),FH$1)),FIND(CHAR(160),SUBSTITUTE($O89,\"}\",CHAR(160),FH$1))-FIND(CHAR(160),SUBSTITUTE($O89,\"{\",CHAR(160),FH$1))+1),\"\")","v":""},{"$f":"IFERROR(MID($O89,FIND(CHAR(160),SUBSTITUTE($O89,\"{\",CHAR(160),FI$1)),FIND(CHAR(160),SUBSTITUTE($O89,\"}\",CHAR(160),FI$1))-FIND(CHAR(160),SUBSTITUTE($O89,\"{\",CHAR(160),FI$1))+1),\"\")","v":""},{"$f":"IFERROR(MID($O89,FIND(CHAR(160),SUBSTITUTE($O89,\"{\",CHAR(160),FJ$1)),FIND(CHAR(160),SUBSTITUTE($O89,\"}\",CHAR(160),FJ$1))-FIND(CHAR(160),SUBSTITUTE($O89,\"{\",CHAR(160),FJ$1))+1),\"\")","v":""},{"$f":"IFERROR(MID($O89,FIND(CHAR(160),SUBSTITUTE($O89,\"{\",CHAR(160),FK$1)),FIND(CHAR(160),SUBSTITUTE($O89,\"}\",CHAR(160),FK$1))-FIND(CHAR(160),SUBSTITUTE($O89,\"{\",CHAR(160),FK$1))+1),\"\")","v":""},{"$f":"IFERROR(MID($O89,FIND(CHAR(160),SUBSTITUTE($O89,\"{\",CHAR(160),FL$1)),FIND(CHAR(160),SUBSTITUTE($O89,\"}\",CHAR(160),FL$1))-FIND(CHAR(160),SUBSTITUTE($O89,\"{\",CHAR(160),FL$1))+1),\"\")","v":""},{"$f":"IFERROR(MID($R89,FIND(CHAR(160),SUBSTITUTE($R89,\"{\",CHAR(160),FM$1)),FIND(CHAR(160),SUBSTITUTE($R89,\"}\",CHAR(160),FM$1))-FIND(CHAR(160),SUBSTITUTE($R89,\"{\",CHAR(160),FM$1))+1),\"\")","v":""},{"$f":"IFERROR(MID($R89,FIND(CHAR(160),SUBSTITUTE($R89,\"{\",CHAR(160),FN$1)),FIND(CHAR(160),SUBSTITUTE($R89,\"}\",CHAR(160),FN$1))-FIND(CHAR(160),SUBSTITUTE($R89,\"{\",CHAR(160),FN$1))+1),\"\")","v":""},{"$f":"IFERROR(MID($R89,FIND(CHAR(160),SUBSTITUTE($R89,\"{\",CHAR(160),FO$1)),FIND(CHAR(160),SUBSTITUTE($R89,\"}\",CHAR(160),FO$1))-FIND(CHAR(160),SUBSTITUTE($R89,\"{\",CHAR(160),FO$1))+1),\"\")","v":""},{"$f":"IFERROR(MID($R89,FIND(CHAR(160),SUBSTITUTE($R89,\"{\",CHAR(160),FP$1)),FIND(CHAR(160),SUBSTITUTE($R89,\"}\",CHAR(160),FP$1))-FIND(CHAR(160),SUBSTITUTE($R89,\"{\",CHAR(160),FP$1))+1),\"\")","v":""},{"$f":"IFERROR(MID($R89,FIND(CHAR(160),SUBSTITUTE($R89,\"{\",CHAR(160),FQ$1)),FIND(CHAR(160),SUBSTITUTE($R89,\"}\",CHAR(160),FQ$1))-FIND(CHAR(160),SUBSTITUTE($R89,\"{\",CHAR(160),FQ$1))+1),\"\")","v":""},{"$f":"IFERROR(MID($R89,FIND(CHAR(160),SUBSTITUTE($R89,\"{\",CHAR(160),FR$1)),FIND(CHAR(160),SUBSTITUTE($R89,\"}\",CHAR(160),FR$1))-FIND(CHAR(160),SUBSTITUTE($R89,\"{\",CHAR(160),FR$1))+1),\"\")","v":""},{"$f":"IFERROR(MID($R89,FIND(CHAR(160),SUBSTITUTE($R89,\"{\",CHAR(160),FS$1)),FIND(CHAR(160),SUBSTITUTE($R89,\"}\",CHAR(160),FS$1))-FIND(CHAR(160),SUBSTITUTE($R89,\"{\",CHAR(160),FS$1))+1),\"\")","v":""},{"$f":"IFERROR(MID($R89,FIND(CHAR(160),SUBSTITUTE($R89,\"{\",CHAR(160),FT$1)),FIND(CHAR(160),SUBSTITUTE($R89,\"}\",CHAR(160),FT$1))-FIND(CHAR(160),SUBSTITUTE($R89,\"{\",CHAR(160),FT$1))+1),\"\")","v":""},{"$f":"IFERROR(MID($R89,FIND(CHAR(160),SUBSTITUTE($R89,\"{\",CHAR(160),FU$1)),FIND(CHAR(160),SUBSTITUTE($R89,\"}\",CHAR(160),FU$1))-FIND(CHAR(160),SUBSTITUTE($R89,\"{\",CHAR(160),FU$1))+1),\"\")","v":""},{"$f":"IFERROR(MID($R89,FIND(CHAR(160),SUBSTITUTE($R89,\"{\",CHAR(160),FV$1)),FIND(CHAR(160),SUBSTITUTE($R89,\"}\",CHAR(160),FV$1))-FIND(CHAR(160),SUBSTITUTE($R89,\"{\",CHAR(160),FV$1))+1),\"\")","v":""},{"$f":"IFERROR(MID($U89,FIND(CHAR(160),SUBSTITUTE($U89,\"{\",CHAR(160),FW$1)),FIND(CHAR(160),SUBSTITUTE($U89,\"}\",CHAR(160),FW$1))-FIND(CHAR(160),SUBSTITUTE($U89,\"{\",CHAR(160),FW$1))+1),\"\")","v":""},{"$f":"IFERROR(MID($U89,FIND(CHAR(160),SUBSTITUTE($U89,\"{\",CHAR(160),FX$1)),FIND(CHAR(160),SUBSTITUTE($U89,\"}\",CHAR(160),FX$1))-FIND(CHAR(160),SUBSTITUTE($U89,\"{\",CHAR(160),FX$1))+1),\"\")","v":""},{"$f":"IFERROR(MID($U89,FIND(CHAR(160),SUBSTITUTE($U89,\"{\",CHAR(160),FY$1)),FIND(CHAR(160),SUBSTITUTE($U89,\"}\",CHAR(160),FY$1))-FIND(CHAR(160),SUBSTITUTE($U89,\"{\",CHAR(160),FY$1))+1),\"\")","v":""},{"$f":"IFERROR(MID($U89,FIND(CHAR(160),SUBSTITUTE($U89,\"{\",CHAR(160),FZ$1)),FIND(CHAR(160),SUBSTITUTE($U89,\"}\",CHAR(160),FZ$1))-FIND(CHAR(160),SUBSTITUTE($U89,\"{\",CHAR(160),FZ$1))+1),\"\")","v":""},{"$f":"IFERROR(MID($U89,FIND(CHAR(160),SUBSTITUTE($U89,\"{\",CHAR(160),GA$1)),FIND(CHAR(160),SUBSTITUTE($U89,\"}\",CHAR(160),GA$1))-FIND(CHAR(160),SUBSTITUTE($U89,\"{\",CHAR(160),GA$1))+1),\"\")","v":""},{"$f":"IFERROR(MID($U89,FIND(CHAR(160),SUBSTITUTE($U89,\"{\",CHAR(160),GB$1)),FIND(CHAR(160),SUBSTITUTE($U89,\"}\",CHAR(160),GB$1))-FIND(CHAR(160),SUBSTITUTE($U89,\"{\",CHAR(160),GB$1))+1),\"\")","v":""},{"$f":"IFERROR(MID($U89,FIND(CHAR(160),SUBSTITUTE($U89,\"{\",CHAR(160),GC$1)),FIND(CHAR(160),SUBSTITUTE($U89,\"}\",CHAR(160),GC$1))-FIND(CHAR(160),SUBSTITUTE($U89,\"{\",CHAR(160),GC$1))+1),\"\")","v":""},{"$f":"IFERROR(MID($U89,FIND(CHAR(160),SUBSTITUTE($U89,\"{\",CHAR(160),GD$1)),FIND(CHAR(160),SUBSTITUTE($U89,\"}\",CHAR(160),GD$1))-FIND(CHAR(160),SUBSTITUTE($U89,\"{\",CHAR(160),GD$1))+1),\"\")","v":""},{"$f":"IFERROR(MID($U89,FIND(CHAR(160),SUBSTITUTE($U89,\"{\",CHAR(160),GE$1)),FIND(CHAR(160),SUBSTITUTE($U89,\"}\",CHAR(160),GE$1))-FIND(CHAR(160),SUBSTITUTE($U89,\"{\",CHAR(160),GE$1))+1),\"\")","v":""},{"$f":"IFERROR(MID($U89,FIND(CHAR(160),SUBSTITUTE($U89,\"{\",CHAR(160),GF$1)),FIND(CHAR(160),SUBSTITUTE($U89,\"}\",CHAR(160),GF$1))-FIND(CHAR(160),SUBSTITUTE($U89,\"{\",CHAR(160),GF$1))+1),\"\")","v":""},{"$f":"IFERROR(MID($V89,FIND(CHAR(160),SUBSTITUTE($V89,\"{\",CHAR(160),GG$1)),FIND(CHAR(160),SUBSTITUTE($V89,\"}\",CHAR(160),GG$1))-FIND(CHAR(160),SUBSTITUTE($V89,\"{\",CHAR(160),GG$1))+1),\"\")","v":""},{"$f":"IFERROR(MID($V89,FIND(CHAR(160),SUBSTITUTE($V89,\"{\",CHAR(160),GH$1)),FIND(CHAR(160),SUBSTITUTE($V89,\"}\",CHAR(160),GH$1))-FIND(CHAR(160),SUBSTITUTE($V89,\"{\",CHAR(160),GH$1))+1),\"\")","v":""},{"$f":"IFERROR(MID($V89,FIND(CHAR(160),SUBSTITUTE($V89,\"{\",CHAR(160),GI$1)),FIND(CHAR(160),SUBSTITUTE($V89,\"}\",CHAR(160),GI$1))-FIND(CHAR(160),SUBSTITUTE($V89,\"{\",CHAR(160),GI$1))+1),\"\")","v":""},{"$f":"IFERROR(MID($V89,FIND(CHAR(160),SUBSTITUTE($V89,\"{\",CHAR(160),GJ$1)),FIND(CHAR(160),SUBSTITUTE($V89,\"}\",CHAR(160),GJ$1))-FIND(CHAR(160),SUBSTITUTE($V89,\"{\",CHAR(160),GJ$1))+1),\"\")","v":""},{"$f":"IFERROR(MID($V89,FIND(CHAR(160),SUBSTITUTE($V89,\"{\",CHAR(160),GK$1)),FIND(CHAR(160),SUBSTITUTE($V89,\"}\",CHAR(160),GK$1))-FIND(CHAR(160),SUBSTITUTE($V89,\"{\",CHAR(160),GK$1))+1),\"\")","v":""},{"$f":"IFERROR(MID($V89,FIND(CHAR(160),SUBSTITUTE($V89,\"{\",CHAR(160),GL$1)),FIND(CHAR(160),SUBSTITUTE($V89,\"}\",CHAR(160),GL$1))-FIND(CHAR(160),SUBSTITUTE($V89,\"{\",CHAR(160),GL$1))+1),\"\")","v":""},{"$f":"IFERROR(MID($V89,FIND(CHAR(160),SUBSTITUTE($V89,\"{\",CHAR(160),GM$1)),FIND(CHAR(160),SUBSTITUTE($V89,\"}\",CHAR(160),GM$1))-FIND(CHAR(160),SUBSTITUTE($V89,\"{\",CHAR(160),GM$1))+1),\"\")","v":""},{"$f":"IFERROR(MID($V89,FIND(CHAR(160),SUBSTITUTE($V89,\"{\",CHAR(160),GN$1)),FIND(CHAR(160),SUBSTITUTE($V89,\"}\",CHAR(160),GN$1))-FIND(CHAR(160),SUBSTITUTE($V89,\"{\",CHAR(160),GN$1))+1),\"\")","v":""},{"$f":"IFERROR(MID($V89,FIND(CHAR(160),SUBSTITUTE($V89,\"{\",CHAR(160),GO$1)),FIND(CHAR(160),SUBSTITUTE($V89,\"}\",CHAR(160),GO$1))-FIND(CHAR(160),SUBSTITUTE($V89,\"{\",CHAR(160),GO$1))+1),\"\")","v":""},{"$f":"IFERROR(MID($V89,FIND(CHAR(160),SUBSTITUTE($V89,\"{\",CHAR(160),GP$1)),FIND(CHAR(160),SUBSTITUTE($V89,\"}\",CHAR(160),GP$1))-FIND(CHAR(160),SUBSTITUTE($V89,\"{\",CHAR(160),GP$1))+1),\"\")","v":""},{"$f":"IFERROR(MID($W89,FIND(CHAR(160),SUBSTITUTE($W89,\"{\",CHAR(160),GQ$1)),FIND(CHAR(160),SUBSTITUTE($W89,\"}\",CHAR(160),GQ$1))-FIND(CHAR(160),SUBSTITUTE($W89,\"{\",CHAR(160),GQ$1))+1),\"\")","v":""},{"$f":"IFERROR(MID($W89,FIND(CHAR(160),SUBSTITUTE($W89,\"{\",CHAR(160),GR$1)),FIND(CHAR(160),SUBSTITUTE($W89,\"}\",CHAR(160),GR$1))-FIND(CHAR(160),SUBSTITUTE($W89,\"{\",CHAR(160),GR$1))+1),\"\")","v":""},{"$f":"IFERROR(MID($W89,FIND(CHAR(160),SUBSTITUTE($W89,\"{\",CHAR(160),GS$1)),FIND(CHAR(160),SUBSTITUTE($W89,\"}\",CHAR(160),GS$1))-FIND(CHAR(160),SUBSTITUTE($W89,\"{\",CHAR(160),GS$1))+1),\"\")","v":""},{"$f":"IFERROR(MID($W89,FIND(CHAR(160),SUBSTITUTE($W89,\"{\",CHAR(160),GT$1)),FIND(CHAR(160),SUBSTITUTE($W89,\"}\",CHAR(160),GT$1))-FIND(CHAR(160),SUBSTITUTE($W89,\"{\",CHAR(160),GT$1))+1),\"\")","v":""},{"$f":"IFERROR(MID($W89,FIND(CHAR(160),SUBSTITUTE($W89,\"{\",CHAR(160),GU$1)),FIND(CHAR(160),SUBSTITUTE($W89,\"}\",CHAR(160),GU$1))-FIND(CHAR(160),SUBSTITUTE($W89,\"{\",CHAR(160),GU$1))+1),\"\")","v":""},{"$f":"IFERROR(MID($W89,FIND(CHAR(160),SUBSTITUTE($W89,\"{\",CHAR(160),GV$1)),FIND(CHAR(160),SUBSTITUTE($W89,\"}\",CHAR(160),GV$1))-FIND(CHAR(160),SUBSTITUTE($W89,\"{\",CHAR(160),GV$1))+1),\"\")","v":""},{"$f":"IFERROR(MID($W89,FIND(CHAR(160),SUBSTITUTE($W89,\"{\",CHAR(160),GW$1)),FIND(CHAR(160),SUBSTITUTE($W89,\"}\",CHAR(160),GW$1))-FIND(CHAR(160),SUBSTITUTE($W89,\"{\",CHAR(160),GW$1))+1),\"\")","v":""},{"$f":"IFERROR(MID($W89,FIND(CHAR(160),SUBSTITUTE($W89,\"{\",CHAR(160),GX$1)),FIND(CHAR(160),SUBSTITUTE($W89,\"}\",CHAR(160),GX$1))-FIND(CHAR(160),SUBSTITUTE($W89,\"{\",CHAR(160),GX$1))+1),\"\")","v":""},{"$f":"IFERROR(MID($W89,FIND(CHAR(160),SUBSTITUTE($W89,\"{\",CHAR(160),GY$1)),FIND(CHAR(160),SUBSTITUTE($W89,\"}\",CHAR(160),GY$1))-FIND(CHAR(160),SUBSTITUTE($W89,\"{\",CHAR(160),GY$1))+1),\"\")","v":""},{"$f":"IFERROR(MID($W89,FIND(CHAR(160),SUBSTITUTE($W89,\"{\",CHAR(160),GZ$1)),FIND(CHAR(160),SUBSTITUTE($W89,\"}\",CHAR(160),GZ$1))-FIND(CHAR(160),SUBSTITUTE($W89,\"{\",CHAR(160),GZ$1))+1),\"\")","v":""},{"$f":"IFERROR(MID($X89,FIND(CHAR(160),SUBSTITUTE($X89,\"{\",CHAR(160),HA$1)),FIND(CHAR(160),SUBSTITUTE($X89,\"}\",CHAR(160),HA$1))-FIND(CHAR(160),SUBSTITUTE($X89,\"{\",CHAR(160),HA$1))+1),\"\")","v":""},{"$f":"IFERROR(MID($X89,FIND(CHAR(160),SUBSTITUTE($X89,\"{\",CHAR(160),HB$1)),FIND(CHAR(160),SUBSTITUTE($X89,\"}\",CHAR(160),HB$1))-FIND(CHAR(160),SUBSTITUTE($X89,\"{\",CHAR(160),HB$1))+1),\"\")","v":""},{"$f":"IFERROR(MID($X89,FIND(CHAR(160),SUBSTITUTE($X89,\"{\",CHAR(160),HC$1)),FIND(CHAR(160),SUBSTITUTE($X89,\"}\",CHAR(160),HC$1))-FIND(CHAR(160),SUBSTITUTE($X89,\"{\",CHAR(160),HC$1))+1),\"\")","v":""},{"$f":"IFERROR(MID($X89,FIND(CHAR(160),SUBSTITUTE($X89,\"{\",CHAR(160),HD$1)),FIND(CHAR(160),SUBSTITUTE($X89,\"}\",CHAR(160),HD$1))-FIND(CHAR(160),SUBSTITUTE($X89,\"{\",CHAR(160),HD$1))+1),\"\")","v":""},{"$f":"IFERROR(MID($X89,FIND(CHAR(160),SUBSTITUTE($X89,\"{\",CHAR(160),HE$1)),FIND(CHAR(160),SUBSTITUTE($X89,\"}\",CHAR(160),HE$1))-FIND(CHAR(160),SUBSTITUTE($X89,\"{\",CHAR(160),HE$1))+1),\"\")","v":""},{"$f":"IFERROR(MID($X89,FIND(CHAR(160),SUBSTITUTE($X89,\"{\",CHAR(160),HF$1)),FIND(CHAR(160),SUBSTITUTE($X89,\"}\",CHAR(160),HF$1))-FIND(CHAR(160),SUBSTITUTE($X89,\"{\",CHAR(160),HF$1))+1),\"\")","v":""},{"$f":"IFERROR(MID($X89,FIND(CHAR(160),SUBSTITUTE($X89,\"{\",CHAR(160),HG$1)),FIND(CHAR(160),SUBSTITUTE($X89,\"}\",CHAR(160),HG$1))-FIND(CHAR(160),SUBSTITUTE($X89,\"{\",CHAR(160),HG$1))+1),\"\")","v":""},{"$f":"IFERROR(MID($X89,FIND(CHAR(160),SUBSTITUTE($X89,\"{\",CHAR(160),HH$1)),FIND(CHAR(160),SUBSTITUTE($X89,\"}\",CHAR(160),HH$1))-FIND(CHAR(160),SUBSTITUTE($X89,\"{\",CHAR(160),HH$1))+1),\"\")","v":""},{"$f":"IFERROR(MID($X89,FIND(CHAR(160),SUBSTITUTE($X89,\"{\",CHAR(160),HI$1)),FIND(CHAR(160),SUBSTITUTE($X89,\"}\",CHAR(160),HI$1))-FIND(CHAR(160),SUBSTITUTE($X89,\"{\",CHAR(160),HI$1))+1),\"\")","v":""},{"$f":"IFERROR(MID($X89,FIND(CHAR(160),SUBSTITUTE($X89,\"{\",CHAR(160),HJ$1)),FIND(CHAR(160),SUBSTITUTE($X89,\"}\",CHAR(160),HJ$1))-FIND(CHAR(160),SUBSTITUTE($X89,\"{\",CHAR(160),HJ$1))+1),\"\")","v":""},{"$f":"IFERROR(MID($Y89,FIND(CHAR(160),SUBSTITUTE($Y89,\"{\",CHAR(160),HK$1)),FIND(CHAR(160),SUBSTITUTE($Y89,\"}\",CHAR(160),HK$1))-FIND(CHAR(160),SUBSTITUTE($Y89,\"{\",CHAR(160),HK$1))+1),\"\")","v":"{Capacity (MBTUH)}"},{"$f":"IFERROR(MID($Y89,FIND(CHAR(160),SUBSTITUTE($Y89,\"{\",CHAR(160),HL$1)),FIND(CHAR(160),SUBSTITUTE($Y89,\"}\",CHAR(160),HL$1))-FIND(CHAR(160),SUBSTITUTE($Y89,\"{\",CHAR(160),HL$1))+1),\"\")","v":"{End-Use}"},{"$f":"IFERROR(MID($Y89,FIND(CHAR(160),SUBSTITUTE($Y89,\"{\",CHAR(160),HM$1)),FIND(CHAR(160),SUBSTITUTE($Y89,\"}\",CHAR(160),HM$1))-FIND(CHAR(160),SUBSTITUTE($Y89,\"{\",CHAR(160),HM$1))+1),\"\")","v":"{Annual Hours of Operation}"},{"$f":"IFERROR(MID($Y89,FIND(CHAR(160),SUBSTITUTE($Y89,\"{\",CHAR(160),HN$1)),FIND(CHAR(160),SUBSTITUTE($Y89,\"}\",CHAR(160),HN$1))-FIND(CHAR(160),SUBSTITUTE($Y89,\"{\",CHAR(160),HN$1))+1),\"\")","v":""},{"$f":"IFERROR(MID($Y89,FIND(CHAR(160),SUBSTITUTE($Y89,\"{\",CHAR(160),HO$1)),FIND(CHAR(160),SUBSTITUTE($Y89,\"}\",CHAR(160),HO$1))-FIND(CHAR(160),SUBSTITUTE($Y89,\"{\",CHAR(160),HO$1))+1),\"\")","v":""},{"$f":"IFERROR(MID($Y89,FIND(CHAR(160),SUBSTITUTE($Y89,\"{\",CHAR(160),HP$1)),FIND(CHAR(160),SUBSTITUTE($Y89,\"}\",CHAR(160),HP$1))-FIND(CHAR(160),SUBSTITUTE($Y89,\"{\",CHAR(160),HP$1))+1),\"\")","v":""},{"$f":"IFERROR(MID($Y89,FIND(CHAR(160),SUBSTITUTE($Y89,\"{\",CHAR(160),HQ$1)),FIND(CHAR(160),SUBSTITUTE($Y89,\"}\",CHAR(160),HQ$1))-FIND(CHAR(160),SUBSTITUTE($Y89,\"{\",CHAR(160),HQ$1))+1),\"\")","v":""},{"$f":"IFERROR(MID($Y89,FIND(CHAR(160),SUBSTITUTE($Y89,\"{\",CHAR(160),HR$1)),FIND(CHAR(160),SUBSTITUTE($Y89,\"}\",CHAR(160),HR$1))-FIND(CHAR(160),SUBSTITUTE($Y89,\"{\",CHAR(160),HR$1))+1),\"\")","v":""},{"$f":"IFERROR(MID($Y89,FIND(CHAR(160),SUBSTITUTE($Y89,\"{\",CHAR(160),HS$1)),FIND(CHAR(160),SUBSTITUTE($Y89,\"}\",CHAR(160),HS$1))-FIND(CHAR(160),SUBSTITUTE($Y89,\"{\",CHAR(160),HS$1))+1),\"\")","v":"{Existing Fuel}"},{"$f":"IFERROR(MID($Y89,FIND(CHAR(160),SUBSTITUTE($Y89,\"{\",CHAR(160),HT$1)),FIND(CHAR(160),SUBSTITUTE($Y89,\"}\",CHAR(160),HT$1))-FIND(CHAR(160),SUBSTITUTE($Y89,\"{\",CHAR(160),HT$1))+1),\"\")","v":"{Measure:Quantity}"},{"$f":"IFERROR(MID($Z89,FIND(CHAR(160),SUBSTITUTE($Z89,\"{\",CHAR(160),HU$1)),FIND(CHAR(160),SUBSTITUTE($Z89,\"}\",CHAR(160),HU$1))-FIND(CHAR(160),SUBSTITUTE($Z89,\"{\",CHAR(160),HU$1))+1),\"\")","v":""},{"$f":"IFERROR(MID($Z89,FIND(CHAR(160),SUBSTITUTE($Z89,\"{\",CHAR(160),HV$1)),FIND(CHAR(160),SUBSTITUTE($Z89,\"}\",CHAR(160),HV$1))-FIND(CHAR(160),SUBSTITUTE($Z89,\"{\",CHAR(160),HV$1))+1),\"\")","v":""},{"$f":"IFERROR(MID($Z89,FIND(CHAR(160),SUBSTITUTE($Z89,\"{\",CHAR(160),HW$1)),FIND(CHAR(160),SUBSTITUTE($Z89,\"}\",CHAR(160),HW$1))-FIND(CHAR(160),SUBSTITUTE($Z89,\"{\",CHAR(160),HW$1))+1),\"\")","v":""},{"$f":"IFERROR(MID($Z89,FIND(CHAR(160),SUBSTITUTE($Z89,\"{\",CHAR(160),HX$1)),FIND(CHAR(160),SUBSTITUTE($Z89,\"}\",CHAR(160),HX$1))-FIND(CHAR(160),SUBSTITUTE($Z89,\"{\",CHAR(160),HX$1))+1),\"\")","v":""},{"$f":"IFERROR(MID($Z89,FIND(CHAR(160),SUBSTITUTE($Z89,\"{\",CHAR(160),HY$1)),FIND(CHAR(160),SUBSTITUTE($Z89,\"}\",CHAR(160),HY$1))-FIND(CHAR(160),SUBSTITUTE($Z89,\"{\",CHAR(160),HY$1))+1),\"\")","v":""},{"$f":"IFERROR(MID($Z89,FIND(CHAR(160),SUBSTITUTE($Z89,\"{\",CHAR(160),HZ$1)),FIND(CHAR(160),SUBSTITUTE($Z89,\"}\",CHAR(160),HZ$1))-FIND(CHAR(160),SUBSTITUTE($Z89,\"{\",CHAR(160),HZ$1))+1),\"\")","v":""},{"$f":"IFERROR(MID($Z89,FIND(CHAR(160),SUBSTITUTE($Z89,\"{\",CHAR(160),IA$1)),FIND(CHAR(160),SUBSTITUTE($Z89,\"}\",CHAR(160),IA$1))-FIND(CHAR(160),SUBSTITUTE($Z89,\"{\",CHAR(160),IA$1))+1),\"\")","v":""},{"$f":"IFERROR(MID($Z89,FIND(CHAR(160),SUBSTITUTE($Z89,\"{\",CHAR(160),IB$1)),FIND(CHAR(160),SUBSTITUTE($Z89,\"}\",CHAR(160),IB$1))-FIND(CHAR(160),SUBSTITUTE($Z89,\"{\",CHAR(160),IB$1))+1),\"\")","v":""},{"$f":"IFERROR(MID($Z89,FIND(CHAR(160),SUBSTITUTE($Z89,\"{\",CHAR(160),IC$1)),FIND(CHAR(160),SUBSTITUTE($Z89,\"}\",CHAR(160),IC$1))-FIND(CHAR(160),SUBSTITUTE($Z89,\"{\",CHAR(160),IC$1))+1),\"\")","v":""},{"$f":"IFERROR(MID($Z89,FIND(CHAR(160),SUBSTITUTE($Z89,\"{\",CHAR(160),ID$1)),FIND(CHAR(160),SUBSTITUTE($Z89,\"}\",CHAR(160),ID$1))-FIND(CHAR(160),SUBSTITUTE($Z89,\"{\",CHAR(160),ID$1))+1),\"\")","v":""},{"$f":"IFERROR(MID($AA89,FIND(CHAR(160),SUBSTITUTE($AA89,\"{\",CHAR(160),IE$1)),FIND(CHAR(160),SUBSTITUTE($AA89,\"}\",CHAR(160),IE$1))-FIND(CHAR(160),SUBSTITUTE($AA89,\"{\",CHAR(160),IE$1))+1),\"\")","v":""},{"$f":"IFERROR(MID($AA89,FIND(CHAR(160),SUBSTITUTE($AA89,\"{\",CHAR(160),IF$1)),FIND(CHAR(160),SUBSTITUTE($AA89,\"}\",CHAR(160),IF$1))-FIND(CHAR(160),SUBSTITUTE($AA89,\"{\",CHAR(160),IF$1))+1),\"\")","v":""},{"$f":"IFERROR(MID($AA89,FIND(CHAR(160),SUBSTITUTE($AA89,\"{\",CHAR(160),IG$1)),FIND(CHAR(160),SUBSTITUTE($AA89,\"}\",CHAR(160),IG$1))-FIND(CHAR(160),SUBSTITUTE($AA89,\"{\",CHAR(160),IG$1))+1),\"\")","v":""},{"$f":"IFERROR(MID($AA89,FIND(CHAR(160),SUBSTITUTE($AA89,\"{\",CHAR(160),IH$1)),FIND(CHAR(160),SUBSTITUTE($AA89,\"}\",CHAR(160),IH$1))-FIND(CHAR(160),SUBSTITUTE($AA89,\"{\",CHAR(160),IH$1))+1),\"\")","v":""},{"$f":"IFERROR(MID($AA89,FIND(CHAR(160),SUBSTITUTE($AA89,\"{\",CHAR(160),II$1)),FIND(CHAR(160),SUBSTITUTE($AA89,\"}\",CHAR(160),II$1))-FIND(CHAR(160),SUBSTITUTE($AA89,\"{\",CHAR(160),II$1))+1),\"\")","v":""},{"$f":"IFERROR(MID($AA89,FIND(CHAR(160),SUBSTITUTE($AA89,\"{\",CHAR(160),IJ$1)),FIND(CHAR(160),SUBSTITUTE($AA89,\"}\",CHAR(160),IJ$1))-FIND(CHAR(160),SUBSTITUTE($AA89,\"{\",CHAR(160),IJ$1))+1),\"\")","v":""},{"$f":"IFERROR(MID($AA89,FIND(CHAR(160),SUBSTITUTE($AA89,\"{\",CHAR(160),IK$1)),FIND(CHAR(160),SUBSTITUTE($AA89,\"}\",CHAR(160),IK$1))-FIND(CHAR(160),SUBSTITUTE($AA89,\"{\",CHAR(160),IK$1))+1),\"\")","v":""},{"$f":"IFERROR(MID($AA89,FIND(CHAR(160),SUBSTITUTE($AA89,\"{\",CHAR(160),IL$1)),FIND(CHAR(160),SUBSTITUTE($AA89,\"}\",CHAR(160),IL$1))-FIND(CHAR(160),SUBSTITUTE($AA89,\"{\",CHAR(160),IL$1))+1),\"\")","v":""},{"$f":"IFERROR(MID($AA89,FIND(CHAR(160),SUBSTITUTE($AA89,\"{\",CHAR(160),IM$1)),FIND(CHAR(160),SUBSTITUTE($AA89,\"}\",CHAR(160),IM$1))-FIND(CHAR(160),SUBSTITUTE($AA89,\"{\",CHAR(160),IM$1))+1),\"\")","v":""},{"$f":"IFERROR(MID($AA89,FIND(CHAR(160),SUBSTITUTE($AA89,\"{\",CHAR(160),IN$1)),FIND(CHAR(160),SUBSTITUTE($AA89,\"}\",CHAR(160),IN$1))-FIND(CHAR(160),SUBSTITUTE($AA89,\"{\",CHAR(160),IN$1))+1),\"\")","v":""},{"$f":"IFERROR(MID($AB89,FIND(CHAR(160),SUBSTITUTE($AB89,\"{\",CHAR(160),IO$1)),FIND(CHAR(160),SUBSTITUTE($AB89,\"}\",CHAR(160),IO$1))-FIND(CHAR(160),SUBSTITUTE($AB89,\"{\",CHAR(160),IO$1))+1),\"\")","v":""},{"$f":"IFERROR(MID($AB89,FIND(CHAR(160),SUBSTITUTE($AB89,\"{\",CHAR(160),IP$1)),FIND(CHAR(160),SUBSTITUTE($AB89,\"}\",CHAR(160),IP$1))-FIND(CHAR(160),SUBSTITUTE($AB89,\"{\",CHAR(160),IP$1))+1),\"\")","v":""},{"$f":"IFERROR(MID($AB89,FIND(CHAR(160),SUBSTITUTE($AB89,\"{\",CHAR(160),IQ$1)),FIND(CHAR(160),SUBSTITUTE($AB89,\"}\",CHAR(160),IQ$1))-FIND(CHAR(160),SUBSTITUTE($AB89,\"{\",CHAR(160),IQ$1))+1),\"\")","v":""},{"$f":"IFERROR(MID($AB89,FIND(CHAR(160),SUBSTITUTE($AB89,\"{\",CHAR(160),IR$1)),FIND(CHAR(160),SUBSTITUTE($AB89,\"}\",CHAR(160),IR$1))-FIND(CHAR(160),SUBSTITUTE($AB89,\"{\",CHAR(160),IR$1))+1),\"\")","v":""},{"$f":"IFERROR(MID($AB89,FIND(CHAR(160),SUBSTITUTE($AB89,\"{\",CHAR(160),IS$1)),FIND(CHAR(160),SUBSTITUTE($AB89,\"}\",CHAR(160),IS$1))-FIND(CHAR(160),SUBSTITUTE($AB89,\"{\",CHAR(160),IS$1))+1),\"\")","v":""},{"$f":"IFERROR(MID($AB89,FIND(CHAR(160),SUBSTITUTE($AB89,\"{\",CHAR(160),IT$1)),FIND(CHAR(160),SUBSTITUTE($AB89,\"}\",CHAR(160),IT$1))-FIND(CHAR(160),SUBSTITUTE($AB89,\"{\",CHAR(160),IT$1))+1),\"\")","v":""},{"$f":"IFERROR(MID($AB89,FIND(CHAR(160),SUBSTITUTE($AB89,\"{\",CHAR(160),IU$1)),FIND(CHAR(160),SUBSTITUTE($AB89,\"}\",CHAR(160),IU$1))-FIND(CHAR(160),SUBSTITUTE($AB89,\"{\",CHAR(160),IU$1))+1),\"\")","v":""},{"$f":"IFERROR(MID($AB89,FIND(CHAR(160),SUBSTITUTE($AB89,\"{\",CHAR(160),IV$1)),FIND(CHAR(160),SUBSTITUTE($AB89,\"}\",CHAR(160),IV$1))-FIND(CHAR(160),SUBSTITUTE($AB89,\"{\",CHAR(160),IV$1))+1),\"\")","v":""},{"$f":"IFERROR(MID($AB89,FIND(CHAR(160),SUBSTITUTE($AB89,\"{\",CHAR(160),IW$1)),FIND(CHAR(160),SUBSTITUTE($AB89,\"}\",CHAR(160),IW$1))-FIND(CHAR(160),SUBSTITUTE($AB89,\"{\",CHAR(160),IW$1))+1),\"\")","v":""},{"$f":"IFERROR(MID($AB89,FIND(CHAR(160),SUBSTITUTE($AB89,\"{\",CHAR(160),IX$1)),FIND(CHAR(160),SUBSTITUTE($AB89,\"}\",CHAR(160),IX$1))-FIND(CHAR(160),SUBSTITUTE($AB89,\"{\",CHAR(160),IX$1))+1),\"\")","v":""},null,{"$f":"10-COUNTIF(DU89:ED89,\"\")","v":5}]
["C&I HVAC - Oil","VFD: Building Exhaust Fan","BEF","2021-07-01","2022-06-30","Calculated","{Measure:Quantity}*if({Motor HP}=5,2425,if({Motor HP}=7.5,2648,if({Motor HP}=10,2871,if({Motor HP}=15,3317,if({Motor HP}=20,3763,if({Motor HP}=25,4209,if({Motor HP}=30,4655,0)))))))",0,"Calculated","{Measure:Quantity}*if({Motor HP}=5,400,if({Motor HP}=7.5,650,if({Motor HP}=10,1400,if({Motor HP}=15,1650,if({Motor HP}=20,1850,if({Motor HP}=25,2000,if({Motor HP}=30,2300,0)))))))",0,"2021-05-25","2022-06-30","Calculated","{Measure:Quantity}*{Motor HP}*755",null,null,"{Measure:Quantity}*{Motor HP}*.120",null,null,"{Measure:Quantity}*{Factor:WinterCF}*{Motor HP}*.120","{Measure:Quantity}*{Factor:SummerCF}*{Motor HP}*.120",null,null,null,null,null,null,"2021-05-24","2022-06-30",13,0.73699999999999999,0.35499999999999998,0.44400000000000001,0.222,0.16,0.17399999999999999,1,1.1220000000000001,1,0.52,1.6E-2,null,{"$f":"DU90","v":"{Measure:Quantity}"},1,{"$f":"DV90","v":"{Motor HP}"},5,{"$f":"DW90","v":""},null,{"$f":"DX90","v":""},null,{"$f":"DY90","v":""},null,{"$f":"DZ90","v":""},null,{"$f":"EA90","v":""},null,{"$f":"EB90","v":""},null,{"$f":"EC90","v":""},null,{"$f":"ED90","v":""},null,{"$f":"AS90*AU90*755","v":3775},0,0,{"$f":"AS90*AU90*0.12","v":0.6},0,0,{"$f":"AS90*AF90*AU90*0.12","v":0.44219999999999998},{"$f":"AS90*AG90*AU90*0.12","v":0.21299999999999999},0,0,0,0,0,0,null,"Res","Default DR",{"$f":"Benefits(BL90,BR90,BS90,BT90,BU90,BV90,BW90,BX90,BY90,BZ90,AE90,AH90,AI90,AJ90,AK90,AL90,AM90,AN90,AO90,AP90,CA90,CB90)","v":5086.6832116597379},1837.6156335233043,0,0,0,0,0,0,0,{"$f":"SUMPRODUCT(CC90:CK90,--(CC90:CK90>0))","v":6924.2988451830424},{"$f":"-SUMPRODUCT(CC90:CK90,--(CC90:CK90<0))","v":0},null,{"$f":"AS90*IF(AU90=5,2425,IF(AU90=7.5,2648,IF(AU90=10,2871,IF(AU90=15,3317,IF(AU90=20,3763,IF(AU90=25,4209,IF(AU90=30,4655,0)))))))","v":2425},null,null,{"$f":"CM90+CO90","v":2425},{"$f":"IF(NetOrGross=\"Net\",(1-AO90+AP90),1)","v":1},{"$f":"(SUMPRODUCT(CC90:CJ90,--(CC90:CJ90>0))+CN90)*CS90/((-SUMPRODUCT(CC90:CJ90,--(CC90:CJ90<0))+MAX(CO90,CV90)+CP90+CQ90)*CS90+IF(FRIncentives=\"Yes\",CV90*(1-CS90),0))","v":2.8553809670857908},1,{"$f":"AS90*IF(AU90=5,400,IF(AU90=7.5,650,IF(AU90=10,1400,IF(AU90=15,1650,IF(AU90=20,1850,IF(AU90=25,2000,IF(AU90=30,2300,0)))))))","v":400},null,"RGGI","y",null,{"$f":"IF(F90=\"Manual Entry\",\"Manual\",IF(G90=\"\",0,\"X=\"&SUBSTITUTE(SUBSTITUTE(SUBSTITUTE(SUBSTITUTE(SUBSTITUTE(SUBSTITUTE(SUBSTITUTE(SUBSTITUTE(SUBSTITUTE(SUBSTITUTE(SUBSTITUTE(SUBSTITUTE(G90,$ED90,$ED$2&ROW($ED90)),$EC90,$EC$2&ROW($EC90)),$EB90,$EB$2&ROW($EB90)),$EA90,$EA$2&ROW($EA90)),$DZ90,$DZ$2&ROW($DZ90)),$DY90,$DY$2&ROW($DY90)),$DX90,$DX$2&ROW($DX90)),$DW90,$DW$2&ROW($DW90)),$DV90,$DV$2&ROW($DV90)),$DU90,$DU$2&ROW($DU90)),$DT90,$DT$2&ROW($DT90)),$DS90,$DS$2&ROW($DS90))))","v":"X=AS90*if(AU90=5,2425,if(AU90=7.5,2648,if(AU90=10,2871,if(AU90=15,3317,if(AU90=20,3763,if(AU90=25,4209,if(AU90=30,4655,0)))))))"},{"$f":"IF(I90=\"Manual Entry\",\"Manual\",IF(J90=\"\",0,\"X=\"&SUBSTITUTE(SUBSTITUTE(SUBSTITUTE(SUBSTITUTE(SUBSTITUTE(SUBSTITUTE(SUBSTITUTE(SUBSTITUTE(SUBSTITUTE(SUBSTITUTE(SUBSTITUTE(SUBSTITUTE(J90,$ED90,$ED$2&ROW($ED90)),$EC90,$EC$2&ROW($EC90)),$EB90,$EB$2&ROW($EB90)),$EA90,$EA$2&ROW($EA90)),$DZ90,$DZ$2&ROW($DZ90)),$DY90,$DY$2&ROW($DY90)),$DX90,$DX$2&ROW($DX90)),$DW90,$DW$2&ROW($DW90)),$DV90,$DV$2&ROW($DV90)),$DU90,$DU$2&ROW($DU90)),$DT90,$DT$2&ROW($DT90)),$DS90,$DS$2&ROW($DS90))))","v":"X=AS90*if(AU90=5,400,if(AU90=7.5,650,if(AU90=10,1400,if(AU90=15,1650,if(AU90=20,1850,if(AU90=25,2000,if(AU90=30,2300,0)))))))"},{"$f":"IF(O90=\"\",0,\"X=\"&SUBSTITUTE(SUBSTITUTE(SUBSTITUTE(SUBSTITUTE(SUBSTITUTE(SUBSTITUTE(SUBSTITUTE(SUBSTITUTE(SUBSTITUTE(SUBSTITUTE(SUBSTITUTE(SUBSTITUTE(O90,$ED90,$ED$2&ROW($ED90)),$EC90,$EC$2&ROW($EC90)),$EB90,$EB$2&ROW($EB90)),$EA90,$EA$2&ROW($EA90)),$DZ90,$DZ$2&ROW($DZ90)),$DY90,$DY$2&ROW($DY90)),$DX90,$DX$2&ROW($DX90)),$DW90,$DW$2&ROW($DW90)),$DV90,$DV$2&ROW($DV90)),$DU90,$DU$2&ROW($DU90)),$DT90,$DT$2&ROW($DT90)),$DS90,$DS$2&ROW($DS90)))","v":"X=AS90*AU90*755"},{"$f":"IF(P90=\"\",0,\"X=\"&SUBSTITUTE(SUBSTITUTE(SUBSTITUTE(SUBSTITUTE(SUBSTITUTE(SUBSTITUTE(SUBSTITUTE(SUBSTITUTE(SUBSTITUTE(SUBSTITUTE(SUBSTITUTE(SUBSTITUTE(P90,$ED90,$ED$2&ROW($ED90)),$EC90,$EC$2&ROW($EC90)),$EB90,$EB$2&ROW($EB90)),$EA90,$EA$2&ROW($EA90)),$DZ90,$DZ$2&ROW($DZ90)),$DY90,$DY$2&ROW($DY90)),$DX90,$DX$2&ROW($DX90)),$DW90,$DW$2&ROW($DW90)),$DV90,$DV$2&ROW($DV90)),$DU90,$DU$2&ROW($DU90)),$DT90,$DT$2&ROW($DT90)),$DS90,$DS$2&ROW($DS90)))","v":0},{"$f":"IF(Q90=\"\",0,\"X=\"&SUBSTITUTE(SUBSTITUTE(SUBSTITUTE(SUBSTITUTE(SUBSTITUTE(SUBSTITUTE(SUBSTITUTE(SUBSTITUTE(SUBSTITUTE(SUBSTITUTE(SUBSTITUTE(SUBSTITUTE(Q90,$ED90,$ED$2&ROW($ED90)),$EC90,$EC$2&ROW($EC90)),$EB90,$EB$2&ROW($EB90)),$EA90,$EA$2&ROW($EA90)),$DZ90,$DZ$2&ROW($DZ90)),$DY90,$DY$2&ROW($DY90)),$DX90,$DX$2&ROW($DX90)),$DW90,$DW$2&ROW($DW90)),$DV90,$DV$2&ROW($DV90)),$DU90,$DU$2&ROW($DU90)),$DT90,$DT$2&ROW($DT90)),$DS90,$DS$2&ROW($DS90)))","v":0},{"$f":"IF(R90=\"\",0,\"X=\"&SUBSTITUTE(SUBSTITUTE(SUBSTITUTE(SUBSTITUTE(SUBSTITUTE(SUBSTITUTE(SUBSTITUTE(SUBSTITUTE(SUBSTITUTE(SUBSTITUTE(SUBSTITUTE(SUBSTITUTE(R90,$ED90,$ED$2&ROW($ED90)),$EC90,$EC$2&ROW($EC90)),$EB90,$EB$2&ROW($EB90)),$EA90,$EA$2&ROW($EA90)),$DZ90,$DZ$2&ROW($DZ90)),$DY90,$DY$2&ROW($DY90)),$DX90,$DX$2&ROW($DX90)),$DW90,$DW$2&ROW($DW90)),$DV90,$DV$2&ROW($DV90)),$DU90,$DU$2&ROW($DU90)),$DT90,$DT$2&ROW($DT90)),$DS90,$DS$2&ROW($DS90)))","v":"X=AS90*AU90*.120"},{"$f":"IF(S90=\"\",0,\"X=\"&SUBSTITUTE(SUBSTITUTE(SUBSTITUTE(SUBSTITUTE(SUBSTITUTE(SUBSTITUTE(SUBSTITUTE(SUBSTITUTE(SUBSTITUTE(SUBSTITUTE(SUBSTITUTE(SUBSTITUTE(S90,$ED90,$ED$2&ROW($ED90)),$EC90,$EC$2&ROW($EC90)),$EB90,$EB$2&ROW($EB90)),$EA90,$EA$2&ROW($EA90)),$DZ90,$DZ$2&ROW($DZ90)),$DY90,$DY$2&ROW($DY90)),$DX90,$DX$2&ROW($DX90)),$DW90,$DW$2&ROW($DW90)),$DV90,$DV$2&ROW($DV90)),$DU90,$DU$2&ROW($DU90)),$DT90,$DT$2&ROW($DT90)),$DS90,$DS$2&ROW($DS90)))","v":0},{"$f":"IF(T90=\"\",0,\"X=\"&SUBSTITUTE(SUBSTITUTE(SUBSTITUTE(SUBSTITUTE(SUBSTITUTE(SUBSTITUTE(SUBSTITUTE(SUBSTITUTE(SUBSTITUTE(SUBSTITUTE(SUBSTITUTE(SUBSTITUTE(T90,$ED90,$ED$2&ROW($ED90)),$EC90,$EC$2&ROW($EC90)),$EB90,$EB$2&ROW($EB90)),$EA90,$EA$2&ROW($EA90)),$DZ90,$DZ$2&ROW($DZ90)),$DY90,$DY$2&ROW($DY90)),$DX90,$DX$2&ROW($DX90)),$DW90,$DW$2&ROW($DW90)),$DV90,$DV$2&ROW($DV90)),$DU90,$DU$2&ROW($DU90)),$DT90,$DT$2&ROW($DT90)),$DS90,$DS$2&ROW($DS90)))","v":0},{"$f":"IF(U90=\"\",0,\"X=\"&SUBSTITUTE(SUBSTITUTE(SUBSTITUTE(SUBSTITUTE(SUBSTITUTE(SUBSTITUTE(SUBSTITUTE(SUBSTITUTE(SUBSTITUTE(SUBSTITUTE(SUBSTITUTE(SUBSTITUTE(U90,$ED90,$ED$2&ROW($ED90)),$EC90,$EC$2&ROW($EC90)),$EB90,$EB$2&ROW($EB90)),$EA90,$EA$2&ROW($EA90)),$DZ90,$DZ$2&ROW($DZ90)),$DY90,$DY$2&ROW($DY90)),$DX90,$DX$2&ROW($DX90)),$DW90,$DW$2&ROW($DW90)),$DV90,$DV$2&ROW($DV90)),$DU90,$DU$2&ROW($DU90)),$DT90,$DT$2&ROW($DT90)),$DS90,$DS$2&ROW($DS90)))","v":"X=AS90*AF90*AU90*.120"},{"$f":"IF(V90=\"\",0,\"X=\"&SUBSTITUTE(SUBSTITUTE(SUBSTITUTE(SUBSTITUTE(SUBSTITUTE(SUBSTITUTE(SUBSTITUTE(SUBSTITUTE(SUBSTITUTE(SUBSTITUTE(SUBSTITUTE(SUBSTITUTE(V90,$ED90,$ED$2&ROW($ED90)),$EC90,$EC$2&ROW($EC90)),$EB90,$EB$2&ROW($EB90)),$EA90,$EA$2&ROW($EA90)),$DZ90,$DZ$2&ROW($DZ90)),$DY90,$DY$2&ROW($DY90)),$DX90,$DX$2&ROW($DX90)),$DW90,$DW$2&ROW($DW90)),$DV90,$DV$2&ROW($DV90)),$DU90,$DU$2&ROW($DU90)),$DT90,$DT$2&ROW($DT90)),$DS90,$DS$2&ROW($DS90)))","v":"X=AS90*AG90*AU90*.120"},{"$f":"IF(W90=\"\",0,\"X=\"&SUBSTITUTE(SUBSTITUTE(SUBSTITUTE(SUBSTITUTE(SUBSTITUTE(SUBSTITUTE(SUBSTITUTE(SUBSTITUTE(SUBSTITUTE(SUBSTITUTE(SUBSTITUTE(SUBSTITUTE(W90,$ED90,$ED$2&ROW($ED90)),$EC90,$EC$2&ROW($EC90)),$EB90,$EB$2&ROW($EB90)),$EA90,$EA$2&ROW($EA90)),$DZ90,$DZ$2&ROW($DZ90)),$DY90,$DY$2&ROW($DY90)),$DX90,$DX$2&ROW($DX90)),$DW90,$DW$2&ROW($DW90)),$DV90,$DV$2&ROW($DV90)),$DU90,$DU$2&ROW($DU90)),$DT90,$DT$2&ROW($DT90)),$DS90,$DS$2&ROW($DS90)))","v":0},{"$f":"IF(X90=\"\",0,\"X=\"&SUBSTITUTE(SUBSTITUTE(SUBSTITUTE(SUBSTITUTE(SUBSTITUTE(SUBSTITUTE(SUBSTITUTE(SUBSTITUTE(SUBSTITUTE(SUBSTITUTE(SUBSTITUTE(SUBSTITUTE(X90,$ED90,$ED$2&ROW($ED90)),$EC90,$EC$2&ROW($EC90)),$EB90,$EB$2&ROW($EB90)),$EA90,$EA$2&ROW($EA90)),$DZ90,$DZ$2&ROW($DZ90)),$DY90,$DY$2&ROW($DY90)),$DX90,$DX$2&ROW($DX90)),$DW90,$DW$2&ROW($DW90)),$DV90,$DV$2&ROW($DV90)),$DU90,$DU$2&ROW($DU90)),$DT90,$DT$2&ROW($DT90)),$DS90,$DS$2&ROW($DS90)))","v":0},{"$f":"IF(Y90=\"\",0,\"X=\"&SUBSTITUTE(SUBSTITUTE(SUBSTITUTE(SUBSTITUTE(SUBSTITUTE(SUBSTITUTE(SUBSTITUTE(SUBSTITUTE(SUBSTITUTE(SUBSTITUTE(SUBSTITUTE(SUBSTITUTE(Y90,$ED90,$ED$2&ROW($ED90)),$EC90,$EC$2&ROW($EC90)),$EB90,$EB$2&ROW($EB90)),$EA90,$EA$2&ROW($EA90)),$DZ90,$DZ$2&ROW($DZ90)),$DY90,$DY$2&ROW($DY90)),$DX90,$DX$2&ROW($DX90)),$DW90,$DW$2&ROW($DW90)),$DV90,$DV$2&ROW($DV90)),$DU90,$DU$2&ROW($DU90)),$DT90,$DT$2&ROW($DT90)),$DS90,$DS$2&ROW($DS90)))","v":0},{"$f":"IF(Z90=\"\",0,\"X=\"&SUBSTITUTE(SUBSTITUTE(SUBSTITUTE(SUBSTITUTE(SUBSTITUTE(SUBSTITUTE(SUBSTITUTE(SUBSTITUTE(SUBSTITUTE(SUBSTITUTE(SUBSTITUTE(SUBSTITUTE(Z90,$ED90,$ED$2&ROW($ED90)),$EC90,$EC$2&ROW($EC90)),$EB90,$EB$2&ROW($EB90)),$EA90,$EA$2&ROW($EA90)),$DZ90,$DZ$2&ROW($DZ90)),$DY90,$DY$2&ROW($DY90)),$DX90,$DX$2&ROW($DX90)),$DW90,$DW$2&ROW($DW90)),$DV90,$DV$2&ROW($DV90)),$DU90,$DU$2&ROW($DU90)),$DT90,$DT$2&ROW($DT90)),$DS90,$DS$2&ROW($DS90)))","v":0},{"$f":"IF(AA90=\"\",0,\"X=\"&SUBSTITUTE(SUBSTITUTE(SUBSTITUTE(SUBSTITUTE(SUBSTITUTE(SUBSTITUTE(SUBSTITUTE(SUBSTITUTE(SUBSTITUTE(SUBSTITUTE(SUBSTITUTE(SUBSTITUTE(AA90,$ED90,$ED$2&ROW($ED90)),$EC90,$EC$2&ROW($EC90)),$EB90,$EB$2&ROW($EB90)),$EA90,$EA$2&ROW($EA90)),$DZ90,$DZ$2&ROW($DZ90)),$DY90,$DY$2&ROW($DY90)),$DX90,$DX$2&ROW($DX90)),$DW90,$DW$2&ROW($DW90)),$DV90,$DV$2&ROW($DV90)),$DU90,$DU$2&ROW($DU90)),$DT90,$DT$2&ROW($DT90)),$DS90,$DS$2&ROW($DS90)))","v":0},{"$f":"IF(AB90=\"\",0,\"X=\"&SUBSTITUTE(SUBSTITUTE(SUBSTITUTE(SUBSTITUTE(SUBSTITUTE(SUBSTITUTE(SUBSTITUTE(SUBSTITUTE(SUBSTITUTE(SUBSTITUTE(SUBSTITUTE(SUBSTITUTE(AB90,$ED90,$ED$2&ROW($ED90)),$EC90,$EC$2&ROW($EC90)),$EB90,$EB$2&ROW($EB90)),$EA90,$EA$2&ROW($EA90)),$DZ90,$DZ$2&ROW($DZ90)),$DY90,$DY$2&ROW($DY90)),$DX90,$DX$2&ROW($DX90)),$DW90,$DW$2&ROW($DW90)),$DV90,$DV$2&ROW($DV90)),$DU90,$DU$2&ROW($DU90)),$DT90,$DT$2&ROW($DT90)),$DS90,$DS$2&ROW($DS90)))","v":0},null,null,"{Factor:WinterCF}","{Factor:SummerCF}",{"$f":"IFERROR(INDEX($EG90:$IV90,MATCH(0,COUNTIF($DR90:DT90,$EG90:$IV90),0)),\"\")","v":"{Measure:Quantity}"},{"$f":"IFERROR(INDEX($EG90:$IV90,MATCH(0,COUNTIF($DR90:DU90,$EG90:$IV90),0)),\"\")","v":"{Motor HP}"},{"$f":"IFERROR(INDEX($EG90:$IV90,MATCH(0,COUNTIF($DR90:DV90,$EG90:$IV90),0)),\"\")","v":""},{"$f":"IFERROR(INDEX($EG90:$IV90,MATCH(0,COUNTIF($DR90:DW90,$EG90:$IV90),0)),\"\")","v":""},{"$f":"IFERROR(INDEX($EG90:$IV90,MATCH(0,COUNTIF($DR90:DX90,$EG90:$IV90),0)),\"\")","v":""},{"$f":"IFERROR(INDEX($EG90:$IV90,MATCH(0,COUNTIF($DR90:DY90,$EG90:$IV90),0)),\"\")","v":""},{"$f":"IFERROR(INDEX($EG90:$IV90,MATCH(0,COUNTIF($DR90:DZ90,$EG90:$IV90),0)),\"\")","v":""},{"$f":"IFERROR(INDEX($EG90:$IV90,MATCH(0,COUNTIF($DR90:EA90,$EG90:$IV90),0)),\"\")","v":""},{"$f":"IFERROR(INDEX($EG90:$IV90,MATCH(0,COUNTIF($DR90:EB90,$EG90:$IV90),0)),\"\")","v":""},{"$f":"IFERROR(INDEX($EG90:$IV90,MATCH(0,COUNTIF($DR90:EC90,$EG90:$IV90),0)),\"\")","v":""},null,null,{"$f":"IFERROR(MID($G90,FIND(CHAR(160),SUBSTITUTE($G90,\"{\",CHAR(160),EG$1)),FIND(CHAR(160),SUBSTITUTE($G90,\"}\",CHAR(160),EG$1))-FIND(CHAR(160),SUBSTITUTE($G90,\"{\",CHAR(160),EG$1))+1),\"\")","v":"{Measure:Quantity}"},{"$f":"IFERROR(MID($G90,FIND(CHAR(160),SUBSTITUTE($G90,\"{\",CHAR(160),EH$1)),FIND(CHAR(160),SUBSTITUTE($G90,\"}\",CHAR(160),EH$1))-FIND(CHAR(160),SUBSTITUTE($G90,\"{\",CHAR(160),EH$1))+1),\"\")","v":"{Motor HP}"},{"$f":"IFERROR(MID($G90,FIND(CHAR(160),SUBSTITUTE($G90,\"{\",CHAR(160),EI$1)),FIND(CHAR(160),SUBSTITUTE($G90,\"}\",CHAR(160),EI$1))-FIND(CHAR(160),SUBSTITUTE($G90,\"{\",CHAR(160),EI$1))+1),\"\")","v":"{Motor HP}"},{"$f":"IFERROR(MID($G90,FIND(CHAR(160),SUBSTITUTE($G90,\"{\",CHAR(160),EJ$1)),FIND(CHAR(160),SUBSTITUTE($G90,\"}\",CHAR(160),EJ$1))-FIND(CHAR(160),SUBSTITUTE($G90,\"{\",CHAR(160),EJ$1))+1),\"\")","v":"{Motor HP}"},{"$f":"IFERROR(MID($G90,FIND(CHAR(160),SUBSTITUTE($G90,\"{\",CHAR(160),EK$1)),FIND(CHAR(160),SUBSTITUTE($G90,\"}\",CHAR(160),EK$1))-FIND(CHAR(160),SUBSTITUTE($G90,\"{\",CHAR(160),EK$1))+1),\"\")","v":"{Motor HP}"},{"$f":"IFERROR(MID($G90,FIND(CHAR(160),SUBSTITUTE($G90,\"{\",CHAR(160),EL$1)),FIND(CHAR(160),SUBSTITUTE($G90,\"}\",CHAR(160),EL$1))-FIND(CHAR(160),SUBSTITUTE($G90,\"{\",CHAR(160),EL$1))+1),\"\")","v":"{Motor HP}"},{"$f":"IFERROR(MID($G90,FIND(CHAR(160),SUBSTITUTE($G90,\"{\",CHAR(160),EM$1)),FIND(CHAR(160),SUBSTITUTE($G90,\"}\",CHAR(160),EM$1))-FIND(CHAR(160),SUBSTITUTE($G90,\"{\",CHAR(160),EM$1))+1),\"\")","v":"{Motor HP}"},{"$f":"IFERROR(MID($G90,FIND(CHAR(160),SUBSTITUTE($G90,\"{\",CHAR(160),EN$1)),FIND(CHAR(160),SUBSTITUTE($G90,\"}\",CHAR(160),EN$1))-FIND(CHAR(160),SUBSTITUTE($G90,\"{\",CHAR(160),EN$1))+1),\"\")","v":"{Motor HP}"},{"$f":"IFERROR(MID($G90,FIND(CHAR(160),SUBSTITUTE($G90,\"{\",CHAR(160),EO$1)),FIND(CHAR(160),SUBSTITUTE($G90,\"}\",CHAR(160),EO$1))-FIND(CHAR(160),SUBSTITUTE($G90,\"{\",CHAR(160),EO$1))+1),\"\")","v":""},{"$f":"IFERROR(MID($G90,FIND(CHAR(160),SUBSTITUTE($G90,\"{\",CHAR(160),EP$1)),FIND(CHAR(160),SUBSTITUTE($G90,\"}\",CHAR(160),EP$1))-FIND(CHAR(160),SUBSTITUTE($G90,\"{\",CHAR(160),EP$1))+1),\"\")","v":""},{"$f":"IFERROR(MID($J90,FIND(CHAR(160),SUBSTITUTE($J90,\"{\",CHAR(160),EQ$1)),FIND(CHAR(160),SUBSTITUTE($J90,\"}\",CHAR(160),EQ$1))-FIND(CHAR(160),SUBSTITUTE($J90,\"{\",CHAR(160),EQ$1))+1),\"\")","v":"{Measure:Quantity}"},{"$f":"IFERROR(MID($J90,FIND(CHAR(160),SUBSTITUTE($J90,\"{\",CHAR(160),ER$1)),FIND(CHAR(160),SUBSTITUTE($J90,\"}\",CHAR(160),ER$1))-FIND(CHAR(160),SUBSTITUTE($J90,\"{\",CHAR(160),ER$1))+1),\"\")","v":"{Motor HP}"},{"$f":"IFERROR(MID($J90,FIND(CHAR(160),SUBSTITUTE($J90,\"{\",CHAR(160),ES$1)),FIND(CHAR(160),SUBSTITUTE($J90,\"}\",CHAR(160),ES$1))-FIND(CHAR(160),SUBSTITUTE($J90,\"{\",CHAR(160),ES$1))+1),\"\")","v":"{Motor HP}"},{"$f":"IFERROR(MID($J90,FIND(CHAR(160),SUBSTITUTE($J90,\"{\",CHAR(160),ET$1)),FIND(CHAR(160),SUBSTITUTE($J90,\"}\",CHAR(160),ET$1))-FIND(CHAR(160),SUBSTITUTE($J90,\"{\",CHAR(160),ET$1))+1),\"\")","v":"{Motor HP}"},{"$f":"IFERROR(MID($J90,FIND(CHAR(160),SUBSTITUTE($J90,\"{\",CHAR(160),EU$1)),FIND(CHAR(160),SUBSTITUTE($J90,\"}\",CHAR(160),EU$1))-FIND(CHAR(160),SUBSTITUTE($J90,\"{\",CHAR(160),EU$1))+1),\"\")","v":"{Motor HP}"},{"$f":"IFERROR(MID($J90,FIND(CHAR(160),SUBSTITUTE($J90,\"{\",CHAR(160),EV$1)),FIND(CHAR(160),SUBSTITUTE($J90,\"}\",CHAR(160),EV$1))-FIND(CHAR(160),SUBSTITUTE($J90,\"{\",CHAR(160),EV$1))+1),\"\")","v":"{Motor HP}"},{"$f":"IFERROR(MID($J90,FIND(CHAR(160),SUBSTITUTE($J90,\"{\",CHAR(160),EW$1)),FIND(CHAR(160),SUBSTITUTE($J90,\"}\",CHAR(160),EW$1))-FIND(CHAR(160),SUBSTITUTE($J90,\"{\",CHAR(160),EW$1))+1),\"\")","v":"{Motor HP}"},{"$f":"IFERROR(MID($J90,FIND(CHAR(160),SUBSTITUTE($J90,\"{\",CHAR(160),EX$1)),FIND(CHAR(160),SUBSTITUTE($J90,\"}\",CHAR(160),EX$1))-FIND(CHAR(160),SUBSTITUTE($J90,\"{\",CHAR(160),EX$1))+1),\"\")","v":"{Motor HP}"},{"$f":"IFERROR(MID($J90,FIND(CHAR(160),SUBSTITUTE($J90,\"{\",CHAR(160),EY$1)),FIND(CHAR(160),SUBSTITUTE($J90,\"}\",CHAR(160),EY$1))-FIND(CHAR(160),SUBSTITUTE($J90,\"{\",CHAR(160),EY$1))+1),\"\")","v":""},{"$f":"IFERROR(MID($J90,FIND(CHAR(160),SUBSTITUTE($J90,\"{\",CHAR(160),EZ$1)),FIND(CHAR(160),SUBSTITUTE($J90,\"}\",CHAR(160),EZ$1))-FIND(CHAR(160),SUBSTITUTE($J90,\"{\",CHAR(160),EZ$1))+1),\"\")","v":""},{"$f":"IFERROR(MID($J90,FIND(CHAR(160),SUBSTITUTE($J90,\"{\",CHAR(160),FA$1)),FIND(CHAR(160),SUBSTITUTE($J90,\"}\",CHAR(160),FA$1))-FIND(CHAR(160),SUBSTITUTE($J90,\"{\",CHAR(160),FA$1))+1),\"\")","v":"{Measure:Quantity}"},{"$f":"IFERROR(MID($J90,FIND(CHAR(160),SUBSTITUTE($J90,\"{\",CHAR(160),FB$1)),FIND(CHAR(160),SUBSTITUTE($J90,\"}\",CHAR(160),FB$1))-FIND(CHAR(160),SUBSTITUTE($J90,\"{\",CHAR(160),FB$1))+1),\"\")","v":"{Motor HP}"},{"$f":"IFERROR(MID($O90,FIND(CHAR(160),SUBSTITUTE($O90,\"{\",CHAR(160),FC$1)),FIND(CHAR(160),SUBSTITUTE($O90,\"}\",CHAR(160),FC$1))-FIND(CHAR(160),SUBSTITUTE($O90,\"{\",CHAR(160),FC$1))+1),\"\")","v":""},{"$f":"IFERROR(MID($O90,FIND(CHAR(160),SUBSTITUTE($O90,\"{\",CHAR(160),FD$1)),FIND(CHAR(160),SUBSTITUTE($O90,\"}\",CHAR(160),FD$1))-FIND(CHAR(160),SUBSTITUTE($O90,\"{\",CHAR(160),FD$1))+1),\"\")","v":""},{"$f":"IFERROR(MID($O90,FIND(CHAR(160),SUBSTITUTE($O90,\"{\",CHAR(160),FE$1)),FIND(CHAR(160),SUBSTITUTE($O90,\"}\",CHAR(160),FE$1))-FIND(CHAR(160),SUBSTITUTE($O90,\"{\",CHAR(160),FE$1))+1),\"\")","v":""},{"$f":"IFERROR(MID($O90,FIND(CHAR(160),SUBSTITUTE($O90,\"{\",CHAR(160),FF$1)),FIND(CHAR(160),SUBSTITUTE($O90,\"}\",CHAR(160),FF$1))-FIND(CHAR(160),SUBSTITUTE($O90,\"{\",CHAR(160),FF$1))+1),\"\")","v":""},{"$f":"IFERROR(MID($O90,FIND(CHAR(160),SUBSTITUTE($O90,\"{\",CHAR(160),FG$1)),FIND(CHAR(160),SUBSTITUTE($O90,\"}\",CHAR(160),FG$1))-FIND(CHAR(160),SUBSTITUTE($O90,\"{\",CHAR(160),FG$1))+1),\"\")","v":""},{"$f":"IFERROR(MID($O90,FIND(CHAR(160),SUBSTITUTE($O90,\"{\",CHAR(160),FH$1)),FIND(CHAR(160),SUBSTITUTE($O90,\"}\",CHAR(160),FH$1))-FIND(CHAR(160),SUBSTITUTE($O90,\"{\",CHAR(160),FH$1))+1),\"\")","v":""},{"$f":"IFERROR(MID($O90,FIND(CHAR(160),SUBSTITUTE($O90,\"{\",CHAR(160),FI$1)),FIND(CHAR(160),SUBSTITUTE($O90,\"}\",CHAR(160),FI$1))-FIND(CHAR(160),SUBSTITUTE($O90,\"{\",CHAR(160),FI$1))+1),\"\")","v":""},{"$f":"IFERROR(MID($O90,FIND(CHAR(160),SUBSTITUTE($O90,\"{\",CHAR(160),FJ$1)),FIND(CHAR(160),SUBSTITUTE($O90,\"}\",CHAR(160),FJ$1))-FIND(CHAR(160),SUBSTITUTE($O90,\"{\",CHAR(160),FJ$1))+1),\"\")","v":""},{"$f":"IFERROR(MID($O90,FIND(CHAR(160),SUBSTITUTE($O90,\"{\",CHAR(160),FK$1)),FIND(CHAR(160),SUBSTITUTE($O90,\"}\",CHAR(160),FK$1))-FIND(CHAR(160),SUBSTITUTE($O90,\"{\",CHAR(160),FK$1))+1),\"\")","v":"{Measure:Quantity}"},{"$f":"IFERROR(MID($O90,FIND(CHAR(160),SUBSTITUTE($O90,\"{\",CHAR(160),FL$1)),FIND(CHAR(160),SUBSTITUTE($O90,\"}\",CHAR(160),FL$1))-FIND(CHAR(160),SUBSTITUTE($O90,\"{\",CHAR(160),FL$1))+1),\"\")","v":"{Motor HP}"},{"$f":"IFERROR(MID($R90,FIND(CHAR(160),SUBSTITUTE($R90,\"{\",CHAR(160),FM$1)),FIND(CHAR(160),SUBSTITUTE($R90,\"}\",CHAR(160),FM$1))-FIND(CHAR(160),SUBSTITUTE($R90,\"{\",CHAR(160),FM$1))+1),\"\")","v":""},{"$f":"IFERROR(MID($R90,FIND(CHAR(160),SUBSTITUTE($R90,\"{\",CHAR(160),FN$1)),FIND(CHAR(160),SUBSTITUTE($R90,\"}\",CHAR(160),FN$1))-FIND(CHAR(160),SUBSTITUTE($R90,\"{\",CHAR(160),FN$1))+1),\"\")","v":""},{"$f":"IFERROR(MID($R90,FIND(CHAR(160),SUBSTITUTE($R90,\"{\",CHAR(160),FO$1)),FIND(CHAR(160),SUBSTITUTE($R90,\"}\",CHAR(160),FO$1))-FIND(CHAR(160),SUBSTITUTE($R90,\"{\",CHAR(160),FO$1))+1),\"\")","v":""},{"$f":"IFERROR(MID($R90,FIND(CHAR(160),SUBSTITUTE($R90,\"{\",CHAR(160),FP$1)),FIND(CHAR(160),SUBSTITUTE($R90,\"}\",CHAR(160),FP$1))-FIND(CHAR(160),SUBSTITUTE($R90,\"{\",CHAR(160),FP$1))+1),\"\")","v":""},{"$f":"IFERROR(MID($R90,FIND(CHAR(160),SUBSTITUTE($R90,\"{\",CHAR(160),FQ$1)),FIND(CHAR(160),SUBSTITUTE($R90,\"}\",CHAR(160),FQ$1))-FIND(CHAR(160),SUBSTITUTE($R90,\"{\",CHAR(160),FQ$1))+1),\"\")","v":""},{"$f":"IFERROR(MID($R90,FIND(CHAR(160),SUBSTITUTE($R90,\"{\",CHAR(160),FR$1)),FIND(CHAR(160),SUBSTITUTE($R90,\"}\",CHAR(160),FR$1))-FIND(CHAR(160),SUBSTITUTE($R90,\"{\",CHAR(160),FR$1))+1),\"\")","v":""},{"$f":"IFERROR(MID($R90,FIND(CHAR(160),SUBSTITUTE($R90,\"{\",CHAR(160),FS$1)),FIND(CHAR(160),SUBSTITUTE($R90,\"}\",CHAR(160),FS$1))-FIND(CHAR(160),SUBSTITUTE($R90,\"{\",CHAR(160),FS$1))+1),\"\")","v":""},{"$f":"IFERROR(MID($R90,FIND(CHAR(160),SUBSTITUTE($R90,\"{\",CHAR(160),FT$1)),FIND(CHAR(160),SUBSTITUTE($R90,\"}\",CHAR(160),FT$1))-FIND(CHAR(160),SUBSTITUTE($R90,\"{\",CHAR(160),FT$1))+1),\"\")","v":""},{"$f":"IFERROR(MID($R90,FIND(CHAR(160),SUBSTITUTE($R90,\"{\",CHAR(160),FU$1)),FIND(CHAR(160),SUBSTITUTE($R90,\"}\",CHAR(160),FU$1))-FIND(CHAR(160),SUBSTITUTE($R90,\"{\",CHAR(160),FU$1))+1),\"\")","v":"{Measure:Quantity}"},{"$f":"IFERROR(MID($R90,FIND(CHAR(160),SUBSTITUTE($R90,\"{\",CHAR(160),FV$1)),FIND(CHAR(160),SUBSTITUTE($R90,\"}\",CHAR(160),FV$1))-FIND(CHAR(160),SUBSTITUTE($R90,\"{\",CHAR(160),FV$1))+1),\"\")","v":"{Motor HP}"},{"$f":"IFERROR(MID($U90,FIND(CHAR(160),SUBSTITUTE($U90,\"{\",CHAR(160),FW$1)),FIND(CHAR(160),SUBSTITUTE($U90,\"}\",CHAR(160),FW$1))-FIND(CHAR(160),SUBSTITUTE($U90,\"{\",CHAR(160),FW$1))+1),\"\")","v":"{Motor HP}"},{"$f":"IFERROR(MID($U90,FIND(CHAR(160),SUBSTITUTE($U90,\"{\",CHAR(160),FX$1)),FIND(CHAR(160),SUBSTITUTE($U90,\"}\",CHAR(160),FX$1))-FIND(CHAR(160),SUBSTITUTE($U90,\"{\",CHAR(160),FX$1))+1),\"\")","v":""},{"$f":"IFERROR(MID($U90,FIND(CHAR(160),SUBSTITUTE($U90,\"{\",CHAR(160),FY$1)),FIND(CHAR(160),SUBSTITUTE($U90,\"}\",CHAR(160),FY$1))-FIND(CHAR(160),SUBSTITUTE($U90,\"{\",CHAR(160),FY$1))+1),\"\")","v":""},{"$f":"IFERROR(MID($U90,FIND(CHAR(160),SUBSTITUTE($U90,\"{\",CHAR(160),FZ$1)),FIND(CHAR(160),SUBSTITUTE($U90,\"}\",CHAR(160),FZ$1))-FIND(CHAR(160),SUBSTITUTE($U90,\"{\",CHAR(160),FZ$1))+1),\"\")","v":""},{"$f":"IFERROR(MID($U90,FIND(CHAR(160),SUBSTITUTE($U90,\"{\",CHAR(160),GA$1)),FIND(CHAR(160),SUBSTITUTE($U90,\"}\",CHAR(160),GA$1))-FIND(CHAR(160),SUBSTITUTE($U90,\"{\",CHAR(160),GA$1))+1),\"\")","v":""},{"$f":"IFERROR(MID($U90,FIND(CHAR(160),SUBSTITUTE($U90,\"{\",CHAR(160),GB$1)),FIND(CHAR(160),SUBSTITUTE($U90,\"}\",CHAR(160),GB$1))-FIND(CHAR(160),SUBSTITUTE($U90,\"{\",CHAR(160),GB$1))+1),\"\")","v":""},{"$f":"IFERROR(MID($U90,FIND(CHAR(160),SUBSTITUTE($U90,\"{\",CHAR(160),GC$1)),FIND(CHAR(160),SUBSTITUTE($U90,\"}\",CHAR(160),GC$1))-FIND(CHAR(160),SUBSTITUTE($U90,\"{\",CHAR(160),GC$1))+1),\"\")","v":""},{"$f":"IFERROR(MID($U90,FIND(CHAR(160),SUBSTITUTE($U90,\"{\",CHAR(160),GD$1)),FIND(CHAR(160),SUBSTITUTE($U90,\"}\",CHAR(160),GD$1))-FIND(CHAR(160),SUBSTITUTE($U90,\"{\",CHAR(160),GD$1))+1),\"\")","v":""},{"$f":"IFERROR(MID($U90,FIND(CHAR(160),SUBSTITUTE($U90,\"{\",CHAR(160),GE$1)),FIND(CHAR(160),SUBSTITUTE($U90,\"}\",CHAR(160),GE$1))-FIND(CHAR(160),SUBSTITUTE($U90,\"{\",CHAR(160),GE$1))+1),\"\")","v":"{Measure:Quantity}"},{"$f":"IFERROR(MID($U90,FIND(CHAR(160),SUBSTITUTE($U90,\"{\",CHAR(160),GF$1)),FIND(CHAR(160),SUBSTITUTE($U90,\"}\",CHAR(160),GF$1))-FIND(CHAR(160),SUBSTITUTE($U90,\"{\",CHAR(160),GF$1))+1),\"\")","v":"{Factor:WinterCF}"},{"$f":"IFERROR(MID($V90,FIND(CHAR(160),SUBSTITUTE($V90,\"{\",CHAR(160),GG$1)),FIND(CHAR(160),SUBSTITUTE($V90,\"}\",CHAR(160),GG$1))-FIND(CHAR(160),SUBSTITUTE($V90,\"{\",CHAR(160),GG$1))+1),\"\")","v":"{Motor HP}"},{"$f":"IFERROR(MID($V90,FIND(CHAR(160),SUBSTITUTE($V90,\"{\",CHAR(160),GH$1)),FIND(CHAR(160),SUBSTITUTE($V90,\"}\",CHAR(160),GH$1))-FIND(CHAR(160),SUBSTITUTE($V90,\"{\",CHAR(160),GH$1))+1),\"\")","v":""},{"$f":"IFERROR(MID($V90,FIND(CHAR(160),SUBSTITUTE($V90,\"{\",CHAR(160),GI$1)),FIND(CHAR(160),SUBSTITUTE($V90,\"}\",CHAR(160),GI$1))-FIND(CHAR(160),SUBSTITUTE($V90,\"{\",CHAR(160),GI$1))+1),\"\")","v":""},{"$f":"IFERROR(MID($V90,FIND(CHAR(160),SUBSTITUTE($V90,\"{\",CHAR(160),GJ$1)),FIND(CHAR(160),SUBSTITUTE($V90,\"}\",CHAR(160),GJ$1))-FIND(CHAR(160),SUBSTITUTE($V90,\"{\",CHAR(160),GJ$1))+1),\"\")","v":""},{"$f":"IFERROR(MID($V90,FIND(CHAR(160),SUBSTITUTE($V90,\"{\",CHAR(160),GK$1)),FIND(CHAR(160),SUBSTITUTE($V90,\"}\",CHAR(160),GK$1))-FIND(CHAR(160),SUBSTITUTE($V90,\"{\",CHAR(160),GK$1))+1),\"\")","v":""},{"$f":"IFERROR(MID($V90,FIND(CHAR(160),SUBSTITUTE($V90,\"{\",CHAR(160),GL$1)),FIND(CHAR(160),SUBSTITUTE($V90,\"}\",CHAR(160),GL$1))-FIND(CHAR(160),SUBSTITUTE($V90,\"{\",CHAR(160),GL$1))+1),\"\")","v":""},{"$f":"IFERROR(MID($V90,FIND(CHAR(160),SUBSTITUTE($V90,\"{\",CHAR(160),GM$1)),FIND(CHAR(160),SUBSTITUTE($V90,\"}\",CHAR(160),GM$1))-FIND(CHAR(160),SUBSTITUTE($V90,\"{\",CHAR(160),GM$1))+1),\"\")","v":""},{"$f":"IFERROR(MID($V90,FIND(CHAR(160),SUBSTITUTE($V90,\"{\",CHAR(160),GN$1)),FIND(CHAR(160),SUBSTITUTE($V90,\"}\",CHAR(160),GN$1))-FIND(CHAR(160),SUBSTITUTE($V90,\"{\",CHAR(160),GN$1))+1),\"\")","v":""},{"$f":"IFERROR(MID($V90,FIND(CHAR(160),SUBSTITUTE($V90,\"{\",CHAR(160),GO$1)),FIND(CHAR(160),SUBSTITUTE($V90,\"}\",CHAR(160),GO$1))-FIND(CHAR(160),SUBSTITUTE($V90,\"{\",CHAR(160),GO$1))+1),\"\")","v":"{Measure:Quantity}"},{"$f":"IFERROR(MID($V90,FIND(CHAR(160),SUBSTITUTE($V90,\"{\",CHAR(160),GP$1)),FIND(CHAR(160),SUBSTITUTE($V90,\"}\",CHAR(160),GP$1))-FIND(CHAR(160),SUBSTITUTE($V90,\"{\",CHAR(160),GP$1))+1),\"\")","v":"{Factor:SummerCF}"},{"$f":"IFERROR(MID($W90,FIND(CHAR(160),SUBSTITUTE($W90,\"{\",CHAR(160),GQ$1)),FIND(CHAR(160),SUBSTITUTE($W90,\"}\",CHAR(160),GQ$1))-FIND(CHAR(160),SUBSTITUTE($W90,\"{\",CHAR(160),GQ$1))+1),\"\")","v":""},{"$f":"IFERROR(MID($W90,FIND(CHAR(160),SUBSTITUTE($W90,\"{\",CHAR(160),GR$1)),FIND(CHAR(160),SUBSTITUTE($W90,\"}\",CHAR(160),GR$1))-FIND(CHAR(160),SUBSTITUTE($W90,\"{\",CHAR(160),GR$1))+1),\"\")","v":""},{"$f":"IFERROR(MID($W90,FIND(CHAR(160),SUBSTITUTE($W90,\"{\",CHAR(160),GS$1)),FIND(CHAR(160),SUBSTITUTE($W90,\"}\",CHAR(160),GS$1))-FIND(CHAR(160),SUBSTITUTE($W90,\"{\",CHAR(160),GS$1))+1),\"\")","v":""},{"$f":"IFERROR(MID($W90,FIND(CHAR(160),SUBSTITUTE($W90,\"{\",CHAR(160),GT$1)),FIND(CHAR(160),SUBSTITUTE($W90,\"}\",CHAR(160),GT$1))-FIND(CHAR(160),SUBSTITUTE($W90,\"{\",CHAR(160),GT$1))+1),\"\")","v":""},{"$f":"IFERROR(MID($W90,FIND(CHAR(160),SUBSTITUTE($W90,\"{\",CHAR(160),GU$1)),FIND(CHAR(160),SUBSTITUTE($W90,\"}\",CHAR(160),GU$1))-FIND(CHAR(160),SUBSTITUTE($W90,\"{\",CHAR(160),GU$1))+1),\"\")","v":""},{"$f":"IFERROR(MID($W90,FIND(CHAR(160),SUBSTITUTE($W90,\"{\",CHAR(160),GV$1)),FIND(CHAR(160),SUBSTITUTE($W90,\"}\",CHAR(160),GV$1))-FIND(CHAR(160),SUBSTITUTE($W90,\"{\",CHAR(160),GV$1))+1),\"\")","v":""},{"$f":"IFERROR(MID($W90,FIND(CHAR(160),SUBSTITUTE($W90,\"{\",CHAR(160),GW$1)),FIND(CHAR(160),SUBSTITUTE($W90,\"}\",CHAR(160),GW$1))-FIND(CHAR(160),SUBSTITUTE($W90,\"{\",CHAR(160),GW$1))+1),\"\")","v":""},{"$f":"IFERROR(MID($W90,FIND(CHAR(160),SUBSTITUTE($W90,\"{\",CHAR(160),GX$1)),FIND(CHAR(160),SUBSTITUTE($W90,\"}\",CHAR(160),GX$1))-FIND(CHAR(160),SUBSTITUTE($W90,\"{\",CHAR(160),GX$1))+1),\"\")","v":""},{"$f":"IFERROR(MID($W90,FIND(CHAR(160),SUBSTITUTE($W90,\"{\",CHAR(160),GY$1)),FIND(CHAR(160),SUBSTITUTE($W90,\"}\",CHAR(160),GY$1))-FIND(CHAR(160),SUBSTITUTE($W90,\"{\",CHAR(160),GY$1))+1),\"\")","v":""},{"$f":"IFERROR(MID($W90,FIND(CHAR(160),SUBSTITUTE($W90,\"{\",CHAR(160),GZ$1)),FIND(CHAR(160),SUBSTITUTE($W90,\"}\",CHAR(160),GZ$1))-FIND(CHAR(160),SUBSTITUTE($W90,\"{\",CHAR(160),GZ$1))+1),\"\")","v":""},{"$f":"IFERROR(MID($X90,FIND(CHAR(160),SUBSTITUTE($X90,\"{\",CHAR(160),HA$1)),FIND(CHAR(160),SUBSTITUTE($X90,\"}\",CHAR(160),HA$1))-FIND(CHAR(160),SUBSTITUTE($X90,\"{\",CHAR(160),HA$1))+1),\"\")","v":""},{"$f":"IFERROR(MID($X90,FIND(CHAR(160),SUBSTITUTE($X90,\"{\",CHAR(160),HB$1)),FIND(CHAR(160),SUBSTITUTE($X90,\"}\",CHAR(160),HB$1))-FIND(CHAR(160),SUBSTITUTE($X90,\"{\",CHAR(160),HB$1))+1),\"\")","v":""},{"$f":"IFERROR(MID($X90,FIND(CHAR(160),SUBSTITUTE($X90,\"{\",CHAR(160),HC$1)),FIND(CHAR(160),SUBSTITUTE($X90,\"}\",CHAR(160),HC$1))-FIND(CHAR(160),SUBSTITUTE($X90,\"{\",CHAR(160),HC$1))+1),\"\")","v":""},{"$f":"IFERROR(MID($X90,FIND(CHAR(160),SUBSTITUTE($X90,\"{\",CHAR(160),HD$1)),FIND(CHAR(160),SUBSTITUTE($X90,\"}\",CHAR(160),HD$1))-FIND(CHAR(160),SUBSTITUTE($X90,\"{\",CHAR(160),HD$1))+1),\"\")","v":""},{"$f":"IFERROR(MID($X90,FIND(CHAR(160),SUBSTITUTE($X90,\"{\",CHAR(160),HE$1)),FIND(CHAR(160),SUBSTITUTE($X90,\"}\",CHAR(160),HE$1))-FIND(CHAR(160),SUBSTITUTE($X90,\"{\",CHAR(160),HE$1))+1),\"\")","v":""},{"$f":"IFERROR(MID($X90,FIND(CHAR(160),SUBSTITUTE($X90,\"{\",CHAR(160),HF$1)),FIND(CHAR(160),SUBSTITUTE($X90,\"}\",CHAR(160),HF$1))-FIND(CHAR(160),SUBSTITUTE($X90,\"{\",CHAR(160),HF$1))+1),\"\")","v":""},{"$f":"IFERROR(MID($X90,FIND(CHAR(160),SUBSTITUTE($X90,\"{\",CHAR(160),HG$1)),FIND(CHAR(160),SUBSTITUTE($X90,\"}\",CHAR(160),HG$1))-FIND(CHAR(160),SUBSTITUTE($X90,\"{\",CHAR(160),HG$1))+1),\"\")","v":""},{"$f":"IFERROR(MID($X90,FIND(CHAR(160),SUBSTITUTE($X90,\"{\",CHAR(160),HH$1)),FIND(CHAR(160),SUBSTITUTE($X90,\"}\",CHAR(160),HH$1))-FIND(CHAR(160),SUBSTITUTE($X90,\"{\",CHAR(160),HH$1))+1),\"\")","v":""},{"$f":"IFERROR(MID($X90,FIND(CHAR(160),SUBSTITUTE($X90,\"{\",CHAR(160),HI$1)),FIND(CHAR(160),SUBSTITUTE($X90,\"}\",CHAR(160),HI$1))-FIND(CHAR(160),SUBSTITUTE($X90,\"{\",CHAR(160),HI$1))+1),\"\")","v":""},{"$f":"IFERROR(MID($X90,FIND(CHAR(160),SUBSTITUTE($X90,\"{\",CHAR(160),HJ$1)),FIND(CHAR(160),SUBSTITUTE($X90,\"}\",CHAR(160),HJ$1))-FIND(CHAR(160),SUBSTITUTE($X90,\"{\",CHAR(160),HJ$1))+1),\"\")","v":""},{"$f":"IFERROR(MID($Y90,FIND(CHAR(160),SUBSTITUTE($Y90,\"{\",CHAR(160),HK$1)),FIND(CHAR(160),SUBSTITUTE($Y90,\"}\",CHAR(160),HK$1))-FIND(CHAR(160),SUBSTITUTE($Y90,\"{\",CHAR(160),HK$1))+1),\"\")","v":""},{"$f":"IFERROR(MID($Y90,FIND(CHAR(160),SUBSTITUTE($Y90,\"{\",CHAR(160),HL$1)),FIND(CHAR(160),SUBSTITUTE($Y90,\"}\",CHAR(160),HL$1))-FIND(CHAR(160),SUBSTITUTE($Y90,\"{\",CHAR(160),HL$1))+1),\"\")","v":""},{"$f":"IFERROR(MID($Y90,FIND(CHAR(160),SUBSTITUTE($Y90,\"{\",CHAR(160),HM$1)),FIND(CHAR(160),SUBSTITUTE($Y90,\"}\",CHAR(160),HM$1))-FIND(CHAR(160),SUBSTITUTE($Y90,\"{\",CHAR(160),HM$1))+1),\"\")","v":""},{"$f":"IFERROR(MID($Y90,FIND(CHAR(160),SUBSTITUTE($Y90,\"{\",CHAR(160),HN$1)),FIND(CHAR(160),SUBSTITUTE($Y90,\"}\",CHAR(160),HN$1))-FIND(CHAR(160),SUBSTITUTE($Y90,\"{\",CHAR(160),HN$1))+1),\"\")","v":""},{"$f":"IFERROR(MID($Y90,FIND(CHAR(160),SUBSTITUTE($Y90,\"{\",CHAR(160),HO$1)),FIND(CHAR(160),SUBSTITUTE($Y90,\"}\",CHAR(160),HO$1))-FIND(CHAR(160),SUBSTITUTE($Y90,\"{\",CHAR(160),HO$1))+1),\"\")","v":""},{"$f":"IFERROR(MID($Y90,FIND(CHAR(160),SUBSTITUTE($Y90,\"{\",CHAR(160),HP$1)),FIND(CHAR(160),SUBSTITUTE($Y90,\"}\",CHAR(160),HP$1))-FIND(CHAR(160),SUBSTITUTE($Y90,\"{\",CHAR(160),HP$1))+1),\"\")","v":""},{"$f":"IFERROR(MID($Y90,FIND(CHAR(160),SUBSTITUTE($Y90,\"{\",CHAR(160),HQ$1)),FIND(CHAR(160),SUBSTITUTE($Y90,\"}\",CHAR(160),HQ$1))-FIND(CHAR(160),SUBSTITUTE($Y90,\"{\",CHAR(160),HQ$1))+1),\"\")","v":""},{"$f":"IFERROR(MID($Y90,FIND(CHAR(160),SUBSTITUTE($Y90,\"{\",CHAR(160),HR$1)),FIND(CHAR(160),SUBSTITUTE($Y90,\"}\",CHAR(160),HR$1))-FIND(CHAR(160),SUBSTITUTE($Y90,\"{\",CHAR(160),HR$1))+1),\"\")","v":""},{"$f":"IFERROR(MID($Y90,FIND(CHAR(160),SUBSTITUTE($Y90,\"{\",CHAR(160),HS$1)),FIND(CHAR(160),SUBSTITUTE($Y90,\"}\",CHAR(160),HS$1))-FIND(CHAR(160),SUBSTITUTE($Y90,\"{\",CHAR(160),HS$1))+1),\"\")","v":""},{"$f":"IFERROR(MID($Y90,FIND(CHAR(160),SUBSTITUTE($Y90,\"{\",CHAR(160),HT$1)),FIND(CHAR(160),SUBSTITUTE($Y90,\"}\",CHAR(160),HT$1))-FIND(CHAR(160),SUBSTITUTE($Y90,\"{\",CHAR(160),HT$1))+1),\"\")","v":""},{"$f":"IFERROR(MID($Z90,FIND(CHAR(160),SUBSTITUTE($Z90,\"{\",CHAR(160),HU$1)),FIND(CHAR(160),SUBSTITUTE($Z90,\"}\",CHAR(160),HU$1))-FIND(CHAR(160),SUBSTITUTE($Z90,\"{\",CHAR(160),HU$1))+1),\"\")","v":""},{"$f":"IFERROR(MID($Z90,FIND(CHAR(160),SUBSTITUTE($Z90,\"{\",CHAR(160),HV$1)),FIND(CHAR(160),SUBSTITUTE($Z90,\"}\",CHAR(160),HV$1))-FIND(CHAR(160),SUBSTITUTE($Z90,\"{\",CHAR(160),HV$1))+1),\"\")","v":""},{"$f":"IFERROR(MID($Z90,FIND(CHAR(160),SUBSTITUTE($Z90,\"{\",CHAR(160),HW$1)),FIND(CHAR(160),SUBSTITUTE($Z90,\"}\",CHAR(160),HW$1))-FIND(CHAR(160),SUBSTITUTE($Z90,\"{\",CHAR(160),HW$1))+1),\"\")","v":""},{"$f":"IFERROR(MID($Z90,FIND(CHAR(160),SUBSTITUTE($Z90,\"{\",CHAR(160),HX$1)),FIND(CHAR(160),SUBSTITUTE($Z90,\"}\",CHAR(160),HX$1))-FIND(CHAR(160),SUBSTITUTE($Z90,\"{\",CHAR(160),HX$1))+1),\"\")","v":""},{"$f":"IFERROR(MID($Z90,FIND(CHAR(160),SUBSTITUTE($Z90,\"{\",CHAR(160),HY$1)),FIND(CHAR(160),SUBSTITUTE($Z90,\"}\",CHAR(160),HY$1))-FIND(CHAR(160),SUBSTITUTE($Z90,\"{\",CHAR(160),HY$1))+1),\"\")","v":""},{"$f":"IFERROR(MID($Z90,FIND(CHAR(160),SUBSTITUTE($Z90,\"{\",CHAR(160),HZ$1)),FIND(CHAR(160),SUBSTITUTE($Z90,\"}\",CHAR(160),HZ$1))-FIND(CHAR(160),SUBSTITUTE($Z90,\"{\",CHAR(160),HZ$1))+1),\"\")","v":""},{"$f":"IFERROR(MID($Z90,FIND(CHAR(160),SUBSTITUTE($Z90,\"{\",CHAR(160),IA$1)),FIND(CHAR(160),SUBSTITUTE($Z90,\"}\",CHAR(160),IA$1))-FIND(CHAR(160),SUBSTITUTE($Z90,\"{\",CHAR(160),IA$1))+1),\"\")","v":""},{"$f":"IFERROR(MID($Z90,FIND(CHAR(160),SUBSTITUTE($Z90,\"{\",CHAR(160),IB$1)),FIND(CHAR(160),SUBSTITUTE($Z90,\"}\",CHAR(160),IB$1))-FIND(CHAR(160),SUBSTITUTE($Z90,\"{\",CHAR(160),IB$1))+1),\"\")","v":""},{"$f":"IFERROR(MID($Z90,FIND(CHAR(160),SUBSTITUTE($Z90,\"{\",CHAR(160),IC$1)),FIND(CHAR(160),SUBSTITUTE($Z90,\"}\",CHAR(160),IC$1))-FIND(CHAR(160),SUBSTITUTE($Z90,\"{\",CHAR(160),IC$1))+1),\"\")","v":""},{"$f":"IFERROR(MID($Z90,FIND(CHAR(160),SUBSTITUTE($Z90,\"{\",CHAR(160),ID$1)),FIND(CHAR(160),SUBSTITUTE($Z90,\"}\",CHAR(160),ID$1))-FIND(CHAR(160),SUBSTITUTE($Z90,\"{\",CHAR(160),ID$1))+1),\"\")","v":""},{"$f":"IFERROR(MID($AA90,FIND(CHAR(160),SUBSTITUTE($AA90,\"{\",CHAR(160),IE$1)),FIND(CHAR(160),SUBSTITUTE($AA90,\"}\",CHAR(160),IE$1))-FIND(CHAR(160),SUBSTITUTE($AA90,\"{\",CHAR(160),IE$1))+1),\"\")","v":""},{"$f":"IFERROR(MID($AA90,FIND(CHAR(160),SUBSTITUTE($AA90,\"{\",CHAR(160),IF$1)),FIND(CHAR(160),SUBSTITUTE($AA90,\"}\",CHAR(160),IF$1))-FIND(CHAR(160),SUBSTITUTE($AA90,\"{\",CHAR(160),IF$1))+1),\"\")","v":""},{"$f":"IFERROR(MID($AA90,FIND(CHAR(160),SUBSTITUTE($AA90,\"{\",CHAR(160),IG$1)),FIND(CHAR(160),SUBSTITUTE($AA90,\"}\",CHAR(160),IG$1))-FIND(CHAR(160),SUBSTITUTE($AA90,\"{\",CHAR(160),IG$1))+1),\"\")","v":""},{"$f":"IFERROR(MID($AA90,FIND(CHAR(160),SUBSTITUTE($AA90,\"{\",CHAR(160),IH$1)),FIND(CHAR(160),SUBSTITUTE($AA90,\"}\",CHAR(160),IH$1))-FIND(CHAR(160),SUBSTITUTE($AA90,\"{\",CHAR(160),IH$1))+1),\"\")","v":""},{"$f":"IFERROR(MID($AA90,FIND(CHAR(160),SUBSTITUTE($AA90,\"{\",CHAR(160),II$1)),FIND(CHAR(160),SUBSTITUTE($AA90,\"}\",CHAR(160),II$1))-FIND(CHAR(160),SUBSTITUTE($AA90,\"{\",CHAR(160),II$1))+1),\"\")","v":""},{"$f":"IFERROR(MID($AA90,FIND(CHAR(160),SUBSTITUTE($AA90,\"{\",CHAR(160),IJ$1)),FIND(CHAR(160),SUBSTITUTE($AA90,\"}\",CHAR(160),IJ$1))-FIND(CHAR(160),SUBSTITUTE($AA90,\"{\",CHAR(160),IJ$1))+1),\"\")","v":""},{"$f":"IFERROR(MID($AA90,FIND(CHAR(160),SUBSTITUTE($AA90,\"{\",CHAR(160),IK$1)),FIND(CHAR(160),SUBSTITUTE($AA90,\"}\",CHAR(160),IK$1))-FIND(CHAR(160),SUBSTITUTE($AA90,\"{\",CHAR(160),IK$1))+1),\"\")","v":""},{"$f":"IFERROR(MID($AA90,FIND(CHAR(160),SUBSTITUTE($AA90,\"{\",CHAR(160),IL$1)),FIND(CHAR(160),SUBSTITUTE($AA90,\"}\",CHAR(160),IL$1))-FIND(CHAR(160),SUBSTITUTE($AA90,\"{\",CHAR(160),IL$1))+1),\"\")","v":""},{"$f":"IFERROR(MID($AA90,FIND(CHAR(160),SUBSTITUTE($AA90,\"{\",CHAR(160),IM$1)),FIND(CHAR(160),SUBSTITUTE($AA90,\"}\",CHAR(160),IM$1))-FIND(CHAR(160),SUBSTITUTE($AA90,\"{\",CHAR(160),IM$1))+1),\"\")","v":""},{"$f":"IFERROR(MID($AA90,FIND(CHAR(160),SUBSTITUTE($AA90,\"{\",CHAR(160),IN$1)),FIND(CHAR(160),SUBSTITUTE($AA90,\"}\",CHAR(160),IN$1))-FIND(CHAR(160),SUBSTITUTE($AA90,\"{\",CHAR(160),IN$1))+1),\"\")","v":""},{"$f":"IFERROR(MID($AB90,FIND(CHAR(160),SUBSTITUTE($AB90,\"{\",CHAR(160),IO$1)),FIND(CHAR(160),SUBSTITUTE($AB90,\"}\",CHAR(160),IO$1))-FIND(CHAR(160),SUBSTITUTE($AB90,\"{\",CHAR(160),IO$1))+1),\"\")","v":""},{"$f":"IFERROR(MID($AB90,FIND(CHAR(160),SUBSTITUTE($AB90,\"{\",CHAR(160),IP$1)),FIND(CHAR(160),SUBSTITUTE($AB90,\"}\",CHAR(160),IP$1))-FIND(CHAR(160),SUBSTITUTE($AB90,\"{\",CHAR(160),IP$1))+1),\"\")","v":""},{"$f":"IFERROR(MID($AB90,FIND(CHAR(160),SUBSTITUTE($AB90,\"{\",CHAR(160),IQ$1)),FIND(CHAR(160),SUBSTITUTE($AB90,\"}\",CHAR(160),IQ$1))-FIND(CHAR(160),SUBSTITUTE($AB90,\"{\",CHAR(160),IQ$1))+1),\"\")","v":""},{"$f":"IFERROR(MID($AB90,FIND(CHAR(160),SUBSTITUTE($AB90,\"{\",CHAR(160),IR$1)),FIND(CHAR(160),SUBSTITUTE($AB90,\"}\",CHAR(160),IR$1))-FIND(CHAR(160),SUBSTITUTE($AB90,\"{\",CHAR(160),IR$1))+1),\"\")","v":""},{"$f":"IFERROR(MID($AB90,FIND(CHAR(160),SUBSTITUTE($AB90,\"{\",CHAR(160),IS$1)),FIND(CHAR(160),SUBSTITUTE($AB90,\"}\",CHAR(160),IS$1))-FIND(CHAR(160),SUBSTITUTE($AB90,\"{\",CHAR(160),IS$1))+1),\"\")","v":""},{"$f":"IFERROR(MID($AB90,FIND(CHAR(160),SUBSTITUTE($AB90,\"{\",CHAR(160),IT$1)),FIND(CHAR(160),SUBSTITUTE($AB90,\"}\",CHAR(160),IT$1))-FIND(CHAR(160),SUBSTITUTE($AB90,\"{\",CHAR(160),IT$1))+1),\"\")","v":""},{"$f":"IFERROR(MID($AB90,FIND(CHAR(160),SUBSTITUTE($AB90,\"{\",CHAR(160),IU$1)),FIND(CHAR(160),SUBSTITUTE($AB90,\"}\",CHAR(160),IU$1))-FIND(CHAR(160),SUBSTITUTE($AB90,\"{\",CHAR(160),IU$1))+1),\"\")","v":""},{"$f":"IFERROR(MID($AB90,FIND(CHAR(160),SUBSTITUTE($AB90,\"{\",CHAR(160),IV$1)),FIND(CHAR(160),SUBSTITUTE($AB90,\"}\",CHAR(160),IV$1))-FIND(CHAR(160),SUBSTITUTE($AB90,\"{\",CHAR(160),IV$1))+1),\"\")","v":""},{"$f":"IFERROR(MID($AB90,FIND(CHAR(160),SUBSTITUTE($AB90,\"{\",CHAR(160),IW$1)),FIND(CHAR(160),SUBSTITUTE($AB90,\"}\",CHAR(160),IW$1))-FIND(CHAR(160),SUBSTITUTE($AB90,\"{\",CHAR(160),IW$1))+1),\"\")","v":""},{"$f":"IFERROR(MID($AB90,FIND(CHAR(160),SUBSTITUTE($AB90,\"{\",CHAR(160),IX$1)),FIND(CHAR(160),SUBSTITUTE($AB90,\"}\",CHAR(160),IX$1))-FIND(CHAR(160),SUBSTITUTE($AB90,\"{\",CHAR(160),IX$1))+1),\"\")","v":""},null,{"$f":"10-COUNTIF(DU90:ED90,\"\")","v":2}]
["C&I HVAC - Oil","VFD: Heating Hot Water Circulation Pump","HHWP","2021-07-01","2022-06-30","Calculated","{Measure:Quantity}*if({Motor HP}=5,2425,if({Motor HP}=7.5,2648,if({Motor HP}=10,2871,if({Motor HP}=15,3317,if({Motor HP}=20,3763,if({Motor HP}=25,4209,if({Motor HP}=30,4655,0)))))))",0,"Calculated","{Measure:Quantity}*if({Motor HP}=5,400,if({Motor HP}=7.5,650,if({Motor HP}=10,1400,if({Motor HP}=15,1650,if({Motor HP}=20,1850,if({Motor HP}=25,2000,if({Motor HP}=30,2300,0)))))))",0,"2021-05-25","2022-06-30","Calculated","{Measure:Quantity}*{Motor HP}*1548",null,null,"{Measure:Quantity}*{Motor HP}*.096",null,null,"{Measure:Quantity}*{Factor:WinterCF}*{Motor HP}*.096","{Measure:Quantity}*{Factor:SummerCF}*{Motor HP}*.096",null,null,null,null,null,null,"2021-05-24","2022-06-30",13,0.73699999999999999,0,0.53600000000000003,0.46300000000000002,0,1E-3,1,1.1220000000000001,1,0.52,1.6E-2,null,{"$f":"DU91","v":"{Measure:Quantity}"},1,{"$f":"DV91","v":"{Motor HP}"},5,{"$f":"DW91","v":""},null,{"$f":"DX91","v":""},null,{"$f":"DY91","v":""},null,{"$f":"DZ91","v":""},null,{"$f":"EA91","v":""},null,{"$f":"EB91","v":""},null,{"$f":"EC91","v":""},null,{"$f":"ED91","v":""},null,{"$f":"AS91*AU91*1548","v":7740},0,0,{"$f":"AS91*AU91*0.096","v":0.48},0,0,{"$f":"AS91*AF91*AU91*0.096","v":0.35376000000000002},{"$f":"AS91*AG91*AU91*0.096","v":0},0,0,0,0,0,0,null,"Res","Default DR",{"$f":"Benefits(BL91,BR91,BS91,BT91,BU91,BV91,BW91,BX91,BY91,BZ91,AE91,AH91,AI91,AJ91,AK91,AL91,AM91,AN91,AO91,AP91,CA91,CB91)","v":10983.087896241661},1184.7547047844068,0,0,0,0,0,0,0,{"$f":"SUMPRODUCT(CC91:CK91,--(CC91:CK91>0))","v":12167.842601026068},{"$f":"-SUMPRODUCT(CC91:CK91,--(CC91:CK91<0))","v":0},null,{"$f":"AS91*IF(AU91=5,2425,IF(AU91=7.5,2648,IF(AU91=10,2871,IF(AU91=15,3317,IF(AU91=20,3763,IF(AU91=25,4209,IF(AU91=30,4655,0)))))))","v":2425},null,null,{"$f":"CM91+CO91","v":2425},{"$f":"IF(NetOrGross=\"Net\",(1-AO91+AP91),1)","v":1},{"$f":"(SUMPRODUCT(CC91:CJ91,--(CC91:CJ91>0))+CN91)*CS91/((-SUMPRODUCT(CC91:CJ91,--(CC91:CJ91<0))+MAX(CO91,CV91)+CP91+CQ91)*CS91+IF(FRIncentives=\"Yes\",CV91*(1-CS91),0))","v":5.0176670519695126},1,{"$f":"AS91*IF(AU91=5,400,IF(AU91=7.5,650,IF(AU91=10,1400,IF(AU91=15,1650,IF(AU91=20,1850,IF(AU91=25,2000,IF(AU91=30,2300,0)))))))","v":400},null,"RGGI","y",null,{"$f":"IF(F91=\"Manual Entry\",\"Manual\",IF(G91=\"\",0,\"X=\"&SUBSTITUTE(SUBSTITUTE(SUBSTITUTE(SUBSTITUTE(SUBSTITUTE(SUBSTITUTE(SUBSTITUTE(SUBSTITUTE(SUBSTITUTE(SUBSTITUTE(SUBSTITUTE(SUBSTITUTE(G91,$ED91,$ED$2&ROW($ED91)),$EC91,$EC$2&ROW($EC91)),$EB91,$EB$2&ROW($EB91)),$EA91,$EA$2&ROW($EA91)),$DZ91,$DZ$2&ROW($DZ91)),$DY91,$DY$2&ROW($DY91)),$DX91,$DX$2&ROW($DX91)),$DW91,$DW$2&ROW($DW91)),$DV91,$DV$2&ROW($DV91)),$DU91,$DU$2&ROW($DU91)),$DT91,$DT$2&ROW($DT91)),$DS91,$DS$2&ROW($DS91))))","v":"X=AS91*if(AU91=5,2425,if(AU91=7.5,2648,if(AU91=10,2871,if(AU91=15,3317,if(AU91=20,3763,if(AU91=25,4209,if(AU91=30,4655,0)))))))"},{"$f":"IF(I91=\"Manual Entry\",\"Manual\",IF(J91=\"\",0,\"X=\"&SUBSTITUTE(SUBSTITUTE(SUBSTITUTE(SUBSTITUTE(SUBSTITUTE(SUBSTITUTE(SUBSTITUTE(SUBSTITUTE(SUBSTITUTE(SUBSTITUTE(SUBSTITUTE(SUBSTITUTE(J91,$ED91,$ED$2&ROW($ED91)),$EC91,$EC$2&ROW($EC91)),$EB91,$EB$2&ROW($EB91)),$EA91,$EA$2&ROW($EA91)),$DZ91,$DZ$2&ROW($DZ91)),$DY91,$DY$2&ROW($DY91)),$DX91,$DX$2&ROW($DX91)),$DW91,$DW$2&ROW($DW91)),$DV91,$DV$2&ROW($DV91)),$DU91,$DU$2&ROW($DU91)),$DT91,$DT$2&ROW($DT91)),$DS91,$DS$2&ROW($DS91))))","v":"X=AS91*if(AU91=5,400,if(AU91=7.5,650,if(AU91=10,1400,if(AU91=15,1650,if(AU91=20,1850,if(AU91=25,2000,if(AU91=30,2300,0)))))))"},{"$f":"IF(O91=\"\",0,\"X=\"&SUBSTITUTE(SUBSTITUTE(SUBSTITUTE(SUBSTITUTE(SUBSTITUTE(SUBSTITUTE(SUBSTITUTE(SUBSTITUTE(SUBSTITUTE(SUBSTITUTE(SUBSTITUTE(SUBSTITUTE(O91,$ED91,$ED$2&ROW($ED91)),$EC91,$EC$2&ROW($EC91)),$EB91,$EB$2&ROW($EB91)),$EA91,$EA$2&ROW($EA91)),$DZ91,$DZ$2&ROW($DZ91)),$DY91,$DY$2&ROW($DY91)),$DX91,$DX$2&ROW($DX91)),$DW91,$DW$2&ROW($DW91)),$DV91,$DV$2&ROW($DV91)),$DU91,$DU$2&ROW($DU91)),$DT91,$DT$2&ROW($DT91)),$DS91,$DS$2&ROW($DS91)))","v":"X=AS91*AU91*1548"},{"$f":"IF(P91=\"\",0,\"X=\"&SUBSTITUTE(SUBSTITUTE(SUBSTITUTE(SUBSTITUTE(SUBSTITUTE(SUBSTITUTE(SUBSTITUTE(SUBSTITUTE(SUBSTITUTE(SUBSTITUTE(SUBSTITUTE(SUBSTITUTE(P91,$ED91,$ED$2&ROW($ED91)),$EC91,$EC$2&ROW($EC91)),$EB91,$EB$2&ROW($EB91)),$EA91,$EA$2&ROW($EA91)),$DZ91,$DZ$2&ROW($DZ91)),$DY91,$DY$2&ROW($DY91)),$DX91,$DX$2&ROW($DX91)),$DW91,$DW$2&ROW($DW91)),$DV91,$DV$2&ROW($DV91)),$DU91,$DU$2&ROW($DU91)),$DT91,$DT$2&ROW($DT91)),$DS91,$DS$2&ROW($DS91)))","v":0},{"$f":"IF(Q91=\"\",0,\"X=\"&SUBSTITUTE(SUBSTITUTE(SUBSTITUTE(SUBSTITUTE(SUBSTITUTE(SUBSTITUTE(SUBSTITUTE(SUBSTITUTE(SUBSTITUTE(SUBSTITUTE(SUBSTITUTE(SUBSTITUTE(Q91,$ED91,$ED$2&ROW($ED91)),$EC91,$EC$2&ROW($EC91)),$EB91,$EB$2&ROW($EB91)),$EA91,$EA$2&ROW($EA91)),$DZ91,$DZ$2&ROW($DZ91)),$DY91,$DY$2&ROW($DY91)),$DX91,$DX$2&ROW($DX91)),$DW91,$DW$2&ROW($DW91)),$DV91,$DV$2&ROW($DV91)),$DU91,$DU$2&ROW($DU91)),$DT91,$DT$2&ROW($DT91)),$DS91,$DS$2&ROW($DS91)))","v":0},{"$f":"IF(R91=\"\",0,\"X=\"&SUBSTITUTE(SUBSTITUTE(SUBSTITUTE(SUBSTITUTE(SUBSTITUTE(SUBSTITUTE(SUBSTITUTE(SUBSTITUTE(SUBSTITUTE(SUBSTITUTE(SUBSTITUTE(SUBSTITUTE(R91,$ED91,$ED$2&ROW($ED91)),$EC91,$EC$2&ROW($EC91)),$EB91,$EB$2&ROW($EB91)),$EA91,$EA$2&ROW($EA91)),$DZ91,$DZ$2&ROW($DZ91)),$DY91,$DY$2&ROW($DY91)),$DX91,$DX$2&ROW($DX91)),$DW91,$DW$2&ROW($DW91)),$DV91,$DV$2&ROW($DV91)),$DU91,$DU$2&ROW($DU91)),$DT91,$DT$2&ROW($DT91)),$DS91,$DS$2&ROW($DS91)))","v":"X=AS91*AU91*.096"},{"$f":"IF(S91=\"\",0,\"X=\"&SUBSTITUTE(SUBSTITUTE(SUBSTITUTE(SUBSTITUTE(SUBSTITUTE(SUBSTITUTE(SUBSTITUTE(SUBSTITUTE(SUBSTITUTE(SUBSTITUTE(SUBSTITUTE(SUBSTITUTE(S91,$ED91,$ED$2&ROW($ED91)),$EC91,$EC$2&ROW($EC91)),$EB91,$EB$2&ROW($EB91)),$EA91,$EA$2&ROW($EA91)),$DZ91,$DZ$2&ROW($DZ91)),$DY91,$DY$2&ROW($DY91)),$DX91,$DX$2&ROW($DX91)),$DW91,$DW$2&ROW($DW91)),$DV91,$DV$2&ROW($DV91)),$DU91,$DU$2&ROW($DU91)),$DT91,$DT$2&ROW($DT91)),$DS91,$DS$2&ROW($DS91)))","v":0},{"$f":"IF(T91=\"\",0,\"X=\"&SUBSTITUTE(SUBSTITUTE(SUBSTITUTE(SUBSTITUTE(SUBSTITUTE(SUBSTITUTE(SUBSTITUTE(SUBSTITUTE(SUBSTITUTE(SUBSTITUTE(SUBSTITUTE(SUBSTITUTE(T91,$ED91,$ED$2&ROW($ED91)),$EC91,$EC$2&ROW($EC91)),$EB91,$EB$2&ROW($EB91)),$EA91,$EA$2&ROW($EA91)),$DZ91,$DZ$2&ROW($DZ91)),$DY91,$DY$2&ROW($DY91)),$DX91,$DX$2&ROW($DX91)),$DW91,$DW$2&ROW($DW91)),$DV91,$DV$2&ROW($DV91)),$DU91,$DU$2&ROW($DU91)),$DT91,$DT$2&ROW($DT91)),$DS91,$DS$2&ROW($DS91)))","v":0},{"$f":"IF(U91=\"\",0,\"X=\"&SUBSTITUTE(SUBSTITUTE(SUBSTITUTE(SUBSTITUTE(SUBSTITUTE(SUBSTITUTE(SUBSTITUTE(SUBSTITUTE(SUBSTITUTE(SUBSTITUTE(SUBSTITUTE(SUBSTITUTE(U91,$ED91,$ED$2&ROW($ED91)),$EC91,$EC$2&ROW($EC91)),$EB91,$EB$2&ROW($EB91)),$EA91,$EA$2&ROW($EA91)),$DZ91,$DZ$2&ROW($DZ91)),$DY91,$DY$2&ROW($DY91)),$DX91,$DX$2&ROW($DX91)),$DW91,$DW$2&ROW($DW91)),$DV91,$DV$2&ROW($DV91)),$DU91,$DU$2&ROW($DU91)),$DT91,$DT$2&ROW($DT91)),$DS91,$DS$2&ROW($DS91)))","v":"X=AS91*AF91*AU91*.096"},{"$f":"IF(V91=\"\",0,\"X=\"&SUBSTITUTE(SUBSTITUTE(SUBSTITUTE(SUBSTITUTE(SUBSTITUTE(SUBSTITUTE(SUBSTITUTE(SUBSTITUTE(SUBSTITUTE(SUBSTITUTE(SUBSTITUTE(SUBSTITUTE(V91,$ED91,$ED$2&ROW($ED91)),$EC91,$EC$2&ROW($EC91)),$EB91,$EB$2&ROW($EB91)),$EA91,$EA$2&ROW($EA91)),$DZ91,$DZ$2&ROW($DZ91)),$DY91,$DY$2&ROW($DY91)),$DX91,$DX$2&ROW($DX91)),$DW91,$DW$2&ROW($DW91)),$DV91,$DV$2&ROW($DV91)),$DU91,$DU$2&ROW($DU91)),$DT91,$DT$2&ROW($DT91)),$DS91,$DS$2&ROW($DS91)))","v":"X=AS91*AG91*AU91*.096"},{"$f":"IF(W91=\"\",0,\"X=\"&SUBSTITUTE(SUBSTITUTE(SUBSTITUTE(SUBSTITUTE(SUBSTITUTE(SUBSTITUTE(SUBSTITUTE(SUBSTITUTE(SUBSTITUTE(SUBSTITUTE(SUBSTITUTE(SUBSTITUTE(W91,$ED91,$ED$2&ROW($ED91)),$EC91,$EC$2&ROW($EC91)),$EB91,$EB$2&ROW($EB91)),$EA91,$EA$2&ROW($EA91)),$DZ91,$DZ$2&ROW($DZ91)),$DY91,$DY$2&ROW($DY91)),$DX91,$DX$2&ROW($DX91)),$DW91,$DW$2&ROW($DW91)),$DV91,$DV$2&ROW($DV91)),$DU91,$DU$2&ROW($DU91)),$DT91,$DT$2&ROW($DT91)),$DS91,$DS$2&ROW($DS91)))","v":0},{"$f":"IF(X91=\"\",0,\"X=\"&SUBSTITUTE(SUBSTITUTE(SUBSTITUTE(SUBSTITUTE(SUBSTITUTE(SUBSTITUTE(SUBSTITUTE(SUBSTITUTE(SUBSTITUTE(SUBSTITUTE(SUBSTITUTE(SUBSTITUTE(X91,$ED91,$ED$2&ROW($ED91)),$EC91,$EC$2&ROW($EC91)),$EB91,$EB$2&ROW($EB91)),$EA91,$EA$2&ROW($EA91)),$DZ91,$DZ$2&ROW($DZ91)),$DY91,$DY$2&ROW($DY91)),$DX91,$DX$2&ROW($DX91)),$DW91,$DW$2&ROW($DW91)),$DV91,$DV$2&ROW($DV91)),$DU91,$DU$2&ROW($DU91)),$DT91,$DT$2&ROW($DT91)),$DS91,$DS$2&ROW($DS91)))","v":0},{"$f":"IF(Y91=\"\",0,\"X=\"&SUBSTITUTE(SUBSTITUTE(SUBSTITUTE(SUBSTITUTE(SUBSTITUTE(SUBSTITUTE(SUBSTITUTE(SUBSTITUTE(SUBSTITUTE(SUBSTITUTE(SUBSTITUTE(SUBSTITUTE(Y91,$ED91,$ED$2&ROW($ED91)),$EC91,$EC$2&ROW($EC91)),$EB91,$EB$2&ROW($EB91)),$EA91,$EA$2&ROW($EA91)),$DZ91,$DZ$2&ROW($DZ91)),$DY91,$DY$2&ROW($DY91)),$DX91,$DX$2&ROW($DX91)),$DW91,$DW$2&ROW($DW91)),$DV91,$DV$2&ROW($DV91)),$DU91,$DU$2&ROW($DU91)),$DT91,$DT$2&ROW($DT91)),$DS91,$DS$2&ROW($DS91)))","v":0},{"$f":"IF(Z91=\"\",0,\"X=\"&SUBSTITUTE(SUBSTITUTE(SUBSTITUTE(SUBSTITUTE(SUBSTITUTE(SUBSTITUTE(SUBSTITUTE(SUBSTITUTE(SUBSTITUTE(SUBSTITUTE(SUBSTITUTE(SUBSTITUTE(Z91,$ED91,$ED$2&ROW($ED91)),$EC91,$EC$2&ROW($EC91)),$EB91,$EB$2&ROW($EB91)),$EA91,$EA$2&ROW($EA91)),$DZ91,$DZ$2&ROW($DZ91)),$DY91,$DY$2&ROW($DY91)),$DX91,$DX$2&ROW($DX91)),$DW91,$DW$2&ROW($DW91)),$DV91,$DV$2&ROW($DV91)),$DU91,$DU$2&ROW($DU91)),$DT91,$DT$2&ROW($DT91)),$DS91,$DS$2&ROW($DS91)))","v":0},{"$f":"IF(AA91=\"\",0,\"X=\"&SUBSTITUTE(SUBSTITUTE(SUBSTITUTE(SUBSTITUTE(SUBSTITUTE(SUBSTITUTE(SUBSTITUTE(SUBSTITUTE(SUBSTITUTE(SUBSTITUTE(SUBSTITUTE(SUBSTITUTE(AA91,$ED91,$ED$2&ROW($ED91)),$EC91,$EC$2&ROW($EC91)),$EB91,$EB$2&ROW($EB91)),$EA91,$EA$2&ROW($EA91)),$DZ91,$DZ$2&ROW($DZ91)),$DY91,$DY$2&ROW($DY91)),$DX91,$DX$2&ROW($DX91)),$DW91,$DW$2&ROW($DW91)),$DV91,$DV$2&ROW($DV91)),$DU91,$DU$2&ROW($DU91)),$DT91,$DT$2&ROW($DT91)),$DS91,$DS$2&ROW($DS91)))","v":0},{"$f":"IF(AB91=\"\",0,\"X=\"&SUBSTITUTE(SUBSTITUTE(SUBSTITUTE(SUBSTITUTE(SUBSTITUTE(SUBSTITUTE(SUBSTITUTE(SUBSTITUTE(SUBSTITUTE(SUBSTITUTE(SUBSTITUTE(SUBSTITUTE(AB91,$ED91,$ED$2&ROW($ED91)),$EC91,$EC$2&ROW($EC91)),$EB91,$EB$2&ROW($EB91)),$EA91,$EA$2&ROW($EA91)),$DZ91,$DZ$2&ROW($DZ91)),$DY91,$DY$2&ROW($DY91)),$DX91,$DX$2&ROW($DX91)),$DW91,$DW$2&ROW($DW91)),$DV91,$DV$2&ROW($DV91)),$DU91,$DU$2&ROW($DU91)),$DT91,$DT$2&ROW($DT91)),$DS91,$DS$2&ROW($DS91)))","v":0},null,null,"{Factor:WinterCF}","{Factor:SummerCF}",{"$f":"IFERROR(INDEX($EG91:$IV91,MATCH(0,COUNTIF($DR91:DT91,$EG91:$IV91),0)),\"\")","v":"{Measure:Quantity}"},{"$f":"IFERROR(INDEX($EG91:$IV91,MATCH(0,COUNTIF($DR91:DU91,$EG91:$IV91),0)),\"\")","v":"{Motor HP}"},{"$f":"IFERROR(INDEX($EG91:$IV91,MATCH(0,COUNTIF($DR91:DV91,$EG91:$IV91),0)),\"\")","v":""},{"$f":"IFERROR(INDEX($EG91:$IV91,MATCH(0,COUNTIF($DR91:DW91,$EG91:$IV91),0)),\"\")","v":""},{"$f":"IFERROR(INDEX($EG91:$IV91,MATCH(0,COUNTIF($DR91:DX91,$EG91:$IV91),0)),\"\")","v":""},{"$f":"IFERROR(INDEX($EG91:$IV91,MATCH(0,COUNTIF($DR91:DY91,$EG91:$IV91),0)),\"\")","v":""},{"$f":"IFERROR(INDEX($EG91:$IV91,MATCH(0,COUNTIF($DR91:DZ91,$EG91:$IV91),0)),\"\")","v":""},{"$f":"IFERROR(INDEX($EG91:$IV91,MATCH(0,COUNTIF($DR91:EA91,$EG91:$IV91),0)),\"\")","v":""},{"$f":"IFERROR(INDEX($EG91:$IV91,MATCH(0,COUNTIF($DR91:EB91,$EG91:$IV91),0)),\"\")","v":""},{"$f":"IFERROR(INDEX($EG91:$IV91,MATCH(0,COUNTIF($DR91:EC91,$EG91:$IV91),0)),\"\")","v":""},null,null,{"$f":"IFERROR(MID($G91,FIND(CHAR(160),SUBSTITUTE($G91,\"{\",CHAR(160),EG$1)),FIND(CHAR(160),SUBSTITUTE($G91,\"}\",CHAR(160),EG$1))-FIND(CHAR(160),SUBSTITUTE($G91,\"{\",CHAR(160),EG$1))+1),\"\")","v":"{Measure:Quantity}"},{"$f":"IFERROR(MID($G91,FIND(CHAR(160),SUBSTITUTE($G91,\"{\",CHAR(160),EH$1)),FIND(CHAR(160),SUBSTITUTE($G91,\"}\",CHAR(160),EH$1))-FIND(CHAR(160),SUBSTITUTE($G91,\"{\",CHAR(160),EH$1))+1),\"\")","v":"{Motor HP}"},{"$f":"IFERROR(MID($G91,FIND(CHAR(160),SUBSTITUTE($G91,\"{\",CHAR(160),EI$1)),FIND(CHAR(160),SUBSTITUTE($G91,\"}\",CHAR(160),EI$1))-FIND(CHAR(160),SUBSTITUTE($G91,\"{\",CHAR(160),EI$1))+1),\"\")","v":"{Motor HP}"},{"$f":"IFERROR(MID($G91,FIND(CHAR(160),SUBSTITUTE($G91,\"{\",CHAR(160),EJ$1)),FIND(CHAR(160),SUBSTITUTE($G91,\"}\",CHAR(160),EJ$1))-FIND(CHAR(160),SUBSTITUTE($G91,\"{\",CHAR(160),EJ$1))+1),\"\")","v":"{Motor HP}"},{"$f":"IFERROR(MID($G91,FIND(CHAR(160),SUBSTITUTE($G91,\"{\",CHAR(160),EK$1)),FIND(CHAR(160),SUBSTITUTE($G91,\"}\",CHAR(160),EK$1))-FIND(CHAR(160),SUBSTITUTE($G91,\"{\",CHAR(160),EK$1))+1),\"\")","v":"{Motor HP}"},{"$f":"IFERROR(MID($G91,FIND(CHAR(160),SUBSTITUTE($G91,\"{\",CHAR(160),EL$1)),FIND(CHAR(160),SUBSTITUTE($G91,\"}\",CHAR(160),EL$1))-FIND(CHAR(160),SUBSTITUTE($G91,\"{\",CHAR(160),EL$1))+1),\"\")","v":"{Motor HP}"},{"$f":"IFERROR(MID($G91,FIND(CHAR(160),SUBSTITUTE($G91,\"{\",CHAR(160),EM$1)),FIND(CHAR(160),SUBSTITUTE($G91,\"}\",CHAR(160),EM$1))-FIND(CHAR(160),SUBSTITUTE($G91,\"{\",CHAR(160),EM$1))+1),\"\")","v":"{Motor HP}"},{"$f":"IFERROR(MID($G91,FIND(CHAR(160),SUBSTITUTE($G91,\"{\",CHAR(160),EN$1)),FIND(CHAR(160),SUBSTITUTE($G91,\"}\",CHAR(160),EN$1))-FIND(CHAR(160),SUBSTITUTE($G91,\"{\",CHAR(160),EN$1))+1),\"\")","v":"{Motor HP}"},{"$f":"IFERROR(MID($G91,FIND(CHAR(160),SUBSTITUTE($G91,\"{\",CHAR(160),EO$1)),FIND(CHAR(160),SUBSTITUTE($G91,\"}\",CHAR(160),EO$1))-FIND(CHAR(160),SUBSTITUTE($G91,\"{\",CHAR(160),EO$1))+1),\"\")","v":""},{"$f":"IFERROR(MID($G91,FIND(CHAR(160),SUBSTITUTE($G91,\"{\",CHAR(160),EP$1)),FIND(CHAR(160),SUBSTITUTE($G91,\"}\",CHAR(160),EP$1))-FIND(CHAR(160),SUBSTITUTE($G91,\"{\",CHAR(160),EP$1))+1),\"\")","v":""},{"$f":"IFERROR(MID($J91,FIND(CHAR(160),SUBSTITUTE($J91,\"{\",CHAR(160),EQ$1)),FIND(CHAR(160),SUBSTITUTE($J91,\"}\",CHAR(160),EQ$1))-FIND(CHAR(160),SUBSTITUTE($J91,\"{\",CHAR(160),EQ$1))+1),\"\")","v":"{Measure:Quantity}"},{"$f":"IFERROR(MID($J91,FIND(CHAR(160),SUBSTITUTE($J91,\"{\",CHAR(160),ER$1)),FIND(CHAR(160),SUBSTITUTE($J91,\"}\",CHAR(160),ER$1))-FIND(CHAR(160),SUBSTITUTE($J91,\"{\",CHAR(160),ER$1))+1),\"\")","v":"{Motor HP}"},{"$f":"IFERROR(MID($J91,FIND(CHAR(160),SUBSTITUTE($J91,\"{\",CHAR(160),ES$1)),FIND(CHAR(160),SUBSTITUTE($J91,\"}\",CHAR(160),ES$1))-FIND(CHAR(160),SUBSTITUTE($J91,\"{\",CHAR(160),ES$1))+1),\"\")","v":"{Motor HP}"},{"$f":"IFERROR(MID($J91,FIND(CHAR(160),SUBSTITUTE($J91,\"{\",CHAR(160),ET$1)),FIND(CHAR(160),SUBSTITUTE($J91,\"}\",CHAR(160),ET$1))-FIND(CHAR(160),SUBSTITUTE($J91,\"{\",CHAR(160),ET$1))+1),\"\")","v":"{Motor HP}"},{"$f":"IFERROR(MID($J91,FIND(CHAR(160),SUBSTITUTE($J91,\"{\",CHAR(160),EU$1)),FIND(CHAR(160),SUBSTITUTE($J91,\"}\",CHAR(160),EU$1))-FIND(CHAR(160),SUBSTITUTE($J91,\"{\",CHAR(160),EU$1))+1),\"\")","v":"{Motor HP}"},{"$f":"IFERROR(MID($J91,FIND(CHAR(160),SUBSTITUTE($J91,\"{\",CHAR(160),EV$1)),FIND(CHAR(160),SUBSTITUTE($J91,\"}\",CHAR(160),EV$1))-FIND(CHAR(160),SUBSTITUTE($J91,\"{\",CHAR(160),EV$1))+1),\"\")","v":"{Motor HP}"},{"$f":"IFERROR(MID($J91,FIND(CHAR(160),SUBSTITUTE($J91,\"{\",CHAR(160),EW$1)),FIND(CHAR(160),SUBSTITUTE($J91,\"}\",CHAR(160),EW$1))-FIND(CHAR(160),SUBSTITUTE($J91,\"{\",CHAR(160),EW$1))+1),\"\")","v":"{Motor HP}"},{"$f":"IFERROR(MID($J91,FIND(CHAR(160),SUBSTITUTE($J91,\"{\",CHAR(160),EX$1)),FIND(CHAR(160),SUBSTITUTE($J91,\"}\",CHAR(160),EX$1))-FIND(CHAR(160),SUBSTITUTE($J91,\"{\",CHAR(160),EX$1))+1),\"\")","v":"{Motor HP}"},{"$f":"IFERROR(MID($J91,FIND(CHAR(160),SUBSTITUTE($J91,\"{\",CHAR(160),EY$1)),FIND(CHAR(160),SUBSTITUTE($J91,\"}\",CHAR(160),EY$1))-FIND(CHAR(160),SUBSTITUTE($J91,\"{\",CHAR(160),EY$1))+1),\"\")","v":""},{"$f":"IFERROR(MID($J91,FIND(CHAR(160),SUBSTITUTE($J91,\"{\",CHAR(160),EZ$1)),FIND(CHAR(160),SUBSTITUTE($J91,\"}\",CHAR(160),EZ$1))-FIND(CHAR(160),SUBSTITUTE($J91,\"{\",CHAR(160),EZ$1))+1),\"\")","v":""},{"$f":"IFERROR(MID($J91,FIND(CHAR(160),SUBSTITUTE($J91,\"{\",CHAR(160),FA$1)),FIND(CHAR(160),SUBSTITUTE($J91,\"}\",CHAR(160),FA$1))-FIND(CHAR(160),SUBSTITUTE($J91,\"{\",CHAR(160),FA$1))+1),\"\")","v":"{Measure:Quantity}"},{"$f":"IFERROR(MID($J91,FIND(CHAR(160),SUBSTITUTE($J91,\"{\",CHAR(160),FB$1)),FIND(CHAR(160),SUBSTITUTE($J91,\"}\",CHAR(160),FB$1))-FIND(CHAR(160),SUBSTITUTE($J91,\"{\",CHAR(160),FB$1))+1),\"\")","v":"{Motor HP}"},{"$f":"IFERROR(MID($O91,FIND(CHAR(160),SUBSTITUTE($O91,\"{\",CHAR(160),FC$1)),FIND(CHAR(160),SUBSTITUTE($O91,\"}\",CHAR(160),FC$1))-FIND(CHAR(160),SUBSTITUTE($O91,\"{\",CHAR(160),FC$1))+1),\"\")","v":""},{"$f":"IFERROR(MID($O91,FIND(CHAR(160),SUBSTITUTE($O91,\"{\",CHAR(160),FD$1)),FIND(CHAR(160),SUBSTITUTE($O91,\"}\",CHAR(160),FD$1))-FIND(CHAR(160),SUBSTITUTE($O91,\"{\",CHAR(160),FD$1))+1),\"\")","v":""},{"$f":"IFERROR(MID($O91,FIND(CHAR(160),SUBSTITUTE($O91,\"{\",CHAR(160),FE$1)),FIND(CHAR(160),SUBSTITUTE($O91,\"}\",CHAR(160),FE$1))-FIND(CHAR(160),SUBSTITUTE($O91,\"{\",CHAR(160),FE$1))+1),\"\")","v":""},{"$f":"IFERROR(MID($O91,FIND(CHAR(160),SUBSTITUTE($O91,\"{\",CHAR(160),FF$1)),FIND(CHAR(160),SUBSTITUTE($O91,\"}\",CHAR(160),FF$1))-FIND(CHAR(160),SUBSTITUTE($O91,\"{\",CHAR(160),FF$1))+1),\"\")","v":""},{"$f":"IFERROR(MID($O91,FIND(CHAR(160),SUBSTITUTE($O91,\"{\",CHAR(160),FG$1)),FIND(CHAR(160),SUBSTITUTE($O91,\"}\",CHAR(160),FG$1))-FIND(CHAR(160),SUBSTITUTE($O91,\"{\",CHAR(160),FG$1))+1),\"\")","v":""},{"$f":"IFERROR(MID($O91,FIND(CHAR(160),SUBSTITUTE($O91,\"{\",CHAR(160),FH$1)),FIND(CHAR(160),SUBSTITUTE($O91,\"}\",CHAR(160),FH$1))-FIND(CHAR(160),SUBSTITUTE($O91,\"{\",CHAR(160),FH$1))+1),\"\")","v":""},{"$f":"IFERROR(MID($O91,FIND(CHAR(160),SUBSTITUTE($O91,\"{\",CHAR(160),FI$1)),FIND(CHAR(160),SUBSTITUTE($O91,\"}\",CHAR(160),FI$1))-FIND(CHAR(160),SUBSTITUTE($O91,\"{\",CHAR(160),FI$1))+1),\"\")","v":""},{"$f":"IFERROR(MID($O91,FIND(CHAR(160),SUBSTITUTE($O91,\"{\",CHAR(160),FJ$1)),FIND(CHAR(160),SUBSTITUTE($O91,\"}\",CHAR(160),FJ$1))-FIND(CHAR(160),SUBSTITUTE($O91,\"{\",CHAR(160),FJ$1))+1),\"\")","v":""},{"$f":"IFERROR(MID($O91,FIND(CHAR(160),SUBSTITUTE($O91,\"{\",CHAR(160),FK$1)),FIND(CHAR(160),SUBSTITUTE($O91,\"}\",CHAR(160),FK$1))-FIND(CHAR(160),SUBSTITUTE($O91,\"{\",CHAR(160),FK$1))+1),\"\")","v":"{Measure:Quantity}"},{"$f":"IFERROR(MID($O91,FIND(CHAR(160),SUBSTITUTE($O91,\"{\",CHAR(160),FL$1)),FIND(CHAR(160),SUBSTITUTE($O91,\"}\",CHAR(160),FL$1))-FIND(CHAR(160),SUBSTITUTE($O91,\"{\",CHAR(160),FL$1))+1),\"\")","v":"{Motor HP}"},{"$f":"IFERROR(MID($R91,FIND(CHAR(160),SUBSTITUTE($R91,\"{\",CHAR(160),FM$1)),FIND(CHAR(160),SUBSTITUTE($R91,\"}\",CHAR(160),FM$1))-FIND(CHAR(160),SUBSTITUTE($R91,\"{\",CHAR(160),FM$1))+1),\"\")","v":""},{"$f":"IFERROR(MID($R91,FIND(CHAR(160),SUBSTITUTE($R91,\"{\",CHAR(160),FN$1)),FIND(CHAR(160),SUBSTITUTE($R91,\"}\",CHAR(160),FN$1))-FIND(CHAR(160),SUBSTITUTE($R91,\"{\",CHAR(160),FN$1))+1),\"\")","v":""},{"$f":"IFERROR(MID($R91,FIND(CHAR(160),SUBSTITUTE($R91,\"{\",CHAR(160),FO$1)),FIND(CHAR(160),SUBSTITUTE($R91,\"}\",CHAR(160),FO$1))-FIND(CHAR(160),SUBSTITUTE($R91,\"{\",CHAR(160),FO$1))+1),\"\")","v":""},{"$f":"IFERROR(MID($R91,FIND(CHAR(160),SUBSTITUTE($R91,\"{\",CHAR(160),FP$1)),FIND(CHAR(160),SUBSTITUTE($R91,\"}\",CHAR(160),FP$1))-FIND(CHAR(160),SUBSTITUTE($R91,\"{\",CHAR(160),FP$1))+1),\"\")","v":""},{"$f":"IFERROR(MID($R91,FIND(CHAR(160),SUBSTITUTE($R91,\"{\",CHAR(160),FQ$1)),FIND(CHAR(160),SUBSTITUTE($R91,\"}\",CHAR(160),FQ$1))-FIND(CHAR(160),SUBSTITUTE($R91,\"{\",CHAR(160),FQ$1))+1),\"\")","v":""},{"$f":"IFERROR(MID($R91,FIND(CHAR(160),SUBSTITUTE($R91,\"{\",CHAR(160),FR$1)),FIND(CHAR(160),SUBSTITUTE($R91,\"}\",CHAR(160),FR$1))-FIND(CHAR(160),SUBSTITUTE($R91,\"{\",CHAR(160),FR$1))+1),\"\")","v":""},{"$f":"IFERROR(MID($R91,FIND(CHAR(160),SUBSTITUTE($R91,\"{\",CHAR(160),FS$1)),FIND(CHAR(160),SUBSTITUTE($R91,\"}\",CHAR(160),FS$1))-FIND(CHAR(160),SUBSTITUTE($R91,\"{\",CHAR(160),FS$1))+1),\"\")","v":""},{"$f":"IFERROR(MID($R91,FIND(CHAR(160),SUBSTITUTE($R91,\"{\",CHAR(160),FT$1)),FIND(CHAR(160),SUBSTITUTE($R91,\"}\",CHAR(160),FT$1))-FIND(CHAR(160),SUBSTITUTE($R91,\"{\",CHAR(160),FT$1))+1),\"\")","v":""},{"$f":"IFERROR(MID($R91,FIND(CHAR(160),SUBSTITUTE($R91,\"{\",CHAR(160),FU$1)),FIND(CHAR(160),SUBSTITUTE($R91,\"}\",CHAR(160),FU$1))-FIND(CHAR(160),SUBSTITUTE($R91,\"{\",CHAR(160),FU$1))+1),\"\")","v":"{Measure:Quantity}"},{"$f":"IFERROR(MID($R91,FIND(CHAR(160),SUBSTITUTE($R91,\"{\",CHAR(160),FV$1)),FIND(CHAR(160),SUBSTITUTE($R91,\"}\",CHAR(160),FV$1))-FIND(CHAR(160),SUBSTITUTE($R91,\"{\",CHAR(160),FV$1))+1),\"\")","v":"{Motor HP}"},{"$f":"IFERROR(MID($U91,FIND(CHAR(160),SUBSTITUTE($U91,\"{\",CHAR(160),FW$1)),FIND(CHAR(160),SUBSTITUTE($U91,\"}\",CHAR(160),FW$1))-FIND(CHAR(160),SUBSTITUTE($U91,\"{\",CHAR(160),FW$1))+1),\"\")","v":"{Motor HP}"},{"$f":"IFERROR(MID($U91,FIND(CHAR(160),SUBSTITUTE($U91,\"{\",CHAR(160),FX$1)),FIND(CHAR(160),SUBSTITUTE($U91,\"}\",CHAR(160),FX$1))-FIND(CHAR(160),SUBSTITUTE($U91,\"{\",CHAR(160),FX$1))+1),\"\")","v":""},{"$f":"IFERROR(MID($U91,FIND(CHAR(160),SUBSTITUTE($U91,\"{\",CHAR(160),FY$1)),FIND(CHAR(160),SUBSTITUTE($U91,\"}\",CHAR(160),FY$1))-FIND(CHAR(160),SUBSTITUTE($U91,\"{\",CHAR(160),FY$1))+1),\"\")","v":""},{"$f":"IFERROR(MID($U91,FIND(CHAR(160),SUBSTITUTE($U91,\"{\",CHAR(160),FZ$1)),FIND(CHAR(160),SUBSTITUTE($U91,\"}\",CHAR(160),FZ$1))-FIND(CHAR(160),SUBSTITUTE($U91,\"{\",CHAR(160),FZ$1))+1),\"\")","v":""},{"$f":"IFERROR(MID($U91,FIND(CHAR(160),SUBSTITUTE($U91,\"{\",CHAR(160),GA$1)),FIND(CHAR(160),SUBSTITUTE($U91,\"}\",CHAR(160),GA$1))-FIND(CHAR(160),SUBSTITUTE($U91,\"{\",CHAR(160),GA$1))+1),\"\")","v":""},{"$f":"IFERROR(MID($U91,FIND(CHAR(160),SUBSTITUTE($U91,\"{\",CHAR(160),GB$1)),FIND(CHAR(160),SUBSTITUTE($U91,\"}\",CHAR(160),GB$1))-FIND(CHAR(160),SUBSTITUTE($U91,\"{\",CHAR(160),GB$1))+1),\"\")","v":""},{"$f":"IFERROR(MID($U91,FIND(CHAR(160),SUBSTITUTE($U91,\"{\",CHAR(160),GC$1)),FIND(CHAR(160),SUBSTITUTE($U91,\"}\",CHAR(160),GC$1))-FIND(CHAR(160),SUBSTITUTE($U91,\"{\",CHAR(160),GC$1))+1),\"\")","v":""},{"$f":"IFERROR(MID($U91,FIND(CHAR(160),SUBSTITUTE($U91,\"{\",CHAR(160),GD$1)),FIND(CHAR(160),SUBSTITUTE($U91,\"}\",CHAR(160),GD$1))-FIND(CHAR(160),SUBSTITUTE($U91,\"{\",CHAR(160),GD$1))+1),\"\")","v":""},{"$f":"IFERROR(MID($U91,FIND(CHAR(160),SUBSTITUTE($U91,\"{\",CHAR(160),GE$1)),FIND(CHAR(160),SUBSTITUTE($U91,\"}\",CHAR(160),GE$1))-FIND(CHAR(160),SUBSTITUTE($U91,\"{\",CHAR(160),GE$1))+1),\"\")","v":"{Measure:Quantity}"},{"$f":"IFERROR(MID($U91,FIND(CHAR(160),SUBSTITUTE($U91,\"{\",CHAR(160),GF$1)),FIND(CHAR(160),SUBSTITUTE($U91,\"}\",CHAR(160),GF$1))-FIND(CHAR(160),SUBSTITUTE($U91,\"{\",CHAR(160),GF$1))+1),\"\")","v":"{Factor:WinterCF}"},{"$f":"IFERROR(MID($V91,FIND(CHAR(160),SUBSTITUTE($V91,\"{\",CHAR(160),GG$1)),FIND(CHAR(160),SUBSTITUTE($V91,\"}\",CHAR(160),GG$1))-FIND(CHAR(160),SUBSTITUTE($V91,\"{\",CHAR(160),GG$1))+1),\"\")","v":"{Motor HP}"},{"$f":"IFERROR(MID($V91,FIND(CHAR(160),SUBSTITUTE($V91,\"{\",CHAR(160),GH$1)),FIND(CHAR(160),SUBSTITUTE($V91,\"}\",CHAR(160),GH$1))-FIND(CHAR(160),SUBSTITUTE($V91,\"{\",CHAR(160),GH$1))+1),\"\")","v":""},{"$f":"IFERROR(MID($V91,FIND(CHAR(160),SUBSTITUTE($V91,\"{\",CHAR(160),GI$1)),FIND(CHAR(160),SUBSTITUTE($V91,\"}\",CHAR(160),GI$1))-FIND(CHAR(160),SUBSTITUTE($V91,\"{\",CHAR(160),GI$1))+1),\"\")","v":""},{"$f":"IFERROR(MID($V91,FIND(CHAR(160),SUBSTITUTE($V91,\"{\",CHAR(160),GJ$1)),FIND(CHAR(160),SUBSTITUTE($V91,\"}\",CHAR(160),GJ$1))-FIND(CHAR(160),SUBSTITUTE($V91,\"{\",CHAR(160),GJ$1))+1),\"\")","v":""},{"$f":"IFERROR(MID($V91,FIND(CHAR(160),SUBSTITUTE($V91,\"{\",CHAR(160),GK$1)),FIND(CHAR(160),SUBSTITUTE($V91,\"}\",CHAR(160),GK$1))-FIND(CHAR(160),SUBSTITUTE($V91,\"{\",CHAR(160),GK$1))+1),\"\")","v":""},{"$f":"IFERROR(MID($V91,FIND(CHAR(160),SUBSTITUTE($V91,\"{\",CHAR(160),GL$1)),FIND(CHAR(160),SUBSTITUTE($V91,\"}\",CHAR(160),GL$1))-FIND(CHAR(160),SUBSTITUTE($V91,\"{\",CHAR(160),GL$1))+1),\"\")","v":""},{"$f":"IFERROR(MID($V91,FIND(CHAR(160),SUBSTITUTE($V91,\"{\",CHAR(160),GM$1)),FIND(CHAR(160),SUBSTITUTE($V91,\"}\",CHAR(160),GM$1))-FIND(CHAR(160),SUBSTITUTE($V91,\"{\",CHAR(160),GM$1))+1),\"\")","v":""},{"$f":"IFERROR(MID($V91,FIND(CHAR(160),SUBSTITUTE($V91,\"{\",CHAR(160),GN$1)),FIND(CHAR(160),SUBSTITUTE($V91,\"}\",CHAR(160),GN$1))-FIND(CHAR(160),SUBSTITUTE($V91,\"{\",CHAR(160),GN$1))+1),\"\")","v":""},{"$f":"IFERROR(MID($V91,FIND(CHAR(160),SUBSTITUTE($V91,\"{\",CHAR(160),GO$1)),FIND(CHAR(160),SUBSTITUTE($V91,\"}\",CHAR(160),GO$1))-FIND(CHAR(160),SUBSTITUTE($V91,\"{\",CHAR(160),GO$1))+1),\"\")","v":"{Measure:Quantity}"},{"$f":"IFERROR(MID($V91,FIND(CHAR(160),SUBSTITUTE($V91,\"{\",CHAR(160),GP$1)),FIND(CHAR(160),SUBSTITUTE($V91,\"}\",CHAR(160),GP$1))-FIND(CHAR(160),SUBSTITUTE($V91,\"{\",CHAR(160),GP$1))+1),\"\")","v":"{Factor:SummerCF}"},{"$f":"IFERROR(MID($W91,FIND(CHAR(160),SUBSTITUTE($W91,\"{\",CHAR(160),GQ$1)),FIND(CHAR(160),SUBSTITUTE($W91,\"}\",CHAR(160),GQ$1))-FIND(CHAR(160),SUBSTITUTE($W91,\"{\",CHAR(160),GQ$1))+1),\"\")","v":""},{"$f":"IFERROR(MID($W91,FIND(CHAR(160),SUBSTITUTE($W91,\"{\",CHAR(160),GR$1)),FIND(CHAR(160),SUBSTITUTE($W91,\"}\",CHAR(160),GR$1))-FIND(CHAR(160),SUBSTITUTE($W91,\"{\",CHAR(160),GR$1))+1),\"\")","v":""},{"$f":"IFERROR(MID($W91,FIND(CHAR(160),SUBSTITUTE($W91,\"{\",CHAR(160),GS$1)),FIND(CHAR(160),SUBSTITUTE($W91,\"}\",CHAR(160),GS$1))-FIND(CHAR(160),SUBSTITUTE($W91,\"{\",CHAR(160),GS$1))+1),\"\")","v":""},{"$f":"IFERROR(MID($W91,FIND(CHAR(160),SUBSTITUTE($W91,\"{\",CHAR(160),GT$1)),FIND(CHAR(160),SUBSTITUTE($W91,\"}\",CHAR(160),GT$1))-FIND(CHAR(160),SUBSTITUTE($W91,\"{\",CHAR(160),GT$1))+1),\"\")","v":""},{"$f":"IFERROR(MID($W91,FIND(CHAR(160),SUBSTITUTE($W91,\"{\",CHAR(160),GU$1)),FIND(CHAR(160),SUBSTITUTE($W91,\"}\",CHAR(160),GU$1))-FIND(CHAR(160),SUBSTITUTE($W91,\"{\",CHAR(160),GU$1))+1),\"\")","v":""},{"$f":"IFERROR(MID($W91,FIND(CHAR(160),SUBSTITUTE($W91,\"{\",CHAR(160),GV$1)),FIND(CHAR(160),SUBSTITUTE($W91,\"}\",CHAR(160),GV$1))-FIND(CHAR(160),SUBSTITUTE($W91,\"{\",CHAR(160),GV$1))+1),\"\")","v":""},{"$f":"IFERROR(MID($W91,FIND(CHAR(160),SUBSTITUTE($W91,\"{\",CHAR(160),GW$1)),FIND(CHAR(160),SUBSTITUTE($W91,\"}\",CHAR(160),GW$1))-FIND(CHAR(160),SUBSTITUTE($W91,\"{\",CHAR(160),GW$1))+1),\"\")","v":""},{"$f":"IFERROR(MID($W91,FIND(CHAR(160),SUBSTITUTE($W91,\"{\",CHAR(160),GX$1)),FIND(CHAR(160),SUBSTITUTE($W91,\"}\",CHAR(160),GX$1))-FIND(CHAR(160),SUBSTITUTE($W91,\"{\",CHAR(160),GX$1))+1),\"\")","v":""},{"$f":"IFERROR(MID($W91,FIND(CHAR(160),SUBSTITUTE($W91,\"{\",CHAR(160),GY$1)),FIND(CHAR(160),SUBSTITUTE($W91,\"}\",CHAR(160),GY$1))-FIND(CHAR(160),SUBSTITUTE($W91,\"{\",CHAR(160),GY$1))+1),\"\")","v":""},{"$f":"IFERROR(MID($W91,FIND(CHAR(160),SUBSTITUTE($W91,\"{\",CHAR(160),GZ$1)),FIND(CHAR(160),SUBSTITUTE($W91,\"}\",CHAR(160),GZ$1))-FIND(CHAR(160),SUBSTITUTE($W91,\"{\",CHAR(160),GZ$1))+1),\"\")","v":""},{"$f":"IFERROR(MID($X91,FIND(CHAR(160),SUBSTITUTE($X91,\"{\",CHAR(160),HA$1)),FIND(CHAR(160),SUBSTITUTE($X91,\"}\",CHAR(160),HA$1))-FIND(CHAR(160),SUBSTITUTE($X91,\"{\",CHAR(160),HA$1))+1),\"\")","v":""},{"$f":"IFERROR(MID($X91,FIND(CHAR(160),SUBSTITUTE($X91,\"{\",CHAR(160),HB$1)),FIND(CHAR(160),SUBSTITUTE($X91,\"}\",CHAR(160),HB$1))-FIND(CHAR(160),SUBSTITUTE($X91,\"{\",CHAR(160),HB$1))+1),\"\")","v":""},{"$f":"IFERROR(MID($X91,FIND(CHAR(160),SUBSTITUTE($X91,\"{\",CHAR(160),HC$1)),FIND(CHAR(160),SUBSTITUTE($X91,\"}\",CHAR(160),HC$1))-FIND(CHAR(160),SUBSTITUTE($X91,\"{\",CHAR(160),HC$1))+1),\"\")","v":""},{"$f":"IFERROR(MID($X91,FIND(CHAR(160),SUBSTITUTE($X91,\"{\",CHAR(160),HD$1)),FIND(CHAR(160),SUBSTITUTE($X91,\"}\",CHAR(160),HD$1))-FIND(CHAR(160),SUBSTITUTE($X91,\"{\",CHAR(160),HD$1))+1),\"\")","v":""},{"$f":"IFERROR(MID($X91,FIND(CHAR(160),SUBSTITUTE($X91,\"{\",CHAR(160),HE$1)),FIND(CHAR(160),SUBSTITUTE($X91,\"}\",CHAR(160),HE$1))-FIND(CHAR(160),SUBSTITUTE($X91,\"{\",CHAR(160),HE$1))+1),\"\")","v":""},{"$f":"IFERROR(MID($X91,FIND(CHAR(160),SUBSTITUTE($X91,\"{\",CHAR(160),HF$1)),FIND(CHAR(160),SUBSTITUTE($X91,\"}\",CHAR(160),HF$1))-FIND(CHAR(160),SUBSTITUTE($X91,\"{\",CHAR(160),HF$1))+1),\"\")","v":""},{"$f":"IFERROR(MID($X91,FIND(CHAR(160),SUBSTITUTE($X91,\"{\",CHAR(160),HG$1)),FIND(CHAR(160),SUBSTITUTE($X91,\"}\",CHAR(160),HG$1))-FIND(CHAR(160),SUBSTITUTE($X91,\"{\",CHAR(160),HG$1))+1),\"\")","v":""},{"$f":"IFERROR(MID($X91,FIND(CHAR(160),SUBSTITUTE($X91,\"{\",CHAR(160),HH$1)),FIND(CHAR(160),SUBSTITUTE($X91,\"}\",CHAR(160),HH$1))-FIND(CHAR(160),SUBSTITUTE($X91,\"{\",CHAR(160),HH$1))+1),\"\")","v":""},{"$f":"IFERROR(MID($X91,FIND(CHAR(160),SUBSTITUTE($X91,\"{\",CHAR(160),HI$1)),FIND(CHAR(160),SUBSTITUTE($X91,\"}\",CHAR(160),HI$1))-FIND(CHAR(160),SUBSTITUTE($X91,\"{\",CHAR(160),HI$1))+1),\"\")","v":""},{"$f":"IFERROR(MID($X91,FIND(CHAR(160),SUBSTITUTE($X91,\"{\",CHAR(160),HJ$1)),FIND(CHAR(160),SUBSTITUTE($X91,\"}\",CHAR(160),HJ$1))-FIND(CHAR(160),SUBSTITUTE($X91,\"{\",CHAR(160),HJ$1))+1),\"\")","v":""},{"$f":"IFERROR(MID($Y91,FIND(CHAR(160),SUBSTITUTE($Y91,\"{\",CHAR(160),HK$1)),FIND(CHAR(160),SUBSTITUTE($Y91,\"}\",CHAR(160),HK$1))-FIND(CHAR(160),SUBSTITUTE($Y91,\"{\",CHAR(160),HK$1))+1),\"\")","v":""},{"$f":"IFERROR(MID($Y91,FIND(CHAR(160),SUBSTITUTE($Y91,\"{\",CHAR(160),HL$1)),FIND(CHAR(160),SUBSTITUTE($Y91,\"}\",CHAR(160),HL$1))-FIND(CHAR(160),SUBSTITUTE($Y91,\"{\",CHAR(160),HL$1))+1),\"\")","v":""},{"$f":"IFERROR(MID($Y91,FIND(CHAR(160),SUBSTITUTE($Y91,\"{\",CHAR(160),HM$1)),FIND(CHAR(160),SUBSTITUTE($Y91,\"}\",CHAR(160),HM$1))-FIND(CHAR(160),SUBSTITUTE($Y91,\"{\",CHAR(160),HM$1))+1),\"\")","v":""},{"$f":"IFERROR(MID($Y91,FIND(CHAR(160),SUBSTITUTE($Y91,\"{\",CHAR(160),HN$1)),FIND(CHAR(160),SUBSTITUTE($Y91,\"}\",CHAR(160),HN$1))-FIND(CHAR(160),SUBSTITUTE($Y91,\"{\",CHAR(160),HN$1))+1),\"\")","v":""},{"$f":"IFERROR(MID($Y91,FIND(CHAR(160),SUBSTITUTE($Y91,\"{\",CHAR(160),HO$1)),FIND(CHAR(160),SUBSTITUTE($Y91,\"}\",CHAR(160),HO$1))-FIND(CHAR(160),SUBSTITUTE($Y91,\"{\",CHAR(160),HO$1))+1),\"\")","v":""},{"$f":"IFERROR(MID($Y91,FIND(CHAR(160),SUBSTITUTE($Y91,\"{\",CHAR(160),HP$1)),FIND(CHAR(160),SUBSTITUTE($Y91,\"}\",CHAR(160),HP$1))-FIND(CHAR(160),SUBSTITUTE($Y91,\"{\",CHAR(160),HP$1))+1),\"\")","v":""},{"$f":"IFERROR(MID($Y91,FIND(CHAR(160),SUBSTITUTE($Y91,\"{\",CHAR(160),HQ$1)),FIND(CHAR(160),SUBSTITUTE($Y91,\"}\",CHAR(160),HQ$1))-FIND(CHAR(160),SUBSTITUTE($Y91,\"{\",CHAR(160),HQ$1))+1),\"\")","v":""},{"$f":"IFERROR(MID($Y91,FIND(CHAR(160),SUBSTITUTE($Y91,\"{\",CHAR(160),HR$1)),FIND(CHAR(160),SUBSTITUTE($Y91,\"}\",CHAR(160),HR$1))-FIND(CHAR(160),SUBSTITUTE($Y91,\"{\",CHAR(160),HR$1))+1),\"\")","v":""},{"$f":"IFERROR(MID($Y91,FIND(CHAR(160),SUBSTITUTE($Y91,\"{\",CHAR(160),HS$1)),FIND(CHAR(160),SUBSTITUTE($Y91,\"}\",CHAR(160),HS$1))-FIND(CHAR(160),SUBSTITUTE($Y91,\"{\",CHAR(160),HS$1))+1),\"\")","v":""},{"$f":"IFERROR(MID($Y91,FIND(CHAR(160),SUBSTITUTE($Y91,\"{\",CHAR(160),HT$1)),FIND(CHAR(160),SUBSTITUTE($Y91,\"}\",CHAR(160),HT$1))-FIND(CHAR(160),SUBSTITUTE($Y91,\"{\",CHAR(160),HT$1))+1),\"\")","v":""},{"$f":"IFERROR(MID($Z91,FIND(CHAR(160),SUBSTITUTE($Z91,\"{\",CHAR(160),HU$1)),FIND(CHAR(160),SUBSTITUTE($Z91,\"}\",CHAR(160),HU$1))-FIND(CHAR(160),SUBSTITUTE($Z91,\"{\",CHAR(160),HU$1))+1),\"\")","v":""},{"$f":"IFERROR(MID($Z91,FIND(CHAR(160),SUBSTITUTE($Z91,\"{\",CHAR(160),HV$1)),FIND(CHAR(160),SUBSTITUTE($Z91,\"}\",CHAR(160),HV$1))-FIND(CHAR(160),SUBSTITUTE($Z91,\"{\",CHAR(160),HV$1))+1),\"\")","v":""},{"$f":"IFERROR(MID($Z91,FIND(CHAR(160),SUBSTITUTE($Z91,\"{\",CHAR(160),HW$1)),FIND(CHAR(160),SUBSTITUTE($Z91,\"}\",CHAR(160),HW$1))-FIND(CHAR(160),SUBSTITUTE($Z91,\"{\",CHAR(160),HW$1))+1),\"\")","v":""},{"$f":"IFERROR(MID($Z91,FIND(CHAR(160),SUBSTITUTE($Z91,\"{\",CHAR(160),HX$1)),FIND(CHAR(160),SUBSTITUTE($Z91,\"}\",CHAR(160),HX$1))-FIND(CHAR(160),SUBSTITUTE($Z91,\"{\",CHAR(160),HX$1))+1),\"\")","v":""},{"$f":"IFERROR(MID($Z91,FIND(CHAR(160),SUBSTITUTE($Z91,\"{\",CHAR(160),HY$1)),FIND(CHAR(160),SUBSTITUTE($Z91,\"}\",CHAR(160),HY$1))-FIND(CHAR(160),SUBSTITUTE($Z91,\"{\",CHAR(160),HY$1))+1),\"\")","v":""},{"$f":"IFERROR(MID($Z91,FIND(CHAR(160),SUBSTITUTE($Z91,\"{\",CHAR(160),HZ$1)),FIND(CHAR(160),SUBSTITUTE($Z91,\"}\",CHAR(160),HZ$1))-FIND(CHAR(160),SUBSTITUTE($Z91,\"{\",CHAR(160),HZ$1))+1),\"\")","v":""},{"$f":"IFERROR(MID($Z91,FIND(CHAR(160),SUBSTITUTE($Z91,\"{\",CHAR(160),IA$1)),FIND(CHAR(160),SUBSTITUTE($Z91,\"}\",CHAR(160),IA$1))-FIND(CHAR(160),SUBSTITUTE($Z91,\"{\",CHAR(160),IA$1))+1),\"\")","v":""},{"$f":"IFERROR(MID($Z91,FIND(CHAR(160),SUBSTITUTE($Z91,\"{\",CHAR(160),IB$1)),FIND(CHAR(160),SUBSTITUTE($Z91,\"}\",CHAR(160),IB$1))-FIND(CHAR(160),SUBSTITUTE($Z91,\"{\",CHAR(160),IB$1))+1),\"\")","v":""},{"$f":"IFERROR(MID($Z91,FIND(CHAR(160),SUBSTITUTE($Z91,\"{\",CHAR(160),IC$1)),FIND(CHAR(160),SUBSTITUTE($Z91,\"}\",CHAR(160),IC$1))-FIND(CHAR(160),SUBSTITUTE($Z91,\"{\",CHAR(160),IC$1))+1),\"\")","v":""},{"$f":"IFERROR(MID($Z91,FIND(CHAR(160),SUBSTITUTE($Z91,\"{\",CHAR(160),ID$1)),FIND(CHAR(160),SUBSTITUTE($Z91,\"}\",CHAR(160),ID$1))-FIND(CHAR(160),SUBSTITUTE($Z91,\"{\",CHAR(160),ID$1))+1),\"\")","v":""},{"$f":"IFERROR(MID($AA91,FIND(CHAR(160),SUBSTITUTE($AA91,\"{\",CHAR(160),IE$1)),FIND(CHAR(160),SUBSTITUTE($AA91,\"}\",CHAR(160),IE$1))-FIND(CHAR(160),SUBSTITUTE($AA91,\"{\",CHAR(160),IE$1))+1),\"\")","v":""},{"$f":"IFERROR(MID($AA91,FIND(CHAR(160),SUBSTITUTE($AA91,\"{\",CHAR(160),IF$1)),FIND(CHAR(160),SUBSTITUTE($AA91,\"}\",CHAR(160),IF$1))-FIND(CHAR(160),SUBSTITUTE($AA91,\"{\",CHAR(160),IF$1))+1),\"\")","v":""},{"$f":"IFERROR(MID($AA91,FIND(CHAR(160),SUBSTITUTE($AA91,\"{\",CHAR(160),IG$1)),FIND(CHAR(160),SUBSTITUTE($AA91,\"}\",CHAR(160),IG$1))-FIND(CHAR(160),SUBSTITUTE($AA91,\"{\",CHAR(160),IG$1))+1),\"\")","v":""},{"$f":"IFERROR(MID($AA91,FIND(CHAR(160),SUBSTITUTE($AA91,\"{\",CHAR(160),IH$1)),FIND(CHAR(160),SUBSTITUTE($AA91,\"}\",CHAR(160),IH$1))-FIND(CHAR(160),SUBSTITUTE($AA91,\"{\",CHAR(160),IH$1))+1),\"\")","v":""},{"$f":"IFERROR(MID($AA91,FIND(CHAR(160),SUBSTITUTE($AA91,\"{\",CHAR(160),II$1)),FIND(CHAR(160),SUBSTITUTE($AA91,\"}\",CHAR(160),II$1))-FIND(CHAR(160),SUBSTITUTE($AA91,\"{\",CHAR(160),II$1))+1),\"\")","v":""},{"$f":"IFERROR(MID($AA91,FIND(CHAR(160),SUBSTITUTE($AA91,\"{\",CHAR(160),IJ$1)),FIND(CHAR(160),SUBSTITUTE($AA91,\"}\",CHAR(160),IJ$1))-FIND(CHAR(160),SUBSTITUTE($AA91,\"{\",CHAR(160),IJ$1))+1),\"\")","v":""},{"$f":"IFERROR(MID($AA91,FIND(CHAR(160),SUBSTITUTE($AA91,\"{\",CHAR(160),IK$1)),FIND(CHAR(160),SUBSTITUTE($AA91,\"}\",CHAR(160),IK$1))-FIND(CHAR(160),SUBSTITUTE($AA91,\"{\",CHAR(160),IK$1))+1),\"\")","v":""},{"$f":"IFERROR(MID($AA91,FIND(CHAR(160),SUBSTITUTE($AA91,\"{\",CHAR(160),IL$1)),FIND(CHAR(160),SUBSTITUTE($AA91,\"}\",CHAR(160),IL$1))-FIND(CHAR(160),SUBSTITUTE($AA91,\"{\",CHAR(160),IL$1))+1),\"\")","v":""},{"$f":"IFERROR(MID($AA91,FIND(CHAR(160),SUBSTITUTE($AA91,\"{\",CHAR(160),IM$1)),FIND(CHAR(160),SUBSTITUTE($AA91,\"}\",CHAR(160),IM$1))-FIND(CHAR(160),SUBSTITUTE($AA91,\"{\",CHAR(160),IM$1))+1),\"\")","v":""},{"$f":"IFERROR(MID($AA91,FIND(CHAR(160),SUBSTITUTE($AA91,\"{\",CHAR(160),IN$1)),FIND(CHAR(160),SUBSTITUTE($AA91,\"}\",CHAR(160),IN$1))-FIND(CHAR(160),SUBSTITUTE($AA91,\"{\",CHAR(160),IN$1))+1),\"\")","v":""},{"$f":"IFERROR(MID($AB91,FIND(CHAR(160),SUBSTITUTE($AB91,\"{\",CHAR(160),IO$1)),FIND(CHAR(160),SUBSTITUTE($AB91,\"}\",CHAR(160),IO$1))-FIND(CHAR(160),SUBSTITUTE($AB91,\"{\",CHAR(160),IO$1))+1),\"\")","v":""},{"$f":"IFERROR(MID($AB91,FIND(CHAR(160),SUBSTITUTE($AB91,\"{\",CHAR(160),IP$1)),FIND(CHAR(160),SUBSTITUTE($AB91,\"}\",CHAR(160),IP$1))-FIND(CHAR(160),SUBSTITUTE($AB91,\"{\",CHAR(160),IP$1))+1),\"\")","v":""},{"$f":"IFERROR(MID($AB91,FIND(CHAR(160),SUBSTITUTE($AB91,\"{\",CHAR(160),IQ$1)),FIND(CHAR(160),SUBSTITUTE($AB91,\"}\",CHAR(160),IQ$1))-FIND(CHAR(160),SUBSTITUTE($AB91,\"{\",CHAR(160),IQ$1))+1),\"\")","v":""},{"$f":"IFERROR(MID($AB91,FIND(CHAR(160),SUBSTITUTE($AB91,\"{\",CHAR(160),IR$1)),FIND(CHAR(160),SUBSTITUTE($AB91,\"}\",CHAR(160),IR$1))-FIND(CHAR(160),SUBSTITUTE($AB91,\"{\",CHAR(160),IR$1))+1),\"\")","v":""},{"$f":"IFERROR(MID($AB91,FIND(CHAR(160),SUBSTITUTE($AB91,\"{\",CHAR(160),IS$1)),FIND(CHAR(160),SUBSTITUTE($AB91,\"}\",CHAR(160),IS$1))-FIND(CHAR(160),SUBSTITUTE($AB91,\"{\",CHAR(160),IS$1))+1),\"\")","v":""},{"$f":"IFERROR(MID($AB91,FIND(CHAR(160),SUBSTITUTE($AB91,\"{\",CHAR(160),IT$1)),FIND(CHAR(160),SUBSTITUTE($AB91,\"}\",CHAR(160),IT$1))-FIND(CHAR(160),SUBSTITUTE($AB91,\"{\",CHAR(160),IT$1))+1),\"\")","v":""},{"$f":"IFERROR(MID($AB91,FIND(CHAR(160),SUBSTITUTE($AB91,\"{\",CHAR(160),IU$1)),FIND(CHAR(160),SUBSTITUTE($AB91,\"}\",CHAR(160),IU$1))-FIND(CHAR(160),SUBSTITUTE($AB91,\"{\",CHAR(160),IU$1))+1),\"\")","v":""},{"$f":"IFERROR(MID($AB91,FIND(CHAR(160),SUBSTITUTE($AB91,\"{\",CHAR(160),IV$1)),FIND(CHAR(160),SUBSTITUTE($AB91,\"}\",CHAR(160),IV$1))-FIND(CHAR(160),SUBSTITUTE($AB91,\"{\",CHAR(160),IV$1))+1),\"\")","v":""},{"$f":"IFERROR(MID($AB91,FIND(CHAR(160),SUBSTITUTE($AB91,\"{\",CHAR(160),IW$1)),FIND(CHAR(160),SUBSTITUTE($AB91,\"}\",CHAR(160),IW$1))-FIND(CHAR(160),SUBSTITUTE($AB91,\"{\",CHAR(160),IW$1))+1),\"\")","v":""},{"$f":"IFERROR(MID($AB91,FIND(CHAR(160),SUBSTITUTE($AB91,\"{\",CHAR(160),IX$1)),FIND(CHAR(160),SUBSTITUTE($AB91,\"}\",CHAR(160),IX$1))-FIND(CHAR(160),SUBSTITUTE($AB91,\"{\",CHAR(160),IX$1))+1),\"\")","v":""},null,{"$f":"10-COUNTIF(DU91:ED91,\"\")","v":2}]
["C&I HVAC - Oil","VFD: Return Fan on VAV Air Handler","RFA","2021-07-01","2022-06-30","Calculated","{Measure:Quantity}*if({Motor HP}=5,2425,if({Motor HP}=7.5,2648,if({Motor HP}=10,2871,if({Motor HP}=15,3317,if({Motor HP}=20,3763,if({Motor HP}=25,4209,if({Motor HP}=30,4655,0)))))))",0,"Calculated","{Measure:Quantity}*if({Motor HP}=5,400,if({Motor HP}=7.5,650,if({Motor HP}=10,1400,if({Motor HP}=15,1650,if({Motor HP}=20,1850,if({Motor HP}=25,2000,if({Motor HP}=30,2300,0)))))))",0,"2021-05-25","2022-06-30","Calculated","{Measure:Quantity}*{Motor HP}*1788",null,null,"{Measure:Quantity}*{Motor HP}*.302",null,null,"{Measure:Quantity}*{Factor:WinterCF}*{Motor HP}*.302","{Measure:Quantity}*{Factor:SummerCF}*{Motor HP}*.302",null,null,null,null,null,null,"2021-05-24","2022-06-30",13,0.21,0.68300000000000005,0.39,0.308,0.214,8.7999999999999995E-2,1,1.1220000000000001,1,0.52,1.6E-2,null,{"$f":"DU92","v":"{Measure:Quantity}"},1,{"$f":"DV92","v":"{Motor HP}"},5,{"$f":"DW92","v":""},null,{"$f":"DX92","v":""},null,{"$f":"DY92","v":""},null,{"$f":"DZ92","v":""},null,{"$f":"EA92","v":""},null,{"$f":"EB92","v":""},null,{"$f":"EC92","v":""},null,{"$f":"ED92","v":""},null,{"$f":"AS92*AU92*1788","v":8940},0,0,{"$f":"AS92*AU92*0.302","v":1.51},0,0,{"$f":"AS92*AF92*AU92*0.302","v":0.31709999999999999},{"$f":"AS92*AG92*AU92*0.302","v":1.0313300000000001},0,0,0,0,0,0,null,"Res","Default DR",{"$f":"Benefits(BL92,BR92,BS92,BT92,BU92,BV92,BW92,BX92,BY92,BZ92,AE92,AH92,AI92,AJ92,AK92,AL92,AM92,AN92,AO92,AP92,CA92,CB92)","v":12094.689196231971},2788.9593275943762,0,0,0,0,0,0,0,{"$f":"SUMPRODUCT(CC92:CK92,--(CC92:CK92>0))","v":14883.648523826349},{"$f":"-SUMPRODUCT(CC92:CK92,--(CC92:CK92<0))","v":0},null,{"$f":"AS92*IF(AU92=5,2425,IF(AU92=7.5,2648,IF(AU92=10,2871,IF(AU92=15,3317,IF(AU92=20,3763,IF(AU92=25,4209,IF(AU92=30,4655,0)))))))","v":2425},null,null,{"$f":"CM92+CO92","v":2425},{"$f":"IF(NetOrGross=\"Net\",(1-AO92+AP92),1)","v":1},{"$f":"(SUMPRODUCT(CC92:CJ92,--(CC92:CJ92>0))+CN92)*CS92/((-SUMPRODUCT(CC92:CJ92,--(CC92:CJ92<0))+MAX(CO92,CV92)+CP92+CQ92)*CS92+IF(FRIncentives=\"Yes\",CV92*(1-CS92),0))","v":6.1375870201345766},1,{"$f":"AS92*IF(AU92=5,400,IF(AU92=7.5,650,IF(AU92=10,1400,IF(AU92=15,1650,IF(AU92=20,1850,IF(AU92=25,2000,IF(AU92=30,2300,0)))))))","v":400},null,"RGGI","y",null,{"$f":"IF(F92=\"Manual Entry\",\"Manual\",IF(G92=\"\",0,\"X=\"&SUBSTITUTE(SUBSTITUTE(SUBSTITUTE(SUBSTITUTE(SUBSTITUTE(SUBSTITUTE(SUBSTITUTE(SUBSTITUTE(SUBSTITUTE(SUBSTITUTE(SUBSTITUTE(SUBSTITUTE(G92,$ED92,$ED$2&ROW($ED92)),$EC92,$EC$2&ROW($EC92)),$EB92,$EB$2&ROW($EB92)),$EA92,$EA$2&ROW($EA92)),$DZ92,$DZ$2&ROW($DZ92)),$DY92,$DY$2&ROW($DY92)),$DX92,$DX$2&ROW($DX92)),$DW92,$DW$2&ROW($DW92)),$DV92,$DV$2&ROW($DV92)),$DU92,$DU$2&ROW($DU92)),$DT92,$DT$2&ROW($DT92)),$DS92,$DS$2&ROW($DS92))))","v":"X=AS92*if(AU92=5,2425,if(AU92=7.5,2648,if(AU92=10,2871,if(AU92=15,3317,if(AU92=20,3763,if(AU92=25,4209,if(AU92=30,4655,0)))))))"},{"$f":"IF(I92=\"Manual Entry\",\"Manual\",IF(J92=\"\",0,\"X=\"&SUBSTITUTE(SUBSTITUTE(SUBSTITUTE(SUBSTITUTE(SUBSTITUTE(SUBSTITUTE(SUBSTITUTE(SUBSTITUTE(SUBSTITUTE(SUBSTITUTE(SUBSTITUTE(SUBSTITUTE(J92,$ED92,$ED$2&ROW($ED92)),$EC92,$EC$2&ROW($EC92)),$EB92,$EB$2&ROW($EB92)),$EA92,$EA$2&ROW($EA92)),$DZ92,$DZ$2&ROW($DZ92)),$DY92,$DY$2&ROW($DY92)),$DX92,$DX$2&ROW($DX92)),$DW92,$DW$2&ROW($DW92)),$DV92,$DV$2&ROW($DV92)),$DU92,$DU$2&ROW($DU92)),$DT92,$DT$2&ROW($DT92)),$DS92,$DS$2&ROW($DS92))))","v":"X=AS92*if(AU92=5,400,if(AU92=7.5,650,if(AU92=10,1400,if(AU92=15,1650,if(AU92=20,1850,if(AU92=25,2000,if(AU92=30,2300,0)))))))"},{"$f":"IF(O92=\"\",0,\"X=\"&SUBSTITUTE(SUBSTITUTE(SUBSTITUTE(SUBSTITUTE(SUBSTITUTE(SUBSTITUTE(SUBSTITUTE(SUBSTITUTE(SUBSTITUTE(SUBSTITUTE(SUBSTITUTE(SUBSTITUTE(O92,$ED92,$ED$2&ROW($ED92)),$EC92,$EC$2&ROW($EC92)),$EB92,$EB$2&ROW($EB92)),$EA92,$EA$2&ROW($EA92)),$DZ92,$DZ$2&ROW($DZ92)),$DY92,$DY$2&ROW($DY92)),$DX92,$DX$2&ROW($DX92)),$DW92,$DW$2&ROW($DW92)),$DV92,$DV$2&ROW($DV92)),$DU92,$DU$2&ROW($DU92)),$DT92,$DT$2&ROW($DT92)),$DS92,$DS$2&ROW($DS92)))","v":"X=AS92*AU92*1788"},{"$f":"IF(P92=\"\",0,\"X=\"&SUBSTITUTE(SUBSTITUTE(SUBSTITUTE(SUBSTITUTE(SUBSTITUTE(SUBSTITUTE(SUBSTITUTE(SUBSTITUTE(SUBSTITUTE(SUBSTITUTE(SUBSTITUTE(SUBSTITUTE(P92,$ED92,$ED$2&ROW($ED92)),$EC92,$EC$2&ROW($EC92)),$EB92,$EB$2&ROW($EB92)),$EA92,$EA$2&ROW($EA92)),$DZ92,$DZ$2&ROW($DZ92)),$DY92,$DY$2&ROW($DY92)),$DX92,$DX$2&ROW($DX92)),$DW92,$DW$2&ROW($DW92)),$DV92,$DV$2&ROW($DV92)),$DU92,$DU$2&ROW($DU92)),$DT92,$DT$2&ROW($DT92)),$DS92,$DS$2&ROW($DS92)))","v":0},{"$f":"IF(Q92=\"\",0,\"X=\"&SUBSTITUTE(SUBSTITUTE(SUBSTITUTE(SUBSTITUTE(SUBSTITUTE(SUBSTITUTE(SUBSTITUTE(SUBSTITUTE(SUBSTITUTE(SUBSTITUTE(SUBSTITUTE(SUBSTITUTE(Q92,$ED92,$ED$2&ROW($ED92)),$EC92,$EC$2&ROW($EC92)),$EB92,$EB$2&ROW($EB92)),$EA92,$EA$2&ROW($EA92)),$DZ92,$DZ$2&ROW($DZ92)),$DY92,$DY$2&ROW($DY92)),$DX92,$DX$2&ROW($DX92)),$DW92,$DW$2&ROW($DW92)),$DV92,$DV$2&ROW($DV92)),$DU92,$DU$2&ROW($DU92)),$DT92,$DT$2&ROW($DT92)),$DS92,$DS$2&ROW($DS92)))","v":0},{"$f":"IF(R92=\"\",0,\"X=\"&SUBSTITUTE(SUBSTITUTE(SUBSTITUTE(SUBSTITUTE(SUBSTITUTE(SUBSTITUTE(SUBSTITUTE(SUBSTITUTE(SUBSTITUTE(SUBSTITUTE(SUBSTITUTE(SUBSTITUTE(R92,$ED92,$ED$2&ROW($ED92)),$EC92,$EC$2&ROW($EC92)),$EB92,$EB$2&ROW($EB92)),$EA92,$EA$2&ROW($EA92)),$DZ92,$DZ$2&ROW($DZ92)),$DY92,$DY$2&ROW($DY92)),$DX92,$DX$2&ROW($DX92)),$DW92,$DW$2&ROW($DW92)),$DV92,$DV$2&ROW($DV92)),$DU92,$DU$2&ROW($DU92)),$DT92,$DT$2&ROW($DT92)),$DS92,$DS$2&ROW($DS92)))","v":"X=AS92*AU92*.302"},{"$f":"IF(S92=\"\",0,\"X=\"&SUBSTITUTE(SUBSTITUTE(SUBSTITUTE(SUBSTITUTE(SUBSTITUTE(SUBSTITUTE(SUBSTITUTE(SUBSTITUTE(SUBSTITUTE(SUBSTITUTE(SUBSTITUTE(SUBSTITUTE(S92,$ED92,$ED$2&ROW($ED92)),$EC92,$EC$2&ROW($EC92)),$EB92,$EB$2&ROW($EB92)),$EA92,$EA$2&ROW($EA92)),$DZ92,$DZ$2&ROW($DZ92)),$DY92,$DY$2&ROW($DY92)),$DX92,$DX$2&ROW($DX92)),$DW92,$DW$2&ROW($DW92)),$DV92,$DV$2&ROW($DV92)),$DU92,$DU$2&ROW($DU92)),$DT92,$DT$2&ROW($DT92)),$DS92,$DS$2&ROW($DS92)))","v":0},{"$f":"IF(T92=\"\",0,\"X=\"&SUBSTITUTE(SUBSTITUTE(SUBSTITUTE(SUBSTITUTE(SUBSTITUTE(SUBSTITUTE(SUBSTITUTE(SUBSTITUTE(SUBSTITUTE(SUBSTITUTE(SUBSTITUTE(SUBSTITUTE(T92,$ED92,$ED$2&ROW($ED92)),$EC92,$EC$2&ROW($EC92)),$EB92,$EB$2&ROW($EB92)),$EA92,$EA$2&ROW($EA92)),$DZ92,$DZ$2&ROW($DZ92)),$DY92,$DY$2&ROW($DY92)),$DX92,$DX$2&ROW($DX92)),$DW92,$DW$2&ROW($DW92)),$DV92,$DV$2&ROW($DV92)),$DU92,$DU$2&ROW($DU92)),$DT92,$DT$2&ROW($DT92)),$DS92,$DS$2&ROW($DS92)))","v":0},{"$f":"IF(U92=\"\",0,\"X=\"&SUBSTITUTE(SUBSTITUTE(SUBSTITUTE(SUBSTITUTE(SUBSTITUTE(SUBSTITUTE(SUBSTITUTE(SUBSTITUTE(SUBSTITUTE(SUBSTITUTE(SUBSTITUTE(SUBSTITUTE(U92,$ED92,$ED$2&ROW($ED92)),$EC92,$EC$2&ROW($EC92)),$EB92,$EB$2&ROW($EB92)),$EA92,$EA$2&ROW($EA92)),$DZ92,$DZ$2&ROW($DZ92)),$DY92,$DY$2&ROW($DY92)),$DX92,$DX$2&ROW($DX92)),$DW92,$DW$2&ROW($DW92)),$DV92,$DV$2&ROW($DV92)),$DU92,$DU$2&ROW($DU92)),$DT92,$DT$2&ROW($DT92)),$DS92,$DS$2&ROW($DS92)))","v":"X=AS92*AF92*AU92*.302"},{"$f":"IF(V92=\"\",0,\"X=\"&SUBSTITUTE(SUBSTITUTE(SUBSTITUTE(SUBSTITUTE(SUBSTITUTE(SUBSTITUTE(SUBSTITUTE(SUBSTITUTE(SUBSTITUTE(SUBSTITUTE(SUBSTITUTE(SUBSTITUTE(V92,$ED92,$ED$2&ROW($ED92)),$EC92,$EC$2&ROW($EC92)),$EB92,$EB$2&ROW($EB92)),$EA92,$EA$2&ROW($EA92)),$DZ92,$DZ$2&ROW($DZ92)),$DY92,$DY$2&ROW($DY92)),$DX92,$DX$2&ROW($DX92)),$DW92,$DW$2&ROW($DW92)),$DV92,$DV$2&ROW($DV92)),$DU92,$DU$2&ROW($DU92)),$DT92,$DT$2&ROW($DT92)),$DS92,$DS$2&ROW($DS92)))","v":"X=AS92*AG92*AU92*.302"},{"$f":"IF(W92=\"\",0,\"X=\"&SUBSTITUTE(SUBSTITUTE(SUBSTITUTE(SUBSTITUTE(SUBSTITUTE(SUBSTITUTE(SUBSTITUTE(SUBSTITUTE(SUBSTITUTE(SUBSTITUTE(SUBSTITUTE(SUBSTITUTE(W92,$ED92,$ED$2&ROW($ED92)),$EC92,$EC$2&ROW($EC92)),$EB92,$EB$2&ROW($EB92)),$EA92,$EA$2&ROW($EA92)),$DZ92,$DZ$2&ROW($DZ92)),$DY92,$DY$2&ROW($DY92)),$DX92,$DX$2&ROW($DX92)),$DW92,$DW$2&ROW($DW92)),$DV92,$DV$2&ROW($DV92)),$DU92,$DU$2&ROW($DU92)),$DT92,$DT$2&ROW($DT92)),$DS92,$DS$2&ROW($DS92)))","v":0},{"$f":"IF(X92=\"\",0,\"X=\"&SUBSTITUTE(SUBSTITUTE(SUBSTITUTE(SUBSTITUTE(SUBSTITUTE(SUBSTITUTE(SUBSTITUTE(SUBSTITUTE(SUBSTITUTE(SUBSTITUTE(SUBSTITUTE(SUBSTITUTE(X92,$ED92,$ED$2&ROW($ED92)),$EC92,$EC$2&ROW($EC92)),$EB92,$EB$2&ROW($EB92)),$EA92,$EA$2&ROW($EA92)),$DZ92,$DZ$2&ROW($DZ92)),$DY92,$DY$2&ROW($DY92)),$DX92,$DX$2&ROW($DX92)),$DW92,$DW$2&ROW($DW92)),$DV92,$DV$2&ROW($DV92)),$DU92,$DU$2&ROW($DU92)),$DT92,$DT$2&ROW($DT92)),$DS92,$DS$2&ROW($DS92)))","v":0},{"$f":"IF(Y92=\"\",0,\"X=\"&SUBSTITUTE(SUBSTITUTE(SUBSTITUTE(SUBSTITUTE(SUBSTITUTE(SUBSTITUTE(SUBSTITUTE(SUBSTITUTE(SUBSTITUTE(SUBSTITUTE(SUBSTITUTE(SUBSTITUTE(Y92,$ED92,$ED$2&ROW($ED92)),$EC92,$EC$2&ROW($EC92)),$EB92,$EB$2&ROW($EB92)),$EA92,$EA$2&ROW($EA92)),$DZ92,$DZ$2&ROW($DZ92)),$DY92,$DY$2&ROW($DY92)),$DX92,$DX$2&ROW($DX92)),$DW92,$DW$2&ROW($DW92)),$DV92,$DV$2&ROW($DV92)),$DU92,$DU$2&ROW($DU92)),$DT92,$DT$2&ROW($DT92)),$DS92,$DS$2&ROW($DS92)))","v":0},{"$f":"IF(Z92=\"\",0,\"X=\"&SUBSTITUTE(SUBSTITUTE(SUBSTITUTE(SUBSTITUTE(SUBSTITUTE(SUBSTITUTE(SUBSTITUTE(SUBSTITUTE(SUBSTITUTE(SUBSTITUTE(SUBSTITUTE(SUBSTITUTE(Z92,$ED92,$ED$2&ROW($ED92)),$EC92,$EC$2&ROW($EC92)),$EB92,$EB$2&ROW($EB92)),$EA92,$EA$2&ROW($EA92)),$DZ92,$DZ$2&ROW($DZ92)),$DY92,$DY$2&ROW($DY92)),$DX92,$DX$2&ROW($DX92)),$DW92,$DW$2&ROW($DW92)),$DV92,$DV$2&ROW($DV92)),$DU92,$DU$2&ROW($DU92)),$DT92,$DT$2&ROW($DT92)),$DS92,$DS$2&ROW($DS92)))","v":0},{"$f":"IF(AA92=\"\",0,\"X=\"&SUBSTITUTE(SUBSTITUTE(SUBSTITUTE(SUBSTITUTE(SUBSTITUTE(SUBSTITUTE(SUBSTITUTE(SUBSTITUTE(SUBSTITUTE(SUBSTITUTE(SUBSTITUTE(SUBSTITUTE(AA92,$ED92,$ED$2&ROW($ED92)),$EC92,$EC$2&ROW($EC92)),$EB92,$EB$2&ROW($EB92)),$EA92,$EA$2&ROW($EA92)),$DZ92,$DZ$2&ROW($DZ92)),$DY92,$DY$2&ROW($DY92)),$DX92,$DX$2&ROW($DX92)),$DW92,$DW$2&ROW($DW92)),$DV92,$DV$2&ROW($DV92)),$DU92,$DU$2&ROW($DU92)),$DT92,$DT$2&ROW($DT92)),$DS92,$DS$2&ROW($DS92)))","v":0},{"$f":"IF(AB92=\"\",0,\"X=\"&SUBSTITUTE(SUBSTITUTE(SUBSTITUTE(SUBSTITUTE(SUBSTITUTE(SUBSTITUTE(SUBSTITUTE(SUBSTITUTE(SUBSTITUTE(SUBSTITUTE(SUBSTITUTE(SUBSTITUTE(AB92,$ED92,$ED$2&ROW($ED92)),$EC92,$EC$2&ROW($EC92)),$EB92,$EB$2&ROW($EB92)),$EA92,$EA$2&ROW($EA92)),$DZ92,$DZ$2&ROW($DZ92)),$DY92,$DY$2&ROW($DY92)),$DX92,$DX$2&ROW($DX92)),$DW92,$DW$2&ROW($DW92)),$DV92,$DV$2&ROW($DV92)),$DU92,$DU$2&ROW($DU92)),$DT92,$DT$2&ROW($DT92)),$DS92,$DS$2&ROW($DS92)))","v":0},null,null,"{Factor:WinterCF}","{Factor:SummerCF}",{"$f":"IFERROR(INDEX($EG92:$IV92,MATCH(0,COUNTIF($DR92:DT92,$EG92:$IV92),0)),\"\")","v":"{Measure:Quantity}"},{"$f":"IFERROR(INDEX($EG92:$IV92,MATCH(0,COUNTIF($DR92:DU92,$EG92:$IV92),0)),\"\")","v":"{Motor HP}"},{"$f":"IFERROR(INDEX($EG92:$IV92,MATCH(0,COUNTIF($DR92:DV92,$EG92:$IV92),0)),\"\")","v":""},{"$f":"IFERROR(INDEX($EG92:$IV92,MATCH(0,COUNTIF($DR92:DW92,$EG92:$IV92),0)),\"\")","v":""},{"$f":"IFERROR(INDEX($EG92:$IV92,MATCH(0,COUNTIF($DR92:DX92,$EG92:$IV92),0)),\"\")","v":""},{"$f":"IFERROR(INDEX($EG92:$IV92,MATCH(0,COUNTIF($DR92:DY92,$EG92:$IV92),0)),\"\")","v":""},{"$f":"IFERROR(INDEX($EG92:$IV92,MATCH(0,COUNTIF($DR92:DZ92,$EG92:$IV92),0)),\"\")","v":""},{"$f":"IFERROR(INDEX($EG92:$IV92,MATCH(0,COUNTIF($DR92:EA92,$EG92:$IV92),0)),\"\")","v":""},{"$f":"IFERROR(INDEX($EG92:$IV92,MATCH(0,COUNTIF($DR92:EB92,$EG92:$IV92),0)),\"\")","v":""},{"$f":"IFERROR(INDEX($EG92:$IV92,MATCH(0,COUNTIF($DR92:EC92,$EG92:$IV92),0)),\"\")","v":""},null,null,{"$f":"IFERROR(MID($G92,FIND(CHAR(160),SUBSTITUTE($G92,\"{\",CHAR(160),EG$1)),FIND(CHAR(160),SUBSTITUTE($G92,\"}\",CHAR(160),EG$1))-FIND(CHAR(160),SUBSTITUTE($G92,\"{\",CHAR(160),EG$1))+1),\"\")","v":"{Measure:Quantity}"},{"$f":"IFERROR(MID($G92,FIND(CHAR(160),SUBSTITUTE($G92,\"{\",CHAR(160),EH$1)),FIND(CHAR(160),SUBSTITUTE($G92,\"}\",CHAR(160),EH$1))-FIND(CHAR(160),SUBSTITUTE($G92,\"{\",CHAR(160),EH$1))+1),\"\")","v":"{Motor HP}"},{"$f":"IFERROR(MID($G92,FIND(CHAR(160),SUBSTITUTE($G92,\"{\",CHAR(160),EI$1)),FIND(CHAR(160),SUBSTITUTE($G92,\"}\",CHAR(160),EI$1))-FIND(CHAR(160),SUBSTITUTE($G92,\"{\",CHAR(160),EI$1))+1),\"\")","v":"{Motor HP}"},{"$f":"IFERROR(MID($G92,FIND(CHAR(160),SUBSTITUTE($G92,\"{\",CHAR(160),EJ$1)),FIND(CHAR(160),SUBSTITUTE($G92,\"}\",CHAR(160),EJ$1))-FIND(CHAR(160),SUBSTITUTE($G92,\"{\",CHAR(160),EJ$1))+1),\"\")","v":"{Motor HP}"},{"$f":"IFERROR(MID($G92,FIND(CHAR(160),SUBSTITUTE($G92,\"{\",CHAR(160),EK$1)),FIND(CHAR(160),SUBSTITUTE($G92,\"}\",CHAR(160),EK$1))-FIND(CHAR(160),SUBSTITUTE($G92,\"{\",CHAR(160),EK$1))+1),\"\")","v":"{Motor HP}"},{"$f":"IFERROR(MID($G92,FIND(CHAR(160),SUBSTITUTE($G92,\"{\",CHAR(160),EL$1)),FIND(CHAR(160),SUBSTITUTE($G92,\"}\",CHAR(160),EL$1))-FIND(CHAR(160),SUBSTITUTE($G92,\"{\",CHAR(160),EL$1))+1),\"\")","v":"{Motor HP}"},{"$f":"IFERROR(MID($G92,FIND(CHAR(160),SUBSTITUTE($G92,\"{\",CHAR(160),EM$1)),FIND(CHAR(160),SUBSTITUTE($G92,\"}\",CHAR(160),EM$1))-FIND(CHAR(160),SUBSTITUTE($G92,\"{\",CHAR(160),EM$1))+1),\"\")","v":"{Motor HP}"},{"$f":"IFERROR(MID($G92,FIND(CHAR(160),SUBSTITUTE($G92,\"{\",CHAR(160),EN$1)),FIND(CHAR(160),SUBSTITUTE($G92,\"}\",CHAR(160),EN$1))-FIND(CHAR(160),SUBSTITUTE($G92,\"{\",CHAR(160),EN$1))+1),\"\")","v":"{Motor HP}"},{"$f":"IFERROR(MID($G92,FIND(CHAR(160),SUBSTITUTE($G92,\"{\",CHAR(160),EO$1)),FIND(CHAR(160),SUBSTITUTE($G92,\"}\",CHAR(160),EO$1))-FIND(CHAR(160),SUBSTITUTE($G92,\"{\",CHAR(160),EO$1))+1),\"\")","v":""},{"$f":"IFERROR(MID($G92,FIND(CHAR(160),SUBSTITUTE($G92,\"{\",CHAR(160),EP$1)),FIND(CHAR(160),SUBSTITUTE($G92,\"}\",CHAR(160),EP$1))-FIND(CHAR(160),SUBSTITUTE($G92,\"{\",CHAR(160),EP$1))+1),\"\")","v":""},{"$f":"IFERROR(MID($J92,FIND(CHAR(160),SUBSTITUTE($J92,\"{\",CHAR(160),EQ$1)),FIND(CHAR(160),SUBSTITUTE($J92,\"}\",CHAR(160),EQ$1))-FIND(CHAR(160),SUBSTITUTE($J92,\"{\",CHAR(160),EQ$1))+1),\"\")","v":"{Measure:Quantity}"},{"$f":"IFERROR(MID($J92,FIND(CHAR(160),SUBSTITUTE($J92,\"{\",CHAR(160),ER$1)),FIND(CHAR(160),SUBSTITUTE($J92,\"}\",CHAR(160),ER$1))-FIND(CHAR(160),SUBSTITUTE($J92,\"{\",CHAR(160),ER$1))+1),\"\")","v":"{Motor HP}"},{"$f":"IFERROR(MID($J92,FIND(CHAR(160),SUBSTITUTE($J92,\"{\",CHAR(160),ES$1)),FIND(CHAR(160),SUBSTITUTE($J92,\"}\",CHAR(160),ES$1))-FIND(CHAR(160),SUBSTITUTE($J92,\"{\",CHAR(160),ES$1))+1),\"\")","v":"{Motor HP}"},{"$f":"IFERROR(MID($J92,FIND(CHAR(160),SUBSTITUTE($J92,\"{\",CHAR(160),ET$1)),FIND(CHAR(160),SUBSTITUTE($J92,\"}\",CHAR(160),ET$1))-FIND(CHAR(160),SUBSTITUTE($J92,\"{\",CHAR(160),ET$1))+1),\"\")","v":"{Motor HP}"},{"$f":"IFERROR(MID($J92,FIND(CHAR(160),SUBSTITUTE($J92,\"{\",CHAR(160),EU$1)),FIND(CHAR(160),SUBSTITUTE($J92,\"}\",CHAR(160),EU$1))-FIND(CHAR(160),SUBSTITUTE($J92,\"{\",CHAR(160),EU$1))+1),\"\")","v":"{Motor HP}"},{"$f":"IFERROR(MID($J92,FIND(CHAR(160),SUBSTITUTE($J92,\"{\",CHAR(160),EV$1)),FIND(CHAR(160),SUBSTITUTE($J92,\"}\",CHAR(160),EV$1))-FIND(CHAR(160),SUBSTITUTE($J92,\"{\",CHAR(160),EV$1))+1),\"\")","v":"{Motor HP}"},{"$f":"IFERROR(MID($J92,FIND(CHAR(160),SUBSTITUTE($J92,\"{\",CHAR(160),EW$1)),FIND(CHAR(160),SUBSTITUTE($J92,\"}\",CHAR(160),EW$1))-FIND(CHAR(160),SUBSTITUTE($J92,\"{\",CHAR(160),EW$1))+1),\"\")","v":"{Motor HP}"},{"$f":"IFERROR(MID($J92,FIND(CHAR(160),SUBSTITUTE($J92,\"{\",CHAR(160),EX$1)),FIND(CHAR(160),SUBSTITUTE($J92,\"}\",CHAR(160),EX$1))-FIND(CHAR(160),SUBSTITUTE($J92,\"{\",CHAR(160),EX$1))+1),\"\")","v":"{Motor HP}"},{"$f":"IFERROR(MID($J92,FIND(CHAR(160),SUBSTITUTE($J92,\"{\",CHAR(160),EY$1)),FIND(CHAR(160),SUBSTITUTE($J92,\"}\",CHAR(160),EY$1))-FIND(CHAR(160),SUBSTITUTE($J92,\"{\",CHAR(160),EY$1))+1),\"\")","v":""},{"$f":"IFERROR(MID($J92,FIND(CHAR(160),SUBSTITUTE($J92,\"{\",CHAR(160),EZ$1)),FIND(CHAR(160),SUBSTITUTE($J92,\"}\",CHAR(160),EZ$1))-FIND(CHAR(160),SUBSTITUTE($J92,\"{\",CHAR(160),EZ$1))+1),\"\")","v":""},{"$f":"IFERROR(MID($J92,FIND(CHAR(160),SUBSTITUTE($J92,\"{\",CHAR(160),FA$1)),FIND(CHAR(160),SUBSTITUTE($J92,\"}\",CHAR(160),FA$1))-FIND(CHAR(160),SUBSTITUTE($J92,\"{\",CHAR(160),FA$1))+1),\"\")","v":"{Measure:Quantity}"},{"$f":"IFERROR(MID($J92,FIND(CHAR(160),SUBSTITUTE($J92,\"{\",CHAR(160),FB$1)),FIND(CHAR(160),SUBSTITUTE($J92,\"}\",CHAR(160),FB$1))-FIND(CHAR(160),SUBSTITUTE($J92,\"{\",CHAR(160),FB$1))+1),\"\")","v":"{Motor HP}"},{"$f":"IFERROR(MID($O92,FIND(CHAR(160),SUBSTITUTE($O92,\"{\",CHAR(160),FC$1)),FIND(CHAR(160),SUBSTITUTE($O92,\"}\",CHAR(160),FC$1))-FIND(CHAR(160),SUBSTITUTE($O92,\"{\",CHAR(160),FC$1))+1),\"\")","v":""},{"$f":"IFERROR(MID($O92,FIND(CHAR(160),SUBSTITUTE($O92,\"{\",CHAR(160),FD$1)),FIND(CHAR(160),SUBSTITUTE($O92,\"}\",CHAR(160),FD$1))-FIND(CHAR(160),SUBSTITUTE($O92,\"{\",CHAR(160),FD$1))+1),\"\")","v":""},{"$f":"IFERROR(MID($O92,FIND(CHAR(160),SUBSTITUTE($O92,\"{\",CHAR(160),FE$1)),FIND(CHAR(160),SUBSTITUTE($O92,\"}\",CHAR(160),FE$1))-FIND(CHAR(160),SUBSTITUTE($O92,\"{\",CHAR(160),FE$1))+1),\"\")","v":""},{"$f":"IFERROR(MID($O92,FIND(CHAR(160),SUBSTITUTE($O92,\"{\",CHAR(160),FF$1)),FIND(CHAR(160),SUBSTITUTE($O92,\"}\",CHAR(160),FF$1))-FIND(CHAR(160),SUBSTITUTE($O92,\"{\",CHAR(160),FF$1))+1),\"\")","v":""},{"$f":"IFERROR(MID($O92,FIND(CHAR(160),SUBSTITUTE($O92,\"{\",CHAR(160),FG$1)),FIND(CHAR(160),SUBSTITUTE($O92,\"}\",CHAR(160),FG$1))-FIND(CHAR(160),SUBSTITUTE($O92,\"{\",CHAR(160),FG$1))+1),\"\")","v":""},{"$f":"IFERROR(MID($O92,FIND(CHAR(160),SUBSTITUTE($O92,\"{\",CHAR(160),FH$1)),FIND(CHAR(160),SUBSTITUTE($O92,\"}\",CHAR(160),FH$1))-FIND(CHAR(160),SUBSTITUTE($O92,\"{\",CHAR(160),FH$1))+1),\"\")","v":""},{"$f":"IFERROR(MID($O92,FIND(CHAR(160),SUBSTITUTE($O92,\"{\",CHAR(160),FI$1)),FIND(CHAR(160),SUBSTITUTE($O92,\"}\",CHAR(160),FI$1))-FIND(CHAR(160),SUBSTITUTE($O92,\"{\",CHAR(160),FI$1))+1),\"\")","v":""},{"$f":"IFERROR(MID($O92,FIND(CHAR(160),SUBSTITUTE($O92,\"{\",CHAR(160),FJ$1)),FIND(CHAR(160),SUBSTITUTE($O92,\"}\",CHAR(160),FJ$1))-FIND(CHAR(160),SUBSTITUTE($O92,\"{\",CHAR(160),FJ$1))+1),\"\")","v":""},{"$f":"IFERROR(MID($O92,FIND(CHAR(160),SUBSTITUTE($O92,\"{\",CHAR(160),FK$1)),FIND(CHAR(160),SUBSTITUTE($O92,\"}\",CHAR(160),FK$1))-FIND(CHAR(160),SUBSTITUTE($O92,\"{\",CHAR(160),FK$1))+1),\"\")","v":"{Measure:Quantity}"},{"$f":"IFERROR(MID($O92,FIND(CHAR(160),SUBSTITUTE($O92,\"{\",CHAR(160),FL$1)),FIND(CHAR(160),SUBSTITUTE($O92,\"}\",CHAR(160),FL$1))-FIND(CHAR(160),SUBSTITUTE($O92,\"{\",CHAR(160),FL$1))+1),\"\")","v":"{Motor HP}"},{"$f":"IFERROR(MID($R92,FIND(CHAR(160),SUBSTITUTE($R92,\"{\",CHAR(160),FM$1)),FIND(CHAR(160),SUBSTITUTE($R92,\"}\",CHAR(160),FM$1))-FIND(CHAR(160),SUBSTITUTE($R92,\"{\",CHAR(160),FM$1))+1),\"\")","v":""},{"$f":"IFERROR(MID($R92,FIND(CHAR(160),SUBSTITUTE($R92,\"{\",CHAR(160),FN$1)),FIND(CHAR(160),SUBSTITUTE($R92,\"}\",CHAR(160),FN$1))-FIND(CHAR(160),SUBSTITUTE($R92,\"{\",CHAR(160),FN$1))+1),\"\")","v":""},{"$f":"IFERROR(MID($R92,FIND(CHAR(160),SUBSTITUTE($R92,\"{\",CHAR(160),FO$1)),FIND(CHAR(160),SUBSTITUTE($R92,\"}\",CHAR(160),FO$1))-FIND(CHAR(160),SUBSTITUTE($R92,\"{\",CHAR(160),FO$1))+1),\"\")","v":""},{"$f":"IFERROR(MID($R92,FIND(CHAR(160),SUBSTITUTE($R92,\"{\",CHAR(160),FP$1)),FIND(CHAR(160),SUBSTITUTE($R92,\"}\",CHAR(160),FP$1))-FIND(CHAR(160),SUBSTITUTE($R92,\"{\",CHAR(160),FP$1))+1),\"\")","v":""},{"$f":"IFERROR(MID($R92,FIND(CHAR(160),SUBSTITUTE($R92,\"{\",CHAR(160),FQ$1)),FIND(CHAR(160),SUBSTITUTE($R92,\"}\",CHAR(160),FQ$1))-FIND(CHAR(160),SUBSTITUTE($R92,\"{\",CHAR(160),FQ$1))+1),\"\")","v":""},{"$f":"IFERROR(MID($R92,FIND(CHAR(160),SUBSTITUTE($R92,\"{\",CHAR(160),FR$1)),FIND(CHAR(160),SUBSTITUTE($R92,\"}\",CHAR(160),FR$1))-FIND(CHAR(160),SUBSTITUTE($R92,\"{\",CHAR(160),FR$1))+1),\"\")","v":""},{"$f":"IFERROR(MID($R92,FIND(CHAR(160),SUBSTITUTE($R92,\"{\",CHAR(160),FS$1)),FIND(CHAR(160),SUBSTITUTE($R92,\"}\",CHAR(160),FS$1))-FIND(CHAR(160),SUBSTITUTE($R92,\"{\",CHAR(160),FS$1))+1),\"\")","v":""},{"$f":"IFERROR(MID($R92,FIND(CHAR(160),SUBSTITUTE($R92,\"{\",CHAR(160),FT$1)),FIND(CHAR(160),SUBSTITUTE($R92,\"}\",CHAR(160),FT$1))-FIND(CHAR(160),SUBSTITUTE($R92,\"{\",CHAR(160),FT$1))+1),\"\")","v":""},{"$f":"IFERROR(MID($R92,FIND(CHAR(160),SUBSTITUTE($R92,\"{\",CHAR(160),FU$1)),FIND(CHAR(160),SUBSTITUTE($R92,\"}\",CHAR(160),FU$1))-FIND(CHAR(160),SUBSTITUTE($R92,\"{\",CHAR(160),FU$1))+1),\"\")","v":"{Measure:Quantity}"},{"$f":"IFERROR(MID($R92,FIND(CHAR(160),SUBSTITUTE($R92,\"{\",CHAR(160),FV$1)),FIND(CHAR(160),SUBSTITUTE($R92,\"}\",CHAR(160),FV$1))-FIND(CHAR(160),SUBSTITUTE($R92,\"{\",CHAR(160),FV$1))+1),\"\")","v":"{Motor HP}"},{"$f":"IFERROR(MID($U92,FIND(CHAR(160),SUBSTITUTE($U92,\"{\",CHAR(160),FW$1)),FIND(CHAR(160),SUBSTITUTE($U92,\"}\",CHAR(160),FW$1))-FIND(CHAR(160),SUBSTITUTE($U92,\"{\",CHAR(160),FW$1))+1),\"\")","v":"{Motor HP}"},{"$f":"IFERROR(MID($U92,FIND(CHAR(160),SUBSTITUTE($U92,\"{\",CHAR(160),FX$1)),FIND(CHAR(160),SUBSTITUTE($U92,\"}\",CHAR(160),FX$1))-FIND(CHAR(160),SUBSTITUTE($U92,\"{\",CHAR(160),FX$1))+1),\"\")","v":""},{"$f":"IFERROR(MID($U92,FIND(CHAR(160),SUBSTITUTE($U92,\"{\",CHAR(160),FY$1)),FIND(CHAR(160),SUBSTITUTE($U92,\"}\",CHAR(160),FY$1))-FIND(CHAR(160),SUBSTITUTE($U92,\"{\",CHAR(160),FY$1))+1),\"\")","v":""},{"$f":"IFERROR(MID($U92,FIND(CHAR(160),SUBSTITUTE($U92,\"{\",CHAR(160),FZ$1)),FIND(CHAR(160),SUBSTITUTE($U92,\"}\",CHAR(160),FZ$1))-FIND(CHAR(160),SUBSTITUTE($U92,\"{\",CHAR(160),FZ$1))+1),\"\")","v":""},{"$f":"IFERROR(MID($U92,FIND(CHAR(160),SUBSTITUTE($U92,\"{\",CHAR(160),GA$1)),FIND(CHAR(160),SUBSTITUTE($U92,\"}\",CHAR(160),GA$1))-FIND(CHAR(160),SUBSTITUTE($U92,\"{\",CHAR(160),GA$1))+1),\"\")","v":""},{"$f":"IFERROR(MID($U92,FIND(CHAR(160),SUBSTITUTE($U92,\"{\",CHAR(160),GB$1)),FIND(CHAR(160),SUBSTITUTE($U92,\"}\",CHAR(160),GB$1))-FIND(CHAR(160),SUBSTITUTE($U92,\"{\",CHAR(160),GB$1))+1),\"\")","v":""},{"$f":"IFERROR(MID($U92,FIND(CHAR(160),SUBSTITUTE($U92,\"{\",CHAR(160),GC$1)),FIND(CHAR(160),SUBSTITUTE($U92,\"}\",CHAR(160),GC$1))-FIND(CHAR(160),SUBSTITUTE($U92,\"{\",CHAR(160),GC$1))+1),\"\")","v":""},{"$f":"IFERROR(MID($U92,FIND(CHAR(160),SUBSTITUTE($U92,\"{\",CHAR(160),GD$1)),FIND(CHAR(160),SUBSTITUTE($U92,\"}\",CHAR(160),GD$1))-FIND(CHAR(160),SUBSTITUTE($U92,\"{\",CHAR(160),GD$1))+1),\"\")","v":""},{"$f":"IFERROR(MID($U92,FIND(CHAR(160),SUBSTITUTE($U92,\"{\",CHAR(160),GE$1)),FIND(CHAR(160),SUBSTITUTE($U92,\"}\",CHAR(160),GE$1))-FIND(CHAR(160),SUBSTITUTE($U92,\"{\",CHAR(160),GE$1))+1),\"\")","v":"{Measure:Quantity}"},{"$f":"IFERROR(MID($U92,FIND(CHAR(160),SUBSTITUTE($U92,\"{\",CHAR(160),GF$1)),FIND(CHAR(160),SUBSTITUTE($U92,\"}\",CHAR(160),GF$1))-FIND(CHAR(160),SUBSTITUTE($U92,\"{\",CHAR(160),GF$1))+1),\"\")","v":"{Factor:WinterCF}"},{"$f":"IFERROR(MID($V92,FIND(CHAR(160),SUBSTITUTE($V92,\"{\",CHAR(160),GG$1)),FIND(CHAR(160),SUBSTITUTE($V92,\"}\",CHAR(160),GG$1))-FIND(CHAR(160),SUBSTITUTE($V92,\"{\",CHAR(160),GG$1))+1),\"\")","v":"{Motor HP}"},{"$f":"IFERROR(MID($V92,FIND(CHAR(160),SUBSTITUTE($V92,\"{\",CHAR(160),GH$1)),FIND(CHAR(160),SUBSTITUTE($V92,\"}\",CHAR(160),GH$1))-FIND(CHAR(160),SUBSTITUTE($V92,\"{\",CHAR(160),GH$1))+1),\"\")","v":""},{"$f":"IFERROR(MID($V92,FIND(CHAR(160),SUBSTITUTE($V92,\"{\",CHAR(160),GI$1)),FIND(CHAR(160),SUBSTITUTE($V92,\"}\",CHAR(160),GI$1))-FIND(CHAR(160),SUBSTITUTE($V92,\"{\",CHAR(160),GI$1))+1),\"\")","v":""},{"$f":"IFERROR(MID($V92,FIND(CHAR(160),SUBSTITUTE($V92,\"{\",CHAR(160),GJ$1)),FIND(CHAR(160),SUBSTITUTE($V92,\"}\",CHAR(160),GJ$1))-FIND(CHAR(160),SUBSTITUTE($V92,\"{\",CHAR(160),GJ$1))+1),\"\")","v":""},{"$f":"IFERROR(MID($V92,FIND(CHAR(160),SUBSTITUTE($V92,\"{\",CHAR(160),GK$1)),FIND(CHAR(160),SUBSTITUTE($V92,\"}\",CHAR(160),GK$1))-FIND(CHAR(160),SUBSTITUTE($V92,\"{\",CHAR(160),GK$1))+1),\"\")","v":""},{"$f":"IFERROR(MID($V92,FIND(CHAR(160),SUBSTITUTE($V92,\"{\",CHAR(160),GL$1)),FIND(CHAR(160),SUBSTITUTE($V92,\"}\",CHAR(160),GL$1))-FIND(CHAR(160),SUBSTITUTE($V92,\"{\",CHAR(160),GL$1))+1),\"\")","v":""},{"$f":"IFERROR(MID($V92,FIND(CHAR(160),SUBSTITUTE($V92,\"{\",CHAR(160),GM$1)),FIND(CHAR(160),SUBSTITUTE($V92,\"}\",CHAR(160),GM$1))-FIND(CHAR(160),SUBSTITUTE($V92,\"{\",CHAR(160),GM$1))+1),\"\")","v":""},{"$f":"IFERROR(MID($V92,FIND(CHAR(160),SUBSTITUTE($V92,\"{\",CHAR(160),GN$1)),FIND(CHAR(160),SUBSTITUTE($V92,\"}\",CHAR(160),GN$1))-FIND(CHAR(160),SUBSTITUTE($V92,\"{\",CHAR(160),GN$1))+1),\"\")","v":""},{"$f":"IFERROR(MID($V92,FIND(CHAR(160),SUBSTITUTE($V92,\"{\",CHAR(160),GO$1)),FIND(CHAR(160),SUBSTITUTE($V92,\"}\",CHAR(160),GO$1))-FIND(CHAR(160),SUBSTITUTE($V92,\"{\",CHAR(160),GO$1))+1),\"\")","v":"{Measure:Quantity}"},{"$f":"IFERROR(MID($V92,FIND(CHAR(160),SUBSTITUTE($V92,\"{\",CHAR(160),GP$1)),FIND(CHAR(160),SUBSTITUTE($V92,\"}\",CHAR(160),GP$1))-FIND(CHAR(160),SUBSTITUTE($V92,\"{\",CHAR(160),GP$1))+1),\"\")","v":"{Factor:SummerCF}"},{"$f":"IFERROR(MID($W92,FIND(CHAR(160),SUBSTITUTE($W92,\"{\",CHAR(160),GQ$1)),FIND(CHAR(160),SUBSTITUTE($W92,\"}\",CHAR(160),GQ$1))-FIND(CHAR(160),SUBSTITUTE($W92,\"{\",CHAR(160),GQ$1))+1),\"\")","v":""},{"$f":"IFERROR(MID($W92,FIND(CHAR(160),SUBSTITUTE($W92,\"{\",CHAR(160),GR$1)),FIND(CHAR(160),SUBSTITUTE($W92,\"}\",CHAR(160),GR$1))-FIND(CHAR(160),SUBSTITUTE($W92,\"{\",CHAR(160),GR$1))+1),\"\")","v":""},{"$f":"IFERROR(MID($W92,FIND(CHAR(160),SUBSTITUTE($W92,\"{\",CHAR(160),GS$1)),FIND(CHAR(160),SUBSTITUTE($W92,\"}\",CHAR(160),GS$1))-FIND(CHAR(160),SUBSTITUTE($W92,\"{\",CHAR(160),GS$1))+1),\"\")","v":""},{"$f":"IFERROR(MID($W92,FIND(CHAR(160),SUBSTITUTE($W92,\"{\",CHAR(160),GT$1)),FIND(CHAR(160),SUBSTITUTE($W92,\"}\",CHAR(160),GT$1))-FIND(CHAR(160),SUBSTITUTE($W92,\"{\",CHAR(160),GT$1))+1),\"\")","v":""},{"$f":"IFERROR(MID($W92,FIND(CHAR(160),SUBSTITUTE($W92,\"{\",CHAR(160),GU$1)),FIND(CHAR(160),SUBSTITUTE($W92,\"}\",CHAR(160),GU$1))-FIND(CHAR(160),SUBSTITUTE($W92,\"{\",CHAR(160),GU$1))+1),\"\")","v":""},{"$f":"IFERROR(MID($W92,FIND(CHAR(160),SUBSTITUTE($W92,\"{\",CHAR(160),GV$1)),FIND(CHAR(160),SUBSTITUTE($W92,\"}\",CHAR(160),GV$1))-FIND(CHAR(160),SUBSTITUTE($W92,\"{\",CHAR(160),GV$1))+1),\"\")","v":""},{"$f":"IFERROR(MID($W92,FIND(CHAR(160),SUBSTITUTE($W92,\"{\",CHAR(160),GW$1)),FIND(CHAR(160),SUBSTITUTE($W92,\"}\",CHAR(160),GW$1))-FIND(CHAR(160),SUBSTITUTE($W92,\"{\",CHAR(160),GW$1))+1),\"\")","v":""},{"$f":"IFERROR(MID($W92,FIND(CHAR(160),SUBSTITUTE($W92,\"{\",CHAR(160),GX$1)),FIND(CHAR(160),SUBSTITUTE($W92,\"}\",CHAR(160),GX$1))-FIND(CHAR(160),SUBSTITUTE($W92,\"{\",CHAR(160),GX$1))+1),\"\")","v":""},{"$f":"IFERROR(MID($W92,FIND(CHAR(160),SUBSTITUTE($W92,\"{\",CHAR(160),GY$1)),FIND(CHAR(160),SUBSTITUTE($W92,\"}\",CHAR(160),GY$1))-FIND(CHAR(160),SUBSTITUTE($W92,\"{\",CHAR(160),GY$1))+1),\"\")","v":""},{"$f":"IFERROR(MID($W92,FIND(CHAR(160),SUBSTITUTE($W92,\"{\",CHAR(160),GZ$1)),FIND(CHAR(160),SUBSTITUTE($W92,\"}\",CHAR(160),GZ$1))-FIND(CHAR(160),SUBSTITUTE($W92,\"{\",CHAR(160),GZ$1))+1),\"\")","v":""},{"$f":"IFERROR(MID($X92,FIND(CHAR(160),SUBSTITUTE($X92,\"{\",CHAR(160),HA$1)),FIND(CHAR(160),SUBSTITUTE($X92,\"}\",CHAR(160),HA$1))-FIND(CHAR(160),SUBSTITUTE($X92,\"{\",CHAR(160),HA$1))+1),\"\")","v":""},{"$f":"IFERROR(MID($X92,FIND(CHAR(160),SUBSTITUTE($X92,\"{\",CHAR(160),HB$1)),FIND(CHAR(160),SUBSTITUTE($X92,\"}\",CHAR(160),HB$1))-FIND(CHAR(160),SUBSTITUTE($X92,\"{\",CHAR(160),HB$1))+1),\"\")","v":""},{"$f":"IFERROR(MID($X92,FIND(CHAR(160),SUBSTITUTE($X92,\"{\",CHAR(160),HC$1)),FIND(CHAR(160),SUBSTITUTE($X92,\"}\",CHAR(160),HC$1))-FIND(CHAR(160),SUBSTITUTE($X92,\"{\",CHAR(160),HC$1))+1),\"\")","v":""},{"$f":"IFERROR(MID($X92,FIND(CHAR(160),SUBSTITUTE($X92,\"{\",CHAR(160),HD$1)),FIND(CHAR(160),SUBSTITUTE($X92,\"}\",CHAR(160),HD$1))-FIND(CHAR(160),SUBSTITUTE($X92,\"{\",CHAR(160),HD$1))+1),\"\")","v":""},{"$f":"IFERROR(MID($X92,FIND(CHAR(160),SUBSTITUTE($X92,\"{\",CHAR(160),HE$1)),FIND(CHAR(160),SUBSTITUTE($X92,\"}\",CHAR(160),HE$1))-FIND(CHAR(160),SUBSTITUTE($X92,\"{\",CHAR(160),HE$1))+1),\"\")","v":""},{"$f":"IFERROR(MID($X92,FIND(CHAR(160),SUBSTITUTE($X92,\"{\",CHAR(160),HF$1)),FIND(CHAR(160),SUBSTITUTE($X92,\"}\",CHAR(160),HF$1))-FIND(CHAR(160),SUBSTITUTE($X92,\"{\",CHAR(160),HF$1))+1),\"\")","v":""},{"$f":"IFERROR(MID($X92,FIND(CHAR(160),SUBSTITUTE($X92,\"{\",CHAR(160),HG$1)),FIND(CHAR(160),SUBSTITUTE($X92,\"}\",CHAR(160),HG$1))-FIND(CHAR(160),SUBSTITUTE($X92,\"{\",CHAR(160),HG$1))+1),\"\")","v":""},{"$f":"IFERROR(MID($X92,FIND(CHAR(160),SUBSTITUTE($X92,\"{\",CHAR(160),HH$1)),FIND(CHAR(160),SUBSTITUTE($X92,\"}\",CHAR(160),HH$1))-FIND(CHAR(160),SUBSTITUTE($X92,\"{\",CHAR(160),HH$1))+1),\"\")","v":""},{"$f":"IFERROR(MID($X92,FIND(CHAR(160),SUBSTITUTE($X92,\"{\",CHAR(160),HI$1)),FIND(CHAR(160),SUBSTITUTE($X92,\"}\",CHAR(160),HI$1))-FIND(CHAR(160),SUBSTITUTE($X92,\"{\",CHAR(160),HI$1))+1),\"\")","v":""},{"$f":"IFERROR(MID($X92,FIND(CHAR(160),SUBSTITUTE($X92,\"{\",CHAR(160),HJ$1)),FIND(CHAR(160),SUBSTITUTE($X92,\"}\",CHAR(160),HJ$1))-FIND(CHAR(160),SUBSTITUTE($X92,\"{\",CHAR(160),HJ$1))+1),\"\")","v":""},{"$f":"IFERROR(MID($Y92,FIND(CHAR(160),SUBSTITUTE($Y92,\"{\",CHAR(160),HK$1)),FIND(CHAR(160),SUBSTITUTE($Y92,\"}\",CHAR(160),HK$1))-FIND(CHAR(160),SUBSTITUTE($Y92,\"{\",CHAR(160),HK$1))+1),\"\")","v":""},{"$f":"IFERROR(MID($Y92,FIND(CHAR(160),SUBSTITUTE($Y92,\"{\",CHAR(160),HL$1)),FIND(CHAR(160),SUBSTITUTE($Y92,\"}\",CHAR(160),HL$1))-FIND(CHAR(160),SUBSTITUTE($Y92,\"{\",CHAR(160),HL$1))+1),\"\")","v":""},{"$f":"IFERROR(MID($Y92,FIND(CHAR(160),SUBSTITUTE($Y92,\"{\",CHAR(160),HM$1)),FIND(CHAR(160),SUBSTITUTE($Y92,\"}\",CHAR(160),HM$1))-FIND(CHAR(160),SUBSTITUTE($Y92,\"{\",CHAR(160),HM$1))+1),\"\")","v":""},{"$f":"IFERROR(MID($Y92,FIND(CHAR(160),SUBSTITUTE($Y92,\"{\",CHAR(160),HN$1)),FIND(CHAR(160),SUBSTITUTE($Y92,\"}\",CHAR(160),HN$1))-FIND(CHAR(160),SUBSTITUTE($Y92,\"{\",CHAR(160),HN$1))+1),\"\")","v":""},{"$f":"IFERROR(MID($Y92,FIND(CHAR(160),SUBSTITUTE($Y92,\"{\",CHAR(160),HO$1)),FIND(CHAR(160),SUBSTITUTE($Y92,\"}\",CHAR(160),HO$1))-FIND(CHAR(160),SUBSTITUTE($Y92,\"{\",CHAR(160),HO$1))+1),\"\")","v":""},{"$f":"IFERROR(MID($Y92,FIND(CHAR(160),SUBSTITUTE($Y92,\"{\",CHAR(160),HP$1)),FIND(CHAR(160),SUBSTITUTE($Y92,\"}\",CHAR(160),HP$1))-FIND(CHAR(160),SUBSTITUTE($Y92,\"{\",CHAR(160),HP$1))+1),\"\")","v":""},{"$f":"IFERROR(MID($Y92,FIND(CHAR(160),SUBSTITUTE($Y92,\"{\",CHAR(160),HQ$1)),FIND(CHAR(160),SUBSTITUTE($Y92,\"}\",CHAR(160),HQ$1))-FIND(CHAR(160),SUBSTITUTE($Y92,\"{\",CHAR(160),HQ$1))+1),\"\")","v":""},{"$f":"IFERROR(MID($Y92,FIND(CHAR(160),SUBSTITUTE($Y92,\"{\",CHAR(160),HR$1)),FIND(CHAR(160),SUBSTITUTE($Y92,\"}\",CHAR(160),HR$1))-FIND(CHAR(160),SUBSTITUTE($Y92,\"{\",CHAR(160),HR$1))+1),\"\")","v":""},{"$f":"IFERROR(MID($Y92,FIND(CHAR(160),SUBSTITUTE($Y92,\"{\",CHAR(160),HS$1)),FIND(CHAR(160),SUBSTITUTE($Y92,\"}\",CHAR(160),HS$1))-FIND(CHAR(160),SUBSTITUTE($Y92,\"{\",CHAR(160),HS$1))+1),\"\")","v":""},{"$f":"IFERROR(MID($Y92,FIND(CHAR(160),SUBSTITUTE($Y92,\"{\",CHAR(160),HT$1)),FIND(CHAR(160),SUBSTITUTE($Y92,\"}\",CHAR(160),HT$1))-FIND(CHAR(160),SUBSTITUTE($Y92,\"{\",CHAR(160),HT$1))+1),\"\")","v":""},{"$f":"IFERROR(MID($Z92,FIND(CHAR(160),SUBSTITUTE($Z92,\"{\",CHAR(160),HU$1)),FIND(CHAR(160),SUBSTITUTE($Z92,\"}\",CHAR(160),HU$1))-FIND(CHAR(160),SUBSTITUTE($Z92,\"{\",CHAR(160),HU$1))+1),\"\")","v":""},{"$f":"IFERROR(MID($Z92,FIND(CHAR(160),SUBSTITUTE($Z92,\"{\",CHAR(160),HV$1)),FIND(CHAR(160),SUBSTITUTE($Z92,\"}\",CHAR(160),HV$1))-FIND(CHAR(160),SUBSTITUTE($Z92,\"{\",CHAR(160),HV$1))+1),\"\")","v":""},{"$f":"IFERROR(MID($Z92,FIND(CHAR(160),SUBSTITUTE($Z92,\"{\",CHAR(160),HW$1)),FIND(CHAR(160),SUBSTITUTE($Z92,\"}\",CHAR(160),HW$1))-FIND(CHAR(160),SUBSTITUTE($Z92,\"{\",CHAR(160),HW$1))+1),\"\")","v":""},{"$f":"IFERROR(MID($Z92,FIND(CHAR(160),SUBSTITUTE($Z92,\"{\",CHAR(160),HX$1)),FIND(CHAR(160),SUBSTITUTE($Z92,\"}\",CHAR(160),HX$1))-FIND(CHAR(160),SUBSTITUTE($Z92,\"{\",CHAR(160),HX$1))+1),\"\")","v":""},{"$f":"IFERROR(MID($Z92,FIND(CHAR(160),SUBSTITUTE($Z92,\"{\",CHAR(160),HY$1)),FIND(CHAR(160),SUBSTITUTE($Z92,\"}\",CHAR(160),HY$1))-FIND(CHAR(160),SUBSTITUTE($Z92,\"{\",CHAR(160),HY$1))+1),\"\")","v":""},{"$f":"IFERROR(MID($Z92,FIND(CHAR(160),SUBSTITUTE($Z92,\"{\",CHAR(160),HZ$1)),FIND(CHAR(160),SUBSTITUTE($Z92,\"}\",CHAR(160),HZ$1))-FIND(CHAR(160),SUBSTITUTE($Z92,\"{\",CHAR(160),HZ$1))+1),\"\")","v":""},{"$f":"IFERROR(MID($Z92,FIND(CHAR(160),SUBSTITUTE($Z92,\"{\",CHAR(160),IA$1)),FIND(CHAR(160),SUBSTITUTE($Z92,\"}\",CHAR(160),IA$1))-FIND(CHAR(160),SUBSTITUTE($Z92,\"{\",CHAR(160),IA$1))+1),\"\")","v":""},{"$f":"IFERROR(MID($Z92,FIND(CHAR(160),SUBSTITUTE($Z92,\"{\",CHAR(160),IB$1)),FIND(CHAR(160),SUBSTITUTE($Z92,\"}\",CHAR(160),IB$1))-FIND(CHAR(160),SUBSTITUTE($Z92,\"{\",CHAR(160),IB$1))+1),\"\")","v":""},{"$f":"IFERROR(MID($Z92,FIND(CHAR(160),SUBSTITUTE($Z92,\"{\",CHAR(160),IC$1)),FIND(CHAR(160),SUBSTITUTE($Z92,\"}\",CHAR(160),IC$1))-FIND(CHAR(160),SUBSTITUTE($Z92,\"{\",CHAR(160),IC$1))+1),\"\")","v":""},{"$f":"IFERROR(MID($Z92,FIND(CHAR(160),SUBSTITUTE($Z92,\"{\",CHAR(160),ID$1)),FIND(CHAR(160),SUBSTITUTE($Z92,\"}\",CHAR(160),ID$1))-FIND(CHAR(160),SUBSTITUTE($Z92,\"{\",CHAR(160),ID$1))+1),\"\")","v":""},{"$f":"IFERROR(MID($AA92,FIND(CHAR(160),SUBSTITUTE($AA92,\"{\",CHAR(160),IE$1)),FIND(CHAR(160),SUBSTITUTE($AA92,\"}\",CHAR(160),IE$1))-FIND(CHAR(160),SUBSTITUTE($AA92,\"{\",CHAR(160),IE$1))+1),\"\")","v":""},{"$f":"IFERROR(MID($AA92,FIND(CHAR(160),SUBSTITUTE($AA92,\"{\",CHAR(160),IF$1)),FIND(CHAR(160),SUBSTITUTE($AA92,\"}\",CHAR(160),IF$1))-FIND(CHAR(160),SUBSTITUTE($AA92,\"{\",CHAR(160),IF$1))+1),\"\")","v":""},{"$f":"IFERROR(MID($AA92,FIND(CHAR(160),SUBSTITUTE($AA92,\"{\",CHAR(160),IG$1)),FIND(CHAR(160),SUBSTITUTE($AA92,\"}\",CHAR(160),IG$1))-FIND(CHAR(160),SUBSTITUTE($AA92,\"{\",CHAR(160),IG$1))+1),\"\")","v":""},{"$f":"IFERROR(MID($AA92,FIND(CHAR(160),SUBSTITUTE($AA92,\"{\",CHAR(160),IH$1)),FIND(CHAR(160),SUBSTITUTE($AA92,\"}\",CHAR(160),IH$1))-FIND(CHAR(160),SUBSTITUTE($AA92,\"{\",CHAR(160),IH$1))+1),\"\")","v":""},{"$f":"IFERROR(MID($AA92,FIND(CHAR(160),SUBSTITUTE($AA92,\"{\",CHAR(160),II$1)),FIND(CHAR(160),SUBSTITUTE($AA92,\"}\",CHAR(160),II$1))-FIND(CHAR(160),SUBSTITUTE($AA92,\"{\",CHAR(160),II$1))+1),\"\")","v":""},{"$f":"IFERROR(MID($AA92,FIND(CHAR(160),SUBSTITUTE($AA92,\"{\",CHAR(160),IJ$1)),FIND(CHAR(160),SUBSTITUTE($AA92,\"}\",CHAR(160),IJ$1))-FIND(CHAR(160),SUBSTITUTE($AA92,\"{\",CHAR(160),IJ$1))+1),\"\")","v":""},{"$f":"IFERROR(MID($AA92,FIND(CHAR(160),SUBSTITUTE($AA92,\"{\",CHAR(160),IK$1)),FIND(CHAR(160),SUBSTITUTE($AA92,\"}\",CHAR(160),IK$1))-FIND(CHAR(160),SUBSTITUTE($AA92,\"{\",CHAR(160),IK$1))+1),\"\")","v":""},{"$f":"IFERROR(MID($AA92,FIND(CHAR(160),SUBSTITUTE($AA92,\"{\",CHAR(160),IL$1)),FIND(CHAR(160),SUBSTITUTE($AA92,\"}\",CHAR(160),IL$1))-FIND(CHAR(160),SUBSTITUTE($AA92,\"{\",CHAR(160),IL$1))+1),\"\")","v":""},{"$f":"IFERROR(MID($AA92,FIND(CHAR(160),SUBSTITUTE($AA92,\"{\",CHAR(160),IM$1)),FIND(CHAR(160),SUBSTITUTE($AA92,\"}\",CHAR(160),IM$1))-FIND(CHAR(160),SUBSTITUTE($AA92,\"{\",CHAR(160),IM$1))+1),\"\")","v":""},{"$f":"IFERROR(MID($AA92,FIND(CHAR(160),SUBSTITUTE($AA92,\"{\",CHAR(160),IN$1)),FIND(CHAR(160),SUBSTITUTE($AA92,\"}\",CHAR(160),IN$1))-FIND(CHAR(160),SUBSTITUTE($AA92,\"{\",CHAR(160),IN$1))+1),\"\")","v":""},{"$f":"IFERROR(MID($AB92,FIND(CHAR(160),SUBSTITUTE($AB92,\"{\",CHAR(160),IO$1)),FIND(CHAR(160),SUBSTITUTE($AB92,\"}\",CHAR(160),IO$1))-FIND(CHAR(160),SUBSTITUTE($AB92,\"{\",CHAR(160),IO$1))+1),\"\")","v":""},{"$f":"IFERROR(MID($AB92,FIND(CHAR(160),SUBSTITUTE($AB92,\"{\",CHAR(160),IP$1)),FIND(CHAR(160),SUBSTITUTE($AB92,\"}\",CHAR(160),IP$1))-FIND(CHAR(160),SUBSTITUTE($AB92,\"{\",CHAR(160),IP$1))+1),\"\")","v":""},{"$f":"IFERROR(MID($AB92,FIND(CHAR(160),SUBSTITUTE($AB92,\"{\",CHAR(160),IQ$1)),FIND(CHAR(160),SUBSTITUTE($AB92,\"}\",CHAR(160),IQ$1))-FIND(CHAR(160),SUBSTITUTE($AB92,\"{\",CHAR(160),IQ$1))+1),\"\")","v":""},{"$f":"IFERROR(MID($AB92,FIND(CHAR(160),SUBSTITUTE($AB92,\"{\",CHAR(160),IR$1)),FIND(CHAR(160),SUBSTITUTE($AB92,\"}\",CHAR(160),IR$1))-FIND(CHAR(160),SUBSTITUTE($AB92,\"{\",CHAR(160),IR$1))+1),\"\")","v":""},{"$f":"IFERROR(MID($AB92,FIND(CHAR(160),SUBSTITUTE($AB92,\"{\",CHAR(160),IS$1)),FIND(CHAR(160),SUBSTITUTE($AB92,\"}\",CHAR(160),IS$1))-FIND(CHAR(160),SUBSTITUTE($AB92,\"{\",CHAR(160),IS$1))+1),\"\")","v":""},{"$f":"IFERROR(MID($AB92,FIND(CHAR(160),SUBSTITUTE($AB92,\"{\",CHAR(160),IT$1)),FIND(CHAR(160),SUBSTITUTE($AB92,\"}\",CHAR(160),IT$1))-FIND(CHAR(160),SUBSTITUTE($AB92,\"{\",CHAR(160),IT$1))+1),\"\")","v":""},{"$f":"IFERROR(MID($AB92,FIND(CHAR(160),SUBSTITUTE($AB92,\"{\",CHAR(160),IU$1)),FIND(CHAR(160),SUBSTITUTE($AB92,\"}\",CHAR(160),IU$1))-FIND(CHAR(160),SUBSTITUTE($AB92,\"{\",CHAR(160),IU$1))+1),\"\")","v":""},{"$f":"IFERROR(MID($AB92,FIND(CHAR(160),SUBSTITUTE($AB92,\"{\",CHAR(160),IV$1)),FIND(CHAR(160),SUBSTITUTE($AB92,\"}\",CHAR(160),IV$1))-FIND(CHAR(160),SUBSTITUTE($AB92,\"{\",CHAR(160),IV$1))+1),\"\")","v":""},{"$f":"IFERROR(MID($AB92,FIND(CHAR(160),SUBSTITUTE($AB92,\"{\",CHAR(160),IW$1)),FIND(CHAR(160),SUBSTITUTE($AB92,\"}\",CHAR(160),IW$1))-FIND(CHAR(160),SUBSTITUTE($AB92,\"{\",CHAR(160),IW$1))+1),\"\")","v":""},{"$f":"IFERROR(MID($AB92,FIND(CHAR(160),SUBSTITUTE($AB92,\"{\",CHAR(160),IX$1)),FIND(CHAR(160),SUBSTITUTE($AB92,\"}\",CHAR(160),IX$1))-FIND(CHAR(160),SUBSTITUTE($AB92,\"{\",CHAR(160),IX$1))+1),\"\")","v":""},null,{"$f":"10-COUNTIF(DU92:ED92,\"\")","v":2}]
["C&I HVAC - Oil","VFD: Return Fan on VAV Packaged or Rooftop HVAC Unit","RFP","2021-07-01","2022-06-30","Calculated","{Measure:Quantity}*if({Motor HP}=5,2425,if({Motor HP}=7.5,2648,if({Motor HP}=10,2871,if({Motor HP}=15,3317,if({Motor HP}=20,3763,if({Motor HP}=25,4209,if({Motor HP}=30,4655,0)))))))",0,"Calculated","{Measure:Quantity}*if({Motor HP}=5,400,if({Motor HP}=7.5,650,if({Motor HP}=10,1400,if({Motor HP}=15,1650,if({Motor HP}=20,1850,if({Motor HP}=25,2000,if({Motor HP}=30,2300,0)))))))",0,"2021-05-25","2022-06-30","Calculated","{Measure:Quantity}*{Motor HP}*1788",null,null,"{Measure:Quantity}*{Motor HP}*.302",null,null,"{Measure:Quantity}*{Factor:WinterCF}*{Motor HP}*.302","{Measure:Quantity}*{Factor:SummerCF}*{Motor HP}*.302",null,null,null,null,null,null,"2021-05-24","2022-06-30",13,0.21,0.68300000000000005,0.39,0.308,0.214,8.7999999999999995E-2,1,1.1220000000000001,1,0.52,1.6E-2,null,{"$f":"DU93","v":"{Measure:Quantity}"},1,{"$f":"DV93","v":"{Motor HP}"},5,{"$f":"DW93","v":""},null,{"$f":"DX93","v":""},null,{"$f":"DY93","v":""},null,{"$f":"DZ93","v":""},null,{"$f":"EA93","v":""},null,{"$f":"EB93","v":""},null,{"$f":"EC93","v":""},null,{"$f":"ED93","v":""},null,{"$f":"AS93*AU93*1788","v":8940},0,0,{"$f":"AS93*AU93*0.302","v":1.51},0,0,{"$f":"AS93*AF93*AU93*0.302","v":0.31709999999999999},{"$f":"AS93*AG93*AU93*0.302","v":1.0313300000000001},0,0,0,0,0,0,null,"Res","Default DR",{"$f":"Benefits(BL93,BR93,BS93,BT93,BU93,BV93,BW93,BX93,BY93,BZ93,AE93,AH93,AI93,AJ93,AK93,AL93,AM93,AN93,AO93,AP93,CA93,CB93)","v":12094.689196231971},2788.9593275943762,0,0,0,0,0,0,0,{"$f":"SUMPRODUCT(CC93:CK93,--(CC93:CK93>0))","v":14883.648523826349},{"$f":"-SUMPRODUCT(CC93:CK93,--(CC93:CK93<0))","v":0},null,{"$f":"AS93*IF(AU93=5,2425,IF(AU93=7.5,2648,IF(AU93=10,2871,IF(AU93=15,3317,IF(AU93=20,3763,IF(AU93=25,4209,IF(AU93=30,4655,0)))))))","v":2425},null,null,{"$f":"CM93+CO93","v":2425},{"$f":"IF(NetOrGross=\"Net\",(1-AO93+AP93),1)","v":1},{"$f":"(SUMPRODUCT(CC93:CJ93,--(CC93:CJ93>0))+CN93)*CS93/((-SUMPRODUCT(CC93:CJ93,--(CC93:CJ93<0))+MAX(CO93,CV93)+CP93+CQ93)*CS93+IF(FRIncentives=\"Yes\",CV93*(1-CS93),0))","v":6.1375870201345766},1,{"$f":"AS93*IF(AU93=5,400,IF(AU93=7.5,650,IF(AU93=10,1400,IF(AU93=15,1650,IF(AU93=20,1850,IF(AU93=25,2000,IF(AU93=30,2300,0)))))))","v":400},null,"RGGI","y",null,{"$f":"IF(F93=\"Manual Entry\",\"Manual\",IF(G93=\"\",0,\"X=\"&SUBSTITUTE(SUBSTITUTE(SUBSTITUTE(SUBSTITUTE(SUBSTITUTE(SUBSTITUTE(SUBSTITUTE(SUBSTITUTE(SUBSTITUTE(SUBSTITUTE(SUBSTITUTE(SUBSTITUTE(G93,$ED93,$ED$2&ROW($ED93)),$EC93,$EC$2&ROW($EC93)),$EB93,$EB$2&ROW($EB93)),$EA93,$EA$2&ROW($EA93)),$DZ93,$DZ$2&ROW($DZ93)),$DY93,$DY$2&ROW($DY93)),$DX93,$DX$2&ROW($DX93)),$DW93,$DW$2&ROW($DW93)),$DV93,$DV$2&ROW($DV93)),$DU93,$DU$2&ROW($DU93)),$DT93,$DT$2&ROW($DT93)),$DS93,$DS$2&ROW($DS93))))","v":"X=AS93*if(AU93=5,2425,if(AU93=7.5,2648,if(AU93=10,2871,if(AU93=15,3317,if(AU93=20,3763,if(AU93=25,4209,if(AU93=30,4655,0)))))))"},{"$f":"IF(I93=\"Manual Entry\",\"Manual\",IF(J93=\"\",0,\"X=\"&SUBSTITUTE(SUBSTITUTE(SUBSTITUTE(SUBSTITUTE(SUBSTITUTE(SUBSTITUTE(SUBSTITUTE(SUBSTITUTE(SUBSTITUTE(SUBSTITUTE(SUBSTITUTE(SUBSTITUTE(J93,$ED93,$ED$2&ROW($ED93)),$EC93,$EC$2&ROW($EC93)),$EB93,$EB$2&ROW($EB93)),$EA93,$EA$2&ROW($EA93)),$DZ93,$DZ$2&ROW($DZ93)),$DY93,$DY$2&ROW($DY93)),$DX93,$DX$2&ROW($DX93)),$DW93,$DW$2&ROW($DW93)),$DV93,$DV$2&ROW($DV93)),$DU93,$DU$2&ROW($DU93)),$DT93,$DT$2&ROW($DT93)),$DS93,$DS$2&ROW($DS93))))","v":"X=AS93*if(AU93=5,400,if(AU93=7.5,650,if(AU93=10,1400,if(AU93=15,1650,if(AU93=20,1850,if(AU93=25,2000,if(AU93=30,2300,0)))))))"},{"$f":"IF(O93=\"\",0,\"X=\"&SUBSTITUTE(SUBSTITUTE(SUBSTITUTE(SUBSTITUTE(SUBSTITUTE(SUBSTITUTE(SUBSTITUTE(SUBSTITUTE(SUBSTITUTE(SUBSTITUTE(SUBSTITUTE(SUBSTITUTE(O93,$ED93,$ED$2&ROW($ED93)),$EC93,$EC$2&ROW($EC93)),$EB93,$EB$2&ROW($EB93)),$EA93,$EA$2&ROW($EA93)),$DZ93,$DZ$2&ROW($DZ93)),$DY93,$DY$2&ROW($DY93)),$DX93,$DX$2&ROW($DX93)),$DW93,$DW$2&ROW($DW93)),$DV93,$DV$2&ROW($DV93)),$DU93,$DU$2&ROW($DU93)),$DT93,$DT$2&ROW($DT93)),$DS93,$DS$2&ROW($DS93)))","v":"X=AS93*AU93*1788"},{"$f":"IF(P93=\"\",0,\"X=\"&SUBSTITUTE(SUBSTITUTE(SUBSTITUTE(SUBSTITUTE(SUBSTITUTE(SUBSTITUTE(SUBSTITUTE(SUBSTITUTE(SUBSTITUTE(SUBSTITUTE(SUBSTITUTE(SUBSTITUTE(P93,$ED93,$ED$2&ROW($ED93)),$EC93,$EC$2&ROW($EC93)),$EB93,$EB$2&ROW($EB93)),$EA93,$EA$2&ROW($EA93)),$DZ93,$DZ$2&ROW($DZ93)),$DY93,$DY$2&ROW($DY93)),$DX93,$DX$2&ROW($DX93)),$DW93,$DW$2&ROW($DW93)),$DV93,$DV$2&ROW($DV93)),$DU93,$DU$2&ROW($DU93)),$DT93,$DT$2&ROW($DT93)),$DS93,$DS$2&ROW($DS93)))","v":0},{"$f":"IF(Q93=\"\",0,\"X=\"&SUBSTITUTE(SUBSTITUTE(SUBSTITUTE(SUBSTITUTE(SUBSTITUTE(SUBSTITUTE(SUBSTITUTE(SUBSTITUTE(SUBSTITUTE(SUBSTITUTE(SUBSTITUTE(SUBSTITUTE(Q93,$ED93,$ED$2&ROW($ED93)),$EC93,$EC$2&ROW($EC93)),$EB93,$EB$2&ROW($EB93)),$EA93,$EA$2&ROW($EA93)),$DZ93,$DZ$2&ROW($DZ93)),$DY93,$DY$2&ROW($DY93)),$DX93,$DX$2&ROW($DX93)),$DW93,$DW$2&ROW($DW93)),$DV93,$DV$2&ROW($DV93)),$DU93,$DU$2&ROW($DU93)),$DT93,$DT$2&ROW($DT93)),$DS93,$DS$2&ROW($DS93)))","v":0},{"$f":"IF(R93=\"\",0,\"X=\"&SUBSTITUTE(SUBSTITUTE(SUBSTITUTE(SUBSTITUTE(SUBSTITUTE(SUBSTITUTE(SUBSTITUTE(SUBSTITUTE(SUBSTITUTE(SUBSTITUTE(SUBSTITUTE(SUBSTITUTE(R93,$ED93,$ED$2&ROW($ED93)),$EC93,$EC$2&ROW($EC93)),$EB93,$EB$2&ROW($EB93)),$EA93,$EA$2&ROW($EA93)),$DZ93,$DZ$2&ROW($DZ93)),$DY93,$DY$2&ROW($DY93)),$DX93,$DX$2&ROW($DX93)),$DW93,$DW$2&ROW($DW93)),$DV93,$DV$2&ROW($DV93)),$DU93,$DU$2&ROW($DU93)),$DT93,$DT$2&ROW($DT93)),$DS93,$DS$2&ROW($DS93)))","v":"X=AS93*AU93*.302"},{"$f":"IF(S93=\"\",0,\"X=\"&SUBSTITUTE(SUBSTITUTE(SUBSTITUTE(SUBSTITUTE(SUBSTITUTE(SUBSTITUTE(SUBSTITUTE(SUBSTITUTE(SUBSTITUTE(SUBSTITUTE(SUBSTITUTE(SUBSTITUTE(S93,$ED93,$ED$2&ROW($ED93)),$EC93,$EC$2&ROW($EC93)),$EB93,$EB$2&ROW($EB93)),$EA93,$EA$2&ROW($EA93)),$DZ93,$DZ$2&ROW($DZ93)),$DY93,$DY$2&ROW($DY93)),$DX93,$DX$2&ROW($DX93)),$DW93,$DW$2&ROW($DW93)),$DV93,$DV$2&ROW($DV93)),$DU93,$DU$2&ROW($DU93)),$DT93,$DT$2&ROW($DT93)),$DS93,$DS$2&ROW($DS93)))","v":0},{"$f":"IF(T93=\"\",0,\"X=\"&SUBSTITUTE(SUBSTITUTE(SUBSTITUTE(SUBSTITUTE(SUBSTITUTE(SUBSTITUTE(SUBSTITUTE(SUBSTITUTE(SUBSTITUTE(SUBSTITUTE(SUBSTITUTE(SUBSTITUTE(T93,$ED93,$ED$2&ROW($ED93)),$EC93,$EC$2&ROW($EC93)),$EB93,$EB$2&ROW($EB93)),$EA93,$EA$2&ROW($EA93)),$DZ93,$DZ$2&ROW($DZ93)),$DY93,$DY$2&ROW($DY93)),$DX93,$DX$2&ROW($DX93)),$DW93,$DW$2&ROW($DW93)),$DV93,$DV$2&ROW($DV93)),$DU93,$DU$2&ROW($DU93)),$DT93,$DT$2&ROW($DT93)),$DS93,$DS$2&ROW($DS93)))","v":0},{"$f":"IF(U93=\"\",0,\"X=\"&SUBSTITUTE(SUBSTITUTE(SUBSTITUTE(SUBSTITUTE(SUBSTITUTE(SUBSTITUTE(SUBSTITUTE(SUBSTITUTE(SUBSTITUTE(SUBSTITUTE(SUBSTITUTE(SUBSTITUTE(U93,$ED93,$ED$2&ROW($ED93)),$EC93,$EC$2&ROW($EC93)),$EB93,$EB$2&ROW($EB93)),$EA93,$EA$2&ROW($EA93)),$DZ93,$DZ$2&ROW($DZ93)),$DY93,$DY$2&ROW($DY93)),$DX93,$DX$2&ROW($DX93)),$DW93,$DW$2&ROW($DW93)),$DV93,$DV$2&ROW($DV93)),$DU93,$DU$2&ROW($DU93)),$DT93,$DT$2&ROW($DT93)),$DS93,$DS$2&ROW($DS93)))","v":"X=AS93*AF93*AU93*.302"},{"$f":"IF(V93=\"\",0,\"X=\"&SUBSTITUTE(SUBSTITUTE(SUBSTITUTE(SUBSTITUTE(SUBSTITUTE(SUBSTITUTE(SUBSTITUTE(SUBSTITUTE(SUBSTITUTE(SUBSTITUTE(SUBSTITUTE(SUBSTITUTE(V93,$ED93,$ED$2&ROW($ED93)),$EC93,$EC$2&ROW($EC93)),$EB93,$EB$2&ROW($EB93)),$EA93,$EA$2&ROW($EA93)),$DZ93,$DZ$2&ROW($DZ93)),$DY93,$DY$2&ROW($DY93)),$DX93,$DX$2&ROW($DX93)),$DW93,$DW$2&ROW($DW93)),$DV93,$DV$2&ROW($DV93)),$DU93,$DU$2&ROW($DU93)),$DT93,$DT$2&ROW($DT93)),$DS93,$DS$2&ROW($DS93)))","v":"X=AS93*AG93*AU93*.302"},{"$f":"IF(W93=\"\",0,\"X=\"&SUBSTITUTE(SUBSTITUTE(SUBSTITUTE(SUBSTITUTE(SUBSTITUTE(SUBSTITUTE(SUBSTITUTE(SUBSTITUTE(SUBSTITUTE(SUBSTITUTE(SUBSTITUTE(SUBSTITUTE(W93,$ED93,$ED$2&ROW($ED93)),$EC93,$EC$2&ROW($EC93)),$EB93,$EB$2&ROW($EB93)),$EA93,$EA$2&ROW($EA93)),$DZ93,$DZ$2&ROW($DZ93)),$DY93,$DY$2&ROW($DY93)),$DX93,$DX$2&ROW($DX93)),$DW93,$DW$2&ROW($DW93)),$DV93,$DV$2&ROW($DV93)),$DU93,$DU$2&ROW($DU93)),$DT93,$DT$2&ROW($DT93)),$DS93,$DS$2&ROW($DS93)))","v":0},{"$f":"IF(X93=\"\",0,\"X=\"&SUBSTITUTE(SUBSTITUTE(SUBSTITUTE(SUBSTITUTE(SUBSTITUTE(SUBSTITUTE(SUBSTITUTE(SUBSTITUTE(SUBSTITUTE(SUBSTITUTE(SUBSTITUTE(SUBSTITUTE(X93,$ED93,$ED$2&ROW($ED93)),$EC93,$EC$2&ROW($EC93)),$EB93,$EB$2&ROW($EB93)),$EA93,$EA$2&ROW($EA93)),$DZ93,$DZ$2&ROW($DZ93)),$DY93,$DY$2&ROW($DY93)),$DX93,$DX$2&ROW($DX93)),$DW93,$DW$2&ROW($DW93)),$DV93,$DV$2&ROW($DV93)),$DU93,$DU$2&ROW($DU93)),$DT93,$DT$2&ROW($DT93)),$DS93,$DS$2&ROW($DS93)))","v":0},{"$f":"IF(Y93=\"\",0,\"X=\"&SUBSTITUTE(SUBSTITUTE(SUBSTITUTE(SUBSTITUTE(SUBSTITUTE(SUBSTITUTE(SUBSTITUTE(SUBSTITUTE(SUBSTITUTE(SUBSTITUTE(SUBSTITUTE(SUBSTITUTE(Y93,$ED93,$ED$2&ROW($ED93)),$EC93,$EC$2&ROW($EC93)),$EB93,$EB$2&ROW($EB93)),$EA93,$EA$2&ROW($EA93)),$DZ93,$DZ$2&ROW($DZ93)),$DY93,$DY$2&ROW($DY93)),$DX93,$DX$2&ROW($DX93)),$DW93,$DW$2&ROW($DW93)),$DV93,$DV$2&ROW($DV93)),$DU93,$DU$2&ROW($DU93)),$DT93,$DT$2&ROW($DT93)),$DS93,$DS$2&ROW($DS93)))","v":0},{"$f":"IF(Z93=\"\",0,\"X=\"&SUBSTITUTE(SUBSTITUTE(SUBSTITUTE(SUBSTITUTE(SUBSTITUTE(SUBSTITUTE(SUBSTITUTE(SUBSTITUTE(SUBSTITUTE(SUBSTITUTE(SUBSTITUTE(SUBSTITUTE(Z93,$ED93,$ED$2&ROW($ED93)),$EC93,$EC$2&ROW($EC93)),$EB93,$EB$2&ROW($EB93)),$EA93,$EA$2&ROW($EA93)),$DZ93,$DZ$2&ROW($DZ93)),$DY93,$DY$2&ROW($DY93)),$DX93,$DX$2&ROW($DX93)),$DW93,$DW$2&ROW($DW93)),$DV93,$DV$2&ROW($DV93)),$DU93,$DU$2&ROW($DU93)),$DT93,$DT$2&ROW($DT93)),$DS93,$DS$2&ROW($DS93)))","v":0},{"$f":"IF(AA93=\"\",0,\"X=\"&SUBSTITUTE(SUBSTITUTE(SUBSTITUTE(SUBSTITUTE(SUBSTITUTE(SUBSTITUTE(SUBSTITUTE(SUBSTITUTE(SUBSTITUTE(SUBSTITUTE(SUBSTITUTE(SUBSTITUTE(AA93,$ED93,$ED$2&ROW($ED93)),$EC93,$EC$2&ROW($EC93)),$EB93,$EB$2&ROW($EB93)),$EA93,$EA$2&ROW($EA93)),$DZ93,$DZ$2&ROW($DZ93)),$DY93,$DY$2&ROW($DY93)),$DX93,$DX$2&ROW($DX93)),$DW93,$DW$2&ROW($DW93)),$DV93,$DV$2&ROW($DV93)),$DU93,$DU$2&ROW($DU93)),$DT93,$DT$2&ROW($DT93)),$DS93,$DS$2&ROW($DS93)))","v":0},{"$f":"IF(AB93=\"\",0,\"X=\"&SUBSTITUTE(SUBSTITUTE(SUBSTITUTE(SUBSTITUTE(SUBSTITUTE(SUBSTITUTE(SUBSTITUTE(SUBSTITUTE(SUBSTITUTE(SUBSTITUTE(SUBSTITUTE(SUBSTITUTE(AB93,$ED93,$ED$2&ROW($ED93)),$EC93,$EC$2&ROW($EC93)),$EB93,$EB$2&ROW($EB93)),$EA93,$EA$2&ROW($EA93)),$DZ93,$DZ$2&ROW($DZ93)),$DY93,$DY$2&ROW($DY93)),$DX93,$DX$2&ROW($DX93)),$DW93,$DW$2&ROW($DW93)),$DV93,$DV$2&ROW($DV93)),$DU93,$DU$2&ROW($DU93)),$DT93,$DT$2&ROW($DT93)),$DS93,$DS$2&ROW($DS93)))","v":0},null,null,"{Factor:WinterCF}","{Factor:SummerCF}",{"$f":"IFERROR(INDEX($EG93:$IV93,MATCH(0,COUNTIF($DR93:DT93,$EG93:$IV93),0)),\"\")","v":"{Measure:Quantity}"},{"$f":"IFERROR(INDEX($EG93:$IV93,MATCH(0,COUNTIF($DR93:DU93,$EG93:$IV93),0)),\"\")","v":"{Motor HP}"},{"$f":"IFERROR(INDEX($EG93:$IV93,MATCH(0,COUNTIF($DR93:DV93,$EG93:$IV93),0)),\"\")","v":""},{"$f":"IFERROR(INDEX($EG93:$IV93,MATCH(0,COUNTIF($DR93:DW93,$EG93:$IV93),0)),\"\")","v":""},{"$f":"IFERROR(INDEX($EG93:$IV93,MATCH(0,COUNTIF($DR93:DX93,$EG93:$IV93),0)),\"\")","v":""},{"$f":"IFERROR(INDEX($EG93:$IV93,MATCH(0,COUNTIF($DR93:DY93,$EG93:$IV93),0)),\"\")","v":""},{"$f":"IFERROR(INDEX($EG93:$IV93,MATCH(0,COUNTIF($DR93:DZ93,$EG93:$IV93),0)),\"\")","v":""},{"$f":"IFERROR(INDEX($EG93:$IV93,MATCH(0,COUNTIF($DR93:EA93,$EG93:$IV93),0)),\"\")","v":""},{"$f":"IFERROR(INDEX($EG93:$IV93,MATCH(0,COUNTIF($DR93:EB93,$EG93:$IV93),0)),\"\")","v":""},{"$f":"IFERROR(INDEX($EG93:$IV93,MATCH(0,COUNTIF($DR93:EC93,$EG93:$IV93),0)),\"\")","v":""},null,null,{"$f":"IFERROR(MID($G93,FIND(CHAR(160),SUBSTITUTE($G93,\"{\",CHAR(160),EG$1)),FIND(CHAR(160),SUBSTITUTE($G93,\"}\",CHAR(160),EG$1))-FIND(CHAR(160),SUBSTITUTE($G93,\"{\",CHAR(160),EG$1))+1),\"\")","v":"{Measure:Quantity}"},{"$f":"IFERROR(MID($G93,FIND(CHAR(160),SUBSTITUTE($G93,\"{\",CHAR(160),EH$1)),FIND(CHAR(160),SUBSTITUTE($G93,\"}\",CHAR(160),EH$1))-FIND(CHAR(160),SUBSTITUTE($G93,\"{\",CHAR(160),EH$1))+1),\"\")","v":"{Motor HP}"},{"$f":"IFERROR(MID($G93,FIND(CHAR(160),SUBSTITUTE($G93,\"{\",CHAR(160),EI$1)),FIND(CHAR(160),SUBSTITUTE($G93,\"}\",CHAR(160),EI$1))-FIND(CHAR(160),SUBSTITUTE($G93,\"{\",CHAR(160),EI$1))+1),\"\")","v":"{Motor HP}"},{"$f":"IFERROR(MID($G93,FIND(CHAR(160),SUBSTITUTE($G93,\"{\",CHAR(160),EJ$1)),FIND(CHAR(160),SUBSTITUTE($G93,\"}\",CHAR(160),EJ$1))-FIND(CHAR(160),SUBSTITUTE($G93,\"{\",CHAR(160),EJ$1))+1),\"\")","v":"{Motor HP}"},{"$f":"IFERROR(MID($G93,FIND(CHAR(160),SUBSTITUTE($G93,\"{\",CHAR(160),EK$1)),FIND(CHAR(160),SUBSTITUTE($G93,\"}\",CHAR(160),EK$1))-FIND(CHAR(160),SUBSTITUTE($G93,\"{\",CHAR(160),EK$1))+1),\"\")","v":"{Motor HP}"},{"$f":"IFERROR(MID($G93,FIND(CHAR(160),SUBSTITUTE($G93,\"{\",CHAR(160),EL$1)),FIND(CHAR(160),SUBSTITUTE($G93,\"}\",CHAR(160),EL$1))-FIND(CHAR(160),SUBSTITUTE($G93,\"{\",CHAR(160),EL$1))+1),\"\")","v":"{Motor HP}"},{"$f":"IFERROR(MID($G93,FIND(CHAR(160),SUBSTITUTE($G93,\"{\",CHAR(160),EM$1)),FIND(CHAR(160),SUBSTITUTE($G93,\"}\",CHAR(160),EM$1))-FIND(CHAR(160),SUBSTITUTE($G93,\"{\",CHAR(160),EM$1))+1),\"\")","v":"{Motor HP}"},{"$f":"IFERROR(MID($G93,FIND(CHAR(160),SUBSTITUTE($G93,\"{\",CHAR(160),EN$1)),FIND(CHAR(160),SUBSTITUTE($G93,\"}\",CHAR(160),EN$1))-FIND(CHAR(160),SUBSTITUTE($G93,\"{\",CHAR(160),EN$1))+1),\"\")","v":"{Motor HP}"},{"$f":"IFERROR(MID($G93,FIND(CHAR(160),SUBSTITUTE($G93,\"{\",CHAR(160),EO$1)),FIND(CHAR(160),SUBSTITUTE($G93,\"}\",CHAR(160),EO$1))-FIND(CHAR(160),SUBSTITUTE($G93,\"{\",CHAR(160),EO$1))+1),\"\")","v":""},{"$f":"IFERROR(MID($G93,FIND(CHAR(160),SUBSTITUTE($G93,\"{\",CHAR(160),EP$1)),FIND(CHAR(160),SUBSTITUTE($G93,\"}\",CHAR(160),EP$1))-FIND(CHAR(160),SUBSTITUTE($G93,\"{\",CHAR(160),EP$1))+1),\"\")","v":""},{"$f":"IFERROR(MID($J93,FIND(CHAR(160),SUBSTITUTE($J93,\"{\",CHAR(160),EQ$1)),FIND(CHAR(160),SUBSTITUTE($J93,\"}\",CHAR(160),EQ$1))-FIND(CHAR(160),SUBSTITUTE($J93,\"{\",CHAR(160),EQ$1))+1),\"\")","v":"{Measure:Quantity}"},{"$f":"IFERROR(MID($J93,FIND(CHAR(160),SUBSTITUTE($J93,\"{\",CHAR(160),ER$1)),FIND(CHAR(160),SUBSTITUTE($J93,\"}\",CHAR(160),ER$1))-FIND(CHAR(160),SUBSTITUTE($J93,\"{\",CHAR(160),ER$1))+1),\"\")","v":"{Motor HP}"},{"$f":"IFERROR(MID($J93,FIND(CHAR(160),SUBSTITUTE($J93,\"{\",CHAR(160),ES$1)),FIND(CHAR(160),SUBSTITUTE($J93,\"}\",CHAR(160),ES$1))-FIND(CHAR(160),SUBSTITUTE($J93,\"{\",CHAR(160),ES$1))+1),\"\")","v":"{Motor HP}"},{"$f":"IFERROR(MID($J93,FIND(CHAR(160),SUBSTITUTE($J93,\"{\",CHAR(160),ET$1)),FIND(CHAR(160),SUBSTITUTE($J93,\"}\",CHAR(160),ET$1))-FIND(CHAR(160),SUBSTITUTE($J93,\"{\",CHAR(160),ET$1))+1),\"\")","v":"{Motor HP}"},{"$f":"IFERROR(MID($J93,FIND(CHAR(160),SUBSTITUTE($J93,\"{\",CHAR(160),EU$1)),FIND(CHAR(160),SUBSTITUTE($J93,\"}\",CHAR(160),EU$1))-FIND(CHAR(160),SUBSTITUTE($J93,\"{\",CHAR(160),EU$1))+1),\"\")","v":"{Motor HP}"},{"$f":"IFERROR(MID($J93,FIND(CHAR(160),SUBSTITUTE($J93,\"{\",CHAR(160),EV$1)),FIND(CHAR(160),SUBSTITUTE($J93,\"}\",CHAR(160),EV$1))-FIND(CHAR(160),SUBSTITUTE($J93,\"{\",CHAR(160),EV$1))+1),\"\")","v":"{Motor HP}"},{"$f":"IFERROR(MID($J93,FIND(CHAR(160),SUBSTITUTE($J93,\"{\",CHAR(160),EW$1)),FIND(CHAR(160),SUBSTITUTE($J93,\"}\",CHAR(160),EW$1))-FIND(CHAR(160),SUBSTITUTE($J93,\"{\",CHAR(160),EW$1))+1),\"\")","v":"{Motor HP}"},{"$f":"IFERROR(MID($J93,FIND(CHAR(160),SUBSTITUTE($J93,\"{\",CHAR(160),EX$1)),FIND(CHAR(160),SUBSTITUTE($J93,\"}\",CHAR(160),EX$1))-FIND(CHAR(160),SUBSTITUTE($J93,\"{\",CHAR(160),EX$1))+1),\"\")","v":"{Motor HP}"},{"$f":"IFERROR(MID($J93,FIND(CHAR(160),SUBSTITUTE($J93,\"{\",CHAR(160),EY$1)),FIND(CHAR(160),SUBSTITUTE($J93,\"}\",CHAR(160),EY$1))-FIND(CHAR(160),SUBSTITUTE($J93,\"{\",CHAR(160),EY$1))+1),\"\")","v":""},{"$f":"IFERROR(MID($J93,FIND(CHAR(160),SUBSTITUTE($J93,\"{\",CHAR(160),EZ$1)),FIND(CHAR(160),SUBSTITUTE($J93,\"}\",CHAR(160),EZ$1))-FIND(CHAR(160),SUBSTITUTE($J93,\"{\",CHAR(160),EZ$1))+1),\"\")","v":""},{"$f":"IFERROR(MID($J93,FIND(CHAR(160),SUBSTITUTE($J93,\"{\",CHAR(160),FA$1)),FIND(CHAR(160),SUBSTITUTE($J93,\"}\",CHAR(160),FA$1))-FIND(CHAR(160),SUBSTITUTE($J93,\"{\",CHAR(160),FA$1))+1),\"\")","v":"{Measure:Quantity}"},{"$f":"IFERROR(MID($J93,FIND(CHAR(160),SUBSTITUTE($J93,\"{\",CHAR(160),FB$1)),FIND(CHAR(160),SUBSTITUTE($J93,\"}\",CHAR(160),FB$1))-FIND(CHAR(160),SUBSTITUTE($J93,\"{\",CHAR(160),FB$1))+1),\"\")","v":"{Motor HP}"},{"$f":"IFERROR(MID($O93,FIND(CHAR(160),SUBSTITUTE($O93,\"{\",CHAR(160),FC$1)),FIND(CHAR(160),SUBSTITUTE($O93,\"}\",CHAR(160),FC$1))-FIND(CHAR(160),SUBSTITUTE($O93,\"{\",CHAR(160),FC$1))+1),\"\")","v":""},{"$f":"IFERROR(MID($O93,FIND(CHAR(160),SUBSTITUTE($O93,\"{\",CHAR(160),FD$1)),FIND(CHAR(160),SUBSTITUTE($O93,\"}\",CHAR(160),FD$1))-FIND(CHAR(160),SUBSTITUTE($O93,\"{\",CHAR(160),FD$1))+1),\"\")","v":""},{"$f":"IFERROR(MID($O93,FIND(CHAR(160),SUBSTITUTE($O93,\"{\",CHAR(160),FE$1)),FIND(CHAR(160),SUBSTITUTE($O93,\"}\",CHAR(160),FE$1))-FIND(CHAR(160),SUBSTITUTE($O93,\"{\",CHAR(160),FE$1))+1),\"\")","v":""},{"$f":"IFERROR(MID($O93,FIND(CHAR(160),SUBSTITUTE($O93,\"{\",CHAR(160),FF$1)),FIND(CHAR(160),SUBSTITUTE($O93,\"}\",CHAR(160),FF$1))-FIND(CHAR(160),SUBSTITUTE($O93,\"{\",CHAR(160),FF$1))+1),\"\")","v":""},{"$f":"IFERROR(MID($O93,FIND(CHAR(160),SUBSTITUTE($O93,\"{\",CHAR(160),FG$1)),FIND(CHAR(160),SUBSTITUTE($O93,\"}\",CHAR(160),FG$1))-FIND(CHAR(160),SUBSTITUTE($O93,\"{\",CHAR(160),FG$1))+1),\"\")","v":""},{"$f":"IFERROR(MID($O93,FIND(CHAR(160),SUBSTITUTE($O93,\"{\",CHAR(160),FH$1)),FIND(CHAR(160),SUBSTITUTE($O93,\"}\",CHAR(160),FH$1))-FIND(CHAR(160),SUBSTITUTE($O93,\"{\",CHAR(160),FH$1))+1),\"\")","v":""},{"$f":"IFERROR(MID($O93,FIND(CHAR(160),SUBSTITUTE($O93,\"{\",CHAR(160),FI$1)),FIND(CHAR(160),SUBSTITUTE($O93,\"}\",CHAR(160),FI$1))-FIND(CHAR(160),SUBSTITUTE($O93,\"{\",CHAR(160),FI$1))+1),\"\")","v":""},{"$f":"IFERROR(MID($O93,FIND(CHAR(160),SUBSTITUTE($O93,\"{\",CHAR(160),FJ$1)),FIND(CHAR(160),SUBSTITUTE($O93,\"}\",CHAR(160),FJ$1))-FIND(CHAR(160),SUBSTITUTE($O93,\"{\",CHAR(160),FJ$1))+1),\"\")","v":""},{"$f":"IFERROR(MID($O93,FIND(CHAR(160),SUBSTITUTE($O93,\"{\",CHAR(160),FK$1)),FIND(CHAR(160),SUBSTITUTE($O93,\"}\",CHAR(160),FK$1))-FIND(CHAR(160),SUBSTITUTE($O93,\"{\",CHAR(160),FK$1))+1),\"\")","v":"{Measure:Quantity}"},{"$f":"IFERROR(MID($O93,FIND(CHAR(160),SUBSTITUTE($O93,\"{\",CHAR(160),FL$1)),FIND(CHAR(160),SUBSTITUTE($O93,\"}\",CHAR(160),FL$1))-FIND(CHAR(160),SUBSTITUTE($O93,\"{\",CHAR(160),FL$1))+1),\"\")","v":"{Motor HP}"},{"$f":"IFERROR(MID($R93,FIND(CHAR(160),SUBSTITUTE($R93,\"{\",CHAR(160),FM$1)),FIND(CHAR(160),SUBSTITUTE($R93,\"}\",CHAR(160),FM$1))-FIND(CHAR(160),SUBSTITUTE($R93,\"{\",CHAR(160),FM$1))+1),\"\")","v":""},{"$f":"IFERROR(MID($R93,FIND(CHAR(160),SUBSTITUTE($R93,\"{\",CHAR(160),FN$1)),FIND(CHAR(160),SUBSTITUTE($R93,\"}\",CHAR(160),FN$1))-FIND(CHAR(160),SUBSTITUTE($R93,\"{\",CHAR(160),FN$1))+1),\"\")","v":""},{"$f":"IFERROR(MID($R93,FIND(CHAR(160),SUBSTITUTE($R93,\"{\",CHAR(160),FO$1)),FIND(CHAR(160),SUBSTITUTE($R93,\"}\",CHAR(160),FO$1))-FIND(CHAR(160),SUBSTITUTE($R93,\"{\",CHAR(160),FO$1))+1),\"\")","v":""},{"$f":"IFERROR(MID($R93,FIND(CHAR(160),SUBSTITUTE($R93,\"{\",CHAR(160),FP$1)),FIND(CHAR(160),SUBSTITUTE($R93,\"}\",CHAR(160),FP$1))-FIND(CHAR(160),SUBSTITUTE($R93,\"{\",CHAR(160),FP$1))+1),\"\")","v":""},{"$f":"IFERROR(MID($R93,FIND(CHAR(160),SUBSTITUTE($R93,\"{\",CHAR(160),FQ$1)),FIND(CHAR(160),SUBSTITUTE($R93,\"}\",CHAR(160),FQ$1))-FIND(CHAR(160),SUBSTITUTE($R93,\"{\",CHAR(160),FQ$1))+1),\"\")","v":""},{"$f":"IFERROR(MID($R93,FIND(CHAR(160),SUBSTITUTE($R93,\"{\",CHAR(160),FR$1)),FIND(CHAR(160),SUBSTITUTE($R93,\"}\",CHAR(160),FR$1))-FIND(CHAR(160),SUBSTITUTE($R93,\"{\",CHAR(160),FR$1))+1),\"\")","v":""},{"$f":"IFERROR(MID($R93,FIND(CHAR(160),SUBSTITUTE($R93,\"{\",CHAR(160),FS$1)),FIND(CHAR(160),SUBSTITUTE($R93,\"}\",CHAR(160),FS$1))-FIND(CHAR(160),SUBSTITUTE($R93,\"{\",CHAR(160),FS$1))+1),\"\")","v":""},{"$f":"IFERROR(MID($R93,FIND(CHAR(160),SUBSTITUTE($R93,\"{\",CHAR(160),FT$1)),FIND(CHAR(160),SUBSTITUTE($R93,\"}\",CHAR(160),FT$1))-FIND(CHAR(160),SUBSTITUTE($R93,\"{\",CHAR(160),FT$1))+1),\"\")","v":""},{"$f":"IFERROR(MID($R93,FIND(CHAR(160),SUBSTITUTE($R93,\"{\",CHAR(160),FU$1)),FIND(CHAR(160),SUBSTITUTE($R93,\"}\",CHAR(160),FU$1))-FIND(CHAR(160),SUBSTITUTE($R93,\"{\",CHAR(160),FU$1))+1),\"\")","v":"{Measure:Quantity}"},{"$f":"IFERROR(MID($R93,FIND(CHAR(160),SUBSTITUTE($R93,\"{\",CHAR(160),FV$1)),FIND(CHAR(160),SUBSTITUTE($R93,\"}\",CHAR(160),FV$1))-FIND(CHAR(160),SUBSTITUTE($R93,\"{\",CHAR(160),FV$1))+1),\"\")","v":"{Motor HP}"},{"$f":"IFERROR(MID($U93,FIND(CHAR(160),SUBSTITUTE($U93,\"{\",CHAR(160),FW$1)),FIND(CHAR(160),SUBSTITUTE($U93,\"}\",CHAR(160),FW$1))-FIND(CHAR(160),SUBSTITUTE($U93,\"{\",CHAR(160),FW$1))+1),\"\")","v":"{Motor HP}"},{"$f":"IFERROR(MID($U93,FIND(CHAR(160),SUBSTITUTE($U93,\"{\",CHAR(160),FX$1)),FIND(CHAR(160),SUBSTITUTE($U93,\"}\",CHAR(160),FX$1))-FIND(CHAR(160),SUBSTITUTE($U93,\"{\",CHAR(160),FX$1))+1),\"\")","v":""},{"$f":"IFERROR(MID($U93,FIND(CHAR(160),SUBSTITUTE($U93,\"{\",CHAR(160),FY$1)),FIND(CHAR(160),SUBSTITUTE($U93,\"}\",CHAR(160),FY$1))-FIND(CHAR(160),SUBSTITUTE($U93,\"{\",CHAR(160),FY$1))+1),\"\")","v":""},{"$f":"IFERROR(MID($U93,FIND(CHAR(160),SUBSTITUTE($U93,\"{\",CHAR(160),FZ$1)),FIND(CHAR(160),SUBSTITUTE($U93,\"}\",CHAR(160),FZ$1))-FIND(CHAR(160),SUBSTITUTE($U93,\"{\",CHAR(160),FZ$1))+1),\"\")","v":""},{"$f":"IFERROR(MID($U93,FIND(CHAR(160),SUBSTITUTE($U93,\"{\",CHAR(160),GA$1)),FIND(CHAR(160),SUBSTITUTE($U93,\"}\",CHAR(160),GA$1))-FIND(CHAR(160),SUBSTITUTE($U93,\"{\",CHAR(160),GA$1))+1),\"\")","v":""},{"$f":"IFERROR(MID($U93,FIND(CHAR(160),SUBSTITUTE($U93,\"{\",CHAR(160),GB$1)),FIND(CHAR(160),SUBSTITUTE($U93,\"}\",CHAR(160),GB$1))-FIND(CHAR(160),SUBSTITUTE($U93,\"{\",CHAR(160),GB$1))+1),\"\")","v":""},{"$f":"IFERROR(MID($U93,FIND(CHAR(160),SUBSTITUTE($U93,\"{\",CHAR(160),GC$1)),FIND(CHAR(160),SUBSTITUTE($U93,\"}\",CHAR(160),GC$1))-FIND(CHAR(160),SUBSTITUTE($U93,\"{\",CHAR(160),GC$1))+1),\"\")","v":""},{"$f":"IFERROR(MID($U93,FIND(CHAR(160),SUBSTITUTE($U93,\"{\",CHAR(160),GD$1)),FIND(CHAR(160),SUBSTITUTE($U93,\"}\",CHAR(160),GD$1))-FIND(CHAR(160),SUBSTITUTE($U93,\"{\",CHAR(160),GD$1))+1),\"\")","v":""},{"$f":"IFERROR(MID($U93,FIND(CHAR(160),SUBSTITUTE($U93,\"{\",CHAR(160),GE$1)),FIND(CHAR(160),SUBSTITUTE($U93,\"}\",CHAR(160),GE$1))-FIND(CHAR(160),SUBSTITUTE($U93,\"{\",CHAR(160),GE$1))+1),\"\")","v":"{Measure:Quantity}"},{"$f":"IFERROR(MID($U93,FIND(CHAR(160),SUBSTITUTE($U93,\"{\",CHAR(160),GF$1)),FIND(CHAR(160),SUBSTITUTE($U93,\"}\",CHAR(160),GF$1))-FIND(CHAR(160),SUBSTITUTE($U93,\"{\",CHAR(160),GF$1))+1),\"\")","v":"{Factor:WinterCF}"},{"$f":"IFERROR(MID($V93,FIND(CHAR(160),SUBSTITUTE($V93,\"{\",CHAR(160),GG$1)),FIND(CHAR(160),SUBSTITUTE($V93,\"}\",CHAR(160),GG$1))-FIND(CHAR(160),SUBSTITUTE($V93,\"{\",CHAR(160),GG$1))+1),\"\")","v":"{Motor HP}"},{"$f":"IFERROR(MID($V93,FIND(CHAR(160),SUBSTITUTE($V93,\"{\",CHAR(160),GH$1)),FIND(CHAR(160),SUBSTITUTE($V93,\"}\",CHAR(160),GH$1))-FIND(CHAR(160),SUBSTITUTE($V93,\"{\",CHAR(160),GH$1))+1),\"\")","v":""},{"$f":"IFERROR(MID($V93,FIND(CHAR(160),SUBSTITUTE($V93,\"{\",CHAR(160),GI$1)),FIND(CHAR(160),SUBSTITUTE($V93,\"}\",CHAR(160),GI$1))-FIND(CHAR(160),SUBSTITUTE($V93,\"{\",CHAR(160),GI$1))+1),\"\")","v":""},{"$f":"IFERROR(MID($V93,FIND(CHAR(160),SUBSTITUTE($V93,\"{\",CHAR(160),GJ$1)),FIND(CHAR(160),SUBSTITUTE($V93,\"}\",CHAR(160),GJ$1))-FIND(CHAR(160),SUBSTITUTE($V93,\"{\",CHAR(160),GJ$1))+1),\"\")","v":""},{"$f":"IFERROR(MID($V93,FIND(CHAR(160),SUBSTITUTE($V93,\"{\",CHAR(160),GK$1)),FIND(CHAR(160),SUBSTITUTE($V93,\"}\",CHAR(160),GK$1))-FIND(CHAR(160),SUBSTITUTE($V93,\"{\",CHAR(160),GK$1))+1),\"\")","v":""},{"$f":"IFERROR(MID($V93,FIND(CHAR(160),SUBSTITUTE($V93,\"{\",CHAR(160),GL$1)),FIND(CHAR(160),SUBSTITUTE($V93,\"}\",CHAR(160),GL$1))-FIND(CHAR(160),SUBSTITUTE($V93,\"{\",CHAR(160),GL$1))+1),\"\")","v":""},{"$f":"IFERROR(MID($V93,FIND(CHAR(160),SUBSTITUTE($V93,\"{\",CHAR(160),GM$1)),FIND(CHAR(160),SUBSTITUTE($V93,\"}\",CHAR(160),GM$1))-FIND(CHAR(160),SUBSTITUTE($V93,\"{\",CHAR(160),GM$1))+1),\"\")","v":""},{"$f":"IFERROR(MID($V93,FIND(CHAR(160),SUBSTITUTE($V93,\"{\",CHAR(160),GN$1)),FIND(CHAR(160),SUBSTITUTE($V93,\"}\",CHAR(160),GN$1))-FIND(CHAR(160),SUBSTITUTE($V93,\"{\",CHAR(160),GN$1))+1),\"\")","v":""},{"$f":"IFERROR(MID($V93,FIND(CHAR(160),SUBSTITUTE($V93,\"{\",CHAR(160),GO$1)),FIND(CHAR(160),SUBSTITUTE($V93,\"}\",CHAR(160),GO$1))-FIND(CHAR(160),SUBSTITUTE($V93,\"{\",CHAR(160),GO$1))+1),\"\")","v":"{Measure:Quantity}"},{"$f":"IFERROR(MID($V93,FIND(CHAR(160),SUBSTITUTE($V93,\"{\",CHAR(160),GP$1)),FIND(CHAR(160),SUBSTITUTE($V93,\"}\",CHAR(160),GP$1))-FIND(CHAR(160),SUBSTITUTE($V93,\"{\",CHAR(160),GP$1))+1),\"\")","v":"{Factor:SummerCF}"},{"$f":"IFERROR(MID($W93,FIND(CHAR(160),SUBSTITUTE($W93,\"{\",CHAR(160),GQ$1)),FIND(CHAR(160),SUBSTITUTE($W93,\"}\",CHAR(160),GQ$1))-FIND(CHAR(160),SUBSTITUTE($W93,\"{\",CHAR(160),GQ$1))+1),\"\")","v":""},{"$f":"IFERROR(MID($W93,FIND(CHAR(160),SUBSTITUTE($W93,\"{\",CHAR(160),GR$1)),FIND(CHAR(160),SUBSTITUTE($W93,\"}\",CHAR(160),GR$1))-FIND(CHAR(160),SUBSTITUTE($W93,\"{\",CHAR(160),GR$1))+1),\"\")","v":""},{"$f":"IFERROR(MID($W93,FIND(CHAR(160),SUBSTITUTE($W93,\"{\",CHAR(160),GS$1)),FIND(CHAR(160),SUBSTITUTE($W93,\"}\",CHAR(160),GS$1))-FIND(CHAR(160),SUBSTITUTE($W93,\"{\",CHAR(160),GS$1))+1),\"\")","v":""},{"$f":"IFERROR(MID($W93,FIND(CHAR(160),SUBSTITUTE($W93,\"{\",CHAR(160),GT$1)),FIND(CHAR(160),SUBSTITUTE($W93,\"}\",CHAR(160),GT$1))-FIND(CHAR(160),SUBSTITUTE($W93,\"{\",CHAR(160),GT$1))+1),\"\")","v":""},{"$f":"IFERROR(MID($W93,FIND(CHAR(160),SUBSTITUTE($W93,\"{\",CHAR(160),GU$1)),FIND(CHAR(160),SUBSTITUTE($W93,\"}\",CHAR(160),GU$1))-FIND(CHAR(160),SUBSTITUTE($W93,\"{\",CHAR(160),GU$1))+1),\"\")","v":""},{"$f":"IFERROR(MID($W93,FIND(CHAR(160),SUBSTITUTE($W93,\"{\",CHAR(160),GV$1)),FIND(CHAR(160),SUBSTITUTE($W93,\"}\",CHAR(160),GV$1))-FIND(CHAR(160),SUBSTITUTE($W93,\"{\",CHAR(160),GV$1))+1),\"\")","v":""},{"$f":"IFERROR(MID($W93,FIND(CHAR(160),SUBSTITUTE($W93,\"{\",CHAR(160),GW$1)),FIND(CHAR(160),SUBSTITUTE($W93,\"}\",CHAR(160),GW$1))-FIND(CHAR(160),SUBSTITUTE($W93,\"{\",CHAR(160),GW$1))+1),\"\")","v":""},{"$f":"IFERROR(MID($W93,FIND(CHAR(160),SUBSTITUTE($W93,\"{\",CHAR(160),GX$1)),FIND(CHAR(160),SUBSTITUTE($W93,\"}\",CHAR(160),GX$1))-FIND(CHAR(160),SUBSTITUTE($W93,\"{\",CHAR(160),GX$1))+1),\"\")","v":""},{"$f":"IFERROR(MID($W93,FIND(CHAR(160),SUBSTITUTE($W93,\"{\",CHAR(160),GY$1)),FIND(CHAR(160),SUBSTITUTE($W93,\"}\",CHAR(160),GY$1))-FIND(CHAR(160),SUBSTITUTE($W93,\"{\",CHAR(160),GY$1))+1),\"\")","v":""},{"$f":"IFERROR(MID($W93,FIND(CHAR(160),SUBSTITUTE($W93,\"{\",CHAR(160),GZ$1)),FIND(CHAR(160),SUBSTITUTE($W93,\"}\",CHAR(160),GZ$1))-FIND(CHAR(160),SUBSTITUTE($W93,\"{\",CHAR(160),GZ$1))+1),\"\")","v":""},{"$f":"IFERROR(MID($X93,FIND(CHAR(160),SUBSTITUTE($X93,\"{\",CHAR(160),HA$1)),FIND(CHAR(160),SUBSTITUTE($X93,\"}\",CHAR(160),HA$1))-FIND(CHAR(160),SUBSTITUTE($X93,\"{\",CHAR(160),HA$1))+1),\"\")","v":""},{"$f":"IFERROR(MID($X93,FIND(CHAR(160),SUBSTITUTE($X93,\"{\",CHAR(160),HB$1)),FIND(CHAR(160),SUBSTITUTE($X93,\"}\",CHAR(160),HB$1))-FIND(CHAR(160),SUBSTITUTE($X93,\"{\",CHAR(160),HB$1))+1),\"\")","v":""},{"$f":"IFERROR(MID($X93,FIND(CHAR(160),SUBSTITUTE($X93,\"{\",CHAR(160),HC$1)),FIND(CHAR(160),SUBSTITUTE($X93,\"}\",CHAR(160),HC$1))-FIND(CHAR(160),SUBSTITUTE($X93,\"{\",CHAR(160),HC$1))+1),\"\")","v":""},{"$f":"IFERROR(MID($X93,FIND(CHAR(160),SUBSTITUTE($X93,\"{\",CHAR(160),HD$1)),FIND(CHAR(160),SUBSTITUTE($X93,\"}\",CHAR(160),HD$1))-FIND(CHAR(160),SUBSTITUTE($X93,\"{\",CHAR(160),HD$1))+1),\"\")","v":""},{"$f":"IFERROR(MID($X93,FIND(CHAR(160),SUBSTITUTE($X93,\"{\",CHAR(160),HE$1)),FIND(CHAR(160),SUBSTITUTE($X93,\"}\",CHAR(160),HE$1))-FIND(CHAR(160),SUBSTITUTE($X93,\"{\",CHAR(160),HE$1))+1),\"\")","v":""},{"$f":"IFERROR(MID($X93,FIND(CHAR(160),SUBSTITUTE($X93,\"{\",CHAR(160),HF$1)),FIND(CHAR(160),SUBSTITUTE($X93,\"}\",CHAR(160),HF$1))-FIND(CHAR(160),SUBSTITUTE($X93,\"{\",CHAR(160),HF$1))+1),\"\")","v":""},{"$f":"IFERROR(MID($X93,FIND(CHAR(160),SUBSTITUTE($X93,\"{\",CHAR(160),HG$1)),FIND(CHAR(160),SUBSTITUTE($X93,\"}\",CHAR(160),HG$1))-FIND(CHAR(160),SUBSTITUTE($X93,\"{\",CHAR(160),HG$1))+1),\"\")","v":""},{"$f":"IFERROR(MID($X93,FIND(CHAR(160),SUBSTITUTE($X93,\"{\",CHAR(160),HH$1)),FIND(CHAR(160),SUBSTITUTE($X93,\"}\",CHAR(160),HH$1))-FIND(CHAR(160),SUBSTITUTE($X93,\"{\",CHAR(160),HH$1))+1),\"\")","v":""},{"$f":"IFERROR(MID($X93,FIND(CHAR(160),SUBSTITUTE($X93,\"{\",CHAR(160),HI$1)),FIND(CHAR(160),SUBSTITUTE($X93,\"}\",CHAR(160),HI$1))-FIND(CHAR(160),SUBSTITUTE($X93,\"{\",CHAR(160),HI$1))+1),\"\")","v":""},{"$f":"IFERROR(MID($X93,FIND(CHAR(160),SUBSTITUTE($X93,\"{\",CHAR(160),HJ$1)),FIND(CHAR(160),SUBSTITUTE($X93,\"}\",CHAR(160),HJ$1))-FIND(CHAR(160),SUBSTITUTE($X93,\"{\",CHAR(160),HJ$1))+1),\"\")","v":""},{"$f":"IFERROR(MID($Y93,FIND(CHAR(160),SUBSTITUTE($Y93,\"{\",CHAR(160),HK$1)),FIND(CHAR(160),SUBSTITUTE($Y93,\"}\",CHAR(160),HK$1))-FIND(CHAR(160),SUBSTITUTE($Y93,\"{\",CHAR(160),HK$1))+1),\"\")","v":""},{"$f":"IFERROR(MID($Y93,FIND(CHAR(160),SUBSTITUTE($Y93,\"{\",CHAR(160),HL$1)),FIND(CHAR(160),SUBSTITUTE($Y93,\"}\",CHAR(160),HL$1))-FIND(CHAR(160),SUBSTITUTE($Y93,\"{\",CHAR(160),HL$1))+1),\"\")","v":""},{"$f":"IFERROR(MID($Y93,FIND(CHAR(160),SUBSTITUTE($Y93,\"{\",CHAR(160),HM$1)),FIND(CHAR(160),SUBSTITUTE($Y93,\"}\",CHAR(160),HM$1))-FIND(CHAR(160),SUBSTITUTE($Y93,\"{\",CHAR(160),HM$1))+1),\"\")","v":""},{"$f":"IFERROR(MID($Y93,FIND(CHAR(160),SUBSTITUTE($Y93,\"{\",CHAR(160),HN$1)),FIND(CHAR(160),SUBSTITUTE($Y93,\"}\",CHAR(160),HN$1))-FIND(CHAR(160),SUBSTITUTE($Y93,\"{\",CHAR(160),HN$1))+1),\"\")","v":""},{"$f":"IFERROR(MID($Y93,FIND(CHAR(160),SUBSTITUTE($Y93,\"{\",CHAR(160),HO$1)),FIND(CHAR(160),SUBSTITUTE($Y93,\"}\",CHAR(160),HO$1))-FIND(CHAR(160),SUBSTITUTE($Y93,\"{\",CHAR(160),HO$1))+1),\"\")","v":""},{"$f":"IFERROR(MID($Y93,FIND(CHAR(160),SUBSTITUTE($Y93,\"{\",CHAR(160),HP$1)),FIND(CHAR(160),SUBSTITUTE($Y93,\"}\",CHAR(160),HP$1))-FIND(CHAR(160),SUBSTITUTE($Y93,\"{\",CHAR(160),HP$1))+1),\"\")","v":""},{"$f":"IFERROR(MID($Y93,FIND(CHAR(160),SUBSTITUTE($Y93,\"{\",CHAR(160),HQ$1)),FIND(CHAR(160),SUBSTITUTE($Y93,\"}\",CHAR(160),HQ$1))-FIND(CHAR(160),SUBSTITUTE($Y93,\"{\",CHAR(160),HQ$1))+1),\"\")","v":""},{"$f":"IFERROR(MID($Y93,FIND(CHAR(160),SUBSTITUTE($Y93,\"{\",CHAR(160),HR$1)),FIND(CHAR(160),SUBSTITUTE($Y93,\"}\",CHAR(160),HR$1))-FIND(CHAR(160),SUBSTITUTE($Y93,\"{\",CHAR(160),HR$1))+1),\"\")","v":""},{"$f":"IFERROR(MID($Y93,FIND(CHAR(160),SUBSTITUTE($Y93,\"{\",CHAR(160),HS$1)),FIND(CHAR(160),SUBSTITUTE($Y93,\"}\",CHAR(160),HS$1))-FIND(CHAR(160),SUBSTITUTE($Y93,\"{\",CHAR(160),HS$1))+1),\"\")","v":""},{"$f":"IFERROR(MID($Y93,FIND(CHAR(160),SUBSTITUTE($Y93,\"{\",CHAR(160),HT$1)),FIND(CHAR(160),SUBSTITUTE($Y93,\"}\",CHAR(160),HT$1))-FIND(CHAR(160),SUBSTITUTE($Y93,\"{\",CHAR(160),HT$1))+1),\"\")","v":""},{"$f":"IFERROR(MID($Z93,FIND(CHAR(160),SUBSTITUTE($Z93,\"{\",CHAR(160),HU$1)),FIND(CHAR(160),SUBSTITUTE($Z93,\"}\",CHAR(160),HU$1))-FIND(CHAR(160),SUBSTITUTE($Z93,\"{\",CHAR(160),HU$1))+1),\"\")","v":""},{"$f":"IFERROR(MID($Z93,FIND(CHAR(160),SUBSTITUTE($Z93,\"{\",CHAR(160),HV$1)),FIND(CHAR(160),SUBSTITUTE($Z93,\"}\",CHAR(160),HV$1))-FIND(CHAR(160),SUBSTITUTE($Z93,\"{\",CHAR(160),HV$1))+1),\"\")","v":""},{"$f":"IFERROR(MID($Z93,FIND(CHAR(160),SUBSTITUTE($Z93,\"{\",CHAR(160),HW$1)),FIND(CHAR(160),SUBSTITUTE($Z93,\"}\",CHAR(160),HW$1))-FIND(CHAR(160),SUBSTITUTE($Z93,\"{\",CHAR(160),HW$1))+1),\"\")","v":""},{"$f":"IFERROR(MID($Z93,FIND(CHAR(160),SUBSTITUTE($Z93,\"{\",CHAR(160),HX$1)),FIND(CHAR(160),SUBSTITUTE($Z93,\"}\",CHAR(160),HX$1))-FIND(CHAR(160),SUBSTITUTE($Z93,\"{\",CHAR(160),HX$1))+1),\"\")","v":""},{"$f":"IFERROR(MID($Z93,FIND(CHAR(160),SUBSTITUTE($Z93,\"{\",CHAR(160),HY$1)),FIND(CHAR(160),SUBSTITUTE($Z93,\"}\",CHAR(160),HY$1))-FIND(CHAR(160),SUBSTITUTE($Z93,\"{\",CHAR(160),HY$1))+1),\"\")","v":""},{"$f":"IFERROR(MID($Z93,FIND(CHAR(160),SUBSTITUTE($Z93,\"{\",CHAR(160),HZ$1)),FIND(CHAR(160),SUBSTITUTE($Z93,\"}\",CHAR(160),HZ$1))-FIND(CHAR(160),SUBSTITUTE($Z93,\"{\",CHAR(160),HZ$1))+1),\"\")","v":""},{"$f":"IFERROR(MID($Z93,FIND(CHAR(160),SUBSTITUTE($Z93,\"{\",CHAR(160),IA$1)),FIND(CHAR(160),SUBSTITUTE($Z93,\"}\",CHAR(160),IA$1))-FIND(CHAR(160),SUBSTITUTE($Z93,\"{\",CHAR(160),IA$1))+1),\"\")","v":""},{"$f":"IFERROR(MID($Z93,FIND(CHAR(160),SUBSTITUTE($Z93,\"{\",CHAR(160),IB$1)),FIND(CHAR(160),SUBSTITUTE($Z93,\"}\",CHAR(160),IB$1))-FIND(CHAR(160),SUBSTITUTE($Z93,\"{\",CHAR(160),IB$1))+1),\"\")","v":""},{"$f":"IFERROR(MID($Z93,FIND(CHAR(160),SUBSTITUTE($Z93,\"{\",CHAR(160),IC$1)),FIND(CHAR(160),SUBSTITUTE($Z93,\"}\",CHAR(160),IC$1))-FIND(CHAR(160),SUBSTITUTE($Z93,\"{\",CHAR(160),IC$1))+1),\"\")","v":""},{"$f":"IFERROR(MID($Z93,FIND(CHAR(160),SUBSTITUTE($Z93,\"{\",CHAR(160),ID$1)),FIND(CHAR(160),SUBSTITUTE($Z93,\"}\",CHAR(160),ID$1))-FIND(CHAR(160),SUBSTITUTE($Z93,\"{\",CHAR(160),ID$1))+1),\"\")","v":""},{"$f":"IFERROR(MID($AA93,FIND(CHAR(160),SUBSTITUTE($AA93,\"{\",CHAR(160),IE$1)),FIND(CHAR(160),SUBSTITUTE($AA93,\"}\",CHAR(160),IE$1))-FIND(CHAR(160),SUBSTITUTE($AA93,\"{\",CHAR(160),IE$1))+1),\"\")","v":""},{"$f":"IFERROR(MID($AA93,FIND(CHAR(160),SUBSTITUTE($AA93,\"{\",CHAR(160),IF$1)),FIND(CHAR(160),SUBSTITUTE($AA93,\"}\",CHAR(160),IF$1))-FIND(CHAR(160),SUBSTITUTE($AA93,\"{\",CHAR(160),IF$1))+1),\"\")","v":""},{"$f":"IFERROR(MID($AA93,FIND(CHAR(160),SUBSTITUTE($AA93,\"{\",CHAR(160),IG$1)),FIND(CHAR(160),SUBSTITUTE($AA93,\"}\",CHAR(160),IG$1))-FIND(CHAR(160),SUBSTITUTE($AA93,\"{\",CHAR(160),IG$1))+1),\"\")","v":""},{"$f":"IFERROR(MID($AA93,FIND(CHAR(160),SUBSTITUTE($AA93,\"{\",CHAR(160),IH$1)),FIND(CHAR(160),SUBSTITUTE($AA93,\"}\",CHAR(160),IH$1))-FIND(CHAR(160),SUBSTITUTE($AA93,\"{\",CHAR(160),IH$1))+1),\"\")","v":""},{"$f":"IFERROR(MID($AA93,FIND(CHAR(160),SUBSTITUTE($AA93,\"{\",CHAR(160),II$1)),FIND(CHAR(160),SUBSTITUTE($AA93,\"}\",CHAR(160),II$1))-FIND(CHAR(160),SUBSTITUTE($AA93,\"{\",CHAR(160),II$1))+1),\"\")","v":""},{"$f":"IFERROR(MID($AA93,FIND(CHAR(160),SUBSTITUTE($AA93,\"{\",CHAR(160),IJ$1)),FIND(CHAR(160),SUBSTITUTE($AA93,\"}\",CHAR(160),IJ$1))-FIND(CHAR(160),SUBSTITUTE($AA93,\"{\",CHAR(160),IJ$1))+1),\"\")","v":""},{"$f":"IFERROR(MID($AA93,FIND(CHAR(160),SUBSTITUTE($AA93,\"{\",CHAR(160),IK$1)),FIND(CHAR(160),SUBSTITUTE($AA93,\"}\",CHAR(160),IK$1))-FIND(CHAR(160),SUBSTITUTE($AA93,\"{\",CHAR(160),IK$1))+1),\"\")","v":""},{"$f":"IFERROR(MID($AA93,FIND(CHAR(160),SUBSTITUTE($AA93,\"{\",CHAR(160),IL$1)),FIND(CHAR(160),SUBSTITUTE($AA93,\"}\",CHAR(160),IL$1))-FIND(CHAR(160),SUBSTITUTE($AA93,\"{\",CHAR(160),IL$1))+1),\"\")","v":""},{"$f":"IFERROR(MID($AA93,FIND(CHAR(160),SUBSTITUTE($AA93,\"{\",CHAR(160),IM$1)),FIND(CHAR(160),SUBSTITUTE($AA93,\"}\",CHAR(160),IM$1))-FIND(CHAR(160),SUBSTITUTE($AA93,\"{\",CHAR(160),IM$1))+1),\"\")","v":""},{"$f":"IFERROR(MID($AA93,FIND(CHAR(160),SUBSTITUTE($AA93,\"{\",CHAR(160),IN$1)),FIND(CHAR(160),SUBSTITUTE($AA93,\"}\",CHAR(160),IN$1))-FIND(CHAR(160),SUBSTITUTE($AA93,\"{\",CHAR(160),IN$1))+1),\"\")","v":""},{"$f":"IFERROR(MID($AB93,FIND(CHAR(160),SUBSTITUTE($AB93,\"{\",CHAR(160),IO$1)),FIND(CHAR(160),SUBSTITUTE($AB93,\"}\",CHAR(160),IO$1))-FIND(CHAR(160),SUBSTITUTE($AB93,\"{\",CHAR(160),IO$1))+1),\"\")","v":""},{"$f":"IFERROR(MID($AB93,FIND(CHAR(160),SUBSTITUTE($AB93,\"{\",CHAR(160),IP$1)),FIND(CHAR(160),SUBSTITUTE($AB93,\"}\",CHAR(160),IP$1))-FIND(CHAR(160),SUBSTITUTE($AB93,\"{\",CHAR(160),IP$1))+1),\"\")","v":""},{"$f":"IFERROR(MID($AB93,FIND(CHAR(160),SUBSTITUTE($AB93,\"{\",CHAR(160),IQ$1)),FIND(CHAR(160),SUBSTITUTE($AB93,\"}\",CHAR(160),IQ$1))-FIND(CHAR(160),SUBSTITUTE($AB93,\"{\",CHAR(160),IQ$1))+1),\"\")","v":""},{"$f":"IFERROR(MID($AB93,FIND(CHAR(160),SUBSTITUTE($AB93,\"{\",CHAR(160),IR$1)),FIND(CHAR(160),SUBSTITUTE($AB93,\"}\",CHAR(160),IR$1))-FIND(CHAR(160),SUBSTITUTE($AB93,\"{\",CHAR(160),IR$1))+1),\"\")","v":""},{"$f":"IFERROR(MID($AB93,FIND(CHAR(160),SUBSTITUTE($AB93,\"{\",CHAR(160),IS$1)),FIND(CHAR(160),SUBSTITUTE($AB93,\"}\",CHAR(160),IS$1))-FIND(CHAR(160),SUBSTITUTE($AB93,\"{\",CHAR(160),IS$1))+1),\"\")","v":""},{"$f":"IFERROR(MID($AB93,FIND(CHAR(160),SUBSTITUTE($AB93,\"{\",CHAR(160),IT$1)),FIND(CHAR(160),SUBSTITUTE($AB93,\"}\",CHAR(160),IT$1))-FIND(CHAR(160),SUBSTITUTE($AB93,\"{\",CHAR(160),IT$1))+1),\"\")","v":""},{"$f":"IFERROR(MID($AB93,FIND(CHAR(160),SUBSTITUTE($AB93,\"{\",CHAR(160),IU$1)),FIND(CHAR(160),SUBSTITUTE($AB93,\"}\",CHAR(160),IU$1))-FIND(CHAR(160),SUBSTITUTE($AB93,\"{\",CHAR(160),IU$1))+1),\"\")","v":""},{"$f":"IFERROR(MID($AB93,FIND(CHAR(160),SUBSTITUTE($AB93,\"{\",CHAR(160),IV$1)),FIND(CHAR(160),SUBSTITUTE($AB93,\"}\",CHAR(160),IV$1))-FIND(CHAR(160),SUBSTITUTE($AB93,\"{\",CHAR(160),IV$1))+1),\"\")","v":""},{"$f":"IFERROR(MID($AB93,FIND(CHAR(160),SUBSTITUTE($AB93,\"{\",CHAR(160),IW$1)),FIND(CHAR(160),SUBSTITUTE($AB93,\"}\",CHAR(160),IW$1))-FIND(CHAR(160),SUBSTITUTE($AB93,\"{\",CHAR(160),IW$1))+1),\"\")","v":""},{"$f":"IFERROR(MID($AB93,FIND(CHAR(160),SUBSTITUTE($AB93,\"{\",CHAR(160),IX$1)),FIND(CHAR(160),SUBSTITUTE($AB93,\"}\",CHAR(160),IX$1))-FIND(CHAR(160),SUBSTITUTE($AB93,\"{\",CHAR(160),IX$1))+1),\"\")","v":""},null,{"$f":"10-COUNTIF(DU93:ED93,\"\")","v":2}]
["C&I HVAC - Oil","VFD: Supply Fan on VAV Air Handler","SFA","2021-07-01","2022-06-30","Calculated","{Measure:Quantity}*if({Motor HP}=5,2425,if({Motor HP}=7.5,2648,if({Motor HP}=10,2871,if({Motor HP}=15,3317,if({Motor HP}=20,3763,if({Motor HP}=25,4209,if({Motor HP}=30,4655,0)))))))",0,"Calculated","{Measure:Quantity}*if({Motor HP}=5,400,if({Motor HP}=7.5,650,if({Motor HP}=10,1400,if({Motor HP}=15,1650,if({Motor HP}=20,1850,if({Motor HP}=25,2000,if({Motor HP}=30,2300,0)))))))",0,"2021-05-25","2022-06-30","Calculated","{Measure:Quantity}*{Motor HP}*2033",null,null,"{Measure:Quantity}*{Motor HP}*.288",null,null,"{Measure:Quantity}*{Factor:WinterCF}*{Motor HP}*.288","{Measure:Quantity}*{Factor:SummerCF}*{Motor HP}*.288",null,null,null,null,null,null,"2021-05-24","2022-06-30",13,0.14599999999999999,0.48699999999999999,0.39,0.30499999999999999,0.216,8.8999999999999996E-2,1,1.1220000000000001,1,0.52,1.6E-2,null,{"$f":"DU94","v":"{Measure:Quantity}"},1,{"$f":"DV94","v":"{Motor HP}"},5,{"$f":"DW94","v":""},null,{"$f":"DX94","v":""},null,{"$f":"DY94","v":""},null,{"$f":"DZ94","v":""},null,{"$f":"EA94","v":""},null,{"$f":"EB94","v":""},null,{"$f":"EC94","v":""},null,{"$f":"ED94","v":""},null,{"$f":"AS94*AU94*2033","v":10165},0,0,{"$f":"AS94*AU94*0.288","v":1.44},0,0,{"$f":"AS94*AF94*AU94*0.288","v":0.21023999999999998},{"$f":"AS94*AG94*AU94*0.288","v":0.70128000000000001},0,0,0,0,0,0,null,"Res","Default DR",{"$f":"Benefits(BL94,BR94,BS94,BT94,BU94,BV94,BW94,BX94,BY94,BZ94,AE94,AH94,AI94,AJ94,AK94,AL94,AM94,AN94,AO94,AP94,CA94,CB94)","v":13744.956792968991},1878.4068826873533,0,0,0,0,0,0,0,{"$f":"SUMPRODUCT(CC94:CK94,--(CC94:CK94>0))","v":15623.363675656345},{"$f":"-SUMPRODUCT(CC94:CK94,--(CC94:CK94<0))","v":0},null,{"$f":"AS94*IF(AU94=5,2425,IF(AU94=7.5,2648,IF(AU94=10,2871,IF(AU94=15,3317,IF(AU94=20,3763,IF(AU94=25,4209,IF(AU94=30,4655,0)))))))","v":2425},null,null,{"$f":"CM94+CO94","v":2425},{"$f":"IF(NetOrGross=\"Net\",(1-AO94+AP94),1)","v":1},{"$f":"(SUMPRODUCT(CC94:CJ94,--(CC94:CJ94>0))+CN94)*CS94/((-SUMPRODUCT(CC94:CJ94,--(CC94:CJ94<0))+MAX(CO94,CV94)+CP94+CQ94)*CS94+IF(FRIncentives=\"Yes\",CV94*(1-CS94),0))","v":6.4426241961469461},1,{"$f":"AS94*IF(AU94=5,400,IF(AU94=7.5,650,IF(AU94=10,1400,IF(AU94=15,1650,IF(AU94=20,1850,IF(AU94=25,2000,IF(AU94=30,2300,0)))))))","v":400},null,"RGGI","y",null,{"$f":"IF(F94=\"Manual Entry\",\"Manual\",IF(G94=\"\",0,\"X=\"&SUBSTITUTE(SUBSTITUTE(SUBSTITUTE(SUBSTITUTE(SUBSTITUTE(SUBSTITUTE(SUBSTITUTE(SUBSTITUTE(SUBSTITUTE(SUBSTITUTE(SUBSTITUTE(SUBSTITUTE(G94,$ED94,$ED$2&ROW($ED94)),$EC94,$EC$2&ROW($EC94)),$EB94,$EB$2&ROW($EB94)),$EA94,$EA$2&ROW($EA94)),$DZ94,$DZ$2&ROW($DZ94)),$DY94,$DY$2&ROW($DY94)),$DX94,$DX$2&ROW($DX94)),$DW94,$DW$2&ROW($DW94)),$DV94,$DV$2&ROW($DV94)),$DU94,$DU$2&ROW($DU94)),$DT94,$DT$2&ROW($DT94)),$DS94,$DS$2&ROW($DS94))))","v":"X=AS94*if(AU94=5,2425,if(AU94=7.5,2648,if(AU94=10,2871,if(AU94=15,3317,if(AU94=20,3763,if(AU94=25,4209,if(AU94=30,4655,0)))))))"},{"$f":"IF(I94=\"Manual Entry\",\"Manual\",IF(J94=\"\",0,\"X=\"&SUBSTITUTE(SUBSTITUTE(SUBSTITUTE(SUBSTITUTE(SUBSTITUTE(SUBSTITUTE(SUBSTITUTE(SUBSTITUTE(SUBSTITUTE(SUBSTITUTE(SUBSTITUTE(SUBSTITUTE(J94,$ED94,$ED$2&ROW($ED94)),$EC94,$EC$2&ROW($EC94)),$EB94,$EB$2&ROW($EB94)),$EA94,$EA$2&ROW($EA94)),$DZ94,$DZ$2&ROW($DZ94)),$DY94,$DY$2&ROW($DY94)),$DX94,$DX$2&ROW($DX94)),$DW94,$DW$2&ROW($DW94)),$DV94,$DV$2&ROW($DV94)),$DU94,$DU$2&ROW($DU94)),$DT94,$DT$2&ROW($DT94)),$DS94,$DS$2&ROW($DS94))))","v":"X=AS94*if(AU94=5,400,if(AU94=7.5,650,if(AU94=10,1400,if(AU94=15,1650,if(AU94=20,1850,if(AU94=25,2000,if(AU94=30,2300,0)))))))"},{"$f":"IF(O94=\"\",0,\"X=\"&SUBSTITUTE(SUBSTITUTE(SUBSTITUTE(SUBSTITUTE(SUBSTITUTE(SUBSTITUTE(SUBSTITUTE(SUBSTITUTE(SUBSTITUTE(SUBSTITUTE(SUBSTITUTE(SUBSTITUTE(O94,$ED94,$ED$2&ROW($ED94)),$EC94,$EC$2&ROW($EC94)),$EB94,$EB$2&ROW($EB94)),$EA94,$EA$2&ROW($EA94)),$DZ94,$DZ$2&ROW($DZ94)),$DY94,$DY$2&ROW($DY94)),$DX94,$DX$2&ROW($DX94)),$DW94,$DW$2&ROW($DW94)),$DV94,$DV$2&ROW($DV94)),$DU94,$DU$2&ROW($DU94)),$DT94,$DT$2&ROW($DT94)),$DS94,$DS$2&ROW($DS94)))","v":"X=AS94*AU94*2033"},{"$f":"IF(P94=\"\",0,\"X=\"&SUBSTITUTE(SUBSTITUTE(SUBSTITUTE(SUBSTITUTE(SUBSTITUTE(SUBSTITUTE(SUBSTITUTE(SUBSTITUTE(SUBSTITUTE(SUBSTITUTE(SUBSTITUTE(SUBSTITUTE(P94,$ED94,$ED$2&ROW($ED94)),$EC94,$EC$2&ROW($EC94)),$EB94,$EB$2&ROW($EB94)),$EA94,$EA$2&ROW($EA94)),$DZ94,$DZ$2&ROW($DZ94)),$DY94,$DY$2&ROW($DY94)),$DX94,$DX$2&ROW($DX94)),$DW94,$DW$2&ROW($DW94)),$DV94,$DV$2&ROW($DV94)),$DU94,$DU$2&ROW($DU94)),$DT94,$DT$2&ROW($DT94)),$DS94,$DS$2&ROW($DS94)))","v":0},{"$f":"IF(Q94=\"\",0,\"X=\"&SUBSTITUTE(SUBSTITUTE(SUBSTITUTE(SUBSTITUTE(SUBSTITUTE(SUBSTITUTE(SUBSTITUTE(SUBSTITUTE(SUBSTITUTE(SUBSTITUTE(SUBSTITUTE(SUBSTITUTE(Q94,$ED94,$ED$2&ROW($ED94)),$EC94,$EC$2&ROW($EC94)),$EB94,$EB$2&ROW($EB94)),$EA94,$EA$2&ROW($EA94)),$DZ94,$DZ$2&ROW($DZ94)),$DY94,$DY$2&ROW($DY94)),$DX94,$DX$2&ROW($DX94)),$DW94,$DW$2&ROW($DW94)),$DV94,$DV$2&ROW($DV94)),$DU94,$DU$2&ROW($DU94)),$DT94,$DT$2&ROW($DT94)),$DS94,$DS$2&ROW($DS94)))","v":0},{"$f":"IF(R94=\"\",0,\"X=\"&SUBSTITUTE(SUBSTITUTE(SUBSTITUTE(SUBSTITUTE(SUBSTITUTE(SUBSTITUTE(SUBSTITUTE(SUBSTITUTE(SUBSTITUTE(SUBSTITUTE(SUBSTITUTE(SUBSTITUTE(R94,$ED94,$ED$2&ROW($ED94)),$EC94,$EC$2&ROW($EC94)),$EB94,$EB$2&ROW($EB94)),$EA94,$EA$2&ROW($EA94)),$DZ94,$DZ$2&ROW($DZ94)),$DY94,$DY$2&ROW($DY94)),$DX94,$DX$2&ROW($DX94)),$DW94,$DW$2&ROW($DW94)),$DV94,$DV$2&ROW($DV94)),$DU94,$DU$2&ROW($DU94)),$DT94,$DT$2&ROW($DT94)),$DS94,$DS$2&ROW($DS94)))","v":"X=AS94*AU94*.288"},{"$f":"IF(S94=\"\",0,\"X=\"&SUBSTITUTE(SUBSTITUTE(SUBSTITUTE(SUBSTITUTE(SUBSTITUTE(SUBSTITUTE(SUBSTITUTE(SUBSTITUTE(SUBSTITUTE(SUBSTITUTE(SUBSTITUTE(SUBSTITUTE(S94,$ED94,$ED$2&ROW($ED94)),$EC94,$EC$2&ROW($EC94)),$EB94,$EB$2&ROW($EB94)),$EA94,$EA$2&ROW($EA94)),$DZ94,$DZ$2&ROW($DZ94)),$DY94,$DY$2&ROW($DY94)),$DX94,$DX$2&ROW($DX94)),$DW94,$DW$2&ROW($DW94)),$DV94,$DV$2&ROW($DV94)),$DU94,$DU$2&ROW($DU94)),$DT94,$DT$2&ROW($DT94)),$DS94,$DS$2&ROW($DS94)))","v":0},{"$f":"IF(T94=\"\",0,\"X=\"&SUBSTITUTE(SUBSTITUTE(SUBSTITUTE(SUBSTITUTE(SUBSTITUTE(SUBSTITUTE(SUBSTITUTE(SUBSTITUTE(SUBSTITUTE(SUBSTITUTE(SUBSTITUTE(SUBSTITUTE(T94,$ED94,$ED$2&ROW($ED94)),$EC94,$EC$2&ROW($EC94)),$EB94,$EB$2&ROW($EB94)),$EA94,$EA$2&ROW($EA94)),$DZ94,$DZ$2&ROW($DZ94)),$DY94,$DY$2&ROW($DY94)),$DX94,$DX$2&ROW($DX94)),$DW94,$DW$2&ROW($DW94)),$DV94,$DV$2&ROW($DV94)),$DU94,$DU$2&ROW($DU94)),$DT94,$DT$2&ROW($DT94)),$DS94,$DS$2&ROW($DS94)))","v":0},{"$f":"IF(U94=\"\",0,\"X=\"&SUBSTITUTE(SUBSTITUTE(SUBSTITUTE(SUBSTITUTE(SUBSTITUTE(SUBSTITUTE(SUBSTITUTE(SUBSTITUTE(SUBSTITUTE(SUBSTITUTE(SUBSTITUTE(SUBSTITUTE(U94,$ED94,$ED$2&ROW($ED94)),$EC94,$EC$2&ROW($EC94)),$EB94,$EB$2&ROW($EB94)),$EA94,$EA$2&ROW($EA94)),$DZ94,$DZ$2&ROW($DZ94)),$DY94,$DY$2&ROW($DY94)),$DX94,$DX$2&ROW($DX94)),$DW94,$DW$2&ROW($DW94)),$DV94,$DV$2&ROW($DV94)),$DU94,$DU$2&ROW($DU94)),$DT94,$DT$2&ROW($DT94)),$DS94,$DS$2&ROW($DS94)))","v":"X=AS94*AF94*AU94*.288"},{"$f":"IF(V94=\"\",0,\"X=\"&SUBSTITUTE(SUBSTITUTE(SUBSTITUTE(SUBSTITUTE(SUBSTITUTE(SUBSTITUTE(SUBSTITUTE(SUBSTITUTE(SUBSTITUTE(SUBSTITUTE(SUBSTITUTE(SUBSTITUTE(V94,$ED94,$ED$2&ROW($ED94)),$EC94,$EC$2&ROW($EC94)),$EB94,$EB$2&ROW($EB94)),$EA94,$EA$2&ROW($EA94)),$DZ94,$DZ$2&ROW($DZ94)),$DY94,$DY$2&ROW($DY94)),$DX94,$DX$2&ROW($DX94)),$DW94,$DW$2&ROW($DW94)),$DV94,$DV$2&ROW($DV94)),$DU94,$DU$2&ROW($DU94)),$DT94,$DT$2&ROW($DT94)),$DS94,$DS$2&ROW($DS94)))","v":"X=AS94*AG94*AU94*.288"},{"$f":"IF(W94=\"\",0,\"X=\"&SUBSTITUTE(SUBSTITUTE(SUBSTITUTE(SUBSTITUTE(SUBSTITUTE(SUBSTITUTE(SUBSTITUTE(SUBSTITUTE(SUBSTITUTE(SUBSTITUTE(SUBSTITUTE(SUBSTITUTE(W94,$ED94,$ED$2&ROW($ED94)),$EC94,$EC$2&ROW($EC94)),$EB94,$EB$2&ROW($EB94)),$EA94,$EA$2&ROW($EA94)),$DZ94,$DZ$2&ROW($DZ94)),$DY94,$DY$2&ROW($DY94)),$DX94,$DX$2&ROW($DX94)),$DW94,$DW$2&ROW($DW94)),$DV94,$DV$2&ROW($DV94)),$DU94,$DU$2&ROW($DU94)),$DT94,$DT$2&ROW($DT94)),$DS94,$DS$2&ROW($DS94)))","v":0},{"$f":"IF(X94=\"\",0,\"X=\"&SUBSTITUTE(SUBSTITUTE(SUBSTITUTE(SUBSTITUTE(SUBSTITUTE(SUBSTITUTE(SUBSTITUTE(SUBSTITUTE(SUBSTITUTE(SUBSTITUTE(SUBSTITUTE(SUBSTITUTE(X94,$ED94,$ED$2&ROW($ED94)),$EC94,$EC$2&ROW($EC94)),$EB94,$EB$2&ROW($EB94)),$EA94,$EA$2&ROW($EA94)),$DZ94,$DZ$2&ROW($DZ94)),$DY94,$DY$2&ROW($DY94)),$DX94,$DX$2&ROW($DX94)),$DW94,$DW$2&ROW($DW94)),$DV94,$DV$2&ROW($DV94)),$DU94,$DU$2&ROW($DU94)),$DT94,$DT$2&ROW($DT94)),$DS94,$DS$2&ROW($DS94)))","v":0},{"$f":"IF(Y94=\"\",0,\"X=\"&SUBSTITUTE(SUBSTITUTE(SUBSTITUTE(SUBSTITUTE(SUBSTITUTE(SUBSTITUTE(SUBSTITUTE(SUBSTITUTE(SUBSTITUTE(SUBSTITUTE(SUBSTITUTE(SUBSTITUTE(Y94,$ED94,$ED$2&ROW($ED94)),$EC94,$EC$2&ROW($EC94)),$EB94,$EB$2&ROW($EB94)),$EA94,$EA$2&ROW($EA94)),$DZ94,$DZ$2&ROW($DZ94)),$DY94,$DY$2&ROW($DY94)),$DX94,$DX$2&ROW($DX94)),$DW94,$DW$2&ROW($DW94)),$DV94,$DV$2&ROW($DV94)),$DU94,$DU$2&ROW($DU94)),$DT94,$DT$2&ROW($DT94)),$DS94,$DS$2&ROW($DS94)))","v":0},{"$f":"IF(Z94=\"\",0,\"X=\"&SUBSTITUTE(SUBSTITUTE(SUBSTITUTE(SUBSTITUTE(SUBSTITUTE(SUBSTITUTE(SUBSTITUTE(SUBSTITUTE(SUBSTITUTE(SUBSTITUTE(SUBSTITUTE(SUBSTITUTE(Z94,$ED94,$ED$2&ROW($ED94)),$EC94,$EC$2&ROW($EC94)),$EB94,$EB$2&ROW($EB94)),$EA94,$EA$2&ROW($EA94)),$DZ94,$DZ$2&ROW($DZ94)),$DY94,$DY$2&ROW($DY94)),$DX94,$DX$2&ROW($DX94)),$DW94,$DW$2&ROW($DW94)),$DV94,$DV$2&ROW($DV94)),$DU94,$DU$2&ROW($DU94)),$DT94,$DT$2&ROW($DT94)),$DS94,$DS$2&ROW($DS94)))","v":0},{"$f":"IF(AA94=\"\",0,\"X=\"&SUBSTITUTE(SUBSTITUTE(SUBSTITUTE(SUBSTITUTE(SUBSTITUTE(SUBSTITUTE(SUBSTITUTE(SUBSTITUTE(SUBSTITUTE(SUBSTITUTE(SUBSTITUTE(SUBSTITUTE(AA94,$ED94,$ED$2&ROW($ED94)),$EC94,$EC$2&ROW($EC94)),$EB94,$EB$2&ROW($EB94)),$EA94,$EA$2&ROW($EA94)),$DZ94,$DZ$2&ROW($DZ94)),$DY94,$DY$2&ROW($DY94)),$DX94,$DX$2&ROW($DX94)),$DW94,$DW$2&ROW($DW94)),$DV94,$DV$2&ROW($DV94)),$DU94,$DU$2&ROW($DU94)),$DT94,$DT$2&ROW($DT94)),$DS94,$DS$2&ROW($DS94)))","v":0},{"$f":"IF(AB94=\"\",0,\"X=\"&SUBSTITUTE(SUBSTITUTE(SUBSTITUTE(SUBSTITUTE(SUBSTITUTE(SUBSTITUTE(SUBSTITUTE(SUBSTITUTE(SUBSTITUTE(SUBSTITUTE(SUBSTITUTE(SUBSTITUTE(AB94,$ED94,$ED$2&ROW($ED94)),$EC94,$EC$2&ROW($EC94)),$EB94,$EB$2&ROW($EB94)),$EA94,$EA$2&ROW($EA94)),$DZ94,$DZ$2&ROW($DZ94)),$DY94,$DY$2&ROW($DY94)),$DX94,$DX$2&ROW($DX94)),$DW94,$DW$2&ROW($DW94)),$DV94,$DV$2&ROW($DV94)),$DU94,$DU$2&ROW($DU94)),$DT94,$DT$2&ROW($DT94)),$DS94,$DS$2&ROW($DS94)))","v":0},null,null,"{Factor:WinterCF}","{Factor:SummerCF}",{"$f":"IFERROR(INDEX($EG94:$IV94,MATCH(0,COUNTIF($DR94:DT94,$EG94:$IV94),0)),\"\")","v":"{Measure:Quantity}"},{"$f":"IFERROR(INDEX($EG94:$IV94,MATCH(0,COUNTIF($DR94:DU94,$EG94:$IV94),0)),\"\")","v":"{Motor HP}"},{"$f":"IFERROR(INDEX($EG94:$IV94,MATCH(0,COUNTIF($DR94:DV94,$EG94:$IV94),0)),\"\")","v":""},{"$f":"IFERROR(INDEX($EG94:$IV94,MATCH(0,COUNTIF($DR94:DW94,$EG94:$IV94),0)),\"\")","v":""},{"$f":"IFERROR(INDEX($EG94:$IV94,MATCH(0,COUNTIF($DR94:DX94,$EG94:$IV94),0)),\"\")","v":""},{"$f":"IFERROR(INDEX($EG94:$IV94,MATCH(0,COUNTIF($DR94:DY94,$EG94:$IV94),0)),\"\")","v":""},{"$f":"IFERROR(INDEX($EG94:$IV94,MATCH(0,COUNTIF($DR94:DZ94,$EG94:$IV94),0)),\"\")","v":""},{"$f":"IFERROR(INDEX($EG94:$IV94,MATCH(0,COUNTIF($DR94:EA94,$EG94:$IV94),0)),\"\")","v":""},{"$f":"IFERROR(INDEX($EG94:$IV94,MATCH(0,COUNTIF($DR94:EB94,$EG94:$IV94),0)),\"\")","v":""},{"$f":"IFERROR(INDEX($EG94:$IV94,MATCH(0,COUNTIF($DR94:EC94,$EG94:$IV94),0)),\"\")","v":""},null,null,{"$f":"IFERROR(MID($G94,FIND(CHAR(160),SUBSTITUTE($G94,\"{\",CHAR(160),EG$1)),FIND(CHAR(160),SUBSTITUTE($G94,\"}\",CHAR(160),EG$1))-FIND(CHAR(160),SUBSTITUTE($G94,\"{\",CHAR(160),EG$1))+1),\"\")","v":"{Measure:Quantity}"},{"$f":"IFERROR(MID($G94,FIND(CHAR(160),SUBSTITUTE($G94,\"{\",CHAR(160),EH$1)),FIND(CHAR(160),SUBSTITUTE($G94,\"}\",CHAR(160),EH$1))-FIND(CHAR(160),SUBSTITUTE($G94,\"{\",CHAR(160),EH$1))+1),\"\")","v":"{Motor HP}"},{"$f":"IFERROR(MID($G94,FIND(CHAR(160),SUBSTITUTE($G94,\"{\",CHAR(160),EI$1)),FIND(CHAR(160),SUBSTITUTE($G94,\"}\",CHAR(160),EI$1))-FIND(CHAR(160),SUBSTITUTE($G94,\"{\",CHAR(160),EI$1))+1),\"\")","v":"{Motor HP}"},{"$f":"IFERROR(MID($G94,FIND(CHAR(160),SUBSTITUTE($G94,\"{\",CHAR(160),EJ$1)),FIND(CHAR(160),SUBSTITUTE($G94,\"}\",CHAR(160),EJ$1))-FIND(CHAR(160),SUBSTITUTE($G94,\"{\",CHAR(160),EJ$1))+1),\"\")","v":"{Motor HP}"},{"$f":"IFERROR(MID($G94,FIND(CHAR(160),SUBSTITUTE($G94,\"{\",CHAR(160),EK$1)),FIND(CHAR(160),SUBSTITUTE($G94,\"}\",CHAR(160),EK$1))-FIND(CHAR(160),SUBSTITUTE($G94,\"{\",CHAR(160),EK$1))+1),\"\")","v":"{Motor HP}"},{"$f":"IFERROR(MID($G94,FIND(CHAR(160),SUBSTITUTE($G94,\"{\",CHAR(160),EL$1)),FIND(CHAR(160),SUBSTITUTE($G94,\"}\",CHAR(160),EL$1))-FIND(CHAR(160),SUBSTITUTE($G94,\"{\",CHAR(160),EL$1))+1),\"\")","v":"{Motor HP}"},{"$f":"IFERROR(MID($G94,FIND(CHAR(160),SUBSTITUTE($G94,\"{\",CHAR(160),EM$1)),FIND(CHAR(160),SUBSTITUTE($G94,\"}\",CHAR(160),EM$1))-FIND(CHAR(160),SUBSTITUTE($G94,\"{\",CHAR(160),EM$1))+1),\"\")","v":"{Motor HP}"},{"$f":"IFERROR(MID($G94,FIND(CHAR(160),SUBSTITUTE($G94,\"{\",CHAR(160),EN$1)),FIND(CHAR(160),SUBSTITUTE($G94,\"}\",CHAR(160),EN$1))-FIND(CHAR(160),SUBSTITUTE($G94,\"{\",CHAR(160),EN$1))+1),\"\")","v":"{Motor HP}"},{"$f":"IFERROR(MID($G94,FIND(CHAR(160),SUBSTITUTE($G94,\"{\",CHAR(160),EO$1)),FIND(CHAR(160),SUBSTITUTE($G94,\"}\",CHAR(160),EO$1))-FIND(CHAR(160),SUBSTITUTE($G94,\"{\",CHAR(160),EO$1))+1),\"\")","v":""},{"$f":"IFERROR(MID($G94,FIND(CHAR(160),SUBSTITUTE($G94,\"{\",CHAR(160),EP$1)),FIND(CHAR(160),SUBSTITUTE($G94,\"}\",CHAR(160),EP$1))-FIND(CHAR(160),SUBSTITUTE($G94,\"{\",CHAR(160),EP$1))+1),\"\")","v":""},{"$f":"IFERROR(MID($J94,FIND(CHAR(160),SUBSTITUTE($J94,\"{\",CHAR(160),EQ$1)),FIND(CHAR(160),SUBSTITUTE($J94,\"}\",CHAR(160),EQ$1))-FIND(CHAR(160),SUBSTITUTE($J94,\"{\",CHAR(160),EQ$1))+1),\"\")","v":"{Measure:Quantity}"},{"$f":"IFERROR(MID($J94,FIND(CHAR(160),SUBSTITUTE($J94,\"{\",CHAR(160),ER$1)),FIND(CHAR(160),SUBSTITUTE($J94,\"}\",CHAR(160),ER$1))-FIND(CHAR(160),SUBSTITUTE($J94,\"{\",CHAR(160),ER$1))+1),\"\")","v":"{Motor HP}"},{"$f":"IFERROR(MID($J94,FIND(CHAR(160),SUBSTITUTE($J94,\"{\",CHAR(160),ES$1)),FIND(CHAR(160),SUBSTITUTE($J94,\"}\",CHAR(160),ES$1))-FIND(CHAR(160),SUBSTITUTE($J94,\"{\",CHAR(160),ES$1))+1),\"\")","v":"{Motor HP}"},{"$f":"IFERROR(MID($J94,FIND(CHAR(160),SUBSTITUTE($J94,\"{\",CHAR(160),ET$1)),FIND(CHAR(160),SUBSTITUTE($J94,\"}\",CHAR(160),ET$1))-FIND(CHAR(160),SUBSTITUTE($J94,\"{\",CHAR(160),ET$1))+1),\"\")","v":"{Motor HP}"},{"$f":"IFERROR(MID($J94,FIND(CHAR(160),SUBSTITUTE($J94,\"{\",CHAR(160),EU$1)),FIND(CHAR(160),SUBSTITUTE($J94,\"}\",CHAR(160),EU$1))-FIND(CHAR(160),SUBSTITUTE($J94,\"{\",CHAR(160),EU$1))+1),\"\")","v":"{Motor HP}"},{"$f":"IFERROR(MID($J94,FIND(CHAR(160),SUBSTITUTE($J94,\"{\",CHAR(160),EV$1)),FIND(CHAR(160),SUBSTITUTE($J94,\"}\",CHAR(160),EV$1))-FIND(CHAR(160),SUBSTITUTE($J94,\"{\",CHAR(160),EV$1))+1),\"\")","v":"{Motor HP}"},{"$f":"IFERROR(MID($J94,FIND(CHAR(160),SUBSTITUTE($J94,\"{\",CHAR(160),EW$1)),FIND(CHAR(160),SUBSTITUTE($J94,\"}\",CHAR(160),EW$1))-FIND(CHAR(160),SUBSTITUTE($J94,\"{\",CHAR(160),EW$1))+1),\"\")","v":"{Motor HP}"},{"$f":"IFERROR(MID($J94,FIND(CHAR(160),SUBSTITUTE($J94,\"{\",CHAR(160),EX$1)),FIND(CHAR(160),SUBSTITUTE($J94,\"}\",CHAR(160),EX$1))-FIND(CHAR(160),SUBSTITUTE($J94,\"{\",CHAR(160),EX$1))+1),\"\")","v":"{Motor HP}"},{"$f":"IFERROR(MID($J94,FIND(CHAR(160),SUBSTITUTE($J94,\"{\",CHAR(160),EY$1)),FIND(CHAR(160),SUBSTITUTE($J94,\"}\",CHAR(160),EY$1))-FIND(CHAR(160),SUBSTITUTE($J94,\"{\",CHAR(160),EY$1))+1),\"\")","v":""},{"$f":"IFERROR(MID($J94,FIND(CHAR(160),SUBSTITUTE($J94,\"{\",CHAR(160),EZ$1)),FIND(CHAR(160),SUBSTITUTE($J94,\"}\",CHAR(160),EZ$1))-FIND(CHAR(160),SUBSTITUTE($J94,\"{\",CHAR(160),EZ$1))+1),\"\")","v":""},{"$f":"IFERROR(MID($J94,FIND(CHAR(160),SUBSTITUTE($J94,\"{\",CHAR(160),FA$1)),FIND(CHAR(160),SUBSTITUTE($J94,\"}\",CHAR(160),FA$1))-FIND(CHAR(160),SUBSTITUTE($J94,\"{\",CHAR(160),FA$1))+1),\"\")","v":"{Measure:Quantity}"},{"$f":"IFERROR(MID($J94,FIND(CHAR(160),SUBSTITUTE($J94,\"{\",CHAR(160),FB$1)),FIND(CHAR(160),SUBSTITUTE($J94,\"}\",CHAR(160),FB$1))-FIND(CHAR(160),SUBSTITUTE($J94,\"{\",CHAR(160),FB$1))+1),\"\")","v":"{Motor HP}"},{"$f":"IFERROR(MID($O94,FIND(CHAR(160),SUBSTITUTE($O94,\"{\",CHAR(160),FC$1)),FIND(CHAR(160),SUBSTITUTE($O94,\"}\",CHAR(160),FC$1))-FIND(CHAR(160),SUBSTITUTE($O94,\"{\",CHAR(160),FC$1))+1),\"\")","v":""},{"$f":"IFERROR(MID($O94,FIND(CHAR(160),SUBSTITUTE($O94,\"{\",CHAR(160),FD$1)),FIND(CHAR(160),SUBSTITUTE($O94,\"}\",CHAR(160),FD$1))-FIND(CHAR(160),SUBSTITUTE($O94,\"{\",CHAR(160),FD$1))+1),\"\")","v":""},{"$f":"IFERROR(MID($O94,FIND(CHAR(160),SUBSTITUTE($O94,\"{\",CHAR(160),FE$1)),FIND(CHAR(160),SUBSTITUTE($O94,\"}\",CHAR(160),FE$1))-FIND(CHAR(160),SUBSTITUTE($O94,\"{\",CHAR(160),FE$1))+1),\"\")","v":""},{"$f":"IFERROR(MID($O94,FIND(CHAR(160),SUBSTITUTE($O94,\"{\",CHAR(160),FF$1)),FIND(CHAR(160),SUBSTITUTE($O94,\"}\",CHAR(160),FF$1))-FIND(CHAR(160),SUBSTITUTE($O94,\"{\",CHAR(160),FF$1))+1),\"\")","v":""},{"$f":"IFERROR(MID($O94,FIND(CHAR(160),SUBSTITUTE($O94,\"{\",CHAR(160),FG$1)),FIND(CHAR(160),SUBSTITUTE($O94,\"}\",CHAR(160),FG$1))-FIND(CHAR(160),SUBSTITUTE($O94,\"{\",CHAR(160),FG$1))+1),\"\")","v":""},{"$f":"IFERROR(MID($O94,FIND(CHAR(160),SUBSTITUTE($O94,\"{\",CHAR(160),FH$1)),FIND(CHAR(160),SUBSTITUTE($O94,\"}\",CHAR(160),FH$1))-FIND(CHAR(160),SUBSTITUTE($O94,\"{\",CHAR(160),FH$1))+1),\"\")","v":""},{"$f":"IFERROR(MID($O94,FIND(CHAR(160),SUBSTITUTE($O94,\"{\",CHAR(160),FI$1)),FIND(CHAR(160),SUBSTITUTE($O94,\"}\",CHAR(160),FI$1))-FIND(CHAR(160),SUBSTITUTE($O94,\"{\",CHAR(160),FI$1))+1),\"\")","v":""},{"$f":"IFERROR(MID($O94,FIND(CHAR(160),SUBSTITUTE($O94,\"{\",CHAR(160),FJ$1)),FIND(CHAR(160),SUBSTITUTE($O94,\"}\",CHAR(160),FJ$1))-FIND(CHAR(160),SUBSTITUTE($O94,\"{\",CHAR(160),FJ$1))+1),\"\")","v":""},{"$f":"IFERROR(MID($O94,FIND(CHAR(160),SUBSTITUTE($O94,\"{\",CHAR(160),FK$1)),FIND(CHAR(160),SUBSTITUTE($O94,\"}\",CHAR(160),FK$1))-FIND(CHAR(160),SUBSTITUTE($O94,\"{\",CHAR(160),FK$1))+1),\"\")","v":"{Measure:Quantity}"},{"$f":"IFERROR(MID($O94,FIND(CHAR(160),SUBSTITUTE($O94,\"{\",CHAR(160),FL$1)),FIND(CHAR(160),SUBSTITUTE($O94,\"}\",CHAR(160),FL$1))-FIND(CHAR(160),SUBSTITUTE($O94,\"{\",CHAR(160),FL$1))+1),\"\")","v":"{Motor HP}"},{"$f":"IFERROR(MID($R94,FIND(CHAR(160),SUBSTITUTE($R94,\"{\",CHAR(160),FM$1)),FIND(CHAR(160),SUBSTITUTE($R94,\"}\",CHAR(160),FM$1))-FIND(CHAR(160),SUBSTITUTE($R94,\"{\",CHAR(160),FM$1))+1),\"\")","v":""},{"$f":"IFERROR(MID($R94,FIND(CHAR(160),SUBSTITUTE($R94,\"{\",CHAR(160),FN$1)),FIND(CHAR(160),SUBSTITUTE($R94,\"}\",CHAR(160),FN$1))-FIND(CHAR(160),SUBSTITUTE($R94,\"{\",CHAR(160),FN$1))+1),\"\")","v":""},{"$f":"IFERROR(MID($R94,FIND(CHAR(160),SUBSTITUTE($R94,\"{\",CHAR(160),FO$1)),FIND(CHAR(160),SUBSTITUTE($R94,\"}\",CHAR(160),FO$1))-FIND(CHAR(160),SUBSTITUTE($R94,\"{\",CHAR(160),FO$1))+1),\"\")","v":""},{"$f":"IFERROR(MID($R94,FIND(CHAR(160),SUBSTITUTE($R94,\"{\",CHAR(160),FP$1)),FIND(CHAR(160),SUBSTITUTE($R94,\"}\",CHAR(160),FP$1))-FIND(CHAR(160),SUBSTITUTE($R94,\"{\",CHAR(160),FP$1))+1),\"\")","v":""},{"$f":"IFERROR(MID($R94,FIND(CHAR(160),SUBSTITUTE($R94,\"{\",CHAR(160),FQ$1)),FIND(CHAR(160),SUBSTITUTE($R94,\"}\",CHAR(160),FQ$1))-FIND(CHAR(160),SUBSTITUTE($R94,\"{\",CHAR(160),FQ$1))+1),\"\")","v":""},{"$f":"IFERROR(MID($R94,FIND(CHAR(160),SUBSTITUTE($R94,\"{\",CHAR(160),FR$1)),FIND(CHAR(160),SUBSTITUTE($R94,\"}\",CHAR(160),FR$1))-FIND(CHAR(160),SUBSTITUTE($R94,\"{\",CHAR(160),FR$1))+1),\"\")","v":""},{"$f":"IFERROR(MID($R94,FIND(CHAR(160),SUBSTITUTE($R94,\"{\",CHAR(160),FS$1)),FIND(CHAR(160),SUBSTITUTE($R94,\"}\",CHAR(160),FS$1))-FIND(CHAR(160),SUBSTITUTE($R94,\"{\",CHAR(160),FS$1))+1),\"\")","v":""},{"$f":"IFERROR(MID($R94,FIND(CHAR(160),SUBSTITUTE($R94,\"{\",CHAR(160),FT$1)),FIND(CHAR(160),SUBSTITUTE($R94,\"}\",CHAR(160),FT$1))-FIND(CHAR(160),SUBSTITUTE($R94,\"{\",CHAR(160),FT$1))+1),\"\")","v":""},{"$f":"IFERROR(MID($R94,FIND(CHAR(160),SUBSTITUTE($R94,\"{\",CHAR(160),FU$1)),FIND(CHAR(160),SUBSTITUTE($R94,\"}\",CHAR(160),FU$1))-FIND(CHAR(160),SUBSTITUTE($R94,\"{\",CHAR(160),FU$1))+1),\"\")","v":"{Measure:Quantity}"},{"$f":"IFERROR(MID($R94,FIND(CHAR(160),SUBSTITUTE($R94,\"{\",CHAR(160),FV$1)),FIND(CHAR(160),SUBSTITUTE($R94,\"}\",CHAR(160),FV$1))-FIND(CHAR(160),SUBSTITUTE($R94,\"{\",CHAR(160),FV$1))+1),\"\")","v":"{Motor HP}"},{"$f":"IFERROR(MID($U94,FIND(CHAR(160),SUBSTITUTE($U94,\"{\",CHAR(160),FW$1)),FIND(CHAR(160),SUBSTITUTE($U94,\"}\",CHAR(160),FW$1))-FIND(CHAR(160),SUBSTITUTE($U94,\"{\",CHAR(160),FW$1))+1),\"\")","v":"{Motor HP}"},{"$f":"IFERROR(MID($U94,FIND(CHAR(160),SUBSTITUTE($U94,\"{\",CHAR(160),FX$1)),FIND(CHAR(160),SUBSTITUTE($U94,\"}\",CHAR(160),FX$1))-FIND(CHAR(160),SUBSTITUTE($U94,\"{\",CHAR(160),FX$1))+1),\"\")","v":""},{"$f":"IFERROR(MID($U94,FIND(CHAR(160),SUBSTITUTE($U94,\"{\",CHAR(160),FY$1)),FIND(CHAR(160),SUBSTITUTE($U94,\"}\",CHAR(160),FY$1))-FIND(CHAR(160),SUBSTITUTE($U94,\"{\",CHAR(160),FY$1))+1),\"\")","v":""},{"$f":"IFERROR(MID($U94,FIND(CHAR(160),SUBSTITUTE($U94,\"{\",CHAR(160),FZ$1)),FIND(CHAR(160),SUBSTITUTE($U94,\"}\",CHAR(160),FZ$1))-FIND(CHAR(160),SUBSTITUTE($U94,\"{\",CHAR(160),FZ$1))+1),\"\")","v":""},{"$f":"IFERROR(MID($U94,FIND(CHAR(160),SUBSTITUTE($U94,\"{\",CHAR(160),GA$1)),FIND(CHAR(160),SUBSTITUTE($U94,\"}\",CHAR(160),GA$1))-FIND(CHAR(160),SUBSTITUTE($U94,\"{\",CHAR(160),GA$1))+1),\"\")","v":""},{"$f":"IFERROR(MID($U94,FIND(CHAR(160),SUBSTITUTE($U94,\"{\",CHAR(160),GB$1)),FIND(CHAR(160),SUBSTITUTE($U94,\"}\",CHAR(160),GB$1))-FIND(CHAR(160),SUBSTITUTE($U94,\"{\",CHAR(160),GB$1))+1),\"\")","v":""},{"$f":"IFERROR(MID($U94,FIND(CHAR(160),SUBSTITUTE($U94,\"{\",CHAR(160),GC$1)),FIND(CHAR(160),SUBSTITUTE($U94,\"}\",CHAR(160),GC$1))-FIND(CHAR(160),SUBSTITUTE($U94,\"{\",CHAR(160),GC$1))+1),\"\")","v":""},{"$f":"IFERROR(MID($U94,FIND(CHAR(160),SUBSTITUTE($U94,\"{\",CHAR(160),GD$1)),FIND(CHAR(160),SUBSTITUTE($U94,\"}\",CHAR(160),GD$1))-FIND(CHAR(160),SUBSTITUTE($U94,\"{\",CHAR(160),GD$1))+1),\"\")","v":""},{"$f":"IFERROR(MID($U94,FIND(CHAR(160),SUBSTITUTE($U94,\"{\",CHAR(160),GE$1)),FIND(CHAR(160),SUBSTITUTE($U94,\"}\",CHAR(160),GE$1))-FIND(CHAR(160),SUBSTITUTE($U94,\"{\",CHAR(160),GE$1))+1),\"\")","v":"{Measure:Quantity}"},{"$f":"IFERROR(MID($U94,FIND(CHAR(160),SUBSTITUTE($U94,\"{\",CHAR(160),GF$1)),FIND(CHAR(160),SUBSTITUTE($U94,\"}\",CHAR(160),GF$1))-FIND(CHAR(160),SUBSTITUTE($U94,\"{\",CHAR(160),GF$1))+1),\"\")","v":"{Factor:WinterCF}"},{"$f":"IFERROR(MID($V94,FIND(CHAR(160),SUBSTITUTE($V94,\"{\",CHAR(160),GG$1)),FIND(CHAR(160),SUBSTITUTE($V94,\"}\",CHAR(160),GG$1))-FIND(CHAR(160),SUBSTITUTE($V94,\"{\",CHAR(160),GG$1))+1),\"\")","v":"{Motor HP}"},{"$f":"IFERROR(MID($V94,FIND(CHAR(160),SUBSTITUTE($V94,\"{\",CHAR(160),GH$1)),FIND(CHAR(160),SUBSTITUTE($V94,\"}\",CHAR(160),GH$1))-FIND(CHAR(160),SUBSTITUTE($V94,\"{\",CHAR(160),GH$1))+1),\"\")","v":""},{"$f":"IFERROR(MID($V94,FIND(CHAR(160),SUBSTITUTE($V94,\"{\",CHAR(160),GI$1)),FIND(CHAR(160),SUBSTITUTE($V94,\"}\",CHAR(160),GI$1))-FIND(CHAR(160),SUBSTITUTE($V94,\"{\",CHAR(160),GI$1))+1),\"\")","v":""},{"$f":"IFERROR(MID($V94,FIND(CHAR(160),SUBSTITUTE($V94,\"{\",CHAR(160),GJ$1)),FIND(CHAR(160),SUBSTITUTE($V94,\"}\",CHAR(160),GJ$1))-FIND(CHAR(160),SUBSTITUTE($V94,\"{\",CHAR(160),GJ$1))+1),\"\")","v":""},{"$f":"IFERROR(MID($V94,FIND(CHAR(160),SUBSTITUTE($V94,\"{\",CHAR(160),GK$1)),FIND(CHAR(160),SUBSTITUTE($V94,\"}\",CHAR(160),GK$1))-FIND(CHAR(160),SUBSTITUTE($V94,\"{\",CHAR(160),GK$1))+1),\"\")","v":""},{"$f":"IFERROR(MID($V94,FIND(CHAR(160),SUBSTITUTE($V94,\"{\",CHAR(160),GL$1)),FIND(CHAR(160),SUBSTITUTE($V94,\"}\",CHAR(160),GL$1))-FIND(CHAR(160),SUBSTITUTE($V94,\"{\",CHAR(160),GL$1))+1),\"\")","v":""},{"$f":"IFERROR(MID($V94,FIND(CHAR(160),SUBSTITUTE($V94,\"{\",CHAR(160),GM$1)),FIND(CHAR(160),SUBSTITUTE($V94,\"}\",CHAR(160),GM$1))-FIND(CHAR(160),SUBSTITUTE($V94,\"{\",CHAR(160),GM$1))+1),\"\")","v":""},{"$f":"IFERROR(MID($V94,FIND(CHAR(160),SUBSTITUTE($V94,\"{\",CHAR(160),GN$1)),FIND(CHAR(160),SUBSTITUTE($V94,\"}\",CHAR(160),GN$1))-FIND(CHAR(160),SUBSTITUTE($V94,\"{\",CHAR(160),GN$1))+1),\"\")","v":""},{"$f":"IFERROR(MID($V94,FIND(CHAR(160),SUBSTITUTE($V94,\"{\",CHAR(160),GO$1)),FIND(CHAR(160),SUBSTITUTE($V94,\"}\",CHAR(160),GO$1))-FIND(CHAR(160),SUBSTITUTE($V94,\"{\",CHAR(160),GO$1))+1),\"\")","v":"{Measure:Quantity}"},{"$f":"IFERROR(MID($V94,FIND(CHAR(160),SUBSTITUTE($V94,\"{\",CHAR(160),GP$1)),FIND(CHAR(160),SUBSTITUTE($V94,\"}\",CHAR(160),GP$1))-FIND(CHAR(160),SUBSTITUTE($V94,\"{\",CHAR(160),GP$1))+1),\"\")","v":"{Factor:SummerCF}"},{"$f":"IFERROR(MID($W94,FIND(CHAR(160),SUBSTITUTE($W94,\"{\",CHAR(160),GQ$1)),FIND(CHAR(160),SUBSTITUTE($W94,\"}\",CHAR(160),GQ$1))-FIND(CHAR(160),SUBSTITUTE($W94,\"{\",CHAR(160),GQ$1))+1),\"\")","v":""},{"$f":"IFERROR(MID($W94,FIND(CHAR(160),SUBSTITUTE($W94,\"{\",CHAR(160),GR$1)),FIND(CHAR(160),SUBSTITUTE($W94,\"}\",CHAR(160),GR$1))-FIND(CHAR(160),SUBSTITUTE($W94,\"{\",CHAR(160),GR$1))+1),\"\")","v":""},{"$f":"IFERROR(MID($W94,FIND(CHAR(160),SUBSTITUTE($W94,\"{\",CHAR(160),GS$1)),FIND(CHAR(160),SUBSTITUTE($W94,\"}\",CHAR(160),GS$1))-FIND(CHAR(160),SUBSTITUTE($W94,\"{\",CHAR(160),GS$1))+1),\"\")","v":""},{"$f":"IFERROR(MID($W94,FIND(CHAR(160),SUBSTITUTE($W94,\"{\",CHAR(160),GT$1)),FIND(CHAR(160),SUBSTITUTE($W94,\"}\",CHAR(160),GT$1))-FIND(CHAR(160),SUBSTITUTE($W94,\"{\",CHAR(160),GT$1))+1),\"\")","v":""},{"$f":"IFERROR(MID($W94,FIND(CHAR(160),SUBSTITUTE($W94,\"{\",CHAR(160),GU$1)),FIND(CHAR(160),SUBSTITUTE($W94,\"}\",CHAR(160),GU$1))-FIND(CHAR(160),SUBSTITUTE($W94,\"{\",CHAR(160),GU$1))+1),\"\")","v":""},{"$f":"IFERROR(MID($W94,FIND(CHAR(160),SUBSTITUTE($W94,\"{\",CHAR(160),GV$1)),FIND(CHAR(160),SUBSTITUTE($W94,\"}\",CHAR(160),GV$1))-FIND(CHAR(160),SUBSTITUTE($W94,\"{\",CHAR(160),GV$1))+1),\"\")","v":""},{"$f":"IFERROR(MID($W94,FIND(CHAR(160),SUBSTITUTE($W94,\"{\",CHAR(160),GW$1)),FIND(CHAR(160),SUBSTITUTE($W94,\"}\",CHAR(160),GW$1))-FIND(CHAR(160),SUBSTITUTE($W94,\"{\",CHAR(160),GW$1))+1),\"\")","v":""},{"$f":"IFERROR(MID($W94,FIND(CHAR(160),SUBSTITUTE($W94,\"{\",CHAR(160),GX$1)),FIND(CHAR(160),SUBSTITUTE($W94,\"}\",CHAR(160),GX$1))-FIND(CHAR(160),SUBSTITUTE($W94,\"{\",CHAR(160),GX$1))+1),\"\")","v":""},{"$f":"IFERROR(MID($W94,FIND(CHAR(160),SUBSTITUTE($W94,\"{\",CHAR(160),GY$1)),FIND(CHAR(160),SUBSTITUTE($W94,\"}\",CHAR(160),GY$1))-FIND(CHAR(160),SUBSTITUTE($W94,\"{\",CHAR(160),GY$1))+1),\"\")","v":""},{"$f":"IFERROR(MID($W94,FIND(CHAR(160),SUBSTITUTE($W94,\"{\",CHAR(160),GZ$1)),FIND(CHAR(160),SUBSTITUTE($W94,\"}\",CHAR(160),GZ$1))-FIND(CHAR(160),SUBSTITUTE($W94,\"{\",CHAR(160),GZ$1))+1),\"\")","v":""},{"$f":"IFERROR(MID($X94,FIND(CHAR(160),SUBSTITUTE($X94,\"{\",CHAR(160),HA$1)),FIND(CHAR(160),SUBSTITUTE($X94,\"}\",CHAR(160),HA$1))-FIND(CHAR(160),SUBSTITUTE($X94,\"{\",CHAR(160),HA$1))+1),\"\")","v":""},{"$f":"IFERROR(MID($X94,FIND(CHAR(160),SUBSTITUTE($X94,\"{\",CHAR(160),HB$1)),FIND(CHAR(160),SUBSTITUTE($X94,\"}\",CHAR(160),HB$1))-FIND(CHAR(160),SUBSTITUTE($X94,\"{\",CHAR(160),HB$1))+1),\"\")","v":""},{"$f":"IFERROR(MID($X94,FIND(CHAR(160),SUBSTITUTE($X94,\"{\",CHAR(160),HC$1)),FIND(CHAR(160),SUBSTITUTE($X94,\"}\",CHAR(160),HC$1))-FIND(CHAR(160),SUBSTITUTE($X94,\"{\",CHAR(160),HC$1))+1),\"\")","v":""},{"$f":"IFERROR(MID($X94,FIND(CHAR(160),SUBSTITUTE($X94,\"{\",CHAR(160),HD$1)),FIND(CHAR(160),SUBSTITUTE($X94,\"}\",CHAR(160),HD$1))-FIND(CHAR(160),SUBSTITUTE($X94,\"{\",CHAR(160),HD$1))+1),\"\")","v":""},{"$f":"IFERROR(MID($X94,FIND(CHAR(160),SUBSTITUTE($X94,\"{\",CHAR(160),HE$1)),FIND(CHAR(160),SUBSTITUTE($X94,\"}\",CHAR(160),HE$1))-FIND(CHAR(160),SUBSTITUTE($X94,\"{\",CHAR(160),HE$1))+1),\"\")","v":""},{"$f":"IFERROR(MID($X94,FIND(CHAR(160),SUBSTITUTE($X94,\"{\",CHAR(160),HF$1)),FIND(CHAR(160),SUBSTITUTE($X94,\"}\",CHAR(160),HF$1))-FIND(CHAR(160),SUBSTITUTE($X94,\"{\",CHAR(160),HF$1))+1),\"\")","v":""},{"$f":"IFERROR(MID($X94,FIND(CHAR(160),SUBSTITUTE($X94,\"{\",CHAR(160),HG$1)),FIND(CHAR(160),SUBSTITUTE($X94,\"}\",CHAR(160),HG$1))-FIND(CHAR(160),SUBSTITUTE($X94,\"{\",CHAR(160),HG$1))+1),\"\")","v":""},{"$f":"IFERROR(MID($X94,FIND(CHAR(160),SUBSTITUTE($X94,\"{\",CHAR(160),HH$1)),FIND(CHAR(160),SUBSTITUTE($X94,\"}\",CHAR(160),HH$1))-FIND(CHAR(160),SUBSTITUTE($X94,\"{\",CHAR(160),HH$1))+1),\"\")","v":""},{"$f":"IFERROR(MID($X94,FIND(CHAR(160),SUBSTITUTE($X94,\"{\",CHAR(160),HI$1)),FIND(CHAR(160),SUBSTITUTE($X94,\"}\",CHAR(160),HI$1))-FIND(CHAR(160),SUBSTITUTE($X94,\"{\",CHAR(160),HI$1))+1),\"\")","v":""},{"$f":"IFERROR(MID($X94,FIND(CHAR(160),SUBSTITUTE($X94,\"{\",CHAR(160),HJ$1)),FIND(CHAR(160),SUBSTITUTE($X94,\"}\",CHAR(160),HJ$1))-FIND(CHAR(160),SUBSTITUTE($X94,\"{\",CHAR(160),HJ$1))+1),\"\")","v":""},{"$f":"IFERROR(MID($Y94,FIND(CHAR(160),SUBSTITUTE($Y94,\"{\",CHAR(160),HK$1)),FIND(CHAR(160),SUBSTITUTE($Y94,\"}\",CHAR(160),HK$1))-FIND(CHAR(160),SUBSTITUTE($Y94,\"{\",CHAR(160),HK$1))+1),\"\")","v":""},{"$f":"IFERROR(MID($Y94,FIND(CHAR(160),SUBSTITUTE($Y94,\"{\",CHAR(160),HL$1)),FIND(CHAR(160),SUBSTITUTE($Y94,\"}\",CHAR(160),HL$1))-FIND(CHAR(160),SUBSTITUTE($Y94,\"{\",CHAR(160),HL$1))+1),\"\")","v":""},{"$f":"IFERROR(MID($Y94,FIND(CHAR(160),SUBSTITUTE($Y94,\"{\",CHAR(160),HM$1)),FIND(CHAR(160),SUBSTITUTE($Y94,\"}\",CHAR(160),HM$1))-FIND(CHAR(160),SUBSTITUTE($Y94,\"{\",CHAR(160),HM$1))+1),\"\")","v":""},{"$f":"IFERROR(MID($Y94,FIND(CHAR(160),SUBSTITUTE($Y94,\"{\",CHAR(160),HN$1)),FIND(CHAR(160),SUBSTITUTE($Y94,\"}\",CHAR(160),HN$1))-FIND(CHAR(160),SUBSTITUTE($Y94,\"{\",CHAR(160),HN$1))+1),\"\")","v":""},{"$f":"IFERROR(MID($Y94,FIND(CHAR(160),SUBSTITUTE($Y94,\"{\",CHAR(160),HO$1)),FIND(CHAR(160),SUBSTITUTE($Y94,\"}\",CHAR(160),HO$1))-FIND(CHAR(160),SUBSTITUTE($Y94,\"{\",CHAR(160),HO$1))+1),\"\")","v":""},{"$f":"IFERROR(MID($Y94,FIND(CHAR(160),SUBSTITUTE($Y94,\"{\",CHAR(160),HP$1)),FIND(CHAR(160),SUBSTITUTE($Y94,\"}\",CHAR(160),HP$1))-FIND(CHAR(160),SUBSTITUTE($Y94,\"{\",CHAR(160),HP$1))+1),\"\")","v":""},{"$f":"IFERROR(MID($Y94,FIND(CHAR(160),SUBSTITUTE($Y94,\"{\",CHAR(160),HQ$1)),FIND(CHAR(160),SUBSTITUTE($Y94,\"}\",CHAR(160),HQ$1))-FIND(CHAR(160),SUBSTITUTE($Y94,\"{\",CHAR(160),HQ$1))+1),\"\")","v":""},{"$f":"IFERROR(MID($Y94,FIND(CHAR(160),SUBSTITUTE($Y94,\"{\",CHAR(160),HR$1)),FIND(CHAR(160),SUBSTITUTE($Y94,\"}\",CHAR(160),HR$1))-FIND(CHAR(160),SUBSTITUTE($Y94,\"{\",CHAR(160),HR$1))+1),\"\")","v":""},{"$f":"IFERROR(MID($Y94,FIND(CHAR(160),SUBSTITUTE($Y94,\"{\",CHAR(160),HS$1)),FIND(CHAR(160),SUBSTITUTE($Y94,\"}\",CHAR(160),HS$1))-FIND(CHAR(160),SUBSTITUTE($Y94,\"{\",CHAR(160),HS$1))+1),\"\")","v":""},{"$f":"IFERROR(MID($Y94,FIND(CHAR(160),SUBSTITUTE($Y94,\"{\",CHAR(160),HT$1)),FIND(CHAR(160),SUBSTITUTE($Y94,\"}\",CHAR(160),HT$1))-FIND(CHAR(160),SUBSTITUTE($Y94,\"{\",CHAR(160),HT$1))+1),\"\")","v":""},{"$f":"IFERROR(MID($Z94,FIND(CHAR(160),SUBSTITUTE($Z94,\"{\",CHAR(160),HU$1)),FIND(CHAR(160),SUBSTITUTE($Z94,\"}\",CHAR(160),HU$1))-FIND(CHAR(160),SUBSTITUTE($Z94,\"{\",CHAR(160),HU$1))+1),\"\")","v":""},{"$f":"IFERROR(MID($Z94,FIND(CHAR(160),SUBSTITUTE($Z94,\"{\",CHAR(160),HV$1)),FIND(CHAR(160),SUBSTITUTE($Z94,\"}\",CHAR(160),HV$1))-FIND(CHAR(160),SUBSTITUTE($Z94,\"{\",CHAR(160),HV$1))+1),\"\")","v":""},{"$f":"IFERROR(MID($Z94,FIND(CHAR(160),SUBSTITUTE($Z94,\"{\",CHAR(160),HW$1)),FIND(CHAR(160),SUBSTITUTE($Z94,\"}\",CHAR(160),HW$1))-FIND(CHAR(160),SUBSTITUTE($Z94,\"{\",CHAR(160),HW$1))+1),\"\")","v":""},{"$f":"IFERROR(MID($Z94,FIND(CHAR(160),SUBSTITUTE($Z94,\"{\",CHAR(160),HX$1)),FIND(CHAR(160),SUBSTITUTE($Z94,\"}\",CHAR(160),HX$1))-FIND(CHAR(160),SUBSTITUTE($Z94,\"{\",CHAR(160),HX$1))+1),\"\")","v":""},{"$f":"IFERROR(MID($Z94,FIND(CHAR(160),SUBSTITUTE($Z94,\"{\",CHAR(160),HY$1)),FIND(CHAR(160),SUBSTITUTE($Z94,\"}\",CHAR(160),HY$1))-FIND(CHAR(160),SUBSTITUTE($Z94,\"{\",CHAR(160),HY$1))+1),\"\")","v":""},{"$f":"IFERROR(MID($Z94,FIND(CHAR(160),SUBSTITUTE($Z94,\"{\",CHAR(160),HZ$1)),FIND(CHAR(160),SUBSTITUTE($Z94,\"}\",CHAR(160),HZ$1))-FIND(CHAR(160),SUBSTITUTE($Z94,\"{\",CHAR(160),HZ$1))+1),\"\")","v":""},{"$f":"IFERROR(MID($Z94,FIND(CHAR(160),SUBSTITUTE($Z94,\"{\",CHAR(160),IA$1)),FIND(CHAR(160),SUBSTITUTE($Z94,\"}\",CHAR(160),IA$1))-FIND(CHAR(160),SUBSTITUTE($Z94,\"{\",CHAR(160),IA$1))+1),\"\")","v":""},{"$f":"IFERROR(MID($Z94,FIND(CHAR(160),SUBSTITUTE($Z94,\"{\",CHAR(160),IB$1)),FIND(CHAR(160),SUBSTITUTE($Z94,\"}\",CHAR(160),IB$1))-FIND(CHAR(160),SUBSTITUTE($Z94,\"{\",CHAR(160),IB$1))+1),\"\")","v":""},{"$f":"IFERROR(MID($Z94,FIND(CHAR(160),SUBSTITUTE($Z94,\"{\",CHAR(160),IC$1)),FIND(CHAR(160),SUBSTITUTE($Z94,\"}\",CHAR(160),IC$1))-FIND(CHAR(160),SUBSTITUTE($Z94,\"{\",CHAR(160),IC$1))+1),\"\")","v":""},{"$f":"IFERROR(MID($Z94,FIND(CHAR(160),SUBSTITUTE($Z94,\"{\",CHAR(160),ID$1)),FIND(CHAR(160),SUBSTITUTE($Z94,\"}\",CHAR(160),ID$1))-FIND(CHAR(160),SUBSTITUTE($Z94,\"{\",CHAR(160),ID$1))+1),\"\")","v":""},{"$f":"IFERROR(MID($AA94,FIND(CHAR(160),SUBSTITUTE($AA94,\"{\",CHAR(160),IE$1)),FIND(CHAR(160),SUBSTITUTE($AA94,\"}\",CHAR(160),IE$1))-FIND(CHAR(160),SUBSTITUTE($AA94,\"{\",CHAR(160),IE$1))+1),\"\")","v":""},{"$f":"IFERROR(MID($AA94,FIND(CHAR(160),SUBSTITUTE($AA94,\"{\",CHAR(160),IF$1)),FIND(CHAR(160),SUBSTITUTE($AA94,\"}\",CHAR(160),IF$1))-FIND(CHAR(160),SUBSTITUTE($AA94,\"{\",CHAR(160),IF$1))+1),\"\")","v":""},{"$f":"IFERROR(MID($AA94,FIND(CHAR(160),SUBSTITUTE($AA94,\"{\",CHAR(160),IG$1)),FIND(CHAR(160),SUBSTITUTE($AA94,\"}\",CHAR(160),IG$1))-FIND(CHAR(160),SUBSTITUTE($AA94,\"{\",CHAR(160),IG$1))+1),\"\")","v":""},{"$f":"IFERROR(MID($AA94,FIND(CHAR(160),SUBSTITUTE($AA94,\"{\",CHAR(160),IH$1)),FIND(CHAR(160),SUBSTITUTE($AA94,\"}\",CHAR(160),IH$1))-FIND(CHAR(160),SUBSTITUTE($AA94,\"{\",CHAR(160),IH$1))+1),\"\")","v":""},{"$f":"IFERROR(MID($AA94,FIND(CHAR(160),SUBSTITUTE($AA94,\"{\",CHAR(160),II$1)),FIND(CHAR(160),SUBSTITUTE($AA94,\"}\",CHAR(160),II$1))-FIND(CHAR(160),SUBSTITUTE($AA94,\"{\",CHAR(160),II$1))+1),\"\")","v":""},{"$f":"IFERROR(MID($AA94,FIND(CHAR(160),SUBSTITUTE($AA94,\"{\",CHAR(160),IJ$1)),FIND(CHAR(160),SUBSTITUTE($AA94,\"}\",CHAR(160),IJ$1))-FIND(CHAR(160),SUBSTITUTE($AA94,\"{\",CHAR(160),IJ$1))+1),\"\")","v":""},{"$f":"IFERROR(MID($AA94,FIND(CHAR(160),SUBSTITUTE($AA94,\"{\",CHAR(160),IK$1)),FIND(CHAR(160),SUBSTITUTE($AA94,\"}\",CHAR(160),IK$1))-FIND(CHAR(160),SUBSTITUTE($AA94,\"{\",CHAR(160),IK$1))+1),\"\")","v":""},{"$f":"IFERROR(MID($AA94,FIND(CHAR(160),SUBSTITUTE($AA94,\"{\",CHAR(160),IL$1)),FIND(CHAR(160),SUBSTITUTE($AA94,\"}\",CHAR(160),IL$1))-FIND(CHAR(160),SUBSTITUTE($AA94,\"{\",CHAR(160),IL$1))+1),\"\")","v":""},{"$f":"IFERROR(MID($AA94,FIND(CHAR(160),SUBSTITUTE($AA94,\"{\",CHAR(160),IM$1)),FIND(CHAR(160),SUBSTITUTE($AA94,\"}\",CHAR(160),IM$1))-FIND(CHAR(160),SUBSTITUTE($AA94,\"{\",CHAR(160),IM$1))+1),\"\")","v":""},{"$f":"IFERROR(MID($AA94,FIND(CHAR(160),SUBSTITUTE($AA94,\"{\",CHAR(160),IN$1)),FIND(CHAR(160),SUBSTITUTE($AA94,\"}\",CHAR(160),IN$1))-FIND(CHAR(160),SUBSTITUTE($AA94,\"{\",CHAR(160),IN$1))+1),\"\")","v":""},{"$f":"IFERROR(MID($AB94,FIND(CHAR(160),SUBSTITUTE($AB94,\"{\",CHAR(160),IO$1)),FIND(CHAR(160),SUBSTITUTE($AB94,\"}\",CHAR(160),IO$1))-FIND(CHAR(160),SUBSTITUTE($AB94,\"{\",CHAR(160),IO$1))+1),\"\")","v":""},{"$f":"IFERROR(MID($AB94,FIND(CHAR(160),SUBSTITUTE($AB94,\"{\",CHAR(160),IP$1)),FIND(CHAR(160),SUBSTITUTE($AB94,\"}\",CHAR(160),IP$1))-FIND(CHAR(160),SUBSTITUTE($AB94,\"{\",CHAR(160),IP$1))+1),\"\")","v":""},{"$f":"IFERROR(MID($AB94,FIND(CHAR(160),SUBSTITUTE($AB94,\"{\",CHAR(160),IQ$1)),FIND(CHAR(160),SUBSTITUTE($AB94,\"}\",CHAR(160),IQ$1))-FIND(CHAR(160),SUBSTITUTE($AB94,\"{\",CHAR(160),IQ$1))+1),\"\")","v":""},{"$f":"IFERROR(MID($AB94,FIND(CHAR(160),SUBSTITUTE($AB94,\"{\",CHAR(160),IR$1)),FIND(CHAR(160),SUBSTITUTE($AB94,\"}\",CHAR(160),IR$1))-FIND(CHAR(160),SUBSTITUTE($AB94,\"{\",CHAR(160),IR$1))+1),\"\")","v":""},{"$f":"IFERROR(MID($AB94,FIND(CHAR(160),SUBSTITUTE($AB94,\"{\",CHAR(160),IS$1)),FIND(CHAR(160),SUBSTITUTE($AB94,\"}\",CHAR(160),IS$1))-FIND(CHAR(160),SUBSTITUTE($AB94,\"{\",CHAR(160),IS$1))+1),\"\")","v":""},{"$f":"IFERROR(MID($AB94,FIND(CHAR(160),SUBSTITUTE($AB94,\"{\",CHAR(160),IT$1)),FIND(CHAR(160),SUBSTITUTE($AB94,\"}\",CHAR(160),IT$1))-FIND(CHAR(160),SUBSTITUTE($AB94,\"{\",CHAR(160),IT$1))+1),\"\")","v":""},{"$f":"IFERROR(MID($AB94,FIND(CHAR(160),SUBSTITUTE($AB94,\"{\",CHAR(160),IU$1)),FIND(CHAR(160),SUBSTITUTE($AB94,\"}\",CHAR(160),IU$1))-FIND(CHAR(160),SUBSTITUTE($AB94,\"{\",CHAR(160),IU$1))+1),\"\")","v":""},{"$f":"IFERROR(MID($AB94,FIND(CHAR(160),SUBSTITUTE($AB94,\"{\",CHAR(160),IV$1)),FIND(CHAR(160),SUBSTITUTE($AB94,\"}\",CHAR(160),IV$1))-FIND(CHAR(160),SUBSTITUTE($AB94,\"{\",CHAR(160),IV$1))+1),\"\")","v":""},{"$f":"IFERROR(MID($AB94,FIND(CHAR(160),SUBSTITUTE($AB94,\"{\",CHAR(160),IW$1)),FIND(CHAR(160),SUBSTITUTE($AB94,\"}\",CHAR(160),IW$1))-FIND(CHAR(160),SUBSTITUTE($AB94,\"{\",CHAR(160),IW$1))+1),\"\")","v":""},{"$f":"IFERROR(MID($AB94,FIND(CHAR(160),SUBSTITUTE($AB94,\"{\",CHAR(160),IX$1)),FIND(CHAR(160),SUBSTITUTE($AB94,\"}\",CHAR(160),IX$1))-FIND(CHAR(160),SUBSTITUTE($AB94,\"{\",CHAR(160),IX$1))+1),\"\")","v":""},null,{"$f":"10-COUNTIF(DU94:ED94,\"\")","v":2}]
["C&I HVAC - Oil","VFD: Supply Fan on VAV Packaged or Rooftop HVAC Unit","SFP","2021-07-01","2022-06-30","Calculated","{Measure:Quantity}*if({Motor HP}=5,2425,if({Motor HP}=7.5,2648,if({Motor HP}=10,2871,if({Motor HP}=15,3317,if({Motor HP}=20,3763,if({Motor HP}=25,4209,if({Motor HP}=30,4655,0)))))))",0,"Calculated","{Measure:Quantity}*if({Motor HP}=5,400,if({Motor HP}=7.5,650,if({Motor HP}=10,1400,if({Motor HP}=15,1650,if({Motor HP}=20,1850,if({Motor HP}=25,2000,if({Motor HP}=30,2300,0)))))))",0,"2021-05-25","2022-06-30","Calculated","{Measure:Quantity}*{Motor HP}*2033",null,null,"{Measure:Quantity}*{Motor HP}*.288",null,null,"{Measure:Quantity}*{Factor:WinterCF}*{Motor HP}*.288","{Measure:Quantity}*{Factor:SummerCF}*{Motor HP}*.288",null,null,null,null,null,null,"2021-05-24","2022-06-30",13,0.14599999999999999,0.48699999999999999,0.39,0.30499999999999999,0.216,8.8999999999999996E-2,1,1.1220000000000001,1,0.52,1.6E-2,null,{"$f":"DU95","v":"{Measure:Quantity}"},1,{"$f":"DV95","v":"{Motor HP}"},5,{"$f":"DW95","v":""},null,{"$f":"DX95","v":""},null,{"$f":"DY95","v":""},null,{"$f":"DZ95","v":""},null,{"$f":"EA95","v":""},null,{"$f":"EB95","v":""},null,{"$f":"EC95","v":""},null,{"$f":"ED95","v":""},null,{"$f":"AS95*AU95*2033","v":10165},0,0,{"$f":"AS95*AU95*0.288","v":1.44},0,0,{"$f":"AS95*AF95*AU95*0.288","v":0.21023999999999998},{"$f":"AS95*AG95*AU95*0.288","v":0.70128000000000001},0,0,0,0,0,0,null,"Res","Default DR",{"$f":"Benefits(BL95,BR95,BS95,BT95,BU95,BV95,BW95,BX95,BY95,BZ95,AE95,AH95,AI95,AJ95,AK95,AL95,AM95,AN95,AO95,AP95,CA95,CB95)","v":13744.956792968991},1878.4068826873533,0,0,0,0,0,0,0,{"$f":"SUMPRODUCT(CC95:CK95,--(CC95:CK95>0))","v":15623.363675656345},{"$f":"-SUMPRODUCT(CC95:CK95,--(CC95:CK95<0))","v":0},null,{"$f":"AS95*IF(AU95=5,2425,IF(AU95=7.5,2648,IF(AU95=10,2871,IF(AU95=15,3317,IF(AU95=20,3763,IF(AU95=25,4209,IF(AU95=30,4655,0)))))))","v":2425},null,null,{"$f":"CM95+CO95","v":2425},{"$f":"IF(NetOrGross=\"Net\",(1-AO95+AP95),1)","v":1},{"$f":"(SUMPRODUCT(CC95:CJ95,--(CC95:CJ95>0))+CN95)*CS95/((-SUMPRODUCT(CC95:CJ95,--(CC95:CJ95<0))+MAX(CO95,CV95)+CP95+CQ95)*CS95+IF(FRIncentives=\"Yes\",CV95*(1-CS95),0))","v":6.4426241961469461},1,{"$f":"AS95*IF(AU95=5,400,IF(AU95=7.5,650,IF(AU95=10,1400,IF(AU95=15,1650,IF(AU95=20,1850,IF(AU95=25,2000,IF(AU95=30,2300,0)))))))","v":400},null,"RGGI","y",null,{"$f":"IF(F95=\"Manual Entry\",\"Manual\",IF(G95=\"\",0,\"X=\"&SUBSTITUTE(SUBSTITUTE(SUBSTITUTE(SUBSTITUTE(SUBSTITUTE(SUBSTITUTE(SUBSTITUTE(SUBSTITUTE(SUBSTITUTE(SUBSTITUTE(SUBSTITUTE(SUBSTITUTE(G95,$ED95,$ED$2&ROW($ED95)),$EC95,$EC$2&ROW($EC95)),$EB95,$EB$2&ROW($EB95)),$EA95,$EA$2&ROW($EA95)),$DZ95,$DZ$2&ROW($DZ95)),$DY95,$DY$2&ROW($DY95)),$DX95,$DX$2&ROW($DX95)),$DW95,$DW$2&ROW($DW95)),$DV95,$DV$2&ROW($DV95)),$DU95,$DU$2&ROW($DU95)),$DT95,$DT$2&ROW($DT95)),$DS95,$DS$2&ROW($DS95))))","v":"X=AS95*if(AU95=5,2425,if(AU95=7.5,2648,if(AU95=10,2871,if(AU95=15,3317,if(AU95=20,3763,if(AU95=25,4209,if(AU95=30,4655,0)))))))"},{"$f":"IF(I95=\"Manual Entry\",\"Manual\",IF(J95=\"\",0,\"X=\"&SUBSTITUTE(SUBSTITUTE(SUBSTITUTE(SUBSTITUTE(SUBSTITUTE(SUBSTITUTE(SUBSTITUTE(SUBSTITUTE(SUBSTITUTE(SUBSTITUTE(SUBSTITUTE(SUBSTITUTE(J95,$ED95,$ED$2&ROW($ED95)),$EC95,$EC$2&ROW($EC95)),$EB95,$EB$2&ROW($EB95)),$EA95,$EA$2&ROW($EA95)),$DZ95,$DZ$2&ROW($DZ95)),$DY95,$DY$2&ROW($DY95)),$DX95,$DX$2&ROW($DX95)),$DW95,$DW$2&ROW($DW95)),$DV95,$DV$2&ROW($DV95)),$DU95,$DU$2&ROW($DU95)),$DT95,$DT$2&ROW($DT95)),$DS95,$DS$2&ROW($DS95))))","v":"X=AS95*if(AU95=5,400,if(AU95=7.5,650,if(AU95=10,1400,if(AU95=15,1650,if(AU95=20,1850,if(AU95=25,2000,if(AU95=30,2300,0)))))))"},{"$f":"IF(O95=\"\",0,\"X=\"&SUBSTITUTE(SUBSTITUTE(SUBSTITUTE(SUBSTITUTE(SUBSTITUTE(SUBSTITUTE(SUBSTITUTE(SUBSTITUTE(SUBSTITUTE(SUBSTITUTE(SUBSTITUTE(SUBSTITUTE(O95,$ED95,$ED$2&ROW($ED95)),$EC95,$EC$2&ROW($EC95)),$EB95,$EB$2&ROW($EB95)),$EA95,$EA$2&ROW($EA95)),$DZ95,$DZ$2&ROW($DZ95)),$DY95,$DY$2&ROW($DY95)),$DX95,$DX$2&ROW($DX95)),$DW95,$DW$2&ROW($DW95)),$DV95,$DV$2&ROW($DV95)),$DU95,$DU$2&ROW($DU95)),$DT95,$DT$2&ROW($DT95)),$DS95,$DS$2&ROW($DS95)))","v":"X=AS95*AU95*2033"},{"$f":"IF(P95=\"\",0,\"X=\"&SUBSTITUTE(SUBSTITUTE(SUBSTITUTE(SUBSTITUTE(SUBSTITUTE(SUBSTITUTE(SUBSTITUTE(SUBSTITUTE(SUBSTITUTE(SUBSTITUTE(SUBSTITUTE(SUBSTITUTE(P95,$ED95,$ED$2&ROW($ED95)),$EC95,$EC$2&ROW($EC95)),$EB95,$EB$2&ROW($EB95)),$EA95,$EA$2&ROW($EA95)),$DZ95,$DZ$2&ROW($DZ95)),$DY95,$DY$2&ROW($DY95)),$DX95,$DX$2&ROW($DX95)),$DW95,$DW$2&ROW($DW95)),$DV95,$DV$2&ROW($DV95)),$DU95,$DU$2&ROW($DU95)),$DT95,$DT$2&ROW($DT95)),$DS95,$DS$2&ROW($DS95)))","v":0},{"$f":"IF(Q95=\"\",0,\"X=\"&SUBSTITUTE(SUBSTITUTE(SUBSTITUTE(SUBSTITUTE(SUBSTITUTE(SUBSTITUTE(SUBSTITUTE(SUBSTITUTE(SUBSTITUTE(SUBSTITUTE(SUBSTITUTE(SUBSTITUTE(Q95,$ED95,$ED$2&ROW($ED95)),$EC95,$EC$2&ROW($EC95)),$EB95,$EB$2&ROW($EB95)),$EA95,$EA$2&ROW($EA95)),$DZ95,$DZ$2&ROW($DZ95)),$DY95,$DY$2&ROW($DY95)),$DX95,$DX$2&ROW($DX95)),$DW95,$DW$2&ROW($DW95)),$DV95,$DV$2&ROW($DV95)),$DU95,$DU$2&ROW($DU95)),$DT95,$DT$2&ROW($DT95)),$DS95,$DS$2&ROW($DS95)))","v":0},{"$f":"IF(R95=\"\",0,\"X=\"&SUBSTITUTE(SUBSTITUTE(SUBSTITUTE(SUBSTITUTE(SUBSTITUTE(SUBSTITUTE(SUBSTITUTE(SUBSTITUTE(SUBSTITUTE(SUBSTITUTE(SUBSTITUTE(SUBSTITUTE(R95,$ED95,$ED$2&ROW($ED95)),$EC95,$EC$2&ROW($EC95)),$EB95,$EB$2&ROW($EB95)),$EA95,$EA$2&ROW($EA95)),$DZ95,$DZ$2&ROW($DZ95)),$DY95,$DY$2&ROW($DY95)),$DX95,$DX$2&ROW($DX95)),$DW95,$DW$2&ROW($DW95)),$DV95,$DV$2&ROW($DV95)),$DU95,$DU$2&ROW($DU95)),$DT95,$DT$2&ROW($DT95)),$DS95,$DS$2&ROW($DS95)))","v":"X=AS95*AU95*.288"},{"$f":"IF(S95=\"\",0,\"X=\"&SUBSTITUTE(SUBSTITUTE(SUBSTITUTE(SUBSTITUTE(SUBSTITUTE(SUBSTITUTE(SUBSTITUTE(SUBSTITUTE(SUBSTITUTE(SUBSTITUTE(SUBSTITUTE(SUBSTITUTE(S95,$ED95,$ED$2&ROW($ED95)),$EC95,$EC$2&ROW($EC95)),$EB95,$EB$2&ROW($EB95)),$EA95,$EA$2&ROW($EA95)),$DZ95,$DZ$2&ROW($DZ95)),$DY95,$DY$2&ROW($DY95)),$DX95,$DX$2&ROW($DX95)),$DW95,$DW$2&ROW($DW95)),$DV95,$DV$2&ROW($DV95)),$DU95,$DU$2&ROW($DU95)),$DT95,$DT$2&ROW($DT95)),$DS95,$DS$2&ROW($DS95)))","v":0},{"$f":"IF(T95=\"\",0,\"X=\"&SUBSTITUTE(SUBSTITUTE(SUBSTITUTE(SUBSTITUTE(SUBSTITUTE(SUBSTITUTE(SUBSTITUTE(SUBSTITUTE(SUBSTITUTE(SUBSTITUTE(SUBSTITUTE(SUBSTITUTE(T95,$ED95,$ED$2&ROW($ED95)),$EC95,$EC$2&ROW($EC95)),$EB95,$EB$2&ROW($EB95)),$EA95,$EA$2&ROW($EA95)),$DZ95,$DZ$2&ROW($DZ95)),$DY95,$DY$2&ROW($DY95)),$DX95,$DX$2&ROW($DX95)),$DW95,$DW$2&ROW($DW95)),$DV95,$DV$2&ROW($DV95)),$DU95,$DU$2&ROW($DU95)),$DT95,$DT$2&ROW($DT95)),$DS95,$DS$2&ROW($DS95)))","v":0},{"$f":"IF(U95=\"\",0,\"X=\"&SUBSTITUTE(SUBSTITUTE(SUBSTITUTE(SUBSTITUTE(SUBSTITUTE(SUBSTITUTE(SUBSTITUTE(SUBSTITUTE(SUBSTITUTE(SUBSTITUTE(SUBSTITUTE(SUBSTITUTE(U95,$ED95,$ED$2&ROW($ED95)),$EC95,$EC$2&ROW($EC95)),$EB95,$EB$2&ROW($EB95)),$EA95,$EA$2&ROW($EA95)),$DZ95,$DZ$2&ROW($DZ95)),$DY95,$DY$2&ROW($DY95)),$DX95,$DX$2&ROW($DX95)),$DW95,$DW$2&ROW($DW95)),$DV95,$DV$2&ROW($DV95)),$DU95,$DU$2&ROW($DU95)),$DT95,$DT$2&ROW($DT95)),$DS95,$DS$2&ROW($DS95)))","v":"X=AS95*AF95*AU95*.288"},{"$f":"IF(V95=\"\",0,\"X=\"&SUBSTITUTE(SUBSTITUTE(SUBSTITUTE(SUBSTITUTE(SUBSTITUTE(SUBSTITUTE(SUBSTITUTE(SUBSTITUTE(SUBSTITUTE(SUBSTITUTE(SUBSTITUTE(SUBSTITUTE(V95,$ED95,$ED$2&ROW($ED95)),$EC95,$EC$2&ROW($EC95)),$EB95,$EB$2&ROW($EB95)),$EA95,$EA$2&ROW($EA95)),$DZ95,$DZ$2&ROW($DZ95)),$DY95,$DY$2&ROW($DY95)),$DX95,$DX$2&ROW($DX95)),$DW95,$DW$2&ROW($DW95)),$DV95,$DV$2&ROW($DV95)),$DU95,$DU$2&ROW($DU95)),$DT95,$DT$2&ROW($DT95)),$DS95,$DS$2&ROW($DS95)))","v":"X=AS95*AG95*AU95*.288"},{"$f":"IF(W95=\"\",0,\"X=\"&SUBSTITUTE(SUBSTITUTE(SUBSTITUTE(SUBSTITUTE(SUBSTITUTE(SUBSTITUTE(SUBSTITUTE(SUBSTITUTE(SUBSTITUTE(SUBSTITUTE(SUBSTITUTE(SUBSTITUTE(W95,$ED95,$ED$2&ROW($ED95)),$EC95,$EC$2&ROW($EC95)),$EB95,$EB$2&ROW($EB95)),$EA95,$EA$2&ROW($EA95)),$DZ95,$DZ$2&ROW($DZ95)),$DY95,$DY$2&ROW($DY95)),$DX95,$DX$2&ROW($DX95)),$DW95,$DW$2&ROW($DW95)),$DV95,$DV$2&ROW($DV95)),$DU95,$DU$2&ROW($DU95)),$DT95,$DT$2&ROW($DT95)),$DS95,$DS$2&ROW($DS95)))","v":0},{"$f":"IF(X95=\"\",0,\"X=\"&SUBSTITUTE(SUBSTITUTE(SUBSTITUTE(SUBSTITUTE(SUBSTITUTE(SUBSTITUTE(SUBSTITUTE(SUBSTITUTE(SUBSTITUTE(SUBSTITUTE(SUBSTITUTE(SUBSTITUTE(X95,$ED95,$ED$2&ROW($ED95)),$EC95,$EC$2&ROW($EC95)),$EB95,$EB$2&ROW($EB95)),$EA95,$EA$2&ROW($EA95)),$DZ95,$DZ$2&ROW($DZ95)),$DY95,$DY$2&ROW($DY95)),$DX95,$DX$2&ROW($DX95)),$DW95,$DW$2&ROW($DW95)),$DV95,$DV$2&ROW($DV95)),$DU95,$DU$2&ROW($DU95)),$DT95,$DT$2&ROW($DT95)),$DS95,$DS$2&ROW($DS95)))","v":0},{"$f":"IF(Y95=\"\",0,\"X=\"&SUBSTITUTE(SUBSTITUTE(SUBSTITUTE(SUBSTITUTE(SUBSTITUTE(SUBSTITUTE(SUBSTITUTE(SUBSTITUTE(SUBSTITUTE(SUBSTITUTE(SUBSTITUTE(SUBSTITUTE(Y95,$ED95,$ED$2&ROW($ED95)),$EC95,$EC$2&ROW($EC95)),$EB95,$EB$2&ROW($EB95)),$EA95,$EA$2&ROW($EA95)),$DZ95,$DZ$2&ROW($DZ95)),$DY95,$DY$2&ROW($DY95)),$DX95,$DX$2&ROW($DX95)),$DW95,$DW$2&ROW($DW95)),$DV95,$DV$2&ROW($DV95)),$DU95,$DU$2&ROW($DU95)),$DT95,$DT$2&ROW($DT95)),$DS95,$DS$2&ROW($DS95)))","v":0},{"$f":"IF(Z95=\"\",0,\"X=\"&SUBSTITUTE(SUBSTITUTE(SUBSTITUTE(SUBSTITUTE(SUBSTITUTE(SUBSTITUTE(SUBSTITUTE(SUBSTITUTE(SUBSTITUTE(SUBSTITUTE(SUBSTITUTE(SUBSTITUTE(Z95,$ED95,$ED$2&ROW($ED95)),$EC95,$EC$2&ROW($EC95)),$EB95,$EB$2&ROW($EB95)),$EA95,$EA$2&ROW($EA95)),$DZ95,$DZ$2&ROW($DZ95)),$DY95,$DY$2&ROW($DY95)),$DX95,$DX$2&ROW($DX95)),$DW95,$DW$2&ROW($DW95)),$DV95,$DV$2&ROW($DV95)),$DU95,$DU$2&ROW($DU95)),$DT95,$DT$2&ROW($DT95)),$DS95,$DS$2&ROW($DS95)))","v":0},{"$f":"IF(AA95=\"\",0,\"X=\"&SUBSTITUTE(SUBSTITUTE(SUBSTITUTE(SUBSTITUTE(SUBSTITUTE(SUBSTITUTE(SUBSTITUTE(SUBSTITUTE(SUBSTITUTE(SUBSTITUTE(SUBSTITUTE(SUBSTITUTE(AA95,$ED95,$ED$2&ROW($ED95)),$EC95,$EC$2&ROW($EC95)),$EB95,$EB$2&ROW($EB95)),$EA95,$EA$2&ROW($EA95)),$DZ95,$DZ$2&ROW($DZ95)),$DY95,$DY$2&ROW($DY95)),$DX95,$DX$2&ROW($DX95)),$DW95,$DW$2&ROW($DW95)),$DV95,$DV$2&ROW($DV95)),$DU95,$DU$2&ROW($DU95)),$DT95,$DT$2&ROW($DT95)),$DS95,$DS$2&ROW($DS95)))","v":0},{"$f":"IF(AB95=\"\",0,\"X=\"&SUBSTITUTE(SUBSTITUTE(SUBSTITUTE(SUBSTITUTE(SUBSTITUTE(SUBSTITUTE(SUBSTITUTE(SUBSTITUTE(SUBSTITUTE(SUBSTITUTE(SUBSTITUTE(SUBSTITUTE(AB95,$ED95,$ED$2&ROW($ED95)),$EC95,$EC$2&ROW($EC95)),$EB95,$EB$2&ROW($EB95)),$EA95,$EA$2&ROW($EA95)),$DZ95,$DZ$2&ROW($DZ95)),$DY95,$DY$2&ROW($DY95)),$DX95,$DX$2&ROW($DX95)),$DW95,$DW$2&ROW($DW95)),$DV95,$DV$2&ROW($DV95)),$DU95,$DU$2&ROW($DU95)),$DT95,$DT$2&ROW($DT95)),$DS95,$DS$2&ROW($DS95)))","v":0},null,null,"{Factor:WinterCF}","{Factor:SummerCF}",{"$f":"IFERROR(INDEX($EG95:$IV95,MATCH(0,COUNTIF($DR95:DT95,$EG95:$IV95),0)),\"\")","v":"{Measure:Quantity}"},{"$f":"IFERROR(INDEX($EG95:$IV95,MATCH(0,COUNTIF($DR95:DU95,$EG95:$IV95),0)),\"\")","v":"{Motor HP}"},{"$f":"IFERROR(INDEX($EG95:$IV95,MATCH(0,COUNTIF($DR95:DV95,$EG95:$IV95),0)),\"\")","v":""},{"$f":"IFERROR(INDEX($EG95:$IV95,MATCH(0,COUNTIF($DR95:DW95,$EG95:$IV95),0)),\"\")","v":""},{"$f":"IFERROR(INDEX($EG95:$IV95,MATCH(0,COUNTIF($DR95:DX95,$EG95:$IV95),0)),\"\")","v":""},{"$f":"IFERROR(INDEX($EG95:$IV95,MATCH(0,COUNTIF($DR95:DY95,$EG95:$IV95),0)),\"\")","v":""},{"$f":"IFERROR(INDEX($EG95:$IV95,MATCH(0,COUNTIF($DR95:DZ95,$EG95:$IV95),0)),\"\")","v":""},{"$f":"IFERROR(INDEX($EG95:$IV95,MATCH(0,COUNTIF($DR95:EA95,$EG95:$IV95),0)),\"\")","v":""},{"$f":"IFERROR(INDEX($EG95:$IV95,MATCH(0,COUNTIF($DR95:EB95,$EG95:$IV95),0)),\"\")","v":""},{"$f":"IFERROR(INDEX($EG95:$IV95,MATCH(0,COUNTIF($DR95:EC95,$EG95:$IV95),0)),\"\")","v":""},null,null,{"$f":"IFERROR(MID($G95,FIND(CHAR(160),SUBSTITUTE($G95,\"{\",CHAR(160),EG$1)),FIND(CHAR(160),SUBSTITUTE($G95,\"}\",CHAR(160),EG$1))-FIND(CHAR(160),SUBSTITUTE($G95,\"{\",CHAR(160),EG$1))+1),\"\")","v":"{Measure:Quantity}"},{"$f":"IFERROR(MID($G95,FIND(CHAR(160),SUBSTITUTE($G95,\"{\",CHAR(160),EH$1)),FIND(CHAR(160),SUBSTITUTE($G95,\"}\",CHAR(160),EH$1))-FIND(CHAR(160),SUBSTITUTE($G95,\"{\",CHAR(160),EH$1))+1),\"\")","v":"{Motor HP}"},{"$f":"IFERROR(MID($G95,FIND(CHAR(160),SUBSTITUTE($G95,\"{\",CHAR(160),EI$1)),FIND(CHAR(160),SUBSTITUTE($G95,\"}\",CHAR(160),EI$1))-FIND(CHAR(160),SUBSTITUTE($G95,\"{\",CHAR(160),EI$1))+1),\"\")","v":"{Motor HP}"},{"$f":"IFERROR(MID($G95,FIND(CHAR(160),SUBSTITUTE($G95,\"{\",CHAR(160),EJ$1)),FIND(CHAR(160),SUBSTITUTE($G95,\"}\",CHAR(160),EJ$1))-FIND(CHAR(160),SUBSTITUTE($G95,\"{\",CHAR(160),EJ$1))+1),\"\")","v":"{Motor HP}"},{"$f":"IFERROR(MID($G95,FIND(CHAR(160),SUBSTITUTE($G95,\"{\",CHAR(160),EK$1)),FIND(CHAR(160),SUBSTITUTE($G95,\"}\",CHAR(160),EK$1))-FIND(CHAR(160),SUBSTITUTE($G95,\"{\",CHAR(160),EK$1))+1),\"\")","v":"{Motor HP}"},{"$f":"IFERROR(MID($G95,FIND(CHAR(160),SUBSTITUTE($G95,\"{\",CHAR(160),EL$1)),FIND(CHAR(160),SUBSTITUTE($G95,\"}\",CHAR(160),EL$1))-FIND(CHAR(160),SUBSTITUTE($G95,\"{\",CHAR(160),EL$1))+1),\"\")","v":"{Motor HP}"},{"$f":"IFERROR(MID($G95,FIND(CHAR(160),SUBSTITUTE($G95,\"{\",CHAR(160),EM$1)),FIND(CHAR(160),SUBSTITUTE($G95,\"}\",CHAR(160),EM$1))-FIND(CHAR(160),SUBSTITUTE($G95,\"{\",CHAR(160),EM$1))+1),\"\")","v":"{Motor HP}"},{"$f":"IFERROR(MID($G95,FIND(CHAR(160),SUBSTITUTE($G95,\"{\",CHAR(160),EN$1)),FIND(CHAR(160),SUBSTITUTE($G95,\"}\",CHAR(160),EN$1))-FIND(CHAR(160),SUBSTITUTE($G95,\"{\",CHAR(160),EN$1))+1),\"\")","v":"{Motor HP}"},{"$f":"IFERROR(MID($G95,FIND(CHAR(160),SUBSTITUTE($G95,\"{\",CHAR(160),EO$1)),FIND(CHAR(160),SUBSTITUTE($G95,\"}\",CHAR(160),EO$1))-FIND(CHAR(160),SUBSTITUTE($G95,\"{\",CHAR(160),EO$1))+1),\"\")","v":""},{"$f":"IFERROR(MID($G95,FIND(CHAR(160),SUBSTITUTE($G95,\"{\",CHAR(160),EP$1)),FIND(CHAR(160),SUBSTITUTE($G95,\"}\",CHAR(160),EP$1))-FIND(CHAR(160),SUBSTITUTE($G95,\"{\",CHAR(160),EP$1))+1),\"\")","v":""},{"$f":"IFERROR(MID($J95,FIND(CHAR(160),SUBSTITUTE($J95,\"{\",CHAR(160),EQ$1)),FIND(CHAR(160),SUBSTITUTE($J95,\"}\",CHAR(160),EQ$1))-FIND(CHAR(160),SUBSTITUTE($J95,\"{\",CHAR(160),EQ$1))+1),\"\")","v":"{Measure:Quantity}"},{"$f":"IFERROR(MID($J95,FIND(CHAR(160),SUBSTITUTE($J95,\"{\",CHAR(160),ER$1)),FIND(CHAR(160),SUBSTITUTE($J95,\"}\",CHAR(160),ER$1))-FIND(CHAR(160),SUBSTITUTE($J95,\"{\",CHAR(160),ER$1))+1),\"\")","v":"{Motor HP}"},{"$f":"IFERROR(MID($J95,FIND(CHAR(160),SUBSTITUTE($J95,\"{\",CHAR(160),ES$1)),FIND(CHAR(160),SUBSTITUTE($J95,\"}\",CHAR(160),ES$1))-FIND(CHAR(160),SUBSTITUTE($J95,\"{\",CHAR(160),ES$1))+1),\"\")","v":"{Motor HP}"},{"$f":"IFERROR(MID($J95,FIND(CHAR(160),SUBSTITUTE($J95,\"{\",CHAR(160),ET$1)),FIND(CHAR(160),SUBSTITUTE($J95,\"}\",CHAR(160),ET$1))-FIND(CHAR(160),SUBSTITUTE($J95,\"{\",CHAR(160),ET$1))+1),\"\")","v":"{Motor HP}"},{"$f":"IFERROR(MID($J95,FIND(CHAR(160),SUBSTITUTE($J95,\"{\",CHAR(160),EU$1)),FIND(CHAR(160),SUBSTITUTE($J95,\"}\",CHAR(160),EU$1))-FIND(CHAR(160),SUBSTITUTE($J95,\"{\",CHAR(160),EU$1))+1),\"\")","v":"{Motor HP}"},{"$f":"IFERROR(MID($J95,FIND(CHAR(160),SUBSTITUTE($J95,\"{\",CHAR(160),EV$1)),FIND(CHAR(160),SUBSTITUTE($J95,\"}\",CHAR(160),EV$1))-FIND(CHAR(160),SUBSTITUTE($J95,\"{\",CHAR(160),EV$1))+1),\"\")","v":"{Motor HP}"},{"$f":"IFERROR(MID($J95,FIND(CHAR(160),SUBSTITUTE($J95,\"{\",CHAR(160),EW$1)),FIND(CHAR(160),SUBSTITUTE($J95,\"}\",CHAR(160),EW$1))-FIND(CHAR(160),SUBSTITUTE($J95,\"{\",CHAR(160),EW$1))+1),\"\")","v":"{Motor HP}"},{"$f":"IFERROR(MID($J95,FIND(CHAR(160),SUBSTITUTE($J95,\"{\",CHAR(160),EX$1)),FIND(CHAR(160),SUBSTITUTE($J95,\"}\",CHAR(160),EX$1))-FIND(CHAR(160),SUBSTITUTE($J95,\"{\",CHAR(160),EX$1))+1),\"\")","v":"{Motor HP}"},{"$f":"IFERROR(MID($J95,FIND(CHAR(160),SUBSTITUTE($J95,\"{\",CHAR(160),EY$1)),FIND(CHAR(160),SUBSTITUTE($J95,\"}\",CHAR(160),EY$1))-FIND(CHAR(160),SUBSTITUTE($J95,\"{\",CHAR(160),EY$1))+1),\"\")","v":""},{"$f":"IFERROR(MID($J95,FIND(CHAR(160),SUBSTITUTE($J95,\"{\",CHAR(160),EZ$1)),FIND(CHAR(160),SUBSTITUTE($J95,\"}\",CHAR(160),EZ$1))-FIND(CHAR(160),SUBSTITUTE($J95,\"{\",CHAR(160),EZ$1))+1),\"\")","v":""},{"$f":"IFERROR(MID($J95,FIND(CHAR(160),SUBSTITUTE($J95,\"{\",CHAR(160),FA$1)),FIND(CHAR(160),SUBSTITUTE($J95,\"}\",CHAR(160),FA$1))-FIND(CHAR(160),SUBSTITUTE($J95,\"{\",CHAR(160),FA$1))+1),\"\")","v":"{Measure:Quantity}"},{"$f":"IFERROR(MID($J95,FIND(CHAR(160),SUBSTITUTE($J95,\"{\",CHAR(160),FB$1)),FIND(CHAR(160),SUBSTITUTE($J95,\"}\",CHAR(160),FB$1))-FIND(CHAR(160),SUBSTITUTE($J95,\"{\",CHAR(160),FB$1))+1),\"\")","v":"{Motor HP}"},{"$f":"IFERROR(MID($O95,FIND(CHAR(160),SUBSTITUTE($O95,\"{\",CHAR(160),FC$1)),FIND(CHAR(160),SUBSTITUTE($O95,\"}\",CHAR(160),FC$1))-FIND(CHAR(160),SUBSTITUTE($O95,\"{\",CHAR(160),FC$1))+1),\"\")","v":""},{"$f":"IFERROR(MID($O95,FIND(CHAR(160),SUBSTITUTE($O95,\"{\",CHAR(160),FD$1)),FIND(CHAR(160),SUBSTITUTE($O95,\"}\",CHAR(160),FD$1))-FIND(CHAR(160),SUBSTITUTE($O95,\"{\",CHAR(160),FD$1))+1),\"\")","v":""},{"$f":"IFERROR(MID($O95,FIND(CHAR(160),SUBSTITUTE($O95,\"{\",CHAR(160),FE$1)),FIND(CHAR(160),SUBSTITUTE($O95,\"}\",CHAR(160),FE$1))-FIND(CHAR(160),SUBSTITUTE($O95,\"{\",CHAR(160),FE$1))+1),\"\")","v":""},{"$f":"IFERROR(MID($O95,FIND(CHAR(160),SUBSTITUTE($O95,\"{\",CHAR(160),FF$1)),FIND(CHAR(160),SUBSTITUTE($O95,\"}\",CHAR(160),FF$1))-FIND(CHAR(160),SUBSTITUTE($O95,\"{\",CHAR(160),FF$1))+1),\"\")","v":""},{"$f":"IFERROR(MID($O95,FIND(CHAR(160),SUBSTITUTE($O95,\"{\",CHAR(160),FG$1)),FIND(CHAR(160),SUBSTITUTE($O95,\"}\",CHAR(160),FG$1))-FIND(CHAR(160),SUBSTITUTE($O95,\"{\",CHAR(160),FG$1))+1),\"\")","v":""},{"$f":"IFERROR(MID($O95,FIND(CHAR(160),SUBSTITUTE($O95,\"{\",CHAR(160),FH$1)),FIND(CHAR(160),SUBSTITUTE($O95,\"}\",CHAR(160),FH$1))-FIND(CHAR(160),SUBSTITUTE($O95,\"{\",CHAR(160),FH$1))+1),\"\")","v":""},{"$f":"IFERROR(MID($O95,FIND(CHAR(160),SUBSTITUTE($O95,\"{\",CHAR(160),FI$1)),FIND(CHAR(160),SUBSTITUTE($O95,\"}\",CHAR(160),FI$1))-FIND(CHAR(160),SUBSTITUTE($O95,\"{\",CHAR(160),FI$1))+1),\"\")","v":""},{"$f":"IFERROR(MID($O95,FIND(CHAR(160),SUBSTITUTE($O95,\"{\",CHAR(160),FJ$1)),FIND(CHAR(160),SUBSTITUTE($O95,\"}\",CHAR(160),FJ$1))-FIND(CHAR(160),SUBSTITUTE($O95,\"{\",CHAR(160),FJ$1))+1),\"\")","v":""},{"$f":"IFERROR(MID($O95,FIND(CHAR(160),SUBSTITUTE($O95,\"{\",CHAR(160),FK$1)),FIND(CHAR(160),SUBSTITUTE($O95,\"}\",CHAR(160),FK$1))-FIND(CHAR(160),SUBSTITUTE($O95,\"{\",CHAR(160),FK$1))+1),\"\")","v":"{Measure:Quantity}"},{"$f":"IFERROR(MID($O95,FIND(CHAR(160),SUBSTITUTE($O95,\"{\",CHAR(160),FL$1)),FIND(CHAR(160),SUBSTITUTE($O95,\"}\",CHAR(160),FL$1))-FIND(CHAR(160),SUBSTITUTE($O95,\"{\",CHAR(160),FL$1))+1),\"\")","v":"{Motor HP}"},{"$f":"IFERROR(MID($R95,FIND(CHAR(160),SUBSTITUTE($R95,\"{\",CHAR(160),FM$1)),FIND(CHAR(160),SUBSTITUTE($R95,\"}\",CHAR(160),FM$1))-FIND(CHAR(160),SUBSTITUTE($R95,\"{\",CHAR(160),FM$1))+1),\"\")","v":""},{"$f":"IFERROR(MID($R95,FIND(CHAR(160),SUBSTITUTE($R95,\"{\",CHAR(160),FN$1)),FIND(CHAR(160),SUBSTITUTE($R95,\"}\",CHAR(160),FN$1))-FIND(CHAR(160),SUBSTITUTE($R95,\"{\",CHAR(160),FN$1))+1),\"\")","v":""},{"$f":"IFERROR(MID($R95,FIND(CHAR(160),SUBSTITUTE($R95,\"{\",CHAR(160),FO$1)),FIND(CHAR(160),SUBSTITUTE($R95,\"}\",CHAR(160),FO$1))-FIND(CHAR(160),SUBSTITUTE($R95,\"{\",CHAR(160),FO$1))+1),\"\")","v":""},{"$f":"IFERROR(MID($R95,FIND(CHAR(160),SUBSTITUTE($R95,\"{\",CHAR(160),FP$1)),FIND(CHAR(160),SUBSTITUTE($R95,\"}\",CHAR(160),FP$1))-FIND(CHAR(160),SUBSTITUTE($R95,\"{\",CHAR(160),FP$1))+1),\"\")","v":""},{"$f":"IFERROR(MID($R95,FIND(CHAR(160),SUBSTITUTE($R95,\"{\",CHAR(160),FQ$1)),FIND(CHAR(160),SUBSTITUTE($R95,\"}\",CHAR(160),FQ$1))-FIND(CHAR(160),SUBSTITUTE($R95,\"{\",CHAR(160),FQ$1))+1),\"\")","v":""},{"$f":"IFERROR(MID($R95,FIND(CHAR(160),SUBSTITUTE($R95,\"{\",CHAR(160),FR$1)),FIND(CHAR(160),SUBSTITUTE($R95,\"}\",CHAR(160),FR$1))-FIND(CHAR(160),SUBSTITUTE($R95,\"{\",CHAR(160),FR$1))+1),\"\")","v":""},{"$f":"IFERROR(MID($R95,FIND(CHAR(160),SUBSTITUTE($R95,\"{\",CHAR(160),FS$1)),FIND(CHAR(160),SUBSTITUTE($R95,\"}\",CHAR(160),FS$1))-FIND(CHAR(160),SUBSTITUTE($R95,\"{\",CHAR(160),FS$1))+1),\"\")","v":""},{"$f":"IFERROR(MID($R95,FIND(CHAR(160),SUBSTITUTE($R95,\"{\",CHAR(160),FT$1)),FIND(CHAR(160),SUBSTITUTE($R95,\"}\",CHAR(160),FT$1))-FIND(CHAR(160),SUBSTITUTE($R95,\"{\",CHAR(160),FT$1))+1),\"\")","v":""},{"$f":"IFERROR(MID($R95,FIND(CHAR(160),SUBSTITUTE($R95,\"{\",CHAR(160),FU$1)),FIND(CHAR(160),SUBSTITUTE($R95,\"}\",CHAR(160),FU$1))-FIND(CHAR(160),SUBSTITUTE($R95,\"{\",CHAR(160),FU$1))+1),\"\")","v":"{Measure:Quantity}"},{"$f":"IFERROR(MID($R95,FIND(CHAR(160),SUBSTITUTE($R95,\"{\",CHAR(160),FV$1)),FIND(CHAR(160),SUBSTITUTE($R95,\"}\",CHAR(160),FV$1))-FIND(CHAR(160),SUBSTITUTE($R95,\"{\",CHAR(160),FV$1))+1),\"\")","v":"{Motor HP}"},{"$f":"IFERROR(MID($U95,FIND(CHAR(160),SUBSTITUTE($U95,\"{\",CHAR(160),FW$1)),FIND(CHAR(160),SUBSTITUTE($U95,\"}\",CHAR(160),FW$1))-FIND(CHAR(160),SUBSTITUTE($U95,\"{\",CHAR(160),FW$1))+1),\"\")","v":"{Motor HP}"},{"$f":"IFERROR(MID($U95,FIND(CHAR(160),SUBSTITUTE($U95,\"{\",CHAR(160),FX$1)),FIND(CHAR(160),SUBSTITUTE($U95,\"}\",CHAR(160),FX$1))-FIND(CHAR(160),SUBSTITUTE($U95,\"{\",CHAR(160),FX$1))+1),\"\")","v":""},{"$f":"IFERROR(MID($U95,FIND(CHAR(160),SUBSTITUTE($U95,\"{\",CHAR(160),FY$1)),FIND(CHAR(160),SUBSTITUTE($U95,\"}\",CHAR(160),FY$1))-FIND(CHAR(160),SUBSTITUTE($U95,\"{\",CHAR(160),FY$1))+1),\"\")","v":""},{"$f":"IFERROR(MID($U95,FIND(CHAR(160),SUBSTITUTE($U95,\"{\",CHAR(160),FZ$1)),FIND(CHAR(160),SUBSTITUTE($U95,\"}\",CHAR(160),FZ$1))-FIND(CHAR(160),SUBSTITUTE($U95,\"{\",CHAR(160),FZ$1))+1),\"\")","v":""},{"$f":"IFERROR(MID($U95,FIND(CHAR(160),SUBSTITUTE($U95,\"{\",CHAR(160),GA$1)),FIND(CHAR(160),SUBSTITUTE($U95,\"}\",CHAR(160),GA$1))-FIND(CHAR(160),SUBSTITUTE($U95,\"{\",CHAR(160),GA$1))+1),\"\")","v":""},{"$f":"IFERROR(MID($U95,FIND(CHAR(160),SUBSTITUTE($U95,\"{\",CHAR(160),GB$1)),FIND(CHAR(160),SUBSTITUTE($U95,\"}\",CHAR(160),GB$1))-FIND(CHAR(160),SUBSTITUTE($U95,\"{\",CHAR(160),GB$1))+1),\"\")","v":""},{"$f":"IFERROR(MID($U95,FIND(CHAR(160),SUBSTITUTE($U95,\"{\",CHAR(160),GC$1)),FIND(CHAR(160),SUBSTITUTE($U95,\"}\",CHAR(160),GC$1))-FIND(CHAR(160),SUBSTITUTE($U95,\"{\",CHAR(160),GC$1))+1),\"\")","v":""},{"$f":"IFERROR(MID($U95,FIND(CHAR(160),SUBSTITUTE($U95,\"{\",CHAR(160),GD$1)),FIND(CHAR(160),SUBSTITUTE($U95,\"}\",CHAR(160),GD$1))-FIND(CHAR(160),SUBSTITUTE($U95,\"{\",CHAR(160),GD$1))+1),\"\")","v":""},{"$f":"IFERROR(MID($U95,FIND(CHAR(160),SUBSTITUTE($U95,\"{\",CHAR(160),GE$1)),FIND(CHAR(160),SUBSTITUTE($U95,\"}\",CHAR(160),GE$1))-FIND(CHAR(160),SUBSTITUTE($U95,\"{\",CHAR(160),GE$1))+1),\"\")","v":"{Measure:Quantity}"},{"$f":"IFERROR(MID($U95,FIND(CHAR(160),SUBSTITUTE($U95,\"{\",CHAR(160),GF$1)),FIND(CHAR(160),SUBSTITUTE($U95,\"}\",CHAR(160),GF$1))-FIND(CHAR(160),SUBSTITUTE($U95,\"{\",CHAR(160),GF$1))+1),\"\")","v":"{Factor:WinterCF}"},{"$f":"IFERROR(MID($V95,FIND(CHAR(160),SUBSTITUTE($V95,\"{\",CHAR(160),GG$1)),FIND(CHAR(160),SUBSTITUTE($V95,\"}\",CHAR(160),GG$1))-FIND(CHAR(160),SUBSTITUTE($V95,\"{\",CHAR(160),GG$1))+1),\"\")","v":"{Motor HP}"},{"$f":"IFERROR(MID($V95,FIND(CHAR(160),SUBSTITUTE($V95,\"{\",CHAR(160),GH$1)),FIND(CHAR(160),SUBSTITUTE($V95,\"}\",CHAR(160),GH$1))-FIND(CHAR(160),SUBSTITUTE($V95,\"{\",CHAR(160),GH$1))+1),\"\")","v":""},{"$f":"IFERROR(MID($V95,FIND(CHAR(160),SUBSTITUTE($V95,\"{\",CHAR(160),GI$1)),FIND(CHAR(160),SUBSTITUTE($V95,\"}\",CHAR(160),GI$1))-FIND(CHAR(160),SUBSTITUTE($V95,\"{\",CHAR(160),GI$1))+1),\"\")","v":""},{"$f":"IFERROR(MID($V95,FIND(CHAR(160),SUBSTITUTE($V95,\"{\",CHAR(160),GJ$1)),FIND(CHAR(160),SUBSTITUTE($V95,\"}\",CHAR(160),GJ$1))-FIND(CHAR(160),SUBSTITUTE($V95,\"{\",CHAR(160),GJ$1))+1),\"\")","v":""},{"$f":"IFERROR(MID($V95,FIND(CHAR(160),SUBSTITUTE($V95,\"{\",CHAR(160),GK$1)),FIND(CHAR(160),SUBSTITUTE($V95,\"}\",CHAR(160),GK$1))-FIND(CHAR(160),SUBSTITUTE($V95,\"{\",CHAR(160),GK$1))+1),\"\")","v":""},{"$f":"IFERROR(MID($V95,FIND(CHAR(160),SUBSTITUTE($V95,\"{\",CHAR(160),GL$1)),FIND(CHAR(160),SUBSTITUTE($V95,\"}\",CHAR(160),GL$1))-FIND(CHAR(160),SUBSTITUTE($V95,\"{\",CHAR(160),GL$1))+1),\"\")","v":""},{"$f":"IFERROR(MID($V95,FIND(CHAR(160),SUBSTITUTE($V95,\"{\",CHAR(160),GM$1)),FIND(CHAR(160),SUBSTITUTE($V95,\"}\",CHAR(160),GM$1))-FIND(CHAR(160),SUBSTITUTE($V95,\"{\",CHAR(160),GM$1))+1),\"\")","v":""},{"$f":"IFERROR(MID($V95,FIND(CHAR(160),SUBSTITUTE($V95,\"{\",CHAR(160),GN$1)),FIND(CHAR(160),SUBSTITUTE($V95,\"}\",CHAR(160),GN$1))-FIND(CHAR(160),SUBSTITUTE($V95,\"{\",CHAR(160),GN$1))+1),\"\")","v":""},{"$f":"IFERROR(MID($V95,FIND(CHAR(160),SUBSTITUTE($V95,\"{\",CHAR(160),GO$1)),FIND(CHAR(160),SUBSTITUTE($V95,\"}\",CHAR(160),GO$1))-FIND(CHAR(160),SUBSTITUTE($V95,\"{\",CHAR(160),GO$1))+1),\"\")","v":"{Measure:Quantity}"},{"$f":"IFERROR(MID($V95,FIND(CHAR(160),SUBSTITUTE($V95,\"{\",CHAR(160),GP$1)),FIND(CHAR(160),SUBSTITUTE($V95,\"}\",CHAR(160),GP$1))-FIND(CHAR(160),SUBSTITUTE($V95,\"{\",CHAR(160),GP$1))+1),\"\")","v":"{Factor:SummerCF}"},{"$f":"IFERROR(MID($W95,FIND(CHAR(160),SUBSTITUTE($W95,\"{\",CHAR(160),GQ$1)),FIND(CHAR(160),SUBSTITUTE($W95,\"}\",CHAR(160),GQ$1))-FIND(CHAR(160),SUBSTITUTE($W95,\"{\",CHAR(160),GQ$1))+1),\"\")","v":""},{"$f":"IFERROR(MID($W95,FIND(CHAR(160),SUBSTITUTE($W95,\"{\",CHAR(160),GR$1)),FIND(CHAR(160),SUBSTITUTE($W95,\"}\",CHAR(160),GR$1))-FIND(CHAR(160),SUBSTITUTE($W95,\"{\",CHAR(160),GR$1))+1),\"\")","v":""},{"$f":"IFERROR(MID($W95,FIND(CHAR(160),SUBSTITUTE($W95,\"{\",CHAR(160),GS$1)),FIND(CHAR(160),SUBSTITUTE($W95,\"}\",CHAR(160),GS$1))-FIND(CHAR(160),SUBSTITUTE($W95,\"{\",CHAR(160),GS$1))+1),\"\")","v":""},{"$f":"IFERROR(MID($W95,FIND(CHAR(160),SUBSTITUTE($W95,\"{\",CHAR(160),GT$1)),FIND(CHAR(160),SUBSTITUTE($W95,\"}\",CHAR(160),GT$1))-FIND(CHAR(160),SUBSTITUTE($W95,\"{\",CHAR(160),GT$1))+1),\"\")","v":""},{"$f":"IFERROR(MID($W95,FIND(CHAR(160),SUBSTITUTE($W95,\"{\",CHAR(160),GU$1)),FIND(CHAR(160),SUBSTITUTE($W95,\"}\",CHAR(160),GU$1))-FIND(CHAR(160),SUBSTITUTE($W95,\"{\",CHAR(160),GU$1))+1),\"\")","v":""},{"$f":"IFERROR(MID($W95,FIND(CHAR(160),SUBSTITUTE($W95,\"{\",CHAR(160),GV$1)),FIND(CHAR(160),SUBSTITUTE($W95,\"}\",CHAR(160),GV$1))-FIND(CHAR(160),SUBSTITUTE($W95,\"{\",CHAR(160),GV$1))+1),\"\")","v":""},{"$f":"IFERROR(MID($W95,FIND(CHAR(160),SUBSTITUTE($W95,\"{\",CHAR(160),GW$1)),FIND(CHAR(160),SUBSTITUTE($W95,\"}\",CHAR(160),GW$1))-FIND(CHAR(160),SUBSTITUTE($W95,\"{\",CHAR(160),GW$1))+1),\"\")","v":""},{"$f":"IFERROR(MID($W95,FIND(CHAR(160),SUBSTITUTE($W95,\"{\",CHAR(160),GX$1)),FIND(CHAR(160),SUBSTITUTE($W95,\"}\",CHAR(160),GX$1))-FIND(CHAR(160),SUBSTITUTE($W95,\"{\",CHAR(160),GX$1))+1),\"\")","v":""},{"$f":"IFERROR(MID($W95,FIND(CHAR(160),SUBSTITUTE($W95,\"{\",CHAR(160),GY$1)),FIND(CHAR(160),SUBSTITUTE($W95,\"}\",CHAR(160),GY$1))-FIND(CHAR(160),SUBSTITUTE($W95,\"{\",CHAR(160),GY$1))+1),\"\")","v":""},{"$f":"IFERROR(MID($W95,FIND(CHAR(160),SUBSTITUTE($W95,\"{\",CHAR(160),GZ$1)),FIND(CHAR(160),SUBSTITUTE($W95,\"}\",CHAR(160),GZ$1))-FIND(CHAR(160),SUBSTITUTE($W95,\"{\",CHAR(160),GZ$1))+1),\"\")","v":""},{"$f":"IFERROR(MID($X95,FIND(CHAR(160),SUBSTITUTE($X95,\"{\",CHAR(160),HA$1)),FIND(CHAR(160),SUBSTITUTE($X95,\"}\",CHAR(160),HA$1))-FIND(CHAR(160),SUBSTITUTE($X95,\"{\",CHAR(160),HA$1))+1),\"\")","v":""},{"$f":"IFERROR(MID($X95,FIND(CHAR(160),SUBSTITUTE($X95,\"{\",CHAR(160),HB$1)),FIND(CHAR(160),SUBSTITUTE($X95,\"}\",CHAR(160),HB$1))-FIND(CHAR(160),SUBSTITUTE($X95,\"{\",CHAR(160),HB$1))+1),\"\")","v":""},{"$f":"IFERROR(MID($X95,FIND(CHAR(160),SUBSTITUTE($X95,\"{\",CHAR(160),HC$1)),FIND(CHAR(160),SUBSTITUTE($X95,\"}\",CHAR(160),HC$1))-FIND(CHAR(160),SUBSTITUTE($X95,\"{\",CHAR(160),HC$1))+1),\"\")","v":""},{"$f":"IFERROR(MID($X95,FIND(CHAR(160),SUBSTITUTE($X95,\"{\",CHAR(160),HD$1)),FIND(CHAR(160),SUBSTITUTE($X95,\"}\",CHAR(160),HD$1))-FIND(CHAR(160),SUBSTITUTE($X95,\"{\",CHAR(160),HD$1))+1),\"\")","v":""},{"$f":"IFERROR(MID($X95,FIND(CHAR(160),SUBSTITUTE($X95,\"{\",CHAR(160),HE$1)),FIND(CHAR(160),SUBSTITUTE($X95,\"}\",CHAR(160),HE$1))-FIND(CHAR(160),SUBSTITUTE($X95,\"{\",CHAR(160),HE$1))+1),\"\")","v":""},{"$f":"IFERROR(MID($X95,FIND(CHAR(160),SUBSTITUTE($X95,\"{\",CHAR(160),HF$1)),FIND(CHAR(160),SUBSTITUTE($X95,\"}\",CHAR(160),HF$1))-FIND(CHAR(160),SUBSTITUTE($X95,\"{\",CHAR(160),HF$1))+1),\"\")","v":""},{"$f":"IFERROR(MID($X95,FIND(CHAR(160),SUBSTITUTE($X95,\"{\",CHAR(160),HG$1)),FIND(CHAR(160),SUBSTITUTE($X95,\"}\",CHAR(160),HG$1))-FIND(CHAR(160),SUBSTITUTE($X95,\"{\",CHAR(160),HG$1))+1),\"\")","v":""},{"$f":"IFERROR(MID($X95,FIND(CHAR(160),SUBSTITUTE($X95,\"{\",CHAR(160),HH$1)),FIND(CHAR(160),SUBSTITUTE($X95,\"}\",CHAR(160),HH$1))-FIND(CHAR(160),SUBSTITUTE($X95,\"{\",CHAR(160),HH$1))+1),\"\")","v":""},{"$f":"IFERROR(MID($X95,FIND(CHAR(160),SUBSTITUTE($X95,\"{\",CHAR(160),HI$1)),FIND(CHAR(160),SUBSTITUTE($X95,\"}\",CHAR(160),HI$1))-FIND(CHAR(160),SUBSTITUTE($X95,\"{\",CHAR(160),HI$1))+1),\"\")","v":""},{"$f":"IFERROR(MID($X95,FIND(CHAR(160),SUBSTITUTE($X95,\"{\",CHAR(160),HJ$1)),FIND(CHAR(160),SUBSTITUTE($X95,\"}\",CHAR(160),HJ$1))-FIND(CHAR(160),SUBSTITUTE($X95,\"{\",CHAR(160),HJ$1))+1),\"\")","v":""},{"$f":"IFERROR(MID($Y95,FIND(CHAR(160),SUBSTITUTE($Y95,\"{\",CHAR(160),HK$1)),FIND(CHAR(160),SUBSTITUTE($Y95,\"}\",CHAR(160),HK$1))-FIND(CHAR(160),SUBSTITUTE($Y95,\"{\",CHAR(160),HK$1))+1),\"\")","v":""},{"$f":"IFERROR(MID($Y95,FIND(CHAR(160),SUBSTITUTE($Y95,\"{\",CHAR(160),HL$1)),FIND(CHAR(160),SUBSTITUTE($Y95,\"}\",CHAR(160),HL$1))-FIND(CHAR(160),SUBSTITUTE($Y95,\"{\",CHAR(160),HL$1))+1),\"\")","v":""},{"$f":"IFERROR(MID($Y95,FIND(CHAR(160),SUBSTITUTE($Y95,\"{\",CHAR(160),HM$1)),FIND(CHAR(160),SUBSTITUTE($Y95,\"}\",CHAR(160),HM$1))-FIND(CHAR(160),SUBSTITUTE($Y95,\"{\",CHAR(160),HM$1))+1),\"\")","v":""},{"$f":"IFERROR(MID($Y95,FIND(CHAR(160),SUBSTITUTE($Y95,\"{\",CHAR(160),HN$1)),FIND(CHAR(160),SUBSTITUTE($Y95,\"}\",CHAR(160),HN$1))-FIND(CHAR(160),SUBSTITUTE($Y95,\"{\",CHAR(160),HN$1))+1),\"\")","v":""},{"$f":"IFERROR(MID($Y95,FIND(CHAR(160),SUBSTITUTE($Y95,\"{\",CHAR(160),HO$1)),FIND(CHAR(160),SUBSTITUTE($Y95,\"}\",CHAR(160),HO$1))-FIND(CHAR(160),SUBSTITUTE($Y95,\"{\",CHAR(160),HO$1))+1),\"\")","v":""},{"$f":"IFERROR(MID($Y95,FIND(CHAR(160),SUBSTITUTE($Y95,\"{\",CHAR(160),HP$1)),FIND(CHAR(160),SUBSTITUTE($Y95,\"}\",CHAR(160),HP$1))-FIND(CHAR(160),SUBSTITUTE($Y95,\"{\",CHAR(160),HP$1))+1),\"\")","v":""},{"$f":"IFERROR(MID($Y95,FIND(CHAR(160),SUBSTITUTE($Y95,\"{\",CHAR(160),HQ$1)),FIND(CHAR(160),SUBSTITUTE($Y95,\"}\",CHAR(160),HQ$1))-FIND(CHAR(160),SUBSTITUTE($Y95,\"{\",CHAR(160),HQ$1))+1),\"\")","v":""},{"$f":"IFERROR(MID($Y95,FIND(CHAR(160),SUBSTITUTE($Y95,\"{\",CHAR(160),HR$1)),FIND(CHAR(160),SUBSTITUTE($Y95,\"}\",CHAR(160),HR$1))-FIND(CHAR(160),SUBSTITUTE($Y95,\"{\",CHAR(160),HR$1))+1),\"\")","v":""},{"$f":"IFERROR(MID($Y95,FIND(CHAR(160),SUBSTITUTE($Y95,\"{\",CHAR(160),HS$1)),FIND(CHAR(160),SUBSTITUTE($Y95,\"}\",CHAR(160),HS$1))-FIND(CHAR(160),SUBSTITUTE($Y95,\"{\",CHAR(160),HS$1))+1),\"\")","v":""},{"$f":"IFERROR(MID($Y95,FIND(CHAR(160),SUBSTITUTE($Y95,\"{\",CHAR(160),HT$1)),FIND(CHAR(160),SUBSTITUTE($Y95,\"}\",CHAR(160),HT$1))-FIND(CHAR(160),SUBSTITUTE($Y95,\"{\",CHAR(160),HT$1))+1),\"\")","v":""},{"$f":"IFERROR(MID($Z95,FIND(CHAR(160),SUBSTITUTE($Z95,\"{\",CHAR(160),HU$1)),FIND(CHAR(160),SUBSTITUTE($Z95,\"}\",CHAR(160),HU$1))-FIND(CHAR(160),SUBSTITUTE($Z95,\"{\",CHAR(160),HU$1))+1),\"\")","v":""},{"$f":"IFERROR(MID($Z95,FIND(CHAR(160),SUBSTITUTE($Z95,\"{\",CHAR(160),HV$1)),FIND(CHAR(160),SUBSTITUTE($Z95,\"}\",CHAR(160),HV$1))-FIND(CHAR(160),SUBSTITUTE($Z95,\"{\",CHAR(160),HV$1))+1),\"\")","v":""},{"$f":"IFERROR(MID($Z95,FIND(CHAR(160),SUBSTITUTE($Z95,\"{\",CHAR(160),HW$1)),FIND(CHAR(160),SUBSTITUTE($Z95,\"}\",CHAR(160),HW$1))-FIND(CHAR(160),SUBSTITUTE($Z95,\"{\",CHAR(160),HW$1))+1),\"\")","v":""},{"$f":"IFERROR(MID($Z95,FIND(CHAR(160),SUBSTITUTE($Z95,\"{\",CHAR(160),HX$1)),FIND(CHAR(160),SUBSTITUTE($Z95,\"}\",CHAR(160),HX$1))-FIND(CHAR(160),SUBSTITUTE($Z95,\"{\",CHAR(160),HX$1))+1),\"\")","v":""},{"$f":"IFERROR(MID($Z95,FIND(CHAR(160),SUBSTITUTE($Z95,\"{\",CHAR(160),HY$1)),FIND(CHAR(160),SUBSTITUTE($Z95,\"}\",CHAR(160),HY$1))-FIND(CHAR(160),SUBSTITUTE($Z95,\"{\",CHAR(160),HY$1))+1),\"\")","v":""},{"$f":"IFERROR(MID($Z95,FIND(CHAR(160),SUBSTITUTE($Z95,\"{\",CHAR(160),HZ$1)),FIND(CHAR(160),SUBSTITUTE($Z95,\"}\",CHAR(160),HZ$1))-FIND(CHAR(160),SUBSTITUTE($Z95,\"{\",CHAR(160),HZ$1))+1),\"\")","v":""},{"$f":"IFERROR(MID($Z95,FIND(CHAR(160),SUBSTITUTE($Z95,\"{\",CHAR(160),IA$1)),FIND(CHAR(160),SUBSTITUTE($Z95,\"}\",CHAR(160),IA$1))-FIND(CHAR(160),SUBSTITUTE($Z95,\"{\",CHAR(160),IA$1))+1),\"\")","v":""},{"$f":"IFERROR(MID($Z95,FIND(CHAR(160),SUBSTITUTE($Z95,\"{\",CHAR(160),IB$1)),FIND(CHAR(160),SUBSTITUTE($Z95,\"}\",CHAR(160),IB$1))-FIND(CHAR(160),SUBSTITUTE($Z95,\"{\",CHAR(160),IB$1))+1),\"\")","v":""},{"$f":"IFERROR(MID($Z95,FIND(CHAR(160),SUBSTITUTE($Z95,\"{\",CHAR(160),IC$1)),FIND(CHAR(160),SUBSTITUTE($Z95,\"}\",CHAR(160),IC$1))-FIND(CHAR(160),SUBSTITUTE($Z95,\"{\",CHAR(160),IC$1))+1),\"\")","v":""},{"$f":"IFERROR(MID($Z95,FIND(CHAR(160),SUBSTITUTE($Z95,\"{\",CHAR(160),ID$1)),FIND(CHAR(160),SUBSTITUTE($Z95,\"}\",CHAR(160),ID$1))-FIND(CHAR(160),SUBSTITUTE($Z95,\"{\",CHAR(160),ID$1))+1),\"\")","v":""},{"$f":"IFERROR(MID($AA95,FIND(CHAR(160),SUBSTITUTE($AA95,\"{\",CHAR(160),IE$1)),FIND(CHAR(160),SUBSTITUTE($AA95,\"}\",CHAR(160),IE$1))-FIND(CHAR(160),SUBSTITUTE($AA95,\"{\",CHAR(160),IE$1))+1),\"\")","v":""},{"$f":"IFERROR(MID($AA95,FIND(CHAR(160),SUBSTITUTE($AA95,\"{\",CHAR(160),IF$1)),FIND(CHAR(160),SUBSTITUTE($AA95,\"}\",CHAR(160),IF$1))-FIND(CHAR(160),SUBSTITUTE($AA95,\"{\",CHAR(160),IF$1))+1),\"\")","v":""},{"$f":"IFERROR(MID($AA95,FIND(CHAR(160),SUBSTITUTE($AA95,\"{\",CHAR(160),IG$1)),FIND(CHAR(160),SUBSTITUTE($AA95,\"}\",CHAR(160),IG$1))-FIND(CHAR(160),SUBSTITUTE($AA95,\"{\",CHAR(160),IG$1))+1),\"\")","v":""},{"$f":"IFERROR(MID($AA95,FIND(CHAR(160),SUBSTITUTE($AA95,\"{\",CHAR(160),IH$1)),FIND(CHAR(160),SUBSTITUTE($AA95,\"}\",CHAR(160),IH$1))-FIND(CHAR(160),SUBSTITUTE($AA95,\"{\",CHAR(160),IH$1))+1),\"\")","v":""},{"$f":"IFERROR(MID($AA95,FIND(CHAR(160),SUBSTITUTE($AA95,\"{\",CHAR(160),II$1)),FIND(CHAR(160),SUBSTITUTE($AA95,\"}\",CHAR(160),II$1))-FIND(CHAR(160),SUBSTITUTE($AA95,\"{\",CHAR(160),II$1))+1),\"\")","v":""},{"$f":"IFERROR(MID($AA95,FIND(CHAR(160),SUBSTITUTE($AA95,\"{\",CHAR(160),IJ$1)),FIND(CHAR(160),SUBSTITUTE($AA95,\"}\",CHAR(160),IJ$1))-FIND(CHAR(160),SUBSTITUTE($AA95,\"{\",CHAR(160),IJ$1))+1),\"\")","v":""},{"$f":"IFERROR(MID($AA95,FIND(CHAR(160),SUBSTITUTE($AA95,\"{\",CHAR(160),IK$1)),FIND(CHAR(160),SUBSTITUTE($AA95,\"}\",CHAR(160),IK$1))-FIND(CHAR(160),SUBSTITUTE($AA95,\"{\",CHAR(160),IK$1))+1),\"\")","v":""},{"$f":"IFERROR(MID($AA95,FIND(CHAR(160),SUBSTITUTE($AA95,\"{\",CHAR(160),IL$1)),FIND(CHAR(160),SUBSTITUTE($AA95,\"}\",CHAR(160),IL$1))-FIND(CHAR(160),SUBSTITUTE($AA95,\"{\",CHAR(160),IL$1))+1),\"\")","v":""},{"$f":"IFERROR(MID($AA95,FIND(CHAR(160),SUBSTITUTE($AA95,\"{\",CHAR(160),IM$1)),FIND(CHAR(160),SUBSTITUTE($AA95,\"}\",CHAR(160),IM$1))-FIND(CHAR(160),SUBSTITUTE($AA95,\"{\",CHAR(160),IM$1))+1),\"\")","v":""},{"$f":"IFERROR(MID($AA95,FIND(CHAR(160),SUBSTITUTE($AA95,\"{\",CHAR(160),IN$1)),FIND(CHAR(160),SUBSTITUTE($AA95,\"}\",CHAR(160),IN$1))-FIND(CHAR(160),SUBSTITUTE($AA95,\"{\",CHAR(160),IN$1))+1),\"\")","v":""},{"$f":"IFERROR(MID($AB95,FIND(CHAR(160),SUBSTITUTE($AB95,\"{\",CHAR(160),IO$1)),FIND(CHAR(160),SUBSTITUTE($AB95,\"}\",CHAR(160),IO$1))-FIND(CHAR(160),SUBSTITUTE($AB95,\"{\",CHAR(160),IO$1))+1),\"\")","v":""},{"$f":"IFERROR(MID($AB95,FIND(CHAR(160),SUBSTITUTE($AB95,\"{\",CHAR(160),IP$1)),FIND(CHAR(160),SUBSTITUTE($AB95,\"}\",CHAR(160),IP$1))-FIND(CHAR(160),SUBSTITUTE($AB95,\"{\",CHAR(160),IP$1))+1),\"\")","v":""},{"$f":"IFERROR(MID($AB95,FIND(CHAR(160),SUBSTITUTE($AB95,\"{\",CHAR(160),IQ$1)),FIND(CHAR(160),SUBSTITUTE($AB95,\"}\",CHAR(160),IQ$1))-FIND(CHAR(160),SUBSTITUTE($AB95,\"{\",CHAR(160),IQ$1))+1),\"\")","v":""},{"$f":"IFERROR(MID($AB95,FIND(CHAR(160),SUBSTITUTE($AB95,\"{\",CHAR(160),IR$1)),FIND(CHAR(160),SUBSTITUTE($AB95,\"}\",CHAR(160),IR$1))-FIND(CHAR(160),SUBSTITUTE($AB95,\"{\",CHAR(160),IR$1))+1),\"\")","v":""},{"$f":"IFERROR(MID($AB95,FIND(CHAR(160),SUBSTITUTE($AB95,\"{\",CHAR(160),IS$1)),FIND(CHAR(160),SUBSTITUTE($AB95,\"}\",CHAR(160),IS$1))-FIND(CHAR(160),SUBSTITUTE($AB95,\"{\",CHAR(160),IS$1))+1),\"\")","v":""},{"$f":"IFERROR(MID($AB95,FIND(CHAR(160),SUBSTITUTE($AB95,\"{\",CHAR(160),IT$1)),FIND(CHAR(160),SUBSTITUTE($AB95,\"}\",CHAR(160),IT$1))-FIND(CHAR(160),SUBSTITUTE($AB95,\"{\",CHAR(160),IT$1))+1),\"\")","v":""},{"$f":"IFERROR(MID($AB95,FIND(CHAR(160),SUBSTITUTE($AB95,\"{\",CHAR(160),IU$1)),FIND(CHAR(160),SUBSTITUTE($AB95,\"}\",CHAR(160),IU$1))-FIND(CHAR(160),SUBSTITUTE($AB95,\"{\",CHAR(160),IU$1))+1),\"\")","v":""},{"$f":"IFERROR(MID($AB95,FIND(CHAR(160),SUBSTITUTE($AB95,\"{\",CHAR(160),IV$1)),FIND(CHAR(160),SUBSTITUTE($AB95,\"}\",CHAR(160),IV$1))-FIND(CHAR(160),SUBSTITUTE($AB95,\"{\",CHAR(160),IV$1))+1),\"\")","v":""},{"$f":"IFERROR(MID($AB95,FIND(CHAR(160),SUBSTITUTE($AB95,\"{\",CHAR(160),IW$1)),FIND(CHAR(160),SUBSTITUTE($AB95,\"}\",CHAR(160),IW$1))-FIND(CHAR(160),SUBSTITUTE($AB95,\"{\",CHAR(160),IW$1))+1),\"\")","v":""},{"$f":"IFERROR(MID($AB95,FIND(CHAR(160),SUBSTITUTE($AB95,\"{\",CHAR(160),IX$1)),FIND(CHAR(160),SUBSTITUTE($AB95,\"}\",CHAR(160),IX$1))-FIND(CHAR(160),SUBSTITUTE($AB95,\"{\",CHAR(160),IX$1))+1),\"\")","v":""},null,{"$f":"10-COUNTIF(DU95:ED95,\"\")","v":2}]
["C&I HVAC - Oil","Energy Recovery Ventilator","ERV","2021-07-01","2022-06-30","Calculated","{Measure:Quantity}*{Ventilation Air Rate}*3.75",0,"Calculated","{Measure:Quantity}*{Ventilation Air Rate}*if({Eff Heating} < 0.65, 2.25, if({Eff Heating} < 0.75, 2.50, if({Eff Heating} < 0.85, 2.75, 3.00)))",0,"2021-05-25","2022-06-30","Calculated","{Measure:Quantity} *(0.0075*60*{Ventilation Air Rate}*{Eff Cooling}*(31.1-28.3)/{SEER}/1000*932*.77-{Ventilation Air Rate}*{Calculated Pressure Drop}/((33013/5.202)*0.67*0.70)*0.746*8760*.77+if({Heating Fuel Type} >=6, 1.08*{Ventilation Air Rate}*(68-36.5)*{Eff Heating}*6492*.77/1000000/{AFUE}/0.003412,0))",null,null,"{Measure:Quantity} *(0.0075*60*{Ventilation Air Rate}*{Eff Cooling}*(31.1-28.3)/{SEER}/1000-{Ventilation Air Rate}*{Calculated Pressure Drop}/((33013/5.202)*0.67*0.70)*0.746)",null,null,"{Measure:Quantity}*-{Ventilation Air Rate}*{Calculated Pressure Drop}/((33013/5.202)*0.67*0.70)*0.746*{Factor:WinterCF}","{Measure:Quantity} *(0.0075*60*{Ventilation Air Rate}*{Eff Cooling}*(31.1-28.3)/{SEER}/1000-{Ventilation Air Rate}*{Calculated Pressure Drop}/((33013/5.202)*0.67*0.70)*0.746)*{Factor:SummerCF}","{Measure:Quantity}*if({Heating Fuel Type} =1, 1.08*{Ventilation Air Rate}*(68-36.5)*{Eff Heating}*6492*.77/1000000/{AFUE},0)*10","{Measure:Quantity}*if({Heating Fuel Type} =2, 1.08*{Ventilation Air Rate}*(68-36.5)*{Eff Heating}*6492*.77/1000000/{AFUE},0)","{Measure:Quantity}*if({Heating Fuel Type} =3, 1.08*{Ventilation Air Rate}*(68-36.5)*{Eff Heating}*6492*.77/1000000/{AFUE},0)","{Measure:Quantity}*if({Heating Fuel Type} =4, 1.08*{Ventilation Air Rate}*(68-36.5)*{Eff Heating}*6492*.77/1000000/{AFUE},0)","{Measure:Quantity}*if({Heating Fuel Type} =5, 1.08*{Ventilation Air Rate}*(68-36.5)*{Eff Heating}*6492*.77/1000000/{AFUE},0)",null,"2021-05-24","2022-06-30",15,0.7,1,0.40939999999999999,0.25690000000000002,0.2084,0.12529999999999999,1,1,1,0.25,0,null,{"$f":"DU96","v":"{Measure:Quantity}"},1,{"$f":"DV96","v":"{Ventilation Air Rate}"},1000,{"$f":"DW96","v":"{Eff Heating}"},0.68,{"$f":"DX96","v":"{Eff Cooling}"},0.65,{"$f":"DY96","v":"{SEER}"},18,{"$f":"DZ96","v":"{Calculated Pressure Drop}"},1,{"$f":"EA96","v":"{Heating Fuel Type}"},3,{"$f":"EB96","v":"{AFUE}"},0.88,{"$f":"EC96","v":""},null,{"$f":"ED96","v":""},null,{"$f":"AS96 *(0.0075*60*AU96*AY96*(31.1-28.3)/BA96/1000*932*0.77-AU96*BC96/((33013/5.202)*0.67*0.7)*0.746*8760*0.77+IF(BE96 >=6, 1.08*AU96*(68-36.5)*AW96*6492*0.77/1000000/BG96/0.003412,0))","v":-1657.9680406081457},0,0,{"$f":"AS96 *(0.0075*60*AU96*AY96*(31.1-28.3)/BA96/1000-AU96*BC96/((33013/5.202)*0.67*0.7)*0.746)","v":-0.20514055337249384},0,0,{"$f":"AS96*-AU96*BC96/((33013/5.202)*0.67*0.7)*0.746*AF96","v":-0.17544838736074569},{"$f":"AS96 *(0.0075*60*AU96*AY96*(31.1-28.3)/BA96/1000-AU96*BC96/((33013/5.202)*0.67*0.7)*0.746)*AG96","v":-0.20514055337249384},{"$f":"AS96*IF(BE96 =1, 1.08*AU96*(68-36.5)*AW96*6492*0.77/1000000/BG96,0)*10","v":0},{"$f":"AS96*IF(BE96 =2, 1.08*AU96*(68-36.5)*AW96*6492*0.77/1000000/BG96,0)","v":0},{"$f":"AS96*IF(BE96 =3, 1.08*AU96*(68-36.5)*AW96*6492*0.77/1000000/BG96,0)","v":131.41041480000001},{"$f":"AS96*IF(BE96 =4, 1.08*AU96*(68-36.5)*AW96*6492*0.77/1000000/BG96,0)","v":0},{"$f":"AS96*IF(BE96 =5, 1.08*AU96*(68-36.5)*AW96*6492*0.77/1000000/BG96,0)","v":0},0,null,"Res","Default DR",{"$f":"Benefits(BL96,BR96,BS96,BT96,BU96,BV96,BW96,BX96,BY96,BZ96,AE96,AH96,AI96,AJ96,AK96,AL96,AM96,AN96,AO96,AP96,CA96,CB96)","v":-2208.8075904760549},-1046.9169928264869,0,55443.515624426,0,0,0,0,0,{"$f":"SUMPRODUCT(CC96:CK96,--(CC96:CK96>0))","v":55443.515624426},{"$f":"-SUMPRODUCT(CC96:CK96,--(CC96:CK96<0))","v":3255.7245833025418},null,{"$f":"AS96*AU96*3.75","v":3750},null,null,{"$f":"CM96+CO96","v":7005.7245833025418},{"$f":"IF(NetOrGross=\"Net\",(1-AO96+AP96),1)","v":1},{"$f":"(SUMPRODUCT(CC96:CJ96,--(CC96:CJ96>0))+CN96)*CS96/((-SUMPRODUCT(CC96:CJ96,--(CC96:CJ96<0))+MAX(CO96,CV96)+CP96+CQ96)*CS96+IF(FRIncentives=\"Yes\",CV96*(1-CS96),0))","v":7.9140301570761418},1,{"$f":"AS96*AU96*IF(AW96 < 0.65, 2.25, IF(AW96 < 0.75, 2.5, IF(AW96 < 0.85, 2.75, 3)))","v":2500},null,"Electric","y",null,{"$f":"IF(F96=\"Manual Entry\",\"Manual\",IF(G96=\"\",0,\"X=\"&SUBSTITUTE(SUBSTITUTE(SUBSTITUTE(SUBSTITUTE(SUBSTITUTE(SUBSTITUTE(SUBSTITUTE(SUBSTITUTE(SUBSTITUTE(SUBSTITUTE(SUBSTITUTE(SUBSTITUTE(G96,$ED96,$ED$2&ROW($ED96)),$EC96,$EC$2&ROW($EC96)),$EB96,$EB$2&ROW($EB96)),$EA96,$EA$2&ROW($EA96)),$DZ96,$DZ$2&ROW($DZ96)),$DY96,$DY$2&ROW($DY96)),$DX96,$DX$2&ROW($DX96)),$DW96,$DW$2&ROW($DW96)),$DV96,$DV$2&ROW($DV96)),$DU96,$DU$2&ROW($DU96)),$DT96,$DT$2&ROW($DT96)),$DS96,$DS$2&ROW($DS96))))","v":"X=AS96*AU96*3.75"},{"$f":"IF(I96=\"Manual Entry\",\"Manual\",IF(J96=\"\",0,\"X=\"&SUBSTITUTE(SUBSTITUTE(SUBSTITUTE(SUBSTITUTE(SUBSTITUTE(SUBSTITUTE(SUBSTITUTE(SUBSTITUTE(SUBSTITUTE(SUBSTITUTE(SUBSTITUTE(SUBSTITUTE(J96,$ED96,$ED$2&ROW($ED96)),$EC96,$EC$2&ROW($EC96)),$EB96,$EB$2&ROW($EB96)),$EA96,$EA$2&ROW($EA96)),$DZ96,$DZ$2&ROW($DZ96)),$DY96,$DY$2&ROW($DY96)),$DX96,$DX$2&ROW($DX96)),$DW96,$DW$2&ROW($DW96)),$DV96,$DV$2&ROW($DV96)),$DU96,$DU$2&ROW($DU96)),$DT96,$DT$2&ROW($DT96)),$DS96,$DS$2&ROW($DS96))))","v":"X=AS96*AU96*if(AW96 < 0.65, 2.25, if(AW96 < 0.75, 2.50, if(AW96 < 0.85, 2.75, 3.00)))"},{"$f":"IF(O96=\"\",0,\"X=\"&SUBSTITUTE(SUBSTITUTE(SUBSTITUTE(SUBSTITUTE(SUBSTITUTE(SUBSTITUTE(SUBSTITUTE(SUBSTITUTE(SUBSTITUTE(SUBSTITUTE(SUBSTITUTE(SUBSTITUTE(O96,$ED96,$ED$2&ROW($ED96)),$EC96,$EC$2&ROW($EC96)),$EB96,$EB$2&ROW($EB96)),$EA96,$EA$2&ROW($EA96)),$DZ96,$DZ$2&ROW($DZ96)),$DY96,$DY$2&ROW($DY96)),$DX96,$DX$2&ROW($DX96)),$DW96,$DW$2&ROW($DW96)),$DV96,$DV$2&ROW($DV96)),$DU96,$DU$2&ROW($DU96)),$DT96,$DT$2&ROW($DT96)),$DS96,$DS$2&ROW($DS96)))","v":"X=AS96 *(0.0075*60*AU96*AY96*(31.1-28.3)/BA96/1000*932*.77-AU96*BC96/((33013/5.202)*0.67*0.70)*0.746*8760*.77+if(BE96 >=6, 1.08*AU96*(68-36.5)*AW96*6492*.77/1000000/BG96/0.003412,0))"},{"$f":"IF(P96=\"\",0,\"X=\"&SUBSTITUTE(SUBSTITUTE(SUBSTITUTE(SUBSTITUTE(SUBSTITUTE(SUBSTITUTE(SUBSTITUTE(SUBSTITUTE(SUBSTITUTE(SUBSTITUTE(SUBSTITUTE(SUBSTITUTE(P96,$ED96,$ED$2&ROW($ED96)),$EC96,$EC$2&ROW($EC96)),$EB96,$EB$2&ROW($EB96)),$EA96,$EA$2&ROW($EA96)),$DZ96,$DZ$2&ROW($DZ96)),$DY96,$DY$2&ROW($DY96)),$DX96,$DX$2&ROW($DX96)),$DW96,$DW$2&ROW($DW96)),$DV96,$DV$2&ROW($DV96)),$DU96,$DU$2&ROW($DU96)),$DT96,$DT$2&ROW($DT96)),$DS96,$DS$2&ROW($DS96)))","v":0},{"$f":"IF(Q96=\"\",0,\"X=\"&SUBSTITUTE(SUBSTITUTE(SUBSTITUTE(SUBSTITUTE(SUBSTITUTE(SUBSTITUTE(SUBSTITUTE(SUBSTITUTE(SUBSTITUTE(SUBSTITUTE(SUBSTITUTE(SUBSTITUTE(Q96,$ED96,$ED$2&ROW($ED96)),$EC96,$EC$2&ROW($EC96)),$EB96,$EB$2&ROW($EB96)),$EA96,$EA$2&ROW($EA96)),$DZ96,$DZ$2&ROW($DZ96)),$DY96,$DY$2&ROW($DY96)),$DX96,$DX$2&ROW($DX96)),$DW96,$DW$2&ROW($DW96)),$DV96,$DV$2&ROW($DV96)),$DU96,$DU$2&ROW($DU96)),$DT96,$DT$2&ROW($DT96)),$DS96,$DS$2&ROW($DS96)))","v":0},{"$f":"IF(R96=\"\",0,\"X=\"&SUBSTITUTE(SUBSTITUTE(SUBSTITUTE(SUBSTITUTE(SUBSTITUTE(SUBSTITUTE(SUBSTITUTE(SUBSTITUTE(SUBSTITUTE(SUBSTITUTE(SUBSTITUTE(SUBSTITUTE(R96,$ED96,$ED$2&ROW($ED96)),$EC96,$EC$2&ROW($EC96)),$EB96,$EB$2&ROW($EB96)),$EA96,$EA$2&ROW($EA96)),$DZ96,$DZ$2&ROW($DZ96)),$DY96,$DY$2&ROW($DY96)),$DX96,$DX$2&ROW($DX96)),$DW96,$DW$2&ROW($DW96)),$DV96,$DV$2&ROW($DV96)),$DU96,$DU$2&ROW($DU96)),$DT96,$DT$2&ROW($DT96)),$DS96,$DS$2&ROW($DS96)))","v":"X=AS96 *(0.0075*60*AU96*AY96*(31.1-28.3)/BA96/1000-AU96*BC96/((33013/5.202)*0.67*0.70)*0.746)"},{"$f":"IF(S96=\"\",0,\"X=\"&SUBSTITUTE(SUBSTITUTE(SUBSTITUTE(SUBSTITUTE(SUBSTITUTE(SUBSTITUTE(SUBSTITUTE(SUBSTITUTE(SUBSTITUTE(SUBSTITUTE(SUBSTITUTE(SUBSTITUTE(S96,$ED96,$ED$2&ROW($ED96)),$EC96,$EC$2&ROW($EC96)),$EB96,$EB$2&ROW($EB96)),$EA96,$EA$2&ROW($EA96)),$DZ96,$DZ$2&ROW($DZ96)),$DY96,$DY$2&ROW($DY96)),$DX96,$DX$2&ROW($DX96)),$DW96,$DW$2&ROW($DW96)),$DV96,$DV$2&ROW($DV96)),$DU96,$DU$2&ROW($DU96)),$DT96,$DT$2&ROW($DT96)),$DS96,$DS$2&ROW($DS96)))","v":0},{"$f":"IF(T96=\"\",0,\"X=\"&SUBSTITUTE(SUBSTITUTE(SUBSTITUTE(SUBSTITUTE(SUBSTITUTE(SUBSTITUTE(SUBSTITUTE(SUBSTITUTE(SUBSTITUTE(SUBSTITUTE(SUBSTITUTE(SUBSTITUTE(T96,$ED96,$ED$2&ROW($ED96)),$EC96,$EC$2&ROW($EC96)),$EB96,$EB$2&ROW($EB96)),$EA96,$EA$2&ROW($EA96)),$DZ96,$DZ$2&ROW($DZ96)),$DY96,$DY$2&ROW($DY96)),$DX96,$DX$2&ROW($DX96)),$DW96,$DW$2&ROW($DW96)),$DV96,$DV$2&ROW($DV96)),$DU96,$DU$2&ROW($DU96)),$DT96,$DT$2&ROW($DT96)),$DS96,$DS$2&ROW($DS96)))","v":0},{"$f":"IF(U96=\"\",0,\"X=\"&SUBSTITUTE(SUBSTITUTE(SUBSTITUTE(SUBSTITUTE(SUBSTITUTE(SUBSTITUTE(SUBSTITUTE(SUBSTITUTE(SUBSTITUTE(SUBSTITUTE(SUBSTITUTE(SUBSTITUTE(U96,$ED96,$ED$2&ROW($ED96)),$EC96,$EC$2&ROW($EC96)),$EB96,$EB$2&ROW($EB96)),$EA96,$EA$2&ROW($EA96)),$DZ96,$DZ$2&ROW($DZ96)),$DY96,$DY$2&ROW($DY96)),$DX96,$DX$2&ROW($DX96)),$DW96,$DW$2&ROW($DW96)),$DV96,$DV$2&ROW($DV96)),$DU96,$DU$2&ROW($DU96)),$DT96,$DT$2&ROW($DT96)),$DS96,$DS$2&ROW($DS96)))","v":"X=AS96*-AU96*BC96/((33013/5.202)*0.67*0.70)*0.746*AF96"},{"$f":"IF(V96=\"\",0,\"X=\"&SUBSTITUTE(SUBSTITUTE(SUBSTITUTE(SUBSTITUTE(SUBSTITUTE(SUBSTITUTE(SUBSTITUTE(SUBSTITUTE(SUBSTITUTE(SUBSTITUTE(SUBSTITUTE(SUBSTITUTE(V96,$ED96,$ED$2&ROW($ED96)),$EC96,$EC$2&ROW($EC96)),$EB96,$EB$2&ROW($EB96)),$EA96,$EA$2&ROW($EA96)),$DZ96,$DZ$2&ROW($DZ96)),$DY96,$DY$2&ROW($DY96)),$DX96,$DX$2&ROW($DX96)),$DW96,$DW$2&ROW($DW96)),$DV96,$DV$2&ROW($DV96)),$DU96,$DU$2&ROW($DU96)),$DT96,$DT$2&ROW($DT96)),$DS96,$DS$2&ROW($DS96)))","v":"X=AS96 *(0.0075*60*AU96*AY96*(31.1-28.3)/BA96/1000-AU96*BC96/((33013/5.202)*0.67*0.70)*0.746)*AG96"},{"$f":"IF(W96=\"\",0,\"X=\"&SUBSTITUTE(SUBSTITUTE(SUBSTITUTE(SUBSTITUTE(SUBSTITUTE(SUBSTITUTE(SUBSTITUTE(SUBSTITUTE(SUBSTITUTE(SUBSTITUTE(SUBSTITUTE(SUBSTITUTE(W96,$ED96,$ED$2&ROW($ED96)),$EC96,$EC$2&ROW($EC96)),$EB96,$EB$2&ROW($EB96)),$EA96,$EA$2&ROW($EA96)),$DZ96,$DZ$2&ROW($DZ96)),$DY96,$DY$2&ROW($DY96)),$DX96,$DX$2&ROW($DX96)),$DW96,$DW$2&ROW($DW96)),$DV96,$DV$2&ROW($DV96)),$DU96,$DU$2&ROW($DU96)),$DT96,$DT$2&ROW($DT96)),$DS96,$DS$2&ROW($DS96)))","v":"X=AS96*if(BE96 =1, 1.08*AU96*(68-36.5)*AW96*6492*.77/1000000/BG96,0)*10"},{"$f":"IF(X96=\"\",0,\"X=\"&SUBSTITUTE(SUBSTITUTE(SUBSTITUTE(SUBSTITUTE(SUBSTITUTE(SUBSTITUTE(SUBSTITUTE(SUBSTITUTE(SUBSTITUTE(SUBSTITUTE(SUBSTITUTE(SUBSTITUTE(X96,$ED96,$ED$2&ROW($ED96)),$EC96,$EC$2&ROW($EC96)),$EB96,$EB$2&ROW($EB96)),$EA96,$EA$2&ROW($EA96)),$DZ96,$DZ$2&ROW($DZ96)),$DY96,$DY$2&ROW($DY96)),$DX96,$DX$2&ROW($DX96)),$DW96,$DW$2&ROW($DW96)),$DV96,$DV$2&ROW($DV96)),$DU96,$DU$2&ROW($DU96)),$DT96,$DT$2&ROW($DT96)),$DS96,$DS$2&ROW($DS96)))","v":"X=AS96*if(BE96 =2, 1.08*AU96*(68-36.5)*AW96*6492*.77/1000000/BG96,0)"},{"$f":"IF(Y96=\"\",0,\"X=\"&SUBSTITUTE(SUBSTITUTE(SUBSTITUTE(SUBSTITUTE(SUBSTITUTE(SUBSTITUTE(SUBSTITUTE(SUBSTITUTE(SUBSTITUTE(SUBSTITUTE(SUBSTITUTE(SUBSTITUTE(Y96,$ED96,$ED$2&ROW($ED96)),$EC96,$EC$2&ROW($EC96)),$EB96,$EB$2&ROW($EB96)),$EA96,$EA$2&ROW($EA96)),$DZ96,$DZ$2&ROW($DZ96)),$DY96,$DY$2&ROW($DY96)),$DX96,$DX$2&ROW($DX96)),$DW96,$DW$2&ROW($DW96)),$DV96,$DV$2&ROW($DV96)),$DU96,$DU$2&ROW($DU96)),$DT96,$DT$2&ROW($DT96)),$DS96,$DS$2&ROW($DS96)))","v":"X=AS96*if(BE96 =3, 1.08*AU96*(68-36.5)*AW96*6492*.77/1000000/BG96,0)"},{"$f":"IF(Z96=\"\",0,\"X=\"&SUBSTITUTE(SUBSTITUTE(SUBSTITUTE(SUBSTITUTE(SUBSTITUTE(SUBSTITUTE(SUBSTITUTE(SUBSTITUTE(SUBSTITUTE(SUBSTITUTE(SUBSTITUTE(SUBSTITUTE(Z96,$ED96,$ED$2&ROW($ED96)),$EC96,$EC$2&ROW($EC96)),$EB96,$EB$2&ROW($EB96)),$EA96,$EA$2&ROW($EA96)),$DZ96,$DZ$2&ROW($DZ96)),$DY96,$DY$2&ROW($DY96)),$DX96,$DX$2&ROW($DX96)),$DW96,$DW$2&ROW($DW96)),$DV96,$DV$2&ROW($DV96)),$DU96,$DU$2&ROW($DU96)),$DT96,$DT$2&ROW($DT96)),$DS96,$DS$2&ROW($DS96)))","v":"X=AS96*if(BE96 =4, 1.08*AU96*(68-36.5)*AW96*6492*.77/1000000/BG96,0)"},{"$f":"IF(AA96=\"\",0,\"X=\"&SUBSTITUTE(SUBSTITUTE(SUBSTITUTE(SUBSTITUTE(SUBSTITUTE(SUBSTITUTE(SUBSTITUTE(SUBSTITUTE(SUBSTITUTE(SUBSTITUTE(SUBSTITUTE(SUBSTITUTE(AA96,$ED96,$ED$2&ROW($ED96)),$EC96,$EC$2&ROW($EC96)),$EB96,$EB$2&ROW($EB96)),$EA96,$EA$2&ROW($EA96)),$DZ96,$DZ$2&ROW($DZ96)),$DY96,$DY$2&ROW($DY96)),$DX96,$DX$2&ROW($DX96)),$DW96,$DW$2&ROW($DW96)),$DV96,$DV$2&ROW($DV96)),$DU96,$DU$2&ROW($DU96)),$DT96,$DT$2&ROW($DT96)),$DS96,$DS$2&ROW($DS96)))","v":"X=AS96*if(BE96 =5, 1.08*AU96*(68-36.5)*AW96*6492*.77/1000000/BG96,0)"},{"$f":"IF(AB96=\"\",0,\"X=\"&SUBSTITUTE(SUBSTITUTE(SUBSTITUTE(SUBSTITUTE(SUBSTITUTE(SUBSTITUTE(SUBSTITUTE(SUBSTITUTE(SUBSTITUTE(SUBSTITUTE(SUBSTITUTE(SUBSTITUTE(AB96,$ED96,$ED$2&ROW($ED96)),$EC96,$EC$2&ROW($EC96)),$EB96,$EB$2&ROW($EB96)),$EA96,$EA$2&ROW($EA96)),$DZ96,$DZ$2&ROW($DZ96)),$DY96,$DY$2&ROW($DY96)),$DX96,$DX$2&ROW($DX96)),$DW96,$DW$2&ROW($DW96)),$DV96,$DV$2&ROW($DV96)),$DU96,$DU$2&ROW($DU96)),$DT96,$DT$2&ROW($DT96)),$DS96,$DS$2&ROW($DS96)))","v":0},null,null,"{Factor:WinterCF}","{Factor:SummerCF}",{"$f":"IFERROR(INDEX($EG96:$IV96,MATCH(0,COUNTIF($DR96:DT96,$EG96:$IV96),0)),\"\")","v":"{Measure:Quantity}"},{"$f":"IFERROR(INDEX($EG96:$IV96,MATCH(0,COUNTIF($DR96:DU96,$EG96:$IV96),0)),\"\")","v":"{Ventilation Air Rate}"},{"$f":"IFERROR(INDEX($EG96:$IV96,MATCH(0,COUNTIF($DR96:DV96,$EG96:$IV96),0)),\"\")","v":"{Eff Heating}"},{"$f":"IFERROR(INDEX($EG96:$IV96,MATCH(0,COUNTIF($DR96:DW96,$EG96:$IV96),0)),\"\")","v":"{Eff Cooling}"},{"$f":"IFERROR(INDEX($EG96:$IV96,MATCH(0,COUNTIF($DR96:DX96,$EG96:$IV96),0)),\"\")","v":"{SEER}"},{"$f":"IFERROR(INDEX($EG96:$IV96,MATCH(0,COUNTIF($DR96:DY96,$EG96:$IV96),0)),\"\")","v":"{Calculated Pressure Drop}"},{"$f":"IFERROR(INDEX($EG96:$IV96,MATCH(0,COUNTIF($DR96:DZ96,$EG96:$IV96),0)),\"\")","v":"{Heating Fuel Type}"},{"$f":"IFERROR(INDEX($EG96:$IV96,MATCH(0,COUNTIF($DR96:EA96,$EG96:$IV96),0)),\"\")","v":"{AFUE}"},{"$f":"IFERROR(INDEX($EG96:$IV96,MATCH(0,COUNTIF($DR96:EB96,$EG96:$IV96),0)),\"\")","v":""},{"$f":"IFERROR(INDEX($EG96:$IV96,MATCH(0,COUNTIF($DR96:EC96,$EG96:$IV96),0)),\"\")","v":""},null,null,{"$f":"IFERROR(MID($G96,FIND(CHAR(160),SUBSTITUTE($G96,\"{\",CHAR(160),EG$1)),FIND(CHAR(160),SUBSTITUTE($G96,\"}\",CHAR(160),EG$1))-FIND(CHAR(160),SUBSTITUTE($G96,\"{\",CHAR(160),EG$1))+1),\"\")","v":"{Measure:Quantity}"},{"$f":"IFERROR(MID($G96,FIND(CHAR(160),SUBSTITUTE($G96,\"{\",CHAR(160),EH$1)),FIND(CHAR(160),SUBSTITUTE($G96,\"}\",CHAR(160),EH$1))-FIND(CHAR(160),SUBSTITUTE($G96,\"{\",CHAR(160),EH$1))+1),\"\")","v":"{Ventilation Air Rate}"},{"$f":"IFERROR(MID($G96,FIND(CHAR(160),SUBSTITUTE($G96,\"{\",CHAR(160),EI$1)),FIND(CHAR(160),SUBSTITUTE($G96,\"}\",CHAR(160),EI$1))-FIND(CHAR(160),SUBSTITUTE($G96,\"{\",CHAR(160),EI$1))+1),\"\")","v":""},{"$f":"IFERROR(MID($G96,FIND(CHAR(160),SUBSTITUTE($G96,\"{\",CHAR(160),EJ$1)),FIND(CHAR(160),SUBSTITUTE($G96,\"}\",CHAR(160),EJ$1))-FIND(CHAR(160),SUBSTITUTE($G96,\"{\",CHAR(160),EJ$1))+1),\"\")","v":""},{"$f":"IFERROR(MID($G96,FIND(CHAR(160),SUBSTITUTE($G96,\"{\",CHAR(160),EK$1)),FIND(CHAR(160),SUBSTITUTE($G96,\"}\",CHAR(160),EK$1))-FIND(CHAR(160),SUBSTITUTE($G96,\"{\",CHAR(160),EK$1))+1),\"\")","v":""},{"$f":"IFERROR(MID($G96,FIND(CHAR(160),SUBSTITUTE($G96,\"{\",CHAR(160),EL$1)),FIND(CHAR(160),SUBSTITUTE($G96,\"}\",CHAR(160),EL$1))-FIND(CHAR(160),SUBSTITUTE($G96,\"{\",CHAR(160),EL$1))+1),\"\")","v":""},{"$f":"IFERROR(MID($G96,FIND(CHAR(160),SUBSTITUTE($G96,\"{\",CHAR(160),EM$1)),FIND(CHAR(160),SUBSTITUTE($G96,\"}\",CHAR(160),EM$1))-FIND(CHAR(160),SUBSTITUTE($G96,\"{\",CHAR(160),EM$1))+1),\"\")","v":""},{"$f":"IFERROR(MID($G96,FIND(CHAR(160),SUBSTITUTE($G96,\"{\",CHAR(160),EN$1)),FIND(CHAR(160),SUBSTITUTE($G96,\"}\",CHAR(160),EN$1))-FIND(CHAR(160),SUBSTITUTE($G96,\"{\",CHAR(160),EN$1))+1),\"\")","v":""},{"$f":"IFERROR(MID($G96,FIND(CHAR(160),SUBSTITUTE($G96,\"{\",CHAR(160),EO$1)),FIND(CHAR(160),SUBSTITUTE($G96,\"}\",CHAR(160),EO$1))-FIND(CHAR(160),SUBSTITUTE($G96,\"{\",CHAR(160),EO$1))+1),\"\")","v":""},{"$f":"IFERROR(MID($G96,FIND(CHAR(160),SUBSTITUTE($G96,\"{\",CHAR(160),EP$1)),FIND(CHAR(160),SUBSTITUTE($G96,\"}\",CHAR(160),EP$1))-FIND(CHAR(160),SUBSTITUTE($G96,\"{\",CHAR(160),EP$1))+1),\"\")","v":""},{"$f":"IFERROR(MID($J96,FIND(CHAR(160),SUBSTITUTE($J96,\"{\",CHAR(160),EQ$1)),FIND(CHAR(160),SUBSTITUTE($J96,\"}\",CHAR(160),EQ$1))-FIND(CHAR(160),SUBSTITUTE($J96,\"{\",CHAR(160),EQ$1))+1),\"\")","v":"{Measure:Quantity}"},{"$f":"IFERROR(MID($J96,FIND(CHAR(160),SUBSTITUTE($J96,\"{\",CHAR(160),ER$1)),FIND(CHAR(160),SUBSTITUTE($J96,\"}\",CHAR(160),ER$1))-FIND(CHAR(160),SUBSTITUTE($J96,\"{\",CHAR(160),ER$1))+1),\"\")","v":"{Ventilation Air Rate}"},{"$f":"IFERROR(MID($J96,FIND(CHAR(160),SUBSTITUTE($J96,\"{\",CHAR(160),ES$1)),FIND(CHAR(160),SUBSTITUTE($J96,\"}\",CHAR(160),ES$1))-FIND(CHAR(160),SUBSTITUTE($J96,\"{\",CHAR(160),ES$1))+1),\"\")","v":"{Eff Heating}"},{"$f":"IFERROR(MID($J96,FIND(CHAR(160),SUBSTITUTE($J96,\"{\",CHAR(160),ET$1)),FIND(CHAR(160),SUBSTITUTE($J96,\"}\",CHAR(160),ET$1))-FIND(CHAR(160),SUBSTITUTE($J96,\"{\",CHAR(160),ET$1))+1),\"\")","v":"{Eff Heating}"},{"$f":"IFERROR(MID($J96,FIND(CHAR(160),SUBSTITUTE($J96,\"{\",CHAR(160),EU$1)),FIND(CHAR(160),SUBSTITUTE($J96,\"}\",CHAR(160),EU$1))-FIND(CHAR(160),SUBSTITUTE($J96,\"{\",CHAR(160),EU$1))+1),\"\")","v":"{Eff Heating}"},{"$f":"IFERROR(MID($J96,FIND(CHAR(160),SUBSTITUTE($J96,\"{\",CHAR(160),EV$1)),FIND(CHAR(160),SUBSTITUTE($J96,\"}\",CHAR(160),EV$1))-FIND(CHAR(160),SUBSTITUTE($J96,\"{\",CHAR(160),EV$1))+1),\"\")","v":""},{"$f":"IFERROR(MID($J96,FIND(CHAR(160),SUBSTITUTE($J96,\"{\",CHAR(160),EW$1)),FIND(CHAR(160),SUBSTITUTE($J96,\"}\",CHAR(160),EW$1))-FIND(CHAR(160),SUBSTITUTE($J96,\"{\",CHAR(160),EW$1))+1),\"\")","v":""},{"$f":"IFERROR(MID($J96,FIND(CHAR(160),SUBSTITUTE($J96,\"{\",CHAR(160),EX$1)),FIND(CHAR(160),SUBSTITUTE($J96,\"}\",CHAR(160),EX$1))-FIND(CHAR(160),SUBSTITUTE($J96,\"{\",CHAR(160),EX$1))+1),\"\")","v":""},{"$f":"IFERROR(MID($J96,FIND(CHAR(160),SUBSTITUTE($J96,\"{\",CHAR(160),EY$1)),FIND(CHAR(160),SUBSTITUTE($J96,\"}\",CHAR(160),EY$1))-FIND(CHAR(160),SUBSTITUTE($J96,\"{\",CHAR(160),EY$1))+1),\"\")","v":""},{"$f":"IFERROR(MID($J96,FIND(CHAR(160),SUBSTITUTE($J96,\"{\",CHAR(160),EZ$1)),FIND(CHAR(160),SUBSTITUTE($J96,\"}\",CHAR(160),EZ$1))-FIND(CHAR(160),SUBSTITUTE($J96,\"{\",CHAR(160),EZ$1))+1),\"\")","v":""},{"$f":"IFERROR(MID($J96,FIND(CHAR(160),SUBSTITUTE($J96,\"{\",CHAR(160),FA$1)),FIND(CHAR(160),SUBSTITUTE($J96,\"}\",CHAR(160),FA$1))-FIND(CHAR(160),SUBSTITUTE($J96,\"{\",CHAR(160),FA$1))+1),\"\")","v":"{Measure:Quantity}"},{"$f":"IFERROR(MID($J96,FIND(CHAR(160),SUBSTITUTE($J96,\"{\",CHAR(160),FB$1)),FIND(CHAR(160),SUBSTITUTE($J96,\"}\",CHAR(160),FB$1))-FIND(CHAR(160),SUBSTITUTE($J96,\"{\",CHAR(160),FB$1))+1),\"\")","v":"{Ventilation Air Rate}"},{"$f":"IFERROR(MID($O96,FIND(CHAR(160),SUBSTITUTE($O96,\"{\",CHAR(160),FC$1)),FIND(CHAR(160),SUBSTITUTE($O96,\"}\",CHAR(160),FC$1))-FIND(CHAR(160),SUBSTITUTE($O96,\"{\",CHAR(160),FC$1))+1),\"\")","v":"{Eff Cooling}"},{"$f":"IFERROR(MID($O96,FIND(CHAR(160),SUBSTITUTE($O96,\"{\",CHAR(160),FD$1)),FIND(CHAR(160),SUBSTITUTE($O96,\"}\",CHAR(160),FD$1))-FIND(CHAR(160),SUBSTITUTE($O96,\"{\",CHAR(160),FD$1))+1),\"\")","v":"{SEER}"},{"$f":"IFERROR(MID($O96,FIND(CHAR(160),SUBSTITUTE($O96,\"{\",CHAR(160),FE$1)),FIND(CHAR(160),SUBSTITUTE($O96,\"}\",CHAR(160),FE$1))-FIND(CHAR(160),SUBSTITUTE($O96,\"{\",CHAR(160),FE$1))+1),\"\")","v":"{Ventilation Air Rate}"},{"$f":"IFERROR(MID($O96,FIND(CHAR(160),SUBSTITUTE($O96,\"{\",CHAR(160),FF$1)),FIND(CHAR(160),SUBSTITUTE($O96,\"}\",CHAR(160),FF$1))-FIND(CHAR(160),SUBSTITUTE($O96,\"{\",CHAR(160),FF$1))+1),\"\")","v":"{Calculated Pressure Drop}"},{"$f":"IFERROR(MID($O96,FIND(CHAR(160),SUBSTITUTE($O96,\"{\",CHAR(160),FG$1)),FIND(CHAR(160),SUBSTITUTE($O96,\"}\",CHAR(160),FG$1))-FIND(CHAR(160),SUBSTITUTE($O96,\"{\",CHAR(160),FG$1))+1),\"\")","v":"{Heating Fuel Type}"},{"$f":"IFERROR(MID($O96,FIND(CHAR(160),SUBSTITUTE($O96,\"{\",CHAR(160),FH$1)),FIND(CHAR(160),SUBSTITUTE($O96,\"}\",CHAR(160),FH$1))-FIND(CHAR(160),SUBSTITUTE($O96,\"{\",CHAR(160),FH$1))+1),\"\")","v":"{Ventilation Air Rate}"},{"$f":"IFERROR(MID($O96,FIND(CHAR(160),SUBSTITUTE($O96,\"{\",CHAR(160),FI$1)),FIND(CHAR(160),SUBSTITUTE($O96,\"}\",CHAR(160),FI$1))-FIND(CHAR(160),SUBSTITUTE($O96,\"{\",CHAR(160),FI$1))+1),\"\")","v":"{Eff Heating}"},{"$f":"IFERROR(MID($O96,FIND(CHAR(160),SUBSTITUTE($O96,\"{\",CHAR(160),FJ$1)),FIND(CHAR(160),SUBSTITUTE($O96,\"}\",CHAR(160),FJ$1))-FIND(CHAR(160),SUBSTITUTE($O96,\"{\",CHAR(160),FJ$1))+1),\"\")","v":"{AFUE}"},{"$f":"IFERROR(MID($O96,FIND(CHAR(160),SUBSTITUTE($O96,\"{\",CHAR(160),FK$1)),FIND(CHAR(160),SUBSTITUTE($O96,\"}\",CHAR(160),FK$1))-FIND(CHAR(160),SUBSTITUTE($O96,\"{\",CHAR(160),FK$1))+1),\"\")","v":"{Measure:Quantity}"},{"$f":"IFERROR(MID($O96,FIND(CHAR(160),SUBSTITUTE($O96,\"{\",CHAR(160),FL$1)),FIND(CHAR(160),SUBSTITUTE($O96,\"}\",CHAR(160),FL$1))-FIND(CHAR(160),SUBSTITUTE($O96,\"{\",CHAR(160),FL$1))+1),\"\")","v":"{Ventilation Air Rate}"},{"$f":"IFERROR(MID($R96,FIND(CHAR(160),SUBSTITUTE($R96,\"{\",CHAR(160),FM$1)),FIND(CHAR(160),SUBSTITUTE($R96,\"}\",CHAR(160),FM$1))-FIND(CHAR(160),SUBSTITUTE($R96,\"{\",CHAR(160),FM$1))+1),\"\")","v":"{Eff Cooling}"},{"$f":"IFERROR(MID($R96,FIND(CHAR(160),SUBSTITUTE($R96,\"{\",CHAR(160),FN$1)),FIND(CHAR(160),SUBSTITUTE($R96,\"}\",CHAR(160),FN$1))-FIND(CHAR(160),SUBSTITUTE($R96,\"{\",CHAR(160),FN$1))+1),\"\")","v":"{SEER}"},{"$f":"IFERROR(MID($R96,FIND(CHAR(160),SUBSTITUTE($R96,\"{\",CHAR(160),FO$1)),FIND(CHAR(160),SUBSTITUTE($R96,\"}\",CHAR(160),FO$1))-FIND(CHAR(160),SUBSTITUTE($R96,\"{\",CHAR(160),FO$1))+1),\"\")","v":"{Ventilation Air Rate}"},{"$f":"IFERROR(MID($R96,FIND(CHAR(160),SUBSTITUTE($R96,\"{\",CHAR(160),FP$1)),FIND(CHAR(160),SUBSTITUTE($R96,\"}\",CHAR(160),FP$1))-FIND(CHAR(160),SUBSTITUTE($R96,\"{\",CHAR(160),FP$1))+1),\"\")","v":"{Calculated Pressure Drop}"},{"$f":"IFERROR(MID($R96,FIND(CHAR(160),SUBSTITUTE($R96,\"{\",CHAR(160),FQ$1)),FIND(CHAR(160),SUBSTITUTE($R96,\"}\",CHAR(160),FQ$1))-FIND(CHAR(160),SUBSTITUTE($R96,\"{\",CHAR(160),FQ$1))+1),\"\")","v":""},{"$f":"IFERROR(MID($R96,FIND(CHAR(160),SUBSTITUTE($R96,\"{\",CHAR(160),FR$1)),FIND(CHAR(160),SUBSTITUTE($R96,\"}\",CHAR(160),FR$1))-FIND(CHAR(160),SUBSTITUTE($R96,\"{\",CHAR(160),FR$1))+1),\"\")","v":""},{"$f":"IFERROR(MID($R96,FIND(CHAR(160),SUBSTITUTE($R96,\"{\",CHAR(160),FS$1)),FIND(CHAR(160),SUBSTITUTE($R96,\"}\",CHAR(160),FS$1))-FIND(CHAR(160),SUBSTITUTE($R96,\"{\",CHAR(160),FS$1))+1),\"\")","v":""},{"$f":"IFERROR(MID($R96,FIND(CHAR(160),SUBSTITUTE($R96,\"{\",CHAR(160),FT$1)),FIND(CHAR(160),SUBSTITUTE($R96,\"}\",CHAR(160),FT$1))-FIND(CHAR(160),SUBSTITUTE($R96,\"{\",CHAR(160),FT$1))+1),\"\")","v":""},{"$f":"IFERROR(MID($R96,FIND(CHAR(160),SUBSTITUTE($R96,\"{\",CHAR(160),FU$1)),FIND(CHAR(160),SUBSTITUTE($R96,\"}\",CHAR(160),FU$1))-FIND(CHAR(160),SUBSTITUTE($R96,\"{\",CHAR(160),FU$1))+1),\"\")","v":"{Measure:Quantity}"},{"$f":"IFERROR(MID($R96,FIND(CHAR(160),SUBSTITUTE($R96,\"{\",CHAR(160),FV$1)),FIND(CHAR(160),SUBSTITUTE($R96,\"}\",CHAR(160),FV$1))-FIND(CHAR(160),SUBSTITUTE($R96,\"{\",CHAR(160),FV$1))+1),\"\")","v":"{Ventilation Air Rate}"},{"$f":"IFERROR(MID($U96,FIND(CHAR(160),SUBSTITUTE($U96,\"{\",CHAR(160),FW$1)),FIND(CHAR(160),SUBSTITUTE($U96,\"}\",CHAR(160),FW$1))-FIND(CHAR(160),SUBSTITUTE($U96,\"{\",CHAR(160),FW$1))+1),\"\")","v":"{Calculated Pressure Drop}"},{"$f":"IFERROR(MID($U96,FIND(CHAR(160),SUBSTITUTE($U96,\"{\",CHAR(160),FX$1)),FIND(CHAR(160),SUBSTITUTE($U96,\"}\",CHAR(160),FX$1))-FIND(CHAR(160),SUBSTITUTE($U96,\"{\",CHAR(160),FX$1))+1),\"\")","v":"{Factor:WinterCF}"},{"$f":"IFERROR(MID($U96,FIND(CHAR(160),SUBSTITUTE($U96,\"{\",CHAR(160),FY$1)),FIND(CHAR(160),SUBSTITUTE($U96,\"}\",CHAR(160),FY$1))-FIND(CHAR(160),SUBSTITUTE($U96,\"{\",CHAR(160),FY$1))+1),\"\")","v":""},{"$f":"IFERROR(MID($U96,FIND(CHAR(160),SUBSTITUTE($U96,\"{\",CHAR(160),FZ$1)),FIND(CHAR(160),SUBSTITUTE($U96,\"}\",CHAR(160),FZ$1))-FIND(CHAR(160),SUBSTITUTE($U96,\"{\",CHAR(160),FZ$1))+1),\"\")","v":""},{"$f":"IFERROR(MID($U96,FIND(CHAR(160),SUBSTITUTE($U96,\"{\",CHAR(160),GA$1)),FIND(CHAR(160),SUBSTITUTE($U96,\"}\",CHAR(160),GA$1))-FIND(CHAR(160),SUBSTITUTE($U96,\"{\",CHAR(160),GA$1))+1),\"\")","v":""},{"$f":"IFERROR(MID($U96,FIND(CHAR(160),SUBSTITUTE($U96,\"{\",CHAR(160),GB$1)),FIND(CHAR(160),SUBSTITUTE($U96,\"}\",CHAR(160),GB$1))-FIND(CHAR(160),SUBSTITUTE($U96,\"{\",CHAR(160),GB$1))+1),\"\")","v":""},{"$f":"IFERROR(MID($U96,FIND(CHAR(160),SUBSTITUTE($U96,\"{\",CHAR(160),GC$1)),FIND(CHAR(160),SUBSTITUTE($U96,\"}\",CHAR(160),GC$1))-FIND(CHAR(160),SUBSTITUTE($U96,\"{\",CHAR(160),GC$1))+1),\"\")","v":""},{"$f":"IFERROR(MID($U96,FIND(CHAR(160),SUBSTITUTE($U96,\"{\",CHAR(160),GD$1)),FIND(CHAR(160),SUBSTITUTE($U96,\"}\",CHAR(160),GD$1))-FIND(CHAR(160),SUBSTITUTE($U96,\"{\",CHAR(160),GD$1))+1),\"\")","v":""},{"$f":"IFERROR(MID($U96,FIND(CHAR(160),SUBSTITUTE($U96,\"{\",CHAR(160),GE$1)),FIND(CHAR(160),SUBSTITUTE($U96,\"}\",CHAR(160),GE$1))-FIND(CHAR(160),SUBSTITUTE($U96,\"{\",CHAR(160),GE$1))+1),\"\")","v":"{Measure:Quantity}"},{"$f":"IFERROR(MID($U96,FIND(CHAR(160),SUBSTITUTE($U96,\"{\",CHAR(160),GF$1)),FIND(CHAR(160),SUBSTITUTE($U96,\"}\",CHAR(160),GF$1))-FIND(CHAR(160),SUBSTITUTE($U96,\"{\",CHAR(160),GF$1))+1),\"\")","v":"{Ventilation Air Rate}"},{"$f":"IFERROR(MID($V96,FIND(CHAR(160),SUBSTITUTE($V96,\"{\",CHAR(160),GG$1)),FIND(CHAR(160),SUBSTITUTE($V96,\"}\",CHAR(160),GG$1))-FIND(CHAR(160),SUBSTITUTE($V96,\"{\",CHAR(160),GG$1))+1),\"\")","v":"{Eff Cooling}"},{"$f":"IFERROR(MID($V96,FIND(CHAR(160),SUBSTITUTE($V96,\"{\",CHAR(160),GH$1)),FIND(CHAR(160),SUBSTITUTE($V96,\"}\",CHAR(160),GH$1))-FIND(CHAR(160),SUBSTITUTE($V96,\"{\",CHAR(160),GH$1))+1),\"\")","v":"{SEER}"},{"$f":"IFERROR(MID($V96,FIND(CHAR(160),SUBSTITUTE($V96,\"{\",CHAR(160),GI$1)),FIND(CHAR(160),SUBSTITUTE($V96,\"}\",CHAR(160),GI$1))-FIND(CHAR(160),SUBSTITUTE($V96,\"{\",CHAR(160),GI$1))+1),\"\")","v":"{Ventilation Air Rate}"},{"$f":"IFERROR(MID($V96,FIND(CHAR(160),SUBSTITUTE($V96,\"{\",CHAR(160),GJ$1)),FIND(CHAR(160),SUBSTITUTE($V96,\"}\",CHAR(160),GJ$1))-FIND(CHAR(160),SUBSTITUTE($V96,\"{\",CHAR(160),GJ$1))+1),\"\")","v":"{Calculated Pressure Drop}"},{"$f":"IFERROR(MID($V96,FIND(CHAR(160),SUBSTITUTE($V96,\"{\",CHAR(160),GK$1)),FIND(CHAR(160),SUBSTITUTE($V96,\"}\",CHAR(160),GK$1))-FIND(CHAR(160),SUBSTITUTE($V96,\"{\",CHAR(160),GK$1))+1),\"\")","v":"{Factor:SummerCF}"},{"$f":"IFERROR(MID($V96,FIND(CHAR(160),SUBSTITUTE($V96,\"{\",CHAR(160),GL$1)),FIND(CHAR(160),SUBSTITUTE($V96,\"}\",CHAR(160),GL$1))-FIND(CHAR(160),SUBSTITUTE($V96,\"{\",CHAR(160),GL$1))+1),\"\")","v":""},{"$f":"IFERROR(MID($V96,FIND(CHAR(160),SUBSTITUTE($V96,\"{\",CHAR(160),GM$1)),FIND(CHAR(160),SUBSTITUTE($V96,\"}\",CHAR(160),GM$1))-FIND(CHAR(160),SUBSTITUTE($V96,\"{\",CHAR(160),GM$1))+1),\"\")","v":""},{"$f":"IFERROR(MID($V96,FIND(CHAR(160),SUBSTITUTE($V96,\"{\",CHAR(160),GN$1)),FIND(CHAR(160),SUBSTITUTE($V96,\"}\",CHAR(160),GN$1))-FIND(CHAR(160),SUBSTITUTE($V96,\"{\",CHAR(160),GN$1))+1),\"\")","v":""},{"$f":"IFERROR(MID($V96,FIND(CHAR(160),SUBSTITUTE($V96,\"{\",CHAR(160),GO$1)),FIND(CHAR(160),SUBSTITUTE($V96,\"}\",CHAR(160),GO$1))-FIND(CHAR(160),SUBSTITUTE($V96,\"{\",CHAR(160),GO$1))+1),\"\")","v":"{Measure:Quantity}"},{"$f":"IFERROR(MID($V96,FIND(CHAR(160),SUBSTITUTE($V96,\"{\",CHAR(160),GP$1)),FIND(CHAR(160),SUBSTITUTE($V96,\"}\",CHAR(160),GP$1))-FIND(CHAR(160),SUBSTITUTE($V96,\"{\",CHAR(160),GP$1))+1),\"\")","v":"{Ventilation Air Rate}"},{"$f":"IFERROR(MID($W96,FIND(CHAR(160),SUBSTITUTE($W96,\"{\",CHAR(160),GQ$1)),FIND(CHAR(160),SUBSTITUTE($W96,\"}\",CHAR(160),GQ$1))-FIND(CHAR(160),SUBSTITUTE($W96,\"{\",CHAR(160),GQ$1))+1),\"\")","v":"{Ventilation Air Rate}"},{"$f":"IFERROR(MID($W96,FIND(CHAR(160),SUBSTITUTE($W96,\"{\",CHAR(160),GR$1)),FIND(CHAR(160),SUBSTITUTE($W96,\"}\",CHAR(160),GR$1))-FIND(CHAR(160),SUBSTITUTE($W96,\"{\",CHAR(160),GR$1))+1),\"\")","v":"{Eff Heating}"},{"$f":"IFERROR(MID($W96,FIND(CHAR(160),SUBSTITUTE($W96,\"{\",CHAR(160),GS$1)),FIND(CHAR(160),SUBSTITUTE($W96,\"}\",CHAR(160),GS$1))-FIND(CHAR(160),SUBSTITUTE($W96,\"{\",CHAR(160),GS$1))+1),\"\")","v":"{AFUE}"},{"$f":"IFERROR(MID($W96,FIND(CHAR(160),SUBSTITUTE($W96,\"{\",CHAR(160),GT$1)),FIND(CHAR(160),SUBSTITUTE($W96,\"}\",CHAR(160),GT$1))-FIND(CHAR(160),SUBSTITUTE($W96,\"{\",CHAR(160),GT$1))+1),\"\")","v":""},{"$f":"IFERROR(MID($W96,FIND(CHAR(160),SUBSTITUTE($W96,\"{\",CHAR(160),GU$1)),FIND(CHAR(160),SUBSTITUTE($W96,\"}\",CHAR(160),GU$1))-FIND(CHAR(160),SUBSTITUTE($W96,\"{\",CHAR(160),GU$1))+1),\"\")","v":""},{"$f":"IFERROR(MID($W96,FIND(CHAR(160),SUBSTITUTE($W96,\"{\",CHAR(160),GV$1)),FIND(CHAR(160),SUBSTITUTE($W96,\"}\",CHAR(160),GV$1))-FIND(CHAR(160),SUBSTITUTE($W96,\"{\",CHAR(160),GV$1))+1),\"\")","v":""},{"$f":"IFERROR(MID($W96,FIND(CHAR(160),SUBSTITUTE($W96,\"{\",CHAR(160),GW$1)),FIND(CHAR(160),SUBSTITUTE($W96,\"}\",CHAR(160),GW$1))-FIND(CHAR(160),SUBSTITUTE($W96,\"{\",CHAR(160),GW$1))+1),\"\")","v":""},{"$f":"IFERROR(MID($W96,FIND(CHAR(160),SUBSTITUTE($W96,\"{\",CHAR(160),GX$1)),FIND(CHAR(160),SUBSTITUTE($W96,\"}\",CHAR(160),GX$1))-FIND(CHAR(160),SUBSTITUTE($W96,\"{\",CHAR(160),GX$1))+1),\"\")","v":""},{"$f":"IFERROR(MID($W96,FIND(CHAR(160),SUBSTITUTE($W96,\"{\",CHAR(160),GY$1)),FIND(CHAR(160),SUBSTITUTE($W96,\"}\",CHAR(160),GY$1))-FIND(CHAR(160),SUBSTITUTE($W96,\"{\",CHAR(160),GY$1))+1),\"\")","v":"{Measure:Quantity}"},{"$f":"IFERROR(MID($W96,FIND(CHAR(160),SUBSTITUTE($W96,\"{\",CHAR(160),GZ$1)),FIND(CHAR(160),SUBSTITUTE($W96,\"}\",CHAR(160),GZ$1))-FIND(CHAR(160),SUBSTITUTE($W96,\"{\",CHAR(160),GZ$1))+1),\"\")","v":"{Heating Fuel Type}"},{"$f":"IFERROR(MID($X96,FIND(CHAR(160),SUBSTITUTE($X96,\"{\",CHAR(160),HA$1)),FIND(CHAR(160),SUBSTITUTE($X96,\"}\",CHAR(160),HA$1))-FIND(CHAR(160),SUBSTITUTE($X96,\"{\",CHAR(160),HA$1))+1),\"\")","v":"{Ventilation Air Rate}"},{"$f":"IFERROR(MID($X96,FIND(CHAR(160),SUBSTITUTE($X96,\"{\",CHAR(160),HB$1)),FIND(CHAR(160),SUBSTITUTE($X96,\"}\",CHAR(160),HB$1))-FIND(CHAR(160),SUBSTITUTE($X96,\"{\",CHAR(160),HB$1))+1),\"\")","v":"{Eff Heating}"},{"$f":"IFERROR(MID($X96,FIND(CHAR(160),SUBSTITUTE($X96,\"{\",CHAR(160),HC$1)),FIND(CHAR(160),SUBSTITUTE($X96,\"}\",CHAR(160),HC$1))-FIND(CHAR(160),SUBSTITUTE($X96,\"{\",CHAR(160),HC$1))+1),\"\")","v":"{AFUE}"},{"$f":"IFERROR(MID($X96,FIND(CHAR(160),SUBSTITUTE($X96,\"{\",CHAR(160),HD$1)),FIND(CHAR(160),SUBSTITUTE($X96,\"}\",CHAR(160),HD$1))-FIND(CHAR(160),SUBSTITUTE($X96,\"{\",CHAR(160),HD$1))+1),\"\")","v":""},{"$f":"IFERROR(MID($X96,FIND(CHAR(160),SUBSTITUTE($X96,\"{\",CHAR(160),HE$1)),FIND(CHAR(160),SUBSTITUTE($X96,\"}\",CHAR(160),HE$1))-FIND(CHAR(160),SUBSTITUTE($X96,\"{\",CHAR(160),HE$1))+1),\"\")","v":""},{"$f":"IFERROR(MID($X96,FIND(CHAR(160),SUBSTITUTE($X96,\"{\",CHAR(160),HF$1)),FIND(CHAR(160),SUBSTITUTE($X96,\"}\",CHAR(160),HF$1))-FIND(CHAR(160),SUBSTITUTE($X96,\"{\",CHAR(160),HF$1))+1),\"\")","v":""},{"$f":"IFERROR(MID($X96,FIND(CHAR(160),SUBSTITUTE($X96,\"{\",CHAR(160),HG$1)),FIND(CHAR(160),SUBSTITUTE($X96,\"}\",CHAR(160),HG$1))-FIND(CHAR(160),SUBSTITUTE($X96,\"{\",CHAR(160),HG$1))+1),\"\")","v":""},{"$f":"IFERROR(MID($X96,FIND(CHAR(160),SUBSTITUTE($X96,\"{\",CHAR(160),HH$1)),FIND(CHAR(160),SUBSTITUTE($X96,\"}\",CHAR(160),HH$1))-FIND(CHAR(160),SUBSTITUTE($X96,\"{\",CHAR(160),HH$1))+1),\"\")","v":""},{"$f":"IFERROR(MID($X96,FIND(CHAR(160),SUBSTITUTE($X96,\"{\",CHAR(160),HI$1)),FIND(CHAR(160),SUBSTITUTE($X96,\"}\",CHAR(160),HI$1))-FIND(CHAR(160),SUBSTITUTE($X96,\"{\",CHAR(160),HI$1))+1),\"\")","v":"{Measure:Quantity}"},{"$f":"IFERROR(MID($X96,FIND(CHAR(160),SUBSTITUTE($X96,\"{\",CHAR(160),HJ$1)),FIND(CHAR(160),SUBSTITUTE($X96,\"}\",CHAR(160),HJ$1))-FIND(CHAR(160),SUBSTITUTE($X96,\"{\",CHAR(160),HJ$1))+1),\"\")","v":"{Heating Fuel Type}"},{"$f":"IFERROR(MID($Y96,FIND(CHAR(160),SUBSTITUTE($Y96,\"{\",CHAR(160),HK$1)),FIND(CHAR(160),SUBSTITUTE($Y96,\"}\",CHAR(160),HK$1))-FIND(CHAR(160),SUBSTITUTE($Y96,\"{\",CHAR(160),HK$1))+1),\"\")","v":"{Ventilation Air Rate}"},{"$f":"IFERROR(MID($Y96,FIND(CHAR(160),SUBSTITUTE($Y96,\"{\",CHAR(160),HL$1)),FIND(CHAR(160),SUBSTITUTE($Y96,\"}\",CHAR(160),HL$1))-FIND(CHAR(160),SUBSTITUTE($Y96,\"{\",CHAR(160),HL$1))+1),\"\")","v":"{Eff Heating}"},{"$f":"IFERROR(MID($Y96,FIND(CHAR(160),SUBSTITUTE($Y96,\"{\",CHAR(160),HM$1)),FIND(CHAR(160),SUBSTITUTE($Y96,\"}\",CHAR(160),HM$1))-FIND(CHAR(160),SUBSTITUTE($Y96,\"{\",CHAR(160),HM$1))+1),\"\")","v":"{AFUE}"},{"$f":"IFERROR(MID($Y96,FIND(CHAR(160),SUBSTITUTE($Y96,\"{\",CHAR(160),HN$1)),FIND(CHAR(160),SUBSTITUTE($Y96,\"}\",CHAR(160),HN$1))-FIND(CHAR(160),SUBSTITUTE($Y96,\"{\",CHAR(160),HN$1))+1),\"\")","v":""},{"$f":"IFERROR(MID($Y96,FIND(CHAR(160),SUBSTITUTE($Y96,\"{\",CHAR(160),HO$1)),FIND(CHAR(160),SUBSTITUTE($Y96,\"}\",CHAR(160),HO$1))-FIND(CHAR(160),SUBSTITUTE($Y96,\"{\",CHAR(160),HO$1))+1),\"\")","v":""},{"$f":"IFERROR(MID($Y96,FIND(CHAR(160),SUBSTITUTE($Y96,\"{\",CHAR(160),HP$1)),FIND(CHAR(160),SUBSTITUTE($Y96,\"}\",CHAR(160),HP$1))-FIND(CHAR(160),SUBSTITUTE($Y96,\"{\",CHAR(160),HP$1))+1),\"\")","v":""},{"$f":"IFERROR(MID($Y96,FIND(CHAR(160),SUBSTITUTE($Y96,\"{\",CHAR(160),HQ$1)),FIND(CHAR(160),SUBSTITUTE($Y96,\"}\",CHAR(160),HQ$1))-FIND(CHAR(160),SUBSTITUTE($Y96,\"{\",CHAR(160),HQ$1))+1),\"\")","v":""},{"$f":"IFERROR(MID($Y96,FIND(CHAR(160),SUBSTITUTE($Y96,\"{\",CHAR(160),HR$1)),FIND(CHAR(160),SUBSTITUTE($Y96,\"}\",CHAR(160),HR$1))-FIND(CHAR(160),SUBSTITUTE($Y96,\"{\",CHAR(160),HR$1))+1),\"\")","v":""},{"$f":"IFERROR(MID($Y96,FIND(CHAR(160),SUBSTITUTE($Y96,\"{\",CHAR(160),HS$1)),FIND(CHAR(160),SUBSTITUTE($Y96,\"}\",CHAR(160),HS$1))-FIND(CHAR(160),SUBSTITUTE($Y96,\"{\",CHAR(160),HS$1))+1),\"\")","v":"{Measure:Quantity}"},{"$f":"IFERROR(MID($Y96,FIND(CHAR(160),SUBSTITUTE($Y96,\"{\",CHAR(160),HT$1)),FIND(CHAR(160),SUBSTITUTE($Y96,\"}\",CHAR(160),HT$1))-FIND(CHAR(160),SUBSTITUTE($Y96,\"{\",CHAR(160),HT$1))+1),\"\")","v":"{Heating Fuel Type}"},{"$f":"IFERROR(MID($Z96,FIND(CHAR(160),SUBSTITUTE($Z96,\"{\",CHAR(160),HU$1)),FIND(CHAR(160),SUBSTITUTE($Z96,\"}\",CHAR(160),HU$1))-FIND(CHAR(160),SUBSTITUTE($Z96,\"{\",CHAR(160),HU$1))+1),\"\")","v":"{Ventilation Air Rate}"},{"$f":"IFERROR(MID($Z96,FIND(CHAR(160),SUBSTITUTE($Z96,\"{\",CHAR(160),HV$1)),FIND(CHAR(160),SUBSTITUTE($Z96,\"}\",CHAR(160),HV$1))-FIND(CHAR(160),SUBSTITUTE($Z96,\"{\",CHAR(160),HV$1))+1),\"\")","v":"{Eff Heating}"},{"$f":"IFERROR(MID($Z96,FIND(CHAR(160),SUBSTITUTE($Z96,\"{\",CHAR(160),HW$1)),FIND(CHAR(160),SUBSTITUTE($Z96,\"}\",CHAR(160),HW$1))-FIND(CHAR(160),SUBSTITUTE($Z96,\"{\",CHAR(160),HW$1))+1),\"\")","v":"{AFUE}"},{"$f":"IFERROR(MID($Z96,FIND(CHAR(160),SUBSTITUTE($Z96,\"{\",CHAR(160),HX$1)),FIND(CHAR(160),SUBSTITUTE($Z96,\"}\",CHAR(160),HX$1))-FIND(CHAR(160),SUBSTITUTE($Z96,\"{\",CHAR(160),HX$1))+1),\"\")","v":""},{"$f":"IFERROR(MID($Z96,FIND(CHAR(160),SUBSTITUTE($Z96,\"{\",CHAR(160),HY$1)),FIND(CHAR(160),SUBSTITUTE($Z96,\"}\",CHAR(160),HY$1))-FIND(CHAR(160),SUBSTITUTE($Z96,\"{\",CHAR(160),HY$1))+1),\"\")","v":""},{"$f":"IFERROR(MID($Z96,FIND(CHAR(160),SUBSTITUTE($Z96,\"{\",CHAR(160),HZ$1)),FIND(CHAR(160),SUBSTITUTE($Z96,\"}\",CHAR(160),HZ$1))-FIND(CHAR(160),SUBSTITUTE($Z96,\"{\",CHAR(160),HZ$1))+1),\"\")","v":""},{"$f":"IFERROR(MID($Z96,FIND(CHAR(160),SUBSTITUTE($Z96,\"{\",CHAR(160),IA$1)),FIND(CHAR(160),SUBSTITUTE($Z96,\"}\",CHAR(160),IA$1))-FIND(CHAR(160),SUBSTITUTE($Z96,\"{\",CHAR(160),IA$1))+1),\"\")","v":""},{"$f":"IFERROR(MID($Z96,FIND(CHAR(160),SUBSTITUTE($Z96,\"{\",CHAR(160),IB$1)),FIND(CHAR(160),SUBSTITUTE($Z96,\"}\",CHAR(160),IB$1))-FIND(CHAR(160),SUBSTITUTE($Z96,\"{\",CHAR(160),IB$1))+1),\"\")","v":""},{"$f":"IFERROR(MID($Z96,FIND(CHAR(160),SUBSTITUTE($Z96,\"{\",CHAR(160),IC$1)),FIND(CHAR(160),SUBSTITUTE($Z96,\"}\",CHAR(160),IC$1))-FIND(CHAR(160),SUBSTITUTE($Z96,\"{\",CHAR(160),IC$1))+1),\"\")","v":"{Measure:Quantity}"},{"$f":"IFERROR(MID($Z96,FIND(CHAR(160),SUBSTITUTE($Z96,\"{\",CHAR(160),ID$1)),FIND(CHAR(160),SUBSTITUTE($Z96,\"}\",CHAR(160),ID$1))-FIND(CHAR(160),SUBSTITUTE($Z96,\"{\",CHAR(160),ID$1))+1),\"\")","v":"{Heating Fuel Type}"},{"$f":"IFERROR(MID($AA96,FIND(CHAR(160),SUBSTITUTE($AA96,\"{\",CHAR(160),IE$1)),FIND(CHAR(160),SUBSTITUTE($AA96,\"}\",CHAR(160),IE$1))-FIND(CHAR(160),SUBSTITUTE($AA96,\"{\",CHAR(160),IE$1))+1),\"\")","v":"{Ventilation Air Rate}"},{"$f":"IFERROR(MID($AA96,FIND(CHAR(160),SUBSTITUTE($AA96,\"{\",CHAR(160),IF$1)),FIND(CHAR(160),SUBSTITUTE($AA96,\"}\",CHAR(160),IF$1))-FIND(CHAR(160),SUBSTITUTE($AA96,\"{\",CHAR(160),IF$1))+1),\"\")","v":"{Eff Heating}"},{"$f":"IFERROR(MID($AA96,FIND(CHAR(160),SUBSTITUTE($AA96,\"{\",CHAR(160),IG$1)),FIND(CHAR(160),SUBSTITUTE($AA96,\"}\",CHAR(160),IG$1))-FIND(CHAR(160),SUBSTITUTE($AA96,\"{\",CHAR(160),IG$1))+1),\"\")","v":"{AFUE}"},{"$f":"IFERROR(MID($AA96,FIND(CHAR(160),SUBSTITUTE($AA96,\"{\",CHAR(160),IH$1)),FIND(CHAR(160),SUBSTITUTE($AA96,\"}\",CHAR(160),IH$1))-FIND(CHAR(160),SUBSTITUTE($AA96,\"{\",CHAR(160),IH$1))+1),\"\")","v":""},{"$f":"IFERROR(MID($AA96,FIND(CHAR(160),SUBSTITUTE($AA96,\"{\",CHAR(160),II$1)),FIND(CHAR(160),SUBSTITUTE($AA96,\"}\",CHAR(160),II$1))-FIND(CHAR(160),SUBSTITUTE($AA96,\"{\",CHAR(160),II$1))+1),\"\")","v":""},{"$f":"IFERROR(MID($AA96,FIND(CHAR(160),SUBSTITUTE($AA96,\"{\",CHAR(160),IJ$1)),FIND(CHAR(160),SUBSTITUTE($AA96,\"}\",CHAR(160),IJ$1))-FIND(CHAR(160),SUBSTITUTE($AA96,\"{\",CHAR(160),IJ$1))+1),\"\")","v":""},{"$f":"IFERROR(MID($AA96,FIND(CHAR(160),SUBSTITUTE($AA96,\"{\",CHAR(160),IK$1)),FIND(CHAR(160),SUBSTITUTE($AA96,\"}\",CHAR(160),IK$1))-FIND(CHAR(160),SUBSTITUTE($AA96,\"{\",CHAR(160),IK$1))+1),\"\")","v":""},{"$f":"IFERROR(MID($AA96,FIND(CHAR(160),SUBSTITUTE($AA96,\"{\",CHAR(160),IL$1)),FIND(CHAR(160),SUBSTITUTE($AA96,\"}\",CHAR(160),IL$1))-FIND(CHAR(160),SUBSTITUTE($AA96,\"{\",CHAR(160),IL$1))+1),\"\")","v":""},{"$f":"IFERROR(MID($AA96,FIND(CHAR(160),SUBSTITUTE($AA96,\"{\",CHAR(160),IM$1)),FIND(CHAR(160),SUBSTITUTE($AA96,\"}\",CHAR(160),IM$1))-FIND(CHAR(160),SUBSTITUTE($AA96,\"{\",CHAR(160),IM$1))+1),\"\")","v":"{Measure:Quantity}"},{"$f":"IFERROR(MID($AA96,FIND(CHAR(160),SUBSTITUTE($AA96,\"{\",CHAR(160),IN$1)),FIND(CHAR(160),SUBSTITUTE($AA96,\"}\",CHAR(160),IN$1))-FIND(CHAR(160),SUBSTITUTE($AA96,\"{\",CHAR(160),IN$1))+1),\"\")","v":"{Heating Fuel Type}"},{"$f":"IFERROR(MID($AB96,FIND(CHAR(160),SUBSTITUTE($AB96,\"{\",CHAR(160),IO$1)),FIND(CHAR(160),SUBSTITUTE($AB96,\"}\",CHAR(160),IO$1))-FIND(CHAR(160),SUBSTITUTE($AB96,\"{\",CHAR(160),IO$1))+1),\"\")","v":""},{"$f":"IFERROR(MID($AB96,FIND(CHAR(160),SUBSTITUTE($AB96,\"{\",CHAR(160),IP$1)),FIND(CHAR(160),SUBSTITUTE($AB96,\"}\",CHAR(160),IP$1))-FIND(CHAR(160),SUBSTITUTE($AB96,\"{\",CHAR(160),IP$1))+1),\"\")","v":""},{"$f":"IFERROR(MID($AB96,FIND(CHAR(160),SUBSTITUTE($AB96,\"{\",CHAR(160),IQ$1)),FIND(CHAR(160),SUBSTITUTE($AB96,\"}\",CHAR(160),IQ$1))-FIND(CHAR(160),SUBSTITUTE($AB96,\"{\",CHAR(160),IQ$1))+1),\"\")","v":""},{"$f":"IFERROR(MID($AB96,FIND(CHAR(160),SUBSTITUTE($AB96,\"{\",CHAR(160),IR$1)),FIND(CHAR(160),SUBSTITUTE($AB96,\"}\",CHAR(160),IR$1))-FIND(CHAR(160),SUBSTITUTE($AB96,\"{\",CHAR(160),IR$1))+1),\"\")","v":""},{"$f":"IFERROR(MID($AB96,FIND(CHAR(160),SUBSTITUTE($AB96,\"{\",CHAR(160),IS$1)),FIND(CHAR(160),SUBSTITUTE($AB96,\"}\",CHAR(160),IS$1))-FIND(CHAR(160),SUBSTITUTE($AB96,\"{\",CHAR(160),IS$1))+1),\"\")","v":""},{"$f":"IFERROR(MID($AB96,FIND(CHAR(160),SUBSTITUTE($AB96,\"{\",CHAR(160),IT$1)),FIND(CHAR(160),SUBSTITUTE($AB96,\"}\",CHAR(160),IT$1))-FIND(CHAR(160),SUBSTITUTE($AB96,\"{\",CHAR(160),IT$1))+1),\"\")","v":""},{"$f":"IFERROR(MID($AB96,FIND(CHAR(160),SUBSTITUTE($AB96,\"{\",CHAR(160),IU$1)),FIND(CHAR(160),SUBSTITUTE($AB96,\"}\",CHAR(160),IU$1))-FIND(CHAR(160),SUBSTITUTE($AB96,\"{\",CHAR(160),IU$1))+1),\"\")","v":""},{"$f":"IFERROR(MID($AB96,FIND(CHAR(160),SUBSTITUTE($AB96,\"{\",CHAR(160),IV$1)),FIND(CHAR(160),SUBSTITUTE($AB96,\"}\",CHAR(160),IV$1))-FIND(CHAR(160),SUBSTITUTE($AB96,\"{\",CHAR(160),IV$1))+1),\"\")","v":""},{"$f":"IFERROR(MID($AB96,FIND(CHAR(160),SUBSTITUTE($AB96,\"{\",CHAR(160),IW$1)),FIND(CHAR(160),SUBSTITUTE($AB96,\"}\",CHAR(160),IW$1))-FIND(CHAR(160),SUBSTITUTE($AB96,\"{\",CHAR(160),IW$1))+1),\"\")","v":""},{"$f":"IFERROR(MID($AB96,FIND(CHAR(160),SUBSTITUTE($AB96,\"{\",CHAR(160),IX$1)),FIND(CHAR(160),SUBSTITUTE($AB96,\"}\",CHAR(160),IX$1))-FIND(CHAR(160),SUBSTITUTE($AB96,\"{\",CHAR(160),IX$1))+1),\"\")","v":""},null,{"$f":"10-COUNTIF(DU96:ED96,\"\")","v":8}]
["C&I HVAC - Oil","Modulating Burner Controls for Boilers and Heaters","AF1","2021-07-01","2022-06-30","Calculated","{Measure:Quantity}*{Capacity (MBTUH)}*2.14",0,"Calculated","{Measure:Quantity}*{Capacity (MBTUH)}*1.25",0,"2021-05-25","2022-06-30","Calculated",null,null,null,null,null,null,null,null,null,null,"if({Existing Fuel}<>3,0,{Measure:Quantity} * ({Capacity (MBTUH)} * 0.03 * if({End-Use}=1,1565,{Annual Hours of Operation})) / 1000)",null,null,null,"2021-05-24","2022-06-30",21,0,0,0,0,0,0,1,1,0,0.52,1.6E-2,null,{"$f":"DU97","v":"{Measure:Quantity}"},1,{"$f":"DV97","v":"{Capacity (MBTUH)}"},3628,{"$f":"DW97","v":"{End-Use}"},3,{"$f":"DX97","v":"{Annual Hours of Operation}"},1,{"$f":"DY97","v":"{Existing Fuel}"},3361,{"$f":"DZ97","v":""},null,{"$f":"EA97","v":""},null,{"$f":"EB97","v":""},null,{"$f":"EC97","v":""},null,{"$f":"ED97","v":""},null,0,0,0,0,0,0,0,0,0,0,{"$f":"IF(AW97<>3,0,AS97 * (AU97 * 0.03 * IF(AY97=1,1565,BA97)) / 1000)","v":170.33459999999997},0,0,0,null,"Res","Default DR",{"$f":"Benefits(BL97,BR97,BS97,BT97,BU97,BV97,BW97,BX97,BY97,BZ97,AE97,AH97,AI97,AJ97,AK97,AL97,AM97,AN97,AO97,AP97,CA97,CB97)","v":0},0,0,91718.477993930879,0,0,0,0,0,{"$f":"SUMPRODUCT(CC97:CK97,--(CC97:CK97>0))","v":91718.477993930879},{"$f":"-SUMPRODUCT(CC97:CK97,--(CC97:CK97<0))","v":0},null,{"$f":"AS97*AU97*2.14","v":7763.92},null,null,{"$f":"CM97+CO97","v":7763.92},{"$f":"IF(NetOrGross=\"Net\",(1-AO97+AP97),1)","v":1},{"$f":"(SUMPRODUCT(CC97:CJ97,--(CC97:CJ97>0))+CN97)*CS97/((-SUMPRODUCT(CC97:CJ97,--(CC97:CJ97<0))+MAX(CO97,CV97)+CP97+CQ97)*CS97+IF(FRIncentives=\"Yes\",CV97*(1-CS97),0))","v":11.8134238881816},1,{"$f":"AS97*AU97*1.25","v":4535},null,"RGGI","y",null,{"$f":"IF(F97=\"Manual Entry\",\"Manual\",IF(G97=\"\",0,\"X=\"&SUBSTITUTE(SUBSTITUTE(SUBSTITUTE(SUBSTITUTE(SUBSTITUTE(SUBSTITUTE(SUBSTITUTE(SUBSTITUTE(SUBSTITUTE(SUBSTITUTE(SUBSTITUTE(SUBSTITUTE(G97,$ED97,$ED$2&ROW($ED97)),$EC97,$EC$2&ROW($EC97)),$EB97,$EB$2&ROW($EB97)),$EA97,$EA$2&ROW($EA97)),$DZ97,$DZ$2&ROW($DZ97)),$DY97,$DY$2&ROW($DY97)),$DX97,$DX$2&ROW($DX97)),$DW97,$DW$2&ROW($DW97)),$DV97,$DV$2&ROW($DV97)),$DU97,$DU$2&ROW($DU97)),$DT97,$DT$2&ROW($DT97)),$DS97,$DS$2&ROW($DS97))))","v":"X=AS97*AU97*2.14"},{"$f":"IF(I97=\"Manual Entry\",\"Manual\",IF(J97=\"\",0,\"X=\"&SUBSTITUTE(SUBSTITUTE(SUBSTITUTE(SUBSTITUTE(SUBSTITUTE(SUBSTITUTE(SUBSTITUTE(SUBSTITUTE(SUBSTITUTE(SUBSTITUTE(SUBSTITUTE(SUBSTITUTE(J97,$ED97,$ED$2&ROW($ED97)),$EC97,$EC$2&ROW($EC97)),$EB97,$EB$2&ROW($EB97)),$EA97,$EA$2&ROW($EA97)),$DZ97,$DZ$2&ROW($DZ97)),$DY97,$DY$2&ROW($DY97)),$DX97,$DX$2&ROW($DX97)),$DW97,$DW$2&ROW($DW97)),$DV97,$DV$2&ROW($DV97)),$DU97,$DU$2&ROW($DU97)),$DT97,$DT$2&ROW($DT97)),$DS97,$DS$2&ROW($DS97))))","v":"X=AS97*AU97*1.25"},{"$f":"IF(O97=\"\",0,\"X=\"&SUBSTITUTE(SUBSTITUTE(SUBSTITUTE(SUBSTITUTE(SUBSTITUTE(SUBSTITUTE(SUBSTITUTE(SUBSTITUTE(SUBSTITUTE(SUBSTITUTE(SUBSTITUTE(SUBSTITUTE(O97,$ED97,$ED$2&ROW($ED97)),$EC97,$EC$2&ROW($EC97)),$EB97,$EB$2&ROW($EB97)),$EA97,$EA$2&ROW($EA97)),$DZ97,$DZ$2&ROW($DZ97)),$DY97,$DY$2&ROW($DY97)),$DX97,$DX$2&ROW($DX97)),$DW97,$DW$2&ROW($DW97)),$DV97,$DV$2&ROW($DV97)),$DU97,$DU$2&ROW($DU97)),$DT97,$DT$2&ROW($DT97)),$DS97,$DS$2&ROW($DS97)))","v":0},{"$f":"IF(P97=\"\",0,\"X=\"&SUBSTITUTE(SUBSTITUTE(SUBSTITUTE(SUBSTITUTE(SUBSTITUTE(SUBSTITUTE(SUBSTITUTE(SUBSTITUTE(SUBSTITUTE(SUBSTITUTE(SUBSTITUTE(SUBSTITUTE(P97,$ED97,$ED$2&ROW($ED97)),$EC97,$EC$2&ROW($EC97)),$EB97,$EB$2&ROW($EB97)),$EA97,$EA$2&ROW($EA97)),$DZ97,$DZ$2&ROW($DZ97)),$DY97,$DY$2&ROW($DY97)),$DX97,$DX$2&ROW($DX97)),$DW97,$DW$2&ROW($DW97)),$DV97,$DV$2&ROW($DV97)),$DU97,$DU$2&ROW($DU97)),$DT97,$DT$2&ROW($DT97)),$DS97,$DS$2&ROW($DS97)))","v":0},{"$f":"IF(Q97=\"\",0,\"X=\"&SUBSTITUTE(SUBSTITUTE(SUBSTITUTE(SUBSTITUTE(SUBSTITUTE(SUBSTITUTE(SUBSTITUTE(SUBSTITUTE(SUBSTITUTE(SUBSTITUTE(SUBSTITUTE(SUBSTITUTE(Q97,$ED97,$ED$2&ROW($ED97)),$EC97,$EC$2&ROW($EC97)),$EB97,$EB$2&ROW($EB97)),$EA97,$EA$2&ROW($EA97)),$DZ97,$DZ$2&ROW($DZ97)),$DY97,$DY$2&ROW($DY97)),$DX97,$DX$2&ROW($DX97)),$DW97,$DW$2&ROW($DW97)),$DV97,$DV$2&ROW($DV97)),$DU97,$DU$2&ROW($DU97)),$DT97,$DT$2&ROW($DT97)),$DS97,$DS$2&ROW($DS97)))","v":0},{"$f":"IF(R97=\"\",0,\"X=\"&SUBSTITUTE(SUBSTITUTE(SUBSTITUTE(SUBSTITUTE(SUBSTITUTE(SUBSTITUTE(SUBSTITUTE(SUBSTITUTE(SUBSTITUTE(SUBSTITUTE(SUBSTITUTE(SUBSTITUTE(R97,$ED97,$ED$2&ROW($ED97)),$EC97,$EC$2&ROW($EC97)),$EB97,$EB$2&ROW($EB97)),$EA97,$EA$2&ROW($EA97)),$DZ97,$DZ$2&ROW($DZ97)),$DY97,$DY$2&ROW($DY97)),$DX97,$DX$2&ROW($DX97)),$DW97,$DW$2&ROW($DW97)),$DV97,$DV$2&ROW($DV97)),$DU97,$DU$2&ROW($DU97)),$DT97,$DT$2&ROW($DT97)),$DS97,$DS$2&ROW($DS97)))","v":0},{"$f":"IF(S97=\"\",0,\"X=\"&SUBSTITUTE(SUBSTITUTE(SUBSTITUTE(SUBSTITUTE(SUBSTITUTE(SUBSTITUTE(SUBSTITUTE(SUBSTITUTE(SUBSTITUTE(SUBSTITUTE(SUBSTITUTE(SUBSTITUTE(S97,$ED97,$ED$2&ROW($ED97)),$EC97,$EC$2&ROW($EC97)),$EB97,$EB$2&ROW($EB97)),$EA97,$EA$2&ROW($EA97)),$DZ97,$DZ$2&ROW($DZ97)),$DY97,$DY$2&ROW($DY97)),$DX97,$DX$2&ROW($DX97)),$DW97,$DW$2&ROW($DW97)),$DV97,$DV$2&ROW($DV97)),$DU97,$DU$2&ROW($DU97)),$DT97,$DT$2&ROW($DT97)),$DS97,$DS$2&ROW($DS97)))","v":0},{"$f":"IF(T97=\"\",0,\"X=\"&SUBSTITUTE(SUBSTITUTE(SUBSTITUTE(SUBSTITUTE(SUBSTITUTE(SUBSTITUTE(SUBSTITUTE(SUBSTITUTE(SUBSTITUTE(SUBSTITUTE(SUBSTITUTE(SUBSTITUTE(T97,$ED97,$ED$2&ROW($ED97)),$EC97,$EC$2&ROW($EC97)),$EB97,$EB$2&ROW($EB97)),$EA97,$EA$2&ROW($EA97)),$DZ97,$DZ$2&ROW($DZ97)),$DY97,$DY$2&ROW($DY97)),$DX97,$DX$2&ROW($DX97)),$DW97,$DW$2&ROW($DW97)),$DV97,$DV$2&ROW($DV97)),$DU97,$DU$2&ROW($DU97)),$DT97,$DT$2&ROW($DT97)),$DS97,$DS$2&ROW($DS97)))","v":0},{"$f":"IF(U97=\"\",0,\"X=\"&SUBSTITUTE(SUBSTITUTE(SUBSTITUTE(SUBSTITUTE(SUBSTITUTE(SUBSTITUTE(SUBSTITUTE(SUBSTITUTE(SUBSTITUTE(SUBSTITUTE(SUBSTITUTE(SUBSTITUTE(U97,$ED97,$ED$2&ROW($ED97)),$EC97,$EC$2&ROW($EC97)),$EB97,$EB$2&ROW($EB97)),$EA97,$EA$2&ROW($EA97)),$DZ97,$DZ$2&ROW($DZ97)),$DY97,$DY$2&ROW($DY97)),$DX97,$DX$2&ROW($DX97)),$DW97,$DW$2&ROW($DW97)),$DV97,$DV$2&ROW($DV97)),$DU97,$DU$2&ROW($DU97)),$DT97,$DT$2&ROW($DT97)),$DS97,$DS$2&ROW($DS97)))","v":0},{"$f":"IF(V97=\"\",0,\"X=\"&SUBSTITUTE(SUBSTITUTE(SUBSTITUTE(SUBSTITUTE(SUBSTITUTE(SUBSTITUTE(SUBSTITUTE(SUBSTITUTE(SUBSTITUTE(SUBSTITUTE(SUBSTITUTE(SUBSTITUTE(V97,$ED97,$ED$2&ROW($ED97)),$EC97,$EC$2&ROW($EC97)),$EB97,$EB$2&ROW($EB97)),$EA97,$EA$2&ROW($EA97)),$DZ97,$DZ$2&ROW($DZ97)),$DY97,$DY$2&ROW($DY97)),$DX97,$DX$2&ROW($DX97)),$DW97,$DW$2&ROW($DW97)),$DV97,$DV$2&ROW($DV97)),$DU97,$DU$2&ROW($DU97)),$DT97,$DT$2&ROW($DT97)),$DS97,$DS$2&ROW($DS97)))","v":0},{"$f":"IF(W97=\"\",0,\"X=\"&SUBSTITUTE(SUBSTITUTE(SUBSTITUTE(SUBSTITUTE(SUBSTITUTE(SUBSTITUTE(SUBSTITUTE(SUBSTITUTE(SUBSTITUTE(SUBSTITUTE(SUBSTITUTE(SUBSTITUTE(W97,$ED97,$ED$2&ROW($ED97)),$EC97,$EC$2&ROW($EC97)),$EB97,$EB$2&ROW($EB97)),$EA97,$EA$2&ROW($EA97)),$DZ97,$DZ$2&ROW($DZ97)),$DY97,$DY$2&ROW($DY97)),$DX97,$DX$2&ROW($DX97)),$DW97,$DW$2&ROW($DW97)),$DV97,$DV$2&ROW($DV97)),$DU97,$DU$2&ROW($DU97)),$DT97,$DT$2&ROW($DT97)),$DS97,$DS$2&ROW($DS97)))","v":0},{"$f":"IF(X97=\"\",0,\"X=\"&SUBSTITUTE(SUBSTITUTE(SUBSTITUTE(SUBSTITUTE(SUBSTITUTE(SUBSTITUTE(SUBSTITUTE(SUBSTITUTE(SUBSTITUTE(SUBSTITUTE(SUBSTITUTE(SUBSTITUTE(X97,$ED97,$ED$2&ROW($ED97)),$EC97,$EC$2&ROW($EC97)),$EB97,$EB$2&ROW($EB97)),$EA97,$EA$2&ROW($EA97)),$DZ97,$DZ$2&ROW($DZ97)),$DY97,$DY$2&ROW($DY97)),$DX97,$DX$2&ROW($DX97)),$DW97,$DW$2&ROW($DW97)),$DV97,$DV$2&ROW($DV97)),$DU97,$DU$2&ROW($DU97)),$DT97,$DT$2&ROW($DT97)),$DS97,$DS$2&ROW($DS97)))","v":0},{"$f":"IF(Y97=\"\",0,\"X=\"&SUBSTITUTE(SUBSTITUTE(SUBSTITUTE(SUBSTITUTE(SUBSTITUTE(SUBSTITUTE(SUBSTITUTE(SUBSTITUTE(SUBSTITUTE(SUBSTITUTE(SUBSTITUTE(SUBSTITUTE(Y97,$ED97,$ED$2&ROW($ED97)),$EC97,$EC$2&ROW($EC97)),$EB97,$EB$2&ROW($EB97)),$EA97,$EA$2&ROW($EA97)),$DZ97,$DZ$2&ROW($DZ97)),$DY97,$DY$2&ROW($DY97)),$DX97,$DX$2&ROW($DX97)),$DW97,$DW$2&ROW($DW97)),$DV97,$DV$2&ROW($DV97)),$DU97,$DU$2&ROW($DU97)),$DT97,$DT$2&ROW($DT97)),$DS97,$DS$2&ROW($DS97)))","v":"X=if(BA97<>3,0,AS97 * (AU97 * 0.03 * if(AW97=1,1565,AY97)) / 1000)"},{"$f":"IF(Z97=\"\",0,\"X=\"&SUBSTITUTE(SUBSTITUTE(SUBSTITUTE(SUBSTITUTE(SUBSTITUTE(SUBSTITUTE(SUBSTITUTE(SUBSTITUTE(SUBSTITUTE(SUBSTITUTE(SUBSTITUTE(SUBSTITUTE(Z97,$ED97,$ED$2&ROW($ED97)),$EC97,$EC$2&ROW($EC97)),$EB97,$EB$2&ROW($EB97)),$EA97,$EA$2&ROW($EA97)),$DZ97,$DZ$2&ROW($DZ97)),$DY97,$DY$2&ROW($DY97)),$DX97,$DX$2&ROW($DX97)),$DW97,$DW$2&ROW($DW97)),$DV97,$DV$2&ROW($DV97)),$DU97,$DU$2&ROW($DU97)),$DT97,$DT$2&ROW($DT97)),$DS97,$DS$2&ROW($DS97)))","v":0},{"$f":"IF(AA97=\"\",0,\"X=\"&SUBSTITUTE(SUBSTITUTE(SUBSTITUTE(SUBSTITUTE(SUBSTITUTE(SUBSTITUTE(SUBSTITUTE(SUBSTITUTE(SUBSTITUTE(SUBSTITUTE(SUBSTITUTE(SUBSTITUTE(AA97,$ED97,$ED$2&ROW($ED97)),$EC97,$EC$2&ROW($EC97)),$EB97,$EB$2&ROW($EB97)),$EA97,$EA$2&ROW($EA97)),$DZ97,$DZ$2&ROW($DZ97)),$DY97,$DY$2&ROW($DY97)),$DX97,$DX$2&ROW($DX97)),$DW97,$DW$2&ROW($DW97)),$DV97,$DV$2&ROW($DV97)),$DU97,$DU$2&ROW($DU97)),$DT97,$DT$2&ROW($DT97)),$DS97,$DS$2&ROW($DS97)))","v":0},{"$f":"IF(AB97=\"\",0,\"X=\"&SUBSTITUTE(SUBSTITUTE(SUBSTITUTE(SUBSTITUTE(SUBSTITUTE(SUBSTITUTE(SUBSTITUTE(SUBSTITUTE(SUBSTITUTE(SUBSTITUTE(SUBSTITUTE(SUBSTITUTE(AB97,$ED97,$ED$2&ROW($ED97)),$EC97,$EC$2&ROW($EC97)),$EB97,$EB$2&ROW($EB97)),$EA97,$EA$2&ROW($EA97)),$DZ97,$DZ$2&ROW($DZ97)),$DY97,$DY$2&ROW($DY97)),$DX97,$DX$2&ROW($DX97)),$DW97,$DW$2&ROW($DW97)),$DV97,$DV$2&ROW($DV97)),$DU97,$DU$2&ROW($DU97)),$DT97,$DT$2&ROW($DT97)),$DS97,$DS$2&ROW($DS97)))","v":0},null,null,"{Factor:WinterCF}","{Factor:SummerCF}",{"$f":"IFERROR(INDEX($EG97:$IV97,MATCH(0,COUNTIF($DR97:DT97,$EG97:$IV97),0)),\"\")","v":"{Measure:Quantity}"},{"$f":"IFERROR(INDEX($EG97:$IV97,MATCH(0,COUNTIF($DR97:DU97,$EG97:$IV97),0)),\"\")","v":"{Capacity (MBTUH)}"},{"$f":"IFERROR(INDEX($EG97:$IV97,MATCH(0,COUNTIF($DR97:DV97,$EG97:$IV97),0)),\"\")","v":"{End-Use}"},{"$f":"IFERROR(INDEX($EG97:$IV97,MATCH(0,COUNTIF($DR97:DW97,$EG97:$IV97),0)),\"\")","v":"{Annual Hours of Operation}"},{"$f":"IFERROR(INDEX($EG97:$IV97,MATCH(0,COUNTIF($DR97:DX97,$EG97:$IV97),0)),\"\")","v":"{Existing Fuel}"},{"$f":"IFERROR(INDEX($EG97:$IV97,MATCH(0,COUNTIF($DR97:DY97,$EG97:$IV97),0)),\"\")","v":""},{"$f":"IFERROR(INDEX($EG97:$IV97,MATCH(0,COUNTIF($DR97:DZ97,$EG97:$IV97),0)),\"\")","v":""},{"$f":"IFERROR(INDEX($EG97:$IV97,MATCH(0,COUNTIF($DR97:EA97,$EG97:$IV97),0)),\"\")","v":""},{"$f":"IFERROR(INDEX($EG97:$IV97,MATCH(0,COUNTIF($DR97:EB97,$EG97:$IV97),0)),\"\")","v":""},{"$f":"IFERROR(INDEX($EG97:$IV97,MATCH(0,COUNTIF($DR97:EC97,$EG97:$IV97),0)),\"\")","v":""},null,null,{"$f":"IFERROR(MID($G97,FIND(CHAR(160),SUBSTITUTE($G97,\"{\",CHAR(160),EG$1)),FIND(CHAR(160),SUBSTITUTE($G97,\"}\",CHAR(160),EG$1))-FIND(CHAR(160),SUBSTITUTE($G97,\"{\",CHAR(160),EG$1))+1),\"\")","v":"{Measure:Quantity}"},{"$f":"IFERROR(MID($G97,FIND(CHAR(160),SUBSTITUTE($G97,\"{\",CHAR(160),EH$1)),FIND(CHAR(160),SUBSTITUTE($G97,\"}\",CHAR(160),EH$1))-FIND(CHAR(160),SUBSTITUTE($G97,\"{\",CHAR(160),EH$1))+1),\"\")","v":"{Capacity (MBTUH)}"},{"$f":"IFERROR(MID($G97,FIND(CHAR(160),SUBSTITUTE($G97,\"{\",CHAR(160),EI$1)),FIND(CHAR(160),SUBSTITUTE($G97,\"}\",CHAR(160),EI$1))-FIND(CHAR(160),SUBSTITUTE($G97,\"{\",CHAR(160),EI$1))+1),\"\")","v":""},{"$f":"IFERROR(MID($G97,FIND(CHAR(160),SUBSTITUTE($G97,\"{\",CHAR(160),EJ$1)),FIND(CHAR(160),SUBSTITUTE($G97,\"}\",CHAR(160),EJ$1))-FIND(CHAR(160),SUBSTITUTE($G97,\"{\",CHAR(160),EJ$1))+1),\"\")","v":""},{"$f":"IFERROR(MID($G97,FIND(CHAR(160),SUBSTITUTE($G97,\"{\",CHAR(160),EK$1)),FIND(CHAR(160),SUBSTITUTE($G97,\"}\",CHAR(160),EK$1))-FIND(CHAR(160),SUBSTITUTE($G97,\"{\",CHAR(160),EK$1))+1),\"\")","v":""},{"$f":"IFERROR(MID($G97,FIND(CHAR(160),SUBSTITUTE($G97,\"{\",CHAR(160),EL$1)),FIND(CHAR(160),SUBSTITUTE($G97,\"}\",CHAR(160),EL$1))-FIND(CHAR(160),SUBSTITUTE($G97,\"{\",CHAR(160),EL$1))+1),\"\")","v":""},{"$f":"IFERROR(MID($G97,FIND(CHAR(160),SUBSTITUTE($G97,\"{\",CHAR(160),EM$1)),FIND(CHAR(160),SUBSTITUTE($G97,\"}\",CHAR(160),EM$1))-FIND(CHAR(160),SUBSTITUTE($G97,\"{\",CHAR(160),EM$1))+1),\"\")","v":""},{"$f":"IFERROR(MID($G97,FIND(CHAR(160),SUBSTITUTE($G97,\"{\",CHAR(160),EN$1)),FIND(CHAR(160),SUBSTITUTE($G97,\"}\",CHAR(160),EN$1))-FIND(CHAR(160),SUBSTITUTE($G97,\"{\",CHAR(160),EN$1))+1),\"\")","v":""},{"$f":"IFERROR(MID($G97,FIND(CHAR(160),SUBSTITUTE($G97,\"{\",CHAR(160),EO$1)),FIND(CHAR(160),SUBSTITUTE($G97,\"}\",CHAR(160),EO$1))-FIND(CHAR(160),SUBSTITUTE($G97,\"{\",CHAR(160),EO$1))+1),\"\")","v":""},{"$f":"IFERROR(MID($G97,FIND(CHAR(160),SUBSTITUTE($G97,\"{\",CHAR(160),EP$1)),FIND(CHAR(160),SUBSTITUTE($G97,\"}\",CHAR(160),EP$1))-FIND(CHAR(160),SUBSTITUTE($G97,\"{\",CHAR(160),EP$1))+1),\"\")","v":""},{"$f":"IFERROR(MID($J97,FIND(CHAR(160),SUBSTITUTE($J97,\"{\",CHAR(160),EQ$1)),FIND(CHAR(160),SUBSTITUTE($J97,\"}\",CHAR(160),EQ$1))-FIND(CHAR(160),SUBSTITUTE($J97,\"{\",CHAR(160),EQ$1))+1),\"\")","v":"{Measure:Quantity}"},{"$f":"IFERROR(MID($J97,FIND(CHAR(160),SUBSTITUTE($J97,\"{\",CHAR(160),ER$1)),FIND(CHAR(160),SUBSTITUTE($J97,\"}\",CHAR(160),ER$1))-FIND(CHAR(160),SUBSTITUTE($J97,\"{\",CHAR(160),ER$1))+1),\"\")","v":"{Capacity (MBTUH)}"},{"$f":"IFERROR(MID($J97,FIND(CHAR(160),SUBSTITUTE($J97,\"{\",CHAR(160),ES$1)),FIND(CHAR(160),SUBSTITUTE($J97,\"}\",CHAR(160),ES$1))-FIND(CHAR(160),SUBSTITUTE($J97,\"{\",CHAR(160),ES$1))+1),\"\")","v":""},{"$f":"IFERROR(MID($J97,FIND(CHAR(160),SUBSTITUTE($J97,\"{\",CHAR(160),ET$1)),FIND(CHAR(160),SUBSTITUTE($J97,\"}\",CHAR(160),ET$1))-FIND(CHAR(160),SUBSTITUTE($J97,\"{\",CHAR(160),ET$1))+1),\"\")","v":""},{"$f":"IFERROR(MID($J97,FIND(CHAR(160),SUBSTITUTE($J97,\"{\",CHAR(160),EU$1)),FIND(CHAR(160),SUBSTITUTE($J97,\"}\",CHAR(160),EU$1))-FIND(CHAR(160),SUBSTITUTE($J97,\"{\",CHAR(160),EU$1))+1),\"\")","v":""},{"$f":"IFERROR(MID($J97,FIND(CHAR(160),SUBSTITUTE($J97,\"{\",CHAR(160),EV$1)),FIND(CHAR(160),SUBSTITUTE($J97,\"}\",CHAR(160),EV$1))-FIND(CHAR(160),SUBSTITUTE($J97,\"{\",CHAR(160),EV$1))+1),\"\")","v":""},{"$f":"IFERROR(MID($J97,FIND(CHAR(160),SUBSTITUTE($J97,\"{\",CHAR(160),EW$1)),FIND(CHAR(160),SUBSTITUTE($J97,\"}\",CHAR(160),EW$1))-FIND(CHAR(160),SUBSTITUTE($J97,\"{\",CHAR(160),EW$1))+1),\"\")","v":""},{"$f":"IFERROR(MID($J97,FIND(CHAR(160),SUBSTITUTE($J97,\"{\",CHAR(160),EX$1)),FIND(CHAR(160),SUBSTITUTE($J97,\"}\",CHAR(160),EX$1))-FIND(CHAR(160),SUBSTITUTE($J97,\"{\",CHAR(160),EX$1))+1),\"\")","v":""},{"$f":"IFERROR(MID($J97,FIND(CHAR(160),SUBSTITUTE($J97,\"{\",CHAR(160),EY$1)),FIND(CHAR(160),SUBSTITUTE($J97,\"}\",CHAR(160),EY$1))-FIND(CHAR(160),SUBSTITUTE($J97,\"{\",CHAR(160),EY$1))+1),\"\")","v":""},{"$f":"IFERROR(MID($J97,FIND(CHAR(160),SUBSTITUTE($J97,\"{\",CHAR(160),EZ$1)),FIND(CHAR(160),SUBSTITUTE($J97,\"}\",CHAR(160),EZ$1))-FIND(CHAR(160),SUBSTITUTE($J97,\"{\",CHAR(160),EZ$1))+1),\"\")","v":""},{"$f":"IFERROR(MID($J97,FIND(CHAR(160),SUBSTITUTE($J97,\"{\",CHAR(160),FA$1)),FIND(CHAR(160),SUBSTITUTE($J97,\"}\",CHAR(160),FA$1))-FIND(CHAR(160),SUBSTITUTE($J97,\"{\",CHAR(160),FA$1))+1),\"\")","v":"{Measure:Quantity}"},{"$f":"IFERROR(MID($J97,FIND(CHAR(160),SUBSTITUTE($J97,\"{\",CHAR(160),FB$1)),FIND(CHAR(160),SUBSTITUTE($J97,\"}\",CHAR(160),FB$1))-FIND(CHAR(160),SUBSTITUTE($J97,\"{\",CHAR(160),FB$1))+1),\"\")","v":"{Capacity (MBTUH)}"},{"$f":"IFERROR(MID($O97,FIND(CHAR(160),SUBSTITUTE($O97,\"{\",CHAR(160),FC$1)),FIND(CHAR(160),SUBSTITUTE($O97,\"}\",CHAR(160),FC$1))-FIND(CHAR(160),SUBSTITUTE($O97,\"{\",CHAR(160),FC$1))+1),\"\")","v":""},{"$f":"IFERROR(MID($O97,FIND(CHAR(160),SUBSTITUTE($O97,\"{\",CHAR(160),FD$1)),FIND(CHAR(160),SUBSTITUTE($O97,\"}\",CHAR(160),FD$1))-FIND(CHAR(160),SUBSTITUTE($O97,\"{\",CHAR(160),FD$1))+1),\"\")","v":""},{"$f":"IFERROR(MID($O97,FIND(CHAR(160),SUBSTITUTE($O97,\"{\",CHAR(160),FE$1)),FIND(CHAR(160),SUBSTITUTE($O97,\"}\",CHAR(160),FE$1))-FIND(CHAR(160),SUBSTITUTE($O97,\"{\",CHAR(160),FE$1))+1),\"\")","v":""},{"$f":"IFERROR(MID($O97,FIND(CHAR(160),SUBSTITUTE($O97,\"{\",CHAR(160),FF$1)),FIND(CHAR(160),SUBSTITUTE($O97,\"}\",CHAR(160),FF$1))-FIND(CHAR(160),SUBSTITUTE($O97,\"{\",CHAR(160),FF$1))+1),\"\")","v":""},{"$f":"IFERROR(MID($O97,FIND(CHAR(160),SUBSTITUTE($O97,\"{\",CHAR(160),FG$1)),FIND(CHAR(160),SUBSTITUTE($O97,\"}\",CHAR(160),FG$1))-FIND(CHAR(160),SUBSTITUTE($O97,\"{\",CHAR(160),FG$1))+1),\"\")","v":""},{"$f":"IFERROR(MID($O97,FIND(CHAR(160),SUBSTITUTE($O97,\"{\",CHAR(160),FH$1)),FIND(CHAR(160),SUBSTITUTE($O97,\"}\",CHAR(160),FH$1))-FIND(CHAR(160),SUBSTITUTE($O97,\"{\",CHAR(160),FH$1))+1),\"\")","v":""},{"$f":"IFERROR(MID($O97,FIND(CHAR(160),SUBSTITUTE($O97,\"{\",CHAR(160),FI$1)),FIND(CHAR(160),SUBSTITUTE($O97,\"}\",CHAR(160),FI$1))-FIND(CHAR(160),SUBSTITUTE($O97,\"{\",CHAR(160),FI$1))+1),\"\")","v":""},{"$f":"IFERROR(MID($O97,FIND(CHAR(160),SUBSTITUTE($O97,\"{\",CHAR(160),FJ$1)),FIND(CHAR(160),SUBSTITUTE($O97,\"}\",CHAR(160),FJ$1))-FIND(CHAR(160),SUBSTITUTE($O97,\"{\",CHAR(160),FJ$1))+1),\"\")","v":""},{"$f":"IFERROR(MID($O97,FIND(CHAR(160),SUBSTITUTE($O97,\"{\",CHAR(160),FK$1)),FIND(CHAR(160),SUBSTITUTE($O97,\"}\",CHAR(160),FK$1))-FIND(CHAR(160),SUBSTITUTE($O97,\"{\",CHAR(160),FK$1))+1),\"\")","v":""},{"$f":"IFERROR(MID($O97,FIND(CHAR(160),SUBSTITUTE($O97,\"{\",CHAR(160),FL$1)),FIND(CHAR(160),SUBSTITUTE($O97,\"}\",CHAR(160),FL$1))-FIND(CHAR(160),SUBSTITUTE($O97,\"{\",CHAR(160),FL$1))+1),\"\")","v":""},{"$f":"IFERROR(MID($R97,FIND(CHAR(160),SUBSTITUTE($R97,\"{\",CHAR(160),FM$1)),FIND(CHAR(160),SUBSTITUTE($R97,\"}\",CHAR(160),FM$1))-FIND(CHAR(160),SUBSTITUTE($R97,\"{\",CHAR(160),FM$1))+1),\"\")","v":""},{"$f":"IFERROR(MID($R97,FIND(CHAR(160),SUBSTITUTE($R97,\"{\",CHAR(160),FN$1)),FIND(CHAR(160),SUBSTITUTE($R97,\"}\",CHAR(160),FN$1))-FIND(CHAR(160),SUBSTITUTE($R97,\"{\",CHAR(160),FN$1))+1),\"\")","v":""},{"$f":"IFERROR(MID($R97,FIND(CHAR(160),SUBSTITUTE($R97,\"{\",CHAR(160),FO$1)),FIND(CHAR(160),SUBSTITUTE($R97,\"}\",CHAR(160),FO$1))-FIND(CHAR(160),SUBSTITUTE($R97,\"{\",CHAR(160),FO$1))+1),\"\")","v":""},{"$f":"IFERROR(MID($R97,FIND(CHAR(160),SUBSTITUTE($R97,\"{\",CHAR(160),FP$1)),FIND(CHAR(160),SUBSTITUTE($R97,\"}\",CHAR(160),FP$1))-FIND(CHAR(160),SUBSTITUTE($R97,\"{\",CHAR(160),FP$1))+1),\"\")","v":""},{"$f":"IFERROR(MID($R97,FIND(CHAR(160),SUBSTITUTE($R97,\"{\",CHAR(160),FQ$1)),FIND(CHAR(160),SUBSTITUTE($R97,\"}\",CHAR(160),FQ$1))-FIND(CHAR(160),SUBSTITUTE($R97,\"{\",CHAR(160),FQ$1))+1),\"\")","v":""},{"$f":"IFERROR(MID($R97,FIND(CHAR(160),SUBSTITUTE($R97,\"{\",CHAR(160),FR$1)),FIND(CHAR(160),SUBSTITUTE($R97,\"}\",CHAR(160),FR$1))-FIND(CHAR(160),SUBSTITUTE($R97,\"{\",CHAR(160),FR$1))+1),\"\")","v":""},{"$f":"IFERROR(MID($R97,FIND(CHAR(160),SUBSTITUTE($R97,\"{\",CHAR(160),FS$1)),FIND(CHAR(160),SUBSTITUTE($R97,\"}\",CHAR(160),FS$1))-FIND(CHAR(160),SUBSTITUTE($R97,\"{\",CHAR(160),FS$1))+1),\"\")","v":""},{"$f":"IFERROR(MID($R97,FIND(CHAR(160),SUBSTITUTE($R97,\"{\",CHAR(160),FT$1)),FIND(CHAR(160),SUBSTITUTE($R97,\"}\",CHAR(160),FT$1))-FIND(CHAR(160),SUBSTITUTE($R97,\"{\",CHAR(160),FT$1))+1),\"\")","v":""},{"$f":"IFERROR(MID($R97,FIND(CHAR(160),SUBSTITUTE($R97,\"{\",CHAR(160),FU$1)),FIND(CHAR(160),SUBSTITUTE($R97,\"}\",CHAR(160),FU$1))-FIND(CHAR(160),SUBSTITUTE($R97,\"{\",CHAR(160),FU$1))+1),\"\")","v":""},{"$f":"IFERROR(MID($R97,FIND(CHAR(160),SUBSTITUTE($R97,\"{\",CHAR(160),FV$1)),FIND(CHAR(160),SUBSTITUTE($R97,\"}\",CHAR(160),FV$1))-FIND(CHAR(160),SUBSTITUTE($R97,\"{\",CHAR(160),FV$1))+1),\"\")","v":""},{"$f":"IFERROR(MID($U97,FIND(CHAR(160),SUBSTITUTE($U97,\"{\",CHAR(160),FW$1)),FIND(CHAR(160),SUBSTITUTE($U97,\"}\",CHAR(160),FW$1))-FIND(CHAR(160),SUBSTITUTE($U97,\"{\",CHAR(160),FW$1))+1),\"\")","v":""},{"$f":"IFERROR(MID($U97,FIND(CHAR(160),SUBSTITUTE($U97,\"{\",CHAR(160),FX$1)),FIND(CHAR(160),SUBSTITUTE($U97,\"}\",CHAR(160),FX$1))-FIND(CHAR(160),SUBSTITUTE($U97,\"{\",CHAR(160),FX$1))+1),\"\")","v":""},{"$f":"IFERROR(MID($U97,FIND(CHAR(160),SUBSTITUTE($U97,\"{\",CHAR(160),FY$1)),FIND(CHAR(160),SUBSTITUTE($U97,\"}\",CHAR(160),FY$1))-FIND(CHAR(160),SUBSTITUTE($U97,\"{\",CHAR(160),FY$1))+1),\"\")","v":""},{"$f":"IFERROR(MID($U97,FIND(CHAR(160),SUBSTITUTE($U97,\"{\",CHAR(160),FZ$1)),FIND(CHAR(160),SUBSTITUTE($U97,\"}\",CHAR(160),FZ$1))-FIND(CHAR(160),SUBSTITUTE($U97,\"{\",CHAR(160),FZ$1))+1),\"\")","v":""},{"$f":"IFERROR(MID($U97,FIND(CHAR(160),SUBSTITUTE($U97,\"{\",CHAR(160),GA$1)),FIND(CHAR(160),SUBSTITUTE($U97,\"}\",CHAR(160),GA$1))-FIND(CHAR(160),SUBSTITUTE($U97,\"{\",CHAR(160),GA$1))+1),\"\")","v":""},{"$f":"IFERROR(MID($U97,FIND(CHAR(160),SUBSTITUTE($U97,\"{\",CHAR(160),GB$1)),FIND(CHAR(160),SUBSTITUTE($U97,\"}\",CHAR(160),GB$1))-FIND(CHAR(160),SUBSTITUTE($U97,\"{\",CHAR(160),GB$1))+1),\"\")","v":""},{"$f":"IFERROR(MID($U97,FIND(CHAR(160),SUBSTITUTE($U97,\"{\",CHAR(160),GC$1)),FIND(CHAR(160),SUBSTITUTE($U97,\"}\",CHAR(160),GC$1))-FIND(CHAR(160),SUBSTITUTE($U97,\"{\",CHAR(160),GC$1))+1),\"\")","v":""},{"$f":"IFERROR(MID($U97,FIND(CHAR(160),SUBSTITUTE($U97,\"{\",CHAR(160),GD$1)),FIND(CHAR(160),SUBSTITUTE($U97,\"}\",CHAR(160),GD$1))-FIND(CHAR(160),SUBSTITUTE($U97,\"{\",CHAR(160),GD$1))+1),\"\")","v":""},{"$f":"IFERROR(MID($U97,FIND(CHAR(160),SUBSTITUTE($U97,\"{\",CHAR(160),GE$1)),FIND(CHAR(160),SUBSTITUTE($U97,\"}\",CHAR(160),GE$1))-FIND(CHAR(160),SUBSTITUTE($U97,\"{\",CHAR(160),GE$1))+1),\"\")","v":""},{"$f":"IFERROR(MID($U97,FIND(CHAR(160),SUBSTITUTE($U97,\"{\",CHAR(160),GF$1)),FIND(CHAR(160),SUBSTITUTE($U97,\"}\",CHAR(160),GF$1))-FIND(CHAR(160),SUBSTITUTE($U97,\"{\",CHAR(160),GF$1))+1),\"\")","v":""},{"$f":"IFERROR(MID($V97,FIND(CHAR(160),SUBSTITUTE($V97,\"{\",CHAR(160),GG$1)),FIND(CHAR(160),SUBSTITUTE($V97,\"}\",CHAR(160),GG$1))-FIND(CHAR(160),SUBSTITUTE($V97,\"{\",CHAR(160),GG$1))+1),\"\")","v":""},{"$f":"IFERROR(MID($V97,FIND(CHAR(160),SUBSTITUTE($V97,\"{\",CHAR(160),GH$1)),FIND(CHAR(160),SUBSTITUTE($V97,\"}\",CHAR(160),GH$1))-FIND(CHAR(160),SUBSTITUTE($V97,\"{\",CHAR(160),GH$1))+1),\"\")","v":""},{"$f":"IFERROR(MID($V97,FIND(CHAR(160),SUBSTITUTE($V97,\"{\",CHAR(160),GI$1)),FIND(CHAR(160),SUBSTITUTE($V97,\"}\",CHAR(160),GI$1))-FIND(CHAR(160),SUBSTITUTE($V97,\"{\",CHAR(160),GI$1))+1),\"\")","v":""},{"$f":"IFERROR(MID($V97,FIND(CHAR(160),SUBSTITUTE($V97,\"{\",CHAR(160),GJ$1)),FIND(CHAR(160),SUBSTITUTE($V97,\"}\",CHAR(160),GJ$1))-FIND(CHAR(160),SUBSTITUTE($V97,\"{\",CHAR(160),GJ$1))+1),\"\")","v":""},{"$f":"IFERROR(MID($V97,FIND(CHAR(160),SUBSTITUTE($V97,\"{\",CHAR(160),GK$1)),FIND(CHAR(160),SUBSTITUTE($V97,\"}\",CHAR(160),GK$1))-FIND(CHAR(160),SUBSTITUTE($V97,\"{\",CHAR(160),GK$1))+1),\"\")","v":""},{"$f":"IFERROR(MID($V97,FIND(CHAR(160),SUBSTITUTE($V97,\"{\",CHAR(160),GL$1)),FIND(CHAR(160),SUBSTITUTE($V97,\"}\",CHAR(160),GL$1))-FIND(CHAR(160),SUBSTITUTE($V97,\"{\",CHAR(160),GL$1))+1),\"\")","v":""},{"$f":"IFERROR(MID($V97,FIND(CHAR(160),SUBSTITUTE($V97,\"{\",CHAR(160),GM$1)),FIND(CHAR(160),SUBSTITUTE($V97,\"}\",CHAR(160),GM$1))-FIND(CHAR(160),SUBSTITUTE($V97,\"{\",CHAR(160),GM$1))+1),\"\")","v":""},{"$f":"IFERROR(MID($V97,FIND(CHAR(160),SUBSTITUTE($V97,\"{\",CHAR(160),GN$1)),FIND(CHAR(160),SUBSTITUTE($V97,\"}\",CHAR(160),GN$1))-FIND(CHAR(160),SUBSTITUTE($V97,\"{\",CHAR(160),GN$1))+1),\"\")","v":""},{"$f":"IFERROR(MID($V97,FIND(CHAR(160),SUBSTITUTE($V97,\"{\",CHAR(160),GO$1)),FIND(CHAR(160),SUBSTITUTE($V97,\"}\",CHAR(160),GO$1))-FIND(CHAR(160),SUBSTITUTE($V97,\"{\",CHAR(160),GO$1))+1),\"\")","v":""},{"$f":"IFERROR(MID($V97,FIND(CHAR(160),SUBSTITUTE($V97,\"{\",CHAR(160),GP$1)),FIND(CHAR(160),SUBSTITUTE($V97,\"}\",CHAR(160),GP$1))-FIND(CHAR(160),SUBSTITUTE($V97,\"{\",CHAR(160),GP$1))+1),\"\")","v":""},{"$f":"IFERROR(MID($W97,FIND(CHAR(160),SUBSTITUTE($W97,\"{\",CHAR(160),GQ$1)),FIND(CHAR(160),SUBSTITUTE($W97,\"}\",CHAR(160),GQ$1))-FIND(CHAR(160),SUBSTITUTE($W97,\"{\",CHAR(160),GQ$1))+1),\"\")","v":""},{"$f":"IFERROR(MID($W97,FIND(CHAR(160),SUBSTITUTE($W97,\"{\",CHAR(160),GR$1)),FIND(CHAR(160),SUBSTITUTE($W97,\"}\",CHAR(160),GR$1))-FIND(CHAR(160),SUBSTITUTE($W97,\"{\",CHAR(160),GR$1))+1),\"\")","v":""},{"$f":"IFERROR(MID($W97,FIND(CHAR(160),SUBSTITUTE($W97,\"{\",CHAR(160),GS$1)),FIND(CHAR(160),SUBSTITUTE($W97,\"}\",CHAR(160),GS$1))-FIND(CHAR(160),SUBSTITUTE($W97,\"{\",CHAR(160),GS$1))+1),\"\")","v":""},{"$f":"IFERROR(MID($W97,FIND(CHAR(160),SUBSTITUTE($W97,\"{\",CHAR(160),GT$1)),FIND(CHAR(160),SUBSTITUTE($W97,\"}\",CHAR(160),GT$1))-FIND(CHAR(160),SUBSTITUTE($W97,\"{\",CHAR(160),GT$1))+1),\"\")","v":""},{"$f":"IFERROR(MID($W97,FIND(CHAR(160),SUBSTITUTE($W97,\"{\",CHAR(160),GU$1)),FIND(CHAR(160),SUBSTITUTE($W97,\"}\",CHAR(160),GU$1))-FIND(CHAR(160),SUBSTITUTE($W97,\"{\",CHAR(160),GU$1))+1),\"\")","v":""},{"$f":"IFERROR(MID($W97,FIND(CHAR(160),SUBSTITUTE($W97,\"{\",CHAR(160),GV$1)),FIND(CHAR(160),SUBSTITUTE($W97,\"}\",CHAR(160),GV$1))-FIND(CHAR(160),SUBSTITUTE($W97,\"{\",CHAR(160),GV$1))+1),\"\")","v":""},{"$f":"IFERROR(MID($W97,FIND(CHAR(160),SUBSTITUTE($W97,\"{\",CHAR(160),GW$1)),FIND(CHAR(160),SUBSTITUTE($W97,\"}\",CHAR(160),GW$1))-FIND(CHAR(160),SUBSTITUTE($W97,\"{\",CHAR(160),GW$1))+1),\"\")","v":""},{"$f":"IFERROR(MID($W97,FIND(CHAR(160),SUBSTITUTE($W97,\"{\",CHAR(160),GX$1)),FIND(CHAR(160),SUBSTITUTE($W97,\"}\",CHAR(160),GX$1))-FIND(CHAR(160),SUBSTITUTE($W97,\"{\",CHAR(160),GX$1))+1),\"\")","v":""},{"$f":"IFERROR(MID($W97,FIND(CHAR(160),SUBSTITUTE($W97,\"{\",CHAR(160),GY$1)),FIND(CHAR(160),SUBSTITUTE($W97,\"}\",CHAR(160),GY$1))-FIND(CHAR(160),SUBSTITUTE($W97,\"{\",CHAR(160),GY$1))+1),\"\")","v":""},{"$f":"IFERROR(MID($W97,FIND(CHAR(160),SUBSTITUTE($W97,\"{\",CHAR(160),GZ$1)),FIND(CHAR(160),SUBSTITUTE($W97,\"}\",CHAR(160),GZ$1))-FIND(CHAR(160),SUBSTITUTE($W97,\"{\",CHAR(160),GZ$1))+1),\"\")","v":""},{"$f":"IFERROR(MID($X97,FIND(CHAR(160),SUBSTITUTE($X97,\"{\",CHAR(160),HA$1)),FIND(CHAR(160),SUBSTITUTE($X97,\"}\",CHAR(160),HA$1))-FIND(CHAR(160),SUBSTITUTE($X97,\"{\",CHAR(160),HA$1))+1),\"\")","v":""},{"$f":"IFERROR(MID($X97,FIND(CHAR(160),SUBSTITUTE($X97,\"{\",CHAR(160),HB$1)),FIND(CHAR(160),SUBSTITUTE($X97,\"}\",CHAR(160),HB$1))-FIND(CHAR(160),SUBSTITUTE($X97,\"{\",CHAR(160),HB$1))+1),\"\")","v":""},{"$f":"IFERROR(MID($X97,FIND(CHAR(160),SUBSTITUTE($X97,\"{\",CHAR(160),HC$1)),FIND(CHAR(160),SUBSTITUTE($X97,\"}\",CHAR(160),HC$1))-FIND(CHAR(160),SUBSTITUTE($X97,\"{\",CHAR(160),HC$1))+1),\"\")","v":""},{"$f":"IFERROR(MID($X97,FIND(CHAR(160),SUBSTITUTE($X97,\"{\",CHAR(160),HD$1)),FIND(CHAR(160),SUBSTITUTE($X97,\"}\",CHAR(160),HD$1))-FIND(CHAR(160),SUBSTITUTE($X97,\"{\",CHAR(160),HD$1))+1),\"\")","v":""},{"$f":"IFERROR(MID($X97,FIND(CHAR(160),SUBSTITUTE($X97,\"{\",CHAR(160),HE$1)),FIND(CHAR(160),SUBSTITUTE($X97,\"}\",CHAR(160),HE$1))-FIND(CHAR(160),SUBSTITUTE($X97,\"{\",CHAR(160),HE$1))+1),\"\")","v":""},{"$f":"IFERROR(MID($X97,FIND(CHAR(160),SUBSTITUTE($X97,\"{\",CHAR(160),HF$1)),FIND(CHAR(160),SUBSTITUTE($X97,\"}\",CHAR(160),HF$1))-FIND(CHAR(160),SUBSTITUTE($X97,\"{\",CHAR(160),HF$1))+1),\"\")","v":""},{"$f":"IFERROR(MID($X97,FIND(CHAR(160),SUBSTITUTE($X97,\"{\",CHAR(160),HG$1)),FIND(CHAR(160),SUBSTITUTE($X97,\"}\",CHAR(160),HG$1))-FIND(CHAR(160),SUBSTITUTE($X97,\"{\",CHAR(160),HG$1))+1),\"\")","v":""},{"$f":"IFERROR(MID($X97,FIND(CHAR(160),SUBSTITUTE($X97,\"{\",CHAR(160),HH$1)),FIND(CHAR(160),SUBSTITUTE($X97,\"}\",CHAR(160),HH$1))-FIND(CHAR(160),SUBSTITUTE($X97,\"{\",CHAR(160),HH$1))+1),\"\")","v":""},{"$f":"IFERROR(MID($X97,FIND(CHAR(160),SUBSTITUTE($X97,\"{\",CHAR(160),HI$1)),FIND(CHAR(160),SUBSTITUTE($X97,\"}\",CHAR(160),HI$1))-FIND(CHAR(160),SUBSTITUTE($X97,\"{\",CHAR(160),HI$1))+1),\"\")","v":""},{"$f":"IFERROR(MID($X97,FIND(CHAR(160),SUBSTITUTE($X97,\"{\",CHAR(160),HJ$1)),FIND(CHAR(160),SUBSTITUTE($X97,\"}\",CHAR(160),HJ$1))-FIND(CHAR(160),SUBSTITUTE($X97,\"{\",CHAR(160),HJ$1))+1),\"\")","v":""},{"$f":"IFERROR(MID($Y97,FIND(CHAR(160),SUBSTITUTE($Y97,\"{\",CHAR(160),HK$1)),FIND(CHAR(160),SUBSTITUTE($Y97,\"}\",CHAR(160),HK$1))-FIND(CHAR(160),SUBSTITUTE($Y97,\"{\",CHAR(160),HK$1))+1),\"\")","v":"{Capacity (MBTUH)}"},{"$f":"IFERROR(MID($Y97,FIND(CHAR(160),SUBSTITUTE($Y97,\"{\",CHAR(160),HL$1)),FIND(CHAR(160),SUBSTITUTE($Y97,\"}\",CHAR(160),HL$1))-FIND(CHAR(160),SUBSTITUTE($Y97,\"{\",CHAR(160),HL$1))+1),\"\")","v":"{End-Use}"},{"$f":"IFERROR(MID($Y97,FIND(CHAR(160),SUBSTITUTE($Y97,\"{\",CHAR(160),HM$1)),FIND(CHAR(160),SUBSTITUTE($Y97,\"}\",CHAR(160),HM$1))-FIND(CHAR(160),SUBSTITUTE($Y97,\"{\",CHAR(160),HM$1))+1),\"\")","v":"{Annual Hours of Operation}"},{"$f":"IFERROR(MID($Y97,FIND(CHAR(160),SUBSTITUTE($Y97,\"{\",CHAR(160),HN$1)),FIND(CHAR(160),SUBSTITUTE($Y97,\"}\",CHAR(160),HN$1))-FIND(CHAR(160),SUBSTITUTE($Y97,\"{\",CHAR(160),HN$1))+1),\"\")","v":""},{"$f":"IFERROR(MID($Y97,FIND(CHAR(160),SUBSTITUTE($Y97,\"{\",CHAR(160),HO$1)),FIND(CHAR(160),SUBSTITUTE($Y97,\"}\",CHAR(160),HO$1))-FIND(CHAR(160),SUBSTITUTE($Y97,\"{\",CHAR(160),HO$1))+1),\"\")","v":""},{"$f":"IFERROR(MID($Y97,FIND(CHAR(160),SUBSTITUTE($Y97,\"{\",CHAR(160),HP$1)),FIND(CHAR(160),SUBSTITUTE($Y97,\"}\",CHAR(160),HP$1))-FIND(CHAR(160),SUBSTITUTE($Y97,\"{\",CHAR(160),HP$1))+1),\"\")","v":""},{"$f":"IFERROR(MID($Y97,FIND(CHAR(160),SUBSTITUTE($Y97,\"{\",CHAR(160),HQ$1)),FIND(CHAR(160),SUBSTITUTE($Y97,\"}\",CHAR(160),HQ$1))-FIND(CHAR(160),SUBSTITUTE($Y97,\"{\",CHAR(160),HQ$1))+1),\"\")","v":""},{"$f":"IFERROR(MID($Y97,FIND(CHAR(160),SUBSTITUTE($Y97,\"{\",CHAR(160),HR$1)),FIND(CHAR(160),SUBSTITUTE($Y97,\"}\",CHAR(160),HR$1))-FIND(CHAR(160),SUBSTITUTE($Y97,\"{\",CHAR(160),HR$1))+1),\"\")","v":""},{"$f":"IFERROR(MID($Y97,FIND(CHAR(160),SUBSTITUTE($Y97,\"{\",CHAR(160),HS$1)),FIND(CHAR(160),SUBSTITUTE($Y97,\"}\",CHAR(160),HS$1))-FIND(CHAR(160),SUBSTITUTE($Y97,\"{\",CHAR(160),HS$1))+1),\"\")","v":"{Existing Fuel}"},{"$f":"IFERROR(MID($Y97,FIND(CHAR(160),SUBSTITUTE($Y97,\"{\",CHAR(160),HT$1)),FIND(CHAR(160),SUBSTITUTE($Y97,\"}\",CHAR(160),HT$1))-FIND(CHAR(160),SUBSTITUTE($Y97,\"{\",CHAR(160),HT$1))+1),\"\")","v":"{Measure:Quantity}"},{"$f":"IFERROR(MID($Z97,FIND(CHAR(160),SUBSTITUTE($Z97,\"{\",CHAR(160),HU$1)),FIND(CHAR(160),SUBSTITUTE($Z97,\"}\",CHAR(160),HU$1))-FIND(CHAR(160),SUBSTITUTE($Z97,\"{\",CHAR(160),HU$1))+1),\"\")","v":""},{"$f":"IFERROR(MID($Z97,FIND(CHAR(160),SUBSTITUTE($Z97,\"{\",CHAR(160),HV$1)),FIND(CHAR(160),SUBSTITUTE($Z97,\"}\",CHAR(160),HV$1))-FIND(CHAR(160),SUBSTITUTE($Z97,\"{\",CHAR(160),HV$1))+1),\"\")","v":""},{"$f":"IFERROR(MID($Z97,FIND(CHAR(160),SUBSTITUTE($Z97,\"{\",CHAR(160),HW$1)),FIND(CHAR(160),SUBSTITUTE($Z97,\"}\",CHAR(160),HW$1))-FIND(CHAR(160),SUBSTITUTE($Z97,\"{\",CHAR(160),HW$1))+1),\"\")","v":""},{"$f":"IFERROR(MID($Z97,FIND(CHAR(160),SUBSTITUTE($Z97,\"{\",CHAR(160),HX$1)),FIND(CHAR(160),SUBSTITUTE($Z97,\"}\",CHAR(160),HX$1))-FIND(CHAR(160),SUBSTITUTE($Z97,\"{\",CHAR(160),HX$1))+1),\"\")","v":""},{"$f":"IFERROR(MID($Z97,FIND(CHAR(160),SUBSTITUTE($Z97,\"{\",CHAR(160),HY$1)),FIND(CHAR(160),SUBSTITUTE($Z97,\"}\",CHAR(160),HY$1))-FIND(CHAR(160),SUBSTITUTE($Z97,\"{\",CHAR(160),HY$1))+1),\"\")","v":""},{"$f":"IFERROR(MID($Z97,FIND(CHAR(160),SUBSTITUTE($Z97,\"{\",CHAR(160),HZ$1)),FIND(CHAR(160),SUBSTITUTE($Z97,\"}\",CHAR(160),HZ$1))-FIND(CHAR(160),SUBSTITUTE($Z97,\"{\",CHAR(160),HZ$1))+1),\"\")","v":""},{"$f":"IFERROR(MID($Z97,FIND(CHAR(160),SUBSTITUTE($Z97,\"{\",CHAR(160),IA$1)),FIND(CHAR(160),SUBSTITUTE($Z97,\"}\",CHAR(160),IA$1))-FIND(CHAR(160),SUBSTITUTE($Z97,\"{\",CHAR(160),IA$1))+1),\"\")","v":""},{"$f":"IFERROR(MID($Z97,FIND(CHAR(160),SUBSTITUTE($Z97,\"{\",CHAR(160),IB$1)),FIND(CHAR(160),SUBSTITUTE($Z97,\"}\",CHAR(160),IB$1))-FIND(CHAR(160),SUBSTITUTE($Z97,\"{\",CHAR(160),IB$1))+1),\"\")","v":""},{"$f":"IFERROR(MID($Z97,FIND(CHAR(160),SUBSTITUTE($Z97,\"{\",CHAR(160),IC$1)),FIND(CHAR(160),SUBSTITUTE($Z97,\"}\",CHAR(160),IC$1))-FIND(CHAR(160),SUBSTITUTE($Z97,\"{\",CHAR(160),IC$1))+1),\"\")","v":""},{"$f":"IFERROR(MID($Z97,FIND(CHAR(160),SUBSTITUTE($Z97,\"{\",CHAR(160),ID$1)),FIND(CHAR(160),SUBSTITUTE($Z97,\"}\",CHAR(160),ID$1))-FIND(CHAR(160),SUBSTITUTE($Z97,\"{\",CHAR(160),ID$1))+1),\"\")","v":""},{"$f":"IFERROR(MID($AA97,FIND(CHAR(160),SUBSTITUTE($AA97,\"{\",CHAR(160),IE$1)),FIND(CHAR(160),SUBSTITUTE($AA97,\"}\",CHAR(160),IE$1))-FIND(CHAR(160),SUBSTITUTE($AA97,\"{\",CHAR(160),IE$1))+1),\"\")","v":""},{"$f":"IFERROR(MID($AA97,FIND(CHAR(160),SUBSTITUTE($AA97,\"{\",CHAR(160),IF$1)),FIND(CHAR(160),SUBSTITUTE($AA97,\"}\",CHAR(160),IF$1))-FIND(CHAR(160),SUBSTITUTE($AA97,\"{\",CHAR(160),IF$1))+1),\"\")","v":""},{"$f":"IFERROR(MID($AA97,FIND(CHAR(160),SUBSTITUTE($AA97,\"{\",CHAR(160),IG$1)),FIND(CHAR(160),SUBSTITUTE($AA97,\"}\",CHAR(160),IG$1))-FIND(CHAR(160),SUBSTITUTE($AA97,\"{\",CHAR(160),IG$1))+1),\"\")","v":""},{"$f":"IFERROR(MID($AA97,FIND(CHAR(160),SUBSTITUTE($AA97,\"{\",CHAR(160),IH$1)),FIND(CHAR(160),SUBSTITUTE($AA97,\"}\",CHAR(160),IH$1))-FIND(CHAR(160),SUBSTITUTE($AA97,\"{\",CHAR(160),IH$1))+1),\"\")","v":""},{"$f":"IFERROR(MID($AA97,FIND(CHAR(160),SUBSTITUTE($AA97,\"{\",CHAR(160),II$1)),FIND(CHAR(160),SUBSTITUTE($AA97,\"}\",CHAR(160),II$1))-FIND(CHAR(160),SUBSTITUTE($AA97,\"{\",CHAR(160),II$1))+1),\"\")","v":""},{"$f":"IFERROR(MID($AA97,FIND(CHAR(160),SUBSTITUTE($AA97,\"{\",CHAR(160),IJ$1)),FIND(CHAR(160),SUBSTITUTE($AA97,\"}\",CHAR(160),IJ$1))-FIND(CHAR(160),SUBSTITUTE($AA97,\"{\",CHAR(160),IJ$1))+1),\"\")","v":""},{"$f":"IFERROR(MID($AA97,FIND(CHAR(160),SUBSTITUTE($AA97,\"{\",CHAR(160),IK$1)),FIND(CHAR(160),SUBSTITUTE($AA97,\"}\",CHAR(160),IK$1))-FIND(CHAR(160),SUBSTITUTE($AA97,\"{\",CHAR(160),IK$1))+1),\"\")","v":""},{"$f":"IFERROR(MID($AA97,FIND(CHAR(160),SUBSTITUTE($AA97,\"{\",CHAR(160),IL$1)),FIND(CHAR(160),SUBSTITUTE($AA97,\"}\",CHAR(160),IL$1))-FIND(CHAR(160),SUBSTITUTE($AA97,\"{\",CHAR(160),IL$1))+1),\"\")","v":""},{"$f":"IFERROR(MID($AA97,FIND(CHAR(160),SUBSTITUTE($AA97,\"{\",CHAR(160),IM$1)),FIND(CHAR(160),SUBSTITUTE($AA97,\"}\",CHAR(160),IM$1))-FIND(CHAR(160),SUBSTITUTE($AA97,\"{\",CHAR(160),IM$1))+1),\"\")","v":""},{"$f":"IFERROR(MID($AA97,FIND(CHAR(160),SUBSTITUTE($AA97,\"{\",CHAR(160),IN$1)),FIND(CHAR(160),SUBSTITUTE($AA97,\"}\",CHAR(160),IN$1))-FIND(CHAR(160),SUBSTITUTE($AA97,\"{\",CHAR(160),IN$1))+1),\"\")","v":""},{"$f":"IFERROR(MID($AB97,FIND(CHAR(160),SUBSTITUTE($AB97,\"{\",CHAR(160),IO$1)),FIND(CHAR(160),SUBSTITUTE($AB97,\"}\",CHAR(160),IO$1))-FIND(CHAR(160),SUBSTITUTE($AB97,\"{\",CHAR(160),IO$1))+1),\"\")","v":""},{"$f":"IFERROR(MID($AB97,FIND(CHAR(160),SUBSTITUTE($AB97,\"{\",CHAR(160),IP$1)),FIND(CHAR(160),SUBSTITUTE($AB97,\"}\",CHAR(160),IP$1))-FIND(CHAR(160),SUBSTITUTE($AB97,\"{\",CHAR(160),IP$1))+1),\"\")","v":""},{"$f":"IFERROR(MID($AB97,FIND(CHAR(160),SUBSTITUTE($AB97,\"{\",CHAR(160),IQ$1)),FIND(CHAR(160),SUBSTITUTE($AB97,\"}\",CHAR(160),IQ$1))-FIND(CHAR(160),SUBSTITUTE($AB97,\"{\",CHAR(160),IQ$1))+1),\"\")","v":""},{"$f":"IFERROR(MID($AB97,FIND(CHAR(160),SUBSTITUTE($AB97,\"{\",CHAR(160),IR$1)),FIND(CHAR(160),SUBSTITUTE($AB97,\"}\",CHAR(160),IR$1))-FIND(CHAR(160),SUBSTITUTE($AB97,\"{\",CHAR(160),IR$1))+1),\"\")","v":""},{"$f":"IFERROR(MID($AB97,FIND(CHAR(160),SUBSTITUTE($AB97,\"{\",CHAR(160),IS$1)),FIND(CHAR(160),SUBSTITUTE($AB97,\"}\",CHAR(160),IS$1))-FIND(CHAR(160),SUBSTITUTE($AB97,\"{\",CHAR(160),IS$1))+1),\"\")","v":""},{"$f":"IFERROR(MID($AB97,FIND(CHAR(160),SUBSTITUTE($AB97,\"{\",CHAR(160),IT$1)),FIND(CHAR(160),SUBSTITUTE($AB97,\"}\",CHAR(160),IT$1))-FIND(CHAR(160),SUBSTITUTE($AB97,\"{\",CHAR(160),IT$1))+1),\"\")","v":""},{"$f":"IFERROR(MID($AB97,FIND(CHAR(160),SUBSTITUTE($AB97,\"{\",CHAR(160),IU$1)),FIND(CHAR(160),SUBSTITUTE($AB97,\"}\",CHAR(160),IU$1))-FIND(CHAR(160),SUBSTITUTE($AB97,\"{\",CHAR(160),IU$1))+1),\"\")","v":""},{"$f":"IFERROR(MID($AB97,FIND(CHAR(160),SUBSTITUTE($AB97,\"{\",CHAR(160),IV$1)),FIND(CHAR(160),SUBSTITUTE($AB97,\"}\",CHAR(160),IV$1))-FIND(CHAR(160),SUBSTITUTE($AB97,\"{\",CHAR(160),IV$1))+1),\"\")","v":""},{"$f":"IFERROR(MID($AB97,FIND(CHAR(160),SUBSTITUTE($AB97,\"{\",CHAR(160),IW$1)),FIND(CHAR(160),SUBSTITUTE($AB97,\"}\",CHAR(160),IW$1))-FIND(CHAR(160),SUBSTITUTE($AB97,\"{\",CHAR(160),IW$1))+1),\"\")","v":""},{"$f":"IFERROR(MID($AB97,FIND(CHAR(160),SUBSTITUTE($AB97,\"{\",CHAR(160),IX$1)),FIND(CHAR(160),SUBSTITUTE($AB97,\"}\",CHAR(160),IX$1))-FIND(CHAR(160),SUBSTITUTE($AB97,\"{\",CHAR(160),IX$1))+1),\"\")","v":""},null,{"$f":"10-COUNTIF(DU97:ED97,\"\")","v":5}]
["C&I HVAC - Oil","Programmable Thermostat","AF6","2021-07-01","2022-06-30","Per Measure",157,0,"Calculated","{Measure:Quantity}*100",0,"2021-05-25","2022-06-30","Calculated",null,null,null,null,null,null,null,null,null,null,"if({Existing Fuel}<>3,0,{Measure:Quantity} * ({Capacity (MBTUH)} * 1565 *0.068) / 1000)",null,null,null,"2021-05-24","2022-06-30",8,0,0,0,0,0,0,1,1,0,0.52,1.6E-2,null,{"$f":"DU98","v":"{Measure:Quantity}"},1,{"$f":"DV98","v":"{Capacity (MBTUH)}"},3,{"$f":"DW98","v":"{Existing Fuel}"},100,{"$f":"DX98","v":""},null,{"$f":"DY98","v":""},null,{"$f":"DZ98","v":""},null,{"$f":"EA98","v":""},null,{"$f":"EB98","v":""},null,{"$f":"EC98","v":""},null,{"$f":"ED98","v":""},null,0,0,0,0,0,0,0,0,0,0,{"$f":"IF(AU98<>3,0,AS98 * (AW98 * 1565 *0.068) / 1000)","v":10.641999999999999},0,0,0,null,"Res","Default DR",{"$f":"Benefits(BL98,BR98,BS98,BT98,BU98,BV98,BW98,BX98,BY98,BZ98,AE98,AH98,AI98,AJ98,AK98,AL98,AM98,AN98,AO98,AP98,CA98,CB98)","v":0},0,0,2634.2426802411069,0,0,0,0,0,{"$f":"SUMPRODUCT(CC98:CK98,--(CC98:CK98>0))","v":2634.2426802411069},{"$f":"-SUMPRODUCT(CC98:CK98,--(CC98:CK98<0))","v":0},null,{"$f":"157","v":157},null,null,{"$f":"CM98+CO98","v":157},{"$f":"IF(NetOrGross=\"Net\",(1-AO98+AP98),1)","v":1},{"$f":"(SUMPRODUCT(CC98:CJ98,--(CC98:CJ98>0))+CN98)*CS98/((-SUMPRODUCT(CC98:CJ98,--(CC98:CJ98<0))+MAX(CO98,CV98)+CP98+CQ98)*CS98+IF(FRIncentives=\"Yes\",CV98*(1-CS98),0))","v":16.778615797714057},1,{"$f":"AS98*100","v":100},null,"RGGI","y",null,{"$f":"IF(F98=\"Manual Entry\",\"Manual\",IF(G98=\"\",0,\"X=\"&SUBSTITUTE(SUBSTITUTE(SUBSTITUTE(SUBSTITUTE(SUBSTITUTE(SUBSTITUTE(SUBSTITUTE(SUBSTITUTE(SUBSTITUTE(SUBSTITUTE(SUBSTITUTE(SUBSTITUTE(G98,$ED98,$ED$2&ROW($ED98)),$EC98,$EC$2&ROW($EC98)),$EB98,$EB$2&ROW($EB98)),$EA98,$EA$2&ROW($EA98)),$DZ98,$DZ$2&ROW($DZ98)),$DY98,$DY$2&ROW($DY98)),$DX98,$DX$2&ROW($DX98)),$DW98,$DW$2&ROW($DW98)),$DV98,$DV$2&ROW($DV98)),$DU98,$DU$2&ROW($DU98)),$DT98,$DT$2&ROW($DT98)),$DS98,$DS$2&ROW($DS98))))","v":"X=157"},{"$f":"IF(I98=\"Manual Entry\",\"Manual\",IF(J98=\"\",0,\"X=\"&SUBSTITUTE(SUBSTITUTE(SUBSTITUTE(SUBSTITUTE(SUBSTITUTE(SUBSTITUTE(SUBSTITUTE(SUBSTITUTE(SUBSTITUTE(SUBSTITUTE(SUBSTITUTE(SUBSTITUTE(J98,$ED98,$ED$2&ROW($ED98)),$EC98,$EC$2&ROW($EC98)),$EB98,$EB$2&ROW($EB98)),$EA98,$EA$2&ROW($EA98)),$DZ98,$DZ$2&ROW($DZ98)),$DY98,$DY$2&ROW($DY98)),$DX98,$DX$2&ROW($DX98)),$DW98,$DW$2&ROW($DW98)),$DV98,$DV$2&ROW($DV98)),$DU98,$DU$2&ROW($DU98)),$DT98,$DT$2&ROW($DT98)),$DS98,$DS$2&ROW($DS98))))","v":"X=AS98*100"},{"$f":"IF(O98=\"\",0,\"X=\"&SUBSTITUTE(SUBSTITUTE(SUBSTITUTE(SUBSTITUTE(SUBSTITUTE(SUBSTITUTE(SUBSTITUTE(SUBSTITUTE(SUBSTITUTE(SUBSTITUTE(SUBSTITUTE(SUBSTITUTE(O98,$ED98,$ED$2&ROW($ED98)),$EC98,$EC$2&ROW($EC98)),$EB98,$EB$2&ROW($EB98)),$EA98,$EA$2&ROW($EA98)),$DZ98,$DZ$2&ROW($DZ98)),$DY98,$DY$2&ROW($DY98)),$DX98,$DX$2&ROW($DX98)),$DW98,$DW$2&ROW($DW98)),$DV98,$DV$2&ROW($DV98)),$DU98,$DU$2&ROW($DU98)),$DT98,$DT$2&ROW($DT98)),$DS98,$DS$2&ROW($DS98)))","v":0},{"$f":"IF(P98=\"\",0,\"X=\"&SUBSTITUTE(SUBSTITUTE(SUBSTITUTE(SUBSTITUTE(SUBSTITUTE(SUBSTITUTE(SUBSTITUTE(SUBSTITUTE(SUBSTITUTE(SUBSTITUTE(SUBSTITUTE(SUBSTITUTE(P98,$ED98,$ED$2&ROW($ED98)),$EC98,$EC$2&ROW($EC98)),$EB98,$EB$2&ROW($EB98)),$EA98,$EA$2&ROW($EA98)),$DZ98,$DZ$2&ROW($DZ98)),$DY98,$DY$2&ROW($DY98)),$DX98,$DX$2&ROW($DX98)),$DW98,$DW$2&ROW($DW98)),$DV98,$DV$2&ROW($DV98)),$DU98,$DU$2&ROW($DU98)),$DT98,$DT$2&ROW($DT98)),$DS98,$DS$2&ROW($DS98)))","v":0},{"$f":"IF(Q98=\"\",0,\"X=\"&SUBSTITUTE(SUBSTITUTE(SUBSTITUTE(SUBSTITUTE(SUBSTITUTE(SUBSTITUTE(SUBSTITUTE(SUBSTITUTE(SUBSTITUTE(SUBSTITUTE(SUBSTITUTE(SUBSTITUTE(Q98,$ED98,$ED$2&ROW($ED98)),$EC98,$EC$2&ROW($EC98)),$EB98,$EB$2&ROW($EB98)),$EA98,$EA$2&ROW($EA98)),$DZ98,$DZ$2&ROW($DZ98)),$DY98,$DY$2&ROW($DY98)),$DX98,$DX$2&ROW($DX98)),$DW98,$DW$2&ROW($DW98)),$DV98,$DV$2&ROW($DV98)),$DU98,$DU$2&ROW($DU98)),$DT98,$DT$2&ROW($DT98)),$DS98,$DS$2&ROW($DS98)))","v":0},{"$f":"IF(R98=\"\",0,\"X=\"&SUBSTITUTE(SUBSTITUTE(SUBSTITUTE(SUBSTITUTE(SUBSTITUTE(SUBSTITUTE(SUBSTITUTE(SUBSTITUTE(SUBSTITUTE(SUBSTITUTE(SUBSTITUTE(SUBSTITUTE(R98,$ED98,$ED$2&ROW($ED98)),$EC98,$EC$2&ROW($EC98)),$EB98,$EB$2&ROW($EB98)),$EA98,$EA$2&ROW($EA98)),$DZ98,$DZ$2&ROW($DZ98)),$DY98,$DY$2&ROW($DY98)),$DX98,$DX$2&ROW($DX98)),$DW98,$DW$2&ROW($DW98)),$DV98,$DV$2&ROW($DV98)),$DU98,$DU$2&ROW($DU98)),$DT98,$DT$2&ROW($DT98)),$DS98,$DS$2&ROW($DS98)))","v":0},{"$f":"IF(S98=\"\",0,\"X=\"&SUBSTITUTE(SUBSTITUTE(SUBSTITUTE(SUBSTITUTE(SUBSTITUTE(SUBSTITUTE(SUBSTITUTE(SUBSTITUTE(SUBSTITUTE(SUBSTITUTE(SUBSTITUTE(SUBSTITUTE(S98,$ED98,$ED$2&ROW($ED98)),$EC98,$EC$2&ROW($EC98)),$EB98,$EB$2&ROW($EB98)),$EA98,$EA$2&ROW($EA98)),$DZ98,$DZ$2&ROW($DZ98)),$DY98,$DY$2&ROW($DY98)),$DX98,$DX$2&ROW($DX98)),$DW98,$DW$2&ROW($DW98)),$DV98,$DV$2&ROW($DV98)),$DU98,$DU$2&ROW($DU98)),$DT98,$DT$2&ROW($DT98)),$DS98,$DS$2&ROW($DS98)))","v":0},{"$f":"IF(T98=\"\",0,\"X=\"&SUBSTITUTE(SUBSTITUTE(SUBSTITUTE(SUBSTITUTE(SUBSTITUTE(SUBSTITUTE(SUBSTITUTE(SUBSTITUTE(SUBSTITUTE(SUBSTITUTE(SUBSTITUTE(SUBSTITUTE(T98,$ED98,$ED$2&ROW($ED98)),$EC98,$EC$2&ROW($EC98)),$EB98,$EB$2&ROW($EB98)),$EA98,$EA$2&ROW($EA98)),$DZ98,$DZ$2&ROW($DZ98)),$DY98,$DY$2&ROW($DY98)),$DX98,$DX$2&ROW($DX98)),$DW98,$DW$2&ROW($DW98)),$DV98,$DV$2&ROW($DV98)),$DU98,$DU$2&ROW($DU98)),$DT98,$DT$2&ROW($DT98)),$DS98,$DS$2&ROW($DS98)))","v":0},{"$f":"IF(U98=\"\",0,\"X=\"&SUBSTITUTE(SUBSTITUTE(SUBSTITUTE(SUBSTITUTE(SUBSTITUTE(SUBSTITUTE(SUBSTITUTE(SUBSTITUTE(SUBSTITUTE(SUBSTITUTE(SUBSTITUTE(SUBSTITUTE(U98,$ED98,$ED$2&ROW($ED98)),$EC98,$EC$2&ROW($EC98)),$EB98,$EB$2&ROW($EB98)),$EA98,$EA$2&ROW($EA98)),$DZ98,$DZ$2&ROW($DZ98)),$DY98,$DY$2&ROW($DY98)),$DX98,$DX$2&ROW($DX98)),$DW98,$DW$2&ROW($DW98)),$DV98,$DV$2&ROW($DV98)),$DU98,$DU$2&ROW($DU98)),$DT98,$DT$2&ROW($DT98)),$DS98,$DS$2&ROW($DS98)))","v":0},{"$f":"IF(V98=\"\",0,\"X=\"&SUBSTITUTE(SUBSTITUTE(SUBSTITUTE(SUBSTITUTE(SUBSTITUTE(SUBSTITUTE(SUBSTITUTE(SUBSTITUTE(SUBSTITUTE(SUBSTITUTE(SUBSTITUTE(SUBSTITUTE(V98,$ED98,$ED$2&ROW($ED98)),$EC98,$EC$2&ROW($EC98)),$EB98,$EB$2&ROW($EB98)),$EA98,$EA$2&ROW($EA98)),$DZ98,$DZ$2&ROW($DZ98)),$DY98,$DY$2&ROW($DY98)),$DX98,$DX$2&ROW($DX98)),$DW98,$DW$2&ROW($DW98)),$DV98,$DV$2&ROW($DV98)),$DU98,$DU$2&ROW($DU98)),$DT98,$DT$2&ROW($DT98)),$DS98,$DS$2&ROW($DS98)))","v":0},{"$f":"IF(W98=\"\",0,\"X=\"&SUBSTITUTE(SUBSTITUTE(SUBSTITUTE(SUBSTITUTE(SUBSTITUTE(SUBSTITUTE(SUBSTITUTE(SUBSTITUTE(SUBSTITUTE(SUBSTITUTE(SUBSTITUTE(SUBSTITUTE(W98,$ED98,$ED$2&ROW($ED98)),$EC98,$EC$2&ROW($EC98)),$EB98,$EB$2&ROW($EB98)),$EA98,$EA$2&ROW($EA98)),$DZ98,$DZ$2&ROW($DZ98)),$DY98,$DY$2&ROW($DY98)),$DX98,$DX$2&ROW($DX98)),$DW98,$DW$2&ROW($DW98)),$DV98,$DV$2&ROW($DV98)),$DU98,$DU$2&ROW($DU98)),$DT98,$DT$2&ROW($DT98)),$DS98,$DS$2&ROW($DS98)))","v":0},{"$f":"IF(X98=\"\",0,\"X=\"&SUBSTITUTE(SUBSTITUTE(SUBSTITUTE(SUBSTITUTE(SUBSTITUTE(SUBSTITUTE(SUBSTITUTE(SUBSTITUTE(SUBSTITUTE(SUBSTITUTE(SUBSTITUTE(SUBSTITUTE(X98,$ED98,$ED$2&ROW($ED98)),$EC98,$EC$2&ROW($EC98)),$EB98,$EB$2&ROW($EB98)),$EA98,$EA$2&ROW($EA98)),$DZ98,$DZ$2&ROW($DZ98)),$DY98,$DY$2&ROW($DY98)),$DX98,$DX$2&ROW($DX98)),$DW98,$DW$2&ROW($DW98)),$DV98,$DV$2&ROW($DV98)),$DU98,$DU$2&ROW($DU98)),$DT98,$DT$2&ROW($DT98)),$DS98,$DS$2&ROW($DS98)))","v":0},{"$f":"IF(Y98=\"\",0,\"X=\"&SUBSTITUTE(SUBSTITUTE(SUBSTITUTE(SUBSTITUTE(SUBSTITUTE(SUBSTITUTE(SUBSTITUTE(SUBSTITUTE(SUBSTITUTE(SUBSTITUTE(SUBSTITUTE(SUBSTITUTE(Y98,$ED98,$ED$2&ROW($ED98)),$EC98,$EC$2&ROW($EC98)),$EB98,$EB$2&ROW($EB98)),$EA98,$EA$2&ROW($EA98)),$DZ98,$DZ$2&ROW($DZ98)),$DY98,$DY$2&ROW($DY98)),$DX98,$DX$2&ROW($DX98)),$DW98,$DW$2&ROW($DW98)),$DV98,$DV$2&ROW($DV98)),$DU98,$DU$2&ROW($DU98)),$DT98,$DT$2&ROW($DT98)),$DS98,$DS$2&ROW($DS98)))","v":"X=if(AW98<>3,0,AS98 * (AU98 * 1565 *0.068) / 1000)"},{"$f":"IF(Z98=\"\",0,\"X=\"&SUBSTITUTE(SUBSTITUTE(SUBSTITUTE(SUBSTITUTE(SUBSTITUTE(SUBSTITUTE(SUBSTITUTE(SUBSTITUTE(SUBSTITUTE(SUBSTITUTE(SUBSTITUTE(SUBSTITUTE(Z98,$ED98,$ED$2&ROW($ED98)),$EC98,$EC$2&ROW($EC98)),$EB98,$EB$2&ROW($EB98)),$EA98,$EA$2&ROW($EA98)),$DZ98,$DZ$2&ROW($DZ98)),$DY98,$DY$2&ROW($DY98)),$DX98,$DX$2&ROW($DX98)),$DW98,$DW$2&ROW($DW98)),$DV98,$DV$2&ROW($DV98)),$DU98,$DU$2&ROW($DU98)),$DT98,$DT$2&ROW($DT98)),$DS98,$DS$2&ROW($DS98)))","v":0},{"$f":"IF(AA98=\"\",0,\"X=\"&SUBSTITUTE(SUBSTITUTE(SUBSTITUTE(SUBSTITUTE(SUBSTITUTE(SUBSTITUTE(SUBSTITUTE(SUBSTITUTE(SUBSTITUTE(SUBSTITUTE(SUBSTITUTE(SUBSTITUTE(AA98,$ED98,$ED$2&ROW($ED98)),$EC98,$EC$2&ROW($EC98)),$EB98,$EB$2&ROW($EB98)),$EA98,$EA$2&ROW($EA98)),$DZ98,$DZ$2&ROW($DZ98)),$DY98,$DY$2&ROW($DY98)),$DX98,$DX$2&ROW($DX98)),$DW98,$DW$2&ROW($DW98)),$DV98,$DV$2&ROW($DV98)),$DU98,$DU$2&ROW($DU98)),$DT98,$DT$2&ROW($DT98)),$DS98,$DS$2&ROW($DS98)))","v":0},{"$f":"IF(AB98=\"\",0,\"X=\"&SUBSTITUTE(SUBSTITUTE(SUBSTITUTE(SUBSTITUTE(SUBSTITUTE(SUBSTITUTE(SUBSTITUTE(SUBSTITUTE(SUBSTITUTE(SUBSTITUTE(SUBSTITUTE(SUBSTITUTE(AB98,$ED98,$ED$2&ROW($ED98)),$EC98,$EC$2&ROW($EC98)),$EB98,$EB$2&ROW($EB98)),$EA98,$EA$2&ROW($EA98)),$DZ98,$DZ$2&ROW($DZ98)),$DY98,$DY$2&ROW($DY98)),$DX98,$DX$2&ROW($DX98)),$DW98,$DW$2&ROW($DW98)),$DV98,$DV$2&ROW($DV98)),$DU98,$DU$2&ROW($DU98)),$DT98,$DT$2&ROW($DT98)),$DS98,$DS$2&ROW($DS98)))","v":0},null,null,"{Factor:WinterCF}","{Factor:SummerCF}",{"$f":"IFERROR(INDEX($EG98:$IV98,MATCH(0,COUNTIF($DR98:DT98,$EG98:$IV98),0)),\"\")","v":"{Measure:Quantity}"},{"$f":"IFERROR(INDEX($EG98:$IV98,MATCH(0,COUNTIF($DR98:DU98,$EG98:$IV98),0)),\"\")","v":"{Capacity (MBTUH)}"},{"$f":"IFERROR(INDEX($EG98:$IV98,MATCH(0,COUNTIF($DR98:DV98,$EG98:$IV98),0)),\"\")","v":"{Existing Fuel}"},{"$f":"IFERROR(INDEX($EG98:$IV98,MATCH(0,COUNTIF($DR98:DW98,$EG98:$IV98),0)),\"\")","v":""},{"$f":"IFERROR(INDEX($EG98:$IV98,MATCH(0,COUNTIF($DR98:DX98,$EG98:$IV98),0)),\"\")","v":""},{"$f":"IFERROR(INDEX($EG98:$IV98,MATCH(0,COUNTIF($DR98:DY98,$EG98:$IV98),0)),\"\")","v":""},{"$f":"IFERROR(INDEX($EG98:$IV98,MATCH(0,COUNTIF($DR98:DZ98,$EG98:$IV98),0)),\"\")","v":""},{"$f":"IFERROR(INDEX($EG98:$IV98,MATCH(0,COUNTIF($DR98:EA98,$EG98:$IV98),0)),\"\")","v":""},{"$f":"IFERROR(INDEX($EG98:$IV98,MATCH(0,COUNTIF($DR98:EB98,$EG98:$IV98),0)),\"\")","v":""},{"$f":"IFERROR(INDEX($EG98:$IV98,MATCH(0,COUNTIF($DR98:EC98,$EG98:$IV98),0)),\"\")","v":""},null,null,{"$f":"IFERROR(MID($G98,FIND(CHAR(160),SUBSTITUTE($G98,\"{\",CHAR(160),EG$1)),FIND(CHAR(160),SUBSTITUTE($G98,\"}\",CHAR(160),EG$1))-FIND(CHAR(160),SUBSTITUTE($G98,\"{\",CHAR(160),EG$1))+1),\"\")","v":""},{"$f":"IFERROR(MID($G98,FIND(CHAR(160),SUBSTITUTE($G98,\"{\",CHAR(160),EH$1)),FIND(CHAR(160),SUBSTITUTE($G98,\"}\",CHAR(160),EH$1))-FIND(CHAR(160),SUBSTITUTE($G98,\"{\",CHAR(160),EH$1))+1),\"\")","v":""},{"$f":"IFERROR(MID($G98,FIND(CHAR(160),SUBSTITUTE($G98,\"{\",CHAR(160),EI$1)),FIND(CHAR(160),SUBSTITUTE($G98,\"}\",CHAR(160),EI$1))-FIND(CHAR(160),SUBSTITUTE($G98,\"{\",CHAR(160),EI$1))+1),\"\")","v":""},{"$f":"IFERROR(MID($G98,FIND(CHAR(160),SUBSTITUTE($G98,\"{\",CHAR(160),EJ$1)),FIND(CHAR(160),SUBSTITUTE($G98,\"}\",CHAR(160),EJ$1))-FIND(CHAR(160),SUBSTITUTE($G98,\"{\",CHAR(160),EJ$1))+1),\"\")","v":""},{"$f":"IFERROR(MID($G98,FIND(CHAR(160),SUBSTITUTE($G98,\"{\",CHAR(160),EK$1)),FIND(CHAR(160),SUBSTITUTE($G98,\"}\",CHAR(160),EK$1))-FIND(CHAR(160),SUBSTITUTE($G98,\"{\",CHAR(160),EK$1))+1),\"\")","v":""},{"$f":"IFERROR(MID($G98,FIND(CHAR(160),SUBSTITUTE($G98,\"{\",CHAR(160),EL$1)),FIND(CHAR(160),SUBSTITUTE($G98,\"}\",CHAR(160),EL$1))-FIND(CHAR(160),SUBSTITUTE($G98,\"{\",CHAR(160),EL$1))+1),\"\")","v":""},{"$f":"IFERROR(MID($G98,FIND(CHAR(160),SUBSTITUTE($G98,\"{\",CHAR(160),EM$1)),FIND(CHAR(160),SUBSTITUTE($G98,\"}\",CHAR(160),EM$1))-FIND(CHAR(160),SUBSTITUTE($G98,\"{\",CHAR(160),EM$1))+1),\"\")","v":""},{"$f":"IFERROR(MID($G98,FIND(CHAR(160),SUBSTITUTE($G98,\"{\",CHAR(160),EN$1)),FIND(CHAR(160),SUBSTITUTE($G98,\"}\",CHAR(160),EN$1))-FIND(CHAR(160),SUBSTITUTE($G98,\"{\",CHAR(160),EN$1))+1),\"\")","v":""},{"$f":"IFERROR(MID($G98,FIND(CHAR(160),SUBSTITUTE($G98,\"{\",CHAR(160),EO$1)),FIND(CHAR(160),SUBSTITUTE($G98,\"}\",CHAR(160),EO$1))-FIND(CHAR(160),SUBSTITUTE($G98,\"{\",CHAR(160),EO$1))+1),\"\")","v":""},{"$f":"IFERROR(MID($G98,FIND(CHAR(160),SUBSTITUTE($G98,\"{\",CHAR(160),EP$1)),FIND(CHAR(160),SUBSTITUTE($G98,\"}\",CHAR(160),EP$1))-FIND(CHAR(160),SUBSTITUTE($G98,\"{\",CHAR(160),EP$1))+1),\"\")","v":""},{"$f":"IFERROR(MID($J98,FIND(CHAR(160),SUBSTITUTE($J98,\"{\",CHAR(160),EQ$1)),FIND(CHAR(160),SUBSTITUTE($J98,\"}\",CHAR(160),EQ$1))-FIND(CHAR(160),SUBSTITUTE($J98,\"{\",CHAR(160),EQ$1))+1),\"\")","v":"{Measure:Quantity}"},{"$f":"IFERROR(MID($J98,FIND(CHAR(160),SUBSTITUTE($J98,\"{\",CHAR(160),ER$1)),FIND(CHAR(160),SUBSTITUTE($J98,\"}\",CHAR(160),ER$1))-FIND(CHAR(160),SUBSTITUTE($J98,\"{\",CHAR(160),ER$1))+1),\"\")","v":""},{"$f":"IFERROR(MID($J98,FIND(CHAR(160),SUBSTITUTE($J98,\"{\",CHAR(160),ES$1)),FIND(CHAR(160),SUBSTITUTE($J98,\"}\",CHAR(160),ES$1))-FIND(CHAR(160),SUBSTITUTE($J98,\"{\",CHAR(160),ES$1))+1),\"\")","v":""},{"$f":"IFERROR(MID($J98,FIND(CHAR(160),SUBSTITUTE($J98,\"{\",CHAR(160),ET$1)),FIND(CHAR(160),SUBSTITUTE($J98,\"}\",CHAR(160),ET$1))-FIND(CHAR(160),SUBSTITUTE($J98,\"{\",CHAR(160),ET$1))+1),\"\")","v":""},{"$f":"IFERROR(MID($J98,FIND(CHAR(160),SUBSTITUTE($J98,\"{\",CHAR(160),EU$1)),FIND(CHAR(160),SUBSTITUTE($J98,\"}\",CHAR(160),EU$1))-FIND(CHAR(160),SUBSTITUTE($J98,\"{\",CHAR(160),EU$1))+1),\"\")","v":""},{"$f":"IFERROR(MID($J98,FIND(CHAR(160),SUBSTITUTE($J98,\"{\",CHAR(160),EV$1)),FIND(CHAR(160),SUBSTITUTE($J98,\"}\",CHAR(160),EV$1))-FIND(CHAR(160),SUBSTITUTE($J98,\"{\",CHAR(160),EV$1))+1),\"\")","v":""},{"$f":"IFERROR(MID($J98,FIND(CHAR(160),SUBSTITUTE($J98,\"{\",CHAR(160),EW$1)),FIND(CHAR(160),SUBSTITUTE($J98,\"}\",CHAR(160),EW$1))-FIND(CHAR(160),SUBSTITUTE($J98,\"{\",CHAR(160),EW$1))+1),\"\")","v":""},{"$f":"IFERROR(MID($J98,FIND(CHAR(160),SUBSTITUTE($J98,\"{\",CHAR(160),EX$1)),FIND(CHAR(160),SUBSTITUTE($J98,\"}\",CHAR(160),EX$1))-FIND(CHAR(160),SUBSTITUTE($J98,\"{\",CHAR(160),EX$1))+1),\"\")","v":""},{"$f":"IFERROR(MID($J98,FIND(CHAR(160),SUBSTITUTE($J98,\"{\",CHAR(160),EY$1)),FIND(CHAR(160),SUBSTITUTE($J98,\"}\",CHAR(160),EY$1))-FIND(CHAR(160),SUBSTITUTE($J98,\"{\",CHAR(160),EY$1))+1),\"\")","v":""},{"$f":"IFERROR(MID($J98,FIND(CHAR(160),SUBSTITUTE($J98,\"{\",CHAR(160),EZ$1)),FIND(CHAR(160),SUBSTITUTE($J98,\"}\",CHAR(160),EZ$1))-FIND(CHAR(160),SUBSTITUTE($J98,\"{\",CHAR(160),EZ$1))+1),\"\")","v":""},{"$f":"IFERROR(MID($J98,FIND(CHAR(160),SUBSTITUTE($J98,\"{\",CHAR(160),FA$1)),FIND(CHAR(160),SUBSTITUTE($J98,\"}\",CHAR(160),FA$1))-FIND(CHAR(160),SUBSTITUTE($J98,\"{\",CHAR(160),FA$1))+1),\"\")","v":"{Measure:Quantity}"},{"$f":"IFERROR(MID($J98,FIND(CHAR(160),SUBSTITUTE($J98,\"{\",CHAR(160),FB$1)),FIND(CHAR(160),SUBSTITUTE($J98,\"}\",CHAR(160),FB$1))-FIND(CHAR(160),SUBSTITUTE($J98,\"{\",CHAR(160),FB$1))+1),\"\")","v":""},{"$f":"IFERROR(MID($O98,FIND(CHAR(160),SUBSTITUTE($O98,\"{\",CHAR(160),FC$1)),FIND(CHAR(160),SUBSTITUTE($O98,\"}\",CHAR(160),FC$1))-FIND(CHAR(160),SUBSTITUTE($O98,\"{\",CHAR(160),FC$1))+1),\"\")","v":""},{"$f":"IFERROR(MID($O98,FIND(CHAR(160),SUBSTITUTE($O98,\"{\",CHAR(160),FD$1)),FIND(CHAR(160),SUBSTITUTE($O98,\"}\",CHAR(160),FD$1))-FIND(CHAR(160),SUBSTITUTE($O98,\"{\",CHAR(160),FD$1))+1),\"\")","v":""},{"$f":"IFERROR(MID($O98,FIND(CHAR(160),SUBSTITUTE($O98,\"{\",CHAR(160),FE$1)),FIND(CHAR(160),SUBSTITUTE($O98,\"}\",CHAR(160),FE$1))-FIND(CHAR(160),SUBSTITUTE($O98,\"{\",CHAR(160),FE$1))+1),\"\")","v":""},{"$f":"IFERROR(MID($O98,FIND(CHAR(160),SUBSTITUTE($O98,\"{\",CHAR(160),FF$1)),FIND(CHAR(160),SUBSTITUTE($O98,\"}\",CHAR(160),FF$1))-FIND(CHAR(160),SUBSTITUTE($O98,\"{\",CHAR(160),FF$1))+1),\"\")","v":""},{"$f":"IFERROR(MID($O98,FIND(CHAR(160),SUBSTITUTE($O98,\"{\",CHAR(160),FG$1)),FIND(CHAR(160),SUBSTITUTE($O98,\"}\",CHAR(160),FG$1))-FIND(CHAR(160),SUBSTITUTE($O98,\"{\",CHAR(160),FG$1))+1),\"\")","v":""},{"$f":"IFERROR(MID($O98,FIND(CHAR(160),SUBSTITUTE($O98,\"{\",CHAR(160),FH$1)),FIND(CHAR(160),SUBSTITUTE($O98,\"}\",CHAR(160),FH$1))-FIND(CHAR(160),SUBSTITUTE($O98,\"{\",CHAR(160),FH$1))+1),\"\")","v":""},{"$f":"IFERROR(MID($O98,FIND(CHAR(160),SUBSTITUTE($O98,\"{\",CHAR(160),FI$1)),FIND(CHAR(160),SUBSTITUTE($O98,\"}\",CHAR(160),FI$1))-FIND(CHAR(160),SUBSTITUTE($O98,\"{\",CHAR(160),FI$1))+1),\"\")","v":""},{"$f":"IFERROR(MID($O98,FIND(CHAR(160),SUBSTITUTE($O98,\"{\",CHAR(160),FJ$1)),FIND(CHAR(160),SUBSTITUTE($O98,\"}\",CHAR(160),FJ$1))-FIND(CHAR(160),SUBSTITUTE($O98,\"{\",CHAR(160),FJ$1))+1),\"\")","v":""},{"$f":"IFERROR(MID($O98,FIND(CHAR(160),SUBSTITUTE($O98,\"{\",CHAR(160),FK$1)),FIND(CHAR(160),SUBSTITUTE($O98,\"}\",CHAR(160),FK$1))-FIND(CHAR(160),SUBSTITUTE($O98,\"{\",CHAR(160),FK$1))+1),\"\")","v":""},{"$f":"IFERROR(MID($O98,FIND(CHAR(160),SUBSTITUTE($O98,\"{\",CHAR(160),FL$1)),FIND(CHAR(160),SUBSTITUTE($O98,\"}\",CHAR(160),FL$1))-FIND(CHAR(160),SUBSTITUTE($O98,\"{\",CHAR(160),FL$1))+1),\"\")","v":""},{"$f":"IFERROR(MID($R98,FIND(CHAR(160),SUBSTITUTE($R98,\"{\",CHAR(160),FM$1)),FIND(CHAR(160),SUBSTITUTE($R98,\"}\",CHAR(160),FM$1))-FIND(CHAR(160),SUBSTITUTE($R98,\"{\",CHAR(160),FM$1))+1),\"\")","v":""},{"$f":"IFERROR(MID($R98,FIND(CHAR(160),SUBSTITUTE($R98,\"{\",CHAR(160),FN$1)),FIND(CHAR(160),SUBSTITUTE($R98,\"}\",CHAR(160),FN$1))-FIND(CHAR(160),SUBSTITUTE($R98,\"{\",CHAR(160),FN$1))+1),\"\")","v":""},{"$f":"IFERROR(MID($R98,FIND(CHAR(160),SUBSTITUTE($R98,\"{\",CHAR(160),FO$1)),FIND(CHAR(160),SUBSTITUTE($R98,\"}\",CHAR(160),FO$1))-FIND(CHAR(160),SUBSTITUTE($R98,\"{\",CHAR(160),FO$1))+1),\"\")","v":""},{"$f":"IFERROR(MID($R98,FIND(CHAR(160),SUBSTITUTE($R98,\"{\",CHAR(160),FP$1)),FIND(CHAR(160),SUBSTITUTE($R98,\"}\",CHAR(160),FP$1))-FIND(CHAR(160),SUBSTITUTE($R98,\"{\",CHAR(160),FP$1))+1),\"\")","v":""},{"$f":"IFERROR(MID($R98,FIND(CHAR(160),SUBSTITUTE($R98,\"{\",CHAR(160),FQ$1)),FIND(CHAR(160),SUBSTITUTE($R98,\"}\",CHAR(160),FQ$1))-FIND(CHAR(160),SUBSTITUTE($R98,\"{\",CHAR(160),FQ$1))+1),\"\")","v":""},{"$f":"IFERROR(MID($R98,FIND(CHAR(160),SUBSTITUTE($R98,\"{\",CHAR(160),FR$1)),FIND(CHAR(160),SUBSTITUTE($R98,\"}\",CHAR(160),FR$1))-FIND(CHAR(160),SUBSTITUTE($R98,\"{\",CHAR(160),FR$1))+1),\"\")","v":""},{"$f":"IFERROR(MID($R98,FIND(CHAR(160),SUBSTITUTE($R98,\"{\",CHAR(160),FS$1)),FIND(CHAR(160),SUBSTITUTE($R98,\"}\",CHAR(160),FS$1))-FIND(CHAR(160),SUBSTITUTE($R98,\"{\",CHAR(160),FS$1))+1),\"\")","v":""},{"$f":"IFERROR(MID($R98,FIND(CHAR(160),SUBSTITUTE($R98,\"{\",CHAR(160),FT$1)),FIND(CHAR(160),SUBSTITUTE($R98,\"}\",CHAR(160),FT$1))-FIND(CHAR(160),SUBSTITUTE($R98,\"{\",CHAR(160),FT$1))+1),\"\")","v":""},{"$f":"IFERROR(MID($R98,FIND(CHAR(160),SUBSTITUTE($R98,\"{\",CHAR(160),FU$1)),FIND(CHAR(160),SUBSTITUTE($R98,\"}\",CHAR(160),FU$1))-FIND(CHAR(160),SUBSTITUTE($R98,\"{\",CHAR(160),FU$1))+1),\"\")","v":""},{"$f":"IFERROR(MID($R98,FIND(CHAR(160),SUBSTITUTE($R98,\"{\",CHAR(160),FV$1)),FIND(CHAR(160),SUBSTITUTE($R98,\"}\",CHAR(160),FV$1))-FIND(CHAR(160),SUBSTITUTE($R98,\"{\",CHAR(160),FV$1))+1),\"\")","v":""},{"$f":"IFERROR(MID($U98,FIND(CHAR(160),SUBSTITUTE($U98,\"{\",CHAR(160),FW$1)),FIND(CHAR(160),SUBSTITUTE($U98,\"}\",CHAR(160),FW$1))-FIND(CHAR(160),SUBSTITUTE($U98,\"{\",CHAR(160),FW$1))+1),\"\")","v":""},{"$f":"IFERROR(MID($U98,FIND(CHAR(160),SUBSTITUTE($U98,\"{\",CHAR(160),FX$1)),FIND(CHAR(160),SUBSTITUTE($U98,\"}\",CHAR(160),FX$1))-FIND(CHAR(160),SUBSTITUTE($U98,\"{\",CHAR(160),FX$1))+1),\"\")","v":""},{"$f":"IFERROR(MID($U98,FIND(CHAR(160),SUBSTITUTE($U98,\"{\",CHAR(160),FY$1)),FIND(CHAR(160),SUBSTITUTE($U98,\"}\",CHAR(160),FY$1))-FIND(CHAR(160),SUBSTITUTE($U98,\"{\",CHAR(160),FY$1))+1),\"\")","v":""},{"$f":"IFERROR(MID($U98,FIND(CHAR(160),SUBSTITUTE($U98,\"{\",CHAR(160),FZ$1)),FIND(CHAR(160),SUBSTITUTE($U98,\"}\",CHAR(160),FZ$1))-FIND(CHAR(160),SUBSTITUTE($U98,\"{\",CHAR(160),FZ$1))+1),\"\")","v":""},{"$f":"IFERROR(MID($U98,FIND(CHAR(160),SUBSTITUTE($U98,\"{\",CHAR(160),GA$1)),FIND(CHAR(160),SUBSTITUTE($U98,\"}\",CHAR(160),GA$1))-FIND(CHAR(160),SUBSTITUTE($U98,\"{\",CHAR(160),GA$1))+1),\"\")","v":""},{"$f":"IFERROR(MID($U98,FIND(CHAR(160),SUBSTITUTE($U98,\"{\",CHAR(160),GB$1)),FIND(CHAR(160),SUBSTITUTE($U98,\"}\",CHAR(160),GB$1))-FIND(CHAR(160),SUBSTITUTE($U98,\"{\",CHAR(160),GB$1))+1),\"\")","v":""},{"$f":"IFERROR(MID($U98,FIND(CHAR(160),SUBSTITUTE($U98,\"{\",CHAR(160),GC$1)),FIND(CHAR(160),SUBSTITUTE($U98,\"}\",CHAR(160),GC$1))-FIND(CHAR(160),SUBSTITUTE($U98,\"{\",CHAR(160),GC$1))+1),\"\")","v":""},{"$f":"IFERROR(MID($U98,FIND(CHAR(160),SUBSTITUTE($U98,\"{\",CHAR(160),GD$1)),FIND(CHAR(160),SUBSTITUTE($U98,\"}\",CHAR(160),GD$1))-FIND(CHAR(160),SUBSTITUTE($U98,\"{\",CHAR(160),GD$1))+1),\"\")","v":""},{"$f":"IFERROR(MID($U98,FIND(CHAR(160),SUBSTITUTE($U98,\"{\",CHAR(160),GE$1)),FIND(CHAR(160),SUBSTITUTE($U98,\"}\",CHAR(160),GE$1))-FIND(CHAR(160),SUBSTITUTE($U98,\"{\",CHAR(160),GE$1))+1),\"\")","v":""},{"$f":"IFERROR(MID($U98,FIND(CHAR(160),SUBSTITUTE($U98,\"{\",CHAR(160),GF$1)),FIND(CHAR(160),SUBSTITUTE($U98,\"}\",CHAR(160),GF$1))-FIND(CHAR(160),SUBSTITUTE($U98,\"{\",CHAR(160),GF$1))+1),\"\")","v":""},{"$f":"IFERROR(MID($V98,FIND(CHAR(160),SUBSTITUTE($V98,\"{\",CHAR(160),GG$1)),FIND(CHAR(160),SUBSTITUTE($V98,\"}\",CHAR(160),GG$1))-FIND(CHAR(160),SUBSTITUTE($V98,\"{\",CHAR(160),GG$1))+1),\"\")","v":""},{"$f":"IFERROR(MID($V98,FIND(CHAR(160),SUBSTITUTE($V98,\"{\",CHAR(160),GH$1)),FIND(CHAR(160),SUBSTITUTE($V98,\"}\",CHAR(160),GH$1))-FIND(CHAR(160),SUBSTITUTE($V98,\"{\",CHAR(160),GH$1))+1),\"\")","v":""},{"$f":"IFERROR(MID($V98,FIND(CHAR(160),SUBSTITUTE($V98,\"{\",CHAR(160),GI$1)),FIND(CHAR(160),SUBSTITUTE($V98,\"}\",CHAR(160),GI$1))-FIND(CHAR(160),SUBSTITUTE($V98,\"{\",CHAR(160),GI$1))+1),\"\")","v":""},{"$f":"IFERROR(MID($V98,FIND(CHAR(160),SUBSTITUTE($V98,\"{\",CHAR(160),GJ$1)),FIND(CHAR(160),SUBSTITUTE($V98,\"}\",CHAR(160),GJ$1))-FIND(CHAR(160),SUBSTITUTE($V98,\"{\",CHAR(160),GJ$1))+1),\"\")","v":""},{"$f":"IFERROR(MID($V98,FIND(CHAR(160),SUBSTITUTE($V98,\"{\",CHAR(160),GK$1)),FIND(CHAR(160),SUBSTITUTE($V98,\"}\",CHAR(160),GK$1))-FIND(CHAR(160),SUBSTITUTE($V98,\"{\",CHAR(160),GK$1))+1),\"\")","v":""},{"$f":"IFERROR(MID($V98,FIND(CHAR(160),SUBSTITUTE($V98,\"{\",CHAR(160),GL$1)),FIND(CHAR(160),SUBSTITUTE($V98,\"}\",CHAR(160),GL$1))-FIND(CHAR(160),SUBSTITUTE($V98,\"{\",CHAR(160),GL$1))+1),\"\")","v":""},{"$f":"IFERROR(MID($V98,FIND(CHAR(160),SUBSTITUTE($V98,\"{\",CHAR(160),GM$1)),FIND(CHAR(160),SUBSTITUTE($V98,\"}\",CHAR(160),GM$1))-FIND(CHAR(160),SUBSTITUTE($V98,\"{\",CHAR(160),GM$1))+1),\"\")","v":""},{"$f":"IFERROR(MID($V98,FIND(CHAR(160),SUBSTITUTE($V98,\"{\",CHAR(160),GN$1)),FIND(CHAR(160),SUBSTITUTE($V98,\"}\",CHAR(160),GN$1))-FIND(CHAR(160),SUBSTITUTE($V98,\"{\",CHAR(160),GN$1))+1),\"\")","v":""},{"$f":"IFERROR(MID($V98,FIND(CHAR(160),SUBSTITUTE($V98,\"{\",CHAR(160),GO$1)),FIND(CHAR(160),SUBSTITUTE($V98,\"}\",CHAR(160),GO$1))-FIND(CHAR(160),SUBSTITUTE($V98,\"{\",CHAR(160),GO$1))+1),\"\")","v":""},{"$f":"IFERROR(MID($V98,FIND(CHAR(160),SUBSTITUTE($V98,\"{\",CHAR(160),GP$1)),FIND(CHAR(160),SUBSTITUTE($V98,\"}\",CHAR(160),GP$1))-FIND(CHAR(160),SUBSTITUTE($V98,\"{\",CHAR(160),GP$1))+1),\"\")","v":""},{"$f":"IFERROR(MID($W98,FIND(CHAR(160),SUBSTITUTE($W98,\"{\",CHAR(160),GQ$1)),FIND(CHAR(160),SUBSTITUTE($W98,\"}\",CHAR(160),GQ$1))-FIND(CHAR(160),SUBSTITUTE($W98,\"{\",CHAR(160),GQ$1))+1),\"\")","v":""},{"$f":"IFERROR(MID($W98,FIND(CHAR(160),SUBSTITUTE($W98,\"{\",CHAR(160),GR$1)),FIND(CHAR(160),SUBSTITUTE($W98,\"}\",CHAR(160),GR$1))-FIND(CHAR(160),SUBSTITUTE($W98,\"{\",CHAR(160),GR$1))+1),\"\")","v":""},{"$f":"IFERROR(MID($W98,FIND(CHAR(160),SUBSTITUTE($W98,\"{\",CHAR(160),GS$1)),FIND(CHAR(160),SUBSTITUTE($W98,\"}\",CHAR(160),GS$1))-FIND(CHAR(160),SUBSTITUTE($W98,\"{\",CHAR(160),GS$1))+1),\"\")","v":""},{"$f":"IFERROR(MID($W98,FIND(CHAR(160),SUBSTITUTE($W98,\"{\",CHAR(160),GT$1)),FIND(CHAR(160),SUBSTITUTE($W98,\"}\",CHAR(160),GT$1))-FIND(CHAR(160),SUBSTITUTE($W98,\"{\",CHAR(160),GT$1))+1),\"\")","v":""},{"$f":"IFERROR(MID($W98,FIND(CHAR(160),SUBSTITUTE($W98,\"{\",CHAR(160),GU$1)),FIND(CHAR(160),SUBSTITUTE($W98,\"}\",CHAR(160),GU$1))-FIND(CHAR(160),SUBSTITUTE($W98,\"{\",CHAR(160),GU$1))+1),\"\")","v":""},{"$f":"IFERROR(MID($W98,FIND(CHAR(160),SUBSTITUTE($W98,\"{\",CHAR(160),GV$1)),FIND(CHAR(160),SUBSTITUTE($W98,\"}\",CHAR(160),GV$1))-FIND(CHAR(160),SUBSTITUTE($W98,\"{\",CHAR(160),GV$1))+1),\"\")","v":""},{"$f":"IFERROR(MID($W98,FIND(CHAR(160),SUBSTITUTE($W98,\"{\",CHAR(160),GW$1)),FIND(CHAR(160),SUBSTITUTE($W98,\"}\",CHAR(160),GW$1))-FIND(CHAR(160),SUBSTITUTE($W98,\"{\",CHAR(160),GW$1))+1),\"\")","v":""},{"$f":"IFERROR(MID($W98,FIND(CHAR(160),SUBSTITUTE($W98,\"{\",CHAR(160),GX$1)),FIND(CHAR(160),SUBSTITUTE($W98,\"}\",CHAR(160),GX$1))-FIND(CHAR(160),SUBSTITUTE($W98,\"{\",CHAR(160),GX$1))+1),\"\")","v":""},{"$f":"IFERROR(MID($W98,FIND(CHAR(160),SUBSTITUTE($W98,\"{\",CHAR(160),GY$1)),FIND(CHAR(160),SUBSTITUTE($W98,\"}\",CHAR(160),GY$1))-FIND(CHAR(160),SUBSTITUTE($W98,\"{\",CHAR(160),GY$1))+1),\"\")","v":""},{"$f":"IFERROR(MID($W98,FIND(CHAR(160),SUBSTITUTE($W98,\"{\",CHAR(160),GZ$1)),FIND(CHAR(160),SUBSTITUTE($W98,\"}\",CHAR(160),GZ$1))-FIND(CHAR(160),SUBSTITUTE($W98,\"{\",CHAR(160),GZ$1))+1),\"\")","v":""},{"$f":"IFERROR(MID($X98,FIND(CHAR(160),SUBSTITUTE($X98,\"{\",CHAR(160),HA$1)),FIND(CHAR(160),SUBSTITUTE($X98,\"}\",CHAR(160),HA$1))-FIND(CHAR(160),SUBSTITUTE($X98,\"{\",CHAR(160),HA$1))+1),\"\")","v":""},{"$f":"IFERROR(MID($X98,FIND(CHAR(160),SUBSTITUTE($X98,\"{\",CHAR(160),HB$1)),FIND(CHAR(160),SUBSTITUTE($X98,\"}\",CHAR(160),HB$1))-FIND(CHAR(160),SUBSTITUTE($X98,\"{\",CHAR(160),HB$1))+1),\"\")","v":""},{"$f":"IFERROR(MID($X98,FIND(CHAR(160),SUBSTITUTE($X98,\"{\",CHAR(160),HC$1)),FIND(CHAR(160),SUBSTITUTE($X98,\"}\",CHAR(160),HC$1))-FIND(CHAR(160),SUBSTITUTE($X98,\"{\",CHAR(160),HC$1))+1),\"\")","v":""},{"$f":"IFERROR(MID($X98,FIND(CHAR(160),SUBSTITUTE($X98,\"{\",CHAR(160),HD$1)),FIND(CHAR(160),SUBSTITUTE($X98,\"}\",CHAR(160),HD$1))-FIND(CHAR(160),SUBSTITUTE($X98,\"{\",CHAR(160),HD$1))+1),\"\")","v":""},{"$f":"IFERROR(MID($X98,FIND(CHAR(160),SUBSTITUTE($X98,\"{\",CHAR(160),HE$1)),FIND(CHAR(160),SUBSTITUTE($X98,\"}\",CHAR(160),HE$1))-FIND(CHAR(160),SUBSTITUTE($X98,\"{\",CHAR(160),HE$1))+1),\"\")","v":""},{"$f":"IFERROR(MID($X98,FIND(CHAR(160),SUBSTITUTE($X98,\"{\",CHAR(160),HF$1)),FIND(CHAR(160),SUBSTITUTE($X98,\"}\",CHAR(160),HF$1))-FIND(CHAR(160),SUBSTITUTE($X98,\"{\",CHAR(160),HF$1))+1),\"\")","v":""},{"$f":"IFERROR(MID($X98,FIND(CHAR(160),SUBSTITUTE($X98,\"{\",CHAR(160),HG$1)),FIND(CHAR(160),SUBSTITUTE($X98,\"}\",CHAR(160),HG$1))-FIND(CHAR(160),SUBSTITUTE($X98,\"{\",CHAR(160),HG$1))+1),\"\")","v":""},{"$f":"IFERROR(MID($X98,FIND(CHAR(160),SUBSTITUTE($X98,\"{\",CHAR(160),HH$1)),FIND(CHAR(160),SUBSTITUTE($X98,\"}\",CHAR(160),HH$1))-FIND(CHAR(160),SUBSTITUTE($X98,\"{\",CHAR(160),HH$1))+1),\"\")","v":""},{"$f":"IFERROR(MID($X98,FIND(CHAR(160),SUBSTITUTE($X98,\"{\",CHAR(160),HI$1)),FIND(CHAR(160),SUBSTITUTE($X98,\"}\",CHAR(160),HI$1))-FIND(CHAR(160),SUBSTITUTE($X98,\"{\",CHAR(160),HI$1))+1),\"\")","v":""},{"$f":"IFERROR(MID($X98,FIND(CHAR(160),SUBSTITUTE($X98,\"{\",CHAR(160),HJ$1)),FIND(CHAR(160),SUBSTITUTE($X98,\"}\",CHAR(160),HJ$1))-FIND(CHAR(160),SUBSTITUTE($X98,\"{\",CHAR(160),HJ$1))+1),\"\")","v":""},{"$f":"IFERROR(MID($Y98,FIND(CHAR(160),SUBSTITUTE($Y98,\"{\",CHAR(160),HK$1)),FIND(CHAR(160),SUBSTITUTE($Y98,\"}\",CHAR(160),HK$1))-FIND(CHAR(160),SUBSTITUTE($Y98,\"{\",CHAR(160),HK$1))+1),\"\")","v":"{Capacity (MBTUH)}"},{"$f":"IFERROR(MID($Y98,FIND(CHAR(160),SUBSTITUTE($Y98,\"{\",CHAR(160),HL$1)),FIND(CHAR(160),SUBSTITUTE($Y98,\"}\",CHAR(160),HL$1))-FIND(CHAR(160),SUBSTITUTE($Y98,\"{\",CHAR(160),HL$1))+1),\"\")","v":""},{"$f":"IFERROR(MID($Y98,FIND(CHAR(160),SUBSTITUTE($Y98,\"{\",CHAR(160),HM$1)),FIND(CHAR(160),SUBSTITUTE($Y98,\"}\",CHAR(160),HM$1))-FIND(CHAR(160),SUBSTITUTE($Y98,\"{\",CHAR(160),HM$1))+1),\"\")","v":""},{"$f":"IFERROR(MID($Y98,FIND(CHAR(160),SUBSTITUTE($Y98,\"{\",CHAR(160),HN$1)),FIND(CHAR(160),SUBSTITUTE($Y98,\"}\",CHAR(160),HN$1))-FIND(CHAR(160),SUBSTITUTE($Y98,\"{\",CHAR(160),HN$1))+1),\"\")","v":""},{"$f":"IFERROR(MID($Y98,FIND(CHAR(160),SUBSTITUTE($Y98,\"{\",CHAR(160),HO$1)),FIND(CHAR(160),SUBSTITUTE($Y98,\"}\",CHAR(160),HO$1))-FIND(CHAR(160),SUBSTITUTE($Y98,\"{\",CHAR(160),HO$1))+1),\"\")","v":""},{"$f":"IFERROR(MID($Y98,FIND(CHAR(160),SUBSTITUTE($Y98,\"{\",CHAR(160),HP$1)),FIND(CHAR(160),SUBSTITUTE($Y98,\"}\",CHAR(160),HP$1))-FIND(CHAR(160),SUBSTITUTE($Y98,\"{\",CHAR(160),HP$1))+1),\"\")","v":""},{"$f":"IFERROR(MID($Y98,FIND(CHAR(160),SUBSTITUTE($Y98,\"{\",CHAR(160),HQ$1)),FIND(CHAR(160),SUBSTITUTE($Y98,\"}\",CHAR(160),HQ$1))-FIND(CHAR(160),SUBSTITUTE($Y98,\"{\",CHAR(160),HQ$1))+1),\"\")","v":""},{"$f":"IFERROR(MID($Y98,FIND(CHAR(160),SUBSTITUTE($Y98,\"{\",CHAR(160),HR$1)),FIND(CHAR(160),SUBSTITUTE($Y98,\"}\",CHAR(160),HR$1))-FIND(CHAR(160),SUBSTITUTE($Y98,\"{\",CHAR(160),HR$1))+1),\"\")","v":""},{"$f":"IFERROR(MID($Y98,FIND(CHAR(160),SUBSTITUTE($Y98,\"{\",CHAR(160),HS$1)),FIND(CHAR(160),SUBSTITUTE($Y98,\"}\",CHAR(160),HS$1))-FIND(CHAR(160),SUBSTITUTE($Y98,\"{\",CHAR(160),HS$1))+1),\"\")","v":"{Existing Fuel}"},{"$f":"IFERROR(MID($Y98,FIND(CHAR(160),SUBSTITUTE($Y98,\"{\",CHAR(160),HT$1)),FIND(CHAR(160),SUBSTITUTE($Y98,\"}\",CHAR(160),HT$1))-FIND(CHAR(160),SUBSTITUTE($Y98,\"{\",CHAR(160),HT$1))+1),\"\")","v":"{Measure:Quantity}"},{"$f":"IFERROR(MID($Z98,FIND(CHAR(160),SUBSTITUTE($Z98,\"{\",CHAR(160),HU$1)),FIND(CHAR(160),SUBSTITUTE($Z98,\"}\",CHAR(160),HU$1))-FIND(CHAR(160),SUBSTITUTE($Z98,\"{\",CHAR(160),HU$1))+1),\"\")","v":""},{"$f":"IFERROR(MID($Z98,FIND(CHAR(160),SUBSTITUTE($Z98,\"{\",CHAR(160),HV$1)),FIND(CHAR(160),SUBSTITUTE($Z98,\"}\",CHAR(160),HV$1))-FIND(CHAR(160),SUBSTITUTE($Z98,\"{\",CHAR(160),HV$1))+1),\"\")","v":""},{"$f":"IFERROR(MID($Z98,FIND(CHAR(160),SUBSTITUTE($Z98,\"{\",CHAR(160),HW$1)),FIND(CHAR(160),SUBSTITUTE($Z98,\"}\",CHAR(160),HW$1))-FIND(CHAR(160),SUBSTITUTE($Z98,\"{\",CHAR(160),HW$1))+1),\"\")","v":""},{"$f":"IFERROR(MID($Z98,FIND(CHAR(160),SUBSTITUTE($Z98,\"{\",CHAR(160),HX$1)),FIND(CHAR(160),SUBSTITUTE($Z98,\"}\",CHAR(160),HX$1))-FIND(CHAR(160),SUBSTITUTE($Z98,\"{\",CHAR(160),HX$1))+1),\"\")","v":""},{"$f":"IFERROR(MID($Z98,FIND(CHAR(160),SUBSTITUTE($Z98,\"{\",CHAR(160),HY$1)),FIND(CHAR(160),SUBSTITUTE($Z98,\"}\",CHAR(160),HY$1))-FIND(CHAR(160),SUBSTITUTE($Z98,\"{\",CHAR(160),HY$1))+1),\"\")","v":""},{"$f":"IFERROR(MID($Z98,FIND(CHAR(160),SUBSTITUTE($Z98,\"{\",CHAR(160),HZ$1)),FIND(CHAR(160),SUBSTITUTE($Z98,\"}\",CHAR(160),HZ$1))-FIND(CHAR(160),SUBSTITUTE($Z98,\"{\",CHAR(160),HZ$1))+1),\"\")","v":""},{"$f":"IFERROR(MID($Z98,FIND(CHAR(160),SUBSTITUTE($Z98,\"{\",CHAR(160),IA$1)),FIND(CHAR(160),SUBSTITUTE($Z98,\"}\",CHAR(160),IA$1))-FIND(CHAR(160),SUBSTITUTE($Z98,\"{\",CHAR(160),IA$1))+1),\"\")","v":""},{"$f":"IFERROR(MID($Z98,FIND(CHAR(160),SUBSTITUTE($Z98,\"{\",CHAR(160),IB$1)),FIND(CHAR(160),SUBSTITUTE($Z98,\"}\",CHAR(160),IB$1))-FIND(CHAR(160),SUBSTITUTE($Z98,\"{\",CHAR(160),IB$1))+1),\"\")","v":""},{"$f":"IFERROR(MID($Z98,FIND(CHAR(160),SUBSTITUTE($Z98,\"{\",CHAR(160),IC$1)),FIND(CHAR(160),SUBSTITUTE($Z98,\"}\",CHAR(160),IC$1))-FIND(CHAR(160),SUBSTITUTE($Z98,\"{\",CHAR(160),IC$1))+1),\"\")","v":""},{"$f":"IFERROR(MID($Z98,FIND(CHAR(160),SUBSTITUTE($Z98,\"{\",CHAR(160),ID$1)),FIND(CHAR(160),SUBSTITUTE($Z98,\"}\",CHAR(160),ID$1))-FIND(CHAR(160),SUBSTITUTE($Z98,\"{\",CHAR(160),ID$1))+1),\"\")","v":""},{"$f":"IFERROR(MID($AA98,FIND(CHAR(160),SUBSTITUTE($AA98,\"{\",CHAR(160),IE$1)),FIND(CHAR(160),SUBSTITUTE($AA98,\"}\",CHAR(160),IE$1))-FIND(CHAR(160),SUBSTITUTE($AA98,\"{\",CHAR(160),IE$1))+1),\"\")","v":""},{"$f":"IFERROR(MID($AA98,FIND(CHAR(160),SUBSTITUTE($AA98,\"{\",CHAR(160),IF$1)),FIND(CHAR(160),SUBSTITUTE($AA98,\"}\",CHAR(160),IF$1))-FIND(CHAR(160),SUBSTITUTE($AA98,\"{\",CHAR(160),IF$1))+1),\"\")","v":""},{"$f":"IFERROR(MID($AA98,FIND(CHAR(160),SUBSTITUTE($AA98,\"{\",CHAR(160),IG$1)),FIND(CHAR(160),SUBSTITUTE($AA98,\"}\",CHAR(160),IG$1))-FIND(CHAR(160),SUBSTITUTE($AA98,\"{\",CHAR(160),IG$1))+1),\"\")","v":""},{"$f":"IFERROR(MID($AA98,FIND(CHAR(160),SUBSTITUTE($AA98,\"{\",CHAR(160),IH$1)),FIND(CHAR(160),SUBSTITUTE($AA98,\"}\",CHAR(160),IH$1))-FIND(CHAR(160),SUBSTITUTE($AA98,\"{\",CHAR(160),IH$1))+1),\"\")","v":""},{"$f":"IFERROR(MID($AA98,FIND(CHAR(160),SUBSTITUTE($AA98,\"{\",CHAR(160),II$1)),FIND(CHAR(160),SUBSTITUTE($AA98,\"}\",CHAR(160),II$1))-FIND(CHAR(160),SUBSTITUTE($AA98,\"{\",CHAR(160),II$1))+1),\"\")","v":""},{"$f":"IFERROR(MID($AA98,FIND(CHAR(160),SUBSTITUTE($AA98,\"{\",CHAR(160),IJ$1)),FIND(CHAR(160),SUBSTITUTE($AA98,\"}\",CHAR(160),IJ$1))-FIND(CHAR(160),SUBSTITUTE($AA98,\"{\",CHAR(160),IJ$1))+1),\"\")","v":""},{"$f":"IFERROR(MID($AA98,FIND(CHAR(160),SUBSTITUTE($AA98,\"{\",CHAR(160),IK$1)),FIND(CHAR(160),SUBSTITUTE($AA98,\"}\",CHAR(160),IK$1))-FIND(CHAR(160),SUBSTITUTE($AA98,\"{\",CHAR(160),IK$1))+1),\"\")","v":""},{"$f":"IFERROR(MID($AA98,FIND(CHAR(160),SUBSTITUTE($AA98,\"{\",CHAR(160),IL$1)),FIND(CHAR(160),SUBSTITUTE($AA98,\"}\",CHAR(160),IL$1))-FIND(CHAR(160),SUBSTITUTE($AA98,\"{\",CHAR(160),IL$1))+1),\"\")","v":""},{"$f":"IFERROR(MID($AA98,FIND(CHAR(160),SUBSTITUTE($AA98,\"{\",CHAR(160),IM$1)),FIND(CHAR(160),SUBSTITUTE($AA98,\"}\",CHAR(160),IM$1))-FIND(CHAR(160),SUBSTITUTE($AA98,\"{\",CHAR(160),IM$1))+1),\"\")","v":""},{"$f":"IFERROR(MID($AA98,FIND(CHAR(160),SUBSTITUTE($AA98,\"{\",CHAR(160),IN$1)),FIND(CHAR(160),SUBSTITUTE($AA98,\"}\",CHAR(160),IN$1))-FIND(CHAR(160),SUBSTITUTE($AA98,\"{\",CHAR(160),IN$1))+1),\"\")","v":""},{"$f":"IFERROR(MID($AB98,FIND(CHAR(160),SUBSTITUTE($AB98,\"{\",CHAR(160),IO$1)),FIND(CHAR(160),SUBSTITUTE($AB98,\"}\",CHAR(160),IO$1))-FIND(CHAR(160),SUBSTITUTE($AB98,\"{\",CHAR(160),IO$1))+1),\"\")","v":""},{"$f":"IFERROR(MID($AB98,FIND(CHAR(160),SUBSTITUTE($AB98,\"{\",CHAR(160),IP$1)),FIND(CHAR(160),SUBSTITUTE($AB98,\"}\",CHAR(160),IP$1))-FIND(CHAR(160),SUBSTITUTE($AB98,\"{\",CHAR(160),IP$1))+1),\"\")","v":""},{"$f":"IFERROR(MID($AB98,FIND(CHAR(160),SUBSTITUTE($AB98,\"{\",CHAR(160),IQ$1)),FIND(CHAR(160),SUBSTITUTE($AB98,\"}\",CHAR(160),IQ$1))-FIND(CHAR(160),SUBSTITUTE($AB98,\"{\",CHAR(160),IQ$1))+1),\"\")","v":""},{"$f":"IFERROR(MID($AB98,FIND(CHAR(160),SUBSTITUTE($AB98,\"{\",CHAR(160),IR$1)),FIND(CHAR(160),SUBSTITUTE($AB98,\"}\",CHAR(160),IR$1))-FIND(CHAR(160),SUBSTITUTE($AB98,\"{\",CHAR(160),IR$1))+1),\"\")","v":""},{"$f":"IFERROR(MID($AB98,FIND(CHAR(160),SUBSTITUTE($AB98,\"{\",CHAR(160),IS$1)),FIND(CHAR(160),SUBSTITUTE($AB98,\"}\",CHAR(160),IS$1))-FIND(CHAR(160),SUBSTITUTE($AB98,\"{\",CHAR(160),IS$1))+1),\"\")","v":""},{"$f":"IFERROR(MID($AB98,FIND(CHAR(160),SUBSTITUTE($AB98,\"{\",CHAR(160),IT$1)),FIND(CHAR(160),SUBSTITUTE($AB98,\"}\",CHAR(160),IT$1))-FIND(CHAR(160),SUBSTITUTE($AB98,\"{\",CHAR(160),IT$1))+1),\"\")","v":""},{"$f":"IFERROR(MID($AB98,FIND(CHAR(160),SUBSTITUTE($AB98,\"{\",CHAR(160),IU$1)),FIND(CHAR(160),SUBSTITUTE($AB98,\"}\",CHAR(160),IU$1))-FIND(CHAR(160),SUBSTITUTE($AB98,\"{\",CHAR(160),IU$1))+1),\"\")","v":""},{"$f":"IFERROR(MID($AB98,FIND(CHAR(160),SUBSTITUTE($AB98,\"{\",CHAR(160),IV$1)),FIND(CHAR(160),SUBSTITUTE($AB98,\"}\",CHAR(160),IV$1))-FIND(CHAR(160),SUBSTITUTE($AB98,\"{\",CHAR(160),IV$1))+1),\"\")","v":""},{"$f":"IFERROR(MID($AB98,FIND(CHAR(160),SUBSTITUTE($AB98,\"{\",CHAR(160),IW$1)),FIND(CHAR(160),SUBSTITUTE($AB98,\"}\",CHAR(160),IW$1))-FIND(CHAR(160),SUBSTITUTE($AB98,\"{\",CHAR(160),IW$1))+1),\"\")","v":""},{"$f":"IFERROR(MID($AB98,FIND(CHAR(160),SUBSTITUTE($AB98,\"{\",CHAR(160),IX$1)),FIND(CHAR(160),SUBSTITUTE($AB98,\"}\",CHAR(160),IX$1))-FIND(CHAR(160),SUBSTITUTE($AB98,\"{\",CHAR(160),IX$1))+1),\"\")","v":""},null,{"$f":"10-COUNTIF(DU98:ED98,\"\")","v":3}]
["C&I HVAC - Oil","Boiler Reset/Lockout Controls","AF3","2021-07-01","2022-06-30","Calculated","{Measure:Quantity}*612.00",0,"Calculated","{Measure:Quantity}*375",0,"2021-05-25","2022-06-30","Calculated",null,null,null,null,null,null,null,null,null,null,"if({Existing Fuel}<>3,0,{Measure:Quantity} * ({Capacity (MBTUH)} * 1565 * 0.08) / 1000)",null,null,null,"2021-05-24","2022-06-30",20,0,0,0,0,0,0,1,1,0,0.52,1.6E-2,null,{"$f":"DU99","v":"{Measure:Quantity}"},1,{"$f":"DV99","v":"{Capacity (MBTUH)}"},3,{"$f":"DW99","v":"{Existing Fuel}"},200,{"$f":"DX99","v":""},null,{"$f":"DY99","v":""},null,{"$f":"DZ99","v":""},null,{"$f":"EA99","v":""},null,{"$f":"EB99","v":""},null,{"$f":"EC99","v":""},null,{"$f":"ED99","v":""},null,0,0,0,0,0,0,0,0,0,0,{"$f":"IF(AU99<>3,0,AS99 * (AW99 * 1565 * 0.08) / 1000)","v":25.04},0,0,0,null,"Res","Default DR",{"$f":"Benefits(BL99,BR99,BS99,BT99,BU99,BV99,BW99,BX99,BY99,BZ99,AE99,AH99,AI99,AJ99,AK99,AL99,AM99,AN99,AO99,AP99,CA99,CB99)","v":0},0,0,13035.851351068097,0,0,0,0,0,{"$f":"SUMPRODUCT(CC99:CK99,--(CC99:CK99>0))","v":13035.851351068097},{"$f":"-SUMPRODUCT(CC99:CK99,--(CC99:CK99<0))","v":0},null,{"$f":"AS99*612","v":612},null,null,{"$f":"CM99+CO99","v":612},{"$f":"IF(NetOrGross=\"Net\",(1-AO99+AP99),1)","v":1},{"$f":"(SUMPRODUCT(CC99:CJ99,--(CC99:CJ99>0))+CN99)*CS99/((-SUMPRODUCT(CC99:CJ99,--(CC99:CJ99<0))+MAX(CO99,CV99)+CP99+CQ99)*CS99+IF(FRIncentives=\"Yes\",CV99*(1-CS99),0))","v":21.300410704359635},1,{"$f":"AS99*375","v":375},null,"RGGI","y",null,{"$f":"IF(F99=\"Manual Entry\",\"Manual\",IF(G99=\"\",0,\"X=\"&SUBSTITUTE(SUBSTITUTE(SUBSTITUTE(SUBSTITUTE(SUBSTITUTE(SUBSTITUTE(SUBSTITUTE(SUBSTITUTE(SUBSTITUTE(SUBSTITUTE(SUBSTITUTE(SUBSTITUTE(G99,$ED99,$ED$2&ROW($ED99)),$EC99,$EC$2&ROW($EC99)),$EB99,$EB$2&ROW($EB99)),$EA99,$EA$2&ROW($EA99)),$DZ99,$DZ$2&ROW($DZ99)),$DY99,$DY$2&ROW($DY99)),$DX99,$DX$2&ROW($DX99)),$DW99,$DW$2&ROW($DW99)),$DV99,$DV$2&ROW($DV99)),$DU99,$DU$2&ROW($DU99)),$DT99,$DT$2&ROW($DT99)),$DS99,$DS$2&ROW($DS99))))","v":"X=AS99*612.00"},{"$f":"IF(I99=\"Manual Entry\",\"Manual\",IF(J99=\"\",0,\"X=\"&SUBSTITUTE(SUBSTITUTE(SUBSTITUTE(SUBSTITUTE(SUBSTITUTE(SUBSTITUTE(SUBSTITUTE(SUBSTITUTE(SUBSTITUTE(SUBSTITUTE(SUBSTITUTE(SUBSTITUTE(J99,$ED99,$ED$2&ROW($ED99)),$EC99,$EC$2&ROW($EC99)),$EB99,$EB$2&ROW($EB99)),$EA99,$EA$2&ROW($EA99)),$DZ99,$DZ$2&ROW($DZ99)),$DY99,$DY$2&ROW($DY99)),$DX99,$DX$2&ROW($DX99)),$DW99,$DW$2&ROW($DW99)),$DV99,$DV$2&ROW($DV99)),$DU99,$DU$2&ROW($DU99)),$DT99,$DT$2&ROW($DT99)),$DS99,$DS$2&ROW($DS99))))","v":"X=AS99*375"},{"$f":"IF(O99=\"\",0,\"X=\"&SUBSTITUTE(SUBSTITUTE(SUBSTITUTE(SUBSTITUTE(SUBSTITUTE(SUBSTITUTE(SUBSTITUTE(SUBSTITUTE(SUBSTITUTE(SUBSTITUTE(SUBSTITUTE(SUBSTITUTE(O99,$ED99,$ED$2&ROW($ED99)),$EC99,$EC$2&ROW($EC99)),$EB99,$EB$2&ROW($EB99)),$EA99,$EA$2&ROW($EA99)),$DZ99,$DZ$2&ROW($DZ99)),$DY99,$DY$2&ROW($DY99)),$DX99,$DX$2&ROW($DX99)),$DW99,$DW$2&ROW($DW99)),$DV99,$DV$2&ROW($DV99)),$DU99,$DU$2&ROW($DU99)),$DT99,$DT$2&ROW($DT99)),$DS99,$DS$2&ROW($DS99)))","v":0},{"$f":"IF(P99=\"\",0,\"X=\"&SUBSTITUTE(SUBSTITUTE(SUBSTITUTE(SUBSTITUTE(SUBSTITUTE(SUBSTITUTE(SUBSTITUTE(SUBSTITUTE(SUBSTITUTE(SUBSTITUTE(SUBSTITUTE(SUBSTITUTE(P99,$ED99,$ED$2&ROW($ED99)),$EC99,$EC$2&ROW($EC99)),$EB99,$EB$2&ROW($EB99)),$EA99,$EA$2&ROW($EA99)),$DZ99,$DZ$2&ROW($DZ99)),$DY99,$DY$2&ROW($DY99)),$DX99,$DX$2&ROW($DX99)),$DW99,$DW$2&ROW($DW99)),$DV99,$DV$2&ROW($DV99)),$DU99,$DU$2&ROW($DU99)),$DT99,$DT$2&ROW($DT99)),$DS99,$DS$2&ROW($DS99)))","v":0},{"$f":"IF(Q99=\"\",0,\"X=\"&SUBSTITUTE(SUBSTITUTE(SUBSTITUTE(SUBSTITUTE(SUBSTITUTE(SUBSTITUTE(SUBSTITUTE(SUBSTITUTE(SUBSTITUTE(SUBSTITUTE(SUBSTITUTE(SUBSTITUTE(Q99,$ED99,$ED$2&ROW($ED99)),$EC99,$EC$2&ROW($EC99)),$EB99,$EB$2&ROW($EB99)),$EA99,$EA$2&ROW($EA99)),$DZ99,$DZ$2&ROW($DZ99)),$DY99,$DY$2&ROW($DY99)),$DX99,$DX$2&ROW($DX99)),$DW99,$DW$2&ROW($DW99)),$DV99,$DV$2&ROW($DV99)),$DU99,$DU$2&ROW($DU99)),$DT99,$DT$2&ROW($DT99)),$DS99,$DS$2&ROW($DS99)))","v":0},{"$f":"IF(R99=\"\",0,\"X=\"&SUBSTITUTE(SUBSTITUTE(SUBSTITUTE(SUBSTITUTE(SUBSTITUTE(SUBSTITUTE(SUBSTITUTE(SUBSTITUTE(SUBSTITUTE(SUBSTITUTE(SUBSTITUTE(SUBSTITUTE(R99,$ED99,$ED$2&ROW($ED99)),$EC99,$EC$2&ROW($EC99)),$EB99,$EB$2&ROW($EB99)),$EA99,$EA$2&ROW($EA99)),$DZ99,$DZ$2&ROW($DZ99)),$DY99,$DY$2&ROW($DY99)),$DX99,$DX$2&ROW($DX99)),$DW99,$DW$2&ROW($DW99)),$DV99,$DV$2&ROW($DV99)),$DU99,$DU$2&ROW($DU99)),$DT99,$DT$2&ROW($DT99)),$DS99,$DS$2&ROW($DS99)))","v":0},{"$f":"IF(S99=\"\",0,\"X=\"&SUBSTITUTE(SUBSTITUTE(SUBSTITUTE(SUBSTITUTE(SUBSTITUTE(SUBSTITUTE(SUBSTITUTE(SUBSTITUTE(SUBSTITUTE(SUBSTITUTE(SUBSTITUTE(SUBSTITUTE(S99,$ED99,$ED$2&ROW($ED99)),$EC99,$EC$2&ROW($EC99)),$EB99,$EB$2&ROW($EB99)),$EA99,$EA$2&ROW($EA99)),$DZ99,$DZ$2&ROW($DZ99)),$DY99,$DY$2&ROW($DY99)),$DX99,$DX$2&ROW($DX99)),$DW99,$DW$2&ROW($DW99)),$DV99,$DV$2&ROW($DV99)),$DU99,$DU$2&ROW($DU99)),$DT99,$DT$2&ROW($DT99)),$DS99,$DS$2&ROW($DS99)))","v":0},{"$f":"IF(T99=\"\",0,\"X=\"&SUBSTITUTE(SUBSTITUTE(SUBSTITUTE(SUBSTITUTE(SUBSTITUTE(SUBSTITUTE(SUBSTITUTE(SUBSTITUTE(SUBSTITUTE(SUBSTITUTE(SUBSTITUTE(SUBSTITUTE(T99,$ED99,$ED$2&ROW($ED99)),$EC99,$EC$2&ROW($EC99)),$EB99,$EB$2&ROW($EB99)),$EA99,$EA$2&ROW($EA99)),$DZ99,$DZ$2&ROW($DZ99)),$DY99,$DY$2&ROW($DY99)),$DX99,$DX$2&ROW($DX99)),$DW99,$DW$2&ROW($DW99)),$DV99,$DV$2&ROW($DV99)),$DU99,$DU$2&ROW($DU99)),$DT99,$DT$2&ROW($DT99)),$DS99,$DS$2&ROW($DS99)))","v":0},{"$f":"IF(U99=\"\",0,\"X=\"&SUBSTITUTE(SUBSTITUTE(SUBSTITUTE(SUBSTITUTE(SUBSTITUTE(SUBSTITUTE(SUBSTITUTE(SUBSTITUTE(SUBSTITUTE(SUBSTITUTE(SUBSTITUTE(SUBSTITUTE(U99,$ED99,$ED$2&ROW($ED99)),$EC99,$EC$2&ROW($EC99)),$EB99,$EB$2&ROW($EB99)),$EA99,$EA$2&ROW($EA99)),$DZ99,$DZ$2&ROW($DZ99)),$DY99,$DY$2&ROW($DY99)),$DX99,$DX$2&ROW($DX99)),$DW99,$DW$2&ROW($DW99)),$DV99,$DV$2&ROW($DV99)),$DU99,$DU$2&ROW($DU99)),$DT99,$DT$2&ROW($DT99)),$DS99,$DS$2&ROW($DS99)))","v":0},{"$f":"IF(V99=\"\",0,\"X=\"&SUBSTITUTE(SUBSTITUTE(SUBSTITUTE(SUBSTITUTE(SUBSTITUTE(SUBSTITUTE(SUBSTITUTE(SUBSTITUTE(SUBSTITUTE(SUBSTITUTE(SUBSTITUTE(SUBSTITUTE(V99,$ED99,$ED$2&ROW($ED99)),$EC99,$EC$2&ROW($EC99)),$EB99,$EB$2&ROW($EB99)),$EA99,$EA$2&ROW($EA99)),$DZ99,$DZ$2&ROW($DZ99)),$DY99,$DY$2&ROW($DY99)),$DX99,$DX$2&ROW($DX99)),$DW99,$DW$2&ROW($DW99)),$DV99,$DV$2&ROW($DV99)),$DU99,$DU$2&ROW($DU99)),$DT99,$DT$2&ROW($DT99)),$DS99,$DS$2&ROW($DS99)))","v":0},{"$f":"IF(W99=\"\",0,\"X=\"&SUBSTITUTE(SUBSTITUTE(SUBSTITUTE(SUBSTITUTE(SUBSTITUTE(SUBSTITUTE(SUBSTITUTE(SUBSTITUTE(SUBSTITUTE(SUBSTITUTE(SUBSTITUTE(SUBSTITUTE(W99,$ED99,$ED$2&ROW($ED99)),$EC99,$EC$2&ROW($EC99)),$EB99,$EB$2&ROW($EB99)),$EA99,$EA$2&ROW($EA99)),$DZ99,$DZ$2&ROW($DZ99)),$DY99,$DY$2&ROW($DY99)),$DX99,$DX$2&ROW($DX99)),$DW99,$DW$2&ROW($DW99)),$DV99,$DV$2&ROW($DV99)),$DU99,$DU$2&ROW($DU99)),$DT99,$DT$2&ROW($DT99)),$DS99,$DS$2&ROW($DS99)))","v":0},{"$f":"IF(X99=\"\",0,\"X=\"&SUBSTITUTE(SUBSTITUTE(SUBSTITUTE(SUBSTITUTE(SUBSTITUTE(SUBSTITUTE(SUBSTITUTE(SUBSTITUTE(SUBSTITUTE(SUBSTITUTE(SUBSTITUTE(SUBSTITUTE(X99,$ED99,$ED$2&ROW($ED99)),$EC99,$EC$2&ROW($EC99)),$EB99,$EB$2&ROW($EB99)),$EA99,$EA$2&ROW($EA99)),$DZ99,$DZ$2&ROW($DZ99)),$DY99,$DY$2&ROW($DY99)),$DX99,$DX$2&ROW($DX99)),$DW99,$DW$2&ROW($DW99)),$DV99,$DV$2&ROW($DV99)),$DU99,$DU$2&ROW($DU99)),$DT99,$DT$2&ROW($DT99)),$DS99,$DS$2&ROW($DS99)))","v":0},{"$f":"IF(Y99=\"\",0,\"X=\"&SUBSTITUTE(SUBSTITUTE(SUBSTITUTE(SUBSTITUTE(SUBSTITUTE(SUBSTITUTE(SUBSTITUTE(SUBSTITUTE(SUBSTITUTE(SUBSTITUTE(SUBSTITUTE(SUBSTITUTE(Y99,$ED99,$ED$2&ROW($ED99)),$EC99,$EC$2&ROW($EC99)),$EB99,$EB$2&ROW($EB99)),$EA99,$EA$2&ROW($EA99)),$DZ99,$DZ$2&ROW($DZ99)),$DY99,$DY$2&ROW($DY99)),$DX99,$DX$2&ROW($DX99)),$DW99,$DW$2&ROW($DW99)),$DV99,$DV$2&ROW($DV99)),$DU99,$DU$2&ROW($DU99)),$DT99,$DT$2&ROW($DT99)),$DS99,$DS$2&ROW($DS99)))","v":"X=if(AW99<>3,0,AS99 * (AU99 * 1565 * 0.08) / 1000)"},{"$f":"IF(Z99=\"\",0,\"X=\"&SUBSTITUTE(SUBSTITUTE(SUBSTITUTE(SUBSTITUTE(SUBSTITUTE(SUBSTITUTE(SUBSTITUTE(SUBSTITUTE(SUBSTITUTE(SUBSTITUTE(SUBSTITUTE(SUBSTITUTE(Z99,$ED99,$ED$2&ROW($ED99)),$EC99,$EC$2&ROW($EC99)),$EB99,$EB$2&ROW($EB99)),$EA99,$EA$2&ROW($EA99)),$DZ99,$DZ$2&ROW($DZ99)),$DY99,$DY$2&ROW($DY99)),$DX99,$DX$2&ROW($DX99)),$DW99,$DW$2&ROW($DW99)),$DV99,$DV$2&ROW($DV99)),$DU99,$DU$2&ROW($DU99)),$DT99,$DT$2&ROW($DT99)),$DS99,$DS$2&ROW($DS99)))","v":0},{"$f":"IF(AA99=\"\",0,\"X=\"&SUBSTITUTE(SUBSTITUTE(SUBSTITUTE(SUBSTITUTE(SUBSTITUTE(SUBSTITUTE(SUBSTITUTE(SUBSTITUTE(SUBSTITUTE(SUBSTITUTE(SUBSTITUTE(SUBSTITUTE(AA99,$ED99,$ED$2&ROW($ED99)),$EC99,$EC$2&ROW($EC99)),$EB99,$EB$2&ROW($EB99)),$EA99,$EA$2&ROW($EA99)),$DZ99,$DZ$2&ROW($DZ99)),$DY99,$DY$2&ROW($DY99)),$DX99,$DX$2&ROW($DX99)),$DW99,$DW$2&ROW($DW99)),$DV99,$DV$2&ROW($DV99)),$DU99,$DU$2&ROW($DU99)),$DT99,$DT$2&ROW($DT99)),$DS99,$DS$2&ROW($DS99)))","v":0},{"$f":"IF(AB99=\"\",0,\"X=\"&SUBSTITUTE(SUBSTITUTE(SUBSTITUTE(SUBSTITUTE(SUBSTITUTE(SUBSTITUTE(SUBSTITUTE(SUBSTITUTE(SUBSTITUTE(SUBSTITUTE(SUBSTITUTE(SUBSTITUTE(AB99,$ED99,$ED$2&ROW($ED99)),$EC99,$EC$2&ROW($EC99)),$EB99,$EB$2&ROW($EB99)),$EA99,$EA$2&ROW($EA99)),$DZ99,$DZ$2&ROW($DZ99)),$DY99,$DY$2&ROW($DY99)),$DX99,$DX$2&ROW($DX99)),$DW99,$DW$2&ROW($DW99)),$DV99,$DV$2&ROW($DV99)),$DU99,$DU$2&ROW($DU99)),$DT99,$DT$2&ROW($DT99)),$DS99,$DS$2&ROW($DS99)))","v":0},null,null,"{Factor:WinterCF}","{Factor:SummerCF}",{"$f":"IFERROR(INDEX($EG99:$IV99,MATCH(0,COUNTIF($DR99:DT99,$EG99:$IV99),0)),\"\")","v":"{Measure:Quantity}"},{"$f":"IFERROR(INDEX($EG99:$IV99,MATCH(0,COUNTIF($DR99:DU99,$EG99:$IV99),0)),\"\")","v":"{Capacity (MBTUH)}"},{"$f":"IFERROR(INDEX($EG99:$IV99,MATCH(0,COUNTIF($DR99:DV99,$EG99:$IV99),0)),\"\")","v":"{Existing Fuel}"},{"$f":"IFERROR(INDEX($EG99:$IV99,MATCH(0,COUNTIF($DR99:DW99,$EG99:$IV99),0)),\"\")","v":""},{"$f":"IFERROR(INDEX($EG99:$IV99,MATCH(0,COUNTIF($DR99:DX99,$EG99:$IV99),0)),\"\")","v":""},{"$f":"IFERROR(INDEX($EG99:$IV99,MATCH(0,COUNTIF($DR99:DY99,$EG99:$IV99),0)),\"\")","v":""},{"$f":"IFERROR(INDEX($EG99:$IV99,MATCH(0,COUNTIF($DR99:DZ99,$EG99:$IV99),0)),\"\")","v":""},{"$f":"IFERROR(INDEX($EG99:$IV99,MATCH(0,COUNTIF($DR99:EA99,$EG99:$IV99),0)),\"\")","v":""},{"$f":"IFERROR(INDEX($EG99:$IV99,MATCH(0,COUNTIF($DR99:EB99,$EG99:$IV99),0)),\"\")","v":""},{"$f":"IFERROR(INDEX($EG99:$IV99,MATCH(0,COUNTIF($DR99:EC99,$EG99:$IV99),0)),\"\")","v":""},null,null,{"$f":"IFERROR(MID($G99,FIND(CHAR(160),SUBSTITUTE($G99,\"{\",CHAR(160),EG$1)),FIND(CHAR(160),SUBSTITUTE($G99,\"}\",CHAR(160),EG$1))-FIND(CHAR(160),SUBSTITUTE($G99,\"{\",CHAR(160),EG$1))+1),\"\")","v":"{Measure:Quantity}"},{"$f":"IFERROR(MID($G99,FIND(CHAR(160),SUBSTITUTE($G99,\"{\",CHAR(160),EH$1)),FIND(CHAR(160),SUBSTITUTE($G99,\"}\",CHAR(160),EH$1))-FIND(CHAR(160),SUBSTITUTE($G99,\"{\",CHAR(160),EH$1))+1),\"\")","v":""},{"$f":"IFERROR(MID($G99,FIND(CHAR(160),SUBSTITUTE($G99,\"{\",CHAR(160),EI$1)),FIND(CHAR(160),SUBSTITUTE($G99,\"}\",CHAR(160),EI$1))-FIND(CHAR(160),SUBSTITUTE($G99,\"{\",CHAR(160),EI$1))+1),\"\")","v":""},{"$f":"IFERROR(MID($G99,FIND(CHAR(160),SUBSTITUTE($G99,\"{\",CHAR(160),EJ$1)),FIND(CHAR(160),SUBSTITUTE($G99,\"}\",CHAR(160),EJ$1))-FIND(CHAR(160),SUBSTITUTE($G99,\"{\",CHAR(160),EJ$1))+1),\"\")","v":""},{"$f":"IFERROR(MID($G99,FIND(CHAR(160),SUBSTITUTE($G99,\"{\",CHAR(160),EK$1)),FIND(CHAR(160),SUBSTITUTE($G99,\"}\",CHAR(160),EK$1))-FIND(CHAR(160),SUBSTITUTE($G99,\"{\",CHAR(160),EK$1))+1),\"\")","v":""},{"$f":"IFERROR(MID($G99,FIND(CHAR(160),SUBSTITUTE($G99,\"{\",CHAR(160),EL$1)),FIND(CHAR(160),SUBSTITUTE($G99,\"}\",CHAR(160),EL$1))-FIND(CHAR(160),SUBSTITUTE($G99,\"{\",CHAR(160),EL$1))+1),\"\")","v":""},{"$f":"IFERROR(MID($G99,FIND(CHAR(160),SUBSTITUTE($G99,\"{\",CHAR(160),EM$1)),FIND(CHAR(160),SUBSTITUTE($G99,\"}\",CHAR(160),EM$1))-FIND(CHAR(160),SUBSTITUTE($G99,\"{\",CHAR(160),EM$1))+1),\"\")","v":""},{"$f":"IFERROR(MID($G99,FIND(CHAR(160),SUBSTITUTE($G99,\"{\",CHAR(160),EN$1)),FIND(CHAR(160),SUBSTITUTE($G99,\"}\",CHAR(160),EN$1))-FIND(CHAR(160),SUBSTITUTE($G99,\"{\",CHAR(160),EN$1))+1),\"\")","v":""},{"$f":"IFERROR(MID($G99,FIND(CHAR(160),SUBSTITUTE($G99,\"{\",CHAR(160),EO$1)),FIND(CHAR(160),SUBSTITUTE($G99,\"}\",CHAR(160),EO$1))-FIND(CHAR(160),SUBSTITUTE($G99,\"{\",CHAR(160),EO$1))+1),\"\")","v":""},{"$f":"IFERROR(MID($G99,FIND(CHAR(160),SUBSTITUTE($G99,\"{\",CHAR(160),EP$1)),FIND(CHAR(160),SUBSTITUTE($G99,\"}\",CHAR(160),EP$1))-FIND(CHAR(160),SUBSTITUTE($G99,\"{\",CHAR(160),EP$1))+1),\"\")","v":""},{"$f":"IFERROR(MID($J99,FIND(CHAR(160),SUBSTITUTE($J99,\"{\",CHAR(160),EQ$1)),FIND(CHAR(160),SUBSTITUTE($J99,\"}\",CHAR(160),EQ$1))-FIND(CHAR(160),SUBSTITUTE($J99,\"{\",CHAR(160),EQ$1))+1),\"\")","v":"{Measure:Quantity}"},{"$f":"IFERROR(MID($J99,FIND(CHAR(160),SUBSTITUTE($J99,\"{\",CHAR(160),ER$1)),FIND(CHAR(160),SUBSTITUTE($J99,\"}\",CHAR(160),ER$1))-FIND(CHAR(160),SUBSTITUTE($J99,\"{\",CHAR(160),ER$1))+1),\"\")","v":""},{"$f":"IFERROR(MID($J99,FIND(CHAR(160),SUBSTITUTE($J99,\"{\",CHAR(160),ES$1)),FIND(CHAR(160),SUBSTITUTE($J99,\"}\",CHAR(160),ES$1))-FIND(CHAR(160),SUBSTITUTE($J99,\"{\",CHAR(160),ES$1))+1),\"\")","v":""},{"$f":"IFERROR(MID($J99,FIND(CHAR(160),SUBSTITUTE($J99,\"{\",CHAR(160),ET$1)),FIND(CHAR(160),SUBSTITUTE($J99,\"}\",CHAR(160),ET$1))-FIND(CHAR(160),SUBSTITUTE($J99,\"{\",CHAR(160),ET$1))+1),\"\")","v":""},{"$f":"IFERROR(MID($J99,FIND(CHAR(160),SUBSTITUTE($J99,\"{\",CHAR(160),EU$1)),FIND(CHAR(160),SUBSTITUTE($J99,\"}\",CHAR(160),EU$1))-FIND(CHAR(160),SUBSTITUTE($J99,\"{\",CHAR(160),EU$1))+1),\"\")","v":""},{"$f":"IFERROR(MID($J99,FIND(CHAR(160),SUBSTITUTE($J99,\"{\",CHAR(160),EV$1)),FIND(CHAR(160),SUBSTITUTE($J99,\"}\",CHAR(160),EV$1))-FIND(CHAR(160),SUBSTITUTE($J99,\"{\",CHAR(160),EV$1))+1),\"\")","v":""},{"$f":"IFERROR(MID($J99,FIND(CHAR(160),SUBSTITUTE($J99,\"{\",CHAR(160),EW$1)),FIND(CHAR(160),SUBSTITUTE($J99,\"}\",CHAR(160),EW$1))-FIND(CHAR(160),SUBSTITUTE($J99,\"{\",CHAR(160),EW$1))+1),\"\")","v":""},{"$f":"IFERROR(MID($J99,FIND(CHAR(160),SUBSTITUTE($J99,\"{\",CHAR(160),EX$1)),FIND(CHAR(160),SUBSTITUTE($J99,\"}\",CHAR(160),EX$1))-FIND(CHAR(160),SUBSTITUTE($J99,\"{\",CHAR(160),EX$1))+1),\"\")","v":""},{"$f":"IFERROR(MID($J99,FIND(CHAR(160),SUBSTITUTE($J99,\"{\",CHAR(160),EY$1)),FIND(CHAR(160),SUBSTITUTE($J99,\"}\",CHAR(160),EY$1))-FIND(CHAR(160),SUBSTITUTE($J99,\"{\",CHAR(160),EY$1))+1),\"\")","v":""},{"$f":"IFERROR(MID($J99,FIND(CHAR(160),SUBSTITUTE($J99,\"{\",CHAR(160),EZ$1)),FIND(CHAR(160),SUBSTITUTE($J99,\"}\",CHAR(160),EZ$1))-FIND(CHAR(160),SUBSTITUTE($J99,\"{\",CHAR(160),EZ$1))+1),\"\")","v":""},{"$f":"IFERROR(MID($J99,FIND(CHAR(160),SUBSTITUTE($J99,\"{\",CHAR(160),FA$1)),FIND(CHAR(160),SUBSTITUTE($J99,\"}\",CHAR(160),FA$1))-FIND(CHAR(160),SUBSTITUTE($J99,\"{\",CHAR(160),FA$1))+1),\"\")","v":"{Measure:Quantity}"},{"$f":"IFERROR(MID($J99,FIND(CHAR(160),SUBSTITUTE($J99,\"{\",CHAR(160),FB$1)),FIND(CHAR(160),SUBSTITUTE($J99,\"}\",CHAR(160),FB$1))-FIND(CHAR(160),SUBSTITUTE($J99,\"{\",CHAR(160),FB$1))+1),\"\")","v":""},{"$f":"IFERROR(MID($O99,FIND(CHAR(160),SUBSTITUTE($O99,\"{\",CHAR(160),FC$1)),FIND(CHAR(160),SUBSTITUTE($O99,\"}\",CHAR(160),FC$1))-FIND(CHAR(160),SUBSTITUTE($O99,\"{\",CHAR(160),FC$1))+1),\"\")","v":""},{"$f":"IFERROR(MID($O99,FIND(CHAR(160),SUBSTITUTE($O99,\"{\",CHAR(160),FD$1)),FIND(CHAR(160),SUBSTITUTE($O99,\"}\",CHAR(160),FD$1))-FIND(CHAR(160),SUBSTITUTE($O99,\"{\",CHAR(160),FD$1))+1),\"\")","v":""},{"$f":"IFERROR(MID($O99,FIND(CHAR(160),SUBSTITUTE($O99,\"{\",CHAR(160),FE$1)),FIND(CHAR(160),SUBSTITUTE($O99,\"}\",CHAR(160),FE$1))-FIND(CHAR(160),SUBSTITUTE($O99,\"{\",CHAR(160),FE$1))+1),\"\")","v":""},{"$f":"IFERROR(MID($O99,FIND(CHAR(160),SUBSTITUTE($O99,\"{\",CHAR(160),FF$1)),FIND(CHAR(160),SUBSTITUTE($O99,\"}\",CHAR(160),FF$1))-FIND(CHAR(160),SUBSTITUTE($O99,\"{\",CHAR(160),FF$1))+1),\"\")","v":""},{"$f":"IFERROR(MID($O99,FIND(CHAR(160),SUBSTITUTE($O99,\"{\",CHAR(160),FG$1)),FIND(CHAR(160),SUBSTITUTE($O99,\"}\",CHAR(160),FG$1))-FIND(CHAR(160),SUBSTITUTE($O99,\"{\",CHAR(160),FG$1))+1),\"\")","v":""},{"$f":"IFERROR(MID($O99,FIND(CHAR(160),SUBSTITUTE($O99,\"{\",CHAR(160),FH$1)),FIND(CHAR(160),SUBSTITUTE($O99,\"}\",CHAR(160),FH$1))-FIND(CHAR(160),SUBSTITUTE($O99,\"{\",CHAR(160),FH$1))+1),\"\")","v":""},{"$f":"IFERROR(MID($O99,FIND(CHAR(160),SUBSTITUTE($O99,\"{\",CHAR(160),FI$1)),FIND(CHAR(160),SUBSTITUTE($O99,\"}\",CHAR(160),FI$1))-FIND(CHAR(160),SUBSTITUTE($O99,\"{\",CHAR(160),FI$1))+1),\"\")","v":""},{"$f":"IFERROR(MID($O99,FIND(CHAR(160),SUBSTITUTE($O99,\"{\",CHAR(160),FJ$1)),FIND(CHAR(160),SUBSTITUTE($O99,\"}\",CHAR(160),FJ$1))-FIND(CHAR(160),SUBSTITUTE($O99,\"{\",CHAR(160),FJ$1))+1),\"\")","v":""},{"$f":"IFERROR(MID($O99,FIND(CHAR(160),SUBSTITUTE($O99,\"{\",CHAR(160),FK$1)),FIND(CHAR(160),SUBSTITUTE($O99,\"}\",CHAR(160),FK$1))-FIND(CHAR(160),SUBSTITUTE($O99,\"{\",CHAR(160),FK$1))+1),\"\")","v":""},{"$f":"IFERROR(MID($O99,FIND(CHAR(160),SUBSTITUTE($O99,\"{\",CHAR(160),FL$1)),FIND(CHAR(160),SUBSTITUTE($O99,\"}\",CHAR(160),FL$1))-FIND(CHAR(160),SUBSTITUTE($O99,\"{\",CHAR(160),FL$1))+1),\"\")","v":""},{"$f":"IFERROR(MID($R99,FIND(CHAR(160),SUBSTITUTE($R99,\"{\",CHAR(160),FM$1)),FIND(CHAR(160),SUBSTITUTE($R99,\"}\",CHAR(160),FM$1))-FIND(CHAR(160),SUBSTITUTE($R99,\"{\",CHAR(160),FM$1))+1),\"\")","v":""},{"$f":"IFERROR(MID($R99,FIND(CHAR(160),SUBSTITUTE($R99,\"{\",CHAR(160),FN$1)),FIND(CHAR(160),SUBSTITUTE($R99,\"}\",CHAR(160),FN$1))-FIND(CHAR(160),SUBSTITUTE($R99,\"{\",CHAR(160),FN$1))+1),\"\")","v":""},{"$f":"IFERROR(MID($R99,FIND(CHAR(160),SUBSTITUTE($R99,\"{\",CHAR(160),FO$1)),FIND(CHAR(160),SUBSTITUTE($R99,\"}\",CHAR(160),FO$1))-FIND(CHAR(160),SUBSTITUTE($R99,\"{\",CHAR(160),FO$1))+1),\"\")","v":""},{"$f":"IFERROR(MID($R99,FIND(CHAR(160),SUBSTITUTE($R99,\"{\",CHAR(160),FP$1)),FIND(CHAR(160),SUBSTITUTE($R99,\"}\",CHAR(160),FP$1))-FIND(CHAR(160),SUBSTITUTE($R99,\"{\",CHAR(160),FP$1))+1),\"\")","v":""},{"$f":"IFERROR(MID($R99,FIND(CHAR(160),SUBSTITUTE($R99,\"{\",CHAR(160),FQ$1)),FIND(CHAR(160),SUBSTITUTE($R99,\"}\",CHAR(160),FQ$1))-FIND(CHAR(160),SUBSTITUTE($R99,\"{\",CHAR(160),FQ$1))+1),\"\")","v":""},{"$f":"IFERROR(MID($R99,FIND(CHAR(160),SUBSTITUTE($R99,\"{\",CHAR(160),FR$1)),FIND(CHAR(160),SUBSTITUTE($R99,\"}\",CHAR(160),FR$1))-FIND(CHAR(160),SUBSTITUTE($R99,\"{\",CHAR(160),FR$1))+1),\"\")","v":""},{"$f":"IFERROR(MID($R99,FIND(CHAR(160),SUBSTITUTE($R99,\"{\",CHAR(160),FS$1)),FIND(CHAR(160),SUBSTITUTE($R99,\"}\",CHAR(160),FS$1))-FIND(CHAR(160),SUBSTITUTE($R99,\"{\",CHAR(160),FS$1))+1),\"\")","v":""},{"$f":"IFERROR(MID($R99,FIND(CHAR(160),SUBSTITUTE($R99,\"{\",CHAR(160),FT$1)),FIND(CHAR(160),SUBSTITUTE($R99,\"}\",CHAR(160),FT$1))-FIND(CHAR(160),SUBSTITUTE($R99,\"{\",CHAR(160),FT$1))+1),\"\")","v":""},{"$f":"IFERROR(MID($R99,FIND(CHAR(160),SUBSTITUTE($R99,\"{\",CHAR(160),FU$1)),FIND(CHAR(160),SUBSTITUTE($R99,\"}\",CHAR(160),FU$1))-FIND(CHAR(160),SUBSTITUTE($R99,\"{\",CHAR(160),FU$1))+1),\"\")","v":""},{"$f":"IFERROR(MID($R99,FIND(CHAR(160),SUBSTITUTE($R99,\"{\",CHAR(160),FV$1)),FIND(CHAR(160),SUBSTITUTE($R99,\"}\",CHAR(160),FV$1))-FIND(CHAR(160),SUBSTITUTE($R99,\"{\",CHAR(160),FV$1))+1),\"\")","v":""},{"$f":"IFERROR(MID($U99,FIND(CHAR(160),SUBSTITUTE($U99,\"{\",CHAR(160),FW$1)),FIND(CHAR(160),SUBSTITUTE($U99,\"}\",CHAR(160),FW$1))-FIND(CHAR(160),SUBSTITUTE($U99,\"{\",CHAR(160),FW$1))+1),\"\")","v":""},{"$f":"IFERROR(MID($U99,FIND(CHAR(160),SUBSTITUTE($U99,\"{\",CHAR(160),FX$1)),FIND(CHAR(160),SUBSTITUTE($U99,\"}\",CHAR(160),FX$1))-FIND(CHAR(160),SUBSTITUTE($U99,\"{\",CHAR(160),FX$1))+1),\"\")","v":""},{"$f":"IFERROR(MID($U99,FIND(CHAR(160),SUBSTITUTE($U99,\"{\",CHAR(160),FY$1)),FIND(CHAR(160),SUBSTITUTE($U99,\"}\",CHAR(160),FY$1))-FIND(CHAR(160),SUBSTITUTE($U99,\"{\",CHAR(160),FY$1))+1),\"\")","v":""},{"$f":"IFERROR(MID($U99,FIND(CHAR(160),SUBSTITUTE($U99,\"{\",CHAR(160),FZ$1)),FIND(CHAR(160),SUBSTITUTE($U99,\"}\",CHAR(160),FZ$1))-FIND(CHAR(160),SUBSTITUTE($U99,\"{\",CHAR(160),FZ$1))+1),\"\")","v":""},{"$f":"IFERROR(MID($U99,FIND(CHAR(160),SUBSTITUTE($U99,\"{\",CHAR(160),GA$1)),FIND(CHAR(160),SUBSTITUTE($U99,\"}\",CHAR(160),GA$1))-FIND(CHAR(160),SUBSTITUTE($U99,\"{\",CHAR(160),GA$1))+1),\"\")","v":""},{"$f":"IFERROR(MID($U99,FIND(CHAR(160),SUBSTITUTE($U99,\"{\",CHAR(160),GB$1)),FIND(CHAR(160),SUBSTITUTE($U99,\"}\",CHAR(160),GB$1))-FIND(CHAR(160),SUBSTITUTE($U99,\"{\",CHAR(160),GB$1))+1),\"\")","v":""},{"$f":"IFERROR(MID($U99,FIND(CHAR(160),SUBSTITUTE($U99,\"{\",CHAR(160),GC$1)),FIND(CHAR(160),SUBSTITUTE($U99,\"}\",CHAR(160),GC$1))-FIND(CHAR(160),SUBSTITUTE($U99,\"{\",CHAR(160),GC$1))+1),\"\")","v":""},{"$f":"IFERROR(MID($U99,FIND(CHAR(160),SUBSTITUTE($U99,\"{\",CHAR(160),GD$1)),FIND(CHAR(160),SUBSTITUTE($U99,\"}\",CHAR(160),GD$1))-FIND(CHAR(160),SUBSTITUTE($U99,\"{\",CHAR(160),GD$1))+1),\"\")","v":""},{"$f":"IFERROR(MID($U99,FIND(CHAR(160),SUBSTITUTE($U99,\"{\",CHAR(160),GE$1)),FIND(CHAR(160),SUBSTITUTE($U99,\"}\",CHAR(160),GE$1))-FIND(CHAR(160),SUBSTITUTE($U99,\"{\",CHAR(160),GE$1))+1),\"\")","v":""},{"$f":"IFERROR(MID($U99,FIND(CHAR(160),SUBSTITUTE($U99,\"{\",CHAR(160),GF$1)),FIND(CHAR(160),SUBSTITUTE($U99,\"}\",CHAR(160),GF$1))-FIND(CHAR(160),SUBSTITUTE($U99,\"{\",CHAR(160),GF$1))+1),\"\")","v":""},{"$f":"IFERROR(MID($V99,FIND(CHAR(160),SUBSTITUTE($V99,\"{\",CHAR(160),GG$1)),FIND(CHAR(160),SUBSTITUTE($V99,\"}\",CHAR(160),GG$1))-FIND(CHAR(160),SUBSTITUTE($V99,\"{\",CHAR(160),GG$1))+1),\"\")","v":""},{"$f":"IFERROR(MID($V99,FIND(CHAR(160),SUBSTITUTE($V99,\"{\",CHAR(160),GH$1)),FIND(CHAR(160),SUBSTITUTE($V99,\"}\",CHAR(160),GH$1))-FIND(CHAR(160),SUBSTITUTE($V99,\"{\",CHAR(160),GH$1))+1),\"\")","v":""},{"$f":"IFERROR(MID($V99,FIND(CHAR(160),SUBSTITUTE($V99,\"{\",CHAR(160),GI$1)),FIND(CHAR(160),SUBSTITUTE($V99,\"}\",CHAR(160),GI$1))-FIND(CHAR(160),SUBSTITUTE($V99,\"{\",CHAR(160),GI$1))+1),\"\")","v":""},{"$f":"IFERROR(MID($V99,FIND(CHAR(160),SUBSTITUTE($V99,\"{\",CHAR(160),GJ$1)),FIND(CHAR(160),SUBSTITUTE($V99,\"}\",CHAR(160),GJ$1))-FIND(CHAR(160),SUBSTITUTE($V99,\"{\",CHAR(160),GJ$1))+1),\"\")","v":""},{"$f":"IFERROR(MID($V99,FIND(CHAR(160),SUBSTITUTE($V99,\"{\",CHAR(160),GK$1)),FIND(CHAR(160),SUBSTITUTE($V99,\"}\",CHAR(160),GK$1))-FIND(CHAR(160),SUBSTITUTE($V99,\"{\",CHAR(160),GK$1))+1),\"\")","v":""},{"$f":"IFERROR(MID($V99,FIND(CHAR(160),SUBSTITUTE($V99,\"{\",CHAR(160),GL$1)),FIND(CHAR(160),SUBSTITUTE($V99,\"}\",CHAR(160),GL$1))-FIND(CHAR(160),SUBSTITUTE($V99,\"{\",CHAR(160),GL$1))+1),\"\")","v":""},{"$f":"IFERROR(MID($V99,FIND(CHAR(160),SUBSTITUTE($V99,\"{\",CHAR(160),GM$1)),FIND(CHAR(160),SUBSTITUTE($V99,\"}\",CHAR(160),GM$1))-FIND(CHAR(160),SUBSTITUTE($V99,\"{\",CHAR(160),GM$1))+1),\"\")","v":""},{"$f":"IFERROR(MID($V99,FIND(CHAR(160),SUBSTITUTE($V99,\"{\",CHAR(160),GN$1)),FIND(CHAR(160),SUBSTITUTE($V99,\"}\",CHAR(160),GN$1))-FIND(CHAR(160),SUBSTITUTE($V99,\"{\",CHAR(160),GN$1))+1),\"\")","v":""},{"$f":"IFERROR(MID($V99,FIND(CHAR(160),SUBSTITUTE($V99,\"{\",CHAR(160),GO$1)),FIND(CHAR(160),SUBSTITUTE($V99,\"}\",CHAR(160),GO$1))-FIND(CHAR(160),SUBSTITUTE($V99,\"{\",CHAR(160),GO$1))+1),\"\")","v":""},{"$f":"IFERROR(MID($V99,FIND(CHAR(160),SUBSTITUTE($V99,\"{\",CHAR(160),GP$1)),FIND(CHAR(160),SUBSTITUTE($V99,\"}\",CHAR(160),GP$1))-FIND(CHAR(160),SUBSTITUTE($V99,\"{\",CHAR(160),GP$1))+1),\"\")","v":""},{"$f":"IFERROR(MID($W99,FIND(CHAR(160),SUBSTITUTE($W99,\"{\",CHAR(160),GQ$1)),FIND(CHAR(160),SUBSTITUTE($W99,\"}\",CHAR(160),GQ$1))-FIND(CHAR(160),SUBSTITUTE($W99,\"{\",CHAR(160),GQ$1))+1),\"\")","v":""},{"$f":"IFERROR(MID($W99,FIND(CHAR(160),SUBSTITUTE($W99,\"{\",CHAR(160),GR$1)),FIND(CHAR(160),SUBSTITUTE($W99,\"}\",CHAR(160),GR$1))-FIND(CHAR(160),SUBSTITUTE($W99,\"{\",CHAR(160),GR$1))+1),\"\")","v":""},{"$f":"IFERROR(MID($W99,FIND(CHAR(160),SUBSTITUTE($W99,\"{\",CHAR(160),GS$1)),FIND(CHAR(160),SUBSTITUTE($W99,\"}\",CHAR(160),GS$1))-FIND(CHAR(160),SUBSTITUTE($W99,\"{\",CHAR(160),GS$1))+1),\"\")","v":""},{"$f":"IFERROR(MID($W99,FIND(CHAR(160),SUBSTITUTE($W99,\"{\",CHAR(160),GT$1)),FIND(CHAR(160),SUBSTITUTE($W99,\"}\",CHAR(160),GT$1))-FIND(CHAR(160),SUBSTITUTE($W99,\"{\",CHAR(160),GT$1))+1),\"\")","v":""},{"$f":"IFERROR(MID($W99,FIND(CHAR(160),SUBSTITUTE($W99,\"{\",CHAR(160),GU$1)),FIND(CHAR(160),SUBSTITUTE($W99,\"}\",CHAR(160),GU$1))-FIND(CHAR(160),SUBSTITUTE($W99,\"{\",CHAR(160),GU$1))+1),\"\")","v":""},{"$f":"IFERROR(MID($W99,FIND(CHAR(160),SUBSTITUTE($W99,\"{\",CHAR(160),GV$1)),FIND(CHAR(160),SUBSTITUTE($W99,\"}\",CHAR(160),GV$1))-FIND(CHAR(160),SUBSTITUTE($W99,\"{\",CHAR(160),GV$1))+1),\"\")","v":""},{"$f":"IFERROR(MID($W99,FIND(CHAR(160),SUBSTITUTE($W99,\"{\",CHAR(160),GW$1)),FIND(CHAR(160),SUBSTITUTE($W99,\"}\",CHAR(160),GW$1))-FIND(CHAR(160),SUBSTITUTE($W99,\"{\",CHAR(160),GW$1))+1),\"\")","v":""},{"$f":"IFERROR(MID($W99,FIND(CHAR(160),SUBSTITUTE($W99,\"{\",CHAR(160),GX$1)),FIND(CHAR(160),SUBSTITUTE($W99,\"}\",CHAR(160),GX$1))-FIND(CHAR(160),SUBSTITUTE($W99,\"{\",CHAR(160),GX$1))+1),\"\")","v":""},{"$f":"IFERROR(MID($W99,FIND(CHAR(160),SUBSTITUTE($W99,\"{\",CHAR(160),GY$1)),FIND(CHAR(160),SUBSTITUTE($W99,\"}\",CHAR(160),GY$1))-FIND(CHAR(160),SUBSTITUTE($W99,\"{\",CHAR(160),GY$1))+1),\"\")","v":""},{"$f":"IFERROR(MID($W99,FIND(CHAR(160),SUBSTITUTE($W99,\"{\",CHAR(160),GZ$1)),FIND(CHAR(160),SUBSTITUTE($W99,\"}\",CHAR(160),GZ$1))-FIND(CHAR(160),SUBSTITUTE($W99,\"{\",CHAR(160),GZ$1))+1),\"\")","v":""},{"$f":"IFERROR(MID($X99,FIND(CHAR(160),SUBSTITUTE($X99,\"{\",CHAR(160),HA$1)),FIND(CHAR(160),SUBSTITUTE($X99,\"}\",CHAR(160),HA$1))-FIND(CHAR(160),SUBSTITUTE($X99,\"{\",CHAR(160),HA$1))+1),\"\")","v":""},{"$f":"IFERROR(MID($X99,FIND(CHAR(160),SUBSTITUTE($X99,\"{\",CHAR(160),HB$1)),FIND(CHAR(160),SUBSTITUTE($X99,\"}\",CHAR(160),HB$1))-FIND(CHAR(160),SUBSTITUTE($X99,\"{\",CHAR(160),HB$1))+1),\"\")","v":""},{"$f":"IFERROR(MID($X99,FIND(CHAR(160),SUBSTITUTE($X99,\"{\",CHAR(160),HC$1)),FIND(CHAR(160),SUBSTITUTE($X99,\"}\",CHAR(160),HC$1))-FIND(CHAR(160),SUBSTITUTE($X99,\"{\",CHAR(160),HC$1))+1),\"\")","v":""},{"$f":"IFERROR(MID($X99,FIND(CHAR(160),SUBSTITUTE($X99,\"{\",CHAR(160),HD$1)),FIND(CHAR(160),SUBSTITUTE($X99,\"}\",CHAR(160),HD$1))-FIND(CHAR(160),SUBSTITUTE($X99,\"{\",CHAR(160),HD$1))+1),\"\")","v":""},{"$f":"IFERROR(MID($X99,FIND(CHAR(160),SUBSTITUTE($X99,\"{\",CHAR(160),HE$1)),FIND(CHAR(160),SUBSTITUTE($X99,\"}\",CHAR(160),HE$1))-FIND(CHAR(160),SUBSTITUTE($X99,\"{\",CHAR(160),HE$1))+1),\"\")","v":""},{"$f":"IFERROR(MID($X99,FIND(CHAR(160),SUBSTITUTE($X99,\"{\",CHAR(160),HF$1)),FIND(CHAR(160),SUBSTITUTE($X99,\"}\",CHAR(160),HF$1))-FIND(CHAR(160),SUBSTITUTE($X99,\"{\",CHAR(160),HF$1))+1),\"\")","v":""},{"$f":"IFERROR(MID($X99,FIND(CHAR(160),SUBSTITUTE($X99,\"{\",CHAR(160),HG$1)),FIND(CHAR(160),SUBSTITUTE($X99,\"}\",CHAR(160),HG$1))-FIND(CHAR(160),SUBSTITUTE($X99,\"{\",CHAR(160),HG$1))+1),\"\")","v":""},{"$f":"IFERROR(MID($X99,FIND(CHAR(160),SUBSTITUTE($X99,\"{\",CHAR(160),HH$1)),FIND(CHAR(160),SUBSTITUTE($X99,\"}\",CHAR(160),HH$1))-FIND(CHAR(160),SUBSTITUTE($X99,\"{\",CHAR(160),HH$1))+1),\"\")","v":""},{"$f":"IFERROR(MID($X99,FIND(CHAR(160),SUBSTITUTE($X99,\"{\",CHAR(160),HI$1)),FIND(CHAR(160),SUBSTITUTE($X99,\"}\",CHAR(160),HI$1))-FIND(CHAR(160),SUBSTITUTE($X99,\"{\",CHAR(160),HI$1))+1),\"\")","v":""},{"$f":"IFERROR(MID($X99,FIND(CHAR(160),SUBSTITUTE($X99,\"{\",CHAR(160),HJ$1)),FIND(CHAR(160),SUBSTITUTE($X99,\"}\",CHAR(160),HJ$1))-FIND(CHAR(160),SUBSTITUTE($X99,\"{\",CHAR(160),HJ$1))+1),\"\")","v":""},{"$f":"IFERROR(MID($Y99,FIND(CHAR(160),SUBSTITUTE($Y99,\"{\",CHAR(160),HK$1)),FIND(CHAR(160),SUBSTITUTE($Y99,\"}\",CHAR(160),HK$1))-FIND(CHAR(160),SUBSTITUTE($Y99,\"{\",CHAR(160),HK$1))+1),\"\")","v":"{Capacity (MBTUH)}"},{"$f":"IFERROR(MID($Y99,FIND(CHAR(160),SUBSTITUTE($Y99,\"{\",CHAR(160),HL$1)),FIND(CHAR(160),SUBSTITUTE($Y99,\"}\",CHAR(160),HL$1))-FIND(CHAR(160),SUBSTITUTE($Y99,\"{\",CHAR(160),HL$1))+1),\"\")","v":""},{"$f":"IFERROR(MID($Y99,FIND(CHAR(160),SUBSTITUTE($Y99,\"{\",CHAR(160),HM$1)),FIND(CHAR(160),SUBSTITUTE($Y99,\"}\",CHAR(160),HM$1))-FIND(CHAR(160),SUBSTITUTE($Y99,\"{\",CHAR(160),HM$1))+1),\"\")","v":""},{"$f":"IFERROR(MID($Y99,FIND(CHAR(160),SUBSTITUTE($Y99,\"{\",CHAR(160),HN$1)),FIND(CHAR(160),SUBSTITUTE($Y99,\"}\",CHAR(160),HN$1))-FIND(CHAR(160),SUBSTITUTE($Y99,\"{\",CHAR(160),HN$1))+1),\"\")","v":""},{"$f":"IFERROR(MID($Y99,FIND(CHAR(160),SUBSTITUTE($Y99,\"{\",CHAR(160),HO$1)),FIND(CHAR(160),SUBSTITUTE($Y99,\"}\",CHAR(160),HO$1))-FIND(CHAR(160),SUBSTITUTE($Y99,\"{\",CHAR(160),HO$1))+1),\"\")","v":""},{"$f":"IFERROR(MID($Y99,FIND(CHAR(160),SUBSTITUTE($Y99,\"{\",CHAR(160),HP$1)),FIND(CHAR(160),SUBSTITUTE($Y99,\"}\",CHAR(160),HP$1))-FIND(CHAR(160),SUBSTITUTE($Y99,\"{\",CHAR(160),HP$1))+1),\"\")","v":""},{"$f":"IFERROR(MID($Y99,FIND(CHAR(160),SUBSTITUTE($Y99,\"{\",CHAR(160),HQ$1)),FIND(CHAR(160),SUBSTITUTE($Y99,\"}\",CHAR(160),HQ$1))-FIND(CHAR(160),SUBSTITUTE($Y99,\"{\",CHAR(160),HQ$1))+1),\"\")","v":""},{"$f":"IFERROR(MID($Y99,FIND(CHAR(160),SUBSTITUTE($Y99,\"{\",CHAR(160),HR$1)),FIND(CHAR(160),SUBSTITUTE($Y99,\"}\",CHAR(160),HR$1))-FIND(CHAR(160),SUBSTITUTE($Y99,\"{\",CHAR(160),HR$1))+1),\"\")","v":""},{"$f":"IFERROR(MID($Y99,FIND(CHAR(160),SUBSTITUTE($Y99,\"{\",CHAR(160),HS$1)),FIND(CHAR(160),SUBSTITUTE($Y99,\"}\",CHAR(160),HS$1))-FIND(CHAR(160),SUBSTITUTE($Y99,\"{\",CHAR(160),HS$1))+1),\"\")","v":"{Existing Fuel}"},{"$f":"IFERROR(MID($Y99,FIND(CHAR(160),SUBSTITUTE($Y99,\"{\",CHAR(160),HT$1)),FIND(CHAR(160),SUBSTITUTE($Y99,\"}\",CHAR(160),HT$1))-FIND(CHAR(160),SUBSTITUTE($Y99,\"{\",CHAR(160),HT$1))+1),\"\")","v":"{Measure:Quantity}"},{"$f":"IFERROR(MID($Z99,FIND(CHAR(160),SUBSTITUTE($Z99,\"{\",CHAR(160),HU$1)),FIND(CHAR(160),SUBSTITUTE($Z99,\"}\",CHAR(160),HU$1))-FIND(CHAR(160),SUBSTITUTE($Z99,\"{\",CHAR(160),HU$1))+1),\"\")","v":""},{"$f":"IFERROR(MID($Z99,FIND(CHAR(160),SUBSTITUTE($Z99,\"{\",CHAR(160),HV$1)),FIND(CHAR(160),SUBSTITUTE($Z99,\"}\",CHAR(160),HV$1))-FIND(CHAR(160),SUBSTITUTE($Z99,\"{\",CHAR(160),HV$1))+1),\"\")","v":""},{"$f":"IFERROR(MID($Z99,FIND(CHAR(160),SUBSTITUTE($Z99,\"{\",CHAR(160),HW$1)),FIND(CHAR(160),SUBSTITUTE($Z99,\"}\",CHAR(160),HW$1))-FIND(CHAR(160),SUBSTITUTE($Z99,\"{\",CHAR(160),HW$1))+1),\"\")","v":""},{"$f":"IFERROR(MID($Z99,FIND(CHAR(160),SUBSTITUTE($Z99,\"{\",CHAR(160),HX$1)),FIND(CHAR(160),SUBSTITUTE($Z99,\"}\",CHAR(160),HX$1))-FIND(CHAR(160),SUBSTITUTE($Z99,\"{\",CHAR(160),HX$1))+1),\"\")","v":""},{"$f":"IFERROR(MID($Z99,FIND(CHAR(160),SUBSTITUTE($Z99,\"{\",CHAR(160),HY$1)),FIND(CHAR(160),SUBSTITUTE($Z99,\"}\",CHAR(160),HY$1))-FIND(CHAR(160),SUBSTITUTE($Z99,\"{\",CHAR(160),HY$1))+1),\"\")","v":""},{"$f":"IFERROR(MID($Z99,FIND(CHAR(160),SUBSTITUTE($Z99,\"{\",CHAR(160),HZ$1)),FIND(CHAR(160),SUBSTITUTE($Z99,\"}\",CHAR(160),HZ$1))-FIND(CHAR(160),SUBSTITUTE($Z99,\"{\",CHAR(160),HZ$1))+1),\"\")","v":""},{"$f":"IFERROR(MID($Z99,FIND(CHAR(160),SUBSTITUTE($Z99,\"{\",CHAR(160),IA$1)),FIND(CHAR(160),SUBSTITUTE($Z99,\"}\",CHAR(160),IA$1))-FIND(CHAR(160),SUBSTITUTE($Z99,\"{\",CHAR(160),IA$1))+1),\"\")","v":""},{"$f":"IFERROR(MID($Z99,FIND(CHAR(160),SUBSTITUTE($Z99,\"{\",CHAR(160),IB$1)),FIND(CHAR(160),SUBSTITUTE($Z99,\"}\",CHAR(160),IB$1))-FIND(CHAR(160),SUBSTITUTE($Z99,\"{\",CHAR(160),IB$1))+1),\"\")","v":""},{"$f":"IFERROR(MID($Z99,FIND(CHAR(160),SUBSTITUTE($Z99,\"{\",CHAR(160),IC$1)),FIND(CHAR(160),SUBSTITUTE($Z99,\"}\",CHAR(160),IC$1))-FIND(CHAR(160),SUBSTITUTE($Z99,\"{\",CHAR(160),IC$1))+1),\"\")","v":""},{"$f":"IFERROR(MID($Z99,FIND(CHAR(160),SUBSTITUTE($Z99,\"{\",CHAR(160),ID$1)),FIND(CHAR(160),SUBSTITUTE($Z99,\"}\",CHAR(160),ID$1))-FIND(CHAR(160),SUBSTITUTE($Z99,\"{\",CHAR(160),ID$1))+1),\"\")","v":""},{"$f":"IFERROR(MID($AA99,FIND(CHAR(160),SUBSTITUTE($AA99,\"{\",CHAR(160),IE$1)),FIND(CHAR(160),SUBSTITUTE($AA99,\"}\",CHAR(160),IE$1))-FIND(CHAR(160),SUBSTITUTE($AA99,\"{\",CHAR(160),IE$1))+1),\"\")","v":""},{"$f":"IFERROR(MID($AA99,FIND(CHAR(160),SUBSTITUTE($AA99,\"{\",CHAR(160),IF$1)),FIND(CHAR(160),SUBSTITUTE($AA99,\"}\",CHAR(160),IF$1))-FIND(CHAR(160),SUBSTITUTE($AA99,\"{\",CHAR(160),IF$1))+1),\"\")","v":""},{"$f":"IFERROR(MID($AA99,FIND(CHAR(160),SUBSTITUTE($AA99,\"{\",CHAR(160),IG$1)),FIND(CHAR(160),SUBSTITUTE($AA99,\"}\",CHAR(160),IG$1))-FIND(CHAR(160),SUBSTITUTE($AA99,\"{\",CHAR(160),IG$1))+1),\"\")","v":""},{"$f":"IFERROR(MID($AA99,FIND(CHAR(160),SUBSTITUTE($AA99,\"{\",CHAR(160),IH$1)),FIND(CHAR(160),SUBSTITUTE($AA99,\"}\",CHAR(160),IH$1))-FIND(CHAR(160),SUBSTITUTE($AA99,\"{\",CHAR(160),IH$1))+1),\"\")","v":""},{"$f":"IFERROR(MID($AA99,FIND(CHAR(160),SUBSTITUTE($AA99,\"{\",CHAR(160),II$1)),FIND(CHAR(160),SUBSTITUTE($AA99,\"}\",CHAR(160),II$1))-FIND(CHAR(160),SUBSTITUTE($AA99,\"{\",CHAR(160),II$1))+1),\"\")","v":""},{"$f":"IFERROR(MID($AA99,FIND(CHAR(160),SUBSTITUTE($AA99,\"{\",CHAR(160),IJ$1)),FIND(CHAR(160),SUBSTITUTE($AA99,\"}\",CHAR(160),IJ$1))-FIND(CHAR(160),SUBSTITUTE($AA99,\"{\",CHAR(160),IJ$1))+1),\"\")","v":""},{"$f":"IFERROR(MID($AA99,FIND(CHAR(160),SUBSTITUTE($AA99,\"{\",CHAR(160),IK$1)),FIND(CHAR(160),SUBSTITUTE($AA99,\"}\",CHAR(160),IK$1))-FIND(CHAR(160),SUBSTITUTE($AA99,\"{\",CHAR(160),IK$1))+1),\"\")","v":""},{"$f":"IFERROR(MID($AA99,FIND(CHAR(160),SUBSTITUTE($AA99,\"{\",CHAR(160),IL$1)),FIND(CHAR(160),SUBSTITUTE($AA99,\"}\",CHAR(160),IL$1))-FIND(CHAR(160),SUBSTITUTE($AA99,\"{\",CHAR(160),IL$1))+1),\"\")","v":""},{"$f":"IFERROR(MID($AA99,FIND(CHAR(160),SUBSTITUTE($AA99,\"{\",CHAR(160),IM$1)),FIND(CHAR(160),SUBSTITUTE($AA99,\"}\",CHAR(160),IM$1))-FIND(CHAR(160),SUBSTITUTE($AA99,\"{\",CHAR(160),IM$1))+1),\"\")","v":""},{"$f":"IFERROR(MID($AA99,FIND(CHAR(160),SUBSTITUTE($AA99,\"{\",CHAR(160),IN$1)),FIND(CHAR(160),SUBSTITUTE($AA99,\"}\",CHAR(160),IN$1))-FIND(CHAR(160),SUBSTITUTE($AA99,\"{\",CHAR(160),IN$1))+1),\"\")","v":""},{"$f":"IFERROR(MID($AB99,FIND(CHAR(160),SUBSTITUTE($AB99,\"{\",CHAR(160),IO$1)),FIND(CHAR(160),SUBSTITUTE($AB99,\"}\",CHAR(160),IO$1))-FIND(CHAR(160),SUBSTITUTE($AB99,\"{\",CHAR(160),IO$1))+1),\"\")","v":""},{"$f":"IFERROR(MID($AB99,FIND(CHAR(160),SUBSTITUTE($AB99,\"{\",CHAR(160),IP$1)),FIND(CHAR(160),SUBSTITUTE($AB99,\"}\",CHAR(160),IP$1))-FIND(CHAR(160),SUBSTITUTE($AB99,\"{\",CHAR(160),IP$1))+1),\"\")","v":""},{"$f":"IFERROR(MID($AB99,FIND(CHAR(160),SUBSTITUTE($AB99,\"{\",CHAR(160),IQ$1)),FIND(CHAR(160),SUBSTITUTE($AB99,\"}\",CHAR(160),IQ$1))-FIND(CHAR(160),SUBSTITUTE($AB99,\"{\",CHAR(160),IQ$1))+1),\"\")","v":""},{"$f":"IFERROR(MID($AB99,FIND(CHAR(160),SUBSTITUTE($AB99,\"{\",CHAR(160),IR$1)),FIND(CHAR(160),SUBSTITUTE($AB99,\"}\",CHAR(160),IR$1))-FIND(CHAR(160),SUBSTITUTE($AB99,\"{\",CHAR(160),IR$1))+1),\"\")","v":""},{"$f":"IFERROR(MID($AB99,FIND(CHAR(160),SUBSTITUTE($AB99,\"{\",CHAR(160),IS$1)),FIND(CHAR(160),SUBSTITUTE($AB99,\"}\",CHAR(160),IS$1))-FIND(CHAR(160),SUBSTITUTE($AB99,\"{\",CHAR(160),IS$1))+1),\"\")","v":""},{"$f":"IFERROR(MID($AB99,FIND(CHAR(160),SUBSTITUTE($AB99,\"{\",CHAR(160),IT$1)),FIND(CHAR(160),SUBSTITUTE($AB99,\"}\",CHAR(160),IT$1))-FIND(CHAR(160),SUBSTITUTE($AB99,\"{\",CHAR(160),IT$1))+1),\"\")","v":""},{"$f":"IFERROR(MID($AB99,FIND(CHAR(160),SUBSTITUTE($AB99,\"{\",CHAR(160),IU$1)),FIND(CHAR(160),SUBSTITUTE($AB99,\"}\",CHAR(160),IU$1))-FIND(CHAR(160),SUBSTITUTE($AB99,\"{\",CHAR(160),IU$1))+1),\"\")","v":""},{"$f":"IFERROR(MID($AB99,FIND(CHAR(160),SUBSTITUTE($AB99,\"{\",CHAR(160),IV$1)),FIND(CHAR(160),SUBSTITUTE($AB99,\"}\",CHAR(160),IV$1))-FIND(CHAR(160),SUBSTITUTE($AB99,\"{\",CHAR(160),IV$1))+1),\"\")","v":""},{"$f":"IFERROR(MID($AB99,FIND(CHAR(160),SUBSTITUTE($AB99,\"{\",CHAR(160),IW$1)),FIND(CHAR(160),SUBSTITUTE($AB99,\"}\",CHAR(160),IW$1))-FIND(CHAR(160),SUBSTITUTE($AB99,\"{\",CHAR(160),IW$1))+1),\"\")","v":""},{"$f":"IFERROR(MID($AB99,FIND(CHAR(160),SUBSTITUTE($AB99,\"{\",CHAR(160),IX$1)),FIND(CHAR(160),SUBSTITUTE($AB99,\"}\",CHAR(160),IX$1))-FIND(CHAR(160),SUBSTITUTE($AB99,\"{\",CHAR(160),IX$1))+1),\"\")","v":""},null,{"$f":"10-COUNTIF(DU99:ED99,\"\")","v":3}]
["C&I HVAC - Oil","H3L Steam Boiler >500 MBtu/h","H3L","2021-07-01","2022-06-30","Calculated","{Measure:Quantity}*if({Fuel}=0,if({Equipment Capacity (MBtu/h)}<500,0,if({Equipment Capacity (MBtu/h)}<1000,858,if({Equipment Capacity (MBtu/h)}<2500,2826,4738))),0)",0,"Calculated","{Measure:Quantity}*if({Fuel}=0,if({Equipment Capacity (MBtu/h)}<500,0,if({Equipment Capacity (MBtu/h)}<1000,650,if({Equipment Capacity (MBtu/h)}<2500,2200,3500))),0)",0,"2021-05-25","2022-06-30","Calculated",null,null,null,null,null,null,null,null,null,null,"if({Fuel}=0,{Measure:Quantity}*(({Design Load (Btu/h)}/({Indoor Design Temp (oF)}-{Outdoor Design Temp (oF)})*186648/1000000)*(100/81-100/{Unit Efficiency - AFUE or Thermal Efficiency})),0)",null,null,null,"2021-05-24","2022-06-30",24,0,0,1,0,0,0,1,1,0,0.52,1.6E-2,null,{"$f":"DU100","v":"{Measure:Quantity}"},1,{"$f":"DV100","v":"{Fuel}"},0,{"$f":"DW100","v":"{Equipment Capacity (MBtu/h)}"},500,{"$f":"DX100","v":"{Design Load (Btu/h)}"},293000,{"$f":"DY100","v":"{Indoor Design Temp (oF)}"},72,{"$f":"DZ100","v":"{Outdoor Design Temp (oF)}"},-2,{"$f":"EA100","v":"{Unit Efficiency - AFUE or Thermal Efficiency}"},84,{"$f":"EB100","v":""},null,{"$f":"EC100","v":""},null,{"$f":"ED100","v":""},null,0,0,0,0,0,0,0,0,0,0,{"$f":"IF(AU100=0,AS100*((AY100/(BA100-BC100)*186648/1000000)*(100/81-100/BE100)),0)","v":32.584884884884843},0,0,0,null,"Res","RGGI DR",{"$f":"Benefits(BL100,BR100,BS100,BT100,BU100,BV100,BW100,BX100,BY100,BZ100,AE100,AH100,AI100,AJ100,AK100,AL100,AM100,AN100,AO100,AP100,CA100,CB100)","v":0},0,0,19189.401832760301,0,0,0,0,0,{"$f":"SUMPRODUCT(CC100:CK100,--(CC100:CK100>0))","v":19189.401832760301},{"$f":"-SUMPRODUCT(CC100:CK100,--(CC100:CK100<0))","v":0},null,{"$f":"AS100*IF(AU100=0,IF(AW100<500,0,IF(AW100<1000,858,IF(AW100<2500,2826,4738))),0)","v":858},null,null,{"$f":"CM100+CO100","v":858},{"$f":"IF(NetOrGross=\"Net\",(1-AO100+AP100),1)","v":1},{"$f":"(SUMPRODUCT(CC100:CJ100,--(CC100:CJ100>0))+CN100)*CS100/((-SUMPRODUCT(CC100:CJ100,--(CC100:CJ100<0))+MAX(CO100,CV100)+CP100+CQ100)*CS100+IF(FRIncentives=\"Yes\",CV100*(1-CS100),0))","v":22.365270201352331},1,{"$f":"AS100*IF(AU100=0,IF(AW100<500,0,IF(AW100<1000,650,IF(AW100<2500,2200,3500))),0)","v":650},null,"RGGI","y",null,{"$f":"IF(F100=\"Manual Entry\",\"Manual\",IF(G100=\"\",0,\"X=\"&SUBSTITUTE(SUBSTITUTE(SUBSTITUTE(SUBSTITUTE(SUBSTITUTE(SUBSTITUTE(SUBSTITUTE(SUBSTITUTE(SUBSTITUTE(SUBSTITUTE(SUBSTITUTE(SUBSTITUTE(G100,$ED100,$ED$2&ROW($ED100)),$EC100,$EC$2&ROW($EC100)),$EB100,$EB$2&ROW($EB100)),$EA100,$EA$2&ROW($EA100)),$DZ100,$DZ$2&ROW($DZ100)),$DY100,$DY$2&ROW($DY100)),$DX100,$DX$2&ROW($DX100)),$DW100,$DW$2&ROW($DW100)),$DV100,$DV$2&ROW($DV100)),$DU100,$DU$2&ROW($DU100)),$DT100,$DT$2&ROW($DT100)),$DS100,$DS$2&ROW($DS100))))","v":"X=AS100*if(AU100=0,if(AW100<500,0,if(AW100<1000,858,if(AW100<2500,2826,4738))),0)"},{"$f":"IF(I100=\"Manual Entry\",\"Manual\",IF(J100=\"\",0,\"X=\"&SUBSTITUTE(SUBSTITUTE(SUBSTITUTE(SUBSTITUTE(SUBSTITUTE(SUBSTITUTE(SUBSTITUTE(SUBSTITUTE(SUBSTITUTE(SUBSTITUTE(SUBSTITUTE(SUBSTITUTE(J100,$ED100,$ED$2&ROW($ED100)),$EC100,$EC$2&ROW($EC100)),$EB100,$EB$2&ROW($EB100)),$EA100,$EA$2&ROW($EA100)),$DZ100,$DZ$2&ROW($DZ100)),$DY100,$DY$2&ROW($DY100)),$DX100,$DX$2&ROW($DX100)),$DW100,$DW$2&ROW($DW100)),$DV100,$DV$2&ROW($DV100)),$DU100,$DU$2&ROW($DU100)),$DT100,$DT$2&ROW($DT100)),$DS100,$DS$2&ROW($DS100))))","v":"X=AS100*if(AU100=0,if(AW100<500,0,if(AW100<1000,650,if(AW100<2500,2200,3500))),0)"},{"$f":"IF(O100=\"\",0,\"X=\"&SUBSTITUTE(SUBSTITUTE(SUBSTITUTE(SUBSTITUTE(SUBSTITUTE(SUBSTITUTE(SUBSTITUTE(SUBSTITUTE(SUBSTITUTE(SUBSTITUTE(SUBSTITUTE(SUBSTITUTE(O100,$ED100,$ED$2&ROW($ED100)),$EC100,$EC$2&ROW($EC100)),$EB100,$EB$2&ROW($EB100)),$EA100,$EA$2&ROW($EA100)),$DZ100,$DZ$2&ROW($DZ100)),$DY100,$DY$2&ROW($DY100)),$DX100,$DX$2&ROW($DX100)),$DW100,$DW$2&ROW($DW100)),$DV100,$DV$2&ROW($DV100)),$DU100,$DU$2&ROW($DU100)),$DT100,$DT$2&ROW($DT100)),$DS100,$DS$2&ROW($DS100)))","v":0},{"$f":"IF(P100=\"\",0,\"X=\"&SUBSTITUTE(SUBSTITUTE(SUBSTITUTE(SUBSTITUTE(SUBSTITUTE(SUBSTITUTE(SUBSTITUTE(SUBSTITUTE(SUBSTITUTE(SUBSTITUTE(SUBSTITUTE(SUBSTITUTE(P100,$ED100,$ED$2&ROW($ED100)),$EC100,$EC$2&ROW($EC100)),$EB100,$EB$2&ROW($EB100)),$EA100,$EA$2&ROW($EA100)),$DZ100,$DZ$2&ROW($DZ100)),$DY100,$DY$2&ROW($DY100)),$DX100,$DX$2&ROW($DX100)),$DW100,$DW$2&ROW($DW100)),$DV100,$DV$2&ROW($DV100)),$DU100,$DU$2&ROW($DU100)),$DT100,$DT$2&ROW($DT100)),$DS100,$DS$2&ROW($DS100)))","v":0},{"$f":"IF(Q100=\"\",0,\"X=\"&SUBSTITUTE(SUBSTITUTE(SUBSTITUTE(SUBSTITUTE(SUBSTITUTE(SUBSTITUTE(SUBSTITUTE(SUBSTITUTE(SUBSTITUTE(SUBSTITUTE(SUBSTITUTE(SUBSTITUTE(Q100,$ED100,$ED$2&ROW($ED100)),$EC100,$EC$2&ROW($EC100)),$EB100,$EB$2&ROW($EB100)),$EA100,$EA$2&ROW($EA100)),$DZ100,$DZ$2&ROW($DZ100)),$DY100,$DY$2&ROW($DY100)),$DX100,$DX$2&ROW($DX100)),$DW100,$DW$2&ROW($DW100)),$DV100,$DV$2&ROW($DV100)),$DU100,$DU$2&ROW($DU100)),$DT100,$DT$2&ROW($DT100)),$DS100,$DS$2&ROW($DS100)))","v":0},{"$f":"IF(R100=\"\",0,\"X=\"&SUBSTITUTE(SUBSTITUTE(SUBSTITUTE(SUBSTITUTE(SUBSTITUTE(SUBSTITUTE(SUBSTITUTE(SUBSTITUTE(SUBSTITUTE(SUBSTITUTE(SUBSTITUTE(SUBSTITUTE(R100,$ED100,$ED$2&ROW($ED100)),$EC100,$EC$2&ROW($EC100)),$EB100,$EB$2&ROW($EB100)),$EA100,$EA$2&ROW($EA100)),$DZ100,$DZ$2&ROW($DZ100)),$DY100,$DY$2&ROW($DY100)),$DX100,$DX$2&ROW($DX100)),$DW100,$DW$2&ROW($DW100)),$DV100,$DV$2&ROW($DV100)),$DU100,$DU$2&ROW($DU100)),$DT100,$DT$2&ROW($DT100)),$DS100,$DS$2&ROW($DS100)))","v":0},{"$f":"IF(S100=\"\",0,\"X=\"&SUBSTITUTE(SUBSTITUTE(SUBSTITUTE(SUBSTITUTE(SUBSTITUTE(SUBSTITUTE(SUBSTITUTE(SUBSTITUTE(SUBSTITUTE(SUBSTITUTE(SUBSTITUTE(SUBSTITUTE(S100,$ED100,$ED$2&ROW($ED100)),$EC100,$EC$2&ROW($EC100)),$EB100,$EB$2&ROW($EB100)),$EA100,$EA$2&ROW($EA100)),$DZ100,$DZ$2&ROW($DZ100)),$DY100,$DY$2&ROW($DY100)),$DX100,$DX$2&ROW($DX100)),$DW100,$DW$2&ROW($DW100)),$DV100,$DV$2&ROW($DV100)),$DU100,$DU$2&ROW($DU100)),$DT100,$DT$2&ROW($DT100)),$DS100,$DS$2&ROW($DS100)))","v":0},{"$f":"IF(T100=\"\",0,\"X=\"&SUBSTITUTE(SUBSTITUTE(SUBSTITUTE(SUBSTITUTE(SUBSTITUTE(SUBSTITUTE(SUBSTITUTE(SUBSTITUTE(SUBSTITUTE(SUBSTITUTE(SUBSTITUTE(SUBSTITUTE(T100,$ED100,$ED$2&ROW($ED100)),$EC100,$EC$2&ROW($EC100)),$EB100,$EB$2&ROW($EB100)),$EA100,$EA$2&ROW($EA100)),$DZ100,$DZ$2&ROW($DZ100)),$DY100,$DY$2&ROW($DY100)),$DX100,$DX$2&ROW($DX100)),$DW100,$DW$2&ROW($DW100)),$DV100,$DV$2&ROW($DV100)),$DU100,$DU$2&ROW($DU100)),$DT100,$DT$2&ROW($DT100)),$DS100,$DS$2&ROW($DS100)))","v":0},{"$f":"IF(U100=\"\",0,\"X=\"&SUBSTITUTE(SUBSTITUTE(SUBSTITUTE(SUBSTITUTE(SUBSTITUTE(SUBSTITUTE(SUBSTITUTE(SUBSTITUTE(SUBSTITUTE(SUBSTITUTE(SUBSTITUTE(SUBSTITUTE(U100,$ED100,$ED$2&ROW($ED100)),$EC100,$EC$2&ROW($EC100)),$EB100,$EB$2&ROW($EB100)),$EA100,$EA$2&ROW($EA100)),$DZ100,$DZ$2&ROW($DZ100)),$DY100,$DY$2&ROW($DY100)),$DX100,$DX$2&ROW($DX100)),$DW100,$DW$2&ROW($DW100)),$DV100,$DV$2&ROW($DV100)),$DU100,$DU$2&ROW($DU100)),$DT100,$DT$2&ROW($DT100)),$DS100,$DS$2&ROW($DS100)))","v":0},{"$f":"IF(V100=\"\",0,\"X=\"&SUBSTITUTE(SUBSTITUTE(SUBSTITUTE(SUBSTITUTE(SUBSTITUTE(SUBSTITUTE(SUBSTITUTE(SUBSTITUTE(SUBSTITUTE(SUBSTITUTE(SUBSTITUTE(SUBSTITUTE(V100,$ED100,$ED$2&ROW($ED100)),$EC100,$EC$2&ROW($EC100)),$EB100,$EB$2&ROW($EB100)),$EA100,$EA$2&ROW($EA100)),$DZ100,$DZ$2&ROW($DZ100)),$DY100,$DY$2&ROW($DY100)),$DX100,$DX$2&ROW($DX100)),$DW100,$DW$2&ROW($DW100)),$DV100,$DV$2&ROW($DV100)),$DU100,$DU$2&ROW($DU100)),$DT100,$DT$2&ROW($DT100)),$DS100,$DS$2&ROW($DS100)))","v":0},{"$f":"IF(W100=\"\",0,\"X=\"&SUBSTITUTE(SUBSTITUTE(SUBSTITUTE(SUBSTITUTE(SUBSTITUTE(SUBSTITUTE(SUBSTITUTE(SUBSTITUTE(SUBSTITUTE(SUBSTITUTE(SUBSTITUTE(SUBSTITUTE(W100,$ED100,$ED$2&ROW($ED100)),$EC100,$EC$2&ROW($EC100)),$EB100,$EB$2&ROW($EB100)),$EA100,$EA$2&ROW($EA100)),$DZ100,$DZ$2&ROW($DZ100)),$DY100,$DY$2&ROW($DY100)),$DX100,$DX$2&ROW($DX100)),$DW100,$DW$2&ROW($DW100)),$DV100,$DV$2&ROW($DV100)),$DU100,$DU$2&ROW($DU100)),$DT100,$DT$2&ROW($DT100)),$DS100,$DS$2&ROW($DS100)))","v":0},{"$f":"IF(X100=\"\",0,\"X=\"&SUBSTITUTE(SUBSTITUTE(SUBSTITUTE(SUBSTITUTE(SUBSTITUTE(SUBSTITUTE(SUBSTITUTE(SUBSTITUTE(SUBSTITUTE(SUBSTITUTE(SUBSTITUTE(SUBSTITUTE(X100,$ED100,$ED$2&ROW($ED100)),$EC100,$EC$2&ROW($EC100)),$EB100,$EB$2&ROW($EB100)),$EA100,$EA$2&ROW($EA100)),$DZ100,$DZ$2&ROW($DZ100)),$DY100,$DY$2&ROW($DY100)),$DX100,$DX$2&ROW($DX100)),$DW100,$DW$2&ROW($DW100)),$DV100,$DV$2&ROW($DV100)),$DU100,$DU$2&ROW($DU100)),$DT100,$DT$2&ROW($DT100)),$DS100,$DS$2&ROW($DS100)))","v":0},{"$f":"IF(Y100=\"\",0,\"X=\"&SUBSTITUTE(SUBSTITUTE(SUBSTITUTE(SUBSTITUTE(SUBSTITUTE(SUBSTITUTE(SUBSTITUTE(SUBSTITUTE(SUBSTITUTE(SUBSTITUTE(SUBSTITUTE(SUBSTITUTE(Y100,$ED100,$ED$2&ROW($ED100)),$EC100,$EC$2&ROW($EC100)),$EB100,$EB$2&ROW($EB100)),$EA100,$EA$2&ROW($EA100)),$DZ100,$DZ$2&ROW($DZ100)),$DY100,$DY$2&ROW($DY100)),$DX100,$DX$2&ROW($DX100)),$DW100,$DW$2&ROW($DW100)),$DV100,$DV$2&ROW($DV100)),$DU100,$DU$2&ROW($DU100)),$DT100,$DT$2&ROW($DT100)),$DS100,$DS$2&ROW($DS100)))","v":"X=if(AU100=0,AS100*((AY100/(BA100-BC100)*186648/1000000)*(100/81-100/BE100)),0)"},{"$f":"IF(Z100=\"\",0,\"X=\"&SUBSTITUTE(SUBSTITUTE(SUBSTITUTE(SUBSTITUTE(SUBSTITUTE(SUBSTITUTE(SUBSTITUTE(SUBSTITUTE(SUBSTITUTE(SUBSTITUTE(SUBSTITUTE(SUBSTITUTE(Z100,$ED100,$ED$2&ROW($ED100)),$EC100,$EC$2&ROW($EC100)),$EB100,$EB$2&ROW($EB100)),$EA100,$EA$2&ROW($EA100)),$DZ100,$DZ$2&ROW($DZ100)),$DY100,$DY$2&ROW($DY100)),$DX100,$DX$2&ROW($DX100)),$DW100,$DW$2&ROW($DW100)),$DV100,$DV$2&ROW($DV100)),$DU100,$DU$2&ROW($DU100)),$DT100,$DT$2&ROW($DT100)),$DS100,$DS$2&ROW($DS100)))","v":0},{"$f":"IF(AA100=\"\",0,\"X=\"&SUBSTITUTE(SUBSTITUTE(SUBSTITUTE(SUBSTITUTE(SUBSTITUTE(SUBSTITUTE(SUBSTITUTE(SUBSTITUTE(SUBSTITUTE(SUBSTITUTE(SUBSTITUTE(SUBSTITUTE(AA100,$ED100,$ED$2&ROW($ED100)),$EC100,$EC$2&ROW($EC100)),$EB100,$EB$2&ROW($EB100)),$EA100,$EA$2&ROW($EA100)),$DZ100,$DZ$2&ROW($DZ100)),$DY100,$DY$2&ROW($DY100)),$DX100,$DX$2&ROW($DX100)),$DW100,$DW$2&ROW($DW100)),$DV100,$DV$2&ROW($DV100)),$DU100,$DU$2&ROW($DU100)),$DT100,$DT$2&ROW($DT100)),$DS100,$DS$2&ROW($DS100)))","v":0},{"$f":"IF(AB100=\"\",0,\"X=\"&SUBSTITUTE(SUBSTITUTE(SUBSTITUTE(SUBSTITUTE(SUBSTITUTE(SUBSTITUTE(SUBSTITUTE(SUBSTITUTE(SUBSTITUTE(SUBSTITUTE(SUBSTITUTE(SUBSTITUTE(AB100,$ED100,$ED$2&ROW($ED100)),$EC100,$EC$2&ROW($EC100)),$EB100,$EB$2&ROW($EB100)),$EA100,$EA$2&ROW($EA100)),$DZ100,$DZ$2&ROW($DZ100)),$DY100,$DY$2&ROW($DY100)),$DX100,$DX$2&ROW($DX100)),$DW100,$DW$2&ROW($DW100)),$DV100,$DV$2&ROW($DV100)),$DU100,$DU$2&ROW($DU100)),$DT100,$DT$2&ROW($DT100)),$DS100,$DS$2&ROW($DS100)))","v":0},null,null,"{Factor:WinterCF}","{Factor:SummerCF}",{"$f":"IFERROR(INDEX($EG100:$IV100,MATCH(0,COUNTIF($DR100:DT100,$EG100:$IV100),0)),\"\")","v":"{Measure:Quantity}"},{"$f":"IFERROR(INDEX($EG100:$IV100,MATCH(0,COUNTIF($DR100:DU100,$EG100:$IV100),0)),\"\")","v":"{Fuel}"},{"$f":"IFERROR(INDEX($EG100:$IV100,MATCH(0,COUNTIF($DR100:DV100,$EG100:$IV100),0)),\"\")","v":"{Equipment Capacity (MBtu/h)}"},{"$f":"IFERROR(INDEX($EG100:$IV100,MATCH(0,COUNTIF($DR100:DW100,$EG100:$IV100),0)),\"\")","v":"{Design Load (Btu/h)}"},{"$f":"IFERROR(INDEX($EG100:$IV100,MATCH(0,COUNTIF($DR100:DX100,$EG100:$IV100),0)),\"\")","v":"{Indoor Design Temp (oF)}"},{"$f":"IFERROR(INDEX($EG100:$IV100,MATCH(0,COUNTIF($DR100:DY100,$EG100:$IV100),0)),\"\")","v":"{Outdoor Design Temp (oF)}"},{"$f":"IFERROR(INDEX($EG100:$IV100,MATCH(0,COUNTIF($DR100:DZ100,$EG100:$IV100),0)),\"\")","v":"{Unit Efficiency - AFUE or Thermal Efficiency}"},{"$f":"IFERROR(INDEX($EG100:$IV100,MATCH(0,COUNTIF($DR100:EA100,$EG100:$IV100),0)),\"\")","v":""},{"$f":"IFERROR(INDEX($EG100:$IV100,MATCH(0,COUNTIF($DR100:EB100,$EG100:$IV100),0)),\"\")","v":""},{"$f":"IFERROR(INDEX($EG100:$IV100,MATCH(0,COUNTIF($DR100:EC100,$EG100:$IV100),0)),\"\")","v":""},null,null,{"$f":"IFERROR(MID($G100,FIND(CHAR(160),SUBSTITUTE($G100,\"{\",CHAR(160),EG$1)),FIND(CHAR(160),SUBSTITUTE($G100,\"}\",CHAR(160),EG$1))-FIND(CHAR(160),SUBSTITUTE($G100,\"{\",CHAR(160),EG$1))+1),\"\")","v":"{Measure:Quantity}"},{"$f":"IFERROR(MID($G100,FIND(CHAR(160),SUBSTITUTE($G100,\"{\",CHAR(160),EH$1)),FIND(CHAR(160),SUBSTITUTE($G100,\"}\",CHAR(160),EH$1))-FIND(CHAR(160),SUBSTITUTE($G100,\"{\",CHAR(160),EH$1))+1),\"\")","v":"{Fuel}"},{"$f":"IFERROR(MID($G100,FIND(CHAR(160),SUBSTITUTE($G100,\"{\",CHAR(160),EI$1)),FIND(CHAR(160),SUBSTITUTE($G100,\"}\",CHAR(160),EI$1))-FIND(CHAR(160),SUBSTITUTE($G100,\"{\",CHAR(160),EI$1))+1),\"\")","v":"{Equipment Capacity (MBtu/h)}"},{"$f":"IFERROR(MID($G100,FIND(CHAR(160),SUBSTITUTE($G100,\"{\",CHAR(160),EJ$1)),FIND(CHAR(160),SUBSTITUTE($G100,\"}\",CHAR(160),EJ$1))-FIND(CHAR(160),SUBSTITUTE($G100,\"{\",CHAR(160),EJ$1))+1),\"\")","v":"{Equipment Capacity (MBtu/h)}"},{"$f":"IFERROR(MID($G100,FIND(CHAR(160),SUBSTITUTE($G100,\"{\",CHAR(160),EK$1)),FIND(CHAR(160),SUBSTITUTE($G100,\"}\",CHAR(160),EK$1))-FIND(CHAR(160),SUBSTITUTE($G100,\"{\",CHAR(160),EK$1))+1),\"\")","v":"{Equipment Capacity (MBtu/h)}"},{"$f":"IFERROR(MID($G100,FIND(CHAR(160),SUBSTITUTE($G100,\"{\",CHAR(160),EL$1)),FIND(CHAR(160),SUBSTITUTE($G100,\"}\",CHAR(160),EL$1))-FIND(CHAR(160),SUBSTITUTE($G100,\"{\",CHAR(160),EL$1))+1),\"\")","v":""},{"$f":"IFERROR(MID($G100,FIND(CHAR(160),SUBSTITUTE($G100,\"{\",CHAR(160),EM$1)),FIND(CHAR(160),SUBSTITUTE($G100,\"}\",CHAR(160),EM$1))-FIND(CHAR(160),SUBSTITUTE($G100,\"{\",CHAR(160),EM$1))+1),\"\")","v":""},{"$f":"IFERROR(MID($G100,FIND(CHAR(160),SUBSTITUTE($G100,\"{\",CHAR(160),EN$1)),FIND(CHAR(160),SUBSTITUTE($G100,\"}\",CHAR(160),EN$1))-FIND(CHAR(160),SUBSTITUTE($G100,\"{\",CHAR(160),EN$1))+1),\"\")","v":""},{"$f":"IFERROR(MID($G100,FIND(CHAR(160),SUBSTITUTE($G100,\"{\",CHAR(160),EO$1)),FIND(CHAR(160),SUBSTITUTE($G100,\"}\",CHAR(160),EO$1))-FIND(CHAR(160),SUBSTITUTE($G100,\"{\",CHAR(160),EO$1))+1),\"\")","v":""},{"$f":"IFERROR(MID($G100,FIND(CHAR(160),SUBSTITUTE($G100,\"{\",CHAR(160),EP$1)),FIND(CHAR(160),SUBSTITUTE($G100,\"}\",CHAR(160),EP$1))-FIND(CHAR(160),SUBSTITUTE($G100,\"{\",CHAR(160),EP$1))+1),\"\")","v":""},{"$f":"IFERROR(MID($J100,FIND(CHAR(160),SUBSTITUTE($J100,\"{\",CHAR(160),EQ$1)),FIND(CHAR(160),SUBSTITUTE($J100,\"}\",CHAR(160),EQ$1))-FIND(CHAR(160),SUBSTITUTE($J100,\"{\",CHAR(160),EQ$1))+1),\"\")","v":"{Measure:Quantity}"},{"$f":"IFERROR(MID($J100,FIND(CHAR(160),SUBSTITUTE($J100,\"{\",CHAR(160),ER$1)),FIND(CHAR(160),SUBSTITUTE($J100,\"}\",CHAR(160),ER$1))-FIND(CHAR(160),SUBSTITUTE($J100,\"{\",CHAR(160),ER$1))+1),\"\")","v":"{Fuel}"},{"$f":"IFERROR(MID($J100,FIND(CHAR(160),SUBSTITUTE($J100,\"{\",CHAR(160),ES$1)),FIND(CHAR(160),SUBSTITUTE($J100,\"}\",CHAR(160),ES$1))-FIND(CHAR(160),SUBSTITUTE($J100,\"{\",CHAR(160),ES$1))+1),\"\")","v":"{Equipment Capacity (MBtu/h)}"},{"$f":"IFERROR(MID($J100,FIND(CHAR(160),SUBSTITUTE($J100,\"{\",CHAR(160),ET$1)),FIND(CHAR(160),SUBSTITUTE($J100,\"}\",CHAR(160),ET$1))-FIND(CHAR(160),SUBSTITUTE($J100,\"{\",CHAR(160),ET$1))+1),\"\")","v":"{Equipment Capacity (MBtu/h)}"},{"$f":"IFERROR(MID($J100,FIND(CHAR(160),SUBSTITUTE($J100,\"{\",CHAR(160),EU$1)),FIND(CHAR(160),SUBSTITUTE($J100,\"}\",CHAR(160),EU$1))-FIND(CHAR(160),SUBSTITUTE($J100,\"{\",CHAR(160),EU$1))+1),\"\")","v":"{Equipment Capacity (MBtu/h)}"},{"$f":"IFERROR(MID($J100,FIND(CHAR(160),SUBSTITUTE($J100,\"{\",CHAR(160),EV$1)),FIND(CHAR(160),SUBSTITUTE($J100,\"}\",CHAR(160),EV$1))-FIND(CHAR(160),SUBSTITUTE($J100,\"{\",CHAR(160),EV$1))+1),\"\")","v":""},{"$f":"IFERROR(MID($J100,FIND(CHAR(160),SUBSTITUTE($J100,\"{\",CHAR(160),EW$1)),FIND(CHAR(160),SUBSTITUTE($J100,\"}\",CHAR(160),EW$1))-FIND(CHAR(160),SUBSTITUTE($J100,\"{\",CHAR(160),EW$1))+1),\"\")","v":""},{"$f":"IFERROR(MID($J100,FIND(CHAR(160),SUBSTITUTE($J100,\"{\",CHAR(160),EX$1)),FIND(CHAR(160),SUBSTITUTE($J100,\"}\",CHAR(160),EX$1))-FIND(CHAR(160),SUBSTITUTE($J100,\"{\",CHAR(160),EX$1))+1),\"\")","v":""},{"$f":"IFERROR(MID($J100,FIND(CHAR(160),SUBSTITUTE($J100,\"{\",CHAR(160),EY$1)),FIND(CHAR(160),SUBSTITUTE($J100,\"}\",CHAR(160),EY$1))-FIND(CHAR(160),SUBSTITUTE($J100,\"{\",CHAR(160),EY$1))+1),\"\")","v":""},{"$f":"IFERROR(MID($J100,FIND(CHAR(160),SUBSTITUTE($J100,\"{\",CHAR(160),EZ$1)),FIND(CHAR(160),SUBSTITUTE($J100,\"}\",CHAR(160),EZ$1))-FIND(CHAR(160),SUBSTITUTE($J100,\"{\",CHAR(160),EZ$1))+1),\"\")","v":""},{"$f":"IFERROR(MID($J100,FIND(CHAR(160),SUBSTITUTE($J100,\"{\",CHAR(160),FA$1)),FIND(CHAR(160),SUBSTITUTE($J100,\"}\",CHAR(160),FA$1))-FIND(CHAR(160),SUBSTITUTE($J100,\"{\",CHAR(160),FA$1))+1),\"\")","v":"{Measure:Quantity}"},{"$f":"IFERROR(MID($J100,FIND(CHAR(160),SUBSTITUTE($J100,\"{\",CHAR(160),FB$1)),FIND(CHAR(160),SUBSTITUTE($J100,\"}\",CHAR(160),FB$1))-FIND(CHAR(160),SUBSTITUTE($J100,\"{\",CHAR(160),FB$1))+1),\"\")","v":"{Fuel}"},{"$f":"IFERROR(MID($O100,FIND(CHAR(160),SUBSTITUTE($O100,\"{\",CHAR(160),FC$1)),FIND(CHAR(160),SUBSTITUTE($O100,\"}\",CHAR(160),FC$1))-FIND(CHAR(160),SUBSTITUTE($O100,\"{\",CHAR(160),FC$1))+1),\"\")","v":""},{"$f":"IFERROR(MID($O100,FIND(CHAR(160),SUBSTITUTE($O100,\"{\",CHAR(160),FD$1)),FIND(CHAR(160),SUBSTITUTE($O100,\"}\",CHAR(160),FD$1))-FIND(CHAR(160),SUBSTITUTE($O100,\"{\",CHAR(160),FD$1))+1),\"\")","v":""},{"$f":"IFERROR(MID($O100,FIND(CHAR(160),SUBSTITUTE($O100,\"{\",CHAR(160),FE$1)),FIND(CHAR(160),SUBSTITUTE($O100,\"}\",CHAR(160),FE$1))-FIND(CHAR(160),SUBSTITUTE($O100,\"{\",CHAR(160),FE$1))+1),\"\")","v":""},{"$f":"IFERROR(MID($O100,FIND(CHAR(160),SUBSTITUTE($O100,\"{\",CHAR(160),FF$1)),FIND(CHAR(160),SUBSTITUTE($O100,\"}\",CHAR(160),FF$1))-FIND(CHAR(160),SUBSTITUTE($O100,\"{\",CHAR(160),FF$1))+1),\"\")","v":""},{"$f":"IFERROR(MID($O100,FIND(CHAR(160),SUBSTITUTE($O100,\"{\",CHAR(160),FG$1)),FIND(CHAR(160),SUBSTITUTE($O100,\"}\",CHAR(160),FG$1))-FIND(CHAR(160),SUBSTITUTE($O100,\"{\",CHAR(160),FG$1))+1),\"\")","v":""},{"$f":"IFERROR(MID($O100,FIND(CHAR(160),SUBSTITUTE($O100,\"{\",CHAR(160),FH$1)),FIND(CHAR(160),SUBSTITUTE($O100,\"}\",CHAR(160),FH$1))-FIND(CHAR(160),SUBSTITUTE($O100,\"{\",CHAR(160),FH$1))+1),\"\")","v":""},{"$f":"IFERROR(MID($O100,FIND(CHAR(160),SUBSTITUTE($O100,\"{\",CHAR(160),FI$1)),FIND(CHAR(160),SUBSTITUTE($O100,\"}\",CHAR(160),FI$1))-FIND(CHAR(160),SUBSTITUTE($O100,\"{\",CHAR(160),FI$1))+1),\"\")","v":""},{"$f":"IFERROR(MID($O100,FIND(CHAR(160),SUBSTITUTE($O100,\"{\",CHAR(160),FJ$1)),FIND(CHAR(160),SUBSTITUTE($O100,\"}\",CHAR(160),FJ$1))-FIND(CHAR(160),SUBSTITUTE($O100,\"{\",CHAR(160),FJ$1))+1),\"\")","v":""},{"$f":"IFERROR(MID($O100,FIND(CHAR(160),SUBSTITUTE($O100,\"{\",CHAR(160),FK$1)),FIND(CHAR(160),SUBSTITUTE($O100,\"}\",CHAR(160),FK$1))-FIND(CHAR(160),SUBSTITUTE($O100,\"{\",CHAR(160),FK$1))+1),\"\")","v":""},{"$f":"IFERROR(MID($O100,FIND(CHAR(160),SUBSTITUTE($O100,\"{\",CHAR(160),FL$1)),FIND(CHAR(160),SUBSTITUTE($O100,\"}\",CHAR(160),FL$1))-FIND(CHAR(160),SUBSTITUTE($O100,\"{\",CHAR(160),FL$1))+1),\"\")","v":""},{"$f":"IFERROR(MID($R100,FIND(CHAR(160),SUBSTITUTE($R100,\"{\",CHAR(160),FM$1)),FIND(CHAR(160),SUBSTITUTE($R100,\"}\",CHAR(160),FM$1))-FIND(CHAR(160),SUBSTITUTE($R100,\"{\",CHAR(160),FM$1))+1),\"\")","v":""},{"$f":"IFERROR(MID($R100,FIND(CHAR(160),SUBSTITUTE($R100,\"{\",CHAR(160),FN$1)),FIND(CHAR(160),SUBSTITUTE($R100,\"}\",CHAR(160),FN$1))-FIND(CHAR(160),SUBSTITUTE($R100,\"{\",CHAR(160),FN$1))+1),\"\")","v":""},{"$f":"IFERROR(MID($R100,FIND(CHAR(160),SUBSTITUTE($R100,\"{\",CHAR(160),FO$1)),FIND(CHAR(160),SUBSTITUTE($R100,\"}\",CHAR(160),FO$1))-FIND(CHAR(160),SUBSTITUTE($R100,\"{\",CHAR(160),FO$1))+1),\"\")","v":""},{"$f":"IFERROR(MID($R100,FIND(CHAR(160),SUBSTITUTE($R100,\"{\",CHAR(160),FP$1)),FIND(CHAR(160),SUBSTITUTE($R100,\"}\",CHAR(160),FP$1))-FIND(CHAR(160),SUBSTITUTE($R100,\"{\",CHAR(160),FP$1))+1),\"\")","v":""},{"$f":"IFERROR(MID($R100,FIND(CHAR(160),SUBSTITUTE($R100,\"{\",CHAR(160),FQ$1)),FIND(CHAR(160),SUBSTITUTE($R100,\"}\",CHAR(160),FQ$1))-FIND(CHAR(160),SUBSTITUTE($R100,\"{\",CHAR(160),FQ$1))+1),\"\")","v":""},{"$f":"IFERROR(MID($R100,FIND(CHAR(160),SUBSTITUTE($R100,\"{\",CHAR(160),FR$1)),FIND(CHAR(160),SUBSTITUTE($R100,\"}\",CHAR(160),FR$1))-FIND(CHAR(160),SUBSTITUTE($R100,\"{\",CHAR(160),FR$1))+1),\"\")","v":""},{"$f":"IFERROR(MID($R100,FIND(CHAR(160),SUBSTITUTE($R100,\"{\",CHAR(160),FS$1)),FIND(CHAR(160),SUBSTITUTE($R100,\"}\",CHAR(160),FS$1))-FIND(CHAR(160),SUBSTITUTE($R100,\"{\",CHAR(160),FS$1))+1),\"\")","v":""},{"$f":"IFERROR(MID($R100,FIND(CHAR(160),SUBSTITUTE($R100,\"{\",CHAR(160),FT$1)),FIND(CHAR(160),SUBSTITUTE($R100,\"}\",CHAR(160),FT$1))-FIND(CHAR(160),SUBSTITUTE($R100,\"{\",CHAR(160),FT$1))+1),\"\")","v":""},{"$f":"IFERROR(MID($R100,FIND(CHAR(160),SUBSTITUTE($R100,\"{\",CHAR(160),FU$1)),FIND(CHAR(160),SUBSTITUTE($R100,\"}\",CHAR(160),FU$1))-FIND(CHAR(160),SUBSTITUTE($R100,\"{\",CHAR(160),FU$1))+1),\"\")","v":""},{"$f":"IFERROR(MID($R100,FIND(CHAR(160),SUBSTITUTE($R100,\"{\",CHAR(160),FV$1)),FIND(CHAR(160),SUBSTITUTE($R100,\"}\",CHAR(160),FV$1))-FIND(CHAR(160),SUBSTITUTE($R100,\"{\",CHAR(160),FV$1))+1),\"\")","v":""},{"$f":"IFERROR(MID($U100,FIND(CHAR(160),SUBSTITUTE($U100,\"{\",CHAR(160),FW$1)),FIND(CHAR(160),SUBSTITUTE($U100,\"}\",CHAR(160),FW$1))-FIND(CHAR(160),SUBSTITUTE($U100,\"{\",CHAR(160),FW$1))+1),\"\")","v":""},{"$f":"IFERROR(MID($U100,FIND(CHAR(160),SUBSTITUTE($U100,\"{\",CHAR(160),FX$1)),FIND(CHAR(160),SUBSTITUTE($U100,\"}\",CHAR(160),FX$1))-FIND(CHAR(160),SUBSTITUTE($U100,\"{\",CHAR(160),FX$1))+1),\"\")","v":""},{"$f":"IFERROR(MID($U100,FIND(CHAR(160),SUBSTITUTE($U100,\"{\",CHAR(160),FY$1)),FIND(CHAR(160),SUBSTITUTE($U100,\"}\",CHAR(160),FY$1))-FIND(CHAR(160),SUBSTITUTE($U100,\"{\",CHAR(160),FY$1))+1),\"\")","v":""},{"$f":"IFERROR(MID($U100,FIND(CHAR(160),SUBSTITUTE($U100,\"{\",CHAR(160),FZ$1)),FIND(CHAR(160),SUBSTITUTE($U100,\"}\",CHAR(160),FZ$1))-FIND(CHAR(160),SUBSTITUTE($U100,\"{\",CHAR(160),FZ$1))+1),\"\")","v":""},{"$f":"IFERROR(MID($U100,FIND(CHAR(160),SUBSTITUTE($U100,\"{\",CHAR(160),GA$1)),FIND(CHAR(160),SUBSTITUTE($U100,\"}\",CHAR(160),GA$1))-FIND(CHAR(160),SUBSTITUTE($U100,\"{\",CHAR(160),GA$1))+1),\"\")","v":""},{"$f":"IFERROR(MID($U100,FIND(CHAR(160),SUBSTITUTE($U100,\"{\",CHAR(160),GB$1)),FIND(CHAR(160),SUBSTITUTE($U100,\"}\",CHAR(160),GB$1))-FIND(CHAR(160),SUBSTITUTE($U100,\"{\",CHAR(160),GB$1))+1),\"\")","v":""},{"$f":"IFERROR(MID($U100,FIND(CHAR(160),SUBSTITUTE($U100,\"{\",CHAR(160),GC$1)),FIND(CHAR(160),SUBSTITUTE($U100,\"}\",CHAR(160),GC$1))-FIND(CHAR(160),SUBSTITUTE($U100,\"{\",CHAR(160),GC$1))+1),\"\")","v":""},{"$f":"IFERROR(MID($U100,FIND(CHAR(160),SUBSTITUTE($U100,\"{\",CHAR(160),GD$1)),FIND(CHAR(160),SUBSTITUTE($U100,\"}\",CHAR(160),GD$1))-FIND(CHAR(160),SUBSTITUTE($U100,\"{\",CHAR(160),GD$1))+1),\"\")","v":""},{"$f":"IFERROR(MID($U100,FIND(CHAR(160),SUBSTITUTE($U100,\"{\",CHAR(160),GE$1)),FIND(CHAR(160),SUBSTITUTE($U100,\"}\",CHAR(160),GE$1))-FIND(CHAR(160),SUBSTITUTE($U100,\"{\",CHAR(160),GE$1))+1),\"\")","v":""},{"$f":"IFERROR(MID($U100,FIND(CHAR(160),SUBSTITUTE($U100,\"{\",CHAR(160),GF$1)),FIND(CHAR(160),SUBSTITUTE($U100,\"}\",CHAR(160),GF$1))-FIND(CHAR(160),SUBSTITUTE($U100,\"{\",CHAR(160),GF$1))+1),\"\")","v":""},{"$f":"IFERROR(MID($V100,FIND(CHAR(160),SUBSTITUTE($V100,\"{\",CHAR(160),GG$1)),FIND(CHAR(160),SUBSTITUTE($V100,\"}\",CHAR(160),GG$1))-FIND(CHAR(160),SUBSTITUTE($V100,\"{\",CHAR(160),GG$1))+1),\"\")","v":""},{"$f":"IFERROR(MID($V100,FIND(CHAR(160),SUBSTITUTE($V100,\"{\",CHAR(160),GH$1)),FIND(CHAR(160),SUBSTITUTE($V100,\"}\",CHAR(160),GH$1))-FIND(CHAR(160),SUBSTITUTE($V100,\"{\",CHAR(160),GH$1))+1),\"\")","v":""},{"$f":"IFERROR(MID($V100,FIND(CHAR(160),SUBSTITUTE($V100,\"{\",CHAR(160),GI$1)),FIND(CHAR(160),SUBSTITUTE($V100,\"}\",CHAR(160),GI$1))-FIND(CHAR(160),SUBSTITUTE($V100,\"{\",CHAR(160),GI$1))+1),\"\")","v":""},{"$f":"IFERROR(MID($V100,FIND(CHAR(160),SUBSTITUTE($V100,\"{\",CHAR(160),GJ$1)),FIND(CHAR(160),SUBSTITUTE($V100,\"}\",CHAR(160),GJ$1))-FIND(CHAR(160),SUBSTITUTE($V100,\"{\",CHAR(160),GJ$1))+1),\"\")","v":""},{"$f":"IFERROR(MID($V100,FIND(CHAR(160),SUBSTITUTE($V100,\"{\",CHAR(160),GK$1)),FIND(CHAR(160),SUBSTITUTE($V100,\"}\",CHAR(160),GK$1))-FIND(CHAR(160),SUBSTITUTE($V100,\"{\",CHAR(160),GK$1))+1),\"\")","v":""},{"$f":"IFERROR(MID($V100,FIND(CHAR(160),SUBSTITUTE($V100,\"{\",CHAR(160),GL$1)),FIND(CHAR(160),SUBSTITUTE($V100,\"}\",CHAR(160),GL$1))-FIND(CHAR(160),SUBSTITUTE($V100,\"{\",CHAR(160),GL$1))+1),\"\")","v":""},{"$f":"IFERROR(MID($V100,FIND(CHAR(160),SUBSTITUTE($V100,\"{\",CHAR(160),GM$1)),FIND(CHAR(160),SUBSTITUTE($V100,\"}\",CHAR(160),GM$1))-FIND(CHAR(160),SUBSTITUTE($V100,\"{\",CHAR(160),GM$1))+1),\"\")","v":""},{"$f":"IFERROR(MID($V100,FIND(CHAR(160),SUBSTITUTE($V100,\"{\",CHAR(160),GN$1)),FIND(CHAR(160),SUBSTITUTE($V100,\"}\",CHAR(160),GN$1))-FIND(CHAR(160),SUBSTITUTE($V100,\"{\",CHAR(160),GN$1))+1),\"\")","v":""},{"$f":"IFERROR(MID($V100,FIND(CHAR(160),SUBSTITUTE($V100,\"{\",CHAR(160),GO$1)),FIND(CHAR(160),SUBSTITUTE($V100,\"}\",CHAR(160),GO$1))-FIND(CHAR(160),SUBSTITUTE($V100,\"{\",CHAR(160),GO$1))+1),\"\")","v":""},{"$f":"IFERROR(MID($V100,FIND(CHAR(160),SUBSTITUTE($V100,\"{\",CHAR(160),GP$1)),FIND(CHAR(160),SUBSTITUTE($V100,\"}\",CHAR(160),GP$1))-FIND(CHAR(160),SUBSTITUTE($V100,\"{\",CHAR(160),GP$1))+1),\"\")","v":""},{"$f":"IFERROR(MID($W100,FIND(CHAR(160),SUBSTITUTE($W100,\"{\",CHAR(160),GQ$1)),FIND(CHAR(160),SUBSTITUTE($W100,\"}\",CHAR(160),GQ$1))-FIND(CHAR(160),SUBSTITUTE($W100,\"{\",CHAR(160),GQ$1))+1),\"\")","v":""},{"$f":"IFERROR(MID($W100,FIND(CHAR(160),SUBSTITUTE($W100,\"{\",CHAR(160),GR$1)),FIND(CHAR(160),SUBSTITUTE($W100,\"}\",CHAR(160),GR$1))-FIND(CHAR(160),SUBSTITUTE($W100,\"{\",CHAR(160),GR$1))+1),\"\")","v":""},{"$f":"IFERROR(MID($W100,FIND(CHAR(160),SUBSTITUTE($W100,\"{\",CHAR(160),GS$1)),FIND(CHAR(160),SUBSTITUTE($W100,\"}\",CHAR(160),GS$1))-FIND(CHAR(160),SUBSTITUTE($W100,\"{\",CHAR(160),GS$1))+1),\"\")","v":""},{"$f":"IFERROR(MID($W100,FIND(CHAR(160),SUBSTITUTE($W100,\"{\",CHAR(160),GT$1)),FIND(CHAR(160),SUBSTITUTE($W100,\"}\",CHAR(160),GT$1))-FIND(CHAR(160),SUBSTITUTE($W100,\"{\",CHAR(160),GT$1))+1),\"\")","v":""},{"$f":"IFERROR(MID($W100,FIND(CHAR(160),SUBSTITUTE($W100,\"{\",CHAR(160),GU$1)),FIND(CHAR(160),SUBSTITUTE($W100,\"}\",CHAR(160),GU$1))-FIND(CHAR(160),SUBSTITUTE($W100,\"{\",CHAR(160),GU$1))+1),\"\")","v":""},{"$f":"IFERROR(MID($W100,FIND(CHAR(160),SUBSTITUTE($W100,\"{\",CHAR(160),GV$1)),FIND(CHAR(160),SUBSTITUTE($W100,\"}\",CHAR(160),GV$1))-FIND(CHAR(160),SUBSTITUTE($W100,\"{\",CHAR(160),GV$1))+1),\"\")","v":""},{"$f":"IFERROR(MID($W100,FIND(CHAR(160),SUBSTITUTE($W100,\"{\",CHAR(160),GW$1)),FIND(CHAR(160),SUBSTITUTE($W100,\"}\",CHAR(160),GW$1))-FIND(CHAR(160),SUBSTITUTE($W100,\"{\",CHAR(160),GW$1))+1),\"\")","v":""},{"$f":"IFERROR(MID($W100,FIND(CHAR(160),SUBSTITUTE($W100,\"{\",CHAR(160),GX$1)),FIND(CHAR(160),SUBSTITUTE($W100,\"}\",CHAR(160),GX$1))-FIND(CHAR(160),SUBSTITUTE($W100,\"{\",CHAR(160),GX$1))+1),\"\")","v":""},{"$f":"IFERROR(MID($W100,FIND(CHAR(160),SUBSTITUTE($W100,\"{\",CHAR(160),GY$1)),FIND(CHAR(160),SUBSTITUTE($W100,\"}\",CHAR(160),GY$1))-FIND(CHAR(160),SUBSTITUTE($W100,\"{\",CHAR(160),GY$1))+1),\"\")","v":""},{"$f":"IFERROR(MID($W100,FIND(CHAR(160),SUBSTITUTE($W100,\"{\",CHAR(160),GZ$1)),FIND(CHAR(160),SUBSTITUTE($W100,\"}\",CHAR(160),GZ$1))-FIND(CHAR(160),SUBSTITUTE($W100,\"{\",CHAR(160),GZ$1))+1),\"\")","v":""},{"$f":"IFERROR(MID($X100,FIND(CHAR(160),SUBSTITUTE($X100,\"{\",CHAR(160),HA$1)),FIND(CHAR(160),SUBSTITUTE($X100,\"}\",CHAR(160),HA$1))-FIND(CHAR(160),SUBSTITUTE($X100,\"{\",CHAR(160),HA$1))+1),\"\")","v":""},{"$f":"IFERROR(MID($X100,FIND(CHAR(160),SUBSTITUTE($X100,\"{\",CHAR(160),HB$1)),FIND(CHAR(160),SUBSTITUTE($X100,\"}\",CHAR(160),HB$1))-FIND(CHAR(160),SUBSTITUTE($X100,\"{\",CHAR(160),HB$1))+1),\"\")","v":""},{"$f":"IFERROR(MID($X100,FIND(CHAR(160),SUBSTITUTE($X100,\"{\",CHAR(160),HC$1)),FIND(CHAR(160),SUBSTITUTE($X100,\"}\",CHAR(160),HC$1))-FIND(CHAR(160),SUBSTITUTE($X100,\"{\",CHAR(160),HC$1))+1),\"\")","v":""},{"$f":"IFERROR(MID($X100,FIND(CHAR(160),SUBSTITUTE($X100,\"{\",CHAR(160),HD$1)),FIND(CHAR(160),SUBSTITUTE($X100,\"}\",CHAR(160),HD$1))-FIND(CHAR(160),SUBSTITUTE($X100,\"{\",CHAR(160),HD$1))+1),\"\")","v":""},{"$f":"IFERROR(MID($X100,FIND(CHAR(160),SUBSTITUTE($X100,\"{\",CHAR(160),HE$1)),FIND(CHAR(160),SUBSTITUTE($X100,\"}\",CHAR(160),HE$1))-FIND(CHAR(160),SUBSTITUTE($X100,\"{\",CHAR(160),HE$1))+1),\"\")","v":""},{"$f":"IFERROR(MID($X100,FIND(CHAR(160),SUBSTITUTE($X100,\"{\",CHAR(160),HF$1)),FIND(CHAR(160),SUBSTITUTE($X100,\"}\",CHAR(160),HF$1))-FIND(CHAR(160),SUBSTITUTE($X100,\"{\",CHAR(160),HF$1))+1),\"\")","v":""},{"$f":"IFERROR(MID($X100,FIND(CHAR(160),SUBSTITUTE($X100,\"{\",CHAR(160),HG$1)),FIND(CHAR(160),SUBSTITUTE($X100,\"}\",CHAR(160),HG$1))-FIND(CHAR(160),SUBSTITUTE($X100,\"{\",CHAR(160),HG$1))+1),\"\")","v":""},{"$f":"IFERROR(MID($X100,FIND(CHAR(160),SUBSTITUTE($X100,\"{\",CHAR(160),HH$1)),FIND(CHAR(160),SUBSTITUTE($X100,\"}\",CHAR(160),HH$1))-FIND(CHAR(160),SUBSTITUTE($X100,\"{\",CHAR(160),HH$1))+1),\"\")","v":""},{"$f":"IFERROR(MID($X100,FIND(CHAR(160),SUBSTITUTE($X100,\"{\",CHAR(160),HI$1)),FIND(CHAR(160),SUBSTITUTE($X100,\"}\",CHAR(160),HI$1))-FIND(CHAR(160),SUBSTITUTE($X100,\"{\",CHAR(160),HI$1))+1),\"\")","v":""},{"$f":"IFERROR(MID($X100,FIND(CHAR(160),SUBSTITUTE($X100,\"{\",CHAR(160),HJ$1)),FIND(CHAR(160),SUBSTITUTE($X100,\"}\",CHAR(160),HJ$1))-FIND(CHAR(160),SUBSTITUTE($X100,\"{\",CHAR(160),HJ$1))+1),\"\")","v":""},{"$f":"IFERROR(MID($Y100,FIND(CHAR(160),SUBSTITUTE($Y100,\"{\",CHAR(160),HK$1)),FIND(CHAR(160),SUBSTITUTE($Y100,\"}\",CHAR(160),HK$1))-FIND(CHAR(160),SUBSTITUTE($Y100,\"{\",CHAR(160),HK$1))+1),\"\")","v":"{Design Load (Btu/h)}"},{"$f":"IFERROR(MID($Y100,FIND(CHAR(160),SUBSTITUTE($Y100,\"{\",CHAR(160),HL$1)),FIND(CHAR(160),SUBSTITUTE($Y100,\"}\",CHAR(160),HL$1))-FIND(CHAR(160),SUBSTITUTE($Y100,\"{\",CHAR(160),HL$1))+1),\"\")","v":"{Indoor Design Temp (oF)}"},{"$f":"IFERROR(MID($Y100,FIND(CHAR(160),SUBSTITUTE($Y100,\"{\",CHAR(160),HM$1)),FIND(CHAR(160),SUBSTITUTE($Y100,\"}\",CHAR(160),HM$1))-FIND(CHAR(160),SUBSTITUTE($Y100,\"{\",CHAR(160),HM$1))+1),\"\")","v":"{Outdoor Design Temp (oF)}"},{"$f":"IFERROR(MID($Y100,FIND(CHAR(160),SUBSTITUTE($Y100,\"{\",CHAR(160),HN$1)),FIND(CHAR(160),SUBSTITUTE($Y100,\"}\",CHAR(160),HN$1))-FIND(CHAR(160),SUBSTITUTE($Y100,\"{\",CHAR(160),HN$1))+1),\"\")","v":"{Unit Efficiency - AFUE or Thermal Efficiency}"},{"$f":"IFERROR(MID($Y100,FIND(CHAR(160),SUBSTITUTE($Y100,\"{\",CHAR(160),HO$1)),FIND(CHAR(160),SUBSTITUTE($Y100,\"}\",CHAR(160),HO$1))-FIND(CHAR(160),SUBSTITUTE($Y100,\"{\",CHAR(160),HO$1))+1),\"\")","v":""},{"$f":"IFERROR(MID($Y100,FIND(CHAR(160),SUBSTITUTE($Y100,\"{\",CHAR(160),HP$1)),FIND(CHAR(160),SUBSTITUTE($Y100,\"}\",CHAR(160),HP$1))-FIND(CHAR(160),SUBSTITUTE($Y100,\"{\",CHAR(160),HP$1))+1),\"\")","v":""},{"$f":"IFERROR(MID($Y100,FIND(CHAR(160),SUBSTITUTE($Y100,\"{\",CHAR(160),HQ$1)),FIND(CHAR(160),SUBSTITUTE($Y100,\"}\",CHAR(160),HQ$1))-FIND(CHAR(160),SUBSTITUTE($Y100,\"{\",CHAR(160),HQ$1))+1),\"\")","v":""},{"$f":"IFERROR(MID($Y100,FIND(CHAR(160),SUBSTITUTE($Y100,\"{\",CHAR(160),HR$1)),FIND(CHAR(160),SUBSTITUTE($Y100,\"}\",CHAR(160),HR$1))-FIND(CHAR(160),SUBSTITUTE($Y100,\"{\",CHAR(160),HR$1))+1),\"\")","v":""},{"$f":"IFERROR(MID($Y100,FIND(CHAR(160),SUBSTITUTE($Y100,\"{\",CHAR(160),HS$1)),FIND(CHAR(160),SUBSTITUTE($Y100,\"}\",CHAR(160),HS$1))-FIND(CHAR(160),SUBSTITUTE($Y100,\"{\",CHAR(160),HS$1))+1),\"\")","v":"{Fuel}"},{"$f":"IFERROR(MID($Y100,FIND(CHAR(160),SUBSTITUTE($Y100,\"{\",CHAR(160),HT$1)),FIND(CHAR(160),SUBSTITUTE($Y100,\"}\",CHAR(160),HT$1))-FIND(CHAR(160),SUBSTITUTE($Y100,\"{\",CHAR(160),HT$1))+1),\"\")","v":"{Measure:Quantity}"},{"$f":"IFERROR(MID($Z100,FIND(CHAR(160),SUBSTITUTE($Z100,\"{\",CHAR(160),HU$1)),FIND(CHAR(160),SUBSTITUTE($Z100,\"}\",CHAR(160),HU$1))-FIND(CHAR(160),SUBSTITUTE($Z100,\"{\",CHAR(160),HU$1))+1),\"\")","v":""},{"$f":"IFERROR(MID($Z100,FIND(CHAR(160),SUBSTITUTE($Z100,\"{\",CHAR(160),HV$1)),FIND(CHAR(160),SUBSTITUTE($Z100,\"}\",CHAR(160),HV$1))-FIND(CHAR(160),SUBSTITUTE($Z100,\"{\",CHAR(160),HV$1))+1),\"\")","v":""},{"$f":"IFERROR(MID($Z100,FIND(CHAR(160),SUBSTITUTE($Z100,\"{\",CHAR(160),HW$1)),FIND(CHAR(160),SUBSTITUTE($Z100,\"}\",CHAR(160),HW$1))-FIND(CHAR(160),SUBSTITUTE($Z100,\"{\",CHAR(160),HW$1))+1),\"\")","v":""},{"$f":"IFERROR(MID($Z100,FIND(CHAR(160),SUBSTITUTE($Z100,\"{\",CHAR(160),HX$1)),FIND(CHAR(160),SUBSTITUTE($Z100,\"}\",CHAR(160),HX$1))-FIND(CHAR(160),SUBSTITUTE($Z100,\"{\",CHAR(160),HX$1))+1),\"\")","v":""},{"$f":"IFERROR(MID($Z100,FIND(CHAR(160),SUBSTITUTE($Z100,\"{\",CHAR(160),HY$1)),FIND(CHAR(160),SUBSTITUTE($Z100,\"}\",CHAR(160),HY$1))-FIND(CHAR(160),SUBSTITUTE($Z100,\"{\",CHAR(160),HY$1))+1),\"\")","v":""},{"$f":"IFERROR(MID($Z100,FIND(CHAR(160),SUBSTITUTE($Z100,\"{\",CHAR(160),HZ$1)),FIND(CHAR(160),SUBSTITUTE($Z100,\"}\",CHAR(160),HZ$1))-FIND(CHAR(160),SUBSTITUTE($Z100,\"{\",CHAR(160),HZ$1))+1),\"\")","v":""},{"$f":"IFERROR(MID($Z100,FIND(CHAR(160),SUBSTITUTE($Z100,\"{\",CHAR(160),IA$1)),FIND(CHAR(160),SUBSTITUTE($Z100,\"}\",CHAR(160),IA$1))-FIND(CHAR(160),SUBSTITUTE($Z100,\"{\",CHAR(160),IA$1))+1),\"\")","v":""},{"$f":"IFERROR(MID($Z100,FIND(CHAR(160),SUBSTITUTE($Z100,\"{\",CHAR(160),IB$1)),FIND(CHAR(160),SUBSTITUTE($Z100,\"}\",CHAR(160),IB$1))-FIND(CHAR(160),SUBSTITUTE($Z100,\"{\",CHAR(160),IB$1))+1),\"\")","v":""},{"$f":"IFERROR(MID($Z100,FIND(CHAR(160),SUBSTITUTE($Z100,\"{\",CHAR(160),IC$1)),FIND(CHAR(160),SUBSTITUTE($Z100,\"}\",CHAR(160),IC$1))-FIND(CHAR(160),SUBSTITUTE($Z100,\"{\",CHAR(160),IC$1))+1),\"\")","v":""},{"$f":"IFERROR(MID($Z100,FIND(CHAR(160),SUBSTITUTE($Z100,\"{\",CHAR(160),ID$1)),FIND(CHAR(160),SUBSTITUTE($Z100,\"}\",CHAR(160),ID$1))-FIND(CHAR(160),SUBSTITUTE($Z100,\"{\",CHAR(160),ID$1))+1),\"\")","v":""},{"$f":"IFERROR(MID($AA100,FIND(CHAR(160),SUBSTITUTE($AA100,\"{\",CHAR(160),IE$1)),FIND(CHAR(160),SUBSTITUTE($AA100,\"}\",CHAR(160),IE$1))-FIND(CHAR(160),SUBSTITUTE($AA100,\"{\",CHAR(160),IE$1))+1),\"\")","v":""},{"$f":"IFERROR(MID($AA100,FIND(CHAR(160),SUBSTITUTE($AA100,\"{\",CHAR(160),IF$1)),FIND(CHAR(160),SUBSTITUTE($AA100,\"}\",CHAR(160),IF$1))-FIND(CHAR(160),SUBSTITUTE($AA100,\"{\",CHAR(160),IF$1))+1),\"\")","v":""},{"$f":"IFERROR(MID($AA100,FIND(CHAR(160),SUBSTITUTE($AA100,\"{\",CHAR(160),IG$1)),FIND(CHAR(160),SUBSTITUTE($AA100,\"}\",CHAR(160),IG$1))-FIND(CHAR(160),SUBSTITUTE($AA100,\"{\",CHAR(160),IG$1))+1),\"\")","v":""},{"$f":"IFERROR(MID($AA100,FIND(CHAR(160),SUBSTITUTE($AA100,\"{\",CHAR(160),IH$1)),FIND(CHAR(160),SUBSTITUTE($AA100,\"}\",CHAR(160),IH$1))-FIND(CHAR(160),SUBSTITUTE($AA100,\"{\",CHAR(160),IH$1))+1),\"\")","v":""},{"$f":"IFERROR(MID($AA100,FIND(CHAR(160),SUBSTITUTE($AA100,\"{\",CHAR(160),II$1)),FIND(CHAR(160),SUBSTITUTE($AA100,\"}\",CHAR(160),II$1))-FIND(CHAR(160),SUBSTITUTE($AA100,\"{\",CHAR(160),II$1))+1),\"\")","v":""},{"$f":"IFERROR(MID($AA100,FIND(CHAR(160),SUBSTITUTE($AA100,\"{\",CHAR(160),IJ$1)),FIND(CHAR(160),SUBSTITUTE($AA100,\"}\",CHAR(160),IJ$1))-FIND(CHAR(160),SUBSTITUTE($AA100,\"{\",CHAR(160),IJ$1))+1),\"\")","v":""},{"$f":"IFERROR(MID($AA100,FIND(CHAR(160),SUBSTITUTE($AA100,\"{\",CHAR(160),IK$1)),FIND(CHAR(160),SUBSTITUTE($AA100,\"}\",CHAR(160),IK$1))-FIND(CHAR(160),SUBSTITUTE($AA100,\"{\",CHAR(160),IK$1))+1),\"\")","v":""},{"$f":"IFERROR(MID($AA100,FIND(CHAR(160),SUBSTITUTE($AA100,\"{\",CHAR(160),IL$1)),FIND(CHAR(160),SUBSTITUTE($AA100,\"}\",CHAR(160),IL$1))-FIND(CHAR(160),SUBSTITUTE($AA100,\"{\",CHAR(160),IL$1))+1),\"\")","v":""},{"$f":"IFERROR(MID($AA100,FIND(CHAR(160),SUBSTITUTE($AA100,\"{\",CHAR(160),IM$1)),FIND(CHAR(160),SUBSTITUTE($AA100,\"}\",CHAR(160),IM$1))-FIND(CHAR(160),SUBSTITUTE($AA100,\"{\",CHAR(160),IM$1))+1),\"\")","v":""},{"$f":"IFERROR(MID($AA100,FIND(CHAR(160),SUBSTITUTE($AA100,\"{\",CHAR(160),IN$1)),FIND(CHAR(160),SUBSTITUTE($AA100,\"}\",CHAR(160),IN$1))-FIND(CHAR(160),SUBSTITUTE($AA100,\"{\",CHAR(160),IN$1))+1),\"\")","v":""},{"$f":"IFERROR(MID($AB100,FIND(CHAR(160),SUBSTITUTE($AB100,\"{\",CHAR(160),IO$1)),FIND(CHAR(160),SUBSTITUTE($AB100,\"}\",CHAR(160),IO$1))-FIND(CHAR(160),SUBSTITUTE($AB100,\"{\",CHAR(160),IO$1))+1),\"\")","v":""},{"$f":"IFERROR(MID($AB100,FIND(CHAR(160),SUBSTITUTE($AB100,\"{\",CHAR(160),IP$1)),FIND(CHAR(160),SUBSTITUTE($AB100,\"}\",CHAR(160),IP$1))-FIND(CHAR(160),SUBSTITUTE($AB100,\"{\",CHAR(160),IP$1))+1),\"\")","v":""},{"$f":"IFERROR(MID($AB100,FIND(CHAR(160),SUBSTITUTE($AB100,\"{\",CHAR(160),IQ$1)),FIND(CHAR(160),SUBSTITUTE($AB100,\"}\",CHAR(160),IQ$1))-FIND(CHAR(160),SUBSTITUTE($AB100,\"{\",CHAR(160),IQ$1))+1),\"\")","v":""},{"$f":"IFERROR(MID($AB100,FIND(CHAR(160),SUBSTITUTE($AB100,\"{\",CHAR(160),IR$1)),FIND(CHAR(160),SUBSTITUTE($AB100,\"}\",CHAR(160),IR$1))-FIND(CHAR(160),SUBSTITUTE($AB100,\"{\",CHAR(160),IR$1))+1),\"\")","v":""},{"$f":"IFERROR(MID($AB100,FIND(CHAR(160),SUBSTITUTE($AB100,\"{\",CHAR(160),IS$1)),FIND(CHAR(160),SUBSTITUTE($AB100,\"}\",CHAR(160),IS$1))-FIND(CHAR(160),SUBSTITUTE($AB100,\"{\",CHAR(160),IS$1))+1),\"\")","v":""},{"$f":"IFERROR(MID($AB100,FIND(CHAR(160),SUBSTITUTE($AB100,\"{\",CHAR(160),IT$1)),FIND(CHAR(160),SUBSTITUTE($AB100,\"}\",CHAR(160),IT$1))-FIND(CHAR(160),SUBSTITUTE($AB100,\"{\",CHAR(160),IT$1))+1),\"\")","v":""},{"$f":"IFERROR(MID($AB100,FIND(CHAR(160),SUBSTITUTE($AB100,\"{\",CHAR(160),IU$1)),FIND(CHAR(160),SUBSTITUTE($AB100,\"}\",CHAR(160),IU$1))-FIND(CHAR(160),SUBSTITUTE($AB100,\"{\",CHAR(160),IU$1))+1),\"\")","v":""},{"$f":"IFERROR(MID($AB100,FIND(CHAR(160),SUBSTITUTE($AB100,\"{\",CHAR(160),IV$1)),FIND(CHAR(160),SUBSTITUTE($AB100,\"}\",CHAR(160),IV$1))-FIND(CHAR(160),SUBSTITUTE($AB100,\"{\",CHAR(160),IV$1))+1),\"\")","v":""},{"$f":"IFERROR(MID($AB100,FIND(CHAR(160),SUBSTITUTE($AB100,\"{\",CHAR(160),IW$1)),FIND(CHAR(160),SUBSTITUTE($AB100,\"}\",CHAR(160),IW$1))-FIND(CHAR(160),SUBSTITUTE($AB100,\"{\",CHAR(160),IW$1))+1),\"\")","v":""},{"$f":"IFERROR(MID($AB100,FIND(CHAR(160),SUBSTITUTE($AB100,\"{\",CHAR(160),IX$1)),FIND(CHAR(160),SUBSTITUTE($AB100,\"}\",CHAR(160),IX$1))-FIND(CHAR(160),SUBSTITUTE($AB100,\"{\",CHAR(160),IX$1))+1),\"\")","v":""},null,{"$f":"10-COUNTIF(DU100:ED100,\"\")","v":7}]
["C&I HVAC - Oil","Boiler Stack Heat Exchanger (Economizer)","AF2","2021-07-01","2022-06-30","Calculated","{Measure:Quantity}*{Capacity (MBTUH)}/1000*if({Economizer Type}=1,2120,1500)",0,"Calculated","{Measure:Quantity}*{Capacity (MBTUH)}/1000*if({Economizer Type}=1,1325,950)",0,"2021-05-25","2022-06-30","Calculated",null,null,null,null,null,null,null,null,null,null,"if({Existing Fuel}<>3,0,{Measure:Quantity} * ({Capacity (MBTUH)} * 1565 * if({Economizer Type}=1,0.1,0.05)) / 1000)",null,null,null,"2021-05-24","2022-06-30",20,0,0,0,0,0,0,1,1,0,0.52,1.6E-2,null,{"$f":"DU101","v":"{Measure:Quantity}"},1,{"$f":"DV101","v":"{Capacity (MBTUH)}"},1000,{"$f":"DW101","v":"{Economizer Type}"},0,{"$f":"DX101","v":"{Existing Fuel}"},3,{"$f":"DY101","v":""},null,{"$f":"DZ101","v":""},null,{"$f":"EA101","v":""},null,{"$f":"EB101","v":""},null,{"$f":"EC101","v":""},null,{"$f":"ED101","v":""},null,0,0,0,0,0,0,0,0,0,0,{"$f":"IF(AY101<>3,0,AS101 * (AU101 * 1565 * IF(AW101=1,0.1,0.05)) / 1000)","v":78.25},0,0,0,null,"Res","Default DR",{"$f":"Benefits(BL101,BR101,BS101,BT101,BU101,BV101,BW101,BX101,BY101,BZ101,AE101,AH101,AI101,AJ101,AK101,AL101,AM101,AN101,AO101,AP101,CA101,CB101)","v":0},0,0,40737.035472087802,0,0,0,0,0,{"$f":"SUMPRODUCT(CC101:CK101,--(CC101:CK101>0))","v":40737.035472087802},{"$f":"-SUMPRODUCT(CC101:CK101,--(CC101:CK101<0))","v":0},null,{"$f":"AS101*AU101/1000*IF(AW101=1,2120,1500)","v":1500},null,null,{"$f":"CM101+CO101","v":1500},{"$f":"IF(NetOrGross=\"Net\",(1-AO101+AP101),1)","v":1},{"$f":"(SUMPRODUCT(CC101:CJ101,--(CC101:CJ101>0))+CN101)*CS101/((-SUMPRODUCT(CC101:CJ101,--(CC101:CJ101<0))+MAX(CO101,CV101)+CP101+CQ101)*CS101+IF(FRIncentives=\"Yes\",CV101*(1-CS101),0))","v":27.158023648058535},1,{"$f":"AS101*AU101/1000*IF(AW101=1,1325,950)","v":950},null,"RGGI","y",null,{"$f":"IF(F101=\"Manual Entry\",\"Manual\",IF(G101=\"\",0,\"X=\"&SUBSTITUTE(SUBSTITUTE(SUBSTITUTE(SUBSTITUTE(SUBSTITUTE(SUBSTITUTE(SUBSTITUTE(SUBSTITUTE(SUBSTITUTE(SUBSTITUTE(SUBSTITUTE(SUBSTITUTE(G101,$ED101,$ED$2&ROW($ED101)),$EC101,$EC$2&ROW($EC101)),$EB101,$EB$2&ROW($EB101)),$EA101,$EA$2&ROW($EA101)),$DZ101,$DZ$2&ROW($DZ101)),$DY101,$DY$2&ROW($DY101)),$DX101,$DX$2&ROW($DX101)),$DW101,$DW$2&ROW($DW101)),$DV101,$DV$2&ROW($DV101)),$DU101,$DU$2&ROW($DU101)),$DT101,$DT$2&ROW($DT101)),$DS101,$DS$2&ROW($DS101))))","v":"X=AS101*AU101/1000*if(AW101=1,2120,1500)"},{"$f":"IF(I101=\"Manual Entry\",\"Manual\",IF(J101=\"\",0,\"X=\"&SUBSTITUTE(SUBSTITUTE(SUBSTITUTE(SUBSTITUTE(SUBSTITUTE(SUBSTITUTE(SUBSTITUTE(SUBSTITUTE(SUBSTITUTE(SUBSTITUTE(SUBSTITUTE(SUBSTITUTE(J101,$ED101,$ED$2&ROW($ED101)),$EC101,$EC$2&ROW($EC101)),$EB101,$EB$2&ROW($EB101)),$EA101,$EA$2&ROW($EA101)),$DZ101,$DZ$2&ROW($DZ101)),$DY101,$DY$2&ROW($DY101)),$DX101,$DX$2&ROW($DX101)),$DW101,$DW$2&ROW($DW101)),$DV101,$DV$2&ROW($DV101)),$DU101,$DU$2&ROW($DU101)),$DT101,$DT$2&ROW($DT101)),$DS101,$DS$2&ROW($DS101))))","v":"X=AS101*AU101/1000*if(AW101=1,1325,950)"},{"$f":"IF(O101=\"\",0,\"X=\"&SUBSTITUTE(SUBSTITUTE(SUBSTITUTE(SUBSTITUTE(SUBSTITUTE(SUBSTITUTE(SUBSTITUTE(SUBSTITUTE(SUBSTITUTE(SUBSTITUTE(SUBSTITUTE(SUBSTITUTE(O101,$ED101,$ED$2&ROW($ED101)),$EC101,$EC$2&ROW($EC101)),$EB101,$EB$2&ROW($EB101)),$EA101,$EA$2&ROW($EA101)),$DZ101,$DZ$2&ROW($DZ101)),$DY101,$DY$2&ROW($DY101)),$DX101,$DX$2&ROW($DX101)),$DW101,$DW$2&ROW($DW101)),$DV101,$DV$2&ROW($DV101)),$DU101,$DU$2&ROW($DU101)),$DT101,$DT$2&ROW($DT101)),$DS101,$DS$2&ROW($DS101)))","v":0},{"$f":"IF(P101=\"\",0,\"X=\"&SUBSTITUTE(SUBSTITUTE(SUBSTITUTE(SUBSTITUTE(SUBSTITUTE(SUBSTITUTE(SUBSTITUTE(SUBSTITUTE(SUBSTITUTE(SUBSTITUTE(SUBSTITUTE(SUBSTITUTE(P101,$ED101,$ED$2&ROW($ED101)),$EC101,$EC$2&ROW($EC101)),$EB101,$EB$2&ROW($EB101)),$EA101,$EA$2&ROW($EA101)),$DZ101,$DZ$2&ROW($DZ101)),$DY101,$DY$2&ROW($DY101)),$DX101,$DX$2&ROW($DX101)),$DW101,$DW$2&ROW($DW101)),$DV101,$DV$2&ROW($DV101)),$DU101,$DU$2&ROW($DU101)),$DT101,$DT$2&ROW($DT101)),$DS101,$DS$2&ROW($DS101)))","v":0},{"$f":"IF(Q101=\"\",0,\"X=\"&SUBSTITUTE(SUBSTITUTE(SUBSTITUTE(SUBSTITUTE(SUBSTITUTE(SUBSTITUTE(SUBSTITUTE(SUBSTITUTE(SUBSTITUTE(SUBSTITUTE(SUBSTITUTE(SUBSTITUTE(Q101,$ED101,$ED$2&ROW($ED101)),$EC101,$EC$2&ROW($EC101)),$EB101,$EB$2&ROW($EB101)),$EA101,$EA$2&ROW($EA101)),$DZ101,$DZ$2&ROW($DZ101)),$DY101,$DY$2&ROW($DY101)),$DX101,$DX$2&ROW($DX101)),$DW101,$DW$2&ROW($DW101)),$DV101,$DV$2&ROW($DV101)),$DU101,$DU$2&ROW($DU101)),$DT101,$DT$2&ROW($DT101)),$DS101,$DS$2&ROW($DS101)))","v":0},{"$f":"IF(R101=\"\",0,\"X=\"&SUBSTITUTE(SUBSTITUTE(SUBSTITUTE(SUBSTITUTE(SUBSTITUTE(SUBSTITUTE(SUBSTITUTE(SUBSTITUTE(SUBSTITUTE(SUBSTITUTE(SUBSTITUTE(SUBSTITUTE(R101,$ED101,$ED$2&ROW($ED101)),$EC101,$EC$2&ROW($EC101)),$EB101,$EB$2&ROW($EB101)),$EA101,$EA$2&ROW($EA101)),$DZ101,$DZ$2&ROW($DZ101)),$DY101,$DY$2&ROW($DY101)),$DX101,$DX$2&ROW($DX101)),$DW101,$DW$2&ROW($DW101)),$DV101,$DV$2&ROW($DV101)),$DU101,$DU$2&ROW($DU101)),$DT101,$DT$2&ROW($DT101)),$DS101,$DS$2&ROW($DS101)))","v":0},{"$f":"IF(S101=\"\",0,\"X=\"&SUBSTITUTE(SUBSTITUTE(SUBSTITUTE(SUBSTITUTE(SUBSTITUTE(SUBSTITUTE(SUBSTITUTE(SUBSTITUTE(SUBSTITUTE(SUBSTITUTE(SUBSTITUTE(SUBSTITUTE(S101,$ED101,$ED$2&ROW($ED101)),$EC101,$EC$2&ROW($EC101)),$EB101,$EB$2&ROW($EB101)),$EA101,$EA$2&ROW($EA101)),$DZ101,$DZ$2&ROW($DZ101)),$DY101,$DY$2&ROW($DY101)),$DX101,$DX$2&ROW($DX101)),$DW101,$DW$2&ROW($DW101)),$DV101,$DV$2&ROW($DV101)),$DU101,$DU$2&ROW($DU101)),$DT101,$DT$2&ROW($DT101)),$DS101,$DS$2&ROW($DS101)))","v":0},{"$f":"IF(T101=\"\",0,\"X=\"&SUBSTITUTE(SUBSTITUTE(SUBSTITUTE(SUBSTITUTE(SUBSTITUTE(SUBSTITUTE(SUBSTITUTE(SUBSTITUTE(SUBSTITUTE(SUBSTITUTE(SUBSTITUTE(SUBSTITUTE(T101,$ED101,$ED$2&ROW($ED101)),$EC101,$EC$2&ROW($EC101)),$EB101,$EB$2&ROW($EB101)),$EA101,$EA$2&ROW($EA101)),$DZ101,$DZ$2&ROW($DZ101)),$DY101,$DY$2&ROW($DY101)),$DX101,$DX$2&ROW($DX101)),$DW101,$DW$2&ROW($DW101)),$DV101,$DV$2&ROW($DV101)),$DU101,$DU$2&ROW($DU101)),$DT101,$DT$2&ROW($DT101)),$DS101,$DS$2&ROW($DS101)))","v":0},{"$f":"IF(U101=\"\",0,\"X=\"&SUBSTITUTE(SUBSTITUTE(SUBSTITUTE(SUBSTITUTE(SUBSTITUTE(SUBSTITUTE(SUBSTITUTE(SUBSTITUTE(SUBSTITUTE(SUBSTITUTE(SUBSTITUTE(SUBSTITUTE(U101,$ED101,$ED$2&ROW($ED101)),$EC101,$EC$2&ROW($EC101)),$EB101,$EB$2&ROW($EB101)),$EA101,$EA$2&ROW($EA101)),$DZ101,$DZ$2&ROW($DZ101)),$DY101,$DY$2&ROW($DY101)),$DX101,$DX$2&ROW($DX101)),$DW101,$DW$2&ROW($DW101)),$DV101,$DV$2&ROW($DV101)),$DU101,$DU$2&ROW($DU101)),$DT101,$DT$2&ROW($DT101)),$DS101,$DS$2&ROW($DS101)))","v":0},{"$f":"IF(V101=\"\",0,\"X=\"&SUBSTITUTE(SUBSTITUTE(SUBSTITUTE(SUBSTITUTE(SUBSTITUTE(SUBSTITUTE(SUBSTITUTE(SUBSTITUTE(SUBSTITUTE(SUBSTITUTE(SUBSTITUTE(SUBSTITUTE(V101,$ED101,$ED$2&ROW($ED101)),$EC101,$EC$2&ROW($EC101)),$EB101,$EB$2&ROW($EB101)),$EA101,$EA$2&ROW($EA101)),$DZ101,$DZ$2&ROW($DZ101)),$DY101,$DY$2&ROW($DY101)),$DX101,$DX$2&ROW($DX101)),$DW101,$DW$2&ROW($DW101)),$DV101,$DV$2&ROW($DV101)),$DU101,$DU$2&ROW($DU101)),$DT101,$DT$2&ROW($DT101)),$DS101,$DS$2&ROW($DS101)))","v":0},{"$f":"IF(W101=\"\",0,\"X=\"&SUBSTITUTE(SUBSTITUTE(SUBSTITUTE(SUBSTITUTE(SUBSTITUTE(SUBSTITUTE(SUBSTITUTE(SUBSTITUTE(SUBSTITUTE(SUBSTITUTE(SUBSTITUTE(SUBSTITUTE(W101,$ED101,$ED$2&ROW($ED101)),$EC101,$EC$2&ROW($EC101)),$EB101,$EB$2&ROW($EB101)),$EA101,$EA$2&ROW($EA101)),$DZ101,$DZ$2&ROW($DZ101)),$DY101,$DY$2&ROW($DY101)),$DX101,$DX$2&ROW($DX101)),$DW101,$DW$2&ROW($DW101)),$DV101,$DV$2&ROW($DV101)),$DU101,$DU$2&ROW($DU101)),$DT101,$DT$2&ROW($DT101)),$DS101,$DS$2&ROW($DS101)))","v":0},{"$f":"IF(X101=\"\",0,\"X=\"&SUBSTITUTE(SUBSTITUTE(SUBSTITUTE(SUBSTITUTE(SUBSTITUTE(SUBSTITUTE(SUBSTITUTE(SUBSTITUTE(SUBSTITUTE(SUBSTITUTE(SUBSTITUTE(SUBSTITUTE(X101,$ED101,$ED$2&ROW($ED101)),$EC101,$EC$2&ROW($EC101)),$EB101,$EB$2&ROW($EB101)),$EA101,$EA$2&ROW($EA101)),$DZ101,$DZ$2&ROW($DZ101)),$DY101,$DY$2&ROW($DY101)),$DX101,$DX$2&ROW($DX101)),$DW101,$DW$2&ROW($DW101)),$DV101,$DV$2&ROW($DV101)),$DU101,$DU$2&ROW($DU101)),$DT101,$DT$2&ROW($DT101)),$DS101,$DS$2&ROW($DS101)))","v":0},{"$f":"IF(Y101=\"\",0,\"X=\"&SUBSTITUTE(SUBSTITUTE(SUBSTITUTE(SUBSTITUTE(SUBSTITUTE(SUBSTITUTE(SUBSTITUTE(SUBSTITUTE(SUBSTITUTE(SUBSTITUTE(SUBSTITUTE(SUBSTITUTE(Y101,$ED101,$ED$2&ROW($ED101)),$EC101,$EC$2&ROW($EC101)),$EB101,$EB$2&ROW($EB101)),$EA101,$EA$2&ROW($EA101)),$DZ101,$DZ$2&ROW($DZ101)),$DY101,$DY$2&ROW($DY101)),$DX101,$DX$2&ROW($DX101)),$DW101,$DW$2&ROW($DW101)),$DV101,$DV$2&ROW($DV101)),$DU101,$DU$2&ROW($DU101)),$DT101,$DT$2&ROW($DT101)),$DS101,$DS$2&ROW($DS101)))","v":"X=if(AY101<>3,0,AS101 * (AU101 * 1565 * if(AW101=1,0.1,0.05)) / 1000)"},{"$f":"IF(Z101=\"\",0,\"X=\"&SUBSTITUTE(SUBSTITUTE(SUBSTITUTE(SUBSTITUTE(SUBSTITUTE(SUBSTITUTE(SUBSTITUTE(SUBSTITUTE(SUBSTITUTE(SUBSTITUTE(SUBSTITUTE(SUBSTITUTE(Z101,$ED101,$ED$2&ROW($ED101)),$EC101,$EC$2&ROW($EC101)),$EB101,$EB$2&ROW($EB101)),$EA101,$EA$2&ROW($EA101)),$DZ101,$DZ$2&ROW($DZ101)),$DY101,$DY$2&ROW($DY101)),$DX101,$DX$2&ROW($DX101)),$DW101,$DW$2&ROW($DW101)),$DV101,$DV$2&ROW($DV101)),$DU101,$DU$2&ROW($DU101)),$DT101,$DT$2&ROW($DT101)),$DS101,$DS$2&ROW($DS101)))","v":0},{"$f":"IF(AA101=\"\",0,\"X=\"&SUBSTITUTE(SUBSTITUTE(SUBSTITUTE(SUBSTITUTE(SUBSTITUTE(SUBSTITUTE(SUBSTITUTE(SUBSTITUTE(SUBSTITUTE(SUBSTITUTE(SUBSTITUTE(SUBSTITUTE(AA101,$ED101,$ED$2&ROW($ED101)),$EC101,$EC$2&ROW($EC101)),$EB101,$EB$2&ROW($EB101)),$EA101,$EA$2&ROW($EA101)),$DZ101,$DZ$2&ROW($DZ101)),$DY101,$DY$2&ROW($DY101)),$DX101,$DX$2&ROW($DX101)),$DW101,$DW$2&ROW($DW101)),$DV101,$DV$2&ROW($DV101)),$DU101,$DU$2&ROW($DU101)),$DT101,$DT$2&ROW($DT101)),$DS101,$DS$2&ROW($DS101)))","v":0},{"$f":"IF(AB101=\"\",0,\"X=\"&SUBSTITUTE(SUBSTITUTE(SUBSTITUTE(SUBSTITUTE(SUBSTITUTE(SUBSTITUTE(SUBSTITUTE(SUBSTITUTE(SUBSTITUTE(SUBSTITUTE(SUBSTITUTE(SUBSTITUTE(AB101,$ED101,$ED$2&ROW($ED101)),$EC101,$EC$2&ROW($EC101)),$EB101,$EB$2&ROW($EB101)),$EA101,$EA$2&ROW($EA101)),$DZ101,$DZ$2&ROW($DZ101)),$DY101,$DY$2&ROW($DY101)),$DX101,$DX$2&ROW($DX101)),$DW101,$DW$2&ROW($DW101)),$DV101,$DV$2&ROW($DV101)),$DU101,$DU$2&ROW($DU101)),$DT101,$DT$2&ROW($DT101)),$DS101,$DS$2&ROW($DS101)))","v":0},null,null,"{Factor:WinterCF}","{Factor:SummerCF}",{"$f":"IFERROR(INDEX($EG101:$IV101,MATCH(0,COUNTIF($DR101:DT101,$EG101:$IV101),0)),\"\")","v":"{Measure:Quantity}"},{"$f":"IFERROR(INDEX($EG101:$IV101,MATCH(0,COUNTIF($DR101:DU101,$EG101:$IV101),0)),\"\")","v":"{Capacity (MBTUH)}"},{"$f":"IFERROR(INDEX($EG101:$IV101,MATCH(0,COUNTIF($DR101:DV101,$EG101:$IV101),0)),\"\")","v":"{Economizer Type}"},{"$f":"IFERROR(INDEX($EG101:$IV101,MATCH(0,COUNTIF($DR101:DW101,$EG101:$IV101),0)),\"\")","v":"{Existing Fuel}"},{"$f":"IFERROR(INDEX($EG101:$IV101,MATCH(0,COUNTIF($DR101:DX101,$EG101:$IV101),0)),\"\")","v":""},{"$f":"IFERROR(INDEX($EG101:$IV101,MATCH(0,COUNTIF($DR101:DY101,$EG101:$IV101),0)),\"\")","v":""},{"$f":"IFERROR(INDEX($EG101:$IV101,MATCH(0,COUNTIF($DR101:DZ101,$EG101:$IV101),0)),\"\")","v":""},{"$f":"IFERROR(INDEX($EG101:$IV101,MATCH(0,COUNTIF($DR101:EA101,$EG101:$IV101),0)),\"\")","v":""},{"$f":"IFERROR(INDEX($EG101:$IV101,MATCH(0,COUNTIF($DR101:EB101,$EG101:$IV101),0)),\"\")","v":""},{"$f":"IFERROR(INDEX($EG101:$IV101,MATCH(0,COUNTIF($DR101:EC101,$EG101:$IV101),0)),\"\")","v":""},null,null,{"$f":"IFERROR(MID($G101,FIND(CHAR(160),SUBSTITUTE($G101,\"{\",CHAR(160),EG$1)),FIND(CHAR(160),SUBSTITUTE($G101,\"}\",CHAR(160),EG$1))-FIND(CHAR(160),SUBSTITUTE($G101,\"{\",CHAR(160),EG$1))+1),\"\")","v":"{Measure:Quantity}"},{"$f":"IFERROR(MID($G101,FIND(CHAR(160),SUBSTITUTE($G101,\"{\",CHAR(160),EH$1)),FIND(CHAR(160),SUBSTITUTE($G101,\"}\",CHAR(160),EH$1))-FIND(CHAR(160),SUBSTITUTE($G101,\"{\",CHAR(160),EH$1))+1),\"\")","v":"{Capacity (MBTUH)}"},{"$f":"IFERROR(MID($G101,FIND(CHAR(160),SUBSTITUTE($G101,\"{\",CHAR(160),EI$1)),FIND(CHAR(160),SUBSTITUTE($G101,\"}\",CHAR(160),EI$1))-FIND(CHAR(160),SUBSTITUTE($G101,\"{\",CHAR(160),EI$1))+1),\"\")","v":"{Economizer Type}"},{"$f":"IFERROR(MID($G101,FIND(CHAR(160),SUBSTITUTE($G101,\"{\",CHAR(160),EJ$1)),FIND(CHAR(160),SUBSTITUTE($G101,\"}\",CHAR(160),EJ$1))-FIND(CHAR(160),SUBSTITUTE($G101,\"{\",CHAR(160),EJ$1))+1),\"\")","v":""},{"$f":"IFERROR(MID($G101,FIND(CHAR(160),SUBSTITUTE($G101,\"{\",CHAR(160),EK$1)),FIND(CHAR(160),SUBSTITUTE($G101,\"}\",CHAR(160),EK$1))-FIND(CHAR(160),SUBSTITUTE($G101,\"{\",CHAR(160),EK$1))+1),\"\")","v":""},{"$f":"IFERROR(MID($G101,FIND(CHAR(160),SUBSTITUTE($G101,\"{\",CHAR(160),EL$1)),FIND(CHAR(160),SUBSTITUTE($G101,\"}\",CHAR(160),EL$1))-FIND(CHAR(160),SUBSTITUTE($G101,\"{\",CHAR(160),EL$1))+1),\"\")","v":""},{"$f":"IFERROR(MID($G101,FIND(CHAR(160),SUBSTITUTE($G101,\"{\",CHAR(160),EM$1)),FIND(CHAR(160),SUBSTITUTE($G101,\"}\",CHAR(160),EM$1))-FIND(CHAR(160),SUBSTITUTE($G101,\"{\",CHAR(160),EM$1))+1),\"\")","v":""},{"$f":"IFERROR(MID($G101,FIND(CHAR(160),SUBSTITUTE($G101,\"{\",CHAR(160),EN$1)),FIND(CHAR(160),SUBSTITUTE($G101,\"}\",CHAR(160),EN$1))-FIND(CHAR(160),SUBSTITUTE($G101,\"{\",CHAR(160),EN$1))+1),\"\")","v":""},{"$f":"IFERROR(MID($G101,FIND(CHAR(160),SUBSTITUTE($G101,\"{\",CHAR(160),EO$1)),FIND(CHAR(160),SUBSTITUTE($G101,\"}\",CHAR(160),EO$1))-FIND(CHAR(160),SUBSTITUTE($G101,\"{\",CHAR(160),EO$1))+1),\"\")","v":""},{"$f":"IFERROR(MID($G101,FIND(CHAR(160),SUBSTITUTE($G101,\"{\",CHAR(160),EP$1)),FIND(CHAR(160),SUBSTITUTE($G101,\"}\",CHAR(160),EP$1))-FIND(CHAR(160),SUBSTITUTE($G101,\"{\",CHAR(160),EP$1))+1),\"\")","v":""},{"$f":"IFERROR(MID($J101,FIND(CHAR(160),SUBSTITUTE($J101,\"{\",CHAR(160),EQ$1)),FIND(CHAR(160),SUBSTITUTE($J101,\"}\",CHAR(160),EQ$1))-FIND(CHAR(160),SUBSTITUTE($J101,\"{\",CHAR(160),EQ$1))+1),\"\")","v":"{Measure:Quantity}"},{"$f":"IFERROR(MID($J101,FIND(CHAR(160),SUBSTITUTE($J101,\"{\",CHAR(160),ER$1)),FIND(CHAR(160),SUBSTITUTE($J101,\"}\",CHAR(160),ER$1))-FIND(CHAR(160),SUBSTITUTE($J101,\"{\",CHAR(160),ER$1))+1),\"\")","v":"{Capacity (MBTUH)}"},{"$f":"IFERROR(MID($J101,FIND(CHAR(160),SUBSTITUTE($J101,\"{\",CHAR(160),ES$1)),FIND(CHAR(160),SUBSTITUTE($J101,\"}\",CHAR(160),ES$1))-FIND(CHAR(160),SUBSTITUTE($J101,\"{\",CHAR(160),ES$1))+1),\"\")","v":"{Economizer Type}"},{"$f":"IFERROR(MID($J101,FIND(CHAR(160),SUBSTITUTE($J101,\"{\",CHAR(160),ET$1)),FIND(CHAR(160),SUBSTITUTE($J101,\"}\",CHAR(160),ET$1))-FIND(CHAR(160),SUBSTITUTE($J101,\"{\",CHAR(160),ET$1))+1),\"\")","v":""},{"$f":"IFERROR(MID($J101,FIND(CHAR(160),SUBSTITUTE($J101,\"{\",CHAR(160),EU$1)),FIND(CHAR(160),SUBSTITUTE($J101,\"}\",CHAR(160),EU$1))-FIND(CHAR(160),SUBSTITUTE($J101,\"{\",CHAR(160),EU$1))+1),\"\")","v":""},{"$f":"IFERROR(MID($J101,FIND(CHAR(160),SUBSTITUTE($J101,\"{\",CHAR(160),EV$1)),FIND(CHAR(160),SUBSTITUTE($J101,\"}\",CHAR(160),EV$1))-FIND(CHAR(160),SUBSTITUTE($J101,\"{\",CHAR(160),EV$1))+1),\"\")","v":""},{"$f":"IFERROR(MID($J101,FIND(CHAR(160),SUBSTITUTE($J101,\"{\",CHAR(160),EW$1)),FIND(CHAR(160),SUBSTITUTE($J101,\"}\",CHAR(160),EW$1))-FIND(CHAR(160),SUBSTITUTE($J101,\"{\",CHAR(160),EW$1))+1),\"\")","v":""},{"$f":"IFERROR(MID($J101,FIND(CHAR(160),SUBSTITUTE($J101,\"{\",CHAR(160),EX$1)),FIND(CHAR(160),SUBSTITUTE($J101,\"}\",CHAR(160),EX$1))-FIND(CHAR(160),SUBSTITUTE($J101,\"{\",CHAR(160),EX$1))+1),\"\")","v":""},{"$f":"IFERROR(MID($J101,FIND(CHAR(160),SUBSTITUTE($J101,\"{\",CHAR(160),EY$1)),FIND(CHAR(160),SUBSTITUTE($J101,\"}\",CHAR(160),EY$1))-FIND(CHAR(160),SUBSTITUTE($J101,\"{\",CHAR(160),EY$1))+1),\"\")","v":""},{"$f":"IFERROR(MID($J101,FIND(CHAR(160),SUBSTITUTE($J101,\"{\",CHAR(160),EZ$1)),FIND(CHAR(160),SUBSTITUTE($J101,\"}\",CHAR(160),EZ$1))-FIND(CHAR(160),SUBSTITUTE($J101,\"{\",CHAR(160),EZ$1))+1),\"\")","v":""},{"$f":"IFERROR(MID($J101,FIND(CHAR(160),SUBSTITUTE($J101,\"{\",CHAR(160),FA$1)),FIND(CHAR(160),SUBSTITUTE($J101,\"}\",CHAR(160),FA$1))-FIND(CHAR(160),SUBSTITUTE($J101,\"{\",CHAR(160),FA$1))+1),\"\")","v":"{Measure:Quantity}"},{"$f":"IFERROR(MID($J101,FIND(CHAR(160),SUBSTITUTE($J101,\"{\",CHAR(160),FB$1)),FIND(CHAR(160),SUBSTITUTE($J101,\"}\",CHAR(160),FB$1))-FIND(CHAR(160),SUBSTITUTE($J101,\"{\",CHAR(160),FB$1))+1),\"\")","v":"{Capacity (MBTUH)}"},{"$f":"IFERROR(MID($O101,FIND(CHAR(160),SUBSTITUTE($O101,\"{\",CHAR(160),FC$1)),FIND(CHAR(160),SUBSTITUTE($O101,\"}\",CHAR(160),FC$1))-FIND(CHAR(160),SUBSTITUTE($O101,\"{\",CHAR(160),FC$1))+1),\"\")","v":""},{"$f":"IFERROR(MID($O101,FIND(CHAR(160),SUBSTITUTE($O101,\"{\",CHAR(160),FD$1)),FIND(CHAR(160),SUBSTITUTE($O101,\"}\",CHAR(160),FD$1))-FIND(CHAR(160),SUBSTITUTE($O101,\"{\",CHAR(160),FD$1))+1),\"\")","v":""},{"$f":"IFERROR(MID($O101,FIND(CHAR(160),SUBSTITUTE($O101,\"{\",CHAR(160),FE$1)),FIND(CHAR(160),SUBSTITUTE($O101,\"}\",CHAR(160),FE$1))-FIND(CHAR(160),SUBSTITUTE($O101,\"{\",CHAR(160),FE$1))+1),\"\")","v":""},{"$f":"IFERROR(MID($O101,FIND(CHAR(160),SUBSTITUTE($O101,\"{\",CHAR(160),FF$1)),FIND(CHAR(160),SUBSTITUTE($O101,\"}\",CHAR(160),FF$1))-FIND(CHAR(160),SUBSTITUTE($O101,\"{\",CHAR(160),FF$1))+1),\"\")","v":""},{"$f":"IFERROR(MID($O101,FIND(CHAR(160),SUBSTITUTE($O101,\"{\",CHAR(160),FG$1)),FIND(CHAR(160),SUBSTITUTE($O101,\"}\",CHAR(160),FG$1))-FIND(CHAR(160),SUBSTITUTE($O101,\"{\",CHAR(160),FG$1))+1),\"\")","v":""},{"$f":"IFERROR(MID($O101,FIND(CHAR(160),SUBSTITUTE($O101,\"{\",CHAR(160),FH$1)),FIND(CHAR(160),SUBSTITUTE($O101,\"}\",CHAR(160),FH$1))-FIND(CHAR(160),SUBSTITUTE($O101,\"{\",CHAR(160),FH$1))+1),\"\")","v":""},{"$f":"IFERROR(MID($O101,FIND(CHAR(160),SUBSTITUTE($O101,\"{\",CHAR(160),FI$1)),FIND(CHAR(160),SUBSTITUTE($O101,\"}\",CHAR(160),FI$1))-FIND(CHAR(160),SUBSTITUTE($O101,\"{\",CHAR(160),FI$1))+1),\"\")","v":""},{"$f":"IFERROR(MID($O101,FIND(CHAR(160),SUBSTITUTE($O101,\"{\",CHAR(160),FJ$1)),FIND(CHAR(160),SUBSTITUTE($O101,\"}\",CHAR(160),FJ$1))-FIND(CHAR(160),SUBSTITUTE($O101,\"{\",CHAR(160),FJ$1))+1),\"\")","v":""},{"$f":"IFERROR(MID($O101,FIND(CHAR(160),SUBSTITUTE($O101,\"{\",CHAR(160),FK$1)),FIND(CHAR(160),SUBSTITUTE($O101,\"}\",CHAR(160),FK$1))-FIND(CHAR(160),SUBSTITUTE($O101,\"{\",CHAR(160),FK$1))+1),\"\")","v":""},{"$f":"IFERROR(MID($O101,FIND(CHAR(160),SUBSTITUTE($O101,\"{\",CHAR(160),FL$1)),FIND(CHAR(160),SUBSTITUTE($O101,\"}\",CHAR(160),FL$1))-FIND(CHAR(160),SUBSTITUTE($O101,\"{\",CHAR(160),FL$1))+1),\"\")","v":""},{"$f":"IFERROR(MID($R101,FIND(CHAR(160),SUBSTITUTE($R101,\"{\",CHAR(160),FM$1)),FIND(CHAR(160),SUBSTITUTE($R101,\"}\",CHAR(160),FM$1))-FIND(CHAR(160),SUBSTITUTE($R101,\"{\",CHAR(160),FM$1))+1),\"\")","v":""},{"$f":"IFERROR(MID($R101,FIND(CHAR(160),SUBSTITUTE($R101,\"{\",CHAR(160),FN$1)),FIND(CHAR(160),SUBSTITUTE($R101,\"}\",CHAR(160),FN$1))-FIND(CHAR(160),SUBSTITUTE($R101,\"{\",CHAR(160),FN$1))+1),\"\")","v":""},{"$f":"IFERROR(MID($R101,FIND(CHAR(160),SUBSTITUTE($R101,\"{\",CHAR(160),FO$1)),FIND(CHAR(160),SUBSTITUTE($R101,\"}\",CHAR(160),FO$1))-FIND(CHAR(160),SUBSTITUTE($R101,\"{\",CHAR(160),FO$1))+1),\"\")","v":""},{"$f":"IFERROR(MID($R101,FIND(CHAR(160),SUBSTITUTE($R101,\"{\",CHAR(160),FP$1)),FIND(CHAR(160),SUBSTITUTE($R101,\"}\",CHAR(160),FP$1))-FIND(CHAR(160),SUBSTITUTE($R101,\"{\",CHAR(160),FP$1))+1),\"\")","v":""},{"$f":"IFERROR(MID($R101,FIND(CHAR(160),SUBSTITUTE($R101,\"{\",CHAR(160),FQ$1)),FIND(CHAR(160),SUBSTITUTE($R101,\"}\",CHAR(160),FQ$1))-FIND(CHAR(160),SUBSTITUTE($R101,\"{\",CHAR(160),FQ$1))+1),\"\")","v":""},{"$f":"IFERROR(MID($R101,FIND(CHAR(160),SUBSTITUTE($R101,\"{\",CHAR(160),FR$1)),FIND(CHAR(160),SUBSTITUTE($R101,\"}\",CHAR(160),FR$1))-FIND(CHAR(160),SUBSTITUTE($R101,\"{\",CHAR(160),FR$1))+1),\"\")","v":""},{"$f":"IFERROR(MID($R101,FIND(CHAR(160),SUBSTITUTE($R101,\"{\",CHAR(160),FS$1)),FIND(CHAR(160),SUBSTITUTE($R101,\"}\",CHAR(160),FS$1))-FIND(CHAR(160),SUBSTITUTE($R101,\"{\",CHAR(160),FS$1))+1),\"\")","v":""},{"$f":"IFERROR(MID($R101,FIND(CHAR(160),SUBSTITUTE($R101,\"{\",CHAR(160),FT$1)),FIND(CHAR(160),SUBSTITUTE($R101,\"}\",CHAR(160),FT$1))-FIND(CHAR(160),SUBSTITUTE($R101,\"{\",CHAR(160),FT$1))+1),\"\")","v":""},{"$f":"IFERROR(MID($R101,FIND(CHAR(160),SUBSTITUTE($R101,\"{\",CHAR(160),FU$1)),FIND(CHAR(160),SUBSTITUTE($R101,\"}\",CHAR(160),FU$1))-FIND(CHAR(160),SUBSTITUTE($R101,\"{\",CHAR(160),FU$1))+1),\"\")","v":""},{"$f":"IFERROR(MID($R101,FIND(CHAR(160),SUBSTITUTE($R101,\"{\",CHAR(160),FV$1)),FIND(CHAR(160),SUBSTITUTE($R101,\"}\",CHAR(160),FV$1))-FIND(CHAR(160),SUBSTITUTE($R101,\"{\",CHAR(160),FV$1))+1),\"\")","v":""},{"$f":"IFERROR(MID($U101,FIND(CHAR(160),SUBSTITUTE($U101,\"{\",CHAR(160),FW$1)),FIND(CHAR(160),SUBSTITUTE($U101,\"}\",CHAR(160),FW$1))-FIND(CHAR(160),SUBSTITUTE($U101,\"{\",CHAR(160),FW$1))+1),\"\")","v":""},{"$f":"IFERROR(MID($U101,FIND(CHAR(160),SUBSTITUTE($U101,\"{\",CHAR(160),FX$1)),FIND(CHAR(160),SUBSTITUTE($U101,\"}\",CHAR(160),FX$1))-FIND(CHAR(160),SUBSTITUTE($U101,\"{\",CHAR(160),FX$1))+1),\"\")","v":""},{"$f":"IFERROR(MID($U101,FIND(CHAR(160),SUBSTITUTE($U101,\"{\",CHAR(160),FY$1)),FIND(CHAR(160),SUBSTITUTE($U101,\"}\",CHAR(160),FY$1))-FIND(CHAR(160),SUBSTITUTE($U101,\"{\",CHAR(160),FY$1))+1),\"\")","v":""},{"$f":"IFERROR(MID($U101,FIND(CHAR(160),SUBSTITUTE($U101,\"{\",CHAR(160),FZ$1)),FIND(CHAR(160),SUBSTITUTE($U101,\"}\",CHAR(160),FZ$1))-FIND(CHAR(160),SUBSTITUTE($U101,\"{\",CHAR(160),FZ$1))+1),\"\")","v":""},{"$f":"IFERROR(MID($U101,FIND(CHAR(160),SUBSTITUTE($U101,\"{\",CHAR(160),GA$1)),FIND(CHAR(160),SUBSTITUTE($U101,\"}\",CHAR(160),GA$1))-FIND(CHAR(160),SUBSTITUTE($U101,\"{\",CHAR(160),GA$1))+1),\"\")","v":""},{"$f":"IFERROR(MID($U101,FIND(CHAR(160),SUBSTITUTE($U101,\"{\",CHAR(160),GB$1)),FIND(CHAR(160),SUBSTITUTE($U101,\"}\",CHAR(160),GB$1))-FIND(CHAR(160),SUBSTITUTE($U101,\"{\",CHAR(160),GB$1))+1),\"\")","v":""},{"$f":"IFERROR(MID($U101,FIND(CHAR(160),SUBSTITUTE($U101,\"{\",CHAR(160),GC$1)),FIND(CHAR(160),SUBSTITUTE($U101,\"}\",CHAR(160),GC$1))-FIND(CHAR(160),SUBSTITUTE($U101,\"{\",CHAR(160),GC$1))+1),\"\")","v":""},{"$f":"IFERROR(MID($U101,FIND(CHAR(160),SUBSTITUTE($U101,\"{\",CHAR(160),GD$1)),FIND(CHAR(160),SUBSTITUTE($U101,\"}\",CHAR(160),GD$1))-FIND(CHAR(160),SUBSTITUTE($U101,\"{\",CHAR(160),GD$1))+1),\"\")","v":""},{"$f":"IFERROR(MID($U101,FIND(CHAR(160),SUBSTITUTE($U101,\"{\",CHAR(160),GE$1)),FIND(CHAR(160),SUBSTITUTE($U101,\"}\",CHAR(160),GE$1))-FIND(CHAR(160),SUBSTITUTE($U101,\"{\",CHAR(160),GE$1))+1),\"\")","v":""},{"$f":"IFERROR(MID($U101,FIND(CHAR(160),SUBSTITUTE($U101,\"{\",CHAR(160),GF$1)),FIND(CHAR(160),SUBSTITUTE($U101,\"}\",CHAR(160),GF$1))-FIND(CHAR(160),SUBSTITUTE($U101,\"{\",CHAR(160),GF$1))+1),\"\")","v":""},{"$f":"IFERROR(MID($V101,FIND(CHAR(160),SUBSTITUTE($V101,\"{\",CHAR(160),GG$1)),FIND(CHAR(160),SUBSTITUTE($V101,\"}\",CHAR(160),GG$1))-FIND(CHAR(160),SUBSTITUTE($V101,\"{\",CHAR(160),GG$1))+1),\"\")","v":""},{"$f":"IFERROR(MID($V101,FIND(CHAR(160),SUBSTITUTE($V101,\"{\",CHAR(160),GH$1)),FIND(CHAR(160),SUBSTITUTE($V101,\"}\",CHAR(160),GH$1))-FIND(CHAR(160),SUBSTITUTE($V101,\"{\",CHAR(160),GH$1))+1),\"\")","v":""},{"$f":"IFERROR(MID($V101,FIND(CHAR(160),SUBSTITUTE($V101,\"{\",CHAR(160),GI$1)),FIND(CHAR(160),SUBSTITUTE($V101,\"}\",CHAR(160),GI$1))-FIND(CHAR(160),SUBSTITUTE($V101,\"{\",CHAR(160),GI$1))+1),\"\")","v":""},{"$f":"IFERROR(MID($V101,FIND(CHAR(160),SUBSTITUTE($V101,\"{\",CHAR(160),GJ$1)),FIND(CHAR(160),SUBSTITUTE($V101,\"}\",CHAR(160),GJ$1))-FIND(CHAR(160),SUBSTITUTE($V101,\"{\",CHAR(160),GJ$1))+1),\"\")","v":""},{"$f":"IFERROR(MID($V101,FIND(CHAR(160),SUBSTITUTE($V101,\"{\",CHAR(160),GK$1)),FIND(CHAR(160),SUBSTITUTE($V101,\"}\",CHAR(160),GK$1))-FIND(CHAR(160),SUBSTITUTE($V101,\"{\",CHAR(160),GK$1))+1),\"\")","v":""},{"$f":"IFERROR(MID($V101,FIND(CHAR(160),SUBSTITUTE($V101,\"{\",CHAR(160),GL$1)),FIND(CHAR(160),SUBSTITUTE($V101,\"}\",CHAR(160),GL$1))-FIND(CHAR(160),SUBSTITUTE($V101,\"{\",CHAR(160),GL$1))+1),\"\")","v":""},{"$f":"IFERROR(MID($V101,FIND(CHAR(160),SUBSTITUTE($V101,\"{\",CHAR(160),GM$1)),FIND(CHAR(160),SUBSTITUTE($V101,\"}\",CHAR(160),GM$1))-FIND(CHAR(160),SUBSTITUTE($V101,\"{\",CHAR(160),GM$1))+1),\"\")","v":""},{"$f":"IFERROR(MID($V101,FIND(CHAR(160),SUBSTITUTE($V101,\"{\",CHAR(160),GN$1)),FIND(CHAR(160),SUBSTITUTE($V101,\"}\",CHAR(160),GN$1))-FIND(CHAR(160),SUBSTITUTE($V101,\"{\",CHAR(160),GN$1))+1),\"\")","v":""},{"$f":"IFERROR(MID($V101,FIND(CHAR(160),SUBSTITUTE($V101,\"{\",CHAR(160),GO$1)),FIND(CHAR(160),SUBSTITUTE($V101,\"}\",CHAR(160),GO$1))-FIND(CHAR(160),SUBSTITUTE($V101,\"{\",CHAR(160),GO$1))+1),\"\")","v":""},{"$f":"IFERROR(MID($V101,FIND(CHAR(160),SUBSTITUTE($V101,\"{\",CHAR(160),GP$1)),FIND(CHAR(160),SUBSTITUTE($V101,\"}\",CHAR(160),GP$1))-FIND(CHAR(160),SUBSTITUTE($V101,\"{\",CHAR(160),GP$1))+1),\"\")","v":""},{"$f":"IFERROR(MID($W101,FIND(CHAR(160),SUBSTITUTE($W101,\"{\",CHAR(160),GQ$1)),FIND(CHAR(160),SUBSTITUTE($W101,\"}\",CHAR(160),GQ$1))-FIND(CHAR(160),SUBSTITUTE($W101,\"{\",CHAR(160),GQ$1))+1),\"\")","v":""},{"$f":"IFERROR(MID($W101,FIND(CHAR(160),SUBSTITUTE($W101,\"{\",CHAR(160),GR$1)),FIND(CHAR(160),SUBSTITUTE($W101,\"}\",CHAR(160),GR$1))-FIND(CHAR(160),SUBSTITUTE($W101,\"{\",CHAR(160),GR$1))+1),\"\")","v":""},{"$f":"IFERROR(MID($W101,FIND(CHAR(160),SUBSTITUTE($W101,\"{\",CHAR(160),GS$1)),FIND(CHAR(160),SUBSTITUTE($W101,\"}\",CHAR(160),GS$1))-FIND(CHAR(160),SUBSTITUTE($W101,\"{\",CHAR(160),GS$1))+1),\"\")","v":""},{"$f":"IFERROR(MID($W101,FIND(CHAR(160),SUBSTITUTE($W101,\"{\",CHAR(160),GT$1)),FIND(CHAR(160),SUBSTITUTE($W101,\"}\",CHAR(160),GT$1))-FIND(CHAR(160),SUBSTITUTE($W101,\"{\",CHAR(160),GT$1))+1),\"\")","v":""},{"$f":"IFERROR(MID($W101,FIND(CHAR(160),SUBSTITUTE($W101,\"{\",CHAR(160),GU$1)),FIND(CHAR(160),SUBSTITUTE($W101,\"}\",CHAR(160),GU$1))-FIND(CHAR(160),SUBSTITUTE($W101,\"{\",CHAR(160),GU$1))+1),\"\")","v":""},{"$f":"IFERROR(MID($W101,FIND(CHAR(160),SUBSTITUTE($W101,\"{\",CHAR(160),GV$1)),FIND(CHAR(160),SUBSTITUTE($W101,\"}\",CHAR(160),GV$1))-FIND(CHAR(160),SUBSTITUTE($W101,\"{\",CHAR(160),GV$1))+1),\"\")","v":""},{"$f":"IFERROR(MID($W101,FIND(CHAR(160),SUBSTITUTE($W101,\"{\",CHAR(160),GW$1)),FIND(CHAR(160),SUBSTITUTE($W101,\"}\",CHAR(160),GW$1))-FIND(CHAR(160),SUBSTITUTE($W101,\"{\",CHAR(160),GW$1))+1),\"\")","v":""},{"$f":"IFERROR(MID($W101,FIND(CHAR(160),SUBSTITUTE($W101,\"{\",CHAR(160),GX$1)),FIND(CHAR(160),SUBSTITUTE($W101,\"}\",CHAR(160),GX$1))-FIND(CHAR(160),SUBSTITUTE($W101,\"{\",CHAR(160),GX$1))+1),\"\")","v":""},{"$f":"IFERROR(MID($W101,FIND(CHAR(160),SUBSTITUTE($W101,\"{\",CHAR(160),GY$1)),FIND(CHAR(160),SUBSTITUTE($W101,\"}\",CHAR(160),GY$1))-FIND(CHAR(160),SUBSTITUTE($W101,\"{\",CHAR(160),GY$1))+1),\"\")","v":""},{"$f":"IFERROR(MID($W101,FIND(CHAR(160),SUBSTITUTE($W101,\"{\",CHAR(160),GZ$1)),FIND(CHAR(160),SUBSTITUTE($W101,\"}\",CHAR(160),GZ$1))-FIND(CHAR(160),SUBSTITUTE($W101,\"{\",CHAR(160),GZ$1))+1),\"\")","v":""},{"$f":"IFERROR(MID($X101,FIND(CHAR(160),SUBSTITUTE($X101,\"{\",CHAR(160),HA$1)),FIND(CHAR(160),SUBSTITUTE($X101,\"}\",CHAR(160),HA$1))-FIND(CHAR(160),SUBSTITUTE($X101,\"{\",CHAR(160),HA$1))+1),\"\")","v":""},{"$f":"IFERROR(MID($X101,FIND(CHAR(160),SUBSTITUTE($X101,\"{\",CHAR(160),HB$1)),FIND(CHAR(160),SUBSTITUTE($X101,\"}\",CHAR(160),HB$1))-FIND(CHAR(160),SUBSTITUTE($X101,\"{\",CHAR(160),HB$1))+1),\"\")","v":""},{"$f":"IFERROR(MID($X101,FIND(CHAR(160),SUBSTITUTE($X101,\"{\",CHAR(160),HC$1)),FIND(CHAR(160),SUBSTITUTE($X101,\"}\",CHAR(160),HC$1))-FIND(CHAR(160),SUBSTITUTE($X101,\"{\",CHAR(160),HC$1))+1),\"\")","v":""},{"$f":"IFERROR(MID($X101,FIND(CHAR(160),SUBSTITUTE($X101,\"{\",CHAR(160),HD$1)),FIND(CHAR(160),SUBSTITUTE($X101,\"}\",CHAR(160),HD$1))-FIND(CHAR(160),SUBSTITUTE($X101,\"{\",CHAR(160),HD$1))+1),\"\")","v":""},{"$f":"IFERROR(MID($X101,FIND(CHAR(160),SUBSTITUTE($X101,\"{\",CHAR(160),HE$1)),FIND(CHAR(160),SUBSTITUTE($X101,\"}\",CHAR(160),HE$1))-FIND(CHAR(160),SUBSTITUTE($X101,\"{\",CHAR(160),HE$1))+1),\"\")","v":""},{"$f":"IFERROR(MID($X101,FIND(CHAR(160),SUBSTITUTE($X101,\"{\",CHAR(160),HF$1)),FIND(CHAR(160),SUBSTITUTE($X101,\"}\",CHAR(160),HF$1))-FIND(CHAR(160),SUBSTITUTE($X101,\"{\",CHAR(160),HF$1))+1),\"\")","v":""},{"$f":"IFERROR(MID($X101,FIND(CHAR(160),SUBSTITUTE($X101,\"{\",CHAR(160),HG$1)),FIND(CHAR(160),SUBSTITUTE($X101,\"}\",CHAR(160),HG$1))-FIND(CHAR(160),SUBSTITUTE($X101,\"{\",CHAR(160),HG$1))+1),\"\")","v":""},{"$f":"IFERROR(MID($X101,FIND(CHAR(160),SUBSTITUTE($X101,\"{\",CHAR(160),HH$1)),FIND(CHAR(160),SUBSTITUTE($X101,\"}\",CHAR(160),HH$1))-FIND(CHAR(160),SUBSTITUTE($X101,\"{\",CHAR(160),HH$1))+1),\"\")","v":""},{"$f":"IFERROR(MID($X101,FIND(CHAR(160),SUBSTITUTE($X101,\"{\",CHAR(160),HI$1)),FIND(CHAR(160),SUBSTITUTE($X101,\"}\",CHAR(160),HI$1))-FIND(CHAR(160),SUBSTITUTE($X101,\"{\",CHAR(160),HI$1))+1),\"\")","v":""},{"$f":"IFERROR(MID($X101,FIND(CHAR(160),SUBSTITUTE($X101,\"{\",CHAR(160),HJ$1)),FIND(CHAR(160),SUBSTITUTE($X101,\"}\",CHAR(160),HJ$1))-FIND(CHAR(160),SUBSTITUTE($X101,\"{\",CHAR(160),HJ$1))+1),\"\")","v":""},{"$f":"IFERROR(MID($Y101,FIND(CHAR(160),SUBSTITUTE($Y101,\"{\",CHAR(160),HK$1)),FIND(CHAR(160),SUBSTITUTE($Y101,\"}\",CHAR(160),HK$1))-FIND(CHAR(160),SUBSTITUTE($Y101,\"{\",CHAR(160),HK$1))+1),\"\")","v":"{Capacity (MBTUH)}"},{"$f":"IFERROR(MID($Y101,FIND(CHAR(160),SUBSTITUTE($Y101,\"{\",CHAR(160),HL$1)),FIND(CHAR(160),SUBSTITUTE($Y101,\"}\",CHAR(160),HL$1))-FIND(CHAR(160),SUBSTITUTE($Y101,\"{\",CHAR(160),HL$1))+1),\"\")","v":"{Economizer Type}"},{"$f":"IFERROR(MID($Y101,FIND(CHAR(160),SUBSTITUTE($Y101,\"{\",CHAR(160),HM$1)),FIND(CHAR(160),SUBSTITUTE($Y101,\"}\",CHAR(160),HM$1))-FIND(CHAR(160),SUBSTITUTE($Y101,\"{\",CHAR(160),HM$1))+1),\"\")","v":""},{"$f":"IFERROR(MID($Y101,FIND(CHAR(160),SUBSTITUTE($Y101,\"{\",CHAR(160),HN$1)),FIND(CHAR(160),SUBSTITUTE($Y101,\"}\",CHAR(160),HN$1))-FIND(CHAR(160),SUBSTITUTE($Y101,\"{\",CHAR(160),HN$1))+1),\"\")","v":""},{"$f":"IFERROR(MID($Y101,FIND(CHAR(160),SUBSTITUTE($Y101,\"{\",CHAR(160),HO$1)),FIND(CHAR(160),SUBSTITUTE($Y101,\"}\",CHAR(160),HO$1))-FIND(CHAR(160),SUBSTITUTE($Y101,\"{\",CHAR(160),HO$1))+1),\"\")","v":""},{"$f":"IFERROR(MID($Y101,FIND(CHAR(160),SUBSTITUTE($Y101,\"{\",CHAR(160),HP$1)),FIND(CHAR(160),SUBSTITUTE($Y101,\"}\",CHAR(160),HP$1))-FIND(CHAR(160),SUBSTITUTE($Y101,\"{\",CHAR(160),HP$1))+1),\"\")","v":""},{"$f":"IFERROR(MID($Y101,FIND(CHAR(160),SUBSTITUTE($Y101,\"{\",CHAR(160),HQ$1)),FIND(CHAR(160),SUBSTITUTE($Y101,\"}\",CHAR(160),HQ$1))-FIND(CHAR(160),SUBSTITUTE($Y101,\"{\",CHAR(160),HQ$1))+1),\"\")","v":""},{"$f":"IFERROR(MID($Y101,FIND(CHAR(160),SUBSTITUTE($Y101,\"{\",CHAR(160),HR$1)),FIND(CHAR(160),SUBSTITUTE($Y101,\"}\",CHAR(160),HR$1))-FIND(CHAR(160),SUBSTITUTE($Y101,\"{\",CHAR(160),HR$1))+1),\"\")","v":""},{"$f":"IFERROR(MID($Y101,FIND(CHAR(160),SUBSTITUTE($Y101,\"{\",CHAR(160),HS$1)),FIND(CHAR(160),SUBSTITUTE($Y101,\"}\",CHAR(160),HS$1))-FIND(CHAR(160),SUBSTITUTE($Y101,\"{\",CHAR(160),HS$1))+1),\"\")","v":"{Existing Fuel}"},{"$f":"IFERROR(MID($Y101,FIND(CHAR(160),SUBSTITUTE($Y101,\"{\",CHAR(160),HT$1)),FIND(CHAR(160),SUBSTITUTE($Y101,\"}\",CHAR(160),HT$1))-FIND(CHAR(160),SUBSTITUTE($Y101,\"{\",CHAR(160),HT$1))+1),\"\")","v":"{Measure:Quantity}"},{"$f":"IFERROR(MID($Z101,FIND(CHAR(160),SUBSTITUTE($Z101,\"{\",CHAR(160),HU$1)),FIND(CHAR(160),SUBSTITUTE($Z101,\"}\",CHAR(160),HU$1))-FIND(CHAR(160),SUBSTITUTE($Z101,\"{\",CHAR(160),HU$1))+1),\"\")","v":""},{"$f":"IFERROR(MID($Z101,FIND(CHAR(160),SUBSTITUTE($Z101,\"{\",CHAR(160),HV$1)),FIND(CHAR(160),SUBSTITUTE($Z101,\"}\",CHAR(160),HV$1))-FIND(CHAR(160),SUBSTITUTE($Z101,\"{\",CHAR(160),HV$1))+1),\"\")","v":""},{"$f":"IFERROR(MID($Z101,FIND(CHAR(160),SUBSTITUTE($Z101,\"{\",CHAR(160),HW$1)),FIND(CHAR(160),SUBSTITUTE($Z101,\"}\",CHAR(160),HW$1))-FIND(CHAR(160),SUBSTITUTE($Z101,\"{\",CHAR(160),HW$1))+1),\"\")","v":""},{"$f":"IFERROR(MID($Z101,FIND(CHAR(160),SUBSTITUTE($Z101,\"{\",CHAR(160),HX$1)),FIND(CHAR(160),SUBSTITUTE($Z101,\"}\",CHAR(160),HX$1))-FIND(CHAR(160),SUBSTITUTE($Z101,\"{\",CHAR(160),HX$1))+1),\"\")","v":""},{"$f":"IFERROR(MID($Z101,FIND(CHAR(160),SUBSTITUTE($Z101,\"{\",CHAR(160),HY$1)),FIND(CHAR(160),SUBSTITUTE($Z101,\"}\",CHAR(160),HY$1))-FIND(CHAR(160),SUBSTITUTE($Z101,\"{\",CHAR(160),HY$1))+1),\"\")","v":""},{"$f":"IFERROR(MID($Z101,FIND(CHAR(160),SUBSTITUTE($Z101,\"{\",CHAR(160),HZ$1)),FIND(CHAR(160),SUBSTITUTE($Z101,\"}\",CHAR(160),HZ$1))-FIND(CHAR(160),SUBSTITUTE($Z101,\"{\",CHAR(160),HZ$1))+1),\"\")","v":""},{"$f":"IFERROR(MID($Z101,FIND(CHAR(160),SUBSTITUTE($Z101,\"{\",CHAR(160),IA$1)),FIND(CHAR(160),SUBSTITUTE($Z101,\"}\",CHAR(160),IA$1))-FIND(CHAR(160),SUBSTITUTE($Z101,\"{\",CHAR(160),IA$1))+1),\"\")","v":""},{"$f":"IFERROR(MID($Z101,FIND(CHAR(160),SUBSTITUTE($Z101,\"{\",CHAR(160),IB$1)),FIND(CHAR(160),SUBSTITUTE($Z101,\"}\",CHAR(160),IB$1))-FIND(CHAR(160),SUBSTITUTE($Z101,\"{\",CHAR(160),IB$1))+1),\"\")","v":""},{"$f":"IFERROR(MID($Z101,FIND(CHAR(160),SUBSTITUTE($Z101,\"{\",CHAR(160),IC$1)),FIND(CHAR(160),SUBSTITUTE($Z101,\"}\",CHAR(160),IC$1))-FIND(CHAR(160),SUBSTITUTE($Z101,\"{\",CHAR(160),IC$1))+1),\"\")","v":""},{"$f":"IFERROR(MID($Z101,FIND(CHAR(160),SUBSTITUTE($Z101,\"{\",CHAR(160),ID$1)),FIND(CHAR(160),SUBSTITUTE($Z101,\"}\",CHAR(160),ID$1))-FIND(CHAR(160),SUBSTITUTE($Z101,\"{\",CHAR(160),ID$1))+1),\"\")","v":""},{"$f":"IFERROR(MID($AA101,FIND(CHAR(160),SUBSTITUTE($AA101,\"{\",CHAR(160),IE$1)),FIND(CHAR(160),SUBSTITUTE($AA101,\"}\",CHAR(160),IE$1))-FIND(CHAR(160),SUBSTITUTE($AA101,\"{\",CHAR(160),IE$1))+1),\"\")","v":""},{"$f":"IFERROR(MID($AA101,FIND(CHAR(160),SUBSTITUTE($AA101,\"{\",CHAR(160),IF$1)),FIND(CHAR(160),SUBSTITUTE($AA101,\"}\",CHAR(160),IF$1))-FIND(CHAR(160),SUBSTITUTE($AA101,\"{\",CHAR(160),IF$1))+1),\"\")","v":""},{"$f":"IFERROR(MID($AA101,FIND(CHAR(160),SUBSTITUTE($AA101,\"{\",CHAR(160),IG$1)),FIND(CHAR(160),SUBSTITUTE($AA101,\"}\",CHAR(160),IG$1))-FIND(CHAR(160),SUBSTITUTE($AA101,\"{\",CHAR(160),IG$1))+1),\"\")","v":""},{"$f":"IFERROR(MID($AA101,FIND(CHAR(160),SUBSTITUTE($AA101,\"{\",CHAR(160),IH$1)),FIND(CHAR(160),SUBSTITUTE($AA101,\"}\",CHAR(160),IH$1))-FIND(CHAR(160),SUBSTITUTE($AA101,\"{\",CHAR(160),IH$1))+1),\"\")","v":""},{"$f":"IFERROR(MID($AA101,FIND(CHAR(160),SUBSTITUTE($AA101,\"{\",CHAR(160),II$1)),FIND(CHAR(160),SUBSTITUTE($AA101,\"}\",CHAR(160),II$1))-FIND(CHAR(160),SUBSTITUTE($AA101,\"{\",CHAR(160),II$1))+1),\"\")","v":""},{"$f":"IFERROR(MID($AA101,FIND(CHAR(160),SUBSTITUTE($AA101,\"{\",CHAR(160),IJ$1)),FIND(CHAR(160),SUBSTITUTE($AA101,\"}\",CHAR(160),IJ$1))-FIND(CHAR(160),SUBSTITUTE($AA101,\"{\",CHAR(160),IJ$1))+1),\"\")","v":""},{"$f":"IFERROR(MID($AA101,FIND(CHAR(160),SUBSTITUTE($AA101,\"{\",CHAR(160),IK$1)),FIND(CHAR(160),SUBSTITUTE($AA101,\"}\",CHAR(160),IK$1))-FIND(CHAR(160),SUBSTITUTE($AA101,\"{\",CHAR(160),IK$1))+1),\"\")","v":""},{"$f":"IFERROR(MID($AA101,FIND(CHAR(160),SUBSTITUTE($AA101,\"{\",CHAR(160),IL$1)),FIND(CHAR(160),SUBSTITUTE($AA101,\"}\",CHAR(160),IL$1))-FIND(CHAR(160),SUBSTITUTE($AA101,\"{\",CHAR(160),IL$1))+1),\"\")","v":""},{"$f":"IFERROR(MID($AA101,FIND(CHAR(160),SUBSTITUTE($AA101,\"{\",CHAR(160),IM$1)),FIND(CHAR(160),SUBSTITUTE($AA101,\"}\",CHAR(160),IM$1))-FIND(CHAR(160),SUBSTITUTE($AA101,\"{\",CHAR(160),IM$1))+1),\"\")","v":""},{"$f":"IFERROR(MID($AA101,FIND(CHAR(160),SUBSTITUTE($AA101,\"{\",CHAR(160),IN$1)),FIND(CHAR(160),SUBSTITUTE($AA101,\"}\",CHAR(160),IN$1))-FIND(CHAR(160),SUBSTITUTE($AA101,\"{\",CHAR(160),IN$1))+1),\"\")","v":""},{"$f":"IFERROR(MID($AB101,FIND(CHAR(160),SUBSTITUTE($AB101,\"{\",CHAR(160),IO$1)),FIND(CHAR(160),SUBSTITUTE($AB101,\"}\",CHAR(160),IO$1))-FIND(CHAR(160),SUBSTITUTE($AB101,\"{\",CHAR(160),IO$1))+1),\"\")","v":""},{"$f":"IFERROR(MID($AB101,FIND(CHAR(160),SUBSTITUTE($AB101,\"{\",CHAR(160),IP$1)),FIND(CHAR(160),SUBSTITUTE($AB101,\"}\",CHAR(160),IP$1))-FIND(CHAR(160),SUBSTITUTE($AB101,\"{\",CHAR(160),IP$1))+1),\"\")","v":""},{"$f":"IFERROR(MID($AB101,FIND(CHAR(160),SUBSTITUTE($AB101,\"{\",CHAR(160),IQ$1)),FIND(CHAR(160),SUBSTITUTE($AB101,\"}\",CHAR(160),IQ$1))-FIND(CHAR(160),SUBSTITUTE($AB101,\"{\",CHAR(160),IQ$1))+1),\"\")","v":""},{"$f":"IFERROR(MID($AB101,FIND(CHAR(160),SUBSTITUTE($AB101,\"{\",CHAR(160),IR$1)),FIND(CHAR(160),SUBSTITUTE($AB101,\"}\",CHAR(160),IR$1))-FIND(CHAR(160),SUBSTITUTE($AB101,\"{\",CHAR(160),IR$1))+1),\"\")","v":""},{"$f":"IFERROR(MID($AB101,FIND(CHAR(160),SUBSTITUTE($AB101,\"{\",CHAR(160),IS$1)),FIND(CHAR(160),SUBSTITUTE($AB101,\"}\",CHAR(160),IS$1))-FIND(CHAR(160),SUBSTITUTE($AB101,\"{\",CHAR(160),IS$1))+1),\"\")","v":""},{"$f":"IFERROR(MID($AB101,FIND(CHAR(160),SUBSTITUTE($AB101,\"{\",CHAR(160),IT$1)),FIND(CHAR(160),SUBSTITUTE($AB101,\"}\",CHAR(160),IT$1))-FIND(CHAR(160),SUBSTITUTE($AB101,\"{\",CHAR(160),IT$1))+1),\"\")","v":""},{"$f":"IFERROR(MID($AB101,FIND(CHAR(160),SUBSTITUTE($AB101,\"{\",CHAR(160),IU$1)),FIND(CHAR(160),SUBSTITUTE($AB101,\"}\",CHAR(160),IU$1))-FIND(CHAR(160),SUBSTITUTE($AB101,\"{\",CHAR(160),IU$1))+1),\"\")","v":""},{"$f":"IFERROR(MID($AB101,FIND(CHAR(160),SUBSTITUTE($AB101,\"{\",CHAR(160),IV$1)),FIND(CHAR(160),SUBSTITUTE($AB101,\"}\",CHAR(160),IV$1))-FIND(CHAR(160),SUBSTITUTE($AB101,\"{\",CHAR(160),IV$1))+1),\"\")","v":""},{"$f":"IFERROR(MID($AB101,FIND(CHAR(160),SUBSTITUTE($AB101,\"{\",CHAR(160),IW$1)),FIND(CHAR(160),SUBSTITUTE($AB101,\"}\",CHAR(160),IW$1))-FIND(CHAR(160),SUBSTITUTE($AB101,\"{\",CHAR(160),IW$1))+1),\"\")","v":""},{"$f":"IFERROR(MID($AB101,FIND(CHAR(160),SUBSTITUTE($AB101,\"{\",CHAR(160),IX$1)),FIND(CHAR(160),SUBSTITUTE($AB101,\"}\",CHAR(160),IX$1))-FIND(CHAR(160),SUBSTITUTE($AB101,\"{\",CHAR(160),IX$1))+1),\"\")","v":""},null,{"$f":"10-COUNTIF(DU101:ED101,\"\")","v":4}]
["C&I HVAC - Oil","H2L Hot Water Boiler >500MBtu/h","H2L","2021-07-01","2022-06-30","Calculated","{Measure:Quantity}*if({Fuel}=0,if({Equipment Capacity (MBtu/h)}<500,0,if({Equipment Capacity (MBtu/h)}<1000,1039,if({Equipment Capacity (MBtu/h)}<2500,7612,8416))),0)",0,"Calculated","{Measure:Quantity}*if({Fuel}=0,if({Equipment Capacity (MBtu/h)}<500,0,if({Equipment Capacity (MBtu/h)}<1000,800,if({Equipment Capacity (MBtu/h)}<2500,5500,6500))),0)",0,"2021-05-25","2022-06-30","Calculated",null,null,null,null,null,null,null,null,null,null,"if({Fuel}=0,{Measure:Quantity}*(({Design Load (Btu/h)}/({Indoor Design Temp (oF)}-{Outdoor Design Temp (oF)})*186648/1000000)*(100/82-100/{Unit Efficiency - AFUE or Thermal Efficiency})),0)",null,null,null,"2021-05-24","2022-06-30",24,0,0,1,0,0,0,1,1,0,0.52,1.6E-2,null,{"$f":"DU102","v":"{Measure:Quantity}"},1,{"$f":"DV102","v":"{Fuel}"},0,{"$f":"DW102","v":"{Equipment Capacity (MBtu/h)}"},861,{"$f":"DX102","v":"{Design Load (Btu/h)}"},904250,{"$f":"DY102","v":"{Indoor Design Temp (oF)}"},69,{"$f":"DZ102","v":"{Outdoor Design Temp (oF)}"},-2,{"$f":"EA102","v":"{Unit Efficiency - AFUE or Thermal Efficiency}"},86.1,{"$f":"EB102","v":""},null,{"$f":"EC102","v":""},null,{"$f":"ED102","v":""},null,0,0,0,0,0,0,0,0,0,0,{"$f":"IF(AU102=0,AS102*((AY102/(BA102-BC102)*186648/1000000)*(100/82-100/BE102)),0)","v":138.04489866025412},0,0,0,null,"Res","RGGI DR",{"$f":"Benefits(BL102,BR102,BS102,BT102,BU102,BV102,BW102,BX102,BY102,BZ102,AE102,AH102,AI102,AJ102,AK102,AL102,AM102,AN102,AO102,AP102,CA102,CB102)","v":0},0,0,81295.331891231661,0,0,0,0,0,{"$f":"SUMPRODUCT(CC102:CK102,--(CC102:CK102>0))","v":81295.331891231661},{"$f":"-SUMPRODUCT(CC102:CK102,--(CC102:CK102<0))","v":0},null,{"$f":"AS102*IF(AU102=0,IF(AW102<500,0,IF(AW102<1000,1039,IF(AW102<2500,7612,8416))),0)","v":1039},null,null,{"$f":"CM102+CO102","v":1039},{"$f":"IF(NetOrGross=\"Net\",(1-AO102+AP102),1)","v":1},{"$f":"(SUMPRODUCT(CC102:CJ102,--(CC102:CJ102>0))+CN102)*CS102/((-SUMPRODUCT(CC102:CJ102,--(CC102:CJ102<0))+MAX(CO102,CV102)+CP102+CQ102)*CS102+IF(FRIncentives=\"Yes\",CV102*(1-CS102),0))","v":78.243822801955403},1,{"$f":"AS102*IF(AU102=0,IF(AW102<500,0,IF(AW102<1000,800,IF(AW102<2500,5500,6500))),0)","v":800},null,"RGGI","y",null,{"$f":"IF(F102=\"Manual Entry\",\"Manual\",IF(G102=\"\",0,\"X=\"&SUBSTITUTE(SUBSTITUTE(SUBSTITUTE(SUBSTITUTE(SUBSTITUTE(SUBSTITUTE(SUBSTITUTE(SUBSTITUTE(SUBSTITUTE(SUBSTITUTE(SUBSTITUTE(SUBSTITUTE(G102,$ED102,$ED$2&ROW($ED102)),$EC102,$EC$2&ROW($EC102)),$EB102,$EB$2&ROW($EB102)),$EA102,$EA$2&ROW($EA102)),$DZ102,$DZ$2&ROW($DZ102)),$DY102,$DY$2&ROW($DY102)),$DX102,$DX$2&ROW($DX102)),$DW102,$DW$2&ROW($DW102)),$DV102,$DV$2&ROW($DV102)),$DU102,$DU$2&ROW($DU102)),$DT102,$DT$2&ROW($DT102)),$DS102,$DS$2&ROW($DS102))))","v":"X=AS102*if(AU102=0,if(AW102<500,0,if(AW102<1000,1039,if(AW102<2500,7612,8416))),0)"},{"$f":"IF(I102=\"Manual Entry\",\"Manual\",IF(J102=\"\",0,\"X=\"&SUBSTITUTE(SUBSTITUTE(SUBSTITUTE(SUBSTITUTE(SUBSTITUTE(SUBSTITUTE(SUBSTITUTE(SUBSTITUTE(SUBSTITUTE(SUBSTITUTE(SUBSTITUTE(SUBSTITUTE(J102,$ED102,$ED$2&ROW($ED102)),$EC102,$EC$2&ROW($EC102)),$EB102,$EB$2&ROW($EB102)),$EA102,$EA$2&ROW($EA102)),$DZ102,$DZ$2&ROW($DZ102)),$DY102,$DY$2&ROW($DY102)),$DX102,$DX$2&ROW($DX102)),$DW102,$DW$2&ROW($DW102)),$DV102,$DV$2&ROW($DV102)),$DU102,$DU$2&ROW($DU102)),$DT102,$DT$2&ROW($DT102)),$DS102,$DS$2&ROW($DS102))))","v":"X=AS102*if(AU102=0,if(AW102<500,0,if(AW102<1000,800,if(AW102<2500,5500,6500))),0)"},{"$f":"IF(O102=\"\",0,\"X=\"&SUBSTITUTE(SUBSTITUTE(SUBSTITUTE(SUBSTITUTE(SUBSTITUTE(SUBSTITUTE(SUBSTITUTE(SUBSTITUTE(SUBSTITUTE(SUBSTITUTE(SUBSTITUTE(SUBSTITUTE(O102,$ED102,$ED$2&ROW($ED102)),$EC102,$EC$2&ROW($EC102)),$EB102,$EB$2&ROW($EB102)),$EA102,$EA$2&ROW($EA102)),$DZ102,$DZ$2&ROW($DZ102)),$DY102,$DY$2&ROW($DY102)),$DX102,$DX$2&ROW($DX102)),$DW102,$DW$2&ROW($DW102)),$DV102,$DV$2&ROW($DV102)),$DU102,$DU$2&ROW($DU102)),$DT102,$DT$2&ROW($DT102)),$DS102,$DS$2&ROW($DS102)))","v":0},{"$f":"IF(P102=\"\",0,\"X=\"&SUBSTITUTE(SUBSTITUTE(SUBSTITUTE(SUBSTITUTE(SUBSTITUTE(SUBSTITUTE(SUBSTITUTE(SUBSTITUTE(SUBSTITUTE(SUBSTITUTE(SUBSTITUTE(SUBSTITUTE(P102,$ED102,$ED$2&ROW($ED102)),$EC102,$EC$2&ROW($EC102)),$EB102,$EB$2&ROW($EB102)),$EA102,$EA$2&ROW($EA102)),$DZ102,$DZ$2&ROW($DZ102)),$DY102,$DY$2&ROW($DY102)),$DX102,$DX$2&ROW($DX102)),$DW102,$DW$2&ROW($DW102)),$DV102,$DV$2&ROW($DV102)),$DU102,$DU$2&ROW($DU102)),$DT102,$DT$2&ROW($DT102)),$DS102,$DS$2&ROW($DS102)))","v":0},{"$f":"IF(Q102=\"\",0,\"X=\"&SUBSTITUTE(SUBSTITUTE(SUBSTITUTE(SUBSTITUTE(SUBSTITUTE(SUBSTITUTE(SUBSTITUTE(SUBSTITUTE(SUBSTITUTE(SUBSTITUTE(SUBSTITUTE(SUBSTITUTE(Q102,$ED102,$ED$2&ROW($ED102)),$EC102,$EC$2&ROW($EC102)),$EB102,$EB$2&ROW($EB102)),$EA102,$EA$2&ROW($EA102)),$DZ102,$DZ$2&ROW($DZ102)),$DY102,$DY$2&ROW($DY102)),$DX102,$DX$2&ROW($DX102)),$DW102,$DW$2&ROW($DW102)),$DV102,$DV$2&ROW($DV102)),$DU102,$DU$2&ROW($DU102)),$DT102,$DT$2&ROW($DT102)),$DS102,$DS$2&ROW($DS102)))","v":0},{"$f":"IF(R102=\"\",0,\"X=\"&SUBSTITUTE(SUBSTITUTE(SUBSTITUTE(SUBSTITUTE(SUBSTITUTE(SUBSTITUTE(SUBSTITUTE(SUBSTITUTE(SUBSTITUTE(SUBSTITUTE(SUBSTITUTE(SUBSTITUTE(R102,$ED102,$ED$2&ROW($ED102)),$EC102,$EC$2&ROW($EC102)),$EB102,$EB$2&ROW($EB102)),$EA102,$EA$2&ROW($EA102)),$DZ102,$DZ$2&ROW($DZ102)),$DY102,$DY$2&ROW($DY102)),$DX102,$DX$2&ROW($DX102)),$DW102,$DW$2&ROW($DW102)),$DV102,$DV$2&ROW($DV102)),$DU102,$DU$2&ROW($DU102)),$DT102,$DT$2&ROW($DT102)),$DS102,$DS$2&ROW($DS102)))","v":0},{"$f":"IF(S102=\"\",0,\"X=\"&SUBSTITUTE(SUBSTITUTE(SUBSTITUTE(SUBSTITUTE(SUBSTITUTE(SUBSTITUTE(SUBSTITUTE(SUBSTITUTE(SUBSTITUTE(SUBSTITUTE(SUBSTITUTE(SUBSTITUTE(S102,$ED102,$ED$2&ROW($ED102)),$EC102,$EC$2&ROW($EC102)),$EB102,$EB$2&ROW($EB102)),$EA102,$EA$2&ROW($EA102)),$DZ102,$DZ$2&ROW($DZ102)),$DY102,$DY$2&ROW($DY102)),$DX102,$DX$2&ROW($DX102)),$DW102,$DW$2&ROW($DW102)),$DV102,$DV$2&ROW($DV102)),$DU102,$DU$2&ROW($DU102)),$DT102,$DT$2&ROW($DT102)),$DS102,$DS$2&ROW($DS102)))","v":0},{"$f":"IF(T102=\"\",0,\"X=\"&SUBSTITUTE(SUBSTITUTE(SUBSTITUTE(SUBSTITUTE(SUBSTITUTE(SUBSTITUTE(SUBSTITUTE(SUBSTITUTE(SUBSTITUTE(SUBSTITUTE(SUBSTITUTE(SUBSTITUTE(T102,$ED102,$ED$2&ROW($ED102)),$EC102,$EC$2&ROW($EC102)),$EB102,$EB$2&ROW($EB102)),$EA102,$EA$2&ROW($EA102)),$DZ102,$DZ$2&ROW($DZ102)),$DY102,$DY$2&ROW($DY102)),$DX102,$DX$2&ROW($DX102)),$DW102,$DW$2&ROW($DW102)),$DV102,$DV$2&ROW($DV102)),$DU102,$DU$2&ROW($DU102)),$DT102,$DT$2&ROW($DT102)),$DS102,$DS$2&ROW($DS102)))","v":0},{"$f":"IF(U102=\"\",0,\"X=\"&SUBSTITUTE(SUBSTITUTE(SUBSTITUTE(SUBSTITUTE(SUBSTITUTE(SUBSTITUTE(SUBSTITUTE(SUBSTITUTE(SUBSTITUTE(SUBSTITUTE(SUBSTITUTE(SUBSTITUTE(U102,$ED102,$ED$2&ROW($ED102)),$EC102,$EC$2&ROW($EC102)),$EB102,$EB$2&ROW($EB102)),$EA102,$EA$2&ROW($EA102)),$DZ102,$DZ$2&ROW($DZ102)),$DY102,$DY$2&ROW($DY102)),$DX102,$DX$2&ROW($DX102)),$DW102,$DW$2&ROW($DW102)),$DV102,$DV$2&ROW($DV102)),$DU102,$DU$2&ROW($DU102)),$DT102,$DT$2&ROW($DT102)),$DS102,$DS$2&ROW($DS102)))","v":0},{"$f":"IF(V102=\"\",0,\"X=\"&SUBSTITUTE(SUBSTITUTE(SUBSTITUTE(SUBSTITUTE(SUBSTITUTE(SUBSTITUTE(SUBSTITUTE(SUBSTITUTE(SUBSTITUTE(SUBSTITUTE(SUBSTITUTE(SUBSTITUTE(V102,$ED102,$ED$2&ROW($ED102)),$EC102,$EC$2&ROW($EC102)),$EB102,$EB$2&ROW($EB102)),$EA102,$EA$2&ROW($EA102)),$DZ102,$DZ$2&ROW($DZ102)),$DY102,$DY$2&ROW($DY102)),$DX102,$DX$2&ROW($DX102)),$DW102,$DW$2&ROW($DW102)),$DV102,$DV$2&ROW($DV102)),$DU102,$DU$2&ROW($DU102)),$DT102,$DT$2&ROW($DT102)),$DS102,$DS$2&ROW($DS102)))","v":0},{"$f":"IF(W102=\"\",0,\"X=\"&SUBSTITUTE(SUBSTITUTE(SUBSTITUTE(SUBSTITUTE(SUBSTITUTE(SUBSTITUTE(SUBSTITUTE(SUBSTITUTE(SUBSTITUTE(SUBSTITUTE(SUBSTITUTE(SUBSTITUTE(W102,$ED102,$ED$2&ROW($ED102)),$EC102,$EC$2&ROW($EC102)),$EB102,$EB$2&ROW($EB102)),$EA102,$EA$2&ROW($EA102)),$DZ102,$DZ$2&ROW($DZ102)),$DY102,$DY$2&ROW($DY102)),$DX102,$DX$2&ROW($DX102)),$DW102,$DW$2&ROW($DW102)),$DV102,$DV$2&ROW($DV102)),$DU102,$DU$2&ROW($DU102)),$DT102,$DT$2&ROW($DT102)),$DS102,$DS$2&ROW($DS102)))","v":0},{"$f":"IF(X102=\"\",0,\"X=\"&SUBSTITUTE(SUBSTITUTE(SUBSTITUTE(SUBSTITUTE(SUBSTITUTE(SUBSTITUTE(SUBSTITUTE(SUBSTITUTE(SUBSTITUTE(SUBSTITUTE(SUBSTITUTE(SUBSTITUTE(X102,$ED102,$ED$2&ROW($ED102)),$EC102,$EC$2&ROW($EC102)),$EB102,$EB$2&ROW($EB102)),$EA102,$EA$2&ROW($EA102)),$DZ102,$DZ$2&ROW($DZ102)),$DY102,$DY$2&ROW($DY102)),$DX102,$DX$2&ROW($DX102)),$DW102,$DW$2&ROW($DW102)),$DV102,$DV$2&ROW($DV102)),$DU102,$DU$2&ROW($DU102)),$DT102,$DT$2&ROW($DT102)),$DS102,$DS$2&ROW($DS102)))","v":0},{"$f":"IF(Y102=\"\",0,\"X=\"&SUBSTITUTE(SUBSTITUTE(SUBSTITUTE(SUBSTITUTE(SUBSTITUTE(SUBSTITUTE(SUBSTITUTE(SUBSTITUTE(SUBSTITUTE(SUBSTITUTE(SUBSTITUTE(SUBSTITUTE(Y102,$ED102,$ED$2&ROW($ED102)),$EC102,$EC$2&ROW($EC102)),$EB102,$EB$2&ROW($EB102)),$EA102,$EA$2&ROW($EA102)),$DZ102,$DZ$2&ROW($DZ102)),$DY102,$DY$2&ROW($DY102)),$DX102,$DX$2&ROW($DX102)),$DW102,$DW$2&ROW($DW102)),$DV102,$DV$2&ROW($DV102)),$DU102,$DU$2&ROW($DU102)),$DT102,$DT$2&ROW($DT102)),$DS102,$DS$2&ROW($DS102)))","v":"X=if(AU102=0,AS102*((AY102/(BA102-BC102)*186648/1000000)*(100/82-100/BE102)),0)"},{"$f":"IF(Z102=\"\",0,\"X=\"&SUBSTITUTE(SUBSTITUTE(SUBSTITUTE(SUBSTITUTE(SUBSTITUTE(SUBSTITUTE(SUBSTITUTE(SUBSTITUTE(SUBSTITUTE(SUBSTITUTE(SUBSTITUTE(SUBSTITUTE(Z102,$ED102,$ED$2&ROW($ED102)),$EC102,$EC$2&ROW($EC102)),$EB102,$EB$2&ROW($EB102)),$EA102,$EA$2&ROW($EA102)),$DZ102,$DZ$2&ROW($DZ102)),$DY102,$DY$2&ROW($DY102)),$DX102,$DX$2&ROW($DX102)),$DW102,$DW$2&ROW($DW102)),$DV102,$DV$2&ROW($DV102)),$DU102,$DU$2&ROW($DU102)),$DT102,$DT$2&ROW($DT102)),$DS102,$DS$2&ROW($DS102)))","v":0},{"$f":"IF(AA102=\"\",0,\"X=\"&SUBSTITUTE(SUBSTITUTE(SUBSTITUTE(SUBSTITUTE(SUBSTITUTE(SUBSTITUTE(SUBSTITUTE(SUBSTITUTE(SUBSTITUTE(SUBSTITUTE(SUBSTITUTE(SUBSTITUTE(AA102,$ED102,$ED$2&ROW($ED102)),$EC102,$EC$2&ROW($EC102)),$EB102,$EB$2&ROW($EB102)),$EA102,$EA$2&ROW($EA102)),$DZ102,$DZ$2&ROW($DZ102)),$DY102,$DY$2&ROW($DY102)),$DX102,$DX$2&ROW($DX102)),$DW102,$DW$2&ROW($DW102)),$DV102,$DV$2&ROW($DV102)),$DU102,$DU$2&ROW($DU102)),$DT102,$DT$2&ROW($DT102)),$DS102,$DS$2&ROW($DS102)))","v":0},{"$f":"IF(AB102=\"\",0,\"X=\"&SUBSTITUTE(SUBSTITUTE(SUBSTITUTE(SUBSTITUTE(SUBSTITUTE(SUBSTITUTE(SUBSTITUTE(SUBSTITUTE(SUBSTITUTE(SUBSTITUTE(SUBSTITUTE(SUBSTITUTE(AB102,$ED102,$ED$2&ROW($ED102)),$EC102,$EC$2&ROW($EC102)),$EB102,$EB$2&ROW($EB102)),$EA102,$EA$2&ROW($EA102)),$DZ102,$DZ$2&ROW($DZ102)),$DY102,$DY$2&ROW($DY102)),$DX102,$DX$2&ROW($DX102)),$DW102,$DW$2&ROW($DW102)),$DV102,$DV$2&ROW($DV102)),$DU102,$DU$2&ROW($DU102)),$DT102,$DT$2&ROW($DT102)),$DS102,$DS$2&ROW($DS102)))","v":0},null,null,"{Factor:WinterCF}","{Factor:SummerCF}",{"$f":"IFERROR(INDEX($EG102:$IV102,MATCH(0,COUNTIF($DR102:DT102,$EG102:$IV102),0)),\"\")","v":"{Measure:Quantity}"},{"$f":"IFERROR(INDEX($EG102:$IV102,MATCH(0,COUNTIF($DR102:DU102,$EG102:$IV102),0)),\"\")","v":"{Fuel}"},{"$f":"IFERROR(INDEX($EG102:$IV102,MATCH(0,COUNTIF($DR102:DV102,$EG102:$IV102),0)),\"\")","v":"{Equipment Capacity (MBtu/h)}"},{"$f":"IFERROR(INDEX($EG102:$IV102,MATCH(0,COUNTIF($DR102:DW102,$EG102:$IV102),0)),\"\")","v":"{Design Load (Btu/h)}"},{"$f":"IFERROR(INDEX($EG102:$IV102,MATCH(0,COUNTIF($DR102:DX102,$EG102:$IV102),0)),\"\")","v":"{Indoor Design Temp (oF)}"},{"$f":"IFERROR(INDEX($EG102:$IV102,MATCH(0,COUNTIF($DR102:DY102,$EG102:$IV102),0)),\"\")","v":"{Outdoor Design Temp (oF)}"},{"$f":"IFERROR(INDEX($EG102:$IV102,MATCH(0,COUNTIF($DR102:DZ102,$EG102:$IV102),0)),\"\")","v":"{Unit Efficiency - AFUE or Thermal Efficiency}"},{"$f":"IFERROR(INDEX($EG102:$IV102,MATCH(0,COUNTIF($DR102:EA102,$EG102:$IV102),0)),\"\")","v":""},{"$f":"IFERROR(INDEX($EG102:$IV102,MATCH(0,COUNTIF($DR102:EB102,$EG102:$IV102),0)),\"\")","v":""},{"$f":"IFERROR(INDEX($EG102:$IV102,MATCH(0,COUNTIF($DR102:EC102,$EG102:$IV102),0)),\"\")","v":""},null,null,{"$f":"IFERROR(MID($G102,FIND(CHAR(160),SUBSTITUTE($G102,\"{\",CHAR(160),EG$1)),FIND(CHAR(160),SUBSTITUTE($G102,\"}\",CHAR(160),EG$1))-FIND(CHAR(160),SUBSTITUTE($G102,\"{\",CHAR(160),EG$1))+1),\"\")","v":"{Measure:Quantity}"},{"$f":"IFERROR(MID($G102,FIND(CHAR(160),SUBSTITUTE($G102,\"{\",CHAR(160),EH$1)),FIND(CHAR(160),SUBSTITUTE($G102,\"}\",CHAR(160),EH$1))-FIND(CHAR(160),SUBSTITUTE($G102,\"{\",CHAR(160),EH$1))+1),\"\")","v":"{Fuel}"},{"$f":"IFERROR(MID($G102,FIND(CHAR(160),SUBSTITUTE($G102,\"{\",CHAR(160),EI$1)),FIND(CHAR(160),SUBSTITUTE($G102,\"}\",CHAR(160),EI$1))-FIND(CHAR(160),SUBSTITUTE($G102,\"{\",CHAR(160),EI$1))+1),\"\")","v":"{Equipment Capacity (MBtu/h)}"},{"$f":"IFERROR(MID($G102,FIND(CHAR(160),SUBSTITUTE($G102,\"{\",CHAR(160),EJ$1)),FIND(CHAR(160),SUBSTITUTE($G102,\"}\",CHAR(160),EJ$1))-FIND(CHAR(160),SUBSTITUTE($G102,\"{\",CHAR(160),EJ$1))+1),\"\")","v":"{Equipment Capacity (MBtu/h)}"},{"$f":"IFERROR(MID($G102,FIND(CHAR(160),SUBSTITUTE($G102,\"{\",CHAR(160),EK$1)),FIND(CHAR(160),SUBSTITUTE($G102,\"}\",CHAR(160),EK$1))-FIND(CHAR(160),SUBSTITUTE($G102,\"{\",CHAR(160),EK$1))+1),\"\")","v":"{Equipment Capacity (MBtu/h)}"},{"$f":"IFERROR(MID($G102,FIND(CHAR(160),SUBSTITUTE($G102,\"{\",CHAR(160),EL$1)),FIND(CHAR(160),SUBSTITUTE($G102,\"}\",CHAR(160),EL$1))-FIND(CHAR(160),SUBSTITUTE($G102,\"{\",CHAR(160),EL$1))+1),\"\")","v":""},{"$f":"IFERROR(MID($G102,FIND(CHAR(160),SUBSTITUTE($G102,\"{\",CHAR(160),EM$1)),FIND(CHAR(160),SUBSTITUTE($G102,\"}\",CHAR(160),EM$1))-FIND(CHAR(160),SUBSTITUTE($G102,\"{\",CHAR(160),EM$1))+1),\"\")","v":""},{"$f":"IFERROR(MID($G102,FIND(CHAR(160),SUBSTITUTE($G102,\"{\",CHAR(160),EN$1)),FIND(CHAR(160),SUBSTITUTE($G102,\"}\",CHAR(160),EN$1))-FIND(CHAR(160),SUBSTITUTE($G102,\"{\",CHAR(160),EN$1))+1),\"\")","v":""},{"$f":"IFERROR(MID($G102,FIND(CHAR(160),SUBSTITUTE($G102,\"{\",CHAR(160),EO$1)),FIND(CHAR(160),SUBSTITUTE($G102,\"}\",CHAR(160),EO$1))-FIND(CHAR(160),SUBSTITUTE($G102,\"{\",CHAR(160),EO$1))+1),\"\")","v":""},{"$f":"IFERROR(MID($G102,FIND(CHAR(160),SUBSTITUTE($G102,\"{\",CHAR(160),EP$1)),FIND(CHAR(160),SUBSTITUTE($G102,\"}\",CHAR(160),EP$1))-FIND(CHAR(160),SUBSTITUTE($G102,\"{\",CHAR(160),EP$1))+1),\"\")","v":""},{"$f":"IFERROR(MID($J102,FIND(CHAR(160),SUBSTITUTE($J102,\"{\",CHAR(160),EQ$1)),FIND(CHAR(160),SUBSTITUTE($J102,\"}\",CHAR(160),EQ$1))-FIND(CHAR(160),SUBSTITUTE($J102,\"{\",CHAR(160),EQ$1))+1),\"\")","v":"{Measure:Quantity}"},{"$f":"IFERROR(MID($J102,FIND(CHAR(160),SUBSTITUTE($J102,\"{\",CHAR(160),ER$1)),FIND(CHAR(160),SUBSTITUTE($J102,\"}\",CHAR(160),ER$1))-FIND(CHAR(160),SUBSTITUTE($J102,\"{\",CHAR(160),ER$1))+1),\"\")","v":"{Fuel}"},{"$f":"IFERROR(MID($J102,FIND(CHAR(160),SUBSTITUTE($J102,\"{\",CHAR(160),ES$1)),FIND(CHAR(160),SUBSTITUTE($J102,\"}\",CHAR(160),ES$1))-FIND(CHAR(160),SUBSTITUTE($J102,\"{\",CHAR(160),ES$1))+1),\"\")","v":"{Equipment Capacity (MBtu/h)}"},{"$f":"IFERROR(MID($J102,FIND(CHAR(160),SUBSTITUTE($J102,\"{\",CHAR(160),ET$1)),FIND(CHAR(160),SUBSTITUTE($J102,\"}\",CHAR(160),ET$1))-FIND(CHAR(160),SUBSTITUTE($J102,\"{\",CHAR(160),ET$1))+1),\"\")","v":"{Equipment Capacity (MBtu/h)}"},{"$f":"IFERROR(MID($J102,FIND(CHAR(160),SUBSTITUTE($J102,\"{\",CHAR(160),EU$1)),FIND(CHAR(160),SUBSTITUTE($J102,\"}\",CHAR(160),EU$1))-FIND(CHAR(160),SUBSTITUTE($J102,\"{\",CHAR(160),EU$1))+1),\"\")","v":"{Equipment Capacity (MBtu/h)}"},{"$f":"IFERROR(MID($J102,FIND(CHAR(160),SUBSTITUTE($J102,\"{\",CHAR(160),EV$1)),FIND(CHAR(160),SUBSTITUTE($J102,\"}\",CHAR(160),EV$1))-FIND(CHAR(160),SUBSTITUTE($J102,\"{\",CHAR(160),EV$1))+1),\"\")","v":""},{"$f":"IFERROR(MID($J102,FIND(CHAR(160),SUBSTITUTE($J102,\"{\",CHAR(160),EW$1)),FIND(CHAR(160),SUBSTITUTE($J102,\"}\",CHAR(160),EW$1))-FIND(CHAR(160),SUBSTITUTE($J102,\"{\",CHAR(160),EW$1))+1),\"\")","v":""},{"$f":"IFERROR(MID($J102,FIND(CHAR(160),SUBSTITUTE($J102,\"{\",CHAR(160),EX$1)),FIND(CHAR(160),SUBSTITUTE($J102,\"}\",CHAR(160),EX$1))-FIND(CHAR(160),SUBSTITUTE($J102,\"{\",CHAR(160),EX$1))+1),\"\")","v":""},{"$f":"IFERROR(MID($J102,FIND(CHAR(160),SUBSTITUTE($J102,\"{\",CHAR(160),EY$1)),FIND(CHAR(160),SUBSTITUTE($J102,\"}\",CHAR(160),EY$1))-FIND(CHAR(160),SUBSTITUTE($J102,\"{\",CHAR(160),EY$1))+1),\"\")","v":""},{"$f":"IFERROR(MID($J102,FIND(CHAR(160),SUBSTITUTE($J102,\"{\",CHAR(160),EZ$1)),FIND(CHAR(160),SUBSTITUTE($J102,\"}\",CHAR(160),EZ$1))-FIND(CHAR(160),SUBSTITUTE($J102,\"{\",CHAR(160),EZ$1))+1),\"\")","v":""},{"$f":"IFERROR(MID($J102,FIND(CHAR(160),SUBSTITUTE($J102,\"{\",CHAR(160),FA$1)),FIND(CHAR(160),SUBSTITUTE($J102,\"}\",CHAR(160),FA$1))-FIND(CHAR(160),SUBSTITUTE($J102,\"{\",CHAR(160),FA$1))+1),\"\")","v":"{Measure:Quantity}"},{"$f":"IFERROR(MID($J102,FIND(CHAR(160),SUBSTITUTE($J102,\"{\",CHAR(160),FB$1)),FIND(CHAR(160),SUBSTITUTE($J102,\"}\",CHAR(160),FB$1))-FIND(CHAR(160),SUBSTITUTE($J102,\"{\",CHAR(160),FB$1))+1),\"\")","v":"{Fuel}"},{"$f":"IFERROR(MID($O102,FIND(CHAR(160),SUBSTITUTE($O102,\"{\",CHAR(160),FC$1)),FIND(CHAR(160),SUBSTITUTE($O102,\"}\",CHAR(160),FC$1))-FIND(CHAR(160),SUBSTITUTE($O102,\"{\",CHAR(160),FC$1))+1),\"\")","v":""},{"$f":"IFERROR(MID($O102,FIND(CHAR(160),SUBSTITUTE($O102,\"{\",CHAR(160),FD$1)),FIND(CHAR(160),SUBSTITUTE($O102,\"}\",CHAR(160),FD$1))-FIND(CHAR(160),SUBSTITUTE($O102,\"{\",CHAR(160),FD$1))+1),\"\")","v":""},{"$f":"IFERROR(MID($O102,FIND(CHAR(160),SUBSTITUTE($O102,\"{\",CHAR(160),FE$1)),FIND(CHAR(160),SUBSTITUTE($O102,\"}\",CHAR(160),FE$1))-FIND(CHAR(160),SUBSTITUTE($O102,\"{\",CHAR(160),FE$1))+1),\"\")","v":""},{"$f":"IFERROR(MID($O102,FIND(CHAR(160),SUBSTITUTE($O102,\"{\",CHAR(160),FF$1)),FIND(CHAR(160),SUBSTITUTE($O102,\"}\",CHAR(160),FF$1))-FIND(CHAR(160),SUBSTITUTE($O102,\"{\",CHAR(160),FF$1))+1),\"\")","v":""},{"$f":"IFERROR(MID($O102,FIND(CHAR(160),SUBSTITUTE($O102,\"{\",CHAR(160),FG$1)),FIND(CHAR(160),SUBSTITUTE($O102,\"}\",CHAR(160),FG$1))-FIND(CHAR(160),SUBSTITUTE($O102,\"{\",CHAR(160),FG$1))+1),\"\")","v":""},{"$f":"IFERROR(MID($O102,FIND(CHAR(160),SUBSTITUTE($O102,\"{\",CHAR(160),FH$1)),FIND(CHAR(160),SUBSTITUTE($O102,\"}\",CHAR(160),FH$1))-FIND(CHAR(160),SUBSTITUTE($O102,\"{\",CHAR(160),FH$1))+1),\"\")","v":""},{"$f":"IFERROR(MID($O102,FIND(CHAR(160),SUBSTITUTE($O102,\"{\",CHAR(160),FI$1)),FIND(CHAR(160),SUBSTITUTE($O102,\"}\",CHAR(160),FI$1))-FIND(CHAR(160),SUBSTITUTE($O102,\"{\",CHAR(160),FI$1))+1),\"\")","v":""},{"$f":"IFERROR(MID($O102,FIND(CHAR(160),SUBSTITUTE($O102,\"{\",CHAR(160),FJ$1)),FIND(CHAR(160),SUBSTITUTE($O102,\"}\",CHAR(160),FJ$1))-FIND(CHAR(160),SUBSTITUTE($O102,\"{\",CHAR(160),FJ$1))+1),\"\")","v":""},{"$f":"IFERROR(MID($O102,FIND(CHAR(160),SUBSTITUTE($O102,\"{\",CHAR(160),FK$1)),FIND(CHAR(160),SUBSTITUTE($O102,\"}\",CHAR(160),FK$1))-FIND(CHAR(160),SUBSTITUTE($O102,\"{\",CHAR(160),FK$1))+1),\"\")","v":""},{"$f":"IFERROR(MID($O102,FIND(CHAR(160),SUBSTITUTE($O102,\"{\",CHAR(160),FL$1)),FIND(CHAR(160),SUBSTITUTE($O102,\"}\",CHAR(160),FL$1))-FIND(CHAR(160),SUBSTITUTE($O102,\"{\",CHAR(160),FL$1))+1),\"\")","v":""},{"$f":"IFERROR(MID($R102,FIND(CHAR(160),SUBSTITUTE($R102,\"{\",CHAR(160),FM$1)),FIND(CHAR(160),SUBSTITUTE($R102,\"}\",CHAR(160),FM$1))-FIND(CHAR(160),SUBSTITUTE($R102,\"{\",CHAR(160),FM$1))+1),\"\")","v":""},{"$f":"IFERROR(MID($R102,FIND(CHAR(160),SUBSTITUTE($R102,\"{\",CHAR(160),FN$1)),FIND(CHAR(160),SUBSTITUTE($R102,\"}\",CHAR(160),FN$1))-FIND(CHAR(160),SUBSTITUTE($R102,\"{\",CHAR(160),FN$1))+1),\"\")","v":""},{"$f":"IFERROR(MID($R102,FIND(CHAR(160),SUBSTITUTE($R102,\"{\",CHAR(160),FO$1)),FIND(CHAR(160),SUBSTITUTE($R102,\"}\",CHAR(160),FO$1))-FIND(CHAR(160),SUBSTITUTE($R102,\"{\",CHAR(160),FO$1))+1),\"\")","v":""},{"$f":"IFERROR(MID($R102,FIND(CHAR(160),SUBSTITUTE($R102,\"{\",CHAR(160),FP$1)),FIND(CHAR(160),SUBSTITUTE($R102,\"}\",CHAR(160),FP$1))-FIND(CHAR(160),SUBSTITUTE($R102,\"{\",CHAR(160),FP$1))+1),\"\")","v":""},{"$f":"IFERROR(MID($R102,FIND(CHAR(160),SUBSTITUTE($R102,\"{\",CHAR(160),FQ$1)),FIND(CHAR(160),SUBSTITUTE($R102,\"}\",CHAR(160),FQ$1))-FIND(CHAR(160),SUBSTITUTE($R102,\"{\",CHAR(160),FQ$1))+1),\"\")","v":""},{"$f":"IFERROR(MID($R102,FIND(CHAR(160),SUBSTITUTE($R102,\"{\",CHAR(160),FR$1)),FIND(CHAR(160),SUBSTITUTE($R102,\"}\",CHAR(160),FR$1))-FIND(CHAR(160),SUBSTITUTE($R102,\"{\",CHAR(160),FR$1))+1),\"\")","v":""},{"$f":"IFERROR(MID($R102,FIND(CHAR(160),SUBSTITUTE($R102,\"{\",CHAR(160),FS$1)),FIND(CHAR(160),SUBSTITUTE($R102,\"}\",CHAR(160),FS$1))-FIND(CHAR(160),SUBSTITUTE($R102,\"{\",CHAR(160),FS$1))+1),\"\")","v":""},{"$f":"IFERROR(MID($R102,FIND(CHAR(160),SUBSTITUTE($R102,\"{\",CHAR(160),FT$1)),FIND(CHAR(160),SUBSTITUTE($R102,\"}\",CHAR(160),FT$1))-FIND(CHAR(160),SUBSTITUTE($R102,\"{\",CHAR(160),FT$1))+1),\"\")","v":""},{"$f":"IFERROR(MID($R102,FIND(CHAR(160),SUBSTITUTE($R102,\"{\",CHAR(160),FU$1)),FIND(CHAR(160),SUBSTITUTE($R102,\"}\",CHAR(160),FU$1))-FIND(CHAR(160),SUBSTITUTE($R102,\"{\",CHAR(160),FU$1))+1),\"\")","v":""},{"$f":"IFERROR(MID($R102,FIND(CHAR(160),SUBSTITUTE($R102,\"{\",CHAR(160),FV$1)),FIND(CHAR(160),SUBSTITUTE($R102,\"}\",CHAR(160),FV$1))-FIND(CHAR(160),SUBSTITUTE($R102,\"{\",CHAR(160),FV$1))+1),\"\")","v":""},{"$f":"IFERROR(MID($U102,FIND(CHAR(160),SUBSTITUTE($U102,\"{\",CHAR(160),FW$1)),FIND(CHAR(160),SUBSTITUTE($U102,\"}\",CHAR(160),FW$1))-FIND(CHAR(160),SUBSTITUTE($U102,\"{\",CHAR(160),FW$1))+1),\"\")","v":""},{"$f":"IFERROR(MID($U102,FIND(CHAR(160),SUBSTITUTE($U102,\"{\",CHAR(160),FX$1)),FIND(CHAR(160),SUBSTITUTE($U102,\"}\",CHAR(160),FX$1))-FIND(CHAR(160),SUBSTITUTE($U102,\"{\",CHAR(160),FX$1))+1),\"\")","v":""},{"$f":"IFERROR(MID($U102,FIND(CHAR(160),SUBSTITUTE($U102,\"{\",CHAR(160),FY$1)),FIND(CHAR(160),SUBSTITUTE($U102,\"}\",CHAR(160),FY$1))-FIND(CHAR(160),SUBSTITUTE($U102,\"{\",CHAR(160),FY$1))+1),\"\")","v":""},{"$f":"IFERROR(MID($U102,FIND(CHAR(160),SUBSTITUTE($U102,\"{\",CHAR(160),FZ$1)),FIND(CHAR(160),SUBSTITUTE($U102,\"}\",CHAR(160),FZ$1))-FIND(CHAR(160),SUBSTITUTE($U102,\"{\",CHAR(160),FZ$1))+1),\"\")","v":""},{"$f":"IFERROR(MID($U102,FIND(CHAR(160),SUBSTITUTE($U102,\"{\",CHAR(160),GA$1)),FIND(CHAR(160),SUBSTITUTE($U102,\"}\",CHAR(160),GA$1))-FIND(CHAR(160),SUBSTITUTE($U102,\"{\",CHAR(160),GA$1))+1),\"\")","v":""},{"$f":"IFERROR(MID($U102,FIND(CHAR(160),SUBSTITUTE($U102,\"{\",CHAR(160),GB$1)),FIND(CHAR(160),SUBSTITUTE($U102,\"}\",CHAR(160),GB$1))-FIND(CHAR(160),SUBSTITUTE($U102,\"{\",CHAR(160),GB$1))+1),\"\")","v":""},{"$f":"IFERROR(MID($U102,FIND(CHAR(160),SUBSTITUTE($U102,\"{\",CHAR(160),GC$1)),FIND(CHAR(160),SUBSTITUTE($U102,\"}\",CHAR(160),GC$1))-FIND(CHAR(160),SUBSTITUTE($U102,\"{\",CHAR(160),GC$1))+1),\"\")","v":""},{"$f":"IFERROR(MID($U102,FIND(CHAR(160),SUBSTITUTE($U102,\"{\",CHAR(160),GD$1)),FIND(CHAR(160),SUBSTITUTE($U102,\"}\",CHAR(160),GD$1))-FIND(CHAR(160),SUBSTITUTE($U102,\"{\",CHAR(160),GD$1))+1),\"\")","v":""},{"$f":"IFERROR(MID($U102,FIND(CHAR(160),SUBSTITUTE($U102,\"{\",CHAR(160),GE$1)),FIND(CHAR(160),SUBSTITUTE($U102,\"}\",CHAR(160),GE$1))-FIND(CHAR(160),SUBSTITUTE($U102,\"{\",CHAR(160),GE$1))+1),\"\")","v":""},{"$f":"IFERROR(MID($U102,FIND(CHAR(160),SUBSTITUTE($U102,\"{\",CHAR(160),GF$1)),FIND(CHAR(160),SUBSTITUTE($U102,\"}\",CHAR(160),GF$1))-FIND(CHAR(160),SUBSTITUTE($U102,\"{\",CHAR(160),GF$1))+1),\"\")","v":""},{"$f":"IFERROR(MID($V102,FIND(CHAR(160),SUBSTITUTE($V102,\"{\",CHAR(160),GG$1)),FIND(CHAR(160),SUBSTITUTE($V102,\"}\",CHAR(160),GG$1))-FIND(CHAR(160),SUBSTITUTE($V102,\"{\",CHAR(160),GG$1))+1),\"\")","v":""},{"$f":"IFERROR(MID($V102,FIND(CHAR(160),SUBSTITUTE($V102,\"{\",CHAR(160),GH$1)),FIND(CHAR(160),SUBSTITUTE($V102,\"}\",CHAR(160),GH$1))-FIND(CHAR(160),SUBSTITUTE($V102,\"{\",CHAR(160),GH$1))+1),\"\")","v":""},{"$f":"IFERROR(MID($V102,FIND(CHAR(160),SUBSTITUTE($V102,\"{\",CHAR(160),GI$1)),FIND(CHAR(160),SUBSTITUTE($V102,\"}\",CHAR(160),GI$1))-FIND(CHAR(160),SUBSTITUTE($V102,\"{\",CHAR(160),GI$1))+1),\"\")","v":""},{"$f":"IFERROR(MID($V102,FIND(CHAR(160),SUBSTITUTE($V102,\"{\",CHAR(160),GJ$1)),FIND(CHAR(160),SUBSTITUTE($V102,\"}\",CHAR(160),GJ$1))-FIND(CHAR(160),SUBSTITUTE($V102,\"{\",CHAR(160),GJ$1))+1),\"\")","v":""},{"$f":"IFERROR(MID($V102,FIND(CHAR(160),SUBSTITUTE($V102,\"{\",CHAR(160),GK$1)),FIND(CHAR(160),SUBSTITUTE($V102,\"}\",CHAR(160),GK$1))-FIND(CHAR(160),SUBSTITUTE($V102,\"{\",CHAR(160),GK$1))+1),\"\")","v":""},{"$f":"IFERROR(MID($V102,FIND(CHAR(160),SUBSTITUTE($V102,\"{\",CHAR(160),GL$1)),FIND(CHAR(160),SUBSTITUTE($V102,\"}\",CHAR(160),GL$1))-FIND(CHAR(160),SUBSTITUTE($V102,\"{\",CHAR(160),GL$1))+1),\"\")","v":""},{"$f":"IFERROR(MID($V102,FIND(CHAR(160),SUBSTITUTE($V102,\"{\",CHAR(160),GM$1)),FIND(CHAR(160),SUBSTITUTE($V102,\"}\",CHAR(160),GM$1))-FIND(CHAR(160),SUBSTITUTE($V102,\"{\",CHAR(160),GM$1))+1),\"\")","v":""},{"$f":"IFERROR(MID($V102,FIND(CHAR(160),SUBSTITUTE($V102,\"{\",CHAR(160),GN$1)),FIND(CHAR(160),SUBSTITUTE($V102,\"}\",CHAR(160),GN$1))-FIND(CHAR(160),SUBSTITUTE($V102,\"{\",CHAR(160),GN$1))+1),\"\")","v":""},{"$f":"IFERROR(MID($V102,FIND(CHAR(160),SUBSTITUTE($V102,\"{\",CHAR(160),GO$1)),FIND(CHAR(160),SUBSTITUTE($V102,\"}\",CHAR(160),GO$1))-FIND(CHAR(160),SUBSTITUTE($V102,\"{\",CHAR(160),GO$1))+1),\"\")","v":""},{"$f":"IFERROR(MID($V102,FIND(CHAR(160),SUBSTITUTE($V102,\"{\",CHAR(160),GP$1)),FIND(CHAR(160),SUBSTITUTE($V102,\"}\",CHAR(160),GP$1))-FIND(CHAR(160),SUBSTITUTE($V102,\"{\",CHAR(160),GP$1))+1),\"\")","v":""},{"$f":"IFERROR(MID($W102,FIND(CHAR(160),SUBSTITUTE($W102,\"{\",CHAR(160),GQ$1)),FIND(CHAR(160),SUBSTITUTE($W102,\"}\",CHAR(160),GQ$1))-FIND(CHAR(160),SUBSTITUTE($W102,\"{\",CHAR(160),GQ$1))+1),\"\")","v":""},{"$f":"IFERROR(MID($W102,FIND(CHAR(160),SUBSTITUTE($W102,\"{\",CHAR(160),GR$1)),FIND(CHAR(160),SUBSTITUTE($W102,\"}\",CHAR(160),GR$1))-FIND(CHAR(160),SUBSTITUTE($W102,\"{\",CHAR(160),GR$1))+1),\"\")","v":""},{"$f":"IFERROR(MID($W102,FIND(CHAR(160),SUBSTITUTE($W102,\"{\",CHAR(160),GS$1)),FIND(CHAR(160),SUBSTITUTE($W102,\"}\",CHAR(160),GS$1))-FIND(CHAR(160),SUBSTITUTE($W102,\"{\",CHAR(160),GS$1))+1),\"\")","v":""},{"$f":"IFERROR(MID($W102,FIND(CHAR(160),SUBSTITUTE($W102,\"{\",CHAR(160),GT$1)),FIND(CHAR(160),SUBSTITUTE($W102,\"}\",CHAR(160),GT$1))-FIND(CHAR(160),SUBSTITUTE($W102,\"{\",CHAR(160),GT$1))+1),\"\")","v":""},{"$f":"IFERROR(MID($W102,FIND(CHAR(160),SUBSTITUTE($W102,\"{\",CHAR(160),GU$1)),FIND(CHAR(160),SUBSTITUTE($W102,\"}\",CHAR(160),GU$1))-FIND(CHAR(160),SUBSTITUTE($W102,\"{\",CHAR(160),GU$1))+1),\"\")","v":""},{"$f":"IFERROR(MID($W102,FIND(CHAR(160),SUBSTITUTE($W102,\"{\",CHAR(160),GV$1)),FIND(CHAR(160),SUBSTITUTE($W102,\"}\",CHAR(160),GV$1))-FIND(CHAR(160),SUBSTITUTE($W102,\"{\",CHAR(160),GV$1))+1),\"\")","v":""},{"$f":"IFERROR(MID($W102,FIND(CHAR(160),SUBSTITUTE($W102,\"{\",CHAR(160),GW$1)),FIND(CHAR(160),SUBSTITUTE($W102,\"}\",CHAR(160),GW$1))-FIND(CHAR(160),SUBSTITUTE($W102,\"{\",CHAR(160),GW$1))+1),\"\")","v":""},{"$f":"IFERROR(MID($W102,FIND(CHAR(160),SUBSTITUTE($W102,\"{\",CHAR(160),GX$1)),FIND(CHAR(160),SUBSTITUTE($W102,\"}\",CHAR(160),GX$1))-FIND(CHAR(160),SUBSTITUTE($W102,\"{\",CHAR(160),GX$1))+1),\"\")","v":""},{"$f":"IFERROR(MID($W102,FIND(CHAR(160),SUBSTITUTE($W102,\"{\",CHAR(160),GY$1)),FIND(CHAR(160),SUBSTITUTE($W102,\"}\",CHAR(160),GY$1))-FIND(CHAR(160),SUBSTITUTE($W102,\"{\",CHAR(160),GY$1))+1),\"\")","v":""},{"$f":"IFERROR(MID($W102,FIND(CHAR(160),SUBSTITUTE($W102,\"{\",CHAR(160),GZ$1)),FIND(CHAR(160),SUBSTITUTE($W102,\"}\",CHAR(160),GZ$1))-FIND(CHAR(160),SUBSTITUTE($W102,\"{\",CHAR(160),GZ$1))+1),\"\")","v":""},{"$f":"IFERROR(MID($X102,FIND(CHAR(160),SUBSTITUTE($X102,\"{\",CHAR(160),HA$1)),FIND(CHAR(160),SUBSTITUTE($X102,\"}\",CHAR(160),HA$1))-FIND(CHAR(160),SUBSTITUTE($X102,\"{\",CHAR(160),HA$1))+1),\"\")","v":""},{"$f":"IFERROR(MID($X102,FIND(CHAR(160),SUBSTITUTE($X102,\"{\",CHAR(160),HB$1)),FIND(CHAR(160),SUBSTITUTE($X102,\"}\",CHAR(160),HB$1))-FIND(CHAR(160),SUBSTITUTE($X102,\"{\",CHAR(160),HB$1))+1),\"\")","v":""},{"$f":"IFERROR(MID($X102,FIND(CHAR(160),SUBSTITUTE($X102,\"{\",CHAR(160),HC$1)),FIND(CHAR(160),SUBSTITUTE($X102,\"}\",CHAR(160),HC$1))-FIND(CHAR(160),SUBSTITUTE($X102,\"{\",CHAR(160),HC$1))+1),\"\")","v":""},{"$f":"IFERROR(MID($X102,FIND(CHAR(160),SUBSTITUTE($X102,\"{\",CHAR(160),HD$1)),FIND(CHAR(160),SUBSTITUTE($X102,\"}\",CHAR(160),HD$1))-FIND(CHAR(160),SUBSTITUTE($X102,\"{\",CHAR(160),HD$1))+1),\"\")","v":""},{"$f":"IFERROR(MID($X102,FIND(CHAR(160),SUBSTITUTE($X102,\"{\",CHAR(160),HE$1)),FIND(CHAR(160),SUBSTITUTE($X102,\"}\",CHAR(160),HE$1))-FIND(CHAR(160),SUBSTITUTE($X102,\"{\",CHAR(160),HE$1))+1),\"\")","v":""},{"$f":"IFERROR(MID($X102,FIND(CHAR(160),SUBSTITUTE($X102,\"{\",CHAR(160),HF$1)),FIND(CHAR(160),SUBSTITUTE($X102,\"}\",CHAR(160),HF$1))-FIND(CHAR(160),SUBSTITUTE($X102,\"{\",CHAR(160),HF$1))+1),\"\")","v":""},{"$f":"IFERROR(MID($X102,FIND(CHAR(160),SUBSTITUTE($X102,\"{\",CHAR(160),HG$1)),FIND(CHAR(160),SUBSTITUTE($X102,\"}\",CHAR(160),HG$1))-FIND(CHAR(160),SUBSTITUTE($X102,\"{\",CHAR(160),HG$1))+1),\"\")","v":""},{"$f":"IFERROR(MID($X102,FIND(CHAR(160),SUBSTITUTE($X102,\"{\",CHAR(160),HH$1)),FIND(CHAR(160),SUBSTITUTE($X102,\"}\",CHAR(160),HH$1))-FIND(CHAR(160),SUBSTITUTE($X102,\"{\",CHAR(160),HH$1))+1),\"\")","v":""},{"$f":"IFERROR(MID($X102,FIND(CHAR(160),SUBSTITUTE($X102,\"{\",CHAR(160),HI$1)),FIND(CHAR(160),SUBSTITUTE($X102,\"}\",CHAR(160),HI$1))-FIND(CHAR(160),SUBSTITUTE($X102,\"{\",CHAR(160),HI$1))+1),\"\")","v":""},{"$f":"IFERROR(MID($X102,FIND(CHAR(160),SUBSTITUTE($X102,\"{\",CHAR(160),HJ$1)),FIND(CHAR(160),SUBSTITUTE($X102,\"}\",CHAR(160),HJ$1))-FIND(CHAR(160),SUBSTITUTE($X102,\"{\",CHAR(160),HJ$1))+1),\"\")","v":""},{"$f":"IFERROR(MID($Y102,FIND(CHAR(160),SUBSTITUTE($Y102,\"{\",CHAR(160),HK$1)),FIND(CHAR(160),SUBSTITUTE($Y102,\"}\",CHAR(160),HK$1))-FIND(CHAR(160),SUBSTITUTE($Y102,\"{\",CHAR(160),HK$1))+1),\"\")","v":"{Design Load (Btu/h)}"},{"$f":"IFERROR(MID($Y102,FIND(CHAR(160),SUBSTITUTE($Y102,\"{\",CHAR(160),HL$1)),FIND(CHAR(160),SUBSTITUTE($Y102,\"}\",CHAR(160),HL$1))-FIND(CHAR(160),SUBSTITUTE($Y102,\"{\",CHAR(160),HL$1))+1),\"\")","v":"{Indoor Design Temp (oF)}"},{"$f":"IFERROR(MID($Y102,FIND(CHAR(160),SUBSTITUTE($Y102,\"{\",CHAR(160),HM$1)),FIND(CHAR(160),SUBSTITUTE($Y102,\"}\",CHAR(160),HM$1))-FIND(CHAR(160),SUBSTITUTE($Y102,\"{\",CHAR(160),HM$1))+1),\"\")","v":"{Outdoor Design Temp (oF)}"},{"$f":"IFERROR(MID($Y102,FIND(CHAR(160),SUBSTITUTE($Y102,\"{\",CHAR(160),HN$1)),FIND(CHAR(160),SUBSTITUTE($Y102,\"}\",CHAR(160),HN$1))-FIND(CHAR(160),SUBSTITUTE($Y102,\"{\",CHAR(160),HN$1))+1),\"\")","v":"{Unit Efficiency - AFUE or Thermal Efficiency}"},{"$f":"IFERROR(MID($Y102,FIND(CHAR(160),SUBSTITUTE($Y102,\"{\",CHAR(160),HO$1)),FIND(CHAR(160),SUBSTITUTE($Y102,\"}\",CHAR(160),HO$1))-FIND(CHAR(160),SUBSTITUTE($Y102,\"{\",CHAR(160),HO$1))+1),\"\")","v":""},{"$f":"IFERROR(MID($Y102,FIND(CHAR(160),SUBSTITUTE($Y102,\"{\",CHAR(160),HP$1)),FIND(CHAR(160),SUBSTITUTE($Y102,\"}\",CHAR(160),HP$1))-FIND(CHAR(160),SUBSTITUTE($Y102,\"{\",CHAR(160),HP$1))+1),\"\")","v":""},{"$f":"IFERROR(MID($Y102,FIND(CHAR(160),SUBSTITUTE($Y102,\"{\",CHAR(160),HQ$1)),FIND(CHAR(160),SUBSTITUTE($Y102,\"}\",CHAR(160),HQ$1))-FIND(CHAR(160),SUBSTITUTE($Y102,\"{\",CHAR(160),HQ$1))+1),\"\")","v":""},{"$f":"IFERROR(MID($Y102,FIND(CHAR(160),SUBSTITUTE($Y102,\"{\",CHAR(160),HR$1)),FIND(CHAR(160),SUBSTITUTE($Y102,\"}\",CHAR(160),HR$1))-FIND(CHAR(160),SUBSTITUTE($Y102,\"{\",CHAR(160),HR$1))+1),\"\")","v":""},{"$f":"IFERROR(MID($Y102,FIND(CHAR(160),SUBSTITUTE($Y102,\"{\",CHAR(160),HS$1)),FIND(CHAR(160),SUBSTITUTE($Y102,\"}\",CHAR(160),HS$1))-FIND(CHAR(160),SUBSTITUTE($Y102,\"{\",CHAR(160),HS$1))+1),\"\")","v":"{Fuel}"},{"$f":"IFERROR(MID($Y102,FIND(CHAR(160),SUBSTITUTE($Y102,\"{\",CHAR(160),HT$1)),FIND(CHAR(160),SUBSTITUTE($Y102,\"}\",CHAR(160),HT$1))-FIND(CHAR(160),SUBSTITUTE($Y102,\"{\",CHAR(160),HT$1))+1),\"\")","v":"{Measure:Quantity}"},{"$f":"IFERROR(MID($Z102,FIND(CHAR(160),SUBSTITUTE($Z102,\"{\",CHAR(160),HU$1)),FIND(CHAR(160),SUBSTITUTE($Z102,\"}\",CHAR(160),HU$1))-FIND(CHAR(160),SUBSTITUTE($Z102,\"{\",CHAR(160),HU$1))+1),\"\")","v":""},{"$f":"IFERROR(MID($Z102,FIND(CHAR(160),SUBSTITUTE($Z102,\"{\",CHAR(160),HV$1)),FIND(CHAR(160),SUBSTITUTE($Z102,\"}\",CHAR(160),HV$1))-FIND(CHAR(160),SUBSTITUTE($Z102,\"{\",CHAR(160),HV$1))+1),\"\")","v":""},{"$f":"IFERROR(MID($Z102,FIND(CHAR(160),SUBSTITUTE($Z102,\"{\",CHAR(160),HW$1)),FIND(CHAR(160),SUBSTITUTE($Z102,\"}\",CHAR(160),HW$1))-FIND(CHAR(160),SUBSTITUTE($Z102,\"{\",CHAR(160),HW$1))+1),\"\")","v":""},{"$f":"IFERROR(MID($Z102,FIND(CHAR(160),SUBSTITUTE($Z102,\"{\",CHAR(160),HX$1)),FIND(CHAR(160),SUBSTITUTE($Z102,\"}\",CHAR(160),HX$1))-FIND(CHAR(160),SUBSTITUTE($Z102,\"{\",CHAR(160),HX$1))+1),\"\")","v":""},{"$f":"IFERROR(MID($Z102,FIND(CHAR(160),SUBSTITUTE($Z102,\"{\",CHAR(160),HY$1)),FIND(CHAR(160),SUBSTITUTE($Z102,\"}\",CHAR(160),HY$1))-FIND(CHAR(160),SUBSTITUTE($Z102,\"{\",CHAR(160),HY$1))+1),\"\")","v":""},{"$f":"IFERROR(MID($Z102,FIND(CHAR(160),SUBSTITUTE($Z102,\"{\",CHAR(160),HZ$1)),FIND(CHAR(160),SUBSTITUTE($Z102,\"}\",CHAR(160),HZ$1))-FIND(CHAR(160),SUBSTITUTE($Z102,\"{\",CHAR(160),HZ$1))+1),\"\")","v":""},{"$f":"IFERROR(MID($Z102,FIND(CHAR(160),SUBSTITUTE($Z102,\"{\",CHAR(160),IA$1)),FIND(CHAR(160),SUBSTITUTE($Z102,\"}\",CHAR(160),IA$1))-FIND(CHAR(160),SUBSTITUTE($Z102,\"{\",CHAR(160),IA$1))+1),\"\")","v":""},{"$f":"IFERROR(MID($Z102,FIND(CHAR(160),SUBSTITUTE($Z102,\"{\",CHAR(160),IB$1)),FIND(CHAR(160),SUBSTITUTE($Z102,\"}\",CHAR(160),IB$1))-FIND(CHAR(160),SUBSTITUTE($Z102,\"{\",CHAR(160),IB$1))+1),\"\")","v":""},{"$f":"IFERROR(MID($Z102,FIND(CHAR(160),SUBSTITUTE($Z102,\"{\",CHAR(160),IC$1)),FIND(CHAR(160),SUBSTITUTE($Z102,\"}\",CHAR(160),IC$1))-FIND(CHAR(160),SUBSTITUTE($Z102,\"{\",CHAR(160),IC$1))+1),\"\")","v":""},{"$f":"IFERROR(MID($Z102,FIND(CHAR(160),SUBSTITUTE($Z102,\"{\",CHAR(160),ID$1)),FIND(CHAR(160),SUBSTITUTE($Z102,\"}\",CHAR(160),ID$1))-FIND(CHAR(160),SUBSTITUTE($Z102,\"{\",CHAR(160),ID$1))+1),\"\")","v":""},{"$f":"IFERROR(MID($AA102,FIND(CHAR(160),SUBSTITUTE($AA102,\"{\",CHAR(160),IE$1)),FIND(CHAR(160),SUBSTITUTE($AA102,\"}\",CHAR(160),IE$1))-FIND(CHAR(160),SUBSTITUTE($AA102,\"{\",CHAR(160),IE$1))+1),\"\")","v":""},{"$f":"IFERROR(MID($AA102,FIND(CHAR(160),SUBSTITUTE($AA102,\"{\",CHAR(160),IF$1)),FIND(CHAR(160),SUBSTITUTE($AA102,\"}\",CHAR(160),IF$1))-FIND(CHAR(160),SUBSTITUTE($AA102,\"{\",CHAR(160),IF$1))+1),\"\")","v":""},{"$f":"IFERROR(MID($AA102,FIND(CHAR(160),SUBSTITUTE($AA102,\"{\",CHAR(160),IG$1)),FIND(CHAR(160),SUBSTITUTE($AA102,\"}\",CHAR(160),IG$1))-FIND(CHAR(160),SUBSTITUTE($AA102,\"{\",CHAR(160),IG$1))+1),\"\")","v":""},{"$f":"IFERROR(MID($AA102,FIND(CHAR(160),SUBSTITUTE($AA102,\"{\",CHAR(160),IH$1)),FIND(CHAR(160),SUBSTITUTE($AA102,\"}\",CHAR(160),IH$1))-FIND(CHAR(160),SUBSTITUTE($AA102,\"{\",CHAR(160),IH$1))+1),\"\")","v":""},{"$f":"IFERROR(MID($AA102,FIND(CHAR(160),SUBSTITUTE($AA102,\"{\",CHAR(160),II$1)),FIND(CHAR(160),SUBSTITUTE($AA102,\"}\",CHAR(160),II$1))-FIND(CHAR(160),SUBSTITUTE($AA102,\"{\",CHAR(160),II$1))+1),\"\")","v":""},{"$f":"IFERROR(MID($AA102,FIND(CHAR(160),SUBSTITUTE($AA102,\"{\",CHAR(160),IJ$1)),FIND(CHAR(160),SUBSTITUTE($AA102,\"}\",CHAR(160),IJ$1))-FIND(CHAR(160),SUBSTITUTE($AA102,\"{\",CHAR(160),IJ$1))+1),\"\")","v":""},{"$f":"IFERROR(MID($AA102,FIND(CHAR(160),SUBSTITUTE($AA102,\"{\",CHAR(160),IK$1)),FIND(CHAR(160),SUBSTITUTE($AA102,\"}\",CHAR(160),IK$1))-FIND(CHAR(160),SUBSTITUTE($AA102,\"{\",CHAR(160),IK$1))+1),\"\")","v":""},{"$f":"IFERROR(MID($AA102,FIND(CHAR(160),SUBSTITUTE($AA102,\"{\",CHAR(160),IL$1)),FIND(CHAR(160),SUBSTITUTE($AA102,\"}\",CHAR(160),IL$1))-FIND(CHAR(160),SUBSTITUTE($AA102,\"{\",CHAR(160),IL$1))+1),\"\")","v":""},{"$f":"IFERROR(MID($AA102,FIND(CHAR(160),SUBSTITUTE($AA102,\"{\",CHAR(160),IM$1)),FIND(CHAR(160),SUBSTITUTE($AA102,\"}\",CHAR(160),IM$1))-FIND(CHAR(160),SUBSTITUTE($AA102,\"{\",CHAR(160),IM$1))+1),\"\")","v":""},{"$f":"IFERROR(MID($AA102,FIND(CHAR(160),SUBSTITUTE($AA102,\"{\",CHAR(160),IN$1)),FIND(CHAR(160),SUBSTITUTE($AA102,\"}\",CHAR(160),IN$1))-FIND(CHAR(160),SUBSTITUTE($AA102,\"{\",CHAR(160),IN$1))+1),\"\")","v":""},{"$f":"IFERROR(MID($AB102,FIND(CHAR(160),SUBSTITUTE($AB102,\"{\",CHAR(160),IO$1)),FIND(CHAR(160),SUBSTITUTE($AB102,\"}\",CHAR(160),IO$1))-FIND(CHAR(160),SUBSTITUTE($AB102,\"{\",CHAR(160),IO$1))+1),\"\")","v":""},{"$f":"IFERROR(MID($AB102,FIND(CHAR(160),SUBSTITUTE($AB102,\"{\",CHAR(160),IP$1)),FIND(CHAR(160),SUBSTITUTE($AB102,\"}\",CHAR(160),IP$1))-FIND(CHAR(160),SUBSTITUTE($AB102,\"{\",CHAR(160),IP$1))+1),\"\")","v":""},{"$f":"IFERROR(MID($AB102,FIND(CHAR(160),SUBSTITUTE($AB102,\"{\",CHAR(160),IQ$1)),FIND(CHAR(160),SUBSTITUTE($AB102,\"}\",CHAR(160),IQ$1))-FIND(CHAR(160),SUBSTITUTE($AB102,\"{\",CHAR(160),IQ$1))+1),\"\")","v":""},{"$f":"IFERROR(MID($AB102,FIND(CHAR(160),SUBSTITUTE($AB102,\"{\",CHAR(160),IR$1)),FIND(CHAR(160),SUBSTITUTE($AB102,\"}\",CHAR(160),IR$1))-FIND(CHAR(160),SUBSTITUTE($AB102,\"{\",CHAR(160),IR$1))+1),\"\")","v":""},{"$f":"IFERROR(MID($AB102,FIND(CHAR(160),SUBSTITUTE($AB102,\"{\",CHAR(160),IS$1)),FIND(CHAR(160),SUBSTITUTE($AB102,\"}\",CHAR(160),IS$1))-FIND(CHAR(160),SUBSTITUTE($AB102,\"{\",CHAR(160),IS$1))+1),\"\")","v":""},{"$f":"IFERROR(MID($AB102,FIND(CHAR(160),SUBSTITUTE($AB102,\"{\",CHAR(160),IT$1)),FIND(CHAR(160),SUBSTITUTE($AB102,\"}\",CHAR(160),IT$1))-FIND(CHAR(160),SUBSTITUTE($AB102,\"{\",CHAR(160),IT$1))+1),\"\")","v":""},{"$f":"IFERROR(MID($AB102,FIND(CHAR(160),SUBSTITUTE($AB102,\"{\",CHAR(160),IU$1)),FIND(CHAR(160),SUBSTITUTE($AB102,\"}\",CHAR(160),IU$1))-FIND(CHAR(160),SUBSTITUTE($AB102,\"{\",CHAR(160),IU$1))+1),\"\")","v":""},{"$f":"IFERROR(MID($AB102,FIND(CHAR(160),SUBSTITUTE($AB102,\"{\",CHAR(160),IV$1)),FIND(CHAR(160),SUBSTITUTE($AB102,\"}\",CHAR(160),IV$1))-FIND(CHAR(160),SUBSTITUTE($AB102,\"{\",CHAR(160),IV$1))+1),\"\")","v":""},{"$f":"IFERROR(MID($AB102,FIND(CHAR(160),SUBSTITUTE($AB102,\"{\",CHAR(160),IW$1)),FIND(CHAR(160),SUBSTITUTE($AB102,\"}\",CHAR(160),IW$1))-FIND(CHAR(160),SUBSTITUTE($AB102,\"{\",CHAR(160),IW$1))+1),\"\")","v":""},{"$f":"IFERROR(MID($AB102,FIND(CHAR(160),SUBSTITUTE($AB102,\"{\",CHAR(160),IX$1)),FIND(CHAR(160),SUBSTITUTE($AB102,\"}\",CHAR(160),IX$1))-FIND(CHAR(160),SUBSTITUTE($AB102,\"{\",CHAR(160),IX$1))+1),\"\")","v":""},null,{"$f":"10-COUNTIF(DU102:ED102,\"\")","v":7}]
["C&I HVAC - Oil","Boiler Turbulator","AF5","2021-07-01","2022-06-30","Calculated","{Measure:Quantity}*15.00",0,"Calculated","{Measure:Quantity}*9.5",0,"2021-05-25","2022-06-30","Calculated",null,null,null,null,null,null,null,null,null,null,"if({Existing Fuel}<>3,0,{Measure:Quantity} * ({Capacity (MBTUH)} * 1565 * 0.7 * ({Flue Gas Temperature Before (oF)}-{Flue Gas Temperature After (oF)})/40/100))/1000",null,null,null,"2021-05-24","2022-06-30",20,0,0,0,0,0,0,1,1,0,0.52,1.6E-2,null,{"$f":"DU103","v":"{Measure:Quantity}"},1,{"$f":"DV103","v":"{Capacity (MBTUH)}"},3,{"$f":"DW103","v":"{Flue Gas Temperature Before (oF)}"},200,{"$f":"DX103","v":"{Flue Gas Temperature After (oF)}"},270,{"$f":"DY103","v":"{Existing Fuel}"},220,{"$f":"DZ103","v":""},null,{"$f":"EA103","v":""},null,{"$f":"EB103","v":""},null,{"$f":"EC103","v":""},null,{"$f":"ED103","v":""},null,0,0,0,0,0,0,0,0,0,0,{"$f":"IF(AU103<>3,0,AS103 * (AW103 * 1565 * 0.7 * (AY103-BA103)/40/100))/1000","v":2.73875},0,0,0,null,"Res","Default DR",{"$f":"Benefits(BL103,BR103,BS103,BT103,BU103,BV103,BW103,BX103,BY103,BZ103,AE103,AH103,AI103,AJ103,AK103,AL103,AM103,AN103,AO103,AP103,CA103,CB103)","v":0},0,0,1425.7962415230734,0,0,0,0,0,{"$f":"SUMPRODUCT(CC103:CK103,--(CC103:CK103>0))","v":1425.7962415230734},{"$f":"-SUMPRODUCT(CC103:CK103,--(CC103:CK103<0))","v":0},null,{"$f":"AS103*15","v":15},null,null,{"$f":"CM103+CO103","v":15},{"$f":"IF(NetOrGross=\"Net\",(1-AO103+AP103),1)","v":1},{"$f":"(SUMPRODUCT(CC103:CJ103,--(CC103:CJ103>0))+CN103)*CS103/((-SUMPRODUCT(CC103:CJ103,--(CC103:CJ103<0))+MAX(CO103,CV103)+CP103+CQ103)*CS103+IF(FRIncentives=\"Yes\",CV103*(1-CS103),0))","v":95.053082768204888},1,{"$f":"AS103*9.5","v":9.5},null,"RGGI","y",null,{"$f":"IF(F103=\"Manual Entry\",\"Manual\",IF(G103=\"\",0,\"X=\"&SUBSTITUTE(SUBSTITUTE(SUBSTITUTE(SUBSTITUTE(SUBSTITUTE(SUBSTITUTE(SUBSTITUTE(SUBSTITUTE(SUBSTITUTE(SUBSTITUTE(SUBSTITUTE(SUBSTITUTE(G103,$ED103,$ED$2&ROW($ED103)),$EC103,$EC$2&ROW($EC103)),$EB103,$EB$2&ROW($EB103)),$EA103,$EA$2&ROW($EA103)),$DZ103,$DZ$2&ROW($DZ103)),$DY103,$DY$2&ROW($DY103)),$DX103,$DX$2&ROW($DX103)),$DW103,$DW$2&ROW($DW103)),$DV103,$DV$2&ROW($DV103)),$DU103,$DU$2&ROW($DU103)),$DT103,$DT$2&ROW($DT103)),$DS103,$DS$2&ROW($DS103))))","v":"X=AS103*15.00"},{"$f":"IF(I103=\"Manual Entry\",\"Manual\",IF(J103=\"\",0,\"X=\"&SUBSTITUTE(SUBSTITUTE(SUBSTITUTE(SUBSTITUTE(SUBSTITUTE(SUBSTITUTE(SUBSTITUTE(SUBSTITUTE(SUBSTITUTE(SUBSTITUTE(SUBSTITUTE(SUBSTITUTE(J103,$ED103,$ED$2&ROW($ED103)),$EC103,$EC$2&ROW($EC103)),$EB103,$EB$2&ROW($EB103)),$EA103,$EA$2&ROW($EA103)),$DZ103,$DZ$2&ROW($DZ103)),$DY103,$DY$2&ROW($DY103)),$DX103,$DX$2&ROW($DX103)),$DW103,$DW$2&ROW($DW103)),$DV103,$DV$2&ROW($DV103)),$DU103,$DU$2&ROW($DU103)),$DT103,$DT$2&ROW($DT103)),$DS103,$DS$2&ROW($DS103))))","v":"X=AS103*9.5"},{"$f":"IF(O103=\"\",0,\"X=\"&SUBSTITUTE(SUBSTITUTE(SUBSTITUTE(SUBSTITUTE(SUBSTITUTE(SUBSTITUTE(SUBSTITUTE(SUBSTITUTE(SUBSTITUTE(SUBSTITUTE(SUBSTITUTE(SUBSTITUTE(O103,$ED103,$ED$2&ROW($ED103)),$EC103,$EC$2&ROW($EC103)),$EB103,$EB$2&ROW($EB103)),$EA103,$EA$2&ROW($EA103)),$DZ103,$DZ$2&ROW($DZ103)),$DY103,$DY$2&ROW($DY103)),$DX103,$DX$2&ROW($DX103)),$DW103,$DW$2&ROW($DW103)),$DV103,$DV$2&ROW($DV103)),$DU103,$DU$2&ROW($DU103)),$DT103,$DT$2&ROW($DT103)),$DS103,$DS$2&ROW($DS103)))","v":0},{"$f":"IF(P103=\"\",0,\"X=\"&SUBSTITUTE(SUBSTITUTE(SUBSTITUTE(SUBSTITUTE(SUBSTITUTE(SUBSTITUTE(SUBSTITUTE(SUBSTITUTE(SUBSTITUTE(SUBSTITUTE(SUBSTITUTE(SUBSTITUTE(P103,$ED103,$ED$2&ROW($ED103)),$EC103,$EC$2&ROW($EC103)),$EB103,$EB$2&ROW($EB103)),$EA103,$EA$2&ROW($EA103)),$DZ103,$DZ$2&ROW($DZ103)),$DY103,$DY$2&ROW($DY103)),$DX103,$DX$2&ROW($DX103)),$DW103,$DW$2&ROW($DW103)),$DV103,$DV$2&ROW($DV103)),$DU103,$DU$2&ROW($DU103)),$DT103,$DT$2&ROW($DT103)),$DS103,$DS$2&ROW($DS103)))","v":0},{"$f":"IF(Q103=\"\",0,\"X=\"&SUBSTITUTE(SUBSTITUTE(SUBSTITUTE(SUBSTITUTE(SUBSTITUTE(SUBSTITUTE(SUBSTITUTE(SUBSTITUTE(SUBSTITUTE(SUBSTITUTE(SUBSTITUTE(SUBSTITUTE(Q103,$ED103,$ED$2&ROW($ED103)),$EC103,$EC$2&ROW($EC103)),$EB103,$EB$2&ROW($EB103)),$EA103,$EA$2&ROW($EA103)),$DZ103,$DZ$2&ROW($DZ103)),$DY103,$DY$2&ROW($DY103)),$DX103,$DX$2&ROW($DX103)),$DW103,$DW$2&ROW($DW103)),$DV103,$DV$2&ROW($DV103)),$DU103,$DU$2&ROW($DU103)),$DT103,$DT$2&ROW($DT103)),$DS103,$DS$2&ROW($DS103)))","v":0},{"$f":"IF(R103=\"\",0,\"X=\"&SUBSTITUTE(SUBSTITUTE(SUBSTITUTE(SUBSTITUTE(SUBSTITUTE(SUBSTITUTE(SUBSTITUTE(SUBSTITUTE(SUBSTITUTE(SUBSTITUTE(SUBSTITUTE(SUBSTITUTE(R103,$ED103,$ED$2&ROW($ED103)),$EC103,$EC$2&ROW($EC103)),$EB103,$EB$2&ROW($EB103)),$EA103,$EA$2&ROW($EA103)),$DZ103,$DZ$2&ROW($DZ103)),$DY103,$DY$2&ROW($DY103)),$DX103,$DX$2&ROW($DX103)),$DW103,$DW$2&ROW($DW103)),$DV103,$DV$2&ROW($DV103)),$DU103,$DU$2&ROW($DU103)),$DT103,$DT$2&ROW($DT103)),$DS103,$DS$2&ROW($DS103)))","v":0},{"$f":"IF(S103=\"\",0,\"X=\"&SUBSTITUTE(SUBSTITUTE(SUBSTITUTE(SUBSTITUTE(SUBSTITUTE(SUBSTITUTE(SUBSTITUTE(SUBSTITUTE(SUBSTITUTE(SUBSTITUTE(SUBSTITUTE(SUBSTITUTE(S103,$ED103,$ED$2&ROW($ED103)),$EC103,$EC$2&ROW($EC103)),$EB103,$EB$2&ROW($EB103)),$EA103,$EA$2&ROW($EA103)),$DZ103,$DZ$2&ROW($DZ103)),$DY103,$DY$2&ROW($DY103)),$DX103,$DX$2&ROW($DX103)),$DW103,$DW$2&ROW($DW103)),$DV103,$DV$2&ROW($DV103)),$DU103,$DU$2&ROW($DU103)),$DT103,$DT$2&ROW($DT103)),$DS103,$DS$2&ROW($DS103)))","v":0},{"$f":"IF(T103=\"\",0,\"X=\"&SUBSTITUTE(SUBSTITUTE(SUBSTITUTE(SUBSTITUTE(SUBSTITUTE(SUBSTITUTE(SUBSTITUTE(SUBSTITUTE(SUBSTITUTE(SUBSTITUTE(SUBSTITUTE(SUBSTITUTE(T103,$ED103,$ED$2&ROW($ED103)),$EC103,$EC$2&ROW($EC103)),$EB103,$EB$2&ROW($EB103)),$EA103,$EA$2&ROW($EA103)),$DZ103,$DZ$2&ROW($DZ103)),$DY103,$DY$2&ROW($DY103)),$DX103,$DX$2&ROW($DX103)),$DW103,$DW$2&ROW($DW103)),$DV103,$DV$2&ROW($DV103)),$DU103,$DU$2&ROW($DU103)),$DT103,$DT$2&ROW($DT103)),$DS103,$DS$2&ROW($DS103)))","v":0},{"$f":"IF(U103=\"\",0,\"X=\"&SUBSTITUTE(SUBSTITUTE(SUBSTITUTE(SUBSTITUTE(SUBSTITUTE(SUBSTITUTE(SUBSTITUTE(SUBSTITUTE(SUBSTITUTE(SUBSTITUTE(SUBSTITUTE(SUBSTITUTE(U103,$ED103,$ED$2&ROW($ED103)),$EC103,$EC$2&ROW($EC103)),$EB103,$EB$2&ROW($EB103)),$EA103,$EA$2&ROW($EA103)),$DZ103,$DZ$2&ROW($DZ103)),$DY103,$DY$2&ROW($DY103)),$DX103,$DX$2&ROW($DX103)),$DW103,$DW$2&ROW($DW103)),$DV103,$DV$2&ROW($DV103)),$DU103,$DU$2&ROW($DU103)),$DT103,$DT$2&ROW($DT103)),$DS103,$DS$2&ROW($DS103)))","v":0},{"$f":"IF(V103=\"\",0,\"X=\"&SUBSTITUTE(SUBSTITUTE(SUBSTITUTE(SUBSTITUTE(SUBSTITUTE(SUBSTITUTE(SUBSTITUTE(SUBSTITUTE(SUBSTITUTE(SUBSTITUTE(SUBSTITUTE(SUBSTITUTE(V103,$ED103,$ED$2&ROW($ED103)),$EC103,$EC$2&ROW($EC103)),$EB103,$EB$2&ROW($EB103)),$EA103,$EA$2&ROW($EA103)),$DZ103,$DZ$2&ROW($DZ103)),$DY103,$DY$2&ROW($DY103)),$DX103,$DX$2&ROW($DX103)),$DW103,$DW$2&ROW($DW103)),$DV103,$DV$2&ROW($DV103)),$DU103,$DU$2&ROW($DU103)),$DT103,$DT$2&ROW($DT103)),$DS103,$DS$2&ROW($DS103)))","v":0},{"$f":"IF(W103=\"\",0,\"X=\"&SUBSTITUTE(SUBSTITUTE(SUBSTITUTE(SUBSTITUTE(SUBSTITUTE(SUBSTITUTE(SUBSTITUTE(SUBSTITUTE(SUBSTITUTE(SUBSTITUTE(SUBSTITUTE(SUBSTITUTE(W103,$ED103,$ED$2&ROW($ED103)),$EC103,$EC$2&ROW($EC103)),$EB103,$EB$2&ROW($EB103)),$EA103,$EA$2&ROW($EA103)),$DZ103,$DZ$2&ROW($DZ103)),$DY103,$DY$2&ROW($DY103)),$DX103,$DX$2&ROW($DX103)),$DW103,$DW$2&ROW($DW103)),$DV103,$DV$2&ROW($DV103)),$DU103,$DU$2&ROW($DU103)),$DT103,$DT$2&ROW($DT103)),$DS103,$DS$2&ROW($DS103)))","v":0},{"$f":"IF(X103=\"\",0,\"X=\"&SUBSTITUTE(SUBSTITUTE(SUBSTITUTE(SUBSTITUTE(SUBSTITUTE(SUBSTITUTE(SUBSTITUTE(SUBSTITUTE(SUBSTITUTE(SUBSTITUTE(SUBSTITUTE(SUBSTITUTE(X103,$ED103,$ED$2&ROW($ED103)),$EC103,$EC$2&ROW($EC103)),$EB103,$EB$2&ROW($EB103)),$EA103,$EA$2&ROW($EA103)),$DZ103,$DZ$2&ROW($DZ103)),$DY103,$DY$2&ROW($DY103)),$DX103,$DX$2&ROW($DX103)),$DW103,$DW$2&ROW($DW103)),$DV103,$DV$2&ROW($DV103)),$DU103,$DU$2&ROW($DU103)),$DT103,$DT$2&ROW($DT103)),$DS103,$DS$2&ROW($DS103)))","v":0},{"$f":"IF(Y103=\"\",0,\"X=\"&SUBSTITUTE(SUBSTITUTE(SUBSTITUTE(SUBSTITUTE(SUBSTITUTE(SUBSTITUTE(SUBSTITUTE(SUBSTITUTE(SUBSTITUTE(SUBSTITUTE(SUBSTITUTE(SUBSTITUTE(Y103,$ED103,$ED$2&ROW($ED103)),$EC103,$EC$2&ROW($EC103)),$EB103,$EB$2&ROW($EB103)),$EA103,$EA$2&ROW($EA103)),$DZ103,$DZ$2&ROW($DZ103)),$DY103,$DY$2&ROW($DY103)),$DX103,$DX$2&ROW($DX103)),$DW103,$DW$2&ROW($DW103)),$DV103,$DV$2&ROW($DV103)),$DU103,$DU$2&ROW($DU103)),$DT103,$DT$2&ROW($DT103)),$DS103,$DS$2&ROW($DS103)))","v":"X=if(BA103<>3,0,AS103 * (AU103 * 1565 * 0.7 * (AW103-AY103)/40/100))/1000"},{"$f":"IF(Z103=\"\",0,\"X=\"&SUBSTITUTE(SUBSTITUTE(SUBSTITUTE(SUBSTITUTE(SUBSTITUTE(SUBSTITUTE(SUBSTITUTE(SUBSTITUTE(SUBSTITUTE(SUBSTITUTE(SUBSTITUTE(SUBSTITUTE(Z103,$ED103,$ED$2&ROW($ED103)),$EC103,$EC$2&ROW($EC103)),$EB103,$EB$2&ROW($EB103)),$EA103,$EA$2&ROW($EA103)),$DZ103,$DZ$2&ROW($DZ103)),$DY103,$DY$2&ROW($DY103)),$DX103,$DX$2&ROW($DX103)),$DW103,$DW$2&ROW($DW103)),$DV103,$DV$2&ROW($DV103)),$DU103,$DU$2&ROW($DU103)),$DT103,$DT$2&ROW($DT103)),$DS103,$DS$2&ROW($DS103)))","v":0},{"$f":"IF(AA103=\"\",0,\"X=\"&SUBSTITUTE(SUBSTITUTE(SUBSTITUTE(SUBSTITUTE(SUBSTITUTE(SUBSTITUTE(SUBSTITUTE(SUBSTITUTE(SUBSTITUTE(SUBSTITUTE(SUBSTITUTE(SUBSTITUTE(AA103,$ED103,$ED$2&ROW($ED103)),$EC103,$EC$2&ROW($EC103)),$EB103,$EB$2&ROW($EB103)),$EA103,$EA$2&ROW($EA103)),$DZ103,$DZ$2&ROW($DZ103)),$DY103,$DY$2&ROW($DY103)),$DX103,$DX$2&ROW($DX103)),$DW103,$DW$2&ROW($DW103)),$DV103,$DV$2&ROW($DV103)),$DU103,$DU$2&ROW($DU103)),$DT103,$DT$2&ROW($DT103)),$DS103,$DS$2&ROW($DS103)))","v":0},{"$f":"IF(AB103=\"\",0,\"X=\"&SUBSTITUTE(SUBSTITUTE(SUBSTITUTE(SUBSTITUTE(SUBSTITUTE(SUBSTITUTE(SUBSTITUTE(SUBSTITUTE(SUBSTITUTE(SUBSTITUTE(SUBSTITUTE(SUBSTITUTE(AB103,$ED103,$ED$2&ROW($ED103)),$EC103,$EC$2&ROW($EC103)),$EB103,$EB$2&ROW($EB103)),$EA103,$EA$2&ROW($EA103)),$DZ103,$DZ$2&ROW($DZ103)),$DY103,$DY$2&ROW($DY103)),$DX103,$DX$2&ROW($DX103)),$DW103,$DW$2&ROW($DW103)),$DV103,$DV$2&ROW($DV103)),$DU103,$DU$2&ROW($DU103)),$DT103,$DT$2&ROW($DT103)),$DS103,$DS$2&ROW($DS103)))","v":0},null,null,"{Factor:WinterCF}","{Factor:SummerCF}",{"$f":"IFERROR(INDEX($EG103:$IV103,MATCH(0,COUNTIF($DR103:DT103,$EG103:$IV103),0)),\"\")","v":"{Measure:Quantity}"},{"$f":"IFERROR(INDEX($EG103:$IV103,MATCH(0,COUNTIF($DR103:DU103,$EG103:$IV103),0)),\"\")","v":"{Capacity (MBTUH)}"},{"$f":"IFERROR(INDEX($EG103:$IV103,MATCH(0,COUNTIF($DR103:DV103,$EG103:$IV103),0)),\"\")","v":"{Flue Gas Temperature Before (oF)}"},{"$f":"IFERROR(INDEX($EG103:$IV103,MATCH(0,COUNTIF($DR103:DW103,$EG103:$IV103),0)),\"\")","v":"{Flue Gas Temperature After (oF)}"},{"$f":"IFERROR(INDEX($EG103:$IV103,MATCH(0,COUNTIF($DR103:DX103,$EG103:$IV103),0)),\"\")","v":"{Existing Fuel}"},{"$f":"IFERROR(INDEX($EG103:$IV103,MATCH(0,COUNTIF($DR103:DY103,$EG103:$IV103),0)),\"\")","v":""},{"$f":"IFERROR(INDEX($EG103:$IV103,MATCH(0,COUNTIF($DR103:DZ103,$EG103:$IV103),0)),\"\")","v":""},{"$f":"IFERROR(INDEX($EG103:$IV103,MATCH(0,COUNTIF($DR103:EA103,$EG103:$IV103),0)),\"\")","v":""},{"$f":"IFERROR(INDEX($EG103:$IV103,MATCH(0,COUNTIF($DR103:EB103,$EG103:$IV103),0)),\"\")","v":""},{"$f":"IFERROR(INDEX($EG103:$IV103,MATCH(0,COUNTIF($DR103:EC103,$EG103:$IV103),0)),\"\")","v":""},null,null,{"$f":"IFERROR(MID($G103,FIND(CHAR(160),SUBSTITUTE($G103,\"{\",CHAR(160),EG$1)),FIND(CHAR(160),SUBSTITUTE($G103,\"}\",CHAR(160),EG$1))-FIND(CHAR(160),SUBSTITUTE($G103,\"{\",CHAR(160),EG$1))+1),\"\")","v":"{Measure:Quantity}"},{"$f":"IFERROR(MID($G103,FIND(CHAR(160),SUBSTITUTE($G103,\"{\",CHAR(160),EH$1)),FIND(CHAR(160),SUBSTITUTE($G103,\"}\",CHAR(160),EH$1))-FIND(CHAR(160),SUBSTITUTE($G103,\"{\",CHAR(160),EH$1))+1),\"\")","v":""},{"$f":"IFERROR(MID($G103,FIND(CHAR(160),SUBSTITUTE($G103,\"{\",CHAR(160),EI$1)),FIND(CHAR(160),SUBSTITUTE($G103,\"}\",CHAR(160),EI$1))-FIND(CHAR(160),SUBSTITUTE($G103,\"{\",CHAR(160),EI$1))+1),\"\")","v":""},{"$f":"IFERROR(MID($G103,FIND(CHAR(160),SUBSTITUTE($G103,\"{\",CHAR(160),EJ$1)),FIND(CHAR(160),SUBSTITUTE($G103,\"}\",CHAR(160),EJ$1))-FIND(CHAR(160),SUBSTITUTE($G103,\"{\",CHAR(160),EJ$1))+1),\"\")","v":""},{"$f":"IFERROR(MID($G103,FIND(CHAR(160),SUBSTITUTE($G103,\"{\",CHAR(160),EK$1)),FIND(CHAR(160),SUBSTITUTE($G103,\"}\",CHAR(160),EK$1))-FIND(CHAR(160),SUBSTITUTE($G103,\"{\",CHAR(160),EK$1))+1),\"\")","v":""},{"$f":"IFERROR(MID($G103,FIND(CHAR(160),SUBSTITUTE($G103,\"{\",CHAR(160),EL$1)),FIND(CHAR(160),SUBSTITUTE($G103,\"}\",CHAR(160),EL$1))-FIND(CHAR(160),SUBSTITUTE($G103,\"{\",CHAR(160),EL$1))+1),\"\")","v":""},{"$f":"IFERROR(MID($G103,FIND(CHAR(160),SUBSTITUTE($G103,\"{\",CHAR(160),EM$1)),FIND(CHAR(160),SUBSTITUTE($G103,\"}\",CHAR(160),EM$1))-FIND(CHAR(160),SUBSTITUTE($G103,\"{\",CHAR(160),EM$1))+1),\"\")","v":""},{"$f":"IFERROR(MID($G103,FIND(CHAR(160),SUBSTITUTE($G103,\"{\",CHAR(160),EN$1)),FIND(CHAR(160),SUBSTITUTE($G103,\"}\",CHAR(160),EN$1))-FIND(CHAR(160),SUBSTITUTE($G103,\"{\",CHAR(160),EN$1))+1),\"\")","v":""},{"$f":"IFERROR(MID($G103,FIND(CHAR(160),SUBSTITUTE($G103,\"{\",CHAR(160),EO$1)),FIND(CHAR(160),SUBSTITUTE($G103,\"}\",CHAR(160),EO$1))-FIND(CHAR(160),SUBSTITUTE($G103,\"{\",CHAR(160),EO$1))+1),\"\")","v":""},{"$f":"IFERROR(MID($G103,FIND(CHAR(160),SUBSTITUTE($G103,\"{\",CHAR(160),EP$1)),FIND(CHAR(160),SUBSTITUTE($G103,\"}\",CHAR(160),EP$1))-FIND(CHAR(160),SUBSTITUTE($G103,\"{\",CHAR(160),EP$1))+1),\"\")","v":""},{"$f":"IFERROR(MID($J103,FIND(CHAR(160),SUBSTITUTE($J103,\"{\",CHAR(160),EQ$1)),FIND(CHAR(160),SUBSTITUTE($J103,\"}\",CHAR(160),EQ$1))-FIND(CHAR(160),SUBSTITUTE($J103,\"{\",CHAR(160),EQ$1))+1),\"\")","v":"{Measure:Quantity}"},{"$f":"IFERROR(MID($J103,FIND(CHAR(160),SUBSTITUTE($J103,\"{\",CHAR(160),ER$1)),FIND(CHAR(160),SUBSTITUTE($J103,\"}\",CHAR(160),ER$1))-FIND(CHAR(160),SUBSTITUTE($J103,\"{\",CHAR(160),ER$1))+1),\"\")","v":""},{"$f":"IFERROR(MID($J103,FIND(CHAR(160),SUBSTITUTE($J103,\"{\",CHAR(160),ES$1)),FIND(CHAR(160),SUBSTITUTE($J103,\"}\",CHAR(160),ES$1))-FIND(CHAR(160),SUBSTITUTE($J103,\"{\",CHAR(160),ES$1))+1),\"\")","v":""},{"$f":"IFERROR(MID($J103,FIND(CHAR(160),SUBSTITUTE($J103,\"{\",CHAR(160),ET$1)),FIND(CHAR(160),SUBSTITUTE($J103,\"}\",CHAR(160),ET$1))-FIND(CHAR(160),SUBSTITUTE($J103,\"{\",CHAR(160),ET$1))+1),\"\")","v":""},{"$f":"IFERROR(MID($J103,FIND(CHAR(160),SUBSTITUTE($J103,\"{\",CHAR(160),EU$1)),FIND(CHAR(160),SUBSTITUTE($J103,\"}\",CHAR(160),EU$1))-FIND(CHAR(160),SUBSTITUTE($J103,\"{\",CHAR(160),EU$1))+1),\"\")","v":""},{"$f":"IFERROR(MID($J103,FIND(CHAR(160),SUBSTITUTE($J103,\"{\",CHAR(160),EV$1)),FIND(CHAR(160),SUBSTITUTE($J103,\"}\",CHAR(160),EV$1))-FIND(CHAR(160),SUBSTITUTE($J103,\"{\",CHAR(160),EV$1))+1),\"\")","v":""},{"$f":"IFERROR(MID($J103,FIND(CHAR(160),SUBSTITUTE($J103,\"{\",CHAR(160),EW$1)),FIND(CHAR(160),SUBSTITUTE($J103,\"}\",CHAR(160),EW$1))-FIND(CHAR(160),SUBSTITUTE($J103,\"{\",CHAR(160),EW$1))+1),\"\")","v":""},{"$f":"IFERROR(MID($J103,FIND(CHAR(160),SUBSTITUTE($J103,\"{\",CHAR(160),EX$1)),FIND(CHAR(160),SUBSTITUTE($J103,\"}\",CHAR(160),EX$1))-FIND(CHAR(160),SUBSTITUTE($J103,\"{\",CHAR(160),EX$1))+1),\"\")","v":""},{"$f":"IFERROR(MID($J103,FIND(CHAR(160),SUBSTITUTE($J103,\"{\",CHAR(160),EY$1)),FIND(CHAR(160),SUBSTITUTE($J103,\"}\",CHAR(160),EY$1))-FIND(CHAR(160),SUBSTITUTE($J103,\"{\",CHAR(160),EY$1))+1),\"\")","v":""},{"$f":"IFERROR(MID($J103,FIND(CHAR(160),SUBSTITUTE($J103,\"{\",CHAR(160),EZ$1)),FIND(CHAR(160),SUBSTITUTE($J103,\"}\",CHAR(160),EZ$1))-FIND(CHAR(160),SUBSTITUTE($J103,\"{\",CHAR(160),EZ$1))+1),\"\")","v":""},{"$f":"IFERROR(MID($J103,FIND(CHAR(160),SUBSTITUTE($J103,\"{\",CHAR(160),FA$1)),FIND(CHAR(160),SUBSTITUTE($J103,\"}\",CHAR(160),FA$1))-FIND(CHAR(160),SUBSTITUTE($J103,\"{\",CHAR(160),FA$1))+1),\"\")","v":"{Measure:Quantity}"},{"$f":"IFERROR(MID($J103,FIND(CHAR(160),SUBSTITUTE($J103,\"{\",CHAR(160),FB$1)),FIND(CHAR(160),SUBSTITUTE($J103,\"}\",CHAR(160),FB$1))-FIND(CHAR(160),SUBSTITUTE($J103,\"{\",CHAR(160),FB$1))+1),\"\")","v":""},{"$f":"IFERROR(MID($O103,FIND(CHAR(160),SUBSTITUTE($O103,\"{\",CHAR(160),FC$1)),FIND(CHAR(160),SUBSTITUTE($O103,\"}\",CHAR(160),FC$1))-FIND(CHAR(160),SUBSTITUTE($O103,\"{\",CHAR(160),FC$1))+1),\"\")","v":""},{"$f":"IFERROR(MID($O103,FIND(CHAR(160),SUBSTITUTE($O103,\"{\",CHAR(160),FD$1)),FIND(CHAR(160),SUBSTITUTE($O103,\"}\",CHAR(160),FD$1))-FIND(CHAR(160),SUBSTITUTE($O103,\"{\",CHAR(160),FD$1))+1),\"\")","v":""},{"$f":"IFERROR(MID($O103,FIND(CHAR(160),SUBSTITUTE($O103,\"{\",CHAR(160),FE$1)),FIND(CHAR(160),SUBSTITUTE($O103,\"}\",CHAR(160),FE$1))-FIND(CHAR(160),SUBSTITUTE($O103,\"{\",CHAR(160),FE$1))+1),\"\")","v":""},{"$f":"IFERROR(MID($O103,FIND(CHAR(160),SUBSTITUTE($O103,\"{\",CHAR(160),FF$1)),FIND(CHAR(160),SUBSTITUTE($O103,\"}\",CHAR(160),FF$1))-FIND(CHAR(160),SUBSTITUTE($O103,\"{\",CHAR(160),FF$1))+1),\"\")","v":""},{"$f":"IFERROR(MID($O103,FIND(CHAR(160),SUBSTITUTE($O103,\"{\",CHAR(160),FG$1)),FIND(CHAR(160),SUBSTITUTE($O103,\"}\",CHAR(160),FG$1))-FIND(CHAR(160),SUBSTITUTE($O103,\"{\",CHAR(160),FG$1))+1),\"\")","v":""},{"$f":"IFERROR(MID($O103,FIND(CHAR(160),SUBSTITUTE($O103,\"{\",CHAR(160),FH$1)),FIND(CHAR(160),SUBSTITUTE($O103,\"}\",CHAR(160),FH$1))-FIND(CHAR(160),SUBSTITUTE($O103,\"{\",CHAR(160),FH$1))+1),\"\")","v":""},{"$f":"IFERROR(MID($O103,FIND(CHAR(160),SUBSTITUTE($O103,\"{\",CHAR(160),FI$1)),FIND(CHAR(160),SUBSTITUTE($O103,\"}\",CHAR(160),FI$1))-FIND(CHAR(160),SUBSTITUTE($O103,\"{\",CHAR(160),FI$1))+1),\"\")","v":""},{"$f":"IFERROR(MID($O103,FIND(CHAR(160),SUBSTITUTE($O103,\"{\",CHAR(160),FJ$1)),FIND(CHAR(160),SUBSTITUTE($O103,\"}\",CHAR(160),FJ$1))-FIND(CHAR(160),SUBSTITUTE($O103,\"{\",CHAR(160),FJ$1))+1),\"\")","v":""},{"$f":"IFERROR(MID($O103,FIND(CHAR(160),SUBSTITUTE($O103,\"{\",CHAR(160),FK$1)),FIND(CHAR(160),SUBSTITUTE($O103,\"}\",CHAR(160),FK$1))-FIND(CHAR(160),SUBSTITUTE($O103,\"{\",CHAR(160),FK$1))+1),\"\")","v":""},{"$f":"IFERROR(MID($O103,FIND(CHAR(160),SUBSTITUTE($O103,\"{\",CHAR(160),FL$1)),FIND(CHAR(160),SUBSTITUTE($O103,\"}\",CHAR(160),FL$1))-FIND(CHAR(160),SUBSTITUTE($O103,\"{\",CHAR(160),FL$1))+1),\"\")","v":""},{"$f":"IFERROR(MID($R103,FIND(CHAR(160),SUBSTITUTE($R103,\"{\",CHAR(160),FM$1)),FIND(CHAR(160),SUBSTITUTE($R103,\"}\",CHAR(160),FM$1))-FIND(CHAR(160),SUBSTITUTE($R103,\"{\",CHAR(160),FM$1))+1),\"\")","v":""},{"$f":"IFERROR(MID($R103,FIND(CHAR(160),SUBSTITUTE($R103,\"{\",CHAR(160),FN$1)),FIND(CHAR(160),SUBSTITUTE($R103,\"}\",CHAR(160),FN$1))-FIND(CHAR(160),SUBSTITUTE($R103,\"{\",CHAR(160),FN$1))+1),\"\")","v":""},{"$f":"IFERROR(MID($R103,FIND(CHAR(160),SUBSTITUTE($R103,\"{\",CHAR(160),FO$1)),FIND(CHAR(160),SUBSTITUTE($R103,\"}\",CHAR(160),FO$1))-FIND(CHAR(160),SUBSTITUTE($R103,\"{\",CHAR(160),FO$1))+1),\"\")","v":""},{"$f":"IFERROR(MID($R103,FIND(CHAR(160),SUBSTITUTE($R103,\"{\",CHAR(160),FP$1)),FIND(CHAR(160),SUBSTITUTE($R103,\"}\",CHAR(160),FP$1))-FIND(CHAR(160),SUBSTITUTE($R103,\"{\",CHAR(160),FP$1))+1),\"\")","v":""},{"$f":"IFERROR(MID($R103,FIND(CHAR(160),SUBSTITUTE($R103,\"{\",CHAR(160),FQ$1)),FIND(CHAR(160),SUBSTITUTE($R103,\"}\",CHAR(160),FQ$1))-FIND(CHAR(160),SUBSTITUTE($R103,\"{\",CHAR(160),FQ$1))+1),\"\")","v":""},{"$f":"IFERROR(MID($R103,FIND(CHAR(160),SUBSTITUTE($R103,\"{\",CHAR(160),FR$1)),FIND(CHAR(160),SUBSTITUTE($R103,\"}\",CHAR(160),FR$1))-FIND(CHAR(160),SUBSTITUTE($R103,\"{\",CHAR(160),FR$1))+1),\"\")","v":""},{"$f":"IFERROR(MID($R103,FIND(CHAR(160),SUBSTITUTE($R103,\"{\",CHAR(160),FS$1)),FIND(CHAR(160),SUBSTITUTE($R103,\"}\",CHAR(160),FS$1))-FIND(CHAR(160),SUBSTITUTE($R103,\"{\",CHAR(160),FS$1))+1),\"\")","v":""},{"$f":"IFERROR(MID($R103,FIND(CHAR(160),SUBSTITUTE($R103,\"{\",CHAR(160),FT$1)),FIND(CHAR(160),SUBSTITUTE($R103,\"}\",CHAR(160),FT$1))-FIND(CHAR(160),SUBSTITUTE($R103,\"{\",CHAR(160),FT$1))+1),\"\")","v":""},{"$f":"IFERROR(MID($R103,FIND(CHAR(160),SUBSTITUTE($R103,\"{\",CHAR(160),FU$1)),FIND(CHAR(160),SUBSTITUTE($R103,\"}\",CHAR(160),FU$1))-FIND(CHAR(160),SUBSTITUTE($R103,\"{\",CHAR(160),FU$1))+1),\"\")","v":""},{"$f":"IFERROR(MID($R103,FIND(CHAR(160),SUBSTITUTE($R103,\"{\",CHAR(160),FV$1)),FIND(CHAR(160),SUBSTITUTE($R103,\"}\",CHAR(160),FV$1))-FIND(CHAR(160),SUBSTITUTE($R103,\"{\",CHAR(160),FV$1))+1),\"\")","v":""},{"$f":"IFERROR(MID($U103,FIND(CHAR(160),SUBSTITUTE($U103,\"{\",CHAR(160),FW$1)),FIND(CHAR(160),SUBSTITUTE($U103,\"}\",CHAR(160),FW$1))-FIND(CHAR(160),SUBSTITUTE($U103,\"{\",CHAR(160),FW$1))+1),\"\")","v":""},{"$f":"IFERROR(MID($U103,FIND(CHAR(160),SUBSTITUTE($U103,\"{\",CHAR(160),FX$1)),FIND(CHAR(160),SUBSTITUTE($U103,\"}\",CHAR(160),FX$1))-FIND(CHAR(160),SUBSTITUTE($U103,\"{\",CHAR(160),FX$1))+1),\"\")","v":""},{"$f":"IFERROR(MID($U103,FIND(CHAR(160),SUBSTITUTE($U103,\"{\",CHAR(160),FY$1)),FIND(CHAR(160),SUBSTITUTE($U103,\"}\",CHAR(160),FY$1))-FIND(CHAR(160),SUBSTITUTE($U103,\"{\",CHAR(160),FY$1))+1),\"\")","v":""},{"$f":"IFERROR(MID($U103,FIND(CHAR(160),SUBSTITUTE($U103,\"{\",CHAR(160),FZ$1)),FIND(CHAR(160),SUBSTITUTE($U103,\"}\",CHAR(160),FZ$1))-FIND(CHAR(160),SUBSTITUTE($U103,\"{\",CHAR(160),FZ$1))+1),\"\")","v":""},{"$f":"IFERROR(MID($U103,FIND(CHAR(160),SUBSTITUTE($U103,\"{\",CHAR(160),GA$1)),FIND(CHAR(160),SUBSTITUTE($U103,\"}\",CHAR(160),GA$1))-FIND(CHAR(160),SUBSTITUTE($U103,\"{\",CHAR(160),GA$1))+1),\"\")","v":""},{"$f":"IFERROR(MID($U103,FIND(CHAR(160),SUBSTITUTE($U103,\"{\",CHAR(160),GB$1)),FIND(CHAR(160),SUBSTITUTE($U103,\"}\",CHAR(160),GB$1))-FIND(CHAR(160),SUBSTITUTE($U103,\"{\",CHAR(160),GB$1))+1),\"\")","v":""},{"$f":"IFERROR(MID($U103,FIND(CHAR(160),SUBSTITUTE($U103,\"{\",CHAR(160),GC$1)),FIND(CHAR(160),SUBSTITUTE($U103,\"}\",CHAR(160),GC$1))-FIND(CHAR(160),SUBSTITUTE($U103,\"{\",CHAR(160),GC$1))+1),\"\")","v":""},{"$f":"IFERROR(MID($U103,FIND(CHAR(160),SUBSTITUTE($U103,\"{\",CHAR(160),GD$1)),FIND(CHAR(160),SUBSTITUTE($U103,\"}\",CHAR(160),GD$1))-FIND(CHAR(160),SUBSTITUTE($U103,\"{\",CHAR(160),GD$1))+1),\"\")","v":""},{"$f":"IFERROR(MID($U103,FIND(CHAR(160),SUBSTITUTE($U103,\"{\",CHAR(160),GE$1)),FIND(CHAR(160),SUBSTITUTE($U103,\"}\",CHAR(160),GE$1))-FIND(CHAR(160),SUBSTITUTE($U103,\"{\",CHAR(160),GE$1))+1),\"\")","v":""},{"$f":"IFERROR(MID($U103,FIND(CHAR(160),SUBSTITUTE($U103,\"{\",CHAR(160),GF$1)),FIND(CHAR(160),SUBSTITUTE($U103,\"}\",CHAR(160),GF$1))-FIND(CHAR(160),SUBSTITUTE($U103,\"{\",CHAR(160),GF$1))+1),\"\")","v":""},{"$f":"IFERROR(MID($V103,FIND(CHAR(160),SUBSTITUTE($V103,\"{\",CHAR(160),GG$1)),FIND(CHAR(160),SUBSTITUTE($V103,\"}\",CHAR(160),GG$1))-FIND(CHAR(160),SUBSTITUTE($V103,\"{\",CHAR(160),GG$1))+1),\"\")","v":""},{"$f":"IFERROR(MID($V103,FIND(CHAR(160),SUBSTITUTE($V103,\"{\",CHAR(160),GH$1)),FIND(CHAR(160),SUBSTITUTE($V103,\"}\",CHAR(160),GH$1))-FIND(CHAR(160),SUBSTITUTE($V103,\"{\",CHAR(160),GH$1))+1),\"\")","v":""},{"$f":"IFERROR(MID($V103,FIND(CHAR(160),SUBSTITUTE($V103,\"{\",CHAR(160),GI$1)),FIND(CHAR(160),SUBSTITUTE($V103,\"}\",CHAR(160),GI$1))-FIND(CHAR(160),SUBSTITUTE($V103,\"{\",CHAR(160),GI$1))+1),\"\")","v":""},{"$f":"IFERROR(MID($V103,FIND(CHAR(160),SUBSTITUTE($V103,\"{\",CHAR(160),GJ$1)),FIND(CHAR(160),SUBSTITUTE($V103,\"}\",CHAR(160),GJ$1))-FIND(CHAR(160),SUBSTITUTE($V103,\"{\",CHAR(160),GJ$1))+1),\"\")","v":""},{"$f":"IFERROR(MID($V103,FIND(CHAR(160),SUBSTITUTE($V103,\"{\",CHAR(160),GK$1)),FIND(CHAR(160),SUBSTITUTE($V103,\"}\",CHAR(160),GK$1))-FIND(CHAR(160),SUBSTITUTE($V103,\"{\",CHAR(160),GK$1))+1),\"\")","v":""},{"$f":"IFERROR(MID($V103,FIND(CHAR(160),SUBSTITUTE($V103,\"{\",CHAR(160),GL$1)),FIND(CHAR(160),SUBSTITUTE($V103,\"}\",CHAR(160),GL$1))-FIND(CHAR(160),SUBSTITUTE($V103,\"{\",CHAR(160),GL$1))+1),\"\")","v":""},{"$f":"IFERROR(MID($V103,FIND(CHAR(160),SUBSTITUTE($V103,\"{\",CHAR(160),GM$1)),FIND(CHAR(160),SUBSTITUTE($V103,\"}\",CHAR(160),GM$1))-FIND(CHAR(160),SUBSTITUTE($V103,\"{\",CHAR(160),GM$1))+1),\"\")","v":""},{"$f":"IFERROR(MID($V103,FIND(CHAR(160),SUBSTITUTE($V103,\"{\",CHAR(160),GN$1)),FIND(CHAR(160),SUBSTITUTE($V103,\"}\",CHAR(160),GN$1))-FIND(CHAR(160),SUBSTITUTE($V103,\"{\",CHAR(160),GN$1))+1),\"\")","v":""},{"$f":"IFERROR(MID($V103,FIND(CHAR(160),SUBSTITUTE($V103,\"{\",CHAR(160),GO$1)),FIND(CHAR(160),SUBSTITUTE($V103,\"}\",CHAR(160),GO$1))-FIND(CHAR(160),SUBSTITUTE($V103,\"{\",CHAR(160),GO$1))+1),\"\")","v":""},{"$f":"IFERROR(MID($V103,FIND(CHAR(160),SUBSTITUTE($V103,\"{\",CHAR(160),GP$1)),FIND(CHAR(160),SUBSTITUTE($V103,\"}\",CHAR(160),GP$1))-FIND(CHAR(160),SUBSTITUTE($V103,\"{\",CHAR(160),GP$1))+1),\"\")","v":""},{"$f":"IFERROR(MID($W103,FIND(CHAR(160),SUBSTITUTE($W103,\"{\",CHAR(160),GQ$1)),FIND(CHAR(160),SUBSTITUTE($W103,\"}\",CHAR(160),GQ$1))-FIND(CHAR(160),SUBSTITUTE($W103,\"{\",CHAR(160),GQ$1))+1),\"\")","v":""},{"$f":"IFERROR(MID($W103,FIND(CHAR(160),SUBSTITUTE($W103,\"{\",CHAR(160),GR$1)),FIND(CHAR(160),SUBSTITUTE($W103,\"}\",CHAR(160),GR$1))-FIND(CHAR(160),SUBSTITUTE($W103,\"{\",CHAR(160),GR$1))+1),\"\")","v":""},{"$f":"IFERROR(MID($W103,FIND(CHAR(160),SUBSTITUTE($W103,\"{\",CHAR(160),GS$1)),FIND(CHAR(160),SUBSTITUTE($W103,\"}\",CHAR(160),GS$1))-FIND(CHAR(160),SUBSTITUTE($W103,\"{\",CHAR(160),GS$1))+1),\"\")","v":""},{"$f":"IFERROR(MID($W103,FIND(CHAR(160),SUBSTITUTE($W103,\"{\",CHAR(160),GT$1)),FIND(CHAR(160),SUBSTITUTE($W103,\"}\",CHAR(160),GT$1))-FIND(CHAR(160),SUBSTITUTE($W103,\"{\",CHAR(160),GT$1))+1),\"\")","v":""},{"$f":"IFERROR(MID($W103,FIND(CHAR(160),SUBSTITUTE($W103,\"{\",CHAR(160),GU$1)),FIND(CHAR(160),SUBSTITUTE($W103,\"}\",CHAR(160),GU$1))-FIND(CHAR(160),SUBSTITUTE($W103,\"{\",CHAR(160),GU$1))+1),\"\")","v":""},{"$f":"IFERROR(MID($W103,FIND(CHAR(160),SUBSTITUTE($W103,\"{\",CHAR(160),GV$1)),FIND(CHAR(160),SUBSTITUTE($W103,\"}\",CHAR(160),GV$1))-FIND(CHAR(160),SUBSTITUTE($W103,\"{\",CHAR(160),GV$1))+1),\"\")","v":""},{"$f":"IFERROR(MID($W103,FIND(CHAR(160),SUBSTITUTE($W103,\"{\",CHAR(160),GW$1)),FIND(CHAR(160),SUBSTITUTE($W103,\"}\",CHAR(160),GW$1))-FIND(CHAR(160),SUBSTITUTE($W103,\"{\",CHAR(160),GW$1))+1),\"\")","v":""},{"$f":"IFERROR(MID($W103,FIND(CHAR(160),SUBSTITUTE($W103,\"{\",CHAR(160),GX$1)),FIND(CHAR(160),SUBSTITUTE($W103,\"}\",CHAR(160),GX$1))-FIND(CHAR(160),SUBSTITUTE($W103,\"{\",CHAR(160),GX$1))+1),\"\")","v":""},{"$f":"IFERROR(MID($W103,FIND(CHAR(160),SUBSTITUTE($W103,\"{\",CHAR(160),GY$1)),FIND(CHAR(160),SUBSTITUTE($W103,\"}\",CHAR(160),GY$1))-FIND(CHAR(160),SUBSTITUTE($W103,\"{\",CHAR(160),GY$1))+1),\"\")","v":""},{"$f":"IFERROR(MID($W103,FIND(CHAR(160),SUBSTITUTE($W103,\"{\",CHAR(160),GZ$1)),FIND(CHAR(160),SUBSTITUTE($W103,\"}\",CHAR(160),GZ$1))-FIND(CHAR(160),SUBSTITUTE($W103,\"{\",CHAR(160),GZ$1))+1),\"\")","v":""},{"$f":"IFERROR(MID($X103,FIND(CHAR(160),SUBSTITUTE($X103,\"{\",CHAR(160),HA$1)),FIND(CHAR(160),SUBSTITUTE($X103,\"}\",CHAR(160),HA$1))-FIND(CHAR(160),SUBSTITUTE($X103,\"{\",CHAR(160),HA$1))+1),\"\")","v":""},{"$f":"IFERROR(MID($X103,FIND(CHAR(160),SUBSTITUTE($X103,\"{\",CHAR(160),HB$1)),FIND(CHAR(160),SUBSTITUTE($X103,\"}\",CHAR(160),HB$1))-FIND(CHAR(160),SUBSTITUTE($X103,\"{\",CHAR(160),HB$1))+1),\"\")","v":""},{"$f":"IFERROR(MID($X103,FIND(CHAR(160),SUBSTITUTE($X103,\"{\",CHAR(160),HC$1)),FIND(CHAR(160),SUBSTITUTE($X103,\"}\",CHAR(160),HC$1))-FIND(CHAR(160),SUBSTITUTE($X103,\"{\",CHAR(160),HC$1))+1),\"\")","v":""},{"$f":"IFERROR(MID($X103,FIND(CHAR(160),SUBSTITUTE($X103,\"{\",CHAR(160),HD$1)),FIND(CHAR(160),SUBSTITUTE($X103,\"}\",CHAR(160),HD$1))-FIND(CHAR(160),SUBSTITUTE($X103,\"{\",CHAR(160),HD$1))+1),\"\")","v":""},{"$f":"IFERROR(MID($X103,FIND(CHAR(160),SUBSTITUTE($X103,\"{\",CHAR(160),HE$1)),FIND(CHAR(160),SUBSTITUTE($X103,\"}\",CHAR(160),HE$1))-FIND(CHAR(160),SUBSTITUTE($X103,\"{\",CHAR(160),HE$1))+1),\"\")","v":""},{"$f":"IFERROR(MID($X103,FIND(CHAR(160),SUBSTITUTE($X103,\"{\",CHAR(160),HF$1)),FIND(CHAR(160),SUBSTITUTE($X103,\"}\",CHAR(160),HF$1))-FIND(CHAR(160),SUBSTITUTE($X103,\"{\",CHAR(160),HF$1))+1),\"\")","v":""},{"$f":"IFERROR(MID($X103,FIND(CHAR(160),SUBSTITUTE($X103,\"{\",CHAR(160),HG$1)),FIND(CHAR(160),SUBSTITUTE($X103,\"}\",CHAR(160),HG$1))-FIND(CHAR(160),SUBSTITUTE($X103,\"{\",CHAR(160),HG$1))+1),\"\")","v":""},{"$f":"IFERROR(MID($X103,FIND(CHAR(160),SUBSTITUTE($X103,\"{\",CHAR(160),HH$1)),FIND(CHAR(160),SUBSTITUTE($X103,\"}\",CHAR(160),HH$1))-FIND(CHAR(160),SUBSTITUTE($X103,\"{\",CHAR(160),HH$1))+1),\"\")","v":""},{"$f":"IFERROR(MID($X103,FIND(CHAR(160),SUBSTITUTE($X103,\"{\",CHAR(160),HI$1)),FIND(CHAR(160),SUBSTITUTE($X103,\"}\",CHAR(160),HI$1))-FIND(CHAR(160),SUBSTITUTE($X103,\"{\",CHAR(160),HI$1))+1),\"\")","v":""},{"$f":"IFERROR(MID($X103,FIND(CHAR(160),SUBSTITUTE($X103,\"{\",CHAR(160),HJ$1)),FIND(CHAR(160),SUBSTITUTE($X103,\"}\",CHAR(160),HJ$1))-FIND(CHAR(160),SUBSTITUTE($X103,\"{\",CHAR(160),HJ$1))+1),\"\")","v":""},{"$f":"IFERROR(MID($Y103,FIND(CHAR(160),SUBSTITUTE($Y103,\"{\",CHAR(160),HK$1)),FIND(CHAR(160),SUBSTITUTE($Y103,\"}\",CHAR(160),HK$1))-FIND(CHAR(160),SUBSTITUTE($Y103,\"{\",CHAR(160),HK$1))+1),\"\")","v":"{Capacity (MBTUH)}"},{"$f":"IFERROR(MID($Y103,FIND(CHAR(160),SUBSTITUTE($Y103,\"{\",CHAR(160),HL$1)),FIND(CHAR(160),SUBSTITUTE($Y103,\"}\",CHAR(160),HL$1))-FIND(CHAR(160),SUBSTITUTE($Y103,\"{\",CHAR(160),HL$1))+1),\"\")","v":"{Flue Gas Temperature Before (oF)}"},{"$f":"IFERROR(MID($Y103,FIND(CHAR(160),SUBSTITUTE($Y103,\"{\",CHAR(160),HM$1)),FIND(CHAR(160),SUBSTITUTE($Y103,\"}\",CHAR(160),HM$1))-FIND(CHAR(160),SUBSTITUTE($Y103,\"{\",CHAR(160),HM$1))+1),\"\")","v":"{Flue Gas Temperature After (oF)}"},{"$f":"IFERROR(MID($Y103,FIND(CHAR(160),SUBSTITUTE($Y103,\"{\",CHAR(160),HN$1)),FIND(CHAR(160),SUBSTITUTE($Y103,\"}\",CHAR(160),HN$1))-FIND(CHAR(160),SUBSTITUTE($Y103,\"{\",CHAR(160),HN$1))+1),\"\")","v":""},{"$f":"IFERROR(MID($Y103,FIND(CHAR(160),SUBSTITUTE($Y103,\"{\",CHAR(160),HO$1)),FIND(CHAR(160),SUBSTITUTE($Y103,\"}\",CHAR(160),HO$1))-FIND(CHAR(160),SUBSTITUTE($Y103,\"{\",CHAR(160),HO$1))+1),\"\")","v":""},{"$f":"IFERROR(MID($Y103,FIND(CHAR(160),SUBSTITUTE($Y103,\"{\",CHAR(160),HP$1)),FIND(CHAR(160),SUBSTITUTE($Y103,\"}\",CHAR(160),HP$1))-FIND(CHAR(160),SUBSTITUTE($Y103,\"{\",CHAR(160),HP$1))+1),\"\")","v":""},{"$f":"IFERROR(MID($Y103,FIND(CHAR(160),SUBSTITUTE($Y103,\"{\",CHAR(160),HQ$1)),FIND(CHAR(160),SUBSTITUTE($Y103,\"}\",CHAR(160),HQ$1))-FIND(CHAR(160),SUBSTITUTE($Y103,\"{\",CHAR(160),HQ$1))+1),\"\")","v":""},{"$f":"IFERROR(MID($Y103,FIND(CHAR(160),SUBSTITUTE($Y103,\"{\",CHAR(160),HR$1)),FIND(CHAR(160),SUBSTITUTE($Y103,\"}\",CHAR(160),HR$1))-FIND(CHAR(160),SUBSTITUTE($Y103,\"{\",CHAR(160),HR$1))+1),\"\")","v":""},{"$f":"IFERROR(MID($Y103,FIND(CHAR(160),SUBSTITUTE($Y103,\"{\",CHAR(160),HS$1)),FIND(CHAR(160),SUBSTITUTE($Y103,\"}\",CHAR(160),HS$1))-FIND(CHAR(160),SUBSTITUTE($Y103,\"{\",CHAR(160),HS$1))+1),\"\")","v":"{Existing Fuel}"},{"$f":"IFERROR(MID($Y103,FIND(CHAR(160),SUBSTITUTE($Y103,\"{\",CHAR(160),HT$1)),FIND(CHAR(160),SUBSTITUTE($Y103,\"}\",CHAR(160),HT$1))-FIND(CHAR(160),SUBSTITUTE($Y103,\"{\",CHAR(160),HT$1))+1),\"\")","v":"{Measure:Quantity}"},{"$f":"IFERROR(MID($Z103,FIND(CHAR(160),SUBSTITUTE($Z103,\"{\",CHAR(160),HU$1)),FIND(CHAR(160),SUBSTITUTE($Z103,\"}\",CHAR(160),HU$1))-FIND(CHAR(160),SUBSTITUTE($Z103,\"{\",CHAR(160),HU$1))+1),\"\")","v":""},{"$f":"IFERROR(MID($Z103,FIND(CHAR(160),SUBSTITUTE($Z103,\"{\",CHAR(160),HV$1)),FIND(CHAR(160),SUBSTITUTE($Z103,\"}\",CHAR(160),HV$1))-FIND(CHAR(160),SUBSTITUTE($Z103,\"{\",CHAR(160),HV$1))+1),\"\")","v":""},{"$f":"IFERROR(MID($Z103,FIND(CHAR(160),SUBSTITUTE($Z103,\"{\",CHAR(160),HW$1)),FIND(CHAR(160),SUBSTITUTE($Z103,\"}\",CHAR(160),HW$1))-FIND(CHAR(160),SUBSTITUTE($Z103,\"{\",CHAR(160),HW$1))+1),\"\")","v":""},{"$f":"IFERROR(MID($Z103,FIND(CHAR(160),SUBSTITUTE($Z103,\"{\",CHAR(160),HX$1)),FIND(CHAR(160),SUBSTITUTE($Z103,\"}\",CHAR(160),HX$1))-FIND(CHAR(160),SUBSTITUTE($Z103,\"{\",CHAR(160),HX$1))+1),\"\")","v":""},{"$f":"IFERROR(MID($Z103,FIND(CHAR(160),SUBSTITUTE($Z103,\"{\",CHAR(160),HY$1)),FIND(CHAR(160),SUBSTITUTE($Z103,\"}\",CHAR(160),HY$1))-FIND(CHAR(160),SUBSTITUTE($Z103,\"{\",CHAR(160),HY$1))+1),\"\")","v":""},{"$f":"IFERROR(MID($Z103,FIND(CHAR(160),SUBSTITUTE($Z103,\"{\",CHAR(160),HZ$1)),FIND(CHAR(160),SUBSTITUTE($Z103,\"}\",CHAR(160),HZ$1))-FIND(CHAR(160),SUBSTITUTE($Z103,\"{\",CHAR(160),HZ$1))+1),\"\")","v":""},{"$f":"IFERROR(MID($Z103,FIND(CHAR(160),SUBSTITUTE($Z103,\"{\",CHAR(160),IA$1)),FIND(CHAR(160),SUBSTITUTE($Z103,\"}\",CHAR(160),IA$1))-FIND(CHAR(160),SUBSTITUTE($Z103,\"{\",CHAR(160),IA$1))+1),\"\")","v":""},{"$f":"IFERROR(MID($Z103,FIND(CHAR(160),SUBSTITUTE($Z103,\"{\",CHAR(160),IB$1)),FIND(CHAR(160),SUBSTITUTE($Z103,\"}\",CHAR(160),IB$1))-FIND(CHAR(160),SUBSTITUTE($Z103,\"{\",CHAR(160),IB$1))+1),\"\")","v":""},{"$f":"IFERROR(MID($Z103,FIND(CHAR(160),SUBSTITUTE($Z103,\"{\",CHAR(160),IC$1)),FIND(CHAR(160),SUBSTITUTE($Z103,\"}\",CHAR(160),IC$1))-FIND(CHAR(160),SUBSTITUTE($Z103,\"{\",CHAR(160),IC$1))+1),\"\")","v":""},{"$f":"IFERROR(MID($Z103,FIND(CHAR(160),SUBSTITUTE($Z103,\"{\",CHAR(160),ID$1)),FIND(CHAR(160),SUBSTITUTE($Z103,\"}\",CHAR(160),ID$1))-FIND(CHAR(160),SUBSTITUTE($Z103,\"{\",CHAR(160),ID$1))+1),\"\")","v":""},{"$f":"IFERROR(MID($AA103,FIND(CHAR(160),SUBSTITUTE($AA103,\"{\",CHAR(160),IE$1)),FIND(CHAR(160),SUBSTITUTE($AA103,\"}\",CHAR(160),IE$1))-FIND(CHAR(160),SUBSTITUTE($AA103,\"{\",CHAR(160),IE$1))+1),\"\")","v":""},{"$f":"IFERROR(MID($AA103,FIND(CHAR(160),SUBSTITUTE($AA103,\"{\",CHAR(160),IF$1)),FIND(CHAR(160),SUBSTITUTE($AA103,\"}\",CHAR(160),IF$1))-FIND(CHAR(160),SUBSTITUTE($AA103,\"{\",CHAR(160),IF$1))+1),\"\")","v":""},{"$f":"IFERROR(MID($AA103,FIND(CHAR(160),SUBSTITUTE($AA103,\"{\",CHAR(160),IG$1)),FIND(CHAR(160),SUBSTITUTE($AA103,\"}\",CHAR(160),IG$1))-FIND(CHAR(160),SUBSTITUTE($AA103,\"{\",CHAR(160),IG$1))+1),\"\")","v":""},{"$f":"IFERROR(MID($AA103,FIND(CHAR(160),SUBSTITUTE($AA103,\"{\",CHAR(160),IH$1)),FIND(CHAR(160),SUBSTITUTE($AA103,\"}\",CHAR(160),IH$1))-FIND(CHAR(160),SUBSTITUTE($AA103,\"{\",CHAR(160),IH$1))+1),\"\")","v":""},{"$f":"IFERROR(MID($AA103,FIND(CHAR(160),SUBSTITUTE($AA103,\"{\",CHAR(160),II$1)),FIND(CHAR(160),SUBSTITUTE($AA103,\"}\",CHAR(160),II$1))-FIND(CHAR(160),SUBSTITUTE($AA103,\"{\",CHAR(160),II$1))+1),\"\")","v":""},{"$f":"IFERROR(MID($AA103,FIND(CHAR(160),SUBSTITUTE($AA103,\"{\",CHAR(160),IJ$1)),FIND(CHAR(160),SUBSTITUTE($AA103,\"}\",CHAR(160),IJ$1))-FIND(CHAR(160),SUBSTITUTE($AA103,\"{\",CHAR(160),IJ$1))+1),\"\")","v":""},{"$f":"IFERROR(MID($AA103,FIND(CHAR(160),SUBSTITUTE($AA103,\"{\",CHAR(160),IK$1)),FIND(CHAR(160),SUBSTITUTE($AA103,\"}\",CHAR(160),IK$1))-FIND(CHAR(160),SUBSTITUTE($AA103,\"{\",CHAR(160),IK$1))+1),\"\")","v":""},{"$f":"IFERROR(MID($AA103,FIND(CHAR(160),SUBSTITUTE($AA103,\"{\",CHAR(160),IL$1)),FIND(CHAR(160),SUBSTITUTE($AA103,\"}\",CHAR(160),IL$1))-FIND(CHAR(160),SUBSTITUTE($AA103,\"{\",CHAR(160),IL$1))+1),\"\")","v":""},{"$f":"IFERROR(MID($AA103,FIND(CHAR(160),SUBSTITUTE($AA103,\"{\",CHAR(160),IM$1)),FIND(CHAR(160),SUBSTITUTE($AA103,\"}\",CHAR(160),IM$1))-FIND(CHAR(160),SUBSTITUTE($AA103,\"{\",CHAR(160),IM$1))+1),\"\")","v":""},{"$f":"IFERROR(MID($AA103,FIND(CHAR(160),SUBSTITUTE($AA103,\"{\",CHAR(160),IN$1)),FIND(CHAR(160),SUBSTITUTE($AA103,\"}\",CHAR(160),IN$1))-FIND(CHAR(160),SUBSTITUTE($AA103,\"{\",CHAR(160),IN$1))+1),\"\")","v":""},{"$f":"IFERROR(MID($AB103,FIND(CHAR(160),SUBSTITUTE($AB103,\"{\",CHAR(160),IO$1)),FIND(CHAR(160),SUBSTITUTE($AB103,\"}\",CHAR(160),IO$1))-FIND(CHAR(160),SUBSTITUTE($AB103,\"{\",CHAR(160),IO$1))+1),\"\")","v":""},{"$f":"IFERROR(MID($AB103,FIND(CHAR(160),SUBSTITUTE($AB103,\"{\",CHAR(160),IP$1)),FIND(CHAR(160),SUBSTITUTE($AB103,\"}\",CHAR(160),IP$1))-FIND(CHAR(160),SUBSTITUTE($AB103,\"{\",CHAR(160),IP$1))+1),\"\")","v":""},{"$f":"IFERROR(MID($AB103,FIND(CHAR(160),SUBSTITUTE($AB103,\"{\",CHAR(160),IQ$1)),FIND(CHAR(160),SUBSTITUTE($AB103,\"}\",CHAR(160),IQ$1))-FIND(CHAR(160),SUBSTITUTE($AB103,\"{\",CHAR(160),IQ$1))+1),\"\")","v":""},{"$f":"IFERROR(MID($AB103,FIND(CHAR(160),SUBSTITUTE($AB103,\"{\",CHAR(160),IR$1)),FIND(CHAR(160),SUBSTITUTE($AB103,\"}\",CHAR(160),IR$1))-FIND(CHAR(160),SUBSTITUTE($AB103,\"{\",CHAR(160),IR$1))+1),\"\")","v":""},{"$f":"IFERROR(MID($AB103,FIND(CHAR(160),SUBSTITUTE($AB103,\"{\",CHAR(160),IS$1)),FIND(CHAR(160),SUBSTITUTE($AB103,\"}\",CHAR(160),IS$1))-FIND(CHAR(160),SUBSTITUTE($AB103,\"{\",CHAR(160),IS$1))+1),\"\")","v":""},{"$f":"IFERROR(MID($AB103,FIND(CHAR(160),SUBSTITUTE($AB103,\"{\",CHAR(160),IT$1)),FIND(CHAR(160),SUBSTITUTE($AB103,\"}\",CHAR(160),IT$1))-FIND(CHAR(160),SUBSTITUTE($AB103,\"{\",CHAR(160),IT$1))+1),\"\")","v":""},{"$f":"IFERROR(MID($AB103,FIND(CHAR(160),SUBSTITUTE($AB103,\"{\",CHAR(160),IU$1)),FIND(CHAR(160),SUBSTITUTE($AB103,\"}\",CHAR(160),IU$1))-FIND(CHAR(160),SUBSTITUTE($AB103,\"{\",CHAR(160),IU$1))+1),\"\")","v":""},{"$f":"IFERROR(MID($AB103,FIND(CHAR(160),SUBSTITUTE($AB103,\"{\",CHAR(160),IV$1)),FIND(CHAR(160),SUBSTITUTE($AB103,\"}\",CHAR(160),IV$1))-FIND(CHAR(160),SUBSTITUTE($AB103,\"{\",CHAR(160),IV$1))+1),\"\")","v":""},{"$f":"IFERROR(MID($AB103,FIND(CHAR(160),SUBSTITUTE($AB103,\"{\",CHAR(160),IW$1)),FIND(CHAR(160),SUBSTITUTE($AB103,\"}\",CHAR(160),IW$1))-FIND(CHAR(160),SUBSTITUTE($AB103,\"{\",CHAR(160),IW$1))+1),\"\")","v":""},{"$f":"IFERROR(MID($AB103,FIND(CHAR(160),SUBSTITUTE($AB103,\"{\",CHAR(160),IX$1)),FIND(CHAR(160),SUBSTITUTE($AB103,\"}\",CHAR(160),IX$1))-FIND(CHAR(160),SUBSTITUTE($AB103,\"{\",CHAR(160),IX$1))+1),\"\")","v":""},null,{"$f":"10-COUNTIF(DU103:ED103,\"\")","v":5}]
["C&I HVAC - Propane and Compressed NG","Oxygen Trim for Boilers and Heaters","AF4","2021-07-01","2022-06-30","Calculated","{Measure:Quantity}*20000.00",0,"Calculated","{Measure:Quantity}*{Capacity (MBTUH)}*0.75",0,"2021-05-25","2022-06-30","Calculated",null,null,null,null,null,null,null,null,"if({Existing Fuel}<>1,0,{Measure:Quantity} * ({Capacity (MBTUH)} * 0.02 * if({End-Use}=1,1565,{Annual Hours of Operation})) / 1000)*10","if({Existing Fuel}<>2,0,{Measure:Quantity} * ({Capacity (MBTUH)} * 0.02 * if({End-Use}=1,1565,{Annual Hours of Operation})) / 1000)",null,null,null,null,"2021-05-25","2022-06-30",15,0,0,0,0,0,0,1,1,0,0.52,1.6E-2,null,{"$f":"DU104","v":"{Measure:Quantity}"},1,{"$f":"DV104","v":"{Capacity (MBTUH)}"},2200,{"$f":"DW104","v":"{End-Use}"},2,{"$f":"DX104","v":"{Annual Hours of Operation}"},1,{"$f":"DY104","v":"{Existing Fuel}"},3250,{"$f":"DZ104","v":""},null,{"$f":"EA104","v":""},null,{"$f":"EB104","v":""},null,{"$f":"EC104","v":""},null,{"$f":"ED104","v":""},null,0,0,0,0,0,0,0,0,{"$f":"IF(AW104<>1,0,AS104 * (AU104 * 0.02 * IF(AY104=1,1565,BA104)) / 1000)*10","v":0},{"$f":"IF(AW104<>2,0,AS104 * (AU104 * 0.02 * IF(AY104=1,1565,BA104)) / 1000)","v":68.86},0,0,0,0,null,"Res","Default DR",{"$f":"Benefits(BL104,BR104,BS104,BT104,BU104,BV104,BW104,BX104,BY104,BZ104,AE104,AH104,AI104,AJ104,AK104,AL104,AM104,AN104,AO104,AP104,CA104,CB104)","v":0},0,0,0,0,40575.152346759991,0,0,0,{"$f":"SUMPRODUCT(CC104:CK104,--(CC104:CK104>0))","v":40575.152346759991},{"$f":"-SUMPRODUCT(CC104:CK104,--(CC104:CK104<0))","v":0},null,{"$f":"AS104*20000","v":20000},null,null,{"$f":"CM104+CO104","v":20000},{"$f":"IF(NetOrGross=\"Net\",(1-AO104+AP104),1)","v":1},{"$f":"(SUMPRODUCT(CC104:CJ104,--(CC104:CJ104>0))+CN104)*CS104/((-SUMPRODUCT(CC104:CJ104,--(CC104:CJ104<0))+MAX(CO104,CV104)+CP104+CQ104)*CS104+IF(FRIncentives=\"Yes\",CV104*(1-CS104),0))","v":2.0287576173379995},1,{"$f":"AS104*AU104*0.75","v":1650},null,"RGGI","y",null,{"$f":"IF(F104=\"Manual Entry\",\"Manual\",IF(G104=\"\",0,\"X=\"&SUBSTITUTE(SUBSTITUTE(SUBSTITUTE(SUBSTITUTE(SUBSTITUTE(SUBSTITUTE(SUBSTITUTE(SUBSTITUTE(SUBSTITUTE(SUBSTITUTE(SUBSTITUTE(SUBSTITUTE(G104,$ED104,$ED$2&ROW($ED104)),$EC104,$EC$2&ROW($EC104)),$EB104,$EB$2&ROW($EB104)),$EA104,$EA$2&ROW($EA104)),$DZ104,$DZ$2&ROW($DZ104)),$DY104,$DY$2&ROW($DY104)),$DX104,$DX$2&ROW($DX104)),$DW104,$DW$2&ROW($DW104)),$DV104,$DV$2&ROW($DV104)),$DU104,$DU$2&ROW($DU104)),$DT104,$DT$2&ROW($DT104)),$DS104,$DS$2&ROW($DS104))))","v":"X=AS104*20000.00"},{"$f":"IF(I104=\"Manual Entry\",\"Manual\",IF(J104=\"\",0,\"X=\"&SUBSTITUTE(SUBSTITUTE(SUBSTITUTE(SUBSTITUTE(SUBSTITUTE(SUBSTITUTE(SUBSTITUTE(SUBSTITUTE(SUBSTITUTE(SUBSTITUTE(SUBSTITUTE(SUBSTITUTE(J104,$ED104,$ED$2&ROW($ED104)),$EC104,$EC$2&ROW($EC104)),$EB104,$EB$2&ROW($EB104)),$EA104,$EA$2&ROW($EA104)),$DZ104,$DZ$2&ROW($DZ104)),$DY104,$DY$2&ROW($DY104)),$DX104,$DX$2&ROW($DX104)),$DW104,$DW$2&ROW($DW104)),$DV104,$DV$2&ROW($DV104)),$DU104,$DU$2&ROW($DU104)),$DT104,$DT$2&ROW($DT104)),$DS104,$DS$2&ROW($DS104))))","v":"X=AS104*AU104*0.75"},{"$f":"IF(O104=\"\",0,\"X=\"&SUBSTITUTE(SUBSTITUTE(SUBSTITUTE(SUBSTITUTE(SUBSTITUTE(SUBSTITUTE(SUBSTITUTE(SUBSTITUTE(SUBSTITUTE(SUBSTITUTE(SUBSTITUTE(SUBSTITUTE(O104,$ED104,$ED$2&ROW($ED104)),$EC104,$EC$2&ROW($EC104)),$EB104,$EB$2&ROW($EB104)),$EA104,$EA$2&ROW($EA104)),$DZ104,$DZ$2&ROW($DZ104)),$DY104,$DY$2&ROW($DY104)),$DX104,$DX$2&ROW($DX104)),$DW104,$DW$2&ROW($DW104)),$DV104,$DV$2&ROW($DV104)),$DU104,$DU$2&ROW($DU104)),$DT104,$DT$2&ROW($DT104)),$DS104,$DS$2&ROW($DS104)))","v":0},{"$f":"IF(P104=\"\",0,\"X=\"&SUBSTITUTE(SUBSTITUTE(SUBSTITUTE(SUBSTITUTE(SUBSTITUTE(SUBSTITUTE(SUBSTITUTE(SUBSTITUTE(SUBSTITUTE(SUBSTITUTE(SUBSTITUTE(SUBSTITUTE(P104,$ED104,$ED$2&ROW($ED104)),$EC104,$EC$2&ROW($EC104)),$EB104,$EB$2&ROW($EB104)),$EA104,$EA$2&ROW($EA104)),$DZ104,$DZ$2&ROW($DZ104)),$DY104,$DY$2&ROW($DY104)),$DX104,$DX$2&ROW($DX104)),$DW104,$DW$2&ROW($DW104)),$DV104,$DV$2&ROW($DV104)),$DU104,$DU$2&ROW($DU104)),$DT104,$DT$2&ROW($DT104)),$DS104,$DS$2&ROW($DS104)))","v":0},{"$f":"IF(Q104=\"\",0,\"X=\"&SUBSTITUTE(SUBSTITUTE(SUBSTITUTE(SUBSTITUTE(SUBSTITUTE(SUBSTITUTE(SUBSTITUTE(SUBSTITUTE(SUBSTITUTE(SUBSTITUTE(SUBSTITUTE(SUBSTITUTE(Q104,$ED104,$ED$2&ROW($ED104)),$EC104,$EC$2&ROW($EC104)),$EB104,$EB$2&ROW($EB104)),$EA104,$EA$2&ROW($EA104)),$DZ104,$DZ$2&ROW($DZ104)),$DY104,$DY$2&ROW($DY104)),$DX104,$DX$2&ROW($DX104)),$DW104,$DW$2&ROW($DW104)),$DV104,$DV$2&ROW($DV104)),$DU104,$DU$2&ROW($DU104)),$DT104,$DT$2&ROW($DT104)),$DS104,$DS$2&ROW($DS104)))","v":0},{"$f":"IF(R104=\"\",0,\"X=\"&SUBSTITUTE(SUBSTITUTE(SUBSTITUTE(SUBSTITUTE(SUBSTITUTE(SUBSTITUTE(SUBSTITUTE(SUBSTITUTE(SUBSTITUTE(SUBSTITUTE(SUBSTITUTE(SUBSTITUTE(R104,$ED104,$ED$2&ROW($ED104)),$EC104,$EC$2&ROW($EC104)),$EB104,$EB$2&ROW($EB104)),$EA104,$EA$2&ROW($EA104)),$DZ104,$DZ$2&ROW($DZ104)),$DY104,$DY$2&ROW($DY104)),$DX104,$DX$2&ROW($DX104)),$DW104,$DW$2&ROW($DW104)),$DV104,$DV$2&ROW($DV104)),$DU104,$DU$2&ROW($DU104)),$DT104,$DT$2&ROW($DT104)),$DS104,$DS$2&ROW($DS104)))","v":0},{"$f":"IF(S104=\"\",0,\"X=\"&SUBSTITUTE(SUBSTITUTE(SUBSTITUTE(SUBSTITUTE(SUBSTITUTE(SUBSTITUTE(SUBSTITUTE(SUBSTITUTE(SUBSTITUTE(SUBSTITUTE(SUBSTITUTE(SUBSTITUTE(S104,$ED104,$ED$2&ROW($ED104)),$EC104,$EC$2&ROW($EC104)),$EB104,$EB$2&ROW($EB104)),$EA104,$EA$2&ROW($EA104)),$DZ104,$DZ$2&ROW($DZ104)),$DY104,$DY$2&ROW($DY104)),$DX104,$DX$2&ROW($DX104)),$DW104,$DW$2&ROW($DW104)),$DV104,$DV$2&ROW($DV104)),$DU104,$DU$2&ROW($DU104)),$DT104,$DT$2&ROW($DT104)),$DS104,$DS$2&ROW($DS104)))","v":0},{"$f":"IF(T104=\"\",0,\"X=\"&SUBSTITUTE(SUBSTITUTE(SUBSTITUTE(SUBSTITUTE(SUBSTITUTE(SUBSTITUTE(SUBSTITUTE(SUBSTITUTE(SUBSTITUTE(SUBSTITUTE(SUBSTITUTE(SUBSTITUTE(T104,$ED104,$ED$2&ROW($ED104)),$EC104,$EC$2&ROW($EC104)),$EB104,$EB$2&ROW($EB104)),$EA104,$EA$2&ROW($EA104)),$DZ104,$DZ$2&ROW($DZ104)),$DY104,$DY$2&ROW($DY104)),$DX104,$DX$2&ROW($DX104)),$DW104,$DW$2&ROW($DW104)),$DV104,$DV$2&ROW($DV104)),$DU104,$DU$2&ROW($DU104)),$DT104,$DT$2&ROW($DT104)),$DS104,$DS$2&ROW($DS104)))","v":0},{"$f":"IF(U104=\"\",0,\"X=\"&SUBSTITUTE(SUBSTITUTE(SUBSTITUTE(SUBSTITUTE(SUBSTITUTE(SUBSTITUTE(SUBSTITUTE(SUBSTITUTE(SUBSTITUTE(SUBSTITUTE(SUBSTITUTE(SUBSTITUTE(U104,$ED104,$ED$2&ROW($ED104)),$EC104,$EC$2&ROW($EC104)),$EB104,$EB$2&ROW($EB104)),$EA104,$EA$2&ROW($EA104)),$DZ104,$DZ$2&ROW($DZ104)),$DY104,$DY$2&ROW($DY104)),$DX104,$DX$2&ROW($DX104)),$DW104,$DW$2&ROW($DW104)),$DV104,$DV$2&ROW($DV104)),$DU104,$DU$2&ROW($DU104)),$DT104,$DT$2&ROW($DT104)),$DS104,$DS$2&ROW($DS104)))","v":0},{"$f":"IF(V104=\"\",0,\"X=\"&SUBSTITUTE(SUBSTITUTE(SUBSTITUTE(SUBSTITUTE(SUBSTITUTE(SUBSTITUTE(SUBSTITUTE(SUBSTITUTE(SUBSTITUTE(SUBSTITUTE(SUBSTITUTE(SUBSTITUTE(V104,$ED104,$ED$2&ROW($ED104)),$EC104,$EC$2&ROW($EC104)),$EB104,$EB$2&ROW($EB104)),$EA104,$EA$2&ROW($EA104)),$DZ104,$DZ$2&ROW($DZ104)),$DY104,$DY$2&ROW($DY104)),$DX104,$DX$2&ROW($DX104)),$DW104,$DW$2&ROW($DW104)),$DV104,$DV$2&ROW($DV104)),$DU104,$DU$2&ROW($DU104)),$DT104,$DT$2&ROW($DT104)),$DS104,$DS$2&ROW($DS104)))","v":0},{"$f":"IF(W104=\"\",0,\"X=\"&SUBSTITUTE(SUBSTITUTE(SUBSTITUTE(SUBSTITUTE(SUBSTITUTE(SUBSTITUTE(SUBSTITUTE(SUBSTITUTE(SUBSTITUTE(SUBSTITUTE(SUBSTITUTE(SUBSTITUTE(W104,$ED104,$ED$2&ROW($ED104)),$EC104,$EC$2&ROW($EC104)),$EB104,$EB$2&ROW($EB104)),$EA104,$EA$2&ROW($EA104)),$DZ104,$DZ$2&ROW($DZ104)),$DY104,$DY$2&ROW($DY104)),$DX104,$DX$2&ROW($DX104)),$DW104,$DW$2&ROW($DW104)),$DV104,$DV$2&ROW($DV104)),$DU104,$DU$2&ROW($DU104)),$DT104,$DT$2&ROW($DT104)),$DS104,$DS$2&ROW($DS104)))","v":"X=if(BA104<>1,0,AS104 * (AU104 * 0.02 * if(AW104=1,1565,AY104)) / 1000)*10"},{"$f":"IF(X104=\"\",0,\"X=\"&SUBSTITUTE(SUBSTITUTE(SUBSTITUTE(SUBSTITUTE(SUBSTITUTE(SUBSTITUTE(SUBSTITUTE(SUBSTITUTE(SUBSTITUTE(SUBSTITUTE(SUBSTITUTE(SUBSTITUTE(X104,$ED104,$ED$2&ROW($ED104)),$EC104,$EC$2&ROW($EC104)),$EB104,$EB$2&ROW($EB104)),$EA104,$EA$2&ROW($EA104)),$DZ104,$DZ$2&ROW($DZ104)),$DY104,$DY$2&ROW($DY104)),$DX104,$DX$2&ROW($DX104)),$DW104,$DW$2&ROW($DW104)),$DV104,$DV$2&ROW($DV104)),$DU104,$DU$2&ROW($DU104)),$DT104,$DT$2&ROW($DT104)),$DS104,$DS$2&ROW($DS104)))","v":"X=if(BA104<>2,0,AS104 * (AU104 * 0.02 * if(AW104=1,1565,AY104)) / 1000)"},{"$f":"IF(Y104=\"\",0,\"X=\"&SUBSTITUTE(SUBSTITUTE(SUBSTITUTE(SUBSTITUTE(SUBSTITUTE(SUBSTITUTE(SUBSTITUTE(SUBSTITUTE(SUBSTITUTE(SUBSTITUTE(SUBSTITUTE(SUBSTITUTE(Y104,$ED104,$ED$2&ROW($ED104)),$EC104,$EC$2&ROW($EC104)),$EB104,$EB$2&ROW($EB104)),$EA104,$EA$2&ROW($EA104)),$DZ104,$DZ$2&ROW($DZ104)),$DY104,$DY$2&ROW($DY104)),$DX104,$DX$2&ROW($DX104)),$DW104,$DW$2&ROW($DW104)),$DV104,$DV$2&ROW($DV104)),$DU104,$DU$2&ROW($DU104)),$DT104,$DT$2&ROW($DT104)),$DS104,$DS$2&ROW($DS104)))","v":0},{"$f":"IF(Z104=\"\",0,\"X=\"&SUBSTITUTE(SUBSTITUTE(SUBSTITUTE(SUBSTITUTE(SUBSTITUTE(SUBSTITUTE(SUBSTITUTE(SUBSTITUTE(SUBSTITUTE(SUBSTITUTE(SUBSTITUTE(SUBSTITUTE(Z104,$ED104,$ED$2&ROW($ED104)),$EC104,$EC$2&ROW($EC104)),$EB104,$EB$2&ROW($EB104)),$EA104,$EA$2&ROW($EA104)),$DZ104,$DZ$2&ROW($DZ104)),$DY104,$DY$2&ROW($DY104)),$DX104,$DX$2&ROW($DX104)),$DW104,$DW$2&ROW($DW104)),$DV104,$DV$2&ROW($DV104)),$DU104,$DU$2&ROW($DU104)),$DT104,$DT$2&ROW($DT104)),$DS104,$DS$2&ROW($DS104)))","v":0},{"$f":"IF(AA104=\"\",0,\"X=\"&SUBSTITUTE(SUBSTITUTE(SUBSTITUTE(SUBSTITUTE(SUBSTITUTE(SUBSTITUTE(SUBSTITUTE(SUBSTITUTE(SUBSTITUTE(SUBSTITUTE(SUBSTITUTE(SUBSTITUTE(AA104,$ED104,$ED$2&ROW($ED104)),$EC104,$EC$2&ROW($EC104)),$EB104,$EB$2&ROW($EB104)),$EA104,$EA$2&ROW($EA104)),$DZ104,$DZ$2&ROW($DZ104)),$DY104,$DY$2&ROW($DY104)),$DX104,$DX$2&ROW($DX104)),$DW104,$DW$2&ROW($DW104)),$DV104,$DV$2&ROW($DV104)),$DU104,$DU$2&ROW($DU104)),$DT104,$DT$2&ROW($DT104)),$DS104,$DS$2&ROW($DS104)))","v":0},{"$f":"IF(AB104=\"\",0,\"X=\"&SUBSTITUTE(SUBSTITUTE(SUBSTITUTE(SUBSTITUTE(SUBSTITUTE(SUBSTITUTE(SUBSTITUTE(SUBSTITUTE(SUBSTITUTE(SUBSTITUTE(SUBSTITUTE(SUBSTITUTE(AB104,$ED104,$ED$2&ROW($ED104)),$EC104,$EC$2&ROW($EC104)),$EB104,$EB$2&ROW($EB104)),$EA104,$EA$2&ROW($EA104)),$DZ104,$DZ$2&ROW($DZ104)),$DY104,$DY$2&ROW($DY104)),$DX104,$DX$2&ROW($DX104)),$DW104,$DW$2&ROW($DW104)),$DV104,$DV$2&ROW($DV104)),$DU104,$DU$2&ROW($DU104)),$DT104,$DT$2&ROW($DT104)),$DS104,$DS$2&ROW($DS104)))","v":0},null,null,"{Factor:WinterCF}","{Factor:SummerCF}",{"$f":"IFERROR(INDEX($EG104:$IV104,MATCH(0,COUNTIF($DR104:DT104,$EG104:$IV104),0)),\"\")","v":"{Measure:Quantity}"},{"$f":"IFERROR(INDEX($EG104:$IV104,MATCH(0,COUNTIF($DR104:DU104,$EG104:$IV104),0)),\"\")","v":"{Capacity (MBTUH)}"},{"$f":"IFERROR(INDEX($EG104:$IV104,MATCH(0,COUNTIF($DR104:DV104,$EG104:$IV104),0)),\"\")","v":"{End-Use}"},{"$f":"IFERROR(INDEX($EG104:$IV104,MATCH(0,COUNTIF($DR104:DW104,$EG104:$IV104),0)),\"\")","v":"{Annual Hours of Operation}"},{"$f":"IFERROR(INDEX($EG104:$IV104,MATCH(0,COUNTIF($DR104:DX104,$EG104:$IV104),0)),\"\")","v":"{Existing Fuel}"},{"$f":"IFERROR(INDEX($EG104:$IV104,MATCH(0,COUNTIF($DR104:DY104,$EG104:$IV104),0)),\"\")","v":""},{"$f":"IFERROR(INDEX($EG104:$IV104,MATCH(0,COUNTIF($DR104:DZ104,$EG104:$IV104),0)),\"\")","v":""},{"$f":"IFERROR(INDEX($EG104:$IV104,MATCH(0,COUNTIF($DR104:EA104,$EG104:$IV104),0)),\"\")","v":""},{"$f":"IFERROR(INDEX($EG104:$IV104,MATCH(0,COUNTIF($DR104:EB104,$EG104:$IV104),0)),\"\")","v":""},{"$f":"IFERROR(INDEX($EG104:$IV104,MATCH(0,COUNTIF($DR104:EC104,$EG104:$IV104),0)),\"\")","v":""},null,null,{"$f":"IFERROR(MID($G104,FIND(CHAR(160),SUBSTITUTE($G104,\"{\",CHAR(160),EG$1)),FIND(CHAR(160),SUBSTITUTE($G104,\"}\",CHAR(160),EG$1))-FIND(CHAR(160),SUBSTITUTE($G104,\"{\",CHAR(160),EG$1))+1),\"\")","v":"{Measure:Quantity}"},{"$f":"IFERROR(MID($G104,FIND(CHAR(160),SUBSTITUTE($G104,\"{\",CHAR(160),EH$1)),FIND(CHAR(160),SUBSTITUTE($G104,\"}\",CHAR(160),EH$1))-FIND(CHAR(160),SUBSTITUTE($G104,\"{\",CHAR(160),EH$1))+1),\"\")","v":""},{"$f":"IFERROR(MID($G104,FIND(CHAR(160),SUBSTITUTE($G104,\"{\",CHAR(160),EI$1)),FIND(CHAR(160),SUBSTITUTE($G104,\"}\",CHAR(160),EI$1))-FIND(CHAR(160),SUBSTITUTE($G104,\"{\",CHAR(160),EI$1))+1),\"\")","v":""},{"$f":"IFERROR(MID($G104,FIND(CHAR(160),SUBSTITUTE($G104,\"{\",CHAR(160),EJ$1)),FIND(CHAR(160),SUBSTITUTE($G104,\"}\",CHAR(160),EJ$1))-FIND(CHAR(160),SUBSTITUTE($G104,\"{\",CHAR(160),EJ$1))+1),\"\")","v":""},{"$f":"IFERROR(MID($G104,FIND(CHAR(160),SUBSTITUTE($G104,\"{\",CHAR(160),EK$1)),FIND(CHAR(160),SUBSTITUTE($G104,\"}\",CHAR(160),EK$1))-FIND(CHAR(160),SUBSTITUTE($G104,\"{\",CHAR(160),EK$1))+1),\"\")","v":""},{"$f":"IFERROR(MID($G104,FIND(CHAR(160),SUBSTITUTE($G104,\"{\",CHAR(160),EL$1)),FIND(CHAR(160),SUBSTITUTE($G104,\"}\",CHAR(160),EL$1))-FIND(CHAR(160),SUBSTITUTE($G104,\"{\",CHAR(160),EL$1))+1),\"\")","v":""},{"$f":"IFERROR(MID($G104,FIND(CHAR(160),SUBSTITUTE($G104,\"{\",CHAR(160),EM$1)),FIND(CHAR(160),SUBSTITUTE($G104,\"}\",CHAR(160),EM$1))-FIND(CHAR(160),SUBSTITUTE($G104,\"{\",CHAR(160),EM$1))+1),\"\")","v":""},{"$f":"IFERROR(MID($G104,FIND(CHAR(160),SUBSTITUTE($G104,\"{\",CHAR(160),EN$1)),FIND(CHAR(160),SUBSTITUTE($G104,\"}\",CHAR(160),EN$1))-FIND(CHAR(160),SUBSTITUTE($G104,\"{\",CHAR(160),EN$1))+1),\"\")","v":""},{"$f":"IFERROR(MID($G104,FIND(CHAR(160),SUBSTITUTE($G104,\"{\",CHAR(160),EO$1)),FIND(CHAR(160),SUBSTITUTE($G104,\"}\",CHAR(160),EO$1))-FIND(CHAR(160),SUBSTITUTE($G104,\"{\",CHAR(160),EO$1))+1),\"\")","v":""},{"$f":"IFERROR(MID($G104,FIND(CHAR(160),SUBSTITUTE($G104,\"{\",CHAR(160),EP$1)),FIND(CHAR(160),SUBSTITUTE($G104,\"}\",CHAR(160),EP$1))-FIND(CHAR(160),SUBSTITUTE($G104,\"{\",CHAR(160),EP$1))+1),\"\")","v":""},{"$f":"IFERROR(MID($J104,FIND(CHAR(160),SUBSTITUTE($J104,\"{\",CHAR(160),EQ$1)),FIND(CHAR(160),SUBSTITUTE($J104,\"}\",CHAR(160),EQ$1))-FIND(CHAR(160),SUBSTITUTE($J104,\"{\",CHAR(160),EQ$1))+1),\"\")","v":"{Measure:Quantity}"},{"$f":"IFERROR(MID($J104,FIND(CHAR(160),SUBSTITUTE($J104,\"{\",CHAR(160),ER$1)),FIND(CHAR(160),SUBSTITUTE($J104,\"}\",CHAR(160),ER$1))-FIND(CHAR(160),SUBSTITUTE($J104,\"{\",CHAR(160),ER$1))+1),\"\")","v":"{Capacity (MBTUH)}"},{"$f":"IFERROR(MID($J104,FIND(CHAR(160),SUBSTITUTE($J104,\"{\",CHAR(160),ES$1)),FIND(CHAR(160),SUBSTITUTE($J104,\"}\",CHAR(160),ES$1))-FIND(CHAR(160),SUBSTITUTE($J104,\"{\",CHAR(160),ES$1))+1),\"\")","v":""},{"$f":"IFERROR(MID($J104,FIND(CHAR(160),SUBSTITUTE($J104,\"{\",CHAR(160),ET$1)),FIND(CHAR(160),SUBSTITUTE($J104,\"}\",CHAR(160),ET$1))-FIND(CHAR(160),SUBSTITUTE($J104,\"{\",CHAR(160),ET$1))+1),\"\")","v":""},{"$f":"IFERROR(MID($J104,FIND(CHAR(160),SUBSTITUTE($J104,\"{\",CHAR(160),EU$1)),FIND(CHAR(160),SUBSTITUTE($J104,\"}\",CHAR(160),EU$1))-FIND(CHAR(160),SUBSTITUTE($J104,\"{\",CHAR(160),EU$1))+1),\"\")","v":""},{"$f":"IFERROR(MID($J104,FIND(CHAR(160),SUBSTITUTE($J104,\"{\",CHAR(160),EV$1)),FIND(CHAR(160),SUBSTITUTE($J104,\"}\",CHAR(160),EV$1))-FIND(CHAR(160),SUBSTITUTE($J104,\"{\",CHAR(160),EV$1))+1),\"\")","v":""},{"$f":"IFERROR(MID($J104,FIND(CHAR(160),SUBSTITUTE($J104,\"{\",CHAR(160),EW$1)),FIND(CHAR(160),SUBSTITUTE($J104,\"}\",CHAR(160),EW$1))-FIND(CHAR(160),SUBSTITUTE($J104,\"{\",CHAR(160),EW$1))+1),\"\")","v":""},{"$f":"IFERROR(MID($J104,FIND(CHAR(160),SUBSTITUTE($J104,\"{\",CHAR(160),EX$1)),FIND(CHAR(160),SUBSTITUTE($J104,\"}\",CHAR(160),EX$1))-FIND(CHAR(160),SUBSTITUTE($J104,\"{\",CHAR(160),EX$1))+1),\"\")","v":""},{"$f":"IFERROR(MID($J104,FIND(CHAR(160),SUBSTITUTE($J104,\"{\",CHAR(160),EY$1)),FIND(CHAR(160),SUBSTITUTE($J104,\"}\",CHAR(160),EY$1))-FIND(CHAR(160),SUBSTITUTE($J104,\"{\",CHAR(160),EY$1))+1),\"\")","v":""},{"$f":"IFERROR(MID($J104,FIND(CHAR(160),SUBSTITUTE($J104,\"{\",CHAR(160),EZ$1)),FIND(CHAR(160),SUBSTITUTE($J104,\"}\",CHAR(160),EZ$1))-FIND(CHAR(160),SUBSTITUTE($J104,\"{\",CHAR(160),EZ$1))+1),\"\")","v":""},{"$f":"IFERROR(MID($J104,FIND(CHAR(160),SUBSTITUTE($J104,\"{\",CHAR(160),FA$1)),FIND(CHAR(160),SUBSTITUTE($J104,\"}\",CHAR(160),FA$1))-FIND(CHAR(160),SUBSTITUTE($J104,\"{\",CHAR(160),FA$1))+1),\"\")","v":"{Measure:Quantity}"},{"$f":"IFERROR(MID($J104,FIND(CHAR(160),SUBSTITUTE($J104,\"{\",CHAR(160),FB$1)),FIND(CHAR(160),SUBSTITUTE($J104,\"}\",CHAR(160),FB$1))-FIND(CHAR(160),SUBSTITUTE($J104,\"{\",CHAR(160),FB$1))+1),\"\")","v":"{Capacity (MBTUH)}"},{"$f":"IFERROR(MID($O104,FIND(CHAR(160),SUBSTITUTE($O104,\"{\",CHAR(160),FC$1)),FIND(CHAR(160),SUBSTITUTE($O104,\"}\",CHAR(160),FC$1))-FIND(CHAR(160),SUBSTITUTE($O104,\"{\",CHAR(160),FC$1))+1),\"\")","v":""},{"$f":"IFERROR(MID($O104,FIND(CHAR(160),SUBSTITUTE($O104,\"{\",CHAR(160),FD$1)),FIND(CHAR(160),SUBSTITUTE($O104,\"}\",CHAR(160),FD$1))-FIND(CHAR(160),SUBSTITUTE($O104,\"{\",CHAR(160),FD$1))+1),\"\")","v":""},{"$f":"IFERROR(MID($O104,FIND(CHAR(160),SUBSTITUTE($O104,\"{\",CHAR(160),FE$1)),FIND(CHAR(160),SUBSTITUTE($O104,\"}\",CHAR(160),FE$1))-FIND(CHAR(160),SUBSTITUTE($O104,\"{\",CHAR(160),FE$1))+1),\"\")","v":""},{"$f":"IFERROR(MID($O104,FIND(CHAR(160),SUBSTITUTE($O104,\"{\",CHAR(160),FF$1)),FIND(CHAR(160),SUBSTITUTE($O104,\"}\",CHAR(160),FF$1))-FIND(CHAR(160),SUBSTITUTE($O104,\"{\",CHAR(160),FF$1))+1),\"\")","v":""},{"$f":"IFERROR(MID($O104,FIND(CHAR(160),SUBSTITUTE($O104,\"{\",CHAR(160),FG$1)),FIND(CHAR(160),SUBSTITUTE($O104,\"}\",CHAR(160),FG$1))-FIND(CHAR(160),SUBSTITUTE($O104,\"{\",CHAR(160),FG$1))+1),\"\")","v":""},{"$f":"IFERROR(MID($O104,FIND(CHAR(160),SUBSTITUTE($O104,\"{\",CHAR(160),FH$1)),FIND(CHAR(160),SUBSTITUTE($O104,\"}\",CHAR(160),FH$1))-FIND(CHAR(160),SUBSTITUTE($O104,\"{\",CHAR(160),FH$1))+1),\"\")","v":""},{"$f":"IFERROR(MID($O104,FIND(CHAR(160),SUBSTITUTE($O104,\"{\",CHAR(160),FI$1)),FIND(CHAR(160),SUBSTITUTE($O104,\"}\",CHAR(160),FI$1))-FIND(CHAR(160),SUBSTITUTE($O104,\"{\",CHAR(160),FI$1))+1),\"\")","v":""},{"$f":"IFERROR(MID($O104,FIND(CHAR(160),SUBSTITUTE($O104,\"{\",CHAR(160),FJ$1)),FIND(CHAR(160),SUBSTITUTE($O104,\"}\",CHAR(160),FJ$1))-FIND(CHAR(160),SUBSTITUTE($O104,\"{\",CHAR(160),FJ$1))+1),\"\")","v":""},{"$f":"IFERROR(MID($O104,FIND(CHAR(160),SUBSTITUTE($O104,\"{\",CHAR(160),FK$1)),FIND(CHAR(160),SUBSTITUTE($O104,\"}\",CHAR(160),FK$1))-FIND(CHAR(160),SUBSTITUTE($O104,\"{\",CHAR(160),FK$1))+1),\"\")","v":""},{"$f":"IFERROR(MID($O104,FIND(CHAR(160),SUBSTITUTE($O104,\"{\",CHAR(160),FL$1)),FIND(CHAR(160),SUBSTITUTE($O104,\"}\",CHAR(160),FL$1))-FIND(CHAR(160),SUBSTITUTE($O104,\"{\",CHAR(160),FL$1))+1),\"\")","v":""},{"$f":"IFERROR(MID($R104,FIND(CHAR(160),SUBSTITUTE($R104,\"{\",CHAR(160),FM$1)),FIND(CHAR(160),SUBSTITUTE($R104,\"}\",CHAR(160),FM$1))-FIND(CHAR(160),SUBSTITUTE($R104,\"{\",CHAR(160),FM$1))+1),\"\")","v":""},{"$f":"IFERROR(MID($R104,FIND(CHAR(160),SUBSTITUTE($R104,\"{\",CHAR(160),FN$1)),FIND(CHAR(160),SUBSTITUTE($R104,\"}\",CHAR(160),FN$1))-FIND(CHAR(160),SUBSTITUTE($R104,\"{\",CHAR(160),FN$1))+1),\"\")","v":""},{"$f":"IFERROR(MID($R104,FIND(CHAR(160),SUBSTITUTE($R104,\"{\",CHAR(160),FO$1)),FIND(CHAR(160),SUBSTITUTE($R104,\"}\",CHAR(160),FO$1))-FIND(CHAR(160),SUBSTITUTE($R104,\"{\",CHAR(160),FO$1))+1),\"\")","v":""},{"$f":"IFERROR(MID($R104,FIND(CHAR(160),SUBSTITUTE($R104,\"{\",CHAR(160),FP$1)),FIND(CHAR(160),SUBSTITUTE($R104,\"}\",CHAR(160),FP$1))-FIND(CHAR(160),SUBSTITUTE($R104,\"{\",CHAR(160),FP$1))+1),\"\")","v":""},{"$f":"IFERROR(MID($R104,FIND(CHAR(160),SUBSTITUTE($R104,\"{\",CHAR(160),FQ$1)),FIND(CHAR(160),SUBSTITUTE($R104,\"}\",CHAR(160),FQ$1))-FIND(CHAR(160),SUBSTITUTE($R104,\"{\",CHAR(160),FQ$1))+1),\"\")","v":""},{"$f":"IFERROR(MID($R104,FIND(CHAR(160),SUBSTITUTE($R104,\"{\",CHAR(160),FR$1)),FIND(CHAR(160),SUBSTITUTE($R104,\"}\",CHAR(160),FR$1))-FIND(CHAR(160),SUBSTITUTE($R104,\"{\",CHAR(160),FR$1))+1),\"\")","v":""},{"$f":"IFERROR(MID($R104,FIND(CHAR(160),SUBSTITUTE($R104,\"{\",CHAR(160),FS$1)),FIND(CHAR(160),SUBSTITUTE($R104,\"}\",CHAR(160),FS$1))-FIND(CHAR(160),SUBSTITUTE($R104,\"{\",CHAR(160),FS$1))+1),\"\")","v":""},{"$f":"IFERROR(MID($R104,FIND(CHAR(160),SUBSTITUTE($R104,\"{\",CHAR(160),FT$1)),FIND(CHAR(160),SUBSTITUTE($R104,\"}\",CHAR(160),FT$1))-FIND(CHAR(160),SUBSTITUTE($R104,\"{\",CHAR(160),FT$1))+1),\"\")","v":""},{"$f":"IFERROR(MID($R104,FIND(CHAR(160),SUBSTITUTE($R104,\"{\",CHAR(160),FU$1)),FIND(CHAR(160),SUBSTITUTE($R104,\"}\",CHAR(160),FU$1))-FIND(CHAR(160),SUBSTITUTE($R104,\"{\",CHAR(160),FU$1))+1),\"\")","v":""},{"$f":"IFERROR(MID($R104,FIND(CHAR(160),SUBSTITUTE($R104,\"{\",CHAR(160),FV$1)),FIND(CHAR(160),SUBSTITUTE($R104,\"}\",CHAR(160),FV$1))-FIND(CHAR(160),SUBSTITUTE($R104,\"{\",CHAR(160),FV$1))+1),\"\")","v":""},{"$f":"IFERROR(MID($U104,FIND(CHAR(160),SUBSTITUTE($U104,\"{\",CHAR(160),FW$1)),FIND(CHAR(160),SUBSTITUTE($U104,\"}\",CHAR(160),FW$1))-FIND(CHAR(160),SUBSTITUTE($U104,\"{\",CHAR(160),FW$1))+1),\"\")","v":""},{"$f":"IFERROR(MID($U104,FIND(CHAR(160),SUBSTITUTE($U104,\"{\",CHAR(160),FX$1)),FIND(CHAR(160),SUBSTITUTE($U104,\"}\",CHAR(160),FX$1))-FIND(CHAR(160),SUBSTITUTE($U104,\"{\",CHAR(160),FX$1))+1),\"\")","v":""},{"$f":"IFERROR(MID($U104,FIND(CHAR(160),SUBSTITUTE($U104,\"{\",CHAR(160),FY$1)),FIND(CHAR(160),SUBSTITUTE($U104,\"}\",CHAR(160),FY$1))-FIND(CHAR(160),SUBSTITUTE($U104,\"{\",CHAR(160),FY$1))+1),\"\")","v":""},{"$f":"IFERROR(MID($U104,FIND(CHAR(160),SUBSTITUTE($U104,\"{\",CHAR(160),FZ$1)),FIND(CHAR(160),SUBSTITUTE($U104,\"}\",CHAR(160),FZ$1))-FIND(CHAR(160),SUBSTITUTE($U104,\"{\",CHAR(160),FZ$1))+1),\"\")","v":""},{"$f":"IFERROR(MID($U104,FIND(CHAR(160),SUBSTITUTE($U104,\"{\",CHAR(160),GA$1)),FIND(CHAR(160),SUBSTITUTE($U104,\"}\",CHAR(160),GA$1))-FIND(CHAR(160),SUBSTITUTE($U104,\"{\",CHAR(160),GA$1))+1),\"\")","v":""},{"$f":"IFERROR(MID($U104,FIND(CHAR(160),SUBSTITUTE($U104,\"{\",CHAR(160),GB$1)),FIND(CHAR(160),SUBSTITUTE($U104,\"}\",CHAR(160),GB$1))-FIND(CHAR(160),SUBSTITUTE($U104,\"{\",CHAR(160),GB$1))+1),\"\")","v":""},{"$f":"IFERROR(MID($U104,FIND(CHAR(160),SUBSTITUTE($U104,\"{\",CHAR(160),GC$1)),FIND(CHAR(160),SUBSTITUTE($U104,\"}\",CHAR(160),GC$1))-FIND(CHAR(160),SUBSTITUTE($U104,\"{\",CHAR(160),GC$1))+1),\"\")","v":""},{"$f":"IFERROR(MID($U104,FIND(CHAR(160),SUBSTITUTE($U104,\"{\",CHAR(160),GD$1)),FIND(CHAR(160),SUBSTITUTE($U104,\"}\",CHAR(160),GD$1))-FIND(CHAR(160),SUBSTITUTE($U104,\"{\",CHAR(160),GD$1))+1),\"\")","v":""},{"$f":"IFERROR(MID($U104,FIND(CHAR(160),SUBSTITUTE($U104,\"{\",CHAR(160),GE$1)),FIND(CHAR(160),SUBSTITUTE($U104,\"}\",CHAR(160),GE$1))-FIND(CHAR(160),SUBSTITUTE($U104,\"{\",CHAR(160),GE$1))+1),\"\")","v":""},{"$f":"IFERROR(MID($U104,FIND(CHAR(160),SUBSTITUTE($U104,\"{\",CHAR(160),GF$1)),FIND(CHAR(160),SUBSTITUTE($U104,\"}\",CHAR(160),GF$1))-FIND(CHAR(160),SUBSTITUTE($U104,\"{\",CHAR(160),GF$1))+1),\"\")","v":""},{"$f":"IFERROR(MID($V104,FIND(CHAR(160),SUBSTITUTE($V104,\"{\",CHAR(160),GG$1)),FIND(CHAR(160),SUBSTITUTE($V104,\"}\",CHAR(160),GG$1))-FIND(CHAR(160),SUBSTITUTE($V104,\"{\",CHAR(160),GG$1))+1),\"\")","v":""},{"$f":"IFERROR(MID($V104,FIND(CHAR(160),SUBSTITUTE($V104,\"{\",CHAR(160),GH$1)),FIND(CHAR(160),SUBSTITUTE($V104,\"}\",CHAR(160),GH$1))-FIND(CHAR(160),SUBSTITUTE($V104,\"{\",CHAR(160),GH$1))+1),\"\")","v":""},{"$f":"IFERROR(MID($V104,FIND(CHAR(160),SUBSTITUTE($V104,\"{\",CHAR(160),GI$1)),FIND(CHAR(160),SUBSTITUTE($V104,\"}\",CHAR(160),GI$1))-FIND(CHAR(160),SUBSTITUTE($V104,\"{\",CHAR(160),GI$1))+1),\"\")","v":""},{"$f":"IFERROR(MID($V104,FIND(CHAR(160),SUBSTITUTE($V104,\"{\",CHAR(160),GJ$1)),FIND(CHAR(160),SUBSTITUTE($V104,\"}\",CHAR(160),GJ$1))-FIND(CHAR(160),SUBSTITUTE($V104,\"{\",CHAR(160),GJ$1))+1),\"\")","v":""},{"$f":"IFERROR(MID($V104,FIND(CHAR(160),SUBSTITUTE($V104,\"{\",CHAR(160),GK$1)),FIND(CHAR(160),SUBSTITUTE($V104,\"}\",CHAR(160),GK$1))-FIND(CHAR(160),SUBSTITUTE($V104,\"{\",CHAR(160),GK$1))+1),\"\")","v":""},{"$f":"IFERROR(MID($V104,FIND(CHAR(160),SUBSTITUTE($V104,\"{\",CHAR(160),GL$1)),FIND(CHAR(160),SUBSTITUTE($V104,\"}\",CHAR(160),GL$1))-FIND(CHAR(160),SUBSTITUTE($V104,\"{\",CHAR(160),GL$1))+1),\"\")","v":""},{"$f":"IFERROR(MID($V104,FIND(CHAR(160),SUBSTITUTE($V104,\"{\",CHAR(160),GM$1)),FIND(CHAR(160),SUBSTITUTE($V104,\"}\",CHAR(160),GM$1))-FIND(CHAR(160),SUBSTITUTE($V104,\"{\",CHAR(160),GM$1))+1),\"\")","v":""},{"$f":"IFERROR(MID($V104,FIND(CHAR(160),SUBSTITUTE($V104,\"{\",CHAR(160),GN$1)),FIND(CHAR(160),SUBSTITUTE($V104,\"}\",CHAR(160),GN$1))-FIND(CHAR(160),SUBSTITUTE($V104,\"{\",CHAR(160),GN$1))+1),\"\")","v":""},{"$f":"IFERROR(MID($V104,FIND(CHAR(160),SUBSTITUTE($V104,\"{\",CHAR(160),GO$1)),FIND(CHAR(160),SUBSTITUTE($V104,\"}\",CHAR(160),GO$1))-FIND(CHAR(160),SUBSTITUTE($V104,\"{\",CHAR(160),GO$1))+1),\"\")","v":""},{"$f":"IFERROR(MID($V104,FIND(CHAR(160),SUBSTITUTE($V104,\"{\",CHAR(160),GP$1)),FIND(CHAR(160),SUBSTITUTE($V104,\"}\",CHAR(160),GP$1))-FIND(CHAR(160),SUBSTITUTE($V104,\"{\",CHAR(160),GP$1))+1),\"\")","v":""},{"$f":"IFERROR(MID($W104,FIND(CHAR(160),SUBSTITUTE($W104,\"{\",CHAR(160),GQ$1)),FIND(CHAR(160),SUBSTITUTE($W104,\"}\",CHAR(160),GQ$1))-FIND(CHAR(160),SUBSTITUTE($W104,\"{\",CHAR(160),GQ$1))+1),\"\")","v":"{Capacity (MBTUH)}"},{"$f":"IFERROR(MID($W104,FIND(CHAR(160),SUBSTITUTE($W104,\"{\",CHAR(160),GR$1)),FIND(CHAR(160),SUBSTITUTE($W104,\"}\",CHAR(160),GR$1))-FIND(CHAR(160),SUBSTITUTE($W104,\"{\",CHAR(160),GR$1))+1),\"\")","v":"{End-Use}"},{"$f":"IFERROR(MID($W104,FIND(CHAR(160),SUBSTITUTE($W104,\"{\",CHAR(160),GS$1)),FIND(CHAR(160),SUBSTITUTE($W104,\"}\",CHAR(160),GS$1))-FIND(CHAR(160),SUBSTITUTE($W104,\"{\",CHAR(160),GS$1))+1),\"\")","v":"{Annual Hours of Operation}"},{"$f":"IFERROR(MID($W104,FIND(CHAR(160),SUBSTITUTE($W104,\"{\",CHAR(160),GT$1)),FIND(CHAR(160),SUBSTITUTE($W104,\"}\",CHAR(160),GT$1))-FIND(CHAR(160),SUBSTITUTE($W104,\"{\",CHAR(160),GT$1))+1),\"\")","v":""},{"$f":"IFERROR(MID($W104,FIND(CHAR(160),SUBSTITUTE($W104,\"{\",CHAR(160),GU$1)),FIND(CHAR(160),SUBSTITUTE($W104,\"}\",CHAR(160),GU$1))-FIND(CHAR(160),SUBSTITUTE($W104,\"{\",CHAR(160),GU$1))+1),\"\")","v":""},{"$f":"IFERROR(MID($W104,FIND(CHAR(160),SUBSTITUTE($W104,\"{\",CHAR(160),GV$1)),FIND(CHAR(160),SUBSTITUTE($W104,\"}\",CHAR(160),GV$1))-FIND(CHAR(160),SUBSTITUTE($W104,\"{\",CHAR(160),GV$1))+1),\"\")","v":""},{"$f":"IFERROR(MID($W104,FIND(CHAR(160),SUBSTITUTE($W104,\"{\",CHAR(160),GW$1)),FIND(CHAR(160),SUBSTITUTE($W104,\"}\",CHAR(160),GW$1))-FIND(CHAR(160),SUBSTITUTE($W104,\"{\",CHAR(160),GW$1))+1),\"\")","v":""},{"$f":"IFERROR(MID($W104,FIND(CHAR(160),SUBSTITUTE($W104,\"{\",CHAR(160),GX$1)),FIND(CHAR(160),SUBSTITUTE($W104,\"}\",CHAR(160),GX$1))-FIND(CHAR(160),SUBSTITUTE($W104,\"{\",CHAR(160),GX$1))+1),\"\")","v":""},{"$f":"IFERROR(MID($W104,FIND(CHAR(160),SUBSTITUTE($W104,\"{\",CHAR(160),GY$1)),FIND(CHAR(160),SUBSTITUTE($W104,\"}\",CHAR(160),GY$1))-FIND(CHAR(160),SUBSTITUTE($W104,\"{\",CHAR(160),GY$1))+1),\"\")","v":"{Existing Fuel}"},{"$f":"IFERROR(MID($W104,FIND(CHAR(160),SUBSTITUTE($W104,\"{\",CHAR(160),GZ$1)),FIND(CHAR(160),SUBSTITUTE($W104,\"}\",CHAR(160),GZ$1))-FIND(CHAR(160),SUBSTITUTE($W104,\"{\",CHAR(160),GZ$1))+1),\"\")","v":"{Measure:Quantity}"},{"$f":"IFERROR(MID($X104,FIND(CHAR(160),SUBSTITUTE($X104,\"{\",CHAR(160),HA$1)),FIND(CHAR(160),SUBSTITUTE($X104,\"}\",CHAR(160),HA$1))-FIND(CHAR(160),SUBSTITUTE($X104,\"{\",CHAR(160),HA$1))+1),\"\")","v":"{Capacity (MBTUH)}"},{"$f":"IFERROR(MID($X104,FIND(CHAR(160),SUBSTITUTE($X104,\"{\",CHAR(160),HB$1)),FIND(CHAR(160),SUBSTITUTE($X104,\"}\",CHAR(160),HB$1))-FIND(CHAR(160),SUBSTITUTE($X104,\"{\",CHAR(160),HB$1))+1),\"\")","v":"{End-Use}"},{"$f":"IFERROR(MID($X104,FIND(CHAR(160),SUBSTITUTE($X104,\"{\",CHAR(160),HC$1)),FIND(CHAR(160),SUBSTITUTE($X104,\"}\",CHAR(160),HC$1))-FIND(CHAR(160),SUBSTITUTE($X104,\"{\",CHAR(160),HC$1))+1),\"\")","v":"{Annual Hours of Operation}"},{"$f":"IFERROR(MID($X104,FIND(CHAR(160),SUBSTITUTE($X104,\"{\",CHAR(160),HD$1)),FIND(CHAR(160),SUBSTITUTE($X104,\"}\",CHAR(160),HD$1))-FIND(CHAR(160),SUBSTITUTE($X104,\"{\",CHAR(160),HD$1))+1),\"\")","v":""},{"$f":"IFERROR(MID($X104,FIND(CHAR(160),SUBSTITUTE($X104,\"{\",CHAR(160),HE$1)),FIND(CHAR(160),SUBSTITUTE($X104,\"}\",CHAR(160),HE$1))-FIND(CHAR(160),SUBSTITUTE($X104,\"{\",CHAR(160),HE$1))+1),\"\")","v":""},{"$f":"IFERROR(MID($X104,FIND(CHAR(160),SUBSTITUTE($X104,\"{\",CHAR(160),HF$1)),FIND(CHAR(160),SUBSTITUTE($X104,\"}\",CHAR(160),HF$1))-FIND(CHAR(160),SUBSTITUTE($X104,\"{\",CHAR(160),HF$1))+1),\"\")","v":""},{"$f":"IFERROR(MID($X104,FIND(CHAR(160),SUBSTITUTE($X104,\"{\",CHAR(160),HG$1)),FIND(CHAR(160),SUBSTITUTE($X104,\"}\",CHAR(160),HG$1))-FIND(CHAR(160),SUBSTITUTE($X104,\"{\",CHAR(160),HG$1))+1),\"\")","v":""},{"$f":"IFERROR(MID($X104,FIND(CHAR(160),SUBSTITUTE($X104,\"{\",CHAR(160),HH$1)),FIND(CHAR(160),SUBSTITUTE($X104,\"}\",CHAR(160),HH$1))-FIND(CHAR(160),SUBSTITUTE($X104,\"{\",CHAR(160),HH$1))+1),\"\")","v":""},{"$f":"IFERROR(MID($X104,FIND(CHAR(160),SUBSTITUTE($X104,\"{\",CHAR(160),HI$1)),FIND(CHAR(160),SUBSTITUTE($X104,\"}\",CHAR(160),HI$1))-FIND(CHAR(160),SUBSTITUTE($X104,\"{\",CHAR(160),HI$1))+1),\"\")","v":"{Existing Fuel}"},{"$f":"IFERROR(MID($X104,FIND(CHAR(160),SUBSTITUTE($X104,\"{\",CHAR(160),HJ$1)),FIND(CHAR(160),SUBSTITUTE($X104,\"}\",CHAR(160),HJ$1))-FIND(CHAR(160),SUBSTITUTE($X104,\"{\",CHAR(160),HJ$1))+1),\"\")","v":"{Measure:Quantity}"},{"$f":"IFERROR(MID($Y104,FIND(CHAR(160),SUBSTITUTE($Y104,\"{\",CHAR(160),HK$1)),FIND(CHAR(160),SUBSTITUTE($Y104,\"}\",CHAR(160),HK$1))-FIND(CHAR(160),SUBSTITUTE($Y104,\"{\",CHAR(160),HK$1))+1),\"\")","v":""},{"$f":"IFERROR(MID($Y104,FIND(CHAR(160),SUBSTITUTE($Y104,\"{\",CHAR(160),HL$1)),FIND(CHAR(160),SUBSTITUTE($Y104,\"}\",CHAR(160),HL$1))-FIND(CHAR(160),SUBSTITUTE($Y104,\"{\",CHAR(160),HL$1))+1),\"\")","v":""},{"$f":"IFERROR(MID($Y104,FIND(CHAR(160),SUBSTITUTE($Y104,\"{\",CHAR(160),HM$1)),FIND(CHAR(160),SUBSTITUTE($Y104,\"}\",CHAR(160),HM$1))-FIND(CHAR(160),SUBSTITUTE($Y104,\"{\",CHAR(160),HM$1))+1),\"\")","v":""},{"$f":"IFERROR(MID($Y104,FIND(CHAR(160),SUBSTITUTE($Y104,\"{\",CHAR(160),HN$1)),FIND(CHAR(160),SUBSTITUTE($Y104,\"}\",CHAR(160),HN$1))-FIND(CHAR(160),SUBSTITUTE($Y104,\"{\",CHAR(160),HN$1))+1),\"\")","v":""},{"$f":"IFERROR(MID($Y104,FIND(CHAR(160),SUBSTITUTE($Y104,\"{\",CHAR(160),HO$1)),FIND(CHAR(160),SUBSTITUTE($Y104,\"}\",CHAR(160),HO$1))-FIND(CHAR(160),SUBSTITUTE($Y104,\"{\",CHAR(160),HO$1))+1),\"\")","v":""},{"$f":"IFERROR(MID($Y104,FIND(CHAR(160),SUBSTITUTE($Y104,\"{\",CHAR(160),HP$1)),FIND(CHAR(160),SUBSTITUTE($Y104,\"}\",CHAR(160),HP$1))-FIND(CHAR(160),SUBSTITUTE($Y104,\"{\",CHAR(160),HP$1))+1),\"\")","v":""},{"$f":"IFERROR(MID($Y104,FIND(CHAR(160),SUBSTITUTE($Y104,\"{\",CHAR(160),HQ$1)),FIND(CHAR(160),SUBSTITUTE($Y104,\"}\",CHAR(160),HQ$1))-FIND(CHAR(160),SUBSTITUTE($Y104,\"{\",CHAR(160),HQ$1))+1),\"\")","v":""},{"$f":"IFERROR(MID($Y104,FIND(CHAR(160),SUBSTITUTE($Y104,\"{\",CHAR(160),HR$1)),FIND(CHAR(160),SUBSTITUTE($Y104,\"}\",CHAR(160),HR$1))-FIND(CHAR(160),SUBSTITUTE($Y104,\"{\",CHAR(160),HR$1))+1),\"\")","v":""},{"$f":"IFERROR(MID($Y104,FIND(CHAR(160),SUBSTITUTE($Y104,\"{\",CHAR(160),HS$1)),FIND(CHAR(160),SUBSTITUTE($Y104,\"}\",CHAR(160),HS$1))-FIND(CHAR(160),SUBSTITUTE($Y104,\"{\",CHAR(160),HS$1))+1),\"\")","v":""},{"$f":"IFERROR(MID($Y104,FIND(CHAR(160),SUBSTITUTE($Y104,\"{\",CHAR(160),HT$1)),FIND(CHAR(160),SUBSTITUTE($Y104,\"}\",CHAR(160),HT$1))-FIND(CHAR(160),SUBSTITUTE($Y104,\"{\",CHAR(160),HT$1))+1),\"\")","v":""},{"$f":"IFERROR(MID($Z104,FIND(CHAR(160),SUBSTITUTE($Z104,\"{\",CHAR(160),HU$1)),FIND(CHAR(160),SUBSTITUTE($Z104,\"}\",CHAR(160),HU$1))-FIND(CHAR(160),SUBSTITUTE($Z104,\"{\",CHAR(160),HU$1))+1),\"\")","v":""},{"$f":"IFERROR(MID($Z104,FIND(CHAR(160),SUBSTITUTE($Z104,\"{\",CHAR(160),HV$1)),FIND(CHAR(160),SUBSTITUTE($Z104,\"}\",CHAR(160),HV$1))-FIND(CHAR(160),SUBSTITUTE($Z104,\"{\",CHAR(160),HV$1))+1),\"\")","v":""},{"$f":"IFERROR(MID($Z104,FIND(CHAR(160),SUBSTITUTE($Z104,\"{\",CHAR(160),HW$1)),FIND(CHAR(160),SUBSTITUTE($Z104,\"}\",CHAR(160),HW$1))-FIND(CHAR(160),SUBSTITUTE($Z104,\"{\",CHAR(160),HW$1))+1),\"\")","v":""},{"$f":"IFERROR(MID($Z104,FIND(CHAR(160),SUBSTITUTE($Z104,\"{\",CHAR(160),HX$1)),FIND(CHAR(160),SUBSTITUTE($Z104,\"}\",CHAR(160),HX$1))-FIND(CHAR(160),SUBSTITUTE($Z104,\"{\",CHAR(160),HX$1))+1),\"\")","v":""},{"$f":"IFERROR(MID($Z104,FIND(CHAR(160),SUBSTITUTE($Z104,\"{\",CHAR(160),HY$1)),FIND(CHAR(160),SUBSTITUTE($Z104,\"}\",CHAR(160),HY$1))-FIND(CHAR(160),SUBSTITUTE($Z104,\"{\",CHAR(160),HY$1))+1),\"\")","v":""},{"$f":"IFERROR(MID($Z104,FIND(CHAR(160),SUBSTITUTE($Z104,\"{\",CHAR(160),HZ$1)),FIND(CHAR(160),SUBSTITUTE($Z104,\"}\",CHAR(160),HZ$1))-FIND(CHAR(160),SUBSTITUTE($Z104,\"{\",CHAR(160),HZ$1))+1),\"\")","v":""},{"$f":"IFERROR(MID($Z104,FIND(CHAR(160),SUBSTITUTE($Z104,\"{\",CHAR(160),IA$1)),FIND(CHAR(160),SUBSTITUTE($Z104,\"}\",CHAR(160),IA$1))-FIND(CHAR(160),SUBSTITUTE($Z104,\"{\",CHAR(160),IA$1))+1),\"\")","v":""},{"$f":"IFERROR(MID($Z104,FIND(CHAR(160),SUBSTITUTE($Z104,\"{\",CHAR(160),IB$1)),FIND(CHAR(160),SUBSTITUTE($Z104,\"}\",CHAR(160),IB$1))-FIND(CHAR(160),SUBSTITUTE($Z104,\"{\",CHAR(160),IB$1))+1),\"\")","v":""},{"$f":"IFERROR(MID($Z104,FIND(CHAR(160),SUBSTITUTE($Z104,\"{\",CHAR(160),IC$1)),FIND(CHAR(160),SUBSTITUTE($Z104,\"}\",CHAR(160),IC$1))-FIND(CHAR(160),SUBSTITUTE($Z104,\"{\",CHAR(160),IC$1))+1),\"\")","v":""},{"$f":"IFERROR(MID($Z104,FIND(CHAR(160),SUBSTITUTE($Z104,\"{\",CHAR(160),ID$1)),FIND(CHAR(160),SUBSTITUTE($Z104,\"}\",CHAR(160),ID$1))-FIND(CHAR(160),SUBSTITUTE($Z104,\"{\",CHAR(160),ID$1))+1),\"\")","v":""},{"$f":"IFERROR(MID($AA104,FIND(CHAR(160),SUBSTITUTE($AA104,\"{\",CHAR(160),IE$1)),FIND(CHAR(160),SUBSTITUTE($AA104,\"}\",CHAR(160),IE$1))-FIND(CHAR(160),SUBSTITUTE($AA104,\"{\",CHAR(160),IE$1))+1),\"\")","v":""},{"$f":"IFERROR(MID($AA104,FIND(CHAR(160),SUBSTITUTE($AA104,\"{\",CHAR(160),IF$1)),FIND(CHAR(160),SUBSTITUTE($AA104,\"}\",CHAR(160),IF$1))-FIND(CHAR(160),SUBSTITUTE($AA104,\"{\",CHAR(160),IF$1))+1),\"\")","v":""},{"$f":"IFERROR(MID($AA104,FIND(CHAR(160),SUBSTITUTE($AA104,\"{\",CHAR(160),IG$1)),FIND(CHAR(160),SUBSTITUTE($AA104,\"}\",CHAR(160),IG$1))-FIND(CHAR(160),SUBSTITUTE($AA104,\"{\",CHAR(160),IG$1))+1),\"\")","v":""},{"$f":"IFERROR(MID($AA104,FIND(CHAR(160),SUBSTITUTE($AA104,\"{\",CHAR(160),IH$1)),FIND(CHAR(160),SUBSTITUTE($AA104,\"}\",CHAR(160),IH$1))-FIND(CHAR(160),SUBSTITUTE($AA104,\"{\",CHAR(160),IH$1))+1),\"\")","v":""},{"$f":"IFERROR(MID($AA104,FIND(CHAR(160),SUBSTITUTE($AA104,\"{\",CHAR(160),II$1)),FIND(CHAR(160),SUBSTITUTE($AA104,\"}\",CHAR(160),II$1))-FIND(CHAR(160),SUBSTITUTE($AA104,\"{\",CHAR(160),II$1))+1),\"\")","v":""},{"$f":"IFERROR(MID($AA104,FIND(CHAR(160),SUBSTITUTE($AA104,\"{\",CHAR(160),IJ$1)),FIND(CHAR(160),SUBSTITUTE($AA104,\"}\",CHAR(160),IJ$1))-FIND(CHAR(160),SUBSTITUTE($AA104,\"{\",CHAR(160),IJ$1))+1),\"\")","v":""},{"$f":"IFERROR(MID($AA104,FIND(CHAR(160),SUBSTITUTE($AA104,\"{\",CHAR(160),IK$1)),FIND(CHAR(160),SUBSTITUTE($AA104,\"}\",CHAR(160),IK$1))-FIND(CHAR(160),SUBSTITUTE($AA104,\"{\",CHAR(160),IK$1))+1),\"\")","v":""},{"$f":"IFERROR(MID($AA104,FIND(CHAR(160),SUBSTITUTE($AA104,\"{\",CHAR(160),IL$1)),FIND(CHAR(160),SUBSTITUTE($AA104,\"}\",CHAR(160),IL$1))-FIND(CHAR(160),SUBSTITUTE($AA104,\"{\",CHAR(160),IL$1))+1),\"\")","v":""},{"$f":"IFERROR(MID($AA104,FIND(CHAR(160),SUBSTITUTE($AA104,\"{\",CHAR(160),IM$1)),FIND(CHAR(160),SUBSTITUTE($AA104,\"}\",CHAR(160),IM$1))-FIND(CHAR(160),SUBSTITUTE($AA104,\"{\",CHAR(160),IM$1))+1),\"\")","v":""},{"$f":"IFERROR(MID($AA104,FIND(CHAR(160),SUBSTITUTE($AA104,\"{\",CHAR(160),IN$1)),FIND(CHAR(160),SUBSTITUTE($AA104,\"}\",CHAR(160),IN$1))-FIND(CHAR(160),SUBSTITUTE($AA104,\"{\",CHAR(160),IN$1))+1),\"\")","v":""},{"$f":"IFERROR(MID($AB104,FIND(CHAR(160),SUBSTITUTE($AB104,\"{\",CHAR(160),IO$1)),FIND(CHAR(160),SUBSTITUTE($AB104,\"}\",CHAR(160),IO$1))-FIND(CHAR(160),SUBSTITUTE($AB104,\"{\",CHAR(160),IO$1))+1),\"\")","v":""},{"$f":"IFERROR(MID($AB104,FIND(CHAR(160),SUBSTITUTE($AB104,\"{\",CHAR(160),IP$1)),FIND(CHAR(160),SUBSTITUTE($AB104,\"}\",CHAR(160),IP$1))-FIND(CHAR(160),SUBSTITUTE($AB104,\"{\",CHAR(160),IP$1))+1),\"\")","v":""},{"$f":"IFERROR(MID($AB104,FIND(CHAR(160),SUBSTITUTE($AB104,\"{\",CHAR(160),IQ$1)),FIND(CHAR(160),SUBSTITUTE($AB104,\"}\",CHAR(160),IQ$1))-FIND(CHAR(160),SUBSTITUTE($AB104,\"{\",CHAR(160),IQ$1))+1),\"\")","v":""},{"$f":"IFERROR(MID($AB104,FIND(CHAR(160),SUBSTITUTE($AB104,\"{\",CHAR(160),IR$1)),FIND(CHAR(160),SUBSTITUTE($AB104,\"}\",CHAR(160),IR$1))-FIND(CHAR(160),SUBSTITUTE($AB104,\"{\",CHAR(160),IR$1))+1),\"\")","v":""},{"$f":"IFERROR(MID($AB104,FIND(CHAR(160),SUBSTITUTE($AB104,\"{\",CHAR(160),IS$1)),FIND(CHAR(160),SUBSTITUTE($AB104,\"}\",CHAR(160),IS$1))-FIND(CHAR(160),SUBSTITUTE($AB104,\"{\",CHAR(160),IS$1))+1),\"\")","v":""},{"$f":"IFERROR(MID($AB104,FIND(CHAR(160),SUBSTITUTE($AB104,\"{\",CHAR(160),IT$1)),FIND(CHAR(160),SUBSTITUTE($AB104,\"}\",CHAR(160),IT$1))-FIND(CHAR(160),SUBSTITUTE($AB104,\"{\",CHAR(160),IT$1))+1),\"\")","v":""},{"$f":"IFERROR(MID($AB104,FIND(CHAR(160),SUBSTITUTE($AB104,\"{\",CHAR(160),IU$1)),FIND(CHAR(160),SUBSTITUTE($AB104,\"}\",CHAR(160),IU$1))-FIND(CHAR(160),SUBSTITUTE($AB104,\"{\",CHAR(160),IU$1))+1),\"\")","v":""},{"$f":"IFERROR(MID($AB104,FIND(CHAR(160),SUBSTITUTE($AB104,\"{\",CHAR(160),IV$1)),FIND(CHAR(160),SUBSTITUTE($AB104,\"}\",CHAR(160),IV$1))-FIND(CHAR(160),SUBSTITUTE($AB104,\"{\",CHAR(160),IV$1))+1),\"\")","v":""},{"$f":"IFERROR(MID($AB104,FIND(CHAR(160),SUBSTITUTE($AB104,\"{\",CHAR(160),IW$1)),FIND(CHAR(160),SUBSTITUTE($AB104,\"}\",CHAR(160),IW$1))-FIND(CHAR(160),SUBSTITUTE($AB104,\"{\",CHAR(160),IW$1))+1),\"\")","v":""},{"$f":"IFERROR(MID($AB104,FIND(CHAR(160),SUBSTITUTE($AB104,\"{\",CHAR(160),IX$1)),FIND(CHAR(160),SUBSTITUTE($AB104,\"}\",CHAR(160),IX$1))-FIND(CHAR(160),SUBSTITUTE($AB104,\"{\",CHAR(160),IX$1))+1),\"\")","v":""},null,{"$f":"10-COUNTIF(DU104:ED104,\"\")","v":5}]
["C&I HVAC - Propane and Compressed NG","VFD: Building Exhaust Fan","BEF","2021-07-01","2022-06-30","Calculated","{Measure:Quantity}*if({Motor HP}=5,2425,if({Motor HP}=7.5,2648,if({Motor HP}=10,2871,if({Motor HP}=15,3317,if({Motor HP}=20,3763,if({Motor HP}=25,4209,if({Motor HP}=30,4655,0)))))))",0,"Calculated","{Measure:Quantity}*if({Motor HP}=5,400,if({Motor HP}=7.5,650,if({Motor HP}=10,1400,if({Motor HP}=15,1650,if({Motor HP}=20,1850,if({Motor HP}=25,2000,if({Motor HP}=30,2300,0)))))))",0,"2021-05-25","2022-06-30","Calculated","{Measure:Quantity}*{Motor HP}*755",null,null,"{Measure:Quantity}*{Motor HP}*.120",null,null,"{Measure:Quantity}*{Factor:WinterCF}*{Motor HP}*.120","{Measure:Quantity}*{Factor:SummerCF}*{Motor HP}*.120",null,null,null,null,null,null,"2021-05-25","2022-06-30",13,0.73699999999999999,0.35499999999999998,0.44400000000000001,0.222,0.16,0.17399999999999999,1,1.1220000000000001,1,0.52,1.6E-2,null,{"$f":"DU105","v":"{Measure:Quantity}"},1,{"$f":"DV105","v":"{Motor HP}"},5,{"$f":"DW105","v":""},null,{"$f":"DX105","v":""},null,{"$f":"DY105","v":""},null,{"$f":"DZ105","v":""},null,{"$f":"EA105","v":""},null,{"$f":"EB105","v":""},null,{"$f":"EC105","v":""},null,{"$f":"ED105","v":""},null,{"$f":"AS105*AU105*755","v":3775},0,0,{"$f":"AS105*AU105*0.12","v":0.6},0,0,{"$f":"AS105*AF105*AU105*0.12","v":0.44219999999999998},{"$f":"AS105*AG105*AU105*0.12","v":0.21299999999999999},0,0,0,0,0,0,null,"Res","Default DR",{"$f":"Benefits(BL105,BR105,BS105,BT105,BU105,BV105,BW105,BX105,BY105,BZ105,AE105,AH105,AI105,AJ105,AK105,AL105,AM105,AN105,AO105,AP105,CA105,CB105)","v":5086.6832116597379},1837.6156335233043,0,0,0,0,0,0,0,{"$f":"SUMPRODUCT(CC105:CK105,--(CC105:CK105>0))","v":6924.2988451830424},{"$f":"-SUMPRODUCT(CC105:CK105,--(CC105:CK105<0))","v":0},null,{"$f":"AS105*IF(AU105=5,2425,IF(AU105=7.5,2648,IF(AU105=10,2871,IF(AU105=15,3317,IF(AU105=20,3763,IF(AU105=25,4209,IF(AU105=30,4655,0)))))))","v":2425},null,null,{"$f":"CM105+CO105","v":2425},{"$f":"IF(NetOrGross=\"Net\",(1-AO105+AP105),1)","v":1},{"$f":"(SUMPRODUCT(CC105:CJ105,--(CC105:CJ105>0))+CN105)*CS105/((-SUMPRODUCT(CC105:CJ105,--(CC105:CJ105<0))+MAX(CO105,CV105)+CP105+CQ105)*CS105+IF(FRIncentives=\"Yes\",CV105*(1-CS105),0))","v":2.8553809670857908},1,{"$f":"AS105*IF(AU105=5,400,IF(AU105=7.5,650,IF(AU105=10,1400,IF(AU105=15,1650,IF(AU105=20,1850,IF(AU105=25,2000,IF(AU105=30,2300,0)))))))","v":400},null,"RGGI","y",null,{"$f":"IF(F105=\"Manual Entry\",\"Manual\",IF(G105=\"\",0,\"X=\"&SUBSTITUTE(SUBSTITUTE(SUBSTITUTE(SUBSTITUTE(SUBSTITUTE(SUBSTITUTE(SUBSTITUTE(SUBSTITUTE(SUBSTITUTE(SUBSTITUTE(SUBSTITUTE(SUBSTITUTE(G105,$ED105,$ED$2&ROW($ED105)),$EC105,$EC$2&ROW($EC105)),$EB105,$EB$2&ROW($EB105)),$EA105,$EA$2&ROW($EA105)),$DZ105,$DZ$2&ROW($DZ105)),$DY105,$DY$2&ROW($DY105)),$DX105,$DX$2&ROW($DX105)),$DW105,$DW$2&ROW($DW105)),$DV105,$DV$2&ROW($DV105)),$DU105,$DU$2&ROW($DU105)),$DT105,$DT$2&ROW($DT105)),$DS105,$DS$2&ROW($DS105))))","v":"X=AS105*if(AU105=5,2425,if(AU105=7.5,2648,if(AU105=10,2871,if(AU105=15,3317,if(AU105=20,3763,if(AU105=25,4209,if(AU105=30,4655,0)))))))"},{"$f":"IF(I105=\"Manual Entry\",\"Manual\",IF(J105=\"\",0,\"X=\"&SUBSTITUTE(SUBSTITUTE(SUBSTITUTE(SUBSTITUTE(SUBSTITUTE(SUBSTITUTE(SUBSTITUTE(SUBSTITUTE(SUBSTITUTE(SUBSTITUTE(SUBSTITUTE(SUBSTITUTE(J105,$ED105,$ED$2&ROW($ED105)),$EC105,$EC$2&ROW($EC105)),$EB105,$EB$2&ROW($EB105)),$EA105,$EA$2&ROW($EA105)),$DZ105,$DZ$2&ROW($DZ105)),$DY105,$DY$2&ROW($DY105)),$DX105,$DX$2&ROW($DX105)),$DW105,$DW$2&ROW($DW105)),$DV105,$DV$2&ROW($DV105)),$DU105,$DU$2&ROW($DU105)),$DT105,$DT$2&ROW($DT105)),$DS105,$DS$2&ROW($DS105))))","v":"X=AS105*if(AU105=5,400,if(AU105=7.5,650,if(AU105=10,1400,if(AU105=15,1650,if(AU105=20,1850,if(AU105=25,2000,if(AU105=30,2300,0)))))))"},{"$f":"IF(O105=\"\",0,\"X=\"&SUBSTITUTE(SUBSTITUTE(SUBSTITUTE(SUBSTITUTE(SUBSTITUTE(SUBSTITUTE(SUBSTITUTE(SUBSTITUTE(SUBSTITUTE(SUBSTITUTE(SUBSTITUTE(SUBSTITUTE(O105,$ED105,$ED$2&ROW($ED105)),$EC105,$EC$2&ROW($EC105)),$EB105,$EB$2&ROW($EB105)),$EA105,$EA$2&ROW($EA105)),$DZ105,$DZ$2&ROW($DZ105)),$DY105,$DY$2&ROW($DY105)),$DX105,$DX$2&ROW($DX105)),$DW105,$DW$2&ROW($DW105)),$DV105,$DV$2&ROW($DV105)),$DU105,$DU$2&ROW($DU105)),$DT105,$DT$2&ROW($DT105)),$DS105,$DS$2&ROW($DS105)))","v":"X=AS105*AU105*755"},{"$f":"IF(P105=\"\",0,\"X=\"&SUBSTITUTE(SUBSTITUTE(SUBSTITUTE(SUBSTITUTE(SUBSTITUTE(SUBSTITUTE(SUBSTITUTE(SUBSTITUTE(SUBSTITUTE(SUBSTITUTE(SUBSTITUTE(SUBSTITUTE(P105,$ED105,$ED$2&ROW($ED105)),$EC105,$EC$2&ROW($EC105)),$EB105,$EB$2&ROW($EB105)),$EA105,$EA$2&ROW($EA105)),$DZ105,$DZ$2&ROW($DZ105)),$DY105,$DY$2&ROW($DY105)),$DX105,$DX$2&ROW($DX105)),$DW105,$DW$2&ROW($DW105)),$DV105,$DV$2&ROW($DV105)),$DU105,$DU$2&ROW($DU105)),$DT105,$DT$2&ROW($DT105)),$DS105,$DS$2&ROW($DS105)))","v":0},{"$f":"IF(Q105=\"\",0,\"X=\"&SUBSTITUTE(SUBSTITUTE(SUBSTITUTE(SUBSTITUTE(SUBSTITUTE(SUBSTITUTE(SUBSTITUTE(SUBSTITUTE(SUBSTITUTE(SUBSTITUTE(SUBSTITUTE(SUBSTITUTE(Q105,$ED105,$ED$2&ROW($ED105)),$EC105,$EC$2&ROW($EC105)),$EB105,$EB$2&ROW($EB105)),$EA105,$EA$2&ROW($EA105)),$DZ105,$DZ$2&ROW($DZ105)),$DY105,$DY$2&ROW($DY105)),$DX105,$DX$2&ROW($DX105)),$DW105,$DW$2&ROW($DW105)),$DV105,$DV$2&ROW($DV105)),$DU105,$DU$2&ROW($DU105)),$DT105,$DT$2&ROW($DT105)),$DS105,$DS$2&ROW($DS105)))","v":0},{"$f":"IF(R105=\"\",0,\"X=\"&SUBSTITUTE(SUBSTITUTE(SUBSTITUTE(SUBSTITUTE(SUBSTITUTE(SUBSTITUTE(SUBSTITUTE(SUBSTITUTE(SUBSTITUTE(SUBSTITUTE(SUBSTITUTE(SUBSTITUTE(R105,$ED105,$ED$2&ROW($ED105)),$EC105,$EC$2&ROW($EC105)),$EB105,$EB$2&ROW($EB105)),$EA105,$EA$2&ROW($EA105)),$DZ105,$DZ$2&ROW($DZ105)),$DY105,$DY$2&ROW($DY105)),$DX105,$DX$2&ROW($DX105)),$DW105,$DW$2&ROW($DW105)),$DV105,$DV$2&ROW($DV105)),$DU105,$DU$2&ROW($DU105)),$DT105,$DT$2&ROW($DT105)),$DS105,$DS$2&ROW($DS105)))","v":"X=AS105*AU105*.120"},{"$f":"IF(S105=\"\",0,\"X=\"&SUBSTITUTE(SUBSTITUTE(SUBSTITUTE(SUBSTITUTE(SUBSTITUTE(SUBSTITUTE(SUBSTITUTE(SUBSTITUTE(SUBSTITUTE(SUBSTITUTE(SUBSTITUTE(SUBSTITUTE(S105,$ED105,$ED$2&ROW($ED105)),$EC105,$EC$2&ROW($EC105)),$EB105,$EB$2&ROW($EB105)),$EA105,$EA$2&ROW($EA105)),$DZ105,$DZ$2&ROW($DZ105)),$DY105,$DY$2&ROW($DY105)),$DX105,$DX$2&ROW($DX105)),$DW105,$DW$2&ROW($DW105)),$DV105,$DV$2&ROW($DV105)),$DU105,$DU$2&ROW($DU105)),$DT105,$DT$2&ROW($DT105)),$DS105,$DS$2&ROW($DS105)))","v":0},{"$f":"IF(T105=\"\",0,\"X=\"&SUBSTITUTE(SUBSTITUTE(SUBSTITUTE(SUBSTITUTE(SUBSTITUTE(SUBSTITUTE(SUBSTITUTE(SUBSTITUTE(SUBSTITUTE(SUBSTITUTE(SUBSTITUTE(SUBSTITUTE(T105,$ED105,$ED$2&ROW($ED105)),$EC105,$EC$2&ROW($EC105)),$EB105,$EB$2&ROW($EB105)),$EA105,$EA$2&ROW($EA105)),$DZ105,$DZ$2&ROW($DZ105)),$DY105,$DY$2&ROW($DY105)),$DX105,$DX$2&ROW($DX105)),$DW105,$DW$2&ROW($DW105)),$DV105,$DV$2&ROW($DV105)),$DU105,$DU$2&ROW($DU105)),$DT105,$DT$2&ROW($DT105)),$DS105,$DS$2&ROW($DS105)))","v":0},{"$f":"IF(U105=\"\",0,\"X=\"&SUBSTITUTE(SUBSTITUTE(SUBSTITUTE(SUBSTITUTE(SUBSTITUTE(SUBSTITUTE(SUBSTITUTE(SUBSTITUTE(SUBSTITUTE(SUBSTITUTE(SUBSTITUTE(SUBSTITUTE(U105,$ED105,$ED$2&ROW($ED105)),$EC105,$EC$2&ROW($EC105)),$EB105,$EB$2&ROW($EB105)),$EA105,$EA$2&ROW($EA105)),$DZ105,$DZ$2&ROW($DZ105)),$DY105,$DY$2&ROW($DY105)),$DX105,$DX$2&ROW($DX105)),$DW105,$DW$2&ROW($DW105)),$DV105,$DV$2&ROW($DV105)),$DU105,$DU$2&ROW($DU105)),$DT105,$DT$2&ROW($DT105)),$DS105,$DS$2&ROW($DS105)))","v":"X=AS105*AF105*AU105*.120"},{"$f":"IF(V105=\"\",0,\"X=\"&SUBSTITUTE(SUBSTITUTE(SUBSTITUTE(SUBSTITUTE(SUBSTITUTE(SUBSTITUTE(SUBSTITUTE(SUBSTITUTE(SUBSTITUTE(SUBSTITUTE(SUBSTITUTE(SUBSTITUTE(V105,$ED105,$ED$2&ROW($ED105)),$EC105,$EC$2&ROW($EC105)),$EB105,$EB$2&ROW($EB105)),$EA105,$EA$2&ROW($EA105)),$DZ105,$DZ$2&ROW($DZ105)),$DY105,$DY$2&ROW($DY105)),$DX105,$DX$2&ROW($DX105)),$DW105,$DW$2&ROW($DW105)),$DV105,$DV$2&ROW($DV105)),$DU105,$DU$2&ROW($DU105)),$DT105,$DT$2&ROW($DT105)),$DS105,$DS$2&ROW($DS105)))","v":"X=AS105*AG105*AU105*.120"},{"$f":"IF(W105=\"\",0,\"X=\"&SUBSTITUTE(SUBSTITUTE(SUBSTITUTE(SUBSTITUTE(SUBSTITUTE(SUBSTITUTE(SUBSTITUTE(SUBSTITUTE(SUBSTITUTE(SUBSTITUTE(SUBSTITUTE(SUBSTITUTE(W105,$ED105,$ED$2&ROW($ED105)),$EC105,$EC$2&ROW($EC105)),$EB105,$EB$2&ROW($EB105)),$EA105,$EA$2&ROW($EA105)),$DZ105,$DZ$2&ROW($DZ105)),$DY105,$DY$2&ROW($DY105)),$DX105,$DX$2&ROW($DX105)),$DW105,$DW$2&ROW($DW105)),$DV105,$DV$2&ROW($DV105)),$DU105,$DU$2&ROW($DU105)),$DT105,$DT$2&ROW($DT105)),$DS105,$DS$2&ROW($DS105)))","v":0},{"$f":"IF(X105=\"\",0,\"X=\"&SUBSTITUTE(SUBSTITUTE(SUBSTITUTE(SUBSTITUTE(SUBSTITUTE(SUBSTITUTE(SUBSTITUTE(SUBSTITUTE(SUBSTITUTE(SUBSTITUTE(SUBSTITUTE(SUBSTITUTE(X105,$ED105,$ED$2&ROW($ED105)),$EC105,$EC$2&ROW($EC105)),$EB105,$EB$2&ROW($EB105)),$EA105,$EA$2&ROW($EA105)),$DZ105,$DZ$2&ROW($DZ105)),$DY105,$DY$2&ROW($DY105)),$DX105,$DX$2&ROW($DX105)),$DW105,$DW$2&ROW($DW105)),$DV105,$DV$2&ROW($DV105)),$DU105,$DU$2&ROW($DU105)),$DT105,$DT$2&ROW($DT105)),$DS105,$DS$2&ROW($DS105)))","v":0},{"$f":"IF(Y105=\"\",0,\"X=\"&SUBSTITUTE(SUBSTITUTE(SUBSTITUTE(SUBSTITUTE(SUBSTITUTE(SUBSTITUTE(SUBSTITUTE(SUBSTITUTE(SUBSTITUTE(SUBSTITUTE(SUBSTITUTE(SUBSTITUTE(Y105,$ED105,$ED$2&ROW($ED105)),$EC105,$EC$2&ROW($EC105)),$EB105,$EB$2&ROW($EB105)),$EA105,$EA$2&ROW($EA105)),$DZ105,$DZ$2&ROW($DZ105)),$DY105,$DY$2&ROW($DY105)),$DX105,$DX$2&ROW($DX105)),$DW105,$DW$2&ROW($DW105)),$DV105,$DV$2&ROW($DV105)),$DU105,$DU$2&ROW($DU105)),$DT105,$DT$2&ROW($DT105)),$DS105,$DS$2&ROW($DS105)))","v":0},{"$f":"IF(Z105=\"\",0,\"X=\"&SUBSTITUTE(SUBSTITUTE(SUBSTITUTE(SUBSTITUTE(SUBSTITUTE(SUBSTITUTE(SUBSTITUTE(SUBSTITUTE(SUBSTITUTE(SUBSTITUTE(SUBSTITUTE(SUBSTITUTE(Z105,$ED105,$ED$2&ROW($ED105)),$EC105,$EC$2&ROW($EC105)),$EB105,$EB$2&ROW($EB105)),$EA105,$EA$2&ROW($EA105)),$DZ105,$DZ$2&ROW($DZ105)),$DY105,$DY$2&ROW($DY105)),$DX105,$DX$2&ROW($DX105)),$DW105,$DW$2&ROW($DW105)),$DV105,$DV$2&ROW($DV105)),$DU105,$DU$2&ROW($DU105)),$DT105,$DT$2&ROW($DT105)),$DS105,$DS$2&ROW($DS105)))","v":0},{"$f":"IF(AA105=\"\",0,\"X=\"&SUBSTITUTE(SUBSTITUTE(SUBSTITUTE(SUBSTITUTE(SUBSTITUTE(SUBSTITUTE(SUBSTITUTE(SUBSTITUTE(SUBSTITUTE(SUBSTITUTE(SUBSTITUTE(SUBSTITUTE(AA105,$ED105,$ED$2&ROW($ED105)),$EC105,$EC$2&ROW($EC105)),$EB105,$EB$2&ROW($EB105)),$EA105,$EA$2&ROW($EA105)),$DZ105,$DZ$2&ROW($DZ105)),$DY105,$DY$2&ROW($DY105)),$DX105,$DX$2&ROW($DX105)),$DW105,$DW$2&ROW($DW105)),$DV105,$DV$2&ROW($DV105)),$DU105,$DU$2&ROW($DU105)),$DT105,$DT$2&ROW($DT105)),$DS105,$DS$2&ROW($DS105)))","v":0},{"$f":"IF(AB105=\"\",0,\"X=\"&SUBSTITUTE(SUBSTITUTE(SUBSTITUTE(SUBSTITUTE(SUBSTITUTE(SUBSTITUTE(SUBSTITUTE(SUBSTITUTE(SUBSTITUTE(SUBSTITUTE(SUBSTITUTE(SUBSTITUTE(AB105,$ED105,$ED$2&ROW($ED105)),$EC105,$EC$2&ROW($EC105)),$EB105,$EB$2&ROW($EB105)),$EA105,$EA$2&ROW($EA105)),$DZ105,$DZ$2&ROW($DZ105)),$DY105,$DY$2&ROW($DY105)),$DX105,$DX$2&ROW($DX105)),$DW105,$DW$2&ROW($DW105)),$DV105,$DV$2&ROW($DV105)),$DU105,$DU$2&ROW($DU105)),$DT105,$DT$2&ROW($DT105)),$DS105,$DS$2&ROW($DS105)))","v":0},null,null,"{Factor:WinterCF}","{Factor:SummerCF}",{"$f":"IFERROR(INDEX($EG105:$IV105,MATCH(0,COUNTIF($DR105:DT105,$EG105:$IV105),0)),\"\")","v":"{Measure:Quantity}"},{"$f":"IFERROR(INDEX($EG105:$IV105,MATCH(0,COUNTIF($DR105:DU105,$EG105:$IV105),0)),\"\")","v":"{Motor HP}"},{"$f":"IFERROR(INDEX($EG105:$IV105,MATCH(0,COUNTIF($DR105:DV105,$EG105:$IV105),0)),\"\")","v":""},{"$f":"IFERROR(INDEX($EG105:$IV105,MATCH(0,COUNTIF($DR105:DW105,$EG105:$IV105),0)),\"\")","v":""},{"$f":"IFERROR(INDEX($EG105:$IV105,MATCH(0,COUNTIF($DR105:DX105,$EG105:$IV105),0)),\"\")","v":""},{"$f":"IFERROR(INDEX($EG105:$IV105,MATCH(0,COUNTIF($DR105:DY105,$EG105:$IV105),0)),\"\")","v":""},{"$f":"IFERROR(INDEX($EG105:$IV105,MATCH(0,COUNTIF($DR105:DZ105,$EG105:$IV105),0)),\"\")","v":""},{"$f":"IFERROR(INDEX($EG105:$IV105,MATCH(0,COUNTIF($DR105:EA105,$EG105:$IV105),0)),\"\")","v":""},{"$f":"IFERROR(INDEX($EG105:$IV105,MATCH(0,COUNTIF($DR105:EB105,$EG105:$IV105),0)),\"\")","v":""},{"$f":"IFERROR(INDEX($EG105:$IV105,MATCH(0,COUNTIF($DR105:EC105,$EG105:$IV105),0)),\"\")","v":""},null,null,{"$f":"IFERROR(MID($G105,FIND(CHAR(160),SUBSTITUTE($G105,\"{\",CHAR(160),EG$1)),FIND(CHAR(160),SUBSTITUTE($G105,\"}\",CHAR(160),EG$1))-FIND(CHAR(160),SUBSTITUTE($G105,\"{\",CHAR(160),EG$1))+1),\"\")","v":"{Measure:Quantity}"},{"$f":"IFERROR(MID($G105,FIND(CHAR(160),SUBSTITUTE($G105,\"{\",CHAR(160),EH$1)),FIND(CHAR(160),SUBSTITUTE($G105,\"}\",CHAR(160),EH$1))-FIND(CHAR(160),SUBSTITUTE($G105,\"{\",CHAR(160),EH$1))+1),\"\")","v":"{Motor HP}"},{"$f":"IFERROR(MID($G105,FIND(CHAR(160),SUBSTITUTE($G105,\"{\",CHAR(160),EI$1)),FIND(CHAR(160),SUBSTITUTE($G105,\"}\",CHAR(160),EI$1))-FIND(CHAR(160),SUBSTITUTE($G105,\"{\",CHAR(160),EI$1))+1),\"\")","v":"{Motor HP}"},{"$f":"IFERROR(MID($G105,FIND(CHAR(160),SUBSTITUTE($G105,\"{\",CHAR(160),EJ$1)),FIND(CHAR(160),SUBSTITUTE($G105,\"}\",CHAR(160),EJ$1))-FIND(CHAR(160),SUBSTITUTE($G105,\"{\",CHAR(160),EJ$1))+1),\"\")","v":"{Motor HP}"},{"$f":"IFERROR(MID($G105,FIND(CHAR(160),SUBSTITUTE($G105,\"{\",CHAR(160),EK$1)),FIND(CHAR(160),SUBSTITUTE($G105,\"}\",CHAR(160),EK$1))-FIND(CHAR(160),SUBSTITUTE($G105,\"{\",CHAR(160),EK$1))+1),\"\")","v":"{Motor HP}"},{"$f":"IFERROR(MID($G105,FIND(CHAR(160),SUBSTITUTE($G105,\"{\",CHAR(160),EL$1)),FIND(CHAR(160),SUBSTITUTE($G105,\"}\",CHAR(160),EL$1))-FIND(CHAR(160),SUBSTITUTE($G105,\"{\",CHAR(160),EL$1))+1),\"\")","v":"{Motor HP}"},{"$f":"IFERROR(MID($G105,FIND(CHAR(160),SUBSTITUTE($G105,\"{\",CHAR(160),EM$1)),FIND(CHAR(160),SUBSTITUTE($G105,\"}\",CHAR(160),EM$1))-FIND(CHAR(160),SUBSTITUTE($G105,\"{\",CHAR(160),EM$1))+1),\"\")","v":"{Motor HP}"},{"$f":"IFERROR(MID($G105,FIND(CHAR(160),SUBSTITUTE($G105,\"{\",CHAR(160),EN$1)),FIND(CHAR(160),SUBSTITUTE($G105,\"}\",CHAR(160),EN$1))-FIND(CHAR(160),SUBSTITUTE($G105,\"{\",CHAR(160),EN$1))+1),\"\")","v":"{Motor HP}"},{"$f":"IFERROR(MID($G105,FIND(CHAR(160),SUBSTITUTE($G105,\"{\",CHAR(160),EO$1)),FIND(CHAR(160),SUBSTITUTE($G105,\"}\",CHAR(160),EO$1))-FIND(CHAR(160),SUBSTITUTE($G105,\"{\",CHAR(160),EO$1))+1),\"\")","v":""},{"$f":"IFERROR(MID($G105,FIND(CHAR(160),SUBSTITUTE($G105,\"{\",CHAR(160),EP$1)),FIND(CHAR(160),SUBSTITUTE($G105,\"}\",CHAR(160),EP$1))-FIND(CHAR(160),SUBSTITUTE($G105,\"{\",CHAR(160),EP$1))+1),\"\")","v":""},{"$f":"IFERROR(MID($J105,FIND(CHAR(160),SUBSTITUTE($J105,\"{\",CHAR(160),EQ$1)),FIND(CHAR(160),SUBSTITUTE($J105,\"}\",CHAR(160),EQ$1))-FIND(CHAR(160),SUBSTITUTE($J105,\"{\",CHAR(160),EQ$1))+1),\"\")","v":"{Measure:Quantity}"},{"$f":"IFERROR(MID($J105,FIND(CHAR(160),SUBSTITUTE($J105,\"{\",CHAR(160),ER$1)),FIND(CHAR(160),SUBSTITUTE($J105,\"}\",CHAR(160),ER$1))-FIND(CHAR(160),SUBSTITUTE($J105,\"{\",CHAR(160),ER$1))+1),\"\")","v":"{Motor HP}"},{"$f":"IFERROR(MID($J105,FIND(CHAR(160),SUBSTITUTE($J105,\"{\",CHAR(160),ES$1)),FIND(CHAR(160),SUBSTITUTE($J105,\"}\",CHAR(160),ES$1))-FIND(CHAR(160),SUBSTITUTE($J105,\"{\",CHAR(160),ES$1))+1),\"\")","v":"{Motor HP}"},{"$f":"IFERROR(MID($J105,FIND(CHAR(160),SUBSTITUTE($J105,\"{\",CHAR(160),ET$1)),FIND(CHAR(160),SUBSTITUTE($J105,\"}\",CHAR(160),ET$1))-FIND(CHAR(160),SUBSTITUTE($J105,\"{\",CHAR(160),ET$1))+1),\"\")","v":"{Motor HP}"},{"$f":"IFERROR(MID($J105,FIND(CHAR(160),SUBSTITUTE($J105,\"{\",CHAR(160),EU$1)),FIND(CHAR(160),SUBSTITUTE($J105,\"}\",CHAR(160),EU$1))-FIND(CHAR(160),SUBSTITUTE($J105,\"{\",CHAR(160),EU$1))+1),\"\")","v":"{Motor HP}"},{"$f":"IFERROR(MID($J105,FIND(CHAR(160),SUBSTITUTE($J105,\"{\",CHAR(160),EV$1)),FIND(CHAR(160),SUBSTITUTE($J105,\"}\",CHAR(160),EV$1))-FIND(CHAR(160),SUBSTITUTE($J105,\"{\",CHAR(160),EV$1))+1),\"\")","v":"{Motor HP}"},{"$f":"IFERROR(MID($J105,FIND(CHAR(160),SUBSTITUTE($J105,\"{\",CHAR(160),EW$1)),FIND(CHAR(160),SUBSTITUTE($J105,\"}\",CHAR(160),EW$1))-FIND(CHAR(160),SUBSTITUTE($J105,\"{\",CHAR(160),EW$1))+1),\"\")","v":"{Motor HP}"},{"$f":"IFERROR(MID($J105,FIND(CHAR(160),SUBSTITUTE($J105,\"{\",CHAR(160),EX$1)),FIND(CHAR(160),SUBSTITUTE($J105,\"}\",CHAR(160),EX$1))-FIND(CHAR(160),SUBSTITUTE($J105,\"{\",CHAR(160),EX$1))+1),\"\")","v":"{Motor HP}"},{"$f":"IFERROR(MID($J105,FIND(CHAR(160),SUBSTITUTE($J105,\"{\",CHAR(160),EY$1)),FIND(CHAR(160),SUBSTITUTE($J105,\"}\",CHAR(160),EY$1))-FIND(CHAR(160),SUBSTITUTE($J105,\"{\",CHAR(160),EY$1))+1),\"\")","v":""},{"$f":"IFERROR(MID($J105,FIND(CHAR(160),SUBSTITUTE($J105,\"{\",CHAR(160),EZ$1)),FIND(CHAR(160),SUBSTITUTE($J105,\"}\",CHAR(160),EZ$1))-FIND(CHAR(160),SUBSTITUTE($J105,\"{\",CHAR(160),EZ$1))+1),\"\")","v":""},{"$f":"IFERROR(MID($J105,FIND(CHAR(160),SUBSTITUTE($J105,\"{\",CHAR(160),FA$1)),FIND(CHAR(160),SUBSTITUTE($J105,\"}\",CHAR(160),FA$1))-FIND(CHAR(160),SUBSTITUTE($J105,\"{\",CHAR(160),FA$1))+1),\"\")","v":"{Measure:Quantity}"},{"$f":"IFERROR(MID($J105,FIND(CHAR(160),SUBSTITUTE($J105,\"{\",CHAR(160),FB$1)),FIND(CHAR(160),SUBSTITUTE($J105,\"}\",CHAR(160),FB$1))-FIND(CHAR(160),SUBSTITUTE($J105,\"{\",CHAR(160),FB$1))+1),\"\")","v":"{Motor HP}"},{"$f":"IFERROR(MID($O105,FIND(CHAR(160),SUBSTITUTE($O105,\"{\",CHAR(160),FC$1)),FIND(CHAR(160),SUBSTITUTE($O105,\"}\",CHAR(160),FC$1))-FIND(CHAR(160),SUBSTITUTE($O105,\"{\",CHAR(160),FC$1))+1),\"\")","v":""},{"$f":"IFERROR(MID($O105,FIND(CHAR(160),SUBSTITUTE($O105,\"{\",CHAR(160),FD$1)),FIND(CHAR(160),SUBSTITUTE($O105,\"}\",CHAR(160),FD$1))-FIND(CHAR(160),SUBSTITUTE($O105,\"{\",CHAR(160),FD$1))+1),\"\")","v":""},{"$f":"IFERROR(MID($O105,FIND(CHAR(160),SUBSTITUTE($O105,\"{\",CHAR(160),FE$1)),FIND(CHAR(160),SUBSTITUTE($O105,\"}\",CHAR(160),FE$1))-FIND(CHAR(160),SUBSTITUTE($O105,\"{\",CHAR(160),FE$1))+1),\"\")","v":""},{"$f":"IFERROR(MID($O105,FIND(CHAR(160),SUBSTITUTE($O105,\"{\",CHAR(160),FF$1)),FIND(CHAR(160),SUBSTITUTE($O105,\"}\",CHAR(160),FF$1))-FIND(CHAR(160),SUBSTITUTE($O105,\"{\",CHAR(160),FF$1))+1),\"\")","v":""},{"$f":"IFERROR(MID($O105,FIND(CHAR(160),SUBSTITUTE($O105,\"{\",CHAR(160),FG$1)),FIND(CHAR(160),SUBSTITUTE($O105,\"}\",CHAR(160),FG$1))-FIND(CHAR(160),SUBSTITUTE($O105,\"{\",CHAR(160),FG$1))+1),\"\")","v":""},{"$f":"IFERROR(MID($O105,FIND(CHAR(160),SUBSTITUTE($O105,\"{\",CHAR(160),FH$1)),FIND(CHAR(160),SUBSTITUTE($O105,\"}\",CHAR(160),FH$1))-FIND(CHAR(160),SUBSTITUTE($O105,\"{\",CHAR(160),FH$1))+1),\"\")","v":""},{"$f":"IFERROR(MID($O105,FIND(CHAR(160),SUBSTITUTE($O105,\"{\",CHAR(160),FI$1)),FIND(CHAR(160),SUBSTITUTE($O105,\"}\",CHAR(160),FI$1))-FIND(CHAR(160),SUBSTITUTE($O105,\"{\",CHAR(160),FI$1))+1),\"\")","v":""},{"$f":"IFERROR(MID($O105,FIND(CHAR(160),SUBSTITUTE($O105,\"{\",CHAR(160),FJ$1)),FIND(CHAR(160),SUBSTITUTE($O105,\"}\",CHAR(160),FJ$1))-FIND(CHAR(160),SUBSTITUTE($O105,\"{\",CHAR(160),FJ$1))+1),\"\")","v":""},{"$f":"IFERROR(MID($O105,FIND(CHAR(160),SUBSTITUTE($O105,\"{\",CHAR(160),FK$1)),FIND(CHAR(160),SUBSTITUTE($O105,\"}\",CHAR(160),FK$1))-FIND(CHAR(160),SUBSTITUTE($O105,\"{\",CHAR(160),FK$1))+1),\"\")","v":"{Measure:Quantity}"},{"$f":"IFERROR(MID($O105,FIND(CHAR(160),SUBSTITUTE($O105,\"{\",CHAR(160),FL$1)),FIND(CHAR(160),SUBSTITUTE($O105,\"}\",CHAR(160),FL$1))-FIND(CHAR(160),SUBSTITUTE($O105,\"{\",CHAR(160),FL$1))+1),\"\")","v":"{Motor HP}"},{"$f":"IFERROR(MID($R105,FIND(CHAR(160),SUBSTITUTE($R105,\"{\",CHAR(160),FM$1)),FIND(CHAR(160),SUBSTITUTE($R105,\"}\",CHAR(160),FM$1))-FIND(CHAR(160),SUBSTITUTE($R105,\"{\",CHAR(160),FM$1))+1),\"\")","v":""},{"$f":"IFERROR(MID($R105,FIND(CHAR(160),SUBSTITUTE($R105,\"{\",CHAR(160),FN$1)),FIND(CHAR(160),SUBSTITUTE($R105,\"}\",CHAR(160),FN$1))-FIND(CHAR(160),SUBSTITUTE($R105,\"{\",CHAR(160),FN$1))+1),\"\")","v":""},{"$f":"IFERROR(MID($R105,FIND(CHAR(160),SUBSTITUTE($R105,\"{\",CHAR(160),FO$1)),FIND(CHAR(160),SUBSTITUTE($R105,\"}\",CHAR(160),FO$1))-FIND(CHAR(160),SUBSTITUTE($R105,\"{\",CHAR(160),FO$1))+1),\"\")","v":""},{"$f":"IFERROR(MID($R105,FIND(CHAR(160),SUBSTITUTE($R105,\"{\",CHAR(160),FP$1)),FIND(CHAR(160),SUBSTITUTE($R105,\"}\",CHAR(160),FP$1))-FIND(CHAR(160),SUBSTITUTE($R105,\"{\",CHAR(160),FP$1))+1),\"\")","v":""},{"$f":"IFERROR(MID($R105,FIND(CHAR(160),SUBSTITUTE($R105,\"{\",CHAR(160),FQ$1)),FIND(CHAR(160),SUBSTITUTE($R105,\"}\",CHAR(160),FQ$1))-FIND(CHAR(160),SUBSTITUTE($R105,\"{\",CHAR(160),FQ$1))+1),\"\")","v":""},{"$f":"IFERROR(MID($R105,FIND(CHAR(160),SUBSTITUTE($R105,\"{\",CHAR(160),FR$1)),FIND(CHAR(160),SUBSTITUTE($R105,\"}\",CHAR(160),FR$1))-FIND(CHAR(160),SUBSTITUTE($R105,\"{\",CHAR(160),FR$1))+1),\"\")","v":""},{"$f":"IFERROR(MID($R105,FIND(CHAR(160),SUBSTITUTE($R105,\"{\",CHAR(160),FS$1)),FIND(CHAR(160),SUBSTITUTE($R105,\"}\",CHAR(160),FS$1))-FIND(CHAR(160),SUBSTITUTE($R105,\"{\",CHAR(160),FS$1))+1),\"\")","v":""},{"$f":"IFERROR(MID($R105,FIND(CHAR(160),SUBSTITUTE($R105,\"{\",CHAR(160),FT$1)),FIND(CHAR(160),SUBSTITUTE($R105,\"}\",CHAR(160),FT$1))-FIND(CHAR(160),SUBSTITUTE($R105,\"{\",CHAR(160),FT$1))+1),\"\")","v":""},{"$f":"IFERROR(MID($R105,FIND(CHAR(160),SUBSTITUTE($R105,\"{\",CHAR(160),FU$1)),FIND(CHAR(160),SUBSTITUTE($R105,\"}\",CHAR(160),FU$1))-FIND(CHAR(160),SUBSTITUTE($R105,\"{\",CHAR(160),FU$1))+1),\"\")","v":"{Measure:Quantity}"},{"$f":"IFERROR(MID($R105,FIND(CHAR(160),SUBSTITUTE($R105,\"{\",CHAR(160),FV$1)),FIND(CHAR(160),SUBSTITUTE($R105,\"}\",CHAR(160),FV$1))-FIND(CHAR(160),SUBSTITUTE($R105,\"{\",CHAR(160),FV$1))+1),\"\")","v":"{Motor HP}"},{"$f":"IFERROR(MID($U105,FIND(CHAR(160),SUBSTITUTE($U105,\"{\",CHAR(160),FW$1)),FIND(CHAR(160),SUBSTITUTE($U105,\"}\",CHAR(160),FW$1))-FIND(CHAR(160),SUBSTITUTE($U105,\"{\",CHAR(160),FW$1))+1),\"\")","v":"{Motor HP}"},{"$f":"IFERROR(MID($U105,FIND(CHAR(160),SUBSTITUTE($U105,\"{\",CHAR(160),FX$1)),FIND(CHAR(160),SUBSTITUTE($U105,\"}\",CHAR(160),FX$1))-FIND(CHAR(160),SUBSTITUTE($U105,\"{\",CHAR(160),FX$1))+1),\"\")","v":""},{"$f":"IFERROR(MID($U105,FIND(CHAR(160),SUBSTITUTE($U105,\"{\",CHAR(160),FY$1)),FIND(CHAR(160),SUBSTITUTE($U105,\"}\",CHAR(160),FY$1))-FIND(CHAR(160),SUBSTITUTE($U105,\"{\",CHAR(160),FY$1))+1),\"\")","v":""},{"$f":"IFERROR(MID($U105,FIND(CHAR(160),SUBSTITUTE($U105,\"{\",CHAR(160),FZ$1)),FIND(CHAR(160),SUBSTITUTE($U105,\"}\",CHAR(160),FZ$1))-FIND(CHAR(160),SUBSTITUTE($U105,\"{\",CHAR(160),FZ$1))+1),\"\")","v":""},{"$f":"IFERROR(MID($U105,FIND(CHAR(160),SUBSTITUTE($U105,\"{\",CHAR(160),GA$1)),FIND(CHAR(160),SUBSTITUTE($U105,\"}\",CHAR(160),GA$1))-FIND(CHAR(160),SUBSTITUTE($U105,\"{\",CHAR(160),GA$1))+1),\"\")","v":""},{"$f":"IFERROR(MID($U105,FIND(CHAR(160),SUBSTITUTE($U105,\"{\",CHAR(160),GB$1)),FIND(CHAR(160),SUBSTITUTE($U105,\"}\",CHAR(160),GB$1))-FIND(CHAR(160),SUBSTITUTE($U105,\"{\",CHAR(160),GB$1))+1),\"\")","v":""},{"$f":"IFERROR(MID($U105,FIND(CHAR(160),SUBSTITUTE($U105,\"{\",CHAR(160),GC$1)),FIND(CHAR(160),SUBSTITUTE($U105,\"}\",CHAR(160),GC$1))-FIND(CHAR(160),SUBSTITUTE($U105,\"{\",CHAR(160),GC$1))+1),\"\")","v":""},{"$f":"IFERROR(MID($U105,FIND(CHAR(160),SUBSTITUTE($U105,\"{\",CHAR(160),GD$1)),FIND(CHAR(160),SUBSTITUTE($U105,\"}\",CHAR(160),GD$1))-FIND(CHAR(160),SUBSTITUTE($U105,\"{\",CHAR(160),GD$1))+1),\"\")","v":""},{"$f":"IFERROR(MID($U105,FIND(CHAR(160),SUBSTITUTE($U105,\"{\",CHAR(160),GE$1)),FIND(CHAR(160),SUBSTITUTE($U105,\"}\",CHAR(160),GE$1))-FIND(CHAR(160),SUBSTITUTE($U105,\"{\",CHAR(160),GE$1))+1),\"\")","v":"{Measure:Quantity}"},{"$f":"IFERROR(MID($U105,FIND(CHAR(160),SUBSTITUTE($U105,\"{\",CHAR(160),GF$1)),FIND(CHAR(160),SUBSTITUTE($U105,\"}\",CHAR(160),GF$1))-FIND(CHAR(160),SUBSTITUTE($U105,\"{\",CHAR(160),GF$1))+1),\"\")","v":"{Factor:WinterCF}"},{"$f":"IFERROR(MID($V105,FIND(CHAR(160),SUBSTITUTE($V105,\"{\",CHAR(160),GG$1)),FIND(CHAR(160),SUBSTITUTE($V105,\"}\",CHAR(160),GG$1))-FIND(CHAR(160),SUBSTITUTE($V105,\"{\",CHAR(160),GG$1))+1),\"\")","v":"{Motor HP}"},{"$f":"IFERROR(MID($V105,FIND(CHAR(160),SUBSTITUTE($V105,\"{\",CHAR(160),GH$1)),FIND(CHAR(160),SUBSTITUTE($V105,\"}\",CHAR(160),GH$1))-FIND(CHAR(160),SUBSTITUTE($V105,\"{\",CHAR(160),GH$1))+1),\"\")","v":""},{"$f":"IFERROR(MID($V105,FIND(CHAR(160),SUBSTITUTE($V105,\"{\",CHAR(160),GI$1)),FIND(CHAR(160),SUBSTITUTE($V105,\"}\",CHAR(160),GI$1))-FIND(CHAR(160),SUBSTITUTE($V105,\"{\",CHAR(160),GI$1))+1),\"\")","v":""},{"$f":"IFERROR(MID($V105,FIND(CHAR(160),SUBSTITUTE($V105,\"{\",CHAR(160),GJ$1)),FIND(CHAR(160),SUBSTITUTE($V105,\"}\",CHAR(160),GJ$1))-FIND(CHAR(160),SUBSTITUTE($V105,\"{\",CHAR(160),GJ$1))+1),\"\")","v":""},{"$f":"IFERROR(MID($V105,FIND(CHAR(160),SUBSTITUTE($V105,\"{\",CHAR(160),GK$1)),FIND(CHAR(160),SUBSTITUTE($V105,\"}\",CHAR(160),GK$1))-FIND(CHAR(160),SUBSTITUTE($V105,\"{\",CHAR(160),GK$1))+1),\"\")","v":""},{"$f":"IFERROR(MID($V105,FIND(CHAR(160),SUBSTITUTE($V105,\"{\",CHAR(160),GL$1)),FIND(CHAR(160),SUBSTITUTE($V105,\"}\",CHAR(160),GL$1))-FIND(CHAR(160),SUBSTITUTE($V105,\"{\",CHAR(160),GL$1))+1),\"\")","v":""},{"$f":"IFERROR(MID($V105,FIND(CHAR(160),SUBSTITUTE($V105,\"{\",CHAR(160),GM$1)),FIND(CHAR(160),SUBSTITUTE($V105,\"}\",CHAR(160),GM$1))-FIND(CHAR(160),SUBSTITUTE($V105,\"{\",CHAR(160),GM$1))+1),\"\")","v":""},{"$f":"IFERROR(MID($V105,FIND(CHAR(160),SUBSTITUTE($V105,\"{\",CHAR(160),GN$1)),FIND(CHAR(160),SUBSTITUTE($V105,\"}\",CHAR(160),GN$1))-FIND(CHAR(160),SUBSTITUTE($V105,\"{\",CHAR(160),GN$1))+1),\"\")","v":""},{"$f":"IFERROR(MID($V105,FIND(CHAR(160),SUBSTITUTE($V105,\"{\",CHAR(160),GO$1)),FIND(CHAR(160),SUBSTITUTE($V105,\"}\",CHAR(160),GO$1))-FIND(CHAR(160),SUBSTITUTE($V105,\"{\",CHAR(160),GO$1))+1),\"\")","v":"{Measure:Quantity}"},{"$f":"IFERROR(MID($V105,FIND(CHAR(160),SUBSTITUTE($V105,\"{\",CHAR(160),GP$1)),FIND(CHAR(160),SUBSTITUTE($V105,\"}\",CHAR(160),GP$1))-FIND(CHAR(160),SUBSTITUTE($V105,\"{\",CHAR(160),GP$1))+1),\"\")","v":"{Factor:SummerCF}"},{"$f":"IFERROR(MID($W105,FIND(CHAR(160),SUBSTITUTE($W105,\"{\",CHAR(160),GQ$1)),FIND(CHAR(160),SUBSTITUTE($W105,\"}\",CHAR(160),GQ$1))-FIND(CHAR(160),SUBSTITUTE($W105,\"{\",CHAR(160),GQ$1))+1),\"\")","v":""},{"$f":"IFERROR(MID($W105,FIND(CHAR(160),SUBSTITUTE($W105,\"{\",CHAR(160),GR$1)),FIND(CHAR(160),SUBSTITUTE($W105,\"}\",CHAR(160),GR$1))-FIND(CHAR(160),SUBSTITUTE($W105,\"{\",CHAR(160),GR$1))+1),\"\")","v":""},{"$f":"IFERROR(MID($W105,FIND(CHAR(160),SUBSTITUTE($W105,\"{\",CHAR(160),GS$1)),FIND(CHAR(160),SUBSTITUTE($W105,\"}\",CHAR(160),GS$1))-FIND(CHAR(160),SUBSTITUTE($W105,\"{\",CHAR(160),GS$1))+1),\"\")","v":""},{"$f":"IFERROR(MID($W105,FIND(CHAR(160),SUBSTITUTE($W105,\"{\",CHAR(160),GT$1)),FIND(CHAR(160),SUBSTITUTE($W105,\"}\",CHAR(160),GT$1))-FIND(CHAR(160),SUBSTITUTE($W105,\"{\",CHAR(160),GT$1))+1),\"\")","v":""},{"$f":"IFERROR(MID($W105,FIND(CHAR(160),SUBSTITUTE($W105,\"{\",CHAR(160),GU$1)),FIND(CHAR(160),SUBSTITUTE($W105,\"}\",CHAR(160),GU$1))-FIND(CHAR(160),SUBSTITUTE($W105,\"{\",CHAR(160),GU$1))+1),\"\")","v":""},{"$f":"IFERROR(MID($W105,FIND(CHAR(160),SUBSTITUTE($W105,\"{\",CHAR(160),GV$1)),FIND(CHAR(160),SUBSTITUTE($W105,\"}\",CHAR(160),GV$1))-FIND(CHAR(160),SUBSTITUTE($W105,\"{\",CHAR(160),GV$1))+1),\"\")","v":""},{"$f":"IFERROR(MID($W105,FIND(CHAR(160),SUBSTITUTE($W105,\"{\",CHAR(160),GW$1)),FIND(CHAR(160),SUBSTITUTE($W105,\"}\",CHAR(160),GW$1))-FIND(CHAR(160),SUBSTITUTE($W105,\"{\",CHAR(160),GW$1))+1),\"\")","v":""},{"$f":"IFERROR(MID($W105,FIND(CHAR(160),SUBSTITUTE($W105,\"{\",CHAR(160),GX$1)),FIND(CHAR(160),SUBSTITUTE($W105,\"}\",CHAR(160),GX$1))-FIND(CHAR(160),SUBSTITUTE($W105,\"{\",CHAR(160),GX$1))+1),\"\")","v":""},{"$f":"IFERROR(MID($W105,FIND(CHAR(160),SUBSTITUTE($W105,\"{\",CHAR(160),GY$1)),FIND(CHAR(160),SUBSTITUTE($W105,\"}\",CHAR(160),GY$1))-FIND(CHAR(160),SUBSTITUTE($W105,\"{\",CHAR(160),GY$1))+1),\"\")","v":""},{"$f":"IFERROR(MID($W105,FIND(CHAR(160),SUBSTITUTE($W105,\"{\",CHAR(160),GZ$1)),FIND(CHAR(160),SUBSTITUTE($W105,\"}\",CHAR(160),GZ$1))-FIND(CHAR(160),SUBSTITUTE($W105,\"{\",CHAR(160),GZ$1))+1),\"\")","v":""},{"$f":"IFERROR(MID($X105,FIND(CHAR(160),SUBSTITUTE($X105,\"{\",CHAR(160),HA$1)),FIND(CHAR(160),SUBSTITUTE($X105,\"}\",CHAR(160),HA$1))-FIND(CHAR(160),SUBSTITUTE($X105,\"{\",CHAR(160),HA$1))+1),\"\")","v":""},{"$f":"IFERROR(MID($X105,FIND(CHAR(160),SUBSTITUTE($X105,\"{\",CHAR(160),HB$1)),FIND(CHAR(160),SUBSTITUTE($X105,\"}\",CHAR(160),HB$1))-FIND(CHAR(160),SUBSTITUTE($X105,\"{\",CHAR(160),HB$1))+1),\"\")","v":""},{"$f":"IFERROR(MID($X105,FIND(CHAR(160),SUBSTITUTE($X105,\"{\",CHAR(160),HC$1)),FIND(CHAR(160),SUBSTITUTE($X105,\"}\",CHAR(160),HC$1))-FIND(CHAR(160),SUBSTITUTE($X105,\"{\",CHAR(160),HC$1))+1),\"\")","v":""},{"$f":"IFERROR(MID($X105,FIND(CHAR(160),SUBSTITUTE($X105,\"{\",CHAR(160),HD$1)),FIND(CHAR(160),SUBSTITUTE($X105,\"}\",CHAR(160),HD$1))-FIND(CHAR(160),SUBSTITUTE($X105,\"{\",CHAR(160),HD$1))+1),\"\")","v":""},{"$f":"IFERROR(MID($X105,FIND(CHAR(160),SUBSTITUTE($X105,\"{\",CHAR(160),HE$1)),FIND(CHAR(160),SUBSTITUTE($X105,\"}\",CHAR(160),HE$1))-FIND(CHAR(160),SUBSTITUTE($X105,\"{\",CHAR(160),HE$1))+1),\"\")","v":""},{"$f":"IFERROR(MID($X105,FIND(CHAR(160),SUBSTITUTE($X105,\"{\",CHAR(160),HF$1)),FIND(CHAR(160),SUBSTITUTE($X105,\"}\",CHAR(160),HF$1))-FIND(CHAR(160),SUBSTITUTE($X105,\"{\",CHAR(160),HF$1))+1),\"\")","v":""},{"$f":"IFERROR(MID($X105,FIND(CHAR(160),SUBSTITUTE($X105,\"{\",CHAR(160),HG$1)),FIND(CHAR(160),SUBSTITUTE($X105,\"}\",CHAR(160),HG$1))-FIND(CHAR(160),SUBSTITUTE($X105,\"{\",CHAR(160),HG$1))+1),\"\")","v":""},{"$f":"IFERROR(MID($X105,FIND(CHAR(160),SUBSTITUTE($X105,\"{\",CHAR(160),HH$1)),FIND(CHAR(160),SUBSTITUTE($X105,\"}\",CHAR(160),HH$1))-FIND(CHAR(160),SUBSTITUTE($X105,\"{\",CHAR(160),HH$1))+1),\"\")","v":""},{"$f":"IFERROR(MID($X105,FIND(CHAR(160),SUBSTITUTE($X105,\"{\",CHAR(160),HI$1)),FIND(CHAR(160),SUBSTITUTE($X105,\"}\",CHAR(160),HI$1))-FIND(CHAR(160),SUBSTITUTE($X105,\"{\",CHAR(160),HI$1))+1),\"\")","v":""},{"$f":"IFERROR(MID($X105,FIND(CHAR(160),SUBSTITUTE($X105,\"{\",CHAR(160),HJ$1)),FIND(CHAR(160),SUBSTITUTE($X105,\"}\",CHAR(160),HJ$1))-FIND(CHAR(160),SUBSTITUTE($X105,\"{\",CHAR(160),HJ$1))+1),\"\")","v":""},{"$f":"IFERROR(MID($Y105,FIND(CHAR(160),SUBSTITUTE($Y105,\"{\",CHAR(160),HK$1)),FIND(CHAR(160),SUBSTITUTE($Y105,\"}\",CHAR(160),HK$1))-FIND(CHAR(160),SUBSTITUTE($Y105,\"{\",CHAR(160),HK$1))+1),\"\")","v":""},{"$f":"IFERROR(MID($Y105,FIND(CHAR(160),SUBSTITUTE($Y105,\"{\",CHAR(160),HL$1)),FIND(CHAR(160),SUBSTITUTE($Y105,\"}\",CHAR(160),HL$1))-FIND(CHAR(160),SUBSTITUTE($Y105,\"{\",CHAR(160),HL$1))+1),\"\")","v":""},{"$f":"IFERROR(MID($Y105,FIND(CHAR(160),SUBSTITUTE($Y105,\"{\",CHAR(160),HM$1)),FIND(CHAR(160),SUBSTITUTE($Y105,\"}\",CHAR(160),HM$1))-FIND(CHAR(160),SUBSTITUTE($Y105,\"{\",CHAR(160),HM$1))+1),\"\")","v":""},{"$f":"IFERROR(MID($Y105,FIND(CHAR(160),SUBSTITUTE($Y105,\"{\",CHAR(160),HN$1)),FIND(CHAR(160),SUBSTITUTE($Y105,\"}\",CHAR(160),HN$1))-FIND(CHAR(160),SUBSTITUTE($Y105,\"{\",CHAR(160),HN$1))+1),\"\")","v":""},{"$f":"IFERROR(MID($Y105,FIND(CHAR(160),SUBSTITUTE($Y105,\"{\",CHAR(160),HO$1)),FIND(CHAR(160),SUBSTITUTE($Y105,\"}\",CHAR(160),HO$1))-FIND(CHAR(160),SUBSTITUTE($Y105,\"{\",CHAR(160),HO$1))+1),\"\")","v":""},{"$f":"IFERROR(MID($Y105,FIND(CHAR(160),SUBSTITUTE($Y105,\"{\",CHAR(160),HP$1)),FIND(CHAR(160),SUBSTITUTE($Y105,\"}\",CHAR(160),HP$1))-FIND(CHAR(160),SUBSTITUTE($Y105,\"{\",CHAR(160),HP$1))+1),\"\")","v":""},{"$f":"IFERROR(MID($Y105,FIND(CHAR(160),SUBSTITUTE($Y105,\"{\",CHAR(160),HQ$1)),FIND(CHAR(160),SUBSTITUTE($Y105,\"}\",CHAR(160),HQ$1))-FIND(CHAR(160),SUBSTITUTE($Y105,\"{\",CHAR(160),HQ$1))+1),\"\")","v":""},{"$f":"IFERROR(MID($Y105,FIND(CHAR(160),SUBSTITUTE($Y105,\"{\",CHAR(160),HR$1)),FIND(CHAR(160),SUBSTITUTE($Y105,\"}\",CHAR(160),HR$1))-FIND(CHAR(160),SUBSTITUTE($Y105,\"{\",CHAR(160),HR$1))+1),\"\")","v":""},{"$f":"IFERROR(MID($Y105,FIND(CHAR(160),SUBSTITUTE($Y105,\"{\",CHAR(160),HS$1)),FIND(CHAR(160),SUBSTITUTE($Y105,\"}\",CHAR(160),HS$1))-FIND(CHAR(160),SUBSTITUTE($Y105,\"{\",CHAR(160),HS$1))+1),\"\")","v":""},{"$f":"IFERROR(MID($Y105,FIND(CHAR(160),SUBSTITUTE($Y105,\"{\",CHAR(160),HT$1)),FIND(CHAR(160),SUBSTITUTE($Y105,\"}\",CHAR(160),HT$1))-FIND(CHAR(160),SUBSTITUTE($Y105,\"{\",CHAR(160),HT$1))+1),\"\")","v":""},{"$f":"IFERROR(MID($Z105,FIND(CHAR(160),SUBSTITUTE($Z105,\"{\",CHAR(160),HU$1)),FIND(CHAR(160),SUBSTITUTE($Z105,\"}\",CHAR(160),HU$1))-FIND(CHAR(160),SUBSTITUTE($Z105,\"{\",CHAR(160),HU$1))+1),\"\")","v":""},{"$f":"IFERROR(MID($Z105,FIND(CHAR(160),SUBSTITUTE($Z105,\"{\",CHAR(160),HV$1)),FIND(CHAR(160),SUBSTITUTE($Z105,\"}\",CHAR(160),HV$1))-FIND(CHAR(160),SUBSTITUTE($Z105,\"{\",CHAR(160),HV$1))+1),\"\")","v":""},{"$f":"IFERROR(MID($Z105,FIND(CHAR(160),SUBSTITUTE($Z105,\"{\",CHAR(160),HW$1)),FIND(CHAR(160),SUBSTITUTE($Z105,\"}\",CHAR(160),HW$1))-FIND(CHAR(160),SUBSTITUTE($Z105,\"{\",CHAR(160),HW$1))+1),\"\")","v":""},{"$f":"IFERROR(MID($Z105,FIND(CHAR(160),SUBSTITUTE($Z105,\"{\",CHAR(160),HX$1)),FIND(CHAR(160),SUBSTITUTE($Z105,\"}\",CHAR(160),HX$1))-FIND(CHAR(160),SUBSTITUTE($Z105,\"{\",CHAR(160),HX$1))+1),\"\")","v":""},{"$f":"IFERROR(MID($Z105,FIND(CHAR(160),SUBSTITUTE($Z105,\"{\",CHAR(160),HY$1)),FIND(CHAR(160),SUBSTITUTE($Z105,\"}\",CHAR(160),HY$1))-FIND(CHAR(160),SUBSTITUTE($Z105,\"{\",CHAR(160),HY$1))+1),\"\")","v":""},{"$f":"IFERROR(MID($Z105,FIND(CHAR(160),SUBSTITUTE($Z105,\"{\",CHAR(160),HZ$1)),FIND(CHAR(160),SUBSTITUTE($Z105,\"}\",CHAR(160),HZ$1))-FIND(CHAR(160),SUBSTITUTE($Z105,\"{\",CHAR(160),HZ$1))+1),\"\")","v":""},{"$f":"IFERROR(MID($Z105,FIND(CHAR(160),SUBSTITUTE($Z105,\"{\",CHAR(160),IA$1)),FIND(CHAR(160),SUBSTITUTE($Z105,\"}\",CHAR(160),IA$1))-FIND(CHAR(160),SUBSTITUTE($Z105,\"{\",CHAR(160),IA$1))+1),\"\")","v":""},{"$f":"IFERROR(MID($Z105,FIND(CHAR(160),SUBSTITUTE($Z105,\"{\",CHAR(160),IB$1)),FIND(CHAR(160),SUBSTITUTE($Z105,\"}\",CHAR(160),IB$1))-FIND(CHAR(160),SUBSTITUTE($Z105,\"{\",CHAR(160),IB$1))+1),\"\")","v":""},{"$f":"IFERROR(MID($Z105,FIND(CHAR(160),SUBSTITUTE($Z105,\"{\",CHAR(160),IC$1)),FIND(CHAR(160),SUBSTITUTE($Z105,\"}\",CHAR(160),IC$1))-FIND(CHAR(160),SUBSTITUTE($Z105,\"{\",CHAR(160),IC$1))+1),\"\")","v":""},{"$f":"IFERROR(MID($Z105,FIND(CHAR(160),SUBSTITUTE($Z105,\"{\",CHAR(160),ID$1)),FIND(CHAR(160),SUBSTITUTE($Z105,\"}\",CHAR(160),ID$1))-FIND(CHAR(160),SUBSTITUTE($Z105,\"{\",CHAR(160),ID$1))+1),\"\")","v":""},{"$f":"IFERROR(MID($AA105,FIND(CHAR(160),SUBSTITUTE($AA105,\"{\",CHAR(160),IE$1)),FIND(CHAR(160),SUBSTITUTE($AA105,\"}\",CHAR(160),IE$1))-FIND(CHAR(160),SUBSTITUTE($AA105,\"{\",CHAR(160),IE$1))+1),\"\")","v":""},{"$f":"IFERROR(MID($AA105,FIND(CHAR(160),SUBSTITUTE($AA105,\"{\",CHAR(160),IF$1)),FIND(CHAR(160),SUBSTITUTE($AA105,\"}\",CHAR(160),IF$1))-FIND(CHAR(160),SUBSTITUTE($AA105,\"{\",CHAR(160),IF$1))+1),\"\")","v":""},{"$f":"IFERROR(MID($AA105,FIND(CHAR(160),SUBSTITUTE($AA105,\"{\",CHAR(160),IG$1)),FIND(CHAR(160),SUBSTITUTE($AA105,\"}\",CHAR(160),IG$1))-FIND(CHAR(160),SUBSTITUTE($AA105,\"{\",CHAR(160),IG$1))+1),\"\")","v":""},{"$f":"IFERROR(MID($AA105,FIND(CHAR(160),SUBSTITUTE($AA105,\"{\",CHAR(160),IH$1)),FIND(CHAR(160),SUBSTITUTE($AA105,\"}\",CHAR(160),IH$1))-FIND(CHAR(160),SUBSTITUTE($AA105,\"{\",CHAR(160),IH$1))+1),\"\")","v":""},{"$f":"IFERROR(MID($AA105,FIND(CHAR(160),SUBSTITUTE($AA105,\"{\",CHAR(160),II$1)),FIND(CHAR(160),SUBSTITUTE($AA105,\"}\",CHAR(160),II$1))-FIND(CHAR(160),SUBSTITUTE($AA105,\"{\",CHAR(160),II$1))+1),\"\")","v":""},{"$f":"IFERROR(MID($AA105,FIND(CHAR(160),SUBSTITUTE($AA105,\"{\",CHAR(160),IJ$1)),FIND(CHAR(160),SUBSTITUTE($AA105,\"}\",CHAR(160),IJ$1))-FIND(CHAR(160),SUBSTITUTE($AA105,\"{\",CHAR(160),IJ$1))+1),\"\")","v":""},{"$f":"IFERROR(MID($AA105,FIND(CHAR(160),SUBSTITUTE($AA105,\"{\",CHAR(160),IK$1)),FIND(CHAR(160),SUBSTITUTE($AA105,\"}\",CHAR(160),IK$1))-FIND(CHAR(160),SUBSTITUTE($AA105,\"{\",CHAR(160),IK$1))+1),\"\")","v":""},{"$f":"IFERROR(MID($AA105,FIND(CHAR(160),SUBSTITUTE($AA105,\"{\",CHAR(160),IL$1)),FIND(CHAR(160),SUBSTITUTE($AA105,\"}\",CHAR(160),IL$1))-FIND(CHAR(160),SUBSTITUTE($AA105,\"{\",CHAR(160),IL$1))+1),\"\")","v":""},{"$f":"IFERROR(MID($AA105,FIND(CHAR(160),SUBSTITUTE($AA105,\"{\",CHAR(160),IM$1)),FIND(CHAR(160),SUBSTITUTE($AA105,\"}\",CHAR(160),IM$1))-FIND(CHAR(160),SUBSTITUTE($AA105,\"{\",CHAR(160),IM$1))+1),\"\")","v":""},{"$f":"IFERROR(MID($AA105,FIND(CHAR(160),SUBSTITUTE($AA105,\"{\",CHAR(160),IN$1)),FIND(CHAR(160),SUBSTITUTE($AA105,\"}\",CHAR(160),IN$1))-FIND(CHAR(160),SUBSTITUTE($AA105,\"{\",CHAR(160),IN$1))+1),\"\")","v":""},{"$f":"IFERROR(MID($AB105,FIND(CHAR(160),SUBSTITUTE($AB105,\"{\",CHAR(160),IO$1)),FIND(CHAR(160),SUBSTITUTE($AB105,\"}\",CHAR(160),IO$1))-FIND(CHAR(160),SUBSTITUTE($AB105,\"{\",CHAR(160),IO$1))+1),\"\")","v":""},{"$f":"IFERROR(MID($AB105,FIND(CHAR(160),SUBSTITUTE($AB105,\"{\",CHAR(160),IP$1)),FIND(CHAR(160),SUBSTITUTE($AB105,\"}\",CHAR(160),IP$1))-FIND(CHAR(160),SUBSTITUTE($AB105,\"{\",CHAR(160),IP$1))+1),\"\")","v":""},{"$f":"IFERROR(MID($AB105,FIND(CHAR(160),SUBSTITUTE($AB105,\"{\",CHAR(160),IQ$1)),FIND(CHAR(160),SUBSTITUTE($AB105,\"}\",CHAR(160),IQ$1))-FIND(CHAR(160),SUBSTITUTE($AB105,\"{\",CHAR(160),IQ$1))+1),\"\")","v":""},{"$f":"IFERROR(MID($AB105,FIND(CHAR(160),SUBSTITUTE($AB105,\"{\",CHAR(160),IR$1)),FIND(CHAR(160),SUBSTITUTE($AB105,\"}\",CHAR(160),IR$1))-FIND(CHAR(160),SUBSTITUTE($AB105,\"{\",CHAR(160),IR$1))+1),\"\")","v":""},{"$f":"IFERROR(MID($AB105,FIND(CHAR(160),SUBSTITUTE($AB105,\"{\",CHAR(160),IS$1)),FIND(CHAR(160),SUBSTITUTE($AB105,\"}\",CHAR(160),IS$1))-FIND(CHAR(160),SUBSTITUTE($AB105,\"{\",CHAR(160),IS$1))+1),\"\")","v":""},{"$f":"IFERROR(MID($AB105,FIND(CHAR(160),SUBSTITUTE($AB105,\"{\",CHAR(160),IT$1)),FIND(CHAR(160),SUBSTITUTE($AB105,\"}\",CHAR(160),IT$1))-FIND(CHAR(160),SUBSTITUTE($AB105,\"{\",CHAR(160),IT$1))+1),\"\")","v":""},{"$f":"IFERROR(MID($AB105,FIND(CHAR(160),SUBSTITUTE($AB105,\"{\",CHAR(160),IU$1)),FIND(CHAR(160),SUBSTITUTE($AB105,\"}\",CHAR(160),IU$1))-FIND(CHAR(160),SUBSTITUTE($AB105,\"{\",CHAR(160),IU$1))+1),\"\")","v":""},{"$f":"IFERROR(MID($AB105,FIND(CHAR(160),SUBSTITUTE($AB105,\"{\",CHAR(160),IV$1)),FIND(CHAR(160),SUBSTITUTE($AB105,\"}\",CHAR(160),IV$1))-FIND(CHAR(160),SUBSTITUTE($AB105,\"{\",CHAR(160),IV$1))+1),\"\")","v":""},{"$f":"IFERROR(MID($AB105,FIND(CHAR(160),SUBSTITUTE($AB105,\"{\",CHAR(160),IW$1)),FIND(CHAR(160),SUBSTITUTE($AB105,\"}\",CHAR(160),IW$1))-FIND(CHAR(160),SUBSTITUTE($AB105,\"{\",CHAR(160),IW$1))+1),\"\")","v":""},{"$f":"IFERROR(MID($AB105,FIND(CHAR(160),SUBSTITUTE($AB105,\"{\",CHAR(160),IX$1)),FIND(CHAR(160),SUBSTITUTE($AB105,\"}\",CHAR(160),IX$1))-FIND(CHAR(160),SUBSTITUTE($AB105,\"{\",CHAR(160),IX$1))+1),\"\")","v":""},null,{"$f":"10-COUNTIF(DU105:ED105,\"\")","v":2}]
["C&I HVAC - Propane and Compressed NG","VFD: Heating Hot Water Circulation Pump","HHWP","2021-07-01","2022-06-30","Calculated","{Measure:Quantity}*if({Motor HP}=5,2425,if({Motor HP}=7.5,2648,if({Motor HP}=10,2871,if({Motor HP}=15,3317,if({Motor HP}=20,3763,if({Motor HP}=25,4209,if({Motor HP}=30,4655,0)))))))",0,"Calculated","{Measure:Quantity}*if({Motor HP}=5,400,if({Motor HP}=7.5,650,if({Motor HP}=10,1400,if({Motor HP}=15,1650,if({Motor HP}=20,1850,if({Motor HP}=25,2000,if({Motor HP}=30,2300,0)))))))",0,"2021-05-25","2022-06-30","Calculated","{Measure:Quantity}*{Motor HP}*1548",null,null,"{Measure:Quantity}*{Motor HP}*.096",null,null,"{Measure:Quantity}*{Factor:WinterCF}*{Motor HP}*.096","{Measure:Quantity}*{Factor:SummerCF}*{Motor HP}*.096",null,null,null,null,null,null,"2021-05-25","2022-06-30",13,0.73699999999999999,0,0.53600000000000003,0.46300000000000002,0,1E-3,1,1.1220000000000001,1,0.52,1.6E-2,null,{"$f":"DU106","v":"{Measure:Quantity}"},1,{"$f":"DV106","v":"{Motor HP}"},5,{"$f":"DW106","v":""},null,{"$f":"DX106","v":""},null,{"$f":"DY106","v":""},null,{"$f":"DZ106","v":""},null,{"$f":"EA106","v":""},null,{"$f":"EB106","v":""},null,{"$f":"EC106","v":""},null,{"$f":"ED106","v":""},null,{"$f":"AS106*AU106*1548","v":7740},0,0,{"$f":"AS106*AU106*0.096","v":0.48},0,0,{"$f":"AS106*AF106*AU106*0.096","v":0.35376000000000002},{"$f":"AS106*AG106*AU106*0.096","v":0},0,0,0,0,0,0,null,"Res","Default DR",{"$f":"Benefits(BL106,BR106,BS106,BT106,BU106,BV106,BW106,BX106,BY106,BZ106,AE106,AH106,AI106,AJ106,AK106,AL106,AM106,AN106,AO106,AP106,CA106,CB106)","v":10983.087896241661},1184.7547047844068,0,0,0,0,0,0,0,{"$f":"SUMPRODUCT(CC106:CK106,--(CC106:CK106>0))","v":12167.842601026068},{"$f":"-SUMPRODUCT(CC106:CK106,--(CC106:CK106<0))","v":0},null,{"$f":"AS106*IF(AU106=5,2425,IF(AU106=7.5,2648,IF(AU106=10,2871,IF(AU106=15,3317,IF(AU106=20,3763,IF(AU106=25,4209,IF(AU106=30,4655,0)))))))","v":2425},null,null,{"$f":"CM106+CO106","v":2425},{"$f":"IF(NetOrGross=\"Net\",(1-AO106+AP106),1)","v":1},{"$f":"(SUMPRODUCT(CC106:CJ106,--(CC106:CJ106>0))+CN106)*CS106/((-SUMPRODUCT(CC106:CJ106,--(CC106:CJ106<0))+MAX(CO106,CV106)+CP106+CQ106)*CS106+IF(FRIncentives=\"Yes\",CV106*(1-CS106),0))","v":5.0176670519695126},1,{"$f":"AS106*IF(AU106=5,400,IF(AU106=7.5,650,IF(AU106=10,1400,IF(AU106=15,1650,IF(AU106=20,1850,IF(AU106=25,2000,IF(AU106=30,2300,0)))))))","v":400},null,"RGGI","y",null,{"$f":"IF(F106=\"Manual Entry\",\"Manual\",IF(G106=\"\",0,\"X=\"&SUBSTITUTE(SUBSTITUTE(SUBSTITUTE(SUBSTITUTE(SUBSTITUTE(SUBSTITUTE(SUBSTITUTE(SUBSTITUTE(SUBSTITUTE(SUBSTITUTE(SUBSTITUTE(SUBSTITUTE(G106,$ED106,$ED$2&ROW($ED106)),$EC106,$EC$2&ROW($EC106)),$EB106,$EB$2&ROW($EB106)),$EA106,$EA$2&ROW($EA106)),$DZ106,$DZ$2&ROW($DZ106)),$DY106,$DY$2&ROW($DY106)),$DX106,$DX$2&ROW($DX106)),$DW106,$DW$2&ROW($DW106)),$DV106,$DV$2&ROW($DV106)),$DU106,$DU$2&ROW($DU106)),$DT106,$DT$2&ROW($DT106)),$DS106,$DS$2&ROW($DS106))))","v":"X=AS106*if(AU106=5,2425,if(AU106=7.5,2648,if(AU106=10,2871,if(AU106=15,3317,if(AU106=20,3763,if(AU106=25,4209,if(AU106=30,4655,0)))))))"},{"$f":"IF(I106=\"Manual Entry\",\"Manual\",IF(J106=\"\",0,\"X=\"&SUBSTITUTE(SUBSTITUTE(SUBSTITUTE(SUBSTITUTE(SUBSTITUTE(SUBSTITUTE(SUBSTITUTE(SUBSTITUTE(SUBSTITUTE(SUBSTITUTE(SUBSTITUTE(SUBSTITUTE(J106,$ED106,$ED$2&ROW($ED106)),$EC106,$EC$2&ROW($EC106)),$EB106,$EB$2&ROW($EB106)),$EA106,$EA$2&ROW($EA106)),$DZ106,$DZ$2&ROW($DZ106)),$DY106,$DY$2&ROW($DY106)),$DX106,$DX$2&ROW($DX106)),$DW106,$DW$2&ROW($DW106)),$DV106,$DV$2&ROW($DV106)),$DU106,$DU$2&ROW($DU106)),$DT106,$DT$2&ROW($DT106)),$DS106,$DS$2&ROW($DS106))))","v":"X=AS106*if(AU106=5,400,if(AU106=7.5,650,if(AU106=10,1400,if(AU106=15,1650,if(AU106=20,1850,if(AU106=25,2000,if(AU106=30,2300,0)))))))"},{"$f":"IF(O106=\"\",0,\"X=\"&SUBSTITUTE(SUBSTITUTE(SUBSTITUTE(SUBSTITUTE(SUBSTITUTE(SUBSTITUTE(SUBSTITUTE(SUBSTITUTE(SUBSTITUTE(SUBSTITUTE(SUBSTITUTE(SUBSTITUTE(O106,$ED106,$ED$2&ROW($ED106)),$EC106,$EC$2&ROW($EC106)),$EB106,$EB$2&ROW($EB106)),$EA106,$EA$2&ROW($EA106)),$DZ106,$DZ$2&ROW($DZ106)),$DY106,$DY$2&ROW($DY106)),$DX106,$DX$2&ROW($DX106)),$DW106,$DW$2&ROW($DW106)),$DV106,$DV$2&ROW($DV106)),$DU106,$DU$2&ROW($DU106)),$DT106,$DT$2&ROW($DT106)),$DS106,$DS$2&ROW($DS106)))","v":"X=AS106*AU106*1548"},{"$f":"IF(P106=\"\",0,\"X=\"&SUBSTITUTE(SUBSTITUTE(SUBSTITUTE(SUBSTITUTE(SUBSTITUTE(SUBSTITUTE(SUBSTITUTE(SUBSTITUTE(SUBSTITUTE(SUBSTITUTE(SUBSTITUTE(SUBSTITUTE(P106,$ED106,$ED$2&ROW($ED106)),$EC106,$EC$2&ROW($EC106)),$EB106,$EB$2&ROW($EB106)),$EA106,$EA$2&ROW($EA106)),$DZ106,$DZ$2&ROW($DZ106)),$DY106,$DY$2&ROW($DY106)),$DX106,$DX$2&ROW($DX106)),$DW106,$DW$2&ROW($DW106)),$DV106,$DV$2&ROW($DV106)),$DU106,$DU$2&ROW($DU106)),$DT106,$DT$2&ROW($DT106)),$DS106,$DS$2&ROW($DS106)))","v":0},{"$f":"IF(Q106=\"\",0,\"X=\"&SUBSTITUTE(SUBSTITUTE(SUBSTITUTE(SUBSTITUTE(SUBSTITUTE(SUBSTITUTE(SUBSTITUTE(SUBSTITUTE(SUBSTITUTE(SUBSTITUTE(SUBSTITUTE(SUBSTITUTE(Q106,$ED106,$ED$2&ROW($ED106)),$EC106,$EC$2&ROW($EC106)),$EB106,$EB$2&ROW($EB106)),$EA106,$EA$2&ROW($EA106)),$DZ106,$DZ$2&ROW($DZ106)),$DY106,$DY$2&ROW($DY106)),$DX106,$DX$2&ROW($DX106)),$DW106,$DW$2&ROW($DW106)),$DV106,$DV$2&ROW($DV106)),$DU106,$DU$2&ROW($DU106)),$DT106,$DT$2&ROW($DT106)),$DS106,$DS$2&ROW($DS106)))","v":0},{"$f":"IF(R106=\"\",0,\"X=\"&SUBSTITUTE(SUBSTITUTE(SUBSTITUTE(SUBSTITUTE(SUBSTITUTE(SUBSTITUTE(SUBSTITUTE(SUBSTITUTE(SUBSTITUTE(SUBSTITUTE(SUBSTITUTE(SUBSTITUTE(R106,$ED106,$ED$2&ROW($ED106)),$EC106,$EC$2&ROW($EC106)),$EB106,$EB$2&ROW($EB106)),$EA106,$EA$2&ROW($EA106)),$DZ106,$DZ$2&ROW($DZ106)),$DY106,$DY$2&ROW($DY106)),$DX106,$DX$2&ROW($DX106)),$DW106,$DW$2&ROW($DW106)),$DV106,$DV$2&ROW($DV106)),$DU106,$DU$2&ROW($DU106)),$DT106,$DT$2&ROW($DT106)),$DS106,$DS$2&ROW($DS106)))","v":"X=AS106*AU106*.096"},{"$f":"IF(S106=\"\",0,\"X=\"&SUBSTITUTE(SUBSTITUTE(SUBSTITUTE(SUBSTITUTE(SUBSTITUTE(SUBSTITUTE(SUBSTITUTE(SUBSTITUTE(SUBSTITUTE(SUBSTITUTE(SUBSTITUTE(SUBSTITUTE(S106,$ED106,$ED$2&ROW($ED106)),$EC106,$EC$2&ROW($EC106)),$EB106,$EB$2&ROW($EB106)),$EA106,$EA$2&ROW($EA106)),$DZ106,$DZ$2&ROW($DZ106)),$DY106,$DY$2&ROW($DY106)),$DX106,$DX$2&ROW($DX106)),$DW106,$DW$2&ROW($DW106)),$DV106,$DV$2&ROW($DV106)),$DU106,$DU$2&ROW($DU106)),$DT106,$DT$2&ROW($DT106)),$DS106,$DS$2&ROW($DS106)))","v":0},{"$f":"IF(T106=\"\",0,\"X=\"&SUBSTITUTE(SUBSTITUTE(SUBSTITUTE(SUBSTITUTE(SUBSTITUTE(SUBSTITUTE(SUBSTITUTE(SUBSTITUTE(SUBSTITUTE(SUBSTITUTE(SUBSTITUTE(SUBSTITUTE(T106,$ED106,$ED$2&ROW($ED106)),$EC106,$EC$2&ROW($EC106)),$EB106,$EB$2&ROW($EB106)),$EA106,$EA$2&ROW($EA106)),$DZ106,$DZ$2&ROW($DZ106)),$DY106,$DY$2&ROW($DY106)),$DX106,$DX$2&ROW($DX106)),$DW106,$DW$2&ROW($DW106)),$DV106,$DV$2&ROW($DV106)),$DU106,$DU$2&ROW($DU106)),$DT106,$DT$2&ROW($DT106)),$DS106,$DS$2&ROW($DS106)))","v":0},{"$f":"IF(U106=\"\",0,\"X=\"&SUBSTITUTE(SUBSTITUTE(SUBSTITUTE(SUBSTITUTE(SUBSTITUTE(SUBSTITUTE(SUBSTITUTE(SUBSTITUTE(SUBSTITUTE(SUBSTITUTE(SUBSTITUTE(SUBSTITUTE(U106,$ED106,$ED$2&ROW($ED106)),$EC106,$EC$2&ROW($EC106)),$EB106,$EB$2&ROW($EB106)),$EA106,$EA$2&ROW($EA106)),$DZ106,$DZ$2&ROW($DZ106)),$DY106,$DY$2&ROW($DY106)),$DX106,$DX$2&ROW($DX106)),$DW106,$DW$2&ROW($DW106)),$DV106,$DV$2&ROW($DV106)),$DU106,$DU$2&ROW($DU106)),$DT106,$DT$2&ROW($DT106)),$DS106,$DS$2&ROW($DS106)))","v":"X=AS106*AF106*AU106*.096"},{"$f":"IF(V106=\"\",0,\"X=\"&SUBSTITUTE(SUBSTITUTE(SUBSTITUTE(SUBSTITUTE(SUBSTITUTE(SUBSTITUTE(SUBSTITUTE(SUBSTITUTE(SUBSTITUTE(SUBSTITUTE(SUBSTITUTE(SUBSTITUTE(V106,$ED106,$ED$2&ROW($ED106)),$EC106,$EC$2&ROW($EC106)),$EB106,$EB$2&ROW($EB106)),$EA106,$EA$2&ROW($EA106)),$DZ106,$DZ$2&ROW($DZ106)),$DY106,$DY$2&ROW($DY106)),$DX106,$DX$2&ROW($DX106)),$DW106,$DW$2&ROW($DW106)),$DV106,$DV$2&ROW($DV106)),$DU106,$DU$2&ROW($DU106)),$DT106,$DT$2&ROW($DT106)),$DS106,$DS$2&ROW($DS106)))","v":"X=AS106*AG106*AU106*.096"},{"$f":"IF(W106=\"\",0,\"X=\"&SUBSTITUTE(SUBSTITUTE(SUBSTITUTE(SUBSTITUTE(SUBSTITUTE(SUBSTITUTE(SUBSTITUTE(SUBSTITUTE(SUBSTITUTE(SUBSTITUTE(SUBSTITUTE(SUBSTITUTE(W106,$ED106,$ED$2&ROW($ED106)),$EC106,$EC$2&ROW($EC106)),$EB106,$EB$2&ROW($EB106)),$EA106,$EA$2&ROW($EA106)),$DZ106,$DZ$2&ROW($DZ106)),$DY106,$DY$2&ROW($DY106)),$DX106,$DX$2&ROW($DX106)),$DW106,$DW$2&ROW($DW106)),$DV106,$DV$2&ROW($DV106)),$DU106,$DU$2&ROW($DU106)),$DT106,$DT$2&ROW($DT106)),$DS106,$DS$2&ROW($DS106)))","v":0},{"$f":"IF(X106=\"\",0,\"X=\"&SUBSTITUTE(SUBSTITUTE(SUBSTITUTE(SUBSTITUTE(SUBSTITUTE(SUBSTITUTE(SUBSTITUTE(SUBSTITUTE(SUBSTITUTE(SUBSTITUTE(SUBSTITUTE(SUBSTITUTE(X106,$ED106,$ED$2&ROW($ED106)),$EC106,$EC$2&ROW($EC106)),$EB106,$EB$2&ROW($EB106)),$EA106,$EA$2&ROW($EA106)),$DZ106,$DZ$2&ROW($DZ106)),$DY106,$DY$2&ROW($DY106)),$DX106,$DX$2&ROW($DX106)),$DW106,$DW$2&ROW($DW106)),$DV106,$DV$2&ROW($DV106)),$DU106,$DU$2&ROW($DU106)),$DT106,$DT$2&ROW($DT106)),$DS106,$DS$2&ROW($DS106)))","v":0},{"$f":"IF(Y106=\"\",0,\"X=\"&SUBSTITUTE(SUBSTITUTE(SUBSTITUTE(SUBSTITUTE(SUBSTITUTE(SUBSTITUTE(SUBSTITUTE(SUBSTITUTE(SUBSTITUTE(SUBSTITUTE(SUBSTITUTE(SUBSTITUTE(Y106,$ED106,$ED$2&ROW($ED106)),$EC106,$EC$2&ROW($EC106)),$EB106,$EB$2&ROW($EB106)),$EA106,$EA$2&ROW($EA106)),$DZ106,$DZ$2&ROW($DZ106)),$DY106,$DY$2&ROW($DY106)),$DX106,$DX$2&ROW($DX106)),$DW106,$DW$2&ROW($DW106)),$DV106,$DV$2&ROW($DV106)),$DU106,$DU$2&ROW($DU106)),$DT106,$DT$2&ROW($DT106)),$DS106,$DS$2&ROW($DS106)))","v":0},{"$f":"IF(Z106=\"\",0,\"X=\"&SUBSTITUTE(SUBSTITUTE(SUBSTITUTE(SUBSTITUTE(SUBSTITUTE(SUBSTITUTE(SUBSTITUTE(SUBSTITUTE(SUBSTITUTE(SUBSTITUTE(SUBSTITUTE(SUBSTITUTE(Z106,$ED106,$ED$2&ROW($ED106)),$EC106,$EC$2&ROW($EC106)),$EB106,$EB$2&ROW($EB106)),$EA106,$EA$2&ROW($EA106)),$DZ106,$DZ$2&ROW($DZ106)),$DY106,$DY$2&ROW($DY106)),$DX106,$DX$2&ROW($DX106)),$DW106,$DW$2&ROW($DW106)),$DV106,$DV$2&ROW($DV106)),$DU106,$DU$2&ROW($DU106)),$DT106,$DT$2&ROW($DT106)),$DS106,$DS$2&ROW($DS106)))","v":0},{"$f":"IF(AA106=\"\",0,\"X=\"&SUBSTITUTE(SUBSTITUTE(SUBSTITUTE(SUBSTITUTE(SUBSTITUTE(SUBSTITUTE(SUBSTITUTE(SUBSTITUTE(SUBSTITUTE(SUBSTITUTE(SUBSTITUTE(SUBSTITUTE(AA106,$ED106,$ED$2&ROW($ED106)),$EC106,$EC$2&ROW($EC106)),$EB106,$EB$2&ROW($EB106)),$EA106,$EA$2&ROW($EA106)),$DZ106,$DZ$2&ROW($DZ106)),$DY106,$DY$2&ROW($DY106)),$DX106,$DX$2&ROW($DX106)),$DW106,$DW$2&ROW($DW106)),$DV106,$DV$2&ROW($DV106)),$DU106,$DU$2&ROW($DU106)),$DT106,$DT$2&ROW($DT106)),$DS106,$DS$2&ROW($DS106)))","v":0},{"$f":"IF(AB106=\"\",0,\"X=\"&SUBSTITUTE(SUBSTITUTE(SUBSTITUTE(SUBSTITUTE(SUBSTITUTE(SUBSTITUTE(SUBSTITUTE(SUBSTITUTE(SUBSTITUTE(SUBSTITUTE(SUBSTITUTE(SUBSTITUTE(AB106,$ED106,$ED$2&ROW($ED106)),$EC106,$EC$2&ROW($EC106)),$EB106,$EB$2&ROW($EB106)),$EA106,$EA$2&ROW($EA106)),$DZ106,$DZ$2&ROW($DZ106)),$DY106,$DY$2&ROW($DY106)),$DX106,$DX$2&ROW($DX106)),$DW106,$DW$2&ROW($DW106)),$DV106,$DV$2&ROW($DV106)),$DU106,$DU$2&ROW($DU106)),$DT106,$DT$2&ROW($DT106)),$DS106,$DS$2&ROW($DS106)))","v":0},null,null,"{Factor:WinterCF}","{Factor:SummerCF}",{"$f":"IFERROR(INDEX($EG106:$IV106,MATCH(0,COUNTIF($DR106:DT106,$EG106:$IV106),0)),\"\")","v":"{Measure:Quantity}"},{"$f":"IFERROR(INDEX($EG106:$IV106,MATCH(0,COUNTIF($DR106:DU106,$EG106:$IV106),0)),\"\")","v":"{Motor HP}"},{"$f":"IFERROR(INDEX($EG106:$IV106,MATCH(0,COUNTIF($DR106:DV106,$EG106:$IV106),0)),\"\")","v":""},{"$f":"IFERROR(INDEX($EG106:$IV106,MATCH(0,COUNTIF($DR106:DW106,$EG106:$IV106),0)),\"\")","v":""},{"$f":"IFERROR(INDEX($EG106:$IV106,MATCH(0,COUNTIF($DR106:DX106,$EG106:$IV106),0)),\"\")","v":""},{"$f":"IFERROR(INDEX($EG106:$IV106,MATCH(0,COUNTIF($DR106:DY106,$EG106:$IV106),0)),\"\")","v":""},{"$f":"IFERROR(INDEX($EG106:$IV106,MATCH(0,COUNTIF($DR106:DZ106,$EG106:$IV106),0)),\"\")","v":""},{"$f":"IFERROR(INDEX($EG106:$IV106,MATCH(0,COUNTIF($DR106:EA106,$EG106:$IV106),0)),\"\")","v":""},{"$f":"IFERROR(INDEX($EG106:$IV106,MATCH(0,COUNTIF($DR106:EB106,$EG106:$IV106),0)),\"\")","v":""},{"$f":"IFERROR(INDEX($EG106:$IV106,MATCH(0,COUNTIF($DR106:EC106,$EG106:$IV106),0)),\"\")","v":""},null,null,{"$f":"IFERROR(MID($G106,FIND(CHAR(160),SUBSTITUTE($G106,\"{\",CHAR(160),EG$1)),FIND(CHAR(160),SUBSTITUTE($G106,\"}\",CHAR(160),EG$1))-FIND(CHAR(160),SUBSTITUTE($G106,\"{\",CHAR(160),EG$1))+1),\"\")","v":"{Measure:Quantity}"},{"$f":"IFERROR(MID($G106,FIND(CHAR(160),SUBSTITUTE($G106,\"{\",CHAR(160),EH$1)),FIND(CHAR(160),SUBSTITUTE($G106,\"}\",CHAR(160),EH$1))-FIND(CHAR(160),SUBSTITUTE($G106,\"{\",CHAR(160),EH$1))+1),\"\")","v":"{Motor HP}"},{"$f":"IFERROR(MID($G106,FIND(CHAR(160),SUBSTITUTE($G106,\"{\",CHAR(160),EI$1)),FIND(CHAR(160),SUBSTITUTE($G106,\"}\",CHAR(160),EI$1))-FIND(CHAR(160),SUBSTITUTE($G106,\"{\",CHAR(160),EI$1))+1),\"\")","v":"{Motor HP}"},{"$f":"IFERROR(MID($G106,FIND(CHAR(160),SUBSTITUTE($G106,\"{\",CHAR(160),EJ$1)),FIND(CHAR(160),SUBSTITUTE($G106,\"}\",CHAR(160),EJ$1))-FIND(CHAR(160),SUBSTITUTE($G106,\"{\",CHAR(160),EJ$1))+1),\"\")","v":"{Motor HP}"},{"$f":"IFERROR(MID($G106,FIND(CHAR(160),SUBSTITUTE($G106,\"{\",CHAR(160),EK$1)),FIND(CHAR(160),SUBSTITUTE($G106,\"}\",CHAR(160),EK$1))-FIND(CHAR(160),SUBSTITUTE($G106,\"{\",CHAR(160),EK$1))+1),\"\")","v":"{Motor HP}"},{"$f":"IFERROR(MID($G106,FIND(CHAR(160),SUBSTITUTE($G106,\"{\",CHAR(160),EL$1)),FIND(CHAR(160),SUBSTITUTE($G106,\"}\",CHAR(160),EL$1))-FIND(CHAR(160),SUBSTITUTE($G106,\"{\",CHAR(160),EL$1))+1),\"\")","v":"{Motor HP}"},{"$f":"IFERROR(MID($G106,FIND(CHAR(160),SUBSTITUTE($G106,\"{\",CHAR(160),EM$1)),FIND(CHAR(160),SUBSTITUTE($G106,\"}\",CHAR(160),EM$1))-FIND(CHAR(160),SUBSTITUTE($G106,\"{\",CHAR(160),EM$1))+1),\"\")","v":"{Motor HP}"},{"$f":"IFERROR(MID($G106,FIND(CHAR(160),SUBSTITUTE($G106,\"{\",CHAR(160),EN$1)),FIND(CHAR(160),SUBSTITUTE($G106,\"}\",CHAR(160),EN$1))-FIND(CHAR(160),SUBSTITUTE($G106,\"{\",CHAR(160),EN$1))+1),\"\")","v":"{Motor HP}"},{"$f":"IFERROR(MID($G106,FIND(CHAR(160),SUBSTITUTE($G106,\"{\",CHAR(160),EO$1)),FIND(CHAR(160),SUBSTITUTE($G106,\"}\",CHAR(160),EO$1))-FIND(CHAR(160),SUBSTITUTE($G106,\"{\",CHAR(160),EO$1))+1),\"\")","v":""},{"$f":"IFERROR(MID($G106,FIND(CHAR(160),SUBSTITUTE($G106,\"{\",CHAR(160),EP$1)),FIND(CHAR(160),SUBSTITUTE($G106,\"}\",CHAR(160),EP$1))-FIND(CHAR(160),SUBSTITUTE($G106,\"{\",CHAR(160),EP$1))+1),\"\")","v":""},{"$f":"IFERROR(MID($J106,FIND(CHAR(160),SUBSTITUTE($J106,\"{\",CHAR(160),EQ$1)),FIND(CHAR(160),SUBSTITUTE($J106,\"}\",CHAR(160),EQ$1))-FIND(CHAR(160),SUBSTITUTE($J106,\"{\",CHAR(160),EQ$1))+1),\"\")","v":"{Measure:Quantity}"},{"$f":"IFERROR(MID($J106,FIND(CHAR(160),SUBSTITUTE($J106,\"{\",CHAR(160),ER$1)),FIND(CHAR(160),SUBSTITUTE($J106,\"}\",CHAR(160),ER$1))-FIND(CHAR(160),SUBSTITUTE($J106,\"{\",CHAR(160),ER$1))+1),\"\")","v":"{Motor HP}"},{"$f":"IFERROR(MID($J106,FIND(CHAR(160),SUBSTITUTE($J106,\"{\",CHAR(160),ES$1)),FIND(CHAR(160),SUBSTITUTE($J106,\"}\",CHAR(160),ES$1))-FIND(CHAR(160),SUBSTITUTE($J106,\"{\",CHAR(160),ES$1))+1),\"\")","v":"{Motor HP}"},{"$f":"IFERROR(MID($J106,FIND(CHAR(160),SUBSTITUTE($J106,\"{\",CHAR(160),ET$1)),FIND(CHAR(160),SUBSTITUTE($J106,\"}\",CHAR(160),ET$1))-FIND(CHAR(160),SUBSTITUTE($J106,\"{\",CHAR(160),ET$1))+1),\"\")","v":"{Motor HP}"},{"$f":"IFERROR(MID($J106,FIND(CHAR(160),SUBSTITUTE($J106,\"{\",CHAR(160),EU$1)),FIND(CHAR(160),SUBSTITUTE($J106,\"}\",CHAR(160),EU$1))-FIND(CHAR(160),SUBSTITUTE($J106,\"{\",CHAR(160),EU$1))+1),\"\")","v":"{Motor HP}"},{"$f":"IFERROR(MID($J106,FIND(CHAR(160),SUBSTITUTE($J106,\"{\",CHAR(160),EV$1)),FIND(CHAR(160),SUBSTITUTE($J106,\"}\",CHAR(160),EV$1))-FIND(CHAR(160),SUBSTITUTE($J106,\"{\",CHAR(160),EV$1))+1),\"\")","v":"{Motor HP}"},{"$f":"IFERROR(MID($J106,FIND(CHAR(160),SUBSTITUTE($J106,\"{\",CHAR(160),EW$1)),FIND(CHAR(160),SUBSTITUTE($J106,\"}\",CHAR(160),EW$1))-FIND(CHAR(160),SUBSTITUTE($J106,\"{\",CHAR(160),EW$1))+1),\"\")","v":"{Motor HP}"},{"$f":"IFERROR(MID($J106,FIND(CHAR(160),SUBSTITUTE($J106,\"{\",CHAR(160),EX$1)),FIND(CHAR(160),SUBSTITUTE($J106,\"}\",CHAR(160),EX$1))-FIND(CHAR(160),SUBSTITUTE($J106,\"{\",CHAR(160),EX$1))+1),\"\")","v":"{Motor HP}"},{"$f":"IFERROR(MID($J106,FIND(CHAR(160),SUBSTITUTE($J106,\"{\",CHAR(160),EY$1)),FIND(CHAR(160),SUBSTITUTE($J106,\"}\",CHAR(160),EY$1))-FIND(CHAR(160),SUBSTITUTE($J106,\"{\",CHAR(160),EY$1))+1),\"\")","v":""},{"$f":"IFERROR(MID($J106,FIND(CHAR(160),SUBSTITUTE($J106,\"{\",CHAR(160),EZ$1)),FIND(CHAR(160),SUBSTITUTE($J106,\"}\",CHAR(160),EZ$1))-FIND(CHAR(160),SUBSTITUTE($J106,\"{\",CHAR(160),EZ$1))+1),\"\")","v":""},{"$f":"IFERROR(MID($J106,FIND(CHAR(160),SUBSTITUTE($J106,\"{\",CHAR(160),FA$1)),FIND(CHAR(160),SUBSTITUTE($J106,\"}\",CHAR(160),FA$1))-FIND(CHAR(160),SUBSTITUTE($J106,\"{\",CHAR(160),FA$1))+1),\"\")","v":"{Measure:Quantity}"},{"$f":"IFERROR(MID($J106,FIND(CHAR(160),SUBSTITUTE($J106,\"{\",CHAR(160),FB$1)),FIND(CHAR(160),SUBSTITUTE($J106,\"}\",CHAR(160),FB$1))-FIND(CHAR(160),SUBSTITUTE($J106,\"{\",CHAR(160),FB$1))+1),\"\")","v":"{Motor HP}"},{"$f":"IFERROR(MID($O106,FIND(CHAR(160),SUBSTITUTE($O106,\"{\",CHAR(160),FC$1)),FIND(CHAR(160),SUBSTITUTE($O106,\"}\",CHAR(160),FC$1))-FIND(CHAR(160),SUBSTITUTE($O106,\"{\",CHAR(160),FC$1))+1),\"\")","v":""},{"$f":"IFERROR(MID($O106,FIND(CHAR(160),SUBSTITUTE($O106,\"{\",CHAR(160),FD$1)),FIND(CHAR(160),SUBSTITUTE($O106,\"}\",CHAR(160),FD$1))-FIND(CHAR(160),SUBSTITUTE($O106,\"{\",CHAR(160),FD$1))+1),\"\")","v":""},{"$f":"IFERROR(MID($O106,FIND(CHAR(160),SUBSTITUTE($O106,\"{\",CHAR(160),FE$1)),FIND(CHAR(160),SUBSTITUTE($O106,\"}\",CHAR(160),FE$1))-FIND(CHAR(160),SUBSTITUTE($O106,\"{\",CHAR(160),FE$1))+1),\"\")","v":""},{"$f":"IFERROR(MID($O106,FIND(CHAR(160),SUBSTITUTE($O106,\"{\",CHAR(160),FF$1)),FIND(CHAR(160),SUBSTITUTE($O106,\"}\",CHAR(160),FF$1))-FIND(CHAR(160),SUBSTITUTE($O106,\"{\",CHAR(160),FF$1))+1),\"\")","v":""},{"$f":"IFERROR(MID($O106,FIND(CHAR(160),SUBSTITUTE($O106,\"{\",CHAR(160),FG$1)),FIND(CHAR(160),SUBSTITUTE($O106,\"}\",CHAR(160),FG$1))-FIND(CHAR(160),SUBSTITUTE($O106,\"{\",CHAR(160),FG$1))+1),\"\")","v":""},{"$f":"IFERROR(MID($O106,FIND(CHAR(160),SUBSTITUTE($O106,\"{\",CHAR(160),FH$1)),FIND(CHAR(160),SUBSTITUTE($O106,\"}\",CHAR(160),FH$1))-FIND(CHAR(160),SUBSTITUTE($O106,\"{\",CHAR(160),FH$1))+1),\"\")","v":""},{"$f":"IFERROR(MID($O106,FIND(CHAR(160),SUBSTITUTE($O106,\"{\",CHAR(160),FI$1)),FIND(CHAR(160),SUBSTITUTE($O106,\"}\",CHAR(160),FI$1))-FIND(CHAR(160),SUBSTITUTE($O106,\"{\",CHAR(160),FI$1))+1),\"\")","v":""},{"$f":"IFERROR(MID($O106,FIND(CHAR(160),SUBSTITUTE($O106,\"{\",CHAR(160),FJ$1)),FIND(CHAR(160),SUBSTITUTE($O106,\"}\",CHAR(160),FJ$1))-FIND(CHAR(160),SUBSTITUTE($O106,\"{\",CHAR(160),FJ$1))+1),\"\")","v":""},{"$f":"IFERROR(MID($O106,FIND(CHAR(160),SUBSTITUTE($O106,\"{\",CHAR(160),FK$1)),FIND(CHAR(160),SUBSTITUTE($O106,\"}\",CHAR(160),FK$1))-FIND(CHAR(160),SUBSTITUTE($O106,\"{\",CHAR(160),FK$1))+1),\"\")","v":"{Measure:Quantity}"},{"$f":"IFERROR(MID($O106,FIND(CHAR(160),SUBSTITUTE($O106,\"{\",CHAR(160),FL$1)),FIND(CHAR(160),SUBSTITUTE($O106,\"}\",CHAR(160),FL$1))-FIND(CHAR(160),SUBSTITUTE($O106,\"{\",CHAR(160),FL$1))+1),\"\")","v":"{Motor HP}"},{"$f":"IFERROR(MID($R106,FIND(CHAR(160),SUBSTITUTE($R106,\"{\",CHAR(160),FM$1)),FIND(CHAR(160),SUBSTITUTE($R106,\"}\",CHAR(160),FM$1))-FIND(CHAR(160),SUBSTITUTE($R106,\"{\",CHAR(160),FM$1))+1),\"\")","v":""},{"$f":"IFERROR(MID($R106,FIND(CHAR(160),SUBSTITUTE($R106,\"{\",CHAR(160),FN$1)),FIND(CHAR(160),SUBSTITUTE($R106,\"}\",CHAR(160),FN$1))-FIND(CHAR(160),SUBSTITUTE($R106,\"{\",CHAR(160),FN$1))+1),\"\")","v":""},{"$f":"IFERROR(MID($R106,FIND(CHAR(160),SUBSTITUTE($R106,\"{\",CHAR(160),FO$1)),FIND(CHAR(160),SUBSTITUTE($R106,\"}\",CHAR(160),FO$1))-FIND(CHAR(160),SUBSTITUTE($R106,\"{\",CHAR(160),FO$1))+1),\"\")","v":""},{"$f":"IFERROR(MID($R106,FIND(CHAR(160),SUBSTITUTE($R106,\"{\",CHAR(160),FP$1)),FIND(CHAR(160),SUBSTITUTE($R106,\"}\",CHAR(160),FP$1))-FIND(CHAR(160),SUBSTITUTE($R106,\"{\",CHAR(160),FP$1))+1),\"\")","v":""},{"$f":"IFERROR(MID($R106,FIND(CHAR(160),SUBSTITUTE($R106,\"{\",CHAR(160),FQ$1)),FIND(CHAR(160),SUBSTITUTE($R106,\"}\",CHAR(160),FQ$1))-FIND(CHAR(160),SUBSTITUTE($R106,\"{\",CHAR(160),FQ$1))+1),\"\")","v":""},{"$f":"IFERROR(MID($R106,FIND(CHAR(160),SUBSTITUTE($R106,\"{\",CHAR(160),FR$1)),FIND(CHAR(160),SUBSTITUTE($R106,\"}\",CHAR(160),FR$1))-FIND(CHAR(160),SUBSTITUTE($R106,\"{\",CHAR(160),FR$1))+1),\"\")","v":""},{"$f":"IFERROR(MID($R106,FIND(CHAR(160),SUBSTITUTE($R106,\"{\",CHAR(160),FS$1)),FIND(CHAR(160),SUBSTITUTE($R106,\"}\",CHAR(160),FS$1))-FIND(CHAR(160),SUBSTITUTE($R106,\"{\",CHAR(160),FS$1))+1),\"\")","v":""},{"$f":"IFERROR(MID($R106,FIND(CHAR(160),SUBSTITUTE($R106,\"{\",CHAR(160),FT$1)),FIND(CHAR(160),SUBSTITUTE($R106,\"}\",CHAR(160),FT$1))-FIND(CHAR(160),SUBSTITUTE($R106,\"{\",CHAR(160),FT$1))+1),\"\")","v":""},{"$f":"IFERROR(MID($R106,FIND(CHAR(160),SUBSTITUTE($R106,\"{\",CHAR(160),FU$1)),FIND(CHAR(160),SUBSTITUTE($R106,\"}\",CHAR(160),FU$1))-FIND(CHAR(160),SUBSTITUTE($R106,\"{\",CHAR(160),FU$1))+1),\"\")","v":"{Measure:Quantity}"},{"$f":"IFERROR(MID($R106,FIND(CHAR(160),SUBSTITUTE($R106,\"{\",CHAR(160),FV$1)),FIND(CHAR(160),SUBSTITUTE($R106,\"}\",CHAR(160),FV$1))-FIND(CHAR(160),SUBSTITUTE($R106,\"{\",CHAR(160),FV$1))+1),\"\")","v":"{Motor HP}"},{"$f":"IFERROR(MID($U106,FIND(CHAR(160),SUBSTITUTE($U106,\"{\",CHAR(160),FW$1)),FIND(CHAR(160),SUBSTITUTE($U106,\"}\",CHAR(160),FW$1))-FIND(CHAR(160),SUBSTITUTE($U106,\"{\",CHAR(160),FW$1))+1),\"\")","v":"{Motor HP}"},{"$f":"IFERROR(MID($U106,FIND(CHAR(160),SUBSTITUTE($U106,\"{\",CHAR(160),FX$1)),FIND(CHAR(160),SUBSTITUTE($U106,\"}\",CHAR(160),FX$1))-FIND(CHAR(160),SUBSTITUTE($U106,\"{\",CHAR(160),FX$1))+1),\"\")","v":""},{"$f":"IFERROR(MID($U106,FIND(CHAR(160),SUBSTITUTE($U106,\"{\",CHAR(160),FY$1)),FIND(CHAR(160),SUBSTITUTE($U106,\"}\",CHAR(160),FY$1))-FIND(CHAR(160),SUBSTITUTE($U106,\"{\",CHAR(160),FY$1))+1),\"\")","v":""},{"$f":"IFERROR(MID($U106,FIND(CHAR(160),SUBSTITUTE($U106,\"{\",CHAR(160),FZ$1)),FIND(CHAR(160),SUBSTITUTE($U106,\"}\",CHAR(160),FZ$1))-FIND(CHAR(160),SUBSTITUTE($U106,\"{\",CHAR(160),FZ$1))+1),\"\")","v":""},{"$f":"IFERROR(MID($U106,FIND(CHAR(160),SUBSTITUTE($U106,\"{\",CHAR(160),GA$1)),FIND(CHAR(160),SUBSTITUTE($U106,\"}\",CHAR(160),GA$1))-FIND(CHAR(160),SUBSTITUTE($U106,\"{\",CHAR(160),GA$1))+1),\"\")","v":""},{"$f":"IFERROR(MID($U106,FIND(CHAR(160),SUBSTITUTE($U106,\"{\",CHAR(160),GB$1)),FIND(CHAR(160),SUBSTITUTE($U106,\"}\",CHAR(160),GB$1))-FIND(CHAR(160),SUBSTITUTE($U106,\"{\",CHAR(160),GB$1))+1),\"\")","v":""},{"$f":"IFERROR(MID($U106,FIND(CHAR(160),SUBSTITUTE($U106,\"{\",CHAR(160),GC$1)),FIND(CHAR(160),SUBSTITUTE($U106,\"}\",CHAR(160),GC$1))-FIND(CHAR(160),SUBSTITUTE($U106,\"{\",CHAR(160),GC$1))+1),\"\")","v":""},{"$f":"IFERROR(MID($U106,FIND(CHAR(160),SUBSTITUTE($U106,\"{\",CHAR(160),GD$1)),FIND(CHAR(160),SUBSTITUTE($U106,\"}\",CHAR(160),GD$1))-FIND(CHAR(160),SUBSTITUTE($U106,\"{\",CHAR(160),GD$1))+1),\"\")","v":""},{"$f":"IFERROR(MID($U106,FIND(CHAR(160),SUBSTITUTE($U106,\"{\",CHAR(160),GE$1)),FIND(CHAR(160),SUBSTITUTE($U106,\"}\",CHAR(160),GE$1))-FIND(CHAR(160),SUBSTITUTE($U106,\"{\",CHAR(160),GE$1))+1),\"\")","v":"{Measure:Quantity}"},{"$f":"IFERROR(MID($U106,FIND(CHAR(160),SUBSTITUTE($U106,\"{\",CHAR(160),GF$1)),FIND(CHAR(160),SUBSTITUTE($U106,\"}\",CHAR(160),GF$1))-FIND(CHAR(160),SUBSTITUTE($U106,\"{\",CHAR(160),GF$1))+1),\"\")","v":"{Factor:WinterCF}"},{"$f":"IFERROR(MID($V106,FIND(CHAR(160),SUBSTITUTE($V106,\"{\",CHAR(160),GG$1)),FIND(CHAR(160),SUBSTITUTE($V106,\"}\",CHAR(160),GG$1))-FIND(CHAR(160),SUBSTITUTE($V106,\"{\",CHAR(160),GG$1))+1),\"\")","v":"{Motor HP}"},{"$f":"IFERROR(MID($V106,FIND(CHAR(160),SUBSTITUTE($V106,\"{\",CHAR(160),GH$1)),FIND(CHAR(160),SUBSTITUTE($V106,\"}\",CHAR(160),GH$1))-FIND(CHAR(160),SUBSTITUTE($V106,\"{\",CHAR(160),GH$1))+1),\"\")","v":""},{"$f":"IFERROR(MID($V106,FIND(CHAR(160),SUBSTITUTE($V106,\"{\",CHAR(160),GI$1)),FIND(CHAR(160),SUBSTITUTE($V106,\"}\",CHAR(160),GI$1))-FIND(CHAR(160),SUBSTITUTE($V106,\"{\",CHAR(160),GI$1))+1),\"\")","v":""},{"$f":"IFERROR(MID($V106,FIND(CHAR(160),SUBSTITUTE($V106,\"{\",CHAR(160),GJ$1)),FIND(CHAR(160),SUBSTITUTE($V106,\"}\",CHAR(160),GJ$1))-FIND(CHAR(160),SUBSTITUTE($V106,\"{\",CHAR(160),GJ$1))+1),\"\")","v":""},{"$f":"IFERROR(MID($V106,FIND(CHAR(160),SUBSTITUTE($V106,\"{\",CHAR(160),GK$1)),FIND(CHAR(160),SUBSTITUTE($V106,\"}\",CHAR(160),GK$1))-FIND(CHAR(160),SUBSTITUTE($V106,\"{\",CHAR(160),GK$1))+1),\"\")","v":""},{"$f":"IFERROR(MID($V106,FIND(CHAR(160),SUBSTITUTE($V106,\"{\",CHAR(160),GL$1)),FIND(CHAR(160),SUBSTITUTE($V106,\"}\",CHAR(160),GL$1))-FIND(CHAR(160),SUBSTITUTE($V106,\"{\",CHAR(160),GL$1))+1),\"\")","v":""},{"$f":"IFERROR(MID($V106,FIND(CHAR(160),SUBSTITUTE($V106,\"{\",CHAR(160),GM$1)),FIND(CHAR(160),SUBSTITUTE($V106,\"}\",CHAR(160),GM$1))-FIND(CHAR(160),SUBSTITUTE($V106,\"{\",CHAR(160),GM$1))+1),\"\")","v":""},{"$f":"IFERROR(MID($V106,FIND(CHAR(160),SUBSTITUTE($V106,\"{\",CHAR(160),GN$1)),FIND(CHAR(160),SUBSTITUTE($V106,\"}\",CHAR(160),GN$1))-FIND(CHAR(160),SUBSTITUTE($V106,\"{\",CHAR(160),GN$1))+1),\"\")","v":""},{"$f":"IFERROR(MID($V106,FIND(CHAR(160),SUBSTITUTE($V106,\"{\",CHAR(160),GO$1)),FIND(CHAR(160),SUBSTITUTE($V106,\"}\",CHAR(160),GO$1))-FIND(CHAR(160),SUBSTITUTE($V106,\"{\",CHAR(160),GO$1))+1),\"\")","v":"{Measure:Quantity}"},{"$f":"IFERROR(MID($V106,FIND(CHAR(160),SUBSTITUTE($V106,\"{\",CHAR(160),GP$1)),FIND(CHAR(160),SUBSTITUTE($V106,\"}\",CHAR(160),GP$1))-FIND(CHAR(160),SUBSTITUTE($V106,\"{\",CHAR(160),GP$1))+1),\"\")","v":"{Factor:SummerCF}"},{"$f":"IFERROR(MID($W106,FIND(CHAR(160),SUBSTITUTE($W106,\"{\",CHAR(160),GQ$1)),FIND(CHAR(160),SUBSTITUTE($W106,\"}\",CHAR(160),GQ$1))-FIND(CHAR(160),SUBSTITUTE($W106,\"{\",CHAR(160),GQ$1))+1),\"\")","v":""},{"$f":"IFERROR(MID($W106,FIND(CHAR(160),SUBSTITUTE($W106,\"{\",CHAR(160),GR$1)),FIND(CHAR(160),SUBSTITUTE($W106,\"}\",CHAR(160),GR$1))-FIND(CHAR(160),SUBSTITUTE($W106,\"{\",CHAR(160),GR$1))+1),\"\")","v":""},{"$f":"IFERROR(MID($W106,FIND(CHAR(160),SUBSTITUTE($W106,\"{\",CHAR(160),GS$1)),FIND(CHAR(160),SUBSTITUTE($W106,\"}\",CHAR(160),GS$1))-FIND(CHAR(160),SUBSTITUTE($W106,\"{\",CHAR(160),GS$1))+1),\"\")","v":""},{"$f":"IFERROR(MID($W106,FIND(CHAR(160),SUBSTITUTE($W106,\"{\",CHAR(160),GT$1)),FIND(CHAR(160),SUBSTITUTE($W106,\"}\",CHAR(160),GT$1))-FIND(CHAR(160),SUBSTITUTE($W106,\"{\",CHAR(160),GT$1))+1),\"\")","v":""},{"$f":"IFERROR(MID($W106,FIND(CHAR(160),SUBSTITUTE($W106,\"{\",CHAR(160),GU$1)),FIND(CHAR(160),SUBSTITUTE($W106,\"}\",CHAR(160),GU$1))-FIND(CHAR(160),SUBSTITUTE($W106,\"{\",CHAR(160),GU$1))+1),\"\")","v":""},{"$f":"IFERROR(MID($W106,FIND(CHAR(160),SUBSTITUTE($W106,\"{\",CHAR(160),GV$1)),FIND(CHAR(160),SUBSTITUTE($W106,\"}\",CHAR(160),GV$1))-FIND(CHAR(160),SUBSTITUTE($W106,\"{\",CHAR(160),GV$1))+1),\"\")","v":""},{"$f":"IFERROR(MID($W106,FIND(CHAR(160),SUBSTITUTE($W106,\"{\",CHAR(160),GW$1)),FIND(CHAR(160),SUBSTITUTE($W106,\"}\",CHAR(160),GW$1))-FIND(CHAR(160),SUBSTITUTE($W106,\"{\",CHAR(160),GW$1))+1),\"\")","v":""},{"$f":"IFERROR(MID($W106,FIND(CHAR(160),SUBSTITUTE($W106,\"{\",CHAR(160),GX$1)),FIND(CHAR(160),SUBSTITUTE($W106,\"}\",CHAR(160),GX$1))-FIND(CHAR(160),SUBSTITUTE($W106,\"{\",CHAR(160),GX$1))+1),\"\")","v":""},{"$f":"IFERROR(MID($W106,FIND(CHAR(160),SUBSTITUTE($W106,\"{\",CHAR(160),GY$1)),FIND(CHAR(160),SUBSTITUTE($W106,\"}\",CHAR(160),GY$1))-FIND(CHAR(160),SUBSTITUTE($W106,\"{\",CHAR(160),GY$1))+1),\"\")","v":""},{"$f":"IFERROR(MID($W106,FIND(CHAR(160),SUBSTITUTE($W106,\"{\",CHAR(160),GZ$1)),FIND(CHAR(160),SUBSTITUTE($W106,\"}\",CHAR(160),GZ$1))-FIND(CHAR(160),SUBSTITUTE($W106,\"{\",CHAR(160),GZ$1))+1),\"\")","v":""},{"$f":"IFERROR(MID($X106,FIND(CHAR(160),SUBSTITUTE($X106,\"{\",CHAR(160),HA$1)),FIND(CHAR(160),SUBSTITUTE($X106,\"}\",CHAR(160),HA$1))-FIND(CHAR(160),SUBSTITUTE($X106,\"{\",CHAR(160),HA$1))+1),\"\")","v":""},{"$f":"IFERROR(MID($X106,FIND(CHAR(160),SUBSTITUTE($X106,\"{\",CHAR(160),HB$1)),FIND(CHAR(160),SUBSTITUTE($X106,\"}\",CHAR(160),HB$1))-FIND(CHAR(160),SUBSTITUTE($X106,\"{\",CHAR(160),HB$1))+1),\"\")","v":""},{"$f":"IFERROR(MID($X106,FIND(CHAR(160),SUBSTITUTE($X106,\"{\",CHAR(160),HC$1)),FIND(CHAR(160),SUBSTITUTE($X106,\"}\",CHAR(160),HC$1))-FIND(CHAR(160),SUBSTITUTE($X106,\"{\",CHAR(160),HC$1))+1),\"\")","v":""},{"$f":"IFERROR(MID($X106,FIND(CHAR(160),SUBSTITUTE($X106,\"{\",CHAR(160),HD$1)),FIND(CHAR(160),SUBSTITUTE($X106,\"}\",CHAR(160),HD$1))-FIND(CHAR(160),SUBSTITUTE($X106,\"{\",CHAR(160),HD$1))+1),\"\")","v":""},{"$f":"IFERROR(MID($X106,FIND(CHAR(160),SUBSTITUTE($X106,\"{\",CHAR(160),HE$1)),FIND(CHAR(160),SUBSTITUTE($X106,\"}\",CHAR(160),HE$1))-FIND(CHAR(160),SUBSTITUTE($X106,\"{\",CHAR(160),HE$1))+1),\"\")","v":""},{"$f":"IFERROR(MID($X106,FIND(CHAR(160),SUBSTITUTE($X106,\"{\",CHAR(160),HF$1)),FIND(CHAR(160),SUBSTITUTE($X106,\"}\",CHAR(160),HF$1))-FIND(CHAR(160),SUBSTITUTE($X106,\"{\",CHAR(160),HF$1))+1),\"\")","v":""},{"$f":"IFERROR(MID($X106,FIND(CHAR(160),SUBSTITUTE($X106,\"{\",CHAR(160),HG$1)),FIND(CHAR(160),SUBSTITUTE($X106,\"}\",CHAR(160),HG$1))-FIND(CHAR(160),SUBSTITUTE($X106,\"{\",CHAR(160),HG$1))+1),\"\")","v":""},{"$f":"IFERROR(MID($X106,FIND(CHAR(160),SUBSTITUTE($X106,\"{\",CHAR(160),HH$1)),FIND(CHAR(160),SUBSTITUTE($X106,\"}\",CHAR(160),HH$1))-FIND(CHAR(160),SUBSTITUTE($X106,\"{\",CHAR(160),HH$1))+1),\"\")","v":""},{"$f":"IFERROR(MID($X106,FIND(CHAR(160),SUBSTITUTE($X106,\"{\",CHAR(160),HI$1)),FIND(CHAR(160),SUBSTITUTE($X106,\"}\",CHAR(160),HI$1))-FIND(CHAR(160),SUBSTITUTE($X106,\"{\",CHAR(160),HI$1))+1),\"\")","v":""},{"$f":"IFERROR(MID($X106,FIND(CHAR(160),SUBSTITUTE($X106,\"{\",CHAR(160),HJ$1)),FIND(CHAR(160),SUBSTITUTE($X106,\"}\",CHAR(160),HJ$1))-FIND(CHAR(160),SUBSTITUTE($X106,\"{\",CHAR(160),HJ$1))+1),\"\")","v":""},{"$f":"IFERROR(MID($Y106,FIND(CHAR(160),SUBSTITUTE($Y106,\"{\",CHAR(160),HK$1)),FIND(CHAR(160),SUBSTITUTE($Y106,\"}\",CHAR(160),HK$1))-FIND(CHAR(160),SUBSTITUTE($Y106,\"{\",CHAR(160),HK$1))+1),\"\")","v":""},{"$f":"IFERROR(MID($Y106,FIND(CHAR(160),SUBSTITUTE($Y106,\"{\",CHAR(160),HL$1)),FIND(CHAR(160),SUBSTITUTE($Y106,\"}\",CHAR(160),HL$1))-FIND(CHAR(160),SUBSTITUTE($Y106,\"{\",CHAR(160),HL$1))+1),\"\")","v":""},{"$f":"IFERROR(MID($Y106,FIND(CHAR(160),SUBSTITUTE($Y106,\"{\",CHAR(160),HM$1)),FIND(CHAR(160),SUBSTITUTE($Y106,\"}\",CHAR(160),HM$1))-FIND(CHAR(160),SUBSTITUTE($Y106,\"{\",CHAR(160),HM$1))+1),\"\")","v":""},{"$f":"IFERROR(MID($Y106,FIND(CHAR(160),SUBSTITUTE($Y106,\"{\",CHAR(160),HN$1)),FIND(CHAR(160),SUBSTITUTE($Y106,\"}\",CHAR(160),HN$1))-FIND(CHAR(160),SUBSTITUTE($Y106,\"{\",CHAR(160),HN$1))+1),\"\")","v":""},{"$f":"IFERROR(MID($Y106,FIND(CHAR(160),SUBSTITUTE($Y106,\"{\",CHAR(160),HO$1)),FIND(CHAR(160),SUBSTITUTE($Y106,\"}\",CHAR(160),HO$1))-FIND(CHAR(160),SUBSTITUTE($Y106,\"{\",CHAR(160),HO$1))+1),\"\")","v":""},{"$f":"IFERROR(MID($Y106,FIND(CHAR(160),SUBSTITUTE($Y106,\"{\",CHAR(160),HP$1)),FIND(CHAR(160),SUBSTITUTE($Y106,\"}\",CHAR(160),HP$1))-FIND(CHAR(160),SUBSTITUTE($Y106,\"{\",CHAR(160),HP$1))+1),\"\")","v":""},{"$f":"IFERROR(MID($Y106,FIND(CHAR(160),SUBSTITUTE($Y106,\"{\",CHAR(160),HQ$1)),FIND(CHAR(160),SUBSTITUTE($Y106,\"}\",CHAR(160),HQ$1))-FIND(CHAR(160),SUBSTITUTE($Y106,\"{\",CHAR(160),HQ$1))+1),\"\")","v":""},{"$f":"IFERROR(MID($Y106,FIND(CHAR(160),SUBSTITUTE($Y106,\"{\",CHAR(160),HR$1)),FIND(CHAR(160),SUBSTITUTE($Y106,\"}\",CHAR(160),HR$1))-FIND(CHAR(160),SUBSTITUTE($Y106,\"{\",CHAR(160),HR$1))+1),\"\")","v":""},{"$f":"IFERROR(MID($Y106,FIND(CHAR(160),SUBSTITUTE($Y106,\"{\",CHAR(160),HS$1)),FIND(CHAR(160),SUBSTITUTE($Y106,\"}\",CHAR(160),HS$1))-FIND(CHAR(160),SUBSTITUTE($Y106,\"{\",CHAR(160),HS$1))+1),\"\")","v":""},{"$f":"IFERROR(MID($Y106,FIND(CHAR(160),SUBSTITUTE($Y106,\"{\",CHAR(160),HT$1)),FIND(CHAR(160),SUBSTITUTE($Y106,\"}\",CHAR(160),HT$1))-FIND(CHAR(160),SUBSTITUTE($Y106,\"{\",CHAR(160),HT$1))+1),\"\")","v":""},{"$f":"IFERROR(MID($Z106,FIND(CHAR(160),SUBSTITUTE($Z106,\"{\",CHAR(160),HU$1)),FIND(CHAR(160),SUBSTITUTE($Z106,\"}\",CHAR(160),HU$1))-FIND(CHAR(160),SUBSTITUTE($Z106,\"{\",CHAR(160),HU$1))+1),\"\")","v":""},{"$f":"IFERROR(MID($Z106,FIND(CHAR(160),SUBSTITUTE($Z106,\"{\",CHAR(160),HV$1)),FIND(CHAR(160),SUBSTITUTE($Z106,\"}\",CHAR(160),HV$1))-FIND(CHAR(160),SUBSTITUTE($Z106,\"{\",CHAR(160),HV$1))+1),\"\")","v":""},{"$f":"IFERROR(MID($Z106,FIND(CHAR(160),SUBSTITUTE($Z106,\"{\",CHAR(160),HW$1)),FIND(CHAR(160),SUBSTITUTE($Z106,\"}\",CHAR(160),HW$1))-FIND(CHAR(160),SUBSTITUTE($Z106,\"{\",CHAR(160),HW$1))+1),\"\")","v":""},{"$f":"IFERROR(MID($Z106,FIND(CHAR(160),SUBSTITUTE($Z106,\"{\",CHAR(160),HX$1)),FIND(CHAR(160),SUBSTITUTE($Z106,\"}\",CHAR(160),HX$1))-FIND(CHAR(160),SUBSTITUTE($Z106,\"{\",CHAR(160),HX$1))+1),\"\")","v":""},{"$f":"IFERROR(MID($Z106,FIND(CHAR(160),SUBSTITUTE($Z106,\"{\",CHAR(160),HY$1)),FIND(CHAR(160),SUBSTITUTE($Z106,\"}\",CHAR(160),HY$1))-FIND(CHAR(160),SUBSTITUTE($Z106,\"{\",CHAR(160),HY$1))+1),\"\")","v":""},{"$f":"IFERROR(MID($Z106,FIND(CHAR(160),SUBSTITUTE($Z106,\"{\",CHAR(160),HZ$1)),FIND(CHAR(160),SUBSTITUTE($Z106,\"}\",CHAR(160),HZ$1))-FIND(CHAR(160),SUBSTITUTE($Z106,\"{\",CHAR(160),HZ$1))+1),\"\")","v":""},{"$f":"IFERROR(MID($Z106,FIND(CHAR(160),SUBSTITUTE($Z106,\"{\",CHAR(160),IA$1)),FIND(CHAR(160),SUBSTITUTE($Z106,\"}\",CHAR(160),IA$1))-FIND(CHAR(160),SUBSTITUTE($Z106,\"{\",CHAR(160),IA$1))+1),\"\")","v":""},{"$f":"IFERROR(MID($Z106,FIND(CHAR(160),SUBSTITUTE($Z106,\"{\",CHAR(160),IB$1)),FIND(CHAR(160),SUBSTITUTE($Z106,\"}\",CHAR(160),IB$1))-FIND(CHAR(160),SUBSTITUTE($Z106,\"{\",CHAR(160),IB$1))+1),\"\")","v":""},{"$f":"IFERROR(MID($Z106,FIND(CHAR(160),SUBSTITUTE($Z106,\"{\",CHAR(160),IC$1)),FIND(CHAR(160),SUBSTITUTE($Z106,\"}\",CHAR(160),IC$1))-FIND(CHAR(160),SUBSTITUTE($Z106,\"{\",CHAR(160),IC$1))+1),\"\")","v":""},{"$f":"IFERROR(MID($Z106,FIND(CHAR(160),SUBSTITUTE($Z106,\"{\",CHAR(160),ID$1)),FIND(CHAR(160),SUBSTITUTE($Z106,\"}\",CHAR(160),ID$1))-FIND(CHAR(160),SUBSTITUTE($Z106,\"{\",CHAR(160),ID$1))+1),\"\")","v":""},{"$f":"IFERROR(MID($AA106,FIND(CHAR(160),SUBSTITUTE($AA106,\"{\",CHAR(160),IE$1)),FIND(CHAR(160),SUBSTITUTE($AA106,\"}\",CHAR(160),IE$1))-FIND(CHAR(160),SUBSTITUTE($AA106,\"{\",CHAR(160),IE$1))+1),\"\")","v":""},{"$f":"IFERROR(MID($AA106,FIND(CHAR(160),SUBSTITUTE($AA106,\"{\",CHAR(160),IF$1)),FIND(CHAR(160),SUBSTITUTE($AA106,\"}\",CHAR(160),IF$1))-FIND(CHAR(160),SUBSTITUTE($AA106,\"{\",CHAR(160),IF$1))+1),\"\")","v":""},{"$f":"IFERROR(MID($AA106,FIND(CHAR(160),SUBSTITUTE($AA106,\"{\",CHAR(160),IG$1)),FIND(CHAR(160),SUBSTITUTE($AA106,\"}\",CHAR(160),IG$1))-FIND(CHAR(160),SUBSTITUTE($AA106,\"{\",CHAR(160),IG$1))+1),\"\")","v":""},{"$f":"IFERROR(MID($AA106,FIND(CHAR(160),SUBSTITUTE($AA106,\"{\",CHAR(160),IH$1)),FIND(CHAR(160),SUBSTITUTE($AA106,\"}\",CHAR(160),IH$1))-FIND(CHAR(160),SUBSTITUTE($AA106,\"{\",CHAR(160),IH$1))+1),\"\")","v":""},{"$f":"IFERROR(MID($AA106,FIND(CHAR(160),SUBSTITUTE($AA106,\"{\",CHAR(160),II$1)),FIND(CHAR(160),SUBSTITUTE($AA106,\"}\",CHAR(160),II$1))-FIND(CHAR(160),SUBSTITUTE($AA106,\"{\",CHAR(160),II$1))+1),\"\")","v":""},{"$f":"IFERROR(MID($AA106,FIND(CHAR(160),SUBSTITUTE($AA106,\"{\",CHAR(160),IJ$1)),FIND(CHAR(160),SUBSTITUTE($AA106,\"}\",CHAR(160),IJ$1))-FIND(CHAR(160),SUBSTITUTE($AA106,\"{\",CHAR(160),IJ$1))+1),\"\")","v":""},{"$f":"IFERROR(MID($AA106,FIND(CHAR(160),SUBSTITUTE($AA106,\"{\",CHAR(160),IK$1)),FIND(CHAR(160),SUBSTITUTE($AA106,\"}\",CHAR(160),IK$1))-FIND(CHAR(160),SUBSTITUTE($AA106,\"{\",CHAR(160),IK$1))+1),\"\")","v":""},{"$f":"IFERROR(MID($AA106,FIND(CHAR(160),SUBSTITUTE($AA106,\"{\",CHAR(160),IL$1)),FIND(CHAR(160),SUBSTITUTE($AA106,\"}\",CHAR(160),IL$1))-FIND(CHAR(160),SUBSTITUTE($AA106,\"{\",CHAR(160),IL$1))+1),\"\")","v":""},{"$f":"IFERROR(MID($AA106,FIND(CHAR(160),SUBSTITUTE($AA106,\"{\",CHAR(160),IM$1)),FIND(CHAR(160),SUBSTITUTE($AA106,\"}\",CHAR(160),IM$1))-FIND(CHAR(160),SUBSTITUTE($AA106,\"{\",CHAR(160),IM$1))+1),\"\")","v":""},{"$f":"IFERROR(MID($AA106,FIND(CHAR(160),SUBSTITUTE($AA106,\"{\",CHAR(160),IN$1)),FIND(CHAR(160),SUBSTITUTE($AA106,\"}\",CHAR(160),IN$1))-FIND(CHAR(160),SUBSTITUTE($AA106,\"{\",CHAR(160),IN$1))+1),\"\")","v":""},{"$f":"IFERROR(MID($AB106,FIND(CHAR(160),SUBSTITUTE($AB106,\"{\",CHAR(160),IO$1)),FIND(CHAR(160),SUBSTITUTE($AB106,\"}\",CHAR(160),IO$1))-FIND(CHAR(160),SUBSTITUTE($AB106,\"{\",CHAR(160),IO$1))+1),\"\")","v":""},{"$f":"IFERROR(MID($AB106,FIND(CHAR(160),SUBSTITUTE($AB106,\"{\",CHAR(160),IP$1)),FIND(CHAR(160),SUBSTITUTE($AB106,\"}\",CHAR(160),IP$1))-FIND(CHAR(160),SUBSTITUTE($AB106,\"{\",CHAR(160),IP$1))+1),\"\")","v":""},{"$f":"IFERROR(MID($AB106,FIND(CHAR(160),SUBSTITUTE($AB106,\"{\",CHAR(160),IQ$1)),FIND(CHAR(160),SUBSTITUTE($AB106,\"}\",CHAR(160),IQ$1))-FIND(CHAR(160),SUBSTITUTE($AB106,\"{\",CHAR(160),IQ$1))+1),\"\")","v":""},{"$f":"IFERROR(MID($AB106,FIND(CHAR(160),SUBSTITUTE($AB106,\"{\",CHAR(160),IR$1)),FIND(CHAR(160),SUBSTITUTE($AB106,\"}\",CHAR(160),IR$1))-FIND(CHAR(160),SUBSTITUTE($AB106,\"{\",CHAR(160),IR$1))+1),\"\")","v":""},{"$f":"IFERROR(MID($AB106,FIND(CHAR(160),SUBSTITUTE($AB106,\"{\",CHAR(160),IS$1)),FIND(CHAR(160),SUBSTITUTE($AB106,\"}\",CHAR(160),IS$1))-FIND(CHAR(160),SUBSTITUTE($AB106,\"{\",CHAR(160),IS$1))+1),\"\")","v":""},{"$f":"IFERROR(MID($AB106,FIND(CHAR(160),SUBSTITUTE($AB106,\"{\",CHAR(160),IT$1)),FIND(CHAR(160),SUBSTITUTE($AB106,\"}\",CHAR(160),IT$1))-FIND(CHAR(160),SUBSTITUTE($AB106,\"{\",CHAR(160),IT$1))+1),\"\")","v":""},{"$f":"IFERROR(MID($AB106,FIND(CHAR(160),SUBSTITUTE($AB106,\"{\",CHAR(160),IU$1)),FIND(CHAR(160),SUBSTITUTE($AB106,\"}\",CHAR(160),IU$1))-FIND(CHAR(160),SUBSTITUTE($AB106,\"{\",CHAR(160),IU$1))+1),\"\")","v":""},{"$f":"IFERROR(MID($AB106,FIND(CHAR(160),SUBSTITUTE($AB106,\"{\",CHAR(160),IV$1)),FIND(CHAR(160),SUBSTITUTE($AB106,\"}\",CHAR(160),IV$1))-FIND(CHAR(160),SUBSTITUTE($AB106,\"{\",CHAR(160),IV$1))+1),\"\")","v":""},{"$f":"IFERROR(MID($AB106,FIND(CHAR(160),SUBSTITUTE($AB106,\"{\",CHAR(160),IW$1)),FIND(CHAR(160),SUBSTITUTE($AB106,\"}\",CHAR(160),IW$1))-FIND(CHAR(160),SUBSTITUTE($AB106,\"{\",CHAR(160),IW$1))+1),\"\")","v":""},{"$f":"IFERROR(MID($AB106,FIND(CHAR(160),SUBSTITUTE($AB106,\"{\",CHAR(160),IX$1)),FIND(CHAR(160),SUBSTITUTE($AB106,\"}\",CHAR(160),IX$1))-FIND(CHAR(160),SUBSTITUTE($AB106,\"{\",CHAR(160),IX$1))+1),\"\")","v":""},null,{"$f":"10-COUNTIF(DU106:ED106,\"\")","v":2}]
["C&I HVAC - Propane and Compressed NG","Energy Recovery Ventilator","ERV","2021-07-01","2022-06-30","Calculated","{Measure:Quantity}*{Ventilation Air Rate}*3.75",0,"Calculated","{Measure:Quantity}*{Ventilation Air Rate}*if({Eff Heating} < 0.65, 2.25, if({Eff Heating} < 0.75, 2.50, if({Eff Heating} < 0.85, 2.75, 3.00)))",0,"2021-05-25","2022-06-30","Calculated","{Measure:Quantity} *(0.0075*60*{Ventilation Air Rate}*{Eff Cooling}*(31.1-28.3)/{SEER}/1000*932*.77-{Ventilation Air Rate}*{Calculated Pressure Drop}/((33013/5.202)*0.67*0.70)*0.746*8760*.77+if({Heating Fuel Type} >=6, 1.08*{Ventilation Air Rate}*(68-36.5)*{Eff Heating}*6492*.77/1000000/{AFUE}/0.003412,0))",null,null,"{Measure:Quantity} *(0.0075*60*{Ventilation Air Rate}*{Eff Cooling}*(31.1-28.3)/{SEER}/1000-{Ventilation Air Rate}*{Calculated Pressure Drop}/((33013/5.202)*0.67*0.70)*0.746)",null,null,"{Measure:Quantity}*-{Ventilation Air Rate}*{Calculated Pressure Drop}/((33013/5.202)*0.67*0.70)*0.746*{Factor:WinterCF}","{Measure:Quantity} *(0.0075*60*{Ventilation Air Rate}*{Eff Cooling}*(31.1-28.3)/{SEER}/1000-{Ventilation Air Rate}*{Calculated Pressure Drop}/((33013/5.202)*0.67*0.70)*0.746)*{Factor:SummerCF}","{Measure:Quantity}*if({Heating Fuel Type} =1, 1.08*{Ventilation Air Rate}*(68-36.5)*{Eff Heating}*6492*.77/1000000/{AFUE},0)*10","{Measure:Quantity}*if({Heating Fuel Type} =2, 1.08*{Ventilation Air Rate}*(68-36.5)*{Eff Heating}*6492*.77/1000000/{AFUE},0)","{Measure:Quantity}*if({Heating Fuel Type} =3, 1.08*{Ventilation Air Rate}*(68-36.5)*{Eff Heating}*6492*.77/1000000/{AFUE},0)","{Measure:Quantity}*if({Heating Fuel Type} =4, 1.08*{Ventilation Air Rate}*(68-36.5)*{Eff Heating}*6492*.77/1000000/{AFUE},0)","{Measure:Quantity}*if({Heating Fuel Type} =5, 1.08*{Ventilation Air Rate}*(68-36.5)*{Eff Heating}*6492*.77/1000000/{AFUE},0)",null,"2021-05-25","2022-06-30",15,0.7,1,0.40939999999999999,0.25690000000000002,0.2084,0.12529999999999999,1,1,1,0.25,0,null,{"$f":"DU107","v":"{Measure:Quantity}"},1,{"$f":"DV107","v":"{Ventilation Air Rate}"},7200,{"$f":"DW107","v":"{Eff Heating}"},0.68,{"$f":"DX107","v":"{Eff Cooling}"},0.68,{"$f":"DY107","v":"{SEER}"},18,{"$f":"DZ107","v":"{Calculated Pressure Drop}"},2.8,{"$f":"EA107","v":"{Heating Fuel Type}"},2,{"$f":"EB107","v":"{AFUE}"},0.95,{"$f":"EC107","v":""},null,{"$f":"ED107","v":""},null,{"$f":"AS107 *(0.0075*60*AU107*AY107*(31.1-28.3)/BA107/1000*932*0.77-AU107*BC107/((33013/5.202)*0.67*0.7)*0.746*8760*0.77+IF(BE107 >=6, 1.08*AU107*(68-36.5)*AW107*6492*0.77/1000000/BG107/0.003412,0))","v":-33836.96293706022},0,0,{"$f":"AS107 *(0.0075*60*AU107*AY107*(31.1-28.3)/BA107/1000-AU107*BC107/((33013/5.202)*0.67*0.7)*0.746)","v":-4.7101935559894761},0,0,{"$f":"AS107*-AU107*BC107/((33013/5.202)*0.67*0.7)*0.746*AF107","v":-3.5370394891926331},{"$f":"AS107 *(0.0075*60*AU107*AY107*(31.1-28.3)/BA107/1000-AU107*BC107/((33013/5.202)*0.67*0.7)*0.746)*AG107","v":-4.7101935559894761},{"$f":"AS107*IF(BE107 =1, 1.08*AU107*(68-36.5)*AW107*6492*0.77/1000000/BG107,0)*10","v":0},{"$f":"AS107*IF(BE107 =2, 1.08*AU107*(68-36.5)*AW107*6492*0.77/1000000/BG107,0)","v":876.43830333978985},{"$f":"AS107*IF(BE107 =3, 1.08*AU107*(68-36.5)*AW107*6492*0.77/1000000/BG107,0)","v":0},{"$f":"AS107*IF(BE107 =4, 1.08*AU107*(68-36.5)*AW107*6492*0.77/1000000/BG107,0)","v":0},{"$f":"AS107*IF(BE107 =5, 1.08*AU107*(68-36.5)*AW107*6492*0.77/1000000/BG107,0)","v":0},0,null,"Res","Default DR",{"$f":"Benefits(BL107,BR107,BS107,BT107,BU107,BV107,BW107,BX107,BY107,BZ107,AE107,AH107,AI107,AJ107,AK107,AL107,AM107,AN107,AO107,AP107,CA107,CB107)","v":-45078.878930996179},-22187.638385043927,0,0,0,516433.59977560013,0,0,0,{"$f":"SUMPRODUCT(CC107:CK107,--(CC107:CK107>0))","v":516433.59977560013},{"$f":"-SUMPRODUCT(CC107:CK107,--(CC107:CK107<0))","v":67266.517316040103},null,{"$f":"AS107*AU107*3.75","v":27000},null,null,{"$f":"CM107+CO107","v":94266.517316040103},{"$f":"IF(NetOrGross=\"Net\",(1-AO107+AP107),1)","v":1},{"$f":"(SUMPRODUCT(CC107:CJ107,--(CC107:CJ107>0))+CN107)*CS107/((-SUMPRODUCT(CC107:CJ107,--(CC107:CJ107<0))+MAX(CO107,CV107)+CP107+CQ107)*CS107+IF(FRIncentives=\"Yes\",CV107*(1-CS107),0))","v":5.4784414920537792},1,{"$f":"AS107*AU107*IF(AW107 < 0.65, 2.25, IF(AW107 < 0.75, 2.5, IF(AW107 < 0.85, 2.75, 3)))","v":18000},null,"Electric","y",null,{"$f":"IF(F107=\"Manual Entry\",\"Manual\",IF(G107=\"\",0,\"X=\"&SUBSTITUTE(SUBSTITUTE(SUBSTITUTE(SUBSTITUTE(SUBSTITUTE(SUBSTITUTE(SUBSTITUTE(SUBSTITUTE(SUBSTITUTE(SUBSTITUTE(SUBSTITUTE(SUBSTITUTE(G107,$ED107,$ED$2&ROW($ED107)),$EC107,$EC$2&ROW($EC107)),$EB107,$EB$2&ROW($EB107)),$EA107,$EA$2&ROW($EA107)),$DZ107,$DZ$2&ROW($DZ107)),$DY107,$DY$2&ROW($DY107)),$DX107,$DX$2&ROW($DX107)),$DW107,$DW$2&ROW($DW107)),$DV107,$DV$2&ROW($DV107)),$DU107,$DU$2&ROW($DU107)),$DT107,$DT$2&ROW($DT107)),$DS107,$DS$2&ROW($DS107))))","v":"X=AS107*AU107*3.75"},{"$f":"IF(I107=\"Manual Entry\",\"Manual\",IF(J107=\"\",0,\"X=\"&SUBSTITUTE(SUBSTITUTE(SUBSTITUTE(SUBSTITUTE(SUBSTITUTE(SUBSTITUTE(SUBSTITUTE(SUBSTITUTE(SUBSTITUTE(SUBSTITUTE(SUBSTITUTE(SUBSTITUTE(J107,$ED107,$ED$2&ROW($ED107)),$EC107,$EC$2&ROW($EC107)),$EB107,$EB$2&ROW($EB107)),$EA107,$EA$2&ROW($EA107)),$DZ107,$DZ$2&ROW($DZ107)),$DY107,$DY$2&ROW($DY107)),$DX107,$DX$2&ROW($DX107)),$DW107,$DW$2&ROW($DW107)),$DV107,$DV$2&ROW($DV107)),$DU107,$DU$2&ROW($DU107)),$DT107,$DT$2&ROW($DT107)),$DS107,$DS$2&ROW($DS107))))","v":"X=AS107*AU107*if(AW107 < 0.65, 2.25, if(AW107 < 0.75, 2.50, if(AW107 < 0.85, 2.75, 3.00)))"},{"$f":"IF(O107=\"\",0,\"X=\"&SUBSTITUTE(SUBSTITUTE(SUBSTITUTE(SUBSTITUTE(SUBSTITUTE(SUBSTITUTE(SUBSTITUTE(SUBSTITUTE(SUBSTITUTE(SUBSTITUTE(SUBSTITUTE(SUBSTITUTE(O107,$ED107,$ED$2&ROW($ED107)),$EC107,$EC$2&ROW($EC107)),$EB107,$EB$2&ROW($EB107)),$EA107,$EA$2&ROW($EA107)),$DZ107,$DZ$2&ROW($DZ107)),$DY107,$DY$2&ROW($DY107)),$DX107,$DX$2&ROW($DX107)),$DW107,$DW$2&ROW($DW107)),$DV107,$DV$2&ROW($DV107)),$DU107,$DU$2&ROW($DU107)),$DT107,$DT$2&ROW($DT107)),$DS107,$DS$2&ROW($DS107)))","v":"X=AS107 *(0.0075*60*AU107*AY107*(31.1-28.3)/BA107/1000*932*.77-AU107*BC107/((33013/5.202)*0.67*0.70)*0.746*8760*.77+if(BE107 >=6, 1.08*AU107*(68-36.5)*AW107*6492*.77/1000000/BG107/0.003412,0))"},{"$f":"IF(P107=\"\",0,\"X=\"&SUBSTITUTE(SUBSTITUTE(SUBSTITUTE(SUBSTITUTE(SUBSTITUTE(SUBSTITUTE(SUBSTITUTE(SUBSTITUTE(SUBSTITUTE(SUBSTITUTE(SUBSTITUTE(SUBSTITUTE(P107,$ED107,$ED$2&ROW($ED107)),$EC107,$EC$2&ROW($EC107)),$EB107,$EB$2&ROW($EB107)),$EA107,$EA$2&ROW($EA107)),$DZ107,$DZ$2&ROW($DZ107)),$DY107,$DY$2&ROW($DY107)),$DX107,$DX$2&ROW($DX107)),$DW107,$DW$2&ROW($DW107)),$DV107,$DV$2&ROW($DV107)),$DU107,$DU$2&ROW($DU107)),$DT107,$DT$2&ROW($DT107)),$DS107,$DS$2&ROW($DS107)))","v":0},{"$f":"IF(Q107=\"\",0,\"X=\"&SUBSTITUTE(SUBSTITUTE(SUBSTITUTE(SUBSTITUTE(SUBSTITUTE(SUBSTITUTE(SUBSTITUTE(SUBSTITUTE(SUBSTITUTE(SUBSTITUTE(SUBSTITUTE(SUBSTITUTE(Q107,$ED107,$ED$2&ROW($ED107)),$EC107,$EC$2&ROW($EC107)),$EB107,$EB$2&ROW($EB107)),$EA107,$EA$2&ROW($EA107)),$DZ107,$DZ$2&ROW($DZ107)),$DY107,$DY$2&ROW($DY107)),$DX107,$DX$2&ROW($DX107)),$DW107,$DW$2&ROW($DW107)),$DV107,$DV$2&ROW($DV107)),$DU107,$DU$2&ROW($DU107)),$DT107,$DT$2&ROW($DT107)),$DS107,$DS$2&ROW($DS107)))","v":0},{"$f":"IF(R107=\"\",0,\"X=\"&SUBSTITUTE(SUBSTITUTE(SUBSTITUTE(SUBSTITUTE(SUBSTITUTE(SUBSTITUTE(SUBSTITUTE(SUBSTITUTE(SUBSTITUTE(SUBSTITUTE(SUBSTITUTE(SUBSTITUTE(R107,$ED107,$ED$2&ROW($ED107)),$EC107,$EC$2&ROW($EC107)),$EB107,$EB$2&ROW($EB107)),$EA107,$EA$2&ROW($EA107)),$DZ107,$DZ$2&ROW($DZ107)),$DY107,$DY$2&ROW($DY107)),$DX107,$DX$2&ROW($DX107)),$DW107,$DW$2&ROW($DW107)),$DV107,$DV$2&ROW($DV107)),$DU107,$DU$2&ROW($DU107)),$DT107,$DT$2&ROW($DT107)),$DS107,$DS$2&ROW($DS107)))","v":"X=AS107 *(0.0075*60*AU107*AY107*(31.1-28.3)/BA107/1000-AU107*BC107/((33013/5.202)*0.67*0.70)*0.746)"},{"$f":"IF(S107=\"\",0,\"X=\"&SUBSTITUTE(SUBSTITUTE(SUBSTITUTE(SUBSTITUTE(SUBSTITUTE(SUBSTITUTE(SUBSTITUTE(SUBSTITUTE(SUBSTITUTE(SUBSTITUTE(SUBSTITUTE(SUBSTITUTE(S107,$ED107,$ED$2&ROW($ED107)),$EC107,$EC$2&ROW($EC107)),$EB107,$EB$2&ROW($EB107)),$EA107,$EA$2&ROW($EA107)),$DZ107,$DZ$2&ROW($DZ107)),$DY107,$DY$2&ROW($DY107)),$DX107,$DX$2&ROW($DX107)),$DW107,$DW$2&ROW($DW107)),$DV107,$DV$2&ROW($DV107)),$DU107,$DU$2&ROW($DU107)),$DT107,$DT$2&ROW($DT107)),$DS107,$DS$2&ROW($DS107)))","v":0},{"$f":"IF(T107=\"\",0,\"X=\"&SUBSTITUTE(SUBSTITUTE(SUBSTITUTE(SUBSTITUTE(SUBSTITUTE(SUBSTITUTE(SUBSTITUTE(SUBSTITUTE(SUBSTITUTE(SUBSTITUTE(SUBSTITUTE(SUBSTITUTE(T107,$ED107,$ED$2&ROW($ED107)),$EC107,$EC$2&ROW($EC107)),$EB107,$EB$2&ROW($EB107)),$EA107,$EA$2&ROW($EA107)),$DZ107,$DZ$2&ROW($DZ107)),$DY107,$DY$2&ROW($DY107)),$DX107,$DX$2&ROW($DX107)),$DW107,$DW$2&ROW($DW107)),$DV107,$DV$2&ROW($DV107)),$DU107,$DU$2&ROW($DU107)),$DT107,$DT$2&ROW($DT107)),$DS107,$DS$2&ROW($DS107)))","v":0},{"$f":"IF(U107=\"\",0,\"X=\"&SUBSTITUTE(SUBSTITUTE(SUBSTITUTE(SUBSTITUTE(SUBSTITUTE(SUBSTITUTE(SUBSTITUTE(SUBSTITUTE(SUBSTITUTE(SUBSTITUTE(SUBSTITUTE(SUBSTITUTE(U107,$ED107,$ED$2&ROW($ED107)),$EC107,$EC$2&ROW($EC107)),$EB107,$EB$2&ROW($EB107)),$EA107,$EA$2&ROW($EA107)),$DZ107,$DZ$2&ROW($DZ107)),$DY107,$DY$2&ROW($DY107)),$DX107,$DX$2&ROW($DX107)),$DW107,$DW$2&ROW($DW107)),$DV107,$DV$2&ROW($DV107)),$DU107,$DU$2&ROW($DU107)),$DT107,$DT$2&ROW($DT107)),$DS107,$DS$2&ROW($DS107)))","v":"X=AS107*-AU107*BC107/((33013/5.202)*0.67*0.70)*0.746*AF107"},{"$f":"IF(V107=\"\",0,\"X=\"&SUBSTITUTE(SUBSTITUTE(SUBSTITUTE(SUBSTITUTE(SUBSTITUTE(SUBSTITUTE(SUBSTITUTE(SUBSTITUTE(SUBSTITUTE(SUBSTITUTE(SUBSTITUTE(SUBSTITUTE(V107,$ED107,$ED$2&ROW($ED107)),$EC107,$EC$2&ROW($EC107)),$EB107,$EB$2&ROW($EB107)),$EA107,$EA$2&ROW($EA107)),$DZ107,$DZ$2&ROW($DZ107)),$DY107,$DY$2&ROW($DY107)),$DX107,$DX$2&ROW($DX107)),$DW107,$DW$2&ROW($DW107)),$DV107,$DV$2&ROW($DV107)),$DU107,$DU$2&ROW($DU107)),$DT107,$DT$2&ROW($DT107)),$DS107,$DS$2&ROW($DS107)))","v":"X=AS107 *(0.0075*60*AU107*AY107*(31.1-28.3)/BA107/1000-AU107*BC107/((33013/5.202)*0.67*0.70)*0.746)*AG107"},{"$f":"IF(W107=\"\",0,\"X=\"&SUBSTITUTE(SUBSTITUTE(SUBSTITUTE(SUBSTITUTE(SUBSTITUTE(SUBSTITUTE(SUBSTITUTE(SUBSTITUTE(SUBSTITUTE(SUBSTITUTE(SUBSTITUTE(SUBSTITUTE(W107,$ED107,$ED$2&ROW($ED107)),$EC107,$EC$2&ROW($EC107)),$EB107,$EB$2&ROW($EB107)),$EA107,$EA$2&ROW($EA107)),$DZ107,$DZ$2&ROW($DZ107)),$DY107,$DY$2&ROW($DY107)),$DX107,$DX$2&ROW($DX107)),$DW107,$DW$2&ROW($DW107)),$DV107,$DV$2&ROW($DV107)),$DU107,$DU$2&ROW($DU107)),$DT107,$DT$2&ROW($DT107)),$DS107,$DS$2&ROW($DS107)))","v":"X=AS107*if(BE107 =1, 1.08*AU107*(68-36.5)*AW107*6492*.77/1000000/BG107,0)*10"},{"$f":"IF(X107=\"\",0,\"X=\"&SUBSTITUTE(SUBSTITUTE(SUBSTITUTE(SUBSTITUTE(SUBSTITUTE(SUBSTITUTE(SUBSTITUTE(SUBSTITUTE(SUBSTITUTE(SUBSTITUTE(SUBSTITUTE(SUBSTITUTE(X107,$ED107,$ED$2&ROW($ED107)),$EC107,$EC$2&ROW($EC107)),$EB107,$EB$2&ROW($EB107)),$EA107,$EA$2&ROW($EA107)),$DZ107,$DZ$2&ROW($DZ107)),$DY107,$DY$2&ROW($DY107)),$DX107,$DX$2&ROW($DX107)),$DW107,$DW$2&ROW($DW107)),$DV107,$DV$2&ROW($DV107)),$DU107,$DU$2&ROW($DU107)),$DT107,$DT$2&ROW($DT107)),$DS107,$DS$2&ROW($DS107)))","v":"X=AS107*if(BE107 =2, 1.08*AU107*(68-36.5)*AW107*6492*.77/1000000/BG107,0)"},{"$f":"IF(Y107=\"\",0,\"X=\"&SUBSTITUTE(SUBSTITUTE(SUBSTITUTE(SUBSTITUTE(SUBSTITUTE(SUBSTITUTE(SUBSTITUTE(SUBSTITUTE(SUBSTITUTE(SUBSTITUTE(SUBSTITUTE(SUBSTITUTE(Y107,$ED107,$ED$2&ROW($ED107)),$EC107,$EC$2&ROW($EC107)),$EB107,$EB$2&ROW($EB107)),$EA107,$EA$2&ROW($EA107)),$DZ107,$DZ$2&ROW($DZ107)),$DY107,$DY$2&ROW($DY107)),$DX107,$DX$2&ROW($DX107)),$DW107,$DW$2&ROW($DW107)),$DV107,$DV$2&ROW($DV107)),$DU107,$DU$2&ROW($DU107)),$DT107,$DT$2&ROW($DT107)),$DS107,$DS$2&ROW($DS107)))","v":"X=AS107*if(BE107 =3, 1.08*AU107*(68-36.5)*AW107*6492*.77/1000000/BG107,0)"},{"$f":"IF(Z107=\"\",0,\"X=\"&SUBSTITUTE(SUBSTITUTE(SUBSTITUTE(SUBSTITUTE(SUBSTITUTE(SUBSTITUTE(SUBSTITUTE(SUBSTITUTE(SUBSTITUTE(SUBSTITUTE(SUBSTITUTE(SUBSTITUTE(Z107,$ED107,$ED$2&ROW($ED107)),$EC107,$EC$2&ROW($EC107)),$EB107,$EB$2&ROW($EB107)),$EA107,$EA$2&ROW($EA107)),$DZ107,$DZ$2&ROW($DZ107)),$DY107,$DY$2&ROW($DY107)),$DX107,$DX$2&ROW($DX107)),$DW107,$DW$2&ROW($DW107)),$DV107,$DV$2&ROW($DV107)),$DU107,$DU$2&ROW($DU107)),$DT107,$DT$2&ROW($DT107)),$DS107,$DS$2&ROW($DS107)))","v":"X=AS107*if(BE107 =4, 1.08*AU107*(68-36.5)*AW107*6492*.77/1000000/BG107,0)"},{"$f":"IF(AA107=\"\",0,\"X=\"&SUBSTITUTE(SUBSTITUTE(SUBSTITUTE(SUBSTITUTE(SUBSTITUTE(SUBSTITUTE(SUBSTITUTE(SUBSTITUTE(SUBSTITUTE(SUBSTITUTE(SUBSTITUTE(SUBSTITUTE(AA107,$ED107,$ED$2&ROW($ED107)),$EC107,$EC$2&ROW($EC107)),$EB107,$EB$2&ROW($EB107)),$EA107,$EA$2&ROW($EA107)),$DZ107,$DZ$2&ROW($DZ107)),$DY107,$DY$2&ROW($DY107)),$DX107,$DX$2&ROW($DX107)),$DW107,$DW$2&ROW($DW107)),$DV107,$DV$2&ROW($DV107)),$DU107,$DU$2&ROW($DU107)),$DT107,$DT$2&ROW($DT107)),$DS107,$DS$2&ROW($DS107)))","v":"X=AS107*if(BE107 =5, 1.08*AU107*(68-36.5)*AW107*6492*.77/1000000/BG107,0)"},{"$f":"IF(AB107=\"\",0,\"X=\"&SUBSTITUTE(SUBSTITUTE(SUBSTITUTE(SUBSTITUTE(SUBSTITUTE(SUBSTITUTE(SUBSTITUTE(SUBSTITUTE(SUBSTITUTE(SUBSTITUTE(SUBSTITUTE(SUBSTITUTE(AB107,$ED107,$ED$2&ROW($ED107)),$EC107,$EC$2&ROW($EC107)),$EB107,$EB$2&ROW($EB107)),$EA107,$EA$2&ROW($EA107)),$DZ107,$DZ$2&ROW($DZ107)),$DY107,$DY$2&ROW($DY107)),$DX107,$DX$2&ROW($DX107)),$DW107,$DW$2&ROW($DW107)),$DV107,$DV$2&ROW($DV107)),$DU107,$DU$2&ROW($DU107)),$DT107,$DT$2&ROW($DT107)),$DS107,$DS$2&ROW($DS107)))","v":0},null,null,"{Factor:WinterCF}","{Factor:SummerCF}",{"$f":"IFERROR(INDEX($EG107:$IV107,MATCH(0,COUNTIF($DR107:DT107,$EG107:$IV107),0)),\"\")","v":"{Measure:Quantity}"},{"$f":"IFERROR(INDEX($EG107:$IV107,MATCH(0,COUNTIF($DR107:DU107,$EG107:$IV107),0)),\"\")","v":"{Ventilation Air Rate}"},{"$f":"IFERROR(INDEX($EG107:$IV107,MATCH(0,COUNTIF($DR107:DV107,$EG107:$IV107),0)),\"\")","v":"{Eff Heating}"},{"$f":"IFERROR(INDEX($EG107:$IV107,MATCH(0,COUNTIF($DR107:DW107,$EG107:$IV107),0)),\"\")","v":"{Eff Cooling}"},{"$f":"IFERROR(INDEX($EG107:$IV107,MATCH(0,COUNTIF($DR107:DX107,$EG107:$IV107),0)),\"\")","v":"{SEER}"},{"$f":"IFERROR(INDEX($EG107:$IV107,MATCH(0,COUNTIF($DR107:DY107,$EG107:$IV107),0)),\"\")","v":"{Calculated Pressure Drop}"},{"$f":"IFERROR(INDEX($EG107:$IV107,MATCH(0,COUNTIF($DR107:DZ107,$EG107:$IV107),0)),\"\")","v":"{Heating Fuel Type}"},{"$f":"IFERROR(INDEX($EG107:$IV107,MATCH(0,COUNTIF($DR107:EA107,$EG107:$IV107),0)),\"\")","v":"{AFUE}"},{"$f":"IFERROR(INDEX($EG107:$IV107,MATCH(0,COUNTIF($DR107:EB107,$EG107:$IV107),0)),\"\")","v":""},{"$f":"IFERROR(INDEX($EG107:$IV107,MATCH(0,COUNTIF($DR107:EC107,$EG107:$IV107),0)),\"\")","v":""},null,null,{"$f":"IFERROR(MID($G107,FIND(CHAR(160),SUBSTITUTE($G107,\"{\",CHAR(160),EG$1)),FIND(CHAR(160),SUBSTITUTE($G107,\"}\",CHAR(160),EG$1))-FIND(CHAR(160),SUBSTITUTE($G107,\"{\",CHAR(160),EG$1))+1),\"\")","v":"{Measure:Quantity}"},{"$f":"IFERROR(MID($G107,FIND(CHAR(160),SUBSTITUTE($G107,\"{\",CHAR(160),EH$1)),FIND(CHAR(160),SUBSTITUTE($G107,\"}\",CHAR(160),EH$1))-FIND(CHAR(160),SUBSTITUTE($G107,\"{\",CHAR(160),EH$1))+1),\"\")","v":"{Ventilation Air Rate}"},{"$f":"IFERROR(MID($G107,FIND(CHAR(160),SUBSTITUTE($G107,\"{\",CHAR(160),EI$1)),FIND(CHAR(160),SUBSTITUTE($G107,\"}\",CHAR(160),EI$1))-FIND(CHAR(160),SUBSTITUTE($G107,\"{\",CHAR(160),EI$1))+1),\"\")","v":""},{"$f":"IFERROR(MID($G107,FIND(CHAR(160),SUBSTITUTE($G107,\"{\",CHAR(160),EJ$1)),FIND(CHAR(160),SUBSTITUTE($G107,\"}\",CHAR(160),EJ$1))-FIND(CHAR(160),SUBSTITUTE($G107,\"{\",CHAR(160),EJ$1))+1),\"\")","v":""},{"$f":"IFERROR(MID($G107,FIND(CHAR(160),SUBSTITUTE($G107,\"{\",CHAR(160),EK$1)),FIND(CHAR(160),SUBSTITUTE($G107,\"}\",CHAR(160),EK$1))-FIND(CHAR(160),SUBSTITUTE($G107,\"{\",CHAR(160),EK$1))+1),\"\")","v":""},{"$f":"IFERROR(MID($G107,FIND(CHAR(160),SUBSTITUTE($G107,\"{\",CHAR(160),EL$1)),FIND(CHAR(160),SUBSTITUTE($G107,\"}\",CHAR(160),EL$1))-FIND(CHAR(160),SUBSTITUTE($G107,\"{\",CHAR(160),EL$1))+1),\"\")","v":""},{"$f":"IFERROR(MID($G107,FIND(CHAR(160),SUBSTITUTE($G107,\"{\",CHAR(160),EM$1)),FIND(CHAR(160),SUBSTITUTE($G107,\"}\",CHAR(160),EM$1))-FIND(CHAR(160),SUBSTITUTE($G107,\"{\",CHAR(160),EM$1))+1),\"\")","v":""},{"$f":"IFERROR(MID($G107,FIND(CHAR(160),SUBSTITUTE($G107,\"{\",CHAR(160),EN$1)),FIND(CHAR(160),SUBSTITUTE($G107,\"}\",CHAR(160),EN$1))-FIND(CHAR(160),SUBSTITUTE($G107,\"{\",CHAR(160),EN$1))+1),\"\")","v":""},{"$f":"IFERROR(MID($G107,FIND(CHAR(160),SUBSTITUTE($G107,\"{\",CHAR(160),EO$1)),FIND(CHAR(160),SUBSTITUTE($G107,\"}\",CHAR(160),EO$1))-FIND(CHAR(160),SUBSTITUTE($G107,\"{\",CHAR(160),EO$1))+1),\"\")","v":""},{"$f":"IFERROR(MID($G107,FIND(CHAR(160),SUBSTITUTE($G107,\"{\",CHAR(160),EP$1)),FIND(CHAR(160),SUBSTITUTE($G107,\"}\",CHAR(160),EP$1))-FIND(CHAR(160),SUBSTITUTE($G107,\"{\",CHAR(160),EP$1))+1),\"\")","v":""},{"$f":"IFERROR(MID($J107,FIND(CHAR(160),SUBSTITUTE($J107,\"{\",CHAR(160),EQ$1)),FIND(CHAR(160),SUBSTITUTE($J107,\"}\",CHAR(160),EQ$1))-FIND(CHAR(160),SUBSTITUTE($J107,\"{\",CHAR(160),EQ$1))+1),\"\")","v":"{Measure:Quantity}"},{"$f":"IFERROR(MID($J107,FIND(CHAR(160),SUBSTITUTE($J107,\"{\",CHAR(160),ER$1)),FIND(CHAR(160),SUBSTITUTE($J107,\"}\",CHAR(160),ER$1))-FIND(CHAR(160),SUBSTITUTE($J107,\"{\",CHAR(160),ER$1))+1),\"\")","v":"{Ventilation Air Rate}"},{"$f":"IFERROR(MID($J107,FIND(CHAR(160),SUBSTITUTE($J107,\"{\",CHAR(160),ES$1)),FIND(CHAR(160),SUBSTITUTE($J107,\"}\",CHAR(160),ES$1))-FIND(CHAR(160),SUBSTITUTE($J107,\"{\",CHAR(160),ES$1))+1),\"\")","v":"{Eff Heating}"},{"$f":"IFERROR(MID($J107,FIND(CHAR(160),SUBSTITUTE($J107,\"{\",CHAR(160),ET$1)),FIND(CHAR(160),SUBSTITUTE($J107,\"}\",CHAR(160),ET$1))-FIND(CHAR(160),SUBSTITUTE($J107,\"{\",CHAR(160),ET$1))+1),\"\")","v":"{Eff Heating}"},{"$f":"IFERROR(MID($J107,FIND(CHAR(160),SUBSTITUTE($J107,\"{\",CHAR(160),EU$1)),FIND(CHAR(160),SUBSTITUTE($J107,\"}\",CHAR(160),EU$1))-FIND(CHAR(160),SUBSTITUTE($J107,\"{\",CHAR(160),EU$1))+1),\"\")","v":"{Eff Heating}"},{"$f":"IFERROR(MID($J107,FIND(CHAR(160),SUBSTITUTE($J107,\"{\",CHAR(160),EV$1)),FIND(CHAR(160),SUBSTITUTE($J107,\"}\",CHAR(160),EV$1))-FIND(CHAR(160),SUBSTITUTE($J107,\"{\",CHAR(160),EV$1))+1),\"\")","v":""},{"$f":"IFERROR(MID($J107,FIND(CHAR(160),SUBSTITUTE($J107,\"{\",CHAR(160),EW$1)),FIND(CHAR(160),SUBSTITUTE($J107,\"}\",CHAR(160),EW$1))-FIND(CHAR(160),SUBSTITUTE($J107,\"{\",CHAR(160),EW$1))+1),\"\")","v":""},{"$f":"IFERROR(MID($J107,FIND(CHAR(160),SUBSTITUTE($J107,\"{\",CHAR(160),EX$1)),FIND(CHAR(160),SUBSTITUTE($J107,\"}\",CHAR(160),EX$1))-FIND(CHAR(160),SUBSTITUTE($J107,\"{\",CHAR(160),EX$1))+1),\"\")","v":""},{"$f":"IFERROR(MID($J107,FIND(CHAR(160),SUBSTITUTE($J107,\"{\",CHAR(160),EY$1)),FIND(CHAR(160),SUBSTITUTE($J107,\"}\",CHAR(160),EY$1))-FIND(CHAR(160),SUBSTITUTE($J107,\"{\",CHAR(160),EY$1))+1),\"\")","v":""},{"$f":"IFERROR(MID($J107,FIND(CHAR(160),SUBSTITUTE($J107,\"{\",CHAR(160),EZ$1)),FIND(CHAR(160),SUBSTITUTE($J107,\"}\",CHAR(160),EZ$1))-FIND(CHAR(160),SUBSTITUTE($J107,\"{\",CHAR(160),EZ$1))+1),\"\")","v":""},{"$f":"IFERROR(MID($J107,FIND(CHAR(160),SUBSTITUTE($J107,\"{\",CHAR(160),FA$1)),FIND(CHAR(160),SUBSTITUTE($J107,\"}\",CHAR(160),FA$1))-FIND(CHAR(160),SUBSTITUTE($J107,\"{\",CHAR(160),FA$1))+1),\"\")","v":"{Measure:Quantity}"},{"$f":"IFERROR(MID($J107,FIND(CHAR(160),SUBSTITUTE($J107,\"{\",CHAR(160),FB$1)),FIND(CHAR(160),SUBSTITUTE($J107,\"}\",CHAR(160),FB$1))-FIND(CHAR(160),SUBSTITUTE($J107,\"{\",CHAR(160),FB$1))+1),\"\")","v":"{Ventilation Air Rate}"},{"$f":"IFERROR(MID($O107,FIND(CHAR(160),SUBSTITUTE($O107,\"{\",CHAR(160),FC$1)),FIND(CHAR(160),SUBSTITUTE($O107,\"}\",CHAR(160),FC$1))-FIND(CHAR(160),SUBSTITUTE($O107,\"{\",CHAR(160),FC$1))+1),\"\")","v":"{Eff Cooling}"},{"$f":"IFERROR(MID($O107,FIND(CHAR(160),SUBSTITUTE($O107,\"{\",CHAR(160),FD$1)),FIND(CHAR(160),SUBSTITUTE($O107,\"}\",CHAR(160),FD$1))-FIND(CHAR(160),SUBSTITUTE($O107,\"{\",CHAR(160),FD$1))+1),\"\")","v":"{SEER}"},{"$f":"IFERROR(MID($O107,FIND(CHAR(160),SUBSTITUTE($O107,\"{\",CHAR(160),FE$1)),FIND(CHAR(160),SUBSTITUTE($O107,\"}\",CHAR(160),FE$1))-FIND(CHAR(160),SUBSTITUTE($O107,\"{\",CHAR(160),FE$1))+1),\"\")","v":"{Ventilation Air Rate}"},{"$f":"IFERROR(MID($O107,FIND(CHAR(160),SUBSTITUTE($O107,\"{\",CHAR(160),FF$1)),FIND(CHAR(160),SUBSTITUTE($O107,\"}\",CHAR(160),FF$1))-FIND(CHAR(160),SUBSTITUTE($O107,\"{\",CHAR(160),FF$1))+1),\"\")","v":"{Calculated Pressure Drop}"},{"$f":"IFERROR(MID($O107,FIND(CHAR(160),SUBSTITUTE($O107,\"{\",CHAR(160),FG$1)),FIND(CHAR(160),SUBSTITUTE($O107,\"}\",CHAR(160),FG$1))-FIND(CHAR(160),SUBSTITUTE($O107,\"{\",CHAR(160),FG$1))+1),\"\")","v":"{Heating Fuel Type}"},{"$f":"IFERROR(MID($O107,FIND(CHAR(160),SUBSTITUTE($O107,\"{\",CHAR(160),FH$1)),FIND(CHAR(160),SUBSTITUTE($O107,\"}\",CHAR(160),FH$1))-FIND(CHAR(160),SUBSTITUTE($O107,\"{\",CHAR(160),FH$1))+1),\"\")","v":"{Ventilation Air Rate}"},{"$f":"IFERROR(MID($O107,FIND(CHAR(160),SUBSTITUTE($O107,\"{\",CHAR(160),FI$1)),FIND(CHAR(160),SUBSTITUTE($O107,\"}\",CHAR(160),FI$1))-FIND(CHAR(160),SUBSTITUTE($O107,\"{\",CHAR(160),FI$1))+1),\"\")","v":"{Eff Heating}"},{"$f":"IFERROR(MID($O107,FIND(CHAR(160),SUBSTITUTE($O107,\"{\",CHAR(160),FJ$1)),FIND(CHAR(160),SUBSTITUTE($O107,\"}\",CHAR(160),FJ$1))-FIND(CHAR(160),SUBSTITUTE($O107,\"{\",CHAR(160),FJ$1))+1),\"\")","v":"{AFUE}"},{"$f":"IFERROR(MID($O107,FIND(CHAR(160),SUBSTITUTE($O107,\"{\",CHAR(160),FK$1)),FIND(CHAR(160),SUBSTITUTE($O107,\"}\",CHAR(160),FK$1))-FIND(CHAR(160),SUBSTITUTE($O107,\"{\",CHAR(160),FK$1))+1),\"\")","v":"{Measure:Quantity}"},{"$f":"IFERROR(MID($O107,FIND(CHAR(160),SUBSTITUTE($O107,\"{\",CHAR(160),FL$1)),FIND(CHAR(160),SUBSTITUTE($O107,\"}\",CHAR(160),FL$1))-FIND(CHAR(160),SUBSTITUTE($O107,\"{\",CHAR(160),FL$1))+1),\"\")","v":"{Ventilation Air Rate}"},{"$f":"IFERROR(MID($R107,FIND(CHAR(160),SUBSTITUTE($R107,\"{\",CHAR(160),FM$1)),FIND(CHAR(160),SUBSTITUTE($R107,\"}\",CHAR(160),FM$1))-FIND(CHAR(160),SUBSTITUTE($R107,\"{\",CHAR(160),FM$1))+1),\"\")","v":"{Eff Cooling}"},{"$f":"IFERROR(MID($R107,FIND(CHAR(160),SUBSTITUTE($R107,\"{\",CHAR(160),FN$1)),FIND(CHAR(160),SUBSTITUTE($R107,\"}\",CHAR(160),FN$1))-FIND(CHAR(160),SUBSTITUTE($R107,\"{\",CHAR(160),FN$1))+1),\"\")","v":"{SEER}"},{"$f":"IFERROR(MID($R107,FIND(CHAR(160),SUBSTITUTE($R107,\"{\",CHAR(160),FO$1)),FIND(CHAR(160),SUBSTITUTE($R107,\"}\",CHAR(160),FO$1))-FIND(CHAR(160),SUBSTITUTE($R107,\"{\",CHAR(160),FO$1))+1),\"\")","v":"{Ventilation Air Rate}"},{"$f":"IFERROR(MID($R107,FIND(CHAR(160),SUBSTITUTE($R107,\"{\",CHAR(160),FP$1)),FIND(CHAR(160),SUBSTITUTE($R107,\"}\",CHAR(160),FP$1))-FIND(CHAR(160),SUBSTITUTE($R107,\"{\",CHAR(160),FP$1))+1),\"\")","v":"{Calculated Pressure Drop}"},{"$f":"IFERROR(MID($R107,FIND(CHAR(160),SUBSTITUTE($R107,\"{\",CHAR(160),FQ$1)),FIND(CHAR(160),SUBSTITUTE($R107,\"}\",CHAR(160),FQ$1))-FIND(CHAR(160),SUBSTITUTE($R107,\"{\",CHAR(160),FQ$1))+1),\"\")","v":""},{"$f":"IFERROR(MID($R107,FIND(CHAR(160),SUBSTITUTE($R107,\"{\",CHAR(160),FR$1)),FIND(CHAR(160),SUBSTITUTE($R107,\"}\",CHAR(160),FR$1))-FIND(CHAR(160),SUBSTITUTE($R107,\"{\",CHAR(160),FR$1))+1),\"\")","v":""},{"$f":"IFERROR(MID($R107,FIND(CHAR(160),SUBSTITUTE($R107,\"{\",CHAR(160),FS$1)),FIND(CHAR(160),SUBSTITUTE($R107,\"}\",CHAR(160),FS$1))-FIND(CHAR(160),SUBSTITUTE($R107,\"{\",CHAR(160),FS$1))+1),\"\")","v":""},{"$f":"IFERROR(MID($R107,FIND(CHAR(160),SUBSTITUTE($R107,\"{\",CHAR(160),FT$1)),FIND(CHAR(160),SUBSTITUTE($R107,\"}\",CHAR(160),FT$1))-FIND(CHAR(160),SUBSTITUTE($R107,\"{\",CHAR(160),FT$1))+1),\"\")","v":""},{"$f":"IFERROR(MID($R107,FIND(CHAR(160),SUBSTITUTE($R107,\"{\",CHAR(160),FU$1)),FIND(CHAR(160),SUBSTITUTE($R107,\"}\",CHAR(160),FU$1))-FIND(CHAR(160),SUBSTITUTE($R107,\"{\",CHAR(160),FU$1))+1),\"\")","v":"{Measure:Quantity}"},{"$f":"IFERROR(MID($R107,FIND(CHAR(160),SUBSTITUTE($R107,\"{\",CHAR(160),FV$1)),FIND(CHAR(160),SUBSTITUTE($R107,\"}\",CHAR(160),FV$1))-FIND(CHAR(160),SUBSTITUTE($R107,\"{\",CHAR(160),FV$1))+1),\"\")","v":"{Ventilation Air Rate}"},{"$f":"IFERROR(MID($U107,FIND(CHAR(160),SUBSTITUTE($U107,\"{\",CHAR(160),FW$1)),FIND(CHAR(160),SUBSTITUTE($U107,\"}\",CHAR(160),FW$1))-FIND(CHAR(160),SUBSTITUTE($U107,\"{\",CHAR(160),FW$1))+1),\"\")","v":"{Calculated Pressure Drop}"},{"$f":"IFERROR(MID($U107,FIND(CHAR(160),SUBSTITUTE($U107,\"{\",CHAR(160),FX$1)),FIND(CHAR(160),SUBSTITUTE($U107,\"}\",CHAR(160),FX$1))-FIND(CHAR(160),SUBSTITUTE($U107,\"{\",CHAR(160),FX$1))+1),\"\")","v":"{Factor:WinterCF}"},{"$f":"IFERROR(MID($U107,FIND(CHAR(160),SUBSTITUTE($U107,\"{\",CHAR(160),FY$1)),FIND(CHAR(160),SUBSTITUTE($U107,\"}\",CHAR(160),FY$1))-FIND(CHAR(160),SUBSTITUTE($U107,\"{\",CHAR(160),FY$1))+1),\"\")","v":""},{"$f":"IFERROR(MID($U107,FIND(CHAR(160),SUBSTITUTE($U107,\"{\",CHAR(160),FZ$1)),FIND(CHAR(160),SUBSTITUTE($U107,\"}\",CHAR(160),FZ$1))-FIND(CHAR(160),SUBSTITUTE($U107,\"{\",CHAR(160),FZ$1))+1),\"\")","v":""},{"$f":"IFERROR(MID($U107,FIND(CHAR(160),SUBSTITUTE($U107,\"{\",CHAR(160),GA$1)),FIND(CHAR(160),SUBSTITUTE($U107,\"}\",CHAR(160),GA$1))-FIND(CHAR(160),SUBSTITUTE($U107,\"{\",CHAR(160),GA$1))+1),\"\")","v":""},{"$f":"IFERROR(MID($U107,FIND(CHAR(160),SUBSTITUTE($U107,\"{\",CHAR(160),GB$1)),FIND(CHAR(160),SUBSTITUTE($U107,\"}\",CHAR(160),GB$1))-FIND(CHAR(160),SUBSTITUTE($U107,\"{\",CHAR(160),GB$1))+1),\"\")","v":""},{"$f":"IFERROR(MID($U107,FIND(CHAR(160),SUBSTITUTE($U107,\"{\",CHAR(160),GC$1)),FIND(CHAR(160),SUBSTITUTE($U107,\"}\",CHAR(160),GC$1))-FIND(CHAR(160),SUBSTITUTE($U107,\"{\",CHAR(160),GC$1))+1),\"\")","v":""},{"$f":"IFERROR(MID($U107,FIND(CHAR(160),SUBSTITUTE($U107,\"{\",CHAR(160),GD$1)),FIND(CHAR(160),SUBSTITUTE($U107,\"}\",CHAR(160),GD$1))-FIND(CHAR(160),SUBSTITUTE($U107,\"{\",CHAR(160),GD$1))+1),\"\")","v":""},{"$f":"IFERROR(MID($U107,FIND(CHAR(160),SUBSTITUTE($U107,\"{\",CHAR(160),GE$1)),FIND(CHAR(160),SUBSTITUTE($U107,\"}\",CHAR(160),GE$1))-FIND(CHAR(160),SUBSTITUTE($U107,\"{\",CHAR(160),GE$1))+1),\"\")","v":"{Measure:Quantity}"},{"$f":"IFERROR(MID($U107,FIND(CHAR(160),SUBSTITUTE($U107,\"{\",CHAR(160),GF$1)),FIND(CHAR(160),SUBSTITUTE($U107,\"}\",CHAR(160),GF$1))-FIND(CHAR(160),SUBSTITUTE($U107,\"{\",CHAR(160),GF$1))+1),\"\")","v":"{Ventilation Air Rate}"},{"$f":"IFERROR(MID($V107,FIND(CHAR(160),SUBSTITUTE($V107,\"{\",CHAR(160),GG$1)),FIND(CHAR(160),SUBSTITUTE($V107,\"}\",CHAR(160),GG$1))-FIND(CHAR(160),SUBSTITUTE($V107,\"{\",CHAR(160),GG$1))+1),\"\")","v":"{Eff Cooling}"},{"$f":"IFERROR(MID($V107,FIND(CHAR(160),SUBSTITUTE($V107,\"{\",CHAR(160),GH$1)),FIND(CHAR(160),SUBSTITUTE($V107,\"}\",CHAR(160),GH$1))-FIND(CHAR(160),SUBSTITUTE($V107,\"{\",CHAR(160),GH$1))+1),\"\")","v":"{SEER}"},{"$f":"IFERROR(MID($V107,FIND(CHAR(160),SUBSTITUTE($V107,\"{\",CHAR(160),GI$1)),FIND(CHAR(160),SUBSTITUTE($V107,\"}\",CHAR(160),GI$1))-FIND(CHAR(160),SUBSTITUTE($V107,\"{\",CHAR(160),GI$1))+1),\"\")","v":"{Ventilation Air Rate}"},{"$f":"IFERROR(MID($V107,FIND(CHAR(160),SUBSTITUTE($V107,\"{\",CHAR(160),GJ$1)),FIND(CHAR(160),SUBSTITUTE($V107,\"}\",CHAR(160),GJ$1))-FIND(CHAR(160),SUBSTITUTE($V107,\"{\",CHAR(160),GJ$1))+1),\"\")","v":"{Calculated Pressure Drop}"},{"$f":"IFERROR(MID($V107,FIND(CHAR(160),SUBSTITUTE($V107,\"{\",CHAR(160),GK$1)),FIND(CHAR(160),SUBSTITUTE($V107,\"}\",CHAR(160),GK$1))-FIND(CHAR(160),SUBSTITUTE($V107,\"{\",CHAR(160),GK$1))+1),\"\")","v":"{Factor:SummerCF}"},{"$f":"IFERROR(MID($V107,FIND(CHAR(160),SUBSTITUTE($V107,\"{\",CHAR(160),GL$1)),FIND(CHAR(160),SUBSTITUTE($V107,\"}\",CHAR(160),GL$1))-FIND(CHAR(160),SUBSTITUTE($V107,\"{\",CHAR(160),GL$1))+1),\"\")","v":""},{"$f":"IFERROR(MID($V107,FIND(CHAR(160),SUBSTITUTE($V107,\"{\",CHAR(160),GM$1)),FIND(CHAR(160),SUBSTITUTE($V107,\"}\",CHAR(160),GM$1))-FIND(CHAR(160),SUBSTITUTE($V107,\"{\",CHAR(160),GM$1))+1),\"\")","v":""},{"$f":"IFERROR(MID($V107,FIND(CHAR(160),SUBSTITUTE($V107,\"{\",CHAR(160),GN$1)),FIND(CHAR(160),SUBSTITUTE($V107,\"}\",CHAR(160),GN$1))-FIND(CHAR(160),SUBSTITUTE($V107,\"{\",CHAR(160),GN$1))+1),\"\")","v":""},{"$f":"IFERROR(MID($V107,FIND(CHAR(160),SUBSTITUTE($V107,\"{\",CHAR(160),GO$1)),FIND(CHAR(160),SUBSTITUTE($V107,\"}\",CHAR(160),GO$1))-FIND(CHAR(160),SUBSTITUTE($V107,\"{\",CHAR(160),GO$1))+1),\"\")","v":"{Measure:Quantity}"},{"$f":"IFERROR(MID($V107,FIND(CHAR(160),SUBSTITUTE($V107,\"{\",CHAR(160),GP$1)),FIND(CHAR(160),SUBSTITUTE($V107,\"}\",CHAR(160),GP$1))-FIND(CHAR(160),SUBSTITUTE($V107,\"{\",CHAR(160),GP$1))+1),\"\")","v":"{Ventilation Air Rate}"},{"$f":"IFERROR(MID($W107,FIND(CHAR(160),SUBSTITUTE($W107,\"{\",CHAR(160),GQ$1)),FIND(CHAR(160),SUBSTITUTE($W107,\"}\",CHAR(160),GQ$1))-FIND(CHAR(160),SUBSTITUTE($W107,\"{\",CHAR(160),GQ$1))+1),\"\")","v":"{Ventilation Air Rate}"},{"$f":"IFERROR(MID($W107,FIND(CHAR(160),SUBSTITUTE($W107,\"{\",CHAR(160),GR$1)),FIND(CHAR(160),SUBSTITUTE($W107,\"}\",CHAR(160),GR$1))-FIND(CHAR(160),SUBSTITUTE($W107,\"{\",CHAR(160),GR$1))+1),\"\")","v":"{Eff Heating}"},{"$f":"IFERROR(MID($W107,FIND(CHAR(160),SUBSTITUTE($W107,\"{\",CHAR(160),GS$1)),FIND(CHAR(160),SUBSTITUTE($W107,\"}\",CHAR(160),GS$1))-FIND(CHAR(160),SUBSTITUTE($W107,\"{\",CHAR(160),GS$1))+1),\"\")","v":"{AFUE}"},{"$f":"IFERROR(MID($W107,FIND(CHAR(160),SUBSTITUTE($W107,\"{\",CHAR(160),GT$1)),FIND(CHAR(160),SUBSTITUTE($W107,\"}\",CHAR(160),GT$1))-FIND(CHAR(160),SUBSTITUTE($W107,\"{\",CHAR(160),GT$1))+1),\"\")","v":""},{"$f":"IFERROR(MID($W107,FIND(CHAR(160),SUBSTITUTE($W107,\"{\",CHAR(160),GU$1)),FIND(CHAR(160),SUBSTITUTE($W107,\"}\",CHAR(160),GU$1))-FIND(CHAR(160),SUBSTITUTE($W107,\"{\",CHAR(160),GU$1))+1),\"\")","v":""},{"$f":"IFERROR(MID($W107,FIND(CHAR(160),SUBSTITUTE($W107,\"{\",CHAR(160),GV$1)),FIND(CHAR(160),SUBSTITUTE($W107,\"}\",CHAR(160),GV$1))-FIND(CHAR(160),SUBSTITUTE($W107,\"{\",CHAR(160),GV$1))+1),\"\")","v":""},{"$f":"IFERROR(MID($W107,FIND(CHAR(160),SUBSTITUTE($W107,\"{\",CHAR(160),GW$1)),FIND(CHAR(160),SUBSTITUTE($W107,\"}\",CHAR(160),GW$1))-FIND(CHAR(160),SUBSTITUTE($W107,\"{\",CHAR(160),GW$1))+1),\"\")","v":""},{"$f":"IFERROR(MID($W107,FIND(CHAR(160),SUBSTITUTE($W107,\"{\",CHAR(160),GX$1)),FIND(CHAR(160),SUBSTITUTE($W107,\"}\",CHAR(160),GX$1))-FIND(CHAR(160),SUBSTITUTE($W107,\"{\",CHAR(160),GX$1))+1),\"\")","v":""},{"$f":"IFERROR(MID($W107,FIND(CHAR(160),SUBSTITUTE($W107,\"{\",CHAR(160),GY$1)),FIND(CHAR(160),SUBSTITUTE($W107,\"}\",CHAR(160),GY$1))-FIND(CHAR(160),SUBSTITUTE($W107,\"{\",CHAR(160),GY$1))+1),\"\")","v":"{Measure:Quantity}"},{"$f":"IFERROR(MID($W107,FIND(CHAR(160),SUBSTITUTE($W107,\"{\",CHAR(160),GZ$1)),FIND(CHAR(160),SUBSTITUTE($W107,\"}\",CHAR(160),GZ$1))-FIND(CHAR(160),SUBSTITUTE($W107,\"{\",CHAR(160),GZ$1))+1),\"\")","v":"{Heating Fuel Type}"},{"$f":"IFERROR(MID($X107,FIND(CHAR(160),SUBSTITUTE($X107,\"{\",CHAR(160),HA$1)),FIND(CHAR(160),SUBSTITUTE($X107,\"}\",CHAR(160),HA$1))-FIND(CHAR(160),SUBSTITUTE($X107,\"{\",CHAR(160),HA$1))+1),\"\")","v":"{Ventilation Air Rate}"},{"$f":"IFERROR(MID($X107,FIND(CHAR(160),SUBSTITUTE($X107,\"{\",CHAR(160),HB$1)),FIND(CHAR(160),SUBSTITUTE($X107,\"}\",CHAR(160),HB$1))-FIND(CHAR(160),SUBSTITUTE($X107,\"{\",CHAR(160),HB$1))+1),\"\")","v":"{Eff Heating}"},{"$f":"IFERROR(MID($X107,FIND(CHAR(160),SUBSTITUTE($X107,\"{\",CHAR(160),HC$1)),FIND(CHAR(160),SUBSTITUTE($X107,\"}\",CHAR(160),HC$1))-FIND(CHAR(160),SUBSTITUTE($X107,\"{\",CHAR(160),HC$1))+1),\"\")","v":"{AFUE}"},{"$f":"IFERROR(MID($X107,FIND(CHAR(160),SUBSTITUTE($X107,\"{\",CHAR(160),HD$1)),FIND(CHAR(160),SUBSTITUTE($X107,\"}\",CHAR(160),HD$1))-FIND(CHAR(160),SUBSTITUTE($X107,\"{\",CHAR(160),HD$1))+1),\"\")","v":""},{"$f":"IFERROR(MID($X107,FIND(CHAR(160),SUBSTITUTE($X107,\"{\",CHAR(160),HE$1)),FIND(CHAR(160),SUBSTITUTE($X107,\"}\",CHAR(160),HE$1))-FIND(CHAR(160),SUBSTITUTE($X107,\"{\",CHAR(160),HE$1))+1),\"\")","v":""},{"$f":"IFERROR(MID($X107,FIND(CHAR(160),SUBSTITUTE($X107,\"{\",CHAR(160),HF$1)),FIND(CHAR(160),SUBSTITUTE($X107,\"}\",CHAR(160),HF$1))-FIND(CHAR(160),SUBSTITUTE($X107,\"{\",CHAR(160),HF$1))+1),\"\")","v":""},{"$f":"IFERROR(MID($X107,FIND(CHAR(160),SUBSTITUTE($X107,\"{\",CHAR(160),HG$1)),FIND(CHAR(160),SUBSTITUTE($X107,\"}\",CHAR(160),HG$1))-FIND(CHAR(160),SUBSTITUTE($X107,\"{\",CHAR(160),HG$1))+1),\"\")","v":""},{"$f":"IFERROR(MID($X107,FIND(CHAR(160),SUBSTITUTE($X107,\"{\",CHAR(160),HH$1)),FIND(CHAR(160),SUBSTITUTE($X107,\"}\",CHAR(160),HH$1))-FIND(CHAR(160),SUBSTITUTE($X107,\"{\",CHAR(160),HH$1))+1),\"\")","v":""},{"$f":"IFERROR(MID($X107,FIND(CHAR(160),SUBSTITUTE($X107,\"{\",CHAR(160),HI$1)),FIND(CHAR(160),SUBSTITUTE($X107,\"}\",CHAR(160),HI$1))-FIND(CHAR(160),SUBSTITUTE($X107,\"{\",CHAR(160),HI$1))+1),\"\")","v":"{Measure:Quantity}"},{"$f":"IFERROR(MID($X107,FIND(CHAR(160),SUBSTITUTE($X107,\"{\",CHAR(160),HJ$1)),FIND(CHAR(160),SUBSTITUTE($X107,\"}\",CHAR(160),HJ$1))-FIND(CHAR(160),SUBSTITUTE($X107,\"{\",CHAR(160),HJ$1))+1),\"\")","v":"{Heating Fuel Type}"},{"$f":"IFERROR(MID($Y107,FIND(CHAR(160),SUBSTITUTE($Y107,\"{\",CHAR(160),HK$1)),FIND(CHAR(160),SUBSTITUTE($Y107,\"}\",CHAR(160),HK$1))-FIND(CHAR(160),SUBSTITUTE($Y107,\"{\",CHAR(160),HK$1))+1),\"\")","v":"{Ventilation Air Rate}"},{"$f":"IFERROR(MID($Y107,FIND(CHAR(160),SUBSTITUTE($Y107,\"{\",CHAR(160),HL$1)),FIND(CHAR(160),SUBSTITUTE($Y107,\"}\",CHAR(160),HL$1))-FIND(CHAR(160),SUBSTITUTE($Y107,\"{\",CHAR(160),HL$1))+1),\"\")","v":"{Eff Heating}"},{"$f":"IFERROR(MID($Y107,FIND(CHAR(160),SUBSTITUTE($Y107,\"{\",CHAR(160),HM$1)),FIND(CHAR(160),SUBSTITUTE($Y107,\"}\",CHAR(160),HM$1))-FIND(CHAR(160),SUBSTITUTE($Y107,\"{\",CHAR(160),HM$1))+1),\"\")","v":"{AFUE}"},{"$f":"IFERROR(MID($Y107,FIND(CHAR(160),SUBSTITUTE($Y107,\"{\",CHAR(160),HN$1)),FIND(CHAR(160),SUBSTITUTE($Y107,\"}\",CHAR(160),HN$1))-FIND(CHAR(160),SUBSTITUTE($Y107,\"{\",CHAR(160),HN$1))+1),\"\")","v":""},{"$f":"IFERROR(MID($Y107,FIND(CHAR(160),SUBSTITUTE($Y107,\"{\",CHAR(160),HO$1)),FIND(CHAR(160),SUBSTITUTE($Y107,\"}\",CHAR(160),HO$1))-FIND(CHAR(160),SUBSTITUTE($Y107,\"{\",CHAR(160),HO$1))+1),\"\")","v":""},{"$f":"IFERROR(MID($Y107,FIND(CHAR(160),SUBSTITUTE($Y107,\"{\",CHAR(160),HP$1)),FIND(CHAR(160),SUBSTITUTE($Y107,\"}\",CHAR(160),HP$1))-FIND(CHAR(160),SUBSTITUTE($Y107,\"{\",CHAR(160),HP$1))+1),\"\")","v":""},{"$f":"IFERROR(MID($Y107,FIND(CHAR(160),SUBSTITUTE($Y107,\"{\",CHAR(160),HQ$1)),FIND(CHAR(160),SUBSTITUTE($Y107,\"}\",CHAR(160),HQ$1))-FIND(CHAR(160),SUBSTITUTE($Y107,\"{\",CHAR(160),HQ$1))+1),\"\")","v":""},{"$f":"IFERROR(MID($Y107,FIND(CHAR(160),SUBSTITUTE($Y107,\"{\",CHAR(160),HR$1)),FIND(CHAR(160),SUBSTITUTE($Y107,\"}\",CHAR(160),HR$1))-FIND(CHAR(160),SUBSTITUTE($Y107,\"{\",CHAR(160),HR$1))+1),\"\")","v":""},{"$f":"IFERROR(MID($Y107,FIND(CHAR(160),SUBSTITUTE($Y107,\"{\",CHAR(160),HS$1)),FIND(CHAR(160),SUBSTITUTE($Y107,\"}\",CHAR(160),HS$1))-FIND(CHAR(160),SUBSTITUTE($Y107,\"{\",CHAR(160),HS$1))+1),\"\")","v":"{Measure:Quantity}"},{"$f":"IFERROR(MID($Y107,FIND(CHAR(160),SUBSTITUTE($Y107,\"{\",CHAR(160),HT$1)),FIND(CHAR(160),SUBSTITUTE($Y107,\"}\",CHAR(160),HT$1))-FIND(CHAR(160),SUBSTITUTE($Y107,\"{\",CHAR(160),HT$1))+1),\"\")","v":"{Heating Fuel Type}"},{"$f":"IFERROR(MID($Z107,FIND(CHAR(160),SUBSTITUTE($Z107,\"{\",CHAR(160),HU$1)),FIND(CHAR(160),SUBSTITUTE($Z107,\"}\",CHAR(160),HU$1))-FIND(CHAR(160),SUBSTITUTE($Z107,\"{\",CHAR(160),HU$1))+1),\"\")","v":"{Ventilation Air Rate}"},{"$f":"IFERROR(MID($Z107,FIND(CHAR(160),SUBSTITUTE($Z107,\"{\",CHAR(160),HV$1)),FIND(CHAR(160),SUBSTITUTE($Z107,\"}\",CHAR(160),HV$1))-FIND(CHAR(160),SUBSTITUTE($Z107,\"{\",CHAR(160),HV$1))+1),\"\")","v":"{Eff Heating}"},{"$f":"IFERROR(MID($Z107,FIND(CHAR(160),SUBSTITUTE($Z107,\"{\",CHAR(160),HW$1)),FIND(CHAR(160),SUBSTITUTE($Z107,\"}\",CHAR(160),HW$1))-FIND(CHAR(160),SUBSTITUTE($Z107,\"{\",CHAR(160),HW$1))+1),\"\")","v":"{AFUE}"},{"$f":"IFERROR(MID($Z107,FIND(CHAR(160),SUBSTITUTE($Z107,\"{\",CHAR(160),HX$1)),FIND(CHAR(160),SUBSTITUTE($Z107,\"}\",CHAR(160),HX$1))-FIND(CHAR(160),SUBSTITUTE($Z107,\"{\",CHAR(160),HX$1))+1),\"\")","v":""},{"$f":"IFERROR(MID($Z107,FIND(CHAR(160),SUBSTITUTE($Z107,\"{\",CHAR(160),HY$1)),FIND(CHAR(160),SUBSTITUTE($Z107,\"}\",CHAR(160),HY$1))-FIND(CHAR(160),SUBSTITUTE($Z107,\"{\",CHAR(160),HY$1))+1),\"\")","v":""},{"$f":"IFERROR(MID($Z107,FIND(CHAR(160),SUBSTITUTE($Z107,\"{\",CHAR(160),HZ$1)),FIND(CHAR(160),SUBSTITUTE($Z107,\"}\",CHAR(160),HZ$1))-FIND(CHAR(160),SUBSTITUTE($Z107,\"{\",CHAR(160),HZ$1))+1),\"\")","v":""},{"$f":"IFERROR(MID($Z107,FIND(CHAR(160),SUBSTITUTE($Z107,\"{\",CHAR(160),IA$1)),FIND(CHAR(160),SUBSTITUTE($Z107,\"}\",CHAR(160),IA$1))-FIND(CHAR(160),SUBSTITUTE($Z107,\"{\",CHAR(160),IA$1))+1),\"\")","v":""},{"$f":"IFERROR(MID($Z107,FIND(CHAR(160),SUBSTITUTE($Z107,\"{\",CHAR(160),IB$1)),FIND(CHAR(160),SUBSTITUTE($Z107,\"}\",CHAR(160),IB$1))-FIND(CHAR(160),SUBSTITUTE($Z107,\"{\",CHAR(160),IB$1))+1),\"\")","v":""},{"$f":"IFERROR(MID($Z107,FIND(CHAR(160),SUBSTITUTE($Z107,\"{\",CHAR(160),IC$1)),FIND(CHAR(160),SUBSTITUTE($Z107,\"}\",CHAR(160),IC$1))-FIND(CHAR(160),SUBSTITUTE($Z107,\"{\",CHAR(160),IC$1))+1),\"\")","v":"{Measure:Quantity}"},{"$f":"IFERROR(MID($Z107,FIND(CHAR(160),SUBSTITUTE($Z107,\"{\",CHAR(160),ID$1)),FIND(CHAR(160),SUBSTITUTE($Z107,\"}\",CHAR(160),ID$1))-FIND(CHAR(160),SUBSTITUTE($Z107,\"{\",CHAR(160),ID$1))+1),\"\")","v":"{Heating Fuel Type}"},{"$f":"IFERROR(MID($AA107,FIND(CHAR(160),SUBSTITUTE($AA107,\"{\",CHAR(160),IE$1)),FIND(CHAR(160),SUBSTITUTE($AA107,\"}\",CHAR(160),IE$1))-FIND(CHAR(160),SUBSTITUTE($AA107,\"{\",CHAR(160),IE$1))+1),\"\")","v":"{Ventilation Air Rate}"},{"$f":"IFERROR(MID($AA107,FIND(CHAR(160),SUBSTITUTE($AA107,\"{\",CHAR(160),IF$1)),FIND(CHAR(160),SUBSTITUTE($AA107,\"}\",CHAR(160),IF$1))-FIND(CHAR(160),SUBSTITUTE($AA107,\"{\",CHAR(160),IF$1))+1),\"\")","v":"{Eff Heating}"},{"$f":"IFERROR(MID($AA107,FIND(CHAR(160),SUBSTITUTE($AA107,\"{\",CHAR(160),IG$1)),FIND(CHAR(160),SUBSTITUTE($AA107,\"}\",CHAR(160),IG$1))-FIND(CHAR(160),SUBSTITUTE($AA107,\"{\",CHAR(160),IG$1))+1),\"\")","v":"{AFUE}"},{"$f":"IFERROR(MID($AA107,FIND(CHAR(160),SUBSTITUTE($AA107,\"{\",CHAR(160),IH$1)),FIND(CHAR(160),SUBSTITUTE($AA107,\"}\",CHAR(160),IH$1))-FIND(CHAR(160),SUBSTITUTE($AA107,\"{\",CHAR(160),IH$1))+1),\"\")","v":""},{"$f":"IFERROR(MID($AA107,FIND(CHAR(160),SUBSTITUTE($AA107,\"{\",CHAR(160),II$1)),FIND(CHAR(160),SUBSTITUTE($AA107,\"}\",CHAR(160),II$1))-FIND(CHAR(160),SUBSTITUTE($AA107,\"{\",CHAR(160),II$1))+1),\"\")","v":""},{"$f":"IFERROR(MID($AA107,FIND(CHAR(160),SUBSTITUTE($AA107,\"{\",CHAR(160),IJ$1)),FIND(CHAR(160),SUBSTITUTE($AA107,\"}\",CHAR(160),IJ$1))-FIND(CHAR(160),SUBSTITUTE($AA107,\"{\",CHAR(160),IJ$1))+1),\"\")","v":""},{"$f":"IFERROR(MID($AA107,FIND(CHAR(160),SUBSTITUTE($AA107,\"{\",CHAR(160),IK$1)),FIND(CHAR(160),SUBSTITUTE($AA107,\"}\",CHAR(160),IK$1))-FIND(CHAR(160),SUBSTITUTE($AA107,\"{\",CHAR(160),IK$1))+1),\"\")","v":""},{"$f":"IFERROR(MID($AA107,FIND(CHAR(160),SUBSTITUTE($AA107,\"{\",CHAR(160),IL$1)),FIND(CHAR(160),SUBSTITUTE($AA107,\"}\",CHAR(160),IL$1))-FIND(CHAR(160),SUBSTITUTE($AA107,\"{\",CHAR(160),IL$1))+1),\"\")","v":""},{"$f":"IFERROR(MID($AA107,FIND(CHAR(160),SUBSTITUTE($AA107,\"{\",CHAR(160),IM$1)),FIND(CHAR(160),SUBSTITUTE($AA107,\"}\",CHAR(160),IM$1))-FIND(CHAR(160),SUBSTITUTE($AA107,\"{\",CHAR(160),IM$1))+1),\"\")","v":"{Measure:Quantity}"},{"$f":"IFERROR(MID($AA107,FIND(CHAR(160),SUBSTITUTE($AA107,\"{\",CHAR(160),IN$1)),FIND(CHAR(160),SUBSTITUTE($AA107,\"}\",CHAR(160),IN$1))-FIND(CHAR(160),SUBSTITUTE($AA107,\"{\",CHAR(160),IN$1))+1),\"\")","v":"{Heating Fuel Type}"},{"$f":"IFERROR(MID($AB107,FIND(CHAR(160),SUBSTITUTE($AB107,\"{\",CHAR(160),IO$1)),FIND(CHAR(160),SUBSTITUTE($AB107,\"}\",CHAR(160),IO$1))-FIND(CHAR(160),SUBSTITUTE($AB107,\"{\",CHAR(160),IO$1))+1),\"\")","v":""},{"$f":"IFERROR(MID($AB107,FIND(CHAR(160),SUBSTITUTE($AB107,\"{\",CHAR(160),IP$1)),FIND(CHAR(160),SUBSTITUTE($AB107,\"}\",CHAR(160),IP$1))-FIND(CHAR(160),SUBSTITUTE($AB107,\"{\",CHAR(160),IP$1))+1),\"\")","v":""},{"$f":"IFERROR(MID($AB107,FIND(CHAR(160),SUBSTITUTE($AB107,\"{\",CHAR(160),IQ$1)),FIND(CHAR(160),SUBSTITUTE($AB107,\"}\",CHAR(160),IQ$1))-FIND(CHAR(160),SUBSTITUTE($AB107,\"{\",CHAR(160),IQ$1))+1),\"\")","v":""},{"$f":"IFERROR(MID($AB107,FIND(CHAR(160),SUBSTITUTE($AB107,\"{\",CHAR(160),IR$1)),FIND(CHAR(160),SUBSTITUTE($AB107,\"}\",CHAR(160),IR$1))-FIND(CHAR(160),SUBSTITUTE($AB107,\"{\",CHAR(160),IR$1))+1),\"\")","v":""},{"$f":"IFERROR(MID($AB107,FIND(CHAR(160),SUBSTITUTE($AB107,\"{\",CHAR(160),IS$1)),FIND(CHAR(160),SUBSTITUTE($AB107,\"}\",CHAR(160),IS$1))-FIND(CHAR(160),SUBSTITUTE($AB107,\"{\",CHAR(160),IS$1))+1),\"\")","v":""},{"$f":"IFERROR(MID($AB107,FIND(CHAR(160),SUBSTITUTE($AB107,\"{\",CHAR(160),IT$1)),FIND(CHAR(160),SUBSTITUTE($AB107,\"}\",CHAR(160),IT$1))-FIND(CHAR(160),SUBSTITUTE($AB107,\"{\",CHAR(160),IT$1))+1),\"\")","v":""},{"$f":"IFERROR(MID($AB107,FIND(CHAR(160),SUBSTITUTE($AB107,\"{\",CHAR(160),IU$1)),FIND(CHAR(160),SUBSTITUTE($AB107,\"}\",CHAR(160),IU$1))-FIND(CHAR(160),SUBSTITUTE($AB107,\"{\",CHAR(160),IU$1))+1),\"\")","v":""},{"$f":"IFERROR(MID($AB107,FIND(CHAR(160),SUBSTITUTE($AB107,\"{\",CHAR(160),IV$1)),FIND(CHAR(160),SUBSTITUTE($AB107,\"}\",CHAR(160),IV$1))-FIND(CHAR(160),SUBSTITUTE($AB107,\"{\",CHAR(160),IV$1))+1),\"\")","v":""},{"$f":"IFERROR(MID($AB107,FIND(CHAR(160),SUBSTITUTE($AB107,\"{\",CHAR(160),IW$1)),FIND(CHAR(160),SUBSTITUTE($AB107,\"}\",CHAR(160),IW$1))-FIND(CHAR(160),SUBSTITUTE($AB107,\"{\",CHAR(160),IW$1))+1),\"\")","v":""},{"$f":"IFERROR(MID($AB107,FIND(CHAR(160),SUBSTITUTE($AB107,\"{\",CHAR(160),IX$1)),FIND(CHAR(160),SUBSTITUTE($AB107,\"}\",CHAR(160),IX$1))-FIND(CHAR(160),SUBSTITUTE($AB107,\"{\",CHAR(160),IX$1))+1),\"\")","v":""},null,{"$f":"10-COUNTIF(DU107:ED107,\"\")","v":8}]
["C&I HVAC - Propane and Compressed NG","VFD: Return Fan on VAV Air Handler","RFA","2021-07-01","2022-06-30","Calculated","{Measure:Quantity}*if({Motor HP}=5,2425,if({Motor HP}=7.5,2648,if({Motor HP}=10,2871,if({Motor HP}=15,3317,if({Motor HP}=20,3763,if({Motor HP}=25,4209,if({Motor HP}=30,4655,0)))))))",0,"Calculated","{Measure:Quantity}*if({Motor HP}=5,400,if({Motor HP}=7.5,650,if({Motor HP}=10,1400,if({Motor HP}=15,1650,if({Motor HP}=20,1850,if({Motor HP}=25,2000,if({Motor HP}=30,2300,0)))))))",0,"2021-05-25","2022-06-30","Calculated","{Measure:Quantity}*{Motor HP}*1788",null,null,"{Measure:Quantity}*{Motor HP}*.302",null,null,"{Measure:Quantity}*{Factor:WinterCF}*{Motor HP}*.302","{Measure:Quantity}*{Factor:SummerCF}*{Motor HP}*.302",null,null,null,null,null,null,"2021-05-25","2022-06-30",13,0.21,0.68300000000000005,0.39,0.308,0.214,8.7999999999999995E-2,1,1.1220000000000001,1,0.52,1.6E-2,null,{"$f":"DU108","v":"{Measure:Quantity}"},1,{"$f":"DV108","v":"{Motor HP}"},5,{"$f":"DW108","v":""},null,{"$f":"DX108","v":""},null,{"$f":"DY108","v":""},null,{"$f":"DZ108","v":""},null,{"$f":"EA108","v":""},null,{"$f":"EB108","v":""},null,{"$f":"EC108","v":""},null,{"$f":"ED108","v":""},null,{"$f":"AS108*AU108*1788","v":8940},0,0,{"$f":"AS108*AU108*0.302","v":1.51},0,0,{"$f":"AS108*AF108*AU108*0.302","v":0.31709999999999999},{"$f":"AS108*AG108*AU108*0.302","v":1.0313300000000001},0,0,0,0,0,0,null,"Res","Default DR",{"$f":"Benefits(BL108,BR108,BS108,BT108,BU108,BV108,BW108,BX108,BY108,BZ108,AE108,AH108,AI108,AJ108,AK108,AL108,AM108,AN108,AO108,AP108,CA108,CB108)","v":12094.689196231971},2788.9593275943762,0,0,0,0,0,0,0,{"$f":"SUMPRODUCT(CC108:CK108,--(CC108:CK108>0))","v":14883.648523826349},{"$f":"-SUMPRODUCT(CC108:CK108,--(CC108:CK108<0))","v":0},null,{"$f":"AS108*IF(AU108=5,2425,IF(AU108=7.5,2648,IF(AU108=10,2871,IF(AU108=15,3317,IF(AU108=20,3763,IF(AU108=25,4209,IF(AU108=30,4655,0)))))))","v":2425},null,null,{"$f":"CM108+CO108","v":2425},{"$f":"IF(NetOrGross=\"Net\",(1-AO108+AP108),1)","v":1},{"$f":"(SUMPRODUCT(CC108:CJ108,--(CC108:CJ108>0))+CN108)*CS108/((-SUMPRODUCT(CC108:CJ108,--(CC108:CJ108<0))+MAX(CO108,CV108)+CP108+CQ108)*CS108+IF(FRIncentives=\"Yes\",CV108*(1-CS108),0))","v":6.1375870201345766},1,{"$f":"AS108*IF(AU108=5,400,IF(AU108=7.5,650,IF(AU108=10,1400,IF(AU108=15,1650,IF(AU108=20,1850,IF(AU108=25,2000,IF(AU108=30,2300,0)))))))","v":400},null,"RGGI","y",null,{"$f":"IF(F108=\"Manual Entry\",\"Manual\",IF(G108=\"\",0,\"X=\"&SUBSTITUTE(SUBSTITUTE(SUBSTITUTE(SUBSTITUTE(SUBSTITUTE(SUBSTITUTE(SUBSTITUTE(SUBSTITUTE(SUBSTITUTE(SUBSTITUTE(SUBSTITUTE(SUBSTITUTE(G108,$ED108,$ED$2&ROW($ED108)),$EC108,$EC$2&ROW($EC108)),$EB108,$EB$2&ROW($EB108)),$EA108,$EA$2&ROW($EA108)),$DZ108,$DZ$2&ROW($DZ108)),$DY108,$DY$2&ROW($DY108)),$DX108,$DX$2&ROW($DX108)),$DW108,$DW$2&ROW($DW108)),$DV108,$DV$2&ROW($DV108)),$DU108,$DU$2&ROW($DU108)),$DT108,$DT$2&ROW($DT108)),$DS108,$DS$2&ROW($DS108))))","v":"X=AS108*if(AU108=5,2425,if(AU108=7.5,2648,if(AU108=10,2871,if(AU108=15,3317,if(AU108=20,3763,if(AU108=25,4209,if(AU108=30,4655,0)))))))"},{"$f":"IF(I108=\"Manual Entry\",\"Manual\",IF(J108=\"\",0,\"X=\"&SUBSTITUTE(SUBSTITUTE(SUBSTITUTE(SUBSTITUTE(SUBSTITUTE(SUBSTITUTE(SUBSTITUTE(SUBSTITUTE(SUBSTITUTE(SUBSTITUTE(SUBSTITUTE(SUBSTITUTE(J108,$ED108,$ED$2&ROW($ED108)),$EC108,$EC$2&ROW($EC108)),$EB108,$EB$2&ROW($EB108)),$EA108,$EA$2&ROW($EA108)),$DZ108,$DZ$2&ROW($DZ108)),$DY108,$DY$2&ROW($DY108)),$DX108,$DX$2&ROW($DX108)),$DW108,$DW$2&ROW($DW108)),$DV108,$DV$2&ROW($DV108)),$DU108,$DU$2&ROW($DU108)),$DT108,$DT$2&ROW($DT108)),$DS108,$DS$2&ROW($DS108))))","v":"X=AS108*if(AU108=5,400,if(AU108=7.5,650,if(AU108=10,1400,if(AU108=15,1650,if(AU108=20,1850,if(AU108=25,2000,if(AU108=30,2300,0)))))))"},{"$f":"IF(O108=\"\",0,\"X=\"&SUBSTITUTE(SUBSTITUTE(SUBSTITUTE(SUBSTITUTE(SUBSTITUTE(SUBSTITUTE(SUBSTITUTE(SUBSTITUTE(SUBSTITUTE(SUBSTITUTE(SUBSTITUTE(SUBSTITUTE(O108,$ED108,$ED$2&ROW($ED108)),$EC108,$EC$2&ROW($EC108)),$EB108,$EB$2&ROW($EB108)),$EA108,$EA$2&ROW($EA108)),$DZ108,$DZ$2&ROW($DZ108)),$DY108,$DY$2&ROW($DY108)),$DX108,$DX$2&ROW($DX108)),$DW108,$DW$2&ROW($DW108)),$DV108,$DV$2&ROW($DV108)),$DU108,$DU$2&ROW($DU108)),$DT108,$DT$2&ROW($DT108)),$DS108,$DS$2&ROW($DS108)))","v":"X=AS108*AU108*1788"},{"$f":"IF(P108=\"\",0,\"X=\"&SUBSTITUTE(SUBSTITUTE(SUBSTITUTE(SUBSTITUTE(SUBSTITUTE(SUBSTITUTE(SUBSTITUTE(SUBSTITUTE(SUBSTITUTE(SUBSTITUTE(SUBSTITUTE(SUBSTITUTE(P108,$ED108,$ED$2&ROW($ED108)),$EC108,$EC$2&ROW($EC108)),$EB108,$EB$2&ROW($EB108)),$EA108,$EA$2&ROW($EA108)),$DZ108,$DZ$2&ROW($DZ108)),$DY108,$DY$2&ROW($DY108)),$DX108,$DX$2&ROW($DX108)),$DW108,$DW$2&ROW($DW108)),$DV108,$DV$2&ROW($DV108)),$DU108,$DU$2&ROW($DU108)),$DT108,$DT$2&ROW($DT108)),$DS108,$DS$2&ROW($DS108)))","v":0},{"$f":"IF(Q108=\"\",0,\"X=\"&SUBSTITUTE(SUBSTITUTE(SUBSTITUTE(SUBSTITUTE(SUBSTITUTE(SUBSTITUTE(SUBSTITUTE(SUBSTITUTE(SUBSTITUTE(SUBSTITUTE(SUBSTITUTE(SUBSTITUTE(Q108,$ED108,$ED$2&ROW($ED108)),$EC108,$EC$2&ROW($EC108)),$EB108,$EB$2&ROW($EB108)),$EA108,$EA$2&ROW($EA108)),$DZ108,$DZ$2&ROW($DZ108)),$DY108,$DY$2&ROW($DY108)),$DX108,$DX$2&ROW($DX108)),$DW108,$DW$2&ROW($DW108)),$DV108,$DV$2&ROW($DV108)),$DU108,$DU$2&ROW($DU108)),$DT108,$DT$2&ROW($DT108)),$DS108,$DS$2&ROW($DS108)))","v":0},{"$f":"IF(R108=\"\",0,\"X=\"&SUBSTITUTE(SUBSTITUTE(SUBSTITUTE(SUBSTITUTE(SUBSTITUTE(SUBSTITUTE(SUBSTITUTE(SUBSTITUTE(SUBSTITUTE(SUBSTITUTE(SUBSTITUTE(SUBSTITUTE(R108,$ED108,$ED$2&ROW($ED108)),$EC108,$EC$2&ROW($EC108)),$EB108,$EB$2&ROW($EB108)),$EA108,$EA$2&ROW($EA108)),$DZ108,$DZ$2&ROW($DZ108)),$DY108,$DY$2&ROW($DY108)),$DX108,$DX$2&ROW($DX108)),$DW108,$DW$2&ROW($DW108)),$DV108,$DV$2&ROW($DV108)),$DU108,$DU$2&ROW($DU108)),$DT108,$DT$2&ROW($DT108)),$DS108,$DS$2&ROW($DS108)))","v":"X=AS108*AU108*.302"},{"$f":"IF(S108=\"\",0,\"X=\"&SUBSTITUTE(SUBSTITUTE(SUBSTITUTE(SUBSTITUTE(SUBSTITUTE(SUBSTITUTE(SUBSTITUTE(SUBSTITUTE(SUBSTITUTE(SUBSTITUTE(SUBSTITUTE(SUBSTITUTE(S108,$ED108,$ED$2&ROW($ED108)),$EC108,$EC$2&ROW($EC108)),$EB108,$EB$2&ROW($EB108)),$EA108,$EA$2&ROW($EA108)),$DZ108,$DZ$2&ROW($DZ108)),$DY108,$DY$2&ROW($DY108)),$DX108,$DX$2&ROW($DX108)),$DW108,$DW$2&ROW($DW108)),$DV108,$DV$2&ROW($DV108)),$DU108,$DU$2&ROW($DU108)),$DT108,$DT$2&ROW($DT108)),$DS108,$DS$2&ROW($DS108)))","v":0},{"$f":"IF(T108=\"\",0,\"X=\"&SUBSTITUTE(SUBSTITUTE(SUBSTITUTE(SUBSTITUTE(SUBSTITUTE(SUBSTITUTE(SUBSTITUTE(SUBSTITUTE(SUBSTITUTE(SUBSTITUTE(SUBSTITUTE(SUBSTITUTE(T108,$ED108,$ED$2&ROW($ED108)),$EC108,$EC$2&ROW($EC108)),$EB108,$EB$2&ROW($EB108)),$EA108,$EA$2&ROW($EA108)),$DZ108,$DZ$2&ROW($DZ108)),$DY108,$DY$2&ROW($DY108)),$DX108,$DX$2&ROW($DX108)),$DW108,$DW$2&ROW($DW108)),$DV108,$DV$2&ROW($DV108)),$DU108,$DU$2&ROW($DU108)),$DT108,$DT$2&ROW($DT108)),$DS108,$DS$2&ROW($DS108)))","v":0},{"$f":"IF(U108=\"\",0,\"X=\"&SUBSTITUTE(SUBSTITUTE(SUBSTITUTE(SUBSTITUTE(SUBSTITUTE(SUBSTITUTE(SUBSTITUTE(SUBSTITUTE(SUBSTITUTE(SUBSTITUTE(SUBSTITUTE(SUBSTITUTE(U108,$ED108,$ED$2&ROW($ED108)),$EC108,$EC$2&ROW($EC108)),$EB108,$EB$2&ROW($EB108)),$EA108,$EA$2&ROW($EA108)),$DZ108,$DZ$2&ROW($DZ108)),$DY108,$DY$2&ROW($DY108)),$DX108,$DX$2&ROW($DX108)),$DW108,$DW$2&ROW($DW108)),$DV108,$DV$2&ROW($DV108)),$DU108,$DU$2&ROW($DU108)),$DT108,$DT$2&ROW($DT108)),$DS108,$DS$2&ROW($DS108)))","v":"X=AS108*AF108*AU108*.302"},{"$f":"IF(V108=\"\",0,\"X=\"&SUBSTITUTE(SUBSTITUTE(SUBSTITUTE(SUBSTITUTE(SUBSTITUTE(SUBSTITUTE(SUBSTITUTE(SUBSTITUTE(SUBSTITUTE(SUBSTITUTE(SUBSTITUTE(SUBSTITUTE(V108,$ED108,$ED$2&ROW($ED108)),$EC108,$EC$2&ROW($EC108)),$EB108,$EB$2&ROW($EB108)),$EA108,$EA$2&ROW($EA108)),$DZ108,$DZ$2&ROW($DZ108)),$DY108,$DY$2&ROW($DY108)),$DX108,$DX$2&ROW($DX108)),$DW108,$DW$2&ROW($DW108)),$DV108,$DV$2&ROW($DV108)),$DU108,$DU$2&ROW($DU108)),$DT108,$DT$2&ROW($DT108)),$DS108,$DS$2&ROW($DS108)))","v":"X=AS108*AG108*AU108*.302"},{"$f":"IF(W108=\"\",0,\"X=\"&SUBSTITUTE(SUBSTITUTE(SUBSTITUTE(SUBSTITUTE(SUBSTITUTE(SUBSTITUTE(SUBSTITUTE(SUBSTITUTE(SUBSTITUTE(SUBSTITUTE(SUBSTITUTE(SUBSTITUTE(W108,$ED108,$ED$2&ROW($ED108)),$EC108,$EC$2&ROW($EC108)),$EB108,$EB$2&ROW($EB108)),$EA108,$EA$2&ROW($EA108)),$DZ108,$DZ$2&ROW($DZ108)),$DY108,$DY$2&ROW($DY108)),$DX108,$DX$2&ROW($DX108)),$DW108,$DW$2&ROW($DW108)),$DV108,$DV$2&ROW($DV108)),$DU108,$DU$2&ROW($DU108)),$DT108,$DT$2&ROW($DT108)),$DS108,$DS$2&ROW($DS108)))","v":0},{"$f":"IF(X108=\"\",0,\"X=\"&SUBSTITUTE(SUBSTITUTE(SUBSTITUTE(SUBSTITUTE(SUBSTITUTE(SUBSTITUTE(SUBSTITUTE(SUBSTITUTE(SUBSTITUTE(SUBSTITUTE(SUBSTITUTE(SUBSTITUTE(X108,$ED108,$ED$2&ROW($ED108)),$EC108,$EC$2&ROW($EC108)),$EB108,$EB$2&ROW($EB108)),$EA108,$EA$2&ROW($EA108)),$DZ108,$DZ$2&ROW($DZ108)),$DY108,$DY$2&ROW($DY108)),$DX108,$DX$2&ROW($DX108)),$DW108,$DW$2&ROW($DW108)),$DV108,$DV$2&ROW($DV108)),$DU108,$DU$2&ROW($DU108)),$DT108,$DT$2&ROW($DT108)),$DS108,$DS$2&ROW($DS108)))","v":0},{"$f":"IF(Y108=\"\",0,\"X=\"&SUBSTITUTE(SUBSTITUTE(SUBSTITUTE(SUBSTITUTE(SUBSTITUTE(SUBSTITUTE(SUBSTITUTE(SUBSTITUTE(SUBSTITUTE(SUBSTITUTE(SUBSTITUTE(SUBSTITUTE(Y108,$ED108,$ED$2&ROW($ED108)),$EC108,$EC$2&ROW($EC108)),$EB108,$EB$2&ROW($EB108)),$EA108,$EA$2&ROW($EA108)),$DZ108,$DZ$2&ROW($DZ108)),$DY108,$DY$2&ROW($DY108)),$DX108,$DX$2&ROW($DX108)),$DW108,$DW$2&ROW($DW108)),$DV108,$DV$2&ROW($DV108)),$DU108,$DU$2&ROW($DU108)),$DT108,$DT$2&ROW($DT108)),$DS108,$DS$2&ROW($DS108)))","v":0},{"$f":"IF(Z108=\"\",0,\"X=\"&SUBSTITUTE(SUBSTITUTE(SUBSTITUTE(SUBSTITUTE(SUBSTITUTE(SUBSTITUTE(SUBSTITUTE(SUBSTITUTE(SUBSTITUTE(SUBSTITUTE(SUBSTITUTE(SUBSTITUTE(Z108,$ED108,$ED$2&ROW($ED108)),$EC108,$EC$2&ROW($EC108)),$EB108,$EB$2&ROW($EB108)),$EA108,$EA$2&ROW($EA108)),$DZ108,$DZ$2&ROW($DZ108)),$DY108,$DY$2&ROW($DY108)),$DX108,$DX$2&ROW($DX108)),$DW108,$DW$2&ROW($DW108)),$DV108,$DV$2&ROW($DV108)),$DU108,$DU$2&ROW($DU108)),$DT108,$DT$2&ROW($DT108)),$DS108,$DS$2&ROW($DS108)))","v":0},{"$f":"IF(AA108=\"\",0,\"X=\"&SUBSTITUTE(SUBSTITUTE(SUBSTITUTE(SUBSTITUTE(SUBSTITUTE(SUBSTITUTE(SUBSTITUTE(SUBSTITUTE(SUBSTITUTE(SUBSTITUTE(SUBSTITUTE(SUBSTITUTE(AA108,$ED108,$ED$2&ROW($ED108)),$EC108,$EC$2&ROW($EC108)),$EB108,$EB$2&ROW($EB108)),$EA108,$EA$2&ROW($EA108)),$DZ108,$DZ$2&ROW($DZ108)),$DY108,$DY$2&ROW($DY108)),$DX108,$DX$2&ROW($DX108)),$DW108,$DW$2&ROW($DW108)),$DV108,$DV$2&ROW($DV108)),$DU108,$DU$2&ROW($DU108)),$DT108,$DT$2&ROW($DT108)),$DS108,$DS$2&ROW($DS108)))","v":0},{"$f":"IF(AB108=\"\",0,\"X=\"&SUBSTITUTE(SUBSTITUTE(SUBSTITUTE(SUBSTITUTE(SUBSTITUTE(SUBSTITUTE(SUBSTITUTE(SUBSTITUTE(SUBSTITUTE(SUBSTITUTE(SUBSTITUTE(SUBSTITUTE(AB108,$ED108,$ED$2&ROW($ED108)),$EC108,$EC$2&ROW($EC108)),$EB108,$EB$2&ROW($EB108)),$EA108,$EA$2&ROW($EA108)),$DZ108,$DZ$2&ROW($DZ108)),$DY108,$DY$2&ROW($DY108)),$DX108,$DX$2&ROW($DX108)),$DW108,$DW$2&ROW($DW108)),$DV108,$DV$2&ROW($DV108)),$DU108,$DU$2&ROW($DU108)),$DT108,$DT$2&ROW($DT108)),$DS108,$DS$2&ROW($DS108)))","v":0},null,null,"{Factor:WinterCF}","{Factor:SummerCF}",{"$f":"IFERROR(INDEX($EG108:$IV108,MATCH(0,COUNTIF($DR108:DT108,$EG108:$IV108),0)),\"\")","v":"{Measure:Quantity}"},{"$f":"IFERROR(INDEX($EG108:$IV108,MATCH(0,COUNTIF($DR108:DU108,$EG108:$IV108),0)),\"\")","v":"{Motor HP}"},{"$f":"IFERROR(INDEX($EG108:$IV108,MATCH(0,COUNTIF($DR108:DV108,$EG108:$IV108),0)),\"\")","v":""},{"$f":"IFERROR(INDEX($EG108:$IV108,MATCH(0,COUNTIF($DR108:DW108,$EG108:$IV108),0)),\"\")","v":""},{"$f":"IFERROR(INDEX($EG108:$IV108,MATCH(0,COUNTIF($DR108:DX108,$EG108:$IV108),0)),\"\")","v":""},{"$f":"IFERROR(INDEX($EG108:$IV108,MATCH(0,COUNTIF($DR108:DY108,$EG108:$IV108),0)),\"\")","v":""},{"$f":"IFERROR(INDEX($EG108:$IV108,MATCH(0,COUNTIF($DR108:DZ108,$EG108:$IV108),0)),\"\")","v":""},{"$f":"IFERROR(INDEX($EG108:$IV108,MATCH(0,COUNTIF($DR108:EA108,$EG108:$IV108),0)),\"\")","v":""},{"$f":"IFERROR(INDEX($EG108:$IV108,MATCH(0,COUNTIF($DR108:EB108,$EG108:$IV108),0)),\"\")","v":""},{"$f":"IFERROR(INDEX($EG108:$IV108,MATCH(0,COUNTIF($DR108:EC108,$EG108:$IV108),0)),\"\")","v":""},null,null,{"$f":"IFERROR(MID($G108,FIND(CHAR(160),SUBSTITUTE($G108,\"{\",CHAR(160),EG$1)),FIND(CHAR(160),SUBSTITUTE($G108,\"}\",CHAR(160),EG$1))-FIND(CHAR(160),SUBSTITUTE($G108,\"{\",CHAR(160),EG$1))+1),\"\")","v":"{Measure:Quantity}"},{"$f":"IFERROR(MID($G108,FIND(CHAR(160),SUBSTITUTE($G108,\"{\",CHAR(160),EH$1)),FIND(CHAR(160),SUBSTITUTE($G108,\"}\",CHAR(160),EH$1))-FIND(CHAR(160),SUBSTITUTE($G108,\"{\",CHAR(160),EH$1))+1),\"\")","v":"{Motor HP}"},{"$f":"IFERROR(MID($G108,FIND(CHAR(160),SUBSTITUTE($G108,\"{\",CHAR(160),EI$1)),FIND(CHAR(160),SUBSTITUTE($G108,\"}\",CHAR(160),EI$1))-FIND(CHAR(160),SUBSTITUTE($G108,\"{\",CHAR(160),EI$1))+1),\"\")","v":"{Motor HP}"},{"$f":"IFERROR(MID($G108,FIND(CHAR(160),SUBSTITUTE($G108,\"{\",CHAR(160),EJ$1)),FIND(CHAR(160),SUBSTITUTE($G108,\"}\",CHAR(160),EJ$1))-FIND(CHAR(160),SUBSTITUTE($G108,\"{\",CHAR(160),EJ$1))+1),\"\")","v":"{Motor HP}"},{"$f":"IFERROR(MID($G108,FIND(CHAR(160),SUBSTITUTE($G108,\"{\",CHAR(160),EK$1)),FIND(CHAR(160),SUBSTITUTE($G108,\"}\",CHAR(160),EK$1))-FIND(CHAR(160),SUBSTITUTE($G108,\"{\",CHAR(160),EK$1))+1),\"\")","v":"{Motor HP}"},{"$f":"IFERROR(MID($G108,FIND(CHAR(160),SUBSTITUTE($G108,\"{\",CHAR(160),EL$1)),FIND(CHAR(160),SUBSTITUTE($G108,\"}\",CHAR(160),EL$1))-FIND(CHAR(160),SUBSTITUTE($G108,\"{\",CHAR(160),EL$1))+1),\"\")","v":"{Motor HP}"},{"$f":"IFERROR(MID($G108,FIND(CHAR(160),SUBSTITUTE($G108,\"{\",CHAR(160),EM$1)),FIND(CHAR(160),SUBSTITUTE($G108,\"}\",CHAR(160),EM$1))-FIND(CHAR(160),SUBSTITUTE($G108,\"{\",CHAR(160),EM$1))+1),\"\")","v":"{Motor HP}"},{"$f":"IFERROR(MID($G108,FIND(CHAR(160),SUBSTITUTE($G108,\"{\",CHAR(160),EN$1)),FIND(CHAR(160),SUBSTITUTE($G108,\"}\",CHAR(160),EN$1))-FIND(CHAR(160),SUBSTITUTE($G108,\"{\",CHAR(160),EN$1))+1),\"\")","v":"{Motor HP}"},{"$f":"IFERROR(MID($G108,FIND(CHAR(160),SUBSTITUTE($G108,\"{\",CHAR(160),EO$1)),FIND(CHAR(160),SUBSTITUTE($G108,\"}\",CHAR(160),EO$1))-FIND(CHAR(160),SUBSTITUTE($G108,\"{\",CHAR(160),EO$1))+1),\"\")","v":""},{"$f":"IFERROR(MID($G108,FIND(CHAR(160),SUBSTITUTE($G108,\"{\",CHAR(160),EP$1)),FIND(CHAR(160),SUBSTITUTE($G108,\"}\",CHAR(160),EP$1))-FIND(CHAR(160),SUBSTITUTE($G108,\"{\",CHAR(160),EP$1))+1),\"\")","v":""},{"$f":"IFERROR(MID($J108,FIND(CHAR(160),SUBSTITUTE($J108,\"{\",CHAR(160),EQ$1)),FIND(CHAR(160),SUBSTITUTE($J108,\"}\",CHAR(160),EQ$1))-FIND(CHAR(160),SUBSTITUTE($J108,\"{\",CHAR(160),EQ$1))+1),\"\")","v":"{Measure:Quantity}"},{"$f":"IFERROR(MID($J108,FIND(CHAR(160),SUBSTITUTE($J108,\"{\",CHAR(160),ER$1)),FIND(CHAR(160),SUBSTITUTE($J108,\"}\",CHAR(160),ER$1))-FIND(CHAR(160),SUBSTITUTE($J108,\"{\",CHAR(160),ER$1))+1),\"\")","v":"{Motor HP}"},{"$f":"IFERROR(MID($J108,FIND(CHAR(160),SUBSTITUTE($J108,\"{\",CHAR(160),ES$1)),FIND(CHAR(160),SUBSTITUTE($J108,\"}\",CHAR(160),ES$1))-FIND(CHAR(160),SUBSTITUTE($J108,\"{\",CHAR(160),ES$1))+1),\"\")","v":"{Motor HP}"},{"$f":"IFERROR(MID($J108,FIND(CHAR(160),SUBSTITUTE($J108,\"{\",CHAR(160),ET$1)),FIND(CHAR(160),SUBSTITUTE($J108,\"}\",CHAR(160),ET$1))-FIND(CHAR(160),SUBSTITUTE($J108,\"{\",CHAR(160),ET$1))+1),\"\")","v":"{Motor HP}"},{"$f":"IFERROR(MID($J108,FIND(CHAR(160),SUBSTITUTE($J108,\"{\",CHAR(160),EU$1)),FIND(CHAR(160),SUBSTITUTE($J108,\"}\",CHAR(160),EU$1))-FIND(CHAR(160),SUBSTITUTE($J108,\"{\",CHAR(160),EU$1))+1),\"\")","v":"{Motor HP}"},{"$f":"IFERROR(MID($J108,FIND(CHAR(160),SUBSTITUTE($J108,\"{\",CHAR(160),EV$1)),FIND(CHAR(160),SUBSTITUTE($J108,\"}\",CHAR(160),EV$1))-FIND(CHAR(160),SUBSTITUTE($J108,\"{\",CHAR(160),EV$1))+1),\"\")","v":"{Motor HP}"},{"$f":"IFERROR(MID($J108,FIND(CHAR(160),SUBSTITUTE($J108,\"{\",CHAR(160),EW$1)),FIND(CHAR(160),SUBSTITUTE($J108,\"}\",CHAR(160),EW$1))-FIND(CHAR(160),SUBSTITUTE($J108,\"{\",CHAR(160),EW$1))+1),\"\")","v":"{Motor HP}"},{"$f":"IFERROR(MID($J108,FIND(CHAR(160),SUBSTITUTE($J108,\"{\",CHAR(160),EX$1)),FIND(CHAR(160),SUBSTITUTE($J108,\"}\",CHAR(160),EX$1))-FIND(CHAR(160),SUBSTITUTE($J108,\"{\",CHAR(160),EX$1))+1),\"\")","v":"{Motor HP}"},{"$f":"IFERROR(MID($J108,FIND(CHAR(160),SUBSTITUTE($J108,\"{\",CHAR(160),EY$1)),FIND(CHAR(160),SUBSTITUTE($J108,\"}\",CHAR(160),EY$1))-FIND(CHAR(160),SUBSTITUTE($J108,\"{\",CHAR(160),EY$1))+1),\"\")","v":""},{"$f":"IFERROR(MID($J108,FIND(CHAR(160),SUBSTITUTE($J108,\"{\",CHAR(160),EZ$1)),FIND(CHAR(160),SUBSTITUTE($J108,\"}\",CHAR(160),EZ$1))-FIND(CHAR(160),SUBSTITUTE($J108,\"{\",CHAR(160),EZ$1))+1),\"\")","v":""},{"$f":"IFERROR(MID($J108,FIND(CHAR(160),SUBSTITUTE($J108,\"{\",CHAR(160),FA$1)),FIND(CHAR(160),SUBSTITUTE($J108,\"}\",CHAR(160),FA$1))-FIND(CHAR(160),SUBSTITUTE($J108,\"{\",CHAR(160),FA$1))+1),\"\")","v":"{Measure:Quantity}"},{"$f":"IFERROR(MID($J108,FIND(CHAR(160),SUBSTITUTE($J108,\"{\",CHAR(160),FB$1)),FIND(CHAR(160),SUBSTITUTE($J108,\"}\",CHAR(160),FB$1))-FIND(CHAR(160),SUBSTITUTE($J108,\"{\",CHAR(160),FB$1))+1),\"\")","v":"{Motor HP}"},{"$f":"IFERROR(MID($O108,FIND(CHAR(160),SUBSTITUTE($O108,\"{\",CHAR(160),FC$1)),FIND(CHAR(160),SUBSTITUTE($O108,\"}\",CHAR(160),FC$1))-FIND(CHAR(160),SUBSTITUTE($O108,\"{\",CHAR(160),FC$1))+1),\"\")","v":""},{"$f":"IFERROR(MID($O108,FIND(CHAR(160),SUBSTITUTE($O108,\"{\",CHAR(160),FD$1)),FIND(CHAR(160),SUBSTITUTE($O108,\"}\",CHAR(160),FD$1))-FIND(CHAR(160),SUBSTITUTE($O108,\"{\",CHAR(160),FD$1))+1),\"\")","v":""},{"$f":"IFERROR(MID($O108,FIND(CHAR(160),SUBSTITUTE($O108,\"{\",CHAR(160),FE$1)),FIND(CHAR(160),SUBSTITUTE($O108,\"}\",CHAR(160),FE$1))-FIND(CHAR(160),SUBSTITUTE($O108,\"{\",CHAR(160),FE$1))+1),\"\")","v":""},{"$f":"IFERROR(MID($O108,FIND(CHAR(160),SUBSTITUTE($O108,\"{\",CHAR(160),FF$1)),FIND(CHAR(160),SUBSTITUTE($O108,\"}\",CHAR(160),FF$1))-FIND(CHAR(160),SUBSTITUTE($O108,\"{\",CHAR(160),FF$1))+1),\"\")","v":""},{"$f":"IFERROR(MID($O108,FIND(CHAR(160),SUBSTITUTE($O108,\"{\",CHAR(160),FG$1)),FIND(CHAR(160),SUBSTITUTE($O108,\"}\",CHAR(160),FG$1))-FIND(CHAR(160),SUBSTITUTE($O108,\"{\",CHAR(160),FG$1))+1),\"\")","v":""},{"$f":"IFERROR(MID($O108,FIND(CHAR(160),SUBSTITUTE($O108,\"{\",CHAR(160),FH$1)),FIND(CHAR(160),SUBSTITUTE($O108,\"}\",CHAR(160),FH$1))-FIND(CHAR(160),SUBSTITUTE($O108,\"{\",CHAR(160),FH$1))+1),\"\")","v":""},{"$f":"IFERROR(MID($O108,FIND(CHAR(160),SUBSTITUTE($O108,\"{\",CHAR(160),FI$1)),FIND(CHAR(160),SUBSTITUTE($O108,\"}\",CHAR(160),FI$1))-FIND(CHAR(160),SUBSTITUTE($O108,\"{\",CHAR(160),FI$1))+1),\"\")","v":""},{"$f":"IFERROR(MID($O108,FIND(CHAR(160),SUBSTITUTE($O108,\"{\",CHAR(160),FJ$1)),FIND(CHAR(160),SUBSTITUTE($O108,\"}\",CHAR(160),FJ$1))-FIND(CHAR(160),SUBSTITUTE($O108,\"{\",CHAR(160),FJ$1))+1),\"\")","v":""},{"$f":"IFERROR(MID($O108,FIND(CHAR(160),SUBSTITUTE($O108,\"{\",CHAR(160),FK$1)),FIND(CHAR(160),SUBSTITUTE($O108,\"}\",CHAR(160),FK$1))-FIND(CHAR(160),SUBSTITUTE($O108,\"{\",CHAR(160),FK$1))+1),\"\")","v":"{Measure:Quantity}"},{"$f":"IFERROR(MID($O108,FIND(CHAR(160),SUBSTITUTE($O108,\"{\",CHAR(160),FL$1)),FIND(CHAR(160),SUBSTITUTE($O108,\"}\",CHAR(160),FL$1))-FIND(CHAR(160),SUBSTITUTE($O108,\"{\",CHAR(160),FL$1))+1),\"\")","v":"{Motor HP}"},{"$f":"IFERROR(MID($R108,FIND(CHAR(160),SUBSTITUTE($R108,\"{\",CHAR(160),FM$1)),FIND(CHAR(160),SUBSTITUTE($R108,\"}\",CHAR(160),FM$1))-FIND(CHAR(160),SUBSTITUTE($R108,\"{\",CHAR(160),FM$1))+1),\"\")","v":""},{"$f":"IFERROR(MID($R108,FIND(CHAR(160),SUBSTITUTE($R108,\"{\",CHAR(160),FN$1)),FIND(CHAR(160),SUBSTITUTE($R108,\"}\",CHAR(160),FN$1))-FIND(CHAR(160),SUBSTITUTE($R108,\"{\",CHAR(160),FN$1))+1),\"\")","v":""},{"$f":"IFERROR(MID($R108,FIND(CHAR(160),SUBSTITUTE($R108,\"{\",CHAR(160),FO$1)),FIND(CHAR(160),SUBSTITUTE($R108,\"}\",CHAR(160),FO$1))-FIND(CHAR(160),SUBSTITUTE($R108,\"{\",CHAR(160),FO$1))+1),\"\")","v":""},{"$f":"IFERROR(MID($R108,FIND(CHAR(160),SUBSTITUTE($R108,\"{\",CHAR(160),FP$1)),FIND(CHAR(160),SUBSTITUTE($R108,\"}\",CHAR(160),FP$1))-FIND(CHAR(160),SUBSTITUTE($R108,\"{\",CHAR(160),FP$1))+1),\"\")","v":""},{"$f":"IFERROR(MID($R108,FIND(CHAR(160),SUBSTITUTE($R108,\"{\",CHAR(160),FQ$1)),FIND(CHAR(160),SUBSTITUTE($R108,\"}\",CHAR(160),FQ$1))-FIND(CHAR(160),SUBSTITUTE($R108,\"{\",CHAR(160),FQ$1))+1),\"\")","v":""},{"$f":"IFERROR(MID($R108,FIND(CHAR(160),SUBSTITUTE($R108,\"{\",CHAR(160),FR$1)),FIND(CHAR(160),SUBSTITUTE($R108,\"}\",CHAR(160),FR$1))-FIND(CHAR(160),SUBSTITUTE($R108,\"{\",CHAR(160),FR$1))+1),\"\")","v":""},{"$f":"IFERROR(MID($R108,FIND(CHAR(160),SUBSTITUTE($R108,\"{\",CHAR(160),FS$1)),FIND(CHAR(160),SUBSTITUTE($R108,\"}\",CHAR(160),FS$1))-FIND(CHAR(160),SUBSTITUTE($R108,\"{\",CHAR(160),FS$1))+1),\"\")","v":""},{"$f":"IFERROR(MID($R108,FIND(CHAR(160),SUBSTITUTE($R108,\"{\",CHAR(160),FT$1)),FIND(CHAR(160),SUBSTITUTE($R108,\"}\",CHAR(160),FT$1))-FIND(CHAR(160),SUBSTITUTE($R108,\"{\",CHAR(160),FT$1))+1),\"\")","v":""},{"$f":"IFERROR(MID($R108,FIND(CHAR(160),SUBSTITUTE($R108,\"{\",CHAR(160),FU$1)),FIND(CHAR(160),SUBSTITUTE($R108,\"}\",CHAR(160),FU$1))-FIND(CHAR(160),SUBSTITUTE($R108,\"{\",CHAR(160),FU$1))+1),\"\")","v":"{Measure:Quantity}"},{"$f":"IFERROR(MID($R108,FIND(CHAR(160),SUBSTITUTE($R108,\"{\",CHAR(160),FV$1)),FIND(CHAR(160),SUBSTITUTE($R108,\"}\",CHAR(160),FV$1))-FIND(CHAR(160),SUBSTITUTE($R108,\"{\",CHAR(160),FV$1))+1),\"\")","v":"{Motor HP}"},{"$f":"IFERROR(MID($U108,FIND(CHAR(160),SUBSTITUTE($U108,\"{\",CHAR(160),FW$1)),FIND(CHAR(160),SUBSTITUTE($U108,\"}\",CHAR(160),FW$1))-FIND(CHAR(160),SUBSTITUTE($U108,\"{\",CHAR(160),FW$1))+1),\"\")","v":"{Motor HP}"},{"$f":"IFERROR(MID($U108,FIND(CHAR(160),SUBSTITUTE($U108,\"{\",CHAR(160),FX$1)),FIND(CHAR(160),SUBSTITUTE($U108,\"}\",CHAR(160),FX$1))-FIND(CHAR(160),SUBSTITUTE($U108,\"{\",CHAR(160),FX$1))+1),\"\")","v":""},{"$f":"IFERROR(MID($U108,FIND(CHAR(160),SUBSTITUTE($U108,\"{\",CHAR(160),FY$1)),FIND(CHAR(160),SUBSTITUTE($U108,\"}\",CHAR(160),FY$1))-FIND(CHAR(160),SUBSTITUTE($U108,\"{\",CHAR(160),FY$1))+1),\"\")","v":""},{"$f":"IFERROR(MID($U108,FIND(CHAR(160),SUBSTITUTE($U108,\"{\",CHAR(160),FZ$1)),FIND(CHAR(160),SUBSTITUTE($U108,\"}\",CHAR(160),FZ$1))-FIND(CHAR(160),SUBSTITUTE($U108,\"{\",CHAR(160),FZ$1))+1),\"\")","v":""},{"$f":"IFERROR(MID($U108,FIND(CHAR(160),SUBSTITUTE($U108,\"{\",CHAR(160),GA$1)),FIND(CHAR(160),SUBSTITUTE($U108,\"}\",CHAR(160),GA$1))-FIND(CHAR(160),SUBSTITUTE($U108,\"{\",CHAR(160),GA$1))+1),\"\")","v":""},{"$f":"IFERROR(MID($U108,FIND(CHAR(160),SUBSTITUTE($U108,\"{\",CHAR(160),GB$1)),FIND(CHAR(160),SUBSTITUTE($U108,\"}\",CHAR(160),GB$1))-FIND(CHAR(160),SUBSTITUTE($U108,\"{\",CHAR(160),GB$1))+1),\"\")","v":""},{"$f":"IFERROR(MID($U108,FIND(CHAR(160),SUBSTITUTE($U108,\"{\",CHAR(160),GC$1)),FIND(CHAR(160),SUBSTITUTE($U108,\"}\",CHAR(160),GC$1))-FIND(CHAR(160),SUBSTITUTE($U108,\"{\",CHAR(160),GC$1))+1),\"\")","v":""},{"$f":"IFERROR(MID($U108,FIND(CHAR(160),SUBSTITUTE($U108,\"{\",CHAR(160),GD$1)),FIND(CHAR(160),SUBSTITUTE($U108,\"}\",CHAR(160),GD$1))-FIND(CHAR(160),SUBSTITUTE($U108,\"{\",CHAR(160),GD$1))+1),\"\")","v":""},{"$f":"IFERROR(MID($U108,FIND(CHAR(160),SUBSTITUTE($U108,\"{\",CHAR(160),GE$1)),FIND(CHAR(160),SUBSTITUTE($U108,\"}\",CHAR(160),GE$1))-FIND(CHAR(160),SUBSTITUTE($U108,\"{\",CHAR(160),GE$1))+1),\"\")","v":"{Measure:Quantity}"},{"$f":"IFERROR(MID($U108,FIND(CHAR(160),SUBSTITUTE($U108,\"{\",CHAR(160),GF$1)),FIND(CHAR(160),SUBSTITUTE($U108,\"}\",CHAR(160),GF$1))-FIND(CHAR(160),SUBSTITUTE($U108,\"{\",CHAR(160),GF$1))+1),\"\")","v":"{Factor:WinterCF}"},{"$f":"IFERROR(MID($V108,FIND(CHAR(160),SUBSTITUTE($V108,\"{\",CHAR(160),GG$1)),FIND(CHAR(160),SUBSTITUTE($V108,\"}\",CHAR(160),GG$1))-FIND(CHAR(160),SUBSTITUTE($V108,\"{\",CHAR(160),GG$1))+1),\"\")","v":"{Motor HP}"},{"$f":"IFERROR(MID($V108,FIND(CHAR(160),SUBSTITUTE($V108,\"{\",CHAR(160),GH$1)),FIND(CHAR(160),SUBSTITUTE($V108,\"}\",CHAR(160),GH$1))-FIND(CHAR(160),SUBSTITUTE($V108,\"{\",CHAR(160),GH$1))+1),\"\")","v":""},{"$f":"IFERROR(MID($V108,FIND(CHAR(160),SUBSTITUTE($V108,\"{\",CHAR(160),GI$1)),FIND(CHAR(160),SUBSTITUTE($V108,\"}\",CHAR(160),GI$1))-FIND(CHAR(160),SUBSTITUTE($V108,\"{\",CHAR(160),GI$1))+1),\"\")","v":""},{"$f":"IFERROR(MID($V108,FIND(CHAR(160),SUBSTITUTE($V108,\"{\",CHAR(160),GJ$1)),FIND(CHAR(160),SUBSTITUTE($V108,\"}\",CHAR(160),GJ$1))-FIND(CHAR(160),SUBSTITUTE($V108,\"{\",CHAR(160),GJ$1))+1),\"\")","v":""},{"$f":"IFERROR(MID($V108,FIND(CHAR(160),SUBSTITUTE($V108,\"{\",CHAR(160),GK$1)),FIND(CHAR(160),SUBSTITUTE($V108,\"}\",CHAR(160),GK$1))-FIND(CHAR(160),SUBSTITUTE($V108,\"{\",CHAR(160),GK$1))+1),\"\")","v":""},{"$f":"IFERROR(MID($V108,FIND(CHAR(160),SUBSTITUTE($V108,\"{\",CHAR(160),GL$1)),FIND(CHAR(160),SUBSTITUTE($V108,\"}\",CHAR(160),GL$1))-FIND(CHAR(160),SUBSTITUTE($V108,\"{\",CHAR(160),GL$1))+1),\"\")","v":""},{"$f":"IFERROR(MID($V108,FIND(CHAR(160),SUBSTITUTE($V108,\"{\",CHAR(160),GM$1)),FIND(CHAR(160),SUBSTITUTE($V108,\"}\",CHAR(160),GM$1))-FIND(CHAR(160),SUBSTITUTE($V108,\"{\",CHAR(160),GM$1))+1),\"\")","v":""},{"$f":"IFERROR(MID($V108,FIND(CHAR(160),SUBSTITUTE($V108,\"{\",CHAR(160),GN$1)),FIND(CHAR(160),SUBSTITUTE($V108,\"}\",CHAR(160),GN$1))-FIND(CHAR(160),SUBSTITUTE($V108,\"{\",CHAR(160),GN$1))+1),\"\")","v":""},{"$f":"IFERROR(MID($V108,FIND(CHAR(160),SUBSTITUTE($V108,\"{\",CHAR(160),GO$1)),FIND(CHAR(160),SUBSTITUTE($V108,\"}\",CHAR(160),GO$1))-FIND(CHAR(160),SUBSTITUTE($V108,\"{\",CHAR(160),GO$1))+1),\"\")","v":"{Measure:Quantity}"},{"$f":"IFERROR(MID($V108,FIND(CHAR(160),SUBSTITUTE($V108,\"{\",CHAR(160),GP$1)),FIND(CHAR(160),SUBSTITUTE($V108,\"}\",CHAR(160),GP$1))-FIND(CHAR(160),SUBSTITUTE($V108,\"{\",CHAR(160),GP$1))+1),\"\")","v":"{Factor:SummerCF}"},{"$f":"IFERROR(MID($W108,FIND(CHAR(160),SUBSTITUTE($W108,\"{\",CHAR(160),GQ$1)),FIND(CHAR(160),SUBSTITUTE($W108,\"}\",CHAR(160),GQ$1))-FIND(CHAR(160),SUBSTITUTE($W108,\"{\",CHAR(160),GQ$1))+1),\"\")","v":""},{"$f":"IFERROR(MID($W108,FIND(CHAR(160),SUBSTITUTE($W108,\"{\",CHAR(160),GR$1)),FIND(CHAR(160),SUBSTITUTE($W108,\"}\",CHAR(160),GR$1))-FIND(CHAR(160),SUBSTITUTE($W108,\"{\",CHAR(160),GR$1))+1),\"\")","v":""},{"$f":"IFERROR(MID($W108,FIND(CHAR(160),SUBSTITUTE($W108,\"{\",CHAR(160),GS$1)),FIND(CHAR(160),SUBSTITUTE($W108,\"}\",CHAR(160),GS$1))-FIND(CHAR(160),SUBSTITUTE($W108,\"{\",CHAR(160),GS$1))+1),\"\")","v":""},{"$f":"IFERROR(MID($W108,FIND(CHAR(160),SUBSTITUTE($W108,\"{\",CHAR(160),GT$1)),FIND(CHAR(160),SUBSTITUTE($W108,\"}\",CHAR(160),GT$1))-FIND(CHAR(160),SUBSTITUTE($W108,\"{\",CHAR(160),GT$1))+1),\"\")","v":""},{"$f":"IFERROR(MID($W108,FIND(CHAR(160),SUBSTITUTE($W108,\"{\",CHAR(160),GU$1)),FIND(CHAR(160),SUBSTITUTE($W108,\"}\",CHAR(160),GU$1))-FIND(CHAR(160),SUBSTITUTE($W108,\"{\",CHAR(160),GU$1))+1),\"\")","v":""},{"$f":"IFERROR(MID($W108,FIND(CHAR(160),SUBSTITUTE($W108,\"{\",CHAR(160),GV$1)),FIND(CHAR(160),SUBSTITUTE($W108,\"}\",CHAR(160),GV$1))-FIND(CHAR(160),SUBSTITUTE($W108,\"{\",CHAR(160),GV$1))+1),\"\")","v":""},{"$f":"IFERROR(MID($W108,FIND(CHAR(160),SUBSTITUTE($W108,\"{\",CHAR(160),GW$1)),FIND(CHAR(160),SUBSTITUTE($W108,\"}\",CHAR(160),GW$1))-FIND(CHAR(160),SUBSTITUTE($W108,\"{\",CHAR(160),GW$1))+1),\"\")","v":""},{"$f":"IFERROR(MID($W108,FIND(CHAR(160),SUBSTITUTE($W108,\"{\",CHAR(160),GX$1)),FIND(CHAR(160),SUBSTITUTE($W108,\"}\",CHAR(160),GX$1))-FIND(CHAR(160),SUBSTITUTE($W108,\"{\",CHAR(160),GX$1))+1),\"\")","v":""},{"$f":"IFERROR(MID($W108,FIND(CHAR(160),SUBSTITUTE($W108,\"{\",CHAR(160),GY$1)),FIND(CHAR(160),SUBSTITUTE($W108,\"}\",CHAR(160),GY$1))-FIND(CHAR(160),SUBSTITUTE($W108,\"{\",CHAR(160),GY$1))+1),\"\")","v":""},{"$f":"IFERROR(MID($W108,FIND(CHAR(160),SUBSTITUTE($W108,\"{\",CHAR(160),GZ$1)),FIND(CHAR(160),SUBSTITUTE($W108,\"}\",CHAR(160),GZ$1))-FIND(CHAR(160),SUBSTITUTE($W108,\"{\",CHAR(160),GZ$1))+1),\"\")","v":""},{"$f":"IFERROR(MID($X108,FIND(CHAR(160),SUBSTITUTE($X108,\"{\",CHAR(160),HA$1)),FIND(CHAR(160),SUBSTITUTE($X108,\"}\",CHAR(160),HA$1))-FIND(CHAR(160),SUBSTITUTE($X108,\"{\",CHAR(160),HA$1))+1),\"\")","v":""},{"$f":"IFERROR(MID($X108,FIND(CHAR(160),SUBSTITUTE($X108,\"{\",CHAR(160),HB$1)),FIND(CHAR(160),SUBSTITUTE($X108,\"}\",CHAR(160),HB$1))-FIND(CHAR(160),SUBSTITUTE($X108,\"{\",CHAR(160),HB$1))+1),\"\")","v":""},{"$f":"IFERROR(MID($X108,FIND(CHAR(160),SUBSTITUTE($X108,\"{\",CHAR(160),HC$1)),FIND(CHAR(160),SUBSTITUTE($X108,\"}\",CHAR(160),HC$1))-FIND(CHAR(160),SUBSTITUTE($X108,\"{\",CHAR(160),HC$1))+1),\"\")","v":""},{"$f":"IFERROR(MID($X108,FIND(CHAR(160),SUBSTITUTE($X108,\"{\",CHAR(160),HD$1)),FIND(CHAR(160),SUBSTITUTE($X108,\"}\",CHAR(160),HD$1))-FIND(CHAR(160),SUBSTITUTE($X108,\"{\",CHAR(160),HD$1))+1),\"\")","v":""},{"$f":"IFERROR(MID($X108,FIND(CHAR(160),SUBSTITUTE($X108,\"{\",CHAR(160),HE$1)),FIND(CHAR(160),SUBSTITUTE($X108,\"}\",CHAR(160),HE$1))-FIND(CHAR(160),SUBSTITUTE($X108,\"{\",CHAR(160),HE$1))+1),\"\")","v":""},{"$f":"IFERROR(MID($X108,FIND(CHAR(160),SUBSTITUTE($X108,\"{\",CHAR(160),HF$1)),FIND(CHAR(160),SUBSTITUTE($X108,\"}\",CHAR(160),HF$1))-FIND(CHAR(160),SUBSTITUTE($X108,\"{\",CHAR(160),HF$1))+1),\"\")","v":""},{"$f":"IFERROR(MID($X108,FIND(CHAR(160),SUBSTITUTE($X108,\"{\",CHAR(160),HG$1)),FIND(CHAR(160),SUBSTITUTE($X108,\"}\",CHAR(160),HG$1))-FIND(CHAR(160),SUBSTITUTE($X108,\"{\",CHAR(160),HG$1))+1),\"\")","v":""},{"$f":"IFERROR(MID($X108,FIND(CHAR(160),SUBSTITUTE($X108,\"{\",CHAR(160),HH$1)),FIND(CHAR(160),SUBSTITUTE($X108,\"}\",CHAR(160),HH$1))-FIND(CHAR(160),SUBSTITUTE($X108,\"{\",CHAR(160),HH$1))+1),\"\")","v":""},{"$f":"IFERROR(MID($X108,FIND(CHAR(160),SUBSTITUTE($X108,\"{\",CHAR(160),HI$1)),FIND(CHAR(160),SUBSTITUTE($X108,\"}\",CHAR(160),HI$1))-FIND(CHAR(160),SUBSTITUTE($X108,\"{\",CHAR(160),HI$1))+1),\"\")","v":""},{"$f":"IFERROR(MID($X108,FIND(CHAR(160),SUBSTITUTE($X108,\"{\",CHAR(160),HJ$1)),FIND(CHAR(160),SUBSTITUTE($X108,\"}\",CHAR(160),HJ$1))-FIND(CHAR(160),SUBSTITUTE($X108,\"{\",CHAR(160),HJ$1))+1),\"\")","v":""},{"$f":"IFERROR(MID($Y108,FIND(CHAR(160),SUBSTITUTE($Y108,\"{\",CHAR(160),HK$1)),FIND(CHAR(160),SUBSTITUTE($Y108,\"}\",CHAR(160),HK$1))-FIND(CHAR(160),SUBSTITUTE($Y108,\"{\",CHAR(160),HK$1))+1),\"\")","v":""},{"$f":"IFERROR(MID($Y108,FIND(CHAR(160),SUBSTITUTE($Y108,\"{\",CHAR(160),HL$1)),FIND(CHAR(160),SUBSTITUTE($Y108,\"}\",CHAR(160),HL$1))-FIND(CHAR(160),SUBSTITUTE($Y108,\"{\",CHAR(160),HL$1))+1),\"\")","v":""},{"$f":"IFERROR(MID($Y108,FIND(CHAR(160),SUBSTITUTE($Y108,\"{\",CHAR(160),HM$1)),FIND(CHAR(160),SUBSTITUTE($Y108,\"}\",CHAR(160),HM$1))-FIND(CHAR(160),SUBSTITUTE($Y108,\"{\",CHAR(160),HM$1))+1),\"\")","v":""},{"$f":"IFERROR(MID($Y108,FIND(CHAR(160),SUBSTITUTE($Y108,\"{\",CHAR(160),HN$1)),FIND(CHAR(160),SUBSTITUTE($Y108,\"}\",CHAR(160),HN$1))-FIND(CHAR(160),SUBSTITUTE($Y108,\"{\",CHAR(160),HN$1))+1),\"\")","v":""},{"$f":"IFERROR(MID($Y108,FIND(CHAR(160),SUBSTITUTE($Y108,\"{\",CHAR(160),HO$1)),FIND(CHAR(160),SUBSTITUTE($Y108,\"}\",CHAR(160),HO$1))-FIND(CHAR(160),SUBSTITUTE($Y108,\"{\",CHAR(160),HO$1))+1),\"\")","v":""},{"$f":"IFERROR(MID($Y108,FIND(CHAR(160),SUBSTITUTE($Y108,\"{\",CHAR(160),HP$1)),FIND(CHAR(160),SUBSTITUTE($Y108,\"}\",CHAR(160),HP$1))-FIND(CHAR(160),SUBSTITUTE($Y108,\"{\",CHAR(160),HP$1))+1),\"\")","v":""},{"$f":"IFERROR(MID($Y108,FIND(CHAR(160),SUBSTITUTE($Y108,\"{\",CHAR(160),HQ$1)),FIND(CHAR(160),SUBSTITUTE($Y108,\"}\",CHAR(160),HQ$1))-FIND(CHAR(160),SUBSTITUTE($Y108,\"{\",CHAR(160),HQ$1))+1),\"\")","v":""},{"$f":"IFERROR(MID($Y108,FIND(CHAR(160),SUBSTITUTE($Y108,\"{\",CHAR(160),HR$1)),FIND(CHAR(160),SUBSTITUTE($Y108,\"}\",CHAR(160),HR$1))-FIND(CHAR(160),SUBSTITUTE($Y108,\"{\",CHAR(160),HR$1))+1),\"\")","v":""},{"$f":"IFERROR(MID($Y108,FIND(CHAR(160),SUBSTITUTE($Y108,\"{\",CHAR(160),HS$1)),FIND(CHAR(160),SUBSTITUTE($Y108,\"}\",CHAR(160),HS$1))-FIND(CHAR(160),SUBSTITUTE($Y108,\"{\",CHAR(160),HS$1))+1),\"\")","v":""},{"$f":"IFERROR(MID($Y108,FIND(CHAR(160),SUBSTITUTE($Y108,\"{\",CHAR(160),HT$1)),FIND(CHAR(160),SUBSTITUTE($Y108,\"}\",CHAR(160),HT$1))-FIND(CHAR(160),SUBSTITUTE($Y108,\"{\",CHAR(160),HT$1))+1),\"\")","v":""},{"$f":"IFERROR(MID($Z108,FIND(CHAR(160),SUBSTITUTE($Z108,\"{\",CHAR(160),HU$1)),FIND(CHAR(160),SUBSTITUTE($Z108,\"}\",CHAR(160),HU$1))-FIND(CHAR(160),SUBSTITUTE($Z108,\"{\",CHAR(160),HU$1))+1),\"\")","v":""},{"$f":"IFERROR(MID($Z108,FIND(CHAR(160),SUBSTITUTE($Z108,\"{\",CHAR(160),HV$1)),FIND(CHAR(160),SUBSTITUTE($Z108,\"}\",CHAR(160),HV$1))-FIND(CHAR(160),SUBSTITUTE($Z108,\"{\",CHAR(160),HV$1))+1),\"\")","v":""},{"$f":"IFERROR(MID($Z108,FIND(CHAR(160),SUBSTITUTE($Z108,\"{\",CHAR(160),HW$1)),FIND(CHAR(160),SUBSTITUTE($Z108,\"}\",CHAR(160),HW$1))-FIND(CHAR(160),SUBSTITUTE($Z108,\"{\",CHAR(160),HW$1))+1),\"\")","v":""},{"$f":"IFERROR(MID($Z108,FIND(CHAR(160),SUBSTITUTE($Z108,\"{\",CHAR(160),HX$1)),FIND(CHAR(160),SUBSTITUTE($Z108,\"}\",CHAR(160),HX$1))-FIND(CHAR(160),SUBSTITUTE($Z108,\"{\",CHAR(160),HX$1))+1),\"\")","v":""},{"$f":"IFERROR(MID($Z108,FIND(CHAR(160),SUBSTITUTE($Z108,\"{\",CHAR(160),HY$1)),FIND(CHAR(160),SUBSTITUTE($Z108,\"}\",CHAR(160),HY$1))-FIND(CHAR(160),SUBSTITUTE($Z108,\"{\",CHAR(160),HY$1))+1),\"\")","v":""},{"$f":"IFERROR(MID($Z108,FIND(CHAR(160),SUBSTITUTE($Z108,\"{\",CHAR(160),HZ$1)),FIND(CHAR(160),SUBSTITUTE($Z108,\"}\",CHAR(160),HZ$1))-FIND(CHAR(160),SUBSTITUTE($Z108,\"{\",CHAR(160),HZ$1))+1),\"\")","v":""},{"$f":"IFERROR(MID($Z108,FIND(CHAR(160),SUBSTITUTE($Z108,\"{\",CHAR(160),IA$1)),FIND(CHAR(160),SUBSTITUTE($Z108,\"}\",CHAR(160),IA$1))-FIND(CHAR(160),SUBSTITUTE($Z108,\"{\",CHAR(160),IA$1))+1),\"\")","v":""},{"$f":"IFERROR(MID($Z108,FIND(CHAR(160),SUBSTITUTE($Z108,\"{\",CHAR(160),IB$1)),FIND(CHAR(160),SUBSTITUTE($Z108,\"}\",CHAR(160),IB$1))-FIND(CHAR(160),SUBSTITUTE($Z108,\"{\",CHAR(160),IB$1))+1),\"\")","v":""},{"$f":"IFERROR(MID($Z108,FIND(CHAR(160),SUBSTITUTE($Z108,\"{\",CHAR(160),IC$1)),FIND(CHAR(160),SUBSTITUTE($Z108,\"}\",CHAR(160),IC$1))-FIND(CHAR(160),SUBSTITUTE($Z108,\"{\",CHAR(160),IC$1))+1),\"\")","v":""},{"$f":"IFERROR(MID($Z108,FIND(CHAR(160),SUBSTITUTE($Z108,\"{\",CHAR(160),ID$1)),FIND(CHAR(160),SUBSTITUTE($Z108,\"}\",CHAR(160),ID$1))-FIND(CHAR(160),SUBSTITUTE($Z108,\"{\",CHAR(160),ID$1))+1),\"\")","v":""},{"$f":"IFERROR(MID($AA108,FIND(CHAR(160),SUBSTITUTE($AA108,\"{\",CHAR(160),IE$1)),FIND(CHAR(160),SUBSTITUTE($AA108,\"}\",CHAR(160),IE$1))-FIND(CHAR(160),SUBSTITUTE($AA108,\"{\",CHAR(160),IE$1))+1),\"\")","v":""},{"$f":"IFERROR(MID($AA108,FIND(CHAR(160),SUBSTITUTE($AA108,\"{\",CHAR(160),IF$1)),FIND(CHAR(160),SUBSTITUTE($AA108,\"}\",CHAR(160),IF$1))-FIND(CHAR(160),SUBSTITUTE($AA108,\"{\",CHAR(160),IF$1))+1),\"\")","v":""},{"$f":"IFERROR(MID($AA108,FIND(CHAR(160),SUBSTITUTE($AA108,\"{\",CHAR(160),IG$1)),FIND(CHAR(160),SUBSTITUTE($AA108,\"}\",CHAR(160),IG$1))-FIND(CHAR(160),SUBSTITUTE($AA108,\"{\",CHAR(160),IG$1))+1),\"\")","v":""},{"$f":"IFERROR(MID($AA108,FIND(CHAR(160),SUBSTITUTE($AA108,\"{\",CHAR(160),IH$1)),FIND(CHAR(160),SUBSTITUTE($AA108,\"}\",CHAR(160),IH$1))-FIND(CHAR(160),SUBSTITUTE($AA108,\"{\",CHAR(160),IH$1))+1),\"\")","v":""},{"$f":"IFERROR(MID($AA108,FIND(CHAR(160),SUBSTITUTE($AA108,\"{\",CHAR(160),II$1)),FIND(CHAR(160),SUBSTITUTE($AA108,\"}\",CHAR(160),II$1))-FIND(CHAR(160),SUBSTITUTE($AA108,\"{\",CHAR(160),II$1))+1),\"\")","v":""},{"$f":"IFERROR(MID($AA108,FIND(CHAR(160),SUBSTITUTE($AA108,\"{\",CHAR(160),IJ$1)),FIND(CHAR(160),SUBSTITUTE($AA108,\"}\",CHAR(160),IJ$1))-FIND(CHAR(160),SUBSTITUTE($AA108,\"{\",CHAR(160),IJ$1))+1),\"\")","v":""},{"$f":"IFERROR(MID($AA108,FIND(CHAR(160),SUBSTITUTE($AA108,\"{\",CHAR(160),IK$1)),FIND(CHAR(160),SUBSTITUTE($AA108,\"}\",CHAR(160),IK$1))-FIND(CHAR(160),SUBSTITUTE($AA108,\"{\",CHAR(160),IK$1))+1),\"\")","v":""},{"$f":"IFERROR(MID($AA108,FIND(CHAR(160),SUBSTITUTE($AA108,\"{\",CHAR(160),IL$1)),FIND(CHAR(160),SUBSTITUTE($AA108,\"}\",CHAR(160),IL$1))-FIND(CHAR(160),SUBSTITUTE($AA108,\"{\",CHAR(160),IL$1))+1),\"\")","v":""},{"$f":"IFERROR(MID($AA108,FIND(CHAR(160),SUBSTITUTE($AA108,\"{\",CHAR(160),IM$1)),FIND(CHAR(160),SUBSTITUTE($AA108,\"}\",CHAR(160),IM$1))-FIND(CHAR(160),SUBSTITUTE($AA108,\"{\",CHAR(160),IM$1))+1),\"\")","v":""},{"$f":"IFERROR(MID($AA108,FIND(CHAR(160),SUBSTITUTE($AA108,\"{\",CHAR(160),IN$1)),FIND(CHAR(160),SUBSTITUTE($AA108,\"}\",CHAR(160),IN$1))-FIND(CHAR(160),SUBSTITUTE($AA108,\"{\",CHAR(160),IN$1))+1),\"\")","v":""},{"$f":"IFERROR(MID($AB108,FIND(CHAR(160),SUBSTITUTE($AB108,\"{\",CHAR(160),IO$1)),FIND(CHAR(160),SUBSTITUTE($AB108,\"}\",CHAR(160),IO$1))-FIND(CHAR(160),SUBSTITUTE($AB108,\"{\",CHAR(160),IO$1))+1),\"\")","v":""},{"$f":"IFERROR(MID($AB108,FIND(CHAR(160),SUBSTITUTE($AB108,\"{\",CHAR(160),IP$1)),FIND(CHAR(160),SUBSTITUTE($AB108,\"}\",CHAR(160),IP$1))-FIND(CHAR(160),SUBSTITUTE($AB108,\"{\",CHAR(160),IP$1))+1),\"\")","v":""},{"$f":"IFERROR(MID($AB108,FIND(CHAR(160),SUBSTITUTE($AB108,\"{\",CHAR(160),IQ$1)),FIND(CHAR(160),SUBSTITUTE($AB108,\"}\",CHAR(160),IQ$1))-FIND(CHAR(160),SUBSTITUTE($AB108,\"{\",CHAR(160),IQ$1))+1),\"\")","v":""},{"$f":"IFERROR(MID($AB108,FIND(CHAR(160),SUBSTITUTE($AB108,\"{\",CHAR(160),IR$1)),FIND(CHAR(160),SUBSTITUTE($AB108,\"}\",CHAR(160),IR$1))-FIND(CHAR(160),SUBSTITUTE($AB108,\"{\",CHAR(160),IR$1))+1),\"\")","v":""},{"$f":"IFERROR(MID($AB108,FIND(CHAR(160),SUBSTITUTE($AB108,\"{\",CHAR(160),IS$1)),FIND(CHAR(160),SUBSTITUTE($AB108,\"}\",CHAR(160),IS$1))-FIND(CHAR(160),SUBSTITUTE($AB108,\"{\",CHAR(160),IS$1))+1),\"\")","v":""},{"$f":"IFERROR(MID($AB108,FIND(CHAR(160),SUBSTITUTE($AB108,\"{\",CHAR(160),IT$1)),FIND(CHAR(160),SUBSTITUTE($AB108,\"}\",CHAR(160),IT$1))-FIND(CHAR(160),SUBSTITUTE($AB108,\"{\",CHAR(160),IT$1))+1),\"\")","v":""},{"$f":"IFERROR(MID($AB108,FIND(CHAR(160),SUBSTITUTE($AB108,\"{\",CHAR(160),IU$1)),FIND(CHAR(160),SUBSTITUTE($AB108,\"}\",CHAR(160),IU$1))-FIND(CHAR(160),SUBSTITUTE($AB108,\"{\",CHAR(160),IU$1))+1),\"\")","v":""},{"$f":"IFERROR(MID($AB108,FIND(CHAR(160),SUBSTITUTE($AB108,\"{\",CHAR(160),IV$1)),FIND(CHAR(160),SUBSTITUTE($AB108,\"}\",CHAR(160),IV$1))-FIND(CHAR(160),SUBSTITUTE($AB108,\"{\",CHAR(160),IV$1))+1),\"\")","v":""},{"$f":"IFERROR(MID($AB108,FIND(CHAR(160),SUBSTITUTE($AB108,\"{\",CHAR(160),IW$1)),FIND(CHAR(160),SUBSTITUTE($AB108,\"}\",CHAR(160),IW$1))-FIND(CHAR(160),SUBSTITUTE($AB108,\"{\",CHAR(160),IW$1))+1),\"\")","v":""},{"$f":"IFERROR(MID($AB108,FIND(CHAR(160),SUBSTITUTE($AB108,\"{\",CHAR(160),IX$1)),FIND(CHAR(160),SUBSTITUTE($AB108,\"}\",CHAR(160),IX$1))-FIND(CHAR(160),SUBSTITUTE($AB108,\"{\",CHAR(160),IX$1))+1),\"\")","v":""},null,{"$f":"10-COUNTIF(DU108:ED108,\"\")","v":2}]
["C&I HVAC - Propane and Compressed NG","VFD: Return Fan on VAV Packaged or Rooftop HVAC Unit","RFP","2021-07-01","2022-06-30","Calculated","{Measure:Quantity}*if({Motor HP}=5,2425,if({Motor HP}=7.5,2648,if({Motor HP}=10,2871,if({Motor HP}=15,3317,if({Motor HP}=20,3763,if({Motor HP}=25,4209,if({Motor HP}=30,4655,0)))))))",0,"Calculated","{Measure:Quantity}*if({Motor HP}=5,400,if({Motor HP}=7.5,650,if({Motor HP}=10,1400,if({Motor HP}=15,1650,if({Motor HP}=20,1850,if({Motor HP}=25,2000,if({Motor HP}=30,2300,0)))))))",0,"2021-05-25","2022-06-30","Calculated","{Measure:Quantity}*{Motor HP}*1788",null,null,"{Measure:Quantity}*{Motor HP}*.302",null,null,"{Measure:Quantity}*{Factor:WinterCF}*{Motor HP}*.302","{Measure:Quantity}*{Factor:SummerCF}*{Motor HP}*.302",null,null,null,null,null,null,"2021-05-25","2022-06-30",13,0.21,0.68300000000000005,0.39,0.308,0.214,8.7999999999999995E-2,1,1.1220000000000001,1,0.52,1.6E-2,null,{"$f":"DU109","v":"{Measure:Quantity}"},1,{"$f":"DV109","v":"{Motor HP}"},5,{"$f":"DW109","v":""},null,{"$f":"DX109","v":""},null,{"$f":"DY109","v":""},null,{"$f":"DZ109","v":""},null,{"$f":"EA109","v":""},null,{"$f":"EB109","v":""},null,{"$f":"EC109","v":""},null,{"$f":"ED109","v":""},null,{"$f":"AS109*AU109*1788","v":8940},0,0,{"$f":"AS109*AU109*0.302","v":1.51},0,0,{"$f":"AS109*AF109*AU109*0.302","v":0.31709999999999999},{"$f":"AS109*AG109*AU109*0.302","v":1.0313300000000001},0,0,0,0,0,0,null,"Res","Default DR",{"$f":"Benefits(BL109,BR109,BS109,BT109,BU109,BV109,BW109,BX109,BY109,BZ109,AE109,AH109,AI109,AJ109,AK109,AL109,AM109,AN109,AO109,AP109,CA109,CB109)","v":12094.689196231971},2788.9593275943762,0,0,0,0,0,0,0,{"$f":"SUMPRODUCT(CC109:CK109,--(CC109:CK109>0))","v":14883.648523826349},{"$f":"-SUMPRODUCT(CC109:CK109,--(CC109:CK109<0))","v":0},null,{"$f":"AS109*IF(AU109=5,2425,IF(AU109=7.5,2648,IF(AU109=10,2871,IF(AU109=15,3317,IF(AU109=20,3763,IF(AU109=25,4209,IF(AU109=30,4655,0)))))))","v":2425},null,null,{"$f":"CM109+CO109","v":2425},{"$f":"IF(NetOrGross=\"Net\",(1-AO109+AP109),1)","v":1},{"$f":"(SUMPRODUCT(CC109:CJ109,--(CC109:CJ109>0))+CN109)*CS109/((-SUMPRODUCT(CC109:CJ109,--(CC109:CJ109<0))+MAX(CO109,CV109)+CP109+CQ109)*CS109+IF(FRIncentives=\"Yes\",CV109*(1-CS109),0))","v":6.1375870201345766},1,{"$f":"AS109*IF(AU109=5,400,IF(AU109=7.5,650,IF(AU109=10,1400,IF(AU109=15,1650,IF(AU109=20,1850,IF(AU109=25,2000,IF(AU109=30,2300,0)))))))","v":400},null,"RGGI","y",null,{"$f":"IF(F109=\"Manual Entry\",\"Manual\",IF(G109=\"\",0,\"X=\"&SUBSTITUTE(SUBSTITUTE(SUBSTITUTE(SUBSTITUTE(SUBSTITUTE(SUBSTITUTE(SUBSTITUTE(SUBSTITUTE(SUBSTITUTE(SUBSTITUTE(SUBSTITUTE(SUBSTITUTE(G109,$ED109,$ED$2&ROW($ED109)),$EC109,$EC$2&ROW($EC109)),$EB109,$EB$2&ROW($EB109)),$EA109,$EA$2&ROW($EA109)),$DZ109,$DZ$2&ROW($DZ109)),$DY109,$DY$2&ROW($DY109)),$DX109,$DX$2&ROW($DX109)),$DW109,$DW$2&ROW($DW109)),$DV109,$DV$2&ROW($DV109)),$DU109,$DU$2&ROW($DU109)),$DT109,$DT$2&ROW($DT109)),$DS109,$DS$2&ROW($DS109))))","v":"X=AS109*if(AU109=5,2425,if(AU109=7.5,2648,if(AU109=10,2871,if(AU109=15,3317,if(AU109=20,3763,if(AU109=25,4209,if(AU109=30,4655,0)))))))"},{"$f":"IF(I109=\"Manual Entry\",\"Manual\",IF(J109=\"\",0,\"X=\"&SUBSTITUTE(SUBSTITUTE(SUBSTITUTE(SUBSTITUTE(SUBSTITUTE(SUBSTITUTE(SUBSTITUTE(SUBSTITUTE(SUBSTITUTE(SUBSTITUTE(SUBSTITUTE(SUBSTITUTE(J109,$ED109,$ED$2&ROW($ED109)),$EC109,$EC$2&ROW($EC109)),$EB109,$EB$2&ROW($EB109)),$EA109,$EA$2&ROW($EA109)),$DZ109,$DZ$2&ROW($DZ109)),$DY109,$DY$2&ROW($DY109)),$DX109,$DX$2&ROW($DX109)),$DW109,$DW$2&ROW($DW109)),$DV109,$DV$2&ROW($DV109)),$DU109,$DU$2&ROW($DU109)),$DT109,$DT$2&ROW($DT109)),$DS109,$DS$2&ROW($DS109))))","v":"X=AS109*if(AU109=5,400,if(AU109=7.5,650,if(AU109=10,1400,if(AU109=15,1650,if(AU109=20,1850,if(AU109=25,2000,if(AU109=30,2300,0)))))))"},{"$f":"IF(O109=\"\",0,\"X=\"&SUBSTITUTE(SUBSTITUTE(SUBSTITUTE(SUBSTITUTE(SUBSTITUTE(SUBSTITUTE(SUBSTITUTE(SUBSTITUTE(SUBSTITUTE(SUBSTITUTE(SUBSTITUTE(SUBSTITUTE(O109,$ED109,$ED$2&ROW($ED109)),$EC109,$EC$2&ROW($EC109)),$EB109,$EB$2&ROW($EB109)),$EA109,$EA$2&ROW($EA109)),$DZ109,$DZ$2&ROW($DZ109)),$DY109,$DY$2&ROW($DY109)),$DX109,$DX$2&ROW($DX109)),$DW109,$DW$2&ROW($DW109)),$DV109,$DV$2&ROW($DV109)),$DU109,$DU$2&ROW($DU109)),$DT109,$DT$2&ROW($DT109)),$DS109,$DS$2&ROW($DS109)))","v":"X=AS109*AU109*1788"},{"$f":"IF(P109=\"\",0,\"X=\"&SUBSTITUTE(SUBSTITUTE(SUBSTITUTE(SUBSTITUTE(SUBSTITUTE(SUBSTITUTE(SUBSTITUTE(SUBSTITUTE(SUBSTITUTE(SUBSTITUTE(SUBSTITUTE(SUBSTITUTE(P109,$ED109,$ED$2&ROW($ED109)),$EC109,$EC$2&ROW($EC109)),$EB109,$EB$2&ROW($EB109)),$EA109,$EA$2&ROW($EA109)),$DZ109,$DZ$2&ROW($DZ109)),$DY109,$DY$2&ROW($DY109)),$DX109,$DX$2&ROW($DX109)),$DW109,$DW$2&ROW($DW109)),$DV109,$DV$2&ROW($DV109)),$DU109,$DU$2&ROW($DU109)),$DT109,$DT$2&ROW($DT109)),$DS109,$DS$2&ROW($DS109)))","v":0},{"$f":"IF(Q109=\"\",0,\"X=\"&SUBSTITUTE(SUBSTITUTE(SUBSTITUTE(SUBSTITUTE(SUBSTITUTE(SUBSTITUTE(SUBSTITUTE(SUBSTITUTE(SUBSTITUTE(SUBSTITUTE(SUBSTITUTE(SUBSTITUTE(Q109,$ED109,$ED$2&ROW($ED109)),$EC109,$EC$2&ROW($EC109)),$EB109,$EB$2&ROW($EB109)),$EA109,$EA$2&ROW($EA109)),$DZ109,$DZ$2&ROW($DZ109)),$DY109,$DY$2&ROW($DY109)),$DX109,$DX$2&ROW($DX109)),$DW109,$DW$2&ROW($DW109)),$DV109,$DV$2&ROW($DV109)),$DU109,$DU$2&ROW($DU109)),$DT109,$DT$2&ROW($DT109)),$DS109,$DS$2&ROW($DS109)))","v":0},{"$f":"IF(R109=\"\",0,\"X=\"&SUBSTITUTE(SUBSTITUTE(SUBSTITUTE(SUBSTITUTE(SUBSTITUTE(SUBSTITUTE(SUBSTITUTE(SUBSTITUTE(SUBSTITUTE(SUBSTITUTE(SUBSTITUTE(SUBSTITUTE(R109,$ED109,$ED$2&ROW($ED109)),$EC109,$EC$2&ROW($EC109)),$EB109,$EB$2&ROW($EB109)),$EA109,$EA$2&ROW($EA109)),$DZ109,$DZ$2&ROW($DZ109)),$DY109,$DY$2&ROW($DY109)),$DX109,$DX$2&ROW($DX109)),$DW109,$DW$2&ROW($DW109)),$DV109,$DV$2&ROW($DV109)),$DU109,$DU$2&ROW($DU109)),$DT109,$DT$2&ROW($DT109)),$DS109,$DS$2&ROW($DS109)))","v":"X=AS109*AU109*.302"},{"$f":"IF(S109=\"\",0,\"X=\"&SUBSTITUTE(SUBSTITUTE(SUBSTITUTE(SUBSTITUTE(SUBSTITUTE(SUBSTITUTE(SUBSTITUTE(SUBSTITUTE(SUBSTITUTE(SUBSTITUTE(SUBSTITUTE(SUBSTITUTE(S109,$ED109,$ED$2&ROW($ED109)),$EC109,$EC$2&ROW($EC109)),$EB109,$EB$2&ROW($EB109)),$EA109,$EA$2&ROW($EA109)),$DZ109,$DZ$2&ROW($DZ109)),$DY109,$DY$2&ROW($DY109)),$DX109,$DX$2&ROW($DX109)),$DW109,$DW$2&ROW($DW109)),$DV109,$DV$2&ROW($DV109)),$DU109,$DU$2&ROW($DU109)),$DT109,$DT$2&ROW($DT109)),$DS109,$DS$2&ROW($DS109)))","v":0},{"$f":"IF(T109=\"\",0,\"X=\"&SUBSTITUTE(SUBSTITUTE(SUBSTITUTE(SUBSTITUTE(SUBSTITUTE(SUBSTITUTE(SUBSTITUTE(SUBSTITUTE(SUBSTITUTE(SUBSTITUTE(SUBSTITUTE(SUBSTITUTE(T109,$ED109,$ED$2&ROW($ED109)),$EC109,$EC$2&ROW($EC109)),$EB109,$EB$2&ROW($EB109)),$EA109,$EA$2&ROW($EA109)),$DZ109,$DZ$2&ROW($DZ109)),$DY109,$DY$2&ROW($DY109)),$DX109,$DX$2&ROW($DX109)),$DW109,$DW$2&ROW($DW109)),$DV109,$DV$2&ROW($DV109)),$DU109,$DU$2&ROW($DU109)),$DT109,$DT$2&ROW($DT109)),$DS109,$DS$2&ROW($DS109)))","v":0},{"$f":"IF(U109=\"\",0,\"X=\"&SUBSTITUTE(SUBSTITUTE(SUBSTITUTE(SUBSTITUTE(SUBSTITUTE(SUBSTITUTE(SUBSTITUTE(SUBSTITUTE(SUBSTITUTE(SUBSTITUTE(SUBSTITUTE(SUBSTITUTE(U109,$ED109,$ED$2&ROW($ED109)),$EC109,$EC$2&ROW($EC109)),$EB109,$EB$2&ROW($EB109)),$EA109,$EA$2&ROW($EA109)),$DZ109,$DZ$2&ROW($DZ109)),$DY109,$DY$2&ROW($DY109)),$DX109,$DX$2&ROW($DX109)),$DW109,$DW$2&ROW($DW109)),$DV109,$DV$2&ROW($DV109)),$DU109,$DU$2&ROW($DU109)),$DT109,$DT$2&ROW($DT109)),$DS109,$DS$2&ROW($DS109)))","v":"X=AS109*AF109*AU109*.302"},{"$f":"IF(V109=\"\",0,\"X=\"&SUBSTITUTE(SUBSTITUTE(SUBSTITUTE(SUBSTITUTE(SUBSTITUTE(SUBSTITUTE(SUBSTITUTE(SUBSTITUTE(SUBSTITUTE(SUBSTITUTE(SUBSTITUTE(SUBSTITUTE(V109,$ED109,$ED$2&ROW($ED109)),$EC109,$EC$2&ROW($EC109)),$EB109,$EB$2&ROW($EB109)),$EA109,$EA$2&ROW($EA109)),$DZ109,$DZ$2&ROW($DZ109)),$DY109,$DY$2&ROW($DY109)),$DX109,$DX$2&ROW($DX109)),$DW109,$DW$2&ROW($DW109)),$DV109,$DV$2&ROW($DV109)),$DU109,$DU$2&ROW($DU109)),$DT109,$DT$2&ROW($DT109)),$DS109,$DS$2&ROW($DS109)))","v":"X=AS109*AG109*AU109*.302"},{"$f":"IF(W109=\"\",0,\"X=\"&SUBSTITUTE(SUBSTITUTE(SUBSTITUTE(SUBSTITUTE(SUBSTITUTE(SUBSTITUTE(SUBSTITUTE(SUBSTITUTE(SUBSTITUTE(SUBSTITUTE(SUBSTITUTE(SUBSTITUTE(W109,$ED109,$ED$2&ROW($ED109)),$EC109,$EC$2&ROW($EC109)),$EB109,$EB$2&ROW($EB109)),$EA109,$EA$2&ROW($EA109)),$DZ109,$DZ$2&ROW($DZ109)),$DY109,$DY$2&ROW($DY109)),$DX109,$DX$2&ROW($DX109)),$DW109,$DW$2&ROW($DW109)),$DV109,$DV$2&ROW($DV109)),$DU109,$DU$2&ROW($DU109)),$DT109,$DT$2&ROW($DT109)),$DS109,$DS$2&ROW($DS109)))","v":0},{"$f":"IF(X109=\"\",0,\"X=\"&SUBSTITUTE(SUBSTITUTE(SUBSTITUTE(SUBSTITUTE(SUBSTITUTE(SUBSTITUTE(SUBSTITUTE(SUBSTITUTE(SUBSTITUTE(SUBSTITUTE(SUBSTITUTE(SUBSTITUTE(X109,$ED109,$ED$2&ROW($ED109)),$EC109,$EC$2&ROW($EC109)),$EB109,$EB$2&ROW($EB109)),$EA109,$EA$2&ROW($EA109)),$DZ109,$DZ$2&ROW($DZ109)),$DY109,$DY$2&ROW($DY109)),$DX109,$DX$2&ROW($DX109)),$DW109,$DW$2&ROW($DW109)),$DV109,$DV$2&ROW($DV109)),$DU109,$DU$2&ROW($DU109)),$DT109,$DT$2&ROW($DT109)),$DS109,$DS$2&ROW($DS109)))","v":0},{"$f":"IF(Y109=\"\",0,\"X=\"&SUBSTITUTE(SUBSTITUTE(SUBSTITUTE(SUBSTITUTE(SUBSTITUTE(SUBSTITUTE(SUBSTITUTE(SUBSTITUTE(SUBSTITUTE(SUBSTITUTE(SUBSTITUTE(SUBSTITUTE(Y109,$ED109,$ED$2&ROW($ED109)),$EC109,$EC$2&ROW($EC109)),$EB109,$EB$2&ROW($EB109)),$EA109,$EA$2&ROW($EA109)),$DZ109,$DZ$2&ROW($DZ109)),$DY109,$DY$2&ROW($DY109)),$DX109,$DX$2&ROW($DX109)),$DW109,$DW$2&ROW($DW109)),$DV109,$DV$2&ROW($DV109)),$DU109,$DU$2&ROW($DU109)),$DT109,$DT$2&ROW($DT109)),$DS109,$DS$2&ROW($DS109)))","v":0},{"$f":"IF(Z109=\"\",0,\"X=\"&SUBSTITUTE(SUBSTITUTE(SUBSTITUTE(SUBSTITUTE(SUBSTITUTE(SUBSTITUTE(SUBSTITUTE(SUBSTITUTE(SUBSTITUTE(SUBSTITUTE(SUBSTITUTE(SUBSTITUTE(Z109,$ED109,$ED$2&ROW($ED109)),$EC109,$EC$2&ROW($EC109)),$EB109,$EB$2&ROW($EB109)),$EA109,$EA$2&ROW($EA109)),$DZ109,$DZ$2&ROW($DZ109)),$DY109,$DY$2&ROW($DY109)),$DX109,$DX$2&ROW($DX109)),$DW109,$DW$2&ROW($DW109)),$DV109,$DV$2&ROW($DV109)),$DU109,$DU$2&ROW($DU109)),$DT109,$DT$2&ROW($DT109)),$DS109,$DS$2&ROW($DS109)))","v":0},{"$f":"IF(AA109=\"\",0,\"X=\"&SUBSTITUTE(SUBSTITUTE(SUBSTITUTE(SUBSTITUTE(SUBSTITUTE(SUBSTITUTE(SUBSTITUTE(SUBSTITUTE(SUBSTITUTE(SUBSTITUTE(SUBSTITUTE(SUBSTITUTE(AA109,$ED109,$ED$2&ROW($ED109)),$EC109,$EC$2&ROW($EC109)),$EB109,$EB$2&ROW($EB109)),$EA109,$EA$2&ROW($EA109)),$DZ109,$DZ$2&ROW($DZ109)),$DY109,$DY$2&ROW($DY109)),$DX109,$DX$2&ROW($DX109)),$DW109,$DW$2&ROW($DW109)),$DV109,$DV$2&ROW($DV109)),$DU109,$DU$2&ROW($DU109)),$DT109,$DT$2&ROW($DT109)),$DS109,$DS$2&ROW($DS109)))","v":0},{"$f":"IF(AB109=\"\",0,\"X=\"&SUBSTITUTE(SUBSTITUTE(SUBSTITUTE(SUBSTITUTE(SUBSTITUTE(SUBSTITUTE(SUBSTITUTE(SUBSTITUTE(SUBSTITUTE(SUBSTITUTE(SUBSTITUTE(SUBSTITUTE(AB109,$ED109,$ED$2&ROW($ED109)),$EC109,$EC$2&ROW($EC109)),$EB109,$EB$2&ROW($EB109)),$EA109,$EA$2&ROW($EA109)),$DZ109,$DZ$2&ROW($DZ109)),$DY109,$DY$2&ROW($DY109)),$DX109,$DX$2&ROW($DX109)),$DW109,$DW$2&ROW($DW109)),$DV109,$DV$2&ROW($DV109)),$DU109,$DU$2&ROW($DU109)),$DT109,$DT$2&ROW($DT109)),$DS109,$DS$2&ROW($DS109)))","v":0},null,null,"{Factor:WinterCF}","{Factor:SummerCF}",{"$f":"IFERROR(INDEX($EG109:$IV109,MATCH(0,COUNTIF($DR109:DT109,$EG109:$IV109),0)),\"\")","v":"{Measure:Quantity}"},{"$f":"IFERROR(INDEX($EG109:$IV109,MATCH(0,COUNTIF($DR109:DU109,$EG109:$IV109),0)),\"\")","v":"{Motor HP}"},{"$f":"IFERROR(INDEX($EG109:$IV109,MATCH(0,COUNTIF($DR109:DV109,$EG109:$IV109),0)),\"\")","v":""},{"$f":"IFERROR(INDEX($EG109:$IV109,MATCH(0,COUNTIF($DR109:DW109,$EG109:$IV109),0)),\"\")","v":""},{"$f":"IFERROR(INDEX($EG109:$IV109,MATCH(0,COUNTIF($DR109:DX109,$EG109:$IV109),0)),\"\")","v":""},{"$f":"IFERROR(INDEX($EG109:$IV109,MATCH(0,COUNTIF($DR109:DY109,$EG109:$IV109),0)),\"\")","v":""},{"$f":"IFERROR(INDEX($EG109:$IV109,MATCH(0,COUNTIF($DR109:DZ109,$EG109:$IV109),0)),\"\")","v":""},{"$f":"IFERROR(INDEX($EG109:$IV109,MATCH(0,COUNTIF($DR109:EA109,$EG109:$IV109),0)),\"\")","v":""},{"$f":"IFERROR(INDEX($EG109:$IV109,MATCH(0,COUNTIF($DR109:EB109,$EG109:$IV109),0)),\"\")","v":""},{"$f":"IFERROR(INDEX($EG109:$IV109,MATCH(0,COUNTIF($DR109:EC109,$EG109:$IV109),0)),\"\")","v":""},null,null,{"$f":"IFERROR(MID($G109,FIND(CHAR(160),SUBSTITUTE($G109,\"{\",CHAR(160),EG$1)),FIND(CHAR(160),SUBSTITUTE($G109,\"}\",CHAR(160),EG$1))-FIND(CHAR(160),SUBSTITUTE($G109,\"{\",CHAR(160),EG$1))+1),\"\")","v":"{Measure:Quantity}"},{"$f":"IFERROR(MID($G109,FIND(CHAR(160),SUBSTITUTE($G109,\"{\",CHAR(160),EH$1)),FIND(CHAR(160),SUBSTITUTE($G109,\"}\",CHAR(160),EH$1))-FIND(CHAR(160),SUBSTITUTE($G109,\"{\",CHAR(160),EH$1))+1),\"\")","v":"{Motor HP}"},{"$f":"IFERROR(MID($G109,FIND(CHAR(160),SUBSTITUTE($G109,\"{\",CHAR(160),EI$1)),FIND(CHAR(160),SUBSTITUTE($G109,\"}\",CHAR(160),EI$1))-FIND(CHAR(160),SUBSTITUTE($G109,\"{\",CHAR(160),EI$1))+1),\"\")","v":"{Motor HP}"},{"$f":"IFERROR(MID($G109,FIND(CHAR(160),SUBSTITUTE($G109,\"{\",CHAR(160),EJ$1)),FIND(CHAR(160),SUBSTITUTE($G109,\"}\",CHAR(160),EJ$1))-FIND(CHAR(160),SUBSTITUTE($G109,\"{\",CHAR(160),EJ$1))+1),\"\")","v":"{Motor HP}"},{"$f":"IFERROR(MID($G109,FIND(CHAR(160),SUBSTITUTE($G109,\"{\",CHAR(160),EK$1)),FIND(CHAR(160),SUBSTITUTE($G109,\"}\",CHAR(160),EK$1))-FIND(CHAR(160),SUBSTITUTE($G109,\"{\",CHAR(160),EK$1))+1),\"\")","v":"{Motor HP}"},{"$f":"IFERROR(MID($G109,FIND(CHAR(160),SUBSTITUTE($G109,\"{\",CHAR(160),EL$1)),FIND(CHAR(160),SUBSTITUTE($G109,\"}\",CHAR(160),EL$1))-FIND(CHAR(160),SUBSTITUTE($G109,\"{\",CHAR(160),EL$1))+1),\"\")","v":"{Motor HP}"},{"$f":"IFERROR(MID($G109,FIND(CHAR(160),SUBSTITUTE($G109,\"{\",CHAR(160),EM$1)),FIND(CHAR(160),SUBSTITUTE($G109,\"}\",CHAR(160),EM$1))-FIND(CHAR(160),SUBSTITUTE($G109,\"{\",CHAR(160),EM$1))+1),\"\")","v":"{Motor HP}"},{"$f":"IFERROR(MID($G109,FIND(CHAR(160),SUBSTITUTE($G109,\"{\",CHAR(160),EN$1)),FIND(CHAR(160),SUBSTITUTE($G109,\"}\",CHAR(160),EN$1))-FIND(CHAR(160),SUBSTITUTE($G109,\"{\",CHAR(160),EN$1))+1),\"\")","v":"{Motor HP}"},{"$f":"IFERROR(MID($G109,FIND(CHAR(160),SUBSTITUTE($G109,\"{\",CHAR(160),EO$1)),FIND(CHAR(160),SUBSTITUTE($G109,\"}\",CHAR(160),EO$1))-FIND(CHAR(160),SUBSTITUTE($G109,\"{\",CHAR(160),EO$1))+1),\"\")","v":""},{"$f":"IFERROR(MID($G109,FIND(CHAR(160),SUBSTITUTE($G109,\"{\",CHAR(160),EP$1)),FIND(CHAR(160),SUBSTITUTE($G109,\"}\",CHAR(160),EP$1))-FIND(CHAR(160),SUBSTITUTE($G109,\"{\",CHAR(160),EP$1))+1),\"\")","v":""},{"$f":"IFERROR(MID($J109,FIND(CHAR(160),SUBSTITUTE($J109,\"{\",CHAR(160),EQ$1)),FIND(CHAR(160),SUBSTITUTE($J109,\"}\",CHAR(160),EQ$1))-FIND(CHAR(160),SUBSTITUTE($J109,\"{\",CHAR(160),EQ$1))+1),\"\")","v":"{Measure:Quantity}"},{"$f":"IFERROR(MID($J109,FIND(CHAR(160),SUBSTITUTE($J109,\"{\",CHAR(160),ER$1)),FIND(CHAR(160),SUBSTITUTE($J109,\"}\",CHAR(160),ER$1))-FIND(CHAR(160),SUBSTITUTE($J109,\"{\",CHAR(160),ER$1))+1),\"\")","v":"{Motor HP}"},{"$f":"IFERROR(MID($J109,FIND(CHAR(160),SUBSTITUTE($J109,\"{\",CHAR(160),ES$1)),FIND(CHAR(160),SUBSTITUTE($J109,\"}\",CHAR(160),ES$1))-FIND(CHAR(160),SUBSTITUTE($J109,\"{\",CHAR(160),ES$1))+1),\"\")","v":"{Motor HP}"},{"$f":"IFERROR(MID($J109,FIND(CHAR(160),SUBSTITUTE($J109,\"{\",CHAR(160),ET$1)),FIND(CHAR(160),SUBSTITUTE($J109,\"}\",CHAR(160),ET$1))-FIND(CHAR(160),SUBSTITUTE($J109,\"{\",CHAR(160),ET$1))+1),\"\")","v":"{Motor HP}"},{"$f":"IFERROR(MID($J109,FIND(CHAR(160),SUBSTITUTE($J109,\"{\",CHAR(160),EU$1)),FIND(CHAR(160),SUBSTITUTE($J109,\"}\",CHAR(160),EU$1))-FIND(CHAR(160),SUBSTITUTE($J109,\"{\",CHAR(160),EU$1))+1),\"\")","v":"{Motor HP}"},{"$f":"IFERROR(MID($J109,FIND(CHAR(160),SUBSTITUTE($J109,\"{\",CHAR(160),EV$1)),FIND(CHAR(160),SUBSTITUTE($J109,\"}\",CHAR(160),EV$1))-FIND(CHAR(160),SUBSTITUTE($J109,\"{\",CHAR(160),EV$1))+1),\"\")","v":"{Motor HP}"},{"$f":"IFERROR(MID($J109,FIND(CHAR(160),SUBSTITUTE($J109,\"{\",CHAR(160),EW$1)),FIND(CHAR(160),SUBSTITUTE($J109,\"}\",CHAR(160),EW$1))-FIND(CHAR(160),SUBSTITUTE($J109,\"{\",CHAR(160),EW$1))+1),\"\")","v":"{Motor HP}"},{"$f":"IFERROR(MID($J109,FIND(CHAR(160),SUBSTITUTE($J109,\"{\",CHAR(160),EX$1)),FIND(CHAR(160),SUBSTITUTE($J109,\"}\",CHAR(160),EX$1))-FIND(CHAR(160),SUBSTITUTE($J109,\"{\",CHAR(160),EX$1))+1),\"\")","v":"{Motor HP}"},{"$f":"IFERROR(MID($J109,FIND(CHAR(160),SUBSTITUTE($J109,\"{\",CHAR(160),EY$1)),FIND(CHAR(160),SUBSTITUTE($J109,\"}\",CHAR(160),EY$1))-FIND(CHAR(160),SUBSTITUTE($J109,\"{\",CHAR(160),EY$1))+1),\"\")","v":""},{"$f":"IFERROR(MID($J109,FIND(CHAR(160),SUBSTITUTE($J109,\"{\",CHAR(160),EZ$1)),FIND(CHAR(160),SUBSTITUTE($J109,\"}\",CHAR(160),EZ$1))-FIND(CHAR(160),SUBSTITUTE($J109,\"{\",CHAR(160),EZ$1))+1),\"\")","v":""},{"$f":"IFERROR(MID($J109,FIND(CHAR(160),SUBSTITUTE($J109,\"{\",CHAR(160),FA$1)),FIND(CHAR(160),SUBSTITUTE($J109,\"}\",CHAR(160),FA$1))-FIND(CHAR(160),SUBSTITUTE($J109,\"{\",CHAR(160),FA$1))+1),\"\")","v":"{Measure:Quantity}"},{"$f":"IFERROR(MID($J109,FIND(CHAR(160),SUBSTITUTE($J109,\"{\",CHAR(160),FB$1)),FIND(CHAR(160),SUBSTITUTE($J109,\"}\",CHAR(160),FB$1))-FIND(CHAR(160),SUBSTITUTE($J109,\"{\",CHAR(160),FB$1))+1),\"\")","v":"{Motor HP}"},{"$f":"IFERROR(MID($O109,FIND(CHAR(160),SUBSTITUTE($O109,\"{\",CHAR(160),FC$1)),FIND(CHAR(160),SUBSTITUTE($O109,\"}\",CHAR(160),FC$1))-FIND(CHAR(160),SUBSTITUTE($O109,\"{\",CHAR(160),FC$1))+1),\"\")","v":""},{"$f":"IFERROR(MID($O109,FIND(CHAR(160),SUBSTITUTE($O109,\"{\",CHAR(160),FD$1)),FIND(CHAR(160),SUBSTITUTE($O109,\"}\",CHAR(160),FD$1))-FIND(CHAR(160),SUBSTITUTE($O109,\"{\",CHAR(160),FD$1))+1),\"\")","v":""},{"$f":"IFERROR(MID($O109,FIND(CHAR(160),SUBSTITUTE($O109,\"{\",CHAR(160),FE$1)),FIND(CHAR(160),SUBSTITUTE($O109,\"}\",CHAR(160),FE$1))-FIND(CHAR(160),SUBSTITUTE($O109,\"{\",CHAR(160),FE$1))+1),\"\")","v":""},{"$f":"IFERROR(MID($O109,FIND(CHAR(160),SUBSTITUTE($O109,\"{\",CHAR(160),FF$1)),FIND(CHAR(160),SUBSTITUTE($O109,\"}\",CHAR(160),FF$1))-FIND(CHAR(160),SUBSTITUTE($O109,\"{\",CHAR(160),FF$1))+1),\"\")","v":""},{"$f":"IFERROR(MID($O109,FIND(CHAR(160),SUBSTITUTE($O109,\"{\",CHAR(160),FG$1)),FIND(CHAR(160),SUBSTITUTE($O109,\"}\",CHAR(160),FG$1))-FIND(CHAR(160),SUBSTITUTE($O109,\"{\",CHAR(160),FG$1))+1),\"\")","v":""},{"$f":"IFERROR(MID($O109,FIND(CHAR(160),SUBSTITUTE($O109,\"{\",CHAR(160),FH$1)),FIND(CHAR(160),SUBSTITUTE($O109,\"}\",CHAR(160),FH$1))-FIND(CHAR(160),SUBSTITUTE($O109,\"{\",CHAR(160),FH$1))+1),\"\")","v":""},{"$f":"IFERROR(MID($O109,FIND(CHAR(160),SUBSTITUTE($O109,\"{\",CHAR(160),FI$1)),FIND(CHAR(160),SUBSTITUTE($O109,\"}\",CHAR(160),FI$1))-FIND(CHAR(160),SUBSTITUTE($O109,\"{\",CHAR(160),FI$1))+1),\"\")","v":""},{"$f":"IFERROR(MID($O109,FIND(CHAR(160),SUBSTITUTE($O109,\"{\",CHAR(160),FJ$1)),FIND(CHAR(160),SUBSTITUTE($O109,\"}\",CHAR(160),FJ$1))-FIND(CHAR(160),SUBSTITUTE($O109,\"{\",CHAR(160),FJ$1))+1),\"\")","v":""},{"$f":"IFERROR(MID($O109,FIND(CHAR(160),SUBSTITUTE($O109,\"{\",CHAR(160),FK$1)),FIND(CHAR(160),SUBSTITUTE($O109,\"}\",CHAR(160),FK$1))-FIND(CHAR(160),SUBSTITUTE($O109,\"{\",CHAR(160),FK$1))+1),\"\")","v":"{Measure:Quantity}"},{"$f":"IFERROR(MID($O109,FIND(CHAR(160),SUBSTITUTE($O109,\"{\",CHAR(160),FL$1)),FIND(CHAR(160),SUBSTITUTE($O109,\"}\",CHAR(160),FL$1))-FIND(CHAR(160),SUBSTITUTE($O109,\"{\",CHAR(160),FL$1))+1),\"\")","v":"{Motor HP}"},{"$f":"IFERROR(MID($R109,FIND(CHAR(160),SUBSTITUTE($R109,\"{\",CHAR(160),FM$1)),FIND(CHAR(160),SUBSTITUTE($R109,\"}\",CHAR(160),FM$1))-FIND(CHAR(160),SUBSTITUTE($R109,\"{\",CHAR(160),FM$1))+1),\"\")","v":""},{"$f":"IFERROR(MID($R109,FIND(CHAR(160),SUBSTITUTE($R109,\"{\",CHAR(160),FN$1)),FIND(CHAR(160),SUBSTITUTE($R109,\"}\",CHAR(160),FN$1))-FIND(CHAR(160),SUBSTITUTE($R109,\"{\",CHAR(160),FN$1))+1),\"\")","v":""},{"$f":"IFERROR(MID($R109,FIND(CHAR(160),SUBSTITUTE($R109,\"{\",CHAR(160),FO$1)),FIND(CHAR(160),SUBSTITUTE($R109,\"}\",CHAR(160),FO$1))-FIND(CHAR(160),SUBSTITUTE($R109,\"{\",CHAR(160),FO$1))+1),\"\")","v":""},{"$f":"IFERROR(MID($R109,FIND(CHAR(160),SUBSTITUTE($R109,\"{\",CHAR(160),FP$1)),FIND(CHAR(160),SUBSTITUTE($R109,\"}\",CHAR(160),FP$1))-FIND(CHAR(160),SUBSTITUTE($R109,\"{\",CHAR(160),FP$1))+1),\"\")","v":""},{"$f":"IFERROR(MID($R109,FIND(CHAR(160),SUBSTITUTE($R109,\"{\",CHAR(160),FQ$1)),FIND(CHAR(160),SUBSTITUTE($R109,\"}\",CHAR(160),FQ$1))-FIND(CHAR(160),SUBSTITUTE($R109,\"{\",CHAR(160),FQ$1))+1),\"\")","v":""},{"$f":"IFERROR(MID($R109,FIND(CHAR(160),SUBSTITUTE($R109,\"{\",CHAR(160),FR$1)),FIND(CHAR(160),SUBSTITUTE($R109,\"}\",CHAR(160),FR$1))-FIND(CHAR(160),SUBSTITUTE($R109,\"{\",CHAR(160),FR$1))+1),\"\")","v":""},{"$f":"IFERROR(MID($R109,FIND(CHAR(160),SUBSTITUTE($R109,\"{\",CHAR(160),FS$1)),FIND(CHAR(160),SUBSTITUTE($R109,\"}\",CHAR(160),FS$1))-FIND(CHAR(160),SUBSTITUTE($R109,\"{\",CHAR(160),FS$1))+1),\"\")","v":""},{"$f":"IFERROR(MID($R109,FIND(CHAR(160),SUBSTITUTE($R109,\"{\",CHAR(160),FT$1)),FIND(CHAR(160),SUBSTITUTE($R109,\"}\",CHAR(160),FT$1))-FIND(CHAR(160),SUBSTITUTE($R109,\"{\",CHAR(160),FT$1))+1),\"\")","v":""},{"$f":"IFERROR(MID($R109,FIND(CHAR(160),SUBSTITUTE($R109,\"{\",CHAR(160),FU$1)),FIND(CHAR(160),SUBSTITUTE($R109,\"}\",CHAR(160),FU$1))-FIND(CHAR(160),SUBSTITUTE($R109,\"{\",CHAR(160),FU$1))+1),\"\")","v":"{Measure:Quantity}"},{"$f":"IFERROR(MID($R109,FIND(CHAR(160),SUBSTITUTE($R109,\"{\",CHAR(160),FV$1)),FIND(CHAR(160),SUBSTITUTE($R109,\"}\",CHAR(160),FV$1))-FIND(CHAR(160),SUBSTITUTE($R109,\"{\",CHAR(160),FV$1))+1),\"\")","v":"{Motor HP}"},{"$f":"IFERROR(MID($U109,FIND(CHAR(160),SUBSTITUTE($U109,\"{\",CHAR(160),FW$1)),FIND(CHAR(160),SUBSTITUTE($U109,\"}\",CHAR(160),FW$1))-FIND(CHAR(160),SUBSTITUTE($U109,\"{\",CHAR(160),FW$1))+1),\"\")","v":"{Motor HP}"},{"$f":"IFERROR(MID($U109,FIND(CHAR(160),SUBSTITUTE($U109,\"{\",CHAR(160),FX$1)),FIND(CHAR(160),SUBSTITUTE($U109,\"}\",CHAR(160),FX$1))-FIND(CHAR(160),SUBSTITUTE($U109,\"{\",CHAR(160),FX$1))+1),\"\")","v":""},{"$f":"IFERROR(MID($U109,FIND(CHAR(160),SUBSTITUTE($U109,\"{\",CHAR(160),FY$1)),FIND(CHAR(160),SUBSTITUTE($U109,\"}\",CHAR(160),FY$1))-FIND(CHAR(160),SUBSTITUTE($U109,\"{\",CHAR(160),FY$1))+1),\"\")","v":""},{"$f":"IFERROR(MID($U109,FIND(CHAR(160),SUBSTITUTE($U109,\"{\",CHAR(160),FZ$1)),FIND(CHAR(160),SUBSTITUTE($U109,\"}\",CHAR(160),FZ$1))-FIND(CHAR(160),SUBSTITUTE($U109,\"{\",CHAR(160),FZ$1))+1),\"\")","v":""},{"$f":"IFERROR(MID($U109,FIND(CHAR(160),SUBSTITUTE($U109,\"{\",CHAR(160),GA$1)),FIND(CHAR(160),SUBSTITUTE($U109,\"}\",CHAR(160),GA$1))-FIND(CHAR(160),SUBSTITUTE($U109,\"{\",CHAR(160),GA$1))+1),\"\")","v":""},{"$f":"IFERROR(MID($U109,FIND(CHAR(160),SUBSTITUTE($U109,\"{\",CHAR(160),GB$1)),FIND(CHAR(160),SUBSTITUTE($U109,\"}\",CHAR(160),GB$1))-FIND(CHAR(160),SUBSTITUTE($U109,\"{\",CHAR(160),GB$1))+1),\"\")","v":""},{"$f":"IFERROR(MID($U109,FIND(CHAR(160),SUBSTITUTE($U109,\"{\",CHAR(160),GC$1)),FIND(CHAR(160),SUBSTITUTE($U109,\"}\",CHAR(160),GC$1))-FIND(CHAR(160),SUBSTITUTE($U109,\"{\",CHAR(160),GC$1))+1),\"\")","v":""},{"$f":"IFERROR(MID($U109,FIND(CHAR(160),SUBSTITUTE($U109,\"{\",CHAR(160),GD$1)),FIND(CHAR(160),SUBSTITUTE($U109,\"}\",CHAR(160),GD$1))-FIND(CHAR(160),SUBSTITUTE($U109,\"{\",CHAR(160),GD$1))+1),\"\")","v":""},{"$f":"IFERROR(MID($U109,FIND(CHAR(160),SUBSTITUTE($U109,\"{\",CHAR(160),GE$1)),FIND(CHAR(160),SUBSTITUTE($U109,\"}\",CHAR(160),GE$1))-FIND(CHAR(160),SUBSTITUTE($U109,\"{\",CHAR(160),GE$1))+1),\"\")","v":"{Measure:Quantity}"},{"$f":"IFERROR(MID($U109,FIND(CHAR(160),SUBSTITUTE($U109,\"{\",CHAR(160),GF$1)),FIND(CHAR(160),SUBSTITUTE($U109,\"}\",CHAR(160),GF$1))-FIND(CHAR(160),SUBSTITUTE($U109,\"{\",CHAR(160),GF$1))+1),\"\")","v":"{Factor:WinterCF}"},{"$f":"IFERROR(MID($V109,FIND(CHAR(160),SUBSTITUTE($V109,\"{\",CHAR(160),GG$1)),FIND(CHAR(160),SUBSTITUTE($V109,\"}\",CHAR(160),GG$1))-FIND(CHAR(160),SUBSTITUTE($V109,\"{\",CHAR(160),GG$1))+1),\"\")","v":"{Motor HP}"},{"$f":"IFERROR(MID($V109,FIND(CHAR(160),SUBSTITUTE($V109,\"{\",CHAR(160),GH$1)),FIND(CHAR(160),SUBSTITUTE($V109,\"}\",CHAR(160),GH$1))-FIND(CHAR(160),SUBSTITUTE($V109,\"{\",CHAR(160),GH$1))+1),\"\")","v":""},{"$f":"IFERROR(MID($V109,FIND(CHAR(160),SUBSTITUTE($V109,\"{\",CHAR(160),GI$1)),FIND(CHAR(160),SUBSTITUTE($V109,\"}\",CHAR(160),GI$1))-FIND(CHAR(160),SUBSTITUTE($V109,\"{\",CHAR(160),GI$1))+1),\"\")","v":""},{"$f":"IFERROR(MID($V109,FIND(CHAR(160),SUBSTITUTE($V109,\"{\",CHAR(160),GJ$1)),FIND(CHAR(160),SUBSTITUTE($V109,\"}\",CHAR(160),GJ$1))-FIND(CHAR(160),SUBSTITUTE($V109,\"{\",CHAR(160),GJ$1))+1),\"\")","v":""},{"$f":"IFERROR(MID($V109,FIND(CHAR(160),SUBSTITUTE($V109,\"{\",CHAR(160),GK$1)),FIND(CHAR(160),SUBSTITUTE($V109,\"}\",CHAR(160),GK$1))-FIND(CHAR(160),SUBSTITUTE($V109,\"{\",CHAR(160),GK$1))+1),\"\")","v":""},{"$f":"IFERROR(MID($V109,FIND(CHAR(160),SUBSTITUTE($V109,\"{\",CHAR(160),GL$1)),FIND(CHAR(160),SUBSTITUTE($V109,\"}\",CHAR(160),GL$1))-FIND(CHAR(160),SUBSTITUTE($V109,\"{\",CHAR(160),GL$1))+1),\"\")","v":""},{"$f":"IFERROR(MID($V109,FIND(CHAR(160),SUBSTITUTE($V109,\"{\",CHAR(160),GM$1)),FIND(CHAR(160),SUBSTITUTE($V109,\"}\",CHAR(160),GM$1))-FIND(CHAR(160),SUBSTITUTE($V109,\"{\",CHAR(160),GM$1))+1),\"\")","v":""},{"$f":"IFERROR(MID($V109,FIND(CHAR(160),SUBSTITUTE($V109,\"{\",CHAR(160),GN$1)),FIND(CHAR(160),SUBSTITUTE($V109,\"}\",CHAR(160),GN$1))-FIND(CHAR(160),SUBSTITUTE($V109,\"{\",CHAR(160),GN$1))+1),\"\")","v":""},{"$f":"IFERROR(MID($V109,FIND(CHAR(160),SUBSTITUTE($V109,\"{\",CHAR(160),GO$1)),FIND(CHAR(160),SUBSTITUTE($V109,\"}\",CHAR(160),GO$1))-FIND(CHAR(160),SUBSTITUTE($V109,\"{\",CHAR(160),GO$1))+1),\"\")","v":"{Measure:Quantity}"},{"$f":"IFERROR(MID($V109,FIND(CHAR(160),SUBSTITUTE($V109,\"{\",CHAR(160),GP$1)),FIND(CHAR(160),SUBSTITUTE($V109,\"}\",CHAR(160),GP$1))-FIND(CHAR(160),SUBSTITUTE($V109,\"{\",CHAR(160),GP$1))+1),\"\")","v":"{Factor:SummerCF}"},{"$f":"IFERROR(MID($W109,FIND(CHAR(160),SUBSTITUTE($W109,\"{\",CHAR(160),GQ$1)),FIND(CHAR(160),SUBSTITUTE($W109,\"}\",CHAR(160),GQ$1))-FIND(CHAR(160),SUBSTITUTE($W109,\"{\",CHAR(160),GQ$1))+1),\"\")","v":""},{"$f":"IFERROR(MID($W109,FIND(CHAR(160),SUBSTITUTE($W109,\"{\",CHAR(160),GR$1)),FIND(CHAR(160),SUBSTITUTE($W109,\"}\",CHAR(160),GR$1))-FIND(CHAR(160),SUBSTITUTE($W109,\"{\",CHAR(160),GR$1))+1),\"\")","v":""},{"$f":"IFERROR(MID($W109,FIND(CHAR(160),SUBSTITUTE($W109,\"{\",CHAR(160),GS$1)),FIND(CHAR(160),SUBSTITUTE($W109,\"}\",CHAR(160),GS$1))-FIND(CHAR(160),SUBSTITUTE($W109,\"{\",CHAR(160),GS$1))+1),\"\")","v":""},{"$f":"IFERROR(MID($W109,FIND(CHAR(160),SUBSTITUTE($W109,\"{\",CHAR(160),GT$1)),FIND(CHAR(160),SUBSTITUTE($W109,\"}\",CHAR(160),GT$1))-FIND(CHAR(160),SUBSTITUTE($W109,\"{\",CHAR(160),GT$1))+1),\"\")","v":""},{"$f":"IFERROR(MID($W109,FIND(CHAR(160),SUBSTITUTE($W109,\"{\",CHAR(160),GU$1)),FIND(CHAR(160),SUBSTITUTE($W109,\"}\",CHAR(160),GU$1))-FIND(CHAR(160),SUBSTITUTE($W109,\"{\",CHAR(160),GU$1))+1),\"\")","v":""},{"$f":"IFERROR(MID($W109,FIND(CHAR(160),SUBSTITUTE($W109,\"{\",CHAR(160),GV$1)),FIND(CHAR(160),SUBSTITUTE($W109,\"}\",CHAR(160),GV$1))-FIND(CHAR(160),SUBSTITUTE($W109,\"{\",CHAR(160),GV$1))+1),\"\")","v":""},{"$f":"IFERROR(MID($W109,FIND(CHAR(160),SUBSTITUTE($W109,\"{\",CHAR(160),GW$1)),FIND(CHAR(160),SUBSTITUTE($W109,\"}\",CHAR(160),GW$1))-FIND(CHAR(160),SUBSTITUTE($W109,\"{\",CHAR(160),GW$1))+1),\"\")","v":""},{"$f":"IFERROR(MID($W109,FIND(CHAR(160),SUBSTITUTE($W109,\"{\",CHAR(160),GX$1)),FIND(CHAR(160),SUBSTITUTE($W109,\"}\",CHAR(160),GX$1))-FIND(CHAR(160),SUBSTITUTE($W109,\"{\",CHAR(160),GX$1))+1),\"\")","v":""},{"$f":"IFERROR(MID($W109,FIND(CHAR(160),SUBSTITUTE($W109,\"{\",CHAR(160),GY$1)),FIND(CHAR(160),SUBSTITUTE($W109,\"}\",CHAR(160),GY$1))-FIND(CHAR(160),SUBSTITUTE($W109,\"{\",CHAR(160),GY$1))+1),\"\")","v":""},{"$f":"IFERROR(MID($W109,FIND(CHAR(160),SUBSTITUTE($W109,\"{\",CHAR(160),GZ$1)),FIND(CHAR(160),SUBSTITUTE($W109,\"}\",CHAR(160),GZ$1))-FIND(CHAR(160),SUBSTITUTE($W109,\"{\",CHAR(160),GZ$1))+1),\"\")","v":""},{"$f":"IFERROR(MID($X109,FIND(CHAR(160),SUBSTITUTE($X109,\"{\",CHAR(160),HA$1)),FIND(CHAR(160),SUBSTITUTE($X109,\"}\",CHAR(160),HA$1))-FIND(CHAR(160),SUBSTITUTE($X109,\"{\",CHAR(160),HA$1))+1),\"\")","v":""},{"$f":"IFERROR(MID($X109,FIND(CHAR(160),SUBSTITUTE($X109,\"{\",CHAR(160),HB$1)),FIND(CHAR(160),SUBSTITUTE($X109,\"}\",CHAR(160),HB$1))-FIND(CHAR(160),SUBSTITUTE($X109,\"{\",CHAR(160),HB$1))+1),\"\")","v":""},{"$f":"IFERROR(MID($X109,FIND(CHAR(160),SUBSTITUTE($X109,\"{\",CHAR(160),HC$1)),FIND(CHAR(160),SUBSTITUTE($X109,\"}\",CHAR(160),HC$1))-FIND(CHAR(160),SUBSTITUTE($X109,\"{\",CHAR(160),HC$1))+1),\"\")","v":""},{"$f":"IFERROR(MID($X109,FIND(CHAR(160),SUBSTITUTE($X109,\"{\",CHAR(160),HD$1)),FIND(CHAR(160),SUBSTITUTE($X109,\"}\",CHAR(160),HD$1))-FIND(CHAR(160),SUBSTITUTE($X109,\"{\",CHAR(160),HD$1))+1),\"\")","v":""},{"$f":"IFERROR(MID($X109,FIND(CHAR(160),SUBSTITUTE($X109,\"{\",CHAR(160),HE$1)),FIND(CHAR(160),SUBSTITUTE($X109,\"}\",CHAR(160),HE$1))-FIND(CHAR(160),SUBSTITUTE($X109,\"{\",CHAR(160),HE$1))+1),\"\")","v":""},{"$f":"IFERROR(MID($X109,FIND(CHAR(160),SUBSTITUTE($X109,\"{\",CHAR(160),HF$1)),FIND(CHAR(160),SUBSTITUTE($X109,\"}\",CHAR(160),HF$1))-FIND(CHAR(160),SUBSTITUTE($X109,\"{\",CHAR(160),HF$1))+1),\"\")","v":""},{"$f":"IFERROR(MID($X109,FIND(CHAR(160),SUBSTITUTE($X109,\"{\",CHAR(160),HG$1)),FIND(CHAR(160),SUBSTITUTE($X109,\"}\",CHAR(160),HG$1))-FIND(CHAR(160),SUBSTITUTE($X109,\"{\",CHAR(160),HG$1))+1),\"\")","v":""},{"$f":"IFERROR(MID($X109,FIND(CHAR(160),SUBSTITUTE($X109,\"{\",CHAR(160),HH$1)),FIND(CHAR(160),SUBSTITUTE($X109,\"}\",CHAR(160),HH$1))-FIND(CHAR(160),SUBSTITUTE($X109,\"{\",CHAR(160),HH$1))+1),\"\")","v":""},{"$f":"IFERROR(MID($X109,FIND(CHAR(160),SUBSTITUTE($X109,\"{\",CHAR(160),HI$1)),FIND(CHAR(160),SUBSTITUTE($X109,\"}\",CHAR(160),HI$1))-FIND(CHAR(160),SUBSTITUTE($X109,\"{\",CHAR(160),HI$1))+1),\"\")","v":""},{"$f":"IFERROR(MID($X109,FIND(CHAR(160),SUBSTITUTE($X109,\"{\",CHAR(160),HJ$1)),FIND(CHAR(160),SUBSTITUTE($X109,\"}\",CHAR(160),HJ$1))-FIND(CHAR(160),SUBSTITUTE($X109,\"{\",CHAR(160),HJ$1))+1),\"\")","v":""},{"$f":"IFERROR(MID($Y109,FIND(CHAR(160),SUBSTITUTE($Y109,\"{\",CHAR(160),HK$1)),FIND(CHAR(160),SUBSTITUTE($Y109,\"}\",CHAR(160),HK$1))-FIND(CHAR(160),SUBSTITUTE($Y109,\"{\",CHAR(160),HK$1))+1),\"\")","v":""},{"$f":"IFERROR(MID($Y109,FIND(CHAR(160),SUBSTITUTE($Y109,\"{\",CHAR(160),HL$1)),FIND(CHAR(160),SUBSTITUTE($Y109,\"}\",CHAR(160),HL$1))-FIND(CHAR(160),SUBSTITUTE($Y109,\"{\",CHAR(160),HL$1))+1),\"\")","v":""},{"$f":"IFERROR(MID($Y109,FIND(CHAR(160),SUBSTITUTE($Y109,\"{\",CHAR(160),HM$1)),FIND(CHAR(160),SUBSTITUTE($Y109,\"}\",CHAR(160),HM$1))-FIND(CHAR(160),SUBSTITUTE($Y109,\"{\",CHAR(160),HM$1))+1),\"\")","v":""},{"$f":"IFERROR(MID($Y109,FIND(CHAR(160),SUBSTITUTE($Y109,\"{\",CHAR(160),HN$1)),FIND(CHAR(160),SUBSTITUTE($Y109,\"}\",CHAR(160),HN$1))-FIND(CHAR(160),SUBSTITUTE($Y109,\"{\",CHAR(160),HN$1))+1),\"\")","v":""},{"$f":"IFERROR(MID($Y109,FIND(CHAR(160),SUBSTITUTE($Y109,\"{\",CHAR(160),HO$1)),FIND(CHAR(160),SUBSTITUTE($Y109,\"}\",CHAR(160),HO$1))-FIND(CHAR(160),SUBSTITUTE($Y109,\"{\",CHAR(160),HO$1))+1),\"\")","v":""},{"$f":"IFERROR(MID($Y109,FIND(CHAR(160),SUBSTITUTE($Y109,\"{\",CHAR(160),HP$1)),FIND(CHAR(160),SUBSTITUTE($Y109,\"}\",CHAR(160),HP$1))-FIND(CHAR(160),SUBSTITUTE($Y109,\"{\",CHAR(160),HP$1))+1),\"\")","v":""},{"$f":"IFERROR(MID($Y109,FIND(CHAR(160),SUBSTITUTE($Y109,\"{\",CHAR(160),HQ$1)),FIND(CHAR(160),SUBSTITUTE($Y109,\"}\",CHAR(160),HQ$1))-FIND(CHAR(160),SUBSTITUTE($Y109,\"{\",CHAR(160),HQ$1))+1),\"\")","v":""},{"$f":"IFERROR(MID($Y109,FIND(CHAR(160),SUBSTITUTE($Y109,\"{\",CHAR(160),HR$1)),FIND(CHAR(160),SUBSTITUTE($Y109,\"}\",CHAR(160),HR$1))-FIND(CHAR(160),SUBSTITUTE($Y109,\"{\",CHAR(160),HR$1))+1),\"\")","v":""},{"$f":"IFERROR(MID($Y109,FIND(CHAR(160),SUBSTITUTE($Y109,\"{\",CHAR(160),HS$1)),FIND(CHAR(160),SUBSTITUTE($Y109,\"}\",CHAR(160),HS$1))-FIND(CHAR(160),SUBSTITUTE($Y109,\"{\",CHAR(160),HS$1))+1),\"\")","v":""},{"$f":"IFERROR(MID($Y109,FIND(CHAR(160),SUBSTITUTE($Y109,\"{\",CHAR(160),HT$1)),FIND(CHAR(160),SUBSTITUTE($Y109,\"}\",CHAR(160),HT$1))-FIND(CHAR(160),SUBSTITUTE($Y109,\"{\",CHAR(160),HT$1))+1),\"\")","v":""},{"$f":"IFERROR(MID($Z109,FIND(CHAR(160),SUBSTITUTE($Z109,\"{\",CHAR(160),HU$1)),FIND(CHAR(160),SUBSTITUTE($Z109,\"}\",CHAR(160),HU$1))-FIND(CHAR(160),SUBSTITUTE($Z109,\"{\",CHAR(160),HU$1))+1),\"\")","v":""},{"$f":"IFERROR(MID($Z109,FIND(CHAR(160),SUBSTITUTE($Z109,\"{\",CHAR(160),HV$1)),FIND(CHAR(160),SUBSTITUTE($Z109,\"}\",CHAR(160),HV$1))-FIND(CHAR(160),SUBSTITUTE($Z109,\"{\",CHAR(160),HV$1))+1),\"\")","v":""},{"$f":"IFERROR(MID($Z109,FIND(CHAR(160),SUBSTITUTE($Z109,\"{\",CHAR(160),HW$1)),FIND(CHAR(160),SUBSTITUTE($Z109,\"}\",CHAR(160),HW$1))-FIND(CHAR(160),SUBSTITUTE($Z109,\"{\",CHAR(160),HW$1))+1),\"\")","v":""},{"$f":"IFERROR(MID($Z109,FIND(CHAR(160),SUBSTITUTE($Z109,\"{\",CHAR(160),HX$1)),FIND(CHAR(160),SUBSTITUTE($Z109,\"}\",CHAR(160),HX$1))-FIND(CHAR(160),SUBSTITUTE($Z109,\"{\",CHAR(160),HX$1))+1),\"\")","v":""},{"$f":"IFERROR(MID($Z109,FIND(CHAR(160),SUBSTITUTE($Z109,\"{\",CHAR(160),HY$1)),FIND(CHAR(160),SUBSTITUTE($Z109,\"}\",CHAR(160),HY$1))-FIND(CHAR(160),SUBSTITUTE($Z109,\"{\",CHAR(160),HY$1))+1),\"\")","v":""},{"$f":"IFERROR(MID($Z109,FIND(CHAR(160),SUBSTITUTE($Z109,\"{\",CHAR(160),HZ$1)),FIND(CHAR(160),SUBSTITUTE($Z109,\"}\",CHAR(160),HZ$1))-FIND(CHAR(160),SUBSTITUTE($Z109,\"{\",CHAR(160),HZ$1))+1),\"\")","v":""},{"$f":"IFERROR(MID($Z109,FIND(CHAR(160),SUBSTITUTE($Z109,\"{\",CHAR(160),IA$1)),FIND(CHAR(160),SUBSTITUTE($Z109,\"}\",CHAR(160),IA$1))-FIND(CHAR(160),SUBSTITUTE($Z109,\"{\",CHAR(160),IA$1))+1),\"\")","v":""},{"$f":"IFERROR(MID($Z109,FIND(CHAR(160),SUBSTITUTE($Z109,\"{\",CHAR(160),IB$1)),FIND(CHAR(160),SUBSTITUTE($Z109,\"}\",CHAR(160),IB$1))-FIND(CHAR(160),SUBSTITUTE($Z109,\"{\",CHAR(160),IB$1))+1),\"\")","v":""},{"$f":"IFERROR(MID($Z109,FIND(CHAR(160),SUBSTITUTE($Z109,\"{\",CHAR(160),IC$1)),FIND(CHAR(160),SUBSTITUTE($Z109,\"}\",CHAR(160),IC$1))-FIND(CHAR(160),SUBSTITUTE($Z109,\"{\",CHAR(160),IC$1))+1),\"\")","v":""},{"$f":"IFERROR(MID($Z109,FIND(CHAR(160),SUBSTITUTE($Z109,\"{\",CHAR(160),ID$1)),FIND(CHAR(160),SUBSTITUTE($Z109,\"}\",CHAR(160),ID$1))-FIND(CHAR(160),SUBSTITUTE($Z109,\"{\",CHAR(160),ID$1))+1),\"\")","v":""},{"$f":"IFERROR(MID($AA109,FIND(CHAR(160),SUBSTITUTE($AA109,\"{\",CHAR(160),IE$1)),FIND(CHAR(160),SUBSTITUTE($AA109,\"}\",CHAR(160),IE$1))-FIND(CHAR(160),SUBSTITUTE($AA109,\"{\",CHAR(160),IE$1))+1),\"\")","v":""},{"$f":"IFERROR(MID($AA109,FIND(CHAR(160),SUBSTITUTE($AA109,\"{\",CHAR(160),IF$1)),FIND(CHAR(160),SUBSTITUTE($AA109,\"}\",CHAR(160),IF$1))-FIND(CHAR(160),SUBSTITUTE($AA109,\"{\",CHAR(160),IF$1))+1),\"\")","v":""},{"$f":"IFERROR(MID($AA109,FIND(CHAR(160),SUBSTITUTE($AA109,\"{\",CHAR(160),IG$1)),FIND(CHAR(160),SUBSTITUTE($AA109,\"}\",CHAR(160),IG$1))-FIND(CHAR(160),SUBSTITUTE($AA109,\"{\",CHAR(160),IG$1))+1),\"\")","v":""},{"$f":"IFERROR(MID($AA109,FIND(CHAR(160),SUBSTITUTE($AA109,\"{\",CHAR(160),IH$1)),FIND(CHAR(160),SUBSTITUTE($AA109,\"}\",CHAR(160),IH$1))-FIND(CHAR(160),SUBSTITUTE($AA109,\"{\",CHAR(160),IH$1))+1),\"\")","v":""},{"$f":"IFERROR(MID($AA109,FIND(CHAR(160),SUBSTITUTE($AA109,\"{\",CHAR(160),II$1)),FIND(CHAR(160),SUBSTITUTE($AA109,\"}\",CHAR(160),II$1))-FIND(CHAR(160),SUBSTITUTE($AA109,\"{\",CHAR(160),II$1))+1),\"\")","v":""},{"$f":"IFERROR(MID($AA109,FIND(CHAR(160),SUBSTITUTE($AA109,\"{\",CHAR(160),IJ$1)),FIND(CHAR(160),SUBSTITUTE($AA109,\"}\",CHAR(160),IJ$1))-FIND(CHAR(160),SUBSTITUTE($AA109,\"{\",CHAR(160),IJ$1))+1),\"\")","v":""},{"$f":"IFERROR(MID($AA109,FIND(CHAR(160),SUBSTITUTE($AA109,\"{\",CHAR(160),IK$1)),FIND(CHAR(160),SUBSTITUTE($AA109,\"}\",CHAR(160),IK$1))-FIND(CHAR(160),SUBSTITUTE($AA109,\"{\",CHAR(160),IK$1))+1),\"\")","v":""},{"$f":"IFERROR(MID($AA109,FIND(CHAR(160),SUBSTITUTE($AA109,\"{\",CHAR(160),IL$1)),FIND(CHAR(160),SUBSTITUTE($AA109,\"}\",CHAR(160),IL$1))-FIND(CHAR(160),SUBSTITUTE($AA109,\"{\",CHAR(160),IL$1))+1),\"\")","v":""},{"$f":"IFERROR(MID($AA109,FIND(CHAR(160),SUBSTITUTE($AA109,\"{\",CHAR(160),IM$1)),FIND(CHAR(160),SUBSTITUTE($AA109,\"}\",CHAR(160),IM$1))-FIND(CHAR(160),SUBSTITUTE($AA109,\"{\",CHAR(160),IM$1))+1),\"\")","v":""},{"$f":"IFERROR(MID($AA109,FIND(CHAR(160),SUBSTITUTE($AA109,\"{\",CHAR(160),IN$1)),FIND(CHAR(160),SUBSTITUTE($AA109,\"}\",CHAR(160),IN$1))-FIND(CHAR(160),SUBSTITUTE($AA109,\"{\",CHAR(160),IN$1))+1),\"\")","v":""},{"$f":"IFERROR(MID($AB109,FIND(CHAR(160),SUBSTITUTE($AB109,\"{\",CHAR(160),IO$1)),FIND(CHAR(160),SUBSTITUTE($AB109,\"}\",CHAR(160),IO$1))-FIND(CHAR(160),SUBSTITUTE($AB109,\"{\",CHAR(160),IO$1))+1),\"\")","v":""},{"$f":"IFERROR(MID($AB109,FIND(CHAR(160),SUBSTITUTE($AB109,\"{\",CHAR(160),IP$1)),FIND(CHAR(160),SUBSTITUTE($AB109,\"}\",CHAR(160),IP$1))-FIND(CHAR(160),SUBSTITUTE($AB109,\"{\",CHAR(160),IP$1))+1),\"\")","v":""},{"$f":"IFERROR(MID($AB109,FIND(CHAR(160),SUBSTITUTE($AB109,\"{\",CHAR(160),IQ$1)),FIND(CHAR(160),SUBSTITUTE($AB109,\"}\",CHAR(160),IQ$1))-FIND(CHAR(160),SUBSTITUTE($AB109,\"{\",CHAR(160),IQ$1))+1),\"\")","v":""},{"$f":"IFERROR(MID($AB109,FIND(CHAR(160),SUBSTITUTE($AB109,\"{\",CHAR(160),IR$1)),FIND(CHAR(160),SUBSTITUTE($AB109,\"}\",CHAR(160),IR$1))-FIND(CHAR(160),SUBSTITUTE($AB109,\"{\",CHAR(160),IR$1))+1),\"\")","v":""},{"$f":"IFERROR(MID($AB109,FIND(CHAR(160),SUBSTITUTE($AB109,\"{\",CHAR(160),IS$1)),FIND(CHAR(160),SUBSTITUTE($AB109,\"}\",CHAR(160),IS$1))-FIND(CHAR(160),SUBSTITUTE($AB109,\"{\",CHAR(160),IS$1))+1),\"\")","v":""},{"$f":"IFERROR(MID($AB109,FIND(CHAR(160),SUBSTITUTE($AB109,\"{\",CHAR(160),IT$1)),FIND(CHAR(160),SUBSTITUTE($AB109,\"}\",CHAR(160),IT$1))-FIND(CHAR(160),SUBSTITUTE($AB109,\"{\",CHAR(160),IT$1))+1),\"\")","v":""},{"$f":"IFERROR(MID($AB109,FIND(CHAR(160),SUBSTITUTE($AB109,\"{\",CHAR(160),IU$1)),FIND(CHAR(160),SUBSTITUTE($AB109,\"}\",CHAR(160),IU$1))-FIND(CHAR(160),SUBSTITUTE($AB109,\"{\",CHAR(160),IU$1))+1),\"\")","v":""},{"$f":"IFERROR(MID($AB109,FIND(CHAR(160),SUBSTITUTE($AB109,\"{\",CHAR(160),IV$1)),FIND(CHAR(160),SUBSTITUTE($AB109,\"}\",CHAR(160),IV$1))-FIND(CHAR(160),SUBSTITUTE($AB109,\"{\",CHAR(160),IV$1))+1),\"\")","v":""},{"$f":"IFERROR(MID($AB109,FIND(CHAR(160),SUBSTITUTE($AB109,\"{\",CHAR(160),IW$1)),FIND(CHAR(160),SUBSTITUTE($AB109,\"}\",CHAR(160),IW$1))-FIND(CHAR(160),SUBSTITUTE($AB109,\"{\",CHAR(160),IW$1))+1),\"\")","v":""},{"$f":"IFERROR(MID($AB109,FIND(CHAR(160),SUBSTITUTE($AB109,\"{\",CHAR(160),IX$1)),FIND(CHAR(160),SUBSTITUTE($AB109,\"}\",CHAR(160),IX$1))-FIND(CHAR(160),SUBSTITUTE($AB109,\"{\",CHAR(160),IX$1))+1),\"\")","v":""},null,{"$f":"10-COUNTIF(DU109:ED109,\"\")","v":2}]
["C&I HVAC - Propane and Compressed NG","VFD: Supply Fan on VAV Air Handler","SFA","2021-07-01","2022-06-30","Calculated","{Measure:Quantity}*if({Motor HP}=5,2425,if({Motor HP}=7.5,2648,if({Motor HP}=10,2871,if({Motor HP}=15,3317,if({Motor HP}=20,3763,if({Motor HP}=25,4209,if({Motor HP}=30,4655,0)))))))",0,"Calculated","{Measure:Quantity}*if({Motor HP}=5,400,if({Motor HP}=7.5,650,if({Motor HP}=10,1400,if({Motor HP}=15,1650,if({Motor HP}=20,1850,if({Motor HP}=25,2000,if({Motor HP}=30,2300,0)))))))",0,"2021-05-25","2022-06-30","Calculated","{Measure:Quantity}*{Motor HP}*2033",null,null,"{Measure:Quantity}*{Motor HP}*.288",null,null,"{Measure:Quantity}*{Factor:WinterCF}*{Motor HP}*.288","{Measure:Quantity}*{Factor:SummerCF}*{Motor HP}*.288",null,null,null,null,null,null,"2021-05-25","2022-06-30",13,0.14599999999999999,0.48699999999999999,0.39,0.30499999999999999,0.216,8.8999999999999996E-2,1,1.1220000000000001,1,0.52,1.6E-2,null,{"$f":"DU110","v":"{Measure:Quantity}"},1,{"$f":"DV110","v":"{Motor HP}"},5,{"$f":"DW110","v":""},null,{"$f":"DX110","v":""},null,{"$f":"DY110","v":""},null,{"$f":"DZ110","v":""},null,{"$f":"EA110","v":""},null,{"$f":"EB110","v":""},null,{"$f":"EC110","v":""},null,{"$f":"ED110","v":""},null,{"$f":"AS110*AU110*2033","v":10165},0,0,{"$f":"AS110*AU110*0.288","v":1.44},0,0,{"$f":"AS110*AF110*AU110*0.288","v":0.21023999999999998},{"$f":"AS110*AG110*AU110*0.288","v":0.70128000000000001},0,0,0,0,0,0,null,"Res","Default DR",{"$f":"Benefits(BL110,BR110,BS110,BT110,BU110,BV110,BW110,BX110,BY110,BZ110,AE110,AH110,AI110,AJ110,AK110,AL110,AM110,AN110,AO110,AP110,CA110,CB110)","v":13744.956792968991},1878.4068826873533,0,0,0,0,0,0,0,{"$f":"SUMPRODUCT(CC110:CK110,--(CC110:CK110>0))","v":15623.363675656345},{"$f":"-SUMPRODUCT(CC110:CK110,--(CC110:CK110<0))","v":0},null,{"$f":"AS110*IF(AU110=5,2425,IF(AU110=7.5,2648,IF(AU110=10,2871,IF(AU110=15,3317,IF(AU110=20,3763,IF(AU110=25,4209,IF(AU110=30,4655,0)))))))","v":2425},null,null,{"$f":"CM110+CO110","v":2425},{"$f":"IF(NetOrGross=\"Net\",(1-AO110+AP110),1)","v":1},{"$f":"(SUMPRODUCT(CC110:CJ110,--(CC110:CJ110>0))+CN110)*CS110/((-SUMPRODUCT(CC110:CJ110,--(CC110:CJ110<0))+MAX(CO110,CV110)+CP110+CQ110)*CS110+IF(FRIncentives=\"Yes\",CV110*(1-CS110),0))","v":6.4426241961469461},1,{"$f":"AS110*IF(AU110=5,400,IF(AU110=7.5,650,IF(AU110=10,1400,IF(AU110=15,1650,IF(AU110=20,1850,IF(AU110=25,2000,IF(AU110=30,2300,0)))))))","v":400},null,"RGGI","y",null,{"$f":"IF(F110=\"Manual Entry\",\"Manual\",IF(G110=\"\",0,\"X=\"&SUBSTITUTE(SUBSTITUTE(SUBSTITUTE(SUBSTITUTE(SUBSTITUTE(SUBSTITUTE(SUBSTITUTE(SUBSTITUTE(SUBSTITUTE(SUBSTITUTE(SUBSTITUTE(SUBSTITUTE(G110,$ED110,$ED$2&ROW($ED110)),$EC110,$EC$2&ROW($EC110)),$EB110,$EB$2&ROW($EB110)),$EA110,$EA$2&ROW($EA110)),$DZ110,$DZ$2&ROW($DZ110)),$DY110,$DY$2&ROW($DY110)),$DX110,$DX$2&ROW($DX110)),$DW110,$DW$2&ROW($DW110)),$DV110,$DV$2&ROW($DV110)),$DU110,$DU$2&ROW($DU110)),$DT110,$DT$2&ROW($DT110)),$DS110,$DS$2&ROW($DS110))))","v":"X=AS110*if(AU110=5,2425,if(AU110=7.5,2648,if(AU110=10,2871,if(AU110=15,3317,if(AU110=20,3763,if(AU110=25,4209,if(AU110=30,4655,0)))))))"},{"$f":"IF(I110=\"Manual Entry\",\"Manual\",IF(J110=\"\",0,\"X=\"&SUBSTITUTE(SUBSTITUTE(SUBSTITUTE(SUBSTITUTE(SUBSTITUTE(SUBSTITUTE(SUBSTITUTE(SUBSTITUTE(SUBSTITUTE(SUBSTITUTE(SUBSTITUTE(SUBSTITUTE(J110,$ED110,$ED$2&ROW($ED110)),$EC110,$EC$2&ROW($EC110)),$EB110,$EB$2&ROW($EB110)),$EA110,$EA$2&ROW($EA110)),$DZ110,$DZ$2&ROW($DZ110)),$DY110,$DY$2&ROW($DY110)),$DX110,$DX$2&ROW($DX110)),$DW110,$DW$2&ROW($DW110)),$DV110,$DV$2&ROW($DV110)),$DU110,$DU$2&ROW($DU110)),$DT110,$DT$2&ROW($DT110)),$DS110,$DS$2&ROW($DS110))))","v":"X=AS110*if(AU110=5,400,if(AU110=7.5,650,if(AU110=10,1400,if(AU110=15,1650,if(AU110=20,1850,if(AU110=25,2000,if(AU110=30,2300,0)))))))"},{"$f":"IF(O110=\"\",0,\"X=\"&SUBSTITUTE(SUBSTITUTE(SUBSTITUTE(SUBSTITUTE(SUBSTITUTE(SUBSTITUTE(SUBSTITUTE(SUBSTITUTE(SUBSTITUTE(SUBSTITUTE(SUBSTITUTE(SUBSTITUTE(O110,$ED110,$ED$2&ROW($ED110)),$EC110,$EC$2&ROW($EC110)),$EB110,$EB$2&ROW($EB110)),$EA110,$EA$2&ROW($EA110)),$DZ110,$DZ$2&ROW($DZ110)),$DY110,$DY$2&ROW($DY110)),$DX110,$DX$2&ROW($DX110)),$DW110,$DW$2&ROW($DW110)),$DV110,$DV$2&ROW($DV110)),$DU110,$DU$2&ROW($DU110)),$DT110,$DT$2&ROW($DT110)),$DS110,$DS$2&ROW($DS110)))","v":"X=AS110*AU110*2033"},{"$f":"IF(P110=\"\",0,\"X=\"&SUBSTITUTE(SUBSTITUTE(SUBSTITUTE(SUBSTITUTE(SUBSTITUTE(SUBSTITUTE(SUBSTITUTE(SUBSTITUTE(SUBSTITUTE(SUBSTITUTE(SUBSTITUTE(SUBSTITUTE(P110,$ED110,$ED$2&ROW($ED110)),$EC110,$EC$2&ROW($EC110)),$EB110,$EB$2&ROW($EB110)),$EA110,$EA$2&ROW($EA110)),$DZ110,$DZ$2&ROW($DZ110)),$DY110,$DY$2&ROW($DY110)),$DX110,$DX$2&ROW($DX110)),$DW110,$DW$2&ROW($DW110)),$DV110,$DV$2&ROW($DV110)),$DU110,$DU$2&ROW($DU110)),$DT110,$DT$2&ROW($DT110)),$DS110,$DS$2&ROW($DS110)))","v":0},{"$f":"IF(Q110=\"\",0,\"X=\"&SUBSTITUTE(SUBSTITUTE(SUBSTITUTE(SUBSTITUTE(SUBSTITUTE(SUBSTITUTE(SUBSTITUTE(SUBSTITUTE(SUBSTITUTE(SUBSTITUTE(SUBSTITUTE(SUBSTITUTE(Q110,$ED110,$ED$2&ROW($ED110)),$EC110,$EC$2&ROW($EC110)),$EB110,$EB$2&ROW($EB110)),$EA110,$EA$2&ROW($EA110)),$DZ110,$DZ$2&ROW($DZ110)),$DY110,$DY$2&ROW($DY110)),$DX110,$DX$2&ROW($DX110)),$DW110,$DW$2&ROW($DW110)),$DV110,$DV$2&ROW($DV110)),$DU110,$DU$2&ROW($DU110)),$DT110,$DT$2&ROW($DT110)),$DS110,$DS$2&ROW($DS110)))","v":0},{"$f":"IF(R110=\"\",0,\"X=\"&SUBSTITUTE(SUBSTITUTE(SUBSTITUTE(SUBSTITUTE(SUBSTITUTE(SUBSTITUTE(SUBSTITUTE(SUBSTITUTE(SUBSTITUTE(SUBSTITUTE(SUBSTITUTE(SUBSTITUTE(R110,$ED110,$ED$2&ROW($ED110)),$EC110,$EC$2&ROW($EC110)),$EB110,$EB$2&ROW($EB110)),$EA110,$EA$2&ROW($EA110)),$DZ110,$DZ$2&ROW($DZ110)),$DY110,$DY$2&ROW($DY110)),$DX110,$DX$2&ROW($DX110)),$DW110,$DW$2&ROW($DW110)),$DV110,$DV$2&ROW($DV110)),$DU110,$DU$2&ROW($DU110)),$DT110,$DT$2&ROW($DT110)),$DS110,$DS$2&ROW($DS110)))","v":"X=AS110*AU110*.288"},{"$f":"IF(S110=\"\",0,\"X=\"&SUBSTITUTE(SUBSTITUTE(SUBSTITUTE(SUBSTITUTE(SUBSTITUTE(SUBSTITUTE(SUBSTITUTE(SUBSTITUTE(SUBSTITUTE(SUBSTITUTE(SUBSTITUTE(SUBSTITUTE(S110,$ED110,$ED$2&ROW($ED110)),$EC110,$EC$2&ROW($EC110)),$EB110,$EB$2&ROW($EB110)),$EA110,$EA$2&ROW($EA110)),$DZ110,$DZ$2&ROW($DZ110)),$DY110,$DY$2&ROW($DY110)),$DX110,$DX$2&ROW($DX110)),$DW110,$DW$2&ROW($DW110)),$DV110,$DV$2&ROW($DV110)),$DU110,$DU$2&ROW($DU110)),$DT110,$DT$2&ROW($DT110)),$DS110,$DS$2&ROW($DS110)))","v":0},{"$f":"IF(T110=\"\",0,\"X=\"&SUBSTITUTE(SUBSTITUTE(SUBSTITUTE(SUBSTITUTE(SUBSTITUTE(SUBSTITUTE(SUBSTITUTE(SUBSTITUTE(SUBSTITUTE(SUBSTITUTE(SUBSTITUTE(SUBSTITUTE(T110,$ED110,$ED$2&ROW($ED110)),$EC110,$EC$2&ROW($EC110)),$EB110,$EB$2&ROW($EB110)),$EA110,$EA$2&ROW($EA110)),$DZ110,$DZ$2&ROW($DZ110)),$DY110,$DY$2&ROW($DY110)),$DX110,$DX$2&ROW($DX110)),$DW110,$DW$2&ROW($DW110)),$DV110,$DV$2&ROW($DV110)),$DU110,$DU$2&ROW($DU110)),$DT110,$DT$2&ROW($DT110)),$DS110,$DS$2&ROW($DS110)))","v":0},{"$f":"IF(U110=\"\",0,\"X=\"&SUBSTITUTE(SUBSTITUTE(SUBSTITUTE(SUBSTITUTE(SUBSTITUTE(SUBSTITUTE(SUBSTITUTE(SUBSTITUTE(SUBSTITUTE(SUBSTITUTE(SUBSTITUTE(SUBSTITUTE(U110,$ED110,$ED$2&ROW($ED110)),$EC110,$EC$2&ROW($EC110)),$EB110,$EB$2&ROW($EB110)),$EA110,$EA$2&ROW($EA110)),$DZ110,$DZ$2&ROW($DZ110)),$DY110,$DY$2&ROW($DY110)),$DX110,$DX$2&ROW($DX110)),$DW110,$DW$2&ROW($DW110)),$DV110,$DV$2&ROW($DV110)),$DU110,$DU$2&ROW($DU110)),$DT110,$DT$2&ROW($DT110)),$DS110,$DS$2&ROW($DS110)))","v":"X=AS110*AF110*AU110*.288"},{"$f":"IF(V110=\"\",0,\"X=\"&SUBSTITUTE(SUBSTITUTE(SUBSTITUTE(SUBSTITUTE(SUBSTITUTE(SUBSTITUTE(SUBSTITUTE(SUBSTITUTE(SUBSTITUTE(SUBSTITUTE(SUBSTITUTE(SUBSTITUTE(V110,$ED110,$ED$2&ROW($ED110)),$EC110,$EC$2&ROW($EC110)),$EB110,$EB$2&ROW($EB110)),$EA110,$EA$2&ROW($EA110)),$DZ110,$DZ$2&ROW($DZ110)),$DY110,$DY$2&ROW($DY110)),$DX110,$DX$2&ROW($DX110)),$DW110,$DW$2&ROW($DW110)),$DV110,$DV$2&ROW($DV110)),$DU110,$DU$2&ROW($DU110)),$DT110,$DT$2&ROW($DT110)),$DS110,$DS$2&ROW($DS110)))","v":"X=AS110*AG110*AU110*.288"},{"$f":"IF(W110=\"\",0,\"X=\"&SUBSTITUTE(SUBSTITUTE(SUBSTITUTE(SUBSTITUTE(SUBSTITUTE(SUBSTITUTE(SUBSTITUTE(SUBSTITUTE(SUBSTITUTE(SUBSTITUTE(SUBSTITUTE(SUBSTITUTE(W110,$ED110,$ED$2&ROW($ED110)),$EC110,$EC$2&ROW($EC110)),$EB110,$EB$2&ROW($EB110)),$EA110,$EA$2&ROW($EA110)),$DZ110,$DZ$2&ROW($DZ110)),$DY110,$DY$2&ROW($DY110)),$DX110,$DX$2&ROW($DX110)),$DW110,$DW$2&ROW($DW110)),$DV110,$DV$2&ROW($DV110)),$DU110,$DU$2&ROW($DU110)),$DT110,$DT$2&ROW($DT110)),$DS110,$DS$2&ROW($DS110)))","v":0},{"$f":"IF(X110=\"\",0,\"X=\"&SUBSTITUTE(SUBSTITUTE(SUBSTITUTE(SUBSTITUTE(SUBSTITUTE(SUBSTITUTE(SUBSTITUTE(SUBSTITUTE(SUBSTITUTE(SUBSTITUTE(SUBSTITUTE(SUBSTITUTE(X110,$ED110,$ED$2&ROW($ED110)),$EC110,$EC$2&ROW($EC110)),$EB110,$EB$2&ROW($EB110)),$EA110,$EA$2&ROW($EA110)),$DZ110,$DZ$2&ROW($DZ110)),$DY110,$DY$2&ROW($DY110)),$DX110,$DX$2&ROW($DX110)),$DW110,$DW$2&ROW($DW110)),$DV110,$DV$2&ROW($DV110)),$DU110,$DU$2&ROW($DU110)),$DT110,$DT$2&ROW($DT110)),$DS110,$DS$2&ROW($DS110)))","v":0},{"$f":"IF(Y110=\"\",0,\"X=\"&SUBSTITUTE(SUBSTITUTE(SUBSTITUTE(SUBSTITUTE(SUBSTITUTE(SUBSTITUTE(SUBSTITUTE(SUBSTITUTE(SUBSTITUTE(SUBSTITUTE(SUBSTITUTE(SUBSTITUTE(Y110,$ED110,$ED$2&ROW($ED110)),$EC110,$EC$2&ROW($EC110)),$EB110,$EB$2&ROW($EB110)),$EA110,$EA$2&ROW($EA110)),$DZ110,$DZ$2&ROW($DZ110)),$DY110,$DY$2&ROW($DY110)),$DX110,$DX$2&ROW($DX110)),$DW110,$DW$2&ROW($DW110)),$DV110,$DV$2&ROW($DV110)),$DU110,$DU$2&ROW($DU110)),$DT110,$DT$2&ROW($DT110)),$DS110,$DS$2&ROW($DS110)))","v":0},{"$f":"IF(Z110=\"\",0,\"X=\"&SUBSTITUTE(SUBSTITUTE(SUBSTITUTE(SUBSTITUTE(SUBSTITUTE(SUBSTITUTE(SUBSTITUTE(SUBSTITUTE(SUBSTITUTE(SUBSTITUTE(SUBSTITUTE(SUBSTITUTE(Z110,$ED110,$ED$2&ROW($ED110)),$EC110,$EC$2&ROW($EC110)),$EB110,$EB$2&ROW($EB110)),$EA110,$EA$2&ROW($EA110)),$DZ110,$DZ$2&ROW($DZ110)),$DY110,$DY$2&ROW($DY110)),$DX110,$DX$2&ROW($DX110)),$DW110,$DW$2&ROW($DW110)),$DV110,$DV$2&ROW($DV110)),$DU110,$DU$2&ROW($DU110)),$DT110,$DT$2&ROW($DT110)),$DS110,$DS$2&ROW($DS110)))","v":0},{"$f":"IF(AA110=\"\",0,\"X=\"&SUBSTITUTE(SUBSTITUTE(SUBSTITUTE(SUBSTITUTE(SUBSTITUTE(SUBSTITUTE(SUBSTITUTE(SUBSTITUTE(SUBSTITUTE(SUBSTITUTE(SUBSTITUTE(SUBSTITUTE(AA110,$ED110,$ED$2&ROW($ED110)),$EC110,$EC$2&ROW($EC110)),$EB110,$EB$2&ROW($EB110)),$EA110,$EA$2&ROW($EA110)),$DZ110,$DZ$2&ROW($DZ110)),$DY110,$DY$2&ROW($DY110)),$DX110,$DX$2&ROW($DX110)),$DW110,$DW$2&ROW($DW110)),$DV110,$DV$2&ROW($DV110)),$DU110,$DU$2&ROW($DU110)),$DT110,$DT$2&ROW($DT110)),$DS110,$DS$2&ROW($DS110)))","v":0},{"$f":"IF(AB110=\"\",0,\"X=\"&SUBSTITUTE(SUBSTITUTE(SUBSTITUTE(SUBSTITUTE(SUBSTITUTE(SUBSTITUTE(SUBSTITUTE(SUBSTITUTE(SUBSTITUTE(SUBSTITUTE(SUBSTITUTE(SUBSTITUTE(AB110,$ED110,$ED$2&ROW($ED110)),$EC110,$EC$2&ROW($EC110)),$EB110,$EB$2&ROW($EB110)),$EA110,$EA$2&ROW($EA110)),$DZ110,$DZ$2&ROW($DZ110)),$DY110,$DY$2&ROW($DY110)),$DX110,$DX$2&ROW($DX110)),$DW110,$DW$2&ROW($DW110)),$DV110,$DV$2&ROW($DV110)),$DU110,$DU$2&ROW($DU110)),$DT110,$DT$2&ROW($DT110)),$DS110,$DS$2&ROW($DS110)))","v":0},null,null,"{Factor:WinterCF}","{Factor:SummerCF}",{"$f":"IFERROR(INDEX($EG110:$IV110,MATCH(0,COUNTIF($DR110:DT110,$EG110:$IV110),0)),\"\")","v":"{Measure:Quantity}"},{"$f":"IFERROR(INDEX($EG110:$IV110,MATCH(0,COUNTIF($DR110:DU110,$EG110:$IV110),0)),\"\")","v":"{Motor HP}"},{"$f":"IFERROR(INDEX($EG110:$IV110,MATCH(0,COUNTIF($DR110:DV110,$EG110:$IV110),0)),\"\")","v":""},{"$f":"IFERROR(INDEX($EG110:$IV110,MATCH(0,COUNTIF($DR110:DW110,$EG110:$IV110),0)),\"\")","v":""},{"$f":"IFERROR(INDEX($EG110:$IV110,MATCH(0,COUNTIF($DR110:DX110,$EG110:$IV110),0)),\"\")","v":""},{"$f":"IFERROR(INDEX($EG110:$IV110,MATCH(0,COUNTIF($DR110:DY110,$EG110:$IV110),0)),\"\")","v":""},{"$f":"IFERROR(INDEX($EG110:$IV110,MATCH(0,COUNTIF($DR110:DZ110,$EG110:$IV110),0)),\"\")","v":""},{"$f":"IFERROR(INDEX($EG110:$IV110,MATCH(0,COUNTIF($DR110:EA110,$EG110:$IV110),0)),\"\")","v":""},{"$f":"IFERROR(INDEX($EG110:$IV110,MATCH(0,COUNTIF($DR110:EB110,$EG110:$IV110),0)),\"\")","v":""},{"$f":"IFERROR(INDEX($EG110:$IV110,MATCH(0,COUNTIF($DR110:EC110,$EG110:$IV110),0)),\"\")","v":""},null,null,{"$f":"IFERROR(MID($G110,FIND(CHAR(160),SUBSTITUTE($G110,\"{\",CHAR(160),EG$1)),FIND(CHAR(160),SUBSTITUTE($G110,\"}\",CHAR(160),EG$1))-FIND(CHAR(160),SUBSTITUTE($G110,\"{\",CHAR(160),EG$1))+1),\"\")","v":"{Measure:Quantity}"},{"$f":"IFERROR(MID($G110,FIND(CHAR(160),SUBSTITUTE($G110,\"{\",CHAR(160),EH$1)),FIND(CHAR(160),SUBSTITUTE($G110,\"}\",CHAR(160),EH$1))-FIND(CHAR(160),SUBSTITUTE($G110,\"{\",CHAR(160),EH$1))+1),\"\")","v":"{Motor HP}"},{"$f":"IFERROR(MID($G110,FIND(CHAR(160),SUBSTITUTE($G110,\"{\",CHAR(160),EI$1)),FIND(CHAR(160),SUBSTITUTE($G110,\"}\",CHAR(160),EI$1))-FIND(CHAR(160),SUBSTITUTE($G110,\"{\",CHAR(160),EI$1))+1),\"\")","v":"{Motor HP}"},{"$f":"IFERROR(MID($G110,FIND(CHAR(160),SUBSTITUTE($G110,\"{\",CHAR(160),EJ$1)),FIND(CHAR(160),SUBSTITUTE($G110,\"}\",CHAR(160),EJ$1))-FIND(CHAR(160),SUBSTITUTE($G110,\"{\",CHAR(160),EJ$1))+1),\"\")","v":"{Motor HP}"},{"$f":"IFERROR(MID($G110,FIND(CHAR(160),SUBSTITUTE($G110,\"{\",CHAR(160),EK$1)),FIND(CHAR(160),SUBSTITUTE($G110,\"}\",CHAR(160),EK$1))-FIND(CHAR(160),SUBSTITUTE($G110,\"{\",CHAR(160),EK$1))+1),\"\")","v":"{Motor HP}"},{"$f":"IFERROR(MID($G110,FIND(CHAR(160),SUBSTITUTE($G110,\"{\",CHAR(160),EL$1)),FIND(CHAR(160),SUBSTITUTE($G110,\"}\",CHAR(160),EL$1))-FIND(CHAR(160),SUBSTITUTE($G110,\"{\",CHAR(160),EL$1))+1),\"\")","v":"{Motor HP}"},{"$f":"IFERROR(MID($G110,FIND(CHAR(160),SUBSTITUTE($G110,\"{\",CHAR(160),EM$1)),FIND(CHAR(160),SUBSTITUTE($G110,\"}\",CHAR(160),EM$1))-FIND(CHAR(160),SUBSTITUTE($G110,\"{\",CHAR(160),EM$1))+1),\"\")","v":"{Motor HP}"},{"$f":"IFERROR(MID($G110,FIND(CHAR(160),SUBSTITUTE($G110,\"{\",CHAR(160),EN$1)),FIND(CHAR(160),SUBSTITUTE($G110,\"}\",CHAR(160),EN$1))-FIND(CHAR(160),SUBSTITUTE($G110,\"{\",CHAR(160),EN$1))+1),\"\")","v":"{Motor HP}"},{"$f":"IFERROR(MID($G110,FIND(CHAR(160),SUBSTITUTE($G110,\"{\",CHAR(160),EO$1)),FIND(CHAR(160),SUBSTITUTE($G110,\"}\",CHAR(160),EO$1))-FIND(CHAR(160),SUBSTITUTE($G110,\"{\",CHAR(160),EO$1))+1),\"\")","v":""},{"$f":"IFERROR(MID($G110,FIND(CHAR(160),SUBSTITUTE($G110,\"{\",CHAR(160),EP$1)),FIND(CHAR(160),SUBSTITUTE($G110,\"}\",CHAR(160),EP$1))-FIND(CHAR(160),SUBSTITUTE($G110,\"{\",CHAR(160),EP$1))+1),\"\")","v":""},{"$f":"IFERROR(MID($J110,FIND(CHAR(160),SUBSTITUTE($J110,\"{\",CHAR(160),EQ$1)),FIND(CHAR(160),SUBSTITUTE($J110,\"}\",CHAR(160),EQ$1))-FIND(CHAR(160),SUBSTITUTE($J110,\"{\",CHAR(160),EQ$1))+1),\"\")","v":"{Measure:Quantity}"},{"$f":"IFERROR(MID($J110,FIND(CHAR(160),SUBSTITUTE($J110,\"{\",CHAR(160),ER$1)),FIND(CHAR(160),SUBSTITUTE($J110,\"}\",CHAR(160),ER$1))-FIND(CHAR(160),SUBSTITUTE($J110,\"{\",CHAR(160),ER$1))+1),\"\")","v":"{Motor HP}"},{"$f":"IFERROR(MID($J110,FIND(CHAR(160),SUBSTITUTE($J110,\"{\",CHAR(160),ES$1)),FIND(CHAR(160),SUBSTITUTE($J110,\"}\",CHAR(160),ES$1))-FIND(CHAR(160),SUBSTITUTE($J110,\"{\",CHAR(160),ES$1))+1),\"\")","v":"{Motor HP}"},{"$f":"IFERROR(MID($J110,FIND(CHAR(160),SUBSTITUTE($J110,\"{\",CHAR(160),ET$1)),FIND(CHAR(160),SUBSTITUTE($J110,\"}\",CHAR(160),ET$1))-FIND(CHAR(160),SUBSTITUTE($J110,\"{\",CHAR(160),ET$1))+1),\"\")","v":"{Motor HP}"},{"$f":"IFERROR(MID($J110,FIND(CHAR(160),SUBSTITUTE($J110,\"{\",CHAR(160),EU$1)),FIND(CHAR(160),SUBSTITUTE($J110,\"}\",CHAR(160),EU$1))-FIND(CHAR(160),SUBSTITUTE($J110,\"{\",CHAR(160),EU$1))+1),\"\")","v":"{Motor HP}"},{"$f":"IFERROR(MID($J110,FIND(CHAR(160),SUBSTITUTE($J110,\"{\",CHAR(160),EV$1)),FIND(CHAR(160),SUBSTITUTE($J110,\"}\",CHAR(160),EV$1))-FIND(CHAR(160),SUBSTITUTE($J110,\"{\",CHAR(160),EV$1))+1),\"\")","v":"{Motor HP}"},{"$f":"IFERROR(MID($J110,FIND(CHAR(160),SUBSTITUTE($J110,\"{\",CHAR(160),EW$1)),FIND(CHAR(160),SUBSTITUTE($J110,\"}\",CHAR(160),EW$1))-FIND(CHAR(160),SUBSTITUTE($J110,\"{\",CHAR(160),EW$1))+1),\"\")","v":"{Motor HP}"},{"$f":"IFERROR(MID($J110,FIND(CHAR(160),SUBSTITUTE($J110,\"{\",CHAR(160),EX$1)),FIND(CHAR(160),SUBSTITUTE($J110,\"}\",CHAR(160),EX$1))-FIND(CHAR(160),SUBSTITUTE($J110,\"{\",CHAR(160),EX$1))+1),\"\")","v":"{Motor HP}"},{"$f":"IFERROR(MID($J110,FIND(CHAR(160),SUBSTITUTE($J110,\"{\",CHAR(160),EY$1)),FIND(CHAR(160),SUBSTITUTE($J110,\"}\",CHAR(160),EY$1))-FIND(CHAR(160),SUBSTITUTE($J110,\"{\",CHAR(160),EY$1))+1),\"\")","v":""},{"$f":"IFERROR(MID($J110,FIND(CHAR(160),SUBSTITUTE($J110,\"{\",CHAR(160),EZ$1)),FIND(CHAR(160),SUBSTITUTE($J110,\"}\",CHAR(160),EZ$1))-FIND(CHAR(160),SUBSTITUTE($J110,\"{\",CHAR(160),EZ$1))+1),\"\")","v":""},{"$f":"IFERROR(MID($J110,FIND(CHAR(160),SUBSTITUTE($J110,\"{\",CHAR(160),FA$1)),FIND(CHAR(160),SUBSTITUTE($J110,\"}\",CHAR(160),FA$1))-FIND(CHAR(160),SUBSTITUTE($J110,\"{\",CHAR(160),FA$1))+1),\"\")","v":"{Measure:Quantity}"},{"$f":"IFERROR(MID($J110,FIND(CHAR(160),SUBSTITUTE($J110,\"{\",CHAR(160),FB$1)),FIND(CHAR(160),SUBSTITUTE($J110,\"}\",CHAR(160),FB$1))-FIND(CHAR(160),SUBSTITUTE($J110,\"{\",CHAR(160),FB$1))+1),\"\")","v":"{Motor HP}"},{"$f":"IFERROR(MID($O110,FIND(CHAR(160),SUBSTITUTE($O110,\"{\",CHAR(160),FC$1)),FIND(CHAR(160),SUBSTITUTE($O110,\"}\",CHAR(160),FC$1))-FIND(CHAR(160),SUBSTITUTE($O110,\"{\",CHAR(160),FC$1))+1),\"\")","v":""},{"$f":"IFERROR(MID($O110,FIND(CHAR(160),SUBSTITUTE($O110,\"{\",CHAR(160),FD$1)),FIND(CHAR(160),SUBSTITUTE($O110,\"}\",CHAR(160),FD$1))-FIND(CHAR(160),SUBSTITUTE($O110,\"{\",CHAR(160),FD$1))+1),\"\")","v":""},{"$f":"IFERROR(MID($O110,FIND(CHAR(160),SUBSTITUTE($O110,\"{\",CHAR(160),FE$1)),FIND(CHAR(160),SUBSTITUTE($O110,\"}\",CHAR(160),FE$1))-FIND(CHAR(160),SUBSTITUTE($O110,\"{\",CHAR(160),FE$1))+1),\"\")","v":""},{"$f":"IFERROR(MID($O110,FIND(CHAR(160),SUBSTITUTE($O110,\"{\",CHAR(160),FF$1)),FIND(CHAR(160),SUBSTITUTE($O110,\"}\",CHAR(160),FF$1))-FIND(CHAR(160),SUBSTITUTE($O110,\"{\",CHAR(160),FF$1))+1),\"\")","v":""},{"$f":"IFERROR(MID($O110,FIND(CHAR(160),SUBSTITUTE($O110,\"{\",CHAR(160),FG$1)),FIND(CHAR(160),SUBSTITUTE($O110,\"}\",CHAR(160),FG$1))-FIND(CHAR(160),SUBSTITUTE($O110,\"{\",CHAR(160),FG$1))+1),\"\")","v":""},{"$f":"IFERROR(MID($O110,FIND(CHAR(160),SUBSTITUTE($O110,\"{\",CHAR(160),FH$1)),FIND(CHAR(160),SUBSTITUTE($O110,\"}\",CHAR(160),FH$1))-FIND(CHAR(160),SUBSTITUTE($O110,\"{\",CHAR(160),FH$1))+1),\"\")","v":""},{"$f":"IFERROR(MID($O110,FIND(CHAR(160),SUBSTITUTE($O110,\"{\",CHAR(160),FI$1)),FIND(CHAR(160),SUBSTITUTE($O110,\"}\",CHAR(160),FI$1))-FIND(CHAR(160),SUBSTITUTE($O110,\"{\",CHAR(160),FI$1))+1),\"\")","v":""},{"$f":"IFERROR(MID($O110,FIND(CHAR(160),SUBSTITUTE($O110,\"{\",CHAR(160),FJ$1)),FIND(CHAR(160),SUBSTITUTE($O110,\"}\",CHAR(160),FJ$1))-FIND(CHAR(160),SUBSTITUTE($O110,\"{\",CHAR(160),FJ$1))+1),\"\")","v":""},{"$f":"IFERROR(MID($O110,FIND(CHAR(160),SUBSTITUTE($O110,\"{\",CHAR(160),FK$1)),FIND(CHAR(160),SUBSTITUTE($O110,\"}\",CHAR(160),FK$1))-FIND(CHAR(160),SUBSTITUTE($O110,\"{\",CHAR(160),FK$1))+1),\"\")","v":"{Measure:Quantity}"},{"$f":"IFERROR(MID($O110,FIND(CHAR(160),SUBSTITUTE($O110,\"{\",CHAR(160),FL$1)),FIND(CHAR(160),SUBSTITUTE($O110,\"}\",CHAR(160),FL$1))-FIND(CHAR(160),SUBSTITUTE($O110,\"{\",CHAR(160),FL$1))+1),\"\")","v":"{Motor HP}"},{"$f":"IFERROR(MID($R110,FIND(CHAR(160),SUBSTITUTE($R110,\"{\",CHAR(160),FM$1)),FIND(CHAR(160),SUBSTITUTE($R110,\"}\",CHAR(160),FM$1))-FIND(CHAR(160),SUBSTITUTE($R110,\"{\",CHAR(160),FM$1))+1),\"\")","v":""},{"$f":"IFERROR(MID($R110,FIND(CHAR(160),SUBSTITUTE($R110,\"{\",CHAR(160),FN$1)),FIND(CHAR(160),SUBSTITUTE($R110,\"}\",CHAR(160),FN$1))-FIND(CHAR(160),SUBSTITUTE($R110,\"{\",CHAR(160),FN$1))+1),\"\")","v":""},{"$f":"IFERROR(MID($R110,FIND(CHAR(160),SUBSTITUTE($R110,\"{\",CHAR(160),FO$1)),FIND(CHAR(160),SUBSTITUTE($R110,\"}\",CHAR(160),FO$1))-FIND(CHAR(160),SUBSTITUTE($R110,\"{\",CHAR(160),FO$1))+1),\"\")","v":""},{"$f":"IFERROR(MID($R110,FIND(CHAR(160),SUBSTITUTE($R110,\"{\",CHAR(160),FP$1)),FIND(CHAR(160),SUBSTITUTE($R110,\"}\",CHAR(160),FP$1))-FIND(CHAR(160),SUBSTITUTE($R110,\"{\",CHAR(160),FP$1))+1),\"\")","v":""},{"$f":"IFERROR(MID($R110,FIND(CHAR(160),SUBSTITUTE($R110,\"{\",CHAR(160),FQ$1)),FIND(CHAR(160),SUBSTITUTE($R110,\"}\",CHAR(160),FQ$1))-FIND(CHAR(160),SUBSTITUTE($R110,\"{\",CHAR(160),FQ$1))+1),\"\")","v":""},{"$f":"IFERROR(MID($R110,FIND(CHAR(160),SUBSTITUTE($R110,\"{\",CHAR(160),FR$1)),FIND(CHAR(160),SUBSTITUTE($R110,\"}\",CHAR(160),FR$1))-FIND(CHAR(160),SUBSTITUTE($R110,\"{\",CHAR(160),FR$1))+1),\"\")","v":""},{"$f":"IFERROR(MID($R110,FIND(CHAR(160),SUBSTITUTE($R110,\"{\",CHAR(160),FS$1)),FIND(CHAR(160),SUBSTITUTE($R110,\"}\",CHAR(160),FS$1))-FIND(CHAR(160),SUBSTITUTE($R110,\"{\",CHAR(160),FS$1))+1),\"\")","v":""},{"$f":"IFERROR(MID($R110,FIND(CHAR(160),SUBSTITUTE($R110,\"{\",CHAR(160),FT$1)),FIND(CHAR(160),SUBSTITUTE($R110,\"}\",CHAR(160),FT$1))-FIND(CHAR(160),SUBSTITUTE($R110,\"{\",CHAR(160),FT$1))+1),\"\")","v":""},{"$f":"IFERROR(MID($R110,FIND(CHAR(160),SUBSTITUTE($R110,\"{\",CHAR(160),FU$1)),FIND(CHAR(160),SUBSTITUTE($R110,\"}\",CHAR(160),FU$1))-FIND(CHAR(160),SUBSTITUTE($R110,\"{\",CHAR(160),FU$1))+1),\"\")","v":"{Measure:Quantity}"},{"$f":"IFERROR(MID($R110,FIND(CHAR(160),SUBSTITUTE($R110,\"{\",CHAR(160),FV$1)),FIND(CHAR(160),SUBSTITUTE($R110,\"}\",CHAR(160),FV$1))-FIND(CHAR(160),SUBSTITUTE($R110,\"{\",CHAR(160),FV$1))+1),\"\")","v":"{Motor HP}"},{"$f":"IFERROR(MID($U110,FIND(CHAR(160),SUBSTITUTE($U110,\"{\",CHAR(160),FW$1)),FIND(CHAR(160),SUBSTITUTE($U110,\"}\",CHAR(160),FW$1))-FIND(CHAR(160),SUBSTITUTE($U110,\"{\",CHAR(160),FW$1))+1),\"\")","v":"{Motor HP}"},{"$f":"IFERROR(MID($U110,FIND(CHAR(160),SUBSTITUTE($U110,\"{\",CHAR(160),FX$1)),FIND(CHAR(160),SUBSTITUTE($U110,\"}\",CHAR(160),FX$1))-FIND(CHAR(160),SUBSTITUTE($U110,\"{\",CHAR(160),FX$1))+1),\"\")","v":""},{"$f":"IFERROR(MID($U110,FIND(CHAR(160),SUBSTITUTE($U110,\"{\",CHAR(160),FY$1)),FIND(CHAR(160),SUBSTITUTE($U110,\"}\",CHAR(160),FY$1))-FIND(CHAR(160),SUBSTITUTE($U110,\"{\",CHAR(160),FY$1))+1),\"\")","v":""},{"$f":"IFERROR(MID($U110,FIND(CHAR(160),SUBSTITUTE($U110,\"{\",CHAR(160),FZ$1)),FIND(CHAR(160),SUBSTITUTE($U110,\"}\",CHAR(160),FZ$1))-FIND(CHAR(160),SUBSTITUTE($U110,\"{\",CHAR(160),FZ$1))+1),\"\")","v":""},{"$f":"IFERROR(MID($U110,FIND(CHAR(160),SUBSTITUTE($U110,\"{\",CHAR(160),GA$1)),FIND(CHAR(160),SUBSTITUTE($U110,\"}\",CHAR(160),GA$1))-FIND(CHAR(160),SUBSTITUTE($U110,\"{\",CHAR(160),GA$1))+1),\"\")","v":""},{"$f":"IFERROR(MID($U110,FIND(CHAR(160),SUBSTITUTE($U110,\"{\",CHAR(160),GB$1)),FIND(CHAR(160),SUBSTITUTE($U110,\"}\",CHAR(160),GB$1))-FIND(CHAR(160),SUBSTITUTE($U110,\"{\",CHAR(160),GB$1))+1),\"\")","v":""},{"$f":"IFERROR(MID($U110,FIND(CHAR(160),SUBSTITUTE($U110,\"{\",CHAR(160),GC$1)),FIND(CHAR(160),SUBSTITUTE($U110,\"}\",CHAR(160),GC$1))-FIND(CHAR(160),SUBSTITUTE($U110,\"{\",CHAR(160),GC$1))+1),\"\")","v":""},{"$f":"IFERROR(MID($U110,FIND(CHAR(160),SUBSTITUTE($U110,\"{\",CHAR(160),GD$1)),FIND(CHAR(160),SUBSTITUTE($U110,\"}\",CHAR(160),GD$1))-FIND(CHAR(160),SUBSTITUTE($U110,\"{\",CHAR(160),GD$1))+1),\"\")","v":""},{"$f":"IFERROR(MID($U110,FIND(CHAR(160),SUBSTITUTE($U110,\"{\",CHAR(160),GE$1)),FIND(CHAR(160),SUBSTITUTE($U110,\"}\",CHAR(160),GE$1))-FIND(CHAR(160),SUBSTITUTE($U110,\"{\",CHAR(160),GE$1))+1),\"\")","v":"{Measure:Quantity}"},{"$f":"IFERROR(MID($U110,FIND(CHAR(160),SUBSTITUTE($U110,\"{\",CHAR(160),GF$1)),FIND(CHAR(160),SUBSTITUTE($U110,\"}\",CHAR(160),GF$1))-FIND(CHAR(160),SUBSTITUTE($U110,\"{\",CHAR(160),GF$1))+1),\"\")","v":"{Factor:WinterCF}"},{"$f":"IFERROR(MID($V110,FIND(CHAR(160),SUBSTITUTE($V110,\"{\",CHAR(160),GG$1)),FIND(CHAR(160),SUBSTITUTE($V110,\"}\",CHAR(160),GG$1))-FIND(CHAR(160),SUBSTITUTE($V110,\"{\",CHAR(160),GG$1))+1),\"\")","v":"{Motor HP}"},{"$f":"IFERROR(MID($V110,FIND(CHAR(160),SUBSTITUTE($V110,\"{\",CHAR(160),GH$1)),FIND(CHAR(160),SUBSTITUTE($V110,\"}\",CHAR(160),GH$1))-FIND(CHAR(160),SUBSTITUTE($V110,\"{\",CHAR(160),GH$1))+1),\"\")","v":""},{"$f":"IFERROR(MID($V110,FIND(CHAR(160),SUBSTITUTE($V110,\"{\",CHAR(160),GI$1)),FIND(CHAR(160),SUBSTITUTE($V110,\"}\",CHAR(160),GI$1))-FIND(CHAR(160),SUBSTITUTE($V110,\"{\",CHAR(160),GI$1))+1),\"\")","v":""},{"$f":"IFERROR(MID($V110,FIND(CHAR(160),SUBSTITUTE($V110,\"{\",CHAR(160),GJ$1)),FIND(CHAR(160),SUBSTITUTE($V110,\"}\",CHAR(160),GJ$1))-FIND(CHAR(160),SUBSTITUTE($V110,\"{\",CHAR(160),GJ$1))+1),\"\")","v":""},{"$f":"IFERROR(MID($V110,FIND(CHAR(160),SUBSTITUTE($V110,\"{\",CHAR(160),GK$1)),FIND(CHAR(160),SUBSTITUTE($V110,\"}\",CHAR(160),GK$1))-FIND(CHAR(160),SUBSTITUTE($V110,\"{\",CHAR(160),GK$1))+1),\"\")","v":""},{"$f":"IFERROR(MID($V110,FIND(CHAR(160),SUBSTITUTE($V110,\"{\",CHAR(160),GL$1)),FIND(CHAR(160),SUBSTITUTE($V110,\"}\",CHAR(160),GL$1))-FIND(CHAR(160),SUBSTITUTE($V110,\"{\",CHAR(160),GL$1))+1),\"\")","v":""},{"$f":"IFERROR(MID($V110,FIND(CHAR(160),SUBSTITUTE($V110,\"{\",CHAR(160),GM$1)),FIND(CHAR(160),SUBSTITUTE($V110,\"}\",CHAR(160),GM$1))-FIND(CHAR(160),SUBSTITUTE($V110,\"{\",CHAR(160),GM$1))+1),\"\")","v":""},{"$f":"IFERROR(MID($V110,FIND(CHAR(160),SUBSTITUTE($V110,\"{\",CHAR(160),GN$1)),FIND(CHAR(160),SUBSTITUTE($V110,\"}\",CHAR(160),GN$1))-FIND(CHAR(160),SUBSTITUTE($V110,\"{\",CHAR(160),GN$1))+1),\"\")","v":""},{"$f":"IFERROR(MID($V110,FIND(CHAR(160),SUBSTITUTE($V110,\"{\",CHAR(160),GO$1)),FIND(CHAR(160),SUBSTITUTE($V110,\"}\",CHAR(160),GO$1))-FIND(CHAR(160),SUBSTITUTE($V110,\"{\",CHAR(160),GO$1))+1),\"\")","v":"{Measure:Quantity}"},{"$f":"IFERROR(MID($V110,FIND(CHAR(160),SUBSTITUTE($V110,\"{\",CHAR(160),GP$1)),FIND(CHAR(160),SUBSTITUTE($V110,\"}\",CHAR(160),GP$1))-FIND(CHAR(160),SUBSTITUTE($V110,\"{\",CHAR(160),GP$1))+1),\"\")","v":"{Factor:SummerCF}"},{"$f":"IFERROR(MID($W110,FIND(CHAR(160),SUBSTITUTE($W110,\"{\",CHAR(160),GQ$1)),FIND(CHAR(160),SUBSTITUTE($W110,\"}\",CHAR(160),GQ$1))-FIND(CHAR(160),SUBSTITUTE($W110,\"{\",CHAR(160),GQ$1))+1),\"\")","v":""},{"$f":"IFERROR(MID($W110,FIND(CHAR(160),SUBSTITUTE($W110,\"{\",CHAR(160),GR$1)),FIND(CHAR(160),SUBSTITUTE($W110,\"}\",CHAR(160),GR$1))-FIND(CHAR(160),SUBSTITUTE($W110,\"{\",CHAR(160),GR$1))+1),\"\")","v":""},{"$f":"IFERROR(MID($W110,FIND(CHAR(160),SUBSTITUTE($W110,\"{\",CHAR(160),GS$1)),FIND(CHAR(160),SUBSTITUTE($W110,\"}\",CHAR(160),GS$1))-FIND(CHAR(160),SUBSTITUTE($W110,\"{\",CHAR(160),GS$1))+1),\"\")","v":""},{"$f":"IFERROR(MID($W110,FIND(CHAR(160),SUBSTITUTE($W110,\"{\",CHAR(160),GT$1)),FIND(CHAR(160),SUBSTITUTE($W110,\"}\",CHAR(160),GT$1))-FIND(CHAR(160),SUBSTITUTE($W110,\"{\",CHAR(160),GT$1))+1),\"\")","v":""},{"$f":"IFERROR(MID($W110,FIND(CHAR(160),SUBSTITUTE($W110,\"{\",CHAR(160),GU$1)),FIND(CHAR(160),SUBSTITUTE($W110,\"}\",CHAR(160),GU$1))-FIND(CHAR(160),SUBSTITUTE($W110,\"{\",CHAR(160),GU$1))+1),\"\")","v":""},{"$f":"IFERROR(MID($W110,FIND(CHAR(160),SUBSTITUTE($W110,\"{\",CHAR(160),GV$1)),FIND(CHAR(160),SUBSTITUTE($W110,\"}\",CHAR(160),GV$1))-FIND(CHAR(160),SUBSTITUTE($W110,\"{\",CHAR(160),GV$1))+1),\"\")","v":""},{"$f":"IFERROR(MID($W110,FIND(CHAR(160),SUBSTITUTE($W110,\"{\",CHAR(160),GW$1)),FIND(CHAR(160),SUBSTITUTE($W110,\"}\",CHAR(160),GW$1))-FIND(CHAR(160),SUBSTITUTE($W110,\"{\",CHAR(160),GW$1))+1),\"\")","v":""},{"$f":"IFERROR(MID($W110,FIND(CHAR(160),SUBSTITUTE($W110,\"{\",CHAR(160),GX$1)),FIND(CHAR(160),SUBSTITUTE($W110,\"}\",CHAR(160),GX$1))-FIND(CHAR(160),SUBSTITUTE($W110,\"{\",CHAR(160),GX$1))+1),\"\")","v":""},{"$f":"IFERROR(MID($W110,FIND(CHAR(160),SUBSTITUTE($W110,\"{\",CHAR(160),GY$1)),FIND(CHAR(160),SUBSTITUTE($W110,\"}\",CHAR(160),GY$1))-FIND(CHAR(160),SUBSTITUTE($W110,\"{\",CHAR(160),GY$1))+1),\"\")","v":""},{"$f":"IFERROR(MID($W110,FIND(CHAR(160),SUBSTITUTE($W110,\"{\",CHAR(160),GZ$1)),FIND(CHAR(160),SUBSTITUTE($W110,\"}\",CHAR(160),GZ$1))-FIND(CHAR(160),SUBSTITUTE($W110,\"{\",CHAR(160),GZ$1))+1),\"\")","v":""},{"$f":"IFERROR(MID($X110,FIND(CHAR(160),SUBSTITUTE($X110,\"{\",CHAR(160),HA$1)),FIND(CHAR(160),SUBSTITUTE($X110,\"}\",CHAR(160),HA$1))-FIND(CHAR(160),SUBSTITUTE($X110,\"{\",CHAR(160),HA$1))+1),\"\")","v":""},{"$f":"IFERROR(MID($X110,FIND(CHAR(160),SUBSTITUTE($X110,\"{\",CHAR(160),HB$1)),FIND(CHAR(160),SUBSTITUTE($X110,\"}\",CHAR(160),HB$1))-FIND(CHAR(160),SUBSTITUTE($X110,\"{\",CHAR(160),HB$1))+1),\"\")","v":""},{"$f":"IFERROR(MID($X110,FIND(CHAR(160),SUBSTITUTE($X110,\"{\",CHAR(160),HC$1)),FIND(CHAR(160),SUBSTITUTE($X110,\"}\",CHAR(160),HC$1))-FIND(CHAR(160),SUBSTITUTE($X110,\"{\",CHAR(160),HC$1))+1),\"\")","v":""},{"$f":"IFERROR(MID($X110,FIND(CHAR(160),SUBSTITUTE($X110,\"{\",CHAR(160),HD$1)),FIND(CHAR(160),SUBSTITUTE($X110,\"}\",CHAR(160),HD$1))-FIND(CHAR(160),SUBSTITUTE($X110,\"{\",CHAR(160),HD$1))+1),\"\")","v":""},{"$f":"IFERROR(MID($X110,FIND(CHAR(160),SUBSTITUTE($X110,\"{\",CHAR(160),HE$1)),FIND(CHAR(160),SUBSTITUTE($X110,\"}\",CHAR(160),HE$1))-FIND(CHAR(160),SUBSTITUTE($X110,\"{\",CHAR(160),HE$1))+1),\"\")","v":""},{"$f":"IFERROR(MID($X110,FIND(CHAR(160),SUBSTITUTE($X110,\"{\",CHAR(160),HF$1)),FIND(CHAR(160),SUBSTITUTE($X110,\"}\",CHAR(160),HF$1))-FIND(CHAR(160),SUBSTITUTE($X110,\"{\",CHAR(160),HF$1))+1),\"\")","v":""},{"$f":"IFERROR(MID($X110,FIND(CHAR(160),SUBSTITUTE($X110,\"{\",CHAR(160),HG$1)),FIND(CHAR(160),SUBSTITUTE($X110,\"}\",CHAR(160),HG$1))-FIND(CHAR(160),SUBSTITUTE($X110,\"{\",CHAR(160),HG$1))+1),\"\")","v":""},{"$f":"IFERROR(MID($X110,FIND(CHAR(160),SUBSTITUTE($X110,\"{\",CHAR(160),HH$1)),FIND(CHAR(160),SUBSTITUTE($X110,\"}\",CHAR(160),HH$1))-FIND(CHAR(160),SUBSTITUTE($X110,\"{\",CHAR(160),HH$1))+1),\"\")","v":""},{"$f":"IFERROR(MID($X110,FIND(CHAR(160),SUBSTITUTE($X110,\"{\",CHAR(160),HI$1)),FIND(CHAR(160),SUBSTITUTE($X110,\"}\",CHAR(160),HI$1))-FIND(CHAR(160),SUBSTITUTE($X110,\"{\",CHAR(160),HI$1))+1),\"\")","v":""},{"$f":"IFERROR(MID($X110,FIND(CHAR(160),SUBSTITUTE($X110,\"{\",CHAR(160),HJ$1)),FIND(CHAR(160),SUBSTITUTE($X110,\"}\",CHAR(160),HJ$1))-FIND(CHAR(160),SUBSTITUTE($X110,\"{\",CHAR(160),HJ$1))+1),\"\")","v":""},{"$f":"IFERROR(MID($Y110,FIND(CHAR(160),SUBSTITUTE($Y110,\"{\",CHAR(160),HK$1)),FIND(CHAR(160),SUBSTITUTE($Y110,\"}\",CHAR(160),HK$1))-FIND(CHAR(160),SUBSTITUTE($Y110,\"{\",CHAR(160),HK$1))+1),\"\")","v":""},{"$f":"IFERROR(MID($Y110,FIND(CHAR(160),SUBSTITUTE($Y110,\"{\",CHAR(160),HL$1)),FIND(CHAR(160),SUBSTITUTE($Y110,\"}\",CHAR(160),HL$1))-FIND(CHAR(160),SUBSTITUTE($Y110,\"{\",CHAR(160),HL$1))+1),\"\")","v":""},{"$f":"IFERROR(MID($Y110,FIND(CHAR(160),SUBSTITUTE($Y110,\"{\",CHAR(160),HM$1)),FIND(CHAR(160),SUBSTITUTE($Y110,\"}\",CHAR(160),HM$1))-FIND(CHAR(160),SUBSTITUTE($Y110,\"{\",CHAR(160),HM$1))+1),\"\")","v":""},{"$f":"IFERROR(MID($Y110,FIND(CHAR(160),SUBSTITUTE($Y110,\"{\",CHAR(160),HN$1)),FIND(CHAR(160),SUBSTITUTE($Y110,\"}\",CHAR(160),HN$1))-FIND(CHAR(160),SUBSTITUTE($Y110,\"{\",CHAR(160),HN$1))+1),\"\")","v":""},{"$f":"IFERROR(MID($Y110,FIND(CHAR(160),SUBSTITUTE($Y110,\"{\",CHAR(160),HO$1)),FIND(CHAR(160),SUBSTITUTE($Y110,\"}\",CHAR(160),HO$1))-FIND(CHAR(160),SUBSTITUTE($Y110,\"{\",CHAR(160),HO$1))+1),\"\")","v":""},{"$f":"IFERROR(MID($Y110,FIND(CHAR(160),SUBSTITUTE($Y110,\"{\",CHAR(160),HP$1)),FIND(CHAR(160),SUBSTITUTE($Y110,\"}\",CHAR(160),HP$1))-FIND(CHAR(160),SUBSTITUTE($Y110,\"{\",CHAR(160),HP$1))+1),\"\")","v":""},{"$f":"IFERROR(MID($Y110,FIND(CHAR(160),SUBSTITUTE($Y110,\"{\",CHAR(160),HQ$1)),FIND(CHAR(160),SUBSTITUTE($Y110,\"}\",CHAR(160),HQ$1))-FIND(CHAR(160),SUBSTITUTE($Y110,\"{\",CHAR(160),HQ$1))+1),\"\")","v":""},{"$f":"IFERROR(MID($Y110,FIND(CHAR(160),SUBSTITUTE($Y110,\"{\",CHAR(160),HR$1)),FIND(CHAR(160),SUBSTITUTE($Y110,\"}\",CHAR(160),HR$1))-FIND(CHAR(160),SUBSTITUTE($Y110,\"{\",CHAR(160),HR$1))+1),\"\")","v":""},{"$f":"IFERROR(MID($Y110,FIND(CHAR(160),SUBSTITUTE($Y110,\"{\",CHAR(160),HS$1)),FIND(CHAR(160),SUBSTITUTE($Y110,\"}\",CHAR(160),HS$1))-FIND(CHAR(160),SUBSTITUTE($Y110,\"{\",CHAR(160),HS$1))+1),\"\")","v":""},{"$f":"IFERROR(MID($Y110,FIND(CHAR(160),SUBSTITUTE($Y110,\"{\",CHAR(160),HT$1)),FIND(CHAR(160),SUBSTITUTE($Y110,\"}\",CHAR(160),HT$1))-FIND(CHAR(160),SUBSTITUTE($Y110,\"{\",CHAR(160),HT$1))+1),\"\")","v":""},{"$f":"IFERROR(MID($Z110,FIND(CHAR(160),SUBSTITUTE($Z110,\"{\",CHAR(160),HU$1)),FIND(CHAR(160),SUBSTITUTE($Z110,\"}\",CHAR(160),HU$1))-FIND(CHAR(160),SUBSTITUTE($Z110,\"{\",CHAR(160),HU$1))+1),\"\")","v":""},{"$f":"IFERROR(MID($Z110,FIND(CHAR(160),SUBSTITUTE($Z110,\"{\",CHAR(160),HV$1)),FIND(CHAR(160),SUBSTITUTE($Z110,\"}\",CHAR(160),HV$1))-FIND(CHAR(160),SUBSTITUTE($Z110,\"{\",CHAR(160),HV$1))+1),\"\")","v":""},{"$f":"IFERROR(MID($Z110,FIND(CHAR(160),SUBSTITUTE($Z110,\"{\",CHAR(160),HW$1)),FIND(CHAR(160),SUBSTITUTE($Z110,\"}\",CHAR(160),HW$1))-FIND(CHAR(160),SUBSTITUTE($Z110,\"{\",CHAR(160),HW$1))+1),\"\")","v":""},{"$f":"IFERROR(MID($Z110,FIND(CHAR(160),SUBSTITUTE($Z110,\"{\",CHAR(160),HX$1)),FIND(CHAR(160),SUBSTITUTE($Z110,\"}\",CHAR(160),HX$1))-FIND(CHAR(160),SUBSTITUTE($Z110,\"{\",CHAR(160),HX$1))+1),\"\")","v":""},{"$f":"IFERROR(MID($Z110,FIND(CHAR(160),SUBSTITUTE($Z110,\"{\",CHAR(160),HY$1)),FIND(CHAR(160),SUBSTITUTE($Z110,\"}\",CHAR(160),HY$1))-FIND(CHAR(160),SUBSTITUTE($Z110,\"{\",CHAR(160),HY$1))+1),\"\")","v":""},{"$f":"IFERROR(MID($Z110,FIND(CHAR(160),SUBSTITUTE($Z110,\"{\",CHAR(160),HZ$1)),FIND(CHAR(160),SUBSTITUTE($Z110,\"}\",CHAR(160),HZ$1))-FIND(CHAR(160),SUBSTITUTE($Z110,\"{\",CHAR(160),HZ$1))+1),\"\")","v":""},{"$f":"IFERROR(MID($Z110,FIND(CHAR(160),SUBSTITUTE($Z110,\"{\",CHAR(160),IA$1)),FIND(CHAR(160),SUBSTITUTE($Z110,\"}\",CHAR(160),IA$1))-FIND(CHAR(160),SUBSTITUTE($Z110,\"{\",CHAR(160),IA$1))+1),\"\")","v":""},{"$f":"IFERROR(MID($Z110,FIND(CHAR(160),SUBSTITUTE($Z110,\"{\",CHAR(160),IB$1)),FIND(CHAR(160),SUBSTITUTE($Z110,\"}\",CHAR(160),IB$1))-FIND(CHAR(160),SUBSTITUTE($Z110,\"{\",CHAR(160),IB$1))+1),\"\")","v":""},{"$f":"IFERROR(MID($Z110,FIND(CHAR(160),SUBSTITUTE($Z110,\"{\",CHAR(160),IC$1)),FIND(CHAR(160),SUBSTITUTE($Z110,\"}\",CHAR(160),IC$1))-FIND(CHAR(160),SUBSTITUTE($Z110,\"{\",CHAR(160),IC$1))+1),\"\")","v":""},{"$f":"IFERROR(MID($Z110,FIND(CHAR(160),SUBSTITUTE($Z110,\"{\",CHAR(160),ID$1)),FIND(CHAR(160),SUBSTITUTE($Z110,\"}\",CHAR(160),ID$1))-FIND(CHAR(160),SUBSTITUTE($Z110,\"{\",CHAR(160),ID$1))+1),\"\")","v":""},{"$f":"IFERROR(MID($AA110,FIND(CHAR(160),SUBSTITUTE($AA110,\"{\",CHAR(160),IE$1)),FIND(CHAR(160),SUBSTITUTE($AA110,\"}\",CHAR(160),IE$1))-FIND(CHAR(160),SUBSTITUTE($AA110,\"{\",CHAR(160),IE$1))+1),\"\")","v":""},{"$f":"IFERROR(MID($AA110,FIND(CHAR(160),SUBSTITUTE($AA110,\"{\",CHAR(160),IF$1)),FIND(CHAR(160),SUBSTITUTE($AA110,\"}\",CHAR(160),IF$1))-FIND(CHAR(160),SUBSTITUTE($AA110,\"{\",CHAR(160),IF$1))+1),\"\")","v":""},{"$f":"IFERROR(MID($AA110,FIND(CHAR(160),SUBSTITUTE($AA110,\"{\",CHAR(160),IG$1)),FIND(CHAR(160),SUBSTITUTE($AA110,\"}\",CHAR(160),IG$1))-FIND(CHAR(160),SUBSTITUTE($AA110,\"{\",CHAR(160),IG$1))+1),\"\")","v":""},{"$f":"IFERROR(MID($AA110,FIND(CHAR(160),SUBSTITUTE($AA110,\"{\",CHAR(160),IH$1)),FIND(CHAR(160),SUBSTITUTE($AA110,\"}\",CHAR(160),IH$1))-FIND(CHAR(160),SUBSTITUTE($AA110,\"{\",CHAR(160),IH$1))+1),\"\")","v":""},{"$f":"IFERROR(MID($AA110,FIND(CHAR(160),SUBSTITUTE($AA110,\"{\",CHAR(160),II$1)),FIND(CHAR(160),SUBSTITUTE($AA110,\"}\",CHAR(160),II$1))-FIND(CHAR(160),SUBSTITUTE($AA110,\"{\",CHAR(160),II$1))+1),\"\")","v":""},{"$f":"IFERROR(MID($AA110,FIND(CHAR(160),SUBSTITUTE($AA110,\"{\",CHAR(160),IJ$1)),FIND(CHAR(160),SUBSTITUTE($AA110,\"}\",CHAR(160),IJ$1))-FIND(CHAR(160),SUBSTITUTE($AA110,\"{\",CHAR(160),IJ$1))+1),\"\")","v":""},{"$f":"IFERROR(MID($AA110,FIND(CHAR(160),SUBSTITUTE($AA110,\"{\",CHAR(160),IK$1)),FIND(CHAR(160),SUBSTITUTE($AA110,\"}\",CHAR(160),IK$1))-FIND(CHAR(160),SUBSTITUTE($AA110,\"{\",CHAR(160),IK$1))+1),\"\")","v":""},{"$f":"IFERROR(MID($AA110,FIND(CHAR(160),SUBSTITUTE($AA110,\"{\",CHAR(160),IL$1)),FIND(CHAR(160),SUBSTITUTE($AA110,\"}\",CHAR(160),IL$1))-FIND(CHAR(160),SUBSTITUTE($AA110,\"{\",CHAR(160),IL$1))+1),\"\")","v":""},{"$f":"IFERROR(MID($AA110,FIND(CHAR(160),SUBSTITUTE($AA110,\"{\",CHAR(160),IM$1)),FIND(CHAR(160),SUBSTITUTE($AA110,\"}\",CHAR(160),IM$1))-FIND(CHAR(160),SUBSTITUTE($AA110,\"{\",CHAR(160),IM$1))+1),\"\")","v":""},{"$f":"IFERROR(MID($AA110,FIND(CHAR(160),SUBSTITUTE($AA110,\"{\",CHAR(160),IN$1)),FIND(CHAR(160),SUBSTITUTE($AA110,\"}\",CHAR(160),IN$1))-FIND(CHAR(160),SUBSTITUTE($AA110,\"{\",CHAR(160),IN$1))+1),\"\")","v":""},{"$f":"IFERROR(MID($AB110,FIND(CHAR(160),SUBSTITUTE($AB110,\"{\",CHAR(160),IO$1)),FIND(CHAR(160),SUBSTITUTE($AB110,\"}\",CHAR(160),IO$1))-FIND(CHAR(160),SUBSTITUTE($AB110,\"{\",CHAR(160),IO$1))+1),\"\")","v":""},{"$f":"IFERROR(MID($AB110,FIND(CHAR(160),SUBSTITUTE($AB110,\"{\",CHAR(160),IP$1)),FIND(CHAR(160),SUBSTITUTE($AB110,\"}\",CHAR(160),IP$1))-FIND(CHAR(160),SUBSTITUTE($AB110,\"{\",CHAR(160),IP$1))+1),\"\")","v":""},{"$f":"IFERROR(MID($AB110,FIND(CHAR(160),SUBSTITUTE($AB110,\"{\",CHAR(160),IQ$1)),FIND(CHAR(160),SUBSTITUTE($AB110,\"}\",CHAR(160),IQ$1))-FIND(CHAR(160),SUBSTITUTE($AB110,\"{\",CHAR(160),IQ$1))+1),\"\")","v":""},{"$f":"IFERROR(MID($AB110,FIND(CHAR(160),SUBSTITUTE($AB110,\"{\",CHAR(160),IR$1)),FIND(CHAR(160),SUBSTITUTE($AB110,\"}\",CHAR(160),IR$1))-FIND(CHAR(160),SUBSTITUTE($AB110,\"{\",CHAR(160),IR$1))+1),\"\")","v":""},{"$f":"IFERROR(MID($AB110,FIND(CHAR(160),SUBSTITUTE($AB110,\"{\",CHAR(160),IS$1)),FIND(CHAR(160),SUBSTITUTE($AB110,\"}\",CHAR(160),IS$1))-FIND(CHAR(160),SUBSTITUTE($AB110,\"{\",CHAR(160),IS$1))+1),\"\")","v":""},{"$f":"IFERROR(MID($AB110,FIND(CHAR(160),SUBSTITUTE($AB110,\"{\",CHAR(160),IT$1)),FIND(CHAR(160),SUBSTITUTE($AB110,\"}\",CHAR(160),IT$1))-FIND(CHAR(160),SUBSTITUTE($AB110,\"{\",CHAR(160),IT$1))+1),\"\")","v":""},{"$f":"IFERROR(MID($AB110,FIND(CHAR(160),SUBSTITUTE($AB110,\"{\",CHAR(160),IU$1)),FIND(CHAR(160),SUBSTITUTE($AB110,\"}\",CHAR(160),IU$1))-FIND(CHAR(160),SUBSTITUTE($AB110,\"{\",CHAR(160),IU$1))+1),\"\")","v":""},{"$f":"IFERROR(MID($AB110,FIND(CHAR(160),SUBSTITUTE($AB110,\"{\",CHAR(160),IV$1)),FIND(CHAR(160),SUBSTITUTE($AB110,\"}\",CHAR(160),IV$1))-FIND(CHAR(160),SUBSTITUTE($AB110,\"{\",CHAR(160),IV$1))+1),\"\")","v":""},{"$f":"IFERROR(MID($AB110,FIND(CHAR(160),SUBSTITUTE($AB110,\"{\",CHAR(160),IW$1)),FIND(CHAR(160),SUBSTITUTE($AB110,\"}\",CHAR(160),IW$1))-FIND(CHAR(160),SUBSTITUTE($AB110,\"{\",CHAR(160),IW$1))+1),\"\")","v":""},{"$f":"IFERROR(MID($AB110,FIND(CHAR(160),SUBSTITUTE($AB110,\"{\",CHAR(160),IX$1)),FIND(CHAR(160),SUBSTITUTE($AB110,\"}\",CHAR(160),IX$1))-FIND(CHAR(160),SUBSTITUTE($AB110,\"{\",CHAR(160),IX$1))+1),\"\")","v":""},null,{"$f":"10-COUNTIF(DU110:ED110,\"\")","v":2}]
["C&I HVAC - Propane and Compressed NG","VFD: Supply Fan on VAV Packaged or Rooftop HVAC Unit","SFP","2021-07-01","2022-06-30","Calculated","{Measure:Quantity}*if({Motor HP}=5,2425,if({Motor HP}=7.5,2648,if({Motor HP}=10,2871,if({Motor HP}=15,3317,if({Motor HP}=20,3763,if({Motor HP}=25,4209,if({Motor HP}=30,4655,0)))))))",0,"Calculated","{Measure:Quantity}*if({Motor HP}=5,400,if({Motor HP}=7.5,650,if({Motor HP}=10,1400,if({Motor HP}=15,1650,if({Motor HP}=20,1850,if({Motor HP}=25,2000,if({Motor HP}=30,2300,0)))))))",0,"2021-05-25","2022-06-30","Calculated","{Measure:Quantity}*{Motor HP}*2033",null,null,"{Measure:Quantity}*{Motor HP}*.288",null,null,"{Measure:Quantity}*{Factor:WinterCF}*{Motor HP}*.288","{Measure:Quantity}*{Factor:SummerCF}*{Motor HP}*.288",null,null,null,null,null,null,"2021-05-25","2022-06-30",13,0.14599999999999999,0.48699999999999999,0.39,0.30499999999999999,0.216,8.8999999999999996E-2,1,1.1220000000000001,1,0.52,1.6E-2,null,{"$f":"DU111","v":"{Measure:Quantity}"},1,{"$f":"DV111","v":"{Motor HP}"},5,{"$f":"DW111","v":""},null,{"$f":"DX111","v":""},null,{"$f":"DY111","v":""},null,{"$f":"DZ111","v":""},null,{"$f":"EA111","v":""},null,{"$f":"EB111","v":""},null,{"$f":"EC111","v":""},null,{"$f":"ED111","v":""},null,{"$f":"AS111*AU111*2033","v":10165},0,0,{"$f":"AS111*AU111*0.288","v":1.44},0,0,{"$f":"AS111*AF111*AU111*0.288","v":0.21023999999999998},{"$f":"AS111*AG111*AU111*0.288","v":0.70128000000000001},0,0,0,0,0,0,null,"Res","Default DR",{"$f":"Benefits(BL111,BR111,BS111,BT111,BU111,BV111,BW111,BX111,BY111,BZ111,AE111,AH111,AI111,AJ111,AK111,AL111,AM111,AN111,AO111,AP111,CA111,CB111)","v":13744.956792968991},1878.4068826873533,0,0,0,0,0,0,0,{"$f":"SUMPRODUCT(CC111:CK111,--(CC111:CK111>0))","v":15623.363675656345},{"$f":"-SUMPRODUCT(CC111:CK111,--(CC111:CK111<0))","v":0},null,{"$f":"AS111*IF(AU111=5,2425,IF(AU111=7.5,2648,IF(AU111=10,2871,IF(AU111=15,3317,IF(AU111=20,3763,IF(AU111=25,4209,IF(AU111=30,4655,0)))))))","v":2425},null,null,{"$f":"CM111+CO111","v":2425},{"$f":"IF(NetOrGross=\"Net\",(1-AO111+AP111),1)","v":1},{"$f":"(SUMPRODUCT(CC111:CJ111,--(CC111:CJ111>0))+CN111)*CS111/((-SUMPRODUCT(CC111:CJ111,--(CC111:CJ111<0))+MAX(CO111,CV111)+CP111+CQ111)*CS111+IF(FRIncentives=\"Yes\",CV111*(1-CS111),0))","v":6.4426241961469461},1,{"$f":"AS111*IF(AU111=5,400,IF(AU111=7.5,650,IF(AU111=10,1400,IF(AU111=15,1650,IF(AU111=20,1850,IF(AU111=25,2000,IF(AU111=30,2300,0)))))))","v":400},null,"RGGI","y",null,{"$f":"IF(F111=\"Manual Entry\",\"Manual\",IF(G111=\"\",0,\"X=\"&SUBSTITUTE(SUBSTITUTE(SUBSTITUTE(SUBSTITUTE(SUBSTITUTE(SUBSTITUTE(SUBSTITUTE(SUBSTITUTE(SUBSTITUTE(SUBSTITUTE(SUBSTITUTE(SUBSTITUTE(G111,$ED111,$ED$2&ROW($ED111)),$EC111,$EC$2&ROW($EC111)),$EB111,$EB$2&ROW($EB111)),$EA111,$EA$2&ROW($EA111)),$DZ111,$DZ$2&ROW($DZ111)),$DY111,$DY$2&ROW($DY111)),$DX111,$DX$2&ROW($DX111)),$DW111,$DW$2&ROW($DW111)),$DV111,$DV$2&ROW($DV111)),$DU111,$DU$2&ROW($DU111)),$DT111,$DT$2&ROW($DT111)),$DS111,$DS$2&ROW($DS111))))","v":"X=AS111*if(AU111=5,2425,if(AU111=7.5,2648,if(AU111=10,2871,if(AU111=15,3317,if(AU111=20,3763,if(AU111=25,4209,if(AU111=30,4655,0)))))))"},{"$f":"IF(I111=\"Manual Entry\",\"Manual\",IF(J111=\"\",0,\"X=\"&SUBSTITUTE(SUBSTITUTE(SUBSTITUTE(SUBSTITUTE(SUBSTITUTE(SUBSTITUTE(SUBSTITUTE(SUBSTITUTE(SUBSTITUTE(SUBSTITUTE(SUBSTITUTE(SUBSTITUTE(J111,$ED111,$ED$2&ROW($ED111)),$EC111,$EC$2&ROW($EC111)),$EB111,$EB$2&ROW($EB111)),$EA111,$EA$2&ROW($EA111)),$DZ111,$DZ$2&ROW($DZ111)),$DY111,$DY$2&ROW($DY111)),$DX111,$DX$2&ROW($DX111)),$DW111,$DW$2&ROW($DW111)),$DV111,$DV$2&ROW($DV111)),$DU111,$DU$2&ROW($DU111)),$DT111,$DT$2&ROW($DT111)),$DS111,$DS$2&ROW($DS111))))","v":"X=AS111*if(AU111=5,400,if(AU111=7.5,650,if(AU111=10,1400,if(AU111=15,1650,if(AU111=20,1850,if(AU111=25,2000,if(AU111=30,2300,0)))))))"},{"$f":"IF(O111=\"\",0,\"X=\"&SUBSTITUTE(SUBSTITUTE(SUBSTITUTE(SUBSTITUTE(SUBSTITUTE(SUBSTITUTE(SUBSTITUTE(SUBSTITUTE(SUBSTITUTE(SUBSTITUTE(SUBSTITUTE(SUBSTITUTE(O111,$ED111,$ED$2&ROW($ED111)),$EC111,$EC$2&ROW($EC111)),$EB111,$EB$2&ROW($EB111)),$EA111,$EA$2&ROW($EA111)),$DZ111,$DZ$2&ROW($DZ111)),$DY111,$DY$2&ROW($DY111)),$DX111,$DX$2&ROW($DX111)),$DW111,$DW$2&ROW($DW111)),$DV111,$DV$2&ROW($DV111)),$DU111,$DU$2&ROW($DU111)),$DT111,$DT$2&ROW($DT111)),$DS111,$DS$2&ROW($DS111)))","v":"X=AS111*AU111*2033"},{"$f":"IF(P111=\"\",0,\"X=\"&SUBSTITUTE(SUBSTITUTE(SUBSTITUTE(SUBSTITUTE(SUBSTITUTE(SUBSTITUTE(SUBSTITUTE(SUBSTITUTE(SUBSTITUTE(SUBSTITUTE(SUBSTITUTE(SUBSTITUTE(P111,$ED111,$ED$2&ROW($ED111)),$EC111,$EC$2&ROW($EC111)),$EB111,$EB$2&ROW($EB111)),$EA111,$EA$2&ROW($EA111)),$DZ111,$DZ$2&ROW($DZ111)),$DY111,$DY$2&ROW($DY111)),$DX111,$DX$2&ROW($DX111)),$DW111,$DW$2&ROW($DW111)),$DV111,$DV$2&ROW($DV111)),$DU111,$DU$2&ROW($DU111)),$DT111,$DT$2&ROW($DT111)),$DS111,$DS$2&ROW($DS111)))","v":0},{"$f":"IF(Q111=\"\",0,\"X=\"&SUBSTITUTE(SUBSTITUTE(SUBSTITUTE(SUBSTITUTE(SUBSTITUTE(SUBSTITUTE(SUBSTITUTE(SUBSTITUTE(SUBSTITUTE(SUBSTITUTE(SUBSTITUTE(SUBSTITUTE(Q111,$ED111,$ED$2&ROW($ED111)),$EC111,$EC$2&ROW($EC111)),$EB111,$EB$2&ROW($EB111)),$EA111,$EA$2&ROW($EA111)),$DZ111,$DZ$2&ROW($DZ111)),$DY111,$DY$2&ROW($DY111)),$DX111,$DX$2&ROW($DX111)),$DW111,$DW$2&ROW($DW111)),$DV111,$DV$2&ROW($DV111)),$DU111,$DU$2&ROW($DU111)),$DT111,$DT$2&ROW($DT111)),$DS111,$DS$2&ROW($DS111)))","v":0},{"$f":"IF(R111=\"\",0,\"X=\"&SUBSTITUTE(SUBSTITUTE(SUBSTITUTE(SUBSTITUTE(SUBSTITUTE(SUBSTITUTE(SUBSTITUTE(SUBSTITUTE(SUBSTITUTE(SUBSTITUTE(SUBSTITUTE(SUBSTITUTE(R111,$ED111,$ED$2&ROW($ED111)),$EC111,$EC$2&ROW($EC111)),$EB111,$EB$2&ROW($EB111)),$EA111,$EA$2&ROW($EA111)),$DZ111,$DZ$2&ROW($DZ111)),$DY111,$DY$2&ROW($DY111)),$DX111,$DX$2&ROW($DX111)),$DW111,$DW$2&ROW($DW111)),$DV111,$DV$2&ROW($DV111)),$DU111,$DU$2&ROW($DU111)),$DT111,$DT$2&ROW($DT111)),$DS111,$DS$2&ROW($DS111)))","v":"X=AS111*AU111*.288"},{"$f":"IF(S111=\"\",0,\"X=\"&SUBSTITUTE(SUBSTITUTE(SUBSTITUTE(SUBSTITUTE(SUBSTITUTE(SUBSTITUTE(SUBSTITUTE(SUBSTITUTE(SUBSTITUTE(SUBSTITUTE(SUBSTITUTE(SUBSTITUTE(S111,$ED111,$ED$2&ROW($ED111)),$EC111,$EC$2&ROW($EC111)),$EB111,$EB$2&ROW($EB111)),$EA111,$EA$2&ROW($EA111)),$DZ111,$DZ$2&ROW($DZ111)),$DY111,$DY$2&ROW($DY111)),$DX111,$DX$2&ROW($DX111)),$DW111,$DW$2&ROW($DW111)),$DV111,$DV$2&ROW($DV111)),$DU111,$DU$2&ROW($DU111)),$DT111,$DT$2&ROW($DT111)),$DS111,$DS$2&ROW($DS111)))","v":0},{"$f":"IF(T111=\"\",0,\"X=\"&SUBSTITUTE(SUBSTITUTE(SUBSTITUTE(SUBSTITUTE(SUBSTITUTE(SUBSTITUTE(SUBSTITUTE(SUBSTITUTE(SUBSTITUTE(SUBSTITUTE(SUBSTITUTE(SUBSTITUTE(T111,$ED111,$ED$2&ROW($ED111)),$EC111,$EC$2&ROW($EC111)),$EB111,$EB$2&ROW($EB111)),$EA111,$EA$2&ROW($EA111)),$DZ111,$DZ$2&ROW($DZ111)),$DY111,$DY$2&ROW($DY111)),$DX111,$DX$2&ROW($DX111)),$DW111,$DW$2&ROW($DW111)),$DV111,$DV$2&ROW($DV111)),$DU111,$DU$2&ROW($DU111)),$DT111,$DT$2&ROW($DT111)),$DS111,$DS$2&ROW($DS111)))","v":0},{"$f":"IF(U111=\"\",0,\"X=\"&SUBSTITUTE(SUBSTITUTE(SUBSTITUTE(SUBSTITUTE(SUBSTITUTE(SUBSTITUTE(SUBSTITUTE(SUBSTITUTE(SUBSTITUTE(SUBSTITUTE(SUBSTITUTE(SUBSTITUTE(U111,$ED111,$ED$2&ROW($ED111)),$EC111,$EC$2&ROW($EC111)),$EB111,$EB$2&ROW($EB111)),$EA111,$EA$2&ROW($EA111)),$DZ111,$DZ$2&ROW($DZ111)),$DY111,$DY$2&ROW($DY111)),$DX111,$DX$2&ROW($DX111)),$DW111,$DW$2&ROW($DW111)),$DV111,$DV$2&ROW($DV111)),$DU111,$DU$2&ROW($DU111)),$DT111,$DT$2&ROW($DT111)),$DS111,$DS$2&ROW($DS111)))","v":"X=AS111*AF111*AU111*.288"},{"$f":"IF(V111=\"\",0,\"X=\"&SUBSTITUTE(SUBSTITUTE(SUBSTITUTE(SUBSTITUTE(SUBSTITUTE(SUBSTITUTE(SUBSTITUTE(SUBSTITUTE(SUBSTITUTE(SUBSTITUTE(SUBSTITUTE(SUBSTITUTE(V111,$ED111,$ED$2&ROW($ED111)),$EC111,$EC$2&ROW($EC111)),$EB111,$EB$2&ROW($EB111)),$EA111,$EA$2&ROW($EA111)),$DZ111,$DZ$2&ROW($DZ111)),$DY111,$DY$2&ROW($DY111)),$DX111,$DX$2&ROW($DX111)),$DW111,$DW$2&ROW($DW111)),$DV111,$DV$2&ROW($DV111)),$DU111,$DU$2&ROW($DU111)),$DT111,$DT$2&ROW($DT111)),$DS111,$DS$2&ROW($DS111)))","v":"X=AS111*AG111*AU111*.288"},{"$f":"IF(W111=\"\",0,\"X=\"&SUBSTITUTE(SUBSTITUTE(SUBSTITUTE(SUBSTITUTE(SUBSTITUTE(SUBSTITUTE(SUBSTITUTE(SUBSTITUTE(SUBSTITUTE(SUBSTITUTE(SUBSTITUTE(SUBSTITUTE(W111,$ED111,$ED$2&ROW($ED111)),$EC111,$EC$2&ROW($EC111)),$EB111,$EB$2&ROW($EB111)),$EA111,$EA$2&ROW($EA111)),$DZ111,$DZ$2&ROW($DZ111)),$DY111,$DY$2&ROW($DY111)),$DX111,$DX$2&ROW($DX111)),$DW111,$DW$2&ROW($DW111)),$DV111,$DV$2&ROW($DV111)),$DU111,$DU$2&ROW($DU111)),$DT111,$DT$2&ROW($DT111)),$DS111,$DS$2&ROW($DS111)))","v":0},{"$f":"IF(X111=\"\",0,\"X=\"&SUBSTITUTE(SUBSTITUTE(SUBSTITUTE(SUBSTITUTE(SUBSTITUTE(SUBSTITUTE(SUBSTITUTE(SUBSTITUTE(SUBSTITUTE(SUBSTITUTE(SUBSTITUTE(SUBSTITUTE(X111,$ED111,$ED$2&ROW($ED111)),$EC111,$EC$2&ROW($EC111)),$EB111,$EB$2&ROW($EB111)),$EA111,$EA$2&ROW($EA111)),$DZ111,$DZ$2&ROW($DZ111)),$DY111,$DY$2&ROW($DY111)),$DX111,$DX$2&ROW($DX111)),$DW111,$DW$2&ROW($DW111)),$DV111,$DV$2&ROW($DV111)),$DU111,$DU$2&ROW($DU111)),$DT111,$DT$2&ROW($DT111)),$DS111,$DS$2&ROW($DS111)))","v":0},{"$f":"IF(Y111=\"\",0,\"X=\"&SUBSTITUTE(SUBSTITUTE(SUBSTITUTE(SUBSTITUTE(SUBSTITUTE(SUBSTITUTE(SUBSTITUTE(SUBSTITUTE(SUBSTITUTE(SUBSTITUTE(SUBSTITUTE(SUBSTITUTE(Y111,$ED111,$ED$2&ROW($ED111)),$EC111,$EC$2&ROW($EC111)),$EB111,$EB$2&ROW($EB111)),$EA111,$EA$2&ROW($EA111)),$DZ111,$DZ$2&ROW($DZ111)),$DY111,$DY$2&ROW($DY111)),$DX111,$DX$2&ROW($DX111)),$DW111,$DW$2&ROW($DW111)),$DV111,$DV$2&ROW($DV111)),$DU111,$DU$2&ROW($DU111)),$DT111,$DT$2&ROW($DT111)),$DS111,$DS$2&ROW($DS111)))","v":0},{"$f":"IF(Z111=\"\",0,\"X=\"&SUBSTITUTE(SUBSTITUTE(SUBSTITUTE(SUBSTITUTE(SUBSTITUTE(SUBSTITUTE(SUBSTITUTE(SUBSTITUTE(SUBSTITUTE(SUBSTITUTE(SUBSTITUTE(SUBSTITUTE(Z111,$ED111,$ED$2&ROW($ED111)),$EC111,$EC$2&ROW($EC111)),$EB111,$EB$2&ROW($EB111)),$EA111,$EA$2&ROW($EA111)),$DZ111,$DZ$2&ROW($DZ111)),$DY111,$DY$2&ROW($DY111)),$DX111,$DX$2&ROW($DX111)),$DW111,$DW$2&ROW($DW111)),$DV111,$DV$2&ROW($DV111)),$DU111,$DU$2&ROW($DU111)),$DT111,$DT$2&ROW($DT111)),$DS111,$DS$2&ROW($DS111)))","v":0},{"$f":"IF(AA111=\"\",0,\"X=\"&SUBSTITUTE(SUBSTITUTE(SUBSTITUTE(SUBSTITUTE(SUBSTITUTE(SUBSTITUTE(SUBSTITUTE(SUBSTITUTE(SUBSTITUTE(SUBSTITUTE(SUBSTITUTE(SUBSTITUTE(AA111,$ED111,$ED$2&ROW($ED111)),$EC111,$EC$2&ROW($EC111)),$EB111,$EB$2&ROW($EB111)),$EA111,$EA$2&ROW($EA111)),$DZ111,$DZ$2&ROW($DZ111)),$DY111,$DY$2&ROW($DY111)),$DX111,$DX$2&ROW($DX111)),$DW111,$DW$2&ROW($DW111)),$DV111,$DV$2&ROW($DV111)),$DU111,$DU$2&ROW($DU111)),$DT111,$DT$2&ROW($DT111)),$DS111,$DS$2&ROW($DS111)))","v":0},{"$f":"IF(AB111=\"\",0,\"X=\"&SUBSTITUTE(SUBSTITUTE(SUBSTITUTE(SUBSTITUTE(SUBSTITUTE(SUBSTITUTE(SUBSTITUTE(SUBSTITUTE(SUBSTITUTE(SUBSTITUTE(SUBSTITUTE(SUBSTITUTE(AB111,$ED111,$ED$2&ROW($ED111)),$EC111,$EC$2&ROW($EC111)),$EB111,$EB$2&ROW($EB111)),$EA111,$EA$2&ROW($EA111)),$DZ111,$DZ$2&ROW($DZ111)),$DY111,$DY$2&ROW($DY111)),$DX111,$DX$2&ROW($DX111)),$DW111,$DW$2&ROW($DW111)),$DV111,$DV$2&ROW($DV111)),$DU111,$DU$2&ROW($DU111)),$DT111,$DT$2&ROW($DT111)),$DS111,$DS$2&ROW($DS111)))","v":0},null,null,"{Factor:WinterCF}","{Factor:SummerCF}",{"$f":"IFERROR(INDEX($EG111:$IV111,MATCH(0,COUNTIF($DR111:DT111,$EG111:$IV111),0)),\"\")","v":"{Measure:Quantity}"},{"$f":"IFERROR(INDEX($EG111:$IV111,MATCH(0,COUNTIF($DR111:DU111,$EG111:$IV111),0)),\"\")","v":"{Motor HP}"},{"$f":"IFERROR(INDEX($EG111:$IV111,MATCH(0,COUNTIF($DR111:DV111,$EG111:$IV111),0)),\"\")","v":""},{"$f":"IFERROR(INDEX($EG111:$IV111,MATCH(0,COUNTIF($DR111:DW111,$EG111:$IV111),0)),\"\")","v":""},{"$f":"IFERROR(INDEX($EG111:$IV111,MATCH(0,COUNTIF($DR111:DX111,$EG111:$IV111),0)),\"\")","v":""},{"$f":"IFERROR(INDEX($EG111:$IV111,MATCH(0,COUNTIF($DR111:DY111,$EG111:$IV111),0)),\"\")","v":""},{"$f":"IFERROR(INDEX($EG111:$IV111,MATCH(0,COUNTIF($DR111:DZ111,$EG111:$IV111),0)),\"\")","v":""},{"$f":"IFERROR(INDEX($EG111:$IV111,MATCH(0,COUNTIF($DR111:EA111,$EG111:$IV111),0)),\"\")","v":""},{"$f":"IFERROR(INDEX($EG111:$IV111,MATCH(0,COUNTIF($DR111:EB111,$EG111:$IV111),0)),\"\")","v":""},{"$f":"IFERROR(INDEX($EG111:$IV111,MATCH(0,COUNTIF($DR111:EC111,$EG111:$IV111),0)),\"\")","v":""},null,null,{"$f":"IFERROR(MID($G111,FIND(CHAR(160),SUBSTITUTE($G111,\"{\",CHAR(160),EG$1)),FIND(CHAR(160),SUBSTITUTE($G111,\"}\",CHAR(160),EG$1))-FIND(CHAR(160),SUBSTITUTE($G111,\"{\",CHAR(160),EG$1))+1),\"\")","v":"{Measure:Quantity}"},{"$f":"IFERROR(MID($G111,FIND(CHAR(160),SUBSTITUTE($G111,\"{\",CHAR(160),EH$1)),FIND(CHAR(160),SUBSTITUTE($G111,\"}\",CHAR(160),EH$1))-FIND(CHAR(160),SUBSTITUTE($G111,\"{\",CHAR(160),EH$1))+1),\"\")","v":"{Motor HP}"},{"$f":"IFERROR(MID($G111,FIND(CHAR(160),SUBSTITUTE($G111,\"{\",CHAR(160),EI$1)),FIND(CHAR(160),SUBSTITUTE($G111,\"}\",CHAR(160),EI$1))-FIND(CHAR(160),SUBSTITUTE($G111,\"{\",CHAR(160),EI$1))+1),\"\")","v":"{Motor HP}"},{"$f":"IFERROR(MID($G111,FIND(CHAR(160),SUBSTITUTE($G111,\"{\",CHAR(160),EJ$1)),FIND(CHAR(160),SUBSTITUTE($G111,\"}\",CHAR(160),EJ$1))-FIND(CHAR(160),SUBSTITUTE($G111,\"{\",CHAR(160),EJ$1))+1),\"\")","v":"{Motor HP}"},{"$f":"IFERROR(MID($G111,FIND(CHAR(160),SUBSTITUTE($G111,\"{\",CHAR(160),EK$1)),FIND(CHAR(160),SUBSTITUTE($G111,\"}\",CHAR(160),EK$1))-FIND(CHAR(160),SUBSTITUTE($G111,\"{\",CHAR(160),EK$1))+1),\"\")","v":"{Motor HP}"},{"$f":"IFERROR(MID($G111,FIND(CHAR(160),SUBSTITUTE($G111,\"{\",CHAR(160),EL$1)),FIND(CHAR(160),SUBSTITUTE($G111,\"}\",CHAR(160),EL$1))-FIND(CHAR(160),SUBSTITUTE($G111,\"{\",CHAR(160),EL$1))+1),\"\")","v":"{Motor HP}"},{"$f":"IFERROR(MID($G111,FIND(CHAR(160),SUBSTITUTE($G111,\"{\",CHAR(160),EM$1)),FIND(CHAR(160),SUBSTITUTE($G111,\"}\",CHAR(160),EM$1))-FIND(CHAR(160),SUBSTITUTE($G111,\"{\",CHAR(160),EM$1))+1),\"\")","v":"{Motor HP}"},{"$f":"IFERROR(MID($G111,FIND(CHAR(160),SUBSTITUTE($G111,\"{\",CHAR(160),EN$1)),FIND(CHAR(160),SUBSTITUTE($G111,\"}\",CHAR(160),EN$1))-FIND(CHAR(160),SUBSTITUTE($G111,\"{\",CHAR(160),EN$1))+1),\"\")","v":"{Motor HP}"},{"$f":"IFERROR(MID($G111,FIND(CHAR(160),SUBSTITUTE($G111,\"{\",CHAR(160),EO$1)),FIND(CHAR(160),SUBSTITUTE($G111,\"}\",CHAR(160),EO$1))-FIND(CHAR(160),SUBSTITUTE($G111,\"{\",CHAR(160),EO$1))+1),\"\")","v":""},{"$f":"IFERROR(MID($G111,FIND(CHAR(160),SUBSTITUTE($G111,\"{\",CHAR(160),EP$1)),FIND(CHAR(160),SUBSTITUTE($G111,\"}\",CHAR(160),EP$1))-FIND(CHAR(160),SUBSTITUTE($G111,\"{\",CHAR(160),EP$1))+1),\"\")","v":""},{"$f":"IFERROR(MID($J111,FIND(CHAR(160),SUBSTITUTE($J111,\"{\",CHAR(160),EQ$1)),FIND(CHAR(160),SUBSTITUTE($J111,\"}\",CHAR(160),EQ$1))-FIND(CHAR(160),SUBSTITUTE($J111,\"{\",CHAR(160),EQ$1))+1),\"\")","v":"{Measure:Quantity}"},{"$f":"IFERROR(MID($J111,FIND(CHAR(160),SUBSTITUTE($J111,\"{\",CHAR(160),ER$1)),FIND(CHAR(160),SUBSTITUTE($J111,\"}\",CHAR(160),ER$1))-FIND(CHAR(160),SUBSTITUTE($J111,\"{\",CHAR(160),ER$1))+1),\"\")","v":"{Motor HP}"},{"$f":"IFERROR(MID($J111,FIND(CHAR(160),SUBSTITUTE($J111,\"{\",CHAR(160),ES$1)),FIND(CHAR(160),SUBSTITUTE($J111,\"}\",CHAR(160),ES$1))-FIND(CHAR(160),SUBSTITUTE($J111,\"{\",CHAR(160),ES$1))+1),\"\")","v":"{Motor HP}"},{"$f":"IFERROR(MID($J111,FIND(CHAR(160),SUBSTITUTE($J111,\"{\",CHAR(160),ET$1)),FIND(CHAR(160),SUBSTITUTE($J111,\"}\",CHAR(160),ET$1))-FIND(CHAR(160),SUBSTITUTE($J111,\"{\",CHAR(160),ET$1))+1),\"\")","v":"{Motor HP}"},{"$f":"IFERROR(MID($J111,FIND(CHAR(160),SUBSTITUTE($J111,\"{\",CHAR(160),EU$1)),FIND(CHAR(160),SUBSTITUTE($J111,\"}\",CHAR(160),EU$1))-FIND(CHAR(160),SUBSTITUTE($J111,\"{\",CHAR(160),EU$1))+1),\"\")","v":"{Motor HP}"},{"$f":"IFERROR(MID($J111,FIND(CHAR(160),SUBSTITUTE($J111,\"{\",CHAR(160),EV$1)),FIND(CHAR(160),SUBSTITUTE($J111,\"}\",CHAR(160),EV$1))-FIND(CHAR(160),SUBSTITUTE($J111,\"{\",CHAR(160),EV$1))+1),\"\")","v":"{Motor HP}"},{"$f":"IFERROR(MID($J111,FIND(CHAR(160),SUBSTITUTE($J111,\"{\",CHAR(160),EW$1)),FIND(CHAR(160),SUBSTITUTE($J111,\"}\",CHAR(160),EW$1))-FIND(CHAR(160),SUBSTITUTE($J111,\"{\",CHAR(160),EW$1))+1),\"\")","v":"{Motor HP}"},{"$f":"IFERROR(MID($J111,FIND(CHAR(160),SUBSTITUTE($J111,\"{\",CHAR(160),EX$1)),FIND(CHAR(160),SUBSTITUTE($J111,\"}\",CHAR(160),EX$1))-FIND(CHAR(160),SUBSTITUTE($J111,\"{\",CHAR(160),EX$1))+1),\"\")","v":"{Motor HP}"},{"$f":"IFERROR(MID($J111,FIND(CHAR(160),SUBSTITUTE($J111,\"{\",CHAR(160),EY$1)),FIND(CHAR(160),SUBSTITUTE($J111,\"}\",CHAR(160),EY$1))-FIND(CHAR(160),SUBSTITUTE($J111,\"{\",CHAR(160),EY$1))+1),\"\")","v":""},{"$f":"IFERROR(MID($J111,FIND(CHAR(160),SUBSTITUTE($J111,\"{\",CHAR(160),EZ$1)),FIND(CHAR(160),SUBSTITUTE($J111,\"}\",CHAR(160),EZ$1))-FIND(CHAR(160),SUBSTITUTE($J111,\"{\",CHAR(160),EZ$1))+1),\"\")","v":""},{"$f":"IFERROR(MID($J111,FIND(CHAR(160),SUBSTITUTE($J111,\"{\",CHAR(160),FA$1)),FIND(CHAR(160),SUBSTITUTE($J111,\"}\",CHAR(160),FA$1))-FIND(CHAR(160),SUBSTITUTE($J111,\"{\",CHAR(160),FA$1))+1),\"\")","v":"{Measure:Quantity}"},{"$f":"IFERROR(MID($J111,FIND(CHAR(160),SUBSTITUTE($J111,\"{\",CHAR(160),FB$1)),FIND(CHAR(160),SUBSTITUTE($J111,\"}\",CHAR(160),FB$1))-FIND(CHAR(160),SUBSTITUTE($J111,\"{\",CHAR(160),FB$1))+1),\"\")","v":"{Motor HP}"},{"$f":"IFERROR(MID($O111,FIND(CHAR(160),SUBSTITUTE($O111,\"{\",CHAR(160),FC$1)),FIND(CHAR(160),SUBSTITUTE($O111,\"}\",CHAR(160),FC$1))-FIND(CHAR(160),SUBSTITUTE($O111,\"{\",CHAR(160),FC$1))+1),\"\")","v":""},{"$f":"IFERROR(MID($O111,FIND(CHAR(160),SUBSTITUTE($O111,\"{\",CHAR(160),FD$1)),FIND(CHAR(160),SUBSTITUTE($O111,\"}\",CHAR(160),FD$1))-FIND(CHAR(160),SUBSTITUTE($O111,\"{\",CHAR(160),FD$1))+1),\"\")","v":""},{"$f":"IFERROR(MID($O111,FIND(CHAR(160),SUBSTITUTE($O111,\"{\",CHAR(160),FE$1)),FIND(CHAR(160),SUBSTITUTE($O111,\"}\",CHAR(160),FE$1))-FIND(CHAR(160),SUBSTITUTE($O111,\"{\",CHAR(160),FE$1))+1),\"\")","v":""},{"$f":"IFERROR(MID($O111,FIND(CHAR(160),SUBSTITUTE($O111,\"{\",CHAR(160),FF$1)),FIND(CHAR(160),SUBSTITUTE($O111,\"}\",CHAR(160),FF$1))-FIND(CHAR(160),SUBSTITUTE($O111,\"{\",CHAR(160),FF$1))+1),\"\")","v":""},{"$f":"IFERROR(MID($O111,FIND(CHAR(160),SUBSTITUTE($O111,\"{\",CHAR(160),FG$1)),FIND(CHAR(160),SUBSTITUTE($O111,\"}\",CHAR(160),FG$1))-FIND(CHAR(160),SUBSTITUTE($O111,\"{\",CHAR(160),FG$1))+1),\"\")","v":""},{"$f":"IFERROR(MID($O111,FIND(CHAR(160),SUBSTITUTE($O111,\"{\",CHAR(160),FH$1)),FIND(CHAR(160),SUBSTITUTE($O111,\"}\",CHAR(160),FH$1))-FIND(CHAR(160),SUBSTITUTE($O111,\"{\",CHAR(160),FH$1))+1),\"\")","v":""},{"$f":"IFERROR(MID($O111,FIND(CHAR(160),SUBSTITUTE($O111,\"{\",CHAR(160),FI$1)),FIND(CHAR(160),SUBSTITUTE($O111,\"}\",CHAR(160),FI$1))-FIND(CHAR(160),SUBSTITUTE($O111,\"{\",CHAR(160),FI$1))+1),\"\")","v":""},{"$f":"IFERROR(MID($O111,FIND(CHAR(160),SUBSTITUTE($O111,\"{\",CHAR(160),FJ$1)),FIND(CHAR(160),SUBSTITUTE($O111,\"}\",CHAR(160),FJ$1))-FIND(CHAR(160),SUBSTITUTE($O111,\"{\",CHAR(160),FJ$1))+1),\"\")","v":""},{"$f":"IFERROR(MID($O111,FIND(CHAR(160),SUBSTITUTE($O111,\"{\",CHAR(160),FK$1)),FIND(CHAR(160),SUBSTITUTE($O111,\"}\",CHAR(160),FK$1))-FIND(CHAR(160),SUBSTITUTE($O111,\"{\",CHAR(160),FK$1))+1),\"\")","v":"{Measure:Quantity}"},{"$f":"IFERROR(MID($O111,FIND(CHAR(160),SUBSTITUTE($O111,\"{\",CHAR(160),FL$1)),FIND(CHAR(160),SUBSTITUTE($O111,\"}\",CHAR(160),FL$1))-FIND(CHAR(160),SUBSTITUTE($O111,\"{\",CHAR(160),FL$1))+1),\"\")","v":"{Motor HP}"},{"$f":"IFERROR(MID($R111,FIND(CHAR(160),SUBSTITUTE($R111,\"{\",CHAR(160),FM$1)),FIND(CHAR(160),SUBSTITUTE($R111,\"}\",CHAR(160),FM$1))-FIND(CHAR(160),SUBSTITUTE($R111,\"{\",CHAR(160),FM$1))+1),\"\")","v":""},{"$f":"IFERROR(MID($R111,FIND(CHAR(160),SUBSTITUTE($R111,\"{\",CHAR(160),FN$1)),FIND(CHAR(160),SUBSTITUTE($R111,\"}\",CHAR(160),FN$1))-FIND(CHAR(160),SUBSTITUTE($R111,\"{\",CHAR(160),FN$1))+1),\"\")","v":""},{"$f":"IFERROR(MID($R111,FIND(CHAR(160),SUBSTITUTE($R111,\"{\",CHAR(160),FO$1)),FIND(CHAR(160),SUBSTITUTE($R111,\"}\",CHAR(160),FO$1))-FIND(CHAR(160),SUBSTITUTE($R111,\"{\",CHAR(160),FO$1))+1),\"\")","v":""},{"$f":"IFERROR(MID($R111,FIND(CHAR(160),SUBSTITUTE($R111,\"{\",CHAR(160),FP$1)),FIND(CHAR(160),SUBSTITUTE($R111,\"}\",CHAR(160),FP$1))-FIND(CHAR(160),SUBSTITUTE($R111,\"{\",CHAR(160),FP$1))+1),\"\")","v":""},{"$f":"IFERROR(MID($R111,FIND(CHAR(160),SUBSTITUTE($R111,\"{\",CHAR(160),FQ$1)),FIND(CHAR(160),SUBSTITUTE($R111,\"}\",CHAR(160),FQ$1))-FIND(CHAR(160),SUBSTITUTE($R111,\"{\",CHAR(160),FQ$1))+1),\"\")","v":""},{"$f":"IFERROR(MID($R111,FIND(CHAR(160),SUBSTITUTE($R111,\"{\",CHAR(160),FR$1)),FIND(CHAR(160),SUBSTITUTE($R111,\"}\",CHAR(160),FR$1))-FIND(CHAR(160),SUBSTITUTE($R111,\"{\",CHAR(160),FR$1))+1),\"\")","v":""},{"$f":"IFERROR(MID($R111,FIND(CHAR(160),SUBSTITUTE($R111,\"{\",CHAR(160),FS$1)),FIND(CHAR(160),SUBSTITUTE($R111,\"}\",CHAR(160),FS$1))-FIND(CHAR(160),SUBSTITUTE($R111,\"{\",CHAR(160),FS$1))+1),\"\")","v":""},{"$f":"IFERROR(MID($R111,FIND(CHAR(160),SUBSTITUTE($R111,\"{\",CHAR(160),FT$1)),FIND(CHAR(160),SUBSTITUTE($R111,\"}\",CHAR(160),FT$1))-FIND(CHAR(160),SUBSTITUTE($R111,\"{\",CHAR(160),FT$1))+1),\"\")","v":""},{"$f":"IFERROR(MID($R111,FIND(CHAR(160),SUBSTITUTE($R111,\"{\",CHAR(160),FU$1)),FIND(CHAR(160),SUBSTITUTE($R111,\"}\",CHAR(160),FU$1))-FIND(CHAR(160),SUBSTITUTE($R111,\"{\",CHAR(160),FU$1))+1),\"\")","v":"{Measure:Quantity}"},{"$f":"IFERROR(MID($R111,FIND(CHAR(160),SUBSTITUTE($R111,\"{\",CHAR(160),FV$1)),FIND(CHAR(160),SUBSTITUTE($R111,\"}\",CHAR(160),FV$1))-FIND(CHAR(160),SUBSTITUTE($R111,\"{\",CHAR(160),FV$1))+1),\"\")","v":"{Motor HP}"},{"$f":"IFERROR(MID($U111,FIND(CHAR(160),SUBSTITUTE($U111,\"{\",CHAR(160),FW$1)),FIND(CHAR(160),SUBSTITUTE($U111,\"}\",CHAR(160),FW$1))-FIND(CHAR(160),SUBSTITUTE($U111,\"{\",CHAR(160),FW$1))+1),\"\")","v":"{Motor HP}"},{"$f":"IFERROR(MID($U111,FIND(CHAR(160),SUBSTITUTE($U111,\"{\",CHAR(160),FX$1)),FIND(CHAR(160),SUBSTITUTE($U111,\"}\",CHAR(160),FX$1))-FIND(CHAR(160),SUBSTITUTE($U111,\"{\",CHAR(160),FX$1))+1),\"\")","v":""},{"$f":"IFERROR(MID($U111,FIND(CHAR(160),SUBSTITUTE($U111,\"{\",CHAR(160),FY$1)),FIND(CHAR(160),SUBSTITUTE($U111,\"}\",CHAR(160),FY$1))-FIND(CHAR(160),SUBSTITUTE($U111,\"{\",CHAR(160),FY$1))+1),\"\")","v":""},{"$f":"IFERROR(MID($U111,FIND(CHAR(160),SUBSTITUTE($U111,\"{\",CHAR(160),FZ$1)),FIND(CHAR(160),SUBSTITUTE($U111,\"}\",CHAR(160),FZ$1))-FIND(CHAR(160),SUBSTITUTE($U111,\"{\",CHAR(160),FZ$1))+1),\"\")","v":""},{"$f":"IFERROR(MID($U111,FIND(CHAR(160),SUBSTITUTE($U111,\"{\",CHAR(160),GA$1)),FIND(CHAR(160),SUBSTITUTE($U111,\"}\",CHAR(160),GA$1))-FIND(CHAR(160),SUBSTITUTE($U111,\"{\",CHAR(160),GA$1))+1),\"\")","v":""},{"$f":"IFERROR(MID($U111,FIND(CHAR(160),SUBSTITUTE($U111,\"{\",CHAR(160),GB$1)),FIND(CHAR(160),SUBSTITUTE($U111,\"}\",CHAR(160),GB$1))-FIND(CHAR(160),SUBSTITUTE($U111,\"{\",CHAR(160),GB$1))+1),\"\")","v":""},{"$f":"IFERROR(MID($U111,FIND(CHAR(160),SUBSTITUTE($U111,\"{\",CHAR(160),GC$1)),FIND(CHAR(160),SUBSTITUTE($U111,\"}\",CHAR(160),GC$1))-FIND(CHAR(160),SUBSTITUTE($U111,\"{\",CHAR(160),GC$1))+1),\"\")","v":""},{"$f":"IFERROR(MID($U111,FIND(CHAR(160),SUBSTITUTE($U111,\"{\",CHAR(160),GD$1)),FIND(CHAR(160),SUBSTITUTE($U111,\"}\",CHAR(160),GD$1))-FIND(CHAR(160),SUBSTITUTE($U111,\"{\",CHAR(160),GD$1))+1),\"\")","v":""},{"$f":"IFERROR(MID($U111,FIND(CHAR(160),SUBSTITUTE($U111,\"{\",CHAR(160),GE$1)),FIND(CHAR(160),SUBSTITUTE($U111,\"}\",CHAR(160),GE$1))-FIND(CHAR(160),SUBSTITUTE($U111,\"{\",CHAR(160),GE$1))+1),\"\")","v":"{Measure:Quantity}"},{"$f":"IFERROR(MID($U111,FIND(CHAR(160),SUBSTITUTE($U111,\"{\",CHAR(160),GF$1)),FIND(CHAR(160),SUBSTITUTE($U111,\"}\",CHAR(160),GF$1))-FIND(CHAR(160),SUBSTITUTE($U111,\"{\",CHAR(160),GF$1))+1),\"\")","v":"{Factor:WinterCF}"},{"$f":"IFERROR(MID($V111,FIND(CHAR(160),SUBSTITUTE($V111,\"{\",CHAR(160),GG$1)),FIND(CHAR(160),SUBSTITUTE($V111,\"}\",CHAR(160),GG$1))-FIND(CHAR(160),SUBSTITUTE($V111,\"{\",CHAR(160),GG$1))+1),\"\")","v":"{Motor HP}"},{"$f":"IFERROR(MID($V111,FIND(CHAR(160),SUBSTITUTE($V111,\"{\",CHAR(160),GH$1)),FIND(CHAR(160),SUBSTITUTE($V111,\"}\",CHAR(160),GH$1))-FIND(CHAR(160),SUBSTITUTE($V111,\"{\",CHAR(160),GH$1))+1),\"\")","v":""},{"$f":"IFERROR(MID($V111,FIND(CHAR(160),SUBSTITUTE($V111,\"{\",CHAR(160),GI$1)),FIND(CHAR(160),SUBSTITUTE($V111,\"}\",CHAR(160),GI$1))-FIND(CHAR(160),SUBSTITUTE($V111,\"{\",CHAR(160),GI$1))+1),\"\")","v":""},{"$f":"IFERROR(MID($V111,FIND(CHAR(160),SUBSTITUTE($V111,\"{\",CHAR(160),GJ$1)),FIND(CHAR(160),SUBSTITUTE($V111,\"}\",CHAR(160),GJ$1))-FIND(CHAR(160),SUBSTITUTE($V111,\"{\",CHAR(160),GJ$1))+1),\"\")","v":""},{"$f":"IFERROR(MID($V111,FIND(CHAR(160),SUBSTITUTE($V111,\"{\",CHAR(160),GK$1)),FIND(CHAR(160),SUBSTITUTE($V111,\"}\",CHAR(160),GK$1))-FIND(CHAR(160),SUBSTITUTE($V111,\"{\",CHAR(160),GK$1))+1),\"\")","v":""},{"$f":"IFERROR(MID($V111,FIND(CHAR(160),SUBSTITUTE($V111,\"{\",CHAR(160),GL$1)),FIND(CHAR(160),SUBSTITUTE($V111,\"}\",CHAR(160),GL$1))-FIND(CHAR(160),SUBSTITUTE($V111,\"{\",CHAR(160),GL$1))+1),\"\")","v":""},{"$f":"IFERROR(MID($V111,FIND(CHAR(160),SUBSTITUTE($V111,\"{\",CHAR(160),GM$1)),FIND(CHAR(160),SUBSTITUTE($V111,\"}\",CHAR(160),GM$1))-FIND(CHAR(160),SUBSTITUTE($V111,\"{\",CHAR(160),GM$1))+1),\"\")","v":""},{"$f":"IFERROR(MID($V111,FIND(CHAR(160),SUBSTITUTE($V111,\"{\",CHAR(160),GN$1)),FIND(CHAR(160),SUBSTITUTE($V111,\"}\",CHAR(160),GN$1))-FIND(CHAR(160),SUBSTITUTE($V111,\"{\",CHAR(160),GN$1))+1),\"\")","v":""},{"$f":"IFERROR(MID($V111,FIND(CHAR(160),SUBSTITUTE($V111,\"{\",CHAR(160),GO$1)),FIND(CHAR(160),SUBSTITUTE($V111,\"}\",CHAR(160),GO$1))-FIND(CHAR(160),SUBSTITUTE($V111,\"{\",CHAR(160),GO$1))+1),\"\")","v":"{Measure:Quantity}"},{"$f":"IFERROR(MID($V111,FIND(CHAR(160),SUBSTITUTE($V111,\"{\",CHAR(160),GP$1)),FIND(CHAR(160),SUBSTITUTE($V111,\"}\",CHAR(160),GP$1))-FIND(CHAR(160),SUBSTITUTE($V111,\"{\",CHAR(160),GP$1))+1),\"\")","v":"{Factor:SummerCF}"},{"$f":"IFERROR(MID($W111,FIND(CHAR(160),SUBSTITUTE($W111,\"{\",CHAR(160),GQ$1)),FIND(CHAR(160),SUBSTITUTE($W111,\"}\",CHAR(160),GQ$1))-FIND(CHAR(160),SUBSTITUTE($W111,\"{\",CHAR(160),GQ$1))+1),\"\")","v":""},{"$f":"IFERROR(MID($W111,FIND(CHAR(160),SUBSTITUTE($W111,\"{\",CHAR(160),GR$1)),FIND(CHAR(160),SUBSTITUTE($W111,\"}\",CHAR(160),GR$1))-FIND(CHAR(160),SUBSTITUTE($W111,\"{\",CHAR(160),GR$1))+1),\"\")","v":""},{"$f":"IFERROR(MID($W111,FIND(CHAR(160),SUBSTITUTE($W111,\"{\",CHAR(160),GS$1)),FIND(CHAR(160),SUBSTITUTE($W111,\"}\",CHAR(160),GS$1))-FIND(CHAR(160),SUBSTITUTE($W111,\"{\",CHAR(160),GS$1))+1),\"\")","v":""},{"$f":"IFERROR(MID($W111,FIND(CHAR(160),SUBSTITUTE($W111,\"{\",CHAR(160),GT$1)),FIND(CHAR(160),SUBSTITUTE($W111,\"}\",CHAR(160),GT$1))-FIND(CHAR(160),SUBSTITUTE($W111,\"{\",CHAR(160),GT$1))+1),\"\")","v":""},{"$f":"IFERROR(MID($W111,FIND(CHAR(160),SUBSTITUTE($W111,\"{\",CHAR(160),GU$1)),FIND(CHAR(160),SUBSTITUTE($W111,\"}\",CHAR(160),GU$1))-FIND(CHAR(160),SUBSTITUTE($W111,\"{\",CHAR(160),GU$1))+1),\"\")","v":""},{"$f":"IFERROR(MID($W111,FIND(CHAR(160),SUBSTITUTE($W111,\"{\",CHAR(160),GV$1)),FIND(CHAR(160),SUBSTITUTE($W111,\"}\",CHAR(160),GV$1))-FIND(CHAR(160),SUBSTITUTE($W111,\"{\",CHAR(160),GV$1))+1),\"\")","v":""},{"$f":"IFERROR(MID($W111,FIND(CHAR(160),SUBSTITUTE($W111,\"{\",CHAR(160),GW$1)),FIND(CHAR(160),SUBSTITUTE($W111,\"}\",CHAR(160),GW$1))-FIND(CHAR(160),SUBSTITUTE($W111,\"{\",CHAR(160),GW$1))+1),\"\")","v":""},{"$f":"IFERROR(MID($W111,FIND(CHAR(160),SUBSTITUTE($W111,\"{\",CHAR(160),GX$1)),FIND(CHAR(160),SUBSTITUTE($W111,\"}\",CHAR(160),GX$1))-FIND(CHAR(160),SUBSTITUTE($W111,\"{\",CHAR(160),GX$1))+1),\"\")","v":""},{"$f":"IFERROR(MID($W111,FIND(CHAR(160),SUBSTITUTE($W111,\"{\",CHAR(160),GY$1)),FIND(CHAR(160),SUBSTITUTE($W111,\"}\",CHAR(160),GY$1))-FIND(CHAR(160),SUBSTITUTE($W111,\"{\",CHAR(160),GY$1))+1),\"\")","v":""},{"$f":"IFERROR(MID($W111,FIND(CHAR(160),SUBSTITUTE($W111,\"{\",CHAR(160),GZ$1)),FIND(CHAR(160),SUBSTITUTE($W111,\"}\",CHAR(160),GZ$1))-FIND(CHAR(160),SUBSTITUTE($W111,\"{\",CHAR(160),GZ$1))+1),\"\")","v":""},{"$f":"IFERROR(MID($X111,FIND(CHAR(160),SUBSTITUTE($X111,\"{\",CHAR(160),HA$1)),FIND(CHAR(160),SUBSTITUTE($X111,\"}\",CHAR(160),HA$1))-FIND(CHAR(160),SUBSTITUTE($X111,\"{\",CHAR(160),HA$1))+1),\"\")","v":""},{"$f":"IFERROR(MID($X111,FIND(CHAR(160),SUBSTITUTE($X111,\"{\",CHAR(160),HB$1)),FIND(CHAR(160),SUBSTITUTE($X111,\"}\",CHAR(160),HB$1))-FIND(CHAR(160),SUBSTITUTE($X111,\"{\",CHAR(160),HB$1))+1),\"\")","v":""},{"$f":"IFERROR(MID($X111,FIND(CHAR(160),SUBSTITUTE($X111,\"{\",CHAR(160),HC$1)),FIND(CHAR(160),SUBSTITUTE($X111,\"}\",CHAR(160),HC$1))-FIND(CHAR(160),SUBSTITUTE($X111,\"{\",CHAR(160),HC$1))+1),\"\")","v":""},{"$f":"IFERROR(MID($X111,FIND(CHAR(160),SUBSTITUTE($X111,\"{\",CHAR(160),HD$1)),FIND(CHAR(160),SUBSTITUTE($X111,\"}\",CHAR(160),HD$1))-FIND(CHAR(160),SUBSTITUTE($X111,\"{\",CHAR(160),HD$1))+1),\"\")","v":""},{"$f":"IFERROR(MID($X111,FIND(CHAR(160),SUBSTITUTE($X111,\"{\",CHAR(160),HE$1)),FIND(CHAR(160),SUBSTITUTE($X111,\"}\",CHAR(160),HE$1))-FIND(CHAR(160),SUBSTITUTE($X111,\"{\",CHAR(160),HE$1))+1),\"\")","v":""},{"$f":"IFERROR(MID($X111,FIND(CHAR(160),SUBSTITUTE($X111,\"{\",CHAR(160),HF$1)),FIND(CHAR(160),SUBSTITUTE($X111,\"}\",CHAR(160),HF$1))-FIND(CHAR(160),SUBSTITUTE($X111,\"{\",CHAR(160),HF$1))+1),\"\")","v":""},{"$f":"IFERROR(MID($X111,FIND(CHAR(160),SUBSTITUTE($X111,\"{\",CHAR(160),HG$1)),FIND(CHAR(160),SUBSTITUTE($X111,\"}\",CHAR(160),HG$1))-FIND(CHAR(160),SUBSTITUTE($X111,\"{\",CHAR(160),HG$1))+1),\"\")","v":""},{"$f":"IFERROR(MID($X111,FIND(CHAR(160),SUBSTITUTE($X111,\"{\",CHAR(160),HH$1)),FIND(CHAR(160),SUBSTITUTE($X111,\"}\",CHAR(160),HH$1))-FIND(CHAR(160),SUBSTITUTE($X111,\"{\",CHAR(160),HH$1))+1),\"\")","v":""},{"$f":"IFERROR(MID($X111,FIND(CHAR(160),SUBSTITUTE($X111,\"{\",CHAR(160),HI$1)),FIND(CHAR(160),SUBSTITUTE($X111,\"}\",CHAR(160),HI$1))-FIND(CHAR(160),SUBSTITUTE($X111,\"{\",CHAR(160),HI$1))+1),\"\")","v":""},{"$f":"IFERROR(MID($X111,FIND(CHAR(160),SUBSTITUTE($X111,\"{\",CHAR(160),HJ$1)),FIND(CHAR(160),SUBSTITUTE($X111,\"}\",CHAR(160),HJ$1))-FIND(CHAR(160),SUBSTITUTE($X111,\"{\",CHAR(160),HJ$1))+1),\"\")","v":""},{"$f":"IFERROR(MID($Y111,FIND(CHAR(160),SUBSTITUTE($Y111,\"{\",CHAR(160),HK$1)),FIND(CHAR(160),SUBSTITUTE($Y111,\"}\",CHAR(160),HK$1))-FIND(CHAR(160),SUBSTITUTE($Y111,\"{\",CHAR(160),HK$1))+1),\"\")","v":""},{"$f":"IFERROR(MID($Y111,FIND(CHAR(160),SUBSTITUTE($Y111,\"{\",CHAR(160),HL$1)),FIND(CHAR(160),SUBSTITUTE($Y111,\"}\",CHAR(160),HL$1))-FIND(CHAR(160),SUBSTITUTE($Y111,\"{\",CHAR(160),HL$1))+1),\"\")","v":""},{"$f":"IFERROR(MID($Y111,FIND(CHAR(160),SUBSTITUTE($Y111,\"{\",CHAR(160),HM$1)),FIND(CHAR(160),SUBSTITUTE($Y111,\"}\",CHAR(160),HM$1))-FIND(CHAR(160),SUBSTITUTE($Y111,\"{\",CHAR(160),HM$1))+1),\"\")","v":""},{"$f":"IFERROR(MID($Y111,FIND(CHAR(160),SUBSTITUTE($Y111,\"{\",CHAR(160),HN$1)),FIND(CHAR(160),SUBSTITUTE($Y111,\"}\",CHAR(160),HN$1))-FIND(CHAR(160),SUBSTITUTE($Y111,\"{\",CHAR(160),HN$1))+1),\"\")","v":""},{"$f":"IFERROR(MID($Y111,FIND(CHAR(160),SUBSTITUTE($Y111,\"{\",CHAR(160),HO$1)),FIND(CHAR(160),SUBSTITUTE($Y111,\"}\",CHAR(160),HO$1))-FIND(CHAR(160),SUBSTITUTE($Y111,\"{\",CHAR(160),HO$1))+1),\"\")","v":""},{"$f":"IFERROR(MID($Y111,FIND(CHAR(160),SUBSTITUTE($Y111,\"{\",CHAR(160),HP$1)),FIND(CHAR(160),SUBSTITUTE($Y111,\"}\",CHAR(160),HP$1))-FIND(CHAR(160),SUBSTITUTE($Y111,\"{\",CHAR(160),HP$1))+1),\"\")","v":""},{"$f":"IFERROR(MID($Y111,FIND(CHAR(160),SUBSTITUTE($Y111,\"{\",CHAR(160),HQ$1)),FIND(CHAR(160),SUBSTITUTE($Y111,\"}\",CHAR(160),HQ$1))-FIND(CHAR(160),SUBSTITUTE($Y111,\"{\",CHAR(160),HQ$1))+1),\"\")","v":""},{"$f":"IFERROR(MID($Y111,FIND(CHAR(160),SUBSTITUTE($Y111,\"{\",CHAR(160),HR$1)),FIND(CHAR(160),SUBSTITUTE($Y111,\"}\",CHAR(160),HR$1))-FIND(CHAR(160),SUBSTITUTE($Y111,\"{\",CHAR(160),HR$1))+1),\"\")","v":""},{"$f":"IFERROR(MID($Y111,FIND(CHAR(160),SUBSTITUTE($Y111,\"{\",CHAR(160),HS$1)),FIND(CHAR(160),SUBSTITUTE($Y111,\"}\",CHAR(160),HS$1))-FIND(CHAR(160),SUBSTITUTE($Y111,\"{\",CHAR(160),HS$1))+1),\"\")","v":""},{"$f":"IFERROR(MID($Y111,FIND(CHAR(160),SUBSTITUTE($Y111,\"{\",CHAR(160),HT$1)),FIND(CHAR(160),SUBSTITUTE($Y111,\"}\",CHAR(160),HT$1))-FIND(CHAR(160),SUBSTITUTE($Y111,\"{\",CHAR(160),HT$1))+1),\"\")","v":""},{"$f":"IFERROR(MID($Z111,FIND(CHAR(160),SUBSTITUTE($Z111,\"{\",CHAR(160),HU$1)),FIND(CHAR(160),SUBSTITUTE($Z111,\"}\",CHAR(160),HU$1))-FIND(CHAR(160),SUBSTITUTE($Z111,\"{\",CHAR(160),HU$1))+1),\"\")","v":""},{"$f":"IFERROR(MID($Z111,FIND(CHAR(160),SUBSTITUTE($Z111,\"{\",CHAR(160),HV$1)),FIND(CHAR(160),SUBSTITUTE($Z111,\"}\",CHAR(160),HV$1))-FIND(CHAR(160),SUBSTITUTE($Z111,\"{\",CHAR(160),HV$1))+1),\"\")","v":""},{"$f":"IFERROR(MID($Z111,FIND(CHAR(160),SUBSTITUTE($Z111,\"{\",CHAR(160),HW$1)),FIND(CHAR(160),SUBSTITUTE($Z111,\"}\",CHAR(160),HW$1))-FIND(CHAR(160),SUBSTITUTE($Z111,\"{\",CHAR(160),HW$1))+1),\"\")","v":""},{"$f":"IFERROR(MID($Z111,FIND(CHAR(160),SUBSTITUTE($Z111,\"{\",CHAR(160),HX$1)),FIND(CHAR(160),SUBSTITUTE($Z111,\"}\",CHAR(160),HX$1))-FIND(CHAR(160),SUBSTITUTE($Z111,\"{\",CHAR(160),HX$1))+1),\"\")","v":""},{"$f":"IFERROR(MID($Z111,FIND(CHAR(160),SUBSTITUTE($Z111,\"{\",CHAR(160),HY$1)),FIND(CHAR(160),SUBSTITUTE($Z111,\"}\",CHAR(160),HY$1))-FIND(CHAR(160),SUBSTITUTE($Z111,\"{\",CHAR(160),HY$1))+1),\"\")","v":""},{"$f":"IFERROR(MID($Z111,FIND(CHAR(160),SUBSTITUTE($Z111,\"{\",CHAR(160),HZ$1)),FIND(CHAR(160),SUBSTITUTE($Z111,\"}\",CHAR(160),HZ$1))-FIND(CHAR(160),SUBSTITUTE($Z111,\"{\",CHAR(160),HZ$1))+1),\"\")","v":""},{"$f":"IFERROR(MID($Z111,FIND(CHAR(160),SUBSTITUTE($Z111,\"{\",CHAR(160),IA$1)),FIND(CHAR(160),SUBSTITUTE($Z111,\"}\",CHAR(160),IA$1))-FIND(CHAR(160),SUBSTITUTE($Z111,\"{\",CHAR(160),IA$1))+1),\"\")","v":""},{"$f":"IFERROR(MID($Z111,FIND(CHAR(160),SUBSTITUTE($Z111,\"{\",CHAR(160),IB$1)),FIND(CHAR(160),SUBSTITUTE($Z111,\"}\",CHAR(160),IB$1))-FIND(CHAR(160),SUBSTITUTE($Z111,\"{\",CHAR(160),IB$1))+1),\"\")","v":""},{"$f":"IFERROR(MID($Z111,FIND(CHAR(160),SUBSTITUTE($Z111,\"{\",CHAR(160),IC$1)),FIND(CHAR(160),SUBSTITUTE($Z111,\"}\",CHAR(160),IC$1))-FIND(CHAR(160),SUBSTITUTE($Z111,\"{\",CHAR(160),IC$1))+1),\"\")","v":""},{"$f":"IFERROR(MID($Z111,FIND(CHAR(160),SUBSTITUTE($Z111,\"{\",CHAR(160),ID$1)),FIND(CHAR(160),SUBSTITUTE($Z111,\"}\",CHAR(160),ID$1))-FIND(CHAR(160),SUBSTITUTE($Z111,\"{\",CHAR(160),ID$1))+1),\"\")","v":""},{"$f":"IFERROR(MID($AA111,FIND(CHAR(160),SUBSTITUTE($AA111,\"{\",CHAR(160),IE$1)),FIND(CHAR(160),SUBSTITUTE($AA111,\"}\",CHAR(160),IE$1))-FIND(CHAR(160),SUBSTITUTE($AA111,\"{\",CHAR(160),IE$1))+1),\"\")","v":""},{"$f":"IFERROR(MID($AA111,FIND(CHAR(160),SUBSTITUTE($AA111,\"{\",CHAR(160),IF$1)),FIND(CHAR(160),SUBSTITUTE($AA111,\"}\",CHAR(160),IF$1))-FIND(CHAR(160),SUBSTITUTE($AA111,\"{\",CHAR(160),IF$1))+1),\"\")","v":""},{"$f":"IFERROR(MID($AA111,FIND(CHAR(160),SUBSTITUTE($AA111,\"{\",CHAR(160),IG$1)),FIND(CHAR(160),SUBSTITUTE($AA111,\"}\",CHAR(160),IG$1))-FIND(CHAR(160),SUBSTITUTE($AA111,\"{\",CHAR(160),IG$1))+1),\"\")","v":""},{"$f":"IFERROR(MID($AA111,FIND(CHAR(160),SUBSTITUTE($AA111,\"{\",CHAR(160),IH$1)),FIND(CHAR(160),SUBSTITUTE($AA111,\"}\",CHAR(160),IH$1))-FIND(CHAR(160),SUBSTITUTE($AA111,\"{\",CHAR(160),IH$1))+1),\"\")","v":""},{"$f":"IFERROR(MID($AA111,FIND(CHAR(160),SUBSTITUTE($AA111,\"{\",CHAR(160),II$1)),FIND(CHAR(160),SUBSTITUTE($AA111,\"}\",CHAR(160),II$1))-FIND(CHAR(160),SUBSTITUTE($AA111,\"{\",CHAR(160),II$1))+1),\"\")","v":""},{"$f":"IFERROR(MID($AA111,FIND(CHAR(160),SUBSTITUTE($AA111,\"{\",CHAR(160),IJ$1)),FIND(CHAR(160),SUBSTITUTE($AA111,\"}\",CHAR(160),IJ$1))-FIND(CHAR(160),SUBSTITUTE($AA111,\"{\",CHAR(160),IJ$1))+1),\"\")","v":""},{"$f":"IFERROR(MID($AA111,FIND(CHAR(160),SUBSTITUTE($AA111,\"{\",CHAR(160),IK$1)),FIND(CHAR(160),SUBSTITUTE($AA111,\"}\",CHAR(160),IK$1))-FIND(CHAR(160),SUBSTITUTE($AA111,\"{\",CHAR(160),IK$1))+1),\"\")","v":""},{"$f":"IFERROR(MID($AA111,FIND(CHAR(160),SUBSTITUTE($AA111,\"{\",CHAR(160),IL$1)),FIND(CHAR(160),SUBSTITUTE($AA111,\"}\",CHAR(160),IL$1))-FIND(CHAR(160),SUBSTITUTE($AA111,\"{\",CHAR(160),IL$1))+1),\"\")","v":""},{"$f":"IFERROR(MID($AA111,FIND(CHAR(160),SUBSTITUTE($AA111,\"{\",CHAR(160),IM$1)),FIND(CHAR(160),SUBSTITUTE($AA111,\"}\",CHAR(160),IM$1))-FIND(CHAR(160),SUBSTITUTE($AA111,\"{\",CHAR(160),IM$1))+1),\"\")","v":""},{"$f":"IFERROR(MID($AA111,FIND(CHAR(160),SUBSTITUTE($AA111,\"{\",CHAR(160),IN$1)),FIND(CHAR(160),SUBSTITUTE($AA111,\"}\",CHAR(160),IN$1))-FIND(CHAR(160),SUBSTITUTE($AA111,\"{\",CHAR(160),IN$1))+1),\"\")","v":""},{"$f":"IFERROR(MID($AB111,FIND(CHAR(160),SUBSTITUTE($AB111,\"{\",CHAR(160),IO$1)),FIND(CHAR(160),SUBSTITUTE($AB111,\"}\",CHAR(160),IO$1))-FIND(CHAR(160),SUBSTITUTE($AB111,\"{\",CHAR(160),IO$1))+1),\"\")","v":""},{"$f":"IFERROR(MID($AB111,FIND(CHAR(160),SUBSTITUTE($AB111,\"{\",CHAR(160),IP$1)),FIND(CHAR(160),SUBSTITUTE($AB111,\"}\",CHAR(160),IP$1))-FIND(CHAR(160),SUBSTITUTE($AB111,\"{\",CHAR(160),IP$1))+1),\"\")","v":""},{"$f":"IFERROR(MID($AB111,FIND(CHAR(160),SUBSTITUTE($AB111,\"{\",CHAR(160),IQ$1)),FIND(CHAR(160),SUBSTITUTE($AB111,\"}\",CHAR(160),IQ$1))-FIND(CHAR(160),SUBSTITUTE($AB111,\"{\",CHAR(160),IQ$1))+1),\"\")","v":""},{"$f":"IFERROR(MID($AB111,FIND(CHAR(160),SUBSTITUTE($AB111,\"{\",CHAR(160),IR$1)),FIND(CHAR(160),SUBSTITUTE($AB111,\"}\",CHAR(160),IR$1))-FIND(CHAR(160),SUBSTITUTE($AB111,\"{\",CHAR(160),IR$1))+1),\"\")","v":""},{"$f":"IFERROR(MID($AB111,FIND(CHAR(160),SUBSTITUTE($AB111,\"{\",CHAR(160),IS$1)),FIND(CHAR(160),SUBSTITUTE($AB111,\"}\",CHAR(160),IS$1))-FIND(CHAR(160),SUBSTITUTE($AB111,\"{\",CHAR(160),IS$1))+1),\"\")","v":""},{"$f":"IFERROR(MID($AB111,FIND(CHAR(160),SUBSTITUTE($AB111,\"{\",CHAR(160),IT$1)),FIND(CHAR(160),SUBSTITUTE($AB111,\"}\",CHAR(160),IT$1))-FIND(CHAR(160),SUBSTITUTE($AB111,\"{\",CHAR(160),IT$1))+1),\"\")","v":""},{"$f":"IFERROR(MID($AB111,FIND(CHAR(160),SUBSTITUTE($AB111,\"{\",CHAR(160),IU$1)),FIND(CHAR(160),SUBSTITUTE($AB111,\"}\",CHAR(160),IU$1))-FIND(CHAR(160),SUBSTITUTE($AB111,\"{\",CHAR(160),IU$1))+1),\"\")","v":""},{"$f":"IFERROR(MID($AB111,FIND(CHAR(160),SUBSTITUTE($AB111,\"{\",CHAR(160),IV$1)),FIND(CHAR(160),SUBSTITUTE($AB111,\"}\",CHAR(160),IV$1))-FIND(CHAR(160),SUBSTITUTE($AB111,\"{\",CHAR(160),IV$1))+1),\"\")","v":""},{"$f":"IFERROR(MID($AB111,FIND(CHAR(160),SUBSTITUTE($AB111,\"{\",CHAR(160),IW$1)),FIND(CHAR(160),SUBSTITUTE($AB111,\"}\",CHAR(160),IW$1))-FIND(CHAR(160),SUBSTITUTE($AB111,\"{\",CHAR(160),IW$1))+1),\"\")","v":""},{"$f":"IFERROR(MID($AB111,FIND(CHAR(160),SUBSTITUTE($AB111,\"{\",CHAR(160),IX$1)),FIND(CHAR(160),SUBSTITUTE($AB111,\"}\",CHAR(160),IX$1))-FIND(CHAR(160),SUBSTITUTE($AB111,\"{\",CHAR(160),IX$1))+1),\"\")","v":""},null,{"$f":"10-COUNTIF(DU111:ED111,\"\")","v":2}]
["C&I HVAC - Propane and Compressed NG","Modulating Burner Controls for Boilers and Heaters","AF1","2021-07-01","2022-06-30","Calculated","{Measure:Quantity}*{Capacity (MBTUH)}*2.14",0,"Calculated","{Measure:Quantity}*{Capacity (MBTUH)}*1.25",0,"2021-05-25","2022-06-30","Calculated",null,null,null,null,null,null,null,null,"if({Existing Fuel}<>1,0,{Measure:Quantity} * ({Capacity (MBTUH)} * 0.03 * if({End-Use}=1,1565,{Annual Hours of Operation})) / 1000)*10","if({Existing Fuel}<>2,0,{Measure:Quantity} * ({Capacity (MBTUH)} * 0.03 * if({End-Use}=1,1565,{Annual Hours of Operation})) / 1000)",null,null,null,null,"2021-05-25","2022-06-30",21,0,0,0,0,0,0,1,1,0,0.52,1.6E-2,null,{"$f":"DU112","v":"{Measure:Quantity}"},1,{"$f":"DV112","v":"{Capacity (MBTUH)}"},6554,{"$f":"DW112","v":"{End-Use}"},2,{"$f":"DX112","v":"{Annual Hours of Operation}"},1,{"$f":"DY112","v":"{Existing Fuel}"},1565,{"$f":"DZ112","v":""},null,{"$f":"EA112","v":""},null,{"$f":"EB112","v":""},null,{"$f":"EC112","v":""},null,{"$f":"ED112","v":""},null,0,0,0,0,0,0,0,0,{"$f":"IF(AW112<>1,0,AS112 * (AU112 * 0.03 * IF(AY112=1,1565,BA112)) / 1000)*10","v":0},{"$f":"IF(AW112<>2,0,AS112 * (AU112 * 0.03 * IF(AY112=1,1565,BA112)) / 1000)","v":307.71029999999996},0,0,0,0,null,"Res","Default DR",{"$f":"Benefits(BL112,BR112,BS112,BT112,BU112,BV112,BW112,BX112,BY112,BZ112,AE112,AH112,AI112,AJ112,AK112,AL112,AM112,AN112,AO112,AP112,CA112,CB112)","v":0},0,0,0,0,233313.7855125693,0,0,0,{"$f":"SUMPRODUCT(CC112:CK112,--(CC112:CK112>0))","v":233313.7855125693},{"$f":"-SUMPRODUCT(CC112:CK112,--(CC112:CK112<0))","v":0},null,{"$f":"AS112*AU112*2.14","v":14025.560000000001},null,null,{"$f":"CM112+CO112","v":14025.560000000001},{"$f":"IF(NetOrGross=\"Net\",(1-AO112+AP112),1)","v":1},{"$f":"(SUMPRODUCT(CC112:CJ112,--(CC112:CJ112>0))+CN112)*CS112/((-SUMPRODUCT(CC112:CJ112,--(CC112:CJ112<0))+MAX(CO112,CV112)+CP112+CQ112)*CS112+IF(FRIncentives=\"Yes\",CV112*(1-CS112),0))","v":16.634899819513038},1,{"$f":"AS112*AU112*1.25","v":8192.5},null,"RGGI","y",null,{"$f":"IF(F112=\"Manual Entry\",\"Manual\",IF(G112=\"\",0,\"X=\"&SUBSTITUTE(SUBSTITUTE(SUBSTITUTE(SUBSTITUTE(SUBSTITUTE(SUBSTITUTE(SUBSTITUTE(SUBSTITUTE(SUBSTITUTE(SUBSTITUTE(SUBSTITUTE(SUBSTITUTE(G112,$ED112,$ED$2&ROW($ED112)),$EC112,$EC$2&ROW($EC112)),$EB112,$EB$2&ROW($EB112)),$EA112,$EA$2&ROW($EA112)),$DZ112,$DZ$2&ROW($DZ112)),$DY112,$DY$2&ROW($DY112)),$DX112,$DX$2&ROW($DX112)),$DW112,$DW$2&ROW($DW112)),$DV112,$DV$2&ROW($DV112)),$DU112,$DU$2&ROW($DU112)),$DT112,$DT$2&ROW($DT112)),$DS112,$DS$2&ROW($DS112))))","v":"X=AS112*AU112*2.14"},{"$f":"IF(I112=\"Manual Entry\",\"Manual\",IF(J112=\"\",0,\"X=\"&SUBSTITUTE(SUBSTITUTE(SUBSTITUTE(SUBSTITUTE(SUBSTITUTE(SUBSTITUTE(SUBSTITUTE(SUBSTITUTE(SUBSTITUTE(SUBSTITUTE(SUBSTITUTE(SUBSTITUTE(J112,$ED112,$ED$2&ROW($ED112)),$EC112,$EC$2&ROW($EC112)),$EB112,$EB$2&ROW($EB112)),$EA112,$EA$2&ROW($EA112)),$DZ112,$DZ$2&ROW($DZ112)),$DY112,$DY$2&ROW($DY112)),$DX112,$DX$2&ROW($DX112)),$DW112,$DW$2&ROW($DW112)),$DV112,$DV$2&ROW($DV112)),$DU112,$DU$2&ROW($DU112)),$DT112,$DT$2&ROW($DT112)),$DS112,$DS$2&ROW($DS112))))","v":"X=AS112*AU112*1.25"},{"$f":"IF(O112=\"\",0,\"X=\"&SUBSTITUTE(SUBSTITUTE(SUBSTITUTE(SUBSTITUTE(SUBSTITUTE(SUBSTITUTE(SUBSTITUTE(SUBSTITUTE(SUBSTITUTE(SUBSTITUTE(SUBSTITUTE(SUBSTITUTE(O112,$ED112,$ED$2&ROW($ED112)),$EC112,$EC$2&ROW($EC112)),$EB112,$EB$2&ROW($EB112)),$EA112,$EA$2&ROW($EA112)),$DZ112,$DZ$2&ROW($DZ112)),$DY112,$DY$2&ROW($DY112)),$DX112,$DX$2&ROW($DX112)),$DW112,$DW$2&ROW($DW112)),$DV112,$DV$2&ROW($DV112)),$DU112,$DU$2&ROW($DU112)),$DT112,$DT$2&ROW($DT112)),$DS112,$DS$2&ROW($DS112)))","v":0},{"$f":"IF(P112=\"\",0,\"X=\"&SUBSTITUTE(SUBSTITUTE(SUBSTITUTE(SUBSTITUTE(SUBSTITUTE(SUBSTITUTE(SUBSTITUTE(SUBSTITUTE(SUBSTITUTE(SUBSTITUTE(SUBSTITUTE(SUBSTITUTE(P112,$ED112,$ED$2&ROW($ED112)),$EC112,$EC$2&ROW($EC112)),$EB112,$EB$2&ROW($EB112)),$EA112,$EA$2&ROW($EA112)),$DZ112,$DZ$2&ROW($DZ112)),$DY112,$DY$2&ROW($DY112)),$DX112,$DX$2&ROW($DX112)),$DW112,$DW$2&ROW($DW112)),$DV112,$DV$2&ROW($DV112)),$DU112,$DU$2&ROW($DU112)),$DT112,$DT$2&ROW($DT112)),$DS112,$DS$2&ROW($DS112)))","v":0},{"$f":"IF(Q112=\"\",0,\"X=\"&SUBSTITUTE(SUBSTITUTE(SUBSTITUTE(SUBSTITUTE(SUBSTITUTE(SUBSTITUTE(SUBSTITUTE(SUBSTITUTE(SUBSTITUTE(SUBSTITUTE(SUBSTITUTE(SUBSTITUTE(Q112,$ED112,$ED$2&ROW($ED112)),$EC112,$EC$2&ROW($EC112)),$EB112,$EB$2&ROW($EB112)),$EA112,$EA$2&ROW($EA112)),$DZ112,$DZ$2&ROW($DZ112)),$DY112,$DY$2&ROW($DY112)),$DX112,$DX$2&ROW($DX112)),$DW112,$DW$2&ROW($DW112)),$DV112,$DV$2&ROW($DV112)),$DU112,$DU$2&ROW($DU112)),$DT112,$DT$2&ROW($DT112)),$DS112,$DS$2&ROW($DS112)))","v":0},{"$f":"IF(R112=\"\",0,\"X=\"&SUBSTITUTE(SUBSTITUTE(SUBSTITUTE(SUBSTITUTE(SUBSTITUTE(SUBSTITUTE(SUBSTITUTE(SUBSTITUTE(SUBSTITUTE(SUBSTITUTE(SUBSTITUTE(SUBSTITUTE(R112,$ED112,$ED$2&ROW($ED112)),$EC112,$EC$2&ROW($EC112)),$EB112,$EB$2&ROW($EB112)),$EA112,$EA$2&ROW($EA112)),$DZ112,$DZ$2&ROW($DZ112)),$DY112,$DY$2&ROW($DY112)),$DX112,$DX$2&ROW($DX112)),$DW112,$DW$2&ROW($DW112)),$DV112,$DV$2&ROW($DV112)),$DU112,$DU$2&ROW($DU112)),$DT112,$DT$2&ROW($DT112)),$DS112,$DS$2&ROW($DS112)))","v":0},{"$f":"IF(S112=\"\",0,\"X=\"&SUBSTITUTE(SUBSTITUTE(SUBSTITUTE(SUBSTITUTE(SUBSTITUTE(SUBSTITUTE(SUBSTITUTE(SUBSTITUTE(SUBSTITUTE(SUBSTITUTE(SUBSTITUTE(SUBSTITUTE(S112,$ED112,$ED$2&ROW($ED112)),$EC112,$EC$2&ROW($EC112)),$EB112,$EB$2&ROW($EB112)),$EA112,$EA$2&ROW($EA112)),$DZ112,$DZ$2&ROW($DZ112)),$DY112,$DY$2&ROW($DY112)),$DX112,$DX$2&ROW($DX112)),$DW112,$DW$2&ROW($DW112)),$DV112,$DV$2&ROW($DV112)),$DU112,$DU$2&ROW($DU112)),$DT112,$DT$2&ROW($DT112)),$DS112,$DS$2&ROW($DS112)))","v":0},{"$f":"IF(T112=\"\",0,\"X=\"&SUBSTITUTE(SUBSTITUTE(SUBSTITUTE(SUBSTITUTE(SUBSTITUTE(SUBSTITUTE(SUBSTITUTE(SUBSTITUTE(SUBSTITUTE(SUBSTITUTE(SUBSTITUTE(SUBSTITUTE(T112,$ED112,$ED$2&ROW($ED112)),$EC112,$EC$2&ROW($EC112)),$EB112,$EB$2&ROW($EB112)),$EA112,$EA$2&ROW($EA112)),$DZ112,$DZ$2&ROW($DZ112)),$DY112,$DY$2&ROW($DY112)),$DX112,$DX$2&ROW($DX112)),$DW112,$DW$2&ROW($DW112)),$DV112,$DV$2&ROW($DV112)),$DU112,$DU$2&ROW($DU112)),$DT112,$DT$2&ROW($DT112)),$DS112,$DS$2&ROW($DS112)))","v":0},{"$f":"IF(U112=\"\",0,\"X=\"&SUBSTITUTE(SUBSTITUTE(SUBSTITUTE(SUBSTITUTE(SUBSTITUTE(SUBSTITUTE(SUBSTITUTE(SUBSTITUTE(SUBSTITUTE(SUBSTITUTE(SUBSTITUTE(SUBSTITUTE(U112,$ED112,$ED$2&ROW($ED112)),$EC112,$EC$2&ROW($EC112)),$EB112,$EB$2&ROW($EB112)),$EA112,$EA$2&ROW($EA112)),$DZ112,$DZ$2&ROW($DZ112)),$DY112,$DY$2&ROW($DY112)),$DX112,$DX$2&ROW($DX112)),$DW112,$DW$2&ROW($DW112)),$DV112,$DV$2&ROW($DV112)),$DU112,$DU$2&ROW($DU112)),$DT112,$DT$2&ROW($DT112)),$DS112,$DS$2&ROW($DS112)))","v":0},{"$f":"IF(V112=\"\",0,\"X=\"&SUBSTITUTE(SUBSTITUTE(SUBSTITUTE(SUBSTITUTE(SUBSTITUTE(SUBSTITUTE(SUBSTITUTE(SUBSTITUTE(SUBSTITUTE(SUBSTITUTE(SUBSTITUTE(SUBSTITUTE(V112,$ED112,$ED$2&ROW($ED112)),$EC112,$EC$2&ROW($EC112)),$EB112,$EB$2&ROW($EB112)),$EA112,$EA$2&ROW($EA112)),$DZ112,$DZ$2&ROW($DZ112)),$DY112,$DY$2&ROW($DY112)),$DX112,$DX$2&ROW($DX112)),$DW112,$DW$2&ROW($DW112)),$DV112,$DV$2&ROW($DV112)),$DU112,$DU$2&ROW($DU112)),$DT112,$DT$2&ROW($DT112)),$DS112,$DS$2&ROW($DS112)))","v":0},{"$f":"IF(W112=\"\",0,\"X=\"&SUBSTITUTE(SUBSTITUTE(SUBSTITUTE(SUBSTITUTE(SUBSTITUTE(SUBSTITUTE(SUBSTITUTE(SUBSTITUTE(SUBSTITUTE(SUBSTITUTE(SUBSTITUTE(SUBSTITUTE(W112,$ED112,$ED$2&ROW($ED112)),$EC112,$EC$2&ROW($EC112)),$EB112,$EB$2&ROW($EB112)),$EA112,$EA$2&ROW($EA112)),$DZ112,$DZ$2&ROW($DZ112)),$DY112,$DY$2&ROW($DY112)),$DX112,$DX$2&ROW($DX112)),$DW112,$DW$2&ROW($DW112)),$DV112,$DV$2&ROW($DV112)),$DU112,$DU$2&ROW($DU112)),$DT112,$DT$2&ROW($DT112)),$DS112,$DS$2&ROW($DS112)))","v":"X=if(BA112<>1,0,AS112 * (AU112 * 0.03 * if(AW112=1,1565,AY112)) / 1000)*10"},{"$f":"IF(X112=\"\",0,\"X=\"&SUBSTITUTE(SUBSTITUTE(SUBSTITUTE(SUBSTITUTE(SUBSTITUTE(SUBSTITUTE(SUBSTITUTE(SUBSTITUTE(SUBSTITUTE(SUBSTITUTE(SUBSTITUTE(SUBSTITUTE(X112,$ED112,$ED$2&ROW($ED112)),$EC112,$EC$2&ROW($EC112)),$EB112,$EB$2&ROW($EB112)),$EA112,$EA$2&ROW($EA112)),$DZ112,$DZ$2&ROW($DZ112)),$DY112,$DY$2&ROW($DY112)),$DX112,$DX$2&ROW($DX112)),$DW112,$DW$2&ROW($DW112)),$DV112,$DV$2&ROW($DV112)),$DU112,$DU$2&ROW($DU112)),$DT112,$DT$2&ROW($DT112)),$DS112,$DS$2&ROW($DS112)))","v":"X=if(BA112<>2,0,AS112 * (AU112 * 0.03 * if(AW112=1,1565,AY112)) / 1000)"},{"$f":"IF(Y112=\"\",0,\"X=\"&SUBSTITUTE(SUBSTITUTE(SUBSTITUTE(SUBSTITUTE(SUBSTITUTE(SUBSTITUTE(SUBSTITUTE(SUBSTITUTE(SUBSTITUTE(SUBSTITUTE(SUBSTITUTE(SUBSTITUTE(Y112,$ED112,$ED$2&ROW($ED112)),$EC112,$EC$2&ROW($EC112)),$EB112,$EB$2&ROW($EB112)),$EA112,$EA$2&ROW($EA112)),$DZ112,$DZ$2&ROW($DZ112)),$DY112,$DY$2&ROW($DY112)),$DX112,$DX$2&ROW($DX112)),$DW112,$DW$2&ROW($DW112)),$DV112,$DV$2&ROW($DV112)),$DU112,$DU$2&ROW($DU112)),$DT112,$DT$2&ROW($DT112)),$DS112,$DS$2&ROW($DS112)))","v":0},{"$f":"IF(Z112=\"\",0,\"X=\"&SUBSTITUTE(SUBSTITUTE(SUBSTITUTE(SUBSTITUTE(SUBSTITUTE(SUBSTITUTE(SUBSTITUTE(SUBSTITUTE(SUBSTITUTE(SUBSTITUTE(SUBSTITUTE(SUBSTITUTE(Z112,$ED112,$ED$2&ROW($ED112)),$EC112,$EC$2&ROW($EC112)),$EB112,$EB$2&ROW($EB112)),$EA112,$EA$2&ROW($EA112)),$DZ112,$DZ$2&ROW($DZ112)),$DY112,$DY$2&ROW($DY112)),$DX112,$DX$2&ROW($DX112)),$DW112,$DW$2&ROW($DW112)),$DV112,$DV$2&ROW($DV112)),$DU112,$DU$2&ROW($DU112)),$DT112,$DT$2&ROW($DT112)),$DS112,$DS$2&ROW($DS112)))","v":0},{"$f":"IF(AA112=\"\",0,\"X=\"&SUBSTITUTE(SUBSTITUTE(SUBSTITUTE(SUBSTITUTE(SUBSTITUTE(SUBSTITUTE(SUBSTITUTE(SUBSTITUTE(SUBSTITUTE(SUBSTITUTE(SUBSTITUTE(SUBSTITUTE(AA112,$ED112,$ED$2&ROW($ED112)),$EC112,$EC$2&ROW($EC112)),$EB112,$EB$2&ROW($EB112)),$EA112,$EA$2&ROW($EA112)),$DZ112,$DZ$2&ROW($DZ112)),$DY112,$DY$2&ROW($DY112)),$DX112,$DX$2&ROW($DX112)),$DW112,$DW$2&ROW($DW112)),$DV112,$DV$2&ROW($DV112)),$DU112,$DU$2&ROW($DU112)),$DT112,$DT$2&ROW($DT112)),$DS112,$DS$2&ROW($DS112)))","v":0},{"$f":"IF(AB112=\"\",0,\"X=\"&SUBSTITUTE(SUBSTITUTE(SUBSTITUTE(SUBSTITUTE(SUBSTITUTE(SUBSTITUTE(SUBSTITUTE(SUBSTITUTE(SUBSTITUTE(SUBSTITUTE(SUBSTITUTE(SUBSTITUTE(AB112,$ED112,$ED$2&ROW($ED112)),$EC112,$EC$2&ROW($EC112)),$EB112,$EB$2&ROW($EB112)),$EA112,$EA$2&ROW($EA112)),$DZ112,$DZ$2&ROW($DZ112)),$DY112,$DY$2&ROW($DY112)),$DX112,$DX$2&ROW($DX112)),$DW112,$DW$2&ROW($DW112)),$DV112,$DV$2&ROW($DV112)),$DU112,$DU$2&ROW($DU112)),$DT112,$DT$2&ROW($DT112)),$DS112,$DS$2&ROW($DS112)))","v":0},null,null,"{Factor:WinterCF}","{Factor:SummerCF}",{"$f":"IFERROR(INDEX($EG112:$IV112,MATCH(0,COUNTIF($DR112:DT112,$EG112:$IV112),0)),\"\")","v":"{Measure:Quantity}"},{"$f":"IFERROR(INDEX($EG112:$IV112,MATCH(0,COUNTIF($DR112:DU112,$EG112:$IV112),0)),\"\")","v":"{Capacity (MBTUH)}"},{"$f":"IFERROR(INDEX($EG112:$IV112,MATCH(0,COUNTIF($DR112:DV112,$EG112:$IV112),0)),\"\")","v":"{End-Use}"},{"$f":"IFERROR(INDEX($EG112:$IV112,MATCH(0,COUNTIF($DR112:DW112,$EG112:$IV112),0)),\"\")","v":"{Annual Hours of Operation}"},{"$f":"IFERROR(INDEX($EG112:$IV112,MATCH(0,COUNTIF($DR112:DX112,$EG112:$IV112),0)),\"\")","v":"{Existing Fuel}"},{"$f":"IFERROR(INDEX($EG112:$IV112,MATCH(0,COUNTIF($DR112:DY112,$EG112:$IV112),0)),\"\")","v":""},{"$f":"IFERROR(INDEX($EG112:$IV112,MATCH(0,COUNTIF($DR112:DZ112,$EG112:$IV112),0)),\"\")","v":""},{"$f":"IFERROR(INDEX($EG112:$IV112,MATCH(0,COUNTIF($DR112:EA112,$EG112:$IV112),0)),\"\")","v":""},{"$f":"IFERROR(INDEX($EG112:$IV112,MATCH(0,COUNTIF($DR112:EB112,$EG112:$IV112),0)),\"\")","v":""},{"$f":"IFERROR(INDEX($EG112:$IV112,MATCH(0,COUNTIF($DR112:EC112,$EG112:$IV112),0)),\"\")","v":""},null,null,{"$f":"IFERROR(MID($G112,FIND(CHAR(160),SUBSTITUTE($G112,\"{\",CHAR(160),EG$1)),FIND(CHAR(160),SUBSTITUTE($G112,\"}\",CHAR(160),EG$1))-FIND(CHAR(160),SUBSTITUTE($G112,\"{\",CHAR(160),EG$1))+1),\"\")","v":"{Measure:Quantity}"},{"$f":"IFERROR(MID($G112,FIND(CHAR(160),SUBSTITUTE($G112,\"{\",CHAR(160),EH$1)),FIND(CHAR(160),SUBSTITUTE($G112,\"}\",CHAR(160),EH$1))-FIND(CHAR(160),SUBSTITUTE($G112,\"{\",CHAR(160),EH$1))+1),\"\")","v":"{Capacity (MBTUH)}"},{"$f":"IFERROR(MID($G112,FIND(CHAR(160),SUBSTITUTE($G112,\"{\",CHAR(160),EI$1)),FIND(CHAR(160),SUBSTITUTE($G112,\"}\",CHAR(160),EI$1))-FIND(CHAR(160),SUBSTITUTE($G112,\"{\",CHAR(160),EI$1))+1),\"\")","v":""},{"$f":"IFERROR(MID($G112,FIND(CHAR(160),SUBSTITUTE($G112,\"{\",CHAR(160),EJ$1)),FIND(CHAR(160),SUBSTITUTE($G112,\"}\",CHAR(160),EJ$1))-FIND(CHAR(160),SUBSTITUTE($G112,\"{\",CHAR(160),EJ$1))+1),\"\")","v":""},{"$f":"IFERROR(MID($G112,FIND(CHAR(160),SUBSTITUTE($G112,\"{\",CHAR(160),EK$1)),FIND(CHAR(160),SUBSTITUTE($G112,\"}\",CHAR(160),EK$1))-FIND(CHAR(160),SUBSTITUTE($G112,\"{\",CHAR(160),EK$1))+1),\"\")","v":""},{"$f":"IFERROR(MID($G112,FIND(CHAR(160),SUBSTITUTE($G112,\"{\",CHAR(160),EL$1)),FIND(CHAR(160),SUBSTITUTE($G112,\"}\",CHAR(160),EL$1))-FIND(CHAR(160),SUBSTITUTE($G112,\"{\",CHAR(160),EL$1))+1),\"\")","v":""},{"$f":"IFERROR(MID($G112,FIND(CHAR(160),SUBSTITUTE($G112,\"{\",CHAR(160),EM$1)),FIND(CHAR(160),SUBSTITUTE($G112,\"}\",CHAR(160),EM$1))-FIND(CHAR(160),SUBSTITUTE($G112,\"{\",CHAR(160),EM$1))+1),\"\")","v":""},{"$f":"IFERROR(MID($G112,FIND(CHAR(160),SUBSTITUTE($G112,\"{\",CHAR(160),EN$1)),FIND(CHAR(160),SUBSTITUTE($G112,\"}\",CHAR(160),EN$1))-FIND(CHAR(160),SUBSTITUTE($G112,\"{\",CHAR(160),EN$1))+1),\"\")","v":""},{"$f":"IFERROR(MID($G112,FIND(CHAR(160),SUBSTITUTE($G112,\"{\",CHAR(160),EO$1)),FIND(CHAR(160),SUBSTITUTE($G112,\"}\",CHAR(160),EO$1))-FIND(CHAR(160),SUBSTITUTE($G112,\"{\",CHAR(160),EO$1))+1),\"\")","v":""},{"$f":"IFERROR(MID($G112,FIND(CHAR(160),SUBSTITUTE($G112,\"{\",CHAR(160),EP$1)),FIND(CHAR(160),SUBSTITUTE($G112,\"}\",CHAR(160),EP$1))-FIND(CHAR(160),SUBSTITUTE($G112,\"{\",CHAR(160),EP$1))+1),\"\")","v":""},{"$f":"IFERROR(MID($J112,FIND(CHAR(160),SUBSTITUTE($J112,\"{\",CHAR(160),EQ$1)),FIND(CHAR(160),SUBSTITUTE($J112,\"}\",CHAR(160),EQ$1))-FIND(CHAR(160),SUBSTITUTE($J112,\"{\",CHAR(160),EQ$1))+1),\"\")","v":"{Measure:Quantity}"},{"$f":"IFERROR(MID($J112,FIND(CHAR(160),SUBSTITUTE($J112,\"{\",CHAR(160),ER$1)),FIND(CHAR(160),SUBSTITUTE($J112,\"}\",CHAR(160),ER$1))-FIND(CHAR(160),SUBSTITUTE($J112,\"{\",CHAR(160),ER$1))+1),\"\")","v":"{Capacity (MBTUH)}"},{"$f":"IFERROR(MID($J112,FIND(CHAR(160),SUBSTITUTE($J112,\"{\",CHAR(160),ES$1)),FIND(CHAR(160),SUBSTITUTE($J112,\"}\",CHAR(160),ES$1))-FIND(CHAR(160),SUBSTITUTE($J112,\"{\",CHAR(160),ES$1))+1),\"\")","v":""},{"$f":"IFERROR(MID($J112,FIND(CHAR(160),SUBSTITUTE($J112,\"{\",CHAR(160),ET$1)),FIND(CHAR(160),SUBSTITUTE($J112,\"}\",CHAR(160),ET$1))-FIND(CHAR(160),SUBSTITUTE($J112,\"{\",CHAR(160),ET$1))+1),\"\")","v":""},{"$f":"IFERROR(MID($J112,FIND(CHAR(160),SUBSTITUTE($J112,\"{\",CHAR(160),EU$1)),FIND(CHAR(160),SUBSTITUTE($J112,\"}\",CHAR(160),EU$1))-FIND(CHAR(160),SUBSTITUTE($J112,\"{\",CHAR(160),EU$1))+1),\"\")","v":""},{"$f":"IFERROR(MID($J112,FIND(CHAR(160),SUBSTITUTE($J112,\"{\",CHAR(160),EV$1)),FIND(CHAR(160),SUBSTITUTE($J112,\"}\",CHAR(160),EV$1))-FIND(CHAR(160),SUBSTITUTE($J112,\"{\",CHAR(160),EV$1))+1),\"\")","v":""},{"$f":"IFERROR(MID($J112,FIND(CHAR(160),SUBSTITUTE($J112,\"{\",CHAR(160),EW$1)),FIND(CHAR(160),SUBSTITUTE($J112,\"}\",CHAR(160),EW$1))-FIND(CHAR(160),SUBSTITUTE($J112,\"{\",CHAR(160),EW$1))+1),\"\")","v":""},{"$f":"IFERROR(MID($J112,FIND(CHAR(160),SUBSTITUTE($J112,\"{\",CHAR(160),EX$1)),FIND(CHAR(160),SUBSTITUTE($J112,\"}\",CHAR(160),EX$1))-FIND(CHAR(160),SUBSTITUTE($J112,\"{\",CHAR(160),EX$1))+1),\"\")","v":""},{"$f":"IFERROR(MID($J112,FIND(CHAR(160),SUBSTITUTE($J112,\"{\",CHAR(160),EY$1)),FIND(CHAR(160),SUBSTITUTE($J112,\"}\",CHAR(160),EY$1))-FIND(CHAR(160),SUBSTITUTE($J112,\"{\",CHAR(160),EY$1))+1),\"\")","v":""},{"$f":"IFERROR(MID($J112,FIND(CHAR(160),SUBSTITUTE($J112,\"{\",CHAR(160),EZ$1)),FIND(CHAR(160),SUBSTITUTE($J112,\"}\",CHAR(160),EZ$1))-FIND(CHAR(160),SUBSTITUTE($J112,\"{\",CHAR(160),EZ$1))+1),\"\")","v":""},{"$f":"IFERROR(MID($J112,FIND(CHAR(160),SUBSTITUTE($J112,\"{\",CHAR(160),FA$1)),FIND(CHAR(160),SUBSTITUTE($J112,\"}\",CHAR(160),FA$1))-FIND(CHAR(160),SUBSTITUTE($J112,\"{\",CHAR(160),FA$1))+1),\"\")","v":"{Measure:Quantity}"},{"$f":"IFERROR(MID($J112,FIND(CHAR(160),SUBSTITUTE($J112,\"{\",CHAR(160),FB$1)),FIND(CHAR(160),SUBSTITUTE($J112,\"}\",CHAR(160),FB$1))-FIND(CHAR(160),SUBSTITUTE($J112,\"{\",CHAR(160),FB$1))+1),\"\")","v":"{Capacity (MBTUH)}"},{"$f":"IFERROR(MID($O112,FIND(CHAR(160),SUBSTITUTE($O112,\"{\",CHAR(160),FC$1)),FIND(CHAR(160),SUBSTITUTE($O112,\"}\",CHAR(160),FC$1))-FIND(CHAR(160),SUBSTITUTE($O112,\"{\",CHAR(160),FC$1))+1),\"\")","v":""},{"$f":"IFERROR(MID($O112,FIND(CHAR(160),SUBSTITUTE($O112,\"{\",CHAR(160),FD$1)),FIND(CHAR(160),SUBSTITUTE($O112,\"}\",CHAR(160),FD$1))-FIND(CHAR(160),SUBSTITUTE($O112,\"{\",CHAR(160),FD$1))+1),\"\")","v":""},{"$f":"IFERROR(MID($O112,FIND(CHAR(160),SUBSTITUTE($O112,\"{\",CHAR(160),FE$1)),FIND(CHAR(160),SUBSTITUTE($O112,\"}\",CHAR(160),FE$1))-FIND(CHAR(160),SUBSTITUTE($O112,\"{\",CHAR(160),FE$1))+1),\"\")","v":""},{"$f":"IFERROR(MID($O112,FIND(CHAR(160),SUBSTITUTE($O112,\"{\",CHAR(160),FF$1)),FIND(CHAR(160),SUBSTITUTE($O112,\"}\",CHAR(160),FF$1))-FIND(CHAR(160),SUBSTITUTE($O112,\"{\",CHAR(160),FF$1))+1),\"\")","v":""},{"$f":"IFERROR(MID($O112,FIND(CHAR(160),SUBSTITUTE($O112,\"{\",CHAR(160),FG$1)),FIND(CHAR(160),SUBSTITUTE($O112,\"}\",CHAR(160),FG$1))-FIND(CHAR(160),SUBSTITUTE($O112,\"{\",CHAR(160),FG$1))+1),\"\")","v":""},{"$f":"IFERROR(MID($O112,FIND(CHAR(160),SUBSTITUTE($O112,\"{\",CHAR(160),FH$1)),FIND(CHAR(160),SUBSTITUTE($O112,\"}\",CHAR(160),FH$1))-FIND(CHAR(160),SUBSTITUTE($O112,\"{\",CHAR(160),FH$1))+1),\"\")","v":""},{"$f":"IFERROR(MID($O112,FIND(CHAR(160),SUBSTITUTE($O112,\"{\",CHAR(160),FI$1)),FIND(CHAR(160),SUBSTITUTE($O112,\"}\",CHAR(160),FI$1))-FIND(CHAR(160),SUBSTITUTE($O112,\"{\",CHAR(160),FI$1))+1),\"\")","v":""},{"$f":"IFERROR(MID($O112,FIND(CHAR(160),SUBSTITUTE($O112,\"{\",CHAR(160),FJ$1)),FIND(CHAR(160),SUBSTITUTE($O112,\"}\",CHAR(160),FJ$1))-FIND(CHAR(160),SUBSTITUTE($O112,\"{\",CHAR(160),FJ$1))+1),\"\")","v":""},{"$f":"IFERROR(MID($O112,FIND(CHAR(160),SUBSTITUTE($O112,\"{\",CHAR(160),FK$1)),FIND(CHAR(160),SUBSTITUTE($O112,\"}\",CHAR(160),FK$1))-FIND(CHAR(160),SUBSTITUTE($O112,\"{\",CHAR(160),FK$1))+1),\"\")","v":""},{"$f":"IFERROR(MID($O112,FIND(CHAR(160),SUBSTITUTE($O112,\"{\",CHAR(160),FL$1)),FIND(CHAR(160),SUBSTITUTE($O112,\"}\",CHAR(160),FL$1))-FIND(CHAR(160),SUBSTITUTE($O112,\"{\",CHAR(160),FL$1))+1),\"\")","v":""},{"$f":"IFERROR(MID($R112,FIND(CHAR(160),SUBSTITUTE($R112,\"{\",CHAR(160),FM$1)),FIND(CHAR(160),SUBSTITUTE($R112,\"}\",CHAR(160),FM$1))-FIND(CHAR(160),SUBSTITUTE($R112,\"{\",CHAR(160),FM$1))+1),\"\")","v":""},{"$f":"IFERROR(MID($R112,FIND(CHAR(160),SUBSTITUTE($R112,\"{\",CHAR(160),FN$1)),FIND(CHAR(160),SUBSTITUTE($R112,\"}\",CHAR(160),FN$1))-FIND(CHAR(160),SUBSTITUTE($R112,\"{\",CHAR(160),FN$1))+1),\"\")","v":""},{"$f":"IFERROR(MID($R112,FIND(CHAR(160),SUBSTITUTE($R112,\"{\",CHAR(160),FO$1)),FIND(CHAR(160),SUBSTITUTE($R112,\"}\",CHAR(160),FO$1))-FIND(CHAR(160),SUBSTITUTE($R112,\"{\",CHAR(160),FO$1))+1),\"\")","v":""},{"$f":"IFERROR(MID($R112,FIND(CHAR(160),SUBSTITUTE($R112,\"{\",CHAR(160),FP$1)),FIND(CHAR(160),SUBSTITUTE($R112,\"}\",CHAR(160),FP$1))-FIND(CHAR(160),SUBSTITUTE($R112,\"{\",CHAR(160),FP$1))+1),\"\")","v":""},{"$f":"IFERROR(MID($R112,FIND(CHAR(160),SUBSTITUTE($R112,\"{\",CHAR(160),FQ$1)),FIND(CHAR(160),SUBSTITUTE($R112,\"}\",CHAR(160),FQ$1))-FIND(CHAR(160),SUBSTITUTE($R112,\"{\",CHAR(160),FQ$1))+1),\"\")","v":""},{"$f":"IFERROR(MID($R112,FIND(CHAR(160),SUBSTITUTE($R112,\"{\",CHAR(160),FR$1)),FIND(CHAR(160),SUBSTITUTE($R112,\"}\",CHAR(160),FR$1))-FIND(CHAR(160),SUBSTITUTE($R112,\"{\",CHAR(160),FR$1))+1),\"\")","v":""},{"$f":"IFERROR(MID($R112,FIND(CHAR(160),SUBSTITUTE($R112,\"{\",CHAR(160),FS$1)),FIND(CHAR(160),SUBSTITUTE($R112,\"}\",CHAR(160),FS$1))-FIND(CHAR(160),SUBSTITUTE($R112,\"{\",CHAR(160),FS$1))+1),\"\")","v":""},{"$f":"IFERROR(MID($R112,FIND(CHAR(160),SUBSTITUTE($R112,\"{\",CHAR(160),FT$1)),FIND(CHAR(160),SUBSTITUTE($R112,\"}\",CHAR(160),FT$1))-FIND(CHAR(160),SUBSTITUTE($R112,\"{\",CHAR(160),FT$1))+1),\"\")","v":""},{"$f":"IFERROR(MID($R112,FIND(CHAR(160),SUBSTITUTE($R112,\"{\",CHAR(160),FU$1)),FIND(CHAR(160),SUBSTITUTE($R112,\"}\",CHAR(160),FU$1))-FIND(CHAR(160),SUBSTITUTE($R112,\"{\",CHAR(160),FU$1))+1),\"\")","v":""},{"$f":"IFERROR(MID($R112,FIND(CHAR(160),SUBSTITUTE($R112,\"{\",CHAR(160),FV$1)),FIND(CHAR(160),SUBSTITUTE($R112,\"}\",CHAR(160),FV$1))-FIND(CHAR(160),SUBSTITUTE($R112,\"{\",CHAR(160),FV$1))+1),\"\")","v":""},{"$f":"IFERROR(MID($U112,FIND(CHAR(160),SUBSTITUTE($U112,\"{\",CHAR(160),FW$1)),FIND(CHAR(160),SUBSTITUTE($U112,\"}\",CHAR(160),FW$1))-FIND(CHAR(160),SUBSTITUTE($U112,\"{\",CHAR(160),FW$1))+1),\"\")","v":""},{"$f":"IFERROR(MID($U112,FIND(CHAR(160),SUBSTITUTE($U112,\"{\",CHAR(160),FX$1)),FIND(CHAR(160),SUBSTITUTE($U112,\"}\",CHAR(160),FX$1))-FIND(CHAR(160),SUBSTITUTE($U112,\"{\",CHAR(160),FX$1))+1),\"\")","v":""},{"$f":"IFERROR(MID($U112,FIND(CHAR(160),SUBSTITUTE($U112,\"{\",CHAR(160),FY$1)),FIND(CHAR(160),SUBSTITUTE($U112,\"}\",CHAR(160),FY$1))-FIND(CHAR(160),SUBSTITUTE($U112,\"{\",CHAR(160),FY$1))+1),\"\")","v":""},{"$f":"IFERROR(MID($U112,FIND(CHAR(160),SUBSTITUTE($U112,\"{\",CHAR(160),FZ$1)),FIND(CHAR(160),SUBSTITUTE($U112,\"}\",CHAR(160),FZ$1))-FIND(CHAR(160),SUBSTITUTE($U112,\"{\",CHAR(160),FZ$1))+1),\"\")","v":""},{"$f":"IFERROR(MID($U112,FIND(CHAR(160),SUBSTITUTE($U112,\"{\",CHAR(160),GA$1)),FIND(CHAR(160),SUBSTITUTE($U112,\"}\",CHAR(160),GA$1))-FIND(CHAR(160),SUBSTITUTE($U112,\"{\",CHAR(160),GA$1))+1),\"\")","v":""},{"$f":"IFERROR(MID($U112,FIND(CHAR(160),SUBSTITUTE($U112,\"{\",CHAR(160),GB$1)),FIND(CHAR(160),SUBSTITUTE($U112,\"}\",CHAR(160),GB$1))-FIND(CHAR(160),SUBSTITUTE($U112,\"{\",CHAR(160),GB$1))+1),\"\")","v":""},{"$f":"IFERROR(MID($U112,FIND(CHAR(160),SUBSTITUTE($U112,\"{\",CHAR(160),GC$1)),FIND(CHAR(160),SUBSTITUTE($U112,\"}\",CHAR(160),GC$1))-FIND(CHAR(160),SUBSTITUTE($U112,\"{\",CHAR(160),GC$1))+1),\"\")","v":""},{"$f":"IFERROR(MID($U112,FIND(CHAR(160),SUBSTITUTE($U112,\"{\",CHAR(160),GD$1)),FIND(CHAR(160),SUBSTITUTE($U112,\"}\",CHAR(160),GD$1))-FIND(CHAR(160),SUBSTITUTE($U112,\"{\",CHAR(160),GD$1))+1),\"\")","v":""},{"$f":"IFERROR(MID($U112,FIND(CHAR(160),SUBSTITUTE($U112,\"{\",CHAR(160),GE$1)),FIND(CHAR(160),SUBSTITUTE($U112,\"}\",CHAR(160),GE$1))-FIND(CHAR(160),SUBSTITUTE($U112,\"{\",CHAR(160),GE$1))+1),\"\")","v":""},{"$f":"IFERROR(MID($U112,FIND(CHAR(160),SUBSTITUTE($U112,\"{\",CHAR(160),GF$1)),FIND(CHAR(160),SUBSTITUTE($U112,\"}\",CHAR(160),GF$1))-FIND(CHAR(160),SUBSTITUTE($U112,\"{\",CHAR(160),GF$1))+1),\"\")","v":""},{"$f":"IFERROR(MID($V112,FIND(CHAR(160),SUBSTITUTE($V112,\"{\",CHAR(160),GG$1)),FIND(CHAR(160),SUBSTITUTE($V112,\"}\",CHAR(160),GG$1))-FIND(CHAR(160),SUBSTITUTE($V112,\"{\",CHAR(160),GG$1))+1),\"\")","v":""},{"$f":"IFERROR(MID($V112,FIND(CHAR(160),SUBSTITUTE($V112,\"{\",CHAR(160),GH$1)),FIND(CHAR(160),SUBSTITUTE($V112,\"}\",CHAR(160),GH$1))-FIND(CHAR(160),SUBSTITUTE($V112,\"{\",CHAR(160),GH$1))+1),\"\")","v":""},{"$f":"IFERROR(MID($V112,FIND(CHAR(160),SUBSTITUTE($V112,\"{\",CHAR(160),GI$1)),FIND(CHAR(160),SUBSTITUTE($V112,\"}\",CHAR(160),GI$1))-FIND(CHAR(160),SUBSTITUTE($V112,\"{\",CHAR(160),GI$1))+1),\"\")","v":""},{"$f":"IFERROR(MID($V112,FIND(CHAR(160),SUBSTITUTE($V112,\"{\",CHAR(160),GJ$1)),FIND(CHAR(160),SUBSTITUTE($V112,\"}\",CHAR(160),GJ$1))-FIND(CHAR(160),SUBSTITUTE($V112,\"{\",CHAR(160),GJ$1))+1),\"\")","v":""},{"$f":"IFERROR(MID($V112,FIND(CHAR(160),SUBSTITUTE($V112,\"{\",CHAR(160),GK$1)),FIND(CHAR(160),SUBSTITUTE($V112,\"}\",CHAR(160),GK$1))-FIND(CHAR(160),SUBSTITUTE($V112,\"{\",CHAR(160),GK$1))+1),\"\")","v":""},{"$f":"IFERROR(MID($V112,FIND(CHAR(160),SUBSTITUTE($V112,\"{\",CHAR(160),GL$1)),FIND(CHAR(160),SUBSTITUTE($V112,\"}\",CHAR(160),GL$1))-FIND(CHAR(160),SUBSTITUTE($V112,\"{\",CHAR(160),GL$1))+1),\"\")","v":""},{"$f":"IFERROR(MID($V112,FIND(CHAR(160),SUBSTITUTE($V112,\"{\",CHAR(160),GM$1)),FIND(CHAR(160),SUBSTITUTE($V112,\"}\",CHAR(160),GM$1))-FIND(CHAR(160),SUBSTITUTE($V112,\"{\",CHAR(160),GM$1))+1),\"\")","v":""},{"$f":"IFERROR(MID($V112,FIND(CHAR(160),SUBSTITUTE($V112,\"{\",CHAR(160),GN$1)),FIND(CHAR(160),SUBSTITUTE($V112,\"}\",CHAR(160),GN$1))-FIND(CHAR(160),SUBSTITUTE($V112,\"{\",CHAR(160),GN$1))+1),\"\")","v":""},{"$f":"IFERROR(MID($V112,FIND(CHAR(160),SUBSTITUTE($V112,\"{\",CHAR(160),GO$1)),FIND(CHAR(160),SUBSTITUTE($V112,\"}\",CHAR(160),GO$1))-FIND(CHAR(160),SUBSTITUTE($V112,\"{\",CHAR(160),GO$1))+1),\"\")","v":""},{"$f":"IFERROR(MID($V112,FIND(CHAR(160),SUBSTITUTE($V112,\"{\",CHAR(160),GP$1)),FIND(CHAR(160),SUBSTITUTE($V112,\"}\",CHAR(160),GP$1))-FIND(CHAR(160),SUBSTITUTE($V112,\"{\",CHAR(160),GP$1))+1),\"\")","v":""},{"$f":"IFERROR(MID($W112,FIND(CHAR(160),SUBSTITUTE($W112,\"{\",CHAR(160),GQ$1)),FIND(CHAR(160),SUBSTITUTE($W112,\"}\",CHAR(160),GQ$1))-FIND(CHAR(160),SUBSTITUTE($W112,\"{\",CHAR(160),GQ$1))+1),\"\")","v":"{Capacity (MBTUH)}"},{"$f":"IFERROR(MID($W112,FIND(CHAR(160),SUBSTITUTE($W112,\"{\",CHAR(160),GR$1)),FIND(CHAR(160),SUBSTITUTE($W112,\"}\",CHAR(160),GR$1))-FIND(CHAR(160),SUBSTITUTE($W112,\"{\",CHAR(160),GR$1))+1),\"\")","v":"{End-Use}"},{"$f":"IFERROR(MID($W112,FIND(CHAR(160),SUBSTITUTE($W112,\"{\",CHAR(160),GS$1)),FIND(CHAR(160),SUBSTITUTE($W112,\"}\",CHAR(160),GS$1))-FIND(CHAR(160),SUBSTITUTE($W112,\"{\",CHAR(160),GS$1))+1),\"\")","v":"{Annual Hours of Operation}"},{"$f":"IFERROR(MID($W112,FIND(CHAR(160),SUBSTITUTE($W112,\"{\",CHAR(160),GT$1)),FIND(CHAR(160),SUBSTITUTE($W112,\"}\",CHAR(160),GT$1))-FIND(CHAR(160),SUBSTITUTE($W112,\"{\",CHAR(160),GT$1))+1),\"\")","v":""},{"$f":"IFERROR(MID($W112,FIND(CHAR(160),SUBSTITUTE($W112,\"{\",CHAR(160),GU$1)),FIND(CHAR(160),SUBSTITUTE($W112,\"}\",CHAR(160),GU$1))-FIND(CHAR(160),SUBSTITUTE($W112,\"{\",CHAR(160),GU$1))+1),\"\")","v":""},{"$f":"IFERROR(MID($W112,FIND(CHAR(160),SUBSTITUTE($W112,\"{\",CHAR(160),GV$1)),FIND(CHAR(160),SUBSTITUTE($W112,\"}\",CHAR(160),GV$1))-FIND(CHAR(160),SUBSTITUTE($W112,\"{\",CHAR(160),GV$1))+1),\"\")","v":""},{"$f":"IFERROR(MID($W112,FIND(CHAR(160),SUBSTITUTE($W112,\"{\",CHAR(160),GW$1)),FIND(CHAR(160),SUBSTITUTE($W112,\"}\",CHAR(160),GW$1))-FIND(CHAR(160),SUBSTITUTE($W112,\"{\",CHAR(160),GW$1))+1),\"\")","v":""},{"$f":"IFERROR(MID($W112,FIND(CHAR(160),SUBSTITUTE($W112,\"{\",CHAR(160),GX$1)),FIND(CHAR(160),SUBSTITUTE($W112,\"}\",CHAR(160),GX$1))-FIND(CHAR(160),SUBSTITUTE($W112,\"{\",CHAR(160),GX$1))+1),\"\")","v":""},{"$f":"IFERROR(MID($W112,FIND(CHAR(160),SUBSTITUTE($W112,\"{\",CHAR(160),GY$1)),FIND(CHAR(160),SUBSTITUTE($W112,\"}\",CHAR(160),GY$1))-FIND(CHAR(160),SUBSTITUTE($W112,\"{\",CHAR(160),GY$1))+1),\"\")","v":"{Existing Fuel}"},{"$f":"IFERROR(MID($W112,FIND(CHAR(160),SUBSTITUTE($W112,\"{\",CHAR(160),GZ$1)),FIND(CHAR(160),SUBSTITUTE($W112,\"}\",CHAR(160),GZ$1))-FIND(CHAR(160),SUBSTITUTE($W112,\"{\",CHAR(160),GZ$1))+1),\"\")","v":"{Measure:Quantity}"},{"$f":"IFERROR(MID($X112,FIND(CHAR(160),SUBSTITUTE($X112,\"{\",CHAR(160),HA$1)),FIND(CHAR(160),SUBSTITUTE($X112,\"}\",CHAR(160),HA$1))-FIND(CHAR(160),SUBSTITUTE($X112,\"{\",CHAR(160),HA$1))+1),\"\")","v":"{Capacity (MBTUH)}"},{"$f":"IFERROR(MID($X112,FIND(CHAR(160),SUBSTITUTE($X112,\"{\",CHAR(160),HB$1)),FIND(CHAR(160),SUBSTITUTE($X112,\"}\",CHAR(160),HB$1))-FIND(CHAR(160),SUBSTITUTE($X112,\"{\",CHAR(160),HB$1))+1),\"\")","v":"{End-Use}"},{"$f":"IFERROR(MID($X112,FIND(CHAR(160),SUBSTITUTE($X112,\"{\",CHAR(160),HC$1)),FIND(CHAR(160),SUBSTITUTE($X112,\"}\",CHAR(160),HC$1))-FIND(CHAR(160),SUBSTITUTE($X112,\"{\",CHAR(160),HC$1))+1),\"\")","v":"{Annual Hours of Operation}"},{"$f":"IFERROR(MID($X112,FIND(CHAR(160),SUBSTITUTE($X112,\"{\",CHAR(160),HD$1)),FIND(CHAR(160),SUBSTITUTE($X112,\"}\",CHAR(160),HD$1))-FIND(CHAR(160),SUBSTITUTE($X112,\"{\",CHAR(160),HD$1))+1),\"\")","v":""},{"$f":"IFERROR(MID($X112,FIND(CHAR(160),SUBSTITUTE($X112,\"{\",CHAR(160),HE$1)),FIND(CHAR(160),SUBSTITUTE($X112,\"}\",CHAR(160),HE$1))-FIND(CHAR(160),SUBSTITUTE($X112,\"{\",CHAR(160),HE$1))+1),\"\")","v":""},{"$f":"IFERROR(MID($X112,FIND(CHAR(160),SUBSTITUTE($X112,\"{\",CHAR(160),HF$1)),FIND(CHAR(160),SUBSTITUTE($X112,\"}\",CHAR(160),HF$1))-FIND(CHAR(160),SUBSTITUTE($X112,\"{\",CHAR(160),HF$1))+1),\"\")","v":""},{"$f":"IFERROR(MID($X112,FIND(CHAR(160),SUBSTITUTE($X112,\"{\",CHAR(160),HG$1)),FIND(CHAR(160),SUBSTITUTE($X112,\"}\",CHAR(160),HG$1))-FIND(CHAR(160),SUBSTITUTE($X112,\"{\",CHAR(160),HG$1))+1),\"\")","v":""},{"$f":"IFERROR(MID($X112,FIND(CHAR(160),SUBSTITUTE($X112,\"{\",CHAR(160),HH$1)),FIND(CHAR(160),SUBSTITUTE($X112,\"}\",CHAR(160),HH$1))-FIND(CHAR(160),SUBSTITUTE($X112,\"{\",CHAR(160),HH$1))+1),\"\")","v":""},{"$f":"IFERROR(MID($X112,FIND(CHAR(160),SUBSTITUTE($X112,\"{\",CHAR(160),HI$1)),FIND(CHAR(160),SUBSTITUTE($X112,\"}\",CHAR(160),HI$1))-FIND(CHAR(160),SUBSTITUTE($X112,\"{\",CHAR(160),HI$1))+1),\"\")","v":"{Existing Fuel}"},{"$f":"IFERROR(MID($X112,FIND(CHAR(160),SUBSTITUTE($X112,\"{\",CHAR(160),HJ$1)),FIND(CHAR(160),SUBSTITUTE($X112,\"}\",CHAR(160),HJ$1))-FIND(CHAR(160),SUBSTITUTE($X112,\"{\",CHAR(160),HJ$1))+1),\"\")","v":"{Measure:Quantity}"},{"$f":"IFERROR(MID($Y112,FIND(CHAR(160),SUBSTITUTE($Y112,\"{\",CHAR(160),HK$1)),FIND(CHAR(160),SUBSTITUTE($Y112,\"}\",CHAR(160),HK$1))-FIND(CHAR(160),SUBSTITUTE($Y112,\"{\",CHAR(160),HK$1))+1),\"\")","v":""},{"$f":"IFERROR(MID($Y112,FIND(CHAR(160),SUBSTITUTE($Y112,\"{\",CHAR(160),HL$1)),FIND(CHAR(160),SUBSTITUTE($Y112,\"}\",CHAR(160),HL$1))-FIND(CHAR(160),SUBSTITUTE($Y112,\"{\",CHAR(160),HL$1))+1),\"\")","v":""},{"$f":"IFERROR(MID($Y112,FIND(CHAR(160),SUBSTITUTE($Y112,\"{\",CHAR(160),HM$1)),FIND(CHAR(160),SUBSTITUTE($Y112,\"}\",CHAR(160),HM$1))-FIND(CHAR(160),SUBSTITUTE($Y112,\"{\",CHAR(160),HM$1))+1),\"\")","v":""},{"$f":"IFERROR(MID($Y112,FIND(CHAR(160),SUBSTITUTE($Y112,\"{\",CHAR(160),HN$1)),FIND(CHAR(160),SUBSTITUTE($Y112,\"}\",CHAR(160),HN$1))-FIND(CHAR(160),SUBSTITUTE($Y112,\"{\",CHAR(160),HN$1))+1),\"\")","v":""},{"$f":"IFERROR(MID($Y112,FIND(CHAR(160),SUBSTITUTE($Y112,\"{\",CHAR(160),HO$1)),FIND(CHAR(160),SUBSTITUTE($Y112,\"}\",CHAR(160),HO$1))-FIND(CHAR(160),SUBSTITUTE($Y112,\"{\",CHAR(160),HO$1))+1),\"\")","v":""},{"$f":"IFERROR(MID($Y112,FIND(CHAR(160),SUBSTITUTE($Y112,\"{\",CHAR(160),HP$1)),FIND(CHAR(160),SUBSTITUTE($Y112,\"}\",CHAR(160),HP$1))-FIND(CHAR(160),SUBSTITUTE($Y112,\"{\",CHAR(160),HP$1))+1),\"\")","v":""},{"$f":"IFERROR(MID($Y112,FIND(CHAR(160),SUBSTITUTE($Y112,\"{\",CHAR(160),HQ$1)),FIND(CHAR(160),SUBSTITUTE($Y112,\"}\",CHAR(160),HQ$1))-FIND(CHAR(160),SUBSTITUTE($Y112,\"{\",CHAR(160),HQ$1))+1),\"\")","v":""},{"$f":"IFERROR(MID($Y112,FIND(CHAR(160),SUBSTITUTE($Y112,\"{\",CHAR(160),HR$1)),FIND(CHAR(160),SUBSTITUTE($Y112,\"}\",CHAR(160),HR$1))-FIND(CHAR(160),SUBSTITUTE($Y112,\"{\",CHAR(160),HR$1))+1),\"\")","v":""},{"$f":"IFERROR(MID($Y112,FIND(CHAR(160),SUBSTITUTE($Y112,\"{\",CHAR(160),HS$1)),FIND(CHAR(160),SUBSTITUTE($Y112,\"}\",CHAR(160),HS$1))-FIND(CHAR(160),SUBSTITUTE($Y112,\"{\",CHAR(160),HS$1))+1),\"\")","v":""},{"$f":"IFERROR(MID($Y112,FIND(CHAR(160),SUBSTITUTE($Y112,\"{\",CHAR(160),HT$1)),FIND(CHAR(160),SUBSTITUTE($Y112,\"}\",CHAR(160),HT$1))-FIND(CHAR(160),SUBSTITUTE($Y112,\"{\",CHAR(160),HT$1))+1),\"\")","v":""},{"$f":"IFERROR(MID($Z112,FIND(CHAR(160),SUBSTITUTE($Z112,\"{\",CHAR(160),HU$1)),FIND(CHAR(160),SUBSTITUTE($Z112,\"}\",CHAR(160),HU$1))-FIND(CHAR(160),SUBSTITUTE($Z112,\"{\",CHAR(160),HU$1))+1),\"\")","v":""},{"$f":"IFERROR(MID($Z112,FIND(CHAR(160),SUBSTITUTE($Z112,\"{\",CHAR(160),HV$1)),FIND(CHAR(160),SUBSTITUTE($Z112,\"}\",CHAR(160),HV$1))-FIND(CHAR(160),SUBSTITUTE($Z112,\"{\",CHAR(160),HV$1))+1),\"\")","v":""},{"$f":"IFERROR(MID($Z112,FIND(CHAR(160),SUBSTITUTE($Z112,\"{\",CHAR(160),HW$1)),FIND(CHAR(160),SUBSTITUTE($Z112,\"}\",CHAR(160),HW$1))-FIND(CHAR(160),SUBSTITUTE($Z112,\"{\",CHAR(160),HW$1))+1),\"\")","v":""},{"$f":"IFERROR(MID($Z112,FIND(CHAR(160),SUBSTITUTE($Z112,\"{\",CHAR(160),HX$1)),FIND(CHAR(160),SUBSTITUTE($Z112,\"}\",CHAR(160),HX$1))-FIND(CHAR(160),SUBSTITUTE($Z112,\"{\",CHAR(160),HX$1))+1),\"\")","v":""},{"$f":"IFERROR(MID($Z112,FIND(CHAR(160),SUBSTITUTE($Z112,\"{\",CHAR(160),HY$1)),FIND(CHAR(160),SUBSTITUTE($Z112,\"}\",CHAR(160),HY$1))-FIND(CHAR(160),SUBSTITUTE($Z112,\"{\",CHAR(160),HY$1))+1),\"\")","v":""},{"$f":"IFERROR(MID($Z112,FIND(CHAR(160),SUBSTITUTE($Z112,\"{\",CHAR(160),HZ$1)),FIND(CHAR(160),SUBSTITUTE($Z112,\"}\",CHAR(160),HZ$1))-FIND(CHAR(160),SUBSTITUTE($Z112,\"{\",CHAR(160),HZ$1))+1),\"\")","v":""},{"$f":"IFERROR(MID($Z112,FIND(CHAR(160),SUBSTITUTE($Z112,\"{\",CHAR(160),IA$1)),FIND(CHAR(160),SUBSTITUTE($Z112,\"}\",CHAR(160),IA$1))-FIND(CHAR(160),SUBSTITUTE($Z112,\"{\",CHAR(160),IA$1))+1),\"\")","v":""},{"$f":"IFERROR(MID($Z112,FIND(CHAR(160),SUBSTITUTE($Z112,\"{\",CHAR(160),IB$1)),FIND(CHAR(160),SUBSTITUTE($Z112,\"}\",CHAR(160),IB$1))-FIND(CHAR(160),SUBSTITUTE($Z112,\"{\",CHAR(160),IB$1))+1),\"\")","v":""},{"$f":"IFERROR(MID($Z112,FIND(CHAR(160),SUBSTITUTE($Z112,\"{\",CHAR(160),IC$1)),FIND(CHAR(160),SUBSTITUTE($Z112,\"}\",CHAR(160),IC$1))-FIND(CHAR(160),SUBSTITUTE($Z112,\"{\",CHAR(160),IC$1))+1),\"\")","v":""},{"$f":"IFERROR(MID($Z112,FIND(CHAR(160),SUBSTITUTE($Z112,\"{\",CHAR(160),ID$1)),FIND(CHAR(160),SUBSTITUTE($Z112,\"}\",CHAR(160),ID$1))-FIND(CHAR(160),SUBSTITUTE($Z112,\"{\",CHAR(160),ID$1))+1),\"\")","v":""},{"$f":"IFERROR(MID($AA112,FIND(CHAR(160),SUBSTITUTE($AA112,\"{\",CHAR(160),IE$1)),FIND(CHAR(160),SUBSTITUTE($AA112,\"}\",CHAR(160),IE$1))-FIND(CHAR(160),SUBSTITUTE($AA112,\"{\",CHAR(160),IE$1))+1),\"\")","v":""},{"$f":"IFERROR(MID($AA112,FIND(CHAR(160),SUBSTITUTE($AA112,\"{\",CHAR(160),IF$1)),FIND(CHAR(160),SUBSTITUTE($AA112,\"}\",CHAR(160),IF$1))-FIND(CHAR(160),SUBSTITUTE($AA112,\"{\",CHAR(160),IF$1))+1),\"\")","v":""},{"$f":"IFERROR(MID($AA112,FIND(CHAR(160),SUBSTITUTE($AA112,\"{\",CHAR(160),IG$1)),FIND(CHAR(160),SUBSTITUTE($AA112,\"}\",CHAR(160),IG$1))-FIND(CHAR(160),SUBSTITUTE($AA112,\"{\",CHAR(160),IG$1))+1),\"\")","v":""},{"$f":"IFERROR(MID($AA112,FIND(CHAR(160),SUBSTITUTE($AA112,\"{\",CHAR(160),IH$1)),FIND(CHAR(160),SUBSTITUTE($AA112,\"}\",CHAR(160),IH$1))-FIND(CHAR(160),SUBSTITUTE($AA112,\"{\",CHAR(160),IH$1))+1),\"\")","v":""},{"$f":"IFERROR(MID($AA112,FIND(CHAR(160),SUBSTITUTE($AA112,\"{\",CHAR(160),II$1)),FIND(CHAR(160),SUBSTITUTE($AA112,\"}\",CHAR(160),II$1))-FIND(CHAR(160),SUBSTITUTE($AA112,\"{\",CHAR(160),II$1))+1),\"\")","v":""},{"$f":"IFERROR(MID($AA112,FIND(CHAR(160),SUBSTITUTE($AA112,\"{\",CHAR(160),IJ$1)),FIND(CHAR(160),SUBSTITUTE($AA112,\"}\",CHAR(160),IJ$1))-FIND(CHAR(160),SUBSTITUTE($AA112,\"{\",CHAR(160),IJ$1))+1),\"\")","v":""},{"$f":"IFERROR(MID($AA112,FIND(CHAR(160),SUBSTITUTE($AA112,\"{\",CHAR(160),IK$1)),FIND(CHAR(160),SUBSTITUTE($AA112,\"}\",CHAR(160),IK$1))-FIND(CHAR(160),SUBSTITUTE($AA112,\"{\",CHAR(160),IK$1))+1),\"\")","v":""},{"$f":"IFERROR(MID($AA112,FIND(CHAR(160),SUBSTITUTE($AA112,\"{\",CHAR(160),IL$1)),FIND(CHAR(160),SUBSTITUTE($AA112,\"}\",CHAR(160),IL$1))-FIND(CHAR(160),SUBSTITUTE($AA112,\"{\",CHAR(160),IL$1))+1),\"\")","v":""},{"$f":"IFERROR(MID($AA112,FIND(CHAR(160),SUBSTITUTE($AA112,\"{\",CHAR(160),IM$1)),FIND(CHAR(160),SUBSTITUTE($AA112,\"}\",CHAR(160),IM$1))-FIND(CHAR(160),SUBSTITUTE($AA112,\"{\",CHAR(160),IM$1))+1),\"\")","v":""},{"$f":"IFERROR(MID($AA112,FIND(CHAR(160),SUBSTITUTE($AA112,\"{\",CHAR(160),IN$1)),FIND(CHAR(160),SUBSTITUTE($AA112,\"}\",CHAR(160),IN$1))-FIND(CHAR(160),SUBSTITUTE($AA112,\"{\",CHAR(160),IN$1))+1),\"\")","v":""},{"$f":"IFERROR(MID($AB112,FIND(CHAR(160),SUBSTITUTE($AB112,\"{\",CHAR(160),IO$1)),FIND(CHAR(160),SUBSTITUTE($AB112,\"}\",CHAR(160),IO$1))-FIND(CHAR(160),SUBSTITUTE($AB112,\"{\",CHAR(160),IO$1))+1),\"\")","v":""},{"$f":"IFERROR(MID($AB112,FIND(CHAR(160),SUBSTITUTE($AB112,\"{\",CHAR(160),IP$1)),FIND(CHAR(160),SUBSTITUTE($AB112,\"}\",CHAR(160),IP$1))-FIND(CHAR(160),SUBSTITUTE($AB112,\"{\",CHAR(160),IP$1))+1),\"\")","v":""},{"$f":"IFERROR(MID($AB112,FIND(CHAR(160),SUBSTITUTE($AB112,\"{\",CHAR(160),IQ$1)),FIND(CHAR(160),SUBSTITUTE($AB112,\"}\",CHAR(160),IQ$1))-FIND(CHAR(160),SUBSTITUTE($AB112,\"{\",CHAR(160),IQ$1))+1),\"\")","v":""},{"$f":"IFERROR(MID($AB112,FIND(CHAR(160),SUBSTITUTE($AB112,\"{\",CHAR(160),IR$1)),FIND(CHAR(160),SUBSTITUTE($AB112,\"}\",CHAR(160),IR$1))-FIND(CHAR(160),SUBSTITUTE($AB112,\"{\",CHAR(160),IR$1))+1),\"\")","v":""},{"$f":"IFERROR(MID($AB112,FIND(CHAR(160),SUBSTITUTE($AB112,\"{\",CHAR(160),IS$1)),FIND(CHAR(160),SUBSTITUTE($AB112,\"}\",CHAR(160),IS$1))-FIND(CHAR(160),SUBSTITUTE($AB112,\"{\",CHAR(160),IS$1))+1),\"\")","v":""},{"$f":"IFERROR(MID($AB112,FIND(CHAR(160),SUBSTITUTE($AB112,\"{\",CHAR(160),IT$1)),FIND(CHAR(160),SUBSTITUTE($AB112,\"}\",CHAR(160),IT$1))-FIND(CHAR(160),SUBSTITUTE($AB112,\"{\",CHAR(160),IT$1))+1),\"\")","v":""},{"$f":"IFERROR(MID($AB112,FIND(CHAR(160),SUBSTITUTE($AB112,\"{\",CHAR(160),IU$1)),FIND(CHAR(160),SUBSTITUTE($AB112,\"}\",CHAR(160),IU$1))-FIND(CHAR(160),SUBSTITUTE($AB112,\"{\",CHAR(160),IU$1))+1),\"\")","v":""},{"$f":"IFERROR(MID($AB112,FIND(CHAR(160),SUBSTITUTE($AB112,\"{\",CHAR(160),IV$1)),FIND(CHAR(160),SUBSTITUTE($AB112,\"}\",CHAR(160),IV$1))-FIND(CHAR(160),SUBSTITUTE($AB112,\"{\",CHAR(160),IV$1))+1),\"\")","v":""},{"$f":"IFERROR(MID($AB112,FIND(CHAR(160),SUBSTITUTE($AB112,\"{\",CHAR(160),IW$1)),FIND(CHAR(160),SUBSTITUTE($AB112,\"}\",CHAR(160),IW$1))-FIND(CHAR(160),SUBSTITUTE($AB112,\"{\",CHAR(160),IW$1))+1),\"\")","v":""},{"$f":"IFERROR(MID($AB112,FIND(CHAR(160),SUBSTITUTE($AB112,\"{\",CHAR(160),IX$1)),FIND(CHAR(160),SUBSTITUTE($AB112,\"}\",CHAR(160),IX$1))-FIND(CHAR(160),SUBSTITUTE($AB112,\"{\",CHAR(160),IX$1))+1),\"\")","v":""},null,{"$f":"10-COUNTIF(DU112:ED112,\"\")","v":5}]
["C&I HVAC - Propane and Compressed NG","Programmable Thermostat","AF6","2021-07-01","2022-06-30","Per Measure",157,0,"Calculated","{Measure:Quantity}*100",0,"2021-05-25","2022-06-30","Calculated",null,null,null,null,null,null,null,null,"if({Existing Fuel}<>1,0,{Measure:Quantity} * ({Capacity (MBTUH)} * 1565 *0.068) / 1000)*10","if({Existing Fuel}<>2,0,{Measure:Quantity} * ({Capacity (MBTUH)} * 1565 *0.068) / 1000)",null,null,null,null,"2021-05-25","2022-06-30",8,0,0,0,0,0,0,1,1,0,0.52,1.6E-2,null,{"$f":"DU113","v":"{Measure:Quantity}"},1,{"$f":"DV113","v":"{Capacity (MBTUH)}"},2,{"$f":"DW113","v":"{Existing Fuel}"},100,{"$f":"DX113","v":""},null,{"$f":"DY113","v":""},null,{"$f":"DZ113","v":""},null,{"$f":"EA113","v":""},null,{"$f":"EB113","v":""},null,{"$f":"EC113","v":""},null,{"$f":"ED113","v":""},null,0,0,0,0,0,0,0,0,{"$f":"IF(AU113<>1,0,AS113 * (AW113 * 1565 *0.068) / 1000)*10","v":0},{"$f":"IF(AU113<>2,0,AS113 * (AW113 * 1565 *0.068) / 1000)","v":10.641999999999999},0,0,0,0,null,"Res","Default DR",{"$f":"Benefits(BL113,BR113,BS113,BT113,BU113,BV113,BW113,BX113,BY113,BZ113,AE113,AH113,AI113,AJ113,AK113,AL113,AM113,AN113,AO113,AP113,CA113,CB113)","v":0},0,0,0,0,3660.0716164380806,0,0,0,{"$f":"SUMPRODUCT(CC113:CK113,--(CC113:CK113>0))","v":3660.0716164380806},{"$f":"-SUMPRODUCT(CC113:CK113,--(CC113:CK113<0))","v":0},null,{"$f":"157","v":157},null,null,{"$f":"CM113+CO113","v":157},{"$f":"IF(NetOrGross=\"Net\",(1-AO113+AP113),1)","v":1},{"$f":"(SUMPRODUCT(CC113:CJ113,--(CC113:CJ113>0))+CN113)*CS113/((-SUMPRODUCT(CC113:CJ113,--(CC113:CJ113<0))+MAX(CO113,CV113)+CP113+CQ113)*CS113+IF(FRIncentives=\"Yes\",CV113*(1-CS113),0))","v":23.312558066484591},1,{"$f":"AS113*100","v":100},null,"RGGI","y",null,{"$f":"IF(F113=\"Manual Entry\",\"Manual\",IF(G113=\"\",0,\"X=\"&SUBSTITUTE(SUBSTITUTE(SUBSTITUTE(SUBSTITUTE(SUBSTITUTE(SUBSTITUTE(SUBSTITUTE(SUBSTITUTE(SUBSTITUTE(SUBSTITUTE(SUBSTITUTE(SUBSTITUTE(G113,$ED113,$ED$2&ROW($ED113)),$EC113,$EC$2&ROW($EC113)),$EB113,$EB$2&ROW($EB113)),$EA113,$EA$2&ROW($EA113)),$DZ113,$DZ$2&ROW($DZ113)),$DY113,$DY$2&ROW($DY113)),$DX113,$DX$2&ROW($DX113)),$DW113,$DW$2&ROW($DW113)),$DV113,$DV$2&ROW($DV113)),$DU113,$DU$2&ROW($DU113)),$DT113,$DT$2&ROW($DT113)),$DS113,$DS$2&ROW($DS113))))","v":"X=157"},{"$f":"IF(I113=\"Manual Entry\",\"Manual\",IF(J113=\"\",0,\"X=\"&SUBSTITUTE(SUBSTITUTE(SUBSTITUTE(SUBSTITUTE(SUBSTITUTE(SUBSTITUTE(SUBSTITUTE(SUBSTITUTE(SUBSTITUTE(SUBSTITUTE(SUBSTITUTE(SUBSTITUTE(J113,$ED113,$ED$2&ROW($ED113)),$EC113,$EC$2&ROW($EC113)),$EB113,$EB$2&ROW($EB113)),$EA113,$EA$2&ROW($EA113)),$DZ113,$DZ$2&ROW($DZ113)),$DY113,$DY$2&ROW($DY113)),$DX113,$DX$2&ROW($DX113)),$DW113,$DW$2&ROW($DW113)),$DV113,$DV$2&ROW($DV113)),$DU113,$DU$2&ROW($DU113)),$DT113,$DT$2&ROW($DT113)),$DS113,$DS$2&ROW($DS113))))","v":"X=AS113*100"},{"$f":"IF(O113=\"\",0,\"X=\"&SUBSTITUTE(SUBSTITUTE(SUBSTITUTE(SUBSTITUTE(SUBSTITUTE(SUBSTITUTE(SUBSTITUTE(SUBSTITUTE(SUBSTITUTE(SUBSTITUTE(SUBSTITUTE(SUBSTITUTE(O113,$ED113,$ED$2&ROW($ED113)),$EC113,$EC$2&ROW($EC113)),$EB113,$EB$2&ROW($EB113)),$EA113,$EA$2&ROW($EA113)),$DZ113,$DZ$2&ROW($DZ113)),$DY113,$DY$2&ROW($DY113)),$DX113,$DX$2&ROW($DX113)),$DW113,$DW$2&ROW($DW113)),$DV113,$DV$2&ROW($DV113)),$DU113,$DU$2&ROW($DU113)),$DT113,$DT$2&ROW($DT113)),$DS113,$DS$2&ROW($DS113)))","v":0},{"$f":"IF(P113=\"\",0,\"X=\"&SUBSTITUTE(SUBSTITUTE(SUBSTITUTE(SUBSTITUTE(SUBSTITUTE(SUBSTITUTE(SUBSTITUTE(SUBSTITUTE(SUBSTITUTE(SUBSTITUTE(SUBSTITUTE(SUBSTITUTE(P113,$ED113,$ED$2&ROW($ED113)),$EC113,$EC$2&ROW($EC113)),$EB113,$EB$2&ROW($EB113)),$EA113,$EA$2&ROW($EA113)),$DZ113,$DZ$2&ROW($DZ113)),$DY113,$DY$2&ROW($DY113)),$DX113,$DX$2&ROW($DX113)),$DW113,$DW$2&ROW($DW113)),$DV113,$DV$2&ROW($DV113)),$DU113,$DU$2&ROW($DU113)),$DT113,$DT$2&ROW($DT113)),$DS113,$DS$2&ROW($DS113)))","v":0},{"$f":"IF(Q113=\"\",0,\"X=\"&SUBSTITUTE(SUBSTITUTE(SUBSTITUTE(SUBSTITUTE(SUBSTITUTE(SUBSTITUTE(SUBSTITUTE(SUBSTITUTE(SUBSTITUTE(SUBSTITUTE(SUBSTITUTE(SUBSTITUTE(Q113,$ED113,$ED$2&ROW($ED113)),$EC113,$EC$2&ROW($EC113)),$EB113,$EB$2&ROW($EB113)),$EA113,$EA$2&ROW($EA113)),$DZ113,$DZ$2&ROW($DZ113)),$DY113,$DY$2&ROW($DY113)),$DX113,$DX$2&ROW($DX113)),$DW113,$DW$2&ROW($DW113)),$DV113,$DV$2&ROW($DV113)),$DU113,$DU$2&ROW($DU113)),$DT113,$DT$2&ROW($DT113)),$DS113,$DS$2&ROW($DS113)))","v":0},{"$f":"IF(R113=\"\",0,\"X=\"&SUBSTITUTE(SUBSTITUTE(SUBSTITUTE(SUBSTITUTE(SUBSTITUTE(SUBSTITUTE(SUBSTITUTE(SUBSTITUTE(SUBSTITUTE(SUBSTITUTE(SUBSTITUTE(SUBSTITUTE(R113,$ED113,$ED$2&ROW($ED113)),$EC113,$EC$2&ROW($EC113)),$EB113,$EB$2&ROW($EB113)),$EA113,$EA$2&ROW($EA113)),$DZ113,$DZ$2&ROW($DZ113)),$DY113,$DY$2&ROW($DY113)),$DX113,$DX$2&ROW($DX113)),$DW113,$DW$2&ROW($DW113)),$DV113,$DV$2&ROW($DV113)),$DU113,$DU$2&ROW($DU113)),$DT113,$DT$2&ROW($DT113)),$DS113,$DS$2&ROW($DS113)))","v":0},{"$f":"IF(S113=\"\",0,\"X=\"&SUBSTITUTE(SUBSTITUTE(SUBSTITUTE(SUBSTITUTE(SUBSTITUTE(SUBSTITUTE(SUBSTITUTE(SUBSTITUTE(SUBSTITUTE(SUBSTITUTE(SUBSTITUTE(SUBSTITUTE(S113,$ED113,$ED$2&ROW($ED113)),$EC113,$EC$2&ROW($EC113)),$EB113,$EB$2&ROW($EB113)),$EA113,$EA$2&ROW($EA113)),$DZ113,$DZ$2&ROW($DZ113)),$DY113,$DY$2&ROW($DY113)),$DX113,$DX$2&ROW($DX113)),$DW113,$DW$2&ROW($DW113)),$DV113,$DV$2&ROW($DV113)),$DU113,$DU$2&ROW($DU113)),$DT113,$DT$2&ROW($DT113)),$DS113,$DS$2&ROW($DS113)))","v":0},{"$f":"IF(T113=\"\",0,\"X=\"&SUBSTITUTE(SUBSTITUTE(SUBSTITUTE(SUBSTITUTE(SUBSTITUTE(SUBSTITUTE(SUBSTITUTE(SUBSTITUTE(SUBSTITUTE(SUBSTITUTE(SUBSTITUTE(SUBSTITUTE(T113,$ED113,$ED$2&ROW($ED113)),$EC113,$EC$2&ROW($EC113)),$EB113,$EB$2&ROW($EB113)),$EA113,$EA$2&ROW($EA113)),$DZ113,$DZ$2&ROW($DZ113)),$DY113,$DY$2&ROW($DY113)),$DX113,$DX$2&ROW($DX113)),$DW113,$DW$2&ROW($DW113)),$DV113,$DV$2&ROW($DV113)),$DU113,$DU$2&ROW($DU113)),$DT113,$DT$2&ROW($DT113)),$DS113,$DS$2&ROW($DS113)))","v":0},{"$f":"IF(U113=\"\",0,\"X=\"&SUBSTITUTE(SUBSTITUTE(SUBSTITUTE(SUBSTITUTE(SUBSTITUTE(SUBSTITUTE(SUBSTITUTE(SUBSTITUTE(SUBSTITUTE(SUBSTITUTE(SUBSTITUTE(SUBSTITUTE(U113,$ED113,$ED$2&ROW($ED113)),$EC113,$EC$2&ROW($EC113)),$EB113,$EB$2&ROW($EB113)),$EA113,$EA$2&ROW($EA113)),$DZ113,$DZ$2&ROW($DZ113)),$DY113,$DY$2&ROW($DY113)),$DX113,$DX$2&ROW($DX113)),$DW113,$DW$2&ROW($DW113)),$DV113,$DV$2&ROW($DV113)),$DU113,$DU$2&ROW($DU113)),$DT113,$DT$2&ROW($DT113)),$DS113,$DS$2&ROW($DS113)))","v":0},{"$f":"IF(V113=\"\",0,\"X=\"&SUBSTITUTE(SUBSTITUTE(SUBSTITUTE(SUBSTITUTE(SUBSTITUTE(SUBSTITUTE(SUBSTITUTE(SUBSTITUTE(SUBSTITUTE(SUBSTITUTE(SUBSTITUTE(SUBSTITUTE(V113,$ED113,$ED$2&ROW($ED113)),$EC113,$EC$2&ROW($EC113)),$EB113,$EB$2&ROW($EB113)),$EA113,$EA$2&ROW($EA113)),$DZ113,$DZ$2&ROW($DZ113)),$DY113,$DY$2&ROW($DY113)),$DX113,$DX$2&ROW($DX113)),$DW113,$DW$2&ROW($DW113)),$DV113,$DV$2&ROW($DV113)),$DU113,$DU$2&ROW($DU113)),$DT113,$DT$2&ROW($DT113)),$DS113,$DS$2&ROW($DS113)))","v":0},{"$f":"IF(W113=\"\",0,\"X=\"&SUBSTITUTE(SUBSTITUTE(SUBSTITUTE(SUBSTITUTE(SUBSTITUTE(SUBSTITUTE(SUBSTITUTE(SUBSTITUTE(SUBSTITUTE(SUBSTITUTE(SUBSTITUTE(SUBSTITUTE(W113,$ED113,$ED$2&ROW($ED113)),$EC113,$EC$2&ROW($EC113)),$EB113,$EB$2&ROW($EB113)),$EA113,$EA$2&ROW($EA113)),$DZ113,$DZ$2&ROW($DZ113)),$DY113,$DY$2&ROW($DY113)),$DX113,$DX$2&ROW($DX113)),$DW113,$DW$2&ROW($DW113)),$DV113,$DV$2&ROW($DV113)),$DU113,$DU$2&ROW($DU113)),$DT113,$DT$2&ROW($DT113)),$DS113,$DS$2&ROW($DS113)))","v":"X=if(AW113<>1,0,AS113 * (AU113 * 1565 *0.068) / 1000)*10"},{"$f":"IF(X113=\"\",0,\"X=\"&SUBSTITUTE(SUBSTITUTE(SUBSTITUTE(SUBSTITUTE(SUBSTITUTE(SUBSTITUTE(SUBSTITUTE(SUBSTITUTE(SUBSTITUTE(SUBSTITUTE(SUBSTITUTE(SUBSTITUTE(X113,$ED113,$ED$2&ROW($ED113)),$EC113,$EC$2&ROW($EC113)),$EB113,$EB$2&ROW($EB113)),$EA113,$EA$2&ROW($EA113)),$DZ113,$DZ$2&ROW($DZ113)),$DY113,$DY$2&ROW($DY113)),$DX113,$DX$2&ROW($DX113)),$DW113,$DW$2&ROW($DW113)),$DV113,$DV$2&ROW($DV113)),$DU113,$DU$2&ROW($DU113)),$DT113,$DT$2&ROW($DT113)),$DS113,$DS$2&ROW($DS113)))","v":"X=if(AW113<>2,0,AS113 * (AU113 * 1565 *0.068) / 1000)"},{"$f":"IF(Y113=\"\",0,\"X=\"&SUBSTITUTE(SUBSTITUTE(SUBSTITUTE(SUBSTITUTE(SUBSTITUTE(SUBSTITUTE(SUBSTITUTE(SUBSTITUTE(SUBSTITUTE(SUBSTITUTE(SUBSTITUTE(SUBSTITUTE(Y113,$ED113,$ED$2&ROW($ED113)),$EC113,$EC$2&ROW($EC113)),$EB113,$EB$2&ROW($EB113)),$EA113,$EA$2&ROW($EA113)),$DZ113,$DZ$2&ROW($DZ113)),$DY113,$DY$2&ROW($DY113)),$DX113,$DX$2&ROW($DX113)),$DW113,$DW$2&ROW($DW113)),$DV113,$DV$2&ROW($DV113)),$DU113,$DU$2&ROW($DU113)),$DT113,$DT$2&ROW($DT113)),$DS113,$DS$2&ROW($DS113)))","v":0},{"$f":"IF(Z113=\"\",0,\"X=\"&SUBSTITUTE(SUBSTITUTE(SUBSTITUTE(SUBSTITUTE(SUBSTITUTE(SUBSTITUTE(SUBSTITUTE(SUBSTITUTE(SUBSTITUTE(SUBSTITUTE(SUBSTITUTE(SUBSTITUTE(Z113,$ED113,$ED$2&ROW($ED113)),$EC113,$EC$2&ROW($EC113)),$EB113,$EB$2&ROW($EB113)),$EA113,$EA$2&ROW($EA113)),$DZ113,$DZ$2&ROW($DZ113)),$DY113,$DY$2&ROW($DY113)),$DX113,$DX$2&ROW($DX113)),$DW113,$DW$2&ROW($DW113)),$DV113,$DV$2&ROW($DV113)),$DU113,$DU$2&ROW($DU113)),$DT113,$DT$2&ROW($DT113)),$DS113,$DS$2&ROW($DS113)))","v":0},{"$f":"IF(AA113=\"\",0,\"X=\"&SUBSTITUTE(SUBSTITUTE(SUBSTITUTE(SUBSTITUTE(SUBSTITUTE(SUBSTITUTE(SUBSTITUTE(SUBSTITUTE(SUBSTITUTE(SUBSTITUTE(SUBSTITUTE(SUBSTITUTE(AA113,$ED113,$ED$2&ROW($ED113)),$EC113,$EC$2&ROW($EC113)),$EB113,$EB$2&ROW($EB113)),$EA113,$EA$2&ROW($EA113)),$DZ113,$DZ$2&ROW($DZ113)),$DY113,$DY$2&ROW($DY113)),$DX113,$DX$2&ROW($DX113)),$DW113,$DW$2&ROW($DW113)),$DV113,$DV$2&ROW($DV113)),$DU113,$DU$2&ROW($DU113)),$DT113,$DT$2&ROW($DT113)),$DS113,$DS$2&ROW($DS113)))","v":0},{"$f":"IF(AB113=\"\",0,\"X=\"&SUBSTITUTE(SUBSTITUTE(SUBSTITUTE(SUBSTITUTE(SUBSTITUTE(SUBSTITUTE(SUBSTITUTE(SUBSTITUTE(SUBSTITUTE(SUBSTITUTE(SUBSTITUTE(SUBSTITUTE(AB113,$ED113,$ED$2&ROW($ED113)),$EC113,$EC$2&ROW($EC113)),$EB113,$EB$2&ROW($EB113)),$EA113,$EA$2&ROW($EA113)),$DZ113,$DZ$2&ROW($DZ113)),$DY113,$DY$2&ROW($DY113)),$DX113,$DX$2&ROW($DX113)),$DW113,$DW$2&ROW($DW113)),$DV113,$DV$2&ROW($DV113)),$DU113,$DU$2&ROW($DU113)),$DT113,$DT$2&ROW($DT113)),$DS113,$DS$2&ROW($DS113)))","v":0},null,null,"{Factor:WinterCF}","{Factor:SummerCF}",{"$f":"IFERROR(INDEX($EG113:$IV113,MATCH(0,COUNTIF($DR113:DT113,$EG113:$IV113),0)),\"\")","v":"{Measure:Quantity}"},{"$f":"IFERROR(INDEX($EG113:$IV113,MATCH(0,COUNTIF($DR113:DU113,$EG113:$IV113),0)),\"\")","v":"{Capacity (MBTUH)}"},{"$f":"IFERROR(INDEX($EG113:$IV113,MATCH(0,COUNTIF($DR113:DV113,$EG113:$IV113),0)),\"\")","v":"{Existing Fuel}"},{"$f":"IFERROR(INDEX($EG113:$IV113,MATCH(0,COUNTIF($DR113:DW113,$EG113:$IV113),0)),\"\")","v":""},{"$f":"IFERROR(INDEX($EG113:$IV113,MATCH(0,COUNTIF($DR113:DX113,$EG113:$IV113),0)),\"\")","v":""},{"$f":"IFERROR(INDEX($EG113:$IV113,MATCH(0,COUNTIF($DR113:DY113,$EG113:$IV113),0)),\"\")","v":""},{"$f":"IFERROR(INDEX($EG113:$IV113,MATCH(0,COUNTIF($DR113:DZ113,$EG113:$IV113),0)),\"\")","v":""},{"$f":"IFERROR(INDEX($EG113:$IV113,MATCH(0,COUNTIF($DR113:EA113,$EG113:$IV113),0)),\"\")","v":""},{"$f":"IFERROR(INDEX($EG113:$IV113,MATCH(0,COUNTIF($DR113:EB113,$EG113:$IV113),0)),\"\")","v":""},{"$f":"IFERROR(INDEX($EG113:$IV113,MATCH(0,COUNTIF($DR113:EC113,$EG113:$IV113),0)),\"\")","v":""},null,null,{"$f":"IFERROR(MID($G113,FIND(CHAR(160),SUBSTITUTE($G113,\"{\",CHAR(160),EG$1)),FIND(CHAR(160),SUBSTITUTE($G113,\"}\",CHAR(160),EG$1))-FIND(CHAR(160),SUBSTITUTE($G113,\"{\",CHAR(160),EG$1))+1),\"\")","v":""},{"$f":"IFERROR(MID($G113,FIND(CHAR(160),SUBSTITUTE($G113,\"{\",CHAR(160),EH$1)),FIND(CHAR(160),SUBSTITUTE($G113,\"}\",CHAR(160),EH$1))-FIND(CHAR(160),SUBSTITUTE($G113,\"{\",CHAR(160),EH$1))+1),\"\")","v":""},{"$f":"IFERROR(MID($G113,FIND(CHAR(160),SUBSTITUTE($G113,\"{\",CHAR(160),EI$1)),FIND(CHAR(160),SUBSTITUTE($G113,\"}\",CHAR(160),EI$1))-FIND(CHAR(160),SUBSTITUTE($G113,\"{\",CHAR(160),EI$1))+1),\"\")","v":""},{"$f":"IFERROR(MID($G113,FIND(CHAR(160),SUBSTITUTE($G113,\"{\",CHAR(160),EJ$1)),FIND(CHAR(160),SUBSTITUTE($G113,\"}\",CHAR(160),EJ$1))-FIND(CHAR(160),SUBSTITUTE($G113,\"{\",CHAR(160),EJ$1))+1),\"\")","v":""},{"$f":"IFERROR(MID($G113,FIND(CHAR(160),SUBSTITUTE($G113,\"{\",CHAR(160),EK$1)),FIND(CHAR(160),SUBSTITUTE($G113,\"}\",CHAR(160),EK$1))-FIND(CHAR(160),SUBSTITUTE($G113,\"{\",CHAR(160),EK$1))+1),\"\")","v":""},{"$f":"IFERROR(MID($G113,FIND(CHAR(160),SUBSTITUTE($G113,\"{\",CHAR(160),EL$1)),FIND(CHAR(160),SUBSTITUTE($G113,\"}\",CHAR(160),EL$1))-FIND(CHAR(160),SUBSTITUTE($G113,\"{\",CHAR(160),EL$1))+1),\"\")","v":""},{"$f":"IFERROR(MID($G113,FIND(CHAR(160),SUBSTITUTE($G113,\"{\",CHAR(160),EM$1)),FIND(CHAR(160),SUBSTITUTE($G113,\"}\",CHAR(160),EM$1))-FIND(CHAR(160),SUBSTITUTE($G113,\"{\",CHAR(160),EM$1))+1),\"\")","v":""},{"$f":"IFERROR(MID($G113,FIND(CHAR(160),SUBSTITUTE($G113,\"{\",CHAR(160),EN$1)),FIND(CHAR(160),SUBSTITUTE($G113,\"}\",CHAR(160),EN$1))-FIND(CHAR(160),SUBSTITUTE($G113,\"{\",CHAR(160),EN$1))+1),\"\")","v":""},{"$f":"IFERROR(MID($G113,FIND(CHAR(160),SUBSTITUTE($G113,\"{\",CHAR(160),EO$1)),FIND(CHAR(160),SUBSTITUTE($G113,\"}\",CHAR(160),EO$1))-FIND(CHAR(160),SUBSTITUTE($G113,\"{\",CHAR(160),EO$1))+1),\"\")","v":""},{"$f":"IFERROR(MID($G113,FIND(CHAR(160),SUBSTITUTE($G113,\"{\",CHAR(160),EP$1)),FIND(CHAR(160),SUBSTITUTE($G113,\"}\",CHAR(160),EP$1))-FIND(CHAR(160),SUBSTITUTE($G113,\"{\",CHAR(160),EP$1))+1),\"\")","v":""},{"$f":"IFERROR(MID($J113,FIND(CHAR(160),SUBSTITUTE($J113,\"{\",CHAR(160),EQ$1)),FIND(CHAR(160),SUBSTITUTE($J113,\"}\",CHAR(160),EQ$1))-FIND(CHAR(160),SUBSTITUTE($J113,\"{\",CHAR(160),EQ$1))+1),\"\")","v":"{Measure:Quantity}"},{"$f":"IFERROR(MID($J113,FIND(CHAR(160),SUBSTITUTE($J113,\"{\",CHAR(160),ER$1)),FIND(CHAR(160),SUBSTITUTE($J113,\"}\",CHAR(160),ER$1))-FIND(CHAR(160),SUBSTITUTE($J113,\"{\",CHAR(160),ER$1))+1),\"\")","v":""},{"$f":"IFERROR(MID($J113,FIND(CHAR(160),SUBSTITUTE($J113,\"{\",CHAR(160),ES$1)),FIND(CHAR(160),SUBSTITUTE($J113,\"}\",CHAR(160),ES$1))-FIND(CHAR(160),SUBSTITUTE($J113,\"{\",CHAR(160),ES$1))+1),\"\")","v":""},{"$f":"IFERROR(MID($J113,FIND(CHAR(160),SUBSTITUTE($J113,\"{\",CHAR(160),ET$1)),FIND(CHAR(160),SUBSTITUTE($J113,\"}\",CHAR(160),ET$1))-FIND(CHAR(160),SUBSTITUTE($J113,\"{\",CHAR(160),ET$1))+1),\"\")","v":""},{"$f":"IFERROR(MID($J113,FIND(CHAR(160),SUBSTITUTE($J113,\"{\",CHAR(160),EU$1)),FIND(CHAR(160),SUBSTITUTE($J113,\"}\",CHAR(160),EU$1))-FIND(CHAR(160),SUBSTITUTE($J113,\"{\",CHAR(160),EU$1))+1),\"\")","v":""},{"$f":"IFERROR(MID($J113,FIND(CHAR(160),SUBSTITUTE($J113,\"{\",CHAR(160),EV$1)),FIND(CHAR(160),SUBSTITUTE($J113,\"}\",CHAR(160),EV$1))-FIND(CHAR(160),SUBSTITUTE($J113,\"{\",CHAR(160),EV$1))+1),\"\")","v":""},{"$f":"IFERROR(MID($J113,FIND(CHAR(160),SUBSTITUTE($J113,\"{\",CHAR(160),EW$1)),FIND(CHAR(160),SUBSTITUTE($J113,\"}\",CHAR(160),EW$1))-FIND(CHAR(160),SUBSTITUTE($J113,\"{\",CHAR(160),EW$1))+1),\"\")","v":""},{"$f":"IFERROR(MID($J113,FIND(CHAR(160),SUBSTITUTE($J113,\"{\",CHAR(160),EX$1)),FIND(CHAR(160),SUBSTITUTE($J113,\"}\",CHAR(160),EX$1))-FIND(CHAR(160),SUBSTITUTE($J113,\"{\",CHAR(160),EX$1))+1),\"\")","v":""},{"$f":"IFERROR(MID($J113,FIND(CHAR(160),SUBSTITUTE($J113,\"{\",CHAR(160),EY$1)),FIND(CHAR(160),SUBSTITUTE($J113,\"}\",CHAR(160),EY$1))-FIND(CHAR(160),SUBSTITUTE($J113,\"{\",CHAR(160),EY$1))+1),\"\")","v":""},{"$f":"IFERROR(MID($J113,FIND(CHAR(160),SUBSTITUTE($J113,\"{\",CHAR(160),EZ$1)),FIND(CHAR(160),SUBSTITUTE($J113,\"}\",CHAR(160),EZ$1))-FIND(CHAR(160),SUBSTITUTE($J113,\"{\",CHAR(160),EZ$1))+1),\"\")","v":""},{"$f":"IFERROR(MID($J113,FIND(CHAR(160),SUBSTITUTE($J113,\"{\",CHAR(160),FA$1)),FIND(CHAR(160),SUBSTITUTE($J113,\"}\",CHAR(160),FA$1))-FIND(CHAR(160),SUBSTITUTE($J113,\"{\",CHAR(160),FA$1))+1),\"\")","v":"{Measure:Quantity}"},{"$f":"IFERROR(MID($J113,FIND(CHAR(160),SUBSTITUTE($J113,\"{\",CHAR(160),FB$1)),FIND(CHAR(160),SUBSTITUTE($J113,\"}\",CHAR(160),FB$1))-FIND(CHAR(160),SUBSTITUTE($J113,\"{\",CHAR(160),FB$1))+1),\"\")","v":""},{"$f":"IFERROR(MID($O113,FIND(CHAR(160),SUBSTITUTE($O113,\"{\",CHAR(160),FC$1)),FIND(CHAR(160),SUBSTITUTE($O113,\"}\",CHAR(160),FC$1))-FIND(CHAR(160),SUBSTITUTE($O113,\"{\",CHAR(160),FC$1))+1),\"\")","v":""},{"$f":"IFERROR(MID($O113,FIND(CHAR(160),SUBSTITUTE($O113,\"{\",CHAR(160),FD$1)),FIND(CHAR(160),SUBSTITUTE($O113,\"}\",CHAR(160),FD$1))-FIND(CHAR(160),SUBSTITUTE($O113,\"{\",CHAR(160),FD$1))+1),\"\")","v":""},{"$f":"IFERROR(MID($O113,FIND(CHAR(160),SUBSTITUTE($O113,\"{\",CHAR(160),FE$1)),FIND(CHAR(160),SUBSTITUTE($O113,\"}\",CHAR(160),FE$1))-FIND(CHAR(160),SUBSTITUTE($O113,\"{\",CHAR(160),FE$1))+1),\"\")","v":""},{"$f":"IFERROR(MID($O113,FIND(CHAR(160),SUBSTITUTE($O113,\"{\",CHAR(160),FF$1)),FIND(CHAR(160),SUBSTITUTE($O113,\"}\",CHAR(160),FF$1))-FIND(CHAR(160),SUBSTITUTE($O113,\"{\",CHAR(160),FF$1))+1),\"\")","v":""},{"$f":"IFERROR(MID($O113,FIND(CHAR(160),SUBSTITUTE($O113,\"{\",CHAR(160),FG$1)),FIND(CHAR(160),SUBSTITUTE($O113,\"}\",CHAR(160),FG$1))-FIND(CHAR(160),SUBSTITUTE($O113,\"{\",CHAR(160),FG$1))+1),\"\")","v":""},{"$f":"IFERROR(MID($O113,FIND(CHAR(160),SUBSTITUTE($O113,\"{\",CHAR(160),FH$1)),FIND(CHAR(160),SUBSTITUTE($O113,\"}\",CHAR(160),FH$1))-FIND(CHAR(160),SUBSTITUTE($O113,\"{\",CHAR(160),FH$1))+1),\"\")","v":""},{"$f":"IFERROR(MID($O113,FIND(CHAR(160),SUBSTITUTE($O113,\"{\",CHAR(160),FI$1)),FIND(CHAR(160),SUBSTITUTE($O113,\"}\",CHAR(160),FI$1))-FIND(CHAR(160),SUBSTITUTE($O113,\"{\",CHAR(160),FI$1))+1),\"\")","v":""},{"$f":"IFERROR(MID($O113,FIND(CHAR(160),SUBSTITUTE($O113,\"{\",CHAR(160),FJ$1)),FIND(CHAR(160),SUBSTITUTE($O113,\"}\",CHAR(160),FJ$1))-FIND(CHAR(160),SUBSTITUTE($O113,\"{\",CHAR(160),FJ$1))+1),\"\")","v":""},{"$f":"IFERROR(MID($O113,FIND(CHAR(160),SUBSTITUTE($O113,\"{\",CHAR(160),FK$1)),FIND(CHAR(160),SUBSTITUTE($O113,\"}\",CHAR(160),FK$1))-FIND(CHAR(160),SUBSTITUTE($O113,\"{\",CHAR(160),FK$1))+1),\"\")","v":""},{"$f":"IFERROR(MID($O113,FIND(CHAR(160),SUBSTITUTE($O113,\"{\",CHAR(160),FL$1)),FIND(CHAR(160),SUBSTITUTE($O113,\"}\",CHAR(160),FL$1))-FIND(CHAR(160),SUBSTITUTE($O113,\"{\",CHAR(160),FL$1))+1),\"\")","v":""},{"$f":"IFERROR(MID($R113,FIND(CHAR(160),SUBSTITUTE($R113,\"{\",CHAR(160),FM$1)),FIND(CHAR(160),SUBSTITUTE($R113,\"}\",CHAR(160),FM$1))-FIND(CHAR(160),SUBSTITUTE($R113,\"{\",CHAR(160),FM$1))+1),\"\")","v":""},{"$f":"IFERROR(MID($R113,FIND(CHAR(160),SUBSTITUTE($R113,\"{\",CHAR(160),FN$1)),FIND(CHAR(160),SUBSTITUTE($R113,\"}\",CHAR(160),FN$1))-FIND(CHAR(160),SUBSTITUTE($R113,\"{\",CHAR(160),FN$1))+1),\"\")","v":""},{"$f":"IFERROR(MID($R113,FIND(CHAR(160),SUBSTITUTE($R113,\"{\",CHAR(160),FO$1)),FIND(CHAR(160),SUBSTITUTE($R113,\"}\",CHAR(160),FO$1))-FIND(CHAR(160),SUBSTITUTE($R113,\"{\",CHAR(160),FO$1))+1),\"\")","v":""},{"$f":"IFERROR(MID($R113,FIND(CHAR(160),SUBSTITUTE($R113,\"{\",CHAR(160),FP$1)),FIND(CHAR(160),SUBSTITUTE($R113,\"}\",CHAR(160),FP$1))-FIND(CHAR(160),SUBSTITUTE($R113,\"{\",CHAR(160),FP$1))+1),\"\")","v":""},{"$f":"IFERROR(MID($R113,FIND(CHAR(160),SUBSTITUTE($R113,\"{\",CHAR(160),FQ$1)),FIND(CHAR(160),SUBSTITUTE($R113,\"}\",CHAR(160),FQ$1))-FIND(CHAR(160),SUBSTITUTE($R113,\"{\",CHAR(160),FQ$1))+1),\"\")","v":""},{"$f":"IFERROR(MID($R113,FIND(CHAR(160),SUBSTITUTE($R113,\"{\",CHAR(160),FR$1)),FIND(CHAR(160),SUBSTITUTE($R113,\"}\",CHAR(160),FR$1))-FIND(CHAR(160),SUBSTITUTE($R113,\"{\",CHAR(160),FR$1))+1),\"\")","v":""},{"$f":"IFERROR(MID($R113,FIND(CHAR(160),SUBSTITUTE($R113,\"{\",CHAR(160),FS$1)),FIND(CHAR(160),SUBSTITUTE($R113,\"}\",CHAR(160),FS$1))-FIND(CHAR(160),SUBSTITUTE($R113,\"{\",CHAR(160),FS$1))+1),\"\")","v":""},{"$f":"IFERROR(MID($R113,FIND(CHAR(160),SUBSTITUTE($R113,\"{\",CHAR(160),FT$1)),FIND(CHAR(160),SUBSTITUTE($R113,\"}\",CHAR(160),FT$1))-FIND(CHAR(160),SUBSTITUTE($R113,\"{\",CHAR(160),FT$1))+1),\"\")","v":""},{"$f":"IFERROR(MID($R113,FIND(CHAR(160),SUBSTITUTE($R113,\"{\",CHAR(160),FU$1)),FIND(CHAR(160),SUBSTITUTE($R113,\"}\",CHAR(160),FU$1))-FIND(CHAR(160),SUBSTITUTE($R113,\"{\",CHAR(160),FU$1))+1),\"\")","v":""},{"$f":"IFERROR(MID($R113,FIND(CHAR(160),SUBSTITUTE($R113,\"{\",CHAR(160),FV$1)),FIND(CHAR(160),SUBSTITUTE($R113,\"}\",CHAR(160),FV$1))-FIND(CHAR(160),SUBSTITUTE($R113,\"{\",CHAR(160),FV$1))+1),\"\")","v":""},{"$f":"IFERROR(MID($U113,FIND(CHAR(160),SUBSTITUTE($U113,\"{\",CHAR(160),FW$1)),FIND(CHAR(160),SUBSTITUTE($U113,\"}\",CHAR(160),FW$1))-FIND(CHAR(160),SUBSTITUTE($U113,\"{\",CHAR(160),FW$1))+1),\"\")","v":""},{"$f":"IFERROR(MID($U113,FIND(CHAR(160),SUBSTITUTE($U113,\"{\",CHAR(160),FX$1)),FIND(CHAR(160),SUBSTITUTE($U113,\"}\",CHAR(160),FX$1))-FIND(CHAR(160),SUBSTITUTE($U113,\"{\",CHAR(160),FX$1))+1),\"\")","v":""},{"$f":"IFERROR(MID($U113,FIND(CHAR(160),SUBSTITUTE($U113,\"{\",CHAR(160),FY$1)),FIND(CHAR(160),SUBSTITUTE($U113,\"}\",CHAR(160),FY$1))-FIND(CHAR(160),SUBSTITUTE($U113,\"{\",CHAR(160),FY$1))+1),\"\")","v":""},{"$f":"IFERROR(MID($U113,FIND(CHAR(160),SUBSTITUTE($U113,\"{\",CHAR(160),FZ$1)),FIND(CHAR(160),SUBSTITUTE($U113,\"}\",CHAR(160),FZ$1))-FIND(CHAR(160),SUBSTITUTE($U113,\"{\",CHAR(160),FZ$1))+1),\"\")","v":""},{"$f":"IFERROR(MID($U113,FIND(CHAR(160),SUBSTITUTE($U113,\"{\",CHAR(160),GA$1)),FIND(CHAR(160),SUBSTITUTE($U113,\"}\",CHAR(160),GA$1))-FIND(CHAR(160),SUBSTITUTE($U113,\"{\",CHAR(160),GA$1))+1),\"\")","v":""},{"$f":"IFERROR(MID($U113,FIND(CHAR(160),SUBSTITUTE($U113,\"{\",CHAR(160),GB$1)),FIND(CHAR(160),SUBSTITUTE($U113,\"}\",CHAR(160),GB$1))-FIND(CHAR(160),SUBSTITUTE($U113,\"{\",CHAR(160),GB$1))+1),\"\")","v":""},{"$f":"IFERROR(MID($U113,FIND(CHAR(160),SUBSTITUTE($U113,\"{\",CHAR(160),GC$1)),FIND(CHAR(160),SUBSTITUTE($U113,\"}\",CHAR(160),GC$1))-FIND(CHAR(160),SUBSTITUTE($U113,\"{\",CHAR(160),GC$1))+1),\"\")","v":""},{"$f":"IFERROR(MID($U113,FIND(CHAR(160),SUBSTITUTE($U113,\"{\",CHAR(160),GD$1)),FIND(CHAR(160),SUBSTITUTE($U113,\"}\",CHAR(160),GD$1))-FIND(CHAR(160),SUBSTITUTE($U113,\"{\",CHAR(160),GD$1))+1),\"\")","v":""},{"$f":"IFERROR(MID($U113,FIND(CHAR(160),SUBSTITUTE($U113,\"{\",CHAR(160),GE$1)),FIND(CHAR(160),SUBSTITUTE($U113,\"}\",CHAR(160),GE$1))-FIND(CHAR(160),SUBSTITUTE($U113,\"{\",CHAR(160),GE$1))+1),\"\")","v":""},{"$f":"IFERROR(MID($U113,FIND(CHAR(160),SUBSTITUTE($U113,\"{\",CHAR(160),GF$1)),FIND(CHAR(160),SUBSTITUTE($U113,\"}\",CHAR(160),GF$1))-FIND(CHAR(160),SUBSTITUTE($U113,\"{\",CHAR(160),GF$1))+1),\"\")","v":""},{"$f":"IFERROR(MID($V113,FIND(CHAR(160),SUBSTITUTE($V113,\"{\",CHAR(160),GG$1)),FIND(CHAR(160),SUBSTITUTE($V113,\"}\",CHAR(160),GG$1))-FIND(CHAR(160),SUBSTITUTE($V113,\"{\",CHAR(160),GG$1))+1),\"\")","v":""},{"$f":"IFERROR(MID($V113,FIND(CHAR(160),SUBSTITUTE($V113,\"{\",CHAR(160),GH$1)),FIND(CHAR(160),SUBSTITUTE($V113,\"}\",CHAR(160),GH$1))-FIND(CHAR(160),SUBSTITUTE($V113,\"{\",CHAR(160),GH$1))+1),\"\")","v":""},{"$f":"IFERROR(MID($V113,FIND(CHAR(160),SUBSTITUTE($V113,\"{\",CHAR(160),GI$1)),FIND(CHAR(160),SUBSTITUTE($V113,\"}\",CHAR(160),GI$1))-FIND(CHAR(160),SUBSTITUTE($V113,\"{\",CHAR(160),GI$1))+1),\"\")","v":""},{"$f":"IFERROR(MID($V113,FIND(CHAR(160),SUBSTITUTE($V113,\"{\",CHAR(160),GJ$1)),FIND(CHAR(160),SUBSTITUTE($V113,\"}\",CHAR(160),GJ$1))-FIND(CHAR(160),SUBSTITUTE($V113,\"{\",CHAR(160),GJ$1))+1),\"\")","v":""},{"$f":"IFERROR(MID($V113,FIND(CHAR(160),SUBSTITUTE($V113,\"{\",CHAR(160),GK$1)),FIND(CHAR(160),SUBSTITUTE($V113,\"}\",CHAR(160),GK$1))-FIND(CHAR(160),SUBSTITUTE($V113,\"{\",CHAR(160),GK$1))+1),\"\")","v":""},{"$f":"IFERROR(MID($V113,FIND(CHAR(160),SUBSTITUTE($V113,\"{\",CHAR(160),GL$1)),FIND(CHAR(160),SUBSTITUTE($V113,\"}\",CHAR(160),GL$1))-FIND(CHAR(160),SUBSTITUTE($V113,\"{\",CHAR(160),GL$1))+1),\"\")","v":""},{"$f":"IFERROR(MID($V113,FIND(CHAR(160),SUBSTITUTE($V113,\"{\",CHAR(160),GM$1)),FIND(CHAR(160),SUBSTITUTE($V113,\"}\",CHAR(160),GM$1))-FIND(CHAR(160),SUBSTITUTE($V113,\"{\",CHAR(160),GM$1))+1),\"\")","v":""},{"$f":"IFERROR(MID($V113,FIND(CHAR(160),SUBSTITUTE($V113,\"{\",CHAR(160),GN$1)),FIND(CHAR(160),SUBSTITUTE($V113,\"}\",CHAR(160),GN$1))-FIND(CHAR(160),SUBSTITUTE($V113,\"{\",CHAR(160),GN$1))+1),\"\")","v":""},{"$f":"IFERROR(MID($V113,FIND(CHAR(160),SUBSTITUTE($V113,\"{\",CHAR(160),GO$1)),FIND(CHAR(160),SUBSTITUTE($V113,\"}\",CHAR(160),GO$1))-FIND(CHAR(160),SUBSTITUTE($V113,\"{\",CHAR(160),GO$1))+1),\"\")","v":""},{"$f":"IFERROR(MID($V113,FIND(CHAR(160),SUBSTITUTE($V113,\"{\",CHAR(160),GP$1)),FIND(CHAR(160),SUBSTITUTE($V113,\"}\",CHAR(160),GP$1))-FIND(CHAR(160),SUBSTITUTE($V113,\"{\",CHAR(160),GP$1))+1),\"\")","v":""},{"$f":"IFERROR(MID($W113,FIND(CHAR(160),SUBSTITUTE($W113,\"{\",CHAR(160),GQ$1)),FIND(CHAR(160),SUBSTITUTE($W113,\"}\",CHAR(160),GQ$1))-FIND(CHAR(160),SUBSTITUTE($W113,\"{\",CHAR(160),GQ$1))+1),\"\")","v":"{Capacity (MBTUH)}"},{"$f":"IFERROR(MID($W113,FIND(CHAR(160),SUBSTITUTE($W113,\"{\",CHAR(160),GR$1)),FIND(CHAR(160),SUBSTITUTE($W113,\"}\",CHAR(160),GR$1))-FIND(CHAR(160),SUBSTITUTE($W113,\"{\",CHAR(160),GR$1))+1),\"\")","v":""},{"$f":"IFERROR(MID($W113,FIND(CHAR(160),SUBSTITUTE($W113,\"{\",CHAR(160),GS$1)),FIND(CHAR(160),SUBSTITUTE($W113,\"}\",CHAR(160),GS$1))-FIND(CHAR(160),SUBSTITUTE($W113,\"{\",CHAR(160),GS$1))+1),\"\")","v":""},{"$f":"IFERROR(MID($W113,FIND(CHAR(160),SUBSTITUTE($W113,\"{\",CHAR(160),GT$1)),FIND(CHAR(160),SUBSTITUTE($W113,\"}\",CHAR(160),GT$1))-FIND(CHAR(160),SUBSTITUTE($W113,\"{\",CHAR(160),GT$1))+1),\"\")","v":""},{"$f":"IFERROR(MID($W113,FIND(CHAR(160),SUBSTITUTE($W113,\"{\",CHAR(160),GU$1)),FIND(CHAR(160),SUBSTITUTE($W113,\"}\",CHAR(160),GU$1))-FIND(CHAR(160),SUBSTITUTE($W113,\"{\",CHAR(160),GU$1))+1),\"\")","v":""},{"$f":"IFERROR(MID($W113,FIND(CHAR(160),SUBSTITUTE($W113,\"{\",CHAR(160),GV$1)),FIND(CHAR(160),SUBSTITUTE($W113,\"}\",CHAR(160),GV$1))-FIND(CHAR(160),SUBSTITUTE($W113,\"{\",CHAR(160),GV$1))+1),\"\")","v":""},{"$f":"IFERROR(MID($W113,FIND(CHAR(160),SUBSTITUTE($W113,\"{\",CHAR(160),GW$1)),FIND(CHAR(160),SUBSTITUTE($W113,\"}\",CHAR(160),GW$1))-FIND(CHAR(160),SUBSTITUTE($W113,\"{\",CHAR(160),GW$1))+1),\"\")","v":""},{"$f":"IFERROR(MID($W113,FIND(CHAR(160),SUBSTITUTE($W113,\"{\",CHAR(160),GX$1)),FIND(CHAR(160),SUBSTITUTE($W113,\"}\",CHAR(160),GX$1))-FIND(CHAR(160),SUBSTITUTE($W113,\"{\",CHAR(160),GX$1))+1),\"\")","v":""},{"$f":"IFERROR(MID($W113,FIND(CHAR(160),SUBSTITUTE($W113,\"{\",CHAR(160),GY$1)),FIND(CHAR(160),SUBSTITUTE($W113,\"}\",CHAR(160),GY$1))-FIND(CHAR(160),SUBSTITUTE($W113,\"{\",CHAR(160),GY$1))+1),\"\")","v":"{Existing Fuel}"},{"$f":"IFERROR(MID($W113,FIND(CHAR(160),SUBSTITUTE($W113,\"{\",CHAR(160),GZ$1)),FIND(CHAR(160),SUBSTITUTE($W113,\"}\",CHAR(160),GZ$1))-FIND(CHAR(160),SUBSTITUTE($W113,\"{\",CHAR(160),GZ$1))+1),\"\")","v":"{Measure:Quantity}"},{"$f":"IFERROR(MID($X113,FIND(CHAR(160),SUBSTITUTE($X113,\"{\",CHAR(160),HA$1)),FIND(CHAR(160),SUBSTITUTE($X113,\"}\",CHAR(160),HA$1))-FIND(CHAR(160),SUBSTITUTE($X113,\"{\",CHAR(160),HA$1))+1),\"\")","v":"{Capacity (MBTUH)}"},{"$f":"IFERROR(MID($X113,FIND(CHAR(160),SUBSTITUTE($X113,\"{\",CHAR(160),HB$1)),FIND(CHAR(160),SUBSTITUTE($X113,\"}\",CHAR(160),HB$1))-FIND(CHAR(160),SUBSTITUTE($X113,\"{\",CHAR(160),HB$1))+1),\"\")","v":""},{"$f":"IFERROR(MID($X113,FIND(CHAR(160),SUBSTITUTE($X113,\"{\",CHAR(160),HC$1)),FIND(CHAR(160),SUBSTITUTE($X113,\"}\",CHAR(160),HC$1))-FIND(CHAR(160),SUBSTITUTE($X113,\"{\",CHAR(160),HC$1))+1),\"\")","v":""},{"$f":"IFERROR(MID($X113,FIND(CHAR(160),SUBSTITUTE($X113,\"{\",CHAR(160),HD$1)),FIND(CHAR(160),SUBSTITUTE($X113,\"}\",CHAR(160),HD$1))-FIND(CHAR(160),SUBSTITUTE($X113,\"{\",CHAR(160),HD$1))+1),\"\")","v":""},{"$f":"IFERROR(MID($X113,FIND(CHAR(160),SUBSTITUTE($X113,\"{\",CHAR(160),HE$1)),FIND(CHAR(160),SUBSTITUTE($X113,\"}\",CHAR(160),HE$1))-FIND(CHAR(160),SUBSTITUTE($X113,\"{\",CHAR(160),HE$1))+1),\"\")","v":""},{"$f":"IFERROR(MID($X113,FIND(CHAR(160),SUBSTITUTE($X113,\"{\",CHAR(160),HF$1)),FIND(CHAR(160),SUBSTITUTE($X113,\"}\",CHAR(160),HF$1))-FIND(CHAR(160),SUBSTITUTE($X113,\"{\",CHAR(160),HF$1))+1),\"\")","v":""},{"$f":"IFERROR(MID($X113,FIND(CHAR(160),SUBSTITUTE($X113,\"{\",CHAR(160),HG$1)),FIND(CHAR(160),SUBSTITUTE($X113,\"}\",CHAR(160),HG$1))-FIND(CHAR(160),SUBSTITUTE($X113,\"{\",CHAR(160),HG$1))+1),\"\")","v":""},{"$f":"IFERROR(MID($X113,FIND(CHAR(160),SUBSTITUTE($X113,\"{\",CHAR(160),HH$1)),FIND(CHAR(160),SUBSTITUTE($X113,\"}\",CHAR(160),HH$1))-FIND(CHAR(160),SUBSTITUTE($X113,\"{\",CHAR(160),HH$1))+1),\"\")","v":""},{"$f":"IFERROR(MID($X113,FIND(CHAR(160),SUBSTITUTE($X113,\"{\",CHAR(160),HI$1)),FIND(CHAR(160),SUBSTITUTE($X113,\"}\",CHAR(160),HI$1))-FIND(CHAR(160),SUBSTITUTE($X113,\"{\",CHAR(160),HI$1))+1),\"\")","v":"{Existing Fuel}"},{"$f":"IFERROR(MID($X113,FIND(CHAR(160),SUBSTITUTE($X113,\"{\",CHAR(160),HJ$1)),FIND(CHAR(160),SUBSTITUTE($X113,\"}\",CHAR(160),HJ$1))-FIND(CHAR(160),SUBSTITUTE($X113,\"{\",CHAR(160),HJ$1))+1),\"\")","v":"{Measure:Quantity}"},{"$f":"IFERROR(MID($Y113,FIND(CHAR(160),SUBSTITUTE($Y113,\"{\",CHAR(160),HK$1)),FIND(CHAR(160),SUBSTITUTE($Y113,\"}\",CHAR(160),HK$1))-FIND(CHAR(160),SUBSTITUTE($Y113,\"{\",CHAR(160),HK$1))+1),\"\")","v":""},{"$f":"IFERROR(MID($Y113,FIND(CHAR(160),SUBSTITUTE($Y113,\"{\",CHAR(160),HL$1)),FIND(CHAR(160),SUBSTITUTE($Y113,\"}\",CHAR(160),HL$1))-FIND(CHAR(160),SUBSTITUTE($Y113,\"{\",CHAR(160),HL$1))+1),\"\")","v":""},{"$f":"IFERROR(MID($Y113,FIND(CHAR(160),SUBSTITUTE($Y113,\"{\",CHAR(160),HM$1)),FIND(CHAR(160),SUBSTITUTE($Y113,\"}\",CHAR(160),HM$1))-FIND(CHAR(160),SUBSTITUTE($Y113,\"{\",CHAR(160),HM$1))+1),\"\")","v":""},{"$f":"IFERROR(MID($Y113,FIND(CHAR(160),SUBSTITUTE($Y113,\"{\",CHAR(160),HN$1)),FIND(CHAR(160),SUBSTITUTE($Y113,\"}\",CHAR(160),HN$1))-FIND(CHAR(160),SUBSTITUTE($Y113,\"{\",CHAR(160),HN$1))+1),\"\")","v":""},{"$f":"IFERROR(MID($Y113,FIND(CHAR(160),SUBSTITUTE($Y113,\"{\",CHAR(160),HO$1)),FIND(CHAR(160),SUBSTITUTE($Y113,\"}\",CHAR(160),HO$1))-FIND(CHAR(160),SUBSTITUTE($Y113,\"{\",CHAR(160),HO$1))+1),\"\")","v":""},{"$f":"IFERROR(MID($Y113,FIND(CHAR(160),SUBSTITUTE($Y113,\"{\",CHAR(160),HP$1)),FIND(CHAR(160),SUBSTITUTE($Y113,\"}\",CHAR(160),HP$1))-FIND(CHAR(160),SUBSTITUTE($Y113,\"{\",CHAR(160),HP$1))+1),\"\")","v":""},{"$f":"IFERROR(MID($Y113,FIND(CHAR(160),SUBSTITUTE($Y113,\"{\",CHAR(160),HQ$1)),FIND(CHAR(160),SUBSTITUTE($Y113,\"}\",CHAR(160),HQ$1))-FIND(CHAR(160),SUBSTITUTE($Y113,\"{\",CHAR(160),HQ$1))+1),\"\")","v":""},{"$f":"IFERROR(MID($Y113,FIND(CHAR(160),SUBSTITUTE($Y113,\"{\",CHAR(160),HR$1)),FIND(CHAR(160),SUBSTITUTE($Y113,\"}\",CHAR(160),HR$1))-FIND(CHAR(160),SUBSTITUTE($Y113,\"{\",CHAR(160),HR$1))+1),\"\")","v":""},{"$f":"IFERROR(MID($Y113,FIND(CHAR(160),SUBSTITUTE($Y113,\"{\",CHAR(160),HS$1)),FIND(CHAR(160),SUBSTITUTE($Y113,\"}\",CHAR(160),HS$1))-FIND(CHAR(160),SUBSTITUTE($Y113,\"{\",CHAR(160),HS$1))+1),\"\")","v":""},{"$f":"IFERROR(MID($Y113,FIND(CHAR(160),SUBSTITUTE($Y113,\"{\",CHAR(160),HT$1)),FIND(CHAR(160),SUBSTITUTE($Y113,\"}\",CHAR(160),HT$1))-FIND(CHAR(160),SUBSTITUTE($Y113,\"{\",CHAR(160),HT$1))+1),\"\")","v":""},{"$f":"IFERROR(MID($Z113,FIND(CHAR(160),SUBSTITUTE($Z113,\"{\",CHAR(160),HU$1)),FIND(CHAR(160),SUBSTITUTE($Z113,\"}\",CHAR(160),HU$1))-FIND(CHAR(160),SUBSTITUTE($Z113,\"{\",CHAR(160),HU$1))+1),\"\")","v":""},{"$f":"IFERROR(MID($Z113,FIND(CHAR(160),SUBSTITUTE($Z113,\"{\",CHAR(160),HV$1)),FIND(CHAR(160),SUBSTITUTE($Z113,\"}\",CHAR(160),HV$1))-FIND(CHAR(160),SUBSTITUTE($Z113,\"{\",CHAR(160),HV$1))+1),\"\")","v":""},{"$f":"IFERROR(MID($Z113,FIND(CHAR(160),SUBSTITUTE($Z113,\"{\",CHAR(160),HW$1)),FIND(CHAR(160),SUBSTITUTE($Z113,\"}\",CHAR(160),HW$1))-FIND(CHAR(160),SUBSTITUTE($Z113,\"{\",CHAR(160),HW$1))+1),\"\")","v":""},{"$f":"IFERROR(MID($Z113,FIND(CHAR(160),SUBSTITUTE($Z113,\"{\",CHAR(160),HX$1)),FIND(CHAR(160),SUBSTITUTE($Z113,\"}\",CHAR(160),HX$1))-FIND(CHAR(160),SUBSTITUTE($Z113,\"{\",CHAR(160),HX$1))+1),\"\")","v":""},{"$f":"IFERROR(MID($Z113,FIND(CHAR(160),SUBSTITUTE($Z113,\"{\",CHAR(160),HY$1)),FIND(CHAR(160),SUBSTITUTE($Z113,\"}\",CHAR(160),HY$1))-FIND(CHAR(160),SUBSTITUTE($Z113,\"{\",CHAR(160),HY$1))+1),\"\")","v":""},{"$f":"IFERROR(MID($Z113,FIND(CHAR(160),SUBSTITUTE($Z113,\"{\",CHAR(160),HZ$1)),FIND(CHAR(160),SUBSTITUTE($Z113,\"}\",CHAR(160),HZ$1))-FIND(CHAR(160),SUBSTITUTE($Z113,\"{\",CHAR(160),HZ$1))+1),\"\")","v":""},{"$f":"IFERROR(MID($Z113,FIND(CHAR(160),SUBSTITUTE($Z113,\"{\",CHAR(160),IA$1)),FIND(CHAR(160),SUBSTITUTE($Z113,\"}\",CHAR(160),IA$1))-FIND(CHAR(160),SUBSTITUTE($Z113,\"{\",CHAR(160),IA$1))+1),\"\")","v":""},{"$f":"IFERROR(MID($Z113,FIND(CHAR(160),SUBSTITUTE($Z113,\"{\",CHAR(160),IB$1)),FIND(CHAR(160),SUBSTITUTE($Z113,\"}\",CHAR(160),IB$1))-FIND(CHAR(160),SUBSTITUTE($Z113,\"{\",CHAR(160),IB$1))+1),\"\")","v":""},{"$f":"IFERROR(MID($Z113,FIND(CHAR(160),SUBSTITUTE($Z113,\"{\",CHAR(160),IC$1)),FIND(CHAR(160),SUBSTITUTE($Z113,\"}\",CHAR(160),IC$1))-FIND(CHAR(160),SUBSTITUTE($Z113,\"{\",CHAR(160),IC$1))+1),\"\")","v":""},{"$f":"IFERROR(MID($Z113,FIND(CHAR(160),SUBSTITUTE($Z113,\"{\",CHAR(160),ID$1)),FIND(CHAR(160),SUBSTITUTE($Z113,\"}\",CHAR(160),ID$1))-FIND(CHAR(160),SUBSTITUTE($Z113,\"{\",CHAR(160),ID$1))+1),\"\")","v":""},{"$f":"IFERROR(MID($AA113,FIND(CHAR(160),SUBSTITUTE($AA113,\"{\",CHAR(160),IE$1)),FIND(CHAR(160),SUBSTITUTE($AA113,\"}\",CHAR(160),IE$1))-FIND(CHAR(160),SUBSTITUTE($AA113,\"{\",CHAR(160),IE$1))+1),\"\")","v":""},{"$f":"IFERROR(MID($AA113,FIND(CHAR(160),SUBSTITUTE($AA113,\"{\",CHAR(160),IF$1)),FIND(CHAR(160),SUBSTITUTE($AA113,\"}\",CHAR(160),IF$1))-FIND(CHAR(160),SUBSTITUTE($AA113,\"{\",CHAR(160),IF$1))+1),\"\")","v":""},{"$f":"IFERROR(MID($AA113,FIND(CHAR(160),SUBSTITUTE($AA113,\"{\",CHAR(160),IG$1)),FIND(CHAR(160),SUBSTITUTE($AA113,\"}\",CHAR(160),IG$1))-FIND(CHAR(160),SUBSTITUTE($AA113,\"{\",CHAR(160),IG$1))+1),\"\")","v":""},{"$f":"IFERROR(MID($AA113,FIND(CHAR(160),SUBSTITUTE($AA113,\"{\",CHAR(160),IH$1)),FIND(CHAR(160),SUBSTITUTE($AA113,\"}\",CHAR(160),IH$1))-FIND(CHAR(160),SUBSTITUTE($AA113,\"{\",CHAR(160),IH$1))+1),\"\")","v":""},{"$f":"IFERROR(MID($AA113,FIND(CHAR(160),SUBSTITUTE($AA113,\"{\",CHAR(160),II$1)),FIND(CHAR(160),SUBSTITUTE($AA113,\"}\",CHAR(160),II$1))-FIND(CHAR(160),SUBSTITUTE($AA113,\"{\",CHAR(160),II$1))+1),\"\")","v":""},{"$f":"IFERROR(MID($AA113,FIND(CHAR(160),SUBSTITUTE($AA113,\"{\",CHAR(160),IJ$1)),FIND(CHAR(160),SUBSTITUTE($AA113,\"}\",CHAR(160),IJ$1))-FIND(CHAR(160),SUBSTITUTE($AA113,\"{\",CHAR(160),IJ$1))+1),\"\")","v":""},{"$f":"IFERROR(MID($AA113,FIND(CHAR(160),SUBSTITUTE($AA113,\"{\",CHAR(160),IK$1)),FIND(CHAR(160),SUBSTITUTE($AA113,\"}\",CHAR(160),IK$1))-FIND(CHAR(160),SUBSTITUTE($AA113,\"{\",CHAR(160),IK$1))+1),\"\")","v":""},{"$f":"IFERROR(MID($AA113,FIND(CHAR(160),SUBSTITUTE($AA113,\"{\",CHAR(160),IL$1)),FIND(CHAR(160),SUBSTITUTE($AA113,\"}\",CHAR(160),IL$1))-FIND(CHAR(160),SUBSTITUTE($AA113,\"{\",CHAR(160),IL$1))+1),\"\")","v":""},{"$f":"IFERROR(MID($AA113,FIND(CHAR(160),SUBSTITUTE($AA113,\"{\",CHAR(160),IM$1)),FIND(CHAR(160),SUBSTITUTE($AA113,\"}\",CHAR(160),IM$1))-FIND(CHAR(160),SUBSTITUTE($AA113,\"{\",CHAR(160),IM$1))+1),\"\")","v":""},{"$f":"IFERROR(MID($AA113,FIND(CHAR(160),SUBSTITUTE($AA113,\"{\",CHAR(160),IN$1)),FIND(CHAR(160),SUBSTITUTE($AA113,\"}\",CHAR(160),IN$1))-FIND(CHAR(160),SUBSTITUTE($AA113,\"{\",CHAR(160),IN$1))+1),\"\")","v":""},{"$f":"IFERROR(MID($AB113,FIND(CHAR(160),SUBSTITUTE($AB113,\"{\",CHAR(160),IO$1)),FIND(CHAR(160),SUBSTITUTE($AB113,\"}\",CHAR(160),IO$1))-FIND(CHAR(160),SUBSTITUTE($AB113,\"{\",CHAR(160),IO$1))+1),\"\")","v":""},{"$f":"IFERROR(MID($AB113,FIND(CHAR(160),SUBSTITUTE($AB113,\"{\",CHAR(160),IP$1)),FIND(CHAR(160),SUBSTITUTE($AB113,\"}\",CHAR(160),IP$1))-FIND(CHAR(160),SUBSTITUTE($AB113,\"{\",CHAR(160),IP$1))+1),\"\")","v":""},{"$f":"IFERROR(MID($AB113,FIND(CHAR(160),SUBSTITUTE($AB113,\"{\",CHAR(160),IQ$1)),FIND(CHAR(160),SUBSTITUTE($AB113,\"}\",CHAR(160),IQ$1))-FIND(CHAR(160),SUBSTITUTE($AB113,\"{\",CHAR(160),IQ$1))+1),\"\")","v":""},{"$f":"IFERROR(MID($AB113,FIND(CHAR(160),SUBSTITUTE($AB113,\"{\",CHAR(160),IR$1)),FIND(CHAR(160),SUBSTITUTE($AB113,\"}\",CHAR(160),IR$1))-FIND(CHAR(160),SUBSTITUTE($AB113,\"{\",CHAR(160),IR$1))+1),\"\")","v":""},{"$f":"IFERROR(MID($AB113,FIND(CHAR(160),SUBSTITUTE($AB113,\"{\",CHAR(160),IS$1)),FIND(CHAR(160),SUBSTITUTE($AB113,\"}\",CHAR(160),IS$1))-FIND(CHAR(160),SUBSTITUTE($AB113,\"{\",CHAR(160),IS$1))+1),\"\")","v":""},{"$f":"IFERROR(MID($AB113,FIND(CHAR(160),SUBSTITUTE($AB113,\"{\",CHAR(160),IT$1)),FIND(CHAR(160),SUBSTITUTE($AB113,\"}\",CHAR(160),IT$1))-FIND(CHAR(160),SUBSTITUTE($AB113,\"{\",CHAR(160),IT$1))+1),\"\")","v":""},{"$f":"IFERROR(MID($AB113,FIND(CHAR(160),SUBSTITUTE($AB113,\"{\",CHAR(160),IU$1)),FIND(CHAR(160),SUBSTITUTE($AB113,\"}\",CHAR(160),IU$1))-FIND(CHAR(160),SUBSTITUTE($AB113,\"{\",CHAR(160),IU$1))+1),\"\")","v":""},{"$f":"IFERROR(MID($AB113,FIND(CHAR(160),SUBSTITUTE($AB113,\"{\",CHAR(160),IV$1)),FIND(CHAR(160),SUBSTITUTE($AB113,\"}\",CHAR(160),IV$1))-FIND(CHAR(160),SUBSTITUTE($AB113,\"{\",CHAR(160),IV$1))+1),\"\")","v":""},{"$f":"IFERROR(MID($AB113,FIND(CHAR(160),SUBSTITUTE($AB113,\"{\",CHAR(160),IW$1)),FIND(CHAR(160),SUBSTITUTE($AB113,\"}\",CHAR(160),IW$1))-FIND(CHAR(160),SUBSTITUTE($AB113,\"{\",CHAR(160),IW$1))+1),\"\")","v":""},{"$f":"IFERROR(MID($AB113,FIND(CHAR(160),SUBSTITUTE($AB113,\"{\",CHAR(160),IX$1)),FIND(CHAR(160),SUBSTITUTE($AB113,\"}\",CHAR(160),IX$1))-FIND(CHAR(160),SUBSTITUTE($AB113,\"{\",CHAR(160),IX$1))+1),\"\")","v":""},null,{"$f":"10-COUNTIF(DU113:ED113,\"\")","v":3}]
["C&I HVAC - Propane and Compressed NG","G10 Gas-fired condensing hot water boiler >1000 MBtu/h and <=2500 MBtu/h","G10","2021-07-01","2022-06-30","Calculated","{Measure:Quantity}*({Equipment Capacity MBtu/h}*3.47+1982)",0,"Calculated","{Measure:Quantity}*9375",0,"2021-05-25","2022-06-30","Calculated",null,null,null,null,null,null,null,null,"if({Fuel}<>1,0,{Measure:Quantity} * ({Design Load (Btu/h)}/({Indoor Design Temp (oF)}-{Outdoor Design Temp (oF)})*186648/1000000) * (100/80-100/{Unit Efficiency - AFUE or Thermal Efficiency})*10)","if({Fuel}<>2,0,{Measure:Quantity} * ({Design Load (Btu/h)}/({Indoor Design Temp (oF)}-{Outdoor Design Temp (oF)})*186648/1000000) * (100/80-100/{Unit Efficiency - AFUE or Thermal Efficiency}))",null,null,null,null,"2021-05-25","2022-06-30",24,0,0,1,0,0,0,1,1,0,0.52,1.6E-2,null,{"$f":"DU114","v":"{Measure:Quantity}"},1,{"$f":"DV114","v":"{Equipment Capacity MBtu/h}"},1000,{"$f":"DW114","v":"{Design Load (Btu/h)}"},2,{"$f":"DX114","v":"{Indoor Design Temp (oF)}"},587000,{"$f":"DY114","v":"{Outdoor Design Temp (oF)}"},72,{"$f":"DZ114","v":"{Unit Efficiency - AFUE or Thermal Efficiency}"},-2,{"$f":"EA114","v":"{Fuel}"},95,{"$f":"EB114","v":""},null,{"$f":"EC114","v":""},null,{"$f":"ED114","v":""},null,0,0,0,0,0,0,0,0,{"$f":"IF(AW114<>1,0,AS114 * (AY114/(BA114-BC114)*186648/1000000) * (100/80-100/BE114)*10)","v":0},{"$f":"IF(AW114<>2,0,AS114 * (AY114/(BA114-BC114)*186648/1000000) * (100/80-100/BE114))","v":292.21828591749653},0,0,0,0,null,"Res","RGGI DR",{"$f":"Benefits(BL114,BR114,BS114,BT114,BU114,BV114,BW114,BX114,BY114,BZ114,AE114,AH114,AI114,AJ114,AK114,AL114,AM114,AN114,AO114,AP114,CA114,CB114)","v":0},0,0,0,0,243152.28226085735,0,0,0,{"$f":"SUMPRODUCT(CC114:CK114,--(CC114:CK114>0))","v":243152.28226085735},{"$f":"-SUMPRODUCT(CC114:CK114,--(CC114:CK114<0))","v":0},null,{"$f":"AS114*(AU114*3.47+1982)","v":5452},null,null,{"$f":"CM114+CO114","v":5452},{"$f":"IF(NetOrGross=\"Net\",(1-AO114+AP114),1)","v":1},{"$f":"(SUMPRODUCT(CC114:CJ114,--(CC114:CJ114>0))+CN114)*CS114/((-SUMPRODUCT(CC114:CJ114,--(CC114:CJ114<0))+MAX(CO114,CV114)+CP114+CQ114)*CS114+IF(FRIncentives=\"Yes\",CV114*(1-CS114),0))","v":25.936243441158116},1,{"$f":"AS114*9375","v":9375},null,"RGGI","y",null,{"$f":"IF(F114=\"Manual Entry\",\"Manual\",IF(G114=\"\",0,\"X=\"&SUBSTITUTE(SUBSTITUTE(SUBSTITUTE(SUBSTITUTE(SUBSTITUTE(SUBSTITUTE(SUBSTITUTE(SUBSTITUTE(SUBSTITUTE(SUBSTITUTE(SUBSTITUTE(SUBSTITUTE(G114,$ED114,$ED$2&ROW($ED114)),$EC114,$EC$2&ROW($EC114)),$EB114,$EB$2&ROW($EB114)),$EA114,$EA$2&ROW($EA114)),$DZ114,$DZ$2&ROW($DZ114)),$DY114,$DY$2&ROW($DY114)),$DX114,$DX$2&ROW($DX114)),$DW114,$DW$2&ROW($DW114)),$DV114,$DV$2&ROW($DV114)),$DU114,$DU$2&ROW($DU114)),$DT114,$DT$2&ROW($DT114)),$DS114,$DS$2&ROW($DS114))))","v":"X=AS114*(AU114*3.47+1982)"},{"$f":"IF(I114=\"Manual Entry\",\"Manual\",IF(J114=\"\",0,\"X=\"&SUBSTITUTE(SUBSTITUTE(SUBSTITUTE(SUBSTITUTE(SUBSTITUTE(SUBSTITUTE(SUBSTITUTE(SUBSTITUTE(SUBSTITUTE(SUBSTITUTE(SUBSTITUTE(SUBSTITUTE(J114,$ED114,$ED$2&ROW($ED114)),$EC114,$EC$2&ROW($EC114)),$EB114,$EB$2&ROW($EB114)),$EA114,$EA$2&ROW($EA114)),$DZ114,$DZ$2&ROW($DZ114)),$DY114,$DY$2&ROW($DY114)),$DX114,$DX$2&ROW($DX114)),$DW114,$DW$2&ROW($DW114)),$DV114,$DV$2&ROW($DV114)),$DU114,$DU$2&ROW($DU114)),$DT114,$DT$2&ROW($DT114)),$DS114,$DS$2&ROW($DS114))))","v":"X=AS114*9375"},{"$f":"IF(O114=\"\",0,\"X=\"&SUBSTITUTE(SUBSTITUTE(SUBSTITUTE(SUBSTITUTE(SUBSTITUTE(SUBSTITUTE(SUBSTITUTE(SUBSTITUTE(SUBSTITUTE(SUBSTITUTE(SUBSTITUTE(SUBSTITUTE(O114,$ED114,$ED$2&ROW($ED114)),$EC114,$EC$2&ROW($EC114)),$EB114,$EB$2&ROW($EB114)),$EA114,$EA$2&ROW($EA114)),$DZ114,$DZ$2&ROW($DZ114)),$DY114,$DY$2&ROW($DY114)),$DX114,$DX$2&ROW($DX114)),$DW114,$DW$2&ROW($DW114)),$DV114,$DV$2&ROW($DV114)),$DU114,$DU$2&ROW($DU114)),$DT114,$DT$2&ROW($DT114)),$DS114,$DS$2&ROW($DS114)))","v":0},{"$f":"IF(P114=\"\",0,\"X=\"&SUBSTITUTE(SUBSTITUTE(SUBSTITUTE(SUBSTITUTE(SUBSTITUTE(SUBSTITUTE(SUBSTITUTE(SUBSTITUTE(SUBSTITUTE(SUBSTITUTE(SUBSTITUTE(SUBSTITUTE(P114,$ED114,$ED$2&ROW($ED114)),$EC114,$EC$2&ROW($EC114)),$EB114,$EB$2&ROW($EB114)),$EA114,$EA$2&ROW($EA114)),$DZ114,$DZ$2&ROW($DZ114)),$DY114,$DY$2&ROW($DY114)),$DX114,$DX$2&ROW($DX114)),$DW114,$DW$2&ROW($DW114)),$DV114,$DV$2&ROW($DV114)),$DU114,$DU$2&ROW($DU114)),$DT114,$DT$2&ROW($DT114)),$DS114,$DS$2&ROW($DS114)))","v":0},{"$f":"IF(Q114=\"\",0,\"X=\"&SUBSTITUTE(SUBSTITUTE(SUBSTITUTE(SUBSTITUTE(SUBSTITUTE(SUBSTITUTE(SUBSTITUTE(SUBSTITUTE(SUBSTITUTE(SUBSTITUTE(SUBSTITUTE(SUBSTITUTE(Q114,$ED114,$ED$2&ROW($ED114)),$EC114,$EC$2&ROW($EC114)),$EB114,$EB$2&ROW($EB114)),$EA114,$EA$2&ROW($EA114)),$DZ114,$DZ$2&ROW($DZ114)),$DY114,$DY$2&ROW($DY114)),$DX114,$DX$2&ROW($DX114)),$DW114,$DW$2&ROW($DW114)),$DV114,$DV$2&ROW($DV114)),$DU114,$DU$2&ROW($DU114)),$DT114,$DT$2&ROW($DT114)),$DS114,$DS$2&ROW($DS114)))","v":0},{"$f":"IF(R114=\"\",0,\"X=\"&SUBSTITUTE(SUBSTITUTE(SUBSTITUTE(SUBSTITUTE(SUBSTITUTE(SUBSTITUTE(SUBSTITUTE(SUBSTITUTE(SUBSTITUTE(SUBSTITUTE(SUBSTITUTE(SUBSTITUTE(R114,$ED114,$ED$2&ROW($ED114)),$EC114,$EC$2&ROW($EC114)),$EB114,$EB$2&ROW($EB114)),$EA114,$EA$2&ROW($EA114)),$DZ114,$DZ$2&ROW($DZ114)),$DY114,$DY$2&ROW($DY114)),$DX114,$DX$2&ROW($DX114)),$DW114,$DW$2&ROW($DW114)),$DV114,$DV$2&ROW($DV114)),$DU114,$DU$2&ROW($DU114)),$DT114,$DT$2&ROW($DT114)),$DS114,$DS$2&ROW($DS114)))","v":0},{"$f":"IF(S114=\"\",0,\"X=\"&SUBSTITUTE(SUBSTITUTE(SUBSTITUTE(SUBSTITUTE(SUBSTITUTE(SUBSTITUTE(SUBSTITUTE(SUBSTITUTE(SUBSTITUTE(SUBSTITUTE(SUBSTITUTE(SUBSTITUTE(S114,$ED114,$ED$2&ROW($ED114)),$EC114,$EC$2&ROW($EC114)),$EB114,$EB$2&ROW($EB114)),$EA114,$EA$2&ROW($EA114)),$DZ114,$DZ$2&ROW($DZ114)),$DY114,$DY$2&ROW($DY114)),$DX114,$DX$2&ROW($DX114)),$DW114,$DW$2&ROW($DW114)),$DV114,$DV$2&ROW($DV114)),$DU114,$DU$2&ROW($DU114)),$DT114,$DT$2&ROW($DT114)),$DS114,$DS$2&ROW($DS114)))","v":0},{"$f":"IF(T114=\"\",0,\"X=\"&SUBSTITUTE(SUBSTITUTE(SUBSTITUTE(SUBSTITUTE(SUBSTITUTE(SUBSTITUTE(SUBSTITUTE(SUBSTITUTE(SUBSTITUTE(SUBSTITUTE(SUBSTITUTE(SUBSTITUTE(T114,$ED114,$ED$2&ROW($ED114)),$EC114,$EC$2&ROW($EC114)),$EB114,$EB$2&ROW($EB114)),$EA114,$EA$2&ROW($EA114)),$DZ114,$DZ$2&ROW($DZ114)),$DY114,$DY$2&ROW($DY114)),$DX114,$DX$2&ROW($DX114)),$DW114,$DW$2&ROW($DW114)),$DV114,$DV$2&ROW($DV114)),$DU114,$DU$2&ROW($DU114)),$DT114,$DT$2&ROW($DT114)),$DS114,$DS$2&ROW($DS114)))","v":0},{"$f":"IF(U114=\"\",0,\"X=\"&SUBSTITUTE(SUBSTITUTE(SUBSTITUTE(SUBSTITUTE(SUBSTITUTE(SUBSTITUTE(SUBSTITUTE(SUBSTITUTE(SUBSTITUTE(SUBSTITUTE(SUBSTITUTE(SUBSTITUTE(U114,$ED114,$ED$2&ROW($ED114)),$EC114,$EC$2&ROW($EC114)),$EB114,$EB$2&ROW($EB114)),$EA114,$EA$2&ROW($EA114)),$DZ114,$DZ$2&ROW($DZ114)),$DY114,$DY$2&ROW($DY114)),$DX114,$DX$2&ROW($DX114)),$DW114,$DW$2&ROW($DW114)),$DV114,$DV$2&ROW($DV114)),$DU114,$DU$2&ROW($DU114)),$DT114,$DT$2&ROW($DT114)),$DS114,$DS$2&ROW($DS114)))","v":0},{"$f":"IF(V114=\"\",0,\"X=\"&SUBSTITUTE(SUBSTITUTE(SUBSTITUTE(SUBSTITUTE(SUBSTITUTE(SUBSTITUTE(SUBSTITUTE(SUBSTITUTE(SUBSTITUTE(SUBSTITUTE(SUBSTITUTE(SUBSTITUTE(V114,$ED114,$ED$2&ROW($ED114)),$EC114,$EC$2&ROW($EC114)),$EB114,$EB$2&ROW($EB114)),$EA114,$EA$2&ROW($EA114)),$DZ114,$DZ$2&ROW($DZ114)),$DY114,$DY$2&ROW($DY114)),$DX114,$DX$2&ROW($DX114)),$DW114,$DW$2&ROW($DW114)),$DV114,$DV$2&ROW($DV114)),$DU114,$DU$2&ROW($DU114)),$DT114,$DT$2&ROW($DT114)),$DS114,$DS$2&ROW($DS114)))","v":0},{"$f":"IF(W114=\"\",0,\"X=\"&SUBSTITUTE(SUBSTITUTE(SUBSTITUTE(SUBSTITUTE(SUBSTITUTE(SUBSTITUTE(SUBSTITUTE(SUBSTITUTE(SUBSTITUTE(SUBSTITUTE(SUBSTITUTE(SUBSTITUTE(W114,$ED114,$ED$2&ROW($ED114)),$EC114,$EC$2&ROW($EC114)),$EB114,$EB$2&ROW($EB114)),$EA114,$EA$2&ROW($EA114)),$DZ114,$DZ$2&ROW($DZ114)),$DY114,$DY$2&ROW($DY114)),$DX114,$DX$2&ROW($DX114)),$DW114,$DW$2&ROW($DW114)),$DV114,$DV$2&ROW($DV114)),$DU114,$DU$2&ROW($DU114)),$DT114,$DT$2&ROW($DT114)),$DS114,$DS$2&ROW($DS114)))","v":"X=if(BE114<>1,0,AS114 * (AW114/(AY114-BA114)*186648/1000000) * (100/80-100/BC114)*10)"},{"$f":"IF(X114=\"\",0,\"X=\"&SUBSTITUTE(SUBSTITUTE(SUBSTITUTE(SUBSTITUTE(SUBSTITUTE(SUBSTITUTE(SUBSTITUTE(SUBSTITUTE(SUBSTITUTE(SUBSTITUTE(SUBSTITUTE(SUBSTITUTE(X114,$ED114,$ED$2&ROW($ED114)),$EC114,$EC$2&ROW($EC114)),$EB114,$EB$2&ROW($EB114)),$EA114,$EA$2&ROW($EA114)),$DZ114,$DZ$2&ROW($DZ114)),$DY114,$DY$2&ROW($DY114)),$DX114,$DX$2&ROW($DX114)),$DW114,$DW$2&ROW($DW114)),$DV114,$DV$2&ROW($DV114)),$DU114,$DU$2&ROW($DU114)),$DT114,$DT$2&ROW($DT114)),$DS114,$DS$2&ROW($DS114)))","v":"X=if(BE114<>2,0,AS114 * (AW114/(AY114-BA114)*186648/1000000) * (100/80-100/BC114))"},{"$f":"IF(Y114=\"\",0,\"X=\"&SUBSTITUTE(SUBSTITUTE(SUBSTITUTE(SUBSTITUTE(SUBSTITUTE(SUBSTITUTE(SUBSTITUTE(SUBSTITUTE(SUBSTITUTE(SUBSTITUTE(SUBSTITUTE(SUBSTITUTE(Y114,$ED114,$ED$2&ROW($ED114)),$EC114,$EC$2&ROW($EC114)),$EB114,$EB$2&ROW($EB114)),$EA114,$EA$2&ROW($EA114)),$DZ114,$DZ$2&ROW($DZ114)),$DY114,$DY$2&ROW($DY114)),$DX114,$DX$2&ROW($DX114)),$DW114,$DW$2&ROW($DW114)),$DV114,$DV$2&ROW($DV114)),$DU114,$DU$2&ROW($DU114)),$DT114,$DT$2&ROW($DT114)),$DS114,$DS$2&ROW($DS114)))","v":0},{"$f":"IF(Z114=\"\",0,\"X=\"&SUBSTITUTE(SUBSTITUTE(SUBSTITUTE(SUBSTITUTE(SUBSTITUTE(SUBSTITUTE(SUBSTITUTE(SUBSTITUTE(SUBSTITUTE(SUBSTITUTE(SUBSTITUTE(SUBSTITUTE(Z114,$ED114,$ED$2&ROW($ED114)),$EC114,$EC$2&ROW($EC114)),$EB114,$EB$2&ROW($EB114)),$EA114,$EA$2&ROW($EA114)),$DZ114,$DZ$2&ROW($DZ114)),$DY114,$DY$2&ROW($DY114)),$DX114,$DX$2&ROW($DX114)),$DW114,$DW$2&ROW($DW114)),$DV114,$DV$2&ROW($DV114)),$DU114,$DU$2&ROW($DU114)),$DT114,$DT$2&ROW($DT114)),$DS114,$DS$2&ROW($DS114)))","v":0},{"$f":"IF(AA114=\"\",0,\"X=\"&SUBSTITUTE(SUBSTITUTE(SUBSTITUTE(SUBSTITUTE(SUBSTITUTE(SUBSTITUTE(SUBSTITUTE(SUBSTITUTE(SUBSTITUTE(SUBSTITUTE(SUBSTITUTE(SUBSTITUTE(AA114,$ED114,$ED$2&ROW($ED114)),$EC114,$EC$2&ROW($EC114)),$EB114,$EB$2&ROW($EB114)),$EA114,$EA$2&ROW($EA114)),$DZ114,$DZ$2&ROW($DZ114)),$DY114,$DY$2&ROW($DY114)),$DX114,$DX$2&ROW($DX114)),$DW114,$DW$2&ROW($DW114)),$DV114,$DV$2&ROW($DV114)),$DU114,$DU$2&ROW($DU114)),$DT114,$DT$2&ROW($DT114)),$DS114,$DS$2&ROW($DS114)))","v":0},{"$f":"IF(AB114=\"\",0,\"X=\"&SUBSTITUTE(SUBSTITUTE(SUBSTITUTE(SUBSTITUTE(SUBSTITUTE(SUBSTITUTE(SUBSTITUTE(SUBSTITUTE(SUBSTITUTE(SUBSTITUTE(SUBSTITUTE(SUBSTITUTE(AB114,$ED114,$ED$2&ROW($ED114)),$EC114,$EC$2&ROW($EC114)),$EB114,$EB$2&ROW($EB114)),$EA114,$EA$2&ROW($EA114)),$DZ114,$DZ$2&ROW($DZ114)),$DY114,$DY$2&ROW($DY114)),$DX114,$DX$2&ROW($DX114)),$DW114,$DW$2&ROW($DW114)),$DV114,$DV$2&ROW($DV114)),$DU114,$DU$2&ROW($DU114)),$DT114,$DT$2&ROW($DT114)),$DS114,$DS$2&ROW($DS114)))","v":0},null,null,"{Factor:WinterCF}","{Factor:SummerCF}",{"$f":"IFERROR(INDEX($EG114:$IV114,MATCH(0,COUNTIF($DR114:DT114,$EG114:$IV114),0)),\"\")","v":"{Measure:Quantity}"},{"$f":"IFERROR(INDEX($EG114:$IV114,MATCH(0,COUNTIF($DR114:DU114,$EG114:$IV114),0)),\"\")","v":"{Equipment Capacity MBtu/h}"},{"$f":"IFERROR(INDEX($EG114:$IV114,MATCH(0,COUNTIF($DR114:DV114,$EG114:$IV114),0)),\"\")","v":"{Design Load (Btu/h)}"},{"$f":"IFERROR(INDEX($EG114:$IV114,MATCH(0,COUNTIF($DR114:DW114,$EG114:$IV114),0)),\"\")","v":"{Indoor Design Temp (oF)}"},{"$f":"IFERROR(INDEX($EG114:$IV114,MATCH(0,COUNTIF($DR114:DX114,$EG114:$IV114),0)),\"\")","v":"{Outdoor Design Temp (oF)}"},{"$f":"IFERROR(INDEX($EG114:$IV114,MATCH(0,COUNTIF($DR114:DY114,$EG114:$IV114),0)),\"\")","v":"{Unit Efficiency - AFUE or Thermal Efficiency}"},{"$f":"IFERROR(INDEX($EG114:$IV114,MATCH(0,COUNTIF($DR114:DZ114,$EG114:$IV114),0)),\"\")","v":"{Fuel}"},{"$f":"IFERROR(INDEX($EG114:$IV114,MATCH(0,COUNTIF($DR114:EA114,$EG114:$IV114),0)),\"\")","v":""},{"$f":"IFERROR(INDEX($EG114:$IV114,MATCH(0,COUNTIF($DR114:EB114,$EG114:$IV114),0)),\"\")","v":""},{"$f":"IFERROR(INDEX($EG114:$IV114,MATCH(0,COUNTIF($DR114:EC114,$EG114:$IV114),0)),\"\")","v":""},null,null,{"$f":"IFERROR(MID($G114,FIND(CHAR(160),SUBSTITUTE($G114,\"{\",CHAR(160),EG$1)),FIND(CHAR(160),SUBSTITUTE($G114,\"}\",CHAR(160),EG$1))-FIND(CHAR(160),SUBSTITUTE($G114,\"{\",CHAR(160),EG$1))+1),\"\")","v":"{Measure:Quantity}"},{"$f":"IFERROR(MID($G114,FIND(CHAR(160),SUBSTITUTE($G114,\"{\",CHAR(160),EH$1)),FIND(CHAR(160),SUBSTITUTE($G114,\"}\",CHAR(160),EH$1))-FIND(CHAR(160),SUBSTITUTE($G114,\"{\",CHAR(160),EH$1))+1),\"\")","v":"{Equipment Capacity MBtu/h}"},{"$f":"IFERROR(MID($G114,FIND(CHAR(160),SUBSTITUTE($G114,\"{\",CHAR(160),EI$1)),FIND(CHAR(160),SUBSTITUTE($G114,\"}\",CHAR(160),EI$1))-FIND(CHAR(160),SUBSTITUTE($G114,\"{\",CHAR(160),EI$1))+1),\"\")","v":""},{"$f":"IFERROR(MID($G114,FIND(CHAR(160),SUBSTITUTE($G114,\"{\",CHAR(160),EJ$1)),FIND(CHAR(160),SUBSTITUTE($G114,\"}\",CHAR(160),EJ$1))-FIND(CHAR(160),SUBSTITUTE($G114,\"{\",CHAR(160),EJ$1))+1),\"\")","v":""},{"$f":"IFERROR(MID($G114,FIND(CHAR(160),SUBSTITUTE($G114,\"{\",CHAR(160),EK$1)),FIND(CHAR(160),SUBSTITUTE($G114,\"}\",CHAR(160),EK$1))-FIND(CHAR(160),SUBSTITUTE($G114,\"{\",CHAR(160),EK$1))+1),\"\")","v":""},{"$f":"IFERROR(MID($G114,FIND(CHAR(160),SUBSTITUTE($G114,\"{\",CHAR(160),EL$1)),FIND(CHAR(160),SUBSTITUTE($G114,\"}\",CHAR(160),EL$1))-FIND(CHAR(160),SUBSTITUTE($G114,\"{\",CHAR(160),EL$1))+1),\"\")","v":""},{"$f":"IFERROR(MID($G114,FIND(CHAR(160),SUBSTITUTE($G114,\"{\",CHAR(160),EM$1)),FIND(CHAR(160),SUBSTITUTE($G114,\"}\",CHAR(160),EM$1))-FIND(CHAR(160),SUBSTITUTE($G114,\"{\",CHAR(160),EM$1))+1),\"\")","v":""},{"$f":"IFERROR(MID($G114,FIND(CHAR(160),SUBSTITUTE($G114,\"{\",CHAR(160),EN$1)),FIND(CHAR(160),SUBSTITUTE($G114,\"}\",CHAR(160),EN$1))-FIND(CHAR(160),SUBSTITUTE($G114,\"{\",CHAR(160),EN$1))+1),\"\")","v":""},{"$f":"IFERROR(MID($G114,FIND(CHAR(160),SUBSTITUTE($G114,\"{\",CHAR(160),EO$1)),FIND(CHAR(160),SUBSTITUTE($G114,\"}\",CHAR(160),EO$1))-FIND(CHAR(160),SUBSTITUTE($G114,\"{\",CHAR(160),EO$1))+1),\"\")","v":""},{"$f":"IFERROR(MID($G114,FIND(CHAR(160),SUBSTITUTE($G114,\"{\",CHAR(160),EP$1)),FIND(CHAR(160),SUBSTITUTE($G114,\"}\",CHAR(160),EP$1))-FIND(CHAR(160),SUBSTITUTE($G114,\"{\",CHAR(160),EP$1))+1),\"\")","v":""},{"$f":"IFERROR(MID($J114,FIND(CHAR(160),SUBSTITUTE($J114,\"{\",CHAR(160),EQ$1)),FIND(CHAR(160),SUBSTITUTE($J114,\"}\",CHAR(160),EQ$1))-FIND(CHAR(160),SUBSTITUTE($J114,\"{\",CHAR(160),EQ$1))+1),\"\")","v":"{Measure:Quantity}"},{"$f":"IFERROR(MID($J114,FIND(CHAR(160),SUBSTITUTE($J114,\"{\",CHAR(160),ER$1)),FIND(CHAR(160),SUBSTITUTE($J114,\"}\",CHAR(160),ER$1))-FIND(CHAR(160),SUBSTITUTE($J114,\"{\",CHAR(160),ER$1))+1),\"\")","v":""},{"$f":"IFERROR(MID($J114,FIND(CHAR(160),SUBSTITUTE($J114,\"{\",CHAR(160),ES$1)),FIND(CHAR(160),SUBSTITUTE($J114,\"}\",CHAR(160),ES$1))-FIND(CHAR(160),SUBSTITUTE($J114,\"{\",CHAR(160),ES$1))+1),\"\")","v":""},{"$f":"IFERROR(MID($J114,FIND(CHAR(160),SUBSTITUTE($J114,\"{\",CHAR(160),ET$1)),FIND(CHAR(160),SUBSTITUTE($J114,\"}\",CHAR(160),ET$1))-FIND(CHAR(160),SUBSTITUTE($J114,\"{\",CHAR(160),ET$1))+1),\"\")","v":""},{"$f":"IFERROR(MID($J114,FIND(CHAR(160),SUBSTITUTE($J114,\"{\",CHAR(160),EU$1)),FIND(CHAR(160),SUBSTITUTE($J114,\"}\",CHAR(160),EU$1))-FIND(CHAR(160),SUBSTITUTE($J114,\"{\",CHAR(160),EU$1))+1),\"\")","v":""},{"$f":"IFERROR(MID($J114,FIND(CHAR(160),SUBSTITUTE($J114,\"{\",CHAR(160),EV$1)),FIND(CHAR(160),SUBSTITUTE($J114,\"}\",CHAR(160),EV$1))-FIND(CHAR(160),SUBSTITUTE($J114,\"{\",CHAR(160),EV$1))+1),\"\")","v":""},{"$f":"IFERROR(MID($J114,FIND(CHAR(160),SUBSTITUTE($J114,\"{\",CHAR(160),EW$1)),FIND(CHAR(160),SUBSTITUTE($J114,\"}\",CHAR(160),EW$1))-FIND(CHAR(160),SUBSTITUTE($J114,\"{\",CHAR(160),EW$1))+1),\"\")","v":""},{"$f":"IFERROR(MID($J114,FIND(CHAR(160),SUBSTITUTE($J114,\"{\",CHAR(160),EX$1)),FIND(CHAR(160),SUBSTITUTE($J114,\"}\",CHAR(160),EX$1))-FIND(CHAR(160),SUBSTITUTE($J114,\"{\",CHAR(160),EX$1))+1),\"\")","v":""},{"$f":"IFERROR(MID($J114,FIND(CHAR(160),SUBSTITUTE($J114,\"{\",CHAR(160),EY$1)),FIND(CHAR(160),SUBSTITUTE($J114,\"}\",CHAR(160),EY$1))-FIND(CHAR(160),SUBSTITUTE($J114,\"{\",CHAR(160),EY$1))+1),\"\")","v":""},{"$f":"IFERROR(MID($J114,FIND(CHAR(160),SUBSTITUTE($J114,\"{\",CHAR(160),EZ$1)),FIND(CHAR(160),SUBSTITUTE($J114,\"}\",CHAR(160),EZ$1))-FIND(CHAR(160),SUBSTITUTE($J114,\"{\",CHAR(160),EZ$1))+1),\"\")","v":""},{"$f":"IFERROR(MID($J114,FIND(CHAR(160),SUBSTITUTE($J114,\"{\",CHAR(160),FA$1)),FIND(CHAR(160),SUBSTITUTE($J114,\"}\",CHAR(160),FA$1))-FIND(CHAR(160),SUBSTITUTE($J114,\"{\",CHAR(160),FA$1))+1),\"\")","v":"{Measure:Quantity}"},{"$f":"IFERROR(MID($J114,FIND(CHAR(160),SUBSTITUTE($J114,\"{\",CHAR(160),FB$1)),FIND(CHAR(160),SUBSTITUTE($J114,\"}\",CHAR(160),FB$1))-FIND(CHAR(160),SUBSTITUTE($J114,\"{\",CHAR(160),FB$1))+1),\"\")","v":""},{"$f":"IFERROR(MID($O114,FIND(CHAR(160),SUBSTITUTE($O114,\"{\",CHAR(160),FC$1)),FIND(CHAR(160),SUBSTITUTE($O114,\"}\",CHAR(160),FC$1))-FIND(CHAR(160),SUBSTITUTE($O114,\"{\",CHAR(160),FC$1))+1),\"\")","v":""},{"$f":"IFERROR(MID($O114,FIND(CHAR(160),SUBSTITUTE($O114,\"{\",CHAR(160),FD$1)),FIND(CHAR(160),SUBSTITUTE($O114,\"}\",CHAR(160),FD$1))-FIND(CHAR(160),SUBSTITUTE($O114,\"{\",CHAR(160),FD$1))+1),\"\")","v":""},{"$f":"IFERROR(MID($O114,FIND(CHAR(160),SUBSTITUTE($O114,\"{\",CHAR(160),FE$1)),FIND(CHAR(160),SUBSTITUTE($O114,\"}\",CHAR(160),FE$1))-FIND(CHAR(160),SUBSTITUTE($O114,\"{\",CHAR(160),FE$1))+1),\"\")","v":""},{"$f":"IFERROR(MID($O114,FIND(CHAR(160),SUBSTITUTE($O114,\"{\",CHAR(160),FF$1)),FIND(CHAR(160),SUBSTITUTE($O114,\"}\",CHAR(160),FF$1))-FIND(CHAR(160),SUBSTITUTE($O114,\"{\",CHAR(160),FF$1))+1),\"\")","v":""},{"$f":"IFERROR(MID($O114,FIND(CHAR(160),SUBSTITUTE($O114,\"{\",CHAR(160),FG$1)),FIND(CHAR(160),SUBSTITUTE($O114,\"}\",CHAR(160),FG$1))-FIND(CHAR(160),SUBSTITUTE($O114,\"{\",CHAR(160),FG$1))+1),\"\")","v":""},{"$f":"IFERROR(MID($O114,FIND(CHAR(160),SUBSTITUTE($O114,\"{\",CHAR(160),FH$1)),FIND(CHAR(160),SUBSTITUTE($O114,\"}\",CHAR(160),FH$1))-FIND(CHAR(160),SUBSTITUTE($O114,\"{\",CHAR(160),FH$1))+1),\"\")","v":""},{"$f":"IFERROR(MID($O114,FIND(CHAR(160),SUBSTITUTE($O114,\"{\",CHAR(160),FI$1)),FIND(CHAR(160),SUBSTITUTE($O114,\"}\",CHAR(160),FI$1))-FIND(CHAR(160),SUBSTITUTE($O114,\"{\",CHAR(160),FI$1))+1),\"\")","v":""},{"$f":"IFERROR(MID($O114,FIND(CHAR(160),SUBSTITUTE($O114,\"{\",CHAR(160),FJ$1)),FIND(CHAR(160),SUBSTITUTE($O114,\"}\",CHAR(160),FJ$1))-FIND(CHAR(160),SUBSTITUTE($O114,\"{\",CHAR(160),FJ$1))+1),\"\")","v":""},{"$f":"IFERROR(MID($O114,FIND(CHAR(160),SUBSTITUTE($O114,\"{\",CHAR(160),FK$1)),FIND(CHAR(160),SUBSTITUTE($O114,\"}\",CHAR(160),FK$1))-FIND(CHAR(160),SUBSTITUTE($O114,\"{\",CHAR(160),FK$1))+1),\"\")","v":""},{"$f":"IFERROR(MID($O114,FIND(CHAR(160),SUBSTITUTE($O114,\"{\",CHAR(160),FL$1)),FIND(CHAR(160),SUBSTITUTE($O114,\"}\",CHAR(160),FL$1))-FIND(CHAR(160),SUBSTITUTE($O114,\"{\",CHAR(160),FL$1))+1),\"\")","v":""},{"$f":"IFERROR(MID($R114,FIND(CHAR(160),SUBSTITUTE($R114,\"{\",CHAR(160),FM$1)),FIND(CHAR(160),SUBSTITUTE($R114,\"}\",CHAR(160),FM$1))-FIND(CHAR(160),SUBSTITUTE($R114,\"{\",CHAR(160),FM$1))+1),\"\")","v":""},{"$f":"IFERROR(MID($R114,FIND(CHAR(160),SUBSTITUTE($R114,\"{\",CHAR(160),FN$1)),FIND(CHAR(160),SUBSTITUTE($R114,\"}\",CHAR(160),FN$1))-FIND(CHAR(160),SUBSTITUTE($R114,\"{\",CHAR(160),FN$1))+1),\"\")","v":""},{"$f":"IFERROR(MID($R114,FIND(CHAR(160),SUBSTITUTE($R114,\"{\",CHAR(160),FO$1)),FIND(CHAR(160),SUBSTITUTE($R114,\"}\",CHAR(160),FO$1))-FIND(CHAR(160),SUBSTITUTE($R114,\"{\",CHAR(160),FO$1))+1),\"\")","v":""},{"$f":"IFERROR(MID($R114,FIND(CHAR(160),SUBSTITUTE($R114,\"{\",CHAR(160),FP$1)),FIND(CHAR(160),SUBSTITUTE($R114,\"}\",CHAR(160),FP$1))-FIND(CHAR(160),SUBSTITUTE($R114,\"{\",CHAR(160),FP$1))+1),\"\")","v":""},{"$f":"IFERROR(MID($R114,FIND(CHAR(160),SUBSTITUTE($R114,\"{\",CHAR(160),FQ$1)),FIND(CHAR(160),SUBSTITUTE($R114,\"}\",CHAR(160),FQ$1))-FIND(CHAR(160),SUBSTITUTE($R114,\"{\",CHAR(160),FQ$1))+1),\"\")","v":""},{"$f":"IFERROR(MID($R114,FIND(CHAR(160),SUBSTITUTE($R114,\"{\",CHAR(160),FR$1)),FIND(CHAR(160),SUBSTITUTE($R114,\"}\",CHAR(160),FR$1))-FIND(CHAR(160),SUBSTITUTE($R114,\"{\",CHAR(160),FR$1))+1),\"\")","v":""},{"$f":"IFERROR(MID($R114,FIND(CHAR(160),SUBSTITUTE($R114,\"{\",CHAR(160),FS$1)),FIND(CHAR(160),SUBSTITUTE($R114,\"}\",CHAR(160),FS$1))-FIND(CHAR(160),SUBSTITUTE($R114,\"{\",CHAR(160),FS$1))+1),\"\")","v":""},{"$f":"IFERROR(MID($R114,FIND(CHAR(160),SUBSTITUTE($R114,\"{\",CHAR(160),FT$1)),FIND(CHAR(160),SUBSTITUTE($R114,\"}\",CHAR(160),FT$1))-FIND(CHAR(160),SUBSTITUTE($R114,\"{\",CHAR(160),FT$1))+1),\"\")","v":""},{"$f":"IFERROR(MID($R114,FIND(CHAR(160),SUBSTITUTE($R114,\"{\",CHAR(160),FU$1)),FIND(CHAR(160),SUBSTITUTE($R114,\"}\",CHAR(160),FU$1))-FIND(CHAR(160),SUBSTITUTE($R114,\"{\",CHAR(160),FU$1))+1),\"\")","v":""},{"$f":"IFERROR(MID($R114,FIND(CHAR(160),SUBSTITUTE($R114,\"{\",CHAR(160),FV$1)),FIND(CHAR(160),SUBSTITUTE($R114,\"}\",CHAR(160),FV$1))-FIND(CHAR(160),SUBSTITUTE($R114,\"{\",CHAR(160),FV$1))+1),\"\")","v":""},{"$f":"IFERROR(MID($U114,FIND(CHAR(160),SUBSTITUTE($U114,\"{\",CHAR(160),FW$1)),FIND(CHAR(160),SUBSTITUTE($U114,\"}\",CHAR(160),FW$1))-FIND(CHAR(160),SUBSTITUTE($U114,\"{\",CHAR(160),FW$1))+1),\"\")","v":""},{"$f":"IFERROR(MID($U114,FIND(CHAR(160),SUBSTITUTE($U114,\"{\",CHAR(160),FX$1)),FIND(CHAR(160),SUBSTITUTE($U114,\"}\",CHAR(160),FX$1))-FIND(CHAR(160),SUBSTITUTE($U114,\"{\",CHAR(160),FX$1))+1),\"\")","v":""},{"$f":"IFERROR(MID($U114,FIND(CHAR(160),SUBSTITUTE($U114,\"{\",CHAR(160),FY$1)),FIND(CHAR(160),SUBSTITUTE($U114,\"}\",CHAR(160),FY$1))-FIND(CHAR(160),SUBSTITUTE($U114,\"{\",CHAR(160),FY$1))+1),\"\")","v":""},{"$f":"IFERROR(MID($U114,FIND(CHAR(160),SUBSTITUTE($U114,\"{\",CHAR(160),FZ$1)),FIND(CHAR(160),SUBSTITUTE($U114,\"}\",CHAR(160),FZ$1))-FIND(CHAR(160),SUBSTITUTE($U114,\"{\",CHAR(160),FZ$1))+1),\"\")","v":""},{"$f":"IFERROR(MID($U114,FIND(CHAR(160),SUBSTITUTE($U114,\"{\",CHAR(160),GA$1)),FIND(CHAR(160),SUBSTITUTE($U114,\"}\",CHAR(160),GA$1))-FIND(CHAR(160),SUBSTITUTE($U114,\"{\",CHAR(160),GA$1))+1),\"\")","v":""},{"$f":"IFERROR(MID($U114,FIND(CHAR(160),SUBSTITUTE($U114,\"{\",CHAR(160),GB$1)),FIND(CHAR(160),SUBSTITUTE($U114,\"}\",CHAR(160),GB$1))-FIND(CHAR(160),SUBSTITUTE($U114,\"{\",CHAR(160),GB$1))+1),\"\")","v":""},{"$f":"IFERROR(MID($U114,FIND(CHAR(160),SUBSTITUTE($U114,\"{\",CHAR(160),GC$1)),FIND(CHAR(160),SUBSTITUTE($U114,\"}\",CHAR(160),GC$1))-FIND(CHAR(160),SUBSTITUTE($U114,\"{\",CHAR(160),GC$1))+1),\"\")","v":""},{"$f":"IFERROR(MID($U114,FIND(CHAR(160),SUBSTITUTE($U114,\"{\",CHAR(160),GD$1)),FIND(CHAR(160),SUBSTITUTE($U114,\"}\",CHAR(160),GD$1))-FIND(CHAR(160),SUBSTITUTE($U114,\"{\",CHAR(160),GD$1))+1),\"\")","v":""},{"$f":"IFERROR(MID($U114,FIND(CHAR(160),SUBSTITUTE($U114,\"{\",CHAR(160),GE$1)),FIND(CHAR(160),SUBSTITUTE($U114,\"}\",CHAR(160),GE$1))-FIND(CHAR(160),SUBSTITUTE($U114,\"{\",CHAR(160),GE$1))+1),\"\")","v":""},{"$f":"IFERROR(MID($U114,FIND(CHAR(160),SUBSTITUTE($U114,\"{\",CHAR(160),GF$1)),FIND(CHAR(160),SUBSTITUTE($U114,\"}\",CHAR(160),GF$1))-FIND(CHAR(160),SUBSTITUTE($U114,\"{\",CHAR(160),GF$1))+1),\"\")","v":""},{"$f":"IFERROR(MID($V114,FIND(CHAR(160),SUBSTITUTE($V114,\"{\",CHAR(160),GG$1)),FIND(CHAR(160),SUBSTITUTE($V114,\"}\",CHAR(160),GG$1))-FIND(CHAR(160),SUBSTITUTE($V114,\"{\",CHAR(160),GG$1))+1),\"\")","v":""},{"$f":"IFERROR(MID($V114,FIND(CHAR(160),SUBSTITUTE($V114,\"{\",CHAR(160),GH$1)),FIND(CHAR(160),SUBSTITUTE($V114,\"}\",CHAR(160),GH$1))-FIND(CHAR(160),SUBSTITUTE($V114,\"{\",CHAR(160),GH$1))+1),\"\")","v":""},{"$f":"IFERROR(MID($V114,FIND(CHAR(160),SUBSTITUTE($V114,\"{\",CHAR(160),GI$1)),FIND(CHAR(160),SUBSTITUTE($V114,\"}\",CHAR(160),GI$1))-FIND(CHAR(160),SUBSTITUTE($V114,\"{\",CHAR(160),GI$1))+1),\"\")","v":""},{"$f":"IFERROR(MID($V114,FIND(CHAR(160),SUBSTITUTE($V114,\"{\",CHAR(160),GJ$1)),FIND(CHAR(160),SUBSTITUTE($V114,\"}\",CHAR(160),GJ$1))-FIND(CHAR(160),SUBSTITUTE($V114,\"{\",CHAR(160),GJ$1))+1),\"\")","v":""},{"$f":"IFERROR(MID($V114,FIND(CHAR(160),SUBSTITUTE($V114,\"{\",CHAR(160),GK$1)),FIND(CHAR(160),SUBSTITUTE($V114,\"}\",CHAR(160),GK$1))-FIND(CHAR(160),SUBSTITUTE($V114,\"{\",CHAR(160),GK$1))+1),\"\")","v":""},{"$f":"IFERROR(MID($V114,FIND(CHAR(160),SUBSTITUTE($V114,\"{\",CHAR(160),GL$1)),FIND(CHAR(160),SUBSTITUTE($V114,\"}\",CHAR(160),GL$1))-FIND(CHAR(160),SUBSTITUTE($V114,\"{\",CHAR(160),GL$1))+1),\"\")","v":""},{"$f":"IFERROR(MID($V114,FIND(CHAR(160),SUBSTITUTE($V114,\"{\",CHAR(160),GM$1)),FIND(CHAR(160),SUBSTITUTE($V114,\"}\",CHAR(160),GM$1))-FIND(CHAR(160),SUBSTITUTE($V114,\"{\",CHAR(160),GM$1))+1),\"\")","v":""},{"$f":"IFERROR(MID($V114,FIND(CHAR(160),SUBSTITUTE($V114,\"{\",CHAR(160),GN$1)),FIND(CHAR(160),SUBSTITUTE($V114,\"}\",CHAR(160),GN$1))-FIND(CHAR(160),SUBSTITUTE($V114,\"{\",CHAR(160),GN$1))+1),\"\")","v":""},{"$f":"IFERROR(MID($V114,FIND(CHAR(160),SUBSTITUTE($V114,\"{\",CHAR(160),GO$1)),FIND(CHAR(160),SUBSTITUTE($V114,\"}\",CHAR(160),GO$1))-FIND(CHAR(160),SUBSTITUTE($V114,\"{\",CHAR(160),GO$1))+1),\"\")","v":""},{"$f":"IFERROR(MID($V114,FIND(CHAR(160),SUBSTITUTE($V114,\"{\",CHAR(160),GP$1)),FIND(CHAR(160),SUBSTITUTE($V114,\"}\",CHAR(160),GP$1))-FIND(CHAR(160),SUBSTITUTE($V114,\"{\",CHAR(160),GP$1))+1),\"\")","v":""},{"$f":"IFERROR(MID($W114,FIND(CHAR(160),SUBSTITUTE($W114,\"{\",CHAR(160),GQ$1)),FIND(CHAR(160),SUBSTITUTE($W114,\"}\",CHAR(160),GQ$1))-FIND(CHAR(160),SUBSTITUTE($W114,\"{\",CHAR(160),GQ$1))+1),\"\")","v":"{Design Load (Btu/h)}"},{"$f":"IFERROR(MID($W114,FIND(CHAR(160),SUBSTITUTE($W114,\"{\",CHAR(160),GR$1)),FIND(CHAR(160),SUBSTITUTE($W114,\"}\",CHAR(160),GR$1))-FIND(CHAR(160),SUBSTITUTE($W114,\"{\",CHAR(160),GR$1))+1),\"\")","v":"{Indoor Design Temp (oF)}"},{"$f":"IFERROR(MID($W114,FIND(CHAR(160),SUBSTITUTE($W114,\"{\",CHAR(160),GS$1)),FIND(CHAR(160),SUBSTITUTE($W114,\"}\",CHAR(160),GS$1))-FIND(CHAR(160),SUBSTITUTE($W114,\"{\",CHAR(160),GS$1))+1),\"\")","v":"{Outdoor Design Temp (oF)}"},{"$f":"IFERROR(MID($W114,FIND(CHAR(160),SUBSTITUTE($W114,\"{\",CHAR(160),GT$1)),FIND(CHAR(160),SUBSTITUTE($W114,\"}\",CHAR(160),GT$1))-FIND(CHAR(160),SUBSTITUTE($W114,\"{\",CHAR(160),GT$1))+1),\"\")","v":"{Unit Efficiency - AFUE or Thermal Efficiency}"},{"$f":"IFERROR(MID($W114,FIND(CHAR(160),SUBSTITUTE($W114,\"{\",CHAR(160),GU$1)),FIND(CHAR(160),SUBSTITUTE($W114,\"}\",CHAR(160),GU$1))-FIND(CHAR(160),SUBSTITUTE($W114,\"{\",CHAR(160),GU$1))+1),\"\")","v":""},{"$f":"IFERROR(MID($W114,FIND(CHAR(160),SUBSTITUTE($W114,\"{\",CHAR(160),GV$1)),FIND(CHAR(160),SUBSTITUTE($W114,\"}\",CHAR(160),GV$1))-FIND(CHAR(160),SUBSTITUTE($W114,\"{\",CHAR(160),GV$1))+1),\"\")","v":""},{"$f":"IFERROR(MID($W114,FIND(CHAR(160),SUBSTITUTE($W114,\"{\",CHAR(160),GW$1)),FIND(CHAR(160),SUBSTITUTE($W114,\"}\",CHAR(160),GW$1))-FIND(CHAR(160),SUBSTITUTE($W114,\"{\",CHAR(160),GW$1))+1),\"\")","v":""},{"$f":"IFERROR(MID($W114,FIND(CHAR(160),SUBSTITUTE($W114,\"{\",CHAR(160),GX$1)),FIND(CHAR(160),SUBSTITUTE($W114,\"}\",CHAR(160),GX$1))-FIND(CHAR(160),SUBSTITUTE($W114,\"{\",CHAR(160),GX$1))+1),\"\")","v":""},{"$f":"IFERROR(MID($W114,FIND(CHAR(160),SUBSTITUTE($W114,\"{\",CHAR(160),GY$1)),FIND(CHAR(160),SUBSTITUTE($W114,\"}\",CHAR(160),GY$1))-FIND(CHAR(160),SUBSTITUTE($W114,\"{\",CHAR(160),GY$1))+1),\"\")","v":"{Fuel}"},{"$f":"IFERROR(MID($W114,FIND(CHAR(160),SUBSTITUTE($W114,\"{\",CHAR(160),GZ$1)),FIND(CHAR(160),SUBSTITUTE($W114,\"}\",CHAR(160),GZ$1))-FIND(CHAR(160),SUBSTITUTE($W114,\"{\",CHAR(160),GZ$1))+1),\"\")","v":"{Measure:Quantity}"},{"$f":"IFERROR(MID($X114,FIND(CHAR(160),SUBSTITUTE($X114,\"{\",CHAR(160),HA$1)),FIND(CHAR(160),SUBSTITUTE($X114,\"}\",CHAR(160),HA$1))-FIND(CHAR(160),SUBSTITUTE($X114,\"{\",CHAR(160),HA$1))+1),\"\")","v":"{Design Load (Btu/h)}"},{"$f":"IFERROR(MID($X114,FIND(CHAR(160),SUBSTITUTE($X114,\"{\",CHAR(160),HB$1)),FIND(CHAR(160),SUBSTITUTE($X114,\"}\",CHAR(160),HB$1))-FIND(CHAR(160),SUBSTITUTE($X114,\"{\",CHAR(160),HB$1))+1),\"\")","v":"{Indoor Design Temp (oF)}"},{"$f":"IFERROR(MID($X114,FIND(CHAR(160),SUBSTITUTE($X114,\"{\",CHAR(160),HC$1)),FIND(CHAR(160),SUBSTITUTE($X114,\"}\",CHAR(160),HC$1))-FIND(CHAR(160),SUBSTITUTE($X114,\"{\",CHAR(160),HC$1))+1),\"\")","v":"{Outdoor Design Temp (oF)}"},{"$f":"IFERROR(MID($X114,FIND(CHAR(160),SUBSTITUTE($X114,\"{\",CHAR(160),HD$1)),FIND(CHAR(160),SUBSTITUTE($X114,\"}\",CHAR(160),HD$1))-FIND(CHAR(160),SUBSTITUTE($X114,\"{\",CHAR(160),HD$1))+1),\"\")","v":"{Unit Efficiency - AFUE or Thermal Efficiency}"},{"$f":"IFERROR(MID($X114,FIND(CHAR(160),SUBSTITUTE($X114,\"{\",CHAR(160),HE$1)),FIND(CHAR(160),SUBSTITUTE($X114,\"}\",CHAR(160),HE$1))-FIND(CHAR(160),SUBSTITUTE($X114,\"{\",CHAR(160),HE$1))+1),\"\")","v":""},{"$f":"IFERROR(MID($X114,FIND(CHAR(160),SUBSTITUTE($X114,\"{\",CHAR(160),HF$1)),FIND(CHAR(160),SUBSTITUTE($X114,\"}\",CHAR(160),HF$1))-FIND(CHAR(160),SUBSTITUTE($X114,\"{\",CHAR(160),HF$1))+1),\"\")","v":""},{"$f":"IFERROR(MID($X114,FIND(CHAR(160),SUBSTITUTE($X114,\"{\",CHAR(160),HG$1)),FIND(CHAR(160),SUBSTITUTE($X114,\"}\",CHAR(160),HG$1))-FIND(CHAR(160),SUBSTITUTE($X114,\"{\",CHAR(160),HG$1))+1),\"\")","v":""},{"$f":"IFERROR(MID($X114,FIND(CHAR(160),SUBSTITUTE($X114,\"{\",CHAR(160),HH$1)),FIND(CHAR(160),SUBSTITUTE($X114,\"}\",CHAR(160),HH$1))-FIND(CHAR(160),SUBSTITUTE($X114,\"{\",CHAR(160),HH$1))+1),\"\")","v":""},{"$f":"IFERROR(MID($X114,FIND(CHAR(160),SUBSTITUTE($X114,\"{\",CHAR(160),HI$1)),FIND(CHAR(160),SUBSTITUTE($X114,\"}\",CHAR(160),HI$1))-FIND(CHAR(160),SUBSTITUTE($X114,\"{\",CHAR(160),HI$1))+1),\"\")","v":"{Fuel}"},{"$f":"IFERROR(MID($X114,FIND(CHAR(160),SUBSTITUTE($X114,\"{\",CHAR(160),HJ$1)),FIND(CHAR(160),SUBSTITUTE($X114,\"}\",CHAR(160),HJ$1))-FIND(CHAR(160),SUBSTITUTE($X114,\"{\",CHAR(160),HJ$1))+1),\"\")","v":"{Measure:Quantity}"},{"$f":"IFERROR(MID($Y114,FIND(CHAR(160),SUBSTITUTE($Y114,\"{\",CHAR(160),HK$1)),FIND(CHAR(160),SUBSTITUTE($Y114,\"}\",CHAR(160),HK$1))-FIND(CHAR(160),SUBSTITUTE($Y114,\"{\",CHAR(160),HK$1))+1),\"\")","v":""},{"$f":"IFERROR(MID($Y114,FIND(CHAR(160),SUBSTITUTE($Y114,\"{\",CHAR(160),HL$1)),FIND(CHAR(160),SUBSTITUTE($Y114,\"}\",CHAR(160),HL$1))-FIND(CHAR(160),SUBSTITUTE($Y114,\"{\",CHAR(160),HL$1))+1),\"\")","v":""},{"$f":"IFERROR(MID($Y114,FIND(CHAR(160),SUBSTITUTE($Y114,\"{\",CHAR(160),HM$1)),FIND(CHAR(160),SUBSTITUTE($Y114,\"}\",CHAR(160),HM$1))-FIND(CHAR(160),SUBSTITUTE($Y114,\"{\",CHAR(160),HM$1))+1),\"\")","v":""},{"$f":"IFERROR(MID($Y114,FIND(CHAR(160),SUBSTITUTE($Y114,\"{\",CHAR(160),HN$1)),FIND(CHAR(160),SUBSTITUTE($Y114,\"}\",CHAR(160),HN$1))-FIND(CHAR(160),SUBSTITUTE($Y114,\"{\",CHAR(160),HN$1))+1),\"\")","v":""},{"$f":"IFERROR(MID($Y114,FIND(CHAR(160),SUBSTITUTE($Y114,\"{\",CHAR(160),HO$1)),FIND(CHAR(160),SUBSTITUTE($Y114,\"}\",CHAR(160),HO$1))-FIND(CHAR(160),SUBSTITUTE($Y114,\"{\",CHAR(160),HO$1))+1),\"\")","v":""},{"$f":"IFERROR(MID($Y114,FIND(CHAR(160),SUBSTITUTE($Y114,\"{\",CHAR(160),HP$1)),FIND(CHAR(160),SUBSTITUTE($Y114,\"}\",CHAR(160),HP$1))-FIND(CHAR(160),SUBSTITUTE($Y114,\"{\",CHAR(160),HP$1))+1),\"\")","v":""},{"$f":"IFERROR(MID($Y114,FIND(CHAR(160),SUBSTITUTE($Y114,\"{\",CHAR(160),HQ$1)),FIND(CHAR(160),SUBSTITUTE($Y114,\"}\",CHAR(160),HQ$1))-FIND(CHAR(160),SUBSTITUTE($Y114,\"{\",CHAR(160),HQ$1))+1),\"\")","v":""},{"$f":"IFERROR(MID($Y114,FIND(CHAR(160),SUBSTITUTE($Y114,\"{\",CHAR(160),HR$1)),FIND(CHAR(160),SUBSTITUTE($Y114,\"}\",CHAR(160),HR$1))-FIND(CHAR(160),SUBSTITUTE($Y114,\"{\",CHAR(160),HR$1))+1),\"\")","v":""},{"$f":"IFERROR(MID($Y114,FIND(CHAR(160),SUBSTITUTE($Y114,\"{\",CHAR(160),HS$1)),FIND(CHAR(160),SUBSTITUTE($Y114,\"}\",CHAR(160),HS$1))-FIND(CHAR(160),SUBSTITUTE($Y114,\"{\",CHAR(160),HS$1))+1),\"\")","v":""},{"$f":"IFERROR(MID($Y114,FIND(CHAR(160),SUBSTITUTE($Y114,\"{\",CHAR(160),HT$1)),FIND(CHAR(160),SUBSTITUTE($Y114,\"}\",CHAR(160),HT$1))-FIND(CHAR(160),SUBSTITUTE($Y114,\"{\",CHAR(160),HT$1))+1),\"\")","v":""},{"$f":"IFERROR(MID($Z114,FIND(CHAR(160),SUBSTITUTE($Z114,\"{\",CHAR(160),HU$1)),FIND(CHAR(160),SUBSTITUTE($Z114,\"}\",CHAR(160),HU$1))-FIND(CHAR(160),SUBSTITUTE($Z114,\"{\",CHAR(160),HU$1))+1),\"\")","v":""},{"$f":"IFERROR(MID($Z114,FIND(CHAR(160),SUBSTITUTE($Z114,\"{\",CHAR(160),HV$1)),FIND(CHAR(160),SUBSTITUTE($Z114,\"}\",CHAR(160),HV$1))-FIND(CHAR(160),SUBSTITUTE($Z114,\"{\",CHAR(160),HV$1))+1),\"\")","v":""},{"$f":"IFERROR(MID($Z114,FIND(CHAR(160),SUBSTITUTE($Z114,\"{\",CHAR(160),HW$1)),FIND(CHAR(160),SUBSTITUTE($Z114,\"}\",CHAR(160),HW$1))-FIND(CHAR(160),SUBSTITUTE($Z114,\"{\",CHAR(160),HW$1))+1),\"\")","v":""},{"$f":"IFERROR(MID($Z114,FIND(CHAR(160),SUBSTITUTE($Z114,\"{\",CHAR(160),HX$1)),FIND(CHAR(160),SUBSTITUTE($Z114,\"}\",CHAR(160),HX$1))-FIND(CHAR(160),SUBSTITUTE($Z114,\"{\",CHAR(160),HX$1))+1),\"\")","v":""},{"$f":"IFERROR(MID($Z114,FIND(CHAR(160),SUBSTITUTE($Z114,\"{\",CHAR(160),HY$1)),FIND(CHAR(160),SUBSTITUTE($Z114,\"}\",CHAR(160),HY$1))-FIND(CHAR(160),SUBSTITUTE($Z114,\"{\",CHAR(160),HY$1))+1),\"\")","v":""},{"$f":"IFERROR(MID($Z114,FIND(CHAR(160),SUBSTITUTE($Z114,\"{\",CHAR(160),HZ$1)),FIND(CHAR(160),SUBSTITUTE($Z114,\"}\",CHAR(160),HZ$1))-FIND(CHAR(160),SUBSTITUTE($Z114,\"{\",CHAR(160),HZ$1))+1),\"\")","v":""},{"$f":"IFERROR(MID($Z114,FIND(CHAR(160),SUBSTITUTE($Z114,\"{\",CHAR(160),IA$1)),FIND(CHAR(160),SUBSTITUTE($Z114,\"}\",CHAR(160),IA$1))-FIND(CHAR(160),SUBSTITUTE($Z114,\"{\",CHAR(160),IA$1))+1),\"\")","v":""},{"$f":"IFERROR(MID($Z114,FIND(CHAR(160),SUBSTITUTE($Z114,\"{\",CHAR(160),IB$1)),FIND(CHAR(160),SUBSTITUTE($Z114,\"}\",CHAR(160),IB$1))-FIND(CHAR(160),SUBSTITUTE($Z114,\"{\",CHAR(160),IB$1))+1),\"\")","v":""},{"$f":"IFERROR(MID($Z114,FIND(CHAR(160),SUBSTITUTE($Z114,\"{\",CHAR(160),IC$1)),FIND(CHAR(160),SUBSTITUTE($Z114,\"}\",CHAR(160),IC$1))-FIND(CHAR(160),SUBSTITUTE($Z114,\"{\",CHAR(160),IC$1))+1),\"\")","v":""},{"$f":"IFERROR(MID($Z114,FIND(CHAR(160),SUBSTITUTE($Z114,\"{\",CHAR(160),ID$1)),FIND(CHAR(160),SUBSTITUTE($Z114,\"}\",CHAR(160),ID$1))-FIND(CHAR(160),SUBSTITUTE($Z114,\"{\",CHAR(160),ID$1))+1),\"\")","v":""},{"$f":"IFERROR(MID($AA114,FIND(CHAR(160),SUBSTITUTE($AA114,\"{\",CHAR(160),IE$1)),FIND(CHAR(160),SUBSTITUTE($AA114,\"}\",CHAR(160),IE$1))-FIND(CHAR(160),SUBSTITUTE($AA114,\"{\",CHAR(160),IE$1))+1),\"\")","v":""},{"$f":"IFERROR(MID($AA114,FIND(CHAR(160),SUBSTITUTE($AA114,\"{\",CHAR(160),IF$1)),FIND(CHAR(160),SUBSTITUTE($AA114,\"}\",CHAR(160),IF$1))-FIND(CHAR(160),SUBSTITUTE($AA114,\"{\",CHAR(160),IF$1))+1),\"\")","v":""},{"$f":"IFERROR(MID($AA114,FIND(CHAR(160),SUBSTITUTE($AA114,\"{\",CHAR(160),IG$1)),FIND(CHAR(160),SUBSTITUTE($AA114,\"}\",CHAR(160),IG$1))-FIND(CHAR(160),SUBSTITUTE($AA114,\"{\",CHAR(160),IG$1))+1),\"\")","v":""},{"$f":"IFERROR(MID($AA114,FIND(CHAR(160),SUBSTITUTE($AA114,\"{\",CHAR(160),IH$1)),FIND(CHAR(160),SUBSTITUTE($AA114,\"}\",CHAR(160),IH$1))-FIND(CHAR(160),SUBSTITUTE($AA114,\"{\",CHAR(160),IH$1))+1),\"\")","v":""},{"$f":"IFERROR(MID($AA114,FIND(CHAR(160),SUBSTITUTE($AA114,\"{\",CHAR(160),II$1)),FIND(CHAR(160),SUBSTITUTE($AA114,\"}\",CHAR(160),II$1))-FIND(CHAR(160),SUBSTITUTE($AA114,\"{\",CHAR(160),II$1))+1),\"\")","v":""},{"$f":"IFERROR(MID($AA114,FIND(CHAR(160),SUBSTITUTE($AA114,\"{\",CHAR(160),IJ$1)),FIND(CHAR(160),SUBSTITUTE($AA114,\"}\",CHAR(160),IJ$1))-FIND(CHAR(160),SUBSTITUTE($AA114,\"{\",CHAR(160),IJ$1))+1),\"\")","v":""},{"$f":"IFERROR(MID($AA114,FIND(CHAR(160),SUBSTITUTE($AA114,\"{\",CHAR(160),IK$1)),FIND(CHAR(160),SUBSTITUTE($AA114,\"}\",CHAR(160),IK$1))-FIND(CHAR(160),SUBSTITUTE($AA114,\"{\",CHAR(160),IK$1))+1),\"\")","v":""},{"$f":"IFERROR(MID($AA114,FIND(CHAR(160),SUBSTITUTE($AA114,\"{\",CHAR(160),IL$1)),FIND(CHAR(160),SUBSTITUTE($AA114,\"}\",CHAR(160),IL$1))-FIND(CHAR(160),SUBSTITUTE($AA114,\"{\",CHAR(160),IL$1))+1),\"\")","v":""},{"$f":"IFERROR(MID($AA114,FIND(CHAR(160),SUBSTITUTE($AA114,\"{\",CHAR(160),IM$1)),FIND(CHAR(160),SUBSTITUTE($AA114,\"}\",CHAR(160),IM$1))-FIND(CHAR(160),SUBSTITUTE($AA114,\"{\",CHAR(160),IM$1))+1),\"\")","v":""},{"$f":"IFERROR(MID($AA114,FIND(CHAR(160),SUBSTITUTE($AA114,\"{\",CHAR(160),IN$1)),FIND(CHAR(160),SUBSTITUTE($AA114,\"}\",CHAR(160),IN$1))-FIND(CHAR(160),SUBSTITUTE($AA114,\"{\",CHAR(160),IN$1))+1),\"\")","v":""},{"$f":"IFERROR(MID($AB114,FIND(CHAR(160),SUBSTITUTE($AB114,\"{\",CHAR(160),IO$1)),FIND(CHAR(160),SUBSTITUTE($AB114,\"}\",CHAR(160),IO$1))-FIND(CHAR(160),SUBSTITUTE($AB114,\"{\",CHAR(160),IO$1))+1),\"\")","v":""},{"$f":"IFERROR(MID($AB114,FIND(CHAR(160),SUBSTITUTE($AB114,\"{\",CHAR(160),IP$1)),FIND(CHAR(160),SUBSTITUTE($AB114,\"}\",CHAR(160),IP$1))-FIND(CHAR(160),SUBSTITUTE($AB114,\"{\",CHAR(160),IP$1))+1),\"\")","v":""},{"$f":"IFERROR(MID($AB114,FIND(CHAR(160),SUBSTITUTE($AB114,\"{\",CHAR(160),IQ$1)),FIND(CHAR(160),SUBSTITUTE($AB114,\"}\",CHAR(160),IQ$1))-FIND(CHAR(160),SUBSTITUTE($AB114,\"{\",CHAR(160),IQ$1))+1),\"\")","v":""},{"$f":"IFERROR(MID($AB114,FIND(CHAR(160),SUBSTITUTE($AB114,\"{\",CHAR(160),IR$1)),FIND(CHAR(160),SUBSTITUTE($AB114,\"}\",CHAR(160),IR$1))-FIND(CHAR(160),SUBSTITUTE($AB114,\"{\",CHAR(160),IR$1))+1),\"\")","v":""},{"$f":"IFERROR(MID($AB114,FIND(CHAR(160),SUBSTITUTE($AB114,\"{\",CHAR(160),IS$1)),FIND(CHAR(160),SUBSTITUTE($AB114,\"}\",CHAR(160),IS$1))-FIND(CHAR(160),SUBSTITUTE($AB114,\"{\",CHAR(160),IS$1))+1),\"\")","v":""},{"$f":"IFERROR(MID($AB114,FIND(CHAR(160),SUBSTITUTE($AB114,\"{\",CHAR(160),IT$1)),FIND(CHAR(160),SUBSTITUTE($AB114,\"}\",CHAR(160),IT$1))-FIND(CHAR(160),SUBSTITUTE($AB114,\"{\",CHAR(160),IT$1))+1),\"\")","v":""},{"$f":"IFERROR(MID($AB114,FIND(CHAR(160),SUBSTITUTE($AB114,\"{\",CHAR(160),IU$1)),FIND(CHAR(160),SUBSTITUTE($AB114,\"}\",CHAR(160),IU$1))-FIND(CHAR(160),SUBSTITUTE($AB114,\"{\",CHAR(160),IU$1))+1),\"\")","v":""},{"$f":"IFERROR(MID($AB114,FIND(CHAR(160),SUBSTITUTE($AB114,\"{\",CHAR(160),IV$1)),FIND(CHAR(160),SUBSTITUTE($AB114,\"}\",CHAR(160),IV$1))-FIND(CHAR(160),SUBSTITUTE($AB114,\"{\",CHAR(160),IV$1))+1),\"\")","v":""},{"$f":"IFERROR(MID($AB114,FIND(CHAR(160),SUBSTITUTE($AB114,\"{\",CHAR(160),IW$1)),FIND(CHAR(160),SUBSTITUTE($AB114,\"}\",CHAR(160),IW$1))-FIND(CHAR(160),SUBSTITUTE($AB114,\"{\",CHAR(160),IW$1))+1),\"\")","v":""},{"$f":"IFERROR(MID($AB114,FIND(CHAR(160),SUBSTITUTE($AB114,\"{\",CHAR(160),IX$1)),FIND(CHAR(160),SUBSTITUTE($AB114,\"}\",CHAR(160),IX$1))-FIND(CHAR(160),SUBSTITUTE($AB114,\"{\",CHAR(160),IX$1))+1),\"\")","v":""},null,{"$f":"10-COUNTIF(DU114:ED114,\"\")","v":7}]
["C&I HVAC - Propane and Compressed NG","Boiler Stack Heat Exchanger (Economizer)","AF2","2021-07-01","2022-06-30","Calculated","{Measure:Quantity}*{Capacity (MBTUH)}/1000*if({Economizer Type}=1,2120,1500)",0,"Calculated","{Measure:Quantity}*{Capacity (MBTUH)}/1000*if({Economizer Type}=1,1325,950)",0,"2021-05-25","2022-06-30","Calculated",null,null,null,null,null,null,null,null,"if({Existing Fuel}<>1,0,{Measure:Quantity} * ({Capacity (MBTUH)} * 1565 * if({Economizer Type}=1,0.1,0.05)) / 1000)*10","if({Existing Fuel}<>2,0,{Measure:Quantity} * ({Capacity (MBTUH)} * 1565 * if({Economizer Type}=1,0.1,0.05)) / 1000)",null,null,null,null,"2021-05-25","2022-06-30",20,0,0,0,0,0,0,1,1,0,0.52,1.6E-2,null,{"$f":"DU115","v":"{Measure:Quantity}"},1,{"$f":"DV115","v":"{Capacity (MBTUH)}"},1000,{"$f":"DW115","v":"{Economizer Type}"},1,{"$f":"DX115","v":"{Existing Fuel}"},2,{"$f":"DY115","v":""},null,{"$f":"DZ115","v":""},null,{"$f":"EA115","v":""},null,{"$f":"EB115","v":""},null,{"$f":"EC115","v":""},null,{"$f":"ED115","v":""},null,0,0,0,0,0,0,0,0,{"$f":"IF(AY115<>1,0,AS115 * (AU115 * 1565 * IF(AW115=1,0.1,0.05)) / 1000)*10","v":0},{"$f":"IF(AY115<>2,0,AS115 * (AU115 * 1565 * IF(AW115=1,0.1,0.05)) / 1000)","v":156.5},0,0,0,0,null,"Res","Default DR",{"$f":"Benefits(BL115,BR115,BS115,BT115,BU115,BV115,BW115,BX115,BY115,BZ115,AE115,AH115,AI115,AJ115,AK115,AL115,AM115,AN115,AO115,AP115,CA115,CB115)","v":0},0,0,0,0,114582.02451092329,0,0,0,{"$f":"SUMPRODUCT(CC115:CK115,--(CC115:CK115>0))","v":114582.02451092329},{"$f":"-SUMPRODUCT(CC115:CK115,--(CC115:CK115<0))","v":0},null,{"$f":"AS115*AU115/1000*IF(AW115=1,2120,1500)","v":2120},null,null,{"$f":"CM115+CO115","v":2120},{"$f":"IF(NetOrGross=\"Net\",(1-AO115+AP115),1)","v":1},{"$f":"(SUMPRODUCT(CC115:CJ115,--(CC115:CJ115>0))+CN115)*CS115/((-SUMPRODUCT(CC115:CJ115,--(CC115:CJ115<0))+MAX(CO115,CV115)+CP115+CQ115)*CS115+IF(FRIncentives=\"Yes\",CV115*(1-CS115),0))","v":54.048124769303442},1,{"$f":"AS115*AU115/1000*IF(AW115=1,1325,950)","v":1325},null,"RGGI","y",null,{"$f":"IF(F115=\"Manual Entry\",\"Manual\",IF(G115=\"\",0,\"X=\"&SUBSTITUTE(SUBSTITUTE(SUBSTITUTE(SUBSTITUTE(SUBSTITUTE(SUBSTITUTE(SUBSTITUTE(SUBSTITUTE(SUBSTITUTE(SUBSTITUTE(SUBSTITUTE(SUBSTITUTE(G115,$ED115,$ED$2&ROW($ED115)),$EC115,$EC$2&ROW($EC115)),$EB115,$EB$2&ROW($EB115)),$EA115,$EA$2&ROW($EA115)),$DZ115,$DZ$2&ROW($DZ115)),$DY115,$DY$2&ROW($DY115)),$DX115,$DX$2&ROW($DX115)),$DW115,$DW$2&ROW($DW115)),$DV115,$DV$2&ROW($DV115)),$DU115,$DU$2&ROW($DU115)),$DT115,$DT$2&ROW($DT115)),$DS115,$DS$2&ROW($DS115))))","v":"X=AS115*AU115/1000*if(AW115=1,2120,1500)"},{"$f":"IF(I115=\"Manual Entry\",\"Manual\",IF(J115=\"\",0,\"X=\"&SUBSTITUTE(SUBSTITUTE(SUBSTITUTE(SUBSTITUTE(SUBSTITUTE(SUBSTITUTE(SUBSTITUTE(SUBSTITUTE(SUBSTITUTE(SUBSTITUTE(SUBSTITUTE(SUBSTITUTE(J115,$ED115,$ED$2&ROW($ED115)),$EC115,$EC$2&ROW($EC115)),$EB115,$EB$2&ROW($EB115)),$EA115,$EA$2&ROW($EA115)),$DZ115,$DZ$2&ROW($DZ115)),$DY115,$DY$2&ROW($DY115)),$DX115,$DX$2&ROW($DX115)),$DW115,$DW$2&ROW($DW115)),$DV115,$DV$2&ROW($DV115)),$DU115,$DU$2&ROW($DU115)),$DT115,$DT$2&ROW($DT115)),$DS115,$DS$2&ROW($DS115))))","v":"X=AS115*AU115/1000*if(AW115=1,1325,950)"},{"$f":"IF(O115=\"\",0,\"X=\"&SUBSTITUTE(SUBSTITUTE(SUBSTITUTE(SUBSTITUTE(SUBSTITUTE(SUBSTITUTE(SUBSTITUTE(SUBSTITUTE(SUBSTITUTE(SUBSTITUTE(SUBSTITUTE(SUBSTITUTE(O115,$ED115,$ED$2&ROW($ED115)),$EC115,$EC$2&ROW($EC115)),$EB115,$EB$2&ROW($EB115)),$EA115,$EA$2&ROW($EA115)),$DZ115,$DZ$2&ROW($DZ115)),$DY115,$DY$2&ROW($DY115)),$DX115,$DX$2&ROW($DX115)),$DW115,$DW$2&ROW($DW115)),$DV115,$DV$2&ROW($DV115)),$DU115,$DU$2&ROW($DU115)),$DT115,$DT$2&ROW($DT115)),$DS115,$DS$2&ROW($DS115)))","v":0},{"$f":"IF(P115=\"\",0,\"X=\"&SUBSTITUTE(SUBSTITUTE(SUBSTITUTE(SUBSTITUTE(SUBSTITUTE(SUBSTITUTE(SUBSTITUTE(SUBSTITUTE(SUBSTITUTE(SUBSTITUTE(SUBSTITUTE(SUBSTITUTE(P115,$ED115,$ED$2&ROW($ED115)),$EC115,$EC$2&ROW($EC115)),$EB115,$EB$2&ROW($EB115)),$EA115,$EA$2&ROW($EA115)),$DZ115,$DZ$2&ROW($DZ115)),$DY115,$DY$2&ROW($DY115)),$DX115,$DX$2&ROW($DX115)),$DW115,$DW$2&ROW($DW115)),$DV115,$DV$2&ROW($DV115)),$DU115,$DU$2&ROW($DU115)),$DT115,$DT$2&ROW($DT115)),$DS115,$DS$2&ROW($DS115)))","v":0},{"$f":"IF(Q115=\"\",0,\"X=\"&SUBSTITUTE(SUBSTITUTE(SUBSTITUTE(SUBSTITUTE(SUBSTITUTE(SUBSTITUTE(SUBSTITUTE(SUBSTITUTE(SUBSTITUTE(SUBSTITUTE(SUBSTITUTE(SUBSTITUTE(Q115,$ED115,$ED$2&ROW($ED115)),$EC115,$EC$2&ROW($EC115)),$EB115,$EB$2&ROW($EB115)),$EA115,$EA$2&ROW($EA115)),$DZ115,$DZ$2&ROW($DZ115)),$DY115,$DY$2&ROW($DY115)),$DX115,$DX$2&ROW($DX115)),$DW115,$DW$2&ROW($DW115)),$DV115,$DV$2&ROW($DV115)),$DU115,$DU$2&ROW($DU115)),$DT115,$DT$2&ROW($DT115)),$DS115,$DS$2&ROW($DS115)))","v":0},{"$f":"IF(R115=\"\",0,\"X=\"&SUBSTITUTE(SUBSTITUTE(SUBSTITUTE(SUBSTITUTE(SUBSTITUTE(SUBSTITUTE(SUBSTITUTE(SUBSTITUTE(SUBSTITUTE(SUBSTITUTE(SUBSTITUTE(SUBSTITUTE(R115,$ED115,$ED$2&ROW($ED115)),$EC115,$EC$2&ROW($EC115)),$EB115,$EB$2&ROW($EB115)),$EA115,$EA$2&ROW($EA115)),$DZ115,$DZ$2&ROW($DZ115)),$DY115,$DY$2&ROW($DY115)),$DX115,$DX$2&ROW($DX115)),$DW115,$DW$2&ROW($DW115)),$DV115,$DV$2&ROW($DV115)),$DU115,$DU$2&ROW($DU115)),$DT115,$DT$2&ROW($DT115)),$DS115,$DS$2&ROW($DS115)))","v":0},{"$f":"IF(S115=\"\",0,\"X=\"&SUBSTITUTE(SUBSTITUTE(SUBSTITUTE(SUBSTITUTE(SUBSTITUTE(SUBSTITUTE(SUBSTITUTE(SUBSTITUTE(SUBSTITUTE(SUBSTITUTE(SUBSTITUTE(SUBSTITUTE(S115,$ED115,$ED$2&ROW($ED115)),$EC115,$EC$2&ROW($EC115)),$EB115,$EB$2&ROW($EB115)),$EA115,$EA$2&ROW($EA115)),$DZ115,$DZ$2&ROW($DZ115)),$DY115,$DY$2&ROW($DY115)),$DX115,$DX$2&ROW($DX115)),$DW115,$DW$2&ROW($DW115)),$DV115,$DV$2&ROW($DV115)),$DU115,$DU$2&ROW($DU115)),$DT115,$DT$2&ROW($DT115)),$DS115,$DS$2&ROW($DS115)))","v":0},{"$f":"IF(T115=\"\",0,\"X=\"&SUBSTITUTE(SUBSTITUTE(SUBSTITUTE(SUBSTITUTE(SUBSTITUTE(SUBSTITUTE(SUBSTITUTE(SUBSTITUTE(SUBSTITUTE(SUBSTITUTE(SUBSTITUTE(SUBSTITUTE(T115,$ED115,$ED$2&ROW($ED115)),$EC115,$EC$2&ROW($EC115)),$EB115,$EB$2&ROW($EB115)),$EA115,$EA$2&ROW($EA115)),$DZ115,$DZ$2&ROW($DZ115)),$DY115,$DY$2&ROW($DY115)),$DX115,$DX$2&ROW($DX115)),$DW115,$DW$2&ROW($DW115)),$DV115,$DV$2&ROW($DV115)),$DU115,$DU$2&ROW($DU115)),$DT115,$DT$2&ROW($DT115)),$DS115,$DS$2&ROW($DS115)))","v":0},{"$f":"IF(U115=\"\",0,\"X=\"&SUBSTITUTE(SUBSTITUTE(SUBSTITUTE(SUBSTITUTE(SUBSTITUTE(SUBSTITUTE(SUBSTITUTE(SUBSTITUTE(SUBSTITUTE(SUBSTITUTE(SUBSTITUTE(SUBSTITUTE(U115,$ED115,$ED$2&ROW($ED115)),$EC115,$EC$2&ROW($EC115)),$EB115,$EB$2&ROW($EB115)),$EA115,$EA$2&ROW($EA115)),$DZ115,$DZ$2&ROW($DZ115)),$DY115,$DY$2&ROW($DY115)),$DX115,$DX$2&ROW($DX115)),$DW115,$DW$2&ROW($DW115)),$DV115,$DV$2&ROW($DV115)),$DU115,$DU$2&ROW($DU115)),$DT115,$DT$2&ROW($DT115)),$DS115,$DS$2&ROW($DS115)))","v":0},{"$f":"IF(V115=\"\",0,\"X=\"&SUBSTITUTE(SUBSTITUTE(SUBSTITUTE(SUBSTITUTE(SUBSTITUTE(SUBSTITUTE(SUBSTITUTE(SUBSTITUTE(SUBSTITUTE(SUBSTITUTE(SUBSTITUTE(SUBSTITUTE(V115,$ED115,$ED$2&ROW($ED115)),$EC115,$EC$2&ROW($EC115)),$EB115,$EB$2&ROW($EB115)),$EA115,$EA$2&ROW($EA115)),$DZ115,$DZ$2&ROW($DZ115)),$DY115,$DY$2&ROW($DY115)),$DX115,$DX$2&ROW($DX115)),$DW115,$DW$2&ROW($DW115)),$DV115,$DV$2&ROW($DV115)),$DU115,$DU$2&ROW($DU115)),$DT115,$DT$2&ROW($DT115)),$DS115,$DS$2&ROW($DS115)))","v":0},{"$f":"IF(W115=\"\",0,\"X=\"&SUBSTITUTE(SUBSTITUTE(SUBSTITUTE(SUBSTITUTE(SUBSTITUTE(SUBSTITUTE(SUBSTITUTE(SUBSTITUTE(SUBSTITUTE(SUBSTITUTE(SUBSTITUTE(SUBSTITUTE(W115,$ED115,$ED$2&ROW($ED115)),$EC115,$EC$2&ROW($EC115)),$EB115,$EB$2&ROW($EB115)),$EA115,$EA$2&ROW($EA115)),$DZ115,$DZ$2&ROW($DZ115)),$DY115,$DY$2&ROW($DY115)),$DX115,$DX$2&ROW($DX115)),$DW115,$DW$2&ROW($DW115)),$DV115,$DV$2&ROW($DV115)),$DU115,$DU$2&ROW($DU115)),$DT115,$DT$2&ROW($DT115)),$DS115,$DS$2&ROW($DS115)))","v":"X=if(AY115<>1,0,AS115 * (AU115 * 1565 * if(AW115=1,0.1,0.05)) / 1000)*10"},{"$f":"IF(X115=\"\",0,\"X=\"&SUBSTITUTE(SUBSTITUTE(SUBSTITUTE(SUBSTITUTE(SUBSTITUTE(SUBSTITUTE(SUBSTITUTE(SUBSTITUTE(SUBSTITUTE(SUBSTITUTE(SUBSTITUTE(SUBSTITUTE(X115,$ED115,$ED$2&ROW($ED115)),$EC115,$EC$2&ROW($EC115)),$EB115,$EB$2&ROW($EB115)),$EA115,$EA$2&ROW($EA115)),$DZ115,$DZ$2&ROW($DZ115)),$DY115,$DY$2&ROW($DY115)),$DX115,$DX$2&ROW($DX115)),$DW115,$DW$2&ROW($DW115)),$DV115,$DV$2&ROW($DV115)),$DU115,$DU$2&ROW($DU115)),$DT115,$DT$2&ROW($DT115)),$DS115,$DS$2&ROW($DS115)))","v":"X=if(AY115<>2,0,AS115 * (AU115 * 1565 * if(AW115=1,0.1,0.05)) / 1000)"},{"$f":"IF(Y115=\"\",0,\"X=\"&SUBSTITUTE(SUBSTITUTE(SUBSTITUTE(SUBSTITUTE(SUBSTITUTE(SUBSTITUTE(SUBSTITUTE(SUBSTITUTE(SUBSTITUTE(SUBSTITUTE(SUBSTITUTE(SUBSTITUTE(Y115,$ED115,$ED$2&ROW($ED115)),$EC115,$EC$2&ROW($EC115)),$EB115,$EB$2&ROW($EB115)),$EA115,$EA$2&ROW($EA115)),$DZ115,$DZ$2&ROW($DZ115)),$DY115,$DY$2&ROW($DY115)),$DX115,$DX$2&ROW($DX115)),$DW115,$DW$2&ROW($DW115)),$DV115,$DV$2&ROW($DV115)),$DU115,$DU$2&ROW($DU115)),$DT115,$DT$2&ROW($DT115)),$DS115,$DS$2&ROW($DS115)))","v":0},{"$f":"IF(Z115=\"\",0,\"X=\"&SUBSTITUTE(SUBSTITUTE(SUBSTITUTE(SUBSTITUTE(SUBSTITUTE(SUBSTITUTE(SUBSTITUTE(SUBSTITUTE(SUBSTITUTE(SUBSTITUTE(SUBSTITUTE(SUBSTITUTE(Z115,$ED115,$ED$2&ROW($ED115)),$EC115,$EC$2&ROW($EC115)),$EB115,$EB$2&ROW($EB115)),$EA115,$EA$2&ROW($EA115)),$DZ115,$DZ$2&ROW($DZ115)),$DY115,$DY$2&ROW($DY115)),$DX115,$DX$2&ROW($DX115)),$DW115,$DW$2&ROW($DW115)),$DV115,$DV$2&ROW($DV115)),$DU115,$DU$2&ROW($DU115)),$DT115,$DT$2&ROW($DT115)),$DS115,$DS$2&ROW($DS115)))","v":0},{"$f":"IF(AA115=\"\",0,\"X=\"&SUBSTITUTE(SUBSTITUTE(SUBSTITUTE(SUBSTITUTE(SUBSTITUTE(SUBSTITUTE(SUBSTITUTE(SUBSTITUTE(SUBSTITUTE(SUBSTITUTE(SUBSTITUTE(SUBSTITUTE(AA115,$ED115,$ED$2&ROW($ED115)),$EC115,$EC$2&ROW($EC115)),$EB115,$EB$2&ROW($EB115)),$EA115,$EA$2&ROW($EA115)),$DZ115,$DZ$2&ROW($DZ115)),$DY115,$DY$2&ROW($DY115)),$DX115,$DX$2&ROW($DX115)),$DW115,$DW$2&ROW($DW115)),$DV115,$DV$2&ROW($DV115)),$DU115,$DU$2&ROW($DU115)),$DT115,$DT$2&ROW($DT115)),$DS115,$DS$2&ROW($DS115)))","v":0},{"$f":"IF(AB115=\"\",0,\"X=\"&SUBSTITUTE(SUBSTITUTE(SUBSTITUTE(SUBSTITUTE(SUBSTITUTE(SUBSTITUTE(SUBSTITUTE(SUBSTITUTE(SUBSTITUTE(SUBSTITUTE(SUBSTITUTE(SUBSTITUTE(AB115,$ED115,$ED$2&ROW($ED115)),$EC115,$EC$2&ROW($EC115)),$EB115,$EB$2&ROW($EB115)),$EA115,$EA$2&ROW($EA115)),$DZ115,$DZ$2&ROW($DZ115)),$DY115,$DY$2&ROW($DY115)),$DX115,$DX$2&ROW($DX115)),$DW115,$DW$2&ROW($DW115)),$DV115,$DV$2&ROW($DV115)),$DU115,$DU$2&ROW($DU115)),$DT115,$DT$2&ROW($DT115)),$DS115,$DS$2&ROW($DS115)))","v":0},null,null,"{Factor:WinterCF}","{Factor:SummerCF}",{"$f":"IFERROR(INDEX($EG115:$IV115,MATCH(0,COUNTIF($DR115:DT115,$EG115:$IV115),0)),\"\")","v":"{Measure:Quantity}"},{"$f":"IFERROR(INDEX($EG115:$IV115,MATCH(0,COUNTIF($DR115:DU115,$EG115:$IV115),0)),\"\")","v":"{Capacity (MBTUH)}"},{"$f":"IFERROR(INDEX($EG115:$IV115,MATCH(0,COUNTIF($DR115:DV115,$EG115:$IV115),0)),\"\")","v":"{Economizer Type}"},{"$f":"IFERROR(INDEX($EG115:$IV115,MATCH(0,COUNTIF($DR115:DW115,$EG115:$IV115),0)),\"\")","v":"{Existing Fuel}"},{"$f":"IFERROR(INDEX($EG115:$IV115,MATCH(0,COUNTIF($DR115:DX115,$EG115:$IV115),0)),\"\")","v":""},{"$f":"IFERROR(INDEX($EG115:$IV115,MATCH(0,COUNTIF($DR115:DY115,$EG115:$IV115),0)),\"\")","v":""},{"$f":"IFERROR(INDEX($EG115:$IV115,MATCH(0,COUNTIF($DR115:DZ115,$EG115:$IV115),0)),\"\")","v":""},{"$f":"IFERROR(INDEX($EG115:$IV115,MATCH(0,COUNTIF($DR115:EA115,$EG115:$IV115),0)),\"\")","v":""},{"$f":"IFERROR(INDEX($EG115:$IV115,MATCH(0,COUNTIF($DR115:EB115,$EG115:$IV115),0)),\"\")","v":""},{"$f":"IFERROR(INDEX($EG115:$IV115,MATCH(0,COUNTIF($DR115:EC115,$EG115:$IV115),0)),\"\")","v":""},null,null,{"$f":"IFERROR(MID($G115,FIND(CHAR(160),SUBSTITUTE($G115,\"{\",CHAR(160),EG$1)),FIND(CHAR(160),SUBSTITUTE($G115,\"}\",CHAR(160),EG$1))-FIND(CHAR(160),SUBSTITUTE($G115,\"{\",CHAR(160),EG$1))+1),\"\")","v":"{Measure:Quantity}"},{"$f":"IFERROR(MID($G115,FIND(CHAR(160),SUBSTITUTE($G115,\"{\",CHAR(160),EH$1)),FIND(CHAR(160),SUBSTITUTE($G115,\"}\",CHAR(160),EH$1))-FIND(CHAR(160),SUBSTITUTE($G115,\"{\",CHAR(160),EH$1))+1),\"\")","v":"{Capacity (MBTUH)}"},{"$f":"IFERROR(MID($G115,FIND(CHAR(160),SUBSTITUTE($G115,\"{\",CHAR(160),EI$1)),FIND(CHAR(160),SUBSTITUTE($G115,\"}\",CHAR(160),EI$1))-FIND(CHAR(160),SUBSTITUTE($G115,\"{\",CHAR(160),EI$1))+1),\"\")","v":"{Economizer Type}"},{"$f":"IFERROR(MID($G115,FIND(CHAR(160),SUBSTITUTE($G115,\"{\",CHAR(160),EJ$1)),FIND(CHAR(160),SUBSTITUTE($G115,\"}\",CHAR(160),EJ$1))-FIND(CHAR(160),SUBSTITUTE($G115,\"{\",CHAR(160),EJ$1))+1),\"\")","v":""},{"$f":"IFERROR(MID($G115,FIND(CHAR(160),SUBSTITUTE($G115,\"{\",CHAR(160),EK$1)),FIND(CHAR(160),SUBSTITUTE($G115,\"}\",CHAR(160),EK$1))-FIND(CHAR(160),SUBSTITUTE($G115,\"{\",CHAR(160),EK$1))+1),\"\")","v":""},{"$f":"IFERROR(MID($G115,FIND(CHAR(160),SUBSTITUTE($G115,\"{\",CHAR(160),EL$1)),FIND(CHAR(160),SUBSTITUTE($G115,\"}\",CHAR(160),EL$1))-FIND(CHAR(160),SUBSTITUTE($G115,\"{\",CHAR(160),EL$1))+1),\"\")","v":""},{"$f":"IFERROR(MID($G115,FIND(CHAR(160),SUBSTITUTE($G115,\"{\",CHAR(160),EM$1)),FIND(CHAR(160),SUBSTITUTE($G115,\"}\",CHAR(160),EM$1))-FIND(CHAR(160),SUBSTITUTE($G115,\"{\",CHAR(160),EM$1))+1),\"\")","v":""},{"$f":"IFERROR(MID($G115,FIND(CHAR(160),SUBSTITUTE($G115,\"{\",CHAR(160),EN$1)),FIND(CHAR(160),SUBSTITUTE($G115,\"}\",CHAR(160),EN$1))-FIND(CHAR(160),SUBSTITUTE($G115,\"{\",CHAR(160),EN$1))+1),\"\")","v":""},{"$f":"IFERROR(MID($G115,FIND(CHAR(160),SUBSTITUTE($G115,\"{\",CHAR(160),EO$1)),FIND(CHAR(160),SUBSTITUTE($G115,\"}\",CHAR(160),EO$1))-FIND(CHAR(160),SUBSTITUTE($G115,\"{\",CHAR(160),EO$1))+1),\"\")","v":""},{"$f":"IFERROR(MID($G115,FIND(CHAR(160),SUBSTITUTE($G115,\"{\",CHAR(160),EP$1)),FIND(CHAR(160),SUBSTITUTE($G115,\"}\",CHAR(160),EP$1))-FIND(CHAR(160),SUBSTITUTE($G115,\"{\",CHAR(160),EP$1))+1),\"\")","v":""},{"$f":"IFERROR(MID($J115,FIND(CHAR(160),SUBSTITUTE($J115,\"{\",CHAR(160),EQ$1)),FIND(CHAR(160),SUBSTITUTE($J115,\"}\",CHAR(160),EQ$1))-FIND(CHAR(160),SUBSTITUTE($J115,\"{\",CHAR(160),EQ$1))+1),\"\")","v":"{Measure:Quantity}"},{"$f":"IFERROR(MID($J115,FIND(CHAR(160),SUBSTITUTE($J115,\"{\",CHAR(160),ER$1)),FIND(CHAR(160),SUBSTITUTE($J115,\"}\",CHAR(160),ER$1))-FIND(CHAR(160),SUBSTITUTE($J115,\"{\",CHAR(160),ER$1))+1),\"\")","v":"{Capacity (MBTUH)}"},{"$f":"IFERROR(MID($J115,FIND(CHAR(160),SUBSTITUTE($J115,\"{\",CHAR(160),ES$1)),FIND(CHAR(160),SUBSTITUTE($J115,\"}\",CHAR(160),ES$1))-FIND(CHAR(160),SUBSTITUTE($J115,\"{\",CHAR(160),ES$1))+1),\"\")","v":"{Economizer Type}"},{"$f":"IFERROR(MID($J115,FIND(CHAR(160),SUBSTITUTE($J115,\"{\",CHAR(160),ET$1)),FIND(CHAR(160),SUBSTITUTE($J115,\"}\",CHAR(160),ET$1))-FIND(CHAR(160),SUBSTITUTE($J115,\"{\",CHAR(160),ET$1))+1),\"\")","v":""},{"$f":"IFERROR(MID($J115,FIND(CHAR(160),SUBSTITUTE($J115,\"{\",CHAR(160),EU$1)),FIND(CHAR(160),SUBSTITUTE($J115,\"}\",CHAR(160),EU$1))-FIND(CHAR(160),SUBSTITUTE($J115,\"{\",CHAR(160),EU$1))+1),\"\")","v":""},{"$f":"IFERROR(MID($J115,FIND(CHAR(160),SUBSTITUTE($J115,\"{\",CHAR(160),EV$1)),FIND(CHAR(160),SUBSTITUTE($J115,\"}\",CHAR(160),EV$1))-FIND(CHAR(160),SUBSTITUTE($J115,\"{\",CHAR(160),EV$1))+1),\"\")","v":""},{"$f":"IFERROR(MID($J115,FIND(CHAR(160),SUBSTITUTE($J115,\"{\",CHAR(160),EW$1)),FIND(CHAR(160),SUBSTITUTE($J115,\"}\",CHAR(160),EW$1))-FIND(CHAR(160),SUBSTITUTE($J115,\"{\",CHAR(160),EW$1))+1),\"\")","v":""},{"$f":"IFERROR(MID($J115,FIND(CHAR(160),SUBSTITUTE($J115,\"{\",CHAR(160),EX$1)),FIND(CHAR(160),SUBSTITUTE($J115,\"}\",CHAR(160),EX$1))-FIND(CHAR(160),SUBSTITUTE($J115,\"{\",CHAR(160),EX$1))+1),\"\")","v":""},{"$f":"IFERROR(MID($J115,FIND(CHAR(160),SUBSTITUTE($J115,\"{\",CHAR(160),EY$1)),FIND(CHAR(160),SUBSTITUTE($J115,\"}\",CHAR(160),EY$1))-FIND(CHAR(160),SUBSTITUTE($J115,\"{\",CHAR(160),EY$1))+1),\"\")","v":""},{"$f":"IFERROR(MID($J115,FIND(CHAR(160),SUBSTITUTE($J115,\"{\",CHAR(160),EZ$1)),FIND(CHAR(160),SUBSTITUTE($J115,\"}\",CHAR(160),EZ$1))-FIND(CHAR(160),SUBSTITUTE($J115,\"{\",CHAR(160),EZ$1))+1),\"\")","v":""},{"$f":"IFERROR(MID($J115,FIND(CHAR(160),SUBSTITUTE($J115,\"{\",CHAR(160),FA$1)),FIND(CHAR(160),SUBSTITUTE($J115,\"}\",CHAR(160),FA$1))-FIND(CHAR(160),SUBSTITUTE($J115,\"{\",CHAR(160),FA$1))+1),\"\")","v":"{Measure:Quantity}"},{"$f":"IFERROR(MID($J115,FIND(CHAR(160),SUBSTITUTE($J115,\"{\",CHAR(160),FB$1)),FIND(CHAR(160),SUBSTITUTE($J115,\"}\",CHAR(160),FB$1))-FIND(CHAR(160),SUBSTITUTE($J115,\"{\",CHAR(160),FB$1))+1),\"\")","v":"{Capacity (MBTUH)}"},{"$f":"IFERROR(MID($O115,FIND(CHAR(160),SUBSTITUTE($O115,\"{\",CHAR(160),FC$1)),FIND(CHAR(160),SUBSTITUTE($O115,\"}\",CHAR(160),FC$1))-FIND(CHAR(160),SUBSTITUTE($O115,\"{\",CHAR(160),FC$1))+1),\"\")","v":""},{"$f":"IFERROR(MID($O115,FIND(CHAR(160),SUBSTITUTE($O115,\"{\",CHAR(160),FD$1)),FIND(CHAR(160),SUBSTITUTE($O115,\"}\",CHAR(160),FD$1))-FIND(CHAR(160),SUBSTITUTE($O115,\"{\",CHAR(160),FD$1))+1),\"\")","v":""},{"$f":"IFERROR(MID($O115,FIND(CHAR(160),SUBSTITUTE($O115,\"{\",CHAR(160),FE$1)),FIND(CHAR(160),SUBSTITUTE($O115,\"}\",CHAR(160),FE$1))-FIND(CHAR(160),SUBSTITUTE($O115,\"{\",CHAR(160),FE$1))+1),\"\")","v":""},{"$f":"IFERROR(MID($O115,FIND(CHAR(160),SUBSTITUTE($O115,\"{\",CHAR(160),FF$1)),FIND(CHAR(160),SUBSTITUTE($O115,\"}\",CHAR(160),FF$1))-FIND(CHAR(160),SUBSTITUTE($O115,\"{\",CHAR(160),FF$1))+1),\"\")","v":""},{"$f":"IFERROR(MID($O115,FIND(CHAR(160),SUBSTITUTE($O115,\"{\",CHAR(160),FG$1)),FIND(CHAR(160),SUBSTITUTE($O115,\"}\",CHAR(160),FG$1))-FIND(CHAR(160),SUBSTITUTE($O115,\"{\",CHAR(160),FG$1))+1),\"\")","v":""},{"$f":"IFERROR(MID($O115,FIND(CHAR(160),SUBSTITUTE($O115,\"{\",CHAR(160),FH$1)),FIND(CHAR(160),SUBSTITUTE($O115,\"}\",CHAR(160),FH$1))-FIND(CHAR(160),SUBSTITUTE($O115,\"{\",CHAR(160),FH$1))+1),\"\")","v":""},{"$f":"IFERROR(MID($O115,FIND(CHAR(160),SUBSTITUTE($O115,\"{\",CHAR(160),FI$1)),FIND(CHAR(160),SUBSTITUTE($O115,\"}\",CHAR(160),FI$1))-FIND(CHAR(160),SUBSTITUTE($O115,\"{\",CHAR(160),FI$1))+1),\"\")","v":""},{"$f":"IFERROR(MID($O115,FIND(CHAR(160),SUBSTITUTE($O115,\"{\",CHAR(160),FJ$1)),FIND(CHAR(160),SUBSTITUTE($O115,\"}\",CHAR(160),FJ$1))-FIND(CHAR(160),SUBSTITUTE($O115,\"{\",CHAR(160),FJ$1))+1),\"\")","v":""},{"$f":"IFERROR(MID($O115,FIND(CHAR(160),SUBSTITUTE($O115,\"{\",CHAR(160),FK$1)),FIND(CHAR(160),SUBSTITUTE($O115,\"}\",CHAR(160),FK$1))-FIND(CHAR(160),SUBSTITUTE($O115,\"{\",CHAR(160),FK$1))+1),\"\")","v":""},{"$f":"IFERROR(MID($O115,FIND(CHAR(160),SUBSTITUTE($O115,\"{\",CHAR(160),FL$1)),FIND(CHAR(160),SUBSTITUTE($O115,\"}\",CHAR(160),FL$1))-FIND(CHAR(160),SUBSTITUTE($O115,\"{\",CHAR(160),FL$1))+1),\"\")","v":""},{"$f":"IFERROR(MID($R115,FIND(CHAR(160),SUBSTITUTE($R115,\"{\",CHAR(160),FM$1)),FIND(CHAR(160),SUBSTITUTE($R115,\"}\",CHAR(160),FM$1))-FIND(CHAR(160),SUBSTITUTE($R115,\"{\",CHAR(160),FM$1))+1),\"\")","v":""},{"$f":"IFERROR(MID($R115,FIND(CHAR(160),SUBSTITUTE($R115,\"{\",CHAR(160),FN$1)),FIND(CHAR(160),SUBSTITUTE($R115,\"}\",CHAR(160),FN$1))-FIND(CHAR(160),SUBSTITUTE($R115,\"{\",CHAR(160),FN$1))+1),\"\")","v":""},{"$f":"IFERROR(MID($R115,FIND(CHAR(160),SUBSTITUTE($R115,\"{\",CHAR(160),FO$1)),FIND(CHAR(160),SUBSTITUTE($R115,\"}\",CHAR(160),FO$1))-FIND(CHAR(160),SUBSTITUTE($R115,\"{\",CHAR(160),FO$1))+1),\"\")","v":""},{"$f":"IFERROR(MID($R115,FIND(CHAR(160),SUBSTITUTE($R115,\"{\",CHAR(160),FP$1)),FIND(CHAR(160),SUBSTITUTE($R115,\"}\",CHAR(160),FP$1))-FIND(CHAR(160),SUBSTITUTE($R115,\"{\",CHAR(160),FP$1))+1),\"\")","v":""},{"$f":"IFERROR(MID($R115,FIND(CHAR(160),SUBSTITUTE($R115,\"{\",CHAR(160),FQ$1)),FIND(CHAR(160),SUBSTITUTE($R115,\"}\",CHAR(160),FQ$1))-FIND(CHAR(160),SUBSTITUTE($R115,\"{\",CHAR(160),FQ$1))+1),\"\")","v":""},{"$f":"IFERROR(MID($R115,FIND(CHAR(160),SUBSTITUTE($R115,\"{\",CHAR(160),FR$1)),FIND(CHAR(160),SUBSTITUTE($R115,\"}\",CHAR(160),FR$1))-FIND(CHAR(160),SUBSTITUTE($R115,\"{\",CHAR(160),FR$1))+1),\"\")","v":""},{"$f":"IFERROR(MID($R115,FIND(CHAR(160),SUBSTITUTE($R115,\"{\",CHAR(160),FS$1)),FIND(CHAR(160),SUBSTITUTE($R115,\"}\",CHAR(160),FS$1))-FIND(CHAR(160),SUBSTITUTE($R115,\"{\",CHAR(160),FS$1))+1),\"\")","v":""},{"$f":"IFERROR(MID($R115,FIND(CHAR(160),SUBSTITUTE($R115,\"{\",CHAR(160),FT$1)),FIND(CHAR(160),SUBSTITUTE($R115,\"}\",CHAR(160),FT$1))-FIND(CHAR(160),SUBSTITUTE($R115,\"{\",CHAR(160),FT$1))+1),\"\")","v":""},{"$f":"IFERROR(MID($R115,FIND(CHAR(160),SUBSTITUTE($R115,\"{\",CHAR(160),FU$1)),FIND(CHAR(160),SUBSTITUTE($R115,\"}\",CHAR(160),FU$1))-FIND(CHAR(160),SUBSTITUTE($R115,\"{\",CHAR(160),FU$1))+1),\"\")","v":""},{"$f":"IFERROR(MID($R115,FIND(CHAR(160),SUBSTITUTE($R115,\"{\",CHAR(160),FV$1)),FIND(CHAR(160),SUBSTITUTE($R115,\"}\",CHAR(160),FV$1))-FIND(CHAR(160),SUBSTITUTE($R115,\"{\",CHAR(160),FV$1))+1),\"\")","v":""},{"$f":"IFERROR(MID($U115,FIND(CHAR(160),SUBSTITUTE($U115,\"{\",CHAR(160),FW$1)),FIND(CHAR(160),SUBSTITUTE($U115,\"}\",CHAR(160),FW$1))-FIND(CHAR(160),SUBSTITUTE($U115,\"{\",CHAR(160),FW$1))+1),\"\")","v":""},{"$f":"IFERROR(MID($U115,FIND(CHAR(160),SUBSTITUTE($U115,\"{\",CHAR(160),FX$1)),FIND(CHAR(160),SUBSTITUTE($U115,\"}\",CHAR(160),FX$1))-FIND(CHAR(160),SUBSTITUTE($U115,\"{\",CHAR(160),FX$1))+1),\"\")","v":""},{"$f":"IFERROR(MID($U115,FIND(CHAR(160),SUBSTITUTE($U115,\"{\",CHAR(160),FY$1)),FIND(CHAR(160),SUBSTITUTE($U115,\"}\",CHAR(160),FY$1))-FIND(CHAR(160),SUBSTITUTE($U115,\"{\",CHAR(160),FY$1))+1),\"\")","v":""},{"$f":"IFERROR(MID($U115,FIND(CHAR(160),SUBSTITUTE($U115,\"{\",CHAR(160),FZ$1)),FIND(CHAR(160),SUBSTITUTE($U115,\"}\",CHAR(160),FZ$1))-FIND(CHAR(160),SUBSTITUTE($U115,\"{\",CHAR(160),FZ$1))+1),\"\")","v":""},{"$f":"IFERROR(MID($U115,FIND(CHAR(160),SUBSTITUTE($U115,\"{\",CHAR(160),GA$1)),FIND(CHAR(160),SUBSTITUTE($U115,\"}\",CHAR(160),GA$1))-FIND(CHAR(160),SUBSTITUTE($U115,\"{\",CHAR(160),GA$1))+1),\"\")","v":""},{"$f":"IFERROR(MID($U115,FIND(CHAR(160),SUBSTITUTE($U115,\"{\",CHAR(160),GB$1)),FIND(CHAR(160),SUBSTITUTE($U115,\"}\",CHAR(160),GB$1))-FIND(CHAR(160),SUBSTITUTE($U115,\"{\",CHAR(160),GB$1))+1),\"\")","v":""},{"$f":"IFERROR(MID($U115,FIND(CHAR(160),SUBSTITUTE($U115,\"{\",CHAR(160),GC$1)),FIND(CHAR(160),SUBSTITUTE($U115,\"}\",CHAR(160),GC$1))-FIND(CHAR(160),SUBSTITUTE($U115,\"{\",CHAR(160),GC$1))+1),\"\")","v":""},{"$f":"IFERROR(MID($U115,FIND(CHAR(160),SUBSTITUTE($U115,\"{\",CHAR(160),GD$1)),FIND(CHAR(160),SUBSTITUTE($U115,\"}\",CHAR(160),GD$1))-FIND(CHAR(160),SUBSTITUTE($U115,\"{\",CHAR(160),GD$1))+1),\"\")","v":""},{"$f":"IFERROR(MID($U115,FIND(CHAR(160),SUBSTITUTE($U115,\"{\",CHAR(160),GE$1)),FIND(CHAR(160),SUBSTITUTE($U115,\"}\",CHAR(160),GE$1))-FIND(CHAR(160),SUBSTITUTE($U115,\"{\",CHAR(160),GE$1))+1),\"\")","v":""},{"$f":"IFERROR(MID($U115,FIND(CHAR(160),SUBSTITUTE($U115,\"{\",CHAR(160),GF$1)),FIND(CHAR(160),SUBSTITUTE($U115,\"}\",CHAR(160),GF$1))-FIND(CHAR(160),SUBSTITUTE($U115,\"{\",CHAR(160),GF$1))+1),\"\")","v":""},{"$f":"IFERROR(MID($V115,FIND(CHAR(160),SUBSTITUTE($V115,\"{\",CHAR(160),GG$1)),FIND(CHAR(160),SUBSTITUTE($V115,\"}\",CHAR(160),GG$1))-FIND(CHAR(160),SUBSTITUTE($V115,\"{\",CHAR(160),GG$1))+1),\"\")","v":""},{"$f":"IFERROR(MID($V115,FIND(CHAR(160),SUBSTITUTE($V115,\"{\",CHAR(160),GH$1)),FIND(CHAR(160),SUBSTITUTE($V115,\"}\",CHAR(160),GH$1))-FIND(CHAR(160),SUBSTITUTE($V115,\"{\",CHAR(160),GH$1))+1),\"\")","v":""},{"$f":"IFERROR(MID($V115,FIND(CHAR(160),SUBSTITUTE($V115,\"{\",CHAR(160),GI$1)),FIND(CHAR(160),SUBSTITUTE($V115,\"}\",CHAR(160),GI$1))-FIND(CHAR(160),SUBSTITUTE($V115,\"{\",CHAR(160),GI$1))+1),\"\")","v":""},{"$f":"IFERROR(MID($V115,FIND(CHAR(160),SUBSTITUTE($V115,\"{\",CHAR(160),GJ$1)),FIND(CHAR(160),SUBSTITUTE($V115,\"}\",CHAR(160),GJ$1))-FIND(CHAR(160),SUBSTITUTE($V115,\"{\",CHAR(160),GJ$1))+1),\"\")","v":""},{"$f":"IFERROR(MID($V115,FIND(CHAR(160),SUBSTITUTE($V115,\"{\",CHAR(160),GK$1)),FIND(CHAR(160),SUBSTITUTE($V115,\"}\",CHAR(160),GK$1))-FIND(CHAR(160),SUBSTITUTE($V115,\"{\",CHAR(160),GK$1))+1),\"\")","v":""},{"$f":"IFERROR(MID($V115,FIND(CHAR(160),SUBSTITUTE($V115,\"{\",CHAR(160),GL$1)),FIND(CHAR(160),SUBSTITUTE($V115,\"}\",CHAR(160),GL$1))-FIND(CHAR(160),SUBSTITUTE($V115,\"{\",CHAR(160),GL$1))+1),\"\")","v":""},{"$f":"IFERROR(MID($V115,FIND(CHAR(160),SUBSTITUTE($V115,\"{\",CHAR(160),GM$1)),FIND(CHAR(160),SUBSTITUTE($V115,\"}\",CHAR(160),GM$1))-FIND(CHAR(160),SUBSTITUTE($V115,\"{\",CHAR(160),GM$1))+1),\"\")","v":""},{"$f":"IFERROR(MID($V115,FIND(CHAR(160),SUBSTITUTE($V115,\"{\",CHAR(160),GN$1)),FIND(CHAR(160),SUBSTITUTE($V115,\"}\",CHAR(160),GN$1))-FIND(CHAR(160),SUBSTITUTE($V115,\"{\",CHAR(160),GN$1))+1),\"\")","v":""},{"$f":"IFERROR(MID($V115,FIND(CHAR(160),SUBSTITUTE($V115,\"{\",CHAR(160),GO$1)),FIND(CHAR(160),SUBSTITUTE($V115,\"}\",CHAR(160),GO$1))-FIND(CHAR(160),SUBSTITUTE($V115,\"{\",CHAR(160),GO$1))+1),\"\")","v":""},{"$f":"IFERROR(MID($V115,FIND(CHAR(160),SUBSTITUTE($V115,\"{\",CHAR(160),GP$1)),FIND(CHAR(160),SUBSTITUTE($V115,\"}\",CHAR(160),GP$1))-FIND(CHAR(160),SUBSTITUTE($V115,\"{\",CHAR(160),GP$1))+1),\"\")","v":""},{"$f":"IFERROR(MID($W115,FIND(CHAR(160),SUBSTITUTE($W115,\"{\",CHAR(160),GQ$1)),FIND(CHAR(160),SUBSTITUTE($W115,\"}\",CHAR(160),GQ$1))-FIND(CHAR(160),SUBSTITUTE($W115,\"{\",CHAR(160),GQ$1))+1),\"\")","v":"{Capacity (MBTUH)}"},{"$f":"IFERROR(MID($W115,FIND(CHAR(160),SUBSTITUTE($W115,\"{\",CHAR(160),GR$1)),FIND(CHAR(160),SUBSTITUTE($W115,\"}\",CHAR(160),GR$1))-FIND(CHAR(160),SUBSTITUTE($W115,\"{\",CHAR(160),GR$1))+1),\"\")","v":"{Economizer Type}"},{"$f":"IFERROR(MID($W115,FIND(CHAR(160),SUBSTITUTE($W115,\"{\",CHAR(160),GS$1)),FIND(CHAR(160),SUBSTITUTE($W115,\"}\",CHAR(160),GS$1))-FIND(CHAR(160),SUBSTITUTE($W115,\"{\",CHAR(160),GS$1))+1),\"\")","v":""},{"$f":"IFERROR(MID($W115,FIND(CHAR(160),SUBSTITUTE($W115,\"{\",CHAR(160),GT$1)),FIND(CHAR(160),SUBSTITUTE($W115,\"}\",CHAR(160),GT$1))-FIND(CHAR(160),SUBSTITUTE($W115,\"{\",CHAR(160),GT$1))+1),\"\")","v":""},{"$f":"IFERROR(MID($W115,FIND(CHAR(160),SUBSTITUTE($W115,\"{\",CHAR(160),GU$1)),FIND(CHAR(160),SUBSTITUTE($W115,\"}\",CHAR(160),GU$1))-FIND(CHAR(160),SUBSTITUTE($W115,\"{\",CHAR(160),GU$1))+1),\"\")","v":""},{"$f":"IFERROR(MID($W115,FIND(CHAR(160),SUBSTITUTE($W115,\"{\",CHAR(160),GV$1)),FIND(CHAR(160),SUBSTITUTE($W115,\"}\",CHAR(160),GV$1))-FIND(CHAR(160),SUBSTITUTE($W115,\"{\",CHAR(160),GV$1))+1),\"\")","v":""},{"$f":"IFERROR(MID($W115,FIND(CHAR(160),SUBSTITUTE($W115,\"{\",CHAR(160),GW$1)),FIND(CHAR(160),SUBSTITUTE($W115,\"}\",CHAR(160),GW$1))-FIND(CHAR(160),SUBSTITUTE($W115,\"{\",CHAR(160),GW$1))+1),\"\")","v":""},{"$f":"IFERROR(MID($W115,FIND(CHAR(160),SUBSTITUTE($W115,\"{\",CHAR(160),GX$1)),FIND(CHAR(160),SUBSTITUTE($W115,\"}\",CHAR(160),GX$1))-FIND(CHAR(160),SUBSTITUTE($W115,\"{\",CHAR(160),GX$1))+1),\"\")","v":""},{"$f":"IFERROR(MID($W115,FIND(CHAR(160),SUBSTITUTE($W115,\"{\",CHAR(160),GY$1)),FIND(CHAR(160),SUBSTITUTE($W115,\"}\",CHAR(160),GY$1))-FIND(CHAR(160),SUBSTITUTE($W115,\"{\",CHAR(160),GY$1))+1),\"\")","v":"{Existing Fuel}"},{"$f":"IFERROR(MID($W115,FIND(CHAR(160),SUBSTITUTE($W115,\"{\",CHAR(160),GZ$1)),FIND(CHAR(160),SUBSTITUTE($W115,\"}\",CHAR(160),GZ$1))-FIND(CHAR(160),SUBSTITUTE($W115,\"{\",CHAR(160),GZ$1))+1),\"\")","v":"{Measure:Quantity}"},{"$f":"IFERROR(MID($X115,FIND(CHAR(160),SUBSTITUTE($X115,\"{\",CHAR(160),HA$1)),FIND(CHAR(160),SUBSTITUTE($X115,\"}\",CHAR(160),HA$1))-FIND(CHAR(160),SUBSTITUTE($X115,\"{\",CHAR(160),HA$1))+1),\"\")","v":"{Capacity (MBTUH)}"},{"$f":"IFERROR(MID($X115,FIND(CHAR(160),SUBSTITUTE($X115,\"{\",CHAR(160),HB$1)),FIND(CHAR(160),SUBSTITUTE($X115,\"}\",CHAR(160),HB$1))-FIND(CHAR(160),SUBSTITUTE($X115,\"{\",CHAR(160),HB$1))+1),\"\")","v":"{Economizer Type}"},{"$f":"IFERROR(MID($X115,FIND(CHAR(160),SUBSTITUTE($X115,\"{\",CHAR(160),HC$1)),FIND(CHAR(160),SUBSTITUTE($X115,\"}\",CHAR(160),HC$1))-FIND(CHAR(160),SUBSTITUTE($X115,\"{\",CHAR(160),HC$1))+1),\"\")","v":""},{"$f":"IFERROR(MID($X115,FIND(CHAR(160),SUBSTITUTE($X115,\"{\",CHAR(160),HD$1)),FIND(CHAR(160),SUBSTITUTE($X115,\"}\",CHAR(160),HD$1))-FIND(CHAR(160),SUBSTITUTE($X115,\"{\",CHAR(160),HD$1))+1),\"\")","v":""},{"$f":"IFERROR(MID($X115,FIND(CHAR(160),SUBSTITUTE($X115,\"{\",CHAR(160),HE$1)),FIND(CHAR(160),SUBSTITUTE($X115,\"}\",CHAR(160),HE$1))-FIND(CHAR(160),SUBSTITUTE($X115,\"{\",CHAR(160),HE$1))+1),\"\")","v":""},{"$f":"IFERROR(MID($X115,FIND(CHAR(160),SUBSTITUTE($X115,\"{\",CHAR(160),HF$1)),FIND(CHAR(160),SUBSTITUTE($X115,\"}\",CHAR(160),HF$1))-FIND(CHAR(160),SUBSTITUTE($X115,\"{\",CHAR(160),HF$1))+1),\"\")","v":""},{"$f":"IFERROR(MID($X115,FIND(CHAR(160),SUBSTITUTE($X115,\"{\",CHAR(160),HG$1)),FIND(CHAR(160),SUBSTITUTE($X115,\"}\",CHAR(160),HG$1))-FIND(CHAR(160),SUBSTITUTE($X115,\"{\",CHAR(160),HG$1))+1),\"\")","v":""},{"$f":"IFERROR(MID($X115,FIND(CHAR(160),SUBSTITUTE($X115,\"{\",CHAR(160),HH$1)),FIND(CHAR(160),SUBSTITUTE($X115,\"}\",CHAR(160),HH$1))-FIND(CHAR(160),SUBSTITUTE($X115,\"{\",CHAR(160),HH$1))+1),\"\")","v":""},{"$f":"IFERROR(MID($X115,FIND(CHAR(160),SUBSTITUTE($X115,\"{\",CHAR(160),HI$1)),FIND(CHAR(160),SUBSTITUTE($X115,\"}\",CHAR(160),HI$1))-FIND(CHAR(160),SUBSTITUTE($X115,\"{\",CHAR(160),HI$1))+1),\"\")","v":"{Existing Fuel}"},{"$f":"IFERROR(MID($X115,FIND(CHAR(160),SUBSTITUTE($X115,\"{\",CHAR(160),HJ$1)),FIND(CHAR(160),SUBSTITUTE($X115,\"}\",CHAR(160),HJ$1))-FIND(CHAR(160),SUBSTITUTE($X115,\"{\",CHAR(160),HJ$1))+1),\"\")","v":"{Measure:Quantity}"},{"$f":"IFERROR(MID($Y115,FIND(CHAR(160),SUBSTITUTE($Y115,\"{\",CHAR(160),HK$1)),FIND(CHAR(160),SUBSTITUTE($Y115,\"}\",CHAR(160),HK$1))-FIND(CHAR(160),SUBSTITUTE($Y115,\"{\",CHAR(160),HK$1))+1),\"\")","v":""},{"$f":"IFERROR(MID($Y115,FIND(CHAR(160),SUBSTITUTE($Y115,\"{\",CHAR(160),HL$1)),FIND(CHAR(160),SUBSTITUTE($Y115,\"}\",CHAR(160),HL$1))-FIND(CHAR(160),SUBSTITUTE($Y115,\"{\",CHAR(160),HL$1))+1),\"\")","v":""},{"$f":"IFERROR(MID($Y115,FIND(CHAR(160),SUBSTITUTE($Y115,\"{\",CHAR(160),HM$1)),FIND(CHAR(160),SUBSTITUTE($Y115,\"}\",CHAR(160),HM$1))-FIND(CHAR(160),SUBSTITUTE($Y115,\"{\",CHAR(160),HM$1))+1),\"\")","v":""},{"$f":"IFERROR(MID($Y115,FIND(CHAR(160),SUBSTITUTE($Y115,\"{\",CHAR(160),HN$1)),FIND(CHAR(160),SUBSTITUTE($Y115,\"}\",CHAR(160),HN$1))-FIND(CHAR(160),SUBSTITUTE($Y115,\"{\",CHAR(160),HN$1))+1),\"\")","v":""},{"$f":"IFERROR(MID($Y115,FIND(CHAR(160),SUBSTITUTE($Y115,\"{\",CHAR(160),HO$1)),FIND(CHAR(160),SUBSTITUTE($Y115,\"}\",CHAR(160),HO$1))-FIND(CHAR(160),SUBSTITUTE($Y115,\"{\",CHAR(160),HO$1))+1),\"\")","v":""},{"$f":"IFERROR(MID($Y115,FIND(CHAR(160),SUBSTITUTE($Y115,\"{\",CHAR(160),HP$1)),FIND(CHAR(160),SUBSTITUTE($Y115,\"}\",CHAR(160),HP$1))-FIND(CHAR(160),SUBSTITUTE($Y115,\"{\",CHAR(160),HP$1))+1),\"\")","v":""},{"$f":"IFERROR(MID($Y115,FIND(CHAR(160),SUBSTITUTE($Y115,\"{\",CHAR(160),HQ$1)),FIND(CHAR(160),SUBSTITUTE($Y115,\"}\",CHAR(160),HQ$1))-FIND(CHAR(160),SUBSTITUTE($Y115,\"{\",CHAR(160),HQ$1))+1),\"\")","v":""},{"$f":"IFERROR(MID($Y115,FIND(CHAR(160),SUBSTITUTE($Y115,\"{\",CHAR(160),HR$1)),FIND(CHAR(160),SUBSTITUTE($Y115,\"}\",CHAR(160),HR$1))-FIND(CHAR(160),SUBSTITUTE($Y115,\"{\",CHAR(160),HR$1))+1),\"\")","v":""},{"$f":"IFERROR(MID($Y115,FIND(CHAR(160),SUBSTITUTE($Y115,\"{\",CHAR(160),HS$1)),FIND(CHAR(160),SUBSTITUTE($Y115,\"}\",CHAR(160),HS$1))-FIND(CHAR(160),SUBSTITUTE($Y115,\"{\",CHAR(160),HS$1))+1),\"\")","v":""},{"$f":"IFERROR(MID($Y115,FIND(CHAR(160),SUBSTITUTE($Y115,\"{\",CHAR(160),HT$1)),FIND(CHAR(160),SUBSTITUTE($Y115,\"}\",CHAR(160),HT$1))-FIND(CHAR(160),SUBSTITUTE($Y115,\"{\",CHAR(160),HT$1))+1),\"\")","v":""},{"$f":"IFERROR(MID($Z115,FIND(CHAR(160),SUBSTITUTE($Z115,\"{\",CHAR(160),HU$1)),FIND(CHAR(160),SUBSTITUTE($Z115,\"}\",CHAR(160),HU$1))-FIND(CHAR(160),SUBSTITUTE($Z115,\"{\",CHAR(160),HU$1))+1),\"\")","v":""},{"$f":"IFERROR(MID($Z115,FIND(CHAR(160),SUBSTITUTE($Z115,\"{\",CHAR(160),HV$1)),FIND(CHAR(160),SUBSTITUTE($Z115,\"}\",CHAR(160),HV$1))-FIND(CHAR(160),SUBSTITUTE($Z115,\"{\",CHAR(160),HV$1))+1),\"\")","v":""},{"$f":"IFERROR(MID($Z115,FIND(CHAR(160),SUBSTITUTE($Z115,\"{\",CHAR(160),HW$1)),FIND(CHAR(160),SUBSTITUTE($Z115,\"}\",CHAR(160),HW$1))-FIND(CHAR(160),SUBSTITUTE($Z115,\"{\",CHAR(160),HW$1))+1),\"\")","v":""},{"$f":"IFERROR(MID($Z115,FIND(CHAR(160),SUBSTITUTE($Z115,\"{\",CHAR(160),HX$1)),FIND(CHAR(160),SUBSTITUTE($Z115,\"}\",CHAR(160),HX$1))-FIND(CHAR(160),SUBSTITUTE($Z115,\"{\",CHAR(160),HX$1))+1),\"\")","v":""},{"$f":"IFERROR(MID($Z115,FIND(CHAR(160),SUBSTITUTE($Z115,\"{\",CHAR(160),HY$1)),FIND(CHAR(160),SUBSTITUTE($Z115,\"}\",CHAR(160),HY$1))-FIND(CHAR(160),SUBSTITUTE($Z115,\"{\",CHAR(160),HY$1))+1),\"\")","v":""},{"$f":"IFERROR(MID($Z115,FIND(CHAR(160),SUBSTITUTE($Z115,\"{\",CHAR(160),HZ$1)),FIND(CHAR(160),SUBSTITUTE($Z115,\"}\",CHAR(160),HZ$1))-FIND(CHAR(160),SUBSTITUTE($Z115,\"{\",CHAR(160),HZ$1))+1),\"\")","v":""},{"$f":"IFERROR(MID($Z115,FIND(CHAR(160),SUBSTITUTE($Z115,\"{\",CHAR(160),IA$1)),FIND(CHAR(160),SUBSTITUTE($Z115,\"}\",CHAR(160),IA$1))-FIND(CHAR(160),SUBSTITUTE($Z115,\"{\",CHAR(160),IA$1))+1),\"\")","v":""},{"$f":"IFERROR(MID($Z115,FIND(CHAR(160),SUBSTITUTE($Z115,\"{\",CHAR(160),IB$1)),FIND(CHAR(160),SUBSTITUTE($Z115,\"}\",CHAR(160),IB$1))-FIND(CHAR(160),SUBSTITUTE($Z115,\"{\",CHAR(160),IB$1))+1),\"\")","v":""},{"$f":"IFERROR(MID($Z115,FIND(CHAR(160),SUBSTITUTE($Z115,\"{\",CHAR(160),IC$1)),FIND(CHAR(160),SUBSTITUTE($Z115,\"}\",CHAR(160),IC$1))-FIND(CHAR(160),SUBSTITUTE($Z115,\"{\",CHAR(160),IC$1))+1),\"\")","v":""},{"$f":"IFERROR(MID($Z115,FIND(CHAR(160),SUBSTITUTE($Z115,\"{\",CHAR(160),ID$1)),FIND(CHAR(160),SUBSTITUTE($Z115,\"}\",CHAR(160),ID$1))-FIND(CHAR(160),SUBSTITUTE($Z115,\"{\",CHAR(160),ID$1))+1),\"\")","v":""},{"$f":"IFERROR(MID($AA115,FIND(CHAR(160),SUBSTITUTE($AA115,\"{\",CHAR(160),IE$1)),FIND(CHAR(160),SUBSTITUTE($AA115,\"}\",CHAR(160),IE$1))-FIND(CHAR(160),SUBSTITUTE($AA115,\"{\",CHAR(160),IE$1))+1),\"\")","v":""},{"$f":"IFERROR(MID($AA115,FIND(CHAR(160),SUBSTITUTE($AA115,\"{\",CHAR(160),IF$1)),FIND(CHAR(160),SUBSTITUTE($AA115,\"}\",CHAR(160),IF$1))-FIND(CHAR(160),SUBSTITUTE($AA115,\"{\",CHAR(160),IF$1))+1),\"\")","v":""},{"$f":"IFERROR(MID($AA115,FIND(CHAR(160),SUBSTITUTE($AA115,\"{\",CHAR(160),IG$1)),FIND(CHAR(160),SUBSTITUTE($AA115,\"}\",CHAR(160),IG$1))-FIND(CHAR(160),SUBSTITUTE($AA115,\"{\",CHAR(160),IG$1))+1),\"\")","v":""},{"$f":"IFERROR(MID($AA115,FIND(CHAR(160),SUBSTITUTE($AA115,\"{\",CHAR(160),IH$1)),FIND(CHAR(160),SUBSTITUTE($AA115,\"}\",CHAR(160),IH$1))-FIND(CHAR(160),SUBSTITUTE($AA115,\"{\",CHAR(160),IH$1))+1),\"\")","v":""},{"$f":"IFERROR(MID($AA115,FIND(CHAR(160),SUBSTITUTE($AA115,\"{\",CHAR(160),II$1)),FIND(CHAR(160),SUBSTITUTE($AA115,\"}\",CHAR(160),II$1))-FIND(CHAR(160),SUBSTITUTE($AA115,\"{\",CHAR(160),II$1))+1),\"\")","v":""},{"$f":"IFERROR(MID($AA115,FIND(CHAR(160),SUBSTITUTE($AA115,\"{\",CHAR(160),IJ$1)),FIND(CHAR(160),SUBSTITUTE($AA115,\"}\",CHAR(160),IJ$1))-FIND(CHAR(160),SUBSTITUTE($AA115,\"{\",CHAR(160),IJ$1))+1),\"\")","v":""},{"$f":"IFERROR(MID($AA115,FIND(CHAR(160),SUBSTITUTE($AA115,\"{\",CHAR(160),IK$1)),FIND(CHAR(160),SUBSTITUTE($AA115,\"}\",CHAR(160),IK$1))-FIND(CHAR(160),SUBSTITUTE($AA115,\"{\",CHAR(160),IK$1))+1),\"\")","v":""},{"$f":"IFERROR(MID($AA115,FIND(CHAR(160),SUBSTITUTE($AA115,\"{\",CHAR(160),IL$1)),FIND(CHAR(160),SUBSTITUTE($AA115,\"}\",CHAR(160),IL$1))-FIND(CHAR(160),SUBSTITUTE($AA115,\"{\",CHAR(160),IL$1))+1),\"\")","v":""},{"$f":"IFERROR(MID($AA115,FIND(CHAR(160),SUBSTITUTE($AA115,\"{\",CHAR(160),IM$1)),FIND(CHAR(160),SUBSTITUTE($AA115,\"}\",CHAR(160),IM$1))-FIND(CHAR(160),SUBSTITUTE($AA115,\"{\",CHAR(160),IM$1))+1),\"\")","v":""},{"$f":"IFERROR(MID($AA115,FIND(CHAR(160),SUBSTITUTE($AA115,\"{\",CHAR(160),IN$1)),FIND(CHAR(160),SUBSTITUTE($AA115,\"}\",CHAR(160),IN$1))-FIND(CHAR(160),SUBSTITUTE($AA115,\"{\",CHAR(160),IN$1))+1),\"\")","v":""},{"$f":"IFERROR(MID($AB115,FIND(CHAR(160),SUBSTITUTE($AB115,\"{\",CHAR(160),IO$1)),FIND(CHAR(160),SUBSTITUTE($AB115,\"}\",CHAR(160),IO$1))-FIND(CHAR(160),SUBSTITUTE($AB115,\"{\",CHAR(160),IO$1))+1),\"\")","v":""},{"$f":"IFERROR(MID($AB115,FIND(CHAR(160),SUBSTITUTE($AB115,\"{\",CHAR(160),IP$1)),FIND(CHAR(160),SUBSTITUTE($AB115,\"}\",CHAR(160),IP$1))-FIND(CHAR(160),SUBSTITUTE($AB115,\"{\",CHAR(160),IP$1))+1),\"\")","v":""},{"$f":"IFERROR(MID($AB115,FIND(CHAR(160),SUBSTITUTE($AB115,\"{\",CHAR(160),IQ$1)),FIND(CHAR(160),SUBSTITUTE($AB115,\"}\",CHAR(160),IQ$1))-FIND(CHAR(160),SUBSTITUTE($AB115,\"{\",CHAR(160),IQ$1))+1),\"\")","v":""},{"$f":"IFERROR(MID($AB115,FIND(CHAR(160),SUBSTITUTE($AB115,\"{\",CHAR(160),IR$1)),FIND(CHAR(160),SUBSTITUTE($AB115,\"}\",CHAR(160),IR$1))-FIND(CHAR(160),SUBSTITUTE($AB115,\"{\",CHAR(160),IR$1))+1),\"\")","v":""},{"$f":"IFERROR(MID($AB115,FIND(CHAR(160),SUBSTITUTE($AB115,\"{\",CHAR(160),IS$1)),FIND(CHAR(160),SUBSTITUTE($AB115,\"}\",CHAR(160),IS$1))-FIND(CHAR(160),SUBSTITUTE($AB115,\"{\",CHAR(160),IS$1))+1),\"\")","v":""},{"$f":"IFERROR(MID($AB115,FIND(CHAR(160),SUBSTITUTE($AB115,\"{\",CHAR(160),IT$1)),FIND(CHAR(160),SUBSTITUTE($AB115,\"}\",CHAR(160),IT$1))-FIND(CHAR(160),SUBSTITUTE($AB115,\"{\",CHAR(160),IT$1))+1),\"\")","v":""},{"$f":"IFERROR(MID($AB115,FIND(CHAR(160),SUBSTITUTE($AB115,\"{\",CHAR(160),IU$1)),FIND(CHAR(160),SUBSTITUTE($AB115,\"}\",CHAR(160),IU$1))-FIND(CHAR(160),SUBSTITUTE($AB115,\"{\",CHAR(160),IU$1))+1),\"\")","v":""},{"$f":"IFERROR(MID($AB115,FIND(CHAR(160),SUBSTITUTE($AB115,\"{\",CHAR(160),IV$1)),FIND(CHAR(160),SUBSTITUTE($AB115,\"}\",CHAR(160),IV$1))-FIND(CHAR(160),SUBSTITUTE($AB115,\"{\",CHAR(160),IV$1))+1),\"\")","v":""},{"$f":"IFERROR(MID($AB115,FIND(CHAR(160),SUBSTITUTE($AB115,\"{\",CHAR(160),IW$1)),FIND(CHAR(160),SUBSTITUTE($AB115,\"}\",CHAR(160),IW$1))-FIND(CHAR(160),SUBSTITUTE($AB115,\"{\",CHAR(160),IW$1))+1),\"\")","v":""},{"$f":"IFERROR(MID($AB115,FIND(CHAR(160),SUBSTITUTE($AB115,\"{\",CHAR(160),IX$1)),FIND(CHAR(160),SUBSTITUTE($AB115,\"}\",CHAR(160),IX$1))-FIND(CHAR(160),SUBSTITUTE($AB115,\"{\",CHAR(160),IX$1))+1),\"\")","v":""},null,{"$f":"10-COUNTIF(DU115:ED115,\"\")","v":4}]
["C&I HVAC - Propane and Compressed NG","G9 Gas-fired condensing hot water boiler >500 MBtu/h and <=1000 MBtu/h","G9","2021-07-01","2022-06-30","Calculated","{Measure:Quantity}*({Equipment Capacity MBtu/h}*3.47+1982)",0,"Calculated","{Measure:Quantity}*5000",0,"2021-05-25","2022-06-30","Calculated",null,null,null,null,null,null,null,null,"if({Fuel}<>1,0,{Measure:Quantity} * ({Design Load (Btu/h)}/({Indoor Design Temp (oF)}-{Outdoor Design Temp (oF)})*186648/1000000) * (100/80-100/{Unit Efficiency - AFUE or Thermal Efficiency})*10)","if({Fuel}<>2,0,{Measure:Quantity} * ({Design Load (Btu/h)}/({Indoor Design Temp (oF)}-{Outdoor Design Temp (oF)})*186648/1000000) * (100/80-100/{Unit Efficiency - AFUE or Thermal Efficiency}))",null,null,null,null,"2021-05-25","2022-06-30",24,0,0,1,0,0,0,1,1,0,0.52,1.6E-2,null,{"$f":"DU116","v":"{Measure:Quantity}"},1,{"$f":"DV116","v":"{Equipment Capacity MBtu/h}"},695,{"$f":"DW116","v":"{Design Load (Btu/h)}"},2,{"$f":"DX116","v":"{Indoor Design Temp (oF)}"},997500,{"$f":"DY116","v":"{Outdoor Design Temp (oF)}"},71,{"$f":"DZ116","v":"{Unit Efficiency - AFUE or Thermal Efficiency}"},-2,{"$f":"EA116","v":"{Fuel}"},96.9,{"$f":"EB116","v":""},null,{"$f":"EC116","v":""},null,{"$f":"ED116","v":""},null,0,0,0,0,0,0,0,0,{"$f":"IF(AW116<>1,0,AS116 * (AY116/(BA116-BC116)*186648/1000000) * (100/80-100/BE116)*10)","v":0},{"$f":"IF(AW116<>2,0,AS116 * (AY116/(BA116-BC116)*186648/1000000) * (100/80-100/BE116))","v":556.01476631748631},0,0,0,0,null,"Res","RGGI DR",{"$f":"Benefits(BL116,BR116,BS116,BT116,BU116,BV116,BW116,BX116,BY116,BZ116,AE116,AH116,AI116,AJ116,AK116,AL116,AM116,AN116,AO116,AP116,CA116,CB116)","v":0},0,0,0,0,462655.02850497421,0,0,0,{"$f":"SUMPRODUCT(CC116:CK116,--(CC116:CK116>0))","v":462655.02850497421},{"$f":"-SUMPRODUCT(CC116:CK116,--(CC116:CK116<0))","v":0},null,{"$f":"AS116*(AU116*3.47+1982)","v":4393.6499999999996},null,null,{"$f":"CM116+CO116","v":4393.6499999999996},{"$f":"IF(NetOrGross=\"Net\",(1-AO116+AP116),1)","v":1},{"$f":"(SUMPRODUCT(CC116:CJ116,--(CC116:CJ116>0))+CN116)*CS116/((-SUMPRODUCT(CC116:CJ116,--(CC116:CJ116<0))+MAX(CO116,CV116)+CP116+CQ116)*CS116+IF(FRIncentives=\"Yes\",CV116*(1-CS116),0))","v":92.531005700994839},1,{"$f":"AS116*5000","v":5000},null,"RGGI","y",null,{"$f":"IF(F116=\"Manual Entry\",\"Manual\",IF(G116=\"\",0,\"X=\"&SUBSTITUTE(SUBSTITUTE(SUBSTITUTE(SUBSTITUTE(SUBSTITUTE(SUBSTITUTE(SUBSTITUTE(SUBSTITUTE(SUBSTITUTE(SUBSTITUTE(SUBSTITUTE(SUBSTITUTE(G116,$ED116,$ED$2&ROW($ED116)),$EC116,$EC$2&ROW($EC116)),$EB116,$EB$2&ROW($EB116)),$EA116,$EA$2&ROW($EA116)),$DZ116,$DZ$2&ROW($DZ116)),$DY116,$DY$2&ROW($DY116)),$DX116,$DX$2&ROW($DX116)),$DW116,$DW$2&ROW($DW116)),$DV116,$DV$2&ROW($DV116)),$DU116,$DU$2&ROW($DU116)),$DT116,$DT$2&ROW($DT116)),$DS116,$DS$2&ROW($DS116))))","v":"X=AS116*(AU116*3.47+1982)"},{"$f":"IF(I116=\"Manual Entry\",\"Manual\",IF(J116=\"\",0,\"X=\"&SUBSTITUTE(SUBSTITUTE(SUBSTITUTE(SUBSTITUTE(SUBSTITUTE(SUBSTITUTE(SUBSTITUTE(SUBSTITUTE(SUBSTITUTE(SUBSTITUTE(SUBSTITUTE(SUBSTITUTE(J116,$ED116,$ED$2&ROW($ED116)),$EC116,$EC$2&ROW($EC116)),$EB116,$EB$2&ROW($EB116)),$EA116,$EA$2&ROW($EA116)),$DZ116,$DZ$2&ROW($DZ116)),$DY116,$DY$2&ROW($DY116)),$DX116,$DX$2&ROW($DX116)),$DW116,$DW$2&ROW($DW116)),$DV116,$DV$2&ROW($DV116)),$DU116,$DU$2&ROW($DU116)),$DT116,$DT$2&ROW($DT116)),$DS116,$DS$2&ROW($DS116))))","v":"X=AS116*5000"},{"$f":"IF(O116=\"\",0,\"X=\"&SUBSTITUTE(SUBSTITUTE(SUBSTITUTE(SUBSTITUTE(SUBSTITUTE(SUBSTITUTE(SUBSTITUTE(SUBSTITUTE(SUBSTITUTE(SUBSTITUTE(SUBSTITUTE(SUBSTITUTE(O116,$ED116,$ED$2&ROW($ED116)),$EC116,$EC$2&ROW($EC116)),$EB116,$EB$2&ROW($EB116)),$EA116,$EA$2&ROW($EA116)),$DZ116,$DZ$2&ROW($DZ116)),$DY116,$DY$2&ROW($DY116)),$DX116,$DX$2&ROW($DX116)),$DW116,$DW$2&ROW($DW116)),$DV116,$DV$2&ROW($DV116)),$DU116,$DU$2&ROW($DU116)),$DT116,$DT$2&ROW($DT116)),$DS116,$DS$2&ROW($DS116)))","v":0},{"$f":"IF(P116=\"\",0,\"X=\"&SUBSTITUTE(SUBSTITUTE(SUBSTITUTE(SUBSTITUTE(SUBSTITUTE(SUBSTITUTE(SUBSTITUTE(SUBSTITUTE(SUBSTITUTE(SUBSTITUTE(SUBSTITUTE(SUBSTITUTE(P116,$ED116,$ED$2&ROW($ED116)),$EC116,$EC$2&ROW($EC116)),$EB116,$EB$2&ROW($EB116)),$EA116,$EA$2&ROW($EA116)),$DZ116,$DZ$2&ROW($DZ116)),$DY116,$DY$2&ROW($DY116)),$DX116,$DX$2&ROW($DX116)),$DW116,$DW$2&ROW($DW116)),$DV116,$DV$2&ROW($DV116)),$DU116,$DU$2&ROW($DU116)),$DT116,$DT$2&ROW($DT116)),$DS116,$DS$2&ROW($DS116)))","v":0},{"$f":"IF(Q116=\"\",0,\"X=\"&SUBSTITUTE(SUBSTITUTE(SUBSTITUTE(SUBSTITUTE(SUBSTITUTE(SUBSTITUTE(SUBSTITUTE(SUBSTITUTE(SUBSTITUTE(SUBSTITUTE(SUBSTITUTE(SUBSTITUTE(Q116,$ED116,$ED$2&ROW($ED116)),$EC116,$EC$2&ROW($EC116)),$EB116,$EB$2&ROW($EB116)),$EA116,$EA$2&ROW($EA116)),$DZ116,$DZ$2&ROW($DZ116)),$DY116,$DY$2&ROW($DY116)),$DX116,$DX$2&ROW($DX116)),$DW116,$DW$2&ROW($DW116)),$DV116,$DV$2&ROW($DV116)),$DU116,$DU$2&ROW($DU116)),$DT116,$DT$2&ROW($DT116)),$DS116,$DS$2&ROW($DS116)))","v":0},{"$f":"IF(R116=\"\",0,\"X=\"&SUBSTITUTE(SUBSTITUTE(SUBSTITUTE(SUBSTITUTE(SUBSTITUTE(SUBSTITUTE(SUBSTITUTE(SUBSTITUTE(SUBSTITUTE(SUBSTITUTE(SUBSTITUTE(SUBSTITUTE(R116,$ED116,$ED$2&ROW($ED116)),$EC116,$EC$2&ROW($EC116)),$EB116,$EB$2&ROW($EB116)),$EA116,$EA$2&ROW($EA116)),$DZ116,$DZ$2&ROW($DZ116)),$DY116,$DY$2&ROW($DY116)),$DX116,$DX$2&ROW($DX116)),$DW116,$DW$2&ROW($DW116)),$DV116,$DV$2&ROW($DV116)),$DU116,$DU$2&ROW($DU116)),$DT116,$DT$2&ROW($DT116)),$DS116,$DS$2&ROW($DS116)))","v":0},{"$f":"IF(S116=\"\",0,\"X=\"&SUBSTITUTE(SUBSTITUTE(SUBSTITUTE(SUBSTITUTE(SUBSTITUTE(SUBSTITUTE(SUBSTITUTE(SUBSTITUTE(SUBSTITUTE(SUBSTITUTE(SUBSTITUTE(SUBSTITUTE(S116,$ED116,$ED$2&ROW($ED116)),$EC116,$EC$2&ROW($EC116)),$EB116,$EB$2&ROW($EB116)),$EA116,$EA$2&ROW($EA116)),$DZ116,$DZ$2&ROW($DZ116)),$DY116,$DY$2&ROW($DY116)),$DX116,$DX$2&ROW($DX116)),$DW116,$DW$2&ROW($DW116)),$DV116,$DV$2&ROW($DV116)),$DU116,$DU$2&ROW($DU116)),$DT116,$DT$2&ROW($DT116)),$DS116,$DS$2&ROW($DS116)))","v":0},{"$f":"IF(T116=\"\",0,\"X=\"&SUBSTITUTE(SUBSTITUTE(SUBSTITUTE(SUBSTITUTE(SUBSTITUTE(SUBSTITUTE(SUBSTITUTE(SUBSTITUTE(SUBSTITUTE(SUBSTITUTE(SUBSTITUTE(SUBSTITUTE(T116,$ED116,$ED$2&ROW($ED116)),$EC116,$EC$2&ROW($EC116)),$EB116,$EB$2&ROW($EB116)),$EA116,$EA$2&ROW($EA116)),$DZ116,$DZ$2&ROW($DZ116)),$DY116,$DY$2&ROW($DY116)),$DX116,$DX$2&ROW($DX116)),$DW116,$DW$2&ROW($DW116)),$DV116,$DV$2&ROW($DV116)),$DU116,$DU$2&ROW($DU116)),$DT116,$DT$2&ROW($DT116)),$DS116,$DS$2&ROW($DS116)))","v":0},{"$f":"IF(U116=\"\",0,\"X=\"&SUBSTITUTE(SUBSTITUTE(SUBSTITUTE(SUBSTITUTE(SUBSTITUTE(SUBSTITUTE(SUBSTITUTE(SUBSTITUTE(SUBSTITUTE(SUBSTITUTE(SUBSTITUTE(SUBSTITUTE(U116,$ED116,$ED$2&ROW($ED116)),$EC116,$EC$2&ROW($EC116)),$EB116,$EB$2&ROW($EB116)),$EA116,$EA$2&ROW($EA116)),$DZ116,$DZ$2&ROW($DZ116)),$DY116,$DY$2&ROW($DY116)),$DX116,$DX$2&ROW($DX116)),$DW116,$DW$2&ROW($DW116)),$DV116,$DV$2&ROW($DV116)),$DU116,$DU$2&ROW($DU116)),$DT116,$DT$2&ROW($DT116)),$DS116,$DS$2&ROW($DS116)))","v":0},{"$f":"IF(V116=\"\",0,\"X=\"&SUBSTITUTE(SUBSTITUTE(SUBSTITUTE(SUBSTITUTE(SUBSTITUTE(SUBSTITUTE(SUBSTITUTE(SUBSTITUTE(SUBSTITUTE(SUBSTITUTE(SUBSTITUTE(SUBSTITUTE(V116,$ED116,$ED$2&ROW($ED116)),$EC116,$EC$2&ROW($EC116)),$EB116,$EB$2&ROW($EB116)),$EA116,$EA$2&ROW($EA116)),$DZ116,$DZ$2&ROW($DZ116)),$DY116,$DY$2&ROW($DY116)),$DX116,$DX$2&ROW($DX116)),$DW116,$DW$2&ROW($DW116)),$DV116,$DV$2&ROW($DV116)),$DU116,$DU$2&ROW($DU116)),$DT116,$DT$2&ROW($DT116)),$DS116,$DS$2&ROW($DS116)))","v":0},{"$f":"IF(W116=\"\",0,\"X=\"&SUBSTITUTE(SUBSTITUTE(SUBSTITUTE(SUBSTITUTE(SUBSTITUTE(SUBSTITUTE(SUBSTITUTE(SUBSTITUTE(SUBSTITUTE(SUBSTITUTE(SUBSTITUTE(SUBSTITUTE(W116,$ED116,$ED$2&ROW($ED116)),$EC116,$EC$2&ROW($EC116)),$EB116,$EB$2&ROW($EB116)),$EA116,$EA$2&ROW($EA116)),$DZ116,$DZ$2&ROW($DZ116)),$DY116,$DY$2&ROW($DY116)),$DX116,$DX$2&ROW($DX116)),$DW116,$DW$2&ROW($DW116)),$DV116,$DV$2&ROW($DV116)),$DU116,$DU$2&ROW($DU116)),$DT116,$DT$2&ROW($DT116)),$DS116,$DS$2&ROW($DS116)))","v":"X=if(BE116<>1,0,AS116 * (AW116/(AY116-BA116)*186648/1000000) * (100/80-100/BC116)*10)"},{"$f":"IF(X116=\"\",0,\"X=\"&SUBSTITUTE(SUBSTITUTE(SUBSTITUTE(SUBSTITUTE(SUBSTITUTE(SUBSTITUTE(SUBSTITUTE(SUBSTITUTE(SUBSTITUTE(SUBSTITUTE(SUBSTITUTE(SUBSTITUTE(X116,$ED116,$ED$2&ROW($ED116)),$EC116,$EC$2&ROW($EC116)),$EB116,$EB$2&ROW($EB116)),$EA116,$EA$2&ROW($EA116)),$DZ116,$DZ$2&ROW($DZ116)),$DY116,$DY$2&ROW($DY116)),$DX116,$DX$2&ROW($DX116)),$DW116,$DW$2&ROW($DW116)),$DV116,$DV$2&ROW($DV116)),$DU116,$DU$2&ROW($DU116)),$DT116,$DT$2&ROW($DT116)),$DS116,$DS$2&ROW($DS116)))","v":"X=if(BE116<>2,0,AS116 * (AW116/(AY116-BA116)*186648/1000000) * (100/80-100/BC116))"},{"$f":"IF(Y116=\"\",0,\"X=\"&SUBSTITUTE(SUBSTITUTE(SUBSTITUTE(SUBSTITUTE(SUBSTITUTE(SUBSTITUTE(SUBSTITUTE(SUBSTITUTE(SUBSTITUTE(SUBSTITUTE(SUBSTITUTE(SUBSTITUTE(Y116,$ED116,$ED$2&ROW($ED116)),$EC116,$EC$2&ROW($EC116)),$EB116,$EB$2&ROW($EB116)),$EA116,$EA$2&ROW($EA116)),$DZ116,$DZ$2&ROW($DZ116)),$DY116,$DY$2&ROW($DY116)),$DX116,$DX$2&ROW($DX116)),$DW116,$DW$2&ROW($DW116)),$DV116,$DV$2&ROW($DV116)),$DU116,$DU$2&ROW($DU116)),$DT116,$DT$2&ROW($DT116)),$DS116,$DS$2&ROW($DS116)))","v":0},{"$f":"IF(Z116=\"\",0,\"X=\"&SUBSTITUTE(SUBSTITUTE(SUBSTITUTE(SUBSTITUTE(SUBSTITUTE(SUBSTITUTE(SUBSTITUTE(SUBSTITUTE(SUBSTITUTE(SUBSTITUTE(SUBSTITUTE(SUBSTITUTE(Z116,$ED116,$ED$2&ROW($ED116)),$EC116,$EC$2&ROW($EC116)),$EB116,$EB$2&ROW($EB116)),$EA116,$EA$2&ROW($EA116)),$DZ116,$DZ$2&ROW($DZ116)),$DY116,$DY$2&ROW($DY116)),$DX116,$DX$2&ROW($DX116)),$DW116,$DW$2&ROW($DW116)),$DV116,$DV$2&ROW($DV116)),$DU116,$DU$2&ROW($DU116)),$DT116,$DT$2&ROW($DT116)),$DS116,$DS$2&ROW($DS116)))","v":0},{"$f":"IF(AA116=\"\",0,\"X=\"&SUBSTITUTE(SUBSTITUTE(SUBSTITUTE(SUBSTITUTE(SUBSTITUTE(SUBSTITUTE(SUBSTITUTE(SUBSTITUTE(SUBSTITUTE(SUBSTITUTE(SUBSTITUTE(SUBSTITUTE(AA116,$ED116,$ED$2&ROW($ED116)),$EC116,$EC$2&ROW($EC116)),$EB116,$EB$2&ROW($EB116)),$EA116,$EA$2&ROW($EA116)),$DZ116,$DZ$2&ROW($DZ116)),$DY116,$DY$2&ROW($DY116)),$DX116,$DX$2&ROW($DX116)),$DW116,$DW$2&ROW($DW116)),$DV116,$DV$2&ROW($DV116)),$DU116,$DU$2&ROW($DU116)),$DT116,$DT$2&ROW($DT116)),$DS116,$DS$2&ROW($DS116)))","v":0},{"$f":"IF(AB116=\"\",0,\"X=\"&SUBSTITUTE(SUBSTITUTE(SUBSTITUTE(SUBSTITUTE(SUBSTITUTE(SUBSTITUTE(SUBSTITUTE(SUBSTITUTE(SUBSTITUTE(SUBSTITUTE(SUBSTITUTE(SUBSTITUTE(AB116,$ED116,$ED$2&ROW($ED116)),$EC116,$EC$2&ROW($EC116)),$EB116,$EB$2&ROW($EB116)),$EA116,$EA$2&ROW($EA116)),$DZ116,$DZ$2&ROW($DZ116)),$DY116,$DY$2&ROW($DY116)),$DX116,$DX$2&ROW($DX116)),$DW116,$DW$2&ROW($DW116)),$DV116,$DV$2&ROW($DV116)),$DU116,$DU$2&ROW($DU116)),$DT116,$DT$2&ROW($DT116)),$DS116,$DS$2&ROW($DS116)))","v":0},null,null,"{Factor:WinterCF}","{Factor:SummerCF}",{"$f":"IFERROR(INDEX($EG116:$IV116,MATCH(0,COUNTIF($DR116:DT116,$EG116:$IV116),0)),\"\")","v":"{Measure:Quantity}"},{"$f":"IFERROR(INDEX($EG116:$IV116,MATCH(0,COUNTIF($DR116:DU116,$EG116:$IV116),0)),\"\")","v":"{Equipment Capacity MBtu/h}"},{"$f":"IFERROR(INDEX($EG116:$IV116,MATCH(0,COUNTIF($DR116:DV116,$EG116:$IV116),0)),\"\")","v":"{Design Load (Btu/h)}"},{"$f":"IFERROR(INDEX($EG116:$IV116,MATCH(0,COUNTIF($DR116:DW116,$EG116:$IV116),0)),\"\")","v":"{Indoor Design Temp (oF)}"},{"$f":"IFERROR(INDEX($EG116:$IV116,MATCH(0,COUNTIF($DR116:DX116,$EG116:$IV116),0)),\"\")","v":"{Outdoor Design Temp (oF)}"},{"$f":"IFERROR(INDEX($EG116:$IV116,MATCH(0,COUNTIF($DR116:DY116,$EG116:$IV116),0)),\"\")","v":"{Unit Efficiency - AFUE or Thermal Efficiency}"},{"$f":"IFERROR(INDEX($EG116:$IV116,MATCH(0,COUNTIF($DR116:DZ116,$EG116:$IV116),0)),\"\")","v":"{Fuel}"},{"$f":"IFERROR(INDEX($EG116:$IV116,MATCH(0,COUNTIF($DR116:EA116,$EG116:$IV116),0)),\"\")","v":""},{"$f":"IFERROR(INDEX($EG116:$IV116,MATCH(0,COUNTIF($DR116:EB116,$EG116:$IV116),0)),\"\")","v":""},{"$f":"IFERROR(INDEX($EG116:$IV116,MATCH(0,COUNTIF($DR116:EC116,$EG116:$IV116),0)),\"\")","v":""},null,null,{"$f":"IFERROR(MID($G116,FIND(CHAR(160),SUBSTITUTE($G116,\"{\",CHAR(160),EG$1)),FIND(CHAR(160),SUBSTITUTE($G116,\"}\",CHAR(160),EG$1))-FIND(CHAR(160),SUBSTITUTE($G116,\"{\",CHAR(160),EG$1))+1),\"\")","v":"{Measure:Quantity}"},{"$f":"IFERROR(MID($G116,FIND(CHAR(160),SUBSTITUTE($G116,\"{\",CHAR(160),EH$1)),FIND(CHAR(160),SUBSTITUTE($G116,\"}\",CHAR(160),EH$1))-FIND(CHAR(160),SUBSTITUTE($G116,\"{\",CHAR(160),EH$1))+1),\"\")","v":"{Equipment Capacity MBtu/h}"},{"$f":"IFERROR(MID($G116,FIND(CHAR(160),SUBSTITUTE($G116,\"{\",CHAR(160),EI$1)),FIND(CHAR(160),SUBSTITUTE($G116,\"}\",CHAR(160),EI$1))-FIND(CHAR(160),SUBSTITUTE($G116,\"{\",CHAR(160),EI$1))+1),\"\")","v":""},{"$f":"IFERROR(MID($G116,FIND(CHAR(160),SUBSTITUTE($G116,\"{\",CHAR(160),EJ$1)),FIND(CHAR(160),SUBSTITUTE($G116,\"}\",CHAR(160),EJ$1))-FIND(CHAR(160),SUBSTITUTE($G116,\"{\",CHAR(160),EJ$1))+1),\"\")","v":""},{"$f":"IFERROR(MID($G116,FIND(CHAR(160),SUBSTITUTE($G116,\"{\",CHAR(160),EK$1)),FIND(CHAR(160),SUBSTITUTE($G116,\"}\",CHAR(160),EK$1))-FIND(CHAR(160),SUBSTITUTE($G116,\"{\",CHAR(160),EK$1))+1),\"\")","v":""},{"$f":"IFERROR(MID($G116,FIND(CHAR(160),SUBSTITUTE($G116,\"{\",CHAR(160),EL$1)),FIND(CHAR(160),SUBSTITUTE($G116,\"}\",CHAR(160),EL$1))-FIND(CHAR(160),SUBSTITUTE($G116,\"{\",CHAR(160),EL$1))+1),\"\")","v":""},{"$f":"IFERROR(MID($G116,FIND(CHAR(160),SUBSTITUTE($G116,\"{\",CHAR(160),EM$1)),FIND(CHAR(160),SUBSTITUTE($G116,\"}\",CHAR(160),EM$1))-FIND(CHAR(160),SUBSTITUTE($G116,\"{\",CHAR(160),EM$1))+1),\"\")","v":""},{"$f":"IFERROR(MID($G116,FIND(CHAR(160),SUBSTITUTE($G116,\"{\",CHAR(160),EN$1)),FIND(CHAR(160),SUBSTITUTE($G116,\"}\",CHAR(160),EN$1))-FIND(CHAR(160),SUBSTITUTE($G116,\"{\",CHAR(160),EN$1))+1),\"\")","v":""},{"$f":"IFERROR(MID($G116,FIND(CHAR(160),SUBSTITUTE($G116,\"{\",CHAR(160),EO$1)),FIND(CHAR(160),SUBSTITUTE($G116,\"}\",CHAR(160),EO$1))-FIND(CHAR(160),SUBSTITUTE($G116,\"{\",CHAR(160),EO$1))+1),\"\")","v":""},{"$f":"IFERROR(MID($G116,FIND(CHAR(160),SUBSTITUTE($G116,\"{\",CHAR(160),EP$1)),FIND(CHAR(160),SUBSTITUTE($G116,\"}\",CHAR(160),EP$1))-FIND(CHAR(160),SUBSTITUTE($G116,\"{\",CHAR(160),EP$1))+1),\"\")","v":""},{"$f":"IFERROR(MID($J116,FIND(CHAR(160),SUBSTITUTE($J116,\"{\",CHAR(160),EQ$1)),FIND(CHAR(160),SUBSTITUTE($J116,\"}\",CHAR(160),EQ$1))-FIND(CHAR(160),SUBSTITUTE($J116,\"{\",CHAR(160),EQ$1))+1),\"\")","v":"{Measure:Quantity}"},{"$f":"IFERROR(MID($J116,FIND(CHAR(160),SUBSTITUTE($J116,\"{\",CHAR(160),ER$1)),FIND(CHAR(160),SUBSTITUTE($J116,\"}\",CHAR(160),ER$1))-FIND(CHAR(160),SUBSTITUTE($J116,\"{\",CHAR(160),ER$1))+1),\"\")","v":""},{"$f":"IFERROR(MID($J116,FIND(CHAR(160),SUBSTITUTE($J116,\"{\",CHAR(160),ES$1)),FIND(CHAR(160),SUBSTITUTE($J116,\"}\",CHAR(160),ES$1))-FIND(CHAR(160),SUBSTITUTE($J116,\"{\",CHAR(160),ES$1))+1),\"\")","v":""},{"$f":"IFERROR(MID($J116,FIND(CHAR(160),SUBSTITUTE($J116,\"{\",CHAR(160),ET$1)),FIND(CHAR(160),SUBSTITUTE($J116,\"}\",CHAR(160),ET$1))-FIND(CHAR(160),SUBSTITUTE($J116,\"{\",CHAR(160),ET$1))+1),\"\")","v":""},{"$f":"IFERROR(MID($J116,FIND(CHAR(160),SUBSTITUTE($J116,\"{\",CHAR(160),EU$1)),FIND(CHAR(160),SUBSTITUTE($J116,\"}\",CHAR(160),EU$1))-FIND(CHAR(160),SUBSTITUTE($J116,\"{\",CHAR(160),EU$1))+1),\"\")","v":""},{"$f":"IFERROR(MID($J116,FIND(CHAR(160),SUBSTITUTE($J116,\"{\",CHAR(160),EV$1)),FIND(CHAR(160),SUBSTITUTE($J116,\"}\",CHAR(160),EV$1))-FIND(CHAR(160),SUBSTITUTE($J116,\"{\",CHAR(160),EV$1))+1),\"\")","v":""},{"$f":"IFERROR(MID($J116,FIND(CHAR(160),SUBSTITUTE($J116,\"{\",CHAR(160),EW$1)),FIND(CHAR(160),SUBSTITUTE($J116,\"}\",CHAR(160),EW$1))-FIND(CHAR(160),SUBSTITUTE($J116,\"{\",CHAR(160),EW$1))+1),\"\")","v":""},{"$f":"IFERROR(MID($J116,FIND(CHAR(160),SUBSTITUTE($J116,\"{\",CHAR(160),EX$1)),FIND(CHAR(160),SUBSTITUTE($J116,\"}\",CHAR(160),EX$1))-FIND(CHAR(160),SUBSTITUTE($J116,\"{\",CHAR(160),EX$1))+1),\"\")","v":""},{"$f":"IFERROR(MID($J116,FIND(CHAR(160),SUBSTITUTE($J116,\"{\",CHAR(160),EY$1)),FIND(CHAR(160),SUBSTITUTE($J116,\"}\",CHAR(160),EY$1))-FIND(CHAR(160),SUBSTITUTE($J116,\"{\",CHAR(160),EY$1))+1),\"\")","v":""},{"$f":"IFERROR(MID($J116,FIND(CHAR(160),SUBSTITUTE($J116,\"{\",CHAR(160),EZ$1)),FIND(CHAR(160),SUBSTITUTE($J116,\"}\",CHAR(160),EZ$1))-FIND(CHAR(160),SUBSTITUTE($J116,\"{\",CHAR(160),EZ$1))+1),\"\")","v":""},{"$f":"IFERROR(MID($J116,FIND(CHAR(160),SUBSTITUTE($J116,\"{\",CHAR(160),FA$1)),FIND(CHAR(160),SUBSTITUTE($J116,\"}\",CHAR(160),FA$1))-FIND(CHAR(160),SUBSTITUTE($J116,\"{\",CHAR(160),FA$1))+1),\"\")","v":"{Measure:Quantity}"},{"$f":"IFERROR(MID($J116,FIND(CHAR(160),SUBSTITUTE($J116,\"{\",CHAR(160),FB$1)),FIND(CHAR(160),SUBSTITUTE($J116,\"}\",CHAR(160),FB$1))-FIND(CHAR(160),SUBSTITUTE($J116,\"{\",CHAR(160),FB$1))+1),\"\")","v":""},{"$f":"IFERROR(MID($O116,FIND(CHAR(160),SUBSTITUTE($O116,\"{\",CHAR(160),FC$1)),FIND(CHAR(160),SUBSTITUTE($O116,\"}\",CHAR(160),FC$1))-FIND(CHAR(160),SUBSTITUTE($O116,\"{\",CHAR(160),FC$1))+1),\"\")","v":""},{"$f":"IFERROR(MID($O116,FIND(CHAR(160),SUBSTITUTE($O116,\"{\",CHAR(160),FD$1)),FIND(CHAR(160),SUBSTITUTE($O116,\"}\",CHAR(160),FD$1))-FIND(CHAR(160),SUBSTITUTE($O116,\"{\",CHAR(160),FD$1))+1),\"\")","v":""},{"$f":"IFERROR(MID($O116,FIND(CHAR(160),SUBSTITUTE($O116,\"{\",CHAR(160),FE$1)),FIND(CHAR(160),SUBSTITUTE($O116,\"}\",CHAR(160),FE$1))-FIND(CHAR(160),SUBSTITUTE($O116,\"{\",CHAR(160),FE$1))+1),\"\")","v":""},{"$f":"IFERROR(MID($O116,FIND(CHAR(160),SUBSTITUTE($O116,\"{\",CHAR(160),FF$1)),FIND(CHAR(160),SUBSTITUTE($O116,\"}\",CHAR(160),FF$1))-FIND(CHAR(160),SUBSTITUTE($O116,\"{\",CHAR(160),FF$1))+1),\"\")","v":""},{"$f":"IFERROR(MID($O116,FIND(CHAR(160),SUBSTITUTE($O116,\"{\",CHAR(160),FG$1)),FIND(CHAR(160),SUBSTITUTE($O116,\"}\",CHAR(160),FG$1))-FIND(CHAR(160),SUBSTITUTE($O116,\"{\",CHAR(160),FG$1))+1),\"\")","v":""},{"$f":"IFERROR(MID($O116,FIND(CHAR(160),SUBSTITUTE($O116,\"{\",CHAR(160),FH$1)),FIND(CHAR(160),SUBSTITUTE($O116,\"}\",CHAR(160),FH$1))-FIND(CHAR(160),SUBSTITUTE($O116,\"{\",CHAR(160),FH$1))+1),\"\")","v":""},{"$f":"IFERROR(MID($O116,FIND(CHAR(160),SUBSTITUTE($O116,\"{\",CHAR(160),FI$1)),FIND(CHAR(160),SUBSTITUTE($O116,\"}\",CHAR(160),FI$1))-FIND(CHAR(160),SUBSTITUTE($O116,\"{\",CHAR(160),FI$1))+1),\"\")","v":""},{"$f":"IFERROR(MID($O116,FIND(CHAR(160),SUBSTITUTE($O116,\"{\",CHAR(160),FJ$1)),FIND(CHAR(160),SUBSTITUTE($O116,\"}\",CHAR(160),FJ$1))-FIND(CHAR(160),SUBSTITUTE($O116,\"{\",CHAR(160),FJ$1))+1),\"\")","v":""},{"$f":"IFERROR(MID($O116,FIND(CHAR(160),SUBSTITUTE($O116,\"{\",CHAR(160),FK$1)),FIND(CHAR(160),SUBSTITUTE($O116,\"}\",CHAR(160),FK$1))-FIND(CHAR(160),SUBSTITUTE($O116,\"{\",CHAR(160),FK$1))+1),\"\")","v":""},{"$f":"IFERROR(MID($O116,FIND(CHAR(160),SUBSTITUTE($O116,\"{\",CHAR(160),FL$1)),FIND(CHAR(160),SUBSTITUTE($O116,\"}\",CHAR(160),FL$1))-FIND(CHAR(160),SUBSTITUTE($O116,\"{\",CHAR(160),FL$1))+1),\"\")","v":""},{"$f":"IFERROR(MID($R116,FIND(CHAR(160),SUBSTITUTE($R116,\"{\",CHAR(160),FM$1)),FIND(CHAR(160),SUBSTITUTE($R116,\"}\",CHAR(160),FM$1))-FIND(CHAR(160),SUBSTITUTE($R116,\"{\",CHAR(160),FM$1))+1),\"\")","v":""},{"$f":"IFERROR(MID($R116,FIND(CHAR(160),SUBSTITUTE($R116,\"{\",CHAR(160),FN$1)),FIND(CHAR(160),SUBSTITUTE($R116,\"}\",CHAR(160),FN$1))-FIND(CHAR(160),SUBSTITUTE($R116,\"{\",CHAR(160),FN$1))+1),\"\")","v":""},{"$f":"IFERROR(MID($R116,FIND(CHAR(160),SUBSTITUTE($R116,\"{\",CHAR(160),FO$1)),FIND(CHAR(160),SUBSTITUTE($R116,\"}\",CHAR(160),FO$1))-FIND(CHAR(160),SUBSTITUTE($R116,\"{\",CHAR(160),FO$1))+1),\"\")","v":""},{"$f":"IFERROR(MID($R116,FIND(CHAR(160),SUBSTITUTE($R116,\"{\",CHAR(160),FP$1)),FIND(CHAR(160),SUBSTITUTE($R116,\"}\",CHAR(160),FP$1))-FIND(CHAR(160),SUBSTITUTE($R116,\"{\",CHAR(160),FP$1))+1),\"\")","v":""},{"$f":"IFERROR(MID($R116,FIND(CHAR(160),SUBSTITUTE($R116,\"{\",CHAR(160),FQ$1)),FIND(CHAR(160),SUBSTITUTE($R116,\"}\",CHAR(160),FQ$1))-FIND(CHAR(160),SUBSTITUTE($R116,\"{\",CHAR(160),FQ$1))+1),\"\")","v":""},{"$f":"IFERROR(MID($R116,FIND(CHAR(160),SUBSTITUTE($R116,\"{\",CHAR(160),FR$1)),FIND(CHAR(160),SUBSTITUTE($R116,\"}\",CHAR(160),FR$1))-FIND(CHAR(160),SUBSTITUTE($R116,\"{\",CHAR(160),FR$1))+1),\"\")","v":""},{"$f":"IFERROR(MID($R116,FIND(CHAR(160),SUBSTITUTE($R116,\"{\",CHAR(160),FS$1)),FIND(CHAR(160),SUBSTITUTE($R116,\"}\",CHAR(160),FS$1))-FIND(CHAR(160),SUBSTITUTE($R116,\"{\",CHAR(160),FS$1))+1),\"\")","v":""},{"$f":"IFERROR(MID($R116,FIND(CHAR(160),SUBSTITUTE($R116,\"{\",CHAR(160),FT$1)),FIND(CHAR(160),SUBSTITUTE($R116,\"}\",CHAR(160),FT$1))-FIND(CHAR(160),SUBSTITUTE($R116,\"{\",CHAR(160),FT$1))+1),\"\")","v":""},{"$f":"IFERROR(MID($R116,FIND(CHAR(160),SUBSTITUTE($R116,\"{\",CHAR(160),FU$1)),FIND(CHAR(160),SUBSTITUTE($R116,\"}\",CHAR(160),FU$1))-FIND(CHAR(160),SUBSTITUTE($R116,\"{\",CHAR(160),FU$1))+1),\"\")","v":""},{"$f":"IFERROR(MID($R116,FIND(CHAR(160),SUBSTITUTE($R116,\"{\",CHAR(160),FV$1)),FIND(CHAR(160),SUBSTITUTE($R116,\"}\",CHAR(160),FV$1))-FIND(CHAR(160),SUBSTITUTE($R116,\"{\",CHAR(160),FV$1))+1),\"\")","v":""},{"$f":"IFERROR(MID($U116,FIND(CHAR(160),SUBSTITUTE($U116,\"{\",CHAR(160),FW$1)),FIND(CHAR(160),SUBSTITUTE($U116,\"}\",CHAR(160),FW$1))-FIND(CHAR(160),SUBSTITUTE($U116,\"{\",CHAR(160),FW$1))+1),\"\")","v":""},{"$f":"IFERROR(MID($U116,FIND(CHAR(160),SUBSTITUTE($U116,\"{\",CHAR(160),FX$1)),FIND(CHAR(160),SUBSTITUTE($U116,\"}\",CHAR(160),FX$1))-FIND(CHAR(160),SUBSTITUTE($U116,\"{\",CHAR(160),FX$1))+1),\"\")","v":""},{"$f":"IFERROR(MID($U116,FIND(CHAR(160),SUBSTITUTE($U116,\"{\",CHAR(160),FY$1)),FIND(CHAR(160),SUBSTITUTE($U116,\"}\",CHAR(160),FY$1))-FIND(CHAR(160),SUBSTITUTE($U116,\"{\",CHAR(160),FY$1))+1),\"\")","v":""},{"$f":"IFERROR(MID($U116,FIND(CHAR(160),SUBSTITUTE($U116,\"{\",CHAR(160),FZ$1)),FIND(CHAR(160),SUBSTITUTE($U116,\"}\",CHAR(160),FZ$1))-FIND(CHAR(160),SUBSTITUTE($U116,\"{\",CHAR(160),FZ$1))+1),\"\")","v":""},{"$f":"IFERROR(MID($U116,FIND(CHAR(160),SUBSTITUTE($U116,\"{\",CHAR(160),GA$1)),FIND(CHAR(160),SUBSTITUTE($U116,\"}\",CHAR(160),GA$1))-FIND(CHAR(160),SUBSTITUTE($U116,\"{\",CHAR(160),GA$1))+1),\"\")","v":""},{"$f":"IFERROR(MID($U116,FIND(CHAR(160),SUBSTITUTE($U116,\"{\",CHAR(160),GB$1)),FIND(CHAR(160),SUBSTITUTE($U116,\"}\",CHAR(160),GB$1))-FIND(CHAR(160),SUBSTITUTE($U116,\"{\",CHAR(160),GB$1))+1),\"\")","v":""},{"$f":"IFERROR(MID($U116,FIND(CHAR(160),SUBSTITUTE($U116,\"{\",CHAR(160),GC$1)),FIND(CHAR(160),SUBSTITUTE($U116,\"}\",CHAR(160),GC$1))-FIND(CHAR(160),SUBSTITUTE($U116,\"{\",CHAR(160),GC$1))+1),\"\")","v":""},{"$f":"IFERROR(MID($U116,FIND(CHAR(160),SUBSTITUTE($U116,\"{\",CHAR(160),GD$1)),FIND(CHAR(160),SUBSTITUTE($U116,\"}\",CHAR(160),GD$1))-FIND(CHAR(160),SUBSTITUTE($U116,\"{\",CHAR(160),GD$1))+1),\"\")","v":""},{"$f":"IFERROR(MID($U116,FIND(CHAR(160),SUBSTITUTE($U116,\"{\",CHAR(160),GE$1)),FIND(CHAR(160),SUBSTITUTE($U116,\"}\",CHAR(160),GE$1))-FIND(CHAR(160),SUBSTITUTE($U116,\"{\",CHAR(160),GE$1))+1),\"\")","v":""},{"$f":"IFERROR(MID($U116,FIND(CHAR(160),SUBSTITUTE($U116,\"{\",CHAR(160),GF$1)),FIND(CHAR(160),SUBSTITUTE($U116,\"}\",CHAR(160),GF$1))-FIND(CHAR(160),SUBSTITUTE($U116,\"{\",CHAR(160),GF$1))+1),\"\")","v":""},{"$f":"IFERROR(MID($V116,FIND(CHAR(160),SUBSTITUTE($V116,\"{\",CHAR(160),GG$1)),FIND(CHAR(160),SUBSTITUTE($V116,\"}\",CHAR(160),GG$1))-FIND(CHAR(160),SUBSTITUTE($V116,\"{\",CHAR(160),GG$1))+1),\"\")","v":""},{"$f":"IFERROR(MID($V116,FIND(CHAR(160),SUBSTITUTE($V116,\"{\",CHAR(160),GH$1)),FIND(CHAR(160),SUBSTITUTE($V116,\"}\",CHAR(160),GH$1))-FIND(CHAR(160),SUBSTITUTE($V116,\"{\",CHAR(160),GH$1))+1),\"\")","v":""},{"$f":"IFERROR(MID($V116,FIND(CHAR(160),SUBSTITUTE($V116,\"{\",CHAR(160),GI$1)),FIND(CHAR(160),SUBSTITUTE($V116,\"}\",CHAR(160),GI$1))-FIND(CHAR(160),SUBSTITUTE($V116,\"{\",CHAR(160),GI$1))+1),\"\")","v":""},{"$f":"IFERROR(MID($V116,FIND(CHAR(160),SUBSTITUTE($V116,\"{\",CHAR(160),GJ$1)),FIND(CHAR(160),SUBSTITUTE($V116,\"}\",CHAR(160),GJ$1))-FIND(CHAR(160),SUBSTITUTE($V116,\"{\",CHAR(160),GJ$1))+1),\"\")","v":""},{"$f":"IFERROR(MID($V116,FIND(CHAR(160),SUBSTITUTE($V116,\"{\",CHAR(160),GK$1)),FIND(CHAR(160),SUBSTITUTE($V116,\"}\",CHAR(160),GK$1))-FIND(CHAR(160),SUBSTITUTE($V116,\"{\",CHAR(160),GK$1))+1),\"\")","v":""},{"$f":"IFERROR(MID($V116,FIND(CHAR(160),SUBSTITUTE($V116,\"{\",CHAR(160),GL$1)),FIND(CHAR(160),SUBSTITUTE($V116,\"}\",CHAR(160),GL$1))-FIND(CHAR(160),SUBSTITUTE($V116,\"{\",CHAR(160),GL$1))+1),\"\")","v":""},{"$f":"IFERROR(MID($V116,FIND(CHAR(160),SUBSTITUTE($V116,\"{\",CHAR(160),GM$1)),FIND(CHAR(160),SUBSTITUTE($V116,\"}\",CHAR(160),GM$1))-FIND(CHAR(160),SUBSTITUTE($V116,\"{\",CHAR(160),GM$1))+1),\"\")","v":""},{"$f":"IFERROR(MID($V116,FIND(CHAR(160),SUBSTITUTE($V116,\"{\",CHAR(160),GN$1)),FIND(CHAR(160),SUBSTITUTE($V116,\"}\",CHAR(160),GN$1))-FIND(CHAR(160),SUBSTITUTE($V116,\"{\",CHAR(160),GN$1))+1),\"\")","v":""},{"$f":"IFERROR(MID($V116,FIND(CHAR(160),SUBSTITUTE($V116,\"{\",CHAR(160),GO$1)),FIND(CHAR(160),SUBSTITUTE($V116,\"}\",CHAR(160),GO$1))-FIND(CHAR(160),SUBSTITUTE($V116,\"{\",CHAR(160),GO$1))+1),\"\")","v":""},{"$f":"IFERROR(MID($V116,FIND(CHAR(160),SUBSTITUTE($V116,\"{\",CHAR(160),GP$1)),FIND(CHAR(160),SUBSTITUTE($V116,\"}\",CHAR(160),GP$1))-FIND(CHAR(160),SUBSTITUTE($V116,\"{\",CHAR(160),GP$1))+1),\"\")","v":""},{"$f":"IFERROR(MID($W116,FIND(CHAR(160),SUBSTITUTE($W116,\"{\",CHAR(160),GQ$1)),FIND(CHAR(160),SUBSTITUTE($W116,\"}\",CHAR(160),GQ$1))-FIND(CHAR(160),SUBSTITUTE($W116,\"{\",CHAR(160),GQ$1))+1),\"\")","v":"{Design Load (Btu/h)}"},{"$f":"IFERROR(MID($W116,FIND(CHAR(160),SUBSTITUTE($W116,\"{\",CHAR(160),GR$1)),FIND(CHAR(160),SUBSTITUTE($W116,\"}\",CHAR(160),GR$1))-FIND(CHAR(160),SUBSTITUTE($W116,\"{\",CHAR(160),GR$1))+1),\"\")","v":"{Indoor Design Temp (oF)}"},{"$f":"IFERROR(MID($W116,FIND(CHAR(160),SUBSTITUTE($W116,\"{\",CHAR(160),GS$1)),FIND(CHAR(160),SUBSTITUTE($W116,\"}\",CHAR(160),GS$1))-FIND(CHAR(160),SUBSTITUTE($W116,\"{\",CHAR(160),GS$1))+1),\"\")","v":"{Outdoor Design Temp (oF)}"},{"$f":"IFERROR(MID($W116,FIND(CHAR(160),SUBSTITUTE($W116,\"{\",CHAR(160),GT$1)),FIND(CHAR(160),SUBSTITUTE($W116,\"}\",CHAR(160),GT$1))-FIND(CHAR(160),SUBSTITUTE($W116,\"{\",CHAR(160),GT$1))+1),\"\")","v":"{Unit Efficiency - AFUE or Thermal Efficiency}"},{"$f":"IFERROR(MID($W116,FIND(CHAR(160),SUBSTITUTE($W116,\"{\",CHAR(160),GU$1)),FIND(CHAR(160),SUBSTITUTE($W116,\"}\",CHAR(160),GU$1))-FIND(CHAR(160),SUBSTITUTE($W116,\"{\",CHAR(160),GU$1))+1),\"\")","v":""},{"$f":"IFERROR(MID($W116,FIND(CHAR(160),SUBSTITUTE($W116,\"{\",CHAR(160),GV$1)),FIND(CHAR(160),SUBSTITUTE($W116,\"}\",CHAR(160),GV$1))-FIND(CHAR(160),SUBSTITUTE($W116,\"{\",CHAR(160),GV$1))+1),\"\")","v":""},{"$f":"IFERROR(MID($W116,FIND(CHAR(160),SUBSTITUTE($W116,\"{\",CHAR(160),GW$1)),FIND(CHAR(160),SUBSTITUTE($W116,\"}\",CHAR(160),GW$1))-FIND(CHAR(160),SUBSTITUTE($W116,\"{\",CHAR(160),GW$1))+1),\"\")","v":""},{"$f":"IFERROR(MID($W116,FIND(CHAR(160),SUBSTITUTE($W116,\"{\",CHAR(160),GX$1)),FIND(CHAR(160),SUBSTITUTE($W116,\"}\",CHAR(160),GX$1))-FIND(CHAR(160),SUBSTITUTE($W116,\"{\",CHAR(160),GX$1))+1),\"\")","v":""},{"$f":"IFERROR(MID($W116,FIND(CHAR(160),SUBSTITUTE($W116,\"{\",CHAR(160),GY$1)),FIND(CHAR(160),SUBSTITUTE($W116,\"}\",CHAR(160),GY$1))-FIND(CHAR(160),SUBSTITUTE($W116,\"{\",CHAR(160),GY$1))+1),\"\")","v":"{Fuel}"},{"$f":"IFERROR(MID($W116,FIND(CHAR(160),SUBSTITUTE($W116,\"{\",CHAR(160),GZ$1)),FIND(CHAR(160),SUBSTITUTE($W116,\"}\",CHAR(160),GZ$1))-FIND(CHAR(160),SUBSTITUTE($W116,\"{\",CHAR(160),GZ$1))+1),\"\")","v":"{Measure:Quantity}"},{"$f":"IFERROR(MID($X116,FIND(CHAR(160),SUBSTITUTE($X116,\"{\",CHAR(160),HA$1)),FIND(CHAR(160),SUBSTITUTE($X116,\"}\",CHAR(160),HA$1))-FIND(CHAR(160),SUBSTITUTE($X116,\"{\",CHAR(160),HA$1))+1),\"\")","v":"{Design Load (Btu/h)}"},{"$f":"IFERROR(MID($X116,FIND(CHAR(160),SUBSTITUTE($X116,\"{\",CHAR(160),HB$1)),FIND(CHAR(160),SUBSTITUTE($X116,\"}\",CHAR(160),HB$1))-FIND(CHAR(160),SUBSTITUTE($X116,\"{\",CHAR(160),HB$1))+1),\"\")","v":"{Indoor Design Temp (oF)}"},{"$f":"IFERROR(MID($X116,FIND(CHAR(160),SUBSTITUTE($X116,\"{\",CHAR(160),HC$1)),FIND(CHAR(160),SUBSTITUTE($X116,\"}\",CHAR(160),HC$1))-FIND(CHAR(160),SUBSTITUTE($X116,\"{\",CHAR(160),HC$1))+1),\"\")","v":"{Outdoor Design Temp (oF)}"},{"$f":"IFERROR(MID($X116,FIND(CHAR(160),SUBSTITUTE($X116,\"{\",CHAR(160),HD$1)),FIND(CHAR(160),SUBSTITUTE($X116,\"}\",CHAR(160),HD$1))-FIND(CHAR(160),SUBSTITUTE($X116,\"{\",CHAR(160),HD$1))+1),\"\")","v":"{Unit Efficiency - AFUE or Thermal Efficiency}"},{"$f":"IFERROR(MID($X116,FIND(CHAR(160),SUBSTITUTE($X116,\"{\",CHAR(160),HE$1)),FIND(CHAR(160),SUBSTITUTE($X116,\"}\",CHAR(160),HE$1))-FIND(CHAR(160),SUBSTITUTE($X116,\"{\",CHAR(160),HE$1))+1),\"\")","v":""},{"$f":"IFERROR(MID($X116,FIND(CHAR(160),SUBSTITUTE($X116,\"{\",CHAR(160),HF$1)),FIND(CHAR(160),SUBSTITUTE($X116,\"}\",CHAR(160),HF$1))-FIND(CHAR(160),SUBSTITUTE($X116,\"{\",CHAR(160),HF$1))+1),\"\")","v":""},{"$f":"IFERROR(MID($X116,FIND(CHAR(160),SUBSTITUTE($X116,\"{\",CHAR(160),HG$1)),FIND(CHAR(160),SUBSTITUTE($X116,\"}\",CHAR(160),HG$1))-FIND(CHAR(160),SUBSTITUTE($X116,\"{\",CHAR(160),HG$1))+1),\"\")","v":""},{"$f":"IFERROR(MID($X116,FIND(CHAR(160),SUBSTITUTE($X116,\"{\",CHAR(160),HH$1)),FIND(CHAR(160),SUBSTITUTE($X116,\"}\",CHAR(160),HH$1))-FIND(CHAR(160),SUBSTITUTE($X116,\"{\",CHAR(160),HH$1))+1),\"\")","v":""},{"$f":"IFERROR(MID($X116,FIND(CHAR(160),SUBSTITUTE($X116,\"{\",CHAR(160),HI$1)),FIND(CHAR(160),SUBSTITUTE($X116,\"}\",CHAR(160),HI$1))-FIND(CHAR(160),SUBSTITUTE($X116,\"{\",CHAR(160),HI$1))+1),\"\")","v":"{Fuel}"},{"$f":"IFERROR(MID($X116,FIND(CHAR(160),SUBSTITUTE($X116,\"{\",CHAR(160),HJ$1)),FIND(CHAR(160),SUBSTITUTE($X116,\"}\",CHAR(160),HJ$1))-FIND(CHAR(160),SUBSTITUTE($X116,\"{\",CHAR(160),HJ$1))+1),\"\")","v":"{Measure:Quantity}"},{"$f":"IFERROR(MID($Y116,FIND(CHAR(160),SUBSTITUTE($Y116,\"{\",CHAR(160),HK$1)),FIND(CHAR(160),SUBSTITUTE($Y116,\"}\",CHAR(160),HK$1))-FIND(CHAR(160),SUBSTITUTE($Y116,\"{\",CHAR(160),HK$1))+1),\"\")","v":""},{"$f":"IFERROR(MID($Y116,FIND(CHAR(160),SUBSTITUTE($Y116,\"{\",CHAR(160),HL$1)),FIND(CHAR(160),SUBSTITUTE($Y116,\"}\",CHAR(160),HL$1))-FIND(CHAR(160),SUBSTITUTE($Y116,\"{\",CHAR(160),HL$1))+1),\"\")","v":""},{"$f":"IFERROR(MID($Y116,FIND(CHAR(160),SUBSTITUTE($Y116,\"{\",CHAR(160),HM$1)),FIND(CHAR(160),SUBSTITUTE($Y116,\"}\",CHAR(160),HM$1))-FIND(CHAR(160),SUBSTITUTE($Y116,\"{\",CHAR(160),HM$1))+1),\"\")","v":""},{"$f":"IFERROR(MID($Y116,FIND(CHAR(160),SUBSTITUTE($Y116,\"{\",CHAR(160),HN$1)),FIND(CHAR(160),SUBSTITUTE($Y116,\"}\",CHAR(160),HN$1))-FIND(CHAR(160),SUBSTITUTE($Y116,\"{\",CHAR(160),HN$1))+1),\"\")","v":""},{"$f":"IFERROR(MID($Y116,FIND(CHAR(160),SUBSTITUTE($Y116,\"{\",CHAR(160),HO$1)),FIND(CHAR(160),SUBSTITUTE($Y116,\"}\",CHAR(160),HO$1))-FIND(CHAR(160),SUBSTITUTE($Y116,\"{\",CHAR(160),HO$1))+1),\"\")","v":""},{"$f":"IFERROR(MID($Y116,FIND(CHAR(160),SUBSTITUTE($Y116,\"{\",CHAR(160),HP$1)),FIND(CHAR(160),SUBSTITUTE($Y116,\"}\",CHAR(160),HP$1))-FIND(CHAR(160),SUBSTITUTE($Y116,\"{\",CHAR(160),HP$1))+1),\"\")","v":""},{"$f":"IFERROR(MID($Y116,FIND(CHAR(160),SUBSTITUTE($Y116,\"{\",CHAR(160),HQ$1)),FIND(CHAR(160),SUBSTITUTE($Y116,\"}\",CHAR(160),HQ$1))-FIND(CHAR(160),SUBSTITUTE($Y116,\"{\",CHAR(160),HQ$1))+1),\"\")","v":""},{"$f":"IFERROR(MID($Y116,FIND(CHAR(160),SUBSTITUTE($Y116,\"{\",CHAR(160),HR$1)),FIND(CHAR(160),SUBSTITUTE($Y116,\"}\",CHAR(160),HR$1))-FIND(CHAR(160),SUBSTITUTE($Y116,\"{\",CHAR(160),HR$1))+1),\"\")","v":""},{"$f":"IFERROR(MID($Y116,FIND(CHAR(160),SUBSTITUTE($Y116,\"{\",CHAR(160),HS$1)),FIND(CHAR(160),SUBSTITUTE($Y116,\"}\",CHAR(160),HS$1))-FIND(CHAR(160),SUBSTITUTE($Y116,\"{\",CHAR(160),HS$1))+1),\"\")","v":""},{"$f":"IFERROR(MID($Y116,FIND(CHAR(160),SUBSTITUTE($Y116,\"{\",CHAR(160),HT$1)),FIND(CHAR(160),SUBSTITUTE($Y116,\"}\",CHAR(160),HT$1))-FIND(CHAR(160),SUBSTITUTE($Y116,\"{\",CHAR(160),HT$1))+1),\"\")","v":""},{"$f":"IFERROR(MID($Z116,FIND(CHAR(160),SUBSTITUTE($Z116,\"{\",CHAR(160),HU$1)),FIND(CHAR(160),SUBSTITUTE($Z116,\"}\",CHAR(160),HU$1))-FIND(CHAR(160),SUBSTITUTE($Z116,\"{\",CHAR(160),HU$1))+1),\"\")","v":""},{"$f":"IFERROR(MID($Z116,FIND(CHAR(160),SUBSTITUTE($Z116,\"{\",CHAR(160),HV$1)),FIND(CHAR(160),SUBSTITUTE($Z116,\"}\",CHAR(160),HV$1))-FIND(CHAR(160),SUBSTITUTE($Z116,\"{\",CHAR(160),HV$1))+1),\"\")","v":""},{"$f":"IFERROR(MID($Z116,FIND(CHAR(160),SUBSTITUTE($Z116,\"{\",CHAR(160),HW$1)),FIND(CHAR(160),SUBSTITUTE($Z116,\"}\",CHAR(160),HW$1))-FIND(CHAR(160),SUBSTITUTE($Z116,\"{\",CHAR(160),HW$1))+1),\"\")","v":""},{"$f":"IFERROR(MID($Z116,FIND(CHAR(160),SUBSTITUTE($Z116,\"{\",CHAR(160),HX$1)),FIND(CHAR(160),SUBSTITUTE($Z116,\"}\",CHAR(160),HX$1))-FIND(CHAR(160),SUBSTITUTE($Z116,\"{\",CHAR(160),HX$1))+1),\"\")","v":""},{"$f":"IFERROR(MID($Z116,FIND(CHAR(160),SUBSTITUTE($Z116,\"{\",CHAR(160),HY$1)),FIND(CHAR(160),SUBSTITUTE($Z116,\"}\",CHAR(160),HY$1))-FIND(CHAR(160),SUBSTITUTE($Z116,\"{\",CHAR(160),HY$1))+1),\"\")","v":""},{"$f":"IFERROR(MID($Z116,FIND(CHAR(160),SUBSTITUTE($Z116,\"{\",CHAR(160),HZ$1)),FIND(CHAR(160),SUBSTITUTE($Z116,\"}\",CHAR(160),HZ$1))-FIND(CHAR(160),SUBSTITUTE($Z116,\"{\",CHAR(160),HZ$1))+1),\"\")","v":""},{"$f":"IFERROR(MID($Z116,FIND(CHAR(160),SUBSTITUTE($Z116,\"{\",CHAR(160),IA$1)),FIND(CHAR(160),SUBSTITUTE($Z116,\"}\",CHAR(160),IA$1))-FIND(CHAR(160),SUBSTITUTE($Z116,\"{\",CHAR(160),IA$1))+1),\"\")","v":""},{"$f":"IFERROR(MID($Z116,FIND(CHAR(160),SUBSTITUTE($Z116,\"{\",CHAR(160),IB$1)),FIND(CHAR(160),SUBSTITUTE($Z116,\"}\",CHAR(160),IB$1))-FIND(CHAR(160),SUBSTITUTE($Z116,\"{\",CHAR(160),IB$1))+1),\"\")","v":""},{"$f":"IFERROR(MID($Z116,FIND(CHAR(160),SUBSTITUTE($Z116,\"{\",CHAR(160),IC$1)),FIND(CHAR(160),SUBSTITUTE($Z116,\"}\",CHAR(160),IC$1))-FIND(CHAR(160),SUBSTITUTE($Z116,\"{\",CHAR(160),IC$1))+1),\"\")","v":""},{"$f":"IFERROR(MID($Z116,FIND(CHAR(160),SUBSTITUTE($Z116,\"{\",CHAR(160),ID$1)),FIND(CHAR(160),SUBSTITUTE($Z116,\"}\",CHAR(160),ID$1))-FIND(CHAR(160),SUBSTITUTE($Z116,\"{\",CHAR(160),ID$1))+1),\"\")","v":""},{"$f":"IFERROR(MID($AA116,FIND(CHAR(160),SUBSTITUTE($AA116,\"{\",CHAR(160),IE$1)),FIND(CHAR(160),SUBSTITUTE($AA116,\"}\",CHAR(160),IE$1))-FIND(CHAR(160),SUBSTITUTE($AA116,\"{\",CHAR(160),IE$1))+1),\"\")","v":""},{"$f":"IFERROR(MID($AA116,FIND(CHAR(160),SUBSTITUTE($AA116,\"{\",CHAR(160),IF$1)),FIND(CHAR(160),SUBSTITUTE($AA116,\"}\",CHAR(160),IF$1))-FIND(CHAR(160),SUBSTITUTE($AA116,\"{\",CHAR(160),IF$1))+1),\"\")","v":""},{"$f":"IFERROR(MID($AA116,FIND(CHAR(160),SUBSTITUTE($AA116,\"{\",CHAR(160),IG$1)),FIND(CHAR(160),SUBSTITUTE($AA116,\"}\",CHAR(160),IG$1))-FIND(CHAR(160),SUBSTITUTE($AA116,\"{\",CHAR(160),IG$1))+1),\"\")","v":""},{"$f":"IFERROR(MID($AA116,FIND(CHAR(160),SUBSTITUTE($AA116,\"{\",CHAR(160),IH$1)),FIND(CHAR(160),SUBSTITUTE($AA116,\"}\",CHAR(160),IH$1))-FIND(CHAR(160),SUBSTITUTE($AA116,\"{\",CHAR(160),IH$1))+1),\"\")","v":""},{"$f":"IFERROR(MID($AA116,FIND(CHAR(160),SUBSTITUTE($AA116,\"{\",CHAR(160),II$1)),FIND(CHAR(160),SUBSTITUTE($AA116,\"}\",CHAR(160),II$1))-FIND(CHAR(160),SUBSTITUTE($AA116,\"{\",CHAR(160),II$1))+1),\"\")","v":""},{"$f":"IFERROR(MID($AA116,FIND(CHAR(160),SUBSTITUTE($AA116,\"{\",CHAR(160),IJ$1)),FIND(CHAR(160),SUBSTITUTE($AA116,\"}\",CHAR(160),IJ$1))-FIND(CHAR(160),SUBSTITUTE($AA116,\"{\",CHAR(160),IJ$1))+1),\"\")","v":""},{"$f":"IFERROR(MID($AA116,FIND(CHAR(160),SUBSTITUTE($AA116,\"{\",CHAR(160),IK$1)),FIND(CHAR(160),SUBSTITUTE($AA116,\"}\",CHAR(160),IK$1))-FIND(CHAR(160),SUBSTITUTE($AA116,\"{\",CHAR(160),IK$1))+1),\"\")","v":""},{"$f":"IFERROR(MID($AA116,FIND(CHAR(160),SUBSTITUTE($AA116,\"{\",CHAR(160),IL$1)),FIND(CHAR(160),SUBSTITUTE($AA116,\"}\",CHAR(160),IL$1))-FIND(CHAR(160),SUBSTITUTE($AA116,\"{\",CHAR(160),IL$1))+1),\"\")","v":""},{"$f":"IFERROR(MID($AA116,FIND(CHAR(160),SUBSTITUTE($AA116,\"{\",CHAR(160),IM$1)),FIND(CHAR(160),SUBSTITUTE($AA116,\"}\",CHAR(160),IM$1))-FIND(CHAR(160),SUBSTITUTE($AA116,\"{\",CHAR(160),IM$1))+1),\"\")","v":""},{"$f":"IFERROR(MID($AA116,FIND(CHAR(160),SUBSTITUTE($AA116,\"{\",CHAR(160),IN$1)),FIND(CHAR(160),SUBSTITUTE($AA116,\"}\",CHAR(160),IN$1))-FIND(CHAR(160),SUBSTITUTE($AA116,\"{\",CHAR(160),IN$1))+1),\"\")","v":""},{"$f":"IFERROR(MID($AB116,FIND(CHAR(160),SUBSTITUTE($AB116,\"{\",CHAR(160),IO$1)),FIND(CHAR(160),SUBSTITUTE($AB116,\"}\",CHAR(160),IO$1))-FIND(CHAR(160),SUBSTITUTE($AB116,\"{\",CHAR(160),IO$1))+1),\"\")","v":""},{"$f":"IFERROR(MID($AB116,FIND(CHAR(160),SUBSTITUTE($AB116,\"{\",CHAR(160),IP$1)),FIND(CHAR(160),SUBSTITUTE($AB116,\"}\",CHAR(160),IP$1))-FIND(CHAR(160),SUBSTITUTE($AB116,\"{\",CHAR(160),IP$1))+1),\"\")","v":""},{"$f":"IFERROR(MID($AB116,FIND(CHAR(160),SUBSTITUTE($AB116,\"{\",CHAR(160),IQ$1)),FIND(CHAR(160),SUBSTITUTE($AB116,\"}\",CHAR(160),IQ$1))-FIND(CHAR(160),SUBSTITUTE($AB116,\"{\",CHAR(160),IQ$1))+1),\"\")","v":""},{"$f":"IFERROR(MID($AB116,FIND(CHAR(160),SUBSTITUTE($AB116,\"{\",CHAR(160),IR$1)),FIND(CHAR(160),SUBSTITUTE($AB116,\"}\",CHAR(160),IR$1))-FIND(CHAR(160),SUBSTITUTE($AB116,\"{\",CHAR(160),IR$1))+1),\"\")","v":""},{"$f":"IFERROR(MID($AB116,FIND(CHAR(160),SUBSTITUTE($AB116,\"{\",CHAR(160),IS$1)),FIND(CHAR(160),SUBSTITUTE($AB116,\"}\",CHAR(160),IS$1))-FIND(CHAR(160),SUBSTITUTE($AB116,\"{\",CHAR(160),IS$1))+1),\"\")","v":""},{"$f":"IFERROR(MID($AB116,FIND(CHAR(160),SUBSTITUTE($AB116,\"{\",CHAR(160),IT$1)),FIND(CHAR(160),SUBSTITUTE($AB116,\"}\",CHAR(160),IT$1))-FIND(CHAR(160),SUBSTITUTE($AB116,\"{\",CHAR(160),IT$1))+1),\"\")","v":""},{"$f":"IFERROR(MID($AB116,FIND(CHAR(160),SUBSTITUTE($AB116,\"{\",CHAR(160),IU$1)),FIND(CHAR(160),SUBSTITUTE($AB116,\"}\",CHAR(160),IU$1))-FIND(CHAR(160),SUBSTITUTE($AB116,\"{\",CHAR(160),IU$1))+1),\"\")","v":""},{"$f":"IFERROR(MID($AB116,FIND(CHAR(160),SUBSTITUTE($AB116,\"{\",CHAR(160),IV$1)),FIND(CHAR(160),SUBSTITUTE($AB116,\"}\",CHAR(160),IV$1))-FIND(CHAR(160),SUBSTITUTE($AB116,\"{\",CHAR(160),IV$1))+1),\"\")","v":""},{"$f":"IFERROR(MID($AB116,FIND(CHAR(160),SUBSTITUTE($AB116,\"{\",CHAR(160),IW$1)),FIND(CHAR(160),SUBSTITUTE($AB116,\"}\",CHAR(160),IW$1))-FIND(CHAR(160),SUBSTITUTE($AB116,\"{\",CHAR(160),IW$1))+1),\"\")","v":""},{"$f":"IFERROR(MID($AB116,FIND(CHAR(160),SUBSTITUTE($AB116,\"{\",CHAR(160),IX$1)),FIND(CHAR(160),SUBSTITUTE($AB116,\"}\",CHAR(160),IX$1))-FIND(CHAR(160),SUBSTITUTE($AB116,\"{\",CHAR(160),IX$1))+1),\"\")","v":""},null,{"$f":"10-COUNTIF(DU116:ED116,\"\")","v":7}]
["C&I HVAC - Propane and Compressed NG","G11 Gas-fired condensing hot water boiler > 2500 MBtu/h","G11","2021-07-01","2022-06-30","Calculated","{Measure:Quantity}*({Equipment Capacity MBtu/h}*3.47+1982)",0,"Calculated","{Measure:Quantity}*12500",0,"2021-05-25","2022-06-30","Calculated",null,null,null,null,null,null,null,null,"if({Fuel}<>1,0,{Measure:Quantity} * ({Design Load (Btu/h)}/({Indoor Design Temp (oF)}-{Outdoor Design Temp (oF)})*186648/1000000) * (100/82-100/{Unit Efficiency - AFUE or Thermal Efficiency})*10)","if({Fuel}<>2,0,{Measure:Quantity} * ({Design Load (Btu/h)}/({Indoor Design Temp (oF)}-{Outdoor Design Temp (oF)})*186648/1000000) * (100/82-100/{Unit Efficiency - AFUE or Thermal Efficiency}))",null,null,null,null,"2021-05-25","2022-06-30",24,0,0,1,0,0,0,1,1,0,0.52,1.6E-2,null,{"$f":"DU117","v":"{Measure:Quantity}"},1,{"$f":"DV117","v":"{Equipment Capacity MBtu/h}"},4000,{"$f":"DW117","v":"{Design Load (Btu/h)}"},2,{"$f":"DX117","v":"{Indoor Design Temp (oF)}"},5890000,{"$f":"DY117","v":"{Outdoor Design Temp (oF)}"},72,{"$f":"DZ117","v":"{Unit Efficiency - AFUE or Thermal Efficiency}"},-2,{"$f":"EA117","v":"{Fuel}"},96.1,{"$f":"EB117","v":""},null,{"$f":"EC117","v":""},null,{"$f":"ED117","v":""},null,0,0,0,0,0,0,0,0,{"$f":"IF(AW117<>1,0,AS117 * (AY117/(BA117-BC117)*186648/1000000) * (100/82-100/BE117)*10)","v":0},{"$f":"IF(AW117<>2,0,AS117 * (AY117/(BA117-BC117)*186648/1000000) * (100/82-100/BE117))","v":2658.2069449465184},0,0,0,0,null,"Res","RGGI DR",{"$f":"Benefits(BL117,BR117,BS117,BT117,BU117,BV117,BW117,BX117,BY117,BZ117,AE117,AH117,AI117,AJ117,AK117,AL117,AM117,AN117,AO117,AP117,CA117,CB117)","v":0},0,0,0,0,2211870.7710437193,0,0,0,{"$f":"SUMPRODUCT(CC117:CK117,--(CC117:CK117>0))","v":2211870.7710437193},{"$f":"-SUMPRODUCT(CC117:CK117,--(CC117:CK117<0))","v":0},null,{"$f":"AS117*(AU117*3.47+1982)","v":15862},null,null,{"$f":"CM117+CO117","v":15862},{"$f":"IF(NetOrGross=\"Net\",(1-AO117+AP117),1)","v":1},{"$f":"(SUMPRODUCT(CC117:CJ117,--(CC117:CJ117>0))+CN117)*CS117/((-SUMPRODUCT(CC117:CJ117,--(CC117:CJ117<0))+MAX(CO117,CV117)+CP117+CQ117)*CS117+IF(FRIncentives=\"Yes\",CV117*(1-CS117),0))","v":139.44463315116121},1,{"$f":"AS117*12500","v":12500},null,"RGGI","y",null,{"$f":"IF(F117=\"Manual Entry\",\"Manual\",IF(G117=\"\",0,\"X=\"&SUBSTITUTE(SUBSTITUTE(SUBSTITUTE(SUBSTITUTE(SUBSTITUTE(SUBSTITUTE(SUBSTITUTE(SUBSTITUTE(SUBSTITUTE(SUBSTITUTE(SUBSTITUTE(SUBSTITUTE(G117,$ED117,$ED$2&ROW($ED117)),$EC117,$EC$2&ROW($EC117)),$EB117,$EB$2&ROW($EB117)),$EA117,$EA$2&ROW($EA117)),$DZ117,$DZ$2&ROW($DZ117)),$DY117,$DY$2&ROW($DY117)),$DX117,$DX$2&ROW($DX117)),$DW117,$DW$2&ROW($DW117)),$DV117,$DV$2&ROW($DV117)),$DU117,$DU$2&ROW($DU117)),$DT117,$DT$2&ROW($DT117)),$DS117,$DS$2&ROW($DS117))))","v":"X=AS117*(AU117*3.47+1982)"},{"$f":"IF(I117=\"Manual Entry\",\"Manual\",IF(J117=\"\",0,\"X=\"&SUBSTITUTE(SUBSTITUTE(SUBSTITUTE(SUBSTITUTE(SUBSTITUTE(SUBSTITUTE(SUBSTITUTE(SUBSTITUTE(SUBSTITUTE(SUBSTITUTE(SUBSTITUTE(SUBSTITUTE(J117,$ED117,$ED$2&ROW($ED117)),$EC117,$EC$2&ROW($EC117)),$EB117,$EB$2&ROW($EB117)),$EA117,$EA$2&ROW($EA117)),$DZ117,$DZ$2&ROW($DZ117)),$DY117,$DY$2&ROW($DY117)),$DX117,$DX$2&ROW($DX117)),$DW117,$DW$2&ROW($DW117)),$DV117,$DV$2&ROW($DV117)),$DU117,$DU$2&ROW($DU117)),$DT117,$DT$2&ROW($DT117)),$DS117,$DS$2&ROW($DS117))))","v":"X=AS117*12500"},{"$f":"IF(O117=\"\",0,\"X=\"&SUBSTITUTE(SUBSTITUTE(SUBSTITUTE(SUBSTITUTE(SUBSTITUTE(SUBSTITUTE(SUBSTITUTE(SUBSTITUTE(SUBSTITUTE(SUBSTITUTE(SUBSTITUTE(SUBSTITUTE(O117,$ED117,$ED$2&ROW($ED117)),$EC117,$EC$2&ROW($EC117)),$EB117,$EB$2&ROW($EB117)),$EA117,$EA$2&ROW($EA117)),$DZ117,$DZ$2&ROW($DZ117)),$DY117,$DY$2&ROW($DY117)),$DX117,$DX$2&ROW($DX117)),$DW117,$DW$2&ROW($DW117)),$DV117,$DV$2&ROW($DV117)),$DU117,$DU$2&ROW($DU117)),$DT117,$DT$2&ROW($DT117)),$DS117,$DS$2&ROW($DS117)))","v":0},{"$f":"IF(P117=\"\",0,\"X=\"&SUBSTITUTE(SUBSTITUTE(SUBSTITUTE(SUBSTITUTE(SUBSTITUTE(SUBSTITUTE(SUBSTITUTE(SUBSTITUTE(SUBSTITUTE(SUBSTITUTE(SUBSTITUTE(SUBSTITUTE(P117,$ED117,$ED$2&ROW($ED117)),$EC117,$EC$2&ROW($EC117)),$EB117,$EB$2&ROW($EB117)),$EA117,$EA$2&ROW($EA117)),$DZ117,$DZ$2&ROW($DZ117)),$DY117,$DY$2&ROW($DY117)),$DX117,$DX$2&ROW($DX117)),$DW117,$DW$2&ROW($DW117)),$DV117,$DV$2&ROW($DV117)),$DU117,$DU$2&ROW($DU117)),$DT117,$DT$2&ROW($DT117)),$DS117,$DS$2&ROW($DS117)))","v":0},{"$f":"IF(Q117=\"\",0,\"X=\"&SUBSTITUTE(SUBSTITUTE(SUBSTITUTE(SUBSTITUTE(SUBSTITUTE(SUBSTITUTE(SUBSTITUTE(SUBSTITUTE(SUBSTITUTE(SUBSTITUTE(SUBSTITUTE(SUBSTITUTE(Q117,$ED117,$ED$2&ROW($ED117)),$EC117,$EC$2&ROW($EC117)),$EB117,$EB$2&ROW($EB117)),$EA117,$EA$2&ROW($EA117)),$DZ117,$DZ$2&ROW($DZ117)),$DY117,$DY$2&ROW($DY117)),$DX117,$DX$2&ROW($DX117)),$DW117,$DW$2&ROW($DW117)),$DV117,$DV$2&ROW($DV117)),$DU117,$DU$2&ROW($DU117)),$DT117,$DT$2&ROW($DT117)),$DS117,$DS$2&ROW($DS117)))","v":0},{"$f":"IF(R117=\"\",0,\"X=\"&SUBSTITUTE(SUBSTITUTE(SUBSTITUTE(SUBSTITUTE(SUBSTITUTE(SUBSTITUTE(SUBSTITUTE(SUBSTITUTE(SUBSTITUTE(SUBSTITUTE(SUBSTITUTE(SUBSTITUTE(R117,$ED117,$ED$2&ROW($ED117)),$EC117,$EC$2&ROW($EC117)),$EB117,$EB$2&ROW($EB117)),$EA117,$EA$2&ROW($EA117)),$DZ117,$DZ$2&ROW($DZ117)),$DY117,$DY$2&ROW($DY117)),$DX117,$DX$2&ROW($DX117)),$DW117,$DW$2&ROW($DW117)),$DV117,$DV$2&ROW($DV117)),$DU117,$DU$2&ROW($DU117)),$DT117,$DT$2&ROW($DT117)),$DS117,$DS$2&ROW($DS117)))","v":0},{"$f":"IF(S117=\"\",0,\"X=\"&SUBSTITUTE(SUBSTITUTE(SUBSTITUTE(SUBSTITUTE(SUBSTITUTE(SUBSTITUTE(SUBSTITUTE(SUBSTITUTE(SUBSTITUTE(SUBSTITUTE(SUBSTITUTE(SUBSTITUTE(S117,$ED117,$ED$2&ROW($ED117)),$EC117,$EC$2&ROW($EC117)),$EB117,$EB$2&ROW($EB117)),$EA117,$EA$2&ROW($EA117)),$DZ117,$DZ$2&ROW($DZ117)),$DY117,$DY$2&ROW($DY117)),$DX117,$DX$2&ROW($DX117)),$DW117,$DW$2&ROW($DW117)),$DV117,$DV$2&ROW($DV117)),$DU117,$DU$2&ROW($DU117)),$DT117,$DT$2&ROW($DT117)),$DS117,$DS$2&ROW($DS117)))","v":0},{"$f":"IF(T117=\"\",0,\"X=\"&SUBSTITUTE(SUBSTITUTE(SUBSTITUTE(SUBSTITUTE(SUBSTITUTE(SUBSTITUTE(SUBSTITUTE(SUBSTITUTE(SUBSTITUTE(SUBSTITUTE(SUBSTITUTE(SUBSTITUTE(T117,$ED117,$ED$2&ROW($ED117)),$EC117,$EC$2&ROW($EC117)),$EB117,$EB$2&ROW($EB117)),$EA117,$EA$2&ROW($EA117)),$DZ117,$DZ$2&ROW($DZ117)),$DY117,$DY$2&ROW($DY117)),$DX117,$DX$2&ROW($DX117)),$DW117,$DW$2&ROW($DW117)),$DV117,$DV$2&ROW($DV117)),$DU117,$DU$2&ROW($DU117)),$DT117,$DT$2&ROW($DT117)),$DS117,$DS$2&ROW($DS117)))","v":0},{"$f":"IF(U117=\"\",0,\"X=\"&SUBSTITUTE(SUBSTITUTE(SUBSTITUTE(SUBSTITUTE(SUBSTITUTE(SUBSTITUTE(SUBSTITUTE(SUBSTITUTE(SUBSTITUTE(SUBSTITUTE(SUBSTITUTE(SUBSTITUTE(U117,$ED117,$ED$2&ROW($ED117)),$EC117,$EC$2&ROW($EC117)),$EB117,$EB$2&ROW($EB117)),$EA117,$EA$2&ROW($EA117)),$DZ117,$DZ$2&ROW($DZ117)),$DY117,$DY$2&ROW($DY117)),$DX117,$DX$2&ROW($DX117)),$DW117,$DW$2&ROW($DW117)),$DV117,$DV$2&ROW($DV117)),$DU117,$DU$2&ROW($DU117)),$DT117,$DT$2&ROW($DT117)),$DS117,$DS$2&ROW($DS117)))","v":0},{"$f":"IF(V117=\"\",0,\"X=\"&SUBSTITUTE(SUBSTITUTE(SUBSTITUTE(SUBSTITUTE(SUBSTITUTE(SUBSTITUTE(SUBSTITUTE(SUBSTITUTE(SUBSTITUTE(SUBSTITUTE(SUBSTITUTE(SUBSTITUTE(V117,$ED117,$ED$2&ROW($ED117)),$EC117,$EC$2&ROW($EC117)),$EB117,$EB$2&ROW($EB117)),$EA117,$EA$2&ROW($EA117)),$DZ117,$DZ$2&ROW($DZ117)),$DY117,$DY$2&ROW($DY117)),$DX117,$DX$2&ROW($DX117)),$DW117,$DW$2&ROW($DW117)),$DV117,$DV$2&ROW($DV117)),$DU117,$DU$2&ROW($DU117)),$DT117,$DT$2&ROW($DT117)),$DS117,$DS$2&ROW($DS117)))","v":0},{"$f":"IF(W117=\"\",0,\"X=\"&SUBSTITUTE(SUBSTITUTE(SUBSTITUTE(SUBSTITUTE(SUBSTITUTE(SUBSTITUTE(SUBSTITUTE(SUBSTITUTE(SUBSTITUTE(SUBSTITUTE(SUBSTITUTE(SUBSTITUTE(W117,$ED117,$ED$2&ROW($ED117)),$EC117,$EC$2&ROW($EC117)),$EB117,$EB$2&ROW($EB117)),$EA117,$EA$2&ROW($EA117)),$DZ117,$DZ$2&ROW($DZ117)),$DY117,$DY$2&ROW($DY117)),$DX117,$DX$2&ROW($DX117)),$DW117,$DW$2&ROW($DW117)),$DV117,$DV$2&ROW($DV117)),$DU117,$DU$2&ROW($DU117)),$DT117,$DT$2&ROW($DT117)),$DS117,$DS$2&ROW($DS117)))","v":"X=if(BE117<>1,0,AS117 * (AW117/(AY117-BA117)*186648/1000000) * (100/82-100/BC117)*10)"},{"$f":"IF(X117=\"\",0,\"X=\"&SUBSTITUTE(SUBSTITUTE(SUBSTITUTE(SUBSTITUTE(SUBSTITUTE(SUBSTITUTE(SUBSTITUTE(SUBSTITUTE(SUBSTITUTE(SUBSTITUTE(SUBSTITUTE(SUBSTITUTE(X117,$ED117,$ED$2&ROW($ED117)),$EC117,$EC$2&ROW($EC117)),$EB117,$EB$2&ROW($EB117)),$EA117,$EA$2&ROW($EA117)),$DZ117,$DZ$2&ROW($DZ117)),$DY117,$DY$2&ROW($DY117)),$DX117,$DX$2&ROW($DX117)),$DW117,$DW$2&ROW($DW117)),$DV117,$DV$2&ROW($DV117)),$DU117,$DU$2&ROW($DU117)),$DT117,$DT$2&ROW($DT117)),$DS117,$DS$2&ROW($DS117)))","v":"X=if(BE117<>2,0,AS117 * (AW117/(AY117-BA117)*186648/1000000) * (100/82-100/BC117))"},{"$f":"IF(Y117=\"\",0,\"X=\"&SUBSTITUTE(SUBSTITUTE(SUBSTITUTE(SUBSTITUTE(SUBSTITUTE(SUBSTITUTE(SUBSTITUTE(SUBSTITUTE(SUBSTITUTE(SUBSTITUTE(SUBSTITUTE(SUBSTITUTE(Y117,$ED117,$ED$2&ROW($ED117)),$EC117,$EC$2&ROW($EC117)),$EB117,$EB$2&ROW($EB117)),$EA117,$EA$2&ROW($EA117)),$DZ117,$DZ$2&ROW($DZ117)),$DY117,$DY$2&ROW($DY117)),$DX117,$DX$2&ROW($DX117)),$DW117,$DW$2&ROW($DW117)),$DV117,$DV$2&ROW($DV117)),$DU117,$DU$2&ROW($DU117)),$DT117,$DT$2&ROW($DT117)),$DS117,$DS$2&ROW($DS117)))","v":0},{"$f":"IF(Z117=\"\",0,\"X=\"&SUBSTITUTE(SUBSTITUTE(SUBSTITUTE(SUBSTITUTE(SUBSTITUTE(SUBSTITUTE(SUBSTITUTE(SUBSTITUTE(SUBSTITUTE(SUBSTITUTE(SUBSTITUTE(SUBSTITUTE(Z117,$ED117,$ED$2&ROW($ED117)),$EC117,$EC$2&ROW($EC117)),$EB117,$EB$2&ROW($EB117)),$EA117,$EA$2&ROW($EA117)),$DZ117,$DZ$2&ROW($DZ117)),$DY117,$DY$2&ROW($DY117)),$DX117,$DX$2&ROW($DX117)),$DW117,$DW$2&ROW($DW117)),$DV117,$DV$2&ROW($DV117)),$DU117,$DU$2&ROW($DU117)),$DT117,$DT$2&ROW($DT117)),$DS117,$DS$2&ROW($DS117)))","v":0},{"$f":"IF(AA117=\"\",0,\"X=\"&SUBSTITUTE(SUBSTITUTE(SUBSTITUTE(SUBSTITUTE(SUBSTITUTE(SUBSTITUTE(SUBSTITUTE(SUBSTITUTE(SUBSTITUTE(SUBSTITUTE(SUBSTITUTE(SUBSTITUTE(AA117,$ED117,$ED$2&ROW($ED117)),$EC117,$EC$2&ROW($EC117)),$EB117,$EB$2&ROW($EB117)),$EA117,$EA$2&ROW($EA117)),$DZ117,$DZ$2&ROW($DZ117)),$DY117,$DY$2&ROW($DY117)),$DX117,$DX$2&ROW($DX117)),$DW117,$DW$2&ROW($DW117)),$DV117,$DV$2&ROW($DV117)),$DU117,$DU$2&ROW($DU117)),$DT117,$DT$2&ROW($DT117)),$DS117,$DS$2&ROW($DS117)))","v":0},{"$f":"IF(AB117=\"\",0,\"X=\"&SUBSTITUTE(SUBSTITUTE(SUBSTITUTE(SUBSTITUTE(SUBSTITUTE(SUBSTITUTE(SUBSTITUTE(SUBSTITUTE(SUBSTITUTE(SUBSTITUTE(SUBSTITUTE(SUBSTITUTE(AB117,$ED117,$ED$2&ROW($ED117)),$EC117,$EC$2&ROW($EC117)),$EB117,$EB$2&ROW($EB117)),$EA117,$EA$2&ROW($EA117)),$DZ117,$DZ$2&ROW($DZ117)),$DY117,$DY$2&ROW($DY117)),$DX117,$DX$2&ROW($DX117)),$DW117,$DW$2&ROW($DW117)),$DV117,$DV$2&ROW($DV117)),$DU117,$DU$2&ROW($DU117)),$DT117,$DT$2&ROW($DT117)),$DS117,$DS$2&ROW($DS117)))","v":0},null,null,"{Factor:WinterCF}","{Factor:SummerCF}",{"$f":"IFERROR(INDEX($EG117:$IV117,MATCH(0,COUNTIF($DR117:DT117,$EG117:$IV117),0)),\"\")","v":"{Measure:Quantity}"},{"$f":"IFERROR(INDEX($EG117:$IV117,MATCH(0,COUNTIF($DR117:DU117,$EG117:$IV117),0)),\"\")","v":"{Equipment Capacity MBtu/h}"},{"$f":"IFERROR(INDEX($EG117:$IV117,MATCH(0,COUNTIF($DR117:DV117,$EG117:$IV117),0)),\"\")","v":"{Design Load (Btu/h)}"},{"$f":"IFERROR(INDEX($EG117:$IV117,MATCH(0,COUNTIF($DR117:DW117,$EG117:$IV117),0)),\"\")","v":"{Indoor Design Temp (oF)}"},{"$f":"IFERROR(INDEX($EG117:$IV117,MATCH(0,COUNTIF($DR117:DX117,$EG117:$IV117),0)),\"\")","v":"{Outdoor Design Temp (oF)}"},{"$f":"IFERROR(INDEX($EG117:$IV117,MATCH(0,COUNTIF($DR117:DY117,$EG117:$IV117),0)),\"\")","v":"{Unit Efficiency - AFUE or Thermal Efficiency}"},{"$f":"IFERROR(INDEX($EG117:$IV117,MATCH(0,COUNTIF($DR117:DZ117,$EG117:$IV117),0)),\"\")","v":"{Fuel}"},{"$f":"IFERROR(INDEX($EG117:$IV117,MATCH(0,COUNTIF($DR117:EA117,$EG117:$IV117),0)),\"\")","v":""},{"$f":"IFERROR(INDEX($EG117:$IV117,MATCH(0,COUNTIF($DR117:EB117,$EG117:$IV117),0)),\"\")","v":""},{"$f":"IFERROR(INDEX($EG117:$IV117,MATCH(0,COUNTIF($DR117:EC117,$EG117:$IV117),0)),\"\")","v":""},null,null,{"$f":"IFERROR(MID($G117,FIND(CHAR(160),SUBSTITUTE($G117,\"{\",CHAR(160),EG$1)),FIND(CHAR(160),SUBSTITUTE($G117,\"}\",CHAR(160),EG$1))-FIND(CHAR(160),SUBSTITUTE($G117,\"{\",CHAR(160),EG$1))+1),\"\")","v":"{Measure:Quantity}"},{"$f":"IFERROR(MID($G117,FIND(CHAR(160),SUBSTITUTE($G117,\"{\",CHAR(160),EH$1)),FIND(CHAR(160),SUBSTITUTE($G117,\"}\",CHAR(160),EH$1))-FIND(CHAR(160),SUBSTITUTE($G117,\"{\",CHAR(160),EH$1))+1),\"\")","v":"{Equipment Capacity MBtu/h}"},{"$f":"IFERROR(MID($G117,FIND(CHAR(160),SUBSTITUTE($G117,\"{\",CHAR(160),EI$1)),FIND(CHAR(160),SUBSTITUTE($G117,\"}\",CHAR(160),EI$1))-FIND(CHAR(160),SUBSTITUTE($G117,\"{\",CHAR(160),EI$1))+1),\"\")","v":""},{"$f":"IFERROR(MID($G117,FIND(CHAR(160),SUBSTITUTE($G117,\"{\",CHAR(160),EJ$1)),FIND(CHAR(160),SUBSTITUTE($G117,\"}\",CHAR(160),EJ$1))-FIND(CHAR(160),SUBSTITUTE($G117,\"{\",CHAR(160),EJ$1))+1),\"\")","v":""},{"$f":"IFERROR(MID($G117,FIND(CHAR(160),SUBSTITUTE($G117,\"{\",CHAR(160),EK$1)),FIND(CHAR(160),SUBSTITUTE($G117,\"}\",CHAR(160),EK$1))-FIND(CHAR(160),SUBSTITUTE($G117,\"{\",CHAR(160),EK$1))+1),\"\")","v":""},{"$f":"IFERROR(MID($G117,FIND(CHAR(160),SUBSTITUTE($G117,\"{\",CHAR(160),EL$1)),FIND(CHAR(160),SUBSTITUTE($G117,\"}\",CHAR(160),EL$1))-FIND(CHAR(160),SUBSTITUTE($G117,\"{\",CHAR(160),EL$1))+1),\"\")","v":""},{"$f":"IFERROR(MID($G117,FIND(CHAR(160),SUBSTITUTE($G117,\"{\",CHAR(160),EM$1)),FIND(CHAR(160),SUBSTITUTE($G117,\"}\",CHAR(160),EM$1))-FIND(CHAR(160),SUBSTITUTE($G117,\"{\",CHAR(160),EM$1))+1),\"\")","v":""},{"$f":"IFERROR(MID($G117,FIND(CHAR(160),SUBSTITUTE($G117,\"{\",CHAR(160),EN$1)),FIND(CHAR(160),SUBSTITUTE($G117,\"}\",CHAR(160),EN$1))-FIND(CHAR(160),SUBSTITUTE($G117,\"{\",CHAR(160),EN$1))+1),\"\")","v":""},{"$f":"IFERROR(MID($G117,FIND(CHAR(160),SUBSTITUTE($G117,\"{\",CHAR(160),EO$1)),FIND(CHAR(160),SUBSTITUTE($G117,\"}\",CHAR(160),EO$1))-FIND(CHAR(160),SUBSTITUTE($G117,\"{\",CHAR(160),EO$1))+1),\"\")","v":""},{"$f":"IFERROR(MID($G117,FIND(CHAR(160),SUBSTITUTE($G117,\"{\",CHAR(160),EP$1)),FIND(CHAR(160),SUBSTITUTE($G117,\"}\",CHAR(160),EP$1))-FIND(CHAR(160),SUBSTITUTE($G117,\"{\",CHAR(160),EP$1))+1),\"\")","v":""},{"$f":"IFERROR(MID($J117,FIND(CHAR(160),SUBSTITUTE($J117,\"{\",CHAR(160),EQ$1)),FIND(CHAR(160),SUBSTITUTE($J117,\"}\",CHAR(160),EQ$1))-FIND(CHAR(160),SUBSTITUTE($J117,\"{\",CHAR(160),EQ$1))+1),\"\")","v":"{Measure:Quantity}"},{"$f":"IFERROR(MID($J117,FIND(CHAR(160),SUBSTITUTE($J117,\"{\",CHAR(160),ER$1)),FIND(CHAR(160),SUBSTITUTE($J117,\"}\",CHAR(160),ER$1))-FIND(CHAR(160),SUBSTITUTE($J117,\"{\",CHAR(160),ER$1))+1),\"\")","v":""},{"$f":"IFERROR(MID($J117,FIND(CHAR(160),SUBSTITUTE($J117,\"{\",CHAR(160),ES$1)),FIND(CHAR(160),SUBSTITUTE($J117,\"}\",CHAR(160),ES$1))-FIND(CHAR(160),SUBSTITUTE($J117,\"{\",CHAR(160),ES$1))+1),\"\")","v":""},{"$f":"IFERROR(MID($J117,FIND(CHAR(160),SUBSTITUTE($J117,\"{\",CHAR(160),ET$1)),FIND(CHAR(160),SUBSTITUTE($J117,\"}\",CHAR(160),ET$1))-FIND(CHAR(160),SUBSTITUTE($J117,\"{\",CHAR(160),ET$1))+1),\"\")","v":""},{"$f":"IFERROR(MID($J117,FIND(CHAR(160),SUBSTITUTE($J117,\"{\",CHAR(160),EU$1)),FIND(CHAR(160),SUBSTITUTE($J117,\"}\",CHAR(160),EU$1))-FIND(CHAR(160),SUBSTITUTE($J117,\"{\",CHAR(160),EU$1))+1),\"\")","v":""},{"$f":"IFERROR(MID($J117,FIND(CHAR(160),SUBSTITUTE($J117,\"{\",CHAR(160),EV$1)),FIND(CHAR(160),SUBSTITUTE($J117,\"}\",CHAR(160),EV$1))-FIND(CHAR(160),SUBSTITUTE($J117,\"{\",CHAR(160),EV$1))+1),\"\")","v":""},{"$f":"IFERROR(MID($J117,FIND(CHAR(160),SUBSTITUTE($J117,\"{\",CHAR(160),EW$1)),FIND(CHAR(160),SUBSTITUTE($J117,\"}\",CHAR(160),EW$1))-FIND(CHAR(160),SUBSTITUTE($J117,\"{\",CHAR(160),EW$1))+1),\"\")","v":""},{"$f":"IFERROR(MID($J117,FIND(CHAR(160),SUBSTITUTE($J117,\"{\",CHAR(160),EX$1)),FIND(CHAR(160),SUBSTITUTE($J117,\"}\",CHAR(160),EX$1))-FIND(CHAR(160),SUBSTITUTE($J117,\"{\",CHAR(160),EX$1))+1),\"\")","v":""},{"$f":"IFERROR(MID($J117,FIND(CHAR(160),SUBSTITUTE($J117,\"{\",CHAR(160),EY$1)),FIND(CHAR(160),SUBSTITUTE($J117,\"}\",CHAR(160),EY$1))-FIND(CHAR(160),SUBSTITUTE($J117,\"{\",CHAR(160),EY$1))+1),\"\")","v":""},{"$f":"IFERROR(MID($J117,FIND(CHAR(160),SUBSTITUTE($J117,\"{\",CHAR(160),EZ$1)),FIND(CHAR(160),SUBSTITUTE($J117,\"}\",CHAR(160),EZ$1))-FIND(CHAR(160),SUBSTITUTE($J117,\"{\",CHAR(160),EZ$1))+1),\"\")","v":""},{"$f":"IFERROR(MID($J117,FIND(CHAR(160),SUBSTITUTE($J117,\"{\",CHAR(160),FA$1)),FIND(CHAR(160),SUBSTITUTE($J117,\"}\",CHAR(160),FA$1))-FIND(CHAR(160),SUBSTITUTE($J117,\"{\",CHAR(160),FA$1))+1),\"\")","v":"{Measure:Quantity}"},{"$f":"IFERROR(MID($J117,FIND(CHAR(160),SUBSTITUTE($J117,\"{\",CHAR(160),FB$1)),FIND(CHAR(160),SUBSTITUTE($J117,\"}\",CHAR(160),FB$1))-FIND(CHAR(160),SUBSTITUTE($J117,\"{\",CHAR(160),FB$1))+1),\"\")","v":""},{"$f":"IFERROR(MID($O117,FIND(CHAR(160),SUBSTITUTE($O117,\"{\",CHAR(160),FC$1)),FIND(CHAR(160),SUBSTITUTE($O117,\"}\",CHAR(160),FC$1))-FIND(CHAR(160),SUBSTITUTE($O117,\"{\",CHAR(160),FC$1))+1),\"\")","v":""},{"$f":"IFERROR(MID($O117,FIND(CHAR(160),SUBSTITUTE($O117,\"{\",CHAR(160),FD$1)),FIND(CHAR(160),SUBSTITUTE($O117,\"}\",CHAR(160),FD$1))-FIND(CHAR(160),SUBSTITUTE($O117,\"{\",CHAR(160),FD$1))+1),\"\")","v":""},{"$f":"IFERROR(MID($O117,FIND(CHAR(160),SUBSTITUTE($O117,\"{\",CHAR(160),FE$1)),FIND(CHAR(160),SUBSTITUTE($O117,\"}\",CHAR(160),FE$1))-FIND(CHAR(160),SUBSTITUTE($O117,\"{\",CHAR(160),FE$1))+1),\"\")","v":""},{"$f":"IFERROR(MID($O117,FIND(CHAR(160),SUBSTITUTE($O117,\"{\",CHAR(160),FF$1)),FIND(CHAR(160),SUBSTITUTE($O117,\"}\",CHAR(160),FF$1))-FIND(CHAR(160),SUBSTITUTE($O117,\"{\",CHAR(160),FF$1))+1),\"\")","v":""},{"$f":"IFERROR(MID($O117,FIND(CHAR(160),SUBSTITUTE($O117,\"{\",CHAR(160),FG$1)),FIND(CHAR(160),SUBSTITUTE($O117,\"}\",CHAR(160),FG$1))-FIND(CHAR(160),SUBSTITUTE($O117,\"{\",CHAR(160),FG$1))+1),\"\")","v":""},{"$f":"IFERROR(MID($O117,FIND(CHAR(160),SUBSTITUTE($O117,\"{\",CHAR(160),FH$1)),FIND(CHAR(160),SUBSTITUTE($O117,\"}\",CHAR(160),FH$1))-FIND(CHAR(160),SUBSTITUTE($O117,\"{\",CHAR(160),FH$1))+1),\"\")","v":""},{"$f":"IFERROR(MID($O117,FIND(CHAR(160),SUBSTITUTE($O117,\"{\",CHAR(160),FI$1)),FIND(CHAR(160),SUBSTITUTE($O117,\"}\",CHAR(160),FI$1))-FIND(CHAR(160),SUBSTITUTE($O117,\"{\",CHAR(160),FI$1))+1),\"\")","v":""},{"$f":"IFERROR(MID($O117,FIND(CHAR(160),SUBSTITUTE($O117,\"{\",CHAR(160),FJ$1)),FIND(CHAR(160),SUBSTITUTE($O117,\"}\",CHAR(160),FJ$1))-FIND(CHAR(160),SUBSTITUTE($O117,\"{\",CHAR(160),FJ$1))+1),\"\")","v":""},{"$f":"IFERROR(MID($O117,FIND(CHAR(160),SUBSTITUTE($O117,\"{\",CHAR(160),FK$1)),FIND(CHAR(160),SUBSTITUTE($O117,\"}\",CHAR(160),FK$1))-FIND(CHAR(160),SUBSTITUTE($O117,\"{\",CHAR(160),FK$1))+1),\"\")","v":""},{"$f":"IFERROR(MID($O117,FIND(CHAR(160),SUBSTITUTE($O117,\"{\",CHAR(160),FL$1)),FIND(CHAR(160),SUBSTITUTE($O117,\"}\",CHAR(160),FL$1))-FIND(CHAR(160),SUBSTITUTE($O117,\"{\",CHAR(160),FL$1))+1),\"\")","v":""},{"$f":"IFERROR(MID($R117,FIND(CHAR(160),SUBSTITUTE($R117,\"{\",CHAR(160),FM$1)),FIND(CHAR(160),SUBSTITUTE($R117,\"}\",CHAR(160),FM$1))-FIND(CHAR(160),SUBSTITUTE($R117,\"{\",CHAR(160),FM$1))+1),\"\")","v":""},{"$f":"IFERROR(MID($R117,FIND(CHAR(160),SUBSTITUTE($R117,\"{\",CHAR(160),FN$1)),FIND(CHAR(160),SUBSTITUTE($R117,\"}\",CHAR(160),FN$1))-FIND(CHAR(160),SUBSTITUTE($R117,\"{\",CHAR(160),FN$1))+1),\"\")","v":""},{"$f":"IFERROR(MID($R117,FIND(CHAR(160),SUBSTITUTE($R117,\"{\",CHAR(160),FO$1)),FIND(CHAR(160),SUBSTITUTE($R117,\"}\",CHAR(160),FO$1))-FIND(CHAR(160),SUBSTITUTE($R117,\"{\",CHAR(160),FO$1))+1),\"\")","v":""},{"$f":"IFERROR(MID($R117,FIND(CHAR(160),SUBSTITUTE($R117,\"{\",CHAR(160),FP$1)),FIND(CHAR(160),SUBSTITUTE($R117,\"}\",CHAR(160),FP$1))-FIND(CHAR(160),SUBSTITUTE($R117,\"{\",CHAR(160),FP$1))+1),\"\")","v":""},{"$f":"IFERROR(MID($R117,FIND(CHAR(160),SUBSTITUTE($R117,\"{\",CHAR(160),FQ$1)),FIND(CHAR(160),SUBSTITUTE($R117,\"}\",CHAR(160),FQ$1))-FIND(CHAR(160),SUBSTITUTE($R117,\"{\",CHAR(160),FQ$1))+1),\"\")","v":""},{"$f":"IFERROR(MID($R117,FIND(CHAR(160),SUBSTITUTE($R117,\"{\",CHAR(160),FR$1)),FIND(CHAR(160),SUBSTITUTE($R117,\"}\",CHAR(160),FR$1))-FIND(CHAR(160),SUBSTITUTE($R117,\"{\",CHAR(160),FR$1))+1),\"\")","v":""},{"$f":"IFERROR(MID($R117,FIND(CHAR(160),SUBSTITUTE($R117,\"{\",CHAR(160),FS$1)),FIND(CHAR(160),SUBSTITUTE($R117,\"}\",CHAR(160),FS$1))-FIND(CHAR(160),SUBSTITUTE($R117,\"{\",CHAR(160),FS$1))+1),\"\")","v":""},{"$f":"IFERROR(MID($R117,FIND(CHAR(160),SUBSTITUTE($R117,\"{\",CHAR(160),FT$1)),FIND(CHAR(160),SUBSTITUTE($R117,\"}\",CHAR(160),FT$1))-FIND(CHAR(160),SUBSTITUTE($R117,\"{\",CHAR(160),FT$1))+1),\"\")","v":""},{"$f":"IFERROR(MID($R117,FIND(CHAR(160),SUBSTITUTE($R117,\"{\",CHAR(160),FU$1)),FIND(CHAR(160),SUBSTITUTE($R117,\"}\",CHAR(160),FU$1))-FIND(CHAR(160),SUBSTITUTE($R117,\"{\",CHAR(160),FU$1))+1),\"\")","v":""},{"$f":"IFERROR(MID($R117,FIND(CHAR(160),SUBSTITUTE($R117,\"{\",CHAR(160),FV$1)),FIND(CHAR(160),SUBSTITUTE($R117,\"}\",CHAR(160),FV$1))-FIND(CHAR(160),SUBSTITUTE($R117,\"{\",CHAR(160),FV$1))+1),\"\")","v":""},{"$f":"IFERROR(MID($U117,FIND(CHAR(160),SUBSTITUTE($U117,\"{\",CHAR(160),FW$1)),FIND(CHAR(160),SUBSTITUTE($U117,\"}\",CHAR(160),FW$1))-FIND(CHAR(160),SUBSTITUTE($U117,\"{\",CHAR(160),FW$1))+1),\"\")","v":""},{"$f":"IFERROR(MID($U117,FIND(CHAR(160),SUBSTITUTE($U117,\"{\",CHAR(160),FX$1)),FIND(CHAR(160),SUBSTITUTE($U117,\"}\",CHAR(160),FX$1))-FIND(CHAR(160),SUBSTITUTE($U117,\"{\",CHAR(160),FX$1))+1),\"\")","v":""},{"$f":"IFERROR(MID($U117,FIND(CHAR(160),SUBSTITUTE($U117,\"{\",CHAR(160),FY$1)),FIND(CHAR(160),SUBSTITUTE($U117,\"}\",CHAR(160),FY$1))-FIND(CHAR(160),SUBSTITUTE($U117,\"{\",CHAR(160),FY$1))+1),\"\")","v":""},{"$f":"IFERROR(MID($U117,FIND(CHAR(160),SUBSTITUTE($U117,\"{\",CHAR(160),FZ$1)),FIND(CHAR(160),SUBSTITUTE($U117,\"}\",CHAR(160),FZ$1))-FIND(CHAR(160),SUBSTITUTE($U117,\"{\",CHAR(160),FZ$1))+1),\"\")","v":""},{"$f":"IFERROR(MID($U117,FIND(CHAR(160),SUBSTITUTE($U117,\"{\",CHAR(160),GA$1)),FIND(CHAR(160),SUBSTITUTE($U117,\"}\",CHAR(160),GA$1))-FIND(CHAR(160),SUBSTITUTE($U117,\"{\",CHAR(160),GA$1))+1),\"\")","v":""},{"$f":"IFERROR(MID($U117,FIND(CHAR(160),SUBSTITUTE($U117,\"{\",CHAR(160),GB$1)),FIND(CHAR(160),SUBSTITUTE($U117,\"}\",CHAR(160),GB$1))-FIND(CHAR(160),SUBSTITUTE($U117,\"{\",CHAR(160),GB$1))+1),\"\")","v":""},{"$f":"IFERROR(MID($U117,FIND(CHAR(160),SUBSTITUTE($U117,\"{\",CHAR(160),GC$1)),FIND(CHAR(160),SUBSTITUTE($U117,\"}\",CHAR(160),GC$1))-FIND(CHAR(160),SUBSTITUTE($U117,\"{\",CHAR(160),GC$1))+1),\"\")","v":""},{"$f":"IFERROR(MID($U117,FIND(CHAR(160),SUBSTITUTE($U117,\"{\",CHAR(160),GD$1)),FIND(CHAR(160),SUBSTITUTE($U117,\"}\",CHAR(160),GD$1))-FIND(CHAR(160),SUBSTITUTE($U117,\"{\",CHAR(160),GD$1))+1),\"\")","v":""},{"$f":"IFERROR(MID($U117,FIND(CHAR(160),SUBSTITUTE($U117,\"{\",CHAR(160),GE$1)),FIND(CHAR(160),SUBSTITUTE($U117,\"}\",CHAR(160),GE$1))-FIND(CHAR(160),SUBSTITUTE($U117,\"{\",CHAR(160),GE$1))+1),\"\")","v":""},{"$f":"IFERROR(MID($U117,FIND(CHAR(160),SUBSTITUTE($U117,\"{\",CHAR(160),GF$1)),FIND(CHAR(160),SUBSTITUTE($U117,\"}\",CHAR(160),GF$1))-FIND(CHAR(160),SUBSTITUTE($U117,\"{\",CHAR(160),GF$1))+1),\"\")","v":""},{"$f":"IFERROR(MID($V117,FIND(CHAR(160),SUBSTITUTE($V117,\"{\",CHAR(160),GG$1)),FIND(CHAR(160),SUBSTITUTE($V117,\"}\",CHAR(160),GG$1))-FIND(CHAR(160),SUBSTITUTE($V117,\"{\",CHAR(160),GG$1))+1),\"\")","v":""},{"$f":"IFERROR(MID($V117,FIND(CHAR(160),SUBSTITUTE($V117,\"{\",CHAR(160),GH$1)),FIND(CHAR(160),SUBSTITUTE($V117,\"}\",CHAR(160),GH$1))-FIND(CHAR(160),SUBSTITUTE($V117,\"{\",CHAR(160),GH$1))+1),\"\")","v":""},{"$f":"IFERROR(MID($V117,FIND(CHAR(160),SUBSTITUTE($V117,\"{\",CHAR(160),GI$1)),FIND(CHAR(160),SUBSTITUTE($V117,\"}\",CHAR(160),GI$1))-FIND(CHAR(160),SUBSTITUTE($V117,\"{\",CHAR(160),GI$1))+1),\"\")","v":""},{"$f":"IFERROR(MID($V117,FIND(CHAR(160),SUBSTITUTE($V117,\"{\",CHAR(160),GJ$1)),FIND(CHAR(160),SUBSTITUTE($V117,\"}\",CHAR(160),GJ$1))-FIND(CHAR(160),SUBSTITUTE($V117,\"{\",CHAR(160),GJ$1))+1),\"\")","v":""},{"$f":"IFERROR(MID($V117,FIND(CHAR(160),SUBSTITUTE($V117,\"{\",CHAR(160),GK$1)),FIND(CHAR(160),SUBSTITUTE($V117,\"}\",CHAR(160),GK$1))-FIND(CHAR(160),SUBSTITUTE($V117,\"{\",CHAR(160),GK$1))+1),\"\")","v":""},{"$f":"IFERROR(MID($V117,FIND(CHAR(160),SUBSTITUTE($V117,\"{\",CHAR(160),GL$1)),FIND(CHAR(160),SUBSTITUTE($V117,\"}\",CHAR(160),GL$1))-FIND(CHAR(160),SUBSTITUTE($V117,\"{\",CHAR(160),GL$1))+1),\"\")","v":""},{"$f":"IFERROR(MID($V117,FIND(CHAR(160),SUBSTITUTE($V117,\"{\",CHAR(160),GM$1)),FIND(CHAR(160),SUBSTITUTE($V117,\"}\",CHAR(160),GM$1))-FIND(CHAR(160),SUBSTITUTE($V117,\"{\",CHAR(160),GM$1))+1),\"\")","v":""},{"$f":"IFERROR(MID($V117,FIND(CHAR(160),SUBSTITUTE($V117,\"{\",CHAR(160),GN$1)),FIND(CHAR(160),SUBSTITUTE($V117,\"}\",CHAR(160),GN$1))-FIND(CHAR(160),SUBSTITUTE($V117,\"{\",CHAR(160),GN$1))+1),\"\")","v":""},{"$f":"IFERROR(MID($V117,FIND(CHAR(160),SUBSTITUTE($V117,\"{\",CHAR(160),GO$1)),FIND(CHAR(160),SUBSTITUTE($V117,\"}\",CHAR(160),GO$1))-FIND(CHAR(160),SUBSTITUTE($V117,\"{\",CHAR(160),GO$1))+1),\"\")","v":""},{"$f":"IFERROR(MID($V117,FIND(CHAR(160),SUBSTITUTE($V117,\"{\",CHAR(160),GP$1)),FIND(CHAR(160),SUBSTITUTE($V117,\"}\",CHAR(160),GP$1))-FIND(CHAR(160),SUBSTITUTE($V117,\"{\",CHAR(160),GP$1))+1),\"\")","v":""},{"$f":"IFERROR(MID($W117,FIND(CHAR(160),SUBSTITUTE($W117,\"{\",CHAR(160),GQ$1)),FIND(CHAR(160),SUBSTITUTE($W117,\"}\",CHAR(160),GQ$1))-FIND(CHAR(160),SUBSTITUTE($W117,\"{\",CHAR(160),GQ$1))+1),\"\")","v":"{Design Load (Btu/h)}"},{"$f":"IFERROR(MID($W117,FIND(CHAR(160),SUBSTITUTE($W117,\"{\",CHAR(160),GR$1)),FIND(CHAR(160),SUBSTITUTE($W117,\"}\",CHAR(160),GR$1))-FIND(CHAR(160),SUBSTITUTE($W117,\"{\",CHAR(160),GR$1))+1),\"\")","v":"{Indoor Design Temp (oF)}"},{"$f":"IFERROR(MID($W117,FIND(CHAR(160),SUBSTITUTE($W117,\"{\",CHAR(160),GS$1)),FIND(CHAR(160),SUBSTITUTE($W117,\"}\",CHAR(160),GS$1))-FIND(CHAR(160),SUBSTITUTE($W117,\"{\",CHAR(160),GS$1))+1),\"\")","v":"{Outdoor Design Temp (oF)}"},{"$f":"IFERROR(MID($W117,FIND(CHAR(160),SUBSTITUTE($W117,\"{\",CHAR(160),GT$1)),FIND(CHAR(160),SUBSTITUTE($W117,\"}\",CHAR(160),GT$1))-FIND(CHAR(160),SUBSTITUTE($W117,\"{\",CHAR(160),GT$1))+1),\"\")","v":"{Unit Efficiency - AFUE or Thermal Efficiency}"},{"$f":"IFERROR(MID($W117,FIND(CHAR(160),SUBSTITUTE($W117,\"{\",CHAR(160),GU$1)),FIND(CHAR(160),SUBSTITUTE($W117,\"}\",CHAR(160),GU$1))-FIND(CHAR(160),SUBSTITUTE($W117,\"{\",CHAR(160),GU$1))+1),\"\")","v":""},{"$f":"IFERROR(MID($W117,FIND(CHAR(160),SUBSTITUTE($W117,\"{\",CHAR(160),GV$1)),FIND(CHAR(160),SUBSTITUTE($W117,\"}\",CHAR(160),GV$1))-FIND(CHAR(160),SUBSTITUTE($W117,\"{\",CHAR(160),GV$1))+1),\"\")","v":""},{"$f":"IFERROR(MID($W117,FIND(CHAR(160),SUBSTITUTE($W117,\"{\",CHAR(160),GW$1)),FIND(CHAR(160),SUBSTITUTE($W117,\"}\",CHAR(160),GW$1))-FIND(CHAR(160),SUBSTITUTE($W117,\"{\",CHAR(160),GW$1))+1),\"\")","v":""},{"$f":"IFERROR(MID($W117,FIND(CHAR(160),SUBSTITUTE($W117,\"{\",CHAR(160),GX$1)),FIND(CHAR(160),SUBSTITUTE($W117,\"}\",CHAR(160),GX$1))-FIND(CHAR(160),SUBSTITUTE($W117,\"{\",CHAR(160),GX$1))+1),\"\")","v":""},{"$f":"IFERROR(MID($W117,FIND(CHAR(160),SUBSTITUTE($W117,\"{\",CHAR(160),GY$1)),FIND(CHAR(160),SUBSTITUTE($W117,\"}\",CHAR(160),GY$1))-FIND(CHAR(160),SUBSTITUTE($W117,\"{\",CHAR(160),GY$1))+1),\"\")","v":"{Fuel}"},{"$f":"IFERROR(MID($W117,FIND(CHAR(160),SUBSTITUTE($W117,\"{\",CHAR(160),GZ$1)),FIND(CHAR(160),SUBSTITUTE($W117,\"}\",CHAR(160),GZ$1))-FIND(CHAR(160),SUBSTITUTE($W117,\"{\",CHAR(160),GZ$1))+1),\"\")","v":"{Measure:Quantity}"},{"$f":"IFERROR(MID($X117,FIND(CHAR(160),SUBSTITUTE($X117,\"{\",CHAR(160),HA$1)),FIND(CHAR(160),SUBSTITUTE($X117,\"}\",CHAR(160),HA$1))-FIND(CHAR(160),SUBSTITUTE($X117,\"{\",CHAR(160),HA$1))+1),\"\")","v":"{Design Load (Btu/h)}"},{"$f":"IFERROR(MID($X117,FIND(CHAR(160),SUBSTITUTE($X117,\"{\",CHAR(160),HB$1)),FIND(CHAR(160),SUBSTITUTE($X117,\"}\",CHAR(160),HB$1))-FIND(CHAR(160),SUBSTITUTE($X117,\"{\",CHAR(160),HB$1))+1),\"\")","v":"{Indoor Design Temp (oF)}"},{"$f":"IFERROR(MID($X117,FIND(CHAR(160),SUBSTITUTE($X117,\"{\",CHAR(160),HC$1)),FIND(CHAR(160),SUBSTITUTE($X117,\"}\",CHAR(160),HC$1))-FIND(CHAR(160),SUBSTITUTE($X117,\"{\",CHAR(160),HC$1))+1),\"\")","v":"{Outdoor Design Temp (oF)}"},{"$f":"IFERROR(MID($X117,FIND(CHAR(160),SUBSTITUTE($X117,\"{\",CHAR(160),HD$1)),FIND(CHAR(160),SUBSTITUTE($X117,\"}\",CHAR(160),HD$1))-FIND(CHAR(160),SUBSTITUTE($X117,\"{\",CHAR(160),HD$1))+1),\"\")","v":"{Unit Efficiency - AFUE or Thermal Efficiency}"},{"$f":"IFERROR(MID($X117,FIND(CHAR(160),SUBSTITUTE($X117,\"{\",CHAR(160),HE$1)),FIND(CHAR(160),SUBSTITUTE($X117,\"}\",CHAR(160),HE$1))-FIND(CHAR(160),SUBSTITUTE($X117,\"{\",CHAR(160),HE$1))+1),\"\")","v":""},{"$f":"IFERROR(MID($X117,FIND(CHAR(160),SUBSTITUTE($X117,\"{\",CHAR(160),HF$1)),FIND(CHAR(160),SUBSTITUTE($X117,\"}\",CHAR(160),HF$1))-FIND(CHAR(160),SUBSTITUTE($X117,\"{\",CHAR(160),HF$1))+1),\"\")","v":""},{"$f":"IFERROR(MID($X117,FIND(CHAR(160),SUBSTITUTE($X117,\"{\",CHAR(160),HG$1)),FIND(CHAR(160),SUBSTITUTE($X117,\"}\",CHAR(160),HG$1))-FIND(CHAR(160),SUBSTITUTE($X117,\"{\",CHAR(160),HG$1))+1),\"\")","v":""},{"$f":"IFERROR(MID($X117,FIND(CHAR(160),SUBSTITUTE($X117,\"{\",CHAR(160),HH$1)),FIND(CHAR(160),SUBSTITUTE($X117,\"}\",CHAR(160),HH$1))-FIND(CHAR(160),SUBSTITUTE($X117,\"{\",CHAR(160),HH$1))+1),\"\")","v":""},{"$f":"IFERROR(MID($X117,FIND(CHAR(160),SUBSTITUTE($X117,\"{\",CHAR(160),HI$1)),FIND(CHAR(160),SUBSTITUTE($X117,\"}\",CHAR(160),HI$1))-FIND(CHAR(160),SUBSTITUTE($X117,\"{\",CHAR(160),HI$1))+1),\"\")","v":"{Fuel}"},{"$f":"IFERROR(MID($X117,FIND(CHAR(160),SUBSTITUTE($X117,\"{\",CHAR(160),HJ$1)),FIND(CHAR(160),SUBSTITUTE($X117,\"}\",CHAR(160),HJ$1))-FIND(CHAR(160),SUBSTITUTE($X117,\"{\",CHAR(160),HJ$1))+1),\"\")","v":"{Measure:Quantity}"},{"$f":"IFERROR(MID($Y117,FIND(CHAR(160),SUBSTITUTE($Y117,\"{\",CHAR(160),HK$1)),FIND(CHAR(160),SUBSTITUTE($Y117,\"}\",CHAR(160),HK$1))-FIND(CHAR(160),SUBSTITUTE($Y117,\"{\",CHAR(160),HK$1))+1),\"\")","v":""},{"$f":"IFERROR(MID($Y117,FIND(CHAR(160),SUBSTITUTE($Y117,\"{\",CHAR(160),HL$1)),FIND(CHAR(160),SUBSTITUTE($Y117,\"}\",CHAR(160),HL$1))-FIND(CHAR(160),SUBSTITUTE($Y117,\"{\",CHAR(160),HL$1))+1),\"\")","v":""},{"$f":"IFERROR(MID($Y117,FIND(CHAR(160),SUBSTITUTE($Y117,\"{\",CHAR(160),HM$1)),FIND(CHAR(160),SUBSTITUTE($Y117,\"}\",CHAR(160),HM$1))-FIND(CHAR(160),SUBSTITUTE($Y117,\"{\",CHAR(160),HM$1))+1),\"\")","v":""},{"$f":"IFERROR(MID($Y117,FIND(CHAR(160),SUBSTITUTE($Y117,\"{\",CHAR(160),HN$1)),FIND(CHAR(160),SUBSTITUTE($Y117,\"}\",CHAR(160),HN$1))-FIND(CHAR(160),SUBSTITUTE($Y117,\"{\",CHAR(160),HN$1))+1),\"\")","v":""},{"$f":"IFERROR(MID($Y117,FIND(CHAR(160),SUBSTITUTE($Y117,\"{\",CHAR(160),HO$1)),FIND(CHAR(160),SUBSTITUTE($Y117,\"}\",CHAR(160),HO$1))-FIND(CHAR(160),SUBSTITUTE($Y117,\"{\",CHAR(160),HO$1))+1),\"\")","v":""},{"$f":"IFERROR(MID($Y117,FIND(CHAR(160),SUBSTITUTE($Y117,\"{\",CHAR(160),HP$1)),FIND(CHAR(160),SUBSTITUTE($Y117,\"}\",CHAR(160),HP$1))-FIND(CHAR(160),SUBSTITUTE($Y117,\"{\",CHAR(160),HP$1))+1),\"\")","v":""},{"$f":"IFERROR(MID($Y117,FIND(CHAR(160),SUBSTITUTE($Y117,\"{\",CHAR(160),HQ$1)),FIND(CHAR(160),SUBSTITUTE($Y117,\"}\",CHAR(160),HQ$1))-FIND(CHAR(160),SUBSTITUTE($Y117,\"{\",CHAR(160),HQ$1))+1),\"\")","v":""},{"$f":"IFERROR(MID($Y117,FIND(CHAR(160),SUBSTITUTE($Y117,\"{\",CHAR(160),HR$1)),FIND(CHAR(160),SUBSTITUTE($Y117,\"}\",CHAR(160),HR$1))-FIND(CHAR(160),SUBSTITUTE($Y117,\"{\",CHAR(160),HR$1))+1),\"\")","v":""},{"$f":"IFERROR(MID($Y117,FIND(CHAR(160),SUBSTITUTE($Y117,\"{\",CHAR(160),HS$1)),FIND(CHAR(160),SUBSTITUTE($Y117,\"}\",CHAR(160),HS$1))-FIND(CHAR(160),SUBSTITUTE($Y117,\"{\",CHAR(160),HS$1))+1),\"\")","v":""},{"$f":"IFERROR(MID($Y117,FIND(CHAR(160),SUBSTITUTE($Y117,\"{\",CHAR(160),HT$1)),FIND(CHAR(160),SUBSTITUTE($Y117,\"}\",CHAR(160),HT$1))-FIND(CHAR(160),SUBSTITUTE($Y117,\"{\",CHAR(160),HT$1))+1),\"\")","v":""},{"$f":"IFERROR(MID($Z117,FIND(CHAR(160),SUBSTITUTE($Z117,\"{\",CHAR(160),HU$1)),FIND(CHAR(160),SUBSTITUTE($Z117,\"}\",CHAR(160),HU$1))-FIND(CHAR(160),SUBSTITUTE($Z117,\"{\",CHAR(160),HU$1))+1),\"\")","v":""},{"$f":"IFERROR(MID($Z117,FIND(CHAR(160),SUBSTITUTE($Z117,\"{\",CHAR(160),HV$1)),FIND(CHAR(160),SUBSTITUTE($Z117,\"}\",CHAR(160),HV$1))-FIND(CHAR(160),SUBSTITUTE($Z117,\"{\",CHAR(160),HV$1))+1),\"\")","v":""},{"$f":"IFERROR(MID($Z117,FIND(CHAR(160),SUBSTITUTE($Z117,\"{\",CHAR(160),HW$1)),FIND(CHAR(160),SUBSTITUTE($Z117,\"}\",CHAR(160),HW$1))-FIND(CHAR(160),SUBSTITUTE($Z117,\"{\",CHAR(160),HW$1))+1),\"\")","v":""},{"$f":"IFERROR(MID($Z117,FIND(CHAR(160),SUBSTITUTE($Z117,\"{\",CHAR(160),HX$1)),FIND(CHAR(160),SUBSTITUTE($Z117,\"}\",CHAR(160),HX$1))-FIND(CHAR(160),SUBSTITUTE($Z117,\"{\",CHAR(160),HX$1))+1),\"\")","v":""},{"$f":"IFERROR(MID($Z117,FIND(CHAR(160),SUBSTITUTE($Z117,\"{\",CHAR(160),HY$1)),FIND(CHAR(160),SUBSTITUTE($Z117,\"}\",CHAR(160),HY$1))-FIND(CHAR(160),SUBSTITUTE($Z117,\"{\",CHAR(160),HY$1))+1),\"\")","v":""},{"$f":"IFERROR(MID($Z117,FIND(CHAR(160),SUBSTITUTE($Z117,\"{\",CHAR(160),HZ$1)),FIND(CHAR(160),SUBSTITUTE($Z117,\"}\",CHAR(160),HZ$1))-FIND(CHAR(160),SUBSTITUTE($Z117,\"{\",CHAR(160),HZ$1))+1),\"\")","v":""},{"$f":"IFERROR(MID($Z117,FIND(CHAR(160),SUBSTITUTE($Z117,\"{\",CHAR(160),IA$1)),FIND(CHAR(160),SUBSTITUTE($Z117,\"}\",CHAR(160),IA$1))-FIND(CHAR(160),SUBSTITUTE($Z117,\"{\",CHAR(160),IA$1))+1),\"\")","v":""},{"$f":"IFERROR(MID($Z117,FIND(CHAR(160),SUBSTITUTE($Z117,\"{\",CHAR(160),IB$1)),FIND(CHAR(160),SUBSTITUTE($Z117,\"}\",CHAR(160),IB$1))-FIND(CHAR(160),SUBSTITUTE($Z117,\"{\",CHAR(160),IB$1))+1),\"\")","v":""},{"$f":"IFERROR(MID($Z117,FIND(CHAR(160),SUBSTITUTE($Z117,\"{\",CHAR(160),IC$1)),FIND(CHAR(160),SUBSTITUTE($Z117,\"}\",CHAR(160),IC$1))-FIND(CHAR(160),SUBSTITUTE($Z117,\"{\",CHAR(160),IC$1))+1),\"\")","v":""},{"$f":"IFERROR(MID($Z117,FIND(CHAR(160),SUBSTITUTE($Z117,\"{\",CHAR(160),ID$1)),FIND(CHAR(160),SUBSTITUTE($Z117,\"}\",CHAR(160),ID$1))-FIND(CHAR(160),SUBSTITUTE($Z117,\"{\",CHAR(160),ID$1))+1),\"\")","v":""},{"$f":"IFERROR(MID($AA117,FIND(CHAR(160),SUBSTITUTE($AA117,\"{\",CHAR(160),IE$1)),FIND(CHAR(160),SUBSTITUTE($AA117,\"}\",CHAR(160),IE$1))-FIND(CHAR(160),SUBSTITUTE($AA117,\"{\",CHAR(160),IE$1))+1),\"\")","v":""},{"$f":"IFERROR(MID($AA117,FIND(CHAR(160),SUBSTITUTE($AA117,\"{\",CHAR(160),IF$1)),FIND(CHAR(160),SUBSTITUTE($AA117,\"}\",CHAR(160),IF$1))-FIND(CHAR(160),SUBSTITUTE($AA117,\"{\",CHAR(160),IF$1))+1),\"\")","v":""},{"$f":"IFERROR(MID($AA117,FIND(CHAR(160),SUBSTITUTE($AA117,\"{\",CHAR(160),IG$1)),FIND(CHAR(160),SUBSTITUTE($AA117,\"}\",CHAR(160),IG$1))-FIND(CHAR(160),SUBSTITUTE($AA117,\"{\",CHAR(160),IG$1))+1),\"\")","v":""},{"$f":"IFERROR(MID($AA117,FIND(CHAR(160),SUBSTITUTE($AA117,\"{\",CHAR(160),IH$1)),FIND(CHAR(160),SUBSTITUTE($AA117,\"}\",CHAR(160),IH$1))-FIND(CHAR(160),SUBSTITUTE($AA117,\"{\",CHAR(160),IH$1))+1),\"\")","v":""},{"$f":"IFERROR(MID($AA117,FIND(CHAR(160),SUBSTITUTE($AA117,\"{\",CHAR(160),II$1)),FIND(CHAR(160),SUBSTITUTE($AA117,\"}\",CHAR(160),II$1))-FIND(CHAR(160),SUBSTITUTE($AA117,\"{\",CHAR(160),II$1))+1),\"\")","v":""},{"$f":"IFERROR(MID($AA117,FIND(CHAR(160),SUBSTITUTE($AA117,\"{\",CHAR(160),IJ$1)),FIND(CHAR(160),SUBSTITUTE($AA117,\"}\",CHAR(160),IJ$1))-FIND(CHAR(160),SUBSTITUTE($AA117,\"{\",CHAR(160),IJ$1))+1),\"\")","v":""},{"$f":"IFERROR(MID($AA117,FIND(CHAR(160),SUBSTITUTE($AA117,\"{\",CHAR(160),IK$1)),FIND(CHAR(160),SUBSTITUTE($AA117,\"}\",CHAR(160),IK$1))-FIND(CHAR(160),SUBSTITUTE($AA117,\"{\",CHAR(160),IK$1))+1),\"\")","v":""},{"$f":"IFERROR(MID($AA117,FIND(CHAR(160),SUBSTITUTE($AA117,\"{\",CHAR(160),IL$1)),FIND(CHAR(160),SUBSTITUTE($AA117,\"}\",CHAR(160),IL$1))-FIND(CHAR(160),SUBSTITUTE($AA117,\"{\",CHAR(160),IL$1))+1),\"\")","v":""},{"$f":"IFERROR(MID($AA117,FIND(CHAR(160),SUBSTITUTE($AA117,\"{\",CHAR(160),IM$1)),FIND(CHAR(160),SUBSTITUTE($AA117,\"}\",CHAR(160),IM$1))-FIND(CHAR(160),SUBSTITUTE($AA117,\"{\",CHAR(160),IM$1))+1),\"\")","v":""},{"$f":"IFERROR(MID($AA117,FIND(CHAR(160),SUBSTITUTE($AA117,\"{\",CHAR(160),IN$1)),FIND(CHAR(160),SUBSTITUTE($AA117,\"}\",CHAR(160),IN$1))-FIND(CHAR(160),SUBSTITUTE($AA117,\"{\",CHAR(160),IN$1))+1),\"\")","v":""},{"$f":"IFERROR(MID($AB117,FIND(CHAR(160),SUBSTITUTE($AB117,\"{\",CHAR(160),IO$1)),FIND(CHAR(160),SUBSTITUTE($AB117,\"}\",CHAR(160),IO$1))-FIND(CHAR(160),SUBSTITUTE($AB117,\"{\",CHAR(160),IO$1))+1),\"\")","v":""},{"$f":"IFERROR(MID($AB117,FIND(CHAR(160),SUBSTITUTE($AB117,\"{\",CHAR(160),IP$1)),FIND(CHAR(160),SUBSTITUTE($AB117,\"}\",CHAR(160),IP$1))-FIND(CHAR(160),SUBSTITUTE($AB117,\"{\",CHAR(160),IP$1))+1),\"\")","v":""},{"$f":"IFERROR(MID($AB117,FIND(CHAR(160),SUBSTITUTE($AB117,\"{\",CHAR(160),IQ$1)),FIND(CHAR(160),SUBSTITUTE($AB117,\"}\",CHAR(160),IQ$1))-FIND(CHAR(160),SUBSTITUTE($AB117,\"{\",CHAR(160),IQ$1))+1),\"\")","v":""},{"$f":"IFERROR(MID($AB117,FIND(CHAR(160),SUBSTITUTE($AB117,\"{\",CHAR(160),IR$1)),FIND(CHAR(160),SUBSTITUTE($AB117,\"}\",CHAR(160),IR$1))-FIND(CHAR(160),SUBSTITUTE($AB117,\"{\",CHAR(160),IR$1))+1),\"\")","v":""},{"$f":"IFERROR(MID($AB117,FIND(CHAR(160),SUBSTITUTE($AB117,\"{\",CHAR(160),IS$1)),FIND(CHAR(160),SUBSTITUTE($AB117,\"}\",CHAR(160),IS$1))-FIND(CHAR(160),SUBSTITUTE($AB117,\"{\",CHAR(160),IS$1))+1),\"\")","v":""},{"$f":"IFERROR(MID($AB117,FIND(CHAR(160),SUBSTITUTE($AB117,\"{\",CHAR(160),IT$1)),FIND(CHAR(160),SUBSTITUTE($AB117,\"}\",CHAR(160),IT$1))-FIND(CHAR(160),SUBSTITUTE($AB117,\"{\",CHAR(160),IT$1))+1),\"\")","v":""},{"$f":"IFERROR(MID($AB117,FIND(CHAR(160),SUBSTITUTE($AB117,\"{\",CHAR(160),IU$1)),FIND(CHAR(160),SUBSTITUTE($AB117,\"}\",CHAR(160),IU$1))-FIND(CHAR(160),SUBSTITUTE($AB117,\"{\",CHAR(160),IU$1))+1),\"\")","v":""},{"$f":"IFERROR(MID($AB117,FIND(CHAR(160),SUBSTITUTE($AB117,\"{\",CHAR(160),IV$1)),FIND(CHAR(160),SUBSTITUTE($AB117,\"}\",CHAR(160),IV$1))-FIND(CHAR(160),SUBSTITUTE($AB117,\"{\",CHAR(160),IV$1))+1),\"\")","v":""},{"$f":"IFERROR(MID($AB117,FIND(CHAR(160),SUBSTITUTE($AB117,\"{\",CHAR(160),IW$1)),FIND(CHAR(160),SUBSTITUTE($AB117,\"}\",CHAR(160),IW$1))-FIND(CHAR(160),SUBSTITUTE($AB117,\"{\",CHAR(160),IW$1))+1),\"\")","v":""},{"$f":"IFERROR(MID($AB117,FIND(CHAR(160),SUBSTITUTE($AB117,\"{\",CHAR(160),IX$1)),FIND(CHAR(160),SUBSTITUTE($AB117,\"}\",CHAR(160),IX$1))-FIND(CHAR(160),SUBSTITUTE($AB117,\"{\",CHAR(160),IX$1))+1),\"\")","v":""},null,{"$f":"10-COUNTIF(DU117:ED117,\"\")","v":7}]
["C&I HVAC - Propane and Compressed NG","Boiler Reset/Lockout Controls","AF3","2021-07-01","2022-06-30","Calculated","{Measure:Quantity}*612.00",0,"Calculated","{Measure:Quantity}*375",0,"2021-05-25","2022-06-30","Calculated",null,null,null,null,null,null,null,null,"if({Existing Fuel}<>1,0,{Measure:Quantity} * ({Capacity (MBTUH)} * 1565 * 0.08) / 1000)*10","if({Existing Fuel}<>2,0,{Measure:Quantity} * ({Capacity (MBTUH)} * 1565 * 0.08) / 1000)",null,null,null,null,"2021-05-25","2022-06-30",20,0,0,0,0,0,0,1,1,1,0.52,1.6E-2,null,{"$f":"DU118","v":"{Measure:Quantity}"},1,{"$f":"DV118","v":"{Capacity (MBTUH)}"},2,{"$f":"DW118","v":"{Existing Fuel}"},1000,{"$f":"DX118","v":""},null,{"$f":"DY118","v":""},null,{"$f":"DZ118","v":""},null,{"$f":"EA118","v":""},null,{"$f":"EB118","v":""},null,{"$f":"EC118","v":""},null,{"$f":"ED118","v":""},null,0,0,0,0,0,0,0,0,{"$f":"IF(AU118<>1,0,AS118 * (AW118 * 1565 * 0.08) / 1000)*10","v":0},{"$f":"IF(AU118<>2,0,AS118 * (AW118 * 1565 * 0.08) / 1000)","v":125.2},0,0,0,0,null,"Res","Default DR",{"$f":"Benefits(BL118,BR118,BS118,BT118,BU118,BV118,BW118,BX118,BY118,BZ118,AE118,AH118,AI118,AJ118,AK118,AL118,AM118,AN118,AO118,AP118,CA118,CB118)","v":0},0,0,0,0,91665.619608738649,0,0,0,{"$f":"SUMPRODUCT(CC118:CK118,--(CC118:CK118>0))","v":91665.619608738649},{"$f":"-SUMPRODUCT(CC118:CK118,--(CC118:CK118<0))","v":0},null,{"$f":"AS118*612","v":612},null,null,{"$f":"CM118+CO118","v":612},{"$f":"IF(NetOrGross=\"Net\",(1-AO118+AP118),1)","v":1},{"$f":"(SUMPRODUCT(CC118:CJ118,--(CC118:CJ118>0))+CN118)*CS118/((-SUMPRODUCT(CC118:CJ118,--(CC118:CJ118<0))+MAX(CO118,CV118)+CP118+CQ118)*CS118+IF(FRIncentives=\"Yes\",CV118*(1-CS118),0))","v":149.78042419728538},1,{"$f":"AS118*375","v":375},null,"RGGI","y",null,{"$f":"IF(F118=\"Manual Entry\",\"Manual\",IF(G118=\"\",0,\"X=\"&SUBSTITUTE(SUBSTITUTE(SUBSTITUTE(SUBSTITUTE(SUBSTITUTE(SUBSTITUTE(SUBSTITUTE(SUBSTITUTE(SUBSTITUTE(SUBSTITUTE(SUBSTITUTE(SUBSTITUTE(G118,$ED118,$ED$2&ROW($ED118)),$EC118,$EC$2&ROW($EC118)),$EB118,$EB$2&ROW($EB118)),$EA118,$EA$2&ROW($EA118)),$DZ118,$DZ$2&ROW($DZ118)),$DY118,$DY$2&ROW($DY118)),$DX118,$DX$2&ROW($DX118)),$DW118,$DW$2&ROW($DW118)),$DV118,$DV$2&ROW($DV118)),$DU118,$DU$2&ROW($DU118)),$DT118,$DT$2&ROW($DT118)),$DS118,$DS$2&ROW($DS118))))","v":"X=AS118*612.00"},{"$f":"IF(I118=\"Manual Entry\",\"Manual\",IF(J118=\"\",0,\"X=\"&SUBSTITUTE(SUBSTITUTE(SUBSTITUTE(SUBSTITUTE(SUBSTITUTE(SUBSTITUTE(SUBSTITUTE(SUBSTITUTE(SUBSTITUTE(SUBSTITUTE(SUBSTITUTE(SUBSTITUTE(J118,$ED118,$ED$2&ROW($ED118)),$EC118,$EC$2&ROW($EC118)),$EB118,$EB$2&ROW($EB118)),$EA118,$EA$2&ROW($EA118)),$DZ118,$DZ$2&ROW($DZ118)),$DY118,$DY$2&ROW($DY118)),$DX118,$DX$2&ROW($DX118)),$DW118,$DW$2&ROW($DW118)),$DV118,$DV$2&ROW($DV118)),$DU118,$DU$2&ROW($DU118)),$DT118,$DT$2&ROW($DT118)),$DS118,$DS$2&ROW($DS118))))","v":"X=AS118*375"},{"$f":"IF(O118=\"\",0,\"X=\"&SUBSTITUTE(SUBSTITUTE(SUBSTITUTE(SUBSTITUTE(SUBSTITUTE(SUBSTITUTE(SUBSTITUTE(SUBSTITUTE(SUBSTITUTE(SUBSTITUTE(SUBSTITUTE(SUBSTITUTE(O118,$ED118,$ED$2&ROW($ED118)),$EC118,$EC$2&ROW($EC118)),$EB118,$EB$2&ROW($EB118)),$EA118,$EA$2&ROW($EA118)),$DZ118,$DZ$2&ROW($DZ118)),$DY118,$DY$2&ROW($DY118)),$DX118,$DX$2&ROW($DX118)),$DW118,$DW$2&ROW($DW118)),$DV118,$DV$2&ROW($DV118)),$DU118,$DU$2&ROW($DU118)),$DT118,$DT$2&ROW($DT118)),$DS118,$DS$2&ROW($DS118)))","v":0},{"$f":"IF(P118=\"\",0,\"X=\"&SUBSTITUTE(SUBSTITUTE(SUBSTITUTE(SUBSTITUTE(SUBSTITUTE(SUBSTITUTE(SUBSTITUTE(SUBSTITUTE(SUBSTITUTE(SUBSTITUTE(SUBSTITUTE(SUBSTITUTE(P118,$ED118,$ED$2&ROW($ED118)),$EC118,$EC$2&ROW($EC118)),$EB118,$EB$2&ROW($EB118)),$EA118,$EA$2&ROW($EA118)),$DZ118,$DZ$2&ROW($DZ118)),$DY118,$DY$2&ROW($DY118)),$DX118,$DX$2&ROW($DX118)),$DW118,$DW$2&ROW($DW118)),$DV118,$DV$2&ROW($DV118)),$DU118,$DU$2&ROW($DU118)),$DT118,$DT$2&ROW($DT118)),$DS118,$DS$2&ROW($DS118)))","v":0},{"$f":"IF(Q118=\"\",0,\"X=\"&SUBSTITUTE(SUBSTITUTE(SUBSTITUTE(SUBSTITUTE(SUBSTITUTE(SUBSTITUTE(SUBSTITUTE(SUBSTITUTE(SUBSTITUTE(SUBSTITUTE(SUBSTITUTE(SUBSTITUTE(Q118,$ED118,$ED$2&ROW($ED118)),$EC118,$EC$2&ROW($EC118)),$EB118,$EB$2&ROW($EB118)),$EA118,$EA$2&ROW($EA118)),$DZ118,$DZ$2&ROW($DZ118)),$DY118,$DY$2&ROW($DY118)),$DX118,$DX$2&ROW($DX118)),$DW118,$DW$2&ROW($DW118)),$DV118,$DV$2&ROW($DV118)),$DU118,$DU$2&ROW($DU118)),$DT118,$DT$2&ROW($DT118)),$DS118,$DS$2&ROW($DS118)))","v":0},{"$f":"IF(R118=\"\",0,\"X=\"&SUBSTITUTE(SUBSTITUTE(SUBSTITUTE(SUBSTITUTE(SUBSTITUTE(SUBSTITUTE(SUBSTITUTE(SUBSTITUTE(SUBSTITUTE(SUBSTITUTE(SUBSTITUTE(SUBSTITUTE(R118,$ED118,$ED$2&ROW($ED118)),$EC118,$EC$2&ROW($EC118)),$EB118,$EB$2&ROW($EB118)),$EA118,$EA$2&ROW($EA118)),$DZ118,$DZ$2&ROW($DZ118)),$DY118,$DY$2&ROW($DY118)),$DX118,$DX$2&ROW($DX118)),$DW118,$DW$2&ROW($DW118)),$DV118,$DV$2&ROW($DV118)),$DU118,$DU$2&ROW($DU118)),$DT118,$DT$2&ROW($DT118)),$DS118,$DS$2&ROW($DS118)))","v":0},{"$f":"IF(S118=\"\",0,\"X=\"&SUBSTITUTE(SUBSTITUTE(SUBSTITUTE(SUBSTITUTE(SUBSTITUTE(SUBSTITUTE(SUBSTITUTE(SUBSTITUTE(SUBSTITUTE(SUBSTITUTE(SUBSTITUTE(SUBSTITUTE(S118,$ED118,$ED$2&ROW($ED118)),$EC118,$EC$2&ROW($EC118)),$EB118,$EB$2&ROW($EB118)),$EA118,$EA$2&ROW($EA118)),$DZ118,$DZ$2&ROW($DZ118)),$DY118,$DY$2&ROW($DY118)),$DX118,$DX$2&ROW($DX118)),$DW118,$DW$2&ROW($DW118)),$DV118,$DV$2&ROW($DV118)),$DU118,$DU$2&ROW($DU118)),$DT118,$DT$2&ROW($DT118)),$DS118,$DS$2&ROW($DS118)))","v":0},{"$f":"IF(T118=\"\",0,\"X=\"&SUBSTITUTE(SUBSTITUTE(SUBSTITUTE(SUBSTITUTE(SUBSTITUTE(SUBSTITUTE(SUBSTITUTE(SUBSTITUTE(SUBSTITUTE(SUBSTITUTE(SUBSTITUTE(SUBSTITUTE(T118,$ED118,$ED$2&ROW($ED118)),$EC118,$EC$2&ROW($EC118)),$EB118,$EB$2&ROW($EB118)),$EA118,$EA$2&ROW($EA118)),$DZ118,$DZ$2&ROW($DZ118)),$DY118,$DY$2&ROW($DY118)),$DX118,$DX$2&ROW($DX118)),$DW118,$DW$2&ROW($DW118)),$DV118,$DV$2&ROW($DV118)),$DU118,$DU$2&ROW($DU118)),$DT118,$DT$2&ROW($DT118)),$DS118,$DS$2&ROW($DS118)))","v":0},{"$f":"IF(U118=\"\",0,\"X=\"&SUBSTITUTE(SUBSTITUTE(SUBSTITUTE(SUBSTITUTE(SUBSTITUTE(SUBSTITUTE(SUBSTITUTE(SUBSTITUTE(SUBSTITUTE(SUBSTITUTE(SUBSTITUTE(SUBSTITUTE(U118,$ED118,$ED$2&ROW($ED118)),$EC118,$EC$2&ROW($EC118)),$EB118,$EB$2&ROW($EB118)),$EA118,$EA$2&ROW($EA118)),$DZ118,$DZ$2&ROW($DZ118)),$DY118,$DY$2&ROW($DY118)),$DX118,$DX$2&ROW($DX118)),$DW118,$DW$2&ROW($DW118)),$DV118,$DV$2&ROW($DV118)),$DU118,$DU$2&ROW($DU118)),$DT118,$DT$2&ROW($DT118)),$DS118,$DS$2&ROW($DS118)))","v":0},{"$f":"IF(V118=\"\",0,\"X=\"&SUBSTITUTE(SUBSTITUTE(SUBSTITUTE(SUBSTITUTE(SUBSTITUTE(SUBSTITUTE(SUBSTITUTE(SUBSTITUTE(SUBSTITUTE(SUBSTITUTE(SUBSTITUTE(SUBSTITUTE(V118,$ED118,$ED$2&ROW($ED118)),$EC118,$EC$2&ROW($EC118)),$EB118,$EB$2&ROW($EB118)),$EA118,$EA$2&ROW($EA118)),$DZ118,$DZ$2&ROW($DZ118)),$DY118,$DY$2&ROW($DY118)),$DX118,$DX$2&ROW($DX118)),$DW118,$DW$2&ROW($DW118)),$DV118,$DV$2&ROW($DV118)),$DU118,$DU$2&ROW($DU118)),$DT118,$DT$2&ROW($DT118)),$DS118,$DS$2&ROW($DS118)))","v":0},{"$f":"IF(W118=\"\",0,\"X=\"&SUBSTITUTE(SUBSTITUTE(SUBSTITUTE(SUBSTITUTE(SUBSTITUTE(SUBSTITUTE(SUBSTITUTE(SUBSTITUTE(SUBSTITUTE(SUBSTITUTE(SUBSTITUTE(SUBSTITUTE(W118,$ED118,$ED$2&ROW($ED118)),$EC118,$EC$2&ROW($EC118)),$EB118,$EB$2&ROW($EB118)),$EA118,$EA$2&ROW($EA118)),$DZ118,$DZ$2&ROW($DZ118)),$DY118,$DY$2&ROW($DY118)),$DX118,$DX$2&ROW($DX118)),$DW118,$DW$2&ROW($DW118)),$DV118,$DV$2&ROW($DV118)),$DU118,$DU$2&ROW($DU118)),$DT118,$DT$2&ROW($DT118)),$DS118,$DS$2&ROW($DS118)))","v":"X=if(AW118<>1,0,AS118 * (AU118 * 1565 * 0.08) / 1000)*10"},{"$f":"IF(X118=\"\",0,\"X=\"&SUBSTITUTE(SUBSTITUTE(SUBSTITUTE(SUBSTITUTE(SUBSTITUTE(SUBSTITUTE(SUBSTITUTE(SUBSTITUTE(SUBSTITUTE(SUBSTITUTE(SUBSTITUTE(SUBSTITUTE(X118,$ED118,$ED$2&ROW($ED118)),$EC118,$EC$2&ROW($EC118)),$EB118,$EB$2&ROW($EB118)),$EA118,$EA$2&ROW($EA118)),$DZ118,$DZ$2&ROW($DZ118)),$DY118,$DY$2&ROW($DY118)),$DX118,$DX$2&ROW($DX118)),$DW118,$DW$2&ROW($DW118)),$DV118,$DV$2&ROW($DV118)),$DU118,$DU$2&ROW($DU118)),$DT118,$DT$2&ROW($DT118)),$DS118,$DS$2&ROW($DS118)))","v":"X=if(AW118<>2,0,AS118 * (AU118 * 1565 * 0.08) / 1000)"},{"$f":"IF(Y118=\"\",0,\"X=\"&SUBSTITUTE(SUBSTITUTE(SUBSTITUTE(SUBSTITUTE(SUBSTITUTE(SUBSTITUTE(SUBSTITUTE(SUBSTITUTE(SUBSTITUTE(SUBSTITUTE(SUBSTITUTE(SUBSTITUTE(Y118,$ED118,$ED$2&ROW($ED118)),$EC118,$EC$2&ROW($EC118)),$EB118,$EB$2&ROW($EB118)),$EA118,$EA$2&ROW($EA118)),$DZ118,$DZ$2&ROW($DZ118)),$DY118,$DY$2&ROW($DY118)),$DX118,$DX$2&ROW($DX118)),$DW118,$DW$2&ROW($DW118)),$DV118,$DV$2&ROW($DV118)),$DU118,$DU$2&ROW($DU118)),$DT118,$DT$2&ROW($DT118)),$DS118,$DS$2&ROW($DS118)))","v":0},{"$f":"IF(Z118=\"\",0,\"X=\"&SUBSTITUTE(SUBSTITUTE(SUBSTITUTE(SUBSTITUTE(SUBSTITUTE(SUBSTITUTE(SUBSTITUTE(SUBSTITUTE(SUBSTITUTE(SUBSTITUTE(SUBSTITUTE(SUBSTITUTE(Z118,$ED118,$ED$2&ROW($ED118)),$EC118,$EC$2&ROW($EC118)),$EB118,$EB$2&ROW($EB118)),$EA118,$EA$2&ROW($EA118)),$DZ118,$DZ$2&ROW($DZ118)),$DY118,$DY$2&ROW($DY118)),$DX118,$DX$2&ROW($DX118)),$DW118,$DW$2&ROW($DW118)),$DV118,$DV$2&ROW($DV118)),$DU118,$DU$2&ROW($DU118)),$DT118,$DT$2&ROW($DT118)),$DS118,$DS$2&ROW($DS118)))","v":0},{"$f":"IF(AA118=\"\",0,\"X=\"&SUBSTITUTE(SUBSTITUTE(SUBSTITUTE(SUBSTITUTE(SUBSTITUTE(SUBSTITUTE(SUBSTITUTE(SUBSTITUTE(SUBSTITUTE(SUBSTITUTE(SUBSTITUTE(SUBSTITUTE(AA118,$ED118,$ED$2&ROW($ED118)),$EC118,$EC$2&ROW($EC118)),$EB118,$EB$2&ROW($EB118)),$EA118,$EA$2&ROW($EA118)),$DZ118,$DZ$2&ROW($DZ118)),$DY118,$DY$2&ROW($DY118)),$DX118,$DX$2&ROW($DX118)),$DW118,$DW$2&ROW($DW118)),$DV118,$DV$2&ROW($DV118)),$DU118,$DU$2&ROW($DU118)),$DT118,$DT$2&ROW($DT118)),$DS118,$DS$2&ROW($DS118)))","v":0},{"$f":"IF(AB118=\"\",0,\"X=\"&SUBSTITUTE(SUBSTITUTE(SUBSTITUTE(SUBSTITUTE(SUBSTITUTE(SUBSTITUTE(SUBSTITUTE(SUBSTITUTE(SUBSTITUTE(SUBSTITUTE(SUBSTITUTE(SUBSTITUTE(AB118,$ED118,$ED$2&ROW($ED118)),$EC118,$EC$2&ROW($EC118)),$EB118,$EB$2&ROW($EB118)),$EA118,$EA$2&ROW($EA118)),$DZ118,$DZ$2&ROW($DZ118)),$DY118,$DY$2&ROW($DY118)),$DX118,$DX$2&ROW($DX118)),$DW118,$DW$2&ROW($DW118)),$DV118,$DV$2&ROW($DV118)),$DU118,$DU$2&ROW($DU118)),$DT118,$DT$2&ROW($DT118)),$DS118,$DS$2&ROW($DS118)))","v":0},null,null,"{Factor:WinterCF}","{Factor:SummerCF}",{"$f":"IFERROR(INDEX($EG118:$IV118,MATCH(0,COUNTIF($DR118:DT118,$EG118:$IV118),0)),\"\")","v":"{Measure:Quantity}"},{"$f":"IFERROR(INDEX($EG118:$IV118,MATCH(0,COUNTIF($DR118:DU118,$EG118:$IV118),0)),\"\")","v":"{Capacity (MBTUH)}"},{"$f":"IFERROR(INDEX($EG118:$IV118,MATCH(0,COUNTIF($DR118:DV118,$EG118:$IV118),0)),\"\")","v":"{Existing Fuel}"},{"$f":"IFERROR(INDEX($EG118:$IV118,MATCH(0,COUNTIF($DR118:DW118,$EG118:$IV118),0)),\"\")","v":""},{"$f":"IFERROR(INDEX($EG118:$IV118,MATCH(0,COUNTIF($DR118:DX118,$EG118:$IV118),0)),\"\")","v":""},{"$f":"IFERROR(INDEX($EG118:$IV118,MATCH(0,COUNTIF($DR118:DY118,$EG118:$IV118),0)),\"\")","v":""},{"$f":"IFERROR(INDEX($EG118:$IV118,MATCH(0,COUNTIF($DR118:DZ118,$EG118:$IV118),0)),\"\")","v":""},{"$f":"IFERROR(INDEX($EG118:$IV118,MATCH(0,COUNTIF($DR118:EA118,$EG118:$IV118),0)),\"\")","v":""},{"$f":"IFERROR(INDEX($EG118:$IV118,MATCH(0,COUNTIF($DR118:EB118,$EG118:$IV118),0)),\"\")","v":""},{"$f":"IFERROR(INDEX($EG118:$IV118,MATCH(0,COUNTIF($DR118:EC118,$EG118:$IV118),0)),\"\")","v":""},null,null,{"$f":"IFERROR(MID($G118,FIND(CHAR(160),SUBSTITUTE($G118,\"{\",CHAR(160),EG$1)),FIND(CHAR(160),SUBSTITUTE($G118,\"}\",CHAR(160),EG$1))-FIND(CHAR(160),SUBSTITUTE($G118,\"{\",CHAR(160),EG$1))+1),\"\")","v":"{Measure:Quantity}"},{"$f":"IFERROR(MID($G118,FIND(CHAR(160),SUBSTITUTE($G118,\"{\",CHAR(160),EH$1)),FIND(CHAR(160),SUBSTITUTE($G118,\"}\",CHAR(160),EH$1))-FIND(CHAR(160),SUBSTITUTE($G118,\"{\",CHAR(160),EH$1))+1),\"\")","v":""},{"$f":"IFERROR(MID($G118,FIND(CHAR(160),SUBSTITUTE($G118,\"{\",CHAR(160),EI$1)),FIND(CHAR(160),SUBSTITUTE($G118,\"}\",CHAR(160),EI$1))-FIND(CHAR(160),SUBSTITUTE($G118,\"{\",CHAR(160),EI$1))+1),\"\")","v":""},{"$f":"IFERROR(MID($G118,FIND(CHAR(160),SUBSTITUTE($G118,\"{\",CHAR(160),EJ$1)),FIND(CHAR(160),SUBSTITUTE($G118,\"}\",CHAR(160),EJ$1))-FIND(CHAR(160),SUBSTITUTE($G118,\"{\",CHAR(160),EJ$1))+1),\"\")","v":""},{"$f":"IFERROR(MID($G118,FIND(CHAR(160),SUBSTITUTE($G118,\"{\",CHAR(160),EK$1)),FIND(CHAR(160),SUBSTITUTE($G118,\"}\",CHAR(160),EK$1))-FIND(CHAR(160),SUBSTITUTE($G118,\"{\",CHAR(160),EK$1))+1),\"\")","v":""},{"$f":"IFERROR(MID($G118,FIND(CHAR(160),SUBSTITUTE($G118,\"{\",CHAR(160),EL$1)),FIND(CHAR(160),SUBSTITUTE($G118,\"}\",CHAR(160),EL$1))-FIND(CHAR(160),SUBSTITUTE($G118,\"{\",CHAR(160),EL$1))+1),\"\")","v":""},{"$f":"IFERROR(MID($G118,FIND(CHAR(160),SUBSTITUTE($G118,\"{\",CHAR(160),EM$1)),FIND(CHAR(160),SUBSTITUTE($G118,\"}\",CHAR(160),EM$1))-FIND(CHAR(160),SUBSTITUTE($G118,\"{\",CHAR(160),EM$1))+1),\"\")","v":""},{"$f":"IFERROR(MID($G118,FIND(CHAR(160),SUBSTITUTE($G118,\"{\",CHAR(160),EN$1)),FIND(CHAR(160),SUBSTITUTE($G118,\"}\",CHAR(160),EN$1))-FIND(CHAR(160),SUBSTITUTE($G118,\"{\",CHAR(160),EN$1))+1),\"\")","v":""},{"$f":"IFERROR(MID($G118,FIND(CHAR(160),SUBSTITUTE($G118,\"{\",CHAR(160),EO$1)),FIND(CHAR(160),SUBSTITUTE($G118,\"}\",CHAR(160),EO$1))-FIND(CHAR(160),SUBSTITUTE($G118,\"{\",CHAR(160),EO$1))+1),\"\")","v":""},{"$f":"IFERROR(MID($G118,FIND(CHAR(160),SUBSTITUTE($G118,\"{\",CHAR(160),EP$1)),FIND(CHAR(160),SUBSTITUTE($G118,\"}\",CHAR(160),EP$1))-FIND(CHAR(160),SUBSTITUTE($G118,\"{\",CHAR(160),EP$1))+1),\"\")","v":""},{"$f":"IFERROR(MID($J118,FIND(CHAR(160),SUBSTITUTE($J118,\"{\",CHAR(160),EQ$1)),FIND(CHAR(160),SUBSTITUTE($J118,\"}\",CHAR(160),EQ$1))-FIND(CHAR(160),SUBSTITUTE($J118,\"{\",CHAR(160),EQ$1))+1),\"\")","v":"{Measure:Quantity}"},{"$f":"IFERROR(MID($J118,FIND(CHAR(160),SUBSTITUTE($J118,\"{\",CHAR(160),ER$1)),FIND(CHAR(160),SUBSTITUTE($J118,\"}\",CHAR(160),ER$1))-FIND(CHAR(160),SUBSTITUTE($J118,\"{\",CHAR(160),ER$1))+1),\"\")","v":""},{"$f":"IFERROR(MID($J118,FIND(CHAR(160),SUBSTITUTE($J118,\"{\",CHAR(160),ES$1)),FIND(CHAR(160),SUBSTITUTE($J118,\"}\",CHAR(160),ES$1))-FIND(CHAR(160),SUBSTITUTE($J118,\"{\",CHAR(160),ES$1))+1),\"\")","v":""},{"$f":"IFERROR(MID($J118,FIND(CHAR(160),SUBSTITUTE($J118,\"{\",CHAR(160),ET$1)),FIND(CHAR(160),SUBSTITUTE($J118,\"}\",CHAR(160),ET$1))-FIND(CHAR(160),SUBSTITUTE($J118,\"{\",CHAR(160),ET$1))+1),\"\")","v":""},{"$f":"IFERROR(MID($J118,FIND(CHAR(160),SUBSTITUTE($J118,\"{\",CHAR(160),EU$1)),FIND(CHAR(160),SUBSTITUTE($J118,\"}\",CHAR(160),EU$1))-FIND(CHAR(160),SUBSTITUTE($J118,\"{\",CHAR(160),EU$1))+1),\"\")","v":""},{"$f":"IFERROR(MID($J118,FIND(CHAR(160),SUBSTITUTE($J118,\"{\",CHAR(160),EV$1)),FIND(CHAR(160),SUBSTITUTE($J118,\"}\",CHAR(160),EV$1))-FIND(CHAR(160),SUBSTITUTE($J118,\"{\",CHAR(160),EV$1))+1),\"\")","v":""},{"$f":"IFERROR(MID($J118,FIND(CHAR(160),SUBSTITUTE($J118,\"{\",CHAR(160),EW$1)),FIND(CHAR(160),SUBSTITUTE($J118,\"}\",CHAR(160),EW$1))-FIND(CHAR(160),SUBSTITUTE($J118,\"{\",CHAR(160),EW$1))+1),\"\")","v":""},{"$f":"IFERROR(MID($J118,FIND(CHAR(160),SUBSTITUTE($J118,\"{\",CHAR(160),EX$1)),FIND(CHAR(160),SUBSTITUTE($J118,\"}\",CHAR(160),EX$1))-FIND(CHAR(160),SUBSTITUTE($J118,\"{\",CHAR(160),EX$1))+1),\"\")","v":""},{"$f":"IFERROR(MID($J118,FIND(CHAR(160),SUBSTITUTE($J118,\"{\",CHAR(160),EY$1)),FIND(CHAR(160),SUBSTITUTE($J118,\"}\",CHAR(160),EY$1))-FIND(CHAR(160),SUBSTITUTE($J118,\"{\",CHAR(160),EY$1))+1),\"\")","v":""},{"$f":"IFERROR(MID($J118,FIND(CHAR(160),SUBSTITUTE($J118,\"{\",CHAR(160),EZ$1)),FIND(CHAR(160),SUBSTITUTE($J118,\"}\",CHAR(160),EZ$1))-FIND(CHAR(160),SUBSTITUTE($J118,\"{\",CHAR(160),EZ$1))+1),\"\")","v":""},{"$f":"IFERROR(MID($J118,FIND(CHAR(160),SUBSTITUTE($J118,\"{\",CHAR(160),FA$1)),FIND(CHAR(160),SUBSTITUTE($J118,\"}\",CHAR(160),FA$1))-FIND(CHAR(160),SUBSTITUTE($J118,\"{\",CHAR(160),FA$1))+1),\"\")","v":"{Measure:Quantity}"},{"$f":"IFERROR(MID($J118,FIND(CHAR(160),SUBSTITUTE($J118,\"{\",CHAR(160),FB$1)),FIND(CHAR(160),SUBSTITUTE($J118,\"}\",CHAR(160),FB$1))-FIND(CHAR(160),SUBSTITUTE($J118,\"{\",CHAR(160),FB$1))+1),\"\")","v":""},{"$f":"IFERROR(MID($O118,FIND(CHAR(160),SUBSTITUTE($O118,\"{\",CHAR(160),FC$1)),FIND(CHAR(160),SUBSTITUTE($O118,\"}\",CHAR(160),FC$1))-FIND(CHAR(160),SUBSTITUTE($O118,\"{\",CHAR(160),FC$1))+1),\"\")","v":""},{"$f":"IFERROR(MID($O118,FIND(CHAR(160),SUBSTITUTE($O118,\"{\",CHAR(160),FD$1)),FIND(CHAR(160),SUBSTITUTE($O118,\"}\",CHAR(160),FD$1))-FIND(CHAR(160),SUBSTITUTE($O118,\"{\",CHAR(160),FD$1))+1),\"\")","v":""},{"$f":"IFERROR(MID($O118,FIND(CHAR(160),SUBSTITUTE($O118,\"{\",CHAR(160),FE$1)),FIND(CHAR(160),SUBSTITUTE($O118,\"}\",CHAR(160),FE$1))-FIND(CHAR(160),SUBSTITUTE($O118,\"{\",CHAR(160),FE$1))+1),\"\")","v":""},{"$f":"IFERROR(MID($O118,FIND(CHAR(160),SUBSTITUTE($O118,\"{\",CHAR(160),FF$1)),FIND(CHAR(160),SUBSTITUTE($O118,\"}\",CHAR(160),FF$1))-FIND(CHAR(160),SUBSTITUTE($O118,\"{\",CHAR(160),FF$1))+1),\"\")","v":""},{"$f":"IFERROR(MID($O118,FIND(CHAR(160),SUBSTITUTE($O118,\"{\",CHAR(160),FG$1)),FIND(CHAR(160),SUBSTITUTE($O118,\"}\",CHAR(160),FG$1))-FIND(CHAR(160),SUBSTITUTE($O118,\"{\",CHAR(160),FG$1))+1),\"\")","v":""},{"$f":"IFERROR(MID($O118,FIND(CHAR(160),SUBSTITUTE($O118,\"{\",CHAR(160),FH$1)),FIND(CHAR(160),SUBSTITUTE($O118,\"}\",CHAR(160),FH$1))-FIND(CHAR(160),SUBSTITUTE($O118,\"{\",CHAR(160),FH$1))+1),\"\")","v":""},{"$f":"IFERROR(MID($O118,FIND(CHAR(160),SUBSTITUTE($O118,\"{\",CHAR(160),FI$1)),FIND(CHAR(160),SUBSTITUTE($O118,\"}\",CHAR(160),FI$1))-FIND(CHAR(160),SUBSTITUTE($O118,\"{\",CHAR(160),FI$1))+1),\"\")","v":""},{"$f":"IFERROR(MID($O118,FIND(CHAR(160),SUBSTITUTE($O118,\"{\",CHAR(160),FJ$1)),FIND(CHAR(160),SUBSTITUTE($O118,\"}\",CHAR(160),FJ$1))-FIND(CHAR(160),SUBSTITUTE($O118,\"{\",CHAR(160),FJ$1))+1),\"\")","v":""},{"$f":"IFERROR(MID($O118,FIND(CHAR(160),SUBSTITUTE($O118,\"{\",CHAR(160),FK$1)),FIND(CHAR(160),SUBSTITUTE($O118,\"}\",CHAR(160),FK$1))-FIND(CHAR(160),SUBSTITUTE($O118,\"{\",CHAR(160),FK$1))+1),\"\")","v":""},{"$f":"IFERROR(MID($O118,FIND(CHAR(160),SUBSTITUTE($O118,\"{\",CHAR(160),FL$1)),FIND(CHAR(160),SUBSTITUTE($O118,\"}\",CHAR(160),FL$1))-FIND(CHAR(160),SUBSTITUTE($O118,\"{\",CHAR(160),FL$1))+1),\"\")","v":""},{"$f":"IFERROR(MID($R118,FIND(CHAR(160),SUBSTITUTE($R118,\"{\",CHAR(160),FM$1)),FIND(CHAR(160),SUBSTITUTE($R118,\"}\",CHAR(160),FM$1))-FIND(CHAR(160),SUBSTITUTE($R118,\"{\",CHAR(160),FM$1))+1),\"\")","v":""},{"$f":"IFERROR(MID($R118,FIND(CHAR(160),SUBSTITUTE($R118,\"{\",CHAR(160),FN$1)),FIND(CHAR(160),SUBSTITUTE($R118,\"}\",CHAR(160),FN$1))-FIND(CHAR(160),SUBSTITUTE($R118,\"{\",CHAR(160),FN$1))+1),\"\")","v":""},{"$f":"IFERROR(MID($R118,FIND(CHAR(160),SUBSTITUTE($R118,\"{\",CHAR(160),FO$1)),FIND(CHAR(160),SUBSTITUTE($R118,\"}\",CHAR(160),FO$1))-FIND(CHAR(160),SUBSTITUTE($R118,\"{\",CHAR(160),FO$1))+1),\"\")","v":""},{"$f":"IFERROR(MID($R118,FIND(CHAR(160),SUBSTITUTE($R118,\"{\",CHAR(160),FP$1)),FIND(CHAR(160),SUBSTITUTE($R118,\"}\",CHAR(160),FP$1))-FIND(CHAR(160),SUBSTITUTE($R118,\"{\",CHAR(160),FP$1))+1),\"\")","v":""},{"$f":"IFERROR(MID($R118,FIND(CHAR(160),SUBSTITUTE($R118,\"{\",CHAR(160),FQ$1)),FIND(CHAR(160),SUBSTITUTE($R118,\"}\",CHAR(160),FQ$1))-FIND(CHAR(160),SUBSTITUTE($R118,\"{\",CHAR(160),FQ$1))+1),\"\")","v":""},{"$f":"IFERROR(MID($R118,FIND(CHAR(160),SUBSTITUTE($R118,\"{\",CHAR(160),FR$1)),FIND(CHAR(160),SUBSTITUTE($R118,\"}\",CHAR(160),FR$1))-FIND(CHAR(160),SUBSTITUTE($R118,\"{\",CHAR(160),FR$1))+1),\"\")","v":""},{"$f":"IFERROR(MID($R118,FIND(CHAR(160),SUBSTITUTE($R118,\"{\",CHAR(160),FS$1)),FIND(CHAR(160),SUBSTITUTE($R118,\"}\",CHAR(160),FS$1))-FIND(CHAR(160),SUBSTITUTE($R118,\"{\",CHAR(160),FS$1))+1),\"\")","v":""},{"$f":"IFERROR(MID($R118,FIND(CHAR(160),SUBSTITUTE($R118,\"{\",CHAR(160),FT$1)),FIND(CHAR(160),SUBSTITUTE($R118,\"}\",CHAR(160),FT$1))-FIND(CHAR(160),SUBSTITUTE($R118,\"{\",CHAR(160),FT$1))+1),\"\")","v":""},{"$f":"IFERROR(MID($R118,FIND(CHAR(160),SUBSTITUTE($R118,\"{\",CHAR(160),FU$1)),FIND(CHAR(160),SUBSTITUTE($R118,\"}\",CHAR(160),FU$1))-FIND(CHAR(160),SUBSTITUTE($R118,\"{\",CHAR(160),FU$1))+1),\"\")","v":""},{"$f":"IFERROR(MID($R118,FIND(CHAR(160),SUBSTITUTE($R118,\"{\",CHAR(160),FV$1)),FIND(CHAR(160),SUBSTITUTE($R118,\"}\",CHAR(160),FV$1))-FIND(CHAR(160),SUBSTITUTE($R118,\"{\",CHAR(160),FV$1))+1),\"\")","v":""},{"$f":"IFERROR(MID($U118,FIND(CHAR(160),SUBSTITUTE($U118,\"{\",CHAR(160),FW$1)),FIND(CHAR(160),SUBSTITUTE($U118,\"}\",CHAR(160),FW$1))-FIND(CHAR(160),SUBSTITUTE($U118,\"{\",CHAR(160),FW$1))+1),\"\")","v":""},{"$f":"IFERROR(MID($U118,FIND(CHAR(160),SUBSTITUTE($U118,\"{\",CHAR(160),FX$1)),FIND(CHAR(160),SUBSTITUTE($U118,\"}\",CHAR(160),FX$1))-FIND(CHAR(160),SUBSTITUTE($U118,\"{\",CHAR(160),FX$1))+1),\"\")","v":""},{"$f":"IFERROR(MID($U118,FIND(CHAR(160),SUBSTITUTE($U118,\"{\",CHAR(160),FY$1)),FIND(CHAR(160),SUBSTITUTE($U118,\"}\",CHAR(160),FY$1))-FIND(CHAR(160),SUBSTITUTE($U118,\"{\",CHAR(160),FY$1))+1),\"\")","v":""},{"$f":"IFERROR(MID($U118,FIND(CHAR(160),SUBSTITUTE($U118,\"{\",CHAR(160),FZ$1)),FIND(CHAR(160),SUBSTITUTE($U118,\"}\",CHAR(160),FZ$1))-FIND(CHAR(160),SUBSTITUTE($U118,\"{\",CHAR(160),FZ$1))+1),\"\")","v":""},{"$f":"IFERROR(MID($U118,FIND(CHAR(160),SUBSTITUTE($U118,\"{\",CHAR(160),GA$1)),FIND(CHAR(160),SUBSTITUTE($U118,\"}\",CHAR(160),GA$1))-FIND(CHAR(160),SUBSTITUTE($U118,\"{\",CHAR(160),GA$1))+1),\"\")","v":""},{"$f":"IFERROR(MID($U118,FIND(CHAR(160),SUBSTITUTE($U118,\"{\",CHAR(160),GB$1)),FIND(CHAR(160),SUBSTITUTE($U118,\"}\",CHAR(160),GB$1))-FIND(CHAR(160),SUBSTITUTE($U118,\"{\",CHAR(160),GB$1))+1),\"\")","v":""},{"$f":"IFERROR(MID($U118,FIND(CHAR(160),SUBSTITUTE($U118,\"{\",CHAR(160),GC$1)),FIND(CHAR(160),SUBSTITUTE($U118,\"}\",CHAR(160),GC$1))-FIND(CHAR(160),SUBSTITUTE($U118,\"{\",CHAR(160),GC$1))+1),\"\")","v":""},{"$f":"IFERROR(MID($U118,FIND(CHAR(160),SUBSTITUTE($U118,\"{\",CHAR(160),GD$1)),FIND(CHAR(160),SUBSTITUTE($U118,\"}\",CHAR(160),GD$1))-FIND(CHAR(160),SUBSTITUTE($U118,\"{\",CHAR(160),GD$1))+1),\"\")","v":""},{"$f":"IFERROR(MID($U118,FIND(CHAR(160),SUBSTITUTE($U118,\"{\",CHAR(160),GE$1)),FIND(CHAR(160),SUBSTITUTE($U118,\"}\",CHAR(160),GE$1))-FIND(CHAR(160),SUBSTITUTE($U118,\"{\",CHAR(160),GE$1))+1),\"\")","v":""},{"$f":"IFERROR(MID($U118,FIND(CHAR(160),SUBSTITUTE($U118,\"{\",CHAR(160),GF$1)),FIND(CHAR(160),SUBSTITUTE($U118,\"}\",CHAR(160),GF$1))-FIND(CHAR(160),SUBSTITUTE($U118,\"{\",CHAR(160),GF$1))+1),\"\")","v":""},{"$f":"IFERROR(MID($V118,FIND(CHAR(160),SUBSTITUTE($V118,\"{\",CHAR(160),GG$1)),FIND(CHAR(160),SUBSTITUTE($V118,\"}\",CHAR(160),GG$1))-FIND(CHAR(160),SUBSTITUTE($V118,\"{\",CHAR(160),GG$1))+1),\"\")","v":""},{"$f":"IFERROR(MID($V118,FIND(CHAR(160),SUBSTITUTE($V118,\"{\",CHAR(160),GH$1)),FIND(CHAR(160),SUBSTITUTE($V118,\"}\",CHAR(160),GH$1))-FIND(CHAR(160),SUBSTITUTE($V118,\"{\",CHAR(160),GH$1))+1),\"\")","v":""},{"$f":"IFERROR(MID($V118,FIND(CHAR(160),SUBSTITUTE($V118,\"{\",CHAR(160),GI$1)),FIND(CHAR(160),SUBSTITUTE($V118,\"}\",CHAR(160),GI$1))-FIND(CHAR(160),SUBSTITUTE($V118,\"{\",CHAR(160),GI$1))+1),\"\")","v":""},{"$f":"IFERROR(MID($V118,FIND(CHAR(160),SUBSTITUTE($V118,\"{\",CHAR(160),GJ$1)),FIND(CHAR(160),SUBSTITUTE($V118,\"}\",CHAR(160),GJ$1))-FIND(CHAR(160),SUBSTITUTE($V118,\"{\",CHAR(160),GJ$1))+1),\"\")","v":""},{"$f":"IFERROR(MID($V118,FIND(CHAR(160),SUBSTITUTE($V118,\"{\",CHAR(160),GK$1)),FIND(CHAR(160),SUBSTITUTE($V118,\"}\",CHAR(160),GK$1))-FIND(CHAR(160),SUBSTITUTE($V118,\"{\",CHAR(160),GK$1))+1),\"\")","v":""},{"$f":"IFERROR(MID($V118,FIND(CHAR(160),SUBSTITUTE($V118,\"{\",CHAR(160),GL$1)),FIND(CHAR(160),SUBSTITUTE($V118,\"}\",CHAR(160),GL$1))-FIND(CHAR(160),SUBSTITUTE($V118,\"{\",CHAR(160),GL$1))+1),\"\")","v":""},{"$f":"IFERROR(MID($V118,FIND(CHAR(160),SUBSTITUTE($V118,\"{\",CHAR(160),GM$1)),FIND(CHAR(160),SUBSTITUTE($V118,\"}\",CHAR(160),GM$1))-FIND(CHAR(160),SUBSTITUTE($V118,\"{\",CHAR(160),GM$1))+1),\"\")","v":""},{"$f":"IFERROR(MID($V118,FIND(CHAR(160),SUBSTITUTE($V118,\"{\",CHAR(160),GN$1)),FIND(CHAR(160),SUBSTITUTE($V118,\"}\",CHAR(160),GN$1))-FIND(CHAR(160),SUBSTITUTE($V118,\"{\",CHAR(160),GN$1))+1),\"\")","v":""},{"$f":"IFERROR(MID($V118,FIND(CHAR(160),SUBSTITUTE($V118,\"{\",CHAR(160),GO$1)),FIND(CHAR(160),SUBSTITUTE($V118,\"}\",CHAR(160),GO$1))-FIND(CHAR(160),SUBSTITUTE($V118,\"{\",CHAR(160),GO$1))+1),\"\")","v":""},{"$f":"IFERROR(MID($V118,FIND(CHAR(160),SUBSTITUTE($V118,\"{\",CHAR(160),GP$1)),FIND(CHAR(160),SUBSTITUTE($V118,\"}\",CHAR(160),GP$1))-FIND(CHAR(160),SUBSTITUTE($V118,\"{\",CHAR(160),GP$1))+1),\"\")","v":""},{"$f":"IFERROR(MID($W118,FIND(CHAR(160),SUBSTITUTE($W118,\"{\",CHAR(160),GQ$1)),FIND(CHAR(160),SUBSTITUTE($W118,\"}\",CHAR(160),GQ$1))-FIND(CHAR(160),SUBSTITUTE($W118,\"{\",CHAR(160),GQ$1))+1),\"\")","v":"{Capacity (MBTUH)}"},{"$f":"IFERROR(MID($W118,FIND(CHAR(160),SUBSTITUTE($W118,\"{\",CHAR(160),GR$1)),FIND(CHAR(160),SUBSTITUTE($W118,\"}\",CHAR(160),GR$1))-FIND(CHAR(160),SUBSTITUTE($W118,\"{\",CHAR(160),GR$1))+1),\"\")","v":""},{"$f":"IFERROR(MID($W118,FIND(CHAR(160),SUBSTITUTE($W118,\"{\",CHAR(160),GS$1)),FIND(CHAR(160),SUBSTITUTE($W118,\"}\",CHAR(160),GS$1))-FIND(CHAR(160),SUBSTITUTE($W118,\"{\",CHAR(160),GS$1))+1),\"\")","v":""},{"$f":"IFERROR(MID($W118,FIND(CHAR(160),SUBSTITUTE($W118,\"{\",CHAR(160),GT$1)),FIND(CHAR(160),SUBSTITUTE($W118,\"}\",CHAR(160),GT$1))-FIND(CHAR(160),SUBSTITUTE($W118,\"{\",CHAR(160),GT$1))+1),\"\")","v":""},{"$f":"IFERROR(MID($W118,FIND(CHAR(160),SUBSTITUTE($W118,\"{\",CHAR(160),GU$1)),FIND(CHAR(160),SUBSTITUTE($W118,\"}\",CHAR(160),GU$1))-FIND(CHAR(160),SUBSTITUTE($W118,\"{\",CHAR(160),GU$1))+1),\"\")","v":""},{"$f":"IFERROR(MID($W118,FIND(CHAR(160),SUBSTITUTE($W118,\"{\",CHAR(160),GV$1)),FIND(CHAR(160),SUBSTITUTE($W118,\"}\",CHAR(160),GV$1))-FIND(CHAR(160),SUBSTITUTE($W118,\"{\",CHAR(160),GV$1))+1),\"\")","v":""},{"$f":"IFERROR(MID($W118,FIND(CHAR(160),SUBSTITUTE($W118,\"{\",CHAR(160),GW$1)),FIND(CHAR(160),SUBSTITUTE($W118,\"}\",CHAR(160),GW$1))-FIND(CHAR(160),SUBSTITUTE($W118,\"{\",CHAR(160),GW$1))+1),\"\")","v":""},{"$f":"IFERROR(MID($W118,FIND(CHAR(160),SUBSTITUTE($W118,\"{\",CHAR(160),GX$1)),FIND(CHAR(160),SUBSTITUTE($W118,\"}\",CHAR(160),GX$1))-FIND(CHAR(160),SUBSTITUTE($W118,\"{\",CHAR(160),GX$1))+1),\"\")","v":""},{"$f":"IFERROR(MID($W118,FIND(CHAR(160),SUBSTITUTE($W118,\"{\",CHAR(160),GY$1)),FIND(CHAR(160),SUBSTITUTE($W118,\"}\",CHAR(160),GY$1))-FIND(CHAR(160),SUBSTITUTE($W118,\"{\",CHAR(160),GY$1))+1),\"\")","v":"{Existing Fuel}"},{"$f":"IFERROR(MID($W118,FIND(CHAR(160),SUBSTITUTE($W118,\"{\",CHAR(160),GZ$1)),FIND(CHAR(160),SUBSTITUTE($W118,\"}\",CHAR(160),GZ$1))-FIND(CHAR(160),SUBSTITUTE($W118,\"{\",CHAR(160),GZ$1))+1),\"\")","v":"{Measure:Quantity}"},{"$f":"IFERROR(MID($X118,FIND(CHAR(160),SUBSTITUTE($X118,\"{\",CHAR(160),HA$1)),FIND(CHAR(160),SUBSTITUTE($X118,\"}\",CHAR(160),HA$1))-FIND(CHAR(160),SUBSTITUTE($X118,\"{\",CHAR(160),HA$1))+1),\"\")","v":"{Capacity (MBTUH)}"},{"$f":"IFERROR(MID($X118,FIND(CHAR(160),SUBSTITUTE($X118,\"{\",CHAR(160),HB$1)),FIND(CHAR(160),SUBSTITUTE($X118,\"}\",CHAR(160),HB$1))-FIND(CHAR(160),SUBSTITUTE($X118,\"{\",CHAR(160),HB$1))+1),\"\")","v":""},{"$f":"IFERROR(MID($X118,FIND(CHAR(160),SUBSTITUTE($X118,\"{\",CHAR(160),HC$1)),FIND(CHAR(160),SUBSTITUTE($X118,\"}\",CHAR(160),HC$1))-FIND(CHAR(160),SUBSTITUTE($X118,\"{\",CHAR(160),HC$1))+1),\"\")","v":""},{"$f":"IFERROR(MID($X118,FIND(CHAR(160),SUBSTITUTE($X118,\"{\",CHAR(160),HD$1)),FIND(CHAR(160),SUBSTITUTE($X118,\"}\",CHAR(160),HD$1))-FIND(CHAR(160),SUBSTITUTE($X118,\"{\",CHAR(160),HD$1))+1),\"\")","v":""},{"$f":"IFERROR(MID($X118,FIND(CHAR(160),SUBSTITUTE($X118,\"{\",CHAR(160),HE$1)),FIND(CHAR(160),SUBSTITUTE($X118,\"}\",CHAR(160),HE$1))-FIND(CHAR(160),SUBSTITUTE($X118,\"{\",CHAR(160),HE$1))+1),\"\")","v":""},{"$f":"IFERROR(MID($X118,FIND(CHAR(160),SUBSTITUTE($X118,\"{\",CHAR(160),HF$1)),FIND(CHAR(160),SUBSTITUTE($X118,\"}\",CHAR(160),HF$1))-FIND(CHAR(160),SUBSTITUTE($X118,\"{\",CHAR(160),HF$1))+1),\"\")","v":""},{"$f":"IFERROR(MID($X118,FIND(CHAR(160),SUBSTITUTE($X118,\"{\",CHAR(160),HG$1)),FIND(CHAR(160),SUBSTITUTE($X118,\"}\",CHAR(160),HG$1))-FIND(CHAR(160),SUBSTITUTE($X118,\"{\",CHAR(160),HG$1))+1),\"\")","v":""},{"$f":"IFERROR(MID($X118,FIND(CHAR(160),SUBSTITUTE($X118,\"{\",CHAR(160),HH$1)),FIND(CHAR(160),SUBSTITUTE($X118,\"}\",CHAR(160),HH$1))-FIND(CHAR(160),SUBSTITUTE($X118,\"{\",CHAR(160),HH$1))+1),\"\")","v":""},{"$f":"IFERROR(MID($X118,FIND(CHAR(160),SUBSTITUTE($X118,\"{\",CHAR(160),HI$1)),FIND(CHAR(160),SUBSTITUTE($X118,\"}\",CHAR(160),HI$1))-FIND(CHAR(160),SUBSTITUTE($X118,\"{\",CHAR(160),HI$1))+1),\"\")","v":"{Existing Fuel}"},{"$f":"IFERROR(MID($X118,FIND(CHAR(160),SUBSTITUTE($X118,\"{\",CHAR(160),HJ$1)),FIND(CHAR(160),SUBSTITUTE($X118,\"}\",CHAR(160),HJ$1))-FIND(CHAR(160),SUBSTITUTE($X118,\"{\",CHAR(160),HJ$1))+1),\"\")","v":"{Measure:Quantity}"},{"$f":"IFERROR(MID($Y118,FIND(CHAR(160),SUBSTITUTE($Y118,\"{\",CHAR(160),HK$1)),FIND(CHAR(160),SUBSTITUTE($Y118,\"}\",CHAR(160),HK$1))-FIND(CHAR(160),SUBSTITUTE($Y118,\"{\",CHAR(160),HK$1))+1),\"\")","v":""},{"$f":"IFERROR(MID($Y118,FIND(CHAR(160),SUBSTITUTE($Y118,\"{\",CHAR(160),HL$1)),FIND(CHAR(160),SUBSTITUTE($Y118,\"}\",CHAR(160),HL$1))-FIND(CHAR(160),SUBSTITUTE($Y118,\"{\",CHAR(160),HL$1))+1),\"\")","v":""},{"$f":"IFERROR(MID($Y118,FIND(CHAR(160),SUBSTITUTE($Y118,\"{\",CHAR(160),HM$1)),FIND(CHAR(160),SUBSTITUTE($Y118,\"}\",CHAR(160),HM$1))-FIND(CHAR(160),SUBSTITUTE($Y118,\"{\",CHAR(160),HM$1))+1),\"\")","v":""},{"$f":"IFERROR(MID($Y118,FIND(CHAR(160),SUBSTITUTE($Y118,\"{\",CHAR(160),HN$1)),FIND(CHAR(160),SUBSTITUTE($Y118,\"}\",CHAR(160),HN$1))-FIND(CHAR(160),SUBSTITUTE($Y118,\"{\",CHAR(160),HN$1))+1),\"\")","v":""},{"$f":"IFERROR(MID($Y118,FIND(CHAR(160),SUBSTITUTE($Y118,\"{\",CHAR(160),HO$1)),FIND(CHAR(160),SUBSTITUTE($Y118,\"}\",CHAR(160),HO$1))-FIND(CHAR(160),SUBSTITUTE($Y118,\"{\",CHAR(160),HO$1))+1),\"\")","v":""},{"$f":"IFERROR(MID($Y118,FIND(CHAR(160),SUBSTITUTE($Y118,\"{\",CHAR(160),HP$1)),FIND(CHAR(160),SUBSTITUTE($Y118,\"}\",CHAR(160),HP$1))-FIND(CHAR(160),SUBSTITUTE($Y118,\"{\",CHAR(160),HP$1))+1),\"\")","v":""},{"$f":"IFERROR(MID($Y118,FIND(CHAR(160),SUBSTITUTE($Y118,\"{\",CHAR(160),HQ$1)),FIND(CHAR(160),SUBSTITUTE($Y118,\"}\",CHAR(160),HQ$1))-FIND(CHAR(160),SUBSTITUTE($Y118,\"{\",CHAR(160),HQ$1))+1),\"\")","v":""},{"$f":"IFERROR(MID($Y118,FIND(CHAR(160),SUBSTITUTE($Y118,\"{\",CHAR(160),HR$1)),FIND(CHAR(160),SUBSTITUTE($Y118,\"}\",CHAR(160),HR$1))-FIND(CHAR(160),SUBSTITUTE($Y118,\"{\",CHAR(160),HR$1))+1),\"\")","v":""},{"$f":"IFERROR(MID($Y118,FIND(CHAR(160),SUBSTITUTE($Y118,\"{\",CHAR(160),HS$1)),FIND(CHAR(160),SUBSTITUTE($Y118,\"}\",CHAR(160),HS$1))-FIND(CHAR(160),SUBSTITUTE($Y118,\"{\",CHAR(160),HS$1))+1),\"\")","v":""},{"$f":"IFERROR(MID($Y118,FIND(CHAR(160),SUBSTITUTE($Y118,\"{\",CHAR(160),HT$1)),FIND(CHAR(160),SUBSTITUTE($Y118,\"}\",CHAR(160),HT$1))-FIND(CHAR(160),SUBSTITUTE($Y118,\"{\",CHAR(160),HT$1))+1),\"\")","v":""},{"$f":"IFERROR(MID($Z118,FIND(CHAR(160),SUBSTITUTE($Z118,\"{\",CHAR(160),HU$1)),FIND(CHAR(160),SUBSTITUTE($Z118,\"}\",CHAR(160),HU$1))-FIND(CHAR(160),SUBSTITUTE($Z118,\"{\",CHAR(160),HU$1))+1),\"\")","v":""},{"$f":"IFERROR(MID($Z118,FIND(CHAR(160),SUBSTITUTE($Z118,\"{\",CHAR(160),HV$1)),FIND(CHAR(160),SUBSTITUTE($Z118,\"}\",CHAR(160),HV$1))-FIND(CHAR(160),SUBSTITUTE($Z118,\"{\",CHAR(160),HV$1))+1),\"\")","v":""},{"$f":"IFERROR(MID($Z118,FIND(CHAR(160),SUBSTITUTE($Z118,\"{\",CHAR(160),HW$1)),FIND(CHAR(160),SUBSTITUTE($Z118,\"}\",CHAR(160),HW$1))-FIND(CHAR(160),SUBSTITUTE($Z118,\"{\",CHAR(160),HW$1))+1),\"\")","v":""},{"$f":"IFERROR(MID($Z118,FIND(CHAR(160),SUBSTITUTE($Z118,\"{\",CHAR(160),HX$1)),FIND(CHAR(160),SUBSTITUTE($Z118,\"}\",CHAR(160),HX$1))-FIND(CHAR(160),SUBSTITUTE($Z118,\"{\",CHAR(160),HX$1))+1),\"\")","v":""},{"$f":"IFERROR(MID($Z118,FIND(CHAR(160),SUBSTITUTE($Z118,\"{\",CHAR(160),HY$1)),FIND(CHAR(160),SUBSTITUTE($Z118,\"}\",CHAR(160),HY$1))-FIND(CHAR(160),SUBSTITUTE($Z118,\"{\",CHAR(160),HY$1))+1),\"\")","v":""},{"$f":"IFERROR(MID($Z118,FIND(CHAR(160),SUBSTITUTE($Z118,\"{\",CHAR(160),HZ$1)),FIND(CHAR(160),SUBSTITUTE($Z118,\"}\",CHAR(160),HZ$1))-FIND(CHAR(160),SUBSTITUTE($Z118,\"{\",CHAR(160),HZ$1))+1),\"\")","v":""},{"$f":"IFERROR(MID($Z118,FIND(CHAR(160),SUBSTITUTE($Z118,\"{\",CHAR(160),IA$1)),FIND(CHAR(160),SUBSTITUTE($Z118,\"}\",CHAR(160),IA$1))-FIND(CHAR(160),SUBSTITUTE($Z118,\"{\",CHAR(160),IA$1))+1),\"\")","v":""},{"$f":"IFERROR(MID($Z118,FIND(CHAR(160),SUBSTITUTE($Z118,\"{\",CHAR(160),IB$1)),FIND(CHAR(160),SUBSTITUTE($Z118,\"}\",CHAR(160),IB$1))-FIND(CHAR(160),SUBSTITUTE($Z118,\"{\",CHAR(160),IB$1))+1),\"\")","v":""},{"$f":"IFERROR(MID($Z118,FIND(CHAR(160),SUBSTITUTE($Z118,\"{\",CHAR(160),IC$1)),FIND(CHAR(160),SUBSTITUTE($Z118,\"}\",CHAR(160),IC$1))-FIND(CHAR(160),SUBSTITUTE($Z118,\"{\",CHAR(160),IC$1))+1),\"\")","v":""},{"$f":"IFERROR(MID($Z118,FIND(CHAR(160),SUBSTITUTE($Z118,\"{\",CHAR(160),ID$1)),FIND(CHAR(160),SUBSTITUTE($Z118,\"}\",CHAR(160),ID$1))-FIND(CHAR(160),SUBSTITUTE($Z118,\"{\",CHAR(160),ID$1))+1),\"\")","v":""},{"$f":"IFERROR(MID($AA118,FIND(CHAR(160),SUBSTITUTE($AA118,\"{\",CHAR(160),IE$1)),FIND(CHAR(160),SUBSTITUTE($AA118,\"}\",CHAR(160),IE$1))-FIND(CHAR(160),SUBSTITUTE($AA118,\"{\",CHAR(160),IE$1))+1),\"\")","v":""},{"$f":"IFERROR(MID($AA118,FIND(CHAR(160),SUBSTITUTE($AA118,\"{\",CHAR(160),IF$1)),FIND(CHAR(160),SUBSTITUTE($AA118,\"}\",CHAR(160),IF$1))-FIND(CHAR(160),SUBSTITUTE($AA118,\"{\",CHAR(160),IF$1))+1),\"\")","v":""},{"$f":"IFERROR(MID($AA118,FIND(CHAR(160),SUBSTITUTE($AA118,\"{\",CHAR(160),IG$1)),FIND(CHAR(160),SUBSTITUTE($AA118,\"}\",CHAR(160),IG$1))-FIND(CHAR(160),SUBSTITUTE($AA118,\"{\",CHAR(160),IG$1))+1),\"\")","v":""},{"$f":"IFERROR(MID($AA118,FIND(CHAR(160),SUBSTITUTE($AA118,\"{\",CHAR(160),IH$1)),FIND(CHAR(160),SUBSTITUTE($AA118,\"}\",CHAR(160),IH$1))-FIND(CHAR(160),SUBSTITUTE($AA118,\"{\",CHAR(160),IH$1))+1),\"\")","v":""},{"$f":"IFERROR(MID($AA118,FIND(CHAR(160),SUBSTITUTE($AA118,\"{\",CHAR(160),II$1)),FIND(CHAR(160),SUBSTITUTE($AA118,\"}\",CHAR(160),II$1))-FIND(CHAR(160),SUBSTITUTE($AA118,\"{\",CHAR(160),II$1))+1),\"\")","v":""},{"$f":"IFERROR(MID($AA118,FIND(CHAR(160),SUBSTITUTE($AA118,\"{\",CHAR(160),IJ$1)),FIND(CHAR(160),SUBSTITUTE($AA118,\"}\",CHAR(160),IJ$1))-FIND(CHAR(160),SUBSTITUTE($AA118,\"{\",CHAR(160),IJ$1))+1),\"\")","v":""},{"$f":"IFERROR(MID($AA118,FIND(CHAR(160),SUBSTITUTE($AA118,\"{\",CHAR(160),IK$1)),FIND(CHAR(160),SUBSTITUTE($AA118,\"}\",CHAR(160),IK$1))-FIND(CHAR(160),SUBSTITUTE($AA118,\"{\",CHAR(160),IK$1))+1),\"\")","v":""},{"$f":"IFERROR(MID($AA118,FIND(CHAR(160),SUBSTITUTE($AA118,\"{\",CHAR(160),IL$1)),FIND(CHAR(160),SUBSTITUTE($AA118,\"}\",CHAR(160),IL$1))-FIND(CHAR(160),SUBSTITUTE($AA118,\"{\",CHAR(160),IL$1))+1),\"\")","v":""},{"$f":"IFERROR(MID($AA118,FIND(CHAR(160),SUBSTITUTE($AA118,\"{\",CHAR(160),IM$1)),FIND(CHAR(160),SUBSTITUTE($AA118,\"}\",CHAR(160),IM$1))-FIND(CHAR(160),SUBSTITUTE($AA118,\"{\",CHAR(160),IM$1))+1),\"\")","v":""},{"$f":"IFERROR(MID($AA118,FIND(CHAR(160),SUBSTITUTE($AA118,\"{\",CHAR(160),IN$1)),FIND(CHAR(160),SUBSTITUTE($AA118,\"}\",CHAR(160),IN$1))-FIND(CHAR(160),SUBSTITUTE($AA118,\"{\",CHAR(160),IN$1))+1),\"\")","v":""},{"$f":"IFERROR(MID($AB118,FIND(CHAR(160),SUBSTITUTE($AB118,\"{\",CHAR(160),IO$1)),FIND(CHAR(160),SUBSTITUTE($AB118,\"}\",CHAR(160),IO$1))-FIND(CHAR(160),SUBSTITUTE($AB118,\"{\",CHAR(160),IO$1))+1),\"\")","v":""},{"$f":"IFERROR(MID($AB118,FIND(CHAR(160),SUBSTITUTE($AB118,\"{\",CHAR(160),IP$1)),FIND(CHAR(160),SUBSTITUTE($AB118,\"}\",CHAR(160),IP$1))-FIND(CHAR(160),SUBSTITUTE($AB118,\"{\",CHAR(160),IP$1))+1),\"\")","v":""},{"$f":"IFERROR(MID($AB118,FIND(CHAR(160),SUBSTITUTE($AB118,\"{\",CHAR(160),IQ$1)),FIND(CHAR(160),SUBSTITUTE($AB118,\"}\",CHAR(160),IQ$1))-FIND(CHAR(160),SUBSTITUTE($AB118,\"{\",CHAR(160),IQ$1))+1),\"\")","v":""},{"$f":"IFERROR(MID($AB118,FIND(CHAR(160),SUBSTITUTE($AB118,\"{\",CHAR(160),IR$1)),FIND(CHAR(160),SUBSTITUTE($AB118,\"}\",CHAR(160),IR$1))-FIND(CHAR(160),SUBSTITUTE($AB118,\"{\",CHAR(160),IR$1))+1),\"\")","v":""},{"$f":"IFERROR(MID($AB118,FIND(CHAR(160),SUBSTITUTE($AB118,\"{\",CHAR(160),IS$1)),FIND(CHAR(160),SUBSTITUTE($AB118,\"}\",CHAR(160),IS$1))-FIND(CHAR(160),SUBSTITUTE($AB118,\"{\",CHAR(160),IS$1))+1),\"\")","v":""},{"$f":"IFERROR(MID($AB118,FIND(CHAR(160),SUBSTITUTE($AB118,\"{\",CHAR(160),IT$1)),FIND(CHAR(160),SUBSTITUTE($AB118,\"}\",CHAR(160),IT$1))-FIND(CHAR(160),SUBSTITUTE($AB118,\"{\",CHAR(160),IT$1))+1),\"\")","v":""},{"$f":"IFERROR(MID($AB118,FIND(CHAR(160),SUBSTITUTE($AB118,\"{\",CHAR(160),IU$1)),FIND(CHAR(160),SUBSTITUTE($AB118,\"}\",CHAR(160),IU$1))-FIND(CHAR(160),SUBSTITUTE($AB118,\"{\",CHAR(160),IU$1))+1),\"\")","v":""},{"$f":"IFERROR(MID($AB118,FIND(CHAR(160),SUBSTITUTE($AB118,\"{\",CHAR(160),IV$1)),FIND(CHAR(160),SUBSTITUTE($AB118,\"}\",CHAR(160),IV$1))-FIND(CHAR(160),SUBSTITUTE($AB118,\"{\",CHAR(160),IV$1))+1),\"\")","v":""},{"$f":"IFERROR(MID($AB118,FIND(CHAR(160),SUBSTITUTE($AB118,\"{\",CHAR(160),IW$1)),FIND(CHAR(160),SUBSTITUTE($AB118,\"}\",CHAR(160),IW$1))-FIND(CHAR(160),SUBSTITUTE($AB118,\"{\",CHAR(160),IW$1))+1),\"\")","v":""},{"$f":"IFERROR(MID($AB118,FIND(CHAR(160),SUBSTITUTE($AB118,\"{\",CHAR(160),IX$1)),FIND(CHAR(160),SUBSTITUTE($AB118,\"}\",CHAR(160),IX$1))-FIND(CHAR(160),SUBSTITUTE($AB118,\"{\",CHAR(160),IX$1))+1),\"\")","v":""},null,{"$f":"10-COUNTIF(DU118:ED118,\"\")","v":3}]
["C&I HVAC - Propane and Compressed NG","Boiler Turbulator","AF5","2021-07-01","2022-06-30","Calculated","{Measure:Quantity}*15.00",0,"Calculated","{Measure:Quantity}*9.5",0,"2021-05-25","2022-06-30","Calculated",null,null,null,null,null,null,null,null,"if({Existing Fuel}<>1,0,{Measure:Quantity} * ({Capacity (MBTUH)} * 1565 * 0.7 * ({Flue Gas Temperature Before (oF)}-{Flue Gas Temperature After (oF)})/40/100))/1000*10","if({Existing Fuel}<>2,0,{Measure:Quantity} * ({Capacity (MBTUH)} * 1565 * 0.7 * ({Flue Gas Temperature Before (oF)}-{Flue Gas Temperature After (oF)})/40/100))/1000",null,null,null,null,"2021-05-25","2022-06-30",20,0,0,0,0,0,0,1,1,0,0.52,1.6E-2,null,{"$f":"DU119","v":"{Measure:Quantity}"},1,{"$f":"DV119","v":"{Capacity (MBTUH)}"},2,{"$f":"DW119","v":"{Flue Gas Temperature Before (oF)}"},1000,{"$f":"DX119","v":"{Flue Gas Temperature After (oF)}"},270,{"$f":"DY119","v":"{Existing Fuel}"},220,{"$f":"DZ119","v":""},null,{"$f":"EA119","v":""},null,{"$f":"EB119","v":""},null,{"$f":"EC119","v":""},null,{"$f":"ED119","v":""},null,0,0,0,0,0,0,0,0,{"$f":"IF(AU119<>1,0,AS119 * (AW119 * 1565 * 0.7 * (AY119-BA119)/40/100))/1000*10","v":0},{"$f":"IF(AU119<>2,0,AS119 * (AW119 * 1565 * 0.7 * (AY119-BA119)/40/100))/1000","v":13.69375},0,0,0,0,null,"Res","Default DR",{"$f":"Benefits(BL119,BR119,BS119,BT119,BU119,BV119,BW119,BX119,BY119,BZ119,AE119,AH119,AI119,AJ119,AK119,AL119,AM119,AN119,AO119,AP119,CA119,CB119)","v":0},0,0,0,0,10025.927144705787,0,0,0,{"$f":"SUMPRODUCT(CC119:CK119,--(CC119:CK119>0))","v":10025.927144705787},{"$f":"-SUMPRODUCT(CC119:CK119,--(CC119:CK119<0))","v":0},null,{"$f":"AS119*15","v":15},null,null,{"$f":"CM119+CO119","v":15},{"$f":"IF(NetOrGross=\"Net\",(1-AO119+AP119),1)","v":1},{"$f":"(SUMPRODUCT(CC119:CJ119,--(CC119:CJ119>0))+CN119)*CS119/((-SUMPRODUCT(CC119:CJ119,--(CC119:CJ119<0))+MAX(CO119,CV119)+CP119+CQ119)*CS119+IF(FRIncentives=\"Yes\",CV119*(1-CS119),0))","v":668.3951429803858},1,{"$f":"AS119*9.5","v":9.5},null,"RGGI","y",null,{"$f":"IF(F119=\"Manual Entry\",\"Manual\",IF(G119=\"\",0,\"X=\"&SUBSTITUTE(SUBSTITUTE(SUBSTITUTE(SUBSTITUTE(SUBSTITUTE(SUBSTITUTE(SUBSTITUTE(SUBSTITUTE(SUBSTITUTE(SUBSTITUTE(SUBSTITUTE(SUBSTITUTE(G119,$ED119,$ED$2&ROW($ED119)),$EC119,$EC$2&ROW($EC119)),$EB119,$EB$2&ROW($EB119)),$EA119,$EA$2&ROW($EA119)),$DZ119,$DZ$2&ROW($DZ119)),$DY119,$DY$2&ROW($DY119)),$DX119,$DX$2&ROW($DX119)),$DW119,$DW$2&ROW($DW119)),$DV119,$DV$2&ROW($DV119)),$DU119,$DU$2&ROW($DU119)),$DT119,$DT$2&ROW($DT119)),$DS119,$DS$2&ROW($DS119))))","v":"X=AS119*15.00"},{"$f":"IF(I119=\"Manual Entry\",\"Manual\",IF(J119=\"\",0,\"X=\"&SUBSTITUTE(SUBSTITUTE(SUBSTITUTE(SUBSTITUTE(SUBSTITUTE(SUBSTITUTE(SUBSTITUTE(SUBSTITUTE(SUBSTITUTE(SUBSTITUTE(SUBSTITUTE(SUBSTITUTE(J119,$ED119,$ED$2&ROW($ED119)),$EC119,$EC$2&ROW($EC119)),$EB119,$EB$2&ROW($EB119)),$EA119,$EA$2&ROW($EA119)),$DZ119,$DZ$2&ROW($DZ119)),$DY119,$DY$2&ROW($DY119)),$DX119,$DX$2&ROW($DX119)),$DW119,$DW$2&ROW($DW119)),$DV119,$DV$2&ROW($DV119)),$DU119,$DU$2&ROW($DU119)),$DT119,$DT$2&ROW($DT119)),$DS119,$DS$2&ROW($DS119))))","v":"X=AS119*9.5"},{"$f":"IF(O119=\"\",0,\"X=\"&SUBSTITUTE(SUBSTITUTE(SUBSTITUTE(SUBSTITUTE(SUBSTITUTE(SUBSTITUTE(SUBSTITUTE(SUBSTITUTE(SUBSTITUTE(SUBSTITUTE(SUBSTITUTE(SUBSTITUTE(O119,$ED119,$ED$2&ROW($ED119)),$EC119,$EC$2&ROW($EC119)),$EB119,$EB$2&ROW($EB119)),$EA119,$EA$2&ROW($EA119)),$DZ119,$DZ$2&ROW($DZ119)),$DY119,$DY$2&ROW($DY119)),$DX119,$DX$2&ROW($DX119)),$DW119,$DW$2&ROW($DW119)),$DV119,$DV$2&ROW($DV119)),$DU119,$DU$2&ROW($DU119)),$DT119,$DT$2&ROW($DT119)),$DS119,$DS$2&ROW($DS119)))","v":0},{"$f":"IF(P119=\"\",0,\"X=\"&SUBSTITUTE(SUBSTITUTE(SUBSTITUTE(SUBSTITUTE(SUBSTITUTE(SUBSTITUTE(SUBSTITUTE(SUBSTITUTE(SUBSTITUTE(SUBSTITUTE(SUBSTITUTE(SUBSTITUTE(P119,$ED119,$ED$2&ROW($ED119)),$EC119,$EC$2&ROW($EC119)),$EB119,$EB$2&ROW($EB119)),$EA119,$EA$2&ROW($EA119)),$DZ119,$DZ$2&ROW($DZ119)),$DY119,$DY$2&ROW($DY119)),$DX119,$DX$2&ROW($DX119)),$DW119,$DW$2&ROW($DW119)),$DV119,$DV$2&ROW($DV119)),$DU119,$DU$2&ROW($DU119)),$DT119,$DT$2&ROW($DT119)),$DS119,$DS$2&ROW($DS119)))","v":0},{"$f":"IF(Q119=\"\",0,\"X=\"&SUBSTITUTE(SUBSTITUTE(SUBSTITUTE(SUBSTITUTE(SUBSTITUTE(SUBSTITUTE(SUBSTITUTE(SUBSTITUTE(SUBSTITUTE(SUBSTITUTE(SUBSTITUTE(SUBSTITUTE(Q119,$ED119,$ED$2&ROW($ED119)),$EC119,$EC$2&ROW($EC119)),$EB119,$EB$2&ROW($EB119)),$EA119,$EA$2&ROW($EA119)),$DZ119,$DZ$2&ROW($DZ119)),$DY119,$DY$2&ROW($DY119)),$DX119,$DX$2&ROW($DX119)),$DW119,$DW$2&ROW($DW119)),$DV119,$DV$2&ROW($DV119)),$DU119,$DU$2&ROW($DU119)),$DT119,$DT$2&ROW($DT119)),$DS119,$DS$2&ROW($DS119)))","v":0},{"$f":"IF(R119=\"\",0,\"X=\"&SUBSTITUTE(SUBSTITUTE(SUBSTITUTE(SUBSTITUTE(SUBSTITUTE(SUBSTITUTE(SUBSTITUTE(SUBSTITUTE(SUBSTITUTE(SUBSTITUTE(SUBSTITUTE(SUBSTITUTE(R119,$ED119,$ED$2&ROW($ED119)),$EC119,$EC$2&ROW($EC119)),$EB119,$EB$2&ROW($EB119)),$EA119,$EA$2&ROW($EA119)),$DZ119,$DZ$2&ROW($DZ119)),$DY119,$DY$2&ROW($DY119)),$DX119,$DX$2&ROW($DX119)),$DW119,$DW$2&ROW($DW119)),$DV119,$DV$2&ROW($DV119)),$DU119,$DU$2&ROW($DU119)),$DT119,$DT$2&ROW($DT119)),$DS119,$DS$2&ROW($DS119)))","v":0},{"$f":"IF(S119=\"\",0,\"X=\"&SUBSTITUTE(SUBSTITUTE(SUBSTITUTE(SUBSTITUTE(SUBSTITUTE(SUBSTITUTE(SUBSTITUTE(SUBSTITUTE(SUBSTITUTE(SUBSTITUTE(SUBSTITUTE(SUBSTITUTE(S119,$ED119,$ED$2&ROW($ED119)),$EC119,$EC$2&ROW($EC119)),$EB119,$EB$2&ROW($EB119)),$EA119,$EA$2&ROW($EA119)),$DZ119,$DZ$2&ROW($DZ119)),$DY119,$DY$2&ROW($DY119)),$DX119,$DX$2&ROW($DX119)),$DW119,$DW$2&ROW($DW119)),$DV119,$DV$2&ROW($DV119)),$DU119,$DU$2&ROW($DU119)),$DT119,$DT$2&ROW($DT119)),$DS119,$DS$2&ROW($DS119)))","v":0},{"$f":"IF(T119=\"\",0,\"X=\"&SUBSTITUTE(SUBSTITUTE(SUBSTITUTE(SUBSTITUTE(SUBSTITUTE(SUBSTITUTE(SUBSTITUTE(SUBSTITUTE(SUBSTITUTE(SUBSTITUTE(SUBSTITUTE(SUBSTITUTE(T119,$ED119,$ED$2&ROW($ED119)),$EC119,$EC$2&ROW($EC119)),$EB119,$EB$2&ROW($EB119)),$EA119,$EA$2&ROW($EA119)),$DZ119,$DZ$2&ROW($DZ119)),$DY119,$DY$2&ROW($DY119)),$DX119,$DX$2&ROW($DX119)),$DW119,$DW$2&ROW($DW119)),$DV119,$DV$2&ROW($DV119)),$DU119,$DU$2&ROW($DU119)),$DT119,$DT$2&ROW($DT119)),$DS119,$DS$2&ROW($DS119)))","v":0},{"$f":"IF(U119=\"\",0,\"X=\"&SUBSTITUTE(SUBSTITUTE(SUBSTITUTE(SUBSTITUTE(SUBSTITUTE(SUBSTITUTE(SUBSTITUTE(SUBSTITUTE(SUBSTITUTE(SUBSTITUTE(SUBSTITUTE(SUBSTITUTE(U119,$ED119,$ED$2&ROW($ED119)),$EC119,$EC$2&ROW($EC119)),$EB119,$EB$2&ROW($EB119)),$EA119,$EA$2&ROW($EA119)),$DZ119,$DZ$2&ROW($DZ119)),$DY119,$DY$2&ROW($DY119)),$DX119,$DX$2&ROW($DX119)),$DW119,$DW$2&ROW($DW119)),$DV119,$DV$2&ROW($DV119)),$DU119,$DU$2&ROW($DU119)),$DT119,$DT$2&ROW($DT119)),$DS119,$DS$2&ROW($DS119)))","v":0},{"$f":"IF(V119=\"\",0,\"X=\"&SUBSTITUTE(SUBSTITUTE(SUBSTITUTE(SUBSTITUTE(SUBSTITUTE(SUBSTITUTE(SUBSTITUTE(SUBSTITUTE(SUBSTITUTE(SUBSTITUTE(SUBSTITUTE(SUBSTITUTE(V119,$ED119,$ED$2&ROW($ED119)),$EC119,$EC$2&ROW($EC119)),$EB119,$EB$2&ROW($EB119)),$EA119,$EA$2&ROW($EA119)),$DZ119,$DZ$2&ROW($DZ119)),$DY119,$DY$2&ROW($DY119)),$DX119,$DX$2&ROW($DX119)),$DW119,$DW$2&ROW($DW119)),$DV119,$DV$2&ROW($DV119)),$DU119,$DU$2&ROW($DU119)),$DT119,$DT$2&ROW($DT119)),$DS119,$DS$2&ROW($DS119)))","v":0},{"$f":"IF(W119=\"\",0,\"X=\"&SUBSTITUTE(SUBSTITUTE(SUBSTITUTE(SUBSTITUTE(SUBSTITUTE(SUBSTITUTE(SUBSTITUTE(SUBSTITUTE(SUBSTITUTE(SUBSTITUTE(SUBSTITUTE(SUBSTITUTE(W119,$ED119,$ED$2&ROW($ED119)),$EC119,$EC$2&ROW($EC119)),$EB119,$EB$2&ROW($EB119)),$EA119,$EA$2&ROW($EA119)),$DZ119,$DZ$2&ROW($DZ119)),$DY119,$DY$2&ROW($DY119)),$DX119,$DX$2&ROW($DX119)),$DW119,$DW$2&ROW($DW119)),$DV119,$DV$2&ROW($DV119)),$DU119,$DU$2&ROW($DU119)),$DT119,$DT$2&ROW($DT119)),$DS119,$DS$2&ROW($DS119)))","v":"X=if(BA119<>1,0,AS119 * (AU119 * 1565 * 0.7 * (AW119-AY119)/40/100))/1000*10"},{"$f":"IF(X119=\"\",0,\"X=\"&SUBSTITUTE(SUBSTITUTE(SUBSTITUTE(SUBSTITUTE(SUBSTITUTE(SUBSTITUTE(SUBSTITUTE(SUBSTITUTE(SUBSTITUTE(SUBSTITUTE(SUBSTITUTE(SUBSTITUTE(X119,$ED119,$ED$2&ROW($ED119)),$EC119,$EC$2&ROW($EC119)),$EB119,$EB$2&ROW($EB119)),$EA119,$EA$2&ROW($EA119)),$DZ119,$DZ$2&ROW($DZ119)),$DY119,$DY$2&ROW($DY119)),$DX119,$DX$2&ROW($DX119)),$DW119,$DW$2&ROW($DW119)),$DV119,$DV$2&ROW($DV119)),$DU119,$DU$2&ROW($DU119)),$DT119,$DT$2&ROW($DT119)),$DS119,$DS$2&ROW($DS119)))","v":"X=if(BA119<>2,0,AS119 * (AU119 * 1565 * 0.7 * (AW119-AY119)/40/100))/1000"},{"$f":"IF(Y119=\"\",0,\"X=\"&SUBSTITUTE(SUBSTITUTE(SUBSTITUTE(SUBSTITUTE(SUBSTITUTE(SUBSTITUTE(SUBSTITUTE(SUBSTITUTE(SUBSTITUTE(SUBSTITUTE(SUBSTITUTE(SUBSTITUTE(Y119,$ED119,$ED$2&ROW($ED119)),$EC119,$EC$2&ROW($EC119)),$EB119,$EB$2&ROW($EB119)),$EA119,$EA$2&ROW($EA119)),$DZ119,$DZ$2&ROW($DZ119)),$DY119,$DY$2&ROW($DY119)),$DX119,$DX$2&ROW($DX119)),$DW119,$DW$2&ROW($DW119)),$DV119,$DV$2&ROW($DV119)),$DU119,$DU$2&ROW($DU119)),$DT119,$DT$2&ROW($DT119)),$DS119,$DS$2&ROW($DS119)))","v":0},{"$f":"IF(Z119=\"\",0,\"X=\"&SUBSTITUTE(SUBSTITUTE(SUBSTITUTE(SUBSTITUTE(SUBSTITUTE(SUBSTITUTE(SUBSTITUTE(SUBSTITUTE(SUBSTITUTE(SUBSTITUTE(SUBSTITUTE(SUBSTITUTE(Z119,$ED119,$ED$2&ROW($ED119)),$EC119,$EC$2&ROW($EC119)),$EB119,$EB$2&ROW($EB119)),$EA119,$EA$2&ROW($EA119)),$DZ119,$DZ$2&ROW($DZ119)),$DY119,$DY$2&ROW($DY119)),$DX119,$DX$2&ROW($DX119)),$DW119,$DW$2&ROW($DW119)),$DV119,$DV$2&ROW($DV119)),$DU119,$DU$2&ROW($DU119)),$DT119,$DT$2&ROW($DT119)),$DS119,$DS$2&ROW($DS119)))","v":0},{"$f":"IF(AA119=\"\",0,\"X=\"&SUBSTITUTE(SUBSTITUTE(SUBSTITUTE(SUBSTITUTE(SUBSTITUTE(SUBSTITUTE(SUBSTITUTE(SUBSTITUTE(SUBSTITUTE(SUBSTITUTE(SUBSTITUTE(SUBSTITUTE(AA119,$ED119,$ED$2&ROW($ED119)),$EC119,$EC$2&ROW($EC119)),$EB119,$EB$2&ROW($EB119)),$EA119,$EA$2&ROW($EA119)),$DZ119,$DZ$2&ROW($DZ119)),$DY119,$DY$2&ROW($DY119)),$DX119,$DX$2&ROW($DX119)),$DW119,$DW$2&ROW($DW119)),$DV119,$DV$2&ROW($DV119)),$DU119,$DU$2&ROW($DU119)),$DT119,$DT$2&ROW($DT119)),$DS119,$DS$2&ROW($DS119)))","v":0},{"$f":"IF(AB119=\"\",0,\"X=\"&SUBSTITUTE(SUBSTITUTE(SUBSTITUTE(SUBSTITUTE(SUBSTITUTE(SUBSTITUTE(SUBSTITUTE(SUBSTITUTE(SUBSTITUTE(SUBSTITUTE(SUBSTITUTE(SUBSTITUTE(AB119,$ED119,$ED$2&ROW($ED119)),$EC119,$EC$2&ROW($EC119)),$EB119,$EB$2&ROW($EB119)),$EA119,$EA$2&ROW($EA119)),$DZ119,$DZ$2&ROW($DZ119)),$DY119,$DY$2&ROW($DY119)),$DX119,$DX$2&ROW($DX119)),$DW119,$DW$2&ROW($DW119)),$DV119,$DV$2&ROW($DV119)),$DU119,$DU$2&ROW($DU119)),$DT119,$DT$2&ROW($DT119)),$DS119,$DS$2&ROW($DS119)))","v":0},null,null,"{Factor:WinterCF}","{Factor:SummerCF}",{"$f":"IFERROR(INDEX($EG119:$IV119,MATCH(0,COUNTIF($DR119:DT119,$EG119:$IV119),0)),\"\")","v":"{Measure:Quantity}"},{"$f":"IFERROR(INDEX($EG119:$IV119,MATCH(0,COUNTIF($DR119:DU119,$EG119:$IV119),0)),\"\")","v":"{Capacity (MBTUH)}"},{"$f":"IFERROR(INDEX($EG119:$IV119,MATCH(0,COUNTIF($DR119:DV119,$EG119:$IV119),0)),\"\")","v":"{Flue Gas Temperature Before (oF)}"},{"$f":"IFERROR(INDEX($EG119:$IV119,MATCH(0,COUNTIF($DR119:DW119,$EG119:$IV119),0)),\"\")","v":"{Flue Gas Temperature After (oF)}"},{"$f":"IFERROR(INDEX($EG119:$IV119,MATCH(0,COUNTIF($DR119:DX119,$EG119:$IV119),0)),\"\")","v":"{Existing Fuel}"},{"$f":"IFERROR(INDEX($EG119:$IV119,MATCH(0,COUNTIF($DR119:DY119,$EG119:$IV119),0)),\"\")","v":""},{"$f":"IFERROR(INDEX($EG119:$IV119,MATCH(0,COUNTIF($DR119:DZ119,$EG119:$IV119),0)),\"\")","v":""},{"$f":"IFERROR(INDEX($EG119:$IV119,MATCH(0,COUNTIF($DR119:EA119,$EG119:$IV119),0)),\"\")","v":""},{"$f":"IFERROR(INDEX($EG119:$IV119,MATCH(0,COUNTIF($DR119:EB119,$EG119:$IV119),0)),\"\")","v":""},{"$f":"IFERROR(INDEX($EG119:$IV119,MATCH(0,COUNTIF($DR119:EC119,$EG119:$IV119),0)),\"\")","v":""},null,null,{"$f":"IFERROR(MID($G119,FIND(CHAR(160),SUBSTITUTE($G119,\"{\",CHAR(160),EG$1)),FIND(CHAR(160),SUBSTITUTE($G119,\"}\",CHAR(160),EG$1))-FIND(CHAR(160),SUBSTITUTE($G119,\"{\",CHAR(160),EG$1))+1),\"\")","v":"{Measure:Quantity}"},{"$f":"IFERROR(MID($G119,FIND(CHAR(160),SUBSTITUTE($G119,\"{\",CHAR(160),EH$1)),FIND(CHAR(160),SUBSTITUTE($G119,\"}\",CHAR(160),EH$1))-FIND(CHAR(160),SUBSTITUTE($G119,\"{\",CHAR(160),EH$1))+1),\"\")","v":""},{"$f":"IFERROR(MID($G119,FIND(CHAR(160),SUBSTITUTE($G119,\"{\",CHAR(160),EI$1)),FIND(CHAR(160),SUBSTITUTE($G119,\"}\",CHAR(160),EI$1))-FIND(CHAR(160),SUBSTITUTE($G119,\"{\",CHAR(160),EI$1))+1),\"\")","v":""},{"$f":"IFERROR(MID($G119,FIND(CHAR(160),SUBSTITUTE($G119,\"{\",CHAR(160),EJ$1)),FIND(CHAR(160),SUBSTITUTE($G119,\"}\",CHAR(160),EJ$1))-FIND(CHAR(160),SUBSTITUTE($G119,\"{\",CHAR(160),EJ$1))+1),\"\")","v":""},{"$f":"IFERROR(MID($G119,FIND(CHAR(160),SUBSTITUTE($G119,\"{\",CHAR(160),EK$1)),FIND(CHAR(160),SUBSTITUTE($G119,\"}\",CHAR(160),EK$1))-FIND(CHAR(160),SUBSTITUTE($G119,\"{\",CHAR(160),EK$1))+1),\"\")","v":""},{"$f":"IFERROR(MID($G119,FIND(CHAR(160),SUBSTITUTE($G119,\"{\",CHAR(160),EL$1)),FIND(CHAR(160),SUBSTITUTE($G119,\"}\",CHAR(160),EL$1))-FIND(CHAR(160),SUBSTITUTE($G119,\"{\",CHAR(160),EL$1))+1),\"\")","v":""},{"$f":"IFERROR(MID($G119,FIND(CHAR(160),SUBSTITUTE($G119,\"{\",CHAR(160),EM$1)),FIND(CHAR(160),SUBSTITUTE($G119,\"}\",CHAR(160),EM$1))-FIND(CHAR(160),SUBSTITUTE($G119,\"{\",CHAR(160),EM$1))+1),\"\")","v":""},{"$f":"IFERROR(MID($G119,FIND(CHAR(160),SUBSTITUTE($G119,\"{\",CHAR(160),EN$1)),FIND(CHAR(160),SUBSTITUTE($G119,\"}\",CHAR(160),EN$1))-FIND(CHAR(160),SUBSTITUTE($G119,\"{\",CHAR(160),EN$1))+1),\"\")","v":""},{"$f":"IFERROR(MID($G119,FIND(CHAR(160),SUBSTITUTE($G119,\"{\",CHAR(160),EO$1)),FIND(CHAR(160),SUBSTITUTE($G119,\"}\",CHAR(160),EO$1))-FIND(CHAR(160),SUBSTITUTE($G119,\"{\",CHAR(160),EO$1))+1),\"\")","v":""},{"$f":"IFERROR(MID($G119,FIND(CHAR(160),SUBSTITUTE($G119,\"{\",CHAR(160),EP$1)),FIND(CHAR(160),SUBSTITUTE($G119,\"}\",CHAR(160),EP$1))-FIND(CHAR(160),SUBSTITUTE($G119,\"{\",CHAR(160),EP$1))+1),\"\")","v":""},{"$f":"IFERROR(MID($J119,FIND(CHAR(160),SUBSTITUTE($J119,\"{\",CHAR(160),EQ$1)),FIND(CHAR(160),SUBSTITUTE($J119,\"}\",CHAR(160),EQ$1))-FIND(CHAR(160),SUBSTITUTE($J119,\"{\",CHAR(160),EQ$1))+1),\"\")","v":"{Measure:Quantity}"},{"$f":"IFERROR(MID($J119,FIND(CHAR(160),SUBSTITUTE($J119,\"{\",CHAR(160),ER$1)),FIND(CHAR(160),SUBSTITUTE($J119,\"}\",CHAR(160),ER$1))-FIND(CHAR(160),SUBSTITUTE($J119,\"{\",CHAR(160),ER$1))+1),\"\")","v":""},{"$f":"IFERROR(MID($J119,FIND(CHAR(160),SUBSTITUTE($J119,\"{\",CHAR(160),ES$1)),FIND(CHAR(160),SUBSTITUTE($J119,\"}\",CHAR(160),ES$1))-FIND(CHAR(160),SUBSTITUTE($J119,\"{\",CHAR(160),ES$1))+1),\"\")","v":""},{"$f":"IFERROR(MID($J119,FIND(CHAR(160),SUBSTITUTE($J119,\"{\",CHAR(160),ET$1)),FIND(CHAR(160),SUBSTITUTE($J119,\"}\",CHAR(160),ET$1))-FIND(CHAR(160),SUBSTITUTE($J119,\"{\",CHAR(160),ET$1))+1),\"\")","v":""},{"$f":"IFERROR(MID($J119,FIND(CHAR(160),SUBSTITUTE($J119,\"{\",CHAR(160),EU$1)),FIND(CHAR(160),SUBSTITUTE($J119,\"}\",CHAR(160),EU$1))-FIND(CHAR(160),SUBSTITUTE($J119,\"{\",CHAR(160),EU$1))+1),\"\")","v":""},{"$f":"IFERROR(MID($J119,FIND(CHAR(160),SUBSTITUTE($J119,\"{\",CHAR(160),EV$1)),FIND(CHAR(160),SUBSTITUTE($J119,\"}\",CHAR(160),EV$1))-FIND(CHAR(160),SUBSTITUTE($J119,\"{\",CHAR(160),EV$1))+1),\"\")","v":""},{"$f":"IFERROR(MID($J119,FIND(CHAR(160),SUBSTITUTE($J119,\"{\",CHAR(160),EW$1)),FIND(CHAR(160),SUBSTITUTE($J119,\"}\",CHAR(160),EW$1))-FIND(CHAR(160),SUBSTITUTE($J119,\"{\",CHAR(160),EW$1))+1),\"\")","v":""},{"$f":"IFERROR(MID($J119,FIND(CHAR(160),SUBSTITUTE($J119,\"{\",CHAR(160),EX$1)),FIND(CHAR(160),SUBSTITUTE($J119,\"}\",CHAR(160),EX$1))-FIND(CHAR(160),SUBSTITUTE($J119,\"{\",CHAR(160),EX$1))+1),\"\")","v":""},{"$f":"IFERROR(MID($J119,FIND(CHAR(160),SUBSTITUTE($J119,\"{\",CHAR(160),EY$1)),FIND(CHAR(160),SUBSTITUTE($J119,\"}\",CHAR(160),EY$1))-FIND(CHAR(160),SUBSTITUTE($J119,\"{\",CHAR(160),EY$1))+1),\"\")","v":""},{"$f":"IFERROR(MID($J119,FIND(CHAR(160),SUBSTITUTE($J119,\"{\",CHAR(160),EZ$1)),FIND(CHAR(160),SUBSTITUTE($J119,\"}\",CHAR(160),EZ$1))-FIND(CHAR(160),SUBSTITUTE($J119,\"{\",CHAR(160),EZ$1))+1),\"\")","v":""},{"$f":"IFERROR(MID($J119,FIND(CHAR(160),SUBSTITUTE($J119,\"{\",CHAR(160),FA$1)),FIND(CHAR(160),SUBSTITUTE($J119,\"}\",CHAR(160),FA$1))-FIND(CHAR(160),SUBSTITUTE($J119,\"{\",CHAR(160),FA$1))+1),\"\")","v":"{Measure:Quantity}"},{"$f":"IFERROR(MID($J119,FIND(CHAR(160),SUBSTITUTE($J119,\"{\",CHAR(160),FB$1)),FIND(CHAR(160),SUBSTITUTE($J119,\"}\",CHAR(160),FB$1))-FIND(CHAR(160),SUBSTITUTE($J119,\"{\",CHAR(160),FB$1))+1),\"\")","v":""},{"$f":"IFERROR(MID($O119,FIND(CHAR(160),SUBSTITUTE($O119,\"{\",CHAR(160),FC$1)),FIND(CHAR(160),SUBSTITUTE($O119,\"}\",CHAR(160),FC$1))-FIND(CHAR(160),SUBSTITUTE($O119,\"{\",CHAR(160),FC$1))+1),\"\")","v":""},{"$f":"IFERROR(MID($O119,FIND(CHAR(160),SUBSTITUTE($O119,\"{\",CHAR(160),FD$1)),FIND(CHAR(160),SUBSTITUTE($O119,\"}\",CHAR(160),FD$1))-FIND(CHAR(160),SUBSTITUTE($O119,\"{\",CHAR(160),FD$1))+1),\"\")","v":""},{"$f":"IFERROR(MID($O119,FIND(CHAR(160),SUBSTITUTE($O119,\"{\",CHAR(160),FE$1)),FIND(CHAR(160),SUBSTITUTE($O119,\"}\",CHAR(160),FE$1))-FIND(CHAR(160),SUBSTITUTE($O119,\"{\",CHAR(160),FE$1))+1),\"\")","v":""},{"$f":"IFERROR(MID($O119,FIND(CHAR(160),SUBSTITUTE($O119,\"{\",CHAR(160),FF$1)),FIND(CHAR(160),SUBSTITUTE($O119,\"}\",CHAR(160),FF$1))-FIND(CHAR(160),SUBSTITUTE($O119,\"{\",CHAR(160),FF$1))+1),\"\")","v":""},{"$f":"IFERROR(MID($O119,FIND(CHAR(160),SUBSTITUTE($O119,\"{\",CHAR(160),FG$1)),FIND(CHAR(160),SUBSTITUTE($O119,\"}\",CHAR(160),FG$1))-FIND(CHAR(160),SUBSTITUTE($O119,\"{\",CHAR(160),FG$1))+1),\"\")","v":""},{"$f":"IFERROR(MID($O119,FIND(CHAR(160),SUBSTITUTE($O119,\"{\",CHAR(160),FH$1)),FIND(CHAR(160),SUBSTITUTE($O119,\"}\",CHAR(160),FH$1))-FIND(CHAR(160),SUBSTITUTE($O119,\"{\",CHAR(160),FH$1))+1),\"\")","v":""},{"$f":"IFERROR(MID($O119,FIND(CHAR(160),SUBSTITUTE($O119,\"{\",CHAR(160),FI$1)),FIND(CHAR(160),SUBSTITUTE($O119,\"}\",CHAR(160),FI$1))-FIND(CHAR(160),SUBSTITUTE($O119,\"{\",CHAR(160),FI$1))+1),\"\")","v":""},{"$f":"IFERROR(MID($O119,FIND(CHAR(160),SUBSTITUTE($O119,\"{\",CHAR(160),FJ$1)),FIND(CHAR(160),SUBSTITUTE($O119,\"}\",CHAR(160),FJ$1))-FIND(CHAR(160),SUBSTITUTE($O119,\"{\",CHAR(160),FJ$1))+1),\"\")","v":""},{"$f":"IFERROR(MID($O119,FIND(CHAR(160),SUBSTITUTE($O119,\"{\",CHAR(160),FK$1)),FIND(CHAR(160),SUBSTITUTE($O119,\"}\",CHAR(160),FK$1))-FIND(CHAR(160),SUBSTITUTE($O119,\"{\",CHAR(160),FK$1))+1),\"\")","v":""},{"$f":"IFERROR(MID($O119,FIND(CHAR(160),SUBSTITUTE($O119,\"{\",CHAR(160),FL$1)),FIND(CHAR(160),SUBSTITUTE($O119,\"}\",CHAR(160),FL$1))-FIND(CHAR(160),SUBSTITUTE($O119,\"{\",CHAR(160),FL$1))+1),\"\")","v":""},{"$f":"IFERROR(MID($R119,FIND(CHAR(160),SUBSTITUTE($R119,\"{\",CHAR(160),FM$1)),FIND(CHAR(160),SUBSTITUTE($R119,\"}\",CHAR(160),FM$1))-FIND(CHAR(160),SUBSTITUTE($R119,\"{\",CHAR(160),FM$1))+1),\"\")","v":""},{"$f":"IFERROR(MID($R119,FIND(CHAR(160),SUBSTITUTE($R119,\"{\",CHAR(160),FN$1)),FIND(CHAR(160),SUBSTITUTE($R119,\"}\",CHAR(160),FN$1))-FIND(CHAR(160),SUBSTITUTE($R119,\"{\",CHAR(160),FN$1))+1),\"\")","v":""},{"$f":"IFERROR(MID($R119,FIND(CHAR(160),SUBSTITUTE($R119,\"{\",CHAR(160),FO$1)),FIND(CHAR(160),SUBSTITUTE($R119,\"}\",CHAR(160),FO$1))-FIND(CHAR(160),SUBSTITUTE($R119,\"{\",CHAR(160),FO$1))+1),\"\")","v":""},{"$f":"IFERROR(MID($R119,FIND(CHAR(160),SUBSTITUTE($R119,\"{\",CHAR(160),FP$1)),FIND(CHAR(160),SUBSTITUTE($R119,\"}\",CHAR(160),FP$1))-FIND(CHAR(160),SUBSTITUTE($R119,\"{\",CHAR(160),FP$1))+1),\"\")","v":""},{"$f":"IFERROR(MID($R119,FIND(CHAR(160),SUBSTITUTE($R119,\"{\",CHAR(160),FQ$1)),FIND(CHAR(160),SUBSTITUTE($R119,\"}\",CHAR(160),FQ$1))-FIND(CHAR(160),SUBSTITUTE($R119,\"{\",CHAR(160),FQ$1))+1),\"\")","v":""},{"$f":"IFERROR(MID($R119,FIND(CHAR(160),SUBSTITUTE($R119,\"{\",CHAR(160),FR$1)),FIND(CHAR(160),SUBSTITUTE($R119,\"}\",CHAR(160),FR$1))-FIND(CHAR(160),SUBSTITUTE($R119,\"{\",CHAR(160),FR$1))+1),\"\")","v":""},{"$f":"IFERROR(MID($R119,FIND(CHAR(160),SUBSTITUTE($R119,\"{\",CHAR(160),FS$1)),FIND(CHAR(160),SUBSTITUTE($R119,\"}\",CHAR(160),FS$1))-FIND(CHAR(160),SUBSTITUTE($R119,\"{\",CHAR(160),FS$1))+1),\"\")","v":""},{"$f":"IFERROR(MID($R119,FIND(CHAR(160),SUBSTITUTE($R119,\"{\",CHAR(160),FT$1)),FIND(CHAR(160),SUBSTITUTE($R119,\"}\",CHAR(160),FT$1))-FIND(CHAR(160),SUBSTITUTE($R119,\"{\",CHAR(160),FT$1))+1),\"\")","v":""},{"$f":"IFERROR(MID($R119,FIND(CHAR(160),SUBSTITUTE($R119,\"{\",CHAR(160),FU$1)),FIND(CHAR(160),SUBSTITUTE($R119,\"}\",CHAR(160),FU$1))-FIND(CHAR(160),SUBSTITUTE($R119,\"{\",CHAR(160),FU$1))+1),\"\")","v":""},{"$f":"IFERROR(MID($R119,FIND(CHAR(160),SUBSTITUTE($R119,\"{\",CHAR(160),FV$1)),FIND(CHAR(160),SUBSTITUTE($R119,\"}\",CHAR(160),FV$1))-FIND(CHAR(160),SUBSTITUTE($R119,\"{\",CHAR(160),FV$1))+1),\"\")","v":""},{"$f":"IFERROR(MID($U119,FIND(CHAR(160),SUBSTITUTE($U119,\"{\",CHAR(160),FW$1)),FIND(CHAR(160),SUBSTITUTE($U119,\"}\",CHAR(160),FW$1))-FIND(CHAR(160),SUBSTITUTE($U119,\"{\",CHAR(160),FW$1))+1),\"\")","v":""},{"$f":"IFERROR(MID($U119,FIND(CHAR(160),SUBSTITUTE($U119,\"{\",CHAR(160),FX$1)),FIND(CHAR(160),SUBSTITUTE($U119,\"}\",CHAR(160),FX$1))-FIND(CHAR(160),SUBSTITUTE($U119,\"{\",CHAR(160),FX$1))+1),\"\")","v":""},{"$f":"IFERROR(MID($U119,FIND(CHAR(160),SUBSTITUTE($U119,\"{\",CHAR(160),FY$1)),FIND(CHAR(160),SUBSTITUTE($U119,\"}\",CHAR(160),FY$1))-FIND(CHAR(160),SUBSTITUTE($U119,\"{\",CHAR(160),FY$1))+1),\"\")","v":""},{"$f":"IFERROR(MID($U119,FIND(CHAR(160),SUBSTITUTE($U119,\"{\",CHAR(160),FZ$1)),FIND(CHAR(160),SUBSTITUTE($U119,\"}\",CHAR(160),FZ$1))-FIND(CHAR(160),SUBSTITUTE($U119,\"{\",CHAR(160),FZ$1))+1),\"\")","v":""},{"$f":"IFERROR(MID($U119,FIND(CHAR(160),SUBSTITUTE($U119,\"{\",CHAR(160),GA$1)),FIND(CHAR(160),SUBSTITUTE($U119,\"}\",CHAR(160),GA$1))-FIND(CHAR(160),SUBSTITUTE($U119,\"{\",CHAR(160),GA$1))+1),\"\")","v":""},{"$f":"IFERROR(MID($U119,FIND(CHAR(160),SUBSTITUTE($U119,\"{\",CHAR(160),GB$1)),FIND(CHAR(160),SUBSTITUTE($U119,\"}\",CHAR(160),GB$1))-FIND(CHAR(160),SUBSTITUTE($U119,\"{\",CHAR(160),GB$1))+1),\"\")","v":""},{"$f":"IFERROR(MID($U119,FIND(CHAR(160),SUBSTITUTE($U119,\"{\",CHAR(160),GC$1)),FIND(CHAR(160),SUBSTITUTE($U119,\"}\",CHAR(160),GC$1))-FIND(CHAR(160),SUBSTITUTE($U119,\"{\",CHAR(160),GC$1))+1),\"\")","v":""},{"$f":"IFERROR(MID($U119,FIND(CHAR(160),SUBSTITUTE($U119,\"{\",CHAR(160),GD$1)),FIND(CHAR(160),SUBSTITUTE($U119,\"}\",CHAR(160),GD$1))-FIND(CHAR(160),SUBSTITUTE($U119,\"{\",CHAR(160),GD$1))+1),\"\")","v":""},{"$f":"IFERROR(MID($U119,FIND(CHAR(160),SUBSTITUTE($U119,\"{\",CHAR(160),GE$1)),FIND(CHAR(160),SUBSTITUTE($U119,\"}\",CHAR(160),GE$1))-FIND(CHAR(160),SUBSTITUTE($U119,\"{\",CHAR(160),GE$1))+1),\"\")","v":""},{"$f":"IFERROR(MID($U119,FIND(CHAR(160),SUBSTITUTE($U119,\"{\",CHAR(160),GF$1)),FIND(CHAR(160),SUBSTITUTE($U119,\"}\",CHAR(160),GF$1))-FIND(CHAR(160),SUBSTITUTE($U119,\"{\",CHAR(160),GF$1))+1),\"\")","v":""},{"$f":"IFERROR(MID($V119,FIND(CHAR(160),SUBSTITUTE($V119,\"{\",CHAR(160),GG$1)),FIND(CHAR(160),SUBSTITUTE($V119,\"}\",CHAR(160),GG$1))-FIND(CHAR(160),SUBSTITUTE($V119,\"{\",CHAR(160),GG$1))+1),\"\")","v":""},{"$f":"IFERROR(MID($V119,FIND(CHAR(160),SUBSTITUTE($V119,\"{\",CHAR(160),GH$1)),FIND(CHAR(160),SUBSTITUTE($V119,\"}\",CHAR(160),GH$1))-FIND(CHAR(160),SUBSTITUTE($V119,\"{\",CHAR(160),GH$1))+1),\"\")","v":""},{"$f":"IFERROR(MID($V119,FIND(CHAR(160),SUBSTITUTE($V119,\"{\",CHAR(160),GI$1)),FIND(CHAR(160),SUBSTITUTE($V119,\"}\",CHAR(160),GI$1))-FIND(CHAR(160),SUBSTITUTE($V119,\"{\",CHAR(160),GI$1))+1),\"\")","v":""},{"$f":"IFERROR(MID($V119,FIND(CHAR(160),SUBSTITUTE($V119,\"{\",CHAR(160),GJ$1)),FIND(CHAR(160),SUBSTITUTE($V119,\"}\",CHAR(160),GJ$1))-FIND(CHAR(160),SUBSTITUTE($V119,\"{\",CHAR(160),GJ$1))+1),\"\")","v":""},{"$f":"IFERROR(MID($V119,FIND(CHAR(160),SUBSTITUTE($V119,\"{\",CHAR(160),GK$1)),FIND(CHAR(160),SUBSTITUTE($V119,\"}\",CHAR(160),GK$1))-FIND(CHAR(160),SUBSTITUTE($V119,\"{\",CHAR(160),GK$1))+1),\"\")","v":""},{"$f":"IFERROR(MID($V119,FIND(CHAR(160),SUBSTITUTE($V119,\"{\",CHAR(160),GL$1)),FIND(CHAR(160),SUBSTITUTE($V119,\"}\",CHAR(160),GL$1))-FIND(CHAR(160),SUBSTITUTE($V119,\"{\",CHAR(160),GL$1))+1),\"\")","v":""},{"$f":"IFERROR(MID($V119,FIND(CHAR(160),SUBSTITUTE($V119,\"{\",CHAR(160),GM$1)),FIND(CHAR(160),SUBSTITUTE($V119,\"}\",CHAR(160),GM$1))-FIND(CHAR(160),SUBSTITUTE($V119,\"{\",CHAR(160),GM$1))+1),\"\")","v":""},{"$f":"IFERROR(MID($V119,FIND(CHAR(160),SUBSTITUTE($V119,\"{\",CHAR(160),GN$1)),FIND(CHAR(160),SUBSTITUTE($V119,\"}\",CHAR(160),GN$1))-FIND(CHAR(160),SUBSTITUTE($V119,\"{\",CHAR(160),GN$1))+1),\"\")","v":""},{"$f":"IFERROR(MID($V119,FIND(CHAR(160),SUBSTITUTE($V119,\"{\",CHAR(160),GO$1)),FIND(CHAR(160),SUBSTITUTE($V119,\"}\",CHAR(160),GO$1))-FIND(CHAR(160),SUBSTITUTE($V119,\"{\",CHAR(160),GO$1))+1),\"\")","v":""},{"$f":"IFERROR(MID($V119,FIND(CHAR(160),SUBSTITUTE($V119,\"{\",CHAR(160),GP$1)),FIND(CHAR(160),SUBSTITUTE($V119,\"}\",CHAR(160),GP$1))-FIND(CHAR(160),SUBSTITUTE($V119,\"{\",CHAR(160),GP$1))+1),\"\")","v":""},{"$f":"IFERROR(MID($W119,FIND(CHAR(160),SUBSTITUTE($W119,\"{\",CHAR(160),GQ$1)),FIND(CHAR(160),SUBSTITUTE($W119,\"}\",CHAR(160),GQ$1))-FIND(CHAR(160),SUBSTITUTE($W119,\"{\",CHAR(160),GQ$1))+1),\"\")","v":"{Capacity (MBTUH)}"},{"$f":"IFERROR(MID($W119,FIND(CHAR(160),SUBSTITUTE($W119,\"{\",CHAR(160),GR$1)),FIND(CHAR(160),SUBSTITUTE($W119,\"}\",CHAR(160),GR$1))-FIND(CHAR(160),SUBSTITUTE($W119,\"{\",CHAR(160),GR$1))+1),\"\")","v":"{Flue Gas Temperature Before (oF)}"},{"$f":"IFERROR(MID($W119,FIND(CHAR(160),SUBSTITUTE($W119,\"{\",CHAR(160),GS$1)),FIND(CHAR(160),SUBSTITUTE($W119,\"}\",CHAR(160),GS$1))-FIND(CHAR(160),SUBSTITUTE($W119,\"{\",CHAR(160),GS$1))+1),\"\")","v":"{Flue Gas Temperature After (oF)}"},{"$f":"IFERROR(MID($W119,FIND(CHAR(160),SUBSTITUTE($W119,\"{\",CHAR(160),GT$1)),FIND(CHAR(160),SUBSTITUTE($W119,\"}\",CHAR(160),GT$1))-FIND(CHAR(160),SUBSTITUTE($W119,\"{\",CHAR(160),GT$1))+1),\"\")","v":""},{"$f":"IFERROR(MID($W119,FIND(CHAR(160),SUBSTITUTE($W119,\"{\",CHAR(160),GU$1)),FIND(CHAR(160),SUBSTITUTE($W119,\"}\",CHAR(160),GU$1))-FIND(CHAR(160),SUBSTITUTE($W119,\"{\",CHAR(160),GU$1))+1),\"\")","v":""},{"$f":"IFERROR(MID($W119,FIND(CHAR(160),SUBSTITUTE($W119,\"{\",CHAR(160),GV$1)),FIND(CHAR(160),SUBSTITUTE($W119,\"}\",CHAR(160),GV$1))-FIND(CHAR(160),SUBSTITUTE($W119,\"{\",CHAR(160),GV$1))+1),\"\")","v":""},{"$f":"IFERROR(MID($W119,FIND(CHAR(160),SUBSTITUTE($W119,\"{\",CHAR(160),GW$1)),FIND(CHAR(160),SUBSTITUTE($W119,\"}\",CHAR(160),GW$1))-FIND(CHAR(160),SUBSTITUTE($W119,\"{\",CHAR(160),GW$1))+1),\"\")","v":""},{"$f":"IFERROR(MID($W119,FIND(CHAR(160),SUBSTITUTE($W119,\"{\",CHAR(160),GX$1)),FIND(CHAR(160),SUBSTITUTE($W119,\"}\",CHAR(160),GX$1))-FIND(CHAR(160),SUBSTITUTE($W119,\"{\",CHAR(160),GX$1))+1),\"\")","v":""},{"$f":"IFERROR(MID($W119,FIND(CHAR(160),SUBSTITUTE($W119,\"{\",CHAR(160),GY$1)),FIND(CHAR(160),SUBSTITUTE($W119,\"}\",CHAR(160),GY$1))-FIND(CHAR(160),SUBSTITUTE($W119,\"{\",CHAR(160),GY$1))+1),\"\")","v":"{Existing Fuel}"},{"$f":"IFERROR(MID($W119,FIND(CHAR(160),SUBSTITUTE($W119,\"{\",CHAR(160),GZ$1)),FIND(CHAR(160),SUBSTITUTE($W119,\"}\",CHAR(160),GZ$1))-FIND(CHAR(160),SUBSTITUTE($W119,\"{\",CHAR(160),GZ$1))+1),\"\")","v":"{Measure:Quantity}"},{"$f":"IFERROR(MID($X119,FIND(CHAR(160),SUBSTITUTE($X119,\"{\",CHAR(160),HA$1)),FIND(CHAR(160),SUBSTITUTE($X119,\"}\",CHAR(160),HA$1))-FIND(CHAR(160),SUBSTITUTE($X119,\"{\",CHAR(160),HA$1))+1),\"\")","v":"{Capacity (MBTUH)}"},{"$f":"IFERROR(MID($X119,FIND(CHAR(160),SUBSTITUTE($X119,\"{\",CHAR(160),HB$1)),FIND(CHAR(160),SUBSTITUTE($X119,\"}\",CHAR(160),HB$1))-FIND(CHAR(160),SUBSTITUTE($X119,\"{\",CHAR(160),HB$1))+1),\"\")","v":"{Flue Gas Temperature Before (oF)}"},{"$f":"IFERROR(MID($X119,FIND(CHAR(160),SUBSTITUTE($X119,\"{\",CHAR(160),HC$1)),FIND(CHAR(160),SUBSTITUTE($X119,\"}\",CHAR(160),HC$1))-FIND(CHAR(160),SUBSTITUTE($X119,\"{\",CHAR(160),HC$1))+1),\"\")","v":"{Flue Gas Temperature After (oF)}"},{"$f":"IFERROR(MID($X119,FIND(CHAR(160),SUBSTITUTE($X119,\"{\",CHAR(160),HD$1)),FIND(CHAR(160),SUBSTITUTE($X119,\"}\",CHAR(160),HD$1))-FIND(CHAR(160),SUBSTITUTE($X119,\"{\",CHAR(160),HD$1))+1),\"\")","v":""},{"$f":"IFERROR(MID($X119,FIND(CHAR(160),SUBSTITUTE($X119,\"{\",CHAR(160),HE$1)),FIND(CHAR(160),SUBSTITUTE($X119,\"}\",CHAR(160),HE$1))-FIND(CHAR(160),SUBSTITUTE($X119,\"{\",CHAR(160),HE$1))+1),\"\")","v":""},{"$f":"IFERROR(MID($X119,FIND(CHAR(160),SUBSTITUTE($X119,\"{\",CHAR(160),HF$1)),FIND(CHAR(160),SUBSTITUTE($X119,\"}\",CHAR(160),HF$1))-FIND(CHAR(160),SUBSTITUTE($X119,\"{\",CHAR(160),HF$1))+1),\"\")","v":""},{"$f":"IFERROR(MID($X119,FIND(CHAR(160),SUBSTITUTE($X119,\"{\",CHAR(160),HG$1)),FIND(CHAR(160),SUBSTITUTE($X119,\"}\",CHAR(160),HG$1))-FIND(CHAR(160),SUBSTITUTE($X119,\"{\",CHAR(160),HG$1))+1),\"\")","v":""},{"$f":"IFERROR(MID($X119,FIND(CHAR(160),SUBSTITUTE($X119,\"{\",CHAR(160),HH$1)),FIND(CHAR(160),SUBSTITUTE($X119,\"}\",CHAR(160),HH$1))-FIND(CHAR(160),SUBSTITUTE($X119,\"{\",CHAR(160),HH$1))+1),\"\")","v":""},{"$f":"IFERROR(MID($X119,FIND(CHAR(160),SUBSTITUTE($X119,\"{\",CHAR(160),HI$1)),FIND(CHAR(160),SUBSTITUTE($X119,\"}\",CHAR(160),HI$1))-FIND(CHAR(160),SUBSTITUTE($X119,\"{\",CHAR(160),HI$1))+1),\"\")","v":"{Existing Fuel}"},{"$f":"IFERROR(MID($X119,FIND(CHAR(160),SUBSTITUTE($X119,\"{\",CHAR(160),HJ$1)),FIND(CHAR(160),SUBSTITUTE($X119,\"}\",CHAR(160),HJ$1))-FIND(CHAR(160),SUBSTITUTE($X119,\"{\",CHAR(160),HJ$1))+1),\"\")","v":"{Measure:Quantity}"},{"$f":"IFERROR(MID($Y119,FIND(CHAR(160),SUBSTITUTE($Y119,\"{\",CHAR(160),HK$1)),FIND(CHAR(160),SUBSTITUTE($Y119,\"}\",CHAR(160),HK$1))-FIND(CHAR(160),SUBSTITUTE($Y119,\"{\",CHAR(160),HK$1))+1),\"\")","v":""},{"$f":"IFERROR(MID($Y119,FIND(CHAR(160),SUBSTITUTE($Y119,\"{\",CHAR(160),HL$1)),FIND(CHAR(160),SUBSTITUTE($Y119,\"}\",CHAR(160),HL$1))-FIND(CHAR(160),SUBSTITUTE($Y119,\"{\",CHAR(160),HL$1))+1),\"\")","v":""},{"$f":"IFERROR(MID($Y119,FIND(CHAR(160),SUBSTITUTE($Y119,\"{\",CHAR(160),HM$1)),FIND(CHAR(160),SUBSTITUTE($Y119,\"}\",CHAR(160),HM$1))-FIND(CHAR(160),SUBSTITUTE($Y119,\"{\",CHAR(160),HM$1))+1),\"\")","v":""},{"$f":"IFERROR(MID($Y119,FIND(CHAR(160),SUBSTITUTE($Y119,\"{\",CHAR(160),HN$1)),FIND(CHAR(160),SUBSTITUTE($Y119,\"}\",CHAR(160),HN$1))-FIND(CHAR(160),SUBSTITUTE($Y119,\"{\",CHAR(160),HN$1))+1),\"\")","v":""},{"$f":"IFERROR(MID($Y119,FIND(CHAR(160),SUBSTITUTE($Y119,\"{\",CHAR(160),HO$1)),FIND(CHAR(160),SUBSTITUTE($Y119,\"}\",CHAR(160),HO$1))-FIND(CHAR(160),SUBSTITUTE($Y119,\"{\",CHAR(160),HO$1))+1),\"\")","v":""},{"$f":"IFERROR(MID($Y119,FIND(CHAR(160),SUBSTITUTE($Y119,\"{\",CHAR(160),HP$1)),FIND(CHAR(160),SUBSTITUTE($Y119,\"}\",CHAR(160),HP$1))-FIND(CHAR(160),SUBSTITUTE($Y119,\"{\",CHAR(160),HP$1))+1),\"\")","v":""},{"$f":"IFERROR(MID($Y119,FIND(CHAR(160),SUBSTITUTE($Y119,\"{\",CHAR(160),HQ$1)),FIND(CHAR(160),SUBSTITUTE($Y119,\"}\",CHAR(160),HQ$1))-FIND(CHAR(160),SUBSTITUTE($Y119,\"{\",CHAR(160),HQ$1))+1),\"\")","v":""},{"$f":"IFERROR(MID($Y119,FIND(CHAR(160),SUBSTITUTE($Y119,\"{\",CHAR(160),HR$1)),FIND(CHAR(160),SUBSTITUTE($Y119,\"}\",CHAR(160),HR$1))-FIND(CHAR(160),SUBSTITUTE($Y119,\"{\",CHAR(160),HR$1))+1),\"\")","v":""},{"$f":"IFERROR(MID($Y119,FIND(CHAR(160),SUBSTITUTE($Y119,\"{\",CHAR(160),HS$1)),FIND(CHAR(160),SUBSTITUTE($Y119,\"}\",CHAR(160),HS$1))-FIND(CHAR(160),SUBSTITUTE($Y119,\"{\",CHAR(160),HS$1))+1),\"\")","v":""},{"$f":"IFERROR(MID($Y119,FIND(CHAR(160),SUBSTITUTE($Y119,\"{\",CHAR(160),HT$1)),FIND(CHAR(160),SUBSTITUTE($Y119,\"}\",CHAR(160),HT$1))-FIND(CHAR(160),SUBSTITUTE($Y119,\"{\",CHAR(160),HT$1))+1),\"\")","v":""},{"$f":"IFERROR(MID($Z119,FIND(CHAR(160),SUBSTITUTE($Z119,\"{\",CHAR(160),HU$1)),FIND(CHAR(160),SUBSTITUTE($Z119,\"}\",CHAR(160),HU$1))-FIND(CHAR(160),SUBSTITUTE($Z119,\"{\",CHAR(160),HU$1))+1),\"\")","v":""},{"$f":"IFERROR(MID($Z119,FIND(CHAR(160),SUBSTITUTE($Z119,\"{\",CHAR(160),HV$1)),FIND(CHAR(160),SUBSTITUTE($Z119,\"}\",CHAR(160),HV$1))-FIND(CHAR(160),SUBSTITUTE($Z119,\"{\",CHAR(160),HV$1))+1),\"\")","v":""},{"$f":"IFERROR(MID($Z119,FIND(CHAR(160),SUBSTITUTE($Z119,\"{\",CHAR(160),HW$1)),FIND(CHAR(160),SUBSTITUTE($Z119,\"}\",CHAR(160),HW$1))-FIND(CHAR(160),SUBSTITUTE($Z119,\"{\",CHAR(160),HW$1))+1),\"\")","v":""},{"$f":"IFERROR(MID($Z119,FIND(CHAR(160),SUBSTITUTE($Z119,\"{\",CHAR(160),HX$1)),FIND(CHAR(160),SUBSTITUTE($Z119,\"}\",CHAR(160),HX$1))-FIND(CHAR(160),SUBSTITUTE($Z119,\"{\",CHAR(160),HX$1))+1),\"\")","v":""},{"$f":"IFERROR(MID($Z119,FIND(CHAR(160),SUBSTITUTE($Z119,\"{\",CHAR(160),HY$1)),FIND(CHAR(160),SUBSTITUTE($Z119,\"}\",CHAR(160),HY$1))-FIND(CHAR(160),SUBSTITUTE($Z119,\"{\",CHAR(160),HY$1))+1),\"\")","v":""},{"$f":"IFERROR(MID($Z119,FIND(CHAR(160),SUBSTITUTE($Z119,\"{\",CHAR(160),HZ$1)),FIND(CHAR(160),SUBSTITUTE($Z119,\"}\",CHAR(160),HZ$1))-FIND(CHAR(160),SUBSTITUTE($Z119,\"{\",CHAR(160),HZ$1))+1),\"\")","v":""},{"$f":"IFERROR(MID($Z119,FIND(CHAR(160),SUBSTITUTE($Z119,\"{\",CHAR(160),IA$1)),FIND(CHAR(160),SUBSTITUTE($Z119,\"}\",CHAR(160),IA$1))-FIND(CHAR(160),SUBSTITUTE($Z119,\"{\",CHAR(160),IA$1))+1),\"\")","v":""},{"$f":"IFERROR(MID($Z119,FIND(CHAR(160),SUBSTITUTE($Z119,\"{\",CHAR(160),IB$1)),FIND(CHAR(160),SUBSTITUTE($Z119,\"}\",CHAR(160),IB$1))-FIND(CHAR(160),SUBSTITUTE($Z119,\"{\",CHAR(160),IB$1))+1),\"\")","v":""},{"$f":"IFERROR(MID($Z119,FIND(CHAR(160),SUBSTITUTE($Z119,\"{\",CHAR(160),IC$1)),FIND(CHAR(160),SUBSTITUTE($Z119,\"}\",CHAR(160),IC$1))-FIND(CHAR(160),SUBSTITUTE($Z119,\"{\",CHAR(160),IC$1))+1),\"\")","v":""},{"$f":"IFERROR(MID($Z119,FIND(CHAR(160),SUBSTITUTE($Z119,\"{\",CHAR(160),ID$1)),FIND(CHAR(160),SUBSTITUTE($Z119,\"}\",CHAR(160),ID$1))-FIND(CHAR(160),SUBSTITUTE($Z119,\"{\",CHAR(160),ID$1))+1),\"\")","v":""},{"$f":"IFERROR(MID($AA119,FIND(CHAR(160),SUBSTITUTE($AA119,\"{\",CHAR(160),IE$1)),FIND(CHAR(160),SUBSTITUTE($AA119,\"}\",CHAR(160),IE$1))-FIND(CHAR(160),SUBSTITUTE($AA119,\"{\",CHAR(160),IE$1))+1),\"\")","v":""},{"$f":"IFERROR(MID($AA119,FIND(CHAR(160),SUBSTITUTE($AA119,\"{\",CHAR(160),IF$1)),FIND(CHAR(160),SUBSTITUTE($AA119,\"}\",CHAR(160),IF$1))-FIND(CHAR(160),SUBSTITUTE($AA119,\"{\",CHAR(160),IF$1))+1),\"\")","v":""},{"$f":"IFERROR(MID($AA119,FIND(CHAR(160),SUBSTITUTE($AA119,\"{\",CHAR(160),IG$1)),FIND(CHAR(160),SUBSTITUTE($AA119,\"}\",CHAR(160),IG$1))-FIND(CHAR(160),SUBSTITUTE($AA119,\"{\",CHAR(160),IG$1))+1),\"\")","v":""},{"$f":"IFERROR(MID($AA119,FIND(CHAR(160),SUBSTITUTE($AA119,\"{\",CHAR(160),IH$1)),FIND(CHAR(160),SUBSTITUTE($AA119,\"}\",CHAR(160),IH$1))-FIND(CHAR(160),SUBSTITUTE($AA119,\"{\",CHAR(160),IH$1))+1),\"\")","v":""},{"$f":"IFERROR(MID($AA119,FIND(CHAR(160),SUBSTITUTE($AA119,\"{\",CHAR(160),II$1)),FIND(CHAR(160),SUBSTITUTE($AA119,\"}\",CHAR(160),II$1))-FIND(CHAR(160),SUBSTITUTE($AA119,\"{\",CHAR(160),II$1))+1),\"\")","v":""},{"$f":"IFERROR(MID($AA119,FIND(CHAR(160),SUBSTITUTE($AA119,\"{\",CHAR(160),IJ$1)),FIND(CHAR(160),SUBSTITUTE($AA119,\"}\",CHAR(160),IJ$1))-FIND(CHAR(160),SUBSTITUTE($AA119,\"{\",CHAR(160),IJ$1))+1),\"\")","v":""},{"$f":"IFERROR(MID($AA119,FIND(CHAR(160),SUBSTITUTE($AA119,\"{\",CHAR(160),IK$1)),FIND(CHAR(160),SUBSTITUTE($AA119,\"}\",CHAR(160),IK$1))-FIND(CHAR(160),SUBSTITUTE($AA119,\"{\",CHAR(160),IK$1))+1),\"\")","v":""},{"$f":"IFERROR(MID($AA119,FIND(CHAR(160),SUBSTITUTE($AA119,\"{\",CHAR(160),IL$1)),FIND(CHAR(160),SUBSTITUTE($AA119,\"}\",CHAR(160),IL$1))-FIND(CHAR(160),SUBSTITUTE($AA119,\"{\",CHAR(160),IL$1))+1),\"\")","v":""},{"$f":"IFERROR(MID($AA119,FIND(CHAR(160),SUBSTITUTE($AA119,\"{\",CHAR(160),IM$1)),FIND(CHAR(160),SUBSTITUTE($AA119,\"}\",CHAR(160),IM$1))-FIND(CHAR(160),SUBSTITUTE($AA119,\"{\",CHAR(160),IM$1))+1),\"\")","v":""},{"$f":"IFERROR(MID($AA119,FIND(CHAR(160),SUBSTITUTE($AA119,\"{\",CHAR(160),IN$1)),FIND(CHAR(160),SUBSTITUTE($AA119,\"}\",CHAR(160),IN$1))-FIND(CHAR(160),SUBSTITUTE($AA119,\"{\",CHAR(160),IN$1))+1),\"\")","v":""},{"$f":"IFERROR(MID($AB119,FIND(CHAR(160),SUBSTITUTE($AB119,\"{\",CHAR(160),IO$1)),FIND(CHAR(160),SUBSTITUTE($AB119,\"}\",CHAR(160),IO$1))-FIND(CHAR(160),SUBSTITUTE($AB119,\"{\",CHAR(160),IO$1))+1),\"\")","v":""},{"$f":"IFERROR(MID($AB119,FIND(CHAR(160),SUBSTITUTE($AB119,\"{\",CHAR(160),IP$1)),FIND(CHAR(160),SUBSTITUTE($AB119,\"}\",CHAR(160),IP$1))-FIND(CHAR(160),SUBSTITUTE($AB119,\"{\",CHAR(160),IP$1))+1),\"\")","v":""},{"$f":"IFERROR(MID($AB119,FIND(CHAR(160),SUBSTITUTE($AB119,\"{\",CHAR(160),IQ$1)),FIND(CHAR(160),SUBSTITUTE($AB119,\"}\",CHAR(160),IQ$1))-FIND(CHAR(160),SUBSTITUTE($AB119,\"{\",CHAR(160),IQ$1))+1),\"\")","v":""},{"$f":"IFERROR(MID($AB119,FIND(CHAR(160),SUBSTITUTE($AB119,\"{\",CHAR(160),IR$1)),FIND(CHAR(160),SUBSTITUTE($AB119,\"}\",CHAR(160),IR$1))-FIND(CHAR(160),SUBSTITUTE($AB119,\"{\",CHAR(160),IR$1))+1),\"\")","v":""},{"$f":"IFERROR(MID($AB119,FIND(CHAR(160),SUBSTITUTE($AB119,\"{\",CHAR(160),IS$1)),FIND(CHAR(160),SUBSTITUTE($AB119,\"}\",CHAR(160),IS$1))-FIND(CHAR(160),SUBSTITUTE($AB119,\"{\",CHAR(160),IS$1))+1),\"\")","v":""},{"$f":"IFERROR(MID($AB119,FIND(CHAR(160),SUBSTITUTE($AB119,\"{\",CHAR(160),IT$1)),FIND(CHAR(160),SUBSTITUTE($AB119,\"}\",CHAR(160),IT$1))-FIND(CHAR(160),SUBSTITUTE($AB119,\"{\",CHAR(160),IT$1))+1),\"\")","v":""},{"$f":"IFERROR(MID($AB119,FIND(CHAR(160),SUBSTITUTE($AB119,\"{\",CHAR(160),IU$1)),FIND(CHAR(160),SUBSTITUTE($AB119,\"}\",CHAR(160),IU$1))-FIND(CHAR(160),SUBSTITUTE($AB119,\"{\",CHAR(160),IU$1))+1),\"\")","v":""},{"$f":"IFERROR(MID($AB119,FIND(CHAR(160),SUBSTITUTE($AB119,\"{\",CHAR(160),IV$1)),FIND(CHAR(160),SUBSTITUTE($AB119,\"}\",CHAR(160),IV$1))-FIND(CHAR(160),SUBSTITUTE($AB119,\"{\",CHAR(160),IV$1))+1),\"\")","v":""},{"$f":"IFERROR(MID($AB119,FIND(CHAR(160),SUBSTITUTE($AB119,\"{\",CHAR(160),IW$1)),FIND(CHAR(160),SUBSTITUTE($AB119,\"}\",CHAR(160),IW$1))-FIND(CHAR(160),SUBSTITUTE($AB119,\"{\",CHAR(160),IW$1))+1),\"\")","v":""},{"$f":"IFERROR(MID($AB119,FIND(CHAR(160),SUBSTITUTE($AB119,\"{\",CHAR(160),IX$1)),FIND(CHAR(160),SUBSTITUTE($AB119,\"}\",CHAR(160),IX$1))-FIND(CHAR(160),SUBSTITUTE($AB119,\"{\",CHAR(160),IX$1))+1),\"\")","v":""},null,{"$f":"10-COUNTIF(DU119:ED119,\"\")","v":5}]
["C&I Prescriptive Compressed Air Solutions","Receiver - C27 - Standard Receiver Size 1060 Gallons","R - C27","2021-07-01","2022-06-30","Per Measure",7492,0,"Per Measure",3500,0,"2017-07-01","2022-06-30","Calculated","{Measure:Quantity} *{System Compressor (HP)} * 0.746 * 0.025 * {Weekly Hrs of Operation} * {Weeks Per Year}",1E-4,null,"{Measure:Quantity} *{System Compressor (HP)} * 0.746 * 0.025",null,null,"{Measure:Quantity} *{System Compressor (HP)} * 0.746 * 0.025 * {Factor:WinterCF}","{Measure:Quantity} *{System Compressor (HP)} * 0.746 * 0.025 * {Factor:SummerCF}",null,null,null,null,null,null,"2017-07-01","2022-06-30",10,0.7,0.91100000000000003,0.30399999999999999,0.36099999999999999,0.156,0.17899999999999999,1,1.1220000000000001,1,0.52,1.6E-2,null,{"$f":"DU120","v":"{Weekly Hrs of Operation}"},1,{"$f":"DV120","v":"{Weeks Per Year}"},50,{"$f":"DW120","v":"{Measure:Quantity}"},50,{"$f":"DX120","v":"{System Compressor (HP)}"},50,{"$f":"DY120","v":""},null,{"$f":"DZ120","v":""},null,{"$f":"EA120","v":""},null,{"$f":"EB120","v":""},null,{"$f":"EC120","v":""},null,{"$f":"ED120","v":""},null,{"$f":"AS120 *AU120 * 0.746 * 0.025 * AW120 * AY120","v":2331.25},{"$f":"0.0001","v":1E-4},0,{"$f":"AS120 *AU120 * 0.746 * 0.025","v":0.9325},0,0,{"$f":"AS120 *AU120 * 0.746 * 0.025 * AF120","v":0.65274999999999994},{"$f":"AS120 *AU120 * 0.746 * 0.025 * AG120","v":0.84950749999999997},0,0,0,0,0,0,null,"Res","Default DR",{"$f":"Benefits(BL120,BR120,BS120,BT120,BU120,BV120,BW120,BX120,BY120,BZ120,AE120,AH120,AI120,AJ120,AK120,AL120,AM120,AN120,AO120,AP120,CA120,CB120)","v":2589.7902045817236},2874.2802056131677,0,0,0,0,0,0,0,{"$f":"SUMPRODUCT(CC120:CK120,--(CC120:CK120>0))","v":5464.0704101948913},{"$f":"-SUMPRODUCT(CC120:CK120,--(CC120:CK120<0))","v":0},null,{"$f":"7492","v":7492},null,null,{"$f":"CM120+CO120","v":7492},{"$f":"IF(NetOrGross=\"Net\",(1-AO120+AP120),1)","v":1},{"$f":"(SUMPRODUCT(CC120:CJ120,--(CC120:CJ120>0))+CN120)*CS120/((-SUMPRODUCT(CC120:CJ120,--(CC120:CJ120<0))+MAX(CO120,CV120)+CP120+CQ120)*CS120+IF(FRIncentives=\"Yes\",CV120*(1-CS120),0))","v":0.72932066340027912},1,{"$f":"3500","v":3500},null,"Electric","y",null,{"$f":"IF(F120=\"Manual Entry\",\"Manual\",IF(G120=\"\",0,\"X=\"&SUBSTITUTE(SUBSTITUTE(SUBSTITUTE(SUBSTITUTE(SUBSTITUTE(SUBSTITUTE(SUBSTITUTE(SUBSTITUTE(SUBSTITUTE(SUBSTITUTE(SUBSTITUTE(SUBSTITUTE(G120,$ED120,$ED$2&ROW($ED120)),$EC120,$EC$2&ROW($EC120)),$EB120,$EB$2&ROW($EB120)),$EA120,$EA$2&ROW($EA120)),$DZ120,$DZ$2&ROW($DZ120)),$DY120,$DY$2&ROW($DY120)),$DX120,$DX$2&ROW($DX120)),$DW120,$DW$2&ROW($DW120)),$DV120,$DV$2&ROW($DV120)),$DU120,$DU$2&ROW($DU120)),$DT120,$DT$2&ROW($DT120)),$DS120,$DS$2&ROW($DS120))))","v":"X=7492"},{"$f":"IF(I120=\"Manual Entry\",\"Manual\",IF(J120=\"\",0,\"X=\"&SUBSTITUTE(SUBSTITUTE(SUBSTITUTE(SUBSTITUTE(SUBSTITUTE(SUBSTITUTE(SUBSTITUTE(SUBSTITUTE(SUBSTITUTE(SUBSTITUTE(SUBSTITUTE(SUBSTITUTE(J120,$ED120,$ED$2&ROW($ED120)),$EC120,$EC$2&ROW($EC120)),$EB120,$EB$2&ROW($EB120)),$EA120,$EA$2&ROW($EA120)),$DZ120,$DZ$2&ROW($DZ120)),$DY120,$DY$2&ROW($DY120)),$DX120,$DX$2&ROW($DX120)),$DW120,$DW$2&ROW($DW120)),$DV120,$DV$2&ROW($DV120)),$DU120,$DU$2&ROW($DU120)),$DT120,$DT$2&ROW($DT120)),$DS120,$DS$2&ROW($DS120))))","v":"X=3500"},{"$f":"IF(O120=\"\",0,\"X=\"&SUBSTITUTE(SUBSTITUTE(SUBSTITUTE(SUBSTITUTE(SUBSTITUTE(SUBSTITUTE(SUBSTITUTE(SUBSTITUTE(SUBSTITUTE(SUBSTITUTE(SUBSTITUTE(SUBSTITUTE(O120,$ED120,$ED$2&ROW($ED120)),$EC120,$EC$2&ROW($EC120)),$EB120,$EB$2&ROW($EB120)),$EA120,$EA$2&ROW($EA120)),$DZ120,$DZ$2&ROW($DZ120)),$DY120,$DY$2&ROW($DY120)),$DX120,$DX$2&ROW($DX120)),$DW120,$DW$2&ROW($DW120)),$DV120,$DV$2&ROW($DV120)),$DU120,$DU$2&ROW($DU120)),$DT120,$DT$2&ROW($DT120)),$DS120,$DS$2&ROW($DS120)))","v":"X=AW120 *AY120 * 0.746 * 0.025 * AS120 * AU120"},{"$f":"IF(P120=\"\",0,\"X=\"&SUBSTITUTE(SUBSTITUTE(SUBSTITUTE(SUBSTITUTE(SUBSTITUTE(SUBSTITUTE(SUBSTITUTE(SUBSTITUTE(SUBSTITUTE(SUBSTITUTE(SUBSTITUTE(SUBSTITUTE(P120,$ED120,$ED$2&ROW($ED120)),$EC120,$EC$2&ROW($EC120)),$EB120,$EB$2&ROW($EB120)),$EA120,$EA$2&ROW($EA120)),$DZ120,$DZ$2&ROW($DZ120)),$DY120,$DY$2&ROW($DY120)),$DX120,$DX$2&ROW($DX120)),$DW120,$DW$2&ROW($DW120)),$DV120,$DV$2&ROW($DV120)),$DU120,$DU$2&ROW($DU120)),$DT120,$DT$2&ROW($DT120)),$DS120,$DS$2&ROW($DS120)))","v":"X=0.0001"},{"$f":"IF(Q120=\"\",0,\"X=\"&SUBSTITUTE(SUBSTITUTE(SUBSTITUTE(SUBSTITUTE(SUBSTITUTE(SUBSTITUTE(SUBSTITUTE(SUBSTITUTE(SUBSTITUTE(SUBSTITUTE(SUBSTITUTE(SUBSTITUTE(Q120,$ED120,$ED$2&ROW($ED120)),$EC120,$EC$2&ROW($EC120)),$EB120,$EB$2&ROW($EB120)),$EA120,$EA$2&ROW($EA120)),$DZ120,$DZ$2&ROW($DZ120)),$DY120,$DY$2&ROW($DY120)),$DX120,$DX$2&ROW($DX120)),$DW120,$DW$2&ROW($DW120)),$DV120,$DV$2&ROW($DV120)),$DU120,$DU$2&ROW($DU120)),$DT120,$DT$2&ROW($DT120)),$DS120,$DS$2&ROW($DS120)))","v":0},{"$f":"IF(R120=\"\",0,\"X=\"&SUBSTITUTE(SUBSTITUTE(SUBSTITUTE(SUBSTITUTE(SUBSTITUTE(SUBSTITUTE(SUBSTITUTE(SUBSTITUTE(SUBSTITUTE(SUBSTITUTE(SUBSTITUTE(SUBSTITUTE(R120,$ED120,$ED$2&ROW($ED120)),$EC120,$EC$2&ROW($EC120)),$EB120,$EB$2&ROW($EB120)),$EA120,$EA$2&ROW($EA120)),$DZ120,$DZ$2&ROW($DZ120)),$DY120,$DY$2&ROW($DY120)),$DX120,$DX$2&ROW($DX120)),$DW120,$DW$2&ROW($DW120)),$DV120,$DV$2&ROW($DV120)),$DU120,$DU$2&ROW($DU120)),$DT120,$DT$2&ROW($DT120)),$DS120,$DS$2&ROW($DS120)))","v":"X=AW120 *AY120 * 0.746 * 0.025"},{"$f":"IF(S120=\"\",0,\"X=\"&SUBSTITUTE(SUBSTITUTE(SUBSTITUTE(SUBSTITUTE(SUBSTITUTE(SUBSTITUTE(SUBSTITUTE(SUBSTITUTE(SUBSTITUTE(SUBSTITUTE(SUBSTITUTE(SUBSTITUTE(S120,$ED120,$ED$2&ROW($ED120)),$EC120,$EC$2&ROW($EC120)),$EB120,$EB$2&ROW($EB120)),$EA120,$EA$2&ROW($EA120)),$DZ120,$DZ$2&ROW($DZ120)),$DY120,$DY$2&ROW($DY120)),$DX120,$DX$2&ROW($DX120)),$DW120,$DW$2&ROW($DW120)),$DV120,$DV$2&ROW($DV120)),$DU120,$DU$2&ROW($DU120)),$DT120,$DT$2&ROW($DT120)),$DS120,$DS$2&ROW($DS120)))","v":0},{"$f":"IF(T120=\"\",0,\"X=\"&SUBSTITUTE(SUBSTITUTE(SUBSTITUTE(SUBSTITUTE(SUBSTITUTE(SUBSTITUTE(SUBSTITUTE(SUBSTITUTE(SUBSTITUTE(SUBSTITUTE(SUBSTITUTE(SUBSTITUTE(T120,$ED120,$ED$2&ROW($ED120)),$EC120,$EC$2&ROW($EC120)),$EB120,$EB$2&ROW($EB120)),$EA120,$EA$2&ROW($EA120)),$DZ120,$DZ$2&ROW($DZ120)),$DY120,$DY$2&ROW($DY120)),$DX120,$DX$2&ROW($DX120)),$DW120,$DW$2&ROW($DW120)),$DV120,$DV$2&ROW($DV120)),$DU120,$DU$2&ROW($DU120)),$DT120,$DT$2&ROW($DT120)),$DS120,$DS$2&ROW($DS120)))","v":0},{"$f":"IF(U120=\"\",0,\"X=\"&SUBSTITUTE(SUBSTITUTE(SUBSTITUTE(SUBSTITUTE(SUBSTITUTE(SUBSTITUTE(SUBSTITUTE(SUBSTITUTE(SUBSTITUTE(SUBSTITUTE(SUBSTITUTE(SUBSTITUTE(U120,$ED120,$ED$2&ROW($ED120)),$EC120,$EC$2&ROW($EC120)),$EB120,$EB$2&ROW($EB120)),$EA120,$EA$2&ROW($EA120)),$DZ120,$DZ$2&ROW($DZ120)),$DY120,$DY$2&ROW($DY120)),$DX120,$DX$2&ROW($DX120)),$DW120,$DW$2&ROW($DW120)),$DV120,$DV$2&ROW($DV120)),$DU120,$DU$2&ROW($DU120)),$DT120,$DT$2&ROW($DT120)),$DS120,$DS$2&ROW($DS120)))","v":"X=AW120 *AY120 * 0.746 * 0.025 * AF120"},{"$f":"IF(V120=\"\",0,\"X=\"&SUBSTITUTE(SUBSTITUTE(SUBSTITUTE(SUBSTITUTE(SUBSTITUTE(SUBSTITUTE(SUBSTITUTE(SUBSTITUTE(SUBSTITUTE(SUBSTITUTE(SUBSTITUTE(SUBSTITUTE(V120,$ED120,$ED$2&ROW($ED120)),$EC120,$EC$2&ROW($EC120)),$EB120,$EB$2&ROW($EB120)),$EA120,$EA$2&ROW($EA120)),$DZ120,$DZ$2&ROW($DZ120)),$DY120,$DY$2&ROW($DY120)),$DX120,$DX$2&ROW($DX120)),$DW120,$DW$2&ROW($DW120)),$DV120,$DV$2&ROW($DV120)),$DU120,$DU$2&ROW($DU120)),$DT120,$DT$2&ROW($DT120)),$DS120,$DS$2&ROW($DS120)))","v":"X=AW120 *AY120 * 0.746 * 0.025 * AG120"},{"$f":"IF(W120=\"\",0,\"X=\"&SUBSTITUTE(SUBSTITUTE(SUBSTITUTE(SUBSTITUTE(SUBSTITUTE(SUBSTITUTE(SUBSTITUTE(SUBSTITUTE(SUBSTITUTE(SUBSTITUTE(SUBSTITUTE(SUBSTITUTE(W120,$ED120,$ED$2&ROW($ED120)),$EC120,$EC$2&ROW($EC120)),$EB120,$EB$2&ROW($EB120)),$EA120,$EA$2&ROW($EA120)),$DZ120,$DZ$2&ROW($DZ120)),$DY120,$DY$2&ROW($DY120)),$DX120,$DX$2&ROW($DX120)),$DW120,$DW$2&ROW($DW120)),$DV120,$DV$2&ROW($DV120)),$DU120,$DU$2&ROW($DU120)),$DT120,$DT$2&ROW($DT120)),$DS120,$DS$2&ROW($DS120)))","v":0},{"$f":"IF(X120=\"\",0,\"X=\"&SUBSTITUTE(SUBSTITUTE(SUBSTITUTE(SUBSTITUTE(SUBSTITUTE(SUBSTITUTE(SUBSTITUTE(SUBSTITUTE(SUBSTITUTE(SUBSTITUTE(SUBSTITUTE(SUBSTITUTE(X120,$ED120,$ED$2&ROW($ED120)),$EC120,$EC$2&ROW($EC120)),$EB120,$EB$2&ROW($EB120)),$EA120,$EA$2&ROW($EA120)),$DZ120,$DZ$2&ROW($DZ120)),$DY120,$DY$2&ROW($DY120)),$DX120,$DX$2&ROW($DX120)),$DW120,$DW$2&ROW($DW120)),$DV120,$DV$2&ROW($DV120)),$DU120,$DU$2&ROW($DU120)),$DT120,$DT$2&ROW($DT120)),$DS120,$DS$2&ROW($DS120)))","v":0},{"$f":"IF(Y120=\"\",0,\"X=\"&SUBSTITUTE(SUBSTITUTE(SUBSTITUTE(SUBSTITUTE(SUBSTITUTE(SUBSTITUTE(SUBSTITUTE(SUBSTITUTE(SUBSTITUTE(SUBSTITUTE(SUBSTITUTE(SUBSTITUTE(Y120,$ED120,$ED$2&ROW($ED120)),$EC120,$EC$2&ROW($EC120)),$EB120,$EB$2&ROW($EB120)),$EA120,$EA$2&ROW($EA120)),$DZ120,$DZ$2&ROW($DZ120)),$DY120,$DY$2&ROW($DY120)),$DX120,$DX$2&ROW($DX120)),$DW120,$DW$2&ROW($DW120)),$DV120,$DV$2&ROW($DV120)),$DU120,$DU$2&ROW($DU120)),$DT120,$DT$2&ROW($DT120)),$DS120,$DS$2&ROW($DS120)))","v":0},{"$f":"IF(Z120=\"\",0,\"X=\"&SUBSTITUTE(SUBSTITUTE(SUBSTITUTE(SUBSTITUTE(SUBSTITUTE(SUBSTITUTE(SUBSTITUTE(SUBSTITUTE(SUBSTITUTE(SUBSTITUTE(SUBSTITUTE(SUBSTITUTE(Z120,$ED120,$ED$2&ROW($ED120)),$EC120,$EC$2&ROW($EC120)),$EB120,$EB$2&ROW($EB120)),$EA120,$EA$2&ROW($EA120)),$DZ120,$DZ$2&ROW($DZ120)),$DY120,$DY$2&ROW($DY120)),$DX120,$DX$2&ROW($DX120)),$DW120,$DW$2&ROW($DW120)),$DV120,$DV$2&ROW($DV120)),$DU120,$DU$2&ROW($DU120)),$DT120,$DT$2&ROW($DT120)),$DS120,$DS$2&ROW($DS120)))","v":0},{"$f":"IF(AA120=\"\",0,\"X=\"&SUBSTITUTE(SUBSTITUTE(SUBSTITUTE(SUBSTITUTE(SUBSTITUTE(SUBSTITUTE(SUBSTITUTE(SUBSTITUTE(SUBSTITUTE(SUBSTITUTE(SUBSTITUTE(SUBSTITUTE(AA120,$ED120,$ED$2&ROW($ED120)),$EC120,$EC$2&ROW($EC120)),$EB120,$EB$2&ROW($EB120)),$EA120,$EA$2&ROW($EA120)),$DZ120,$DZ$2&ROW($DZ120)),$DY120,$DY$2&ROW($DY120)),$DX120,$DX$2&ROW($DX120)),$DW120,$DW$2&ROW($DW120)),$DV120,$DV$2&ROW($DV120)),$DU120,$DU$2&ROW($DU120)),$DT120,$DT$2&ROW($DT120)),$DS120,$DS$2&ROW($DS120)))","v":0},{"$f":"IF(AB120=\"\",0,\"X=\"&SUBSTITUTE(SUBSTITUTE(SUBSTITUTE(SUBSTITUTE(SUBSTITUTE(SUBSTITUTE(SUBSTITUTE(SUBSTITUTE(SUBSTITUTE(SUBSTITUTE(SUBSTITUTE(SUBSTITUTE(AB120,$ED120,$ED$2&ROW($ED120)),$EC120,$EC$2&ROW($EC120)),$EB120,$EB$2&ROW($EB120)),$EA120,$EA$2&ROW($EA120)),$DZ120,$DZ$2&ROW($DZ120)),$DY120,$DY$2&ROW($DY120)),$DX120,$DX$2&ROW($DX120)),$DW120,$DW$2&ROW($DW120)),$DV120,$DV$2&ROW($DV120)),$DU120,$DU$2&ROW($DU120)),$DT120,$DT$2&ROW($DT120)),$DS120,$DS$2&ROW($DS120)))","v":0},null,null,"{Factor:WinterCF}","{Factor:SummerCF}",{"$f":"IFERROR(INDEX($EG120:$IV120,MATCH(0,COUNTIF($DR120:DT120,$EG120:$IV120),0)),\"\")","v":"{Weekly Hrs of Operation}"},{"$f":"IFERROR(INDEX($EG120:$IV120,MATCH(0,COUNTIF($DR120:DU120,$EG120:$IV120),0)),\"\")","v":"{Weeks Per Year}"},{"$f":"IFERROR(INDEX($EG120:$IV120,MATCH(0,COUNTIF($DR120:DV120,$EG120:$IV120),0)),\"\")","v":"{Measure:Quantity}"},{"$f":"IFERROR(INDEX($EG120:$IV120,MATCH(0,COUNTIF($DR120:DW120,$EG120:$IV120),0)),\"\")","v":"{System Compressor (HP)}"},{"$f":"IFERROR(INDEX($EG120:$IV120,MATCH(0,COUNTIF($DR120:DX120,$EG120:$IV120),0)),\"\")","v":""},{"$f":"IFERROR(INDEX($EG120:$IV120,MATCH(0,COUNTIF($DR120:DY120,$EG120:$IV120),0)),\"\")","v":""},{"$f":"IFERROR(INDEX($EG120:$IV120,MATCH(0,COUNTIF($DR120:DZ120,$EG120:$IV120),0)),\"\")","v":""},{"$f":"IFERROR(INDEX($EG120:$IV120,MATCH(0,COUNTIF($DR120:EA120,$EG120:$IV120),0)),\"\")","v":""},{"$f":"IFERROR(INDEX($EG120:$IV120,MATCH(0,COUNTIF($DR120:EB120,$EG120:$IV120),0)),\"\")","v":""},{"$f":"IFERROR(INDEX($EG120:$IV120,MATCH(0,COUNTIF($DR120:EC120,$EG120:$IV120),0)),\"\")","v":""},null,null,{"$f":"IFERROR(MID($G120,FIND(CHAR(160),SUBSTITUTE($G120,\"{\",CHAR(160),EG$1)),FIND(CHAR(160),SUBSTITUTE($G120,\"}\",CHAR(160),EG$1))-FIND(CHAR(160),SUBSTITUTE($G120,\"{\",CHAR(160),EG$1))+1),\"\")","v":""},{"$f":"IFERROR(MID($G120,FIND(CHAR(160),SUBSTITUTE($G120,\"{\",CHAR(160),EH$1)),FIND(CHAR(160),SUBSTITUTE($G120,\"}\",CHAR(160),EH$1))-FIND(CHAR(160),SUBSTITUTE($G120,\"{\",CHAR(160),EH$1))+1),\"\")","v":""},{"$f":"IFERROR(MID($G120,FIND(CHAR(160),SUBSTITUTE($G120,\"{\",CHAR(160),EI$1)),FIND(CHAR(160),SUBSTITUTE($G120,\"}\",CHAR(160),EI$1))-FIND(CHAR(160),SUBSTITUTE($G120,\"{\",CHAR(160),EI$1))+1),\"\")","v":""},{"$f":"IFERROR(MID($G120,FIND(CHAR(160),SUBSTITUTE($G120,\"{\",CHAR(160),EJ$1)),FIND(CHAR(160),SUBSTITUTE($G120,\"}\",CHAR(160),EJ$1))-FIND(CHAR(160),SUBSTITUTE($G120,\"{\",CHAR(160),EJ$1))+1),\"\")","v":""},{"$f":"IFERROR(MID($G120,FIND(CHAR(160),SUBSTITUTE($G120,\"{\",CHAR(160),EK$1)),FIND(CHAR(160),SUBSTITUTE($G120,\"}\",CHAR(160),EK$1))-FIND(CHAR(160),SUBSTITUTE($G120,\"{\",CHAR(160),EK$1))+1),\"\")","v":""},{"$f":"IFERROR(MID($G120,FIND(CHAR(160),SUBSTITUTE($G120,\"{\",CHAR(160),EL$1)),FIND(CHAR(160),SUBSTITUTE($G120,\"}\",CHAR(160),EL$1))-FIND(CHAR(160),SUBSTITUTE($G120,\"{\",CHAR(160),EL$1))+1),\"\")","v":""},{"$f":"IFERROR(MID($G120,FIND(CHAR(160),SUBSTITUTE($G120,\"{\",CHAR(160),EM$1)),FIND(CHAR(160),SUBSTITUTE($G120,\"}\",CHAR(160),EM$1))-FIND(CHAR(160),SUBSTITUTE($G120,\"{\",CHAR(160),EM$1))+1),\"\")","v":""},{"$f":"IFERROR(MID($G120,FIND(CHAR(160),SUBSTITUTE($G120,\"{\",CHAR(160),EN$1)),FIND(CHAR(160),SUBSTITUTE($G120,\"}\",CHAR(160),EN$1))-FIND(CHAR(160),SUBSTITUTE($G120,\"{\",CHAR(160),EN$1))+1),\"\")","v":""},{"$f":"IFERROR(MID($G120,FIND(CHAR(160),SUBSTITUTE($G120,\"{\",CHAR(160),EO$1)),FIND(CHAR(160),SUBSTITUTE($G120,\"}\",CHAR(160),EO$1))-FIND(CHAR(160),SUBSTITUTE($G120,\"{\",CHAR(160),EO$1))+1),\"\")","v":""},{"$f":"IFERROR(MID($G120,FIND(CHAR(160),SUBSTITUTE($G120,\"{\",CHAR(160),EP$1)),FIND(CHAR(160),SUBSTITUTE($G120,\"}\",CHAR(160),EP$1))-FIND(CHAR(160),SUBSTITUTE($G120,\"{\",CHAR(160),EP$1))+1),\"\")","v":""},{"$f":"IFERROR(MID($J120,FIND(CHAR(160),SUBSTITUTE($J120,\"{\",CHAR(160),EQ$1)),FIND(CHAR(160),SUBSTITUTE($J120,\"}\",CHAR(160),EQ$1))-FIND(CHAR(160),SUBSTITUTE($J120,\"{\",CHAR(160),EQ$1))+1),\"\")","v":""},{"$f":"IFERROR(MID($J120,FIND(CHAR(160),SUBSTITUTE($J120,\"{\",CHAR(160),ER$1)),FIND(CHAR(160),SUBSTITUTE($J120,\"}\",CHAR(160),ER$1))-FIND(CHAR(160),SUBSTITUTE($J120,\"{\",CHAR(160),ER$1))+1),\"\")","v":""},{"$f":"IFERROR(MID($J120,FIND(CHAR(160),SUBSTITUTE($J120,\"{\",CHAR(160),ES$1)),FIND(CHAR(160),SUBSTITUTE($J120,\"}\",CHAR(160),ES$1))-FIND(CHAR(160),SUBSTITUTE($J120,\"{\",CHAR(160),ES$1))+1),\"\")","v":""},{"$f":"IFERROR(MID($J120,FIND(CHAR(160),SUBSTITUTE($J120,\"{\",CHAR(160),ET$1)),FIND(CHAR(160),SUBSTITUTE($J120,\"}\",CHAR(160),ET$1))-FIND(CHAR(160),SUBSTITUTE($J120,\"{\",CHAR(160),ET$1))+1),\"\")","v":""},{"$f":"IFERROR(MID($J120,FIND(CHAR(160),SUBSTITUTE($J120,\"{\",CHAR(160),EU$1)),FIND(CHAR(160),SUBSTITUTE($J120,\"}\",CHAR(160),EU$1))-FIND(CHAR(160),SUBSTITUTE($J120,\"{\",CHAR(160),EU$1))+1),\"\")","v":""},{"$f":"IFERROR(MID($J120,FIND(CHAR(160),SUBSTITUTE($J120,\"{\",CHAR(160),EV$1)),FIND(CHAR(160),SUBSTITUTE($J120,\"}\",CHAR(160),EV$1))-FIND(CHAR(160),SUBSTITUTE($J120,\"{\",CHAR(160),EV$1))+1),\"\")","v":""},{"$f":"IFERROR(MID($J120,FIND(CHAR(160),SUBSTITUTE($J120,\"{\",CHAR(160),EW$1)),FIND(CHAR(160),SUBSTITUTE($J120,\"}\",CHAR(160),EW$1))-FIND(CHAR(160),SUBSTITUTE($J120,\"{\",CHAR(160),EW$1))+1),\"\")","v":""},{"$f":"IFERROR(MID($J120,FIND(CHAR(160),SUBSTITUTE($J120,\"{\",CHAR(160),EX$1)),FIND(CHAR(160),SUBSTITUTE($J120,\"}\",CHAR(160),EX$1))-FIND(CHAR(160),SUBSTITUTE($J120,\"{\",CHAR(160),EX$1))+1),\"\")","v":""},{"$f":"IFERROR(MID($J120,FIND(CHAR(160),SUBSTITUTE($J120,\"{\",CHAR(160),EY$1)),FIND(CHAR(160),SUBSTITUTE($J120,\"}\",CHAR(160),EY$1))-FIND(CHAR(160),SUBSTITUTE($J120,\"{\",CHAR(160),EY$1))+1),\"\")","v":""},{"$f":"IFERROR(MID($J120,FIND(CHAR(160),SUBSTITUTE($J120,\"{\",CHAR(160),EZ$1)),FIND(CHAR(160),SUBSTITUTE($J120,\"}\",CHAR(160),EZ$1))-FIND(CHAR(160),SUBSTITUTE($J120,\"{\",CHAR(160),EZ$1))+1),\"\")","v":""},{"$f":"IFERROR(MID($J120,FIND(CHAR(160),SUBSTITUTE($J120,\"{\",CHAR(160),FA$1)),FIND(CHAR(160),SUBSTITUTE($J120,\"}\",CHAR(160),FA$1))-FIND(CHAR(160),SUBSTITUTE($J120,\"{\",CHAR(160),FA$1))+1),\"\")","v":""},{"$f":"IFERROR(MID($J120,FIND(CHAR(160),SUBSTITUTE($J120,\"{\",CHAR(160),FB$1)),FIND(CHAR(160),SUBSTITUTE($J120,\"}\",CHAR(160),FB$1))-FIND(CHAR(160),SUBSTITUTE($J120,\"{\",CHAR(160),FB$1))+1),\"\")","v":""},{"$f":"IFERROR(MID($O120,FIND(CHAR(160),SUBSTITUTE($O120,\"{\",CHAR(160),FC$1)),FIND(CHAR(160),SUBSTITUTE($O120,\"}\",CHAR(160),FC$1))-FIND(CHAR(160),SUBSTITUTE($O120,\"{\",CHAR(160),FC$1))+1),\"\")","v":"{Weekly Hrs of Operation}"},{"$f":"IFERROR(MID($O120,FIND(CHAR(160),SUBSTITUTE($O120,\"{\",CHAR(160),FD$1)),FIND(CHAR(160),SUBSTITUTE($O120,\"}\",CHAR(160),FD$1))-FIND(CHAR(160),SUBSTITUTE($O120,\"{\",CHAR(160),FD$1))+1),\"\")","v":"{Weeks Per Year}"},{"$f":"IFERROR(MID($O120,FIND(CHAR(160),SUBSTITUTE($O120,\"{\",CHAR(160),FE$1)),FIND(CHAR(160),SUBSTITUTE($O120,\"}\",CHAR(160),FE$1))-FIND(CHAR(160),SUBSTITUTE($O120,\"{\",CHAR(160),FE$1))+1),\"\")","v":""},{"$f":"IFERROR(MID($O120,FIND(CHAR(160),SUBSTITUTE($O120,\"{\",CHAR(160),FF$1)),FIND(CHAR(160),SUBSTITUTE($O120,\"}\",CHAR(160),FF$1))-FIND(CHAR(160),SUBSTITUTE($O120,\"{\",CHAR(160),FF$1))+1),\"\")","v":""},{"$f":"IFERROR(MID($O120,FIND(CHAR(160),SUBSTITUTE($O120,\"{\",CHAR(160),FG$1)),FIND(CHAR(160),SUBSTITUTE($O120,\"}\",CHAR(160),FG$1))-FIND(CHAR(160),SUBSTITUTE($O120,\"{\",CHAR(160),FG$1))+1),\"\")","v":""},{"$f":"IFERROR(MID($O120,FIND(CHAR(160),SUBSTITUTE($O120,\"{\",CHAR(160),FH$1)),FIND(CHAR(160),SUBSTITUTE($O120,\"}\",CHAR(160),FH$1))-FIND(CHAR(160),SUBSTITUTE($O120,\"{\",CHAR(160),FH$1))+1),\"\")","v":""},{"$f":"IFERROR(MID($O120,FIND(CHAR(160),SUBSTITUTE($O120,\"{\",CHAR(160),FI$1)),FIND(CHAR(160),SUBSTITUTE($O120,\"}\",CHAR(160),FI$1))-FIND(CHAR(160),SUBSTITUTE($O120,\"{\",CHAR(160),FI$1))+1),\"\")","v":""},{"$f":"IFERROR(MID($O120,FIND(CHAR(160),SUBSTITUTE($O120,\"{\",CHAR(160),FJ$1)),FIND(CHAR(160),SUBSTITUTE($O120,\"}\",CHAR(160),FJ$1))-FIND(CHAR(160),SUBSTITUTE($O120,\"{\",CHAR(160),FJ$1))+1),\"\")","v":""},{"$f":"IFERROR(MID($O120,FIND(CHAR(160),SUBSTITUTE($O120,\"{\",CHAR(160),FK$1)),FIND(CHAR(160),SUBSTITUTE($O120,\"}\",CHAR(160),FK$1))-FIND(CHAR(160),SUBSTITUTE($O120,\"{\",CHAR(160),FK$1))+1),\"\")","v":"{Measure:Quantity}"},{"$f":"IFERROR(MID($O120,FIND(CHAR(160),SUBSTITUTE($O120,\"{\",CHAR(160),FL$1)),FIND(CHAR(160),SUBSTITUTE($O120,\"}\",CHAR(160),FL$1))-FIND(CHAR(160),SUBSTITUTE($O120,\"{\",CHAR(160),FL$1))+1),\"\")","v":"{System Compressor (HP)}"},{"$f":"IFERROR(MID($R120,FIND(CHAR(160),SUBSTITUTE($R120,\"{\",CHAR(160),FM$1)),FIND(CHAR(160),SUBSTITUTE($R120,\"}\",CHAR(160),FM$1))-FIND(CHAR(160),SUBSTITUTE($R120,\"{\",CHAR(160),FM$1))+1),\"\")","v":""},{"$f":"IFERROR(MID($R120,FIND(CHAR(160),SUBSTITUTE($R120,\"{\",CHAR(160),FN$1)),FIND(CHAR(160),SUBSTITUTE($R120,\"}\",CHAR(160),FN$1))-FIND(CHAR(160),SUBSTITUTE($R120,\"{\",CHAR(160),FN$1))+1),\"\")","v":""},{"$f":"IFERROR(MID($R120,FIND(CHAR(160),SUBSTITUTE($R120,\"{\",CHAR(160),FO$1)),FIND(CHAR(160),SUBSTITUTE($R120,\"}\",CHAR(160),FO$1))-FIND(CHAR(160),SUBSTITUTE($R120,\"{\",CHAR(160),FO$1))+1),\"\")","v":""},{"$f":"IFERROR(MID($R120,FIND(CHAR(160),SUBSTITUTE($R120,\"{\",CHAR(160),FP$1)),FIND(CHAR(160),SUBSTITUTE($R120,\"}\",CHAR(160),FP$1))-FIND(CHAR(160),SUBSTITUTE($R120,\"{\",CHAR(160),FP$1))+1),\"\")","v":""},{"$f":"IFERROR(MID($R120,FIND(CHAR(160),SUBSTITUTE($R120,\"{\",CHAR(160),FQ$1)),FIND(CHAR(160),SUBSTITUTE($R120,\"}\",CHAR(160),FQ$1))-FIND(CHAR(160),SUBSTITUTE($R120,\"{\",CHAR(160),FQ$1))+1),\"\")","v":""},{"$f":"IFERROR(MID($R120,FIND(CHAR(160),SUBSTITUTE($R120,\"{\",CHAR(160),FR$1)),FIND(CHAR(160),SUBSTITUTE($R120,\"}\",CHAR(160),FR$1))-FIND(CHAR(160),SUBSTITUTE($R120,\"{\",CHAR(160),FR$1))+1),\"\")","v":""},{"$f":"IFERROR(MID($R120,FIND(CHAR(160),SUBSTITUTE($R120,\"{\",CHAR(160),FS$1)),FIND(CHAR(160),SUBSTITUTE($R120,\"}\",CHAR(160),FS$1))-FIND(CHAR(160),SUBSTITUTE($R120,\"{\",CHAR(160),FS$1))+1),\"\")","v":""},{"$f":"IFERROR(MID($R120,FIND(CHAR(160),SUBSTITUTE($R120,\"{\",CHAR(160),FT$1)),FIND(CHAR(160),SUBSTITUTE($R120,\"}\",CHAR(160),FT$1))-FIND(CHAR(160),SUBSTITUTE($R120,\"{\",CHAR(160),FT$1))+1),\"\")","v":""},{"$f":"IFERROR(MID($R120,FIND(CHAR(160),SUBSTITUTE($R120,\"{\",CHAR(160),FU$1)),FIND(CHAR(160),SUBSTITUTE($R120,\"}\",CHAR(160),FU$1))-FIND(CHAR(160),SUBSTITUTE($R120,\"{\",CHAR(160),FU$1))+1),\"\")","v":"{Measure:Quantity}"},{"$f":"IFERROR(MID($R120,FIND(CHAR(160),SUBSTITUTE($R120,\"{\",CHAR(160),FV$1)),FIND(CHAR(160),SUBSTITUTE($R120,\"}\",CHAR(160),FV$1))-FIND(CHAR(160),SUBSTITUTE($R120,\"{\",CHAR(160),FV$1))+1),\"\")","v":"{System Compressor (HP)}"},{"$f":"IFERROR(MID($U120,FIND(CHAR(160),SUBSTITUTE($U120,\"{\",CHAR(160),FW$1)),FIND(CHAR(160),SUBSTITUTE($U120,\"}\",CHAR(160),FW$1))-FIND(CHAR(160),SUBSTITUTE($U120,\"{\",CHAR(160),FW$1))+1),\"\")","v":"{Factor:WinterCF}"},{"$f":"IFERROR(MID($U120,FIND(CHAR(160),SUBSTITUTE($U120,\"{\",CHAR(160),FX$1)),FIND(CHAR(160),SUBSTITUTE($U120,\"}\",CHAR(160),FX$1))-FIND(CHAR(160),SUBSTITUTE($U120,\"{\",CHAR(160),FX$1))+1),\"\")","v":""},{"$f":"IFERROR(MID($U120,FIND(CHAR(160),SUBSTITUTE($U120,\"{\",CHAR(160),FY$1)),FIND(CHAR(160),SUBSTITUTE($U120,\"}\",CHAR(160),FY$1))-FIND(CHAR(160),SUBSTITUTE($U120,\"{\",CHAR(160),FY$1))+1),\"\")","v":""},{"$f":"IFERROR(MID($U120,FIND(CHAR(160),SUBSTITUTE($U120,\"{\",CHAR(160),FZ$1)),FIND(CHAR(160),SUBSTITUTE($U120,\"}\",CHAR(160),FZ$1))-FIND(CHAR(160),SUBSTITUTE($U120,\"{\",CHAR(160),FZ$1))+1),\"\")","v":""},{"$f":"IFERROR(MID($U120,FIND(CHAR(160),SUBSTITUTE($U120,\"{\",CHAR(160),GA$1)),FIND(CHAR(160),SUBSTITUTE($U120,\"}\",CHAR(160),GA$1))-FIND(CHAR(160),SUBSTITUTE($U120,\"{\",CHAR(160),GA$1))+1),\"\")","v":""},{"$f":"IFERROR(MID($U120,FIND(CHAR(160),SUBSTITUTE($U120,\"{\",CHAR(160),GB$1)),FIND(CHAR(160),SUBSTITUTE($U120,\"}\",CHAR(160),GB$1))-FIND(CHAR(160),SUBSTITUTE($U120,\"{\",CHAR(160),GB$1))+1),\"\")","v":""},{"$f":"IFERROR(MID($U120,FIND(CHAR(160),SUBSTITUTE($U120,\"{\",CHAR(160),GC$1)),FIND(CHAR(160),SUBSTITUTE($U120,\"}\",CHAR(160),GC$1))-FIND(CHAR(160),SUBSTITUTE($U120,\"{\",CHAR(160),GC$1))+1),\"\")","v":""},{"$f":"IFERROR(MID($U120,FIND(CHAR(160),SUBSTITUTE($U120,\"{\",CHAR(160),GD$1)),FIND(CHAR(160),SUBSTITUTE($U120,\"}\",CHAR(160),GD$1))-FIND(CHAR(160),SUBSTITUTE($U120,\"{\",CHAR(160),GD$1))+1),\"\")","v":""},{"$f":"IFERROR(MID($U120,FIND(CHAR(160),SUBSTITUTE($U120,\"{\",CHAR(160),GE$1)),FIND(CHAR(160),SUBSTITUTE($U120,\"}\",CHAR(160),GE$1))-FIND(CHAR(160),SUBSTITUTE($U120,\"{\",CHAR(160),GE$1))+1),\"\")","v":"{Measure:Quantity}"},{"$f":"IFERROR(MID($U120,FIND(CHAR(160),SUBSTITUTE($U120,\"{\",CHAR(160),GF$1)),FIND(CHAR(160),SUBSTITUTE($U120,\"}\",CHAR(160),GF$1))-FIND(CHAR(160),SUBSTITUTE($U120,\"{\",CHAR(160),GF$1))+1),\"\")","v":"{System Compressor (HP)}"},{"$f":"IFERROR(MID($V120,FIND(CHAR(160),SUBSTITUTE($V120,\"{\",CHAR(160),GG$1)),FIND(CHAR(160),SUBSTITUTE($V120,\"}\",CHAR(160),GG$1))-FIND(CHAR(160),SUBSTITUTE($V120,\"{\",CHAR(160),GG$1))+1),\"\")","v":"{Factor:SummerCF}"},{"$f":"IFERROR(MID($V120,FIND(CHAR(160),SUBSTITUTE($V120,\"{\",CHAR(160),GH$1)),FIND(CHAR(160),SUBSTITUTE($V120,\"}\",CHAR(160),GH$1))-FIND(CHAR(160),SUBSTITUTE($V120,\"{\",CHAR(160),GH$1))+1),\"\")","v":""},{"$f":"IFERROR(MID($V120,FIND(CHAR(160),SUBSTITUTE($V120,\"{\",CHAR(160),GI$1)),FIND(CHAR(160),SUBSTITUTE($V120,\"}\",CHAR(160),GI$1))-FIND(CHAR(160),SUBSTITUTE($V120,\"{\",CHAR(160),GI$1))+1),\"\")","v":""},{"$f":"IFERROR(MID($V120,FIND(CHAR(160),SUBSTITUTE($V120,\"{\",CHAR(160),GJ$1)),FIND(CHAR(160),SUBSTITUTE($V120,\"}\",CHAR(160),GJ$1))-FIND(CHAR(160),SUBSTITUTE($V120,\"{\",CHAR(160),GJ$1))+1),\"\")","v":""},{"$f":"IFERROR(MID($V120,FIND(CHAR(160),SUBSTITUTE($V120,\"{\",CHAR(160),GK$1)),FIND(CHAR(160),SUBSTITUTE($V120,\"}\",CHAR(160),GK$1))-FIND(CHAR(160),SUBSTITUTE($V120,\"{\",CHAR(160),GK$1))+1),\"\")","v":""},{"$f":"IFERROR(MID($V120,FIND(CHAR(160),SUBSTITUTE($V120,\"{\",CHAR(160),GL$1)),FIND(CHAR(160),SUBSTITUTE($V120,\"}\",CHAR(160),GL$1))-FIND(CHAR(160),SUBSTITUTE($V120,\"{\",CHAR(160),GL$1))+1),\"\")","v":""},{"$f":"IFERROR(MID($V120,FIND(CHAR(160),SUBSTITUTE($V120,\"{\",CHAR(160),GM$1)),FIND(CHAR(160),SUBSTITUTE($V120,\"}\",CHAR(160),GM$1))-FIND(CHAR(160),SUBSTITUTE($V120,\"{\",CHAR(160),GM$1))+1),\"\")","v":""},{"$f":"IFERROR(MID($V120,FIND(CHAR(160),SUBSTITUTE($V120,\"{\",CHAR(160),GN$1)),FIND(CHAR(160),SUBSTITUTE($V120,\"}\",CHAR(160),GN$1))-FIND(CHAR(160),SUBSTITUTE($V120,\"{\",CHAR(160),GN$1))+1),\"\")","v":""},{"$f":"IFERROR(MID($V120,FIND(CHAR(160),SUBSTITUTE($V120,\"{\",CHAR(160),GO$1)),FIND(CHAR(160),SUBSTITUTE($V120,\"}\",CHAR(160),GO$1))-FIND(CHAR(160),SUBSTITUTE($V120,\"{\",CHAR(160),GO$1))+1),\"\")","v":"{Measure:Quantity}"},{"$f":"IFERROR(MID($V120,FIND(CHAR(160),SUBSTITUTE($V120,\"{\",CHAR(160),GP$1)),FIND(CHAR(160),SUBSTITUTE($V120,\"}\",CHAR(160),GP$1))-FIND(CHAR(160),SUBSTITUTE($V120,\"{\",CHAR(160),GP$1))+1),\"\")","v":"{System Compressor (HP)}"},{"$f":"IFERROR(MID($W120,FIND(CHAR(160),SUBSTITUTE($W120,\"{\",CHAR(160),GQ$1)),FIND(CHAR(160),SUBSTITUTE($W120,\"}\",CHAR(160),GQ$1))-FIND(CHAR(160),SUBSTITUTE($W120,\"{\",CHAR(160),GQ$1))+1),\"\")","v":""},{"$f":"IFERROR(MID($W120,FIND(CHAR(160),SUBSTITUTE($W120,\"{\",CHAR(160),GR$1)),FIND(CHAR(160),SUBSTITUTE($W120,\"}\",CHAR(160),GR$1))-FIND(CHAR(160),SUBSTITUTE($W120,\"{\",CHAR(160),GR$1))+1),\"\")","v":""},{"$f":"IFERROR(MID($W120,FIND(CHAR(160),SUBSTITUTE($W120,\"{\",CHAR(160),GS$1)),FIND(CHAR(160),SUBSTITUTE($W120,\"}\",CHAR(160),GS$1))-FIND(CHAR(160),SUBSTITUTE($W120,\"{\",CHAR(160),GS$1))+1),\"\")","v":""},{"$f":"IFERROR(MID($W120,FIND(CHAR(160),SUBSTITUTE($W120,\"{\",CHAR(160),GT$1)),FIND(CHAR(160),SUBSTITUTE($W120,\"}\",CHAR(160),GT$1))-FIND(CHAR(160),SUBSTITUTE($W120,\"{\",CHAR(160),GT$1))+1),\"\")","v":""},{"$f":"IFERROR(MID($W120,FIND(CHAR(160),SUBSTITUTE($W120,\"{\",CHAR(160),GU$1)),FIND(CHAR(160),SUBSTITUTE($W120,\"}\",CHAR(160),GU$1))-FIND(CHAR(160),SUBSTITUTE($W120,\"{\",CHAR(160),GU$1))+1),\"\")","v":""},{"$f":"IFERROR(MID($W120,FIND(CHAR(160),SUBSTITUTE($W120,\"{\",CHAR(160),GV$1)),FIND(CHAR(160),SUBSTITUTE($W120,\"}\",CHAR(160),GV$1))-FIND(CHAR(160),SUBSTITUTE($W120,\"{\",CHAR(160),GV$1))+1),\"\")","v":""},{"$f":"IFERROR(MID($W120,FIND(CHAR(160),SUBSTITUTE($W120,\"{\",CHAR(160),GW$1)),FIND(CHAR(160),SUBSTITUTE($W120,\"}\",CHAR(160),GW$1))-FIND(CHAR(160),SUBSTITUTE($W120,\"{\",CHAR(160),GW$1))+1),\"\")","v":""},{"$f":"IFERROR(MID($W120,FIND(CHAR(160),SUBSTITUTE($W120,\"{\",CHAR(160),GX$1)),FIND(CHAR(160),SUBSTITUTE($W120,\"}\",CHAR(160),GX$1))-FIND(CHAR(160),SUBSTITUTE($W120,\"{\",CHAR(160),GX$1))+1),\"\")","v":""},{"$f":"IFERROR(MID($W120,FIND(CHAR(160),SUBSTITUTE($W120,\"{\",CHAR(160),GY$1)),FIND(CHAR(160),SUBSTITUTE($W120,\"}\",CHAR(160),GY$1))-FIND(CHAR(160),SUBSTITUTE($W120,\"{\",CHAR(160),GY$1))+1),\"\")","v":""},{"$f":"IFERROR(MID($W120,FIND(CHAR(160),SUBSTITUTE($W120,\"{\",CHAR(160),GZ$1)),FIND(CHAR(160),SUBSTITUTE($W120,\"}\",CHAR(160),GZ$1))-FIND(CHAR(160),SUBSTITUTE($W120,\"{\",CHAR(160),GZ$1))+1),\"\")","v":""},{"$f":"IFERROR(MID($X120,FIND(CHAR(160),SUBSTITUTE($X120,\"{\",CHAR(160),HA$1)),FIND(CHAR(160),SUBSTITUTE($X120,\"}\",CHAR(160),HA$1))-FIND(CHAR(160),SUBSTITUTE($X120,\"{\",CHAR(160),HA$1))+1),\"\")","v":""},{"$f":"IFERROR(MID($X120,FIND(CHAR(160),SUBSTITUTE($X120,\"{\",CHAR(160),HB$1)),FIND(CHAR(160),SUBSTITUTE($X120,\"}\",CHAR(160),HB$1))-FIND(CHAR(160),SUBSTITUTE($X120,\"{\",CHAR(160),HB$1))+1),\"\")","v":""},{"$f":"IFERROR(MID($X120,FIND(CHAR(160),SUBSTITUTE($X120,\"{\",CHAR(160),HC$1)),FIND(CHAR(160),SUBSTITUTE($X120,\"}\",CHAR(160),HC$1))-FIND(CHAR(160),SUBSTITUTE($X120,\"{\",CHAR(160),HC$1))+1),\"\")","v":""},{"$f":"IFERROR(MID($X120,FIND(CHAR(160),SUBSTITUTE($X120,\"{\",CHAR(160),HD$1)),FIND(CHAR(160),SUBSTITUTE($X120,\"}\",CHAR(160),HD$1))-FIND(CHAR(160),SUBSTITUTE($X120,\"{\",CHAR(160),HD$1))+1),\"\")","v":""},{"$f":"IFERROR(MID($X120,FIND(CHAR(160),SUBSTITUTE($X120,\"{\",CHAR(160),HE$1)),FIND(CHAR(160),SUBSTITUTE($X120,\"}\",CHAR(160),HE$1))-FIND(CHAR(160),SUBSTITUTE($X120,\"{\",CHAR(160),HE$1))+1),\"\")","v":""},{"$f":"IFERROR(MID($X120,FIND(CHAR(160),SUBSTITUTE($X120,\"{\",CHAR(160),HF$1)),FIND(CHAR(160),SUBSTITUTE($X120,\"}\",CHAR(160),HF$1))-FIND(CHAR(160),SUBSTITUTE($X120,\"{\",CHAR(160),HF$1))+1),\"\")","v":""},{"$f":"IFERROR(MID($X120,FIND(CHAR(160),SUBSTITUTE($X120,\"{\",CHAR(160),HG$1)),FIND(CHAR(160),SUBSTITUTE($X120,\"}\",CHAR(160),HG$1))-FIND(CHAR(160),SUBSTITUTE($X120,\"{\",CHAR(160),HG$1))+1),\"\")","v":""},{"$f":"IFERROR(MID($X120,FIND(CHAR(160),SUBSTITUTE($X120,\"{\",CHAR(160),HH$1)),FIND(CHAR(160),SUBSTITUTE($X120,\"}\",CHAR(160),HH$1))-FIND(CHAR(160),SUBSTITUTE($X120,\"{\",CHAR(160),HH$1))+1),\"\")","v":""},{"$f":"IFERROR(MID($X120,FIND(CHAR(160),SUBSTITUTE($X120,\"{\",CHAR(160),HI$1)),FIND(CHAR(160),SUBSTITUTE($X120,\"}\",CHAR(160),HI$1))-FIND(CHAR(160),SUBSTITUTE($X120,\"{\",CHAR(160),HI$1))+1),\"\")","v":""},{"$f":"IFERROR(MID($X120,FIND(CHAR(160),SUBSTITUTE($X120,\"{\",CHAR(160),HJ$1)),FIND(CHAR(160),SUBSTITUTE($X120,\"}\",CHAR(160),HJ$1))-FIND(CHAR(160),SUBSTITUTE($X120,\"{\",CHAR(160),HJ$1))+1),\"\")","v":""},{"$f":"IFERROR(MID($Y120,FIND(CHAR(160),SUBSTITUTE($Y120,\"{\",CHAR(160),HK$1)),FIND(CHAR(160),SUBSTITUTE($Y120,\"}\",CHAR(160),HK$1))-FIND(CHAR(160),SUBSTITUTE($Y120,\"{\",CHAR(160),HK$1))+1),\"\")","v":""},{"$f":"IFERROR(MID($Y120,FIND(CHAR(160),SUBSTITUTE($Y120,\"{\",CHAR(160),HL$1)),FIND(CHAR(160),SUBSTITUTE($Y120,\"}\",CHAR(160),HL$1))-FIND(CHAR(160),SUBSTITUTE($Y120,\"{\",CHAR(160),HL$1))+1),\"\")","v":""},{"$f":"IFERROR(MID($Y120,FIND(CHAR(160),SUBSTITUTE($Y120,\"{\",CHAR(160),HM$1)),FIND(CHAR(160),SUBSTITUTE($Y120,\"}\",CHAR(160),HM$1))-FIND(CHAR(160),SUBSTITUTE($Y120,\"{\",CHAR(160),HM$1))+1),\"\")","v":""},{"$f":"IFERROR(MID($Y120,FIND(CHAR(160),SUBSTITUTE($Y120,\"{\",CHAR(160),HN$1)),FIND(CHAR(160),SUBSTITUTE($Y120,\"}\",CHAR(160),HN$1))-FIND(CHAR(160),SUBSTITUTE($Y120,\"{\",CHAR(160),HN$1))+1),\"\")","v":""},{"$f":"IFERROR(MID($Y120,FIND(CHAR(160),SUBSTITUTE($Y120,\"{\",CHAR(160),HO$1)),FIND(CHAR(160),SUBSTITUTE($Y120,\"}\",CHAR(160),HO$1))-FIND(CHAR(160),SUBSTITUTE($Y120,\"{\",CHAR(160),HO$1))+1),\"\")","v":""},{"$f":"IFERROR(MID($Y120,FIND(CHAR(160),SUBSTITUTE($Y120,\"{\",CHAR(160),HP$1)),FIND(CHAR(160),SUBSTITUTE($Y120,\"}\",CHAR(160),HP$1))-FIND(CHAR(160),SUBSTITUTE($Y120,\"{\",CHAR(160),HP$1))+1),\"\")","v":""},{"$f":"IFERROR(MID($Y120,FIND(CHAR(160),SUBSTITUTE($Y120,\"{\",CHAR(160),HQ$1)),FIND(CHAR(160),SUBSTITUTE($Y120,\"}\",CHAR(160),HQ$1))-FIND(CHAR(160),SUBSTITUTE($Y120,\"{\",CHAR(160),HQ$1))+1),\"\")","v":""},{"$f":"IFERROR(MID($Y120,FIND(CHAR(160),SUBSTITUTE($Y120,\"{\",CHAR(160),HR$1)),FIND(CHAR(160),SUBSTITUTE($Y120,\"}\",CHAR(160),HR$1))-FIND(CHAR(160),SUBSTITUTE($Y120,\"{\",CHAR(160),HR$1))+1),\"\")","v":""},{"$f":"IFERROR(MID($Y120,FIND(CHAR(160),SUBSTITUTE($Y120,\"{\",CHAR(160),HS$1)),FIND(CHAR(160),SUBSTITUTE($Y120,\"}\",CHAR(160),HS$1))-FIND(CHAR(160),SUBSTITUTE($Y120,\"{\",CHAR(160),HS$1))+1),\"\")","v":""},{"$f":"IFERROR(MID($Y120,FIND(CHAR(160),SUBSTITUTE($Y120,\"{\",CHAR(160),HT$1)),FIND(CHAR(160),SUBSTITUTE($Y120,\"}\",CHAR(160),HT$1))-FIND(CHAR(160),SUBSTITUTE($Y120,\"{\",CHAR(160),HT$1))+1),\"\")","v":""},{"$f":"IFERROR(MID($Z120,FIND(CHAR(160),SUBSTITUTE($Z120,\"{\",CHAR(160),HU$1)),FIND(CHAR(160),SUBSTITUTE($Z120,\"}\",CHAR(160),HU$1))-FIND(CHAR(160),SUBSTITUTE($Z120,\"{\",CHAR(160),HU$1))+1),\"\")","v":""},{"$f":"IFERROR(MID($Z120,FIND(CHAR(160),SUBSTITUTE($Z120,\"{\",CHAR(160),HV$1)),FIND(CHAR(160),SUBSTITUTE($Z120,\"}\",CHAR(160),HV$1))-FIND(CHAR(160),SUBSTITUTE($Z120,\"{\",CHAR(160),HV$1))+1),\"\")","v":""},{"$f":"IFERROR(MID($Z120,FIND(CHAR(160),SUBSTITUTE($Z120,\"{\",CHAR(160),HW$1)),FIND(CHAR(160),SUBSTITUTE($Z120,\"}\",CHAR(160),HW$1))-FIND(CHAR(160),SUBSTITUTE($Z120,\"{\",CHAR(160),HW$1))+1),\"\")","v":""},{"$f":"IFERROR(MID($Z120,FIND(CHAR(160),SUBSTITUTE($Z120,\"{\",CHAR(160),HX$1)),FIND(CHAR(160),SUBSTITUTE($Z120,\"}\",CHAR(160),HX$1))-FIND(CHAR(160),SUBSTITUTE($Z120,\"{\",CHAR(160),HX$1))+1),\"\")","v":""},{"$f":"IFERROR(MID($Z120,FIND(CHAR(160),SUBSTITUTE($Z120,\"{\",CHAR(160),HY$1)),FIND(CHAR(160),SUBSTITUTE($Z120,\"}\",CHAR(160),HY$1))-FIND(CHAR(160),SUBSTITUTE($Z120,\"{\",CHAR(160),HY$1))+1),\"\")","v":""},{"$f":"IFERROR(MID($Z120,FIND(CHAR(160),SUBSTITUTE($Z120,\"{\",CHAR(160),HZ$1)),FIND(CHAR(160),SUBSTITUTE($Z120,\"}\",CHAR(160),HZ$1))-FIND(CHAR(160),SUBSTITUTE($Z120,\"{\",CHAR(160),HZ$1))+1),\"\")","v":""},{"$f":"IFERROR(MID($Z120,FIND(CHAR(160),SUBSTITUTE($Z120,\"{\",CHAR(160),IA$1)),FIND(CHAR(160),SUBSTITUTE($Z120,\"}\",CHAR(160),IA$1))-FIND(CHAR(160),SUBSTITUTE($Z120,\"{\",CHAR(160),IA$1))+1),\"\")","v":""},{"$f":"IFERROR(MID($Z120,FIND(CHAR(160),SUBSTITUTE($Z120,\"{\",CHAR(160),IB$1)),FIND(CHAR(160),SUBSTITUTE($Z120,\"}\",CHAR(160),IB$1))-FIND(CHAR(160),SUBSTITUTE($Z120,\"{\",CHAR(160),IB$1))+1),\"\")","v":""},{"$f":"IFERROR(MID($Z120,FIND(CHAR(160),SUBSTITUTE($Z120,\"{\",CHAR(160),IC$1)),FIND(CHAR(160),SUBSTITUTE($Z120,\"}\",CHAR(160),IC$1))-FIND(CHAR(160),SUBSTITUTE($Z120,\"{\",CHAR(160),IC$1))+1),\"\")","v":""},{"$f":"IFERROR(MID($Z120,FIND(CHAR(160),SUBSTITUTE($Z120,\"{\",CHAR(160),ID$1)),FIND(CHAR(160),SUBSTITUTE($Z120,\"}\",CHAR(160),ID$1))-FIND(CHAR(160),SUBSTITUTE($Z120,\"{\",CHAR(160),ID$1))+1),\"\")","v":""},{"$f":"IFERROR(MID($AA120,FIND(CHAR(160),SUBSTITUTE($AA120,\"{\",CHAR(160),IE$1)),FIND(CHAR(160),SUBSTITUTE($AA120,\"}\",CHAR(160),IE$1))-FIND(CHAR(160),SUBSTITUTE($AA120,\"{\",CHAR(160),IE$1))+1),\"\")","v":""},{"$f":"IFERROR(MID($AA120,FIND(CHAR(160),SUBSTITUTE($AA120,\"{\",CHAR(160),IF$1)),FIND(CHAR(160),SUBSTITUTE($AA120,\"}\",CHAR(160),IF$1))-FIND(CHAR(160),SUBSTITUTE($AA120,\"{\",CHAR(160),IF$1))+1),\"\")","v":""},{"$f":"IFERROR(MID($AA120,FIND(CHAR(160),SUBSTITUTE($AA120,\"{\",CHAR(160),IG$1)),FIND(CHAR(160),SUBSTITUTE($AA120,\"}\",CHAR(160),IG$1))-FIND(CHAR(160),SUBSTITUTE($AA120,\"{\",CHAR(160),IG$1))+1),\"\")","v":""},{"$f":"IFERROR(MID($AA120,FIND(CHAR(160),SUBSTITUTE($AA120,\"{\",CHAR(160),IH$1)),FIND(CHAR(160),SUBSTITUTE($AA120,\"}\",CHAR(160),IH$1))-FIND(CHAR(160),SUBSTITUTE($AA120,\"{\",CHAR(160),IH$1))+1),\"\")","v":""},{"$f":"IFERROR(MID($AA120,FIND(CHAR(160),SUBSTITUTE($AA120,\"{\",CHAR(160),II$1)),FIND(CHAR(160),SUBSTITUTE($AA120,\"}\",CHAR(160),II$1))-FIND(CHAR(160),SUBSTITUTE($AA120,\"{\",CHAR(160),II$1))+1),\"\")","v":""},{"$f":"IFERROR(MID($AA120,FIND(CHAR(160),SUBSTITUTE($AA120,\"{\",CHAR(160),IJ$1)),FIND(CHAR(160),SUBSTITUTE($AA120,\"}\",CHAR(160),IJ$1))-FIND(CHAR(160),SUBSTITUTE($AA120,\"{\",CHAR(160),IJ$1))+1),\"\")","v":""},{"$f":"IFERROR(MID($AA120,FIND(CHAR(160),SUBSTITUTE($AA120,\"{\",CHAR(160),IK$1)),FIND(CHAR(160),SUBSTITUTE($AA120,\"}\",CHAR(160),IK$1))-FIND(CHAR(160),SUBSTITUTE($AA120,\"{\",CHAR(160),IK$1))+1),\"\")","v":""},{"$f":"IFERROR(MID($AA120,FIND(CHAR(160),SUBSTITUTE($AA120,\"{\",CHAR(160),IL$1)),FIND(CHAR(160),SUBSTITUTE($AA120,\"}\",CHAR(160),IL$1))-FIND(CHAR(160),SUBSTITUTE($AA120,\"{\",CHAR(160),IL$1))+1),\"\")","v":""},{"$f":"IFERROR(MID($AA120,FIND(CHAR(160),SUBSTITUTE($AA120,\"{\",CHAR(160),IM$1)),FIND(CHAR(160),SUBSTITUTE($AA120,\"}\",CHAR(160),IM$1))-FIND(CHAR(160),SUBSTITUTE($AA120,\"{\",CHAR(160),IM$1))+1),\"\")","v":""},{"$f":"IFERROR(MID($AA120,FIND(CHAR(160),SUBSTITUTE($AA120,\"{\",CHAR(160),IN$1)),FIND(CHAR(160),SUBSTITUTE($AA120,\"}\",CHAR(160),IN$1))-FIND(CHAR(160),SUBSTITUTE($AA120,\"{\",CHAR(160),IN$1))+1),\"\")","v":""},{"$f":"IFERROR(MID($AB120,FIND(CHAR(160),SUBSTITUTE($AB120,\"{\",CHAR(160),IO$1)),FIND(CHAR(160),SUBSTITUTE($AB120,\"}\",CHAR(160),IO$1))-FIND(CHAR(160),SUBSTITUTE($AB120,\"{\",CHAR(160),IO$1))+1),\"\")","v":""},{"$f":"IFERROR(MID($AB120,FIND(CHAR(160),SUBSTITUTE($AB120,\"{\",CHAR(160),IP$1)),FIND(CHAR(160),SUBSTITUTE($AB120,\"}\",CHAR(160),IP$1))-FIND(CHAR(160),SUBSTITUTE($AB120,\"{\",CHAR(160),IP$1))+1),\"\")","v":""},{"$f":"IFERROR(MID($AB120,FIND(CHAR(160),SUBSTITUTE($AB120,\"{\",CHAR(160),IQ$1)),FIND(CHAR(160),SUBSTITUTE($AB120,\"}\",CHAR(160),IQ$1))-FIND(CHAR(160),SUBSTITUTE($AB120,\"{\",CHAR(160),IQ$1))+1),\"\")","v":""},{"$f":"IFERROR(MID($AB120,FIND(CHAR(160),SUBSTITUTE($AB120,\"{\",CHAR(160),IR$1)),FIND(CHAR(160),SUBSTITUTE($AB120,\"}\",CHAR(160),IR$1))-FIND(CHAR(160),SUBSTITUTE($AB120,\"{\",CHAR(160),IR$1))+1),\"\")","v":""},{"$f":"IFERROR(MID($AB120,FIND(CHAR(160),SUBSTITUTE($AB120,\"{\",CHAR(160),IS$1)),FIND(CHAR(160),SUBSTITUTE($AB120,\"}\",CHAR(160),IS$1))-FIND(CHAR(160),SUBSTITUTE($AB120,\"{\",CHAR(160),IS$1))+1),\"\")","v":""},{"$f":"IFERROR(MID($AB120,FIND(CHAR(160),SUBSTITUTE($AB120,\"{\",CHAR(160),IT$1)),FIND(CHAR(160),SUBSTITUTE($AB120,\"}\",CHAR(160),IT$1))-FIND(CHAR(160),SUBSTITUTE($AB120,\"{\",CHAR(160),IT$1))+1),\"\")","v":""},{"$f":"IFERROR(MID($AB120,FIND(CHAR(160),SUBSTITUTE($AB120,\"{\",CHAR(160),IU$1)),FIND(CHAR(160),SUBSTITUTE($AB120,\"}\",CHAR(160),IU$1))-FIND(CHAR(160),SUBSTITUTE($AB120,\"{\",CHAR(160),IU$1))+1),\"\")","v":""},{"$f":"IFERROR(MID($AB120,FIND(CHAR(160),SUBSTITUTE($AB120,\"{\",CHAR(160),IV$1)),FIND(CHAR(160),SUBSTITUTE($AB120,\"}\",CHAR(160),IV$1))-FIND(CHAR(160),SUBSTITUTE($AB120,\"{\",CHAR(160),IV$1))+1),\"\")","v":""},{"$f":"IFERROR(MID($AB120,FIND(CHAR(160),SUBSTITUTE($AB120,\"{\",CHAR(160),IW$1)),FIND(CHAR(160),SUBSTITUTE($AB120,\"}\",CHAR(160),IW$1))-FIND(CHAR(160),SUBSTITUTE($AB120,\"{\",CHAR(160),IW$1))+1),\"\")","v":""},{"$f":"IFERROR(MID($AB120,FIND(CHAR(160),SUBSTITUTE($AB120,\"{\",CHAR(160),IX$1)),FIND(CHAR(160),SUBSTITUTE($AB120,\"}\",CHAR(160),IX$1))-FIND(CHAR(160),SUBSTITUTE($AB120,\"{\",CHAR(160),IX$1))+1),\"\")","v":""},null,{"$f":"10-COUNTIF(DU120:ED120,\"\")","v":4}]
["C&I Prescriptive Compressed Air Solutions","Receiver - C26 - Standard Receiver Size 660 Gallons","R - C26","2021-07-01","2022-06-30","Per Measure",5327,0,"Per Measure",2500,0,"2017-07-01","2022-06-30","Calculated","{Measure:Quantity} *{System Compressor (HP)} * 0.746 * 0.025 * {Weekly Hrs of Operation} * {Weeks Per Year}",1E-4,null,"{Measure:Quantity} *{System Compressor (HP)} * 0.746 * 0.025",null,null,"{Measure:Quantity} *{System Compressor (HP)} * 0.746 * 0.025 * {Factor:WinterCF}","{Measure:Quantity} *{System Compressor (HP)} * 0.746 * 0.025 * {Factor:SummerCF}",null,null,null,null,null,null,"2017-07-01","2022-06-30",10,0.7,0.91100000000000003,0.30399999999999999,0.36099999999999999,0.156,0.17899999999999999,1,1.1220000000000001,1,0.52,1.6E-2,null,{"$f":"DU121","v":"{Weekly Hrs of Operation}"},1,{"$f":"DV121","v":"{Weeks Per Year}"},45,{"$f":"DW121","v":"{Measure:Quantity}"},50,{"$f":"DX121","v":"{System Compressor (HP)}"},50,{"$f":"DY121","v":""},null,{"$f":"DZ121","v":""},null,{"$f":"EA121","v":""},null,{"$f":"EB121","v":""},null,{"$f":"EC121","v":""},null,{"$f":"ED121","v":""},null,{"$f":"AS121 *AU121 * 0.746 * 0.025 * AW121 * AY121","v":2098.1250000000005},{"$f":"0.0001","v":1E-4},0,{"$f":"AS121 *AU121 * 0.746 * 0.025","v":0.83925000000000005},0,0,{"$f":"AS121 *AU121 * 0.746 * 0.025 * AF121","v":0.58747499999999997},{"$f":"AS121 *AU121 * 0.746 * 0.025 * AG121","v":0.76455675000000012},0,0,0,0,0,0,null,"Com","Default DR",{"$f":"Benefits(BL121,BR121,BS121,BT121,BU121,BV121,BW121,BX121,BY121,BZ121,AE121,AH121,AI121,AJ121,AK121,AL121,AM121,AN121,AO121,AP121,CA121,CB121)","v":2330.8111841235518},2586.8521850518514,0,0,0,0,0,0,0,{"$f":"SUMPRODUCT(CC121:CK121,--(CC121:CK121>0))","v":4917.6633691754032},{"$f":"-SUMPRODUCT(CC121:CK121,--(CC121:CK121<0))","v":0},null,{"$f":"5327","v":5327},null,null,{"$f":"CM121+CO121","v":5327},{"$f":"IF(NetOrGross=\"Net\",(1-AO121+AP121),1)","v":1},{"$f":"(SUMPRODUCT(CC121:CJ121,--(CC121:CJ121>0))+CN121)*CS121/((-SUMPRODUCT(CC121:CJ121,--(CC121:CJ121<0))+MAX(CO121,CV121)+CP121+CQ121)*CS121+IF(FRIncentives=\"Yes\",CV121*(1-CS121),0))","v":0.9231581320021407},23,{"$f":"2500","v":2500},null,"Electric","y",null,{"$f":"IF(F121=\"Manual Entry\",\"Manual\",IF(G121=\"\",0,\"X=\"&SUBSTITUTE(SUBSTITUTE(SUBSTITUTE(SUBSTITUTE(SUBSTITUTE(SUBSTITUTE(SUBSTITUTE(SUBSTITUTE(SUBSTITUTE(SUBSTITUTE(SUBSTITUTE(SUBSTITUTE(G121,$ED121,$ED$2&ROW($ED121)),$EC121,$EC$2&ROW($EC121)),$EB121,$EB$2&ROW($EB121)),$EA121,$EA$2&ROW($EA121)),$DZ121,$DZ$2&ROW($DZ121)),$DY121,$DY$2&ROW($DY121)),$DX121,$DX$2&ROW($DX121)),$DW121,$DW$2&ROW($DW121)),$DV121,$DV$2&ROW($DV121)),$DU121,$DU$2&ROW($DU121)),$DT121,$DT$2&ROW($DT121)),$DS121,$DS$2&ROW($DS121))))","v":"X=5327"},{"$f":"IF(I121=\"Manual Entry\",\"Manual\",IF(J121=\"\",0,\"X=\"&SUBSTITUTE(SUBSTITUTE(SUBSTITUTE(SUBSTITUTE(SUBSTITUTE(SUBSTITUTE(SUBSTITUTE(SUBSTITUTE(SUBSTITUTE(SUBSTITUTE(SUBSTITUTE(SUBSTITUTE(J121,$ED121,$ED$2&ROW($ED121)),$EC121,$EC$2&ROW($EC121)),$EB121,$EB$2&ROW($EB121)),$EA121,$EA$2&ROW($EA121)),$DZ121,$DZ$2&ROW($DZ121)),$DY121,$DY$2&ROW($DY121)),$DX121,$DX$2&ROW($DX121)),$DW121,$DW$2&ROW($DW121)),$DV121,$DV$2&ROW($DV121)),$DU121,$DU$2&ROW($DU121)),$DT121,$DT$2&ROW($DT121)),$DS121,$DS$2&ROW($DS121))))","v":"X=2500"},{"$f":"IF(O121=\"\",0,\"X=\"&SUBSTITUTE(SUBSTITUTE(SUBSTITUTE(SUBSTITUTE(SUBSTITUTE(SUBSTITUTE(SUBSTITUTE(SUBSTITUTE(SUBSTITUTE(SUBSTITUTE(SUBSTITUTE(SUBSTITUTE(O121,$ED121,$ED$2&ROW($ED121)),$EC121,$EC$2&ROW($EC121)),$EB121,$EB$2&ROW($EB121)),$EA121,$EA$2&ROW($EA121)),$DZ121,$DZ$2&ROW($DZ121)),$DY121,$DY$2&ROW($DY121)),$DX121,$DX$2&ROW($DX121)),$DW121,$DW$2&ROW($DW121)),$DV121,$DV$2&ROW($DV121)),$DU121,$DU$2&ROW($DU121)),$DT121,$DT$2&ROW($DT121)),$DS121,$DS$2&ROW($DS121)))","v":"X=AW121 *AY121 * 0.746 * 0.025 * AS121 * AU121"},{"$f":"IF(P121=\"\",0,\"X=\"&SUBSTITUTE(SUBSTITUTE(SUBSTITUTE(SUBSTITUTE(SUBSTITUTE(SUBSTITUTE(SUBSTITUTE(SUBSTITUTE(SUBSTITUTE(SUBSTITUTE(SUBSTITUTE(SUBSTITUTE(P121,$ED121,$ED$2&ROW($ED121)),$EC121,$EC$2&ROW($EC121)),$EB121,$EB$2&ROW($EB121)),$EA121,$EA$2&ROW($EA121)),$DZ121,$DZ$2&ROW($DZ121)),$DY121,$DY$2&ROW($DY121)),$DX121,$DX$2&ROW($DX121)),$DW121,$DW$2&ROW($DW121)),$DV121,$DV$2&ROW($DV121)),$DU121,$DU$2&ROW($DU121)),$DT121,$DT$2&ROW($DT121)),$DS121,$DS$2&ROW($DS121)))","v":"X=0.0001"},{"$f":"IF(Q121=\"\",0,\"X=\"&SUBSTITUTE(SUBSTITUTE(SUBSTITUTE(SUBSTITUTE(SUBSTITUTE(SUBSTITUTE(SUBSTITUTE(SUBSTITUTE(SUBSTITUTE(SUBSTITUTE(SUBSTITUTE(SUBSTITUTE(Q121,$ED121,$ED$2&ROW($ED121)),$EC121,$EC$2&ROW($EC121)),$EB121,$EB$2&ROW($EB121)),$EA121,$EA$2&ROW($EA121)),$DZ121,$DZ$2&ROW($DZ121)),$DY121,$DY$2&ROW($DY121)),$DX121,$DX$2&ROW($DX121)),$DW121,$DW$2&ROW($DW121)),$DV121,$DV$2&ROW($DV121)),$DU121,$DU$2&ROW($DU121)),$DT121,$DT$2&ROW($DT121)),$DS121,$DS$2&ROW($DS121)))","v":0},{"$f":"IF(R121=\"\",0,\"X=\"&SUBSTITUTE(SUBSTITUTE(SUBSTITUTE(SUBSTITUTE(SUBSTITUTE(SUBSTITUTE(SUBSTITUTE(SUBSTITUTE(SUBSTITUTE(SUBSTITUTE(SUBSTITUTE(SUBSTITUTE(R121,$ED121,$ED$2&ROW($ED121)),$EC121,$EC$2&ROW($EC121)),$EB121,$EB$2&ROW($EB121)),$EA121,$EA$2&ROW($EA121)),$DZ121,$DZ$2&ROW($DZ121)),$DY121,$DY$2&ROW($DY121)),$DX121,$DX$2&ROW($DX121)),$DW121,$DW$2&ROW($DW121)),$DV121,$DV$2&ROW($DV121)),$DU121,$DU$2&ROW($DU121)),$DT121,$DT$2&ROW($DT121)),$DS121,$DS$2&ROW($DS121)))","v":"X=AW121 *AY121 * 0.746 * 0.025"},{"$f":"IF(S121=\"\",0,\"X=\"&SUBSTITUTE(SUBSTITUTE(SUBSTITUTE(SUBSTITUTE(SUBSTITUTE(SUBSTITUTE(SUBSTITUTE(SUBSTITUTE(SUBSTITUTE(SUBSTITUTE(SUBSTITUTE(SUBSTITUTE(S121,$ED121,$ED$2&ROW($ED121)),$EC121,$EC$2&ROW($EC121)),$EB121,$EB$2&ROW($EB121)),$EA121,$EA$2&ROW($EA121)),$DZ121,$DZ$2&ROW($DZ121)),$DY121,$DY$2&ROW($DY121)),$DX121,$DX$2&ROW($DX121)),$DW121,$DW$2&ROW($DW121)),$DV121,$DV$2&ROW($DV121)),$DU121,$DU$2&ROW($DU121)),$DT121,$DT$2&ROW($DT121)),$DS121,$DS$2&ROW($DS121)))","v":0},{"$f":"IF(T121=\"\",0,\"X=\"&SUBSTITUTE(SUBSTITUTE(SUBSTITUTE(SUBSTITUTE(SUBSTITUTE(SUBSTITUTE(SUBSTITUTE(SUBSTITUTE(SUBSTITUTE(SUBSTITUTE(SUBSTITUTE(SUBSTITUTE(T121,$ED121,$ED$2&ROW($ED121)),$EC121,$EC$2&ROW($EC121)),$EB121,$EB$2&ROW($EB121)),$EA121,$EA$2&ROW($EA121)),$DZ121,$DZ$2&ROW($DZ121)),$DY121,$DY$2&ROW($DY121)),$DX121,$DX$2&ROW($DX121)),$DW121,$DW$2&ROW($DW121)),$DV121,$DV$2&ROW($DV121)),$DU121,$DU$2&ROW($DU121)),$DT121,$DT$2&ROW($DT121)),$DS121,$DS$2&ROW($DS121)))","v":0},{"$f":"IF(U121=\"\",0,\"X=\"&SUBSTITUTE(SUBSTITUTE(SUBSTITUTE(SUBSTITUTE(SUBSTITUTE(SUBSTITUTE(SUBSTITUTE(SUBSTITUTE(SUBSTITUTE(SUBSTITUTE(SUBSTITUTE(SUBSTITUTE(U121,$ED121,$ED$2&ROW($ED121)),$EC121,$EC$2&ROW($EC121)),$EB121,$EB$2&ROW($EB121)),$EA121,$EA$2&ROW($EA121)),$DZ121,$DZ$2&ROW($DZ121)),$DY121,$DY$2&ROW($DY121)),$DX121,$DX$2&ROW($DX121)),$DW121,$DW$2&ROW($DW121)),$DV121,$DV$2&ROW($DV121)),$DU121,$DU$2&ROW($DU121)),$DT121,$DT$2&ROW($DT121)),$DS121,$DS$2&ROW($DS121)))","v":"X=AW121 *AY121 * 0.746 * 0.025 * AF121"},{"$f":"IF(V121=\"\",0,\"X=\"&SUBSTITUTE(SUBSTITUTE(SUBSTITUTE(SUBSTITUTE(SUBSTITUTE(SUBSTITUTE(SUBSTITUTE(SUBSTITUTE(SUBSTITUTE(SUBSTITUTE(SUBSTITUTE(SUBSTITUTE(V121,$ED121,$ED$2&ROW($ED121)),$EC121,$EC$2&ROW($EC121)),$EB121,$EB$2&ROW($EB121)),$EA121,$EA$2&ROW($EA121)),$DZ121,$DZ$2&ROW($DZ121)),$DY121,$DY$2&ROW($DY121)),$DX121,$DX$2&ROW($DX121)),$DW121,$DW$2&ROW($DW121)),$DV121,$DV$2&ROW($DV121)),$DU121,$DU$2&ROW($DU121)),$DT121,$DT$2&ROW($DT121)),$DS121,$DS$2&ROW($DS121)))","v":"X=AW121 *AY121 * 0.746 * 0.025 * AG121"},{"$f":"IF(W121=\"\",0,\"X=\"&SUBSTITUTE(SUBSTITUTE(SUBSTITUTE(SUBSTITUTE(SUBSTITUTE(SUBSTITUTE(SUBSTITUTE(SUBSTITUTE(SUBSTITUTE(SUBSTITUTE(SUBSTITUTE(SUBSTITUTE(W121,$ED121,$ED$2&ROW($ED121)),$EC121,$EC$2&ROW($EC121)),$EB121,$EB$2&ROW($EB121)),$EA121,$EA$2&ROW($EA121)),$DZ121,$DZ$2&ROW($DZ121)),$DY121,$DY$2&ROW($DY121)),$DX121,$DX$2&ROW($DX121)),$DW121,$DW$2&ROW($DW121)),$DV121,$DV$2&ROW($DV121)),$DU121,$DU$2&ROW($DU121)),$DT121,$DT$2&ROW($DT121)),$DS121,$DS$2&ROW($DS121)))","v":0},{"$f":"IF(X121=\"\",0,\"X=\"&SUBSTITUTE(SUBSTITUTE(SUBSTITUTE(SUBSTITUTE(SUBSTITUTE(SUBSTITUTE(SUBSTITUTE(SUBSTITUTE(SUBSTITUTE(SUBSTITUTE(SUBSTITUTE(SUBSTITUTE(X121,$ED121,$ED$2&ROW($ED121)),$EC121,$EC$2&ROW($EC121)),$EB121,$EB$2&ROW($EB121)),$EA121,$EA$2&ROW($EA121)),$DZ121,$DZ$2&ROW($DZ121)),$DY121,$DY$2&ROW($DY121)),$DX121,$DX$2&ROW($DX121)),$DW121,$DW$2&ROW($DW121)),$DV121,$DV$2&ROW($DV121)),$DU121,$DU$2&ROW($DU121)),$DT121,$DT$2&ROW($DT121)),$DS121,$DS$2&ROW($DS121)))","v":0},{"$f":"IF(Y121=\"\",0,\"X=\"&SUBSTITUTE(SUBSTITUTE(SUBSTITUTE(SUBSTITUTE(SUBSTITUTE(SUBSTITUTE(SUBSTITUTE(SUBSTITUTE(SUBSTITUTE(SUBSTITUTE(SUBSTITUTE(SUBSTITUTE(Y121,$ED121,$ED$2&ROW($ED121)),$EC121,$EC$2&ROW($EC121)),$EB121,$EB$2&ROW($EB121)),$EA121,$EA$2&ROW($EA121)),$DZ121,$DZ$2&ROW($DZ121)),$DY121,$DY$2&ROW($DY121)),$DX121,$DX$2&ROW($DX121)),$DW121,$DW$2&ROW($DW121)),$DV121,$DV$2&ROW($DV121)),$DU121,$DU$2&ROW($DU121)),$DT121,$DT$2&ROW($DT121)),$DS121,$DS$2&ROW($DS121)))","v":0},{"$f":"IF(Z121=\"\",0,\"X=\"&SUBSTITUTE(SUBSTITUTE(SUBSTITUTE(SUBSTITUTE(SUBSTITUTE(SUBSTITUTE(SUBSTITUTE(SUBSTITUTE(SUBSTITUTE(SUBSTITUTE(SUBSTITUTE(SUBSTITUTE(Z121,$ED121,$ED$2&ROW($ED121)),$EC121,$EC$2&ROW($EC121)),$EB121,$EB$2&ROW($EB121)),$EA121,$EA$2&ROW($EA121)),$DZ121,$DZ$2&ROW($DZ121)),$DY121,$DY$2&ROW($DY121)),$DX121,$DX$2&ROW($DX121)),$DW121,$DW$2&ROW($DW121)),$DV121,$DV$2&ROW($DV121)),$DU121,$DU$2&ROW($DU121)),$DT121,$DT$2&ROW($DT121)),$DS121,$DS$2&ROW($DS121)))","v":0},{"$f":"IF(AA121=\"\",0,\"X=\"&SUBSTITUTE(SUBSTITUTE(SUBSTITUTE(SUBSTITUTE(SUBSTITUTE(SUBSTITUTE(SUBSTITUTE(SUBSTITUTE(SUBSTITUTE(SUBSTITUTE(SUBSTITUTE(SUBSTITUTE(AA121,$ED121,$ED$2&ROW($ED121)),$EC121,$EC$2&ROW($EC121)),$EB121,$EB$2&ROW($EB121)),$EA121,$EA$2&ROW($EA121)),$DZ121,$DZ$2&ROW($DZ121)),$DY121,$DY$2&ROW($DY121)),$DX121,$DX$2&ROW($DX121)),$DW121,$DW$2&ROW($DW121)),$DV121,$DV$2&ROW($DV121)),$DU121,$DU$2&ROW($DU121)),$DT121,$DT$2&ROW($DT121)),$DS121,$DS$2&ROW($DS121)))","v":0},{"$f":"IF(AB121=\"\",0,\"X=\"&SUBSTITUTE(SUBSTITUTE(SUBSTITUTE(SUBSTITUTE(SUBSTITUTE(SUBSTITUTE(SUBSTITUTE(SUBSTITUTE(SUBSTITUTE(SUBSTITUTE(SUBSTITUTE(SUBSTITUTE(AB121,$ED121,$ED$2&ROW($ED121)),$EC121,$EC$2&ROW($EC121)),$EB121,$EB$2&ROW($EB121)),$EA121,$EA$2&ROW($EA121)),$DZ121,$DZ$2&ROW($DZ121)),$DY121,$DY$2&ROW($DY121)),$DX121,$DX$2&ROW($DX121)),$DW121,$DW$2&ROW($DW121)),$DV121,$DV$2&ROW($DV121)),$DU121,$DU$2&ROW($DU121)),$DT121,$DT$2&ROW($DT121)),$DS121,$DS$2&ROW($DS121)))","v":0},null,null,"{Factor:WinterCF}","{Factor:SummerCF}",{"$f":"IFERROR(INDEX($EG121:$IV121,MATCH(0,COUNTIF($DR121:DT121,$EG121:$IV121),0)),\"\")","v":"{Weekly Hrs of Operation}"},{"$f":"IFERROR(INDEX($EG121:$IV121,MATCH(0,COUNTIF($DR121:DU121,$EG121:$IV121),0)),\"\")","v":"{Weeks Per Year}"},{"$f":"IFERROR(INDEX($EG121:$IV121,MATCH(0,COUNTIF($DR121:DV121,$EG121:$IV121),0)),\"\")","v":"{Measure:Quantity}"},{"$f":"IFERROR(INDEX($EG121:$IV121,MATCH(0,COUNTIF($DR121:DW121,$EG121:$IV121),0)),\"\")","v":"{System Compressor (HP)}"},{"$f":"IFERROR(INDEX($EG121:$IV121,MATCH(0,COUNTIF($DR121:DX121,$EG121:$IV121),0)),\"\")","v":""},{"$f":"IFERROR(INDEX($EG121:$IV121,MATCH(0,COUNTIF($DR121:DY121,$EG121:$IV121),0)),\"\")","v":""},{"$f":"IFERROR(INDEX($EG121:$IV121,MATCH(0,COUNTIF($DR121:DZ121,$EG121:$IV121),0)),\"\")","v":""},{"$f":"IFERROR(INDEX($EG121:$IV121,MATCH(0,COUNTIF($DR121:EA121,$EG121:$IV121),0)),\"\")","v":""},{"$f":"IFERROR(INDEX($EG121:$IV121,MATCH(0,COUNTIF($DR121:EB121,$EG121:$IV121),0)),\"\")","v":""},{"$f":"IFERROR(INDEX($EG121:$IV121,MATCH(0,COUNTIF($DR121:EC121,$EG121:$IV121),0)),\"\")","v":""},null,null,{"$f":"IFERROR(MID($G121,FIND(CHAR(160),SUBSTITUTE($G121,\"{\",CHAR(160),EG$1)),FIND(CHAR(160),SUBSTITUTE($G121,\"}\",CHAR(160),EG$1))-FIND(CHAR(160),SUBSTITUTE($G121,\"{\",CHAR(160),EG$1))+1),\"\")","v":""},{"$f":"IFERROR(MID($G121,FIND(CHAR(160),SUBSTITUTE($G121,\"{\",CHAR(160),EH$1)),FIND(CHAR(160),SUBSTITUTE($G121,\"}\",CHAR(160),EH$1))-FIND(CHAR(160),SUBSTITUTE($G121,\"{\",CHAR(160),EH$1))+1),\"\")","v":""},{"$f":"IFERROR(MID($G121,FIND(CHAR(160),SUBSTITUTE($G121,\"{\",CHAR(160),EI$1)),FIND(CHAR(160),SUBSTITUTE($G121,\"}\",CHAR(160),EI$1))-FIND(CHAR(160),SUBSTITUTE($G121,\"{\",CHAR(160),EI$1))+1),\"\")","v":""},{"$f":"IFERROR(MID($G121,FIND(CHAR(160),SUBSTITUTE($G121,\"{\",CHAR(160),EJ$1)),FIND(CHAR(160),SUBSTITUTE($G121,\"}\",CHAR(160),EJ$1))-FIND(CHAR(160),SUBSTITUTE($G121,\"{\",CHAR(160),EJ$1))+1),\"\")","v":""},{"$f":"IFERROR(MID($G121,FIND(CHAR(160),SUBSTITUTE($G121,\"{\",CHAR(160),EK$1)),FIND(CHAR(160),SUBSTITUTE($G121,\"}\",CHAR(160),EK$1))-FIND(CHAR(160),SUBSTITUTE($G121,\"{\",CHAR(160),EK$1))+1),\"\")","v":""},{"$f":"IFERROR(MID($G121,FIND(CHAR(160),SUBSTITUTE($G121,\"{\",CHAR(160),EL$1)),FIND(CHAR(160),SUBSTITUTE($G121,\"}\",CHAR(160),EL$1))-FIND(CHAR(160),SUBSTITUTE($G121,\"{\",CHAR(160),EL$1))+1),\"\")","v":""},{"$f":"IFERROR(MID($G121,FIND(CHAR(160),SUBSTITUTE($G121,\"{\",CHAR(160),EM$1)),FIND(CHAR(160),SUBSTITUTE($G121,\"}\",CHAR(160),EM$1))-FIND(CHAR(160),SUBSTITUTE($G121,\"{\",CHAR(160),EM$1))+1),\"\")","v":""},{"$f":"IFERROR(MID($G121,FIND(CHAR(160),SUBSTITUTE($G121,\"{\",CHAR(160),EN$1)),FIND(CHAR(160),SUBSTITUTE($G121,\"}\",CHAR(160),EN$1))-FIND(CHAR(160),SUBSTITUTE($G121,\"{\",CHAR(160),EN$1))+1),\"\")","v":""},{"$f":"IFERROR(MID($G121,FIND(CHAR(160),SUBSTITUTE($G121,\"{\",CHAR(160),EO$1)),FIND(CHAR(160),SUBSTITUTE($G121,\"}\",CHAR(160),EO$1))-FIND(CHAR(160),SUBSTITUTE($G121,\"{\",CHAR(160),EO$1))+1),\"\")","v":""},{"$f":"IFERROR(MID($G121,FIND(CHAR(160),SUBSTITUTE($G121,\"{\",CHAR(160),EP$1)),FIND(CHAR(160),SUBSTITUTE($G121,\"}\",CHAR(160),EP$1))-FIND(CHAR(160),SUBSTITUTE($G121,\"{\",CHAR(160),EP$1))+1),\"\")","v":""},{"$f":"IFERROR(MID($J121,FIND(CHAR(160),SUBSTITUTE($J121,\"{\",CHAR(160),EQ$1)),FIND(CHAR(160),SUBSTITUTE($J121,\"}\",CHAR(160),EQ$1))-FIND(CHAR(160),SUBSTITUTE($J121,\"{\",CHAR(160),EQ$1))+1),\"\")","v":""},{"$f":"IFERROR(MID($J121,FIND(CHAR(160),SUBSTITUTE($J121,\"{\",CHAR(160),ER$1)),FIND(CHAR(160),SUBSTITUTE($J121,\"}\",CHAR(160),ER$1))-FIND(CHAR(160),SUBSTITUTE($J121,\"{\",CHAR(160),ER$1))+1),\"\")","v":""},{"$f":"IFERROR(MID($J121,FIND(CHAR(160),SUBSTITUTE($J121,\"{\",CHAR(160),ES$1)),FIND(CHAR(160),SUBSTITUTE($J121,\"}\",CHAR(160),ES$1))-FIND(CHAR(160),SUBSTITUTE($J121,\"{\",CHAR(160),ES$1))+1),\"\")","v":""},{"$f":"IFERROR(MID($J121,FIND(CHAR(160),SUBSTITUTE($J121,\"{\",CHAR(160),ET$1)),FIND(CHAR(160),SUBSTITUTE($J121,\"}\",CHAR(160),ET$1))-FIND(CHAR(160),SUBSTITUTE($J121,\"{\",CHAR(160),ET$1))+1),\"\")","v":""},{"$f":"IFERROR(MID($J121,FIND(CHAR(160),SUBSTITUTE($J121,\"{\",CHAR(160),EU$1)),FIND(CHAR(160),SUBSTITUTE($J121,\"}\",CHAR(160),EU$1))-FIND(CHAR(160),SUBSTITUTE($J121,\"{\",CHAR(160),EU$1))+1),\"\")","v":""},{"$f":"IFERROR(MID($J121,FIND(CHAR(160),SUBSTITUTE($J121,\"{\",CHAR(160),EV$1)),FIND(CHAR(160),SUBSTITUTE($J121,\"}\",CHAR(160),EV$1))-FIND(CHAR(160),SUBSTITUTE($J121,\"{\",CHAR(160),EV$1))+1),\"\")","v":""},{"$f":"IFERROR(MID($J121,FIND(CHAR(160),SUBSTITUTE($J121,\"{\",CHAR(160),EW$1)),FIND(CHAR(160),SUBSTITUTE($J121,\"}\",CHAR(160),EW$1))-FIND(CHAR(160),SUBSTITUTE($J121,\"{\",CHAR(160),EW$1))+1),\"\")","v":""},{"$f":"IFERROR(MID($J121,FIND(CHAR(160),SUBSTITUTE($J121,\"{\",CHAR(160),EX$1)),FIND(CHAR(160),SUBSTITUTE($J121,\"}\",CHAR(160),EX$1))-FIND(CHAR(160),SUBSTITUTE($J121,\"{\",CHAR(160),EX$1))+1),\"\")","v":""},{"$f":"IFERROR(MID($J121,FIND(CHAR(160),SUBSTITUTE($J121,\"{\",CHAR(160),EY$1)),FIND(CHAR(160),SUBSTITUTE($J121,\"}\",CHAR(160),EY$1))-FIND(CHAR(160),SUBSTITUTE($J121,\"{\",CHAR(160),EY$1))+1),\"\")","v":""},{"$f":"IFERROR(MID($J121,FIND(CHAR(160),SUBSTITUTE($J121,\"{\",CHAR(160),EZ$1)),FIND(CHAR(160),SUBSTITUTE($J121,\"}\",CHAR(160),EZ$1))-FIND(CHAR(160),SUBSTITUTE($J121,\"{\",CHAR(160),EZ$1))+1),\"\")","v":""},{"$f":"IFERROR(MID($J121,FIND(CHAR(160),SUBSTITUTE($J121,\"{\",CHAR(160),FA$1)),FIND(CHAR(160),SUBSTITUTE($J121,\"}\",CHAR(160),FA$1))-FIND(CHAR(160),SUBSTITUTE($J121,\"{\",CHAR(160),FA$1))+1),\"\")","v":""},{"$f":"IFERROR(MID($J121,FIND(CHAR(160),SUBSTITUTE($J121,\"{\",CHAR(160),FB$1)),FIND(CHAR(160),SUBSTITUTE($J121,\"}\",CHAR(160),FB$1))-FIND(CHAR(160),SUBSTITUTE($J121,\"{\",CHAR(160),FB$1))+1),\"\")","v":""},{"$f":"IFERROR(MID($O121,FIND(CHAR(160),SUBSTITUTE($O121,\"{\",CHAR(160),FC$1)),FIND(CHAR(160),SUBSTITUTE($O121,\"}\",CHAR(160),FC$1))-FIND(CHAR(160),SUBSTITUTE($O121,\"{\",CHAR(160),FC$1))+1),\"\")","v":"{Weekly Hrs of Operation}"},{"$f":"IFERROR(MID($O121,FIND(CHAR(160),SUBSTITUTE($O121,\"{\",CHAR(160),FD$1)),FIND(CHAR(160),SUBSTITUTE($O121,\"}\",CHAR(160),FD$1))-FIND(CHAR(160),SUBSTITUTE($O121,\"{\",CHAR(160),FD$1))+1),\"\")","v":"{Weeks Per Year}"},{"$f":"IFERROR(MID($O121,FIND(CHAR(160),SUBSTITUTE($O121,\"{\",CHAR(160),FE$1)),FIND(CHAR(160),SUBSTITUTE($O121,\"}\",CHAR(160),FE$1))-FIND(CHAR(160),SUBSTITUTE($O121,\"{\",CHAR(160),FE$1))+1),\"\")","v":""},{"$f":"IFERROR(MID($O121,FIND(CHAR(160),SUBSTITUTE($O121,\"{\",CHAR(160),FF$1)),FIND(CHAR(160),SUBSTITUTE($O121,\"}\",CHAR(160),FF$1))-FIND(CHAR(160),SUBSTITUTE($O121,\"{\",CHAR(160),FF$1))+1),\"\")","v":""},{"$f":"IFERROR(MID($O121,FIND(CHAR(160),SUBSTITUTE($O121,\"{\",CHAR(160),FG$1)),FIND(CHAR(160),SUBSTITUTE($O121,\"}\",CHAR(160),FG$1))-FIND(CHAR(160),SUBSTITUTE($O121,\"{\",CHAR(160),FG$1))+1),\"\")","v":""},{"$f":"IFERROR(MID($O121,FIND(CHAR(160),SUBSTITUTE($O121,\"{\",CHAR(160),FH$1)),FIND(CHAR(160),SUBSTITUTE($O121,\"}\",CHAR(160),FH$1))-FIND(CHAR(160),SUBSTITUTE($O121,\"{\",CHAR(160),FH$1))+1),\"\")","v":""},{"$f":"IFERROR(MID($O121,FIND(CHAR(160),SUBSTITUTE($O121,\"{\",CHAR(160),FI$1)),FIND(CHAR(160),SUBSTITUTE($O121,\"}\",CHAR(160),FI$1))-FIND(CHAR(160),SUBSTITUTE($O121,\"{\",CHAR(160),FI$1))+1),\"\")","v":""},{"$f":"IFERROR(MID($O121,FIND(CHAR(160),SUBSTITUTE($O121,\"{\",CHAR(160),FJ$1)),FIND(CHAR(160),SUBSTITUTE($O121,\"}\",CHAR(160),FJ$1))-FIND(CHAR(160),SUBSTITUTE($O121,\"{\",CHAR(160),FJ$1))+1),\"\")","v":""},{"$f":"IFERROR(MID($O121,FIND(CHAR(160),SUBSTITUTE($O121,\"{\",CHAR(160),FK$1)),FIND(CHAR(160),SUBSTITUTE($O121,\"}\",CHAR(160),FK$1))-FIND(CHAR(160),SUBSTITUTE($O121,\"{\",CHAR(160),FK$1))+1),\"\")","v":"{Measure:Quantity}"},{"$f":"IFERROR(MID($O121,FIND(CHAR(160),SUBSTITUTE($O121,\"{\",CHAR(160),FL$1)),FIND(CHAR(160),SUBSTITUTE($O121,\"}\",CHAR(160),FL$1))-FIND(CHAR(160),SUBSTITUTE($O121,\"{\",CHAR(160),FL$1))+1),\"\")","v":"{System Compressor (HP)}"},{"$f":"IFERROR(MID($R121,FIND(CHAR(160),SUBSTITUTE($R121,\"{\",CHAR(160),FM$1)),FIND(CHAR(160),SUBSTITUTE($R121,\"}\",CHAR(160),FM$1))-FIND(CHAR(160),SUBSTITUTE($R121,\"{\",CHAR(160),FM$1))+1),\"\")","v":""},{"$f":"IFERROR(MID($R121,FIND(CHAR(160),SUBSTITUTE($R121,\"{\",CHAR(160),FN$1)),FIND(CHAR(160),SUBSTITUTE($R121,\"}\",CHAR(160),FN$1))-FIND(CHAR(160),SUBSTITUTE($R121,\"{\",CHAR(160),FN$1))+1),\"\")","v":""},{"$f":"IFERROR(MID($R121,FIND(CHAR(160),SUBSTITUTE($R121,\"{\",CHAR(160),FO$1)),FIND(CHAR(160),SUBSTITUTE($R121,\"}\",CHAR(160),FO$1))-FIND(CHAR(160),SUBSTITUTE($R121,\"{\",CHAR(160),FO$1))+1),\"\")","v":""},{"$f":"IFERROR(MID($R121,FIND(CHAR(160),SUBSTITUTE($R121,\"{\",CHAR(160),FP$1)),FIND(CHAR(160),SUBSTITUTE($R121,\"}\",CHAR(160),FP$1))-FIND(CHAR(160),SUBSTITUTE($R121,\"{\",CHAR(160),FP$1))+1),\"\")","v":""},{"$f":"IFERROR(MID($R121,FIND(CHAR(160),SUBSTITUTE($R121,\"{\",CHAR(160),FQ$1)),FIND(CHAR(160),SUBSTITUTE($R121,\"}\",CHAR(160),FQ$1))-FIND(CHAR(160),SUBSTITUTE($R121,\"{\",CHAR(160),FQ$1))+1),\"\")","v":""},{"$f":"IFERROR(MID($R121,FIND(CHAR(160),SUBSTITUTE($R121,\"{\",CHAR(160),FR$1)),FIND(CHAR(160),SUBSTITUTE($R121,\"}\",CHAR(160),FR$1))-FIND(CHAR(160),SUBSTITUTE($R121,\"{\",CHAR(160),FR$1))+1),\"\")","v":""},{"$f":"IFERROR(MID($R121,FIND(CHAR(160),SUBSTITUTE($R121,\"{\",CHAR(160),FS$1)),FIND(CHAR(160),SUBSTITUTE($R121,\"}\",CHAR(160),FS$1))-FIND(CHAR(160),SUBSTITUTE($R121,\"{\",CHAR(160),FS$1))+1),\"\")","v":""},{"$f":"IFERROR(MID($R121,FIND(CHAR(160),SUBSTITUTE($R121,\"{\",CHAR(160),FT$1)),FIND(CHAR(160),SUBSTITUTE($R121,\"}\",CHAR(160),FT$1))-FIND(CHAR(160),SUBSTITUTE($R121,\"{\",CHAR(160),FT$1))+1),\"\")","v":""},{"$f":"IFERROR(MID($R121,FIND(CHAR(160),SUBSTITUTE($R121,\"{\",CHAR(160),FU$1)),FIND(CHAR(160),SUBSTITUTE($R121,\"}\",CHAR(160),FU$1))-FIND(CHAR(160),SUBSTITUTE($R121,\"{\",CHAR(160),FU$1))+1),\"\")","v":"{Measure:Quantity}"},{"$f":"IFERROR(MID($R121,FIND(CHAR(160),SUBSTITUTE($R121,\"{\",CHAR(160),FV$1)),FIND(CHAR(160),SUBSTITUTE($R121,\"}\",CHAR(160),FV$1))-FIND(CHAR(160),SUBSTITUTE($R121,\"{\",CHAR(160),FV$1))+1),\"\")","v":"{System Compressor (HP)}"},{"$f":"IFERROR(MID($U121,FIND(CHAR(160),SUBSTITUTE($U121,\"{\",CHAR(160),FW$1)),FIND(CHAR(160),SUBSTITUTE($U121,\"}\",CHAR(160),FW$1))-FIND(CHAR(160),SUBSTITUTE($U121,\"{\",CHAR(160),FW$1))+1),\"\")","v":"{Factor:WinterCF}"},{"$f":"IFERROR(MID($U121,FIND(CHAR(160),SUBSTITUTE($U121,\"{\",CHAR(160),FX$1)),FIND(CHAR(160),SUBSTITUTE($U121,\"}\",CHAR(160),FX$1))-FIND(CHAR(160),SUBSTITUTE($U121,\"{\",CHAR(160),FX$1))+1),\"\")","v":""},{"$f":"IFERROR(MID($U121,FIND(CHAR(160),SUBSTITUTE($U121,\"{\",CHAR(160),FY$1)),FIND(CHAR(160),SUBSTITUTE($U121,\"}\",CHAR(160),FY$1))-FIND(CHAR(160),SUBSTITUTE($U121,\"{\",CHAR(160),FY$1))+1),\"\")","v":""},{"$f":"IFERROR(MID($U121,FIND(CHAR(160),SUBSTITUTE($U121,\"{\",CHAR(160),FZ$1)),FIND(CHAR(160),SUBSTITUTE($U121,\"}\",CHAR(160),FZ$1))-FIND(CHAR(160),SUBSTITUTE($U121,\"{\",CHAR(160),FZ$1))+1),\"\")","v":""},{"$f":"IFERROR(MID($U121,FIND(CHAR(160),SUBSTITUTE($U121,\"{\",CHAR(160),GA$1)),FIND(CHAR(160),SUBSTITUTE($U121,\"}\",CHAR(160),GA$1))-FIND(CHAR(160),SUBSTITUTE($U121,\"{\",CHAR(160),GA$1))+1),\"\")","v":""},{"$f":"IFERROR(MID($U121,FIND(CHAR(160),SUBSTITUTE($U121,\"{\",CHAR(160),GB$1)),FIND(CHAR(160),SUBSTITUTE($U121,\"}\",CHAR(160),GB$1))-FIND(CHAR(160),SUBSTITUTE($U121,\"{\",CHAR(160),GB$1))+1),\"\")","v":""},{"$f":"IFERROR(MID($U121,FIND(CHAR(160),SUBSTITUTE($U121,\"{\",CHAR(160),GC$1)),FIND(CHAR(160),SUBSTITUTE($U121,\"}\",CHAR(160),GC$1))-FIND(CHAR(160),SUBSTITUTE($U121,\"{\",CHAR(160),GC$1))+1),\"\")","v":""},{"$f":"IFERROR(MID($U121,FIND(CHAR(160),SUBSTITUTE($U121,\"{\",CHAR(160),GD$1)),FIND(CHAR(160),SUBSTITUTE($U121,\"}\",CHAR(160),GD$1))-FIND(CHAR(160),SUBSTITUTE($U121,\"{\",CHAR(160),GD$1))+1),\"\")","v":""},{"$f":"IFERROR(MID($U121,FIND(CHAR(160),SUBSTITUTE($U121,\"{\",CHAR(160),GE$1)),FIND(CHAR(160),SUBSTITUTE($U121,\"}\",CHAR(160),GE$1))-FIND(CHAR(160),SUBSTITUTE($U121,\"{\",CHAR(160),GE$1))+1),\"\")","v":"{Measure:Quantity}"},{"$f":"IFERROR(MID($U121,FIND(CHAR(160),SUBSTITUTE($U121,\"{\",CHAR(160),GF$1)),FIND(CHAR(160),SUBSTITUTE($U121,\"}\",CHAR(160),GF$1))-FIND(CHAR(160),SUBSTITUTE($U121,\"{\",CHAR(160),GF$1))+1),\"\")","v":"{System Compressor (HP)}"},{"$f":"IFERROR(MID($V121,FIND(CHAR(160),SUBSTITUTE($V121,\"{\",CHAR(160),GG$1)),FIND(CHAR(160),SUBSTITUTE($V121,\"}\",CHAR(160),GG$1))-FIND(CHAR(160),SUBSTITUTE($V121,\"{\",CHAR(160),GG$1))+1),\"\")","v":"{Factor:SummerCF}"},{"$f":"IFERROR(MID($V121,FIND(CHAR(160),SUBSTITUTE($V121,\"{\",CHAR(160),GH$1)),FIND(CHAR(160),SUBSTITUTE($V121,\"}\",CHAR(160),GH$1))-FIND(CHAR(160),SUBSTITUTE($V121,\"{\",CHAR(160),GH$1))+1),\"\")","v":""},{"$f":"IFERROR(MID($V121,FIND(CHAR(160),SUBSTITUTE($V121,\"{\",CHAR(160),GI$1)),FIND(CHAR(160),SUBSTITUTE($V121,\"}\",CHAR(160),GI$1))-FIND(CHAR(160),SUBSTITUTE($V121,\"{\",CHAR(160),GI$1))+1),\"\")","v":""},{"$f":"IFERROR(MID($V121,FIND(CHAR(160),SUBSTITUTE($V121,\"{\",CHAR(160),GJ$1)),FIND(CHAR(160),SUBSTITUTE($V121,\"}\",CHAR(160),GJ$1))-FIND(CHAR(160),SUBSTITUTE($V121,\"{\",CHAR(160),GJ$1))+1),\"\")","v":""},{"$f":"IFERROR(MID($V121,FIND(CHAR(160),SUBSTITUTE($V121,\"{\",CHAR(160),GK$1)),FIND(CHAR(160),SUBSTITUTE($V121,\"}\",CHAR(160),GK$1))-FIND(CHAR(160),SUBSTITUTE($V121,\"{\",CHAR(160),GK$1))+1),\"\")","v":""},{"$f":"IFERROR(MID($V121,FIND(CHAR(160),SUBSTITUTE($V121,\"{\",CHAR(160),GL$1)),FIND(CHAR(160),SUBSTITUTE($V121,\"}\",CHAR(160),GL$1))-FIND(CHAR(160),SUBSTITUTE($V121,\"{\",CHAR(160),GL$1))+1),\"\")","v":""},{"$f":"IFERROR(MID($V121,FIND(CHAR(160),SUBSTITUTE($V121,\"{\",CHAR(160),GM$1)),FIND(CHAR(160),SUBSTITUTE($V121,\"}\",CHAR(160),GM$1))-FIND(CHAR(160),SUBSTITUTE($V121,\"{\",CHAR(160),GM$1))+1),\"\")","v":""},{"$f":"IFERROR(MID($V121,FIND(CHAR(160),SUBSTITUTE($V121,\"{\",CHAR(160),GN$1)),FIND(CHAR(160),SUBSTITUTE($V121,\"}\",CHAR(160),GN$1))-FIND(CHAR(160),SUBSTITUTE($V121,\"{\",CHAR(160),GN$1))+1),\"\")","v":""},{"$f":"IFERROR(MID($V121,FIND(CHAR(160),SUBSTITUTE($V121,\"{\",CHAR(160),GO$1)),FIND(CHAR(160),SUBSTITUTE($V121,\"}\",CHAR(160),GO$1))-FIND(CHAR(160),SUBSTITUTE($V121,\"{\",CHAR(160),GO$1))+1),\"\")","v":"{Measure:Quantity}"},{"$f":"IFERROR(MID($V121,FIND(CHAR(160),SUBSTITUTE($V121,\"{\",CHAR(160),GP$1)),FIND(CHAR(160),SUBSTITUTE($V121,\"}\",CHAR(160),GP$1))-FIND(CHAR(160),SUBSTITUTE($V121,\"{\",CHAR(160),GP$1))+1),\"\")","v":"{System Compressor (HP)}"},{"$f":"IFERROR(MID($W121,FIND(CHAR(160),SUBSTITUTE($W121,\"{\",CHAR(160),GQ$1)),FIND(CHAR(160),SUBSTITUTE($W121,\"}\",CHAR(160),GQ$1))-FIND(CHAR(160),SUBSTITUTE($W121,\"{\",CHAR(160),GQ$1))+1),\"\")","v":""},{"$f":"IFERROR(MID($W121,FIND(CHAR(160),SUBSTITUTE($W121,\"{\",CHAR(160),GR$1)),FIND(CHAR(160),SUBSTITUTE($W121,\"}\",CHAR(160),GR$1))-FIND(CHAR(160),SUBSTITUTE($W121,\"{\",CHAR(160),GR$1))+1),\"\")","v":""},{"$f":"IFERROR(MID($W121,FIND(CHAR(160),SUBSTITUTE($W121,\"{\",CHAR(160),GS$1)),FIND(CHAR(160),SUBSTITUTE($W121,\"}\",CHAR(160),GS$1))-FIND(CHAR(160),SUBSTITUTE($W121,\"{\",CHAR(160),GS$1))+1),\"\")","v":""},{"$f":"IFERROR(MID($W121,FIND(CHAR(160),SUBSTITUTE($W121,\"{\",CHAR(160),GT$1)),FIND(CHAR(160),SUBSTITUTE($W121,\"}\",CHAR(160),GT$1))-FIND(CHAR(160),SUBSTITUTE($W121,\"{\",CHAR(160),GT$1))+1),\"\")","v":""},{"$f":"IFERROR(MID($W121,FIND(CHAR(160),SUBSTITUTE($W121,\"{\",CHAR(160),GU$1)),FIND(CHAR(160),SUBSTITUTE($W121,\"}\",CHAR(160),GU$1))-FIND(CHAR(160),SUBSTITUTE($W121,\"{\",CHAR(160),GU$1))+1),\"\")","v":""},{"$f":"IFERROR(MID($W121,FIND(CHAR(160),SUBSTITUTE($W121,\"{\",CHAR(160),GV$1)),FIND(CHAR(160),SUBSTITUTE($W121,\"}\",CHAR(160),GV$1))-FIND(CHAR(160),SUBSTITUTE($W121,\"{\",CHAR(160),GV$1))+1),\"\")","v":""},{"$f":"IFERROR(MID($W121,FIND(CHAR(160),SUBSTITUTE($W121,\"{\",CHAR(160),GW$1)),FIND(CHAR(160),SUBSTITUTE($W121,\"}\",CHAR(160),GW$1))-FIND(CHAR(160),SUBSTITUTE($W121,\"{\",CHAR(160),GW$1))+1),\"\")","v":""},{"$f":"IFERROR(MID($W121,FIND(CHAR(160),SUBSTITUTE($W121,\"{\",CHAR(160),GX$1)),FIND(CHAR(160),SUBSTITUTE($W121,\"}\",CHAR(160),GX$1))-FIND(CHAR(160),SUBSTITUTE($W121,\"{\",CHAR(160),GX$1))+1),\"\")","v":""},{"$f":"IFERROR(MID($W121,FIND(CHAR(160),SUBSTITUTE($W121,\"{\",CHAR(160),GY$1)),FIND(CHAR(160),SUBSTITUTE($W121,\"}\",CHAR(160),GY$1))-FIND(CHAR(160),SUBSTITUTE($W121,\"{\",CHAR(160),GY$1))+1),\"\")","v":""},{"$f":"IFERROR(MID($W121,FIND(CHAR(160),SUBSTITUTE($W121,\"{\",CHAR(160),GZ$1)),FIND(CHAR(160),SUBSTITUTE($W121,\"}\",CHAR(160),GZ$1))-FIND(CHAR(160),SUBSTITUTE($W121,\"{\",CHAR(160),GZ$1))+1),\"\")","v":""},{"$f":"IFERROR(MID($X121,FIND(CHAR(160),SUBSTITUTE($X121,\"{\",CHAR(160),HA$1)),FIND(CHAR(160),SUBSTITUTE($X121,\"}\",CHAR(160),HA$1))-FIND(CHAR(160),SUBSTITUTE($X121,\"{\",CHAR(160),HA$1))+1),\"\")","v":""},{"$f":"IFERROR(MID($X121,FIND(CHAR(160),SUBSTITUTE($X121,\"{\",CHAR(160),HB$1)),FIND(CHAR(160),SUBSTITUTE($X121,\"}\",CHAR(160),HB$1))-FIND(CHAR(160),SUBSTITUTE($X121,\"{\",CHAR(160),HB$1))+1),\"\")","v":""},{"$f":"IFERROR(MID($X121,FIND(CHAR(160),SUBSTITUTE($X121,\"{\",CHAR(160),HC$1)),FIND(CHAR(160),SUBSTITUTE($X121,\"}\",CHAR(160),HC$1))-FIND(CHAR(160),SUBSTITUTE($X121,\"{\",CHAR(160),HC$1))+1),\"\")","v":""},{"$f":"IFERROR(MID($X121,FIND(CHAR(160),SUBSTITUTE($X121,\"{\",CHAR(160),HD$1)),FIND(CHAR(160),SUBSTITUTE($X121,\"}\",CHAR(160),HD$1))-FIND(CHAR(160),SUBSTITUTE($X121,\"{\",CHAR(160),HD$1))+1),\"\")","v":""},{"$f":"IFERROR(MID($X121,FIND(CHAR(160),SUBSTITUTE($X121,\"{\",CHAR(160),HE$1)),FIND(CHAR(160),SUBSTITUTE($X121,\"}\",CHAR(160),HE$1))-FIND(CHAR(160),SUBSTITUTE($X121,\"{\",CHAR(160),HE$1))+1),\"\")","v":""},{"$f":"IFERROR(MID($X121,FIND(CHAR(160),SUBSTITUTE($X121,\"{\",CHAR(160),HF$1)),FIND(CHAR(160),SUBSTITUTE($X121,\"}\",CHAR(160),HF$1))-FIND(CHAR(160),SUBSTITUTE($X121,\"{\",CHAR(160),HF$1))+1),\"\")","v":""},{"$f":"IFERROR(MID($X121,FIND(CHAR(160),SUBSTITUTE($X121,\"{\",CHAR(160),HG$1)),FIND(CHAR(160),SUBSTITUTE($X121,\"}\",CHAR(160),HG$1))-FIND(CHAR(160),SUBSTITUTE($X121,\"{\",CHAR(160),HG$1))+1),\"\")","v":""},{"$f":"IFERROR(MID($X121,FIND(CHAR(160),SUBSTITUTE($X121,\"{\",CHAR(160),HH$1)),FIND(CHAR(160),SUBSTITUTE($X121,\"}\",CHAR(160),HH$1))-FIND(CHAR(160),SUBSTITUTE($X121,\"{\",CHAR(160),HH$1))+1),\"\")","v":""},{"$f":"IFERROR(MID($X121,FIND(CHAR(160),SUBSTITUTE($X121,\"{\",CHAR(160),HI$1)),FIND(CHAR(160),SUBSTITUTE($X121,\"}\",CHAR(160),HI$1))-FIND(CHAR(160),SUBSTITUTE($X121,\"{\",CHAR(160),HI$1))+1),\"\")","v":""},{"$f":"IFERROR(MID($X121,FIND(CHAR(160),SUBSTITUTE($X121,\"{\",CHAR(160),HJ$1)),FIND(CHAR(160),SUBSTITUTE($X121,\"}\",CHAR(160),HJ$1))-FIND(CHAR(160),SUBSTITUTE($X121,\"{\",CHAR(160),HJ$1))+1),\"\")","v":""},{"$f":"IFERROR(MID($Y121,FIND(CHAR(160),SUBSTITUTE($Y121,\"{\",CHAR(160),HK$1)),FIND(CHAR(160),SUBSTITUTE($Y121,\"}\",CHAR(160),HK$1))-FIND(CHAR(160),SUBSTITUTE($Y121,\"{\",CHAR(160),HK$1))+1),\"\")","v":""},{"$f":"IFERROR(MID($Y121,FIND(CHAR(160),SUBSTITUTE($Y121,\"{\",CHAR(160),HL$1)),FIND(CHAR(160),SUBSTITUTE($Y121,\"}\",CHAR(160),HL$1))-FIND(CHAR(160),SUBSTITUTE($Y121,\"{\",CHAR(160),HL$1))+1),\"\")","v":""},{"$f":"IFERROR(MID($Y121,FIND(CHAR(160),SUBSTITUTE($Y121,\"{\",CHAR(160),HM$1)),FIND(CHAR(160),SUBSTITUTE($Y121,\"}\",CHAR(160),HM$1))-FIND(CHAR(160),SUBSTITUTE($Y121,\"{\",CHAR(160),HM$1))+1),\"\")","v":""},{"$f":"IFERROR(MID($Y121,FIND(CHAR(160),SUBSTITUTE($Y121,\"{\",CHAR(160),HN$1)),FIND(CHAR(160),SUBSTITUTE($Y121,\"}\",CHAR(160),HN$1))-FIND(CHAR(160),SUBSTITUTE($Y121,\"{\",CHAR(160),HN$1))+1),\"\")","v":""},{"$f":"IFERROR(MID($Y121,FIND(CHAR(160),SUBSTITUTE($Y121,\"{\",CHAR(160),HO$1)),FIND(CHAR(160),SUBSTITUTE($Y121,\"}\",CHAR(160),HO$1))-FIND(CHAR(160),SUBSTITUTE($Y121,\"{\",CHAR(160),HO$1))+1),\"\")","v":""},{"$f":"IFERROR(MID($Y121,FIND(CHAR(160),SUBSTITUTE($Y121,\"{\",CHAR(160),HP$1)),FIND(CHAR(160),SUBSTITUTE($Y121,\"}\",CHAR(160),HP$1))-FIND(CHAR(160),SUBSTITUTE($Y121,\"{\",CHAR(160),HP$1))+1),\"\")","v":""},{"$f":"IFERROR(MID($Y121,FIND(CHAR(160),SUBSTITUTE($Y121,\"{\",CHAR(160),HQ$1)),FIND(CHAR(160),SUBSTITUTE($Y121,\"}\",CHAR(160),HQ$1))-FIND(CHAR(160),SUBSTITUTE($Y121,\"{\",CHAR(160),HQ$1))+1),\"\")","v":""},{"$f":"IFERROR(MID($Y121,FIND(CHAR(160),SUBSTITUTE($Y121,\"{\",CHAR(160),HR$1)),FIND(CHAR(160),SUBSTITUTE($Y121,\"}\",CHAR(160),HR$1))-FIND(CHAR(160),SUBSTITUTE($Y121,\"{\",CHAR(160),HR$1))+1),\"\")","v":""},{"$f":"IFERROR(MID($Y121,FIND(CHAR(160),SUBSTITUTE($Y121,\"{\",CHAR(160),HS$1)),FIND(CHAR(160),SUBSTITUTE($Y121,\"}\",CHAR(160),HS$1))-FIND(CHAR(160),SUBSTITUTE($Y121,\"{\",CHAR(160),HS$1))+1),\"\")","v":""},{"$f":"IFERROR(MID($Y121,FIND(CHAR(160),SUBSTITUTE($Y121,\"{\",CHAR(160),HT$1)),FIND(CHAR(160),SUBSTITUTE($Y121,\"}\",CHAR(160),HT$1))-FIND(CHAR(160),SUBSTITUTE($Y121,\"{\",CHAR(160),HT$1))+1),\"\")","v":""},{"$f":"IFERROR(MID($Z121,FIND(CHAR(160),SUBSTITUTE($Z121,\"{\",CHAR(160),HU$1)),FIND(CHAR(160),SUBSTITUTE($Z121,\"}\",CHAR(160),HU$1))-FIND(CHAR(160),SUBSTITUTE($Z121,\"{\",CHAR(160),HU$1))+1),\"\")","v":""},{"$f":"IFERROR(MID($Z121,FIND(CHAR(160),SUBSTITUTE($Z121,\"{\",CHAR(160),HV$1)),FIND(CHAR(160),SUBSTITUTE($Z121,\"}\",CHAR(160),HV$1))-FIND(CHAR(160),SUBSTITUTE($Z121,\"{\",CHAR(160),HV$1))+1),\"\")","v":""},{"$f":"IFERROR(MID($Z121,FIND(CHAR(160),SUBSTITUTE($Z121,\"{\",CHAR(160),HW$1)),FIND(CHAR(160),SUBSTITUTE($Z121,\"}\",CHAR(160),HW$1))-FIND(CHAR(160),SUBSTITUTE($Z121,\"{\",CHAR(160),HW$1))+1),\"\")","v":""},{"$f":"IFERROR(MID($Z121,FIND(CHAR(160),SUBSTITUTE($Z121,\"{\",CHAR(160),HX$1)),FIND(CHAR(160),SUBSTITUTE($Z121,\"}\",CHAR(160),HX$1))-FIND(CHAR(160),SUBSTITUTE($Z121,\"{\",CHAR(160),HX$1))+1),\"\")","v":""},{"$f":"IFERROR(MID($Z121,FIND(CHAR(160),SUBSTITUTE($Z121,\"{\",CHAR(160),HY$1)),FIND(CHAR(160),SUBSTITUTE($Z121,\"}\",CHAR(160),HY$1))-FIND(CHAR(160),SUBSTITUTE($Z121,\"{\",CHAR(160),HY$1))+1),\"\")","v":""},{"$f":"IFERROR(MID($Z121,FIND(CHAR(160),SUBSTITUTE($Z121,\"{\",CHAR(160),HZ$1)),FIND(CHAR(160),SUBSTITUTE($Z121,\"}\",CHAR(160),HZ$1))-FIND(CHAR(160),SUBSTITUTE($Z121,\"{\",CHAR(160),HZ$1))+1),\"\")","v":""},{"$f":"IFERROR(MID($Z121,FIND(CHAR(160),SUBSTITUTE($Z121,\"{\",CHAR(160),IA$1)),FIND(CHAR(160),SUBSTITUTE($Z121,\"}\",CHAR(160),IA$1))-FIND(CHAR(160),SUBSTITUTE($Z121,\"{\",CHAR(160),IA$1))+1),\"\")","v":""},{"$f":"IFERROR(MID($Z121,FIND(CHAR(160),SUBSTITUTE($Z121,\"{\",CHAR(160),IB$1)),FIND(CHAR(160),SUBSTITUTE($Z121,\"}\",CHAR(160),IB$1))-FIND(CHAR(160),SUBSTITUTE($Z121,\"{\",CHAR(160),IB$1))+1),\"\")","v":""},{"$f":"IFERROR(MID($Z121,FIND(CHAR(160),SUBSTITUTE($Z121,\"{\",CHAR(160),IC$1)),FIND(CHAR(160),SUBSTITUTE($Z121,\"}\",CHAR(160),IC$1))-FIND(CHAR(160),SUBSTITUTE($Z121,\"{\",CHAR(160),IC$1))+1),\"\")","v":""},{"$f":"IFERROR(MID($Z121,FIND(CHAR(160),SUBSTITUTE($Z121,\"{\",CHAR(160),ID$1)),FIND(CHAR(160),SUBSTITUTE($Z121,\"}\",CHAR(160),ID$1))-FIND(CHAR(160),SUBSTITUTE($Z121,\"{\",CHAR(160),ID$1))+1),\"\")","v":""},{"$f":"IFERROR(MID($AA121,FIND(CHAR(160),SUBSTITUTE($AA121,\"{\",CHAR(160),IE$1)),FIND(CHAR(160),SUBSTITUTE($AA121,\"}\",CHAR(160),IE$1))-FIND(CHAR(160),SUBSTITUTE($AA121,\"{\",CHAR(160),IE$1))+1),\"\")","v":""},{"$f":"IFERROR(MID($AA121,FIND(CHAR(160),SUBSTITUTE($AA121,\"{\",CHAR(160),IF$1)),FIND(CHAR(160),SUBSTITUTE($AA121,\"}\",CHAR(160),IF$1))-FIND(CHAR(160),SUBSTITUTE($AA121,\"{\",CHAR(160),IF$1))+1),\"\")","v":""},{"$f":"IFERROR(MID($AA121,FIND(CHAR(160),SUBSTITUTE($AA121,\"{\",CHAR(160),IG$1)),FIND(CHAR(160),SUBSTITUTE($AA121,\"}\",CHAR(160),IG$1))-FIND(CHAR(160),SUBSTITUTE($AA121,\"{\",CHAR(160),IG$1))+1),\"\")","v":""},{"$f":"IFERROR(MID($AA121,FIND(CHAR(160),SUBSTITUTE($AA121,\"{\",CHAR(160),IH$1)),FIND(CHAR(160),SUBSTITUTE($AA121,\"}\",CHAR(160),IH$1))-FIND(CHAR(160),SUBSTITUTE($AA121,\"{\",CHAR(160),IH$1))+1),\"\")","v":""},{"$f":"IFERROR(MID($AA121,FIND(CHAR(160),SUBSTITUTE($AA121,\"{\",CHAR(160),II$1)),FIND(CHAR(160),SUBSTITUTE($AA121,\"}\",CHAR(160),II$1))-FIND(CHAR(160),SUBSTITUTE($AA121,\"{\",CHAR(160),II$1))+1),\"\")","v":""},{"$f":"IFERROR(MID($AA121,FIND(CHAR(160),SUBSTITUTE($AA121,\"{\",CHAR(160),IJ$1)),FIND(CHAR(160),SUBSTITUTE($AA121,\"}\",CHAR(160),IJ$1))-FIND(CHAR(160),SUBSTITUTE($AA121,\"{\",CHAR(160),IJ$1))+1),\"\")","v":""},{"$f":"IFERROR(MID($AA121,FIND(CHAR(160),SUBSTITUTE($AA121,\"{\",CHAR(160),IK$1)),FIND(CHAR(160),SUBSTITUTE($AA121,\"}\",CHAR(160),IK$1))-FIND(CHAR(160),SUBSTITUTE($AA121,\"{\",CHAR(160),IK$1))+1),\"\")","v":""},{"$f":"IFERROR(MID($AA121,FIND(CHAR(160),SUBSTITUTE($AA121,\"{\",CHAR(160),IL$1)),FIND(CHAR(160),SUBSTITUTE($AA121,\"}\",CHAR(160),IL$1))-FIND(CHAR(160),SUBSTITUTE($AA121,\"{\",CHAR(160),IL$1))+1),\"\")","v":""},{"$f":"IFERROR(MID($AA121,FIND(CHAR(160),SUBSTITUTE($AA121,\"{\",CHAR(160),IM$1)),FIND(CHAR(160),SUBSTITUTE($AA121,\"}\",CHAR(160),IM$1))-FIND(CHAR(160),SUBSTITUTE($AA121,\"{\",CHAR(160),IM$1))+1),\"\")","v":""},{"$f":"IFERROR(MID($AA121,FIND(CHAR(160),SUBSTITUTE($AA121,\"{\",CHAR(160),IN$1)),FIND(CHAR(160),SUBSTITUTE($AA121,\"}\",CHAR(160),IN$1))-FIND(CHAR(160),SUBSTITUTE($AA121,\"{\",CHAR(160),IN$1))+1),\"\")","v":""},{"$f":"IFERROR(MID($AB121,FIND(CHAR(160),SUBSTITUTE($AB121,\"{\",CHAR(160),IO$1)),FIND(CHAR(160),SUBSTITUTE($AB121,\"}\",CHAR(160),IO$1))-FIND(CHAR(160),SUBSTITUTE($AB121,\"{\",CHAR(160),IO$1))+1),\"\")","v":""},{"$f":"IFERROR(MID($AB121,FIND(CHAR(160),SUBSTITUTE($AB121,\"{\",CHAR(160),IP$1)),FIND(CHAR(160),SUBSTITUTE($AB121,\"}\",CHAR(160),IP$1))-FIND(CHAR(160),SUBSTITUTE($AB121,\"{\",CHAR(160),IP$1))+1),\"\")","v":""},{"$f":"IFERROR(MID($AB121,FIND(CHAR(160),SUBSTITUTE($AB121,\"{\",CHAR(160),IQ$1)),FIND(CHAR(160),SUBSTITUTE($AB121,\"}\",CHAR(160),IQ$1))-FIND(CHAR(160),SUBSTITUTE($AB121,\"{\",CHAR(160),IQ$1))+1),\"\")","v":""},{"$f":"IFERROR(MID($AB121,FIND(CHAR(160),SUBSTITUTE($AB121,\"{\",CHAR(160),IR$1)),FIND(CHAR(160),SUBSTITUTE($AB121,\"}\",CHAR(160),IR$1))-FIND(CHAR(160),SUBSTITUTE($AB121,\"{\",CHAR(160),IR$1))+1),\"\")","v":""},{"$f":"IFERROR(MID($AB121,FIND(CHAR(160),SUBSTITUTE($AB121,\"{\",CHAR(160),IS$1)),FIND(CHAR(160),SUBSTITUTE($AB121,\"}\",CHAR(160),IS$1))-FIND(CHAR(160),SUBSTITUTE($AB121,\"{\",CHAR(160),IS$1))+1),\"\")","v":""},{"$f":"IFERROR(MID($AB121,FIND(CHAR(160),SUBSTITUTE($AB121,\"{\",CHAR(160),IT$1)),FIND(CHAR(160),SUBSTITUTE($AB121,\"}\",CHAR(160),IT$1))-FIND(CHAR(160),SUBSTITUTE($AB121,\"{\",CHAR(160),IT$1))+1),\"\")","v":""},{"$f":"IFERROR(MID($AB121,FIND(CHAR(160),SUBSTITUTE($AB121,\"{\",CHAR(160),IU$1)),FIND(CHAR(160),SUBSTITUTE($AB121,\"}\",CHAR(160),IU$1))-FIND(CHAR(160),SUBSTITUTE($AB121,\"{\",CHAR(160),IU$1))+1),\"\")","v":""},{"$f":"IFERROR(MID($AB121,FIND(CHAR(160),SUBSTITUTE($AB121,\"{\",CHAR(160),IV$1)),FIND(CHAR(160),SUBSTITUTE($AB121,\"}\",CHAR(160),IV$1))-FIND(CHAR(160),SUBSTITUTE($AB121,\"{\",CHAR(160),IV$1))+1),\"\")","v":""},{"$f":"IFERROR(MID($AB121,FIND(CHAR(160),SUBSTITUTE($AB121,\"{\",CHAR(160),IW$1)),FIND(CHAR(160),SUBSTITUTE($AB121,\"}\",CHAR(160),IW$1))-FIND(CHAR(160),SUBSTITUTE($AB121,\"{\",CHAR(160),IW$1))+1),\"\")","v":""},{"$f":"IFERROR(MID($AB121,FIND(CHAR(160),SUBSTITUTE($AB121,\"{\",CHAR(160),IX$1)),FIND(CHAR(160),SUBSTITUTE($AB121,\"}\",CHAR(160),IX$1))-FIND(CHAR(160),SUBSTITUTE($AB121,\"{\",CHAR(160),IX$1))+1),\"\")","v":""},null,{"$f":"10-COUNTIF(DU121:ED121,\"\")","v":4}]
["C&I Prescriptive Compressed Air Solutions","Receiver - C25 - Standard Receiver Size 400 Gallons","R - C25","2021-07-01","2022-06-30","Per Measure",2195,0,"Per Measure",1000,0,"2017-07-01","2022-06-30","Calculated","{Measure:Quantity} *{System Compressor (HP)} * 0.746 * 0.025 * {Weekly Hrs of Operation} * {Weeks Per Year}",1E-4,null,"{Measure:Quantity} *{System Compressor (HP)} * 0.746 * 0.025",null,null,"{Measure:Quantity} *{System Compressor (HP)} * 0.746 * 0.025 * {Factor:WinterCF}","{Measure:Quantity} *{System Compressor (HP)} * 0.746 * 0.025 * {Factor:SummerCF}",null,null,null,null,null,null,"2017-07-01","2022-06-30",10,0.7,0.91100000000000003,0.30399999999999999,0.36099999999999999,0.156,0.17899999999999999,1,1.1220000000000001,1,0.52,1.6E-2,null,{"$f":"DU122","v":"{Weekly Hrs of Operation}"},1,{"$f":"DV122","v":"{Weeks Per Year}"},40,{"$f":"DW122","v":"{Measure:Quantity}"},50,{"$f":"DX122","v":"{System Compressor (HP)}"},50,{"$f":"DY122","v":""},null,{"$f":"DZ122","v":""},null,{"$f":"EA122","v":""},null,{"$f":"EB122","v":""},null,{"$f":"EC122","v":""},null,{"$f":"ED122","v":""},null,{"$f":"AS122 *AU122 * 0.746 * 0.025 * AW122 * AY122","v":1864.9999999999998},{"$f":"0.0001","v":1E-4},0,{"$f":"AS122 *AU122 * 0.746 * 0.025","v":0.746},0,0,{"$f":"AS122 *AU122 * 0.746 * 0.025 * AF122","v":0.5222},{"$f":"AS122 *AU122 * 0.746 * 0.025 * AG122","v":0.67960600000000004},0,0,0,0,0,0,null,"Com","Default DR",{"$f":"Benefits(BL122,BR122,BS122,BT122,BU122,BV122,BW122,BX122,BY122,BZ122,AE122,AH122,AI122,AJ122,AK122,AL122,AM122,AN122,AO122,AP122,CA122,CB122)","v":2071.8321636653782},2299.4241644905346,0,0,0,0,0,0,0,{"$f":"SUMPRODUCT(CC122:CK122,--(CC122:CK122>0))","v":4371.2563281559123},{"$f":"-SUMPRODUCT(CC122:CK122,--(CC122:CK122<0))","v":0},null,{"$f":"2195","v":2195},null,null,{"$f":"CM122+CO122","v":2195},{"$f":"IF(NetOrGross=\"Net\",(1-AO122+AP122),1)","v":1},{"$f":"(SUMPRODUCT(CC122:CJ122,--(CC122:CJ122>0))+CN122)*CS122/((-SUMPRODUCT(CC122:CJ122,--(CC122:CJ122<0))+MAX(CO122,CV122)+CP122+CQ122)*CS122+IF(FRIncentives=\"Yes\",CV122*(1-CS122),0))","v":1.9914607417566799},22,{"$f":"1000","v":1000},null,"Electric","y",null,{"$f":"IF(F122=\"Manual Entry\",\"Manual\",IF(G122=\"\",0,\"X=\"&SUBSTITUTE(SUBSTITUTE(SUBSTITUTE(SUBSTITUTE(SUBSTITUTE(SUBSTITUTE(SUBSTITUTE(SUBSTITUTE(SUBSTITUTE(SUBSTITUTE(SUBSTITUTE(SUBSTITUTE(G122,$ED122,$ED$2&ROW($ED122)),$EC122,$EC$2&ROW($EC122)),$EB122,$EB$2&ROW($EB122)),$EA122,$EA$2&ROW($EA122)),$DZ122,$DZ$2&ROW($DZ122)),$DY122,$DY$2&ROW($DY122)),$DX122,$DX$2&ROW($DX122)),$DW122,$DW$2&ROW($DW122)),$DV122,$DV$2&ROW($DV122)),$DU122,$DU$2&ROW($DU122)),$DT122,$DT$2&ROW($DT122)),$DS122,$DS$2&ROW($DS122))))","v":"X=2195"},{"$f":"IF(I122=\"Manual Entry\",\"Manual\",IF(J122=\"\",0,\"X=\"&SUBSTITUTE(SUBSTITUTE(SUBSTITUTE(SUBSTITUTE(SUBSTITUTE(SUBSTITUTE(SUBSTITUTE(SUBSTITUTE(SUBSTITUTE(SUBSTITUTE(SUBSTITUTE(SUBSTITUTE(J122,$ED122,$ED$2&ROW($ED122)),$EC122,$EC$2&ROW($EC122)),$EB122,$EB$2&ROW($EB122)),$EA122,$EA$2&ROW($EA122)),$DZ122,$DZ$2&ROW($DZ122)),$DY122,$DY$2&ROW($DY122)),$DX122,$DX$2&ROW($DX122)),$DW122,$DW$2&ROW($DW122)),$DV122,$DV$2&ROW($DV122)),$DU122,$DU$2&ROW($DU122)),$DT122,$DT$2&ROW($DT122)),$DS122,$DS$2&ROW($DS122))))","v":"X=1000"},{"$f":"IF(O122=\"\",0,\"X=\"&SUBSTITUTE(SUBSTITUTE(SUBSTITUTE(SUBSTITUTE(SUBSTITUTE(SUBSTITUTE(SUBSTITUTE(SUBSTITUTE(SUBSTITUTE(SUBSTITUTE(SUBSTITUTE(SUBSTITUTE(O122,$ED122,$ED$2&ROW($ED122)),$EC122,$EC$2&ROW($EC122)),$EB122,$EB$2&ROW($EB122)),$EA122,$EA$2&ROW($EA122)),$DZ122,$DZ$2&ROW($DZ122)),$DY122,$DY$2&ROW($DY122)),$DX122,$DX$2&ROW($DX122)),$DW122,$DW$2&ROW($DW122)),$DV122,$DV$2&ROW($DV122)),$DU122,$DU$2&ROW($DU122)),$DT122,$DT$2&ROW($DT122)),$DS122,$DS$2&ROW($DS122)))","v":"X=AW122 *AY122 * 0.746 * 0.025 * AS122 * AU122"},{"$f":"IF(P122=\"\",0,\"X=\"&SUBSTITUTE(SUBSTITUTE(SUBSTITUTE(SUBSTITUTE(SUBSTITUTE(SUBSTITUTE(SUBSTITUTE(SUBSTITUTE(SUBSTITUTE(SUBSTITUTE(SUBSTITUTE(SUBSTITUTE(P122,$ED122,$ED$2&ROW($ED122)),$EC122,$EC$2&ROW($EC122)),$EB122,$EB$2&ROW($EB122)),$EA122,$EA$2&ROW($EA122)),$DZ122,$DZ$2&ROW($DZ122)),$DY122,$DY$2&ROW($DY122)),$DX122,$DX$2&ROW($DX122)),$DW122,$DW$2&ROW($DW122)),$DV122,$DV$2&ROW($DV122)),$DU122,$DU$2&ROW($DU122)),$DT122,$DT$2&ROW($DT122)),$DS122,$DS$2&ROW($DS122)))","v":"X=0.0001"},{"$f":"IF(Q122=\"\",0,\"X=\"&SUBSTITUTE(SUBSTITUTE(SUBSTITUTE(SUBSTITUTE(SUBSTITUTE(SUBSTITUTE(SUBSTITUTE(SUBSTITUTE(SUBSTITUTE(SUBSTITUTE(SUBSTITUTE(SUBSTITUTE(Q122,$ED122,$ED$2&ROW($ED122)),$EC122,$EC$2&ROW($EC122)),$EB122,$EB$2&ROW($EB122)),$EA122,$EA$2&ROW($EA122)),$DZ122,$DZ$2&ROW($DZ122)),$DY122,$DY$2&ROW($DY122)),$DX122,$DX$2&ROW($DX122)),$DW122,$DW$2&ROW($DW122)),$DV122,$DV$2&ROW($DV122)),$DU122,$DU$2&ROW($DU122)),$DT122,$DT$2&ROW($DT122)),$DS122,$DS$2&ROW($DS122)))","v":0},{"$f":"IF(R122=\"\",0,\"X=\"&SUBSTITUTE(SUBSTITUTE(SUBSTITUTE(SUBSTITUTE(SUBSTITUTE(SUBSTITUTE(SUBSTITUTE(SUBSTITUTE(SUBSTITUTE(SUBSTITUTE(SUBSTITUTE(SUBSTITUTE(R122,$ED122,$ED$2&ROW($ED122)),$EC122,$EC$2&ROW($EC122)),$EB122,$EB$2&ROW($EB122)),$EA122,$EA$2&ROW($EA122)),$DZ122,$DZ$2&ROW($DZ122)),$DY122,$DY$2&ROW($DY122)),$DX122,$DX$2&ROW($DX122)),$DW122,$DW$2&ROW($DW122)),$DV122,$DV$2&ROW($DV122)),$DU122,$DU$2&ROW($DU122)),$DT122,$DT$2&ROW($DT122)),$DS122,$DS$2&ROW($DS122)))","v":"X=AW122 *AY122 * 0.746 * 0.025"},{"$f":"IF(S122=\"\",0,\"X=\"&SUBSTITUTE(SUBSTITUTE(SUBSTITUTE(SUBSTITUTE(SUBSTITUTE(SUBSTITUTE(SUBSTITUTE(SUBSTITUTE(SUBSTITUTE(SUBSTITUTE(SUBSTITUTE(SUBSTITUTE(S122,$ED122,$ED$2&ROW($ED122)),$EC122,$EC$2&ROW($EC122)),$EB122,$EB$2&ROW($EB122)),$EA122,$EA$2&ROW($EA122)),$DZ122,$DZ$2&ROW($DZ122)),$DY122,$DY$2&ROW($DY122)),$DX122,$DX$2&ROW($DX122)),$DW122,$DW$2&ROW($DW122)),$DV122,$DV$2&ROW($DV122)),$DU122,$DU$2&ROW($DU122)),$DT122,$DT$2&ROW($DT122)),$DS122,$DS$2&ROW($DS122)))","v":0},{"$f":"IF(T122=\"\",0,\"X=\"&SUBSTITUTE(SUBSTITUTE(SUBSTITUTE(SUBSTITUTE(SUBSTITUTE(SUBSTITUTE(SUBSTITUTE(SUBSTITUTE(SUBSTITUTE(SUBSTITUTE(SUBSTITUTE(SUBSTITUTE(T122,$ED122,$ED$2&ROW($ED122)),$EC122,$EC$2&ROW($EC122)),$EB122,$EB$2&ROW($EB122)),$EA122,$EA$2&ROW($EA122)),$DZ122,$DZ$2&ROW($DZ122)),$DY122,$DY$2&ROW($DY122)),$DX122,$DX$2&ROW($DX122)),$DW122,$DW$2&ROW($DW122)),$DV122,$DV$2&ROW($DV122)),$DU122,$DU$2&ROW($DU122)),$DT122,$DT$2&ROW($DT122)),$DS122,$DS$2&ROW($DS122)))","v":0},{"$f":"IF(U122=\"\",0,\"X=\"&SUBSTITUTE(SUBSTITUTE(SUBSTITUTE(SUBSTITUTE(SUBSTITUTE(SUBSTITUTE(SUBSTITUTE(SUBSTITUTE(SUBSTITUTE(SUBSTITUTE(SUBSTITUTE(SUBSTITUTE(U122,$ED122,$ED$2&ROW($ED122)),$EC122,$EC$2&ROW($EC122)),$EB122,$EB$2&ROW($EB122)),$EA122,$EA$2&ROW($EA122)),$DZ122,$DZ$2&ROW($DZ122)),$DY122,$DY$2&ROW($DY122)),$DX122,$DX$2&ROW($DX122)),$DW122,$DW$2&ROW($DW122)),$DV122,$DV$2&ROW($DV122)),$DU122,$DU$2&ROW($DU122)),$DT122,$DT$2&ROW($DT122)),$DS122,$DS$2&ROW($DS122)))","v":"X=AW122 *AY122 * 0.746 * 0.025 * AF122"},{"$f":"IF(V122=\"\",0,\"X=\"&SUBSTITUTE(SUBSTITUTE(SUBSTITUTE(SUBSTITUTE(SUBSTITUTE(SUBSTITUTE(SUBSTITUTE(SUBSTITUTE(SUBSTITUTE(SUBSTITUTE(SUBSTITUTE(SUBSTITUTE(V122,$ED122,$ED$2&ROW($ED122)),$EC122,$EC$2&ROW($EC122)),$EB122,$EB$2&ROW($EB122)),$EA122,$EA$2&ROW($EA122)),$DZ122,$DZ$2&ROW($DZ122)),$DY122,$DY$2&ROW($DY122)),$DX122,$DX$2&ROW($DX122)),$DW122,$DW$2&ROW($DW122)),$DV122,$DV$2&ROW($DV122)),$DU122,$DU$2&ROW($DU122)),$DT122,$DT$2&ROW($DT122)),$DS122,$DS$2&ROW($DS122)))","v":"X=AW122 *AY122 * 0.746 * 0.025 * AG122"},{"$f":"IF(W122=\"\",0,\"X=\"&SUBSTITUTE(SUBSTITUTE(SUBSTITUTE(SUBSTITUTE(SUBSTITUTE(SUBSTITUTE(SUBSTITUTE(SUBSTITUTE(SUBSTITUTE(SUBSTITUTE(SUBSTITUTE(SUBSTITUTE(W122,$ED122,$ED$2&ROW($ED122)),$EC122,$EC$2&ROW($EC122)),$EB122,$EB$2&ROW($EB122)),$EA122,$EA$2&ROW($EA122)),$DZ122,$DZ$2&ROW($DZ122)),$DY122,$DY$2&ROW($DY122)),$DX122,$DX$2&ROW($DX122)),$DW122,$DW$2&ROW($DW122)),$DV122,$DV$2&ROW($DV122)),$DU122,$DU$2&ROW($DU122)),$DT122,$DT$2&ROW($DT122)),$DS122,$DS$2&ROW($DS122)))","v":0},{"$f":"IF(X122=\"\",0,\"X=\"&SUBSTITUTE(SUBSTITUTE(SUBSTITUTE(SUBSTITUTE(SUBSTITUTE(SUBSTITUTE(SUBSTITUTE(SUBSTITUTE(SUBSTITUTE(SUBSTITUTE(SUBSTITUTE(SUBSTITUTE(X122,$ED122,$ED$2&ROW($ED122)),$EC122,$EC$2&ROW($EC122)),$EB122,$EB$2&ROW($EB122)),$EA122,$EA$2&ROW($EA122)),$DZ122,$DZ$2&ROW($DZ122)),$DY122,$DY$2&ROW($DY122)),$DX122,$DX$2&ROW($DX122)),$DW122,$DW$2&ROW($DW122)),$DV122,$DV$2&ROW($DV122)),$DU122,$DU$2&ROW($DU122)),$DT122,$DT$2&ROW($DT122)),$DS122,$DS$2&ROW($DS122)))","v":0},{"$f":"IF(Y122=\"\",0,\"X=\"&SUBSTITUTE(SUBSTITUTE(SUBSTITUTE(SUBSTITUTE(SUBSTITUTE(SUBSTITUTE(SUBSTITUTE(SUBSTITUTE(SUBSTITUTE(SUBSTITUTE(SUBSTITUTE(SUBSTITUTE(Y122,$ED122,$ED$2&ROW($ED122)),$EC122,$EC$2&ROW($EC122)),$EB122,$EB$2&ROW($EB122)),$EA122,$EA$2&ROW($EA122)),$DZ122,$DZ$2&ROW($DZ122)),$DY122,$DY$2&ROW($DY122)),$DX122,$DX$2&ROW($DX122)),$DW122,$DW$2&ROW($DW122)),$DV122,$DV$2&ROW($DV122)),$DU122,$DU$2&ROW($DU122)),$DT122,$DT$2&ROW($DT122)),$DS122,$DS$2&ROW($DS122)))","v":0},{"$f":"IF(Z122=\"\",0,\"X=\"&SUBSTITUTE(SUBSTITUTE(SUBSTITUTE(SUBSTITUTE(SUBSTITUTE(SUBSTITUTE(SUBSTITUTE(SUBSTITUTE(SUBSTITUTE(SUBSTITUTE(SUBSTITUTE(SUBSTITUTE(Z122,$ED122,$ED$2&ROW($ED122)),$EC122,$EC$2&ROW($EC122)),$EB122,$EB$2&ROW($EB122)),$EA122,$EA$2&ROW($EA122)),$DZ122,$DZ$2&ROW($DZ122)),$DY122,$DY$2&ROW($DY122)),$DX122,$DX$2&ROW($DX122)),$DW122,$DW$2&ROW($DW122)),$DV122,$DV$2&ROW($DV122)),$DU122,$DU$2&ROW($DU122)),$DT122,$DT$2&ROW($DT122)),$DS122,$DS$2&ROW($DS122)))","v":0},{"$f":"IF(AA122=\"\",0,\"X=\"&SUBSTITUTE(SUBSTITUTE(SUBSTITUTE(SUBSTITUTE(SUBSTITUTE(SUBSTITUTE(SUBSTITUTE(SUBSTITUTE(SUBSTITUTE(SUBSTITUTE(SUBSTITUTE(SUBSTITUTE(AA122,$ED122,$ED$2&ROW($ED122)),$EC122,$EC$2&ROW($EC122)),$EB122,$EB$2&ROW($EB122)),$EA122,$EA$2&ROW($EA122)),$DZ122,$DZ$2&ROW($DZ122)),$DY122,$DY$2&ROW($DY122)),$DX122,$DX$2&ROW($DX122)),$DW122,$DW$2&ROW($DW122)),$DV122,$DV$2&ROW($DV122)),$DU122,$DU$2&ROW($DU122)),$DT122,$DT$2&ROW($DT122)),$DS122,$DS$2&ROW($DS122)))","v":0},{"$f":"IF(AB122=\"\",0,\"X=\"&SUBSTITUTE(SUBSTITUTE(SUBSTITUTE(SUBSTITUTE(SUBSTITUTE(SUBSTITUTE(SUBSTITUTE(SUBSTITUTE(SUBSTITUTE(SUBSTITUTE(SUBSTITUTE(SUBSTITUTE(AB122,$ED122,$ED$2&ROW($ED122)),$EC122,$EC$2&ROW($EC122)),$EB122,$EB$2&ROW($EB122)),$EA122,$EA$2&ROW($EA122)),$DZ122,$DZ$2&ROW($DZ122)),$DY122,$DY$2&ROW($DY122)),$DX122,$DX$2&ROW($DX122)),$DW122,$DW$2&ROW($DW122)),$DV122,$DV$2&ROW($DV122)),$DU122,$DU$2&ROW($DU122)),$DT122,$DT$2&ROW($DT122)),$DS122,$DS$2&ROW($DS122)))","v":0},null,null,"{Factor:WinterCF}","{Factor:SummerCF}",{"$f":"IFERROR(INDEX($EG122:$IV122,MATCH(0,COUNTIF($DR122:DT122,$EG122:$IV122),0)),\"\")","v":"{Weekly Hrs of Operation}"},{"$f":"IFERROR(INDEX($EG122:$IV122,MATCH(0,COUNTIF($DR122:DU122,$EG122:$IV122),0)),\"\")","v":"{Weeks Per Year}"},{"$f":"IFERROR(INDEX($EG122:$IV122,MATCH(0,COUNTIF($DR122:DV122,$EG122:$IV122),0)),\"\")","v":"{Measure:Quantity}"},{"$f":"IFERROR(INDEX($EG122:$IV122,MATCH(0,COUNTIF($DR122:DW122,$EG122:$IV122),0)),\"\")","v":"{System Compressor (HP)}"},{"$f":"IFERROR(INDEX($EG122:$IV122,MATCH(0,COUNTIF($DR122:DX122,$EG122:$IV122),0)),\"\")","v":""},{"$f":"IFERROR(INDEX($EG122:$IV122,MATCH(0,COUNTIF($DR122:DY122,$EG122:$IV122),0)),\"\")","v":""},{"$f":"IFERROR(INDEX($EG122:$IV122,MATCH(0,COUNTIF($DR122:DZ122,$EG122:$IV122),0)),\"\")","v":""},{"$f":"IFERROR(INDEX($EG122:$IV122,MATCH(0,COUNTIF($DR122:EA122,$EG122:$IV122),0)),\"\")","v":""},{"$f":"IFERROR(INDEX($EG122:$IV122,MATCH(0,COUNTIF($DR122:EB122,$EG122:$IV122),0)),\"\")","v":""},{"$f":"IFERROR(INDEX($EG122:$IV122,MATCH(0,COUNTIF($DR122:EC122,$EG122:$IV122),0)),\"\")","v":""},null,null,{"$f":"IFERROR(MID($G122,FIND(CHAR(160),SUBSTITUTE($G122,\"{\",CHAR(160),EG$1)),FIND(CHAR(160),SUBSTITUTE($G122,\"}\",CHAR(160),EG$1))-FIND(CHAR(160),SUBSTITUTE($G122,\"{\",CHAR(160),EG$1))+1),\"\")","v":""},{"$f":"IFERROR(MID($G122,FIND(CHAR(160),SUBSTITUTE($G122,\"{\",CHAR(160),EH$1)),FIND(CHAR(160),SUBSTITUTE($G122,\"}\",CHAR(160),EH$1))-FIND(CHAR(160),SUBSTITUTE($G122,\"{\",CHAR(160),EH$1))+1),\"\")","v":""},{"$f":"IFERROR(MID($G122,FIND(CHAR(160),SUBSTITUTE($G122,\"{\",CHAR(160),EI$1)),FIND(CHAR(160),SUBSTITUTE($G122,\"}\",CHAR(160),EI$1))-FIND(CHAR(160),SUBSTITUTE($G122,\"{\",CHAR(160),EI$1))+1),\"\")","v":""},{"$f":"IFERROR(MID($G122,FIND(CHAR(160),SUBSTITUTE($G122,\"{\",CHAR(160),EJ$1)),FIND(CHAR(160),SUBSTITUTE($G122,\"}\",CHAR(160),EJ$1))-FIND(CHAR(160),SUBSTITUTE($G122,\"{\",CHAR(160),EJ$1))+1),\"\")","v":""},{"$f":"IFERROR(MID($G122,FIND(CHAR(160),SUBSTITUTE($G122,\"{\",CHAR(160),EK$1)),FIND(CHAR(160),SUBSTITUTE($G122,\"}\",CHAR(160),EK$1))-FIND(CHAR(160),SUBSTITUTE($G122,\"{\",CHAR(160),EK$1))+1),\"\")","v":""},{"$f":"IFERROR(MID($G122,FIND(CHAR(160),SUBSTITUTE($G122,\"{\",CHAR(160),EL$1)),FIND(CHAR(160),SUBSTITUTE($G122,\"}\",CHAR(160),EL$1))-FIND(CHAR(160),SUBSTITUTE($G122,\"{\",CHAR(160),EL$1))+1),\"\")","v":""},{"$f":"IFERROR(MID($G122,FIND(CHAR(160),SUBSTITUTE($G122,\"{\",CHAR(160),EM$1)),FIND(CHAR(160),SUBSTITUTE($G122,\"}\",CHAR(160),EM$1))-FIND(CHAR(160),SUBSTITUTE($G122,\"{\",CHAR(160),EM$1))+1),\"\")","v":""},{"$f":"IFERROR(MID($G122,FIND(CHAR(160),SUBSTITUTE($G122,\"{\",CHAR(160),EN$1)),FIND(CHAR(160),SUBSTITUTE($G122,\"}\",CHAR(160),EN$1))-FIND(CHAR(160),SUBSTITUTE($G122,\"{\",CHAR(160),EN$1))+1),\"\")","v":""},{"$f":"IFERROR(MID($G122,FIND(CHAR(160),SUBSTITUTE($G122,\"{\",CHAR(160),EO$1)),FIND(CHAR(160),SUBSTITUTE($G122,\"}\",CHAR(160),EO$1))-FIND(CHAR(160),SUBSTITUTE($G122,\"{\",CHAR(160),EO$1))+1),\"\")","v":""},{"$f":"IFERROR(MID($G122,FIND(CHAR(160),SUBSTITUTE($G122,\"{\",CHAR(160),EP$1)),FIND(CHAR(160),SUBSTITUTE($G122,\"}\",CHAR(160),EP$1))-FIND(CHAR(160),SUBSTITUTE($G122,\"{\",CHAR(160),EP$1))+1),\"\")","v":""},{"$f":"IFERROR(MID($J122,FIND(CHAR(160),SUBSTITUTE($J122,\"{\",CHAR(160),EQ$1)),FIND(CHAR(160),SUBSTITUTE($J122,\"}\",CHAR(160),EQ$1))-FIND(CHAR(160),SUBSTITUTE($J122,\"{\",CHAR(160),EQ$1))+1),\"\")","v":""},{"$f":"IFERROR(MID($J122,FIND(CHAR(160),SUBSTITUTE($J122,\"{\",CHAR(160),ER$1)),FIND(CHAR(160),SUBSTITUTE($J122,\"}\",CHAR(160),ER$1))-FIND(CHAR(160),SUBSTITUTE($J122,\"{\",CHAR(160),ER$1))+1),\"\")","v":""},{"$f":"IFERROR(MID($J122,FIND(CHAR(160),SUBSTITUTE($J122,\"{\",CHAR(160),ES$1)),FIND(CHAR(160),SUBSTITUTE($J122,\"}\",CHAR(160),ES$1))-FIND(CHAR(160),SUBSTITUTE($J122,\"{\",CHAR(160),ES$1))+1),\"\")","v":""},{"$f":"IFERROR(MID($J122,FIND(CHAR(160),SUBSTITUTE($J122,\"{\",CHAR(160),ET$1)),FIND(CHAR(160),SUBSTITUTE($J122,\"}\",CHAR(160),ET$1))-FIND(CHAR(160),SUBSTITUTE($J122,\"{\",CHAR(160),ET$1))+1),\"\")","v":""},{"$f":"IFERROR(MID($J122,FIND(CHAR(160),SUBSTITUTE($J122,\"{\",CHAR(160),EU$1)),FIND(CHAR(160),SUBSTITUTE($J122,\"}\",CHAR(160),EU$1))-FIND(CHAR(160),SUBSTITUTE($J122,\"{\",CHAR(160),EU$1))+1),\"\")","v":""},{"$f":"IFERROR(MID($J122,FIND(CHAR(160),SUBSTITUTE($J122,\"{\",CHAR(160),EV$1)),FIND(CHAR(160),SUBSTITUTE($J122,\"}\",CHAR(160),EV$1))-FIND(CHAR(160),SUBSTITUTE($J122,\"{\",CHAR(160),EV$1))+1),\"\")","v":""},{"$f":"IFERROR(MID($J122,FIND(CHAR(160),SUBSTITUTE($J122,\"{\",CHAR(160),EW$1)),FIND(CHAR(160),SUBSTITUTE($J122,\"}\",CHAR(160),EW$1))-FIND(CHAR(160),SUBSTITUTE($J122,\"{\",CHAR(160),EW$1))+1),\"\")","v":""},{"$f":"IFERROR(MID($J122,FIND(CHAR(160),SUBSTITUTE($J122,\"{\",CHAR(160),EX$1)),FIND(CHAR(160),SUBSTITUTE($J122,\"}\",CHAR(160),EX$1))-FIND(CHAR(160),SUBSTITUTE($J122,\"{\",CHAR(160),EX$1))+1),\"\")","v":""},{"$f":"IFERROR(MID($J122,FIND(CHAR(160),SUBSTITUTE($J122,\"{\",CHAR(160),EY$1)),FIND(CHAR(160),SUBSTITUTE($J122,\"}\",CHAR(160),EY$1))-FIND(CHAR(160),SUBSTITUTE($J122,\"{\",CHAR(160),EY$1))+1),\"\")","v":""},{"$f":"IFERROR(MID($J122,FIND(CHAR(160),SUBSTITUTE($J122,\"{\",CHAR(160),EZ$1)),FIND(CHAR(160),SUBSTITUTE($J122,\"}\",CHAR(160),EZ$1))-FIND(CHAR(160),SUBSTITUTE($J122,\"{\",CHAR(160),EZ$1))+1),\"\")","v":""},{"$f":"IFERROR(MID($J122,FIND(CHAR(160),SUBSTITUTE($J122,\"{\",CHAR(160),FA$1)),FIND(CHAR(160),SUBSTITUTE($J122,\"}\",CHAR(160),FA$1))-FIND(CHAR(160),SUBSTITUTE($J122,\"{\",CHAR(160),FA$1))+1),\"\")","v":""},{"$f":"IFERROR(MID($J122,FIND(CHAR(160),SUBSTITUTE($J122,\"{\",CHAR(160),FB$1)),FIND(CHAR(160),SUBSTITUTE($J122,\"}\",CHAR(160),FB$1))-FIND(CHAR(160),SUBSTITUTE($J122,\"{\",CHAR(160),FB$1))+1),\"\")","v":""},{"$f":"IFERROR(MID($O122,FIND(CHAR(160),SUBSTITUTE($O122,\"{\",CHAR(160),FC$1)),FIND(CHAR(160),SUBSTITUTE($O122,\"}\",CHAR(160),FC$1))-FIND(CHAR(160),SUBSTITUTE($O122,\"{\",CHAR(160),FC$1))+1),\"\")","v":"{Weekly Hrs of Operation}"},{"$f":"IFERROR(MID($O122,FIND(CHAR(160),SUBSTITUTE($O122,\"{\",CHAR(160),FD$1)),FIND(CHAR(160),SUBSTITUTE($O122,\"}\",CHAR(160),FD$1))-FIND(CHAR(160),SUBSTITUTE($O122,\"{\",CHAR(160),FD$1))+1),\"\")","v":"{Weeks Per Year}"},{"$f":"IFERROR(MID($O122,FIND(CHAR(160),SUBSTITUTE($O122,\"{\",CHAR(160),FE$1)),FIND(CHAR(160),SUBSTITUTE($O122,\"}\",CHAR(160),FE$1))-FIND(CHAR(160),SUBSTITUTE($O122,\"{\",CHAR(160),FE$1))+1),\"\")","v":""},{"$f":"IFERROR(MID($O122,FIND(CHAR(160),SUBSTITUTE($O122,\"{\",CHAR(160),FF$1)),FIND(CHAR(160),SUBSTITUTE($O122,\"}\",CHAR(160),FF$1))-FIND(CHAR(160),SUBSTITUTE($O122,\"{\",CHAR(160),FF$1))+1),\"\")","v":""},{"$f":"IFERROR(MID($O122,FIND(CHAR(160),SUBSTITUTE($O122,\"{\",CHAR(160),FG$1)),FIND(CHAR(160),SUBSTITUTE($O122,\"}\",CHAR(160),FG$1))-FIND(CHAR(160),SUBSTITUTE($O122,\"{\",CHAR(160),FG$1))+1),\"\")","v":""},{"$f":"IFERROR(MID($O122,FIND(CHAR(160),SUBSTITUTE($O122,\"{\",CHAR(160),FH$1)),FIND(CHAR(160),SUBSTITUTE($O122,\"}\",CHAR(160),FH$1))-FIND(CHAR(160),SUBSTITUTE($O122,\"{\",CHAR(160),FH$1))+1),\"\")","v":""},{"$f":"IFERROR(MID($O122,FIND(CHAR(160),SUBSTITUTE($O122,\"{\",CHAR(160),FI$1)),FIND(CHAR(160),SUBSTITUTE($O122,\"}\",CHAR(160),FI$1))-FIND(CHAR(160),SUBSTITUTE($O122,\"{\",CHAR(160),FI$1))+1),\"\")","v":""},{"$f":"IFERROR(MID($O122,FIND(CHAR(160),SUBSTITUTE($O122,\"{\",CHAR(160),FJ$1)),FIND(CHAR(160),SUBSTITUTE($O122,\"}\",CHAR(160),FJ$1))-FIND(CHAR(160),SUBSTITUTE($O122,\"{\",CHAR(160),FJ$1))+1),\"\")","v":""},{"$f":"IFERROR(MID($O122,FIND(CHAR(160),SUBSTITUTE($O122,\"{\",CHAR(160),FK$1)),FIND(CHAR(160),SUBSTITUTE($O122,\"}\",CHAR(160),FK$1))-FIND(CHAR(160),SUBSTITUTE($O122,\"{\",CHAR(160),FK$1))+1),\"\")","v":"{Measure:Quantity}"},{"$f":"IFERROR(MID($O122,FIND(CHAR(160),SUBSTITUTE($O122,\"{\",CHAR(160),FL$1)),FIND(CHAR(160),SUBSTITUTE($O122,\"}\",CHAR(160),FL$1))-FIND(CHAR(160),SUBSTITUTE($O122,\"{\",CHAR(160),FL$1))+1),\"\")","v":"{System Compressor (HP)}"},{"$f":"IFERROR(MID($R122,FIND(CHAR(160),SUBSTITUTE($R122,\"{\",CHAR(160),FM$1)),FIND(CHAR(160),SUBSTITUTE($R122,\"}\",CHAR(160),FM$1))-FIND(CHAR(160),SUBSTITUTE($R122,\"{\",CHAR(160),FM$1))+1),\"\")","v":""},{"$f":"IFERROR(MID($R122,FIND(CHAR(160),SUBSTITUTE($R122,\"{\",CHAR(160),FN$1)),FIND(CHAR(160),SUBSTITUTE($R122,\"}\",CHAR(160),FN$1))-FIND(CHAR(160),SUBSTITUTE($R122,\"{\",CHAR(160),FN$1))+1),\"\")","v":""},{"$f":"IFERROR(MID($R122,FIND(CHAR(160),SUBSTITUTE($R122,\"{\",CHAR(160),FO$1)),FIND(CHAR(160),SUBSTITUTE($R122,\"}\",CHAR(160),FO$1))-FIND(CHAR(160),SUBSTITUTE($R122,\"{\",CHAR(160),FO$1))+1),\"\")","v":""},{"$f":"IFERROR(MID($R122,FIND(CHAR(160),SUBSTITUTE($R122,\"{\",CHAR(160),FP$1)),FIND(CHAR(160),SUBSTITUTE($R122,\"}\",CHAR(160),FP$1))-FIND(CHAR(160),SUBSTITUTE($R122,\"{\",CHAR(160),FP$1))+1),\"\")","v":""},{"$f":"IFERROR(MID($R122,FIND(CHAR(160),SUBSTITUTE($R122,\"{\",CHAR(160),FQ$1)),FIND(CHAR(160),SUBSTITUTE($R122,\"}\",CHAR(160),FQ$1))-FIND(CHAR(160),SUBSTITUTE($R122,\"{\",CHAR(160),FQ$1))+1),\"\")","v":""},{"$f":"IFERROR(MID($R122,FIND(CHAR(160),SUBSTITUTE($R122,\"{\",CHAR(160),FR$1)),FIND(CHAR(160),SUBSTITUTE($R122,\"}\",CHAR(160),FR$1))-FIND(CHAR(160),SUBSTITUTE($R122,\"{\",CHAR(160),FR$1))+1),\"\")","v":""},{"$f":"IFERROR(MID($R122,FIND(CHAR(160),SUBSTITUTE($R122,\"{\",CHAR(160),FS$1)),FIND(CHAR(160),SUBSTITUTE($R122,\"}\",CHAR(160),FS$1))-FIND(CHAR(160),SUBSTITUTE($R122,\"{\",CHAR(160),FS$1))+1),\"\")","v":""},{"$f":"IFERROR(MID($R122,FIND(CHAR(160),SUBSTITUTE($R122,\"{\",CHAR(160),FT$1)),FIND(CHAR(160),SUBSTITUTE($R122,\"}\",CHAR(160),FT$1))-FIND(CHAR(160),SUBSTITUTE($R122,\"{\",CHAR(160),FT$1))+1),\"\")","v":""},{"$f":"IFERROR(MID($R122,FIND(CHAR(160),SUBSTITUTE($R122,\"{\",CHAR(160),FU$1)),FIND(CHAR(160),SUBSTITUTE($R122,\"}\",CHAR(160),FU$1))-FIND(CHAR(160),SUBSTITUTE($R122,\"{\",CHAR(160),FU$1))+1),\"\")","v":"{Measure:Quantity}"},{"$f":"IFERROR(MID($R122,FIND(CHAR(160),SUBSTITUTE($R122,\"{\",CHAR(160),FV$1)),FIND(CHAR(160),SUBSTITUTE($R122,\"}\",CHAR(160),FV$1))-FIND(CHAR(160),SUBSTITUTE($R122,\"{\",CHAR(160),FV$1))+1),\"\")","v":"{System Compressor (HP)}"},{"$f":"IFERROR(MID($U122,FIND(CHAR(160),SUBSTITUTE($U122,\"{\",CHAR(160),FW$1)),FIND(CHAR(160),SUBSTITUTE($U122,\"}\",CHAR(160),FW$1))-FIND(CHAR(160),SUBSTITUTE($U122,\"{\",CHAR(160),FW$1))+1),\"\")","v":"{Factor:WinterCF}"},{"$f":"IFERROR(MID($U122,FIND(CHAR(160),SUBSTITUTE($U122,\"{\",CHAR(160),FX$1)),FIND(CHAR(160),SUBSTITUTE($U122,\"}\",CHAR(160),FX$1))-FIND(CHAR(160),SUBSTITUTE($U122,\"{\",CHAR(160),FX$1))+1),\"\")","v":""},{"$f":"IFERROR(MID($U122,FIND(CHAR(160),SUBSTITUTE($U122,\"{\",CHAR(160),FY$1)),FIND(CHAR(160),SUBSTITUTE($U122,\"}\",CHAR(160),FY$1))-FIND(CHAR(160),SUBSTITUTE($U122,\"{\",CHAR(160),FY$1))+1),\"\")","v":""},{"$f":"IFERROR(MID($U122,FIND(CHAR(160),SUBSTITUTE($U122,\"{\",CHAR(160),FZ$1)),FIND(CHAR(160),SUBSTITUTE($U122,\"}\",CHAR(160),FZ$1))-FIND(CHAR(160),SUBSTITUTE($U122,\"{\",CHAR(160),FZ$1))+1),\"\")","v":""},{"$f":"IFERROR(MID($U122,FIND(CHAR(160),SUBSTITUTE($U122,\"{\",CHAR(160),GA$1)),FIND(CHAR(160),SUBSTITUTE($U122,\"}\",CHAR(160),GA$1))-FIND(CHAR(160),SUBSTITUTE($U122,\"{\",CHAR(160),GA$1))+1),\"\")","v":""},{"$f":"IFERROR(MID($U122,FIND(CHAR(160),SUBSTITUTE($U122,\"{\",CHAR(160),GB$1)),FIND(CHAR(160),SUBSTITUTE($U122,\"}\",CHAR(160),GB$1))-FIND(CHAR(160),SUBSTITUTE($U122,\"{\",CHAR(160),GB$1))+1),\"\")","v":""},{"$f":"IFERROR(MID($U122,FIND(CHAR(160),SUBSTITUTE($U122,\"{\",CHAR(160),GC$1)),FIND(CHAR(160),SUBSTITUTE($U122,\"}\",CHAR(160),GC$1))-FIND(CHAR(160),SUBSTITUTE($U122,\"{\",CHAR(160),GC$1))+1),\"\")","v":""},{"$f":"IFERROR(MID($U122,FIND(CHAR(160),SUBSTITUTE($U122,\"{\",CHAR(160),GD$1)),FIND(CHAR(160),SUBSTITUTE($U122,\"}\",CHAR(160),GD$1))-FIND(CHAR(160),SUBSTITUTE($U122,\"{\",CHAR(160),GD$1))+1),\"\")","v":""},{"$f":"IFERROR(MID($U122,FIND(CHAR(160),SUBSTITUTE($U122,\"{\",CHAR(160),GE$1)),FIND(CHAR(160),SUBSTITUTE($U122,\"}\",CHAR(160),GE$1))-FIND(CHAR(160),SUBSTITUTE($U122,\"{\",CHAR(160),GE$1))+1),\"\")","v":"{Measure:Quantity}"},{"$f":"IFERROR(MID($U122,FIND(CHAR(160),SUBSTITUTE($U122,\"{\",CHAR(160),GF$1)),FIND(CHAR(160),SUBSTITUTE($U122,\"}\",CHAR(160),GF$1))-FIND(CHAR(160),SUBSTITUTE($U122,\"{\",CHAR(160),GF$1))+1),\"\")","v":"{System Compressor (HP)}"},{"$f":"IFERROR(MID($V122,FIND(CHAR(160),SUBSTITUTE($V122,\"{\",CHAR(160),GG$1)),FIND(CHAR(160),SUBSTITUTE($V122,\"}\",CHAR(160),GG$1))-FIND(CHAR(160),SUBSTITUTE($V122,\"{\",CHAR(160),GG$1))+1),\"\")","v":"{Factor:SummerCF}"},{"$f":"IFERROR(MID($V122,FIND(CHAR(160),SUBSTITUTE($V122,\"{\",CHAR(160),GH$1)),FIND(CHAR(160),SUBSTITUTE($V122,\"}\",CHAR(160),GH$1))-FIND(CHAR(160),SUBSTITUTE($V122,\"{\",CHAR(160),GH$1))+1),\"\")","v":""},{"$f":"IFERROR(MID($V122,FIND(CHAR(160),SUBSTITUTE($V122,\"{\",CHAR(160),GI$1)),FIND(CHAR(160),SUBSTITUTE($V122,\"}\",CHAR(160),GI$1))-FIND(CHAR(160),SUBSTITUTE($V122,\"{\",CHAR(160),GI$1))+1),\"\")","v":""},{"$f":"IFERROR(MID($V122,FIND(CHAR(160),SUBSTITUTE($V122,\"{\",CHAR(160),GJ$1)),FIND(CHAR(160),SUBSTITUTE($V122,\"}\",CHAR(160),GJ$1))-FIND(CHAR(160),SUBSTITUTE($V122,\"{\",CHAR(160),GJ$1))+1),\"\")","v":""},{"$f":"IFERROR(MID($V122,FIND(CHAR(160),SUBSTITUTE($V122,\"{\",CHAR(160),GK$1)),FIND(CHAR(160),SUBSTITUTE($V122,\"}\",CHAR(160),GK$1))-FIND(CHAR(160),SUBSTITUTE($V122,\"{\",CHAR(160),GK$1))+1),\"\")","v":""},{"$f":"IFERROR(MID($V122,FIND(CHAR(160),SUBSTITUTE($V122,\"{\",CHAR(160),GL$1)),FIND(CHAR(160),SUBSTITUTE($V122,\"}\",CHAR(160),GL$1))-FIND(CHAR(160),SUBSTITUTE($V122,\"{\",CHAR(160),GL$1))+1),\"\")","v":""},{"$f":"IFERROR(MID($V122,FIND(CHAR(160),SUBSTITUTE($V122,\"{\",CHAR(160),GM$1)),FIND(CHAR(160),SUBSTITUTE($V122,\"}\",CHAR(160),GM$1))-FIND(CHAR(160),SUBSTITUTE($V122,\"{\",CHAR(160),GM$1))+1),\"\")","v":""},{"$f":"IFERROR(MID($V122,FIND(CHAR(160),SUBSTITUTE($V122,\"{\",CHAR(160),GN$1)),FIND(CHAR(160),SUBSTITUTE($V122,\"}\",CHAR(160),GN$1))-FIND(CHAR(160),SUBSTITUTE($V122,\"{\",CHAR(160),GN$1))+1),\"\")","v":""},{"$f":"IFERROR(MID($V122,FIND(CHAR(160),SUBSTITUTE($V122,\"{\",CHAR(160),GO$1)),FIND(CHAR(160),SUBSTITUTE($V122,\"}\",CHAR(160),GO$1))-FIND(CHAR(160),SUBSTITUTE($V122,\"{\",CHAR(160),GO$1))+1),\"\")","v":"{Measure:Quantity}"},{"$f":"IFERROR(MID($V122,FIND(CHAR(160),SUBSTITUTE($V122,\"{\",CHAR(160),GP$1)),FIND(CHAR(160),SUBSTITUTE($V122,\"}\",CHAR(160),GP$1))-FIND(CHAR(160),SUBSTITUTE($V122,\"{\",CHAR(160),GP$1))+1),\"\")","v":"{System Compressor (HP)}"},{"$f":"IFERROR(MID($W122,FIND(CHAR(160),SUBSTITUTE($W122,\"{\",CHAR(160),GQ$1)),FIND(CHAR(160),SUBSTITUTE($W122,\"}\",CHAR(160),GQ$1))-FIND(CHAR(160),SUBSTITUTE($W122,\"{\",CHAR(160),GQ$1))+1),\"\")","v":""},{"$f":"IFERROR(MID($W122,FIND(CHAR(160),SUBSTITUTE($W122,\"{\",CHAR(160),GR$1)),FIND(CHAR(160),SUBSTITUTE($W122,\"}\",CHAR(160),GR$1))-FIND(CHAR(160),SUBSTITUTE($W122,\"{\",CHAR(160),GR$1))+1),\"\")","v":""},{"$f":"IFERROR(MID($W122,FIND(CHAR(160),SUBSTITUTE($W122,\"{\",CHAR(160),GS$1)),FIND(CHAR(160),SUBSTITUTE($W122,\"}\",CHAR(160),GS$1))-FIND(CHAR(160),SUBSTITUTE($W122,\"{\",CHAR(160),GS$1))+1),\"\")","v":""},{"$f":"IFERROR(MID($W122,FIND(CHAR(160),SUBSTITUTE($W122,\"{\",CHAR(160),GT$1)),FIND(CHAR(160),SUBSTITUTE($W122,\"}\",CHAR(160),GT$1))-FIND(CHAR(160),SUBSTITUTE($W122,\"{\",CHAR(160),GT$1))+1),\"\")","v":""},{"$f":"IFERROR(MID($W122,FIND(CHAR(160),SUBSTITUTE($W122,\"{\",CHAR(160),GU$1)),FIND(CHAR(160),SUBSTITUTE($W122,\"}\",CHAR(160),GU$1))-FIND(CHAR(160),SUBSTITUTE($W122,\"{\",CHAR(160),GU$1))+1),\"\")","v":""},{"$f":"IFERROR(MID($W122,FIND(CHAR(160),SUBSTITUTE($W122,\"{\",CHAR(160),GV$1)),FIND(CHAR(160),SUBSTITUTE($W122,\"}\",CHAR(160),GV$1))-FIND(CHAR(160),SUBSTITUTE($W122,\"{\",CHAR(160),GV$1))+1),\"\")","v":""},{"$f":"IFERROR(MID($W122,FIND(CHAR(160),SUBSTITUTE($W122,\"{\",CHAR(160),GW$1)),FIND(CHAR(160),SUBSTITUTE($W122,\"}\",CHAR(160),GW$1))-FIND(CHAR(160),SUBSTITUTE($W122,\"{\",CHAR(160),GW$1))+1),\"\")","v":""},{"$f":"IFERROR(MID($W122,FIND(CHAR(160),SUBSTITUTE($W122,\"{\",CHAR(160),GX$1)),FIND(CHAR(160),SUBSTITUTE($W122,\"}\",CHAR(160),GX$1))-FIND(CHAR(160),SUBSTITUTE($W122,\"{\",CHAR(160),GX$1))+1),\"\")","v":""},{"$f":"IFERROR(MID($W122,FIND(CHAR(160),SUBSTITUTE($W122,\"{\",CHAR(160),GY$1)),FIND(CHAR(160),SUBSTITUTE($W122,\"}\",CHAR(160),GY$1))-FIND(CHAR(160),SUBSTITUTE($W122,\"{\",CHAR(160),GY$1))+1),\"\")","v":""},{"$f":"IFERROR(MID($W122,FIND(CHAR(160),SUBSTITUTE($W122,\"{\",CHAR(160),GZ$1)),FIND(CHAR(160),SUBSTITUTE($W122,\"}\",CHAR(160),GZ$1))-FIND(CHAR(160),SUBSTITUTE($W122,\"{\",CHAR(160),GZ$1))+1),\"\")","v":""},{"$f":"IFERROR(MID($X122,FIND(CHAR(160),SUBSTITUTE($X122,\"{\",CHAR(160),HA$1)),FIND(CHAR(160),SUBSTITUTE($X122,\"}\",CHAR(160),HA$1))-FIND(CHAR(160),SUBSTITUTE($X122,\"{\",CHAR(160),HA$1))+1),\"\")","v":""},{"$f":"IFERROR(MID($X122,FIND(CHAR(160),SUBSTITUTE($X122,\"{\",CHAR(160),HB$1)),FIND(CHAR(160),SUBSTITUTE($X122,\"}\",CHAR(160),HB$1))-FIND(CHAR(160),SUBSTITUTE($X122,\"{\",CHAR(160),HB$1))+1),\"\")","v":""},{"$f":"IFERROR(MID($X122,FIND(CHAR(160),SUBSTITUTE($X122,\"{\",CHAR(160),HC$1)),FIND(CHAR(160),SUBSTITUTE($X122,\"}\",CHAR(160),HC$1))-FIND(CHAR(160),SUBSTITUTE($X122,\"{\",CHAR(160),HC$1))+1),\"\")","v":""},{"$f":"IFERROR(MID($X122,FIND(CHAR(160),SUBSTITUTE($X122,\"{\",CHAR(160),HD$1)),FIND(CHAR(160),SUBSTITUTE($X122,\"}\",CHAR(160),HD$1))-FIND(CHAR(160),SUBSTITUTE($X122,\"{\",CHAR(160),HD$1))+1),\"\")","v":""},{"$f":"IFERROR(MID($X122,FIND(CHAR(160),SUBSTITUTE($X122,\"{\",CHAR(160),HE$1)),FIND(CHAR(160),SUBSTITUTE($X122,\"}\",CHAR(160),HE$1))-FIND(CHAR(160),SUBSTITUTE($X122,\"{\",CHAR(160),HE$1))+1),\"\")","v":""},{"$f":"IFERROR(MID($X122,FIND(CHAR(160),SUBSTITUTE($X122,\"{\",CHAR(160),HF$1)),FIND(CHAR(160),SUBSTITUTE($X122,\"}\",CHAR(160),HF$1))-FIND(CHAR(160),SUBSTITUTE($X122,\"{\",CHAR(160),HF$1))+1),\"\")","v":""},{"$f":"IFERROR(MID($X122,FIND(CHAR(160),SUBSTITUTE($X122,\"{\",CHAR(160),HG$1)),FIND(CHAR(160),SUBSTITUTE($X122,\"}\",CHAR(160),HG$1))-FIND(CHAR(160),SUBSTITUTE($X122,\"{\",CHAR(160),HG$1))+1),\"\")","v":""},{"$f":"IFERROR(MID($X122,FIND(CHAR(160),SUBSTITUTE($X122,\"{\",CHAR(160),HH$1)),FIND(CHAR(160),SUBSTITUTE($X122,\"}\",CHAR(160),HH$1))-FIND(CHAR(160),SUBSTITUTE($X122,\"{\",CHAR(160),HH$1))+1),\"\")","v":""},{"$f":"IFERROR(MID($X122,FIND(CHAR(160),SUBSTITUTE($X122,\"{\",CHAR(160),HI$1)),FIND(CHAR(160),SUBSTITUTE($X122,\"}\",CHAR(160),HI$1))-FIND(CHAR(160),SUBSTITUTE($X122,\"{\",CHAR(160),HI$1))+1),\"\")","v":""},{"$f":"IFERROR(MID($X122,FIND(CHAR(160),SUBSTITUTE($X122,\"{\",CHAR(160),HJ$1)),FIND(CHAR(160),SUBSTITUTE($X122,\"}\",CHAR(160),HJ$1))-FIND(CHAR(160),SUBSTITUTE($X122,\"{\",CHAR(160),HJ$1))+1),\"\")","v":""},{"$f":"IFERROR(MID($Y122,FIND(CHAR(160),SUBSTITUTE($Y122,\"{\",CHAR(160),HK$1)),FIND(CHAR(160),SUBSTITUTE($Y122,\"}\",CHAR(160),HK$1))-FIND(CHAR(160),SUBSTITUTE($Y122,\"{\",CHAR(160),HK$1))+1),\"\")","v":""},{"$f":"IFERROR(MID($Y122,FIND(CHAR(160),SUBSTITUTE($Y122,\"{\",CHAR(160),HL$1)),FIND(CHAR(160),SUBSTITUTE($Y122,\"}\",CHAR(160),HL$1))-FIND(CHAR(160),SUBSTITUTE($Y122,\"{\",CHAR(160),HL$1))+1),\"\")","v":""},{"$f":"IFERROR(MID($Y122,FIND(CHAR(160),SUBSTITUTE($Y122,\"{\",CHAR(160),HM$1)),FIND(CHAR(160),SUBSTITUTE($Y122,\"}\",CHAR(160),HM$1))-FIND(CHAR(160),SUBSTITUTE($Y122,\"{\",CHAR(160),HM$1))+1),\"\")","v":""},{"$f":"IFERROR(MID($Y122,FIND(CHAR(160),SUBSTITUTE($Y122,\"{\",CHAR(160),HN$1)),FIND(CHAR(160),SUBSTITUTE($Y122,\"}\",CHAR(160),HN$1))-FIND(CHAR(160),SUBSTITUTE($Y122,\"{\",CHAR(160),HN$1))+1),\"\")","v":""},{"$f":"IFERROR(MID($Y122,FIND(CHAR(160),SUBSTITUTE($Y122,\"{\",CHAR(160),HO$1)),FIND(CHAR(160),SUBSTITUTE($Y122,\"}\",CHAR(160),HO$1))-FIND(CHAR(160),SUBSTITUTE($Y122,\"{\",CHAR(160),HO$1))+1),\"\")","v":""},{"$f":"IFERROR(MID($Y122,FIND(CHAR(160),SUBSTITUTE($Y122,\"{\",CHAR(160),HP$1)),FIND(CHAR(160),SUBSTITUTE($Y122,\"}\",CHAR(160),HP$1))-FIND(CHAR(160),SUBSTITUTE($Y122,\"{\",CHAR(160),HP$1))+1),\"\")","v":""},{"$f":"IFERROR(MID($Y122,FIND(CHAR(160),SUBSTITUTE($Y122,\"{\",CHAR(160),HQ$1)),FIND(CHAR(160),SUBSTITUTE($Y122,\"}\",CHAR(160),HQ$1))-FIND(CHAR(160),SUBSTITUTE($Y122,\"{\",CHAR(160),HQ$1))+1),\"\")","v":""},{"$f":"IFERROR(MID($Y122,FIND(CHAR(160),SUBSTITUTE($Y122,\"{\",CHAR(160),HR$1)),FIND(CHAR(160),SUBSTITUTE($Y122,\"}\",CHAR(160),HR$1))-FIND(CHAR(160),SUBSTITUTE($Y122,\"{\",CHAR(160),HR$1))+1),\"\")","v":""},{"$f":"IFERROR(MID($Y122,FIND(CHAR(160),SUBSTITUTE($Y122,\"{\",CHAR(160),HS$1)),FIND(CHAR(160),SUBSTITUTE($Y122,\"}\",CHAR(160),HS$1))-FIND(CHAR(160),SUBSTITUTE($Y122,\"{\",CHAR(160),HS$1))+1),\"\")","v":""},{"$f":"IFERROR(MID($Y122,FIND(CHAR(160),SUBSTITUTE($Y122,\"{\",CHAR(160),HT$1)),FIND(CHAR(160),SUBSTITUTE($Y122,\"}\",CHAR(160),HT$1))-FIND(CHAR(160),SUBSTITUTE($Y122,\"{\",CHAR(160),HT$1))+1),\"\")","v":""},{"$f":"IFERROR(MID($Z122,FIND(CHAR(160),SUBSTITUTE($Z122,\"{\",CHAR(160),HU$1)),FIND(CHAR(160),SUBSTITUTE($Z122,\"}\",CHAR(160),HU$1))-FIND(CHAR(160),SUBSTITUTE($Z122,\"{\",CHAR(160),HU$1))+1),\"\")","v":""},{"$f":"IFERROR(MID($Z122,FIND(CHAR(160),SUBSTITUTE($Z122,\"{\",CHAR(160),HV$1)),FIND(CHAR(160),SUBSTITUTE($Z122,\"}\",CHAR(160),HV$1))-FIND(CHAR(160),SUBSTITUTE($Z122,\"{\",CHAR(160),HV$1))+1),\"\")","v":""},{"$f":"IFERROR(MID($Z122,FIND(CHAR(160),SUBSTITUTE($Z122,\"{\",CHAR(160),HW$1)),FIND(CHAR(160),SUBSTITUTE($Z122,\"}\",CHAR(160),HW$1))-FIND(CHAR(160),SUBSTITUTE($Z122,\"{\",CHAR(160),HW$1))+1),\"\")","v":""},{"$f":"IFERROR(MID($Z122,FIND(CHAR(160),SUBSTITUTE($Z122,\"{\",CHAR(160),HX$1)),FIND(CHAR(160),SUBSTITUTE($Z122,\"}\",CHAR(160),HX$1))-FIND(CHAR(160),SUBSTITUTE($Z122,\"{\",CHAR(160),HX$1))+1),\"\")","v":""},{"$f":"IFERROR(MID($Z122,FIND(CHAR(160),SUBSTITUTE($Z122,\"{\",CHAR(160),HY$1)),FIND(CHAR(160),SUBSTITUTE($Z122,\"}\",CHAR(160),HY$1))-FIND(CHAR(160),SUBSTITUTE($Z122,\"{\",CHAR(160),HY$1))+1),\"\")","v":""},{"$f":"IFERROR(MID($Z122,FIND(CHAR(160),SUBSTITUTE($Z122,\"{\",CHAR(160),HZ$1)),FIND(CHAR(160),SUBSTITUTE($Z122,\"}\",CHAR(160),HZ$1))-FIND(CHAR(160),SUBSTITUTE($Z122,\"{\",CHAR(160),HZ$1))+1),\"\")","v":""},{"$f":"IFERROR(MID($Z122,FIND(CHAR(160),SUBSTITUTE($Z122,\"{\",CHAR(160),IA$1)),FIND(CHAR(160),SUBSTITUTE($Z122,\"}\",CHAR(160),IA$1))-FIND(CHAR(160),SUBSTITUTE($Z122,\"{\",CHAR(160),IA$1))+1),\"\")","v":""},{"$f":"IFERROR(MID($Z122,FIND(CHAR(160),SUBSTITUTE($Z122,\"{\",CHAR(160),IB$1)),FIND(CHAR(160),SUBSTITUTE($Z122,\"}\",CHAR(160),IB$1))-FIND(CHAR(160),SUBSTITUTE($Z122,\"{\",CHAR(160),IB$1))+1),\"\")","v":""},{"$f":"IFERROR(MID($Z122,FIND(CHAR(160),SUBSTITUTE($Z122,\"{\",CHAR(160),IC$1)),FIND(CHAR(160),SUBSTITUTE($Z122,\"}\",CHAR(160),IC$1))-FIND(CHAR(160),SUBSTITUTE($Z122,\"{\",CHAR(160),IC$1))+1),\"\")","v":""},{"$f":"IFERROR(MID($Z122,FIND(CHAR(160),SUBSTITUTE($Z122,\"{\",CHAR(160),ID$1)),FIND(CHAR(160),SUBSTITUTE($Z122,\"}\",CHAR(160),ID$1))-FIND(CHAR(160),SUBSTITUTE($Z122,\"{\",CHAR(160),ID$1))+1),\"\")","v":""},{"$f":"IFERROR(MID($AA122,FIND(CHAR(160),SUBSTITUTE($AA122,\"{\",CHAR(160),IE$1)),FIND(CHAR(160),SUBSTITUTE($AA122,\"}\",CHAR(160),IE$1))-FIND(CHAR(160),SUBSTITUTE($AA122,\"{\",CHAR(160),IE$1))+1),\"\")","v":""},{"$f":"IFERROR(MID($AA122,FIND(CHAR(160),SUBSTITUTE($AA122,\"{\",CHAR(160),IF$1)),FIND(CHAR(160),SUBSTITUTE($AA122,\"}\",CHAR(160),IF$1))-FIND(CHAR(160),SUBSTITUTE($AA122,\"{\",CHAR(160),IF$1))+1),\"\")","v":""},{"$f":"IFERROR(MID($AA122,FIND(CHAR(160),SUBSTITUTE($AA122,\"{\",CHAR(160),IG$1)),FIND(CHAR(160),SUBSTITUTE($AA122,\"}\",CHAR(160),IG$1))-FIND(CHAR(160),SUBSTITUTE($AA122,\"{\",CHAR(160),IG$1))+1),\"\")","v":""},{"$f":"IFERROR(MID($AA122,FIND(CHAR(160),SUBSTITUTE($AA122,\"{\",CHAR(160),IH$1)),FIND(CHAR(160),SUBSTITUTE($AA122,\"}\",CHAR(160),IH$1))-FIND(CHAR(160),SUBSTITUTE($AA122,\"{\",CHAR(160),IH$1))+1),\"\")","v":""},{"$f":"IFERROR(MID($AA122,FIND(CHAR(160),SUBSTITUTE($AA122,\"{\",CHAR(160),II$1)),FIND(CHAR(160),SUBSTITUTE($AA122,\"}\",CHAR(160),II$1))-FIND(CHAR(160),SUBSTITUTE($AA122,\"{\",CHAR(160),II$1))+1),\"\")","v":""},{"$f":"IFERROR(MID($AA122,FIND(CHAR(160),SUBSTITUTE($AA122,\"{\",CHAR(160),IJ$1)),FIND(CHAR(160),SUBSTITUTE($AA122,\"}\",CHAR(160),IJ$1))-FIND(CHAR(160),SUBSTITUTE($AA122,\"{\",CHAR(160),IJ$1))+1),\"\")","v":""},{"$f":"IFERROR(MID($AA122,FIND(CHAR(160),SUBSTITUTE($AA122,\"{\",CHAR(160),IK$1)),FIND(CHAR(160),SUBSTITUTE($AA122,\"}\",CHAR(160),IK$1))-FIND(CHAR(160),SUBSTITUTE($AA122,\"{\",CHAR(160),IK$1))+1),\"\")","v":""},{"$f":"IFERROR(MID($AA122,FIND(CHAR(160),SUBSTITUTE($AA122,\"{\",CHAR(160),IL$1)),FIND(CHAR(160),SUBSTITUTE($AA122,\"}\",CHAR(160),IL$1))-FIND(CHAR(160),SUBSTITUTE($AA122,\"{\",CHAR(160),IL$1))+1),\"\")","v":""},{"$f":"IFERROR(MID($AA122,FIND(CHAR(160),SUBSTITUTE($AA122,\"{\",CHAR(160),IM$1)),FIND(CHAR(160),SUBSTITUTE($AA122,\"}\",CHAR(160),IM$1))-FIND(CHAR(160),SUBSTITUTE($AA122,\"{\",CHAR(160),IM$1))+1),\"\")","v":""},{"$f":"IFERROR(MID($AA122,FIND(CHAR(160),SUBSTITUTE($AA122,\"{\",CHAR(160),IN$1)),FIND(CHAR(160),SUBSTITUTE($AA122,\"}\",CHAR(160),IN$1))-FIND(CHAR(160),SUBSTITUTE($AA122,\"{\",CHAR(160),IN$1))+1),\"\")","v":""},{"$f":"IFERROR(MID($AB122,FIND(CHAR(160),SUBSTITUTE($AB122,\"{\",CHAR(160),IO$1)),FIND(CHAR(160),SUBSTITUTE($AB122,\"}\",CHAR(160),IO$1))-FIND(CHAR(160),SUBSTITUTE($AB122,\"{\",CHAR(160),IO$1))+1),\"\")","v":""},{"$f":"IFERROR(MID($AB122,FIND(CHAR(160),SUBSTITUTE($AB122,\"{\",CHAR(160),IP$1)),FIND(CHAR(160),SUBSTITUTE($AB122,\"}\",CHAR(160),IP$1))-FIND(CHAR(160),SUBSTITUTE($AB122,\"{\",CHAR(160),IP$1))+1),\"\")","v":""},{"$f":"IFERROR(MID($AB122,FIND(CHAR(160),SUBSTITUTE($AB122,\"{\",CHAR(160),IQ$1)),FIND(CHAR(160),SUBSTITUTE($AB122,\"}\",CHAR(160),IQ$1))-FIND(CHAR(160),SUBSTITUTE($AB122,\"{\",CHAR(160),IQ$1))+1),\"\")","v":""},{"$f":"IFERROR(MID($AB122,FIND(CHAR(160),SUBSTITUTE($AB122,\"{\",CHAR(160),IR$1)),FIND(CHAR(160),SUBSTITUTE($AB122,\"}\",CHAR(160),IR$1))-FIND(CHAR(160),SUBSTITUTE($AB122,\"{\",CHAR(160),IR$1))+1),\"\")","v":""},{"$f":"IFERROR(MID($AB122,FIND(CHAR(160),SUBSTITUTE($AB122,\"{\",CHAR(160),IS$1)),FIND(CHAR(160),SUBSTITUTE($AB122,\"}\",CHAR(160),IS$1))-FIND(CHAR(160),SUBSTITUTE($AB122,\"{\",CHAR(160),IS$1))+1),\"\")","v":""},{"$f":"IFERROR(MID($AB122,FIND(CHAR(160),SUBSTITUTE($AB122,\"{\",CHAR(160),IT$1)),FIND(CHAR(160),SUBSTITUTE($AB122,\"}\",CHAR(160),IT$1))-FIND(CHAR(160),SUBSTITUTE($AB122,\"{\",CHAR(160),IT$1))+1),\"\")","v":""},{"$f":"IFERROR(MID($AB122,FIND(CHAR(160),SUBSTITUTE($AB122,\"{\",CHAR(160),IU$1)),FIND(CHAR(160),SUBSTITUTE($AB122,\"}\",CHAR(160),IU$1))-FIND(CHAR(160),SUBSTITUTE($AB122,\"{\",CHAR(160),IU$1))+1),\"\")","v":""},{"$f":"IFERROR(MID($AB122,FIND(CHAR(160),SUBSTITUTE($AB122,\"{\",CHAR(160),IV$1)),FIND(CHAR(160),SUBSTITUTE($AB122,\"}\",CHAR(160),IV$1))-FIND(CHAR(160),SUBSTITUTE($AB122,\"{\",CHAR(160),IV$1))+1),\"\")","v":""},{"$f":"IFERROR(MID($AB122,FIND(CHAR(160),SUBSTITUTE($AB122,\"{\",CHAR(160),IW$1)),FIND(CHAR(160),SUBSTITUTE($AB122,\"}\",CHAR(160),IW$1))-FIND(CHAR(160),SUBSTITUTE($AB122,\"{\",CHAR(160),IW$1))+1),\"\")","v":""},{"$f":"IFERROR(MID($AB122,FIND(CHAR(160),SUBSTITUTE($AB122,\"{\",CHAR(160),IX$1)),FIND(CHAR(160),SUBSTITUTE($AB122,\"}\",CHAR(160),IX$1))-FIND(CHAR(160),SUBSTITUTE($AB122,\"{\",CHAR(160),IX$1))+1),\"\")","v":""},null,{"$f":"10-COUNTIF(DU122:ED122,\"\")","v":4}]
["C&I Prescriptive Compressed Air Solutions","Receiver - C23 - Standard Receiver Size 200 Gallons","R - C23","2021-07-01","2022-06-30","Per Measure",1418,0,"Per Measure",750,0,"2017-07-01","2022-06-30","Calculated","{Measure:Quantity} *{System Compressor (HP)} * 0.746 * 0.025 * {Weekly Hrs of Operation} * {Weeks Per Year}",1E-4,null,"{Measure:Quantity} *{System Compressor (HP)} * 0.746 * 0.025",null,null,"{Measure:Quantity} *{System Compressor (HP)} * 0.746 * 0.025 * {Factor:WinterCF}","{Measure:Quantity} *{System Compressor (HP)} * 0.746 * 0.025 * {Factor:SummerCF}",null,null,null,null,null,null,"2017-07-01","2022-06-30",10,0.7,0.91100000000000003,0.30399999999999999,0.36099999999999999,0.156,0.17899999999999999,1,1.1220000000000001,1,0.52,1.6E-2,null,{"$f":"DU123","v":"{Weekly Hrs of Operation}"},1,{"$f":"DV123","v":"{Weeks Per Year}"},30,{"$f":"DW123","v":"{Measure:Quantity}"},50,{"$f":"DX123","v":"{System Compressor (HP)}"},50,{"$f":"DY123","v":""},null,{"$f":"DZ123","v":""},null,{"$f":"EA123","v":""},null,{"$f":"EB123","v":""},null,{"$f":"EC123","v":""},null,{"$f":"ED123","v":""},null,{"$f":"AS123 *AU123 * 0.746 * 0.025 * AW123 * AY123","v":1398.75},{"$f":"0.0001","v":1E-4},0,{"$f":"AS123 *AU123 * 0.746 * 0.025","v":0.5595},0,0,{"$f":"AS123 *AU123 * 0.746 * 0.025 * AF123","v":0.39165},{"$f":"AS123 *AU123 * 0.746 * 0.025 * AG123","v":0.5097045},0,0,0,0,0,0,null,"Com","Default DR",{"$f":"Benefits(BL123,BR123,BS123,BT123,BU123,BV123,BW123,BX123,BY123,BZ123,AE123,AH123,AI123,AJ123,AK123,AL123,AM123,AN123,AO123,AP123,CA123,CB123)","v":1553.8741227490343},1724.5681233679006,0,0,0,0,0,0,0,{"$f":"SUMPRODUCT(CC123:CK123,--(CC123:CK123>0))","v":3278.4422461169352},{"$f":"-SUMPRODUCT(CC123:CK123,--(CC123:CK123<0))","v":0},null,{"$f":"1418","v":1418},null,null,{"$f":"CM123+CO123","v":1418},{"$f":"IF(NetOrGross=\"Net\",(1-AO123+AP123),1)","v":1},{"$f":"(SUMPRODUCT(CC123:CJ123,--(CC123:CJ123>0))+CN123)*CS123/((-SUMPRODUCT(CC123:CJ123,--(CC123:CJ123<0))+MAX(CO123,CV123)+CP123+CQ123)*CS123+IF(FRIncentives=\"Yes\",CV123*(1-CS123),0))","v":2.3120185092503069},20,{"$f":"750","v":750},null,"Electric","y",null,{"$f":"IF(F123=\"Manual Entry\",\"Manual\",IF(G123=\"\",0,\"X=\"&SUBSTITUTE(SUBSTITUTE(SUBSTITUTE(SUBSTITUTE(SUBSTITUTE(SUBSTITUTE(SUBSTITUTE(SUBSTITUTE(SUBSTITUTE(SUBSTITUTE(SUBSTITUTE(SUBSTITUTE(G123,$ED123,$ED$2&ROW($ED123)),$EC123,$EC$2&ROW($EC123)),$EB123,$EB$2&ROW($EB123)),$EA123,$EA$2&ROW($EA123)),$DZ123,$DZ$2&ROW($DZ123)),$DY123,$DY$2&ROW($DY123)),$DX123,$DX$2&ROW($DX123)),$DW123,$DW$2&ROW($DW123)),$DV123,$DV$2&ROW($DV123)),$DU123,$DU$2&ROW($DU123)),$DT123,$DT$2&ROW($DT123)),$DS123,$DS$2&ROW($DS123))))","v":"X=1418"},{"$f":"IF(I123=\"Manual Entry\",\"Manual\",IF(J123=\"\",0,\"X=\"&SUBSTITUTE(SUBSTITUTE(SUBSTITUTE(SUBSTITUTE(SUBSTITUTE(SUBSTITUTE(SUBSTITUTE(SUBSTITUTE(SUBSTITUTE(SUBSTITUTE(SUBSTITUTE(SUBSTITUTE(J123,$ED123,$ED$2&ROW($ED123)),$EC123,$EC$2&ROW($EC123)),$EB123,$EB$2&ROW($EB123)),$EA123,$EA$2&ROW($EA123)),$DZ123,$DZ$2&ROW($DZ123)),$DY123,$DY$2&ROW($DY123)),$DX123,$DX$2&ROW($DX123)),$DW123,$DW$2&ROW($DW123)),$DV123,$DV$2&ROW($DV123)),$DU123,$DU$2&ROW($DU123)),$DT123,$DT$2&ROW($DT123)),$DS123,$DS$2&ROW($DS123))))","v":"X=750"},{"$f":"IF(O123=\"\",0,\"X=\"&SUBSTITUTE(SUBSTITUTE(SUBSTITUTE(SUBSTITUTE(SUBSTITUTE(SUBSTITUTE(SUBSTITUTE(SUBSTITUTE(SUBSTITUTE(SUBSTITUTE(SUBSTITUTE(SUBSTITUTE(O123,$ED123,$ED$2&ROW($ED123)),$EC123,$EC$2&ROW($EC123)),$EB123,$EB$2&ROW($EB123)),$EA123,$EA$2&ROW($EA123)),$DZ123,$DZ$2&ROW($DZ123)),$DY123,$DY$2&ROW($DY123)),$DX123,$DX$2&ROW($DX123)),$DW123,$DW$2&ROW($DW123)),$DV123,$DV$2&ROW($DV123)),$DU123,$DU$2&ROW($DU123)),$DT123,$DT$2&ROW($DT123)),$DS123,$DS$2&ROW($DS123)))","v":"X=AW123 *AY123 * 0.746 * 0.025 * AS123 * AU123"},{"$f":"IF(P123=\"\",0,\"X=\"&SUBSTITUTE(SUBSTITUTE(SUBSTITUTE(SUBSTITUTE(SUBSTITUTE(SUBSTITUTE(SUBSTITUTE(SUBSTITUTE(SUBSTITUTE(SUBSTITUTE(SUBSTITUTE(SUBSTITUTE(P123,$ED123,$ED$2&ROW($ED123)),$EC123,$EC$2&ROW($EC123)),$EB123,$EB$2&ROW($EB123)),$EA123,$EA$2&ROW($EA123)),$DZ123,$DZ$2&ROW($DZ123)),$DY123,$DY$2&ROW($DY123)),$DX123,$DX$2&ROW($DX123)),$DW123,$DW$2&ROW($DW123)),$DV123,$DV$2&ROW($DV123)),$DU123,$DU$2&ROW($DU123)),$DT123,$DT$2&ROW($DT123)),$DS123,$DS$2&ROW($DS123)))","v":"X=0.0001"},{"$f":"IF(Q123=\"\",0,\"X=\"&SUBSTITUTE(SUBSTITUTE(SUBSTITUTE(SUBSTITUTE(SUBSTITUTE(SUBSTITUTE(SUBSTITUTE(SUBSTITUTE(SUBSTITUTE(SUBSTITUTE(SUBSTITUTE(SUBSTITUTE(Q123,$ED123,$ED$2&ROW($ED123)),$EC123,$EC$2&ROW($EC123)),$EB123,$EB$2&ROW($EB123)),$EA123,$EA$2&ROW($EA123)),$DZ123,$DZ$2&ROW($DZ123)),$DY123,$DY$2&ROW($DY123)),$DX123,$DX$2&ROW($DX123)),$DW123,$DW$2&ROW($DW123)),$DV123,$DV$2&ROW($DV123)),$DU123,$DU$2&ROW($DU123)),$DT123,$DT$2&ROW($DT123)),$DS123,$DS$2&ROW($DS123)))","v":0},{"$f":"IF(R123=\"\",0,\"X=\"&SUBSTITUTE(SUBSTITUTE(SUBSTITUTE(SUBSTITUTE(SUBSTITUTE(SUBSTITUTE(SUBSTITUTE(SUBSTITUTE(SUBSTITUTE(SUBSTITUTE(SUBSTITUTE(SUBSTITUTE(R123,$ED123,$ED$2&ROW($ED123)),$EC123,$EC$2&ROW($EC123)),$EB123,$EB$2&ROW($EB123)),$EA123,$EA$2&ROW($EA123)),$DZ123,$DZ$2&ROW($DZ123)),$DY123,$DY$2&ROW($DY123)),$DX123,$DX$2&ROW($DX123)),$DW123,$DW$2&ROW($DW123)),$DV123,$DV$2&ROW($DV123)),$DU123,$DU$2&ROW($DU123)),$DT123,$DT$2&ROW($DT123)),$DS123,$DS$2&ROW($DS123)))","v":"X=AW123 *AY123 * 0.746 * 0.025"},{"$f":"IF(S123=\"\",0,\"X=\"&SUBSTITUTE(SUBSTITUTE(SUBSTITUTE(SUBSTITUTE(SUBSTITUTE(SUBSTITUTE(SUBSTITUTE(SUBSTITUTE(SUBSTITUTE(SUBSTITUTE(SUBSTITUTE(SUBSTITUTE(S123,$ED123,$ED$2&ROW($ED123)),$EC123,$EC$2&ROW($EC123)),$EB123,$EB$2&ROW($EB123)),$EA123,$EA$2&ROW($EA123)),$DZ123,$DZ$2&ROW($DZ123)),$DY123,$DY$2&ROW($DY123)),$DX123,$DX$2&ROW($DX123)),$DW123,$DW$2&ROW($DW123)),$DV123,$DV$2&ROW($DV123)),$DU123,$DU$2&ROW($DU123)),$DT123,$DT$2&ROW($DT123)),$DS123,$DS$2&ROW($DS123)))","v":0},{"$f":"IF(T123=\"\",0,\"X=\"&SUBSTITUTE(SUBSTITUTE(SUBSTITUTE(SUBSTITUTE(SUBSTITUTE(SUBSTITUTE(SUBSTITUTE(SUBSTITUTE(SUBSTITUTE(SUBSTITUTE(SUBSTITUTE(SUBSTITUTE(T123,$ED123,$ED$2&ROW($ED123)),$EC123,$EC$2&ROW($EC123)),$EB123,$EB$2&ROW($EB123)),$EA123,$EA$2&ROW($EA123)),$DZ123,$DZ$2&ROW($DZ123)),$DY123,$DY$2&ROW($DY123)),$DX123,$DX$2&ROW($DX123)),$DW123,$DW$2&ROW($DW123)),$DV123,$DV$2&ROW($DV123)),$DU123,$DU$2&ROW($DU123)),$DT123,$DT$2&ROW($DT123)),$DS123,$DS$2&ROW($DS123)))","v":0},{"$f":"IF(U123=\"\",0,\"X=\"&SUBSTITUTE(SUBSTITUTE(SUBSTITUTE(SUBSTITUTE(SUBSTITUTE(SUBSTITUTE(SUBSTITUTE(SUBSTITUTE(SUBSTITUTE(SUBSTITUTE(SUBSTITUTE(SUBSTITUTE(U123,$ED123,$ED$2&ROW($ED123)),$EC123,$EC$2&ROW($EC123)),$EB123,$EB$2&ROW($EB123)),$EA123,$EA$2&ROW($EA123)),$DZ123,$DZ$2&ROW($DZ123)),$DY123,$DY$2&ROW($DY123)),$DX123,$DX$2&ROW($DX123)),$DW123,$DW$2&ROW($DW123)),$DV123,$DV$2&ROW($DV123)),$DU123,$DU$2&ROW($DU123)),$DT123,$DT$2&ROW($DT123)),$DS123,$DS$2&ROW($DS123)))","v":"X=AW123 *AY123 * 0.746 * 0.025 * AF123"},{"$f":"IF(V123=\"\",0,\"X=\"&SUBSTITUTE(SUBSTITUTE(SUBSTITUTE(SUBSTITUTE(SUBSTITUTE(SUBSTITUTE(SUBSTITUTE(SUBSTITUTE(SUBSTITUTE(SUBSTITUTE(SUBSTITUTE(SUBSTITUTE(V123,$ED123,$ED$2&ROW($ED123)),$EC123,$EC$2&ROW($EC123)),$EB123,$EB$2&ROW($EB123)),$EA123,$EA$2&ROW($EA123)),$DZ123,$DZ$2&ROW($DZ123)),$DY123,$DY$2&ROW($DY123)),$DX123,$DX$2&ROW($DX123)),$DW123,$DW$2&ROW($DW123)),$DV123,$DV$2&ROW($DV123)),$DU123,$DU$2&ROW($DU123)),$DT123,$DT$2&ROW($DT123)),$DS123,$DS$2&ROW($DS123)))","v":"X=AW123 *AY123 * 0.746 * 0.025 * AG123"},{"$f":"IF(W123=\"\",0,\"X=\"&SUBSTITUTE(SUBSTITUTE(SUBSTITUTE(SUBSTITUTE(SUBSTITUTE(SUBSTITUTE(SUBSTITUTE(SUBSTITUTE(SUBSTITUTE(SUBSTITUTE(SUBSTITUTE(SUBSTITUTE(W123,$ED123,$ED$2&ROW($ED123)),$EC123,$EC$2&ROW($EC123)),$EB123,$EB$2&ROW($EB123)),$EA123,$EA$2&ROW($EA123)),$DZ123,$DZ$2&ROW($DZ123)),$DY123,$DY$2&ROW($DY123)),$DX123,$DX$2&ROW($DX123)),$DW123,$DW$2&ROW($DW123)),$DV123,$DV$2&ROW($DV123)),$DU123,$DU$2&ROW($DU123)),$DT123,$DT$2&ROW($DT123)),$DS123,$DS$2&ROW($DS123)))","v":0},{"$f":"IF(X123=\"\",0,\"X=\"&SUBSTITUTE(SUBSTITUTE(SUBSTITUTE(SUBSTITUTE(SUBSTITUTE(SUBSTITUTE(SUBSTITUTE(SUBSTITUTE(SUBSTITUTE(SUBSTITUTE(SUBSTITUTE(SUBSTITUTE(X123,$ED123,$ED$2&ROW($ED123)),$EC123,$EC$2&ROW($EC123)),$EB123,$EB$2&ROW($EB123)),$EA123,$EA$2&ROW($EA123)),$DZ123,$DZ$2&ROW($DZ123)),$DY123,$DY$2&ROW($DY123)),$DX123,$DX$2&ROW($DX123)),$DW123,$DW$2&ROW($DW123)),$DV123,$DV$2&ROW($DV123)),$DU123,$DU$2&ROW($DU123)),$DT123,$DT$2&ROW($DT123)),$DS123,$DS$2&ROW($DS123)))","v":0},{"$f":"IF(Y123=\"\",0,\"X=\"&SUBSTITUTE(SUBSTITUTE(SUBSTITUTE(SUBSTITUTE(SUBSTITUTE(SUBSTITUTE(SUBSTITUTE(SUBSTITUTE(SUBSTITUTE(SUBSTITUTE(SUBSTITUTE(SUBSTITUTE(Y123,$ED123,$ED$2&ROW($ED123)),$EC123,$EC$2&ROW($EC123)),$EB123,$EB$2&ROW($EB123)),$EA123,$EA$2&ROW($EA123)),$DZ123,$DZ$2&ROW($DZ123)),$DY123,$DY$2&ROW($DY123)),$DX123,$DX$2&ROW($DX123)),$DW123,$DW$2&ROW($DW123)),$DV123,$DV$2&ROW($DV123)),$DU123,$DU$2&ROW($DU123)),$DT123,$DT$2&ROW($DT123)),$DS123,$DS$2&ROW($DS123)))","v":0},{"$f":"IF(Z123=\"\",0,\"X=\"&SUBSTITUTE(SUBSTITUTE(SUBSTITUTE(SUBSTITUTE(SUBSTITUTE(SUBSTITUTE(SUBSTITUTE(SUBSTITUTE(SUBSTITUTE(SUBSTITUTE(SUBSTITUTE(SUBSTITUTE(Z123,$ED123,$ED$2&ROW($ED123)),$EC123,$EC$2&ROW($EC123)),$EB123,$EB$2&ROW($EB123)),$EA123,$EA$2&ROW($EA123)),$DZ123,$DZ$2&ROW($DZ123)),$DY123,$DY$2&ROW($DY123)),$DX123,$DX$2&ROW($DX123)),$DW123,$DW$2&ROW($DW123)),$DV123,$DV$2&ROW($DV123)),$DU123,$DU$2&ROW($DU123)),$DT123,$DT$2&ROW($DT123)),$DS123,$DS$2&ROW($DS123)))","v":0},{"$f":"IF(AA123=\"\",0,\"X=\"&SUBSTITUTE(SUBSTITUTE(SUBSTITUTE(SUBSTITUTE(SUBSTITUTE(SUBSTITUTE(SUBSTITUTE(SUBSTITUTE(SUBSTITUTE(SUBSTITUTE(SUBSTITUTE(SUBSTITUTE(AA123,$ED123,$ED$2&ROW($ED123)),$EC123,$EC$2&ROW($EC123)),$EB123,$EB$2&ROW($EB123)),$EA123,$EA$2&ROW($EA123)),$DZ123,$DZ$2&ROW($DZ123)),$DY123,$DY$2&ROW($DY123)),$DX123,$DX$2&ROW($DX123)),$DW123,$DW$2&ROW($DW123)),$DV123,$DV$2&ROW($DV123)),$DU123,$DU$2&ROW($DU123)),$DT123,$DT$2&ROW($DT123)),$DS123,$DS$2&ROW($DS123)))","v":0},{"$f":"IF(AB123=\"\",0,\"X=\"&SUBSTITUTE(SUBSTITUTE(SUBSTITUTE(SUBSTITUTE(SUBSTITUTE(SUBSTITUTE(SUBSTITUTE(SUBSTITUTE(SUBSTITUTE(SUBSTITUTE(SUBSTITUTE(SUBSTITUTE(AB123,$ED123,$ED$2&ROW($ED123)),$EC123,$EC$2&ROW($EC123)),$EB123,$EB$2&ROW($EB123)),$EA123,$EA$2&ROW($EA123)),$DZ123,$DZ$2&ROW($DZ123)),$DY123,$DY$2&ROW($DY123)),$DX123,$DX$2&ROW($DX123)),$DW123,$DW$2&ROW($DW123)),$DV123,$DV$2&ROW($DV123)),$DU123,$DU$2&ROW($DU123)),$DT123,$DT$2&ROW($DT123)),$DS123,$DS$2&ROW($DS123)))","v":0},null,null,"{Factor:WinterCF}","{Factor:SummerCF}",{"$f":"IFERROR(INDEX($EG123:$IV123,MATCH(0,COUNTIF($DR123:DT123,$EG123:$IV123),0)),\"\")","v":"{Weekly Hrs of Operation}"},{"$f":"IFERROR(INDEX($EG123:$IV123,MATCH(0,COUNTIF($DR123:DU123,$EG123:$IV123),0)),\"\")","v":"{Weeks Per Year}"},{"$f":"IFERROR(INDEX($EG123:$IV123,MATCH(0,COUNTIF($DR123:DV123,$EG123:$IV123),0)),\"\")","v":"{Measure:Quantity}"},{"$f":"IFERROR(INDEX($EG123:$IV123,MATCH(0,COUNTIF($DR123:DW123,$EG123:$IV123),0)),\"\")","v":"{System Compressor (HP)}"},{"$f":"IFERROR(INDEX($EG123:$IV123,MATCH(0,COUNTIF($DR123:DX123,$EG123:$IV123),0)),\"\")","v":""},{"$f":"IFERROR(INDEX($EG123:$IV123,MATCH(0,COUNTIF($DR123:DY123,$EG123:$IV123),0)),\"\")","v":""},{"$f":"IFERROR(INDEX($EG123:$IV123,MATCH(0,COUNTIF($DR123:DZ123,$EG123:$IV123),0)),\"\")","v":""},{"$f":"IFERROR(INDEX($EG123:$IV123,MATCH(0,COUNTIF($DR123:EA123,$EG123:$IV123),0)),\"\")","v":""},{"$f":"IFERROR(INDEX($EG123:$IV123,MATCH(0,COUNTIF($DR123:EB123,$EG123:$IV123),0)),\"\")","v":""},{"$f":"IFERROR(INDEX($EG123:$IV123,MATCH(0,COUNTIF($DR123:EC123,$EG123:$IV123),0)),\"\")","v":""},null,null,{"$f":"IFERROR(MID($G123,FIND(CHAR(160),SUBSTITUTE($G123,\"{\",CHAR(160),EG$1)),FIND(CHAR(160),SUBSTITUTE($G123,\"}\",CHAR(160),EG$1))-FIND(CHAR(160),SUBSTITUTE($G123,\"{\",CHAR(160),EG$1))+1),\"\")","v":""},{"$f":"IFERROR(MID($G123,FIND(CHAR(160),SUBSTITUTE($G123,\"{\",CHAR(160),EH$1)),FIND(CHAR(160),SUBSTITUTE($G123,\"}\",CHAR(160),EH$1))-FIND(CHAR(160),SUBSTITUTE($G123,\"{\",CHAR(160),EH$1))+1),\"\")","v":""},{"$f":"IFERROR(MID($G123,FIND(CHAR(160),SUBSTITUTE($G123,\"{\",CHAR(160),EI$1)),FIND(CHAR(160),SUBSTITUTE($G123,\"}\",CHAR(160),EI$1))-FIND(CHAR(160),SUBSTITUTE($G123,\"{\",CHAR(160),EI$1))+1),\"\")","v":""},{"$f":"IFERROR(MID($G123,FIND(CHAR(160),SUBSTITUTE($G123,\"{\",CHAR(160),EJ$1)),FIND(CHAR(160),SUBSTITUTE($G123,\"}\",CHAR(160),EJ$1))-FIND(CHAR(160),SUBSTITUTE($G123,\"{\",CHAR(160),EJ$1))+1),\"\")","v":""},{"$f":"IFERROR(MID($G123,FIND(CHAR(160),SUBSTITUTE($G123,\"{\",CHAR(160),EK$1)),FIND(CHAR(160),SUBSTITUTE($G123,\"}\",CHAR(160),EK$1))-FIND(CHAR(160),SUBSTITUTE($G123,\"{\",CHAR(160),EK$1))+1),\"\")","v":""},{"$f":"IFERROR(MID($G123,FIND(CHAR(160),SUBSTITUTE($G123,\"{\",CHAR(160),EL$1)),FIND(CHAR(160),SUBSTITUTE($G123,\"}\",CHAR(160),EL$1))-FIND(CHAR(160),SUBSTITUTE($G123,\"{\",CHAR(160),EL$1))+1),\"\")","v":""},{"$f":"IFERROR(MID($G123,FIND(CHAR(160),SUBSTITUTE($G123,\"{\",CHAR(160),EM$1)),FIND(CHAR(160),SUBSTITUTE($G123,\"}\",CHAR(160),EM$1))-FIND(CHAR(160),SUBSTITUTE($G123,\"{\",CHAR(160),EM$1))+1),\"\")","v":""},{"$f":"IFERROR(MID($G123,FIND(CHAR(160),SUBSTITUTE($G123,\"{\",CHAR(160),EN$1)),FIND(CHAR(160),SUBSTITUTE($G123,\"}\",CHAR(160),EN$1))-FIND(CHAR(160),SUBSTITUTE($G123,\"{\",CHAR(160),EN$1))+1),\"\")","v":""},{"$f":"IFERROR(MID($G123,FIND(CHAR(160),SUBSTITUTE($G123,\"{\",CHAR(160),EO$1)),FIND(CHAR(160),SUBSTITUTE($G123,\"}\",CHAR(160),EO$1))-FIND(CHAR(160),SUBSTITUTE($G123,\"{\",CHAR(160),EO$1))+1),\"\")","v":""},{"$f":"IFERROR(MID($G123,FIND(CHAR(160),SUBSTITUTE($G123,\"{\",CHAR(160),EP$1)),FIND(CHAR(160),SUBSTITUTE($G123,\"}\",CHAR(160),EP$1))-FIND(CHAR(160),SUBSTITUTE($G123,\"{\",CHAR(160),EP$1))+1),\"\")","v":""},{"$f":"IFERROR(MID($J123,FIND(CHAR(160),SUBSTITUTE($J123,\"{\",CHAR(160),EQ$1)),FIND(CHAR(160),SUBSTITUTE($J123,\"}\",CHAR(160),EQ$1))-FIND(CHAR(160),SUBSTITUTE($J123,\"{\",CHAR(160),EQ$1))+1),\"\")","v":""},{"$f":"IFERROR(MID($J123,FIND(CHAR(160),SUBSTITUTE($J123,\"{\",CHAR(160),ER$1)),FIND(CHAR(160),SUBSTITUTE($J123,\"}\",CHAR(160),ER$1))-FIND(CHAR(160),SUBSTITUTE($J123,\"{\",CHAR(160),ER$1))+1),\"\")","v":""},{"$f":"IFERROR(MID($J123,FIND(CHAR(160),SUBSTITUTE($J123,\"{\",CHAR(160),ES$1)),FIND(CHAR(160),SUBSTITUTE($J123,\"}\",CHAR(160),ES$1))-FIND(CHAR(160),SUBSTITUTE($J123,\"{\",CHAR(160),ES$1))+1),\"\")","v":""},{"$f":"IFERROR(MID($J123,FIND(CHAR(160),SUBSTITUTE($J123,\"{\",CHAR(160),ET$1)),FIND(CHAR(160),SUBSTITUTE($J123,\"}\",CHAR(160),ET$1))-FIND(CHAR(160),SUBSTITUTE($J123,\"{\",CHAR(160),ET$1))+1),\"\")","v":""},{"$f":"IFERROR(MID($J123,FIND(CHAR(160),SUBSTITUTE($J123,\"{\",CHAR(160),EU$1)),FIND(CHAR(160),SUBSTITUTE($J123,\"}\",CHAR(160),EU$1))-FIND(CHAR(160),SUBSTITUTE($J123,\"{\",CHAR(160),EU$1))+1),\"\")","v":""},{"$f":"IFERROR(MID($J123,FIND(CHAR(160),SUBSTITUTE($J123,\"{\",CHAR(160),EV$1)),FIND(CHAR(160),SUBSTITUTE($J123,\"}\",CHAR(160),EV$1))-FIND(CHAR(160),SUBSTITUTE($J123,\"{\",CHAR(160),EV$1))+1),\"\")","v":""},{"$f":"IFERROR(MID($J123,FIND(CHAR(160),SUBSTITUTE($J123,\"{\",CHAR(160),EW$1)),FIND(CHAR(160),SUBSTITUTE($J123,\"}\",CHAR(160),EW$1))-FIND(CHAR(160),SUBSTITUTE($J123,\"{\",CHAR(160),EW$1))+1),\"\")","v":""},{"$f":"IFERROR(MID($J123,FIND(CHAR(160),SUBSTITUTE($J123,\"{\",CHAR(160),EX$1)),FIND(CHAR(160),SUBSTITUTE($J123,\"}\",CHAR(160),EX$1))-FIND(CHAR(160),SUBSTITUTE($J123,\"{\",CHAR(160),EX$1))+1),\"\")","v":""},{"$f":"IFERROR(MID($J123,FIND(CHAR(160),SUBSTITUTE($J123,\"{\",CHAR(160),EY$1)),FIND(CHAR(160),SUBSTITUTE($J123,\"}\",CHAR(160),EY$1))-FIND(CHAR(160),SUBSTITUTE($J123,\"{\",CHAR(160),EY$1))+1),\"\")","v":""},{"$f":"IFERROR(MID($J123,FIND(CHAR(160),SUBSTITUTE($J123,\"{\",CHAR(160),EZ$1)),FIND(CHAR(160),SUBSTITUTE($J123,\"}\",CHAR(160),EZ$1))-FIND(CHAR(160),SUBSTITUTE($J123,\"{\",CHAR(160),EZ$1))+1),\"\")","v":""},{"$f":"IFERROR(MID($J123,FIND(CHAR(160),SUBSTITUTE($J123,\"{\",CHAR(160),FA$1)),FIND(CHAR(160),SUBSTITUTE($J123,\"}\",CHAR(160),FA$1))-FIND(CHAR(160),SUBSTITUTE($J123,\"{\",CHAR(160),FA$1))+1),\"\")","v":""},{"$f":"IFERROR(MID($J123,FIND(CHAR(160),SUBSTITUTE($J123,\"{\",CHAR(160),FB$1)),FIND(CHAR(160),SUBSTITUTE($J123,\"}\",CHAR(160),FB$1))-FIND(CHAR(160),SUBSTITUTE($J123,\"{\",CHAR(160),FB$1))+1),\"\")","v":""},{"$f":"IFERROR(MID($O123,FIND(CHAR(160),SUBSTITUTE($O123,\"{\",CHAR(160),FC$1)),FIND(CHAR(160),SUBSTITUTE($O123,\"}\",CHAR(160),FC$1))-FIND(CHAR(160),SUBSTITUTE($O123,\"{\",CHAR(160),FC$1))+1),\"\")","v":"{Weekly Hrs of Operation}"},{"$f":"IFERROR(MID($O123,FIND(CHAR(160),SUBSTITUTE($O123,\"{\",CHAR(160),FD$1)),FIND(CHAR(160),SUBSTITUTE($O123,\"}\",CHAR(160),FD$1))-FIND(CHAR(160),SUBSTITUTE($O123,\"{\",CHAR(160),FD$1))+1),\"\")","v":"{Weeks Per Year}"},{"$f":"IFERROR(MID($O123,FIND(CHAR(160),SUBSTITUTE($O123,\"{\",CHAR(160),FE$1)),FIND(CHAR(160),SUBSTITUTE($O123,\"}\",CHAR(160),FE$1))-FIND(CHAR(160),SUBSTITUTE($O123,\"{\",CHAR(160),FE$1))+1),\"\")","v":""},{"$f":"IFERROR(MID($O123,FIND(CHAR(160),SUBSTITUTE($O123,\"{\",CHAR(160),FF$1)),FIND(CHAR(160),SUBSTITUTE($O123,\"}\",CHAR(160),FF$1))-FIND(CHAR(160),SUBSTITUTE($O123,\"{\",CHAR(160),FF$1))+1),\"\")","v":""},{"$f":"IFERROR(MID($O123,FIND(CHAR(160),SUBSTITUTE($O123,\"{\",CHAR(160),FG$1)),FIND(CHAR(160),SUBSTITUTE($O123,\"}\",CHAR(160),FG$1))-FIND(CHAR(160),SUBSTITUTE($O123,\"{\",CHAR(160),FG$1))+1),\"\")","v":""},{"$f":"IFERROR(MID($O123,FIND(CHAR(160),SUBSTITUTE($O123,\"{\",CHAR(160),FH$1)),FIND(CHAR(160),SUBSTITUTE($O123,\"}\",CHAR(160),FH$1))-FIND(CHAR(160),SUBSTITUTE($O123,\"{\",CHAR(160),FH$1))+1),\"\")","v":""},{"$f":"IFERROR(MID($O123,FIND(CHAR(160),SUBSTITUTE($O123,\"{\",CHAR(160),FI$1)),FIND(CHAR(160),SUBSTITUTE($O123,\"}\",CHAR(160),FI$1))-FIND(CHAR(160),SUBSTITUTE($O123,\"{\",CHAR(160),FI$1))+1),\"\")","v":""},{"$f":"IFERROR(MID($O123,FIND(CHAR(160),SUBSTITUTE($O123,\"{\",CHAR(160),FJ$1)),FIND(CHAR(160),SUBSTITUTE($O123,\"}\",CHAR(160),FJ$1))-FIND(CHAR(160),SUBSTITUTE($O123,\"{\",CHAR(160),FJ$1))+1),\"\")","v":""},{"$f":"IFERROR(MID($O123,FIND(CHAR(160),SUBSTITUTE($O123,\"{\",CHAR(160),FK$1)),FIND(CHAR(160),SUBSTITUTE($O123,\"}\",CHAR(160),FK$1))-FIND(CHAR(160),SUBSTITUTE($O123,\"{\",CHAR(160),FK$1))+1),\"\")","v":"{Measure:Quantity}"},{"$f":"IFERROR(MID($O123,FIND(CHAR(160),SUBSTITUTE($O123,\"{\",CHAR(160),FL$1)),FIND(CHAR(160),SUBSTITUTE($O123,\"}\",CHAR(160),FL$1))-FIND(CHAR(160),SUBSTITUTE($O123,\"{\",CHAR(160),FL$1))+1),\"\")","v":"{System Compressor (HP)}"},{"$f":"IFERROR(MID($R123,FIND(CHAR(160),SUBSTITUTE($R123,\"{\",CHAR(160),FM$1)),FIND(CHAR(160),SUBSTITUTE($R123,\"}\",CHAR(160),FM$1))-FIND(CHAR(160),SUBSTITUTE($R123,\"{\",CHAR(160),FM$1))+1),\"\")","v":""},{"$f":"IFERROR(MID($R123,FIND(CHAR(160),SUBSTITUTE($R123,\"{\",CHAR(160),FN$1)),FIND(CHAR(160),SUBSTITUTE($R123,\"}\",CHAR(160),FN$1))-FIND(CHAR(160),SUBSTITUTE($R123,\"{\",CHAR(160),FN$1))+1),\"\")","v":""},{"$f":"IFERROR(MID($R123,FIND(CHAR(160),SUBSTITUTE($R123,\"{\",CHAR(160),FO$1)),FIND(CHAR(160),SUBSTITUTE($R123,\"}\",CHAR(160),FO$1))-FIND(CHAR(160),SUBSTITUTE($R123,\"{\",CHAR(160),FO$1))+1),\"\")","v":""},{"$f":"IFERROR(MID($R123,FIND(CHAR(160),SUBSTITUTE($R123,\"{\",CHAR(160),FP$1)),FIND(CHAR(160),SUBSTITUTE($R123,\"}\",CHAR(160),FP$1))-FIND(CHAR(160),SUBSTITUTE($R123,\"{\",CHAR(160),FP$1))+1),\"\")","v":""},{"$f":"IFERROR(MID($R123,FIND(CHAR(160),SUBSTITUTE($R123,\"{\",CHAR(160),FQ$1)),FIND(CHAR(160),SUBSTITUTE($R123,\"}\",CHAR(160),FQ$1))-FIND(CHAR(160),SUBSTITUTE($R123,\"{\",CHAR(160),FQ$1))+1),\"\")","v":""},{"$f":"IFERROR(MID($R123,FIND(CHAR(160),SUBSTITUTE($R123,\"{\",CHAR(160),FR$1)),FIND(CHAR(160),SUBSTITUTE($R123,\"}\",CHAR(160),FR$1))-FIND(CHAR(160),SUBSTITUTE($R123,\"{\",CHAR(160),FR$1))+1),\"\")","v":""},{"$f":"IFERROR(MID($R123,FIND(CHAR(160),SUBSTITUTE($R123,\"{\",CHAR(160),FS$1)),FIND(CHAR(160),SUBSTITUTE($R123,\"}\",CHAR(160),FS$1))-FIND(CHAR(160),SUBSTITUTE($R123,\"{\",CHAR(160),FS$1))+1),\"\")","v":""},{"$f":"IFERROR(MID($R123,FIND(CHAR(160),SUBSTITUTE($R123,\"{\",CHAR(160),FT$1)),FIND(CHAR(160),SUBSTITUTE($R123,\"}\",CHAR(160),FT$1))-FIND(CHAR(160),SUBSTITUTE($R123,\"{\",CHAR(160),FT$1))+1),\"\")","v":""},{"$f":"IFERROR(MID($R123,FIND(CHAR(160),SUBSTITUTE($R123,\"{\",CHAR(160),FU$1)),FIND(CHAR(160),SUBSTITUTE($R123,\"}\",CHAR(160),FU$1))-FIND(CHAR(160),SUBSTITUTE($R123,\"{\",CHAR(160),FU$1))+1),\"\")","v":"{Measure:Quantity}"},{"$f":"IFERROR(MID($R123,FIND(CHAR(160),SUBSTITUTE($R123,\"{\",CHAR(160),FV$1)),FIND(CHAR(160),SUBSTITUTE($R123,\"}\",CHAR(160),FV$1))-FIND(CHAR(160),SUBSTITUTE($R123,\"{\",CHAR(160),FV$1))+1),\"\")","v":"{System Compressor (HP)}"},{"$f":"IFERROR(MID($U123,FIND(CHAR(160),SUBSTITUTE($U123,\"{\",CHAR(160),FW$1)),FIND(CHAR(160),SUBSTITUTE($U123,\"}\",CHAR(160),FW$1))-FIND(CHAR(160),SUBSTITUTE($U123,\"{\",CHAR(160),FW$1))+1),\"\")","v":"{Factor:WinterCF}"},{"$f":"IFERROR(MID($U123,FIND(CHAR(160),SUBSTITUTE($U123,\"{\",CHAR(160),FX$1)),FIND(CHAR(160),SUBSTITUTE($U123,\"}\",CHAR(160),FX$1))-FIND(CHAR(160),SUBSTITUTE($U123,\"{\",CHAR(160),FX$1))+1),\"\")","v":""},{"$f":"IFERROR(MID($U123,FIND(CHAR(160),SUBSTITUTE($U123,\"{\",CHAR(160),FY$1)),FIND(CHAR(160),SUBSTITUTE($U123,\"}\",CHAR(160),FY$1))-FIND(CHAR(160),SUBSTITUTE($U123,\"{\",CHAR(160),FY$1))+1),\"\")","v":""},{"$f":"IFERROR(MID($U123,FIND(CHAR(160),SUBSTITUTE($U123,\"{\",CHAR(160),FZ$1)),FIND(CHAR(160),SUBSTITUTE($U123,\"}\",CHAR(160),FZ$1))-FIND(CHAR(160),SUBSTITUTE($U123,\"{\",CHAR(160),FZ$1))+1),\"\")","v":""},{"$f":"IFERROR(MID($U123,FIND(CHAR(160),SUBSTITUTE($U123,\"{\",CHAR(160),GA$1)),FIND(CHAR(160),SUBSTITUTE($U123,\"}\",CHAR(160),GA$1))-FIND(CHAR(160),SUBSTITUTE($U123,\"{\",CHAR(160),GA$1))+1),\"\")","v":""},{"$f":"IFERROR(MID($U123,FIND(CHAR(160),SUBSTITUTE($U123,\"{\",CHAR(160),GB$1)),FIND(CHAR(160),SUBSTITUTE($U123,\"}\",CHAR(160),GB$1))-FIND(CHAR(160),SUBSTITUTE($U123,\"{\",CHAR(160),GB$1))+1),\"\")","v":""},{"$f":"IFERROR(MID($U123,FIND(CHAR(160),SUBSTITUTE($U123,\"{\",CHAR(160),GC$1)),FIND(CHAR(160),SUBSTITUTE($U123,\"}\",CHAR(160),GC$1))-FIND(CHAR(160),SUBSTITUTE($U123,\"{\",CHAR(160),GC$1))+1),\"\")","v":""},{"$f":"IFERROR(MID($U123,FIND(CHAR(160),SUBSTITUTE($U123,\"{\",CHAR(160),GD$1)),FIND(CHAR(160),SUBSTITUTE($U123,\"}\",CHAR(160),GD$1))-FIND(CHAR(160),SUBSTITUTE($U123,\"{\",CHAR(160),GD$1))+1),\"\")","v":""},{"$f":"IFERROR(MID($U123,FIND(CHAR(160),SUBSTITUTE($U123,\"{\",CHAR(160),GE$1)),FIND(CHAR(160),SUBSTITUTE($U123,\"}\",CHAR(160),GE$1))-FIND(CHAR(160),SUBSTITUTE($U123,\"{\",CHAR(160),GE$1))+1),\"\")","v":"{Measure:Quantity}"},{"$f":"IFERROR(MID($U123,FIND(CHAR(160),SUBSTITUTE($U123,\"{\",CHAR(160),GF$1)),FIND(CHAR(160),SUBSTITUTE($U123,\"}\",CHAR(160),GF$1))-FIND(CHAR(160),SUBSTITUTE($U123,\"{\",CHAR(160),GF$1))+1),\"\")","v":"{System Compressor (HP)}"},{"$f":"IFERROR(MID($V123,FIND(CHAR(160),SUBSTITUTE($V123,\"{\",CHAR(160),GG$1)),FIND(CHAR(160),SUBSTITUTE($V123,\"}\",CHAR(160),GG$1))-FIND(CHAR(160),SUBSTITUTE($V123,\"{\",CHAR(160),GG$1))+1),\"\")","v":"{Factor:SummerCF}"},{"$f":"IFERROR(MID($V123,FIND(CHAR(160),SUBSTITUTE($V123,\"{\",CHAR(160),GH$1)),FIND(CHAR(160),SUBSTITUTE($V123,\"}\",CHAR(160),GH$1))-FIND(CHAR(160),SUBSTITUTE($V123,\"{\",CHAR(160),GH$1))+1),\"\")","v":""},{"$f":"IFERROR(MID($V123,FIND(CHAR(160),SUBSTITUTE($V123,\"{\",CHAR(160),GI$1)),FIND(CHAR(160),SUBSTITUTE($V123,\"}\",CHAR(160),GI$1))-FIND(CHAR(160),SUBSTITUTE($V123,\"{\",CHAR(160),GI$1))+1),\"\")","v":""},{"$f":"IFERROR(MID($V123,FIND(CHAR(160),SUBSTITUTE($V123,\"{\",CHAR(160),GJ$1)),FIND(CHAR(160),SUBSTITUTE($V123,\"}\",CHAR(160),GJ$1))-FIND(CHAR(160),SUBSTITUTE($V123,\"{\",CHAR(160),GJ$1))+1),\"\")","v":""},{"$f":"IFERROR(MID($V123,FIND(CHAR(160),SUBSTITUTE($V123,\"{\",CHAR(160),GK$1)),FIND(CHAR(160),SUBSTITUTE($V123,\"}\",CHAR(160),GK$1))-FIND(CHAR(160),SUBSTITUTE($V123,\"{\",CHAR(160),GK$1))+1),\"\")","v":""},{"$f":"IFERROR(MID($V123,FIND(CHAR(160),SUBSTITUTE($V123,\"{\",CHAR(160),GL$1)),FIND(CHAR(160),SUBSTITUTE($V123,\"}\",CHAR(160),GL$1))-FIND(CHAR(160),SUBSTITUTE($V123,\"{\",CHAR(160),GL$1))+1),\"\")","v":""},{"$f":"IFERROR(MID($V123,FIND(CHAR(160),SUBSTITUTE($V123,\"{\",CHAR(160),GM$1)),FIND(CHAR(160),SUBSTITUTE($V123,\"}\",CHAR(160),GM$1))-FIND(CHAR(160),SUBSTITUTE($V123,\"{\",CHAR(160),GM$1))+1),\"\")","v":""},{"$f":"IFERROR(MID($V123,FIND(CHAR(160),SUBSTITUTE($V123,\"{\",CHAR(160),GN$1)),FIND(CHAR(160),SUBSTITUTE($V123,\"}\",CHAR(160),GN$1))-FIND(CHAR(160),SUBSTITUTE($V123,\"{\",CHAR(160),GN$1))+1),\"\")","v":""},{"$f":"IFERROR(MID($V123,FIND(CHAR(160),SUBSTITUTE($V123,\"{\",CHAR(160),GO$1)),FIND(CHAR(160),SUBSTITUTE($V123,\"}\",CHAR(160),GO$1))-FIND(CHAR(160),SUBSTITUTE($V123,\"{\",CHAR(160),GO$1))+1),\"\")","v":"{Measure:Quantity}"},{"$f":"IFERROR(MID($V123,FIND(CHAR(160),SUBSTITUTE($V123,\"{\",CHAR(160),GP$1)),FIND(CHAR(160),SUBSTITUTE($V123,\"}\",CHAR(160),GP$1))-FIND(CHAR(160),SUBSTITUTE($V123,\"{\",CHAR(160),GP$1))+1),\"\")","v":"{System Compressor (HP)}"},{"$f":"IFERROR(MID($W123,FIND(CHAR(160),SUBSTITUTE($W123,\"{\",CHAR(160),GQ$1)),FIND(CHAR(160),SUBSTITUTE($W123,\"}\",CHAR(160),GQ$1))-FIND(CHAR(160),SUBSTITUTE($W123,\"{\",CHAR(160),GQ$1))+1),\"\")","v":""},{"$f":"IFERROR(MID($W123,FIND(CHAR(160),SUBSTITUTE($W123,\"{\",CHAR(160),GR$1)),FIND(CHAR(160),SUBSTITUTE($W123,\"}\",CHAR(160),GR$1))-FIND(CHAR(160),SUBSTITUTE($W123,\"{\",CHAR(160),GR$1))+1),\"\")","v":""},{"$f":"IFERROR(MID($W123,FIND(CHAR(160),SUBSTITUTE($W123,\"{\",CHAR(160),GS$1)),FIND(CHAR(160),SUBSTITUTE($W123,\"}\",CHAR(160),GS$1))-FIND(CHAR(160),SUBSTITUTE($W123,\"{\",CHAR(160),GS$1))+1),\"\")","v":""},{"$f":"IFERROR(MID($W123,FIND(CHAR(160),SUBSTITUTE($W123,\"{\",CHAR(160),GT$1)),FIND(CHAR(160),SUBSTITUTE($W123,\"}\",CHAR(160),GT$1))-FIND(CHAR(160),SUBSTITUTE($W123,\"{\",CHAR(160),GT$1))+1),\"\")","v":""},{"$f":"IFERROR(MID($W123,FIND(CHAR(160),SUBSTITUTE($W123,\"{\",CHAR(160),GU$1)),FIND(CHAR(160),SUBSTITUTE($W123,\"}\",CHAR(160),GU$1))-FIND(CHAR(160),SUBSTITUTE($W123,\"{\",CHAR(160),GU$1))+1),\"\")","v":""},{"$f":"IFERROR(MID($W123,FIND(CHAR(160),SUBSTITUTE($W123,\"{\",CHAR(160),GV$1)),FIND(CHAR(160),SUBSTITUTE($W123,\"}\",CHAR(160),GV$1))-FIND(CHAR(160),SUBSTITUTE($W123,\"{\",CHAR(160),GV$1))+1),\"\")","v":""},{"$f":"IFERROR(MID($W123,FIND(CHAR(160),SUBSTITUTE($W123,\"{\",CHAR(160),GW$1)),FIND(CHAR(160),SUBSTITUTE($W123,\"}\",CHAR(160),GW$1))-FIND(CHAR(160),SUBSTITUTE($W123,\"{\",CHAR(160),GW$1))+1),\"\")","v":""},{"$f":"IFERROR(MID($W123,FIND(CHAR(160),SUBSTITUTE($W123,\"{\",CHAR(160),GX$1)),FIND(CHAR(160),SUBSTITUTE($W123,\"}\",CHAR(160),GX$1))-FIND(CHAR(160),SUBSTITUTE($W123,\"{\",CHAR(160),GX$1))+1),\"\")","v":""},{"$f":"IFERROR(MID($W123,FIND(CHAR(160),SUBSTITUTE($W123,\"{\",CHAR(160),GY$1)),FIND(CHAR(160),SUBSTITUTE($W123,\"}\",CHAR(160),GY$1))-FIND(CHAR(160),SUBSTITUTE($W123,\"{\",CHAR(160),GY$1))+1),\"\")","v":""},{"$f":"IFERROR(MID($W123,FIND(CHAR(160),SUBSTITUTE($W123,\"{\",CHAR(160),GZ$1)),FIND(CHAR(160),SUBSTITUTE($W123,\"}\",CHAR(160),GZ$1))-FIND(CHAR(160),SUBSTITUTE($W123,\"{\",CHAR(160),GZ$1))+1),\"\")","v":""},{"$f":"IFERROR(MID($X123,FIND(CHAR(160),SUBSTITUTE($X123,\"{\",CHAR(160),HA$1)),FIND(CHAR(160),SUBSTITUTE($X123,\"}\",CHAR(160),HA$1))-FIND(CHAR(160),SUBSTITUTE($X123,\"{\",CHAR(160),HA$1))+1),\"\")","v":""},{"$f":"IFERROR(MID($X123,FIND(CHAR(160),SUBSTITUTE($X123,\"{\",CHAR(160),HB$1)),FIND(CHAR(160),SUBSTITUTE($X123,\"}\",CHAR(160),HB$1))-FIND(CHAR(160),SUBSTITUTE($X123,\"{\",CHAR(160),HB$1))+1),\"\")","v":""},{"$f":"IFERROR(MID($X123,FIND(CHAR(160),SUBSTITUTE($X123,\"{\",CHAR(160),HC$1)),FIND(CHAR(160),SUBSTITUTE($X123,\"}\",CHAR(160),HC$1))-FIND(CHAR(160),SUBSTITUTE($X123,\"{\",CHAR(160),HC$1))+1),\"\")","v":""},{"$f":"IFERROR(MID($X123,FIND(CHAR(160),SUBSTITUTE($X123,\"{\",CHAR(160),HD$1)),FIND(CHAR(160),SUBSTITUTE($X123,\"}\",CHAR(160),HD$1))-FIND(CHAR(160),SUBSTITUTE($X123,\"{\",CHAR(160),HD$1))+1),\"\")","v":""},{"$f":"IFERROR(MID($X123,FIND(CHAR(160),SUBSTITUTE($X123,\"{\",CHAR(160),HE$1)),FIND(CHAR(160),SUBSTITUTE($X123,\"}\",CHAR(160),HE$1))-FIND(CHAR(160),SUBSTITUTE($X123,\"{\",CHAR(160),HE$1))+1),\"\")","v":""},{"$f":"IFERROR(MID($X123,FIND(CHAR(160),SUBSTITUTE($X123,\"{\",CHAR(160),HF$1)),FIND(CHAR(160),SUBSTITUTE($X123,\"}\",CHAR(160),HF$1))-FIND(CHAR(160),SUBSTITUTE($X123,\"{\",CHAR(160),HF$1))+1),\"\")","v":""},{"$f":"IFERROR(MID($X123,FIND(CHAR(160),SUBSTITUTE($X123,\"{\",CHAR(160),HG$1)),FIND(CHAR(160),SUBSTITUTE($X123,\"}\",CHAR(160),HG$1))-FIND(CHAR(160),SUBSTITUTE($X123,\"{\",CHAR(160),HG$1))+1),\"\")","v":""},{"$f":"IFERROR(MID($X123,FIND(CHAR(160),SUBSTITUTE($X123,\"{\",CHAR(160),HH$1)),FIND(CHAR(160),SUBSTITUTE($X123,\"}\",CHAR(160),HH$1))-FIND(CHAR(160),SUBSTITUTE($X123,\"{\",CHAR(160),HH$1))+1),\"\")","v":""},{"$f":"IFERROR(MID($X123,FIND(CHAR(160),SUBSTITUTE($X123,\"{\",CHAR(160),HI$1)),FIND(CHAR(160),SUBSTITUTE($X123,\"}\",CHAR(160),HI$1))-FIND(CHAR(160),SUBSTITUTE($X123,\"{\",CHAR(160),HI$1))+1),\"\")","v":""},{"$f":"IFERROR(MID($X123,FIND(CHAR(160),SUBSTITUTE($X123,\"{\",CHAR(160),HJ$1)),FIND(CHAR(160),SUBSTITUTE($X123,\"}\",CHAR(160),HJ$1))-FIND(CHAR(160),SUBSTITUTE($X123,\"{\",CHAR(160),HJ$1))+1),\"\")","v":""},{"$f":"IFERROR(MID($Y123,FIND(CHAR(160),SUBSTITUTE($Y123,\"{\",CHAR(160),HK$1)),FIND(CHAR(160),SUBSTITUTE($Y123,\"}\",CHAR(160),HK$1))-FIND(CHAR(160),SUBSTITUTE($Y123,\"{\",CHAR(160),HK$1))+1),\"\")","v":""},{"$f":"IFERROR(MID($Y123,FIND(CHAR(160),SUBSTITUTE($Y123,\"{\",CHAR(160),HL$1)),FIND(CHAR(160),SUBSTITUTE($Y123,\"}\",CHAR(160),HL$1))-FIND(CHAR(160),SUBSTITUTE($Y123,\"{\",CHAR(160),HL$1))+1),\"\")","v":""},{"$f":"IFERROR(MID($Y123,FIND(CHAR(160),SUBSTITUTE($Y123,\"{\",CHAR(160),HM$1)),FIND(CHAR(160),SUBSTITUTE($Y123,\"}\",CHAR(160),HM$1))-FIND(CHAR(160),SUBSTITUTE($Y123,\"{\",CHAR(160),HM$1))+1),\"\")","v":""},{"$f":"IFERROR(MID($Y123,FIND(CHAR(160),SUBSTITUTE($Y123,\"{\",CHAR(160),HN$1)),FIND(CHAR(160),SUBSTITUTE($Y123,\"}\",CHAR(160),HN$1))-FIND(CHAR(160),SUBSTITUTE($Y123,\"{\",CHAR(160),HN$1))+1),\"\")","v":""},{"$f":"IFERROR(MID($Y123,FIND(CHAR(160),SUBSTITUTE($Y123,\"{\",CHAR(160),HO$1)),FIND(CHAR(160),SUBSTITUTE($Y123,\"}\",CHAR(160),HO$1))-FIND(CHAR(160),SUBSTITUTE($Y123,\"{\",CHAR(160),HO$1))+1),\"\")","v":""},{"$f":"IFERROR(MID($Y123,FIND(CHAR(160),SUBSTITUTE($Y123,\"{\",CHAR(160),HP$1)),FIND(CHAR(160),SUBSTITUTE($Y123,\"}\",CHAR(160),HP$1))-FIND(CHAR(160),SUBSTITUTE($Y123,\"{\",CHAR(160),HP$1))+1),\"\")","v":""},{"$f":"IFERROR(MID($Y123,FIND(CHAR(160),SUBSTITUTE($Y123,\"{\",CHAR(160),HQ$1)),FIND(CHAR(160),SUBSTITUTE($Y123,\"}\",CHAR(160),HQ$1))-FIND(CHAR(160),SUBSTITUTE($Y123,\"{\",CHAR(160),HQ$1))+1),\"\")","v":""},{"$f":"IFERROR(MID($Y123,FIND(CHAR(160),SUBSTITUTE($Y123,\"{\",CHAR(160),HR$1)),FIND(CHAR(160),SUBSTITUTE($Y123,\"}\",CHAR(160),HR$1))-FIND(CHAR(160),SUBSTITUTE($Y123,\"{\",CHAR(160),HR$1))+1),\"\")","v":""},{"$f":"IFERROR(MID($Y123,FIND(CHAR(160),SUBSTITUTE($Y123,\"{\",CHAR(160),HS$1)),FIND(CHAR(160),SUBSTITUTE($Y123,\"}\",CHAR(160),HS$1))-FIND(CHAR(160),SUBSTITUTE($Y123,\"{\",CHAR(160),HS$1))+1),\"\")","v":""},{"$f":"IFERROR(MID($Y123,FIND(CHAR(160),SUBSTITUTE($Y123,\"{\",CHAR(160),HT$1)),FIND(CHAR(160),SUBSTITUTE($Y123,\"}\",CHAR(160),HT$1))-FIND(CHAR(160),SUBSTITUTE($Y123,\"{\",CHAR(160),HT$1))+1),\"\")","v":""},{"$f":"IFERROR(MID($Z123,FIND(CHAR(160),SUBSTITUTE($Z123,\"{\",CHAR(160),HU$1)),FIND(CHAR(160),SUBSTITUTE($Z123,\"}\",CHAR(160),HU$1))-FIND(CHAR(160),SUBSTITUTE($Z123,\"{\",CHAR(160),HU$1))+1),\"\")","v":""},{"$f":"IFERROR(MID($Z123,FIND(CHAR(160),SUBSTITUTE($Z123,\"{\",CHAR(160),HV$1)),FIND(CHAR(160),SUBSTITUTE($Z123,\"}\",CHAR(160),HV$1))-FIND(CHAR(160),SUBSTITUTE($Z123,\"{\",CHAR(160),HV$1))+1),\"\")","v":""},{"$f":"IFERROR(MID($Z123,FIND(CHAR(160),SUBSTITUTE($Z123,\"{\",CHAR(160),HW$1)),FIND(CHAR(160),SUBSTITUTE($Z123,\"}\",CHAR(160),HW$1))-FIND(CHAR(160),SUBSTITUTE($Z123,\"{\",CHAR(160),HW$1))+1),\"\")","v":""},{"$f":"IFERROR(MID($Z123,FIND(CHAR(160),SUBSTITUTE($Z123,\"{\",CHAR(160),HX$1)),FIND(CHAR(160),SUBSTITUTE($Z123,\"}\",CHAR(160),HX$1))-FIND(CHAR(160),SUBSTITUTE($Z123,\"{\",CHAR(160),HX$1))+1),\"\")","v":""},{"$f":"IFERROR(MID($Z123,FIND(CHAR(160),SUBSTITUTE($Z123,\"{\",CHAR(160),HY$1)),FIND(CHAR(160),SUBSTITUTE($Z123,\"}\",CHAR(160),HY$1))-FIND(CHAR(160),SUBSTITUTE($Z123,\"{\",CHAR(160),HY$1))+1),\"\")","v":""},{"$f":"IFERROR(MID($Z123,FIND(CHAR(160),SUBSTITUTE($Z123,\"{\",CHAR(160),HZ$1)),FIND(CHAR(160),SUBSTITUTE($Z123,\"}\",CHAR(160),HZ$1))-FIND(CHAR(160),SUBSTITUTE($Z123,\"{\",CHAR(160),HZ$1))+1),\"\")","v":""},{"$f":"IFERROR(MID($Z123,FIND(CHAR(160),SUBSTITUTE($Z123,\"{\",CHAR(160),IA$1)),FIND(CHAR(160),SUBSTITUTE($Z123,\"}\",CHAR(160),IA$1))-FIND(CHAR(160),SUBSTITUTE($Z123,\"{\",CHAR(160),IA$1))+1),\"\")","v":""},{"$f":"IFERROR(MID($Z123,FIND(CHAR(160),SUBSTITUTE($Z123,\"{\",CHAR(160),IB$1)),FIND(CHAR(160),SUBSTITUTE($Z123,\"}\",CHAR(160),IB$1))-FIND(CHAR(160),SUBSTITUTE($Z123,\"{\",CHAR(160),IB$1))+1),\"\")","v":""},{"$f":"IFERROR(MID($Z123,FIND(CHAR(160),SUBSTITUTE($Z123,\"{\",CHAR(160),IC$1)),FIND(CHAR(160),SUBSTITUTE($Z123,\"}\",CHAR(160),IC$1))-FIND(CHAR(160),SUBSTITUTE($Z123,\"{\",CHAR(160),IC$1))+1),\"\")","v":""},{"$f":"IFERROR(MID($Z123,FIND(CHAR(160),SUBSTITUTE($Z123,\"{\",CHAR(160),ID$1)),FIND(CHAR(160),SUBSTITUTE($Z123,\"}\",CHAR(160),ID$1))-FIND(CHAR(160),SUBSTITUTE($Z123,\"{\",CHAR(160),ID$1))+1),\"\")","v":""},{"$f":"IFERROR(MID($AA123,FIND(CHAR(160),SUBSTITUTE($AA123,\"{\",CHAR(160),IE$1)),FIND(CHAR(160),SUBSTITUTE($AA123,\"}\",CHAR(160),IE$1))-FIND(CHAR(160),SUBSTITUTE($AA123,\"{\",CHAR(160),IE$1))+1),\"\")","v":""},{"$f":"IFERROR(MID($AA123,FIND(CHAR(160),SUBSTITUTE($AA123,\"{\",CHAR(160),IF$1)),FIND(CHAR(160),SUBSTITUTE($AA123,\"}\",CHAR(160),IF$1))-FIND(CHAR(160),SUBSTITUTE($AA123,\"{\",CHAR(160),IF$1))+1),\"\")","v":""},{"$f":"IFERROR(MID($AA123,FIND(CHAR(160),SUBSTITUTE($AA123,\"{\",CHAR(160),IG$1)),FIND(CHAR(160),SUBSTITUTE($AA123,\"}\",CHAR(160),IG$1))-FIND(CHAR(160),SUBSTITUTE($AA123,\"{\",CHAR(160),IG$1))+1),\"\")","v":""},{"$f":"IFERROR(MID($AA123,FIND(CHAR(160),SUBSTITUTE($AA123,\"{\",CHAR(160),IH$1)),FIND(CHAR(160),SUBSTITUTE($AA123,\"}\",CHAR(160),IH$1))-FIND(CHAR(160),SUBSTITUTE($AA123,\"{\",CHAR(160),IH$1))+1),\"\")","v":""},{"$f":"IFERROR(MID($AA123,FIND(CHAR(160),SUBSTITUTE($AA123,\"{\",CHAR(160),II$1)),FIND(CHAR(160),SUBSTITUTE($AA123,\"}\",CHAR(160),II$1))-FIND(CHAR(160),SUBSTITUTE($AA123,\"{\",CHAR(160),II$1))+1),\"\")","v":""},{"$f":"IFERROR(MID($AA123,FIND(CHAR(160),SUBSTITUTE($AA123,\"{\",CHAR(160),IJ$1)),FIND(CHAR(160),SUBSTITUTE($AA123,\"}\",CHAR(160),IJ$1))-FIND(CHAR(160),SUBSTITUTE($AA123,\"{\",CHAR(160),IJ$1))+1),\"\")","v":""},{"$f":"IFERROR(MID($AA123,FIND(CHAR(160),SUBSTITUTE($AA123,\"{\",CHAR(160),IK$1)),FIND(CHAR(160),SUBSTITUTE($AA123,\"}\",CHAR(160),IK$1))-FIND(CHAR(160),SUBSTITUTE($AA123,\"{\",CHAR(160),IK$1))+1),\"\")","v":""},{"$f":"IFERROR(MID($AA123,FIND(CHAR(160),SUBSTITUTE($AA123,\"{\",CHAR(160),IL$1)),FIND(CHAR(160),SUBSTITUTE($AA123,\"}\",CHAR(160),IL$1))-FIND(CHAR(160),SUBSTITUTE($AA123,\"{\",CHAR(160),IL$1))+1),\"\")","v":""},{"$f":"IFERROR(MID($AA123,FIND(CHAR(160),SUBSTITUTE($AA123,\"{\",CHAR(160),IM$1)),FIND(CHAR(160),SUBSTITUTE($AA123,\"}\",CHAR(160),IM$1))-FIND(CHAR(160),SUBSTITUTE($AA123,\"{\",CHAR(160),IM$1))+1),\"\")","v":""},{"$f":"IFERROR(MID($AA123,FIND(CHAR(160),SUBSTITUTE($AA123,\"{\",CHAR(160),IN$1)),FIND(CHAR(160),SUBSTITUTE($AA123,\"}\",CHAR(160),IN$1))-FIND(CHAR(160),SUBSTITUTE($AA123,\"{\",CHAR(160),IN$1))+1),\"\")","v":""},{"$f":"IFERROR(MID($AB123,FIND(CHAR(160),SUBSTITUTE($AB123,\"{\",CHAR(160),IO$1)),FIND(CHAR(160),SUBSTITUTE($AB123,\"}\",CHAR(160),IO$1))-FIND(CHAR(160),SUBSTITUTE($AB123,\"{\",CHAR(160),IO$1))+1),\"\")","v":""},{"$f":"IFERROR(MID($AB123,FIND(CHAR(160),SUBSTITUTE($AB123,\"{\",CHAR(160),IP$1)),FIND(CHAR(160),SUBSTITUTE($AB123,\"}\",CHAR(160),IP$1))-FIND(CHAR(160),SUBSTITUTE($AB123,\"{\",CHAR(160),IP$1))+1),\"\")","v":""},{"$f":"IFERROR(MID($AB123,FIND(CHAR(160),SUBSTITUTE($AB123,\"{\",CHAR(160),IQ$1)),FIND(CHAR(160),SUBSTITUTE($AB123,\"}\",CHAR(160),IQ$1))-FIND(CHAR(160),SUBSTITUTE($AB123,\"{\",CHAR(160),IQ$1))+1),\"\")","v":""},{"$f":"IFERROR(MID($AB123,FIND(CHAR(160),SUBSTITUTE($AB123,\"{\",CHAR(160),IR$1)),FIND(CHAR(160),SUBSTITUTE($AB123,\"}\",CHAR(160),IR$1))-FIND(CHAR(160),SUBSTITUTE($AB123,\"{\",CHAR(160),IR$1))+1),\"\")","v":""},{"$f":"IFERROR(MID($AB123,FIND(CHAR(160),SUBSTITUTE($AB123,\"{\",CHAR(160),IS$1)),FIND(CHAR(160),SUBSTITUTE($AB123,\"}\",CHAR(160),IS$1))-FIND(CHAR(160),SUBSTITUTE($AB123,\"{\",CHAR(160),IS$1))+1),\"\")","v":""},{"$f":"IFERROR(MID($AB123,FIND(CHAR(160),SUBSTITUTE($AB123,\"{\",CHAR(160),IT$1)),FIND(CHAR(160),SUBSTITUTE($AB123,\"}\",CHAR(160),IT$1))-FIND(CHAR(160),SUBSTITUTE($AB123,\"{\",CHAR(160),IT$1))+1),\"\")","v":""},{"$f":"IFERROR(MID($AB123,FIND(CHAR(160),SUBSTITUTE($AB123,\"{\",CHAR(160),IU$1)),FIND(CHAR(160),SUBSTITUTE($AB123,\"}\",CHAR(160),IU$1))-FIND(CHAR(160),SUBSTITUTE($AB123,\"{\",CHAR(160),IU$1))+1),\"\")","v":""},{"$f":"IFERROR(MID($AB123,FIND(CHAR(160),SUBSTITUTE($AB123,\"{\",CHAR(160),IV$1)),FIND(CHAR(160),SUBSTITUTE($AB123,\"}\",CHAR(160),IV$1))-FIND(CHAR(160),SUBSTITUTE($AB123,\"{\",CHAR(160),IV$1))+1),\"\")","v":""},{"$f":"IFERROR(MID($AB123,FIND(CHAR(160),SUBSTITUTE($AB123,\"{\",CHAR(160),IW$1)),FIND(CHAR(160),SUBSTITUTE($AB123,\"}\",CHAR(160),IW$1))-FIND(CHAR(160),SUBSTITUTE($AB123,\"{\",CHAR(160),IW$1))+1),\"\")","v":""},{"$f":"IFERROR(MID($AB123,FIND(CHAR(160),SUBSTITUTE($AB123,\"{\",CHAR(160),IX$1)),FIND(CHAR(160),SUBSTITUTE($AB123,\"}\",CHAR(160),IX$1))-FIND(CHAR(160),SUBSTITUTE($AB123,\"{\",CHAR(160),IX$1))+1),\"\")","v":""},null,{"$f":"10-COUNTIF(DU123:ED123,\"\")","v":4}]
["C&I Prescriptive Compressed Air Solutions","Receiver - C22 - Standard Receiver Size 120 Gallons","R - C22","2021-07-01","2022-06-30","Per Measure",1058,0,"Per Measure",500,0,"2017-07-01","2022-06-30","Calculated","{Measure:Quantity} *{System Compressor (HP)} * 0.746 * 0.025 * {Weekly Hrs of Operation} * {Weeks Per Year}",1E-4,null,"{Measure:Quantity} *{System Compressor (HP)} * 0.746 * 0.025",null,null,"{Measure:Quantity} *{System Compressor (HP)} * 0.746 * 0.025 * {Factor:WinterCF}","{Measure:Quantity} *{System Compressor (HP)} * 0.746 * 0.025 * {Factor:SummerCF}",null,null,null,null,null,null,"2017-07-01","2022-06-30",10,0.7,0.91100000000000003,0.30399999999999999,0.36099999999999999,0.156,0.17899999999999999,1,1.1220000000000001,1,0.52,1.6E-2,null,{"$f":"DU124","v":"{Weekly Hrs of Operation}"},1,{"$f":"DV124","v":"{Weeks Per Year}"},25,{"$f":"DW124","v":"{Measure:Quantity}"},50,{"$f":"DX124","v":"{System Compressor (HP)}"},50,{"$f":"DY124","v":""},null,{"$f":"DZ124","v":""},null,{"$f":"EA124","v":""},null,{"$f":"EB124","v":""},null,{"$f":"EC124","v":""},null,{"$f":"ED124","v":""},null,{"$f":"AS124 *AU124 * 0.746 * 0.025 * AW124 * AY124","v":1165.625},{"$f":"0.0001","v":1E-4},0,{"$f":"AS124 *AU124 * 0.746 * 0.025","v":0.46625},0,0,{"$f":"AS124 *AU124 * 0.746 * 0.025 * AF124","v":0.32637499999999997},{"$f":"AS124 *AU124 * 0.746 * 0.025 * AG124","v":0.42475374999999999},0,0,0,0,0,0,null,"Com","Default DR",{"$f":"Benefits(BL124,BR124,BS124,BT124,BU124,BV124,BW124,BX124,BY124,BZ124,AE124,AH124,AI124,AJ124,AK124,AL124,AM124,AN124,AO124,AP124,CA124,CB124)","v":1294.8951022908618},1437.1401028065839,0,0,0,0,0,0,0,{"$f":"SUMPRODUCT(CC124:CK124,--(CC124:CK124>0))","v":2732.0352050974457},{"$f":"-SUMPRODUCT(CC124:CK124,--(CC124:CK124<0))","v":0},null,{"$f":"1058","v":1058},null,null,{"$f":"CM124+CO124","v":1058},{"$f":"IF(NetOrGross=\"Net\",(1-AO124+AP124),1)","v":1},{"$f":"(SUMPRODUCT(CC124:CJ124,--(CC124:CJ124>0))+CN124)*CS124/((-SUMPRODUCT(CC124:CJ124,--(CC124:CJ124<0))+MAX(CO124,CV124)+CP124+CQ124)*CS124+IF(FRIncentives=\"Yes\",CV124*(1-CS124),0))","v":2.5822638989578883},19,{"$f":"500","v":500},null,"Electric","y",null,{"$f":"IF(F124=\"Manual Entry\",\"Manual\",IF(G124=\"\",0,\"X=\"&SUBSTITUTE(SUBSTITUTE(SUBSTITUTE(SUBSTITUTE(SUBSTITUTE(SUBSTITUTE(SUBSTITUTE(SUBSTITUTE(SUBSTITUTE(SUBSTITUTE(SUBSTITUTE(SUBSTITUTE(G124,$ED124,$ED$2&ROW($ED124)),$EC124,$EC$2&ROW($EC124)),$EB124,$EB$2&ROW($EB124)),$EA124,$EA$2&ROW($EA124)),$DZ124,$DZ$2&ROW($DZ124)),$DY124,$DY$2&ROW($DY124)),$DX124,$DX$2&ROW($DX124)),$DW124,$DW$2&ROW($DW124)),$DV124,$DV$2&ROW($DV124)),$DU124,$DU$2&ROW($DU124)),$DT124,$DT$2&ROW($DT124)),$DS124,$DS$2&ROW($DS124))))","v":"X=1058"},{"$f":"IF(I124=\"Manual Entry\",\"Manual\",IF(J124=\"\",0,\"X=\"&SUBSTITUTE(SUBSTITUTE(SUBSTITUTE(SUBSTITUTE(SUBSTITUTE(SUBSTITUTE(SUBSTITUTE(SUBSTITUTE(SUBSTITUTE(SUBSTITUTE(SUBSTITUTE(SUBSTITUTE(J124,$ED124,$ED$2&ROW($ED124)),$EC124,$EC$2&ROW($EC124)),$EB124,$EB$2&ROW($EB124)),$EA124,$EA$2&ROW($EA124)),$DZ124,$DZ$2&ROW($DZ124)),$DY124,$DY$2&ROW($DY124)),$DX124,$DX$2&ROW($DX124)),$DW124,$DW$2&ROW($DW124)),$DV124,$DV$2&ROW($DV124)),$DU124,$DU$2&ROW($DU124)),$DT124,$DT$2&ROW($DT124)),$DS124,$DS$2&ROW($DS124))))","v":"X=500"},{"$f":"IF(O124=\"\",0,\"X=\"&SUBSTITUTE(SUBSTITUTE(SUBSTITUTE(SUBSTITUTE(SUBSTITUTE(SUBSTITUTE(SUBSTITUTE(SUBSTITUTE(SUBSTITUTE(SUBSTITUTE(SUBSTITUTE(SUBSTITUTE(O124,$ED124,$ED$2&ROW($ED124)),$EC124,$EC$2&ROW($EC124)),$EB124,$EB$2&ROW($EB124)),$EA124,$EA$2&ROW($EA124)),$DZ124,$DZ$2&ROW($DZ124)),$DY124,$DY$2&ROW($DY124)),$DX124,$DX$2&ROW($DX124)),$DW124,$DW$2&ROW($DW124)),$DV124,$DV$2&ROW($DV124)),$DU124,$DU$2&ROW($DU124)),$DT124,$DT$2&ROW($DT124)),$DS124,$DS$2&ROW($DS124)))","v":"X=AW124 *AY124 * 0.746 * 0.025 * AS124 * AU124"},{"$f":"IF(P124=\"\",0,\"X=\"&SUBSTITUTE(SUBSTITUTE(SUBSTITUTE(SUBSTITUTE(SUBSTITUTE(SUBSTITUTE(SUBSTITUTE(SUBSTITUTE(SUBSTITUTE(SUBSTITUTE(SUBSTITUTE(SUBSTITUTE(P124,$ED124,$ED$2&ROW($ED124)),$EC124,$EC$2&ROW($EC124)),$EB124,$EB$2&ROW($EB124)),$EA124,$EA$2&ROW($EA124)),$DZ124,$DZ$2&ROW($DZ124)),$DY124,$DY$2&ROW($DY124)),$DX124,$DX$2&ROW($DX124)),$DW124,$DW$2&ROW($DW124)),$DV124,$DV$2&ROW($DV124)),$DU124,$DU$2&ROW($DU124)),$DT124,$DT$2&ROW($DT124)),$DS124,$DS$2&ROW($DS124)))","v":"X=0.0001"},{"$f":"IF(Q124=\"\",0,\"X=\"&SUBSTITUTE(SUBSTITUTE(SUBSTITUTE(SUBSTITUTE(SUBSTITUTE(SUBSTITUTE(SUBSTITUTE(SUBSTITUTE(SUBSTITUTE(SUBSTITUTE(SUBSTITUTE(SUBSTITUTE(Q124,$ED124,$ED$2&ROW($ED124)),$EC124,$EC$2&ROW($EC124)),$EB124,$EB$2&ROW($EB124)),$EA124,$EA$2&ROW($EA124)),$DZ124,$DZ$2&ROW($DZ124)),$DY124,$DY$2&ROW($DY124)),$DX124,$DX$2&ROW($DX124)),$DW124,$DW$2&ROW($DW124)),$DV124,$DV$2&ROW($DV124)),$DU124,$DU$2&ROW($DU124)),$DT124,$DT$2&ROW($DT124)),$DS124,$DS$2&ROW($DS124)))","v":0},{"$f":"IF(R124=\"\",0,\"X=\"&SUBSTITUTE(SUBSTITUTE(SUBSTITUTE(SUBSTITUTE(SUBSTITUTE(SUBSTITUTE(SUBSTITUTE(SUBSTITUTE(SUBSTITUTE(SUBSTITUTE(SUBSTITUTE(SUBSTITUTE(R124,$ED124,$ED$2&ROW($ED124)),$EC124,$EC$2&ROW($EC124)),$EB124,$EB$2&ROW($EB124)),$EA124,$EA$2&ROW($EA124)),$DZ124,$DZ$2&ROW($DZ124)),$DY124,$DY$2&ROW($DY124)),$DX124,$DX$2&ROW($DX124)),$DW124,$DW$2&ROW($DW124)),$DV124,$DV$2&ROW($DV124)),$DU124,$DU$2&ROW($DU124)),$DT124,$DT$2&ROW($DT124)),$DS124,$DS$2&ROW($DS124)))","v":"X=AW124 *AY124 * 0.746 * 0.025"},{"$f":"IF(S124=\"\",0,\"X=\"&SUBSTITUTE(SUBSTITUTE(SUBSTITUTE(SUBSTITUTE(SUBSTITUTE(SUBSTITUTE(SUBSTITUTE(SUBSTITUTE(SUBSTITUTE(SUBSTITUTE(SUBSTITUTE(SUBSTITUTE(S124,$ED124,$ED$2&ROW($ED124)),$EC124,$EC$2&ROW($EC124)),$EB124,$EB$2&ROW($EB124)),$EA124,$EA$2&ROW($EA124)),$DZ124,$DZ$2&ROW($DZ124)),$DY124,$DY$2&ROW($DY124)),$DX124,$DX$2&ROW($DX124)),$DW124,$DW$2&ROW($DW124)),$DV124,$DV$2&ROW($DV124)),$DU124,$DU$2&ROW($DU124)),$DT124,$DT$2&ROW($DT124)),$DS124,$DS$2&ROW($DS124)))","v":0},{"$f":"IF(T124=\"\",0,\"X=\"&SUBSTITUTE(SUBSTITUTE(SUBSTITUTE(SUBSTITUTE(SUBSTITUTE(SUBSTITUTE(SUBSTITUTE(SUBSTITUTE(SUBSTITUTE(SUBSTITUTE(SUBSTITUTE(SUBSTITUTE(T124,$ED124,$ED$2&ROW($ED124)),$EC124,$EC$2&ROW($EC124)),$EB124,$EB$2&ROW($EB124)),$EA124,$EA$2&ROW($EA124)),$DZ124,$DZ$2&ROW($DZ124)),$DY124,$DY$2&ROW($DY124)),$DX124,$DX$2&ROW($DX124)),$DW124,$DW$2&ROW($DW124)),$DV124,$DV$2&ROW($DV124)),$DU124,$DU$2&ROW($DU124)),$DT124,$DT$2&ROW($DT124)),$DS124,$DS$2&ROW($DS124)))","v":0},{"$f":"IF(U124=\"\",0,\"X=\"&SUBSTITUTE(SUBSTITUTE(SUBSTITUTE(SUBSTITUTE(SUBSTITUTE(SUBSTITUTE(SUBSTITUTE(SUBSTITUTE(SUBSTITUTE(SUBSTITUTE(SUBSTITUTE(SUBSTITUTE(U124,$ED124,$ED$2&ROW($ED124)),$EC124,$EC$2&ROW($EC124)),$EB124,$EB$2&ROW($EB124)),$EA124,$EA$2&ROW($EA124)),$DZ124,$DZ$2&ROW($DZ124)),$DY124,$DY$2&ROW($DY124)),$DX124,$DX$2&ROW($DX124)),$DW124,$DW$2&ROW($DW124)),$DV124,$DV$2&ROW($DV124)),$DU124,$DU$2&ROW($DU124)),$DT124,$DT$2&ROW($DT124)),$DS124,$DS$2&ROW($DS124)))","v":"X=AW124 *AY124 * 0.746 * 0.025 * AF124"},{"$f":"IF(V124=\"\",0,\"X=\"&SUBSTITUTE(SUBSTITUTE(SUBSTITUTE(SUBSTITUTE(SUBSTITUTE(SUBSTITUTE(SUBSTITUTE(SUBSTITUTE(SUBSTITUTE(SUBSTITUTE(SUBSTITUTE(SUBSTITUTE(V124,$ED124,$ED$2&ROW($ED124)),$EC124,$EC$2&ROW($EC124)),$EB124,$EB$2&ROW($EB124)),$EA124,$EA$2&ROW($EA124)),$DZ124,$DZ$2&ROW($DZ124)),$DY124,$DY$2&ROW($DY124)),$DX124,$DX$2&ROW($DX124)),$DW124,$DW$2&ROW($DW124)),$DV124,$DV$2&ROW($DV124)),$DU124,$DU$2&ROW($DU124)),$DT124,$DT$2&ROW($DT124)),$DS124,$DS$2&ROW($DS124)))","v":"X=AW124 *AY124 * 0.746 * 0.025 * AG124"},{"$f":"IF(W124=\"\",0,\"X=\"&SUBSTITUTE(SUBSTITUTE(SUBSTITUTE(SUBSTITUTE(SUBSTITUTE(SUBSTITUTE(SUBSTITUTE(SUBSTITUTE(SUBSTITUTE(SUBSTITUTE(SUBSTITUTE(SUBSTITUTE(W124,$ED124,$ED$2&ROW($ED124)),$EC124,$EC$2&ROW($EC124)),$EB124,$EB$2&ROW($EB124)),$EA124,$EA$2&ROW($EA124)),$DZ124,$DZ$2&ROW($DZ124)),$DY124,$DY$2&ROW($DY124)),$DX124,$DX$2&ROW($DX124)),$DW124,$DW$2&ROW($DW124)),$DV124,$DV$2&ROW($DV124)),$DU124,$DU$2&ROW($DU124)),$DT124,$DT$2&ROW($DT124)),$DS124,$DS$2&ROW($DS124)))","v":0},{"$f":"IF(X124=\"\",0,\"X=\"&SUBSTITUTE(SUBSTITUTE(SUBSTITUTE(SUBSTITUTE(SUBSTITUTE(SUBSTITUTE(SUBSTITUTE(SUBSTITUTE(SUBSTITUTE(SUBSTITUTE(SUBSTITUTE(SUBSTITUTE(X124,$ED124,$ED$2&ROW($ED124)),$EC124,$EC$2&ROW($EC124)),$EB124,$EB$2&ROW($EB124)),$EA124,$EA$2&ROW($EA124)),$DZ124,$DZ$2&ROW($DZ124)),$DY124,$DY$2&ROW($DY124)),$DX124,$DX$2&ROW($DX124)),$DW124,$DW$2&ROW($DW124)),$DV124,$DV$2&ROW($DV124)),$DU124,$DU$2&ROW($DU124)),$DT124,$DT$2&ROW($DT124)),$DS124,$DS$2&ROW($DS124)))","v":0},{"$f":"IF(Y124=\"\",0,\"X=\"&SUBSTITUTE(SUBSTITUTE(SUBSTITUTE(SUBSTITUTE(SUBSTITUTE(SUBSTITUTE(SUBSTITUTE(SUBSTITUTE(SUBSTITUTE(SUBSTITUTE(SUBSTITUTE(SUBSTITUTE(Y124,$ED124,$ED$2&ROW($ED124)),$EC124,$EC$2&ROW($EC124)),$EB124,$EB$2&ROW($EB124)),$EA124,$EA$2&ROW($EA124)),$DZ124,$DZ$2&ROW($DZ124)),$DY124,$DY$2&ROW($DY124)),$DX124,$DX$2&ROW($DX124)),$DW124,$DW$2&ROW($DW124)),$DV124,$DV$2&ROW($DV124)),$DU124,$DU$2&ROW($DU124)),$DT124,$DT$2&ROW($DT124)),$DS124,$DS$2&ROW($DS124)))","v":0},{"$f":"IF(Z124=\"\",0,\"X=\"&SUBSTITUTE(SUBSTITUTE(SUBSTITUTE(SUBSTITUTE(SUBSTITUTE(SUBSTITUTE(SUBSTITUTE(SUBSTITUTE(SUBSTITUTE(SUBSTITUTE(SUBSTITUTE(SUBSTITUTE(Z124,$ED124,$ED$2&ROW($ED124)),$EC124,$EC$2&ROW($EC124)),$EB124,$EB$2&ROW($EB124)),$EA124,$EA$2&ROW($EA124)),$DZ124,$DZ$2&ROW($DZ124)),$DY124,$DY$2&ROW($DY124)),$DX124,$DX$2&ROW($DX124)),$DW124,$DW$2&ROW($DW124)),$DV124,$DV$2&ROW($DV124)),$DU124,$DU$2&ROW($DU124)),$DT124,$DT$2&ROW($DT124)),$DS124,$DS$2&ROW($DS124)))","v":0},{"$f":"IF(AA124=\"\",0,\"X=\"&SUBSTITUTE(SUBSTITUTE(SUBSTITUTE(SUBSTITUTE(SUBSTITUTE(SUBSTITUTE(SUBSTITUTE(SUBSTITUTE(SUBSTITUTE(SUBSTITUTE(SUBSTITUTE(SUBSTITUTE(AA124,$ED124,$ED$2&ROW($ED124)),$EC124,$EC$2&ROW($EC124)),$EB124,$EB$2&ROW($EB124)),$EA124,$EA$2&ROW($EA124)),$DZ124,$DZ$2&ROW($DZ124)),$DY124,$DY$2&ROW($DY124)),$DX124,$DX$2&ROW($DX124)),$DW124,$DW$2&ROW($DW124)),$DV124,$DV$2&ROW($DV124)),$DU124,$DU$2&ROW($DU124)),$DT124,$DT$2&ROW($DT124)),$DS124,$DS$2&ROW($DS124)))","v":0},{"$f":"IF(AB124=\"\",0,\"X=\"&SUBSTITUTE(SUBSTITUTE(SUBSTITUTE(SUBSTITUTE(SUBSTITUTE(SUBSTITUTE(SUBSTITUTE(SUBSTITUTE(SUBSTITUTE(SUBSTITUTE(SUBSTITUTE(SUBSTITUTE(AB124,$ED124,$ED$2&ROW($ED124)),$EC124,$EC$2&ROW($EC124)),$EB124,$EB$2&ROW($EB124)),$EA124,$EA$2&ROW($EA124)),$DZ124,$DZ$2&ROW($DZ124)),$DY124,$DY$2&ROW($DY124)),$DX124,$DX$2&ROW($DX124)),$DW124,$DW$2&ROW($DW124)),$DV124,$DV$2&ROW($DV124)),$DU124,$DU$2&ROW($DU124)),$DT124,$DT$2&ROW($DT124)),$DS124,$DS$2&ROW($DS124)))","v":0},null,null,"{Factor:WinterCF}","{Factor:SummerCF}",{"$f":"IFERROR(INDEX($EG124:$IV124,MATCH(0,COUNTIF($DR124:DT124,$EG124:$IV124),0)),\"\")","v":"{Weekly Hrs of Operation}"},{"$f":"IFERROR(INDEX($EG124:$IV124,MATCH(0,COUNTIF($DR124:DU124,$EG124:$IV124),0)),\"\")","v":"{Weeks Per Year}"},{"$f":"IFERROR(INDEX($EG124:$IV124,MATCH(0,COUNTIF($DR124:DV124,$EG124:$IV124),0)),\"\")","v":"{Measure:Quantity}"},{"$f":"IFERROR(INDEX($EG124:$IV124,MATCH(0,COUNTIF($DR124:DW124,$EG124:$IV124),0)),\"\")","v":"{System Compressor (HP)}"},{"$f":"IFERROR(INDEX($EG124:$IV124,MATCH(0,COUNTIF($DR124:DX124,$EG124:$IV124),0)),\"\")","v":""},{"$f":"IFERROR(INDEX($EG124:$IV124,MATCH(0,COUNTIF($DR124:DY124,$EG124:$IV124),0)),\"\")","v":""},{"$f":"IFERROR(INDEX($EG124:$IV124,MATCH(0,COUNTIF($DR124:DZ124,$EG124:$IV124),0)),\"\")","v":""},{"$f":"IFERROR(INDEX($EG124:$IV124,MATCH(0,COUNTIF($DR124:EA124,$EG124:$IV124),0)),\"\")","v":""},{"$f":"IFERROR(INDEX($EG124:$IV124,MATCH(0,COUNTIF($DR124:EB124,$EG124:$IV124),0)),\"\")","v":""},{"$f":"IFERROR(INDEX($EG124:$IV124,MATCH(0,COUNTIF($DR124:EC124,$EG124:$IV124),0)),\"\")","v":""},null,null,{"$f":"IFERROR(MID($G124,FIND(CHAR(160),SUBSTITUTE($G124,\"{\",CHAR(160),EG$1)),FIND(CHAR(160),SUBSTITUTE($G124,\"}\",CHAR(160),EG$1))-FIND(CHAR(160),SUBSTITUTE($G124,\"{\",CHAR(160),EG$1))+1),\"\")","v":""},{"$f":"IFERROR(MID($G124,FIND(CHAR(160),SUBSTITUTE($G124,\"{\",CHAR(160),EH$1)),FIND(CHAR(160),SUBSTITUTE($G124,\"}\",CHAR(160),EH$1))-FIND(CHAR(160),SUBSTITUTE($G124,\"{\",CHAR(160),EH$1))+1),\"\")","v":""},{"$f":"IFERROR(MID($G124,FIND(CHAR(160),SUBSTITUTE($G124,\"{\",CHAR(160),EI$1)),FIND(CHAR(160),SUBSTITUTE($G124,\"}\",CHAR(160),EI$1))-FIND(CHAR(160),SUBSTITUTE($G124,\"{\",CHAR(160),EI$1))+1),\"\")","v":""},{"$f":"IFERROR(MID($G124,FIND(CHAR(160),SUBSTITUTE($G124,\"{\",CHAR(160),EJ$1)),FIND(CHAR(160),SUBSTITUTE($G124,\"}\",CHAR(160),EJ$1))-FIND(CHAR(160),SUBSTITUTE($G124,\"{\",CHAR(160),EJ$1))+1),\"\")","v":""},{"$f":"IFERROR(MID($G124,FIND(CHAR(160),SUBSTITUTE($G124,\"{\",CHAR(160),EK$1)),FIND(CHAR(160),SUBSTITUTE($G124,\"}\",CHAR(160),EK$1))-FIND(CHAR(160),SUBSTITUTE($G124,\"{\",CHAR(160),EK$1))+1),\"\")","v":""},{"$f":"IFERROR(MID($G124,FIND(CHAR(160),SUBSTITUTE($G124,\"{\",CHAR(160),EL$1)),FIND(CHAR(160),SUBSTITUTE($G124,\"}\",CHAR(160),EL$1))-FIND(CHAR(160),SUBSTITUTE($G124,\"{\",CHAR(160),EL$1))+1),\"\")","v":""},{"$f":"IFERROR(MID($G124,FIND(CHAR(160),SUBSTITUTE($G124,\"{\",CHAR(160),EM$1)),FIND(CHAR(160),SUBSTITUTE($G124,\"}\",CHAR(160),EM$1))-FIND(CHAR(160),SUBSTITUTE($G124,\"{\",CHAR(160),EM$1))+1),\"\")","v":""},{"$f":"IFERROR(MID($G124,FIND(CHAR(160),SUBSTITUTE($G124,\"{\",CHAR(160),EN$1)),FIND(CHAR(160),SUBSTITUTE($G124,\"}\",CHAR(160),EN$1))-FIND(CHAR(160),SUBSTITUTE($G124,\"{\",CHAR(160),EN$1))+1),\"\")","v":""},{"$f":"IFERROR(MID($G124,FIND(CHAR(160),SUBSTITUTE($G124,\"{\",CHAR(160),EO$1)),FIND(CHAR(160),SUBSTITUTE($G124,\"}\",CHAR(160),EO$1))-FIND(CHAR(160),SUBSTITUTE($G124,\"{\",CHAR(160),EO$1))+1),\"\")","v":""},{"$f":"IFERROR(MID($G124,FIND(CHAR(160),SUBSTITUTE($G124,\"{\",CHAR(160),EP$1)),FIND(CHAR(160),SUBSTITUTE($G124,\"}\",CHAR(160),EP$1))-FIND(CHAR(160),SUBSTITUTE($G124,\"{\",CHAR(160),EP$1))+1),\"\")","v":""},{"$f":"IFERROR(MID($J124,FIND(CHAR(160),SUBSTITUTE($J124,\"{\",CHAR(160),EQ$1)),FIND(CHAR(160),SUBSTITUTE($J124,\"}\",CHAR(160),EQ$1))-FIND(CHAR(160),SUBSTITUTE($J124,\"{\",CHAR(160),EQ$1))+1),\"\")","v":""},{"$f":"IFERROR(MID($J124,FIND(CHAR(160),SUBSTITUTE($J124,\"{\",CHAR(160),ER$1)),FIND(CHAR(160),SUBSTITUTE($J124,\"}\",CHAR(160),ER$1))-FIND(CHAR(160),SUBSTITUTE($J124,\"{\",CHAR(160),ER$1))+1),\"\")","v":""},{"$f":"IFERROR(MID($J124,FIND(CHAR(160),SUBSTITUTE($J124,\"{\",CHAR(160),ES$1)),FIND(CHAR(160),SUBSTITUTE($J124,\"}\",CHAR(160),ES$1))-FIND(CHAR(160),SUBSTITUTE($J124,\"{\",CHAR(160),ES$1))+1),\"\")","v":""},{"$f":"IFERROR(MID($J124,FIND(CHAR(160),SUBSTITUTE($J124,\"{\",CHAR(160),ET$1)),FIND(CHAR(160),SUBSTITUTE($J124,\"}\",CHAR(160),ET$1))-FIND(CHAR(160),SUBSTITUTE($J124,\"{\",CHAR(160),ET$1))+1),\"\")","v":""},{"$f":"IFERROR(MID($J124,FIND(CHAR(160),SUBSTITUTE($J124,\"{\",CHAR(160),EU$1)),FIND(CHAR(160),SUBSTITUTE($J124,\"}\",CHAR(160),EU$1))-FIND(CHAR(160),SUBSTITUTE($J124,\"{\",CHAR(160),EU$1))+1),\"\")","v":""},{"$f":"IFERROR(MID($J124,FIND(CHAR(160),SUBSTITUTE($J124,\"{\",CHAR(160),EV$1)),FIND(CHAR(160),SUBSTITUTE($J124,\"}\",CHAR(160),EV$1))-FIND(CHAR(160),SUBSTITUTE($J124,\"{\",CHAR(160),EV$1))+1),\"\")","v":""},{"$f":"IFERROR(MID($J124,FIND(CHAR(160),SUBSTITUTE($J124,\"{\",CHAR(160),EW$1)),FIND(CHAR(160),SUBSTITUTE($J124,\"}\",CHAR(160),EW$1))-FIND(CHAR(160),SUBSTITUTE($J124,\"{\",CHAR(160),EW$1))+1),\"\")","v":""},{"$f":"IFERROR(MID($J124,FIND(CHAR(160),SUBSTITUTE($J124,\"{\",CHAR(160),EX$1)),FIND(CHAR(160),SUBSTITUTE($J124,\"}\",CHAR(160),EX$1))-FIND(CHAR(160),SUBSTITUTE($J124,\"{\",CHAR(160),EX$1))+1),\"\")","v":""},{"$f":"IFERROR(MID($J124,FIND(CHAR(160),SUBSTITUTE($J124,\"{\",CHAR(160),EY$1)),FIND(CHAR(160),SUBSTITUTE($J124,\"}\",CHAR(160),EY$1))-FIND(CHAR(160),SUBSTITUTE($J124,\"{\",CHAR(160),EY$1))+1),\"\")","v":""},{"$f":"IFERROR(MID($J124,FIND(CHAR(160),SUBSTITUTE($J124,\"{\",CHAR(160),EZ$1)),FIND(CHAR(160),SUBSTITUTE($J124,\"}\",CHAR(160),EZ$1))-FIND(CHAR(160),SUBSTITUTE($J124,\"{\",CHAR(160),EZ$1))+1),\"\")","v":""},{"$f":"IFERROR(MID($J124,FIND(CHAR(160),SUBSTITUTE($J124,\"{\",CHAR(160),FA$1)),FIND(CHAR(160),SUBSTITUTE($J124,\"}\",CHAR(160),FA$1))-FIND(CHAR(160),SUBSTITUTE($J124,\"{\",CHAR(160),FA$1))+1),\"\")","v":""},{"$f":"IFERROR(MID($J124,FIND(CHAR(160),SUBSTITUTE($J124,\"{\",CHAR(160),FB$1)),FIND(CHAR(160),SUBSTITUTE($J124,\"}\",CHAR(160),FB$1))-FIND(CHAR(160),SUBSTITUTE($J124,\"{\",CHAR(160),FB$1))+1),\"\")","v":""},{"$f":"IFERROR(MID($O124,FIND(CHAR(160),SUBSTITUTE($O124,\"{\",CHAR(160),FC$1)),FIND(CHAR(160),SUBSTITUTE($O124,\"}\",CHAR(160),FC$1))-FIND(CHAR(160),SUBSTITUTE($O124,\"{\",CHAR(160),FC$1))+1),\"\")","v":"{Weekly Hrs of Operation}"},{"$f":"IFERROR(MID($O124,FIND(CHAR(160),SUBSTITUTE($O124,\"{\",CHAR(160),FD$1)),FIND(CHAR(160),SUBSTITUTE($O124,\"}\",CHAR(160),FD$1))-FIND(CHAR(160),SUBSTITUTE($O124,\"{\",CHAR(160),FD$1))+1),\"\")","v":"{Weeks Per Year}"},{"$f":"IFERROR(MID($O124,FIND(CHAR(160),SUBSTITUTE($O124,\"{\",CHAR(160),FE$1)),FIND(CHAR(160),SUBSTITUTE($O124,\"}\",CHAR(160),FE$1))-FIND(CHAR(160),SUBSTITUTE($O124,\"{\",CHAR(160),FE$1))+1),\"\")","v":""},{"$f":"IFERROR(MID($O124,FIND(CHAR(160),SUBSTITUTE($O124,\"{\",CHAR(160),FF$1)),FIND(CHAR(160),SUBSTITUTE($O124,\"}\",CHAR(160),FF$1))-FIND(CHAR(160),SUBSTITUTE($O124,\"{\",CHAR(160),FF$1))+1),\"\")","v":""},{"$f":"IFERROR(MID($O124,FIND(CHAR(160),SUBSTITUTE($O124,\"{\",CHAR(160),FG$1)),FIND(CHAR(160),SUBSTITUTE($O124,\"}\",CHAR(160),FG$1))-FIND(CHAR(160),SUBSTITUTE($O124,\"{\",CHAR(160),FG$1))+1),\"\")","v":""},{"$f":"IFERROR(MID($O124,FIND(CHAR(160),SUBSTITUTE($O124,\"{\",CHAR(160),FH$1)),FIND(CHAR(160),SUBSTITUTE($O124,\"}\",CHAR(160),FH$1))-FIND(CHAR(160),SUBSTITUTE($O124,\"{\",CHAR(160),FH$1))+1),\"\")","v":""},{"$f":"IFERROR(MID($O124,FIND(CHAR(160),SUBSTITUTE($O124,\"{\",CHAR(160),FI$1)),FIND(CHAR(160),SUBSTITUTE($O124,\"}\",CHAR(160),FI$1))-FIND(CHAR(160),SUBSTITUTE($O124,\"{\",CHAR(160),FI$1))+1),\"\")","v":""},{"$f":"IFERROR(MID($O124,FIND(CHAR(160),SUBSTITUTE($O124,\"{\",CHAR(160),FJ$1)),FIND(CHAR(160),SUBSTITUTE($O124,\"}\",CHAR(160),FJ$1))-FIND(CHAR(160),SUBSTITUTE($O124,\"{\",CHAR(160),FJ$1))+1),\"\")","v":""},{"$f":"IFERROR(MID($O124,FIND(CHAR(160),SUBSTITUTE($O124,\"{\",CHAR(160),FK$1)),FIND(CHAR(160),SUBSTITUTE($O124,\"}\",CHAR(160),FK$1))-FIND(CHAR(160),SUBSTITUTE($O124,\"{\",CHAR(160),FK$1))+1),\"\")","v":"{Measure:Quantity}"},{"$f":"IFERROR(MID($O124,FIND(CHAR(160),SUBSTITUTE($O124,\"{\",CHAR(160),FL$1)),FIND(CHAR(160),SUBSTITUTE($O124,\"}\",CHAR(160),FL$1))-FIND(CHAR(160),SUBSTITUTE($O124,\"{\",CHAR(160),FL$1))+1),\"\")","v":"{System Compressor (HP)}"},{"$f":"IFERROR(MID($R124,FIND(CHAR(160),SUBSTITUTE($R124,\"{\",CHAR(160),FM$1)),FIND(CHAR(160),SUBSTITUTE($R124,\"}\",CHAR(160),FM$1))-FIND(CHAR(160),SUBSTITUTE($R124,\"{\",CHAR(160),FM$1))+1),\"\")","v":""},{"$f":"IFERROR(MID($R124,FIND(CHAR(160),SUBSTITUTE($R124,\"{\",CHAR(160),FN$1)),FIND(CHAR(160),SUBSTITUTE($R124,\"}\",CHAR(160),FN$1))-FIND(CHAR(160),SUBSTITUTE($R124,\"{\",CHAR(160),FN$1))+1),\"\")","v":""},{"$f":"IFERROR(MID($R124,FIND(CHAR(160),SUBSTITUTE($R124,\"{\",CHAR(160),FO$1)),FIND(CHAR(160),SUBSTITUTE($R124,\"}\",CHAR(160),FO$1))-FIND(CHAR(160),SUBSTITUTE($R124,\"{\",CHAR(160),FO$1))+1),\"\")","v":""},{"$f":"IFERROR(MID($R124,FIND(CHAR(160),SUBSTITUTE($R124,\"{\",CHAR(160),FP$1)),FIND(CHAR(160),SUBSTITUTE($R124,\"}\",CHAR(160),FP$1))-FIND(CHAR(160),SUBSTITUTE($R124,\"{\",CHAR(160),FP$1))+1),\"\")","v":""},{"$f":"IFERROR(MID($R124,FIND(CHAR(160),SUBSTITUTE($R124,\"{\",CHAR(160),FQ$1)),FIND(CHAR(160),SUBSTITUTE($R124,\"}\",CHAR(160),FQ$1))-FIND(CHAR(160),SUBSTITUTE($R124,\"{\",CHAR(160),FQ$1))+1),\"\")","v":""},{"$f":"IFERROR(MID($R124,FIND(CHAR(160),SUBSTITUTE($R124,\"{\",CHAR(160),FR$1)),FIND(CHAR(160),SUBSTITUTE($R124,\"}\",CHAR(160),FR$1))-FIND(CHAR(160),SUBSTITUTE($R124,\"{\",CHAR(160),FR$1))+1),\"\")","v":""},{"$f":"IFERROR(MID($R124,FIND(CHAR(160),SUBSTITUTE($R124,\"{\",CHAR(160),FS$1)),FIND(CHAR(160),SUBSTITUTE($R124,\"}\",CHAR(160),FS$1))-FIND(CHAR(160),SUBSTITUTE($R124,\"{\",CHAR(160),FS$1))+1),\"\")","v":""},{"$f":"IFERROR(MID($R124,FIND(CHAR(160),SUBSTITUTE($R124,\"{\",CHAR(160),FT$1)),FIND(CHAR(160),SUBSTITUTE($R124,\"}\",CHAR(160),FT$1))-FIND(CHAR(160),SUBSTITUTE($R124,\"{\",CHAR(160),FT$1))+1),\"\")","v":""},{"$f":"IFERROR(MID($R124,FIND(CHAR(160),SUBSTITUTE($R124,\"{\",CHAR(160),FU$1)),FIND(CHAR(160),SUBSTITUTE($R124,\"}\",CHAR(160),FU$1))-FIND(CHAR(160),SUBSTITUTE($R124,\"{\",CHAR(160),FU$1))+1),\"\")","v":"{Measure:Quantity}"},{"$f":"IFERROR(MID($R124,FIND(CHAR(160),SUBSTITUTE($R124,\"{\",CHAR(160),FV$1)),FIND(CHAR(160),SUBSTITUTE($R124,\"}\",CHAR(160),FV$1))-FIND(CHAR(160),SUBSTITUTE($R124,\"{\",CHAR(160),FV$1))+1),\"\")","v":"{System Compressor (HP)}"},{"$f":"IFERROR(MID($U124,FIND(CHAR(160),SUBSTITUTE($U124,\"{\",CHAR(160),FW$1)),FIND(CHAR(160),SUBSTITUTE($U124,\"}\",CHAR(160),FW$1))-FIND(CHAR(160),SUBSTITUTE($U124,\"{\",CHAR(160),FW$1))+1),\"\")","v":"{Factor:WinterCF}"},{"$f":"IFERROR(MID($U124,FIND(CHAR(160),SUBSTITUTE($U124,\"{\",CHAR(160),FX$1)),FIND(CHAR(160),SUBSTITUTE($U124,\"}\",CHAR(160),FX$1))-FIND(CHAR(160),SUBSTITUTE($U124,\"{\",CHAR(160),FX$1))+1),\"\")","v":""},{"$f":"IFERROR(MID($U124,FIND(CHAR(160),SUBSTITUTE($U124,\"{\",CHAR(160),FY$1)),FIND(CHAR(160),SUBSTITUTE($U124,\"}\",CHAR(160),FY$1))-FIND(CHAR(160),SUBSTITUTE($U124,\"{\",CHAR(160),FY$1))+1),\"\")","v":""},{"$f":"IFERROR(MID($U124,FIND(CHAR(160),SUBSTITUTE($U124,\"{\",CHAR(160),FZ$1)),FIND(CHAR(160),SUBSTITUTE($U124,\"}\",CHAR(160),FZ$1))-FIND(CHAR(160),SUBSTITUTE($U124,\"{\",CHAR(160),FZ$1))+1),\"\")","v":""},{"$f":"IFERROR(MID($U124,FIND(CHAR(160),SUBSTITUTE($U124,\"{\",CHAR(160),GA$1)),FIND(CHAR(160),SUBSTITUTE($U124,\"}\",CHAR(160),GA$1))-FIND(CHAR(160),SUBSTITUTE($U124,\"{\",CHAR(160),GA$1))+1),\"\")","v":""},{"$f":"IFERROR(MID($U124,FIND(CHAR(160),SUBSTITUTE($U124,\"{\",CHAR(160),GB$1)),FIND(CHAR(160),SUBSTITUTE($U124,\"}\",CHAR(160),GB$1))-FIND(CHAR(160),SUBSTITUTE($U124,\"{\",CHAR(160),GB$1))+1),\"\")","v":""},{"$f":"IFERROR(MID($U124,FIND(CHAR(160),SUBSTITUTE($U124,\"{\",CHAR(160),GC$1)),FIND(CHAR(160),SUBSTITUTE($U124,\"}\",CHAR(160),GC$1))-FIND(CHAR(160),SUBSTITUTE($U124,\"{\",CHAR(160),GC$1))+1),\"\")","v":""},{"$f":"IFERROR(MID($U124,FIND(CHAR(160),SUBSTITUTE($U124,\"{\",CHAR(160),GD$1)),FIND(CHAR(160),SUBSTITUTE($U124,\"}\",CHAR(160),GD$1))-FIND(CHAR(160),SUBSTITUTE($U124,\"{\",CHAR(160),GD$1))+1),\"\")","v":""},{"$f":"IFERROR(MID($U124,FIND(CHAR(160),SUBSTITUTE($U124,\"{\",CHAR(160),GE$1)),FIND(CHAR(160),SUBSTITUTE($U124,\"}\",CHAR(160),GE$1))-FIND(CHAR(160),SUBSTITUTE($U124,\"{\",CHAR(160),GE$1))+1),\"\")","v":"{Measure:Quantity}"},{"$f":"IFERROR(MID($U124,FIND(CHAR(160),SUBSTITUTE($U124,\"{\",CHAR(160),GF$1)),FIND(CHAR(160),SUBSTITUTE($U124,\"}\",CHAR(160),GF$1))-FIND(CHAR(160),SUBSTITUTE($U124,\"{\",CHAR(160),GF$1))+1),\"\")","v":"{System Compressor (HP)}"},{"$f":"IFERROR(MID($V124,FIND(CHAR(160),SUBSTITUTE($V124,\"{\",CHAR(160),GG$1)),FIND(CHAR(160),SUBSTITUTE($V124,\"}\",CHAR(160),GG$1))-FIND(CHAR(160),SUBSTITUTE($V124,\"{\",CHAR(160),GG$1))+1),\"\")","v":"{Factor:SummerCF}"},{"$f":"IFERROR(MID($V124,FIND(CHAR(160),SUBSTITUTE($V124,\"{\",CHAR(160),GH$1)),FIND(CHAR(160),SUBSTITUTE($V124,\"}\",CHAR(160),GH$1))-FIND(CHAR(160),SUBSTITUTE($V124,\"{\",CHAR(160),GH$1))+1),\"\")","v":""},{"$f":"IFERROR(MID($V124,FIND(CHAR(160),SUBSTITUTE($V124,\"{\",CHAR(160),GI$1)),FIND(CHAR(160),SUBSTITUTE($V124,\"}\",CHAR(160),GI$1))-FIND(CHAR(160),SUBSTITUTE($V124,\"{\",CHAR(160),GI$1))+1),\"\")","v":""},{"$f":"IFERROR(MID($V124,FIND(CHAR(160),SUBSTITUTE($V124,\"{\",CHAR(160),GJ$1)),FIND(CHAR(160),SUBSTITUTE($V124,\"}\",CHAR(160),GJ$1))-FIND(CHAR(160),SUBSTITUTE($V124,\"{\",CHAR(160),GJ$1))+1),\"\")","v":""},{"$f":"IFERROR(MID($V124,FIND(CHAR(160),SUBSTITUTE($V124,\"{\",CHAR(160),GK$1)),FIND(CHAR(160),SUBSTITUTE($V124,\"}\",CHAR(160),GK$1))-FIND(CHAR(160),SUBSTITUTE($V124,\"{\",CHAR(160),GK$1))+1),\"\")","v":""},{"$f":"IFERROR(MID($V124,FIND(CHAR(160),SUBSTITUTE($V124,\"{\",CHAR(160),GL$1)),FIND(CHAR(160),SUBSTITUTE($V124,\"}\",CHAR(160),GL$1))-FIND(CHAR(160),SUBSTITUTE($V124,\"{\",CHAR(160),GL$1))+1),\"\")","v":""},{"$f":"IFERROR(MID($V124,FIND(CHAR(160),SUBSTITUTE($V124,\"{\",CHAR(160),GM$1)),FIND(CHAR(160),SUBSTITUTE($V124,\"}\",CHAR(160),GM$1))-FIND(CHAR(160),SUBSTITUTE($V124,\"{\",CHAR(160),GM$1))+1),\"\")","v":""},{"$f":"IFERROR(MID($V124,FIND(CHAR(160),SUBSTITUTE($V124,\"{\",CHAR(160),GN$1)),FIND(CHAR(160),SUBSTITUTE($V124,\"}\",CHAR(160),GN$1))-FIND(CHAR(160),SUBSTITUTE($V124,\"{\",CHAR(160),GN$1))+1),\"\")","v":""},{"$f":"IFERROR(MID($V124,FIND(CHAR(160),SUBSTITUTE($V124,\"{\",CHAR(160),GO$1)),FIND(CHAR(160),SUBSTITUTE($V124,\"}\",CHAR(160),GO$1))-FIND(CHAR(160),SUBSTITUTE($V124,\"{\",CHAR(160),GO$1))+1),\"\")","v":"{Measure:Quantity}"},{"$f":"IFERROR(MID($V124,FIND(CHAR(160),SUBSTITUTE($V124,\"{\",CHAR(160),GP$1)),FIND(CHAR(160),SUBSTITUTE($V124,\"}\",CHAR(160),GP$1))-FIND(CHAR(160),SUBSTITUTE($V124,\"{\",CHAR(160),GP$1))+1),\"\")","v":"{System Compressor (HP)}"},{"$f":"IFERROR(MID($W124,FIND(CHAR(160),SUBSTITUTE($W124,\"{\",CHAR(160),GQ$1)),FIND(CHAR(160),SUBSTITUTE($W124,\"}\",CHAR(160),GQ$1))-FIND(CHAR(160),SUBSTITUTE($W124,\"{\",CHAR(160),GQ$1))+1),\"\")","v":""},{"$f":"IFERROR(MID($W124,FIND(CHAR(160),SUBSTITUTE($W124,\"{\",CHAR(160),GR$1)),FIND(CHAR(160),SUBSTITUTE($W124,\"}\",CHAR(160),GR$1))-FIND(CHAR(160),SUBSTITUTE($W124,\"{\",CHAR(160),GR$1))+1),\"\")","v":""},{"$f":"IFERROR(MID($W124,FIND(CHAR(160),SUBSTITUTE($W124,\"{\",CHAR(160),GS$1)),FIND(CHAR(160),SUBSTITUTE($W124,\"}\",CHAR(160),GS$1))-FIND(CHAR(160),SUBSTITUTE($W124,\"{\",CHAR(160),GS$1))+1),\"\")","v":""},{"$f":"IFERROR(MID($W124,FIND(CHAR(160),SUBSTITUTE($W124,\"{\",CHAR(160),GT$1)),FIND(CHAR(160),SUBSTITUTE($W124,\"}\",CHAR(160),GT$1))-FIND(CHAR(160),SUBSTITUTE($W124,\"{\",CHAR(160),GT$1))+1),\"\")","v":""},{"$f":"IFERROR(MID($W124,FIND(CHAR(160),SUBSTITUTE($W124,\"{\",CHAR(160),GU$1)),FIND(CHAR(160),SUBSTITUTE($W124,\"}\",CHAR(160),GU$1))-FIND(CHAR(160),SUBSTITUTE($W124,\"{\",CHAR(160),GU$1))+1),\"\")","v":""},{"$f":"IFERROR(MID($W124,FIND(CHAR(160),SUBSTITUTE($W124,\"{\",CHAR(160),GV$1)),FIND(CHAR(160),SUBSTITUTE($W124,\"}\",CHAR(160),GV$1))-FIND(CHAR(160),SUBSTITUTE($W124,\"{\",CHAR(160),GV$1))+1),\"\")","v":""},{"$f":"IFERROR(MID($W124,FIND(CHAR(160),SUBSTITUTE($W124,\"{\",CHAR(160),GW$1)),FIND(CHAR(160),SUBSTITUTE($W124,\"}\",CHAR(160),GW$1))-FIND(CHAR(160),SUBSTITUTE($W124,\"{\",CHAR(160),GW$1))+1),\"\")","v":""},{"$f":"IFERROR(MID($W124,FIND(CHAR(160),SUBSTITUTE($W124,\"{\",CHAR(160),GX$1)),FIND(CHAR(160),SUBSTITUTE($W124,\"}\",CHAR(160),GX$1))-FIND(CHAR(160),SUBSTITUTE($W124,\"{\",CHAR(160),GX$1))+1),\"\")","v":""},{"$f":"IFERROR(MID($W124,FIND(CHAR(160),SUBSTITUTE($W124,\"{\",CHAR(160),GY$1)),FIND(CHAR(160),SUBSTITUTE($W124,\"}\",CHAR(160),GY$1))-FIND(CHAR(160),SUBSTITUTE($W124,\"{\",CHAR(160),GY$1))+1),\"\")","v":""},{"$f":"IFERROR(MID($W124,FIND(CHAR(160),SUBSTITUTE($W124,\"{\",CHAR(160),GZ$1)),FIND(CHAR(160),SUBSTITUTE($W124,\"}\",CHAR(160),GZ$1))-FIND(CHAR(160),SUBSTITUTE($W124,\"{\",CHAR(160),GZ$1))+1),\"\")","v":""},{"$f":"IFERROR(MID($X124,FIND(CHAR(160),SUBSTITUTE($X124,\"{\",CHAR(160),HA$1)),FIND(CHAR(160),SUBSTITUTE($X124,\"}\",CHAR(160),HA$1))-FIND(CHAR(160),SUBSTITUTE($X124,\"{\",CHAR(160),HA$1))+1),\"\")","v":""},{"$f":"IFERROR(MID($X124,FIND(CHAR(160),SUBSTITUTE($X124,\"{\",CHAR(160),HB$1)),FIND(CHAR(160),SUBSTITUTE($X124,\"}\",CHAR(160),HB$1))-FIND(CHAR(160),SUBSTITUTE($X124,\"{\",CHAR(160),HB$1))+1),\"\")","v":""},{"$f":"IFERROR(MID($X124,FIND(CHAR(160),SUBSTITUTE($X124,\"{\",CHAR(160),HC$1)),FIND(CHAR(160),SUBSTITUTE($X124,\"}\",CHAR(160),HC$1))-FIND(CHAR(160),SUBSTITUTE($X124,\"{\",CHAR(160),HC$1))+1),\"\")","v":""},{"$f":"IFERROR(MID($X124,FIND(CHAR(160),SUBSTITUTE($X124,\"{\",CHAR(160),HD$1)),FIND(CHAR(160),SUBSTITUTE($X124,\"}\",CHAR(160),HD$1))-FIND(CHAR(160),SUBSTITUTE($X124,\"{\",CHAR(160),HD$1))+1),\"\")","v":""},{"$f":"IFERROR(MID($X124,FIND(CHAR(160),SUBSTITUTE($X124,\"{\",CHAR(160),HE$1)),FIND(CHAR(160),SUBSTITUTE($X124,\"}\",CHAR(160),HE$1))-FIND(CHAR(160),SUBSTITUTE($X124,\"{\",CHAR(160),HE$1))+1),\"\")","v":""},{"$f":"IFERROR(MID($X124,FIND(CHAR(160),SUBSTITUTE($X124,\"{\",CHAR(160),HF$1)),FIND(CHAR(160),SUBSTITUTE($X124,\"}\",CHAR(160),HF$1))-FIND(CHAR(160),SUBSTITUTE($X124,\"{\",CHAR(160),HF$1))+1),\"\")","v":""},{"$f":"IFERROR(MID($X124,FIND(CHAR(160),SUBSTITUTE($X124,\"{\",CHAR(160),HG$1)),FIND(CHAR(160),SUBSTITUTE($X124,\"}\",CHAR(160),HG$1))-FIND(CHAR(160),SUBSTITUTE($X124,\"{\",CHAR(160),HG$1))+1),\"\")","v":""},{"$f":"IFERROR(MID($X124,FIND(CHAR(160),SUBSTITUTE($X124,\"{\",CHAR(160),HH$1)),FIND(CHAR(160),SUBSTITUTE($X124,\"}\",CHAR(160),HH$1))-FIND(CHAR(160),SUBSTITUTE($X124,\"{\",CHAR(160),HH$1))+1),\"\")","v":""},{"$f":"IFERROR(MID($X124,FIND(CHAR(160),SUBSTITUTE($X124,\"{\",CHAR(160),HI$1)),FIND(CHAR(160),SUBSTITUTE($X124,\"}\",CHAR(160),HI$1))-FIND(CHAR(160),SUBSTITUTE($X124,\"{\",CHAR(160),HI$1))+1),\"\")","v":""},{"$f":"IFERROR(MID($X124,FIND(CHAR(160),SUBSTITUTE($X124,\"{\",CHAR(160),HJ$1)),FIND(CHAR(160),SUBSTITUTE($X124,\"}\",CHAR(160),HJ$1))-FIND(CHAR(160),SUBSTITUTE($X124,\"{\",CHAR(160),HJ$1))+1),\"\")","v":""},{"$f":"IFERROR(MID($Y124,FIND(CHAR(160),SUBSTITUTE($Y124,\"{\",CHAR(160),HK$1)),FIND(CHAR(160),SUBSTITUTE($Y124,\"}\",CHAR(160),HK$1))-FIND(CHAR(160),SUBSTITUTE($Y124,\"{\",CHAR(160),HK$1))+1),\"\")","v":""},{"$f":"IFERROR(MID($Y124,FIND(CHAR(160),SUBSTITUTE($Y124,\"{\",CHAR(160),HL$1)),FIND(CHAR(160),SUBSTITUTE($Y124,\"}\",CHAR(160),HL$1))-FIND(CHAR(160),SUBSTITUTE($Y124,\"{\",CHAR(160),HL$1))+1),\"\")","v":""},{"$f":"IFERROR(MID($Y124,FIND(CHAR(160),SUBSTITUTE($Y124,\"{\",CHAR(160),HM$1)),FIND(CHAR(160),SUBSTITUTE($Y124,\"}\",CHAR(160),HM$1))-FIND(CHAR(160),SUBSTITUTE($Y124,\"{\",CHAR(160),HM$1))+1),\"\")","v":""},{"$f":"IFERROR(MID($Y124,FIND(CHAR(160),SUBSTITUTE($Y124,\"{\",CHAR(160),HN$1)),FIND(CHAR(160),SUBSTITUTE($Y124,\"}\",CHAR(160),HN$1))-FIND(CHAR(160),SUBSTITUTE($Y124,\"{\",CHAR(160),HN$1))+1),\"\")","v":""},{"$f":"IFERROR(MID($Y124,FIND(CHAR(160),SUBSTITUTE($Y124,\"{\",CHAR(160),HO$1)),FIND(CHAR(160),SUBSTITUTE($Y124,\"}\",CHAR(160),HO$1))-FIND(CHAR(160),SUBSTITUTE($Y124,\"{\",CHAR(160),HO$1))+1),\"\")","v":""},{"$f":"IFERROR(MID($Y124,FIND(CHAR(160),SUBSTITUTE($Y124,\"{\",CHAR(160),HP$1)),FIND(CHAR(160),SUBSTITUTE($Y124,\"}\",CHAR(160),HP$1))-FIND(CHAR(160),SUBSTITUTE($Y124,\"{\",CHAR(160),HP$1))+1),\"\")","v":""},{"$f":"IFERROR(MID($Y124,FIND(CHAR(160),SUBSTITUTE($Y124,\"{\",CHAR(160),HQ$1)),FIND(CHAR(160),SUBSTITUTE($Y124,\"}\",CHAR(160),HQ$1))-FIND(CHAR(160),SUBSTITUTE($Y124,\"{\",CHAR(160),HQ$1))+1),\"\")","v":""},{"$f":"IFERROR(MID($Y124,FIND(CHAR(160),SUBSTITUTE($Y124,\"{\",CHAR(160),HR$1)),FIND(CHAR(160),SUBSTITUTE($Y124,\"}\",CHAR(160),HR$1))-FIND(CHAR(160),SUBSTITUTE($Y124,\"{\",CHAR(160),HR$1))+1),\"\")","v":""},{"$f":"IFERROR(MID($Y124,FIND(CHAR(160),SUBSTITUTE($Y124,\"{\",CHAR(160),HS$1)),FIND(CHAR(160),SUBSTITUTE($Y124,\"}\",CHAR(160),HS$1))-FIND(CHAR(160),SUBSTITUTE($Y124,\"{\",CHAR(160),HS$1))+1),\"\")","v":""},{"$f":"IFERROR(MID($Y124,FIND(CHAR(160),SUBSTITUTE($Y124,\"{\",CHAR(160),HT$1)),FIND(CHAR(160),SUBSTITUTE($Y124,\"}\",CHAR(160),HT$1))-FIND(CHAR(160),SUBSTITUTE($Y124,\"{\",CHAR(160),HT$1))+1),\"\")","v":""},{"$f":"IFERROR(MID($Z124,FIND(CHAR(160),SUBSTITUTE($Z124,\"{\",CHAR(160),HU$1)),FIND(CHAR(160),SUBSTITUTE($Z124,\"}\",CHAR(160),HU$1))-FIND(CHAR(160),SUBSTITUTE($Z124,\"{\",CHAR(160),HU$1))+1),\"\")","v":""},{"$f":"IFERROR(MID($Z124,FIND(CHAR(160),SUBSTITUTE($Z124,\"{\",CHAR(160),HV$1)),FIND(CHAR(160),SUBSTITUTE($Z124,\"}\",CHAR(160),HV$1))-FIND(CHAR(160),SUBSTITUTE($Z124,\"{\",CHAR(160),HV$1))+1),\"\")","v":""},{"$f":"IFERROR(MID($Z124,FIND(CHAR(160),SUBSTITUTE($Z124,\"{\",CHAR(160),HW$1)),FIND(CHAR(160),SUBSTITUTE($Z124,\"}\",CHAR(160),HW$1))-FIND(CHAR(160),SUBSTITUTE($Z124,\"{\",CHAR(160),HW$1))+1),\"\")","v":""},{"$f":"IFERROR(MID($Z124,FIND(CHAR(160),SUBSTITUTE($Z124,\"{\",CHAR(160),HX$1)),FIND(CHAR(160),SUBSTITUTE($Z124,\"}\",CHAR(160),HX$1))-FIND(CHAR(160),SUBSTITUTE($Z124,\"{\",CHAR(160),HX$1))+1),\"\")","v":""},{"$f":"IFERROR(MID($Z124,FIND(CHAR(160),SUBSTITUTE($Z124,\"{\",CHAR(160),HY$1)),FIND(CHAR(160),SUBSTITUTE($Z124,\"}\",CHAR(160),HY$1))-FIND(CHAR(160),SUBSTITUTE($Z124,\"{\",CHAR(160),HY$1))+1),\"\")","v":""},{"$f":"IFERROR(MID($Z124,FIND(CHAR(160),SUBSTITUTE($Z124,\"{\",CHAR(160),HZ$1)),FIND(CHAR(160),SUBSTITUTE($Z124,\"}\",CHAR(160),HZ$1))-FIND(CHAR(160),SUBSTITUTE($Z124,\"{\",CHAR(160),HZ$1))+1),\"\")","v":""},{"$f":"IFERROR(MID($Z124,FIND(CHAR(160),SUBSTITUTE($Z124,\"{\",CHAR(160),IA$1)),FIND(CHAR(160),SUBSTITUTE($Z124,\"}\",CHAR(160),IA$1))-FIND(CHAR(160),SUBSTITUTE($Z124,\"{\",CHAR(160),IA$1))+1),\"\")","v":""},{"$f":"IFERROR(MID($Z124,FIND(CHAR(160),SUBSTITUTE($Z124,\"{\",CHAR(160),IB$1)),FIND(CHAR(160),SUBSTITUTE($Z124,\"}\",CHAR(160),IB$1))-FIND(CHAR(160),SUBSTITUTE($Z124,\"{\",CHAR(160),IB$1))+1),\"\")","v":""},{"$f":"IFERROR(MID($Z124,FIND(CHAR(160),SUBSTITUTE($Z124,\"{\",CHAR(160),IC$1)),FIND(CHAR(160),SUBSTITUTE($Z124,\"}\",CHAR(160),IC$1))-FIND(CHAR(160),SUBSTITUTE($Z124,\"{\",CHAR(160),IC$1))+1),\"\")","v":""},{"$f":"IFERROR(MID($Z124,FIND(CHAR(160),SUBSTITUTE($Z124,\"{\",CHAR(160),ID$1)),FIND(CHAR(160),SUBSTITUTE($Z124,\"}\",CHAR(160),ID$1))-FIND(CHAR(160),SUBSTITUTE($Z124,\"{\",CHAR(160),ID$1))+1),\"\")","v":""},{"$f":"IFERROR(MID($AA124,FIND(CHAR(160),SUBSTITUTE($AA124,\"{\",CHAR(160),IE$1)),FIND(CHAR(160),SUBSTITUTE($AA124,\"}\",CHAR(160),IE$1))-FIND(CHAR(160),SUBSTITUTE($AA124,\"{\",CHAR(160),IE$1))+1),\"\")","v":""},{"$f":"IFERROR(MID($AA124,FIND(CHAR(160),SUBSTITUTE($AA124,\"{\",CHAR(160),IF$1)),FIND(CHAR(160),SUBSTITUTE($AA124,\"}\",CHAR(160),IF$1))-FIND(CHAR(160),SUBSTITUTE($AA124,\"{\",CHAR(160),IF$1))+1),\"\")","v":""},{"$f":"IFERROR(MID($AA124,FIND(CHAR(160),SUBSTITUTE($AA124,\"{\",CHAR(160),IG$1)),FIND(CHAR(160),SUBSTITUTE($AA124,\"}\",CHAR(160),IG$1))-FIND(CHAR(160),SUBSTITUTE($AA124,\"{\",CHAR(160),IG$1))+1),\"\")","v":""},{"$f":"IFERROR(MID($AA124,FIND(CHAR(160),SUBSTITUTE($AA124,\"{\",CHAR(160),IH$1)),FIND(CHAR(160),SUBSTITUTE($AA124,\"}\",CHAR(160),IH$1))-FIND(CHAR(160),SUBSTITUTE($AA124,\"{\",CHAR(160),IH$1))+1),\"\")","v":""},{"$f":"IFERROR(MID($AA124,FIND(CHAR(160),SUBSTITUTE($AA124,\"{\",CHAR(160),II$1)),FIND(CHAR(160),SUBSTITUTE($AA124,\"}\",CHAR(160),II$1))-FIND(CHAR(160),SUBSTITUTE($AA124,\"{\",CHAR(160),II$1))+1),\"\")","v":""},{"$f":"IFERROR(MID($AA124,FIND(CHAR(160),SUBSTITUTE($AA124,\"{\",CHAR(160),IJ$1)),FIND(CHAR(160),SUBSTITUTE($AA124,\"}\",CHAR(160),IJ$1))-FIND(CHAR(160),SUBSTITUTE($AA124,\"{\",CHAR(160),IJ$1))+1),\"\")","v":""},{"$f":"IFERROR(MID($AA124,FIND(CHAR(160),SUBSTITUTE($AA124,\"{\",CHAR(160),IK$1)),FIND(CHAR(160),SUBSTITUTE($AA124,\"}\",CHAR(160),IK$1))-FIND(CHAR(160),SUBSTITUTE($AA124,\"{\",CHAR(160),IK$1))+1),\"\")","v":""},{"$f":"IFERROR(MID($AA124,FIND(CHAR(160),SUBSTITUTE($AA124,\"{\",CHAR(160),IL$1)),FIND(CHAR(160),SUBSTITUTE($AA124,\"}\",CHAR(160),IL$1))-FIND(CHAR(160),SUBSTITUTE($AA124,\"{\",CHAR(160),IL$1))+1),\"\")","v":""},{"$f":"IFERROR(MID($AA124,FIND(CHAR(160),SUBSTITUTE($AA124,\"{\",CHAR(160),IM$1)),FIND(CHAR(160),SUBSTITUTE($AA124,\"}\",CHAR(160),IM$1))-FIND(CHAR(160),SUBSTITUTE($AA124,\"{\",CHAR(160),IM$1))+1),\"\")","v":""},{"$f":"IFERROR(MID($AA124,FIND(CHAR(160),SUBSTITUTE($AA124,\"{\",CHAR(160),IN$1)),FIND(CHAR(160),SUBSTITUTE($AA124,\"}\",CHAR(160),IN$1))-FIND(CHAR(160),SUBSTITUTE($AA124,\"{\",CHAR(160),IN$1))+1),\"\")","v":""},{"$f":"IFERROR(MID($AB124,FIND(CHAR(160),SUBSTITUTE($AB124,\"{\",CHAR(160),IO$1)),FIND(CHAR(160),SUBSTITUTE($AB124,\"}\",CHAR(160),IO$1))-FIND(CHAR(160),SUBSTITUTE($AB124,\"{\",CHAR(160),IO$1))+1),\"\")","v":""},{"$f":"IFERROR(MID($AB124,FIND(CHAR(160),SUBSTITUTE($AB124,\"{\",CHAR(160),IP$1)),FIND(CHAR(160),SUBSTITUTE($AB124,\"}\",CHAR(160),IP$1))-FIND(CHAR(160),SUBSTITUTE($AB124,\"{\",CHAR(160),IP$1))+1),\"\")","v":""},{"$f":"IFERROR(MID($AB124,FIND(CHAR(160),SUBSTITUTE($AB124,\"{\",CHAR(160),IQ$1)),FIND(CHAR(160),SUBSTITUTE($AB124,\"}\",CHAR(160),IQ$1))-FIND(CHAR(160),SUBSTITUTE($AB124,\"{\",CHAR(160),IQ$1))+1),\"\")","v":""},{"$f":"IFERROR(MID($AB124,FIND(CHAR(160),SUBSTITUTE($AB124,\"{\",CHAR(160),IR$1)),FIND(CHAR(160),SUBSTITUTE($AB124,\"}\",CHAR(160),IR$1))-FIND(CHAR(160),SUBSTITUTE($AB124,\"{\",CHAR(160),IR$1))+1),\"\")","v":""},{"$f":"IFERROR(MID($AB124,FIND(CHAR(160),SUBSTITUTE($AB124,\"{\",CHAR(160),IS$1)),FIND(CHAR(160),SUBSTITUTE($AB124,\"}\",CHAR(160),IS$1))-FIND(CHAR(160),SUBSTITUTE($AB124,\"{\",CHAR(160),IS$1))+1),\"\")","v":""},{"$f":"IFERROR(MID($AB124,FIND(CHAR(160),SUBSTITUTE($AB124,\"{\",CHAR(160),IT$1)),FIND(CHAR(160),SUBSTITUTE($AB124,\"}\",CHAR(160),IT$1))-FIND(CHAR(160),SUBSTITUTE($AB124,\"{\",CHAR(160),IT$1))+1),\"\")","v":""},{"$f":"IFERROR(MID($AB124,FIND(CHAR(160),SUBSTITUTE($AB124,\"{\",CHAR(160),IU$1)),FIND(CHAR(160),SUBSTITUTE($AB124,\"}\",CHAR(160),IU$1))-FIND(CHAR(160),SUBSTITUTE($AB124,\"{\",CHAR(160),IU$1))+1),\"\")","v":""},{"$f":"IFERROR(MID($AB124,FIND(CHAR(160),SUBSTITUTE($AB124,\"{\",CHAR(160),IV$1)),FIND(CHAR(160),SUBSTITUTE($AB124,\"}\",CHAR(160),IV$1))-FIND(CHAR(160),SUBSTITUTE($AB124,\"{\",CHAR(160),IV$1))+1),\"\")","v":""},{"$f":"IFERROR(MID($AB124,FIND(CHAR(160),SUBSTITUTE($AB124,\"{\",CHAR(160),IW$1)),FIND(CHAR(160),SUBSTITUTE($AB124,\"}\",CHAR(160),IW$1))-FIND(CHAR(160),SUBSTITUTE($AB124,\"{\",CHAR(160),IW$1))+1),\"\")","v":""},{"$f":"IFERROR(MID($AB124,FIND(CHAR(160),SUBSTITUTE($AB124,\"{\",CHAR(160),IX$1)),FIND(CHAR(160),SUBSTITUTE($AB124,\"}\",CHAR(160),IX$1))-FIND(CHAR(160),SUBSTITUTE($AB124,\"{\",CHAR(160),IX$1))+1),\"\")","v":""},null,{"$f":"10-COUNTIF(DU124:ED124,\"\")","v":4}]
["C&I Prescriptive Compressed Air Solutions","Receiver - C24 - Standard Receiver Size 240 Gallons","R - C24","2021-07-01","2022-06-30","Per Measure",1463,0,"Per Measure",750,0,"2017-07-01","2022-06-30","Calculated","{Measure:Quantity} *{System Compressor (HP)} * 0.746 * 0.025 * {Weekly Hrs of Operation} * {Weeks Per Year}",1E-4,null,"{Measure:Quantity} *{System Compressor (HP)} * 0.746 * 0.025",null,null,"{Measure:Quantity} *{System Compressor (HP)} * 0.746 * 0.025 * {Factor:WinterCF}","{Measure:Quantity} *{System Compressor (HP)} * 0.746 * 0.025 * {Factor:SummerCF}",null,null,null,null,null,null,"2017-07-01","2022-06-30",10,0.7,0.91100000000000003,0.30399999999999999,0.36099999999999999,0.156,0.17899999999999999,1,1.1220000000000001,1,0.52,1.6E-2,null,{"$f":"DU125","v":"{Weekly Hrs of Operation}"},1,{"$f":"DV125","v":"{Weeks Per Year}"},35,{"$f":"DW125","v":"{Measure:Quantity}"},50,{"$f":"DX125","v":"{System Compressor (HP)}"},50,{"$f":"DY125","v":""},null,{"$f":"DZ125","v":""},null,{"$f":"EA125","v":""},null,{"$f":"EB125","v":""},null,{"$f":"EC125","v":""},null,{"$f":"ED125","v":""},null,{"$f":"AS125 *AU125 * 0.746 * 0.025 * AW125 * AY125","v":1631.8750000000002},{"$f":"0.0001","v":1E-4},0,{"$f":"AS125 *AU125 * 0.746 * 0.025","v":0.65275000000000005},0,0,{"$f":"AS125 *AU125 * 0.746 * 0.025 * AF125","v":0.45692500000000003},{"$f":"AS125 *AU125 * 0.746 * 0.025 * AG125","v":0.59465525000000008},0,0,0,0,0,0,null,"Com","Default DR",{"$f":"Benefits(BL125,BR125,BS125,BT125,BU125,BV125,BW125,BX125,BY125,BZ125,AE125,AH125,AI125,AJ125,AK125,AL125,AM125,AN125,AO125,AP125,CA125,CB125)","v":1812.8531432072066},2011.9961439292174,0,0,0,0,0,0,0,{"$f":"SUMPRODUCT(CC125:CK125,--(CC125:CK125>0))","v":3824.8492871364242},{"$f":"-SUMPRODUCT(CC125:CK125,--(CC125:CK125<0))","v":0},null,{"$f":"1463","v":1463},null,null,{"$f":"CM125+CO125","v":1463},{"$f":"IF(NetOrGross=\"Net\",(1-AO125+AP125),1)","v":1},{"$f":"(SUMPRODUCT(CC125:CJ125,--(CC125:CJ125>0))+CN125)*CS125/((-SUMPRODUCT(CC125:CJ125,--(CC125:CJ125<0))+MAX(CO125,CV125)+CP125+CQ125)*CS125+IF(FRIncentives=\"Yes\",CV125*(1-CS125),0))","v":2.6143877560741107},21,{"$f":"750","v":750},null,"Electric","y",null,{"$f":"IF(F125=\"Manual Entry\",\"Manual\",IF(G125=\"\",0,\"X=\"&SUBSTITUTE(SUBSTITUTE(SUBSTITUTE(SUBSTITUTE(SUBSTITUTE(SUBSTITUTE(SUBSTITUTE(SUBSTITUTE(SUBSTITUTE(SUBSTITUTE(SUBSTITUTE(SUBSTITUTE(G125,$ED125,$ED$2&ROW($ED125)),$EC125,$EC$2&ROW($EC125)),$EB125,$EB$2&ROW($EB125)),$EA125,$EA$2&ROW($EA125)),$DZ125,$DZ$2&ROW($DZ125)),$DY125,$DY$2&ROW($DY125)),$DX125,$DX$2&ROW($DX125)),$DW125,$DW$2&ROW($DW125)),$DV125,$DV$2&ROW($DV125)),$DU125,$DU$2&ROW($DU125)),$DT125,$DT$2&ROW($DT125)),$DS125,$DS$2&ROW($DS125))))","v":"X=1463"},{"$f":"IF(I125=\"Manual Entry\",\"Manual\",IF(J125=\"\",0,\"X=\"&SUBSTITUTE(SUBSTITUTE(SUBSTITUTE(SUBSTITUTE(SUBSTITUTE(SUBSTITUTE(SUBSTITUTE(SUBSTITUTE(SUBSTITUTE(SUBSTITUTE(SUBSTITUTE(SUBSTITUTE(J125,$ED125,$ED$2&ROW($ED125)),$EC125,$EC$2&ROW($EC125)),$EB125,$EB$2&ROW($EB125)),$EA125,$EA$2&ROW($EA125)),$DZ125,$DZ$2&ROW($DZ125)),$DY125,$DY$2&ROW($DY125)),$DX125,$DX$2&ROW($DX125)),$DW125,$DW$2&ROW($DW125)),$DV125,$DV$2&ROW($DV125)),$DU125,$DU$2&ROW($DU125)),$DT125,$DT$2&ROW($DT125)),$DS125,$DS$2&ROW($DS125))))","v":"X=750"},{"$f":"IF(O125=\"\",0,\"X=\"&SUBSTITUTE(SUBSTITUTE(SUBSTITUTE(SUBSTITUTE(SUBSTITUTE(SUBSTITUTE(SUBSTITUTE(SUBSTITUTE(SUBSTITUTE(SUBSTITUTE(SUBSTITUTE(SUBSTITUTE(O125,$ED125,$ED$2&ROW($ED125)),$EC125,$EC$2&ROW($EC125)),$EB125,$EB$2&ROW($EB125)),$EA125,$EA$2&ROW($EA125)),$DZ125,$DZ$2&ROW($DZ125)),$DY125,$DY$2&ROW($DY125)),$DX125,$DX$2&ROW($DX125)),$DW125,$DW$2&ROW($DW125)),$DV125,$DV$2&ROW($DV125)),$DU125,$DU$2&ROW($DU125)),$DT125,$DT$2&ROW($DT125)),$DS125,$DS$2&ROW($DS125)))","v":"X=AW125 *AY125 * 0.746 * 0.025 * AS125 * AU125"},{"$f":"IF(P125=\"\",0,\"X=\"&SUBSTITUTE(SUBSTITUTE(SUBSTITUTE(SUBSTITUTE(SUBSTITUTE(SUBSTITUTE(SUBSTITUTE(SUBSTITUTE(SUBSTITUTE(SUBSTITUTE(SUBSTITUTE(SUBSTITUTE(P125,$ED125,$ED$2&ROW($ED125)),$EC125,$EC$2&ROW($EC125)),$EB125,$EB$2&ROW($EB125)),$EA125,$EA$2&ROW($EA125)),$DZ125,$DZ$2&ROW($DZ125)),$DY125,$DY$2&ROW($DY125)),$DX125,$DX$2&ROW($DX125)),$DW125,$DW$2&ROW($DW125)),$DV125,$DV$2&ROW($DV125)),$DU125,$DU$2&ROW($DU125)),$DT125,$DT$2&ROW($DT125)),$DS125,$DS$2&ROW($DS125)))","v":"X=0.0001"},{"$f":"IF(Q125=\"\",0,\"X=\"&SUBSTITUTE(SUBSTITUTE(SUBSTITUTE(SUBSTITUTE(SUBSTITUTE(SUBSTITUTE(SUBSTITUTE(SUBSTITUTE(SUBSTITUTE(SUBSTITUTE(SUBSTITUTE(SUBSTITUTE(Q125,$ED125,$ED$2&ROW($ED125)),$EC125,$EC$2&ROW($EC125)),$EB125,$EB$2&ROW($EB125)),$EA125,$EA$2&ROW($EA125)),$DZ125,$DZ$2&ROW($DZ125)),$DY125,$DY$2&ROW($DY125)),$DX125,$DX$2&ROW($DX125)),$DW125,$DW$2&ROW($DW125)),$DV125,$DV$2&ROW($DV125)),$DU125,$DU$2&ROW($DU125)),$DT125,$DT$2&ROW($DT125)),$DS125,$DS$2&ROW($DS125)))","v":0},{"$f":"IF(R125=\"\",0,\"X=\"&SUBSTITUTE(SUBSTITUTE(SUBSTITUTE(SUBSTITUTE(SUBSTITUTE(SUBSTITUTE(SUBSTITUTE(SUBSTITUTE(SUBSTITUTE(SUBSTITUTE(SUBSTITUTE(SUBSTITUTE(R125,$ED125,$ED$2&ROW($ED125)),$EC125,$EC$2&ROW($EC125)),$EB125,$EB$2&ROW($EB125)),$EA125,$EA$2&ROW($EA125)),$DZ125,$DZ$2&ROW($DZ125)),$DY125,$DY$2&ROW($DY125)),$DX125,$DX$2&ROW($DX125)),$DW125,$DW$2&ROW($DW125)),$DV125,$DV$2&ROW($DV125)),$DU125,$DU$2&ROW($DU125)),$DT125,$DT$2&ROW($DT125)),$DS125,$DS$2&ROW($DS125)))","v":"X=AW125 *AY125 * 0.746 * 0.025"},{"$f":"IF(S125=\"\",0,\"X=\"&SUBSTITUTE(SUBSTITUTE(SUBSTITUTE(SUBSTITUTE(SUBSTITUTE(SUBSTITUTE(SUBSTITUTE(SUBSTITUTE(SUBSTITUTE(SUBSTITUTE(SUBSTITUTE(SUBSTITUTE(S125,$ED125,$ED$2&ROW($ED125)),$EC125,$EC$2&ROW($EC125)),$EB125,$EB$2&ROW($EB125)),$EA125,$EA$2&ROW($EA125)),$DZ125,$DZ$2&ROW($DZ125)),$DY125,$DY$2&ROW($DY125)),$DX125,$DX$2&ROW($DX125)),$DW125,$DW$2&ROW($DW125)),$DV125,$DV$2&ROW($DV125)),$DU125,$DU$2&ROW($DU125)),$DT125,$DT$2&ROW($DT125)),$DS125,$DS$2&ROW($DS125)))","v":0},{"$f":"IF(T125=\"\",0,\"X=\"&SUBSTITUTE(SUBSTITUTE(SUBSTITUTE(SUBSTITUTE(SUBSTITUTE(SUBSTITUTE(SUBSTITUTE(SUBSTITUTE(SUBSTITUTE(SUBSTITUTE(SUBSTITUTE(SUBSTITUTE(T125,$ED125,$ED$2&ROW($ED125)),$EC125,$EC$2&ROW($EC125)),$EB125,$EB$2&ROW($EB125)),$EA125,$EA$2&ROW($EA125)),$DZ125,$DZ$2&ROW($DZ125)),$DY125,$DY$2&ROW($DY125)),$DX125,$DX$2&ROW($DX125)),$DW125,$DW$2&ROW($DW125)),$DV125,$DV$2&ROW($DV125)),$DU125,$DU$2&ROW($DU125)),$DT125,$DT$2&ROW($DT125)),$DS125,$DS$2&ROW($DS125)))","v":0},{"$f":"IF(U125=\"\",0,\"X=\"&SUBSTITUTE(SUBSTITUTE(SUBSTITUTE(SUBSTITUTE(SUBSTITUTE(SUBSTITUTE(SUBSTITUTE(SUBSTITUTE(SUBSTITUTE(SUBSTITUTE(SUBSTITUTE(SUBSTITUTE(U125,$ED125,$ED$2&ROW($ED125)),$EC125,$EC$2&ROW($EC125)),$EB125,$EB$2&ROW($EB125)),$EA125,$EA$2&ROW($EA125)),$DZ125,$DZ$2&ROW($DZ125)),$DY125,$DY$2&ROW($DY125)),$DX125,$DX$2&ROW($DX125)),$DW125,$DW$2&ROW($DW125)),$DV125,$DV$2&ROW($DV125)),$DU125,$DU$2&ROW($DU125)),$DT125,$DT$2&ROW($DT125)),$DS125,$DS$2&ROW($DS125)))","v":"X=AW125 *AY125 * 0.746 * 0.025 * AF125"},{"$f":"IF(V125=\"\",0,\"X=\"&SUBSTITUTE(SUBSTITUTE(SUBSTITUTE(SUBSTITUTE(SUBSTITUTE(SUBSTITUTE(SUBSTITUTE(SUBSTITUTE(SUBSTITUTE(SUBSTITUTE(SUBSTITUTE(SUBSTITUTE(V125,$ED125,$ED$2&ROW($ED125)),$EC125,$EC$2&ROW($EC125)),$EB125,$EB$2&ROW($EB125)),$EA125,$EA$2&ROW($EA125)),$DZ125,$DZ$2&ROW($DZ125)),$DY125,$DY$2&ROW($DY125)),$DX125,$DX$2&ROW($DX125)),$DW125,$DW$2&ROW($DW125)),$DV125,$DV$2&ROW($DV125)),$DU125,$DU$2&ROW($DU125)),$DT125,$DT$2&ROW($DT125)),$DS125,$DS$2&ROW($DS125)))","v":"X=AW125 *AY125 * 0.746 * 0.025 * AG125"},{"$f":"IF(W125=\"\",0,\"X=\"&SUBSTITUTE(SUBSTITUTE(SUBSTITUTE(SUBSTITUTE(SUBSTITUTE(SUBSTITUTE(SUBSTITUTE(SUBSTITUTE(SUBSTITUTE(SUBSTITUTE(SUBSTITUTE(SUBSTITUTE(W125,$ED125,$ED$2&ROW($ED125)),$EC125,$EC$2&ROW($EC125)),$EB125,$EB$2&ROW($EB125)),$EA125,$EA$2&ROW($EA125)),$DZ125,$DZ$2&ROW($DZ125)),$DY125,$DY$2&ROW($DY125)),$DX125,$DX$2&ROW($DX125)),$DW125,$DW$2&ROW($DW125)),$DV125,$DV$2&ROW($DV125)),$DU125,$DU$2&ROW($DU125)),$DT125,$DT$2&ROW($DT125)),$DS125,$DS$2&ROW($DS125)))","v":0},{"$f":"IF(X125=\"\",0,\"X=\"&SUBSTITUTE(SUBSTITUTE(SUBSTITUTE(SUBSTITUTE(SUBSTITUTE(SUBSTITUTE(SUBSTITUTE(SUBSTITUTE(SUBSTITUTE(SUBSTITUTE(SUBSTITUTE(SUBSTITUTE(X125,$ED125,$ED$2&ROW($ED125)),$EC125,$EC$2&ROW($EC125)),$EB125,$EB$2&ROW($EB125)),$EA125,$EA$2&ROW($EA125)),$DZ125,$DZ$2&ROW($DZ125)),$DY125,$DY$2&ROW($DY125)),$DX125,$DX$2&ROW($DX125)),$DW125,$DW$2&ROW($DW125)),$DV125,$DV$2&ROW($DV125)),$DU125,$DU$2&ROW($DU125)),$DT125,$DT$2&ROW($DT125)),$DS125,$DS$2&ROW($DS125)))","v":0},{"$f":"IF(Y125=\"\",0,\"X=\"&SUBSTITUTE(SUBSTITUTE(SUBSTITUTE(SUBSTITUTE(SUBSTITUTE(SUBSTITUTE(SUBSTITUTE(SUBSTITUTE(SUBSTITUTE(SUBSTITUTE(SUBSTITUTE(SUBSTITUTE(Y125,$ED125,$ED$2&ROW($ED125)),$EC125,$EC$2&ROW($EC125)),$EB125,$EB$2&ROW($EB125)),$EA125,$EA$2&ROW($EA125)),$DZ125,$DZ$2&ROW($DZ125)),$DY125,$DY$2&ROW($DY125)),$DX125,$DX$2&ROW($DX125)),$DW125,$DW$2&ROW($DW125)),$DV125,$DV$2&ROW($DV125)),$DU125,$DU$2&ROW($DU125)),$DT125,$DT$2&ROW($DT125)),$DS125,$DS$2&ROW($DS125)))","v":0},{"$f":"IF(Z125=\"\",0,\"X=\"&SUBSTITUTE(SUBSTITUTE(SUBSTITUTE(SUBSTITUTE(SUBSTITUTE(SUBSTITUTE(SUBSTITUTE(SUBSTITUTE(SUBSTITUTE(SUBSTITUTE(SUBSTITUTE(SUBSTITUTE(Z125,$ED125,$ED$2&ROW($ED125)),$EC125,$EC$2&ROW($EC125)),$EB125,$EB$2&ROW($EB125)),$EA125,$EA$2&ROW($EA125)),$DZ125,$DZ$2&ROW($DZ125)),$DY125,$DY$2&ROW($DY125)),$DX125,$DX$2&ROW($DX125)),$DW125,$DW$2&ROW($DW125)),$DV125,$DV$2&ROW($DV125)),$DU125,$DU$2&ROW($DU125)),$DT125,$DT$2&ROW($DT125)),$DS125,$DS$2&ROW($DS125)))","v":0},{"$f":"IF(AA125=\"\",0,\"X=\"&SUBSTITUTE(SUBSTITUTE(SUBSTITUTE(SUBSTITUTE(SUBSTITUTE(SUBSTITUTE(SUBSTITUTE(SUBSTITUTE(SUBSTITUTE(SUBSTITUTE(SUBSTITUTE(SUBSTITUTE(AA125,$ED125,$ED$2&ROW($ED125)),$EC125,$EC$2&ROW($EC125)),$EB125,$EB$2&ROW($EB125)),$EA125,$EA$2&ROW($EA125)),$DZ125,$DZ$2&ROW($DZ125)),$DY125,$DY$2&ROW($DY125)),$DX125,$DX$2&ROW($DX125)),$DW125,$DW$2&ROW($DW125)),$DV125,$DV$2&ROW($DV125)),$DU125,$DU$2&ROW($DU125)),$DT125,$DT$2&ROW($DT125)),$DS125,$DS$2&ROW($DS125)))","v":0},{"$f":"IF(AB125=\"\",0,\"X=\"&SUBSTITUTE(SUBSTITUTE(SUBSTITUTE(SUBSTITUTE(SUBSTITUTE(SUBSTITUTE(SUBSTITUTE(SUBSTITUTE(SUBSTITUTE(SUBSTITUTE(SUBSTITUTE(SUBSTITUTE(AB125,$ED125,$ED$2&ROW($ED125)),$EC125,$EC$2&ROW($EC125)),$EB125,$EB$2&ROW($EB125)),$EA125,$EA$2&ROW($EA125)),$DZ125,$DZ$2&ROW($DZ125)),$DY125,$DY$2&ROW($DY125)),$DX125,$DX$2&ROW($DX125)),$DW125,$DW$2&ROW($DW125)),$DV125,$DV$2&ROW($DV125)),$DU125,$DU$2&ROW($DU125)),$DT125,$DT$2&ROW($DT125)),$DS125,$DS$2&ROW($DS125)))","v":0},null,null,"{Factor:WinterCF}","{Factor:SummerCF}",{"$f":"IFERROR(INDEX($EG125:$IV125,MATCH(0,COUNTIF($DR125:DT125,$EG125:$IV125),0)),\"\")","v":"{Weekly Hrs of Operation}"},{"$f":"IFERROR(INDEX($EG125:$IV125,MATCH(0,COUNTIF($DR125:DU125,$EG125:$IV125),0)),\"\")","v":"{Weeks Per Year}"},{"$f":"IFERROR(INDEX($EG125:$IV125,MATCH(0,COUNTIF($DR125:DV125,$EG125:$IV125),0)),\"\")","v":"{Measure:Quantity}"},{"$f":"IFERROR(INDEX($EG125:$IV125,MATCH(0,COUNTIF($DR125:DW125,$EG125:$IV125),0)),\"\")","v":"{System Compressor (HP)}"},{"$f":"IFERROR(INDEX($EG125:$IV125,MATCH(0,COUNTIF($DR125:DX125,$EG125:$IV125),0)),\"\")","v":""},{"$f":"IFERROR(INDEX($EG125:$IV125,MATCH(0,COUNTIF($DR125:DY125,$EG125:$IV125),0)),\"\")","v":""},{"$f":"IFERROR(INDEX($EG125:$IV125,MATCH(0,COUNTIF($DR125:DZ125,$EG125:$IV125),0)),\"\")","v":""},{"$f":"IFERROR(INDEX($EG125:$IV125,MATCH(0,COUNTIF($DR125:EA125,$EG125:$IV125),0)),\"\")","v":""},{"$f":"IFERROR(INDEX($EG125:$IV125,MATCH(0,COUNTIF($DR125:EB125,$EG125:$IV125),0)),\"\")","v":""},{"$f":"IFERROR(INDEX($EG125:$IV125,MATCH(0,COUNTIF($DR125:EC125,$EG125:$IV125),0)),\"\")","v":""},null,null,{"$f":"IFERROR(MID($G125,FIND(CHAR(160),SUBSTITUTE($G125,\"{\",CHAR(160),EG$1)),FIND(CHAR(160),SUBSTITUTE($G125,\"}\",CHAR(160),EG$1))-FIND(CHAR(160),SUBSTITUTE($G125,\"{\",CHAR(160),EG$1))+1),\"\")","v":""},{"$f":"IFERROR(MID($G125,FIND(CHAR(160),SUBSTITUTE($G125,\"{\",CHAR(160),EH$1)),FIND(CHAR(160),SUBSTITUTE($G125,\"}\",CHAR(160),EH$1))-FIND(CHAR(160),SUBSTITUTE($G125,\"{\",CHAR(160),EH$1))+1),\"\")","v":""},{"$f":"IFERROR(MID($G125,FIND(CHAR(160),SUBSTITUTE($G125,\"{\",CHAR(160),EI$1)),FIND(CHAR(160),SUBSTITUTE($G125,\"}\",CHAR(160),EI$1))-FIND(CHAR(160),SUBSTITUTE($G125,\"{\",CHAR(160),EI$1))+1),\"\")","v":""},{"$f":"IFERROR(MID($G125,FIND(CHAR(160),SUBSTITUTE($G125,\"{\",CHAR(160),EJ$1)),FIND(CHAR(160),SUBSTITUTE($G125,\"}\",CHAR(160),EJ$1))-FIND(CHAR(160),SUBSTITUTE($G125,\"{\",CHAR(160),EJ$1))+1),\"\")","v":""},{"$f":"IFERROR(MID($G125,FIND(CHAR(160),SUBSTITUTE($G125,\"{\",CHAR(160),EK$1)),FIND(CHAR(160),SUBSTITUTE($G125,\"}\",CHAR(160),EK$1))-FIND(CHAR(160),SUBSTITUTE($G125,\"{\",CHAR(160),EK$1))+1),\"\")","v":""},{"$f":"IFERROR(MID($G125,FIND(CHAR(160),SUBSTITUTE($G125,\"{\",CHAR(160),EL$1)),FIND(CHAR(160),SUBSTITUTE($G125,\"}\",CHAR(160),EL$1))-FIND(CHAR(160),SUBSTITUTE($G125,\"{\",CHAR(160),EL$1))+1),\"\")","v":""},{"$f":"IFERROR(MID($G125,FIND(CHAR(160),SUBSTITUTE($G125,\"{\",CHAR(160),EM$1)),FIND(CHAR(160),SUBSTITUTE($G125,\"}\",CHAR(160),EM$1))-FIND(CHAR(160),SUBSTITUTE($G125,\"{\",CHAR(160),EM$1))+1),\"\")","v":""},{"$f":"IFERROR(MID($G125,FIND(CHAR(160),SUBSTITUTE($G125,\"{\",CHAR(160),EN$1)),FIND(CHAR(160),SUBSTITUTE($G125,\"}\",CHAR(160),EN$1))-FIND(CHAR(160),SUBSTITUTE($G125,\"{\",CHAR(160),EN$1))+1),\"\")","v":""},{"$f":"IFERROR(MID($G125,FIND(CHAR(160),SUBSTITUTE($G125,\"{\",CHAR(160),EO$1)),FIND(CHAR(160),SUBSTITUTE($G125,\"}\",CHAR(160),EO$1))-FIND(CHAR(160),SUBSTITUTE($G125,\"{\",CHAR(160),EO$1))+1),\"\")","v":""},{"$f":"IFERROR(MID($G125,FIND(CHAR(160),SUBSTITUTE($G125,\"{\",CHAR(160),EP$1)),FIND(CHAR(160),SUBSTITUTE($G125,\"}\",CHAR(160),EP$1))-FIND(CHAR(160),SUBSTITUTE($G125,\"{\",CHAR(160),EP$1))+1),\"\")","v":""},{"$f":"IFERROR(MID($J125,FIND(CHAR(160),SUBSTITUTE($J125,\"{\",CHAR(160),EQ$1)),FIND(CHAR(160),SUBSTITUTE($J125,\"}\",CHAR(160),EQ$1))-FIND(CHAR(160),SUBSTITUTE($J125,\"{\",CHAR(160),EQ$1))+1),\"\")","v":""},{"$f":"IFERROR(MID($J125,FIND(CHAR(160),SUBSTITUTE($J125,\"{\",CHAR(160),ER$1)),FIND(CHAR(160),SUBSTITUTE($J125,\"}\",CHAR(160),ER$1))-FIND(CHAR(160),SUBSTITUTE($J125,\"{\",CHAR(160),ER$1))+1),\"\")","v":""},{"$f":"IFERROR(MID($J125,FIND(CHAR(160),SUBSTITUTE($J125,\"{\",CHAR(160),ES$1)),FIND(CHAR(160),SUBSTITUTE($J125,\"}\",CHAR(160),ES$1))-FIND(CHAR(160),SUBSTITUTE($J125,\"{\",CHAR(160),ES$1))+1),\"\")","v":""},{"$f":"IFERROR(MID($J125,FIND(CHAR(160),SUBSTITUTE($J125,\"{\",CHAR(160),ET$1)),FIND(CHAR(160),SUBSTITUTE($J125,\"}\",CHAR(160),ET$1))-FIND(CHAR(160),SUBSTITUTE($J125,\"{\",CHAR(160),ET$1))+1),\"\")","v":""},{"$f":"IFERROR(MID($J125,FIND(CHAR(160),SUBSTITUTE($J125,\"{\",CHAR(160),EU$1)),FIND(CHAR(160),SUBSTITUTE($J125,\"}\",CHAR(160),EU$1))-FIND(CHAR(160),SUBSTITUTE($J125,\"{\",CHAR(160),EU$1))+1),\"\")","v":""},{"$f":"IFERROR(MID($J125,FIND(CHAR(160),SUBSTITUTE($J125,\"{\",CHAR(160),EV$1)),FIND(CHAR(160),SUBSTITUTE($J125,\"}\",CHAR(160),EV$1))-FIND(CHAR(160),SUBSTITUTE($J125,\"{\",CHAR(160),EV$1))+1),\"\")","v":""},{"$f":"IFERROR(MID($J125,FIND(CHAR(160),SUBSTITUTE($J125,\"{\",CHAR(160),EW$1)),FIND(CHAR(160),SUBSTITUTE($J125,\"}\",CHAR(160),EW$1))-FIND(CHAR(160),SUBSTITUTE($J125,\"{\",CHAR(160),EW$1))+1),\"\")","v":""},{"$f":"IFERROR(MID($J125,FIND(CHAR(160),SUBSTITUTE($J125,\"{\",CHAR(160),EX$1)),FIND(CHAR(160),SUBSTITUTE($J125,\"}\",CHAR(160),EX$1))-FIND(CHAR(160),SUBSTITUTE($J125,\"{\",CHAR(160),EX$1))+1),\"\")","v":""},{"$f":"IFERROR(MID($J125,FIND(CHAR(160),SUBSTITUTE($J125,\"{\",CHAR(160),EY$1)),FIND(CHAR(160),SUBSTITUTE($J125,\"}\",CHAR(160),EY$1))-FIND(CHAR(160),SUBSTITUTE($J125,\"{\",CHAR(160),EY$1))+1),\"\")","v":""},{"$f":"IFERROR(MID($J125,FIND(CHAR(160),SUBSTITUTE($J125,\"{\",CHAR(160),EZ$1)),FIND(CHAR(160),SUBSTITUTE($J125,\"}\",CHAR(160),EZ$1))-FIND(CHAR(160),SUBSTITUTE($J125,\"{\",CHAR(160),EZ$1))+1),\"\")","v":""},{"$f":"IFERROR(MID($J125,FIND(CHAR(160),SUBSTITUTE($J125,\"{\",CHAR(160),FA$1)),FIND(CHAR(160),SUBSTITUTE($J125,\"}\",CHAR(160),FA$1))-FIND(CHAR(160),SUBSTITUTE($J125,\"{\",CHAR(160),FA$1))+1),\"\")","v":""},{"$f":"IFERROR(MID($J125,FIND(CHAR(160),SUBSTITUTE($J125,\"{\",CHAR(160),FB$1)),FIND(CHAR(160),SUBSTITUTE($J125,\"}\",CHAR(160),FB$1))-FIND(CHAR(160),SUBSTITUTE($J125,\"{\",CHAR(160),FB$1))+1),\"\")","v":""},{"$f":"IFERROR(MID($O125,FIND(CHAR(160),SUBSTITUTE($O125,\"{\",CHAR(160),FC$1)),FIND(CHAR(160),SUBSTITUTE($O125,\"}\",CHAR(160),FC$1))-FIND(CHAR(160),SUBSTITUTE($O125,\"{\",CHAR(160),FC$1))+1),\"\")","v":"{Weekly Hrs of Operation}"},{"$f":"IFERROR(MID($O125,FIND(CHAR(160),SUBSTITUTE($O125,\"{\",CHAR(160),FD$1)),FIND(CHAR(160),SUBSTITUTE($O125,\"}\",CHAR(160),FD$1))-FIND(CHAR(160),SUBSTITUTE($O125,\"{\",CHAR(160),FD$1))+1),\"\")","v":"{Weeks Per Year}"},{"$f":"IFERROR(MID($O125,FIND(CHAR(160),SUBSTITUTE($O125,\"{\",CHAR(160),FE$1)),FIND(CHAR(160),SUBSTITUTE($O125,\"}\",CHAR(160),FE$1))-FIND(CHAR(160),SUBSTITUTE($O125,\"{\",CHAR(160),FE$1))+1),\"\")","v":""},{"$f":"IFERROR(MID($O125,FIND(CHAR(160),SUBSTITUTE($O125,\"{\",CHAR(160),FF$1)),FIND(CHAR(160),SUBSTITUTE($O125,\"}\",CHAR(160),FF$1))-FIND(CHAR(160),SUBSTITUTE($O125,\"{\",CHAR(160),FF$1))+1),\"\")","v":""},{"$f":"IFERROR(MID($O125,FIND(CHAR(160),SUBSTITUTE($O125,\"{\",CHAR(160),FG$1)),FIND(CHAR(160),SUBSTITUTE($O125,\"}\",CHAR(160),FG$1))-FIND(CHAR(160),SUBSTITUTE($O125,\"{\",CHAR(160),FG$1))+1),\"\")","v":""},{"$f":"IFERROR(MID($O125,FIND(CHAR(160),SUBSTITUTE($O125,\"{\",CHAR(160),FH$1)),FIND(CHAR(160),SUBSTITUTE($O125,\"}\",CHAR(160),FH$1))-FIND(CHAR(160),SUBSTITUTE($O125,\"{\",CHAR(160),FH$1))+1),\"\")","v":""},{"$f":"IFERROR(MID($O125,FIND(CHAR(160),SUBSTITUTE($O125,\"{\",CHAR(160),FI$1)),FIND(CHAR(160),SUBSTITUTE($O125,\"}\",CHAR(160),FI$1))-FIND(CHAR(160),SUBSTITUTE($O125,\"{\",CHAR(160),FI$1))+1),\"\")","v":""},{"$f":"IFERROR(MID($O125,FIND(CHAR(160),SUBSTITUTE($O125,\"{\",CHAR(160),FJ$1)),FIND(CHAR(160),SUBSTITUTE($O125,\"}\",CHAR(160),FJ$1))-FIND(CHAR(160),SUBSTITUTE($O125,\"{\",CHAR(160),FJ$1))+1),\"\")","v":""},{"$f":"IFERROR(MID($O125,FIND(CHAR(160),SUBSTITUTE($O125,\"{\",CHAR(160),FK$1)),FIND(CHAR(160),SUBSTITUTE($O125,\"}\",CHAR(160),FK$1))-FIND(CHAR(160),SUBSTITUTE($O125,\"{\",CHAR(160),FK$1))+1),\"\")","v":"{Measure:Quantity}"},{"$f":"IFERROR(MID($O125,FIND(CHAR(160),SUBSTITUTE($O125,\"{\",CHAR(160),FL$1)),FIND(CHAR(160),SUBSTITUTE($O125,\"}\",CHAR(160),FL$1))-FIND(CHAR(160),SUBSTITUTE($O125,\"{\",CHAR(160),FL$1))+1),\"\")","v":"{System Compressor (HP)}"},{"$f":"IFERROR(MID($R125,FIND(CHAR(160),SUBSTITUTE($R125,\"{\",CHAR(160),FM$1)),FIND(CHAR(160),SUBSTITUTE($R125,\"}\",CHAR(160),FM$1))-FIND(CHAR(160),SUBSTITUTE($R125,\"{\",CHAR(160),FM$1))+1),\"\")","v":""},{"$f":"IFERROR(MID($R125,FIND(CHAR(160),SUBSTITUTE($R125,\"{\",CHAR(160),FN$1)),FIND(CHAR(160),SUBSTITUTE($R125,\"}\",CHAR(160),FN$1))-FIND(CHAR(160),SUBSTITUTE($R125,\"{\",CHAR(160),FN$1))+1),\"\")","v":""},{"$f":"IFERROR(MID($R125,FIND(CHAR(160),SUBSTITUTE($R125,\"{\",CHAR(160),FO$1)),FIND(CHAR(160),SUBSTITUTE($R125,\"}\",CHAR(160),FO$1))-FIND(CHAR(160),SUBSTITUTE($R125,\"{\",CHAR(160),FO$1))+1),\"\")","v":""},{"$f":"IFERROR(MID($R125,FIND(CHAR(160),SUBSTITUTE($R125,\"{\",CHAR(160),FP$1)),FIND(CHAR(160),SUBSTITUTE($R125,\"}\",CHAR(160),FP$1))-FIND(CHAR(160),SUBSTITUTE($R125,\"{\",CHAR(160),FP$1))+1),\"\")","v":""},{"$f":"IFERROR(MID($R125,FIND(CHAR(160),SUBSTITUTE($R125,\"{\",CHAR(160),FQ$1)),FIND(CHAR(160),SUBSTITUTE($R125,\"}\",CHAR(160),FQ$1))-FIND(CHAR(160),SUBSTITUTE($R125,\"{\",CHAR(160),FQ$1))+1),\"\")","v":""},{"$f":"IFERROR(MID($R125,FIND(CHAR(160),SUBSTITUTE($R125,\"{\",CHAR(160),FR$1)),FIND(CHAR(160),SUBSTITUTE($R125,\"}\",CHAR(160),FR$1))-FIND(CHAR(160),SUBSTITUTE($R125,\"{\",CHAR(160),FR$1))+1),\"\")","v":""},{"$f":"IFERROR(MID($R125,FIND(CHAR(160),SUBSTITUTE($R125,\"{\",CHAR(160),FS$1)),FIND(CHAR(160),SUBSTITUTE($R125,\"}\",CHAR(160),FS$1))-FIND(CHAR(160),SUBSTITUTE($R125,\"{\",CHAR(160),FS$1))+1),\"\")","v":""},{"$f":"IFERROR(MID($R125,FIND(CHAR(160),SUBSTITUTE($R125,\"{\",CHAR(160),FT$1)),FIND(CHAR(160),SUBSTITUTE($R125,\"}\",CHAR(160),FT$1))-FIND(CHAR(160),SUBSTITUTE($R125,\"{\",CHAR(160),FT$1))+1),\"\")","v":""},{"$f":"IFERROR(MID($R125,FIND(CHAR(160),SUBSTITUTE($R125,\"{\",CHAR(160),FU$1)),FIND(CHAR(160),SUBSTITUTE($R125,\"}\",CHAR(160),FU$1))-FIND(CHAR(160),SUBSTITUTE($R125,\"{\",CHAR(160),FU$1))+1),\"\")","v":"{Measure:Quantity}"},{"$f":"IFERROR(MID($R125,FIND(CHAR(160),SUBSTITUTE($R125,\"{\",CHAR(160),FV$1)),FIND(CHAR(160),SUBSTITUTE($R125,\"}\",CHAR(160),FV$1))-FIND(CHAR(160),SUBSTITUTE($R125,\"{\",CHAR(160),FV$1))+1),\"\")","v":"{System Compressor (HP)}"},{"$f":"IFERROR(MID($U125,FIND(CHAR(160),SUBSTITUTE($U125,\"{\",CHAR(160),FW$1)),FIND(CHAR(160),SUBSTITUTE($U125,\"}\",CHAR(160),FW$1))-FIND(CHAR(160),SUBSTITUTE($U125,\"{\",CHAR(160),FW$1))+1),\"\")","v":"{Factor:WinterCF}"},{"$f":"IFERROR(MID($U125,FIND(CHAR(160),SUBSTITUTE($U125,\"{\",CHAR(160),FX$1)),FIND(CHAR(160),SUBSTITUTE($U125,\"}\",CHAR(160),FX$1))-FIND(CHAR(160),SUBSTITUTE($U125,\"{\",CHAR(160),FX$1))+1),\"\")","v":""},{"$f":"IFERROR(MID($U125,FIND(CHAR(160),SUBSTITUTE($U125,\"{\",CHAR(160),FY$1)),FIND(CHAR(160),SUBSTITUTE($U125,\"}\",CHAR(160),FY$1))-FIND(CHAR(160),SUBSTITUTE($U125,\"{\",CHAR(160),FY$1))+1),\"\")","v":""},{"$f":"IFERROR(MID($U125,FIND(CHAR(160),SUBSTITUTE($U125,\"{\",CHAR(160),FZ$1)),FIND(CHAR(160),SUBSTITUTE($U125,\"}\",CHAR(160),FZ$1))-FIND(CHAR(160),SUBSTITUTE($U125,\"{\",CHAR(160),FZ$1))+1),\"\")","v":""},{"$f":"IFERROR(MID($U125,FIND(CHAR(160),SUBSTITUTE($U125,\"{\",CHAR(160),GA$1)),FIND(CHAR(160),SUBSTITUTE($U125,\"}\",CHAR(160),GA$1))-FIND(CHAR(160),SUBSTITUTE($U125,\"{\",CHAR(160),GA$1))+1),\"\")","v":""},{"$f":"IFERROR(MID($U125,FIND(CHAR(160),SUBSTITUTE($U125,\"{\",CHAR(160),GB$1)),FIND(CHAR(160),SUBSTITUTE($U125,\"}\",CHAR(160),GB$1))-FIND(CHAR(160),SUBSTITUTE($U125,\"{\",CHAR(160),GB$1))+1),\"\")","v":""},{"$f":"IFERROR(MID($U125,FIND(CHAR(160),SUBSTITUTE($U125,\"{\",CHAR(160),GC$1)),FIND(CHAR(160),SUBSTITUTE($U125,\"}\",CHAR(160),GC$1))-FIND(CHAR(160),SUBSTITUTE($U125,\"{\",CHAR(160),GC$1))+1),\"\")","v":""},{"$f":"IFERROR(MID($U125,FIND(CHAR(160),SUBSTITUTE($U125,\"{\",CHAR(160),GD$1)),FIND(CHAR(160),SUBSTITUTE($U125,\"}\",CHAR(160),GD$1))-FIND(CHAR(160),SUBSTITUTE($U125,\"{\",CHAR(160),GD$1))+1),\"\")","v":""},{"$f":"IFERROR(MID($U125,FIND(CHAR(160),SUBSTITUTE($U125,\"{\",CHAR(160),GE$1)),FIND(CHAR(160),SUBSTITUTE($U125,\"}\",CHAR(160),GE$1))-FIND(CHAR(160),SUBSTITUTE($U125,\"{\",CHAR(160),GE$1))+1),\"\")","v":"{Measure:Quantity}"},{"$f":"IFERROR(MID($U125,FIND(CHAR(160),SUBSTITUTE($U125,\"{\",CHAR(160),GF$1)),FIND(CHAR(160),SUBSTITUTE($U125,\"}\",CHAR(160),GF$1))-FIND(CHAR(160),SUBSTITUTE($U125,\"{\",CHAR(160),GF$1))+1),\"\")","v":"{System Compressor (HP)}"},{"$f":"IFERROR(MID($V125,FIND(CHAR(160),SUBSTITUTE($V125,\"{\",CHAR(160),GG$1)),FIND(CHAR(160),SUBSTITUTE($V125,\"}\",CHAR(160),GG$1))-FIND(CHAR(160),SUBSTITUTE($V125,\"{\",CHAR(160),GG$1))+1),\"\")","v":"{Factor:SummerCF}"},{"$f":"IFERROR(MID($V125,FIND(CHAR(160),SUBSTITUTE($V125,\"{\",CHAR(160),GH$1)),FIND(CHAR(160),SUBSTITUTE($V125,\"}\",CHAR(160),GH$1))-FIND(CHAR(160),SUBSTITUTE($V125,\"{\",CHAR(160),GH$1))+1),\"\")","v":""},{"$f":"IFERROR(MID($V125,FIND(CHAR(160),SUBSTITUTE($V125,\"{\",CHAR(160),GI$1)),FIND(CHAR(160),SUBSTITUTE($V125,\"}\",CHAR(160),GI$1))-FIND(CHAR(160),SUBSTITUTE($V125,\"{\",CHAR(160),GI$1))+1),\"\")","v":""},{"$f":"IFERROR(MID($V125,FIND(CHAR(160),SUBSTITUTE($V125,\"{\",CHAR(160),GJ$1)),FIND(CHAR(160),SUBSTITUTE($V125,\"}\",CHAR(160),GJ$1))-FIND(CHAR(160),SUBSTITUTE($V125,\"{\",CHAR(160),GJ$1))+1),\"\")","v":""},{"$f":"IFERROR(MID($V125,FIND(CHAR(160),SUBSTITUTE($V125,\"{\",CHAR(160),GK$1)),FIND(CHAR(160),SUBSTITUTE($V125,\"}\",CHAR(160),GK$1))-FIND(CHAR(160),SUBSTITUTE($V125,\"{\",CHAR(160),GK$1))+1),\"\")","v":""},{"$f":"IFERROR(MID($V125,FIND(CHAR(160),SUBSTITUTE($V125,\"{\",CHAR(160),GL$1)),FIND(CHAR(160),SUBSTITUTE($V125,\"}\",CHAR(160),GL$1))-FIND(CHAR(160),SUBSTITUTE($V125,\"{\",CHAR(160),GL$1))+1),\"\")","v":""},{"$f":"IFERROR(MID($V125,FIND(CHAR(160),SUBSTITUTE($V125,\"{\",CHAR(160),GM$1)),FIND(CHAR(160),SUBSTITUTE($V125,\"}\",CHAR(160),GM$1))-FIND(CHAR(160),SUBSTITUTE($V125,\"{\",CHAR(160),GM$1))+1),\"\")","v":""},{"$f":"IFERROR(MID($V125,FIND(CHAR(160),SUBSTITUTE($V125,\"{\",CHAR(160),GN$1)),FIND(CHAR(160),SUBSTITUTE($V125,\"}\",CHAR(160),GN$1))-FIND(CHAR(160),SUBSTITUTE($V125,\"{\",CHAR(160),GN$1))+1),\"\")","v":""},{"$f":"IFERROR(MID($V125,FIND(CHAR(160),SUBSTITUTE($V125,\"{\",CHAR(160),GO$1)),FIND(CHAR(160),SUBSTITUTE($V125,\"}\",CHAR(160),GO$1))-FIND(CHAR(160),SUBSTITUTE($V125,\"{\",CHAR(160),GO$1))+1),\"\")","v":"{Measure:Quantity}"},{"$f":"IFERROR(MID($V125,FIND(CHAR(160),SUBSTITUTE($V125,\"{\",CHAR(160),GP$1)),FIND(CHAR(160),SUBSTITUTE($V125,\"}\",CHAR(160),GP$1))-FIND(CHAR(160),SUBSTITUTE($V125,\"{\",CHAR(160),GP$1))+1),\"\")","v":"{System Compressor (HP)}"},{"$f":"IFERROR(MID($W125,FIND(CHAR(160),SUBSTITUTE($W125,\"{\",CHAR(160),GQ$1)),FIND(CHAR(160),SUBSTITUTE($W125,\"}\",CHAR(160),GQ$1))-FIND(CHAR(160),SUBSTITUTE($W125,\"{\",CHAR(160),GQ$1))+1),\"\")","v":""},{"$f":"IFERROR(MID($W125,FIND(CHAR(160),SUBSTITUTE($W125,\"{\",CHAR(160),GR$1)),FIND(CHAR(160),SUBSTITUTE($W125,\"}\",CHAR(160),GR$1))-FIND(CHAR(160),SUBSTITUTE($W125,\"{\",CHAR(160),GR$1))+1),\"\")","v":""},{"$f":"IFERROR(MID($W125,FIND(CHAR(160),SUBSTITUTE($W125,\"{\",CHAR(160),GS$1)),FIND(CHAR(160),SUBSTITUTE($W125,\"}\",CHAR(160),GS$1))-FIND(CHAR(160),SUBSTITUTE($W125,\"{\",CHAR(160),GS$1))+1),\"\")","v":""},{"$f":"IFERROR(MID($W125,FIND(CHAR(160),SUBSTITUTE($W125,\"{\",CHAR(160),GT$1)),FIND(CHAR(160),SUBSTITUTE($W125,\"}\",CHAR(160),GT$1))-FIND(CHAR(160),SUBSTITUTE($W125,\"{\",CHAR(160),GT$1))+1),\"\")","v":""},{"$f":"IFERROR(MID($W125,FIND(CHAR(160),SUBSTITUTE($W125,\"{\",CHAR(160),GU$1)),FIND(CHAR(160),SUBSTITUTE($W125,\"}\",CHAR(160),GU$1))-FIND(CHAR(160),SUBSTITUTE($W125,\"{\",CHAR(160),GU$1))+1),\"\")","v":""},{"$f":"IFERROR(MID($W125,FIND(CHAR(160),SUBSTITUTE($W125,\"{\",CHAR(160),GV$1)),FIND(CHAR(160),SUBSTITUTE($W125,\"}\",CHAR(160),GV$1))-FIND(CHAR(160),SUBSTITUTE($W125,\"{\",CHAR(160),GV$1))+1),\"\")","v":""},{"$f":"IFERROR(MID($W125,FIND(CHAR(160),SUBSTITUTE($W125,\"{\",CHAR(160),GW$1)),FIND(CHAR(160),SUBSTITUTE($W125,\"}\",CHAR(160),GW$1))-FIND(CHAR(160),SUBSTITUTE($W125,\"{\",CHAR(160),GW$1))+1),\"\")","v":""},{"$f":"IFERROR(MID($W125,FIND(CHAR(160),SUBSTITUTE($W125,\"{\",CHAR(160),GX$1)),FIND(CHAR(160),SUBSTITUTE($W125,\"}\",CHAR(160),GX$1))-FIND(CHAR(160),SUBSTITUTE($W125,\"{\",CHAR(160),GX$1))+1),\"\")","v":""},{"$f":"IFERROR(MID($W125,FIND(CHAR(160),SUBSTITUTE($W125,\"{\",CHAR(160),GY$1)),FIND(CHAR(160),SUBSTITUTE($W125,\"}\",CHAR(160),GY$1))-FIND(CHAR(160),SUBSTITUTE($W125,\"{\",CHAR(160),GY$1))+1),\"\")","v":""},{"$f":"IFERROR(MID($W125,FIND(CHAR(160),SUBSTITUTE($W125,\"{\",CHAR(160),GZ$1)),FIND(CHAR(160),SUBSTITUTE($W125,\"}\",CHAR(160),GZ$1))-FIND(CHAR(160),SUBSTITUTE($W125,\"{\",CHAR(160),GZ$1))+1),\"\")","v":""},{"$f":"IFERROR(MID($X125,FIND(CHAR(160),SUBSTITUTE($X125,\"{\",CHAR(160),HA$1)),FIND(CHAR(160),SUBSTITUTE($X125,\"}\",CHAR(160),HA$1))-FIND(CHAR(160),SUBSTITUTE($X125,\"{\",CHAR(160),HA$1))+1),\"\")","v":""},{"$f":"IFERROR(MID($X125,FIND(CHAR(160),SUBSTITUTE($X125,\"{\",CHAR(160),HB$1)),FIND(CHAR(160),SUBSTITUTE($X125,\"}\",CHAR(160),HB$1))-FIND(CHAR(160),SUBSTITUTE($X125,\"{\",CHAR(160),HB$1))+1),\"\")","v":""},{"$f":"IFERROR(MID($X125,FIND(CHAR(160),SUBSTITUTE($X125,\"{\",CHAR(160),HC$1)),FIND(CHAR(160),SUBSTITUTE($X125,\"}\",CHAR(160),HC$1))-FIND(CHAR(160),SUBSTITUTE($X125,\"{\",CHAR(160),HC$1))+1),\"\")","v":""},{"$f":"IFERROR(MID($X125,FIND(CHAR(160),SUBSTITUTE($X125,\"{\",CHAR(160),HD$1)),FIND(CHAR(160),SUBSTITUTE($X125,\"}\",CHAR(160),HD$1))-FIND(CHAR(160),SUBSTITUTE($X125,\"{\",CHAR(160),HD$1))+1),\"\")","v":""},{"$f":"IFERROR(MID($X125,FIND(CHAR(160),SUBSTITUTE($X125,\"{\",CHAR(160),HE$1)),FIND(CHAR(160),SUBSTITUTE($X125,\"}\",CHAR(160),HE$1))-FIND(CHAR(160),SUBSTITUTE($X125,\"{\",CHAR(160),HE$1))+1),\"\")","v":""},{"$f":"IFERROR(MID($X125,FIND(CHAR(160),SUBSTITUTE($X125,\"{\",CHAR(160),HF$1)),FIND(CHAR(160),SUBSTITUTE($X125,\"}\",CHAR(160),HF$1))-FIND(CHAR(160),SUBSTITUTE($X125,\"{\",CHAR(160),HF$1))+1),\"\")","v":""},{"$f":"IFERROR(MID($X125,FIND(CHAR(160),SUBSTITUTE($X125,\"{\",CHAR(160),HG$1)),FIND(CHAR(160),SUBSTITUTE($X125,\"}\",CHAR(160),HG$1))-FIND(CHAR(160),SUBSTITUTE($X125,\"{\",CHAR(160),HG$1))+1),\"\")","v":""},{"$f":"IFERROR(MID($X125,FIND(CHAR(160),SUBSTITUTE($X125,\"{\",CHAR(160),HH$1)),FIND(CHAR(160),SUBSTITUTE($X125,\"}\",CHAR(160),HH$1))-FIND(CHAR(160),SUBSTITUTE($X125,\"{\",CHAR(160),HH$1))+1),\"\")","v":""},{"$f":"IFERROR(MID($X125,FIND(CHAR(160),SUBSTITUTE($X125,\"{\",CHAR(160),HI$1)),FIND(CHAR(160),SUBSTITUTE($X125,\"}\",CHAR(160),HI$1))-FIND(CHAR(160),SUBSTITUTE($X125,\"{\",CHAR(160),HI$1))+1),\"\")","v":""},{"$f":"IFERROR(MID($X125,FIND(CHAR(160),SUBSTITUTE($X125,\"{\",CHAR(160),HJ$1)),FIND(CHAR(160),SUBSTITUTE($X125,\"}\",CHAR(160),HJ$1))-FIND(CHAR(160),SUBSTITUTE($X125,\"{\",CHAR(160),HJ$1))+1),\"\")","v":""},{"$f":"IFERROR(MID($Y125,FIND(CHAR(160),SUBSTITUTE($Y125,\"{\",CHAR(160),HK$1)),FIND(CHAR(160),SUBSTITUTE($Y125,\"}\",CHAR(160),HK$1))-FIND(CHAR(160),SUBSTITUTE($Y125,\"{\",CHAR(160),HK$1))+1),\"\")","v":""},{"$f":"IFERROR(MID($Y125,FIND(CHAR(160),SUBSTITUTE($Y125,\"{\",CHAR(160),HL$1)),FIND(CHAR(160),SUBSTITUTE($Y125,\"}\",CHAR(160),HL$1))-FIND(CHAR(160),SUBSTITUTE($Y125,\"{\",CHAR(160),HL$1))+1),\"\")","v":""},{"$f":"IFERROR(MID($Y125,FIND(CHAR(160),SUBSTITUTE($Y125,\"{\",CHAR(160),HM$1)),FIND(CHAR(160),SUBSTITUTE($Y125,\"}\",CHAR(160),HM$1))-FIND(CHAR(160),SUBSTITUTE($Y125,\"{\",CHAR(160),HM$1))+1),\"\")","v":""},{"$f":"IFERROR(MID($Y125,FIND(CHAR(160),SUBSTITUTE($Y125,\"{\",CHAR(160),HN$1)),FIND(CHAR(160),SUBSTITUTE($Y125,\"}\",CHAR(160),HN$1))-FIND(CHAR(160),SUBSTITUTE($Y125,\"{\",CHAR(160),HN$1))+1),\"\")","v":""},{"$f":"IFERROR(MID($Y125,FIND(CHAR(160),SUBSTITUTE($Y125,\"{\",CHAR(160),HO$1)),FIND(CHAR(160),SUBSTITUTE($Y125,\"}\",CHAR(160),HO$1))-FIND(CHAR(160),SUBSTITUTE($Y125,\"{\",CHAR(160),HO$1))+1),\"\")","v":""},{"$f":"IFERROR(MID($Y125,FIND(CHAR(160),SUBSTITUTE($Y125,\"{\",CHAR(160),HP$1)),FIND(CHAR(160),SUBSTITUTE($Y125,\"}\",CHAR(160),HP$1))-FIND(CHAR(160),SUBSTITUTE($Y125,\"{\",CHAR(160),HP$1))+1),\"\")","v":""},{"$f":"IFERROR(MID($Y125,FIND(CHAR(160),SUBSTITUTE($Y125,\"{\",CHAR(160),HQ$1)),FIND(CHAR(160),SUBSTITUTE($Y125,\"}\",CHAR(160),HQ$1))-FIND(CHAR(160),SUBSTITUTE($Y125,\"{\",CHAR(160),HQ$1))+1),\"\")","v":""},{"$f":"IFERROR(MID($Y125,FIND(CHAR(160),SUBSTITUTE($Y125,\"{\",CHAR(160),HR$1)),FIND(CHAR(160),SUBSTITUTE($Y125,\"}\",CHAR(160),HR$1))-FIND(CHAR(160),SUBSTITUTE($Y125,\"{\",CHAR(160),HR$1))+1),\"\")","v":""},{"$f":"IFERROR(MID($Y125,FIND(CHAR(160),SUBSTITUTE($Y125,\"{\",CHAR(160),HS$1)),FIND(CHAR(160),SUBSTITUTE($Y125,\"}\",CHAR(160),HS$1))-FIND(CHAR(160),SUBSTITUTE($Y125,\"{\",CHAR(160),HS$1))+1),\"\")","v":""},{"$f":"IFERROR(MID($Y125,FIND(CHAR(160),SUBSTITUTE($Y125,\"{\",CHAR(160),HT$1)),FIND(CHAR(160),SUBSTITUTE($Y125,\"}\",CHAR(160),HT$1))-FIND(CHAR(160),SUBSTITUTE($Y125,\"{\",CHAR(160),HT$1))+1),\"\")","v":""},{"$f":"IFERROR(MID($Z125,FIND(CHAR(160),SUBSTITUTE($Z125,\"{\",CHAR(160),HU$1)),FIND(CHAR(160),SUBSTITUTE($Z125,\"}\",CHAR(160),HU$1))-FIND(CHAR(160),SUBSTITUTE($Z125,\"{\",CHAR(160),HU$1))+1),\"\")","v":""},{"$f":"IFERROR(MID($Z125,FIND(CHAR(160),SUBSTITUTE($Z125,\"{\",CHAR(160),HV$1)),FIND(CHAR(160),SUBSTITUTE($Z125,\"}\",CHAR(160),HV$1))-FIND(CHAR(160),SUBSTITUTE($Z125,\"{\",CHAR(160),HV$1))+1),\"\")","v":""},{"$f":"IFERROR(MID($Z125,FIND(CHAR(160),SUBSTITUTE($Z125,\"{\",CHAR(160),HW$1)),FIND(CHAR(160),SUBSTITUTE($Z125,\"}\",CHAR(160),HW$1))-FIND(CHAR(160),SUBSTITUTE($Z125,\"{\",CHAR(160),HW$1))+1),\"\")","v":""},{"$f":"IFERROR(MID($Z125,FIND(CHAR(160),SUBSTITUTE($Z125,\"{\",CHAR(160),HX$1)),FIND(CHAR(160),SUBSTITUTE($Z125,\"}\",CHAR(160),HX$1))-FIND(CHAR(160),SUBSTITUTE($Z125,\"{\",CHAR(160),HX$1))+1),\"\")","v":""},{"$f":"IFERROR(MID($Z125,FIND(CHAR(160),SUBSTITUTE($Z125,\"{\",CHAR(160),HY$1)),FIND(CHAR(160),SUBSTITUTE($Z125,\"}\",CHAR(160),HY$1))-FIND(CHAR(160),SUBSTITUTE($Z125,\"{\",CHAR(160),HY$1))+1),\"\")","v":""},{"$f":"IFERROR(MID($Z125,FIND(CHAR(160),SUBSTITUTE($Z125,\"{\",CHAR(160),HZ$1)),FIND(CHAR(160),SUBSTITUTE($Z125,\"}\",CHAR(160),HZ$1))-FIND(CHAR(160),SUBSTITUTE($Z125,\"{\",CHAR(160),HZ$1))+1),\"\")","v":""},{"$f":"IFERROR(MID($Z125,FIND(CHAR(160),SUBSTITUTE($Z125,\"{\",CHAR(160),IA$1)),FIND(CHAR(160),SUBSTITUTE($Z125,\"}\",CHAR(160),IA$1))-FIND(CHAR(160),SUBSTITUTE($Z125,\"{\",CHAR(160),IA$1))+1),\"\")","v":""},{"$f":"IFERROR(MID($Z125,FIND(CHAR(160),SUBSTITUTE($Z125,\"{\",CHAR(160),IB$1)),FIND(CHAR(160),SUBSTITUTE($Z125,\"}\",CHAR(160),IB$1))-FIND(CHAR(160),SUBSTITUTE($Z125,\"{\",CHAR(160),IB$1))+1),\"\")","v":""},{"$f":"IFERROR(MID($Z125,FIND(CHAR(160),SUBSTITUTE($Z125,\"{\",CHAR(160),IC$1)),FIND(CHAR(160),SUBSTITUTE($Z125,\"}\",CHAR(160),IC$1))-FIND(CHAR(160),SUBSTITUTE($Z125,\"{\",CHAR(160),IC$1))+1),\"\")","v":""},{"$f":"IFERROR(MID($Z125,FIND(CHAR(160),SUBSTITUTE($Z125,\"{\",CHAR(160),ID$1)),FIND(CHAR(160),SUBSTITUTE($Z125,\"}\",CHAR(160),ID$1))-FIND(CHAR(160),SUBSTITUTE($Z125,\"{\",CHAR(160),ID$1))+1),\"\")","v":""},{"$f":"IFERROR(MID($AA125,FIND(CHAR(160),SUBSTITUTE($AA125,\"{\",CHAR(160),IE$1)),FIND(CHAR(160),SUBSTITUTE($AA125,\"}\",CHAR(160),IE$1))-FIND(CHAR(160),SUBSTITUTE($AA125,\"{\",CHAR(160),IE$1))+1),\"\")","v":""},{"$f":"IFERROR(MID($AA125,FIND(CHAR(160),SUBSTITUTE($AA125,\"{\",CHAR(160),IF$1)),FIND(CHAR(160),SUBSTITUTE($AA125,\"}\",CHAR(160),IF$1))-FIND(CHAR(160),SUBSTITUTE($AA125,\"{\",CHAR(160),IF$1))+1),\"\")","v":""},{"$f":"IFERROR(MID($AA125,FIND(CHAR(160),SUBSTITUTE($AA125,\"{\",CHAR(160),IG$1)),FIND(CHAR(160),SUBSTITUTE($AA125,\"}\",CHAR(160),IG$1))-FIND(CHAR(160),SUBSTITUTE($AA125,\"{\",CHAR(160),IG$1))+1),\"\")","v":""},{"$f":"IFERROR(MID($AA125,FIND(CHAR(160),SUBSTITUTE($AA125,\"{\",CHAR(160),IH$1)),FIND(CHAR(160),SUBSTITUTE($AA125,\"}\",CHAR(160),IH$1))-FIND(CHAR(160),SUBSTITUTE($AA125,\"{\",CHAR(160),IH$1))+1),\"\")","v":""},{"$f":"IFERROR(MID($AA125,FIND(CHAR(160),SUBSTITUTE($AA125,\"{\",CHAR(160),II$1)),FIND(CHAR(160),SUBSTITUTE($AA125,\"}\",CHAR(160),II$1))-FIND(CHAR(160),SUBSTITUTE($AA125,\"{\",CHAR(160),II$1))+1),\"\")","v":""},{"$f":"IFERROR(MID($AA125,FIND(CHAR(160),SUBSTITUTE($AA125,\"{\",CHAR(160),IJ$1)),FIND(CHAR(160),SUBSTITUTE($AA125,\"}\",CHAR(160),IJ$1))-FIND(CHAR(160),SUBSTITUTE($AA125,\"{\",CHAR(160),IJ$1))+1),\"\")","v":""},{"$f":"IFERROR(MID($AA125,FIND(CHAR(160),SUBSTITUTE($AA125,\"{\",CHAR(160),IK$1)),FIND(CHAR(160),SUBSTITUTE($AA125,\"}\",CHAR(160),IK$1))-FIND(CHAR(160),SUBSTITUTE($AA125,\"{\",CHAR(160),IK$1))+1),\"\")","v":""},{"$f":"IFERROR(MID($AA125,FIND(CHAR(160),SUBSTITUTE($AA125,\"{\",CHAR(160),IL$1)),FIND(CHAR(160),SUBSTITUTE($AA125,\"}\",CHAR(160),IL$1))-FIND(CHAR(160),SUBSTITUTE($AA125,\"{\",CHAR(160),IL$1))+1),\"\")","v":""},{"$f":"IFERROR(MID($AA125,FIND(CHAR(160),SUBSTITUTE($AA125,\"{\",CHAR(160),IM$1)),FIND(CHAR(160),SUBSTITUTE($AA125,\"}\",CHAR(160),IM$1))-FIND(CHAR(160),SUBSTITUTE($AA125,\"{\",CHAR(160),IM$1))+1),\"\")","v":""},{"$f":"IFERROR(MID($AA125,FIND(CHAR(160),SUBSTITUTE($AA125,\"{\",CHAR(160),IN$1)),FIND(CHAR(160),SUBSTITUTE($AA125,\"}\",CHAR(160),IN$1))-FIND(CHAR(160),SUBSTITUTE($AA125,\"{\",CHAR(160),IN$1))+1),\"\")","v":""},{"$f":"IFERROR(MID($AB125,FIND(CHAR(160),SUBSTITUTE($AB125,\"{\",CHAR(160),IO$1)),FIND(CHAR(160),SUBSTITUTE($AB125,\"}\",CHAR(160),IO$1))-FIND(CHAR(160),SUBSTITUTE($AB125,\"{\",CHAR(160),IO$1))+1),\"\")","v":""},{"$f":"IFERROR(MID($AB125,FIND(CHAR(160),SUBSTITUTE($AB125,\"{\",CHAR(160),IP$1)),FIND(CHAR(160),SUBSTITUTE($AB125,\"}\",CHAR(160),IP$1))-FIND(CHAR(160),SUBSTITUTE($AB125,\"{\",CHAR(160),IP$1))+1),\"\")","v":""},{"$f":"IFERROR(MID($AB125,FIND(CHAR(160),SUBSTITUTE($AB125,\"{\",CHAR(160),IQ$1)),FIND(CHAR(160),SUBSTITUTE($AB125,\"}\",CHAR(160),IQ$1))-FIND(CHAR(160),SUBSTITUTE($AB125,\"{\",CHAR(160),IQ$1))+1),\"\")","v":""},{"$f":"IFERROR(MID($AB125,FIND(CHAR(160),SUBSTITUTE($AB125,\"{\",CHAR(160),IR$1)),FIND(CHAR(160),SUBSTITUTE($AB125,\"}\",CHAR(160),IR$1))-FIND(CHAR(160),SUBSTITUTE($AB125,\"{\",CHAR(160),IR$1))+1),\"\")","v":""},{"$f":"IFERROR(MID($AB125,FIND(CHAR(160),SUBSTITUTE($AB125,\"{\",CHAR(160),IS$1)),FIND(CHAR(160),SUBSTITUTE($AB125,\"}\",CHAR(160),IS$1))-FIND(CHAR(160),SUBSTITUTE($AB125,\"{\",CHAR(160),IS$1))+1),\"\")","v":""},{"$f":"IFERROR(MID($AB125,FIND(CHAR(160),SUBSTITUTE($AB125,\"{\",CHAR(160),IT$1)),FIND(CHAR(160),SUBSTITUTE($AB125,\"}\",CHAR(160),IT$1))-FIND(CHAR(160),SUBSTITUTE($AB125,\"{\",CHAR(160),IT$1))+1),\"\")","v":""},{"$f":"IFERROR(MID($AB125,FIND(CHAR(160),SUBSTITUTE($AB125,\"{\",CHAR(160),IU$1)),FIND(CHAR(160),SUBSTITUTE($AB125,\"}\",CHAR(160),IU$1))-FIND(CHAR(160),SUBSTITUTE($AB125,\"{\",CHAR(160),IU$1))+1),\"\")","v":""},{"$f":"IFERROR(MID($AB125,FIND(CHAR(160),SUBSTITUTE($AB125,\"{\",CHAR(160),IV$1)),FIND(CHAR(160),SUBSTITUTE($AB125,\"}\",CHAR(160),IV$1))-FIND(CHAR(160),SUBSTITUTE($AB125,\"{\",CHAR(160),IV$1))+1),\"\")","v":""},{"$f":"IFERROR(MID($AB125,FIND(CHAR(160),SUBSTITUTE($AB125,\"{\",CHAR(160),IW$1)),FIND(CHAR(160),SUBSTITUTE($AB125,\"}\",CHAR(160),IW$1))-FIND(CHAR(160),SUBSTITUTE($AB125,\"{\",CHAR(160),IW$1))+1),\"\")","v":""},{"$f":"IFERROR(MID($AB125,FIND(CHAR(160),SUBSTITUTE($AB125,\"{\",CHAR(160),IX$1)),FIND(CHAR(160),SUBSTITUTE($AB125,\"}\",CHAR(160),IX$1))-FIND(CHAR(160),SUBSTITUTE($AB125,\"{\",CHAR(160),IX$1))+1),\"\")","v":""},null,{"$f":"10-COUNTIF(DU125:ED125,\"\")","v":4}]
["C&I Prescriptive Compressed Air Solutions","Dryer - C16 - Dryer Size 400","D - C16","2021-07-01","2022-06-30","Calculated","{Measure:Quantity}*{Dryer CFM} * 6.54",0,"Per Measure",1300,0,"2017-07-01","2022-06-30","Calculated","{Measure:Quantity} *{Dryer CFM} * 0.00272 * {Weekly Hrs of Operation} * {Weeks Per Year}",1E-4,null,"{Measure:Quantity} *{Dryer CFM} * 0.00272",null,null,"{Measure:Quantity} *{Dryer CFM} * 0.00272 * {Factor:WinterCF}","{Measure:Quantity} *{Dryer CFM} * 0.00272 * {Factor:SummerCF}",null,null,null,null,null,null,"2017-07-01","2022-06-30",15,0.7,0.91100000000000003,0.30399999999999999,0.36099999999999999,0.156,0.17899999999999999,1,1.1220000000000001,1,0.52,1.6E-2,null,{"$f":"DU126","v":"{Measure:Quantity}"},1,{"$f":"DV126","v":"{Dryer CFM}"},400,{"$f":"DW126","v":"{Weekly Hrs of Operation}"},50,{"$f":"DX126","v":"{Weeks Per Year}"},50,{"$f":"DY126","v":""},null,{"$f":"DZ126","v":""},null,{"$f":"EA126","v":""},null,{"$f":"EB126","v":""},null,{"$f":"EC126","v":""},null,{"$f":"ED126","v":""},null,{"$f":"AS126 *AU126 * 0.00272 * AW126 * AY126","v":2720.0000000000005},{"$f":"0.0001","v":1E-4},0,{"$f":"AS126 *AU126 * 0.00272","v":1.0880000000000001},0,0,{"$f":"AS126 *AU126 * 0.00272 * AF126","v":0.76160000000000005},{"$f":"AS126 *AU126 * 0.00272 * AG126","v":0.99116800000000016},0,0,0,0,0,0,null,"Com","Default DR",{"$f":"Benefits(BL126,BR126,BS126,BT126,BU126,BV126,BW126,BX126,BY126,BZ126,AE126,AH126,AI126,AJ126,AK126,AL126,AM126,AN126,AO126,AP126,CA126,CB126)","v":4077.1394899537199},4734.0968895782717,0,0,0,0,0,0,0,{"$f":"SUMPRODUCT(CC126:CK126,--(CC126:CK126>0))","v":8811.2363795319907},{"$f":"-SUMPRODUCT(CC126:CK126,--(CC126:CK126<0))","v":0},null,{"$f":"AS126*AU126 * 6.54","v":2616},null,null,{"$f":"CM126+CO126","v":2616},{"$f":"IF(NetOrGross=\"Net\",(1-AO126+AP126),1)","v":1},{"$f":"(SUMPRODUCT(CC126:CJ126,--(CC126:CJ126>0))+CN126)*CS126/((-SUMPRODUCT(CC126:CJ126,--(CC126:CJ126<0))+MAX(CO126,CV126)+CP126+CQ126)*CS126+IF(FRIncentives=\"Yes\",CV126*(1-CS126),0))","v":3.3682096252033604},11,{"$f":"1300","v":1300},null,"Electric","y",null,{"$f":"IF(F126=\"Manual Entry\",\"Manual\",IF(G126=\"\",0,\"X=\"&SUBSTITUTE(SUBSTITUTE(SUBSTITUTE(SUBSTITUTE(SUBSTITUTE(SUBSTITUTE(SUBSTITUTE(SUBSTITUTE(SUBSTITUTE(SUBSTITUTE(SUBSTITUTE(SUBSTITUTE(G126,$ED126,$ED$2&ROW($ED126)),$EC126,$EC$2&ROW($EC126)),$EB126,$EB$2&ROW($EB126)),$EA126,$EA$2&ROW($EA126)),$DZ126,$DZ$2&ROW($DZ126)),$DY126,$DY$2&ROW($DY126)),$DX126,$DX$2&ROW($DX126)),$DW126,$DW$2&ROW($DW126)),$DV126,$DV$2&ROW($DV126)),$DU126,$DU$2&ROW($DU126)),$DT126,$DT$2&ROW($DT126)),$DS126,$DS$2&ROW($DS126))))","v":"X=AS126*AU126 * 6.54"},{"$f":"IF(I126=\"Manual Entry\",\"Manual\",IF(J126=\"\",0,\"X=\"&SUBSTITUTE(SUBSTITUTE(SUBSTITUTE(SUBSTITUTE(SUBSTITUTE(SUBSTITUTE(SUBSTITUTE(SUBSTITUTE(SUBSTITUTE(SUBSTITUTE(SUBSTITUTE(SUBSTITUTE(J126,$ED126,$ED$2&ROW($ED126)),$EC126,$EC$2&ROW($EC126)),$EB126,$EB$2&ROW($EB126)),$EA126,$EA$2&ROW($EA126)),$DZ126,$DZ$2&ROW($DZ126)),$DY126,$DY$2&ROW($DY126)),$DX126,$DX$2&ROW($DX126)),$DW126,$DW$2&ROW($DW126)),$DV126,$DV$2&ROW($DV126)),$DU126,$DU$2&ROW($DU126)),$DT126,$DT$2&ROW($DT126)),$DS126,$DS$2&ROW($DS126))))","v":"X=1300"},{"$f":"IF(O126=\"\",0,\"X=\"&SUBSTITUTE(SUBSTITUTE(SUBSTITUTE(SUBSTITUTE(SUBSTITUTE(SUBSTITUTE(SUBSTITUTE(SUBSTITUTE(SUBSTITUTE(SUBSTITUTE(SUBSTITUTE(SUBSTITUTE(O126,$ED126,$ED$2&ROW($ED126)),$EC126,$EC$2&ROW($EC126)),$EB126,$EB$2&ROW($EB126)),$EA126,$EA$2&ROW($EA126)),$DZ126,$DZ$2&ROW($DZ126)),$DY126,$DY$2&ROW($DY126)),$DX126,$DX$2&ROW($DX126)),$DW126,$DW$2&ROW($DW126)),$DV126,$DV$2&ROW($DV126)),$DU126,$DU$2&ROW($DU126)),$DT126,$DT$2&ROW($DT126)),$DS126,$DS$2&ROW($DS126)))","v":"X=AS126 *AU126 * 0.00272 * AW126 * AY126"},{"$f":"IF(P126=\"\",0,\"X=\"&SUBSTITUTE(SUBSTITUTE(SUBSTITUTE(SUBSTITUTE(SUBSTITUTE(SUBSTITUTE(SUBSTITUTE(SUBSTITUTE(SUBSTITUTE(SUBSTITUTE(SUBSTITUTE(SUBSTITUTE(P126,$ED126,$ED$2&ROW($ED126)),$EC126,$EC$2&ROW($EC126)),$EB126,$EB$2&ROW($EB126)),$EA126,$EA$2&ROW($EA126)),$DZ126,$DZ$2&ROW($DZ126)),$DY126,$DY$2&ROW($DY126)),$DX126,$DX$2&ROW($DX126)),$DW126,$DW$2&ROW($DW126)),$DV126,$DV$2&ROW($DV126)),$DU126,$DU$2&ROW($DU126)),$DT126,$DT$2&ROW($DT126)),$DS126,$DS$2&ROW($DS126)))","v":"X=0.0001"},{"$f":"IF(Q126=\"\",0,\"X=\"&SUBSTITUTE(SUBSTITUTE(SUBSTITUTE(SUBSTITUTE(SUBSTITUTE(SUBSTITUTE(SUBSTITUTE(SUBSTITUTE(SUBSTITUTE(SUBSTITUTE(SUBSTITUTE(SUBSTITUTE(Q126,$ED126,$ED$2&ROW($ED126)),$EC126,$EC$2&ROW($EC126)),$EB126,$EB$2&ROW($EB126)),$EA126,$EA$2&ROW($EA126)),$DZ126,$DZ$2&ROW($DZ126)),$DY126,$DY$2&ROW($DY126)),$DX126,$DX$2&ROW($DX126)),$DW126,$DW$2&ROW($DW126)),$DV126,$DV$2&ROW($DV126)),$DU126,$DU$2&ROW($DU126)),$DT126,$DT$2&ROW($DT126)),$DS126,$DS$2&ROW($DS126)))","v":0},{"$f":"IF(R126=\"\",0,\"X=\"&SUBSTITUTE(SUBSTITUTE(SUBSTITUTE(SUBSTITUTE(SUBSTITUTE(SUBSTITUTE(SUBSTITUTE(SUBSTITUTE(SUBSTITUTE(SUBSTITUTE(SUBSTITUTE(SUBSTITUTE(R126,$ED126,$ED$2&ROW($ED126)),$EC126,$EC$2&ROW($EC126)),$EB126,$EB$2&ROW($EB126)),$EA126,$EA$2&ROW($EA126)),$DZ126,$DZ$2&ROW($DZ126)),$DY126,$DY$2&ROW($DY126)),$DX126,$DX$2&ROW($DX126)),$DW126,$DW$2&ROW($DW126)),$DV126,$DV$2&ROW($DV126)),$DU126,$DU$2&ROW($DU126)),$DT126,$DT$2&ROW($DT126)),$DS126,$DS$2&ROW($DS126)))","v":"X=AS126 *AU126 * 0.00272"},{"$f":"IF(S126=\"\",0,\"X=\"&SUBSTITUTE(SUBSTITUTE(SUBSTITUTE(SUBSTITUTE(SUBSTITUTE(SUBSTITUTE(SUBSTITUTE(SUBSTITUTE(SUBSTITUTE(SUBSTITUTE(SUBSTITUTE(SUBSTITUTE(S126,$ED126,$ED$2&ROW($ED126)),$EC126,$EC$2&ROW($EC126)),$EB126,$EB$2&ROW($EB126)),$EA126,$EA$2&ROW($EA126)),$DZ126,$DZ$2&ROW($DZ126)),$DY126,$DY$2&ROW($DY126)),$DX126,$DX$2&ROW($DX126)),$DW126,$DW$2&ROW($DW126)),$DV126,$DV$2&ROW($DV126)),$DU126,$DU$2&ROW($DU126)),$DT126,$DT$2&ROW($DT126)),$DS126,$DS$2&ROW($DS126)))","v":0},{"$f":"IF(T126=\"\",0,\"X=\"&SUBSTITUTE(SUBSTITUTE(SUBSTITUTE(SUBSTITUTE(SUBSTITUTE(SUBSTITUTE(SUBSTITUTE(SUBSTITUTE(SUBSTITUTE(SUBSTITUTE(SUBSTITUTE(SUBSTITUTE(T126,$ED126,$ED$2&ROW($ED126)),$EC126,$EC$2&ROW($EC126)),$EB126,$EB$2&ROW($EB126)),$EA126,$EA$2&ROW($EA126)),$DZ126,$DZ$2&ROW($DZ126)),$DY126,$DY$2&ROW($DY126)),$DX126,$DX$2&ROW($DX126)),$DW126,$DW$2&ROW($DW126)),$DV126,$DV$2&ROW($DV126)),$DU126,$DU$2&ROW($DU126)),$DT126,$DT$2&ROW($DT126)),$DS126,$DS$2&ROW($DS126)))","v":0},{"$f":"IF(U126=\"\",0,\"X=\"&SUBSTITUTE(SUBSTITUTE(SUBSTITUTE(SUBSTITUTE(SUBSTITUTE(SUBSTITUTE(SUBSTITUTE(SUBSTITUTE(SUBSTITUTE(SUBSTITUTE(SUBSTITUTE(SUBSTITUTE(U126,$ED126,$ED$2&ROW($ED126)),$EC126,$EC$2&ROW($EC126)),$EB126,$EB$2&ROW($EB126)),$EA126,$EA$2&ROW($EA126)),$DZ126,$DZ$2&ROW($DZ126)),$DY126,$DY$2&ROW($DY126)),$DX126,$DX$2&ROW($DX126)),$DW126,$DW$2&ROW($DW126)),$DV126,$DV$2&ROW($DV126)),$DU126,$DU$2&ROW($DU126)),$DT126,$DT$2&ROW($DT126)),$DS126,$DS$2&ROW($DS126)))","v":"X=AS126 *AU126 * 0.00272 * AF126"},{"$f":"IF(V126=\"\",0,\"X=\"&SUBSTITUTE(SUBSTITUTE(SUBSTITUTE(SUBSTITUTE(SUBSTITUTE(SUBSTITUTE(SUBSTITUTE(SUBSTITUTE(SUBSTITUTE(SUBSTITUTE(SUBSTITUTE(SUBSTITUTE(V126,$ED126,$ED$2&ROW($ED126)),$EC126,$EC$2&ROW($EC126)),$EB126,$EB$2&ROW($EB126)),$EA126,$EA$2&ROW($EA126)),$DZ126,$DZ$2&ROW($DZ126)),$DY126,$DY$2&ROW($DY126)),$DX126,$DX$2&ROW($DX126)),$DW126,$DW$2&ROW($DW126)),$DV126,$DV$2&ROW($DV126)),$DU126,$DU$2&ROW($DU126)),$DT126,$DT$2&ROW($DT126)),$DS126,$DS$2&ROW($DS126)))","v":"X=AS126 *AU126 * 0.00272 * AG126"},{"$f":"IF(W126=\"\",0,\"X=\"&SUBSTITUTE(SUBSTITUTE(SUBSTITUTE(SUBSTITUTE(SUBSTITUTE(SUBSTITUTE(SUBSTITUTE(SUBSTITUTE(SUBSTITUTE(SUBSTITUTE(SUBSTITUTE(SUBSTITUTE(W126,$ED126,$ED$2&ROW($ED126)),$EC126,$EC$2&ROW($EC126)),$EB126,$EB$2&ROW($EB126)),$EA126,$EA$2&ROW($EA126)),$DZ126,$DZ$2&ROW($DZ126)),$DY126,$DY$2&ROW($DY126)),$DX126,$DX$2&ROW($DX126)),$DW126,$DW$2&ROW($DW126)),$DV126,$DV$2&ROW($DV126)),$DU126,$DU$2&ROW($DU126)),$DT126,$DT$2&ROW($DT126)),$DS126,$DS$2&ROW($DS126)))","v":0},{"$f":"IF(X126=\"\",0,\"X=\"&SUBSTITUTE(SUBSTITUTE(SUBSTITUTE(SUBSTITUTE(SUBSTITUTE(SUBSTITUTE(SUBSTITUTE(SUBSTITUTE(SUBSTITUTE(SUBSTITUTE(SUBSTITUTE(SUBSTITUTE(X126,$ED126,$ED$2&ROW($ED126)),$EC126,$EC$2&ROW($EC126)),$EB126,$EB$2&ROW($EB126)),$EA126,$EA$2&ROW($EA126)),$DZ126,$DZ$2&ROW($DZ126)),$DY126,$DY$2&ROW($DY126)),$DX126,$DX$2&ROW($DX126)),$DW126,$DW$2&ROW($DW126)),$DV126,$DV$2&ROW($DV126)),$DU126,$DU$2&ROW($DU126)),$DT126,$DT$2&ROW($DT126)),$DS126,$DS$2&ROW($DS126)))","v":0},{"$f":"IF(Y126=\"\",0,\"X=\"&SUBSTITUTE(SUBSTITUTE(SUBSTITUTE(SUBSTITUTE(SUBSTITUTE(SUBSTITUTE(SUBSTITUTE(SUBSTITUTE(SUBSTITUTE(SUBSTITUTE(SUBSTITUTE(SUBSTITUTE(Y126,$ED126,$ED$2&ROW($ED126)),$EC126,$EC$2&ROW($EC126)),$EB126,$EB$2&ROW($EB126)),$EA126,$EA$2&ROW($EA126)),$DZ126,$DZ$2&ROW($DZ126)),$DY126,$DY$2&ROW($DY126)),$DX126,$DX$2&ROW($DX126)),$DW126,$DW$2&ROW($DW126)),$DV126,$DV$2&ROW($DV126)),$DU126,$DU$2&ROW($DU126)),$DT126,$DT$2&ROW($DT126)),$DS126,$DS$2&ROW($DS126)))","v":0},{"$f":"IF(Z126=\"\",0,\"X=\"&SUBSTITUTE(SUBSTITUTE(SUBSTITUTE(SUBSTITUTE(SUBSTITUTE(SUBSTITUTE(SUBSTITUTE(SUBSTITUTE(SUBSTITUTE(SUBSTITUTE(SUBSTITUTE(SUBSTITUTE(Z126,$ED126,$ED$2&ROW($ED126)),$EC126,$EC$2&ROW($EC126)),$EB126,$EB$2&ROW($EB126)),$EA126,$EA$2&ROW($EA126)),$DZ126,$DZ$2&ROW($DZ126)),$DY126,$DY$2&ROW($DY126)),$DX126,$DX$2&ROW($DX126)),$DW126,$DW$2&ROW($DW126)),$DV126,$DV$2&ROW($DV126)),$DU126,$DU$2&ROW($DU126)),$DT126,$DT$2&ROW($DT126)),$DS126,$DS$2&ROW($DS126)))","v":0},{"$f":"IF(AA126=\"\",0,\"X=\"&SUBSTITUTE(SUBSTITUTE(SUBSTITUTE(SUBSTITUTE(SUBSTITUTE(SUBSTITUTE(SUBSTITUTE(SUBSTITUTE(SUBSTITUTE(SUBSTITUTE(SUBSTITUTE(SUBSTITUTE(AA126,$ED126,$ED$2&ROW($ED126)),$EC126,$EC$2&ROW($EC126)),$EB126,$EB$2&ROW($EB126)),$EA126,$EA$2&ROW($EA126)),$DZ126,$DZ$2&ROW($DZ126)),$DY126,$DY$2&ROW($DY126)),$DX126,$DX$2&ROW($DX126)),$DW126,$DW$2&ROW($DW126)),$DV126,$DV$2&ROW($DV126)),$DU126,$DU$2&ROW($DU126)),$DT126,$DT$2&ROW($DT126)),$DS126,$DS$2&ROW($DS126)))","v":0},{"$f":"IF(AB126=\"\",0,\"X=\"&SUBSTITUTE(SUBSTITUTE(SUBSTITUTE(SUBSTITUTE(SUBSTITUTE(SUBSTITUTE(SUBSTITUTE(SUBSTITUTE(SUBSTITUTE(SUBSTITUTE(SUBSTITUTE(SUBSTITUTE(AB126,$ED126,$ED$2&ROW($ED126)),$EC126,$EC$2&ROW($EC126)),$EB126,$EB$2&ROW($EB126)),$EA126,$EA$2&ROW($EA126)),$DZ126,$DZ$2&ROW($DZ126)),$DY126,$DY$2&ROW($DY126)),$DX126,$DX$2&ROW($DX126)),$DW126,$DW$2&ROW($DW126)),$DV126,$DV$2&ROW($DV126)),$DU126,$DU$2&ROW($DU126)),$DT126,$DT$2&ROW($DT126)),$DS126,$DS$2&ROW($DS126)))","v":0},null,null,"{Factor:WinterCF}","{Factor:SummerCF}",{"$f":"IFERROR(INDEX($EG126:$IV126,MATCH(0,COUNTIF($DR126:DT126,$EG126:$IV126),0)),\"\")","v":"{Measure:Quantity}"},{"$f":"IFERROR(INDEX($EG126:$IV126,MATCH(0,COUNTIF($DR126:DU126,$EG126:$IV126),0)),\"\")","v":"{Dryer CFM}"},{"$f":"IFERROR(INDEX($EG126:$IV126,MATCH(0,COUNTIF($DR126:DV126,$EG126:$IV126),0)),\"\")","v":"{Weekly Hrs of Operation}"},{"$f":"IFERROR(INDEX($EG126:$IV126,MATCH(0,COUNTIF($DR126:DW126,$EG126:$IV126),0)),\"\")","v":"{Weeks Per Year}"},{"$f":"IFERROR(INDEX($EG126:$IV126,MATCH(0,COUNTIF($DR126:DX126,$EG126:$IV126),0)),\"\")","v":""},{"$f":"IFERROR(INDEX($EG126:$IV126,MATCH(0,COUNTIF($DR126:DY126,$EG126:$IV126),0)),\"\")","v":""},{"$f":"IFERROR(INDEX($EG126:$IV126,MATCH(0,COUNTIF($DR126:DZ126,$EG126:$IV126),0)),\"\")","v":""},{"$f":"IFERROR(INDEX($EG126:$IV126,MATCH(0,COUNTIF($DR126:EA126,$EG126:$IV126),0)),\"\")","v":""},{"$f":"IFERROR(INDEX($EG126:$IV126,MATCH(0,COUNTIF($DR126:EB126,$EG126:$IV126),0)),\"\")","v":""},{"$f":"IFERROR(INDEX($EG126:$IV126,MATCH(0,COUNTIF($DR126:EC126,$EG126:$IV126),0)),\"\")","v":""},null,null,{"$f":"IFERROR(MID($G126,FIND(CHAR(160),SUBSTITUTE($G126,\"{\",CHAR(160),EG$1)),FIND(CHAR(160),SUBSTITUTE($G126,\"}\",CHAR(160),EG$1))-FIND(CHAR(160),SUBSTITUTE($G126,\"{\",CHAR(160),EG$1))+1),\"\")","v":"{Measure:Quantity}"},{"$f":"IFERROR(MID($G126,FIND(CHAR(160),SUBSTITUTE($G126,\"{\",CHAR(160),EH$1)),FIND(CHAR(160),SUBSTITUTE($G126,\"}\",CHAR(160),EH$1))-FIND(CHAR(160),SUBSTITUTE($G126,\"{\",CHAR(160),EH$1))+1),\"\")","v":"{Dryer CFM}"},{"$f":"IFERROR(MID($G126,FIND(CHAR(160),SUBSTITUTE($G126,\"{\",CHAR(160),EI$1)),FIND(CHAR(160),SUBSTITUTE($G126,\"}\",CHAR(160),EI$1))-FIND(CHAR(160),SUBSTITUTE($G126,\"{\",CHAR(160),EI$1))+1),\"\")","v":""},{"$f":"IFERROR(MID($G126,FIND(CHAR(160),SUBSTITUTE($G126,\"{\",CHAR(160),EJ$1)),FIND(CHAR(160),SUBSTITUTE($G126,\"}\",CHAR(160),EJ$1))-FIND(CHAR(160),SUBSTITUTE($G126,\"{\",CHAR(160),EJ$1))+1),\"\")","v":""},{"$f":"IFERROR(MID($G126,FIND(CHAR(160),SUBSTITUTE($G126,\"{\",CHAR(160),EK$1)),FIND(CHAR(160),SUBSTITUTE($G126,\"}\",CHAR(160),EK$1))-FIND(CHAR(160),SUBSTITUTE($G126,\"{\",CHAR(160),EK$1))+1),\"\")","v":""},{"$f":"IFERROR(MID($G126,FIND(CHAR(160),SUBSTITUTE($G126,\"{\",CHAR(160),EL$1)),FIND(CHAR(160),SUBSTITUTE($G126,\"}\",CHAR(160),EL$1))-FIND(CHAR(160),SUBSTITUTE($G126,\"{\",CHAR(160),EL$1))+1),\"\")","v":""},{"$f":"IFERROR(MID($G126,FIND(CHAR(160),SUBSTITUTE($G126,\"{\",CHAR(160),EM$1)),FIND(CHAR(160),SUBSTITUTE($G126,\"}\",CHAR(160),EM$1))-FIND(CHAR(160),SUBSTITUTE($G126,\"{\",CHAR(160),EM$1))+1),\"\")","v":""},{"$f":"IFERROR(MID($G126,FIND(CHAR(160),SUBSTITUTE($G126,\"{\",CHAR(160),EN$1)),FIND(CHAR(160),SUBSTITUTE($G126,\"}\",CHAR(160),EN$1))-FIND(CHAR(160),SUBSTITUTE($G126,\"{\",CHAR(160),EN$1))+1),\"\")","v":""},{"$f":"IFERROR(MID($G126,FIND(CHAR(160),SUBSTITUTE($G126,\"{\",CHAR(160),EO$1)),FIND(CHAR(160),SUBSTITUTE($G126,\"}\",CHAR(160),EO$1))-FIND(CHAR(160),SUBSTITUTE($G126,\"{\",CHAR(160),EO$1))+1),\"\")","v":""},{"$f":"IFERROR(MID($G126,FIND(CHAR(160),SUBSTITUTE($G126,\"{\",CHAR(160),EP$1)),FIND(CHAR(160),SUBSTITUTE($G126,\"}\",CHAR(160),EP$1))-FIND(CHAR(160),SUBSTITUTE($G126,\"{\",CHAR(160),EP$1))+1),\"\")","v":""},{"$f":"IFERROR(MID($J126,FIND(CHAR(160),SUBSTITUTE($J126,\"{\",CHAR(160),EQ$1)),FIND(CHAR(160),SUBSTITUTE($J126,\"}\",CHAR(160),EQ$1))-FIND(CHAR(160),SUBSTITUTE($J126,\"{\",CHAR(160),EQ$1))+1),\"\")","v":""},{"$f":"IFERROR(MID($J126,FIND(CHAR(160),SUBSTITUTE($J126,\"{\",CHAR(160),ER$1)),FIND(CHAR(160),SUBSTITUTE($J126,\"}\",CHAR(160),ER$1))-FIND(CHAR(160),SUBSTITUTE($J126,\"{\",CHAR(160),ER$1))+1),\"\")","v":""},{"$f":"IFERROR(MID($J126,FIND(CHAR(160),SUBSTITUTE($J126,\"{\",CHAR(160),ES$1)),FIND(CHAR(160),SUBSTITUTE($J126,\"}\",CHAR(160),ES$1))-FIND(CHAR(160),SUBSTITUTE($J126,\"{\",CHAR(160),ES$1))+1),\"\")","v":""},{"$f":"IFERROR(MID($J126,FIND(CHAR(160),SUBSTITUTE($J126,\"{\",CHAR(160),ET$1)),FIND(CHAR(160),SUBSTITUTE($J126,\"}\",CHAR(160),ET$1))-FIND(CHAR(160),SUBSTITUTE($J126,\"{\",CHAR(160),ET$1))+1),\"\")","v":""},{"$f":"IFERROR(MID($J126,FIND(CHAR(160),SUBSTITUTE($J126,\"{\",CHAR(160),EU$1)),FIND(CHAR(160),SUBSTITUTE($J126,\"}\",CHAR(160),EU$1))-FIND(CHAR(160),SUBSTITUTE($J126,\"{\",CHAR(160),EU$1))+1),\"\")","v":""},{"$f":"IFERROR(MID($J126,FIND(CHAR(160),SUBSTITUTE($J126,\"{\",CHAR(160),EV$1)),FIND(CHAR(160),SUBSTITUTE($J126,\"}\",CHAR(160),EV$1))-FIND(CHAR(160),SUBSTITUTE($J126,\"{\",CHAR(160),EV$1))+1),\"\")","v":""},{"$f":"IFERROR(MID($J126,FIND(CHAR(160),SUBSTITUTE($J126,\"{\",CHAR(160),EW$1)),FIND(CHAR(160),SUBSTITUTE($J126,\"}\",CHAR(160),EW$1))-FIND(CHAR(160),SUBSTITUTE($J126,\"{\",CHAR(160),EW$1))+1),\"\")","v":""},{"$f":"IFERROR(MID($J126,FIND(CHAR(160),SUBSTITUTE($J126,\"{\",CHAR(160),EX$1)),FIND(CHAR(160),SUBSTITUTE($J126,\"}\",CHAR(160),EX$1))-FIND(CHAR(160),SUBSTITUTE($J126,\"{\",CHAR(160),EX$1))+1),\"\")","v":""},{"$f":"IFERROR(MID($J126,FIND(CHAR(160),SUBSTITUTE($J126,\"{\",CHAR(160),EY$1)),FIND(CHAR(160),SUBSTITUTE($J126,\"}\",CHAR(160),EY$1))-FIND(CHAR(160),SUBSTITUTE($J126,\"{\",CHAR(160),EY$1))+1),\"\")","v":""},{"$f":"IFERROR(MID($J126,FIND(CHAR(160),SUBSTITUTE($J126,\"{\",CHAR(160),EZ$1)),FIND(CHAR(160),SUBSTITUTE($J126,\"}\",CHAR(160),EZ$1))-FIND(CHAR(160),SUBSTITUTE($J126,\"{\",CHAR(160),EZ$1))+1),\"\")","v":""},{"$f":"IFERROR(MID($J126,FIND(CHAR(160),SUBSTITUTE($J126,\"{\",CHAR(160),FA$1)),FIND(CHAR(160),SUBSTITUTE($J126,\"}\",CHAR(160),FA$1))-FIND(CHAR(160),SUBSTITUTE($J126,\"{\",CHAR(160),FA$1))+1),\"\")","v":""},{"$f":"IFERROR(MID($J126,FIND(CHAR(160),SUBSTITUTE($J126,\"{\",CHAR(160),FB$1)),FIND(CHAR(160),SUBSTITUTE($J126,\"}\",CHAR(160),FB$1))-FIND(CHAR(160),SUBSTITUTE($J126,\"{\",CHAR(160),FB$1))+1),\"\")","v":""},{"$f":"IFERROR(MID($O126,FIND(CHAR(160),SUBSTITUTE($O126,\"{\",CHAR(160),FC$1)),FIND(CHAR(160),SUBSTITUTE($O126,\"}\",CHAR(160),FC$1))-FIND(CHAR(160),SUBSTITUTE($O126,\"{\",CHAR(160),FC$1))+1),\"\")","v":"{Weekly Hrs of Operation}"},{"$f":"IFERROR(MID($O126,FIND(CHAR(160),SUBSTITUTE($O126,\"{\",CHAR(160),FD$1)),FIND(CHAR(160),SUBSTITUTE($O126,\"}\",CHAR(160),FD$1))-FIND(CHAR(160),SUBSTITUTE($O126,\"{\",CHAR(160),FD$1))+1),\"\")","v":"{Weeks Per Year}"},{"$f":"IFERROR(MID($O126,FIND(CHAR(160),SUBSTITUTE($O126,\"{\",CHAR(160),FE$1)),FIND(CHAR(160),SUBSTITUTE($O126,\"}\",CHAR(160),FE$1))-FIND(CHAR(160),SUBSTITUTE($O126,\"{\",CHAR(160),FE$1))+1),\"\")","v":""},{"$f":"IFERROR(MID($O126,FIND(CHAR(160),SUBSTITUTE($O126,\"{\",CHAR(160),FF$1)),FIND(CHAR(160),SUBSTITUTE($O126,\"}\",CHAR(160),FF$1))-FIND(CHAR(160),SUBSTITUTE($O126,\"{\",CHAR(160),FF$1))+1),\"\")","v":""},{"$f":"IFERROR(MID($O126,FIND(CHAR(160),SUBSTITUTE($O126,\"{\",CHAR(160),FG$1)),FIND(CHAR(160),SUBSTITUTE($O126,\"}\",CHAR(160),FG$1))-FIND(CHAR(160),SUBSTITUTE($O126,\"{\",CHAR(160),FG$1))+1),\"\")","v":""},{"$f":"IFERROR(MID($O126,FIND(CHAR(160),SUBSTITUTE($O126,\"{\",CHAR(160),FH$1)),FIND(CHAR(160),SUBSTITUTE($O126,\"}\",CHAR(160),FH$1))-FIND(CHAR(160),SUBSTITUTE($O126,\"{\",CHAR(160),FH$1))+1),\"\")","v":""},{"$f":"IFERROR(MID($O126,FIND(CHAR(160),SUBSTITUTE($O126,\"{\",CHAR(160),FI$1)),FIND(CHAR(160),SUBSTITUTE($O126,\"}\",CHAR(160),FI$1))-FIND(CHAR(160),SUBSTITUTE($O126,\"{\",CHAR(160),FI$1))+1),\"\")","v":""},{"$f":"IFERROR(MID($O126,FIND(CHAR(160),SUBSTITUTE($O126,\"{\",CHAR(160),FJ$1)),FIND(CHAR(160),SUBSTITUTE($O126,\"}\",CHAR(160),FJ$1))-FIND(CHAR(160),SUBSTITUTE($O126,\"{\",CHAR(160),FJ$1))+1),\"\")","v":""},{"$f":"IFERROR(MID($O126,FIND(CHAR(160),SUBSTITUTE($O126,\"{\",CHAR(160),FK$1)),FIND(CHAR(160),SUBSTITUTE($O126,\"}\",CHAR(160),FK$1))-FIND(CHAR(160),SUBSTITUTE($O126,\"{\",CHAR(160),FK$1))+1),\"\")","v":"{Measure:Quantity}"},{"$f":"IFERROR(MID($O126,FIND(CHAR(160),SUBSTITUTE($O126,\"{\",CHAR(160),FL$1)),FIND(CHAR(160),SUBSTITUTE($O126,\"}\",CHAR(160),FL$1))-FIND(CHAR(160),SUBSTITUTE($O126,\"{\",CHAR(160),FL$1))+1),\"\")","v":"{Dryer CFM}"},{"$f":"IFERROR(MID($R126,FIND(CHAR(160),SUBSTITUTE($R126,\"{\",CHAR(160),FM$1)),FIND(CHAR(160),SUBSTITUTE($R126,\"}\",CHAR(160),FM$1))-FIND(CHAR(160),SUBSTITUTE($R126,\"{\",CHAR(160),FM$1))+1),\"\")","v":""},{"$f":"IFERROR(MID($R126,FIND(CHAR(160),SUBSTITUTE($R126,\"{\",CHAR(160),FN$1)),FIND(CHAR(160),SUBSTITUTE($R126,\"}\",CHAR(160),FN$1))-FIND(CHAR(160),SUBSTITUTE($R126,\"{\",CHAR(160),FN$1))+1),\"\")","v":""},{"$f":"IFERROR(MID($R126,FIND(CHAR(160),SUBSTITUTE($R126,\"{\",CHAR(160),FO$1)),FIND(CHAR(160),SUBSTITUTE($R126,\"}\",CHAR(160),FO$1))-FIND(CHAR(160),SUBSTITUTE($R126,\"{\",CHAR(160),FO$1))+1),\"\")","v":""},{"$f":"IFERROR(MID($R126,FIND(CHAR(160),SUBSTITUTE($R126,\"{\",CHAR(160),FP$1)),FIND(CHAR(160),SUBSTITUTE($R126,\"}\",CHAR(160),FP$1))-FIND(CHAR(160),SUBSTITUTE($R126,\"{\",CHAR(160),FP$1))+1),\"\")","v":""},{"$f":"IFERROR(MID($R126,FIND(CHAR(160),SUBSTITUTE($R126,\"{\",CHAR(160),FQ$1)),FIND(CHAR(160),SUBSTITUTE($R126,\"}\",CHAR(160),FQ$1))-FIND(CHAR(160),SUBSTITUTE($R126,\"{\",CHAR(160),FQ$1))+1),\"\")","v":""},{"$f":"IFERROR(MID($R126,FIND(CHAR(160),SUBSTITUTE($R126,\"{\",CHAR(160),FR$1)),FIND(CHAR(160),SUBSTITUTE($R126,\"}\",CHAR(160),FR$1))-FIND(CHAR(160),SUBSTITUTE($R126,\"{\",CHAR(160),FR$1))+1),\"\")","v":""},{"$f":"IFERROR(MID($R126,FIND(CHAR(160),SUBSTITUTE($R126,\"{\",CHAR(160),FS$1)),FIND(CHAR(160),SUBSTITUTE($R126,\"}\",CHAR(160),FS$1))-FIND(CHAR(160),SUBSTITUTE($R126,\"{\",CHAR(160),FS$1))+1),\"\")","v":""},{"$f":"IFERROR(MID($R126,FIND(CHAR(160),SUBSTITUTE($R126,\"{\",CHAR(160),FT$1)),FIND(CHAR(160),SUBSTITUTE($R126,\"}\",CHAR(160),FT$1))-FIND(CHAR(160),SUBSTITUTE($R126,\"{\",CHAR(160),FT$1))+1),\"\")","v":""},{"$f":"IFERROR(MID($R126,FIND(CHAR(160),SUBSTITUTE($R126,\"{\",CHAR(160),FU$1)),FIND(CHAR(160),SUBSTITUTE($R126,\"}\",CHAR(160),FU$1))-FIND(CHAR(160),SUBSTITUTE($R126,\"{\",CHAR(160),FU$1))+1),\"\")","v":"{Measure:Quantity}"},{"$f":"IFERROR(MID($R126,FIND(CHAR(160),SUBSTITUTE($R126,\"{\",CHAR(160),FV$1)),FIND(CHAR(160),SUBSTITUTE($R126,\"}\",CHAR(160),FV$1))-FIND(CHAR(160),SUBSTITUTE($R126,\"{\",CHAR(160),FV$1))+1),\"\")","v":"{Dryer CFM}"},{"$f":"IFERROR(MID($U126,FIND(CHAR(160),SUBSTITUTE($U126,\"{\",CHAR(160),FW$1)),FIND(CHAR(160),SUBSTITUTE($U126,\"}\",CHAR(160),FW$1))-FIND(CHAR(160),SUBSTITUTE($U126,\"{\",CHAR(160),FW$1))+1),\"\")","v":"{Factor:WinterCF}"},{"$f":"IFERROR(MID($U126,FIND(CHAR(160),SUBSTITUTE($U126,\"{\",CHAR(160),FX$1)),FIND(CHAR(160),SUBSTITUTE($U126,\"}\",CHAR(160),FX$1))-FIND(CHAR(160),SUBSTITUTE($U126,\"{\",CHAR(160),FX$1))+1),\"\")","v":""},{"$f":"IFERROR(MID($U126,FIND(CHAR(160),SUBSTITUTE($U126,\"{\",CHAR(160),FY$1)),FIND(CHAR(160),SUBSTITUTE($U126,\"}\",CHAR(160),FY$1))-FIND(CHAR(160),SUBSTITUTE($U126,\"{\",CHAR(160),FY$1))+1),\"\")","v":""},{"$f":"IFERROR(MID($U126,FIND(CHAR(160),SUBSTITUTE($U126,\"{\",CHAR(160),FZ$1)),FIND(CHAR(160),SUBSTITUTE($U126,\"}\",CHAR(160),FZ$1))-FIND(CHAR(160),SUBSTITUTE($U126,\"{\",CHAR(160),FZ$1))+1),\"\")","v":""},{"$f":"IFERROR(MID($U126,FIND(CHAR(160),SUBSTITUTE($U126,\"{\",CHAR(160),GA$1)),FIND(CHAR(160),SUBSTITUTE($U126,\"}\",CHAR(160),GA$1))-FIND(CHAR(160),SUBSTITUTE($U126,\"{\",CHAR(160),GA$1))+1),\"\")","v":""},{"$f":"IFERROR(MID($U126,FIND(CHAR(160),SUBSTITUTE($U126,\"{\",CHAR(160),GB$1)),FIND(CHAR(160),SUBSTITUTE($U126,\"}\",CHAR(160),GB$1))-FIND(CHAR(160),SUBSTITUTE($U126,\"{\",CHAR(160),GB$1))+1),\"\")","v":""},{"$f":"IFERROR(MID($U126,FIND(CHAR(160),SUBSTITUTE($U126,\"{\",CHAR(160),GC$1)),FIND(CHAR(160),SUBSTITUTE($U126,\"}\",CHAR(160),GC$1))-FIND(CHAR(160),SUBSTITUTE($U126,\"{\",CHAR(160),GC$1))+1),\"\")","v":""},{"$f":"IFERROR(MID($U126,FIND(CHAR(160),SUBSTITUTE($U126,\"{\",CHAR(160),GD$1)),FIND(CHAR(160),SUBSTITUTE($U126,\"}\",CHAR(160),GD$1))-FIND(CHAR(160),SUBSTITUTE($U126,\"{\",CHAR(160),GD$1))+1),\"\")","v":""},{"$f":"IFERROR(MID($U126,FIND(CHAR(160),SUBSTITUTE($U126,\"{\",CHAR(160),GE$1)),FIND(CHAR(160),SUBSTITUTE($U126,\"}\",CHAR(160),GE$1))-FIND(CHAR(160),SUBSTITUTE($U126,\"{\",CHAR(160),GE$1))+1),\"\")","v":"{Measure:Quantity}"},{"$f":"IFERROR(MID($U126,FIND(CHAR(160),SUBSTITUTE($U126,\"{\",CHAR(160),GF$1)),FIND(CHAR(160),SUBSTITUTE($U126,\"}\",CHAR(160),GF$1))-FIND(CHAR(160),SUBSTITUTE($U126,\"{\",CHAR(160),GF$1))+1),\"\")","v":"{Dryer CFM}"},{"$f":"IFERROR(MID($V126,FIND(CHAR(160),SUBSTITUTE($V126,\"{\",CHAR(160),GG$1)),FIND(CHAR(160),SUBSTITUTE($V126,\"}\",CHAR(160),GG$1))-FIND(CHAR(160),SUBSTITUTE($V126,\"{\",CHAR(160),GG$1))+1),\"\")","v":"{Factor:SummerCF}"},{"$f":"IFERROR(MID($V126,FIND(CHAR(160),SUBSTITUTE($V126,\"{\",CHAR(160),GH$1)),FIND(CHAR(160),SUBSTITUTE($V126,\"}\",CHAR(160),GH$1))-FIND(CHAR(160),SUBSTITUTE($V126,\"{\",CHAR(160),GH$1))+1),\"\")","v":""},{"$f":"IFERROR(MID($V126,FIND(CHAR(160),SUBSTITUTE($V126,\"{\",CHAR(160),GI$1)),FIND(CHAR(160),SUBSTITUTE($V126,\"}\",CHAR(160),GI$1))-FIND(CHAR(160),SUBSTITUTE($V126,\"{\",CHAR(160),GI$1))+1),\"\")","v":""},{"$f":"IFERROR(MID($V126,FIND(CHAR(160),SUBSTITUTE($V126,\"{\",CHAR(160),GJ$1)),FIND(CHAR(160),SUBSTITUTE($V126,\"}\",CHAR(160),GJ$1))-FIND(CHAR(160),SUBSTITUTE($V126,\"{\",CHAR(160),GJ$1))+1),\"\")","v":""},{"$f":"IFERROR(MID($V126,FIND(CHAR(160),SUBSTITUTE($V126,\"{\",CHAR(160),GK$1)),FIND(CHAR(160),SUBSTITUTE($V126,\"}\",CHAR(160),GK$1))-FIND(CHAR(160),SUBSTITUTE($V126,\"{\",CHAR(160),GK$1))+1),\"\")","v":""},{"$f":"IFERROR(MID($V126,FIND(CHAR(160),SUBSTITUTE($V126,\"{\",CHAR(160),GL$1)),FIND(CHAR(160),SUBSTITUTE($V126,\"}\",CHAR(160),GL$1))-FIND(CHAR(160),SUBSTITUTE($V126,\"{\",CHAR(160),GL$1))+1),\"\")","v":""},{"$f":"IFERROR(MID($V126,FIND(CHAR(160),SUBSTITUTE($V126,\"{\",CHAR(160),GM$1)),FIND(CHAR(160),SUBSTITUTE($V126,\"}\",CHAR(160),GM$1))-FIND(CHAR(160),SUBSTITUTE($V126,\"{\",CHAR(160),GM$1))+1),\"\")","v":""},{"$f":"IFERROR(MID($V126,FIND(CHAR(160),SUBSTITUTE($V126,\"{\",CHAR(160),GN$1)),FIND(CHAR(160),SUBSTITUTE($V126,\"}\",CHAR(160),GN$1))-FIND(CHAR(160),SUBSTITUTE($V126,\"{\",CHAR(160),GN$1))+1),\"\")","v":""},{"$f":"IFERROR(MID($V126,FIND(CHAR(160),SUBSTITUTE($V126,\"{\",CHAR(160),GO$1)),FIND(CHAR(160),SUBSTITUTE($V126,\"}\",CHAR(160),GO$1))-FIND(CHAR(160),SUBSTITUTE($V126,\"{\",CHAR(160),GO$1))+1),\"\")","v":"{Measure:Quantity}"},{"$f":"IFERROR(MID($V126,FIND(CHAR(160),SUBSTITUTE($V126,\"{\",CHAR(160),GP$1)),FIND(CHAR(160),SUBSTITUTE($V126,\"}\",CHAR(160),GP$1))-FIND(CHAR(160),SUBSTITUTE($V126,\"{\",CHAR(160),GP$1))+1),\"\")","v":"{Dryer CFM}"},{"$f":"IFERROR(MID($W126,FIND(CHAR(160),SUBSTITUTE($W126,\"{\",CHAR(160),GQ$1)),FIND(CHAR(160),SUBSTITUTE($W126,\"}\",CHAR(160),GQ$1))-FIND(CHAR(160),SUBSTITUTE($W126,\"{\",CHAR(160),GQ$1))+1),\"\")","v":""},{"$f":"IFERROR(MID($W126,FIND(CHAR(160),SUBSTITUTE($W126,\"{\",CHAR(160),GR$1)),FIND(CHAR(160),SUBSTITUTE($W126,\"}\",CHAR(160),GR$1))-FIND(CHAR(160),SUBSTITUTE($W126,\"{\",CHAR(160),GR$1))+1),\"\")","v":""},{"$f":"IFERROR(MID($W126,FIND(CHAR(160),SUBSTITUTE($W126,\"{\",CHAR(160),GS$1)),FIND(CHAR(160),SUBSTITUTE($W126,\"}\",CHAR(160),GS$1))-FIND(CHAR(160),SUBSTITUTE($W126,\"{\",CHAR(160),GS$1))+1),\"\")","v":""},{"$f":"IFERROR(MID($W126,FIND(CHAR(160),SUBSTITUTE($W126,\"{\",CHAR(160),GT$1)),FIND(CHAR(160),SUBSTITUTE($W126,\"}\",CHAR(160),GT$1))-FIND(CHAR(160),SUBSTITUTE($W126,\"{\",CHAR(160),GT$1))+1),\"\")","v":""},{"$f":"IFERROR(MID($W126,FIND(CHAR(160),SUBSTITUTE($W126,\"{\",CHAR(160),GU$1)),FIND(CHAR(160),SUBSTITUTE($W126,\"}\",CHAR(160),GU$1))-FIND(CHAR(160),SUBSTITUTE($W126,\"{\",CHAR(160),GU$1))+1),\"\")","v":""},{"$f":"IFERROR(MID($W126,FIND(CHAR(160),SUBSTITUTE($W126,\"{\",CHAR(160),GV$1)),FIND(CHAR(160),SUBSTITUTE($W126,\"}\",CHAR(160),GV$1))-FIND(CHAR(160),SUBSTITUTE($W126,\"{\",CHAR(160),GV$1))+1),\"\")","v":""},{"$f":"IFERROR(MID($W126,FIND(CHAR(160),SUBSTITUTE($W126,\"{\",CHAR(160),GW$1)),FIND(CHAR(160),SUBSTITUTE($W126,\"}\",CHAR(160),GW$1))-FIND(CHAR(160),SUBSTITUTE($W126,\"{\",CHAR(160),GW$1))+1),\"\")","v":""},{"$f":"IFERROR(MID($W126,FIND(CHAR(160),SUBSTITUTE($W126,\"{\",CHAR(160),GX$1)),FIND(CHAR(160),SUBSTITUTE($W126,\"}\",CHAR(160),GX$1))-FIND(CHAR(160),SUBSTITUTE($W126,\"{\",CHAR(160),GX$1))+1),\"\")","v":""},{"$f":"IFERROR(MID($W126,FIND(CHAR(160),SUBSTITUTE($W126,\"{\",CHAR(160),GY$1)),FIND(CHAR(160),SUBSTITUTE($W126,\"}\",CHAR(160),GY$1))-FIND(CHAR(160),SUBSTITUTE($W126,\"{\",CHAR(160),GY$1))+1),\"\")","v":""},{"$f":"IFERROR(MID($W126,FIND(CHAR(160),SUBSTITUTE($W126,\"{\",CHAR(160),GZ$1)),FIND(CHAR(160),SUBSTITUTE($W126,\"}\",CHAR(160),GZ$1))-FIND(CHAR(160),SUBSTITUTE($W126,\"{\",CHAR(160),GZ$1))+1),\"\")","v":""},{"$f":"IFERROR(MID($X126,FIND(CHAR(160),SUBSTITUTE($X126,\"{\",CHAR(160),HA$1)),FIND(CHAR(160),SUBSTITUTE($X126,\"}\",CHAR(160),HA$1))-FIND(CHAR(160),SUBSTITUTE($X126,\"{\",CHAR(160),HA$1))+1),\"\")","v":""},{"$f":"IFERROR(MID($X126,FIND(CHAR(160),SUBSTITUTE($X126,\"{\",CHAR(160),HB$1)),FIND(CHAR(160),SUBSTITUTE($X126,\"}\",CHAR(160),HB$1))-FIND(CHAR(160),SUBSTITUTE($X126,\"{\",CHAR(160),HB$1))+1),\"\")","v":""},{"$f":"IFERROR(MID($X126,FIND(CHAR(160),SUBSTITUTE($X126,\"{\",CHAR(160),HC$1)),FIND(CHAR(160),SUBSTITUTE($X126,\"}\",CHAR(160),HC$1))-FIND(CHAR(160),SUBSTITUTE($X126,\"{\",CHAR(160),HC$1))+1),\"\")","v":""},{"$f":"IFERROR(MID($X126,FIND(CHAR(160),SUBSTITUTE($X126,\"{\",CHAR(160),HD$1)),FIND(CHAR(160),SUBSTITUTE($X126,\"}\",CHAR(160),HD$1))-FIND(CHAR(160),SUBSTITUTE($X126,\"{\",CHAR(160),HD$1))+1),\"\")","v":""},{"$f":"IFERROR(MID($X126,FIND(CHAR(160),SUBSTITUTE($X126,\"{\",CHAR(160),HE$1)),FIND(CHAR(160),SUBSTITUTE($X126,\"}\",CHAR(160),HE$1))-FIND(CHAR(160),SUBSTITUTE($X126,\"{\",CHAR(160),HE$1))+1),\"\")","v":""},{"$f":"IFERROR(MID($X126,FIND(CHAR(160),SUBSTITUTE($X126,\"{\",CHAR(160),HF$1)),FIND(CHAR(160),SUBSTITUTE($X126,\"}\",CHAR(160),HF$1))-FIND(CHAR(160),SUBSTITUTE($X126,\"{\",CHAR(160),HF$1))+1),\"\")","v":""},{"$f":"IFERROR(MID($X126,FIND(CHAR(160),SUBSTITUTE($X126,\"{\",CHAR(160),HG$1)),FIND(CHAR(160),SUBSTITUTE($X126,\"}\",CHAR(160),HG$1))-FIND(CHAR(160),SUBSTITUTE($X126,\"{\",CHAR(160),HG$1))+1),\"\")","v":""},{"$f":"IFERROR(MID($X126,FIND(CHAR(160),SUBSTITUTE($X126,\"{\",CHAR(160),HH$1)),FIND(CHAR(160),SUBSTITUTE($X126,\"}\",CHAR(160),HH$1))-FIND(CHAR(160),SUBSTITUTE($X126,\"{\",CHAR(160),HH$1))+1),\"\")","v":""},{"$f":"IFERROR(MID($X126,FIND(CHAR(160),SUBSTITUTE($X126,\"{\",CHAR(160),HI$1)),FIND(CHAR(160),SUBSTITUTE($X126,\"}\",CHAR(160),HI$1))-FIND(CHAR(160),SUBSTITUTE($X126,\"{\",CHAR(160),HI$1))+1),\"\")","v":""},{"$f":"IFERROR(MID($X126,FIND(CHAR(160),SUBSTITUTE($X126,\"{\",CHAR(160),HJ$1)),FIND(CHAR(160),SUBSTITUTE($X126,\"}\",CHAR(160),HJ$1))-FIND(CHAR(160),SUBSTITUTE($X126,\"{\",CHAR(160),HJ$1))+1),\"\")","v":""},{"$f":"IFERROR(MID($Y126,FIND(CHAR(160),SUBSTITUTE($Y126,\"{\",CHAR(160),HK$1)),FIND(CHAR(160),SUBSTITUTE($Y126,\"}\",CHAR(160),HK$1))-FIND(CHAR(160),SUBSTITUTE($Y126,\"{\",CHAR(160),HK$1))+1),\"\")","v":""},{"$f":"IFERROR(MID($Y126,FIND(CHAR(160),SUBSTITUTE($Y126,\"{\",CHAR(160),HL$1)),FIND(CHAR(160),SUBSTITUTE($Y126,\"}\",CHAR(160),HL$1))-FIND(CHAR(160),SUBSTITUTE($Y126,\"{\",CHAR(160),HL$1))+1),\"\")","v":""},{"$f":"IFERROR(MID($Y126,FIND(CHAR(160),SUBSTITUTE($Y126,\"{\",CHAR(160),HM$1)),FIND(CHAR(160),SUBSTITUTE($Y126,\"}\",CHAR(160),HM$1))-FIND(CHAR(160),SUBSTITUTE($Y126,\"{\",CHAR(160),HM$1))+1),\"\")","v":""},{"$f":"IFERROR(MID($Y126,FIND(CHAR(160),SUBSTITUTE($Y126,\"{\",CHAR(160),HN$1)),FIND(CHAR(160),SUBSTITUTE($Y126,\"}\",CHAR(160),HN$1))-FIND(CHAR(160),SUBSTITUTE($Y126,\"{\",CHAR(160),HN$1))+1),\"\")","v":""},{"$f":"IFERROR(MID($Y126,FIND(CHAR(160),SUBSTITUTE($Y126,\"{\",CHAR(160),HO$1)),FIND(CHAR(160),SUBSTITUTE($Y126,\"}\",CHAR(160),HO$1))-FIND(CHAR(160),SUBSTITUTE($Y126,\"{\",CHAR(160),HO$1))+1),\"\")","v":""},{"$f":"IFERROR(MID($Y126,FIND(CHAR(160),SUBSTITUTE($Y126,\"{\",CHAR(160),HP$1)),FIND(CHAR(160),SUBSTITUTE($Y126,\"}\",CHAR(160),HP$1))-FIND(CHAR(160),SUBSTITUTE($Y126,\"{\",CHAR(160),HP$1))+1),\"\")","v":""},{"$f":"IFERROR(MID($Y126,FIND(CHAR(160),SUBSTITUTE($Y126,\"{\",CHAR(160),HQ$1)),FIND(CHAR(160),SUBSTITUTE($Y126,\"}\",CHAR(160),HQ$1))-FIND(CHAR(160),SUBSTITUTE($Y126,\"{\",CHAR(160),HQ$1))+1),\"\")","v":""},{"$f":"IFERROR(MID($Y126,FIND(CHAR(160),SUBSTITUTE($Y126,\"{\",CHAR(160),HR$1)),FIND(CHAR(160),SUBSTITUTE($Y126,\"}\",CHAR(160),HR$1))-FIND(CHAR(160),SUBSTITUTE($Y126,\"{\",CHAR(160),HR$1))+1),\"\")","v":""},{"$f":"IFERROR(MID($Y126,FIND(CHAR(160),SUBSTITUTE($Y126,\"{\",CHAR(160),HS$1)),FIND(CHAR(160),SUBSTITUTE($Y126,\"}\",CHAR(160),HS$1))-FIND(CHAR(160),SUBSTITUTE($Y126,\"{\",CHAR(160),HS$1))+1),\"\")","v":""},{"$f":"IFERROR(MID($Y126,FIND(CHAR(160),SUBSTITUTE($Y126,\"{\",CHAR(160),HT$1)),FIND(CHAR(160),SUBSTITUTE($Y126,\"}\",CHAR(160),HT$1))-FIND(CHAR(160),SUBSTITUTE($Y126,\"{\",CHAR(160),HT$1))+1),\"\")","v":""},{"$f":"IFERROR(MID($Z126,FIND(CHAR(160),SUBSTITUTE($Z126,\"{\",CHAR(160),HU$1)),FIND(CHAR(160),SUBSTITUTE($Z126,\"}\",CHAR(160),HU$1))-FIND(CHAR(160),SUBSTITUTE($Z126,\"{\",CHAR(160),HU$1))+1),\"\")","v":""},{"$f":"IFERROR(MID($Z126,FIND(CHAR(160),SUBSTITUTE($Z126,\"{\",CHAR(160),HV$1)),FIND(CHAR(160),SUBSTITUTE($Z126,\"}\",CHAR(160),HV$1))-FIND(CHAR(160),SUBSTITUTE($Z126,\"{\",CHAR(160),HV$1))+1),\"\")","v":""},{"$f":"IFERROR(MID($Z126,FIND(CHAR(160),SUBSTITUTE($Z126,\"{\",CHAR(160),HW$1)),FIND(CHAR(160),SUBSTITUTE($Z126,\"}\",CHAR(160),HW$1))-FIND(CHAR(160),SUBSTITUTE($Z126,\"{\",CHAR(160),HW$1))+1),\"\")","v":""},{"$f":"IFERROR(MID($Z126,FIND(CHAR(160),SUBSTITUTE($Z126,\"{\",CHAR(160),HX$1)),FIND(CHAR(160),SUBSTITUTE($Z126,\"}\",CHAR(160),HX$1))-FIND(CHAR(160),SUBSTITUTE($Z126,\"{\",CHAR(160),HX$1))+1),\"\")","v":""},{"$f":"IFERROR(MID($Z126,FIND(CHAR(160),SUBSTITUTE($Z126,\"{\",CHAR(160),HY$1)),FIND(CHAR(160),SUBSTITUTE($Z126,\"}\",CHAR(160),HY$1))-FIND(CHAR(160),SUBSTITUTE($Z126,\"{\",CHAR(160),HY$1))+1),\"\")","v":""},{"$f":"IFERROR(MID($Z126,FIND(CHAR(160),SUBSTITUTE($Z126,\"{\",CHAR(160),HZ$1)),FIND(CHAR(160),SUBSTITUTE($Z126,\"}\",CHAR(160),HZ$1))-FIND(CHAR(160),SUBSTITUTE($Z126,\"{\",CHAR(160),HZ$1))+1),\"\")","v":""},{"$f":"IFERROR(MID($Z126,FIND(CHAR(160),SUBSTITUTE($Z126,\"{\",CHAR(160),IA$1)),FIND(CHAR(160),SUBSTITUTE($Z126,\"}\",CHAR(160),IA$1))-FIND(CHAR(160),SUBSTITUTE($Z126,\"{\",CHAR(160),IA$1))+1),\"\")","v":""},{"$f":"IFERROR(MID($Z126,FIND(CHAR(160),SUBSTITUTE($Z126,\"{\",CHAR(160),IB$1)),FIND(CHAR(160),SUBSTITUTE($Z126,\"}\",CHAR(160),IB$1))-FIND(CHAR(160),SUBSTITUTE($Z126,\"{\",CHAR(160),IB$1))+1),\"\")","v":""},{"$f":"IFERROR(MID($Z126,FIND(CHAR(160),SUBSTITUTE($Z126,\"{\",CHAR(160),IC$1)),FIND(CHAR(160),SUBSTITUTE($Z126,\"}\",CHAR(160),IC$1))-FIND(CHAR(160),SUBSTITUTE($Z126,\"{\",CHAR(160),IC$1))+1),\"\")","v":""},{"$f":"IFERROR(MID($Z126,FIND(CHAR(160),SUBSTITUTE($Z126,\"{\",CHAR(160),ID$1)),FIND(CHAR(160),SUBSTITUTE($Z126,\"}\",CHAR(160),ID$1))-FIND(CHAR(160),SUBSTITUTE($Z126,\"{\",CHAR(160),ID$1))+1),\"\")","v":""},{"$f":"IFERROR(MID($AA126,FIND(CHAR(160),SUBSTITUTE($AA126,\"{\",CHAR(160),IE$1)),FIND(CHAR(160),SUBSTITUTE($AA126,\"}\",CHAR(160),IE$1))-FIND(CHAR(160),SUBSTITUTE($AA126,\"{\",CHAR(160),IE$1))+1),\"\")","v":""},{"$f":"IFERROR(MID($AA126,FIND(CHAR(160),SUBSTITUTE($AA126,\"{\",CHAR(160),IF$1)),FIND(CHAR(160),SUBSTITUTE($AA126,\"}\",CHAR(160),IF$1))-FIND(CHAR(160),SUBSTITUTE($AA126,\"{\",CHAR(160),IF$1))+1),\"\")","v":""},{"$f":"IFERROR(MID($AA126,FIND(CHAR(160),SUBSTITUTE($AA126,\"{\",CHAR(160),IG$1)),FIND(CHAR(160),SUBSTITUTE($AA126,\"}\",CHAR(160),IG$1))-FIND(CHAR(160),SUBSTITUTE($AA126,\"{\",CHAR(160),IG$1))+1),\"\")","v":""},{"$f":"IFERROR(MID($AA126,FIND(CHAR(160),SUBSTITUTE($AA126,\"{\",CHAR(160),IH$1)),FIND(CHAR(160),SUBSTITUTE($AA126,\"}\",CHAR(160),IH$1))-FIND(CHAR(160),SUBSTITUTE($AA126,\"{\",CHAR(160),IH$1))+1),\"\")","v":""},{"$f":"IFERROR(MID($AA126,FIND(CHAR(160),SUBSTITUTE($AA126,\"{\",CHAR(160),II$1)),FIND(CHAR(160),SUBSTITUTE($AA126,\"}\",CHAR(160),II$1))-FIND(CHAR(160),SUBSTITUTE($AA126,\"{\",CHAR(160),II$1))+1),\"\")","v":""},{"$f":"IFERROR(MID($AA126,FIND(CHAR(160),SUBSTITUTE($AA126,\"{\",CHAR(160),IJ$1)),FIND(CHAR(160),SUBSTITUTE($AA126,\"}\",CHAR(160),IJ$1))-FIND(CHAR(160),SUBSTITUTE($AA126,\"{\",CHAR(160),IJ$1))+1),\"\")","v":""},{"$f":"IFERROR(MID($AA126,FIND(CHAR(160),SUBSTITUTE($AA126,\"{\",CHAR(160),IK$1)),FIND(CHAR(160),SUBSTITUTE($AA126,\"}\",CHAR(160),IK$1))-FIND(CHAR(160),SUBSTITUTE($AA126,\"{\",CHAR(160),IK$1))+1),\"\")","v":""},{"$f":"IFERROR(MID($AA126,FIND(CHAR(160),SUBSTITUTE($AA126,\"{\",CHAR(160),IL$1)),FIND(CHAR(160),SUBSTITUTE($AA126,\"}\",CHAR(160),IL$1))-FIND(CHAR(160),SUBSTITUTE($AA126,\"{\",CHAR(160),IL$1))+1),\"\")","v":""},{"$f":"IFERROR(MID($AA126,FIND(CHAR(160),SUBSTITUTE($AA126,\"{\",CHAR(160),IM$1)),FIND(CHAR(160),SUBSTITUTE($AA126,\"}\",CHAR(160),IM$1))-FIND(CHAR(160),SUBSTITUTE($AA126,\"{\",CHAR(160),IM$1))+1),\"\")","v":""},{"$f":"IFERROR(MID($AA126,FIND(CHAR(160),SUBSTITUTE($AA126,\"{\",CHAR(160),IN$1)),FIND(CHAR(160),SUBSTITUTE($AA126,\"}\",CHAR(160),IN$1))-FIND(CHAR(160),SUBSTITUTE($AA126,\"{\",CHAR(160),IN$1))+1),\"\")","v":""},{"$f":"IFERROR(MID($AB126,FIND(CHAR(160),SUBSTITUTE($AB126,\"{\",CHAR(160),IO$1)),FIND(CHAR(160),SUBSTITUTE($AB126,\"}\",CHAR(160),IO$1))-FIND(CHAR(160),SUBSTITUTE($AB126,\"{\",CHAR(160),IO$1))+1),\"\")","v":""},{"$f":"IFERROR(MID($AB126,FIND(CHAR(160),SUBSTITUTE($AB126,\"{\",CHAR(160),IP$1)),FIND(CHAR(160),SUBSTITUTE($AB126,\"}\",CHAR(160),IP$1))-FIND(CHAR(160),SUBSTITUTE($AB126,\"{\",CHAR(160),IP$1))+1),\"\")","v":""},{"$f":"IFERROR(MID($AB126,FIND(CHAR(160),SUBSTITUTE($AB126,\"{\",CHAR(160),IQ$1)),FIND(CHAR(160),SUBSTITUTE($AB126,\"}\",CHAR(160),IQ$1))-FIND(CHAR(160),SUBSTITUTE($AB126,\"{\",CHAR(160),IQ$1))+1),\"\")","v":""},{"$f":"IFERROR(MID($AB126,FIND(CHAR(160),SUBSTITUTE($AB126,\"{\",CHAR(160),IR$1)),FIND(CHAR(160),SUBSTITUTE($AB126,\"}\",CHAR(160),IR$1))-FIND(CHAR(160),SUBSTITUTE($AB126,\"{\",CHAR(160),IR$1))+1),\"\")","v":""},{"$f":"IFERROR(MID($AB126,FIND(CHAR(160),SUBSTITUTE($AB126,\"{\",CHAR(160),IS$1)),FIND(CHAR(160),SUBSTITUTE($AB126,\"}\",CHAR(160),IS$1))-FIND(CHAR(160),SUBSTITUTE($AB126,\"{\",CHAR(160),IS$1))+1),\"\")","v":""},{"$f":"IFERROR(MID($AB126,FIND(CHAR(160),SUBSTITUTE($AB126,\"{\",CHAR(160),IT$1)),FIND(CHAR(160),SUBSTITUTE($AB126,\"}\",CHAR(160),IT$1))-FIND(CHAR(160),SUBSTITUTE($AB126,\"{\",CHAR(160),IT$1))+1),\"\")","v":""},{"$f":"IFERROR(MID($AB126,FIND(CHAR(160),SUBSTITUTE($AB126,\"{\",CHAR(160),IU$1)),FIND(CHAR(160),SUBSTITUTE($AB126,\"}\",CHAR(160),IU$1))-FIND(CHAR(160),SUBSTITUTE($AB126,\"{\",CHAR(160),IU$1))+1),\"\")","v":""},{"$f":"IFERROR(MID($AB126,FIND(CHAR(160),SUBSTITUTE($AB126,\"{\",CHAR(160),IV$1)),FIND(CHAR(160),SUBSTITUTE($AB126,\"}\",CHAR(160),IV$1))-FIND(CHAR(160),SUBSTITUTE($AB126,\"{\",CHAR(160),IV$1))+1),\"\")","v":""},{"$f":"IFERROR(MID($AB126,FIND(CHAR(160),SUBSTITUTE($AB126,\"{\",CHAR(160),IW$1)),FIND(CHAR(160),SUBSTITUTE($AB126,\"}\",CHAR(160),IW$1))-FIND(CHAR(160),SUBSTITUTE($AB126,\"{\",CHAR(160),IW$1))+1),\"\")","v":""},{"$f":"IFERROR(MID($AB126,FIND(CHAR(160),SUBSTITUTE($AB126,\"{\",CHAR(160),IX$1)),FIND(CHAR(160),SUBSTITUTE($AB126,\"}\",CHAR(160),IX$1))-FIND(CHAR(160),SUBSTITUTE($AB126,\"{\",CHAR(160),IX$1))+1),\"\")","v":""},null,{"$f":"10-COUNTIF(DU126:ED126,\"\")","v":4}]
["C&I Prescriptive Compressed Air Solutions","Receiver - C21 - Standard Receiver Size 80 Gallons","R - C21","2021-07-01","2022-06-30","Per Measure",630,0,"Per Measure",350,0,"2017-07-01","2022-06-30","Calculated","{Measure:Quantity} *{System Compressor (HP)} * 0.746 * 0.025 * {Weekly Hrs of Operation} * {Weeks Per Year}",1E-4,null,"{Measure:Quantity} *{System Compressor (HP)} * 0.746 * 0.025",null,null,"{Measure:Quantity} *{System Compressor (HP)} * 0.746 * 0.025 * {Factor:WinterCF}","{Measure:Quantity} *{System Compressor (HP)} * 0.746 * 0.025 * {Factor:SummerCF}",null,null,null,null,null,null,"2017-07-01","2022-06-30",10,0.7,0.91100000000000003,0.30399999999999999,0.36099999999999999,0.156,0.17899999999999999,1,1.1220000000000001,1,0.52,1.6E-2,null,{"$f":"DU127","v":"{Weekly Hrs of Operation}"},1,{"$f":"DV127","v":"{Weeks Per Year}"},20,{"$f":"DW127","v":"{Measure:Quantity}"},50,{"$f":"DX127","v":"{System Compressor (HP)}"},50,{"$f":"DY127","v":""},null,{"$f":"DZ127","v":""},null,{"$f":"EA127","v":""},null,{"$f":"EB127","v":""},null,{"$f":"EC127","v":""},null,{"$f":"ED127","v":""},null,{"$f":"AS127 *AU127 * 0.746 * 0.025 * AW127 * AY127","v":932.49999999999989},{"$f":"0.0001","v":1E-4},0,{"$f":"AS127 *AU127 * 0.746 * 0.025","v":0.373},0,0,{"$f":"AS127 *AU127 * 0.746 * 0.025 * AF127","v":0.2611},{"$f":"AS127 *AU127 * 0.746 * 0.025 * AG127","v":0.33980300000000002},0,0,0,0,0,0,null,"Com","Default DR",{"$f":"Benefits(BL127,BR127,BS127,BT127,BU127,BV127,BW127,BX127,BY127,BZ127,AE127,AH127,AI127,AJ127,AK127,AL127,AM127,AN127,AO127,AP127,CA127,CB127)","v":1035.9160818326891},1149.7120822452673,0,0,0,0,0,0,0,{"$f":"SUMPRODUCT(CC127:CK127,--(CC127:CK127>0))","v":2185.6281640779562},{"$f":"-SUMPRODUCT(CC127:CK127,--(CC127:CK127<0))","v":0},null,{"$f":"630","v":630},null,null,{"$f":"CM127+CO127","v":630},{"$f":"IF(NetOrGross=\"Net\",(1-AO127+AP127),1)","v":1},{"$f":"(SUMPRODUCT(CC127:CJ127,--(CC127:CJ127>0))+CN127)*CS127/((-SUMPRODUCT(CC127:CJ127,--(CC127:CJ127<0))+MAX(CO127,CV127)+CP127+CQ127)*CS127+IF(FRIncentives=\"Yes\",CV127*(1-CS127),0))","v":3.4692510540919939},18,{"$f":"350","v":350},null,"Electric","y",null,{"$f":"IF(F127=\"Manual Entry\",\"Manual\",IF(G127=\"\",0,\"X=\"&SUBSTITUTE(SUBSTITUTE(SUBSTITUTE(SUBSTITUTE(SUBSTITUTE(SUBSTITUTE(SUBSTITUTE(SUBSTITUTE(SUBSTITUTE(SUBSTITUTE(SUBSTITUTE(SUBSTITUTE(G127,$ED127,$ED$2&ROW($ED127)),$EC127,$EC$2&ROW($EC127)),$EB127,$EB$2&ROW($EB127)),$EA127,$EA$2&ROW($EA127)),$DZ127,$DZ$2&ROW($DZ127)),$DY127,$DY$2&ROW($DY127)),$DX127,$DX$2&ROW($DX127)),$DW127,$DW$2&ROW($DW127)),$DV127,$DV$2&ROW($DV127)),$DU127,$DU$2&ROW($DU127)),$DT127,$DT$2&ROW($DT127)),$DS127,$DS$2&ROW($DS127))))","v":"X=630"},{"$f":"IF(I127=\"Manual Entry\",\"Manual\",IF(J127=\"\",0,\"X=\"&SUBSTITUTE(SUBSTITUTE(SUBSTITUTE(SUBSTITUTE(SUBSTITUTE(SUBSTITUTE(SUBSTITUTE(SUBSTITUTE(SUBSTITUTE(SUBSTITUTE(SUBSTITUTE(SUBSTITUTE(J127,$ED127,$ED$2&ROW($ED127)),$EC127,$EC$2&ROW($EC127)),$EB127,$EB$2&ROW($EB127)),$EA127,$EA$2&ROW($EA127)),$DZ127,$DZ$2&ROW($DZ127)),$DY127,$DY$2&ROW($DY127)),$DX127,$DX$2&ROW($DX127)),$DW127,$DW$2&ROW($DW127)),$DV127,$DV$2&ROW($DV127)),$DU127,$DU$2&ROW($DU127)),$DT127,$DT$2&ROW($DT127)),$DS127,$DS$2&ROW($DS127))))","v":"X=350"},{"$f":"IF(O127=\"\",0,\"X=\"&SUBSTITUTE(SUBSTITUTE(SUBSTITUTE(SUBSTITUTE(SUBSTITUTE(SUBSTITUTE(SUBSTITUTE(SUBSTITUTE(SUBSTITUTE(SUBSTITUTE(SUBSTITUTE(SUBSTITUTE(O127,$ED127,$ED$2&ROW($ED127)),$EC127,$EC$2&ROW($EC127)),$EB127,$EB$2&ROW($EB127)),$EA127,$EA$2&ROW($EA127)),$DZ127,$DZ$2&ROW($DZ127)),$DY127,$DY$2&ROW($DY127)),$DX127,$DX$2&ROW($DX127)),$DW127,$DW$2&ROW($DW127)),$DV127,$DV$2&ROW($DV127)),$DU127,$DU$2&ROW($DU127)),$DT127,$DT$2&ROW($DT127)),$DS127,$DS$2&ROW($DS127)))","v":"X=AW127 *AY127 * 0.746 * 0.025 * AS127 * AU127"},{"$f":"IF(P127=\"\",0,\"X=\"&SUBSTITUTE(SUBSTITUTE(SUBSTITUTE(SUBSTITUTE(SUBSTITUTE(SUBSTITUTE(SUBSTITUTE(SUBSTITUTE(SUBSTITUTE(SUBSTITUTE(SUBSTITUTE(SUBSTITUTE(P127,$ED127,$ED$2&ROW($ED127)),$EC127,$EC$2&ROW($EC127)),$EB127,$EB$2&ROW($EB127)),$EA127,$EA$2&ROW($EA127)),$DZ127,$DZ$2&ROW($DZ127)),$DY127,$DY$2&ROW($DY127)),$DX127,$DX$2&ROW($DX127)),$DW127,$DW$2&ROW($DW127)),$DV127,$DV$2&ROW($DV127)),$DU127,$DU$2&ROW($DU127)),$DT127,$DT$2&ROW($DT127)),$DS127,$DS$2&ROW($DS127)))","v":"X=0.0001"},{"$f":"IF(Q127=\"\",0,\"X=\"&SUBSTITUTE(SUBSTITUTE(SUBSTITUTE(SUBSTITUTE(SUBSTITUTE(SUBSTITUTE(SUBSTITUTE(SUBSTITUTE(SUBSTITUTE(SUBSTITUTE(SUBSTITUTE(SUBSTITUTE(Q127,$ED127,$ED$2&ROW($ED127)),$EC127,$EC$2&ROW($EC127)),$EB127,$EB$2&ROW($EB127)),$EA127,$EA$2&ROW($EA127)),$DZ127,$DZ$2&ROW($DZ127)),$DY127,$DY$2&ROW($DY127)),$DX127,$DX$2&ROW($DX127)),$DW127,$DW$2&ROW($DW127)),$DV127,$DV$2&ROW($DV127)),$DU127,$DU$2&ROW($DU127)),$DT127,$DT$2&ROW($DT127)),$DS127,$DS$2&ROW($DS127)))","v":0},{"$f":"IF(R127=\"\",0,\"X=\"&SUBSTITUTE(SUBSTITUTE(SUBSTITUTE(SUBSTITUTE(SUBSTITUTE(SUBSTITUTE(SUBSTITUTE(SUBSTITUTE(SUBSTITUTE(SUBSTITUTE(SUBSTITUTE(SUBSTITUTE(R127,$ED127,$ED$2&ROW($ED127)),$EC127,$EC$2&ROW($EC127)),$EB127,$EB$2&ROW($EB127)),$EA127,$EA$2&ROW($EA127)),$DZ127,$DZ$2&ROW($DZ127)),$DY127,$DY$2&ROW($DY127)),$DX127,$DX$2&ROW($DX127)),$DW127,$DW$2&ROW($DW127)),$DV127,$DV$2&ROW($DV127)),$DU127,$DU$2&ROW($DU127)),$DT127,$DT$2&ROW($DT127)),$DS127,$DS$2&ROW($DS127)))","v":"X=AW127 *AY127 * 0.746 * 0.025"},{"$f":"IF(S127=\"\",0,\"X=\"&SUBSTITUTE(SUBSTITUTE(SUBSTITUTE(SUBSTITUTE(SUBSTITUTE(SUBSTITUTE(SUBSTITUTE(SUBSTITUTE(SUBSTITUTE(SUBSTITUTE(SUBSTITUTE(SUBSTITUTE(S127,$ED127,$ED$2&ROW($ED127)),$EC127,$EC$2&ROW($EC127)),$EB127,$EB$2&ROW($EB127)),$EA127,$EA$2&ROW($EA127)),$DZ127,$DZ$2&ROW($DZ127)),$DY127,$DY$2&ROW($DY127)),$DX127,$DX$2&ROW($DX127)),$DW127,$DW$2&ROW($DW127)),$DV127,$DV$2&ROW($DV127)),$DU127,$DU$2&ROW($DU127)),$DT127,$DT$2&ROW($DT127)),$DS127,$DS$2&ROW($DS127)))","v":0},{"$f":"IF(T127=\"\",0,\"X=\"&SUBSTITUTE(SUBSTITUTE(SUBSTITUTE(SUBSTITUTE(SUBSTITUTE(SUBSTITUTE(SUBSTITUTE(SUBSTITUTE(SUBSTITUTE(SUBSTITUTE(SUBSTITUTE(SUBSTITUTE(T127,$ED127,$ED$2&ROW($ED127)),$EC127,$EC$2&ROW($EC127)),$EB127,$EB$2&ROW($EB127)),$EA127,$EA$2&ROW($EA127)),$DZ127,$DZ$2&ROW($DZ127)),$DY127,$DY$2&ROW($DY127)),$DX127,$DX$2&ROW($DX127)),$DW127,$DW$2&ROW($DW127)),$DV127,$DV$2&ROW($DV127)),$DU127,$DU$2&ROW($DU127)),$DT127,$DT$2&ROW($DT127)),$DS127,$DS$2&ROW($DS127)))","v":0},{"$f":"IF(U127=\"\",0,\"X=\"&SUBSTITUTE(SUBSTITUTE(SUBSTITUTE(SUBSTITUTE(SUBSTITUTE(SUBSTITUTE(SUBSTITUTE(SUBSTITUTE(SUBSTITUTE(SUBSTITUTE(SUBSTITUTE(SUBSTITUTE(U127,$ED127,$ED$2&ROW($ED127)),$EC127,$EC$2&ROW($EC127)),$EB127,$EB$2&ROW($EB127)),$EA127,$EA$2&ROW($EA127)),$DZ127,$DZ$2&ROW($DZ127)),$DY127,$DY$2&ROW($DY127)),$DX127,$DX$2&ROW($DX127)),$DW127,$DW$2&ROW($DW127)),$DV127,$DV$2&ROW($DV127)),$DU127,$DU$2&ROW($DU127)),$DT127,$DT$2&ROW($DT127)),$DS127,$DS$2&ROW($DS127)))","v":"X=AW127 *AY127 * 0.746 * 0.025 * AF127"},{"$f":"IF(V127=\"\",0,\"X=\"&SUBSTITUTE(SUBSTITUTE(SUBSTITUTE(SUBSTITUTE(SUBSTITUTE(SUBSTITUTE(SUBSTITUTE(SUBSTITUTE(SUBSTITUTE(SUBSTITUTE(SUBSTITUTE(SUBSTITUTE(V127,$ED127,$ED$2&ROW($ED127)),$EC127,$EC$2&ROW($EC127)),$EB127,$EB$2&ROW($EB127)),$EA127,$EA$2&ROW($EA127)),$DZ127,$DZ$2&ROW($DZ127)),$DY127,$DY$2&ROW($DY127)),$DX127,$DX$2&ROW($DX127)),$DW127,$DW$2&ROW($DW127)),$DV127,$DV$2&ROW($DV127)),$DU127,$DU$2&ROW($DU127)),$DT127,$DT$2&ROW($DT127)),$DS127,$DS$2&ROW($DS127)))","v":"X=AW127 *AY127 * 0.746 * 0.025 * AG127"},{"$f":"IF(W127=\"\",0,\"X=\"&SUBSTITUTE(SUBSTITUTE(SUBSTITUTE(SUBSTITUTE(SUBSTITUTE(SUBSTITUTE(SUBSTITUTE(SUBSTITUTE(SUBSTITUTE(SUBSTITUTE(SUBSTITUTE(SUBSTITUTE(W127,$ED127,$ED$2&ROW($ED127)),$EC127,$EC$2&ROW($EC127)),$EB127,$EB$2&ROW($EB127)),$EA127,$EA$2&ROW($EA127)),$DZ127,$DZ$2&ROW($DZ127)),$DY127,$DY$2&ROW($DY127)),$DX127,$DX$2&ROW($DX127)),$DW127,$DW$2&ROW($DW127)),$DV127,$DV$2&ROW($DV127)),$DU127,$DU$2&ROW($DU127)),$DT127,$DT$2&ROW($DT127)),$DS127,$DS$2&ROW($DS127)))","v":0},{"$f":"IF(X127=\"\",0,\"X=\"&SUBSTITUTE(SUBSTITUTE(SUBSTITUTE(SUBSTITUTE(SUBSTITUTE(SUBSTITUTE(SUBSTITUTE(SUBSTITUTE(SUBSTITUTE(SUBSTITUTE(SUBSTITUTE(SUBSTITUTE(X127,$ED127,$ED$2&ROW($ED127)),$EC127,$EC$2&ROW($EC127)),$EB127,$EB$2&ROW($EB127)),$EA127,$EA$2&ROW($EA127)),$DZ127,$DZ$2&ROW($DZ127)),$DY127,$DY$2&ROW($DY127)),$DX127,$DX$2&ROW($DX127)),$DW127,$DW$2&ROW($DW127)),$DV127,$DV$2&ROW($DV127)),$DU127,$DU$2&ROW($DU127)),$DT127,$DT$2&ROW($DT127)),$DS127,$DS$2&ROW($DS127)))","v":0},{"$f":"IF(Y127=\"\",0,\"X=\"&SUBSTITUTE(SUBSTITUTE(SUBSTITUTE(SUBSTITUTE(SUBSTITUTE(SUBSTITUTE(SUBSTITUTE(SUBSTITUTE(SUBSTITUTE(SUBSTITUTE(SUBSTITUTE(SUBSTITUTE(Y127,$ED127,$ED$2&ROW($ED127)),$EC127,$EC$2&ROW($EC127)),$EB127,$EB$2&ROW($EB127)),$EA127,$EA$2&ROW($EA127)),$DZ127,$DZ$2&ROW($DZ127)),$DY127,$DY$2&ROW($DY127)),$DX127,$DX$2&ROW($DX127)),$DW127,$DW$2&ROW($DW127)),$DV127,$DV$2&ROW($DV127)),$DU127,$DU$2&ROW($DU127)),$DT127,$DT$2&ROW($DT127)),$DS127,$DS$2&ROW($DS127)))","v":0},{"$f":"IF(Z127=\"\",0,\"X=\"&SUBSTITUTE(SUBSTITUTE(SUBSTITUTE(SUBSTITUTE(SUBSTITUTE(SUBSTITUTE(SUBSTITUTE(SUBSTITUTE(SUBSTITUTE(SUBSTITUTE(SUBSTITUTE(SUBSTITUTE(Z127,$ED127,$ED$2&ROW($ED127)),$EC127,$EC$2&ROW($EC127)),$EB127,$EB$2&ROW($EB127)),$EA127,$EA$2&ROW($EA127)),$DZ127,$DZ$2&ROW($DZ127)),$DY127,$DY$2&ROW($DY127)),$DX127,$DX$2&ROW($DX127)),$DW127,$DW$2&ROW($DW127)),$DV127,$DV$2&ROW($DV127)),$DU127,$DU$2&ROW($DU127)),$DT127,$DT$2&ROW($DT127)),$DS127,$DS$2&ROW($DS127)))","v":0},{"$f":"IF(AA127=\"\",0,\"X=\"&SUBSTITUTE(SUBSTITUTE(SUBSTITUTE(SUBSTITUTE(SUBSTITUTE(SUBSTITUTE(SUBSTITUTE(SUBSTITUTE(SUBSTITUTE(SUBSTITUTE(SUBSTITUTE(SUBSTITUTE(AA127,$ED127,$ED$2&ROW($ED127)),$EC127,$EC$2&ROW($EC127)),$EB127,$EB$2&ROW($EB127)),$EA127,$EA$2&ROW($EA127)),$DZ127,$DZ$2&ROW($DZ127)),$DY127,$DY$2&ROW($DY127)),$DX127,$DX$2&ROW($DX127)),$DW127,$DW$2&ROW($DW127)),$DV127,$DV$2&ROW($DV127)),$DU127,$DU$2&ROW($DU127)),$DT127,$DT$2&ROW($DT127)),$DS127,$DS$2&ROW($DS127)))","v":0},{"$f":"IF(AB127=\"\",0,\"X=\"&SUBSTITUTE(SUBSTITUTE(SUBSTITUTE(SUBSTITUTE(SUBSTITUTE(SUBSTITUTE(SUBSTITUTE(SUBSTITUTE(SUBSTITUTE(SUBSTITUTE(SUBSTITUTE(SUBSTITUTE(AB127,$ED127,$ED$2&ROW($ED127)),$EC127,$EC$2&ROW($EC127)),$EB127,$EB$2&ROW($EB127)),$EA127,$EA$2&ROW($EA127)),$DZ127,$DZ$2&ROW($DZ127)),$DY127,$DY$2&ROW($DY127)),$DX127,$DX$2&ROW($DX127)),$DW127,$DW$2&ROW($DW127)),$DV127,$DV$2&ROW($DV127)),$DU127,$DU$2&ROW($DU127)),$DT127,$DT$2&ROW($DT127)),$DS127,$DS$2&ROW($DS127)))","v":0},null,null,"{Factor:WinterCF}","{Factor:SummerCF}",{"$f":"IFERROR(INDEX($EG127:$IV127,MATCH(0,COUNTIF($DR127:DT127,$EG127:$IV127),0)),\"\")","v":"{Weekly Hrs of Operation}"},{"$f":"IFERROR(INDEX($EG127:$IV127,MATCH(0,COUNTIF($DR127:DU127,$EG127:$IV127),0)),\"\")","v":"{Weeks Per Year}"},{"$f":"IFERROR(INDEX($EG127:$IV127,MATCH(0,COUNTIF($DR127:DV127,$EG127:$IV127),0)),\"\")","v":"{Measure:Quantity}"},{"$f":"IFERROR(INDEX($EG127:$IV127,MATCH(0,COUNTIF($DR127:DW127,$EG127:$IV127),0)),\"\")","v":"{System Compressor (HP)}"},{"$f":"IFERROR(INDEX($EG127:$IV127,MATCH(0,COUNTIF($DR127:DX127,$EG127:$IV127),0)),\"\")","v":""},{"$f":"IFERROR(INDEX($EG127:$IV127,MATCH(0,COUNTIF($DR127:DY127,$EG127:$IV127),0)),\"\")","v":""},{"$f":"IFERROR(INDEX($EG127:$IV127,MATCH(0,COUNTIF($DR127:DZ127,$EG127:$IV127),0)),\"\")","v":""},{"$f":"IFERROR(INDEX($EG127:$IV127,MATCH(0,COUNTIF($DR127:EA127,$EG127:$IV127),0)),\"\")","v":""},{"$f":"IFERROR(INDEX($EG127:$IV127,MATCH(0,COUNTIF($DR127:EB127,$EG127:$IV127),0)),\"\")","v":""},{"$f":"IFERROR(INDEX($EG127:$IV127,MATCH(0,COUNTIF($DR127:EC127,$EG127:$IV127),0)),\"\")","v":""},null,null,{"$f":"IFERROR(MID($G127,FIND(CHAR(160),SUBSTITUTE($G127,\"{\",CHAR(160),EG$1)),FIND(CHAR(160),SUBSTITUTE($G127,\"}\",CHAR(160),EG$1))-FIND(CHAR(160),SUBSTITUTE($G127,\"{\",CHAR(160),EG$1))+1),\"\")","v":""},{"$f":"IFERROR(MID($G127,FIND(CHAR(160),SUBSTITUTE($G127,\"{\",CHAR(160),EH$1)),FIND(CHAR(160),SUBSTITUTE($G127,\"}\",CHAR(160),EH$1))-FIND(CHAR(160),SUBSTITUTE($G127,\"{\",CHAR(160),EH$1))+1),\"\")","v":""},{"$f":"IFERROR(MID($G127,FIND(CHAR(160),SUBSTITUTE($G127,\"{\",CHAR(160),EI$1)),FIND(CHAR(160),SUBSTITUTE($G127,\"}\",CHAR(160),EI$1))-FIND(CHAR(160),SUBSTITUTE($G127,\"{\",CHAR(160),EI$1))+1),\"\")","v":""},{"$f":"IFERROR(MID($G127,FIND(CHAR(160),SUBSTITUTE($G127,\"{\",CHAR(160),EJ$1)),FIND(CHAR(160),SUBSTITUTE($G127,\"}\",CHAR(160),EJ$1))-FIND(CHAR(160),SUBSTITUTE($G127,\"{\",CHAR(160),EJ$1))+1),\"\")","v":""},{"$f":"IFERROR(MID($G127,FIND(CHAR(160),SUBSTITUTE($G127,\"{\",CHAR(160),EK$1)),FIND(CHAR(160),SUBSTITUTE($G127,\"}\",CHAR(160),EK$1))-FIND(CHAR(160),SUBSTITUTE($G127,\"{\",CHAR(160),EK$1))+1),\"\")","v":""},{"$f":"IFERROR(MID($G127,FIND(CHAR(160),SUBSTITUTE($G127,\"{\",CHAR(160),EL$1)),FIND(CHAR(160),SUBSTITUTE($G127,\"}\",CHAR(160),EL$1))-FIND(CHAR(160),SUBSTITUTE($G127,\"{\",CHAR(160),EL$1))+1),\"\")","v":""},{"$f":"IFERROR(MID($G127,FIND(CHAR(160),SUBSTITUTE($G127,\"{\",CHAR(160),EM$1)),FIND(CHAR(160),SUBSTITUTE($G127,\"}\",CHAR(160),EM$1))-FIND(CHAR(160),SUBSTITUTE($G127,\"{\",CHAR(160),EM$1))+1),\"\")","v":""},{"$f":"IFERROR(MID($G127,FIND(CHAR(160),SUBSTITUTE($G127,\"{\",CHAR(160),EN$1)),FIND(CHAR(160),SUBSTITUTE($G127,\"}\",CHAR(160),EN$1))-FIND(CHAR(160),SUBSTITUTE($G127,\"{\",CHAR(160),EN$1))+1),\"\")","v":""},{"$f":"IFERROR(MID($G127,FIND(CHAR(160),SUBSTITUTE($G127,\"{\",CHAR(160),EO$1)),FIND(CHAR(160),SUBSTITUTE($G127,\"}\",CHAR(160),EO$1))-FIND(CHAR(160),SUBSTITUTE($G127,\"{\",CHAR(160),EO$1))+1),\"\")","v":""},{"$f":"IFERROR(MID($G127,FIND(CHAR(160),SUBSTITUTE($G127,\"{\",CHAR(160),EP$1)),FIND(CHAR(160),SUBSTITUTE($G127,\"}\",CHAR(160),EP$1))-FIND(CHAR(160),SUBSTITUTE($G127,\"{\",CHAR(160),EP$1))+1),\"\")","v":""},{"$f":"IFERROR(MID($J127,FIND(CHAR(160),SUBSTITUTE($J127,\"{\",CHAR(160),EQ$1)),FIND(CHAR(160),SUBSTITUTE($J127,\"}\",CHAR(160),EQ$1))-FIND(CHAR(160),SUBSTITUTE($J127,\"{\",CHAR(160),EQ$1))+1),\"\")","v":""},{"$f":"IFERROR(MID($J127,FIND(CHAR(160),SUBSTITUTE($J127,\"{\",CHAR(160),ER$1)),FIND(CHAR(160),SUBSTITUTE($J127,\"}\",CHAR(160),ER$1))-FIND(CHAR(160),SUBSTITUTE($J127,\"{\",CHAR(160),ER$1))+1),\"\")","v":""},{"$f":"IFERROR(MID($J127,FIND(CHAR(160),SUBSTITUTE($J127,\"{\",CHAR(160),ES$1)),FIND(CHAR(160),SUBSTITUTE($J127,\"}\",CHAR(160),ES$1))-FIND(CHAR(160),SUBSTITUTE($J127,\"{\",CHAR(160),ES$1))+1),\"\")","v":""},{"$f":"IFERROR(MID($J127,FIND(CHAR(160),SUBSTITUTE($J127,\"{\",CHAR(160),ET$1)),FIND(CHAR(160),SUBSTITUTE($J127,\"}\",CHAR(160),ET$1))-FIND(CHAR(160),SUBSTITUTE($J127,\"{\",CHAR(160),ET$1))+1),\"\")","v":""},{"$f":"IFERROR(MID($J127,FIND(CHAR(160),SUBSTITUTE($J127,\"{\",CHAR(160),EU$1)),FIND(CHAR(160),SUBSTITUTE($J127,\"}\",CHAR(160),EU$1))-FIND(CHAR(160),SUBSTITUTE($J127,\"{\",CHAR(160),EU$1))+1),\"\")","v":""},{"$f":"IFERROR(MID($J127,FIND(CHAR(160),SUBSTITUTE($J127,\"{\",CHAR(160),EV$1)),FIND(CHAR(160),SUBSTITUTE($J127,\"}\",CHAR(160),EV$1))-FIND(CHAR(160),SUBSTITUTE($J127,\"{\",CHAR(160),EV$1))+1),\"\")","v":""},{"$f":"IFERROR(MID($J127,FIND(CHAR(160),SUBSTITUTE($J127,\"{\",CHAR(160),EW$1)),FIND(CHAR(160),SUBSTITUTE($J127,\"}\",CHAR(160),EW$1))-FIND(CHAR(160),SUBSTITUTE($J127,\"{\",CHAR(160),EW$1))+1),\"\")","v":""},{"$f":"IFERROR(MID($J127,FIND(CHAR(160),SUBSTITUTE($J127,\"{\",CHAR(160),EX$1)),FIND(CHAR(160),SUBSTITUTE($J127,\"}\",CHAR(160),EX$1))-FIND(CHAR(160),SUBSTITUTE($J127,\"{\",CHAR(160),EX$1))+1),\"\")","v":""},{"$f":"IFERROR(MID($J127,FIND(CHAR(160),SUBSTITUTE($J127,\"{\",CHAR(160),EY$1)),FIND(CHAR(160),SUBSTITUTE($J127,\"}\",CHAR(160),EY$1))-FIND(CHAR(160),SUBSTITUTE($J127,\"{\",CHAR(160),EY$1))+1),\"\")","v":""},{"$f":"IFERROR(MID($J127,FIND(CHAR(160),SUBSTITUTE($J127,\"{\",CHAR(160),EZ$1)),FIND(CHAR(160),SUBSTITUTE($J127,\"}\",CHAR(160),EZ$1))-FIND(CHAR(160),SUBSTITUTE($J127,\"{\",CHAR(160),EZ$1))+1),\"\")","v":""},{"$f":"IFERROR(MID($J127,FIND(CHAR(160),SUBSTITUTE($J127,\"{\",CHAR(160),FA$1)),FIND(CHAR(160),SUBSTITUTE($J127,\"}\",CHAR(160),FA$1))-FIND(CHAR(160),SUBSTITUTE($J127,\"{\",CHAR(160),FA$1))+1),\"\")","v":""},{"$f":"IFERROR(MID($J127,FIND(CHAR(160),SUBSTITUTE($J127,\"{\",CHAR(160),FB$1)),FIND(CHAR(160),SUBSTITUTE($J127,\"}\",CHAR(160),FB$1))-FIND(CHAR(160),SUBSTITUTE($J127,\"{\",CHAR(160),FB$1))+1),\"\")","v":""},{"$f":"IFERROR(MID($O127,FIND(CHAR(160),SUBSTITUTE($O127,\"{\",CHAR(160),FC$1)),FIND(CHAR(160),SUBSTITUTE($O127,\"}\",CHAR(160),FC$1))-FIND(CHAR(160),SUBSTITUTE($O127,\"{\",CHAR(160),FC$1))+1),\"\")","v":"{Weekly Hrs of Operation}"},{"$f":"IFERROR(MID($O127,FIND(CHAR(160),SUBSTITUTE($O127,\"{\",CHAR(160),FD$1)),FIND(CHAR(160),SUBSTITUTE($O127,\"}\",CHAR(160),FD$1))-FIND(CHAR(160),SUBSTITUTE($O127,\"{\",CHAR(160),FD$1))+1),\"\")","v":"{Weeks Per Year}"},{"$f":"IFERROR(MID($O127,FIND(CHAR(160),SUBSTITUTE($O127,\"{\",CHAR(160),FE$1)),FIND(CHAR(160),SUBSTITUTE($O127,\"}\",CHAR(160),FE$1))-FIND(CHAR(160),SUBSTITUTE($O127,\"{\",CHAR(160),FE$1))+1),\"\")","v":""},{"$f":"IFERROR(MID($O127,FIND(CHAR(160),SUBSTITUTE($O127,\"{\",CHAR(160),FF$1)),FIND(CHAR(160),SUBSTITUTE($O127,\"}\",CHAR(160),FF$1))-FIND(CHAR(160),SUBSTITUTE($O127,\"{\",CHAR(160),FF$1))+1),\"\")","v":""},{"$f":"IFERROR(MID($O127,FIND(CHAR(160),SUBSTITUTE($O127,\"{\",CHAR(160),FG$1)),FIND(CHAR(160),SUBSTITUTE($O127,\"}\",CHAR(160),FG$1))-FIND(CHAR(160),SUBSTITUTE($O127,\"{\",CHAR(160),FG$1))+1),\"\")","v":""},{"$f":"IFERROR(MID($O127,FIND(CHAR(160),SUBSTITUTE($O127,\"{\",CHAR(160),FH$1)),FIND(CHAR(160),SUBSTITUTE($O127,\"}\",CHAR(160),FH$1))-FIND(CHAR(160),SUBSTITUTE($O127,\"{\",CHAR(160),FH$1))+1),\"\")","v":""},{"$f":"IFERROR(MID($O127,FIND(CHAR(160),SUBSTITUTE($O127,\"{\",CHAR(160),FI$1)),FIND(CHAR(160),SUBSTITUTE($O127,\"}\",CHAR(160),FI$1))-FIND(CHAR(160),SUBSTITUTE($O127,\"{\",CHAR(160),FI$1))+1),\"\")","v":""},{"$f":"IFERROR(MID($O127,FIND(CHAR(160),SUBSTITUTE($O127,\"{\",CHAR(160),FJ$1)),FIND(CHAR(160),SUBSTITUTE($O127,\"}\",CHAR(160),FJ$1))-FIND(CHAR(160),SUBSTITUTE($O127,\"{\",CHAR(160),FJ$1))+1),\"\")","v":""},{"$f":"IFERROR(MID($O127,FIND(CHAR(160),SUBSTITUTE($O127,\"{\",CHAR(160),FK$1)),FIND(CHAR(160),SUBSTITUTE($O127,\"}\",CHAR(160),FK$1))-FIND(CHAR(160),SUBSTITUTE($O127,\"{\",CHAR(160),FK$1))+1),\"\")","v":"{Measure:Quantity}"},{"$f":"IFERROR(MID($O127,FIND(CHAR(160),SUBSTITUTE($O127,\"{\",CHAR(160),FL$1)),FIND(CHAR(160),SUBSTITUTE($O127,\"}\",CHAR(160),FL$1))-FIND(CHAR(160),SUBSTITUTE($O127,\"{\",CHAR(160),FL$1))+1),\"\")","v":"{System Compressor (HP)}"},{"$f":"IFERROR(MID($R127,FIND(CHAR(160),SUBSTITUTE($R127,\"{\",CHAR(160),FM$1)),FIND(CHAR(160),SUBSTITUTE($R127,\"}\",CHAR(160),FM$1))-FIND(CHAR(160),SUBSTITUTE($R127,\"{\",CHAR(160),FM$1))+1),\"\")","v":""},{"$f":"IFERROR(MID($R127,FIND(CHAR(160),SUBSTITUTE($R127,\"{\",CHAR(160),FN$1)),FIND(CHAR(160),SUBSTITUTE($R127,\"}\",CHAR(160),FN$1))-FIND(CHAR(160),SUBSTITUTE($R127,\"{\",CHAR(160),FN$1))+1),\"\")","v":""},{"$f":"IFERROR(MID($R127,FIND(CHAR(160),SUBSTITUTE($R127,\"{\",CHAR(160),FO$1)),FIND(CHAR(160),SUBSTITUTE($R127,\"}\",CHAR(160),FO$1))-FIND(CHAR(160),SUBSTITUTE($R127,\"{\",CHAR(160),FO$1))+1),\"\")","v":""},{"$f":"IFERROR(MID($R127,FIND(CHAR(160),SUBSTITUTE($R127,\"{\",CHAR(160),FP$1)),FIND(CHAR(160),SUBSTITUTE($R127,\"}\",CHAR(160),FP$1))-FIND(CHAR(160),SUBSTITUTE($R127,\"{\",CHAR(160),FP$1))+1),\"\")","v":""},{"$f":"IFERROR(MID($R127,FIND(CHAR(160),SUBSTITUTE($R127,\"{\",CHAR(160),FQ$1)),FIND(CHAR(160),SUBSTITUTE($R127,\"}\",CHAR(160),FQ$1))-FIND(CHAR(160),SUBSTITUTE($R127,\"{\",CHAR(160),FQ$1))+1),\"\")","v":""},{"$f":"IFERROR(MID($R127,FIND(CHAR(160),SUBSTITUTE($R127,\"{\",CHAR(160),FR$1)),FIND(CHAR(160),SUBSTITUTE($R127,\"}\",CHAR(160),FR$1))-FIND(CHAR(160),SUBSTITUTE($R127,\"{\",CHAR(160),FR$1))+1),\"\")","v":""},{"$f":"IFERROR(MID($R127,FIND(CHAR(160),SUBSTITUTE($R127,\"{\",CHAR(160),FS$1)),FIND(CHAR(160),SUBSTITUTE($R127,\"}\",CHAR(160),FS$1))-FIND(CHAR(160),SUBSTITUTE($R127,\"{\",CHAR(160),FS$1))+1),\"\")","v":""},{"$f":"IFERROR(MID($R127,FIND(CHAR(160),SUBSTITUTE($R127,\"{\",CHAR(160),FT$1)),FIND(CHAR(160),SUBSTITUTE($R127,\"}\",CHAR(160),FT$1))-FIND(CHAR(160),SUBSTITUTE($R127,\"{\",CHAR(160),FT$1))+1),\"\")","v":""},{"$f":"IFERROR(MID($R127,FIND(CHAR(160),SUBSTITUTE($R127,\"{\",CHAR(160),FU$1)),FIND(CHAR(160),SUBSTITUTE($R127,\"}\",CHAR(160),FU$1))-FIND(CHAR(160),SUBSTITUTE($R127,\"{\",CHAR(160),FU$1))+1),\"\")","v":"{Measure:Quantity}"},{"$f":"IFERROR(MID($R127,FIND(CHAR(160),SUBSTITUTE($R127,\"{\",CHAR(160),FV$1)),FIND(CHAR(160),SUBSTITUTE($R127,\"}\",CHAR(160),FV$1))-FIND(CHAR(160),SUBSTITUTE($R127,\"{\",CHAR(160),FV$1))+1),\"\")","v":"{System Compressor (HP)}"},{"$f":"IFERROR(MID($U127,FIND(CHAR(160),SUBSTITUTE($U127,\"{\",CHAR(160),FW$1)),FIND(CHAR(160),SUBSTITUTE($U127,\"}\",CHAR(160),FW$1))-FIND(CHAR(160),SUBSTITUTE($U127,\"{\",CHAR(160),FW$1))+1),\"\")","v":"{Factor:WinterCF}"},{"$f":"IFERROR(MID($U127,FIND(CHAR(160),SUBSTITUTE($U127,\"{\",CHAR(160),FX$1)),FIND(CHAR(160),SUBSTITUTE($U127,\"}\",CHAR(160),FX$1))-FIND(CHAR(160),SUBSTITUTE($U127,\"{\",CHAR(160),FX$1))+1),\"\")","v":""},{"$f":"IFERROR(MID($U127,FIND(CHAR(160),SUBSTITUTE($U127,\"{\",CHAR(160),FY$1)),FIND(CHAR(160),SUBSTITUTE($U127,\"}\",CHAR(160),FY$1))-FIND(CHAR(160),SUBSTITUTE($U127,\"{\",CHAR(160),FY$1))+1),\"\")","v":""},{"$f":"IFERROR(MID($U127,FIND(CHAR(160),SUBSTITUTE($U127,\"{\",CHAR(160),FZ$1)),FIND(CHAR(160),SUBSTITUTE($U127,\"}\",CHAR(160),FZ$1))-FIND(CHAR(160),SUBSTITUTE($U127,\"{\",CHAR(160),FZ$1))+1),\"\")","v":""},{"$f":"IFERROR(MID($U127,FIND(CHAR(160),SUBSTITUTE($U127,\"{\",CHAR(160),GA$1)),FIND(CHAR(160),SUBSTITUTE($U127,\"}\",CHAR(160),GA$1))-FIND(CHAR(160),SUBSTITUTE($U127,\"{\",CHAR(160),GA$1))+1),\"\")","v":""},{"$f":"IFERROR(MID($U127,FIND(CHAR(160),SUBSTITUTE($U127,\"{\",CHAR(160),GB$1)),FIND(CHAR(160),SUBSTITUTE($U127,\"}\",CHAR(160),GB$1))-FIND(CHAR(160),SUBSTITUTE($U127,\"{\",CHAR(160),GB$1))+1),\"\")","v":""},{"$f":"IFERROR(MID($U127,FIND(CHAR(160),SUBSTITUTE($U127,\"{\",CHAR(160),GC$1)),FIND(CHAR(160),SUBSTITUTE($U127,\"}\",CHAR(160),GC$1))-FIND(CHAR(160),SUBSTITUTE($U127,\"{\",CHAR(160),GC$1))+1),\"\")","v":""},{"$f":"IFERROR(MID($U127,FIND(CHAR(160),SUBSTITUTE($U127,\"{\",CHAR(160),GD$1)),FIND(CHAR(160),SUBSTITUTE($U127,\"}\",CHAR(160),GD$1))-FIND(CHAR(160),SUBSTITUTE($U127,\"{\",CHAR(160),GD$1))+1),\"\")","v":""},{"$f":"IFERROR(MID($U127,FIND(CHAR(160),SUBSTITUTE($U127,\"{\",CHAR(160),GE$1)),FIND(CHAR(160),SUBSTITUTE($U127,\"}\",CHAR(160),GE$1))-FIND(CHAR(160),SUBSTITUTE($U127,\"{\",CHAR(160),GE$1))+1),\"\")","v":"{Measure:Quantity}"},{"$f":"IFERROR(MID($U127,FIND(CHAR(160),SUBSTITUTE($U127,\"{\",CHAR(160),GF$1)),FIND(CHAR(160),SUBSTITUTE($U127,\"}\",CHAR(160),GF$1))-FIND(CHAR(160),SUBSTITUTE($U127,\"{\",CHAR(160),GF$1))+1),\"\")","v":"{System Compressor (HP)}"},{"$f":"IFERROR(MID($V127,FIND(CHAR(160),SUBSTITUTE($V127,\"{\",CHAR(160),GG$1)),FIND(CHAR(160),SUBSTITUTE($V127,\"}\",CHAR(160),GG$1))-FIND(CHAR(160),SUBSTITUTE($V127,\"{\",CHAR(160),GG$1))+1),\"\")","v":"{Factor:SummerCF}"},{"$f":"IFERROR(MID($V127,FIND(CHAR(160),SUBSTITUTE($V127,\"{\",CHAR(160),GH$1)),FIND(CHAR(160),SUBSTITUTE($V127,\"}\",CHAR(160),GH$1))-FIND(CHAR(160),SUBSTITUTE($V127,\"{\",CHAR(160),GH$1))+1),\"\")","v":""},{"$f":"IFERROR(MID($V127,FIND(CHAR(160),SUBSTITUTE($V127,\"{\",CHAR(160),GI$1)),FIND(CHAR(160),SUBSTITUTE($V127,\"}\",CHAR(160),GI$1))-FIND(CHAR(160),SUBSTITUTE($V127,\"{\",CHAR(160),GI$1))+1),\"\")","v":""},{"$f":"IFERROR(MID($V127,FIND(CHAR(160),SUBSTITUTE($V127,\"{\",CHAR(160),GJ$1)),FIND(CHAR(160),SUBSTITUTE($V127,\"}\",CHAR(160),GJ$1))-FIND(CHAR(160),SUBSTITUTE($V127,\"{\",CHAR(160),GJ$1))+1),\"\")","v":""},{"$f":"IFERROR(MID($V127,FIND(CHAR(160),SUBSTITUTE($V127,\"{\",CHAR(160),GK$1)),FIND(CHAR(160),SUBSTITUTE($V127,\"}\",CHAR(160),GK$1))-FIND(CHAR(160),SUBSTITUTE($V127,\"{\",CHAR(160),GK$1))+1),\"\")","v":""},{"$f":"IFERROR(MID($V127,FIND(CHAR(160),SUBSTITUTE($V127,\"{\",CHAR(160),GL$1)),FIND(CHAR(160),SUBSTITUTE($V127,\"}\",CHAR(160),GL$1))-FIND(CHAR(160),SUBSTITUTE($V127,\"{\",CHAR(160),GL$1))+1),\"\")","v":""},{"$f":"IFERROR(MID($V127,FIND(CHAR(160),SUBSTITUTE($V127,\"{\",CHAR(160),GM$1)),FIND(CHAR(160),SUBSTITUTE($V127,\"}\",CHAR(160),GM$1))-FIND(CHAR(160),SUBSTITUTE($V127,\"{\",CHAR(160),GM$1))+1),\"\")","v":""},{"$f":"IFERROR(MID($V127,FIND(CHAR(160),SUBSTITUTE($V127,\"{\",CHAR(160),GN$1)),FIND(CHAR(160),SUBSTITUTE($V127,\"}\",CHAR(160),GN$1))-FIND(CHAR(160),SUBSTITUTE($V127,\"{\",CHAR(160),GN$1))+1),\"\")","v":""},{"$f":"IFERROR(MID($V127,FIND(CHAR(160),SUBSTITUTE($V127,\"{\",CHAR(160),GO$1)),FIND(CHAR(160),SUBSTITUTE($V127,\"}\",CHAR(160),GO$1))-FIND(CHAR(160),SUBSTITUTE($V127,\"{\",CHAR(160),GO$1))+1),\"\")","v":"{Measure:Quantity}"},{"$f":"IFERROR(MID($V127,FIND(CHAR(160),SUBSTITUTE($V127,\"{\",CHAR(160),GP$1)),FIND(CHAR(160),SUBSTITUTE($V127,\"}\",CHAR(160),GP$1))-FIND(CHAR(160),SUBSTITUTE($V127,\"{\",CHAR(160),GP$1))+1),\"\")","v":"{System Compressor (HP)}"},{"$f":"IFERROR(MID($W127,FIND(CHAR(160),SUBSTITUTE($W127,\"{\",CHAR(160),GQ$1)),FIND(CHAR(160),SUBSTITUTE($W127,\"}\",CHAR(160),GQ$1))-FIND(CHAR(160),SUBSTITUTE($W127,\"{\",CHAR(160),GQ$1))+1),\"\")","v":""},{"$f":"IFERROR(MID($W127,FIND(CHAR(160),SUBSTITUTE($W127,\"{\",CHAR(160),GR$1)),FIND(CHAR(160),SUBSTITUTE($W127,\"}\",CHAR(160),GR$1))-FIND(CHAR(160),SUBSTITUTE($W127,\"{\",CHAR(160),GR$1))+1),\"\")","v":""},{"$f":"IFERROR(MID($W127,FIND(CHAR(160),SUBSTITUTE($W127,\"{\",CHAR(160),GS$1)),FIND(CHAR(160),SUBSTITUTE($W127,\"}\",CHAR(160),GS$1))-FIND(CHAR(160),SUBSTITUTE($W127,\"{\",CHAR(160),GS$1))+1),\"\")","v":""},{"$f":"IFERROR(MID($W127,FIND(CHAR(160),SUBSTITUTE($W127,\"{\",CHAR(160),GT$1)),FIND(CHAR(160),SUBSTITUTE($W127,\"}\",CHAR(160),GT$1))-FIND(CHAR(160),SUBSTITUTE($W127,\"{\",CHAR(160),GT$1))+1),\"\")","v":""},{"$f":"IFERROR(MID($W127,FIND(CHAR(160),SUBSTITUTE($W127,\"{\",CHAR(160),GU$1)),FIND(CHAR(160),SUBSTITUTE($W127,\"}\",CHAR(160),GU$1))-FIND(CHAR(160),SUBSTITUTE($W127,\"{\",CHAR(160),GU$1))+1),\"\")","v":""},{"$f":"IFERROR(MID($W127,FIND(CHAR(160),SUBSTITUTE($W127,\"{\",CHAR(160),GV$1)),FIND(CHAR(160),SUBSTITUTE($W127,\"}\",CHAR(160),GV$1))-FIND(CHAR(160),SUBSTITUTE($W127,\"{\",CHAR(160),GV$1))+1),\"\")","v":""},{"$f":"IFERROR(MID($W127,FIND(CHAR(160),SUBSTITUTE($W127,\"{\",CHAR(160),GW$1)),FIND(CHAR(160),SUBSTITUTE($W127,\"}\",CHAR(160),GW$1))-FIND(CHAR(160),SUBSTITUTE($W127,\"{\",CHAR(160),GW$1))+1),\"\")","v":""},{"$f":"IFERROR(MID($W127,FIND(CHAR(160),SUBSTITUTE($W127,\"{\",CHAR(160),GX$1)),FIND(CHAR(160),SUBSTITUTE($W127,\"}\",CHAR(160),GX$1))-FIND(CHAR(160),SUBSTITUTE($W127,\"{\",CHAR(160),GX$1))+1),\"\")","v":""},{"$f":"IFERROR(MID($W127,FIND(CHAR(160),SUBSTITUTE($W127,\"{\",CHAR(160),GY$1)),FIND(CHAR(160),SUBSTITUTE($W127,\"}\",CHAR(160),GY$1))-FIND(CHAR(160),SUBSTITUTE($W127,\"{\",CHAR(160),GY$1))+1),\"\")","v":""},{"$f":"IFERROR(MID($W127,FIND(CHAR(160),SUBSTITUTE($W127,\"{\",CHAR(160),GZ$1)),FIND(CHAR(160),SUBSTITUTE($W127,\"}\",CHAR(160),GZ$1))-FIND(CHAR(160),SUBSTITUTE($W127,\"{\",CHAR(160),GZ$1))+1),\"\")","v":""},{"$f":"IFERROR(MID($X127,FIND(CHAR(160),SUBSTITUTE($X127,\"{\",CHAR(160),HA$1)),FIND(CHAR(160),SUBSTITUTE($X127,\"}\",CHAR(160),HA$1))-FIND(CHAR(160),SUBSTITUTE($X127,\"{\",CHAR(160),HA$1))+1),\"\")","v":""},{"$f":"IFERROR(MID($X127,FIND(CHAR(160),SUBSTITUTE($X127,\"{\",CHAR(160),HB$1)),FIND(CHAR(160),SUBSTITUTE($X127,\"}\",CHAR(160),HB$1))-FIND(CHAR(160),SUBSTITUTE($X127,\"{\",CHAR(160),HB$1))+1),\"\")","v":""},{"$f":"IFERROR(MID($X127,FIND(CHAR(160),SUBSTITUTE($X127,\"{\",CHAR(160),HC$1)),FIND(CHAR(160),SUBSTITUTE($X127,\"}\",CHAR(160),HC$1))-FIND(CHAR(160),SUBSTITUTE($X127,\"{\",CHAR(160),HC$1))+1),\"\")","v":""},{"$f":"IFERROR(MID($X127,FIND(CHAR(160),SUBSTITUTE($X127,\"{\",CHAR(160),HD$1)),FIND(CHAR(160),SUBSTITUTE($X127,\"}\",CHAR(160),HD$1))-FIND(CHAR(160),SUBSTITUTE($X127,\"{\",CHAR(160),HD$1))+1),\"\")","v":""},{"$f":"IFERROR(MID($X127,FIND(CHAR(160),SUBSTITUTE($X127,\"{\",CHAR(160),HE$1)),FIND(CHAR(160),SUBSTITUTE($X127,\"}\",CHAR(160),HE$1))-FIND(CHAR(160),SUBSTITUTE($X127,\"{\",CHAR(160),HE$1))+1),\"\")","v":""},{"$f":"IFERROR(MID($X127,FIND(CHAR(160),SUBSTITUTE($X127,\"{\",CHAR(160),HF$1)),FIND(CHAR(160),SUBSTITUTE($X127,\"}\",CHAR(160),HF$1))-FIND(CHAR(160),SUBSTITUTE($X127,\"{\",CHAR(160),HF$1))+1),\"\")","v":""},{"$f":"IFERROR(MID($X127,FIND(CHAR(160),SUBSTITUTE($X127,\"{\",CHAR(160),HG$1)),FIND(CHAR(160),SUBSTITUTE($X127,\"}\",CHAR(160),HG$1))-FIND(CHAR(160),SUBSTITUTE($X127,\"{\",CHAR(160),HG$1))+1),\"\")","v":""},{"$f":"IFERROR(MID($X127,FIND(CHAR(160),SUBSTITUTE($X127,\"{\",CHAR(160),HH$1)),FIND(CHAR(160),SUBSTITUTE($X127,\"}\",CHAR(160),HH$1))-FIND(CHAR(160),SUBSTITUTE($X127,\"{\",CHAR(160),HH$1))+1),\"\")","v":""},{"$f":"IFERROR(MID($X127,FIND(CHAR(160),SUBSTITUTE($X127,\"{\",CHAR(160),HI$1)),FIND(CHAR(160),SUBSTITUTE($X127,\"}\",CHAR(160),HI$1))-FIND(CHAR(160),SUBSTITUTE($X127,\"{\",CHAR(160),HI$1))+1),\"\")","v":""},{"$f":"IFERROR(MID($X127,FIND(CHAR(160),SUBSTITUTE($X127,\"{\",CHAR(160),HJ$1)),FIND(CHAR(160),SUBSTITUTE($X127,\"}\",CHAR(160),HJ$1))-FIND(CHAR(160),SUBSTITUTE($X127,\"{\",CHAR(160),HJ$1))+1),\"\")","v":""},{"$f":"IFERROR(MID($Y127,FIND(CHAR(160),SUBSTITUTE($Y127,\"{\",CHAR(160),HK$1)),FIND(CHAR(160),SUBSTITUTE($Y127,\"}\",CHAR(160),HK$1))-FIND(CHAR(160),SUBSTITUTE($Y127,\"{\",CHAR(160),HK$1))+1),\"\")","v":""},{"$f":"IFERROR(MID($Y127,FIND(CHAR(160),SUBSTITUTE($Y127,\"{\",CHAR(160),HL$1)),FIND(CHAR(160),SUBSTITUTE($Y127,\"}\",CHAR(160),HL$1))-FIND(CHAR(160),SUBSTITUTE($Y127,\"{\",CHAR(160),HL$1))+1),\"\")","v":""},{"$f":"IFERROR(MID($Y127,FIND(CHAR(160),SUBSTITUTE($Y127,\"{\",CHAR(160),HM$1)),FIND(CHAR(160),SUBSTITUTE($Y127,\"}\",CHAR(160),HM$1))-FIND(CHAR(160),SUBSTITUTE($Y127,\"{\",CHAR(160),HM$1))+1),\"\")","v":""},{"$f":"IFERROR(MID($Y127,FIND(CHAR(160),SUBSTITUTE($Y127,\"{\",CHAR(160),HN$1)),FIND(CHAR(160),SUBSTITUTE($Y127,\"}\",CHAR(160),HN$1))-FIND(CHAR(160),SUBSTITUTE($Y127,\"{\",CHAR(160),HN$1))+1),\"\")","v":""},{"$f":"IFERROR(MID($Y127,FIND(CHAR(160),SUBSTITUTE($Y127,\"{\",CHAR(160),HO$1)),FIND(CHAR(160),SUBSTITUTE($Y127,\"}\",CHAR(160),HO$1))-FIND(CHAR(160),SUBSTITUTE($Y127,\"{\",CHAR(160),HO$1))+1),\"\")","v":""},{"$f":"IFERROR(MID($Y127,FIND(CHAR(160),SUBSTITUTE($Y127,\"{\",CHAR(160),HP$1)),FIND(CHAR(160),SUBSTITUTE($Y127,\"}\",CHAR(160),HP$1))-FIND(CHAR(160),SUBSTITUTE($Y127,\"{\",CHAR(160),HP$1))+1),\"\")","v":""},{"$f":"IFERROR(MID($Y127,FIND(CHAR(160),SUBSTITUTE($Y127,\"{\",CHAR(160),HQ$1)),FIND(CHAR(160),SUBSTITUTE($Y127,\"}\",CHAR(160),HQ$1))-FIND(CHAR(160),SUBSTITUTE($Y127,\"{\",CHAR(160),HQ$1))+1),\"\")","v":""},{"$f":"IFERROR(MID($Y127,FIND(CHAR(160),SUBSTITUTE($Y127,\"{\",CHAR(160),HR$1)),FIND(CHAR(160),SUBSTITUTE($Y127,\"}\",CHAR(160),HR$1))-FIND(CHAR(160),SUBSTITUTE($Y127,\"{\",CHAR(160),HR$1))+1),\"\")","v":""},{"$f":"IFERROR(MID($Y127,FIND(CHAR(160),SUBSTITUTE($Y127,\"{\",CHAR(160),HS$1)),FIND(CHAR(160),SUBSTITUTE($Y127,\"}\",CHAR(160),HS$1))-FIND(CHAR(160),SUBSTITUTE($Y127,\"{\",CHAR(160),HS$1))+1),\"\")","v":""},{"$f":"IFERROR(MID($Y127,FIND(CHAR(160),SUBSTITUTE($Y127,\"{\",CHAR(160),HT$1)),FIND(CHAR(160),SUBSTITUTE($Y127,\"}\",CHAR(160),HT$1))-FIND(CHAR(160),SUBSTITUTE($Y127,\"{\",CHAR(160),HT$1))+1),\"\")","v":""},{"$f":"IFERROR(MID($Z127,FIND(CHAR(160),SUBSTITUTE($Z127,\"{\",CHAR(160),HU$1)),FIND(CHAR(160),SUBSTITUTE($Z127,\"}\",CHAR(160),HU$1))-FIND(CHAR(160),SUBSTITUTE($Z127,\"{\",CHAR(160),HU$1))+1),\"\")","v":""},{"$f":"IFERROR(MID($Z127,FIND(CHAR(160),SUBSTITUTE($Z127,\"{\",CHAR(160),HV$1)),FIND(CHAR(160),SUBSTITUTE($Z127,\"}\",CHAR(160),HV$1))-FIND(CHAR(160),SUBSTITUTE($Z127,\"{\",CHAR(160),HV$1))+1),\"\")","v":""},{"$f":"IFERROR(MID($Z127,FIND(CHAR(160),SUBSTITUTE($Z127,\"{\",CHAR(160),HW$1)),FIND(CHAR(160),SUBSTITUTE($Z127,\"}\",CHAR(160),HW$1))-FIND(CHAR(160),SUBSTITUTE($Z127,\"{\",CHAR(160),HW$1))+1),\"\")","v":""},{"$f":"IFERROR(MID($Z127,FIND(CHAR(160),SUBSTITUTE($Z127,\"{\",CHAR(160),HX$1)),FIND(CHAR(160),SUBSTITUTE($Z127,\"}\",CHAR(160),HX$1))-FIND(CHAR(160),SUBSTITUTE($Z127,\"{\",CHAR(160),HX$1))+1),\"\")","v":""},{"$f":"IFERROR(MID($Z127,FIND(CHAR(160),SUBSTITUTE($Z127,\"{\",CHAR(160),HY$1)),FIND(CHAR(160),SUBSTITUTE($Z127,\"}\",CHAR(160),HY$1))-FIND(CHAR(160),SUBSTITUTE($Z127,\"{\",CHAR(160),HY$1))+1),\"\")","v":""},{"$f":"IFERROR(MID($Z127,FIND(CHAR(160),SUBSTITUTE($Z127,\"{\",CHAR(160),HZ$1)),FIND(CHAR(160),SUBSTITUTE($Z127,\"}\",CHAR(160),HZ$1))-FIND(CHAR(160),SUBSTITUTE($Z127,\"{\",CHAR(160),HZ$1))+1),\"\")","v":""},{"$f":"IFERROR(MID($Z127,FIND(CHAR(160),SUBSTITUTE($Z127,\"{\",CHAR(160),IA$1)),FIND(CHAR(160),SUBSTITUTE($Z127,\"}\",CHAR(160),IA$1))-FIND(CHAR(160),SUBSTITUTE($Z127,\"{\",CHAR(160),IA$1))+1),\"\")","v":""},{"$f":"IFERROR(MID($Z127,FIND(CHAR(160),SUBSTITUTE($Z127,\"{\",CHAR(160),IB$1)),FIND(CHAR(160),SUBSTITUTE($Z127,\"}\",CHAR(160),IB$1))-FIND(CHAR(160),SUBSTITUTE($Z127,\"{\",CHAR(160),IB$1))+1),\"\")","v":""},{"$f":"IFERROR(MID($Z127,FIND(CHAR(160),SUBSTITUTE($Z127,\"{\",CHAR(160),IC$1)),FIND(CHAR(160),SUBSTITUTE($Z127,\"}\",CHAR(160),IC$1))-FIND(CHAR(160),SUBSTITUTE($Z127,\"{\",CHAR(160),IC$1))+1),\"\")","v":""},{"$f":"IFERROR(MID($Z127,FIND(CHAR(160),SUBSTITUTE($Z127,\"{\",CHAR(160),ID$1)),FIND(CHAR(160),SUBSTITUTE($Z127,\"}\",CHAR(160),ID$1))-FIND(CHAR(160),SUBSTITUTE($Z127,\"{\",CHAR(160),ID$1))+1),\"\")","v":""},{"$f":"IFERROR(MID($AA127,FIND(CHAR(160),SUBSTITUTE($AA127,\"{\",CHAR(160),IE$1)),FIND(CHAR(160),SUBSTITUTE($AA127,\"}\",CHAR(160),IE$1))-FIND(CHAR(160),SUBSTITUTE($AA127,\"{\",CHAR(160),IE$1))+1),\"\")","v":""},{"$f":"IFERROR(MID($AA127,FIND(CHAR(160),SUBSTITUTE($AA127,\"{\",CHAR(160),IF$1)),FIND(CHAR(160),SUBSTITUTE($AA127,\"}\",CHAR(160),IF$1))-FIND(CHAR(160),SUBSTITUTE($AA127,\"{\",CHAR(160),IF$1))+1),\"\")","v":""},{"$f":"IFERROR(MID($AA127,FIND(CHAR(160),SUBSTITUTE($AA127,\"{\",CHAR(160),IG$1)),FIND(CHAR(160),SUBSTITUTE($AA127,\"}\",CHAR(160),IG$1))-FIND(CHAR(160),SUBSTITUTE($AA127,\"{\",CHAR(160),IG$1))+1),\"\")","v":""},{"$f":"IFERROR(MID($AA127,FIND(CHAR(160),SUBSTITUTE($AA127,\"{\",CHAR(160),IH$1)),FIND(CHAR(160),SUBSTITUTE($AA127,\"}\",CHAR(160),IH$1))-FIND(CHAR(160),SUBSTITUTE($AA127,\"{\",CHAR(160),IH$1))+1),\"\")","v":""},{"$f":"IFERROR(MID($AA127,FIND(CHAR(160),SUBSTITUTE($AA127,\"{\",CHAR(160),II$1)),FIND(CHAR(160),SUBSTITUTE($AA127,\"}\",CHAR(160),II$1))-FIND(CHAR(160),SUBSTITUTE($AA127,\"{\",CHAR(160),II$1))+1),\"\")","v":""},{"$f":"IFERROR(MID($AA127,FIND(CHAR(160),SUBSTITUTE($AA127,\"{\",CHAR(160),IJ$1)),FIND(CHAR(160),SUBSTITUTE($AA127,\"}\",CHAR(160),IJ$1))-FIND(CHAR(160),SUBSTITUTE($AA127,\"{\",CHAR(160),IJ$1))+1),\"\")","v":""},{"$f":"IFERROR(MID($AA127,FIND(CHAR(160),SUBSTITUTE($AA127,\"{\",CHAR(160),IK$1)),FIND(CHAR(160),SUBSTITUTE($AA127,\"}\",CHAR(160),IK$1))-FIND(CHAR(160),SUBSTITUTE($AA127,\"{\",CHAR(160),IK$1))+1),\"\")","v":""},{"$f":"IFERROR(MID($AA127,FIND(CHAR(160),SUBSTITUTE($AA127,\"{\",CHAR(160),IL$1)),FIND(CHAR(160),SUBSTITUTE($AA127,\"}\",CHAR(160),IL$1))-FIND(CHAR(160),SUBSTITUTE($AA127,\"{\",CHAR(160),IL$1))+1),\"\")","v":""},{"$f":"IFERROR(MID($AA127,FIND(CHAR(160),SUBSTITUTE($AA127,\"{\",CHAR(160),IM$1)),FIND(CHAR(160),SUBSTITUTE($AA127,\"}\",CHAR(160),IM$1))-FIND(CHAR(160),SUBSTITUTE($AA127,\"{\",CHAR(160),IM$1))+1),\"\")","v":""},{"$f":"IFERROR(MID($AA127,FIND(CHAR(160),SUBSTITUTE($AA127,\"{\",CHAR(160),IN$1)),FIND(CHAR(160),SUBSTITUTE($AA127,\"}\",CHAR(160),IN$1))-FIND(CHAR(160),SUBSTITUTE($AA127,\"{\",CHAR(160),IN$1))+1),\"\")","v":""},{"$f":"IFERROR(MID($AB127,FIND(CHAR(160),SUBSTITUTE($AB127,\"{\",CHAR(160),IO$1)),FIND(CHAR(160),SUBSTITUTE($AB127,\"}\",CHAR(160),IO$1))-FIND(CHAR(160),SUBSTITUTE($AB127,\"{\",CHAR(160),IO$1))+1),\"\")","v":""},{"$f":"IFERROR(MID($AB127,FIND(CHAR(160),SUBSTITUTE($AB127,\"{\",CHAR(160),IP$1)),FIND(CHAR(160),SUBSTITUTE($AB127,\"}\",CHAR(160),IP$1))-FIND(CHAR(160),SUBSTITUTE($AB127,\"{\",CHAR(160),IP$1))+1),\"\")","v":""},{"$f":"IFERROR(MID($AB127,FIND(CHAR(160),SUBSTITUTE($AB127,\"{\",CHAR(160),IQ$1)),FIND(CHAR(160),SUBSTITUTE($AB127,\"}\",CHAR(160),IQ$1))-FIND(CHAR(160),SUBSTITUTE($AB127,\"{\",CHAR(160),IQ$1))+1),\"\")","v":""},{"$f":"IFERROR(MID($AB127,FIND(CHAR(160),SUBSTITUTE($AB127,\"{\",CHAR(160),IR$1)),FIND(CHAR(160),SUBSTITUTE($AB127,\"}\",CHAR(160),IR$1))-FIND(CHAR(160),SUBSTITUTE($AB127,\"{\",CHAR(160),IR$1))+1),\"\")","v":""},{"$f":"IFERROR(MID($AB127,FIND(CHAR(160),SUBSTITUTE($AB127,\"{\",CHAR(160),IS$1)),FIND(CHAR(160),SUBSTITUTE($AB127,\"}\",CHAR(160),IS$1))-FIND(CHAR(160),SUBSTITUTE($AB127,\"{\",CHAR(160),IS$1))+1),\"\")","v":""},{"$f":"IFERROR(MID($AB127,FIND(CHAR(160),SUBSTITUTE($AB127,\"{\",CHAR(160),IT$1)),FIND(CHAR(160),SUBSTITUTE($AB127,\"}\",CHAR(160),IT$1))-FIND(CHAR(160),SUBSTITUTE($AB127,\"{\",CHAR(160),IT$1))+1),\"\")","v":""},{"$f":"IFERROR(MID($AB127,FIND(CHAR(160),SUBSTITUTE($AB127,\"{\",CHAR(160),IU$1)),FIND(CHAR(160),SUBSTITUTE($AB127,\"}\",CHAR(160),IU$1))-FIND(CHAR(160),SUBSTITUTE($AB127,\"{\",CHAR(160),IU$1))+1),\"\")","v":""},{"$f":"IFERROR(MID($AB127,FIND(CHAR(160),SUBSTITUTE($AB127,\"{\",CHAR(160),IV$1)),FIND(CHAR(160),SUBSTITUTE($AB127,\"}\",CHAR(160),IV$1))-FIND(CHAR(160),SUBSTITUTE($AB127,\"{\",CHAR(160),IV$1))+1),\"\")","v":""},{"$f":"IFERROR(MID($AB127,FIND(CHAR(160),SUBSTITUTE($AB127,\"{\",CHAR(160),IW$1)),FIND(CHAR(160),SUBSTITUTE($AB127,\"}\",CHAR(160),IW$1))-FIND(CHAR(160),SUBSTITUTE($AB127,\"{\",CHAR(160),IW$1))+1),\"\")","v":""},{"$f":"IFERROR(MID($AB127,FIND(CHAR(160),SUBSTITUTE($AB127,\"{\",CHAR(160),IX$1)),FIND(CHAR(160),SUBSTITUTE($AB127,\"}\",CHAR(160),IX$1))-FIND(CHAR(160),SUBSTITUTE($AB127,\"{\",CHAR(160),IX$1))+1),\"\")","v":""},null,{"$f":"10-COUNTIF(DU127:ED127,\"\")","v":4}]
["C&I Prescriptive Compressed Air Solutions","Dryer - C15 - Dryer Size 300","D - C15","2021-07-01","2022-06-30","Calculated","{Measure:Quantity}*{Dryer CFM} * 6.54",0,"Per Measure",1000,0,"2017-07-01","2022-06-30","Calculated","{Measure:Quantity} *{Dryer CFM} * 0.00290 * {Weekly Hrs of Operation} * {Weeks Per Year}",1E-4,null,"{Measure:Quantity} *{Dryer CFM} * 0.00290",null,null,"{Measure:Quantity} *{Dryer CFM} * 0.00290 * {Factor:WinterCF}","{Measure:Quantity} *{Dryer CFM} * 0.00290 * {Factor:SummerCF}",null,null,null,null,null,null,"2017-07-01","2022-06-30",15,0.7,0.91100000000000003,0.30399999999999999,0.36099999999999999,0.156,0.17899999999999999,1,1.1220000000000001,1,0.52,1.6E-2,null,{"$f":"DU128","v":"{Measure:Quantity}"},1,{"$f":"DV128","v":"{Dryer CFM}"},300,{"$f":"DW128","v":"{Weekly Hrs of Operation}"},50,{"$f":"DX128","v":"{Weeks Per Year}"},50,{"$f":"DY128","v":""},null,{"$f":"DZ128","v":""},null,{"$f":"EA128","v":""},null,{"$f":"EB128","v":""},null,{"$f":"EC128","v":""},null,{"$f":"ED128","v":""},null,{"$f":"AS128 *AU128 * 0.0029 * AW128 * AY128","v":2174.9999999999995},{"$f":"0.0001","v":1E-4},0,{"$f":"AS128 *AU128 * 0.0029","v":0.86999999999999988},0,0,{"$f":"AS128 *AU128 * 0.0029 * AF128","v":0.60899999999999987},{"$f":"AS128 *AU128 * 0.0029 * AG128","v":0.79256999999999989},0,0,0,0,0,0,null,"Com","Default DR",{"$f":"Benefits(BL128,BR128,BS128,BT128,BU128,BV128,BW128,BX128,BY128,BZ128,AE128,AH128,AI128,AJ128,AK128,AL128,AM128,AN128,AO128,AP128,CA128,CB128)","v":3260.2126436210801},3785.5370348649772,0,0,0,0,0,0,0,{"$f":"SUMPRODUCT(CC128:CK128,--(CC128:CK128>0))","v":7045.7496784860577},{"$f":"-SUMPRODUCT(CC128:CK128,--(CC128:CK128<0))","v":0},null,{"$f":"AS128*AU128 * 6.54","v":1962},null,null,{"$f":"CM128+CO128","v":1962},{"$f":"IF(NetOrGross=\"Net\",(1-AO128+AP128),1)","v":1},{"$f":"(SUMPRODUCT(CC128:CJ128,--(CC128:CJ128>0))+CN128)*CS128/((-SUMPRODUCT(CC128:CJ128,--(CC128:CJ128<0))+MAX(CO128,CV128)+CP128+CQ128)*CS128+IF(FRIncentives=\"Yes\",CV128*(1-CS128),0))","v":3.5911058504006412},10,{"$f":"1000","v":1000},null,"Electric","y",null,{"$f":"IF(F128=\"Manual Entry\",\"Manual\",IF(G128=\"\",0,\"X=\"&SUBSTITUTE(SUBSTITUTE(SUBSTITUTE(SUBSTITUTE(SUBSTITUTE(SUBSTITUTE(SUBSTITUTE(SUBSTITUTE(SUBSTITUTE(SUBSTITUTE(SUBSTITUTE(SUBSTITUTE(G128,$ED128,$ED$2&ROW($ED128)),$EC128,$EC$2&ROW($EC128)),$EB128,$EB$2&ROW($EB128)),$EA128,$EA$2&ROW($EA128)),$DZ128,$DZ$2&ROW($DZ128)),$DY128,$DY$2&ROW($DY128)),$DX128,$DX$2&ROW($DX128)),$DW128,$DW$2&ROW($DW128)),$DV128,$DV$2&ROW($DV128)),$DU128,$DU$2&ROW($DU128)),$DT128,$DT$2&ROW($DT128)),$DS128,$DS$2&ROW($DS128))))","v":"X=AS128*AU128 * 6.54"},{"$f":"IF(I128=\"Manual Entry\",\"Manual\",IF(J128=\"\",0,\"X=\"&SUBSTITUTE(SUBSTITUTE(SUBSTITUTE(SUBSTITUTE(SUBSTITUTE(SUBSTITUTE(SUBSTITUTE(SUBSTITUTE(SUBSTITUTE(SUBSTITUTE(SUBSTITUTE(SUBSTITUTE(J128,$ED128,$ED$2&ROW($ED128)),$EC128,$EC$2&ROW($EC128)),$EB128,$EB$2&ROW($EB128)),$EA128,$EA$2&ROW($EA128)),$DZ128,$DZ$2&ROW($DZ128)),$DY128,$DY$2&ROW($DY128)),$DX128,$DX$2&ROW($DX128)),$DW128,$DW$2&ROW($DW128)),$DV128,$DV$2&ROW($DV128)),$DU128,$DU$2&ROW($DU128)),$DT128,$DT$2&ROW($DT128)),$DS128,$DS$2&ROW($DS128))))","v":"X=1000"},{"$f":"IF(O128=\"\",0,\"X=\"&SUBSTITUTE(SUBSTITUTE(SUBSTITUTE(SUBSTITUTE(SUBSTITUTE(SUBSTITUTE(SUBSTITUTE(SUBSTITUTE(SUBSTITUTE(SUBSTITUTE(SUBSTITUTE(SUBSTITUTE(O128,$ED128,$ED$2&ROW($ED128)),$EC128,$EC$2&ROW($EC128)),$EB128,$EB$2&ROW($EB128)),$EA128,$EA$2&ROW($EA128)),$DZ128,$DZ$2&ROW($DZ128)),$DY128,$DY$2&ROW($DY128)),$DX128,$DX$2&ROW($DX128)),$DW128,$DW$2&ROW($DW128)),$DV128,$DV$2&ROW($DV128)),$DU128,$DU$2&ROW($DU128)),$DT128,$DT$2&ROW($DT128)),$DS128,$DS$2&ROW($DS128)))","v":"X=AS128 *AU128 * 0.00290 * AW128 * AY128"},{"$f":"IF(P128=\"\",0,\"X=\"&SUBSTITUTE(SUBSTITUTE(SUBSTITUTE(SUBSTITUTE(SUBSTITUTE(SUBSTITUTE(SUBSTITUTE(SUBSTITUTE(SUBSTITUTE(SUBSTITUTE(SUBSTITUTE(SUBSTITUTE(P128,$ED128,$ED$2&ROW($ED128)),$EC128,$EC$2&ROW($EC128)),$EB128,$EB$2&ROW($EB128)),$EA128,$EA$2&ROW($EA128)),$DZ128,$DZ$2&ROW($DZ128)),$DY128,$DY$2&ROW($DY128)),$DX128,$DX$2&ROW($DX128)),$DW128,$DW$2&ROW($DW128)),$DV128,$DV$2&ROW($DV128)),$DU128,$DU$2&ROW($DU128)),$DT128,$DT$2&ROW($DT128)),$DS128,$DS$2&ROW($DS128)))","v":"X=0.0001"},{"$f":"IF(Q128=\"\",0,\"X=\"&SUBSTITUTE(SUBSTITUTE(SUBSTITUTE(SUBSTITUTE(SUBSTITUTE(SUBSTITUTE(SUBSTITUTE(SUBSTITUTE(SUBSTITUTE(SUBSTITUTE(SUBSTITUTE(SUBSTITUTE(Q128,$ED128,$ED$2&ROW($ED128)),$EC128,$EC$2&ROW($EC128)),$EB128,$EB$2&ROW($EB128)),$EA128,$EA$2&ROW($EA128)),$DZ128,$DZ$2&ROW($DZ128)),$DY128,$DY$2&ROW($DY128)),$DX128,$DX$2&ROW($DX128)),$DW128,$DW$2&ROW($DW128)),$DV128,$DV$2&ROW($DV128)),$DU128,$DU$2&ROW($DU128)),$DT128,$DT$2&ROW($DT128)),$DS128,$DS$2&ROW($DS128)))","v":0},{"$f":"IF(R128=\"\",0,\"X=\"&SUBSTITUTE(SUBSTITUTE(SUBSTITUTE(SUBSTITUTE(SUBSTITUTE(SUBSTITUTE(SUBSTITUTE(SUBSTITUTE(SUBSTITUTE(SUBSTITUTE(SUBSTITUTE(SUBSTITUTE(R128,$ED128,$ED$2&ROW($ED128)),$EC128,$EC$2&ROW($EC128)),$EB128,$EB$2&ROW($EB128)),$EA128,$EA$2&ROW($EA128)),$DZ128,$DZ$2&ROW($DZ128)),$DY128,$DY$2&ROW($DY128)),$DX128,$DX$2&ROW($DX128)),$DW128,$DW$2&ROW($DW128)),$DV128,$DV$2&ROW($DV128)),$DU128,$DU$2&ROW($DU128)),$DT128,$DT$2&ROW($DT128)),$DS128,$DS$2&ROW($DS128)))","v":"X=AS128 *AU128 * 0.00290"},{"$f":"IF(S128=\"\",0,\"X=\"&SUBSTITUTE(SUBSTITUTE(SUBSTITUTE(SUBSTITUTE(SUBSTITUTE(SUBSTITUTE(SUBSTITUTE(SUBSTITUTE(SUBSTITUTE(SUBSTITUTE(SUBSTITUTE(SUBSTITUTE(S128,$ED128,$ED$2&ROW($ED128)),$EC128,$EC$2&ROW($EC128)),$EB128,$EB$2&ROW($EB128)),$EA128,$EA$2&ROW($EA128)),$DZ128,$DZ$2&ROW($DZ128)),$DY128,$DY$2&ROW($DY128)),$DX128,$DX$2&ROW($DX128)),$DW128,$DW$2&ROW($DW128)),$DV128,$DV$2&ROW($DV128)),$DU128,$DU$2&ROW($DU128)),$DT128,$DT$2&ROW($DT128)),$DS128,$DS$2&ROW($DS128)))","v":0},{"$f":"IF(T128=\"\",0,\"X=\"&SUBSTITUTE(SUBSTITUTE(SUBSTITUTE(SUBSTITUTE(SUBSTITUTE(SUBSTITUTE(SUBSTITUTE(SUBSTITUTE(SUBSTITUTE(SUBSTITUTE(SUBSTITUTE(SUBSTITUTE(T128,$ED128,$ED$2&ROW($ED128)),$EC128,$EC$2&ROW($EC128)),$EB128,$EB$2&ROW($EB128)),$EA128,$EA$2&ROW($EA128)),$DZ128,$DZ$2&ROW($DZ128)),$DY128,$DY$2&ROW($DY128)),$DX128,$DX$2&ROW($DX128)),$DW128,$DW$2&ROW($DW128)),$DV128,$DV$2&ROW($DV128)),$DU128,$DU$2&ROW($DU128)),$DT128,$DT$2&ROW($DT128)),$DS128,$DS$2&ROW($DS128)))","v":0},{"$f":"IF(U128=\"\",0,\"X=\"&SUBSTITUTE(SUBSTITUTE(SUBSTITUTE(SUBSTITUTE(SUBSTITUTE(SUBSTITUTE(SUBSTITUTE(SUBSTITUTE(SUBSTITUTE(SUBSTITUTE(SUBSTITUTE(SUBSTITUTE(U128,$ED128,$ED$2&ROW($ED128)),$EC128,$EC$2&ROW($EC128)),$EB128,$EB$2&ROW($EB128)),$EA128,$EA$2&ROW($EA128)),$DZ128,$DZ$2&ROW($DZ128)),$DY128,$DY$2&ROW($DY128)),$DX128,$DX$2&ROW($DX128)),$DW128,$DW$2&ROW($DW128)),$DV128,$DV$2&ROW($DV128)),$DU128,$DU$2&ROW($DU128)),$DT128,$DT$2&ROW($DT128)),$DS128,$DS$2&ROW($DS128)))","v":"X=AS128 *AU128 * 0.00290 * AF128"},{"$f":"IF(V128=\"\",0,\"X=\"&SUBSTITUTE(SUBSTITUTE(SUBSTITUTE(SUBSTITUTE(SUBSTITUTE(SUBSTITUTE(SUBSTITUTE(SUBSTITUTE(SUBSTITUTE(SUBSTITUTE(SUBSTITUTE(SUBSTITUTE(V128,$ED128,$ED$2&ROW($ED128)),$EC128,$EC$2&ROW($EC128)),$EB128,$EB$2&ROW($EB128)),$EA128,$EA$2&ROW($EA128)),$DZ128,$DZ$2&ROW($DZ128)),$DY128,$DY$2&ROW($DY128)),$DX128,$DX$2&ROW($DX128)),$DW128,$DW$2&ROW($DW128)),$DV128,$DV$2&ROW($DV128)),$DU128,$DU$2&ROW($DU128)),$DT128,$DT$2&ROW($DT128)),$DS128,$DS$2&ROW($DS128)))","v":"X=AS128 *AU128 * 0.00290 * AG128"},{"$f":"IF(W128=\"\",0,\"X=\"&SUBSTITUTE(SUBSTITUTE(SUBSTITUTE(SUBSTITUTE(SUBSTITUTE(SUBSTITUTE(SUBSTITUTE(SUBSTITUTE(SUBSTITUTE(SUBSTITUTE(SUBSTITUTE(SUBSTITUTE(W128,$ED128,$ED$2&ROW($ED128)),$EC128,$EC$2&ROW($EC128)),$EB128,$EB$2&ROW($EB128)),$EA128,$EA$2&ROW($EA128)),$DZ128,$DZ$2&ROW($DZ128)),$DY128,$DY$2&ROW($DY128)),$DX128,$DX$2&ROW($DX128)),$DW128,$DW$2&ROW($DW128)),$DV128,$DV$2&ROW($DV128)),$DU128,$DU$2&ROW($DU128)),$DT128,$DT$2&ROW($DT128)),$DS128,$DS$2&ROW($DS128)))","v":0},{"$f":"IF(X128=\"\",0,\"X=\"&SUBSTITUTE(SUBSTITUTE(SUBSTITUTE(SUBSTITUTE(SUBSTITUTE(SUBSTITUTE(SUBSTITUTE(SUBSTITUTE(SUBSTITUTE(SUBSTITUTE(SUBSTITUTE(SUBSTITUTE(X128,$ED128,$ED$2&ROW($ED128)),$EC128,$EC$2&ROW($EC128)),$EB128,$EB$2&ROW($EB128)),$EA128,$EA$2&ROW($EA128)),$DZ128,$DZ$2&ROW($DZ128)),$DY128,$DY$2&ROW($DY128)),$DX128,$DX$2&ROW($DX128)),$DW128,$DW$2&ROW($DW128)),$DV128,$DV$2&ROW($DV128)),$DU128,$DU$2&ROW($DU128)),$DT128,$DT$2&ROW($DT128)),$DS128,$DS$2&ROW($DS128)))","v":0},{"$f":"IF(Y128=\"\",0,\"X=\"&SUBSTITUTE(SUBSTITUTE(SUBSTITUTE(SUBSTITUTE(SUBSTITUTE(SUBSTITUTE(SUBSTITUTE(SUBSTITUTE(SUBSTITUTE(SUBSTITUTE(SUBSTITUTE(SUBSTITUTE(Y128,$ED128,$ED$2&ROW($ED128)),$EC128,$EC$2&ROW($EC128)),$EB128,$EB$2&ROW($EB128)),$EA128,$EA$2&ROW($EA128)),$DZ128,$DZ$2&ROW($DZ128)),$DY128,$DY$2&ROW($DY128)),$DX128,$DX$2&ROW($DX128)),$DW128,$DW$2&ROW($DW128)),$DV128,$DV$2&ROW($DV128)),$DU128,$DU$2&ROW($DU128)),$DT128,$DT$2&ROW($DT128)),$DS128,$DS$2&ROW($DS128)))","v":0},{"$f":"IF(Z128=\"\",0,\"X=\"&SUBSTITUTE(SUBSTITUTE(SUBSTITUTE(SUBSTITUTE(SUBSTITUTE(SUBSTITUTE(SUBSTITUTE(SUBSTITUTE(SUBSTITUTE(SUBSTITUTE(SUBSTITUTE(SUBSTITUTE(Z128,$ED128,$ED$2&ROW($ED128)),$EC128,$EC$2&ROW($EC128)),$EB128,$EB$2&ROW($EB128)),$EA128,$EA$2&ROW($EA128)),$DZ128,$DZ$2&ROW($DZ128)),$DY128,$DY$2&ROW($DY128)),$DX128,$DX$2&ROW($DX128)),$DW128,$DW$2&ROW($DW128)),$DV128,$DV$2&ROW($DV128)),$DU128,$DU$2&ROW($DU128)),$DT128,$DT$2&ROW($DT128)),$DS128,$DS$2&ROW($DS128)))","v":0},{"$f":"IF(AA128=\"\",0,\"X=\"&SUBSTITUTE(SUBSTITUTE(SUBSTITUTE(SUBSTITUTE(SUBSTITUTE(SUBSTITUTE(SUBSTITUTE(SUBSTITUTE(SUBSTITUTE(SUBSTITUTE(SUBSTITUTE(SUBSTITUTE(AA128,$ED128,$ED$2&ROW($ED128)),$EC128,$EC$2&ROW($EC128)),$EB128,$EB$2&ROW($EB128)),$EA128,$EA$2&ROW($EA128)),$DZ128,$DZ$2&ROW($DZ128)),$DY128,$DY$2&ROW($DY128)),$DX128,$DX$2&ROW($DX128)),$DW128,$DW$2&ROW($DW128)),$DV128,$DV$2&ROW($DV128)),$DU128,$DU$2&ROW($DU128)),$DT128,$DT$2&ROW($DT128)),$DS128,$DS$2&ROW($DS128)))","v":0},{"$f":"IF(AB128=\"\",0,\"X=\"&SUBSTITUTE(SUBSTITUTE(SUBSTITUTE(SUBSTITUTE(SUBSTITUTE(SUBSTITUTE(SUBSTITUTE(SUBSTITUTE(SUBSTITUTE(SUBSTITUTE(SUBSTITUTE(SUBSTITUTE(AB128,$ED128,$ED$2&ROW($ED128)),$EC128,$EC$2&ROW($EC128)),$EB128,$EB$2&ROW($EB128)),$EA128,$EA$2&ROW($EA128)),$DZ128,$DZ$2&ROW($DZ128)),$DY128,$DY$2&ROW($DY128)),$DX128,$DX$2&ROW($DX128)),$DW128,$DW$2&ROW($DW128)),$DV128,$DV$2&ROW($DV128)),$DU128,$DU$2&ROW($DU128)),$DT128,$DT$2&ROW($DT128)),$DS128,$DS$2&ROW($DS128)))","v":0},null,null,"{Factor:WinterCF}","{Factor:SummerCF}",{"$f":"IFERROR(INDEX($EG128:$IV128,MATCH(0,COUNTIF($DR128:DT128,$EG128:$IV128),0)),\"\")","v":"{Measure:Quantity}"},{"$f":"IFERROR(INDEX($EG128:$IV128,MATCH(0,COUNTIF($DR128:DU128,$EG128:$IV128),0)),\"\")","v":"{Dryer CFM}"},{"$f":"IFERROR(INDEX($EG128:$IV128,MATCH(0,COUNTIF($DR128:DV128,$EG128:$IV128),0)),\"\")","v":"{Weekly Hrs of Operation}"},{"$f":"IFERROR(INDEX($EG128:$IV128,MATCH(0,COUNTIF($DR128:DW128,$EG128:$IV128),0)),\"\")","v":"{Weeks Per Year}"},{"$f":"IFERROR(INDEX($EG128:$IV128,MATCH(0,COUNTIF($DR128:DX128,$EG128:$IV128),0)),\"\")","v":""},{"$f":"IFERROR(INDEX($EG128:$IV128,MATCH(0,COUNTIF($DR128:DY128,$EG128:$IV128),0)),\"\")","v":""},{"$f":"IFERROR(INDEX($EG128:$IV128,MATCH(0,COUNTIF($DR128:DZ128,$EG128:$IV128),0)),\"\")","v":""},{"$f":"IFERROR(INDEX($EG128:$IV128,MATCH(0,COUNTIF($DR128:EA128,$EG128:$IV128),0)),\"\")","v":""},{"$f":"IFERROR(INDEX($EG128:$IV128,MATCH(0,COUNTIF($DR128:EB128,$EG128:$IV128),0)),\"\")","v":""},{"$f":"IFERROR(INDEX($EG128:$IV128,MATCH(0,COUNTIF($DR128:EC128,$EG128:$IV128),0)),\"\")","v":""},null,null,{"$f":"IFERROR(MID($G128,FIND(CHAR(160),SUBSTITUTE($G128,\"{\",CHAR(160),EG$1)),FIND(CHAR(160),SUBSTITUTE($G128,\"}\",CHAR(160),EG$1))-FIND(CHAR(160),SUBSTITUTE($G128,\"{\",CHAR(160),EG$1))+1),\"\")","v":"{Measure:Quantity}"},{"$f":"IFERROR(MID($G128,FIND(CHAR(160),SUBSTITUTE($G128,\"{\",CHAR(160),EH$1)),FIND(CHAR(160),SUBSTITUTE($G128,\"}\",CHAR(160),EH$1))-FIND(CHAR(160),SUBSTITUTE($G128,\"{\",CHAR(160),EH$1))+1),\"\")","v":"{Dryer CFM}"},{"$f":"IFERROR(MID($G128,FIND(CHAR(160),SUBSTITUTE($G128,\"{\",CHAR(160),EI$1)),FIND(CHAR(160),SUBSTITUTE($G128,\"}\",CHAR(160),EI$1))-FIND(CHAR(160),SUBSTITUTE($G128,\"{\",CHAR(160),EI$1))+1),\"\")","v":""},{"$f":"IFERROR(MID($G128,FIND(CHAR(160),SUBSTITUTE($G128,\"{\",CHAR(160),EJ$1)),FIND(CHAR(160),SUBSTITUTE($G128,\"}\",CHAR(160),EJ$1))-FIND(CHAR(160),SUBSTITUTE($G128,\"{\",CHAR(160),EJ$1))+1),\"\")","v":""},{"$f":"IFERROR(MID($G128,FIND(CHAR(160),SUBSTITUTE($G128,\"{\",CHAR(160),EK$1)),FIND(CHAR(160),SUBSTITUTE($G128,\"}\",CHAR(160),EK$1))-FIND(CHAR(160),SUBSTITUTE($G128,\"{\",CHAR(160),EK$1))+1),\"\")","v":""},{"$f":"IFERROR(MID($G128,FIND(CHAR(160),SUBSTITUTE($G128,\"{\",CHAR(160),EL$1)),FIND(CHAR(160),SUBSTITUTE($G128,\"}\",CHAR(160),EL$1))-FIND(CHAR(160),SUBSTITUTE($G128,\"{\",CHAR(160),EL$1))+1),\"\")","v":""},{"$f":"IFERROR(MID($G128,FIND(CHAR(160),SUBSTITUTE($G128,\"{\",CHAR(160),EM$1)),FIND(CHAR(160),SUBSTITUTE($G128,\"}\",CHAR(160),EM$1))-FIND(CHAR(160),SUBSTITUTE($G128,\"{\",CHAR(160),EM$1))+1),\"\")","v":""},{"$f":"IFERROR(MID($G128,FIND(CHAR(160),SUBSTITUTE($G128,\"{\",CHAR(160),EN$1)),FIND(CHAR(160),SUBSTITUTE($G128,\"}\",CHAR(160),EN$1))-FIND(CHAR(160),SUBSTITUTE($G128,\"{\",CHAR(160),EN$1))+1),\"\")","v":""},{"$f":"IFERROR(MID($G128,FIND(CHAR(160),SUBSTITUTE($G128,\"{\",CHAR(160),EO$1)),FIND(CHAR(160),SUBSTITUTE($G128,\"}\",CHAR(160),EO$1))-FIND(CHAR(160),SUBSTITUTE($G128,\"{\",CHAR(160),EO$1))+1),\"\")","v":""},{"$f":"IFERROR(MID($G128,FIND(CHAR(160),SUBSTITUTE($G128,\"{\",CHAR(160),EP$1)),FIND(CHAR(160),SUBSTITUTE($G128,\"}\",CHAR(160),EP$1))-FIND(CHAR(160),SUBSTITUTE($G128,\"{\",CHAR(160),EP$1))+1),\"\")","v":""},{"$f":"IFERROR(MID($J128,FIND(CHAR(160),SUBSTITUTE($J128,\"{\",CHAR(160),EQ$1)),FIND(CHAR(160),SUBSTITUTE($J128,\"}\",CHAR(160),EQ$1))-FIND(CHAR(160),SUBSTITUTE($J128,\"{\",CHAR(160),EQ$1))+1),\"\")","v":""},{"$f":"IFERROR(MID($J128,FIND(CHAR(160),SUBSTITUTE($J128,\"{\",CHAR(160),ER$1)),FIND(CHAR(160),SUBSTITUTE($J128,\"}\",CHAR(160),ER$1))-FIND(CHAR(160),SUBSTITUTE($J128,\"{\",CHAR(160),ER$1))+1),\"\")","v":""},{"$f":"IFERROR(MID($J128,FIND(CHAR(160),SUBSTITUTE($J128,\"{\",CHAR(160),ES$1)),FIND(CHAR(160),SUBSTITUTE($J128,\"}\",CHAR(160),ES$1))-FIND(CHAR(160),SUBSTITUTE($J128,\"{\",CHAR(160),ES$1))+1),\"\")","v":""},{"$f":"IFERROR(MID($J128,FIND(CHAR(160),SUBSTITUTE($J128,\"{\",CHAR(160),ET$1)),FIND(CHAR(160),SUBSTITUTE($J128,\"}\",CHAR(160),ET$1))-FIND(CHAR(160),SUBSTITUTE($J128,\"{\",CHAR(160),ET$1))+1),\"\")","v":""},{"$f":"IFERROR(MID($J128,FIND(CHAR(160),SUBSTITUTE($J128,\"{\",CHAR(160),EU$1)),FIND(CHAR(160),SUBSTITUTE($J128,\"}\",CHAR(160),EU$1))-FIND(CHAR(160),SUBSTITUTE($J128,\"{\",CHAR(160),EU$1))+1),\"\")","v":""},{"$f":"IFERROR(MID($J128,FIND(CHAR(160),SUBSTITUTE($J128,\"{\",CHAR(160),EV$1)),FIND(CHAR(160),SUBSTITUTE($J128,\"}\",CHAR(160),EV$1))-FIND(CHAR(160),SUBSTITUTE($J128,\"{\",CHAR(160),EV$1))+1),\"\")","v":""},{"$f":"IFERROR(MID($J128,FIND(CHAR(160),SUBSTITUTE($J128,\"{\",CHAR(160),EW$1)),FIND(CHAR(160),SUBSTITUTE($J128,\"}\",CHAR(160),EW$1))-FIND(CHAR(160),SUBSTITUTE($J128,\"{\",CHAR(160),EW$1))+1),\"\")","v":""},{"$f":"IFERROR(MID($J128,FIND(CHAR(160),SUBSTITUTE($J128,\"{\",CHAR(160),EX$1)),FIND(CHAR(160),SUBSTITUTE($J128,\"}\",CHAR(160),EX$1))-FIND(CHAR(160),SUBSTITUTE($J128,\"{\",CHAR(160),EX$1))+1),\"\")","v":""},{"$f":"IFERROR(MID($J128,FIND(CHAR(160),SUBSTITUTE($J128,\"{\",CHAR(160),EY$1)),FIND(CHAR(160),SUBSTITUTE($J128,\"}\",CHAR(160),EY$1))-FIND(CHAR(160),SUBSTITUTE($J128,\"{\",CHAR(160),EY$1))+1),\"\")","v":""},{"$f":"IFERROR(MID($J128,FIND(CHAR(160),SUBSTITUTE($J128,\"{\",CHAR(160),EZ$1)),FIND(CHAR(160),SUBSTITUTE($J128,\"}\",CHAR(160),EZ$1))-FIND(CHAR(160),SUBSTITUTE($J128,\"{\",CHAR(160),EZ$1))+1),\"\")","v":""},{"$f":"IFERROR(MID($J128,FIND(CHAR(160),SUBSTITUTE($J128,\"{\",CHAR(160),FA$1)),FIND(CHAR(160),SUBSTITUTE($J128,\"}\",CHAR(160),FA$1))-FIND(CHAR(160),SUBSTITUTE($J128,\"{\",CHAR(160),FA$1))+1),\"\")","v":""},{"$f":"IFERROR(MID($J128,FIND(CHAR(160),SUBSTITUTE($J128,\"{\",CHAR(160),FB$1)),FIND(CHAR(160),SUBSTITUTE($J128,\"}\",CHAR(160),FB$1))-FIND(CHAR(160),SUBSTITUTE($J128,\"{\",CHAR(160),FB$1))+1),\"\")","v":""},{"$f":"IFERROR(MID($O128,FIND(CHAR(160),SUBSTITUTE($O128,\"{\",CHAR(160),FC$1)),FIND(CHAR(160),SUBSTITUTE($O128,\"}\",CHAR(160),FC$1))-FIND(CHAR(160),SUBSTITUTE($O128,\"{\",CHAR(160),FC$1))+1),\"\")","v":"{Weekly Hrs of Operation}"},{"$f":"IFERROR(MID($O128,FIND(CHAR(160),SUBSTITUTE($O128,\"{\",CHAR(160),FD$1)),FIND(CHAR(160),SUBSTITUTE($O128,\"}\",CHAR(160),FD$1))-FIND(CHAR(160),SUBSTITUTE($O128,\"{\",CHAR(160),FD$1))+1),\"\")","v":"{Weeks Per Year}"},{"$f":"IFERROR(MID($O128,FIND(CHAR(160),SUBSTITUTE($O128,\"{\",CHAR(160),FE$1)),FIND(CHAR(160),SUBSTITUTE($O128,\"}\",CHAR(160),FE$1))-FIND(CHAR(160),SUBSTITUTE($O128,\"{\",CHAR(160),FE$1))+1),\"\")","v":""},{"$f":"IFERROR(MID($O128,FIND(CHAR(160),SUBSTITUTE($O128,\"{\",CHAR(160),FF$1)),FIND(CHAR(160),SUBSTITUTE($O128,\"}\",CHAR(160),FF$1))-FIND(CHAR(160),SUBSTITUTE($O128,\"{\",CHAR(160),FF$1))+1),\"\")","v":""},{"$f":"IFERROR(MID($O128,FIND(CHAR(160),SUBSTITUTE($O128,\"{\",CHAR(160),FG$1)),FIND(CHAR(160),SUBSTITUTE($O128,\"}\",CHAR(160),FG$1))-FIND(CHAR(160),SUBSTITUTE($O128,\"{\",CHAR(160),FG$1))+1),\"\")","v":""},{"$f":"IFERROR(MID($O128,FIND(CHAR(160),SUBSTITUTE($O128,\"{\",CHAR(160),FH$1)),FIND(CHAR(160),SUBSTITUTE($O128,\"}\",CHAR(160),FH$1))-FIND(CHAR(160),SUBSTITUTE($O128,\"{\",CHAR(160),FH$1))+1),\"\")","v":""},{"$f":"IFERROR(MID($O128,FIND(CHAR(160),SUBSTITUTE($O128,\"{\",CHAR(160),FI$1)),FIND(CHAR(160),SUBSTITUTE($O128,\"}\",CHAR(160),FI$1))-FIND(CHAR(160),SUBSTITUTE($O128,\"{\",CHAR(160),FI$1))+1),\"\")","v":""},{"$f":"IFERROR(MID($O128,FIND(CHAR(160),SUBSTITUTE($O128,\"{\",CHAR(160),FJ$1)),FIND(CHAR(160),SUBSTITUTE($O128,\"}\",CHAR(160),FJ$1))-FIND(CHAR(160),SUBSTITUTE($O128,\"{\",CHAR(160),FJ$1))+1),\"\")","v":""},{"$f":"IFERROR(MID($O128,FIND(CHAR(160),SUBSTITUTE($O128,\"{\",CHAR(160),FK$1)),FIND(CHAR(160),SUBSTITUTE($O128,\"}\",CHAR(160),FK$1))-FIND(CHAR(160),SUBSTITUTE($O128,\"{\",CHAR(160),FK$1))+1),\"\")","v":"{Measure:Quantity}"},{"$f":"IFERROR(MID($O128,FIND(CHAR(160),SUBSTITUTE($O128,\"{\",CHAR(160),FL$1)),FIND(CHAR(160),SUBSTITUTE($O128,\"}\",CHAR(160),FL$1))-FIND(CHAR(160),SUBSTITUTE($O128,\"{\",CHAR(160),FL$1))+1),\"\")","v":"{Dryer CFM}"},{"$f":"IFERROR(MID($R128,FIND(CHAR(160),SUBSTITUTE($R128,\"{\",CHAR(160),FM$1)),FIND(CHAR(160),SUBSTITUTE($R128,\"}\",CHAR(160),FM$1))-FIND(CHAR(160),SUBSTITUTE($R128,\"{\",CHAR(160),FM$1))+1),\"\")","v":""},{"$f":"IFERROR(MID($R128,FIND(CHAR(160),SUBSTITUTE($R128,\"{\",CHAR(160),FN$1)),FIND(CHAR(160),SUBSTITUTE($R128,\"}\",CHAR(160),FN$1))-FIND(CHAR(160),SUBSTITUTE($R128,\"{\",CHAR(160),FN$1))+1),\"\")","v":""},{"$f":"IFERROR(MID($R128,FIND(CHAR(160),SUBSTITUTE($R128,\"{\",CHAR(160),FO$1)),FIND(CHAR(160),SUBSTITUTE($R128,\"}\",CHAR(160),FO$1))-FIND(CHAR(160),SUBSTITUTE($R128,\"{\",CHAR(160),FO$1))+1),\"\")","v":""},{"$f":"IFERROR(MID($R128,FIND(CHAR(160),SUBSTITUTE($R128,\"{\",CHAR(160),FP$1)),FIND(CHAR(160),SUBSTITUTE($R128,\"}\",CHAR(160),FP$1))-FIND(CHAR(160),SUBSTITUTE($R128,\"{\",CHAR(160),FP$1))+1),\"\")","v":""},{"$f":"IFERROR(MID($R128,FIND(CHAR(160),SUBSTITUTE($R128,\"{\",CHAR(160),FQ$1)),FIND(CHAR(160),SUBSTITUTE($R128,\"}\",CHAR(160),FQ$1))-FIND(CHAR(160),SUBSTITUTE($R128,\"{\",CHAR(160),FQ$1))+1),\"\")","v":""},{"$f":"IFERROR(MID($R128,FIND(CHAR(160),SUBSTITUTE($R128,\"{\",CHAR(160),FR$1)),FIND(CHAR(160),SUBSTITUTE($R128,\"}\",CHAR(160),FR$1))-FIND(CHAR(160),SUBSTITUTE($R128,\"{\",CHAR(160),FR$1))+1),\"\")","v":""},{"$f":"IFERROR(MID($R128,FIND(CHAR(160),SUBSTITUTE($R128,\"{\",CHAR(160),FS$1)),FIND(CHAR(160),SUBSTITUTE($R128,\"}\",CHAR(160),FS$1))-FIND(CHAR(160),SUBSTITUTE($R128,\"{\",CHAR(160),FS$1))+1),\"\")","v":""},{"$f":"IFERROR(MID($R128,FIND(CHAR(160),SUBSTITUTE($R128,\"{\",CHAR(160),FT$1)),FIND(CHAR(160),SUBSTITUTE($R128,\"}\",CHAR(160),FT$1))-FIND(CHAR(160),SUBSTITUTE($R128,\"{\",CHAR(160),FT$1))+1),\"\")","v":""},{"$f":"IFERROR(MID($R128,FIND(CHAR(160),SUBSTITUTE($R128,\"{\",CHAR(160),FU$1)),FIND(CHAR(160),SUBSTITUTE($R128,\"}\",CHAR(160),FU$1))-FIND(CHAR(160),SUBSTITUTE($R128,\"{\",CHAR(160),FU$1))+1),\"\")","v":"{Measure:Quantity}"},{"$f":"IFERROR(MID($R128,FIND(CHAR(160),SUBSTITUTE($R128,\"{\",CHAR(160),FV$1)),FIND(CHAR(160),SUBSTITUTE($R128,\"}\",CHAR(160),FV$1))-FIND(CHAR(160),SUBSTITUTE($R128,\"{\",CHAR(160),FV$1))+1),\"\")","v":"{Dryer CFM}"},{"$f":"IFERROR(MID($U128,FIND(CHAR(160),SUBSTITUTE($U128,\"{\",CHAR(160),FW$1)),FIND(CHAR(160),SUBSTITUTE($U128,\"}\",CHAR(160),FW$1))-FIND(CHAR(160),SUBSTITUTE($U128,\"{\",CHAR(160),FW$1))+1),\"\")","v":"{Factor:WinterCF}"},{"$f":"IFERROR(MID($U128,FIND(CHAR(160),SUBSTITUTE($U128,\"{\",CHAR(160),FX$1)),FIND(CHAR(160),SUBSTITUTE($U128,\"}\",CHAR(160),FX$1))-FIND(CHAR(160),SUBSTITUTE($U128,\"{\",CHAR(160),FX$1))+1),\"\")","v":""},{"$f":"IFERROR(MID($U128,FIND(CHAR(160),SUBSTITUTE($U128,\"{\",CHAR(160),FY$1)),FIND(CHAR(160),SUBSTITUTE($U128,\"}\",CHAR(160),FY$1))-FIND(CHAR(160),SUBSTITUTE($U128,\"{\",CHAR(160),FY$1))+1),\"\")","v":""},{"$f":"IFERROR(MID($U128,FIND(CHAR(160),SUBSTITUTE($U128,\"{\",CHAR(160),FZ$1)),FIND(CHAR(160),SUBSTITUTE($U128,\"}\",CHAR(160),FZ$1))-FIND(CHAR(160),SUBSTITUTE($U128,\"{\",CHAR(160),FZ$1))+1),\"\")","v":""},{"$f":"IFERROR(MID($U128,FIND(CHAR(160),SUBSTITUTE($U128,\"{\",CHAR(160),GA$1)),FIND(CHAR(160),SUBSTITUTE($U128,\"}\",CHAR(160),GA$1))-FIND(CHAR(160),SUBSTITUTE($U128,\"{\",CHAR(160),GA$1))+1),\"\")","v":""},{"$f":"IFERROR(MID($U128,FIND(CHAR(160),SUBSTITUTE($U128,\"{\",CHAR(160),GB$1)),FIND(CHAR(160),SUBSTITUTE($U128,\"}\",CHAR(160),GB$1))-FIND(CHAR(160),SUBSTITUTE($U128,\"{\",CHAR(160),GB$1))+1),\"\")","v":""},{"$f":"IFERROR(MID($U128,FIND(CHAR(160),SUBSTITUTE($U128,\"{\",CHAR(160),GC$1)),FIND(CHAR(160),SUBSTITUTE($U128,\"}\",CHAR(160),GC$1))-FIND(CHAR(160),SUBSTITUTE($U128,\"{\",CHAR(160),GC$1))+1),\"\")","v":""},{"$f":"IFERROR(MID($U128,FIND(CHAR(160),SUBSTITUTE($U128,\"{\",CHAR(160),GD$1)),FIND(CHAR(160),SUBSTITUTE($U128,\"}\",CHAR(160),GD$1))-FIND(CHAR(160),SUBSTITUTE($U128,\"{\",CHAR(160),GD$1))+1),\"\")","v":""},{"$f":"IFERROR(MID($U128,FIND(CHAR(160),SUBSTITUTE($U128,\"{\",CHAR(160),GE$1)),FIND(CHAR(160),SUBSTITUTE($U128,\"}\",CHAR(160),GE$1))-FIND(CHAR(160),SUBSTITUTE($U128,\"{\",CHAR(160),GE$1))+1),\"\")","v":"{Measure:Quantity}"},{"$f":"IFERROR(MID($U128,FIND(CHAR(160),SUBSTITUTE($U128,\"{\",CHAR(160),GF$1)),FIND(CHAR(160),SUBSTITUTE($U128,\"}\",CHAR(160),GF$1))-FIND(CHAR(160),SUBSTITUTE($U128,\"{\",CHAR(160),GF$1))+1),\"\")","v":"{Dryer CFM}"},{"$f":"IFERROR(MID($V128,FIND(CHAR(160),SUBSTITUTE($V128,\"{\",CHAR(160),GG$1)),FIND(CHAR(160),SUBSTITUTE($V128,\"}\",CHAR(160),GG$1))-FIND(CHAR(160),SUBSTITUTE($V128,\"{\",CHAR(160),GG$1))+1),\"\")","v":"{Factor:SummerCF}"},{"$f":"IFERROR(MID($V128,FIND(CHAR(160),SUBSTITUTE($V128,\"{\",CHAR(160),GH$1)),FIND(CHAR(160),SUBSTITUTE($V128,\"}\",CHAR(160),GH$1))-FIND(CHAR(160),SUBSTITUTE($V128,\"{\",CHAR(160),GH$1))+1),\"\")","v":""},{"$f":"IFERROR(MID($V128,FIND(CHAR(160),SUBSTITUTE($V128,\"{\",CHAR(160),GI$1)),FIND(CHAR(160),SUBSTITUTE($V128,\"}\",CHAR(160),GI$1))-FIND(CHAR(160),SUBSTITUTE($V128,\"{\",CHAR(160),GI$1))+1),\"\")","v":""},{"$f":"IFERROR(MID($V128,FIND(CHAR(160),SUBSTITUTE($V128,\"{\",CHAR(160),GJ$1)),FIND(CHAR(160),SUBSTITUTE($V128,\"}\",CHAR(160),GJ$1))-FIND(CHAR(160),SUBSTITUTE($V128,\"{\",CHAR(160),GJ$1))+1),\"\")","v":""},{"$f":"IFERROR(MID($V128,FIND(CHAR(160),SUBSTITUTE($V128,\"{\",CHAR(160),GK$1)),FIND(CHAR(160),SUBSTITUTE($V128,\"}\",CHAR(160),GK$1))-FIND(CHAR(160),SUBSTITUTE($V128,\"{\",CHAR(160),GK$1))+1),\"\")","v":""},{"$f":"IFERROR(MID($V128,FIND(CHAR(160),SUBSTITUTE($V128,\"{\",CHAR(160),GL$1)),FIND(CHAR(160),SUBSTITUTE($V128,\"}\",CHAR(160),GL$1))-FIND(CHAR(160),SUBSTITUTE($V128,\"{\",CHAR(160),GL$1))+1),\"\")","v":""},{"$f":"IFERROR(MID($V128,FIND(CHAR(160),SUBSTITUTE($V128,\"{\",CHAR(160),GM$1)),FIND(CHAR(160),SUBSTITUTE($V128,\"}\",CHAR(160),GM$1))-FIND(CHAR(160),SUBSTITUTE($V128,\"{\",CHAR(160),GM$1))+1),\"\")","v":""},{"$f":"IFERROR(MID($V128,FIND(CHAR(160),SUBSTITUTE($V128,\"{\",CHAR(160),GN$1)),FIND(CHAR(160),SUBSTITUTE($V128,\"}\",CHAR(160),GN$1))-FIND(CHAR(160),SUBSTITUTE($V128,\"{\",CHAR(160),GN$1))+1),\"\")","v":""},{"$f":"IFERROR(MID($V128,FIND(CHAR(160),SUBSTITUTE($V128,\"{\",CHAR(160),GO$1)),FIND(CHAR(160),SUBSTITUTE($V128,\"}\",CHAR(160),GO$1))-FIND(CHAR(160),SUBSTITUTE($V128,\"{\",CHAR(160),GO$1))+1),\"\")","v":"{Measure:Quantity}"},{"$f":"IFERROR(MID($V128,FIND(CHAR(160),SUBSTITUTE($V128,\"{\",CHAR(160),GP$1)),FIND(CHAR(160),SUBSTITUTE($V128,\"}\",CHAR(160),GP$1))-FIND(CHAR(160),SUBSTITUTE($V128,\"{\",CHAR(160),GP$1))+1),\"\")","v":"{Dryer CFM}"},{"$f":"IFERROR(MID($W128,FIND(CHAR(160),SUBSTITUTE($W128,\"{\",CHAR(160),GQ$1)),FIND(CHAR(160),SUBSTITUTE($W128,\"}\",CHAR(160),GQ$1))-FIND(CHAR(160),SUBSTITUTE($W128,\"{\",CHAR(160),GQ$1))+1),\"\")","v":""},{"$f":"IFERROR(MID($W128,FIND(CHAR(160),SUBSTITUTE($W128,\"{\",CHAR(160),GR$1)),FIND(CHAR(160),SUBSTITUTE($W128,\"}\",CHAR(160),GR$1))-FIND(CHAR(160),SUBSTITUTE($W128,\"{\",CHAR(160),GR$1))+1),\"\")","v":""},{"$f":"IFERROR(MID($W128,FIND(CHAR(160),SUBSTITUTE($W128,\"{\",CHAR(160),GS$1)),FIND(CHAR(160),SUBSTITUTE($W128,\"}\",CHAR(160),GS$1))-FIND(CHAR(160),SUBSTITUTE($W128,\"{\",CHAR(160),GS$1))+1),\"\")","v":""},{"$f":"IFERROR(MID($W128,FIND(CHAR(160),SUBSTITUTE($W128,\"{\",CHAR(160),GT$1)),FIND(CHAR(160),SUBSTITUTE($W128,\"}\",CHAR(160),GT$1))-FIND(CHAR(160),SUBSTITUTE($W128,\"{\",CHAR(160),GT$1))+1),\"\")","v":""},{"$f":"IFERROR(MID($W128,FIND(CHAR(160),SUBSTITUTE($W128,\"{\",CHAR(160),GU$1)),FIND(CHAR(160),SUBSTITUTE($W128,\"}\",CHAR(160),GU$1))-FIND(CHAR(160),SUBSTITUTE($W128,\"{\",CHAR(160),GU$1))+1),\"\")","v":""},{"$f":"IFERROR(MID($W128,FIND(CHAR(160),SUBSTITUTE($W128,\"{\",CHAR(160),GV$1)),FIND(CHAR(160),SUBSTITUTE($W128,\"}\",CHAR(160),GV$1))-FIND(CHAR(160),SUBSTITUTE($W128,\"{\",CHAR(160),GV$1))+1),\"\")","v":""},{"$f":"IFERROR(MID($W128,FIND(CHAR(160),SUBSTITUTE($W128,\"{\",CHAR(160),GW$1)),FIND(CHAR(160),SUBSTITUTE($W128,\"}\",CHAR(160),GW$1))-FIND(CHAR(160),SUBSTITUTE($W128,\"{\",CHAR(160),GW$1))+1),\"\")","v":""},{"$f":"IFERROR(MID($W128,FIND(CHAR(160),SUBSTITUTE($W128,\"{\",CHAR(160),GX$1)),FIND(CHAR(160),SUBSTITUTE($W128,\"}\",CHAR(160),GX$1))-FIND(CHAR(160),SUBSTITUTE($W128,\"{\",CHAR(160),GX$1))+1),\"\")","v":""},{"$f":"IFERROR(MID($W128,FIND(CHAR(160),SUBSTITUTE($W128,\"{\",CHAR(160),GY$1)),FIND(CHAR(160),SUBSTITUTE($W128,\"}\",CHAR(160),GY$1))-FIND(CHAR(160),SUBSTITUTE($W128,\"{\",CHAR(160),GY$1))+1),\"\")","v":""},{"$f":"IFERROR(MID($W128,FIND(CHAR(160),SUBSTITUTE($W128,\"{\",CHAR(160),GZ$1)),FIND(CHAR(160),SUBSTITUTE($W128,\"}\",CHAR(160),GZ$1))-FIND(CHAR(160),SUBSTITUTE($W128,\"{\",CHAR(160),GZ$1))+1),\"\")","v":""},{"$f":"IFERROR(MID($X128,FIND(CHAR(160),SUBSTITUTE($X128,\"{\",CHAR(160),HA$1)),FIND(CHAR(160),SUBSTITUTE($X128,\"}\",CHAR(160),HA$1))-FIND(CHAR(160),SUBSTITUTE($X128,\"{\",CHAR(160),HA$1))+1),\"\")","v":""},{"$f":"IFERROR(MID($X128,FIND(CHAR(160),SUBSTITUTE($X128,\"{\",CHAR(160),HB$1)),FIND(CHAR(160),SUBSTITUTE($X128,\"}\",CHAR(160),HB$1))-FIND(CHAR(160),SUBSTITUTE($X128,\"{\",CHAR(160),HB$1))+1),\"\")","v":""},{"$f":"IFERROR(MID($X128,FIND(CHAR(160),SUBSTITUTE($X128,\"{\",CHAR(160),HC$1)),FIND(CHAR(160),SUBSTITUTE($X128,\"}\",CHAR(160),HC$1))-FIND(CHAR(160),SUBSTITUTE($X128,\"{\",CHAR(160),HC$1))+1),\"\")","v":""},{"$f":"IFERROR(MID($X128,FIND(CHAR(160),SUBSTITUTE($X128,\"{\",CHAR(160),HD$1)),FIND(CHAR(160),SUBSTITUTE($X128,\"}\",CHAR(160),HD$1))-FIND(CHAR(160),SUBSTITUTE($X128,\"{\",CHAR(160),HD$1))+1),\"\")","v":""},{"$f":"IFERROR(MID($X128,FIND(CHAR(160),SUBSTITUTE($X128,\"{\",CHAR(160),HE$1)),FIND(CHAR(160),SUBSTITUTE($X128,\"}\",CHAR(160),HE$1))-FIND(CHAR(160),SUBSTITUTE($X128,\"{\",CHAR(160),HE$1))+1),\"\")","v":""},{"$f":"IFERROR(MID($X128,FIND(CHAR(160),SUBSTITUTE($X128,\"{\",CHAR(160),HF$1)),FIND(CHAR(160),SUBSTITUTE($X128,\"}\",CHAR(160),HF$1))-FIND(CHAR(160),SUBSTITUTE($X128,\"{\",CHAR(160),HF$1))+1),\"\")","v":""},{"$f":"IFERROR(MID($X128,FIND(CHAR(160),SUBSTITUTE($X128,\"{\",CHAR(160),HG$1)),FIND(CHAR(160),SUBSTITUTE($X128,\"}\",CHAR(160),HG$1))-FIND(CHAR(160),SUBSTITUTE($X128,\"{\",CHAR(160),HG$1))+1),\"\")","v":""},{"$f":"IFERROR(MID($X128,FIND(CHAR(160),SUBSTITUTE($X128,\"{\",CHAR(160),HH$1)),FIND(CHAR(160),SUBSTITUTE($X128,\"}\",CHAR(160),HH$1))-FIND(CHAR(160),SUBSTITUTE($X128,\"{\",CHAR(160),HH$1))+1),\"\")","v":""},{"$f":"IFERROR(MID($X128,FIND(CHAR(160),SUBSTITUTE($X128,\"{\",CHAR(160),HI$1)),FIND(CHAR(160),SUBSTITUTE($X128,\"}\",CHAR(160),HI$1))-FIND(CHAR(160),SUBSTITUTE($X128,\"{\",CHAR(160),HI$1))+1),\"\")","v":""},{"$f":"IFERROR(MID($X128,FIND(CHAR(160),SUBSTITUTE($X128,\"{\",CHAR(160),HJ$1)),FIND(CHAR(160),SUBSTITUTE($X128,\"}\",CHAR(160),HJ$1))-FIND(CHAR(160),SUBSTITUTE($X128,\"{\",CHAR(160),HJ$1))+1),\"\")","v":""},{"$f":"IFERROR(MID($Y128,FIND(CHAR(160),SUBSTITUTE($Y128,\"{\",CHAR(160),HK$1)),FIND(CHAR(160),SUBSTITUTE($Y128,\"}\",CHAR(160),HK$1))-FIND(CHAR(160),SUBSTITUTE($Y128,\"{\",CHAR(160),HK$1))+1),\"\")","v":""},{"$f":"IFERROR(MID($Y128,FIND(CHAR(160),SUBSTITUTE($Y128,\"{\",CHAR(160),HL$1)),FIND(CHAR(160),SUBSTITUTE($Y128,\"}\",CHAR(160),HL$1))-FIND(CHAR(160),SUBSTITUTE($Y128,\"{\",CHAR(160),HL$1))+1),\"\")","v":""},{"$f":"IFERROR(MID($Y128,FIND(CHAR(160),SUBSTITUTE($Y128,\"{\",CHAR(160),HM$1)),FIND(CHAR(160),SUBSTITUTE($Y128,\"}\",CHAR(160),HM$1))-FIND(CHAR(160),SUBSTITUTE($Y128,\"{\",CHAR(160),HM$1))+1),\"\")","v":""},{"$f":"IFERROR(MID($Y128,FIND(CHAR(160),SUBSTITUTE($Y128,\"{\",CHAR(160),HN$1)),FIND(CHAR(160),SUBSTITUTE($Y128,\"}\",CHAR(160),HN$1))-FIND(CHAR(160),SUBSTITUTE($Y128,\"{\",CHAR(160),HN$1))+1),\"\")","v":""},{"$f":"IFERROR(MID($Y128,FIND(CHAR(160),SUBSTITUTE($Y128,\"{\",CHAR(160),HO$1)),FIND(CHAR(160),SUBSTITUTE($Y128,\"}\",CHAR(160),HO$1))-FIND(CHAR(160),SUBSTITUTE($Y128,\"{\",CHAR(160),HO$1))+1),\"\")","v":""},{"$f":"IFERROR(MID($Y128,FIND(CHAR(160),SUBSTITUTE($Y128,\"{\",CHAR(160),HP$1)),FIND(CHAR(160),SUBSTITUTE($Y128,\"}\",CHAR(160),HP$1))-FIND(CHAR(160),SUBSTITUTE($Y128,\"{\",CHAR(160),HP$1))+1),\"\")","v":""},{"$f":"IFERROR(MID($Y128,FIND(CHAR(160),SUBSTITUTE($Y128,\"{\",CHAR(160),HQ$1)),FIND(CHAR(160),SUBSTITUTE($Y128,\"}\",CHAR(160),HQ$1))-FIND(CHAR(160),SUBSTITUTE($Y128,\"{\",CHAR(160),HQ$1))+1),\"\")","v":""},{"$f":"IFERROR(MID($Y128,FIND(CHAR(160),SUBSTITUTE($Y128,\"{\",CHAR(160),HR$1)),FIND(CHAR(160),SUBSTITUTE($Y128,\"}\",CHAR(160),HR$1))-FIND(CHAR(160),SUBSTITUTE($Y128,\"{\",CHAR(160),HR$1))+1),\"\")","v":""},{"$f":"IFERROR(MID($Y128,FIND(CHAR(160),SUBSTITUTE($Y128,\"{\",CHAR(160),HS$1)),FIND(CHAR(160),SUBSTITUTE($Y128,\"}\",CHAR(160),HS$1))-FIND(CHAR(160),SUBSTITUTE($Y128,\"{\",CHAR(160),HS$1))+1),\"\")","v":""},{"$f":"IFERROR(MID($Y128,FIND(CHAR(160),SUBSTITUTE($Y128,\"{\",CHAR(160),HT$1)),FIND(CHAR(160),SUBSTITUTE($Y128,\"}\",CHAR(160),HT$1))-FIND(CHAR(160),SUBSTITUTE($Y128,\"{\",CHAR(160),HT$1))+1),\"\")","v":""},{"$f":"IFERROR(MID($Z128,FIND(CHAR(160),SUBSTITUTE($Z128,\"{\",CHAR(160),HU$1)),FIND(CHAR(160),SUBSTITUTE($Z128,\"}\",CHAR(160),HU$1))-FIND(CHAR(160),SUBSTITUTE($Z128,\"{\",CHAR(160),HU$1))+1),\"\")","v":""},{"$f":"IFERROR(MID($Z128,FIND(CHAR(160),SUBSTITUTE($Z128,\"{\",CHAR(160),HV$1)),FIND(CHAR(160),SUBSTITUTE($Z128,\"}\",CHAR(160),HV$1))-FIND(CHAR(160),SUBSTITUTE($Z128,\"{\",CHAR(160),HV$1))+1),\"\")","v":""},{"$f":"IFERROR(MID($Z128,FIND(CHAR(160),SUBSTITUTE($Z128,\"{\",CHAR(160),HW$1)),FIND(CHAR(160),SUBSTITUTE($Z128,\"}\",CHAR(160),HW$1))-FIND(CHAR(160),SUBSTITUTE($Z128,\"{\",CHAR(160),HW$1))+1),\"\")","v":""},{"$f":"IFERROR(MID($Z128,FIND(CHAR(160),SUBSTITUTE($Z128,\"{\",CHAR(160),HX$1)),FIND(CHAR(160),SUBSTITUTE($Z128,\"}\",CHAR(160),HX$1))-FIND(CHAR(160),SUBSTITUTE($Z128,\"{\",CHAR(160),HX$1))+1),\"\")","v":""},{"$f":"IFERROR(MID($Z128,FIND(CHAR(160),SUBSTITUTE($Z128,\"{\",CHAR(160),HY$1)),FIND(CHAR(160),SUBSTITUTE($Z128,\"}\",CHAR(160),HY$1))-FIND(CHAR(160),SUBSTITUTE($Z128,\"{\",CHAR(160),HY$1))+1),\"\")","v":""},{"$f":"IFERROR(MID($Z128,FIND(CHAR(160),SUBSTITUTE($Z128,\"{\",CHAR(160),HZ$1)),FIND(CHAR(160),SUBSTITUTE($Z128,\"}\",CHAR(160),HZ$1))-FIND(CHAR(160),SUBSTITUTE($Z128,\"{\",CHAR(160),HZ$1))+1),\"\")","v":""},{"$f":"IFERROR(MID($Z128,FIND(CHAR(160),SUBSTITUTE($Z128,\"{\",CHAR(160),IA$1)),FIND(CHAR(160),SUBSTITUTE($Z128,\"}\",CHAR(160),IA$1))-FIND(CHAR(160),SUBSTITUTE($Z128,\"{\",CHAR(160),IA$1))+1),\"\")","v":""},{"$f":"IFERROR(MID($Z128,FIND(CHAR(160),SUBSTITUTE($Z128,\"{\",CHAR(160),IB$1)),FIND(CHAR(160),SUBSTITUTE($Z128,\"}\",CHAR(160),IB$1))-FIND(CHAR(160),SUBSTITUTE($Z128,\"{\",CHAR(160),IB$1))+1),\"\")","v":""},{"$f":"IFERROR(MID($Z128,FIND(CHAR(160),SUBSTITUTE($Z128,\"{\",CHAR(160),IC$1)),FIND(CHAR(160),SUBSTITUTE($Z128,\"}\",CHAR(160),IC$1))-FIND(CHAR(160),SUBSTITUTE($Z128,\"{\",CHAR(160),IC$1))+1),\"\")","v":""},{"$f":"IFERROR(MID($Z128,FIND(CHAR(160),SUBSTITUTE($Z128,\"{\",CHAR(160),ID$1)),FIND(CHAR(160),SUBSTITUTE($Z128,\"}\",CHAR(160),ID$1))-FIND(CHAR(160),SUBSTITUTE($Z128,\"{\",CHAR(160),ID$1))+1),\"\")","v":""},{"$f":"IFERROR(MID($AA128,FIND(CHAR(160),SUBSTITUTE($AA128,\"{\",CHAR(160),IE$1)),FIND(CHAR(160),SUBSTITUTE($AA128,\"}\",CHAR(160),IE$1))-FIND(CHAR(160),SUBSTITUTE($AA128,\"{\",CHAR(160),IE$1))+1),\"\")","v":""},{"$f":"IFERROR(MID($AA128,FIND(CHAR(160),SUBSTITUTE($AA128,\"{\",CHAR(160),IF$1)),FIND(CHAR(160),SUBSTITUTE($AA128,\"}\",CHAR(160),IF$1))-FIND(CHAR(160),SUBSTITUTE($AA128,\"{\",CHAR(160),IF$1))+1),\"\")","v":""},{"$f":"IFERROR(MID($AA128,FIND(CHAR(160),SUBSTITUTE($AA128,\"{\",CHAR(160),IG$1)),FIND(CHAR(160),SUBSTITUTE($AA128,\"}\",CHAR(160),IG$1))-FIND(CHAR(160),SUBSTITUTE($AA128,\"{\",CHAR(160),IG$1))+1),\"\")","v":""},{"$f":"IFERROR(MID($AA128,FIND(CHAR(160),SUBSTITUTE($AA128,\"{\",CHAR(160),IH$1)),FIND(CHAR(160),SUBSTITUTE($AA128,\"}\",CHAR(160),IH$1))-FIND(CHAR(160),SUBSTITUTE($AA128,\"{\",CHAR(160),IH$1))+1),\"\")","v":""},{"$f":"IFERROR(MID($AA128,FIND(CHAR(160),SUBSTITUTE($AA128,\"{\",CHAR(160),II$1)),FIND(CHAR(160),SUBSTITUTE($AA128,\"}\",CHAR(160),II$1))-FIND(CHAR(160),SUBSTITUTE($AA128,\"{\",CHAR(160),II$1))+1),\"\")","v":""},{"$f":"IFERROR(MID($AA128,FIND(CHAR(160),SUBSTITUTE($AA128,\"{\",CHAR(160),IJ$1)),FIND(CHAR(160),SUBSTITUTE($AA128,\"}\",CHAR(160),IJ$1))-FIND(CHAR(160),SUBSTITUTE($AA128,\"{\",CHAR(160),IJ$1))+1),\"\")","v":""},{"$f":"IFERROR(MID($AA128,FIND(CHAR(160),SUBSTITUTE($AA128,\"{\",CHAR(160),IK$1)),FIND(CHAR(160),SUBSTITUTE($AA128,\"}\",CHAR(160),IK$1))-FIND(CHAR(160),SUBSTITUTE($AA128,\"{\",CHAR(160),IK$1))+1),\"\")","v":""},{"$f":"IFERROR(MID($AA128,FIND(CHAR(160),SUBSTITUTE($AA128,\"{\",CHAR(160),IL$1)),FIND(CHAR(160),SUBSTITUTE($AA128,\"}\",CHAR(160),IL$1))-FIND(CHAR(160),SUBSTITUTE($AA128,\"{\",CHAR(160),IL$1))+1),\"\")","v":""},{"$f":"IFERROR(MID($AA128,FIND(CHAR(160),SUBSTITUTE($AA128,\"{\",CHAR(160),IM$1)),FIND(CHAR(160),SUBSTITUTE($AA128,\"}\",CHAR(160),IM$1))-FIND(CHAR(160),SUBSTITUTE($AA128,\"{\",CHAR(160),IM$1))+1),\"\")","v":""},{"$f":"IFERROR(MID($AA128,FIND(CHAR(160),SUBSTITUTE($AA128,\"{\",CHAR(160),IN$1)),FIND(CHAR(160),SUBSTITUTE($AA128,\"}\",CHAR(160),IN$1))-FIND(CHAR(160),SUBSTITUTE($AA128,\"{\",CHAR(160),IN$1))+1),\"\")","v":""},{"$f":"IFERROR(MID($AB128,FIND(CHAR(160),SUBSTITUTE($AB128,\"{\",CHAR(160),IO$1)),FIND(CHAR(160),SUBSTITUTE($AB128,\"}\",CHAR(160),IO$1))-FIND(CHAR(160),SUBSTITUTE($AB128,\"{\",CHAR(160),IO$1))+1),\"\")","v":""},{"$f":"IFERROR(MID($AB128,FIND(CHAR(160),SUBSTITUTE($AB128,\"{\",CHAR(160),IP$1)),FIND(CHAR(160),SUBSTITUTE($AB128,\"}\",CHAR(160),IP$1))-FIND(CHAR(160),SUBSTITUTE($AB128,\"{\",CHAR(160),IP$1))+1),\"\")","v":""},{"$f":"IFERROR(MID($AB128,FIND(CHAR(160),SUBSTITUTE($AB128,\"{\",CHAR(160),IQ$1)),FIND(CHAR(160),SUBSTITUTE($AB128,\"}\",CHAR(160),IQ$1))-FIND(CHAR(160),SUBSTITUTE($AB128,\"{\",CHAR(160),IQ$1))+1),\"\")","v":""},{"$f":"IFERROR(MID($AB128,FIND(CHAR(160),SUBSTITUTE($AB128,\"{\",CHAR(160),IR$1)),FIND(CHAR(160),SUBSTITUTE($AB128,\"}\",CHAR(160),IR$1))-FIND(CHAR(160),SUBSTITUTE($AB128,\"{\",CHAR(160),IR$1))+1),\"\")","v":""},{"$f":"IFERROR(MID($AB128,FIND(CHAR(160),SUBSTITUTE($AB128,\"{\",CHAR(160),IS$1)),FIND(CHAR(160),SUBSTITUTE($AB128,\"}\",CHAR(160),IS$1))-FIND(CHAR(160),SUBSTITUTE($AB128,\"{\",CHAR(160),IS$1))+1),\"\")","v":""},{"$f":"IFERROR(MID($AB128,FIND(CHAR(160),SUBSTITUTE($AB128,\"{\",CHAR(160),IT$1)),FIND(CHAR(160),SUBSTITUTE($AB128,\"}\",CHAR(160),IT$1))-FIND(CHAR(160),SUBSTITUTE($AB128,\"{\",CHAR(160),IT$1))+1),\"\")","v":""},{"$f":"IFERROR(MID($AB128,FIND(CHAR(160),SUBSTITUTE($AB128,\"{\",CHAR(160),IU$1)),FIND(CHAR(160),SUBSTITUTE($AB128,\"}\",CHAR(160),IU$1))-FIND(CHAR(160),SUBSTITUTE($AB128,\"{\",CHAR(160),IU$1))+1),\"\")","v":""},{"$f":"IFERROR(MID($AB128,FIND(CHAR(160),SUBSTITUTE($AB128,\"{\",CHAR(160),IV$1)),FIND(CHAR(160),SUBSTITUTE($AB128,\"}\",CHAR(160),IV$1))-FIND(CHAR(160),SUBSTITUTE($AB128,\"{\",CHAR(160),IV$1))+1),\"\")","v":""},{"$f":"IFERROR(MID($AB128,FIND(CHAR(160),SUBSTITUTE($AB128,\"{\",CHAR(160),IW$1)),FIND(CHAR(160),SUBSTITUTE($AB128,\"}\",CHAR(160),IW$1))-FIND(CHAR(160),SUBSTITUTE($AB128,\"{\",CHAR(160),IW$1))+1),\"\")","v":""},{"$f":"IFERROR(MID($AB128,FIND(CHAR(160),SUBSTITUTE($AB128,\"{\",CHAR(160),IX$1)),FIND(CHAR(160),SUBSTITUTE($AB128,\"}\",CHAR(160),IX$1))-FIND(CHAR(160),SUBSTITUTE($AB128,\"{\",CHAR(160),IX$1))+1),\"\")","v":""},null,{"$f":"10-COUNTIF(DU128:ED128,\"\")","v":4}]
["C&I Prescriptive Compressed Air Solutions","LPD Filter - C32 - System Compressor Size (hp) - 26-50","LPD - C32","2021-07-01","2022-06-30","Calculated","{Measure:Quantity}*{System Compressor Size (HP)} * 4.60",0,"Per Measure",150,0,"2017-07-01","2022-06-30","Calculated","{Measure:Quantity} *{System Compressor Size (HP)} * 0.746 * 0.01 * {Weekly Hrs of Operation} * {Weeks Per Year}",1E-4,null,"{Measure:Quantity} *{System Compressor Size (HP)} * 0.746 * 0.01",null,null,"{Measure:Quantity} *{System Compressor Size (HP)} * 0.746 * 0.01 * {Factor:WinterCF}","{Measure:Quantity} *{System Compressor Size (HP)} * 0.746 * 0.01 * {Factor:SummerCF}",null,null,null,null,null,null,"2017-07-01","2022-06-30",4,0.7,0.91100000000000003,0.30399999999999999,0.36099999999999999,0.156,0.17899999999999999,1,1.1220000000000001,1,0.52,1.6E-2,null,{"$f":"DU129","v":"{Measure:Quantity}"},1,{"$f":"DV129","v":"{System Compressor Size (HP)}"},30,{"$f":"DW129","v":"{Weekly Hrs of Operation}"},50,{"$f":"DX129","v":"{Weeks Per Year}"},50,{"$f":"DY129","v":""},null,{"$f":"DZ129","v":""},null,{"$f":"EA129","v":""},null,{"$f":"EB129","v":""},null,{"$f":"EC129","v":""},null,{"$f":"ED129","v":""},null,{"$f":"AS129 *AU129 * 0.746 * 0.01 * AW129 * AY129","v":559.5},{"$f":"0.0001","v":1E-4},0,{"$f":"AS129 *AU129 * 0.746 * 0.01","v":0.2238},0,0,{"$f":"AS129 *AU129 * 0.746 * 0.01 * AF129","v":0.15665999999999999},{"$f":"AS129 *AU129 * 0.746 * 0.01 * AG129","v":0.2038818},0,0,0,0,0,0,null,"Com","Default DR",{"$f":"Benefits(BL129,BR129,BS129,BT129,BU129,BV129,BW129,BX129,BY129,BZ129,AE129,AH129,AI129,AJ129,AK129,AL129,AM129,AN129,AO129,AP129,CA129,CB129)","v":285.13160748198027},299.04880631478346,0,0,0,0,0,0,0,{"$f":"SUMPRODUCT(CC129:CK129,--(CC129:CK129>0))","v":584.18041379676379},{"$f":"-SUMPRODUCT(CC129:CK129,--(CC129:CK129<0))","v":0},null,{"$f":"AS129*AU129 * 4.6","v":138},null,null,{"$f":"CM129+CO129","v":138},{"$f":"IF(NetOrGross=\"Net\",(1-AO129+AP129),1)","v":1},{"$f":"(SUMPRODUCT(CC129:CJ129,--(CC129:CJ129>0))+CN129)*CS129/((-SUMPRODUCT(CC129:CJ129,--(CC129:CJ129<0))+MAX(CO129,CV129)+CP129+CQ129)*CS129+IF(FRIncentives=\"Yes\",CV129*(1-CS129),0))","v":3.8945360919784253},14,{"$f":"150","v":150},null,"Electric","y",null,{"$f":"IF(F129=\"Manual Entry\",\"Manual\",IF(G129=\"\",0,\"X=\"&SUBSTITUTE(SUBSTITUTE(SUBSTITUTE(SUBSTITUTE(SUBSTITUTE(SUBSTITUTE(SUBSTITUTE(SUBSTITUTE(SUBSTITUTE(SUBSTITUTE(SUBSTITUTE(SUBSTITUTE(G129,$ED129,$ED$2&ROW($ED129)),$EC129,$EC$2&ROW($EC129)),$EB129,$EB$2&ROW($EB129)),$EA129,$EA$2&ROW($EA129)),$DZ129,$DZ$2&ROW($DZ129)),$DY129,$DY$2&ROW($DY129)),$DX129,$DX$2&ROW($DX129)),$DW129,$DW$2&ROW($DW129)),$DV129,$DV$2&ROW($DV129)),$DU129,$DU$2&ROW($DU129)),$DT129,$DT$2&ROW($DT129)),$DS129,$DS$2&ROW($DS129))))","v":"X=AS129*AU129 * 4.60"},{"$f":"IF(I129=\"Manual Entry\",\"Manual\",IF(J129=\"\",0,\"X=\"&SUBSTITUTE(SUBSTITUTE(SUBSTITUTE(SUBSTITUTE(SUBSTITUTE(SUBSTITUTE(SUBSTITUTE(SUBSTITUTE(SUBSTITUTE(SUBSTITUTE(SUBSTITUTE(SUBSTITUTE(J129,$ED129,$ED$2&ROW($ED129)),$EC129,$EC$2&ROW($EC129)),$EB129,$EB$2&ROW($EB129)),$EA129,$EA$2&ROW($EA129)),$DZ129,$DZ$2&ROW($DZ129)),$DY129,$DY$2&ROW($DY129)),$DX129,$DX$2&ROW($DX129)),$DW129,$DW$2&ROW($DW129)),$DV129,$DV$2&ROW($DV129)),$DU129,$DU$2&ROW($DU129)),$DT129,$DT$2&ROW($DT129)),$DS129,$DS$2&ROW($DS129))))","v":"X=150"},{"$f":"IF(O129=\"\",0,\"X=\"&SUBSTITUTE(SUBSTITUTE(SUBSTITUTE(SUBSTITUTE(SUBSTITUTE(SUBSTITUTE(SUBSTITUTE(SUBSTITUTE(SUBSTITUTE(SUBSTITUTE(SUBSTITUTE(SUBSTITUTE(O129,$ED129,$ED$2&ROW($ED129)),$EC129,$EC$2&ROW($EC129)),$EB129,$EB$2&ROW($EB129)),$EA129,$EA$2&ROW($EA129)),$DZ129,$DZ$2&ROW($DZ129)),$DY129,$DY$2&ROW($DY129)),$DX129,$DX$2&ROW($DX129)),$DW129,$DW$2&ROW($DW129)),$DV129,$DV$2&ROW($DV129)),$DU129,$DU$2&ROW($DU129)),$DT129,$DT$2&ROW($DT129)),$DS129,$DS$2&ROW($DS129)))","v":"X=AS129 *AU129 * 0.746 * 0.01 * AW129 * AY129"},{"$f":"IF(P129=\"\",0,\"X=\"&SUBSTITUTE(SUBSTITUTE(SUBSTITUTE(SUBSTITUTE(SUBSTITUTE(SUBSTITUTE(SUBSTITUTE(SUBSTITUTE(SUBSTITUTE(SUBSTITUTE(SUBSTITUTE(SUBSTITUTE(P129,$ED129,$ED$2&ROW($ED129)),$EC129,$EC$2&ROW($EC129)),$EB129,$EB$2&ROW($EB129)),$EA129,$EA$2&ROW($EA129)),$DZ129,$DZ$2&ROW($DZ129)),$DY129,$DY$2&ROW($DY129)),$DX129,$DX$2&ROW($DX129)),$DW129,$DW$2&ROW($DW129)),$DV129,$DV$2&ROW($DV129)),$DU129,$DU$2&ROW($DU129)),$DT129,$DT$2&ROW($DT129)),$DS129,$DS$2&ROW($DS129)))","v":"X=0.0001"},{"$f":"IF(Q129=\"\",0,\"X=\"&SUBSTITUTE(SUBSTITUTE(SUBSTITUTE(SUBSTITUTE(SUBSTITUTE(SUBSTITUTE(SUBSTITUTE(SUBSTITUTE(SUBSTITUTE(SUBSTITUTE(SUBSTITUTE(SUBSTITUTE(Q129,$ED129,$ED$2&ROW($ED129)),$EC129,$EC$2&ROW($EC129)),$EB129,$EB$2&ROW($EB129)),$EA129,$EA$2&ROW($EA129)),$DZ129,$DZ$2&ROW($DZ129)),$DY129,$DY$2&ROW($DY129)),$DX129,$DX$2&ROW($DX129)),$DW129,$DW$2&ROW($DW129)),$DV129,$DV$2&ROW($DV129)),$DU129,$DU$2&ROW($DU129)),$DT129,$DT$2&ROW($DT129)),$DS129,$DS$2&ROW($DS129)))","v":0},{"$f":"IF(R129=\"\",0,\"X=\"&SUBSTITUTE(SUBSTITUTE(SUBSTITUTE(SUBSTITUTE(SUBSTITUTE(SUBSTITUTE(SUBSTITUTE(SUBSTITUTE(SUBSTITUTE(SUBSTITUTE(SUBSTITUTE(SUBSTITUTE(R129,$ED129,$ED$2&ROW($ED129)),$EC129,$EC$2&ROW($EC129)),$EB129,$EB$2&ROW($EB129)),$EA129,$EA$2&ROW($EA129)),$DZ129,$DZ$2&ROW($DZ129)),$DY129,$DY$2&ROW($DY129)),$DX129,$DX$2&ROW($DX129)),$DW129,$DW$2&ROW($DW129)),$DV129,$DV$2&ROW($DV129)),$DU129,$DU$2&ROW($DU129)),$DT129,$DT$2&ROW($DT129)),$DS129,$DS$2&ROW($DS129)))","v":"X=AS129 *AU129 * 0.746 * 0.01"},{"$f":"IF(S129=\"\",0,\"X=\"&SUBSTITUTE(SUBSTITUTE(SUBSTITUTE(SUBSTITUTE(SUBSTITUTE(SUBSTITUTE(SUBSTITUTE(SUBSTITUTE(SUBSTITUTE(SUBSTITUTE(SUBSTITUTE(SUBSTITUTE(S129,$ED129,$ED$2&ROW($ED129)),$EC129,$EC$2&ROW($EC129)),$EB129,$EB$2&ROW($EB129)),$EA129,$EA$2&ROW($EA129)),$DZ129,$DZ$2&ROW($DZ129)),$DY129,$DY$2&ROW($DY129)),$DX129,$DX$2&ROW($DX129)),$DW129,$DW$2&ROW($DW129)),$DV129,$DV$2&ROW($DV129)),$DU129,$DU$2&ROW($DU129)),$DT129,$DT$2&ROW($DT129)),$DS129,$DS$2&ROW($DS129)))","v":0},{"$f":"IF(T129=\"\",0,\"X=\"&SUBSTITUTE(SUBSTITUTE(SUBSTITUTE(SUBSTITUTE(SUBSTITUTE(SUBSTITUTE(SUBSTITUTE(SUBSTITUTE(SUBSTITUTE(SUBSTITUTE(SUBSTITUTE(SUBSTITUTE(T129,$ED129,$ED$2&ROW($ED129)),$EC129,$EC$2&ROW($EC129)),$EB129,$EB$2&ROW($EB129)),$EA129,$EA$2&ROW($EA129)),$DZ129,$DZ$2&ROW($DZ129)),$DY129,$DY$2&ROW($DY129)),$DX129,$DX$2&ROW($DX129)),$DW129,$DW$2&ROW($DW129)),$DV129,$DV$2&ROW($DV129)),$DU129,$DU$2&ROW($DU129)),$DT129,$DT$2&ROW($DT129)),$DS129,$DS$2&ROW($DS129)))","v":0},{"$f":"IF(U129=\"\",0,\"X=\"&SUBSTITUTE(SUBSTITUTE(SUBSTITUTE(SUBSTITUTE(SUBSTITUTE(SUBSTITUTE(SUBSTITUTE(SUBSTITUTE(SUBSTITUTE(SUBSTITUTE(SUBSTITUTE(SUBSTITUTE(U129,$ED129,$ED$2&ROW($ED129)),$EC129,$EC$2&ROW($EC129)),$EB129,$EB$2&ROW($EB129)),$EA129,$EA$2&ROW($EA129)),$DZ129,$DZ$2&ROW($DZ129)),$DY129,$DY$2&ROW($DY129)),$DX129,$DX$2&ROW($DX129)),$DW129,$DW$2&ROW($DW129)),$DV129,$DV$2&ROW($DV129)),$DU129,$DU$2&ROW($DU129)),$DT129,$DT$2&ROW($DT129)),$DS129,$DS$2&ROW($DS129)))","v":"X=AS129 *AU129 * 0.746 * 0.01 * AF129"},{"$f":"IF(V129=\"\",0,\"X=\"&SUBSTITUTE(SUBSTITUTE(SUBSTITUTE(SUBSTITUTE(SUBSTITUTE(SUBSTITUTE(SUBSTITUTE(SUBSTITUTE(SUBSTITUTE(SUBSTITUTE(SUBSTITUTE(SUBSTITUTE(V129,$ED129,$ED$2&ROW($ED129)),$EC129,$EC$2&ROW($EC129)),$EB129,$EB$2&ROW($EB129)),$EA129,$EA$2&ROW($EA129)),$DZ129,$DZ$2&ROW($DZ129)),$DY129,$DY$2&ROW($DY129)),$DX129,$DX$2&ROW($DX129)),$DW129,$DW$2&ROW($DW129)),$DV129,$DV$2&ROW($DV129)),$DU129,$DU$2&ROW($DU129)),$DT129,$DT$2&ROW($DT129)),$DS129,$DS$2&ROW($DS129)))","v":"X=AS129 *AU129 * 0.746 * 0.01 * AG129"},{"$f":"IF(W129=\"\",0,\"X=\"&SUBSTITUTE(SUBSTITUTE(SUBSTITUTE(SUBSTITUTE(SUBSTITUTE(SUBSTITUTE(SUBSTITUTE(SUBSTITUTE(SUBSTITUTE(SUBSTITUTE(SUBSTITUTE(SUBSTITUTE(W129,$ED129,$ED$2&ROW($ED129)),$EC129,$EC$2&ROW($EC129)),$EB129,$EB$2&ROW($EB129)),$EA129,$EA$2&ROW($EA129)),$DZ129,$DZ$2&ROW($DZ129)),$DY129,$DY$2&ROW($DY129)),$DX129,$DX$2&ROW($DX129)),$DW129,$DW$2&ROW($DW129)),$DV129,$DV$2&ROW($DV129)),$DU129,$DU$2&ROW($DU129)),$DT129,$DT$2&ROW($DT129)),$DS129,$DS$2&ROW($DS129)))","v":0},{"$f":"IF(X129=\"\",0,\"X=\"&SUBSTITUTE(SUBSTITUTE(SUBSTITUTE(SUBSTITUTE(SUBSTITUTE(SUBSTITUTE(SUBSTITUTE(SUBSTITUTE(SUBSTITUTE(SUBSTITUTE(SUBSTITUTE(SUBSTITUTE(X129,$ED129,$ED$2&ROW($ED129)),$EC129,$EC$2&ROW($EC129)),$EB129,$EB$2&ROW($EB129)),$EA129,$EA$2&ROW($EA129)),$DZ129,$DZ$2&ROW($DZ129)),$DY129,$DY$2&ROW($DY129)),$DX129,$DX$2&ROW($DX129)),$DW129,$DW$2&ROW($DW129)),$DV129,$DV$2&ROW($DV129)),$DU129,$DU$2&ROW($DU129)),$DT129,$DT$2&ROW($DT129)),$DS129,$DS$2&ROW($DS129)))","v":0},{"$f":"IF(Y129=\"\",0,\"X=\"&SUBSTITUTE(SUBSTITUTE(SUBSTITUTE(SUBSTITUTE(SUBSTITUTE(SUBSTITUTE(SUBSTITUTE(SUBSTITUTE(SUBSTITUTE(SUBSTITUTE(SUBSTITUTE(SUBSTITUTE(Y129,$ED129,$ED$2&ROW($ED129)),$EC129,$EC$2&ROW($EC129)),$EB129,$EB$2&ROW($EB129)),$EA129,$EA$2&ROW($EA129)),$DZ129,$DZ$2&ROW($DZ129)),$DY129,$DY$2&ROW($DY129)),$DX129,$DX$2&ROW($DX129)),$DW129,$DW$2&ROW($DW129)),$DV129,$DV$2&ROW($DV129)),$DU129,$DU$2&ROW($DU129)),$DT129,$DT$2&ROW($DT129)),$DS129,$DS$2&ROW($DS129)))","v":0},{"$f":"IF(Z129=\"\",0,\"X=\"&SUBSTITUTE(SUBSTITUTE(SUBSTITUTE(SUBSTITUTE(SUBSTITUTE(SUBSTITUTE(SUBSTITUTE(SUBSTITUTE(SUBSTITUTE(SUBSTITUTE(SUBSTITUTE(SUBSTITUTE(Z129,$ED129,$ED$2&ROW($ED129)),$EC129,$EC$2&ROW($EC129)),$EB129,$EB$2&ROW($EB129)),$EA129,$EA$2&ROW($EA129)),$DZ129,$DZ$2&ROW($DZ129)),$DY129,$DY$2&ROW($DY129)),$DX129,$DX$2&ROW($DX129)),$DW129,$DW$2&ROW($DW129)),$DV129,$DV$2&ROW($DV129)),$DU129,$DU$2&ROW($DU129)),$DT129,$DT$2&ROW($DT129)),$DS129,$DS$2&ROW($DS129)))","v":0},{"$f":"IF(AA129=\"\",0,\"X=\"&SUBSTITUTE(SUBSTITUTE(SUBSTITUTE(SUBSTITUTE(SUBSTITUTE(SUBSTITUTE(SUBSTITUTE(SUBSTITUTE(SUBSTITUTE(SUBSTITUTE(SUBSTITUTE(SUBSTITUTE(AA129,$ED129,$ED$2&ROW($ED129)),$EC129,$EC$2&ROW($EC129)),$EB129,$EB$2&ROW($EB129)),$EA129,$EA$2&ROW($EA129)),$DZ129,$DZ$2&ROW($DZ129)),$DY129,$DY$2&ROW($DY129)),$DX129,$DX$2&ROW($DX129)),$DW129,$DW$2&ROW($DW129)),$DV129,$DV$2&ROW($DV129)),$DU129,$DU$2&ROW($DU129)),$DT129,$DT$2&ROW($DT129)),$DS129,$DS$2&ROW($DS129)))","v":0},{"$f":"IF(AB129=\"\",0,\"X=\"&SUBSTITUTE(SUBSTITUTE(SUBSTITUTE(SUBSTITUTE(SUBSTITUTE(SUBSTITUTE(SUBSTITUTE(SUBSTITUTE(SUBSTITUTE(SUBSTITUTE(SUBSTITUTE(SUBSTITUTE(AB129,$ED129,$ED$2&ROW($ED129)),$EC129,$EC$2&ROW($EC129)),$EB129,$EB$2&ROW($EB129)),$EA129,$EA$2&ROW($EA129)),$DZ129,$DZ$2&ROW($DZ129)),$DY129,$DY$2&ROW($DY129)),$DX129,$DX$2&ROW($DX129)),$DW129,$DW$2&ROW($DW129)),$DV129,$DV$2&ROW($DV129)),$DU129,$DU$2&ROW($DU129)),$DT129,$DT$2&ROW($DT129)),$DS129,$DS$2&ROW($DS129)))","v":0},null,null,"{Factor:WinterCF}","{Factor:SummerCF}",{"$f":"IFERROR(INDEX($EG129:$IV129,MATCH(0,COUNTIF($DR129:DT129,$EG129:$IV129),0)),\"\")","v":"{Measure:Quantity}"},{"$f":"IFERROR(INDEX($EG129:$IV129,MATCH(0,COUNTIF($DR129:DU129,$EG129:$IV129),0)),\"\")","v":"{System Compressor Size (HP)}"},{"$f":"IFERROR(INDEX($EG129:$IV129,MATCH(0,COUNTIF($DR129:DV129,$EG129:$IV129),0)),\"\")","v":"{Weekly Hrs of Operation}"},{"$f":"IFERROR(INDEX($EG129:$IV129,MATCH(0,COUNTIF($DR129:DW129,$EG129:$IV129),0)),\"\")","v":"{Weeks Per Year}"},{"$f":"IFERROR(INDEX($EG129:$IV129,MATCH(0,COUNTIF($DR129:DX129,$EG129:$IV129),0)),\"\")","v":""},{"$f":"IFERROR(INDEX($EG129:$IV129,MATCH(0,COUNTIF($DR129:DY129,$EG129:$IV129),0)),\"\")","v":""},{"$f":"IFERROR(INDEX($EG129:$IV129,MATCH(0,COUNTIF($DR129:DZ129,$EG129:$IV129),0)),\"\")","v":""},{"$f":"IFERROR(INDEX($EG129:$IV129,MATCH(0,COUNTIF($DR129:EA129,$EG129:$IV129),0)),\"\")","v":""},{"$f":"IFERROR(INDEX($EG129:$IV129,MATCH(0,COUNTIF($DR129:EB129,$EG129:$IV129),0)),\"\")","v":""},{"$f":"IFERROR(INDEX($EG129:$IV129,MATCH(0,COUNTIF($DR129:EC129,$EG129:$IV129),0)),\"\")","v":""},null,null,{"$f":"IFERROR(MID($G129,FIND(CHAR(160),SUBSTITUTE($G129,\"{\",CHAR(160),EG$1)),FIND(CHAR(160),SUBSTITUTE($G129,\"}\",CHAR(160),EG$1))-FIND(CHAR(160),SUBSTITUTE($G129,\"{\",CHAR(160),EG$1))+1),\"\")","v":"{Measure:Quantity}"},{"$f":"IFERROR(MID($G129,FIND(CHAR(160),SUBSTITUTE($G129,\"{\",CHAR(160),EH$1)),FIND(CHAR(160),SUBSTITUTE($G129,\"}\",CHAR(160),EH$1))-FIND(CHAR(160),SUBSTITUTE($G129,\"{\",CHAR(160),EH$1))+1),\"\")","v":"{System Compressor Size (HP)}"},{"$f":"IFERROR(MID($G129,FIND(CHAR(160),SUBSTITUTE($G129,\"{\",CHAR(160),EI$1)),FIND(CHAR(160),SUBSTITUTE($G129,\"}\",CHAR(160),EI$1))-FIND(CHAR(160),SUBSTITUTE($G129,\"{\",CHAR(160),EI$1))+1),\"\")","v":""},{"$f":"IFERROR(MID($G129,FIND(CHAR(160),SUBSTITUTE($G129,\"{\",CHAR(160),EJ$1)),FIND(CHAR(160),SUBSTITUTE($G129,\"}\",CHAR(160),EJ$1))-FIND(CHAR(160),SUBSTITUTE($G129,\"{\",CHAR(160),EJ$1))+1),\"\")","v":""},{"$f":"IFERROR(MID($G129,FIND(CHAR(160),SUBSTITUTE($G129,\"{\",CHAR(160),EK$1)),FIND(CHAR(160),SUBSTITUTE($G129,\"}\",CHAR(160),EK$1))-FIND(CHAR(160),SUBSTITUTE($G129,\"{\",CHAR(160),EK$1))+1),\"\")","v":""},{"$f":"IFERROR(MID($G129,FIND(CHAR(160),SUBSTITUTE($G129,\"{\",CHAR(160),EL$1)),FIND(CHAR(160),SUBSTITUTE($G129,\"}\",CHAR(160),EL$1))-FIND(CHAR(160),SUBSTITUTE($G129,\"{\",CHAR(160),EL$1))+1),\"\")","v":""},{"$f":"IFERROR(MID($G129,FIND(CHAR(160),SUBSTITUTE($G129,\"{\",CHAR(160),EM$1)),FIND(CHAR(160),SUBSTITUTE($G129,\"}\",CHAR(160),EM$1))-FIND(CHAR(160),SUBSTITUTE($G129,\"{\",CHAR(160),EM$1))+1),\"\")","v":""},{"$f":"IFERROR(MID($G129,FIND(CHAR(160),SUBSTITUTE($G129,\"{\",CHAR(160),EN$1)),FIND(CHAR(160),SUBSTITUTE($G129,\"}\",CHAR(160),EN$1))-FIND(CHAR(160),SUBSTITUTE($G129,\"{\",CHAR(160),EN$1))+1),\"\")","v":""},{"$f":"IFERROR(MID($G129,FIND(CHAR(160),SUBSTITUTE($G129,\"{\",CHAR(160),EO$1)),FIND(CHAR(160),SUBSTITUTE($G129,\"}\",CHAR(160),EO$1))-FIND(CHAR(160),SUBSTITUTE($G129,\"{\",CHAR(160),EO$1))+1),\"\")","v":""},{"$f":"IFERROR(MID($G129,FIND(CHAR(160),SUBSTITUTE($G129,\"{\",CHAR(160),EP$1)),FIND(CHAR(160),SUBSTITUTE($G129,\"}\",CHAR(160),EP$1))-FIND(CHAR(160),SUBSTITUTE($G129,\"{\",CHAR(160),EP$1))+1),\"\")","v":""},{"$f":"IFERROR(MID($J129,FIND(CHAR(160),SUBSTITUTE($J129,\"{\",CHAR(160),EQ$1)),FIND(CHAR(160),SUBSTITUTE($J129,\"}\",CHAR(160),EQ$1))-FIND(CHAR(160),SUBSTITUTE($J129,\"{\",CHAR(160),EQ$1))+1),\"\")","v":""},{"$f":"IFERROR(MID($J129,FIND(CHAR(160),SUBSTITUTE($J129,\"{\",CHAR(160),ER$1)),FIND(CHAR(160),SUBSTITUTE($J129,\"}\",CHAR(160),ER$1))-FIND(CHAR(160),SUBSTITUTE($J129,\"{\",CHAR(160),ER$1))+1),\"\")","v":""},{"$f":"IFERROR(MID($J129,FIND(CHAR(160),SUBSTITUTE($J129,\"{\",CHAR(160),ES$1)),FIND(CHAR(160),SUBSTITUTE($J129,\"}\",CHAR(160),ES$1))-FIND(CHAR(160),SUBSTITUTE($J129,\"{\",CHAR(160),ES$1))+1),\"\")","v":""},{"$f":"IFERROR(MID($J129,FIND(CHAR(160),SUBSTITUTE($J129,\"{\",CHAR(160),ET$1)),FIND(CHAR(160),SUBSTITUTE($J129,\"}\",CHAR(160),ET$1))-FIND(CHAR(160),SUBSTITUTE($J129,\"{\",CHAR(160),ET$1))+1),\"\")","v":""},{"$f":"IFERROR(MID($J129,FIND(CHAR(160),SUBSTITUTE($J129,\"{\",CHAR(160),EU$1)),FIND(CHAR(160),SUBSTITUTE($J129,\"}\",CHAR(160),EU$1))-FIND(CHAR(160),SUBSTITUTE($J129,\"{\",CHAR(160),EU$1))+1),\"\")","v":""},{"$f":"IFERROR(MID($J129,FIND(CHAR(160),SUBSTITUTE($J129,\"{\",CHAR(160),EV$1)),FIND(CHAR(160),SUBSTITUTE($J129,\"}\",CHAR(160),EV$1))-FIND(CHAR(160),SUBSTITUTE($J129,\"{\",CHAR(160),EV$1))+1),\"\")","v":""},{"$f":"IFERROR(MID($J129,FIND(CHAR(160),SUBSTITUTE($J129,\"{\",CHAR(160),EW$1)),FIND(CHAR(160),SUBSTITUTE($J129,\"}\",CHAR(160),EW$1))-FIND(CHAR(160),SUBSTITUTE($J129,\"{\",CHAR(160),EW$1))+1),\"\")","v":""},{"$f":"IFERROR(MID($J129,FIND(CHAR(160),SUBSTITUTE($J129,\"{\",CHAR(160),EX$1)),FIND(CHAR(160),SUBSTITUTE($J129,\"}\",CHAR(160),EX$1))-FIND(CHAR(160),SUBSTITUTE($J129,\"{\",CHAR(160),EX$1))+1),\"\")","v":""},{"$f":"IFERROR(MID($J129,FIND(CHAR(160),SUBSTITUTE($J129,\"{\",CHAR(160),EY$1)),FIND(CHAR(160),SUBSTITUTE($J129,\"}\",CHAR(160),EY$1))-FIND(CHAR(160),SUBSTITUTE($J129,\"{\",CHAR(160),EY$1))+1),\"\")","v":""},{"$f":"IFERROR(MID($J129,FIND(CHAR(160),SUBSTITUTE($J129,\"{\",CHAR(160),EZ$1)),FIND(CHAR(160),SUBSTITUTE($J129,\"}\",CHAR(160),EZ$1))-FIND(CHAR(160),SUBSTITUTE($J129,\"{\",CHAR(160),EZ$1))+1),\"\")","v":""},{"$f":"IFERROR(MID($J129,FIND(CHAR(160),SUBSTITUTE($J129,\"{\",CHAR(160),FA$1)),FIND(CHAR(160),SUBSTITUTE($J129,\"}\",CHAR(160),FA$1))-FIND(CHAR(160),SUBSTITUTE($J129,\"{\",CHAR(160),FA$1))+1),\"\")","v":""},{"$f":"IFERROR(MID($J129,FIND(CHAR(160),SUBSTITUTE($J129,\"{\",CHAR(160),FB$1)),FIND(CHAR(160),SUBSTITUTE($J129,\"}\",CHAR(160),FB$1))-FIND(CHAR(160),SUBSTITUTE($J129,\"{\",CHAR(160),FB$1))+1),\"\")","v":""},{"$f":"IFERROR(MID($O129,FIND(CHAR(160),SUBSTITUTE($O129,\"{\",CHAR(160),FC$1)),FIND(CHAR(160),SUBSTITUTE($O129,\"}\",CHAR(160),FC$1))-FIND(CHAR(160),SUBSTITUTE($O129,\"{\",CHAR(160),FC$1))+1),\"\")","v":"{Weekly Hrs of Operation}"},{"$f":"IFERROR(MID($O129,FIND(CHAR(160),SUBSTITUTE($O129,\"{\",CHAR(160),FD$1)),FIND(CHAR(160),SUBSTITUTE($O129,\"}\",CHAR(160),FD$1))-FIND(CHAR(160),SUBSTITUTE($O129,\"{\",CHAR(160),FD$1))+1),\"\")","v":"{Weeks Per Year}"},{"$f":"IFERROR(MID($O129,FIND(CHAR(160),SUBSTITUTE($O129,\"{\",CHAR(160),FE$1)),FIND(CHAR(160),SUBSTITUTE($O129,\"}\",CHAR(160),FE$1))-FIND(CHAR(160),SUBSTITUTE($O129,\"{\",CHAR(160),FE$1))+1),\"\")","v":""},{"$f":"IFERROR(MID($O129,FIND(CHAR(160),SUBSTITUTE($O129,\"{\",CHAR(160),FF$1)),FIND(CHAR(160),SUBSTITUTE($O129,\"}\",CHAR(160),FF$1))-FIND(CHAR(160),SUBSTITUTE($O129,\"{\",CHAR(160),FF$1))+1),\"\")","v":""},{"$f":"IFERROR(MID($O129,FIND(CHAR(160),SUBSTITUTE($O129,\"{\",CHAR(160),FG$1)),FIND(CHAR(160),SUBSTITUTE($O129,\"}\",CHAR(160),FG$1))-FIND(CHAR(160),SUBSTITUTE($O129,\"{\",CHAR(160),FG$1))+1),\"\")","v":""},{"$f":"IFERROR(MID($O129,FIND(CHAR(160),SUBSTITUTE($O129,\"{\",CHAR(160),FH$1)),FIND(CHAR(160),SUBSTITUTE($O129,\"}\",CHAR(160),FH$1))-FIND(CHAR(160),SUBSTITUTE($O129,\"{\",CHAR(160),FH$1))+1),\"\")","v":""},{"$f":"IFERROR(MID($O129,FIND(CHAR(160),SUBSTITUTE($O129,\"{\",CHAR(160),FI$1)),FIND(CHAR(160),SUBSTITUTE($O129,\"}\",CHAR(160),FI$1))-FIND(CHAR(160),SUBSTITUTE($O129,\"{\",CHAR(160),FI$1))+1),\"\")","v":""},{"$f":"IFERROR(MID($O129,FIND(CHAR(160),SUBSTITUTE($O129,\"{\",CHAR(160),FJ$1)),FIND(CHAR(160),SUBSTITUTE($O129,\"}\",CHAR(160),FJ$1))-FIND(CHAR(160),SUBSTITUTE($O129,\"{\",CHAR(160),FJ$1))+1),\"\")","v":""},{"$f":"IFERROR(MID($O129,FIND(CHAR(160),SUBSTITUTE($O129,\"{\",CHAR(160),FK$1)),FIND(CHAR(160),SUBSTITUTE($O129,\"}\",CHAR(160),FK$1))-FIND(CHAR(160),SUBSTITUTE($O129,\"{\",CHAR(160),FK$1))+1),\"\")","v":"{Measure:Quantity}"},{"$f":"IFERROR(MID($O129,FIND(CHAR(160),SUBSTITUTE($O129,\"{\",CHAR(160),FL$1)),FIND(CHAR(160),SUBSTITUTE($O129,\"}\",CHAR(160),FL$1))-FIND(CHAR(160),SUBSTITUTE($O129,\"{\",CHAR(160),FL$1))+1),\"\")","v":"{System Compressor Size (HP)}"},{"$f":"IFERROR(MID($R129,FIND(CHAR(160),SUBSTITUTE($R129,\"{\",CHAR(160),FM$1)),FIND(CHAR(160),SUBSTITUTE($R129,\"}\",CHAR(160),FM$1))-FIND(CHAR(160),SUBSTITUTE($R129,\"{\",CHAR(160),FM$1))+1),\"\")","v":""},{"$f":"IFERROR(MID($R129,FIND(CHAR(160),SUBSTITUTE($R129,\"{\",CHAR(160),FN$1)),FIND(CHAR(160),SUBSTITUTE($R129,\"}\",CHAR(160),FN$1))-FIND(CHAR(160),SUBSTITUTE($R129,\"{\",CHAR(160),FN$1))+1),\"\")","v":""},{"$f":"IFERROR(MID($R129,FIND(CHAR(160),SUBSTITUTE($R129,\"{\",CHAR(160),FO$1)),FIND(CHAR(160),SUBSTITUTE($R129,\"}\",CHAR(160),FO$1))-FIND(CHAR(160),SUBSTITUTE($R129,\"{\",CHAR(160),FO$1))+1),\"\")","v":""},{"$f":"IFERROR(MID($R129,FIND(CHAR(160),SUBSTITUTE($R129,\"{\",CHAR(160),FP$1)),FIND(CHAR(160),SUBSTITUTE($R129,\"}\",CHAR(160),FP$1))-FIND(CHAR(160),SUBSTITUTE($R129,\"{\",CHAR(160),FP$1))+1),\"\")","v":""},{"$f":"IFERROR(MID($R129,FIND(CHAR(160),SUBSTITUTE($R129,\"{\",CHAR(160),FQ$1)),FIND(CHAR(160),SUBSTITUTE($R129,\"}\",CHAR(160),FQ$1))-FIND(CHAR(160),SUBSTITUTE($R129,\"{\",CHAR(160),FQ$1))+1),\"\")","v":""},{"$f":"IFERROR(MID($R129,FIND(CHAR(160),SUBSTITUTE($R129,\"{\",CHAR(160),FR$1)),FIND(CHAR(160),SUBSTITUTE($R129,\"}\",CHAR(160),FR$1))-FIND(CHAR(160),SUBSTITUTE($R129,\"{\",CHAR(160),FR$1))+1),\"\")","v":""},{"$f":"IFERROR(MID($R129,FIND(CHAR(160),SUBSTITUTE($R129,\"{\",CHAR(160),FS$1)),FIND(CHAR(160),SUBSTITUTE($R129,\"}\",CHAR(160),FS$1))-FIND(CHAR(160),SUBSTITUTE($R129,\"{\",CHAR(160),FS$1))+1),\"\")","v":""},{"$f":"IFERROR(MID($R129,FIND(CHAR(160),SUBSTITUTE($R129,\"{\",CHAR(160),FT$1)),FIND(CHAR(160),SUBSTITUTE($R129,\"}\",CHAR(160),FT$1))-FIND(CHAR(160),SUBSTITUTE($R129,\"{\",CHAR(160),FT$1))+1),\"\")","v":""},{"$f":"IFERROR(MID($R129,FIND(CHAR(160),SUBSTITUTE($R129,\"{\",CHAR(160),FU$1)),FIND(CHAR(160),SUBSTITUTE($R129,\"}\",CHAR(160),FU$1))-FIND(CHAR(160),SUBSTITUTE($R129,\"{\",CHAR(160),FU$1))+1),\"\")","v":"{Measure:Quantity}"},{"$f":"IFERROR(MID($R129,FIND(CHAR(160),SUBSTITUTE($R129,\"{\",CHAR(160),FV$1)),FIND(CHAR(160),SUBSTITUTE($R129,\"}\",CHAR(160),FV$1))-FIND(CHAR(160),SUBSTITUTE($R129,\"{\",CHAR(160),FV$1))+1),\"\")","v":"{System Compressor Size (HP)}"},{"$f":"IFERROR(MID($U129,FIND(CHAR(160),SUBSTITUTE($U129,\"{\",CHAR(160),FW$1)),FIND(CHAR(160),SUBSTITUTE($U129,\"}\",CHAR(160),FW$1))-FIND(CHAR(160),SUBSTITUTE($U129,\"{\",CHAR(160),FW$1))+1),\"\")","v":"{Factor:WinterCF}"},{"$f":"IFERROR(MID($U129,FIND(CHAR(160),SUBSTITUTE($U129,\"{\",CHAR(160),FX$1)),FIND(CHAR(160),SUBSTITUTE($U129,\"}\",CHAR(160),FX$1))-FIND(CHAR(160),SUBSTITUTE($U129,\"{\",CHAR(160),FX$1))+1),\"\")","v":""},{"$f":"IFERROR(MID($U129,FIND(CHAR(160),SUBSTITUTE($U129,\"{\",CHAR(160),FY$1)),FIND(CHAR(160),SUBSTITUTE($U129,\"}\",CHAR(160),FY$1))-FIND(CHAR(160),SUBSTITUTE($U129,\"{\",CHAR(160),FY$1))+1),\"\")","v":""},{"$f":"IFERROR(MID($U129,FIND(CHAR(160),SUBSTITUTE($U129,\"{\",CHAR(160),FZ$1)),FIND(CHAR(160),SUBSTITUTE($U129,\"}\",CHAR(160),FZ$1))-FIND(CHAR(160),SUBSTITUTE($U129,\"{\",CHAR(160),FZ$1))+1),\"\")","v":""},{"$f":"IFERROR(MID($U129,FIND(CHAR(160),SUBSTITUTE($U129,\"{\",CHAR(160),GA$1)),FIND(CHAR(160),SUBSTITUTE($U129,\"}\",CHAR(160),GA$1))-FIND(CHAR(160),SUBSTITUTE($U129,\"{\",CHAR(160),GA$1))+1),\"\")","v":""},{"$f":"IFERROR(MID($U129,FIND(CHAR(160),SUBSTITUTE($U129,\"{\",CHAR(160),GB$1)),FIND(CHAR(160),SUBSTITUTE($U129,\"}\",CHAR(160),GB$1))-FIND(CHAR(160),SUBSTITUTE($U129,\"{\",CHAR(160),GB$1))+1),\"\")","v":""},{"$f":"IFERROR(MID($U129,FIND(CHAR(160),SUBSTITUTE($U129,\"{\",CHAR(160),GC$1)),FIND(CHAR(160),SUBSTITUTE($U129,\"}\",CHAR(160),GC$1))-FIND(CHAR(160),SUBSTITUTE($U129,\"{\",CHAR(160),GC$1))+1),\"\")","v":""},{"$f":"IFERROR(MID($U129,FIND(CHAR(160),SUBSTITUTE($U129,\"{\",CHAR(160),GD$1)),FIND(CHAR(160),SUBSTITUTE($U129,\"}\",CHAR(160),GD$1))-FIND(CHAR(160),SUBSTITUTE($U129,\"{\",CHAR(160),GD$1))+1),\"\")","v":""},{"$f":"IFERROR(MID($U129,FIND(CHAR(160),SUBSTITUTE($U129,\"{\",CHAR(160),GE$1)),FIND(CHAR(160),SUBSTITUTE($U129,\"}\",CHAR(160),GE$1))-FIND(CHAR(160),SUBSTITUTE($U129,\"{\",CHAR(160),GE$1))+1),\"\")","v":"{Measure:Quantity}"},{"$f":"IFERROR(MID($U129,FIND(CHAR(160),SUBSTITUTE($U129,\"{\",CHAR(160),GF$1)),FIND(CHAR(160),SUBSTITUTE($U129,\"}\",CHAR(160),GF$1))-FIND(CHAR(160),SUBSTITUTE($U129,\"{\",CHAR(160),GF$1))+1),\"\")","v":"{System Compressor Size (HP)}"},{"$f":"IFERROR(MID($V129,FIND(CHAR(160),SUBSTITUTE($V129,\"{\",CHAR(160),GG$1)),FIND(CHAR(160),SUBSTITUTE($V129,\"}\",CHAR(160),GG$1))-FIND(CHAR(160),SUBSTITUTE($V129,\"{\",CHAR(160),GG$1))+1),\"\")","v":"{Factor:SummerCF}"},{"$f":"IFERROR(MID($V129,FIND(CHAR(160),SUBSTITUTE($V129,\"{\",CHAR(160),GH$1)),FIND(CHAR(160),SUBSTITUTE($V129,\"}\",CHAR(160),GH$1))-FIND(CHAR(160),SUBSTITUTE($V129,\"{\",CHAR(160),GH$1))+1),\"\")","v":""},{"$f":"IFERROR(MID($V129,FIND(CHAR(160),SUBSTITUTE($V129,\"{\",CHAR(160),GI$1)),FIND(CHAR(160),SUBSTITUTE($V129,\"}\",CHAR(160),GI$1))-FIND(CHAR(160),SUBSTITUTE($V129,\"{\",CHAR(160),GI$1))+1),\"\")","v":""},{"$f":"IFERROR(MID($V129,FIND(CHAR(160),SUBSTITUTE($V129,\"{\",CHAR(160),GJ$1)),FIND(CHAR(160),SUBSTITUTE($V129,\"}\",CHAR(160),GJ$1))-FIND(CHAR(160),SUBSTITUTE($V129,\"{\",CHAR(160),GJ$1))+1),\"\")","v":""},{"$f":"IFERROR(MID($V129,FIND(CHAR(160),SUBSTITUTE($V129,\"{\",CHAR(160),GK$1)),FIND(CHAR(160),SUBSTITUTE($V129,\"}\",CHAR(160),GK$1))-FIND(CHAR(160),SUBSTITUTE($V129,\"{\",CHAR(160),GK$1))+1),\"\")","v":""},{"$f":"IFERROR(MID($V129,FIND(CHAR(160),SUBSTITUTE($V129,\"{\",CHAR(160),GL$1)),FIND(CHAR(160),SUBSTITUTE($V129,\"}\",CHAR(160),GL$1))-FIND(CHAR(160),SUBSTITUTE($V129,\"{\",CHAR(160),GL$1))+1),\"\")","v":""},{"$f":"IFERROR(MID($V129,FIND(CHAR(160),SUBSTITUTE($V129,\"{\",CHAR(160),GM$1)),FIND(CHAR(160),SUBSTITUTE($V129,\"}\",CHAR(160),GM$1))-FIND(CHAR(160),SUBSTITUTE($V129,\"{\",CHAR(160),GM$1))+1),\"\")","v":""},{"$f":"IFERROR(MID($V129,FIND(CHAR(160),SUBSTITUTE($V129,\"{\",CHAR(160),GN$1)),FIND(CHAR(160),SUBSTITUTE($V129,\"}\",CHAR(160),GN$1))-FIND(CHAR(160),SUBSTITUTE($V129,\"{\",CHAR(160),GN$1))+1),\"\")","v":""},{"$f":"IFERROR(MID($V129,FIND(CHAR(160),SUBSTITUTE($V129,\"{\",CHAR(160),GO$1)),FIND(CHAR(160),SUBSTITUTE($V129,\"}\",CHAR(160),GO$1))-FIND(CHAR(160),SUBSTITUTE($V129,\"{\",CHAR(160),GO$1))+1),\"\")","v":"{Measure:Quantity}"},{"$f":"IFERROR(MID($V129,FIND(CHAR(160),SUBSTITUTE($V129,\"{\",CHAR(160),GP$1)),FIND(CHAR(160),SUBSTITUTE($V129,\"}\",CHAR(160),GP$1))-FIND(CHAR(160),SUBSTITUTE($V129,\"{\",CHAR(160),GP$1))+1),\"\")","v":"{System Compressor Size (HP)}"},{"$f":"IFERROR(MID($W129,FIND(CHAR(160),SUBSTITUTE($W129,\"{\",CHAR(160),GQ$1)),FIND(CHAR(160),SUBSTITUTE($W129,\"}\",CHAR(160),GQ$1))-FIND(CHAR(160),SUBSTITUTE($W129,\"{\",CHAR(160),GQ$1))+1),\"\")","v":""},{"$f":"IFERROR(MID($W129,FIND(CHAR(160),SUBSTITUTE($W129,\"{\",CHAR(160),GR$1)),FIND(CHAR(160),SUBSTITUTE($W129,\"}\",CHAR(160),GR$1))-FIND(CHAR(160),SUBSTITUTE($W129,\"{\",CHAR(160),GR$1))+1),\"\")","v":""},{"$f":"IFERROR(MID($W129,FIND(CHAR(160),SUBSTITUTE($W129,\"{\",CHAR(160),GS$1)),FIND(CHAR(160),SUBSTITUTE($W129,\"}\",CHAR(160),GS$1))-FIND(CHAR(160),SUBSTITUTE($W129,\"{\",CHAR(160),GS$1))+1),\"\")","v":""},{"$f":"IFERROR(MID($W129,FIND(CHAR(160),SUBSTITUTE($W129,\"{\",CHAR(160),GT$1)),FIND(CHAR(160),SUBSTITUTE($W129,\"}\",CHAR(160),GT$1))-FIND(CHAR(160),SUBSTITUTE($W129,\"{\",CHAR(160),GT$1))+1),\"\")","v":""},{"$f":"IFERROR(MID($W129,FIND(CHAR(160),SUBSTITUTE($W129,\"{\",CHAR(160),GU$1)),FIND(CHAR(160),SUBSTITUTE($W129,\"}\",CHAR(160),GU$1))-FIND(CHAR(160),SUBSTITUTE($W129,\"{\",CHAR(160),GU$1))+1),\"\")","v":""},{"$f":"IFERROR(MID($W129,FIND(CHAR(160),SUBSTITUTE($W129,\"{\",CHAR(160),GV$1)),FIND(CHAR(160),SUBSTITUTE($W129,\"}\",CHAR(160),GV$1))-FIND(CHAR(160),SUBSTITUTE($W129,\"{\",CHAR(160),GV$1))+1),\"\")","v":""},{"$f":"IFERROR(MID($W129,FIND(CHAR(160),SUBSTITUTE($W129,\"{\",CHAR(160),GW$1)),FIND(CHAR(160),SUBSTITUTE($W129,\"}\",CHAR(160),GW$1))-FIND(CHAR(160),SUBSTITUTE($W129,\"{\",CHAR(160),GW$1))+1),\"\")","v":""},{"$f":"IFERROR(MID($W129,FIND(CHAR(160),SUBSTITUTE($W129,\"{\",CHAR(160),GX$1)),FIND(CHAR(160),SUBSTITUTE($W129,\"}\",CHAR(160),GX$1))-FIND(CHAR(160),SUBSTITUTE($W129,\"{\",CHAR(160),GX$1))+1),\"\")","v":""},{"$f":"IFERROR(MID($W129,FIND(CHAR(160),SUBSTITUTE($W129,\"{\",CHAR(160),GY$1)),FIND(CHAR(160),SUBSTITUTE($W129,\"}\",CHAR(160),GY$1))-FIND(CHAR(160),SUBSTITUTE($W129,\"{\",CHAR(160),GY$1))+1),\"\")","v":""},{"$f":"IFERROR(MID($W129,FIND(CHAR(160),SUBSTITUTE($W129,\"{\",CHAR(160),GZ$1)),FIND(CHAR(160),SUBSTITUTE($W129,\"}\",CHAR(160),GZ$1))-FIND(CHAR(160),SUBSTITUTE($W129,\"{\",CHAR(160),GZ$1))+1),\"\")","v":""},{"$f":"IFERROR(MID($X129,FIND(CHAR(160),SUBSTITUTE($X129,\"{\",CHAR(160),HA$1)),FIND(CHAR(160),SUBSTITUTE($X129,\"}\",CHAR(160),HA$1))-FIND(CHAR(160),SUBSTITUTE($X129,\"{\",CHAR(160),HA$1))+1),\"\")","v":""},{"$f":"IFERROR(MID($X129,FIND(CHAR(160),SUBSTITUTE($X129,\"{\",CHAR(160),HB$1)),FIND(CHAR(160),SUBSTITUTE($X129,\"}\",CHAR(160),HB$1))-FIND(CHAR(160),SUBSTITUTE($X129,\"{\",CHAR(160),HB$1))+1),\"\")","v":""},{"$f":"IFERROR(MID($X129,FIND(CHAR(160),SUBSTITUTE($X129,\"{\",CHAR(160),HC$1)),FIND(CHAR(160),SUBSTITUTE($X129,\"}\",CHAR(160),HC$1))-FIND(CHAR(160),SUBSTITUTE($X129,\"{\",CHAR(160),HC$1))+1),\"\")","v":""},{"$f":"IFERROR(MID($X129,FIND(CHAR(160),SUBSTITUTE($X129,\"{\",CHAR(160),HD$1)),FIND(CHAR(160),SUBSTITUTE($X129,\"}\",CHAR(160),HD$1))-FIND(CHAR(160),SUBSTITUTE($X129,\"{\",CHAR(160),HD$1))+1),\"\")","v":""},{"$f":"IFERROR(MID($X129,FIND(CHAR(160),SUBSTITUTE($X129,\"{\",CHAR(160),HE$1)),FIND(CHAR(160),SUBSTITUTE($X129,\"}\",CHAR(160),HE$1))-FIND(CHAR(160),SUBSTITUTE($X129,\"{\",CHAR(160),HE$1))+1),\"\")","v":""},{"$f":"IFERROR(MID($X129,FIND(CHAR(160),SUBSTITUTE($X129,\"{\",CHAR(160),HF$1)),FIND(CHAR(160),SUBSTITUTE($X129,\"}\",CHAR(160),HF$1))-FIND(CHAR(160),SUBSTITUTE($X129,\"{\",CHAR(160),HF$1))+1),\"\")","v":""},{"$f":"IFERROR(MID($X129,FIND(CHAR(160),SUBSTITUTE($X129,\"{\",CHAR(160),HG$1)),FIND(CHAR(160),SUBSTITUTE($X129,\"}\",CHAR(160),HG$1))-FIND(CHAR(160),SUBSTITUTE($X129,\"{\",CHAR(160),HG$1))+1),\"\")","v":""},{"$f":"IFERROR(MID($X129,FIND(CHAR(160),SUBSTITUTE($X129,\"{\",CHAR(160),HH$1)),FIND(CHAR(160),SUBSTITUTE($X129,\"}\",CHAR(160),HH$1))-FIND(CHAR(160),SUBSTITUTE($X129,\"{\",CHAR(160),HH$1))+1),\"\")","v":""},{"$f":"IFERROR(MID($X129,FIND(CHAR(160),SUBSTITUTE($X129,\"{\",CHAR(160),HI$1)),FIND(CHAR(160),SUBSTITUTE($X129,\"}\",CHAR(160),HI$1))-FIND(CHAR(160),SUBSTITUTE($X129,\"{\",CHAR(160),HI$1))+1),\"\")","v":""},{"$f":"IFERROR(MID($X129,FIND(CHAR(160),SUBSTITUTE($X129,\"{\",CHAR(160),HJ$1)),FIND(CHAR(160),SUBSTITUTE($X129,\"}\",CHAR(160),HJ$1))-FIND(CHAR(160),SUBSTITUTE($X129,\"{\",CHAR(160),HJ$1))+1),\"\")","v":""},{"$f":"IFERROR(MID($Y129,FIND(CHAR(160),SUBSTITUTE($Y129,\"{\",CHAR(160),HK$1)),FIND(CHAR(160),SUBSTITUTE($Y129,\"}\",CHAR(160),HK$1))-FIND(CHAR(160),SUBSTITUTE($Y129,\"{\",CHAR(160),HK$1))+1),\"\")","v":""},{"$f":"IFERROR(MID($Y129,FIND(CHAR(160),SUBSTITUTE($Y129,\"{\",CHAR(160),HL$1)),FIND(CHAR(160),SUBSTITUTE($Y129,\"}\",CHAR(160),HL$1))-FIND(CHAR(160),SUBSTITUTE($Y129,\"{\",CHAR(160),HL$1))+1),\"\")","v":""},{"$f":"IFERROR(MID($Y129,FIND(CHAR(160),SUBSTITUTE($Y129,\"{\",CHAR(160),HM$1)),FIND(CHAR(160),SUBSTITUTE($Y129,\"}\",CHAR(160),HM$1))-FIND(CHAR(160),SUBSTITUTE($Y129,\"{\",CHAR(160),HM$1))+1),\"\")","v":""},{"$f":"IFERROR(MID($Y129,FIND(CHAR(160),SUBSTITUTE($Y129,\"{\",CHAR(160),HN$1)),FIND(CHAR(160),SUBSTITUTE($Y129,\"}\",CHAR(160),HN$1))-FIND(CHAR(160),SUBSTITUTE($Y129,\"{\",CHAR(160),HN$1))+1),\"\")","v":""},{"$f":"IFERROR(MID($Y129,FIND(CHAR(160),SUBSTITUTE($Y129,\"{\",CHAR(160),HO$1)),FIND(CHAR(160),SUBSTITUTE($Y129,\"}\",CHAR(160),HO$1))-FIND(CHAR(160),SUBSTITUTE($Y129,\"{\",CHAR(160),HO$1))+1),\"\")","v":""},{"$f":"IFERROR(MID($Y129,FIND(CHAR(160),SUBSTITUTE($Y129,\"{\",CHAR(160),HP$1)),FIND(CHAR(160),SUBSTITUTE($Y129,\"}\",CHAR(160),HP$1))-FIND(CHAR(160),SUBSTITUTE($Y129,\"{\",CHAR(160),HP$1))+1),\"\")","v":""},{"$f":"IFERROR(MID($Y129,FIND(CHAR(160),SUBSTITUTE($Y129,\"{\",CHAR(160),HQ$1)),FIND(CHAR(160),SUBSTITUTE($Y129,\"}\",CHAR(160),HQ$1))-FIND(CHAR(160),SUBSTITUTE($Y129,\"{\",CHAR(160),HQ$1))+1),\"\")","v":""},{"$f":"IFERROR(MID($Y129,FIND(CHAR(160),SUBSTITUTE($Y129,\"{\",CHAR(160),HR$1)),FIND(CHAR(160),SUBSTITUTE($Y129,\"}\",CHAR(160),HR$1))-FIND(CHAR(160),SUBSTITUTE($Y129,\"{\",CHAR(160),HR$1))+1),\"\")","v":""},{"$f":"IFERROR(MID($Y129,FIND(CHAR(160),SUBSTITUTE($Y129,\"{\",CHAR(160),HS$1)),FIND(CHAR(160),SUBSTITUTE($Y129,\"}\",CHAR(160),HS$1))-FIND(CHAR(160),SUBSTITUTE($Y129,\"{\",CHAR(160),HS$1))+1),\"\")","v":""},{"$f":"IFERROR(MID($Y129,FIND(CHAR(160),SUBSTITUTE($Y129,\"{\",CHAR(160),HT$1)),FIND(CHAR(160),SUBSTITUTE($Y129,\"}\",CHAR(160),HT$1))-FIND(CHAR(160),SUBSTITUTE($Y129,\"{\",CHAR(160),HT$1))+1),\"\")","v":""},{"$f":"IFERROR(MID($Z129,FIND(CHAR(160),SUBSTITUTE($Z129,\"{\",CHAR(160),HU$1)),FIND(CHAR(160),SUBSTITUTE($Z129,\"}\",CHAR(160),HU$1))-FIND(CHAR(160),SUBSTITUTE($Z129,\"{\",CHAR(160),HU$1))+1),\"\")","v":""},{"$f":"IFERROR(MID($Z129,FIND(CHAR(160),SUBSTITUTE($Z129,\"{\",CHAR(160),HV$1)),FIND(CHAR(160),SUBSTITUTE($Z129,\"}\",CHAR(160),HV$1))-FIND(CHAR(160),SUBSTITUTE($Z129,\"{\",CHAR(160),HV$1))+1),\"\")","v":""},{"$f":"IFERROR(MID($Z129,FIND(CHAR(160),SUBSTITUTE($Z129,\"{\",CHAR(160),HW$1)),FIND(CHAR(160),SUBSTITUTE($Z129,\"}\",CHAR(160),HW$1))-FIND(CHAR(160),SUBSTITUTE($Z129,\"{\",CHAR(160),HW$1))+1),\"\")","v":""},{"$f":"IFERROR(MID($Z129,FIND(CHAR(160),SUBSTITUTE($Z129,\"{\",CHAR(160),HX$1)),FIND(CHAR(160),SUBSTITUTE($Z129,\"}\",CHAR(160),HX$1))-FIND(CHAR(160),SUBSTITUTE($Z129,\"{\",CHAR(160),HX$1))+1),\"\")","v":""},{"$f":"IFERROR(MID($Z129,FIND(CHAR(160),SUBSTITUTE($Z129,\"{\",CHAR(160),HY$1)),FIND(CHAR(160),SUBSTITUTE($Z129,\"}\",CHAR(160),HY$1))-FIND(CHAR(160),SUBSTITUTE($Z129,\"{\",CHAR(160),HY$1))+1),\"\")","v":""},{"$f":"IFERROR(MID($Z129,FIND(CHAR(160),SUBSTITUTE($Z129,\"{\",CHAR(160),HZ$1)),FIND(CHAR(160),SUBSTITUTE($Z129,\"}\",CHAR(160),HZ$1))-FIND(CHAR(160),SUBSTITUTE($Z129,\"{\",CHAR(160),HZ$1))+1),\"\")","v":""},{"$f":"IFERROR(MID($Z129,FIND(CHAR(160),SUBSTITUTE($Z129,\"{\",CHAR(160),IA$1)),FIND(CHAR(160),SUBSTITUTE($Z129,\"}\",CHAR(160),IA$1))-FIND(CHAR(160),SUBSTITUTE($Z129,\"{\",CHAR(160),IA$1))+1),\"\")","v":""},{"$f":"IFERROR(MID($Z129,FIND(CHAR(160),SUBSTITUTE($Z129,\"{\",CHAR(160),IB$1)),FIND(CHAR(160),SUBSTITUTE($Z129,\"}\",CHAR(160),IB$1))-FIND(CHAR(160),SUBSTITUTE($Z129,\"{\",CHAR(160),IB$1))+1),\"\")","v":""},{"$f":"IFERROR(MID($Z129,FIND(CHAR(160),SUBSTITUTE($Z129,\"{\",CHAR(160),IC$1)),FIND(CHAR(160),SUBSTITUTE($Z129,\"}\",CHAR(160),IC$1))-FIND(CHAR(160),SUBSTITUTE($Z129,\"{\",CHAR(160),IC$1))+1),\"\")","v":""},{"$f":"IFERROR(MID($Z129,FIND(CHAR(160),SUBSTITUTE($Z129,\"{\",CHAR(160),ID$1)),FIND(CHAR(160),SUBSTITUTE($Z129,\"}\",CHAR(160),ID$1))-FIND(CHAR(160),SUBSTITUTE($Z129,\"{\",CHAR(160),ID$1))+1),\"\")","v":""},{"$f":"IFERROR(MID($AA129,FIND(CHAR(160),SUBSTITUTE($AA129,\"{\",CHAR(160),IE$1)),FIND(CHAR(160),SUBSTITUTE($AA129,\"}\",CHAR(160),IE$1))-FIND(CHAR(160),SUBSTITUTE($AA129,\"{\",CHAR(160),IE$1))+1),\"\")","v":""},{"$f":"IFERROR(MID($AA129,FIND(CHAR(160),SUBSTITUTE($AA129,\"{\",CHAR(160),IF$1)),FIND(CHAR(160),SUBSTITUTE($AA129,\"}\",CHAR(160),IF$1))-FIND(CHAR(160),SUBSTITUTE($AA129,\"{\",CHAR(160),IF$1))+1),\"\")","v":""},{"$f":"IFERROR(MID($AA129,FIND(CHAR(160),SUBSTITUTE($AA129,\"{\",CHAR(160),IG$1)),FIND(CHAR(160),SUBSTITUTE($AA129,\"}\",CHAR(160),IG$1))-FIND(CHAR(160),SUBSTITUTE($AA129,\"{\",CHAR(160),IG$1))+1),\"\")","v":""},{"$f":"IFERROR(MID($AA129,FIND(CHAR(160),SUBSTITUTE($AA129,\"{\",CHAR(160),IH$1)),FIND(CHAR(160),SUBSTITUTE($AA129,\"}\",CHAR(160),IH$1))-FIND(CHAR(160),SUBSTITUTE($AA129,\"{\",CHAR(160),IH$1))+1),\"\")","v":""},{"$f":"IFERROR(MID($AA129,FIND(CHAR(160),SUBSTITUTE($AA129,\"{\",CHAR(160),II$1)),FIND(CHAR(160),SUBSTITUTE($AA129,\"}\",CHAR(160),II$1))-FIND(CHAR(160),SUBSTITUTE($AA129,\"{\",CHAR(160),II$1))+1),\"\")","v":""},{"$f":"IFERROR(MID($AA129,FIND(CHAR(160),SUBSTITUTE($AA129,\"{\",CHAR(160),IJ$1)),FIND(CHAR(160),SUBSTITUTE($AA129,\"}\",CHAR(160),IJ$1))-FIND(CHAR(160),SUBSTITUTE($AA129,\"{\",CHAR(160),IJ$1))+1),\"\")","v":""},{"$f":"IFERROR(MID($AA129,FIND(CHAR(160),SUBSTITUTE($AA129,\"{\",CHAR(160),IK$1)),FIND(CHAR(160),SUBSTITUTE($AA129,\"}\",CHAR(160),IK$1))-FIND(CHAR(160),SUBSTITUTE($AA129,\"{\",CHAR(160),IK$1))+1),\"\")","v":""},{"$f":"IFERROR(MID($AA129,FIND(CHAR(160),SUBSTITUTE($AA129,\"{\",CHAR(160),IL$1)),FIND(CHAR(160),SUBSTITUTE($AA129,\"}\",CHAR(160),IL$1))-FIND(CHAR(160),SUBSTITUTE($AA129,\"{\",CHAR(160),IL$1))+1),\"\")","v":""},{"$f":"IFERROR(MID($AA129,FIND(CHAR(160),SUBSTITUTE($AA129,\"{\",CHAR(160),IM$1)),FIND(CHAR(160),SUBSTITUTE($AA129,\"}\",CHAR(160),IM$1))-FIND(CHAR(160),SUBSTITUTE($AA129,\"{\",CHAR(160),IM$1))+1),\"\")","v":""},{"$f":"IFERROR(MID($AA129,FIND(CHAR(160),SUBSTITUTE($AA129,\"{\",CHAR(160),IN$1)),FIND(CHAR(160),SUBSTITUTE($AA129,\"}\",CHAR(160),IN$1))-FIND(CHAR(160),SUBSTITUTE($AA129,\"{\",CHAR(160),IN$1))+1),\"\")","v":""},{"$f":"IFERROR(MID($AB129,FIND(CHAR(160),SUBSTITUTE($AB129,\"{\",CHAR(160),IO$1)),FIND(CHAR(160),SUBSTITUTE($AB129,\"}\",CHAR(160),IO$1))-FIND(CHAR(160),SUBSTITUTE($AB129,\"{\",CHAR(160),IO$1))+1),\"\")","v":""},{"$f":"IFERROR(MID($AB129,FIND(CHAR(160),SUBSTITUTE($AB129,\"{\",CHAR(160),IP$1)),FIND(CHAR(160),SUBSTITUTE($AB129,\"}\",CHAR(160),IP$1))-FIND(CHAR(160),SUBSTITUTE($AB129,\"{\",CHAR(160),IP$1))+1),\"\")","v":""},{"$f":"IFERROR(MID($AB129,FIND(CHAR(160),SUBSTITUTE($AB129,\"{\",CHAR(160),IQ$1)),FIND(CHAR(160),SUBSTITUTE($AB129,\"}\",CHAR(160),IQ$1))-FIND(CHAR(160),SUBSTITUTE($AB129,\"{\",CHAR(160),IQ$1))+1),\"\")","v":""},{"$f":"IFERROR(MID($AB129,FIND(CHAR(160),SUBSTITUTE($AB129,\"{\",CHAR(160),IR$1)),FIND(CHAR(160),SUBSTITUTE($AB129,\"}\",CHAR(160),IR$1))-FIND(CHAR(160),SUBSTITUTE($AB129,\"{\",CHAR(160),IR$1))+1),\"\")","v":""},{"$f":"IFERROR(MID($AB129,FIND(CHAR(160),SUBSTITUTE($AB129,\"{\",CHAR(160),IS$1)),FIND(CHAR(160),SUBSTITUTE($AB129,\"}\",CHAR(160),IS$1))-FIND(CHAR(160),SUBSTITUTE($AB129,\"{\",CHAR(160),IS$1))+1),\"\")","v":""},{"$f":"IFERROR(MID($AB129,FIND(CHAR(160),SUBSTITUTE($AB129,\"{\",CHAR(160),IT$1)),FIND(CHAR(160),SUBSTITUTE($AB129,\"}\",CHAR(160),IT$1))-FIND(CHAR(160),SUBSTITUTE($AB129,\"{\",CHAR(160),IT$1))+1),\"\")","v":""},{"$f":"IFERROR(MID($AB129,FIND(CHAR(160),SUBSTITUTE($AB129,\"{\",CHAR(160),IU$1)),FIND(CHAR(160),SUBSTITUTE($AB129,\"}\",CHAR(160),IU$1))-FIND(CHAR(160),SUBSTITUTE($AB129,\"{\",CHAR(160),IU$1))+1),\"\")","v":""},{"$f":"IFERROR(MID($AB129,FIND(CHAR(160),SUBSTITUTE($AB129,\"{\",CHAR(160),IV$1)),FIND(CHAR(160),SUBSTITUTE($AB129,\"}\",CHAR(160),IV$1))-FIND(CHAR(160),SUBSTITUTE($AB129,\"{\",CHAR(160),IV$1))+1),\"\")","v":""},{"$f":"IFERROR(MID($AB129,FIND(CHAR(160),SUBSTITUTE($AB129,\"{\",CHAR(160),IW$1)),FIND(CHAR(160),SUBSTITUTE($AB129,\"}\",CHAR(160),IW$1))-FIND(CHAR(160),SUBSTITUTE($AB129,\"{\",CHAR(160),IW$1))+1),\"\")","v":""},{"$f":"IFERROR(MID($AB129,FIND(CHAR(160),SUBSTITUTE($AB129,\"{\",CHAR(160),IX$1)),FIND(CHAR(160),SUBSTITUTE($AB129,\"}\",CHAR(160),IX$1))-FIND(CHAR(160),SUBSTITUTE($AB129,\"{\",CHAR(160),IX$1))+1),\"\")","v":""},null,{"$f":"10-COUNTIF(DU129:ED129,\"\")","v":4}]
["C&I Prescriptive Compressed Air Solutions","Dryer - C13 - Dryer Size 200","D - C13","2021-07-01","2022-06-30","Calculated","{Measure:Quantity}*{Dryer CFM} * 6.54",0,"Per Measure",650,0,"2017-07-01","2022-06-30","Calculated","{Measure:Quantity} *{Dryer CFM} * 0.00316 * {Weekly Hrs of Operation} * {Weeks Per Year}",1E-4,null,"{Measure:Quantity} *{Dryer CFM} * 0.00316",null,null,"{Measure:Quantity} *{Dryer CFM} * 0.00316 * {Factor:WinterCF}","{Measure:Quantity} *{Dryer CFM} * 0.00316 * {Factor:SummerCF}",null,null,null,null,null,null,"2017-07-01","2022-06-30",15,0.7,0.91100000000000003,0.30399999999999999,0.36099999999999999,0.156,0.17899999999999999,1,1.1220000000000001,1,0.52,1.6E-2,null,{"$f":"DU130","v":"{Measure:Quantity}"},1,{"$f":"DV130","v":"{Dryer CFM}"},200,{"$f":"DW130","v":"{Weekly Hrs of Operation}"},50,{"$f":"DX130","v":"{Weeks Per Year}"},50,{"$f":"DY130","v":""},null,{"$f":"DZ130","v":""},null,{"$f":"EA130","v":""},null,{"$f":"EB130","v":""},null,{"$f":"EC130","v":""},null,{"$f":"ED130","v":""},null,{"$f":"AS130 *AU130 * 0.00316 * AW130 * AY130","v":1580},{"$f":"0.0001","v":1E-4},0,{"$f":"AS130 *AU130 * 0.00316","v":0.63200000000000001},0,0,{"$f":"AS130 *AU130 * 0.00316 * AF130","v":0.44239999999999996},{"$f":"AS130 *AU130 * 0.00316 * AG130","v":0.57575200000000004},0,0,0,0,0,0,null,"Com","Default DR",{"$f":"Benefits(BL130,BR130,BS130,BT130,BU130,BV130,BW130,BX130,BY130,BZ130,AE130,AH130,AI130,AJ130,AK130,AL130,AM130,AN130,AO130,AP130,CA130,CB130)","v":2368.3383801937043},2749.9533402697307,0,0,0,0,0,0,0,{"$f":"SUMPRODUCT(CC130:CK130,--(CC130:CK130>0))","v":5118.291720463435},{"$f":"-SUMPRODUCT(CC130:CK130,--(CC130:CK130<0))","v":0},null,{"$f":"AS130*AU130 * 6.54","v":1308},null,null,{"$f":"CM130+CO130","v":1308},{"$f":"IF(NetOrGross=\"Net\",(1-AO130+AP130),1)","v":1},{"$f":"(SUMPRODUCT(CC130:CJ130,--(CC130:CJ130>0))+CN130)*CS130/((-SUMPRODUCT(CC130:CJ130,--(CC130:CJ130<0))+MAX(CO130,CV130)+CP130+CQ130)*CS130+IF(FRIncentives=\"Yes\",CV130*(1-CS130),0))","v":3.9130670645744914},8,{"$f":"650","v":650},null,"Electric","y",null,{"$f":"IF(F130=\"Manual Entry\",\"Manual\",IF(G130=\"\",0,\"X=\"&SUBSTITUTE(SUBSTITUTE(SUBSTITUTE(SUBSTITUTE(SUBSTITUTE(SUBSTITUTE(SUBSTITUTE(SUBSTITUTE(SUBSTITUTE(SUBSTITUTE(SUBSTITUTE(SUBSTITUTE(G130,$ED130,$ED$2&ROW($ED130)),$EC130,$EC$2&ROW($EC130)),$EB130,$EB$2&ROW($EB130)),$EA130,$EA$2&ROW($EA130)),$DZ130,$DZ$2&ROW($DZ130)),$DY130,$DY$2&ROW($DY130)),$DX130,$DX$2&ROW($DX130)),$DW130,$DW$2&ROW($DW130)),$DV130,$DV$2&ROW($DV130)),$DU130,$DU$2&ROW($DU130)),$DT130,$DT$2&ROW($DT130)),$DS130,$DS$2&ROW($DS130))))","v":"X=AS130*AU130 * 6.54"},{"$f":"IF(I130=\"Manual Entry\",\"Manual\",IF(J130=\"\",0,\"X=\"&SUBSTITUTE(SUBSTITUTE(SUBSTITUTE(SUBSTITUTE(SUBSTITUTE(SUBSTITUTE(SUBSTITUTE(SUBSTITUTE(SUBSTITUTE(SUBSTITUTE(SUBSTITUTE(SUBSTITUTE(J130,$ED130,$ED$2&ROW($ED130)),$EC130,$EC$2&ROW($EC130)),$EB130,$EB$2&ROW($EB130)),$EA130,$EA$2&ROW($EA130)),$DZ130,$DZ$2&ROW($DZ130)),$DY130,$DY$2&ROW($DY130)),$DX130,$DX$2&ROW($DX130)),$DW130,$DW$2&ROW($DW130)),$DV130,$DV$2&ROW($DV130)),$DU130,$DU$2&ROW($DU130)),$DT130,$DT$2&ROW($DT130)),$DS130,$DS$2&ROW($DS130))))","v":"X=650"},{"$f":"IF(O130=\"\",0,\"X=\"&SUBSTITUTE(SUBSTITUTE(SUBSTITUTE(SUBSTITUTE(SUBSTITUTE(SUBSTITUTE(SUBSTITUTE(SUBSTITUTE(SUBSTITUTE(SUBSTITUTE(SUBSTITUTE(SUBSTITUTE(O130,$ED130,$ED$2&ROW($ED130)),$EC130,$EC$2&ROW($EC130)),$EB130,$EB$2&ROW($EB130)),$EA130,$EA$2&ROW($EA130)),$DZ130,$DZ$2&ROW($DZ130)),$DY130,$DY$2&ROW($DY130)),$DX130,$DX$2&ROW($DX130)),$DW130,$DW$2&ROW($DW130)),$DV130,$DV$2&ROW($DV130)),$DU130,$DU$2&ROW($DU130)),$DT130,$DT$2&ROW($DT130)),$DS130,$DS$2&ROW($DS130)))","v":"X=AS130 *AU130 * 0.00316 * AW130 * AY130"},{"$f":"IF(P130=\"\",0,\"X=\"&SUBSTITUTE(SUBSTITUTE(SUBSTITUTE(SUBSTITUTE(SUBSTITUTE(SUBSTITUTE(SUBSTITUTE(SUBSTITUTE(SUBSTITUTE(SUBSTITUTE(SUBSTITUTE(SUBSTITUTE(P130,$ED130,$ED$2&ROW($ED130)),$EC130,$EC$2&ROW($EC130)),$EB130,$EB$2&ROW($EB130)),$EA130,$EA$2&ROW($EA130)),$DZ130,$DZ$2&ROW($DZ130)),$DY130,$DY$2&ROW($DY130)),$DX130,$DX$2&ROW($DX130)),$DW130,$DW$2&ROW($DW130)),$DV130,$DV$2&ROW($DV130)),$DU130,$DU$2&ROW($DU130)),$DT130,$DT$2&ROW($DT130)),$DS130,$DS$2&ROW($DS130)))","v":"X=0.0001"},{"$f":"IF(Q130=\"\",0,\"X=\"&SUBSTITUTE(SUBSTITUTE(SUBSTITUTE(SUBSTITUTE(SUBSTITUTE(SUBSTITUTE(SUBSTITUTE(SUBSTITUTE(SUBSTITUTE(SUBSTITUTE(SUBSTITUTE(SUBSTITUTE(Q130,$ED130,$ED$2&ROW($ED130)),$EC130,$EC$2&ROW($EC130)),$EB130,$EB$2&ROW($EB130)),$EA130,$EA$2&ROW($EA130)),$DZ130,$DZ$2&ROW($DZ130)),$DY130,$DY$2&ROW($DY130)),$DX130,$DX$2&ROW($DX130)),$DW130,$DW$2&ROW($DW130)),$DV130,$DV$2&ROW($DV130)),$DU130,$DU$2&ROW($DU130)),$DT130,$DT$2&ROW($DT130)),$DS130,$DS$2&ROW($DS130)))","v":0},{"$f":"IF(R130=\"\",0,\"X=\"&SUBSTITUTE(SUBSTITUTE(SUBSTITUTE(SUBSTITUTE(SUBSTITUTE(SUBSTITUTE(SUBSTITUTE(SUBSTITUTE(SUBSTITUTE(SUBSTITUTE(SUBSTITUTE(SUBSTITUTE(R130,$ED130,$ED$2&ROW($ED130)),$EC130,$EC$2&ROW($EC130)),$EB130,$EB$2&ROW($EB130)),$EA130,$EA$2&ROW($EA130)),$DZ130,$DZ$2&ROW($DZ130)),$DY130,$DY$2&ROW($DY130)),$DX130,$DX$2&ROW($DX130)),$DW130,$DW$2&ROW($DW130)),$DV130,$DV$2&ROW($DV130)),$DU130,$DU$2&ROW($DU130)),$DT130,$DT$2&ROW($DT130)),$DS130,$DS$2&ROW($DS130)))","v":"X=AS130 *AU130 * 0.00316"},{"$f":"IF(S130=\"\",0,\"X=\"&SUBSTITUTE(SUBSTITUTE(SUBSTITUTE(SUBSTITUTE(SUBSTITUTE(SUBSTITUTE(SUBSTITUTE(SUBSTITUTE(SUBSTITUTE(SUBSTITUTE(SUBSTITUTE(SUBSTITUTE(S130,$ED130,$ED$2&ROW($ED130)),$EC130,$EC$2&ROW($EC130)),$EB130,$EB$2&ROW($EB130)),$EA130,$EA$2&ROW($EA130)),$DZ130,$DZ$2&ROW($DZ130)),$DY130,$DY$2&ROW($DY130)),$DX130,$DX$2&ROW($DX130)),$DW130,$DW$2&ROW($DW130)),$DV130,$DV$2&ROW($DV130)),$DU130,$DU$2&ROW($DU130)),$DT130,$DT$2&ROW($DT130)),$DS130,$DS$2&ROW($DS130)))","v":0},{"$f":"IF(T130=\"\",0,\"X=\"&SUBSTITUTE(SUBSTITUTE(SUBSTITUTE(SUBSTITUTE(SUBSTITUTE(SUBSTITUTE(SUBSTITUTE(SUBSTITUTE(SUBSTITUTE(SUBSTITUTE(SUBSTITUTE(SUBSTITUTE(T130,$ED130,$ED$2&ROW($ED130)),$EC130,$EC$2&ROW($EC130)),$EB130,$EB$2&ROW($EB130)),$EA130,$EA$2&ROW($EA130)),$DZ130,$DZ$2&ROW($DZ130)),$DY130,$DY$2&ROW($DY130)),$DX130,$DX$2&ROW($DX130)),$DW130,$DW$2&ROW($DW130)),$DV130,$DV$2&ROW($DV130)),$DU130,$DU$2&ROW($DU130)),$DT130,$DT$2&ROW($DT130)),$DS130,$DS$2&ROW($DS130)))","v":0},{"$f":"IF(U130=\"\",0,\"X=\"&SUBSTITUTE(SUBSTITUTE(SUBSTITUTE(SUBSTITUTE(SUBSTITUTE(SUBSTITUTE(SUBSTITUTE(SUBSTITUTE(SUBSTITUTE(SUBSTITUTE(SUBSTITUTE(SUBSTITUTE(U130,$ED130,$ED$2&ROW($ED130)),$EC130,$EC$2&ROW($EC130)),$EB130,$EB$2&ROW($EB130)),$EA130,$EA$2&ROW($EA130)),$DZ130,$DZ$2&ROW($DZ130)),$DY130,$DY$2&ROW($DY130)),$DX130,$DX$2&ROW($DX130)),$DW130,$DW$2&ROW($DW130)),$DV130,$DV$2&ROW($DV130)),$DU130,$DU$2&ROW($DU130)),$DT130,$DT$2&ROW($DT130)),$DS130,$DS$2&ROW($DS130)))","v":"X=AS130 *AU130 * 0.00316 * AF130"},{"$f":"IF(V130=\"\",0,\"X=\"&SUBSTITUTE(SUBSTITUTE(SUBSTITUTE(SUBSTITUTE(SUBSTITUTE(SUBSTITUTE(SUBSTITUTE(SUBSTITUTE(SUBSTITUTE(SUBSTITUTE(SUBSTITUTE(SUBSTITUTE(V130,$ED130,$ED$2&ROW($ED130)),$EC130,$EC$2&ROW($EC130)),$EB130,$EB$2&ROW($EB130)),$EA130,$EA$2&ROW($EA130)),$DZ130,$DZ$2&ROW($DZ130)),$DY130,$DY$2&ROW($DY130)),$DX130,$DX$2&ROW($DX130)),$DW130,$DW$2&ROW($DW130)),$DV130,$DV$2&ROW($DV130)),$DU130,$DU$2&ROW($DU130)),$DT130,$DT$2&ROW($DT130)),$DS130,$DS$2&ROW($DS130)))","v":"X=AS130 *AU130 * 0.00316 * AG130"},{"$f":"IF(W130=\"\",0,\"X=\"&SUBSTITUTE(SUBSTITUTE(SUBSTITUTE(SUBSTITUTE(SUBSTITUTE(SUBSTITUTE(SUBSTITUTE(SUBSTITUTE(SUBSTITUTE(SUBSTITUTE(SUBSTITUTE(SUBSTITUTE(W130,$ED130,$ED$2&ROW($ED130)),$EC130,$EC$2&ROW($EC130)),$EB130,$EB$2&ROW($EB130)),$EA130,$EA$2&ROW($EA130)),$DZ130,$DZ$2&ROW($DZ130)),$DY130,$DY$2&ROW($DY130)),$DX130,$DX$2&ROW($DX130)),$DW130,$DW$2&ROW($DW130)),$DV130,$DV$2&ROW($DV130)),$DU130,$DU$2&ROW($DU130)),$DT130,$DT$2&ROW($DT130)),$DS130,$DS$2&ROW($DS130)))","v":0},{"$f":"IF(X130=\"\",0,\"X=\"&SUBSTITUTE(SUBSTITUTE(SUBSTITUTE(SUBSTITUTE(SUBSTITUTE(SUBSTITUTE(SUBSTITUTE(SUBSTITUTE(SUBSTITUTE(SUBSTITUTE(SUBSTITUTE(SUBSTITUTE(X130,$ED130,$ED$2&ROW($ED130)),$EC130,$EC$2&ROW($EC130)),$EB130,$EB$2&ROW($EB130)),$EA130,$EA$2&ROW($EA130)),$DZ130,$DZ$2&ROW($DZ130)),$DY130,$DY$2&ROW($DY130)),$DX130,$DX$2&ROW($DX130)),$DW130,$DW$2&ROW($DW130)),$DV130,$DV$2&ROW($DV130)),$DU130,$DU$2&ROW($DU130)),$DT130,$DT$2&ROW($DT130)),$DS130,$DS$2&ROW($DS130)))","v":0},{"$f":"IF(Y130=\"\",0,\"X=\"&SUBSTITUTE(SUBSTITUTE(SUBSTITUTE(SUBSTITUTE(SUBSTITUTE(SUBSTITUTE(SUBSTITUTE(SUBSTITUTE(SUBSTITUTE(SUBSTITUTE(SUBSTITUTE(SUBSTITUTE(Y130,$ED130,$ED$2&ROW($ED130)),$EC130,$EC$2&ROW($EC130)),$EB130,$EB$2&ROW($EB130)),$EA130,$EA$2&ROW($EA130)),$DZ130,$DZ$2&ROW($DZ130)),$DY130,$DY$2&ROW($DY130)),$DX130,$DX$2&ROW($DX130)),$DW130,$DW$2&ROW($DW130)),$DV130,$DV$2&ROW($DV130)),$DU130,$DU$2&ROW($DU130)),$DT130,$DT$2&ROW($DT130)),$DS130,$DS$2&ROW($DS130)))","v":0},{"$f":"IF(Z130=\"\",0,\"X=\"&SUBSTITUTE(SUBSTITUTE(SUBSTITUTE(SUBSTITUTE(SUBSTITUTE(SUBSTITUTE(SUBSTITUTE(SUBSTITUTE(SUBSTITUTE(SUBSTITUTE(SUBSTITUTE(SUBSTITUTE(Z130,$ED130,$ED$2&ROW($ED130)),$EC130,$EC$2&ROW($EC130)),$EB130,$EB$2&ROW($EB130)),$EA130,$EA$2&ROW($EA130)),$DZ130,$DZ$2&ROW($DZ130)),$DY130,$DY$2&ROW($DY130)),$DX130,$DX$2&ROW($DX130)),$DW130,$DW$2&ROW($DW130)),$DV130,$DV$2&ROW($DV130)),$DU130,$DU$2&ROW($DU130)),$DT130,$DT$2&ROW($DT130)),$DS130,$DS$2&ROW($DS130)))","v":0},{"$f":"IF(AA130=\"\",0,\"X=\"&SUBSTITUTE(SUBSTITUTE(SUBSTITUTE(SUBSTITUTE(SUBSTITUTE(SUBSTITUTE(SUBSTITUTE(SUBSTITUTE(SUBSTITUTE(SUBSTITUTE(SUBSTITUTE(SUBSTITUTE(AA130,$ED130,$ED$2&ROW($ED130)),$EC130,$EC$2&ROW($EC130)),$EB130,$EB$2&ROW($EB130)),$EA130,$EA$2&ROW($EA130)),$DZ130,$DZ$2&ROW($DZ130)),$DY130,$DY$2&ROW($DY130)),$DX130,$DX$2&ROW($DX130)),$DW130,$DW$2&ROW($DW130)),$DV130,$DV$2&ROW($DV130)),$DU130,$DU$2&ROW($DU130)),$DT130,$DT$2&ROW($DT130)),$DS130,$DS$2&ROW($DS130)))","v":0},{"$f":"IF(AB130=\"\",0,\"X=\"&SUBSTITUTE(SUBSTITUTE(SUBSTITUTE(SUBSTITUTE(SUBSTITUTE(SUBSTITUTE(SUBSTITUTE(SUBSTITUTE(SUBSTITUTE(SUBSTITUTE(SUBSTITUTE(SUBSTITUTE(AB130,$ED130,$ED$2&ROW($ED130)),$EC130,$EC$2&ROW($EC130)),$EB130,$EB$2&ROW($EB130)),$EA130,$EA$2&ROW($EA130)),$DZ130,$DZ$2&ROW($DZ130)),$DY130,$DY$2&ROW($DY130)),$DX130,$DX$2&ROW($DX130)),$DW130,$DW$2&ROW($DW130)),$DV130,$DV$2&ROW($DV130)),$DU130,$DU$2&ROW($DU130)),$DT130,$DT$2&ROW($DT130)),$DS130,$DS$2&ROW($DS130)))","v":0},null,null,"{Factor:WinterCF}","{Factor:SummerCF}",{"$f":"IFERROR(INDEX($EG130:$IV130,MATCH(0,COUNTIF($DR130:DT130,$EG130:$IV130),0)),\"\")","v":"{Measure:Quantity}"},{"$f":"IFERROR(INDEX($EG130:$IV130,MATCH(0,COUNTIF($DR130:DU130,$EG130:$IV130),0)),\"\")","v":"{Dryer CFM}"},{"$f":"IFERROR(INDEX($EG130:$IV130,MATCH(0,COUNTIF($DR130:DV130,$EG130:$IV130),0)),\"\")","v":"{Weekly Hrs of Operation}"},{"$f":"IFERROR(INDEX($EG130:$IV130,MATCH(0,COUNTIF($DR130:DW130,$EG130:$IV130),0)),\"\")","v":"{Weeks Per Year}"},{"$f":"IFERROR(INDEX($EG130:$IV130,MATCH(0,COUNTIF($DR130:DX130,$EG130:$IV130),0)),\"\")","v":""},{"$f":"IFERROR(INDEX($EG130:$IV130,MATCH(0,COUNTIF($DR130:DY130,$EG130:$IV130),0)),\"\")","v":""},{"$f":"IFERROR(INDEX($EG130:$IV130,MATCH(0,COUNTIF($DR130:DZ130,$EG130:$IV130),0)),\"\")","v":""},{"$f":"IFERROR(INDEX($EG130:$IV130,MATCH(0,COUNTIF($DR130:EA130,$EG130:$IV130),0)),\"\")","v":""},{"$f":"IFERROR(INDEX($EG130:$IV130,MATCH(0,COUNTIF($DR130:EB130,$EG130:$IV130),0)),\"\")","v":""},{"$f":"IFERROR(INDEX($EG130:$IV130,MATCH(0,COUNTIF($DR130:EC130,$EG130:$IV130),0)),\"\")","v":""},null,null,{"$f":"IFERROR(MID($G130,FIND(CHAR(160),SUBSTITUTE($G130,\"{\",CHAR(160),EG$1)),FIND(CHAR(160),SUBSTITUTE($G130,\"}\",CHAR(160),EG$1))-FIND(CHAR(160),SUBSTITUTE($G130,\"{\",CHAR(160),EG$1))+1),\"\")","v":"{Measure:Quantity}"},{"$f":"IFERROR(MID($G130,FIND(CHAR(160),SUBSTITUTE($G130,\"{\",CHAR(160),EH$1)),FIND(CHAR(160),SUBSTITUTE($G130,\"}\",CHAR(160),EH$1))-FIND(CHAR(160),SUBSTITUTE($G130,\"{\",CHAR(160),EH$1))+1),\"\")","v":"{Dryer CFM}"},{"$f":"IFERROR(MID($G130,FIND(CHAR(160),SUBSTITUTE($G130,\"{\",CHAR(160),EI$1)),FIND(CHAR(160),SUBSTITUTE($G130,\"}\",CHAR(160),EI$1))-FIND(CHAR(160),SUBSTITUTE($G130,\"{\",CHAR(160),EI$1))+1),\"\")","v":""},{"$f":"IFERROR(MID($G130,FIND(CHAR(160),SUBSTITUTE($G130,\"{\",CHAR(160),EJ$1)),FIND(CHAR(160),SUBSTITUTE($G130,\"}\",CHAR(160),EJ$1))-FIND(CHAR(160),SUBSTITUTE($G130,\"{\",CHAR(160),EJ$1))+1),\"\")","v":""},{"$f":"IFERROR(MID($G130,FIND(CHAR(160),SUBSTITUTE($G130,\"{\",CHAR(160),EK$1)),FIND(CHAR(160),SUBSTITUTE($G130,\"}\",CHAR(160),EK$1))-FIND(CHAR(160),SUBSTITUTE($G130,\"{\",CHAR(160),EK$1))+1),\"\")","v":""},{"$f":"IFERROR(MID($G130,FIND(CHAR(160),SUBSTITUTE($G130,\"{\",CHAR(160),EL$1)),FIND(CHAR(160),SUBSTITUTE($G130,\"}\",CHAR(160),EL$1))-FIND(CHAR(160),SUBSTITUTE($G130,\"{\",CHAR(160),EL$1))+1),\"\")","v":""},{"$f":"IFERROR(MID($G130,FIND(CHAR(160),SUBSTITUTE($G130,\"{\",CHAR(160),EM$1)),FIND(CHAR(160),SUBSTITUTE($G130,\"}\",CHAR(160),EM$1))-FIND(CHAR(160),SUBSTITUTE($G130,\"{\",CHAR(160),EM$1))+1),\"\")","v":""},{"$f":"IFERROR(MID($G130,FIND(CHAR(160),SUBSTITUTE($G130,\"{\",CHAR(160),EN$1)),FIND(CHAR(160),SUBSTITUTE($G130,\"}\",CHAR(160),EN$1))-FIND(CHAR(160),SUBSTITUTE($G130,\"{\",CHAR(160),EN$1))+1),\"\")","v":""},{"$f":"IFERROR(MID($G130,FIND(CHAR(160),SUBSTITUTE($G130,\"{\",CHAR(160),EO$1)),FIND(CHAR(160),SUBSTITUTE($G130,\"}\",CHAR(160),EO$1))-FIND(CHAR(160),SUBSTITUTE($G130,\"{\",CHAR(160),EO$1))+1),\"\")","v":""},{"$f":"IFERROR(MID($G130,FIND(CHAR(160),SUBSTITUTE($G130,\"{\",CHAR(160),EP$1)),FIND(CHAR(160),SUBSTITUTE($G130,\"}\",CHAR(160),EP$1))-FIND(CHAR(160),SUBSTITUTE($G130,\"{\",CHAR(160),EP$1))+1),\"\")","v":""},{"$f":"IFERROR(MID($J130,FIND(CHAR(160),SUBSTITUTE($J130,\"{\",CHAR(160),EQ$1)),FIND(CHAR(160),SUBSTITUTE($J130,\"}\",CHAR(160),EQ$1))-FIND(CHAR(160),SUBSTITUTE($J130,\"{\",CHAR(160),EQ$1))+1),\"\")","v":""},{"$f":"IFERROR(MID($J130,FIND(CHAR(160),SUBSTITUTE($J130,\"{\",CHAR(160),ER$1)),FIND(CHAR(160),SUBSTITUTE($J130,\"}\",CHAR(160),ER$1))-FIND(CHAR(160),SUBSTITUTE($J130,\"{\",CHAR(160),ER$1))+1),\"\")","v":""},{"$f":"IFERROR(MID($J130,FIND(CHAR(160),SUBSTITUTE($J130,\"{\",CHAR(160),ES$1)),FIND(CHAR(160),SUBSTITUTE($J130,\"}\",CHAR(160),ES$1))-FIND(CHAR(160),SUBSTITUTE($J130,\"{\",CHAR(160),ES$1))+1),\"\")","v":""},{"$f":"IFERROR(MID($J130,FIND(CHAR(160),SUBSTITUTE($J130,\"{\",CHAR(160),ET$1)),FIND(CHAR(160),SUBSTITUTE($J130,\"}\",CHAR(160),ET$1))-FIND(CHAR(160),SUBSTITUTE($J130,\"{\",CHAR(160),ET$1))+1),\"\")","v":""},{"$f":"IFERROR(MID($J130,FIND(CHAR(160),SUBSTITUTE($J130,\"{\",CHAR(160),EU$1)),FIND(CHAR(160),SUBSTITUTE($J130,\"}\",CHAR(160),EU$1))-FIND(CHAR(160),SUBSTITUTE($J130,\"{\",CHAR(160),EU$1))+1),\"\")","v":""},{"$f":"IFERROR(MID($J130,FIND(CHAR(160),SUBSTITUTE($J130,\"{\",CHAR(160),EV$1)),FIND(CHAR(160),SUBSTITUTE($J130,\"}\",CHAR(160),EV$1))-FIND(CHAR(160),SUBSTITUTE($J130,\"{\",CHAR(160),EV$1))+1),\"\")","v":""},{"$f":"IFERROR(MID($J130,FIND(CHAR(160),SUBSTITUTE($J130,\"{\",CHAR(160),EW$1)),FIND(CHAR(160),SUBSTITUTE($J130,\"}\",CHAR(160),EW$1))-FIND(CHAR(160),SUBSTITUTE($J130,\"{\",CHAR(160),EW$1))+1),\"\")","v":""},{"$f":"IFERROR(MID($J130,FIND(CHAR(160),SUBSTITUTE($J130,\"{\",CHAR(160),EX$1)),FIND(CHAR(160),SUBSTITUTE($J130,\"}\",CHAR(160),EX$1))-FIND(CHAR(160),SUBSTITUTE($J130,\"{\",CHAR(160),EX$1))+1),\"\")","v":""},{"$f":"IFERROR(MID($J130,FIND(CHAR(160),SUBSTITUTE($J130,\"{\",CHAR(160),EY$1)),FIND(CHAR(160),SUBSTITUTE($J130,\"}\",CHAR(160),EY$1))-FIND(CHAR(160),SUBSTITUTE($J130,\"{\",CHAR(160),EY$1))+1),\"\")","v":""},{"$f":"IFERROR(MID($J130,FIND(CHAR(160),SUBSTITUTE($J130,\"{\",CHAR(160),EZ$1)),FIND(CHAR(160),SUBSTITUTE($J130,\"}\",CHAR(160),EZ$1))-FIND(CHAR(160),SUBSTITUTE($J130,\"{\",CHAR(160),EZ$1))+1),\"\")","v":""},{"$f":"IFERROR(MID($J130,FIND(CHAR(160),SUBSTITUTE($J130,\"{\",CHAR(160),FA$1)),FIND(CHAR(160),SUBSTITUTE($J130,\"}\",CHAR(160),FA$1))-FIND(CHAR(160),SUBSTITUTE($J130,\"{\",CHAR(160),FA$1))+1),\"\")","v":""},{"$f":"IFERROR(MID($J130,FIND(CHAR(160),SUBSTITUTE($J130,\"{\",CHAR(160),FB$1)),FIND(CHAR(160),SUBSTITUTE($J130,\"}\",CHAR(160),FB$1))-FIND(CHAR(160),SUBSTITUTE($J130,\"{\",CHAR(160),FB$1))+1),\"\")","v":""},{"$f":"IFERROR(MID($O130,FIND(CHAR(160),SUBSTITUTE($O130,\"{\",CHAR(160),FC$1)),FIND(CHAR(160),SUBSTITUTE($O130,\"}\",CHAR(160),FC$1))-FIND(CHAR(160),SUBSTITUTE($O130,\"{\",CHAR(160),FC$1))+1),\"\")","v":"{Weekly Hrs of Operation}"},{"$f":"IFERROR(MID($O130,FIND(CHAR(160),SUBSTITUTE($O130,\"{\",CHAR(160),FD$1)),FIND(CHAR(160),SUBSTITUTE($O130,\"}\",CHAR(160),FD$1))-FIND(CHAR(160),SUBSTITUTE($O130,\"{\",CHAR(160),FD$1))+1),\"\")","v":"{Weeks Per Year}"},{"$f":"IFERROR(MID($O130,FIND(CHAR(160),SUBSTITUTE($O130,\"{\",CHAR(160),FE$1)),FIND(CHAR(160),SUBSTITUTE($O130,\"}\",CHAR(160),FE$1))-FIND(CHAR(160),SUBSTITUTE($O130,\"{\",CHAR(160),FE$1))+1),\"\")","v":""},{"$f":"IFERROR(MID($O130,FIND(CHAR(160),SUBSTITUTE($O130,\"{\",CHAR(160),FF$1)),FIND(CHAR(160),SUBSTITUTE($O130,\"}\",CHAR(160),FF$1))-FIND(CHAR(160),SUBSTITUTE($O130,\"{\",CHAR(160),FF$1))+1),\"\")","v":""},{"$f":"IFERROR(MID($O130,FIND(CHAR(160),SUBSTITUTE($O130,\"{\",CHAR(160),FG$1)),FIND(CHAR(160),SUBSTITUTE($O130,\"}\",CHAR(160),FG$1))-FIND(CHAR(160),SUBSTITUTE($O130,\"{\",CHAR(160),FG$1))+1),\"\")","v":""},{"$f":"IFERROR(MID($O130,FIND(CHAR(160),SUBSTITUTE($O130,\"{\",CHAR(160),FH$1)),FIND(CHAR(160),SUBSTITUTE($O130,\"}\",CHAR(160),FH$1))-FIND(CHAR(160),SUBSTITUTE($O130,\"{\",CHAR(160),FH$1))+1),\"\")","v":""},{"$f":"IFERROR(MID($O130,FIND(CHAR(160),SUBSTITUTE($O130,\"{\",CHAR(160),FI$1)),FIND(CHAR(160),SUBSTITUTE($O130,\"}\",CHAR(160),FI$1))-FIND(CHAR(160),SUBSTITUTE($O130,\"{\",CHAR(160),FI$1))+1),\"\")","v":""},{"$f":"IFERROR(MID($O130,FIND(CHAR(160),SUBSTITUTE($O130,\"{\",CHAR(160),FJ$1)),FIND(CHAR(160),SUBSTITUTE($O130,\"}\",CHAR(160),FJ$1))-FIND(CHAR(160),SUBSTITUTE($O130,\"{\",CHAR(160),FJ$1))+1),\"\")","v":""},{"$f":"IFERROR(MID($O130,FIND(CHAR(160),SUBSTITUTE($O130,\"{\",CHAR(160),FK$1)),FIND(CHAR(160),SUBSTITUTE($O130,\"}\",CHAR(160),FK$1))-FIND(CHAR(160),SUBSTITUTE($O130,\"{\",CHAR(160),FK$1))+1),\"\")","v":"{Measure:Quantity}"},{"$f":"IFERROR(MID($O130,FIND(CHAR(160),SUBSTITUTE($O130,\"{\",CHAR(160),FL$1)),FIND(CHAR(160),SUBSTITUTE($O130,\"}\",CHAR(160),FL$1))-FIND(CHAR(160),SUBSTITUTE($O130,\"{\",CHAR(160),FL$1))+1),\"\")","v":"{Dryer CFM}"},{"$f":"IFERROR(MID($R130,FIND(CHAR(160),SUBSTITUTE($R130,\"{\",CHAR(160),FM$1)),FIND(CHAR(160),SUBSTITUTE($R130,\"}\",CHAR(160),FM$1))-FIND(CHAR(160),SUBSTITUTE($R130,\"{\",CHAR(160),FM$1))+1),\"\")","v":""},{"$f":"IFERROR(MID($R130,FIND(CHAR(160),SUBSTITUTE($R130,\"{\",CHAR(160),FN$1)),FIND(CHAR(160),SUBSTITUTE($R130,\"}\",CHAR(160),FN$1))-FIND(CHAR(160),SUBSTITUTE($R130,\"{\",CHAR(160),FN$1))+1),\"\")","v":""},{"$f":"IFERROR(MID($R130,FIND(CHAR(160),SUBSTITUTE($R130,\"{\",CHAR(160),FO$1)),FIND(CHAR(160),SUBSTITUTE($R130,\"}\",CHAR(160),FO$1))-FIND(CHAR(160),SUBSTITUTE($R130,\"{\",CHAR(160),FO$1))+1),\"\")","v":""},{"$f":"IFERROR(MID($R130,FIND(CHAR(160),SUBSTITUTE($R130,\"{\",CHAR(160),FP$1)),FIND(CHAR(160),SUBSTITUTE($R130,\"}\",CHAR(160),FP$1))-FIND(CHAR(160),SUBSTITUTE($R130,\"{\",CHAR(160),FP$1))+1),\"\")","v":""},{"$f":"IFERROR(MID($R130,FIND(CHAR(160),SUBSTITUTE($R130,\"{\",CHAR(160),FQ$1)),FIND(CHAR(160),SUBSTITUTE($R130,\"}\",CHAR(160),FQ$1))-FIND(CHAR(160),SUBSTITUTE($R130,\"{\",CHAR(160),FQ$1))+1),\"\")","v":""},{"$f":"IFERROR(MID($R130,FIND(CHAR(160),SUBSTITUTE($R130,\"{\",CHAR(160),FR$1)),FIND(CHAR(160),SUBSTITUTE($R130,\"}\",CHAR(160),FR$1))-FIND(CHAR(160),SUBSTITUTE($R130,\"{\",CHAR(160),FR$1))+1),\"\")","v":""},{"$f":"IFERROR(MID($R130,FIND(CHAR(160),SUBSTITUTE($R130,\"{\",CHAR(160),FS$1)),FIND(CHAR(160),SUBSTITUTE($R130,\"}\",CHAR(160),FS$1))-FIND(CHAR(160),SUBSTITUTE($R130,\"{\",CHAR(160),FS$1))+1),\"\")","v":""},{"$f":"IFERROR(MID($R130,FIND(CHAR(160),SUBSTITUTE($R130,\"{\",CHAR(160),FT$1)),FIND(CHAR(160),SUBSTITUTE($R130,\"}\",CHAR(160),FT$1))-FIND(CHAR(160),SUBSTITUTE($R130,\"{\",CHAR(160),FT$1))+1),\"\")","v":""},{"$f":"IFERROR(MID($R130,FIND(CHAR(160),SUBSTITUTE($R130,\"{\",CHAR(160),FU$1)),FIND(CHAR(160),SUBSTITUTE($R130,\"}\",CHAR(160),FU$1))-FIND(CHAR(160),SUBSTITUTE($R130,\"{\",CHAR(160),FU$1))+1),\"\")","v":"{Measure:Quantity}"},{"$f":"IFERROR(MID($R130,FIND(CHAR(160),SUBSTITUTE($R130,\"{\",CHAR(160),FV$1)),FIND(CHAR(160),SUBSTITUTE($R130,\"}\",CHAR(160),FV$1))-FIND(CHAR(160),SUBSTITUTE($R130,\"{\",CHAR(160),FV$1))+1),\"\")","v":"{Dryer CFM}"},{"$f":"IFERROR(MID($U130,FIND(CHAR(160),SUBSTITUTE($U130,\"{\",CHAR(160),FW$1)),FIND(CHAR(160),SUBSTITUTE($U130,\"}\",CHAR(160),FW$1))-FIND(CHAR(160),SUBSTITUTE($U130,\"{\",CHAR(160),FW$1))+1),\"\")","v":"{Factor:WinterCF}"},{"$f":"IFERROR(MID($U130,FIND(CHAR(160),SUBSTITUTE($U130,\"{\",CHAR(160),FX$1)),FIND(CHAR(160),SUBSTITUTE($U130,\"}\",CHAR(160),FX$1))-FIND(CHAR(160),SUBSTITUTE($U130,\"{\",CHAR(160),FX$1))+1),\"\")","v":""},{"$f":"IFERROR(MID($U130,FIND(CHAR(160),SUBSTITUTE($U130,\"{\",CHAR(160),FY$1)),FIND(CHAR(160),SUBSTITUTE($U130,\"}\",CHAR(160),FY$1))-FIND(CHAR(160),SUBSTITUTE($U130,\"{\",CHAR(160),FY$1))+1),\"\")","v":""},{"$f":"IFERROR(MID($U130,FIND(CHAR(160),SUBSTITUTE($U130,\"{\",CHAR(160),FZ$1)),FIND(CHAR(160),SUBSTITUTE($U130,\"}\",CHAR(160),FZ$1))-FIND(CHAR(160),SUBSTITUTE($U130,\"{\",CHAR(160),FZ$1))+1),\"\")","v":""},{"$f":"IFERROR(MID($U130,FIND(CHAR(160),SUBSTITUTE($U130,\"{\",CHAR(160),GA$1)),FIND(CHAR(160),SUBSTITUTE($U130,\"}\",CHAR(160),GA$1))-FIND(CHAR(160),SUBSTITUTE($U130,\"{\",CHAR(160),GA$1))+1),\"\")","v":""},{"$f":"IFERROR(MID($U130,FIND(CHAR(160),SUBSTITUTE($U130,\"{\",CHAR(160),GB$1)),FIND(CHAR(160),SUBSTITUTE($U130,\"}\",CHAR(160),GB$1))-FIND(CHAR(160),SUBSTITUTE($U130,\"{\",CHAR(160),GB$1))+1),\"\")","v":""},{"$f":"IFERROR(MID($U130,FIND(CHAR(160),SUBSTITUTE($U130,\"{\",CHAR(160),GC$1)),FIND(CHAR(160),SUBSTITUTE($U130,\"}\",CHAR(160),GC$1))-FIND(CHAR(160),SUBSTITUTE($U130,\"{\",CHAR(160),GC$1))+1),\"\")","v":""},{"$f":"IFERROR(MID($U130,FIND(CHAR(160),SUBSTITUTE($U130,\"{\",CHAR(160),GD$1)),FIND(CHAR(160),SUBSTITUTE($U130,\"}\",CHAR(160),GD$1))-FIND(CHAR(160),SUBSTITUTE($U130,\"{\",CHAR(160),GD$1))+1),\"\")","v":""},{"$f":"IFERROR(MID($U130,FIND(CHAR(160),SUBSTITUTE($U130,\"{\",CHAR(160),GE$1)),FIND(CHAR(160),SUBSTITUTE($U130,\"}\",CHAR(160),GE$1))-FIND(CHAR(160),SUBSTITUTE($U130,\"{\",CHAR(160),GE$1))+1),\"\")","v":"{Measure:Quantity}"},{"$f":"IFERROR(MID($U130,FIND(CHAR(160),SUBSTITUTE($U130,\"{\",CHAR(160),GF$1)),FIND(CHAR(160),SUBSTITUTE($U130,\"}\",CHAR(160),GF$1))-FIND(CHAR(160),SUBSTITUTE($U130,\"{\",CHAR(160),GF$1))+1),\"\")","v":"{Dryer CFM}"},{"$f":"IFERROR(MID($V130,FIND(CHAR(160),SUBSTITUTE($V130,\"{\",CHAR(160),GG$1)),FIND(CHAR(160),SUBSTITUTE($V130,\"}\",CHAR(160),GG$1))-FIND(CHAR(160),SUBSTITUTE($V130,\"{\",CHAR(160),GG$1))+1),\"\")","v":"{Factor:SummerCF}"},{"$f":"IFERROR(MID($V130,FIND(CHAR(160),SUBSTITUTE($V130,\"{\",CHAR(160),GH$1)),FIND(CHAR(160),SUBSTITUTE($V130,\"}\",CHAR(160),GH$1))-FIND(CHAR(160),SUBSTITUTE($V130,\"{\",CHAR(160),GH$1))+1),\"\")","v":""},{"$f":"IFERROR(MID($V130,FIND(CHAR(160),SUBSTITUTE($V130,\"{\",CHAR(160),GI$1)),FIND(CHAR(160),SUBSTITUTE($V130,\"}\",CHAR(160),GI$1))-FIND(CHAR(160),SUBSTITUTE($V130,\"{\",CHAR(160),GI$1))+1),\"\")","v":""},{"$f":"IFERROR(MID($V130,FIND(CHAR(160),SUBSTITUTE($V130,\"{\",CHAR(160),GJ$1)),FIND(CHAR(160),SUBSTITUTE($V130,\"}\",CHAR(160),GJ$1))-FIND(CHAR(160),SUBSTITUTE($V130,\"{\",CHAR(160),GJ$1))+1),\"\")","v":""},{"$f":"IFERROR(MID($V130,FIND(CHAR(160),SUBSTITUTE($V130,\"{\",CHAR(160),GK$1)),FIND(CHAR(160),SUBSTITUTE($V130,\"}\",CHAR(160),GK$1))-FIND(CHAR(160),SUBSTITUTE($V130,\"{\",CHAR(160),GK$1))+1),\"\")","v":""},{"$f":"IFERROR(MID($V130,FIND(CHAR(160),SUBSTITUTE($V130,\"{\",CHAR(160),GL$1)),FIND(CHAR(160),SUBSTITUTE($V130,\"}\",CHAR(160),GL$1))-FIND(CHAR(160),SUBSTITUTE($V130,\"{\",CHAR(160),GL$1))+1),\"\")","v":""},{"$f":"IFERROR(MID($V130,FIND(CHAR(160),SUBSTITUTE($V130,\"{\",CHAR(160),GM$1)),FIND(CHAR(160),SUBSTITUTE($V130,\"}\",CHAR(160),GM$1))-FIND(CHAR(160),SUBSTITUTE($V130,\"{\",CHAR(160),GM$1))+1),\"\")","v":""},{"$f":"IFERROR(MID($V130,FIND(CHAR(160),SUBSTITUTE($V130,\"{\",CHAR(160),GN$1)),FIND(CHAR(160),SUBSTITUTE($V130,\"}\",CHAR(160),GN$1))-FIND(CHAR(160),SUBSTITUTE($V130,\"{\",CHAR(160),GN$1))+1),\"\")","v":""},{"$f":"IFERROR(MID($V130,FIND(CHAR(160),SUBSTITUTE($V130,\"{\",CHAR(160),GO$1)),FIND(CHAR(160),SUBSTITUTE($V130,\"}\",CHAR(160),GO$1))-FIND(CHAR(160),SUBSTITUTE($V130,\"{\",CHAR(160),GO$1))+1),\"\")","v":"{Measure:Quantity}"},{"$f":"IFERROR(MID($V130,FIND(CHAR(160),SUBSTITUTE($V130,\"{\",CHAR(160),GP$1)),FIND(CHAR(160),SUBSTITUTE($V130,\"}\",CHAR(160),GP$1))-FIND(CHAR(160),SUBSTITUTE($V130,\"{\",CHAR(160),GP$1))+1),\"\")","v":"{Dryer CFM}"},{"$f":"IFERROR(MID($W130,FIND(CHAR(160),SUBSTITUTE($W130,\"{\",CHAR(160),GQ$1)),FIND(CHAR(160),SUBSTITUTE($W130,\"}\",CHAR(160),GQ$1))-FIND(CHAR(160),SUBSTITUTE($W130,\"{\",CHAR(160),GQ$1))+1),\"\")","v":""},{"$f":"IFERROR(MID($W130,FIND(CHAR(160),SUBSTITUTE($W130,\"{\",CHAR(160),GR$1)),FIND(CHAR(160),SUBSTITUTE($W130,\"}\",CHAR(160),GR$1))-FIND(CHAR(160),SUBSTITUTE($W130,\"{\",CHAR(160),GR$1))+1),\"\")","v":""},{"$f":"IFERROR(MID($W130,FIND(CHAR(160),SUBSTITUTE($W130,\"{\",CHAR(160),GS$1)),FIND(CHAR(160),SUBSTITUTE($W130,\"}\",CHAR(160),GS$1))-FIND(CHAR(160),SUBSTITUTE($W130,\"{\",CHAR(160),GS$1))+1),\"\")","v":""},{"$f":"IFERROR(MID($W130,FIND(CHAR(160),SUBSTITUTE($W130,\"{\",CHAR(160),GT$1)),FIND(CHAR(160),SUBSTITUTE($W130,\"}\",CHAR(160),GT$1))-FIND(CHAR(160),SUBSTITUTE($W130,\"{\",CHAR(160),GT$1))+1),\"\")","v":""},{"$f":"IFERROR(MID($W130,FIND(CHAR(160),SUBSTITUTE($W130,\"{\",CHAR(160),GU$1)),FIND(CHAR(160),SUBSTITUTE($W130,\"}\",CHAR(160),GU$1))-FIND(CHAR(160),SUBSTITUTE($W130,\"{\",CHAR(160),GU$1))+1),\"\")","v":""},{"$f":"IFERROR(MID($W130,FIND(CHAR(160),SUBSTITUTE($W130,\"{\",CHAR(160),GV$1)),FIND(CHAR(160),SUBSTITUTE($W130,\"}\",CHAR(160),GV$1))-FIND(CHAR(160),SUBSTITUTE($W130,\"{\",CHAR(160),GV$1))+1),\"\")","v":""},{"$f":"IFERROR(MID($W130,FIND(CHAR(160),SUBSTITUTE($W130,\"{\",CHAR(160),GW$1)),FIND(CHAR(160),SUBSTITUTE($W130,\"}\",CHAR(160),GW$1))-FIND(CHAR(160),SUBSTITUTE($W130,\"{\",CHAR(160),GW$1))+1),\"\")","v":""},{"$f":"IFERROR(MID($W130,FIND(CHAR(160),SUBSTITUTE($W130,\"{\",CHAR(160),GX$1)),FIND(CHAR(160),SUBSTITUTE($W130,\"}\",CHAR(160),GX$1))-FIND(CHAR(160),SUBSTITUTE($W130,\"{\",CHAR(160),GX$1))+1),\"\")","v":""},{"$f":"IFERROR(MID($W130,FIND(CHAR(160),SUBSTITUTE($W130,\"{\",CHAR(160),GY$1)),FIND(CHAR(160),SUBSTITUTE($W130,\"}\",CHAR(160),GY$1))-FIND(CHAR(160),SUBSTITUTE($W130,\"{\",CHAR(160),GY$1))+1),\"\")","v":""},{"$f":"IFERROR(MID($W130,FIND(CHAR(160),SUBSTITUTE($W130,\"{\",CHAR(160),GZ$1)),FIND(CHAR(160),SUBSTITUTE($W130,\"}\",CHAR(160),GZ$1))-FIND(CHAR(160),SUBSTITUTE($W130,\"{\",CHAR(160),GZ$1))+1),\"\")","v":""},{"$f":"IFERROR(MID($X130,FIND(CHAR(160),SUBSTITUTE($X130,\"{\",CHAR(160),HA$1)),FIND(CHAR(160),SUBSTITUTE($X130,\"}\",CHAR(160),HA$1))-FIND(CHAR(160),SUBSTITUTE($X130,\"{\",CHAR(160),HA$1))+1),\"\")","v":""},{"$f":"IFERROR(MID($X130,FIND(CHAR(160),SUBSTITUTE($X130,\"{\",CHAR(160),HB$1)),FIND(CHAR(160),SUBSTITUTE($X130,\"}\",CHAR(160),HB$1))-FIND(CHAR(160),SUBSTITUTE($X130,\"{\",CHAR(160),HB$1))+1),\"\")","v":""},{"$f":"IFERROR(MID($X130,FIND(CHAR(160),SUBSTITUTE($X130,\"{\",CHAR(160),HC$1)),FIND(CHAR(160),SUBSTITUTE($X130,\"}\",CHAR(160),HC$1))-FIND(CHAR(160),SUBSTITUTE($X130,\"{\",CHAR(160),HC$1))+1),\"\")","v":""},{"$f":"IFERROR(MID($X130,FIND(CHAR(160),SUBSTITUTE($X130,\"{\",CHAR(160),HD$1)),FIND(CHAR(160),SUBSTITUTE($X130,\"}\",CHAR(160),HD$1))-FIND(CHAR(160),SUBSTITUTE($X130,\"{\",CHAR(160),HD$1))+1),\"\")","v":""},{"$f":"IFERROR(MID($X130,FIND(CHAR(160),SUBSTITUTE($X130,\"{\",CHAR(160),HE$1)),FIND(CHAR(160),SUBSTITUTE($X130,\"}\",CHAR(160),HE$1))-FIND(CHAR(160),SUBSTITUTE($X130,\"{\",CHAR(160),HE$1))+1),\"\")","v":""},{"$f":"IFERROR(MID($X130,FIND(CHAR(160),SUBSTITUTE($X130,\"{\",CHAR(160),HF$1)),FIND(CHAR(160),SUBSTITUTE($X130,\"}\",CHAR(160),HF$1))-FIND(CHAR(160),SUBSTITUTE($X130,\"{\",CHAR(160),HF$1))+1),\"\")","v":""},{"$f":"IFERROR(MID($X130,FIND(CHAR(160),SUBSTITUTE($X130,\"{\",CHAR(160),HG$1)),FIND(CHAR(160),SUBSTITUTE($X130,\"}\",CHAR(160),HG$1))-FIND(CHAR(160),SUBSTITUTE($X130,\"{\",CHAR(160),HG$1))+1),\"\")","v":""},{"$f":"IFERROR(MID($X130,FIND(CHAR(160),SUBSTITUTE($X130,\"{\",CHAR(160),HH$1)),FIND(CHAR(160),SUBSTITUTE($X130,\"}\",CHAR(160),HH$1))-FIND(CHAR(160),SUBSTITUTE($X130,\"{\",CHAR(160),HH$1))+1),\"\")","v":""},{"$f":"IFERROR(MID($X130,FIND(CHAR(160),SUBSTITUTE($X130,\"{\",CHAR(160),HI$1)),FIND(CHAR(160),SUBSTITUTE($X130,\"}\",CHAR(160),HI$1))-FIND(CHAR(160),SUBSTITUTE($X130,\"{\",CHAR(160),HI$1))+1),\"\")","v":""},{"$f":"IFERROR(MID($X130,FIND(CHAR(160),SUBSTITUTE($X130,\"{\",CHAR(160),HJ$1)),FIND(CHAR(160),SUBSTITUTE($X130,\"}\",CHAR(160),HJ$1))-FIND(CHAR(160),SUBSTITUTE($X130,\"{\",CHAR(160),HJ$1))+1),\"\")","v":""},{"$f":"IFERROR(MID($Y130,FIND(CHAR(160),SUBSTITUTE($Y130,\"{\",CHAR(160),HK$1)),FIND(CHAR(160),SUBSTITUTE($Y130,\"}\",CHAR(160),HK$1))-FIND(CHAR(160),SUBSTITUTE($Y130,\"{\",CHAR(160),HK$1))+1),\"\")","v":""},{"$f":"IFERROR(MID($Y130,FIND(CHAR(160),SUBSTITUTE($Y130,\"{\",CHAR(160),HL$1)),FIND(CHAR(160),SUBSTITUTE($Y130,\"}\",CHAR(160),HL$1))-FIND(CHAR(160),SUBSTITUTE($Y130,\"{\",CHAR(160),HL$1))+1),\"\")","v":""},{"$f":"IFERROR(MID($Y130,FIND(CHAR(160),SUBSTITUTE($Y130,\"{\",CHAR(160),HM$1)),FIND(CHAR(160),SUBSTITUTE($Y130,\"}\",CHAR(160),HM$1))-FIND(CHAR(160),SUBSTITUTE($Y130,\"{\",CHAR(160),HM$1))+1),\"\")","v":""},{"$f":"IFERROR(MID($Y130,FIND(CHAR(160),SUBSTITUTE($Y130,\"{\",CHAR(160),HN$1)),FIND(CHAR(160),SUBSTITUTE($Y130,\"}\",CHAR(160),HN$1))-FIND(CHAR(160),SUBSTITUTE($Y130,\"{\",CHAR(160),HN$1))+1),\"\")","v":""},{"$f":"IFERROR(MID($Y130,FIND(CHAR(160),SUBSTITUTE($Y130,\"{\",CHAR(160),HO$1)),FIND(CHAR(160),SUBSTITUTE($Y130,\"}\",CHAR(160),HO$1))-FIND(CHAR(160),SUBSTITUTE($Y130,\"{\",CHAR(160),HO$1))+1),\"\")","v":""},{"$f":"IFERROR(MID($Y130,FIND(CHAR(160),SUBSTITUTE($Y130,\"{\",CHAR(160),HP$1)),FIND(CHAR(160),SUBSTITUTE($Y130,\"}\",CHAR(160),HP$1))-FIND(CHAR(160),SUBSTITUTE($Y130,\"{\",CHAR(160),HP$1))+1),\"\")","v":""},{"$f":"IFERROR(MID($Y130,FIND(CHAR(160),SUBSTITUTE($Y130,\"{\",CHAR(160),HQ$1)),FIND(CHAR(160),SUBSTITUTE($Y130,\"}\",CHAR(160),HQ$1))-FIND(CHAR(160),SUBSTITUTE($Y130,\"{\",CHAR(160),HQ$1))+1),\"\")","v":""},{"$f":"IFERROR(MID($Y130,FIND(CHAR(160),SUBSTITUTE($Y130,\"{\",CHAR(160),HR$1)),FIND(CHAR(160),SUBSTITUTE($Y130,\"}\",CHAR(160),HR$1))-FIND(CHAR(160),SUBSTITUTE($Y130,\"{\",CHAR(160),HR$1))+1),\"\")","v":""},{"$f":"IFERROR(MID($Y130,FIND(CHAR(160),SUBSTITUTE($Y130,\"{\",CHAR(160),HS$1)),FIND(CHAR(160),SUBSTITUTE($Y130,\"}\",CHAR(160),HS$1))-FIND(CHAR(160),SUBSTITUTE($Y130,\"{\",CHAR(160),HS$1))+1),\"\")","v":""},{"$f":"IFERROR(MID($Y130,FIND(CHAR(160),SUBSTITUTE($Y130,\"{\",CHAR(160),HT$1)),FIND(CHAR(160),SUBSTITUTE($Y130,\"}\",CHAR(160),HT$1))-FIND(CHAR(160),SUBSTITUTE($Y130,\"{\",CHAR(160),HT$1))+1),\"\")","v":""},{"$f":"IFERROR(MID($Z130,FIND(CHAR(160),SUBSTITUTE($Z130,\"{\",CHAR(160),HU$1)),FIND(CHAR(160),SUBSTITUTE($Z130,\"}\",CHAR(160),HU$1))-FIND(CHAR(160),SUBSTITUTE($Z130,\"{\",CHAR(160),HU$1))+1),\"\")","v":""},{"$f":"IFERROR(MID($Z130,FIND(CHAR(160),SUBSTITUTE($Z130,\"{\",CHAR(160),HV$1)),FIND(CHAR(160),SUBSTITUTE($Z130,\"}\",CHAR(160),HV$1))-FIND(CHAR(160),SUBSTITUTE($Z130,\"{\",CHAR(160),HV$1))+1),\"\")","v":""},{"$f":"IFERROR(MID($Z130,FIND(CHAR(160),SUBSTITUTE($Z130,\"{\",CHAR(160),HW$1)),FIND(CHAR(160),SUBSTITUTE($Z130,\"}\",CHAR(160),HW$1))-FIND(CHAR(160),SUBSTITUTE($Z130,\"{\",CHAR(160),HW$1))+1),\"\")","v":""},{"$f":"IFERROR(MID($Z130,FIND(CHAR(160),SUBSTITUTE($Z130,\"{\",CHAR(160),HX$1)),FIND(CHAR(160),SUBSTITUTE($Z130,\"}\",CHAR(160),HX$1))-FIND(CHAR(160),SUBSTITUTE($Z130,\"{\",CHAR(160),HX$1))+1),\"\")","v":""},{"$f":"IFERROR(MID($Z130,FIND(CHAR(160),SUBSTITUTE($Z130,\"{\",CHAR(160),HY$1)),FIND(CHAR(160),SUBSTITUTE($Z130,\"}\",CHAR(160),HY$1))-FIND(CHAR(160),SUBSTITUTE($Z130,\"{\",CHAR(160),HY$1))+1),\"\")","v":""},{"$f":"IFERROR(MID($Z130,FIND(CHAR(160),SUBSTITUTE($Z130,\"{\",CHAR(160),HZ$1)),FIND(CHAR(160),SUBSTITUTE($Z130,\"}\",CHAR(160),HZ$1))-FIND(CHAR(160),SUBSTITUTE($Z130,\"{\",CHAR(160),HZ$1))+1),\"\")","v":""},{"$f":"IFERROR(MID($Z130,FIND(CHAR(160),SUBSTITUTE($Z130,\"{\",CHAR(160),IA$1)),FIND(CHAR(160),SUBSTITUTE($Z130,\"}\",CHAR(160),IA$1))-FIND(CHAR(160),SUBSTITUTE($Z130,\"{\",CHAR(160),IA$1))+1),\"\")","v":""},{"$f":"IFERROR(MID($Z130,FIND(CHAR(160),SUBSTITUTE($Z130,\"{\",CHAR(160),IB$1)),FIND(CHAR(160),SUBSTITUTE($Z130,\"}\",CHAR(160),IB$1))-FIND(CHAR(160),SUBSTITUTE($Z130,\"{\",CHAR(160),IB$1))+1),\"\")","v":""},{"$f":"IFERROR(MID($Z130,FIND(CHAR(160),SUBSTITUTE($Z130,\"{\",CHAR(160),IC$1)),FIND(CHAR(160),SUBSTITUTE($Z130,\"}\",CHAR(160),IC$1))-FIND(CHAR(160),SUBSTITUTE($Z130,\"{\",CHAR(160),IC$1))+1),\"\")","v":""},{"$f":"IFERROR(MID($Z130,FIND(CHAR(160),SUBSTITUTE($Z130,\"{\",CHAR(160),ID$1)),FIND(CHAR(160),SUBSTITUTE($Z130,\"}\",CHAR(160),ID$1))-FIND(CHAR(160),SUBSTITUTE($Z130,\"{\",CHAR(160),ID$1))+1),\"\")","v":""},{"$f":"IFERROR(MID($AA130,FIND(CHAR(160),SUBSTITUTE($AA130,\"{\",CHAR(160),IE$1)),FIND(CHAR(160),SUBSTITUTE($AA130,\"}\",CHAR(160),IE$1))-FIND(CHAR(160),SUBSTITUTE($AA130,\"{\",CHAR(160),IE$1))+1),\"\")","v":""},{"$f":"IFERROR(MID($AA130,FIND(CHAR(160),SUBSTITUTE($AA130,\"{\",CHAR(160),IF$1)),FIND(CHAR(160),SUBSTITUTE($AA130,\"}\",CHAR(160),IF$1))-FIND(CHAR(160),SUBSTITUTE($AA130,\"{\",CHAR(160),IF$1))+1),\"\")","v":""},{"$f":"IFERROR(MID($AA130,FIND(CHAR(160),SUBSTITUTE($AA130,\"{\",CHAR(160),IG$1)),FIND(CHAR(160),SUBSTITUTE($AA130,\"}\",CHAR(160),IG$1))-FIND(CHAR(160),SUBSTITUTE($AA130,\"{\",CHAR(160),IG$1))+1),\"\")","v":""},{"$f":"IFERROR(MID($AA130,FIND(CHAR(160),SUBSTITUTE($AA130,\"{\",CHAR(160),IH$1)),FIND(CHAR(160),SUBSTITUTE($AA130,\"}\",CHAR(160),IH$1))-FIND(CHAR(160),SUBSTITUTE($AA130,\"{\",CHAR(160),IH$1))+1),\"\")","v":""},{"$f":"IFERROR(MID($AA130,FIND(CHAR(160),SUBSTITUTE($AA130,\"{\",CHAR(160),II$1)),FIND(CHAR(160),SUBSTITUTE($AA130,\"}\",CHAR(160),II$1))-FIND(CHAR(160),SUBSTITUTE($AA130,\"{\",CHAR(160),II$1))+1),\"\")","v":""},{"$f":"IFERROR(MID($AA130,FIND(CHAR(160),SUBSTITUTE($AA130,\"{\",CHAR(160),IJ$1)),FIND(CHAR(160),SUBSTITUTE($AA130,\"}\",CHAR(160),IJ$1))-FIND(CHAR(160),SUBSTITUTE($AA130,\"{\",CHAR(160),IJ$1))+1),\"\")","v":""},{"$f":"IFERROR(MID($AA130,FIND(CHAR(160),SUBSTITUTE($AA130,\"{\",CHAR(160),IK$1)),FIND(CHAR(160),SUBSTITUTE($AA130,\"}\",CHAR(160),IK$1))-FIND(CHAR(160),SUBSTITUTE($AA130,\"{\",CHAR(160),IK$1))+1),\"\")","v":""},{"$f":"IFERROR(MID($AA130,FIND(CHAR(160),SUBSTITUTE($AA130,\"{\",CHAR(160),IL$1)),FIND(CHAR(160),SUBSTITUTE($AA130,\"}\",CHAR(160),IL$1))-FIND(CHAR(160),SUBSTITUTE($AA130,\"{\",CHAR(160),IL$1))+1),\"\")","v":""},{"$f":"IFERROR(MID($AA130,FIND(CHAR(160),SUBSTITUTE($AA130,\"{\",CHAR(160),IM$1)),FIND(CHAR(160),SUBSTITUTE($AA130,\"}\",CHAR(160),IM$1))-FIND(CHAR(160),SUBSTITUTE($AA130,\"{\",CHAR(160),IM$1))+1),\"\")","v":""},{"$f":"IFERROR(MID($AA130,FIND(CHAR(160),SUBSTITUTE($AA130,\"{\",CHAR(160),IN$1)),FIND(CHAR(160),SUBSTITUTE($AA130,\"}\",CHAR(160),IN$1))-FIND(CHAR(160),SUBSTITUTE($AA130,\"{\",CHAR(160),IN$1))+1),\"\")","v":""},{"$f":"IFERROR(MID($AB130,FIND(CHAR(160),SUBSTITUTE($AB130,\"{\",CHAR(160),IO$1)),FIND(CHAR(160),SUBSTITUTE($AB130,\"}\",CHAR(160),IO$1))-FIND(CHAR(160),SUBSTITUTE($AB130,\"{\",CHAR(160),IO$1))+1),\"\")","v":""},{"$f":"IFERROR(MID($AB130,FIND(CHAR(160),SUBSTITUTE($AB130,\"{\",CHAR(160),IP$1)),FIND(CHAR(160),SUBSTITUTE($AB130,\"}\",CHAR(160),IP$1))-FIND(CHAR(160),SUBSTITUTE($AB130,\"{\",CHAR(160),IP$1))+1),\"\")","v":""},{"$f":"IFERROR(MID($AB130,FIND(CHAR(160),SUBSTITUTE($AB130,\"{\",CHAR(160),IQ$1)),FIND(CHAR(160),SUBSTITUTE($AB130,\"}\",CHAR(160),IQ$1))-FIND(CHAR(160),SUBSTITUTE($AB130,\"{\",CHAR(160),IQ$1))+1),\"\")","v":""},{"$f":"IFERROR(MID($AB130,FIND(CHAR(160),SUBSTITUTE($AB130,\"{\",CHAR(160),IR$1)),FIND(CHAR(160),SUBSTITUTE($AB130,\"}\",CHAR(160),IR$1))-FIND(CHAR(160),SUBSTITUTE($AB130,\"{\",CHAR(160),IR$1))+1),\"\")","v":""},{"$f":"IFERROR(MID($AB130,FIND(CHAR(160),SUBSTITUTE($AB130,\"{\",CHAR(160),IS$1)),FIND(CHAR(160),SUBSTITUTE($AB130,\"}\",CHAR(160),IS$1))-FIND(CHAR(160),SUBSTITUTE($AB130,\"{\",CHAR(160),IS$1))+1),\"\")","v":""},{"$f":"IFERROR(MID($AB130,FIND(CHAR(160),SUBSTITUTE($AB130,\"{\",CHAR(160),IT$1)),FIND(CHAR(160),SUBSTITUTE($AB130,\"}\",CHAR(160),IT$1))-FIND(CHAR(160),SUBSTITUTE($AB130,\"{\",CHAR(160),IT$1))+1),\"\")","v":""},{"$f":"IFERROR(MID($AB130,FIND(CHAR(160),SUBSTITUTE($AB130,\"{\",CHAR(160),IU$1)),FIND(CHAR(160),SUBSTITUTE($AB130,\"}\",CHAR(160),IU$1))-FIND(CHAR(160),SUBSTITUTE($AB130,\"{\",CHAR(160),IU$1))+1),\"\")","v":""},{"$f":"IFERROR(MID($AB130,FIND(CHAR(160),SUBSTITUTE($AB130,\"{\",CHAR(160),IV$1)),FIND(CHAR(160),SUBSTITUTE($AB130,\"}\",CHAR(160),IV$1))-FIND(CHAR(160),SUBSTITUTE($AB130,\"{\",CHAR(160),IV$1))+1),\"\")","v":""},{"$f":"IFERROR(MID($AB130,FIND(CHAR(160),SUBSTITUTE($AB130,\"{\",CHAR(160),IW$1)),FIND(CHAR(160),SUBSTITUTE($AB130,\"}\",CHAR(160),IW$1))-FIND(CHAR(160),SUBSTITUTE($AB130,\"{\",CHAR(160),IW$1))+1),\"\")","v":""},{"$f":"IFERROR(MID($AB130,FIND(CHAR(160),SUBSTITUTE($AB130,\"{\",CHAR(160),IX$1)),FIND(CHAR(160),SUBSTITUTE($AB130,\"}\",CHAR(160),IX$1))-FIND(CHAR(160),SUBSTITUTE($AB130,\"{\",CHAR(160),IX$1))+1),\"\")","v":""},null,{"$f":"10-COUNTIF(DU130:ED130,\"\")","v":4}]
["C&I Prescriptive Compressed Air Solutions","Dryer - C14 - Dryer Size 250","D - C14","2021-07-01","2022-06-30","Calculated","{Measure:Quantity}*{Dryer CFM} * 6.54",0,"Per Measure",800,0,"2017-07-01","2022-06-30","Calculated","{Measure:Quantity} *{Dryer CFM} * 0.00316 * {Weekly Hrs of Operation} * {Weeks Per Year}",1E-4,null,"{Measure:Quantity} *{Dryer CFM} * 0.00316",null,null,"{Measure:Quantity} *{Dryer CFM} * 0.00316 * {Factor:WinterCF}","{Measure:Quantity} *{Dryer CFM} * 0.00316 * {Factor:SummerCF}",null,null,null,null,null,null,"2017-07-01","2022-06-30",15,0.7,0.91100000000000003,0.30399999999999999,0.36099999999999999,0.156,0.17899999999999999,1,1.1220000000000001,1,0.52,1.6E-2,null,{"$f":"DU131","v":"{Measure:Quantity}"},1,{"$f":"DV131","v":"{Dryer CFM}"},250,{"$f":"DW131","v":"{Weekly Hrs of Operation}"},50,{"$f":"DX131","v":"{Weeks Per Year}"},50,{"$f":"DY131","v":""},null,{"$f":"DZ131","v":""},null,{"$f":"EA131","v":""},null,{"$f":"EB131","v":""},null,{"$f":"EC131","v":""},null,{"$f":"ED131","v":""},null,{"$f":"AS131 *AU131 * 0.00316 * AW131 * AY131","v":1975},{"$f":"0.0001","v":1E-4},0,{"$f":"AS131 *AU131 * 0.00316","v":0.79},0,0,{"$f":"AS131 *AU131 * 0.00316 * AF131","v":0.55299999999999994},{"$f":"AS131 *AU131 * 0.00316 * AG131","v":0.71969000000000005},0,0,0,0,0,0,null,"Com","Default DR",{"$f":"Benefits(BL131,BR131,BS131,BT131,BU131,BV131,BW131,BX131,BY131,BZ131,AE131,AH131,AI131,AJ131,AK131,AL131,AM131,AN131,AO131,AP131,CA131,CB131)","v":2960.4229752421306},3437.4416753371643,0,0,0,0,0,0,0,{"$f":"SUMPRODUCT(CC131:CK131,--(CC131:CK131>0))","v":6397.8646505792949},{"$f":"-SUMPRODUCT(CC131:CK131,--(CC131:CK131<0))","v":0},null,{"$f":"AS131*AU131 * 6.54","v":1635},null,null,{"$f":"CM131+CO131","v":1635},{"$f":"IF(NetOrGross=\"Net\",(1-AO131+AP131),1)","v":1},{"$f":"(SUMPRODUCT(CC131:CJ131,--(CC131:CJ131>0))+CN131)*CS131/((-SUMPRODUCT(CC131:CJ131,--(CC131:CJ131<0))+MAX(CO131,CV131)+CP131+CQ131)*CS131+IF(FRIncentives=\"Yes\",CV131*(1-CS131),0))","v":3.9130670645744923},9,{"$f":"800","v":800},null,"Electric","y",null,{"$f":"IF(F131=\"Manual Entry\",\"Manual\",IF(G131=\"\",0,\"X=\"&SUBSTITUTE(SUBSTITUTE(SUBSTITUTE(SUBSTITUTE(SUBSTITUTE(SUBSTITUTE(SUBSTITUTE(SUBSTITUTE(SUBSTITUTE(SUBSTITUTE(SUBSTITUTE(SUBSTITUTE(G131,$ED131,$ED$2&ROW($ED131)),$EC131,$EC$2&ROW($EC131)),$EB131,$EB$2&ROW($EB131)),$EA131,$EA$2&ROW($EA131)),$DZ131,$DZ$2&ROW($DZ131)),$DY131,$DY$2&ROW($DY131)),$DX131,$DX$2&ROW($DX131)),$DW131,$DW$2&ROW($DW131)),$DV131,$DV$2&ROW($DV131)),$DU131,$DU$2&ROW($DU131)),$DT131,$DT$2&ROW($DT131)),$DS131,$DS$2&ROW($DS131))))","v":"X=AS131*AU131 * 6.54"},{"$f":"IF(I131=\"Manual Entry\",\"Manual\",IF(J131=\"\",0,\"X=\"&SUBSTITUTE(SUBSTITUTE(SUBSTITUTE(SUBSTITUTE(SUBSTITUTE(SUBSTITUTE(SUBSTITUTE(SUBSTITUTE(SUBSTITUTE(SUBSTITUTE(SUBSTITUTE(SUBSTITUTE(J131,$ED131,$ED$2&ROW($ED131)),$EC131,$EC$2&ROW($EC131)),$EB131,$EB$2&ROW($EB131)),$EA131,$EA$2&ROW($EA131)),$DZ131,$DZ$2&ROW($DZ131)),$DY131,$DY$2&ROW($DY131)),$DX131,$DX$2&ROW($DX131)),$DW131,$DW$2&ROW($DW131)),$DV131,$DV$2&ROW($DV131)),$DU131,$DU$2&ROW($DU131)),$DT131,$DT$2&ROW($DT131)),$DS131,$DS$2&ROW($DS131))))","v":"X=800"},{"$f":"IF(O131=\"\",0,\"X=\"&SUBSTITUTE(SUBSTITUTE(SUBSTITUTE(SUBSTITUTE(SUBSTITUTE(SUBSTITUTE(SUBSTITUTE(SUBSTITUTE(SUBSTITUTE(SUBSTITUTE(SUBSTITUTE(SUBSTITUTE(O131,$ED131,$ED$2&ROW($ED131)),$EC131,$EC$2&ROW($EC131)),$EB131,$EB$2&ROW($EB131)),$EA131,$EA$2&ROW($EA131)),$DZ131,$DZ$2&ROW($DZ131)),$DY131,$DY$2&ROW($DY131)),$DX131,$DX$2&ROW($DX131)),$DW131,$DW$2&ROW($DW131)),$DV131,$DV$2&ROW($DV131)),$DU131,$DU$2&ROW($DU131)),$DT131,$DT$2&ROW($DT131)),$DS131,$DS$2&ROW($DS131)))","v":"X=AS131 *AU131 * 0.00316 * AW131 * AY131"},{"$f":"IF(P131=\"\",0,\"X=\"&SUBSTITUTE(SUBSTITUTE(SUBSTITUTE(SUBSTITUTE(SUBSTITUTE(SUBSTITUTE(SUBSTITUTE(SUBSTITUTE(SUBSTITUTE(SUBSTITUTE(SUBSTITUTE(SUBSTITUTE(P131,$ED131,$ED$2&ROW($ED131)),$EC131,$EC$2&ROW($EC131)),$EB131,$EB$2&ROW($EB131)),$EA131,$EA$2&ROW($EA131)),$DZ131,$DZ$2&ROW($DZ131)),$DY131,$DY$2&ROW($DY131)),$DX131,$DX$2&ROW($DX131)),$DW131,$DW$2&ROW($DW131)),$DV131,$DV$2&ROW($DV131)),$DU131,$DU$2&ROW($DU131)),$DT131,$DT$2&ROW($DT131)),$DS131,$DS$2&ROW($DS131)))","v":"X=0.0001"},{"$f":"IF(Q131=\"\",0,\"X=\"&SUBSTITUTE(SUBSTITUTE(SUBSTITUTE(SUBSTITUTE(SUBSTITUTE(SUBSTITUTE(SUBSTITUTE(SUBSTITUTE(SUBSTITUTE(SUBSTITUTE(SUBSTITUTE(SUBSTITUTE(Q131,$ED131,$ED$2&ROW($ED131)),$EC131,$EC$2&ROW($EC131)),$EB131,$EB$2&ROW($EB131)),$EA131,$EA$2&ROW($EA131)),$DZ131,$DZ$2&ROW($DZ131)),$DY131,$DY$2&ROW($DY131)),$DX131,$DX$2&ROW($DX131)),$DW131,$DW$2&ROW($DW131)),$DV131,$DV$2&ROW($DV131)),$DU131,$DU$2&ROW($DU131)),$DT131,$DT$2&ROW($DT131)),$DS131,$DS$2&ROW($DS131)))","v":0},{"$f":"IF(R131=\"\",0,\"X=\"&SUBSTITUTE(SUBSTITUTE(SUBSTITUTE(SUBSTITUTE(SUBSTITUTE(SUBSTITUTE(SUBSTITUTE(SUBSTITUTE(SUBSTITUTE(SUBSTITUTE(SUBSTITUTE(SUBSTITUTE(R131,$ED131,$ED$2&ROW($ED131)),$EC131,$EC$2&ROW($EC131)),$EB131,$EB$2&ROW($EB131)),$EA131,$EA$2&ROW($EA131)),$DZ131,$DZ$2&ROW($DZ131)),$DY131,$DY$2&ROW($DY131)),$DX131,$DX$2&ROW($DX131)),$DW131,$DW$2&ROW($DW131)),$DV131,$DV$2&ROW($DV131)),$DU131,$DU$2&ROW($DU131)),$DT131,$DT$2&ROW($DT131)),$DS131,$DS$2&ROW($DS131)))","v":"X=AS131 *AU131 * 0.00316"},{"$f":"IF(S131=\"\",0,\"X=\"&SUBSTITUTE(SUBSTITUTE(SUBSTITUTE(SUBSTITUTE(SUBSTITUTE(SUBSTITUTE(SUBSTITUTE(SUBSTITUTE(SUBSTITUTE(SUBSTITUTE(SUBSTITUTE(SUBSTITUTE(S131,$ED131,$ED$2&ROW($ED131)),$EC131,$EC$2&ROW($EC131)),$EB131,$EB$2&ROW($EB131)),$EA131,$EA$2&ROW($EA131)),$DZ131,$DZ$2&ROW($DZ131)),$DY131,$DY$2&ROW($DY131)),$DX131,$DX$2&ROW($DX131)),$DW131,$DW$2&ROW($DW131)),$DV131,$DV$2&ROW($DV131)),$DU131,$DU$2&ROW($DU131)),$DT131,$DT$2&ROW($DT131)),$DS131,$DS$2&ROW($DS131)))","v":0},{"$f":"IF(T131=\"\",0,\"X=\"&SUBSTITUTE(SUBSTITUTE(SUBSTITUTE(SUBSTITUTE(SUBSTITUTE(SUBSTITUTE(SUBSTITUTE(SUBSTITUTE(SUBSTITUTE(SUBSTITUTE(SUBSTITUTE(SUBSTITUTE(T131,$ED131,$ED$2&ROW($ED131)),$EC131,$EC$2&ROW($EC131)),$EB131,$EB$2&ROW($EB131)),$EA131,$EA$2&ROW($EA131)),$DZ131,$DZ$2&ROW($DZ131)),$DY131,$DY$2&ROW($DY131)),$DX131,$DX$2&ROW($DX131)),$DW131,$DW$2&ROW($DW131)),$DV131,$DV$2&ROW($DV131)),$DU131,$DU$2&ROW($DU131)),$DT131,$DT$2&ROW($DT131)),$DS131,$DS$2&ROW($DS131)))","v":0},{"$f":"IF(U131=\"\",0,\"X=\"&SUBSTITUTE(SUBSTITUTE(SUBSTITUTE(SUBSTITUTE(SUBSTITUTE(SUBSTITUTE(SUBSTITUTE(SUBSTITUTE(SUBSTITUTE(SUBSTITUTE(SUBSTITUTE(SUBSTITUTE(U131,$ED131,$ED$2&ROW($ED131)),$EC131,$EC$2&ROW($EC131)),$EB131,$EB$2&ROW($EB131)),$EA131,$EA$2&ROW($EA131)),$DZ131,$DZ$2&ROW($DZ131)),$DY131,$DY$2&ROW($DY131)),$DX131,$DX$2&ROW($DX131)),$DW131,$DW$2&ROW($DW131)),$DV131,$DV$2&ROW($DV131)),$DU131,$DU$2&ROW($DU131)),$DT131,$DT$2&ROW($DT131)),$DS131,$DS$2&ROW($DS131)))","v":"X=AS131 *AU131 * 0.00316 * AF131"},{"$f":"IF(V131=\"\",0,\"X=\"&SUBSTITUTE(SUBSTITUTE(SUBSTITUTE(SUBSTITUTE(SUBSTITUTE(SUBSTITUTE(SUBSTITUTE(SUBSTITUTE(SUBSTITUTE(SUBSTITUTE(SUBSTITUTE(SUBSTITUTE(V131,$ED131,$ED$2&ROW($ED131)),$EC131,$EC$2&ROW($EC131)),$EB131,$EB$2&ROW($EB131)),$EA131,$EA$2&ROW($EA131)),$DZ131,$DZ$2&ROW($DZ131)),$DY131,$DY$2&ROW($DY131)),$DX131,$DX$2&ROW($DX131)),$DW131,$DW$2&ROW($DW131)),$DV131,$DV$2&ROW($DV131)),$DU131,$DU$2&ROW($DU131)),$DT131,$DT$2&ROW($DT131)),$DS131,$DS$2&ROW($DS131)))","v":"X=AS131 *AU131 * 0.00316 * AG131"},{"$f":"IF(W131=\"\",0,\"X=\"&SUBSTITUTE(SUBSTITUTE(SUBSTITUTE(SUBSTITUTE(SUBSTITUTE(SUBSTITUTE(SUBSTITUTE(SUBSTITUTE(SUBSTITUTE(SUBSTITUTE(SUBSTITUTE(SUBSTITUTE(W131,$ED131,$ED$2&ROW($ED131)),$EC131,$EC$2&ROW($EC131)),$EB131,$EB$2&ROW($EB131)),$EA131,$EA$2&ROW($EA131)),$DZ131,$DZ$2&ROW($DZ131)),$DY131,$DY$2&ROW($DY131)),$DX131,$DX$2&ROW($DX131)),$DW131,$DW$2&ROW($DW131)),$DV131,$DV$2&ROW($DV131)),$DU131,$DU$2&ROW($DU131)),$DT131,$DT$2&ROW($DT131)),$DS131,$DS$2&ROW($DS131)))","v":0},{"$f":"IF(X131=\"\",0,\"X=\"&SUBSTITUTE(SUBSTITUTE(SUBSTITUTE(SUBSTITUTE(SUBSTITUTE(SUBSTITUTE(SUBSTITUTE(SUBSTITUTE(SUBSTITUTE(SUBSTITUTE(SUBSTITUTE(SUBSTITUTE(X131,$ED131,$ED$2&ROW($ED131)),$EC131,$EC$2&ROW($EC131)),$EB131,$EB$2&ROW($EB131)),$EA131,$EA$2&ROW($EA131)),$DZ131,$DZ$2&ROW($DZ131)),$DY131,$DY$2&ROW($DY131)),$DX131,$DX$2&ROW($DX131)),$DW131,$DW$2&ROW($DW131)),$DV131,$DV$2&ROW($DV131)),$DU131,$DU$2&ROW($DU131)),$DT131,$DT$2&ROW($DT131)),$DS131,$DS$2&ROW($DS131)))","v":0},{"$f":"IF(Y131=\"\",0,\"X=\"&SUBSTITUTE(SUBSTITUTE(SUBSTITUTE(SUBSTITUTE(SUBSTITUTE(SUBSTITUTE(SUBSTITUTE(SUBSTITUTE(SUBSTITUTE(SUBSTITUTE(SUBSTITUTE(SUBSTITUTE(Y131,$ED131,$ED$2&ROW($ED131)),$EC131,$EC$2&ROW($EC131)),$EB131,$EB$2&ROW($EB131)),$EA131,$EA$2&ROW($EA131)),$DZ131,$DZ$2&ROW($DZ131)),$DY131,$DY$2&ROW($DY131)),$DX131,$DX$2&ROW($DX131)),$DW131,$DW$2&ROW($DW131)),$DV131,$DV$2&ROW($DV131)),$DU131,$DU$2&ROW($DU131)),$DT131,$DT$2&ROW($DT131)),$DS131,$DS$2&ROW($DS131)))","v":0},{"$f":"IF(Z131=\"\",0,\"X=\"&SUBSTITUTE(SUBSTITUTE(SUBSTITUTE(SUBSTITUTE(SUBSTITUTE(SUBSTITUTE(SUBSTITUTE(SUBSTITUTE(SUBSTITUTE(SUBSTITUTE(SUBSTITUTE(SUBSTITUTE(Z131,$ED131,$ED$2&ROW($ED131)),$EC131,$EC$2&ROW($EC131)),$EB131,$EB$2&ROW($EB131)),$EA131,$EA$2&ROW($EA131)),$DZ131,$DZ$2&ROW($DZ131)),$DY131,$DY$2&ROW($DY131)),$DX131,$DX$2&ROW($DX131)),$DW131,$DW$2&ROW($DW131)),$DV131,$DV$2&ROW($DV131)),$DU131,$DU$2&ROW($DU131)),$DT131,$DT$2&ROW($DT131)),$DS131,$DS$2&ROW($DS131)))","v":0},{"$f":"IF(AA131=\"\",0,\"X=\"&SUBSTITUTE(SUBSTITUTE(SUBSTITUTE(SUBSTITUTE(SUBSTITUTE(SUBSTITUTE(SUBSTITUTE(SUBSTITUTE(SUBSTITUTE(SUBSTITUTE(SUBSTITUTE(SUBSTITUTE(AA131,$ED131,$ED$2&ROW($ED131)),$EC131,$EC$2&ROW($EC131)),$EB131,$EB$2&ROW($EB131)),$EA131,$EA$2&ROW($EA131)),$DZ131,$DZ$2&ROW($DZ131)),$DY131,$DY$2&ROW($DY131)),$DX131,$DX$2&ROW($DX131)),$DW131,$DW$2&ROW($DW131)),$DV131,$DV$2&ROW($DV131)),$DU131,$DU$2&ROW($DU131)),$DT131,$DT$2&ROW($DT131)),$DS131,$DS$2&ROW($DS131)))","v":0},{"$f":"IF(AB131=\"\",0,\"X=\"&SUBSTITUTE(SUBSTITUTE(SUBSTITUTE(SUBSTITUTE(SUBSTITUTE(SUBSTITUTE(SUBSTITUTE(SUBSTITUTE(SUBSTITUTE(SUBSTITUTE(SUBSTITUTE(SUBSTITUTE(AB131,$ED131,$ED$2&ROW($ED131)),$EC131,$EC$2&ROW($EC131)),$EB131,$EB$2&ROW($EB131)),$EA131,$EA$2&ROW($EA131)),$DZ131,$DZ$2&ROW($DZ131)),$DY131,$DY$2&ROW($DY131)),$DX131,$DX$2&ROW($DX131)),$DW131,$DW$2&ROW($DW131)),$DV131,$DV$2&ROW($DV131)),$DU131,$DU$2&ROW($DU131)),$DT131,$DT$2&ROW($DT131)),$DS131,$DS$2&ROW($DS131)))","v":0},null,null,"{Factor:WinterCF}","{Factor:SummerCF}",{"$f":"IFERROR(INDEX($EG131:$IV131,MATCH(0,COUNTIF($DR131:DT131,$EG131:$IV131),0)),\"\")","v":"{Measure:Quantity}"},{"$f":"IFERROR(INDEX($EG131:$IV131,MATCH(0,COUNTIF($DR131:DU131,$EG131:$IV131),0)),\"\")","v":"{Dryer CFM}"},{"$f":"IFERROR(INDEX($EG131:$IV131,MATCH(0,COUNTIF($DR131:DV131,$EG131:$IV131),0)),\"\")","v":"{Weekly Hrs of Operation}"},{"$f":"IFERROR(INDEX($EG131:$IV131,MATCH(0,COUNTIF($DR131:DW131,$EG131:$IV131),0)),\"\")","v":"{Weeks Per Year}"},{"$f":"IFERROR(INDEX($EG131:$IV131,MATCH(0,COUNTIF($DR131:DX131,$EG131:$IV131),0)),\"\")","v":""},{"$f":"IFERROR(INDEX($EG131:$IV131,MATCH(0,COUNTIF($DR131:DY131,$EG131:$IV131),0)),\"\")","v":""},{"$f":"IFERROR(INDEX($EG131:$IV131,MATCH(0,COUNTIF($DR131:DZ131,$EG131:$IV131),0)),\"\")","v":""},{"$f":"IFERROR(INDEX($EG131:$IV131,MATCH(0,COUNTIF($DR131:EA131,$EG131:$IV131),0)),\"\")","v":""},{"$f":"IFERROR(INDEX($EG131:$IV131,MATCH(0,COUNTIF($DR131:EB131,$EG131:$IV131),0)),\"\")","v":""},{"$f":"IFERROR(INDEX($EG131:$IV131,MATCH(0,COUNTIF($DR131:EC131,$EG131:$IV131),0)),\"\")","v":""},null,null,{"$f":"IFERROR(MID($G131,FIND(CHAR(160),SUBSTITUTE($G131,\"{\",CHAR(160),EG$1)),FIND(CHAR(160),SUBSTITUTE($G131,\"}\",CHAR(160),EG$1))-FIND(CHAR(160),SUBSTITUTE($G131,\"{\",CHAR(160),EG$1))+1),\"\")","v":"{Measure:Quantity}"},{"$f":"IFERROR(MID($G131,FIND(CHAR(160),SUBSTITUTE($G131,\"{\",CHAR(160),EH$1)),FIND(CHAR(160),SUBSTITUTE($G131,\"}\",CHAR(160),EH$1))-FIND(CHAR(160),SUBSTITUTE($G131,\"{\",CHAR(160),EH$1))+1),\"\")","v":"{Dryer CFM}"},{"$f":"IFERROR(MID($G131,FIND(CHAR(160),SUBSTITUTE($G131,\"{\",CHAR(160),EI$1)),FIND(CHAR(160),SUBSTITUTE($G131,\"}\",CHAR(160),EI$1))-FIND(CHAR(160),SUBSTITUTE($G131,\"{\",CHAR(160),EI$1))+1),\"\")","v":""},{"$f":"IFERROR(MID($G131,FIND(CHAR(160),SUBSTITUTE($G131,\"{\",CHAR(160),EJ$1)),FIND(CHAR(160),SUBSTITUTE($G131,\"}\",CHAR(160),EJ$1))-FIND(CHAR(160),SUBSTITUTE($G131,\"{\",CHAR(160),EJ$1))+1),\"\")","v":""},{"$f":"IFERROR(MID($G131,FIND(CHAR(160),SUBSTITUTE($G131,\"{\",CHAR(160),EK$1)),FIND(CHAR(160),SUBSTITUTE($G131,\"}\",CHAR(160),EK$1))-FIND(CHAR(160),SUBSTITUTE($G131,\"{\",CHAR(160),EK$1))+1),\"\")","v":""},{"$f":"IFERROR(MID($G131,FIND(CHAR(160),SUBSTITUTE($G131,\"{\",CHAR(160),EL$1)),FIND(CHAR(160),SUBSTITUTE($G131,\"}\",CHAR(160),EL$1))-FIND(CHAR(160),SUBSTITUTE($G131,\"{\",CHAR(160),EL$1))+1),\"\")","v":""},{"$f":"IFERROR(MID($G131,FIND(CHAR(160),SUBSTITUTE($G131,\"{\",CHAR(160),EM$1)),FIND(CHAR(160),SUBSTITUTE($G131,\"}\",CHAR(160),EM$1))-FIND(CHAR(160),SUBSTITUTE($G131,\"{\",CHAR(160),EM$1))+1),\"\")","v":""},{"$f":"IFERROR(MID($G131,FIND(CHAR(160),SUBSTITUTE($G131,\"{\",CHAR(160),EN$1)),FIND(CHAR(160),SUBSTITUTE($G131,\"}\",CHAR(160),EN$1))-FIND(CHAR(160),SUBSTITUTE($G131,\"{\",CHAR(160),EN$1))+1),\"\")","v":""},{"$f":"IFERROR(MID($G131,FIND(CHAR(160),SUBSTITUTE($G131,\"{\",CHAR(160),EO$1)),FIND(CHAR(160),SUBSTITUTE($G131,\"}\",CHAR(160),EO$1))-FIND(CHAR(160),SUBSTITUTE($G131,\"{\",CHAR(160),EO$1))+1),\"\")","v":""},{"$f":"IFERROR(MID($G131,FIND(CHAR(160),SUBSTITUTE($G131,\"{\",CHAR(160),EP$1)),FIND(CHAR(160),SUBSTITUTE($G131,\"}\",CHAR(160),EP$1))-FIND(CHAR(160),SUBSTITUTE($G131,\"{\",CHAR(160),EP$1))+1),\"\")","v":""},{"$f":"IFERROR(MID($J131,FIND(CHAR(160),SUBSTITUTE($J131,\"{\",CHAR(160),EQ$1)),FIND(CHAR(160),SUBSTITUTE($J131,\"}\",CHAR(160),EQ$1))-FIND(CHAR(160),SUBSTITUTE($J131,\"{\",CHAR(160),EQ$1))+1),\"\")","v":""},{"$f":"IFERROR(MID($J131,FIND(CHAR(160),SUBSTITUTE($J131,\"{\",CHAR(160),ER$1)),FIND(CHAR(160),SUBSTITUTE($J131,\"}\",CHAR(160),ER$1))-FIND(CHAR(160),SUBSTITUTE($J131,\"{\",CHAR(160),ER$1))+1),\"\")","v":""},{"$f":"IFERROR(MID($J131,FIND(CHAR(160),SUBSTITUTE($J131,\"{\",CHAR(160),ES$1)),FIND(CHAR(160),SUBSTITUTE($J131,\"}\",CHAR(160),ES$1))-FIND(CHAR(160),SUBSTITUTE($J131,\"{\",CHAR(160),ES$1))+1),\"\")","v":""},{"$f":"IFERROR(MID($J131,FIND(CHAR(160),SUBSTITUTE($J131,\"{\",CHAR(160),ET$1)),FIND(CHAR(160),SUBSTITUTE($J131,\"}\",CHAR(160),ET$1))-FIND(CHAR(160),SUBSTITUTE($J131,\"{\",CHAR(160),ET$1))+1),\"\")","v":""},{"$f":"IFERROR(MID($J131,FIND(CHAR(160),SUBSTITUTE($J131,\"{\",CHAR(160),EU$1)),FIND(CHAR(160),SUBSTITUTE($J131,\"}\",CHAR(160),EU$1))-FIND(CHAR(160),SUBSTITUTE($J131,\"{\",CHAR(160),EU$1))+1),\"\")","v":""},{"$f":"IFERROR(MID($J131,FIND(CHAR(160),SUBSTITUTE($J131,\"{\",CHAR(160),EV$1)),FIND(CHAR(160),SUBSTITUTE($J131,\"}\",CHAR(160),EV$1))-FIND(CHAR(160),SUBSTITUTE($J131,\"{\",CHAR(160),EV$1))+1),\"\")","v":""},{"$f":"IFERROR(MID($J131,FIND(CHAR(160),SUBSTITUTE($J131,\"{\",CHAR(160),EW$1)),FIND(CHAR(160),SUBSTITUTE($J131,\"}\",CHAR(160),EW$1))-FIND(CHAR(160),SUBSTITUTE($J131,\"{\",CHAR(160),EW$1))+1),\"\")","v":""},{"$f":"IFERROR(MID($J131,FIND(CHAR(160),SUBSTITUTE($J131,\"{\",CHAR(160),EX$1)),FIND(CHAR(160),SUBSTITUTE($J131,\"}\",CHAR(160),EX$1))-FIND(CHAR(160),SUBSTITUTE($J131,\"{\",CHAR(160),EX$1))+1),\"\")","v":""},{"$f":"IFERROR(MID($J131,FIND(CHAR(160),SUBSTITUTE($J131,\"{\",CHAR(160),EY$1)),FIND(CHAR(160),SUBSTITUTE($J131,\"}\",CHAR(160),EY$1))-FIND(CHAR(160),SUBSTITUTE($J131,\"{\",CHAR(160),EY$1))+1),\"\")","v":""},{"$f":"IFERROR(MID($J131,FIND(CHAR(160),SUBSTITUTE($J131,\"{\",CHAR(160),EZ$1)),FIND(CHAR(160),SUBSTITUTE($J131,\"}\",CHAR(160),EZ$1))-FIND(CHAR(160),SUBSTITUTE($J131,\"{\",CHAR(160),EZ$1))+1),\"\")","v":""},{"$f":"IFERROR(MID($J131,FIND(CHAR(160),SUBSTITUTE($J131,\"{\",CHAR(160),FA$1)),FIND(CHAR(160),SUBSTITUTE($J131,\"}\",CHAR(160),FA$1))-FIND(CHAR(160),SUBSTITUTE($J131,\"{\",CHAR(160),FA$1))+1),\"\")","v":""},{"$f":"IFERROR(MID($J131,FIND(CHAR(160),SUBSTITUTE($J131,\"{\",CHAR(160),FB$1)),FIND(CHAR(160),SUBSTITUTE($J131,\"}\",CHAR(160),FB$1))-FIND(CHAR(160),SUBSTITUTE($J131,\"{\",CHAR(160),FB$1))+1),\"\")","v":""},{"$f":"IFERROR(MID($O131,FIND(CHAR(160),SUBSTITUTE($O131,\"{\",CHAR(160),FC$1)),FIND(CHAR(160),SUBSTITUTE($O131,\"}\",CHAR(160),FC$1))-FIND(CHAR(160),SUBSTITUTE($O131,\"{\",CHAR(160),FC$1))+1),\"\")","v":"{Weekly Hrs of Operation}"},{"$f":"IFERROR(MID($O131,FIND(CHAR(160),SUBSTITUTE($O131,\"{\",CHAR(160),FD$1)),FIND(CHAR(160),SUBSTITUTE($O131,\"}\",CHAR(160),FD$1))-FIND(CHAR(160),SUBSTITUTE($O131,\"{\",CHAR(160),FD$1))+1),\"\")","v":"{Weeks Per Year}"},{"$f":"IFERROR(MID($O131,FIND(CHAR(160),SUBSTITUTE($O131,\"{\",CHAR(160),FE$1)),FIND(CHAR(160),SUBSTITUTE($O131,\"}\",CHAR(160),FE$1))-FIND(CHAR(160),SUBSTITUTE($O131,\"{\",CHAR(160),FE$1))+1),\"\")","v":""},{"$f":"IFERROR(MID($O131,FIND(CHAR(160),SUBSTITUTE($O131,\"{\",CHAR(160),FF$1)),FIND(CHAR(160),SUBSTITUTE($O131,\"}\",CHAR(160),FF$1))-FIND(CHAR(160),SUBSTITUTE($O131,\"{\",CHAR(160),FF$1))+1),\"\")","v":""},{"$f":"IFERROR(MID($O131,FIND(CHAR(160),SUBSTITUTE($O131,\"{\",CHAR(160),FG$1)),FIND(CHAR(160),SUBSTITUTE($O131,\"}\",CHAR(160),FG$1))-FIND(CHAR(160),SUBSTITUTE($O131,\"{\",CHAR(160),FG$1))+1),\"\")","v":""},{"$f":"IFERROR(MID($O131,FIND(CHAR(160),SUBSTITUTE($O131,\"{\",CHAR(160),FH$1)),FIND(CHAR(160),SUBSTITUTE($O131,\"}\",CHAR(160),FH$1))-FIND(CHAR(160),SUBSTITUTE($O131,\"{\",CHAR(160),FH$1))+1),\"\")","v":""},{"$f":"IFERROR(MID($O131,FIND(CHAR(160),SUBSTITUTE($O131,\"{\",CHAR(160),FI$1)),FIND(CHAR(160),SUBSTITUTE($O131,\"}\",CHAR(160),FI$1))-FIND(CHAR(160),SUBSTITUTE($O131,\"{\",CHAR(160),FI$1))+1),\"\")","v":""},{"$f":"IFERROR(MID($O131,FIND(CHAR(160),SUBSTITUTE($O131,\"{\",CHAR(160),FJ$1)),FIND(CHAR(160),SUBSTITUTE($O131,\"}\",CHAR(160),FJ$1))-FIND(CHAR(160),SUBSTITUTE($O131,\"{\",CHAR(160),FJ$1))+1),\"\")","v":""},{"$f":"IFERROR(MID($O131,FIND(CHAR(160),SUBSTITUTE($O131,\"{\",CHAR(160),FK$1)),FIND(CHAR(160),SUBSTITUTE($O131,\"}\",CHAR(160),FK$1))-FIND(CHAR(160),SUBSTITUTE($O131,\"{\",CHAR(160),FK$1))+1),\"\")","v":"{Measure:Quantity}"},{"$f":"IFERROR(MID($O131,FIND(CHAR(160),SUBSTITUTE($O131,\"{\",CHAR(160),FL$1)),FIND(CHAR(160),SUBSTITUTE($O131,\"}\",CHAR(160),FL$1))-FIND(CHAR(160),SUBSTITUTE($O131,\"{\",CHAR(160),FL$1))+1),\"\")","v":"{Dryer CFM}"},{"$f":"IFERROR(MID($R131,FIND(CHAR(160),SUBSTITUTE($R131,\"{\",CHAR(160),FM$1)),FIND(CHAR(160),SUBSTITUTE($R131,\"}\",CHAR(160),FM$1))-FIND(CHAR(160),SUBSTITUTE($R131,\"{\",CHAR(160),FM$1))+1),\"\")","v":""},{"$f":"IFERROR(MID($R131,FIND(CHAR(160),SUBSTITUTE($R131,\"{\",CHAR(160),FN$1)),FIND(CHAR(160),SUBSTITUTE($R131,\"}\",CHAR(160),FN$1))-FIND(CHAR(160),SUBSTITUTE($R131,\"{\",CHAR(160),FN$1))+1),\"\")","v":""},{"$f":"IFERROR(MID($R131,FIND(CHAR(160),SUBSTITUTE($R131,\"{\",CHAR(160),FO$1)),FIND(CHAR(160),SUBSTITUTE($R131,\"}\",CHAR(160),FO$1))-FIND(CHAR(160),SUBSTITUTE($R131,\"{\",CHAR(160),FO$1))+1),\"\")","v":""},{"$f":"IFERROR(MID($R131,FIND(CHAR(160),SUBSTITUTE($R131,\"{\",CHAR(160),FP$1)),FIND(CHAR(160),SUBSTITUTE($R131,\"}\",CHAR(160),FP$1))-FIND(CHAR(160),SUBSTITUTE($R131,\"{\",CHAR(160),FP$1))+1),\"\")","v":""},{"$f":"IFERROR(MID($R131,FIND(CHAR(160),SUBSTITUTE($R131,\"{\",CHAR(160),FQ$1)),FIND(CHAR(160),SUBSTITUTE($R131,\"}\",CHAR(160),FQ$1))-FIND(CHAR(160),SUBSTITUTE($R131,\"{\",CHAR(160),FQ$1))+1),\"\")","v":""},{"$f":"IFERROR(MID($R131,FIND(CHAR(160),SUBSTITUTE($R131,\"{\",CHAR(160),FR$1)),FIND(CHAR(160),SUBSTITUTE($R131,\"}\",CHAR(160),FR$1))-FIND(CHAR(160),SUBSTITUTE($R131,\"{\",CHAR(160),FR$1))+1),\"\")","v":""},{"$f":"IFERROR(MID($R131,FIND(CHAR(160),SUBSTITUTE($R131,\"{\",CHAR(160),FS$1)),FIND(CHAR(160),SUBSTITUTE($R131,\"}\",CHAR(160),FS$1))-FIND(CHAR(160),SUBSTITUTE($R131,\"{\",CHAR(160),FS$1))+1),\"\")","v":""},{"$f":"IFERROR(MID($R131,FIND(CHAR(160),SUBSTITUTE($R131,\"{\",CHAR(160),FT$1)),FIND(CHAR(160),SUBSTITUTE($R131,\"}\",CHAR(160),FT$1))-FIND(CHAR(160),SUBSTITUTE($R131,\"{\",CHAR(160),FT$1))+1),\"\")","v":""},{"$f":"IFERROR(MID($R131,FIND(CHAR(160),SUBSTITUTE($R131,\"{\",CHAR(160),FU$1)),FIND(CHAR(160),SUBSTITUTE($R131,\"}\",CHAR(160),FU$1))-FIND(CHAR(160),SUBSTITUTE($R131,\"{\",CHAR(160),FU$1))+1),\"\")","v":"{Measure:Quantity}"},{"$f":"IFERROR(MID($R131,FIND(CHAR(160),SUBSTITUTE($R131,\"{\",CHAR(160),FV$1)),FIND(CHAR(160),SUBSTITUTE($R131,\"}\",CHAR(160),FV$1))-FIND(CHAR(160),SUBSTITUTE($R131,\"{\",CHAR(160),FV$1))+1),\"\")","v":"{Dryer CFM}"},{"$f":"IFERROR(MID($U131,FIND(CHAR(160),SUBSTITUTE($U131,\"{\",CHAR(160),FW$1)),FIND(CHAR(160),SUBSTITUTE($U131,\"}\",CHAR(160),FW$1))-FIND(CHAR(160),SUBSTITUTE($U131,\"{\",CHAR(160),FW$1))+1),\"\")","v":"{Factor:WinterCF}"},{"$f":"IFERROR(MID($U131,FIND(CHAR(160),SUBSTITUTE($U131,\"{\",CHAR(160),FX$1)),FIND(CHAR(160),SUBSTITUTE($U131,\"}\",CHAR(160),FX$1))-FIND(CHAR(160),SUBSTITUTE($U131,\"{\",CHAR(160),FX$1))+1),\"\")","v":""},{"$f":"IFERROR(MID($U131,FIND(CHAR(160),SUBSTITUTE($U131,\"{\",CHAR(160),FY$1)),FIND(CHAR(160),SUBSTITUTE($U131,\"}\",CHAR(160),FY$1))-FIND(CHAR(160),SUBSTITUTE($U131,\"{\",CHAR(160),FY$1))+1),\"\")","v":""},{"$f":"IFERROR(MID($U131,FIND(CHAR(160),SUBSTITUTE($U131,\"{\",CHAR(160),FZ$1)),FIND(CHAR(160),SUBSTITUTE($U131,\"}\",CHAR(160),FZ$1))-FIND(CHAR(160),SUBSTITUTE($U131,\"{\",CHAR(160),FZ$1))+1),\"\")","v":""},{"$f":"IFERROR(MID($U131,FIND(CHAR(160),SUBSTITUTE($U131,\"{\",CHAR(160),GA$1)),FIND(CHAR(160),SUBSTITUTE($U131,\"}\",CHAR(160),GA$1))-FIND(CHAR(160),SUBSTITUTE($U131,\"{\",CHAR(160),GA$1))+1),\"\")","v":""},{"$f":"IFERROR(MID($U131,FIND(CHAR(160),SUBSTITUTE($U131,\"{\",CHAR(160),GB$1)),FIND(CHAR(160),SUBSTITUTE($U131,\"}\",CHAR(160),GB$1))-FIND(CHAR(160),SUBSTITUTE($U131,\"{\",CHAR(160),GB$1))+1),\"\")","v":""},{"$f":"IFERROR(MID($U131,FIND(CHAR(160),SUBSTITUTE($U131,\"{\",CHAR(160),GC$1)),FIND(CHAR(160),SUBSTITUTE($U131,\"}\",CHAR(160),GC$1))-FIND(CHAR(160),SUBSTITUTE($U131,\"{\",CHAR(160),GC$1))+1),\"\")","v":""},{"$f":"IFERROR(MID($U131,FIND(CHAR(160),SUBSTITUTE($U131,\"{\",CHAR(160),GD$1)),FIND(CHAR(160),SUBSTITUTE($U131,\"}\",CHAR(160),GD$1))-FIND(CHAR(160),SUBSTITUTE($U131,\"{\",CHAR(160),GD$1))+1),\"\")","v":""},{"$f":"IFERROR(MID($U131,FIND(CHAR(160),SUBSTITUTE($U131,\"{\",CHAR(160),GE$1)),FIND(CHAR(160),SUBSTITUTE($U131,\"}\",CHAR(160),GE$1))-FIND(CHAR(160),SUBSTITUTE($U131,\"{\",CHAR(160),GE$1))+1),\"\")","v":"{Measure:Quantity}"},{"$f":"IFERROR(MID($U131,FIND(CHAR(160),SUBSTITUTE($U131,\"{\",CHAR(160),GF$1)),FIND(CHAR(160),SUBSTITUTE($U131,\"}\",CHAR(160),GF$1))-FIND(CHAR(160),SUBSTITUTE($U131,\"{\",CHAR(160),GF$1))+1),\"\")","v":"{Dryer CFM}"},{"$f":"IFERROR(MID($V131,FIND(CHAR(160),SUBSTITUTE($V131,\"{\",CHAR(160),GG$1)),FIND(CHAR(160),SUBSTITUTE($V131,\"}\",CHAR(160),GG$1))-FIND(CHAR(160),SUBSTITUTE($V131,\"{\",CHAR(160),GG$1))+1),\"\")","v":"{Factor:SummerCF}"},{"$f":"IFERROR(MID($V131,FIND(CHAR(160),SUBSTITUTE($V131,\"{\",CHAR(160),GH$1)),FIND(CHAR(160),SUBSTITUTE($V131,\"}\",CHAR(160),GH$1))-FIND(CHAR(160),SUBSTITUTE($V131,\"{\",CHAR(160),GH$1))+1),\"\")","v":""},{"$f":"IFERROR(MID($V131,FIND(CHAR(160),SUBSTITUTE($V131,\"{\",CHAR(160),GI$1)),FIND(CHAR(160),SUBSTITUTE($V131,\"}\",CHAR(160),GI$1))-FIND(CHAR(160),SUBSTITUTE($V131,\"{\",CHAR(160),GI$1))+1),\"\")","v":""},{"$f":"IFERROR(MID($V131,FIND(CHAR(160),SUBSTITUTE($V131,\"{\",CHAR(160),GJ$1)),FIND(CHAR(160),SUBSTITUTE($V131,\"}\",CHAR(160),GJ$1))-FIND(CHAR(160),SUBSTITUTE($V131,\"{\",CHAR(160),GJ$1))+1),\"\")","v":""},{"$f":"IFERROR(MID($V131,FIND(CHAR(160),SUBSTITUTE($V131,\"{\",CHAR(160),GK$1)),FIND(CHAR(160),SUBSTITUTE($V131,\"}\",CHAR(160),GK$1))-FIND(CHAR(160),SUBSTITUTE($V131,\"{\",CHAR(160),GK$1))+1),\"\")","v":""},{"$f":"IFERROR(MID($V131,FIND(CHAR(160),SUBSTITUTE($V131,\"{\",CHAR(160),GL$1)),FIND(CHAR(160),SUBSTITUTE($V131,\"}\",CHAR(160),GL$1))-FIND(CHAR(160),SUBSTITUTE($V131,\"{\",CHAR(160),GL$1))+1),\"\")","v":""},{"$f":"IFERROR(MID($V131,FIND(CHAR(160),SUBSTITUTE($V131,\"{\",CHAR(160),GM$1)),FIND(CHAR(160),SUBSTITUTE($V131,\"}\",CHAR(160),GM$1))-FIND(CHAR(160),SUBSTITUTE($V131,\"{\",CHAR(160),GM$1))+1),\"\")","v":""},{"$f":"IFERROR(MID($V131,FIND(CHAR(160),SUBSTITUTE($V131,\"{\",CHAR(160),GN$1)),FIND(CHAR(160),SUBSTITUTE($V131,\"}\",CHAR(160),GN$1))-FIND(CHAR(160),SUBSTITUTE($V131,\"{\",CHAR(160),GN$1))+1),\"\")","v":""},{"$f":"IFERROR(MID($V131,FIND(CHAR(160),SUBSTITUTE($V131,\"{\",CHAR(160),GO$1)),FIND(CHAR(160),SUBSTITUTE($V131,\"}\",CHAR(160),GO$1))-FIND(CHAR(160),SUBSTITUTE($V131,\"{\",CHAR(160),GO$1))+1),\"\")","v":"{Measure:Quantity}"},{"$f":"IFERROR(MID($V131,FIND(CHAR(160),SUBSTITUTE($V131,\"{\",CHAR(160),GP$1)),FIND(CHAR(160),SUBSTITUTE($V131,\"}\",CHAR(160),GP$1))-FIND(CHAR(160),SUBSTITUTE($V131,\"{\",CHAR(160),GP$1))+1),\"\")","v":"{Dryer CFM}"},{"$f":"IFERROR(MID($W131,FIND(CHAR(160),SUBSTITUTE($W131,\"{\",CHAR(160),GQ$1)),FIND(CHAR(160),SUBSTITUTE($W131,\"}\",CHAR(160),GQ$1))-FIND(CHAR(160),SUBSTITUTE($W131,\"{\",CHAR(160),GQ$1))+1),\"\")","v":""},{"$f":"IFERROR(MID($W131,FIND(CHAR(160),SUBSTITUTE($W131,\"{\",CHAR(160),GR$1)),FIND(CHAR(160),SUBSTITUTE($W131,\"}\",CHAR(160),GR$1))-FIND(CHAR(160),SUBSTITUTE($W131,\"{\",CHAR(160),GR$1))+1),\"\")","v":""},{"$f":"IFERROR(MID($W131,FIND(CHAR(160),SUBSTITUTE($W131,\"{\",CHAR(160),GS$1)),FIND(CHAR(160),SUBSTITUTE($W131,\"}\",CHAR(160),GS$1))-FIND(CHAR(160),SUBSTITUTE($W131,\"{\",CHAR(160),GS$1))+1),\"\")","v":""},{"$f":"IFERROR(MID($W131,FIND(CHAR(160),SUBSTITUTE($W131,\"{\",CHAR(160),GT$1)),FIND(CHAR(160),SUBSTITUTE($W131,\"}\",CHAR(160),GT$1))-FIND(CHAR(160),SUBSTITUTE($W131,\"{\",CHAR(160),GT$1))+1),\"\")","v":""},{"$f":"IFERROR(MID($W131,FIND(CHAR(160),SUBSTITUTE($W131,\"{\",CHAR(160),GU$1)),FIND(CHAR(160),SUBSTITUTE($W131,\"}\",CHAR(160),GU$1))-FIND(CHAR(160),SUBSTITUTE($W131,\"{\",CHAR(160),GU$1))+1),\"\")","v":""},{"$f":"IFERROR(MID($W131,FIND(CHAR(160),SUBSTITUTE($W131,\"{\",CHAR(160),GV$1)),FIND(CHAR(160),SUBSTITUTE($W131,\"}\",CHAR(160),GV$1))-FIND(CHAR(160),SUBSTITUTE($W131,\"{\",CHAR(160),GV$1))+1),\"\")","v":""},{"$f":"IFERROR(MID($W131,FIND(CHAR(160),SUBSTITUTE($W131,\"{\",CHAR(160),GW$1)),FIND(CHAR(160),SUBSTITUTE($W131,\"}\",CHAR(160),GW$1))-FIND(CHAR(160),SUBSTITUTE($W131,\"{\",CHAR(160),GW$1))+1),\"\")","v":""},{"$f":"IFERROR(MID($W131,FIND(CHAR(160),SUBSTITUTE($W131,\"{\",CHAR(160),GX$1)),FIND(CHAR(160),SUBSTITUTE($W131,\"}\",CHAR(160),GX$1))-FIND(CHAR(160),SUBSTITUTE($W131,\"{\",CHAR(160),GX$1))+1),\"\")","v":""},{"$f":"IFERROR(MID($W131,FIND(CHAR(160),SUBSTITUTE($W131,\"{\",CHAR(160),GY$1)),FIND(CHAR(160),SUBSTITUTE($W131,\"}\",CHAR(160),GY$1))-FIND(CHAR(160),SUBSTITUTE($W131,\"{\",CHAR(160),GY$1))+1),\"\")","v":""},{"$f":"IFERROR(MID($W131,FIND(CHAR(160),SUBSTITUTE($W131,\"{\",CHAR(160),GZ$1)),FIND(CHAR(160),SUBSTITUTE($W131,\"}\",CHAR(160),GZ$1))-FIND(CHAR(160),SUBSTITUTE($W131,\"{\",CHAR(160),GZ$1))+1),\"\")","v":""},{"$f":"IFERROR(MID($X131,FIND(CHAR(160),SUBSTITUTE($X131,\"{\",CHAR(160),HA$1)),FIND(CHAR(160),SUBSTITUTE($X131,\"}\",CHAR(160),HA$1))-FIND(CHAR(160),SUBSTITUTE($X131,\"{\",CHAR(160),HA$1))+1),\"\")","v":""},{"$f":"IFERROR(MID($X131,FIND(CHAR(160),SUBSTITUTE($X131,\"{\",CHAR(160),HB$1)),FIND(CHAR(160),SUBSTITUTE($X131,\"}\",CHAR(160),HB$1))-FIND(CHAR(160),SUBSTITUTE($X131,\"{\",CHAR(160),HB$1))+1),\"\")","v":""},{"$f":"IFERROR(MID($X131,FIND(CHAR(160),SUBSTITUTE($X131,\"{\",CHAR(160),HC$1)),FIND(CHAR(160),SUBSTITUTE($X131,\"}\",CHAR(160),HC$1))-FIND(CHAR(160),SUBSTITUTE($X131,\"{\",CHAR(160),HC$1))+1),\"\")","v":""},{"$f":"IFERROR(MID($X131,FIND(CHAR(160),SUBSTITUTE($X131,\"{\",CHAR(160),HD$1)),FIND(CHAR(160),SUBSTITUTE($X131,\"}\",CHAR(160),HD$1))-FIND(CHAR(160),SUBSTITUTE($X131,\"{\",CHAR(160),HD$1))+1),\"\")","v":""},{"$f":"IFERROR(MID($X131,FIND(CHAR(160),SUBSTITUTE($X131,\"{\",CHAR(160),HE$1)),FIND(CHAR(160),SUBSTITUTE($X131,\"}\",CHAR(160),HE$1))-FIND(CHAR(160),SUBSTITUTE($X131,\"{\",CHAR(160),HE$1))+1),\"\")","v":""},{"$f":"IFERROR(MID($X131,FIND(CHAR(160),SUBSTITUTE($X131,\"{\",CHAR(160),HF$1)),FIND(CHAR(160),SUBSTITUTE($X131,\"}\",CHAR(160),HF$1))-FIND(CHAR(160),SUBSTITUTE($X131,\"{\",CHAR(160),HF$1))+1),\"\")","v":""},{"$f":"IFERROR(MID($X131,FIND(CHAR(160),SUBSTITUTE($X131,\"{\",CHAR(160),HG$1)),FIND(CHAR(160),SUBSTITUTE($X131,\"}\",CHAR(160),HG$1))-FIND(CHAR(160),SUBSTITUTE($X131,\"{\",CHAR(160),HG$1))+1),\"\")","v":""},{"$f":"IFERROR(MID($X131,FIND(CHAR(160),SUBSTITUTE($X131,\"{\",CHAR(160),HH$1)),FIND(CHAR(160),SUBSTITUTE($X131,\"}\",CHAR(160),HH$1))-FIND(CHAR(160),SUBSTITUTE($X131,\"{\",CHAR(160),HH$1))+1),\"\")","v":""},{"$f":"IFERROR(MID($X131,FIND(CHAR(160),SUBSTITUTE($X131,\"{\",CHAR(160),HI$1)),FIND(CHAR(160),SUBSTITUTE($X131,\"}\",CHAR(160),HI$1))-FIND(CHAR(160),SUBSTITUTE($X131,\"{\",CHAR(160),HI$1))+1),\"\")","v":""},{"$f":"IFERROR(MID($X131,FIND(CHAR(160),SUBSTITUTE($X131,\"{\",CHAR(160),HJ$1)),FIND(CHAR(160),SUBSTITUTE($X131,\"}\",CHAR(160),HJ$1))-FIND(CHAR(160),SUBSTITUTE($X131,\"{\",CHAR(160),HJ$1))+1),\"\")","v":""},{"$f":"IFERROR(MID($Y131,FIND(CHAR(160),SUBSTITUTE($Y131,\"{\",CHAR(160),HK$1)),FIND(CHAR(160),SUBSTITUTE($Y131,\"}\",CHAR(160),HK$1))-FIND(CHAR(160),SUBSTITUTE($Y131,\"{\",CHAR(160),HK$1))+1),\"\")","v":""},{"$f":"IFERROR(MID($Y131,FIND(CHAR(160),SUBSTITUTE($Y131,\"{\",CHAR(160),HL$1)),FIND(CHAR(160),SUBSTITUTE($Y131,\"}\",CHAR(160),HL$1))-FIND(CHAR(160),SUBSTITUTE($Y131,\"{\",CHAR(160),HL$1))+1),\"\")","v":""},{"$f":"IFERROR(MID($Y131,FIND(CHAR(160),SUBSTITUTE($Y131,\"{\",CHAR(160),HM$1)),FIND(CHAR(160),SUBSTITUTE($Y131,\"}\",CHAR(160),HM$1))-FIND(CHAR(160),SUBSTITUTE($Y131,\"{\",CHAR(160),HM$1))+1),\"\")","v":""},{"$f":"IFERROR(MID($Y131,FIND(CHAR(160),SUBSTITUTE($Y131,\"{\",CHAR(160),HN$1)),FIND(CHAR(160),SUBSTITUTE($Y131,\"}\",CHAR(160),HN$1))-FIND(CHAR(160),SUBSTITUTE($Y131,\"{\",CHAR(160),HN$1))+1),\"\")","v":""},{"$f":"IFERROR(MID($Y131,FIND(CHAR(160),SUBSTITUTE($Y131,\"{\",CHAR(160),HO$1)),FIND(CHAR(160),SUBSTITUTE($Y131,\"}\",CHAR(160),HO$1))-FIND(CHAR(160),SUBSTITUTE($Y131,\"{\",CHAR(160),HO$1))+1),\"\")","v":""},{"$f":"IFERROR(MID($Y131,FIND(CHAR(160),SUBSTITUTE($Y131,\"{\",CHAR(160),HP$1)),FIND(CHAR(160),SUBSTITUTE($Y131,\"}\",CHAR(160),HP$1))-FIND(CHAR(160),SUBSTITUTE($Y131,\"{\",CHAR(160),HP$1))+1),\"\")","v":""},{"$f":"IFERROR(MID($Y131,FIND(CHAR(160),SUBSTITUTE($Y131,\"{\",CHAR(160),HQ$1)),FIND(CHAR(160),SUBSTITUTE($Y131,\"}\",CHAR(160),HQ$1))-FIND(CHAR(160),SUBSTITUTE($Y131,\"{\",CHAR(160),HQ$1))+1),\"\")","v":""},{"$f":"IFERROR(MID($Y131,FIND(CHAR(160),SUBSTITUTE($Y131,\"{\",CHAR(160),HR$1)),FIND(CHAR(160),SUBSTITUTE($Y131,\"}\",CHAR(160),HR$1))-FIND(CHAR(160),SUBSTITUTE($Y131,\"{\",CHAR(160),HR$1))+1),\"\")","v":""},{"$f":"IFERROR(MID($Y131,FIND(CHAR(160),SUBSTITUTE($Y131,\"{\",CHAR(160),HS$1)),FIND(CHAR(160),SUBSTITUTE($Y131,\"}\",CHAR(160),HS$1))-FIND(CHAR(160),SUBSTITUTE($Y131,\"{\",CHAR(160),HS$1))+1),\"\")","v":""},{"$f":"IFERROR(MID($Y131,FIND(CHAR(160),SUBSTITUTE($Y131,\"{\",CHAR(160),HT$1)),FIND(CHAR(160),SUBSTITUTE($Y131,\"}\",CHAR(160),HT$1))-FIND(CHAR(160),SUBSTITUTE($Y131,\"{\",CHAR(160),HT$1))+1),\"\")","v":""},{"$f":"IFERROR(MID($Z131,FIND(CHAR(160),SUBSTITUTE($Z131,\"{\",CHAR(160),HU$1)),FIND(CHAR(160),SUBSTITUTE($Z131,\"}\",CHAR(160),HU$1))-FIND(CHAR(160),SUBSTITUTE($Z131,\"{\",CHAR(160),HU$1))+1),\"\")","v":""},{"$f":"IFERROR(MID($Z131,FIND(CHAR(160),SUBSTITUTE($Z131,\"{\",CHAR(160),HV$1)),FIND(CHAR(160),SUBSTITUTE($Z131,\"}\",CHAR(160),HV$1))-FIND(CHAR(160),SUBSTITUTE($Z131,\"{\",CHAR(160),HV$1))+1),\"\")","v":""},{"$f":"IFERROR(MID($Z131,FIND(CHAR(160),SUBSTITUTE($Z131,\"{\",CHAR(160),HW$1)),FIND(CHAR(160),SUBSTITUTE($Z131,\"}\",CHAR(160),HW$1))-FIND(CHAR(160),SUBSTITUTE($Z131,\"{\",CHAR(160),HW$1))+1),\"\")","v":""},{"$f":"IFERROR(MID($Z131,FIND(CHAR(160),SUBSTITUTE($Z131,\"{\",CHAR(160),HX$1)),FIND(CHAR(160),SUBSTITUTE($Z131,\"}\",CHAR(160),HX$1))-FIND(CHAR(160),SUBSTITUTE($Z131,\"{\",CHAR(160),HX$1))+1),\"\")","v":""},{"$f":"IFERROR(MID($Z131,FIND(CHAR(160),SUBSTITUTE($Z131,\"{\",CHAR(160),HY$1)),FIND(CHAR(160),SUBSTITUTE($Z131,\"}\",CHAR(160),HY$1))-FIND(CHAR(160),SUBSTITUTE($Z131,\"{\",CHAR(160),HY$1))+1),\"\")","v":""},{"$f":"IFERROR(MID($Z131,FIND(CHAR(160),SUBSTITUTE($Z131,\"{\",CHAR(160),HZ$1)),FIND(CHAR(160),SUBSTITUTE($Z131,\"}\",CHAR(160),HZ$1))-FIND(CHAR(160),SUBSTITUTE($Z131,\"{\",CHAR(160),HZ$1))+1),\"\")","v":""},{"$f":"IFERROR(MID($Z131,FIND(CHAR(160),SUBSTITUTE($Z131,\"{\",CHAR(160),IA$1)),FIND(CHAR(160),SUBSTITUTE($Z131,\"}\",CHAR(160),IA$1))-FIND(CHAR(160),SUBSTITUTE($Z131,\"{\",CHAR(160),IA$1))+1),\"\")","v":""},{"$f":"IFERROR(MID($Z131,FIND(CHAR(160),SUBSTITUTE($Z131,\"{\",CHAR(160),IB$1)),FIND(CHAR(160),SUBSTITUTE($Z131,\"}\",CHAR(160),IB$1))-FIND(CHAR(160),SUBSTITUTE($Z131,\"{\",CHAR(160),IB$1))+1),\"\")","v":""},{"$f":"IFERROR(MID($Z131,FIND(CHAR(160),SUBSTITUTE($Z131,\"{\",CHAR(160),IC$1)),FIND(CHAR(160),SUBSTITUTE($Z131,\"}\",CHAR(160),IC$1))-FIND(CHAR(160),SUBSTITUTE($Z131,\"{\",CHAR(160),IC$1))+1),\"\")","v":""},{"$f":"IFERROR(MID($Z131,FIND(CHAR(160),SUBSTITUTE($Z131,\"{\",CHAR(160),ID$1)),FIND(CHAR(160),SUBSTITUTE($Z131,\"}\",CHAR(160),ID$1))-FIND(CHAR(160),SUBSTITUTE($Z131,\"{\",CHAR(160),ID$1))+1),\"\")","v":""},{"$f":"IFERROR(MID($AA131,FIND(CHAR(160),SUBSTITUTE($AA131,\"{\",CHAR(160),IE$1)),FIND(CHAR(160),SUBSTITUTE($AA131,\"}\",CHAR(160),IE$1))-FIND(CHAR(160),SUBSTITUTE($AA131,\"{\",CHAR(160),IE$1))+1),\"\")","v":""},{"$f":"IFERROR(MID($AA131,FIND(CHAR(160),SUBSTITUTE($AA131,\"{\",CHAR(160),IF$1)),FIND(CHAR(160),SUBSTITUTE($AA131,\"}\",CHAR(160),IF$1))-FIND(CHAR(160),SUBSTITUTE($AA131,\"{\",CHAR(160),IF$1))+1),\"\")","v":""},{"$f":"IFERROR(MID($AA131,FIND(CHAR(160),SUBSTITUTE($AA131,\"{\",CHAR(160),IG$1)),FIND(CHAR(160),SUBSTITUTE($AA131,\"}\",CHAR(160),IG$1))-FIND(CHAR(160),SUBSTITUTE($AA131,\"{\",CHAR(160),IG$1))+1),\"\")","v":""},{"$f":"IFERROR(MID($AA131,FIND(CHAR(160),SUBSTITUTE($AA131,\"{\",CHAR(160),IH$1)),FIND(CHAR(160),SUBSTITUTE($AA131,\"}\",CHAR(160),IH$1))-FIND(CHAR(160),SUBSTITUTE($AA131,\"{\",CHAR(160),IH$1))+1),\"\")","v":""},{"$f":"IFERROR(MID($AA131,FIND(CHAR(160),SUBSTITUTE($AA131,\"{\",CHAR(160),II$1)),FIND(CHAR(160),SUBSTITUTE($AA131,\"}\",CHAR(160),II$1))-FIND(CHAR(160),SUBSTITUTE($AA131,\"{\",CHAR(160),II$1))+1),\"\")","v":""},{"$f":"IFERROR(MID($AA131,FIND(CHAR(160),SUBSTITUTE($AA131,\"{\",CHAR(160),IJ$1)),FIND(CHAR(160),SUBSTITUTE($AA131,\"}\",CHAR(160),IJ$1))-FIND(CHAR(160),SUBSTITUTE($AA131,\"{\",CHAR(160),IJ$1))+1),\"\")","v":""},{"$f":"IFERROR(MID($AA131,FIND(CHAR(160),SUBSTITUTE($AA131,\"{\",CHAR(160),IK$1)),FIND(CHAR(160),SUBSTITUTE($AA131,\"}\",CHAR(160),IK$1))-FIND(CHAR(160),SUBSTITUTE($AA131,\"{\",CHAR(160),IK$1))+1),\"\")","v":""},{"$f":"IFERROR(MID($AA131,FIND(CHAR(160),SUBSTITUTE($AA131,\"{\",CHAR(160),IL$1)),FIND(CHAR(160),SUBSTITUTE($AA131,\"}\",CHAR(160),IL$1))-FIND(CHAR(160),SUBSTITUTE($AA131,\"{\",CHAR(160),IL$1))+1),\"\")","v":""},{"$f":"IFERROR(MID($AA131,FIND(CHAR(160),SUBSTITUTE($AA131,\"{\",CHAR(160),IM$1)),FIND(CHAR(160),SUBSTITUTE($AA131,\"}\",CHAR(160),IM$1))-FIND(CHAR(160),SUBSTITUTE($AA131,\"{\",CHAR(160),IM$1))+1),\"\")","v":""},{"$f":"IFERROR(MID($AA131,FIND(CHAR(160),SUBSTITUTE($AA131,\"{\",CHAR(160),IN$1)),FIND(CHAR(160),SUBSTITUTE($AA131,\"}\",CHAR(160),IN$1))-FIND(CHAR(160),SUBSTITUTE($AA131,\"{\",CHAR(160),IN$1))+1),\"\")","v":""},{"$f":"IFERROR(MID($AB131,FIND(CHAR(160),SUBSTITUTE($AB131,\"{\",CHAR(160),IO$1)),FIND(CHAR(160),SUBSTITUTE($AB131,\"}\",CHAR(160),IO$1))-FIND(CHAR(160),SUBSTITUTE($AB131,\"{\",CHAR(160),IO$1))+1),\"\")","v":""},{"$f":"IFERROR(MID($AB131,FIND(CHAR(160),SUBSTITUTE($AB131,\"{\",CHAR(160),IP$1)),FIND(CHAR(160),SUBSTITUTE($AB131,\"}\",CHAR(160),IP$1))-FIND(CHAR(160),SUBSTITUTE($AB131,\"{\",CHAR(160),IP$1))+1),\"\")","v":""},{"$f":"IFERROR(MID($AB131,FIND(CHAR(160),SUBSTITUTE($AB131,\"{\",CHAR(160),IQ$1)),FIND(CHAR(160),SUBSTITUTE($AB131,\"}\",CHAR(160),IQ$1))-FIND(CHAR(160),SUBSTITUTE($AB131,\"{\",CHAR(160),IQ$1))+1),\"\")","v":""},{"$f":"IFERROR(MID($AB131,FIND(CHAR(160),SUBSTITUTE($AB131,\"{\",CHAR(160),IR$1)),FIND(CHAR(160),SUBSTITUTE($AB131,\"}\",CHAR(160),IR$1))-FIND(CHAR(160),SUBSTITUTE($AB131,\"{\",CHAR(160),IR$1))+1),\"\")","v":""},{"$f":"IFERROR(MID($AB131,FIND(CHAR(160),SUBSTITUTE($AB131,\"{\",CHAR(160),IS$1)),FIND(CHAR(160),SUBSTITUTE($AB131,\"}\",CHAR(160),IS$1))-FIND(CHAR(160),SUBSTITUTE($AB131,\"{\",CHAR(160),IS$1))+1),\"\")","v":""},{"$f":"IFERROR(MID($AB131,FIND(CHAR(160),SUBSTITUTE($AB131,\"{\",CHAR(160),IT$1)),FIND(CHAR(160),SUBSTITUTE($AB131,\"}\",CHAR(160),IT$1))-FIND(CHAR(160),SUBSTITUTE($AB131,\"{\",CHAR(160),IT$1))+1),\"\")","v":""},{"$f":"IFERROR(MID($AB131,FIND(CHAR(160),SUBSTITUTE($AB131,\"{\",CHAR(160),IU$1)),FIND(CHAR(160),SUBSTITUTE($AB131,\"}\",CHAR(160),IU$1))-FIND(CHAR(160),SUBSTITUTE($AB131,\"{\",CHAR(160),IU$1))+1),\"\")","v":""},{"$f":"IFERROR(MID($AB131,FIND(CHAR(160),SUBSTITUTE($AB131,\"{\",CHAR(160),IV$1)),FIND(CHAR(160),SUBSTITUTE($AB131,\"}\",CHAR(160),IV$1))-FIND(CHAR(160),SUBSTITUTE($AB131,\"{\",CHAR(160),IV$1))+1),\"\")","v":""},{"$f":"IFERROR(MID($AB131,FIND(CHAR(160),SUBSTITUTE($AB131,\"{\",CHAR(160),IW$1)),FIND(CHAR(160),SUBSTITUTE($AB131,\"}\",CHAR(160),IW$1))-FIND(CHAR(160),SUBSTITUTE($AB131,\"{\",CHAR(160),IW$1))+1),\"\")","v":""},{"$f":"IFERROR(MID($AB131,FIND(CHAR(160),SUBSTITUTE($AB131,\"{\",CHAR(160),IX$1)),FIND(CHAR(160),SUBSTITUTE($AB131,\"}\",CHAR(160),IX$1))-FIND(CHAR(160),SUBSTITUTE($AB131,\"{\",CHAR(160),IX$1))+1),\"\")","v":""},null,{"$f":"10-COUNTIF(DU131:ED131,\"\")","v":4}]
["C&I Prescriptive Compressed Air Solutions","LPD Filter - C30 - System Compressor Size (hp) - <=15","LPD - C30","2021-07-01","2022-06-30","Calculated","{Measure:Quantity}*{System Compressor Size (HP)} * 4.60",0,"Per Measure",40,0,"2017-07-01","2022-06-30","Calculated","{Measure:Quantity} *{System Compressor Size (HP)} * 0.746 * 0.01 * {Weekly Hrs of Operation} * {Weeks Per Year}",1E-4,null,"{Measure:Quantity} *{System Compressor Size (HP)} * 0.746 * 0.01",null,null,"{Measure:Quantity} *{System Compressor Size (HP)} * 0.746 * 0.01 * {Factor:WinterCF}","{Measure:Quantity} *{System Compressor Size (HP)} * 0.746 * 0.01 * {Factor:SummerCF}",null,null,null,null,null,null,"2017-07-01","2022-06-30",4,0.7,0.91100000000000003,0.30399999999999999,0.36099999999999999,0.156,0.17899999999999999,1,1.1220000000000001,1,0.52,1.6E-2,null,{"$f":"DU132","v":"{Measure:Quantity}"},1,{"$f":"DV132","v":"{System Compressor Size (HP)}"},10,{"$f":"DW132","v":"{Weekly Hrs of Operation}"},50,{"$f":"DX132","v":"{Weeks Per Year}"},50,{"$f":"DY132","v":""},null,{"$f":"DZ132","v":""},null,{"$f":"EA132","v":""},null,{"$f":"EB132","v":""},null,{"$f":"EC132","v":""},null,{"$f":"ED132","v":""},null,{"$f":"AS132 *AU132 * 0.746 * 0.01 * AW132 * AY132","v":186.5},{"$f":"0.0001","v":1E-4},0,{"$f":"AS132 *AU132 * 0.746 * 0.01","v":7.46E-2},0,0,{"$f":"AS132 *AU132 * 0.746 * 0.01 * AF132","v":5.2219999999999996E-2},{"$f":"AS132 *AU132 * 0.746 * 0.01 * AG132","v":6.7960599999999996E-2},0,0,0,0,0,0,null,"Com","Default DR",{"$f":"Benefits(BL132,BR132,BS132,BT132,BU132,BV132,BW132,BX132,BY132,BZ132,AE132,AH132,AI132,AJ132,AK132,AL132,AM132,AN132,AO132,AP132,CA132,CB132)","v":95.043869160660108},99.682935438261154,0,0,0,0,0,0,0,{"$f":"SUMPRODUCT(CC132:CK132,--(CC132:CK132>0))","v":194.72680459892126},{"$f":"-SUMPRODUCT(CC132:CK132,--(CC132:CK132<0))","v":0},null,{"$f":"AS132*AU132 * 4.6","v":46},null,null,{"$f":"CM132+CO132","v":46},{"$f":"IF(NetOrGross=\"Net\",(1-AO132+AP132),1)","v":1},{"$f":"(SUMPRODUCT(CC132:CJ132,--(CC132:CJ132>0))+CN132)*CS132/((-SUMPRODUCT(CC132:CJ132,--(CC132:CJ132<0))+MAX(CO132,CV132)+CP132+CQ132)*CS132+IF(FRIncentives=\"Yes\",CV132*(1-CS132),0))","v":4.2331914043243755},12,{"$f":"40","v":40},null,"Electric","y",null,{"$f":"IF(F132=\"Manual Entry\",\"Manual\",IF(G132=\"\",0,\"X=\"&SUBSTITUTE(SUBSTITUTE(SUBSTITUTE(SUBSTITUTE(SUBSTITUTE(SUBSTITUTE(SUBSTITUTE(SUBSTITUTE(SUBSTITUTE(SUBSTITUTE(SUBSTITUTE(SUBSTITUTE(G132,$ED132,$ED$2&ROW($ED132)),$EC132,$EC$2&ROW($EC132)),$EB132,$EB$2&ROW($EB132)),$EA132,$EA$2&ROW($EA132)),$DZ132,$DZ$2&ROW($DZ132)),$DY132,$DY$2&ROW($DY132)),$DX132,$DX$2&ROW($DX132)),$DW132,$DW$2&ROW($DW132)),$DV132,$DV$2&ROW($DV132)),$DU132,$DU$2&ROW($DU132)),$DT132,$DT$2&ROW($DT132)),$DS132,$DS$2&ROW($DS132))))","v":"X=AS132*AU132 * 4.60"},{"$f":"IF(I132=\"Manual Entry\",\"Manual\",IF(J132=\"\",0,\"X=\"&SUBSTITUTE(SUBSTITUTE(SUBSTITUTE(SUBSTITUTE(SUBSTITUTE(SUBSTITUTE(SUBSTITUTE(SUBSTITUTE(SUBSTITUTE(SUBSTITUTE(SUBSTITUTE(SUBSTITUTE(J132,$ED132,$ED$2&ROW($ED132)),$EC132,$EC$2&ROW($EC132)),$EB132,$EB$2&ROW($EB132)),$EA132,$EA$2&ROW($EA132)),$DZ132,$DZ$2&ROW($DZ132)),$DY132,$DY$2&ROW($DY132)),$DX132,$DX$2&ROW($DX132)),$DW132,$DW$2&ROW($DW132)),$DV132,$DV$2&ROW($DV132)),$DU132,$DU$2&ROW($DU132)),$DT132,$DT$2&ROW($DT132)),$DS132,$DS$2&ROW($DS132))))","v":"X=40"},{"$f":"IF(O132=\"\",0,\"X=\"&SUBSTITUTE(SUBSTITUTE(SUBSTITUTE(SUBSTITUTE(SUBSTITUTE(SUBSTITUTE(SUBSTITUTE(SUBSTITUTE(SUBSTITUTE(SUBSTITUTE(SUBSTITUTE(SUBSTITUTE(O132,$ED132,$ED$2&ROW($ED132)),$EC132,$EC$2&ROW($EC132)),$EB132,$EB$2&ROW($EB132)),$EA132,$EA$2&ROW($EA132)),$DZ132,$DZ$2&ROW($DZ132)),$DY132,$DY$2&ROW($DY132)),$DX132,$DX$2&ROW($DX132)),$DW132,$DW$2&ROW($DW132)),$DV132,$DV$2&ROW($DV132)),$DU132,$DU$2&ROW($DU132)),$DT132,$DT$2&ROW($DT132)),$DS132,$DS$2&ROW($DS132)))","v":"X=AS132 *AU132 * 0.746 * 0.01 * AW132 * AY132"},{"$f":"IF(P132=\"\",0,\"X=\"&SUBSTITUTE(SUBSTITUTE(SUBSTITUTE(SUBSTITUTE(SUBSTITUTE(SUBSTITUTE(SUBSTITUTE(SUBSTITUTE(SUBSTITUTE(SUBSTITUTE(SUBSTITUTE(SUBSTITUTE(P132,$ED132,$ED$2&ROW($ED132)),$EC132,$EC$2&ROW($EC132)),$EB132,$EB$2&ROW($EB132)),$EA132,$EA$2&ROW($EA132)),$DZ132,$DZ$2&ROW($DZ132)),$DY132,$DY$2&ROW($DY132)),$DX132,$DX$2&ROW($DX132)),$DW132,$DW$2&ROW($DW132)),$DV132,$DV$2&ROW($DV132)),$DU132,$DU$2&ROW($DU132)),$DT132,$DT$2&ROW($DT132)),$DS132,$DS$2&ROW($DS132)))","v":"X=0.0001"},{"$f":"IF(Q132=\"\",0,\"X=\"&SUBSTITUTE(SUBSTITUTE(SUBSTITUTE(SUBSTITUTE(SUBSTITUTE(SUBSTITUTE(SUBSTITUTE(SUBSTITUTE(SUBSTITUTE(SUBSTITUTE(SUBSTITUTE(SUBSTITUTE(Q132,$ED132,$ED$2&ROW($ED132)),$EC132,$EC$2&ROW($EC132)),$EB132,$EB$2&ROW($EB132)),$EA132,$EA$2&ROW($EA132)),$DZ132,$DZ$2&ROW($DZ132)),$DY132,$DY$2&ROW($DY132)),$DX132,$DX$2&ROW($DX132)),$DW132,$DW$2&ROW($DW132)),$DV132,$DV$2&ROW($DV132)),$DU132,$DU$2&ROW($DU132)),$DT132,$DT$2&ROW($DT132)),$DS132,$DS$2&ROW($DS132)))","v":0},{"$f":"IF(R132=\"\",0,\"X=\"&SUBSTITUTE(SUBSTITUTE(SUBSTITUTE(SUBSTITUTE(SUBSTITUTE(SUBSTITUTE(SUBSTITUTE(SUBSTITUTE(SUBSTITUTE(SUBSTITUTE(SUBSTITUTE(SUBSTITUTE(R132,$ED132,$ED$2&ROW($ED132)),$EC132,$EC$2&ROW($EC132)),$EB132,$EB$2&ROW($EB132)),$EA132,$EA$2&ROW($EA132)),$DZ132,$DZ$2&ROW($DZ132)),$DY132,$DY$2&ROW($DY132)),$DX132,$DX$2&ROW($DX132)),$DW132,$DW$2&ROW($DW132)),$DV132,$DV$2&ROW($DV132)),$DU132,$DU$2&ROW($DU132)),$DT132,$DT$2&ROW($DT132)),$DS132,$DS$2&ROW($DS132)))","v":"X=AS132 *AU132 * 0.746 * 0.01"},{"$f":"IF(S132=\"\",0,\"X=\"&SUBSTITUTE(SUBSTITUTE(SUBSTITUTE(SUBSTITUTE(SUBSTITUTE(SUBSTITUTE(SUBSTITUTE(SUBSTITUTE(SUBSTITUTE(SUBSTITUTE(SUBSTITUTE(SUBSTITUTE(S132,$ED132,$ED$2&ROW($ED132)),$EC132,$EC$2&ROW($EC132)),$EB132,$EB$2&ROW($EB132)),$EA132,$EA$2&ROW($EA132)),$DZ132,$DZ$2&ROW($DZ132)),$DY132,$DY$2&ROW($DY132)),$DX132,$DX$2&ROW($DX132)),$DW132,$DW$2&ROW($DW132)),$DV132,$DV$2&ROW($DV132)),$DU132,$DU$2&ROW($DU132)),$DT132,$DT$2&ROW($DT132)),$DS132,$DS$2&ROW($DS132)))","v":0},{"$f":"IF(T132=\"\",0,\"X=\"&SUBSTITUTE(SUBSTITUTE(SUBSTITUTE(SUBSTITUTE(SUBSTITUTE(SUBSTITUTE(SUBSTITUTE(SUBSTITUTE(SUBSTITUTE(SUBSTITUTE(SUBSTITUTE(SUBSTITUTE(T132,$ED132,$ED$2&ROW($ED132)),$EC132,$EC$2&ROW($EC132)),$EB132,$EB$2&ROW($EB132)),$EA132,$EA$2&ROW($EA132)),$DZ132,$DZ$2&ROW($DZ132)),$DY132,$DY$2&ROW($DY132)),$DX132,$DX$2&ROW($DX132)),$DW132,$DW$2&ROW($DW132)),$DV132,$DV$2&ROW($DV132)),$DU132,$DU$2&ROW($DU132)),$DT132,$DT$2&ROW($DT132)),$DS132,$DS$2&ROW($DS132)))","v":0},{"$f":"IF(U132=\"\",0,\"X=\"&SUBSTITUTE(SUBSTITUTE(SUBSTITUTE(SUBSTITUTE(SUBSTITUTE(SUBSTITUTE(SUBSTITUTE(SUBSTITUTE(SUBSTITUTE(SUBSTITUTE(SUBSTITUTE(SUBSTITUTE(U132,$ED132,$ED$2&ROW($ED132)),$EC132,$EC$2&ROW($EC132)),$EB132,$EB$2&ROW($EB132)),$EA132,$EA$2&ROW($EA132)),$DZ132,$DZ$2&ROW($DZ132)),$DY132,$DY$2&ROW($DY132)),$DX132,$DX$2&ROW($DX132)),$DW132,$DW$2&ROW($DW132)),$DV132,$DV$2&ROW($DV132)),$DU132,$DU$2&ROW($DU132)),$DT132,$DT$2&ROW($DT132)),$DS132,$DS$2&ROW($DS132)))","v":"X=AS132 *AU132 * 0.746 * 0.01 * AF132"},{"$f":"IF(V132=\"\",0,\"X=\"&SUBSTITUTE(SUBSTITUTE(SUBSTITUTE(SUBSTITUTE(SUBSTITUTE(SUBSTITUTE(SUBSTITUTE(SUBSTITUTE(SUBSTITUTE(SUBSTITUTE(SUBSTITUTE(SUBSTITUTE(V132,$ED132,$ED$2&ROW($ED132)),$EC132,$EC$2&ROW($EC132)),$EB132,$EB$2&ROW($EB132)),$EA132,$EA$2&ROW($EA132)),$DZ132,$DZ$2&ROW($DZ132)),$DY132,$DY$2&ROW($DY132)),$DX132,$DX$2&ROW($DX132)),$DW132,$DW$2&ROW($DW132)),$DV132,$DV$2&ROW($DV132)),$DU132,$DU$2&ROW($DU132)),$DT132,$DT$2&ROW($DT132)),$DS132,$DS$2&ROW($DS132)))","v":"X=AS132 *AU132 * 0.746 * 0.01 * AG132"},{"$f":"IF(W132=\"\",0,\"X=\"&SUBSTITUTE(SUBSTITUTE(SUBSTITUTE(SUBSTITUTE(SUBSTITUTE(SUBSTITUTE(SUBSTITUTE(SUBSTITUTE(SUBSTITUTE(SUBSTITUTE(SUBSTITUTE(SUBSTITUTE(W132,$ED132,$ED$2&ROW($ED132)),$EC132,$EC$2&ROW($EC132)),$EB132,$EB$2&ROW($EB132)),$EA132,$EA$2&ROW($EA132)),$DZ132,$DZ$2&ROW($DZ132)),$DY132,$DY$2&ROW($DY132)),$DX132,$DX$2&ROW($DX132)),$DW132,$DW$2&ROW($DW132)),$DV132,$DV$2&ROW($DV132)),$DU132,$DU$2&ROW($DU132)),$DT132,$DT$2&ROW($DT132)),$DS132,$DS$2&ROW($DS132)))","v":0},{"$f":"IF(X132=\"\",0,\"X=\"&SUBSTITUTE(SUBSTITUTE(SUBSTITUTE(SUBSTITUTE(SUBSTITUTE(SUBSTITUTE(SUBSTITUTE(SUBSTITUTE(SUBSTITUTE(SUBSTITUTE(SUBSTITUTE(SUBSTITUTE(X132,$ED132,$ED$2&ROW($ED132)),$EC132,$EC$2&ROW($EC132)),$EB132,$EB$2&ROW($EB132)),$EA132,$EA$2&ROW($EA132)),$DZ132,$DZ$2&ROW($DZ132)),$DY132,$DY$2&ROW($DY132)),$DX132,$DX$2&ROW($DX132)),$DW132,$DW$2&ROW($DW132)),$DV132,$DV$2&ROW($DV132)),$DU132,$DU$2&ROW($DU132)),$DT132,$DT$2&ROW($DT132)),$DS132,$DS$2&ROW($DS132)))","v":0},{"$f":"IF(Y132=\"\",0,\"X=\"&SUBSTITUTE(SUBSTITUTE(SUBSTITUTE(SUBSTITUTE(SUBSTITUTE(SUBSTITUTE(SUBSTITUTE(SUBSTITUTE(SUBSTITUTE(SUBSTITUTE(SUBSTITUTE(SUBSTITUTE(Y132,$ED132,$ED$2&ROW($ED132)),$EC132,$EC$2&ROW($EC132)),$EB132,$EB$2&ROW($EB132)),$EA132,$EA$2&ROW($EA132)),$DZ132,$DZ$2&ROW($DZ132)),$DY132,$DY$2&ROW($DY132)),$DX132,$DX$2&ROW($DX132)),$DW132,$DW$2&ROW($DW132)),$DV132,$DV$2&ROW($DV132)),$DU132,$DU$2&ROW($DU132)),$DT132,$DT$2&ROW($DT132)),$DS132,$DS$2&ROW($DS132)))","v":0},{"$f":"IF(Z132=\"\",0,\"X=\"&SUBSTITUTE(SUBSTITUTE(SUBSTITUTE(SUBSTITUTE(SUBSTITUTE(SUBSTITUTE(SUBSTITUTE(SUBSTITUTE(SUBSTITUTE(SUBSTITUTE(SUBSTITUTE(SUBSTITUTE(Z132,$ED132,$ED$2&ROW($ED132)),$EC132,$EC$2&ROW($EC132)),$EB132,$EB$2&ROW($EB132)),$EA132,$EA$2&ROW($EA132)),$DZ132,$DZ$2&ROW($DZ132)),$DY132,$DY$2&ROW($DY132)),$DX132,$DX$2&ROW($DX132)),$DW132,$DW$2&ROW($DW132)),$DV132,$DV$2&ROW($DV132)),$DU132,$DU$2&ROW($DU132)),$DT132,$DT$2&ROW($DT132)),$DS132,$DS$2&ROW($DS132)))","v":0},{"$f":"IF(AA132=\"\",0,\"X=\"&SUBSTITUTE(SUBSTITUTE(SUBSTITUTE(SUBSTITUTE(SUBSTITUTE(SUBSTITUTE(SUBSTITUTE(SUBSTITUTE(SUBSTITUTE(SUBSTITUTE(SUBSTITUTE(SUBSTITUTE(AA132,$ED132,$ED$2&ROW($ED132)),$EC132,$EC$2&ROW($EC132)),$EB132,$EB$2&ROW($EB132)),$EA132,$EA$2&ROW($EA132)),$DZ132,$DZ$2&ROW($DZ132)),$DY132,$DY$2&ROW($DY132)),$DX132,$DX$2&ROW($DX132)),$DW132,$DW$2&ROW($DW132)),$DV132,$DV$2&ROW($DV132)),$DU132,$DU$2&ROW($DU132)),$DT132,$DT$2&ROW($DT132)),$DS132,$DS$2&ROW($DS132)))","v":0},{"$f":"IF(AB132=\"\",0,\"X=\"&SUBSTITUTE(SUBSTITUTE(SUBSTITUTE(SUBSTITUTE(SUBSTITUTE(SUBSTITUTE(SUBSTITUTE(SUBSTITUTE(SUBSTITUTE(SUBSTITUTE(SUBSTITUTE(SUBSTITUTE(AB132,$ED132,$ED$2&ROW($ED132)),$EC132,$EC$2&ROW($EC132)),$EB132,$EB$2&ROW($EB132)),$EA132,$EA$2&ROW($EA132)),$DZ132,$DZ$2&ROW($DZ132)),$DY132,$DY$2&ROW($DY132)),$DX132,$DX$2&ROW($DX132)),$DW132,$DW$2&ROW($DW132)),$DV132,$DV$2&ROW($DV132)),$DU132,$DU$2&ROW($DU132)),$DT132,$DT$2&ROW($DT132)),$DS132,$DS$2&ROW($DS132)))","v":0},null,null,"{Factor:WinterCF}","{Factor:SummerCF}",{"$f":"IFERROR(INDEX($EG132:$IV132,MATCH(0,COUNTIF($DR132:DT132,$EG132:$IV132),0)),\"\")","v":"{Measure:Quantity}"},{"$f":"IFERROR(INDEX($EG132:$IV132,MATCH(0,COUNTIF($DR132:DU132,$EG132:$IV132),0)),\"\")","v":"{System Compressor Size (HP)}"},{"$f":"IFERROR(INDEX($EG132:$IV132,MATCH(0,COUNTIF($DR132:DV132,$EG132:$IV132),0)),\"\")","v":"{Weekly Hrs of Operation}"},{"$f":"IFERROR(INDEX($EG132:$IV132,MATCH(0,COUNTIF($DR132:DW132,$EG132:$IV132),0)),\"\")","v":"{Weeks Per Year}"},{"$f":"IFERROR(INDEX($EG132:$IV132,MATCH(0,COUNTIF($DR132:DX132,$EG132:$IV132),0)),\"\")","v":""},{"$f":"IFERROR(INDEX($EG132:$IV132,MATCH(0,COUNTIF($DR132:DY132,$EG132:$IV132),0)),\"\")","v":""},{"$f":"IFERROR(INDEX($EG132:$IV132,MATCH(0,COUNTIF($DR132:DZ132,$EG132:$IV132),0)),\"\")","v":""},{"$f":"IFERROR(INDEX($EG132:$IV132,MATCH(0,COUNTIF($DR132:EA132,$EG132:$IV132),0)),\"\")","v":""},{"$f":"IFERROR(INDEX($EG132:$IV132,MATCH(0,COUNTIF($DR132:EB132,$EG132:$IV132),0)),\"\")","v":""},{"$f":"IFERROR(INDEX($EG132:$IV132,MATCH(0,COUNTIF($DR132:EC132,$EG132:$IV132),0)),\"\")","v":""},null,null,{"$f":"IFERROR(MID($G132,FIND(CHAR(160),SUBSTITUTE($G132,\"{\",CHAR(160),EG$1)),FIND(CHAR(160),SUBSTITUTE($G132,\"}\",CHAR(160),EG$1))-FIND(CHAR(160),SUBSTITUTE($G132,\"{\",CHAR(160),EG$1))+1),\"\")","v":"{Measure:Quantity}"},{"$f":"IFERROR(MID($G132,FIND(CHAR(160),SUBSTITUTE($G132,\"{\",CHAR(160),EH$1)),FIND(CHAR(160),SUBSTITUTE($G132,\"}\",CHAR(160),EH$1))-FIND(CHAR(160),SUBSTITUTE($G132,\"{\",CHAR(160),EH$1))+1),\"\")","v":"{System Compressor Size (HP)}"},{"$f":"IFERROR(MID($G132,FIND(CHAR(160),SUBSTITUTE($G132,\"{\",CHAR(160),EI$1)),FIND(CHAR(160),SUBSTITUTE($G132,\"}\",CHAR(160),EI$1))-FIND(CHAR(160),SUBSTITUTE($G132,\"{\",CHAR(160),EI$1))+1),\"\")","v":""},{"$f":"IFERROR(MID($G132,FIND(CHAR(160),SUBSTITUTE($G132,\"{\",CHAR(160),EJ$1)),FIND(CHAR(160),SUBSTITUTE($G132,\"}\",CHAR(160),EJ$1))-FIND(CHAR(160),SUBSTITUTE($G132,\"{\",CHAR(160),EJ$1))+1),\"\")","v":""},{"$f":"IFERROR(MID($G132,FIND(CHAR(160),SUBSTITUTE($G132,\"{\",CHAR(160),EK$1)),FIND(CHAR(160),SUBSTITUTE($G132,\"}\",CHAR(160),EK$1))-FIND(CHAR(160),SUBSTITUTE($G132,\"{\",CHAR(160),EK$1))+1),\"\")","v":""},{"$f":"IFERROR(MID($G132,FIND(CHAR(160),SUBSTITUTE($G132,\"{\",CHAR(160),EL$1)),FIND(CHAR(160),SUBSTITUTE($G132,\"}\",CHAR(160),EL$1))-FIND(CHAR(160),SUBSTITUTE($G132,\"{\",CHAR(160),EL$1))+1),\"\")","v":""},{"$f":"IFERROR(MID($G132,FIND(CHAR(160),SUBSTITUTE($G132,\"{\",CHAR(160),EM$1)),FIND(CHAR(160),SUBSTITUTE($G132,\"}\",CHAR(160),EM$1))-FIND(CHAR(160),SUBSTITUTE($G132,\"{\",CHAR(160),EM$1))+1),\"\")","v":""},{"$f":"IFERROR(MID($G132,FIND(CHAR(160),SUBSTITUTE($G132,\"{\",CHAR(160),EN$1)),FIND(CHAR(160),SUBSTITUTE($G132,\"}\",CHAR(160),EN$1))-FIND(CHAR(160),SUBSTITUTE($G132,\"{\",CHAR(160),EN$1))+1),\"\")","v":""},{"$f":"IFERROR(MID($G132,FIND(CHAR(160),SUBSTITUTE($G132,\"{\",CHAR(160),EO$1)),FIND(CHAR(160),SUBSTITUTE($G132,\"}\",CHAR(160),EO$1))-FIND(CHAR(160),SUBSTITUTE($G132,\"{\",CHAR(160),EO$1))+1),\"\")","v":""},{"$f":"IFERROR(MID($G132,FIND(CHAR(160),SUBSTITUTE($G132,\"{\",CHAR(160),EP$1)),FIND(CHAR(160),SUBSTITUTE($G132,\"}\",CHAR(160),EP$1))-FIND(CHAR(160),SUBSTITUTE($G132,\"{\",CHAR(160),EP$1))+1),\"\")","v":""},{"$f":"IFERROR(MID($J132,FIND(CHAR(160),SUBSTITUTE($J132,\"{\",CHAR(160),EQ$1)),FIND(CHAR(160),SUBSTITUTE($J132,\"}\",CHAR(160),EQ$1))-FIND(CHAR(160),SUBSTITUTE($J132,\"{\",CHAR(160),EQ$1))+1),\"\")","v":""},{"$f":"IFERROR(MID($J132,FIND(CHAR(160),SUBSTITUTE($J132,\"{\",CHAR(160),ER$1)),FIND(CHAR(160),SUBSTITUTE($J132,\"}\",CHAR(160),ER$1))-FIND(CHAR(160),SUBSTITUTE($J132,\"{\",CHAR(160),ER$1))+1),\"\")","v":""},{"$f":"IFERROR(MID($J132,FIND(CHAR(160),SUBSTITUTE($J132,\"{\",CHAR(160),ES$1)),FIND(CHAR(160),SUBSTITUTE($J132,\"}\",CHAR(160),ES$1))-FIND(CHAR(160),SUBSTITUTE($J132,\"{\",CHAR(160),ES$1))+1),\"\")","v":""},{"$f":"IFERROR(MID($J132,FIND(CHAR(160),SUBSTITUTE($J132,\"{\",CHAR(160),ET$1)),FIND(CHAR(160),SUBSTITUTE($J132,\"}\",CHAR(160),ET$1))-FIND(CHAR(160),SUBSTITUTE($J132,\"{\",CHAR(160),ET$1))+1),\"\")","v":""},{"$f":"IFERROR(MID($J132,FIND(CHAR(160),SUBSTITUTE($J132,\"{\",CHAR(160),EU$1)),FIND(CHAR(160),SUBSTITUTE($J132,\"}\",CHAR(160),EU$1))-FIND(CHAR(160),SUBSTITUTE($J132,\"{\",CHAR(160),EU$1))+1),\"\")","v":""},{"$f":"IFERROR(MID($J132,FIND(CHAR(160),SUBSTITUTE($J132,\"{\",CHAR(160),EV$1)),FIND(CHAR(160),SUBSTITUTE($J132,\"}\",CHAR(160),EV$1))-FIND(CHAR(160),SUBSTITUTE($J132,\"{\",CHAR(160),EV$1))+1),\"\")","v":""},{"$f":"IFERROR(MID($J132,FIND(CHAR(160),SUBSTITUTE($J132,\"{\",CHAR(160),EW$1)),FIND(CHAR(160),SUBSTITUTE($J132,\"}\",CHAR(160),EW$1))-FIND(CHAR(160),SUBSTITUTE($J132,\"{\",CHAR(160),EW$1))+1),\"\")","v":""},{"$f":"IFERROR(MID($J132,FIND(CHAR(160),SUBSTITUTE($J132,\"{\",CHAR(160),EX$1)),FIND(CHAR(160),SUBSTITUTE($J132,\"}\",CHAR(160),EX$1))-FIND(CHAR(160),SUBSTITUTE($J132,\"{\",CHAR(160),EX$1))+1),\"\")","v":""},{"$f":"IFERROR(MID($J132,FIND(CHAR(160),SUBSTITUTE($J132,\"{\",CHAR(160),EY$1)),FIND(CHAR(160),SUBSTITUTE($J132,\"}\",CHAR(160),EY$1))-FIND(CHAR(160),SUBSTITUTE($J132,\"{\",CHAR(160),EY$1))+1),\"\")","v":""},{"$f":"IFERROR(MID($J132,FIND(CHAR(160),SUBSTITUTE($J132,\"{\",CHAR(160),EZ$1)),FIND(CHAR(160),SUBSTITUTE($J132,\"}\",CHAR(160),EZ$1))-FIND(CHAR(160),SUBSTITUTE($J132,\"{\",CHAR(160),EZ$1))+1),\"\")","v":""},{"$f":"IFERROR(MID($J132,FIND(CHAR(160),SUBSTITUTE($J132,\"{\",CHAR(160),FA$1)),FIND(CHAR(160),SUBSTITUTE($J132,\"}\",CHAR(160),FA$1))-FIND(CHAR(160),SUBSTITUTE($J132,\"{\",CHAR(160),FA$1))+1),\"\")","v":""},{"$f":"IFERROR(MID($J132,FIND(CHAR(160),SUBSTITUTE($J132,\"{\",CHAR(160),FB$1)),FIND(CHAR(160),SUBSTITUTE($J132,\"}\",CHAR(160),FB$1))-FIND(CHAR(160),SUBSTITUTE($J132,\"{\",CHAR(160),FB$1))+1),\"\")","v":""},{"$f":"IFERROR(MID($O132,FIND(CHAR(160),SUBSTITUTE($O132,\"{\",CHAR(160),FC$1)),FIND(CHAR(160),SUBSTITUTE($O132,\"}\",CHAR(160),FC$1))-FIND(CHAR(160),SUBSTITUTE($O132,\"{\",CHAR(160),FC$1))+1),\"\")","v":"{Weekly Hrs of Operation}"},{"$f":"IFERROR(MID($O132,FIND(CHAR(160),SUBSTITUTE($O132,\"{\",CHAR(160),FD$1)),FIND(CHAR(160),SUBSTITUTE($O132,\"}\",CHAR(160),FD$1))-FIND(CHAR(160),SUBSTITUTE($O132,\"{\",CHAR(160),FD$1))+1),\"\")","v":"{Weeks Per Year}"},{"$f":"IFERROR(MID($O132,FIND(CHAR(160),SUBSTITUTE($O132,\"{\",CHAR(160),FE$1)),FIND(CHAR(160),SUBSTITUTE($O132,\"}\",CHAR(160),FE$1))-FIND(CHAR(160),SUBSTITUTE($O132,\"{\",CHAR(160),FE$1))+1),\"\")","v":""},{"$f":"IFERROR(MID($O132,FIND(CHAR(160),SUBSTITUTE($O132,\"{\",CHAR(160),FF$1)),FIND(CHAR(160),SUBSTITUTE($O132,\"}\",CHAR(160),FF$1))-FIND(CHAR(160),SUBSTITUTE($O132,\"{\",CHAR(160),FF$1))+1),\"\")","v":""},{"$f":"IFERROR(MID($O132,FIND(CHAR(160),SUBSTITUTE($O132,\"{\",CHAR(160),FG$1)),FIND(CHAR(160),SUBSTITUTE($O132,\"}\",CHAR(160),FG$1))-FIND(CHAR(160),SUBSTITUTE($O132,\"{\",CHAR(160),FG$1))+1),\"\")","v":""},{"$f":"IFERROR(MID($O132,FIND(CHAR(160),SUBSTITUTE($O132,\"{\",CHAR(160),FH$1)),FIND(CHAR(160),SUBSTITUTE($O132,\"}\",CHAR(160),FH$1))-FIND(CHAR(160),SUBSTITUTE($O132,\"{\",CHAR(160),FH$1))+1),\"\")","v":""},{"$f":"IFERROR(MID($O132,FIND(CHAR(160),SUBSTITUTE($O132,\"{\",CHAR(160),FI$1)),FIND(CHAR(160),SUBSTITUTE($O132,\"}\",CHAR(160),FI$1))-FIND(CHAR(160),SUBSTITUTE($O132,\"{\",CHAR(160),FI$1))+1),\"\")","v":""},{"$f":"IFERROR(MID($O132,FIND(CHAR(160),SUBSTITUTE($O132,\"{\",CHAR(160),FJ$1)),FIND(CHAR(160),SUBSTITUTE($O132,\"}\",CHAR(160),FJ$1))-FIND(CHAR(160),SUBSTITUTE($O132,\"{\",CHAR(160),FJ$1))+1),\"\")","v":""},{"$f":"IFERROR(MID($O132,FIND(CHAR(160),SUBSTITUTE($O132,\"{\",CHAR(160),FK$1)),FIND(CHAR(160),SUBSTITUTE($O132,\"}\",CHAR(160),FK$1))-FIND(CHAR(160),SUBSTITUTE($O132,\"{\",CHAR(160),FK$1))+1),\"\")","v":"{Measure:Quantity}"},{"$f":"IFERROR(MID($O132,FIND(CHAR(160),SUBSTITUTE($O132,\"{\",CHAR(160),FL$1)),FIND(CHAR(160),SUBSTITUTE($O132,\"}\",CHAR(160),FL$1))-FIND(CHAR(160),SUBSTITUTE($O132,\"{\",CHAR(160),FL$1))+1),\"\")","v":"{System Compressor Size (HP)}"},{"$f":"IFERROR(MID($R132,FIND(CHAR(160),SUBSTITUTE($R132,\"{\",CHAR(160),FM$1)),FIND(CHAR(160),SUBSTITUTE($R132,\"}\",CHAR(160),FM$1))-FIND(CHAR(160),SUBSTITUTE($R132,\"{\",CHAR(160),FM$1))+1),\"\")","v":""},{"$f":"IFERROR(MID($R132,FIND(CHAR(160),SUBSTITUTE($R132,\"{\",CHAR(160),FN$1)),FIND(CHAR(160),SUBSTITUTE($R132,\"}\",CHAR(160),FN$1))-FIND(CHAR(160),SUBSTITUTE($R132,\"{\",CHAR(160),FN$1))+1),\"\")","v":""},{"$f":"IFERROR(MID($R132,FIND(CHAR(160),SUBSTITUTE($R132,\"{\",CHAR(160),FO$1)),FIND(CHAR(160),SUBSTITUTE($R132,\"}\",CHAR(160),FO$1))-FIND(CHAR(160),SUBSTITUTE($R132,\"{\",CHAR(160),FO$1))+1),\"\")","v":""},{"$f":"IFERROR(MID($R132,FIND(CHAR(160),SUBSTITUTE($R132,\"{\",CHAR(160),FP$1)),FIND(CHAR(160),SUBSTITUTE($R132,\"}\",CHAR(160),FP$1))-FIND(CHAR(160),SUBSTITUTE($R132,\"{\",CHAR(160),FP$1))+1),\"\")","v":""},{"$f":"IFERROR(MID($R132,FIND(CHAR(160),SUBSTITUTE($R132,\"{\",CHAR(160),FQ$1)),FIND(CHAR(160),SUBSTITUTE($R132,\"}\",CHAR(160),FQ$1))-FIND(CHAR(160),SUBSTITUTE($R132,\"{\",CHAR(160),FQ$1))+1),\"\")","v":""},{"$f":"IFERROR(MID($R132,FIND(CHAR(160),SUBSTITUTE($R132,\"{\",CHAR(160),FR$1)),FIND(CHAR(160),SUBSTITUTE($R132,\"}\",CHAR(160),FR$1))-FIND(CHAR(160),SUBSTITUTE($R132,\"{\",CHAR(160),FR$1))+1),\"\")","v":""},{"$f":"IFERROR(MID($R132,FIND(CHAR(160),SUBSTITUTE($R132,\"{\",CHAR(160),FS$1)),FIND(CHAR(160),SUBSTITUTE($R132,\"}\",CHAR(160),FS$1))-FIND(CHAR(160),SUBSTITUTE($R132,\"{\",CHAR(160),FS$1))+1),\"\")","v":""},{"$f":"IFERROR(MID($R132,FIND(CHAR(160),SUBSTITUTE($R132,\"{\",CHAR(160),FT$1)),FIND(CHAR(160),SUBSTITUTE($R132,\"}\",CHAR(160),FT$1))-FIND(CHAR(160),SUBSTITUTE($R132,\"{\",CHAR(160),FT$1))+1),\"\")","v":""},{"$f":"IFERROR(MID($R132,FIND(CHAR(160),SUBSTITUTE($R132,\"{\",CHAR(160),FU$1)),FIND(CHAR(160),SUBSTITUTE($R132,\"}\",CHAR(160),FU$1))-FIND(CHAR(160),SUBSTITUTE($R132,\"{\",CHAR(160),FU$1))+1),\"\")","v":"{Measure:Quantity}"},{"$f":"IFERROR(MID($R132,FIND(CHAR(160),SUBSTITUTE($R132,\"{\",CHAR(160),FV$1)),FIND(CHAR(160),SUBSTITUTE($R132,\"}\",CHAR(160),FV$1))-FIND(CHAR(160),SUBSTITUTE($R132,\"{\",CHAR(160),FV$1))+1),\"\")","v":"{System Compressor Size (HP)}"},{"$f":"IFERROR(MID($U132,FIND(CHAR(160),SUBSTITUTE($U132,\"{\",CHAR(160),FW$1)),FIND(CHAR(160),SUBSTITUTE($U132,\"}\",CHAR(160),FW$1))-FIND(CHAR(160),SUBSTITUTE($U132,\"{\",CHAR(160),FW$1))+1),\"\")","v":"{Factor:WinterCF}"},{"$f":"IFERROR(MID($U132,FIND(CHAR(160),SUBSTITUTE($U132,\"{\",CHAR(160),FX$1)),FIND(CHAR(160),SUBSTITUTE($U132,\"}\",CHAR(160),FX$1))-FIND(CHAR(160),SUBSTITUTE($U132,\"{\",CHAR(160),FX$1))+1),\"\")","v":""},{"$f":"IFERROR(MID($U132,FIND(CHAR(160),SUBSTITUTE($U132,\"{\",CHAR(160),FY$1)),FIND(CHAR(160),SUBSTITUTE($U132,\"}\",CHAR(160),FY$1))-FIND(CHAR(160),SUBSTITUTE($U132,\"{\",CHAR(160),FY$1))+1),\"\")","v":""},{"$f":"IFERROR(MID($U132,FIND(CHAR(160),SUBSTITUTE($U132,\"{\",CHAR(160),FZ$1)),FIND(CHAR(160),SUBSTITUTE($U132,\"}\",CHAR(160),FZ$1))-FIND(CHAR(160),SUBSTITUTE($U132,\"{\",CHAR(160),FZ$1))+1),\"\")","v":""},{"$f":"IFERROR(MID($U132,FIND(CHAR(160),SUBSTITUTE($U132,\"{\",CHAR(160),GA$1)),FIND(CHAR(160),SUBSTITUTE($U132,\"}\",CHAR(160),GA$1))-FIND(CHAR(160),SUBSTITUTE($U132,\"{\",CHAR(160),GA$1))+1),\"\")","v":""},{"$f":"IFERROR(MID($U132,FIND(CHAR(160),SUBSTITUTE($U132,\"{\",CHAR(160),GB$1)),FIND(CHAR(160),SUBSTITUTE($U132,\"}\",CHAR(160),GB$1))-FIND(CHAR(160),SUBSTITUTE($U132,\"{\",CHAR(160),GB$1))+1),\"\")","v":""},{"$f":"IFERROR(MID($U132,FIND(CHAR(160),SUBSTITUTE($U132,\"{\",CHAR(160),GC$1)),FIND(CHAR(160),SUBSTITUTE($U132,\"}\",CHAR(160),GC$1))-FIND(CHAR(160),SUBSTITUTE($U132,\"{\",CHAR(160),GC$1))+1),\"\")","v":""},{"$f":"IFERROR(MID($U132,FIND(CHAR(160),SUBSTITUTE($U132,\"{\",CHAR(160),GD$1)),FIND(CHAR(160),SUBSTITUTE($U132,\"}\",CHAR(160),GD$1))-FIND(CHAR(160),SUBSTITUTE($U132,\"{\",CHAR(160),GD$1))+1),\"\")","v":""},{"$f":"IFERROR(MID($U132,FIND(CHAR(160),SUBSTITUTE($U132,\"{\",CHAR(160),GE$1)),FIND(CHAR(160),SUBSTITUTE($U132,\"}\",CHAR(160),GE$1))-FIND(CHAR(160),SUBSTITUTE($U132,\"{\",CHAR(160),GE$1))+1),\"\")","v":"{Measure:Quantity}"},{"$f":"IFERROR(MID($U132,FIND(CHAR(160),SUBSTITUTE($U132,\"{\",CHAR(160),GF$1)),FIND(CHAR(160),SUBSTITUTE($U132,\"}\",CHAR(160),GF$1))-FIND(CHAR(160),SUBSTITUTE($U132,\"{\",CHAR(160),GF$1))+1),\"\")","v":"{System Compressor Size (HP)}"},{"$f":"IFERROR(MID($V132,FIND(CHAR(160),SUBSTITUTE($V132,\"{\",CHAR(160),GG$1)),FIND(CHAR(160),SUBSTITUTE($V132,\"}\",CHAR(160),GG$1))-FIND(CHAR(160),SUBSTITUTE($V132,\"{\",CHAR(160),GG$1))+1),\"\")","v":"{Factor:SummerCF}"},{"$f":"IFERROR(MID($V132,FIND(CHAR(160),SUBSTITUTE($V132,\"{\",CHAR(160),GH$1)),FIND(CHAR(160),SUBSTITUTE($V132,\"}\",CHAR(160),GH$1))-FIND(CHAR(160),SUBSTITUTE($V132,\"{\",CHAR(160),GH$1))+1),\"\")","v":""},{"$f":"IFERROR(MID($V132,FIND(CHAR(160),SUBSTITUTE($V132,\"{\",CHAR(160),GI$1)),FIND(CHAR(160),SUBSTITUTE($V132,\"}\",CHAR(160),GI$1))-FIND(CHAR(160),SUBSTITUTE($V132,\"{\",CHAR(160),GI$1))+1),\"\")","v":""},{"$f":"IFERROR(MID($V132,FIND(CHAR(160),SUBSTITUTE($V132,\"{\",CHAR(160),GJ$1)),FIND(CHAR(160),SUBSTITUTE($V132,\"}\",CHAR(160),GJ$1))-FIND(CHAR(160),SUBSTITUTE($V132,\"{\",CHAR(160),GJ$1))+1),\"\")","v":""},{"$f":"IFERROR(MID($V132,FIND(CHAR(160),SUBSTITUTE($V132,\"{\",CHAR(160),GK$1)),FIND(CHAR(160),SUBSTITUTE($V132,\"}\",CHAR(160),GK$1))-FIND(CHAR(160),SUBSTITUTE($V132,\"{\",CHAR(160),GK$1))+1),\"\")","v":""},{"$f":"IFERROR(MID($V132,FIND(CHAR(160),SUBSTITUTE($V132,\"{\",CHAR(160),GL$1)),FIND(CHAR(160),SUBSTITUTE($V132,\"}\",CHAR(160),GL$1))-FIND(CHAR(160),SUBSTITUTE($V132,\"{\",CHAR(160),GL$1))+1),\"\")","v":""},{"$f":"IFERROR(MID($V132,FIND(CHAR(160),SUBSTITUTE($V132,\"{\",CHAR(160),GM$1)),FIND(CHAR(160),SUBSTITUTE($V132,\"}\",CHAR(160),GM$1))-FIND(CHAR(160),SUBSTITUTE($V132,\"{\",CHAR(160),GM$1))+1),\"\")","v":""},{"$f":"IFERROR(MID($V132,FIND(CHAR(160),SUBSTITUTE($V132,\"{\",CHAR(160),GN$1)),FIND(CHAR(160),SUBSTITUTE($V132,\"}\",CHAR(160),GN$1))-FIND(CHAR(160),SUBSTITUTE($V132,\"{\",CHAR(160),GN$1))+1),\"\")","v":""},{"$f":"IFERROR(MID($V132,FIND(CHAR(160),SUBSTITUTE($V132,\"{\",CHAR(160),GO$1)),FIND(CHAR(160),SUBSTITUTE($V132,\"}\",CHAR(160),GO$1))-FIND(CHAR(160),SUBSTITUTE($V132,\"{\",CHAR(160),GO$1))+1),\"\")","v":"{Measure:Quantity}"},{"$f":"IFERROR(MID($V132,FIND(CHAR(160),SUBSTITUTE($V132,\"{\",CHAR(160),GP$1)),FIND(CHAR(160),SUBSTITUTE($V132,\"}\",CHAR(160),GP$1))-FIND(CHAR(160),SUBSTITUTE($V132,\"{\",CHAR(160),GP$1))+1),\"\")","v":"{System Compressor Size (HP)}"},{"$f":"IFERROR(MID($W132,FIND(CHAR(160),SUBSTITUTE($W132,\"{\",CHAR(160),GQ$1)),FIND(CHAR(160),SUBSTITUTE($W132,\"}\",CHAR(160),GQ$1))-FIND(CHAR(160),SUBSTITUTE($W132,\"{\",CHAR(160),GQ$1))+1),\"\")","v":""},{"$f":"IFERROR(MID($W132,FIND(CHAR(160),SUBSTITUTE($W132,\"{\",CHAR(160),GR$1)),FIND(CHAR(160),SUBSTITUTE($W132,\"}\",CHAR(160),GR$1))-FIND(CHAR(160),SUBSTITUTE($W132,\"{\",CHAR(160),GR$1))+1),\"\")","v":""},{"$f":"IFERROR(MID($W132,FIND(CHAR(160),SUBSTITUTE($W132,\"{\",CHAR(160),GS$1)),FIND(CHAR(160),SUBSTITUTE($W132,\"}\",CHAR(160),GS$1))-FIND(CHAR(160),SUBSTITUTE($W132,\"{\",CHAR(160),GS$1))+1),\"\")","v":""},{"$f":"IFERROR(MID($W132,FIND(CHAR(160),SUBSTITUTE($W132,\"{\",CHAR(160),GT$1)),FIND(CHAR(160),SUBSTITUTE($W132,\"}\",CHAR(160),GT$1))-FIND(CHAR(160),SUBSTITUTE($W132,\"{\",CHAR(160),GT$1))+1),\"\")","v":""},{"$f":"IFERROR(MID($W132,FIND(CHAR(160),SUBSTITUTE($W132,\"{\",CHAR(160),GU$1)),FIND(CHAR(160),SUBSTITUTE($W132,\"}\",CHAR(160),GU$1))-FIND(CHAR(160),SUBSTITUTE($W132,\"{\",CHAR(160),GU$1))+1),\"\")","v":""},{"$f":"IFERROR(MID($W132,FIND(CHAR(160),SUBSTITUTE($W132,\"{\",CHAR(160),GV$1)),FIND(CHAR(160),SUBSTITUTE($W132,\"}\",CHAR(160),GV$1))-FIND(CHAR(160),SUBSTITUTE($W132,\"{\",CHAR(160),GV$1))+1),\"\")","v":""},{"$f":"IFERROR(MID($W132,FIND(CHAR(160),SUBSTITUTE($W132,\"{\",CHAR(160),GW$1)),FIND(CHAR(160),SUBSTITUTE($W132,\"}\",CHAR(160),GW$1))-FIND(CHAR(160),SUBSTITUTE($W132,\"{\",CHAR(160),GW$1))+1),\"\")","v":""},{"$f":"IFERROR(MID($W132,FIND(CHAR(160),SUBSTITUTE($W132,\"{\",CHAR(160),GX$1)),FIND(CHAR(160),SUBSTITUTE($W132,\"}\",CHAR(160),GX$1))-FIND(CHAR(160),SUBSTITUTE($W132,\"{\",CHAR(160),GX$1))+1),\"\")","v":""},{"$f":"IFERROR(MID($W132,FIND(CHAR(160),SUBSTITUTE($W132,\"{\",CHAR(160),GY$1)),FIND(CHAR(160),SUBSTITUTE($W132,\"}\",CHAR(160),GY$1))-FIND(CHAR(160),SUBSTITUTE($W132,\"{\",CHAR(160),GY$1))+1),\"\")","v":""},{"$f":"IFERROR(MID($W132,FIND(CHAR(160),SUBSTITUTE($W132,\"{\",CHAR(160),GZ$1)),FIND(CHAR(160),SUBSTITUTE($W132,\"}\",CHAR(160),GZ$1))-FIND(CHAR(160),SUBSTITUTE($W132,\"{\",CHAR(160),GZ$1))+1),\"\")","v":""},{"$f":"IFERROR(MID($X132,FIND(CHAR(160),SUBSTITUTE($X132,\"{\",CHAR(160),HA$1)),FIND(CHAR(160),SUBSTITUTE($X132,\"}\",CHAR(160),HA$1))-FIND(CHAR(160),SUBSTITUTE($X132,\"{\",CHAR(160),HA$1))+1),\"\")","v":""},{"$f":"IFERROR(MID($X132,FIND(CHAR(160),SUBSTITUTE($X132,\"{\",CHAR(160),HB$1)),FIND(CHAR(160),SUBSTITUTE($X132,\"}\",CHAR(160),HB$1))-FIND(CHAR(160),SUBSTITUTE($X132,\"{\",CHAR(160),HB$1))+1),\"\")","v":""},{"$f":"IFERROR(MID($X132,FIND(CHAR(160),SUBSTITUTE($X132,\"{\",CHAR(160),HC$1)),FIND(CHAR(160),SUBSTITUTE($X132,\"}\",CHAR(160),HC$1))-FIND(CHAR(160),SUBSTITUTE($X132,\"{\",CHAR(160),HC$1))+1),\"\")","v":""},{"$f":"IFERROR(MID($X132,FIND(CHAR(160),SUBSTITUTE($X132,\"{\",CHAR(160),HD$1)),FIND(CHAR(160),SUBSTITUTE($X132,\"}\",CHAR(160),HD$1))-FIND(CHAR(160),SUBSTITUTE($X132,\"{\",CHAR(160),HD$1))+1),\"\")","v":""},{"$f":"IFERROR(MID($X132,FIND(CHAR(160),SUBSTITUTE($X132,\"{\",CHAR(160),HE$1)),FIND(CHAR(160),SUBSTITUTE($X132,\"}\",CHAR(160),HE$1))-FIND(CHAR(160),SUBSTITUTE($X132,\"{\",CHAR(160),HE$1))+1),\"\")","v":""},{"$f":"IFERROR(MID($X132,FIND(CHAR(160),SUBSTITUTE($X132,\"{\",CHAR(160),HF$1)),FIND(CHAR(160),SUBSTITUTE($X132,\"}\",CHAR(160),HF$1))-FIND(CHAR(160),SUBSTITUTE($X132,\"{\",CHAR(160),HF$1))+1),\"\")","v":""},{"$f":"IFERROR(MID($X132,FIND(CHAR(160),SUBSTITUTE($X132,\"{\",CHAR(160),HG$1)),FIND(CHAR(160),SUBSTITUTE($X132,\"}\",CHAR(160),HG$1))-FIND(CHAR(160),SUBSTITUTE($X132,\"{\",CHAR(160),HG$1))+1),\"\")","v":""},{"$f":"IFERROR(MID($X132,FIND(CHAR(160),SUBSTITUTE($X132,\"{\",CHAR(160),HH$1)),FIND(CHAR(160),SUBSTITUTE($X132,\"}\",CHAR(160),HH$1))-FIND(CHAR(160),SUBSTITUTE($X132,\"{\",CHAR(160),HH$1))+1),\"\")","v":""},{"$f":"IFERROR(MID($X132,FIND(CHAR(160),SUBSTITUTE($X132,\"{\",CHAR(160),HI$1)),FIND(CHAR(160),SUBSTITUTE($X132,\"}\",CHAR(160),HI$1))-FIND(CHAR(160),SUBSTITUTE($X132,\"{\",CHAR(160),HI$1))+1),\"\")","v":""},{"$f":"IFERROR(MID($X132,FIND(CHAR(160),SUBSTITUTE($X132,\"{\",CHAR(160),HJ$1)),FIND(CHAR(160),SUBSTITUTE($X132,\"}\",CHAR(160),HJ$1))-FIND(CHAR(160),SUBSTITUTE($X132,\"{\",CHAR(160),HJ$1))+1),\"\")","v":""},{"$f":"IFERROR(MID($Y132,FIND(CHAR(160),SUBSTITUTE($Y132,\"{\",CHAR(160),HK$1)),FIND(CHAR(160),SUBSTITUTE($Y132,\"}\",CHAR(160),HK$1))-FIND(CHAR(160),SUBSTITUTE($Y132,\"{\",CHAR(160),HK$1))+1),\"\")","v":""},{"$f":"IFERROR(MID($Y132,FIND(CHAR(160),SUBSTITUTE($Y132,\"{\",CHAR(160),HL$1)),FIND(CHAR(160),SUBSTITUTE($Y132,\"}\",CHAR(160),HL$1))-FIND(CHAR(160),SUBSTITUTE($Y132,\"{\",CHAR(160),HL$1))+1),\"\")","v":""},{"$f":"IFERROR(MID($Y132,FIND(CHAR(160),SUBSTITUTE($Y132,\"{\",CHAR(160),HM$1)),FIND(CHAR(160),SUBSTITUTE($Y132,\"}\",CHAR(160),HM$1))-FIND(CHAR(160),SUBSTITUTE($Y132,\"{\",CHAR(160),HM$1))+1),\"\")","v":""},{"$f":"IFERROR(MID($Y132,FIND(CHAR(160),SUBSTITUTE($Y132,\"{\",CHAR(160),HN$1)),FIND(CHAR(160),SUBSTITUTE($Y132,\"}\",CHAR(160),HN$1))-FIND(CHAR(160),SUBSTITUTE($Y132,\"{\",CHAR(160),HN$1))+1),\"\")","v":""},{"$f":"IFERROR(MID($Y132,FIND(CHAR(160),SUBSTITUTE($Y132,\"{\",CHAR(160),HO$1)),FIND(CHAR(160),SUBSTITUTE($Y132,\"}\",CHAR(160),HO$1))-FIND(CHAR(160),SUBSTITUTE($Y132,\"{\",CHAR(160),HO$1))+1),\"\")","v":""},{"$f":"IFERROR(MID($Y132,FIND(CHAR(160),SUBSTITUTE($Y132,\"{\",CHAR(160),HP$1)),FIND(CHAR(160),SUBSTITUTE($Y132,\"}\",CHAR(160),HP$1))-FIND(CHAR(160),SUBSTITUTE($Y132,\"{\",CHAR(160),HP$1))+1),\"\")","v":""},{"$f":"IFERROR(MID($Y132,FIND(CHAR(160),SUBSTITUTE($Y132,\"{\",CHAR(160),HQ$1)),FIND(CHAR(160),SUBSTITUTE($Y132,\"}\",CHAR(160),HQ$1))-FIND(CHAR(160),SUBSTITUTE($Y132,\"{\",CHAR(160),HQ$1))+1),\"\")","v":""},{"$f":"IFERROR(MID($Y132,FIND(CHAR(160),SUBSTITUTE($Y132,\"{\",CHAR(160),HR$1)),FIND(CHAR(160),SUBSTITUTE($Y132,\"}\",CHAR(160),HR$1))-FIND(CHAR(160),SUBSTITUTE($Y132,\"{\",CHAR(160),HR$1))+1),\"\")","v":""},{"$f":"IFERROR(MID($Y132,FIND(CHAR(160),SUBSTITUTE($Y132,\"{\",CHAR(160),HS$1)),FIND(CHAR(160),SUBSTITUTE($Y132,\"}\",CHAR(160),HS$1))-FIND(CHAR(160),SUBSTITUTE($Y132,\"{\",CHAR(160),HS$1))+1),\"\")","v":""},{"$f":"IFERROR(MID($Y132,FIND(CHAR(160),SUBSTITUTE($Y132,\"{\",CHAR(160),HT$1)),FIND(CHAR(160),SUBSTITUTE($Y132,\"}\",CHAR(160),HT$1))-FIND(CHAR(160),SUBSTITUTE($Y132,\"{\",CHAR(160),HT$1))+1),\"\")","v":""},{"$f":"IFERROR(MID($Z132,FIND(CHAR(160),SUBSTITUTE($Z132,\"{\",CHAR(160),HU$1)),FIND(CHAR(160),SUBSTITUTE($Z132,\"}\",CHAR(160),HU$1))-FIND(CHAR(160),SUBSTITUTE($Z132,\"{\",CHAR(160),HU$1))+1),\"\")","v":""},{"$f":"IFERROR(MID($Z132,FIND(CHAR(160),SUBSTITUTE($Z132,\"{\",CHAR(160),HV$1)),FIND(CHAR(160),SUBSTITUTE($Z132,\"}\",CHAR(160),HV$1))-FIND(CHAR(160),SUBSTITUTE($Z132,\"{\",CHAR(160),HV$1))+1),\"\")","v":""},{"$f":"IFERROR(MID($Z132,FIND(CHAR(160),SUBSTITUTE($Z132,\"{\",CHAR(160),HW$1)),FIND(CHAR(160),SUBSTITUTE($Z132,\"}\",CHAR(160),HW$1))-FIND(CHAR(160),SUBSTITUTE($Z132,\"{\",CHAR(160),HW$1))+1),\"\")","v":""},{"$f":"IFERROR(MID($Z132,FIND(CHAR(160),SUBSTITUTE($Z132,\"{\",CHAR(160),HX$1)),FIND(CHAR(160),SUBSTITUTE($Z132,\"}\",CHAR(160),HX$1))-FIND(CHAR(160),SUBSTITUTE($Z132,\"{\",CHAR(160),HX$1))+1),\"\")","v":""},{"$f":"IFERROR(MID($Z132,FIND(CHAR(160),SUBSTITUTE($Z132,\"{\",CHAR(160),HY$1)),FIND(CHAR(160),SUBSTITUTE($Z132,\"}\",CHAR(160),HY$1))-FIND(CHAR(160),SUBSTITUTE($Z132,\"{\",CHAR(160),HY$1))+1),\"\")","v":""},{"$f":"IFERROR(MID($Z132,FIND(CHAR(160),SUBSTITUTE($Z132,\"{\",CHAR(160),HZ$1)),FIND(CHAR(160),SUBSTITUTE($Z132,\"}\",CHAR(160),HZ$1))-FIND(CHAR(160),SUBSTITUTE($Z132,\"{\",CHAR(160),HZ$1))+1),\"\")","v":""},{"$f":"IFERROR(MID($Z132,FIND(CHAR(160),SUBSTITUTE($Z132,\"{\",CHAR(160),IA$1)),FIND(CHAR(160),SUBSTITUTE($Z132,\"}\",CHAR(160),IA$1))-FIND(CHAR(160),SUBSTITUTE($Z132,\"{\",CHAR(160),IA$1))+1),\"\")","v":""},{"$f":"IFERROR(MID($Z132,FIND(CHAR(160),SUBSTITUTE($Z132,\"{\",CHAR(160),IB$1)),FIND(CHAR(160),SUBSTITUTE($Z132,\"}\",CHAR(160),IB$1))-FIND(CHAR(160),SUBSTITUTE($Z132,\"{\",CHAR(160),IB$1))+1),\"\")","v":""},{"$f":"IFERROR(MID($Z132,FIND(CHAR(160),SUBSTITUTE($Z132,\"{\",CHAR(160),IC$1)),FIND(CHAR(160),SUBSTITUTE($Z132,\"}\",CHAR(160),IC$1))-FIND(CHAR(160),SUBSTITUTE($Z132,\"{\",CHAR(160),IC$1))+1),\"\")","v":""},{"$f":"IFERROR(MID($Z132,FIND(CHAR(160),SUBSTITUTE($Z132,\"{\",CHAR(160),ID$1)),FIND(CHAR(160),SUBSTITUTE($Z132,\"}\",CHAR(160),ID$1))-FIND(CHAR(160),SUBSTITUTE($Z132,\"{\",CHAR(160),ID$1))+1),\"\")","v":""},{"$f":"IFERROR(MID($AA132,FIND(CHAR(160),SUBSTITUTE($AA132,\"{\",CHAR(160),IE$1)),FIND(CHAR(160),SUBSTITUTE($AA132,\"}\",CHAR(160),IE$1))-FIND(CHAR(160),SUBSTITUTE($AA132,\"{\",CHAR(160),IE$1))+1),\"\")","v":""},{"$f":"IFERROR(MID($AA132,FIND(CHAR(160),SUBSTITUTE($AA132,\"{\",CHAR(160),IF$1)),FIND(CHAR(160),SUBSTITUTE($AA132,\"}\",CHAR(160),IF$1))-FIND(CHAR(160),SUBSTITUTE($AA132,\"{\",CHAR(160),IF$1))+1),\"\")","v":""},{"$f":"IFERROR(MID($AA132,FIND(CHAR(160),SUBSTITUTE($AA132,\"{\",CHAR(160),IG$1)),FIND(CHAR(160),SUBSTITUTE($AA132,\"}\",CHAR(160),IG$1))-FIND(CHAR(160),SUBSTITUTE($AA132,\"{\",CHAR(160),IG$1))+1),\"\")","v":""},{"$f":"IFERROR(MID($AA132,FIND(CHAR(160),SUBSTITUTE($AA132,\"{\",CHAR(160),IH$1)),FIND(CHAR(160),SUBSTITUTE($AA132,\"}\",CHAR(160),IH$1))-FIND(CHAR(160),SUBSTITUTE($AA132,\"{\",CHAR(160),IH$1))+1),\"\")","v":""},{"$f":"IFERROR(MID($AA132,FIND(CHAR(160),SUBSTITUTE($AA132,\"{\",CHAR(160),II$1)),FIND(CHAR(160),SUBSTITUTE($AA132,\"}\",CHAR(160),II$1))-FIND(CHAR(160),SUBSTITUTE($AA132,\"{\",CHAR(160),II$1))+1),\"\")","v":""},{"$f":"IFERROR(MID($AA132,FIND(CHAR(160),SUBSTITUTE($AA132,\"{\",CHAR(160),IJ$1)),FIND(CHAR(160),SUBSTITUTE($AA132,\"}\",CHAR(160),IJ$1))-FIND(CHAR(160),SUBSTITUTE($AA132,\"{\",CHAR(160),IJ$1))+1),\"\")","v":""},{"$f":"IFERROR(MID($AA132,FIND(CHAR(160),SUBSTITUTE($AA132,\"{\",CHAR(160),IK$1)),FIND(CHAR(160),SUBSTITUTE($AA132,\"}\",CHAR(160),IK$1))-FIND(CHAR(160),SUBSTITUTE($AA132,\"{\",CHAR(160),IK$1))+1),\"\")","v":""},{"$f":"IFERROR(MID($AA132,FIND(CHAR(160),SUBSTITUTE($AA132,\"{\",CHAR(160),IL$1)),FIND(CHAR(160),SUBSTITUTE($AA132,\"}\",CHAR(160),IL$1))-FIND(CHAR(160),SUBSTITUTE($AA132,\"{\",CHAR(160),IL$1))+1),\"\")","v":""},{"$f":"IFERROR(MID($AA132,FIND(CHAR(160),SUBSTITUTE($AA132,\"{\",CHAR(160),IM$1)),FIND(CHAR(160),SUBSTITUTE($AA132,\"}\",CHAR(160),IM$1))-FIND(CHAR(160),SUBSTITUTE($AA132,\"{\",CHAR(160),IM$1))+1),\"\")","v":""},{"$f":"IFERROR(MID($AA132,FIND(CHAR(160),SUBSTITUTE($AA132,\"{\",CHAR(160),IN$1)),FIND(CHAR(160),SUBSTITUTE($AA132,\"}\",CHAR(160),IN$1))-FIND(CHAR(160),SUBSTITUTE($AA132,\"{\",CHAR(160),IN$1))+1),\"\")","v":""},{"$f":"IFERROR(MID($AB132,FIND(CHAR(160),SUBSTITUTE($AB132,\"{\",CHAR(160),IO$1)),FIND(CHAR(160),SUBSTITUTE($AB132,\"}\",CHAR(160),IO$1))-FIND(CHAR(160),SUBSTITUTE($AB132,\"{\",CHAR(160),IO$1))+1),\"\")","v":""},{"$f":"IFERROR(MID($AB132,FIND(CHAR(160),SUBSTITUTE($AB132,\"{\",CHAR(160),IP$1)),FIND(CHAR(160),SUBSTITUTE($AB132,\"}\",CHAR(160),IP$1))-FIND(CHAR(160),SUBSTITUTE($AB132,\"{\",CHAR(160),IP$1))+1),\"\")","v":""},{"$f":"IFERROR(MID($AB132,FIND(CHAR(160),SUBSTITUTE($AB132,\"{\",CHAR(160),IQ$1)),FIND(CHAR(160),SUBSTITUTE($AB132,\"}\",CHAR(160),IQ$1))-FIND(CHAR(160),SUBSTITUTE($AB132,\"{\",CHAR(160),IQ$1))+1),\"\")","v":""},{"$f":"IFERROR(MID($AB132,FIND(CHAR(160),SUBSTITUTE($AB132,\"{\",CHAR(160),IR$1)),FIND(CHAR(160),SUBSTITUTE($AB132,\"}\",CHAR(160),IR$1))-FIND(CHAR(160),SUBSTITUTE($AB132,\"{\",CHAR(160),IR$1))+1),\"\")","v":""},{"$f":"IFERROR(MID($AB132,FIND(CHAR(160),SUBSTITUTE($AB132,\"{\",CHAR(160),IS$1)),FIND(CHAR(160),SUBSTITUTE($AB132,\"}\",CHAR(160),IS$1))-FIND(CHAR(160),SUBSTITUTE($AB132,\"{\",CHAR(160),IS$1))+1),\"\")","v":""},{"$f":"IFERROR(MID($AB132,FIND(CHAR(160),SUBSTITUTE($AB132,\"{\",CHAR(160),IT$1)),FIND(CHAR(160),SUBSTITUTE($AB132,\"}\",CHAR(160),IT$1))-FIND(CHAR(160),SUBSTITUTE($AB132,\"{\",CHAR(160),IT$1))+1),\"\")","v":""},{"$f":"IFERROR(MID($AB132,FIND(CHAR(160),SUBSTITUTE($AB132,\"{\",CHAR(160),IU$1)),FIND(CHAR(160),SUBSTITUTE($AB132,\"}\",CHAR(160),IU$1))-FIND(CHAR(160),SUBSTITUTE($AB132,\"{\",CHAR(160),IU$1))+1),\"\")","v":""},{"$f":"IFERROR(MID($AB132,FIND(CHAR(160),SUBSTITUTE($AB132,\"{\",CHAR(160),IV$1)),FIND(CHAR(160),SUBSTITUTE($AB132,\"}\",CHAR(160),IV$1))-FIND(CHAR(160),SUBSTITUTE($AB132,\"{\",CHAR(160),IV$1))+1),\"\")","v":""},{"$f":"IFERROR(MID($AB132,FIND(CHAR(160),SUBSTITUTE($AB132,\"{\",CHAR(160),IW$1)),FIND(CHAR(160),SUBSTITUTE($AB132,\"}\",CHAR(160),IW$1))-FIND(CHAR(160),SUBSTITUTE($AB132,\"{\",CHAR(160),IW$1))+1),\"\")","v":""},{"$f":"IFERROR(MID($AB132,FIND(CHAR(160),SUBSTITUTE($AB132,\"{\",CHAR(160),IX$1)),FIND(CHAR(160),SUBSTITUTE($AB132,\"}\",CHAR(160),IX$1))-FIND(CHAR(160),SUBSTITUTE($AB132,\"{\",CHAR(160),IX$1))+1),\"\")","v":""},null,{"$f":"10-COUNTIF(DU132:ED132,\"\")","v":4}]
["C&I Prescriptive Compressed Air Solutions","LPD Filter - C31 - System Compressor Size (hp) - 16-25","LPD - C31","2021-07-01","2022-06-30","Calculated","{Measure:Quantity}*{System Compressor Size (HP)} * 4.60",0,"Per Measure",75,0,"2017-07-01","2022-06-30","Calculated","{Measure:Quantity} *{System Compressor Size (HP)} * 0.746 * 0.01 * {Weekly Hrs of Operation} * {Weeks Per Year}",1E-4,null,"{Measure:Quantity} *{System Compressor Size (HP)} * 0.746 * 0.01",null,null,"{Measure:Quantity} *{System Compressor Size (HP)} * 0.746 * 0.01 * {Factor:WinterCF}","{Measure:Quantity} *{System Compressor Size (HP)} * 0.746 * 0.01 * {Factor:SummerCF}",null,null,null,null,null,null,"2017-07-01","2022-06-30",4,0.7,0.91100000000000003,0.30399999999999999,0.36099999999999999,0.156,0.17899999999999999,1,1.1220000000000001,1,0.52,1.6E-2,null,{"$f":"DU133","v":"{Measure:Quantity}"},1,{"$f":"DV133","v":"{System Compressor Size (HP)}"},20,{"$f":"DW133","v":"{Weekly Hrs of Operation}"},50,{"$f":"DX133","v":"{Weeks Per Year}"},50,{"$f":"DY133","v":""},null,{"$f":"DZ133","v":""},null,{"$f":"EA133","v":""},null,{"$f":"EB133","v":""},null,{"$f":"EC133","v":""},null,{"$f":"ED133","v":""},null,{"$f":"AS133 *AU133 * 0.746 * 0.01 * AW133 * AY133","v":373},{"$f":"0.0001","v":1E-4},0,{"$f":"AS133 *AU133 * 0.746 * 0.01","v":0.1492},0,0,{"$f":"AS133 *AU133 * 0.746 * 0.01 * AF133","v":0.10443999999999999},{"$f":"AS133 *AU133 * 0.746 * 0.01 * AG133","v":0.13592119999999999},0,0,0,0,0,0,null,"Com","Default DR",{"$f":"Benefits(BL133,BR133,BS133,BT133,BU133,BV133,BW133,BX133,BY133,BZ133,AE133,AH133,AI133,AJ133,AK133,AL133,AM133,AN133,AO133,AP133,CA133,CB133)","v":190.08773832132022},199.36587087652231,0,0,0,0,0,0,0,{"$f":"SUMPRODUCT(CC133:CK133,--(CC133:CK133>0))","v":389.45360919784252},{"$f":"-SUMPRODUCT(CC133:CK133,--(CC133:CK133<0))","v":0},null,{"$f":"AS133*AU133 * 4.6","v":92},null,null,{"$f":"CM133+CO133","v":92},{"$f":"IF(NetOrGross=\"Net\",(1-AO133+AP133),1)","v":1},{"$f":"(SUMPRODUCT(CC133:CJ133,--(CC133:CJ133>0))+CN133)*CS133/((-SUMPRODUCT(CC133:CJ133,--(CC133:CJ133<0))+MAX(CO133,CV133)+CP133+CQ133)*CS133+IF(FRIncentives=\"Yes\",CV133*(1-CS133),0))","v":4.2331914043243755},13,{"$f":"75","v":75},null,"Electric","y",null,{"$f":"IF(F133=\"Manual Entry\",\"Manual\",IF(G133=\"\",0,\"X=\"&SUBSTITUTE(SUBSTITUTE(SUBSTITUTE(SUBSTITUTE(SUBSTITUTE(SUBSTITUTE(SUBSTITUTE(SUBSTITUTE(SUBSTITUTE(SUBSTITUTE(SUBSTITUTE(SUBSTITUTE(G133,$ED133,$ED$2&ROW($ED133)),$EC133,$EC$2&ROW($EC133)),$EB133,$EB$2&ROW($EB133)),$EA133,$EA$2&ROW($EA133)),$DZ133,$DZ$2&ROW($DZ133)),$DY133,$DY$2&ROW($DY133)),$DX133,$DX$2&ROW($DX133)),$DW133,$DW$2&ROW($DW133)),$DV133,$DV$2&ROW($DV133)),$DU133,$DU$2&ROW($DU133)),$DT133,$DT$2&ROW($DT133)),$DS133,$DS$2&ROW($DS133))))","v":"X=AS133*AU133 * 4.60"},{"$f":"IF(I133=\"Manual Entry\",\"Manual\",IF(J133=\"\",0,\"X=\"&SUBSTITUTE(SUBSTITUTE(SUBSTITUTE(SUBSTITUTE(SUBSTITUTE(SUBSTITUTE(SUBSTITUTE(SUBSTITUTE(SUBSTITUTE(SUBSTITUTE(SUBSTITUTE(SUBSTITUTE(J133,$ED133,$ED$2&ROW($ED133)),$EC133,$EC$2&ROW($EC133)),$EB133,$EB$2&ROW($EB133)),$EA133,$EA$2&ROW($EA133)),$DZ133,$DZ$2&ROW($DZ133)),$DY133,$DY$2&ROW($DY133)),$DX133,$DX$2&ROW($DX133)),$DW133,$DW$2&ROW($DW133)),$DV133,$DV$2&ROW($DV133)),$DU133,$DU$2&ROW($DU133)),$DT133,$DT$2&ROW($DT133)),$DS133,$DS$2&ROW($DS133))))","v":"X=75"},{"$f":"IF(O133=\"\",0,\"X=\"&SUBSTITUTE(SUBSTITUTE(SUBSTITUTE(SUBSTITUTE(SUBSTITUTE(SUBSTITUTE(SUBSTITUTE(SUBSTITUTE(SUBSTITUTE(SUBSTITUTE(SUBSTITUTE(SUBSTITUTE(O133,$ED133,$ED$2&ROW($ED133)),$EC133,$EC$2&ROW($EC133)),$EB133,$EB$2&ROW($EB133)),$EA133,$EA$2&ROW($EA133)),$DZ133,$DZ$2&ROW($DZ133)),$DY133,$DY$2&ROW($DY133)),$DX133,$DX$2&ROW($DX133)),$DW133,$DW$2&ROW($DW133)),$DV133,$DV$2&ROW($DV133)),$DU133,$DU$2&ROW($DU133)),$DT133,$DT$2&ROW($DT133)),$DS133,$DS$2&ROW($DS133)))","v":"X=AS133 *AU133 * 0.746 * 0.01 * AW133 * AY133"},{"$f":"IF(P133=\"\",0,\"X=\"&SUBSTITUTE(SUBSTITUTE(SUBSTITUTE(SUBSTITUTE(SUBSTITUTE(SUBSTITUTE(SUBSTITUTE(SUBSTITUTE(SUBSTITUTE(SUBSTITUTE(SUBSTITUTE(SUBSTITUTE(P133,$ED133,$ED$2&ROW($ED133)),$EC133,$EC$2&ROW($EC133)),$EB133,$EB$2&ROW($EB133)),$EA133,$EA$2&ROW($EA133)),$DZ133,$DZ$2&ROW($DZ133)),$DY133,$DY$2&ROW($DY133)),$DX133,$DX$2&ROW($DX133)),$DW133,$DW$2&ROW($DW133)),$DV133,$DV$2&ROW($DV133)),$DU133,$DU$2&ROW($DU133)),$DT133,$DT$2&ROW($DT133)),$DS133,$DS$2&ROW($DS133)))","v":"X=0.0001"},{"$f":"IF(Q133=\"\",0,\"X=\"&SUBSTITUTE(SUBSTITUTE(SUBSTITUTE(SUBSTITUTE(SUBSTITUTE(SUBSTITUTE(SUBSTITUTE(SUBSTITUTE(SUBSTITUTE(SUBSTITUTE(SUBSTITUTE(SUBSTITUTE(Q133,$ED133,$ED$2&ROW($ED133)),$EC133,$EC$2&ROW($EC133)),$EB133,$EB$2&ROW($EB133)),$EA133,$EA$2&ROW($EA133)),$DZ133,$DZ$2&ROW($DZ133)),$DY133,$DY$2&ROW($DY133)),$DX133,$DX$2&ROW($DX133)),$DW133,$DW$2&ROW($DW133)),$DV133,$DV$2&ROW($DV133)),$DU133,$DU$2&ROW($DU133)),$DT133,$DT$2&ROW($DT133)),$DS133,$DS$2&ROW($DS133)))","v":0},{"$f":"IF(R133=\"\",0,\"X=\"&SUBSTITUTE(SUBSTITUTE(SUBSTITUTE(SUBSTITUTE(SUBSTITUTE(SUBSTITUTE(SUBSTITUTE(SUBSTITUTE(SUBSTITUTE(SUBSTITUTE(SUBSTITUTE(SUBSTITUTE(R133,$ED133,$ED$2&ROW($ED133)),$EC133,$EC$2&ROW($EC133)),$EB133,$EB$2&ROW($EB133)),$EA133,$EA$2&ROW($EA133)),$DZ133,$DZ$2&ROW($DZ133)),$DY133,$DY$2&ROW($DY133)),$DX133,$DX$2&ROW($DX133)),$DW133,$DW$2&ROW($DW133)),$DV133,$DV$2&ROW($DV133)),$DU133,$DU$2&ROW($DU133)),$DT133,$DT$2&ROW($DT133)),$DS133,$DS$2&ROW($DS133)))","v":"X=AS133 *AU133 * 0.746 * 0.01"},{"$f":"IF(S133=\"\",0,\"X=\"&SUBSTITUTE(SUBSTITUTE(SUBSTITUTE(SUBSTITUTE(SUBSTITUTE(SUBSTITUTE(SUBSTITUTE(SUBSTITUTE(SUBSTITUTE(SUBSTITUTE(SUBSTITUTE(SUBSTITUTE(S133,$ED133,$ED$2&ROW($ED133)),$EC133,$EC$2&ROW($EC133)),$EB133,$EB$2&ROW($EB133)),$EA133,$EA$2&ROW($EA133)),$DZ133,$DZ$2&ROW($DZ133)),$DY133,$DY$2&ROW($DY133)),$DX133,$DX$2&ROW($DX133)),$DW133,$DW$2&ROW($DW133)),$DV133,$DV$2&ROW($DV133)),$DU133,$DU$2&ROW($DU133)),$DT133,$DT$2&ROW($DT133)),$DS133,$DS$2&ROW($DS133)))","v":0},{"$f":"IF(T133=\"\",0,\"X=\"&SUBSTITUTE(SUBSTITUTE(SUBSTITUTE(SUBSTITUTE(SUBSTITUTE(SUBSTITUTE(SUBSTITUTE(SUBSTITUTE(SUBSTITUTE(SUBSTITUTE(SUBSTITUTE(SUBSTITUTE(T133,$ED133,$ED$2&ROW($ED133)),$EC133,$EC$2&ROW($EC133)),$EB133,$EB$2&ROW($EB133)),$EA133,$EA$2&ROW($EA133)),$DZ133,$DZ$2&ROW($DZ133)),$DY133,$DY$2&ROW($DY133)),$DX133,$DX$2&ROW($DX133)),$DW133,$DW$2&ROW($DW133)),$DV133,$DV$2&ROW($DV133)),$DU133,$DU$2&ROW($DU133)),$DT133,$DT$2&ROW($DT133)),$DS133,$DS$2&ROW($DS133)))","v":0},{"$f":"IF(U133=\"\",0,\"X=\"&SUBSTITUTE(SUBSTITUTE(SUBSTITUTE(SUBSTITUTE(SUBSTITUTE(SUBSTITUTE(SUBSTITUTE(SUBSTITUTE(SUBSTITUTE(SUBSTITUTE(SUBSTITUTE(SUBSTITUTE(U133,$ED133,$ED$2&ROW($ED133)),$EC133,$EC$2&ROW($EC133)),$EB133,$EB$2&ROW($EB133)),$EA133,$EA$2&ROW($EA133)),$DZ133,$DZ$2&ROW($DZ133)),$DY133,$DY$2&ROW($DY133)),$DX133,$DX$2&ROW($DX133)),$DW133,$DW$2&ROW($DW133)),$DV133,$DV$2&ROW($DV133)),$DU133,$DU$2&ROW($DU133)),$DT133,$DT$2&ROW($DT133)),$DS133,$DS$2&ROW($DS133)))","v":"X=AS133 *AU133 * 0.746 * 0.01 * AF133"},{"$f":"IF(V133=\"\",0,\"X=\"&SUBSTITUTE(SUBSTITUTE(SUBSTITUTE(SUBSTITUTE(SUBSTITUTE(SUBSTITUTE(SUBSTITUTE(SUBSTITUTE(SUBSTITUTE(SUBSTITUTE(SUBSTITUTE(SUBSTITUTE(V133,$ED133,$ED$2&ROW($ED133)),$EC133,$EC$2&ROW($EC133)),$EB133,$EB$2&ROW($EB133)),$EA133,$EA$2&ROW($EA133)),$DZ133,$DZ$2&ROW($DZ133)),$DY133,$DY$2&ROW($DY133)),$DX133,$DX$2&ROW($DX133)),$DW133,$DW$2&ROW($DW133)),$DV133,$DV$2&ROW($DV133)),$DU133,$DU$2&ROW($DU133)),$DT133,$DT$2&ROW($DT133)),$DS133,$DS$2&ROW($DS133)))","v":"X=AS133 *AU133 * 0.746 * 0.01 * AG133"},{"$f":"IF(W133=\"\",0,\"X=\"&SUBSTITUTE(SUBSTITUTE(SUBSTITUTE(SUBSTITUTE(SUBSTITUTE(SUBSTITUTE(SUBSTITUTE(SUBSTITUTE(SUBSTITUTE(SUBSTITUTE(SUBSTITUTE(SUBSTITUTE(W133,$ED133,$ED$2&ROW($ED133)),$EC133,$EC$2&ROW($EC133)),$EB133,$EB$2&ROW($EB133)),$EA133,$EA$2&ROW($EA133)),$DZ133,$DZ$2&ROW($DZ133)),$DY133,$DY$2&ROW($DY133)),$DX133,$DX$2&ROW($DX133)),$DW133,$DW$2&ROW($DW133)),$DV133,$DV$2&ROW($DV133)),$DU133,$DU$2&ROW($DU133)),$DT133,$DT$2&ROW($DT133)),$DS133,$DS$2&ROW($DS133)))","v":0},{"$f":"IF(X133=\"\",0,\"X=\"&SUBSTITUTE(SUBSTITUTE(SUBSTITUTE(SUBSTITUTE(SUBSTITUTE(SUBSTITUTE(SUBSTITUTE(SUBSTITUTE(SUBSTITUTE(SUBSTITUTE(SUBSTITUTE(SUBSTITUTE(X133,$ED133,$ED$2&ROW($ED133)),$EC133,$EC$2&ROW($EC133)),$EB133,$EB$2&ROW($EB133)),$EA133,$EA$2&ROW($EA133)),$DZ133,$DZ$2&ROW($DZ133)),$DY133,$DY$2&ROW($DY133)),$DX133,$DX$2&ROW($DX133)),$DW133,$DW$2&ROW($DW133)),$DV133,$DV$2&ROW($DV133)),$DU133,$DU$2&ROW($DU133)),$DT133,$DT$2&ROW($DT133)),$DS133,$DS$2&ROW($DS133)))","v":0},{"$f":"IF(Y133=\"\",0,\"X=\"&SUBSTITUTE(SUBSTITUTE(SUBSTITUTE(SUBSTITUTE(SUBSTITUTE(SUBSTITUTE(SUBSTITUTE(SUBSTITUTE(SUBSTITUTE(SUBSTITUTE(SUBSTITUTE(SUBSTITUTE(Y133,$ED133,$ED$2&ROW($ED133)),$EC133,$EC$2&ROW($EC133)),$EB133,$EB$2&ROW($EB133)),$EA133,$EA$2&ROW($EA133)),$DZ133,$DZ$2&ROW($DZ133)),$DY133,$DY$2&ROW($DY133)),$DX133,$DX$2&ROW($DX133)),$DW133,$DW$2&ROW($DW133)),$DV133,$DV$2&ROW($DV133)),$DU133,$DU$2&ROW($DU133)),$DT133,$DT$2&ROW($DT133)),$DS133,$DS$2&ROW($DS133)))","v":0},{"$f":"IF(Z133=\"\",0,\"X=\"&SUBSTITUTE(SUBSTITUTE(SUBSTITUTE(SUBSTITUTE(SUBSTITUTE(SUBSTITUTE(SUBSTITUTE(SUBSTITUTE(SUBSTITUTE(SUBSTITUTE(SUBSTITUTE(SUBSTITUTE(Z133,$ED133,$ED$2&ROW($ED133)),$EC133,$EC$2&ROW($EC133)),$EB133,$EB$2&ROW($EB133)),$EA133,$EA$2&ROW($EA133)),$DZ133,$DZ$2&ROW($DZ133)),$DY133,$DY$2&ROW($DY133)),$DX133,$DX$2&ROW($DX133)),$DW133,$DW$2&ROW($DW133)),$DV133,$DV$2&ROW($DV133)),$DU133,$DU$2&ROW($DU133)),$DT133,$DT$2&ROW($DT133)),$DS133,$DS$2&ROW($DS133)))","v":0},{"$f":"IF(AA133=\"\",0,\"X=\"&SUBSTITUTE(SUBSTITUTE(SUBSTITUTE(SUBSTITUTE(SUBSTITUTE(SUBSTITUTE(SUBSTITUTE(SUBSTITUTE(SUBSTITUTE(SUBSTITUTE(SUBSTITUTE(SUBSTITUTE(AA133,$ED133,$ED$2&ROW($ED133)),$EC133,$EC$2&ROW($EC133)),$EB133,$EB$2&ROW($EB133)),$EA133,$EA$2&ROW($EA133)),$DZ133,$DZ$2&ROW($DZ133)),$DY133,$DY$2&ROW($DY133)),$DX133,$DX$2&ROW($DX133)),$DW133,$DW$2&ROW($DW133)),$DV133,$DV$2&ROW($DV133)),$DU133,$DU$2&ROW($DU133)),$DT133,$DT$2&ROW($DT133)),$DS133,$DS$2&ROW($DS133)))","v":0},{"$f":"IF(AB133=\"\",0,\"X=\"&SUBSTITUTE(SUBSTITUTE(SUBSTITUTE(SUBSTITUTE(SUBSTITUTE(SUBSTITUTE(SUBSTITUTE(SUBSTITUTE(SUBSTITUTE(SUBSTITUTE(SUBSTITUTE(SUBSTITUTE(AB133,$ED133,$ED$2&ROW($ED133)),$EC133,$EC$2&ROW($EC133)),$EB133,$EB$2&ROW($EB133)),$EA133,$EA$2&ROW($EA133)),$DZ133,$DZ$2&ROW($DZ133)),$DY133,$DY$2&ROW($DY133)),$DX133,$DX$2&ROW($DX133)),$DW133,$DW$2&ROW($DW133)),$DV133,$DV$2&ROW($DV133)),$DU133,$DU$2&ROW($DU133)),$DT133,$DT$2&ROW($DT133)),$DS133,$DS$2&ROW($DS133)))","v":0},null,null,"{Factor:WinterCF}","{Factor:SummerCF}",{"$f":"IFERROR(INDEX($EG133:$IV133,MATCH(0,COUNTIF($DR133:DT133,$EG133:$IV133),0)),\"\")","v":"{Measure:Quantity}"},{"$f":"IFERROR(INDEX($EG133:$IV133,MATCH(0,COUNTIF($DR133:DU133,$EG133:$IV133),0)),\"\")","v":"{System Compressor Size (HP)}"},{"$f":"IFERROR(INDEX($EG133:$IV133,MATCH(0,COUNTIF($DR133:DV133,$EG133:$IV133),0)),\"\")","v":"{Weekly Hrs of Operation}"},{"$f":"IFERROR(INDEX($EG133:$IV133,MATCH(0,COUNTIF($DR133:DW133,$EG133:$IV133),0)),\"\")","v":"{Weeks Per Year}"},{"$f":"IFERROR(INDEX($EG133:$IV133,MATCH(0,COUNTIF($DR133:DX133,$EG133:$IV133),0)),\"\")","v":""},{"$f":"IFERROR(INDEX($EG133:$IV133,MATCH(0,COUNTIF($DR133:DY133,$EG133:$IV133),0)),\"\")","v":""},{"$f":"IFERROR(INDEX($EG133:$IV133,MATCH(0,COUNTIF($DR133:DZ133,$EG133:$IV133),0)),\"\")","v":""},{"$f":"IFERROR(INDEX($EG133:$IV133,MATCH(0,COUNTIF($DR133:EA133,$EG133:$IV133),0)),\"\")","v":""},{"$f":"IFERROR(INDEX($EG133:$IV133,MATCH(0,COUNTIF($DR133:EB133,$EG133:$IV133),0)),\"\")","v":""},{"$f":"IFERROR(INDEX($EG133:$IV133,MATCH(0,COUNTIF($DR133:EC133,$EG133:$IV133),0)),\"\")","v":""},null,null,{"$f":"IFERROR(MID($G133,FIND(CHAR(160),SUBSTITUTE($G133,\"{\",CHAR(160),EG$1)),FIND(CHAR(160),SUBSTITUTE($G133,\"}\",CHAR(160),EG$1))-FIND(CHAR(160),SUBSTITUTE($G133,\"{\",CHAR(160),EG$1))+1),\"\")","v":"{Measure:Quantity}"},{"$f":"IFERROR(MID($G133,FIND(CHAR(160),SUBSTITUTE($G133,\"{\",CHAR(160),EH$1)),FIND(CHAR(160),SUBSTITUTE($G133,\"}\",CHAR(160),EH$1))-FIND(CHAR(160),SUBSTITUTE($G133,\"{\",CHAR(160),EH$1))+1),\"\")","v":"{System Compressor Size (HP)}"},{"$f":"IFERROR(MID($G133,FIND(CHAR(160),SUBSTITUTE($G133,\"{\",CHAR(160),EI$1)),FIND(CHAR(160),SUBSTITUTE($G133,\"}\",CHAR(160),EI$1))-FIND(CHAR(160),SUBSTITUTE($G133,\"{\",CHAR(160),EI$1))+1),\"\")","v":""},{"$f":"IFERROR(MID($G133,FIND(CHAR(160),SUBSTITUTE($G133,\"{\",CHAR(160),EJ$1)),FIND(CHAR(160),SUBSTITUTE($G133,\"}\",CHAR(160),EJ$1))-FIND(CHAR(160),SUBSTITUTE($G133,\"{\",CHAR(160),EJ$1))+1),\"\")","v":""},{"$f":"IFERROR(MID($G133,FIND(CHAR(160),SUBSTITUTE($G133,\"{\",CHAR(160),EK$1)),FIND(CHAR(160),SUBSTITUTE($G133,\"}\",CHAR(160),EK$1))-FIND(CHAR(160),SUBSTITUTE($G133,\"{\",CHAR(160),EK$1))+1),\"\")","v":""},{"$f":"IFERROR(MID($G133,FIND(CHAR(160),SUBSTITUTE($G133,\"{\",CHAR(160),EL$1)),FIND(CHAR(160),SUBSTITUTE($G133,\"}\",CHAR(160),EL$1))-FIND(CHAR(160),SUBSTITUTE($G133,\"{\",CHAR(160),EL$1))+1),\"\")","v":""},{"$f":"IFERROR(MID($G133,FIND(CHAR(160),SUBSTITUTE($G133,\"{\",CHAR(160),EM$1)),FIND(CHAR(160),SUBSTITUTE($G133,\"}\",CHAR(160),EM$1))-FIND(CHAR(160),SUBSTITUTE($G133,\"{\",CHAR(160),EM$1))+1),\"\")","v":""},{"$f":"IFERROR(MID($G133,FIND(CHAR(160),SUBSTITUTE($G133,\"{\",CHAR(160),EN$1)),FIND(CHAR(160),SUBSTITUTE($G133,\"}\",CHAR(160),EN$1))-FIND(CHAR(160),SUBSTITUTE($G133,\"{\",CHAR(160),EN$1))+1),\"\")","v":""},{"$f":"IFERROR(MID($G133,FIND(CHAR(160),SUBSTITUTE($G133,\"{\",CHAR(160),EO$1)),FIND(CHAR(160),SUBSTITUTE($G133,\"}\",CHAR(160),EO$1))-FIND(CHAR(160),SUBSTITUTE($G133,\"{\",CHAR(160),EO$1))+1),\"\")","v":""},{"$f":"IFERROR(MID($G133,FIND(CHAR(160),SUBSTITUTE($G133,\"{\",CHAR(160),EP$1)),FIND(CHAR(160),SUBSTITUTE($G133,\"}\",CHAR(160),EP$1))-FIND(CHAR(160),SUBSTITUTE($G133,\"{\",CHAR(160),EP$1))+1),\"\")","v":""},{"$f":"IFERROR(MID($J133,FIND(CHAR(160),SUBSTITUTE($J133,\"{\",CHAR(160),EQ$1)),FIND(CHAR(160),SUBSTITUTE($J133,\"}\",CHAR(160),EQ$1))-FIND(CHAR(160),SUBSTITUTE($J133,\"{\",CHAR(160),EQ$1))+1),\"\")","v":""},{"$f":"IFERROR(MID($J133,FIND(CHAR(160),SUBSTITUTE($J133,\"{\",CHAR(160),ER$1)),FIND(CHAR(160),SUBSTITUTE($J133,\"}\",CHAR(160),ER$1))-FIND(CHAR(160),SUBSTITUTE($J133,\"{\",CHAR(160),ER$1))+1),\"\")","v":""},{"$f":"IFERROR(MID($J133,FIND(CHAR(160),SUBSTITUTE($J133,\"{\",CHAR(160),ES$1)),FIND(CHAR(160),SUBSTITUTE($J133,\"}\",CHAR(160),ES$1))-FIND(CHAR(160),SUBSTITUTE($J133,\"{\",CHAR(160),ES$1))+1),\"\")","v":""},{"$f":"IFERROR(MID($J133,FIND(CHAR(160),SUBSTITUTE($J133,\"{\",CHAR(160),ET$1)),FIND(CHAR(160),SUBSTITUTE($J133,\"}\",CHAR(160),ET$1))-FIND(CHAR(160),SUBSTITUTE($J133,\"{\",CHAR(160),ET$1))+1),\"\")","v":""},{"$f":"IFERROR(MID($J133,FIND(CHAR(160),SUBSTITUTE($J133,\"{\",CHAR(160),EU$1)),FIND(CHAR(160),SUBSTITUTE($J133,\"}\",CHAR(160),EU$1))-FIND(CHAR(160),SUBSTITUTE($J133,\"{\",CHAR(160),EU$1))+1),\"\")","v":""},{"$f":"IFERROR(MID($J133,FIND(CHAR(160),SUBSTITUTE($J133,\"{\",CHAR(160),EV$1)),FIND(CHAR(160),SUBSTITUTE($J133,\"}\",CHAR(160),EV$1))-FIND(CHAR(160),SUBSTITUTE($J133,\"{\",CHAR(160),EV$1))+1),\"\")","v":""},{"$f":"IFERROR(MID($J133,FIND(CHAR(160),SUBSTITUTE($J133,\"{\",CHAR(160),EW$1)),FIND(CHAR(160),SUBSTITUTE($J133,\"}\",CHAR(160),EW$1))-FIND(CHAR(160),SUBSTITUTE($J133,\"{\",CHAR(160),EW$1))+1),\"\")","v":""},{"$f":"IFERROR(MID($J133,FIND(CHAR(160),SUBSTITUTE($J133,\"{\",CHAR(160),EX$1)),FIND(CHAR(160),SUBSTITUTE($J133,\"}\",CHAR(160),EX$1))-FIND(CHAR(160),SUBSTITUTE($J133,\"{\",CHAR(160),EX$1))+1),\"\")","v":""},{"$f":"IFERROR(MID($J133,FIND(CHAR(160),SUBSTITUTE($J133,\"{\",CHAR(160),EY$1)),FIND(CHAR(160),SUBSTITUTE($J133,\"}\",CHAR(160),EY$1))-FIND(CHAR(160),SUBSTITUTE($J133,\"{\",CHAR(160),EY$1))+1),\"\")","v":""},{"$f":"IFERROR(MID($J133,FIND(CHAR(160),SUBSTITUTE($J133,\"{\",CHAR(160),EZ$1)),FIND(CHAR(160),SUBSTITUTE($J133,\"}\",CHAR(160),EZ$1))-FIND(CHAR(160),SUBSTITUTE($J133,\"{\",CHAR(160),EZ$1))+1),\"\")","v":""},{"$f":"IFERROR(MID($J133,FIND(CHAR(160),SUBSTITUTE($J133,\"{\",CHAR(160),FA$1)),FIND(CHAR(160),SUBSTITUTE($J133,\"}\",CHAR(160),FA$1))-FIND(CHAR(160),SUBSTITUTE($J133,\"{\",CHAR(160),FA$1))+1),\"\")","v":""},{"$f":"IFERROR(MID($J133,FIND(CHAR(160),SUBSTITUTE($J133,\"{\",CHAR(160),FB$1)),FIND(CHAR(160),SUBSTITUTE($J133,\"}\",CHAR(160),FB$1))-FIND(CHAR(160),SUBSTITUTE($J133,\"{\",CHAR(160),FB$1))+1),\"\")","v":""},{"$f":"IFERROR(MID($O133,FIND(CHAR(160),SUBSTITUTE($O133,\"{\",CHAR(160),FC$1)),FIND(CHAR(160),SUBSTITUTE($O133,\"}\",CHAR(160),FC$1))-FIND(CHAR(160),SUBSTITUTE($O133,\"{\",CHAR(160),FC$1))+1),\"\")","v":"{Weekly Hrs of Operation}"},{"$f":"IFERROR(MID($O133,FIND(CHAR(160),SUBSTITUTE($O133,\"{\",CHAR(160),FD$1)),FIND(CHAR(160),SUBSTITUTE($O133,\"}\",CHAR(160),FD$1))-FIND(CHAR(160),SUBSTITUTE($O133,\"{\",CHAR(160),FD$1))+1),\"\")","v":"{Weeks Per Year}"},{"$f":"IFERROR(MID($O133,FIND(CHAR(160),SUBSTITUTE($O133,\"{\",CHAR(160),FE$1)),FIND(CHAR(160),SUBSTITUTE($O133,\"}\",CHAR(160),FE$1))-FIND(CHAR(160),SUBSTITUTE($O133,\"{\",CHAR(160),FE$1))+1),\"\")","v":""},{"$f":"IFERROR(MID($O133,FIND(CHAR(160),SUBSTITUTE($O133,\"{\",CHAR(160),FF$1)),FIND(CHAR(160),SUBSTITUTE($O133,\"}\",CHAR(160),FF$1))-FIND(CHAR(160),SUBSTITUTE($O133,\"{\",CHAR(160),FF$1))+1),\"\")","v":""},{"$f":"IFERROR(MID($O133,FIND(CHAR(160),SUBSTITUTE($O133,\"{\",CHAR(160),FG$1)),FIND(CHAR(160),SUBSTITUTE($O133,\"}\",CHAR(160),FG$1))-FIND(CHAR(160),SUBSTITUTE($O133,\"{\",CHAR(160),FG$1))+1),\"\")","v":""},{"$f":"IFERROR(MID($O133,FIND(CHAR(160),SUBSTITUTE($O133,\"{\",CHAR(160),FH$1)),FIND(CHAR(160),SUBSTITUTE($O133,\"}\",CHAR(160),FH$1))-FIND(CHAR(160),SUBSTITUTE($O133,\"{\",CHAR(160),FH$1))+1),\"\")","v":""},{"$f":"IFERROR(MID($O133,FIND(CHAR(160),SUBSTITUTE($O133,\"{\",CHAR(160),FI$1)),FIND(CHAR(160),SUBSTITUTE($O133,\"}\",CHAR(160),FI$1))-FIND(CHAR(160),SUBSTITUTE($O133,\"{\",CHAR(160),FI$1))+1),\"\")","v":""},{"$f":"IFERROR(MID($O133,FIND(CHAR(160),SUBSTITUTE($O133,\"{\",CHAR(160),FJ$1)),FIND(CHAR(160),SUBSTITUTE($O133,\"}\",CHAR(160),FJ$1))-FIND(CHAR(160),SUBSTITUTE($O133,\"{\",CHAR(160),FJ$1))+1),\"\")","v":""},{"$f":"IFERROR(MID($O133,FIND(CHAR(160),SUBSTITUTE($O133,\"{\",CHAR(160),FK$1)),FIND(CHAR(160),SUBSTITUTE($O133,\"}\",CHAR(160),FK$1))-FIND(CHAR(160),SUBSTITUTE($O133,\"{\",CHAR(160),FK$1))+1),\"\")","v":"{Measure:Quantity}"},{"$f":"IFERROR(MID($O133,FIND(CHAR(160),SUBSTITUTE($O133,\"{\",CHAR(160),FL$1)),FIND(CHAR(160),SUBSTITUTE($O133,\"}\",CHAR(160),FL$1))-FIND(CHAR(160),SUBSTITUTE($O133,\"{\",CHAR(160),FL$1))+1),\"\")","v":"{System Compressor Size (HP)}"},{"$f":"IFERROR(MID($R133,FIND(CHAR(160),SUBSTITUTE($R133,\"{\",CHAR(160),FM$1)),FIND(CHAR(160),SUBSTITUTE($R133,\"}\",CHAR(160),FM$1))-FIND(CHAR(160),SUBSTITUTE($R133,\"{\",CHAR(160),FM$1))+1),\"\")","v":""},{"$f":"IFERROR(MID($R133,FIND(CHAR(160),SUBSTITUTE($R133,\"{\",CHAR(160),FN$1)),FIND(CHAR(160),SUBSTITUTE($R133,\"}\",CHAR(160),FN$1))-FIND(CHAR(160),SUBSTITUTE($R133,\"{\",CHAR(160),FN$1))+1),\"\")","v":""},{"$f":"IFERROR(MID($R133,FIND(CHAR(160),SUBSTITUTE($R133,\"{\",CHAR(160),FO$1)),FIND(CHAR(160),SUBSTITUTE($R133,\"}\",CHAR(160),FO$1))-FIND(CHAR(160),SUBSTITUTE($R133,\"{\",CHAR(160),FO$1))+1),\"\")","v":""},{"$f":"IFERROR(MID($R133,FIND(CHAR(160),SUBSTITUTE($R133,\"{\",CHAR(160),FP$1)),FIND(CHAR(160),SUBSTITUTE($R133,\"}\",CHAR(160),FP$1))-FIND(CHAR(160),SUBSTITUTE($R133,\"{\",CHAR(160),FP$1))+1),\"\")","v":""},{"$f":"IFERROR(MID($R133,FIND(CHAR(160),SUBSTITUTE($R133,\"{\",CHAR(160),FQ$1)),FIND(CHAR(160),SUBSTITUTE($R133,\"}\",CHAR(160),FQ$1))-FIND(CHAR(160),SUBSTITUTE($R133,\"{\",CHAR(160),FQ$1))+1),\"\")","v":""},{"$f":"IFERROR(MID($R133,FIND(CHAR(160),SUBSTITUTE($R133,\"{\",CHAR(160),FR$1)),FIND(CHAR(160),SUBSTITUTE($R133,\"}\",CHAR(160),FR$1))-FIND(CHAR(160),SUBSTITUTE($R133,\"{\",CHAR(160),FR$1))+1),\"\")","v":""},{"$f":"IFERROR(MID($R133,FIND(CHAR(160),SUBSTITUTE($R133,\"{\",CHAR(160),FS$1)),FIND(CHAR(160),SUBSTITUTE($R133,\"}\",CHAR(160),FS$1))-FIND(CHAR(160),SUBSTITUTE($R133,\"{\",CHAR(160),FS$1))+1),\"\")","v":""},{"$f":"IFERROR(MID($R133,FIND(CHAR(160),SUBSTITUTE($R133,\"{\",CHAR(160),FT$1)),FIND(CHAR(160),SUBSTITUTE($R133,\"}\",CHAR(160),FT$1))-FIND(CHAR(160),SUBSTITUTE($R133,\"{\",CHAR(160),FT$1))+1),\"\")","v":""},{"$f":"IFERROR(MID($R133,FIND(CHAR(160),SUBSTITUTE($R133,\"{\",CHAR(160),FU$1)),FIND(CHAR(160),SUBSTITUTE($R133,\"}\",CHAR(160),FU$1))-FIND(CHAR(160),SUBSTITUTE($R133,\"{\",CHAR(160),FU$1))+1),\"\")","v":"{Measure:Quantity}"},{"$f":"IFERROR(MID($R133,FIND(CHAR(160),SUBSTITUTE($R133,\"{\",CHAR(160),FV$1)),FIND(CHAR(160),SUBSTITUTE($R133,\"}\",CHAR(160),FV$1))-FIND(CHAR(160),SUBSTITUTE($R133,\"{\",CHAR(160),FV$1))+1),\"\")","v":"{System Compressor Size (HP)}"},{"$f":"IFERROR(MID($U133,FIND(CHAR(160),SUBSTITUTE($U133,\"{\",CHAR(160),FW$1)),FIND(CHAR(160),SUBSTITUTE($U133,\"}\",CHAR(160),FW$1))-FIND(CHAR(160),SUBSTITUTE($U133,\"{\",CHAR(160),FW$1))+1),\"\")","v":"{Factor:WinterCF}"},{"$f":"IFERROR(MID($U133,FIND(CHAR(160),SUBSTITUTE($U133,\"{\",CHAR(160),FX$1)),FIND(CHAR(160),SUBSTITUTE($U133,\"}\",CHAR(160),FX$1))-FIND(CHAR(160),SUBSTITUTE($U133,\"{\",CHAR(160),FX$1))+1),\"\")","v":""},{"$f":"IFERROR(MID($U133,FIND(CHAR(160),SUBSTITUTE($U133,\"{\",CHAR(160),FY$1)),FIND(CHAR(160),SUBSTITUTE($U133,\"}\",CHAR(160),FY$1))-FIND(CHAR(160),SUBSTITUTE($U133,\"{\",CHAR(160),FY$1))+1),\"\")","v":""},{"$f":"IFERROR(MID($U133,FIND(CHAR(160),SUBSTITUTE($U133,\"{\",CHAR(160),FZ$1)),FIND(CHAR(160),SUBSTITUTE($U133,\"}\",CHAR(160),FZ$1))-FIND(CHAR(160),SUBSTITUTE($U133,\"{\",CHAR(160),FZ$1))+1),\"\")","v":""},{"$f":"IFERROR(MID($U133,FIND(CHAR(160),SUBSTITUTE($U133,\"{\",CHAR(160),GA$1)),FIND(CHAR(160),SUBSTITUTE($U133,\"}\",CHAR(160),GA$1))-FIND(CHAR(160),SUBSTITUTE($U133,\"{\",CHAR(160),GA$1))+1),\"\")","v":""},{"$f":"IFERROR(MID($U133,FIND(CHAR(160),SUBSTITUTE($U133,\"{\",CHAR(160),GB$1)),FIND(CHAR(160),SUBSTITUTE($U133,\"}\",CHAR(160),GB$1))-FIND(CHAR(160),SUBSTITUTE($U133,\"{\",CHAR(160),GB$1))+1),\"\")","v":""},{"$f":"IFERROR(MID($U133,FIND(CHAR(160),SUBSTITUTE($U133,\"{\",CHAR(160),GC$1)),FIND(CHAR(160),SUBSTITUTE($U133,\"}\",CHAR(160),GC$1))-FIND(CHAR(160),SUBSTITUTE($U133,\"{\",CHAR(160),GC$1))+1),\"\")","v":""},{"$f":"IFERROR(MID($U133,FIND(CHAR(160),SUBSTITUTE($U133,\"{\",CHAR(160),GD$1)),FIND(CHAR(160),SUBSTITUTE($U133,\"}\",CHAR(160),GD$1))-FIND(CHAR(160),SUBSTITUTE($U133,\"{\",CHAR(160),GD$1))+1),\"\")","v":""},{"$f":"IFERROR(MID($U133,FIND(CHAR(160),SUBSTITUTE($U133,\"{\",CHAR(160),GE$1)),FIND(CHAR(160),SUBSTITUTE($U133,\"}\",CHAR(160),GE$1))-FIND(CHAR(160),SUBSTITUTE($U133,\"{\",CHAR(160),GE$1))+1),\"\")","v":"{Measure:Quantity}"},{"$f":"IFERROR(MID($U133,FIND(CHAR(160),SUBSTITUTE($U133,\"{\",CHAR(160),GF$1)),FIND(CHAR(160),SUBSTITUTE($U133,\"}\",CHAR(160),GF$1))-FIND(CHAR(160),SUBSTITUTE($U133,\"{\",CHAR(160),GF$1))+1),\"\")","v":"{System Compressor Size (HP)}"},{"$f":"IFERROR(MID($V133,FIND(CHAR(160),SUBSTITUTE($V133,\"{\",CHAR(160),GG$1)),FIND(CHAR(160),SUBSTITUTE($V133,\"}\",CHAR(160),GG$1))-FIND(CHAR(160),SUBSTITUTE($V133,\"{\",CHAR(160),GG$1))+1),\"\")","v":"{Factor:SummerCF}"},{"$f":"IFERROR(MID($V133,FIND(CHAR(160),SUBSTITUTE($V133,\"{\",CHAR(160),GH$1)),FIND(CHAR(160),SUBSTITUTE($V133,\"}\",CHAR(160),GH$1))-FIND(CHAR(160),SUBSTITUTE($V133,\"{\",CHAR(160),GH$1))+1),\"\")","v":""},{"$f":"IFERROR(MID($V133,FIND(CHAR(160),SUBSTITUTE($V133,\"{\",CHAR(160),GI$1)),FIND(CHAR(160),SUBSTITUTE($V133,\"}\",CHAR(160),GI$1))-FIND(CHAR(160),SUBSTITUTE($V133,\"{\",CHAR(160),GI$1))+1),\"\")","v":""},{"$f":"IFERROR(MID($V133,FIND(CHAR(160),SUBSTITUTE($V133,\"{\",CHAR(160),GJ$1)),FIND(CHAR(160),SUBSTITUTE($V133,\"}\",CHAR(160),GJ$1))-FIND(CHAR(160),SUBSTITUTE($V133,\"{\",CHAR(160),GJ$1))+1),\"\")","v":""},{"$f":"IFERROR(MID($V133,FIND(CHAR(160),SUBSTITUTE($V133,\"{\",CHAR(160),GK$1)),FIND(CHAR(160),SUBSTITUTE($V133,\"}\",CHAR(160),GK$1))-FIND(CHAR(160),SUBSTITUTE($V133,\"{\",CHAR(160),GK$1))+1),\"\")","v":""},{"$f":"IFERROR(MID($V133,FIND(CHAR(160),SUBSTITUTE($V133,\"{\",CHAR(160),GL$1)),FIND(CHAR(160),SUBSTITUTE($V133,\"}\",CHAR(160),GL$1))-FIND(CHAR(160),SUBSTITUTE($V133,\"{\",CHAR(160),GL$1))+1),\"\")","v":""},{"$f":"IFERROR(MID($V133,FIND(CHAR(160),SUBSTITUTE($V133,\"{\",CHAR(160),GM$1)),FIND(CHAR(160),SUBSTITUTE($V133,\"}\",CHAR(160),GM$1))-FIND(CHAR(160),SUBSTITUTE($V133,\"{\",CHAR(160),GM$1))+1),\"\")","v":""},{"$f":"IFERROR(MID($V133,FIND(CHAR(160),SUBSTITUTE($V133,\"{\",CHAR(160),GN$1)),FIND(CHAR(160),SUBSTITUTE($V133,\"}\",CHAR(160),GN$1))-FIND(CHAR(160),SUBSTITUTE($V133,\"{\",CHAR(160),GN$1))+1),\"\")","v":""},{"$f":"IFERROR(MID($V133,FIND(CHAR(160),SUBSTITUTE($V133,\"{\",CHAR(160),GO$1)),FIND(CHAR(160),SUBSTITUTE($V133,\"}\",CHAR(160),GO$1))-FIND(CHAR(160),SUBSTITUTE($V133,\"{\",CHAR(160),GO$1))+1),\"\")","v":"{Measure:Quantity}"},{"$f":"IFERROR(MID($V133,FIND(CHAR(160),SUBSTITUTE($V133,\"{\",CHAR(160),GP$1)),FIND(CHAR(160),SUBSTITUTE($V133,\"}\",CHAR(160),GP$1))-FIND(CHAR(160),SUBSTITUTE($V133,\"{\",CHAR(160),GP$1))+1),\"\")","v":"{System Compressor Size (HP)}"},{"$f":"IFERROR(MID($W133,FIND(CHAR(160),SUBSTITUTE($W133,\"{\",CHAR(160),GQ$1)),FIND(CHAR(160),SUBSTITUTE($W133,\"}\",CHAR(160),GQ$1))-FIND(CHAR(160),SUBSTITUTE($W133,\"{\",CHAR(160),GQ$1))+1),\"\")","v":""},{"$f":"IFERROR(MID($W133,FIND(CHAR(160),SUBSTITUTE($W133,\"{\",CHAR(160),GR$1)),FIND(CHAR(160),SUBSTITUTE($W133,\"}\",CHAR(160),GR$1))-FIND(CHAR(160),SUBSTITUTE($W133,\"{\",CHAR(160),GR$1))+1),\"\")","v":""},{"$f":"IFERROR(MID($W133,FIND(CHAR(160),SUBSTITUTE($W133,\"{\",CHAR(160),GS$1)),FIND(CHAR(160),SUBSTITUTE($W133,\"}\",CHAR(160),GS$1))-FIND(CHAR(160),SUBSTITUTE($W133,\"{\",CHAR(160),GS$1))+1),\"\")","v":""},{"$f":"IFERROR(MID($W133,FIND(CHAR(160),SUBSTITUTE($W133,\"{\",CHAR(160),GT$1)),FIND(CHAR(160),SUBSTITUTE($W133,\"}\",CHAR(160),GT$1))-FIND(CHAR(160),SUBSTITUTE($W133,\"{\",CHAR(160),GT$1))+1),\"\")","v":""},{"$f":"IFERROR(MID($W133,FIND(CHAR(160),SUBSTITUTE($W133,\"{\",CHAR(160),GU$1)),FIND(CHAR(160),SUBSTITUTE($W133,\"}\",CHAR(160),GU$1))-FIND(CHAR(160),SUBSTITUTE($W133,\"{\",CHAR(160),GU$1))+1),\"\")","v":""},{"$f":"IFERROR(MID($W133,FIND(CHAR(160),SUBSTITUTE($W133,\"{\",CHAR(160),GV$1)),FIND(CHAR(160),SUBSTITUTE($W133,\"}\",CHAR(160),GV$1))-FIND(CHAR(160),SUBSTITUTE($W133,\"{\",CHAR(160),GV$1))+1),\"\")","v":""},{"$f":"IFERROR(MID($W133,FIND(CHAR(160),SUBSTITUTE($W133,\"{\",CHAR(160),GW$1)),FIND(CHAR(160),SUBSTITUTE($W133,\"}\",CHAR(160),GW$1))-FIND(CHAR(160),SUBSTITUTE($W133,\"{\",CHAR(160),GW$1))+1),\"\")","v":""},{"$f":"IFERROR(MID($W133,FIND(CHAR(160),SUBSTITUTE($W133,\"{\",CHAR(160),GX$1)),FIND(CHAR(160),SUBSTITUTE($W133,\"}\",CHAR(160),GX$1))-FIND(CHAR(160),SUBSTITUTE($W133,\"{\",CHAR(160),GX$1))+1),\"\")","v":""},{"$f":"IFERROR(MID($W133,FIND(CHAR(160),SUBSTITUTE($W133,\"{\",CHAR(160),GY$1)),FIND(CHAR(160),SUBSTITUTE($W133,\"}\",CHAR(160),GY$1))-FIND(CHAR(160),SUBSTITUTE($W133,\"{\",CHAR(160),GY$1))+1),\"\")","v":""},{"$f":"IFERROR(MID($W133,FIND(CHAR(160),SUBSTITUTE($W133,\"{\",CHAR(160),GZ$1)),FIND(CHAR(160),SUBSTITUTE($W133,\"}\",CHAR(160),GZ$1))-FIND(CHAR(160),SUBSTITUTE($W133,\"{\",CHAR(160),GZ$1))+1),\"\")","v":""},{"$f":"IFERROR(MID($X133,FIND(CHAR(160),SUBSTITUTE($X133,\"{\",CHAR(160),HA$1)),FIND(CHAR(160),SUBSTITUTE($X133,\"}\",CHAR(160),HA$1))-FIND(CHAR(160),SUBSTITUTE($X133,\"{\",CHAR(160),HA$1))+1),\"\")","v":""},{"$f":"IFERROR(MID($X133,FIND(CHAR(160),SUBSTITUTE($X133,\"{\",CHAR(160),HB$1)),FIND(CHAR(160),SUBSTITUTE($X133,\"}\",CHAR(160),HB$1))-FIND(CHAR(160),SUBSTITUTE($X133,\"{\",CHAR(160),HB$1))+1),\"\")","v":""},{"$f":"IFERROR(MID($X133,FIND(CHAR(160),SUBSTITUTE($X133,\"{\",CHAR(160),HC$1)),FIND(CHAR(160),SUBSTITUTE($X133,\"}\",CHAR(160),HC$1))-FIND(CHAR(160),SUBSTITUTE($X133,\"{\",CHAR(160),HC$1))+1),\"\")","v":""},{"$f":"IFERROR(MID($X133,FIND(CHAR(160),SUBSTITUTE($X133,\"{\",CHAR(160),HD$1)),FIND(CHAR(160),SUBSTITUTE($X133,\"}\",CHAR(160),HD$1))-FIND(CHAR(160),SUBSTITUTE($X133,\"{\",CHAR(160),HD$1))+1),\"\")","v":""},{"$f":"IFERROR(MID($X133,FIND(CHAR(160),SUBSTITUTE($X133,\"{\",CHAR(160),HE$1)),FIND(CHAR(160),SUBSTITUTE($X133,\"}\",CHAR(160),HE$1))-FIND(CHAR(160),SUBSTITUTE($X133,\"{\",CHAR(160),HE$1))+1),\"\")","v":""},{"$f":"IFERROR(MID($X133,FIND(CHAR(160),SUBSTITUTE($X133,\"{\",CHAR(160),HF$1)),FIND(CHAR(160),SUBSTITUTE($X133,\"}\",CHAR(160),HF$1))-FIND(CHAR(160),SUBSTITUTE($X133,\"{\",CHAR(160),HF$1))+1),\"\")","v":""},{"$f":"IFERROR(MID($X133,FIND(CHAR(160),SUBSTITUTE($X133,\"{\",CHAR(160),HG$1)),FIND(CHAR(160),SUBSTITUTE($X133,\"}\",CHAR(160),HG$1))-FIND(CHAR(160),SUBSTITUTE($X133,\"{\",CHAR(160),HG$1))+1),\"\")","v":""},{"$f":"IFERROR(MID($X133,FIND(CHAR(160),SUBSTITUTE($X133,\"{\",CHAR(160),HH$1)),FIND(CHAR(160),SUBSTITUTE($X133,\"}\",CHAR(160),HH$1))-FIND(CHAR(160),SUBSTITUTE($X133,\"{\",CHAR(160),HH$1))+1),\"\")","v":""},{"$f":"IFERROR(MID($X133,FIND(CHAR(160),SUBSTITUTE($X133,\"{\",CHAR(160),HI$1)),FIND(CHAR(160),SUBSTITUTE($X133,\"}\",CHAR(160),HI$1))-FIND(CHAR(160),SUBSTITUTE($X133,\"{\",CHAR(160),HI$1))+1),\"\")","v":""},{"$f":"IFERROR(MID($X133,FIND(CHAR(160),SUBSTITUTE($X133,\"{\",CHAR(160),HJ$1)),FIND(CHAR(160),SUBSTITUTE($X133,\"}\",CHAR(160),HJ$1))-FIND(CHAR(160),SUBSTITUTE($X133,\"{\",CHAR(160),HJ$1))+1),\"\")","v":""},{"$f":"IFERROR(MID($Y133,FIND(CHAR(160),SUBSTITUTE($Y133,\"{\",CHAR(160),HK$1)),FIND(CHAR(160),SUBSTITUTE($Y133,\"}\",CHAR(160),HK$1))-FIND(CHAR(160),SUBSTITUTE($Y133,\"{\",CHAR(160),HK$1))+1),\"\")","v":""},{"$f":"IFERROR(MID($Y133,FIND(CHAR(160),SUBSTITUTE($Y133,\"{\",CHAR(160),HL$1)),FIND(CHAR(160),SUBSTITUTE($Y133,\"}\",CHAR(160),HL$1))-FIND(CHAR(160),SUBSTITUTE($Y133,\"{\",CHAR(160),HL$1))+1),\"\")","v":""},{"$f":"IFERROR(MID($Y133,FIND(CHAR(160),SUBSTITUTE($Y133,\"{\",CHAR(160),HM$1)),FIND(CHAR(160),SUBSTITUTE($Y133,\"}\",CHAR(160),HM$1))-FIND(CHAR(160),SUBSTITUTE($Y133,\"{\",CHAR(160),HM$1))+1),\"\")","v":""},{"$f":"IFERROR(MID($Y133,FIND(CHAR(160),SUBSTITUTE($Y133,\"{\",CHAR(160),HN$1)),FIND(CHAR(160),SUBSTITUTE($Y133,\"}\",CHAR(160),HN$1))-FIND(CHAR(160),SUBSTITUTE($Y133,\"{\",CHAR(160),HN$1))+1),\"\")","v":""},{"$f":"IFERROR(MID($Y133,FIND(CHAR(160),SUBSTITUTE($Y133,\"{\",CHAR(160),HO$1)),FIND(CHAR(160),SUBSTITUTE($Y133,\"}\",CHAR(160),HO$1))-FIND(CHAR(160),SUBSTITUTE($Y133,\"{\",CHAR(160),HO$1))+1),\"\")","v":""},{"$f":"IFERROR(MID($Y133,FIND(CHAR(160),SUBSTITUTE($Y133,\"{\",CHAR(160),HP$1)),FIND(CHAR(160),SUBSTITUTE($Y133,\"}\",CHAR(160),HP$1))-FIND(CHAR(160),SUBSTITUTE($Y133,\"{\",CHAR(160),HP$1))+1),\"\")","v":""},{"$f":"IFERROR(MID($Y133,FIND(CHAR(160),SUBSTITUTE($Y133,\"{\",CHAR(160),HQ$1)),FIND(CHAR(160),SUBSTITUTE($Y133,\"}\",CHAR(160),HQ$1))-FIND(CHAR(160),SUBSTITUTE($Y133,\"{\",CHAR(160),HQ$1))+1),\"\")","v":""},{"$f":"IFERROR(MID($Y133,FIND(CHAR(160),SUBSTITUTE($Y133,\"{\",CHAR(160),HR$1)),FIND(CHAR(160),SUBSTITUTE($Y133,\"}\",CHAR(160),HR$1))-FIND(CHAR(160),SUBSTITUTE($Y133,\"{\",CHAR(160),HR$1))+1),\"\")","v":""},{"$f":"IFERROR(MID($Y133,FIND(CHAR(160),SUBSTITUTE($Y133,\"{\",CHAR(160),HS$1)),FIND(CHAR(160),SUBSTITUTE($Y133,\"}\",CHAR(160),HS$1))-FIND(CHAR(160),SUBSTITUTE($Y133,\"{\",CHAR(160),HS$1))+1),\"\")","v":""},{"$f":"IFERROR(MID($Y133,FIND(CHAR(160),SUBSTITUTE($Y133,\"{\",CHAR(160),HT$1)),FIND(CHAR(160),SUBSTITUTE($Y133,\"}\",CHAR(160),HT$1))-FIND(CHAR(160),SUBSTITUTE($Y133,\"{\",CHAR(160),HT$1))+1),\"\")","v":""},{"$f":"IFERROR(MID($Z133,FIND(CHAR(160),SUBSTITUTE($Z133,\"{\",CHAR(160),HU$1)),FIND(CHAR(160),SUBSTITUTE($Z133,\"}\",CHAR(160),HU$1))-FIND(CHAR(160),SUBSTITUTE($Z133,\"{\",CHAR(160),HU$1))+1),\"\")","v":""},{"$f":"IFERROR(MID($Z133,FIND(CHAR(160),SUBSTITUTE($Z133,\"{\",CHAR(160),HV$1)),FIND(CHAR(160),SUBSTITUTE($Z133,\"}\",CHAR(160),HV$1))-FIND(CHAR(160),SUBSTITUTE($Z133,\"{\",CHAR(160),HV$1))+1),\"\")","v":""},{"$f":"IFERROR(MID($Z133,FIND(CHAR(160),SUBSTITUTE($Z133,\"{\",CHAR(160),HW$1)),FIND(CHAR(160),SUBSTITUTE($Z133,\"}\",CHAR(160),HW$1))-FIND(CHAR(160),SUBSTITUTE($Z133,\"{\",CHAR(160),HW$1))+1),\"\")","v":""},{"$f":"IFERROR(MID($Z133,FIND(CHAR(160),SUBSTITUTE($Z133,\"{\",CHAR(160),HX$1)),FIND(CHAR(160),SUBSTITUTE($Z133,\"}\",CHAR(160),HX$1))-FIND(CHAR(160),SUBSTITUTE($Z133,\"{\",CHAR(160),HX$1))+1),\"\")","v":""},{"$f":"IFERROR(MID($Z133,FIND(CHAR(160),SUBSTITUTE($Z133,\"{\",CHAR(160),HY$1)),FIND(CHAR(160),SUBSTITUTE($Z133,\"}\",CHAR(160),HY$1))-FIND(CHAR(160),SUBSTITUTE($Z133,\"{\",CHAR(160),HY$1))+1),\"\")","v":""},{"$f":"IFERROR(MID($Z133,FIND(CHAR(160),SUBSTITUTE($Z133,\"{\",CHAR(160),HZ$1)),FIND(CHAR(160),SUBSTITUTE($Z133,\"}\",CHAR(160),HZ$1))-FIND(CHAR(160),SUBSTITUTE($Z133,\"{\",CHAR(160),HZ$1))+1),\"\")","v":""},{"$f":"IFERROR(MID($Z133,FIND(CHAR(160),SUBSTITUTE($Z133,\"{\",CHAR(160),IA$1)),FIND(CHAR(160),SUBSTITUTE($Z133,\"}\",CHAR(160),IA$1))-FIND(CHAR(160),SUBSTITUTE($Z133,\"{\",CHAR(160),IA$1))+1),\"\")","v":""},{"$f":"IFERROR(MID($Z133,FIND(CHAR(160),SUBSTITUTE($Z133,\"{\",CHAR(160),IB$1)),FIND(CHAR(160),SUBSTITUTE($Z133,\"}\",CHAR(160),IB$1))-FIND(CHAR(160),SUBSTITUTE($Z133,\"{\",CHAR(160),IB$1))+1),\"\")","v":""},{"$f":"IFERROR(MID($Z133,FIND(CHAR(160),SUBSTITUTE($Z133,\"{\",CHAR(160),IC$1)),FIND(CHAR(160),SUBSTITUTE($Z133,\"}\",CHAR(160),IC$1))-FIND(CHAR(160),SUBSTITUTE($Z133,\"{\",CHAR(160),IC$1))+1),\"\")","v":""},{"$f":"IFERROR(MID($Z133,FIND(CHAR(160),SUBSTITUTE($Z133,\"{\",CHAR(160),ID$1)),FIND(CHAR(160),SUBSTITUTE($Z133,\"}\",CHAR(160),ID$1))-FIND(CHAR(160),SUBSTITUTE($Z133,\"{\",CHAR(160),ID$1))+1),\"\")","v":""},{"$f":"IFERROR(MID($AA133,FIND(CHAR(160),SUBSTITUTE($AA133,\"{\",CHAR(160),IE$1)),FIND(CHAR(160),SUBSTITUTE($AA133,\"}\",CHAR(160),IE$1))-FIND(CHAR(160),SUBSTITUTE($AA133,\"{\",CHAR(160),IE$1))+1),\"\")","v":""},{"$f":"IFERROR(MID($AA133,FIND(CHAR(160),SUBSTITUTE($AA133,\"{\",CHAR(160),IF$1)),FIND(CHAR(160),SUBSTITUTE($AA133,\"}\",CHAR(160),IF$1))-FIND(CHAR(160),SUBSTITUTE($AA133,\"{\",CHAR(160),IF$1))+1),\"\")","v":""},{"$f":"IFERROR(MID($AA133,FIND(CHAR(160),SUBSTITUTE($AA133,\"{\",CHAR(160),IG$1)),FIND(CHAR(160),SUBSTITUTE($AA133,\"}\",CHAR(160),IG$1))-FIND(CHAR(160),SUBSTITUTE($AA133,\"{\",CHAR(160),IG$1))+1),\"\")","v":""},{"$f":"IFERROR(MID($AA133,FIND(CHAR(160),SUBSTITUTE($AA133,\"{\",CHAR(160),IH$1)),FIND(CHAR(160),SUBSTITUTE($AA133,\"}\",CHAR(160),IH$1))-FIND(CHAR(160),SUBSTITUTE($AA133,\"{\",CHAR(160),IH$1))+1),\"\")","v":""},{"$f":"IFERROR(MID($AA133,FIND(CHAR(160),SUBSTITUTE($AA133,\"{\",CHAR(160),II$1)),FIND(CHAR(160),SUBSTITUTE($AA133,\"}\",CHAR(160),II$1))-FIND(CHAR(160),SUBSTITUTE($AA133,\"{\",CHAR(160),II$1))+1),\"\")","v":""},{"$f":"IFERROR(MID($AA133,FIND(CHAR(160),SUBSTITUTE($AA133,\"{\",CHAR(160),IJ$1)),FIND(CHAR(160),SUBSTITUTE($AA133,\"}\",CHAR(160),IJ$1))-FIND(CHAR(160),SUBSTITUTE($AA133,\"{\",CHAR(160),IJ$1))+1),\"\")","v":""},{"$f":"IFERROR(MID($AA133,FIND(CHAR(160),SUBSTITUTE($AA133,\"{\",CHAR(160),IK$1)),FIND(CHAR(160),SUBSTITUTE($AA133,\"}\",CHAR(160),IK$1))-FIND(CHAR(160),SUBSTITUTE($AA133,\"{\",CHAR(160),IK$1))+1),\"\")","v":""},{"$f":"IFERROR(MID($AA133,FIND(CHAR(160),SUBSTITUTE($AA133,\"{\",CHAR(160),IL$1)),FIND(CHAR(160),SUBSTITUTE($AA133,\"}\",CHAR(160),IL$1))-FIND(CHAR(160),SUBSTITUTE($AA133,\"{\",CHAR(160),IL$1))+1),\"\")","v":""},{"$f":"IFERROR(MID($AA133,FIND(CHAR(160),SUBSTITUTE($AA133,\"{\",CHAR(160),IM$1)),FIND(CHAR(160),SUBSTITUTE($AA133,\"}\",CHAR(160),IM$1))-FIND(CHAR(160),SUBSTITUTE($AA133,\"{\",CHAR(160),IM$1))+1),\"\")","v":""},{"$f":"IFERROR(MID($AA133,FIND(CHAR(160),SUBSTITUTE($AA133,\"{\",CHAR(160),IN$1)),FIND(CHAR(160),SUBSTITUTE($AA133,\"}\",CHAR(160),IN$1))-FIND(CHAR(160),SUBSTITUTE($AA133,\"{\",CHAR(160),IN$1))+1),\"\")","v":""},{"$f":"IFERROR(MID($AB133,FIND(CHAR(160),SUBSTITUTE($AB133,\"{\",CHAR(160),IO$1)),FIND(CHAR(160),SUBSTITUTE($AB133,\"}\",CHAR(160),IO$1))-FIND(CHAR(160),SUBSTITUTE($AB133,\"{\",CHAR(160),IO$1))+1),\"\")","v":""},{"$f":"IFERROR(MID($AB133,FIND(CHAR(160),SUBSTITUTE($AB133,\"{\",CHAR(160),IP$1)),FIND(CHAR(160),SUBSTITUTE($AB133,\"}\",CHAR(160),IP$1))-FIND(CHAR(160),SUBSTITUTE($AB133,\"{\",CHAR(160),IP$1))+1),\"\")","v":""},{"$f":"IFERROR(MID($AB133,FIND(CHAR(160),SUBSTITUTE($AB133,\"{\",CHAR(160),IQ$1)),FIND(CHAR(160),SUBSTITUTE($AB133,\"}\",CHAR(160),IQ$1))-FIND(CHAR(160),SUBSTITUTE($AB133,\"{\",CHAR(160),IQ$1))+1),\"\")","v":""},{"$f":"IFERROR(MID($AB133,FIND(CHAR(160),SUBSTITUTE($AB133,\"{\",CHAR(160),IR$1)),FIND(CHAR(160),SUBSTITUTE($AB133,\"}\",CHAR(160),IR$1))-FIND(CHAR(160),SUBSTITUTE($AB133,\"{\",CHAR(160),IR$1))+1),\"\")","v":""},{"$f":"IFERROR(MID($AB133,FIND(CHAR(160),SUBSTITUTE($AB133,\"{\",CHAR(160),IS$1)),FIND(CHAR(160),SUBSTITUTE($AB133,\"}\",CHAR(160),IS$1))-FIND(CHAR(160),SUBSTITUTE($AB133,\"{\",CHAR(160),IS$1))+1),\"\")","v":""},{"$f":"IFERROR(MID($AB133,FIND(CHAR(160),SUBSTITUTE($AB133,\"{\",CHAR(160),IT$1)),FIND(CHAR(160),SUBSTITUTE($AB133,\"}\",CHAR(160),IT$1))-FIND(CHAR(160),SUBSTITUTE($AB133,\"{\",CHAR(160),IT$1))+1),\"\")","v":""},{"$f":"IFERROR(MID($AB133,FIND(CHAR(160),SUBSTITUTE($AB133,\"{\",CHAR(160),IU$1)),FIND(CHAR(160),SUBSTITUTE($AB133,\"}\",CHAR(160),IU$1))-FIND(CHAR(160),SUBSTITUTE($AB133,\"{\",CHAR(160),IU$1))+1),\"\")","v":""},{"$f":"IFERROR(MID($AB133,FIND(CHAR(160),SUBSTITUTE($AB133,\"{\",CHAR(160),IV$1)),FIND(CHAR(160),SUBSTITUTE($AB133,\"}\",CHAR(160),IV$1))-FIND(CHAR(160),SUBSTITUTE($AB133,\"{\",CHAR(160),IV$1))+1),\"\")","v":""},{"$f":"IFERROR(MID($AB133,FIND(CHAR(160),SUBSTITUTE($AB133,\"{\",CHAR(160),IW$1)),FIND(CHAR(160),SUBSTITUTE($AB133,\"}\",CHAR(160),IW$1))-FIND(CHAR(160),SUBSTITUTE($AB133,\"{\",CHAR(160),IW$1))+1),\"\")","v":""},{"$f":"IFERROR(MID($AB133,FIND(CHAR(160),SUBSTITUTE($AB133,\"{\",CHAR(160),IX$1)),FIND(CHAR(160),SUBSTITUTE($AB133,\"}\",CHAR(160),IX$1))-FIND(CHAR(160),SUBSTITUTE($AB133,\"{\",CHAR(160),IX$1))+1),\"\")","v":""},null,{"$f":"10-COUNTIF(DU133:ED133,\"\")","v":4}]
["C&I Prescriptive Compressed Air Solutions","LPD Filter - C33 - System Compressor Size (hp) - >50","LPD - C33","2021-07-01","2022-06-30","Calculated","{Measure:Quantity}*{System Compressor Size (HP)} * 4.60",0,"Per Measure",200,0,"2017-07-01","2022-06-30","Calculated","{Measure:Quantity} *{System Compressor Size (HP)} * 0.746 * 0.01 * {Weekly Hrs of Operation} * {Weeks Per Year}",1E-4,null,"{Measure:Quantity} *{System Compressor Size (HP)} * 0.746 * 0.01",null,null,"{Measure:Quantity} *{System Compressor Size (HP)} * 0.746 * 0.01 * {Factor:WinterCF}","{Measure:Quantity} *{System Compressor Size (HP)} * 0.746 * 0.01 * {Factor:SummerCF}",null,null,null,null,null,null,"2017-07-01","2022-06-30",4,0.7,0.91100000000000003,0.30399999999999999,0.36099999999999999,0.156,0.17899999999999999,1,1.1220000000000001,1,0.52,1.6E-2,null,{"$f":"DU134","v":"{Measure:Quantity}"},1,{"$f":"DV134","v":"{System Compressor Size (HP)}"},50,{"$f":"DW134","v":"{Weekly Hrs of Operation}"},50,{"$f":"DX134","v":"{Weeks Per Year}"},50,{"$f":"DY134","v":""},null,{"$f":"DZ134","v":""},null,{"$f":"EA134","v":""},null,{"$f":"EB134","v":""},null,{"$f":"EC134","v":""},null,{"$f":"ED134","v":""},null,{"$f":"AS134 *AU134 * 0.746 * 0.01 * AW134 * AY134","v":932.49999999999989},{"$f":"0.0001","v":1E-4},0,{"$f":"AS134 *AU134 * 0.746 * 0.01","v":0.373},0,0,{"$f":"AS134 *AU134 * 0.746 * 0.01 * AF134","v":0.2611},{"$f":"AS134 *AU134 * 0.746 * 0.01 * AG134","v":0.33980300000000002},0,0,0,0,0,0,null,"Com","Default DR",{"$f":"Benefits(BL134,BR134,BS134,BT134,BU134,BV134,BW134,BX134,BY134,BZ134,AE134,AH134,AI134,AJ134,AK134,AL134,AM134,AN134,AO134,AP134,CA134,CB134)","v":475.21934580330037},498.41467719130583,0,0,0,0,0,0,0,{"$f":"SUMPRODUCT(CC134:CK134,--(CC134:CK134>0))","v":973.6340229946062},{"$f":"-SUMPRODUCT(CC134:CK134,--(CC134:CK134<0))","v":0},null,{"$f":"AS134*AU134 * 4.6","v":229.99999999999997},null,null,{"$f":"CM134+CO134","v":229.99999999999997},{"$f":"IF(NetOrGross=\"Net\",(1-AO134+AP134),1)","v":1},{"$f":"(SUMPRODUCT(CC134:CJ134,--(CC134:CJ134>0))+CN134)*CS134/((-SUMPRODUCT(CC134:CJ134,--(CC134:CJ134<0))+MAX(CO134,CV134)+CP134+CQ134)*CS134+IF(FRIncentives=\"Yes\",CV134*(1-CS134),0))","v":4.2331914043243755},15,{"$f":"200","v":200},null,"Electric","y",null,{"$f":"IF(F134=\"Manual Entry\",\"Manual\",IF(G134=\"\",0,\"X=\"&SUBSTITUTE(SUBSTITUTE(SUBSTITUTE(SUBSTITUTE(SUBSTITUTE(SUBSTITUTE(SUBSTITUTE(SUBSTITUTE(SUBSTITUTE(SUBSTITUTE(SUBSTITUTE(SUBSTITUTE(G134,$ED134,$ED$2&ROW($ED134)),$EC134,$EC$2&ROW($EC134)),$EB134,$EB$2&ROW($EB134)),$EA134,$EA$2&ROW($EA134)),$DZ134,$DZ$2&ROW($DZ134)),$DY134,$DY$2&ROW($DY134)),$DX134,$DX$2&ROW($DX134)),$DW134,$DW$2&ROW($DW134)),$DV134,$DV$2&ROW($DV134)),$DU134,$DU$2&ROW($DU134)),$DT134,$DT$2&ROW($DT134)),$DS134,$DS$2&ROW($DS134))))","v":"X=AS134*AU134 * 4.60"},{"$f":"IF(I134=\"Manual Entry\",\"Manual\",IF(J134=\"\",0,\"X=\"&SUBSTITUTE(SUBSTITUTE(SUBSTITUTE(SUBSTITUTE(SUBSTITUTE(SUBSTITUTE(SUBSTITUTE(SUBSTITUTE(SUBSTITUTE(SUBSTITUTE(SUBSTITUTE(SUBSTITUTE(J134,$ED134,$ED$2&ROW($ED134)),$EC134,$EC$2&ROW($EC134)),$EB134,$EB$2&ROW($EB134)),$EA134,$EA$2&ROW($EA134)),$DZ134,$DZ$2&ROW($DZ134)),$DY134,$DY$2&ROW($DY134)),$DX134,$DX$2&ROW($DX134)),$DW134,$DW$2&ROW($DW134)),$DV134,$DV$2&ROW($DV134)),$DU134,$DU$2&ROW($DU134)),$DT134,$DT$2&ROW($DT134)),$DS134,$DS$2&ROW($DS134))))","v":"X=200"},{"$f":"IF(O134=\"\",0,\"X=\"&SUBSTITUTE(SUBSTITUTE(SUBSTITUTE(SUBSTITUTE(SUBSTITUTE(SUBSTITUTE(SUBSTITUTE(SUBSTITUTE(SUBSTITUTE(SUBSTITUTE(SUBSTITUTE(SUBSTITUTE(O134,$ED134,$ED$2&ROW($ED134)),$EC134,$EC$2&ROW($EC134)),$EB134,$EB$2&ROW($EB134)),$EA134,$EA$2&ROW($EA134)),$DZ134,$DZ$2&ROW($DZ134)),$DY134,$DY$2&ROW($DY134)),$DX134,$DX$2&ROW($DX134)),$DW134,$DW$2&ROW($DW134)),$DV134,$DV$2&ROW($DV134)),$DU134,$DU$2&ROW($DU134)),$DT134,$DT$2&ROW($DT134)),$DS134,$DS$2&ROW($DS134)))","v":"X=AS134 *AU134 * 0.746 * 0.01 * AW134 * AY134"},{"$f":"IF(P134=\"\",0,\"X=\"&SUBSTITUTE(SUBSTITUTE(SUBSTITUTE(SUBSTITUTE(SUBSTITUTE(SUBSTITUTE(SUBSTITUTE(SUBSTITUTE(SUBSTITUTE(SUBSTITUTE(SUBSTITUTE(SUBSTITUTE(P134,$ED134,$ED$2&ROW($ED134)),$EC134,$EC$2&ROW($EC134)),$EB134,$EB$2&ROW($EB134)),$EA134,$EA$2&ROW($EA134)),$DZ134,$DZ$2&ROW($DZ134)),$DY134,$DY$2&ROW($DY134)),$DX134,$DX$2&ROW($DX134)),$DW134,$DW$2&ROW($DW134)),$DV134,$DV$2&ROW($DV134)),$DU134,$DU$2&ROW($DU134)),$DT134,$DT$2&ROW($DT134)),$DS134,$DS$2&ROW($DS134)))","v":"X=0.0001"},{"$f":"IF(Q134=\"\",0,\"X=\"&SUBSTITUTE(SUBSTITUTE(SUBSTITUTE(SUBSTITUTE(SUBSTITUTE(SUBSTITUTE(SUBSTITUTE(SUBSTITUTE(SUBSTITUTE(SUBSTITUTE(SUBSTITUTE(SUBSTITUTE(Q134,$ED134,$ED$2&ROW($ED134)),$EC134,$EC$2&ROW($EC134)),$EB134,$EB$2&ROW($EB134)),$EA134,$EA$2&ROW($EA134)),$DZ134,$DZ$2&ROW($DZ134)),$DY134,$DY$2&ROW($DY134)),$DX134,$DX$2&ROW($DX134)),$DW134,$DW$2&ROW($DW134)),$DV134,$DV$2&ROW($DV134)),$DU134,$DU$2&ROW($DU134)),$DT134,$DT$2&ROW($DT134)),$DS134,$DS$2&ROW($DS134)))","v":0},{"$f":"IF(R134=\"\",0,\"X=\"&SUBSTITUTE(SUBSTITUTE(SUBSTITUTE(SUBSTITUTE(SUBSTITUTE(SUBSTITUTE(SUBSTITUTE(SUBSTITUTE(SUBSTITUTE(SUBSTITUTE(SUBSTITUTE(SUBSTITUTE(R134,$ED134,$ED$2&ROW($ED134)),$EC134,$EC$2&ROW($EC134)),$EB134,$EB$2&ROW($EB134)),$EA134,$EA$2&ROW($EA134)),$DZ134,$DZ$2&ROW($DZ134)),$DY134,$DY$2&ROW($DY134)),$DX134,$DX$2&ROW($DX134)),$DW134,$DW$2&ROW($DW134)),$DV134,$DV$2&ROW($DV134)),$DU134,$DU$2&ROW($DU134)),$DT134,$DT$2&ROW($DT134)),$DS134,$DS$2&ROW($DS134)))","v":"X=AS134 *AU134 * 0.746 * 0.01"},{"$f":"IF(S134=\"\",0,\"X=\"&SUBSTITUTE(SUBSTITUTE(SUBSTITUTE(SUBSTITUTE(SUBSTITUTE(SUBSTITUTE(SUBSTITUTE(SUBSTITUTE(SUBSTITUTE(SUBSTITUTE(SUBSTITUTE(SUBSTITUTE(S134,$ED134,$ED$2&ROW($ED134)),$EC134,$EC$2&ROW($EC134)),$EB134,$EB$2&ROW($EB134)),$EA134,$EA$2&ROW($EA134)),$DZ134,$DZ$2&ROW($DZ134)),$DY134,$DY$2&ROW($DY134)),$DX134,$DX$2&ROW($DX134)),$DW134,$DW$2&ROW($DW134)),$DV134,$DV$2&ROW($DV134)),$DU134,$DU$2&ROW($DU134)),$DT134,$DT$2&ROW($DT134)),$DS134,$DS$2&ROW($DS134)))","v":0},{"$f":"IF(T134=\"\",0,\"X=\"&SUBSTITUTE(SUBSTITUTE(SUBSTITUTE(SUBSTITUTE(SUBSTITUTE(SUBSTITUTE(SUBSTITUTE(SUBSTITUTE(SUBSTITUTE(SUBSTITUTE(SUBSTITUTE(SUBSTITUTE(T134,$ED134,$ED$2&ROW($ED134)),$EC134,$EC$2&ROW($EC134)),$EB134,$EB$2&ROW($EB134)),$EA134,$EA$2&ROW($EA134)),$DZ134,$DZ$2&ROW($DZ134)),$DY134,$DY$2&ROW($DY134)),$DX134,$DX$2&ROW($DX134)),$DW134,$DW$2&ROW($DW134)),$DV134,$DV$2&ROW($DV134)),$DU134,$DU$2&ROW($DU134)),$DT134,$DT$2&ROW($DT134)),$DS134,$DS$2&ROW($DS134)))","v":0},{"$f":"IF(U134=\"\",0,\"X=\"&SUBSTITUTE(SUBSTITUTE(SUBSTITUTE(SUBSTITUTE(SUBSTITUTE(SUBSTITUTE(SUBSTITUTE(SUBSTITUTE(SUBSTITUTE(SUBSTITUTE(SUBSTITUTE(SUBSTITUTE(U134,$ED134,$ED$2&ROW($ED134)),$EC134,$EC$2&ROW($EC134)),$EB134,$EB$2&ROW($EB134)),$EA134,$EA$2&ROW($EA134)),$DZ134,$DZ$2&ROW($DZ134)),$DY134,$DY$2&ROW($DY134)),$DX134,$DX$2&ROW($DX134)),$DW134,$DW$2&ROW($DW134)),$DV134,$DV$2&ROW($DV134)),$DU134,$DU$2&ROW($DU134)),$DT134,$DT$2&ROW($DT134)),$DS134,$DS$2&ROW($DS134)))","v":"X=AS134 *AU134 * 0.746 * 0.01 * AF134"},{"$f":"IF(V134=\"\",0,\"X=\"&SUBSTITUTE(SUBSTITUTE(SUBSTITUTE(SUBSTITUTE(SUBSTITUTE(SUBSTITUTE(SUBSTITUTE(SUBSTITUTE(SUBSTITUTE(SUBSTITUTE(SUBSTITUTE(SUBSTITUTE(V134,$ED134,$ED$2&ROW($ED134)),$EC134,$EC$2&ROW($EC134)),$EB134,$EB$2&ROW($EB134)),$EA134,$EA$2&ROW($EA134)),$DZ134,$DZ$2&ROW($DZ134)),$DY134,$DY$2&ROW($DY134)),$DX134,$DX$2&ROW($DX134)),$DW134,$DW$2&ROW($DW134)),$DV134,$DV$2&ROW($DV134)),$DU134,$DU$2&ROW($DU134)),$DT134,$DT$2&ROW($DT134)),$DS134,$DS$2&ROW($DS134)))","v":"X=AS134 *AU134 * 0.746 * 0.01 * AG134"},{"$f":"IF(W134=\"\",0,\"X=\"&SUBSTITUTE(SUBSTITUTE(SUBSTITUTE(SUBSTITUTE(SUBSTITUTE(SUBSTITUTE(SUBSTITUTE(SUBSTITUTE(SUBSTITUTE(SUBSTITUTE(SUBSTITUTE(SUBSTITUTE(W134,$ED134,$ED$2&ROW($ED134)),$EC134,$EC$2&ROW($EC134)),$EB134,$EB$2&ROW($EB134)),$EA134,$EA$2&ROW($EA134)),$DZ134,$DZ$2&ROW($DZ134)),$DY134,$DY$2&ROW($DY134)),$DX134,$DX$2&ROW($DX134)),$DW134,$DW$2&ROW($DW134)),$DV134,$DV$2&ROW($DV134)),$DU134,$DU$2&ROW($DU134)),$DT134,$DT$2&ROW($DT134)),$DS134,$DS$2&ROW($DS134)))","v":0},{"$f":"IF(X134=\"\",0,\"X=\"&SUBSTITUTE(SUBSTITUTE(SUBSTITUTE(SUBSTITUTE(SUBSTITUTE(SUBSTITUTE(SUBSTITUTE(SUBSTITUTE(SUBSTITUTE(SUBSTITUTE(SUBSTITUTE(SUBSTITUTE(X134,$ED134,$ED$2&ROW($ED134)),$EC134,$EC$2&ROW($EC134)),$EB134,$EB$2&ROW($EB134)),$EA134,$EA$2&ROW($EA134)),$DZ134,$DZ$2&ROW($DZ134)),$DY134,$DY$2&ROW($DY134)),$DX134,$DX$2&ROW($DX134)),$DW134,$DW$2&ROW($DW134)),$DV134,$DV$2&ROW($DV134)),$DU134,$DU$2&ROW($DU134)),$DT134,$DT$2&ROW($DT134)),$DS134,$DS$2&ROW($DS134)))","v":0},{"$f":"IF(Y134=\"\",0,\"X=\"&SUBSTITUTE(SUBSTITUTE(SUBSTITUTE(SUBSTITUTE(SUBSTITUTE(SUBSTITUTE(SUBSTITUTE(SUBSTITUTE(SUBSTITUTE(SUBSTITUTE(SUBSTITUTE(SUBSTITUTE(Y134,$ED134,$ED$2&ROW($ED134)),$EC134,$EC$2&ROW($EC134)),$EB134,$EB$2&ROW($EB134)),$EA134,$EA$2&ROW($EA134)),$DZ134,$DZ$2&ROW($DZ134)),$DY134,$DY$2&ROW($DY134)),$DX134,$DX$2&ROW($DX134)),$DW134,$DW$2&ROW($DW134)),$DV134,$DV$2&ROW($DV134)),$DU134,$DU$2&ROW($DU134)),$DT134,$DT$2&ROW($DT134)),$DS134,$DS$2&ROW($DS134)))","v":0},{"$f":"IF(Z134=\"\",0,\"X=\"&SUBSTITUTE(SUBSTITUTE(SUBSTITUTE(SUBSTITUTE(SUBSTITUTE(SUBSTITUTE(SUBSTITUTE(SUBSTITUTE(SUBSTITUTE(SUBSTITUTE(SUBSTITUTE(SUBSTITUTE(Z134,$ED134,$ED$2&ROW($ED134)),$EC134,$EC$2&ROW($EC134)),$EB134,$EB$2&ROW($EB134)),$EA134,$EA$2&ROW($EA134)),$DZ134,$DZ$2&ROW($DZ134)),$DY134,$DY$2&ROW($DY134)),$DX134,$DX$2&ROW($DX134)),$DW134,$DW$2&ROW($DW134)),$DV134,$DV$2&ROW($DV134)),$DU134,$DU$2&ROW($DU134)),$DT134,$DT$2&ROW($DT134)),$DS134,$DS$2&ROW($DS134)))","v":0},{"$f":"IF(AA134=\"\",0,\"X=\"&SUBSTITUTE(SUBSTITUTE(SUBSTITUTE(SUBSTITUTE(SUBSTITUTE(SUBSTITUTE(SUBSTITUTE(SUBSTITUTE(SUBSTITUTE(SUBSTITUTE(SUBSTITUTE(SUBSTITUTE(AA134,$ED134,$ED$2&ROW($ED134)),$EC134,$EC$2&ROW($EC134)),$EB134,$EB$2&ROW($EB134)),$EA134,$EA$2&ROW($EA134)),$DZ134,$DZ$2&ROW($DZ134)),$DY134,$DY$2&ROW($DY134)),$DX134,$DX$2&ROW($DX134)),$DW134,$DW$2&ROW($DW134)),$DV134,$DV$2&ROW($DV134)),$DU134,$DU$2&ROW($DU134)),$DT134,$DT$2&ROW($DT134)),$DS134,$DS$2&ROW($DS134)))","v":0},{"$f":"IF(AB134=\"\",0,\"X=\"&SUBSTITUTE(SUBSTITUTE(SUBSTITUTE(SUBSTITUTE(SUBSTITUTE(SUBSTITUTE(SUBSTITUTE(SUBSTITUTE(SUBSTITUTE(SUBSTITUTE(SUBSTITUTE(SUBSTITUTE(AB134,$ED134,$ED$2&ROW($ED134)),$EC134,$EC$2&ROW($EC134)),$EB134,$EB$2&ROW($EB134)),$EA134,$EA$2&ROW($EA134)),$DZ134,$DZ$2&ROW($DZ134)),$DY134,$DY$2&ROW($DY134)),$DX134,$DX$2&ROW($DX134)),$DW134,$DW$2&ROW($DW134)),$DV134,$DV$2&ROW($DV134)),$DU134,$DU$2&ROW($DU134)),$DT134,$DT$2&ROW($DT134)),$DS134,$DS$2&ROW($DS134)))","v":0},null,null,"{Factor:WinterCF}","{Factor:SummerCF}",{"$f":"IFERROR(INDEX($EG134:$IV134,MATCH(0,COUNTIF($DR134:DT134,$EG134:$IV134),0)),\"\")","v":"{Measure:Quantity}"},{"$f":"IFERROR(INDEX($EG134:$IV134,MATCH(0,COUNTIF($DR134:DU134,$EG134:$IV134),0)),\"\")","v":"{System Compressor Size (HP)}"},{"$f":"IFERROR(INDEX($EG134:$IV134,MATCH(0,COUNTIF($DR134:DV134,$EG134:$IV134),0)),\"\")","v":"{Weekly Hrs of Operation}"},{"$f":"IFERROR(INDEX($EG134:$IV134,MATCH(0,COUNTIF($DR134:DW134,$EG134:$IV134),0)),\"\")","v":"{Weeks Per Year}"},{"$f":"IFERROR(INDEX($EG134:$IV134,MATCH(0,COUNTIF($DR134:DX134,$EG134:$IV134),0)),\"\")","v":""},{"$f":"IFERROR(INDEX($EG134:$IV134,MATCH(0,COUNTIF($DR134:DY134,$EG134:$IV134),0)),\"\")","v":""},{"$f":"IFERROR(INDEX($EG134:$IV134,MATCH(0,COUNTIF($DR134:DZ134,$EG134:$IV134),0)),\"\")","v":""},{"$f":"IFERROR(INDEX($EG134:$IV134,MATCH(0,COUNTIF($DR134:EA134,$EG134:$IV134),0)),\"\")","v":""},{"$f":"IFERROR(INDEX($EG134:$IV134,MATCH(0,COUNTIF($DR134:EB134,$EG134:$IV134),0)),\"\")","v":""},{"$f":"IFERROR(INDEX($EG134:$IV134,MATCH(0,COUNTIF($DR134:EC134,$EG134:$IV134),0)),\"\")","v":""},null,null,{"$f":"IFERROR(MID($G134,FIND(CHAR(160),SUBSTITUTE($G134,\"{\",CHAR(160),EG$1)),FIND(CHAR(160),SUBSTITUTE($G134,\"}\",CHAR(160),EG$1))-FIND(CHAR(160),SUBSTITUTE($G134,\"{\",CHAR(160),EG$1))+1),\"\")","v":"{Measure:Quantity}"},{"$f":"IFERROR(MID($G134,FIND(CHAR(160),SUBSTITUTE($G134,\"{\",CHAR(160),EH$1)),FIND(CHAR(160),SUBSTITUTE($G134,\"}\",CHAR(160),EH$1))-FIND(CHAR(160),SUBSTITUTE($G134,\"{\",CHAR(160),EH$1))+1),\"\")","v":"{System Compressor Size (HP)}"},{"$f":"IFERROR(MID($G134,FIND(CHAR(160),SUBSTITUTE($G134,\"{\",CHAR(160),EI$1)),FIND(CHAR(160),SUBSTITUTE($G134,\"}\",CHAR(160),EI$1))-FIND(CHAR(160),SUBSTITUTE($G134,\"{\",CHAR(160),EI$1))+1),\"\")","v":""},{"$f":"IFERROR(MID($G134,FIND(CHAR(160),SUBSTITUTE($G134,\"{\",CHAR(160),EJ$1)),FIND(CHAR(160),SUBSTITUTE($G134,\"}\",CHAR(160),EJ$1))-FIND(CHAR(160),SUBSTITUTE($G134,\"{\",CHAR(160),EJ$1))+1),\"\")","v":""},{"$f":"IFERROR(MID($G134,FIND(CHAR(160),SUBSTITUTE($G134,\"{\",CHAR(160),EK$1)),FIND(CHAR(160),SUBSTITUTE($G134,\"}\",CHAR(160),EK$1))-FIND(CHAR(160),SUBSTITUTE($G134,\"{\",CHAR(160),EK$1))+1),\"\")","v":""},{"$f":"IFERROR(MID($G134,FIND(CHAR(160),SUBSTITUTE($G134,\"{\",CHAR(160),EL$1)),FIND(CHAR(160),SUBSTITUTE($G134,\"}\",CHAR(160),EL$1))-FIND(CHAR(160),SUBSTITUTE($G134,\"{\",CHAR(160),EL$1))+1),\"\")","v":""},{"$f":"IFERROR(MID($G134,FIND(CHAR(160),SUBSTITUTE($G134,\"{\",CHAR(160),EM$1)),FIND(CHAR(160),SUBSTITUTE($G134,\"}\",CHAR(160),EM$1))-FIND(CHAR(160),SUBSTITUTE($G134,\"{\",CHAR(160),EM$1))+1),\"\")","v":""},{"$f":"IFERROR(MID($G134,FIND(CHAR(160),SUBSTITUTE($G134,\"{\",CHAR(160),EN$1)),FIND(CHAR(160),SUBSTITUTE($G134,\"}\",CHAR(160),EN$1))-FIND(CHAR(160),SUBSTITUTE($G134,\"{\",CHAR(160),EN$1))+1),\"\")","v":""},{"$f":"IFERROR(MID($G134,FIND(CHAR(160),SUBSTITUTE($G134,\"{\",CHAR(160),EO$1)),FIND(CHAR(160),SUBSTITUTE($G134,\"}\",CHAR(160),EO$1))-FIND(CHAR(160),SUBSTITUTE($G134,\"{\",CHAR(160),EO$1))+1),\"\")","v":""},{"$f":"IFERROR(MID($G134,FIND(CHAR(160),SUBSTITUTE($G134,\"{\",CHAR(160),EP$1)),FIND(CHAR(160),SUBSTITUTE($G134,\"}\",CHAR(160),EP$1))-FIND(CHAR(160),SUBSTITUTE($G134,\"{\",CHAR(160),EP$1))+1),\"\")","v":""},{"$f":"IFERROR(MID($J134,FIND(CHAR(160),SUBSTITUTE($J134,\"{\",CHAR(160),EQ$1)),FIND(CHAR(160),SUBSTITUTE($J134,\"}\",CHAR(160),EQ$1))-FIND(CHAR(160),SUBSTITUTE($J134,\"{\",CHAR(160),EQ$1))+1),\"\")","v":""},{"$f":"IFERROR(MID($J134,FIND(CHAR(160),SUBSTITUTE($J134,\"{\",CHAR(160),ER$1)),FIND(CHAR(160),SUBSTITUTE($J134,\"}\",CHAR(160),ER$1))-FIND(CHAR(160),SUBSTITUTE($J134,\"{\",CHAR(160),ER$1))+1),\"\")","v":""},{"$f":"IFERROR(MID($J134,FIND(CHAR(160),SUBSTITUTE($J134,\"{\",CHAR(160),ES$1)),FIND(CHAR(160),SUBSTITUTE($J134,\"}\",CHAR(160),ES$1))-FIND(CHAR(160),SUBSTITUTE($J134,\"{\",CHAR(160),ES$1))+1),\"\")","v":""},{"$f":"IFERROR(MID($J134,FIND(CHAR(160),SUBSTITUTE($J134,\"{\",CHAR(160),ET$1)),FIND(CHAR(160),SUBSTITUTE($J134,\"}\",CHAR(160),ET$1))-FIND(CHAR(160),SUBSTITUTE($J134,\"{\",CHAR(160),ET$1))+1),\"\")","v":""},{"$f":"IFERROR(MID($J134,FIND(CHAR(160),SUBSTITUTE($J134,\"{\",CHAR(160),EU$1)),FIND(CHAR(160),SUBSTITUTE($J134,\"}\",CHAR(160),EU$1))-FIND(CHAR(160),SUBSTITUTE($J134,\"{\",CHAR(160),EU$1))+1),\"\")","v":""},{"$f":"IFERROR(MID($J134,FIND(CHAR(160),SUBSTITUTE($J134,\"{\",CHAR(160),EV$1)),FIND(CHAR(160),SUBSTITUTE($J134,\"}\",CHAR(160),EV$1))-FIND(CHAR(160),SUBSTITUTE($J134,\"{\",CHAR(160),EV$1))+1),\"\")","v":""},{"$f":"IFERROR(MID($J134,FIND(CHAR(160),SUBSTITUTE($J134,\"{\",CHAR(160),EW$1)),FIND(CHAR(160),SUBSTITUTE($J134,\"}\",CHAR(160),EW$1))-FIND(CHAR(160),SUBSTITUTE($J134,\"{\",CHAR(160),EW$1))+1),\"\")","v":""},{"$f":"IFERROR(MID($J134,FIND(CHAR(160),SUBSTITUTE($J134,\"{\",CHAR(160),EX$1)),FIND(CHAR(160),SUBSTITUTE($J134,\"}\",CHAR(160),EX$1))-FIND(CHAR(160),SUBSTITUTE($J134,\"{\",CHAR(160),EX$1))+1),\"\")","v":""},{"$f":"IFERROR(MID($J134,FIND(CHAR(160),SUBSTITUTE($J134,\"{\",CHAR(160),EY$1)),FIND(CHAR(160),SUBSTITUTE($J134,\"}\",CHAR(160),EY$1))-FIND(CHAR(160),SUBSTITUTE($J134,\"{\",CHAR(160),EY$1))+1),\"\")","v":""},{"$f":"IFERROR(MID($J134,FIND(CHAR(160),SUBSTITUTE($J134,\"{\",CHAR(160),EZ$1)),FIND(CHAR(160),SUBSTITUTE($J134,\"}\",CHAR(160),EZ$1))-FIND(CHAR(160),SUBSTITUTE($J134,\"{\",CHAR(160),EZ$1))+1),\"\")","v":""},{"$f":"IFERROR(MID($J134,FIND(CHAR(160),SUBSTITUTE($J134,\"{\",CHAR(160),FA$1)),FIND(CHAR(160),SUBSTITUTE($J134,\"}\",CHAR(160),FA$1))-FIND(CHAR(160),SUBSTITUTE($J134,\"{\",CHAR(160),FA$1))+1),\"\")","v":""},{"$f":"IFERROR(MID($J134,FIND(CHAR(160),SUBSTITUTE($J134,\"{\",CHAR(160),FB$1)),FIND(CHAR(160),SUBSTITUTE($J134,\"}\",CHAR(160),FB$1))-FIND(CHAR(160),SUBSTITUTE($J134,\"{\",CHAR(160),FB$1))+1),\"\")","v":""},{"$f":"IFERROR(MID($O134,FIND(CHAR(160),SUBSTITUTE($O134,\"{\",CHAR(160),FC$1)),FIND(CHAR(160),SUBSTITUTE($O134,\"}\",CHAR(160),FC$1))-FIND(CHAR(160),SUBSTITUTE($O134,\"{\",CHAR(160),FC$1))+1),\"\")","v":"{Weekly Hrs of Operation}"},{"$f":"IFERROR(MID($O134,FIND(CHAR(160),SUBSTITUTE($O134,\"{\",CHAR(160),FD$1)),FIND(CHAR(160),SUBSTITUTE($O134,\"}\",CHAR(160),FD$1))-FIND(CHAR(160),SUBSTITUTE($O134,\"{\",CHAR(160),FD$1))+1),\"\")","v":"{Weeks Per Year}"},{"$f":"IFERROR(MID($O134,FIND(CHAR(160),SUBSTITUTE($O134,\"{\",CHAR(160),FE$1)),FIND(CHAR(160),SUBSTITUTE($O134,\"}\",CHAR(160),FE$1))-FIND(CHAR(160),SUBSTITUTE($O134,\"{\",CHAR(160),FE$1))+1),\"\")","v":""},{"$f":"IFERROR(MID($O134,FIND(CHAR(160),SUBSTITUTE($O134,\"{\",CHAR(160),FF$1)),FIND(CHAR(160),SUBSTITUTE($O134,\"}\",CHAR(160),FF$1))-FIND(CHAR(160),SUBSTITUTE($O134,\"{\",CHAR(160),FF$1))+1),\"\")","v":""},{"$f":"IFERROR(MID($O134,FIND(CHAR(160),SUBSTITUTE($O134,\"{\",CHAR(160),FG$1)),FIND(CHAR(160),SUBSTITUTE($O134,\"}\",CHAR(160),FG$1))-FIND(CHAR(160),SUBSTITUTE($O134,\"{\",CHAR(160),FG$1))+1),\"\")","v":""},{"$f":"IFERROR(MID($O134,FIND(CHAR(160),SUBSTITUTE($O134,\"{\",CHAR(160),FH$1)),FIND(CHAR(160),SUBSTITUTE($O134,\"}\",CHAR(160),FH$1))-FIND(CHAR(160),SUBSTITUTE($O134,\"{\",CHAR(160),FH$1))+1),\"\")","v":""},{"$f":"IFERROR(MID($O134,FIND(CHAR(160),SUBSTITUTE($O134,\"{\",CHAR(160),FI$1)),FIND(CHAR(160),SUBSTITUTE($O134,\"}\",CHAR(160),FI$1))-FIND(CHAR(160),SUBSTITUTE($O134,\"{\",CHAR(160),FI$1))+1),\"\")","v":""},{"$f":"IFERROR(MID($O134,FIND(CHAR(160),SUBSTITUTE($O134,\"{\",CHAR(160),FJ$1)),FIND(CHAR(160),SUBSTITUTE($O134,\"}\",CHAR(160),FJ$1))-FIND(CHAR(160),SUBSTITUTE($O134,\"{\",CHAR(160),FJ$1))+1),\"\")","v":""},{"$f":"IFERROR(MID($O134,FIND(CHAR(160),SUBSTITUTE($O134,\"{\",CHAR(160),FK$1)),FIND(CHAR(160),SUBSTITUTE($O134,\"}\",CHAR(160),FK$1))-FIND(CHAR(160),SUBSTITUTE($O134,\"{\",CHAR(160),FK$1))+1),\"\")","v":"{Measure:Quantity}"},{"$f":"IFERROR(MID($O134,FIND(CHAR(160),SUBSTITUTE($O134,\"{\",CHAR(160),FL$1)),FIND(CHAR(160),SUBSTITUTE($O134,\"}\",CHAR(160),FL$1))-FIND(CHAR(160),SUBSTITUTE($O134,\"{\",CHAR(160),FL$1))+1),\"\")","v":"{System Compressor Size (HP)}"},{"$f":"IFERROR(MID($R134,FIND(CHAR(160),SUBSTITUTE($R134,\"{\",CHAR(160),FM$1)),FIND(CHAR(160),SUBSTITUTE($R134,\"}\",CHAR(160),FM$1))-FIND(CHAR(160),SUBSTITUTE($R134,\"{\",CHAR(160),FM$1))+1),\"\")","v":""},{"$f":"IFERROR(MID($R134,FIND(CHAR(160),SUBSTITUTE($R134,\"{\",CHAR(160),FN$1)),FIND(CHAR(160),SUBSTITUTE($R134,\"}\",CHAR(160),FN$1))-FIND(CHAR(160),SUBSTITUTE($R134,\"{\",CHAR(160),FN$1))+1),\"\")","v":""},{"$f":"IFERROR(MID($R134,FIND(CHAR(160),SUBSTITUTE($R134,\"{\",CHAR(160),FO$1)),FIND(CHAR(160),SUBSTITUTE($R134,\"}\",CHAR(160),FO$1))-FIND(CHAR(160),SUBSTITUTE($R134,\"{\",CHAR(160),FO$1))+1),\"\")","v":""},{"$f":"IFERROR(MID($R134,FIND(CHAR(160),SUBSTITUTE($R134,\"{\",CHAR(160),FP$1)),FIND(CHAR(160),SUBSTITUTE($R134,\"}\",CHAR(160),FP$1))-FIND(CHAR(160),SUBSTITUTE($R134,\"{\",CHAR(160),FP$1))+1),\"\")","v":""},{"$f":"IFERROR(MID($R134,FIND(CHAR(160),SUBSTITUTE($R134,\"{\",CHAR(160),FQ$1)),FIND(CHAR(160),SUBSTITUTE($R134,\"}\",CHAR(160),FQ$1))-FIND(CHAR(160),SUBSTITUTE($R134,\"{\",CHAR(160),FQ$1))+1),\"\")","v":""},{"$f":"IFERROR(MID($R134,FIND(CHAR(160),SUBSTITUTE($R134,\"{\",CHAR(160),FR$1)),FIND(CHAR(160),SUBSTITUTE($R134,\"}\",CHAR(160),FR$1))-FIND(CHAR(160),SUBSTITUTE($R134,\"{\",CHAR(160),FR$1))+1),\"\")","v":""},{"$f":"IFERROR(MID($R134,FIND(CHAR(160),SUBSTITUTE($R134,\"{\",CHAR(160),FS$1)),FIND(CHAR(160),SUBSTITUTE($R134,\"}\",CHAR(160),FS$1))-FIND(CHAR(160),SUBSTITUTE($R134,\"{\",CHAR(160),FS$1))+1),\"\")","v":""},{"$f":"IFERROR(MID($R134,FIND(CHAR(160),SUBSTITUTE($R134,\"{\",CHAR(160),FT$1)),FIND(CHAR(160),SUBSTITUTE($R134,\"}\",CHAR(160),FT$1))-FIND(CHAR(160),SUBSTITUTE($R134,\"{\",CHAR(160),FT$1))+1),\"\")","v":""},{"$f":"IFERROR(MID($R134,FIND(CHAR(160),SUBSTITUTE($R134,\"{\",CHAR(160),FU$1)),FIND(CHAR(160),SUBSTITUTE($R134,\"}\",CHAR(160),FU$1))-FIND(CHAR(160),SUBSTITUTE($R134,\"{\",CHAR(160),FU$1))+1),\"\")","v":"{Measure:Quantity}"},{"$f":"IFERROR(MID($R134,FIND(CHAR(160),SUBSTITUTE($R134,\"{\",CHAR(160),FV$1)),FIND(CHAR(160),SUBSTITUTE($R134,\"}\",CHAR(160),FV$1))-FIND(CHAR(160),SUBSTITUTE($R134,\"{\",CHAR(160),FV$1))+1),\"\")","v":"{System Compressor Size (HP)}"},{"$f":"IFERROR(MID($U134,FIND(CHAR(160),SUBSTITUTE($U134,\"{\",CHAR(160),FW$1)),FIND(CHAR(160),SUBSTITUTE($U134,\"}\",CHAR(160),FW$1))-FIND(CHAR(160),SUBSTITUTE($U134,\"{\",CHAR(160),FW$1))+1),\"\")","v":"{Factor:WinterCF}"},{"$f":"IFERROR(MID($U134,FIND(CHAR(160),SUBSTITUTE($U134,\"{\",CHAR(160),FX$1)),FIND(CHAR(160),SUBSTITUTE($U134,\"}\",CHAR(160),FX$1))-FIND(CHAR(160),SUBSTITUTE($U134,\"{\",CHAR(160),FX$1))+1),\"\")","v":""},{"$f":"IFERROR(MID($U134,FIND(CHAR(160),SUBSTITUTE($U134,\"{\",CHAR(160),FY$1)),FIND(CHAR(160),SUBSTITUTE($U134,\"}\",CHAR(160),FY$1))-FIND(CHAR(160),SUBSTITUTE($U134,\"{\",CHAR(160),FY$1))+1),\"\")","v":""},{"$f":"IFERROR(MID($U134,FIND(CHAR(160),SUBSTITUTE($U134,\"{\",CHAR(160),FZ$1)),FIND(CHAR(160),SUBSTITUTE($U134,\"}\",CHAR(160),FZ$1))-FIND(CHAR(160),SUBSTITUTE($U134,\"{\",CHAR(160),FZ$1))+1),\"\")","v":""},{"$f":"IFERROR(MID($U134,FIND(CHAR(160),SUBSTITUTE($U134,\"{\",CHAR(160),GA$1)),FIND(CHAR(160),SUBSTITUTE($U134,\"}\",CHAR(160),GA$1))-FIND(CHAR(160),SUBSTITUTE($U134,\"{\",CHAR(160),GA$1))+1),\"\")","v":""},{"$f":"IFERROR(MID($U134,FIND(CHAR(160),SUBSTITUTE($U134,\"{\",CHAR(160),GB$1)),FIND(CHAR(160),SUBSTITUTE($U134,\"}\",CHAR(160),GB$1))-FIND(CHAR(160),SUBSTITUTE($U134,\"{\",CHAR(160),GB$1))+1),\"\")","v":""},{"$f":"IFERROR(MID($U134,FIND(CHAR(160),SUBSTITUTE($U134,\"{\",CHAR(160),GC$1)),FIND(CHAR(160),SUBSTITUTE($U134,\"}\",CHAR(160),GC$1))-FIND(CHAR(160),SUBSTITUTE($U134,\"{\",CHAR(160),GC$1))+1),\"\")","v":""},{"$f":"IFERROR(MID($U134,FIND(CHAR(160),SUBSTITUTE($U134,\"{\",CHAR(160),GD$1)),FIND(CHAR(160),SUBSTITUTE($U134,\"}\",CHAR(160),GD$1))-FIND(CHAR(160),SUBSTITUTE($U134,\"{\",CHAR(160),GD$1))+1),\"\")","v":""},{"$f":"IFERROR(MID($U134,FIND(CHAR(160),SUBSTITUTE($U134,\"{\",CHAR(160),GE$1)),FIND(CHAR(160),SUBSTITUTE($U134,\"}\",CHAR(160),GE$1))-FIND(CHAR(160),SUBSTITUTE($U134,\"{\",CHAR(160),GE$1))+1),\"\")","v":"{Measure:Quantity}"},{"$f":"IFERROR(MID($U134,FIND(CHAR(160),SUBSTITUTE($U134,\"{\",CHAR(160),GF$1)),FIND(CHAR(160),SUBSTITUTE($U134,\"}\",CHAR(160),GF$1))-FIND(CHAR(160),SUBSTITUTE($U134,\"{\",CHAR(160),GF$1))+1),\"\")","v":"{System Compressor Size (HP)}"},{"$f":"IFERROR(MID($V134,FIND(CHAR(160),SUBSTITUTE($V134,\"{\",CHAR(160),GG$1)),FIND(CHAR(160),SUBSTITUTE($V134,\"}\",CHAR(160),GG$1))-FIND(CHAR(160),SUBSTITUTE($V134,\"{\",CHAR(160),GG$1))+1),\"\")","v":"{Factor:SummerCF}"},{"$f":"IFERROR(MID($V134,FIND(CHAR(160),SUBSTITUTE($V134,\"{\",CHAR(160),GH$1)),FIND(CHAR(160),SUBSTITUTE($V134,\"}\",CHAR(160),GH$1))-FIND(CHAR(160),SUBSTITUTE($V134,\"{\",CHAR(160),GH$1))+1),\"\")","v":""},{"$f":"IFERROR(MID($V134,FIND(CHAR(160),SUBSTITUTE($V134,\"{\",CHAR(160),GI$1)),FIND(CHAR(160),SUBSTITUTE($V134,\"}\",CHAR(160),GI$1))-FIND(CHAR(160),SUBSTITUTE($V134,\"{\",CHAR(160),GI$1))+1),\"\")","v":""},{"$f":"IFERROR(MID($V134,FIND(CHAR(160),SUBSTITUTE($V134,\"{\",CHAR(160),GJ$1)),FIND(CHAR(160),SUBSTITUTE($V134,\"}\",CHAR(160),GJ$1))-FIND(CHAR(160),SUBSTITUTE($V134,\"{\",CHAR(160),GJ$1))+1),\"\")","v":""},{"$f":"IFERROR(MID($V134,FIND(CHAR(160),SUBSTITUTE($V134,\"{\",CHAR(160),GK$1)),FIND(CHAR(160),SUBSTITUTE($V134,\"}\",CHAR(160),GK$1))-FIND(CHAR(160),SUBSTITUTE($V134,\"{\",CHAR(160),GK$1))+1),\"\")","v":""},{"$f":"IFERROR(MID($V134,FIND(CHAR(160),SUBSTITUTE($V134,\"{\",CHAR(160),GL$1)),FIND(CHAR(160),SUBSTITUTE($V134,\"}\",CHAR(160),GL$1))-FIND(CHAR(160),SUBSTITUTE($V134,\"{\",CHAR(160),GL$1))+1),\"\")","v":""},{"$f":"IFERROR(MID($V134,FIND(CHAR(160),SUBSTITUTE($V134,\"{\",CHAR(160),GM$1)),FIND(CHAR(160),SUBSTITUTE($V134,\"}\",CHAR(160),GM$1))-FIND(CHAR(160),SUBSTITUTE($V134,\"{\",CHAR(160),GM$1))+1),\"\")","v":""},{"$f":"IFERROR(MID($V134,FIND(CHAR(160),SUBSTITUTE($V134,\"{\",CHAR(160),GN$1)),FIND(CHAR(160),SUBSTITUTE($V134,\"}\",CHAR(160),GN$1))-FIND(CHAR(160),SUBSTITUTE($V134,\"{\",CHAR(160),GN$1))+1),\"\")","v":""},{"$f":"IFERROR(MID($V134,FIND(CHAR(160),SUBSTITUTE($V134,\"{\",CHAR(160),GO$1)),FIND(CHAR(160),SUBSTITUTE($V134,\"}\",CHAR(160),GO$1))-FIND(CHAR(160),SUBSTITUTE($V134,\"{\",CHAR(160),GO$1))+1),\"\")","v":"{Measure:Quantity}"},{"$f":"IFERROR(MID($V134,FIND(CHAR(160),SUBSTITUTE($V134,\"{\",CHAR(160),GP$1)),FIND(CHAR(160),SUBSTITUTE($V134,\"}\",CHAR(160),GP$1))-FIND(CHAR(160),SUBSTITUTE($V134,\"{\",CHAR(160),GP$1))+1),\"\")","v":"{System Compressor Size (HP)}"},{"$f":"IFERROR(MID($W134,FIND(CHAR(160),SUBSTITUTE($W134,\"{\",CHAR(160),GQ$1)),FIND(CHAR(160),SUBSTITUTE($W134,\"}\",CHAR(160),GQ$1))-FIND(CHAR(160),SUBSTITUTE($W134,\"{\",CHAR(160),GQ$1))+1),\"\")","v":""},{"$f":"IFERROR(MID($W134,FIND(CHAR(160),SUBSTITUTE($W134,\"{\",CHAR(160),GR$1)),FIND(CHAR(160),SUBSTITUTE($W134,\"}\",CHAR(160),GR$1))-FIND(CHAR(160),SUBSTITUTE($W134,\"{\",CHAR(160),GR$1))+1),\"\")","v":""},{"$f":"IFERROR(MID($W134,FIND(CHAR(160),SUBSTITUTE($W134,\"{\",CHAR(160),GS$1)),FIND(CHAR(160),SUBSTITUTE($W134,\"}\",CHAR(160),GS$1))-FIND(CHAR(160),SUBSTITUTE($W134,\"{\",CHAR(160),GS$1))+1),\"\")","v":""},{"$f":"IFERROR(MID($W134,FIND(CHAR(160),SUBSTITUTE($W134,\"{\",CHAR(160),GT$1)),FIND(CHAR(160),SUBSTITUTE($W134,\"}\",CHAR(160),GT$1))-FIND(CHAR(160),SUBSTITUTE($W134,\"{\",CHAR(160),GT$1))+1),\"\")","v":""},{"$f":"IFERROR(MID($W134,FIND(CHAR(160),SUBSTITUTE($W134,\"{\",CHAR(160),GU$1)),FIND(CHAR(160),SUBSTITUTE($W134,\"}\",CHAR(160),GU$1))-FIND(CHAR(160),SUBSTITUTE($W134,\"{\",CHAR(160),GU$1))+1),\"\")","v":""},{"$f":"IFERROR(MID($W134,FIND(CHAR(160),SUBSTITUTE($W134,\"{\",CHAR(160),GV$1)),FIND(CHAR(160),SUBSTITUTE($W134,\"}\",CHAR(160),GV$1))-FIND(CHAR(160),SUBSTITUTE($W134,\"{\",CHAR(160),GV$1))+1),\"\")","v":""},{"$f":"IFERROR(MID($W134,FIND(CHAR(160),SUBSTITUTE($W134,\"{\",CHAR(160),GW$1)),FIND(CHAR(160),SUBSTITUTE($W134,\"}\",CHAR(160),GW$1))-FIND(CHAR(160),SUBSTITUTE($W134,\"{\",CHAR(160),GW$1))+1),\"\")","v":""},{"$f":"IFERROR(MID($W134,FIND(CHAR(160),SUBSTITUTE($W134,\"{\",CHAR(160),GX$1)),FIND(CHAR(160),SUBSTITUTE($W134,\"}\",CHAR(160),GX$1))-FIND(CHAR(160),SUBSTITUTE($W134,\"{\",CHAR(160),GX$1))+1),\"\")","v":""},{"$f":"IFERROR(MID($W134,FIND(CHAR(160),SUBSTITUTE($W134,\"{\",CHAR(160),GY$1)),FIND(CHAR(160),SUBSTITUTE($W134,\"}\",CHAR(160),GY$1))-FIND(CHAR(160),SUBSTITUTE($W134,\"{\",CHAR(160),GY$1))+1),\"\")","v":""},{"$f":"IFERROR(MID($W134,FIND(CHAR(160),SUBSTITUTE($W134,\"{\",CHAR(160),GZ$1)),FIND(CHAR(160),SUBSTITUTE($W134,\"}\",CHAR(160),GZ$1))-FIND(CHAR(160),SUBSTITUTE($W134,\"{\",CHAR(160),GZ$1))+1),\"\")","v":""},{"$f":"IFERROR(MID($X134,FIND(CHAR(160),SUBSTITUTE($X134,\"{\",CHAR(160),HA$1)),FIND(CHAR(160),SUBSTITUTE($X134,\"}\",CHAR(160),HA$1))-FIND(CHAR(160),SUBSTITUTE($X134,\"{\",CHAR(160),HA$1))+1),\"\")","v":""},{"$f":"IFERROR(MID($X134,FIND(CHAR(160),SUBSTITUTE($X134,\"{\",CHAR(160),HB$1)),FIND(CHAR(160),SUBSTITUTE($X134,\"}\",CHAR(160),HB$1))-FIND(CHAR(160),SUBSTITUTE($X134,\"{\",CHAR(160),HB$1))+1),\"\")","v":""},{"$f":"IFERROR(MID($X134,FIND(CHAR(160),SUBSTITUTE($X134,\"{\",CHAR(160),HC$1)),FIND(CHAR(160),SUBSTITUTE($X134,\"}\",CHAR(160),HC$1))-FIND(CHAR(160),SUBSTITUTE($X134,\"{\",CHAR(160),HC$1))+1),\"\")","v":""},{"$f":"IFERROR(MID($X134,FIND(CHAR(160),SUBSTITUTE($X134,\"{\",CHAR(160),HD$1)),FIND(CHAR(160),SUBSTITUTE($X134,\"}\",CHAR(160),HD$1))-FIND(CHAR(160),SUBSTITUTE($X134,\"{\",CHAR(160),HD$1))+1),\"\")","v":""},{"$f":"IFERROR(MID($X134,FIND(CHAR(160),SUBSTITUTE($X134,\"{\",CHAR(160),HE$1)),FIND(CHAR(160),SUBSTITUTE($X134,\"}\",CHAR(160),HE$1))-FIND(CHAR(160),SUBSTITUTE($X134,\"{\",CHAR(160),HE$1))+1),\"\")","v":""},{"$f":"IFERROR(MID($X134,FIND(CHAR(160),SUBSTITUTE($X134,\"{\",CHAR(160),HF$1)),FIND(CHAR(160),SUBSTITUTE($X134,\"}\",CHAR(160),HF$1))-FIND(CHAR(160),SUBSTITUTE($X134,\"{\",CHAR(160),HF$1))+1),\"\")","v":""},{"$f":"IFERROR(MID($X134,FIND(CHAR(160),SUBSTITUTE($X134,\"{\",CHAR(160),HG$1)),FIND(CHAR(160),SUBSTITUTE($X134,\"}\",CHAR(160),HG$1))-FIND(CHAR(160),SUBSTITUTE($X134,\"{\",CHAR(160),HG$1))+1),\"\")","v":""},{"$f":"IFERROR(MID($X134,FIND(CHAR(160),SUBSTITUTE($X134,\"{\",CHAR(160),HH$1)),FIND(CHAR(160),SUBSTITUTE($X134,\"}\",CHAR(160),HH$1))-FIND(CHAR(160),SUBSTITUTE($X134,\"{\",CHAR(160),HH$1))+1),\"\")","v":""},{"$f":"IFERROR(MID($X134,FIND(CHAR(160),SUBSTITUTE($X134,\"{\",CHAR(160),HI$1)),FIND(CHAR(160),SUBSTITUTE($X134,\"}\",CHAR(160),HI$1))-FIND(CHAR(160),SUBSTITUTE($X134,\"{\",CHAR(160),HI$1))+1),\"\")","v":""},{"$f":"IFERROR(MID($X134,FIND(CHAR(160),SUBSTITUTE($X134,\"{\",CHAR(160),HJ$1)),FIND(CHAR(160),SUBSTITUTE($X134,\"}\",CHAR(160),HJ$1))-FIND(CHAR(160),SUBSTITUTE($X134,\"{\",CHAR(160),HJ$1))+1),\"\")","v":""},{"$f":"IFERROR(MID($Y134,FIND(CHAR(160),SUBSTITUTE($Y134,\"{\",CHAR(160),HK$1)),FIND(CHAR(160),SUBSTITUTE($Y134,\"}\",CHAR(160),HK$1))-FIND(CHAR(160),SUBSTITUTE($Y134,\"{\",CHAR(160),HK$1))+1),\"\")","v":""},{"$f":"IFERROR(MID($Y134,FIND(CHAR(160),SUBSTITUTE($Y134,\"{\",CHAR(160),HL$1)),FIND(CHAR(160),SUBSTITUTE($Y134,\"}\",CHAR(160),HL$1))-FIND(CHAR(160),SUBSTITUTE($Y134,\"{\",CHAR(160),HL$1))+1),\"\")","v":""},{"$f":"IFERROR(MID($Y134,FIND(CHAR(160),SUBSTITUTE($Y134,\"{\",CHAR(160),HM$1)),FIND(CHAR(160),SUBSTITUTE($Y134,\"}\",CHAR(160),HM$1))-FIND(CHAR(160),SUBSTITUTE($Y134,\"{\",CHAR(160),HM$1))+1),\"\")","v":""},{"$f":"IFERROR(MID($Y134,FIND(CHAR(160),SUBSTITUTE($Y134,\"{\",CHAR(160),HN$1)),FIND(CHAR(160),SUBSTITUTE($Y134,\"}\",CHAR(160),HN$1))-FIND(CHAR(160),SUBSTITUTE($Y134,\"{\",CHAR(160),HN$1))+1),\"\")","v":""},{"$f":"IFERROR(MID($Y134,FIND(CHAR(160),SUBSTITUTE($Y134,\"{\",CHAR(160),HO$1)),FIND(CHAR(160),SUBSTITUTE($Y134,\"}\",CHAR(160),HO$1))-FIND(CHAR(160),SUBSTITUTE($Y134,\"{\",CHAR(160),HO$1))+1),\"\")","v":""},{"$f":"IFERROR(MID($Y134,FIND(CHAR(160),SUBSTITUTE($Y134,\"{\",CHAR(160),HP$1)),FIND(CHAR(160),SUBSTITUTE($Y134,\"}\",CHAR(160),HP$1))-FIND(CHAR(160),SUBSTITUTE($Y134,\"{\",CHAR(160),HP$1))+1),\"\")","v":""},{"$f":"IFERROR(MID($Y134,FIND(CHAR(160),SUBSTITUTE($Y134,\"{\",CHAR(160),HQ$1)),FIND(CHAR(160),SUBSTITUTE($Y134,\"}\",CHAR(160),HQ$1))-FIND(CHAR(160),SUBSTITUTE($Y134,\"{\",CHAR(160),HQ$1))+1),\"\")","v":""},{"$f":"IFERROR(MID($Y134,FIND(CHAR(160),SUBSTITUTE($Y134,\"{\",CHAR(160),HR$1)),FIND(CHAR(160),SUBSTITUTE($Y134,\"}\",CHAR(160),HR$1))-FIND(CHAR(160),SUBSTITUTE($Y134,\"{\",CHAR(160),HR$1))+1),\"\")","v":""},{"$f":"IFERROR(MID($Y134,FIND(CHAR(160),SUBSTITUTE($Y134,\"{\",CHAR(160),HS$1)),FIND(CHAR(160),SUBSTITUTE($Y134,\"}\",CHAR(160),HS$1))-FIND(CHAR(160),SUBSTITUTE($Y134,\"{\",CHAR(160),HS$1))+1),\"\")","v":""},{"$f":"IFERROR(MID($Y134,FIND(CHAR(160),SUBSTITUTE($Y134,\"{\",CHAR(160),HT$1)),FIND(CHAR(160),SUBSTITUTE($Y134,\"}\",CHAR(160),HT$1))-FIND(CHAR(160),SUBSTITUTE($Y134,\"{\",CHAR(160),HT$1))+1),\"\")","v":""},{"$f":"IFERROR(MID($Z134,FIND(CHAR(160),SUBSTITUTE($Z134,\"{\",CHAR(160),HU$1)),FIND(CHAR(160),SUBSTITUTE($Z134,\"}\",CHAR(160),HU$1))-FIND(CHAR(160),SUBSTITUTE($Z134,\"{\",CHAR(160),HU$1))+1),\"\")","v":""},{"$f":"IFERROR(MID($Z134,FIND(CHAR(160),SUBSTITUTE($Z134,\"{\",CHAR(160),HV$1)),FIND(CHAR(160),SUBSTITUTE($Z134,\"}\",CHAR(160),HV$1))-FIND(CHAR(160),SUBSTITUTE($Z134,\"{\",CHAR(160),HV$1))+1),\"\")","v":""},{"$f":"IFERROR(MID($Z134,FIND(CHAR(160),SUBSTITUTE($Z134,\"{\",CHAR(160),HW$1)),FIND(CHAR(160),SUBSTITUTE($Z134,\"}\",CHAR(160),HW$1))-FIND(CHAR(160),SUBSTITUTE($Z134,\"{\",CHAR(160),HW$1))+1),\"\")","v":""},{"$f":"IFERROR(MID($Z134,FIND(CHAR(160),SUBSTITUTE($Z134,\"{\",CHAR(160),HX$1)),FIND(CHAR(160),SUBSTITUTE($Z134,\"}\",CHAR(160),HX$1))-FIND(CHAR(160),SUBSTITUTE($Z134,\"{\",CHAR(160),HX$1))+1),\"\")","v":""},{"$f":"IFERROR(MID($Z134,FIND(CHAR(160),SUBSTITUTE($Z134,\"{\",CHAR(160),HY$1)),FIND(CHAR(160),SUBSTITUTE($Z134,\"}\",CHAR(160),HY$1))-FIND(CHAR(160),SUBSTITUTE($Z134,\"{\",CHAR(160),HY$1))+1),\"\")","v":""},{"$f":"IFERROR(MID($Z134,FIND(CHAR(160),SUBSTITUTE($Z134,\"{\",CHAR(160),HZ$1)),FIND(CHAR(160),SUBSTITUTE($Z134,\"}\",CHAR(160),HZ$1))-FIND(CHAR(160),SUBSTITUTE($Z134,\"{\",CHAR(160),HZ$1))+1),\"\")","v":""},{"$f":"IFERROR(MID($Z134,FIND(CHAR(160),SUBSTITUTE($Z134,\"{\",CHAR(160),IA$1)),FIND(CHAR(160),SUBSTITUTE($Z134,\"}\",CHAR(160),IA$1))-FIND(CHAR(160),SUBSTITUTE($Z134,\"{\",CHAR(160),IA$1))+1),\"\")","v":""},{"$f":"IFERROR(MID($Z134,FIND(CHAR(160),SUBSTITUTE($Z134,\"{\",CHAR(160),IB$1)),FIND(CHAR(160),SUBSTITUTE($Z134,\"}\",CHAR(160),IB$1))-FIND(CHAR(160),SUBSTITUTE($Z134,\"{\",CHAR(160),IB$1))+1),\"\")","v":""},{"$f":"IFERROR(MID($Z134,FIND(CHAR(160),SUBSTITUTE($Z134,\"{\",CHAR(160),IC$1)),FIND(CHAR(160),SUBSTITUTE($Z134,\"}\",CHAR(160),IC$1))-FIND(CHAR(160),SUBSTITUTE($Z134,\"{\",CHAR(160),IC$1))+1),\"\")","v":""},{"$f":"IFERROR(MID($Z134,FIND(CHAR(160),SUBSTITUTE($Z134,\"{\",CHAR(160),ID$1)),FIND(CHAR(160),SUBSTITUTE($Z134,\"}\",CHAR(160),ID$1))-FIND(CHAR(160),SUBSTITUTE($Z134,\"{\",CHAR(160),ID$1))+1),\"\")","v":""},{"$f":"IFERROR(MID($AA134,FIND(CHAR(160),SUBSTITUTE($AA134,\"{\",CHAR(160),IE$1)),FIND(CHAR(160),SUBSTITUTE($AA134,\"}\",CHAR(160),IE$1))-FIND(CHAR(160),SUBSTITUTE($AA134,\"{\",CHAR(160),IE$1))+1),\"\")","v":""},{"$f":"IFERROR(MID($AA134,FIND(CHAR(160),SUBSTITUTE($AA134,\"{\",CHAR(160),IF$1)),FIND(CHAR(160),SUBSTITUTE($AA134,\"}\",CHAR(160),IF$1))-FIND(CHAR(160),SUBSTITUTE($AA134,\"{\",CHAR(160),IF$1))+1),\"\")","v":""},{"$f":"IFERROR(MID($AA134,FIND(CHAR(160),SUBSTITUTE($AA134,\"{\",CHAR(160),IG$1)),FIND(CHAR(160),SUBSTITUTE($AA134,\"}\",CHAR(160),IG$1))-FIND(CHAR(160),SUBSTITUTE($AA134,\"{\",CHAR(160),IG$1))+1),\"\")","v":""},{"$f":"IFERROR(MID($AA134,FIND(CHAR(160),SUBSTITUTE($AA134,\"{\",CHAR(160),IH$1)),FIND(CHAR(160),SUBSTITUTE($AA134,\"}\",CHAR(160),IH$1))-FIND(CHAR(160),SUBSTITUTE($AA134,\"{\",CHAR(160),IH$1))+1),\"\")","v":""},{"$f":"IFERROR(MID($AA134,FIND(CHAR(160),SUBSTITUTE($AA134,\"{\",CHAR(160),II$1)),FIND(CHAR(160),SUBSTITUTE($AA134,\"}\",CHAR(160),II$1))-FIND(CHAR(160),SUBSTITUTE($AA134,\"{\",CHAR(160),II$1))+1),\"\")","v":""},{"$f":"IFERROR(MID($AA134,FIND(CHAR(160),SUBSTITUTE($AA134,\"{\",CHAR(160),IJ$1)),FIND(CHAR(160),SUBSTITUTE($AA134,\"}\",CHAR(160),IJ$1))-FIND(CHAR(160),SUBSTITUTE($AA134,\"{\",CHAR(160),IJ$1))+1),\"\")","v":""},{"$f":"IFERROR(MID($AA134,FIND(CHAR(160),SUBSTITUTE($AA134,\"{\",CHAR(160),IK$1)),FIND(CHAR(160),SUBSTITUTE($AA134,\"}\",CHAR(160),IK$1))-FIND(CHAR(160),SUBSTITUTE($AA134,\"{\",CHAR(160),IK$1))+1),\"\")","v":""},{"$f":"IFERROR(MID($AA134,FIND(CHAR(160),SUBSTITUTE($AA134,\"{\",CHAR(160),IL$1)),FIND(CHAR(160),SUBSTITUTE($AA134,\"}\",CHAR(160),IL$1))-FIND(CHAR(160),SUBSTITUTE($AA134,\"{\",CHAR(160),IL$1))+1),\"\")","v":""},{"$f":"IFERROR(MID($AA134,FIND(CHAR(160),SUBSTITUTE($AA134,\"{\",CHAR(160),IM$1)),FIND(CHAR(160),SUBSTITUTE($AA134,\"}\",CHAR(160),IM$1))-FIND(CHAR(160),SUBSTITUTE($AA134,\"{\",CHAR(160),IM$1))+1),\"\")","v":""},{"$f":"IFERROR(MID($AA134,FIND(CHAR(160),SUBSTITUTE($AA134,\"{\",CHAR(160),IN$1)),FIND(CHAR(160),SUBSTITUTE($AA134,\"}\",CHAR(160),IN$1))-FIND(CHAR(160),SUBSTITUTE($AA134,\"{\",CHAR(160),IN$1))+1),\"\")","v":""},{"$f":"IFERROR(MID($AB134,FIND(CHAR(160),SUBSTITUTE($AB134,\"{\",CHAR(160),IO$1)),FIND(CHAR(160),SUBSTITUTE($AB134,\"}\",CHAR(160),IO$1))-FIND(CHAR(160),SUBSTITUTE($AB134,\"{\",CHAR(160),IO$1))+1),\"\")","v":""},{"$f":"IFERROR(MID($AB134,FIND(CHAR(160),SUBSTITUTE($AB134,\"{\",CHAR(160),IP$1)),FIND(CHAR(160),SUBSTITUTE($AB134,\"}\",CHAR(160),IP$1))-FIND(CHAR(160),SUBSTITUTE($AB134,\"{\",CHAR(160),IP$1))+1),\"\")","v":""},{"$f":"IFERROR(MID($AB134,FIND(CHAR(160),SUBSTITUTE($AB134,\"{\",CHAR(160),IQ$1)),FIND(CHAR(160),SUBSTITUTE($AB134,\"}\",CHAR(160),IQ$1))-FIND(CHAR(160),SUBSTITUTE($AB134,\"{\",CHAR(160),IQ$1))+1),\"\")","v":""},{"$f":"IFERROR(MID($AB134,FIND(CHAR(160),SUBSTITUTE($AB134,\"{\",CHAR(160),IR$1)),FIND(CHAR(160),SUBSTITUTE($AB134,\"}\",CHAR(160),IR$1))-FIND(CHAR(160),SUBSTITUTE($AB134,\"{\",CHAR(160),IR$1))+1),\"\")","v":""},{"$f":"IFERROR(MID($AB134,FIND(CHAR(160),SUBSTITUTE($AB134,\"{\",CHAR(160),IS$1)),FIND(CHAR(160),SUBSTITUTE($AB134,\"}\",CHAR(160),IS$1))-FIND(CHAR(160),SUBSTITUTE($AB134,\"{\",CHAR(160),IS$1))+1),\"\")","v":""},{"$f":"IFERROR(MID($AB134,FIND(CHAR(160),SUBSTITUTE($AB134,\"{\",CHAR(160),IT$1)),FIND(CHAR(160),SUBSTITUTE($AB134,\"}\",CHAR(160),IT$1))-FIND(CHAR(160),SUBSTITUTE($AB134,\"{\",CHAR(160),IT$1))+1),\"\")","v":""},{"$f":"IFERROR(MID($AB134,FIND(CHAR(160),SUBSTITUTE($AB134,\"{\",CHAR(160),IU$1)),FIND(CHAR(160),SUBSTITUTE($AB134,\"}\",CHAR(160),IU$1))-FIND(CHAR(160),SUBSTITUTE($AB134,\"{\",CHAR(160),IU$1))+1),\"\")","v":""},{"$f":"IFERROR(MID($AB134,FIND(CHAR(160),SUBSTITUTE($AB134,\"{\",CHAR(160),IV$1)),FIND(CHAR(160),SUBSTITUTE($AB134,\"}\",CHAR(160),IV$1))-FIND(CHAR(160),SUBSTITUTE($AB134,\"{\",CHAR(160),IV$1))+1),\"\")","v":""},{"$f":"IFERROR(MID($AB134,FIND(CHAR(160),SUBSTITUTE($AB134,\"{\",CHAR(160),IW$1)),FIND(CHAR(160),SUBSTITUTE($AB134,\"}\",CHAR(160),IW$1))-FIND(CHAR(160),SUBSTITUTE($AB134,\"{\",CHAR(160),IW$1))+1),\"\")","v":""},{"$f":"IFERROR(MID($AB134,FIND(CHAR(160),SUBSTITUTE($AB134,\"{\",CHAR(160),IX$1)),FIND(CHAR(160),SUBSTITUTE($AB134,\"}\",CHAR(160),IX$1))-FIND(CHAR(160),SUBSTITUTE($AB134,\"{\",CHAR(160),IX$1))+1),\"\")","v":""},null,{"$f":"10-COUNTIF(DU134:ED134,\"\")","v":4}]
["C&I Prescriptive Compressed Air Solutions","Dryer - C11 - Dryer Size 100","D - C11","2021-07-01","2022-06-30","Calculated","{Measure:Quantity}*{Dryer CFM} * 6.54",0,"Per Measure",350,0,"2017-07-01","2022-06-30","Calculated","{Measure:Quantity} *{Dryer CFM} * 0.00359 * {Weekly Hrs of Operation} * {Weeks Per Year}",1E-4,null,"{Measure:Quantity} *{Dryer CFM} * 0.00359",null,null,"{Measure:Quantity} *{Dryer CFM} * 0.00359 * {Factor:WinterCF}","{Measure:Quantity} *{Dryer CFM} * 0.00359 * {Factor:SummerCF}",null,null,null,null,null,null,"2017-07-01","2022-06-30",15,0.7,0.91100000000000003,0.30399999999999999,0.36099999999999999,0.156,0.17899999999999999,1,1.1220000000000001,1,0.52,1.6E-2,null,{"$f":"DU135","v":"{Measure:Quantity}"},1,{"$f":"DV135","v":"{Dryer CFM}"},100,{"$f":"DW135","v":"{Weekly Hrs of Operation}"},50,{"$f":"DX135","v":"{Weeks Per Year}"},50,{"$f":"DY135","v":""},null,{"$f":"DZ135","v":""},null,{"$f":"EA135","v":""},null,{"$f":"EB135","v":""},null,{"$f":"EC135","v":""},null,{"$f":"ED135","v":""},null,{"$f":"AS135 *AU135 * 0.00359 * AW135 * AY135","v":897.5},{"$f":"0.0001","v":1E-4},0,{"$f":"AS135 *AU135 * 0.00359","v":0.35899999999999999},0,0,{"$f":"AS135 *AU135 * 0.00359 * AF135","v":0.25129999999999997},{"$f":"AS135 *AU135 * 0.00359 * AG135","v":0.32704899999999998},0,0,0,0,0,0,null,"Com","Default DR",{"$f":"Benefits(BL135,BR135,BS135,BT135,BU135,BV135,BW135,BX135,BY135,BZ135,AE135,AH135,AI135,AJ135,AK135,AL135,AM135,AN135,AO135,AP135,CA135,CB135)","v":1345.3061368505378},1562.0779258810658,0,0,0,0,0,0,0,{"$f":"SUMPRODUCT(CC135:CK135,--(CC135:CK135>0))","v":2907.3840627316035},{"$f":"-SUMPRODUCT(CC135:CK135,--(CC135:CK135<0))","v":0},null,{"$f":"AS135*AU135 * 6.54","v":654},null,null,{"$f":"CM135+CO135","v":654},{"$f":"IF(NetOrGross=\"Net\",(1-AO135+AP135),1)","v":1},{"$f":"(SUMPRODUCT(CC135:CJ135,--(CC135:CJ135>0))+CN135)*CS135/((-SUMPRODUCT(CC135:CJ135,--(CC135:CJ135<0))+MAX(CO135,CV135)+CP135+CQ135)*CS135+IF(FRIncentives=\"Yes\",CV135*(1-CS135),0))","v":4.4455413803235526},6,{"$f":"350","v":350},null,"Electric","y",null,{"$f":"IF(F135=\"Manual Entry\",\"Manual\",IF(G135=\"\",0,\"X=\"&SUBSTITUTE(SUBSTITUTE(SUBSTITUTE(SUBSTITUTE(SUBSTITUTE(SUBSTITUTE(SUBSTITUTE(SUBSTITUTE(SUBSTITUTE(SUBSTITUTE(SUBSTITUTE(SUBSTITUTE(G135,$ED135,$ED$2&ROW($ED135)),$EC135,$EC$2&ROW($EC135)),$EB135,$EB$2&ROW($EB135)),$EA135,$EA$2&ROW($EA135)),$DZ135,$DZ$2&ROW($DZ135)),$DY135,$DY$2&ROW($DY135)),$DX135,$DX$2&ROW($DX135)),$DW135,$DW$2&ROW($DW135)),$DV135,$DV$2&ROW($DV135)),$DU135,$DU$2&ROW($DU135)),$DT135,$DT$2&ROW($DT135)),$DS135,$DS$2&ROW($DS135))))","v":"X=AS135*AU135 * 6.54"},{"$f":"IF(I135=\"Manual Entry\",\"Manual\",IF(J135=\"\",0,\"X=\"&SUBSTITUTE(SUBSTITUTE(SUBSTITUTE(SUBSTITUTE(SUBSTITUTE(SUBSTITUTE(SUBSTITUTE(SUBSTITUTE(SUBSTITUTE(SUBSTITUTE(SUBSTITUTE(SUBSTITUTE(J135,$ED135,$ED$2&ROW($ED135)),$EC135,$EC$2&ROW($EC135)),$EB135,$EB$2&ROW($EB135)),$EA135,$EA$2&ROW($EA135)),$DZ135,$DZ$2&ROW($DZ135)),$DY135,$DY$2&ROW($DY135)),$DX135,$DX$2&ROW($DX135)),$DW135,$DW$2&ROW($DW135)),$DV135,$DV$2&ROW($DV135)),$DU135,$DU$2&ROW($DU135)),$DT135,$DT$2&ROW($DT135)),$DS135,$DS$2&ROW($DS135))))","v":"X=350"},{"$f":"IF(O135=\"\",0,\"X=\"&SUBSTITUTE(SUBSTITUTE(SUBSTITUTE(SUBSTITUTE(SUBSTITUTE(SUBSTITUTE(SUBSTITUTE(SUBSTITUTE(SUBSTITUTE(SUBSTITUTE(SUBSTITUTE(SUBSTITUTE(O135,$ED135,$ED$2&ROW($ED135)),$EC135,$EC$2&ROW($EC135)),$EB135,$EB$2&ROW($EB135)),$EA135,$EA$2&ROW($EA135)),$DZ135,$DZ$2&ROW($DZ135)),$DY135,$DY$2&ROW($DY135)),$DX135,$DX$2&ROW($DX135)),$DW135,$DW$2&ROW($DW135)),$DV135,$DV$2&ROW($DV135)),$DU135,$DU$2&ROW($DU135)),$DT135,$DT$2&ROW($DT135)),$DS135,$DS$2&ROW($DS135)))","v":"X=AS135 *AU135 * 0.00359 * AW135 * AY135"},{"$f":"IF(P135=\"\",0,\"X=\"&SUBSTITUTE(SUBSTITUTE(SUBSTITUTE(SUBSTITUTE(SUBSTITUTE(SUBSTITUTE(SUBSTITUTE(SUBSTITUTE(SUBSTITUTE(SUBSTITUTE(SUBSTITUTE(SUBSTITUTE(P135,$ED135,$ED$2&ROW($ED135)),$EC135,$EC$2&ROW($EC135)),$EB135,$EB$2&ROW($EB135)),$EA135,$EA$2&ROW($EA135)),$DZ135,$DZ$2&ROW($DZ135)),$DY135,$DY$2&ROW($DY135)),$DX135,$DX$2&ROW($DX135)),$DW135,$DW$2&ROW($DW135)),$DV135,$DV$2&ROW($DV135)),$DU135,$DU$2&ROW($DU135)),$DT135,$DT$2&ROW($DT135)),$DS135,$DS$2&ROW($DS135)))","v":"X=0.0001"},{"$f":"IF(Q135=\"\",0,\"X=\"&SUBSTITUTE(SUBSTITUTE(SUBSTITUTE(SUBSTITUTE(SUBSTITUTE(SUBSTITUTE(SUBSTITUTE(SUBSTITUTE(SUBSTITUTE(SUBSTITUTE(SUBSTITUTE(SUBSTITUTE(Q135,$ED135,$ED$2&ROW($ED135)),$EC135,$EC$2&ROW($EC135)),$EB135,$EB$2&ROW($EB135)),$EA135,$EA$2&ROW($EA135)),$DZ135,$DZ$2&ROW($DZ135)),$DY135,$DY$2&ROW($DY135)),$DX135,$DX$2&ROW($DX135)),$DW135,$DW$2&ROW($DW135)),$DV135,$DV$2&ROW($DV135)),$DU135,$DU$2&ROW($DU135)),$DT135,$DT$2&ROW($DT135)),$DS135,$DS$2&ROW($DS135)))","v":0},{"$f":"IF(R135=\"\",0,\"X=\"&SUBSTITUTE(SUBSTITUTE(SUBSTITUTE(SUBSTITUTE(SUBSTITUTE(SUBSTITUTE(SUBSTITUTE(SUBSTITUTE(SUBSTITUTE(SUBSTITUTE(SUBSTITUTE(SUBSTITUTE(R135,$ED135,$ED$2&ROW($ED135)),$EC135,$EC$2&ROW($EC135)),$EB135,$EB$2&ROW($EB135)),$EA135,$EA$2&ROW($EA135)),$DZ135,$DZ$2&ROW($DZ135)),$DY135,$DY$2&ROW($DY135)),$DX135,$DX$2&ROW($DX135)),$DW135,$DW$2&ROW($DW135)),$DV135,$DV$2&ROW($DV135)),$DU135,$DU$2&ROW($DU135)),$DT135,$DT$2&ROW($DT135)),$DS135,$DS$2&ROW($DS135)))","v":"X=AS135 *AU135 * 0.00359"},{"$f":"IF(S135=\"\",0,\"X=\"&SUBSTITUTE(SUBSTITUTE(SUBSTITUTE(SUBSTITUTE(SUBSTITUTE(SUBSTITUTE(SUBSTITUTE(SUBSTITUTE(SUBSTITUTE(SUBSTITUTE(SUBSTITUTE(SUBSTITUTE(S135,$ED135,$ED$2&ROW($ED135)),$EC135,$EC$2&ROW($EC135)),$EB135,$EB$2&ROW($EB135)),$EA135,$EA$2&ROW($EA135)),$DZ135,$DZ$2&ROW($DZ135)),$DY135,$DY$2&ROW($DY135)),$DX135,$DX$2&ROW($DX135)),$DW135,$DW$2&ROW($DW135)),$DV135,$DV$2&ROW($DV135)),$DU135,$DU$2&ROW($DU135)),$DT135,$DT$2&ROW($DT135)),$DS135,$DS$2&ROW($DS135)))","v":0},{"$f":"IF(T135=\"\",0,\"X=\"&SUBSTITUTE(SUBSTITUTE(SUBSTITUTE(SUBSTITUTE(SUBSTITUTE(SUBSTITUTE(SUBSTITUTE(SUBSTITUTE(SUBSTITUTE(SUBSTITUTE(SUBSTITUTE(SUBSTITUTE(T135,$ED135,$ED$2&ROW($ED135)),$EC135,$EC$2&ROW($EC135)),$EB135,$EB$2&ROW($EB135)),$EA135,$EA$2&ROW($EA135)),$DZ135,$DZ$2&ROW($DZ135)),$DY135,$DY$2&ROW($DY135)),$DX135,$DX$2&ROW($DX135)),$DW135,$DW$2&ROW($DW135)),$DV135,$DV$2&ROW($DV135)),$DU135,$DU$2&ROW($DU135)),$DT135,$DT$2&ROW($DT135)),$DS135,$DS$2&ROW($DS135)))","v":0},{"$f":"IF(U135=\"\",0,\"X=\"&SUBSTITUTE(SUBSTITUTE(SUBSTITUTE(SUBSTITUTE(SUBSTITUTE(SUBSTITUTE(SUBSTITUTE(SUBSTITUTE(SUBSTITUTE(SUBSTITUTE(SUBSTITUTE(SUBSTITUTE(U135,$ED135,$ED$2&ROW($ED135)),$EC135,$EC$2&ROW($EC135)),$EB135,$EB$2&ROW($EB135)),$EA135,$EA$2&ROW($EA135)),$DZ135,$DZ$2&ROW($DZ135)),$DY135,$DY$2&ROW($DY135)),$DX135,$DX$2&ROW($DX135)),$DW135,$DW$2&ROW($DW135)),$DV135,$DV$2&ROW($DV135)),$DU135,$DU$2&ROW($DU135)),$DT135,$DT$2&ROW($DT135)),$DS135,$DS$2&ROW($DS135)))","v":"X=AS135 *AU135 * 0.00359 * AF135"},{"$f":"IF(V135=\"\",0,\"X=\"&SUBSTITUTE(SUBSTITUTE(SUBSTITUTE(SUBSTITUTE(SUBSTITUTE(SUBSTITUTE(SUBSTITUTE(SUBSTITUTE(SUBSTITUTE(SUBSTITUTE(SUBSTITUTE(SUBSTITUTE(V135,$ED135,$ED$2&ROW($ED135)),$EC135,$EC$2&ROW($EC135)),$EB135,$EB$2&ROW($EB135)),$EA135,$EA$2&ROW($EA135)),$DZ135,$DZ$2&ROW($DZ135)),$DY135,$DY$2&ROW($DY135)),$DX135,$DX$2&ROW($DX135)),$DW135,$DW$2&ROW($DW135)),$DV135,$DV$2&ROW($DV135)),$DU135,$DU$2&ROW($DU135)),$DT135,$DT$2&ROW($DT135)),$DS135,$DS$2&ROW($DS135)))","v":"X=AS135 *AU135 * 0.00359 * AG135"},{"$f":"IF(W135=\"\",0,\"X=\"&SUBSTITUTE(SUBSTITUTE(SUBSTITUTE(SUBSTITUTE(SUBSTITUTE(SUBSTITUTE(SUBSTITUTE(SUBSTITUTE(SUBSTITUTE(SUBSTITUTE(SUBSTITUTE(SUBSTITUTE(W135,$ED135,$ED$2&ROW($ED135)),$EC135,$EC$2&ROW($EC135)),$EB135,$EB$2&ROW($EB135)),$EA135,$EA$2&ROW($EA135)),$DZ135,$DZ$2&ROW($DZ135)),$DY135,$DY$2&ROW($DY135)),$DX135,$DX$2&ROW($DX135)),$DW135,$DW$2&ROW($DW135)),$DV135,$DV$2&ROW($DV135)),$DU135,$DU$2&ROW($DU135)),$DT135,$DT$2&ROW($DT135)),$DS135,$DS$2&ROW($DS135)))","v":0},{"$f":"IF(X135=\"\",0,\"X=\"&SUBSTITUTE(SUBSTITUTE(SUBSTITUTE(SUBSTITUTE(SUBSTITUTE(SUBSTITUTE(SUBSTITUTE(SUBSTITUTE(SUBSTITUTE(SUBSTITUTE(SUBSTITUTE(SUBSTITUTE(X135,$ED135,$ED$2&ROW($ED135)),$EC135,$EC$2&ROW($EC135)),$EB135,$EB$2&ROW($EB135)),$EA135,$EA$2&ROW($EA135)),$DZ135,$DZ$2&ROW($DZ135)),$DY135,$DY$2&ROW($DY135)),$DX135,$DX$2&ROW($DX135)),$DW135,$DW$2&ROW($DW135)),$DV135,$DV$2&ROW($DV135)),$DU135,$DU$2&ROW($DU135)),$DT135,$DT$2&ROW($DT135)),$DS135,$DS$2&ROW($DS135)))","v":0},{"$f":"IF(Y135=\"\",0,\"X=\"&SUBSTITUTE(SUBSTITUTE(SUBSTITUTE(SUBSTITUTE(SUBSTITUTE(SUBSTITUTE(SUBSTITUTE(SUBSTITUTE(SUBSTITUTE(SUBSTITUTE(SUBSTITUTE(SUBSTITUTE(Y135,$ED135,$ED$2&ROW($ED135)),$EC135,$EC$2&ROW($EC135)),$EB135,$EB$2&ROW($EB135)),$EA135,$EA$2&ROW($EA135)),$DZ135,$DZ$2&ROW($DZ135)),$DY135,$DY$2&ROW($DY135)),$DX135,$DX$2&ROW($DX135)),$DW135,$DW$2&ROW($DW135)),$DV135,$DV$2&ROW($DV135)),$DU135,$DU$2&ROW($DU135)),$DT135,$DT$2&ROW($DT135)),$DS135,$DS$2&ROW($DS135)))","v":0},{"$f":"IF(Z135=\"\",0,\"X=\"&SUBSTITUTE(SUBSTITUTE(SUBSTITUTE(SUBSTITUTE(SUBSTITUTE(SUBSTITUTE(SUBSTITUTE(SUBSTITUTE(SUBSTITUTE(SUBSTITUTE(SUBSTITUTE(SUBSTITUTE(Z135,$ED135,$ED$2&ROW($ED135)),$EC135,$EC$2&ROW($EC135)),$EB135,$EB$2&ROW($EB135)),$EA135,$EA$2&ROW($EA135)),$DZ135,$DZ$2&ROW($DZ135)),$DY135,$DY$2&ROW($DY135)),$DX135,$DX$2&ROW($DX135)),$DW135,$DW$2&ROW($DW135)),$DV135,$DV$2&ROW($DV135)),$DU135,$DU$2&ROW($DU135)),$DT135,$DT$2&ROW($DT135)),$DS135,$DS$2&ROW($DS135)))","v":0},{"$f":"IF(AA135=\"\",0,\"X=\"&SUBSTITUTE(SUBSTITUTE(SUBSTITUTE(SUBSTITUTE(SUBSTITUTE(SUBSTITUTE(SUBSTITUTE(SUBSTITUTE(SUBSTITUTE(SUBSTITUTE(SUBSTITUTE(SUBSTITUTE(AA135,$ED135,$ED$2&ROW($ED135)),$EC135,$EC$2&ROW($EC135)),$EB135,$EB$2&ROW($EB135)),$EA135,$EA$2&ROW($EA135)),$DZ135,$DZ$2&ROW($DZ135)),$DY135,$DY$2&ROW($DY135)),$DX135,$DX$2&ROW($DX135)),$DW135,$DW$2&ROW($DW135)),$DV135,$DV$2&ROW($DV135)),$DU135,$DU$2&ROW($DU135)),$DT135,$DT$2&ROW($DT135)),$DS135,$DS$2&ROW($DS135)))","v":0},{"$f":"IF(AB135=\"\",0,\"X=\"&SUBSTITUTE(SUBSTITUTE(SUBSTITUTE(SUBSTITUTE(SUBSTITUTE(SUBSTITUTE(SUBSTITUTE(SUBSTITUTE(SUBSTITUTE(SUBSTITUTE(SUBSTITUTE(SUBSTITUTE(AB135,$ED135,$ED$2&ROW($ED135)),$EC135,$EC$2&ROW($EC135)),$EB135,$EB$2&ROW($EB135)),$EA135,$EA$2&ROW($EA135)),$DZ135,$DZ$2&ROW($DZ135)),$DY135,$DY$2&ROW($DY135)),$DX135,$DX$2&ROW($DX135)),$DW135,$DW$2&ROW($DW135)),$DV135,$DV$2&ROW($DV135)),$DU135,$DU$2&ROW($DU135)),$DT135,$DT$2&ROW($DT135)),$DS135,$DS$2&ROW($DS135)))","v":0},null,null,"{Factor:WinterCF}","{Factor:SummerCF}",{"$f":"IFERROR(INDEX($EG135:$IV135,MATCH(0,COUNTIF($DR135:DT135,$EG135:$IV135),0)),\"\")","v":"{Measure:Quantity}"},{"$f":"IFERROR(INDEX($EG135:$IV135,MATCH(0,COUNTIF($DR135:DU135,$EG135:$IV135),0)),\"\")","v":"{Dryer CFM}"},{"$f":"IFERROR(INDEX($EG135:$IV135,MATCH(0,COUNTIF($DR135:DV135,$EG135:$IV135),0)),\"\")","v":"{Weekly Hrs of Operation}"},{"$f":"IFERROR(INDEX($EG135:$IV135,MATCH(0,COUNTIF($DR135:DW135,$EG135:$IV135),0)),\"\")","v":"{Weeks Per Year}"},{"$f":"IFERROR(INDEX($EG135:$IV135,MATCH(0,COUNTIF($DR135:DX135,$EG135:$IV135),0)),\"\")","v":""},{"$f":"IFERROR(INDEX($EG135:$IV135,MATCH(0,COUNTIF($DR135:DY135,$EG135:$IV135),0)),\"\")","v":""},{"$f":"IFERROR(INDEX($EG135:$IV135,MATCH(0,COUNTIF($DR135:DZ135,$EG135:$IV135),0)),\"\")","v":""},{"$f":"IFERROR(INDEX($EG135:$IV135,MATCH(0,COUNTIF($DR135:EA135,$EG135:$IV135),0)),\"\")","v":""},{"$f":"IFERROR(INDEX($EG135:$IV135,MATCH(0,COUNTIF($DR135:EB135,$EG135:$IV135),0)),\"\")","v":""},{"$f":"IFERROR(INDEX($EG135:$IV135,MATCH(0,COUNTIF($DR135:EC135,$EG135:$IV135),0)),\"\")","v":""},null,null,{"$f":"IFERROR(MID($G135,FIND(CHAR(160),SUBSTITUTE($G135,\"{\",CHAR(160),EG$1)),FIND(CHAR(160),SUBSTITUTE($G135,\"}\",CHAR(160),EG$1))-FIND(CHAR(160),SUBSTITUTE($G135,\"{\",CHAR(160),EG$1))+1),\"\")","v":"{Measure:Quantity}"},{"$f":"IFERROR(MID($G135,FIND(CHAR(160),SUBSTITUTE($G135,\"{\",CHAR(160),EH$1)),FIND(CHAR(160),SUBSTITUTE($G135,\"}\",CHAR(160),EH$1))-FIND(CHAR(160),SUBSTITUTE($G135,\"{\",CHAR(160),EH$1))+1),\"\")","v":"{Dryer CFM}"},{"$f":"IFERROR(MID($G135,FIND(CHAR(160),SUBSTITUTE($G135,\"{\",CHAR(160),EI$1)),FIND(CHAR(160),SUBSTITUTE($G135,\"}\",CHAR(160),EI$1))-FIND(CHAR(160),SUBSTITUTE($G135,\"{\",CHAR(160),EI$1))+1),\"\")","v":""},{"$f":"IFERROR(MID($G135,FIND(CHAR(160),SUBSTITUTE($G135,\"{\",CHAR(160),EJ$1)),FIND(CHAR(160),SUBSTITUTE($G135,\"}\",CHAR(160),EJ$1))-FIND(CHAR(160),SUBSTITUTE($G135,\"{\",CHAR(160),EJ$1))+1),\"\")","v":""},{"$f":"IFERROR(MID($G135,FIND(CHAR(160),SUBSTITUTE($G135,\"{\",CHAR(160),EK$1)),FIND(CHAR(160),SUBSTITUTE($G135,\"}\",CHAR(160),EK$1))-FIND(CHAR(160),SUBSTITUTE($G135,\"{\",CHAR(160),EK$1))+1),\"\")","v":""},{"$f":"IFERROR(MID($G135,FIND(CHAR(160),SUBSTITUTE($G135,\"{\",CHAR(160),EL$1)),FIND(CHAR(160),SUBSTITUTE($G135,\"}\",CHAR(160),EL$1))-FIND(CHAR(160),SUBSTITUTE($G135,\"{\",CHAR(160),EL$1))+1),\"\")","v":""},{"$f":"IFERROR(MID($G135,FIND(CHAR(160),SUBSTITUTE($G135,\"{\",CHAR(160),EM$1)),FIND(CHAR(160),SUBSTITUTE($G135,\"}\",CHAR(160),EM$1))-FIND(CHAR(160),SUBSTITUTE($G135,\"{\",CHAR(160),EM$1))+1),\"\")","v":""},{"$f":"IFERROR(MID($G135,FIND(CHAR(160),SUBSTITUTE($G135,\"{\",CHAR(160),EN$1)),FIND(CHAR(160),SUBSTITUTE($G135,\"}\",CHAR(160),EN$1))-FIND(CHAR(160),SUBSTITUTE($G135,\"{\",CHAR(160),EN$1))+1),\"\")","v":""},{"$f":"IFERROR(MID($G135,FIND(CHAR(160),SUBSTITUTE($G135,\"{\",CHAR(160),EO$1)),FIND(CHAR(160),SUBSTITUTE($G135,\"}\",CHAR(160),EO$1))-FIND(CHAR(160),SUBSTITUTE($G135,\"{\",CHAR(160),EO$1))+1),\"\")","v":""},{"$f":"IFERROR(MID($G135,FIND(CHAR(160),SUBSTITUTE($G135,\"{\",CHAR(160),EP$1)),FIND(CHAR(160),SUBSTITUTE($G135,\"}\",CHAR(160),EP$1))-FIND(CHAR(160),SUBSTITUTE($G135,\"{\",CHAR(160),EP$1))+1),\"\")","v":""},{"$f":"IFERROR(MID($J135,FIND(CHAR(160),SUBSTITUTE($J135,\"{\",CHAR(160),EQ$1)),FIND(CHAR(160),SUBSTITUTE($J135,\"}\",CHAR(160),EQ$1))-FIND(CHAR(160),SUBSTITUTE($J135,\"{\",CHAR(160),EQ$1))+1),\"\")","v":""},{"$f":"IFERROR(MID($J135,FIND(CHAR(160),SUBSTITUTE($J135,\"{\",CHAR(160),ER$1)),FIND(CHAR(160),SUBSTITUTE($J135,\"}\",CHAR(160),ER$1))-FIND(CHAR(160),SUBSTITUTE($J135,\"{\",CHAR(160),ER$1))+1),\"\")","v":""},{"$f":"IFERROR(MID($J135,FIND(CHAR(160),SUBSTITUTE($J135,\"{\",CHAR(160),ES$1)),FIND(CHAR(160),SUBSTITUTE($J135,\"}\",CHAR(160),ES$1))-FIND(CHAR(160),SUBSTITUTE($J135,\"{\",CHAR(160),ES$1))+1),\"\")","v":""},{"$f":"IFERROR(MID($J135,FIND(CHAR(160),SUBSTITUTE($J135,\"{\",CHAR(160),ET$1)),FIND(CHAR(160),SUBSTITUTE($J135,\"}\",CHAR(160),ET$1))-FIND(CHAR(160),SUBSTITUTE($J135,\"{\",CHAR(160),ET$1))+1),\"\")","v":""},{"$f":"IFERROR(MID($J135,FIND(CHAR(160),SUBSTITUTE($J135,\"{\",CHAR(160),EU$1)),FIND(CHAR(160),SUBSTITUTE($J135,\"}\",CHAR(160),EU$1))-FIND(CHAR(160),SUBSTITUTE($J135,\"{\",CHAR(160),EU$1))+1),\"\")","v":""},{"$f":"IFERROR(MID($J135,FIND(CHAR(160),SUBSTITUTE($J135,\"{\",CHAR(160),EV$1)),FIND(CHAR(160),SUBSTITUTE($J135,\"}\",CHAR(160),EV$1))-FIND(CHAR(160),SUBSTITUTE($J135,\"{\",CHAR(160),EV$1))+1),\"\")","v":""},{"$f":"IFERROR(MID($J135,FIND(CHAR(160),SUBSTITUTE($J135,\"{\",CHAR(160),EW$1)),FIND(CHAR(160),SUBSTITUTE($J135,\"}\",CHAR(160),EW$1))-FIND(CHAR(160),SUBSTITUTE($J135,\"{\",CHAR(160),EW$1))+1),\"\")","v":""},{"$f":"IFERROR(MID($J135,FIND(CHAR(160),SUBSTITUTE($J135,\"{\",CHAR(160),EX$1)),FIND(CHAR(160),SUBSTITUTE($J135,\"}\",CHAR(160),EX$1))-FIND(CHAR(160),SUBSTITUTE($J135,\"{\",CHAR(160),EX$1))+1),\"\")","v":""},{"$f":"IFERROR(MID($J135,FIND(CHAR(160),SUBSTITUTE($J135,\"{\",CHAR(160),EY$1)),FIND(CHAR(160),SUBSTITUTE($J135,\"}\",CHAR(160),EY$1))-FIND(CHAR(160),SUBSTITUTE($J135,\"{\",CHAR(160),EY$1))+1),\"\")","v":""},{"$f":"IFERROR(MID($J135,FIND(CHAR(160),SUBSTITUTE($J135,\"{\",CHAR(160),EZ$1)),FIND(CHAR(160),SUBSTITUTE($J135,\"}\",CHAR(160),EZ$1))-FIND(CHAR(160),SUBSTITUTE($J135,\"{\",CHAR(160),EZ$1))+1),\"\")","v":""},{"$f":"IFERROR(MID($J135,FIND(CHAR(160),SUBSTITUTE($J135,\"{\",CHAR(160),FA$1)),FIND(CHAR(160),SUBSTITUTE($J135,\"}\",CHAR(160),FA$1))-FIND(CHAR(160),SUBSTITUTE($J135,\"{\",CHAR(160),FA$1))+1),\"\")","v":""},{"$f":"IFERROR(MID($J135,FIND(CHAR(160),SUBSTITUTE($J135,\"{\",CHAR(160),FB$1)),FIND(CHAR(160),SUBSTITUTE($J135,\"}\",CHAR(160),FB$1))-FIND(CHAR(160),SUBSTITUTE($J135,\"{\",CHAR(160),FB$1))+1),\"\")","v":""},{"$f":"IFERROR(MID($O135,FIND(CHAR(160),SUBSTITUTE($O135,\"{\",CHAR(160),FC$1)),FIND(CHAR(160),SUBSTITUTE($O135,\"}\",CHAR(160),FC$1))-FIND(CHAR(160),SUBSTITUTE($O135,\"{\",CHAR(160),FC$1))+1),\"\")","v":"{Weekly Hrs of Operation}"},{"$f":"IFERROR(MID($O135,FIND(CHAR(160),SUBSTITUTE($O135,\"{\",CHAR(160),FD$1)),FIND(CHAR(160),SUBSTITUTE($O135,\"}\",CHAR(160),FD$1))-FIND(CHAR(160),SUBSTITUTE($O135,\"{\",CHAR(160),FD$1))+1),\"\")","v":"{Weeks Per Year}"},{"$f":"IFERROR(MID($O135,FIND(CHAR(160),SUBSTITUTE($O135,\"{\",CHAR(160),FE$1)),FIND(CHAR(160),SUBSTITUTE($O135,\"}\",CHAR(160),FE$1))-FIND(CHAR(160),SUBSTITUTE($O135,\"{\",CHAR(160),FE$1))+1),\"\")","v":""},{"$f":"IFERROR(MID($O135,FIND(CHAR(160),SUBSTITUTE($O135,\"{\",CHAR(160),FF$1)),FIND(CHAR(160),SUBSTITUTE($O135,\"}\",CHAR(160),FF$1))-FIND(CHAR(160),SUBSTITUTE($O135,\"{\",CHAR(160),FF$1))+1),\"\")","v":""},{"$f":"IFERROR(MID($O135,FIND(CHAR(160),SUBSTITUTE($O135,\"{\",CHAR(160),FG$1)),FIND(CHAR(160),SUBSTITUTE($O135,\"}\",CHAR(160),FG$1))-FIND(CHAR(160),SUBSTITUTE($O135,\"{\",CHAR(160),FG$1))+1),\"\")","v":""},{"$f":"IFERROR(MID($O135,FIND(CHAR(160),SUBSTITUTE($O135,\"{\",CHAR(160),FH$1)),FIND(CHAR(160),SUBSTITUTE($O135,\"}\",CHAR(160),FH$1))-FIND(CHAR(160),SUBSTITUTE($O135,\"{\",CHAR(160),FH$1))+1),\"\")","v":""},{"$f":"IFERROR(MID($O135,FIND(CHAR(160),SUBSTITUTE($O135,\"{\",CHAR(160),FI$1)),FIND(CHAR(160),SUBSTITUTE($O135,\"}\",CHAR(160),FI$1))-FIND(CHAR(160),SUBSTITUTE($O135,\"{\",CHAR(160),FI$1))+1),\"\")","v":""},{"$f":"IFERROR(MID($O135,FIND(CHAR(160),SUBSTITUTE($O135,\"{\",CHAR(160),FJ$1)),FIND(CHAR(160),SUBSTITUTE($O135,\"}\",CHAR(160),FJ$1))-FIND(CHAR(160),SUBSTITUTE($O135,\"{\",CHAR(160),FJ$1))+1),\"\")","v":""},{"$f":"IFERROR(MID($O135,FIND(CHAR(160),SUBSTITUTE($O135,\"{\",CHAR(160),FK$1)),FIND(CHAR(160),SUBSTITUTE($O135,\"}\",CHAR(160),FK$1))-FIND(CHAR(160),SUBSTITUTE($O135,\"{\",CHAR(160),FK$1))+1),\"\")","v":"{Measure:Quantity}"},{"$f":"IFERROR(MID($O135,FIND(CHAR(160),SUBSTITUTE($O135,\"{\",CHAR(160),FL$1)),FIND(CHAR(160),SUBSTITUTE($O135,\"}\",CHAR(160),FL$1))-FIND(CHAR(160),SUBSTITUTE($O135,\"{\",CHAR(160),FL$1))+1),\"\")","v":"{Dryer CFM}"},{"$f":"IFERROR(MID($R135,FIND(CHAR(160),SUBSTITUTE($R135,\"{\",CHAR(160),FM$1)),FIND(CHAR(160),SUBSTITUTE($R135,\"}\",CHAR(160),FM$1))-FIND(CHAR(160),SUBSTITUTE($R135,\"{\",CHAR(160),FM$1))+1),\"\")","v":""},{"$f":"IFERROR(MID($R135,FIND(CHAR(160),SUBSTITUTE($R135,\"{\",CHAR(160),FN$1)),FIND(CHAR(160),SUBSTITUTE($R135,\"}\",CHAR(160),FN$1))-FIND(CHAR(160),SUBSTITUTE($R135,\"{\",CHAR(160),FN$1))+1),\"\")","v":""},{"$f":"IFERROR(MID($R135,FIND(CHAR(160),SUBSTITUTE($R135,\"{\",CHAR(160),FO$1)),FIND(CHAR(160),SUBSTITUTE($R135,\"}\",CHAR(160),FO$1))-FIND(CHAR(160),SUBSTITUTE($R135,\"{\",CHAR(160),FO$1))+1),\"\")","v":""},{"$f":"IFERROR(MID($R135,FIND(CHAR(160),SUBSTITUTE($R135,\"{\",CHAR(160),FP$1)),FIND(CHAR(160),SUBSTITUTE($R135,\"}\",CHAR(160),FP$1))-FIND(CHAR(160),SUBSTITUTE($R135,\"{\",CHAR(160),FP$1))+1),\"\")","v":""},{"$f":"IFERROR(MID($R135,FIND(CHAR(160),SUBSTITUTE($R135,\"{\",CHAR(160),FQ$1)),FIND(CHAR(160),SUBSTITUTE($R135,\"}\",CHAR(160),FQ$1))-FIND(CHAR(160),SUBSTITUTE($R135,\"{\",CHAR(160),FQ$1))+1),\"\")","v":""},{"$f":"IFERROR(MID($R135,FIND(CHAR(160),SUBSTITUTE($R135,\"{\",CHAR(160),FR$1)),FIND(CHAR(160),SUBSTITUTE($R135,\"}\",CHAR(160),FR$1))-FIND(CHAR(160),SUBSTITUTE($R135,\"{\",CHAR(160),FR$1))+1),\"\")","v":""},{"$f":"IFERROR(MID($R135,FIND(CHAR(160),SUBSTITUTE($R135,\"{\",CHAR(160),FS$1)),FIND(CHAR(160),SUBSTITUTE($R135,\"}\",CHAR(160),FS$1))-FIND(CHAR(160),SUBSTITUTE($R135,\"{\",CHAR(160),FS$1))+1),\"\")","v":""},{"$f":"IFERROR(MID($R135,FIND(CHAR(160),SUBSTITUTE($R135,\"{\",CHAR(160),FT$1)),FIND(CHAR(160),SUBSTITUTE($R135,\"}\",CHAR(160),FT$1))-FIND(CHAR(160),SUBSTITUTE($R135,\"{\",CHAR(160),FT$1))+1),\"\")","v":""},{"$f":"IFERROR(MID($R135,FIND(CHAR(160),SUBSTITUTE($R135,\"{\",CHAR(160),FU$1)),FIND(CHAR(160),SUBSTITUTE($R135,\"}\",CHAR(160),FU$1))-FIND(CHAR(160),SUBSTITUTE($R135,\"{\",CHAR(160),FU$1))+1),\"\")","v":"{Measure:Quantity}"},{"$f":"IFERROR(MID($R135,FIND(CHAR(160),SUBSTITUTE($R135,\"{\",CHAR(160),FV$1)),FIND(CHAR(160),SUBSTITUTE($R135,\"}\",CHAR(160),FV$1))-FIND(CHAR(160),SUBSTITUTE($R135,\"{\",CHAR(160),FV$1))+1),\"\")","v":"{Dryer CFM}"},{"$f":"IFERROR(MID($U135,FIND(CHAR(160),SUBSTITUTE($U135,\"{\",CHAR(160),FW$1)),FIND(CHAR(160),SUBSTITUTE($U135,\"}\",CHAR(160),FW$1))-FIND(CHAR(160),SUBSTITUTE($U135,\"{\",CHAR(160),FW$1))+1),\"\")","v":"{Factor:WinterCF}"},{"$f":"IFERROR(MID($U135,FIND(CHAR(160),SUBSTITUTE($U135,\"{\",CHAR(160),FX$1)),FIND(CHAR(160),SUBSTITUTE($U135,\"}\",CHAR(160),FX$1))-FIND(CHAR(160),SUBSTITUTE($U135,\"{\",CHAR(160),FX$1))+1),\"\")","v":""},{"$f":"IFERROR(MID($U135,FIND(CHAR(160),SUBSTITUTE($U135,\"{\",CHAR(160),FY$1)),FIND(CHAR(160),SUBSTITUTE($U135,\"}\",CHAR(160),FY$1))-FIND(CHAR(160),SUBSTITUTE($U135,\"{\",CHAR(160),FY$1))+1),\"\")","v":""},{"$f":"IFERROR(MID($U135,FIND(CHAR(160),SUBSTITUTE($U135,\"{\",CHAR(160),FZ$1)),FIND(CHAR(160),SUBSTITUTE($U135,\"}\",CHAR(160),FZ$1))-FIND(CHAR(160),SUBSTITUTE($U135,\"{\",CHAR(160),FZ$1))+1),\"\")","v":""},{"$f":"IFERROR(MID($U135,FIND(CHAR(160),SUBSTITUTE($U135,\"{\",CHAR(160),GA$1)),FIND(CHAR(160),SUBSTITUTE($U135,\"}\",CHAR(160),GA$1))-FIND(CHAR(160),SUBSTITUTE($U135,\"{\",CHAR(160),GA$1))+1),\"\")","v":""},{"$f":"IFERROR(MID($U135,FIND(CHAR(160),SUBSTITUTE($U135,\"{\",CHAR(160),GB$1)),FIND(CHAR(160),SUBSTITUTE($U135,\"}\",CHAR(160),GB$1))-FIND(CHAR(160),SUBSTITUTE($U135,\"{\",CHAR(160),GB$1))+1),\"\")","v":""},{"$f":"IFERROR(MID($U135,FIND(CHAR(160),SUBSTITUTE($U135,\"{\",CHAR(160),GC$1)),FIND(CHAR(160),SUBSTITUTE($U135,\"}\",CHAR(160),GC$1))-FIND(CHAR(160),SUBSTITUTE($U135,\"{\",CHAR(160),GC$1))+1),\"\")","v":""},{"$f":"IFERROR(MID($U135,FIND(CHAR(160),SUBSTITUTE($U135,\"{\",CHAR(160),GD$1)),FIND(CHAR(160),SUBSTITUTE($U135,\"}\",CHAR(160),GD$1))-FIND(CHAR(160),SUBSTITUTE($U135,\"{\",CHAR(160),GD$1))+1),\"\")","v":""},{"$f":"IFERROR(MID($U135,FIND(CHAR(160),SUBSTITUTE($U135,\"{\",CHAR(160),GE$1)),FIND(CHAR(160),SUBSTITUTE($U135,\"}\",CHAR(160),GE$1))-FIND(CHAR(160),SUBSTITUTE($U135,\"{\",CHAR(160),GE$1))+1),\"\")","v":"{Measure:Quantity}"},{"$f":"IFERROR(MID($U135,FIND(CHAR(160),SUBSTITUTE($U135,\"{\",CHAR(160),GF$1)),FIND(CHAR(160),SUBSTITUTE($U135,\"}\",CHAR(160),GF$1))-FIND(CHAR(160),SUBSTITUTE($U135,\"{\",CHAR(160),GF$1))+1),\"\")","v":"{Dryer CFM}"},{"$f":"IFERROR(MID($V135,FIND(CHAR(160),SUBSTITUTE($V135,\"{\",CHAR(160),GG$1)),FIND(CHAR(160),SUBSTITUTE($V135,\"}\",CHAR(160),GG$1))-FIND(CHAR(160),SUBSTITUTE($V135,\"{\",CHAR(160),GG$1))+1),\"\")","v":"{Factor:SummerCF}"},{"$f":"IFERROR(MID($V135,FIND(CHAR(160),SUBSTITUTE($V135,\"{\",CHAR(160),GH$1)),FIND(CHAR(160),SUBSTITUTE($V135,\"}\",CHAR(160),GH$1))-FIND(CHAR(160),SUBSTITUTE($V135,\"{\",CHAR(160),GH$1))+1),\"\")","v":""},{"$f":"IFERROR(MID($V135,FIND(CHAR(160),SUBSTITUTE($V135,\"{\",CHAR(160),GI$1)),FIND(CHAR(160),SUBSTITUTE($V135,\"}\",CHAR(160),GI$1))-FIND(CHAR(160),SUBSTITUTE($V135,\"{\",CHAR(160),GI$1))+1),\"\")","v":""},{"$f":"IFERROR(MID($V135,FIND(CHAR(160),SUBSTITUTE($V135,\"{\",CHAR(160),GJ$1)),FIND(CHAR(160),SUBSTITUTE($V135,\"}\",CHAR(160),GJ$1))-FIND(CHAR(160),SUBSTITUTE($V135,\"{\",CHAR(160),GJ$1))+1),\"\")","v":""},{"$f":"IFERROR(MID($V135,FIND(CHAR(160),SUBSTITUTE($V135,\"{\",CHAR(160),GK$1)),FIND(CHAR(160),SUBSTITUTE($V135,\"}\",CHAR(160),GK$1))-FIND(CHAR(160),SUBSTITUTE($V135,\"{\",CHAR(160),GK$1))+1),\"\")","v":""},{"$f":"IFERROR(MID($V135,FIND(CHAR(160),SUBSTITUTE($V135,\"{\",CHAR(160),GL$1)),FIND(CHAR(160),SUBSTITUTE($V135,\"}\",CHAR(160),GL$1))-FIND(CHAR(160),SUBSTITUTE($V135,\"{\",CHAR(160),GL$1))+1),\"\")","v":""},{"$f":"IFERROR(MID($V135,FIND(CHAR(160),SUBSTITUTE($V135,\"{\",CHAR(160),GM$1)),FIND(CHAR(160),SUBSTITUTE($V135,\"}\",CHAR(160),GM$1))-FIND(CHAR(160),SUBSTITUTE($V135,\"{\",CHAR(160),GM$1))+1),\"\")","v":""},{"$f":"IFERROR(MID($V135,FIND(CHAR(160),SUBSTITUTE($V135,\"{\",CHAR(160),GN$1)),FIND(CHAR(160),SUBSTITUTE($V135,\"}\",CHAR(160),GN$1))-FIND(CHAR(160),SUBSTITUTE($V135,\"{\",CHAR(160),GN$1))+1),\"\")","v":""},{"$f":"IFERROR(MID($V135,FIND(CHAR(160),SUBSTITUTE($V135,\"{\",CHAR(160),GO$1)),FIND(CHAR(160),SUBSTITUTE($V135,\"}\",CHAR(160),GO$1))-FIND(CHAR(160),SUBSTITUTE($V135,\"{\",CHAR(160),GO$1))+1),\"\")","v":"{Measure:Quantity}"},{"$f":"IFERROR(MID($V135,FIND(CHAR(160),SUBSTITUTE($V135,\"{\",CHAR(160),GP$1)),FIND(CHAR(160),SUBSTITUTE($V135,\"}\",CHAR(160),GP$1))-FIND(CHAR(160),SUBSTITUTE($V135,\"{\",CHAR(160),GP$1))+1),\"\")","v":"{Dryer CFM}"},{"$f":"IFERROR(MID($W135,FIND(CHAR(160),SUBSTITUTE($W135,\"{\",CHAR(160),GQ$1)),FIND(CHAR(160),SUBSTITUTE($W135,\"}\",CHAR(160),GQ$1))-FIND(CHAR(160),SUBSTITUTE($W135,\"{\",CHAR(160),GQ$1))+1),\"\")","v":""},{"$f":"IFERROR(MID($W135,FIND(CHAR(160),SUBSTITUTE($W135,\"{\",CHAR(160),GR$1)),FIND(CHAR(160),SUBSTITUTE($W135,\"}\",CHAR(160),GR$1))-FIND(CHAR(160),SUBSTITUTE($W135,\"{\",CHAR(160),GR$1))+1),\"\")","v":""},{"$f":"IFERROR(MID($W135,FIND(CHAR(160),SUBSTITUTE($W135,\"{\",CHAR(160),GS$1)),FIND(CHAR(160),SUBSTITUTE($W135,\"}\",CHAR(160),GS$1))-FIND(CHAR(160),SUBSTITUTE($W135,\"{\",CHAR(160),GS$1))+1),\"\")","v":""},{"$f":"IFERROR(MID($W135,FIND(CHAR(160),SUBSTITUTE($W135,\"{\",CHAR(160),GT$1)),FIND(CHAR(160),SUBSTITUTE($W135,\"}\",CHAR(160),GT$1))-FIND(CHAR(160),SUBSTITUTE($W135,\"{\",CHAR(160),GT$1))+1),\"\")","v":""},{"$f":"IFERROR(MID($W135,FIND(CHAR(160),SUBSTITUTE($W135,\"{\",CHAR(160),GU$1)),FIND(CHAR(160),SUBSTITUTE($W135,\"}\",CHAR(160),GU$1))-FIND(CHAR(160),SUBSTITUTE($W135,\"{\",CHAR(160),GU$1))+1),\"\")","v":""},{"$f":"IFERROR(MID($W135,FIND(CHAR(160),SUBSTITUTE($W135,\"{\",CHAR(160),GV$1)),FIND(CHAR(160),SUBSTITUTE($W135,\"}\",CHAR(160),GV$1))-FIND(CHAR(160),SUBSTITUTE($W135,\"{\",CHAR(160),GV$1))+1),\"\")","v":""},{"$f":"IFERROR(MID($W135,FIND(CHAR(160),SUBSTITUTE($W135,\"{\",CHAR(160),GW$1)),FIND(CHAR(160),SUBSTITUTE($W135,\"}\",CHAR(160),GW$1))-FIND(CHAR(160),SUBSTITUTE($W135,\"{\",CHAR(160),GW$1))+1),\"\")","v":""},{"$f":"IFERROR(MID($W135,FIND(CHAR(160),SUBSTITUTE($W135,\"{\",CHAR(160),GX$1)),FIND(CHAR(160),SUBSTITUTE($W135,\"}\",CHAR(160),GX$1))-FIND(CHAR(160),SUBSTITUTE($W135,\"{\",CHAR(160),GX$1))+1),\"\")","v":""},{"$f":"IFERROR(MID($W135,FIND(CHAR(160),SUBSTITUTE($W135,\"{\",CHAR(160),GY$1)),FIND(CHAR(160),SUBSTITUTE($W135,\"}\",CHAR(160),GY$1))-FIND(CHAR(160),SUBSTITUTE($W135,\"{\",CHAR(160),GY$1))+1),\"\")","v":""},{"$f":"IFERROR(MID($W135,FIND(CHAR(160),SUBSTITUTE($W135,\"{\",CHAR(160),GZ$1)),FIND(CHAR(160),SUBSTITUTE($W135,\"}\",CHAR(160),GZ$1))-FIND(CHAR(160),SUBSTITUTE($W135,\"{\",CHAR(160),GZ$1))+1),\"\")","v":""},{"$f":"IFERROR(MID($X135,FIND(CHAR(160),SUBSTITUTE($X135,\"{\",CHAR(160),HA$1)),FIND(CHAR(160),SUBSTITUTE($X135,\"}\",CHAR(160),HA$1))-FIND(CHAR(160),SUBSTITUTE($X135,\"{\",CHAR(160),HA$1))+1),\"\")","v":""},{"$f":"IFERROR(MID($X135,FIND(CHAR(160),SUBSTITUTE($X135,\"{\",CHAR(160),HB$1)),FIND(CHAR(160),SUBSTITUTE($X135,\"}\",CHAR(160),HB$1))-FIND(CHAR(160),SUBSTITUTE($X135,\"{\",CHAR(160),HB$1))+1),\"\")","v":""},{"$f":"IFERROR(MID($X135,FIND(CHAR(160),SUBSTITUTE($X135,\"{\",CHAR(160),HC$1)),FIND(CHAR(160),SUBSTITUTE($X135,\"}\",CHAR(160),HC$1))-FIND(CHAR(160),SUBSTITUTE($X135,\"{\",CHAR(160),HC$1))+1),\"\")","v":""},{"$f":"IFERROR(MID($X135,FIND(CHAR(160),SUBSTITUTE($X135,\"{\",CHAR(160),HD$1)),FIND(CHAR(160),SUBSTITUTE($X135,\"}\",CHAR(160),HD$1))-FIND(CHAR(160),SUBSTITUTE($X135,\"{\",CHAR(160),HD$1))+1),\"\")","v":""},{"$f":"IFERROR(MID($X135,FIND(CHAR(160),SUBSTITUTE($X135,\"{\",CHAR(160),HE$1)),FIND(CHAR(160),SUBSTITUTE($X135,\"}\",CHAR(160),HE$1))-FIND(CHAR(160),SUBSTITUTE($X135,\"{\",CHAR(160),HE$1))+1),\"\")","v":""},{"$f":"IFERROR(MID($X135,FIND(CHAR(160),SUBSTITUTE($X135,\"{\",CHAR(160),HF$1)),FIND(CHAR(160),SUBSTITUTE($X135,\"}\",CHAR(160),HF$1))-FIND(CHAR(160),SUBSTITUTE($X135,\"{\",CHAR(160),HF$1))+1),\"\")","v":""},{"$f":"IFERROR(MID($X135,FIND(CHAR(160),SUBSTITUTE($X135,\"{\",CHAR(160),HG$1)),FIND(CHAR(160),SUBSTITUTE($X135,\"}\",CHAR(160),HG$1))-FIND(CHAR(160),SUBSTITUTE($X135,\"{\",CHAR(160),HG$1))+1),\"\")","v":""},{"$f":"IFERROR(MID($X135,FIND(CHAR(160),SUBSTITUTE($X135,\"{\",CHAR(160),HH$1)),FIND(CHAR(160),SUBSTITUTE($X135,\"}\",CHAR(160),HH$1))-FIND(CHAR(160),SUBSTITUTE($X135,\"{\",CHAR(160),HH$1))+1),\"\")","v":""},{"$f":"IFERROR(MID($X135,FIND(CHAR(160),SUBSTITUTE($X135,\"{\",CHAR(160),HI$1)),FIND(CHAR(160),SUBSTITUTE($X135,\"}\",CHAR(160),HI$1))-FIND(CHAR(160),SUBSTITUTE($X135,\"{\",CHAR(160),HI$1))+1),\"\")","v":""},{"$f":"IFERROR(MID($X135,FIND(CHAR(160),SUBSTITUTE($X135,\"{\",CHAR(160),HJ$1)),FIND(CHAR(160),SUBSTITUTE($X135,\"}\",CHAR(160),HJ$1))-FIND(CHAR(160),SUBSTITUTE($X135,\"{\",CHAR(160),HJ$1))+1),\"\")","v":""},{"$f":"IFERROR(MID($Y135,FIND(CHAR(160),SUBSTITUTE($Y135,\"{\",CHAR(160),HK$1)),FIND(CHAR(160),SUBSTITUTE($Y135,\"}\",CHAR(160),HK$1))-FIND(CHAR(160),SUBSTITUTE($Y135,\"{\",CHAR(160),HK$1))+1),\"\")","v":""},{"$f":"IFERROR(MID($Y135,FIND(CHAR(160),SUBSTITUTE($Y135,\"{\",CHAR(160),HL$1)),FIND(CHAR(160),SUBSTITUTE($Y135,\"}\",CHAR(160),HL$1))-FIND(CHAR(160),SUBSTITUTE($Y135,\"{\",CHAR(160),HL$1))+1),\"\")","v":""},{"$f":"IFERROR(MID($Y135,FIND(CHAR(160),SUBSTITUTE($Y135,\"{\",CHAR(160),HM$1)),FIND(CHAR(160),SUBSTITUTE($Y135,\"}\",CHAR(160),HM$1))-FIND(CHAR(160),SUBSTITUTE($Y135,\"{\",CHAR(160),HM$1))+1),\"\")","v":""},{"$f":"IFERROR(MID($Y135,FIND(CHAR(160),SUBSTITUTE($Y135,\"{\",CHAR(160),HN$1)),FIND(CHAR(160),SUBSTITUTE($Y135,\"}\",CHAR(160),HN$1))-FIND(CHAR(160),SUBSTITUTE($Y135,\"{\",CHAR(160),HN$1))+1),\"\")","v":""},{"$f":"IFERROR(MID($Y135,FIND(CHAR(160),SUBSTITUTE($Y135,\"{\",CHAR(160),HO$1)),FIND(CHAR(160),SUBSTITUTE($Y135,\"}\",CHAR(160),HO$1))-FIND(CHAR(160),SUBSTITUTE($Y135,\"{\",CHAR(160),HO$1))+1),\"\")","v":""},{"$f":"IFERROR(MID($Y135,FIND(CHAR(160),SUBSTITUTE($Y135,\"{\",CHAR(160),HP$1)),FIND(CHAR(160),SUBSTITUTE($Y135,\"}\",CHAR(160),HP$1))-FIND(CHAR(160),SUBSTITUTE($Y135,\"{\",CHAR(160),HP$1))+1),\"\")","v":""},{"$f":"IFERROR(MID($Y135,FIND(CHAR(160),SUBSTITUTE($Y135,\"{\",CHAR(160),HQ$1)),FIND(CHAR(160),SUBSTITUTE($Y135,\"}\",CHAR(160),HQ$1))-FIND(CHAR(160),SUBSTITUTE($Y135,\"{\",CHAR(160),HQ$1))+1),\"\")","v":""},{"$f":"IFERROR(MID($Y135,FIND(CHAR(160),SUBSTITUTE($Y135,\"{\",CHAR(160),HR$1)),FIND(CHAR(160),SUBSTITUTE($Y135,\"}\",CHAR(160),HR$1))-FIND(CHAR(160),SUBSTITUTE($Y135,\"{\",CHAR(160),HR$1))+1),\"\")","v":""},{"$f":"IFERROR(MID($Y135,FIND(CHAR(160),SUBSTITUTE($Y135,\"{\",CHAR(160),HS$1)),FIND(CHAR(160),SUBSTITUTE($Y135,\"}\",CHAR(160),HS$1))-FIND(CHAR(160),SUBSTITUTE($Y135,\"{\",CHAR(160),HS$1))+1),\"\")","v":""},{"$f":"IFERROR(MID($Y135,FIND(CHAR(160),SUBSTITUTE($Y135,\"{\",CHAR(160),HT$1)),FIND(CHAR(160),SUBSTITUTE($Y135,\"}\",CHAR(160),HT$1))-FIND(CHAR(160),SUBSTITUTE($Y135,\"{\",CHAR(160),HT$1))+1),\"\")","v":""},{"$f":"IFERROR(MID($Z135,FIND(CHAR(160),SUBSTITUTE($Z135,\"{\",CHAR(160),HU$1)),FIND(CHAR(160),SUBSTITUTE($Z135,\"}\",CHAR(160),HU$1))-FIND(CHAR(160),SUBSTITUTE($Z135,\"{\",CHAR(160),HU$1))+1),\"\")","v":""},{"$f":"IFERROR(MID($Z135,FIND(CHAR(160),SUBSTITUTE($Z135,\"{\",CHAR(160),HV$1)),FIND(CHAR(160),SUBSTITUTE($Z135,\"}\",CHAR(160),HV$1))-FIND(CHAR(160),SUBSTITUTE($Z135,\"{\",CHAR(160),HV$1))+1),\"\")","v":""},{"$f":"IFERROR(MID($Z135,FIND(CHAR(160),SUBSTITUTE($Z135,\"{\",CHAR(160),HW$1)),FIND(CHAR(160),SUBSTITUTE($Z135,\"}\",CHAR(160),HW$1))-FIND(CHAR(160),SUBSTITUTE($Z135,\"{\",CHAR(160),HW$1))+1),\"\")","v":""},{"$f":"IFERROR(MID($Z135,FIND(CHAR(160),SUBSTITUTE($Z135,\"{\",CHAR(160),HX$1)),FIND(CHAR(160),SUBSTITUTE($Z135,\"}\",CHAR(160),HX$1))-FIND(CHAR(160),SUBSTITUTE($Z135,\"{\",CHAR(160),HX$1))+1),\"\")","v":""},{"$f":"IFERROR(MID($Z135,FIND(CHAR(160),SUBSTITUTE($Z135,\"{\",CHAR(160),HY$1)),FIND(CHAR(160),SUBSTITUTE($Z135,\"}\",CHAR(160),HY$1))-FIND(CHAR(160),SUBSTITUTE($Z135,\"{\",CHAR(160),HY$1))+1),\"\")","v":""},{"$f":"IFERROR(MID($Z135,FIND(CHAR(160),SUBSTITUTE($Z135,\"{\",CHAR(160),HZ$1)),FIND(CHAR(160),SUBSTITUTE($Z135,\"}\",CHAR(160),HZ$1))-FIND(CHAR(160),SUBSTITUTE($Z135,\"{\",CHAR(160),HZ$1))+1),\"\")","v":""},{"$f":"IFERROR(MID($Z135,FIND(CHAR(160),SUBSTITUTE($Z135,\"{\",CHAR(160),IA$1)),FIND(CHAR(160),SUBSTITUTE($Z135,\"}\",CHAR(160),IA$1))-FIND(CHAR(160),SUBSTITUTE($Z135,\"{\",CHAR(160),IA$1))+1),\"\")","v":""},{"$f":"IFERROR(MID($Z135,FIND(CHAR(160),SUBSTITUTE($Z135,\"{\",CHAR(160),IB$1)),FIND(CHAR(160),SUBSTITUTE($Z135,\"}\",CHAR(160),IB$1))-FIND(CHAR(160),SUBSTITUTE($Z135,\"{\",CHAR(160),IB$1))+1),\"\")","v":""},{"$f":"IFERROR(MID($Z135,FIND(CHAR(160),SUBSTITUTE($Z135,\"{\",CHAR(160),IC$1)),FIND(CHAR(160),SUBSTITUTE($Z135,\"}\",CHAR(160),IC$1))-FIND(CHAR(160),SUBSTITUTE($Z135,\"{\",CHAR(160),IC$1))+1),\"\")","v":""},{"$f":"IFERROR(MID($Z135,FIND(CHAR(160),SUBSTITUTE($Z135,\"{\",CHAR(160),ID$1)),FIND(CHAR(160),SUBSTITUTE($Z135,\"}\",CHAR(160),ID$1))-FIND(CHAR(160),SUBSTITUTE($Z135,\"{\",CHAR(160),ID$1))+1),\"\")","v":""},{"$f":"IFERROR(MID($AA135,FIND(CHAR(160),SUBSTITUTE($AA135,\"{\",CHAR(160),IE$1)),FIND(CHAR(160),SUBSTITUTE($AA135,\"}\",CHAR(160),IE$1))-FIND(CHAR(160),SUBSTITUTE($AA135,\"{\",CHAR(160),IE$1))+1),\"\")","v":""},{"$f":"IFERROR(MID($AA135,FIND(CHAR(160),SUBSTITUTE($AA135,\"{\",CHAR(160),IF$1)),FIND(CHAR(160),SUBSTITUTE($AA135,\"}\",CHAR(160),IF$1))-FIND(CHAR(160),SUBSTITUTE($AA135,\"{\",CHAR(160),IF$1))+1),\"\")","v":""},{"$f":"IFERROR(MID($AA135,FIND(CHAR(160),SUBSTITUTE($AA135,\"{\",CHAR(160),IG$1)),FIND(CHAR(160),SUBSTITUTE($AA135,\"}\",CHAR(160),IG$1))-FIND(CHAR(160),SUBSTITUTE($AA135,\"{\",CHAR(160),IG$1))+1),\"\")","v":""},{"$f":"IFERROR(MID($AA135,FIND(CHAR(160),SUBSTITUTE($AA135,\"{\",CHAR(160),IH$1)),FIND(CHAR(160),SUBSTITUTE($AA135,\"}\",CHAR(160),IH$1))-FIND(CHAR(160),SUBSTITUTE($AA135,\"{\",CHAR(160),IH$1))+1),\"\")","v":""},{"$f":"IFERROR(MID($AA135,FIND(CHAR(160),SUBSTITUTE($AA135,\"{\",CHAR(160),II$1)),FIND(CHAR(160),SUBSTITUTE($AA135,\"}\",CHAR(160),II$1))-FIND(CHAR(160),SUBSTITUTE($AA135,\"{\",CHAR(160),II$1))+1),\"\")","v":""},{"$f":"IFERROR(MID($AA135,FIND(CHAR(160),SUBSTITUTE($AA135,\"{\",CHAR(160),IJ$1)),FIND(CHAR(160),SUBSTITUTE($AA135,\"}\",CHAR(160),IJ$1))-FIND(CHAR(160),SUBSTITUTE($AA135,\"{\",CHAR(160),IJ$1))+1),\"\")","v":""},{"$f":"IFERROR(MID($AA135,FIND(CHAR(160),SUBSTITUTE($AA135,\"{\",CHAR(160),IK$1)),FIND(CHAR(160),SUBSTITUTE($AA135,\"}\",CHAR(160),IK$1))-FIND(CHAR(160),SUBSTITUTE($AA135,\"{\",CHAR(160),IK$1))+1),\"\")","v":""},{"$f":"IFERROR(MID($AA135,FIND(CHAR(160),SUBSTITUTE($AA135,\"{\",CHAR(160),IL$1)),FIND(CHAR(160),SUBSTITUTE($AA135,\"}\",CHAR(160),IL$1))-FIND(CHAR(160),SUBSTITUTE($AA135,\"{\",CHAR(160),IL$1))+1),\"\")","v":""},{"$f":"IFERROR(MID($AA135,FIND(CHAR(160),SUBSTITUTE($AA135,\"{\",CHAR(160),IM$1)),FIND(CHAR(160),SUBSTITUTE($AA135,\"}\",CHAR(160),IM$1))-FIND(CHAR(160),SUBSTITUTE($AA135,\"{\",CHAR(160),IM$1))+1),\"\")","v":""},{"$f":"IFERROR(MID($AA135,FIND(CHAR(160),SUBSTITUTE($AA135,\"{\",CHAR(160),IN$1)),FIND(CHAR(160),SUBSTITUTE($AA135,\"}\",CHAR(160),IN$1))-FIND(CHAR(160),SUBSTITUTE($AA135,\"{\",CHAR(160),IN$1))+1),\"\")","v":""},{"$f":"IFERROR(MID($AB135,FIND(CHAR(160),SUBSTITUTE($AB135,\"{\",CHAR(160),IO$1)),FIND(CHAR(160),SUBSTITUTE($AB135,\"}\",CHAR(160),IO$1))-FIND(CHAR(160),SUBSTITUTE($AB135,\"{\",CHAR(160),IO$1))+1),\"\")","v":""},{"$f":"IFERROR(MID($AB135,FIND(CHAR(160),SUBSTITUTE($AB135,\"{\",CHAR(160),IP$1)),FIND(CHAR(160),SUBSTITUTE($AB135,\"}\",CHAR(160),IP$1))-FIND(CHAR(160),SUBSTITUTE($AB135,\"{\",CHAR(160),IP$1))+1),\"\")","v":""},{"$f":"IFERROR(MID($AB135,FIND(CHAR(160),SUBSTITUTE($AB135,\"{\",CHAR(160),IQ$1)),FIND(CHAR(160),SUBSTITUTE($AB135,\"}\",CHAR(160),IQ$1))-FIND(CHAR(160),SUBSTITUTE($AB135,\"{\",CHAR(160),IQ$1))+1),\"\")","v":""},{"$f":"IFERROR(MID($AB135,FIND(CHAR(160),SUBSTITUTE($AB135,\"{\",CHAR(160),IR$1)),FIND(CHAR(160),SUBSTITUTE($AB135,\"}\",CHAR(160),IR$1))-FIND(CHAR(160),SUBSTITUTE($AB135,\"{\",CHAR(160),IR$1))+1),\"\")","v":""},{"$f":"IFERROR(MID($AB135,FIND(CHAR(160),SUBSTITUTE($AB135,\"{\",CHAR(160),IS$1)),FIND(CHAR(160),SUBSTITUTE($AB135,\"}\",CHAR(160),IS$1))-FIND(CHAR(160),SUBSTITUTE($AB135,\"{\",CHAR(160),IS$1))+1),\"\")","v":""},{"$f":"IFERROR(MID($AB135,FIND(CHAR(160),SUBSTITUTE($AB135,\"{\",CHAR(160),IT$1)),FIND(CHAR(160),SUBSTITUTE($AB135,\"}\",CHAR(160),IT$1))-FIND(CHAR(160),SUBSTITUTE($AB135,\"{\",CHAR(160),IT$1))+1),\"\")","v":""},{"$f":"IFERROR(MID($AB135,FIND(CHAR(160),SUBSTITUTE($AB135,\"{\",CHAR(160),IU$1)),FIND(CHAR(160),SUBSTITUTE($AB135,\"}\",CHAR(160),IU$1))-FIND(CHAR(160),SUBSTITUTE($AB135,\"{\",CHAR(160),IU$1))+1),\"\")","v":""},{"$f":"IFERROR(MID($AB135,FIND(CHAR(160),SUBSTITUTE($AB135,\"{\",CHAR(160),IV$1)),FIND(CHAR(160),SUBSTITUTE($AB135,\"}\",CHAR(160),IV$1))-FIND(CHAR(160),SUBSTITUTE($AB135,\"{\",CHAR(160),IV$1))+1),\"\")","v":""},{"$f":"IFERROR(MID($AB135,FIND(CHAR(160),SUBSTITUTE($AB135,\"{\",CHAR(160),IW$1)),FIND(CHAR(160),SUBSTITUTE($AB135,\"}\",CHAR(160),IW$1))-FIND(CHAR(160),SUBSTITUTE($AB135,\"{\",CHAR(160),IW$1))+1),\"\")","v":""},{"$f":"IFERROR(MID($AB135,FIND(CHAR(160),SUBSTITUTE($AB135,\"{\",CHAR(160),IX$1)),FIND(CHAR(160),SUBSTITUTE($AB135,\"}\",CHAR(160),IX$1))-FIND(CHAR(160),SUBSTITUTE($AB135,\"{\",CHAR(160),IX$1))+1),\"\")","v":""},null,{"$f":"10-COUNTIF(DU135:ED135,\"\")","v":4}]
["C&I Prescriptive Compressed Air Solutions","Dryer - C12 - Dryer Size 150","D - C12","2021-07-01","2022-06-30","Calculated","{Measure:Quantity}*{Dryer CFM} * 6.54",0,"Per Measure",500,0,"2017-07-01","2022-06-30","Calculated","{Measure:Quantity} *{Dryer CFM} * 0.00359 * {Weekly Hrs of Operation} * {Weeks Per Year}",1E-4,null,"{Measure:Quantity} *{Dryer CFM} * 0.00359",null,null,"{Measure:Quantity} *{Dryer CFM} * 0.00359 * {Factor:WinterCF}","{Measure:Quantity} *{Dryer CFM} * 0.00359 * {Factor:SummerCF}",null,null,null,null,null,null,"2017-07-01","2022-06-30",15,0.7,0.91100000000000003,0.30399999999999999,0.36099999999999999,0.156,0.17899999999999999,1,1.1220000000000001,1,0.52,1.6E-2,null,{"$f":"DU136","v":"{Measure:Quantity}"},1,{"$f":"DV136","v":"{Dryer CFM}"},150,{"$f":"DW136","v":"{Weekly Hrs of Operation}"},50,{"$f":"DX136","v":"{Weeks Per Year}"},50,{"$f":"DY136","v":""},null,{"$f":"DZ136","v":""},null,{"$f":"EA136","v":""},null,{"$f":"EB136","v":""},null,{"$f":"EC136","v":""},null,{"$f":"ED136","v":""},null,{"$f":"AS136 *AU136 * 0.00359 * AW136 * AY136","v":1346.2499999999998},{"$f":"0.0001","v":1E-4},0,{"$f":"AS136 *AU136 * 0.00359","v":0.53849999999999998},0,0,{"$f":"AS136 *AU136 * 0.00359 * AF136","v":0.37694999999999995},{"$f":"AS136 *AU136 * 0.00359 * AG136","v":0.4905735},0,0,0,0,0,0,null,"Com","Default DR",{"$f":"Benefits(BL136,BR136,BS136,BT136,BU136,BV136,BW136,BX136,BY136,BZ136,AE136,AH136,AI136,AJ136,AK136,AL136,AM136,AN136,AO136,AP136,CA136,CB136)","v":2017.9592052758064},2343.1168888215984,0,0,0,0,0,0,0,{"$f":"SUMPRODUCT(CC136:CK136,--(CC136:CK136>0))","v":4361.0760940974051},{"$f":"-SUMPRODUCT(CC136:CK136,--(CC136:CK136<0))","v":0},null,{"$f":"AS136*AU136 * 6.54","v":981},null,null,{"$f":"CM136+CO136","v":981},{"$f":"IF(NetOrGross=\"Net\",(1-AO136+AP136),1)","v":1},{"$f":"(SUMPRODUCT(CC136:CJ136,--(CC136:CJ136>0))+CN136)*CS136/((-SUMPRODUCT(CC136:CJ136,--(CC136:CJ136<0))+MAX(CO136,CV136)+CP136+CQ136)*CS136+IF(FRIncentives=\"Yes\",CV136*(1-CS136),0))","v":4.4455413803235526},7,{"$f":"500","v":500},null,"Electric","y",null,{"$f":"IF(F136=\"Manual Entry\",\"Manual\",IF(G136=\"\",0,\"X=\"&SUBSTITUTE(SUBSTITUTE(SUBSTITUTE(SUBSTITUTE(SUBSTITUTE(SUBSTITUTE(SUBSTITUTE(SUBSTITUTE(SUBSTITUTE(SUBSTITUTE(SUBSTITUTE(SUBSTITUTE(G136,$ED136,$ED$2&ROW($ED136)),$EC136,$EC$2&ROW($EC136)),$EB136,$EB$2&ROW($EB136)),$EA136,$EA$2&ROW($EA136)),$DZ136,$DZ$2&ROW($DZ136)),$DY136,$DY$2&ROW($DY136)),$DX136,$DX$2&ROW($DX136)),$DW136,$DW$2&ROW($DW136)),$DV136,$DV$2&ROW($DV136)),$DU136,$DU$2&ROW($DU136)),$DT136,$DT$2&ROW($DT136)),$DS136,$DS$2&ROW($DS136))))","v":"X=AS136*AU136 * 6.54"},{"$f":"IF(I136=\"Manual Entry\",\"Manual\",IF(J136=\"\",0,\"X=\"&SUBSTITUTE(SUBSTITUTE(SUBSTITUTE(SUBSTITUTE(SUBSTITUTE(SUBSTITUTE(SUBSTITUTE(SUBSTITUTE(SUBSTITUTE(SUBSTITUTE(SUBSTITUTE(SUBSTITUTE(J136,$ED136,$ED$2&ROW($ED136)),$EC136,$EC$2&ROW($EC136)),$EB136,$EB$2&ROW($EB136)),$EA136,$EA$2&ROW($EA136)),$DZ136,$DZ$2&ROW($DZ136)),$DY136,$DY$2&ROW($DY136)),$DX136,$DX$2&ROW($DX136)),$DW136,$DW$2&ROW($DW136)),$DV136,$DV$2&ROW($DV136)),$DU136,$DU$2&ROW($DU136)),$DT136,$DT$2&ROW($DT136)),$DS136,$DS$2&ROW($DS136))))","v":"X=500"},{"$f":"IF(O136=\"\",0,\"X=\"&SUBSTITUTE(SUBSTITUTE(SUBSTITUTE(SUBSTITUTE(SUBSTITUTE(SUBSTITUTE(SUBSTITUTE(SUBSTITUTE(SUBSTITUTE(SUBSTITUTE(SUBSTITUTE(SUBSTITUTE(O136,$ED136,$ED$2&ROW($ED136)),$EC136,$EC$2&ROW($EC136)),$EB136,$EB$2&ROW($EB136)),$EA136,$EA$2&ROW($EA136)),$DZ136,$DZ$2&ROW($DZ136)),$DY136,$DY$2&ROW($DY136)),$DX136,$DX$2&ROW($DX136)),$DW136,$DW$2&ROW($DW136)),$DV136,$DV$2&ROW($DV136)),$DU136,$DU$2&ROW($DU136)),$DT136,$DT$2&ROW($DT136)),$DS136,$DS$2&ROW($DS136)))","v":"X=AS136 *AU136 * 0.00359 * AW136 * AY136"},{"$f":"IF(P136=\"\",0,\"X=\"&SUBSTITUTE(SUBSTITUTE(SUBSTITUTE(SUBSTITUTE(SUBSTITUTE(SUBSTITUTE(SUBSTITUTE(SUBSTITUTE(SUBSTITUTE(SUBSTITUTE(SUBSTITUTE(SUBSTITUTE(P136,$ED136,$ED$2&ROW($ED136)),$EC136,$EC$2&ROW($EC136)),$EB136,$EB$2&ROW($EB136)),$EA136,$EA$2&ROW($EA136)),$DZ136,$DZ$2&ROW($DZ136)),$DY136,$DY$2&ROW($DY136)),$DX136,$DX$2&ROW($DX136)),$DW136,$DW$2&ROW($DW136)),$DV136,$DV$2&ROW($DV136)),$DU136,$DU$2&ROW($DU136)),$DT136,$DT$2&ROW($DT136)),$DS136,$DS$2&ROW($DS136)))","v":"X=0.0001"},{"$f":"IF(Q136=\"\",0,\"X=\"&SUBSTITUTE(SUBSTITUTE(SUBSTITUTE(SUBSTITUTE(SUBSTITUTE(SUBSTITUTE(SUBSTITUTE(SUBSTITUTE(SUBSTITUTE(SUBSTITUTE(SUBSTITUTE(SUBSTITUTE(Q136,$ED136,$ED$2&ROW($ED136)),$EC136,$EC$2&ROW($EC136)),$EB136,$EB$2&ROW($EB136)),$EA136,$EA$2&ROW($EA136)),$DZ136,$DZ$2&ROW($DZ136)),$DY136,$DY$2&ROW($DY136)),$DX136,$DX$2&ROW($DX136)),$DW136,$DW$2&ROW($DW136)),$DV136,$DV$2&ROW($DV136)),$DU136,$DU$2&ROW($DU136)),$DT136,$DT$2&ROW($DT136)),$DS136,$DS$2&ROW($DS136)))","v":0},{"$f":"IF(R136=\"\",0,\"X=\"&SUBSTITUTE(SUBSTITUTE(SUBSTITUTE(SUBSTITUTE(SUBSTITUTE(SUBSTITUTE(SUBSTITUTE(SUBSTITUTE(SUBSTITUTE(SUBSTITUTE(SUBSTITUTE(SUBSTITUTE(R136,$ED136,$ED$2&ROW($ED136)),$EC136,$EC$2&ROW($EC136)),$EB136,$EB$2&ROW($EB136)),$EA136,$EA$2&ROW($EA136)),$DZ136,$DZ$2&ROW($DZ136)),$DY136,$DY$2&ROW($DY136)),$DX136,$DX$2&ROW($DX136)),$DW136,$DW$2&ROW($DW136)),$DV136,$DV$2&ROW($DV136)),$DU136,$DU$2&ROW($DU136)),$DT136,$DT$2&ROW($DT136)),$DS136,$DS$2&ROW($DS136)))","v":"X=AS136 *AU136 * 0.00359"},{"$f":"IF(S136=\"\",0,\"X=\"&SUBSTITUTE(SUBSTITUTE(SUBSTITUTE(SUBSTITUTE(SUBSTITUTE(SUBSTITUTE(SUBSTITUTE(SUBSTITUTE(SUBSTITUTE(SUBSTITUTE(SUBSTITUTE(SUBSTITUTE(S136,$ED136,$ED$2&ROW($ED136)),$EC136,$EC$2&ROW($EC136)),$EB136,$EB$2&ROW($EB136)),$EA136,$EA$2&ROW($EA136)),$DZ136,$DZ$2&ROW($DZ136)),$DY136,$DY$2&ROW($DY136)),$DX136,$DX$2&ROW($DX136)),$DW136,$DW$2&ROW($DW136)),$DV136,$DV$2&ROW($DV136)),$DU136,$DU$2&ROW($DU136)),$DT136,$DT$2&ROW($DT136)),$DS136,$DS$2&ROW($DS136)))","v":0},{"$f":"IF(T136=\"\",0,\"X=\"&SUBSTITUTE(SUBSTITUTE(SUBSTITUTE(SUBSTITUTE(SUBSTITUTE(SUBSTITUTE(SUBSTITUTE(SUBSTITUTE(SUBSTITUTE(SUBSTITUTE(SUBSTITUTE(SUBSTITUTE(T136,$ED136,$ED$2&ROW($ED136)),$EC136,$EC$2&ROW($EC136)),$EB136,$EB$2&ROW($EB136)),$EA136,$EA$2&ROW($EA136)),$DZ136,$DZ$2&ROW($DZ136)),$DY136,$DY$2&ROW($DY136)),$DX136,$DX$2&ROW($DX136)),$DW136,$DW$2&ROW($DW136)),$DV136,$DV$2&ROW($DV136)),$DU136,$DU$2&ROW($DU136)),$DT136,$DT$2&ROW($DT136)),$DS136,$DS$2&ROW($DS136)))","v":0},{"$f":"IF(U136=\"\",0,\"X=\"&SUBSTITUTE(SUBSTITUTE(SUBSTITUTE(SUBSTITUTE(SUBSTITUTE(SUBSTITUTE(SUBSTITUTE(SUBSTITUTE(SUBSTITUTE(SUBSTITUTE(SUBSTITUTE(SUBSTITUTE(U136,$ED136,$ED$2&ROW($ED136)),$EC136,$EC$2&ROW($EC136)),$EB136,$EB$2&ROW($EB136)),$EA136,$EA$2&ROW($EA136)),$DZ136,$DZ$2&ROW($DZ136)),$DY136,$DY$2&ROW($DY136)),$DX136,$DX$2&ROW($DX136)),$DW136,$DW$2&ROW($DW136)),$DV136,$DV$2&ROW($DV136)),$DU136,$DU$2&ROW($DU136)),$DT136,$DT$2&ROW($DT136)),$DS136,$DS$2&ROW($DS136)))","v":"X=AS136 *AU136 * 0.00359 * AF136"},{"$f":"IF(V136=\"\",0,\"X=\"&SUBSTITUTE(SUBSTITUTE(SUBSTITUTE(SUBSTITUTE(SUBSTITUTE(SUBSTITUTE(SUBSTITUTE(SUBSTITUTE(SUBSTITUTE(SUBSTITUTE(SUBSTITUTE(SUBSTITUTE(V136,$ED136,$ED$2&ROW($ED136)),$EC136,$EC$2&ROW($EC136)),$EB136,$EB$2&ROW($EB136)),$EA136,$EA$2&ROW($EA136)),$DZ136,$DZ$2&ROW($DZ136)),$DY136,$DY$2&ROW($DY136)),$DX136,$DX$2&ROW($DX136)),$DW136,$DW$2&ROW($DW136)),$DV136,$DV$2&ROW($DV136)),$DU136,$DU$2&ROW($DU136)),$DT136,$DT$2&ROW($DT136)),$DS136,$DS$2&ROW($DS136)))","v":"X=AS136 *AU136 * 0.00359 * AG136"},{"$f":"IF(W136=\"\",0,\"X=\"&SUBSTITUTE(SUBSTITUTE(SUBSTITUTE(SUBSTITUTE(SUBSTITUTE(SUBSTITUTE(SUBSTITUTE(SUBSTITUTE(SUBSTITUTE(SUBSTITUTE(SUBSTITUTE(SUBSTITUTE(W136,$ED136,$ED$2&ROW($ED136)),$EC136,$EC$2&ROW($EC136)),$EB136,$EB$2&ROW($EB136)),$EA136,$EA$2&ROW($EA136)),$DZ136,$DZ$2&ROW($DZ136)),$DY136,$DY$2&ROW($DY136)),$DX136,$DX$2&ROW($DX136)),$DW136,$DW$2&ROW($DW136)),$DV136,$DV$2&ROW($DV136)),$DU136,$DU$2&ROW($DU136)),$DT136,$DT$2&ROW($DT136)),$DS136,$DS$2&ROW($DS136)))","v":0},{"$f":"IF(X136=\"\",0,\"X=\"&SUBSTITUTE(SUBSTITUTE(SUBSTITUTE(SUBSTITUTE(SUBSTITUTE(SUBSTITUTE(SUBSTITUTE(SUBSTITUTE(SUBSTITUTE(SUBSTITUTE(SUBSTITUTE(SUBSTITUTE(X136,$ED136,$ED$2&ROW($ED136)),$EC136,$EC$2&ROW($EC136)),$EB136,$EB$2&ROW($EB136)),$EA136,$EA$2&ROW($EA136)),$DZ136,$DZ$2&ROW($DZ136)),$DY136,$DY$2&ROW($DY136)),$DX136,$DX$2&ROW($DX136)),$DW136,$DW$2&ROW($DW136)),$DV136,$DV$2&ROW($DV136)),$DU136,$DU$2&ROW($DU136)),$DT136,$DT$2&ROW($DT136)),$DS136,$DS$2&ROW($DS136)))","v":0},{"$f":"IF(Y136=\"\",0,\"X=\"&SUBSTITUTE(SUBSTITUTE(SUBSTITUTE(SUBSTITUTE(SUBSTITUTE(SUBSTITUTE(SUBSTITUTE(SUBSTITUTE(SUBSTITUTE(SUBSTITUTE(SUBSTITUTE(SUBSTITUTE(Y136,$ED136,$ED$2&ROW($ED136)),$EC136,$EC$2&ROW($EC136)),$EB136,$EB$2&ROW($EB136)),$EA136,$EA$2&ROW($EA136)),$DZ136,$DZ$2&ROW($DZ136)),$DY136,$DY$2&ROW($DY136)),$DX136,$DX$2&ROW($DX136)),$DW136,$DW$2&ROW($DW136)),$DV136,$DV$2&ROW($DV136)),$DU136,$DU$2&ROW($DU136)),$DT136,$DT$2&ROW($DT136)),$DS136,$DS$2&ROW($DS136)))","v":0},{"$f":"IF(Z136=\"\",0,\"X=\"&SUBSTITUTE(SUBSTITUTE(SUBSTITUTE(SUBSTITUTE(SUBSTITUTE(SUBSTITUTE(SUBSTITUTE(SUBSTITUTE(SUBSTITUTE(SUBSTITUTE(SUBSTITUTE(SUBSTITUTE(Z136,$ED136,$ED$2&ROW($ED136)),$EC136,$EC$2&ROW($EC136)),$EB136,$EB$2&ROW($EB136)),$EA136,$EA$2&ROW($EA136)),$DZ136,$DZ$2&ROW($DZ136)),$DY136,$DY$2&ROW($DY136)),$DX136,$DX$2&ROW($DX136)),$DW136,$DW$2&ROW($DW136)),$DV136,$DV$2&ROW($DV136)),$DU136,$DU$2&ROW($DU136)),$DT136,$DT$2&ROW($DT136)),$DS136,$DS$2&ROW($DS136)))","v":0},{"$f":"IF(AA136=\"\",0,\"X=\"&SUBSTITUTE(SUBSTITUTE(SUBSTITUTE(SUBSTITUTE(SUBSTITUTE(SUBSTITUTE(SUBSTITUTE(SUBSTITUTE(SUBSTITUTE(SUBSTITUTE(SUBSTITUTE(SUBSTITUTE(AA136,$ED136,$ED$2&ROW($ED136)),$EC136,$EC$2&ROW($EC136)),$EB136,$EB$2&ROW($EB136)),$EA136,$EA$2&ROW($EA136)),$DZ136,$DZ$2&ROW($DZ136)),$DY136,$DY$2&ROW($DY136)),$DX136,$DX$2&ROW($DX136)),$DW136,$DW$2&ROW($DW136)),$DV136,$DV$2&ROW($DV136)),$DU136,$DU$2&ROW($DU136)),$DT136,$DT$2&ROW($DT136)),$DS136,$DS$2&ROW($DS136)))","v":0},{"$f":"IF(AB136=\"\",0,\"X=\"&SUBSTITUTE(SUBSTITUTE(SUBSTITUTE(SUBSTITUTE(SUBSTITUTE(SUBSTITUTE(SUBSTITUTE(SUBSTITUTE(SUBSTITUTE(SUBSTITUTE(SUBSTITUTE(SUBSTITUTE(AB136,$ED136,$ED$2&ROW($ED136)),$EC136,$EC$2&ROW($EC136)),$EB136,$EB$2&ROW($EB136)),$EA136,$EA$2&ROW($EA136)),$DZ136,$DZ$2&ROW($DZ136)),$DY136,$DY$2&ROW($DY136)),$DX136,$DX$2&ROW($DX136)),$DW136,$DW$2&ROW($DW136)),$DV136,$DV$2&ROW($DV136)),$DU136,$DU$2&ROW($DU136)),$DT136,$DT$2&ROW($DT136)),$DS136,$DS$2&ROW($DS136)))","v":0},null,null,"{Factor:WinterCF}","{Factor:SummerCF}",{"$f":"IFERROR(INDEX($EG136:$IV136,MATCH(0,COUNTIF($DR136:DT136,$EG136:$IV136),0)),\"\")","v":"{Measure:Quantity}"},{"$f":"IFERROR(INDEX($EG136:$IV136,MATCH(0,COUNTIF($DR136:DU136,$EG136:$IV136),0)),\"\")","v":"{Dryer CFM}"},{"$f":"IFERROR(INDEX($EG136:$IV136,MATCH(0,COUNTIF($DR136:DV136,$EG136:$IV136),0)),\"\")","v":"{Weekly Hrs of Operation}"},{"$f":"IFERROR(INDEX($EG136:$IV136,MATCH(0,COUNTIF($DR136:DW136,$EG136:$IV136),0)),\"\")","v":"{Weeks Per Year}"},{"$f":"IFERROR(INDEX($EG136:$IV136,MATCH(0,COUNTIF($DR136:DX136,$EG136:$IV136),0)),\"\")","v":""},{"$f":"IFERROR(INDEX($EG136:$IV136,MATCH(0,COUNTIF($DR136:DY136,$EG136:$IV136),0)),\"\")","v":""},{"$f":"IFERROR(INDEX($EG136:$IV136,MATCH(0,COUNTIF($DR136:DZ136,$EG136:$IV136),0)),\"\")","v":""},{"$f":"IFERROR(INDEX($EG136:$IV136,MATCH(0,COUNTIF($DR136:EA136,$EG136:$IV136),0)),\"\")","v":""},{"$f":"IFERROR(INDEX($EG136:$IV136,MATCH(0,COUNTIF($DR136:EB136,$EG136:$IV136),0)),\"\")","v":""},{"$f":"IFERROR(INDEX($EG136:$IV136,MATCH(0,COUNTIF($DR136:EC136,$EG136:$IV136),0)),\"\")","v":""},null,null,{"$f":"IFERROR(MID($G136,FIND(CHAR(160),SUBSTITUTE($G136,\"{\",CHAR(160),EG$1)),FIND(CHAR(160),SUBSTITUTE($G136,\"}\",CHAR(160),EG$1))-FIND(CHAR(160),SUBSTITUTE($G136,\"{\",CHAR(160),EG$1))+1),\"\")","v":"{Measure:Quantity}"},{"$f":"IFERROR(MID($G136,FIND(CHAR(160),SUBSTITUTE($G136,\"{\",CHAR(160),EH$1)),FIND(CHAR(160),SUBSTITUTE($G136,\"}\",CHAR(160),EH$1))-FIND(CHAR(160),SUBSTITUTE($G136,\"{\",CHAR(160),EH$1))+1),\"\")","v":"{Dryer CFM}"},{"$f":"IFERROR(MID($G136,FIND(CHAR(160),SUBSTITUTE($G136,\"{\",CHAR(160),EI$1)),FIND(CHAR(160),SUBSTITUTE($G136,\"}\",CHAR(160),EI$1))-FIND(CHAR(160),SUBSTITUTE($G136,\"{\",CHAR(160),EI$1))+1),\"\")","v":""},{"$f":"IFERROR(MID($G136,FIND(CHAR(160),SUBSTITUTE($G136,\"{\",CHAR(160),EJ$1)),FIND(CHAR(160),SUBSTITUTE($G136,\"}\",CHAR(160),EJ$1))-FIND(CHAR(160),SUBSTITUTE($G136,\"{\",CHAR(160),EJ$1))+1),\"\")","v":""},{"$f":"IFERROR(MID($G136,FIND(CHAR(160),SUBSTITUTE($G136,\"{\",CHAR(160),EK$1)),FIND(CHAR(160),SUBSTITUTE($G136,\"}\",CHAR(160),EK$1))-FIND(CHAR(160),SUBSTITUTE($G136,\"{\",CHAR(160),EK$1))+1),\"\")","v":""},{"$f":"IFERROR(MID($G136,FIND(CHAR(160),SUBSTITUTE($G136,\"{\",CHAR(160),EL$1)),FIND(CHAR(160),SUBSTITUTE($G136,\"}\",CHAR(160),EL$1))-FIND(CHAR(160),SUBSTITUTE($G136,\"{\",CHAR(160),EL$1))+1),\"\")","v":""},{"$f":"IFERROR(MID($G136,FIND(CHAR(160),SUBSTITUTE($G136,\"{\",CHAR(160),EM$1)),FIND(CHAR(160),SUBSTITUTE($G136,\"}\",CHAR(160),EM$1))-FIND(CHAR(160),SUBSTITUTE($G136,\"{\",CHAR(160),EM$1))+1),\"\")","v":""},{"$f":"IFERROR(MID($G136,FIND(CHAR(160),SUBSTITUTE($G136,\"{\",CHAR(160),EN$1)),FIND(CHAR(160),SUBSTITUTE($G136,\"}\",CHAR(160),EN$1))-FIND(CHAR(160),SUBSTITUTE($G136,\"{\",CHAR(160),EN$1))+1),\"\")","v":""},{"$f":"IFERROR(MID($G136,FIND(CHAR(160),SUBSTITUTE($G136,\"{\",CHAR(160),EO$1)),FIND(CHAR(160),SUBSTITUTE($G136,\"}\",CHAR(160),EO$1))-FIND(CHAR(160),SUBSTITUTE($G136,\"{\",CHAR(160),EO$1))+1),\"\")","v":""},{"$f":"IFERROR(MID($G136,FIND(CHAR(160),SUBSTITUTE($G136,\"{\",CHAR(160),EP$1)),FIND(CHAR(160),SUBSTITUTE($G136,\"}\",CHAR(160),EP$1))-FIND(CHAR(160),SUBSTITUTE($G136,\"{\",CHAR(160),EP$1))+1),\"\")","v":""},{"$f":"IFERROR(MID($J136,FIND(CHAR(160),SUBSTITUTE($J136,\"{\",CHAR(160),EQ$1)),FIND(CHAR(160),SUBSTITUTE($J136,\"}\",CHAR(160),EQ$1))-FIND(CHAR(160),SUBSTITUTE($J136,\"{\",CHAR(160),EQ$1))+1),\"\")","v":""},{"$f":"IFERROR(MID($J136,FIND(CHAR(160),SUBSTITUTE($J136,\"{\",CHAR(160),ER$1)),FIND(CHAR(160),SUBSTITUTE($J136,\"}\",CHAR(160),ER$1))-FIND(CHAR(160),SUBSTITUTE($J136,\"{\",CHAR(160),ER$1))+1),\"\")","v":""},{"$f":"IFERROR(MID($J136,FIND(CHAR(160),SUBSTITUTE($J136,\"{\",CHAR(160),ES$1)),FIND(CHAR(160),SUBSTITUTE($J136,\"}\",CHAR(160),ES$1))-FIND(CHAR(160),SUBSTITUTE($J136,\"{\",CHAR(160),ES$1))+1),\"\")","v":""},{"$f":"IFERROR(MID($J136,FIND(CHAR(160),SUBSTITUTE($J136,\"{\",CHAR(160),ET$1)),FIND(CHAR(160),SUBSTITUTE($J136,\"}\",CHAR(160),ET$1))-FIND(CHAR(160),SUBSTITUTE($J136,\"{\",CHAR(160),ET$1))+1),\"\")","v":""},{"$f":"IFERROR(MID($J136,FIND(CHAR(160),SUBSTITUTE($J136,\"{\",CHAR(160),EU$1)),FIND(CHAR(160),SUBSTITUTE($J136,\"}\",CHAR(160),EU$1))-FIND(CHAR(160),SUBSTITUTE($J136,\"{\",CHAR(160),EU$1))+1),\"\")","v":""},{"$f":"IFERROR(MID($J136,FIND(CHAR(160),SUBSTITUTE($J136,\"{\",CHAR(160),EV$1)),FIND(CHAR(160),SUBSTITUTE($J136,\"}\",CHAR(160),EV$1))-FIND(CHAR(160),SUBSTITUTE($J136,\"{\",CHAR(160),EV$1))+1),\"\")","v":""},{"$f":"IFERROR(MID($J136,FIND(CHAR(160),SUBSTITUTE($J136,\"{\",CHAR(160),EW$1)),FIND(CHAR(160),SUBSTITUTE($J136,\"}\",CHAR(160),EW$1))-FIND(CHAR(160),SUBSTITUTE($J136,\"{\",CHAR(160),EW$1))+1),\"\")","v":""},{"$f":"IFERROR(MID($J136,FIND(CHAR(160),SUBSTITUTE($J136,\"{\",CHAR(160),EX$1)),FIND(CHAR(160),SUBSTITUTE($J136,\"}\",CHAR(160),EX$1))-FIND(CHAR(160),SUBSTITUTE($J136,\"{\",CHAR(160),EX$1))+1),\"\")","v":""},{"$f":"IFERROR(MID($J136,FIND(CHAR(160),SUBSTITUTE($J136,\"{\",CHAR(160),EY$1)),FIND(CHAR(160),SUBSTITUTE($J136,\"}\",CHAR(160),EY$1))-FIND(CHAR(160),SUBSTITUTE($J136,\"{\",CHAR(160),EY$1))+1),\"\")","v":""},{"$f":"IFERROR(MID($J136,FIND(CHAR(160),SUBSTITUTE($J136,\"{\",CHAR(160),EZ$1)),FIND(CHAR(160),SUBSTITUTE($J136,\"}\",CHAR(160),EZ$1))-FIND(CHAR(160),SUBSTITUTE($J136,\"{\",CHAR(160),EZ$1))+1),\"\")","v":""},{"$f":"IFERROR(MID($J136,FIND(CHAR(160),SUBSTITUTE($J136,\"{\",CHAR(160),FA$1)),FIND(CHAR(160),SUBSTITUTE($J136,\"}\",CHAR(160),FA$1))-FIND(CHAR(160),SUBSTITUTE($J136,\"{\",CHAR(160),FA$1))+1),\"\")","v":""},{"$f":"IFERROR(MID($J136,FIND(CHAR(160),SUBSTITUTE($J136,\"{\",CHAR(160),FB$1)),FIND(CHAR(160),SUBSTITUTE($J136,\"}\",CHAR(160),FB$1))-FIND(CHAR(160),SUBSTITUTE($J136,\"{\",CHAR(160),FB$1))+1),\"\")","v":""},{"$f":"IFERROR(MID($O136,FIND(CHAR(160),SUBSTITUTE($O136,\"{\",CHAR(160),FC$1)),FIND(CHAR(160),SUBSTITUTE($O136,\"}\",CHAR(160),FC$1))-FIND(CHAR(160),SUBSTITUTE($O136,\"{\",CHAR(160),FC$1))+1),\"\")","v":"{Weekly Hrs of Operation}"},{"$f":"IFERROR(MID($O136,FIND(CHAR(160),SUBSTITUTE($O136,\"{\",CHAR(160),FD$1)),FIND(CHAR(160),SUBSTITUTE($O136,\"}\",CHAR(160),FD$1))-FIND(CHAR(160),SUBSTITUTE($O136,\"{\",CHAR(160),FD$1))+1),\"\")","v":"{Weeks Per Year}"},{"$f":"IFERROR(MID($O136,FIND(CHAR(160),SUBSTITUTE($O136,\"{\",CHAR(160),FE$1)),FIND(CHAR(160),SUBSTITUTE($O136,\"}\",CHAR(160),FE$1))-FIND(CHAR(160),SUBSTITUTE($O136,\"{\",CHAR(160),FE$1))+1),\"\")","v":""},{"$f":"IFERROR(MID($O136,FIND(CHAR(160),SUBSTITUTE($O136,\"{\",CHAR(160),FF$1)),FIND(CHAR(160),SUBSTITUTE($O136,\"}\",CHAR(160),FF$1))-FIND(CHAR(160),SUBSTITUTE($O136,\"{\",CHAR(160),FF$1))+1),\"\")","v":""},{"$f":"IFERROR(MID($O136,FIND(CHAR(160),SUBSTITUTE($O136,\"{\",CHAR(160),FG$1)),FIND(CHAR(160),SUBSTITUTE($O136,\"}\",CHAR(160),FG$1))-FIND(CHAR(160),SUBSTITUTE($O136,\"{\",CHAR(160),FG$1))+1),\"\")","v":""},{"$f":"IFERROR(MID($O136,FIND(CHAR(160),SUBSTITUTE($O136,\"{\",CHAR(160),FH$1)),FIND(CHAR(160),SUBSTITUTE($O136,\"}\",CHAR(160),FH$1))-FIND(CHAR(160),SUBSTITUTE($O136,\"{\",CHAR(160),FH$1))+1),\"\")","v":""},{"$f":"IFERROR(MID($O136,FIND(CHAR(160),SUBSTITUTE($O136,\"{\",CHAR(160),FI$1)),FIND(CHAR(160),SUBSTITUTE($O136,\"}\",CHAR(160),FI$1))-FIND(CHAR(160),SUBSTITUTE($O136,\"{\",CHAR(160),FI$1))+1),\"\")","v":""},{"$f":"IFERROR(MID($O136,FIND(CHAR(160),SUBSTITUTE($O136,\"{\",CHAR(160),FJ$1)),FIND(CHAR(160),SUBSTITUTE($O136,\"}\",CHAR(160),FJ$1))-FIND(CHAR(160),SUBSTITUTE($O136,\"{\",CHAR(160),FJ$1))+1),\"\")","v":""},{"$f":"IFERROR(MID($O136,FIND(CHAR(160),SUBSTITUTE($O136,\"{\",CHAR(160),FK$1)),FIND(CHAR(160),SUBSTITUTE($O136,\"}\",CHAR(160),FK$1))-FIND(CHAR(160),SUBSTITUTE($O136,\"{\",CHAR(160),FK$1))+1),\"\")","v":"{Measure:Quantity}"},{"$f":"IFERROR(MID($O136,FIND(CHAR(160),SUBSTITUTE($O136,\"{\",CHAR(160),FL$1)),FIND(CHAR(160),SUBSTITUTE($O136,\"}\",CHAR(160),FL$1))-FIND(CHAR(160),SUBSTITUTE($O136,\"{\",CHAR(160),FL$1))+1),\"\")","v":"{Dryer CFM}"},{"$f":"IFERROR(MID($R136,FIND(CHAR(160),SUBSTITUTE($R136,\"{\",CHAR(160),FM$1)),FIND(CHAR(160),SUBSTITUTE($R136,\"}\",CHAR(160),FM$1))-FIND(CHAR(160),SUBSTITUTE($R136,\"{\",CHAR(160),FM$1))+1),\"\")","v":""},{"$f":"IFERROR(MID($R136,FIND(CHAR(160),SUBSTITUTE($R136,\"{\",CHAR(160),FN$1)),FIND(CHAR(160),SUBSTITUTE($R136,\"}\",CHAR(160),FN$1))-FIND(CHAR(160),SUBSTITUTE($R136,\"{\",CHAR(160),FN$1))+1),\"\")","v":""},{"$f":"IFERROR(MID($R136,FIND(CHAR(160),SUBSTITUTE($R136,\"{\",CHAR(160),FO$1)),FIND(CHAR(160),SUBSTITUTE($R136,\"}\",CHAR(160),FO$1))-FIND(CHAR(160),SUBSTITUTE($R136,\"{\",CHAR(160),FO$1))+1),\"\")","v":""},{"$f":"IFERROR(MID($R136,FIND(CHAR(160),SUBSTITUTE($R136,\"{\",CHAR(160),FP$1)),FIND(CHAR(160),SUBSTITUTE($R136,\"}\",CHAR(160),FP$1))-FIND(CHAR(160),SUBSTITUTE($R136,\"{\",CHAR(160),FP$1))+1),\"\")","v":""},{"$f":"IFERROR(MID($R136,FIND(CHAR(160),SUBSTITUTE($R136,\"{\",CHAR(160),FQ$1)),FIND(CHAR(160),SUBSTITUTE($R136,\"}\",CHAR(160),FQ$1))-FIND(CHAR(160),SUBSTITUTE($R136,\"{\",CHAR(160),FQ$1))+1),\"\")","v":""},{"$f":"IFERROR(MID($R136,FIND(CHAR(160),SUBSTITUTE($R136,\"{\",CHAR(160),FR$1)),FIND(CHAR(160),SUBSTITUTE($R136,\"}\",CHAR(160),FR$1))-FIND(CHAR(160),SUBSTITUTE($R136,\"{\",CHAR(160),FR$1))+1),\"\")","v":""},{"$f":"IFERROR(MID($R136,FIND(CHAR(160),SUBSTITUTE($R136,\"{\",CHAR(160),FS$1)),FIND(CHAR(160),SUBSTITUTE($R136,\"}\",CHAR(160),FS$1))-FIND(CHAR(160),SUBSTITUTE($R136,\"{\",CHAR(160),FS$1))+1),\"\")","v":""},{"$f":"IFERROR(MID($R136,FIND(CHAR(160),SUBSTITUTE($R136,\"{\",CHAR(160),FT$1)),FIND(CHAR(160),SUBSTITUTE($R136,\"}\",CHAR(160),FT$1))-FIND(CHAR(160),SUBSTITUTE($R136,\"{\",CHAR(160),FT$1))+1),\"\")","v":""},{"$f":"IFERROR(MID($R136,FIND(CHAR(160),SUBSTITUTE($R136,\"{\",CHAR(160),FU$1)),FIND(CHAR(160),SUBSTITUTE($R136,\"}\",CHAR(160),FU$1))-FIND(CHAR(160),SUBSTITUTE($R136,\"{\",CHAR(160),FU$1))+1),\"\")","v":"{Measure:Quantity}"},{"$f":"IFERROR(MID($R136,FIND(CHAR(160),SUBSTITUTE($R136,\"{\",CHAR(160),FV$1)),FIND(CHAR(160),SUBSTITUTE($R136,\"}\",CHAR(160),FV$1))-FIND(CHAR(160),SUBSTITUTE($R136,\"{\",CHAR(160),FV$1))+1),\"\")","v":"{Dryer CFM}"},{"$f":"IFERROR(MID($U136,FIND(CHAR(160),SUBSTITUTE($U136,\"{\",CHAR(160),FW$1)),FIND(CHAR(160),SUBSTITUTE($U136,\"}\",CHAR(160),FW$1))-FIND(CHAR(160),SUBSTITUTE($U136,\"{\",CHAR(160),FW$1))+1),\"\")","v":"{Factor:WinterCF}"},{"$f":"IFERROR(MID($U136,FIND(CHAR(160),SUBSTITUTE($U136,\"{\",CHAR(160),FX$1)),FIND(CHAR(160),SUBSTITUTE($U136,\"}\",CHAR(160),FX$1))-FIND(CHAR(160),SUBSTITUTE($U136,\"{\",CHAR(160),FX$1))+1),\"\")","v":""},{"$f":"IFERROR(MID($U136,FIND(CHAR(160),SUBSTITUTE($U136,\"{\",CHAR(160),FY$1)),FIND(CHAR(160),SUBSTITUTE($U136,\"}\",CHAR(160),FY$1))-FIND(CHAR(160),SUBSTITUTE($U136,\"{\",CHAR(160),FY$1))+1),\"\")","v":""},{"$f":"IFERROR(MID($U136,FIND(CHAR(160),SUBSTITUTE($U136,\"{\",CHAR(160),FZ$1)),FIND(CHAR(160),SUBSTITUTE($U136,\"}\",CHAR(160),FZ$1))-FIND(CHAR(160),SUBSTITUTE($U136,\"{\",CHAR(160),FZ$1))+1),\"\")","v":""},{"$f":"IFERROR(MID($U136,FIND(CHAR(160),SUBSTITUTE($U136,\"{\",CHAR(160),GA$1)),FIND(CHAR(160),SUBSTITUTE($U136,\"}\",CHAR(160),GA$1))-FIND(CHAR(160),SUBSTITUTE($U136,\"{\",CHAR(160),GA$1))+1),\"\")","v":""},{"$f":"IFERROR(MID($U136,FIND(CHAR(160),SUBSTITUTE($U136,\"{\",CHAR(160),GB$1)),FIND(CHAR(160),SUBSTITUTE($U136,\"}\",CHAR(160),GB$1))-FIND(CHAR(160),SUBSTITUTE($U136,\"{\",CHAR(160),GB$1))+1),\"\")","v":""},{"$f":"IFERROR(MID($U136,FIND(CHAR(160),SUBSTITUTE($U136,\"{\",CHAR(160),GC$1)),FIND(CHAR(160),SUBSTITUTE($U136,\"}\",CHAR(160),GC$1))-FIND(CHAR(160),SUBSTITUTE($U136,\"{\",CHAR(160),GC$1))+1),\"\")","v":""},{"$f":"IFERROR(MID($U136,FIND(CHAR(160),SUBSTITUTE($U136,\"{\",CHAR(160),GD$1)),FIND(CHAR(160),SUBSTITUTE($U136,\"}\",CHAR(160),GD$1))-FIND(CHAR(160),SUBSTITUTE($U136,\"{\",CHAR(160),GD$1))+1),\"\")","v":""},{"$f":"IFERROR(MID($U136,FIND(CHAR(160),SUBSTITUTE($U136,\"{\",CHAR(160),GE$1)),FIND(CHAR(160),SUBSTITUTE($U136,\"}\",CHAR(160),GE$1))-FIND(CHAR(160),SUBSTITUTE($U136,\"{\",CHAR(160),GE$1))+1),\"\")","v":"{Measure:Quantity}"},{"$f":"IFERROR(MID($U136,FIND(CHAR(160),SUBSTITUTE($U136,\"{\",CHAR(160),GF$1)),FIND(CHAR(160),SUBSTITUTE($U136,\"}\",CHAR(160),GF$1))-FIND(CHAR(160),SUBSTITUTE($U136,\"{\",CHAR(160),GF$1))+1),\"\")","v":"{Dryer CFM}"},{"$f":"IFERROR(MID($V136,FIND(CHAR(160),SUBSTITUTE($V136,\"{\",CHAR(160),GG$1)),FIND(CHAR(160),SUBSTITUTE($V136,\"}\",CHAR(160),GG$1))-FIND(CHAR(160),SUBSTITUTE($V136,\"{\",CHAR(160),GG$1))+1),\"\")","v":"{Factor:SummerCF}"},{"$f":"IFERROR(MID($V136,FIND(CHAR(160),SUBSTITUTE($V136,\"{\",CHAR(160),GH$1)),FIND(CHAR(160),SUBSTITUTE($V136,\"}\",CHAR(160),GH$1))-FIND(CHAR(160),SUBSTITUTE($V136,\"{\",CHAR(160),GH$1))+1),\"\")","v":""},{"$f":"IFERROR(MID($V136,FIND(CHAR(160),SUBSTITUTE($V136,\"{\",CHAR(160),GI$1)),FIND(CHAR(160),SUBSTITUTE($V136,\"}\",CHAR(160),GI$1))-FIND(CHAR(160),SUBSTITUTE($V136,\"{\",CHAR(160),GI$1))+1),\"\")","v":""},{"$f":"IFERROR(MID($V136,FIND(CHAR(160),SUBSTITUTE($V136,\"{\",CHAR(160),GJ$1)),FIND(CHAR(160),SUBSTITUTE($V136,\"}\",CHAR(160),GJ$1))-FIND(CHAR(160),SUBSTITUTE($V136,\"{\",CHAR(160),GJ$1))+1),\"\")","v":""},{"$f":"IFERROR(MID($V136,FIND(CHAR(160),SUBSTITUTE($V136,\"{\",CHAR(160),GK$1)),FIND(CHAR(160),SUBSTITUTE($V136,\"}\",CHAR(160),GK$1))-FIND(CHAR(160),SUBSTITUTE($V136,\"{\",CHAR(160),GK$1))+1),\"\")","v":""},{"$f":"IFERROR(MID($V136,FIND(CHAR(160),SUBSTITUTE($V136,\"{\",CHAR(160),GL$1)),FIND(CHAR(160),SUBSTITUTE($V136,\"}\",CHAR(160),GL$1))-FIND(CHAR(160),SUBSTITUTE($V136,\"{\",CHAR(160),GL$1))+1),\"\")","v":""},{"$f":"IFERROR(MID($V136,FIND(CHAR(160),SUBSTITUTE($V136,\"{\",CHAR(160),GM$1)),FIND(CHAR(160),SUBSTITUTE($V136,\"}\",CHAR(160),GM$1))-FIND(CHAR(160),SUBSTITUTE($V136,\"{\",CHAR(160),GM$1))+1),\"\")","v":""},{"$f":"IFERROR(MID($V136,FIND(CHAR(160),SUBSTITUTE($V136,\"{\",CHAR(160),GN$1)),FIND(CHAR(160),SUBSTITUTE($V136,\"}\",CHAR(160),GN$1))-FIND(CHAR(160),SUBSTITUTE($V136,\"{\",CHAR(160),GN$1))+1),\"\")","v":""},{"$f":"IFERROR(MID($V136,FIND(CHAR(160),SUBSTITUTE($V136,\"{\",CHAR(160),GO$1)),FIND(CHAR(160),SUBSTITUTE($V136,\"}\",CHAR(160),GO$1))-FIND(CHAR(160),SUBSTITUTE($V136,\"{\",CHAR(160),GO$1))+1),\"\")","v":"{Measure:Quantity}"},{"$f":"IFERROR(MID($V136,FIND(CHAR(160),SUBSTITUTE($V136,\"{\",CHAR(160),GP$1)),FIND(CHAR(160),SUBSTITUTE($V136,\"}\",CHAR(160),GP$1))-FIND(CHAR(160),SUBSTITUTE($V136,\"{\",CHAR(160),GP$1))+1),\"\")","v":"{Dryer CFM}"},{"$f":"IFERROR(MID($W136,FIND(CHAR(160),SUBSTITUTE($W136,\"{\",CHAR(160),GQ$1)),FIND(CHAR(160),SUBSTITUTE($W136,\"}\",CHAR(160),GQ$1))-FIND(CHAR(160),SUBSTITUTE($W136,\"{\",CHAR(160),GQ$1))+1),\"\")","v":""},{"$f":"IFERROR(MID($W136,FIND(CHAR(160),SUBSTITUTE($W136,\"{\",CHAR(160),GR$1)),FIND(CHAR(160),SUBSTITUTE($W136,\"}\",CHAR(160),GR$1))-FIND(CHAR(160),SUBSTITUTE($W136,\"{\",CHAR(160),GR$1))+1),\"\")","v":""},{"$f":"IFERROR(MID($W136,FIND(CHAR(160),SUBSTITUTE($W136,\"{\",CHAR(160),GS$1)),FIND(CHAR(160),SUBSTITUTE($W136,\"}\",CHAR(160),GS$1))-FIND(CHAR(160),SUBSTITUTE($W136,\"{\",CHAR(160),GS$1))+1),\"\")","v":""},{"$f":"IFERROR(MID($W136,FIND(CHAR(160),SUBSTITUTE($W136,\"{\",CHAR(160),GT$1)),FIND(CHAR(160),SUBSTITUTE($W136,\"}\",CHAR(160),GT$1))-FIND(CHAR(160),SUBSTITUTE($W136,\"{\",CHAR(160),GT$1))+1),\"\")","v":""},{"$f":"IFERROR(MID($W136,FIND(CHAR(160),SUBSTITUTE($W136,\"{\",CHAR(160),GU$1)),FIND(CHAR(160),SUBSTITUTE($W136,\"}\",CHAR(160),GU$1))-FIND(CHAR(160),SUBSTITUTE($W136,\"{\",CHAR(160),GU$1))+1),\"\")","v":""},{"$f":"IFERROR(MID($W136,FIND(CHAR(160),SUBSTITUTE($W136,\"{\",CHAR(160),GV$1)),FIND(CHAR(160),SUBSTITUTE($W136,\"}\",CHAR(160),GV$1))-FIND(CHAR(160),SUBSTITUTE($W136,\"{\",CHAR(160),GV$1))+1),\"\")","v":""},{"$f":"IFERROR(MID($W136,FIND(CHAR(160),SUBSTITUTE($W136,\"{\",CHAR(160),GW$1)),FIND(CHAR(160),SUBSTITUTE($W136,\"}\",CHAR(160),GW$1))-FIND(CHAR(160),SUBSTITUTE($W136,\"{\",CHAR(160),GW$1))+1),\"\")","v":""},{"$f":"IFERROR(MID($W136,FIND(CHAR(160),SUBSTITUTE($W136,\"{\",CHAR(160),GX$1)),FIND(CHAR(160),SUBSTITUTE($W136,\"}\",CHAR(160),GX$1))-FIND(CHAR(160),SUBSTITUTE($W136,\"{\",CHAR(160),GX$1))+1),\"\")","v":""},{"$f":"IFERROR(MID($W136,FIND(CHAR(160),SUBSTITUTE($W136,\"{\",CHAR(160),GY$1)),FIND(CHAR(160),SUBSTITUTE($W136,\"}\",CHAR(160),GY$1))-FIND(CHAR(160),SUBSTITUTE($W136,\"{\",CHAR(160),GY$1))+1),\"\")","v":""},{"$f":"IFERROR(MID($W136,FIND(CHAR(160),SUBSTITUTE($W136,\"{\",CHAR(160),GZ$1)),FIND(CHAR(160),SUBSTITUTE($W136,\"}\",CHAR(160),GZ$1))-FIND(CHAR(160),SUBSTITUTE($W136,\"{\",CHAR(160),GZ$1))+1),\"\")","v":""},{"$f":"IFERROR(MID($X136,FIND(CHAR(160),SUBSTITUTE($X136,\"{\",CHAR(160),HA$1)),FIND(CHAR(160),SUBSTITUTE($X136,\"}\",CHAR(160),HA$1))-FIND(CHAR(160),SUBSTITUTE($X136,\"{\",CHAR(160),HA$1))+1),\"\")","v":""},{"$f":"IFERROR(MID($X136,FIND(CHAR(160),SUBSTITUTE($X136,\"{\",CHAR(160),HB$1)),FIND(CHAR(160),SUBSTITUTE($X136,\"}\",CHAR(160),HB$1))-FIND(CHAR(160),SUBSTITUTE($X136,\"{\",CHAR(160),HB$1))+1),\"\")","v":""},{"$f":"IFERROR(MID($X136,FIND(CHAR(160),SUBSTITUTE($X136,\"{\",CHAR(160),HC$1)),FIND(CHAR(160),SUBSTITUTE($X136,\"}\",CHAR(160),HC$1))-FIND(CHAR(160),SUBSTITUTE($X136,\"{\",CHAR(160),HC$1))+1),\"\")","v":""},{"$f":"IFERROR(MID($X136,FIND(CHAR(160),SUBSTITUTE($X136,\"{\",CHAR(160),HD$1)),FIND(CHAR(160),SUBSTITUTE($X136,\"}\",CHAR(160),HD$1))-FIND(CHAR(160),SUBSTITUTE($X136,\"{\",CHAR(160),HD$1))+1),\"\")","v":""},{"$f":"IFERROR(MID($X136,FIND(CHAR(160),SUBSTITUTE($X136,\"{\",CHAR(160),HE$1)),FIND(CHAR(160),SUBSTITUTE($X136,\"}\",CHAR(160),HE$1))-FIND(CHAR(160),SUBSTITUTE($X136,\"{\",CHAR(160),HE$1))+1),\"\")","v":""},{"$f":"IFERROR(MID($X136,FIND(CHAR(160),SUBSTITUTE($X136,\"{\",CHAR(160),HF$1)),FIND(CHAR(160),SUBSTITUTE($X136,\"}\",CHAR(160),HF$1))-FIND(CHAR(160),SUBSTITUTE($X136,\"{\",CHAR(160),HF$1))+1),\"\")","v":""},{"$f":"IFERROR(MID($X136,FIND(CHAR(160),SUBSTITUTE($X136,\"{\",CHAR(160),HG$1)),FIND(CHAR(160),SUBSTITUTE($X136,\"}\",CHAR(160),HG$1))-FIND(CHAR(160),SUBSTITUTE($X136,\"{\",CHAR(160),HG$1))+1),\"\")","v":""},{"$f":"IFERROR(MID($X136,FIND(CHAR(160),SUBSTITUTE($X136,\"{\",CHAR(160),HH$1)),FIND(CHAR(160),SUBSTITUTE($X136,\"}\",CHAR(160),HH$1))-FIND(CHAR(160),SUBSTITUTE($X136,\"{\",CHAR(160),HH$1))+1),\"\")","v":""},{"$f":"IFERROR(MID($X136,FIND(CHAR(160),SUBSTITUTE($X136,\"{\",CHAR(160),HI$1)),FIND(CHAR(160),SUBSTITUTE($X136,\"}\",CHAR(160),HI$1))-FIND(CHAR(160),SUBSTITUTE($X136,\"{\",CHAR(160),HI$1))+1),\"\")","v":""},{"$f":"IFERROR(MID($X136,FIND(CHAR(160),SUBSTITUTE($X136,\"{\",CHAR(160),HJ$1)),FIND(CHAR(160),SUBSTITUTE($X136,\"}\",CHAR(160),HJ$1))-FIND(CHAR(160),SUBSTITUTE($X136,\"{\",CHAR(160),HJ$1))+1),\"\")","v":""},{"$f":"IFERROR(MID($Y136,FIND(CHAR(160),SUBSTITUTE($Y136,\"{\",CHAR(160),HK$1)),FIND(CHAR(160),SUBSTITUTE($Y136,\"}\",CHAR(160),HK$1))-FIND(CHAR(160),SUBSTITUTE($Y136,\"{\",CHAR(160),HK$1))+1),\"\")","v":""},{"$f":"IFERROR(MID($Y136,FIND(CHAR(160),SUBSTITUTE($Y136,\"{\",CHAR(160),HL$1)),FIND(CHAR(160),SUBSTITUTE($Y136,\"}\",CHAR(160),HL$1))-FIND(CHAR(160),SUBSTITUTE($Y136,\"{\",CHAR(160),HL$1))+1),\"\")","v":""},{"$f":"IFERROR(MID($Y136,FIND(CHAR(160),SUBSTITUTE($Y136,\"{\",CHAR(160),HM$1)),FIND(CHAR(160),SUBSTITUTE($Y136,\"}\",CHAR(160),HM$1))-FIND(CHAR(160),SUBSTITUTE($Y136,\"{\",CHAR(160),HM$1))+1),\"\")","v":""},{"$f":"IFERROR(MID($Y136,FIND(CHAR(160),SUBSTITUTE($Y136,\"{\",CHAR(160),HN$1)),FIND(CHAR(160),SUBSTITUTE($Y136,\"}\",CHAR(160),HN$1))-FIND(CHAR(160),SUBSTITUTE($Y136,\"{\",CHAR(160),HN$1))+1),\"\")","v":""},{"$f":"IFERROR(MID($Y136,FIND(CHAR(160),SUBSTITUTE($Y136,\"{\",CHAR(160),HO$1)),FIND(CHAR(160),SUBSTITUTE($Y136,\"}\",CHAR(160),HO$1))-FIND(CHAR(160),SUBSTITUTE($Y136,\"{\",CHAR(160),HO$1))+1),\"\")","v":""},{"$f":"IFERROR(MID($Y136,FIND(CHAR(160),SUBSTITUTE($Y136,\"{\",CHAR(160),HP$1)),FIND(CHAR(160),SUBSTITUTE($Y136,\"}\",CHAR(160),HP$1))-FIND(CHAR(160),SUBSTITUTE($Y136,\"{\",CHAR(160),HP$1))+1),\"\")","v":""},{"$f":"IFERROR(MID($Y136,FIND(CHAR(160),SUBSTITUTE($Y136,\"{\",CHAR(160),HQ$1)),FIND(CHAR(160),SUBSTITUTE($Y136,\"}\",CHAR(160),HQ$1))-FIND(CHAR(160),SUBSTITUTE($Y136,\"{\",CHAR(160),HQ$1))+1),\"\")","v":""},{"$f":"IFERROR(MID($Y136,FIND(CHAR(160),SUBSTITUTE($Y136,\"{\",CHAR(160),HR$1)),FIND(CHAR(160),SUBSTITUTE($Y136,\"}\",CHAR(160),HR$1))-FIND(CHAR(160),SUBSTITUTE($Y136,\"{\",CHAR(160),HR$1))+1),\"\")","v":""},{"$f":"IFERROR(MID($Y136,FIND(CHAR(160),SUBSTITUTE($Y136,\"{\",CHAR(160),HS$1)),FIND(CHAR(160),SUBSTITUTE($Y136,\"}\",CHAR(160),HS$1))-FIND(CHAR(160),SUBSTITUTE($Y136,\"{\",CHAR(160),HS$1))+1),\"\")","v":""},{"$f":"IFERROR(MID($Y136,FIND(CHAR(160),SUBSTITUTE($Y136,\"{\",CHAR(160),HT$1)),FIND(CHAR(160),SUBSTITUTE($Y136,\"}\",CHAR(160),HT$1))-FIND(CHAR(160),SUBSTITUTE($Y136,\"{\",CHAR(160),HT$1))+1),\"\")","v":""},{"$f":"IFERROR(MID($Z136,FIND(CHAR(160),SUBSTITUTE($Z136,\"{\",CHAR(160),HU$1)),FIND(CHAR(160),SUBSTITUTE($Z136,\"}\",CHAR(160),HU$1))-FIND(CHAR(160),SUBSTITUTE($Z136,\"{\",CHAR(160),HU$1))+1),\"\")","v":""},{"$f":"IFERROR(MID($Z136,FIND(CHAR(160),SUBSTITUTE($Z136,\"{\",CHAR(160),HV$1)),FIND(CHAR(160),SUBSTITUTE($Z136,\"}\",CHAR(160),HV$1))-FIND(CHAR(160),SUBSTITUTE($Z136,\"{\",CHAR(160),HV$1))+1),\"\")","v":""},{"$f":"IFERROR(MID($Z136,FIND(CHAR(160),SUBSTITUTE($Z136,\"{\",CHAR(160),HW$1)),FIND(CHAR(160),SUBSTITUTE($Z136,\"}\",CHAR(160),HW$1))-FIND(CHAR(160),SUBSTITUTE($Z136,\"{\",CHAR(160),HW$1))+1),\"\")","v":""},{"$f":"IFERROR(MID($Z136,FIND(CHAR(160),SUBSTITUTE($Z136,\"{\",CHAR(160),HX$1)),FIND(CHAR(160),SUBSTITUTE($Z136,\"}\",CHAR(160),HX$1))-FIND(CHAR(160),SUBSTITUTE($Z136,\"{\",CHAR(160),HX$1))+1),\"\")","v":""},{"$f":"IFERROR(MID($Z136,FIND(CHAR(160),SUBSTITUTE($Z136,\"{\",CHAR(160),HY$1)),FIND(CHAR(160),SUBSTITUTE($Z136,\"}\",CHAR(160),HY$1))-FIND(CHAR(160),SUBSTITUTE($Z136,\"{\",CHAR(160),HY$1))+1),\"\")","v":""},{"$f":"IFERROR(MID($Z136,FIND(CHAR(160),SUBSTITUTE($Z136,\"{\",CHAR(160),HZ$1)),FIND(CHAR(160),SUBSTITUTE($Z136,\"}\",CHAR(160),HZ$1))-FIND(CHAR(160),SUBSTITUTE($Z136,\"{\",CHAR(160),HZ$1))+1),\"\")","v":""},{"$f":"IFERROR(MID($Z136,FIND(CHAR(160),SUBSTITUTE($Z136,\"{\",CHAR(160),IA$1)),FIND(CHAR(160),SUBSTITUTE($Z136,\"}\",CHAR(160),IA$1))-FIND(CHAR(160),SUBSTITUTE($Z136,\"{\",CHAR(160),IA$1))+1),\"\")","v":""},{"$f":"IFERROR(MID($Z136,FIND(CHAR(160),SUBSTITUTE($Z136,\"{\",CHAR(160),IB$1)),FIND(CHAR(160),SUBSTITUTE($Z136,\"}\",CHAR(160),IB$1))-FIND(CHAR(160),SUBSTITUTE($Z136,\"{\",CHAR(160),IB$1))+1),\"\")","v":""},{"$f":"IFERROR(MID($Z136,FIND(CHAR(160),SUBSTITUTE($Z136,\"{\",CHAR(160),IC$1)),FIND(CHAR(160),SUBSTITUTE($Z136,\"}\",CHAR(160),IC$1))-FIND(CHAR(160),SUBSTITUTE($Z136,\"{\",CHAR(160),IC$1))+1),\"\")","v":""},{"$f":"IFERROR(MID($Z136,FIND(CHAR(160),SUBSTITUTE($Z136,\"{\",CHAR(160),ID$1)),FIND(CHAR(160),SUBSTITUTE($Z136,\"}\",CHAR(160),ID$1))-FIND(CHAR(160),SUBSTITUTE($Z136,\"{\",CHAR(160),ID$1))+1),\"\")","v":""},{"$f":"IFERROR(MID($AA136,FIND(CHAR(160),SUBSTITUTE($AA136,\"{\",CHAR(160),IE$1)),FIND(CHAR(160),SUBSTITUTE($AA136,\"}\",CHAR(160),IE$1))-FIND(CHAR(160),SUBSTITUTE($AA136,\"{\",CHAR(160),IE$1))+1),\"\")","v":""},{"$f":"IFERROR(MID($AA136,FIND(CHAR(160),SUBSTITUTE($AA136,\"{\",CHAR(160),IF$1)),FIND(CHAR(160),SUBSTITUTE($AA136,\"}\",CHAR(160),IF$1))-FIND(CHAR(160),SUBSTITUTE($AA136,\"{\",CHAR(160),IF$1))+1),\"\")","v":""},{"$f":"IFERROR(MID($AA136,FIND(CHAR(160),SUBSTITUTE($AA136,\"{\",CHAR(160),IG$1)),FIND(CHAR(160),SUBSTITUTE($AA136,\"}\",CHAR(160),IG$1))-FIND(CHAR(160),SUBSTITUTE($AA136,\"{\",CHAR(160),IG$1))+1),\"\")","v":""},{"$f":"IFERROR(MID($AA136,FIND(CHAR(160),SUBSTITUTE($AA136,\"{\",CHAR(160),IH$1)),FIND(CHAR(160),SUBSTITUTE($AA136,\"}\",CHAR(160),IH$1))-FIND(CHAR(160),SUBSTITUTE($AA136,\"{\",CHAR(160),IH$1))+1),\"\")","v":""},{"$f":"IFERROR(MID($AA136,FIND(CHAR(160),SUBSTITUTE($AA136,\"{\",CHAR(160),II$1)),FIND(CHAR(160),SUBSTITUTE($AA136,\"}\",CHAR(160),II$1))-FIND(CHAR(160),SUBSTITUTE($AA136,\"{\",CHAR(160),II$1))+1),\"\")","v":""},{"$f":"IFERROR(MID($AA136,FIND(CHAR(160),SUBSTITUTE($AA136,\"{\",CHAR(160),IJ$1)),FIND(CHAR(160),SUBSTITUTE($AA136,\"}\",CHAR(160),IJ$1))-FIND(CHAR(160),SUBSTITUTE($AA136,\"{\",CHAR(160),IJ$1))+1),\"\")","v":""},{"$f":"IFERROR(MID($AA136,FIND(CHAR(160),SUBSTITUTE($AA136,\"{\",CHAR(160),IK$1)),FIND(CHAR(160),SUBSTITUTE($AA136,\"}\",CHAR(160),IK$1))-FIND(CHAR(160),SUBSTITUTE($AA136,\"{\",CHAR(160),IK$1))+1),\"\")","v":""},{"$f":"IFERROR(MID($AA136,FIND(CHAR(160),SUBSTITUTE($AA136,\"{\",CHAR(160),IL$1)),FIND(CHAR(160),SUBSTITUTE($AA136,\"}\",CHAR(160),IL$1))-FIND(CHAR(160),SUBSTITUTE($AA136,\"{\",CHAR(160),IL$1))+1),\"\")","v":""},{"$f":"IFERROR(MID($AA136,FIND(CHAR(160),SUBSTITUTE($AA136,\"{\",CHAR(160),IM$1)),FIND(CHAR(160),SUBSTITUTE($AA136,\"}\",CHAR(160),IM$1))-FIND(CHAR(160),SUBSTITUTE($AA136,\"{\",CHAR(160),IM$1))+1),\"\")","v":""},{"$f":"IFERROR(MID($AA136,FIND(CHAR(160),SUBSTITUTE($AA136,\"{\",CHAR(160),IN$1)),FIND(CHAR(160),SUBSTITUTE($AA136,\"}\",CHAR(160),IN$1))-FIND(CHAR(160),SUBSTITUTE($AA136,\"{\",CHAR(160),IN$1))+1),\"\")","v":""},{"$f":"IFERROR(MID($AB136,FIND(CHAR(160),SUBSTITUTE($AB136,\"{\",CHAR(160),IO$1)),FIND(CHAR(160),SUBSTITUTE($AB136,\"}\",CHAR(160),IO$1))-FIND(CHAR(160),SUBSTITUTE($AB136,\"{\",CHAR(160),IO$1))+1),\"\")","v":""},{"$f":"IFERROR(MID($AB136,FIND(CHAR(160),SUBSTITUTE($AB136,\"{\",CHAR(160),IP$1)),FIND(CHAR(160),SUBSTITUTE($AB136,\"}\",CHAR(160),IP$1))-FIND(CHAR(160),SUBSTITUTE($AB136,\"{\",CHAR(160),IP$1))+1),\"\")","v":""},{"$f":"IFERROR(MID($AB136,FIND(CHAR(160),SUBSTITUTE($AB136,\"{\",CHAR(160),IQ$1)),FIND(CHAR(160),SUBSTITUTE($AB136,\"}\",CHAR(160),IQ$1))-FIND(CHAR(160),SUBSTITUTE($AB136,\"{\",CHAR(160),IQ$1))+1),\"\")","v":""},{"$f":"IFERROR(MID($AB136,FIND(CHAR(160),SUBSTITUTE($AB136,\"{\",CHAR(160),IR$1)),FIND(CHAR(160),SUBSTITUTE($AB136,\"}\",CHAR(160),IR$1))-FIND(CHAR(160),SUBSTITUTE($AB136,\"{\",CHAR(160),IR$1))+1),\"\")","v":""},{"$f":"IFERROR(MID($AB136,FIND(CHAR(160),SUBSTITUTE($AB136,\"{\",CHAR(160),IS$1)),FIND(CHAR(160),SUBSTITUTE($AB136,\"}\",CHAR(160),IS$1))-FIND(CHAR(160),SUBSTITUTE($AB136,\"{\",CHAR(160),IS$1))+1),\"\")","v":""},{"$f":"IFERROR(MID($AB136,FIND(CHAR(160),SUBSTITUTE($AB136,\"{\",CHAR(160),IT$1)),FIND(CHAR(160),SUBSTITUTE($AB136,\"}\",CHAR(160),IT$1))-FIND(CHAR(160),SUBSTITUTE($AB136,\"{\",CHAR(160),IT$1))+1),\"\")","v":""},{"$f":"IFERROR(MID($AB136,FIND(CHAR(160),SUBSTITUTE($AB136,\"{\",CHAR(160),IU$1)),FIND(CHAR(160),SUBSTITUTE($AB136,\"}\",CHAR(160),IU$1))-FIND(CHAR(160),SUBSTITUTE($AB136,\"{\",CHAR(160),IU$1))+1),\"\")","v":""},{"$f":"IFERROR(MID($AB136,FIND(CHAR(160),SUBSTITUTE($AB136,\"{\",CHAR(160),IV$1)),FIND(CHAR(160),SUBSTITUTE($AB136,\"}\",CHAR(160),IV$1))-FIND(CHAR(160),SUBSTITUTE($AB136,\"{\",CHAR(160),IV$1))+1),\"\")","v":""},{"$f":"IFERROR(MID($AB136,FIND(CHAR(160),SUBSTITUTE($AB136,\"{\",CHAR(160),IW$1)),FIND(CHAR(160),SUBSTITUTE($AB136,\"}\",CHAR(160),IW$1))-FIND(CHAR(160),SUBSTITUTE($AB136,\"{\",CHAR(160),IW$1))+1),\"\")","v":""},{"$f":"IFERROR(MID($AB136,FIND(CHAR(160),SUBSTITUTE($AB136,\"{\",CHAR(160),IX$1)),FIND(CHAR(160),SUBSTITUTE($AB136,\"}\",CHAR(160),IX$1))-FIND(CHAR(160),SUBSTITUTE($AB136,\"{\",CHAR(160),IX$1))+1),\"\")","v":""},null,{"$f":"10-COUNTIF(DU136:ED136,\"\")","v":4}]
["C&I Prescriptive Compressed Air Solutions","Receiver - C20 - Standard Receiver Size 60 Gallons","R - C20","2021-07-01","2022-06-30","Per Measure",360,0,"Per Measure",180,0,"2017-07-01","2022-06-30","Calculated","{Measure:Quantity} *{System Compressor (HP)} * 0.746 * 0.025 * {Weekly Hrs of Operation} * {Weeks Per Year}",1E-4,null,"{Measure:Quantity} *{System Compressor (HP)} * 0.746 * 0.025",null,null,"{Measure:Quantity} *{System Compressor (HP)} * 0.746 * 0.025 * {Factor:WinterCF}","{Measure:Quantity} *{System Compressor (HP)} * 0.746 * 0.025 * {Factor:SummerCF}",null,null,null,null,null,null,"2017-07-01","2022-06-30",10,0.7,0.91100000000000003,0.30399999999999999,0.36099999999999999,0.156,0.17899999999999999,1,1.1220000000000001,1,0.52,1.6E-2,null,{"$f":"DU137","v":"{Weekly Hrs of Operation}"},1,{"$f":"DV137","v":"{Weeks Per Year}"},15,{"$f":"DW137","v":"{Measure:Quantity}"},50,{"$f":"DX137","v":"{System Compressor (HP)}"},50,{"$f":"DY137","v":""},null,{"$f":"DZ137","v":""},null,{"$f":"EA137","v":""},null,{"$f":"EB137","v":""},null,{"$f":"EC137","v":""},null,{"$f":"ED137","v":""},null,{"$f":"AS137 *AU137 * 0.746 * 0.025 * AW137 * AY137","v":699.375},{"$f":"0.0001","v":1E-4},0,{"$f":"AS137 *AU137 * 0.746 * 0.025","v":0.27975},0,0,{"$f":"AS137 *AU137 * 0.746 * 0.025 * AF137","v":0.195825},{"$f":"AS137 *AU137 * 0.746 * 0.025 * AG137","v":0.25485225},0,0,0,0,0,0,null,"Com","Default DR",{"$f":"Benefits(BL137,BR137,BS137,BT137,BU137,BV137,BW137,BX137,BY137,BZ137,AE137,AH137,AI137,AJ137,AK137,AL137,AM137,AN137,AO137,AP137,CA137,CB137)","v":776.93706137451716},862.28406168395031,0,0,0,0,0,0,0,{"$f":"SUMPRODUCT(CC137:CK137,--(CC137:CK137>0))","v":1639.2211230584676},{"$f":"-SUMPRODUCT(CC137:CK137,--(CC137:CK137<0))","v":0},null,{"$f":"360","v":360},null,null,{"$f":"CM137+CO137","v":360},{"$f":"IF(NetOrGross=\"Net\",(1-AO137+AP137),1)","v":1},{"$f":"(SUMPRODUCT(CC137:CJ137,--(CC137:CJ137>0))+CN137)*CS137/((-SUMPRODUCT(CC137:CJ137,--(CC137:CJ137<0))+MAX(CO137,CV137)+CP137+CQ137)*CS137+IF(FRIncentives=\"Yes\",CV137*(1-CS137),0))","v":4.5533920084957433},17,{"$f":"180","v":180},null,"Electric","y",null,{"$f":"IF(F137=\"Manual Entry\",\"Manual\",IF(G137=\"\",0,\"X=\"&SUBSTITUTE(SUBSTITUTE(SUBSTITUTE(SUBSTITUTE(SUBSTITUTE(SUBSTITUTE(SUBSTITUTE(SUBSTITUTE(SUBSTITUTE(SUBSTITUTE(SUBSTITUTE(SUBSTITUTE(G137,$ED137,$ED$2&ROW($ED137)),$EC137,$EC$2&ROW($EC137)),$EB137,$EB$2&ROW($EB137)),$EA137,$EA$2&ROW($EA137)),$DZ137,$DZ$2&ROW($DZ137)),$DY137,$DY$2&ROW($DY137)),$DX137,$DX$2&ROW($DX137)),$DW137,$DW$2&ROW($DW137)),$DV137,$DV$2&ROW($DV137)),$DU137,$DU$2&ROW($DU137)),$DT137,$DT$2&ROW($DT137)),$DS137,$DS$2&ROW($DS137))))","v":"X=360"},{"$f":"IF(I137=\"Manual Entry\",\"Manual\",IF(J137=\"\",0,\"X=\"&SUBSTITUTE(SUBSTITUTE(SUBSTITUTE(SUBSTITUTE(SUBSTITUTE(SUBSTITUTE(SUBSTITUTE(SUBSTITUTE(SUBSTITUTE(SUBSTITUTE(SUBSTITUTE(SUBSTITUTE(J137,$ED137,$ED$2&ROW($ED137)),$EC137,$EC$2&ROW($EC137)),$EB137,$EB$2&ROW($EB137)),$EA137,$EA$2&ROW($EA137)),$DZ137,$DZ$2&ROW($DZ137)),$DY137,$DY$2&ROW($DY137)),$DX137,$DX$2&ROW($DX137)),$DW137,$DW$2&ROW($DW137)),$DV137,$DV$2&ROW($DV137)),$DU137,$DU$2&ROW($DU137)),$DT137,$DT$2&ROW($DT137)),$DS137,$DS$2&ROW($DS137))))","v":"X=180"},{"$f":"IF(O137=\"\",0,\"X=\"&SUBSTITUTE(SUBSTITUTE(SUBSTITUTE(SUBSTITUTE(SUBSTITUTE(SUBSTITUTE(SUBSTITUTE(SUBSTITUTE(SUBSTITUTE(SUBSTITUTE(SUBSTITUTE(SUBSTITUTE(O137,$ED137,$ED$2&ROW($ED137)),$EC137,$EC$2&ROW($EC137)),$EB137,$EB$2&ROW($EB137)),$EA137,$EA$2&ROW($EA137)),$DZ137,$DZ$2&ROW($DZ137)),$DY137,$DY$2&ROW($DY137)),$DX137,$DX$2&ROW($DX137)),$DW137,$DW$2&ROW($DW137)),$DV137,$DV$2&ROW($DV137)),$DU137,$DU$2&ROW($DU137)),$DT137,$DT$2&ROW($DT137)),$DS137,$DS$2&ROW($DS137)))","v":"X=AW137 *AY137 * 0.746 * 0.025 * AS137 * AU137"},{"$f":"IF(P137=\"\",0,\"X=\"&SUBSTITUTE(SUBSTITUTE(SUBSTITUTE(SUBSTITUTE(SUBSTITUTE(SUBSTITUTE(SUBSTITUTE(SUBSTITUTE(SUBSTITUTE(SUBSTITUTE(SUBSTITUTE(SUBSTITUTE(P137,$ED137,$ED$2&ROW($ED137)),$EC137,$EC$2&ROW($EC137)),$EB137,$EB$2&ROW($EB137)),$EA137,$EA$2&ROW($EA137)),$DZ137,$DZ$2&ROW($DZ137)),$DY137,$DY$2&ROW($DY137)),$DX137,$DX$2&ROW($DX137)),$DW137,$DW$2&ROW($DW137)),$DV137,$DV$2&ROW($DV137)),$DU137,$DU$2&ROW($DU137)),$DT137,$DT$2&ROW($DT137)),$DS137,$DS$2&ROW($DS137)))","v":"X=0.0001"},{"$f":"IF(Q137=\"\",0,\"X=\"&SUBSTITUTE(SUBSTITUTE(SUBSTITUTE(SUBSTITUTE(SUBSTITUTE(SUBSTITUTE(SUBSTITUTE(SUBSTITUTE(SUBSTITUTE(SUBSTITUTE(SUBSTITUTE(SUBSTITUTE(Q137,$ED137,$ED$2&ROW($ED137)),$EC137,$EC$2&ROW($EC137)),$EB137,$EB$2&ROW($EB137)),$EA137,$EA$2&ROW($EA137)),$DZ137,$DZ$2&ROW($DZ137)),$DY137,$DY$2&ROW($DY137)),$DX137,$DX$2&ROW($DX137)),$DW137,$DW$2&ROW($DW137)),$DV137,$DV$2&ROW($DV137)),$DU137,$DU$2&ROW($DU137)),$DT137,$DT$2&ROW($DT137)),$DS137,$DS$2&ROW($DS137)))","v":0},{"$f":"IF(R137=\"\",0,\"X=\"&SUBSTITUTE(SUBSTITUTE(SUBSTITUTE(SUBSTITUTE(SUBSTITUTE(SUBSTITUTE(SUBSTITUTE(SUBSTITUTE(SUBSTITUTE(SUBSTITUTE(SUBSTITUTE(SUBSTITUTE(R137,$ED137,$ED$2&ROW($ED137)),$EC137,$EC$2&ROW($EC137)),$EB137,$EB$2&ROW($EB137)),$EA137,$EA$2&ROW($EA137)),$DZ137,$DZ$2&ROW($DZ137)),$DY137,$DY$2&ROW($DY137)),$DX137,$DX$2&ROW($DX137)),$DW137,$DW$2&ROW($DW137)),$DV137,$DV$2&ROW($DV137)),$DU137,$DU$2&ROW($DU137)),$DT137,$DT$2&ROW($DT137)),$DS137,$DS$2&ROW($DS137)))","v":"X=AW137 *AY137 * 0.746 * 0.025"},{"$f":"IF(S137=\"\",0,\"X=\"&SUBSTITUTE(SUBSTITUTE(SUBSTITUTE(SUBSTITUTE(SUBSTITUTE(SUBSTITUTE(SUBSTITUTE(SUBSTITUTE(SUBSTITUTE(SUBSTITUTE(SUBSTITUTE(SUBSTITUTE(S137,$ED137,$ED$2&ROW($ED137)),$EC137,$EC$2&ROW($EC137)),$EB137,$EB$2&ROW($EB137)),$EA137,$EA$2&ROW($EA137)),$DZ137,$DZ$2&ROW($DZ137)),$DY137,$DY$2&ROW($DY137)),$DX137,$DX$2&ROW($DX137)),$DW137,$DW$2&ROW($DW137)),$DV137,$DV$2&ROW($DV137)),$DU137,$DU$2&ROW($DU137)),$DT137,$DT$2&ROW($DT137)),$DS137,$DS$2&ROW($DS137)))","v":0},{"$f":"IF(T137=\"\",0,\"X=\"&SUBSTITUTE(SUBSTITUTE(SUBSTITUTE(SUBSTITUTE(SUBSTITUTE(SUBSTITUTE(SUBSTITUTE(SUBSTITUTE(SUBSTITUTE(SUBSTITUTE(SUBSTITUTE(SUBSTITUTE(T137,$ED137,$ED$2&ROW($ED137)),$EC137,$EC$2&ROW($EC137)),$EB137,$EB$2&ROW($EB137)),$EA137,$EA$2&ROW($EA137)),$DZ137,$DZ$2&ROW($DZ137)),$DY137,$DY$2&ROW($DY137)),$DX137,$DX$2&ROW($DX137)),$DW137,$DW$2&ROW($DW137)),$DV137,$DV$2&ROW($DV137)),$DU137,$DU$2&ROW($DU137)),$DT137,$DT$2&ROW($DT137)),$DS137,$DS$2&ROW($DS137)))","v":0},{"$f":"IF(U137=\"\",0,\"X=\"&SUBSTITUTE(SUBSTITUTE(SUBSTITUTE(SUBSTITUTE(SUBSTITUTE(SUBSTITUTE(SUBSTITUTE(SUBSTITUTE(SUBSTITUTE(SUBSTITUTE(SUBSTITUTE(SUBSTITUTE(U137,$ED137,$ED$2&ROW($ED137)),$EC137,$EC$2&ROW($EC137)),$EB137,$EB$2&ROW($EB137)),$EA137,$EA$2&ROW($EA137)),$DZ137,$DZ$2&ROW($DZ137)),$DY137,$DY$2&ROW($DY137)),$DX137,$DX$2&ROW($DX137)),$DW137,$DW$2&ROW($DW137)),$DV137,$DV$2&ROW($DV137)),$DU137,$DU$2&ROW($DU137)),$DT137,$DT$2&ROW($DT137)),$DS137,$DS$2&ROW($DS137)))","v":"X=AW137 *AY137 * 0.746 * 0.025 * AF137"},{"$f":"IF(V137=\"\",0,\"X=\"&SUBSTITUTE(SUBSTITUTE(SUBSTITUTE(SUBSTITUTE(SUBSTITUTE(SUBSTITUTE(SUBSTITUTE(SUBSTITUTE(SUBSTITUTE(SUBSTITUTE(SUBSTITUTE(SUBSTITUTE(V137,$ED137,$ED$2&ROW($ED137)),$EC137,$EC$2&ROW($EC137)),$EB137,$EB$2&ROW($EB137)),$EA137,$EA$2&ROW($EA137)),$DZ137,$DZ$2&ROW($DZ137)),$DY137,$DY$2&ROW($DY137)),$DX137,$DX$2&ROW($DX137)),$DW137,$DW$2&ROW($DW137)),$DV137,$DV$2&ROW($DV137)),$DU137,$DU$2&ROW($DU137)),$DT137,$DT$2&ROW($DT137)),$DS137,$DS$2&ROW($DS137)))","v":"X=AW137 *AY137 * 0.746 * 0.025 * AG137"},{"$f":"IF(W137=\"\",0,\"X=\"&SUBSTITUTE(SUBSTITUTE(SUBSTITUTE(SUBSTITUTE(SUBSTITUTE(SUBSTITUTE(SUBSTITUTE(SUBSTITUTE(SUBSTITUTE(SUBSTITUTE(SUBSTITUTE(SUBSTITUTE(W137,$ED137,$ED$2&ROW($ED137)),$EC137,$EC$2&ROW($EC137)),$EB137,$EB$2&ROW($EB137)),$EA137,$EA$2&ROW($EA137)),$DZ137,$DZ$2&ROW($DZ137)),$DY137,$DY$2&ROW($DY137)),$DX137,$DX$2&ROW($DX137)),$DW137,$DW$2&ROW($DW137)),$DV137,$DV$2&ROW($DV137)),$DU137,$DU$2&ROW($DU137)),$DT137,$DT$2&ROW($DT137)),$DS137,$DS$2&ROW($DS137)))","v":0},{"$f":"IF(X137=\"\",0,\"X=\"&SUBSTITUTE(SUBSTITUTE(SUBSTITUTE(SUBSTITUTE(SUBSTITUTE(SUBSTITUTE(SUBSTITUTE(SUBSTITUTE(SUBSTITUTE(SUBSTITUTE(SUBSTITUTE(SUBSTITUTE(X137,$ED137,$ED$2&ROW($ED137)),$EC137,$EC$2&ROW($EC137)),$EB137,$EB$2&ROW($EB137)),$EA137,$EA$2&ROW($EA137)),$DZ137,$DZ$2&ROW($DZ137)),$DY137,$DY$2&ROW($DY137)),$DX137,$DX$2&ROW($DX137)),$DW137,$DW$2&ROW($DW137)),$DV137,$DV$2&ROW($DV137)),$DU137,$DU$2&ROW($DU137)),$DT137,$DT$2&ROW($DT137)),$DS137,$DS$2&ROW($DS137)))","v":0},{"$f":"IF(Y137=\"\",0,\"X=\"&SUBSTITUTE(SUBSTITUTE(SUBSTITUTE(SUBSTITUTE(SUBSTITUTE(SUBSTITUTE(SUBSTITUTE(SUBSTITUTE(SUBSTITUTE(SUBSTITUTE(SUBSTITUTE(SUBSTITUTE(Y137,$ED137,$ED$2&ROW($ED137)),$EC137,$EC$2&ROW($EC137)),$EB137,$EB$2&ROW($EB137)),$EA137,$EA$2&ROW($EA137)),$DZ137,$DZ$2&ROW($DZ137)),$DY137,$DY$2&ROW($DY137)),$DX137,$DX$2&ROW($DX137)),$DW137,$DW$2&ROW($DW137)),$DV137,$DV$2&ROW($DV137)),$DU137,$DU$2&ROW($DU137)),$DT137,$DT$2&ROW($DT137)),$DS137,$DS$2&ROW($DS137)))","v":0},{"$f":"IF(Z137=\"\",0,\"X=\"&SUBSTITUTE(SUBSTITUTE(SUBSTITUTE(SUBSTITUTE(SUBSTITUTE(SUBSTITUTE(SUBSTITUTE(SUBSTITUTE(SUBSTITUTE(SUBSTITUTE(SUBSTITUTE(SUBSTITUTE(Z137,$ED137,$ED$2&ROW($ED137)),$EC137,$EC$2&ROW($EC137)),$EB137,$EB$2&ROW($EB137)),$EA137,$EA$2&ROW($EA137)),$DZ137,$DZ$2&ROW($DZ137)),$DY137,$DY$2&ROW($DY137)),$DX137,$DX$2&ROW($DX137)),$DW137,$DW$2&ROW($DW137)),$DV137,$DV$2&ROW($DV137)),$DU137,$DU$2&ROW($DU137)),$DT137,$DT$2&ROW($DT137)),$DS137,$DS$2&ROW($DS137)))","v":0},{"$f":"IF(AA137=\"\",0,\"X=\"&SUBSTITUTE(SUBSTITUTE(SUBSTITUTE(SUBSTITUTE(SUBSTITUTE(SUBSTITUTE(SUBSTITUTE(SUBSTITUTE(SUBSTITUTE(SUBSTITUTE(SUBSTITUTE(SUBSTITUTE(AA137,$ED137,$ED$2&ROW($ED137)),$EC137,$EC$2&ROW($EC137)),$EB137,$EB$2&ROW($EB137)),$EA137,$EA$2&ROW($EA137)),$DZ137,$DZ$2&ROW($DZ137)),$DY137,$DY$2&ROW($DY137)),$DX137,$DX$2&ROW($DX137)),$DW137,$DW$2&ROW($DW137)),$DV137,$DV$2&ROW($DV137)),$DU137,$DU$2&ROW($DU137)),$DT137,$DT$2&ROW($DT137)),$DS137,$DS$2&ROW($DS137)))","v":0},{"$f":"IF(AB137=\"\",0,\"X=\"&SUBSTITUTE(SUBSTITUTE(SUBSTITUTE(SUBSTITUTE(SUBSTITUTE(SUBSTITUTE(SUBSTITUTE(SUBSTITUTE(SUBSTITUTE(SUBSTITUTE(SUBSTITUTE(SUBSTITUTE(AB137,$ED137,$ED$2&ROW($ED137)),$EC137,$EC$2&ROW($EC137)),$EB137,$EB$2&ROW($EB137)),$EA137,$EA$2&ROW($EA137)),$DZ137,$DZ$2&ROW($DZ137)),$DY137,$DY$2&ROW($DY137)),$DX137,$DX$2&ROW($DX137)),$DW137,$DW$2&ROW($DW137)),$DV137,$DV$2&ROW($DV137)),$DU137,$DU$2&ROW($DU137)),$DT137,$DT$2&ROW($DT137)),$DS137,$DS$2&ROW($DS137)))","v":0},null,null,"{Factor:WinterCF}","{Factor:SummerCF}",{"$f":"IFERROR(INDEX($EG137:$IV137,MATCH(0,COUNTIF($DR137:DT137,$EG137:$IV137),0)),\"\")","v":"{Weekly Hrs of Operation}"},{"$f":"IFERROR(INDEX($EG137:$IV137,MATCH(0,COUNTIF($DR137:DU137,$EG137:$IV137),0)),\"\")","v":"{Weeks Per Year}"},{"$f":"IFERROR(INDEX($EG137:$IV137,MATCH(0,COUNTIF($DR137:DV137,$EG137:$IV137),0)),\"\")","v":"{Measure:Quantity}"},{"$f":"IFERROR(INDEX($EG137:$IV137,MATCH(0,COUNTIF($DR137:DW137,$EG137:$IV137),0)),\"\")","v":"{System Compressor (HP)}"},{"$f":"IFERROR(INDEX($EG137:$IV137,MATCH(0,COUNTIF($DR137:DX137,$EG137:$IV137),0)),\"\")","v":""},{"$f":"IFERROR(INDEX($EG137:$IV137,MATCH(0,COUNTIF($DR137:DY137,$EG137:$IV137),0)),\"\")","v":""},{"$f":"IFERROR(INDEX($EG137:$IV137,MATCH(0,COUNTIF($DR137:DZ137,$EG137:$IV137),0)),\"\")","v":""},{"$f":"IFERROR(INDEX($EG137:$IV137,MATCH(0,COUNTIF($DR137:EA137,$EG137:$IV137),0)),\"\")","v":""},{"$f":"IFERROR(INDEX($EG137:$IV137,MATCH(0,COUNTIF($DR137:EB137,$EG137:$IV137),0)),\"\")","v":""},{"$f":"IFERROR(INDEX($EG137:$IV137,MATCH(0,COUNTIF($DR137:EC137,$EG137:$IV137),0)),\"\")","v":""},null,null,{"$f":"IFERROR(MID($G137,FIND(CHAR(160),SUBSTITUTE($G137,\"{\",CHAR(160),EG$1)),FIND(CHAR(160),SUBSTITUTE($G137,\"}\",CHAR(160),EG$1))-FIND(CHAR(160),SUBSTITUTE($G137,\"{\",CHAR(160),EG$1))+1),\"\")","v":""},{"$f":"IFERROR(MID($G137,FIND(CHAR(160),SUBSTITUTE($G137,\"{\",CHAR(160),EH$1)),FIND(CHAR(160),SUBSTITUTE($G137,\"}\",CHAR(160),EH$1))-FIND(CHAR(160),SUBSTITUTE($G137,\"{\",CHAR(160),EH$1))+1),\"\")","v":""},{"$f":"IFERROR(MID($G137,FIND(CHAR(160),SUBSTITUTE($G137,\"{\",CHAR(160),EI$1)),FIND(CHAR(160),SUBSTITUTE($G137,\"}\",CHAR(160),EI$1))-FIND(CHAR(160),SUBSTITUTE($G137,\"{\",CHAR(160),EI$1))+1),\"\")","v":""},{"$f":"IFERROR(MID($G137,FIND(CHAR(160),SUBSTITUTE($G137,\"{\",CHAR(160),EJ$1)),FIND(CHAR(160),SUBSTITUTE($G137,\"}\",CHAR(160),EJ$1))-FIND(CHAR(160),SUBSTITUTE($G137,\"{\",CHAR(160),EJ$1))+1),\"\")","v":""},{"$f":"IFERROR(MID($G137,FIND(CHAR(160),SUBSTITUTE($G137,\"{\",CHAR(160),EK$1)),FIND(CHAR(160),SUBSTITUTE($G137,\"}\",CHAR(160),EK$1))-FIND(CHAR(160),SUBSTITUTE($G137,\"{\",CHAR(160),EK$1))+1),\"\")","v":""},{"$f":"IFERROR(MID($G137,FIND(CHAR(160),SUBSTITUTE($G137,\"{\",CHAR(160),EL$1)),FIND(CHAR(160),SUBSTITUTE($G137,\"}\",CHAR(160),EL$1))-FIND(CHAR(160),SUBSTITUTE($G137,\"{\",CHAR(160),EL$1))+1),\"\")","v":""},{"$f":"IFERROR(MID($G137,FIND(CHAR(160),SUBSTITUTE($G137,\"{\",CHAR(160),EM$1)),FIND(CHAR(160),SUBSTITUTE($G137,\"}\",CHAR(160),EM$1))-FIND(CHAR(160),SUBSTITUTE($G137,\"{\",CHAR(160),EM$1))+1),\"\")","v":""},{"$f":"IFERROR(MID($G137,FIND(CHAR(160),SUBSTITUTE($G137,\"{\",CHAR(160),EN$1)),FIND(CHAR(160),SUBSTITUTE($G137,\"}\",CHAR(160),EN$1))-FIND(CHAR(160),SUBSTITUTE($G137,\"{\",CHAR(160),EN$1))+1),\"\")","v":""},{"$f":"IFERROR(MID($G137,FIND(CHAR(160),SUBSTITUTE($G137,\"{\",CHAR(160),EO$1)),FIND(CHAR(160),SUBSTITUTE($G137,\"}\",CHAR(160),EO$1))-FIND(CHAR(160),SUBSTITUTE($G137,\"{\",CHAR(160),EO$1))+1),\"\")","v":""},{"$f":"IFERROR(MID($G137,FIND(CHAR(160),SUBSTITUTE($G137,\"{\",CHAR(160),EP$1)),FIND(CHAR(160),SUBSTITUTE($G137,\"}\",CHAR(160),EP$1))-FIND(CHAR(160),SUBSTITUTE($G137,\"{\",CHAR(160),EP$1))+1),\"\")","v":""},{"$f":"IFERROR(MID($J137,FIND(CHAR(160),SUBSTITUTE($J137,\"{\",CHAR(160),EQ$1)),FIND(CHAR(160),SUBSTITUTE($J137,\"}\",CHAR(160),EQ$1))-FIND(CHAR(160),SUBSTITUTE($J137,\"{\",CHAR(160),EQ$1))+1),\"\")","v":""},{"$f":"IFERROR(MID($J137,FIND(CHAR(160),SUBSTITUTE($J137,\"{\",CHAR(160),ER$1)),FIND(CHAR(160),SUBSTITUTE($J137,\"}\",CHAR(160),ER$1))-FIND(CHAR(160),SUBSTITUTE($J137,\"{\",CHAR(160),ER$1))+1),\"\")","v":""},{"$f":"IFERROR(MID($J137,FIND(CHAR(160),SUBSTITUTE($J137,\"{\",CHAR(160),ES$1)),FIND(CHAR(160),SUBSTITUTE($J137,\"}\",CHAR(160),ES$1))-FIND(CHAR(160),SUBSTITUTE($J137,\"{\",CHAR(160),ES$1))+1),\"\")","v":""},{"$f":"IFERROR(MID($J137,FIND(CHAR(160),SUBSTITUTE($J137,\"{\",CHAR(160),ET$1)),FIND(CHAR(160),SUBSTITUTE($J137,\"}\",CHAR(160),ET$1))-FIND(CHAR(160),SUBSTITUTE($J137,\"{\",CHAR(160),ET$1))+1),\"\")","v":""},{"$f":"IFERROR(MID($J137,FIND(CHAR(160),SUBSTITUTE($J137,\"{\",CHAR(160),EU$1)),FIND(CHAR(160),SUBSTITUTE($J137,\"}\",CHAR(160),EU$1))-FIND(CHAR(160),SUBSTITUTE($J137,\"{\",CHAR(160),EU$1))+1),\"\")","v":""},{"$f":"IFERROR(MID($J137,FIND(CHAR(160),SUBSTITUTE($J137,\"{\",CHAR(160),EV$1)),FIND(CHAR(160),SUBSTITUTE($J137,\"}\",CHAR(160),EV$1))-FIND(CHAR(160),SUBSTITUTE($J137,\"{\",CHAR(160),EV$1))+1),\"\")","v":""},{"$f":"IFERROR(MID($J137,FIND(CHAR(160),SUBSTITUTE($J137,\"{\",CHAR(160),EW$1)),FIND(CHAR(160),SUBSTITUTE($J137,\"}\",CHAR(160),EW$1))-FIND(CHAR(160),SUBSTITUTE($J137,\"{\",CHAR(160),EW$1))+1),\"\")","v":""},{"$f":"IFERROR(MID($J137,FIND(CHAR(160),SUBSTITUTE($J137,\"{\",CHAR(160),EX$1)),FIND(CHAR(160),SUBSTITUTE($J137,\"}\",CHAR(160),EX$1))-FIND(CHAR(160),SUBSTITUTE($J137,\"{\",CHAR(160),EX$1))+1),\"\")","v":""},{"$f":"IFERROR(MID($J137,FIND(CHAR(160),SUBSTITUTE($J137,\"{\",CHAR(160),EY$1)),FIND(CHAR(160),SUBSTITUTE($J137,\"}\",CHAR(160),EY$1))-FIND(CHAR(160),SUBSTITUTE($J137,\"{\",CHAR(160),EY$1))+1),\"\")","v":""},{"$f":"IFERROR(MID($J137,FIND(CHAR(160),SUBSTITUTE($J137,\"{\",CHAR(160),EZ$1)),FIND(CHAR(160),SUBSTITUTE($J137,\"}\",CHAR(160),EZ$1))-FIND(CHAR(160),SUBSTITUTE($J137,\"{\",CHAR(160),EZ$1))+1),\"\")","v":""},{"$f":"IFERROR(MID($J137,FIND(CHAR(160),SUBSTITUTE($J137,\"{\",CHAR(160),FA$1)),FIND(CHAR(160),SUBSTITUTE($J137,\"}\",CHAR(160),FA$1))-FIND(CHAR(160),SUBSTITUTE($J137,\"{\",CHAR(160),FA$1))+1),\"\")","v":""},{"$f":"IFERROR(MID($J137,FIND(CHAR(160),SUBSTITUTE($J137,\"{\",CHAR(160),FB$1)),FIND(CHAR(160),SUBSTITUTE($J137,\"}\",CHAR(160),FB$1))-FIND(CHAR(160),SUBSTITUTE($J137,\"{\",CHAR(160),FB$1))+1),\"\")","v":""},{"$f":"IFERROR(MID($O137,FIND(CHAR(160),SUBSTITUTE($O137,\"{\",CHAR(160),FC$1)),FIND(CHAR(160),SUBSTITUTE($O137,\"}\",CHAR(160),FC$1))-FIND(CHAR(160),SUBSTITUTE($O137,\"{\",CHAR(160),FC$1))+1),\"\")","v":"{Weekly Hrs of Operation}"},{"$f":"IFERROR(MID($O137,FIND(CHAR(160),SUBSTITUTE($O137,\"{\",CHAR(160),FD$1)),FIND(CHAR(160),SUBSTITUTE($O137,\"}\",CHAR(160),FD$1))-FIND(CHAR(160),SUBSTITUTE($O137,\"{\",CHAR(160),FD$1))+1),\"\")","v":"{Weeks Per Year}"},{"$f":"IFERROR(MID($O137,FIND(CHAR(160),SUBSTITUTE($O137,\"{\",CHAR(160),FE$1)),FIND(CHAR(160),SUBSTITUTE($O137,\"}\",CHAR(160),FE$1))-FIND(CHAR(160),SUBSTITUTE($O137,\"{\",CHAR(160),FE$1))+1),\"\")","v":""},{"$f":"IFERROR(MID($O137,FIND(CHAR(160),SUBSTITUTE($O137,\"{\",CHAR(160),FF$1)),FIND(CHAR(160),SUBSTITUTE($O137,\"}\",CHAR(160),FF$1))-FIND(CHAR(160),SUBSTITUTE($O137,\"{\",CHAR(160),FF$1))+1),\"\")","v":""},{"$f":"IFERROR(MID($O137,FIND(CHAR(160),SUBSTITUTE($O137,\"{\",CHAR(160),FG$1)),FIND(CHAR(160),SUBSTITUTE($O137,\"}\",CHAR(160),FG$1))-FIND(CHAR(160),SUBSTITUTE($O137,\"{\",CHAR(160),FG$1))+1),\"\")","v":""},{"$f":"IFERROR(MID($O137,FIND(CHAR(160),SUBSTITUTE($O137,\"{\",CHAR(160),FH$1)),FIND(CHAR(160),SUBSTITUTE($O137,\"}\",CHAR(160),FH$1))-FIND(CHAR(160),SUBSTITUTE($O137,\"{\",CHAR(160),FH$1))+1),\"\")","v":""},{"$f":"IFERROR(MID($O137,FIND(CHAR(160),SUBSTITUTE($O137,\"{\",CHAR(160),FI$1)),FIND(CHAR(160),SUBSTITUTE($O137,\"}\",CHAR(160),FI$1))-FIND(CHAR(160),SUBSTITUTE($O137,\"{\",CHAR(160),FI$1))+1),\"\")","v":""},{"$f":"IFERROR(MID($O137,FIND(CHAR(160),SUBSTITUTE($O137,\"{\",CHAR(160),FJ$1)),FIND(CHAR(160),SUBSTITUTE($O137,\"}\",CHAR(160),FJ$1))-FIND(CHAR(160),SUBSTITUTE($O137,\"{\",CHAR(160),FJ$1))+1),\"\")","v":""},{"$f":"IFERROR(MID($O137,FIND(CHAR(160),SUBSTITUTE($O137,\"{\",CHAR(160),FK$1)),FIND(CHAR(160),SUBSTITUTE($O137,\"}\",CHAR(160),FK$1))-FIND(CHAR(160),SUBSTITUTE($O137,\"{\",CHAR(160),FK$1))+1),\"\")","v":"{Measure:Quantity}"},{"$f":"IFERROR(MID($O137,FIND(CHAR(160),SUBSTITUTE($O137,\"{\",CHAR(160),FL$1)),FIND(CHAR(160),SUBSTITUTE($O137,\"}\",CHAR(160),FL$1))-FIND(CHAR(160),SUBSTITUTE($O137,\"{\",CHAR(160),FL$1))+1),\"\")","v":"{System Compressor (HP)}"},{"$f":"IFERROR(MID($R137,FIND(CHAR(160),SUBSTITUTE($R137,\"{\",CHAR(160),FM$1)),FIND(CHAR(160),SUBSTITUTE($R137,\"}\",CHAR(160),FM$1))-FIND(CHAR(160),SUBSTITUTE($R137,\"{\",CHAR(160),FM$1))+1),\"\")","v":""},{"$f":"IFERROR(MID($R137,FIND(CHAR(160),SUBSTITUTE($R137,\"{\",CHAR(160),FN$1)),FIND(CHAR(160),SUBSTITUTE($R137,\"}\",CHAR(160),FN$1))-FIND(CHAR(160),SUBSTITUTE($R137,\"{\",CHAR(160),FN$1))+1),\"\")","v":""},{"$f":"IFERROR(MID($R137,FIND(CHAR(160),SUBSTITUTE($R137,\"{\",CHAR(160),FO$1)),FIND(CHAR(160),SUBSTITUTE($R137,\"}\",CHAR(160),FO$1))-FIND(CHAR(160),SUBSTITUTE($R137,\"{\",CHAR(160),FO$1))+1),\"\")","v":""},{"$f":"IFERROR(MID($R137,FIND(CHAR(160),SUBSTITUTE($R137,\"{\",CHAR(160),FP$1)),FIND(CHAR(160),SUBSTITUTE($R137,\"}\",CHAR(160),FP$1))-FIND(CHAR(160),SUBSTITUTE($R137,\"{\",CHAR(160),FP$1))+1),\"\")","v":""},{"$f":"IFERROR(MID($R137,FIND(CHAR(160),SUBSTITUTE($R137,\"{\",CHAR(160),FQ$1)),FIND(CHAR(160),SUBSTITUTE($R137,\"}\",CHAR(160),FQ$1))-FIND(CHAR(160),SUBSTITUTE($R137,\"{\",CHAR(160),FQ$1))+1),\"\")","v":""},{"$f":"IFERROR(MID($R137,FIND(CHAR(160),SUBSTITUTE($R137,\"{\",CHAR(160),FR$1)),FIND(CHAR(160),SUBSTITUTE($R137,\"}\",CHAR(160),FR$1))-FIND(CHAR(160),SUBSTITUTE($R137,\"{\",CHAR(160),FR$1))+1),\"\")","v":""},{"$f":"IFERROR(MID($R137,FIND(CHAR(160),SUBSTITUTE($R137,\"{\",CHAR(160),FS$1)),FIND(CHAR(160),SUBSTITUTE($R137,\"}\",CHAR(160),FS$1))-FIND(CHAR(160),SUBSTITUTE($R137,\"{\",CHAR(160),FS$1))+1),\"\")","v":""},{"$f":"IFERROR(MID($R137,FIND(CHAR(160),SUBSTITUTE($R137,\"{\",CHAR(160),FT$1)),FIND(CHAR(160),SUBSTITUTE($R137,\"}\",CHAR(160),FT$1))-FIND(CHAR(160),SUBSTITUTE($R137,\"{\",CHAR(160),FT$1))+1),\"\")","v":""},{"$f":"IFERROR(MID($R137,FIND(CHAR(160),SUBSTITUTE($R137,\"{\",CHAR(160),FU$1)),FIND(CHAR(160),SUBSTITUTE($R137,\"}\",CHAR(160),FU$1))-FIND(CHAR(160),SUBSTITUTE($R137,\"{\",CHAR(160),FU$1))+1),\"\")","v":"{Measure:Quantity}"},{"$f":"IFERROR(MID($R137,FIND(CHAR(160),SUBSTITUTE($R137,\"{\",CHAR(160),FV$1)),FIND(CHAR(160),SUBSTITUTE($R137,\"}\",CHAR(160),FV$1))-FIND(CHAR(160),SUBSTITUTE($R137,\"{\",CHAR(160),FV$1))+1),\"\")","v":"{System Compressor (HP)}"},{"$f":"IFERROR(MID($U137,FIND(CHAR(160),SUBSTITUTE($U137,\"{\",CHAR(160),FW$1)),FIND(CHAR(160),SUBSTITUTE($U137,\"}\",CHAR(160),FW$1))-FIND(CHAR(160),SUBSTITUTE($U137,\"{\",CHAR(160),FW$1))+1),\"\")","v":"{Factor:WinterCF}"},{"$f":"IFERROR(MID($U137,FIND(CHAR(160),SUBSTITUTE($U137,\"{\",CHAR(160),FX$1)),FIND(CHAR(160),SUBSTITUTE($U137,\"}\",CHAR(160),FX$1))-FIND(CHAR(160),SUBSTITUTE($U137,\"{\",CHAR(160),FX$1))+1),\"\")","v":""},{"$f":"IFERROR(MID($U137,FIND(CHAR(160),SUBSTITUTE($U137,\"{\",CHAR(160),FY$1)),FIND(CHAR(160),SUBSTITUTE($U137,\"}\",CHAR(160),FY$1))-FIND(CHAR(160),SUBSTITUTE($U137,\"{\",CHAR(160),FY$1))+1),\"\")","v":""},{"$f":"IFERROR(MID($U137,FIND(CHAR(160),SUBSTITUTE($U137,\"{\",CHAR(160),FZ$1)),FIND(CHAR(160),SUBSTITUTE($U137,\"}\",CHAR(160),FZ$1))-FIND(CHAR(160),SUBSTITUTE($U137,\"{\",CHAR(160),FZ$1))+1),\"\")","v":""},{"$f":"IFERROR(MID($U137,FIND(CHAR(160),SUBSTITUTE($U137,\"{\",CHAR(160),GA$1)),FIND(CHAR(160),SUBSTITUTE($U137,\"}\",CHAR(160),GA$1))-FIND(CHAR(160),SUBSTITUTE($U137,\"{\",CHAR(160),GA$1))+1),\"\")","v":""},{"$f":"IFERROR(MID($U137,FIND(CHAR(160),SUBSTITUTE($U137,\"{\",CHAR(160),GB$1)),FIND(CHAR(160),SUBSTITUTE($U137,\"}\",CHAR(160),GB$1))-FIND(CHAR(160),SUBSTITUTE($U137,\"{\",CHAR(160),GB$1))+1),\"\")","v":""},{"$f":"IFERROR(MID($U137,FIND(CHAR(160),SUBSTITUTE($U137,\"{\",CHAR(160),GC$1)),FIND(CHAR(160),SUBSTITUTE($U137,\"}\",CHAR(160),GC$1))-FIND(CHAR(160),SUBSTITUTE($U137,\"{\",CHAR(160),GC$1))+1),\"\")","v":""},{"$f":"IFERROR(MID($U137,FIND(CHAR(160),SUBSTITUTE($U137,\"{\",CHAR(160),GD$1)),FIND(CHAR(160),SUBSTITUTE($U137,\"}\",CHAR(160),GD$1))-FIND(CHAR(160),SUBSTITUTE($U137,\"{\",CHAR(160),GD$1))+1),\"\")","v":""},{"$f":"IFERROR(MID($U137,FIND(CHAR(160),SUBSTITUTE($U137,\"{\",CHAR(160),GE$1)),FIND(CHAR(160),SUBSTITUTE($U137,\"}\",CHAR(160),GE$1))-FIND(CHAR(160),SUBSTITUTE($U137,\"{\",CHAR(160),GE$1))+1),\"\")","v":"{Measure:Quantity}"},{"$f":"IFERROR(MID($U137,FIND(CHAR(160),SUBSTITUTE($U137,\"{\",CHAR(160),GF$1)),FIND(CHAR(160),SUBSTITUTE($U137,\"}\",CHAR(160),GF$1))-FIND(CHAR(160),SUBSTITUTE($U137,\"{\",CHAR(160),GF$1))+1),\"\")","v":"{System Compressor (HP)}"},{"$f":"IFERROR(MID($V137,FIND(CHAR(160),SUBSTITUTE($V137,\"{\",CHAR(160),GG$1)),FIND(CHAR(160),SUBSTITUTE($V137,\"}\",CHAR(160),GG$1))-FIND(CHAR(160),SUBSTITUTE($V137,\"{\",CHAR(160),GG$1))+1),\"\")","v":"{Factor:SummerCF}"},{"$f":"IFERROR(MID($V137,FIND(CHAR(160),SUBSTITUTE($V137,\"{\",CHAR(160),GH$1)),FIND(CHAR(160),SUBSTITUTE($V137,\"}\",CHAR(160),GH$1))-FIND(CHAR(160),SUBSTITUTE($V137,\"{\",CHAR(160),GH$1))+1),\"\")","v":""},{"$f":"IFERROR(MID($V137,FIND(CHAR(160),SUBSTITUTE($V137,\"{\",CHAR(160),GI$1)),FIND(CHAR(160),SUBSTITUTE($V137,\"}\",CHAR(160),GI$1))-FIND(CHAR(160),SUBSTITUTE($V137,\"{\",CHAR(160),GI$1))+1),\"\")","v":""},{"$f":"IFERROR(MID($V137,FIND(CHAR(160),SUBSTITUTE($V137,\"{\",CHAR(160),GJ$1)),FIND(CHAR(160),SUBSTITUTE($V137,\"}\",CHAR(160),GJ$1))-FIND(CHAR(160),SUBSTITUTE($V137,\"{\",CHAR(160),GJ$1))+1),\"\")","v":""},{"$f":"IFERROR(MID($V137,FIND(CHAR(160),SUBSTITUTE($V137,\"{\",CHAR(160),GK$1)),FIND(CHAR(160),SUBSTITUTE($V137,\"}\",CHAR(160),GK$1))-FIND(CHAR(160),SUBSTITUTE($V137,\"{\",CHAR(160),GK$1))+1),\"\")","v":""},{"$f":"IFERROR(MID($V137,FIND(CHAR(160),SUBSTITUTE($V137,\"{\",CHAR(160),GL$1)),FIND(CHAR(160),SUBSTITUTE($V137,\"}\",CHAR(160),GL$1))-FIND(CHAR(160),SUBSTITUTE($V137,\"{\",CHAR(160),GL$1))+1),\"\")","v":""},{"$f":"IFERROR(MID($V137,FIND(CHAR(160),SUBSTITUTE($V137,\"{\",CHAR(160),GM$1)),FIND(CHAR(160),SUBSTITUTE($V137,\"}\",CHAR(160),GM$1))-FIND(CHAR(160),SUBSTITUTE($V137,\"{\",CHAR(160),GM$1))+1),\"\")","v":""},{"$f":"IFERROR(MID($V137,FIND(CHAR(160),SUBSTITUTE($V137,\"{\",CHAR(160),GN$1)),FIND(CHAR(160),SUBSTITUTE($V137,\"}\",CHAR(160),GN$1))-FIND(CHAR(160),SUBSTITUTE($V137,\"{\",CHAR(160),GN$1))+1),\"\")","v":""},{"$f":"IFERROR(MID($V137,FIND(CHAR(160),SUBSTITUTE($V137,\"{\",CHAR(160),GO$1)),FIND(CHAR(160),SUBSTITUTE($V137,\"}\",CHAR(160),GO$1))-FIND(CHAR(160),SUBSTITUTE($V137,\"{\",CHAR(160),GO$1))+1),\"\")","v":"{Measure:Quantity}"},{"$f":"IFERROR(MID($V137,FIND(CHAR(160),SUBSTITUTE($V137,\"{\",CHAR(160),GP$1)),FIND(CHAR(160),SUBSTITUTE($V137,\"}\",CHAR(160),GP$1))-FIND(CHAR(160),SUBSTITUTE($V137,\"{\",CHAR(160),GP$1))+1),\"\")","v":"{System Compressor (HP)}"},{"$f":"IFERROR(MID($W137,FIND(CHAR(160),SUBSTITUTE($W137,\"{\",CHAR(160),GQ$1)),FIND(CHAR(160),SUBSTITUTE($W137,\"}\",CHAR(160),GQ$1))-FIND(CHAR(160),SUBSTITUTE($W137,\"{\",CHAR(160),GQ$1))+1),\"\")","v":""},{"$f":"IFERROR(MID($W137,FIND(CHAR(160),SUBSTITUTE($W137,\"{\",CHAR(160),GR$1)),FIND(CHAR(160),SUBSTITUTE($W137,\"}\",CHAR(160),GR$1))-FIND(CHAR(160),SUBSTITUTE($W137,\"{\",CHAR(160),GR$1))+1),\"\")","v":""},{"$f":"IFERROR(MID($W137,FIND(CHAR(160),SUBSTITUTE($W137,\"{\",CHAR(160),GS$1)),FIND(CHAR(160),SUBSTITUTE($W137,\"}\",CHAR(160),GS$1))-FIND(CHAR(160),SUBSTITUTE($W137,\"{\",CHAR(160),GS$1))+1),\"\")","v":""},{"$f":"IFERROR(MID($W137,FIND(CHAR(160),SUBSTITUTE($W137,\"{\",CHAR(160),GT$1)),FIND(CHAR(160),SUBSTITUTE($W137,\"}\",CHAR(160),GT$1))-FIND(CHAR(160),SUBSTITUTE($W137,\"{\",CHAR(160),GT$1))+1),\"\")","v":""},{"$f":"IFERROR(MID($W137,FIND(CHAR(160),SUBSTITUTE($W137,\"{\",CHAR(160),GU$1)),FIND(CHAR(160),SUBSTITUTE($W137,\"}\",CHAR(160),GU$1))-FIND(CHAR(160),SUBSTITUTE($W137,\"{\",CHAR(160),GU$1))+1),\"\")","v":""},{"$f":"IFERROR(MID($W137,FIND(CHAR(160),SUBSTITUTE($W137,\"{\",CHAR(160),GV$1)),FIND(CHAR(160),SUBSTITUTE($W137,\"}\",CHAR(160),GV$1))-FIND(CHAR(160),SUBSTITUTE($W137,\"{\",CHAR(160),GV$1))+1),\"\")","v":""},{"$f":"IFERROR(MID($W137,FIND(CHAR(160),SUBSTITUTE($W137,\"{\",CHAR(160),GW$1)),FIND(CHAR(160),SUBSTITUTE($W137,\"}\",CHAR(160),GW$1))-FIND(CHAR(160),SUBSTITUTE($W137,\"{\",CHAR(160),GW$1))+1),\"\")","v":""},{"$f":"IFERROR(MID($W137,FIND(CHAR(160),SUBSTITUTE($W137,\"{\",CHAR(160),GX$1)),FIND(CHAR(160),SUBSTITUTE($W137,\"}\",CHAR(160),GX$1))-FIND(CHAR(160),SUBSTITUTE($W137,\"{\",CHAR(160),GX$1))+1),\"\")","v":""},{"$f":"IFERROR(MID($W137,FIND(CHAR(160),SUBSTITUTE($W137,\"{\",CHAR(160),GY$1)),FIND(CHAR(160),SUBSTITUTE($W137,\"}\",CHAR(160),GY$1))-FIND(CHAR(160),SUBSTITUTE($W137,\"{\",CHAR(160),GY$1))+1),\"\")","v":""},{"$f":"IFERROR(MID($W137,FIND(CHAR(160),SUBSTITUTE($W137,\"{\",CHAR(160),GZ$1)),FIND(CHAR(160),SUBSTITUTE($W137,\"}\",CHAR(160),GZ$1))-FIND(CHAR(160),SUBSTITUTE($W137,\"{\",CHAR(160),GZ$1))+1),\"\")","v":""},{"$f":"IFERROR(MID($X137,FIND(CHAR(160),SUBSTITUTE($X137,\"{\",CHAR(160),HA$1)),FIND(CHAR(160),SUBSTITUTE($X137,\"}\",CHAR(160),HA$1))-FIND(CHAR(160),SUBSTITUTE($X137,\"{\",CHAR(160),HA$1))+1),\"\")","v":""},{"$f":"IFERROR(MID($X137,FIND(CHAR(160),SUBSTITUTE($X137,\"{\",CHAR(160),HB$1)),FIND(CHAR(160),SUBSTITUTE($X137,\"}\",CHAR(160),HB$1))-FIND(CHAR(160),SUBSTITUTE($X137,\"{\",CHAR(160),HB$1))+1),\"\")","v":""},{"$f":"IFERROR(MID($X137,FIND(CHAR(160),SUBSTITUTE($X137,\"{\",CHAR(160),HC$1)),FIND(CHAR(160),SUBSTITUTE($X137,\"}\",CHAR(160),HC$1))-FIND(CHAR(160),SUBSTITUTE($X137,\"{\",CHAR(160),HC$1))+1),\"\")","v":""},{"$f":"IFERROR(MID($X137,FIND(CHAR(160),SUBSTITUTE($X137,\"{\",CHAR(160),HD$1)),FIND(CHAR(160),SUBSTITUTE($X137,\"}\",CHAR(160),HD$1))-FIND(CHAR(160),SUBSTITUTE($X137,\"{\",CHAR(160),HD$1))+1),\"\")","v":""},{"$f":"IFERROR(MID($X137,FIND(CHAR(160),SUBSTITUTE($X137,\"{\",CHAR(160),HE$1)),FIND(CHAR(160),SUBSTITUTE($X137,\"}\",CHAR(160),HE$1))-FIND(CHAR(160),SUBSTITUTE($X137,\"{\",CHAR(160),HE$1))+1),\"\")","v":""},{"$f":"IFERROR(MID($X137,FIND(CHAR(160),SUBSTITUTE($X137,\"{\",CHAR(160),HF$1)),FIND(CHAR(160),SUBSTITUTE($X137,\"}\",CHAR(160),HF$1))-FIND(CHAR(160),SUBSTITUTE($X137,\"{\",CHAR(160),HF$1))+1),\"\")","v":""},{"$f":"IFERROR(MID($X137,FIND(CHAR(160),SUBSTITUTE($X137,\"{\",CHAR(160),HG$1)),FIND(CHAR(160),SUBSTITUTE($X137,\"}\",CHAR(160),HG$1))-FIND(CHAR(160),SUBSTITUTE($X137,\"{\",CHAR(160),HG$1))+1),\"\")","v":""},{"$f":"IFERROR(MID($X137,FIND(CHAR(160),SUBSTITUTE($X137,\"{\",CHAR(160),HH$1)),FIND(CHAR(160),SUBSTITUTE($X137,\"}\",CHAR(160),HH$1))-FIND(CHAR(160),SUBSTITUTE($X137,\"{\",CHAR(160),HH$1))+1),\"\")","v":""},{"$f":"IFERROR(MID($X137,FIND(CHAR(160),SUBSTITUTE($X137,\"{\",CHAR(160),HI$1)),FIND(CHAR(160),SUBSTITUTE($X137,\"}\",CHAR(160),HI$1))-FIND(CHAR(160),SUBSTITUTE($X137,\"{\",CHAR(160),HI$1))+1),\"\")","v":""},{"$f":"IFERROR(MID($X137,FIND(CHAR(160),SUBSTITUTE($X137,\"{\",CHAR(160),HJ$1)),FIND(CHAR(160),SUBSTITUTE($X137,\"}\",CHAR(160),HJ$1))-FIND(CHAR(160),SUBSTITUTE($X137,\"{\",CHAR(160),HJ$1))+1),\"\")","v":""},{"$f":"IFERROR(MID($Y137,FIND(CHAR(160),SUBSTITUTE($Y137,\"{\",CHAR(160),HK$1)),FIND(CHAR(160),SUBSTITUTE($Y137,\"}\",CHAR(160),HK$1))-FIND(CHAR(160),SUBSTITUTE($Y137,\"{\",CHAR(160),HK$1))+1),\"\")","v":""},{"$f":"IFERROR(MID($Y137,FIND(CHAR(160),SUBSTITUTE($Y137,\"{\",CHAR(160),HL$1)),FIND(CHAR(160),SUBSTITUTE($Y137,\"}\",CHAR(160),HL$1))-FIND(CHAR(160),SUBSTITUTE($Y137,\"{\",CHAR(160),HL$1))+1),\"\")","v":""},{"$f":"IFERROR(MID($Y137,FIND(CHAR(160),SUBSTITUTE($Y137,\"{\",CHAR(160),HM$1)),FIND(CHAR(160),SUBSTITUTE($Y137,\"}\",CHAR(160),HM$1))-FIND(CHAR(160),SUBSTITUTE($Y137,\"{\",CHAR(160),HM$1))+1),\"\")","v":""},{"$f":"IFERROR(MID($Y137,FIND(CHAR(160),SUBSTITUTE($Y137,\"{\",CHAR(160),HN$1)),FIND(CHAR(160),SUBSTITUTE($Y137,\"}\",CHAR(160),HN$1))-FIND(CHAR(160),SUBSTITUTE($Y137,\"{\",CHAR(160),HN$1))+1),\"\")","v":""},{"$f":"IFERROR(MID($Y137,FIND(CHAR(160),SUBSTITUTE($Y137,\"{\",CHAR(160),HO$1)),FIND(CHAR(160),SUBSTITUTE($Y137,\"}\",CHAR(160),HO$1))-FIND(CHAR(160),SUBSTITUTE($Y137,\"{\",CHAR(160),HO$1))+1),\"\")","v":""},{"$f":"IFERROR(MID($Y137,FIND(CHAR(160),SUBSTITUTE($Y137,\"{\",CHAR(160),HP$1)),FIND(CHAR(160),SUBSTITUTE($Y137,\"}\",CHAR(160),HP$1))-FIND(CHAR(160),SUBSTITUTE($Y137,\"{\",CHAR(160),HP$1))+1),\"\")","v":""},{"$f":"IFERROR(MID($Y137,FIND(CHAR(160),SUBSTITUTE($Y137,\"{\",CHAR(160),HQ$1)),FIND(CHAR(160),SUBSTITUTE($Y137,\"}\",CHAR(160),HQ$1))-FIND(CHAR(160),SUBSTITUTE($Y137,\"{\",CHAR(160),HQ$1))+1),\"\")","v":""},{"$f":"IFERROR(MID($Y137,FIND(CHAR(160),SUBSTITUTE($Y137,\"{\",CHAR(160),HR$1)),FIND(CHAR(160),SUBSTITUTE($Y137,\"}\",CHAR(160),HR$1))-FIND(CHAR(160),SUBSTITUTE($Y137,\"{\",CHAR(160),HR$1))+1),\"\")","v":""},{"$f":"IFERROR(MID($Y137,FIND(CHAR(160),SUBSTITUTE($Y137,\"{\",CHAR(160),HS$1)),FIND(CHAR(160),SUBSTITUTE($Y137,\"}\",CHAR(160),HS$1))-FIND(CHAR(160),SUBSTITUTE($Y137,\"{\",CHAR(160),HS$1))+1),\"\")","v":""},{"$f":"IFERROR(MID($Y137,FIND(CHAR(160),SUBSTITUTE($Y137,\"{\",CHAR(160),HT$1)),FIND(CHAR(160),SUBSTITUTE($Y137,\"}\",CHAR(160),HT$1))-FIND(CHAR(160),SUBSTITUTE($Y137,\"{\",CHAR(160),HT$1))+1),\"\")","v":""},{"$f":"IFERROR(MID($Z137,FIND(CHAR(160),SUBSTITUTE($Z137,\"{\",CHAR(160),HU$1)),FIND(CHAR(160),SUBSTITUTE($Z137,\"}\",CHAR(160),HU$1))-FIND(CHAR(160),SUBSTITUTE($Z137,\"{\",CHAR(160),HU$1))+1),\"\")","v":""},{"$f":"IFERROR(MID($Z137,FIND(CHAR(160),SUBSTITUTE($Z137,\"{\",CHAR(160),HV$1)),FIND(CHAR(160),SUBSTITUTE($Z137,\"}\",CHAR(160),HV$1))-FIND(CHAR(160),SUBSTITUTE($Z137,\"{\",CHAR(160),HV$1))+1),\"\")","v":""},{"$f":"IFERROR(MID($Z137,FIND(CHAR(160),SUBSTITUTE($Z137,\"{\",CHAR(160),HW$1)),FIND(CHAR(160),SUBSTITUTE($Z137,\"}\",CHAR(160),HW$1))-FIND(CHAR(160),SUBSTITUTE($Z137,\"{\",CHAR(160),HW$1))+1),\"\")","v":""},{"$f":"IFERROR(MID($Z137,FIND(CHAR(160),SUBSTITUTE($Z137,\"{\",CHAR(160),HX$1)),FIND(CHAR(160),SUBSTITUTE($Z137,\"}\",CHAR(160),HX$1))-FIND(CHAR(160),SUBSTITUTE($Z137,\"{\",CHAR(160),HX$1))+1),\"\")","v":""},{"$f":"IFERROR(MID($Z137,FIND(CHAR(160),SUBSTITUTE($Z137,\"{\",CHAR(160),HY$1)),FIND(CHAR(160),SUBSTITUTE($Z137,\"}\",CHAR(160),HY$1))-FIND(CHAR(160),SUBSTITUTE($Z137,\"{\",CHAR(160),HY$1))+1),\"\")","v":""},{"$f":"IFERROR(MID($Z137,FIND(CHAR(160),SUBSTITUTE($Z137,\"{\",CHAR(160),HZ$1)),FIND(CHAR(160),SUBSTITUTE($Z137,\"}\",CHAR(160),HZ$1))-FIND(CHAR(160),SUBSTITUTE($Z137,\"{\",CHAR(160),HZ$1))+1),\"\")","v":""},{"$f":"IFERROR(MID($Z137,FIND(CHAR(160),SUBSTITUTE($Z137,\"{\",CHAR(160),IA$1)),FIND(CHAR(160),SUBSTITUTE($Z137,\"}\",CHAR(160),IA$1))-FIND(CHAR(160),SUBSTITUTE($Z137,\"{\",CHAR(160),IA$1))+1),\"\")","v":""},{"$f":"IFERROR(MID($Z137,FIND(CHAR(160),SUBSTITUTE($Z137,\"{\",CHAR(160),IB$1)),FIND(CHAR(160),SUBSTITUTE($Z137,\"}\",CHAR(160),IB$1))-FIND(CHAR(160),SUBSTITUTE($Z137,\"{\",CHAR(160),IB$1))+1),\"\")","v":""},{"$f":"IFERROR(MID($Z137,FIND(CHAR(160),SUBSTITUTE($Z137,\"{\",CHAR(160),IC$1)),FIND(CHAR(160),SUBSTITUTE($Z137,\"}\",CHAR(160),IC$1))-FIND(CHAR(160),SUBSTITUTE($Z137,\"{\",CHAR(160),IC$1))+1),\"\")","v":""},{"$f":"IFERROR(MID($Z137,FIND(CHAR(160),SUBSTITUTE($Z137,\"{\",CHAR(160),ID$1)),FIND(CHAR(160),SUBSTITUTE($Z137,\"}\",CHAR(160),ID$1))-FIND(CHAR(160),SUBSTITUTE($Z137,\"{\",CHAR(160),ID$1))+1),\"\")","v":""},{"$f":"IFERROR(MID($AA137,FIND(CHAR(160),SUBSTITUTE($AA137,\"{\",CHAR(160),IE$1)),FIND(CHAR(160),SUBSTITUTE($AA137,\"}\",CHAR(160),IE$1))-FIND(CHAR(160),SUBSTITUTE($AA137,\"{\",CHAR(160),IE$1))+1),\"\")","v":""},{"$f":"IFERROR(MID($AA137,FIND(CHAR(160),SUBSTITUTE($AA137,\"{\",CHAR(160),IF$1)),FIND(CHAR(160),SUBSTITUTE($AA137,\"}\",CHAR(160),IF$1))-FIND(CHAR(160),SUBSTITUTE($AA137,\"{\",CHAR(160),IF$1))+1),\"\")","v":""},{"$f":"IFERROR(MID($AA137,FIND(CHAR(160),SUBSTITUTE($AA137,\"{\",CHAR(160),IG$1)),FIND(CHAR(160),SUBSTITUTE($AA137,\"}\",CHAR(160),IG$1))-FIND(CHAR(160),SUBSTITUTE($AA137,\"{\",CHAR(160),IG$1))+1),\"\")","v":""},{"$f":"IFERROR(MID($AA137,FIND(CHAR(160),SUBSTITUTE($AA137,\"{\",CHAR(160),IH$1)),FIND(CHAR(160),SUBSTITUTE($AA137,\"}\",CHAR(160),IH$1))-FIND(CHAR(160),SUBSTITUTE($AA137,\"{\",CHAR(160),IH$1))+1),\"\")","v":""},{"$f":"IFERROR(MID($AA137,FIND(CHAR(160),SUBSTITUTE($AA137,\"{\",CHAR(160),II$1)),FIND(CHAR(160),SUBSTITUTE($AA137,\"}\",CHAR(160),II$1))-FIND(CHAR(160),SUBSTITUTE($AA137,\"{\",CHAR(160),II$1))+1),\"\")","v":""},{"$f":"IFERROR(MID($AA137,FIND(CHAR(160),SUBSTITUTE($AA137,\"{\",CHAR(160),IJ$1)),FIND(CHAR(160),SUBSTITUTE($AA137,\"}\",CHAR(160),IJ$1))-FIND(CHAR(160),SUBSTITUTE($AA137,\"{\",CHAR(160),IJ$1))+1),\"\")","v":""},{"$f":"IFERROR(MID($AA137,FIND(CHAR(160),SUBSTITUTE($AA137,\"{\",CHAR(160),IK$1)),FIND(CHAR(160),SUBSTITUTE($AA137,\"}\",CHAR(160),IK$1))-FIND(CHAR(160),SUBSTITUTE($AA137,\"{\",CHAR(160),IK$1))+1),\"\")","v":""},{"$f":"IFERROR(MID($AA137,FIND(CHAR(160),SUBSTITUTE($AA137,\"{\",CHAR(160),IL$1)),FIND(CHAR(160),SUBSTITUTE($AA137,\"}\",CHAR(160),IL$1))-FIND(CHAR(160),SUBSTITUTE($AA137,\"{\",CHAR(160),IL$1))+1),\"\")","v":""},{"$f":"IFERROR(MID($AA137,FIND(CHAR(160),SUBSTITUTE($AA137,\"{\",CHAR(160),IM$1)),FIND(CHAR(160),SUBSTITUTE($AA137,\"}\",CHAR(160),IM$1))-FIND(CHAR(160),SUBSTITUTE($AA137,\"{\",CHAR(160),IM$1))+1),\"\")","v":""},{"$f":"IFERROR(MID($AA137,FIND(CHAR(160),SUBSTITUTE($AA137,\"{\",CHAR(160),IN$1)),FIND(CHAR(160),SUBSTITUTE($AA137,\"}\",CHAR(160),IN$1))-FIND(CHAR(160),SUBSTITUTE($AA137,\"{\",CHAR(160),IN$1))+1),\"\")","v":""},{"$f":"IFERROR(MID($AB137,FIND(CHAR(160),SUBSTITUTE($AB137,\"{\",CHAR(160),IO$1)),FIND(CHAR(160),SUBSTITUTE($AB137,\"}\",CHAR(160),IO$1))-FIND(CHAR(160),SUBSTITUTE($AB137,\"{\",CHAR(160),IO$1))+1),\"\")","v":""},{"$f":"IFERROR(MID($AB137,FIND(CHAR(160),SUBSTITUTE($AB137,\"{\",CHAR(160),IP$1)),FIND(CHAR(160),SUBSTITUTE($AB137,\"}\",CHAR(160),IP$1))-FIND(CHAR(160),SUBSTITUTE($AB137,\"{\",CHAR(160),IP$1))+1),\"\")","v":""},{"$f":"IFERROR(MID($AB137,FIND(CHAR(160),SUBSTITUTE($AB137,\"{\",CHAR(160),IQ$1)),FIND(CHAR(160),SUBSTITUTE($AB137,\"}\",CHAR(160),IQ$1))-FIND(CHAR(160),SUBSTITUTE($AB137,\"{\",CHAR(160),IQ$1))+1),\"\")","v":""},{"$f":"IFERROR(MID($AB137,FIND(CHAR(160),SUBSTITUTE($AB137,\"{\",CHAR(160),IR$1)),FIND(CHAR(160),SUBSTITUTE($AB137,\"}\",CHAR(160),IR$1))-FIND(CHAR(160),SUBSTITUTE($AB137,\"{\",CHAR(160),IR$1))+1),\"\")","v":""},{"$f":"IFERROR(MID($AB137,FIND(CHAR(160),SUBSTITUTE($AB137,\"{\",CHAR(160),IS$1)),FIND(CHAR(160),SUBSTITUTE($AB137,\"}\",CHAR(160),IS$1))-FIND(CHAR(160),SUBSTITUTE($AB137,\"{\",CHAR(160),IS$1))+1),\"\")","v":""},{"$f":"IFERROR(MID($AB137,FIND(CHAR(160),SUBSTITUTE($AB137,\"{\",CHAR(160),IT$1)),FIND(CHAR(160),SUBSTITUTE($AB137,\"}\",CHAR(160),IT$1))-FIND(CHAR(160),SUBSTITUTE($AB137,\"{\",CHAR(160),IT$1))+1),\"\")","v":""},{"$f":"IFERROR(MID($AB137,FIND(CHAR(160),SUBSTITUTE($AB137,\"{\",CHAR(160),IU$1)),FIND(CHAR(160),SUBSTITUTE($AB137,\"}\",CHAR(160),IU$1))-FIND(CHAR(160),SUBSTITUTE($AB137,\"{\",CHAR(160),IU$1))+1),\"\")","v":""},{"$f":"IFERROR(MID($AB137,FIND(CHAR(160),SUBSTITUTE($AB137,\"{\",CHAR(160),IV$1)),FIND(CHAR(160),SUBSTITUTE($AB137,\"}\",CHAR(160),IV$1))-FIND(CHAR(160),SUBSTITUTE($AB137,\"{\",CHAR(160),IV$1))+1),\"\")","v":""},{"$f":"IFERROR(MID($AB137,FIND(CHAR(160),SUBSTITUTE($AB137,\"{\",CHAR(160),IW$1)),FIND(CHAR(160),SUBSTITUTE($AB137,\"}\",CHAR(160),IW$1))-FIND(CHAR(160),SUBSTITUTE($AB137,\"{\",CHAR(160),IW$1))+1),\"\")","v":""},{"$f":"IFERROR(MID($AB137,FIND(CHAR(160),SUBSTITUTE($AB137,\"{\",CHAR(160),IX$1)),FIND(CHAR(160),SUBSTITUTE($AB137,\"}\",CHAR(160),IX$1))-FIND(CHAR(160),SUBSTITUTE($AB137,\"{\",CHAR(160),IX$1))+1),\"\")","v":""},null,{"$f":"10-COUNTIF(DU137:ED137,\"\")","v":4}]
["C&I Prescriptive Compressed Air Solutions","Dryer - C10 - Dryer Size 75","D - C10","2021-07-01","2022-06-30","Calculated","{Measure:Quantity}*{Dryer CFM} * 6.54",0,"Per Measure",250,0,"2017-07-01","2022-06-30","Calculated","{Measure:Quantity} *{Dryer CFM} * 0.00474 * {Weekly Hrs of Operation} * {Weeks Per Year}",1E-4,null,"{Measure:Quantity} *{Dryer CFM} * 0.00474",null,null,"{Measure:Quantity} *{Dryer CFM} * 0.00474 * {Factor:WinterCF}","{Measure:Quantity} *{Dryer CFM} * 0.00474 * {Factor:SummerCF}",null,null,null,null,null,null,"2017-07-01","2022-06-30",15,0.7,0.91100000000000003,0.30399999999999999,0.36099999999999999,0.156,0.17899999999999999,1,1.1220000000000001,1,0.52,1.6E-2,null,{"$f":"DU138","v":"{Measure:Quantity}"},1,{"$f":"DV138","v":"{Dryer CFM}"},75,{"$f":"DW138","v":"{Weekly Hrs of Operation}"},50,{"$f":"DX138","v":"{Weeks Per Year}"},50,{"$f":"DY138","v":""},null,{"$f":"DZ138","v":""},null,{"$f":"EA138","v":""},null,{"$f":"EB138","v":""},null,{"$f":"EC138","v":""},null,{"$f":"ED138","v":""},null,{"$f":"AS138 *AU138 * 0.00474 * AW138 * AY138","v":888.75000000000011},{"$f":"0.0001","v":1E-4},0,{"$f":"AS138 *AU138 * 0.00474","v":0.35550000000000004},0,0,{"$f":"AS138 *AU138 * 0.00474 * AF138","v":0.24885000000000002},{"$f":"AS138 *AU138 * 0.00474 * AG138","v":0.32386050000000005},0,0,0,0,0,0,null,"Com","Default DR",{"$f":"Benefits(BL138,BR138,BS138,BT138,BU138,BV138,BW138,BX138,BY138,BZ138,AE138,AH138,AI138,AJ138,AK138,AL138,AM138,AN138,AO138,AP138,CA138,CB138)","v":1332.190338858959},1546.848753901724,0,0,0,0,0,0,0,{"$f":"SUMPRODUCT(CC138:CK138,--(CC138:CK138>0))","v":2879.0390927606832},{"$f":"-SUMPRODUCT(CC138:CK138,--(CC138:CK138<0))","v":0},null,{"$f":"AS138*AU138 * 6.54","v":490.5},null,null,{"$f":"CM138+CO138","v":490.5},{"$f":"IF(NetOrGross=\"Net\",(1-AO138+AP138),1)","v":1},{"$f":"(SUMPRODUCT(CC138:CJ138,--(CC138:CJ138>0))+CN138)*CS138/((-SUMPRODUCT(CC138:CJ138,--(CC138:CJ138<0))+MAX(CO138,CV138)+CP138+CQ138)*CS138+IF(FRIncentives=\"Yes\",CV138*(1-CS138),0))","v":5.8696005968617397},5,{"$f":"250","v":250},null,"Electric","y",null,{"$f":"IF(F138=\"Manual Entry\",\"Manual\",IF(G138=\"\",0,\"X=\"&SUBSTITUTE(SUBSTITUTE(SUBSTITUTE(SUBSTITUTE(SUBSTITUTE(SUBSTITUTE(SUBSTITUTE(SUBSTITUTE(SUBSTITUTE(SUBSTITUTE(SUBSTITUTE(SUBSTITUTE(G138,$ED138,$ED$2&ROW($ED138)),$EC138,$EC$2&ROW($EC138)),$EB138,$EB$2&ROW($EB138)),$EA138,$EA$2&ROW($EA138)),$DZ138,$DZ$2&ROW($DZ138)),$DY138,$DY$2&ROW($DY138)),$DX138,$DX$2&ROW($DX138)),$DW138,$DW$2&ROW($DW138)),$DV138,$DV$2&ROW($DV138)),$DU138,$DU$2&ROW($DU138)),$DT138,$DT$2&ROW($DT138)),$DS138,$DS$2&ROW($DS138))))","v":"X=AS138*AU138 * 6.54"},{"$f":"IF(I138=\"Manual Entry\",\"Manual\",IF(J138=\"\",0,\"X=\"&SUBSTITUTE(SUBSTITUTE(SUBSTITUTE(SUBSTITUTE(SUBSTITUTE(SUBSTITUTE(SUBSTITUTE(SUBSTITUTE(SUBSTITUTE(SUBSTITUTE(SUBSTITUTE(SUBSTITUTE(J138,$ED138,$ED$2&ROW($ED138)),$EC138,$EC$2&ROW($EC138)),$EB138,$EB$2&ROW($EB138)),$EA138,$EA$2&ROW($EA138)),$DZ138,$DZ$2&ROW($DZ138)),$DY138,$DY$2&ROW($DY138)),$DX138,$DX$2&ROW($DX138)),$DW138,$DW$2&ROW($DW138)),$DV138,$DV$2&ROW($DV138)),$DU138,$DU$2&ROW($DU138)),$DT138,$DT$2&ROW($DT138)),$DS138,$DS$2&ROW($DS138))))","v":"X=250"},{"$f":"IF(O138=\"\",0,\"X=\"&SUBSTITUTE(SUBSTITUTE(SUBSTITUTE(SUBSTITUTE(SUBSTITUTE(SUBSTITUTE(SUBSTITUTE(SUBSTITUTE(SUBSTITUTE(SUBSTITUTE(SUBSTITUTE(SUBSTITUTE(O138,$ED138,$ED$2&ROW($ED138)),$EC138,$EC$2&ROW($EC138)),$EB138,$EB$2&ROW($EB138)),$EA138,$EA$2&ROW($EA138)),$DZ138,$DZ$2&ROW($DZ138)),$DY138,$DY$2&ROW($DY138)),$DX138,$DX$2&ROW($DX138)),$DW138,$DW$2&ROW($DW138)),$DV138,$DV$2&ROW($DV138)),$DU138,$DU$2&ROW($DU138)),$DT138,$DT$2&ROW($DT138)),$DS138,$DS$2&ROW($DS138)))","v":"X=AS138 *AU138 * 0.00474 * AW138 * AY138"},{"$f":"IF(P138=\"\",0,\"X=\"&SUBSTITUTE(SUBSTITUTE(SUBSTITUTE(SUBSTITUTE(SUBSTITUTE(SUBSTITUTE(SUBSTITUTE(SUBSTITUTE(SUBSTITUTE(SUBSTITUTE(SUBSTITUTE(SUBSTITUTE(P138,$ED138,$ED$2&ROW($ED138)),$EC138,$EC$2&ROW($EC138)),$EB138,$EB$2&ROW($EB138)),$EA138,$EA$2&ROW($EA138)),$DZ138,$DZ$2&ROW($DZ138)),$DY138,$DY$2&ROW($DY138)),$DX138,$DX$2&ROW($DX138)),$DW138,$DW$2&ROW($DW138)),$DV138,$DV$2&ROW($DV138)),$DU138,$DU$2&ROW($DU138)),$DT138,$DT$2&ROW($DT138)),$DS138,$DS$2&ROW($DS138)))","v":"X=0.0001"},{"$f":"IF(Q138=\"\",0,\"X=\"&SUBSTITUTE(SUBSTITUTE(SUBSTITUTE(SUBSTITUTE(SUBSTITUTE(SUBSTITUTE(SUBSTITUTE(SUBSTITUTE(SUBSTITUTE(SUBSTITUTE(SUBSTITUTE(SUBSTITUTE(Q138,$ED138,$ED$2&ROW($ED138)),$EC138,$EC$2&ROW($EC138)),$EB138,$EB$2&ROW($EB138)),$EA138,$EA$2&ROW($EA138)),$DZ138,$DZ$2&ROW($DZ138)),$DY138,$DY$2&ROW($DY138)),$DX138,$DX$2&ROW($DX138)),$DW138,$DW$2&ROW($DW138)),$DV138,$DV$2&ROW($DV138)),$DU138,$DU$2&ROW($DU138)),$DT138,$DT$2&ROW($DT138)),$DS138,$DS$2&ROW($DS138)))","v":0},{"$f":"IF(R138=\"\",0,\"X=\"&SUBSTITUTE(SUBSTITUTE(SUBSTITUTE(SUBSTITUTE(SUBSTITUTE(SUBSTITUTE(SUBSTITUTE(SUBSTITUTE(SUBSTITUTE(SUBSTITUTE(SUBSTITUTE(SUBSTITUTE(R138,$ED138,$ED$2&ROW($ED138)),$EC138,$EC$2&ROW($EC138)),$EB138,$EB$2&ROW($EB138)),$EA138,$EA$2&ROW($EA138)),$DZ138,$DZ$2&ROW($DZ138)),$DY138,$DY$2&ROW($DY138)),$DX138,$DX$2&ROW($DX138)),$DW138,$DW$2&ROW($DW138)),$DV138,$DV$2&ROW($DV138)),$DU138,$DU$2&ROW($DU138)),$DT138,$DT$2&ROW($DT138)),$DS138,$DS$2&ROW($DS138)))","v":"X=AS138 *AU138 * 0.00474"},{"$f":"IF(S138=\"\",0,\"X=\"&SUBSTITUTE(SUBSTITUTE(SUBSTITUTE(SUBSTITUTE(SUBSTITUTE(SUBSTITUTE(SUBSTITUTE(SUBSTITUTE(SUBSTITUTE(SUBSTITUTE(SUBSTITUTE(SUBSTITUTE(S138,$ED138,$ED$2&ROW($ED138)),$EC138,$EC$2&ROW($EC138)),$EB138,$EB$2&ROW($EB138)),$EA138,$EA$2&ROW($EA138)),$DZ138,$DZ$2&ROW($DZ138)),$DY138,$DY$2&ROW($DY138)),$DX138,$DX$2&ROW($DX138)),$DW138,$DW$2&ROW($DW138)),$DV138,$DV$2&ROW($DV138)),$DU138,$DU$2&ROW($DU138)),$DT138,$DT$2&ROW($DT138)),$DS138,$DS$2&ROW($DS138)))","v":0},{"$f":"IF(T138=\"\",0,\"X=\"&SUBSTITUTE(SUBSTITUTE(SUBSTITUTE(SUBSTITUTE(SUBSTITUTE(SUBSTITUTE(SUBSTITUTE(SUBSTITUTE(SUBSTITUTE(SUBSTITUTE(SUBSTITUTE(SUBSTITUTE(T138,$ED138,$ED$2&ROW($ED138)),$EC138,$EC$2&ROW($EC138)),$EB138,$EB$2&ROW($EB138)),$EA138,$EA$2&ROW($EA138)),$DZ138,$DZ$2&ROW($DZ138)),$DY138,$DY$2&ROW($DY138)),$DX138,$DX$2&ROW($DX138)),$DW138,$DW$2&ROW($DW138)),$DV138,$DV$2&ROW($DV138)),$DU138,$DU$2&ROW($DU138)),$DT138,$DT$2&ROW($DT138)),$DS138,$DS$2&ROW($DS138)))","v":0},{"$f":"IF(U138=\"\",0,\"X=\"&SUBSTITUTE(SUBSTITUTE(SUBSTITUTE(SUBSTITUTE(SUBSTITUTE(SUBSTITUTE(SUBSTITUTE(SUBSTITUTE(SUBSTITUTE(SUBSTITUTE(SUBSTITUTE(SUBSTITUTE(U138,$ED138,$ED$2&ROW($ED138)),$EC138,$EC$2&ROW($EC138)),$EB138,$EB$2&ROW($EB138)),$EA138,$EA$2&ROW($EA138)),$DZ138,$DZ$2&ROW($DZ138)),$DY138,$DY$2&ROW($DY138)),$DX138,$DX$2&ROW($DX138)),$DW138,$DW$2&ROW($DW138)),$DV138,$DV$2&ROW($DV138)),$DU138,$DU$2&ROW($DU138)),$DT138,$DT$2&ROW($DT138)),$DS138,$DS$2&ROW($DS138)))","v":"X=AS138 *AU138 * 0.00474 * AF138"},{"$f":"IF(V138=\"\",0,\"X=\"&SUBSTITUTE(SUBSTITUTE(SUBSTITUTE(SUBSTITUTE(SUBSTITUTE(SUBSTITUTE(SUBSTITUTE(SUBSTITUTE(SUBSTITUTE(SUBSTITUTE(SUBSTITUTE(SUBSTITUTE(V138,$ED138,$ED$2&ROW($ED138)),$EC138,$EC$2&ROW($EC138)),$EB138,$EB$2&ROW($EB138)),$EA138,$EA$2&ROW($EA138)),$DZ138,$DZ$2&ROW($DZ138)),$DY138,$DY$2&ROW($DY138)),$DX138,$DX$2&ROW($DX138)),$DW138,$DW$2&ROW($DW138)),$DV138,$DV$2&ROW($DV138)),$DU138,$DU$2&ROW($DU138)),$DT138,$DT$2&ROW($DT138)),$DS138,$DS$2&ROW($DS138)))","v":"X=AS138 *AU138 * 0.00474 * AG138"},{"$f":"IF(W138=\"\",0,\"X=\"&SUBSTITUTE(SUBSTITUTE(SUBSTITUTE(SUBSTITUTE(SUBSTITUTE(SUBSTITUTE(SUBSTITUTE(SUBSTITUTE(SUBSTITUTE(SUBSTITUTE(SUBSTITUTE(SUBSTITUTE(W138,$ED138,$ED$2&ROW($ED138)),$EC138,$EC$2&ROW($EC138)),$EB138,$EB$2&ROW($EB138)),$EA138,$EA$2&ROW($EA138)),$DZ138,$DZ$2&ROW($DZ138)),$DY138,$DY$2&ROW($DY138)),$DX138,$DX$2&ROW($DX138)),$DW138,$DW$2&ROW($DW138)),$DV138,$DV$2&ROW($DV138)),$DU138,$DU$2&ROW($DU138)),$DT138,$DT$2&ROW($DT138)),$DS138,$DS$2&ROW($DS138)))","v":0},{"$f":"IF(X138=\"\",0,\"X=\"&SUBSTITUTE(SUBSTITUTE(SUBSTITUTE(SUBSTITUTE(SUBSTITUTE(SUBSTITUTE(SUBSTITUTE(SUBSTITUTE(SUBSTITUTE(SUBSTITUTE(SUBSTITUTE(SUBSTITUTE(X138,$ED138,$ED$2&ROW($ED138)),$EC138,$EC$2&ROW($EC138)),$EB138,$EB$2&ROW($EB138)),$EA138,$EA$2&ROW($EA138)),$DZ138,$DZ$2&ROW($DZ138)),$DY138,$DY$2&ROW($DY138)),$DX138,$DX$2&ROW($DX138)),$DW138,$DW$2&ROW($DW138)),$DV138,$DV$2&ROW($DV138)),$DU138,$DU$2&ROW($DU138)),$DT138,$DT$2&ROW($DT138)),$DS138,$DS$2&ROW($DS138)))","v":0},{"$f":"IF(Y138=\"\",0,\"X=\"&SUBSTITUTE(SUBSTITUTE(SUBSTITUTE(SUBSTITUTE(SUBSTITUTE(SUBSTITUTE(SUBSTITUTE(SUBSTITUTE(SUBSTITUTE(SUBSTITUTE(SUBSTITUTE(SUBSTITUTE(Y138,$ED138,$ED$2&ROW($ED138)),$EC138,$EC$2&ROW($EC138)),$EB138,$EB$2&ROW($EB138)),$EA138,$EA$2&ROW($EA138)),$DZ138,$DZ$2&ROW($DZ138)),$DY138,$DY$2&ROW($DY138)),$DX138,$DX$2&ROW($DX138)),$DW138,$DW$2&ROW($DW138)),$DV138,$DV$2&ROW($DV138)),$DU138,$DU$2&ROW($DU138)),$DT138,$DT$2&ROW($DT138)),$DS138,$DS$2&ROW($DS138)))","v":0},{"$f":"IF(Z138=\"\",0,\"X=\"&SUBSTITUTE(SUBSTITUTE(SUBSTITUTE(SUBSTITUTE(SUBSTITUTE(SUBSTITUTE(SUBSTITUTE(SUBSTITUTE(SUBSTITUTE(SUBSTITUTE(SUBSTITUTE(SUBSTITUTE(Z138,$ED138,$ED$2&ROW($ED138)),$EC138,$EC$2&ROW($EC138)),$EB138,$EB$2&ROW($EB138)),$EA138,$EA$2&ROW($EA138)),$DZ138,$DZ$2&ROW($DZ138)),$DY138,$DY$2&ROW($DY138)),$DX138,$DX$2&ROW($DX138)),$DW138,$DW$2&ROW($DW138)),$DV138,$DV$2&ROW($DV138)),$DU138,$DU$2&ROW($DU138)),$DT138,$DT$2&ROW($DT138)),$DS138,$DS$2&ROW($DS138)))","v":0},{"$f":"IF(AA138=\"\",0,\"X=\"&SUBSTITUTE(SUBSTITUTE(SUBSTITUTE(SUBSTITUTE(SUBSTITUTE(SUBSTITUTE(SUBSTITUTE(SUBSTITUTE(SUBSTITUTE(SUBSTITUTE(SUBSTITUTE(SUBSTITUTE(AA138,$ED138,$ED$2&ROW($ED138)),$EC138,$EC$2&ROW($EC138)),$EB138,$EB$2&ROW($EB138)),$EA138,$EA$2&ROW($EA138)),$DZ138,$DZ$2&ROW($DZ138)),$DY138,$DY$2&ROW($DY138)),$DX138,$DX$2&ROW($DX138)),$DW138,$DW$2&ROW($DW138)),$DV138,$DV$2&ROW($DV138)),$DU138,$DU$2&ROW($DU138)),$DT138,$DT$2&ROW($DT138)),$DS138,$DS$2&ROW($DS138)))","v":0},{"$f":"IF(AB138=\"\",0,\"X=\"&SUBSTITUTE(SUBSTITUTE(SUBSTITUTE(SUBSTITUTE(SUBSTITUTE(SUBSTITUTE(SUBSTITUTE(SUBSTITUTE(SUBSTITUTE(SUBSTITUTE(SUBSTITUTE(SUBSTITUTE(AB138,$ED138,$ED$2&ROW($ED138)),$EC138,$EC$2&ROW($EC138)),$EB138,$EB$2&ROW($EB138)),$EA138,$EA$2&ROW($EA138)),$DZ138,$DZ$2&ROW($DZ138)),$DY138,$DY$2&ROW($DY138)),$DX138,$DX$2&ROW($DX138)),$DW138,$DW$2&ROW($DW138)),$DV138,$DV$2&ROW($DV138)),$DU138,$DU$2&ROW($DU138)),$DT138,$DT$2&ROW($DT138)),$DS138,$DS$2&ROW($DS138)))","v":0},null,null,"{Factor:WinterCF}","{Factor:SummerCF}",{"$f":"IFERROR(INDEX($EG138:$IV138,MATCH(0,COUNTIF($DR138:DT138,$EG138:$IV138),0)),\"\")","v":"{Measure:Quantity}"},{"$f":"IFERROR(INDEX($EG138:$IV138,MATCH(0,COUNTIF($DR138:DU138,$EG138:$IV138),0)),\"\")","v":"{Dryer CFM}"},{"$f":"IFERROR(INDEX($EG138:$IV138,MATCH(0,COUNTIF($DR138:DV138,$EG138:$IV138),0)),\"\")","v":"{Weekly Hrs of Operation}"},{"$f":"IFERROR(INDEX($EG138:$IV138,MATCH(0,COUNTIF($DR138:DW138,$EG138:$IV138),0)),\"\")","v":"{Weeks Per Year}"},{"$f":"IFERROR(INDEX($EG138:$IV138,MATCH(0,COUNTIF($DR138:DX138,$EG138:$IV138),0)),\"\")","v":""},{"$f":"IFERROR(INDEX($EG138:$IV138,MATCH(0,COUNTIF($DR138:DY138,$EG138:$IV138),0)),\"\")","v":""},{"$f":"IFERROR(INDEX($EG138:$IV138,MATCH(0,COUNTIF($DR138:DZ138,$EG138:$IV138),0)),\"\")","v":""},{"$f":"IFERROR(INDEX($EG138:$IV138,MATCH(0,COUNTIF($DR138:EA138,$EG138:$IV138),0)),\"\")","v":""},{"$f":"IFERROR(INDEX($EG138:$IV138,MATCH(0,COUNTIF($DR138:EB138,$EG138:$IV138),0)),\"\")","v":""},{"$f":"IFERROR(INDEX($EG138:$IV138,MATCH(0,COUNTIF($DR138:EC138,$EG138:$IV138),0)),\"\")","v":""},null,null,{"$f":"IFERROR(MID($G138,FIND(CHAR(160),SUBSTITUTE($G138,\"{\",CHAR(160),EG$1)),FIND(CHAR(160),SUBSTITUTE($G138,\"}\",CHAR(160),EG$1))-FIND(CHAR(160),SUBSTITUTE($G138,\"{\",CHAR(160),EG$1))+1),\"\")","v":"{Measure:Quantity}"},{"$f":"IFERROR(MID($G138,FIND(CHAR(160),SUBSTITUTE($G138,\"{\",CHAR(160),EH$1)),FIND(CHAR(160),SUBSTITUTE($G138,\"}\",CHAR(160),EH$1))-FIND(CHAR(160),SUBSTITUTE($G138,\"{\",CHAR(160),EH$1))+1),\"\")","v":"{Dryer CFM}"},{"$f":"IFERROR(MID($G138,FIND(CHAR(160),SUBSTITUTE($G138,\"{\",CHAR(160),EI$1)),FIND(CHAR(160),SUBSTITUTE($G138,\"}\",CHAR(160),EI$1))-FIND(CHAR(160),SUBSTITUTE($G138,\"{\",CHAR(160),EI$1))+1),\"\")","v":""},{"$f":"IFERROR(MID($G138,FIND(CHAR(160),SUBSTITUTE($G138,\"{\",CHAR(160),EJ$1)),FIND(CHAR(160),SUBSTITUTE($G138,\"}\",CHAR(160),EJ$1))-FIND(CHAR(160),SUBSTITUTE($G138,\"{\",CHAR(160),EJ$1))+1),\"\")","v":""},{"$f":"IFERROR(MID($G138,FIND(CHAR(160),SUBSTITUTE($G138,\"{\",CHAR(160),EK$1)),FIND(CHAR(160),SUBSTITUTE($G138,\"}\",CHAR(160),EK$1))-FIND(CHAR(160),SUBSTITUTE($G138,\"{\",CHAR(160),EK$1))+1),\"\")","v":""},{"$f":"IFERROR(MID($G138,FIND(CHAR(160),SUBSTITUTE($G138,\"{\",CHAR(160),EL$1)),FIND(CHAR(160),SUBSTITUTE($G138,\"}\",CHAR(160),EL$1))-FIND(CHAR(160),SUBSTITUTE($G138,\"{\",CHAR(160),EL$1))+1),\"\")","v":""},{"$f":"IFERROR(MID($G138,FIND(CHAR(160),SUBSTITUTE($G138,\"{\",CHAR(160),EM$1)),FIND(CHAR(160),SUBSTITUTE($G138,\"}\",CHAR(160),EM$1))-FIND(CHAR(160),SUBSTITUTE($G138,\"{\",CHAR(160),EM$1))+1),\"\")","v":""},{"$f":"IFERROR(MID($G138,FIND(CHAR(160),SUBSTITUTE($G138,\"{\",CHAR(160),EN$1)),FIND(CHAR(160),SUBSTITUTE($G138,\"}\",CHAR(160),EN$1))-FIND(CHAR(160),SUBSTITUTE($G138,\"{\",CHAR(160),EN$1))+1),\"\")","v":""},{"$f":"IFERROR(MID($G138,FIND(CHAR(160),SUBSTITUTE($G138,\"{\",CHAR(160),EO$1)),FIND(CHAR(160),SUBSTITUTE($G138,\"}\",CHAR(160),EO$1))-FIND(CHAR(160),SUBSTITUTE($G138,\"{\",CHAR(160),EO$1))+1),\"\")","v":""},{"$f":"IFERROR(MID($G138,FIND(CHAR(160),SUBSTITUTE($G138,\"{\",CHAR(160),EP$1)),FIND(CHAR(160),SUBSTITUTE($G138,\"}\",CHAR(160),EP$1))-FIND(CHAR(160),SUBSTITUTE($G138,\"{\",CHAR(160),EP$1))+1),\"\")","v":""},{"$f":"IFERROR(MID($J138,FIND(CHAR(160),SUBSTITUTE($J138,\"{\",CHAR(160),EQ$1)),FIND(CHAR(160),SUBSTITUTE($J138,\"}\",CHAR(160),EQ$1))-FIND(CHAR(160),SUBSTITUTE($J138,\"{\",CHAR(160),EQ$1))+1),\"\")","v":""},{"$f":"IFERROR(MID($J138,FIND(CHAR(160),SUBSTITUTE($J138,\"{\",CHAR(160),ER$1)),FIND(CHAR(160),SUBSTITUTE($J138,\"}\",CHAR(160),ER$1))-FIND(CHAR(160),SUBSTITUTE($J138,\"{\",CHAR(160),ER$1))+1),\"\")","v":""},{"$f":"IFERROR(MID($J138,FIND(CHAR(160),SUBSTITUTE($J138,\"{\",CHAR(160),ES$1)),FIND(CHAR(160),SUBSTITUTE($J138,\"}\",CHAR(160),ES$1))-FIND(CHAR(160),SUBSTITUTE($J138,\"{\",CHAR(160),ES$1))+1),\"\")","v":""},{"$f":"IFERROR(MID($J138,FIND(CHAR(160),SUBSTITUTE($J138,\"{\",CHAR(160),ET$1)),FIND(CHAR(160),SUBSTITUTE($J138,\"}\",CHAR(160),ET$1))-FIND(CHAR(160),SUBSTITUTE($J138,\"{\",CHAR(160),ET$1))+1),\"\")","v":""},{"$f":"IFERROR(MID($J138,FIND(CHAR(160),SUBSTITUTE($J138,\"{\",CHAR(160),EU$1)),FIND(CHAR(160),SUBSTITUTE($J138,\"}\",CHAR(160),EU$1))-FIND(CHAR(160),SUBSTITUTE($J138,\"{\",CHAR(160),EU$1))+1),\"\")","v":""},{"$f":"IFERROR(MID($J138,FIND(CHAR(160),SUBSTITUTE($J138,\"{\",CHAR(160),EV$1)),FIND(CHAR(160),SUBSTITUTE($J138,\"}\",CHAR(160),EV$1))-FIND(CHAR(160),SUBSTITUTE($J138,\"{\",CHAR(160),EV$1))+1),\"\")","v":""},{"$f":"IFERROR(MID($J138,FIND(CHAR(160),SUBSTITUTE($J138,\"{\",CHAR(160),EW$1)),FIND(CHAR(160),SUBSTITUTE($J138,\"}\",CHAR(160),EW$1))-FIND(CHAR(160),SUBSTITUTE($J138,\"{\",CHAR(160),EW$1))+1),\"\")","v":""},{"$f":"IFERROR(MID($J138,FIND(CHAR(160),SUBSTITUTE($J138,\"{\",CHAR(160),EX$1)),FIND(CHAR(160),SUBSTITUTE($J138,\"}\",CHAR(160),EX$1))-FIND(CHAR(160),SUBSTITUTE($J138,\"{\",CHAR(160),EX$1))+1),\"\")","v":""},{"$f":"IFERROR(MID($J138,FIND(CHAR(160),SUBSTITUTE($J138,\"{\",CHAR(160),EY$1)),FIND(CHAR(160),SUBSTITUTE($J138,\"}\",CHAR(160),EY$1))-FIND(CHAR(160),SUBSTITUTE($J138,\"{\",CHAR(160),EY$1))+1),\"\")","v":""},{"$f":"IFERROR(MID($J138,FIND(CHAR(160),SUBSTITUTE($J138,\"{\",CHAR(160),EZ$1)),FIND(CHAR(160),SUBSTITUTE($J138,\"}\",CHAR(160),EZ$1))-FIND(CHAR(160),SUBSTITUTE($J138,\"{\",CHAR(160),EZ$1))+1),\"\")","v":""},{"$f":"IFERROR(MID($J138,FIND(CHAR(160),SUBSTITUTE($J138,\"{\",CHAR(160),FA$1)),FIND(CHAR(160),SUBSTITUTE($J138,\"}\",CHAR(160),FA$1))-FIND(CHAR(160),SUBSTITUTE($J138,\"{\",CHAR(160),FA$1))+1),\"\")","v":""},{"$f":"IFERROR(MID($J138,FIND(CHAR(160),SUBSTITUTE($J138,\"{\",CHAR(160),FB$1)),FIND(CHAR(160),SUBSTITUTE($J138,\"}\",CHAR(160),FB$1))-FIND(CHAR(160),SUBSTITUTE($J138,\"{\",CHAR(160),FB$1))+1),\"\")","v":""},{"$f":"IFERROR(MID($O138,FIND(CHAR(160),SUBSTITUTE($O138,\"{\",CHAR(160),FC$1)),FIND(CHAR(160),SUBSTITUTE($O138,\"}\",CHAR(160),FC$1))-FIND(CHAR(160),SUBSTITUTE($O138,\"{\",CHAR(160),FC$1))+1),\"\")","v":"{Weekly Hrs of Operation}"},{"$f":"IFERROR(MID($O138,FIND(CHAR(160),SUBSTITUTE($O138,\"{\",CHAR(160),FD$1)),FIND(CHAR(160),SUBSTITUTE($O138,\"}\",CHAR(160),FD$1))-FIND(CHAR(160),SUBSTITUTE($O138,\"{\",CHAR(160),FD$1))+1),\"\")","v":"{Weeks Per Year}"},{"$f":"IFERROR(MID($O138,FIND(CHAR(160),SUBSTITUTE($O138,\"{\",CHAR(160),FE$1)),FIND(CHAR(160),SUBSTITUTE($O138,\"}\",CHAR(160),FE$1))-FIND(CHAR(160),SUBSTITUTE($O138,\"{\",CHAR(160),FE$1))+1),\"\")","v":""},{"$f":"IFERROR(MID($O138,FIND(CHAR(160),SUBSTITUTE($O138,\"{\",CHAR(160),FF$1)),FIND(CHAR(160),SUBSTITUTE($O138,\"}\",CHAR(160),FF$1))-FIND(CHAR(160),SUBSTITUTE($O138,\"{\",CHAR(160),FF$1))+1),\"\")","v":""},{"$f":"IFERROR(MID($O138,FIND(CHAR(160),SUBSTITUTE($O138,\"{\",CHAR(160),FG$1)),FIND(CHAR(160),SUBSTITUTE($O138,\"}\",CHAR(160),FG$1))-FIND(CHAR(160),SUBSTITUTE($O138,\"{\",CHAR(160),FG$1))+1),\"\")","v":""},{"$f":"IFERROR(MID($O138,FIND(CHAR(160),SUBSTITUTE($O138,\"{\",CHAR(160),FH$1)),FIND(CHAR(160),SUBSTITUTE($O138,\"}\",CHAR(160),FH$1))-FIND(CHAR(160),SUBSTITUTE($O138,\"{\",CHAR(160),FH$1))+1),\"\")","v":""},{"$f":"IFERROR(MID($O138,FIND(CHAR(160),SUBSTITUTE($O138,\"{\",CHAR(160),FI$1)),FIND(CHAR(160),SUBSTITUTE($O138,\"}\",CHAR(160),FI$1))-FIND(CHAR(160),SUBSTITUTE($O138,\"{\",CHAR(160),FI$1))+1),\"\")","v":""},{"$f":"IFERROR(MID($O138,FIND(CHAR(160),SUBSTITUTE($O138,\"{\",CHAR(160),FJ$1)),FIND(CHAR(160),SUBSTITUTE($O138,\"}\",CHAR(160),FJ$1))-FIND(CHAR(160),SUBSTITUTE($O138,\"{\",CHAR(160),FJ$1))+1),\"\")","v":""},{"$f":"IFERROR(MID($O138,FIND(CHAR(160),SUBSTITUTE($O138,\"{\",CHAR(160),FK$1)),FIND(CHAR(160),SUBSTITUTE($O138,\"}\",CHAR(160),FK$1))-FIND(CHAR(160),SUBSTITUTE($O138,\"{\",CHAR(160),FK$1))+1),\"\")","v":"{Measure:Quantity}"},{"$f":"IFERROR(MID($O138,FIND(CHAR(160),SUBSTITUTE($O138,\"{\",CHAR(160),FL$1)),FIND(CHAR(160),SUBSTITUTE($O138,\"}\",CHAR(160),FL$1))-FIND(CHAR(160),SUBSTITUTE($O138,\"{\",CHAR(160),FL$1))+1),\"\")","v":"{Dryer CFM}"},{"$f":"IFERROR(MID($R138,FIND(CHAR(160),SUBSTITUTE($R138,\"{\",CHAR(160),FM$1)),FIND(CHAR(160),SUBSTITUTE($R138,\"}\",CHAR(160),FM$1))-FIND(CHAR(160),SUBSTITUTE($R138,\"{\",CHAR(160),FM$1))+1),\"\")","v":""},{"$f":"IFERROR(MID($R138,FIND(CHAR(160),SUBSTITUTE($R138,\"{\",CHAR(160),FN$1)),FIND(CHAR(160),SUBSTITUTE($R138,\"}\",CHAR(160),FN$1))-FIND(CHAR(160),SUBSTITUTE($R138,\"{\",CHAR(160),FN$1))+1),\"\")","v":""},{"$f":"IFERROR(MID($R138,FIND(CHAR(160),SUBSTITUTE($R138,\"{\",CHAR(160),FO$1)),FIND(CHAR(160),SUBSTITUTE($R138,\"}\",CHAR(160),FO$1))-FIND(CHAR(160),SUBSTITUTE($R138,\"{\",CHAR(160),FO$1))+1),\"\")","v":""},{"$f":"IFERROR(MID($R138,FIND(CHAR(160),SUBSTITUTE($R138,\"{\",CHAR(160),FP$1)),FIND(CHAR(160),SUBSTITUTE($R138,\"}\",CHAR(160),FP$1))-FIND(CHAR(160),SUBSTITUTE($R138,\"{\",CHAR(160),FP$1))+1),\"\")","v":""},{"$f":"IFERROR(MID($R138,FIND(CHAR(160),SUBSTITUTE($R138,\"{\",CHAR(160),FQ$1)),FIND(CHAR(160),SUBSTITUTE($R138,\"}\",CHAR(160),FQ$1))-FIND(CHAR(160),SUBSTITUTE($R138,\"{\",CHAR(160),FQ$1))+1),\"\")","v":""},{"$f":"IFERROR(MID($R138,FIND(CHAR(160),SUBSTITUTE($R138,\"{\",CHAR(160),FR$1)),FIND(CHAR(160),SUBSTITUTE($R138,\"}\",CHAR(160),FR$1))-FIND(CHAR(160),SUBSTITUTE($R138,\"{\",CHAR(160),FR$1))+1),\"\")","v":""},{"$f":"IFERROR(MID($R138,FIND(CHAR(160),SUBSTITUTE($R138,\"{\",CHAR(160),FS$1)),FIND(CHAR(160),SUBSTITUTE($R138,\"}\",CHAR(160),FS$1))-FIND(CHAR(160),SUBSTITUTE($R138,\"{\",CHAR(160),FS$1))+1),\"\")","v":""},{"$f":"IFERROR(MID($R138,FIND(CHAR(160),SUBSTITUTE($R138,\"{\",CHAR(160),FT$1)),FIND(CHAR(160),SUBSTITUTE($R138,\"}\",CHAR(160),FT$1))-FIND(CHAR(160),SUBSTITUTE($R138,\"{\",CHAR(160),FT$1))+1),\"\")","v":""},{"$f":"IFERROR(MID($R138,FIND(CHAR(160),SUBSTITUTE($R138,\"{\",CHAR(160),FU$1)),FIND(CHAR(160),SUBSTITUTE($R138,\"}\",CHAR(160),FU$1))-FIND(CHAR(160),SUBSTITUTE($R138,\"{\",CHAR(160),FU$1))+1),\"\")","v":"{Measure:Quantity}"},{"$f":"IFERROR(MID($R138,FIND(CHAR(160),SUBSTITUTE($R138,\"{\",CHAR(160),FV$1)),FIND(CHAR(160),SUBSTITUTE($R138,\"}\",CHAR(160),FV$1))-FIND(CHAR(160),SUBSTITUTE($R138,\"{\",CHAR(160),FV$1))+1),\"\")","v":"{Dryer CFM}"},{"$f":"IFERROR(MID($U138,FIND(CHAR(160),SUBSTITUTE($U138,\"{\",CHAR(160),FW$1)),FIND(CHAR(160),SUBSTITUTE($U138,\"}\",CHAR(160),FW$1))-FIND(CHAR(160),SUBSTITUTE($U138,\"{\",CHAR(160),FW$1))+1),\"\")","v":"{Factor:WinterCF}"},{"$f":"IFERROR(MID($U138,FIND(CHAR(160),SUBSTITUTE($U138,\"{\",CHAR(160),FX$1)),FIND(CHAR(160),SUBSTITUTE($U138,\"}\",CHAR(160),FX$1))-FIND(CHAR(160),SUBSTITUTE($U138,\"{\",CHAR(160),FX$1))+1),\"\")","v":""},{"$f":"IFERROR(MID($U138,FIND(CHAR(160),SUBSTITUTE($U138,\"{\",CHAR(160),FY$1)),FIND(CHAR(160),SUBSTITUTE($U138,\"}\",CHAR(160),FY$1))-FIND(CHAR(160),SUBSTITUTE($U138,\"{\",CHAR(160),FY$1))+1),\"\")","v":""},{"$f":"IFERROR(MID($U138,FIND(CHAR(160),SUBSTITUTE($U138,\"{\",CHAR(160),FZ$1)),FIND(CHAR(160),SUBSTITUTE($U138,\"}\",CHAR(160),FZ$1))-FIND(CHAR(160),SUBSTITUTE($U138,\"{\",CHAR(160),FZ$1))+1),\"\")","v":""},{"$f":"IFERROR(MID($U138,FIND(CHAR(160),SUBSTITUTE($U138,\"{\",CHAR(160),GA$1)),FIND(CHAR(160),SUBSTITUTE($U138,\"}\",CHAR(160),GA$1))-FIND(CHAR(160),SUBSTITUTE($U138,\"{\",CHAR(160),GA$1))+1),\"\")","v":""},{"$f":"IFERROR(MID($U138,FIND(CHAR(160),SUBSTITUTE($U138,\"{\",CHAR(160),GB$1)),FIND(CHAR(160),SUBSTITUTE($U138,\"}\",CHAR(160),GB$1))-FIND(CHAR(160),SUBSTITUTE($U138,\"{\",CHAR(160),GB$1))+1),\"\")","v":""},{"$f":"IFERROR(MID($U138,FIND(CHAR(160),SUBSTITUTE($U138,\"{\",CHAR(160),GC$1)),FIND(CHAR(160),SUBSTITUTE($U138,\"}\",CHAR(160),GC$1))-FIND(CHAR(160),SUBSTITUTE($U138,\"{\",CHAR(160),GC$1))+1),\"\")","v":""},{"$f":"IFERROR(MID($U138,FIND(CHAR(160),SUBSTITUTE($U138,\"{\",CHAR(160),GD$1)),FIND(CHAR(160),SUBSTITUTE($U138,\"}\",CHAR(160),GD$1))-FIND(CHAR(160),SUBSTITUTE($U138,\"{\",CHAR(160),GD$1))+1),\"\")","v":""},{"$f":"IFERROR(MID($U138,FIND(CHAR(160),SUBSTITUTE($U138,\"{\",CHAR(160),GE$1)),FIND(CHAR(160),SUBSTITUTE($U138,\"}\",CHAR(160),GE$1))-FIND(CHAR(160),SUBSTITUTE($U138,\"{\",CHAR(160),GE$1))+1),\"\")","v":"{Measure:Quantity}"},{"$f":"IFERROR(MID($U138,FIND(CHAR(160),SUBSTITUTE($U138,\"{\",CHAR(160),GF$1)),FIND(CHAR(160),SUBSTITUTE($U138,\"}\",CHAR(160),GF$1))-FIND(CHAR(160),SUBSTITUTE($U138,\"{\",CHAR(160),GF$1))+1),\"\")","v":"{Dryer CFM}"},{"$f":"IFERROR(MID($V138,FIND(CHAR(160),SUBSTITUTE($V138,\"{\",CHAR(160),GG$1)),FIND(CHAR(160),SUBSTITUTE($V138,\"}\",CHAR(160),GG$1))-FIND(CHAR(160),SUBSTITUTE($V138,\"{\",CHAR(160),GG$1))+1),\"\")","v":"{Factor:SummerCF}"},{"$f":"IFERROR(MID($V138,FIND(CHAR(160),SUBSTITUTE($V138,\"{\",CHAR(160),GH$1)),FIND(CHAR(160),SUBSTITUTE($V138,\"}\",CHAR(160),GH$1))-FIND(CHAR(160),SUBSTITUTE($V138,\"{\",CHAR(160),GH$1))+1),\"\")","v":""},{"$f":"IFERROR(MID($V138,FIND(CHAR(160),SUBSTITUTE($V138,\"{\",CHAR(160),GI$1)),FIND(CHAR(160),SUBSTITUTE($V138,\"}\",CHAR(160),GI$1))-FIND(CHAR(160),SUBSTITUTE($V138,\"{\",CHAR(160),GI$1))+1),\"\")","v":""},{"$f":"IFERROR(MID($V138,FIND(CHAR(160),SUBSTITUTE($V138,\"{\",CHAR(160),GJ$1)),FIND(CHAR(160),SUBSTITUTE($V138,\"}\",CHAR(160),GJ$1))-FIND(CHAR(160),SUBSTITUTE($V138,\"{\",CHAR(160),GJ$1))+1),\"\")","v":""},{"$f":"IFERROR(MID($V138,FIND(CHAR(160),SUBSTITUTE($V138,\"{\",CHAR(160),GK$1)),FIND(CHAR(160),SUBSTITUTE($V138,\"}\",CHAR(160),GK$1))-FIND(CHAR(160),SUBSTITUTE($V138,\"{\",CHAR(160),GK$1))+1),\"\")","v":""},{"$f":"IFERROR(MID($V138,FIND(CHAR(160),SUBSTITUTE($V138,\"{\",CHAR(160),GL$1)),FIND(CHAR(160),SUBSTITUTE($V138,\"}\",CHAR(160),GL$1))-FIND(CHAR(160),SUBSTITUTE($V138,\"{\",CHAR(160),GL$1))+1),\"\")","v":""},{"$f":"IFERROR(MID($V138,FIND(CHAR(160),SUBSTITUTE($V138,\"{\",CHAR(160),GM$1)),FIND(CHAR(160),SUBSTITUTE($V138,\"}\",CHAR(160),GM$1))-FIND(CHAR(160),SUBSTITUTE($V138,\"{\",CHAR(160),GM$1))+1),\"\")","v":""},{"$f":"IFERROR(MID($V138,FIND(CHAR(160),SUBSTITUTE($V138,\"{\",CHAR(160),GN$1)),FIND(CHAR(160),SUBSTITUTE($V138,\"}\",CHAR(160),GN$1))-FIND(CHAR(160),SUBSTITUTE($V138,\"{\",CHAR(160),GN$1))+1),\"\")","v":""},{"$f":"IFERROR(MID($V138,FIND(CHAR(160),SUBSTITUTE($V138,\"{\",CHAR(160),GO$1)),FIND(CHAR(160),SUBSTITUTE($V138,\"}\",CHAR(160),GO$1))-FIND(CHAR(160),SUBSTITUTE($V138,\"{\",CHAR(160),GO$1))+1),\"\")","v":"{Measure:Quantity}"},{"$f":"IFERROR(MID($V138,FIND(CHAR(160),SUBSTITUTE($V138,\"{\",CHAR(160),GP$1)),FIND(CHAR(160),SUBSTITUTE($V138,\"}\",CHAR(160),GP$1))-FIND(CHAR(160),SUBSTITUTE($V138,\"{\",CHAR(160),GP$1))+1),\"\")","v":"{Dryer CFM}"},{"$f":"IFERROR(MID($W138,FIND(CHAR(160),SUBSTITUTE($W138,\"{\",CHAR(160),GQ$1)),FIND(CHAR(160),SUBSTITUTE($W138,\"}\",CHAR(160),GQ$1))-FIND(CHAR(160),SUBSTITUTE($W138,\"{\",CHAR(160),GQ$1))+1),\"\")","v":""},{"$f":"IFERROR(MID($W138,FIND(CHAR(160),SUBSTITUTE($W138,\"{\",CHAR(160),GR$1)),FIND(CHAR(160),SUBSTITUTE($W138,\"}\",CHAR(160),GR$1))-FIND(CHAR(160),SUBSTITUTE($W138,\"{\",CHAR(160),GR$1))+1),\"\")","v":""},{"$f":"IFERROR(MID($W138,FIND(CHAR(160),SUBSTITUTE($W138,\"{\",CHAR(160),GS$1)),FIND(CHAR(160),SUBSTITUTE($W138,\"}\",CHAR(160),GS$1))-FIND(CHAR(160),SUBSTITUTE($W138,\"{\",CHAR(160),GS$1))+1),\"\")","v":""},{"$f":"IFERROR(MID($W138,FIND(CHAR(160),SUBSTITUTE($W138,\"{\",CHAR(160),GT$1)),FIND(CHAR(160),SUBSTITUTE($W138,\"}\",CHAR(160),GT$1))-FIND(CHAR(160),SUBSTITUTE($W138,\"{\",CHAR(160),GT$1))+1),\"\")","v":""},{"$f":"IFERROR(MID($W138,FIND(CHAR(160),SUBSTITUTE($W138,\"{\",CHAR(160),GU$1)),FIND(CHAR(160),SUBSTITUTE($W138,\"}\",CHAR(160),GU$1))-FIND(CHAR(160),SUBSTITUTE($W138,\"{\",CHAR(160),GU$1))+1),\"\")","v":""},{"$f":"IFERROR(MID($W138,FIND(CHAR(160),SUBSTITUTE($W138,\"{\",CHAR(160),GV$1)),FIND(CHAR(160),SUBSTITUTE($W138,\"}\",CHAR(160),GV$1))-FIND(CHAR(160),SUBSTITUTE($W138,\"{\",CHAR(160),GV$1))+1),\"\")","v":""},{"$f":"IFERROR(MID($W138,FIND(CHAR(160),SUBSTITUTE($W138,\"{\",CHAR(160),GW$1)),FIND(CHAR(160),SUBSTITUTE($W138,\"}\",CHAR(160),GW$1))-FIND(CHAR(160),SUBSTITUTE($W138,\"{\",CHAR(160),GW$1))+1),\"\")","v":""},{"$f":"IFERROR(MID($W138,FIND(CHAR(160),SUBSTITUTE($W138,\"{\",CHAR(160),GX$1)),FIND(CHAR(160),SUBSTITUTE($W138,\"}\",CHAR(160),GX$1))-FIND(CHAR(160),SUBSTITUTE($W138,\"{\",CHAR(160),GX$1))+1),\"\")","v":""},{"$f":"IFERROR(MID($W138,FIND(CHAR(160),SUBSTITUTE($W138,\"{\",CHAR(160),GY$1)),FIND(CHAR(160),SUBSTITUTE($W138,\"}\",CHAR(160),GY$1))-FIND(CHAR(160),SUBSTITUTE($W138,\"{\",CHAR(160),GY$1))+1),\"\")","v":""},{"$f":"IFERROR(MID($W138,FIND(CHAR(160),SUBSTITUTE($W138,\"{\",CHAR(160),GZ$1)),FIND(CHAR(160),SUBSTITUTE($W138,\"}\",CHAR(160),GZ$1))-FIND(CHAR(160),SUBSTITUTE($W138,\"{\",CHAR(160),GZ$1))+1),\"\")","v":""},{"$f":"IFERROR(MID($X138,FIND(CHAR(160),SUBSTITUTE($X138,\"{\",CHAR(160),HA$1)),FIND(CHAR(160),SUBSTITUTE($X138,\"}\",CHAR(160),HA$1))-FIND(CHAR(160),SUBSTITUTE($X138,\"{\",CHAR(160),HA$1))+1),\"\")","v":""},{"$f":"IFERROR(MID($X138,FIND(CHAR(160),SUBSTITUTE($X138,\"{\",CHAR(160),HB$1)),FIND(CHAR(160),SUBSTITUTE($X138,\"}\",CHAR(160),HB$1))-FIND(CHAR(160),SUBSTITUTE($X138,\"{\",CHAR(160),HB$1))+1),\"\")","v":""},{"$f":"IFERROR(MID($X138,FIND(CHAR(160),SUBSTITUTE($X138,\"{\",CHAR(160),HC$1)),FIND(CHAR(160),SUBSTITUTE($X138,\"}\",CHAR(160),HC$1))-FIND(CHAR(160),SUBSTITUTE($X138,\"{\",CHAR(160),HC$1))+1),\"\")","v":""},{"$f":"IFERROR(MID($X138,FIND(CHAR(160),SUBSTITUTE($X138,\"{\",CHAR(160),HD$1)),FIND(CHAR(160),SUBSTITUTE($X138,\"}\",CHAR(160),HD$1))-FIND(CHAR(160),SUBSTITUTE($X138,\"{\",CHAR(160),HD$1))+1),\"\")","v":""},{"$f":"IFERROR(MID($X138,FIND(CHAR(160),SUBSTITUTE($X138,\"{\",CHAR(160),HE$1)),FIND(CHAR(160),SUBSTITUTE($X138,\"}\",CHAR(160),HE$1))-FIND(CHAR(160),SUBSTITUTE($X138,\"{\",CHAR(160),HE$1))+1),\"\")","v":""},{"$f":"IFERROR(MID($X138,FIND(CHAR(160),SUBSTITUTE($X138,\"{\",CHAR(160),HF$1)),FIND(CHAR(160),SUBSTITUTE($X138,\"}\",CHAR(160),HF$1))-FIND(CHAR(160),SUBSTITUTE($X138,\"{\",CHAR(160),HF$1))+1),\"\")","v":""},{"$f":"IFERROR(MID($X138,FIND(CHAR(160),SUBSTITUTE($X138,\"{\",CHAR(160),HG$1)),FIND(CHAR(160),SUBSTITUTE($X138,\"}\",CHAR(160),HG$1))-FIND(CHAR(160),SUBSTITUTE($X138,\"{\",CHAR(160),HG$1))+1),\"\")","v":""},{"$f":"IFERROR(MID($X138,FIND(CHAR(160),SUBSTITUTE($X138,\"{\",CHAR(160),HH$1)),FIND(CHAR(160),SUBSTITUTE($X138,\"}\",CHAR(160),HH$1))-FIND(CHAR(160),SUBSTITUTE($X138,\"{\",CHAR(160),HH$1))+1),\"\")","v":""},{"$f":"IFERROR(MID($X138,FIND(CHAR(160),SUBSTITUTE($X138,\"{\",CHAR(160),HI$1)),FIND(CHAR(160),SUBSTITUTE($X138,\"}\",CHAR(160),HI$1))-FIND(CHAR(160),SUBSTITUTE($X138,\"{\",CHAR(160),HI$1))+1),\"\")","v":""},{"$f":"IFERROR(MID($X138,FIND(CHAR(160),SUBSTITUTE($X138,\"{\",CHAR(160),HJ$1)),FIND(CHAR(160),SUBSTITUTE($X138,\"}\",CHAR(160),HJ$1))-FIND(CHAR(160),SUBSTITUTE($X138,\"{\",CHAR(160),HJ$1))+1),\"\")","v":""},{"$f":"IFERROR(MID($Y138,FIND(CHAR(160),SUBSTITUTE($Y138,\"{\",CHAR(160),HK$1)),FIND(CHAR(160),SUBSTITUTE($Y138,\"}\",CHAR(160),HK$1))-FIND(CHAR(160),SUBSTITUTE($Y138,\"{\",CHAR(160),HK$1))+1),\"\")","v":""},{"$f":"IFERROR(MID($Y138,FIND(CHAR(160),SUBSTITUTE($Y138,\"{\",CHAR(160),HL$1)),FIND(CHAR(160),SUBSTITUTE($Y138,\"}\",CHAR(160),HL$1))-FIND(CHAR(160),SUBSTITUTE($Y138,\"{\",CHAR(160),HL$1))+1),\"\")","v":""},{"$f":"IFERROR(MID($Y138,FIND(CHAR(160),SUBSTITUTE($Y138,\"{\",CHAR(160),HM$1)),FIND(CHAR(160),SUBSTITUTE($Y138,\"}\",CHAR(160),HM$1))-FIND(CHAR(160),SUBSTITUTE($Y138,\"{\",CHAR(160),HM$1))+1),\"\")","v":""},{"$f":"IFERROR(MID($Y138,FIND(CHAR(160),SUBSTITUTE($Y138,\"{\",CHAR(160),HN$1)),FIND(CHAR(160),SUBSTITUTE($Y138,\"}\",CHAR(160),HN$1))-FIND(CHAR(160),SUBSTITUTE($Y138,\"{\",CHAR(160),HN$1))+1),\"\")","v":""},{"$f":"IFERROR(MID($Y138,FIND(CHAR(160),SUBSTITUTE($Y138,\"{\",CHAR(160),HO$1)),FIND(CHAR(160),SUBSTITUTE($Y138,\"}\",CHAR(160),HO$1))-FIND(CHAR(160),SUBSTITUTE($Y138,\"{\",CHAR(160),HO$1))+1),\"\")","v":""},{"$f":"IFERROR(MID($Y138,FIND(CHAR(160),SUBSTITUTE($Y138,\"{\",CHAR(160),HP$1)),FIND(CHAR(160),SUBSTITUTE($Y138,\"}\",CHAR(160),HP$1))-FIND(CHAR(160),SUBSTITUTE($Y138,\"{\",CHAR(160),HP$1))+1),\"\")","v":""},{"$f":"IFERROR(MID($Y138,FIND(CHAR(160),SUBSTITUTE($Y138,\"{\",CHAR(160),HQ$1)),FIND(CHAR(160),SUBSTITUTE($Y138,\"}\",CHAR(160),HQ$1))-FIND(CHAR(160),SUBSTITUTE($Y138,\"{\",CHAR(160),HQ$1))+1),\"\")","v":""},{"$f":"IFERROR(MID($Y138,FIND(CHAR(160),SUBSTITUTE($Y138,\"{\",CHAR(160),HR$1)),FIND(CHAR(160),SUBSTITUTE($Y138,\"}\",CHAR(160),HR$1))-FIND(CHAR(160),SUBSTITUTE($Y138,\"{\",CHAR(160),HR$1))+1),\"\")","v":""},{"$f":"IFERROR(MID($Y138,FIND(CHAR(160),SUBSTITUTE($Y138,\"{\",CHAR(160),HS$1)),FIND(CHAR(160),SUBSTITUTE($Y138,\"}\",CHAR(160),HS$1))-FIND(CHAR(160),SUBSTITUTE($Y138,\"{\",CHAR(160),HS$1))+1),\"\")","v":""},{"$f":"IFERROR(MID($Y138,FIND(CHAR(160),SUBSTITUTE($Y138,\"{\",CHAR(160),HT$1)),FIND(CHAR(160),SUBSTITUTE($Y138,\"}\",CHAR(160),HT$1))-FIND(CHAR(160),SUBSTITUTE($Y138,\"{\",CHAR(160),HT$1))+1),\"\")","v":""},{"$f":"IFERROR(MID($Z138,FIND(CHAR(160),SUBSTITUTE($Z138,\"{\",CHAR(160),HU$1)),FIND(CHAR(160),SUBSTITUTE($Z138,\"}\",CHAR(160),HU$1))-FIND(CHAR(160),SUBSTITUTE($Z138,\"{\",CHAR(160),HU$1))+1),\"\")","v":""},{"$f":"IFERROR(MID($Z138,FIND(CHAR(160),SUBSTITUTE($Z138,\"{\",CHAR(160),HV$1)),FIND(CHAR(160),SUBSTITUTE($Z138,\"}\",CHAR(160),HV$1))-FIND(CHAR(160),SUBSTITUTE($Z138,\"{\",CHAR(160),HV$1))+1),\"\")","v":""},{"$f":"IFERROR(MID($Z138,FIND(CHAR(160),SUBSTITUTE($Z138,\"{\",CHAR(160),HW$1)),FIND(CHAR(160),SUBSTITUTE($Z138,\"}\",CHAR(160),HW$1))-FIND(CHAR(160),SUBSTITUTE($Z138,\"{\",CHAR(160),HW$1))+1),\"\")","v":""},{"$f":"IFERROR(MID($Z138,FIND(CHAR(160),SUBSTITUTE($Z138,\"{\",CHAR(160),HX$1)),FIND(CHAR(160),SUBSTITUTE($Z138,\"}\",CHAR(160),HX$1))-FIND(CHAR(160),SUBSTITUTE($Z138,\"{\",CHAR(160),HX$1))+1),\"\")","v":""},{"$f":"IFERROR(MID($Z138,FIND(CHAR(160),SUBSTITUTE($Z138,\"{\",CHAR(160),HY$1)),FIND(CHAR(160),SUBSTITUTE($Z138,\"}\",CHAR(160),HY$1))-FIND(CHAR(160),SUBSTITUTE($Z138,\"{\",CHAR(160),HY$1))+1),\"\")","v":""},{"$f":"IFERROR(MID($Z138,FIND(CHAR(160),SUBSTITUTE($Z138,\"{\",CHAR(160),HZ$1)),FIND(CHAR(160),SUBSTITUTE($Z138,\"}\",CHAR(160),HZ$1))-FIND(CHAR(160),SUBSTITUTE($Z138,\"{\",CHAR(160),HZ$1))+1),\"\")","v":""},{"$f":"IFERROR(MID($Z138,FIND(CHAR(160),SUBSTITUTE($Z138,\"{\",CHAR(160),IA$1)),FIND(CHAR(160),SUBSTITUTE($Z138,\"}\",CHAR(160),IA$1))-FIND(CHAR(160),SUBSTITUTE($Z138,\"{\",CHAR(160),IA$1))+1),\"\")","v":""},{"$f":"IFERROR(MID($Z138,FIND(CHAR(160),SUBSTITUTE($Z138,\"{\",CHAR(160),IB$1)),FIND(CHAR(160),SUBSTITUTE($Z138,\"}\",CHAR(160),IB$1))-FIND(CHAR(160),SUBSTITUTE($Z138,\"{\",CHAR(160),IB$1))+1),\"\")","v":""},{"$f":"IFERROR(MID($Z138,FIND(CHAR(160),SUBSTITUTE($Z138,\"{\",CHAR(160),IC$1)),FIND(CHAR(160),SUBSTITUTE($Z138,\"}\",CHAR(160),IC$1))-FIND(CHAR(160),SUBSTITUTE($Z138,\"{\",CHAR(160),IC$1))+1),\"\")","v":""},{"$f":"IFERROR(MID($Z138,FIND(CHAR(160),SUBSTITUTE($Z138,\"{\",CHAR(160),ID$1)),FIND(CHAR(160),SUBSTITUTE($Z138,\"}\",CHAR(160),ID$1))-FIND(CHAR(160),SUBSTITUTE($Z138,\"{\",CHAR(160),ID$1))+1),\"\")","v":""},{"$f":"IFERROR(MID($AA138,FIND(CHAR(160),SUBSTITUTE($AA138,\"{\",CHAR(160),IE$1)),FIND(CHAR(160),SUBSTITUTE($AA138,\"}\",CHAR(160),IE$1))-FIND(CHAR(160),SUBSTITUTE($AA138,\"{\",CHAR(160),IE$1))+1),\"\")","v":""},{"$f":"IFERROR(MID($AA138,FIND(CHAR(160),SUBSTITUTE($AA138,\"{\",CHAR(160),IF$1)),FIND(CHAR(160),SUBSTITUTE($AA138,\"}\",CHAR(160),IF$1))-FIND(CHAR(160),SUBSTITUTE($AA138,\"{\",CHAR(160),IF$1))+1),\"\")","v":""},{"$f":"IFERROR(MID($AA138,FIND(CHAR(160),SUBSTITUTE($AA138,\"{\",CHAR(160),IG$1)),FIND(CHAR(160),SUBSTITUTE($AA138,\"}\",CHAR(160),IG$1))-FIND(CHAR(160),SUBSTITUTE($AA138,\"{\",CHAR(160),IG$1))+1),\"\")","v":""},{"$f":"IFERROR(MID($AA138,FIND(CHAR(160),SUBSTITUTE($AA138,\"{\",CHAR(160),IH$1)),FIND(CHAR(160),SUBSTITUTE($AA138,\"}\",CHAR(160),IH$1))-FIND(CHAR(160),SUBSTITUTE($AA138,\"{\",CHAR(160),IH$1))+1),\"\")","v":""},{"$f":"IFERROR(MID($AA138,FIND(CHAR(160),SUBSTITUTE($AA138,\"{\",CHAR(160),II$1)),FIND(CHAR(160),SUBSTITUTE($AA138,\"}\",CHAR(160),II$1))-FIND(CHAR(160),SUBSTITUTE($AA138,\"{\",CHAR(160),II$1))+1),\"\")","v":""},{"$f":"IFERROR(MID($AA138,FIND(CHAR(160),SUBSTITUTE($AA138,\"{\",CHAR(160),IJ$1)),FIND(CHAR(160),SUBSTITUTE($AA138,\"}\",CHAR(160),IJ$1))-FIND(CHAR(160),SUBSTITUTE($AA138,\"{\",CHAR(160),IJ$1))+1),\"\")","v":""},{"$f":"IFERROR(MID($AA138,FIND(CHAR(160),SUBSTITUTE($AA138,\"{\",CHAR(160),IK$1)),FIND(CHAR(160),SUBSTITUTE($AA138,\"}\",CHAR(160),IK$1))-FIND(CHAR(160),SUBSTITUTE($AA138,\"{\",CHAR(160),IK$1))+1),\"\")","v":""},{"$f":"IFERROR(MID($AA138,FIND(CHAR(160),SUBSTITUTE($AA138,\"{\",CHAR(160),IL$1)),FIND(CHAR(160),SUBSTITUTE($AA138,\"}\",CHAR(160),IL$1))-FIND(CHAR(160),SUBSTITUTE($AA138,\"{\",CHAR(160),IL$1))+1),\"\")","v":""},{"$f":"IFERROR(MID($AA138,FIND(CHAR(160),SUBSTITUTE($AA138,\"{\",CHAR(160),IM$1)),FIND(CHAR(160),SUBSTITUTE($AA138,\"}\",CHAR(160),IM$1))-FIND(CHAR(160),SUBSTITUTE($AA138,\"{\",CHAR(160),IM$1))+1),\"\")","v":""},{"$f":"IFERROR(MID($AA138,FIND(CHAR(160),SUBSTITUTE($AA138,\"{\",CHAR(160),IN$1)),FIND(CHAR(160),SUBSTITUTE($AA138,\"}\",CHAR(160),IN$1))-FIND(CHAR(160),SUBSTITUTE($AA138,\"{\",CHAR(160),IN$1))+1),\"\")","v":""},{"$f":"IFERROR(MID($AB138,FIND(CHAR(160),SUBSTITUTE($AB138,\"{\",CHAR(160),IO$1)),FIND(CHAR(160),SUBSTITUTE($AB138,\"}\",CHAR(160),IO$1))-FIND(CHAR(160),SUBSTITUTE($AB138,\"{\",CHAR(160),IO$1))+1),\"\")","v":""},{"$f":"IFERROR(MID($AB138,FIND(CHAR(160),SUBSTITUTE($AB138,\"{\",CHAR(160),IP$1)),FIND(CHAR(160),SUBSTITUTE($AB138,\"}\",CHAR(160),IP$1))-FIND(CHAR(160),SUBSTITUTE($AB138,\"{\",CHAR(160),IP$1))+1),\"\")","v":""},{"$f":"IFERROR(MID($AB138,FIND(CHAR(160),SUBSTITUTE($AB138,\"{\",CHAR(160),IQ$1)),FIND(CHAR(160),SUBSTITUTE($AB138,\"}\",CHAR(160),IQ$1))-FIND(CHAR(160),SUBSTITUTE($AB138,\"{\",CHAR(160),IQ$1))+1),\"\")","v":""},{"$f":"IFERROR(MID($AB138,FIND(CHAR(160),SUBSTITUTE($AB138,\"{\",CHAR(160),IR$1)),FIND(CHAR(160),SUBSTITUTE($AB138,\"}\",CHAR(160),IR$1))-FIND(CHAR(160),SUBSTITUTE($AB138,\"{\",CHAR(160),IR$1))+1),\"\")","v":""},{"$f":"IFERROR(MID($AB138,FIND(CHAR(160),SUBSTITUTE($AB138,\"{\",CHAR(160),IS$1)),FIND(CHAR(160),SUBSTITUTE($AB138,\"}\",CHAR(160),IS$1))-FIND(CHAR(160),SUBSTITUTE($AB138,\"{\",CHAR(160),IS$1))+1),\"\")","v":""},{"$f":"IFERROR(MID($AB138,FIND(CHAR(160),SUBSTITUTE($AB138,\"{\",CHAR(160),IT$1)),FIND(CHAR(160),SUBSTITUTE($AB138,\"}\",CHAR(160),IT$1))-FIND(CHAR(160),SUBSTITUTE($AB138,\"{\",CHAR(160),IT$1))+1),\"\")","v":""},{"$f":"IFERROR(MID($AB138,FIND(CHAR(160),SUBSTITUTE($AB138,\"{\",CHAR(160),IU$1)),FIND(CHAR(160),SUBSTITUTE($AB138,\"}\",CHAR(160),IU$1))-FIND(CHAR(160),SUBSTITUTE($AB138,\"{\",CHAR(160),IU$1))+1),\"\")","v":""},{"$f":"IFERROR(MID($AB138,FIND(CHAR(160),SUBSTITUTE($AB138,\"{\",CHAR(160),IV$1)),FIND(CHAR(160),SUBSTITUTE($AB138,\"}\",CHAR(160),IV$1))-FIND(CHAR(160),SUBSTITUTE($AB138,\"{\",CHAR(160),IV$1))+1),\"\")","v":""},{"$f":"IFERROR(MID($AB138,FIND(CHAR(160),SUBSTITUTE($AB138,\"{\",CHAR(160),IW$1)),FIND(CHAR(160),SUBSTITUTE($AB138,\"}\",CHAR(160),IW$1))-FIND(CHAR(160),SUBSTITUTE($AB138,\"{\",CHAR(160),IW$1))+1),\"\")","v":""},{"$f":"IFERROR(MID($AB138,FIND(CHAR(160),SUBSTITUTE($AB138,\"{\",CHAR(160),IX$1)),FIND(CHAR(160),SUBSTITUTE($AB138,\"}\",CHAR(160),IX$1))-FIND(CHAR(160),SUBSTITUTE($AB138,\"{\",CHAR(160),IX$1))+1),\"\")","v":""},null,{"$f":"10-COUNTIF(DU138:ED138,\"\")","v":4}]
["C&I Prescriptive Compressed Air Solutions","Fast Track Compressor - C4 - Compressor HP 60 and above","C - C4","2021-07-01","2022-06-30","Calculated","{Measure:Quantity}*{Proposed Compressor HP}*164",0,"Calculated","if({Measure:Quantity}*{Proposed Compressor HP}*110>10000,10000,{Measure:Quantity}*{Proposed Compressor HP}*110)",0,"2017-07-01","2022-06-30","Calculated","{Measure:Quantity} *{Proposed Compressor HP} * 0.1861 * {Weekly Hrs of Operation} * {Weeks Per Year}",1E-4,null,"{Measure:Quantity} *{Proposed Compressor HP} * 0.1861",null,null,"{Measure:Quantity} *{Proposed Compressor HP} * 0.1861 * {Factor:WinterCF}","{Measure:Quantity} *{Proposed Compressor HP} * 0.1861 * {Factor:SummerCF}",null,null,null,null,null,null,"2017-07-01","2022-06-30",15,0.7,0.91100000000000003,0.30399999999999999,0.36099999999999999,0.156,0.17899999999999999,1,1.1220000000000001,1,0.52,1.6E-2,null,{"$f":"DU139","v":"{Measure:Quantity}"},1,{"$f":"DV139","v":"{Proposed Compressor HP}"},60,{"$f":"DW139","v":"{Weekly Hrs of Operation}"},50,{"$f":"DX139","v":"{Weeks Per Year}"},50,{"$f":"DY139","v":""},null,{"$f":"DZ139","v":""},null,{"$f":"EA139","v":""},null,{"$f":"EB139","v":""},null,{"$f":"EC139","v":""},null,{"$f":"ED139","v":""},null,{"$f":"AS139 *AU139 * 0.1861 * AW139 * AY139","v":27914.999999999996},{"$f":"0.0001","v":1E-4},0,{"$f":"AS139 *AU139 * 0.1861","v":11.165999999999999},0,0,{"$f":"AS139 *AU139 * 0.1861 * AF139","v":7.8161999999999985},{"$f":"AS139 *AU139 * 0.1861 * AG139","v":10.172225999999998},0,0,0,0,0,0,null,"Com","Default DR",{"$f":"Benefits(BL139,BR139,BS139,BT139,BU139,BV139,BW139,BX139,BY139,BZ139,AE139,AH139,AI139,AJ139,AK139,AL139,AM139,AN139,AO139,AP139,CA139,CB139)","v":41843.14296399193},48585.409806094642,0,0,0,0,0,0,0,{"$f":"SUMPRODUCT(CC139:CK139,--(CC139:CK139>0))","v":90428.552770086564},{"$f":"-SUMPRODUCT(CC139:CK139,--(CC139:CK139<0))","v":0},null,{"$f":"AS139*AU139*164","v":9840},null,null,{"$f":"CM139+CO139","v":9840},{"$f":"IF(NetOrGross=\"Net\",(1-AO139+AP139),1)","v":1},{"$f":"(SUMPRODUCT(CC139:CJ139,--(CC139:CJ139>0))+CN139)*CS139/((-SUMPRODUCT(CC139:CJ139,--(CC139:CJ139<0))+MAX(CO139,CV139)+CP139+CQ139)*CS139+IF(FRIncentives=\"Yes\",CV139*(1-CS139),0))","v":9.1898935741957892},4,{"$f":"IF(AS139*AU139*110>10000,10000,AS139*AU139*110)","v":6600},null,"Electric","y",null,{"$f":"IF(F139=\"Manual Entry\",\"Manual\",IF(G139=\"\",0,\"X=\"&SUBSTITUTE(SUBSTITUTE(SUBSTITUTE(SUBSTITUTE(SUBSTITUTE(SUBSTITUTE(SUBSTITUTE(SUBSTITUTE(SUBSTITUTE(SUBSTITUTE(SUBSTITUTE(SUBSTITUTE(G139,$ED139,$ED$2&ROW($ED139)),$EC139,$EC$2&ROW($EC139)),$EB139,$EB$2&ROW($EB139)),$EA139,$EA$2&ROW($EA139)),$DZ139,$DZ$2&ROW($DZ139)),$DY139,$DY$2&ROW($DY139)),$DX139,$DX$2&ROW($DX139)),$DW139,$DW$2&ROW($DW139)),$DV139,$DV$2&ROW($DV139)),$DU139,$DU$2&ROW($DU139)),$DT139,$DT$2&ROW($DT139)),$DS139,$DS$2&ROW($DS139))))","v":"X=AS139*AU139*164"},{"$f":"IF(I139=\"Manual Entry\",\"Manual\",IF(J139=\"\",0,\"X=\"&SUBSTITUTE(SUBSTITUTE(SUBSTITUTE(SUBSTITUTE(SUBSTITUTE(SUBSTITUTE(SUBSTITUTE(SUBSTITUTE(SUBSTITUTE(SUBSTITUTE(SUBSTITUTE(SUBSTITUTE(J139,$ED139,$ED$2&ROW($ED139)),$EC139,$EC$2&ROW($EC139)),$EB139,$EB$2&ROW($EB139)),$EA139,$EA$2&ROW($EA139)),$DZ139,$DZ$2&ROW($DZ139)),$DY139,$DY$2&ROW($DY139)),$DX139,$DX$2&ROW($DX139)),$DW139,$DW$2&ROW($DW139)),$DV139,$DV$2&ROW($DV139)),$DU139,$DU$2&ROW($DU139)),$DT139,$DT$2&ROW($DT139)),$DS139,$DS$2&ROW($DS139))))","v":"X=if(AS139*AU139*110>10000,10000,AS139*AU139*110)"},{"$f":"IF(O139=\"\",0,\"X=\"&SUBSTITUTE(SUBSTITUTE(SUBSTITUTE(SUBSTITUTE(SUBSTITUTE(SUBSTITUTE(SUBSTITUTE(SUBSTITUTE(SUBSTITUTE(SUBSTITUTE(SUBSTITUTE(SUBSTITUTE(O139,$ED139,$ED$2&ROW($ED139)),$EC139,$EC$2&ROW($EC139)),$EB139,$EB$2&ROW($EB139)),$EA139,$EA$2&ROW($EA139)),$DZ139,$DZ$2&ROW($DZ139)),$DY139,$DY$2&ROW($DY139)),$DX139,$DX$2&ROW($DX139)),$DW139,$DW$2&ROW($DW139)),$DV139,$DV$2&ROW($DV139)),$DU139,$DU$2&ROW($DU139)),$DT139,$DT$2&ROW($DT139)),$DS139,$DS$2&ROW($DS139)))","v":"X=AS139 *AU139 * 0.1861 * AW139 * AY139"},{"$f":"IF(P139=\"\",0,\"X=\"&SUBSTITUTE(SUBSTITUTE(SUBSTITUTE(SUBSTITUTE(SUBSTITUTE(SUBSTITUTE(SUBSTITUTE(SUBSTITUTE(SUBSTITUTE(SUBSTITUTE(SUBSTITUTE(SUBSTITUTE(P139,$ED139,$ED$2&ROW($ED139)),$EC139,$EC$2&ROW($EC139)),$EB139,$EB$2&ROW($EB139)),$EA139,$EA$2&ROW($EA139)),$DZ139,$DZ$2&ROW($DZ139)),$DY139,$DY$2&ROW($DY139)),$DX139,$DX$2&ROW($DX139)),$DW139,$DW$2&ROW($DW139)),$DV139,$DV$2&ROW($DV139)),$DU139,$DU$2&ROW($DU139)),$DT139,$DT$2&ROW($DT139)),$DS139,$DS$2&ROW($DS139)))","v":"X=0.0001"},{"$f":"IF(Q139=\"\",0,\"X=\"&SUBSTITUTE(SUBSTITUTE(SUBSTITUTE(SUBSTITUTE(SUBSTITUTE(SUBSTITUTE(SUBSTITUTE(SUBSTITUTE(SUBSTITUTE(SUBSTITUTE(SUBSTITUTE(SUBSTITUTE(Q139,$ED139,$ED$2&ROW($ED139)),$EC139,$EC$2&ROW($EC139)),$EB139,$EB$2&ROW($EB139)),$EA139,$EA$2&ROW($EA139)),$DZ139,$DZ$2&ROW($DZ139)),$DY139,$DY$2&ROW($DY139)),$DX139,$DX$2&ROW($DX139)),$DW139,$DW$2&ROW($DW139)),$DV139,$DV$2&ROW($DV139)),$DU139,$DU$2&ROW($DU139)),$DT139,$DT$2&ROW($DT139)),$DS139,$DS$2&ROW($DS139)))","v":0},{"$f":"IF(R139=\"\",0,\"X=\"&SUBSTITUTE(SUBSTITUTE(SUBSTITUTE(SUBSTITUTE(SUBSTITUTE(SUBSTITUTE(SUBSTITUTE(SUBSTITUTE(SUBSTITUTE(SUBSTITUTE(SUBSTITUTE(SUBSTITUTE(R139,$ED139,$ED$2&ROW($ED139)),$EC139,$EC$2&ROW($EC139)),$EB139,$EB$2&ROW($EB139)),$EA139,$EA$2&ROW($EA139)),$DZ139,$DZ$2&ROW($DZ139)),$DY139,$DY$2&ROW($DY139)),$DX139,$DX$2&ROW($DX139)),$DW139,$DW$2&ROW($DW139)),$DV139,$DV$2&ROW($DV139)),$DU139,$DU$2&ROW($DU139)),$DT139,$DT$2&ROW($DT139)),$DS139,$DS$2&ROW($DS139)))","v":"X=AS139 *AU139 * 0.1861"},{"$f":"IF(S139=\"\",0,\"X=\"&SUBSTITUTE(SUBSTITUTE(SUBSTITUTE(SUBSTITUTE(SUBSTITUTE(SUBSTITUTE(SUBSTITUTE(SUBSTITUTE(SUBSTITUTE(SUBSTITUTE(SUBSTITUTE(SUBSTITUTE(S139,$ED139,$ED$2&ROW($ED139)),$EC139,$EC$2&ROW($EC139)),$EB139,$EB$2&ROW($EB139)),$EA139,$EA$2&ROW($EA139)),$DZ139,$DZ$2&ROW($DZ139)),$DY139,$DY$2&ROW($DY139)),$DX139,$DX$2&ROW($DX139)),$DW139,$DW$2&ROW($DW139)),$DV139,$DV$2&ROW($DV139)),$DU139,$DU$2&ROW($DU139)),$DT139,$DT$2&ROW($DT139)),$DS139,$DS$2&ROW($DS139)))","v":0},{"$f":"IF(T139=\"\",0,\"X=\"&SUBSTITUTE(SUBSTITUTE(SUBSTITUTE(SUBSTITUTE(SUBSTITUTE(SUBSTITUTE(SUBSTITUTE(SUBSTITUTE(SUBSTITUTE(SUBSTITUTE(SUBSTITUTE(SUBSTITUTE(T139,$ED139,$ED$2&ROW($ED139)),$EC139,$EC$2&ROW($EC139)),$EB139,$EB$2&ROW($EB139)),$EA139,$EA$2&ROW($EA139)),$DZ139,$DZ$2&ROW($DZ139)),$DY139,$DY$2&ROW($DY139)),$DX139,$DX$2&ROW($DX139)),$DW139,$DW$2&ROW($DW139)),$DV139,$DV$2&ROW($DV139)),$DU139,$DU$2&ROW($DU139)),$DT139,$DT$2&ROW($DT139)),$DS139,$DS$2&ROW($DS139)))","v":0},{"$f":"IF(U139=\"\",0,\"X=\"&SUBSTITUTE(SUBSTITUTE(SUBSTITUTE(SUBSTITUTE(SUBSTITUTE(SUBSTITUTE(SUBSTITUTE(SUBSTITUTE(SUBSTITUTE(SUBSTITUTE(SUBSTITUTE(SUBSTITUTE(U139,$ED139,$ED$2&ROW($ED139)),$EC139,$EC$2&ROW($EC139)),$EB139,$EB$2&ROW($EB139)),$EA139,$EA$2&ROW($EA139)),$DZ139,$DZ$2&ROW($DZ139)),$DY139,$DY$2&ROW($DY139)),$DX139,$DX$2&ROW($DX139)),$DW139,$DW$2&ROW($DW139)),$DV139,$DV$2&ROW($DV139)),$DU139,$DU$2&ROW($DU139)),$DT139,$DT$2&ROW($DT139)),$DS139,$DS$2&ROW($DS139)))","v":"X=AS139 *AU139 * 0.1861 * AF139"},{"$f":"IF(V139=\"\",0,\"X=\"&SUBSTITUTE(SUBSTITUTE(SUBSTITUTE(SUBSTITUTE(SUBSTITUTE(SUBSTITUTE(SUBSTITUTE(SUBSTITUTE(SUBSTITUTE(SUBSTITUTE(SUBSTITUTE(SUBSTITUTE(V139,$ED139,$ED$2&ROW($ED139)),$EC139,$EC$2&ROW($EC139)),$EB139,$EB$2&ROW($EB139)),$EA139,$EA$2&ROW($EA139)),$DZ139,$DZ$2&ROW($DZ139)),$DY139,$DY$2&ROW($DY139)),$DX139,$DX$2&ROW($DX139)),$DW139,$DW$2&ROW($DW139)),$DV139,$DV$2&ROW($DV139)),$DU139,$DU$2&ROW($DU139)),$DT139,$DT$2&ROW($DT139)),$DS139,$DS$2&ROW($DS139)))","v":"X=AS139 *AU139 * 0.1861 * AG139"},{"$f":"IF(W139=\"\",0,\"X=\"&SUBSTITUTE(SUBSTITUTE(SUBSTITUTE(SUBSTITUTE(SUBSTITUTE(SUBSTITUTE(SUBSTITUTE(SUBSTITUTE(SUBSTITUTE(SUBSTITUTE(SUBSTITUTE(SUBSTITUTE(W139,$ED139,$ED$2&ROW($ED139)),$EC139,$EC$2&ROW($EC139)),$EB139,$EB$2&ROW($EB139)),$EA139,$EA$2&ROW($EA139)),$DZ139,$DZ$2&ROW($DZ139)),$DY139,$DY$2&ROW($DY139)),$DX139,$DX$2&ROW($DX139)),$DW139,$DW$2&ROW($DW139)),$DV139,$DV$2&ROW($DV139)),$DU139,$DU$2&ROW($DU139)),$DT139,$DT$2&ROW($DT139)),$DS139,$DS$2&ROW($DS139)))","v":0},{"$f":"IF(X139=\"\",0,\"X=\"&SUBSTITUTE(SUBSTITUTE(SUBSTITUTE(SUBSTITUTE(SUBSTITUTE(SUBSTITUTE(SUBSTITUTE(SUBSTITUTE(SUBSTITUTE(SUBSTITUTE(SUBSTITUTE(SUBSTITUTE(X139,$ED139,$ED$2&ROW($ED139)),$EC139,$EC$2&ROW($EC139)),$EB139,$EB$2&ROW($EB139)),$EA139,$EA$2&ROW($EA139)),$DZ139,$DZ$2&ROW($DZ139)),$DY139,$DY$2&ROW($DY139)),$DX139,$DX$2&ROW($DX139)),$DW139,$DW$2&ROW($DW139)),$DV139,$DV$2&ROW($DV139)),$DU139,$DU$2&ROW($DU139)),$DT139,$DT$2&ROW($DT139)),$DS139,$DS$2&ROW($DS139)))","v":0},{"$f":"IF(Y139=\"\",0,\"X=\"&SUBSTITUTE(SUBSTITUTE(SUBSTITUTE(SUBSTITUTE(SUBSTITUTE(SUBSTITUTE(SUBSTITUTE(SUBSTITUTE(SUBSTITUTE(SUBSTITUTE(SUBSTITUTE(SUBSTITUTE(Y139,$ED139,$ED$2&ROW($ED139)),$EC139,$EC$2&ROW($EC139)),$EB139,$EB$2&ROW($EB139)),$EA139,$EA$2&ROW($EA139)),$DZ139,$DZ$2&ROW($DZ139)),$DY139,$DY$2&ROW($DY139)),$DX139,$DX$2&ROW($DX139)),$DW139,$DW$2&ROW($DW139)),$DV139,$DV$2&ROW($DV139)),$DU139,$DU$2&ROW($DU139)),$DT139,$DT$2&ROW($DT139)),$DS139,$DS$2&ROW($DS139)))","v":0},{"$f":"IF(Z139=\"\",0,\"X=\"&SUBSTITUTE(SUBSTITUTE(SUBSTITUTE(SUBSTITUTE(SUBSTITUTE(SUBSTITUTE(SUBSTITUTE(SUBSTITUTE(SUBSTITUTE(SUBSTITUTE(SUBSTITUTE(SUBSTITUTE(Z139,$ED139,$ED$2&ROW($ED139)),$EC139,$EC$2&ROW($EC139)),$EB139,$EB$2&ROW($EB139)),$EA139,$EA$2&ROW($EA139)),$DZ139,$DZ$2&ROW($DZ139)),$DY139,$DY$2&ROW($DY139)),$DX139,$DX$2&ROW($DX139)),$DW139,$DW$2&ROW($DW139)),$DV139,$DV$2&ROW($DV139)),$DU139,$DU$2&ROW($DU139)),$DT139,$DT$2&ROW($DT139)),$DS139,$DS$2&ROW($DS139)))","v":0},{"$f":"IF(AA139=\"\",0,\"X=\"&SUBSTITUTE(SUBSTITUTE(SUBSTITUTE(SUBSTITUTE(SUBSTITUTE(SUBSTITUTE(SUBSTITUTE(SUBSTITUTE(SUBSTITUTE(SUBSTITUTE(SUBSTITUTE(SUBSTITUTE(AA139,$ED139,$ED$2&ROW($ED139)),$EC139,$EC$2&ROW($EC139)),$EB139,$EB$2&ROW($EB139)),$EA139,$EA$2&ROW($EA139)),$DZ139,$DZ$2&ROW($DZ139)),$DY139,$DY$2&ROW($DY139)),$DX139,$DX$2&ROW($DX139)),$DW139,$DW$2&ROW($DW139)),$DV139,$DV$2&ROW($DV139)),$DU139,$DU$2&ROW($DU139)),$DT139,$DT$2&ROW($DT139)),$DS139,$DS$2&ROW($DS139)))","v":0},{"$f":"IF(AB139=\"\",0,\"X=\"&SUBSTITUTE(SUBSTITUTE(SUBSTITUTE(SUBSTITUTE(SUBSTITUTE(SUBSTITUTE(SUBSTITUTE(SUBSTITUTE(SUBSTITUTE(SUBSTITUTE(SUBSTITUTE(SUBSTITUTE(AB139,$ED139,$ED$2&ROW($ED139)),$EC139,$EC$2&ROW($EC139)),$EB139,$EB$2&ROW($EB139)),$EA139,$EA$2&ROW($EA139)),$DZ139,$DZ$2&ROW($DZ139)),$DY139,$DY$2&ROW($DY139)),$DX139,$DX$2&ROW($DX139)),$DW139,$DW$2&ROW($DW139)),$DV139,$DV$2&ROW($DV139)),$DU139,$DU$2&ROW($DU139)),$DT139,$DT$2&ROW($DT139)),$DS139,$DS$2&ROW($DS139)))","v":0},null,null,"{Factor:WinterCF}","{Factor:SummerCF}",{"$f":"IFERROR(INDEX($EG139:$IV139,MATCH(0,COUNTIF($DR139:DT139,$EG139:$IV139),0)),\"\")","v":"{Measure:Quantity}"},{"$f":"IFERROR(INDEX($EG139:$IV139,MATCH(0,COUNTIF($DR139:DU139,$EG139:$IV139),0)),\"\")","v":"{Proposed Compressor HP}"},{"$f":"IFERROR(INDEX($EG139:$IV139,MATCH(0,COUNTIF($DR139:DV139,$EG139:$IV139),0)),\"\")","v":"{Weekly Hrs of Operation}"},{"$f":"IFERROR(INDEX($EG139:$IV139,MATCH(0,COUNTIF($DR139:DW139,$EG139:$IV139),0)),\"\")","v":"{Weeks Per Year}"},{"$f":"IFERROR(INDEX($EG139:$IV139,MATCH(0,COUNTIF($DR139:DX139,$EG139:$IV139),0)),\"\")","v":""},{"$f":"IFERROR(INDEX($EG139:$IV139,MATCH(0,COUNTIF($DR139:DY139,$EG139:$IV139),0)),\"\")","v":""},{"$f":"IFERROR(INDEX($EG139:$IV139,MATCH(0,COUNTIF($DR139:DZ139,$EG139:$IV139),0)),\"\")","v":""},{"$f":"IFERROR(INDEX($EG139:$IV139,MATCH(0,COUNTIF($DR139:EA139,$EG139:$IV139),0)),\"\")","v":""},{"$f":"IFERROR(INDEX($EG139:$IV139,MATCH(0,COUNTIF($DR139:EB139,$EG139:$IV139),0)),\"\")","v":""},{"$f":"IFERROR(INDEX($EG139:$IV139,MATCH(0,COUNTIF($DR139:EC139,$EG139:$IV139),0)),\"\")","v":""},null,null,{"$f":"IFERROR(MID($G139,FIND(CHAR(160),SUBSTITUTE($G139,\"{\",CHAR(160),EG$1)),FIND(CHAR(160),SUBSTITUTE($G139,\"}\",CHAR(160),EG$1))-FIND(CHAR(160),SUBSTITUTE($G139,\"{\",CHAR(160),EG$1))+1),\"\")","v":"{Measure:Quantity}"},{"$f":"IFERROR(MID($G139,FIND(CHAR(160),SUBSTITUTE($G139,\"{\",CHAR(160),EH$1)),FIND(CHAR(160),SUBSTITUTE($G139,\"}\",CHAR(160),EH$1))-FIND(CHAR(160),SUBSTITUTE($G139,\"{\",CHAR(160),EH$1))+1),\"\")","v":"{Proposed Compressor HP}"},{"$f":"IFERROR(MID($G139,FIND(CHAR(160),SUBSTITUTE($G139,\"{\",CHAR(160),EI$1)),FIND(CHAR(160),SUBSTITUTE($G139,\"}\",CHAR(160),EI$1))-FIND(CHAR(160),SUBSTITUTE($G139,\"{\",CHAR(160),EI$1))+1),\"\")","v":""},{"$f":"IFERROR(MID($G139,FIND(CHAR(160),SUBSTITUTE($G139,\"{\",CHAR(160),EJ$1)),FIND(CHAR(160),SUBSTITUTE($G139,\"}\",CHAR(160),EJ$1))-FIND(CHAR(160),SUBSTITUTE($G139,\"{\",CHAR(160),EJ$1))+1),\"\")","v":""},{"$f":"IFERROR(MID($G139,FIND(CHAR(160),SUBSTITUTE($G139,\"{\",CHAR(160),EK$1)),FIND(CHAR(160),SUBSTITUTE($G139,\"}\",CHAR(160),EK$1))-FIND(CHAR(160),SUBSTITUTE($G139,\"{\",CHAR(160),EK$1))+1),\"\")","v":""},{"$f":"IFERROR(MID($G139,FIND(CHAR(160),SUBSTITUTE($G139,\"{\",CHAR(160),EL$1)),FIND(CHAR(160),SUBSTITUTE($G139,\"}\",CHAR(160),EL$1))-FIND(CHAR(160),SUBSTITUTE($G139,\"{\",CHAR(160),EL$1))+1),\"\")","v":""},{"$f":"IFERROR(MID($G139,FIND(CHAR(160),SUBSTITUTE($G139,\"{\",CHAR(160),EM$1)),FIND(CHAR(160),SUBSTITUTE($G139,\"}\",CHAR(160),EM$1))-FIND(CHAR(160),SUBSTITUTE($G139,\"{\",CHAR(160),EM$1))+1),\"\")","v":""},{"$f":"IFERROR(MID($G139,FIND(CHAR(160),SUBSTITUTE($G139,\"{\",CHAR(160),EN$1)),FIND(CHAR(160),SUBSTITUTE($G139,\"}\",CHAR(160),EN$1))-FIND(CHAR(160),SUBSTITUTE($G139,\"{\",CHAR(160),EN$1))+1),\"\")","v":""},{"$f":"IFERROR(MID($G139,FIND(CHAR(160),SUBSTITUTE($G139,\"{\",CHAR(160),EO$1)),FIND(CHAR(160),SUBSTITUTE($G139,\"}\",CHAR(160),EO$1))-FIND(CHAR(160),SUBSTITUTE($G139,\"{\",CHAR(160),EO$1))+1),\"\")","v":""},{"$f":"IFERROR(MID($G139,FIND(CHAR(160),SUBSTITUTE($G139,\"{\",CHAR(160),EP$1)),FIND(CHAR(160),SUBSTITUTE($G139,\"}\",CHAR(160),EP$1))-FIND(CHAR(160),SUBSTITUTE($G139,\"{\",CHAR(160),EP$1))+1),\"\")","v":""},{"$f":"IFERROR(MID($J139,FIND(CHAR(160),SUBSTITUTE($J139,\"{\",CHAR(160),EQ$1)),FIND(CHAR(160),SUBSTITUTE($J139,\"}\",CHAR(160),EQ$1))-FIND(CHAR(160),SUBSTITUTE($J139,\"{\",CHAR(160),EQ$1))+1),\"\")","v":"{Measure:Quantity}"},{"$f":"IFERROR(MID($J139,FIND(CHAR(160),SUBSTITUTE($J139,\"{\",CHAR(160),ER$1)),FIND(CHAR(160),SUBSTITUTE($J139,\"}\",CHAR(160),ER$1))-FIND(CHAR(160),SUBSTITUTE($J139,\"{\",CHAR(160),ER$1))+1),\"\")","v":"{Proposed Compressor HP}"},{"$f":"IFERROR(MID($J139,FIND(CHAR(160),SUBSTITUTE($J139,\"{\",CHAR(160),ES$1)),FIND(CHAR(160),SUBSTITUTE($J139,\"}\",CHAR(160),ES$1))-FIND(CHAR(160),SUBSTITUTE($J139,\"{\",CHAR(160),ES$1))+1),\"\")","v":"{Measure:Quantity}"},{"$f":"IFERROR(MID($J139,FIND(CHAR(160),SUBSTITUTE($J139,\"{\",CHAR(160),ET$1)),FIND(CHAR(160),SUBSTITUTE($J139,\"}\",CHAR(160),ET$1))-FIND(CHAR(160),SUBSTITUTE($J139,\"{\",CHAR(160),ET$1))+1),\"\")","v":"{Proposed Compressor HP}"},{"$f":"IFERROR(MID($J139,FIND(CHAR(160),SUBSTITUTE($J139,\"{\",CHAR(160),EU$1)),FIND(CHAR(160),SUBSTITUTE($J139,\"}\",CHAR(160),EU$1))-FIND(CHAR(160),SUBSTITUTE($J139,\"{\",CHAR(160),EU$1))+1),\"\")","v":""},{"$f":"IFERROR(MID($J139,FIND(CHAR(160),SUBSTITUTE($J139,\"{\",CHAR(160),EV$1)),FIND(CHAR(160),SUBSTITUTE($J139,\"}\",CHAR(160),EV$1))-FIND(CHAR(160),SUBSTITUTE($J139,\"{\",CHAR(160),EV$1))+1),\"\")","v":""},{"$f":"IFERROR(MID($J139,FIND(CHAR(160),SUBSTITUTE($J139,\"{\",CHAR(160),EW$1)),FIND(CHAR(160),SUBSTITUTE($J139,\"}\",CHAR(160),EW$1))-FIND(CHAR(160),SUBSTITUTE($J139,\"{\",CHAR(160),EW$1))+1),\"\")","v":""},{"$f":"IFERROR(MID($J139,FIND(CHAR(160),SUBSTITUTE($J139,\"{\",CHAR(160),EX$1)),FIND(CHAR(160),SUBSTITUTE($J139,\"}\",CHAR(160),EX$1))-FIND(CHAR(160),SUBSTITUTE($J139,\"{\",CHAR(160),EX$1))+1),\"\")","v":""},{"$f":"IFERROR(MID($J139,FIND(CHAR(160),SUBSTITUTE($J139,\"{\",CHAR(160),EY$1)),FIND(CHAR(160),SUBSTITUTE($J139,\"}\",CHAR(160),EY$1))-FIND(CHAR(160),SUBSTITUTE($J139,\"{\",CHAR(160),EY$1))+1),\"\")","v":""},{"$f":"IFERROR(MID($J139,FIND(CHAR(160),SUBSTITUTE($J139,\"{\",CHAR(160),EZ$1)),FIND(CHAR(160),SUBSTITUTE($J139,\"}\",CHAR(160),EZ$1))-FIND(CHAR(160),SUBSTITUTE($J139,\"{\",CHAR(160),EZ$1))+1),\"\")","v":""},{"$f":"IFERROR(MID($J139,FIND(CHAR(160),SUBSTITUTE($J139,\"{\",CHAR(160),FA$1)),FIND(CHAR(160),SUBSTITUTE($J139,\"}\",CHAR(160),FA$1))-FIND(CHAR(160),SUBSTITUTE($J139,\"{\",CHAR(160),FA$1))+1),\"\")","v":"{Measure:Quantity}"},{"$f":"IFERROR(MID($J139,FIND(CHAR(160),SUBSTITUTE($J139,\"{\",CHAR(160),FB$1)),FIND(CHAR(160),SUBSTITUTE($J139,\"}\",CHAR(160),FB$1))-FIND(CHAR(160),SUBSTITUTE($J139,\"{\",CHAR(160),FB$1))+1),\"\")","v":"{Proposed Compressor HP}"},{"$f":"IFERROR(MID($O139,FIND(CHAR(160),SUBSTITUTE($O139,\"{\",CHAR(160),FC$1)),FIND(CHAR(160),SUBSTITUTE($O139,\"}\",CHAR(160),FC$1))-FIND(CHAR(160),SUBSTITUTE($O139,\"{\",CHAR(160),FC$1))+1),\"\")","v":"{Weekly Hrs of Operation}"},{"$f":"IFERROR(MID($O139,FIND(CHAR(160),SUBSTITUTE($O139,\"{\",CHAR(160),FD$1)),FIND(CHAR(160),SUBSTITUTE($O139,\"}\",CHAR(160),FD$1))-FIND(CHAR(160),SUBSTITUTE($O139,\"{\",CHAR(160),FD$1))+1),\"\")","v":"{Weeks Per Year}"},{"$f":"IFERROR(MID($O139,FIND(CHAR(160),SUBSTITUTE($O139,\"{\",CHAR(160),FE$1)),FIND(CHAR(160),SUBSTITUTE($O139,\"}\",CHAR(160),FE$1))-FIND(CHAR(160),SUBSTITUTE($O139,\"{\",CHAR(160),FE$1))+1),\"\")","v":""},{"$f":"IFERROR(MID($O139,FIND(CHAR(160),SUBSTITUTE($O139,\"{\",CHAR(160),FF$1)),FIND(CHAR(160),SUBSTITUTE($O139,\"}\",CHAR(160),FF$1))-FIND(CHAR(160),SUBSTITUTE($O139,\"{\",CHAR(160),FF$1))+1),\"\")","v":""},{"$f":"IFERROR(MID($O139,FIND(CHAR(160),SUBSTITUTE($O139,\"{\",CHAR(160),FG$1)),FIND(CHAR(160),SUBSTITUTE($O139,\"}\",CHAR(160),FG$1))-FIND(CHAR(160),SUBSTITUTE($O139,\"{\",CHAR(160),FG$1))+1),\"\")","v":""},{"$f":"IFERROR(MID($O139,FIND(CHAR(160),SUBSTITUTE($O139,\"{\",CHAR(160),FH$1)),FIND(CHAR(160),SUBSTITUTE($O139,\"}\",CHAR(160),FH$1))-FIND(CHAR(160),SUBSTITUTE($O139,\"{\",CHAR(160),FH$1))+1),\"\")","v":""},{"$f":"IFERROR(MID($O139,FIND(CHAR(160),SUBSTITUTE($O139,\"{\",CHAR(160),FI$1)),FIND(CHAR(160),SUBSTITUTE($O139,\"}\",CHAR(160),FI$1))-FIND(CHAR(160),SUBSTITUTE($O139,\"{\",CHAR(160),FI$1))+1),\"\")","v":""},{"$f":"IFERROR(MID($O139,FIND(CHAR(160),SUBSTITUTE($O139,\"{\",CHAR(160),FJ$1)),FIND(CHAR(160),SUBSTITUTE($O139,\"}\",CHAR(160),FJ$1))-FIND(CHAR(160),SUBSTITUTE($O139,\"{\",CHAR(160),FJ$1))+1),\"\")","v":""},{"$f":"IFERROR(MID($O139,FIND(CHAR(160),SUBSTITUTE($O139,\"{\",CHAR(160),FK$1)),FIND(CHAR(160),SUBSTITUTE($O139,\"}\",CHAR(160),FK$1))-FIND(CHAR(160),SUBSTITUTE($O139,\"{\",CHAR(160),FK$1))+1),\"\")","v":"{Measure:Quantity}"},{"$f":"IFERROR(MID($O139,FIND(CHAR(160),SUBSTITUTE($O139,\"{\",CHAR(160),FL$1)),FIND(CHAR(160),SUBSTITUTE($O139,\"}\",CHAR(160),FL$1))-FIND(CHAR(160),SUBSTITUTE($O139,\"{\",CHAR(160),FL$1))+1),\"\")","v":"{Proposed Compressor HP}"},{"$f":"IFERROR(MID($R139,FIND(CHAR(160),SUBSTITUTE($R139,\"{\",CHAR(160),FM$1)),FIND(CHAR(160),SUBSTITUTE($R139,\"}\",CHAR(160),FM$1))-FIND(CHAR(160),SUBSTITUTE($R139,\"{\",CHAR(160),FM$1))+1),\"\")","v":""},{"$f":"IFERROR(MID($R139,FIND(CHAR(160),SUBSTITUTE($R139,\"{\",CHAR(160),FN$1)),FIND(CHAR(160),SUBSTITUTE($R139,\"}\",CHAR(160),FN$1))-FIND(CHAR(160),SUBSTITUTE($R139,\"{\",CHAR(160),FN$1))+1),\"\")","v":""},{"$f":"IFERROR(MID($R139,FIND(CHAR(160),SUBSTITUTE($R139,\"{\",CHAR(160),FO$1)),FIND(CHAR(160),SUBSTITUTE($R139,\"}\",CHAR(160),FO$1))-FIND(CHAR(160),SUBSTITUTE($R139,\"{\",CHAR(160),FO$1))+1),\"\")","v":""},{"$f":"IFERROR(MID($R139,FIND(CHAR(160),SUBSTITUTE($R139,\"{\",CHAR(160),FP$1)),FIND(CHAR(160),SUBSTITUTE($R139,\"}\",CHAR(160),FP$1))-FIND(CHAR(160),SUBSTITUTE($R139,\"{\",CHAR(160),FP$1))+1),\"\")","v":""},{"$f":"IFERROR(MID($R139,FIND(CHAR(160),SUBSTITUTE($R139,\"{\",CHAR(160),FQ$1)),FIND(CHAR(160),SUBSTITUTE($R139,\"}\",CHAR(160),FQ$1))-FIND(CHAR(160),SUBSTITUTE($R139,\"{\",CHAR(160),FQ$1))+1),\"\")","v":""},{"$f":"IFERROR(MID($R139,FIND(CHAR(160),SUBSTITUTE($R139,\"{\",CHAR(160),FR$1)),FIND(CHAR(160),SUBSTITUTE($R139,\"}\",CHAR(160),FR$1))-FIND(CHAR(160),SUBSTITUTE($R139,\"{\",CHAR(160),FR$1))+1),\"\")","v":""},{"$f":"IFERROR(MID($R139,FIND(CHAR(160),SUBSTITUTE($R139,\"{\",CHAR(160),FS$1)),FIND(CHAR(160),SUBSTITUTE($R139,\"}\",CHAR(160),FS$1))-FIND(CHAR(160),SUBSTITUTE($R139,\"{\",CHAR(160),FS$1))+1),\"\")","v":""},{"$f":"IFERROR(MID($R139,FIND(CHAR(160),SUBSTITUTE($R139,\"{\",CHAR(160),FT$1)),FIND(CHAR(160),SUBSTITUTE($R139,\"}\",CHAR(160),FT$1))-FIND(CHAR(160),SUBSTITUTE($R139,\"{\",CHAR(160),FT$1))+1),\"\")","v":""},{"$f":"IFERROR(MID($R139,FIND(CHAR(160),SUBSTITUTE($R139,\"{\",CHAR(160),FU$1)),FIND(CHAR(160),SUBSTITUTE($R139,\"}\",CHAR(160),FU$1))-FIND(CHAR(160),SUBSTITUTE($R139,\"{\",CHAR(160),FU$1))+1),\"\")","v":"{Measure:Quantity}"},{"$f":"IFERROR(MID($R139,FIND(CHAR(160),SUBSTITUTE($R139,\"{\",CHAR(160),FV$1)),FIND(CHAR(160),SUBSTITUTE($R139,\"}\",CHAR(160),FV$1))-FIND(CHAR(160),SUBSTITUTE($R139,\"{\",CHAR(160),FV$1))+1),\"\")","v":"{Proposed Compressor HP}"},{"$f":"IFERROR(MID($U139,FIND(CHAR(160),SUBSTITUTE($U139,\"{\",CHAR(160),FW$1)),FIND(CHAR(160),SUBSTITUTE($U139,\"}\",CHAR(160),FW$1))-FIND(CHAR(160),SUBSTITUTE($U139,\"{\",CHAR(160),FW$1))+1),\"\")","v":"{Factor:WinterCF}"},{"$f":"IFERROR(MID($U139,FIND(CHAR(160),SUBSTITUTE($U139,\"{\",CHAR(160),FX$1)),FIND(CHAR(160),SUBSTITUTE($U139,\"}\",CHAR(160),FX$1))-FIND(CHAR(160),SUBSTITUTE($U139,\"{\",CHAR(160),FX$1))+1),\"\")","v":""},{"$f":"IFERROR(MID($U139,FIND(CHAR(160),SUBSTITUTE($U139,\"{\",CHAR(160),FY$1)),FIND(CHAR(160),SUBSTITUTE($U139,\"}\",CHAR(160),FY$1))-FIND(CHAR(160),SUBSTITUTE($U139,\"{\",CHAR(160),FY$1))+1),\"\")","v":""},{"$f":"IFERROR(MID($U139,FIND(CHAR(160),SUBSTITUTE($U139,\"{\",CHAR(160),FZ$1)),FIND(CHAR(160),SUBSTITUTE($U139,\"}\",CHAR(160),FZ$1))-FIND(CHAR(160),SUBSTITUTE($U139,\"{\",CHAR(160),FZ$1))+1),\"\")","v":""},{"$f":"IFERROR(MID($U139,FIND(CHAR(160),SUBSTITUTE($U139,\"{\",CHAR(160),GA$1)),FIND(CHAR(160),SUBSTITUTE($U139,\"}\",CHAR(160),GA$1))-FIND(CHAR(160),SUBSTITUTE($U139,\"{\",CHAR(160),GA$1))+1),\"\")","v":""},{"$f":"IFERROR(MID($U139,FIND(CHAR(160),SUBSTITUTE($U139,\"{\",CHAR(160),GB$1)),FIND(CHAR(160),SUBSTITUTE($U139,\"}\",CHAR(160),GB$1))-FIND(CHAR(160),SUBSTITUTE($U139,\"{\",CHAR(160),GB$1))+1),\"\")","v":""},{"$f":"IFERROR(MID($U139,FIND(CHAR(160),SUBSTITUTE($U139,\"{\",CHAR(160),GC$1)),FIND(CHAR(160),SUBSTITUTE($U139,\"}\",CHAR(160),GC$1))-FIND(CHAR(160),SUBSTITUTE($U139,\"{\",CHAR(160),GC$1))+1),\"\")","v":""},{"$f":"IFERROR(MID($U139,FIND(CHAR(160),SUBSTITUTE($U139,\"{\",CHAR(160),GD$1)),FIND(CHAR(160),SUBSTITUTE($U139,\"}\",CHAR(160),GD$1))-FIND(CHAR(160),SUBSTITUTE($U139,\"{\",CHAR(160),GD$1))+1),\"\")","v":""},{"$f":"IFERROR(MID($U139,FIND(CHAR(160),SUBSTITUTE($U139,\"{\",CHAR(160),GE$1)),FIND(CHAR(160),SUBSTITUTE($U139,\"}\",CHAR(160),GE$1))-FIND(CHAR(160),SUBSTITUTE($U139,\"{\",CHAR(160),GE$1))+1),\"\")","v":"{Measure:Quantity}"},{"$f":"IFERROR(MID($U139,FIND(CHAR(160),SUBSTITUTE($U139,\"{\",CHAR(160),GF$1)),FIND(CHAR(160),SUBSTITUTE($U139,\"}\",CHAR(160),GF$1))-FIND(CHAR(160),SUBSTITUTE($U139,\"{\",CHAR(160),GF$1))+1),\"\")","v":"{Proposed Compressor HP}"},{"$f":"IFERROR(MID($V139,FIND(CHAR(160),SUBSTITUTE($V139,\"{\",CHAR(160),GG$1)),FIND(CHAR(160),SUBSTITUTE($V139,\"}\",CHAR(160),GG$1))-FIND(CHAR(160),SUBSTITUTE($V139,\"{\",CHAR(160),GG$1))+1),\"\")","v":"{Factor:SummerCF}"},{"$f":"IFERROR(MID($V139,FIND(CHAR(160),SUBSTITUTE($V139,\"{\",CHAR(160),GH$1)),FIND(CHAR(160),SUBSTITUTE($V139,\"}\",CHAR(160),GH$1))-FIND(CHAR(160),SUBSTITUTE($V139,\"{\",CHAR(160),GH$1))+1),\"\")","v":""},{"$f":"IFERROR(MID($V139,FIND(CHAR(160),SUBSTITUTE($V139,\"{\",CHAR(160),GI$1)),FIND(CHAR(160),SUBSTITUTE($V139,\"}\",CHAR(160),GI$1))-FIND(CHAR(160),SUBSTITUTE($V139,\"{\",CHAR(160),GI$1))+1),\"\")","v":""},{"$f":"IFERROR(MID($V139,FIND(CHAR(160),SUBSTITUTE($V139,\"{\",CHAR(160),GJ$1)),FIND(CHAR(160),SUBSTITUTE($V139,\"}\",CHAR(160),GJ$1))-FIND(CHAR(160),SUBSTITUTE($V139,\"{\",CHAR(160),GJ$1))+1),\"\")","v":""},{"$f":"IFERROR(MID($V139,FIND(CHAR(160),SUBSTITUTE($V139,\"{\",CHAR(160),GK$1)),FIND(CHAR(160),SUBSTITUTE($V139,\"}\",CHAR(160),GK$1))-FIND(CHAR(160),SUBSTITUTE($V139,\"{\",CHAR(160),GK$1))+1),\"\")","v":""},{"$f":"IFERROR(MID($V139,FIND(CHAR(160),SUBSTITUTE($V139,\"{\",CHAR(160),GL$1)),FIND(CHAR(160),SUBSTITUTE($V139,\"}\",CHAR(160),GL$1))-FIND(CHAR(160),SUBSTITUTE($V139,\"{\",CHAR(160),GL$1))+1),\"\")","v":""},{"$f":"IFERROR(MID($V139,FIND(CHAR(160),SUBSTITUTE($V139,\"{\",CHAR(160),GM$1)),FIND(CHAR(160),SUBSTITUTE($V139,\"}\",CHAR(160),GM$1))-FIND(CHAR(160),SUBSTITUTE($V139,\"{\",CHAR(160),GM$1))+1),\"\")","v":""},{"$f":"IFERROR(MID($V139,FIND(CHAR(160),SUBSTITUTE($V139,\"{\",CHAR(160),GN$1)),FIND(CHAR(160),SUBSTITUTE($V139,\"}\",CHAR(160),GN$1))-FIND(CHAR(160),SUBSTITUTE($V139,\"{\",CHAR(160),GN$1))+1),\"\")","v":""},{"$f":"IFERROR(MID($V139,FIND(CHAR(160),SUBSTITUTE($V139,\"{\",CHAR(160),GO$1)),FIND(CHAR(160),SUBSTITUTE($V139,\"}\",CHAR(160),GO$1))-FIND(CHAR(160),SUBSTITUTE($V139,\"{\",CHAR(160),GO$1))+1),\"\")","v":"{Measure:Quantity}"},{"$f":"IFERROR(MID($V139,FIND(CHAR(160),SUBSTITUTE($V139,\"{\",CHAR(160),GP$1)),FIND(CHAR(160),SUBSTITUTE($V139,\"}\",CHAR(160),GP$1))-FIND(CHAR(160),SUBSTITUTE($V139,\"{\",CHAR(160),GP$1))+1),\"\")","v":"{Proposed Compressor HP}"},{"$f":"IFERROR(MID($W139,FIND(CHAR(160),SUBSTITUTE($W139,\"{\",CHAR(160),GQ$1)),FIND(CHAR(160),SUBSTITUTE($W139,\"}\",CHAR(160),GQ$1))-FIND(CHAR(160),SUBSTITUTE($W139,\"{\",CHAR(160),GQ$1))+1),\"\")","v":""},{"$f":"IFERROR(MID($W139,FIND(CHAR(160),SUBSTITUTE($W139,\"{\",CHAR(160),GR$1)),FIND(CHAR(160),SUBSTITUTE($W139,\"}\",CHAR(160),GR$1))-FIND(CHAR(160),SUBSTITUTE($W139,\"{\",CHAR(160),GR$1))+1),\"\")","v":""},{"$f":"IFERROR(MID($W139,FIND(CHAR(160),SUBSTITUTE($W139,\"{\",CHAR(160),GS$1)),FIND(CHAR(160),SUBSTITUTE($W139,\"}\",CHAR(160),GS$1))-FIND(CHAR(160),SUBSTITUTE($W139,\"{\",CHAR(160),GS$1))+1),\"\")","v":""},{"$f":"IFERROR(MID($W139,FIND(CHAR(160),SUBSTITUTE($W139,\"{\",CHAR(160),GT$1)),FIND(CHAR(160),SUBSTITUTE($W139,\"}\",CHAR(160),GT$1))-FIND(CHAR(160),SUBSTITUTE($W139,\"{\",CHAR(160),GT$1))+1),\"\")","v":""},{"$f":"IFERROR(MID($W139,FIND(CHAR(160),SUBSTITUTE($W139,\"{\",CHAR(160),GU$1)),FIND(CHAR(160),SUBSTITUTE($W139,\"}\",CHAR(160),GU$1))-FIND(CHAR(160),SUBSTITUTE($W139,\"{\",CHAR(160),GU$1))+1),\"\")","v":""},{"$f":"IFERROR(MID($W139,FIND(CHAR(160),SUBSTITUTE($W139,\"{\",CHAR(160),GV$1)),FIND(CHAR(160),SUBSTITUTE($W139,\"}\",CHAR(160),GV$1))-FIND(CHAR(160),SUBSTITUTE($W139,\"{\",CHAR(160),GV$1))+1),\"\")","v":""},{"$f":"IFERROR(MID($W139,FIND(CHAR(160),SUBSTITUTE($W139,\"{\",CHAR(160),GW$1)),FIND(CHAR(160),SUBSTITUTE($W139,\"}\",CHAR(160),GW$1))-FIND(CHAR(160),SUBSTITUTE($W139,\"{\",CHAR(160),GW$1))+1),\"\")","v":""},{"$f":"IFERROR(MID($W139,FIND(CHAR(160),SUBSTITUTE($W139,\"{\",CHAR(160),GX$1)),FIND(CHAR(160),SUBSTITUTE($W139,\"}\",CHAR(160),GX$1))-FIND(CHAR(160),SUBSTITUTE($W139,\"{\",CHAR(160),GX$1))+1),\"\")","v":""},{"$f":"IFERROR(MID($W139,FIND(CHAR(160),SUBSTITUTE($W139,\"{\",CHAR(160),GY$1)),FIND(CHAR(160),SUBSTITUTE($W139,\"}\",CHAR(160),GY$1))-FIND(CHAR(160),SUBSTITUTE($W139,\"{\",CHAR(160),GY$1))+1),\"\")","v":""},{"$f":"IFERROR(MID($W139,FIND(CHAR(160),SUBSTITUTE($W139,\"{\",CHAR(160),GZ$1)),FIND(CHAR(160),SUBSTITUTE($W139,\"}\",CHAR(160),GZ$1))-FIND(CHAR(160),SUBSTITUTE($W139,\"{\",CHAR(160),GZ$1))+1),\"\")","v":""},{"$f":"IFERROR(MID($X139,FIND(CHAR(160),SUBSTITUTE($X139,\"{\",CHAR(160),HA$1)),FIND(CHAR(160),SUBSTITUTE($X139,\"}\",CHAR(160),HA$1))-FIND(CHAR(160),SUBSTITUTE($X139,\"{\",CHAR(160),HA$1))+1),\"\")","v":""},{"$f":"IFERROR(MID($X139,FIND(CHAR(160),SUBSTITUTE($X139,\"{\",CHAR(160),HB$1)),FIND(CHAR(160),SUBSTITUTE($X139,\"}\",CHAR(160),HB$1))-FIND(CHAR(160),SUBSTITUTE($X139,\"{\",CHAR(160),HB$1))+1),\"\")","v":""},{"$f":"IFERROR(MID($X139,FIND(CHAR(160),SUBSTITUTE($X139,\"{\",CHAR(160),HC$1)),FIND(CHAR(160),SUBSTITUTE($X139,\"}\",CHAR(160),HC$1))-FIND(CHAR(160),SUBSTITUTE($X139,\"{\",CHAR(160),HC$1))+1),\"\")","v":""},{"$f":"IFERROR(MID($X139,FIND(CHAR(160),SUBSTITUTE($X139,\"{\",CHAR(160),HD$1)),FIND(CHAR(160),SUBSTITUTE($X139,\"}\",CHAR(160),HD$1))-FIND(CHAR(160),SUBSTITUTE($X139,\"{\",CHAR(160),HD$1))+1),\"\")","v":""},{"$f":"IFERROR(MID($X139,FIND(CHAR(160),SUBSTITUTE($X139,\"{\",CHAR(160),HE$1)),FIND(CHAR(160),SUBSTITUTE($X139,\"}\",CHAR(160),HE$1))-FIND(CHAR(160),SUBSTITUTE($X139,\"{\",CHAR(160),HE$1))+1),\"\")","v":""},{"$f":"IFERROR(MID($X139,FIND(CHAR(160),SUBSTITUTE($X139,\"{\",CHAR(160),HF$1)),FIND(CHAR(160),SUBSTITUTE($X139,\"}\",CHAR(160),HF$1))-FIND(CHAR(160),SUBSTITUTE($X139,\"{\",CHAR(160),HF$1))+1),\"\")","v":""},{"$f":"IFERROR(MID($X139,FIND(CHAR(160),SUBSTITUTE($X139,\"{\",CHAR(160),HG$1)),FIND(CHAR(160),SUBSTITUTE($X139,\"}\",CHAR(160),HG$1))-FIND(CHAR(160),SUBSTITUTE($X139,\"{\",CHAR(160),HG$1))+1),\"\")","v":""},{"$f":"IFERROR(MID($X139,FIND(CHAR(160),SUBSTITUTE($X139,\"{\",CHAR(160),HH$1)),FIND(CHAR(160),SUBSTITUTE($X139,\"}\",CHAR(160),HH$1))-FIND(CHAR(160),SUBSTITUTE($X139,\"{\",CHAR(160),HH$1))+1),\"\")","v":""},{"$f":"IFERROR(MID($X139,FIND(CHAR(160),SUBSTITUTE($X139,\"{\",CHAR(160),HI$1)),FIND(CHAR(160),SUBSTITUTE($X139,\"}\",CHAR(160),HI$1))-FIND(CHAR(160),SUBSTITUTE($X139,\"{\",CHAR(160),HI$1))+1),\"\")","v":""},{"$f":"IFERROR(MID($X139,FIND(CHAR(160),SUBSTITUTE($X139,\"{\",CHAR(160),HJ$1)),FIND(CHAR(160),SUBSTITUTE($X139,\"}\",CHAR(160),HJ$1))-FIND(CHAR(160),SUBSTITUTE($X139,\"{\",CHAR(160),HJ$1))+1),\"\")","v":""},{"$f":"IFERROR(MID($Y139,FIND(CHAR(160),SUBSTITUTE($Y139,\"{\",CHAR(160),HK$1)),FIND(CHAR(160),SUBSTITUTE($Y139,\"}\",CHAR(160),HK$1))-FIND(CHAR(160),SUBSTITUTE($Y139,\"{\",CHAR(160),HK$1))+1),\"\")","v":""},{"$f":"IFERROR(MID($Y139,FIND(CHAR(160),SUBSTITUTE($Y139,\"{\",CHAR(160),HL$1)),FIND(CHAR(160),SUBSTITUTE($Y139,\"}\",CHAR(160),HL$1))-FIND(CHAR(160),SUBSTITUTE($Y139,\"{\",CHAR(160),HL$1))+1),\"\")","v":""},{"$f":"IFERROR(MID($Y139,FIND(CHAR(160),SUBSTITUTE($Y139,\"{\",CHAR(160),HM$1)),FIND(CHAR(160),SUBSTITUTE($Y139,\"}\",CHAR(160),HM$1))-FIND(CHAR(160),SUBSTITUTE($Y139,\"{\",CHAR(160),HM$1))+1),\"\")","v":""},{"$f":"IFERROR(MID($Y139,FIND(CHAR(160),SUBSTITUTE($Y139,\"{\",CHAR(160),HN$1)),FIND(CHAR(160),SUBSTITUTE($Y139,\"}\",CHAR(160),HN$1))-FIND(CHAR(160),SUBSTITUTE($Y139,\"{\",CHAR(160),HN$1))+1),\"\")","v":""},{"$f":"IFERROR(MID($Y139,FIND(CHAR(160),SUBSTITUTE($Y139,\"{\",CHAR(160),HO$1)),FIND(CHAR(160),SUBSTITUTE($Y139,\"}\",CHAR(160),HO$1))-FIND(CHAR(160),SUBSTITUTE($Y139,\"{\",CHAR(160),HO$1))+1),\"\")","v":""},{"$f":"IFERROR(MID($Y139,FIND(CHAR(160),SUBSTITUTE($Y139,\"{\",CHAR(160),HP$1)),FIND(CHAR(160),SUBSTITUTE($Y139,\"}\",CHAR(160),HP$1))-FIND(CHAR(160),SUBSTITUTE($Y139,\"{\",CHAR(160),HP$1))+1),\"\")","v":""},{"$f":"IFERROR(MID($Y139,FIND(CHAR(160),SUBSTITUTE($Y139,\"{\",CHAR(160),HQ$1)),FIND(CHAR(160),SUBSTITUTE($Y139,\"}\",CHAR(160),HQ$1))-FIND(CHAR(160),SUBSTITUTE($Y139,\"{\",CHAR(160),HQ$1))+1),\"\")","v":""},{"$f":"IFERROR(MID($Y139,FIND(CHAR(160),SUBSTITUTE($Y139,\"{\",CHAR(160),HR$1)),FIND(CHAR(160),SUBSTITUTE($Y139,\"}\",CHAR(160),HR$1))-FIND(CHAR(160),SUBSTITUTE($Y139,\"{\",CHAR(160),HR$1))+1),\"\")","v":""},{"$f":"IFERROR(MID($Y139,FIND(CHAR(160),SUBSTITUTE($Y139,\"{\",CHAR(160),HS$1)),FIND(CHAR(160),SUBSTITUTE($Y139,\"}\",CHAR(160),HS$1))-FIND(CHAR(160),SUBSTITUTE($Y139,\"{\",CHAR(160),HS$1))+1),\"\")","v":""},{"$f":"IFERROR(MID($Y139,FIND(CHAR(160),SUBSTITUTE($Y139,\"{\",CHAR(160),HT$1)),FIND(CHAR(160),SUBSTITUTE($Y139,\"}\",CHAR(160),HT$1))-FIND(CHAR(160),SUBSTITUTE($Y139,\"{\",CHAR(160),HT$1))+1),\"\")","v":""},{"$f":"IFERROR(MID($Z139,FIND(CHAR(160),SUBSTITUTE($Z139,\"{\",CHAR(160),HU$1)),FIND(CHAR(160),SUBSTITUTE($Z139,\"}\",CHAR(160),HU$1))-FIND(CHAR(160),SUBSTITUTE($Z139,\"{\",CHAR(160),HU$1))+1),\"\")","v":""},{"$f":"IFERROR(MID($Z139,FIND(CHAR(160),SUBSTITUTE($Z139,\"{\",CHAR(160),HV$1)),FIND(CHAR(160),SUBSTITUTE($Z139,\"}\",CHAR(160),HV$1))-FIND(CHAR(160),SUBSTITUTE($Z139,\"{\",CHAR(160),HV$1))+1),\"\")","v":""},{"$f":"IFERROR(MID($Z139,FIND(CHAR(160),SUBSTITUTE($Z139,\"{\",CHAR(160),HW$1)),FIND(CHAR(160),SUBSTITUTE($Z139,\"}\",CHAR(160),HW$1))-FIND(CHAR(160),SUBSTITUTE($Z139,\"{\",CHAR(160),HW$1))+1),\"\")","v":""},{"$f":"IFERROR(MID($Z139,FIND(CHAR(160),SUBSTITUTE($Z139,\"{\",CHAR(160),HX$1)),FIND(CHAR(160),SUBSTITUTE($Z139,\"}\",CHAR(160),HX$1))-FIND(CHAR(160),SUBSTITUTE($Z139,\"{\",CHAR(160),HX$1))+1),\"\")","v":""},{"$f":"IFERROR(MID($Z139,FIND(CHAR(160),SUBSTITUTE($Z139,\"{\",CHAR(160),HY$1)),FIND(CHAR(160),SUBSTITUTE($Z139,\"}\",CHAR(160),HY$1))-FIND(CHAR(160),SUBSTITUTE($Z139,\"{\",CHAR(160),HY$1))+1),\"\")","v":""},{"$f":"IFERROR(MID($Z139,FIND(CHAR(160),SUBSTITUTE($Z139,\"{\",CHAR(160),HZ$1)),FIND(CHAR(160),SUBSTITUTE($Z139,\"}\",CHAR(160),HZ$1))-FIND(CHAR(160),SUBSTITUTE($Z139,\"{\",CHAR(160),HZ$1))+1),\"\")","v":""},{"$f":"IFERROR(MID($Z139,FIND(CHAR(160),SUBSTITUTE($Z139,\"{\",CHAR(160),IA$1)),FIND(CHAR(160),SUBSTITUTE($Z139,\"}\",CHAR(160),IA$1))-FIND(CHAR(160),SUBSTITUTE($Z139,\"{\",CHAR(160),IA$1))+1),\"\")","v":""},{"$f":"IFERROR(MID($Z139,FIND(CHAR(160),SUBSTITUTE($Z139,\"{\",CHAR(160),IB$1)),FIND(CHAR(160),SUBSTITUTE($Z139,\"}\",CHAR(160),IB$1))-FIND(CHAR(160),SUBSTITUTE($Z139,\"{\",CHAR(160),IB$1))+1),\"\")","v":""},{"$f":"IFERROR(MID($Z139,FIND(CHAR(160),SUBSTITUTE($Z139,\"{\",CHAR(160),IC$1)),FIND(CHAR(160),SUBSTITUTE($Z139,\"}\",CHAR(160),IC$1))-FIND(CHAR(160),SUBSTITUTE($Z139,\"{\",CHAR(160),IC$1))+1),\"\")","v":""},{"$f":"IFERROR(MID($Z139,FIND(CHAR(160),SUBSTITUTE($Z139,\"{\",CHAR(160),ID$1)),FIND(CHAR(160),SUBSTITUTE($Z139,\"}\",CHAR(160),ID$1))-FIND(CHAR(160),SUBSTITUTE($Z139,\"{\",CHAR(160),ID$1))+1),\"\")","v":""},{"$f":"IFERROR(MID($AA139,FIND(CHAR(160),SUBSTITUTE($AA139,\"{\",CHAR(160),IE$1)),FIND(CHAR(160),SUBSTITUTE($AA139,\"}\",CHAR(160),IE$1))-FIND(CHAR(160),SUBSTITUTE($AA139,\"{\",CHAR(160),IE$1))+1),\"\")","v":""},{"$f":"IFERROR(MID($AA139,FIND(CHAR(160),SUBSTITUTE($AA139,\"{\",CHAR(160),IF$1)),FIND(CHAR(160),SUBSTITUTE($AA139,\"}\",CHAR(160),IF$1))-FIND(CHAR(160),SUBSTITUTE($AA139,\"{\",CHAR(160),IF$1))+1),\"\")","v":""},{"$f":"IFERROR(MID($AA139,FIND(CHAR(160),SUBSTITUTE($AA139,\"{\",CHAR(160),IG$1)),FIND(CHAR(160),SUBSTITUTE($AA139,\"}\",CHAR(160),IG$1))-FIND(CHAR(160),SUBSTITUTE($AA139,\"{\",CHAR(160),IG$1))+1),\"\")","v":""},{"$f":"IFERROR(MID($AA139,FIND(CHAR(160),SUBSTITUTE($AA139,\"{\",CHAR(160),IH$1)),FIND(CHAR(160),SUBSTITUTE($AA139,\"}\",CHAR(160),IH$1))-FIND(CHAR(160),SUBSTITUTE($AA139,\"{\",CHAR(160),IH$1))+1),\"\")","v":""},{"$f":"IFERROR(MID($AA139,FIND(CHAR(160),SUBSTITUTE($AA139,\"{\",CHAR(160),II$1)),FIND(CHAR(160),SUBSTITUTE($AA139,\"}\",CHAR(160),II$1))-FIND(CHAR(160),SUBSTITUTE($AA139,\"{\",CHAR(160),II$1))+1),\"\")","v":""},{"$f":"IFERROR(MID($AA139,FIND(CHAR(160),SUBSTITUTE($AA139,\"{\",CHAR(160),IJ$1)),FIND(CHAR(160),SUBSTITUTE($AA139,\"}\",CHAR(160),IJ$1))-FIND(CHAR(160),SUBSTITUTE($AA139,\"{\",CHAR(160),IJ$1))+1),\"\")","v":""},{"$f":"IFERROR(MID($AA139,FIND(CHAR(160),SUBSTITUTE($AA139,\"{\",CHAR(160),IK$1)),FIND(CHAR(160),SUBSTITUTE($AA139,\"}\",CHAR(160),IK$1))-FIND(CHAR(160),SUBSTITUTE($AA139,\"{\",CHAR(160),IK$1))+1),\"\")","v":""},{"$f":"IFERROR(MID($AA139,FIND(CHAR(160),SUBSTITUTE($AA139,\"{\",CHAR(160),IL$1)),FIND(CHAR(160),SUBSTITUTE($AA139,\"}\",CHAR(160),IL$1))-FIND(CHAR(160),SUBSTITUTE($AA139,\"{\",CHAR(160),IL$1))+1),\"\")","v":""},{"$f":"IFERROR(MID($AA139,FIND(CHAR(160),SUBSTITUTE($AA139,\"{\",CHAR(160),IM$1)),FIND(CHAR(160),SUBSTITUTE($AA139,\"}\",CHAR(160),IM$1))-FIND(CHAR(160),SUBSTITUTE($AA139,\"{\",CHAR(160),IM$1))+1),\"\")","v":""},{"$f":"IFERROR(MID($AA139,FIND(CHAR(160),SUBSTITUTE($AA139,\"{\",CHAR(160),IN$1)),FIND(CHAR(160),SUBSTITUTE($AA139,\"}\",CHAR(160),IN$1))-FIND(CHAR(160),SUBSTITUTE($AA139,\"{\",CHAR(160),IN$1))+1),\"\")","v":""},{"$f":"IFERROR(MID($AB139,FIND(CHAR(160),SUBSTITUTE($AB139,\"{\",CHAR(160),IO$1)),FIND(CHAR(160),SUBSTITUTE($AB139,\"}\",CHAR(160),IO$1))-FIND(CHAR(160),SUBSTITUTE($AB139,\"{\",CHAR(160),IO$1))+1),\"\")","v":""},{"$f":"IFERROR(MID($AB139,FIND(CHAR(160),SUBSTITUTE($AB139,\"{\",CHAR(160),IP$1)),FIND(CHAR(160),SUBSTITUTE($AB139,\"}\",CHAR(160),IP$1))-FIND(CHAR(160),SUBSTITUTE($AB139,\"{\",CHAR(160),IP$1))+1),\"\")","v":""},{"$f":"IFERROR(MID($AB139,FIND(CHAR(160),SUBSTITUTE($AB139,\"{\",CHAR(160),IQ$1)),FIND(CHAR(160),SUBSTITUTE($AB139,\"}\",CHAR(160),IQ$1))-FIND(CHAR(160),SUBSTITUTE($AB139,\"{\",CHAR(160),IQ$1))+1),\"\")","v":""},{"$f":"IFERROR(MID($AB139,FIND(CHAR(160),SUBSTITUTE($AB139,\"{\",CHAR(160),IR$1)),FIND(CHAR(160),SUBSTITUTE($AB139,\"}\",CHAR(160),IR$1))-FIND(CHAR(160),SUBSTITUTE($AB139,\"{\",CHAR(160),IR$1))+1),\"\")","v":""},{"$f":"IFERROR(MID($AB139,FIND(CHAR(160),SUBSTITUTE($AB139,\"{\",CHAR(160),IS$1)),FIND(CHAR(160),SUBSTITUTE($AB139,\"}\",CHAR(160),IS$1))-FIND(CHAR(160),SUBSTITUTE($AB139,\"{\",CHAR(160),IS$1))+1),\"\")","v":""},{"$f":"IFERROR(MID($AB139,FIND(CHAR(160),SUBSTITUTE($AB139,\"{\",CHAR(160),IT$1)),FIND(CHAR(160),SUBSTITUTE($AB139,\"}\",CHAR(160),IT$1))-FIND(CHAR(160),SUBSTITUTE($AB139,\"{\",CHAR(160),IT$1))+1),\"\")","v":""},{"$f":"IFERROR(MID($AB139,FIND(CHAR(160),SUBSTITUTE($AB139,\"{\",CHAR(160),IU$1)),FIND(CHAR(160),SUBSTITUTE($AB139,\"}\",CHAR(160),IU$1))-FIND(CHAR(160),SUBSTITUTE($AB139,\"{\",CHAR(160),IU$1))+1),\"\")","v":""},{"$f":"IFERROR(MID($AB139,FIND(CHAR(160),SUBSTITUTE($AB139,\"{\",CHAR(160),IV$1)),FIND(CHAR(160),SUBSTITUTE($AB139,\"}\",CHAR(160),IV$1))-FIND(CHAR(160),SUBSTITUTE($AB139,\"{\",CHAR(160),IV$1))+1),\"\")","v":""},{"$f":"IFERROR(MID($AB139,FIND(CHAR(160),SUBSTITUTE($AB139,\"{\",CHAR(160),IW$1)),FIND(CHAR(160),SUBSTITUTE($AB139,\"}\",CHAR(160),IW$1))-FIND(CHAR(160),SUBSTITUTE($AB139,\"{\",CHAR(160),IW$1))+1),\"\")","v":""},{"$f":"IFERROR(MID($AB139,FIND(CHAR(160),SUBSTITUTE($AB139,\"{\",CHAR(160),IX$1)),FIND(CHAR(160),SUBSTITUTE($AB139,\"}\",CHAR(160),IX$1))-FIND(CHAR(160),SUBSTITUTE($AB139,\"{\",CHAR(160),IX$1))+1),\"\")","v":""},null,{"$f":"10-COUNTIF(DU139:ED139,\"\")","v":4}]
["C&I Prescriptive Compressed Air Solutions","Fast Track Compressor - C3 - Compressor HP 31-60","C - C3","2021-07-01","2022-06-30","Calculated","{Measure:Quantity}*{Proposed Compressor HP}*164",0,"Calculated","if({Measure:Quantity}*{Proposed Compressor HP}*100>10000,10000,{Measure:Quantity}*{Proposed Compressor HP}*100)",0,"2017-07-01","2022-06-30","Calculated","{Measure:Quantity} *{Proposed Compressor HP} * 0.2154 * {Weekly Hrs of Operation} * {Weeks Per Year}",1E-4,null,"{Measure:Quantity} *{Proposed Compressor HP} * 0.2154",null,null,"{Measure:Quantity} *{Proposed Compressor HP} * 0.2154 * {Factor:WinterCF}","{Measure:Quantity} *{Proposed Compressor HP} * 0.2154 * {Factor:SummerCF}",null,null,null,null,null,null,"2017-07-01","2022-06-30",15,0.7,0.91100000000000003,0.30399999999999999,0.36099999999999999,0.156,0.17899999999999999,1,1.1220000000000001,1,0.52,1.6E-2,null,{"$f":"DU140","v":"{Measure:Quantity}"},1,{"$f":"DV140","v":"{Proposed Compressor HP}"},40,{"$f":"DW140","v":"{Weekly Hrs of Operation}"},50,{"$f":"DX140","v":"{Weeks Per Year}"},50,{"$f":"DY140","v":""},null,{"$f":"DZ140","v":""},null,{"$f":"EA140","v":""},null,{"$f":"EB140","v":""},null,{"$f":"EC140","v":""},null,{"$f":"ED140","v":""},null,{"$f":"AS140 *AU140 * 0.2154 * AW140 * AY140","v":21539.999999999996},{"$f":"0.0001","v":1E-4},0,{"$f":"AS140 *AU140 * 0.2154","v":8.6159999999999997},0,0,{"$f":"AS140 *AU140 * 0.2154 * AF140","v":6.0311999999999992},{"$f":"AS140 *AU140 * 0.2154 * AG140","v":7.8491759999999999},0,0,0,0,0,0,null,"Com","Default DR",{"$f":"Benefits(BL140,BR140,BS140,BT140,BU140,BV140,BW140,BX140,BY140,BZ140,AE140,AH140,AI140,AJ140,AK140,AL140,AM140,AN140,AO140,AP140,CA140,CB140)","v":32287.347284412903},37489.870221145575,0,0,0,0,0,0,0,{"$f":"SUMPRODUCT(CC140:CK140,--(CC140:CK140>0))","v":69777.217505558481},{"$f":"-SUMPRODUCT(CC140:CK140,--(CC140:CK140<0))","v":0},null,{"$f":"AS140*AU140*164","v":6560},null,null,{"$f":"CM140+CO140","v":6560},{"$f":"IF(NetOrGross=\"Net\",(1-AO140+AP140),1)","v":1},{"$f":"(SUMPRODUCT(CC140:CJ140,--(CC140:CJ140>0))+CN140)*CS140/((-SUMPRODUCT(CC140:CJ140,--(CC140:CJ140<0))+MAX(CO140,CV140)+CP140+CQ140)*CS140+IF(FRIncentives=\"Yes\",CV140*(1-CS140),0))","v":10.636770961213184},3,{"$f":"IF(AS140*AU140*100>10000,10000,AS140*AU140*100)","v":4000},null,"Electric","y",null,{"$f":"IF(F140=\"Manual Entry\",\"Manual\",IF(G140=\"\",0,\"X=\"&SUBSTITUTE(SUBSTITUTE(SUBSTITUTE(SUBSTITUTE(SUBSTITUTE(SUBSTITUTE(SUBSTITUTE(SUBSTITUTE(SUBSTITUTE(SUBSTITUTE(SUBSTITUTE(SUBSTITUTE(G140,$ED140,$ED$2&ROW($ED140)),$EC140,$EC$2&ROW($EC140)),$EB140,$EB$2&ROW($EB140)),$EA140,$EA$2&ROW($EA140)),$DZ140,$DZ$2&ROW($DZ140)),$DY140,$DY$2&ROW($DY140)),$DX140,$DX$2&ROW($DX140)),$DW140,$DW$2&ROW($DW140)),$DV140,$DV$2&ROW($DV140)),$DU140,$DU$2&ROW($DU140)),$DT140,$DT$2&ROW($DT140)),$DS140,$DS$2&ROW($DS140))))","v":"X=AS140*AU140*164"},{"$f":"IF(I140=\"Manual Entry\",\"Manual\",IF(J140=\"\",0,\"X=\"&SUBSTITUTE(SUBSTITUTE(SUBSTITUTE(SUBSTITUTE(SUBSTITUTE(SUBSTITUTE(SUBSTITUTE(SUBSTITUTE(SUBSTITUTE(SUBSTITUTE(SUBSTITUTE(SUBSTITUTE(J140,$ED140,$ED$2&ROW($ED140)),$EC140,$EC$2&ROW($EC140)),$EB140,$EB$2&ROW($EB140)),$EA140,$EA$2&ROW($EA140)),$DZ140,$DZ$2&ROW($DZ140)),$DY140,$DY$2&ROW($DY140)),$DX140,$DX$2&ROW($DX140)),$DW140,$DW$2&ROW($DW140)),$DV140,$DV$2&ROW($DV140)),$DU140,$DU$2&ROW($DU140)),$DT140,$DT$2&ROW($DT140)),$DS140,$DS$2&ROW($DS140))))","v":"X=if(AS140*AU140*100>10000,10000,AS140*AU140*100)"},{"$f":"IF(O140=\"\",0,\"X=\"&SUBSTITUTE(SUBSTITUTE(SUBSTITUTE(SUBSTITUTE(SUBSTITUTE(SUBSTITUTE(SUBSTITUTE(SUBSTITUTE(SUBSTITUTE(SUBSTITUTE(SUBSTITUTE(SUBSTITUTE(O140,$ED140,$ED$2&ROW($ED140)),$EC140,$EC$2&ROW($EC140)),$EB140,$EB$2&ROW($EB140)),$EA140,$EA$2&ROW($EA140)),$DZ140,$DZ$2&ROW($DZ140)),$DY140,$DY$2&ROW($DY140)),$DX140,$DX$2&ROW($DX140)),$DW140,$DW$2&ROW($DW140)),$DV140,$DV$2&ROW($DV140)),$DU140,$DU$2&ROW($DU140)),$DT140,$DT$2&ROW($DT140)),$DS140,$DS$2&ROW($DS140)))","v":"X=AS140 *AU140 * 0.2154 * AW140 * AY140"},{"$f":"IF(P140=\"\",0,\"X=\"&SUBSTITUTE(SUBSTITUTE(SUBSTITUTE(SUBSTITUTE(SUBSTITUTE(SUBSTITUTE(SUBSTITUTE(SUBSTITUTE(SUBSTITUTE(SUBSTITUTE(SUBSTITUTE(SUBSTITUTE(P140,$ED140,$ED$2&ROW($ED140)),$EC140,$EC$2&ROW($EC140)),$EB140,$EB$2&ROW($EB140)),$EA140,$EA$2&ROW($EA140)),$DZ140,$DZ$2&ROW($DZ140)),$DY140,$DY$2&ROW($DY140)),$DX140,$DX$2&ROW($DX140)),$DW140,$DW$2&ROW($DW140)),$DV140,$DV$2&ROW($DV140)),$DU140,$DU$2&ROW($DU140)),$DT140,$DT$2&ROW($DT140)),$DS140,$DS$2&ROW($DS140)))","v":"X=0.0001"},{"$f":"IF(Q140=\"\",0,\"X=\"&SUBSTITUTE(SUBSTITUTE(SUBSTITUTE(SUBSTITUTE(SUBSTITUTE(SUBSTITUTE(SUBSTITUTE(SUBSTITUTE(SUBSTITUTE(SUBSTITUTE(SUBSTITUTE(SUBSTITUTE(Q140,$ED140,$ED$2&ROW($ED140)),$EC140,$EC$2&ROW($EC140)),$EB140,$EB$2&ROW($EB140)),$EA140,$EA$2&ROW($EA140)),$DZ140,$DZ$2&ROW($DZ140)),$DY140,$DY$2&ROW($DY140)),$DX140,$DX$2&ROW($DX140)),$DW140,$DW$2&ROW($DW140)),$DV140,$DV$2&ROW($DV140)),$DU140,$DU$2&ROW($DU140)),$DT140,$DT$2&ROW($DT140)),$DS140,$DS$2&ROW($DS140)))","v":0},{"$f":"IF(R140=\"\",0,\"X=\"&SUBSTITUTE(SUBSTITUTE(SUBSTITUTE(SUBSTITUTE(SUBSTITUTE(SUBSTITUTE(SUBSTITUTE(SUBSTITUTE(SUBSTITUTE(SUBSTITUTE(SUBSTITUTE(SUBSTITUTE(R140,$ED140,$ED$2&ROW($ED140)),$EC140,$EC$2&ROW($EC140)),$EB140,$EB$2&ROW($EB140)),$EA140,$EA$2&ROW($EA140)),$DZ140,$DZ$2&ROW($DZ140)),$DY140,$DY$2&ROW($DY140)),$DX140,$DX$2&ROW($DX140)),$DW140,$DW$2&ROW($DW140)),$DV140,$DV$2&ROW($DV140)),$DU140,$DU$2&ROW($DU140)),$DT140,$DT$2&ROW($DT140)),$DS140,$DS$2&ROW($DS140)))","v":"X=AS140 *AU140 * 0.2154"},{"$f":"IF(S140=\"\",0,\"X=\"&SUBSTITUTE(SUBSTITUTE(SUBSTITUTE(SUBSTITUTE(SUBSTITUTE(SUBSTITUTE(SUBSTITUTE(SUBSTITUTE(SUBSTITUTE(SUBSTITUTE(SUBSTITUTE(SUBSTITUTE(S140,$ED140,$ED$2&ROW($ED140)),$EC140,$EC$2&ROW($EC140)),$EB140,$EB$2&ROW($EB140)),$EA140,$EA$2&ROW($EA140)),$DZ140,$DZ$2&ROW($DZ140)),$DY140,$DY$2&ROW($DY140)),$DX140,$DX$2&ROW($DX140)),$DW140,$DW$2&ROW($DW140)),$DV140,$DV$2&ROW($DV140)),$DU140,$DU$2&ROW($DU140)),$DT140,$DT$2&ROW($DT140)),$DS140,$DS$2&ROW($DS140)))","v":0},{"$f":"IF(T140=\"\",0,\"X=\"&SUBSTITUTE(SUBSTITUTE(SUBSTITUTE(SUBSTITUTE(SUBSTITUTE(SUBSTITUTE(SUBSTITUTE(SUBSTITUTE(SUBSTITUTE(SUBSTITUTE(SUBSTITUTE(SUBSTITUTE(T140,$ED140,$ED$2&ROW($ED140)),$EC140,$EC$2&ROW($EC140)),$EB140,$EB$2&ROW($EB140)),$EA140,$EA$2&ROW($EA140)),$DZ140,$DZ$2&ROW($DZ140)),$DY140,$DY$2&ROW($DY140)),$DX140,$DX$2&ROW($DX140)),$DW140,$DW$2&ROW($DW140)),$DV140,$DV$2&ROW($DV140)),$DU140,$DU$2&ROW($DU140)),$DT140,$DT$2&ROW($DT140)),$DS140,$DS$2&ROW($DS140)))","v":0},{"$f":"IF(U140=\"\",0,\"X=\"&SUBSTITUTE(SUBSTITUTE(SUBSTITUTE(SUBSTITUTE(SUBSTITUTE(SUBSTITUTE(SUBSTITUTE(SUBSTITUTE(SUBSTITUTE(SUBSTITUTE(SUBSTITUTE(SUBSTITUTE(U140,$ED140,$ED$2&ROW($ED140)),$EC140,$EC$2&ROW($EC140)),$EB140,$EB$2&ROW($EB140)),$EA140,$EA$2&ROW($EA140)),$DZ140,$DZ$2&ROW($DZ140)),$DY140,$DY$2&ROW($DY140)),$DX140,$DX$2&ROW($DX140)),$DW140,$DW$2&ROW($DW140)),$DV140,$DV$2&ROW($DV140)),$DU140,$DU$2&ROW($DU140)),$DT140,$DT$2&ROW($DT140)),$DS140,$DS$2&ROW($DS140)))","v":"X=AS140 *AU140 * 0.2154 * AF140"},{"$f":"IF(V140=\"\",0,\"X=\"&SUBSTITUTE(SUBSTITUTE(SUBSTITUTE(SUBSTITUTE(SUBSTITUTE(SUBSTITUTE(SUBSTITUTE(SUBSTITUTE(SUBSTITUTE(SUBSTITUTE(SUBSTITUTE(SUBSTITUTE(V140,$ED140,$ED$2&ROW($ED140)),$EC140,$EC$2&ROW($EC140)),$EB140,$EB$2&ROW($EB140)),$EA140,$EA$2&ROW($EA140)),$DZ140,$DZ$2&ROW($DZ140)),$DY140,$DY$2&ROW($DY140)),$DX140,$DX$2&ROW($DX140)),$DW140,$DW$2&ROW($DW140)),$DV140,$DV$2&ROW($DV140)),$DU140,$DU$2&ROW($DU140)),$DT140,$DT$2&ROW($DT140)),$DS140,$DS$2&ROW($DS140)))","v":"X=AS140 *AU140 * 0.2154 * AG140"},{"$f":"IF(W140=\"\",0,\"X=\"&SUBSTITUTE(SUBSTITUTE(SUBSTITUTE(SUBSTITUTE(SUBSTITUTE(SUBSTITUTE(SUBSTITUTE(SUBSTITUTE(SUBSTITUTE(SUBSTITUTE(SUBSTITUTE(SUBSTITUTE(W140,$ED140,$ED$2&ROW($ED140)),$EC140,$EC$2&ROW($EC140)),$EB140,$EB$2&ROW($EB140)),$EA140,$EA$2&ROW($EA140)),$DZ140,$DZ$2&ROW($DZ140)),$DY140,$DY$2&ROW($DY140)),$DX140,$DX$2&ROW($DX140)),$DW140,$DW$2&ROW($DW140)),$DV140,$DV$2&ROW($DV140)),$DU140,$DU$2&ROW($DU140)),$DT140,$DT$2&ROW($DT140)),$DS140,$DS$2&ROW($DS140)))","v":0},{"$f":"IF(X140=\"\",0,\"X=\"&SUBSTITUTE(SUBSTITUTE(SUBSTITUTE(SUBSTITUTE(SUBSTITUTE(SUBSTITUTE(SUBSTITUTE(SUBSTITUTE(SUBSTITUTE(SUBSTITUTE(SUBSTITUTE(SUBSTITUTE(X140,$ED140,$ED$2&ROW($ED140)),$EC140,$EC$2&ROW($EC140)),$EB140,$EB$2&ROW($EB140)),$EA140,$EA$2&ROW($EA140)),$DZ140,$DZ$2&ROW($DZ140)),$DY140,$DY$2&ROW($DY140)),$DX140,$DX$2&ROW($DX140)),$DW140,$DW$2&ROW($DW140)),$DV140,$DV$2&ROW($DV140)),$DU140,$DU$2&ROW($DU140)),$DT140,$DT$2&ROW($DT140)),$DS140,$DS$2&ROW($DS140)))","v":0},{"$f":"IF(Y140=\"\",0,\"X=\"&SUBSTITUTE(SUBSTITUTE(SUBSTITUTE(SUBSTITUTE(SUBSTITUTE(SUBSTITUTE(SUBSTITUTE(SUBSTITUTE(SUBSTITUTE(SUBSTITUTE(SUBSTITUTE(SUBSTITUTE(Y140,$ED140,$ED$2&ROW($ED140)),$EC140,$EC$2&ROW($EC140)),$EB140,$EB$2&ROW($EB140)),$EA140,$EA$2&ROW($EA140)),$DZ140,$DZ$2&ROW($DZ140)),$DY140,$DY$2&ROW($DY140)),$DX140,$DX$2&ROW($DX140)),$DW140,$DW$2&ROW($DW140)),$DV140,$DV$2&ROW($DV140)),$DU140,$DU$2&ROW($DU140)),$DT140,$DT$2&ROW($DT140)),$DS140,$DS$2&ROW($DS140)))","v":0},{"$f":"IF(Z140=\"\",0,\"X=\"&SUBSTITUTE(SUBSTITUTE(SUBSTITUTE(SUBSTITUTE(SUBSTITUTE(SUBSTITUTE(SUBSTITUTE(SUBSTITUTE(SUBSTITUTE(SUBSTITUTE(SUBSTITUTE(SUBSTITUTE(Z140,$ED140,$ED$2&ROW($ED140)),$EC140,$EC$2&ROW($EC140)),$EB140,$EB$2&ROW($EB140)),$EA140,$EA$2&ROW($EA140)),$DZ140,$DZ$2&ROW($DZ140)),$DY140,$DY$2&ROW($DY140)),$DX140,$DX$2&ROW($DX140)),$DW140,$DW$2&ROW($DW140)),$DV140,$DV$2&ROW($DV140)),$DU140,$DU$2&ROW($DU140)),$DT140,$DT$2&ROW($DT140)),$DS140,$DS$2&ROW($DS140)))","v":0},{"$f":"IF(AA140=\"\",0,\"X=\"&SUBSTITUTE(SUBSTITUTE(SUBSTITUTE(SUBSTITUTE(SUBSTITUTE(SUBSTITUTE(SUBSTITUTE(SUBSTITUTE(SUBSTITUTE(SUBSTITUTE(SUBSTITUTE(SUBSTITUTE(AA140,$ED140,$ED$2&ROW($ED140)),$EC140,$EC$2&ROW($EC140)),$EB140,$EB$2&ROW($EB140)),$EA140,$EA$2&ROW($EA140)),$DZ140,$DZ$2&ROW($DZ140)),$DY140,$DY$2&ROW($DY140)),$DX140,$DX$2&ROW($DX140)),$DW140,$DW$2&ROW($DW140)),$DV140,$DV$2&ROW($DV140)),$DU140,$DU$2&ROW($DU140)),$DT140,$DT$2&ROW($DT140)),$DS140,$DS$2&ROW($DS140)))","v":0},{"$f":"IF(AB140=\"\",0,\"X=\"&SUBSTITUTE(SUBSTITUTE(SUBSTITUTE(SUBSTITUTE(SUBSTITUTE(SUBSTITUTE(SUBSTITUTE(SUBSTITUTE(SUBSTITUTE(SUBSTITUTE(SUBSTITUTE(SUBSTITUTE(AB140,$ED140,$ED$2&ROW($ED140)),$EC140,$EC$2&ROW($EC140)),$EB140,$EB$2&ROW($EB140)),$EA140,$EA$2&ROW($EA140)),$DZ140,$DZ$2&ROW($DZ140)),$DY140,$DY$2&ROW($DY140)),$DX140,$DX$2&ROW($DX140)),$DW140,$DW$2&ROW($DW140)),$DV140,$DV$2&ROW($DV140)),$DU140,$DU$2&ROW($DU140)),$DT140,$DT$2&ROW($DT140)),$DS140,$DS$2&ROW($DS140)))","v":0},null,null,"{Factor:WinterCF}","{Factor:SummerCF}",{"$f":"IFERROR(INDEX($EG140:$IV140,MATCH(0,COUNTIF($DR140:DT140,$EG140:$IV140),0)),\"\")","v":"{Measure:Quantity}"},{"$f":"IFERROR(INDEX($EG140:$IV140,MATCH(0,COUNTIF($DR140:DU140,$EG140:$IV140),0)),\"\")","v":"{Proposed Compressor HP}"},{"$f":"IFERROR(INDEX($EG140:$IV140,MATCH(0,COUNTIF($DR140:DV140,$EG140:$IV140),0)),\"\")","v":"{Weekly Hrs of Operation}"},{"$f":"IFERROR(INDEX($EG140:$IV140,MATCH(0,COUNTIF($DR140:DW140,$EG140:$IV140),0)),\"\")","v":"{Weeks Per Year}"},{"$f":"IFERROR(INDEX($EG140:$IV140,MATCH(0,COUNTIF($DR140:DX140,$EG140:$IV140),0)),\"\")","v":""},{"$f":"IFERROR(INDEX($EG140:$IV140,MATCH(0,COUNTIF($DR140:DY140,$EG140:$IV140),0)),\"\")","v":""},{"$f":"IFERROR(INDEX($EG140:$IV140,MATCH(0,COUNTIF($DR140:DZ140,$EG140:$IV140),0)),\"\")","v":""},{"$f":"IFERROR(INDEX($EG140:$IV140,MATCH(0,COUNTIF($DR140:EA140,$EG140:$IV140),0)),\"\")","v":""},{"$f":"IFERROR(INDEX($EG140:$IV140,MATCH(0,COUNTIF($DR140:EB140,$EG140:$IV140),0)),\"\")","v":""},{"$f":"IFERROR(INDEX($EG140:$IV140,MATCH(0,COUNTIF($DR140:EC140,$EG140:$IV140),0)),\"\")","v":""},null,null,{"$f":"IFERROR(MID($G140,FIND(CHAR(160),SUBSTITUTE($G140,\"{\",CHAR(160),EG$1)),FIND(CHAR(160),SUBSTITUTE($G140,\"}\",CHAR(160),EG$1))-FIND(CHAR(160),SUBSTITUTE($G140,\"{\",CHAR(160),EG$1))+1),\"\")","v":"{Measure:Quantity}"},{"$f":"IFERROR(MID($G140,FIND(CHAR(160),SUBSTITUTE($G140,\"{\",CHAR(160),EH$1)),FIND(CHAR(160),SUBSTITUTE($G140,\"}\",CHAR(160),EH$1))-FIND(CHAR(160),SUBSTITUTE($G140,\"{\",CHAR(160),EH$1))+1),\"\")","v":"{Proposed Compressor HP}"},{"$f":"IFERROR(MID($G140,FIND(CHAR(160),SUBSTITUTE($G140,\"{\",CHAR(160),EI$1)),FIND(CHAR(160),SUBSTITUTE($G140,\"}\",CHAR(160),EI$1))-FIND(CHAR(160),SUBSTITUTE($G140,\"{\",CHAR(160),EI$1))+1),\"\")","v":""},{"$f":"IFERROR(MID($G140,FIND(CHAR(160),SUBSTITUTE($G140,\"{\",CHAR(160),EJ$1)),FIND(CHAR(160),SUBSTITUTE($G140,\"}\",CHAR(160),EJ$1))-FIND(CHAR(160),SUBSTITUTE($G140,\"{\",CHAR(160),EJ$1))+1),\"\")","v":""},{"$f":"IFERROR(MID($G140,FIND(CHAR(160),SUBSTITUTE($G140,\"{\",CHAR(160),EK$1)),FIND(CHAR(160),SUBSTITUTE($G140,\"}\",CHAR(160),EK$1))-FIND(CHAR(160),SUBSTITUTE($G140,\"{\",CHAR(160),EK$1))+1),\"\")","v":""},{"$f":"IFERROR(MID($G140,FIND(CHAR(160),SUBSTITUTE($G140,\"{\",CHAR(160),EL$1)),FIND(CHAR(160),SUBSTITUTE($G140,\"}\",CHAR(160),EL$1))-FIND(CHAR(160),SUBSTITUTE($G140,\"{\",CHAR(160),EL$1))+1),\"\")","v":""},{"$f":"IFERROR(MID($G140,FIND(CHAR(160),SUBSTITUTE($G140,\"{\",CHAR(160),EM$1)),FIND(CHAR(160),SUBSTITUTE($G140,\"}\",CHAR(160),EM$1))-FIND(CHAR(160),SUBSTITUTE($G140,\"{\",CHAR(160),EM$1))+1),\"\")","v":""},{"$f":"IFERROR(MID($G140,FIND(CHAR(160),SUBSTITUTE($G140,\"{\",CHAR(160),EN$1)),FIND(CHAR(160),SUBSTITUTE($G140,\"}\",CHAR(160),EN$1))-FIND(CHAR(160),SUBSTITUTE($G140,\"{\",CHAR(160),EN$1))+1),\"\")","v":""},{"$f":"IFERROR(MID($G140,FIND(CHAR(160),SUBSTITUTE($G140,\"{\",CHAR(160),EO$1)),FIND(CHAR(160),SUBSTITUTE($G140,\"}\",CHAR(160),EO$1))-FIND(CHAR(160),SUBSTITUTE($G140,\"{\",CHAR(160),EO$1))+1),\"\")","v":""},{"$f":"IFERROR(MID($G140,FIND(CHAR(160),SUBSTITUTE($G140,\"{\",CHAR(160),EP$1)),FIND(CHAR(160),SUBSTITUTE($G140,\"}\",CHAR(160),EP$1))-FIND(CHAR(160),SUBSTITUTE($G140,\"{\",CHAR(160),EP$1))+1),\"\")","v":""},{"$f":"IFERROR(MID($J140,FIND(CHAR(160),SUBSTITUTE($J140,\"{\",CHAR(160),EQ$1)),FIND(CHAR(160),SUBSTITUTE($J140,\"}\",CHAR(160),EQ$1))-FIND(CHAR(160),SUBSTITUTE($J140,\"{\",CHAR(160),EQ$1))+1),\"\")","v":"{Measure:Quantity}"},{"$f":"IFERROR(MID($J140,FIND(CHAR(160),SUBSTITUTE($J140,\"{\",CHAR(160),ER$1)),FIND(CHAR(160),SUBSTITUTE($J140,\"}\",CHAR(160),ER$1))-FIND(CHAR(160),SUBSTITUTE($J140,\"{\",CHAR(160),ER$1))+1),\"\")","v":"{Proposed Compressor HP}"},{"$f":"IFERROR(MID($J140,FIND(CHAR(160),SUBSTITUTE($J140,\"{\",CHAR(160),ES$1)),FIND(CHAR(160),SUBSTITUTE($J140,\"}\",CHAR(160),ES$1))-FIND(CHAR(160),SUBSTITUTE($J140,\"{\",CHAR(160),ES$1))+1),\"\")","v":"{Measure:Quantity}"},{"$f":"IFERROR(MID($J140,FIND(CHAR(160),SUBSTITUTE($J140,\"{\",CHAR(160),ET$1)),FIND(CHAR(160),SUBSTITUTE($J140,\"}\",CHAR(160),ET$1))-FIND(CHAR(160),SUBSTITUTE($J140,\"{\",CHAR(160),ET$1))+1),\"\")","v":"{Proposed Compressor HP}"},{"$f":"IFERROR(MID($J140,FIND(CHAR(160),SUBSTITUTE($J140,\"{\",CHAR(160),EU$1)),FIND(CHAR(160),SUBSTITUTE($J140,\"}\",CHAR(160),EU$1))-FIND(CHAR(160),SUBSTITUTE($J140,\"{\",CHAR(160),EU$1))+1),\"\")","v":""},{"$f":"IFERROR(MID($J140,FIND(CHAR(160),SUBSTITUTE($J140,\"{\",CHAR(160),EV$1)),FIND(CHAR(160),SUBSTITUTE($J140,\"}\",CHAR(160),EV$1))-FIND(CHAR(160),SUBSTITUTE($J140,\"{\",CHAR(160),EV$1))+1),\"\")","v":""},{"$f":"IFERROR(MID($J140,FIND(CHAR(160),SUBSTITUTE($J140,\"{\",CHAR(160),EW$1)),FIND(CHAR(160),SUBSTITUTE($J140,\"}\",CHAR(160),EW$1))-FIND(CHAR(160),SUBSTITUTE($J140,\"{\",CHAR(160),EW$1))+1),\"\")","v":""},{"$f":"IFERROR(MID($J140,FIND(CHAR(160),SUBSTITUTE($J140,\"{\",CHAR(160),EX$1)),FIND(CHAR(160),SUBSTITUTE($J140,\"}\",CHAR(160),EX$1))-FIND(CHAR(160),SUBSTITUTE($J140,\"{\",CHAR(160),EX$1))+1),\"\")","v":""},{"$f":"IFERROR(MID($J140,FIND(CHAR(160),SUBSTITUTE($J140,\"{\",CHAR(160),EY$1)),FIND(CHAR(160),SUBSTITUTE($J140,\"}\",CHAR(160),EY$1))-FIND(CHAR(160),SUBSTITUTE($J140,\"{\",CHAR(160),EY$1))+1),\"\")","v":""},{"$f":"IFERROR(MID($J140,FIND(CHAR(160),SUBSTITUTE($J140,\"{\",CHAR(160),EZ$1)),FIND(CHAR(160),SUBSTITUTE($J140,\"}\",CHAR(160),EZ$1))-FIND(CHAR(160),SUBSTITUTE($J140,\"{\",CHAR(160),EZ$1))+1),\"\")","v":""},{"$f":"IFERROR(MID($J140,FIND(CHAR(160),SUBSTITUTE($J140,\"{\",CHAR(160),FA$1)),FIND(CHAR(160),SUBSTITUTE($J140,\"}\",CHAR(160),FA$1))-FIND(CHAR(160),SUBSTITUTE($J140,\"{\",CHAR(160),FA$1))+1),\"\")","v":"{Measure:Quantity}"},{"$f":"IFERROR(MID($J140,FIND(CHAR(160),SUBSTITUTE($J140,\"{\",CHAR(160),FB$1)),FIND(CHAR(160),SUBSTITUTE($J140,\"}\",CHAR(160),FB$1))-FIND(CHAR(160),SUBSTITUTE($J140,\"{\",CHAR(160),FB$1))+1),\"\")","v":"{Proposed Compressor HP}"},{"$f":"IFERROR(MID($O140,FIND(CHAR(160),SUBSTITUTE($O140,\"{\",CHAR(160),FC$1)),FIND(CHAR(160),SUBSTITUTE($O140,\"}\",CHAR(160),FC$1))-FIND(CHAR(160),SUBSTITUTE($O140,\"{\",CHAR(160),FC$1))+1),\"\")","v":"{Weekly Hrs of Operation}"},{"$f":"IFERROR(MID($O140,FIND(CHAR(160),SUBSTITUTE($O140,\"{\",CHAR(160),FD$1)),FIND(CHAR(160),SUBSTITUTE($O140,\"}\",CHAR(160),FD$1))-FIND(CHAR(160),SUBSTITUTE($O140,\"{\",CHAR(160),FD$1))+1),\"\")","v":"{Weeks Per Year}"},{"$f":"IFERROR(MID($O140,FIND(CHAR(160),SUBSTITUTE($O140,\"{\",CHAR(160),FE$1)),FIND(CHAR(160),SUBSTITUTE($O140,\"}\",CHAR(160),FE$1))-FIND(CHAR(160),SUBSTITUTE($O140,\"{\",CHAR(160),FE$1))+1),\"\")","v":""},{"$f":"IFERROR(MID($O140,FIND(CHAR(160),SUBSTITUTE($O140,\"{\",CHAR(160),FF$1)),FIND(CHAR(160),SUBSTITUTE($O140,\"}\",CHAR(160),FF$1))-FIND(CHAR(160),SUBSTITUTE($O140,\"{\",CHAR(160),FF$1))+1),\"\")","v":""},{"$f":"IFERROR(MID($O140,FIND(CHAR(160),SUBSTITUTE($O140,\"{\",CHAR(160),FG$1)),FIND(CHAR(160),SUBSTITUTE($O140,\"}\",CHAR(160),FG$1))-FIND(CHAR(160),SUBSTITUTE($O140,\"{\",CHAR(160),FG$1))+1),\"\")","v":""},{"$f":"IFERROR(MID($O140,FIND(CHAR(160),SUBSTITUTE($O140,\"{\",CHAR(160),FH$1)),FIND(CHAR(160),SUBSTITUTE($O140,\"}\",CHAR(160),FH$1))-FIND(CHAR(160),SUBSTITUTE($O140,\"{\",CHAR(160),FH$1))+1),\"\")","v":""},{"$f":"IFERROR(MID($O140,FIND(CHAR(160),SUBSTITUTE($O140,\"{\",CHAR(160),FI$1)),FIND(CHAR(160),SUBSTITUTE($O140,\"}\",CHAR(160),FI$1))-FIND(CHAR(160),SUBSTITUTE($O140,\"{\",CHAR(160),FI$1))+1),\"\")","v":""},{"$f":"IFERROR(MID($O140,FIND(CHAR(160),SUBSTITUTE($O140,\"{\",CHAR(160),FJ$1)),FIND(CHAR(160),SUBSTITUTE($O140,\"}\",CHAR(160),FJ$1))-FIND(CHAR(160),SUBSTITUTE($O140,\"{\",CHAR(160),FJ$1))+1),\"\")","v":""},{"$f":"IFERROR(MID($O140,FIND(CHAR(160),SUBSTITUTE($O140,\"{\",CHAR(160),FK$1)),FIND(CHAR(160),SUBSTITUTE($O140,\"}\",CHAR(160),FK$1))-FIND(CHAR(160),SUBSTITUTE($O140,\"{\",CHAR(160),FK$1))+1),\"\")","v":"{Measure:Quantity}"},{"$f":"IFERROR(MID($O140,FIND(CHAR(160),SUBSTITUTE($O140,\"{\",CHAR(160),FL$1)),FIND(CHAR(160),SUBSTITUTE($O140,\"}\",CHAR(160),FL$1))-FIND(CHAR(160),SUBSTITUTE($O140,\"{\",CHAR(160),FL$1))+1),\"\")","v":"{Proposed Compressor HP}"},{"$f":"IFERROR(MID($R140,FIND(CHAR(160),SUBSTITUTE($R140,\"{\",CHAR(160),FM$1)),FIND(CHAR(160),SUBSTITUTE($R140,\"}\",CHAR(160),FM$1))-FIND(CHAR(160),SUBSTITUTE($R140,\"{\",CHAR(160),FM$1))+1),\"\")","v":""},{"$f":"IFERROR(MID($R140,FIND(CHAR(160),SUBSTITUTE($R140,\"{\",CHAR(160),FN$1)),FIND(CHAR(160),SUBSTITUTE($R140,\"}\",CHAR(160),FN$1))-FIND(CHAR(160),SUBSTITUTE($R140,\"{\",CHAR(160),FN$1))+1),\"\")","v":""},{"$f":"IFERROR(MID($R140,FIND(CHAR(160),SUBSTITUTE($R140,\"{\",CHAR(160),FO$1)),FIND(CHAR(160),SUBSTITUTE($R140,\"}\",CHAR(160),FO$1))-FIND(CHAR(160),SUBSTITUTE($R140,\"{\",CHAR(160),FO$1))+1),\"\")","v":""},{"$f":"IFERROR(MID($R140,FIND(CHAR(160),SUBSTITUTE($R140,\"{\",CHAR(160),FP$1)),FIND(CHAR(160),SUBSTITUTE($R140,\"}\",CHAR(160),FP$1))-FIND(CHAR(160),SUBSTITUTE($R140,\"{\",CHAR(160),FP$1))+1),\"\")","v":""},{"$f":"IFERROR(MID($R140,FIND(CHAR(160),SUBSTITUTE($R140,\"{\",CHAR(160),FQ$1)),FIND(CHAR(160),SUBSTITUTE($R140,\"}\",CHAR(160),FQ$1))-FIND(CHAR(160),SUBSTITUTE($R140,\"{\",CHAR(160),FQ$1))+1),\"\")","v":""},{"$f":"IFERROR(MID($R140,FIND(CHAR(160),SUBSTITUTE($R140,\"{\",CHAR(160),FR$1)),FIND(CHAR(160),SUBSTITUTE($R140,\"}\",CHAR(160),FR$1))-FIND(CHAR(160),SUBSTITUTE($R140,\"{\",CHAR(160),FR$1))+1),\"\")","v":""},{"$f":"IFERROR(MID($R140,FIND(CHAR(160),SUBSTITUTE($R140,\"{\",CHAR(160),FS$1)),FIND(CHAR(160),SUBSTITUTE($R140,\"}\",CHAR(160),FS$1))-FIND(CHAR(160),SUBSTITUTE($R140,\"{\",CHAR(160),FS$1))+1),\"\")","v":""},{"$f":"IFERROR(MID($R140,FIND(CHAR(160),SUBSTITUTE($R140,\"{\",CHAR(160),FT$1)),FIND(CHAR(160),SUBSTITUTE($R140,\"}\",CHAR(160),FT$1))-FIND(CHAR(160),SUBSTITUTE($R140,\"{\",CHAR(160),FT$1))+1),\"\")","v":""},{"$f":"IFERROR(MID($R140,FIND(CHAR(160),SUBSTITUTE($R140,\"{\",CHAR(160),FU$1)),FIND(CHAR(160),SUBSTITUTE($R140,\"}\",CHAR(160),FU$1))-FIND(CHAR(160),SUBSTITUTE($R140,\"{\",CHAR(160),FU$1))+1),\"\")","v":"{Measure:Quantity}"},{"$f":"IFERROR(MID($R140,FIND(CHAR(160),SUBSTITUTE($R140,\"{\",CHAR(160),FV$1)),FIND(CHAR(160),SUBSTITUTE($R140,\"}\",CHAR(160),FV$1))-FIND(CHAR(160),SUBSTITUTE($R140,\"{\",CHAR(160),FV$1))+1),\"\")","v":"{Proposed Compressor HP}"},{"$f":"IFERROR(MID($U140,FIND(CHAR(160),SUBSTITUTE($U140,\"{\",CHAR(160),FW$1)),FIND(CHAR(160),SUBSTITUTE($U140,\"}\",CHAR(160),FW$1))-FIND(CHAR(160),SUBSTITUTE($U140,\"{\",CHAR(160),FW$1))+1),\"\")","v":"{Factor:WinterCF}"},{"$f":"IFERROR(MID($U140,FIND(CHAR(160),SUBSTITUTE($U140,\"{\",CHAR(160),FX$1)),FIND(CHAR(160),SUBSTITUTE($U140,\"}\",CHAR(160),FX$1))-FIND(CHAR(160),SUBSTITUTE($U140,\"{\",CHAR(160),FX$1))+1),\"\")","v":""},{"$f":"IFERROR(MID($U140,FIND(CHAR(160),SUBSTITUTE($U140,\"{\",CHAR(160),FY$1)),FIND(CHAR(160),SUBSTITUTE($U140,\"}\",CHAR(160),FY$1))-FIND(CHAR(160),SUBSTITUTE($U140,\"{\",CHAR(160),FY$1))+1),\"\")","v":""},{"$f":"IFERROR(MID($U140,FIND(CHAR(160),SUBSTITUTE($U140,\"{\",CHAR(160),FZ$1)),FIND(CHAR(160),SUBSTITUTE($U140,\"}\",CHAR(160),FZ$1))-FIND(CHAR(160),SUBSTITUTE($U140,\"{\",CHAR(160),FZ$1))+1),\"\")","v":""},{"$f":"IFERROR(MID($U140,FIND(CHAR(160),SUBSTITUTE($U140,\"{\",CHAR(160),GA$1)),FIND(CHAR(160),SUBSTITUTE($U140,\"}\",CHAR(160),GA$1))-FIND(CHAR(160),SUBSTITUTE($U140,\"{\",CHAR(160),GA$1))+1),\"\")","v":""},{"$f":"IFERROR(MID($U140,FIND(CHAR(160),SUBSTITUTE($U140,\"{\",CHAR(160),GB$1)),FIND(CHAR(160),SUBSTITUTE($U140,\"}\",CHAR(160),GB$1))-FIND(CHAR(160),SUBSTITUTE($U140,\"{\",CHAR(160),GB$1))+1),\"\")","v":""},{"$f":"IFERROR(MID($U140,FIND(CHAR(160),SUBSTITUTE($U140,\"{\",CHAR(160),GC$1)),FIND(CHAR(160),SUBSTITUTE($U140,\"}\",CHAR(160),GC$1))-FIND(CHAR(160),SUBSTITUTE($U140,\"{\",CHAR(160),GC$1))+1),\"\")","v":""},{"$f":"IFERROR(MID($U140,FIND(CHAR(160),SUBSTITUTE($U140,\"{\",CHAR(160),GD$1)),FIND(CHAR(160),SUBSTITUTE($U140,\"}\",CHAR(160),GD$1))-FIND(CHAR(160),SUBSTITUTE($U140,\"{\",CHAR(160),GD$1))+1),\"\")","v":""},{"$f":"IFERROR(MID($U140,FIND(CHAR(160),SUBSTITUTE($U140,\"{\",CHAR(160),GE$1)),FIND(CHAR(160),SUBSTITUTE($U140,\"}\",CHAR(160),GE$1))-FIND(CHAR(160),SUBSTITUTE($U140,\"{\",CHAR(160),GE$1))+1),\"\")","v":"{Measure:Quantity}"},{"$f":"IFERROR(MID($U140,FIND(CHAR(160),SUBSTITUTE($U140,\"{\",CHAR(160),GF$1)),FIND(CHAR(160),SUBSTITUTE($U140,\"}\",CHAR(160),GF$1))-FIND(CHAR(160),SUBSTITUTE($U140,\"{\",CHAR(160),GF$1))+1),\"\")","v":"{Proposed Compressor HP}"},{"$f":"IFERROR(MID($V140,FIND(CHAR(160),SUBSTITUTE($V140,\"{\",CHAR(160),GG$1)),FIND(CHAR(160),SUBSTITUTE($V140,\"}\",CHAR(160),GG$1))-FIND(CHAR(160),SUBSTITUTE($V140,\"{\",CHAR(160),GG$1))+1),\"\")","v":"{Factor:SummerCF}"},{"$f":"IFERROR(MID($V140,FIND(CHAR(160),SUBSTITUTE($V140,\"{\",CHAR(160),GH$1)),FIND(CHAR(160),SUBSTITUTE($V140,\"}\",CHAR(160),GH$1))-FIND(CHAR(160),SUBSTITUTE($V140,\"{\",CHAR(160),GH$1))+1),\"\")","v":""},{"$f":"IFERROR(MID($V140,FIND(CHAR(160),SUBSTITUTE($V140,\"{\",CHAR(160),GI$1)),FIND(CHAR(160),SUBSTITUTE($V140,\"}\",CHAR(160),GI$1))-FIND(CHAR(160),SUBSTITUTE($V140,\"{\",CHAR(160),GI$1))+1),\"\")","v":""},{"$f":"IFERROR(MID($V140,FIND(CHAR(160),SUBSTITUTE($V140,\"{\",CHAR(160),GJ$1)),FIND(CHAR(160),SUBSTITUTE($V140,\"}\",CHAR(160),GJ$1))-FIND(CHAR(160),SUBSTITUTE($V140,\"{\",CHAR(160),GJ$1))+1),\"\")","v":""},{"$f":"IFERROR(MID($V140,FIND(CHAR(160),SUBSTITUTE($V140,\"{\",CHAR(160),GK$1)),FIND(CHAR(160),SUBSTITUTE($V140,\"}\",CHAR(160),GK$1))-FIND(CHAR(160),SUBSTITUTE($V140,\"{\",CHAR(160),GK$1))+1),\"\")","v":""},{"$f":"IFERROR(MID($V140,FIND(CHAR(160),SUBSTITUTE($V140,\"{\",CHAR(160),GL$1)),FIND(CHAR(160),SUBSTITUTE($V140,\"}\",CHAR(160),GL$1))-FIND(CHAR(160),SUBSTITUTE($V140,\"{\",CHAR(160),GL$1))+1),\"\")","v":""},{"$f":"IFERROR(MID($V140,FIND(CHAR(160),SUBSTITUTE($V140,\"{\",CHAR(160),GM$1)),FIND(CHAR(160),SUBSTITUTE($V140,\"}\",CHAR(160),GM$1))-FIND(CHAR(160),SUBSTITUTE($V140,\"{\",CHAR(160),GM$1))+1),\"\")","v":""},{"$f":"IFERROR(MID($V140,FIND(CHAR(160),SUBSTITUTE($V140,\"{\",CHAR(160),GN$1)),FIND(CHAR(160),SUBSTITUTE($V140,\"}\",CHAR(160),GN$1))-FIND(CHAR(160),SUBSTITUTE($V140,\"{\",CHAR(160),GN$1))+1),\"\")","v":""},{"$f":"IFERROR(MID($V140,FIND(CHAR(160),SUBSTITUTE($V140,\"{\",CHAR(160),GO$1)),FIND(CHAR(160),SUBSTITUTE($V140,\"}\",CHAR(160),GO$1))-FIND(CHAR(160),SUBSTITUTE($V140,\"{\",CHAR(160),GO$1))+1),\"\")","v":"{Measure:Quantity}"},{"$f":"IFERROR(MID($V140,FIND(CHAR(160),SUBSTITUTE($V140,\"{\",CHAR(160),GP$1)),FIND(CHAR(160),SUBSTITUTE($V140,\"}\",CHAR(160),GP$1))-FIND(CHAR(160),SUBSTITUTE($V140,\"{\",CHAR(160),GP$1))+1),\"\")","v":"{Proposed Compressor HP}"},{"$f":"IFERROR(MID($W140,FIND(CHAR(160),SUBSTITUTE($W140,\"{\",CHAR(160),GQ$1)),FIND(CHAR(160),SUBSTITUTE($W140,\"}\",CHAR(160),GQ$1))-FIND(CHAR(160),SUBSTITUTE($W140,\"{\",CHAR(160),GQ$1))+1),\"\")","v":""},{"$f":"IFERROR(MID($W140,FIND(CHAR(160),SUBSTITUTE($W140,\"{\",CHAR(160),GR$1)),FIND(CHAR(160),SUBSTITUTE($W140,\"}\",CHAR(160),GR$1))-FIND(CHAR(160),SUBSTITUTE($W140,\"{\",CHAR(160),GR$1))+1),\"\")","v":""},{"$f":"IFERROR(MID($W140,FIND(CHAR(160),SUBSTITUTE($W140,\"{\",CHAR(160),GS$1)),FIND(CHAR(160),SUBSTITUTE($W140,\"}\",CHAR(160),GS$1))-FIND(CHAR(160),SUBSTITUTE($W140,\"{\",CHAR(160),GS$1))+1),\"\")","v":""},{"$f":"IFERROR(MID($W140,FIND(CHAR(160),SUBSTITUTE($W140,\"{\",CHAR(160),GT$1)),FIND(CHAR(160),SUBSTITUTE($W140,\"}\",CHAR(160),GT$1))-FIND(CHAR(160),SUBSTITUTE($W140,\"{\",CHAR(160),GT$1))+1),\"\")","v":""},{"$f":"IFERROR(MID($W140,FIND(CHAR(160),SUBSTITUTE($W140,\"{\",CHAR(160),GU$1)),FIND(CHAR(160),SUBSTITUTE($W140,\"}\",CHAR(160),GU$1))-FIND(CHAR(160),SUBSTITUTE($W140,\"{\",CHAR(160),GU$1))+1),\"\")","v":""},{"$f":"IFERROR(MID($W140,FIND(CHAR(160),SUBSTITUTE($W140,\"{\",CHAR(160),GV$1)),FIND(CHAR(160),SUBSTITUTE($W140,\"}\",CHAR(160),GV$1))-FIND(CHAR(160),SUBSTITUTE($W140,\"{\",CHAR(160),GV$1))+1),\"\")","v":""},{"$f":"IFERROR(MID($W140,FIND(CHAR(160),SUBSTITUTE($W140,\"{\",CHAR(160),GW$1)),FIND(CHAR(160),SUBSTITUTE($W140,\"}\",CHAR(160),GW$1))-FIND(CHAR(160),SUBSTITUTE($W140,\"{\",CHAR(160),GW$1))+1),\"\")","v":""},{"$f":"IFERROR(MID($W140,FIND(CHAR(160),SUBSTITUTE($W140,\"{\",CHAR(160),GX$1)),FIND(CHAR(160),SUBSTITUTE($W140,\"}\",CHAR(160),GX$1))-FIND(CHAR(160),SUBSTITUTE($W140,\"{\",CHAR(160),GX$1))+1),\"\")","v":""},{"$f":"IFERROR(MID($W140,FIND(CHAR(160),SUBSTITUTE($W140,\"{\",CHAR(160),GY$1)),FIND(CHAR(160),SUBSTITUTE($W140,\"}\",CHAR(160),GY$1))-FIND(CHAR(160),SUBSTITUTE($W140,\"{\",CHAR(160),GY$1))+1),\"\")","v":""},{"$f":"IFERROR(MID($W140,FIND(CHAR(160),SUBSTITUTE($W140,\"{\",CHAR(160),GZ$1)),FIND(CHAR(160),SUBSTITUTE($W140,\"}\",CHAR(160),GZ$1))-FIND(CHAR(160),SUBSTITUTE($W140,\"{\",CHAR(160),GZ$1))+1),\"\")","v":""},{"$f":"IFERROR(MID($X140,FIND(CHAR(160),SUBSTITUTE($X140,\"{\",CHAR(160),HA$1)),FIND(CHAR(160),SUBSTITUTE($X140,\"}\",CHAR(160),HA$1))-FIND(CHAR(160),SUBSTITUTE($X140,\"{\",CHAR(160),HA$1))+1),\"\")","v":""},{"$f":"IFERROR(MID($X140,FIND(CHAR(160),SUBSTITUTE($X140,\"{\",CHAR(160),HB$1)),FIND(CHAR(160),SUBSTITUTE($X140,\"}\",CHAR(160),HB$1))-FIND(CHAR(160),SUBSTITUTE($X140,\"{\",CHAR(160),HB$1))+1),\"\")","v":""},{"$f":"IFERROR(MID($X140,FIND(CHAR(160),SUBSTITUTE($X140,\"{\",CHAR(160),HC$1)),FIND(CHAR(160),SUBSTITUTE($X140,\"}\",CHAR(160),HC$1))-FIND(CHAR(160),SUBSTITUTE($X140,\"{\",CHAR(160),HC$1))+1),\"\")","v":""},{"$f":"IFERROR(MID($X140,FIND(CHAR(160),SUBSTITUTE($X140,\"{\",CHAR(160),HD$1)),FIND(CHAR(160),SUBSTITUTE($X140,\"}\",CHAR(160),HD$1))-FIND(CHAR(160),SUBSTITUTE($X140,\"{\",CHAR(160),HD$1))+1),\"\")","v":""},{"$f":"IFERROR(MID($X140,FIND(CHAR(160),SUBSTITUTE($X140,\"{\",CHAR(160),HE$1)),FIND(CHAR(160),SUBSTITUTE($X140,\"}\",CHAR(160),HE$1))-FIND(CHAR(160),SUBSTITUTE($X140,\"{\",CHAR(160),HE$1))+1),\"\")","v":""},{"$f":"IFERROR(MID($X140,FIND(CHAR(160),SUBSTITUTE($X140,\"{\",CHAR(160),HF$1)),FIND(CHAR(160),SUBSTITUTE($X140,\"}\",CHAR(160),HF$1))-FIND(CHAR(160),SUBSTITUTE($X140,\"{\",CHAR(160),HF$1))+1),\"\")","v":""},{"$f":"IFERROR(MID($X140,FIND(CHAR(160),SUBSTITUTE($X140,\"{\",CHAR(160),HG$1)),FIND(CHAR(160),SUBSTITUTE($X140,\"}\",CHAR(160),HG$1))-FIND(CHAR(160),SUBSTITUTE($X140,\"{\",CHAR(160),HG$1))+1),\"\")","v":""},{"$f":"IFERROR(MID($X140,FIND(CHAR(160),SUBSTITUTE($X140,\"{\",CHAR(160),HH$1)),FIND(CHAR(160),SUBSTITUTE($X140,\"}\",CHAR(160),HH$1))-FIND(CHAR(160),SUBSTITUTE($X140,\"{\",CHAR(160),HH$1))+1),\"\")","v":""},{"$f":"IFERROR(MID($X140,FIND(CHAR(160),SUBSTITUTE($X140,\"{\",CHAR(160),HI$1)),FIND(CHAR(160),SUBSTITUTE($X140,\"}\",CHAR(160),HI$1))-FIND(CHAR(160),SUBSTITUTE($X140,\"{\",CHAR(160),HI$1))+1),\"\")","v":""},{"$f":"IFERROR(MID($X140,FIND(CHAR(160),SUBSTITUTE($X140,\"{\",CHAR(160),HJ$1)),FIND(CHAR(160),SUBSTITUTE($X140,\"}\",CHAR(160),HJ$1))-FIND(CHAR(160),SUBSTITUTE($X140,\"{\",CHAR(160),HJ$1))+1),\"\")","v":""},{"$f":"IFERROR(MID($Y140,FIND(CHAR(160),SUBSTITUTE($Y140,\"{\",CHAR(160),HK$1)),FIND(CHAR(160),SUBSTITUTE($Y140,\"}\",CHAR(160),HK$1))-FIND(CHAR(160),SUBSTITUTE($Y140,\"{\",CHAR(160),HK$1))+1),\"\")","v":""},{"$f":"IFERROR(MID($Y140,FIND(CHAR(160),SUBSTITUTE($Y140,\"{\",CHAR(160),HL$1)),FIND(CHAR(160),SUBSTITUTE($Y140,\"}\",CHAR(160),HL$1))-FIND(CHAR(160),SUBSTITUTE($Y140,\"{\",CHAR(160),HL$1))+1),\"\")","v":""},{"$f":"IFERROR(MID($Y140,FIND(CHAR(160),SUBSTITUTE($Y140,\"{\",CHAR(160),HM$1)),FIND(CHAR(160),SUBSTITUTE($Y140,\"}\",CHAR(160),HM$1))-FIND(CHAR(160),SUBSTITUTE($Y140,\"{\",CHAR(160),HM$1))+1),\"\")","v":""},{"$f":"IFERROR(MID($Y140,FIND(CHAR(160),SUBSTITUTE($Y140,\"{\",CHAR(160),HN$1)),FIND(CHAR(160),SUBSTITUTE($Y140,\"}\",CHAR(160),HN$1))-FIND(CHAR(160),SUBSTITUTE($Y140,\"{\",CHAR(160),HN$1))+1),\"\")","v":""},{"$f":"IFERROR(MID($Y140,FIND(CHAR(160),SUBSTITUTE($Y140,\"{\",CHAR(160),HO$1)),FIND(CHAR(160),SUBSTITUTE($Y140,\"}\",CHAR(160),HO$1))-FIND(CHAR(160),SUBSTITUTE($Y140,\"{\",CHAR(160),HO$1))+1),\"\")","v":""},{"$f":"IFERROR(MID($Y140,FIND(CHAR(160),SUBSTITUTE($Y140,\"{\",CHAR(160),HP$1)),FIND(CHAR(160),SUBSTITUTE($Y140,\"}\",CHAR(160),HP$1))-FIND(CHAR(160),SUBSTITUTE($Y140,\"{\",CHAR(160),HP$1))+1),\"\")","v":""},{"$f":"IFERROR(MID($Y140,FIND(CHAR(160),SUBSTITUTE($Y140,\"{\",CHAR(160),HQ$1)),FIND(CHAR(160),SUBSTITUTE($Y140,\"}\",CHAR(160),HQ$1))-FIND(CHAR(160),SUBSTITUTE($Y140,\"{\",CHAR(160),HQ$1))+1),\"\")","v":""},{"$f":"IFERROR(MID($Y140,FIND(CHAR(160),SUBSTITUTE($Y140,\"{\",CHAR(160),HR$1)),FIND(CHAR(160),SUBSTITUTE($Y140,\"}\",CHAR(160),HR$1))-FIND(CHAR(160),SUBSTITUTE($Y140,\"{\",CHAR(160),HR$1))+1),\"\")","v":""},{"$f":"IFERROR(MID($Y140,FIND(CHAR(160),SUBSTITUTE($Y140,\"{\",CHAR(160),HS$1)),FIND(CHAR(160),SUBSTITUTE($Y140,\"}\",CHAR(160),HS$1))-FIND(CHAR(160),SUBSTITUTE($Y140,\"{\",CHAR(160),HS$1))+1),\"\")","v":""},{"$f":"IFERROR(MID($Y140,FIND(CHAR(160),SUBSTITUTE($Y140,\"{\",CHAR(160),HT$1)),FIND(CHAR(160),SUBSTITUTE($Y140,\"}\",CHAR(160),HT$1))-FIND(CHAR(160),SUBSTITUTE($Y140,\"{\",CHAR(160),HT$1))+1),\"\")","v":""},{"$f":"IFERROR(MID($Z140,FIND(CHAR(160),SUBSTITUTE($Z140,\"{\",CHAR(160),HU$1)),FIND(CHAR(160),SUBSTITUTE($Z140,\"}\",CHAR(160),HU$1))-FIND(CHAR(160),SUBSTITUTE($Z140,\"{\",CHAR(160),HU$1))+1),\"\")","v":""},{"$f":"IFERROR(MID($Z140,FIND(CHAR(160),SUBSTITUTE($Z140,\"{\",CHAR(160),HV$1)),FIND(CHAR(160),SUBSTITUTE($Z140,\"}\",CHAR(160),HV$1))-FIND(CHAR(160),SUBSTITUTE($Z140,\"{\",CHAR(160),HV$1))+1),\"\")","v":""},{"$f":"IFERROR(MID($Z140,FIND(CHAR(160),SUBSTITUTE($Z140,\"{\",CHAR(160),HW$1)),FIND(CHAR(160),SUBSTITUTE($Z140,\"}\",CHAR(160),HW$1))-FIND(CHAR(160),SUBSTITUTE($Z140,\"{\",CHAR(160),HW$1))+1),\"\")","v":""},{"$f":"IFERROR(MID($Z140,FIND(CHAR(160),SUBSTITUTE($Z140,\"{\",CHAR(160),HX$1)),FIND(CHAR(160),SUBSTITUTE($Z140,\"}\",CHAR(160),HX$1))-FIND(CHAR(160),SUBSTITUTE($Z140,\"{\",CHAR(160),HX$1))+1),\"\")","v":""},{"$f":"IFERROR(MID($Z140,FIND(CHAR(160),SUBSTITUTE($Z140,\"{\",CHAR(160),HY$1)),FIND(CHAR(160),SUBSTITUTE($Z140,\"}\",CHAR(160),HY$1))-FIND(CHAR(160),SUBSTITUTE($Z140,\"{\",CHAR(160),HY$1))+1),\"\")","v":""},{"$f":"IFERROR(MID($Z140,FIND(CHAR(160),SUBSTITUTE($Z140,\"{\",CHAR(160),HZ$1)),FIND(CHAR(160),SUBSTITUTE($Z140,\"}\",CHAR(160),HZ$1))-FIND(CHAR(160),SUBSTITUTE($Z140,\"{\",CHAR(160),HZ$1))+1),\"\")","v":""},{"$f":"IFERROR(MID($Z140,FIND(CHAR(160),SUBSTITUTE($Z140,\"{\",CHAR(160),IA$1)),FIND(CHAR(160),SUBSTITUTE($Z140,\"}\",CHAR(160),IA$1))-FIND(CHAR(160),SUBSTITUTE($Z140,\"{\",CHAR(160),IA$1))+1),\"\")","v":""},{"$f":"IFERROR(MID($Z140,FIND(CHAR(160),SUBSTITUTE($Z140,\"{\",CHAR(160),IB$1)),FIND(CHAR(160),SUBSTITUTE($Z140,\"}\",CHAR(160),IB$1))-FIND(CHAR(160),SUBSTITUTE($Z140,\"{\",CHAR(160),IB$1))+1),\"\")","v":""},{"$f":"IFERROR(MID($Z140,FIND(CHAR(160),SUBSTITUTE($Z140,\"{\",CHAR(160),IC$1)),FIND(CHAR(160),SUBSTITUTE($Z140,\"}\",CHAR(160),IC$1))-FIND(CHAR(160),SUBSTITUTE($Z140,\"{\",CHAR(160),IC$1))+1),\"\")","v":""},{"$f":"IFERROR(MID($Z140,FIND(CHAR(160),SUBSTITUTE($Z140,\"{\",CHAR(160),ID$1)),FIND(CHAR(160),SUBSTITUTE($Z140,\"}\",CHAR(160),ID$1))-FIND(CHAR(160),SUBSTITUTE($Z140,\"{\",CHAR(160),ID$1))+1),\"\")","v":""},{"$f":"IFERROR(MID($AA140,FIND(CHAR(160),SUBSTITUTE($AA140,\"{\",CHAR(160),IE$1)),FIND(CHAR(160),SUBSTITUTE($AA140,\"}\",CHAR(160),IE$1))-FIND(CHAR(160),SUBSTITUTE($AA140,\"{\",CHAR(160),IE$1))+1),\"\")","v":""},{"$f":"IFERROR(MID($AA140,FIND(CHAR(160),SUBSTITUTE($AA140,\"{\",CHAR(160),IF$1)),FIND(CHAR(160),SUBSTITUTE($AA140,\"}\",CHAR(160),IF$1))-FIND(CHAR(160),SUBSTITUTE($AA140,\"{\",CHAR(160),IF$1))+1),\"\")","v":""},{"$f":"IFERROR(MID($AA140,FIND(CHAR(160),SUBSTITUTE($AA140,\"{\",CHAR(160),IG$1)),FIND(CHAR(160),SUBSTITUTE($AA140,\"}\",CHAR(160),IG$1))-FIND(CHAR(160),SUBSTITUTE($AA140,\"{\",CHAR(160),IG$1))+1),\"\")","v":""},{"$f":"IFERROR(MID($AA140,FIND(CHAR(160),SUBSTITUTE($AA140,\"{\",CHAR(160),IH$1)),FIND(CHAR(160),SUBSTITUTE($AA140,\"}\",CHAR(160),IH$1))-FIND(CHAR(160),SUBSTITUTE($AA140,\"{\",CHAR(160),IH$1))+1),\"\")","v":""},{"$f":"IFERROR(MID($AA140,FIND(CHAR(160),SUBSTITUTE($AA140,\"{\",CHAR(160),II$1)),FIND(CHAR(160),SUBSTITUTE($AA140,\"}\",CHAR(160),II$1))-FIND(CHAR(160),SUBSTITUTE($AA140,\"{\",CHAR(160),II$1))+1),\"\")","v":""},{"$f":"IFERROR(MID($AA140,FIND(CHAR(160),SUBSTITUTE($AA140,\"{\",CHAR(160),IJ$1)),FIND(CHAR(160),SUBSTITUTE($AA140,\"}\",CHAR(160),IJ$1))-FIND(CHAR(160),SUBSTITUTE($AA140,\"{\",CHAR(160),IJ$1))+1),\"\")","v":""},{"$f":"IFERROR(MID($AA140,FIND(CHAR(160),SUBSTITUTE($AA140,\"{\",CHAR(160),IK$1)),FIND(CHAR(160),SUBSTITUTE($AA140,\"}\",CHAR(160),IK$1))-FIND(CHAR(160),SUBSTITUTE($AA140,\"{\",CHAR(160),IK$1))+1),\"\")","v":""},{"$f":"IFERROR(MID($AA140,FIND(CHAR(160),SUBSTITUTE($AA140,\"{\",CHAR(160),IL$1)),FIND(CHAR(160),SUBSTITUTE($AA140,\"}\",CHAR(160),IL$1))-FIND(CHAR(160),SUBSTITUTE($AA140,\"{\",CHAR(160),IL$1))+1),\"\")","v":""},{"$f":"IFERROR(MID($AA140,FIND(CHAR(160),SUBSTITUTE($AA140,\"{\",CHAR(160),IM$1)),FIND(CHAR(160),SUBSTITUTE($AA140,\"}\",CHAR(160),IM$1))-FIND(CHAR(160),SUBSTITUTE($AA140,\"{\",CHAR(160),IM$1))+1),\"\")","v":""},{"$f":"IFERROR(MID($AA140,FIND(CHAR(160),SUBSTITUTE($AA140,\"{\",CHAR(160),IN$1)),FIND(CHAR(160),SUBSTITUTE($AA140,\"}\",CHAR(160),IN$1))-FIND(CHAR(160),SUBSTITUTE($AA140,\"{\",CHAR(160),IN$1))+1),\"\")","v":""},{"$f":"IFERROR(MID($AB140,FIND(CHAR(160),SUBSTITUTE($AB140,\"{\",CHAR(160),IO$1)),FIND(CHAR(160),SUBSTITUTE($AB140,\"}\",CHAR(160),IO$1))-FIND(CHAR(160),SUBSTITUTE($AB140,\"{\",CHAR(160),IO$1))+1),\"\")","v":""},{"$f":"IFERROR(MID($AB140,FIND(CHAR(160),SUBSTITUTE($AB140,\"{\",CHAR(160),IP$1)),FIND(CHAR(160),SUBSTITUTE($AB140,\"}\",CHAR(160),IP$1))-FIND(CHAR(160),SUBSTITUTE($AB140,\"{\",CHAR(160),IP$1))+1),\"\")","v":""},{"$f":"IFERROR(MID($AB140,FIND(CHAR(160),SUBSTITUTE($AB140,\"{\",CHAR(160),IQ$1)),FIND(CHAR(160),SUBSTITUTE($AB140,\"}\",CHAR(160),IQ$1))-FIND(CHAR(160),SUBSTITUTE($AB140,\"{\",CHAR(160),IQ$1))+1),\"\")","v":""},{"$f":"IFERROR(MID($AB140,FIND(CHAR(160),SUBSTITUTE($AB140,\"{\",CHAR(160),IR$1)),FIND(CHAR(160),SUBSTITUTE($AB140,\"}\",CHAR(160),IR$1))-FIND(CHAR(160),SUBSTITUTE($AB140,\"{\",CHAR(160),IR$1))+1),\"\")","v":""},{"$f":"IFERROR(MID($AB140,FIND(CHAR(160),SUBSTITUTE($AB140,\"{\",CHAR(160),IS$1)),FIND(CHAR(160),SUBSTITUTE($AB140,\"}\",CHAR(160),IS$1))-FIND(CHAR(160),SUBSTITUTE($AB140,\"{\",CHAR(160),IS$1))+1),\"\")","v":""},{"$f":"IFERROR(MID($AB140,FIND(CHAR(160),SUBSTITUTE($AB140,\"{\",CHAR(160),IT$1)),FIND(CHAR(160),SUBSTITUTE($AB140,\"}\",CHAR(160),IT$1))-FIND(CHAR(160),SUBSTITUTE($AB140,\"{\",CHAR(160),IT$1))+1),\"\")","v":""},{"$f":"IFERROR(MID($AB140,FIND(CHAR(160),SUBSTITUTE($AB140,\"{\",CHAR(160),IU$1)),FIND(CHAR(160),SUBSTITUTE($AB140,\"}\",CHAR(160),IU$1))-FIND(CHAR(160),SUBSTITUTE($AB140,\"{\",CHAR(160),IU$1))+1),\"\")","v":""},{"$f":"IFERROR(MID($AB140,FIND(CHAR(160),SUBSTITUTE($AB140,\"{\",CHAR(160),IV$1)),FIND(CHAR(160),SUBSTITUTE($AB140,\"}\",CHAR(160),IV$1))-FIND(CHAR(160),SUBSTITUTE($AB140,\"{\",CHAR(160),IV$1))+1),\"\")","v":""},{"$f":"IFERROR(MID($AB140,FIND(CHAR(160),SUBSTITUTE($AB140,\"{\",CHAR(160),IW$1)),FIND(CHAR(160),SUBSTITUTE($AB140,\"}\",CHAR(160),IW$1))-FIND(CHAR(160),SUBSTITUTE($AB140,\"{\",CHAR(160),IW$1))+1),\"\")","v":""},{"$f":"IFERROR(MID($AB140,FIND(CHAR(160),SUBSTITUTE($AB140,\"{\",CHAR(160),IX$1)),FIND(CHAR(160),SUBSTITUTE($AB140,\"}\",CHAR(160),IX$1))-FIND(CHAR(160),SUBSTITUTE($AB140,\"{\",CHAR(160),IX$1))+1),\"\")","v":""},null,{"$f":"10-COUNTIF(DU140:ED140,\"\")","v":4}]
["C&I Prescriptive Compressed Air Solutions","Fast Track Compressor - C2 - Compressor HP 16-30","C - C2","2021-07-01","2022-06-30","Calculated","{Measure:Quantity}*{Proposed Compressor HP}*164",0,"Calculated","if({Measure:Quantity}*{Proposed Compressor HP}*90>10000,10000,{Measure:Quantity}*{Proposed Compressor HP}*90)",0,"2017-07-01","2022-06-30","Calculated","{Measure:Quantity} *{Proposed Compressor HP} * 0.2358 * {Weekly Hrs of Operation} * {Weeks Per Year}",1E-4,null,"{Measure:Quantity} *{Proposed Compressor HP} * 0.2358",null,null,"{Measure:Quantity} *{Proposed Compressor HP} * 0.2358 * {Factor:WinterCF}","{Measure:Quantity} *{Proposed Compressor HP} * 0.2358 * {Factor:SummerCF}",null,null,null,null,null,null,"2017-07-01","2022-06-30",15,0.7,0.91100000000000003,0.30399999999999999,0.36099999999999999,0.156,0.17899999999999999,1,1.1220000000000001,1,0.52,1.6E-2,null,{"$f":"DU141","v":"{Measure:Quantity}"},1,{"$f":"DV141","v":"{Proposed Compressor HP}"},20,{"$f":"DW141","v":"{Weekly Hrs of Operation}"},50,{"$f":"DX141","v":"{Weeks Per Year}"},50,{"$f":"DY141","v":""},null,{"$f":"DZ141","v":""},null,{"$f":"EA141","v":""},null,{"$f":"EB141","v":""},null,{"$f":"EC141","v":""},null,{"$f":"ED141","v":""},null,{"$f":"AS141 *AU141 * 0.2358 * AW141 * AY141","v":11790},{"$f":"0.0001","v":1E-4},0,{"$f":"AS141 *AU141 * 0.2358","v":4.7160000000000002},0,0,{"$f":"AS141 *AU141 * 0.2358 * AF141","v":3.3012000000000001},{"$f":"AS141 *AU141 * 0.2358 * AG141","v":4.2962760000000006},0,0,0,0,0,0,null,"Com","Default DR",{"$f":"Benefits(BL141,BR141,BS141,BT141,BU141,BV141,BW141,BX141,BY141,BZ141,AE141,AH141,AI141,AJ141,AK141,AL141,AM141,AN141,AO141,AP141,CA141,CB141)","v":17672.600950939101},20520.221444164643,0,0,0,0,0,0,0,{"$f":"SUMPRODUCT(CC141:CK141,--(CC141:CK141>0))","v":38192.822395103743},{"$f":"-SUMPRODUCT(CC141:CK141,--(CC141:CK141<0))","v":0},null,{"$f":"AS141*AU141*164","v":3280},null,null,{"$f":"CM141+CO141","v":3280},{"$f":"IF(NetOrGross=\"Net\",(1-AO141+AP141),1)","v":1},{"$f":"(SUMPRODUCT(CC141:CJ141,--(CC141:CJ141>0))+CN141)*CS141/((-SUMPRODUCT(CC141:CJ141,--(CC141:CJ141<0))+MAX(CO141,CV141)+CP141+CQ141)*CS141+IF(FRIncentives=\"Yes\",CV141*(1-CS141),0))","v":11.644153169238946},2,{"$f":"IF(AS141*AU141*90>10000,10000,AS141*AU141*90)","v":1800},null,"Electric","y",null,{"$f":"IF(F141=\"Manual Entry\",\"Manual\",IF(G141=\"\",0,\"X=\"&SUBSTITUTE(SUBSTITUTE(SUBSTITUTE(SUBSTITUTE(SUBSTITUTE(SUBSTITUTE(SUBSTITUTE(SUBSTITUTE(SUBSTITUTE(SUBSTITUTE(SUBSTITUTE(SUBSTITUTE(G141,$ED141,$ED$2&ROW($ED141)),$EC141,$EC$2&ROW($EC141)),$EB141,$EB$2&ROW($EB141)),$EA141,$EA$2&ROW($EA141)),$DZ141,$DZ$2&ROW($DZ141)),$DY141,$DY$2&ROW($DY141)),$DX141,$DX$2&ROW($DX141)),$DW141,$DW$2&ROW($DW141)),$DV141,$DV$2&ROW($DV141)),$DU141,$DU$2&ROW($DU141)),$DT141,$DT$2&ROW($DT141)),$DS141,$DS$2&ROW($DS141))))","v":"X=AS141*AU141*164"},{"$f":"IF(I141=\"Manual Entry\",\"Manual\",IF(J141=\"\",0,\"X=\"&SUBSTITUTE(SUBSTITUTE(SUBSTITUTE(SUBSTITUTE(SUBSTITUTE(SUBSTITUTE(SUBSTITUTE(SUBSTITUTE(SUBSTITUTE(SUBSTITUTE(SUBSTITUTE(SUBSTITUTE(J141,$ED141,$ED$2&ROW($ED141)),$EC141,$EC$2&ROW($EC141)),$EB141,$EB$2&ROW($EB141)),$EA141,$EA$2&ROW($EA141)),$DZ141,$DZ$2&ROW($DZ141)),$DY141,$DY$2&ROW($DY141)),$DX141,$DX$2&ROW($DX141)),$DW141,$DW$2&ROW($DW141)),$DV141,$DV$2&ROW($DV141)),$DU141,$DU$2&ROW($DU141)),$DT141,$DT$2&ROW($DT141)),$DS141,$DS$2&ROW($DS141))))","v":"X=if(AS141*AU141*90>10000,10000,AS141*AU141*90)"},{"$f":"IF(O141=\"\",0,\"X=\"&SUBSTITUTE(SUBSTITUTE(SUBSTITUTE(SUBSTITUTE(SUBSTITUTE(SUBSTITUTE(SUBSTITUTE(SUBSTITUTE(SUBSTITUTE(SUBSTITUTE(SUBSTITUTE(SUBSTITUTE(O141,$ED141,$ED$2&ROW($ED141)),$EC141,$EC$2&ROW($EC141)),$EB141,$EB$2&ROW($EB141)),$EA141,$EA$2&ROW($EA141)),$DZ141,$DZ$2&ROW($DZ141)),$DY141,$DY$2&ROW($DY141)),$DX141,$DX$2&ROW($DX141)),$DW141,$DW$2&ROW($DW141)),$DV141,$DV$2&ROW($DV141)),$DU141,$DU$2&ROW($DU141)),$DT141,$DT$2&ROW($DT141)),$DS141,$DS$2&ROW($DS141)))","v":"X=AS141 *AU141 * 0.2358 * AW141 * AY141"},{"$f":"IF(P141=\"\",0,\"X=\"&SUBSTITUTE(SUBSTITUTE(SUBSTITUTE(SUBSTITUTE(SUBSTITUTE(SUBSTITUTE(SUBSTITUTE(SUBSTITUTE(SUBSTITUTE(SUBSTITUTE(SUBSTITUTE(SUBSTITUTE(P141,$ED141,$ED$2&ROW($ED141)),$EC141,$EC$2&ROW($EC141)),$EB141,$EB$2&ROW($EB141)),$EA141,$EA$2&ROW($EA141)),$DZ141,$DZ$2&ROW($DZ141)),$DY141,$DY$2&ROW($DY141)),$DX141,$DX$2&ROW($DX141)),$DW141,$DW$2&ROW($DW141)),$DV141,$DV$2&ROW($DV141)),$DU141,$DU$2&ROW($DU141)),$DT141,$DT$2&ROW($DT141)),$DS141,$DS$2&ROW($DS141)))","v":"X=0.0001"},{"$f":"IF(Q141=\"\",0,\"X=\"&SUBSTITUTE(SUBSTITUTE(SUBSTITUTE(SUBSTITUTE(SUBSTITUTE(SUBSTITUTE(SUBSTITUTE(SUBSTITUTE(SUBSTITUTE(SUBSTITUTE(SUBSTITUTE(SUBSTITUTE(Q141,$ED141,$ED$2&ROW($ED141)),$EC141,$EC$2&ROW($EC141)),$EB141,$EB$2&ROW($EB141)),$EA141,$EA$2&ROW($EA141)),$DZ141,$DZ$2&ROW($DZ141)),$DY141,$DY$2&ROW($DY141)),$DX141,$DX$2&ROW($DX141)),$DW141,$DW$2&ROW($DW141)),$DV141,$DV$2&ROW($DV141)),$DU141,$DU$2&ROW($DU141)),$DT141,$DT$2&ROW($DT141)),$DS141,$DS$2&ROW($DS141)))","v":0},{"$f":"IF(R141=\"\",0,\"X=\"&SUBSTITUTE(SUBSTITUTE(SUBSTITUTE(SUBSTITUTE(SUBSTITUTE(SUBSTITUTE(SUBSTITUTE(SUBSTITUTE(SUBSTITUTE(SUBSTITUTE(SUBSTITUTE(SUBSTITUTE(R141,$ED141,$ED$2&ROW($ED141)),$EC141,$EC$2&ROW($EC141)),$EB141,$EB$2&ROW($EB141)),$EA141,$EA$2&ROW($EA141)),$DZ141,$DZ$2&ROW($DZ141)),$DY141,$DY$2&ROW($DY141)),$DX141,$DX$2&ROW($DX141)),$DW141,$DW$2&ROW($DW141)),$DV141,$DV$2&ROW($DV141)),$DU141,$DU$2&ROW($DU141)),$DT141,$DT$2&ROW($DT141)),$DS141,$DS$2&ROW($DS141)))","v":"X=AS141 *AU141 * 0.2358"},{"$f":"IF(S141=\"\",0,\"X=\"&SUBSTITUTE(SUBSTITUTE(SUBSTITUTE(SUBSTITUTE(SUBSTITUTE(SUBSTITUTE(SUBSTITUTE(SUBSTITUTE(SUBSTITUTE(SUBSTITUTE(SUBSTITUTE(SUBSTITUTE(S141,$ED141,$ED$2&ROW($ED141)),$EC141,$EC$2&ROW($EC141)),$EB141,$EB$2&ROW($EB141)),$EA141,$EA$2&ROW($EA141)),$DZ141,$DZ$2&ROW($DZ141)),$DY141,$DY$2&ROW($DY141)),$DX141,$DX$2&ROW($DX141)),$DW141,$DW$2&ROW($DW141)),$DV141,$DV$2&ROW($DV141)),$DU141,$DU$2&ROW($DU141)),$DT141,$DT$2&ROW($DT141)),$DS141,$DS$2&ROW($DS141)))","v":0},{"$f":"IF(T141=\"\",0,\"X=\"&SUBSTITUTE(SUBSTITUTE(SUBSTITUTE(SUBSTITUTE(SUBSTITUTE(SUBSTITUTE(SUBSTITUTE(SUBSTITUTE(SUBSTITUTE(SUBSTITUTE(SUBSTITUTE(SUBSTITUTE(T141,$ED141,$ED$2&ROW($ED141)),$EC141,$EC$2&ROW($EC141)),$EB141,$EB$2&ROW($EB141)),$EA141,$EA$2&ROW($EA141)),$DZ141,$DZ$2&ROW($DZ141)),$DY141,$DY$2&ROW($DY141)),$DX141,$DX$2&ROW($DX141)),$DW141,$DW$2&ROW($DW141)),$DV141,$DV$2&ROW($DV141)),$DU141,$DU$2&ROW($DU141)),$DT141,$DT$2&ROW($DT141)),$DS141,$DS$2&ROW($DS141)))","v":0},{"$f":"IF(U141=\"\",0,\"X=\"&SUBSTITUTE(SUBSTITUTE(SUBSTITUTE(SUBSTITUTE(SUBSTITUTE(SUBSTITUTE(SUBSTITUTE(SUBSTITUTE(SUBSTITUTE(SUBSTITUTE(SUBSTITUTE(SUBSTITUTE(U141,$ED141,$ED$2&ROW($ED141)),$EC141,$EC$2&ROW($EC141)),$EB141,$EB$2&ROW($EB141)),$EA141,$EA$2&ROW($EA141)),$DZ141,$DZ$2&ROW($DZ141)),$DY141,$DY$2&ROW($DY141)),$DX141,$DX$2&ROW($DX141)),$DW141,$DW$2&ROW($DW141)),$DV141,$DV$2&ROW($DV141)),$DU141,$DU$2&ROW($DU141)),$DT141,$DT$2&ROW($DT141)),$DS141,$DS$2&ROW($DS141)))","v":"X=AS141 *AU141 * 0.2358 * AF141"},{"$f":"IF(V141=\"\",0,\"X=\"&SUBSTITUTE(SUBSTITUTE(SUBSTITUTE(SUBSTITUTE(SUBSTITUTE(SUBSTITUTE(SUBSTITUTE(SUBSTITUTE(SUBSTITUTE(SUBSTITUTE(SUBSTITUTE(SUBSTITUTE(V141,$ED141,$ED$2&ROW($ED141)),$EC141,$EC$2&ROW($EC141)),$EB141,$EB$2&ROW($EB141)),$EA141,$EA$2&ROW($EA141)),$DZ141,$DZ$2&ROW($DZ141)),$DY141,$DY$2&ROW($DY141)),$DX141,$DX$2&ROW($DX141)),$DW141,$DW$2&ROW($DW141)),$DV141,$DV$2&ROW($DV141)),$DU141,$DU$2&ROW($DU141)),$DT141,$DT$2&ROW($DT141)),$DS141,$DS$2&ROW($DS141)))","v":"X=AS141 *AU141 * 0.2358 * AG141"},{"$f":"IF(W141=\"\",0,\"X=\"&SUBSTITUTE(SUBSTITUTE(SUBSTITUTE(SUBSTITUTE(SUBSTITUTE(SUBSTITUTE(SUBSTITUTE(SUBSTITUTE(SUBSTITUTE(SUBSTITUTE(SUBSTITUTE(SUBSTITUTE(W141,$ED141,$ED$2&ROW($ED141)),$EC141,$EC$2&ROW($EC141)),$EB141,$EB$2&ROW($EB141)),$EA141,$EA$2&ROW($EA141)),$DZ141,$DZ$2&ROW($DZ141)),$DY141,$DY$2&ROW($DY141)),$DX141,$DX$2&ROW($DX141)),$DW141,$DW$2&ROW($DW141)),$DV141,$DV$2&ROW($DV141)),$DU141,$DU$2&ROW($DU141)),$DT141,$DT$2&ROW($DT141)),$DS141,$DS$2&ROW($DS141)))","v":0},{"$f":"IF(X141=\"\",0,\"X=\"&SUBSTITUTE(SUBSTITUTE(SUBSTITUTE(SUBSTITUTE(SUBSTITUTE(SUBSTITUTE(SUBSTITUTE(SUBSTITUTE(SUBSTITUTE(SUBSTITUTE(SUBSTITUTE(SUBSTITUTE(X141,$ED141,$ED$2&ROW($ED141)),$EC141,$EC$2&ROW($EC141)),$EB141,$EB$2&ROW($EB141)),$EA141,$EA$2&ROW($EA141)),$DZ141,$DZ$2&ROW($DZ141)),$DY141,$DY$2&ROW($DY141)),$DX141,$DX$2&ROW($DX141)),$DW141,$DW$2&ROW($DW141)),$DV141,$DV$2&ROW($DV141)),$DU141,$DU$2&ROW($DU141)),$DT141,$DT$2&ROW($DT141)),$DS141,$DS$2&ROW($DS141)))","v":0},{"$f":"IF(Y141=\"\",0,\"X=\"&SUBSTITUTE(SUBSTITUTE(SUBSTITUTE(SUBSTITUTE(SUBSTITUTE(SUBSTITUTE(SUBSTITUTE(SUBSTITUTE(SUBSTITUTE(SUBSTITUTE(SUBSTITUTE(SUBSTITUTE(Y141,$ED141,$ED$2&ROW($ED141)),$EC141,$EC$2&ROW($EC141)),$EB141,$EB$2&ROW($EB141)),$EA141,$EA$2&ROW($EA141)),$DZ141,$DZ$2&ROW($DZ141)),$DY141,$DY$2&ROW($DY141)),$DX141,$DX$2&ROW($DX141)),$DW141,$DW$2&ROW($DW141)),$DV141,$DV$2&ROW($DV141)),$DU141,$DU$2&ROW($DU141)),$DT141,$DT$2&ROW($DT141)),$DS141,$DS$2&ROW($DS141)))","v":0},{"$f":"IF(Z141=\"\",0,\"X=\"&SUBSTITUTE(SUBSTITUTE(SUBSTITUTE(SUBSTITUTE(SUBSTITUTE(SUBSTITUTE(SUBSTITUTE(SUBSTITUTE(SUBSTITUTE(SUBSTITUTE(SUBSTITUTE(SUBSTITUTE(Z141,$ED141,$ED$2&ROW($ED141)),$EC141,$EC$2&ROW($EC141)),$EB141,$EB$2&ROW($EB141)),$EA141,$EA$2&ROW($EA141)),$DZ141,$DZ$2&ROW($DZ141)),$DY141,$DY$2&ROW($DY141)),$DX141,$DX$2&ROW($DX141)),$DW141,$DW$2&ROW($DW141)),$DV141,$DV$2&ROW($DV141)),$DU141,$DU$2&ROW($DU141)),$DT141,$DT$2&ROW($DT141)),$DS141,$DS$2&ROW($DS141)))","v":0},{"$f":"IF(AA141=\"\",0,\"X=\"&SUBSTITUTE(SUBSTITUTE(SUBSTITUTE(SUBSTITUTE(SUBSTITUTE(SUBSTITUTE(SUBSTITUTE(SUBSTITUTE(SUBSTITUTE(SUBSTITUTE(SUBSTITUTE(SUBSTITUTE(AA141,$ED141,$ED$2&ROW($ED141)),$EC141,$EC$2&ROW($EC141)),$EB141,$EB$2&ROW($EB141)),$EA141,$EA$2&ROW($EA141)),$DZ141,$DZ$2&ROW($DZ141)),$DY141,$DY$2&ROW($DY141)),$DX141,$DX$2&ROW($DX141)),$DW141,$DW$2&ROW($DW141)),$DV141,$DV$2&ROW($DV141)),$DU141,$DU$2&ROW($DU141)),$DT141,$DT$2&ROW($DT141)),$DS141,$DS$2&ROW($DS141)))","v":0},{"$f":"IF(AB141=\"\",0,\"X=\"&SUBSTITUTE(SUBSTITUTE(SUBSTITUTE(SUBSTITUTE(SUBSTITUTE(SUBSTITUTE(SUBSTITUTE(SUBSTITUTE(SUBSTITUTE(SUBSTITUTE(SUBSTITUTE(SUBSTITUTE(AB141,$ED141,$ED$2&ROW($ED141)),$EC141,$EC$2&ROW($EC141)),$EB141,$EB$2&ROW($EB141)),$EA141,$EA$2&ROW($EA141)),$DZ141,$DZ$2&ROW($DZ141)),$DY141,$DY$2&ROW($DY141)),$DX141,$DX$2&ROW($DX141)),$DW141,$DW$2&ROW($DW141)),$DV141,$DV$2&ROW($DV141)),$DU141,$DU$2&ROW($DU141)),$DT141,$DT$2&ROW($DT141)),$DS141,$DS$2&ROW($DS141)))","v":0},null,null,"{Factor:WinterCF}","{Factor:SummerCF}",{"$f":"IFERROR(INDEX($EG141:$IV141,MATCH(0,COUNTIF($DR141:DT141,$EG141:$IV141),0)),\"\")","v":"{Measure:Quantity}"},{"$f":"IFERROR(INDEX($EG141:$IV141,MATCH(0,COUNTIF($DR141:DU141,$EG141:$IV141),0)),\"\")","v":"{Proposed Compressor HP}"},{"$f":"IFERROR(INDEX($EG141:$IV141,MATCH(0,COUNTIF($DR141:DV141,$EG141:$IV141),0)),\"\")","v":"{Weekly Hrs of Operation}"},{"$f":"IFERROR(INDEX($EG141:$IV141,MATCH(0,COUNTIF($DR141:DW141,$EG141:$IV141),0)),\"\")","v":"{Weeks Per Year}"},{"$f":"IFERROR(INDEX($EG141:$IV141,MATCH(0,COUNTIF($DR141:DX141,$EG141:$IV141),0)),\"\")","v":""},{"$f":"IFERROR(INDEX($EG141:$IV141,MATCH(0,COUNTIF($DR141:DY141,$EG141:$IV141),0)),\"\")","v":""},{"$f":"IFERROR(INDEX($EG141:$IV141,MATCH(0,COUNTIF($DR141:DZ141,$EG141:$IV141),0)),\"\")","v":""},{"$f":"IFERROR(INDEX($EG141:$IV141,MATCH(0,COUNTIF($DR141:EA141,$EG141:$IV141),0)),\"\")","v":""},{"$f":"IFERROR(INDEX($EG141:$IV141,MATCH(0,COUNTIF($DR141:EB141,$EG141:$IV141),0)),\"\")","v":""},{"$f":"IFERROR(INDEX($EG141:$IV141,MATCH(0,COUNTIF($DR141:EC141,$EG141:$IV141),0)),\"\")","v":""},null,null,{"$f":"IFERROR(MID($G141,FIND(CHAR(160),SUBSTITUTE($G141,\"{\",CHAR(160),EG$1)),FIND(CHAR(160),SUBSTITUTE($G141,\"}\",CHAR(160),EG$1))-FIND(CHAR(160),SUBSTITUTE($G141,\"{\",CHAR(160),EG$1))+1),\"\")","v":"{Measure:Quantity}"},{"$f":"IFERROR(MID($G141,FIND(CHAR(160),SUBSTITUTE($G141,\"{\",CHAR(160),EH$1)),FIND(CHAR(160),SUBSTITUTE($G141,\"}\",CHAR(160),EH$1))-FIND(CHAR(160),SUBSTITUTE($G141,\"{\",CHAR(160),EH$1))+1),\"\")","v":"{Proposed Compressor HP}"},{"$f":"IFERROR(MID($G141,FIND(CHAR(160),SUBSTITUTE($G141,\"{\",CHAR(160),EI$1)),FIND(CHAR(160),SUBSTITUTE($G141,\"}\",CHAR(160),EI$1))-FIND(CHAR(160),SUBSTITUTE($G141,\"{\",CHAR(160),EI$1))+1),\"\")","v":""},{"$f":"IFERROR(MID($G141,FIND(CHAR(160),SUBSTITUTE($G141,\"{\",CHAR(160),EJ$1)),FIND(CHAR(160),SUBSTITUTE($G141,\"}\",CHAR(160),EJ$1))-FIND(CHAR(160),SUBSTITUTE($G141,\"{\",CHAR(160),EJ$1))+1),\"\")","v":""},{"$f":"IFERROR(MID($G141,FIND(CHAR(160),SUBSTITUTE($G141,\"{\",CHAR(160),EK$1)),FIND(CHAR(160),SUBSTITUTE($G141,\"}\",CHAR(160),EK$1))-FIND(CHAR(160),SUBSTITUTE($G141,\"{\",CHAR(160),EK$1))+1),\"\")","v":""},{"$f":"IFERROR(MID($G141,FIND(CHAR(160),SUBSTITUTE($G141,\"{\",CHAR(160),EL$1)),FIND(CHAR(160),SUBSTITUTE($G141,\"}\",CHAR(160),EL$1))-FIND(CHAR(160),SUBSTITUTE($G141,\"{\",CHAR(160),EL$1))+1),\"\")","v":""},{"$f":"IFERROR(MID($G141,FIND(CHAR(160),SUBSTITUTE($G141,\"{\",CHAR(160),EM$1)),FIND(CHAR(160),SUBSTITUTE($G141,\"}\",CHAR(160),EM$1))-FIND(CHAR(160),SUBSTITUTE($G141,\"{\",CHAR(160),EM$1))+1),\"\")","v":""},{"$f":"IFERROR(MID($G141,FIND(CHAR(160),SUBSTITUTE($G141,\"{\",CHAR(160),EN$1)),FIND(CHAR(160),SUBSTITUTE($G141,\"}\",CHAR(160),EN$1))-FIND(CHAR(160),SUBSTITUTE($G141,\"{\",CHAR(160),EN$1))+1),\"\")","v":""},{"$f":"IFERROR(MID($G141,FIND(CHAR(160),SUBSTITUTE($G141,\"{\",CHAR(160),EO$1)),FIND(CHAR(160),SUBSTITUTE($G141,\"}\",CHAR(160),EO$1))-FIND(CHAR(160),SUBSTITUTE($G141,\"{\",CHAR(160),EO$1))+1),\"\")","v":""},{"$f":"IFERROR(MID($G141,FIND(CHAR(160),SUBSTITUTE($G141,\"{\",CHAR(160),EP$1)),FIND(CHAR(160),SUBSTITUTE($G141,\"}\",CHAR(160),EP$1))-FIND(CHAR(160),SUBSTITUTE($G141,\"{\",CHAR(160),EP$1))+1),\"\")","v":""},{"$f":"IFERROR(MID($J141,FIND(CHAR(160),SUBSTITUTE($J141,\"{\",CHAR(160),EQ$1)),FIND(CHAR(160),SUBSTITUTE($J141,\"}\",CHAR(160),EQ$1))-FIND(CHAR(160),SUBSTITUTE($J141,\"{\",CHAR(160),EQ$1))+1),\"\")","v":"{Measure:Quantity}"},{"$f":"IFERROR(MID($J141,FIND(CHAR(160),SUBSTITUTE($J141,\"{\",CHAR(160),ER$1)),FIND(CHAR(160),SUBSTITUTE($J141,\"}\",CHAR(160),ER$1))-FIND(CHAR(160),SUBSTITUTE($J141,\"{\",CHAR(160),ER$1))+1),\"\")","v":"{Proposed Compressor HP}"},{"$f":"IFERROR(MID($J141,FIND(CHAR(160),SUBSTITUTE($J141,\"{\",CHAR(160),ES$1)),FIND(CHAR(160),SUBSTITUTE($J141,\"}\",CHAR(160),ES$1))-FIND(CHAR(160),SUBSTITUTE($J141,\"{\",CHAR(160),ES$1))+1),\"\")","v":"{Measure:Quantity}"},{"$f":"IFERROR(MID($J141,FIND(CHAR(160),SUBSTITUTE($J141,\"{\",CHAR(160),ET$1)),FIND(CHAR(160),SUBSTITUTE($J141,\"}\",CHAR(160),ET$1))-FIND(CHAR(160),SUBSTITUTE($J141,\"{\",CHAR(160),ET$1))+1),\"\")","v":"{Proposed Compressor HP}"},{"$f":"IFERROR(MID($J141,FIND(CHAR(160),SUBSTITUTE($J141,\"{\",CHAR(160),EU$1)),FIND(CHAR(160),SUBSTITUTE($J141,\"}\",CHAR(160),EU$1))-FIND(CHAR(160),SUBSTITUTE($J141,\"{\",CHAR(160),EU$1))+1),\"\")","v":""},{"$f":"IFERROR(MID($J141,FIND(CHAR(160),SUBSTITUTE($J141,\"{\",CHAR(160),EV$1)),FIND(CHAR(160),SUBSTITUTE($J141,\"}\",CHAR(160),EV$1))-FIND(CHAR(160),SUBSTITUTE($J141,\"{\",CHAR(160),EV$1))+1),\"\")","v":""},{"$f":"IFERROR(MID($J141,FIND(CHAR(160),SUBSTITUTE($J141,\"{\",CHAR(160),EW$1)),FIND(CHAR(160),SUBSTITUTE($J141,\"}\",CHAR(160),EW$1))-FIND(CHAR(160),SUBSTITUTE($J141,\"{\",CHAR(160),EW$1))+1),\"\")","v":""},{"$f":"IFERROR(MID($J141,FIND(CHAR(160),SUBSTITUTE($J141,\"{\",CHAR(160),EX$1)),FIND(CHAR(160),SUBSTITUTE($J141,\"}\",CHAR(160),EX$1))-FIND(CHAR(160),SUBSTITUTE($J141,\"{\",CHAR(160),EX$1))+1),\"\")","v":""},{"$f":"IFERROR(MID($J141,FIND(CHAR(160),SUBSTITUTE($J141,\"{\",CHAR(160),EY$1)),FIND(CHAR(160),SUBSTITUTE($J141,\"}\",CHAR(160),EY$1))-FIND(CHAR(160),SUBSTITUTE($J141,\"{\",CHAR(160),EY$1))+1),\"\")","v":""},{"$f":"IFERROR(MID($J141,FIND(CHAR(160),SUBSTITUTE($J141,\"{\",CHAR(160),EZ$1)),FIND(CHAR(160),SUBSTITUTE($J141,\"}\",CHAR(160),EZ$1))-FIND(CHAR(160),SUBSTITUTE($J141,\"{\",CHAR(160),EZ$1))+1),\"\")","v":""},{"$f":"IFERROR(MID($J141,FIND(CHAR(160),SUBSTITUTE($J141,\"{\",CHAR(160),FA$1)),FIND(CHAR(160),SUBSTITUTE($J141,\"}\",CHAR(160),FA$1))-FIND(CHAR(160),SUBSTITUTE($J141,\"{\",CHAR(160),FA$1))+1),\"\")","v":"{Measure:Quantity}"},{"$f":"IFERROR(MID($J141,FIND(CHAR(160),SUBSTITUTE($J141,\"{\",CHAR(160),FB$1)),FIND(CHAR(160),SUBSTITUTE($J141,\"}\",CHAR(160),FB$1))-FIND(CHAR(160),SUBSTITUTE($J141,\"{\",CHAR(160),FB$1))+1),\"\")","v":"{Proposed Compressor HP}"},{"$f":"IFERROR(MID($O141,FIND(CHAR(160),SUBSTITUTE($O141,\"{\",CHAR(160),FC$1)),FIND(CHAR(160),SUBSTITUTE($O141,\"}\",CHAR(160),FC$1))-FIND(CHAR(160),SUBSTITUTE($O141,\"{\",CHAR(160),FC$1))+1),\"\")","v":"{Weekly Hrs of Operation}"},{"$f":"IFERROR(MID($O141,FIND(CHAR(160),SUBSTITUTE($O141,\"{\",CHAR(160),FD$1)),FIND(CHAR(160),SUBSTITUTE($O141,\"}\",CHAR(160),FD$1))-FIND(CHAR(160),SUBSTITUTE($O141,\"{\",CHAR(160),FD$1))+1),\"\")","v":"{Weeks Per Year}"},{"$f":"IFERROR(MID($O141,FIND(CHAR(160),SUBSTITUTE($O141,\"{\",CHAR(160),FE$1)),FIND(CHAR(160),SUBSTITUTE($O141,\"}\",CHAR(160),FE$1))-FIND(CHAR(160),SUBSTITUTE($O141,\"{\",CHAR(160),FE$1))+1),\"\")","v":""},{"$f":"IFERROR(MID($O141,FIND(CHAR(160),SUBSTITUTE($O141,\"{\",CHAR(160),FF$1)),FIND(CHAR(160),SUBSTITUTE($O141,\"}\",CHAR(160),FF$1))-FIND(CHAR(160),SUBSTITUTE($O141,\"{\",CHAR(160),FF$1))+1),\"\")","v":""},{"$f":"IFERROR(MID($O141,FIND(CHAR(160),SUBSTITUTE($O141,\"{\",CHAR(160),FG$1)),FIND(CHAR(160),SUBSTITUTE($O141,\"}\",CHAR(160),FG$1))-FIND(CHAR(160),SUBSTITUTE($O141,\"{\",CHAR(160),FG$1))+1),\"\")","v":""},{"$f":"IFERROR(MID($O141,FIND(CHAR(160),SUBSTITUTE($O141,\"{\",CHAR(160),FH$1)),FIND(CHAR(160),SUBSTITUTE($O141,\"}\",CHAR(160),FH$1))-FIND(CHAR(160),SUBSTITUTE($O141,\"{\",CHAR(160),FH$1))+1),\"\")","v":""},{"$f":"IFERROR(MID($O141,FIND(CHAR(160),SUBSTITUTE($O141,\"{\",CHAR(160),FI$1)),FIND(CHAR(160),SUBSTITUTE($O141,\"}\",CHAR(160),FI$1))-FIND(CHAR(160),SUBSTITUTE($O141,\"{\",CHAR(160),FI$1))+1),\"\")","v":""},{"$f":"IFERROR(MID($O141,FIND(CHAR(160),SUBSTITUTE($O141,\"{\",CHAR(160),FJ$1)),FIND(CHAR(160),SUBSTITUTE($O141,\"}\",CHAR(160),FJ$1))-FIND(CHAR(160),SUBSTITUTE($O141,\"{\",CHAR(160),FJ$1))+1),\"\")","v":""},{"$f":"IFERROR(MID($O141,FIND(CHAR(160),SUBSTITUTE($O141,\"{\",CHAR(160),FK$1)),FIND(CHAR(160),SUBSTITUTE($O141,\"}\",CHAR(160),FK$1))-FIND(CHAR(160),SUBSTITUTE($O141,\"{\",CHAR(160),FK$1))+1),\"\")","v":"{Measure:Quantity}"},{"$f":"IFERROR(MID($O141,FIND(CHAR(160),SUBSTITUTE($O141,\"{\",CHAR(160),FL$1)),FIND(CHAR(160),SUBSTITUTE($O141,\"}\",CHAR(160),FL$1))-FIND(CHAR(160),SUBSTITUTE($O141,\"{\",CHAR(160),FL$1))+1),\"\")","v":"{Proposed Compressor HP}"},{"$f":"IFERROR(MID($R141,FIND(CHAR(160),SUBSTITUTE($R141,\"{\",CHAR(160),FM$1)),FIND(CHAR(160),SUBSTITUTE($R141,\"}\",CHAR(160),FM$1))-FIND(CHAR(160),SUBSTITUTE($R141,\"{\",CHAR(160),FM$1))+1),\"\")","v":""},{"$f":"IFERROR(MID($R141,FIND(CHAR(160),SUBSTITUTE($R141,\"{\",CHAR(160),FN$1)),FIND(CHAR(160),SUBSTITUTE($R141,\"}\",CHAR(160),FN$1))-FIND(CHAR(160),SUBSTITUTE($R141,\"{\",CHAR(160),FN$1))+1),\"\")","v":""},{"$f":"IFERROR(MID($R141,FIND(CHAR(160),SUBSTITUTE($R141,\"{\",CHAR(160),FO$1)),FIND(CHAR(160),SUBSTITUTE($R141,\"}\",CHAR(160),FO$1))-FIND(CHAR(160),SUBSTITUTE($R141,\"{\",CHAR(160),FO$1))+1),\"\")","v":""},{"$f":"IFERROR(MID($R141,FIND(CHAR(160),SUBSTITUTE($R141,\"{\",CHAR(160),FP$1)),FIND(CHAR(160),SUBSTITUTE($R141,\"}\",CHAR(160),FP$1))-FIND(CHAR(160),SUBSTITUTE($R141,\"{\",CHAR(160),FP$1))+1),\"\")","v":""},{"$f":"IFERROR(MID($R141,FIND(CHAR(160),SUBSTITUTE($R141,\"{\",CHAR(160),FQ$1)),FIND(CHAR(160),SUBSTITUTE($R141,\"}\",CHAR(160),FQ$1))-FIND(CHAR(160),SUBSTITUTE($R141,\"{\",CHAR(160),FQ$1))+1),\"\")","v":""},{"$f":"IFERROR(MID($R141,FIND(CHAR(160),SUBSTITUTE($R141,\"{\",CHAR(160),FR$1)),FIND(CHAR(160),SUBSTITUTE($R141,\"}\",CHAR(160),FR$1))-FIND(CHAR(160),SUBSTITUTE($R141,\"{\",CHAR(160),FR$1))+1),\"\")","v":""},{"$f":"IFERROR(MID($R141,FIND(CHAR(160),SUBSTITUTE($R141,\"{\",CHAR(160),FS$1)),FIND(CHAR(160),SUBSTITUTE($R141,\"}\",CHAR(160),FS$1))-FIND(CHAR(160),SUBSTITUTE($R141,\"{\",CHAR(160),FS$1))+1),\"\")","v":""},{"$f":"IFERROR(MID($R141,FIND(CHAR(160),SUBSTITUTE($R141,\"{\",CHAR(160),FT$1)),FIND(CHAR(160),SUBSTITUTE($R141,\"}\",CHAR(160),FT$1))-FIND(CHAR(160),SUBSTITUTE($R141,\"{\",CHAR(160),FT$1))+1),\"\")","v":""},{"$f":"IFERROR(MID($R141,FIND(CHAR(160),SUBSTITUTE($R141,\"{\",CHAR(160),FU$1)),FIND(CHAR(160),SUBSTITUTE($R141,\"}\",CHAR(160),FU$1))-FIND(CHAR(160),SUBSTITUTE($R141,\"{\",CHAR(160),FU$1))+1),\"\")","v":"{Measure:Quantity}"},{"$f":"IFERROR(MID($R141,FIND(CHAR(160),SUBSTITUTE($R141,\"{\",CHAR(160),FV$1)),FIND(CHAR(160),SUBSTITUTE($R141,\"}\",CHAR(160),FV$1))-FIND(CHAR(160),SUBSTITUTE($R141,\"{\",CHAR(160),FV$1))+1),\"\")","v":"{Proposed Compressor HP}"},{"$f":"IFERROR(MID($U141,FIND(CHAR(160),SUBSTITUTE($U141,\"{\",CHAR(160),FW$1)),FIND(CHAR(160),SUBSTITUTE($U141,\"}\",CHAR(160),FW$1))-FIND(CHAR(160),SUBSTITUTE($U141,\"{\",CHAR(160),FW$1))+1),\"\")","v":"{Factor:WinterCF}"},{"$f":"IFERROR(MID($U141,FIND(CHAR(160),SUBSTITUTE($U141,\"{\",CHAR(160),FX$1)),FIND(CHAR(160),SUBSTITUTE($U141,\"}\",CHAR(160),FX$1))-FIND(CHAR(160),SUBSTITUTE($U141,\"{\",CHAR(160),FX$1))+1),\"\")","v":""},{"$f":"IFERROR(MID($U141,FIND(CHAR(160),SUBSTITUTE($U141,\"{\",CHAR(160),FY$1)),FIND(CHAR(160),SUBSTITUTE($U141,\"}\",CHAR(160),FY$1))-FIND(CHAR(160),SUBSTITUTE($U141,\"{\",CHAR(160),FY$1))+1),\"\")","v":""},{"$f":"IFERROR(MID($U141,FIND(CHAR(160),SUBSTITUTE($U141,\"{\",CHAR(160),FZ$1)),FIND(CHAR(160),SUBSTITUTE($U141,\"}\",CHAR(160),FZ$1))-FIND(CHAR(160),SUBSTITUTE($U141,\"{\",CHAR(160),FZ$1))+1),\"\")","v":""},{"$f":"IFERROR(MID($U141,FIND(CHAR(160),SUBSTITUTE($U141,\"{\",CHAR(160),GA$1)),FIND(CHAR(160),SUBSTITUTE($U141,\"}\",CHAR(160),GA$1))-FIND(CHAR(160),SUBSTITUTE($U141,\"{\",CHAR(160),GA$1))+1),\"\")","v":""},{"$f":"IFERROR(MID($U141,FIND(CHAR(160),SUBSTITUTE($U141,\"{\",CHAR(160),GB$1)),FIND(CHAR(160),SUBSTITUTE($U141,\"}\",CHAR(160),GB$1))-FIND(CHAR(160),SUBSTITUTE($U141,\"{\",CHAR(160),GB$1))+1),\"\")","v":""},{"$f":"IFERROR(MID($U141,FIND(CHAR(160),SUBSTITUTE($U141,\"{\",CHAR(160),GC$1)),FIND(CHAR(160),SUBSTITUTE($U141,\"}\",CHAR(160),GC$1))-FIND(CHAR(160),SUBSTITUTE($U141,\"{\",CHAR(160),GC$1))+1),\"\")","v":""},{"$f":"IFERROR(MID($U141,FIND(CHAR(160),SUBSTITUTE($U141,\"{\",CHAR(160),GD$1)),FIND(CHAR(160),SUBSTITUTE($U141,\"}\",CHAR(160),GD$1))-FIND(CHAR(160),SUBSTITUTE($U141,\"{\",CHAR(160),GD$1))+1),\"\")","v":""},{"$f":"IFERROR(MID($U141,FIND(CHAR(160),SUBSTITUTE($U141,\"{\",CHAR(160),GE$1)),FIND(CHAR(160),SUBSTITUTE($U141,\"}\",CHAR(160),GE$1))-FIND(CHAR(160),SUBSTITUTE($U141,\"{\",CHAR(160),GE$1))+1),\"\")","v":"{Measure:Quantity}"},{"$f":"IFERROR(MID($U141,FIND(CHAR(160),SUBSTITUTE($U141,\"{\",CHAR(160),GF$1)),FIND(CHAR(160),SUBSTITUTE($U141,\"}\",CHAR(160),GF$1))-FIND(CHAR(160),SUBSTITUTE($U141,\"{\",CHAR(160),GF$1))+1),\"\")","v":"{Proposed Compressor HP}"},{"$f":"IFERROR(MID($V141,FIND(CHAR(160),SUBSTITUTE($V141,\"{\",CHAR(160),GG$1)),FIND(CHAR(160),SUBSTITUTE($V141,\"}\",CHAR(160),GG$1))-FIND(CHAR(160),SUBSTITUTE($V141,\"{\",CHAR(160),GG$1))+1),\"\")","v":"{Factor:SummerCF}"},{"$f":"IFERROR(MID($V141,FIND(CHAR(160),SUBSTITUTE($V141,\"{\",CHAR(160),GH$1)),FIND(CHAR(160),SUBSTITUTE($V141,\"}\",CHAR(160),GH$1))-FIND(CHAR(160),SUBSTITUTE($V141,\"{\",CHAR(160),GH$1))+1),\"\")","v":""},{"$f":"IFERROR(MID($V141,FIND(CHAR(160),SUBSTITUTE($V141,\"{\",CHAR(160),GI$1)),FIND(CHAR(160),SUBSTITUTE($V141,\"}\",CHAR(160),GI$1))-FIND(CHAR(160),SUBSTITUTE($V141,\"{\",CHAR(160),GI$1))+1),\"\")","v":""},{"$f":"IFERROR(MID($V141,FIND(CHAR(160),SUBSTITUTE($V141,\"{\",CHAR(160),GJ$1)),FIND(CHAR(160),SUBSTITUTE($V141,\"}\",CHAR(160),GJ$1))-FIND(CHAR(160),SUBSTITUTE($V141,\"{\",CHAR(160),GJ$1))+1),\"\")","v":""},{"$f":"IFERROR(MID($V141,FIND(CHAR(160),SUBSTITUTE($V141,\"{\",CHAR(160),GK$1)),FIND(CHAR(160),SUBSTITUTE($V141,\"}\",CHAR(160),GK$1))-FIND(CHAR(160),SUBSTITUTE($V141,\"{\",CHAR(160),GK$1))+1),\"\")","v":""},{"$f":"IFERROR(MID($V141,FIND(CHAR(160),SUBSTITUTE($V141,\"{\",CHAR(160),GL$1)),FIND(CHAR(160),SUBSTITUTE($V141,\"}\",CHAR(160),GL$1))-FIND(CHAR(160),SUBSTITUTE($V141,\"{\",CHAR(160),GL$1))+1),\"\")","v":""},{"$f":"IFERROR(MID($V141,FIND(CHAR(160),SUBSTITUTE($V141,\"{\",CHAR(160),GM$1)),FIND(CHAR(160),SUBSTITUTE($V141,\"}\",CHAR(160),GM$1))-FIND(CHAR(160),SUBSTITUTE($V141,\"{\",CHAR(160),GM$1))+1),\"\")","v":""},{"$f":"IFERROR(MID($V141,FIND(CHAR(160),SUBSTITUTE($V141,\"{\",CHAR(160),GN$1)),FIND(CHAR(160),SUBSTITUTE($V141,\"}\",CHAR(160),GN$1))-FIND(CHAR(160),SUBSTITUTE($V141,\"{\",CHAR(160),GN$1))+1),\"\")","v":""},{"$f":"IFERROR(MID($V141,FIND(CHAR(160),SUBSTITUTE($V141,\"{\",CHAR(160),GO$1)),FIND(CHAR(160),SUBSTITUTE($V141,\"}\",CHAR(160),GO$1))-FIND(CHAR(160),SUBSTITUTE($V141,\"{\",CHAR(160),GO$1))+1),\"\")","v":"{Measure:Quantity}"},{"$f":"IFERROR(MID($V141,FIND(CHAR(160),SUBSTITUTE($V141,\"{\",CHAR(160),GP$1)),FIND(CHAR(160),SUBSTITUTE($V141,\"}\",CHAR(160),GP$1))-FIND(CHAR(160),SUBSTITUTE($V141,\"{\",CHAR(160),GP$1))+1),\"\")","v":"{Proposed Compressor HP}"},{"$f":"IFERROR(MID($W141,FIND(CHAR(160),SUBSTITUTE($W141,\"{\",CHAR(160),GQ$1)),FIND(CHAR(160),SUBSTITUTE($W141,\"}\",CHAR(160),GQ$1))-FIND(CHAR(160),SUBSTITUTE($W141,\"{\",CHAR(160),GQ$1))+1),\"\")","v":""},{"$f":"IFERROR(MID($W141,FIND(CHAR(160),SUBSTITUTE($W141,\"{\",CHAR(160),GR$1)),FIND(CHAR(160),SUBSTITUTE($W141,\"}\",CHAR(160),GR$1))-FIND(CHAR(160),SUBSTITUTE($W141,\"{\",CHAR(160),GR$1))+1),\"\")","v":""},{"$f":"IFERROR(MID($W141,FIND(CHAR(160),SUBSTITUTE($W141,\"{\",CHAR(160),GS$1)),FIND(CHAR(160),SUBSTITUTE($W141,\"}\",CHAR(160),GS$1))-FIND(CHAR(160),SUBSTITUTE($W141,\"{\",CHAR(160),GS$1))+1),\"\")","v":""},{"$f":"IFERROR(MID($W141,FIND(CHAR(160),SUBSTITUTE($W141,\"{\",CHAR(160),GT$1)),FIND(CHAR(160),SUBSTITUTE($W141,\"}\",CHAR(160),GT$1))-FIND(CHAR(160),SUBSTITUTE($W141,\"{\",CHAR(160),GT$1))+1),\"\")","v":""},{"$f":"IFERROR(MID($W141,FIND(CHAR(160),SUBSTITUTE($W141,\"{\",CHAR(160),GU$1)),FIND(CHAR(160),SUBSTITUTE($W141,\"}\",CHAR(160),GU$1))-FIND(CHAR(160),SUBSTITUTE($W141,\"{\",CHAR(160),GU$1))+1),\"\")","v":""},{"$f":"IFERROR(MID($W141,FIND(CHAR(160),SUBSTITUTE($W141,\"{\",CHAR(160),GV$1)),FIND(CHAR(160),SUBSTITUTE($W141,\"}\",CHAR(160),GV$1))-FIND(CHAR(160),SUBSTITUTE($W141,\"{\",CHAR(160),GV$1))+1),\"\")","v":""},{"$f":"IFERROR(MID($W141,FIND(CHAR(160),SUBSTITUTE($W141,\"{\",CHAR(160),GW$1)),FIND(CHAR(160),SUBSTITUTE($W141,\"}\",CHAR(160),GW$1))-FIND(CHAR(160),SUBSTITUTE($W141,\"{\",CHAR(160),GW$1))+1),\"\")","v":""},{"$f":"IFERROR(MID($W141,FIND(CHAR(160),SUBSTITUTE($W141,\"{\",CHAR(160),GX$1)),FIND(CHAR(160),SUBSTITUTE($W141,\"}\",CHAR(160),GX$1))-FIND(CHAR(160),SUBSTITUTE($W141,\"{\",CHAR(160),GX$1))+1),\"\")","v":""},{"$f":"IFERROR(MID($W141,FIND(CHAR(160),SUBSTITUTE($W141,\"{\",CHAR(160),GY$1)),FIND(CHAR(160),SUBSTITUTE($W141,\"}\",CHAR(160),GY$1))-FIND(CHAR(160),SUBSTITUTE($W141,\"{\",CHAR(160),GY$1))+1),\"\")","v":""},{"$f":"IFERROR(MID($W141,FIND(CHAR(160),SUBSTITUTE($W141,\"{\",CHAR(160),GZ$1)),FIND(CHAR(160),SUBSTITUTE($W141,\"}\",CHAR(160),GZ$1))-FIND(CHAR(160),SUBSTITUTE($W141,\"{\",CHAR(160),GZ$1))+1),\"\")","v":""},{"$f":"IFERROR(MID($X141,FIND(CHAR(160),SUBSTITUTE($X141,\"{\",CHAR(160),HA$1)),FIND(CHAR(160),SUBSTITUTE($X141,\"}\",CHAR(160),HA$1))-FIND(CHAR(160),SUBSTITUTE($X141,\"{\",CHAR(160),HA$1))+1),\"\")","v":""},{"$f":"IFERROR(MID($X141,FIND(CHAR(160),SUBSTITUTE($X141,\"{\",CHAR(160),HB$1)),FIND(CHAR(160),SUBSTITUTE($X141,\"}\",CHAR(160),HB$1))-FIND(CHAR(160),SUBSTITUTE($X141,\"{\",CHAR(160),HB$1))+1),\"\")","v":""},{"$f":"IFERROR(MID($X141,FIND(CHAR(160),SUBSTITUTE($X141,\"{\",CHAR(160),HC$1)),FIND(CHAR(160),SUBSTITUTE($X141,\"}\",CHAR(160),HC$1))-FIND(CHAR(160),SUBSTITUTE($X141,\"{\",CHAR(160),HC$1))+1),\"\")","v":""},{"$f":"IFERROR(MID($X141,FIND(CHAR(160),SUBSTITUTE($X141,\"{\",CHAR(160),HD$1)),FIND(CHAR(160),SUBSTITUTE($X141,\"}\",CHAR(160),HD$1))-FIND(CHAR(160),SUBSTITUTE($X141,\"{\",CHAR(160),HD$1))+1),\"\")","v":""},{"$f":"IFERROR(MID($X141,FIND(CHAR(160),SUBSTITUTE($X141,\"{\",CHAR(160),HE$1)),FIND(CHAR(160),SUBSTITUTE($X141,\"}\",CHAR(160),HE$1))-FIND(CHAR(160),SUBSTITUTE($X141,\"{\",CHAR(160),HE$1))+1),\"\")","v":""},{"$f":"IFERROR(MID($X141,FIND(CHAR(160),SUBSTITUTE($X141,\"{\",CHAR(160),HF$1)),FIND(CHAR(160),SUBSTITUTE($X141,\"}\",CHAR(160),HF$1))-FIND(CHAR(160),SUBSTITUTE($X141,\"{\",CHAR(160),HF$1))+1),\"\")","v":""},{"$f":"IFERROR(MID($X141,FIND(CHAR(160),SUBSTITUTE($X141,\"{\",CHAR(160),HG$1)),FIND(CHAR(160),SUBSTITUTE($X141,\"}\",CHAR(160),HG$1))-FIND(CHAR(160),SUBSTITUTE($X141,\"{\",CHAR(160),HG$1))+1),\"\")","v":""},{"$f":"IFERROR(MID($X141,FIND(CHAR(160),SUBSTITUTE($X141,\"{\",CHAR(160),HH$1)),FIND(CHAR(160),SUBSTITUTE($X141,\"}\",CHAR(160),HH$1))-FIND(CHAR(160),SUBSTITUTE($X141,\"{\",CHAR(160),HH$1))+1),\"\")","v":""},{"$f":"IFERROR(MID($X141,FIND(CHAR(160),SUBSTITUTE($X141,\"{\",CHAR(160),HI$1)),FIND(CHAR(160),SUBSTITUTE($X141,\"}\",CHAR(160),HI$1))-FIND(CHAR(160),SUBSTITUTE($X141,\"{\",CHAR(160),HI$1))+1),\"\")","v":""},{"$f":"IFERROR(MID($X141,FIND(CHAR(160),SUBSTITUTE($X141,\"{\",CHAR(160),HJ$1)),FIND(CHAR(160),SUBSTITUTE($X141,\"}\",CHAR(160),HJ$1))-FIND(CHAR(160),SUBSTITUTE($X141,\"{\",CHAR(160),HJ$1))+1),\"\")","v":""},{"$f":"IFERROR(MID($Y141,FIND(CHAR(160),SUBSTITUTE($Y141,\"{\",CHAR(160),HK$1)),FIND(CHAR(160),SUBSTITUTE($Y141,\"}\",CHAR(160),HK$1))-FIND(CHAR(160),SUBSTITUTE($Y141,\"{\",CHAR(160),HK$1))+1),\"\")","v":""},{"$f":"IFERROR(MID($Y141,FIND(CHAR(160),SUBSTITUTE($Y141,\"{\",CHAR(160),HL$1)),FIND(CHAR(160),SUBSTITUTE($Y141,\"}\",CHAR(160),HL$1))-FIND(CHAR(160),SUBSTITUTE($Y141,\"{\",CHAR(160),HL$1))+1),\"\")","v":""},{"$f":"IFERROR(MID($Y141,FIND(CHAR(160),SUBSTITUTE($Y141,\"{\",CHAR(160),HM$1)),FIND(CHAR(160),SUBSTITUTE($Y141,\"}\",CHAR(160),HM$1))-FIND(CHAR(160),SUBSTITUTE($Y141,\"{\",CHAR(160),HM$1))+1),\"\")","v":""},{"$f":"IFERROR(MID($Y141,FIND(CHAR(160),SUBSTITUTE($Y141,\"{\",CHAR(160),HN$1)),FIND(CHAR(160),SUBSTITUTE($Y141,\"}\",CHAR(160),HN$1))-FIND(CHAR(160),SUBSTITUTE($Y141,\"{\",CHAR(160),HN$1))+1),\"\")","v":""},{"$f":"IFERROR(MID($Y141,FIND(CHAR(160),SUBSTITUTE($Y141,\"{\",CHAR(160),HO$1)),FIND(CHAR(160),SUBSTITUTE($Y141,\"}\",CHAR(160),HO$1))-FIND(CHAR(160),SUBSTITUTE($Y141,\"{\",CHAR(160),HO$1))+1),\"\")","v":""},{"$f":"IFERROR(MID($Y141,FIND(CHAR(160),SUBSTITUTE($Y141,\"{\",CHAR(160),HP$1)),FIND(CHAR(160),SUBSTITUTE($Y141,\"}\",CHAR(160),HP$1))-FIND(CHAR(160),SUBSTITUTE($Y141,\"{\",CHAR(160),HP$1))+1),\"\")","v":""},{"$f":"IFERROR(MID($Y141,FIND(CHAR(160),SUBSTITUTE($Y141,\"{\",CHAR(160),HQ$1)),FIND(CHAR(160),SUBSTITUTE($Y141,\"}\",CHAR(160),HQ$1))-FIND(CHAR(160),SUBSTITUTE($Y141,\"{\",CHAR(160),HQ$1))+1),\"\")","v":""},{"$f":"IFERROR(MID($Y141,FIND(CHAR(160),SUBSTITUTE($Y141,\"{\",CHAR(160),HR$1)),FIND(CHAR(160),SUBSTITUTE($Y141,\"}\",CHAR(160),HR$1))-FIND(CHAR(160),SUBSTITUTE($Y141,\"{\",CHAR(160),HR$1))+1),\"\")","v":""},{"$f":"IFERROR(MID($Y141,FIND(CHAR(160),SUBSTITUTE($Y141,\"{\",CHAR(160),HS$1)),FIND(CHAR(160),SUBSTITUTE($Y141,\"}\",CHAR(160),HS$1))-FIND(CHAR(160),SUBSTITUTE($Y141,\"{\",CHAR(160),HS$1))+1),\"\")","v":""},{"$f":"IFERROR(MID($Y141,FIND(CHAR(160),SUBSTITUTE($Y141,\"{\",CHAR(160),HT$1)),FIND(CHAR(160),SUBSTITUTE($Y141,\"}\",CHAR(160),HT$1))-FIND(CHAR(160),SUBSTITUTE($Y141,\"{\",CHAR(160),HT$1))+1),\"\")","v":""},{"$f":"IFERROR(MID($Z141,FIND(CHAR(160),SUBSTITUTE($Z141,\"{\",CHAR(160),HU$1)),FIND(CHAR(160),SUBSTITUTE($Z141,\"}\",CHAR(160),HU$1))-FIND(CHAR(160),SUBSTITUTE($Z141,\"{\",CHAR(160),HU$1))+1),\"\")","v":""},{"$f":"IFERROR(MID($Z141,FIND(CHAR(160),SUBSTITUTE($Z141,\"{\",CHAR(160),HV$1)),FIND(CHAR(160),SUBSTITUTE($Z141,\"}\",CHAR(160),HV$1))-FIND(CHAR(160),SUBSTITUTE($Z141,\"{\",CHAR(160),HV$1))+1),\"\")","v":""},{"$f":"IFERROR(MID($Z141,FIND(CHAR(160),SUBSTITUTE($Z141,\"{\",CHAR(160),HW$1)),FIND(CHAR(160),SUBSTITUTE($Z141,\"}\",CHAR(160),HW$1))-FIND(CHAR(160),SUBSTITUTE($Z141,\"{\",CHAR(160),HW$1))+1),\"\")","v":""},{"$f":"IFERROR(MID($Z141,FIND(CHAR(160),SUBSTITUTE($Z141,\"{\",CHAR(160),HX$1)),FIND(CHAR(160),SUBSTITUTE($Z141,\"}\",CHAR(160),HX$1))-FIND(CHAR(160),SUBSTITUTE($Z141,\"{\",CHAR(160),HX$1))+1),\"\")","v":""},{"$f":"IFERROR(MID($Z141,FIND(CHAR(160),SUBSTITUTE($Z141,\"{\",CHAR(160),HY$1)),FIND(CHAR(160),SUBSTITUTE($Z141,\"}\",CHAR(160),HY$1))-FIND(CHAR(160),SUBSTITUTE($Z141,\"{\",CHAR(160),HY$1))+1),\"\")","v":""},{"$f":"IFERROR(MID($Z141,FIND(CHAR(160),SUBSTITUTE($Z141,\"{\",CHAR(160),HZ$1)),FIND(CHAR(160),SUBSTITUTE($Z141,\"}\",CHAR(160),HZ$1))-FIND(CHAR(160),SUBSTITUTE($Z141,\"{\",CHAR(160),HZ$1))+1),\"\")","v":""},{"$f":"IFERROR(MID($Z141,FIND(CHAR(160),SUBSTITUTE($Z141,\"{\",CHAR(160),IA$1)),FIND(CHAR(160),SUBSTITUTE($Z141,\"}\",CHAR(160),IA$1))-FIND(CHAR(160),SUBSTITUTE($Z141,\"{\",CHAR(160),IA$1))+1),\"\")","v":""},{"$f":"IFERROR(MID($Z141,FIND(CHAR(160),SUBSTITUTE($Z141,\"{\",CHAR(160),IB$1)),FIND(CHAR(160),SUBSTITUTE($Z141,\"}\",CHAR(160),IB$1))-FIND(CHAR(160),SUBSTITUTE($Z141,\"{\",CHAR(160),IB$1))+1),\"\")","v":""},{"$f":"IFERROR(MID($Z141,FIND(CHAR(160),SUBSTITUTE($Z141,\"{\",CHAR(160),IC$1)),FIND(CHAR(160),SUBSTITUTE($Z141,\"}\",CHAR(160),IC$1))-FIND(CHAR(160),SUBSTITUTE($Z141,\"{\",CHAR(160),IC$1))+1),\"\")","v":""},{"$f":"IFERROR(MID($Z141,FIND(CHAR(160),SUBSTITUTE($Z141,\"{\",CHAR(160),ID$1)),FIND(CHAR(160),SUBSTITUTE($Z141,\"}\",CHAR(160),ID$1))-FIND(CHAR(160),SUBSTITUTE($Z141,\"{\",CHAR(160),ID$1))+1),\"\")","v":""},{"$f":"IFERROR(MID($AA141,FIND(CHAR(160),SUBSTITUTE($AA141,\"{\",CHAR(160),IE$1)),FIND(CHAR(160),SUBSTITUTE($AA141,\"}\",CHAR(160),IE$1))-FIND(CHAR(160),SUBSTITUTE($AA141,\"{\",CHAR(160),IE$1))+1),\"\")","v":""},{"$f":"IFERROR(MID($AA141,FIND(CHAR(160),SUBSTITUTE($AA141,\"{\",CHAR(160),IF$1)),FIND(CHAR(160),SUBSTITUTE($AA141,\"}\",CHAR(160),IF$1))-FIND(CHAR(160),SUBSTITUTE($AA141,\"{\",CHAR(160),IF$1))+1),\"\")","v":""},{"$f":"IFERROR(MID($AA141,FIND(CHAR(160),SUBSTITUTE($AA141,\"{\",CHAR(160),IG$1)),FIND(CHAR(160),SUBSTITUTE($AA141,\"}\",CHAR(160),IG$1))-FIND(CHAR(160),SUBSTITUTE($AA141,\"{\",CHAR(160),IG$1))+1),\"\")","v":""},{"$f":"IFERROR(MID($AA141,FIND(CHAR(160),SUBSTITUTE($AA141,\"{\",CHAR(160),IH$1)),FIND(CHAR(160),SUBSTITUTE($AA141,\"}\",CHAR(160),IH$1))-FIND(CHAR(160),SUBSTITUTE($AA141,\"{\",CHAR(160),IH$1))+1),\"\")","v":""},{"$f":"IFERROR(MID($AA141,FIND(CHAR(160),SUBSTITUTE($AA141,\"{\",CHAR(160),II$1)),FIND(CHAR(160),SUBSTITUTE($AA141,\"}\",CHAR(160),II$1))-FIND(CHAR(160),SUBSTITUTE($AA141,\"{\",CHAR(160),II$1))+1),\"\")","v":""},{"$f":"IFERROR(MID($AA141,FIND(CHAR(160),SUBSTITUTE($AA141,\"{\",CHAR(160),IJ$1)),FIND(CHAR(160),SUBSTITUTE($AA141,\"}\",CHAR(160),IJ$1))-FIND(CHAR(160),SUBSTITUTE($AA141,\"{\",CHAR(160),IJ$1))+1),\"\")","v":""},{"$f":"IFERROR(MID($AA141,FIND(CHAR(160),SUBSTITUTE($AA141,\"{\",CHAR(160),IK$1)),FIND(CHAR(160),SUBSTITUTE($AA141,\"}\",CHAR(160),IK$1))-FIND(CHAR(160),SUBSTITUTE($AA141,\"{\",CHAR(160),IK$1))+1),\"\")","v":""},{"$f":"IFERROR(MID($AA141,FIND(CHAR(160),SUBSTITUTE($AA141,\"{\",CHAR(160),IL$1)),FIND(CHAR(160),SUBSTITUTE($AA141,\"}\",CHAR(160),IL$1))-FIND(CHAR(160),SUBSTITUTE($AA141,\"{\",CHAR(160),IL$1))+1),\"\")","v":""},{"$f":"IFERROR(MID($AA141,FIND(CHAR(160),SUBSTITUTE($AA141,\"{\",CHAR(160),IM$1)),FIND(CHAR(160),SUBSTITUTE($AA141,\"}\",CHAR(160),IM$1))-FIND(CHAR(160),SUBSTITUTE($AA141,\"{\",CHAR(160),IM$1))+1),\"\")","v":""},{"$f":"IFERROR(MID($AA141,FIND(CHAR(160),SUBSTITUTE($AA141,\"{\",CHAR(160),IN$1)),FIND(CHAR(160),SUBSTITUTE($AA141,\"}\",CHAR(160),IN$1))-FIND(CHAR(160),SUBSTITUTE($AA141,\"{\",CHAR(160),IN$1))+1),\"\")","v":""},{"$f":"IFERROR(MID($AB141,FIND(CHAR(160),SUBSTITUTE($AB141,\"{\",CHAR(160),IO$1)),FIND(CHAR(160),SUBSTITUTE($AB141,\"}\",CHAR(160),IO$1))-FIND(CHAR(160),SUBSTITUTE($AB141,\"{\",CHAR(160),IO$1))+1),\"\")","v":""},{"$f":"IFERROR(MID($AB141,FIND(CHAR(160),SUBSTITUTE($AB141,\"{\",CHAR(160),IP$1)),FIND(CHAR(160),SUBSTITUTE($AB141,\"}\",CHAR(160),IP$1))-FIND(CHAR(160),SUBSTITUTE($AB141,\"{\",CHAR(160),IP$1))+1),\"\")","v":""},{"$f":"IFERROR(MID($AB141,FIND(CHAR(160),SUBSTITUTE($AB141,\"{\",CHAR(160),IQ$1)),FIND(CHAR(160),SUBSTITUTE($AB141,\"}\",CHAR(160),IQ$1))-FIND(CHAR(160),SUBSTITUTE($AB141,\"{\",CHAR(160),IQ$1))+1),\"\")","v":""},{"$f":"IFERROR(MID($AB141,FIND(CHAR(160),SUBSTITUTE($AB141,\"{\",CHAR(160),IR$1)),FIND(CHAR(160),SUBSTITUTE($AB141,\"}\",CHAR(160),IR$1))-FIND(CHAR(160),SUBSTITUTE($AB141,\"{\",CHAR(160),IR$1))+1),\"\")","v":""},{"$f":"IFERROR(MID($AB141,FIND(CHAR(160),SUBSTITUTE($AB141,\"{\",CHAR(160),IS$1)),FIND(CHAR(160),SUBSTITUTE($AB141,\"}\",CHAR(160),IS$1))-FIND(CHAR(160),SUBSTITUTE($AB141,\"{\",CHAR(160),IS$1))+1),\"\")","v":""},{"$f":"IFERROR(MID($AB141,FIND(CHAR(160),SUBSTITUTE($AB141,\"{\",CHAR(160),IT$1)),FIND(CHAR(160),SUBSTITUTE($AB141,\"}\",CHAR(160),IT$1))-FIND(CHAR(160),SUBSTITUTE($AB141,\"{\",CHAR(160),IT$1))+1),\"\")","v":""},{"$f":"IFERROR(MID($AB141,FIND(CHAR(160),SUBSTITUTE($AB141,\"{\",CHAR(160),IU$1)),FIND(CHAR(160),SUBSTITUTE($AB141,\"}\",CHAR(160),IU$1))-FIND(CHAR(160),SUBSTITUTE($AB141,\"{\",CHAR(160),IU$1))+1),\"\")","v":""},{"$f":"IFERROR(MID($AB141,FIND(CHAR(160),SUBSTITUTE($AB141,\"{\",CHAR(160),IV$1)),FIND(CHAR(160),SUBSTITUTE($AB141,\"}\",CHAR(160),IV$1))-FIND(CHAR(160),SUBSTITUTE($AB141,\"{\",CHAR(160),IV$1))+1),\"\")","v":""},{"$f":"IFERROR(MID($AB141,FIND(CHAR(160),SUBSTITUTE($AB141,\"{\",CHAR(160),IW$1)),FIND(CHAR(160),SUBSTITUTE($AB141,\"}\",CHAR(160),IW$1))-FIND(CHAR(160),SUBSTITUTE($AB141,\"{\",CHAR(160),IW$1))+1),\"\")","v":""},{"$f":"IFERROR(MID($AB141,FIND(CHAR(160),SUBSTITUTE($AB141,\"{\",CHAR(160),IX$1)),FIND(CHAR(160),SUBSTITUTE($AB141,\"}\",CHAR(160),IX$1))-FIND(CHAR(160),SUBSTITUTE($AB141,\"{\",CHAR(160),IX$1))+1),\"\")","v":""},null,{"$f":"10-COUNTIF(DU141:ED141,\"\")","v":4}]
["C&I Prescriptive Compressed Air Solutions","Fast Track Compressor - C1 - Compressor HP 15 and below","C - C1","2021-07-01","2022-06-30","Calculated","{Measure:Quantity}*{Proposed Compressor HP}*164",0,"Calculated","if({Measure:Quantity}*{Proposed Compressor HP}*80>10000,10000,{Measure:Quantity}*{Proposed Compressor HP}*80)",0,"2017-07-01","2022-06-30","Calculated","{Measure:Quantity} *{Proposed Compressor HP} * 0.2556 * {Weekly Hrs of Operation} * {Weeks Per Year}",1E-4,null,"{Measure:Quantity} *{Proposed Compressor HP} * 0.2556",null,null,"{Measure:Quantity} *{Proposed Compressor HP} * 0.2556 * {Factor:WinterCF}","{Measure:Quantity} *{Proposed Compressor HP} * 0.2556 * {Factor:SummerCF}",null,null,null,null,null,null,"2017-07-01","2022-06-30",15,0.7,0.91100000000000003,0.30399999999999999,0.36099999999999999,0.156,0.17899999999999999,1,1.1220000000000001,1,0.52,1.6E-2,null,{"$f":"DU142","v":"{Measure:Quantity}"},1,{"$f":"DV142","v":"{Proposed Compressor HP}"},15,{"$f":"DW142","v":"{Weekly Hrs of Operation}"},50,{"$f":"DX142","v":"{Weeks Per Year}"},50,{"$f":"DY142","v":""},null,{"$f":"DZ142","v":""},null,{"$f":"EA142","v":""},null,{"$f":"EB142","v":""},null,{"$f":"EC142","v":""},null,{"$f":"ED142","v":""},null,{"$f":"AS142 *AU142 * 0.2556 * AW142 * AY142","v":9585},{"$f":"0.0001","v":1E-4},0,{"$f":"AS142 *AU142 * 0.2556","v":3.8340000000000001},0,0,{"$f":"AS142 *AU142 * 0.2556 * AF142","v":2.6837999999999997},{"$f":"AS142 *AU142 * 0.2556 * AG142","v":3.4927740000000003},0,0,0,0,0,0,null,"Com","Default DR",{"$f":"Benefits(BL142,BR142,BS142,BT142,BU142,BV142,BW142,BX142,BY142,BZ142,AE142,AH142,AI142,AJ142,AK142,AL142,AM142,AN142,AO142,AP142,CA142,CB142)","v":14367.419857061173},16682.470105370488,0,0,0,0,0,0,0,{"$f":"SUMPRODUCT(CC142:CK142,--(CC142:CK142>0))","v":31049.889962431662},{"$f":"-SUMPRODUCT(CC142:CK142,--(CC142:CK142<0))","v":0},null,{"$f":"AS142*AU142*164","v":2460},null,null,{"$f":"CM142+CO142","v":2460},{"$f":"IF(NetOrGross=\"Net\",(1-AO142+AP142),1)","v":1},{"$f":"(SUMPRODUCT(CC142:CJ142,--(CC142:CJ142>0))+CN142)*CS142/((-SUMPRODUCT(CC142:CJ142,--(CC142:CJ142<0))+MAX(CO142,CV142)+CP142+CQ142)*CS142+IF(FRIncentives=\"Yes\",CV142*(1-CS142),0))","v":12.621906488793359},1,{"$f":"IF(AS142*AU142*80>10000,10000,AS142*AU142*80)","v":1200},null,"Electric","y",null,{"$f":"IF(F142=\"Manual Entry\",\"Manual\",IF(G142=\"\",0,\"X=\"&SUBSTITUTE(SUBSTITUTE(SUBSTITUTE(SUBSTITUTE(SUBSTITUTE(SUBSTITUTE(SUBSTITUTE(SUBSTITUTE(SUBSTITUTE(SUBSTITUTE(SUBSTITUTE(SUBSTITUTE(G142,$ED142,$ED$2&ROW($ED142)),$EC142,$EC$2&ROW($EC142)),$EB142,$EB$2&ROW($EB142)),$EA142,$EA$2&ROW($EA142)),$DZ142,$DZ$2&ROW($DZ142)),$DY142,$DY$2&ROW($DY142)),$DX142,$DX$2&ROW($DX142)),$DW142,$DW$2&ROW($DW142)),$DV142,$DV$2&ROW($DV142)),$DU142,$DU$2&ROW($DU142)),$DT142,$DT$2&ROW($DT142)),$DS142,$DS$2&ROW($DS142))))","v":"X=AS142*AU142*164"},{"$f":"IF(I142=\"Manual Entry\",\"Manual\",IF(J142=\"\",0,\"X=\"&SUBSTITUTE(SUBSTITUTE(SUBSTITUTE(SUBSTITUTE(SUBSTITUTE(SUBSTITUTE(SUBSTITUTE(SUBSTITUTE(SUBSTITUTE(SUBSTITUTE(SUBSTITUTE(SUBSTITUTE(J142,$ED142,$ED$2&ROW($ED142)),$EC142,$EC$2&ROW($EC142)),$EB142,$EB$2&ROW($EB142)),$EA142,$EA$2&ROW($EA142)),$DZ142,$DZ$2&ROW($DZ142)),$DY142,$DY$2&ROW($DY142)),$DX142,$DX$2&ROW($DX142)),$DW142,$DW$2&ROW($DW142)),$DV142,$DV$2&ROW($DV142)),$DU142,$DU$2&ROW($DU142)),$DT142,$DT$2&ROW($DT142)),$DS142,$DS$2&ROW($DS142))))","v":"X=if(AS142*AU142*80>10000,10000,AS142*AU142*80)"},{"$f":"IF(O142=\"\",0,\"X=\"&SUBSTITUTE(SUBSTITUTE(SUBSTITUTE(SUBSTITUTE(SUBSTITUTE(SUBSTITUTE(SUBSTITUTE(SUBSTITUTE(SUBSTITUTE(SUBSTITUTE(SUBSTITUTE(SUBSTITUTE(O142,$ED142,$ED$2&ROW($ED142)),$EC142,$EC$2&ROW($EC142)),$EB142,$EB$2&ROW($EB142)),$EA142,$EA$2&ROW($EA142)),$DZ142,$DZ$2&ROW($DZ142)),$DY142,$DY$2&ROW($DY142)),$DX142,$DX$2&ROW($DX142)),$DW142,$DW$2&ROW($DW142)),$DV142,$DV$2&ROW($DV142)),$DU142,$DU$2&ROW($DU142)),$DT142,$DT$2&ROW($DT142)),$DS142,$DS$2&ROW($DS142)))","v":"X=AS142 *AU142 * 0.2556 * AW142 * AY142"},{"$f":"IF(P142=\"\",0,\"X=\"&SUBSTITUTE(SUBSTITUTE(SUBSTITUTE(SUBSTITUTE(SUBSTITUTE(SUBSTITUTE(SUBSTITUTE(SUBSTITUTE(SUBSTITUTE(SUBSTITUTE(SUBSTITUTE(SUBSTITUTE(P142,$ED142,$ED$2&ROW($ED142)),$EC142,$EC$2&ROW($EC142)),$EB142,$EB$2&ROW($EB142)),$EA142,$EA$2&ROW($EA142)),$DZ142,$DZ$2&ROW($DZ142)),$DY142,$DY$2&ROW($DY142)),$DX142,$DX$2&ROW($DX142)),$DW142,$DW$2&ROW($DW142)),$DV142,$DV$2&ROW($DV142)),$DU142,$DU$2&ROW($DU142)),$DT142,$DT$2&ROW($DT142)),$DS142,$DS$2&ROW($DS142)))","v":"X=0.0001"},{"$f":"IF(Q142=\"\",0,\"X=\"&SUBSTITUTE(SUBSTITUTE(SUBSTITUTE(SUBSTITUTE(SUBSTITUTE(SUBSTITUTE(SUBSTITUTE(SUBSTITUTE(SUBSTITUTE(SUBSTITUTE(SUBSTITUTE(SUBSTITUTE(Q142,$ED142,$ED$2&ROW($ED142)),$EC142,$EC$2&ROW($EC142)),$EB142,$EB$2&ROW($EB142)),$EA142,$EA$2&ROW($EA142)),$DZ142,$DZ$2&ROW($DZ142)),$DY142,$DY$2&ROW($DY142)),$DX142,$DX$2&ROW($DX142)),$DW142,$DW$2&ROW($DW142)),$DV142,$DV$2&ROW($DV142)),$DU142,$DU$2&ROW($DU142)),$DT142,$DT$2&ROW($DT142)),$DS142,$DS$2&ROW($DS142)))","v":0},{"$f":"IF(R142=\"\",0,\"X=\"&SUBSTITUTE(SUBSTITUTE(SUBSTITUTE(SUBSTITUTE(SUBSTITUTE(SUBSTITUTE(SUBSTITUTE(SUBSTITUTE(SUBSTITUTE(SUBSTITUTE(SUBSTITUTE(SUBSTITUTE(R142,$ED142,$ED$2&ROW($ED142)),$EC142,$EC$2&ROW($EC142)),$EB142,$EB$2&ROW($EB142)),$EA142,$EA$2&ROW($EA142)),$DZ142,$DZ$2&ROW($DZ142)),$DY142,$DY$2&ROW($DY142)),$DX142,$DX$2&ROW($DX142)),$DW142,$DW$2&ROW($DW142)),$DV142,$DV$2&ROW($DV142)),$DU142,$DU$2&ROW($DU142)),$DT142,$DT$2&ROW($DT142)),$DS142,$DS$2&ROW($DS142)))","v":"X=AS142 *AU142 * 0.2556"},{"$f":"IF(S142=\"\",0,\"X=\"&SUBSTITUTE(SUBSTITUTE(SUBSTITUTE(SUBSTITUTE(SUBSTITUTE(SUBSTITUTE(SUBSTITUTE(SUBSTITUTE(SUBSTITUTE(SUBSTITUTE(SUBSTITUTE(SUBSTITUTE(S142,$ED142,$ED$2&ROW($ED142)),$EC142,$EC$2&ROW($EC142)),$EB142,$EB$2&ROW($EB142)),$EA142,$EA$2&ROW($EA142)),$DZ142,$DZ$2&ROW($DZ142)),$DY142,$DY$2&ROW($DY142)),$DX142,$DX$2&ROW($DX142)),$DW142,$DW$2&ROW($DW142)),$DV142,$DV$2&ROW($DV142)),$DU142,$DU$2&ROW($DU142)),$DT142,$DT$2&ROW($DT142)),$DS142,$DS$2&ROW($DS142)))","v":0},{"$f":"IF(T142=\"\",0,\"X=\"&SUBSTITUTE(SUBSTITUTE(SUBSTITUTE(SUBSTITUTE(SUBSTITUTE(SUBSTITUTE(SUBSTITUTE(SUBSTITUTE(SUBSTITUTE(SUBSTITUTE(SUBSTITUTE(SUBSTITUTE(T142,$ED142,$ED$2&ROW($ED142)),$EC142,$EC$2&ROW($EC142)),$EB142,$EB$2&ROW($EB142)),$EA142,$EA$2&ROW($EA142)),$DZ142,$DZ$2&ROW($DZ142)),$DY142,$DY$2&ROW($DY142)),$DX142,$DX$2&ROW($DX142)),$DW142,$DW$2&ROW($DW142)),$DV142,$DV$2&ROW($DV142)),$DU142,$DU$2&ROW($DU142)),$DT142,$DT$2&ROW($DT142)),$DS142,$DS$2&ROW($DS142)))","v":0},{"$f":"IF(U142=\"\",0,\"X=\"&SUBSTITUTE(SUBSTITUTE(SUBSTITUTE(SUBSTITUTE(SUBSTITUTE(SUBSTITUTE(SUBSTITUTE(SUBSTITUTE(SUBSTITUTE(SUBSTITUTE(SUBSTITUTE(SUBSTITUTE(U142,$ED142,$ED$2&ROW($ED142)),$EC142,$EC$2&ROW($EC142)),$EB142,$EB$2&ROW($EB142)),$EA142,$EA$2&ROW($EA142)),$DZ142,$DZ$2&ROW($DZ142)),$DY142,$DY$2&ROW($DY142)),$DX142,$DX$2&ROW($DX142)),$DW142,$DW$2&ROW($DW142)),$DV142,$DV$2&ROW($DV142)),$DU142,$DU$2&ROW($DU142)),$DT142,$DT$2&ROW($DT142)),$DS142,$DS$2&ROW($DS142)))","v":"X=AS142 *AU142 * 0.2556 * AF142"},{"$f":"IF(V142=\"\",0,\"X=\"&SUBSTITUTE(SUBSTITUTE(SUBSTITUTE(SUBSTITUTE(SUBSTITUTE(SUBSTITUTE(SUBSTITUTE(SUBSTITUTE(SUBSTITUTE(SUBSTITUTE(SUBSTITUTE(SUBSTITUTE(V142,$ED142,$ED$2&ROW($ED142)),$EC142,$EC$2&ROW($EC142)),$EB142,$EB$2&ROW($EB142)),$EA142,$EA$2&ROW($EA142)),$DZ142,$DZ$2&ROW($DZ142)),$DY142,$DY$2&ROW($DY142)),$DX142,$DX$2&ROW($DX142)),$DW142,$DW$2&ROW($DW142)),$DV142,$DV$2&ROW($DV142)),$DU142,$DU$2&ROW($DU142)),$DT142,$DT$2&ROW($DT142)),$DS142,$DS$2&ROW($DS142)))","v":"X=AS142 *AU142 * 0.2556 * AG142"},{"$f":"IF(W142=\"\",0,\"X=\"&SUBSTITUTE(SUBSTITUTE(SUBSTITUTE(SUBSTITUTE(SUBSTITUTE(SUBSTITUTE(SUBSTITUTE(SUBSTITUTE(SUBSTITUTE(SUBSTITUTE(SUBSTITUTE(SUBSTITUTE(W142,$ED142,$ED$2&ROW($ED142)),$EC142,$EC$2&ROW($EC142)),$EB142,$EB$2&ROW($EB142)),$EA142,$EA$2&ROW($EA142)),$DZ142,$DZ$2&ROW($DZ142)),$DY142,$DY$2&ROW($DY142)),$DX142,$DX$2&ROW($DX142)),$DW142,$DW$2&ROW($DW142)),$DV142,$DV$2&ROW($DV142)),$DU142,$DU$2&ROW($DU142)),$DT142,$DT$2&ROW($DT142)),$DS142,$DS$2&ROW($DS142)))","v":0},{"$f":"IF(X142=\"\",0,\"X=\"&SUBSTITUTE(SUBSTITUTE(SUBSTITUTE(SUBSTITUTE(SUBSTITUTE(SUBSTITUTE(SUBSTITUTE(SUBSTITUTE(SUBSTITUTE(SUBSTITUTE(SUBSTITUTE(SUBSTITUTE(X142,$ED142,$ED$2&ROW($ED142)),$EC142,$EC$2&ROW($EC142)),$EB142,$EB$2&ROW($EB142)),$EA142,$EA$2&ROW($EA142)),$DZ142,$DZ$2&ROW($DZ142)),$DY142,$DY$2&ROW($DY142)),$DX142,$DX$2&ROW($DX142)),$DW142,$DW$2&ROW($DW142)),$DV142,$DV$2&ROW($DV142)),$DU142,$DU$2&ROW($DU142)),$DT142,$DT$2&ROW($DT142)),$DS142,$DS$2&ROW($DS142)))","v":0},{"$f":"IF(Y142=\"\",0,\"X=\"&SUBSTITUTE(SUBSTITUTE(SUBSTITUTE(SUBSTITUTE(SUBSTITUTE(SUBSTITUTE(SUBSTITUTE(SUBSTITUTE(SUBSTITUTE(SUBSTITUTE(SUBSTITUTE(SUBSTITUTE(Y142,$ED142,$ED$2&ROW($ED142)),$EC142,$EC$2&ROW($EC142)),$EB142,$EB$2&ROW($EB142)),$EA142,$EA$2&ROW($EA142)),$DZ142,$DZ$2&ROW($DZ142)),$DY142,$DY$2&ROW($DY142)),$DX142,$DX$2&ROW($DX142)),$DW142,$DW$2&ROW($DW142)),$DV142,$DV$2&ROW($DV142)),$DU142,$DU$2&ROW($DU142)),$DT142,$DT$2&ROW($DT142)),$DS142,$DS$2&ROW($DS142)))","v":0},{"$f":"IF(Z142=\"\",0,\"X=\"&SUBSTITUTE(SUBSTITUTE(SUBSTITUTE(SUBSTITUTE(SUBSTITUTE(SUBSTITUTE(SUBSTITUTE(SUBSTITUTE(SUBSTITUTE(SUBSTITUTE(SUBSTITUTE(SUBSTITUTE(Z142,$ED142,$ED$2&ROW($ED142)),$EC142,$EC$2&ROW($EC142)),$EB142,$EB$2&ROW($EB142)),$EA142,$EA$2&ROW($EA142)),$DZ142,$DZ$2&ROW($DZ142)),$DY142,$DY$2&ROW($DY142)),$DX142,$DX$2&ROW($DX142)),$DW142,$DW$2&ROW($DW142)),$DV142,$DV$2&ROW($DV142)),$DU142,$DU$2&ROW($DU142)),$DT142,$DT$2&ROW($DT142)),$DS142,$DS$2&ROW($DS142)))","v":0},{"$f":"IF(AA142=\"\",0,\"X=\"&SUBSTITUTE(SUBSTITUTE(SUBSTITUTE(SUBSTITUTE(SUBSTITUTE(SUBSTITUTE(SUBSTITUTE(SUBSTITUTE(SUBSTITUTE(SUBSTITUTE(SUBSTITUTE(SUBSTITUTE(AA142,$ED142,$ED$2&ROW($ED142)),$EC142,$EC$2&ROW($EC142)),$EB142,$EB$2&ROW($EB142)),$EA142,$EA$2&ROW($EA142)),$DZ142,$DZ$2&ROW($DZ142)),$DY142,$DY$2&ROW($DY142)),$DX142,$DX$2&ROW($DX142)),$DW142,$DW$2&ROW($DW142)),$DV142,$DV$2&ROW($DV142)),$DU142,$DU$2&ROW($DU142)),$DT142,$DT$2&ROW($DT142)),$DS142,$DS$2&ROW($DS142)))","v":0},{"$f":"IF(AB142=\"\",0,\"X=\"&SUBSTITUTE(SUBSTITUTE(SUBSTITUTE(SUBSTITUTE(SUBSTITUTE(SUBSTITUTE(SUBSTITUTE(SUBSTITUTE(SUBSTITUTE(SUBSTITUTE(SUBSTITUTE(SUBSTITUTE(AB142,$ED142,$ED$2&ROW($ED142)),$EC142,$EC$2&ROW($EC142)),$EB142,$EB$2&ROW($EB142)),$EA142,$EA$2&ROW($EA142)),$DZ142,$DZ$2&ROW($DZ142)),$DY142,$DY$2&ROW($DY142)),$DX142,$DX$2&ROW($DX142)),$DW142,$DW$2&ROW($DW142)),$DV142,$DV$2&ROW($DV142)),$DU142,$DU$2&ROW($DU142)),$DT142,$DT$2&ROW($DT142)),$DS142,$DS$2&ROW($DS142)))","v":0},null,null,"{Factor:WinterCF}","{Factor:SummerCF}",{"$f":"IFERROR(INDEX($EG142:$IV142,MATCH(0,COUNTIF($DR142:DT142,$EG142:$IV142),0)),\"\")","v":"{Measure:Quantity}"},{"$f":"IFERROR(INDEX($EG142:$IV142,MATCH(0,COUNTIF($DR142:DU142,$EG142:$IV142),0)),\"\")","v":"{Proposed Compressor HP}"},{"$f":"IFERROR(INDEX($EG142:$IV142,MATCH(0,COUNTIF($DR142:DV142,$EG142:$IV142),0)),\"\")","v":"{Weekly Hrs of Operation}"},{"$f":"IFERROR(INDEX($EG142:$IV142,MATCH(0,COUNTIF($DR142:DW142,$EG142:$IV142),0)),\"\")","v":"{Weeks Per Year}"},{"$f":"IFERROR(INDEX($EG142:$IV142,MATCH(0,COUNTIF($DR142:DX142,$EG142:$IV142),0)),\"\")","v":""},{"$f":"IFERROR(INDEX($EG142:$IV142,MATCH(0,COUNTIF($DR142:DY142,$EG142:$IV142),0)),\"\")","v":""},{"$f":"IFERROR(INDEX($EG142:$IV142,MATCH(0,COUNTIF($DR142:DZ142,$EG142:$IV142),0)),\"\")","v":""},{"$f":"IFERROR(INDEX($EG142:$IV142,MATCH(0,COUNTIF($DR142:EA142,$EG142:$IV142),0)),\"\")","v":""},{"$f":"IFERROR(INDEX($EG142:$IV142,MATCH(0,COUNTIF($DR142:EB142,$EG142:$IV142),0)),\"\")","v":""},{"$f":"IFERROR(INDEX($EG142:$IV142,MATCH(0,COUNTIF($DR142:EC142,$EG142:$IV142),0)),\"\")","v":""},null,null,{"$f":"IFERROR(MID($G142,FIND(CHAR(160),SUBSTITUTE($G142,\"{\",CHAR(160),EG$1)),FIND(CHAR(160),SUBSTITUTE($G142,\"}\",CHAR(160),EG$1))-FIND(CHAR(160),SUBSTITUTE($G142,\"{\",CHAR(160),EG$1))+1),\"\")","v":"{Measure:Quantity}"},{"$f":"IFERROR(MID($G142,FIND(CHAR(160),SUBSTITUTE($G142,\"{\",CHAR(160),EH$1)),FIND(CHAR(160),SUBSTITUTE($G142,\"}\",CHAR(160),EH$1))-FIND(CHAR(160),SUBSTITUTE($G142,\"{\",CHAR(160),EH$1))+1),\"\")","v":"{Proposed Compressor HP}"},{"$f":"IFERROR(MID($G142,FIND(CHAR(160),SUBSTITUTE($G142,\"{\",CHAR(160),EI$1)),FIND(CHAR(160),SUBSTITUTE($G142,\"}\",CHAR(160),EI$1))-FIND(CHAR(160),SUBSTITUTE($G142,\"{\",CHAR(160),EI$1))+1),\"\")","v":""},{"$f":"IFERROR(MID($G142,FIND(CHAR(160),SUBSTITUTE($G142,\"{\",CHAR(160),EJ$1)),FIND(CHAR(160),SUBSTITUTE($G142,\"}\",CHAR(160),EJ$1))-FIND(CHAR(160),SUBSTITUTE($G142,\"{\",CHAR(160),EJ$1))+1),\"\")","v":""},{"$f":"IFERROR(MID($G142,FIND(CHAR(160),SUBSTITUTE($G142,\"{\",CHAR(160),EK$1)),FIND(CHAR(160),SUBSTITUTE($G142,\"}\",CHAR(160),EK$1))-FIND(CHAR(160),SUBSTITUTE($G142,\"{\",CHAR(160),EK$1))+1),\"\")","v":""},{"$f":"IFERROR(MID($G142,FIND(CHAR(160),SUBSTITUTE($G142,\"{\",CHAR(160),EL$1)),FIND(CHAR(160),SUBSTITUTE($G142,\"}\",CHAR(160),EL$1))-FIND(CHAR(160),SUBSTITUTE($G142,\"{\",CHAR(160),EL$1))+1),\"\")","v":""},{"$f":"IFERROR(MID($G142,FIND(CHAR(160),SUBSTITUTE($G142,\"{\",CHAR(160),EM$1)),FIND(CHAR(160),SUBSTITUTE($G142,\"}\",CHAR(160),EM$1))-FIND(CHAR(160),SUBSTITUTE($G142,\"{\",CHAR(160),EM$1))+1),\"\")","v":""},{"$f":"IFERROR(MID($G142,FIND(CHAR(160),SUBSTITUTE($G142,\"{\",CHAR(160),EN$1)),FIND(CHAR(160),SUBSTITUTE($G142,\"}\",CHAR(160),EN$1))-FIND(CHAR(160),SUBSTITUTE($G142,\"{\",CHAR(160),EN$1))+1),\"\")","v":""},{"$f":"IFERROR(MID($G142,FIND(CHAR(160),SUBSTITUTE($G142,\"{\",CHAR(160),EO$1)),FIND(CHAR(160),SUBSTITUTE($G142,\"}\",CHAR(160),EO$1))-FIND(CHAR(160),SUBSTITUTE($G142,\"{\",CHAR(160),EO$1))+1),\"\")","v":""},{"$f":"IFERROR(MID($G142,FIND(CHAR(160),SUBSTITUTE($G142,\"{\",CHAR(160),EP$1)),FIND(CHAR(160),SUBSTITUTE($G142,\"}\",CHAR(160),EP$1))-FIND(CHAR(160),SUBSTITUTE($G142,\"{\",CHAR(160),EP$1))+1),\"\")","v":""},{"$f":"IFERROR(MID($J142,FIND(CHAR(160),SUBSTITUTE($J142,\"{\",CHAR(160),EQ$1)),FIND(CHAR(160),SUBSTITUTE($J142,\"}\",CHAR(160),EQ$1))-FIND(CHAR(160),SUBSTITUTE($J142,\"{\",CHAR(160),EQ$1))+1),\"\")","v":"{Measure:Quantity}"},{"$f":"IFERROR(MID($J142,FIND(CHAR(160),SUBSTITUTE($J142,\"{\",CHAR(160),ER$1)),FIND(CHAR(160),SUBSTITUTE($J142,\"}\",CHAR(160),ER$1))-FIND(CHAR(160),SUBSTITUTE($J142,\"{\",CHAR(160),ER$1))+1),\"\")","v":"{Proposed Compressor HP}"},{"$f":"IFERROR(MID($J142,FIND(CHAR(160),SUBSTITUTE($J142,\"{\",CHAR(160),ES$1)),FIND(CHAR(160),SUBSTITUTE($J142,\"}\",CHAR(160),ES$1))-FIND(CHAR(160),SUBSTITUTE($J142,\"{\",CHAR(160),ES$1))+1),\"\")","v":"{Measure:Quantity}"},{"$f":"IFERROR(MID($J142,FIND(CHAR(160),SUBSTITUTE($J142,\"{\",CHAR(160),ET$1)),FIND(CHAR(160),SUBSTITUTE($J142,\"}\",CHAR(160),ET$1))-FIND(CHAR(160),SUBSTITUTE($J142,\"{\",CHAR(160),ET$1))+1),\"\")","v":"{Proposed Compressor HP}"},{"$f":"IFERROR(MID($J142,FIND(CHAR(160),SUBSTITUTE($J142,\"{\",CHAR(160),EU$1)),FIND(CHAR(160),SUBSTITUTE($J142,\"}\",CHAR(160),EU$1))-FIND(CHAR(160),SUBSTITUTE($J142,\"{\",CHAR(160),EU$1))+1),\"\")","v":""},{"$f":"IFERROR(MID($J142,FIND(CHAR(160),SUBSTITUTE($J142,\"{\",CHAR(160),EV$1)),FIND(CHAR(160),SUBSTITUTE($J142,\"}\",CHAR(160),EV$1))-FIND(CHAR(160),SUBSTITUTE($J142,\"{\",CHAR(160),EV$1))+1),\"\")","v":""},{"$f":"IFERROR(MID($J142,FIND(CHAR(160),SUBSTITUTE($J142,\"{\",CHAR(160),EW$1)),FIND(CHAR(160),SUBSTITUTE($J142,\"}\",CHAR(160),EW$1))-FIND(CHAR(160),SUBSTITUTE($J142,\"{\",CHAR(160),EW$1))+1),\"\")","v":""},{"$f":"IFERROR(MID($J142,FIND(CHAR(160),SUBSTITUTE($J142,\"{\",CHAR(160),EX$1)),FIND(CHAR(160),SUBSTITUTE($J142,\"}\",CHAR(160),EX$1))-FIND(CHAR(160),SUBSTITUTE($J142,\"{\",CHAR(160),EX$1))+1),\"\")","v":""},{"$f":"IFERROR(MID($J142,FIND(CHAR(160),SUBSTITUTE($J142,\"{\",CHAR(160),EY$1)),FIND(CHAR(160),SUBSTITUTE($J142,\"}\",CHAR(160),EY$1))-FIND(CHAR(160),SUBSTITUTE($J142,\"{\",CHAR(160),EY$1))+1),\"\")","v":""},{"$f":"IFERROR(MID($J142,FIND(CHAR(160),SUBSTITUTE($J142,\"{\",CHAR(160),EZ$1)),FIND(CHAR(160),SUBSTITUTE($J142,\"}\",CHAR(160),EZ$1))-FIND(CHAR(160),SUBSTITUTE($J142,\"{\",CHAR(160),EZ$1))+1),\"\")","v":""},{"$f":"IFERROR(MID($J142,FIND(CHAR(160),SUBSTITUTE($J142,\"{\",CHAR(160),FA$1)),FIND(CHAR(160),SUBSTITUTE($J142,\"}\",CHAR(160),FA$1))-FIND(CHAR(160),SUBSTITUTE($J142,\"{\",CHAR(160),FA$1))+1),\"\")","v":"{Measure:Quantity}"},{"$f":"IFERROR(MID($J142,FIND(CHAR(160),SUBSTITUTE($J142,\"{\",CHAR(160),FB$1)),FIND(CHAR(160),SUBSTITUTE($J142,\"}\",CHAR(160),FB$1))-FIND(CHAR(160),SUBSTITUTE($J142,\"{\",CHAR(160),FB$1))+1),\"\")","v":"{Proposed Compressor HP}"},{"$f":"IFERROR(MID($O142,FIND(CHAR(160),SUBSTITUTE($O142,\"{\",CHAR(160),FC$1)),FIND(CHAR(160),SUBSTITUTE($O142,\"}\",CHAR(160),FC$1))-FIND(CHAR(160),SUBSTITUTE($O142,\"{\",CHAR(160),FC$1))+1),\"\")","v":"{Weekly Hrs of Operation}"},{"$f":"IFERROR(MID($O142,FIND(CHAR(160),SUBSTITUTE($O142,\"{\",CHAR(160),FD$1)),FIND(CHAR(160),SUBSTITUTE($O142,\"}\",CHAR(160),FD$1))-FIND(CHAR(160),SUBSTITUTE($O142,\"{\",CHAR(160),FD$1))+1),\"\")","v":"{Weeks Per Year}"},{"$f":"IFERROR(MID($O142,FIND(CHAR(160),SUBSTITUTE($O142,\"{\",CHAR(160),FE$1)),FIND(CHAR(160),SUBSTITUTE($O142,\"}\",CHAR(160),FE$1))-FIND(CHAR(160),SUBSTITUTE($O142,\"{\",CHAR(160),FE$1))+1),\"\")","v":""},{"$f":"IFERROR(MID($O142,FIND(CHAR(160),SUBSTITUTE($O142,\"{\",CHAR(160),FF$1)),FIND(CHAR(160),SUBSTITUTE($O142,\"}\",CHAR(160),FF$1))-FIND(CHAR(160),SUBSTITUTE($O142,\"{\",CHAR(160),FF$1))+1),\"\")","v":""},{"$f":"IFERROR(MID($O142,FIND(CHAR(160),SUBSTITUTE($O142,\"{\",CHAR(160),FG$1)),FIND(CHAR(160),SUBSTITUTE($O142,\"}\",CHAR(160),FG$1))-FIND(CHAR(160),SUBSTITUTE($O142,\"{\",CHAR(160),FG$1))+1),\"\")","v":""},{"$f":"IFERROR(MID($O142,FIND(CHAR(160),SUBSTITUTE($O142,\"{\",CHAR(160),FH$1)),FIND(CHAR(160),SUBSTITUTE($O142,\"}\",CHAR(160),FH$1))-FIND(CHAR(160),SUBSTITUTE($O142,\"{\",CHAR(160),FH$1))+1),\"\")","v":""},{"$f":"IFERROR(MID($O142,FIND(CHAR(160),SUBSTITUTE($O142,\"{\",CHAR(160),FI$1)),FIND(CHAR(160),SUBSTITUTE($O142,\"}\",CHAR(160),FI$1))-FIND(CHAR(160),SUBSTITUTE($O142,\"{\",CHAR(160),FI$1))+1),\"\")","v":""},{"$f":"IFERROR(MID($O142,FIND(CHAR(160),SUBSTITUTE($O142,\"{\",CHAR(160),FJ$1)),FIND(CHAR(160),SUBSTITUTE($O142,\"}\",CHAR(160),FJ$1))-FIND(CHAR(160),SUBSTITUTE($O142,\"{\",CHAR(160),FJ$1))+1),\"\")","v":""},{"$f":"IFERROR(MID($O142,FIND(CHAR(160),SUBSTITUTE($O142,\"{\",CHAR(160),FK$1)),FIND(CHAR(160),SUBSTITUTE($O142,\"}\",CHAR(160),FK$1))-FIND(CHAR(160),SUBSTITUTE($O142,\"{\",CHAR(160),FK$1))+1),\"\")","v":"{Measure:Quantity}"},{"$f":"IFERROR(MID($O142,FIND(CHAR(160),SUBSTITUTE($O142,\"{\",CHAR(160),FL$1)),FIND(CHAR(160),SUBSTITUTE($O142,\"}\",CHAR(160),FL$1))-FIND(CHAR(160),SUBSTITUTE($O142,\"{\",CHAR(160),FL$1))+1),\"\")","v":"{Proposed Compressor HP}"},{"$f":"IFERROR(MID($R142,FIND(CHAR(160),SUBSTITUTE($R142,\"{\",CHAR(160),FM$1)),FIND(CHAR(160),SUBSTITUTE($R142,\"}\",CHAR(160),FM$1))-FIND(CHAR(160),SUBSTITUTE($R142,\"{\",CHAR(160),FM$1))+1),\"\")","v":""},{"$f":"IFERROR(MID($R142,FIND(CHAR(160),SUBSTITUTE($R142,\"{\",CHAR(160),FN$1)),FIND(CHAR(160),SUBSTITUTE($R142,\"}\",CHAR(160),FN$1))-FIND(CHAR(160),SUBSTITUTE($R142,\"{\",CHAR(160),FN$1))+1),\"\")","v":""},{"$f":"IFERROR(MID($R142,FIND(CHAR(160),SUBSTITUTE($R142,\"{\",CHAR(160),FO$1)),FIND(CHAR(160),SUBSTITUTE($R142,\"}\",CHAR(160),FO$1))-FIND(CHAR(160),SUBSTITUTE($R142,\"{\",CHAR(160),FO$1))+1),\"\")","v":""},{"$f":"IFERROR(MID($R142,FIND(CHAR(160),SUBSTITUTE($R142,\"{\",CHAR(160),FP$1)),FIND(CHAR(160),SUBSTITUTE($R142,\"}\",CHAR(160),FP$1))-FIND(CHAR(160),SUBSTITUTE($R142,\"{\",CHAR(160),FP$1))+1),\"\")","v":""},{"$f":"IFERROR(MID($R142,FIND(CHAR(160),SUBSTITUTE($R142,\"{\",CHAR(160),FQ$1)),FIND(CHAR(160),SUBSTITUTE($R142,\"}\",CHAR(160),FQ$1))-FIND(CHAR(160),SUBSTITUTE($R142,\"{\",CHAR(160),FQ$1))+1),\"\")","v":""},{"$f":"IFERROR(MID($R142,FIND(CHAR(160),SUBSTITUTE($R142,\"{\",CHAR(160),FR$1)),FIND(CHAR(160),SUBSTITUTE($R142,\"}\",CHAR(160),FR$1))-FIND(CHAR(160),SUBSTITUTE($R142,\"{\",CHAR(160),FR$1))+1),\"\")","v":""},{"$f":"IFERROR(MID($R142,FIND(CHAR(160),SUBSTITUTE($R142,\"{\",CHAR(160),FS$1)),FIND(CHAR(160),SUBSTITUTE($R142,\"}\",CHAR(160),FS$1))-FIND(CHAR(160),SUBSTITUTE($R142,\"{\",CHAR(160),FS$1))+1),\"\")","v":""},{"$f":"IFERROR(MID($R142,FIND(CHAR(160),SUBSTITUTE($R142,\"{\",CHAR(160),FT$1)),FIND(CHAR(160),SUBSTITUTE($R142,\"}\",CHAR(160),FT$1))-FIND(CHAR(160),SUBSTITUTE($R142,\"{\",CHAR(160),FT$1))+1),\"\")","v":""},{"$f":"IFERROR(MID($R142,FIND(CHAR(160),SUBSTITUTE($R142,\"{\",CHAR(160),FU$1)),FIND(CHAR(160),SUBSTITUTE($R142,\"}\",CHAR(160),FU$1))-FIND(CHAR(160),SUBSTITUTE($R142,\"{\",CHAR(160),FU$1))+1),\"\")","v":"{Measure:Quantity}"},{"$f":"IFERROR(MID($R142,FIND(CHAR(160),SUBSTITUTE($R142,\"{\",CHAR(160),FV$1)),FIND(CHAR(160),SUBSTITUTE($R142,\"}\",CHAR(160),FV$1))-FIND(CHAR(160),SUBSTITUTE($R142,\"{\",CHAR(160),FV$1))+1),\"\")","v":"{Proposed Compressor HP}"},{"$f":"IFERROR(MID($U142,FIND(CHAR(160),SUBSTITUTE($U142,\"{\",CHAR(160),FW$1)),FIND(CHAR(160),SUBSTITUTE($U142,\"}\",CHAR(160),FW$1))-FIND(CHAR(160),SUBSTITUTE($U142,\"{\",CHAR(160),FW$1))+1),\"\")","v":"{Factor:WinterCF}"},{"$f":"IFERROR(MID($U142,FIND(CHAR(160),SUBSTITUTE($U142,\"{\",CHAR(160),FX$1)),FIND(CHAR(160),SUBSTITUTE($U142,\"}\",CHAR(160),FX$1))-FIND(CHAR(160),SUBSTITUTE($U142,\"{\",CHAR(160),FX$1))+1),\"\")","v":""},{"$f":"IFERROR(MID($U142,FIND(CHAR(160),SUBSTITUTE($U142,\"{\",CHAR(160),FY$1)),FIND(CHAR(160),SUBSTITUTE($U142,\"}\",CHAR(160),FY$1))-FIND(CHAR(160),SUBSTITUTE($U142,\"{\",CHAR(160),FY$1))+1),\"\")","v":""},{"$f":"IFERROR(MID($U142,FIND(CHAR(160),SUBSTITUTE($U142,\"{\",CHAR(160),FZ$1)),FIND(CHAR(160),SUBSTITUTE($U142,\"}\",CHAR(160),FZ$1))-FIND(CHAR(160),SUBSTITUTE($U142,\"{\",CHAR(160),FZ$1))+1),\"\")","v":""},{"$f":"IFERROR(MID($U142,FIND(CHAR(160),SUBSTITUTE($U142,\"{\",CHAR(160),GA$1)),FIND(CHAR(160),SUBSTITUTE($U142,\"}\",CHAR(160),GA$1))-FIND(CHAR(160),SUBSTITUTE($U142,\"{\",CHAR(160),GA$1))+1),\"\")","v":""},{"$f":"IFERROR(MID($U142,FIND(CHAR(160),SUBSTITUTE($U142,\"{\",CHAR(160),GB$1)),FIND(CHAR(160),SUBSTITUTE($U142,\"}\",CHAR(160),GB$1))-FIND(CHAR(160),SUBSTITUTE($U142,\"{\",CHAR(160),GB$1))+1),\"\")","v":""},{"$f":"IFERROR(MID($U142,FIND(CHAR(160),SUBSTITUTE($U142,\"{\",CHAR(160),GC$1)),FIND(CHAR(160),SUBSTITUTE($U142,\"}\",CHAR(160),GC$1))-FIND(CHAR(160),SUBSTITUTE($U142,\"{\",CHAR(160),GC$1))+1),\"\")","v":""},{"$f":"IFERROR(MID($U142,FIND(CHAR(160),SUBSTITUTE($U142,\"{\",CHAR(160),GD$1)),FIND(CHAR(160),SUBSTITUTE($U142,\"}\",CHAR(160),GD$1))-FIND(CHAR(160),SUBSTITUTE($U142,\"{\",CHAR(160),GD$1))+1),\"\")","v":""},{"$f":"IFERROR(MID($U142,FIND(CHAR(160),SUBSTITUTE($U142,\"{\",CHAR(160),GE$1)),FIND(CHAR(160),SUBSTITUTE($U142,\"}\",CHAR(160),GE$1))-FIND(CHAR(160),SUBSTITUTE($U142,\"{\",CHAR(160),GE$1))+1),\"\")","v":"{Measure:Quantity}"},{"$f":"IFERROR(MID($U142,FIND(CHAR(160),SUBSTITUTE($U142,\"{\",CHAR(160),GF$1)),FIND(CHAR(160),SUBSTITUTE($U142,\"}\",CHAR(160),GF$1))-FIND(CHAR(160),SUBSTITUTE($U142,\"{\",CHAR(160),GF$1))+1),\"\")","v":"{Proposed Compressor HP}"},{"$f":"IFERROR(MID($V142,FIND(CHAR(160),SUBSTITUTE($V142,\"{\",CHAR(160),GG$1)),FIND(CHAR(160),SUBSTITUTE($V142,\"}\",CHAR(160),GG$1))-FIND(CHAR(160),SUBSTITUTE($V142,\"{\",CHAR(160),GG$1))+1),\"\")","v":"{Factor:SummerCF}"},{"$f":"IFERROR(MID($V142,FIND(CHAR(160),SUBSTITUTE($V142,\"{\",CHAR(160),GH$1)),FIND(CHAR(160),SUBSTITUTE($V142,\"}\",CHAR(160),GH$1))-FIND(CHAR(160),SUBSTITUTE($V142,\"{\",CHAR(160),GH$1))+1),\"\")","v":""},{"$f":"IFERROR(MID($V142,FIND(CHAR(160),SUBSTITUTE($V142,\"{\",CHAR(160),GI$1)),FIND(CHAR(160),SUBSTITUTE($V142,\"}\",CHAR(160),GI$1))-FIND(CHAR(160),SUBSTITUTE($V142,\"{\",CHAR(160),GI$1))+1),\"\")","v":""},{"$f":"IFERROR(MID($V142,FIND(CHAR(160),SUBSTITUTE($V142,\"{\",CHAR(160),GJ$1)),FIND(CHAR(160),SUBSTITUTE($V142,\"}\",CHAR(160),GJ$1))-FIND(CHAR(160),SUBSTITUTE($V142,\"{\",CHAR(160),GJ$1))+1),\"\")","v":""},{"$f":"IFERROR(MID($V142,FIND(CHAR(160),SUBSTITUTE($V142,\"{\",CHAR(160),GK$1)),FIND(CHAR(160),SUBSTITUTE($V142,\"}\",CHAR(160),GK$1))-FIND(CHAR(160),SUBSTITUTE($V142,\"{\",CHAR(160),GK$1))+1),\"\")","v":""},{"$f":"IFERROR(MID($V142,FIND(CHAR(160),SUBSTITUTE($V142,\"{\",CHAR(160),GL$1)),FIND(CHAR(160),SUBSTITUTE($V142,\"}\",CHAR(160),GL$1))-FIND(CHAR(160),SUBSTITUTE($V142,\"{\",CHAR(160),GL$1))+1),\"\")","v":""},{"$f":"IFERROR(MID($V142,FIND(CHAR(160),SUBSTITUTE($V142,\"{\",CHAR(160),GM$1)),FIND(CHAR(160),SUBSTITUTE($V142,\"}\",CHAR(160),GM$1))-FIND(CHAR(160),SUBSTITUTE($V142,\"{\",CHAR(160),GM$1))+1),\"\")","v":""},{"$f":"IFERROR(MID($V142,FIND(CHAR(160),SUBSTITUTE($V142,\"{\",CHAR(160),GN$1)),FIND(CHAR(160),SUBSTITUTE($V142,\"}\",CHAR(160),GN$1))-FIND(CHAR(160),SUBSTITUTE($V142,\"{\",CHAR(160),GN$1))+1),\"\")","v":""},{"$f":"IFERROR(MID($V142,FIND(CHAR(160),SUBSTITUTE($V142,\"{\",CHAR(160),GO$1)),FIND(CHAR(160),SUBSTITUTE($V142,\"}\",CHAR(160),GO$1))-FIND(CHAR(160),SUBSTITUTE($V142,\"{\",CHAR(160),GO$1))+1),\"\")","v":"{Measure:Quantity}"},{"$f":"IFERROR(MID($V142,FIND(CHAR(160),SUBSTITUTE($V142,\"{\",CHAR(160),GP$1)),FIND(CHAR(160),SUBSTITUTE($V142,\"}\",CHAR(160),GP$1))-FIND(CHAR(160),SUBSTITUTE($V142,\"{\",CHAR(160),GP$1))+1),\"\")","v":"{Proposed Compressor HP}"},{"$f":"IFERROR(MID($W142,FIND(CHAR(160),SUBSTITUTE($W142,\"{\",CHAR(160),GQ$1)),FIND(CHAR(160),SUBSTITUTE($W142,\"}\",CHAR(160),GQ$1))-FIND(CHAR(160),SUBSTITUTE($W142,\"{\",CHAR(160),GQ$1))+1),\"\")","v":""},{"$f":"IFERROR(MID($W142,FIND(CHAR(160),SUBSTITUTE($W142,\"{\",CHAR(160),GR$1)),FIND(CHAR(160),SUBSTITUTE($W142,\"}\",CHAR(160),GR$1))-FIND(CHAR(160),SUBSTITUTE($W142,\"{\",CHAR(160),GR$1))+1),\"\")","v":""},{"$f":"IFERROR(MID($W142,FIND(CHAR(160),SUBSTITUTE($W142,\"{\",CHAR(160),GS$1)),FIND(CHAR(160),SUBSTITUTE($W142,\"}\",CHAR(160),GS$1))-FIND(CHAR(160),SUBSTITUTE($W142,\"{\",CHAR(160),GS$1))+1),\"\")","v":""},{"$f":"IFERROR(MID($W142,FIND(CHAR(160),SUBSTITUTE($W142,\"{\",CHAR(160),GT$1)),FIND(CHAR(160),SUBSTITUTE($W142,\"}\",CHAR(160),GT$1))-FIND(CHAR(160),SUBSTITUTE($W142,\"{\",CHAR(160),GT$1))+1),\"\")","v":""},{"$f":"IFERROR(MID($W142,FIND(CHAR(160),SUBSTITUTE($W142,\"{\",CHAR(160),GU$1)),FIND(CHAR(160),SUBSTITUTE($W142,\"}\",CHAR(160),GU$1))-FIND(CHAR(160),SUBSTITUTE($W142,\"{\",CHAR(160),GU$1))+1),\"\")","v":""},{"$f":"IFERROR(MID($W142,FIND(CHAR(160),SUBSTITUTE($W142,\"{\",CHAR(160),GV$1)),FIND(CHAR(160),SUBSTITUTE($W142,\"}\",CHAR(160),GV$1))-FIND(CHAR(160),SUBSTITUTE($W142,\"{\",CHAR(160),GV$1))+1),\"\")","v":""},{"$f":"IFERROR(MID($W142,FIND(CHAR(160),SUBSTITUTE($W142,\"{\",CHAR(160),GW$1)),FIND(CHAR(160),SUBSTITUTE($W142,\"}\",CHAR(160),GW$1))-FIND(CHAR(160),SUBSTITUTE($W142,\"{\",CHAR(160),GW$1))+1),\"\")","v":""},{"$f":"IFERROR(MID($W142,FIND(CHAR(160),SUBSTITUTE($W142,\"{\",CHAR(160),GX$1)),FIND(CHAR(160),SUBSTITUTE($W142,\"}\",CHAR(160),GX$1))-FIND(CHAR(160),SUBSTITUTE($W142,\"{\",CHAR(160),GX$1))+1),\"\")","v":""},{"$f":"IFERROR(MID($W142,FIND(CHAR(160),SUBSTITUTE($W142,\"{\",CHAR(160),GY$1)),FIND(CHAR(160),SUBSTITUTE($W142,\"}\",CHAR(160),GY$1))-FIND(CHAR(160),SUBSTITUTE($W142,\"{\",CHAR(160),GY$1))+1),\"\")","v":""},{"$f":"IFERROR(MID($W142,FIND(CHAR(160),SUBSTITUTE($W142,\"{\",CHAR(160),GZ$1)),FIND(CHAR(160),SUBSTITUTE($W142,\"}\",CHAR(160),GZ$1))-FIND(CHAR(160),SUBSTITUTE($W142,\"{\",CHAR(160),GZ$1))+1),\"\")","v":""},{"$f":"IFERROR(MID($X142,FIND(CHAR(160),SUBSTITUTE($X142,\"{\",CHAR(160),HA$1)),FIND(CHAR(160),SUBSTITUTE($X142,\"}\",CHAR(160),HA$1))-FIND(CHAR(160),SUBSTITUTE($X142,\"{\",CHAR(160),HA$1))+1),\"\")","v":""},{"$f":"IFERROR(MID($X142,FIND(CHAR(160),SUBSTITUTE($X142,\"{\",CHAR(160),HB$1)),FIND(CHAR(160),SUBSTITUTE($X142,\"}\",CHAR(160),HB$1))-FIND(CHAR(160),SUBSTITUTE($X142,\"{\",CHAR(160),HB$1))+1),\"\")","v":""},{"$f":"IFERROR(MID($X142,FIND(CHAR(160),SUBSTITUTE($X142,\"{\",CHAR(160),HC$1)),FIND(CHAR(160),SUBSTITUTE($X142,\"}\",CHAR(160),HC$1))-FIND(CHAR(160),SUBSTITUTE($X142,\"{\",CHAR(160),HC$1))+1),\"\")","v":""},{"$f":"IFERROR(MID($X142,FIND(CHAR(160),SUBSTITUTE($X142,\"{\",CHAR(160),HD$1)),FIND(CHAR(160),SUBSTITUTE($X142,\"}\",CHAR(160),HD$1))-FIND(CHAR(160),SUBSTITUTE($X142,\"{\",CHAR(160),HD$1))+1),\"\")","v":""},{"$f":"IFERROR(MID($X142,FIND(CHAR(160),SUBSTITUTE($X142,\"{\",CHAR(160),HE$1)),FIND(CHAR(160),SUBSTITUTE($X142,\"}\",CHAR(160),HE$1))-FIND(CHAR(160),SUBSTITUTE($X142,\"{\",CHAR(160),HE$1))+1),\"\")","v":""},{"$f":"IFERROR(MID($X142,FIND(CHAR(160),SUBSTITUTE($X142,\"{\",CHAR(160),HF$1)),FIND(CHAR(160),SUBSTITUTE($X142,\"}\",CHAR(160),HF$1))-FIND(CHAR(160),SUBSTITUTE($X142,\"{\",CHAR(160),HF$1))+1),\"\")","v":""},{"$f":"IFERROR(MID($X142,FIND(CHAR(160),SUBSTITUTE($X142,\"{\",CHAR(160),HG$1)),FIND(CHAR(160),SUBSTITUTE($X142,\"}\",CHAR(160),HG$1))-FIND(CHAR(160),SUBSTITUTE($X142,\"{\",CHAR(160),HG$1))+1),\"\")","v":""},{"$f":"IFERROR(MID($X142,FIND(CHAR(160),SUBSTITUTE($X142,\"{\",CHAR(160),HH$1)),FIND(CHAR(160),SUBSTITUTE($X142,\"}\",CHAR(160),HH$1))-FIND(CHAR(160),SUBSTITUTE($X142,\"{\",CHAR(160),HH$1))+1),\"\")","v":""},{"$f":"IFERROR(MID($X142,FIND(CHAR(160),SUBSTITUTE($X142,\"{\",CHAR(160),HI$1)),FIND(CHAR(160),SUBSTITUTE($X142,\"}\",CHAR(160),HI$1))-FIND(CHAR(160),SUBSTITUTE($X142,\"{\",CHAR(160),HI$1))+1),\"\")","v":""},{"$f":"IFERROR(MID($X142,FIND(CHAR(160),SUBSTITUTE($X142,\"{\",CHAR(160),HJ$1)),FIND(CHAR(160),SUBSTITUTE($X142,\"}\",CHAR(160),HJ$1))-FIND(CHAR(160),SUBSTITUTE($X142,\"{\",CHAR(160),HJ$1))+1),\"\")","v":""},{"$f":"IFERROR(MID($Y142,FIND(CHAR(160),SUBSTITUTE($Y142,\"{\",CHAR(160),HK$1)),FIND(CHAR(160),SUBSTITUTE($Y142,\"}\",CHAR(160),HK$1))-FIND(CHAR(160),SUBSTITUTE($Y142,\"{\",CHAR(160),HK$1))+1),\"\")","v":""},{"$f":"IFERROR(MID($Y142,FIND(CHAR(160),SUBSTITUTE($Y142,\"{\",CHAR(160),HL$1)),FIND(CHAR(160),SUBSTITUTE($Y142,\"}\",CHAR(160),HL$1))-FIND(CHAR(160),SUBSTITUTE($Y142,\"{\",CHAR(160),HL$1))+1),\"\")","v":""},{"$f":"IFERROR(MID($Y142,FIND(CHAR(160),SUBSTITUTE($Y142,\"{\",CHAR(160),HM$1)),FIND(CHAR(160),SUBSTITUTE($Y142,\"}\",CHAR(160),HM$1))-FIND(CHAR(160),SUBSTITUTE($Y142,\"{\",CHAR(160),HM$1))+1),\"\")","v":""},{"$f":"IFERROR(MID($Y142,FIND(CHAR(160),SUBSTITUTE($Y142,\"{\",CHAR(160),HN$1)),FIND(CHAR(160),SUBSTITUTE($Y142,\"}\",CHAR(160),HN$1))-FIND(CHAR(160),SUBSTITUTE($Y142,\"{\",CHAR(160),HN$1))+1),\"\")","v":""},{"$f":"IFERROR(MID($Y142,FIND(CHAR(160),SUBSTITUTE($Y142,\"{\",CHAR(160),HO$1)),FIND(CHAR(160),SUBSTITUTE($Y142,\"}\",CHAR(160),HO$1))-FIND(CHAR(160),SUBSTITUTE($Y142,\"{\",CHAR(160),HO$1))+1),\"\")","v":""},{"$f":"IFERROR(MID($Y142,FIND(CHAR(160),SUBSTITUTE($Y142,\"{\",CHAR(160),HP$1)),FIND(CHAR(160),SUBSTITUTE($Y142,\"}\",CHAR(160),HP$1))-FIND(CHAR(160),SUBSTITUTE($Y142,\"{\",CHAR(160),HP$1))+1),\"\")","v":""},{"$f":"IFERROR(MID($Y142,FIND(CHAR(160),SUBSTITUTE($Y142,\"{\",CHAR(160),HQ$1)),FIND(CHAR(160),SUBSTITUTE($Y142,\"}\",CHAR(160),HQ$1))-FIND(CHAR(160),SUBSTITUTE($Y142,\"{\",CHAR(160),HQ$1))+1),\"\")","v":""},{"$f":"IFERROR(MID($Y142,FIND(CHAR(160),SUBSTITUTE($Y142,\"{\",CHAR(160),HR$1)),FIND(CHAR(160),SUBSTITUTE($Y142,\"}\",CHAR(160),HR$1))-FIND(CHAR(160),SUBSTITUTE($Y142,\"{\",CHAR(160),HR$1))+1),\"\")","v":""},{"$f":"IFERROR(MID($Y142,FIND(CHAR(160),SUBSTITUTE($Y142,\"{\",CHAR(160),HS$1)),FIND(CHAR(160),SUBSTITUTE($Y142,\"}\",CHAR(160),HS$1))-FIND(CHAR(160),SUBSTITUTE($Y142,\"{\",CHAR(160),HS$1))+1),\"\")","v":""},{"$f":"IFERROR(MID($Y142,FIND(CHAR(160),SUBSTITUTE($Y142,\"{\",CHAR(160),HT$1)),FIND(CHAR(160),SUBSTITUTE($Y142,\"}\",CHAR(160),HT$1))-FIND(CHAR(160),SUBSTITUTE($Y142,\"{\",CHAR(160),HT$1))+1),\"\")","v":""},{"$f":"IFERROR(MID($Z142,FIND(CHAR(160),SUBSTITUTE($Z142,\"{\",CHAR(160),HU$1)),FIND(CHAR(160),SUBSTITUTE($Z142,\"}\",CHAR(160),HU$1))-FIND(CHAR(160),SUBSTITUTE($Z142,\"{\",CHAR(160),HU$1))+1),\"\")","v":""},{"$f":"IFERROR(MID($Z142,FIND(CHAR(160),SUBSTITUTE($Z142,\"{\",CHAR(160),HV$1)),FIND(CHAR(160),SUBSTITUTE($Z142,\"}\",CHAR(160),HV$1))-FIND(CHAR(160),SUBSTITUTE($Z142,\"{\",CHAR(160),HV$1))+1),\"\")","v":""},{"$f":"IFERROR(MID($Z142,FIND(CHAR(160),SUBSTITUTE($Z142,\"{\",CHAR(160),HW$1)),FIND(CHAR(160),SUBSTITUTE($Z142,\"}\",CHAR(160),HW$1))-FIND(CHAR(160),SUBSTITUTE($Z142,\"{\",CHAR(160),HW$1))+1),\"\")","v":""},{"$f":"IFERROR(MID($Z142,FIND(CHAR(160),SUBSTITUTE($Z142,\"{\",CHAR(160),HX$1)),FIND(CHAR(160),SUBSTITUTE($Z142,\"}\",CHAR(160),HX$1))-FIND(CHAR(160),SUBSTITUTE($Z142,\"{\",CHAR(160),HX$1))+1),\"\")","v":""},{"$f":"IFERROR(MID($Z142,FIND(CHAR(160),SUBSTITUTE($Z142,\"{\",CHAR(160),HY$1)),FIND(CHAR(160),SUBSTITUTE($Z142,\"}\",CHAR(160),HY$1))-FIND(CHAR(160),SUBSTITUTE($Z142,\"{\",CHAR(160),HY$1))+1),\"\")","v":""},{"$f":"IFERROR(MID($Z142,FIND(CHAR(160),SUBSTITUTE($Z142,\"{\",CHAR(160),HZ$1)),FIND(CHAR(160),SUBSTITUTE($Z142,\"}\",CHAR(160),HZ$1))-FIND(CHAR(160),SUBSTITUTE($Z142,\"{\",CHAR(160),HZ$1))+1),\"\")","v":""},{"$f":"IFERROR(MID($Z142,FIND(CHAR(160),SUBSTITUTE($Z142,\"{\",CHAR(160),IA$1)),FIND(CHAR(160),SUBSTITUTE($Z142,\"}\",CHAR(160),IA$1))-FIND(CHAR(160),SUBSTITUTE($Z142,\"{\",CHAR(160),IA$1))+1),\"\")","v":""},{"$f":"IFERROR(MID($Z142,FIND(CHAR(160),SUBSTITUTE($Z142,\"{\",CHAR(160),IB$1)),FIND(CHAR(160),SUBSTITUTE($Z142,\"}\",CHAR(160),IB$1))-FIND(CHAR(160),SUBSTITUTE($Z142,\"{\",CHAR(160),IB$1))+1),\"\")","v":""},{"$f":"IFERROR(MID($Z142,FIND(CHAR(160),SUBSTITUTE($Z142,\"{\",CHAR(160),IC$1)),FIND(CHAR(160),SUBSTITUTE($Z142,\"}\",CHAR(160),IC$1))-FIND(CHAR(160),SUBSTITUTE($Z142,\"{\",CHAR(160),IC$1))+1),\"\")","v":""},{"$f":"IFERROR(MID($Z142,FIND(CHAR(160),SUBSTITUTE($Z142,\"{\",CHAR(160),ID$1)),FIND(CHAR(160),SUBSTITUTE($Z142,\"}\",CHAR(160),ID$1))-FIND(CHAR(160),SUBSTITUTE($Z142,\"{\",CHAR(160),ID$1))+1),\"\")","v":""},{"$f":"IFERROR(MID($AA142,FIND(CHAR(160),SUBSTITUTE($AA142,\"{\",CHAR(160),IE$1)),FIND(CHAR(160),SUBSTITUTE($AA142,\"}\",CHAR(160),IE$1))-FIND(CHAR(160),SUBSTITUTE($AA142,\"{\",CHAR(160),IE$1))+1),\"\")","v":""},{"$f":"IFERROR(MID($AA142,FIND(CHAR(160),SUBSTITUTE($AA142,\"{\",CHAR(160),IF$1)),FIND(CHAR(160),SUBSTITUTE($AA142,\"}\",CHAR(160),IF$1))-FIND(CHAR(160),SUBSTITUTE($AA142,\"{\",CHAR(160),IF$1))+1),\"\")","v":""},{"$f":"IFERROR(MID($AA142,FIND(CHAR(160),SUBSTITUTE($AA142,\"{\",CHAR(160),IG$1)),FIND(CHAR(160),SUBSTITUTE($AA142,\"}\",CHAR(160),IG$1))-FIND(CHAR(160),SUBSTITUTE($AA142,\"{\",CHAR(160),IG$1))+1),\"\")","v":""},{"$f":"IFERROR(MID($AA142,FIND(CHAR(160),SUBSTITUTE($AA142,\"{\",CHAR(160),IH$1)),FIND(CHAR(160),SUBSTITUTE($AA142,\"}\",CHAR(160),IH$1))-FIND(CHAR(160),SUBSTITUTE($AA142,\"{\",CHAR(160),IH$1))+1),\"\")","v":""},{"$f":"IFERROR(MID($AA142,FIND(CHAR(160),SUBSTITUTE($AA142,\"{\",CHAR(160),II$1)),FIND(CHAR(160),SUBSTITUTE($AA142,\"}\",CHAR(160),II$1))-FIND(CHAR(160),SUBSTITUTE($AA142,\"{\",CHAR(160),II$1))+1),\"\")","v":""},{"$f":"IFERROR(MID($AA142,FIND(CHAR(160),SUBSTITUTE($AA142,\"{\",CHAR(160),IJ$1)),FIND(CHAR(160),SUBSTITUTE($AA142,\"}\",CHAR(160),IJ$1))-FIND(CHAR(160),SUBSTITUTE($AA142,\"{\",CHAR(160),IJ$1))+1),\"\")","v":""},{"$f":"IFERROR(MID($AA142,FIND(CHAR(160),SUBSTITUTE($AA142,\"{\",CHAR(160),IK$1)),FIND(CHAR(160),SUBSTITUTE($AA142,\"}\",CHAR(160),IK$1))-FIND(CHAR(160),SUBSTITUTE($AA142,\"{\",CHAR(160),IK$1))+1),\"\")","v":""},{"$f":"IFERROR(MID($AA142,FIND(CHAR(160),SUBSTITUTE($AA142,\"{\",CHAR(160),IL$1)),FIND(CHAR(160),SUBSTITUTE($AA142,\"}\",CHAR(160),IL$1))-FIND(CHAR(160),SUBSTITUTE($AA142,\"{\",CHAR(160),IL$1))+1),\"\")","v":""},{"$f":"IFERROR(MID($AA142,FIND(CHAR(160),SUBSTITUTE($AA142,\"{\",CHAR(160),IM$1)),FIND(CHAR(160),SUBSTITUTE($AA142,\"}\",CHAR(160),IM$1))-FIND(CHAR(160),SUBSTITUTE($AA142,\"{\",CHAR(160),IM$1))+1),\"\")","v":""},{"$f":"IFERROR(MID($AA142,FIND(CHAR(160),SUBSTITUTE($AA142,\"{\",CHAR(160),IN$1)),FIND(CHAR(160),SUBSTITUTE($AA142,\"}\",CHAR(160),IN$1))-FIND(CHAR(160),SUBSTITUTE($AA142,\"{\",CHAR(160),IN$1))+1),\"\")","v":""},{"$f":"IFERROR(MID($AB142,FIND(CHAR(160),SUBSTITUTE($AB142,\"{\",CHAR(160),IO$1)),FIND(CHAR(160),SUBSTITUTE($AB142,\"}\",CHAR(160),IO$1))-FIND(CHAR(160),SUBSTITUTE($AB142,\"{\",CHAR(160),IO$1))+1),\"\")","v":""},{"$f":"IFERROR(MID($AB142,FIND(CHAR(160),SUBSTITUTE($AB142,\"{\",CHAR(160),IP$1)),FIND(CHAR(160),SUBSTITUTE($AB142,\"}\",CHAR(160),IP$1))-FIND(CHAR(160),SUBSTITUTE($AB142,\"{\",CHAR(160),IP$1))+1),\"\")","v":""},{"$f":"IFERROR(MID($AB142,FIND(CHAR(160),SUBSTITUTE($AB142,\"{\",CHAR(160),IQ$1)),FIND(CHAR(160),SUBSTITUTE($AB142,\"}\",CHAR(160),IQ$1))-FIND(CHAR(160),SUBSTITUTE($AB142,\"{\",CHAR(160),IQ$1))+1),\"\")","v":""},{"$f":"IFERROR(MID($AB142,FIND(CHAR(160),SUBSTITUTE($AB142,\"{\",CHAR(160),IR$1)),FIND(CHAR(160),SUBSTITUTE($AB142,\"}\",CHAR(160),IR$1))-FIND(CHAR(160),SUBSTITUTE($AB142,\"{\",CHAR(160),IR$1))+1),\"\")","v":""},{"$f":"IFERROR(MID($AB142,FIND(CHAR(160),SUBSTITUTE($AB142,\"{\",CHAR(160),IS$1)),FIND(CHAR(160),SUBSTITUTE($AB142,\"}\",CHAR(160),IS$1))-FIND(CHAR(160),SUBSTITUTE($AB142,\"{\",CHAR(160),IS$1))+1),\"\")","v":""},{"$f":"IFERROR(MID($AB142,FIND(CHAR(160),SUBSTITUTE($AB142,\"{\",CHAR(160),IT$1)),FIND(CHAR(160),SUBSTITUTE($AB142,\"}\",CHAR(160),IT$1))-FIND(CHAR(160),SUBSTITUTE($AB142,\"{\",CHAR(160),IT$1))+1),\"\")","v":""},{"$f":"IFERROR(MID($AB142,FIND(CHAR(160),SUBSTITUTE($AB142,\"{\",CHAR(160),IU$1)),FIND(CHAR(160),SUBSTITUTE($AB142,\"}\",CHAR(160),IU$1))-FIND(CHAR(160),SUBSTITUTE($AB142,\"{\",CHAR(160),IU$1))+1),\"\")","v":""},{"$f":"IFERROR(MID($AB142,FIND(CHAR(160),SUBSTITUTE($AB142,\"{\",CHAR(160),IV$1)),FIND(CHAR(160),SUBSTITUTE($AB142,\"}\",CHAR(160),IV$1))-FIND(CHAR(160),SUBSTITUTE($AB142,\"{\",CHAR(160),IV$1))+1),\"\")","v":""},{"$f":"IFERROR(MID($AB142,FIND(CHAR(160),SUBSTITUTE($AB142,\"{\",CHAR(160),IW$1)),FIND(CHAR(160),SUBSTITUTE($AB142,\"}\",CHAR(160),IW$1))-FIND(CHAR(160),SUBSTITUTE($AB142,\"{\",CHAR(160),IW$1))+1),\"\")","v":""},{"$f":"IFERROR(MID($AB142,FIND(CHAR(160),SUBSTITUTE($AB142,\"{\",CHAR(160),IX$1)),FIND(CHAR(160),SUBSTITUTE($AB142,\"}\",CHAR(160),IX$1))-FIND(CHAR(160),SUBSTITUTE($AB142,\"{\",CHAR(160),IX$1))+1),\"\")","v":""},null,{"$f":"10-COUNTIF(DU142:ED142,\"\")","v":4}]
["C&I Prescriptive Compressed Air Solutions","Engineered Nozzles - C40","N - C40","2021-07-01","2022-06-30","Per Measure",14,0,"Per Measure",7,0,"2017-07-01","2022-06-30","Calculated","{Measure:Quantity} * {kW per nozzle} * 0.05 * {Weekly Hrs of Operation} * {Weeks Per Year}",1E-4,null,"{Measure:Quantity} * {kW per nozzle} * 0.05",null,null,"{Measure:Quantity} * {kW per nozzle} * 0.05 * {Factor:WinterCF}","{Measure:Quantity} * {kW per nozzle} * 0.05 * {Factor:SummerCF}",null,null,null,null,null,null,"2017-07-01","2022-06-30",10,0.7,0.91100000000000003,0.30399999999999999,0.36099999999999999,0.156,0.17899999999999999,1,1.1220000000000001,1,0.52,1.6E-2,null,{"$f":"DU143","v":"{Weekly Hrs of Operation}"},1,{"$f":"DV143","v":"{Weeks Per Year}"},2.85,{"$f":"DW143","v":"{Measure:Quantity}"},50,{"$f":"DX143","v":"{kW per nozzle}"},50,{"$f":"DY143","v":""},null,{"$f":"DZ143","v":""},null,{"$f":"EA143","v":""},null,{"$f":"EB143","v":""},null,{"$f":"EC143","v":""},null,{"$f":"ED143","v":""},null,{"$f":"AS143 * AU143 * 0.05 * AW143 * AY143","v":356.25000000000006},{"$f":"0.0001","v":1E-4},0,{"$f":"AS143 * AU143 * 0.05","v":0.14250000000000002},0,0,{"$f":"AS143 * AU143 * 0.05 * AF143","v":9.9750000000000005E-2},{"$f":"AS143 * AU143 * 0.05 * AG143","v":0.12981750000000003},0,0,0,0,0,0,null,"Com","Default DR",{"$f":"Benefits(BL143,BR143,BS143,BT143,BU143,BV143,BW143,BX143,BY143,BZ143,AE143,AH143,AI143,AJ143,AK143,AL143,AM143,AN143,AO143,AP143,CA143,CB143)","v":395.75882482884248},439.23316815000152,0,0,0,0,0,0,0,{"$f":"SUMPRODUCT(CC143:CK143,--(CC143:CK143>0))","v":834.991992978844},{"$f":"-SUMPRODUCT(CC143:CK143,--(CC143:CK143<0))","v":0},null,{"$f":"14","v":14},null,null,{"$f":"CM143+CO143","v":14},{"$f":"IF(NetOrGross=\"Net\",(1-AO143+AP143),1)","v":1},{"$f":"(SUMPRODUCT(CC143:CJ143,--(CC143:CJ143>0))+CN143)*CS143/((-SUMPRODUCT(CC143:CJ143,--(CC143:CJ143<0))+MAX(CO143,CV143)+CP143+CQ143)*CS143+IF(FRIncentives=\"Yes\",CV143*(1-CS143),0))","v":59.642285212774574},16,{"$f":"7","v":7},null,"Electric","y",null,{"$f":"IF(F143=\"Manual Entry\",\"Manual\",IF(G143=\"\",0,\"X=\"&SUBSTITUTE(SUBSTITUTE(SUBSTITUTE(SUBSTITUTE(SUBSTITUTE(SUBSTITUTE(SUBSTITUTE(SUBSTITUTE(SUBSTITUTE(SUBSTITUTE(SUBSTITUTE(SUBSTITUTE(G143,$ED143,$ED$2&ROW($ED143)),$EC143,$EC$2&ROW($EC143)),$EB143,$EB$2&ROW($EB143)),$EA143,$EA$2&ROW($EA143)),$DZ143,$DZ$2&ROW($DZ143)),$DY143,$DY$2&ROW($DY143)),$DX143,$DX$2&ROW($DX143)),$DW143,$DW$2&ROW($DW143)),$DV143,$DV$2&ROW($DV143)),$DU143,$DU$2&ROW($DU143)),$DT143,$DT$2&ROW($DT143)),$DS143,$DS$2&ROW($DS143))))","v":"X=14"},{"$f":"IF(I143=\"Manual Entry\",\"Manual\",IF(J143=\"\",0,\"X=\"&SUBSTITUTE(SUBSTITUTE(SUBSTITUTE(SUBSTITUTE(SUBSTITUTE(SUBSTITUTE(SUBSTITUTE(SUBSTITUTE(SUBSTITUTE(SUBSTITUTE(SUBSTITUTE(SUBSTITUTE(J143,$ED143,$ED$2&ROW($ED143)),$EC143,$EC$2&ROW($EC143)),$EB143,$EB$2&ROW($EB143)),$EA143,$EA$2&ROW($EA143)),$DZ143,$DZ$2&ROW($DZ143)),$DY143,$DY$2&ROW($DY143)),$DX143,$DX$2&ROW($DX143)),$DW143,$DW$2&ROW($DW143)),$DV143,$DV$2&ROW($DV143)),$DU143,$DU$2&ROW($DU143)),$DT143,$DT$2&ROW($DT143)),$DS143,$DS$2&ROW($DS143))))","v":"X=7"},{"$f":"IF(O143=\"\",0,\"X=\"&SUBSTITUTE(SUBSTITUTE(SUBSTITUTE(SUBSTITUTE(SUBSTITUTE(SUBSTITUTE(SUBSTITUTE(SUBSTITUTE(SUBSTITUTE(SUBSTITUTE(SUBSTITUTE(SUBSTITUTE(O143,$ED143,$ED$2&ROW($ED143)),$EC143,$EC$2&ROW($EC143)),$EB143,$EB$2&ROW($EB143)),$EA143,$EA$2&ROW($EA143)),$DZ143,$DZ$2&ROW($DZ143)),$DY143,$DY$2&ROW($DY143)),$DX143,$DX$2&ROW($DX143)),$DW143,$DW$2&ROW($DW143)),$DV143,$DV$2&ROW($DV143)),$DU143,$DU$2&ROW($DU143)),$DT143,$DT$2&ROW($DT143)),$DS143,$DS$2&ROW($DS143)))","v":"X=AW143 * AY143 * 0.05 * AS143 * AU143"},{"$f":"IF(P143=\"\",0,\"X=\"&SUBSTITUTE(SUBSTITUTE(SUBSTITUTE(SUBSTITUTE(SUBSTITUTE(SUBSTITUTE(SUBSTITUTE(SUBSTITUTE(SUBSTITUTE(SUBSTITUTE(SUBSTITUTE(SUBSTITUTE(P143,$ED143,$ED$2&ROW($ED143)),$EC143,$EC$2&ROW($EC143)),$EB143,$EB$2&ROW($EB143)),$EA143,$EA$2&ROW($EA143)),$DZ143,$DZ$2&ROW($DZ143)),$DY143,$DY$2&ROW($DY143)),$DX143,$DX$2&ROW($DX143)),$DW143,$DW$2&ROW($DW143)),$DV143,$DV$2&ROW($DV143)),$DU143,$DU$2&ROW($DU143)),$DT143,$DT$2&ROW($DT143)),$DS143,$DS$2&ROW($DS143)))","v":"X=0.0001"},{"$f":"IF(Q143=\"\",0,\"X=\"&SUBSTITUTE(SUBSTITUTE(SUBSTITUTE(SUBSTITUTE(SUBSTITUTE(SUBSTITUTE(SUBSTITUTE(SUBSTITUTE(SUBSTITUTE(SUBSTITUTE(SUBSTITUTE(SUBSTITUTE(Q143,$ED143,$ED$2&ROW($ED143)),$EC143,$EC$2&ROW($EC143)),$EB143,$EB$2&ROW($EB143)),$EA143,$EA$2&ROW($EA143)),$DZ143,$DZ$2&ROW($DZ143)),$DY143,$DY$2&ROW($DY143)),$DX143,$DX$2&ROW($DX143)),$DW143,$DW$2&ROW($DW143)),$DV143,$DV$2&ROW($DV143)),$DU143,$DU$2&ROW($DU143)),$DT143,$DT$2&ROW($DT143)),$DS143,$DS$2&ROW($DS143)))","v":0},{"$f":"IF(R143=\"\",0,\"X=\"&SUBSTITUTE(SUBSTITUTE(SUBSTITUTE(SUBSTITUTE(SUBSTITUTE(SUBSTITUTE(SUBSTITUTE(SUBSTITUTE(SUBSTITUTE(SUBSTITUTE(SUBSTITUTE(SUBSTITUTE(R143,$ED143,$ED$2&ROW($ED143)),$EC143,$EC$2&ROW($EC143)),$EB143,$EB$2&ROW($EB143)),$EA143,$EA$2&ROW($EA143)),$DZ143,$DZ$2&ROW($DZ143)),$DY143,$DY$2&ROW($DY143)),$DX143,$DX$2&ROW($DX143)),$DW143,$DW$2&ROW($DW143)),$DV143,$DV$2&ROW($DV143)),$DU143,$DU$2&ROW($DU143)),$DT143,$DT$2&ROW($DT143)),$DS143,$DS$2&ROW($DS143)))","v":"X=AW143 * AY143 * 0.05"},{"$f":"IF(S143=\"\",0,\"X=\"&SUBSTITUTE(SUBSTITUTE(SUBSTITUTE(SUBSTITUTE(SUBSTITUTE(SUBSTITUTE(SUBSTITUTE(SUBSTITUTE(SUBSTITUTE(SUBSTITUTE(SUBSTITUTE(SUBSTITUTE(S143,$ED143,$ED$2&ROW($ED143)),$EC143,$EC$2&ROW($EC143)),$EB143,$EB$2&ROW($EB143)),$EA143,$EA$2&ROW($EA143)),$DZ143,$DZ$2&ROW($DZ143)),$DY143,$DY$2&ROW($DY143)),$DX143,$DX$2&ROW($DX143)),$DW143,$DW$2&ROW($DW143)),$DV143,$DV$2&ROW($DV143)),$DU143,$DU$2&ROW($DU143)),$DT143,$DT$2&ROW($DT143)),$DS143,$DS$2&ROW($DS143)))","v":0},{"$f":"IF(T143=\"\",0,\"X=\"&SUBSTITUTE(SUBSTITUTE(SUBSTITUTE(SUBSTITUTE(SUBSTITUTE(SUBSTITUTE(SUBSTITUTE(SUBSTITUTE(SUBSTITUTE(SUBSTITUTE(SUBSTITUTE(SUBSTITUTE(T143,$ED143,$ED$2&ROW($ED143)),$EC143,$EC$2&ROW($EC143)),$EB143,$EB$2&ROW($EB143)),$EA143,$EA$2&ROW($EA143)),$DZ143,$DZ$2&ROW($DZ143)),$DY143,$DY$2&ROW($DY143)),$DX143,$DX$2&ROW($DX143)),$DW143,$DW$2&ROW($DW143)),$DV143,$DV$2&ROW($DV143)),$DU143,$DU$2&ROW($DU143)),$DT143,$DT$2&ROW($DT143)),$DS143,$DS$2&ROW($DS143)))","v":0},{"$f":"IF(U143=\"\",0,\"X=\"&SUBSTITUTE(SUBSTITUTE(SUBSTITUTE(SUBSTITUTE(SUBSTITUTE(SUBSTITUTE(SUBSTITUTE(SUBSTITUTE(SUBSTITUTE(SUBSTITUTE(SUBSTITUTE(SUBSTITUTE(U143,$ED143,$ED$2&ROW($ED143)),$EC143,$EC$2&ROW($EC143)),$EB143,$EB$2&ROW($EB143)),$EA143,$EA$2&ROW($EA143)),$DZ143,$DZ$2&ROW($DZ143)),$DY143,$DY$2&ROW($DY143)),$DX143,$DX$2&ROW($DX143)),$DW143,$DW$2&ROW($DW143)),$DV143,$DV$2&ROW($DV143)),$DU143,$DU$2&ROW($DU143)),$DT143,$DT$2&ROW($DT143)),$DS143,$DS$2&ROW($DS143)))","v":"X=AW143 * AY143 * 0.05 * AF143"},{"$f":"IF(V143=\"\",0,\"X=\"&SUBSTITUTE(SUBSTITUTE(SUBSTITUTE(SUBSTITUTE(SUBSTITUTE(SUBSTITUTE(SUBSTITUTE(SUBSTITUTE(SUBSTITUTE(SUBSTITUTE(SUBSTITUTE(SUBSTITUTE(V143,$ED143,$ED$2&ROW($ED143)),$EC143,$EC$2&ROW($EC143)),$EB143,$EB$2&ROW($EB143)),$EA143,$EA$2&ROW($EA143)),$DZ143,$DZ$2&ROW($DZ143)),$DY143,$DY$2&ROW($DY143)),$DX143,$DX$2&ROW($DX143)),$DW143,$DW$2&ROW($DW143)),$DV143,$DV$2&ROW($DV143)),$DU143,$DU$2&ROW($DU143)),$DT143,$DT$2&ROW($DT143)),$DS143,$DS$2&ROW($DS143)))","v":"X=AW143 * AY143 * 0.05 * AG143"},{"$f":"IF(W143=\"\",0,\"X=\"&SUBSTITUTE(SUBSTITUTE(SUBSTITUTE(SUBSTITUTE(SUBSTITUTE(SUBSTITUTE(SUBSTITUTE(SUBSTITUTE(SUBSTITUTE(SUBSTITUTE(SUBSTITUTE(SUBSTITUTE(W143,$ED143,$ED$2&ROW($ED143)),$EC143,$EC$2&ROW($EC143)),$EB143,$EB$2&ROW($EB143)),$EA143,$EA$2&ROW($EA143)),$DZ143,$DZ$2&ROW($DZ143)),$DY143,$DY$2&ROW($DY143)),$DX143,$DX$2&ROW($DX143)),$DW143,$DW$2&ROW($DW143)),$DV143,$DV$2&ROW($DV143)),$DU143,$DU$2&ROW($DU143)),$DT143,$DT$2&ROW($DT143)),$DS143,$DS$2&ROW($DS143)))","v":0},{"$f":"IF(X143=\"\",0,\"X=\"&SUBSTITUTE(SUBSTITUTE(SUBSTITUTE(SUBSTITUTE(SUBSTITUTE(SUBSTITUTE(SUBSTITUTE(SUBSTITUTE(SUBSTITUTE(SUBSTITUTE(SUBSTITUTE(SUBSTITUTE(X143,$ED143,$ED$2&ROW($ED143)),$EC143,$EC$2&ROW($EC143)),$EB143,$EB$2&ROW($EB143)),$EA143,$EA$2&ROW($EA143)),$DZ143,$DZ$2&ROW($DZ143)),$DY143,$DY$2&ROW($DY143)),$DX143,$DX$2&ROW($DX143)),$DW143,$DW$2&ROW($DW143)),$DV143,$DV$2&ROW($DV143)),$DU143,$DU$2&ROW($DU143)),$DT143,$DT$2&ROW($DT143)),$DS143,$DS$2&ROW($DS143)))","v":0},{"$f":"IF(Y143=\"\",0,\"X=\"&SUBSTITUTE(SUBSTITUTE(SUBSTITUTE(SUBSTITUTE(SUBSTITUTE(SUBSTITUTE(SUBSTITUTE(SUBSTITUTE(SUBSTITUTE(SUBSTITUTE(SUBSTITUTE(SUBSTITUTE(Y143,$ED143,$ED$2&ROW($ED143)),$EC143,$EC$2&ROW($EC143)),$EB143,$EB$2&ROW($EB143)),$EA143,$EA$2&ROW($EA143)),$DZ143,$DZ$2&ROW($DZ143)),$DY143,$DY$2&ROW($DY143)),$DX143,$DX$2&ROW($DX143)),$DW143,$DW$2&ROW($DW143)),$DV143,$DV$2&ROW($DV143)),$DU143,$DU$2&ROW($DU143)),$DT143,$DT$2&ROW($DT143)),$DS143,$DS$2&ROW($DS143)))","v":0},{"$f":"IF(Z143=\"\",0,\"X=\"&SUBSTITUTE(SUBSTITUTE(SUBSTITUTE(SUBSTITUTE(SUBSTITUTE(SUBSTITUTE(SUBSTITUTE(SUBSTITUTE(SUBSTITUTE(SUBSTITUTE(SUBSTITUTE(SUBSTITUTE(Z143,$ED143,$ED$2&ROW($ED143)),$EC143,$EC$2&ROW($EC143)),$EB143,$EB$2&ROW($EB143)),$EA143,$EA$2&ROW($EA143)),$DZ143,$DZ$2&ROW($DZ143)),$DY143,$DY$2&ROW($DY143)),$DX143,$DX$2&ROW($DX143)),$DW143,$DW$2&ROW($DW143)),$DV143,$DV$2&ROW($DV143)),$DU143,$DU$2&ROW($DU143)),$DT143,$DT$2&ROW($DT143)),$DS143,$DS$2&ROW($DS143)))","v":0},{"$f":"IF(AA143=\"\",0,\"X=\"&SUBSTITUTE(SUBSTITUTE(SUBSTITUTE(SUBSTITUTE(SUBSTITUTE(SUBSTITUTE(SUBSTITUTE(SUBSTITUTE(SUBSTITUTE(SUBSTITUTE(SUBSTITUTE(SUBSTITUTE(AA143,$ED143,$ED$2&ROW($ED143)),$EC143,$EC$2&ROW($EC143)),$EB143,$EB$2&ROW($EB143)),$EA143,$EA$2&ROW($EA143)),$DZ143,$DZ$2&ROW($DZ143)),$DY143,$DY$2&ROW($DY143)),$DX143,$DX$2&ROW($DX143)),$DW143,$DW$2&ROW($DW143)),$DV143,$DV$2&ROW($DV143)),$DU143,$DU$2&ROW($DU143)),$DT143,$DT$2&ROW($DT143)),$DS143,$DS$2&ROW($DS143)))","v":0},{"$f":"IF(AB143=\"\",0,\"X=\"&SUBSTITUTE(SUBSTITUTE(SUBSTITUTE(SUBSTITUTE(SUBSTITUTE(SUBSTITUTE(SUBSTITUTE(SUBSTITUTE(SUBSTITUTE(SUBSTITUTE(SUBSTITUTE(SUBSTITUTE(AB143,$ED143,$ED$2&ROW($ED143)),$EC143,$EC$2&ROW($EC143)),$EB143,$EB$2&ROW($EB143)),$EA143,$EA$2&ROW($EA143)),$DZ143,$DZ$2&ROW($DZ143)),$DY143,$DY$2&ROW($DY143)),$DX143,$DX$2&ROW($DX143)),$DW143,$DW$2&ROW($DW143)),$DV143,$DV$2&ROW($DV143)),$DU143,$DU$2&ROW($DU143)),$DT143,$DT$2&ROW($DT143)),$DS143,$DS$2&ROW($DS143)))","v":0},null,null,"{Factor:WinterCF}","{Factor:SummerCF}",{"$f":"IFERROR(INDEX($EG143:$IV143,MATCH(0,COUNTIF($DR143:DT143,$EG143:$IV143),0)),\"\")","v":"{Weekly Hrs of Operation}"},{"$f":"IFERROR(INDEX($EG143:$IV143,MATCH(0,COUNTIF($DR143:DU143,$EG143:$IV143),0)),\"\")","v":"{Weeks Per Year}"},{"$f":"IFERROR(INDEX($EG143:$IV143,MATCH(0,COUNTIF($DR143:DV143,$EG143:$IV143),0)),\"\")","v":"{Measure:Quantity}"},{"$f":"IFERROR(INDEX($EG143:$IV143,MATCH(0,COUNTIF($DR143:DW143,$EG143:$IV143),0)),\"\")","v":"{kW per nozzle}"},{"$f":"IFERROR(INDEX($EG143:$IV143,MATCH(0,COUNTIF($DR143:DX143,$EG143:$IV143),0)),\"\")","v":""},{"$f":"IFERROR(INDEX($EG143:$IV143,MATCH(0,COUNTIF($DR143:DY143,$EG143:$IV143),0)),\"\")","v":""},{"$f":"IFERROR(INDEX($EG143:$IV143,MATCH(0,COUNTIF($DR143:DZ143,$EG143:$IV143),0)),\"\")","v":""},{"$f":"IFERROR(INDEX($EG143:$IV143,MATCH(0,COUNTIF($DR143:EA143,$EG143:$IV143),0)),\"\")","v":""},{"$f":"IFERROR(INDEX($EG143:$IV143,MATCH(0,COUNTIF($DR143:EB143,$EG143:$IV143),0)),\"\")","v":""},{"$f":"IFERROR(INDEX($EG143:$IV143,MATCH(0,COUNTIF($DR143:EC143,$EG143:$IV143),0)),\"\")","v":""},null,null,{"$f":"IFERROR(MID($G143,FIND(CHAR(160),SUBSTITUTE($G143,\"{\",CHAR(160),EG$1)),FIND(CHAR(160),SUBSTITUTE($G143,\"}\",CHAR(160),EG$1))-FIND(CHAR(160),SUBSTITUTE($G143,\"{\",CHAR(160),EG$1))+1),\"\")","v":""},{"$f":"IFERROR(MID($G143,FIND(CHAR(160),SUBSTITUTE($G143,\"{\",CHAR(160),EH$1)),FIND(CHAR(160),SUBSTITUTE($G143,\"}\",CHAR(160),EH$1))-FIND(CHAR(160),SUBSTITUTE($G143,\"{\",CHAR(160),EH$1))+1),\"\")","v":""},{"$f":"IFERROR(MID($G143,FIND(CHAR(160),SUBSTITUTE($G143,\"{\",CHAR(160),EI$1)),FIND(CHAR(160),SUBSTITUTE($G143,\"}\",CHAR(160),EI$1))-FIND(CHAR(160),SUBSTITUTE($G143,\"{\",CHAR(160),EI$1))+1),\"\")","v":""},{"$f":"IFERROR(MID($G143,FIND(CHAR(160),SUBSTITUTE($G143,\"{\",CHAR(160),EJ$1)),FIND(CHAR(160),SUBSTITUTE($G143,\"}\",CHAR(160),EJ$1))-FIND(CHAR(160),SUBSTITUTE($G143,\"{\",CHAR(160),EJ$1))+1),\"\")","v":""},{"$f":"IFERROR(MID($G143,FIND(CHAR(160),SUBSTITUTE($G143,\"{\",CHAR(160),EK$1)),FIND(CHAR(160),SUBSTITUTE($G143,\"}\",CHAR(160),EK$1))-FIND(CHAR(160),SUBSTITUTE($G143,\"{\",CHAR(160),EK$1))+1),\"\")","v":""},{"$f":"IFERROR(MID($G143,FIND(CHAR(160),SUBSTITUTE($G143,\"{\",CHAR(160),EL$1)),FIND(CHAR(160),SUBSTITUTE($G143,\"}\",CHAR(160),EL$1))-FIND(CHAR(160),SUBSTITUTE($G143,\"{\",CHAR(160),EL$1))+1),\"\")","v":""},{"$f":"IFERROR(MID($G143,FIND(CHAR(160),SUBSTITUTE($G143,\"{\",CHAR(160),EM$1)),FIND(CHAR(160),SUBSTITUTE($G143,\"}\",CHAR(160),EM$1))-FIND(CHAR(160),SUBSTITUTE($G143,\"{\",CHAR(160),EM$1))+1),\"\")","v":""},{"$f":"IFERROR(MID($G143,FIND(CHAR(160),SUBSTITUTE($G143,\"{\",CHAR(160),EN$1)),FIND(CHAR(160),SUBSTITUTE($G143,\"}\",CHAR(160),EN$1))-FIND(CHAR(160),SUBSTITUTE($G143,\"{\",CHAR(160),EN$1))+1),\"\")","v":""},{"$f":"IFERROR(MID($G143,FIND(CHAR(160),SUBSTITUTE($G143,\"{\",CHAR(160),EO$1)),FIND(CHAR(160),SUBSTITUTE($G143,\"}\",CHAR(160),EO$1))-FIND(CHAR(160),SUBSTITUTE($G143,\"{\",CHAR(160),EO$1))+1),\"\")","v":""},{"$f":"IFERROR(MID($G143,FIND(CHAR(160),SUBSTITUTE($G143,\"{\",CHAR(160),EP$1)),FIND(CHAR(160),SUBSTITUTE($G143,\"}\",CHAR(160),EP$1))-FIND(CHAR(160),SUBSTITUTE($G143,\"{\",CHAR(160),EP$1))+1),\"\")","v":""},{"$f":"IFERROR(MID($J143,FIND(CHAR(160),SUBSTITUTE($J143,\"{\",CHAR(160),EQ$1)),FIND(CHAR(160),SUBSTITUTE($J143,\"}\",CHAR(160),EQ$1))-FIND(CHAR(160),SUBSTITUTE($J143,\"{\",CHAR(160),EQ$1))+1),\"\")","v":""},{"$f":"IFERROR(MID($J143,FIND(CHAR(160),SUBSTITUTE($J143,\"{\",CHAR(160),ER$1)),FIND(CHAR(160),SUBSTITUTE($J143,\"}\",CHAR(160),ER$1))-FIND(CHAR(160),SUBSTITUTE($J143,\"{\",CHAR(160),ER$1))+1),\"\")","v":""},{"$f":"IFERROR(MID($J143,FIND(CHAR(160),SUBSTITUTE($J143,\"{\",CHAR(160),ES$1)),FIND(CHAR(160),SUBSTITUTE($J143,\"}\",CHAR(160),ES$1))-FIND(CHAR(160),SUBSTITUTE($J143,\"{\",CHAR(160),ES$1))+1),\"\")","v":""},{"$f":"IFERROR(MID($J143,FIND(CHAR(160),SUBSTITUTE($J143,\"{\",CHAR(160),ET$1)),FIND(CHAR(160),SUBSTITUTE($J143,\"}\",CHAR(160),ET$1))-FIND(CHAR(160),SUBSTITUTE($J143,\"{\",CHAR(160),ET$1))+1),\"\")","v":""},{"$f":"IFERROR(MID($J143,FIND(CHAR(160),SUBSTITUTE($J143,\"{\",CHAR(160),EU$1)),FIND(CHAR(160),SUBSTITUTE($J143,\"}\",CHAR(160),EU$1))-FIND(CHAR(160),SUBSTITUTE($J143,\"{\",CHAR(160),EU$1))+1),\"\")","v":""},{"$f":"IFERROR(MID($J143,FIND(CHAR(160),SUBSTITUTE($J143,\"{\",CHAR(160),EV$1)),FIND(CHAR(160),SUBSTITUTE($J143,\"}\",CHAR(160),EV$1))-FIND(CHAR(160),SUBSTITUTE($J143,\"{\",CHAR(160),EV$1))+1),\"\")","v":""},{"$f":"IFERROR(MID($J143,FIND(CHAR(160),SUBSTITUTE($J143,\"{\",CHAR(160),EW$1)),FIND(CHAR(160),SUBSTITUTE($J143,\"}\",CHAR(160),EW$1))-FIND(CHAR(160),SUBSTITUTE($J143,\"{\",CHAR(160),EW$1))+1),\"\")","v":""},{"$f":"IFERROR(MID($J143,FIND(CHAR(160),SUBSTITUTE($J143,\"{\",CHAR(160),EX$1)),FIND(CHAR(160),SUBSTITUTE($J143,\"}\",CHAR(160),EX$1))-FIND(CHAR(160),SUBSTITUTE($J143,\"{\",CHAR(160),EX$1))+1),\"\")","v":""},{"$f":"IFERROR(MID($J143,FIND(CHAR(160),SUBSTITUTE($J143,\"{\",CHAR(160),EY$1)),FIND(CHAR(160),SUBSTITUTE($J143,\"}\",CHAR(160),EY$1))-FIND(CHAR(160),SUBSTITUTE($J143,\"{\",CHAR(160),EY$1))+1),\"\")","v":""},{"$f":"IFERROR(MID($J143,FIND(CHAR(160),SUBSTITUTE($J143,\"{\",CHAR(160),EZ$1)),FIND(CHAR(160),SUBSTITUTE($J143,\"}\",CHAR(160),EZ$1))-FIND(CHAR(160),SUBSTITUTE($J143,\"{\",CHAR(160),EZ$1))+1),\"\")","v":""},{"$f":"IFERROR(MID($J143,FIND(CHAR(160),SUBSTITUTE($J143,\"{\",CHAR(160),FA$1)),FIND(CHAR(160),SUBSTITUTE($J143,\"}\",CHAR(160),FA$1))-FIND(CHAR(160),SUBSTITUTE($J143,\"{\",CHAR(160),FA$1))+1),\"\")","v":""},{"$f":"IFERROR(MID($J143,FIND(CHAR(160),SUBSTITUTE($J143,\"{\",CHAR(160),FB$1)),FIND(CHAR(160),SUBSTITUTE($J143,\"}\",CHAR(160),FB$1))-FIND(CHAR(160),SUBSTITUTE($J143,\"{\",CHAR(160),FB$1))+1),\"\")","v":""},{"$f":"IFERROR(MID($O143,FIND(CHAR(160),SUBSTITUTE($O143,\"{\",CHAR(160),FC$1)),FIND(CHAR(160),SUBSTITUTE($O143,\"}\",CHAR(160),FC$1))-FIND(CHAR(160),SUBSTITUTE($O143,\"{\",CHAR(160),FC$1))+1),\"\")","v":"{Weekly Hrs of Operation}"},{"$f":"IFERROR(MID($O143,FIND(CHAR(160),SUBSTITUTE($O143,\"{\",CHAR(160),FD$1)),FIND(CHAR(160),SUBSTITUTE($O143,\"}\",CHAR(160),FD$1))-FIND(CHAR(160),SUBSTITUTE($O143,\"{\",CHAR(160),FD$1))+1),\"\")","v":"{Weeks Per Year}"},{"$f":"IFERROR(MID($O143,FIND(CHAR(160),SUBSTITUTE($O143,\"{\",CHAR(160),FE$1)),FIND(CHAR(160),SUBSTITUTE($O143,\"}\",CHAR(160),FE$1))-FIND(CHAR(160),SUBSTITUTE($O143,\"{\",CHAR(160),FE$1))+1),\"\")","v":""},{"$f":"IFERROR(MID($O143,FIND(CHAR(160),SUBSTITUTE($O143,\"{\",CHAR(160),FF$1)),FIND(CHAR(160),SUBSTITUTE($O143,\"}\",CHAR(160),FF$1))-FIND(CHAR(160),SUBSTITUTE($O143,\"{\",CHAR(160),FF$1))+1),\"\")","v":""},{"$f":"IFERROR(MID($O143,FIND(CHAR(160),SUBSTITUTE($O143,\"{\",CHAR(160),FG$1)),FIND(CHAR(160),SUBSTITUTE($O143,\"}\",CHAR(160),FG$1))-FIND(CHAR(160),SUBSTITUTE($O143,\"{\",CHAR(160),FG$1))+1),\"\")","v":""},{"$f":"IFERROR(MID($O143,FIND(CHAR(160),SUBSTITUTE($O143,\"{\",CHAR(160),FH$1)),FIND(CHAR(160),SUBSTITUTE($O143,\"}\",CHAR(160),FH$1))-FIND(CHAR(160),SUBSTITUTE($O143,\"{\",CHAR(160),FH$1))+1),\"\")","v":""},{"$f":"IFERROR(MID($O143,FIND(CHAR(160),SUBSTITUTE($O143,\"{\",CHAR(160),FI$1)),FIND(CHAR(160),SUBSTITUTE($O143,\"}\",CHAR(160),FI$1))-FIND(CHAR(160),SUBSTITUTE($O143,\"{\",CHAR(160),FI$1))+1),\"\")","v":""},{"$f":"IFERROR(MID($O143,FIND(CHAR(160),SUBSTITUTE($O143,\"{\",CHAR(160),FJ$1)),FIND(CHAR(160),SUBSTITUTE($O143,\"}\",CHAR(160),FJ$1))-FIND(CHAR(160),SUBSTITUTE($O143,\"{\",CHAR(160),FJ$1))+1),\"\")","v":""},{"$f":"IFERROR(MID($O143,FIND(CHAR(160),SUBSTITUTE($O143,\"{\",CHAR(160),FK$1)),FIND(CHAR(160),SUBSTITUTE($O143,\"}\",CHAR(160),FK$1))-FIND(CHAR(160),SUBSTITUTE($O143,\"{\",CHAR(160),FK$1))+1),\"\")","v":"{Measure:Quantity}"},{"$f":"IFERROR(MID($O143,FIND(CHAR(160),SUBSTITUTE($O143,\"{\",CHAR(160),FL$1)),FIND(CHAR(160),SUBSTITUTE($O143,\"}\",CHAR(160),FL$1))-FIND(CHAR(160),SUBSTITUTE($O143,\"{\",CHAR(160),FL$1))+1),\"\")","v":"{kW per nozzle}"},{"$f":"IFERROR(MID($R143,FIND(CHAR(160),SUBSTITUTE($R143,\"{\",CHAR(160),FM$1)),FIND(CHAR(160),SUBSTITUTE($R143,\"}\",CHAR(160),FM$1))-FIND(CHAR(160),SUBSTITUTE($R143,\"{\",CHAR(160),FM$1))+1),\"\")","v":""},{"$f":"IFERROR(MID($R143,FIND(CHAR(160),SUBSTITUTE($R143,\"{\",CHAR(160),FN$1)),FIND(CHAR(160),SUBSTITUTE($R143,\"}\",CHAR(160),FN$1))-FIND(CHAR(160),SUBSTITUTE($R143,\"{\",CHAR(160),FN$1))+1),\"\")","v":""},{"$f":"IFERROR(MID($R143,FIND(CHAR(160),SUBSTITUTE($R143,\"{\",CHAR(160),FO$1)),FIND(CHAR(160),SUBSTITUTE($R143,\"}\",CHAR(160),FO$1))-FIND(CHAR(160),SUBSTITUTE($R143,\"{\",CHAR(160),FO$1))+1),\"\")","v":""},{"$f":"IFERROR(MID($R143,FIND(CHAR(160),SUBSTITUTE($R143,\"{\",CHAR(160),FP$1)),FIND(CHAR(160),SUBSTITUTE($R143,\"}\",CHAR(160),FP$1))-FIND(CHAR(160),SUBSTITUTE($R143,\"{\",CHAR(160),FP$1))+1),\"\")","v":""},{"$f":"IFERROR(MID($R143,FIND(CHAR(160),SUBSTITUTE($R143,\"{\",CHAR(160),FQ$1)),FIND(CHAR(160),SUBSTITUTE($R143,\"}\",CHAR(160),FQ$1))-FIND(CHAR(160),SUBSTITUTE($R143,\"{\",CHAR(160),FQ$1))+1),\"\")","v":""},{"$f":"IFERROR(MID($R143,FIND(CHAR(160),SUBSTITUTE($R143,\"{\",CHAR(160),FR$1)),FIND(CHAR(160),SUBSTITUTE($R143,\"}\",CHAR(160),FR$1))-FIND(CHAR(160),SUBSTITUTE($R143,\"{\",CHAR(160),FR$1))+1),\"\")","v":""},{"$f":"IFERROR(MID($R143,FIND(CHAR(160),SUBSTITUTE($R143,\"{\",CHAR(160),FS$1)),FIND(CHAR(160),SUBSTITUTE($R143,\"}\",CHAR(160),FS$1))-FIND(CHAR(160),SUBSTITUTE($R143,\"{\",CHAR(160),FS$1))+1),\"\")","v":""},{"$f":"IFERROR(MID($R143,FIND(CHAR(160),SUBSTITUTE($R143,\"{\",CHAR(160),FT$1)),FIND(CHAR(160),SUBSTITUTE($R143,\"}\",CHAR(160),FT$1))-FIND(CHAR(160),SUBSTITUTE($R143,\"{\",CHAR(160),FT$1))+1),\"\")","v":""},{"$f":"IFERROR(MID($R143,FIND(CHAR(160),SUBSTITUTE($R143,\"{\",CHAR(160),FU$1)),FIND(CHAR(160),SUBSTITUTE($R143,\"}\",CHAR(160),FU$1))-FIND(CHAR(160),SUBSTITUTE($R143,\"{\",CHAR(160),FU$1))+1),\"\")","v":"{Measure:Quantity}"},{"$f":"IFERROR(MID($R143,FIND(CHAR(160),SUBSTITUTE($R143,\"{\",CHAR(160),FV$1)),FIND(CHAR(160),SUBSTITUTE($R143,\"}\",CHAR(160),FV$1))-FIND(CHAR(160),SUBSTITUTE($R143,\"{\",CHAR(160),FV$1))+1),\"\")","v":"{kW per nozzle}"},{"$f":"IFERROR(MID($U143,FIND(CHAR(160),SUBSTITUTE($U143,\"{\",CHAR(160),FW$1)),FIND(CHAR(160),SUBSTITUTE($U143,\"}\",CHAR(160),FW$1))-FIND(CHAR(160),SUBSTITUTE($U143,\"{\",CHAR(160),FW$1))+1),\"\")","v":"{Factor:WinterCF}"},{"$f":"IFERROR(MID($U143,FIND(CHAR(160),SUBSTITUTE($U143,\"{\",CHAR(160),FX$1)),FIND(CHAR(160),SUBSTITUTE($U143,\"}\",CHAR(160),FX$1))-FIND(CHAR(160),SUBSTITUTE($U143,\"{\",CHAR(160),FX$1))+1),\"\")","v":""},{"$f":"IFERROR(MID($U143,FIND(CHAR(160),SUBSTITUTE($U143,\"{\",CHAR(160),FY$1)),FIND(CHAR(160),SUBSTITUTE($U143,\"}\",CHAR(160),FY$1))-FIND(CHAR(160),SUBSTITUTE($U143,\"{\",CHAR(160),FY$1))+1),\"\")","v":""},{"$f":"IFERROR(MID($U143,FIND(CHAR(160),SUBSTITUTE($U143,\"{\",CHAR(160),FZ$1)),FIND(CHAR(160),SUBSTITUTE($U143,\"}\",CHAR(160),FZ$1))-FIND(CHAR(160),SUBSTITUTE($U143,\"{\",CHAR(160),FZ$1))+1),\"\")","v":""},{"$f":"IFERROR(MID($U143,FIND(CHAR(160),SUBSTITUTE($U143,\"{\",CHAR(160),GA$1)),FIND(CHAR(160),SUBSTITUTE($U143,\"}\",CHAR(160),GA$1))-FIND(CHAR(160),SUBSTITUTE($U143,\"{\",CHAR(160),GA$1))+1),\"\")","v":""},{"$f":"IFERROR(MID($U143,FIND(CHAR(160),SUBSTITUTE($U143,\"{\",CHAR(160),GB$1)),FIND(CHAR(160),SUBSTITUTE($U143,\"}\",CHAR(160),GB$1))-FIND(CHAR(160),SUBSTITUTE($U143,\"{\",CHAR(160),GB$1))+1),\"\")","v":""},{"$f":"IFERROR(MID($U143,FIND(CHAR(160),SUBSTITUTE($U143,\"{\",CHAR(160),GC$1)),FIND(CHAR(160),SUBSTITUTE($U143,\"}\",CHAR(160),GC$1))-FIND(CHAR(160),SUBSTITUTE($U143,\"{\",CHAR(160),GC$1))+1),\"\")","v":""},{"$f":"IFERROR(MID($U143,FIND(CHAR(160),SUBSTITUTE($U143,\"{\",CHAR(160),GD$1)),FIND(CHAR(160),SUBSTITUTE($U143,\"}\",CHAR(160),GD$1))-FIND(CHAR(160),SUBSTITUTE($U143,\"{\",CHAR(160),GD$1))+1),\"\")","v":""},{"$f":"IFERROR(MID($U143,FIND(CHAR(160),SUBSTITUTE($U143,\"{\",CHAR(160),GE$1)),FIND(CHAR(160),SUBSTITUTE($U143,\"}\",CHAR(160),GE$1))-FIND(CHAR(160),SUBSTITUTE($U143,\"{\",CHAR(160),GE$1))+1),\"\")","v":"{Measure:Quantity}"},{"$f":"IFERROR(MID($U143,FIND(CHAR(160),SUBSTITUTE($U143,\"{\",CHAR(160),GF$1)),FIND(CHAR(160),SUBSTITUTE($U143,\"}\",CHAR(160),GF$1))-FIND(CHAR(160),SUBSTITUTE($U143,\"{\",CHAR(160),GF$1))+1),\"\")","v":"{kW per nozzle}"},{"$f":"IFERROR(MID($V143,FIND(CHAR(160),SUBSTITUTE($V143,\"{\",CHAR(160),GG$1)),FIND(CHAR(160),SUBSTITUTE($V143,\"}\",CHAR(160),GG$1))-FIND(CHAR(160),SUBSTITUTE($V143,\"{\",CHAR(160),GG$1))+1),\"\")","v":"{Factor:SummerCF}"},{"$f":"IFERROR(MID($V143,FIND(CHAR(160),SUBSTITUTE($V143,\"{\",CHAR(160),GH$1)),FIND(CHAR(160),SUBSTITUTE($V143,\"}\",CHAR(160),GH$1))-FIND(CHAR(160),SUBSTITUTE($V143,\"{\",CHAR(160),GH$1))+1),\"\")","v":""},{"$f":"IFERROR(MID($V143,FIND(CHAR(160),SUBSTITUTE($V143,\"{\",CHAR(160),GI$1)),FIND(CHAR(160),SUBSTITUTE($V143,\"}\",CHAR(160),GI$1))-FIND(CHAR(160),SUBSTITUTE($V143,\"{\",CHAR(160),GI$1))+1),\"\")","v":""},{"$f":"IFERROR(MID($V143,FIND(CHAR(160),SUBSTITUTE($V143,\"{\",CHAR(160),GJ$1)),FIND(CHAR(160),SUBSTITUTE($V143,\"}\",CHAR(160),GJ$1))-FIND(CHAR(160),SUBSTITUTE($V143,\"{\",CHAR(160),GJ$1))+1),\"\")","v":""},{"$f":"IFERROR(MID($V143,FIND(CHAR(160),SUBSTITUTE($V143,\"{\",CHAR(160),GK$1)),FIND(CHAR(160),SUBSTITUTE($V143,\"}\",CHAR(160),GK$1))-FIND(CHAR(160),SUBSTITUTE($V143,\"{\",CHAR(160),GK$1))+1),\"\")","v":""},{"$f":"IFERROR(MID($V143,FIND(CHAR(160),SUBSTITUTE($V143,\"{\",CHAR(160),GL$1)),FIND(CHAR(160),SUBSTITUTE($V143,\"}\",CHAR(160),GL$1))-FIND(CHAR(160),SUBSTITUTE($V143,\"{\",CHAR(160),GL$1))+1),\"\")","v":""},{"$f":"IFERROR(MID($V143,FIND(CHAR(160),SUBSTITUTE($V143,\"{\",CHAR(160),GM$1)),FIND(CHAR(160),SUBSTITUTE($V143,\"}\",CHAR(160),GM$1))-FIND(CHAR(160),SUBSTITUTE($V143,\"{\",CHAR(160),GM$1))+1),\"\")","v":""},{"$f":"IFERROR(MID($V143,FIND(CHAR(160),SUBSTITUTE($V143,\"{\",CHAR(160),GN$1)),FIND(CHAR(160),SUBSTITUTE($V143,\"}\",CHAR(160),GN$1))-FIND(CHAR(160),SUBSTITUTE($V143,\"{\",CHAR(160),GN$1))+1),\"\")","v":""},{"$f":"IFERROR(MID($V143,FIND(CHAR(160),SUBSTITUTE($V143,\"{\",CHAR(160),GO$1)),FIND(CHAR(160),SUBSTITUTE($V143,\"}\",CHAR(160),GO$1))-FIND(CHAR(160),SUBSTITUTE($V143,\"{\",CHAR(160),GO$1))+1),\"\")","v":"{Measure:Quantity}"},{"$f":"IFERROR(MID($V143,FIND(CHAR(160),SUBSTITUTE($V143,\"{\",CHAR(160),GP$1)),FIND(CHAR(160),SUBSTITUTE($V143,\"}\",CHAR(160),GP$1))-FIND(CHAR(160),SUBSTITUTE($V143,\"{\",CHAR(160),GP$1))+1),\"\")","v":"{kW per nozzle}"},{"$f":"IFERROR(MID($W143,FIND(CHAR(160),SUBSTITUTE($W143,\"{\",CHAR(160),GQ$1)),FIND(CHAR(160),SUBSTITUTE($W143,\"}\",CHAR(160),GQ$1))-FIND(CHAR(160),SUBSTITUTE($W143,\"{\",CHAR(160),GQ$1))+1),\"\")","v":""},{"$f":"IFERROR(MID($W143,FIND(CHAR(160),SUBSTITUTE($W143,\"{\",CHAR(160),GR$1)),FIND(CHAR(160),SUBSTITUTE($W143,\"}\",CHAR(160),GR$1))-FIND(CHAR(160),SUBSTITUTE($W143,\"{\",CHAR(160),GR$1))+1),\"\")","v":""},{"$f":"IFERROR(MID($W143,FIND(CHAR(160),SUBSTITUTE($W143,\"{\",CHAR(160),GS$1)),FIND(CHAR(160),SUBSTITUTE($W143,\"}\",CHAR(160),GS$1))-FIND(CHAR(160),SUBSTITUTE($W143,\"{\",CHAR(160),GS$1))+1),\"\")","v":""},{"$f":"IFERROR(MID($W143,FIND(CHAR(160),SUBSTITUTE($W143,\"{\",CHAR(160),GT$1)),FIND(CHAR(160),SUBSTITUTE($W143,\"}\",CHAR(160),GT$1))-FIND(CHAR(160),SUBSTITUTE($W143,\"{\",CHAR(160),GT$1))+1),\"\")","v":""},{"$f":"IFERROR(MID($W143,FIND(CHAR(160),SUBSTITUTE($W143,\"{\",CHAR(160),GU$1)),FIND(CHAR(160),SUBSTITUTE($W143,\"}\",CHAR(160),GU$1))-FIND(CHAR(160),SUBSTITUTE($W143,\"{\",CHAR(160),GU$1))+1),\"\")","v":""},{"$f":"IFERROR(MID($W143,FIND(CHAR(160),SUBSTITUTE($W143,\"{\",CHAR(160),GV$1)),FIND(CHAR(160),SUBSTITUTE($W143,\"}\",CHAR(160),GV$1))-FIND(CHAR(160),SUBSTITUTE($W143,\"{\",CHAR(160),GV$1))+1),\"\")","v":""},{"$f":"IFERROR(MID($W143,FIND(CHAR(160),SUBSTITUTE($W143,\"{\",CHAR(160),GW$1)),FIND(CHAR(160),SUBSTITUTE($W143,\"}\",CHAR(160),GW$1))-FIND(CHAR(160),SUBSTITUTE($W143,\"{\",CHAR(160),GW$1))+1),\"\")","v":""},{"$f":"IFERROR(MID($W143,FIND(CHAR(160),SUBSTITUTE($W143,\"{\",CHAR(160),GX$1)),FIND(CHAR(160),SUBSTITUTE($W143,\"}\",CHAR(160),GX$1))-FIND(CHAR(160),SUBSTITUTE($W143,\"{\",CHAR(160),GX$1))+1),\"\")","v":""},{"$f":"IFERROR(MID($W143,FIND(CHAR(160),SUBSTITUTE($W143,\"{\",CHAR(160),GY$1)),FIND(CHAR(160),SUBSTITUTE($W143,\"}\",CHAR(160),GY$1))-FIND(CHAR(160),SUBSTITUTE($W143,\"{\",CHAR(160),GY$1))+1),\"\")","v":""},{"$f":"IFERROR(MID($W143,FIND(CHAR(160),SUBSTITUTE($W143,\"{\",CHAR(160),GZ$1)),FIND(CHAR(160),SUBSTITUTE($W143,\"}\",CHAR(160),GZ$1))-FIND(CHAR(160),SUBSTITUTE($W143,\"{\",CHAR(160),GZ$1))+1),\"\")","v":""},{"$f":"IFERROR(MID($X143,FIND(CHAR(160),SUBSTITUTE($X143,\"{\",CHAR(160),HA$1)),FIND(CHAR(160),SUBSTITUTE($X143,\"}\",CHAR(160),HA$1))-FIND(CHAR(160),SUBSTITUTE($X143,\"{\",CHAR(160),HA$1))+1),\"\")","v":""},{"$f":"IFERROR(MID($X143,FIND(CHAR(160),SUBSTITUTE($X143,\"{\",CHAR(160),HB$1)),FIND(CHAR(160),SUBSTITUTE($X143,\"}\",CHAR(160),HB$1))-FIND(CHAR(160),SUBSTITUTE($X143,\"{\",CHAR(160),HB$1))+1),\"\")","v":""},{"$f":"IFERROR(MID($X143,FIND(CHAR(160),SUBSTITUTE($X143,\"{\",CHAR(160),HC$1)),FIND(CHAR(160),SUBSTITUTE($X143,\"}\",CHAR(160),HC$1))-FIND(CHAR(160),SUBSTITUTE($X143,\"{\",CHAR(160),HC$1))+1),\"\")","v":""},{"$f":"IFERROR(MID($X143,FIND(CHAR(160),SUBSTITUTE($X143,\"{\",CHAR(160),HD$1)),FIND(CHAR(160),SUBSTITUTE($X143,\"}\",CHAR(160),HD$1))-FIND(CHAR(160),SUBSTITUTE($X143,\"{\",CHAR(160),HD$1))+1),\"\")","v":""},{"$f":"IFERROR(MID($X143,FIND(CHAR(160),SUBSTITUTE($X143,\"{\",CHAR(160),HE$1)),FIND(CHAR(160),SUBSTITUTE($X143,\"}\",CHAR(160),HE$1))-FIND(CHAR(160),SUBSTITUTE($X143,\"{\",CHAR(160),HE$1))+1),\"\")","v":""},{"$f":"IFERROR(MID($X143,FIND(CHAR(160),SUBSTITUTE($X143,\"{\",CHAR(160),HF$1)),FIND(CHAR(160),SUBSTITUTE($X143,\"}\",CHAR(160),HF$1))-FIND(CHAR(160),SUBSTITUTE($X143,\"{\",CHAR(160),HF$1))+1),\"\")","v":""},{"$f":"IFERROR(MID($X143,FIND(CHAR(160),SUBSTITUTE($X143,\"{\",CHAR(160),HG$1)),FIND(CHAR(160),SUBSTITUTE($X143,\"}\",CHAR(160),HG$1))-FIND(CHAR(160),SUBSTITUTE($X143,\"{\",CHAR(160),HG$1))+1),\"\")","v":""},{"$f":"IFERROR(MID($X143,FIND(CHAR(160),SUBSTITUTE($X143,\"{\",CHAR(160),HH$1)),FIND(CHAR(160),SUBSTITUTE($X143,\"}\",CHAR(160),HH$1))-FIND(CHAR(160),SUBSTITUTE($X143,\"{\",CHAR(160),HH$1))+1),\"\")","v":""},{"$f":"IFERROR(MID($X143,FIND(CHAR(160),SUBSTITUTE($X143,\"{\",CHAR(160),HI$1)),FIND(CHAR(160),SUBSTITUTE($X143,\"}\",CHAR(160),HI$1))-FIND(CHAR(160),SUBSTITUTE($X143,\"{\",CHAR(160),HI$1))+1),\"\")","v":""},{"$f":"IFERROR(MID($X143,FIND(CHAR(160),SUBSTITUTE($X143,\"{\",CHAR(160),HJ$1)),FIND(CHAR(160),SUBSTITUTE($X143,\"}\",CHAR(160),HJ$1))-FIND(CHAR(160),SUBSTITUTE($X143,\"{\",CHAR(160),HJ$1))+1),\"\")","v":""},{"$f":"IFERROR(MID($Y143,FIND(CHAR(160),SUBSTITUTE($Y143,\"{\",CHAR(160),HK$1)),FIND(CHAR(160),SUBSTITUTE($Y143,\"}\",CHAR(160),HK$1))-FIND(CHAR(160),SUBSTITUTE($Y143,\"{\",CHAR(160),HK$1))+1),\"\")","v":""},{"$f":"IFERROR(MID($Y143,FIND(CHAR(160),SUBSTITUTE($Y143,\"{\",CHAR(160),HL$1)),FIND(CHAR(160),SUBSTITUTE($Y143,\"}\",CHAR(160),HL$1))-FIND(CHAR(160),SUBSTITUTE($Y143,\"{\",CHAR(160),HL$1))+1),\"\")","v":""},{"$f":"IFERROR(MID($Y143,FIND(CHAR(160),SUBSTITUTE($Y143,\"{\",CHAR(160),HM$1)),FIND(CHAR(160),SUBSTITUTE($Y143,\"}\",CHAR(160),HM$1))-FIND(CHAR(160),SUBSTITUTE($Y143,\"{\",CHAR(160),HM$1))+1),\"\")","v":""},{"$f":"IFERROR(MID($Y143,FIND(CHAR(160),SUBSTITUTE($Y143,\"{\",CHAR(160),HN$1)),FIND(CHAR(160),SUBSTITUTE($Y143,\"}\",CHAR(160),HN$1))-FIND(CHAR(160),SUBSTITUTE($Y143,\"{\",CHAR(160),HN$1))+1),\"\")","v":""},{"$f":"IFERROR(MID($Y143,FIND(CHAR(160),SUBSTITUTE($Y143,\"{\",CHAR(160),HO$1)),FIND(CHAR(160),SUBSTITUTE($Y143,\"}\",CHAR(160),HO$1))-FIND(CHAR(160),SUBSTITUTE($Y143,\"{\",CHAR(160),HO$1))+1),\"\")","v":""},{"$f":"IFERROR(MID($Y143,FIND(CHAR(160),SUBSTITUTE($Y143,\"{\",CHAR(160),HP$1)),FIND(CHAR(160),SUBSTITUTE($Y143,\"}\",CHAR(160),HP$1))-FIND(CHAR(160),SUBSTITUTE($Y143,\"{\",CHAR(160),HP$1))+1),\"\")","v":""},{"$f":"IFERROR(MID($Y143,FIND(CHAR(160),SUBSTITUTE($Y143,\"{\",CHAR(160),HQ$1)),FIND(CHAR(160),SUBSTITUTE($Y143,\"}\",CHAR(160),HQ$1))-FIND(CHAR(160),SUBSTITUTE($Y143,\"{\",CHAR(160),HQ$1))+1),\"\")","v":""},{"$f":"IFERROR(MID($Y143,FIND(CHAR(160),SUBSTITUTE($Y143,\"{\",CHAR(160),HR$1)),FIND(CHAR(160),SUBSTITUTE($Y143,\"}\",CHAR(160),HR$1))-FIND(CHAR(160),SUBSTITUTE($Y143,\"{\",CHAR(160),HR$1))+1),\"\")","v":""},{"$f":"IFERROR(MID($Y143,FIND(CHAR(160),SUBSTITUTE($Y143,\"{\",CHAR(160),HS$1)),FIND(CHAR(160),SUBSTITUTE($Y143,\"}\",CHAR(160),HS$1))-FIND(CHAR(160),SUBSTITUTE($Y143,\"{\",CHAR(160),HS$1))+1),\"\")","v":""},{"$f":"IFERROR(MID($Y143,FIND(CHAR(160),SUBSTITUTE($Y143,\"{\",CHAR(160),HT$1)),FIND(CHAR(160),SUBSTITUTE($Y143,\"}\",CHAR(160),HT$1))-FIND(CHAR(160),SUBSTITUTE($Y143,\"{\",CHAR(160),HT$1))+1),\"\")","v":""},{"$f":"IFERROR(MID($Z143,FIND(CHAR(160),SUBSTITUTE($Z143,\"{\",CHAR(160),HU$1)),FIND(CHAR(160),SUBSTITUTE($Z143,\"}\",CHAR(160),HU$1))-FIND(CHAR(160),SUBSTITUTE($Z143,\"{\",CHAR(160),HU$1))+1),\"\")","v":""},{"$f":"IFERROR(MID($Z143,FIND(CHAR(160),SUBSTITUTE($Z143,\"{\",CHAR(160),HV$1)),FIND(CHAR(160),SUBSTITUTE($Z143,\"}\",CHAR(160),HV$1))-FIND(CHAR(160),SUBSTITUTE($Z143,\"{\",CHAR(160),HV$1))+1),\"\")","v":""},{"$f":"IFERROR(MID($Z143,FIND(CHAR(160),SUBSTITUTE($Z143,\"{\",CHAR(160),HW$1)),FIND(CHAR(160),SUBSTITUTE($Z143,\"}\",CHAR(160),HW$1))-FIND(CHAR(160),SUBSTITUTE($Z143,\"{\",CHAR(160),HW$1))+1),\"\")","v":""},{"$f":"IFERROR(MID($Z143,FIND(CHAR(160),SUBSTITUTE($Z143,\"{\",CHAR(160),HX$1)),FIND(CHAR(160),SUBSTITUTE($Z143,\"}\",CHAR(160),HX$1))-FIND(CHAR(160),SUBSTITUTE($Z143,\"{\",CHAR(160),HX$1))+1),\"\")","v":""},{"$f":"IFERROR(MID($Z143,FIND(CHAR(160),SUBSTITUTE($Z143,\"{\",CHAR(160),HY$1)),FIND(CHAR(160),SUBSTITUTE($Z143,\"}\",CHAR(160),HY$1))-FIND(CHAR(160),SUBSTITUTE($Z143,\"{\",CHAR(160),HY$1))+1),\"\")","v":""},{"$f":"IFERROR(MID($Z143,FIND(CHAR(160),SUBSTITUTE($Z143,\"{\",CHAR(160),HZ$1)),FIND(CHAR(160),SUBSTITUTE($Z143,\"}\",CHAR(160),HZ$1))-FIND(CHAR(160),SUBSTITUTE($Z143,\"{\",CHAR(160),HZ$1))+1),\"\")","v":""},{"$f":"IFERROR(MID($Z143,FIND(CHAR(160),SUBSTITUTE($Z143,\"{\",CHAR(160),IA$1)),FIND(CHAR(160),SUBSTITUTE($Z143,\"}\",CHAR(160),IA$1))-FIND(CHAR(160),SUBSTITUTE($Z143,\"{\",CHAR(160),IA$1))+1),\"\")","v":""},{"$f":"IFERROR(MID($Z143,FIND(CHAR(160),SUBSTITUTE($Z143,\"{\",CHAR(160),IB$1)),FIND(CHAR(160),SUBSTITUTE($Z143,\"}\",CHAR(160),IB$1))-FIND(CHAR(160),SUBSTITUTE($Z143,\"{\",CHAR(160),IB$1))+1),\"\")","v":""},{"$f":"IFERROR(MID($Z143,FIND(CHAR(160),SUBSTITUTE($Z143,\"{\",CHAR(160),IC$1)),FIND(CHAR(160),SUBSTITUTE($Z143,\"}\",CHAR(160),IC$1))-FIND(CHAR(160),SUBSTITUTE($Z143,\"{\",CHAR(160),IC$1))+1),\"\")","v":""},{"$f":"IFERROR(MID($Z143,FIND(CHAR(160),SUBSTITUTE($Z143,\"{\",CHAR(160),ID$1)),FIND(CHAR(160),SUBSTITUTE($Z143,\"}\",CHAR(160),ID$1))-FIND(CHAR(160),SUBSTITUTE($Z143,\"{\",CHAR(160),ID$1))+1),\"\")","v":""},{"$f":"IFERROR(MID($AA143,FIND(CHAR(160),SUBSTITUTE($AA143,\"{\",CHAR(160),IE$1)),FIND(CHAR(160),SUBSTITUTE($AA143,\"}\",CHAR(160),IE$1))-FIND(CHAR(160),SUBSTITUTE($AA143,\"{\",CHAR(160),IE$1))+1),\"\")","v":""},{"$f":"IFERROR(MID($AA143,FIND(CHAR(160),SUBSTITUTE($AA143,\"{\",CHAR(160),IF$1)),FIND(CHAR(160),SUBSTITUTE($AA143,\"}\",CHAR(160),IF$1))-FIND(CHAR(160),SUBSTITUTE($AA143,\"{\",CHAR(160),IF$1))+1),\"\")","v":""},{"$f":"IFERROR(MID($AA143,FIND(CHAR(160),SUBSTITUTE($AA143,\"{\",CHAR(160),IG$1)),FIND(CHAR(160),SUBSTITUTE($AA143,\"}\",CHAR(160),IG$1))-FIND(CHAR(160),SUBSTITUTE($AA143,\"{\",CHAR(160),IG$1))+1),\"\")","v":""},{"$f":"IFERROR(MID($AA143,FIND(CHAR(160),SUBSTITUTE($AA143,\"{\",CHAR(160),IH$1)),FIND(CHAR(160),SUBSTITUTE($AA143,\"}\",CHAR(160),IH$1))-FIND(CHAR(160),SUBSTITUTE($AA143,\"{\",CHAR(160),IH$1))+1),\"\")","v":""},{"$f":"IFERROR(MID($AA143,FIND(CHAR(160),SUBSTITUTE($AA143,\"{\",CHAR(160),II$1)),FIND(CHAR(160),SUBSTITUTE($AA143,\"}\",CHAR(160),II$1))-FIND(CHAR(160),SUBSTITUTE($AA143,\"{\",CHAR(160),II$1))+1),\"\")","v":""},{"$f":"IFERROR(MID($AA143,FIND(CHAR(160),SUBSTITUTE($AA143,\"{\",CHAR(160),IJ$1)),FIND(CHAR(160),SUBSTITUTE($AA143,\"}\",CHAR(160),IJ$1))-FIND(CHAR(160),SUBSTITUTE($AA143,\"{\",CHAR(160),IJ$1))+1),\"\")","v":""},{"$f":"IFERROR(MID($AA143,FIND(CHAR(160),SUBSTITUTE($AA143,\"{\",CHAR(160),IK$1)),FIND(CHAR(160),SUBSTITUTE($AA143,\"}\",CHAR(160),IK$1))-FIND(CHAR(160),SUBSTITUTE($AA143,\"{\",CHAR(160),IK$1))+1),\"\")","v":""},{"$f":"IFERROR(MID($AA143,FIND(CHAR(160),SUBSTITUTE($AA143,\"{\",CHAR(160),IL$1)),FIND(CHAR(160),SUBSTITUTE($AA143,\"}\",CHAR(160),IL$1))-FIND(CHAR(160),SUBSTITUTE($AA143,\"{\",CHAR(160),IL$1))+1),\"\")","v":""},{"$f":"IFERROR(MID($AA143,FIND(CHAR(160),SUBSTITUTE($AA143,\"{\",CHAR(160),IM$1)),FIND(CHAR(160),SUBSTITUTE($AA143,\"}\",CHAR(160),IM$1))-FIND(CHAR(160),SUBSTITUTE($AA143,\"{\",CHAR(160),IM$1))+1),\"\")","v":""},{"$f":"IFERROR(MID($AA143,FIND(CHAR(160),SUBSTITUTE($AA143,\"{\",CHAR(160),IN$1)),FIND(CHAR(160),SUBSTITUTE($AA143,\"}\",CHAR(160),IN$1))-FIND(CHAR(160),SUBSTITUTE($AA143,\"{\",CHAR(160),IN$1))+1),\"\")","v":""},{"$f":"IFERROR(MID($AB143,FIND(CHAR(160),SUBSTITUTE($AB143,\"{\",CHAR(160),IO$1)),FIND(CHAR(160),SUBSTITUTE($AB143,\"}\",CHAR(160),IO$1))-FIND(CHAR(160),SUBSTITUTE($AB143,\"{\",CHAR(160),IO$1))+1),\"\")","v":""},{"$f":"IFERROR(MID($AB143,FIND(CHAR(160),SUBSTITUTE($AB143,\"{\",CHAR(160),IP$1)),FIND(CHAR(160),SUBSTITUTE($AB143,\"}\",CHAR(160),IP$1))-FIND(CHAR(160),SUBSTITUTE($AB143,\"{\",CHAR(160),IP$1))+1),\"\")","v":""},{"$f":"IFERROR(MID($AB143,FIND(CHAR(160),SUBSTITUTE($AB143,\"{\",CHAR(160),IQ$1)),FIND(CHAR(160),SUBSTITUTE($AB143,\"}\",CHAR(160),IQ$1))-FIND(CHAR(160),SUBSTITUTE($AB143,\"{\",CHAR(160),IQ$1))+1),\"\")","v":""},{"$f":"IFERROR(MID($AB143,FIND(CHAR(160),SUBSTITUTE($AB143,\"{\",CHAR(160),IR$1)),FIND(CHAR(160),SUBSTITUTE($AB143,\"}\",CHAR(160),IR$1))-FIND(CHAR(160),SUBSTITUTE($AB143,\"{\",CHAR(160),IR$1))+1),\"\")","v":""},{"$f":"IFERROR(MID($AB143,FIND(CHAR(160),SUBSTITUTE($AB143,\"{\",CHAR(160),IS$1)),FIND(CHAR(160),SUBSTITUTE($AB143,\"}\",CHAR(160),IS$1))-FIND(CHAR(160),SUBSTITUTE($AB143,\"{\",CHAR(160),IS$1))+1),\"\")","v":""},{"$f":"IFERROR(MID($AB143,FIND(CHAR(160),SUBSTITUTE($AB143,\"{\",CHAR(160),IT$1)),FIND(CHAR(160),SUBSTITUTE($AB143,\"}\",CHAR(160),IT$1))-FIND(CHAR(160),SUBSTITUTE($AB143,\"{\",CHAR(160),IT$1))+1),\"\")","v":""},{"$f":"IFERROR(MID($AB143,FIND(CHAR(160),SUBSTITUTE($AB143,\"{\",CHAR(160),IU$1)),FIND(CHAR(160),SUBSTITUTE($AB143,\"}\",CHAR(160),IU$1))-FIND(CHAR(160),SUBSTITUTE($AB143,\"{\",CHAR(160),IU$1))+1),\"\")","v":""},{"$f":"IFERROR(MID($AB143,FIND(CHAR(160),SUBSTITUTE($AB143,\"{\",CHAR(160),IV$1)),FIND(CHAR(160),SUBSTITUTE($AB143,\"}\",CHAR(160),IV$1))-FIND(CHAR(160),SUBSTITUTE($AB143,\"{\",CHAR(160),IV$1))+1),\"\")","v":""},{"$f":"IFERROR(MID($AB143,FIND(CHAR(160),SUBSTITUTE($AB143,\"{\",CHAR(160),IW$1)),FIND(CHAR(160),SUBSTITUTE($AB143,\"}\",CHAR(160),IW$1))-FIND(CHAR(160),SUBSTITUTE($AB143,\"{\",CHAR(160),IW$1))+1),\"\")","v":""},{"$f":"IFERROR(MID($AB143,FIND(CHAR(160),SUBSTITUTE($AB143,\"{\",CHAR(160),IX$1)),FIND(CHAR(160),SUBSTITUTE($AB143,\"}\",CHAR(160),IX$1))-FIND(CHAR(160),SUBSTITUTE($AB143,\"{\",CHAR(160),IX$1))+1),\"\")","v":""},null,{"$f":"10-COUNTIF(DU143:ED143,\"\")","v":4}]
["C&I Refrigeration Solutions","R10 Evaporator Fan Motor Control for Cooler or Freezer","R10","2021-07-01","2022-06-30","Per Measure",520,0,"Per Measure",250,0,"2020-11-01","2022-06-30","Calculated","if({Measure:Quantity} = 0, 0, {Measure:Quantity} * ({Motor Type} * {Number of Fans} - 0.035) * (1 - 0.50) * 8760* {Temperature})",1E-4,null,"if({Measure:Quantity} = 0, 0, {Measure:Quantity} *({Motor Type} * {Number of Fans} - 0.035) * (1 - 0.50) * {Temperature})",null,null,"if({Measure:Quantity} = 0, 0, {Measure:Quantity} * ({Motor Type} * {Number of Fans} - 0.035) * (1 - 0.50) * {Temperature} * {Factor:WinterCF})","if({Measure:Quantity} = 0, 0, ({Motor Type} * {Number of Fans} - 0.035) * (1 - 0.50) * {Temperature} * {Factor:SummerCF})",null,null,null,null,null,null,"2020-11-01","2022-06-30",10,0.33800000000000002,0.41199999999999998,0.29099999999999998,0.39500000000000002,0.13700000000000001,0.17699999999999999,1,1.1220000000000001,1,0.52,1.6E-2,null,{"$f":"DU144","v":"{Motor Type}"},1,{"$f":"DV144","v":"{Number of Fans}"},0.04,{"$f":"DW144","v":"{Temperature}"},6,{"$f":"DX144","v":"{Measure:Quantity}"},1.2,{"$f":"DY144","v":""},null,{"$f":"DZ144","v":""},null,{"$f":"EA144","v":""},null,{"$f":"EB144","v":""},null,{"$f":"EC144","v":""},null,{"$f":"ED144","v":""},null,{"$f":"IF(AS144 = 0, 0, AS144 * (AU144 * AW144 - 0.035) * (1 - 0.5) * 8760* AY144)","v":1077.48},{"$f":"0.0001","v":1E-4},0,{"$f":"IF(AS144 = 0, 0, AS144 *(AU144 * AW144 - 0.035) * (1 - 0.5) * AY144)","v":0.12299999999999998},0,0,{"$f":"IF(AS144 = 0, 0, AS144 * (AU144 * AW144 - 0.035) * (1 - 0.5) * AY144 * AF144)","v":4.1574E-2},{"$f":"IF(AS144 = 0, 0, (AU144 * AW144 - 0.035) * (1 - 0.5) * AY144 * AG144)","v":5.0675999999999992E-2},0,0,0,0,0,0,null,"Res","Default DR",{"$f":"Benefits(BL144,BR144,BS144,BT144,BU144,BV144,BW144,BX144,BY144,BZ144,AE144,AH144,AI144,AJ144,AK144,AL144,AM144,AN144,AO144,AP144,CA144,CB144)","v":1202.0112402204759},178.49017891398358,0,0,0,0,0,0,0,{"$f":"SUMPRODUCT(CC144:CK144,--(CC144:CK144>0))","v":1380.5014191344594},{"$f":"-SUMPRODUCT(CC144:CK144,--(CC144:CK144<0))","v":0},null,{"$f":"520","v":520},null,null,{"$f":"CM144+CO144","v":520},{"$f":"IF(NetOrGross=\"Net\",(1-AO144+AP144),1)","v":1},{"$f":"(SUMPRODUCT(CC144:CJ144,--(CC144:CJ144>0))+CN144)*CS144/((-SUMPRODUCT(CC144:CJ144,--(CC144:CJ144<0))+MAX(CO144,CV144)+CP144+CQ144)*CS144+IF(FRIncentives=\"Yes\",CV144*(1-CS144),0))","v":2.6548104214124217},1,{"$f":"250","v":250},null,"Electric","y",null,{"$f":"IF(F144=\"Manual Entry\",\"Manual\",IF(G144=\"\",0,\"X=\"&SUBSTITUTE(SUBSTITUTE(SUBSTITUTE(SUBSTITUTE(SUBSTITUTE(SUBSTITUTE(SUBSTITUTE(SUBSTITUTE(SUBSTITUTE(SUBSTITUTE(SUBSTITUTE(SUBSTITUTE(G144,$ED144,$ED$2&ROW($ED144)),$EC144,$EC$2&ROW($EC144)),$EB144,$EB$2&ROW($EB144)),$EA144,$EA$2&ROW($EA144)),$DZ144,$DZ$2&ROW($DZ144)),$DY144,$DY$2&ROW($DY144)),$DX144,$DX$2&ROW($DX144)),$DW144,$DW$2&ROW($DW144)),$DV144,$DV$2&ROW($DV144)),$DU144,$DU$2&ROW($DU144)),$DT144,$DT$2&ROW($DT144)),$DS144,$DS$2&ROW($DS144))))","v":"X=520"},{"$f":"IF(I144=\"Manual Entry\",\"Manual\",IF(J144=\"\",0,\"X=\"&SUBSTITUTE(SUBSTITUTE(SUBSTITUTE(SUBSTITUTE(SUBSTITUTE(SUBSTITUTE(SUBSTITUTE(SUBSTITUTE(SUBSTITUTE(SUBSTITUTE(SUBSTITUTE(SUBSTITUTE(J144,$ED144,$ED$2&ROW($ED144)),$EC144,$EC$2&ROW($EC144)),$EB144,$EB$2&ROW($EB144)),$EA144,$EA$2&ROW($EA144)),$DZ144,$DZ$2&ROW($DZ144)),$DY144,$DY$2&ROW($DY144)),$DX144,$DX$2&ROW($DX144)),$DW144,$DW$2&ROW($DW144)),$DV144,$DV$2&ROW($DV144)),$DU144,$DU$2&ROW($DU144)),$DT144,$DT$2&ROW($DT144)),$DS144,$DS$2&ROW($DS144))))","v":"X=250"},{"$f":"IF(O144=\"\",0,\"X=\"&SUBSTITUTE(SUBSTITUTE(SUBSTITUTE(SUBSTITUTE(SUBSTITUTE(SUBSTITUTE(SUBSTITUTE(SUBSTITUTE(SUBSTITUTE(SUBSTITUTE(SUBSTITUTE(SUBSTITUTE(O144,$ED144,$ED$2&ROW($ED144)),$EC144,$EC$2&ROW($EC144)),$EB144,$EB$2&ROW($EB144)),$EA144,$EA$2&ROW($EA144)),$DZ144,$DZ$2&ROW($DZ144)),$DY144,$DY$2&ROW($DY144)),$DX144,$DX$2&ROW($DX144)),$DW144,$DW$2&ROW($DW144)),$DV144,$DV$2&ROW($DV144)),$DU144,$DU$2&ROW($DU144)),$DT144,$DT$2&ROW($DT144)),$DS144,$DS$2&ROW($DS144)))","v":"X=if(AY144 = 0, 0, AY144 * (AS144 * AU144 - 0.035) * (1 - 0.50) * 8760* AW144)"},{"$f":"IF(P144=\"\",0,\"X=\"&SUBSTITUTE(SUBSTITUTE(SUBSTITUTE(SUBSTITUTE(SUBSTITUTE(SUBSTITUTE(SUBSTITUTE(SUBSTITUTE(SUBSTITUTE(SUBSTITUTE(SUBSTITUTE(SUBSTITUTE(P144,$ED144,$ED$2&ROW($ED144)),$EC144,$EC$2&ROW($EC144)),$EB144,$EB$2&ROW($EB144)),$EA144,$EA$2&ROW($EA144)),$DZ144,$DZ$2&ROW($DZ144)),$DY144,$DY$2&ROW($DY144)),$DX144,$DX$2&ROW($DX144)),$DW144,$DW$2&ROW($DW144)),$DV144,$DV$2&ROW($DV144)),$DU144,$DU$2&ROW($DU144)),$DT144,$DT$2&ROW($DT144)),$DS144,$DS$2&ROW($DS144)))","v":"X=0.0001"},{"$f":"IF(Q144=\"\",0,\"X=\"&SUBSTITUTE(SUBSTITUTE(SUBSTITUTE(SUBSTITUTE(SUBSTITUTE(SUBSTITUTE(SUBSTITUTE(SUBSTITUTE(SUBSTITUTE(SUBSTITUTE(SUBSTITUTE(SUBSTITUTE(Q144,$ED144,$ED$2&ROW($ED144)),$EC144,$EC$2&ROW($EC144)),$EB144,$EB$2&ROW($EB144)),$EA144,$EA$2&ROW($EA144)),$DZ144,$DZ$2&ROW($DZ144)),$DY144,$DY$2&ROW($DY144)),$DX144,$DX$2&ROW($DX144)),$DW144,$DW$2&ROW($DW144)),$DV144,$DV$2&ROW($DV144)),$DU144,$DU$2&ROW($DU144)),$DT144,$DT$2&ROW($DT144)),$DS144,$DS$2&ROW($DS144)))","v":0},{"$f":"IF(R144=\"\",0,\"X=\"&SUBSTITUTE(SUBSTITUTE(SUBSTITUTE(SUBSTITUTE(SUBSTITUTE(SUBSTITUTE(SUBSTITUTE(SUBSTITUTE(SUBSTITUTE(SUBSTITUTE(SUBSTITUTE(SUBSTITUTE(R144,$ED144,$ED$2&ROW($ED144)),$EC144,$EC$2&ROW($EC144)),$EB144,$EB$2&ROW($EB144)),$EA144,$EA$2&ROW($EA144)),$DZ144,$DZ$2&ROW($DZ144)),$DY144,$DY$2&ROW($DY144)),$DX144,$DX$2&ROW($DX144)),$DW144,$DW$2&ROW($DW144)),$DV144,$DV$2&ROW($DV144)),$DU144,$DU$2&ROW($DU144)),$DT144,$DT$2&ROW($DT144)),$DS144,$DS$2&ROW($DS144)))","v":"X=if(AY144 = 0, 0, AY144 *(AS144 * AU144 - 0.035) * (1 - 0.50) * AW144)"},{"$f":"IF(S144=\"\",0,\"X=\"&SUBSTITUTE(SUBSTITUTE(SUBSTITUTE(SUBSTITUTE(SUBSTITUTE(SUBSTITUTE(SUBSTITUTE(SUBSTITUTE(SUBSTITUTE(SUBSTITUTE(SUBSTITUTE(SUBSTITUTE(S144,$ED144,$ED$2&ROW($ED144)),$EC144,$EC$2&ROW($EC144)),$EB144,$EB$2&ROW($EB144)),$EA144,$EA$2&ROW($EA144)),$DZ144,$DZ$2&ROW($DZ144)),$DY144,$DY$2&ROW($DY144)),$DX144,$DX$2&ROW($DX144)),$DW144,$DW$2&ROW($DW144)),$DV144,$DV$2&ROW($DV144)),$DU144,$DU$2&ROW($DU144)),$DT144,$DT$2&ROW($DT144)),$DS144,$DS$2&ROW($DS144)))","v":0},{"$f":"IF(T144=\"\",0,\"X=\"&SUBSTITUTE(SUBSTITUTE(SUBSTITUTE(SUBSTITUTE(SUBSTITUTE(SUBSTITUTE(SUBSTITUTE(SUBSTITUTE(SUBSTITUTE(SUBSTITUTE(SUBSTITUTE(SUBSTITUTE(T144,$ED144,$ED$2&ROW($ED144)),$EC144,$EC$2&ROW($EC144)),$EB144,$EB$2&ROW($EB144)),$EA144,$EA$2&ROW($EA144)),$DZ144,$DZ$2&ROW($DZ144)),$DY144,$DY$2&ROW($DY144)),$DX144,$DX$2&ROW($DX144)),$DW144,$DW$2&ROW($DW144)),$DV144,$DV$2&ROW($DV144)),$DU144,$DU$2&ROW($DU144)),$DT144,$DT$2&ROW($DT144)),$DS144,$DS$2&ROW($DS144)))","v":0},{"$f":"IF(U144=\"\",0,\"X=\"&SUBSTITUTE(SUBSTITUTE(SUBSTITUTE(SUBSTITUTE(SUBSTITUTE(SUBSTITUTE(SUBSTITUTE(SUBSTITUTE(SUBSTITUTE(SUBSTITUTE(SUBSTITUTE(SUBSTITUTE(U144,$ED144,$ED$2&ROW($ED144)),$EC144,$EC$2&ROW($EC144)),$EB144,$EB$2&ROW($EB144)),$EA144,$EA$2&ROW($EA144)),$DZ144,$DZ$2&ROW($DZ144)),$DY144,$DY$2&ROW($DY144)),$DX144,$DX$2&ROW($DX144)),$DW144,$DW$2&ROW($DW144)),$DV144,$DV$2&ROW($DV144)),$DU144,$DU$2&ROW($DU144)),$DT144,$DT$2&ROW($DT144)),$DS144,$DS$2&ROW($DS144)))","v":"X=if(AY144 = 0, 0, AY144 * (AS144 * AU144 - 0.035) * (1 - 0.50) * AW144 * AF144)"},{"$f":"IF(V144=\"\",0,\"X=\"&SUBSTITUTE(SUBSTITUTE(SUBSTITUTE(SUBSTITUTE(SUBSTITUTE(SUBSTITUTE(SUBSTITUTE(SUBSTITUTE(SUBSTITUTE(SUBSTITUTE(SUBSTITUTE(SUBSTITUTE(V144,$ED144,$ED$2&ROW($ED144)),$EC144,$EC$2&ROW($EC144)),$EB144,$EB$2&ROW($EB144)),$EA144,$EA$2&ROW($EA144)),$DZ144,$DZ$2&ROW($DZ144)),$DY144,$DY$2&ROW($DY144)),$DX144,$DX$2&ROW($DX144)),$DW144,$DW$2&ROW($DW144)),$DV144,$DV$2&ROW($DV144)),$DU144,$DU$2&ROW($DU144)),$DT144,$DT$2&ROW($DT144)),$DS144,$DS$2&ROW($DS144)))","v":"X=if(AY144 = 0, 0, (AS144 * AU144 - 0.035) * (1 - 0.50) * AW144 * AG144)"},{"$f":"IF(W144=\"\",0,\"X=\"&SUBSTITUTE(SUBSTITUTE(SUBSTITUTE(SUBSTITUTE(SUBSTITUTE(SUBSTITUTE(SUBSTITUTE(SUBSTITUTE(SUBSTITUTE(SUBSTITUTE(SUBSTITUTE(SUBSTITUTE(W144,$ED144,$ED$2&ROW($ED144)),$EC144,$EC$2&ROW($EC144)),$EB144,$EB$2&ROW($EB144)),$EA144,$EA$2&ROW($EA144)),$DZ144,$DZ$2&ROW($DZ144)),$DY144,$DY$2&ROW($DY144)),$DX144,$DX$2&ROW($DX144)),$DW144,$DW$2&ROW($DW144)),$DV144,$DV$2&ROW($DV144)),$DU144,$DU$2&ROW($DU144)),$DT144,$DT$2&ROW($DT144)),$DS144,$DS$2&ROW($DS144)))","v":0},{"$f":"IF(X144=\"\",0,\"X=\"&SUBSTITUTE(SUBSTITUTE(SUBSTITUTE(SUBSTITUTE(SUBSTITUTE(SUBSTITUTE(SUBSTITUTE(SUBSTITUTE(SUBSTITUTE(SUBSTITUTE(SUBSTITUTE(SUBSTITUTE(X144,$ED144,$ED$2&ROW($ED144)),$EC144,$EC$2&ROW($EC144)),$EB144,$EB$2&ROW($EB144)),$EA144,$EA$2&ROW($EA144)),$DZ144,$DZ$2&ROW($DZ144)),$DY144,$DY$2&ROW($DY144)),$DX144,$DX$2&ROW($DX144)),$DW144,$DW$2&ROW($DW144)),$DV144,$DV$2&ROW($DV144)),$DU144,$DU$2&ROW($DU144)),$DT144,$DT$2&ROW($DT144)),$DS144,$DS$2&ROW($DS144)))","v":0},{"$f":"IF(Y144=\"\",0,\"X=\"&SUBSTITUTE(SUBSTITUTE(SUBSTITUTE(SUBSTITUTE(SUBSTITUTE(SUBSTITUTE(SUBSTITUTE(SUBSTITUTE(SUBSTITUTE(SUBSTITUTE(SUBSTITUTE(SUBSTITUTE(Y144,$ED144,$ED$2&ROW($ED144)),$EC144,$EC$2&ROW($EC144)),$EB144,$EB$2&ROW($EB144)),$EA144,$EA$2&ROW($EA144)),$DZ144,$DZ$2&ROW($DZ144)),$DY144,$DY$2&ROW($DY144)),$DX144,$DX$2&ROW($DX144)),$DW144,$DW$2&ROW($DW144)),$DV144,$DV$2&ROW($DV144)),$DU144,$DU$2&ROW($DU144)),$DT144,$DT$2&ROW($DT144)),$DS144,$DS$2&ROW($DS144)))","v":0},{"$f":"IF(Z144=\"\",0,\"X=\"&SUBSTITUTE(SUBSTITUTE(SUBSTITUTE(SUBSTITUTE(SUBSTITUTE(SUBSTITUTE(SUBSTITUTE(SUBSTITUTE(SUBSTITUTE(SUBSTITUTE(SUBSTITUTE(SUBSTITUTE(Z144,$ED144,$ED$2&ROW($ED144)),$EC144,$EC$2&ROW($EC144)),$EB144,$EB$2&ROW($EB144)),$EA144,$EA$2&ROW($EA144)),$DZ144,$DZ$2&ROW($DZ144)),$DY144,$DY$2&ROW($DY144)),$DX144,$DX$2&ROW($DX144)),$DW144,$DW$2&ROW($DW144)),$DV144,$DV$2&ROW($DV144)),$DU144,$DU$2&ROW($DU144)),$DT144,$DT$2&ROW($DT144)),$DS144,$DS$2&ROW($DS144)))","v":0},{"$f":"IF(AA144=\"\",0,\"X=\"&SUBSTITUTE(SUBSTITUTE(SUBSTITUTE(SUBSTITUTE(SUBSTITUTE(SUBSTITUTE(SUBSTITUTE(SUBSTITUTE(SUBSTITUTE(SUBSTITUTE(SUBSTITUTE(SUBSTITUTE(AA144,$ED144,$ED$2&ROW($ED144)),$EC144,$EC$2&ROW($EC144)),$EB144,$EB$2&ROW($EB144)),$EA144,$EA$2&ROW($EA144)),$DZ144,$DZ$2&ROW($DZ144)),$DY144,$DY$2&ROW($DY144)),$DX144,$DX$2&ROW($DX144)),$DW144,$DW$2&ROW($DW144)),$DV144,$DV$2&ROW($DV144)),$DU144,$DU$2&ROW($DU144)),$DT144,$DT$2&ROW($DT144)),$DS144,$DS$2&ROW($DS144)))","v":0},{"$f":"IF(AB144=\"\",0,\"X=\"&SUBSTITUTE(SUBSTITUTE(SUBSTITUTE(SUBSTITUTE(SUBSTITUTE(SUBSTITUTE(SUBSTITUTE(SUBSTITUTE(SUBSTITUTE(SUBSTITUTE(SUBSTITUTE(SUBSTITUTE(AB144,$ED144,$ED$2&ROW($ED144)),$EC144,$EC$2&ROW($EC144)),$EB144,$EB$2&ROW($EB144)),$EA144,$EA$2&ROW($EA144)),$DZ144,$DZ$2&ROW($DZ144)),$DY144,$DY$2&ROW($DY144)),$DX144,$DX$2&ROW($DX144)),$DW144,$DW$2&ROW($DW144)),$DV144,$DV$2&ROW($DV144)),$DU144,$DU$2&ROW($DU144)),$DT144,$DT$2&ROW($DT144)),$DS144,$DS$2&ROW($DS144)))","v":0},null,null,"{Factor:WinterCF}","{Factor:SummerCF}",{"$f":"IFERROR(INDEX($EG144:$IV144,MATCH(0,COUNTIF($DR144:DT144,$EG144:$IV144),0)),\"\")","v":"{Motor Type}"},{"$f":"IFERROR(INDEX($EG144:$IV144,MATCH(0,COUNTIF($DR144:DU144,$EG144:$IV144),0)),\"\")","v":"{Number of Fans}"},{"$f":"IFERROR(INDEX($EG144:$IV144,MATCH(0,COUNTIF($DR144:DV144,$EG144:$IV144),0)),\"\")","v":"{Temperature}"},{"$f":"IFERROR(INDEX($EG144:$IV144,MATCH(0,COUNTIF($DR144:DW144,$EG144:$IV144),0)),\"\")","v":"{Measure:Quantity}"},{"$f":"IFERROR(INDEX($EG144:$IV144,MATCH(0,COUNTIF($DR144:DX144,$EG144:$IV144),0)),\"\")","v":""},{"$f":"IFERROR(INDEX($EG144:$IV144,MATCH(0,COUNTIF($DR144:DY144,$EG144:$IV144),0)),\"\")","v":""},{"$f":"IFERROR(INDEX($EG144:$IV144,MATCH(0,COUNTIF($DR144:DZ144,$EG144:$IV144),0)),\"\")","v":""},{"$f":"IFERROR(INDEX($EG144:$IV144,MATCH(0,COUNTIF($DR144:EA144,$EG144:$IV144),0)),\"\")","v":""},{"$f":"IFERROR(INDEX($EG144:$IV144,MATCH(0,COUNTIF($DR144:EB144,$EG144:$IV144),0)),\"\")","v":""},{"$f":"IFERROR(INDEX($EG144:$IV144,MATCH(0,COUNTIF($DR144:EC144,$EG144:$IV144),0)),\"\")","v":""},null,null,{"$f":"IFERROR(MID($G144,FIND(CHAR(160),SUBSTITUTE($G144,\"{\",CHAR(160),EG$1)),FIND(CHAR(160),SUBSTITUTE($G144,\"}\",CHAR(160),EG$1))-FIND(CHAR(160),SUBSTITUTE($G144,\"{\",CHAR(160),EG$1))+1),\"\")","v":""},{"$f":"IFERROR(MID($G144,FIND(CHAR(160),SUBSTITUTE($G144,\"{\",CHAR(160),EH$1)),FIND(CHAR(160),SUBSTITUTE($G144,\"}\",CHAR(160),EH$1))-FIND(CHAR(160),SUBSTITUTE($G144,\"{\",CHAR(160),EH$1))+1),\"\")","v":""},{"$f":"IFERROR(MID($G144,FIND(CHAR(160),SUBSTITUTE($G144,\"{\",CHAR(160),EI$1)),FIND(CHAR(160),SUBSTITUTE($G144,\"}\",CHAR(160),EI$1))-FIND(CHAR(160),SUBSTITUTE($G144,\"{\",CHAR(160),EI$1))+1),\"\")","v":""},{"$f":"IFERROR(MID($G144,FIND(CHAR(160),SUBSTITUTE($G144,\"{\",CHAR(160),EJ$1)),FIND(CHAR(160),SUBSTITUTE($G144,\"}\",CHAR(160),EJ$1))-FIND(CHAR(160),SUBSTITUTE($G144,\"{\",CHAR(160),EJ$1))+1),\"\")","v":""},{"$f":"IFERROR(MID($G144,FIND(CHAR(160),SUBSTITUTE($G144,\"{\",CHAR(160),EK$1)),FIND(CHAR(160),SUBSTITUTE($G144,\"}\",CHAR(160),EK$1))-FIND(CHAR(160),SUBSTITUTE($G144,\"{\",CHAR(160),EK$1))+1),\"\")","v":""},{"$f":"IFERROR(MID($G144,FIND(CHAR(160),SUBSTITUTE($G144,\"{\",CHAR(160),EL$1)),FIND(CHAR(160),SUBSTITUTE($G144,\"}\",CHAR(160),EL$1))-FIND(CHAR(160),SUBSTITUTE($G144,\"{\",CHAR(160),EL$1))+1),\"\")","v":""},{"$f":"IFERROR(MID($G144,FIND(CHAR(160),SUBSTITUTE($G144,\"{\",CHAR(160),EM$1)),FIND(CHAR(160),SUBSTITUTE($G144,\"}\",CHAR(160),EM$1))-FIND(CHAR(160),SUBSTITUTE($G144,\"{\",CHAR(160),EM$1))+1),\"\")","v":""},{"$f":"IFERROR(MID($G144,FIND(CHAR(160),SUBSTITUTE($G144,\"{\",CHAR(160),EN$1)),FIND(CHAR(160),SUBSTITUTE($G144,\"}\",CHAR(160),EN$1))-FIND(CHAR(160),SUBSTITUTE($G144,\"{\",CHAR(160),EN$1))+1),\"\")","v":""},{"$f":"IFERROR(MID($G144,FIND(CHAR(160),SUBSTITUTE($G144,\"{\",CHAR(160),EO$1)),FIND(CHAR(160),SUBSTITUTE($G144,\"}\",CHAR(160),EO$1))-FIND(CHAR(160),SUBSTITUTE($G144,\"{\",CHAR(160),EO$1))+1),\"\")","v":""},{"$f":"IFERROR(MID($G144,FIND(CHAR(160),SUBSTITUTE($G144,\"{\",CHAR(160),EP$1)),FIND(CHAR(160),SUBSTITUTE($G144,\"}\",CHAR(160),EP$1))-FIND(CHAR(160),SUBSTITUTE($G144,\"{\",CHAR(160),EP$1))+1),\"\")","v":""},{"$f":"IFERROR(MID($J144,FIND(CHAR(160),SUBSTITUTE($J144,\"{\",CHAR(160),EQ$1)),FIND(CHAR(160),SUBSTITUTE($J144,\"}\",CHAR(160),EQ$1))-FIND(CHAR(160),SUBSTITUTE($J144,\"{\",CHAR(160),EQ$1))+1),\"\")","v":""},{"$f":"IFERROR(MID($J144,FIND(CHAR(160),SUBSTITUTE($J144,\"{\",CHAR(160),ER$1)),FIND(CHAR(160),SUBSTITUTE($J144,\"}\",CHAR(160),ER$1))-FIND(CHAR(160),SUBSTITUTE($J144,\"{\",CHAR(160),ER$1))+1),\"\")","v":""},{"$f":"IFERROR(MID($J144,FIND(CHAR(160),SUBSTITUTE($J144,\"{\",CHAR(160),ES$1)),FIND(CHAR(160),SUBSTITUTE($J144,\"}\",CHAR(160),ES$1))-FIND(CHAR(160),SUBSTITUTE($J144,\"{\",CHAR(160),ES$1))+1),\"\")","v":""},{"$f":"IFERROR(MID($J144,FIND(CHAR(160),SUBSTITUTE($J144,\"{\",CHAR(160),ET$1)),FIND(CHAR(160),SUBSTITUTE($J144,\"}\",CHAR(160),ET$1))-FIND(CHAR(160),SUBSTITUTE($J144,\"{\",CHAR(160),ET$1))+1),\"\")","v":""},{"$f":"IFERROR(MID($J144,FIND(CHAR(160),SUBSTITUTE($J144,\"{\",CHAR(160),EU$1)),FIND(CHAR(160),SUBSTITUTE($J144,\"}\",CHAR(160),EU$1))-FIND(CHAR(160),SUBSTITUTE($J144,\"{\",CHAR(160),EU$1))+1),\"\")","v":""},{"$f":"IFERROR(MID($J144,FIND(CHAR(160),SUBSTITUTE($J144,\"{\",CHAR(160),EV$1)),FIND(CHAR(160),SUBSTITUTE($J144,\"}\",CHAR(160),EV$1))-FIND(CHAR(160),SUBSTITUTE($J144,\"{\",CHAR(160),EV$1))+1),\"\")","v":""},{"$f":"IFERROR(MID($J144,FIND(CHAR(160),SUBSTITUTE($J144,\"{\",CHAR(160),EW$1)),FIND(CHAR(160),SUBSTITUTE($J144,\"}\",CHAR(160),EW$1))-FIND(CHAR(160),SUBSTITUTE($J144,\"{\",CHAR(160),EW$1))+1),\"\")","v":""},{"$f":"IFERROR(MID($J144,FIND(CHAR(160),SUBSTITUTE($J144,\"{\",CHAR(160),EX$1)),FIND(CHAR(160),SUBSTITUTE($J144,\"}\",CHAR(160),EX$1))-FIND(CHAR(160),SUBSTITUTE($J144,\"{\",CHAR(160),EX$1))+1),\"\")","v":""},{"$f":"IFERROR(MID($J144,FIND(CHAR(160),SUBSTITUTE($J144,\"{\",CHAR(160),EY$1)),FIND(CHAR(160),SUBSTITUTE($J144,\"}\",CHAR(160),EY$1))-FIND(CHAR(160),SUBSTITUTE($J144,\"{\",CHAR(160),EY$1))+1),\"\")","v":""},{"$f":"IFERROR(MID($J144,FIND(CHAR(160),SUBSTITUTE($J144,\"{\",CHAR(160),EZ$1)),FIND(CHAR(160),SUBSTITUTE($J144,\"}\",CHAR(160),EZ$1))-FIND(CHAR(160),SUBSTITUTE($J144,\"{\",CHAR(160),EZ$1))+1),\"\")","v":""},{"$f":"IFERROR(MID($J144,FIND(CHAR(160),SUBSTITUTE($J144,\"{\",CHAR(160),FA$1)),FIND(CHAR(160),SUBSTITUTE($J144,\"}\",CHAR(160),FA$1))-FIND(CHAR(160),SUBSTITUTE($J144,\"{\",CHAR(160),FA$1))+1),\"\")","v":""},{"$f":"IFERROR(MID($J144,FIND(CHAR(160),SUBSTITUTE($J144,\"{\",CHAR(160),FB$1)),FIND(CHAR(160),SUBSTITUTE($J144,\"}\",CHAR(160),FB$1))-FIND(CHAR(160),SUBSTITUTE($J144,\"{\",CHAR(160),FB$1))+1),\"\")","v":""},{"$f":"IFERROR(MID($O144,FIND(CHAR(160),SUBSTITUTE($O144,\"{\",CHAR(160),FC$1)),FIND(CHAR(160),SUBSTITUTE($O144,\"}\",CHAR(160),FC$1))-FIND(CHAR(160),SUBSTITUTE($O144,\"{\",CHAR(160),FC$1))+1),\"\")","v":"{Motor Type}"},{"$f":"IFERROR(MID($O144,FIND(CHAR(160),SUBSTITUTE($O144,\"{\",CHAR(160),FD$1)),FIND(CHAR(160),SUBSTITUTE($O144,\"}\",CHAR(160),FD$1))-FIND(CHAR(160),SUBSTITUTE($O144,\"{\",CHAR(160),FD$1))+1),\"\")","v":"{Number of Fans}"},{"$f":"IFERROR(MID($O144,FIND(CHAR(160),SUBSTITUTE($O144,\"{\",CHAR(160),FE$1)),FIND(CHAR(160),SUBSTITUTE($O144,\"}\",CHAR(160),FE$1))-FIND(CHAR(160),SUBSTITUTE($O144,\"{\",CHAR(160),FE$1))+1),\"\")","v":"{Temperature}"},{"$f":"IFERROR(MID($O144,FIND(CHAR(160),SUBSTITUTE($O144,\"{\",CHAR(160),FF$1)),FIND(CHAR(160),SUBSTITUTE($O144,\"}\",CHAR(160),FF$1))-FIND(CHAR(160),SUBSTITUTE($O144,\"{\",CHAR(160),FF$1))+1),\"\")","v":""},{"$f":"IFERROR(MID($O144,FIND(CHAR(160),SUBSTITUTE($O144,\"{\",CHAR(160),FG$1)),FIND(CHAR(160),SUBSTITUTE($O144,\"}\",CHAR(160),FG$1))-FIND(CHAR(160),SUBSTITUTE($O144,\"{\",CHAR(160),FG$1))+1),\"\")","v":""},{"$f":"IFERROR(MID($O144,FIND(CHAR(160),SUBSTITUTE($O144,\"{\",CHAR(160),FH$1)),FIND(CHAR(160),SUBSTITUTE($O144,\"}\",CHAR(160),FH$1))-FIND(CHAR(160),SUBSTITUTE($O144,\"{\",CHAR(160),FH$1))+1),\"\")","v":""},{"$f":"IFERROR(MID($O144,FIND(CHAR(160),SUBSTITUTE($O144,\"{\",CHAR(160),FI$1)),FIND(CHAR(160),SUBSTITUTE($O144,\"}\",CHAR(160),FI$1))-FIND(CHAR(160),SUBSTITUTE($O144,\"{\",CHAR(160),FI$1))+1),\"\")","v":""},{"$f":"IFERROR(MID($O144,FIND(CHAR(160),SUBSTITUTE($O144,\"{\",CHAR(160),FJ$1)),FIND(CHAR(160),SUBSTITUTE($O144,\"}\",CHAR(160),FJ$1))-FIND(CHAR(160),SUBSTITUTE($O144,\"{\",CHAR(160),FJ$1))+1),\"\")","v":""},{"$f":"IFERROR(MID($O144,FIND(CHAR(160),SUBSTITUTE($O144,\"{\",CHAR(160),FK$1)),FIND(CHAR(160),SUBSTITUTE($O144,\"}\",CHAR(160),FK$1))-FIND(CHAR(160),SUBSTITUTE($O144,\"{\",CHAR(160),FK$1))+1),\"\")","v":"{Measure:Quantity}"},{"$f":"IFERROR(MID($O144,FIND(CHAR(160),SUBSTITUTE($O144,\"{\",CHAR(160),FL$1)),FIND(CHAR(160),SUBSTITUTE($O144,\"}\",CHAR(160),FL$1))-FIND(CHAR(160),SUBSTITUTE($O144,\"{\",CHAR(160),FL$1))+1),\"\")","v":"{Measure:Quantity}"},{"$f":"IFERROR(MID($R144,FIND(CHAR(160),SUBSTITUTE($R144,\"{\",CHAR(160),FM$1)),FIND(CHAR(160),SUBSTITUTE($R144,\"}\",CHAR(160),FM$1))-FIND(CHAR(160),SUBSTITUTE($R144,\"{\",CHAR(160),FM$1))+1),\"\")","v":"{Motor Type}"},{"$f":"IFERROR(MID($R144,FIND(CHAR(160),SUBSTITUTE($R144,\"{\",CHAR(160),FN$1)),FIND(CHAR(160),SUBSTITUTE($R144,\"}\",CHAR(160),FN$1))-FIND(CHAR(160),SUBSTITUTE($R144,\"{\",CHAR(160),FN$1))+1),\"\")","v":"{Number of Fans}"},{"$f":"IFERROR(MID($R144,FIND(CHAR(160),SUBSTITUTE($R144,\"{\",CHAR(160),FO$1)),FIND(CHAR(160),SUBSTITUTE($R144,\"}\",CHAR(160),FO$1))-FIND(CHAR(160),SUBSTITUTE($R144,\"{\",CHAR(160),FO$1))+1),\"\")","v":"{Temperature}"},{"$f":"IFERROR(MID($R144,FIND(CHAR(160),SUBSTITUTE($R144,\"{\",CHAR(160),FP$1)),FIND(CHAR(160),SUBSTITUTE($R144,\"}\",CHAR(160),FP$1))-FIND(CHAR(160),SUBSTITUTE($R144,\"{\",CHAR(160),FP$1))+1),\"\")","v":""},{"$f":"IFERROR(MID($R144,FIND(CHAR(160),SUBSTITUTE($R144,\"{\",CHAR(160),FQ$1)),FIND(CHAR(160),SUBSTITUTE($R144,\"}\",CHAR(160),FQ$1))-FIND(CHAR(160),SUBSTITUTE($R144,\"{\",CHAR(160),FQ$1))+1),\"\")","v":""},{"$f":"IFERROR(MID($R144,FIND(CHAR(160),SUBSTITUTE($R144,\"{\",CHAR(160),FR$1)),FIND(CHAR(160),SUBSTITUTE($R144,\"}\",CHAR(160),FR$1))-FIND(CHAR(160),SUBSTITUTE($R144,\"{\",CHAR(160),FR$1))+1),\"\")","v":""},{"$f":"IFERROR(MID($R144,FIND(CHAR(160),SUBSTITUTE($R144,\"{\",CHAR(160),FS$1)),FIND(CHAR(160),SUBSTITUTE($R144,\"}\",CHAR(160),FS$1))-FIND(CHAR(160),SUBSTITUTE($R144,\"{\",CHAR(160),FS$1))+1),\"\")","v":""},{"$f":"IFERROR(MID($R144,FIND(CHAR(160),SUBSTITUTE($R144,\"{\",CHAR(160),FT$1)),FIND(CHAR(160),SUBSTITUTE($R144,\"}\",CHAR(160),FT$1))-FIND(CHAR(160),SUBSTITUTE($R144,\"{\",CHAR(160),FT$1))+1),\"\")","v":""},{"$f":"IFERROR(MID($R144,FIND(CHAR(160),SUBSTITUTE($R144,\"{\",CHAR(160),FU$1)),FIND(CHAR(160),SUBSTITUTE($R144,\"}\",CHAR(160),FU$1))-FIND(CHAR(160),SUBSTITUTE($R144,\"{\",CHAR(160),FU$1))+1),\"\")","v":"{Measure:Quantity}"},{"$f":"IFERROR(MID($R144,FIND(CHAR(160),SUBSTITUTE($R144,\"{\",CHAR(160),FV$1)),FIND(CHAR(160),SUBSTITUTE($R144,\"}\",CHAR(160),FV$1))-FIND(CHAR(160),SUBSTITUTE($R144,\"{\",CHAR(160),FV$1))+1),\"\")","v":"{Measure:Quantity}"},{"$f":"IFERROR(MID($U144,FIND(CHAR(160),SUBSTITUTE($U144,\"{\",CHAR(160),FW$1)),FIND(CHAR(160),SUBSTITUTE($U144,\"}\",CHAR(160),FW$1))-FIND(CHAR(160),SUBSTITUTE($U144,\"{\",CHAR(160),FW$1))+1),\"\")","v":"{Motor Type}"},{"$f":"IFERROR(MID($U144,FIND(CHAR(160),SUBSTITUTE($U144,\"{\",CHAR(160),FX$1)),FIND(CHAR(160),SUBSTITUTE($U144,\"}\",CHAR(160),FX$1))-FIND(CHAR(160),SUBSTITUTE($U144,\"{\",CHAR(160),FX$1))+1),\"\")","v":"{Number of Fans}"},{"$f":"IFERROR(MID($U144,FIND(CHAR(160),SUBSTITUTE($U144,\"{\",CHAR(160),FY$1)),FIND(CHAR(160),SUBSTITUTE($U144,\"}\",CHAR(160),FY$1))-FIND(CHAR(160),SUBSTITUTE($U144,\"{\",CHAR(160),FY$1))+1),\"\")","v":"{Temperature}"},{"$f":"IFERROR(MID($U144,FIND(CHAR(160),SUBSTITUTE($U144,\"{\",CHAR(160),FZ$1)),FIND(CHAR(160),SUBSTITUTE($U144,\"}\",CHAR(160),FZ$1))-FIND(CHAR(160),SUBSTITUTE($U144,\"{\",CHAR(160),FZ$1))+1),\"\")","v":"{Factor:WinterCF}"},{"$f":"IFERROR(MID($U144,FIND(CHAR(160),SUBSTITUTE($U144,\"{\",CHAR(160),GA$1)),FIND(CHAR(160),SUBSTITUTE($U144,\"}\",CHAR(160),GA$1))-FIND(CHAR(160),SUBSTITUTE($U144,\"{\",CHAR(160),GA$1))+1),\"\")","v":""},{"$f":"IFERROR(MID($U144,FIND(CHAR(160),SUBSTITUTE($U144,\"{\",CHAR(160),GB$1)),FIND(CHAR(160),SUBSTITUTE($U144,\"}\",CHAR(160),GB$1))-FIND(CHAR(160),SUBSTITUTE($U144,\"{\",CHAR(160),GB$1))+1),\"\")","v":""},{"$f":"IFERROR(MID($U144,FIND(CHAR(160),SUBSTITUTE($U144,\"{\",CHAR(160),GC$1)),FIND(CHAR(160),SUBSTITUTE($U144,\"}\",CHAR(160),GC$1))-FIND(CHAR(160),SUBSTITUTE($U144,\"{\",CHAR(160),GC$1))+1),\"\")","v":""},{"$f":"IFERROR(MID($U144,FIND(CHAR(160),SUBSTITUTE($U144,\"{\",CHAR(160),GD$1)),FIND(CHAR(160),SUBSTITUTE($U144,\"}\",CHAR(160),GD$1))-FIND(CHAR(160),SUBSTITUTE($U144,\"{\",CHAR(160),GD$1))+1),\"\")","v":""},{"$f":"IFERROR(MID($U144,FIND(CHAR(160),SUBSTITUTE($U144,\"{\",CHAR(160),GE$1)),FIND(CHAR(160),SUBSTITUTE($U144,\"}\",CHAR(160),GE$1))-FIND(CHAR(160),SUBSTITUTE($U144,\"{\",CHAR(160),GE$1))+1),\"\")","v":"{Measure:Quantity}"},{"$f":"IFERROR(MID($U144,FIND(CHAR(160),SUBSTITUTE($U144,\"{\",CHAR(160),GF$1)),FIND(CHAR(160),SUBSTITUTE($U144,\"}\",CHAR(160),GF$1))-FIND(CHAR(160),SUBSTITUTE($U144,\"{\",CHAR(160),GF$1))+1),\"\")","v":"{Measure:Quantity}"},{"$f":"IFERROR(MID($V144,FIND(CHAR(160),SUBSTITUTE($V144,\"{\",CHAR(160),GG$1)),FIND(CHAR(160),SUBSTITUTE($V144,\"}\",CHAR(160),GG$1))-FIND(CHAR(160),SUBSTITUTE($V144,\"{\",CHAR(160),GG$1))+1),\"\")","v":"{Number of Fans}"},{"$f":"IFERROR(MID($V144,FIND(CHAR(160),SUBSTITUTE($V144,\"{\",CHAR(160),GH$1)),FIND(CHAR(160),SUBSTITUTE($V144,\"}\",CHAR(160),GH$1))-FIND(CHAR(160),SUBSTITUTE($V144,\"{\",CHAR(160),GH$1))+1),\"\")","v":"{Temperature}"},{"$f":"IFERROR(MID($V144,FIND(CHAR(160),SUBSTITUTE($V144,\"{\",CHAR(160),GI$1)),FIND(CHAR(160),SUBSTITUTE($V144,\"}\",CHAR(160),GI$1))-FIND(CHAR(160),SUBSTITUTE($V144,\"{\",CHAR(160),GI$1))+1),\"\")","v":"{Factor:SummerCF}"},{"$f":"IFERROR(MID($V144,FIND(CHAR(160),SUBSTITUTE($V144,\"{\",CHAR(160),GJ$1)),FIND(CHAR(160),SUBSTITUTE($V144,\"}\",CHAR(160),GJ$1))-FIND(CHAR(160),SUBSTITUTE($V144,\"{\",CHAR(160),GJ$1))+1),\"\")","v":""},{"$f":"IFERROR(MID($V144,FIND(CHAR(160),SUBSTITUTE($V144,\"{\",CHAR(160),GK$1)),FIND(CHAR(160),SUBSTITUTE($V144,\"}\",CHAR(160),GK$1))-FIND(CHAR(160),SUBSTITUTE($V144,\"{\",CHAR(160),GK$1))+1),\"\")","v":""},{"$f":"IFERROR(MID($V144,FIND(CHAR(160),SUBSTITUTE($V144,\"{\",CHAR(160),GL$1)),FIND(CHAR(160),SUBSTITUTE($V144,\"}\",CHAR(160),GL$1))-FIND(CHAR(160),SUBSTITUTE($V144,\"{\",CHAR(160),GL$1))+1),\"\")","v":""},{"$f":"IFERROR(MID($V144,FIND(CHAR(160),SUBSTITUTE($V144,\"{\",CHAR(160),GM$1)),FIND(CHAR(160),SUBSTITUTE($V144,\"}\",CHAR(160),GM$1))-FIND(CHAR(160),SUBSTITUTE($V144,\"{\",CHAR(160),GM$1))+1),\"\")","v":""},{"$f":"IFERROR(MID($V144,FIND(CHAR(160),SUBSTITUTE($V144,\"{\",CHAR(160),GN$1)),FIND(CHAR(160),SUBSTITUTE($V144,\"}\",CHAR(160),GN$1))-FIND(CHAR(160),SUBSTITUTE($V144,\"{\",CHAR(160),GN$1))+1),\"\")","v":""},{"$f":"IFERROR(MID($V144,FIND(CHAR(160),SUBSTITUTE($V144,\"{\",CHAR(160),GO$1)),FIND(CHAR(160),SUBSTITUTE($V144,\"}\",CHAR(160),GO$1))-FIND(CHAR(160),SUBSTITUTE($V144,\"{\",CHAR(160),GO$1))+1),\"\")","v":"{Measure:Quantity}"},{"$f":"IFERROR(MID($V144,FIND(CHAR(160),SUBSTITUTE($V144,\"{\",CHAR(160),GP$1)),FIND(CHAR(160),SUBSTITUTE($V144,\"}\",CHAR(160),GP$1))-FIND(CHAR(160),SUBSTITUTE($V144,\"{\",CHAR(160),GP$1))+1),\"\")","v":"{Motor Type}"},{"$f":"IFERROR(MID($W144,FIND(CHAR(160),SUBSTITUTE($W144,\"{\",CHAR(160),GQ$1)),FIND(CHAR(160),SUBSTITUTE($W144,\"}\",CHAR(160),GQ$1))-FIND(CHAR(160),SUBSTITUTE($W144,\"{\",CHAR(160),GQ$1))+1),\"\")","v":""},{"$f":"IFERROR(MID($W144,FIND(CHAR(160),SUBSTITUTE($W144,\"{\",CHAR(160),GR$1)),FIND(CHAR(160),SUBSTITUTE($W144,\"}\",CHAR(160),GR$1))-FIND(CHAR(160),SUBSTITUTE($W144,\"{\",CHAR(160),GR$1))+1),\"\")","v":""},{"$f":"IFERROR(MID($W144,FIND(CHAR(160),SUBSTITUTE($W144,\"{\",CHAR(160),GS$1)),FIND(CHAR(160),SUBSTITUTE($W144,\"}\",CHAR(160),GS$1))-FIND(CHAR(160),SUBSTITUTE($W144,\"{\",CHAR(160),GS$1))+1),\"\")","v":""},{"$f":"IFERROR(MID($W144,FIND(CHAR(160),SUBSTITUTE($W144,\"{\",CHAR(160),GT$1)),FIND(CHAR(160),SUBSTITUTE($W144,\"}\",CHAR(160),GT$1))-FIND(CHAR(160),SUBSTITUTE($W144,\"{\",CHAR(160),GT$1))+1),\"\")","v":""},{"$f":"IFERROR(MID($W144,FIND(CHAR(160),SUBSTITUTE($W144,\"{\",CHAR(160),GU$1)),FIND(CHAR(160),SUBSTITUTE($W144,\"}\",CHAR(160),GU$1))-FIND(CHAR(160),SUBSTITUTE($W144,\"{\",CHAR(160),GU$1))+1),\"\")","v":""},{"$f":"IFERROR(MID($W144,FIND(CHAR(160),SUBSTITUTE($W144,\"{\",CHAR(160),GV$1)),FIND(CHAR(160),SUBSTITUTE($W144,\"}\",CHAR(160),GV$1))-FIND(CHAR(160),SUBSTITUTE($W144,\"{\",CHAR(160),GV$1))+1),\"\")","v":""},{"$f":"IFERROR(MID($W144,FIND(CHAR(160),SUBSTITUTE($W144,\"{\",CHAR(160),GW$1)),FIND(CHAR(160),SUBSTITUTE($W144,\"}\",CHAR(160),GW$1))-FIND(CHAR(160),SUBSTITUTE($W144,\"{\",CHAR(160),GW$1))+1),\"\")","v":""},{"$f":"IFERROR(MID($W144,FIND(CHAR(160),SUBSTITUTE($W144,\"{\",CHAR(160),GX$1)),FIND(CHAR(160),SUBSTITUTE($W144,\"}\",CHAR(160),GX$1))-FIND(CHAR(160),SUBSTITUTE($W144,\"{\",CHAR(160),GX$1))+1),\"\")","v":""},{"$f":"IFERROR(MID($W144,FIND(CHAR(160),SUBSTITUTE($W144,\"{\",CHAR(160),GY$1)),FIND(CHAR(160),SUBSTITUTE($W144,\"}\",CHAR(160),GY$1))-FIND(CHAR(160),SUBSTITUTE($W144,\"{\",CHAR(160),GY$1))+1),\"\")","v":""},{"$f":"IFERROR(MID($W144,FIND(CHAR(160),SUBSTITUTE($W144,\"{\",CHAR(160),GZ$1)),FIND(CHAR(160),SUBSTITUTE($W144,\"}\",CHAR(160),GZ$1))-FIND(CHAR(160),SUBSTITUTE($W144,\"{\",CHAR(160),GZ$1))+1),\"\")","v":""},{"$f":"IFERROR(MID($X144,FIND(CHAR(160),SUBSTITUTE($X144,\"{\",CHAR(160),HA$1)),FIND(CHAR(160),SUBSTITUTE($X144,\"}\",CHAR(160),HA$1))-FIND(CHAR(160),SUBSTITUTE($X144,\"{\",CHAR(160),HA$1))+1),\"\")","v":""},{"$f":"IFERROR(MID($X144,FIND(CHAR(160),SUBSTITUTE($X144,\"{\",CHAR(160),HB$1)),FIND(CHAR(160),SUBSTITUTE($X144,\"}\",CHAR(160),HB$1))-FIND(CHAR(160),SUBSTITUTE($X144,\"{\",CHAR(160),HB$1))+1),\"\")","v":""},{"$f":"IFERROR(MID($X144,FIND(CHAR(160),SUBSTITUTE($X144,\"{\",CHAR(160),HC$1)),FIND(CHAR(160),SUBSTITUTE($X144,\"}\",CHAR(160),HC$1))-FIND(CHAR(160),SUBSTITUTE($X144,\"{\",CHAR(160),HC$1))+1),\"\")","v":""},{"$f":"IFERROR(MID($X144,FIND(CHAR(160),SUBSTITUTE($X144,\"{\",CHAR(160),HD$1)),FIND(CHAR(160),SUBSTITUTE($X144,\"}\",CHAR(160),HD$1))-FIND(CHAR(160),SUBSTITUTE($X144,\"{\",CHAR(160),HD$1))+1),\"\")","v":""},{"$f":"IFERROR(MID($X144,FIND(CHAR(160),SUBSTITUTE($X144,\"{\",CHAR(160),HE$1)),FIND(CHAR(160),SUBSTITUTE($X144,\"}\",CHAR(160),HE$1))-FIND(CHAR(160),SUBSTITUTE($X144,\"{\",CHAR(160),HE$1))+1),\"\")","v":""},{"$f":"IFERROR(MID($X144,FIND(CHAR(160),SUBSTITUTE($X144,\"{\",CHAR(160),HF$1)),FIND(CHAR(160),SUBSTITUTE($X144,\"}\",CHAR(160),HF$1))-FIND(CHAR(160),SUBSTITUTE($X144,\"{\",CHAR(160),HF$1))+1),\"\")","v":""},{"$f":"IFERROR(MID($X144,FIND(CHAR(160),SUBSTITUTE($X144,\"{\",CHAR(160),HG$1)),FIND(CHAR(160),SUBSTITUTE($X144,\"}\",CHAR(160),HG$1))-FIND(CHAR(160),SUBSTITUTE($X144,\"{\",CHAR(160),HG$1))+1),\"\")","v":""},{"$f":"IFERROR(MID($X144,FIND(CHAR(160),SUBSTITUTE($X144,\"{\",CHAR(160),HH$1)),FIND(CHAR(160),SUBSTITUTE($X144,\"}\",CHAR(160),HH$1))-FIND(CHAR(160),SUBSTITUTE($X144,\"{\",CHAR(160),HH$1))+1),\"\")","v":""},{"$f":"IFERROR(MID($X144,FIND(CHAR(160),SUBSTITUTE($X144,\"{\",CHAR(160),HI$1)),FIND(CHAR(160),SUBSTITUTE($X144,\"}\",CHAR(160),HI$1))-FIND(CHAR(160),SUBSTITUTE($X144,\"{\",CHAR(160),HI$1))+1),\"\")","v":""},{"$f":"IFERROR(MID($X144,FIND(CHAR(160),SUBSTITUTE($X144,\"{\",CHAR(160),HJ$1)),FIND(CHAR(160),SUBSTITUTE($X144,\"}\",CHAR(160),HJ$1))-FIND(CHAR(160),SUBSTITUTE($X144,\"{\",CHAR(160),HJ$1))+1),\"\")","v":""},{"$f":"IFERROR(MID($Y144,FIND(CHAR(160),SUBSTITUTE($Y144,\"{\",CHAR(160),HK$1)),FIND(CHAR(160),SUBSTITUTE($Y144,\"}\",CHAR(160),HK$1))-FIND(CHAR(160),SUBSTITUTE($Y144,\"{\",CHAR(160),HK$1))+1),\"\")","v":""},{"$f":"IFERROR(MID($Y144,FIND(CHAR(160),SUBSTITUTE($Y144,\"{\",CHAR(160),HL$1)),FIND(CHAR(160),SUBSTITUTE($Y144,\"}\",CHAR(160),HL$1))-FIND(CHAR(160),SUBSTITUTE($Y144,\"{\",CHAR(160),HL$1))+1),\"\")","v":""},{"$f":"IFERROR(MID($Y144,FIND(CHAR(160),SUBSTITUTE($Y144,\"{\",CHAR(160),HM$1)),FIND(CHAR(160),SUBSTITUTE($Y144,\"}\",CHAR(160),HM$1))-FIND(CHAR(160),SUBSTITUTE($Y144,\"{\",CHAR(160),HM$1))+1),\"\")","v":""},{"$f":"IFERROR(MID($Y144,FIND(CHAR(160),SUBSTITUTE($Y144,\"{\",CHAR(160),HN$1)),FIND(CHAR(160),SUBSTITUTE($Y144,\"}\",CHAR(160),HN$1))-FIND(CHAR(160),SUBSTITUTE($Y144,\"{\",CHAR(160),HN$1))+1),\"\")","v":""},{"$f":"IFERROR(MID($Y144,FIND(CHAR(160),SUBSTITUTE($Y144,\"{\",CHAR(160),HO$1)),FIND(CHAR(160),SUBSTITUTE($Y144,\"}\",CHAR(160),HO$1))-FIND(CHAR(160),SUBSTITUTE($Y144,\"{\",CHAR(160),HO$1))+1),\"\")","v":""},{"$f":"IFERROR(MID($Y144,FIND(CHAR(160),SUBSTITUTE($Y144,\"{\",CHAR(160),HP$1)),FIND(CHAR(160),SUBSTITUTE($Y144,\"}\",CHAR(160),HP$1))-FIND(CHAR(160),SUBSTITUTE($Y144,\"{\",CHAR(160),HP$1))+1),\"\")","v":""},{"$f":"IFERROR(MID($Y144,FIND(CHAR(160),SUBSTITUTE($Y144,\"{\",CHAR(160),HQ$1)),FIND(CHAR(160),SUBSTITUTE($Y144,\"}\",CHAR(160),HQ$1))-FIND(CHAR(160),SUBSTITUTE($Y144,\"{\",CHAR(160),HQ$1))+1),\"\")","v":""},{"$f":"IFERROR(MID($Y144,FIND(CHAR(160),SUBSTITUTE($Y144,\"{\",CHAR(160),HR$1)),FIND(CHAR(160),SUBSTITUTE($Y144,\"}\",CHAR(160),HR$1))-FIND(CHAR(160),SUBSTITUTE($Y144,\"{\",CHAR(160),HR$1))+1),\"\")","v":""},{"$f":"IFERROR(MID($Y144,FIND(CHAR(160),SUBSTITUTE($Y144,\"{\",CHAR(160),HS$1)),FIND(CHAR(160),SUBSTITUTE($Y144,\"}\",CHAR(160),HS$1))-FIND(CHAR(160),SUBSTITUTE($Y144,\"{\",CHAR(160),HS$1))+1),\"\")","v":""},{"$f":"IFERROR(MID($Y144,FIND(CHAR(160),SUBSTITUTE($Y144,\"{\",CHAR(160),HT$1)),FIND(CHAR(160),SUBSTITUTE($Y144,\"}\",CHAR(160),HT$1))-FIND(CHAR(160),SUBSTITUTE($Y144,\"{\",CHAR(160),HT$1))+1),\"\")","v":""},{"$f":"IFERROR(MID($Z144,FIND(CHAR(160),SUBSTITUTE($Z144,\"{\",CHAR(160),HU$1)),FIND(CHAR(160),SUBSTITUTE($Z144,\"}\",CHAR(160),HU$1))-FIND(CHAR(160),SUBSTITUTE($Z144,\"{\",CHAR(160),HU$1))+1),\"\")","v":""},{"$f":"IFERROR(MID($Z144,FIND(CHAR(160),SUBSTITUTE($Z144,\"{\",CHAR(160),HV$1)),FIND(CHAR(160),SUBSTITUTE($Z144,\"}\",CHAR(160),HV$1))-FIND(CHAR(160),SUBSTITUTE($Z144,\"{\",CHAR(160),HV$1))+1),\"\")","v":""},{"$f":"IFERROR(MID($Z144,FIND(CHAR(160),SUBSTITUTE($Z144,\"{\",CHAR(160),HW$1)),FIND(CHAR(160),SUBSTITUTE($Z144,\"}\",CHAR(160),HW$1))-FIND(CHAR(160),SUBSTITUTE($Z144,\"{\",CHAR(160),HW$1))+1),\"\")","v":""},{"$f":"IFERROR(MID($Z144,FIND(CHAR(160),SUBSTITUTE($Z144,\"{\",CHAR(160),HX$1)),FIND(CHAR(160),SUBSTITUTE($Z144,\"}\",CHAR(160),HX$1))-FIND(CHAR(160),SUBSTITUTE($Z144,\"{\",CHAR(160),HX$1))+1),\"\")","v":""},{"$f":"IFERROR(MID($Z144,FIND(CHAR(160),SUBSTITUTE($Z144,\"{\",CHAR(160),HY$1)),FIND(CHAR(160),SUBSTITUTE($Z144,\"}\",CHAR(160),HY$1))-FIND(CHAR(160),SUBSTITUTE($Z144,\"{\",CHAR(160),HY$1))+1),\"\")","v":""},{"$f":"IFERROR(MID($Z144,FIND(CHAR(160),SUBSTITUTE($Z144,\"{\",CHAR(160),HZ$1)),FIND(CHAR(160),SUBSTITUTE($Z144,\"}\",CHAR(160),HZ$1))-FIND(CHAR(160),SUBSTITUTE($Z144,\"{\",CHAR(160),HZ$1))+1),\"\")","v":""},{"$f":"IFERROR(MID($Z144,FIND(CHAR(160),SUBSTITUTE($Z144,\"{\",CHAR(160),IA$1)),FIND(CHAR(160),SUBSTITUTE($Z144,\"}\",CHAR(160),IA$1))-FIND(CHAR(160),SUBSTITUTE($Z144,\"{\",CHAR(160),IA$1))+1),\"\")","v":""},{"$f":"IFERROR(MID($Z144,FIND(CHAR(160),SUBSTITUTE($Z144,\"{\",CHAR(160),IB$1)),FIND(CHAR(160),SUBSTITUTE($Z144,\"}\",CHAR(160),IB$1))-FIND(CHAR(160),SUBSTITUTE($Z144,\"{\",CHAR(160),IB$1))+1),\"\")","v":""},{"$f":"IFERROR(MID($Z144,FIND(CHAR(160),SUBSTITUTE($Z144,\"{\",CHAR(160),IC$1)),FIND(CHAR(160),SUBSTITUTE($Z144,\"}\",CHAR(160),IC$1))-FIND(CHAR(160),SUBSTITUTE($Z144,\"{\",CHAR(160),IC$1))+1),\"\")","v":""},{"$f":"IFERROR(MID($Z144,FIND(CHAR(160),SUBSTITUTE($Z144,\"{\",CHAR(160),ID$1)),FIND(CHAR(160),SUBSTITUTE($Z144,\"}\",CHAR(160),ID$1))-FIND(CHAR(160),SUBSTITUTE($Z144,\"{\",CHAR(160),ID$1))+1),\"\")","v":""},{"$f":"IFERROR(MID($AA144,FIND(CHAR(160),SUBSTITUTE($AA144,\"{\",CHAR(160),IE$1)),FIND(CHAR(160),SUBSTITUTE($AA144,\"}\",CHAR(160),IE$1))-FIND(CHAR(160),SUBSTITUTE($AA144,\"{\",CHAR(160),IE$1))+1),\"\")","v":""},{"$f":"IFERROR(MID($AA144,FIND(CHAR(160),SUBSTITUTE($AA144,\"{\",CHAR(160),IF$1)),FIND(CHAR(160),SUBSTITUTE($AA144,\"}\",CHAR(160),IF$1))-FIND(CHAR(160),SUBSTITUTE($AA144,\"{\",CHAR(160),IF$1))+1),\"\")","v":""},{"$f":"IFERROR(MID($AA144,FIND(CHAR(160),SUBSTITUTE($AA144,\"{\",CHAR(160),IG$1)),FIND(CHAR(160),SUBSTITUTE($AA144,\"}\",CHAR(160),IG$1))-FIND(CHAR(160),SUBSTITUTE($AA144,\"{\",CHAR(160),IG$1))+1),\"\")","v":""},{"$f":"IFERROR(MID($AA144,FIND(CHAR(160),SUBSTITUTE($AA144,\"{\",CHAR(160),IH$1)),FIND(CHAR(160),SUBSTITUTE($AA144,\"}\",CHAR(160),IH$1))-FIND(CHAR(160),SUBSTITUTE($AA144,\"{\",CHAR(160),IH$1))+1),\"\")","v":""},{"$f":"IFERROR(MID($AA144,FIND(CHAR(160),SUBSTITUTE($AA144,\"{\",CHAR(160),II$1)),FIND(CHAR(160),SUBSTITUTE($AA144,\"}\",CHAR(160),II$1))-FIND(CHAR(160),SUBSTITUTE($AA144,\"{\",CHAR(160),II$1))+1),\"\")","v":""},{"$f":"IFERROR(MID($AA144,FIND(CHAR(160),SUBSTITUTE($AA144,\"{\",CHAR(160),IJ$1)),FIND(CHAR(160),SUBSTITUTE($AA144,\"}\",CHAR(160),IJ$1))-FIND(CHAR(160),SUBSTITUTE($AA144,\"{\",CHAR(160),IJ$1))+1),\"\")","v":""},{"$f":"IFERROR(MID($AA144,FIND(CHAR(160),SUBSTITUTE($AA144,\"{\",CHAR(160),IK$1)),FIND(CHAR(160),SUBSTITUTE($AA144,\"}\",CHAR(160),IK$1))-FIND(CHAR(160),SUBSTITUTE($AA144,\"{\",CHAR(160),IK$1))+1),\"\")","v":""},{"$f":"IFERROR(MID($AA144,FIND(CHAR(160),SUBSTITUTE($AA144,\"{\",CHAR(160),IL$1)),FIND(CHAR(160),SUBSTITUTE($AA144,\"}\",CHAR(160),IL$1))-FIND(CHAR(160),SUBSTITUTE($AA144,\"{\",CHAR(160),IL$1))+1),\"\")","v":""},{"$f":"IFERROR(MID($AA144,FIND(CHAR(160),SUBSTITUTE($AA144,\"{\",CHAR(160),IM$1)),FIND(CHAR(160),SUBSTITUTE($AA144,\"}\",CHAR(160),IM$1))-FIND(CHAR(160),SUBSTITUTE($AA144,\"{\",CHAR(160),IM$1))+1),\"\")","v":""},{"$f":"IFERROR(MID($AA144,FIND(CHAR(160),SUBSTITUTE($AA144,\"{\",CHAR(160),IN$1)),FIND(CHAR(160),SUBSTITUTE($AA144,\"}\",CHAR(160),IN$1))-FIND(CHAR(160),SUBSTITUTE($AA144,\"{\",CHAR(160),IN$1))+1),\"\")","v":""},{"$f":"IFERROR(MID($AB144,FIND(CHAR(160),SUBSTITUTE($AB144,\"{\",CHAR(160),IO$1)),FIND(CHAR(160),SUBSTITUTE($AB144,\"}\",CHAR(160),IO$1))-FIND(CHAR(160),SUBSTITUTE($AB144,\"{\",CHAR(160),IO$1))+1),\"\")","v":""},{"$f":"IFERROR(MID($AB144,FIND(CHAR(160),SUBSTITUTE($AB144,\"{\",CHAR(160),IP$1)),FIND(CHAR(160),SUBSTITUTE($AB144,\"}\",CHAR(160),IP$1))-FIND(CHAR(160),SUBSTITUTE($AB144,\"{\",CHAR(160),IP$1))+1),\"\")","v":""},{"$f":"IFERROR(MID($AB144,FIND(CHAR(160),SUBSTITUTE($AB144,\"{\",CHAR(160),IQ$1)),FIND(CHAR(160),SUBSTITUTE($AB144,\"}\",CHAR(160),IQ$1))-FIND(CHAR(160),SUBSTITUTE($AB144,\"{\",CHAR(160),IQ$1))+1),\"\")","v":""},{"$f":"IFERROR(MID($AB144,FIND(CHAR(160),SUBSTITUTE($AB144,\"{\",CHAR(160),IR$1)),FIND(CHAR(160),SUBSTITUTE($AB144,\"}\",CHAR(160),IR$1))-FIND(CHAR(160),SUBSTITUTE($AB144,\"{\",CHAR(160),IR$1))+1),\"\")","v":""},{"$f":"IFERROR(MID($AB144,FIND(CHAR(160),SUBSTITUTE($AB144,\"{\",CHAR(160),IS$1)),FIND(CHAR(160),SUBSTITUTE($AB144,\"}\",CHAR(160),IS$1))-FIND(CHAR(160),SUBSTITUTE($AB144,\"{\",CHAR(160),IS$1))+1),\"\")","v":""},{"$f":"IFERROR(MID($AB144,FIND(CHAR(160),SUBSTITUTE($AB144,\"{\",CHAR(160),IT$1)),FIND(CHAR(160),SUBSTITUTE($AB144,\"}\",CHAR(160),IT$1))-FIND(CHAR(160),SUBSTITUTE($AB144,\"{\",CHAR(160),IT$1))+1),\"\")","v":""},{"$f":"IFERROR(MID($AB144,FIND(CHAR(160),SUBSTITUTE($AB144,\"{\",CHAR(160),IU$1)),FIND(CHAR(160),SUBSTITUTE($AB144,\"}\",CHAR(160),IU$1))-FIND(CHAR(160),SUBSTITUTE($AB144,\"{\",CHAR(160),IU$1))+1),\"\")","v":""},{"$f":"IFERROR(MID($AB144,FIND(CHAR(160),SUBSTITUTE($AB144,\"{\",CHAR(160),IV$1)),FIND(CHAR(160),SUBSTITUTE($AB144,\"}\",CHAR(160),IV$1))-FIND(CHAR(160),SUBSTITUTE($AB144,\"{\",CHAR(160),IV$1))+1),\"\")","v":""},{"$f":"IFERROR(MID($AB144,FIND(CHAR(160),SUBSTITUTE($AB144,\"{\",CHAR(160),IW$1)),FIND(CHAR(160),SUBSTITUTE($AB144,\"}\",CHAR(160),IW$1))-FIND(CHAR(160),SUBSTITUTE($AB144,\"{\",CHAR(160),IW$1))+1),\"\")","v":""},{"$f":"IFERROR(MID($AB144,FIND(CHAR(160),SUBSTITUTE($AB144,\"{\",CHAR(160),IX$1)),FIND(CHAR(160),SUBSTITUTE($AB144,\"}\",CHAR(160),IX$1))-FIND(CHAR(160),SUBSTITUTE($AB144,\"{\",CHAR(160),IX$1))+1),\"\")","v":""},null,{"$f":"10-COUNTIF(DU144:ED144,\"\")","v":4}]
["C&I Refrigeration Solutions","R20 Door Heater Controls for Cooler or Freezer","R20","2021-07-01","2022-06-30","Per Measure",300,0,"Per Measure",150,0,"2020-11-01","2022-06-30","Calculated","{Measure:Quantity} * {kW per Door} * {Number of Doors} * {Temperature} * 8760 * {Percent Annual Energy Savings}",1E-4,null,"{Measure:Quantity} * {kW per Door} * {Number of Doors} *  {Temperature} ",null,null,"{Measure:Quantity} * {kW per Door} * {Number of Doors} *  {Temperature}  * {Factor:WinterCF}","{Measure:Quantity} * {kW per Door} * {Number of Doors} *  {Temperature} * {Factor:SummerCF}",null,null,null,null,null,null,"2020-11-01","2022-06-30",10,0.73699999999999999,0.95899999999999996,0.47599999999999998,0.52400000000000002,0,0,1,1.1220000000000001,1,0.52,1.6E-2,null,{"$f":"DU145","v":"{Number of Doors}"},1,{"$f":"DV145","v":"{Temperature}"},7.4999999999999997E-2,{"$f":"DW145","v":"{Percent Annual Energy Savings}"},1,{"$f":"DX145","v":"{Measure:Quantity}"},1.1000000000000001,{"$f":"DY145","v":"{kW per Door}"},0.74,{"$f":"DZ145","v":""},null,{"$f":"EA145","v":""},null,{"$f":"EB145","v":""},null,{"$f":"EC145","v":""},null,{"$f":"ED145","v":""},null,{"$f":"AS145 * AU145 * AW145 * AY145 * 8760 * BA145","v":534.798},{"$f":"0.0001","v":1E-4},0,{"$f":"AS145 * AU145 * AW145 *  AY145","v":8.2500000000000004E-2},0,0,{"$f":"AS145 * AU145 * AW145 *  AY145  * AF145","v":6.0802500000000002E-2},{"$f":"AS145 * AU145 * AW145 *  AY145 * AG145","v":7.9117500000000007E-2},0,0,0,0,0,0,null,"Res","Default DR",{"$f":"Benefits(BL145,BR145,BS145,BT145,BU145,BV145,BW145,BX145,BY145,BZ145,AE145,AH145,AI145,AJ145,AK145,AL145,AM145,AN145,AO145,AP145,CA145,CB145)","v":625.06898227883244},267.71726250195843,0,0,0,0,0,0,0,{"$f":"SUMPRODUCT(CC145:CK145,--(CC145:CK145>0))","v":892.78624478079087},{"$f":"-SUMPRODUCT(CC145:CK145,--(CC145:CK145<0))","v":0},null,{"$f":"300","v":300},null,null,{"$f":"CM145+CO145","v":300},{"$f":"IF(NetOrGross=\"Net\",(1-AO145+AP145),1)","v":1},{"$f":"(SUMPRODUCT(CC145:CJ145,--(CC145:CJ145>0))+CN145)*CS145/((-SUMPRODUCT(CC145:CJ145,--(CC145:CJ145<0))+MAX(CO145,CV145)+CP145+CQ145)*CS145+IF(FRIncentives=\"Yes\",CV145*(1-CS145),0))","v":2.9759541492693029},1,{"$f":"150","v":150},null,"Electric","y",null,{"$f":"IF(F145=\"Manual Entry\",\"Manual\",IF(G145=\"\",0,\"X=\"&SUBSTITUTE(SUBSTITUTE(SUBSTITUTE(SUBSTITUTE(SUBSTITUTE(SUBSTITUTE(SUBSTITUTE(SUBSTITUTE(SUBSTITUTE(SUBSTITUTE(SUBSTITUTE(SUBSTITUTE(G145,$ED145,$ED$2&ROW($ED145)),$EC145,$EC$2&ROW($EC145)),$EB145,$EB$2&ROW($EB145)),$EA145,$EA$2&ROW($EA145)),$DZ145,$DZ$2&ROW($DZ145)),$DY145,$DY$2&ROW($DY145)),$DX145,$DX$2&ROW($DX145)),$DW145,$DW$2&ROW($DW145)),$DV145,$DV$2&ROW($DV145)),$DU145,$DU$2&ROW($DU145)),$DT145,$DT$2&ROW($DT145)),$DS145,$DS$2&ROW($DS145))))","v":"X=300"},{"$f":"IF(I145=\"Manual Entry\",\"Manual\",IF(J145=\"\",0,\"X=\"&SUBSTITUTE(SUBSTITUTE(SUBSTITUTE(SUBSTITUTE(SUBSTITUTE(SUBSTITUTE(SUBSTITUTE(SUBSTITUTE(SUBSTITUTE(SUBSTITUTE(SUBSTITUTE(SUBSTITUTE(J145,$ED145,$ED$2&ROW($ED145)),$EC145,$EC$2&ROW($EC145)),$EB145,$EB$2&ROW($EB145)),$EA145,$EA$2&ROW($EA145)),$DZ145,$DZ$2&ROW($DZ145)),$DY145,$DY$2&ROW($DY145)),$DX145,$DX$2&ROW($DX145)),$DW145,$DW$2&ROW($DW145)),$DV145,$DV$2&ROW($DV145)),$DU145,$DU$2&ROW($DU145)),$DT145,$DT$2&ROW($DT145)),$DS145,$DS$2&ROW($DS145))))","v":"X=150"},{"$f":"IF(O145=\"\",0,\"X=\"&SUBSTITUTE(SUBSTITUTE(SUBSTITUTE(SUBSTITUTE(SUBSTITUTE(SUBSTITUTE(SUBSTITUTE(SUBSTITUTE(SUBSTITUTE(SUBSTITUTE(SUBSTITUTE(SUBSTITUTE(O145,$ED145,$ED$2&ROW($ED145)),$EC145,$EC$2&ROW($EC145)),$EB145,$EB$2&ROW($EB145)),$EA145,$EA$2&ROW($EA145)),$DZ145,$DZ$2&ROW($DZ145)),$DY145,$DY$2&ROW($DY145)),$DX145,$DX$2&ROW($DX145)),$DW145,$DW$2&ROW($DW145)),$DV145,$DV$2&ROW($DV145)),$DU145,$DU$2&ROW($DU145)),$DT145,$DT$2&ROW($DT145)),$DS145,$DS$2&ROW($DS145)))","v":"X=AY145 * BA145 * AS145 * AU145 * 8760 * AW145"},{"$f":"IF(P145=\"\",0,\"X=\"&SUBSTITUTE(SUBSTITUTE(SUBSTITUTE(SUBSTITUTE(SUBSTITUTE(SUBSTITUTE(SUBSTITUTE(SUBSTITUTE(SUBSTITUTE(SUBSTITUTE(SUBSTITUTE(SUBSTITUTE(P145,$ED145,$ED$2&ROW($ED145)),$EC145,$EC$2&ROW($EC145)),$EB145,$EB$2&ROW($EB145)),$EA145,$EA$2&ROW($EA145)),$DZ145,$DZ$2&ROW($DZ145)),$DY145,$DY$2&ROW($DY145)),$DX145,$DX$2&ROW($DX145)),$DW145,$DW$2&ROW($DW145)),$DV145,$DV$2&ROW($DV145)),$DU145,$DU$2&ROW($DU145)),$DT145,$DT$2&ROW($DT145)),$DS145,$DS$2&ROW($DS145)))","v":"X=0.0001"},{"$f":"IF(Q145=\"\",0,\"X=\"&SUBSTITUTE(SUBSTITUTE(SUBSTITUTE(SUBSTITUTE(SUBSTITUTE(SUBSTITUTE(SUBSTITUTE(SUBSTITUTE(SUBSTITUTE(SUBSTITUTE(SUBSTITUTE(SUBSTITUTE(Q145,$ED145,$ED$2&ROW($ED145)),$EC145,$EC$2&ROW($EC145)),$EB145,$EB$2&ROW($EB145)),$EA145,$EA$2&ROW($EA145)),$DZ145,$DZ$2&ROW($DZ145)),$DY145,$DY$2&ROW($DY145)),$DX145,$DX$2&ROW($DX145)),$DW145,$DW$2&ROW($DW145)),$DV145,$DV$2&ROW($DV145)),$DU145,$DU$2&ROW($DU145)),$DT145,$DT$2&ROW($DT145)),$DS145,$DS$2&ROW($DS145)))","v":0},{"$f":"IF(R145=\"\",0,\"X=\"&SUBSTITUTE(SUBSTITUTE(SUBSTITUTE(SUBSTITUTE(SUBSTITUTE(SUBSTITUTE(SUBSTITUTE(SUBSTITUTE(SUBSTITUTE(SUBSTITUTE(SUBSTITUTE(SUBSTITUTE(R145,$ED145,$ED$2&ROW($ED145)),$EC145,$EC$2&ROW($EC145)),$EB145,$EB$2&ROW($EB145)),$EA145,$EA$2&ROW($EA145)),$DZ145,$DZ$2&ROW($DZ145)),$DY145,$DY$2&ROW($DY145)),$DX145,$DX$2&ROW($DX145)),$DW145,$DW$2&ROW($DW145)),$DV145,$DV$2&ROW($DV145)),$DU145,$DU$2&ROW($DU145)),$DT145,$DT$2&ROW($DT145)),$DS145,$DS$2&ROW($DS145)))","v":"X=AY145 * BA145 * AS145 *  AU145 "},{"$f":"IF(S145=\"\",0,\"X=\"&SUBSTITUTE(SUBSTITUTE(SUBSTITUTE(SUBSTITUTE(SUBSTITUTE(SUBSTITUTE(SUBSTITUTE(SUBSTITUTE(SUBSTITUTE(SUBSTITUTE(SUBSTITUTE(SUBSTITUTE(S145,$ED145,$ED$2&ROW($ED145)),$EC145,$EC$2&ROW($EC145)),$EB145,$EB$2&ROW($EB145)),$EA145,$EA$2&ROW($EA145)),$DZ145,$DZ$2&ROW($DZ145)),$DY145,$DY$2&ROW($DY145)),$DX145,$DX$2&ROW($DX145)),$DW145,$DW$2&ROW($DW145)),$DV145,$DV$2&ROW($DV145)),$DU145,$DU$2&ROW($DU145)),$DT145,$DT$2&ROW($DT145)),$DS145,$DS$2&ROW($DS145)))","v":0},{"$f":"IF(T145=\"\",0,\"X=\"&SUBSTITUTE(SUBSTITUTE(SUBSTITUTE(SUBSTITUTE(SUBSTITUTE(SUBSTITUTE(SUBSTITUTE(SUBSTITUTE(SUBSTITUTE(SUBSTITUTE(SUBSTITUTE(SUBSTITUTE(T145,$ED145,$ED$2&ROW($ED145)),$EC145,$EC$2&ROW($EC145)),$EB145,$EB$2&ROW($EB145)),$EA145,$EA$2&ROW($EA145)),$DZ145,$DZ$2&ROW($DZ145)),$DY145,$DY$2&ROW($DY145)),$DX145,$DX$2&ROW($DX145)),$DW145,$DW$2&ROW($DW145)),$DV145,$DV$2&ROW($DV145)),$DU145,$DU$2&ROW($DU145)),$DT145,$DT$2&ROW($DT145)),$DS145,$DS$2&ROW($DS145)))","v":0},{"$f":"IF(U145=\"\",0,\"X=\"&SUBSTITUTE(SUBSTITUTE(SUBSTITUTE(SUBSTITUTE(SUBSTITUTE(SUBSTITUTE(SUBSTITUTE(SUBSTITUTE(SUBSTITUTE(SUBSTITUTE(SUBSTITUTE(SUBSTITUTE(U145,$ED145,$ED$2&ROW($ED145)),$EC145,$EC$2&ROW($EC145)),$EB145,$EB$2&ROW($EB145)),$EA145,$EA$2&ROW($EA145)),$DZ145,$DZ$2&ROW($DZ145)),$DY145,$DY$2&ROW($DY145)),$DX145,$DX$2&ROW($DX145)),$DW145,$DW$2&ROW($DW145)),$DV145,$DV$2&ROW($DV145)),$DU145,$DU$2&ROW($DU145)),$DT145,$DT$2&ROW($DT145)),$DS145,$DS$2&ROW($DS145)))","v":"X=AY145 * BA145 * AS145 *  AU145  * AF145"},{"$f":"IF(V145=\"\",0,\"X=\"&SUBSTITUTE(SUBSTITUTE(SUBSTITUTE(SUBSTITUTE(SUBSTITUTE(SUBSTITUTE(SUBSTITUTE(SUBSTITUTE(SUBSTITUTE(SUBSTITUTE(SUBSTITUTE(SUBSTITUTE(V145,$ED145,$ED$2&ROW($ED145)),$EC145,$EC$2&ROW($EC145)),$EB145,$EB$2&ROW($EB145)),$EA145,$EA$2&ROW($EA145)),$DZ145,$DZ$2&ROW($DZ145)),$DY145,$DY$2&ROW($DY145)),$DX145,$DX$2&ROW($DX145)),$DW145,$DW$2&ROW($DW145)),$DV145,$DV$2&ROW($DV145)),$DU145,$DU$2&ROW($DU145)),$DT145,$DT$2&ROW($DT145)),$DS145,$DS$2&ROW($DS145)))","v":"X=AY145 * BA145 * AS145 *  AU145 * AG145"},{"$f":"IF(W145=\"\",0,\"X=\"&SUBSTITUTE(SUBSTITUTE(SUBSTITUTE(SUBSTITUTE(SUBSTITUTE(SUBSTITUTE(SUBSTITUTE(SUBSTITUTE(SUBSTITUTE(SUBSTITUTE(SUBSTITUTE(SUBSTITUTE(W145,$ED145,$ED$2&ROW($ED145)),$EC145,$EC$2&ROW($EC145)),$EB145,$EB$2&ROW($EB145)),$EA145,$EA$2&ROW($EA145)),$DZ145,$DZ$2&ROW($DZ145)),$DY145,$DY$2&ROW($DY145)),$DX145,$DX$2&ROW($DX145)),$DW145,$DW$2&ROW($DW145)),$DV145,$DV$2&ROW($DV145)),$DU145,$DU$2&ROW($DU145)),$DT145,$DT$2&ROW($DT145)),$DS145,$DS$2&ROW($DS145)))","v":0},{"$f":"IF(X145=\"\",0,\"X=\"&SUBSTITUTE(SUBSTITUTE(SUBSTITUTE(SUBSTITUTE(SUBSTITUTE(SUBSTITUTE(SUBSTITUTE(SUBSTITUTE(SUBSTITUTE(SUBSTITUTE(SUBSTITUTE(SUBSTITUTE(X145,$ED145,$ED$2&ROW($ED145)),$EC145,$EC$2&ROW($EC145)),$EB145,$EB$2&ROW($EB145)),$EA145,$EA$2&ROW($EA145)),$DZ145,$DZ$2&ROW($DZ145)),$DY145,$DY$2&ROW($DY145)),$DX145,$DX$2&ROW($DX145)),$DW145,$DW$2&ROW($DW145)),$DV145,$DV$2&ROW($DV145)),$DU145,$DU$2&ROW($DU145)),$DT145,$DT$2&ROW($DT145)),$DS145,$DS$2&ROW($DS145)))","v":0},{"$f":"IF(Y145=\"\",0,\"X=\"&SUBSTITUTE(SUBSTITUTE(SUBSTITUTE(SUBSTITUTE(SUBSTITUTE(SUBSTITUTE(SUBSTITUTE(SUBSTITUTE(SUBSTITUTE(SUBSTITUTE(SUBSTITUTE(SUBSTITUTE(Y145,$ED145,$ED$2&ROW($ED145)),$EC145,$EC$2&ROW($EC145)),$EB145,$EB$2&ROW($EB145)),$EA145,$EA$2&ROW($EA145)),$DZ145,$DZ$2&ROW($DZ145)),$DY145,$DY$2&ROW($DY145)),$DX145,$DX$2&ROW($DX145)),$DW145,$DW$2&ROW($DW145)),$DV145,$DV$2&ROW($DV145)),$DU145,$DU$2&ROW($DU145)),$DT145,$DT$2&ROW($DT145)),$DS145,$DS$2&ROW($DS145)))","v":0},{"$f":"IF(Z145=\"\",0,\"X=\"&SUBSTITUTE(SUBSTITUTE(SUBSTITUTE(SUBSTITUTE(SUBSTITUTE(SUBSTITUTE(SUBSTITUTE(SUBSTITUTE(SUBSTITUTE(SUBSTITUTE(SUBSTITUTE(SUBSTITUTE(Z145,$ED145,$ED$2&ROW($ED145)),$EC145,$EC$2&ROW($EC145)),$EB145,$EB$2&ROW($EB145)),$EA145,$EA$2&ROW($EA145)),$DZ145,$DZ$2&ROW($DZ145)),$DY145,$DY$2&ROW($DY145)),$DX145,$DX$2&ROW($DX145)),$DW145,$DW$2&ROW($DW145)),$DV145,$DV$2&ROW($DV145)),$DU145,$DU$2&ROW($DU145)),$DT145,$DT$2&ROW($DT145)),$DS145,$DS$2&ROW($DS145)))","v":0},{"$f":"IF(AA145=\"\",0,\"X=\"&SUBSTITUTE(SUBSTITUTE(SUBSTITUTE(SUBSTITUTE(SUBSTITUTE(SUBSTITUTE(SUBSTITUTE(SUBSTITUTE(SUBSTITUTE(SUBSTITUTE(SUBSTITUTE(SUBSTITUTE(AA145,$ED145,$ED$2&ROW($ED145)),$EC145,$EC$2&ROW($EC145)),$EB145,$EB$2&ROW($EB145)),$EA145,$EA$2&ROW($EA145)),$DZ145,$DZ$2&ROW($DZ145)),$DY145,$DY$2&ROW($DY145)),$DX145,$DX$2&ROW($DX145)),$DW145,$DW$2&ROW($DW145)),$DV145,$DV$2&ROW($DV145)),$DU145,$DU$2&ROW($DU145)),$DT145,$DT$2&ROW($DT145)),$DS145,$DS$2&ROW($DS145)))","v":0},{"$f":"IF(AB145=\"\",0,\"X=\"&SUBSTITUTE(SUBSTITUTE(SUBSTITUTE(SUBSTITUTE(SUBSTITUTE(SUBSTITUTE(SUBSTITUTE(SUBSTITUTE(SUBSTITUTE(SUBSTITUTE(SUBSTITUTE(SUBSTITUTE(AB145,$ED145,$ED$2&ROW($ED145)),$EC145,$EC$2&ROW($EC145)),$EB145,$EB$2&ROW($EB145)),$EA145,$EA$2&ROW($EA145)),$DZ145,$DZ$2&ROW($DZ145)),$DY145,$DY$2&ROW($DY145)),$DX145,$DX$2&ROW($DX145)),$DW145,$DW$2&ROW($DW145)),$DV145,$DV$2&ROW($DV145)),$DU145,$DU$2&ROW($DU145)),$DT145,$DT$2&ROW($DT145)),$DS145,$DS$2&ROW($DS145)))","v":0},null,null,"{Factor:WinterCF}","{Factor:SummerCF}",{"$f":"IFERROR(INDEX($EG145:$IV145,MATCH(0,COUNTIF($DR145:DT145,$EG145:$IV145),0)),\"\")","v":"{Number of Doors}"},{"$f":"IFERROR(INDEX($EG145:$IV145,MATCH(0,COUNTIF($DR145:DU145,$EG145:$IV145),0)),\"\")","v":"{Temperature}"},{"$f":"IFERROR(INDEX($EG145:$IV145,MATCH(0,COUNTIF($DR145:DV145,$EG145:$IV145),0)),\"\")","v":"{Percent Annual Energy Savings}"},{"$f":"IFERROR(INDEX($EG145:$IV145,MATCH(0,COUNTIF($DR145:DW145,$EG145:$IV145),0)),\"\")","v":"{Measure:Quantity}"},{"$f":"IFERROR(INDEX($EG145:$IV145,MATCH(0,COUNTIF($DR145:DX145,$EG145:$IV145),0)),\"\")","v":"{kW per Door}"},{"$f":"IFERROR(INDEX($EG145:$IV145,MATCH(0,COUNTIF($DR145:DY145,$EG145:$IV145),0)),\"\")","v":""},{"$f":"IFERROR(INDEX($EG145:$IV145,MATCH(0,COUNTIF($DR145:DZ145,$EG145:$IV145),0)),\"\")","v":""},{"$f":"IFERROR(INDEX($EG145:$IV145,MATCH(0,COUNTIF($DR145:EA145,$EG145:$IV145),0)),\"\")","v":""},{"$f":"IFERROR(INDEX($EG145:$IV145,MATCH(0,COUNTIF($DR145:EB145,$EG145:$IV145),0)),\"\")","v":""},{"$f":"IFERROR(INDEX($EG145:$IV145,MATCH(0,COUNTIF($DR145:EC145,$EG145:$IV145),0)),\"\")","v":""},null,null,{"$f":"IFERROR(MID($G145,FIND(CHAR(160),SUBSTITUTE($G145,\"{\",CHAR(160),EG$1)),FIND(CHAR(160),SUBSTITUTE($G145,\"}\",CHAR(160),EG$1))-FIND(CHAR(160),SUBSTITUTE($G145,\"{\",CHAR(160),EG$1))+1),\"\")","v":""},{"$f":"IFERROR(MID($G145,FIND(CHAR(160),SUBSTITUTE($G145,\"{\",CHAR(160),EH$1)),FIND(CHAR(160),SUBSTITUTE($G145,\"}\",CHAR(160),EH$1))-FIND(CHAR(160),SUBSTITUTE($G145,\"{\",CHAR(160),EH$1))+1),\"\")","v":""},{"$f":"IFERROR(MID($G145,FIND(CHAR(160),SUBSTITUTE($G145,\"{\",CHAR(160),EI$1)),FIND(CHAR(160),SUBSTITUTE($G145,\"}\",CHAR(160),EI$1))-FIND(CHAR(160),SUBSTITUTE($G145,\"{\",CHAR(160),EI$1))+1),\"\")","v":""},{"$f":"IFERROR(MID($G145,FIND(CHAR(160),SUBSTITUTE($G145,\"{\",CHAR(160),EJ$1)),FIND(CHAR(160),SUBSTITUTE($G145,\"}\",CHAR(160),EJ$1))-FIND(CHAR(160),SUBSTITUTE($G145,\"{\",CHAR(160),EJ$1))+1),\"\")","v":""},{"$f":"IFERROR(MID($G145,FIND(CHAR(160),SUBSTITUTE($G145,\"{\",CHAR(160),EK$1)),FIND(CHAR(160),SUBSTITUTE($G145,\"}\",CHAR(160),EK$1))-FIND(CHAR(160),SUBSTITUTE($G145,\"{\",CHAR(160),EK$1))+1),\"\")","v":""},{"$f":"IFERROR(MID($G145,FIND(CHAR(160),SUBSTITUTE($G145,\"{\",CHAR(160),EL$1)),FIND(CHAR(160),SUBSTITUTE($G145,\"}\",CHAR(160),EL$1))-FIND(CHAR(160),SUBSTITUTE($G145,\"{\",CHAR(160),EL$1))+1),\"\")","v":""},{"$f":"IFERROR(MID($G145,FIND(CHAR(160),SUBSTITUTE($G145,\"{\",CHAR(160),EM$1)),FIND(CHAR(160),SUBSTITUTE($G145,\"}\",CHAR(160),EM$1))-FIND(CHAR(160),SUBSTITUTE($G145,\"{\",CHAR(160),EM$1))+1),\"\")","v":""},{"$f":"IFERROR(MID($G145,FIND(CHAR(160),SUBSTITUTE($G145,\"{\",CHAR(160),EN$1)),FIND(CHAR(160),SUBSTITUTE($G145,\"}\",CHAR(160),EN$1))-FIND(CHAR(160),SUBSTITUTE($G145,\"{\",CHAR(160),EN$1))+1),\"\")","v":""},{"$f":"IFERROR(MID($G145,FIND(CHAR(160),SUBSTITUTE($G145,\"{\",CHAR(160),EO$1)),FIND(CHAR(160),SUBSTITUTE($G145,\"}\",CHAR(160),EO$1))-FIND(CHAR(160),SUBSTITUTE($G145,\"{\",CHAR(160),EO$1))+1),\"\")","v":""},{"$f":"IFERROR(MID($G145,FIND(CHAR(160),SUBSTITUTE($G145,\"{\",CHAR(160),EP$1)),FIND(CHAR(160),SUBSTITUTE($G145,\"}\",CHAR(160),EP$1))-FIND(CHAR(160),SUBSTITUTE($G145,\"{\",CHAR(160),EP$1))+1),\"\")","v":""},{"$f":"IFERROR(MID($J145,FIND(CHAR(160),SUBSTITUTE($J145,\"{\",CHAR(160),EQ$1)),FIND(CHAR(160),SUBSTITUTE($J145,\"}\",CHAR(160),EQ$1))-FIND(CHAR(160),SUBSTITUTE($J145,\"{\",CHAR(160),EQ$1))+1),\"\")","v":""},{"$f":"IFERROR(MID($J145,FIND(CHAR(160),SUBSTITUTE($J145,\"{\",CHAR(160),ER$1)),FIND(CHAR(160),SUBSTITUTE($J145,\"}\",CHAR(160),ER$1))-FIND(CHAR(160),SUBSTITUTE($J145,\"{\",CHAR(160),ER$1))+1),\"\")","v":""},{"$f":"IFERROR(MID($J145,FIND(CHAR(160),SUBSTITUTE($J145,\"{\",CHAR(160),ES$1)),FIND(CHAR(160),SUBSTITUTE($J145,\"}\",CHAR(160),ES$1))-FIND(CHAR(160),SUBSTITUTE($J145,\"{\",CHAR(160),ES$1))+1),\"\")","v":""},{"$f":"IFERROR(MID($J145,FIND(CHAR(160),SUBSTITUTE($J145,\"{\",CHAR(160),ET$1)),FIND(CHAR(160),SUBSTITUTE($J145,\"}\",CHAR(160),ET$1))-FIND(CHAR(160),SUBSTITUTE($J145,\"{\",CHAR(160),ET$1))+1),\"\")","v":""},{"$f":"IFERROR(MID($J145,FIND(CHAR(160),SUBSTITUTE($J145,\"{\",CHAR(160),EU$1)),FIND(CHAR(160),SUBSTITUTE($J145,\"}\",CHAR(160),EU$1))-FIND(CHAR(160),SUBSTITUTE($J145,\"{\",CHAR(160),EU$1))+1),\"\")","v":""},{"$f":"IFERROR(MID($J145,FIND(CHAR(160),SUBSTITUTE($J145,\"{\",CHAR(160),EV$1)),FIND(CHAR(160),SUBSTITUTE($J145,\"}\",CHAR(160),EV$1))-FIND(CHAR(160),SUBSTITUTE($J145,\"{\",CHAR(160),EV$1))+1),\"\")","v":""},{"$f":"IFERROR(MID($J145,FIND(CHAR(160),SUBSTITUTE($J145,\"{\",CHAR(160),EW$1)),FIND(CHAR(160),SUBSTITUTE($J145,\"}\",CHAR(160),EW$1))-FIND(CHAR(160),SUBSTITUTE($J145,\"{\",CHAR(160),EW$1))+1),\"\")","v":""},{"$f":"IFERROR(MID($J145,FIND(CHAR(160),SUBSTITUTE($J145,\"{\",CHAR(160),EX$1)),FIND(CHAR(160),SUBSTITUTE($J145,\"}\",CHAR(160),EX$1))-FIND(CHAR(160),SUBSTITUTE($J145,\"{\",CHAR(160),EX$1))+1),\"\")","v":""},{"$f":"IFERROR(MID($J145,FIND(CHAR(160),SUBSTITUTE($J145,\"{\",CHAR(160),EY$1)),FIND(CHAR(160),SUBSTITUTE($J145,\"}\",CHAR(160),EY$1))-FIND(CHAR(160),SUBSTITUTE($J145,\"{\",CHAR(160),EY$1))+1),\"\")","v":""},{"$f":"IFERROR(MID($J145,FIND(CHAR(160),SUBSTITUTE($J145,\"{\",CHAR(160),EZ$1)),FIND(CHAR(160),SUBSTITUTE($J145,\"}\",CHAR(160),EZ$1))-FIND(CHAR(160),SUBSTITUTE($J145,\"{\",CHAR(160),EZ$1))+1),\"\")","v":""},{"$f":"IFERROR(MID($J145,FIND(CHAR(160),SUBSTITUTE($J145,\"{\",CHAR(160),FA$1)),FIND(CHAR(160),SUBSTITUTE($J145,\"}\",CHAR(160),FA$1))-FIND(CHAR(160),SUBSTITUTE($J145,\"{\",CHAR(160),FA$1))+1),\"\")","v":""},{"$f":"IFERROR(MID($J145,FIND(CHAR(160),SUBSTITUTE($J145,\"{\",CHAR(160),FB$1)),FIND(CHAR(160),SUBSTITUTE($J145,\"}\",CHAR(160),FB$1))-FIND(CHAR(160),SUBSTITUTE($J145,\"{\",CHAR(160),FB$1))+1),\"\")","v":""},{"$f":"IFERROR(MID($O145,FIND(CHAR(160),SUBSTITUTE($O145,\"{\",CHAR(160),FC$1)),FIND(CHAR(160),SUBSTITUTE($O145,\"}\",CHAR(160),FC$1))-FIND(CHAR(160),SUBSTITUTE($O145,\"{\",CHAR(160),FC$1))+1),\"\")","v":"{Number of Doors}"},{"$f":"IFERROR(MID($O145,FIND(CHAR(160),SUBSTITUTE($O145,\"{\",CHAR(160),FD$1)),FIND(CHAR(160),SUBSTITUTE($O145,\"}\",CHAR(160),FD$1))-FIND(CHAR(160),SUBSTITUTE($O145,\"{\",CHAR(160),FD$1))+1),\"\")","v":"{Temperature}"},{"$f":"IFERROR(MID($O145,FIND(CHAR(160),SUBSTITUTE($O145,\"{\",CHAR(160),FE$1)),FIND(CHAR(160),SUBSTITUTE($O145,\"}\",CHAR(160),FE$1))-FIND(CHAR(160),SUBSTITUTE($O145,\"{\",CHAR(160),FE$1))+1),\"\")","v":"{Percent Annual Energy Savings}"},{"$f":"IFERROR(MID($O145,FIND(CHAR(160),SUBSTITUTE($O145,\"{\",CHAR(160),FF$1)),FIND(CHAR(160),SUBSTITUTE($O145,\"}\",CHAR(160),FF$1))-FIND(CHAR(160),SUBSTITUTE($O145,\"{\",CHAR(160),FF$1))+1),\"\")","v":""},{"$f":"IFERROR(MID($O145,FIND(CHAR(160),SUBSTITUTE($O145,\"{\",CHAR(160),FG$1)),FIND(CHAR(160),SUBSTITUTE($O145,\"}\",CHAR(160),FG$1))-FIND(CHAR(160),SUBSTITUTE($O145,\"{\",CHAR(160),FG$1))+1),\"\")","v":""},{"$f":"IFERROR(MID($O145,FIND(CHAR(160),SUBSTITUTE($O145,\"{\",CHAR(160),FH$1)),FIND(CHAR(160),SUBSTITUTE($O145,\"}\",CHAR(160),FH$1))-FIND(CHAR(160),SUBSTITUTE($O145,\"{\",CHAR(160),FH$1))+1),\"\")","v":""},{"$f":"IFERROR(MID($O145,FIND(CHAR(160),SUBSTITUTE($O145,\"{\",CHAR(160),FI$1)),FIND(CHAR(160),SUBSTITUTE($O145,\"}\",CHAR(160),FI$1))-FIND(CHAR(160),SUBSTITUTE($O145,\"{\",CHAR(160),FI$1))+1),\"\")","v":""},{"$f":"IFERROR(MID($O145,FIND(CHAR(160),SUBSTITUTE($O145,\"{\",CHAR(160),FJ$1)),FIND(CHAR(160),SUBSTITUTE($O145,\"}\",CHAR(160),FJ$1))-FIND(CHAR(160),SUBSTITUTE($O145,\"{\",CHAR(160),FJ$1))+1),\"\")","v":""},{"$f":"IFERROR(MID($O145,FIND(CHAR(160),SUBSTITUTE($O145,\"{\",CHAR(160),FK$1)),FIND(CHAR(160),SUBSTITUTE($O145,\"}\",CHAR(160),FK$1))-FIND(CHAR(160),SUBSTITUTE($O145,\"{\",CHAR(160),FK$1))+1),\"\")","v":"{Measure:Quantity}"},{"$f":"IFERROR(MID($O145,FIND(CHAR(160),SUBSTITUTE($O145,\"{\",CHAR(160),FL$1)),FIND(CHAR(160),SUBSTITUTE($O145,\"}\",CHAR(160),FL$1))-FIND(CHAR(160),SUBSTITUTE($O145,\"{\",CHAR(160),FL$1))+1),\"\")","v":"{kW per Door}"},{"$f":"IFERROR(MID($R145,FIND(CHAR(160),SUBSTITUTE($R145,\"{\",CHAR(160),FM$1)),FIND(CHAR(160),SUBSTITUTE($R145,\"}\",CHAR(160),FM$1))-FIND(CHAR(160),SUBSTITUTE($R145,\"{\",CHAR(160),FM$1))+1),\"\")","v":"{Number of Doors}"},{"$f":"IFERROR(MID($R145,FIND(CHAR(160),SUBSTITUTE($R145,\"{\",CHAR(160),FN$1)),FIND(CHAR(160),SUBSTITUTE($R145,\"}\",CHAR(160),FN$1))-FIND(CHAR(160),SUBSTITUTE($R145,\"{\",CHAR(160),FN$1))+1),\"\")","v":"{Temperature}"},{"$f":"IFERROR(MID($R145,FIND(CHAR(160),SUBSTITUTE($R145,\"{\",CHAR(160),FO$1)),FIND(CHAR(160),SUBSTITUTE($R145,\"}\",CHAR(160),FO$1))-FIND(CHAR(160),SUBSTITUTE($R145,\"{\",CHAR(160),FO$1))+1),\"\")","v":""},{"$f":"IFERROR(MID($R145,FIND(CHAR(160),SUBSTITUTE($R145,\"{\",CHAR(160),FP$1)),FIND(CHAR(160),SUBSTITUTE($R145,\"}\",CHAR(160),FP$1))-FIND(CHAR(160),SUBSTITUTE($R145,\"{\",CHAR(160),FP$1))+1),\"\")","v":""},{"$f":"IFERROR(MID($R145,FIND(CHAR(160),SUBSTITUTE($R145,\"{\",CHAR(160),FQ$1)),FIND(CHAR(160),SUBSTITUTE($R145,\"}\",CHAR(160),FQ$1))-FIND(CHAR(160),SUBSTITUTE($R145,\"{\",CHAR(160),FQ$1))+1),\"\")","v":""},{"$f":"IFERROR(MID($R145,FIND(CHAR(160),SUBSTITUTE($R145,\"{\",CHAR(160),FR$1)),FIND(CHAR(160),SUBSTITUTE($R145,\"}\",CHAR(160),FR$1))-FIND(CHAR(160),SUBSTITUTE($R145,\"{\",CHAR(160),FR$1))+1),\"\")","v":""},{"$f":"IFERROR(MID($R145,FIND(CHAR(160),SUBSTITUTE($R145,\"{\",CHAR(160),FS$1)),FIND(CHAR(160),SUBSTITUTE($R145,\"}\",CHAR(160),FS$1))-FIND(CHAR(160),SUBSTITUTE($R145,\"{\",CHAR(160),FS$1))+1),\"\")","v":""},{"$f":"IFERROR(MID($R145,FIND(CHAR(160),SUBSTITUTE($R145,\"{\",CHAR(160),FT$1)),FIND(CHAR(160),SUBSTITUTE($R145,\"}\",CHAR(160),FT$1))-FIND(CHAR(160),SUBSTITUTE($R145,\"{\",CHAR(160),FT$1))+1),\"\")","v":""},{"$f":"IFERROR(MID($R145,FIND(CHAR(160),SUBSTITUTE($R145,\"{\",CHAR(160),FU$1)),FIND(CHAR(160),SUBSTITUTE($R145,\"}\",CHAR(160),FU$1))-FIND(CHAR(160),SUBSTITUTE($R145,\"{\",CHAR(160),FU$1))+1),\"\")","v":"{Measure:Quantity}"},{"$f":"IFERROR(MID($R145,FIND(CHAR(160),SUBSTITUTE($R145,\"{\",CHAR(160),FV$1)),FIND(CHAR(160),SUBSTITUTE($R145,\"}\",CHAR(160),FV$1))-FIND(CHAR(160),SUBSTITUTE($R145,\"{\",CHAR(160),FV$1))+1),\"\")","v":"{kW per Door}"},{"$f":"IFERROR(MID($U145,FIND(CHAR(160),SUBSTITUTE($U145,\"{\",CHAR(160),FW$1)),FIND(CHAR(160),SUBSTITUTE($U145,\"}\",CHAR(160),FW$1))-FIND(CHAR(160),SUBSTITUTE($U145,\"{\",CHAR(160),FW$1))+1),\"\")","v":"{Number of Doors}"},{"$f":"IFERROR(MID($U145,FIND(CHAR(160),SUBSTITUTE($U145,\"{\",CHAR(160),FX$1)),FIND(CHAR(160),SUBSTITUTE($U145,\"}\",CHAR(160),FX$1))-FIND(CHAR(160),SUBSTITUTE($U145,\"{\",CHAR(160),FX$1))+1),\"\")","v":"{Temperature}"},{"$f":"IFERROR(MID($U145,FIND(CHAR(160),SUBSTITUTE($U145,\"{\",CHAR(160),FY$1)),FIND(CHAR(160),SUBSTITUTE($U145,\"}\",CHAR(160),FY$1))-FIND(CHAR(160),SUBSTITUTE($U145,\"{\",CHAR(160),FY$1))+1),\"\")","v":"{Factor:WinterCF}"},{"$f":"IFERROR(MID($U145,FIND(CHAR(160),SUBSTITUTE($U145,\"{\",CHAR(160),FZ$1)),FIND(CHAR(160),SUBSTITUTE($U145,\"}\",CHAR(160),FZ$1))-FIND(CHAR(160),SUBSTITUTE($U145,\"{\",CHAR(160),FZ$1))+1),\"\")","v":""},{"$f":"IFERROR(MID($U145,FIND(CHAR(160),SUBSTITUTE($U145,\"{\",CHAR(160),GA$1)),FIND(CHAR(160),SUBSTITUTE($U145,\"}\",CHAR(160),GA$1))-FIND(CHAR(160),SUBSTITUTE($U145,\"{\",CHAR(160),GA$1))+1),\"\")","v":""},{"$f":"IFERROR(MID($U145,FIND(CHAR(160),SUBSTITUTE($U145,\"{\",CHAR(160),GB$1)),FIND(CHAR(160),SUBSTITUTE($U145,\"}\",CHAR(160),GB$1))-FIND(CHAR(160),SUBSTITUTE($U145,\"{\",CHAR(160),GB$1))+1),\"\")","v":""},{"$f":"IFERROR(MID($U145,FIND(CHAR(160),SUBSTITUTE($U145,\"{\",CHAR(160),GC$1)),FIND(CHAR(160),SUBSTITUTE($U145,\"}\",CHAR(160),GC$1))-FIND(CHAR(160),SUBSTITUTE($U145,\"{\",CHAR(160),GC$1))+1),\"\")","v":""},{"$f":"IFERROR(MID($U145,FIND(CHAR(160),SUBSTITUTE($U145,\"{\",CHAR(160),GD$1)),FIND(CHAR(160),SUBSTITUTE($U145,\"}\",CHAR(160),GD$1))-FIND(CHAR(160),SUBSTITUTE($U145,\"{\",CHAR(160),GD$1))+1),\"\")","v":""},{"$f":"IFERROR(MID($U145,FIND(CHAR(160),SUBSTITUTE($U145,\"{\",CHAR(160),GE$1)),FIND(CHAR(160),SUBSTITUTE($U145,\"}\",CHAR(160),GE$1))-FIND(CHAR(160),SUBSTITUTE($U145,\"{\",CHAR(160),GE$1))+1),\"\")","v":"{Measure:Quantity}"},{"$f":"IFERROR(MID($U145,FIND(CHAR(160),SUBSTITUTE($U145,\"{\",CHAR(160),GF$1)),FIND(CHAR(160),SUBSTITUTE($U145,\"}\",CHAR(160),GF$1))-FIND(CHAR(160),SUBSTITUTE($U145,\"{\",CHAR(160),GF$1))+1),\"\")","v":"{kW per Door}"},{"$f":"IFERROR(MID($V145,FIND(CHAR(160),SUBSTITUTE($V145,\"{\",CHAR(160),GG$1)),FIND(CHAR(160),SUBSTITUTE($V145,\"}\",CHAR(160),GG$1))-FIND(CHAR(160),SUBSTITUTE($V145,\"{\",CHAR(160),GG$1))+1),\"\")","v":"{Number of Doors}"},{"$f":"IFERROR(MID($V145,FIND(CHAR(160),SUBSTITUTE($V145,\"{\",CHAR(160),GH$1)),FIND(CHAR(160),SUBSTITUTE($V145,\"}\",CHAR(160),GH$1))-FIND(CHAR(160),SUBSTITUTE($V145,\"{\",CHAR(160),GH$1))+1),\"\")","v":"{Temperature}"},{"$f":"IFERROR(MID($V145,FIND(CHAR(160),SUBSTITUTE($V145,\"{\",CHAR(160),GI$1)),FIND(CHAR(160),SUBSTITUTE($V145,\"}\",CHAR(160),GI$1))-FIND(CHAR(160),SUBSTITUTE($V145,\"{\",CHAR(160),GI$1))+1),\"\")","v":"{Factor:SummerCF}"},{"$f":"IFERROR(MID($V145,FIND(CHAR(160),SUBSTITUTE($V145,\"{\",CHAR(160),GJ$1)),FIND(CHAR(160),SUBSTITUTE($V145,\"}\",CHAR(160),GJ$1))-FIND(CHAR(160),SUBSTITUTE($V145,\"{\",CHAR(160),GJ$1))+1),\"\")","v":""},{"$f":"IFERROR(MID($V145,FIND(CHAR(160),SUBSTITUTE($V145,\"{\",CHAR(160),GK$1)),FIND(CHAR(160),SUBSTITUTE($V145,\"}\",CHAR(160),GK$1))-FIND(CHAR(160),SUBSTITUTE($V145,\"{\",CHAR(160),GK$1))+1),\"\")","v":""},{"$f":"IFERROR(MID($V145,FIND(CHAR(160),SUBSTITUTE($V145,\"{\",CHAR(160),GL$1)),FIND(CHAR(160),SUBSTITUTE($V145,\"}\",CHAR(160),GL$1))-FIND(CHAR(160),SUBSTITUTE($V145,\"{\",CHAR(160),GL$1))+1),\"\")","v":""},{"$f":"IFERROR(MID($V145,FIND(CHAR(160),SUBSTITUTE($V145,\"{\",CHAR(160),GM$1)),FIND(CHAR(160),SUBSTITUTE($V145,\"}\",CHAR(160),GM$1))-FIND(CHAR(160),SUBSTITUTE($V145,\"{\",CHAR(160),GM$1))+1),\"\")","v":""},{"$f":"IFERROR(MID($V145,FIND(CHAR(160),SUBSTITUTE($V145,\"{\",CHAR(160),GN$1)),FIND(CHAR(160),SUBSTITUTE($V145,\"}\",CHAR(160),GN$1))-FIND(CHAR(160),SUBSTITUTE($V145,\"{\",CHAR(160),GN$1))+1),\"\")","v":""},{"$f":"IFERROR(MID($V145,FIND(CHAR(160),SUBSTITUTE($V145,\"{\",CHAR(160),GO$1)),FIND(CHAR(160),SUBSTITUTE($V145,\"}\",CHAR(160),GO$1))-FIND(CHAR(160),SUBSTITUTE($V145,\"{\",CHAR(160),GO$1))+1),\"\")","v":"{Measure:Quantity}"},{"$f":"IFERROR(MID($V145,FIND(CHAR(160),SUBSTITUTE($V145,\"{\",CHAR(160),GP$1)),FIND(CHAR(160),SUBSTITUTE($V145,\"}\",CHAR(160),GP$1))-FIND(CHAR(160),SUBSTITUTE($V145,\"{\",CHAR(160),GP$1))+1),\"\")","v":"{kW per Door}"},{"$f":"IFERROR(MID($W145,FIND(CHAR(160),SUBSTITUTE($W145,\"{\",CHAR(160),GQ$1)),FIND(CHAR(160),SUBSTITUTE($W145,\"}\",CHAR(160),GQ$1))-FIND(CHAR(160),SUBSTITUTE($W145,\"{\",CHAR(160),GQ$1))+1),\"\")","v":""},{"$f":"IFERROR(MID($W145,FIND(CHAR(160),SUBSTITUTE($W145,\"{\",CHAR(160),GR$1)),FIND(CHAR(160),SUBSTITUTE($W145,\"}\",CHAR(160),GR$1))-FIND(CHAR(160),SUBSTITUTE($W145,\"{\",CHAR(160),GR$1))+1),\"\")","v":""},{"$f":"IFERROR(MID($W145,FIND(CHAR(160),SUBSTITUTE($W145,\"{\",CHAR(160),GS$1)),FIND(CHAR(160),SUBSTITUTE($W145,\"}\",CHAR(160),GS$1))-FIND(CHAR(160),SUBSTITUTE($W145,\"{\",CHAR(160),GS$1))+1),\"\")","v":""},{"$f":"IFERROR(MID($W145,FIND(CHAR(160),SUBSTITUTE($W145,\"{\",CHAR(160),GT$1)),FIND(CHAR(160),SUBSTITUTE($W145,\"}\",CHAR(160),GT$1))-FIND(CHAR(160),SUBSTITUTE($W145,\"{\",CHAR(160),GT$1))+1),\"\")","v":""},{"$f":"IFERROR(MID($W145,FIND(CHAR(160),SUBSTITUTE($W145,\"{\",CHAR(160),GU$1)),FIND(CHAR(160),SUBSTITUTE($W145,\"}\",CHAR(160),GU$1))-FIND(CHAR(160),SUBSTITUTE($W145,\"{\",CHAR(160),GU$1))+1),\"\")","v":""},{"$f":"IFERROR(MID($W145,FIND(CHAR(160),SUBSTITUTE($W145,\"{\",CHAR(160),GV$1)),FIND(CHAR(160),SUBSTITUTE($W145,\"}\",CHAR(160),GV$1))-FIND(CHAR(160),SUBSTITUTE($W145,\"{\",CHAR(160),GV$1))+1),\"\")","v":""},{"$f":"IFERROR(MID($W145,FIND(CHAR(160),SUBSTITUTE($W145,\"{\",CHAR(160),GW$1)),FIND(CHAR(160),SUBSTITUTE($W145,\"}\",CHAR(160),GW$1))-FIND(CHAR(160),SUBSTITUTE($W145,\"{\",CHAR(160),GW$1))+1),\"\")","v":""},{"$f":"IFERROR(MID($W145,FIND(CHAR(160),SUBSTITUTE($W145,\"{\",CHAR(160),GX$1)),FIND(CHAR(160),SUBSTITUTE($W145,\"}\",CHAR(160),GX$1))-FIND(CHAR(160),SUBSTITUTE($W145,\"{\",CHAR(160),GX$1))+1),\"\")","v":""},{"$f":"IFERROR(MID($W145,FIND(CHAR(160),SUBSTITUTE($W145,\"{\",CHAR(160),GY$1)),FIND(CHAR(160),SUBSTITUTE($W145,\"}\",CHAR(160),GY$1))-FIND(CHAR(160),SUBSTITUTE($W145,\"{\",CHAR(160),GY$1))+1),\"\")","v":""},{"$f":"IFERROR(MID($W145,FIND(CHAR(160),SUBSTITUTE($W145,\"{\",CHAR(160),GZ$1)),FIND(CHAR(160),SUBSTITUTE($W145,\"}\",CHAR(160),GZ$1))-FIND(CHAR(160),SUBSTITUTE($W145,\"{\",CHAR(160),GZ$1))+1),\"\")","v":""},{"$f":"IFERROR(MID($X145,FIND(CHAR(160),SUBSTITUTE($X145,\"{\",CHAR(160),HA$1)),FIND(CHAR(160),SUBSTITUTE($X145,\"}\",CHAR(160),HA$1))-FIND(CHAR(160),SUBSTITUTE($X145,\"{\",CHAR(160),HA$1))+1),\"\")","v":""},{"$f":"IFERROR(MID($X145,FIND(CHAR(160),SUBSTITUTE($X145,\"{\",CHAR(160),HB$1)),FIND(CHAR(160),SUBSTITUTE($X145,\"}\",CHAR(160),HB$1))-FIND(CHAR(160),SUBSTITUTE($X145,\"{\",CHAR(160),HB$1))+1),\"\")","v":""},{"$f":"IFERROR(MID($X145,FIND(CHAR(160),SUBSTITUTE($X145,\"{\",CHAR(160),HC$1)),FIND(CHAR(160),SUBSTITUTE($X145,\"}\",CHAR(160),HC$1))-FIND(CHAR(160),SUBSTITUTE($X145,\"{\",CHAR(160),HC$1))+1),\"\")","v":""},{"$f":"IFERROR(MID($X145,FIND(CHAR(160),SUBSTITUTE($X145,\"{\",CHAR(160),HD$1)),FIND(CHAR(160),SUBSTITUTE($X145,\"}\",CHAR(160),HD$1))-FIND(CHAR(160),SUBSTITUTE($X145,\"{\",CHAR(160),HD$1))+1),\"\")","v":""},{"$f":"IFERROR(MID($X145,FIND(CHAR(160),SUBSTITUTE($X145,\"{\",CHAR(160),HE$1)),FIND(CHAR(160),SUBSTITUTE($X145,\"}\",CHAR(160),HE$1))-FIND(CHAR(160),SUBSTITUTE($X145,\"{\",CHAR(160),HE$1))+1),\"\")","v":""},{"$f":"IFERROR(MID($X145,FIND(CHAR(160),SUBSTITUTE($X145,\"{\",CHAR(160),HF$1)),FIND(CHAR(160),SUBSTITUTE($X145,\"}\",CHAR(160),HF$1))-FIND(CHAR(160),SUBSTITUTE($X145,\"{\",CHAR(160),HF$1))+1),\"\")","v":""},{"$f":"IFERROR(MID($X145,FIND(CHAR(160),SUBSTITUTE($X145,\"{\",CHAR(160),HG$1)),FIND(CHAR(160),SUBSTITUTE($X145,\"}\",CHAR(160),HG$1))-FIND(CHAR(160),SUBSTITUTE($X145,\"{\",CHAR(160),HG$1))+1),\"\")","v":""},{"$f":"IFERROR(MID($X145,FIND(CHAR(160),SUBSTITUTE($X145,\"{\",CHAR(160),HH$1)),FIND(CHAR(160),SUBSTITUTE($X145,\"}\",CHAR(160),HH$1))-FIND(CHAR(160),SUBSTITUTE($X145,\"{\",CHAR(160),HH$1))+1),\"\")","v":""},{"$f":"IFERROR(MID($X145,FIND(CHAR(160),SUBSTITUTE($X145,\"{\",CHAR(160),HI$1)),FIND(CHAR(160),SUBSTITUTE($X145,\"}\",CHAR(160),HI$1))-FIND(CHAR(160),SUBSTITUTE($X145,\"{\",CHAR(160),HI$1))+1),\"\")","v":""},{"$f":"IFERROR(MID($X145,FIND(CHAR(160),SUBSTITUTE($X145,\"{\",CHAR(160),HJ$1)),FIND(CHAR(160),SUBSTITUTE($X145,\"}\",CHAR(160),HJ$1))-FIND(CHAR(160),SUBSTITUTE($X145,\"{\",CHAR(160),HJ$1))+1),\"\")","v":""},{"$f":"IFERROR(MID($Y145,FIND(CHAR(160),SUBSTITUTE($Y145,\"{\",CHAR(160),HK$1)),FIND(CHAR(160),SUBSTITUTE($Y145,\"}\",CHAR(160),HK$1))-FIND(CHAR(160),SUBSTITUTE($Y145,\"{\",CHAR(160),HK$1))+1),\"\")","v":""},{"$f":"IFERROR(MID($Y145,FIND(CHAR(160),SUBSTITUTE($Y145,\"{\",CHAR(160),HL$1)),FIND(CHAR(160),SUBSTITUTE($Y145,\"}\",CHAR(160),HL$1))-FIND(CHAR(160),SUBSTITUTE($Y145,\"{\",CHAR(160),HL$1))+1),\"\")","v":""},{"$f":"IFERROR(MID($Y145,FIND(CHAR(160),SUBSTITUTE($Y145,\"{\",CHAR(160),HM$1)),FIND(CHAR(160),SUBSTITUTE($Y145,\"}\",CHAR(160),HM$1))-FIND(CHAR(160),SUBSTITUTE($Y145,\"{\",CHAR(160),HM$1))+1),\"\")","v":""},{"$f":"IFERROR(MID($Y145,FIND(CHAR(160),SUBSTITUTE($Y145,\"{\",CHAR(160),HN$1)),FIND(CHAR(160),SUBSTITUTE($Y145,\"}\",CHAR(160),HN$1))-FIND(CHAR(160),SUBSTITUTE($Y145,\"{\",CHAR(160),HN$1))+1),\"\")","v":""},{"$f":"IFERROR(MID($Y145,FIND(CHAR(160),SUBSTITUTE($Y145,\"{\",CHAR(160),HO$1)),FIND(CHAR(160),SUBSTITUTE($Y145,\"}\",CHAR(160),HO$1))-FIND(CHAR(160),SUBSTITUTE($Y145,\"{\",CHAR(160),HO$1))+1),\"\")","v":""},{"$f":"IFERROR(MID($Y145,FIND(CHAR(160),SUBSTITUTE($Y145,\"{\",CHAR(160),HP$1)),FIND(CHAR(160),SUBSTITUTE($Y145,\"}\",CHAR(160),HP$1))-FIND(CHAR(160),SUBSTITUTE($Y145,\"{\",CHAR(160),HP$1))+1),\"\")","v":""},{"$f":"IFERROR(MID($Y145,FIND(CHAR(160),SUBSTITUTE($Y145,\"{\",CHAR(160),HQ$1)),FIND(CHAR(160),SUBSTITUTE($Y145,\"}\",CHAR(160),HQ$1))-FIND(CHAR(160),SUBSTITUTE($Y145,\"{\",CHAR(160),HQ$1))+1),\"\")","v":""},{"$f":"IFERROR(MID($Y145,FIND(CHAR(160),SUBSTITUTE($Y145,\"{\",CHAR(160),HR$1)),FIND(CHAR(160),SUBSTITUTE($Y145,\"}\",CHAR(160),HR$1))-FIND(CHAR(160),SUBSTITUTE($Y145,\"{\",CHAR(160),HR$1))+1),\"\")","v":""},{"$f":"IFERROR(MID($Y145,FIND(CHAR(160),SUBSTITUTE($Y145,\"{\",CHAR(160),HS$1)),FIND(CHAR(160),SUBSTITUTE($Y145,\"}\",CHAR(160),HS$1))-FIND(CHAR(160),SUBSTITUTE($Y145,\"{\",CHAR(160),HS$1))+1),\"\")","v":""},{"$f":"IFERROR(MID($Y145,FIND(CHAR(160),SUBSTITUTE($Y145,\"{\",CHAR(160),HT$1)),FIND(CHAR(160),SUBSTITUTE($Y145,\"}\",CHAR(160),HT$1))-FIND(CHAR(160),SUBSTITUTE($Y145,\"{\",CHAR(160),HT$1))+1),\"\")","v":""},{"$f":"IFERROR(MID($Z145,FIND(CHAR(160),SUBSTITUTE($Z145,\"{\",CHAR(160),HU$1)),FIND(CHAR(160),SUBSTITUTE($Z145,\"}\",CHAR(160),HU$1))-FIND(CHAR(160),SUBSTITUTE($Z145,\"{\",CHAR(160),HU$1))+1),\"\")","v":""},{"$f":"IFERROR(MID($Z145,FIND(CHAR(160),SUBSTITUTE($Z145,\"{\",CHAR(160),HV$1)),FIND(CHAR(160),SUBSTITUTE($Z145,\"}\",CHAR(160),HV$1))-FIND(CHAR(160),SUBSTITUTE($Z145,\"{\",CHAR(160),HV$1))+1),\"\")","v":""},{"$f":"IFERROR(MID($Z145,FIND(CHAR(160),SUBSTITUTE($Z145,\"{\",CHAR(160),HW$1)),FIND(CHAR(160),SUBSTITUTE($Z145,\"}\",CHAR(160),HW$1))-FIND(CHAR(160),SUBSTITUTE($Z145,\"{\",CHAR(160),HW$1))+1),\"\")","v":""},{"$f":"IFERROR(MID($Z145,FIND(CHAR(160),SUBSTITUTE($Z145,\"{\",CHAR(160),HX$1)),FIND(CHAR(160),SUBSTITUTE($Z145,\"}\",CHAR(160),HX$1))-FIND(CHAR(160),SUBSTITUTE($Z145,\"{\",CHAR(160),HX$1))+1),\"\")","v":""},{"$f":"IFERROR(MID($Z145,FIND(CHAR(160),SUBSTITUTE($Z145,\"{\",CHAR(160),HY$1)),FIND(CHAR(160),SUBSTITUTE($Z145,\"}\",CHAR(160),HY$1))-FIND(CHAR(160),SUBSTITUTE($Z145,\"{\",CHAR(160),HY$1))+1),\"\")","v":""},{"$f":"IFERROR(MID($Z145,FIND(CHAR(160),SUBSTITUTE($Z145,\"{\",CHAR(160),HZ$1)),FIND(CHAR(160),SUBSTITUTE($Z145,\"}\",CHAR(160),HZ$1))-FIND(CHAR(160),SUBSTITUTE($Z145,\"{\",CHAR(160),HZ$1))+1),\"\")","v":""},{"$f":"IFERROR(MID($Z145,FIND(CHAR(160),SUBSTITUTE($Z145,\"{\",CHAR(160),IA$1)),FIND(CHAR(160),SUBSTITUTE($Z145,\"}\",CHAR(160),IA$1))-FIND(CHAR(160),SUBSTITUTE($Z145,\"{\",CHAR(160),IA$1))+1),\"\")","v":""},{"$f":"IFERROR(MID($Z145,FIND(CHAR(160),SUBSTITUTE($Z145,\"{\",CHAR(160),IB$1)),FIND(CHAR(160),SUBSTITUTE($Z145,\"}\",CHAR(160),IB$1))-FIND(CHAR(160),SUBSTITUTE($Z145,\"{\",CHAR(160),IB$1))+1),\"\")","v":""},{"$f":"IFERROR(MID($Z145,FIND(CHAR(160),SUBSTITUTE($Z145,\"{\",CHAR(160),IC$1)),FIND(CHAR(160),SUBSTITUTE($Z145,\"}\",CHAR(160),IC$1))-FIND(CHAR(160),SUBSTITUTE($Z145,\"{\",CHAR(160),IC$1))+1),\"\")","v":""},{"$f":"IFERROR(MID($Z145,FIND(CHAR(160),SUBSTITUTE($Z145,\"{\",CHAR(160),ID$1)),FIND(CHAR(160),SUBSTITUTE($Z145,\"}\",CHAR(160),ID$1))-FIND(CHAR(160),SUBSTITUTE($Z145,\"{\",CHAR(160),ID$1))+1),\"\")","v":""},{"$f":"IFERROR(MID($AA145,FIND(CHAR(160),SUBSTITUTE($AA145,\"{\",CHAR(160),IE$1)),FIND(CHAR(160),SUBSTITUTE($AA145,\"}\",CHAR(160),IE$1))-FIND(CHAR(160),SUBSTITUTE($AA145,\"{\",CHAR(160),IE$1))+1),\"\")","v":""},{"$f":"IFERROR(MID($AA145,FIND(CHAR(160),SUBSTITUTE($AA145,\"{\",CHAR(160),IF$1)),FIND(CHAR(160),SUBSTITUTE($AA145,\"}\",CHAR(160),IF$1))-FIND(CHAR(160),SUBSTITUTE($AA145,\"{\",CHAR(160),IF$1))+1),\"\")","v":""},{"$f":"IFERROR(MID($AA145,FIND(CHAR(160),SUBSTITUTE($AA145,\"{\",CHAR(160),IG$1)),FIND(CHAR(160),SUBSTITUTE($AA145,\"}\",CHAR(160),IG$1))-FIND(CHAR(160),SUBSTITUTE($AA145,\"{\",CHAR(160),IG$1))+1),\"\")","v":""},{"$f":"IFERROR(MID($AA145,FIND(CHAR(160),SUBSTITUTE($AA145,\"{\",CHAR(160),IH$1)),FIND(CHAR(160),SUBSTITUTE($AA145,\"}\",CHAR(160),IH$1))-FIND(CHAR(160),SUBSTITUTE($AA145,\"{\",CHAR(160),IH$1))+1),\"\")","v":""},{"$f":"IFERROR(MID($AA145,FIND(CHAR(160),SUBSTITUTE($AA145,\"{\",CHAR(160),II$1)),FIND(CHAR(160),SUBSTITUTE($AA145,\"}\",CHAR(160),II$1))-FIND(CHAR(160),SUBSTITUTE($AA145,\"{\",CHAR(160),II$1))+1),\"\")","v":""},{"$f":"IFERROR(MID($AA145,FIND(CHAR(160),SUBSTITUTE($AA145,\"{\",CHAR(160),IJ$1)),FIND(CHAR(160),SUBSTITUTE($AA145,\"}\",CHAR(160),IJ$1))-FIND(CHAR(160),SUBSTITUTE($AA145,\"{\",CHAR(160),IJ$1))+1),\"\")","v":""},{"$f":"IFERROR(MID($AA145,FIND(CHAR(160),SUBSTITUTE($AA145,\"{\",CHAR(160),IK$1)),FIND(CHAR(160),SUBSTITUTE($AA145,\"}\",CHAR(160),IK$1))-FIND(CHAR(160),SUBSTITUTE($AA145,\"{\",CHAR(160),IK$1))+1),\"\")","v":""},{"$f":"IFERROR(MID($AA145,FIND(CHAR(160),SUBSTITUTE($AA145,\"{\",CHAR(160),IL$1)),FIND(CHAR(160),SUBSTITUTE($AA145,\"}\",CHAR(160),IL$1))-FIND(CHAR(160),SUBSTITUTE($AA145,\"{\",CHAR(160),IL$1))+1),\"\")","v":""},{"$f":"IFERROR(MID($AA145,FIND(CHAR(160),SUBSTITUTE($AA145,\"{\",CHAR(160),IM$1)),FIND(CHAR(160),SUBSTITUTE($AA145,\"}\",CHAR(160),IM$1))-FIND(CHAR(160),SUBSTITUTE($AA145,\"{\",CHAR(160),IM$1))+1),\"\")","v":""},{"$f":"IFERROR(MID($AA145,FIND(CHAR(160),SUBSTITUTE($AA145,\"{\",CHAR(160),IN$1)),FIND(CHAR(160),SUBSTITUTE($AA145,\"}\",CHAR(160),IN$1))-FIND(CHAR(160),SUBSTITUTE($AA145,\"{\",CHAR(160),IN$1))+1),\"\")","v":""},{"$f":"IFERROR(MID($AB145,FIND(CHAR(160),SUBSTITUTE($AB145,\"{\",CHAR(160),IO$1)),FIND(CHAR(160),SUBSTITUTE($AB145,\"}\",CHAR(160),IO$1))-FIND(CHAR(160),SUBSTITUTE($AB145,\"{\",CHAR(160),IO$1))+1),\"\")","v":""},{"$f":"IFERROR(MID($AB145,FIND(CHAR(160),SUBSTITUTE($AB145,\"{\",CHAR(160),IP$1)),FIND(CHAR(160),SUBSTITUTE($AB145,\"}\",CHAR(160),IP$1))-FIND(CHAR(160),SUBSTITUTE($AB145,\"{\",CHAR(160),IP$1))+1),\"\")","v":""},{"$f":"IFERROR(MID($AB145,FIND(CHAR(160),SUBSTITUTE($AB145,\"{\",CHAR(160),IQ$1)),FIND(CHAR(160),SUBSTITUTE($AB145,\"}\",CHAR(160),IQ$1))-FIND(CHAR(160),SUBSTITUTE($AB145,\"{\",CHAR(160),IQ$1))+1),\"\")","v":""},{"$f":"IFERROR(MID($AB145,FIND(CHAR(160),SUBSTITUTE($AB145,\"{\",CHAR(160),IR$1)),FIND(CHAR(160),SUBSTITUTE($AB145,\"}\",CHAR(160),IR$1))-FIND(CHAR(160),SUBSTITUTE($AB145,\"{\",CHAR(160),IR$1))+1),\"\")","v":""},{"$f":"IFERROR(MID($AB145,FIND(CHAR(160),SUBSTITUTE($AB145,\"{\",CHAR(160),IS$1)),FIND(CHAR(160),SUBSTITUTE($AB145,\"}\",CHAR(160),IS$1))-FIND(CHAR(160),SUBSTITUTE($AB145,\"{\",CHAR(160),IS$1))+1),\"\")","v":""},{"$f":"IFERROR(MID($AB145,FIND(CHAR(160),SUBSTITUTE($AB145,\"{\",CHAR(160),IT$1)),FIND(CHAR(160),SUBSTITUTE($AB145,\"}\",CHAR(160),IT$1))-FIND(CHAR(160),SUBSTITUTE($AB145,\"{\",CHAR(160),IT$1))+1),\"\")","v":""},{"$f":"IFERROR(MID($AB145,FIND(CHAR(160),SUBSTITUTE($AB145,\"{\",CHAR(160),IU$1)),FIND(CHAR(160),SUBSTITUTE($AB145,\"}\",CHAR(160),IU$1))-FIND(CHAR(160),SUBSTITUTE($AB145,\"{\",CHAR(160),IU$1))+1),\"\")","v":""},{"$f":"IFERROR(MID($AB145,FIND(CHAR(160),SUBSTITUTE($AB145,\"{\",CHAR(160),IV$1)),FIND(CHAR(160),SUBSTITUTE($AB145,\"}\",CHAR(160),IV$1))-FIND(CHAR(160),SUBSTITUTE($AB145,\"{\",CHAR(160),IV$1))+1),\"\")","v":""},{"$f":"IFERROR(MID($AB145,FIND(CHAR(160),SUBSTITUTE($AB145,\"{\",CHAR(160),IW$1)),FIND(CHAR(160),SUBSTITUTE($AB145,\"}\",CHAR(160),IW$1))-FIND(CHAR(160),SUBSTITUTE($AB145,\"{\",CHAR(160),IW$1))+1),\"\")","v":""},{"$f":"IFERROR(MID($AB145,FIND(CHAR(160),SUBSTITUTE($AB145,\"{\",CHAR(160),IX$1)),FIND(CHAR(160),SUBSTITUTE($AB145,\"}\",CHAR(160),IX$1))-FIND(CHAR(160),SUBSTITUTE($AB145,\"{\",CHAR(160),IX$1))+1),\"\")","v":""},null,{"$f":"10-COUNTIF(DU145:ED145,\"\")","v":5}]
["C&I Refrigeration Solutions","R74 New Scroll Compressors - 6 HP","R74","2021-07-01","2022-06-30","Per Measure",1300,0,"Per Measure",660,0,"2020-11-01","2022-06-30","Calculated","{Measure:Quantity} * 6 * {Type}",1E-4,null,"{Measure:Quantity} * 6 * {Type} / 5858",null,null,"{Measure:Quantity} * 6 * {Type} / 5858 * {Factor:WinterCF}","{Measure:Quantity} * 6 * {Type} / 5858 *{Factor:SummerCF}",null,null,null,null,null,null,"2020-11-01","2022-06-30",15,0.50900000000000001,0.74,0.33,0.32600000000000001,0.17,0.17399999999999999,1,1.1220000000000001,1,0.52,1.6E-2,null,{"$f":"DU146","v":"{Measure:Quantity}"},1,{"$f":"DV146","v":"{Type}"},363,{"$f":"DW146","v":""},50,{"$f":"DX146","v":""},null,{"$f":"DY146","v":""},null,{"$f":"DZ146","v":""},null,{"$f":"EA146","v":""},null,{"$f":"EB146","v":""},null,{"$f":"EC146","v":""},null,{"$f":"ED146","v":""},null,{"$f":"AS146 * 6 * AU146","v":2178},{"$f":"0.0001","v":1E-4},0,{"$f":"AS146 * 6 * AU146 / 5858","v":0.37179924889040628},0,0,{"$f":"AS146 * 6 * AU146 / 5858 * AF146","v":0.18924581768521681},{"$f":"AS146 * 6 * AU146 / 5858 *AG146","v":0.27513144417890062},0,0,0,0,0,0,null,"Res","Default DR",{"$f":"Benefits(BL146,BR146,BS146,BT146,BU146,BV146,BW146,BX146,BY146,BZ146,AE146,AH146,AI146,AJ146,AK146,AL146,AM146,AN146,AO146,AP146,CA146,CB146)","v":3257.8212605415165},1230.6531851547086,0,0,0,0,0,0,0,{"$f":"SUMPRODUCT(CC146:CK146,--(CC146:CK146>0))","v":4488.4744456962253},{"$f":"-SUMPRODUCT(CC146:CK146,--(CC146:CK146<0))","v":0},null,{"$f":"1300","v":1300},null,null,{"$f":"CM146+CO146","v":1300},{"$f":"IF(NetOrGross=\"Net\",(1-AO146+AP146),1)","v":1},{"$f":"(SUMPRODUCT(CC146:CJ146,--(CC146:CJ146>0))+CN146)*CS146/((-SUMPRODUCT(CC146:CJ146,--(CC146:CJ146<0))+MAX(CO146,CV146)+CP146+CQ146)*CS146+IF(FRIncentives=\"Yes\",CV146*(1-CS146),0))","v":3.4526726505355581},1,{"$f":"660","v":660},null,"Electric","y",null,{"$f":"IF(F146=\"Manual Entry\",\"Manual\",IF(G146=\"\",0,\"X=\"&SUBSTITUTE(SUBSTITUTE(SUBSTITUTE(SUBSTITUTE(SUBSTITUTE(SUBSTITUTE(SUBSTITUTE(SUBSTITUTE(SUBSTITUTE(SUBSTITUTE(SUBSTITUTE(SUBSTITUTE(G146,$ED146,$ED$2&ROW($ED146)),$EC146,$EC$2&ROW($EC146)),$EB146,$EB$2&ROW($EB146)),$EA146,$EA$2&ROW($EA146)),$DZ146,$DZ$2&ROW($DZ146)),$DY146,$DY$2&ROW($DY146)),$DX146,$DX$2&ROW($DX146)),$DW146,$DW$2&ROW($DW146)),$DV146,$DV$2&ROW($DV146)),$DU146,$DU$2&ROW($DU146)),$DT146,$DT$2&ROW($DT146)),$DS146,$DS$2&ROW($DS146))))","v":"X=1300"},{"$f":"IF(I146=\"Manual Entry\",\"Manual\",IF(J146=\"\",0,\"X=\"&SUBSTITUTE(SUBSTITUTE(SUBSTITUTE(SUBSTITUTE(SUBSTITUTE(SUBSTITUTE(SUBSTITUTE(SUBSTITUTE(SUBSTITUTE(SUBSTITUTE(SUBSTITUTE(SUBSTITUTE(J146,$ED146,$ED$2&ROW($ED146)),$EC146,$EC$2&ROW($EC146)),$EB146,$EB$2&ROW($EB146)),$EA146,$EA$2&ROW($EA146)),$DZ146,$DZ$2&ROW($DZ146)),$DY146,$DY$2&ROW($DY146)),$DX146,$DX$2&ROW($DX146)),$DW146,$DW$2&ROW($DW146)),$DV146,$DV$2&ROW($DV146)),$DU146,$DU$2&ROW($DU146)),$DT146,$DT$2&ROW($DT146)),$DS146,$DS$2&ROW($DS146))))","v":"X=660"},{"$f":"IF(O146=\"\",0,\"X=\"&SUBSTITUTE(SUBSTITUTE(SUBSTITUTE(SUBSTITUTE(SUBSTITUTE(SUBSTITUTE(SUBSTITUTE(SUBSTITUTE(SUBSTITUTE(SUBSTITUTE(SUBSTITUTE(SUBSTITUTE(O146,$ED146,$ED$2&ROW($ED146)),$EC146,$EC$2&ROW($EC146)),$EB146,$EB$2&ROW($EB146)),$EA146,$EA$2&ROW($EA146)),$DZ146,$DZ$2&ROW($DZ146)),$DY146,$DY$2&ROW($DY146)),$DX146,$DX$2&ROW($DX146)),$DW146,$DW$2&ROW($DW146)),$DV146,$DV$2&ROW($DV146)),$DU146,$DU$2&ROW($DU146)),$DT146,$DT$2&ROW($DT146)),$DS146,$DS$2&ROW($DS146)))","v":"X=AS146 * 6 * AU146"},{"$f":"IF(P146=\"\",0,\"X=\"&SUBSTITUTE(SUBSTITUTE(SUBSTITUTE(SUBSTITUTE(SUBSTITUTE(SUBSTITUTE(SUBSTITUTE(SUBSTITUTE(SUBSTITUTE(SUBSTITUTE(SUBSTITUTE(SUBSTITUTE(P146,$ED146,$ED$2&ROW($ED146)),$EC146,$EC$2&ROW($EC146)),$EB146,$EB$2&ROW($EB146)),$EA146,$EA$2&ROW($EA146)),$DZ146,$DZ$2&ROW($DZ146)),$DY146,$DY$2&ROW($DY146)),$DX146,$DX$2&ROW($DX146)),$DW146,$DW$2&ROW($DW146)),$DV146,$DV$2&ROW($DV146)),$DU146,$DU$2&ROW($DU146)),$DT146,$DT$2&ROW($DT146)),$DS146,$DS$2&ROW($DS146)))","v":"X=0.0001"},{"$f":"IF(Q146=\"\",0,\"X=\"&SUBSTITUTE(SUBSTITUTE(SUBSTITUTE(SUBSTITUTE(SUBSTITUTE(SUBSTITUTE(SUBSTITUTE(SUBSTITUTE(SUBSTITUTE(SUBSTITUTE(SUBSTITUTE(SUBSTITUTE(Q146,$ED146,$ED$2&ROW($ED146)),$EC146,$EC$2&ROW($EC146)),$EB146,$EB$2&ROW($EB146)),$EA146,$EA$2&ROW($EA146)),$DZ146,$DZ$2&ROW($DZ146)),$DY146,$DY$2&ROW($DY146)),$DX146,$DX$2&ROW($DX146)),$DW146,$DW$2&ROW($DW146)),$DV146,$DV$2&ROW($DV146)),$DU146,$DU$2&ROW($DU146)),$DT146,$DT$2&ROW($DT146)),$DS146,$DS$2&ROW($DS146)))","v":0},{"$f":"IF(R146=\"\",0,\"X=\"&SUBSTITUTE(SUBSTITUTE(SUBSTITUTE(SUBSTITUTE(SUBSTITUTE(SUBSTITUTE(SUBSTITUTE(SUBSTITUTE(SUBSTITUTE(SUBSTITUTE(SUBSTITUTE(SUBSTITUTE(R146,$ED146,$ED$2&ROW($ED146)),$EC146,$EC$2&ROW($EC146)),$EB146,$EB$2&ROW($EB146)),$EA146,$EA$2&ROW($EA146)),$DZ146,$DZ$2&ROW($DZ146)),$DY146,$DY$2&ROW($DY146)),$DX146,$DX$2&ROW($DX146)),$DW146,$DW$2&ROW($DW146)),$DV146,$DV$2&ROW($DV146)),$DU146,$DU$2&ROW($DU146)),$DT146,$DT$2&ROW($DT146)),$DS146,$DS$2&ROW($DS146)))","v":"X=AS146 * 6 * AU146 / 5858"},{"$f":"IF(S146=\"\",0,\"X=\"&SUBSTITUTE(SUBSTITUTE(SUBSTITUTE(SUBSTITUTE(SUBSTITUTE(SUBSTITUTE(SUBSTITUTE(SUBSTITUTE(SUBSTITUTE(SUBSTITUTE(SUBSTITUTE(SUBSTITUTE(S146,$ED146,$ED$2&ROW($ED146)),$EC146,$EC$2&ROW($EC146)),$EB146,$EB$2&ROW($EB146)),$EA146,$EA$2&ROW($EA146)),$DZ146,$DZ$2&ROW($DZ146)),$DY146,$DY$2&ROW($DY146)),$DX146,$DX$2&ROW($DX146)),$DW146,$DW$2&ROW($DW146)),$DV146,$DV$2&ROW($DV146)),$DU146,$DU$2&ROW($DU146)),$DT146,$DT$2&ROW($DT146)),$DS146,$DS$2&ROW($DS146)))","v":0},{"$f":"IF(T146=\"\",0,\"X=\"&SUBSTITUTE(SUBSTITUTE(SUBSTITUTE(SUBSTITUTE(SUBSTITUTE(SUBSTITUTE(SUBSTITUTE(SUBSTITUTE(SUBSTITUTE(SUBSTITUTE(SUBSTITUTE(SUBSTITUTE(T146,$ED146,$ED$2&ROW($ED146)),$EC146,$EC$2&ROW($EC146)),$EB146,$EB$2&ROW($EB146)),$EA146,$EA$2&ROW($EA146)),$DZ146,$DZ$2&ROW($DZ146)),$DY146,$DY$2&ROW($DY146)),$DX146,$DX$2&ROW($DX146)),$DW146,$DW$2&ROW($DW146)),$DV146,$DV$2&ROW($DV146)),$DU146,$DU$2&ROW($DU146)),$DT146,$DT$2&ROW($DT146)),$DS146,$DS$2&ROW($DS146)))","v":0},{"$f":"IF(U146=\"\",0,\"X=\"&SUBSTITUTE(SUBSTITUTE(SUBSTITUTE(SUBSTITUTE(SUBSTITUTE(SUBSTITUTE(SUBSTITUTE(SUBSTITUTE(SUBSTITUTE(SUBSTITUTE(SUBSTITUTE(SUBSTITUTE(U146,$ED146,$ED$2&ROW($ED146)),$EC146,$EC$2&ROW($EC146)),$EB146,$EB$2&ROW($EB146)),$EA146,$EA$2&ROW($EA146)),$DZ146,$DZ$2&ROW($DZ146)),$DY146,$DY$2&ROW($DY146)),$DX146,$DX$2&ROW($DX146)),$DW146,$DW$2&ROW($DW146)),$DV146,$DV$2&ROW($DV146)),$DU146,$DU$2&ROW($DU146)),$DT146,$DT$2&ROW($DT146)),$DS146,$DS$2&ROW($DS146)))","v":"X=AS146 * 6 * AU146 / 5858 * AF146"},{"$f":"IF(V146=\"\",0,\"X=\"&SUBSTITUTE(SUBSTITUTE(SUBSTITUTE(SUBSTITUTE(SUBSTITUTE(SUBSTITUTE(SUBSTITUTE(SUBSTITUTE(SUBSTITUTE(SUBSTITUTE(SUBSTITUTE(SUBSTITUTE(V146,$ED146,$ED$2&ROW($ED146)),$EC146,$EC$2&ROW($EC146)),$EB146,$EB$2&ROW($EB146)),$EA146,$EA$2&ROW($EA146)),$DZ146,$DZ$2&ROW($DZ146)),$DY146,$DY$2&ROW($DY146)),$DX146,$DX$2&ROW($DX146)),$DW146,$DW$2&ROW($DW146)),$DV146,$DV$2&ROW($DV146)),$DU146,$DU$2&ROW($DU146)),$DT146,$DT$2&ROW($DT146)),$DS146,$DS$2&ROW($DS146)))","v":"X=AS146 * 6 * AU146 / 5858 *AG146"},{"$f":"IF(W146=\"\",0,\"X=\"&SUBSTITUTE(SUBSTITUTE(SUBSTITUTE(SUBSTITUTE(SUBSTITUTE(SUBSTITUTE(SUBSTITUTE(SUBSTITUTE(SUBSTITUTE(SUBSTITUTE(SUBSTITUTE(SUBSTITUTE(W146,$ED146,$ED$2&ROW($ED146)),$EC146,$EC$2&ROW($EC146)),$EB146,$EB$2&ROW($EB146)),$EA146,$EA$2&ROW($EA146)),$DZ146,$DZ$2&ROW($DZ146)),$DY146,$DY$2&ROW($DY146)),$DX146,$DX$2&ROW($DX146)),$DW146,$DW$2&ROW($DW146)),$DV146,$DV$2&ROW($DV146)),$DU146,$DU$2&ROW($DU146)),$DT146,$DT$2&ROW($DT146)),$DS146,$DS$2&ROW($DS146)))","v":0},{"$f":"IF(X146=\"\",0,\"X=\"&SUBSTITUTE(SUBSTITUTE(SUBSTITUTE(SUBSTITUTE(SUBSTITUTE(SUBSTITUTE(SUBSTITUTE(SUBSTITUTE(SUBSTITUTE(SUBSTITUTE(SUBSTITUTE(SUBSTITUTE(X146,$ED146,$ED$2&ROW($ED146)),$EC146,$EC$2&ROW($EC146)),$EB146,$EB$2&ROW($EB146)),$EA146,$EA$2&ROW($EA146)),$DZ146,$DZ$2&ROW($DZ146)),$DY146,$DY$2&ROW($DY146)),$DX146,$DX$2&ROW($DX146)),$DW146,$DW$2&ROW($DW146)),$DV146,$DV$2&ROW($DV146)),$DU146,$DU$2&ROW($DU146)),$DT146,$DT$2&ROW($DT146)),$DS146,$DS$2&ROW($DS146)))","v":0},{"$f":"IF(Y146=\"\",0,\"X=\"&SUBSTITUTE(SUBSTITUTE(SUBSTITUTE(SUBSTITUTE(SUBSTITUTE(SUBSTITUTE(SUBSTITUTE(SUBSTITUTE(SUBSTITUTE(SUBSTITUTE(SUBSTITUTE(SUBSTITUTE(Y146,$ED146,$ED$2&ROW($ED146)),$EC146,$EC$2&ROW($EC146)),$EB146,$EB$2&ROW($EB146)),$EA146,$EA$2&ROW($EA146)),$DZ146,$DZ$2&ROW($DZ146)),$DY146,$DY$2&ROW($DY146)),$DX146,$DX$2&ROW($DX146)),$DW146,$DW$2&ROW($DW146)),$DV146,$DV$2&ROW($DV146)),$DU146,$DU$2&ROW($DU146)),$DT146,$DT$2&ROW($DT146)),$DS146,$DS$2&ROW($DS146)))","v":0},{"$f":"IF(Z146=\"\",0,\"X=\"&SUBSTITUTE(SUBSTITUTE(SUBSTITUTE(SUBSTITUTE(SUBSTITUTE(SUBSTITUTE(SUBSTITUTE(SUBSTITUTE(SUBSTITUTE(SUBSTITUTE(SUBSTITUTE(SUBSTITUTE(Z146,$ED146,$ED$2&ROW($ED146)),$EC146,$EC$2&ROW($EC146)),$EB146,$EB$2&ROW($EB146)),$EA146,$EA$2&ROW($EA146)),$DZ146,$DZ$2&ROW($DZ146)),$DY146,$DY$2&ROW($DY146)),$DX146,$DX$2&ROW($DX146)),$DW146,$DW$2&ROW($DW146)),$DV146,$DV$2&ROW($DV146)),$DU146,$DU$2&ROW($DU146)),$DT146,$DT$2&ROW($DT146)),$DS146,$DS$2&ROW($DS146)))","v":0},{"$f":"IF(AA146=\"\",0,\"X=\"&SUBSTITUTE(SUBSTITUTE(SUBSTITUTE(SUBSTITUTE(SUBSTITUTE(SUBSTITUTE(SUBSTITUTE(SUBSTITUTE(SUBSTITUTE(SUBSTITUTE(SUBSTITUTE(SUBSTITUTE(AA146,$ED146,$ED$2&ROW($ED146)),$EC146,$EC$2&ROW($EC146)),$EB146,$EB$2&ROW($EB146)),$EA146,$EA$2&ROW($EA146)),$DZ146,$DZ$2&ROW($DZ146)),$DY146,$DY$2&ROW($DY146)),$DX146,$DX$2&ROW($DX146)),$DW146,$DW$2&ROW($DW146)),$DV146,$DV$2&ROW($DV146)),$DU146,$DU$2&ROW($DU146)),$DT146,$DT$2&ROW($DT146)),$DS146,$DS$2&ROW($DS146)))","v":0},{"$f":"IF(AB146=\"\",0,\"X=\"&SUBSTITUTE(SUBSTITUTE(SUBSTITUTE(SUBSTITUTE(SUBSTITUTE(SUBSTITUTE(SUBSTITUTE(SUBSTITUTE(SUBSTITUTE(SUBSTITUTE(SUBSTITUTE(SUBSTITUTE(AB146,$ED146,$ED$2&ROW($ED146)),$EC146,$EC$2&ROW($EC146)),$EB146,$EB$2&ROW($EB146)),$EA146,$EA$2&ROW($EA146)),$DZ146,$DZ$2&ROW($DZ146)),$DY146,$DY$2&ROW($DY146)),$DX146,$DX$2&ROW($DX146)),$DW146,$DW$2&ROW($DW146)),$DV146,$DV$2&ROW($DV146)),$DU146,$DU$2&ROW($DU146)),$DT146,$DT$2&ROW($DT146)),$DS146,$DS$2&ROW($DS146)))","v":0},null,null,"{Factor:WinterCF}","{Factor:SummerCF}",{"$f":"IFERROR(INDEX($EG146:$IV146,MATCH(0,COUNTIF($DR146:DT146,$EG146:$IV146),0)),\"\")","v":"{Measure:Quantity}"},{"$f":"IFERROR(INDEX($EG146:$IV146,MATCH(0,COUNTIF($DR146:DU146,$EG146:$IV146),0)),\"\")","v":"{Type}"},{"$f":"IFERROR(INDEX($EG146:$IV146,MATCH(0,COUNTIF($DR146:DV146,$EG146:$IV146),0)),\"\")","v":""},{"$f":"IFERROR(INDEX($EG146:$IV146,MATCH(0,COUNTIF($DR146:DW146,$EG146:$IV146),0)),\"\")","v":""},{"$f":"IFERROR(INDEX($EG146:$IV146,MATCH(0,COUNTIF($DR146:DX146,$EG146:$IV146),0)),\"\")","v":""},{"$f":"IFERROR(INDEX($EG146:$IV146,MATCH(0,COUNTIF($DR146:DY146,$EG146:$IV146),0)),\"\")","v":""},{"$f":"IFERROR(INDEX($EG146:$IV146,MATCH(0,COUNTIF($DR146:DZ146,$EG146:$IV146),0)),\"\")","v":""},{"$f":"IFERROR(INDEX($EG146:$IV146,MATCH(0,COUNTIF($DR146:EA146,$EG146:$IV146),0)),\"\")","v":""},{"$f":"IFERROR(INDEX($EG146:$IV146,MATCH(0,COUNTIF($DR146:EB146,$EG146:$IV146),0)),\"\")","v":""},{"$f":"IFERROR(INDEX($EG146:$IV146,MATCH(0,COUNTIF($DR146:EC146,$EG146:$IV146),0)),\"\")","v":""},null,null,{"$f":"IFERROR(MID($G146,FIND(CHAR(160),SUBSTITUTE($G146,\"{\",CHAR(160),EG$1)),FIND(CHAR(160),SUBSTITUTE($G146,\"}\",CHAR(160),EG$1))-FIND(CHAR(160),SUBSTITUTE($G146,\"{\",CHAR(160),EG$1))+1),\"\")","v":""},{"$f":"IFERROR(MID($G146,FIND(CHAR(160),SUBSTITUTE($G146,\"{\",CHAR(160),EH$1)),FIND(CHAR(160),SUBSTITUTE($G146,\"}\",CHAR(160),EH$1))-FIND(CHAR(160),SUBSTITUTE($G146,\"{\",CHAR(160),EH$1))+1),\"\")","v":""},{"$f":"IFERROR(MID($G146,FIND(CHAR(160),SUBSTITUTE($G146,\"{\",CHAR(160),EI$1)),FIND(CHAR(160),SUBSTITUTE($G146,\"}\",CHAR(160),EI$1))-FIND(CHAR(160),SUBSTITUTE($G146,\"{\",CHAR(160),EI$1))+1),\"\")","v":""},{"$f":"IFERROR(MID($G146,FIND(CHAR(160),SUBSTITUTE($G146,\"{\",CHAR(160),EJ$1)),FIND(CHAR(160),SUBSTITUTE($G146,\"}\",CHAR(160),EJ$1))-FIND(CHAR(160),SUBSTITUTE($G146,\"{\",CHAR(160),EJ$1))+1),\"\")","v":""},{"$f":"IFERROR(MID($G146,FIND(CHAR(160),SUBSTITUTE($G146,\"{\",CHAR(160),EK$1)),FIND(CHAR(160),SUBSTITUTE($G146,\"}\",CHAR(160),EK$1))-FIND(CHAR(160),SUBSTITUTE($G146,\"{\",CHAR(160),EK$1))+1),\"\")","v":""},{"$f":"IFERROR(MID($G146,FIND(CHAR(160),SUBSTITUTE($G146,\"{\",CHAR(160),EL$1)),FIND(CHAR(160),SUBSTITUTE($G146,\"}\",CHAR(160),EL$1))-FIND(CHAR(160),SUBSTITUTE($G146,\"{\",CHAR(160),EL$1))+1),\"\")","v":""},{"$f":"IFERROR(MID($G146,FIND(CHAR(160),SUBSTITUTE($G146,\"{\",CHAR(160),EM$1)),FIND(CHAR(160),SUBSTITUTE($G146,\"}\",CHAR(160),EM$1))-FIND(CHAR(160),SUBSTITUTE($G146,\"{\",CHAR(160),EM$1))+1),\"\")","v":""},{"$f":"IFERROR(MID($G146,FIND(CHAR(160),SUBSTITUTE($G146,\"{\",CHAR(160),EN$1)),FIND(CHAR(160),SUBSTITUTE($G146,\"}\",CHAR(160),EN$1))-FIND(CHAR(160),SUBSTITUTE($G146,\"{\",CHAR(160),EN$1))+1),\"\")","v":""},{"$f":"IFERROR(MID($G146,FIND(CHAR(160),SUBSTITUTE($G146,\"{\",CHAR(160),EO$1)),FIND(CHAR(160),SUBSTITUTE($G146,\"}\",CHAR(160),EO$1))-FIND(CHAR(160),SUBSTITUTE($G146,\"{\",CHAR(160),EO$1))+1),\"\")","v":""},{"$f":"IFERROR(MID($G146,FIND(CHAR(160),SUBSTITUTE($G146,\"{\",CHAR(160),EP$1)),FIND(CHAR(160),SUBSTITUTE($G146,\"}\",CHAR(160),EP$1))-FIND(CHAR(160),SUBSTITUTE($G146,\"{\",CHAR(160),EP$1))+1),\"\")","v":""},{"$f":"IFERROR(MID($J146,FIND(CHAR(160),SUBSTITUTE($J146,\"{\",CHAR(160),EQ$1)),FIND(CHAR(160),SUBSTITUTE($J146,\"}\",CHAR(160),EQ$1))-FIND(CHAR(160),SUBSTITUTE($J146,\"{\",CHAR(160),EQ$1))+1),\"\")","v":""},{"$f":"IFERROR(MID($J146,FIND(CHAR(160),SUBSTITUTE($J146,\"{\",CHAR(160),ER$1)),FIND(CHAR(160),SUBSTITUTE($J146,\"}\",CHAR(160),ER$1))-FIND(CHAR(160),SUBSTITUTE($J146,\"{\",CHAR(160),ER$1))+1),\"\")","v":""},{"$f":"IFERROR(MID($J146,FIND(CHAR(160),SUBSTITUTE($J146,\"{\",CHAR(160),ES$1)),FIND(CHAR(160),SUBSTITUTE($J146,\"}\",CHAR(160),ES$1))-FIND(CHAR(160),SUBSTITUTE($J146,\"{\",CHAR(160),ES$1))+1),\"\")","v":""},{"$f":"IFERROR(MID($J146,FIND(CHAR(160),SUBSTITUTE($J146,\"{\",CHAR(160),ET$1)),FIND(CHAR(160),SUBSTITUTE($J146,\"}\",CHAR(160),ET$1))-FIND(CHAR(160),SUBSTITUTE($J146,\"{\",CHAR(160),ET$1))+1),\"\")","v":""},{"$f":"IFERROR(MID($J146,FIND(CHAR(160),SUBSTITUTE($J146,\"{\",CHAR(160),EU$1)),FIND(CHAR(160),SUBSTITUTE($J146,\"}\",CHAR(160),EU$1))-FIND(CHAR(160),SUBSTITUTE($J146,\"{\",CHAR(160),EU$1))+1),\"\")","v":""},{"$f":"IFERROR(MID($J146,FIND(CHAR(160),SUBSTITUTE($J146,\"{\",CHAR(160),EV$1)),FIND(CHAR(160),SUBSTITUTE($J146,\"}\",CHAR(160),EV$1))-FIND(CHAR(160),SUBSTITUTE($J146,\"{\",CHAR(160),EV$1))+1),\"\")","v":""},{"$f":"IFERROR(MID($J146,FIND(CHAR(160),SUBSTITUTE($J146,\"{\",CHAR(160),EW$1)),FIND(CHAR(160),SUBSTITUTE($J146,\"}\",CHAR(160),EW$1))-FIND(CHAR(160),SUBSTITUTE($J146,\"{\",CHAR(160),EW$1))+1),\"\")","v":""},{"$f":"IFERROR(MID($J146,FIND(CHAR(160),SUBSTITUTE($J146,\"{\",CHAR(160),EX$1)),FIND(CHAR(160),SUBSTITUTE($J146,\"}\",CHAR(160),EX$1))-FIND(CHAR(160),SUBSTITUTE($J146,\"{\",CHAR(160),EX$1))+1),\"\")","v":""},{"$f":"IFERROR(MID($J146,FIND(CHAR(160),SUBSTITUTE($J146,\"{\",CHAR(160),EY$1)),FIND(CHAR(160),SUBSTITUTE($J146,\"}\",CHAR(160),EY$1))-FIND(CHAR(160),SUBSTITUTE($J146,\"{\",CHAR(160),EY$1))+1),\"\")","v":""},{"$f":"IFERROR(MID($J146,FIND(CHAR(160),SUBSTITUTE($J146,\"{\",CHAR(160),EZ$1)),FIND(CHAR(160),SUBSTITUTE($J146,\"}\",CHAR(160),EZ$1))-FIND(CHAR(160),SUBSTITUTE($J146,\"{\",CHAR(160),EZ$1))+1),\"\")","v":""},{"$f":"IFERROR(MID($J146,FIND(CHAR(160),SUBSTITUTE($J146,\"{\",CHAR(160),FA$1)),FIND(CHAR(160),SUBSTITUTE($J146,\"}\",CHAR(160),FA$1))-FIND(CHAR(160),SUBSTITUTE($J146,\"{\",CHAR(160),FA$1))+1),\"\")","v":""},{"$f":"IFERROR(MID($J146,FIND(CHAR(160),SUBSTITUTE($J146,\"{\",CHAR(160),FB$1)),FIND(CHAR(160),SUBSTITUTE($J146,\"}\",CHAR(160),FB$1))-FIND(CHAR(160),SUBSTITUTE($J146,\"{\",CHAR(160),FB$1))+1),\"\")","v":""},{"$f":"IFERROR(MID($O146,FIND(CHAR(160),SUBSTITUTE($O146,\"{\",CHAR(160),FC$1)),FIND(CHAR(160),SUBSTITUTE($O146,\"}\",CHAR(160),FC$1))-FIND(CHAR(160),SUBSTITUTE($O146,\"{\",CHAR(160),FC$1))+1),\"\")","v":""},{"$f":"IFERROR(MID($O146,FIND(CHAR(160),SUBSTITUTE($O146,\"{\",CHAR(160),FD$1)),FIND(CHAR(160),SUBSTITUTE($O146,\"}\",CHAR(160),FD$1))-FIND(CHAR(160),SUBSTITUTE($O146,\"{\",CHAR(160),FD$1))+1),\"\")","v":""},{"$f":"IFERROR(MID($O146,FIND(CHAR(160),SUBSTITUTE($O146,\"{\",CHAR(160),FE$1)),FIND(CHAR(160),SUBSTITUTE($O146,\"}\",CHAR(160),FE$1))-FIND(CHAR(160),SUBSTITUTE($O146,\"{\",CHAR(160),FE$1))+1),\"\")","v":""},{"$f":"IFERROR(MID($O146,FIND(CHAR(160),SUBSTITUTE($O146,\"{\",CHAR(160),FF$1)),FIND(CHAR(160),SUBSTITUTE($O146,\"}\",CHAR(160),FF$1))-FIND(CHAR(160),SUBSTITUTE($O146,\"{\",CHAR(160),FF$1))+1),\"\")","v":""},{"$f":"IFERROR(MID($O146,FIND(CHAR(160),SUBSTITUTE($O146,\"{\",CHAR(160),FG$1)),FIND(CHAR(160),SUBSTITUTE($O146,\"}\",CHAR(160),FG$1))-FIND(CHAR(160),SUBSTITUTE($O146,\"{\",CHAR(160),FG$1))+1),\"\")","v":""},{"$f":"IFERROR(MID($O146,FIND(CHAR(160),SUBSTITUTE($O146,\"{\",CHAR(160),FH$1)),FIND(CHAR(160),SUBSTITUTE($O146,\"}\",CHAR(160),FH$1))-FIND(CHAR(160),SUBSTITUTE($O146,\"{\",CHAR(160),FH$1))+1),\"\")","v":""},{"$f":"IFERROR(MID($O146,FIND(CHAR(160),SUBSTITUTE($O146,\"{\",CHAR(160),FI$1)),FIND(CHAR(160),SUBSTITUTE($O146,\"}\",CHAR(160),FI$1))-FIND(CHAR(160),SUBSTITUTE($O146,\"{\",CHAR(160),FI$1))+1),\"\")","v":""},{"$f":"IFERROR(MID($O146,FIND(CHAR(160),SUBSTITUTE($O146,\"{\",CHAR(160),FJ$1)),FIND(CHAR(160),SUBSTITUTE($O146,\"}\",CHAR(160),FJ$1))-FIND(CHAR(160),SUBSTITUTE($O146,\"{\",CHAR(160),FJ$1))+1),\"\")","v":""},{"$f":"IFERROR(MID($O146,FIND(CHAR(160),SUBSTITUTE($O146,\"{\",CHAR(160),FK$1)),FIND(CHAR(160),SUBSTITUTE($O146,\"}\",CHAR(160),FK$1))-FIND(CHAR(160),SUBSTITUTE($O146,\"{\",CHAR(160),FK$1))+1),\"\")","v":"{Measure:Quantity}"},{"$f":"IFERROR(MID($O146,FIND(CHAR(160),SUBSTITUTE($O146,\"{\",CHAR(160),FL$1)),FIND(CHAR(160),SUBSTITUTE($O146,\"}\",CHAR(160),FL$1))-FIND(CHAR(160),SUBSTITUTE($O146,\"{\",CHAR(160),FL$1))+1),\"\")","v":"{Type}"},{"$f":"IFERROR(MID($R146,FIND(CHAR(160),SUBSTITUTE($R146,\"{\",CHAR(160),FM$1)),FIND(CHAR(160),SUBSTITUTE($R146,\"}\",CHAR(160),FM$1))-FIND(CHAR(160),SUBSTITUTE($R146,\"{\",CHAR(160),FM$1))+1),\"\")","v":""},{"$f":"IFERROR(MID($R146,FIND(CHAR(160),SUBSTITUTE($R146,\"{\",CHAR(160),FN$1)),FIND(CHAR(160),SUBSTITUTE($R146,\"}\",CHAR(160),FN$1))-FIND(CHAR(160),SUBSTITUTE($R146,\"{\",CHAR(160),FN$1))+1),\"\")","v":""},{"$f":"IFERROR(MID($R146,FIND(CHAR(160),SUBSTITUTE($R146,\"{\",CHAR(160),FO$1)),FIND(CHAR(160),SUBSTITUTE($R146,\"}\",CHAR(160),FO$1))-FIND(CHAR(160),SUBSTITUTE($R146,\"{\",CHAR(160),FO$1))+1),\"\")","v":""},{"$f":"IFERROR(MID($R146,FIND(CHAR(160),SUBSTITUTE($R146,\"{\",CHAR(160),FP$1)),FIND(CHAR(160),SUBSTITUTE($R146,\"}\",CHAR(160),FP$1))-FIND(CHAR(160),SUBSTITUTE($R146,\"{\",CHAR(160),FP$1))+1),\"\")","v":""},{"$f":"IFERROR(MID($R146,FIND(CHAR(160),SUBSTITUTE($R146,\"{\",CHAR(160),FQ$1)),FIND(CHAR(160),SUBSTITUTE($R146,\"}\",CHAR(160),FQ$1))-FIND(CHAR(160),SUBSTITUTE($R146,\"{\",CHAR(160),FQ$1))+1),\"\")","v":""},{"$f":"IFERROR(MID($R146,FIND(CHAR(160),SUBSTITUTE($R146,\"{\",CHAR(160),FR$1)),FIND(CHAR(160),SUBSTITUTE($R146,\"}\",CHAR(160),FR$1))-FIND(CHAR(160),SUBSTITUTE($R146,\"{\",CHAR(160),FR$1))+1),\"\")","v":""},{"$f":"IFERROR(MID($R146,FIND(CHAR(160),SUBSTITUTE($R146,\"{\",CHAR(160),FS$1)),FIND(CHAR(160),SUBSTITUTE($R146,\"}\",CHAR(160),FS$1))-FIND(CHAR(160),SUBSTITUTE($R146,\"{\",CHAR(160),FS$1))+1),\"\")","v":""},{"$f":"IFERROR(MID($R146,FIND(CHAR(160),SUBSTITUTE($R146,\"{\",CHAR(160),FT$1)),FIND(CHAR(160),SUBSTITUTE($R146,\"}\",CHAR(160),FT$1))-FIND(CHAR(160),SUBSTITUTE($R146,\"{\",CHAR(160),FT$1))+1),\"\")","v":""},{"$f":"IFERROR(MID($R146,FIND(CHAR(160),SUBSTITUTE($R146,\"{\",CHAR(160),FU$1)),FIND(CHAR(160),SUBSTITUTE($R146,\"}\",CHAR(160),FU$1))-FIND(CHAR(160),SUBSTITUTE($R146,\"{\",CHAR(160),FU$1))+1),\"\")","v":"{Measure:Quantity}"},{"$f":"IFERROR(MID($R146,FIND(CHAR(160),SUBSTITUTE($R146,\"{\",CHAR(160),FV$1)),FIND(CHAR(160),SUBSTITUTE($R146,\"}\",CHAR(160),FV$1))-FIND(CHAR(160),SUBSTITUTE($R146,\"{\",CHAR(160),FV$1))+1),\"\")","v":"{Type}"},{"$f":"IFERROR(MID($U146,FIND(CHAR(160),SUBSTITUTE($U146,\"{\",CHAR(160),FW$1)),FIND(CHAR(160),SUBSTITUTE($U146,\"}\",CHAR(160),FW$1))-FIND(CHAR(160),SUBSTITUTE($U146,\"{\",CHAR(160),FW$1))+1),\"\")","v":"{Factor:WinterCF}"},{"$f":"IFERROR(MID($U146,FIND(CHAR(160),SUBSTITUTE($U146,\"{\",CHAR(160),FX$1)),FIND(CHAR(160),SUBSTITUTE($U146,\"}\",CHAR(160),FX$1))-FIND(CHAR(160),SUBSTITUTE($U146,\"{\",CHAR(160),FX$1))+1),\"\")","v":""},{"$f":"IFERROR(MID($U146,FIND(CHAR(160),SUBSTITUTE($U146,\"{\",CHAR(160),FY$1)),FIND(CHAR(160),SUBSTITUTE($U146,\"}\",CHAR(160),FY$1))-FIND(CHAR(160),SUBSTITUTE($U146,\"{\",CHAR(160),FY$1))+1),\"\")","v":""},{"$f":"IFERROR(MID($U146,FIND(CHAR(160),SUBSTITUTE($U146,\"{\",CHAR(160),FZ$1)),FIND(CHAR(160),SUBSTITUTE($U146,\"}\",CHAR(160),FZ$1))-FIND(CHAR(160),SUBSTITUTE($U146,\"{\",CHAR(160),FZ$1))+1),\"\")","v":""},{"$f":"IFERROR(MID($U146,FIND(CHAR(160),SUBSTITUTE($U146,\"{\",CHAR(160),GA$1)),FIND(CHAR(160),SUBSTITUTE($U146,\"}\",CHAR(160),GA$1))-FIND(CHAR(160),SUBSTITUTE($U146,\"{\",CHAR(160),GA$1))+1),\"\")","v":""},{"$f":"IFERROR(MID($U146,FIND(CHAR(160),SUBSTITUTE($U146,\"{\",CHAR(160),GB$1)),FIND(CHAR(160),SUBSTITUTE($U146,\"}\",CHAR(160),GB$1))-FIND(CHAR(160),SUBSTITUTE($U146,\"{\",CHAR(160),GB$1))+1),\"\")","v":""},{"$f":"IFERROR(MID($U146,FIND(CHAR(160),SUBSTITUTE($U146,\"{\",CHAR(160),GC$1)),FIND(CHAR(160),SUBSTITUTE($U146,\"}\",CHAR(160),GC$1))-FIND(CHAR(160),SUBSTITUTE($U146,\"{\",CHAR(160),GC$1))+1),\"\")","v":""},{"$f":"IFERROR(MID($U146,FIND(CHAR(160),SUBSTITUTE($U146,\"{\",CHAR(160),GD$1)),FIND(CHAR(160),SUBSTITUTE($U146,\"}\",CHAR(160),GD$1))-FIND(CHAR(160),SUBSTITUTE($U146,\"{\",CHAR(160),GD$1))+1),\"\")","v":""},{"$f":"IFERROR(MID($U146,FIND(CHAR(160),SUBSTITUTE($U146,\"{\",CHAR(160),GE$1)),FIND(CHAR(160),SUBSTITUTE($U146,\"}\",CHAR(160),GE$1))-FIND(CHAR(160),SUBSTITUTE($U146,\"{\",CHAR(160),GE$1))+1),\"\")","v":"{Measure:Quantity}"},{"$f":"IFERROR(MID($U146,FIND(CHAR(160),SUBSTITUTE($U146,\"{\",CHAR(160),GF$1)),FIND(CHAR(160),SUBSTITUTE($U146,\"}\",CHAR(160),GF$1))-FIND(CHAR(160),SUBSTITUTE($U146,\"{\",CHAR(160),GF$1))+1),\"\")","v":"{Type}"},{"$f":"IFERROR(MID($V146,FIND(CHAR(160),SUBSTITUTE($V146,\"{\",CHAR(160),GG$1)),FIND(CHAR(160),SUBSTITUTE($V146,\"}\",CHAR(160),GG$1))-FIND(CHAR(160),SUBSTITUTE($V146,\"{\",CHAR(160),GG$1))+1),\"\")","v":"{Factor:SummerCF}"},{"$f":"IFERROR(MID($V146,FIND(CHAR(160),SUBSTITUTE($V146,\"{\",CHAR(160),GH$1)),FIND(CHAR(160),SUBSTITUTE($V146,\"}\",CHAR(160),GH$1))-FIND(CHAR(160),SUBSTITUTE($V146,\"{\",CHAR(160),GH$1))+1),\"\")","v":""},{"$f":"IFERROR(MID($V146,FIND(CHAR(160),SUBSTITUTE($V146,\"{\",CHAR(160),GI$1)),FIND(CHAR(160),SUBSTITUTE($V146,\"}\",CHAR(160),GI$1))-FIND(CHAR(160),SUBSTITUTE($V146,\"{\",CHAR(160),GI$1))+1),\"\")","v":""},{"$f":"IFERROR(MID($V146,FIND(CHAR(160),SUBSTITUTE($V146,\"{\",CHAR(160),GJ$1)),FIND(CHAR(160),SUBSTITUTE($V146,\"}\",CHAR(160),GJ$1))-FIND(CHAR(160),SUBSTITUTE($V146,\"{\",CHAR(160),GJ$1))+1),\"\")","v":""},{"$f":"IFERROR(MID($V146,FIND(CHAR(160),SUBSTITUTE($V146,\"{\",CHAR(160),GK$1)),FIND(CHAR(160),SUBSTITUTE($V146,\"}\",CHAR(160),GK$1))-FIND(CHAR(160),SUBSTITUTE($V146,\"{\",CHAR(160),GK$1))+1),\"\")","v":""},{"$f":"IFERROR(MID($V146,FIND(CHAR(160),SUBSTITUTE($V146,\"{\",CHAR(160),GL$1)),FIND(CHAR(160),SUBSTITUTE($V146,\"}\",CHAR(160),GL$1))-FIND(CHAR(160),SUBSTITUTE($V146,\"{\",CHAR(160),GL$1))+1),\"\")","v":""},{"$f":"IFERROR(MID($V146,FIND(CHAR(160),SUBSTITUTE($V146,\"{\",CHAR(160),GM$1)),FIND(CHAR(160),SUBSTITUTE($V146,\"}\",CHAR(160),GM$1))-FIND(CHAR(160),SUBSTITUTE($V146,\"{\",CHAR(160),GM$1))+1),\"\")","v":""},{"$f":"IFERROR(MID($V146,FIND(CHAR(160),SUBSTITUTE($V146,\"{\",CHAR(160),GN$1)),FIND(CHAR(160),SUBSTITUTE($V146,\"}\",CHAR(160),GN$1))-FIND(CHAR(160),SUBSTITUTE($V146,\"{\",CHAR(160),GN$1))+1),\"\")","v":""},{"$f":"IFERROR(MID($V146,FIND(CHAR(160),SUBSTITUTE($V146,\"{\",CHAR(160),GO$1)),FIND(CHAR(160),SUBSTITUTE($V146,\"}\",CHAR(160),GO$1))-FIND(CHAR(160),SUBSTITUTE($V146,\"{\",CHAR(160),GO$1))+1),\"\")","v":"{Measure:Quantity}"},{"$f":"IFERROR(MID($V146,FIND(CHAR(160),SUBSTITUTE($V146,\"{\",CHAR(160),GP$1)),FIND(CHAR(160),SUBSTITUTE($V146,\"}\",CHAR(160),GP$1))-FIND(CHAR(160),SUBSTITUTE($V146,\"{\",CHAR(160),GP$1))+1),\"\")","v":"{Type}"},{"$f":"IFERROR(MID($W146,FIND(CHAR(160),SUBSTITUTE($W146,\"{\",CHAR(160),GQ$1)),FIND(CHAR(160),SUBSTITUTE($W146,\"}\",CHAR(160),GQ$1))-FIND(CHAR(160),SUBSTITUTE($W146,\"{\",CHAR(160),GQ$1))+1),\"\")","v":""},{"$f":"IFERROR(MID($W146,FIND(CHAR(160),SUBSTITUTE($W146,\"{\",CHAR(160),GR$1)),FIND(CHAR(160),SUBSTITUTE($W146,\"}\",CHAR(160),GR$1))-FIND(CHAR(160),SUBSTITUTE($W146,\"{\",CHAR(160),GR$1))+1),\"\")","v":""},{"$f":"IFERROR(MID($W146,FIND(CHAR(160),SUBSTITUTE($W146,\"{\",CHAR(160),GS$1)),FIND(CHAR(160),SUBSTITUTE($W146,\"}\",CHAR(160),GS$1))-FIND(CHAR(160),SUBSTITUTE($W146,\"{\",CHAR(160),GS$1))+1),\"\")","v":""},{"$f":"IFERROR(MID($W146,FIND(CHAR(160),SUBSTITUTE($W146,\"{\",CHAR(160),GT$1)),FIND(CHAR(160),SUBSTITUTE($W146,\"}\",CHAR(160),GT$1))-FIND(CHAR(160),SUBSTITUTE($W146,\"{\",CHAR(160),GT$1))+1),\"\")","v":""},{"$f":"IFERROR(MID($W146,FIND(CHAR(160),SUBSTITUTE($W146,\"{\",CHAR(160),GU$1)),FIND(CHAR(160),SUBSTITUTE($W146,\"}\",CHAR(160),GU$1))-FIND(CHAR(160),SUBSTITUTE($W146,\"{\",CHAR(160),GU$1))+1),\"\")","v":""},{"$f":"IFERROR(MID($W146,FIND(CHAR(160),SUBSTITUTE($W146,\"{\",CHAR(160),GV$1)),FIND(CHAR(160),SUBSTITUTE($W146,\"}\",CHAR(160),GV$1))-FIND(CHAR(160),SUBSTITUTE($W146,\"{\",CHAR(160),GV$1))+1),\"\")","v":""},{"$f":"IFERROR(MID($W146,FIND(CHAR(160),SUBSTITUTE($W146,\"{\",CHAR(160),GW$1)),FIND(CHAR(160),SUBSTITUTE($W146,\"}\",CHAR(160),GW$1))-FIND(CHAR(160),SUBSTITUTE($W146,\"{\",CHAR(160),GW$1))+1),\"\")","v":""},{"$f":"IFERROR(MID($W146,FIND(CHAR(160),SUBSTITUTE($W146,\"{\",CHAR(160),GX$1)),FIND(CHAR(160),SUBSTITUTE($W146,\"}\",CHAR(160),GX$1))-FIND(CHAR(160),SUBSTITUTE($W146,\"{\",CHAR(160),GX$1))+1),\"\")","v":""},{"$f":"IFERROR(MID($W146,FIND(CHAR(160),SUBSTITUTE($W146,\"{\",CHAR(160),GY$1)),FIND(CHAR(160),SUBSTITUTE($W146,\"}\",CHAR(160),GY$1))-FIND(CHAR(160),SUBSTITUTE($W146,\"{\",CHAR(160),GY$1))+1),\"\")","v":""},{"$f":"IFERROR(MID($W146,FIND(CHAR(160),SUBSTITUTE($W146,\"{\",CHAR(160),GZ$1)),FIND(CHAR(160),SUBSTITUTE($W146,\"}\",CHAR(160),GZ$1))-FIND(CHAR(160),SUBSTITUTE($W146,\"{\",CHAR(160),GZ$1))+1),\"\")","v":""},{"$f":"IFERROR(MID($X146,FIND(CHAR(160),SUBSTITUTE($X146,\"{\",CHAR(160),HA$1)),FIND(CHAR(160),SUBSTITUTE($X146,\"}\",CHAR(160),HA$1))-FIND(CHAR(160),SUBSTITUTE($X146,\"{\",CHAR(160),HA$1))+1),\"\")","v":""},{"$f":"IFERROR(MID($X146,FIND(CHAR(160),SUBSTITUTE($X146,\"{\",CHAR(160),HB$1)),FIND(CHAR(160),SUBSTITUTE($X146,\"}\",CHAR(160),HB$1))-FIND(CHAR(160),SUBSTITUTE($X146,\"{\",CHAR(160),HB$1))+1),\"\")","v":""},{"$f":"IFERROR(MID($X146,FIND(CHAR(160),SUBSTITUTE($X146,\"{\",CHAR(160),HC$1)),FIND(CHAR(160),SUBSTITUTE($X146,\"}\",CHAR(160),HC$1))-FIND(CHAR(160),SUBSTITUTE($X146,\"{\",CHAR(160),HC$1))+1),\"\")","v":""},{"$f":"IFERROR(MID($X146,FIND(CHAR(160),SUBSTITUTE($X146,\"{\",CHAR(160),HD$1)),FIND(CHAR(160),SUBSTITUTE($X146,\"}\",CHAR(160),HD$1))-FIND(CHAR(160),SUBSTITUTE($X146,\"{\",CHAR(160),HD$1))+1),\"\")","v":""},{"$f":"IFERROR(MID($X146,FIND(CHAR(160),SUBSTITUTE($X146,\"{\",CHAR(160),HE$1)),FIND(CHAR(160),SUBSTITUTE($X146,\"}\",CHAR(160),HE$1))-FIND(CHAR(160),SUBSTITUTE($X146,\"{\",CHAR(160),HE$1))+1),\"\")","v":""},{"$f":"IFERROR(MID($X146,FIND(CHAR(160),SUBSTITUTE($X146,\"{\",CHAR(160),HF$1)),FIND(CHAR(160),SUBSTITUTE($X146,\"}\",CHAR(160),HF$1))-FIND(CHAR(160),SUBSTITUTE($X146,\"{\",CHAR(160),HF$1))+1),\"\")","v":""},{"$f":"IFERROR(MID($X146,FIND(CHAR(160),SUBSTITUTE($X146,\"{\",CHAR(160),HG$1)),FIND(CHAR(160),SUBSTITUTE($X146,\"}\",CHAR(160),HG$1))-FIND(CHAR(160),SUBSTITUTE($X146,\"{\",CHAR(160),HG$1))+1),\"\")","v":""},{"$f":"IFERROR(MID($X146,FIND(CHAR(160),SUBSTITUTE($X146,\"{\",CHAR(160),HH$1)),FIND(CHAR(160),SUBSTITUTE($X146,\"}\",CHAR(160),HH$1))-FIND(CHAR(160),SUBSTITUTE($X146,\"{\",CHAR(160),HH$1))+1),\"\")","v":""},{"$f":"IFERROR(MID($X146,FIND(CHAR(160),SUBSTITUTE($X146,\"{\",CHAR(160),HI$1)),FIND(CHAR(160),SUBSTITUTE($X146,\"}\",CHAR(160),HI$1))-FIND(CHAR(160),SUBSTITUTE($X146,\"{\",CHAR(160),HI$1))+1),\"\")","v":""},{"$f":"IFERROR(MID($X146,FIND(CHAR(160),SUBSTITUTE($X146,\"{\",CHAR(160),HJ$1)),FIND(CHAR(160),SUBSTITUTE($X146,\"}\",CHAR(160),HJ$1))-FIND(CHAR(160),SUBSTITUTE($X146,\"{\",CHAR(160),HJ$1))+1),\"\")","v":""},{"$f":"IFERROR(MID($Y146,FIND(CHAR(160),SUBSTITUTE($Y146,\"{\",CHAR(160),HK$1)),FIND(CHAR(160),SUBSTITUTE($Y146,\"}\",CHAR(160),HK$1))-FIND(CHAR(160),SUBSTITUTE($Y146,\"{\",CHAR(160),HK$1))+1),\"\")","v":""},{"$f":"IFERROR(MID($Y146,FIND(CHAR(160),SUBSTITUTE($Y146,\"{\",CHAR(160),HL$1)),FIND(CHAR(160),SUBSTITUTE($Y146,\"}\",CHAR(160),HL$1))-FIND(CHAR(160),SUBSTITUTE($Y146,\"{\",CHAR(160),HL$1))+1),\"\")","v":""},{"$f":"IFERROR(MID($Y146,FIND(CHAR(160),SUBSTITUTE($Y146,\"{\",CHAR(160),HM$1)),FIND(CHAR(160),SUBSTITUTE($Y146,\"}\",CHAR(160),HM$1))-FIND(CHAR(160),SUBSTITUTE($Y146,\"{\",CHAR(160),HM$1))+1),\"\")","v":""},{"$f":"IFERROR(MID($Y146,FIND(CHAR(160),SUBSTITUTE($Y146,\"{\",CHAR(160),HN$1)),FIND(CHAR(160),SUBSTITUTE($Y146,\"}\",CHAR(160),HN$1))-FIND(CHAR(160),SUBSTITUTE($Y146,\"{\",CHAR(160),HN$1))+1),\"\")","v":""},{"$f":"IFERROR(MID($Y146,FIND(CHAR(160),SUBSTITUTE($Y146,\"{\",CHAR(160),HO$1)),FIND(CHAR(160),SUBSTITUTE($Y146,\"}\",CHAR(160),HO$1))-FIND(CHAR(160),SUBSTITUTE($Y146,\"{\",CHAR(160),HO$1))+1),\"\")","v":""},{"$f":"IFERROR(MID($Y146,FIND(CHAR(160),SUBSTITUTE($Y146,\"{\",CHAR(160),HP$1)),FIND(CHAR(160),SUBSTITUTE($Y146,\"}\",CHAR(160),HP$1))-FIND(CHAR(160),SUBSTITUTE($Y146,\"{\",CHAR(160),HP$1))+1),\"\")","v":""},{"$f":"IFERROR(MID($Y146,FIND(CHAR(160),SUBSTITUTE($Y146,\"{\",CHAR(160),HQ$1)),FIND(CHAR(160),SUBSTITUTE($Y146,\"}\",CHAR(160),HQ$1))-FIND(CHAR(160),SUBSTITUTE($Y146,\"{\",CHAR(160),HQ$1))+1),\"\")","v":""},{"$f":"IFERROR(MID($Y146,FIND(CHAR(160),SUBSTITUTE($Y146,\"{\",CHAR(160),HR$1)),FIND(CHAR(160),SUBSTITUTE($Y146,\"}\",CHAR(160),HR$1))-FIND(CHAR(160),SUBSTITUTE($Y146,\"{\",CHAR(160),HR$1))+1),\"\")","v":""},{"$f":"IFERROR(MID($Y146,FIND(CHAR(160),SUBSTITUTE($Y146,\"{\",CHAR(160),HS$1)),FIND(CHAR(160),SUBSTITUTE($Y146,\"}\",CHAR(160),HS$1))-FIND(CHAR(160),SUBSTITUTE($Y146,\"{\",CHAR(160),HS$1))+1),\"\")","v":""},{"$f":"IFERROR(MID($Y146,FIND(CHAR(160),SUBSTITUTE($Y146,\"{\",CHAR(160),HT$1)),FIND(CHAR(160),SUBSTITUTE($Y146,\"}\",CHAR(160),HT$1))-FIND(CHAR(160),SUBSTITUTE($Y146,\"{\",CHAR(160),HT$1))+1),\"\")","v":""},{"$f":"IFERROR(MID($Z146,FIND(CHAR(160),SUBSTITUTE($Z146,\"{\",CHAR(160),HU$1)),FIND(CHAR(160),SUBSTITUTE($Z146,\"}\",CHAR(160),HU$1))-FIND(CHAR(160),SUBSTITUTE($Z146,\"{\",CHAR(160),HU$1))+1),\"\")","v":""},{"$f":"IFERROR(MID($Z146,FIND(CHAR(160),SUBSTITUTE($Z146,\"{\",CHAR(160),HV$1)),FIND(CHAR(160),SUBSTITUTE($Z146,\"}\",CHAR(160),HV$1))-FIND(CHAR(160),SUBSTITUTE($Z146,\"{\",CHAR(160),HV$1))+1),\"\")","v":""},{"$f":"IFERROR(MID($Z146,FIND(CHAR(160),SUBSTITUTE($Z146,\"{\",CHAR(160),HW$1)),FIND(CHAR(160),SUBSTITUTE($Z146,\"}\",CHAR(160),HW$1))-FIND(CHAR(160),SUBSTITUTE($Z146,\"{\",CHAR(160),HW$1))+1),\"\")","v":""},{"$f":"IFERROR(MID($Z146,FIND(CHAR(160),SUBSTITUTE($Z146,\"{\",CHAR(160),HX$1)),FIND(CHAR(160),SUBSTITUTE($Z146,\"}\",CHAR(160),HX$1))-FIND(CHAR(160),SUBSTITUTE($Z146,\"{\",CHAR(160),HX$1))+1),\"\")","v":""},{"$f":"IFERROR(MID($Z146,FIND(CHAR(160),SUBSTITUTE($Z146,\"{\",CHAR(160),HY$1)),FIND(CHAR(160),SUBSTITUTE($Z146,\"}\",CHAR(160),HY$1))-FIND(CHAR(160),SUBSTITUTE($Z146,\"{\",CHAR(160),HY$1))+1),\"\")","v":""},{"$f":"IFERROR(MID($Z146,FIND(CHAR(160),SUBSTITUTE($Z146,\"{\",CHAR(160),HZ$1)),FIND(CHAR(160),SUBSTITUTE($Z146,\"}\",CHAR(160),HZ$1))-FIND(CHAR(160),SUBSTITUTE($Z146,\"{\",CHAR(160),HZ$1))+1),\"\")","v":""},{"$f":"IFERROR(MID($Z146,FIND(CHAR(160),SUBSTITUTE($Z146,\"{\",CHAR(160),IA$1)),FIND(CHAR(160),SUBSTITUTE($Z146,\"}\",CHAR(160),IA$1))-FIND(CHAR(160),SUBSTITUTE($Z146,\"{\",CHAR(160),IA$1))+1),\"\")","v":""},{"$f":"IFERROR(MID($Z146,FIND(CHAR(160),SUBSTITUTE($Z146,\"{\",CHAR(160),IB$1)),FIND(CHAR(160),SUBSTITUTE($Z146,\"}\",CHAR(160),IB$1))-FIND(CHAR(160),SUBSTITUTE($Z146,\"{\",CHAR(160),IB$1))+1),\"\")","v":""},{"$f":"IFERROR(MID($Z146,FIND(CHAR(160),SUBSTITUTE($Z146,\"{\",CHAR(160),IC$1)),FIND(CHAR(160),SUBSTITUTE($Z146,\"}\",CHAR(160),IC$1))-FIND(CHAR(160),SUBSTITUTE($Z146,\"{\",CHAR(160),IC$1))+1),\"\")","v":""},{"$f":"IFERROR(MID($Z146,FIND(CHAR(160),SUBSTITUTE($Z146,\"{\",CHAR(160),ID$1)),FIND(CHAR(160),SUBSTITUTE($Z146,\"}\",CHAR(160),ID$1))-FIND(CHAR(160),SUBSTITUTE($Z146,\"{\",CHAR(160),ID$1))+1),\"\")","v":""},{"$f":"IFERROR(MID($AA146,FIND(CHAR(160),SUBSTITUTE($AA146,\"{\",CHAR(160),IE$1)),FIND(CHAR(160),SUBSTITUTE($AA146,\"}\",CHAR(160),IE$1))-FIND(CHAR(160),SUBSTITUTE($AA146,\"{\",CHAR(160),IE$1))+1),\"\")","v":""},{"$f":"IFERROR(MID($AA146,FIND(CHAR(160),SUBSTITUTE($AA146,\"{\",CHAR(160),IF$1)),FIND(CHAR(160),SUBSTITUTE($AA146,\"}\",CHAR(160),IF$1))-FIND(CHAR(160),SUBSTITUTE($AA146,\"{\",CHAR(160),IF$1))+1),\"\")","v":""},{"$f":"IFERROR(MID($AA146,FIND(CHAR(160),SUBSTITUTE($AA146,\"{\",CHAR(160),IG$1)),FIND(CHAR(160),SUBSTITUTE($AA146,\"}\",CHAR(160),IG$1))-FIND(CHAR(160),SUBSTITUTE($AA146,\"{\",CHAR(160),IG$1))+1),\"\")","v":""},{"$f":"IFERROR(MID($AA146,FIND(CHAR(160),SUBSTITUTE($AA146,\"{\",CHAR(160),IH$1)),FIND(CHAR(160),SUBSTITUTE($AA146,\"}\",CHAR(160),IH$1))-FIND(CHAR(160),SUBSTITUTE($AA146,\"{\",CHAR(160),IH$1))+1),\"\")","v":""},{"$f":"IFERROR(MID($AA146,FIND(CHAR(160),SUBSTITUTE($AA146,\"{\",CHAR(160),II$1)),FIND(CHAR(160),SUBSTITUTE($AA146,\"}\",CHAR(160),II$1))-FIND(CHAR(160),SUBSTITUTE($AA146,\"{\",CHAR(160),II$1))+1),\"\")","v":""},{"$f":"IFERROR(MID($AA146,FIND(CHAR(160),SUBSTITUTE($AA146,\"{\",CHAR(160),IJ$1)),FIND(CHAR(160),SUBSTITUTE($AA146,\"}\",CHAR(160),IJ$1))-FIND(CHAR(160),SUBSTITUTE($AA146,\"{\",CHAR(160),IJ$1))+1),\"\")","v":""},{"$f":"IFERROR(MID($AA146,FIND(CHAR(160),SUBSTITUTE($AA146,\"{\",CHAR(160),IK$1)),FIND(CHAR(160),SUBSTITUTE($AA146,\"}\",CHAR(160),IK$1))-FIND(CHAR(160),SUBSTITUTE($AA146,\"{\",CHAR(160),IK$1))+1),\"\")","v":""},{"$f":"IFERROR(MID($AA146,FIND(CHAR(160),SUBSTITUTE($AA146,\"{\",CHAR(160),IL$1)),FIND(CHAR(160),SUBSTITUTE($AA146,\"}\",CHAR(160),IL$1))-FIND(CHAR(160),SUBSTITUTE($AA146,\"{\",CHAR(160),IL$1))+1),\"\")","v":""},{"$f":"IFERROR(MID($AA146,FIND(CHAR(160),SUBSTITUTE($AA146,\"{\",CHAR(160),IM$1)),FIND(CHAR(160),SUBSTITUTE($AA146,\"}\",CHAR(160),IM$1))-FIND(CHAR(160),SUBSTITUTE($AA146,\"{\",CHAR(160),IM$1))+1),\"\")","v":""},{"$f":"IFERROR(MID($AA146,FIND(CHAR(160),SUBSTITUTE($AA146,\"{\",CHAR(160),IN$1)),FIND(CHAR(160),SUBSTITUTE($AA146,\"}\",CHAR(160),IN$1))-FIND(CHAR(160),SUBSTITUTE($AA146,\"{\",CHAR(160),IN$1))+1),\"\")","v":""},{"$f":"IFERROR(MID($AB146,FIND(CHAR(160),SUBSTITUTE($AB146,\"{\",CHAR(160),IO$1)),FIND(CHAR(160),SUBSTITUTE($AB146,\"}\",CHAR(160),IO$1))-FIND(CHAR(160),SUBSTITUTE($AB146,\"{\",CHAR(160),IO$1))+1),\"\")","v":""},{"$f":"IFERROR(MID($AB146,FIND(CHAR(160),SUBSTITUTE($AB146,\"{\",CHAR(160),IP$1)),FIND(CHAR(160),SUBSTITUTE($AB146,\"}\",CHAR(160),IP$1))-FIND(CHAR(160),SUBSTITUTE($AB146,\"{\",CHAR(160),IP$1))+1),\"\")","v":""},{"$f":"IFERROR(MID($AB146,FIND(CHAR(160),SUBSTITUTE($AB146,\"{\",CHAR(160),IQ$1)),FIND(CHAR(160),SUBSTITUTE($AB146,\"}\",CHAR(160),IQ$1))-FIND(CHAR(160),SUBSTITUTE($AB146,\"{\",CHAR(160),IQ$1))+1),\"\")","v":""},{"$f":"IFERROR(MID($AB146,FIND(CHAR(160),SUBSTITUTE($AB146,\"{\",CHAR(160),IR$1)),FIND(CHAR(160),SUBSTITUTE($AB146,\"}\",CHAR(160),IR$1))-FIND(CHAR(160),SUBSTITUTE($AB146,\"{\",CHAR(160),IR$1))+1),\"\")","v":""},{"$f":"IFERROR(MID($AB146,FIND(CHAR(160),SUBSTITUTE($AB146,\"{\",CHAR(160),IS$1)),FIND(CHAR(160),SUBSTITUTE($AB146,\"}\",CHAR(160),IS$1))-FIND(CHAR(160),SUBSTITUTE($AB146,\"{\",CHAR(160),IS$1))+1),\"\")","v":""},{"$f":"IFERROR(MID($AB146,FIND(CHAR(160),SUBSTITUTE($AB146,\"{\",CHAR(160),IT$1)),FIND(CHAR(160),SUBSTITUTE($AB146,\"}\",CHAR(160),IT$1))-FIND(CHAR(160),SUBSTITUTE($AB146,\"{\",CHAR(160),IT$1))+1),\"\")","v":""},{"$f":"IFERROR(MID($AB146,FIND(CHAR(160),SUBSTITUTE($AB146,\"{\",CHAR(160),IU$1)),FIND(CHAR(160),SUBSTITUTE($AB146,\"}\",CHAR(160),IU$1))-FIND(CHAR(160),SUBSTITUTE($AB146,\"{\",CHAR(160),IU$1))+1),\"\")","v":""},{"$f":"IFERROR(MID($AB146,FIND(CHAR(160),SUBSTITUTE($AB146,\"{\",CHAR(160),IV$1)),FIND(CHAR(160),SUBSTITUTE($AB146,\"}\",CHAR(160),IV$1))-FIND(CHAR(160),SUBSTITUTE($AB146,\"{\",CHAR(160),IV$1))+1),\"\")","v":""},{"$f":"IFERROR(MID($AB146,FIND(CHAR(160),SUBSTITUTE($AB146,\"{\",CHAR(160),IW$1)),FIND(CHAR(160),SUBSTITUTE($AB146,\"}\",CHAR(160),IW$1))-FIND(CHAR(160),SUBSTITUTE($AB146,\"{\",CHAR(160),IW$1))+1),\"\")","v":""},{"$f":"IFERROR(MID($AB146,FIND(CHAR(160),SUBSTITUTE($AB146,\"{\",CHAR(160),IX$1)),FIND(CHAR(160),SUBSTITUTE($AB146,\"}\",CHAR(160),IX$1))-FIND(CHAR(160),SUBSTITUTE($AB146,\"{\",CHAR(160),IX$1))+1),\"\")","v":""},null,{"$f":"10-COUNTIF(DU146:ED146,\"\")","v":2}]
["C&I Refrigeration Solutions","R70 New Scroll Compressors - 2 HP","R70","2021-07-01","2022-06-30","Per Measure",400,0,"Per Measure",220,0,"2020-11-01","2022-06-30","Calculated","{Measure:Quantity} * 2 * {Type}",1E-4,null,"{Measure:Quantity} * 2 * {Type} / 5858",null,null,"{Measure:Quantity} * 2 * {Type} / 5858 * {Factor:WinterCF}","{Measure:Quantity} * 2 * {Type} / 5858 * {Factor:SummerCF}",null,null,null,null,null,null,"2020-11-01","2022-06-30",15,0.50900000000000001,0.74,0.33,0.32600000000000001,0.17,0.17399999999999999,1,1.1220000000000001,1,0.52,1.6E-2,null,{"$f":"DU147","v":"{Measure:Quantity}"},1,{"$f":"DV147","v":"{Type}"},363,{"$f":"DW147","v":""},50,{"$f":"DX147","v":""},null,{"$f":"DY147","v":""},null,{"$f":"DZ147","v":""},null,{"$f":"EA147","v":""},null,{"$f":"EB147","v":""},null,{"$f":"EC147","v":""},null,{"$f":"ED147","v":""},null,{"$f":"AS147 * 2 * AU147","v":726},{"$f":"0.0001","v":1E-4},0,{"$f":"AS147 * 2 * AU147 / 5858","v":0.12393308296346876},0,0,{"$f":"AS147 * 2 * AU147 / 5858 * AF147","v":6.3081939228405604E-2},{"$f":"AS147 * 2 * AU147 / 5858 * AG147","v":9.1710481392966878E-2},0,0,0,0,0,0,null,"Res","Default DR",{"$f":"Benefits(BL147,BR147,BS147,BT147,BU147,BV147,BW147,BX147,BY147,BZ147,AE147,AH147,AI147,AJ147,AK147,AL147,AM147,AN147,AO147,AP147,CA147,CB147)","v":1085.9404201805055},410.21772838490284,0,0,0,0,0,0,0,{"$f":"SUMPRODUCT(CC147:CK147,--(CC147:CK147>0))","v":1496.1581485654083},{"$f":"-SUMPRODUCT(CC147:CK147,--(CC147:CK147<0))","v":0},null,{"$f":"400","v":400},null,null,{"$f":"CM147+CO147","v":400},{"$f":"IF(NetOrGross=\"Net\",(1-AO147+AP147),1)","v":1},{"$f":"(SUMPRODUCT(CC147:CJ147,--(CC147:CJ147>0))+CN147)*CS147/((-SUMPRODUCT(CC147:CJ147,--(CC147:CJ147<0))+MAX(CO147,CV147)+CP147+CQ147)*CS147+IF(FRIncentives=\"Yes\",CV147*(1-CS147),0))","v":3.7403953714135207},1,{"$f":"220","v":220},null,"Electric","y",null,{"$f":"IF(F147=\"Manual Entry\",\"Manual\",IF(G147=\"\",0,\"X=\"&SUBSTITUTE(SUBSTITUTE(SUBSTITUTE(SUBSTITUTE(SUBSTITUTE(SUBSTITUTE(SUBSTITUTE(SUBSTITUTE(SUBSTITUTE(SUBSTITUTE(SUBSTITUTE(SUBSTITUTE(G147,$ED147,$ED$2&ROW($ED147)),$EC147,$EC$2&ROW($EC147)),$EB147,$EB$2&ROW($EB147)),$EA147,$EA$2&ROW($EA147)),$DZ147,$DZ$2&ROW($DZ147)),$DY147,$DY$2&ROW($DY147)),$DX147,$DX$2&ROW($DX147)),$DW147,$DW$2&ROW($DW147)),$DV147,$DV$2&ROW($DV147)),$DU147,$DU$2&ROW($DU147)),$DT147,$DT$2&ROW($DT147)),$DS147,$DS$2&ROW($DS147))))","v":"X=400"},{"$f":"IF(I147=\"Manual Entry\",\"Manual\",IF(J147=\"\",0,\"X=\"&SUBSTITUTE(SUBSTITUTE(SUBSTITUTE(SUBSTITUTE(SUBSTITUTE(SUBSTITUTE(SUBSTITUTE(SUBSTITUTE(SUBSTITUTE(SUBSTITUTE(SUBSTITUTE(SUBSTITUTE(J147,$ED147,$ED$2&ROW($ED147)),$EC147,$EC$2&ROW($EC147)),$EB147,$EB$2&ROW($EB147)),$EA147,$EA$2&ROW($EA147)),$DZ147,$DZ$2&ROW($DZ147)),$DY147,$DY$2&ROW($DY147)),$DX147,$DX$2&ROW($DX147)),$DW147,$DW$2&ROW($DW147)),$DV147,$DV$2&ROW($DV147)),$DU147,$DU$2&ROW($DU147)),$DT147,$DT$2&ROW($DT147)),$DS147,$DS$2&ROW($DS147))))","v":"X=220"},{"$f":"IF(O147=\"\",0,\"X=\"&SUBSTITUTE(SUBSTITUTE(SUBSTITUTE(SUBSTITUTE(SUBSTITUTE(SUBSTITUTE(SUBSTITUTE(SUBSTITUTE(SUBSTITUTE(SUBSTITUTE(SUBSTITUTE(SUBSTITUTE(O147,$ED147,$ED$2&ROW($ED147)),$EC147,$EC$2&ROW($EC147)),$EB147,$EB$2&ROW($EB147)),$EA147,$EA$2&ROW($EA147)),$DZ147,$DZ$2&ROW($DZ147)),$DY147,$DY$2&ROW($DY147)),$DX147,$DX$2&ROW($DX147)),$DW147,$DW$2&ROW($DW147)),$DV147,$DV$2&ROW($DV147)),$DU147,$DU$2&ROW($DU147)),$DT147,$DT$2&ROW($DT147)),$DS147,$DS$2&ROW($DS147)))","v":"X=AS147 * 2 * AU147"},{"$f":"IF(P147=\"\",0,\"X=\"&SUBSTITUTE(SUBSTITUTE(SUBSTITUTE(SUBSTITUTE(SUBSTITUTE(SUBSTITUTE(SUBSTITUTE(SUBSTITUTE(SUBSTITUTE(SUBSTITUTE(SUBSTITUTE(SUBSTITUTE(P147,$ED147,$ED$2&ROW($ED147)),$EC147,$EC$2&ROW($EC147)),$EB147,$EB$2&ROW($EB147)),$EA147,$EA$2&ROW($EA147)),$DZ147,$DZ$2&ROW($DZ147)),$DY147,$DY$2&ROW($DY147)),$DX147,$DX$2&ROW($DX147)),$DW147,$DW$2&ROW($DW147)),$DV147,$DV$2&ROW($DV147)),$DU147,$DU$2&ROW($DU147)),$DT147,$DT$2&ROW($DT147)),$DS147,$DS$2&ROW($DS147)))","v":"X=0.0001"},{"$f":"IF(Q147=\"\",0,\"X=\"&SUBSTITUTE(SUBSTITUTE(SUBSTITUTE(SUBSTITUTE(SUBSTITUTE(SUBSTITUTE(SUBSTITUTE(SUBSTITUTE(SUBSTITUTE(SUBSTITUTE(SUBSTITUTE(SUBSTITUTE(Q147,$ED147,$ED$2&ROW($ED147)),$EC147,$EC$2&ROW($EC147)),$EB147,$EB$2&ROW($EB147)),$EA147,$EA$2&ROW($EA147)),$DZ147,$DZ$2&ROW($DZ147)),$DY147,$DY$2&ROW($DY147)),$DX147,$DX$2&ROW($DX147)),$DW147,$DW$2&ROW($DW147)),$DV147,$DV$2&ROW($DV147)),$DU147,$DU$2&ROW($DU147)),$DT147,$DT$2&ROW($DT147)),$DS147,$DS$2&ROW($DS147)))","v":0},{"$f":"IF(R147=\"\",0,\"X=\"&SUBSTITUTE(SUBSTITUTE(SUBSTITUTE(SUBSTITUTE(SUBSTITUTE(SUBSTITUTE(SUBSTITUTE(SUBSTITUTE(SUBSTITUTE(SUBSTITUTE(SUBSTITUTE(SUBSTITUTE(R147,$ED147,$ED$2&ROW($ED147)),$EC147,$EC$2&ROW($EC147)),$EB147,$EB$2&ROW($EB147)),$EA147,$EA$2&ROW($EA147)),$DZ147,$DZ$2&ROW($DZ147)),$DY147,$DY$2&ROW($DY147)),$DX147,$DX$2&ROW($DX147)),$DW147,$DW$2&ROW($DW147)),$DV147,$DV$2&ROW($DV147)),$DU147,$DU$2&ROW($DU147)),$DT147,$DT$2&ROW($DT147)),$DS147,$DS$2&ROW($DS147)))","v":"X=AS147 * 2 * AU147 / 5858"},{"$f":"IF(S147=\"\",0,\"X=\"&SUBSTITUTE(SUBSTITUTE(SUBSTITUTE(SUBSTITUTE(SUBSTITUTE(SUBSTITUTE(SUBSTITUTE(SUBSTITUTE(SUBSTITUTE(SUBSTITUTE(SUBSTITUTE(SUBSTITUTE(S147,$ED147,$ED$2&ROW($ED147)),$EC147,$EC$2&ROW($EC147)),$EB147,$EB$2&ROW($EB147)),$EA147,$EA$2&ROW($EA147)),$DZ147,$DZ$2&ROW($DZ147)),$DY147,$DY$2&ROW($DY147)),$DX147,$DX$2&ROW($DX147)),$DW147,$DW$2&ROW($DW147)),$DV147,$DV$2&ROW($DV147)),$DU147,$DU$2&ROW($DU147)),$DT147,$DT$2&ROW($DT147)),$DS147,$DS$2&ROW($DS147)))","v":0},{"$f":"IF(T147=\"\",0,\"X=\"&SUBSTITUTE(SUBSTITUTE(SUBSTITUTE(SUBSTITUTE(SUBSTITUTE(SUBSTITUTE(SUBSTITUTE(SUBSTITUTE(SUBSTITUTE(SUBSTITUTE(SUBSTITUTE(SUBSTITUTE(T147,$ED147,$ED$2&ROW($ED147)),$EC147,$EC$2&ROW($EC147)),$EB147,$EB$2&ROW($EB147)),$EA147,$EA$2&ROW($EA147)),$DZ147,$DZ$2&ROW($DZ147)),$DY147,$DY$2&ROW($DY147)),$DX147,$DX$2&ROW($DX147)),$DW147,$DW$2&ROW($DW147)),$DV147,$DV$2&ROW($DV147)),$DU147,$DU$2&ROW($DU147)),$DT147,$DT$2&ROW($DT147)),$DS147,$DS$2&ROW($DS147)))","v":0},{"$f":"IF(U147=\"\",0,\"X=\"&SUBSTITUTE(SUBSTITUTE(SUBSTITUTE(SUBSTITUTE(SUBSTITUTE(SUBSTITUTE(SUBSTITUTE(SUBSTITUTE(SUBSTITUTE(SUBSTITUTE(SUBSTITUTE(SUBSTITUTE(U147,$ED147,$ED$2&ROW($ED147)),$EC147,$EC$2&ROW($EC147)),$EB147,$EB$2&ROW($EB147)),$EA147,$EA$2&ROW($EA147)),$DZ147,$DZ$2&ROW($DZ147)),$DY147,$DY$2&ROW($DY147)),$DX147,$DX$2&ROW($DX147)),$DW147,$DW$2&ROW($DW147)),$DV147,$DV$2&ROW($DV147)),$DU147,$DU$2&ROW($DU147)),$DT147,$DT$2&ROW($DT147)),$DS147,$DS$2&ROW($DS147)))","v":"X=AS147 * 2 * AU147 / 5858 * AF147"},{"$f":"IF(V147=\"\",0,\"X=\"&SUBSTITUTE(SUBSTITUTE(SUBSTITUTE(SUBSTITUTE(SUBSTITUTE(SUBSTITUTE(SUBSTITUTE(SUBSTITUTE(SUBSTITUTE(SUBSTITUTE(SUBSTITUTE(SUBSTITUTE(V147,$ED147,$ED$2&ROW($ED147)),$EC147,$EC$2&ROW($EC147)),$EB147,$EB$2&ROW($EB147)),$EA147,$EA$2&ROW($EA147)),$DZ147,$DZ$2&ROW($DZ147)),$DY147,$DY$2&ROW($DY147)),$DX147,$DX$2&ROW($DX147)),$DW147,$DW$2&ROW($DW147)),$DV147,$DV$2&ROW($DV147)),$DU147,$DU$2&ROW($DU147)),$DT147,$DT$2&ROW($DT147)),$DS147,$DS$2&ROW($DS147)))","v":"X=AS147 * 2 * AU147 / 5858 * AG147"},{"$f":"IF(W147=\"\",0,\"X=\"&SUBSTITUTE(SUBSTITUTE(SUBSTITUTE(SUBSTITUTE(SUBSTITUTE(SUBSTITUTE(SUBSTITUTE(SUBSTITUTE(SUBSTITUTE(SUBSTITUTE(SUBSTITUTE(SUBSTITUTE(W147,$ED147,$ED$2&ROW($ED147)),$EC147,$EC$2&ROW($EC147)),$EB147,$EB$2&ROW($EB147)),$EA147,$EA$2&ROW($EA147)),$DZ147,$DZ$2&ROW($DZ147)),$DY147,$DY$2&ROW($DY147)),$DX147,$DX$2&ROW($DX147)),$DW147,$DW$2&ROW($DW147)),$DV147,$DV$2&ROW($DV147)),$DU147,$DU$2&ROW($DU147)),$DT147,$DT$2&ROW($DT147)),$DS147,$DS$2&ROW($DS147)))","v":0},{"$f":"IF(X147=\"\",0,\"X=\"&SUBSTITUTE(SUBSTITUTE(SUBSTITUTE(SUBSTITUTE(SUBSTITUTE(SUBSTITUTE(SUBSTITUTE(SUBSTITUTE(SUBSTITUTE(SUBSTITUTE(SUBSTITUTE(SUBSTITUTE(X147,$ED147,$ED$2&ROW($ED147)),$EC147,$EC$2&ROW($EC147)),$EB147,$EB$2&ROW($EB147)),$EA147,$EA$2&ROW($EA147)),$DZ147,$DZ$2&ROW($DZ147)),$DY147,$DY$2&ROW($DY147)),$DX147,$DX$2&ROW($DX147)),$DW147,$DW$2&ROW($DW147)),$DV147,$DV$2&ROW($DV147)),$DU147,$DU$2&ROW($DU147)),$DT147,$DT$2&ROW($DT147)),$DS147,$DS$2&ROW($DS147)))","v":0},{"$f":"IF(Y147=\"\",0,\"X=\"&SUBSTITUTE(SUBSTITUTE(SUBSTITUTE(SUBSTITUTE(SUBSTITUTE(SUBSTITUTE(SUBSTITUTE(SUBSTITUTE(SUBSTITUTE(SUBSTITUTE(SUBSTITUTE(SUBSTITUTE(Y147,$ED147,$ED$2&ROW($ED147)),$EC147,$EC$2&ROW($EC147)),$EB147,$EB$2&ROW($EB147)),$EA147,$EA$2&ROW($EA147)),$DZ147,$DZ$2&ROW($DZ147)),$DY147,$DY$2&ROW($DY147)),$DX147,$DX$2&ROW($DX147)),$DW147,$DW$2&ROW($DW147)),$DV147,$DV$2&ROW($DV147)),$DU147,$DU$2&ROW($DU147)),$DT147,$DT$2&ROW($DT147)),$DS147,$DS$2&ROW($DS147)))","v":0},{"$f":"IF(Z147=\"\",0,\"X=\"&SUBSTITUTE(SUBSTITUTE(SUBSTITUTE(SUBSTITUTE(SUBSTITUTE(SUBSTITUTE(SUBSTITUTE(SUBSTITUTE(SUBSTITUTE(SUBSTITUTE(SUBSTITUTE(SUBSTITUTE(Z147,$ED147,$ED$2&ROW($ED147)),$EC147,$EC$2&ROW($EC147)),$EB147,$EB$2&ROW($EB147)),$EA147,$EA$2&ROW($EA147)),$DZ147,$DZ$2&ROW($DZ147)),$DY147,$DY$2&ROW($DY147)),$DX147,$DX$2&ROW($DX147)),$DW147,$DW$2&ROW($DW147)),$DV147,$DV$2&ROW($DV147)),$DU147,$DU$2&ROW($DU147)),$DT147,$DT$2&ROW($DT147)),$DS147,$DS$2&ROW($DS147)))","v":0},{"$f":"IF(AA147=\"\",0,\"X=\"&SUBSTITUTE(SUBSTITUTE(SUBSTITUTE(SUBSTITUTE(SUBSTITUTE(SUBSTITUTE(SUBSTITUTE(SUBSTITUTE(SUBSTITUTE(SUBSTITUTE(SUBSTITUTE(SUBSTITUTE(AA147,$ED147,$ED$2&ROW($ED147)),$EC147,$EC$2&ROW($EC147)),$EB147,$EB$2&ROW($EB147)),$EA147,$EA$2&ROW($EA147)),$DZ147,$DZ$2&ROW($DZ147)),$DY147,$DY$2&ROW($DY147)),$DX147,$DX$2&ROW($DX147)),$DW147,$DW$2&ROW($DW147)),$DV147,$DV$2&ROW($DV147)),$DU147,$DU$2&ROW($DU147)),$DT147,$DT$2&ROW($DT147)),$DS147,$DS$2&ROW($DS147)))","v":0},{"$f":"IF(AB147=\"\",0,\"X=\"&SUBSTITUTE(SUBSTITUTE(SUBSTITUTE(SUBSTITUTE(SUBSTITUTE(SUBSTITUTE(SUBSTITUTE(SUBSTITUTE(SUBSTITUTE(SUBSTITUTE(SUBSTITUTE(SUBSTITUTE(AB147,$ED147,$ED$2&ROW($ED147)),$EC147,$EC$2&ROW($EC147)),$EB147,$EB$2&ROW($EB147)),$EA147,$EA$2&ROW($EA147)),$DZ147,$DZ$2&ROW($DZ147)),$DY147,$DY$2&ROW($DY147)),$DX147,$DX$2&ROW($DX147)),$DW147,$DW$2&ROW($DW147)),$DV147,$DV$2&ROW($DV147)),$DU147,$DU$2&ROW($DU147)),$DT147,$DT$2&ROW($DT147)),$DS147,$DS$2&ROW($DS147)))","v":0},null,null,"{Factor:WinterCF}","{Factor:SummerCF}",{"$f":"IFERROR(INDEX($EG147:$IV147,MATCH(0,COUNTIF($DR147:DT147,$EG147:$IV147),0)),\"\")","v":"{Measure:Quantity}"},{"$f":"IFERROR(INDEX($EG147:$IV147,MATCH(0,COUNTIF($DR147:DU147,$EG147:$IV147),0)),\"\")","v":"{Type}"},{"$f":"IFERROR(INDEX($EG147:$IV147,MATCH(0,COUNTIF($DR147:DV147,$EG147:$IV147),0)),\"\")","v":""},{"$f":"IFERROR(INDEX($EG147:$IV147,MATCH(0,COUNTIF($DR147:DW147,$EG147:$IV147),0)),\"\")","v":""},{"$f":"IFERROR(INDEX($EG147:$IV147,MATCH(0,COUNTIF($DR147:DX147,$EG147:$IV147),0)),\"\")","v":""},{"$f":"IFERROR(INDEX($EG147:$IV147,MATCH(0,COUNTIF($DR147:DY147,$EG147:$IV147),0)),\"\")","v":""},{"$f":"IFERROR(INDEX($EG147:$IV147,MATCH(0,COUNTIF($DR147:DZ147,$EG147:$IV147),0)),\"\")","v":""},{"$f":"IFERROR(INDEX($EG147:$IV147,MATCH(0,COUNTIF($DR147:EA147,$EG147:$IV147),0)),\"\")","v":""},{"$f":"IFERROR(INDEX($EG147:$IV147,MATCH(0,COUNTIF($DR147:EB147,$EG147:$IV147),0)),\"\")","v":""},{"$f":"IFERROR(INDEX($EG147:$IV147,MATCH(0,COUNTIF($DR147:EC147,$EG147:$IV147),0)),\"\")","v":""},null,null,{"$f":"IFERROR(MID($G147,FIND(CHAR(160),SUBSTITUTE($G147,\"{\",CHAR(160),EG$1)),FIND(CHAR(160),SUBSTITUTE($G147,\"}\",CHAR(160),EG$1))-FIND(CHAR(160),SUBSTITUTE($G147,\"{\",CHAR(160),EG$1))+1),\"\")","v":""},{"$f":"IFERROR(MID($G147,FIND(CHAR(160),SUBSTITUTE($G147,\"{\",CHAR(160),EH$1)),FIND(CHAR(160),SUBSTITUTE($G147,\"}\",CHAR(160),EH$1))-FIND(CHAR(160),SUBSTITUTE($G147,\"{\",CHAR(160),EH$1))+1),\"\")","v":""},{"$f":"IFERROR(MID($G147,FIND(CHAR(160),SUBSTITUTE($G147,\"{\",CHAR(160),EI$1)),FIND(CHAR(160),SUBSTITUTE($G147,\"}\",CHAR(160),EI$1))-FIND(CHAR(160),SUBSTITUTE($G147,\"{\",CHAR(160),EI$1))+1),\"\")","v":""},{"$f":"IFERROR(MID($G147,FIND(CHAR(160),SUBSTITUTE($G147,\"{\",CHAR(160),EJ$1)),FIND(CHAR(160),SUBSTITUTE($G147,\"}\",CHAR(160),EJ$1))-FIND(CHAR(160),SUBSTITUTE($G147,\"{\",CHAR(160),EJ$1))+1),\"\")","v":""},{"$f":"IFERROR(MID($G147,FIND(CHAR(160),SUBSTITUTE($G147,\"{\",CHAR(160),EK$1)),FIND(CHAR(160),SUBSTITUTE($G147,\"}\",CHAR(160),EK$1))-FIND(CHAR(160),SUBSTITUTE($G147,\"{\",CHAR(160),EK$1))+1),\"\")","v":""},{"$f":"IFERROR(MID($G147,FIND(CHAR(160),SUBSTITUTE($G147,\"{\",CHAR(160),EL$1)),FIND(CHAR(160),SUBSTITUTE($G147,\"}\",CHAR(160),EL$1))-FIND(CHAR(160),SUBSTITUTE($G147,\"{\",CHAR(160),EL$1))+1),\"\")","v":""},{"$f":"IFERROR(MID($G147,FIND(CHAR(160),SUBSTITUTE($G147,\"{\",CHAR(160),EM$1)),FIND(CHAR(160),SUBSTITUTE($G147,\"}\",CHAR(160),EM$1))-FIND(CHAR(160),SUBSTITUTE($G147,\"{\",CHAR(160),EM$1))+1),\"\")","v":""},{"$f":"IFERROR(MID($G147,FIND(CHAR(160),SUBSTITUTE($G147,\"{\",CHAR(160),EN$1)),FIND(CHAR(160),SUBSTITUTE($G147,\"}\",CHAR(160),EN$1))-FIND(CHAR(160),SUBSTITUTE($G147,\"{\",CHAR(160),EN$1))+1),\"\")","v":""},{"$f":"IFERROR(MID($G147,FIND(CHAR(160),SUBSTITUTE($G147,\"{\",CHAR(160),EO$1)),FIND(CHAR(160),SUBSTITUTE($G147,\"}\",CHAR(160),EO$1))-FIND(CHAR(160),SUBSTITUTE($G147,\"{\",CHAR(160),EO$1))+1),\"\")","v":""},{"$f":"IFERROR(MID($G147,FIND(CHAR(160),SUBSTITUTE($G147,\"{\",CHAR(160),EP$1)),FIND(CHAR(160),SUBSTITUTE($G147,\"}\",CHAR(160),EP$1))-FIND(CHAR(160),SUBSTITUTE($G147,\"{\",CHAR(160),EP$1))+1),\"\")","v":""},{"$f":"IFERROR(MID($J147,FIND(CHAR(160),SUBSTITUTE($J147,\"{\",CHAR(160),EQ$1)),FIND(CHAR(160),SUBSTITUTE($J147,\"}\",CHAR(160),EQ$1))-FIND(CHAR(160),SUBSTITUTE($J147,\"{\",CHAR(160),EQ$1))+1),\"\")","v":""},{"$f":"IFERROR(MID($J147,FIND(CHAR(160),SUBSTITUTE($J147,\"{\",CHAR(160),ER$1)),FIND(CHAR(160),SUBSTITUTE($J147,\"}\",CHAR(160),ER$1))-FIND(CHAR(160),SUBSTITUTE($J147,\"{\",CHAR(160),ER$1))+1),\"\")","v":""},{"$f":"IFERROR(MID($J147,FIND(CHAR(160),SUBSTITUTE($J147,\"{\",CHAR(160),ES$1)),FIND(CHAR(160),SUBSTITUTE($J147,\"}\",CHAR(160),ES$1))-FIND(CHAR(160),SUBSTITUTE($J147,\"{\",CHAR(160),ES$1))+1),\"\")","v":""},{"$f":"IFERROR(MID($J147,FIND(CHAR(160),SUBSTITUTE($J147,\"{\",CHAR(160),ET$1)),FIND(CHAR(160),SUBSTITUTE($J147,\"}\",CHAR(160),ET$1))-FIND(CHAR(160),SUBSTITUTE($J147,\"{\",CHAR(160),ET$1))+1),\"\")","v":""},{"$f":"IFERROR(MID($J147,FIND(CHAR(160),SUBSTITUTE($J147,\"{\",CHAR(160),EU$1)),FIND(CHAR(160),SUBSTITUTE($J147,\"}\",CHAR(160),EU$1))-FIND(CHAR(160),SUBSTITUTE($J147,\"{\",CHAR(160),EU$1))+1),\"\")","v":""},{"$f":"IFERROR(MID($J147,FIND(CHAR(160),SUBSTITUTE($J147,\"{\",CHAR(160),EV$1)),FIND(CHAR(160),SUBSTITUTE($J147,\"}\",CHAR(160),EV$1))-FIND(CHAR(160),SUBSTITUTE($J147,\"{\",CHAR(160),EV$1))+1),\"\")","v":""},{"$f":"IFERROR(MID($J147,FIND(CHAR(160),SUBSTITUTE($J147,\"{\",CHAR(160),EW$1)),FIND(CHAR(160),SUBSTITUTE($J147,\"}\",CHAR(160),EW$1))-FIND(CHAR(160),SUBSTITUTE($J147,\"{\",CHAR(160),EW$1))+1),\"\")","v":""},{"$f":"IFERROR(MID($J147,FIND(CHAR(160),SUBSTITUTE($J147,\"{\",CHAR(160),EX$1)),FIND(CHAR(160),SUBSTITUTE($J147,\"}\",CHAR(160),EX$1))-FIND(CHAR(160),SUBSTITUTE($J147,\"{\",CHAR(160),EX$1))+1),\"\")","v":""},{"$f":"IFERROR(MID($J147,FIND(CHAR(160),SUBSTITUTE($J147,\"{\",CHAR(160),EY$1)),FIND(CHAR(160),SUBSTITUTE($J147,\"}\",CHAR(160),EY$1))-FIND(CHAR(160),SUBSTITUTE($J147,\"{\",CHAR(160),EY$1))+1),\"\")","v":""},{"$f":"IFERROR(MID($J147,FIND(CHAR(160),SUBSTITUTE($J147,\"{\",CHAR(160),EZ$1)),FIND(CHAR(160),SUBSTITUTE($J147,\"}\",CHAR(160),EZ$1))-FIND(CHAR(160),SUBSTITUTE($J147,\"{\",CHAR(160),EZ$1))+1),\"\")","v":""},{"$f":"IFERROR(MID($J147,FIND(CHAR(160),SUBSTITUTE($J147,\"{\",CHAR(160),FA$1)),FIND(CHAR(160),SUBSTITUTE($J147,\"}\",CHAR(160),FA$1))-FIND(CHAR(160),SUBSTITUTE($J147,\"{\",CHAR(160),FA$1))+1),\"\")","v":""},{"$f":"IFERROR(MID($J147,FIND(CHAR(160),SUBSTITUTE($J147,\"{\",CHAR(160),FB$1)),FIND(CHAR(160),SUBSTITUTE($J147,\"}\",CHAR(160),FB$1))-FIND(CHAR(160),SUBSTITUTE($J147,\"{\",CHAR(160),FB$1))+1),\"\")","v":""},{"$f":"IFERROR(MID($O147,FIND(CHAR(160),SUBSTITUTE($O147,\"{\",CHAR(160),FC$1)),FIND(CHAR(160),SUBSTITUTE($O147,\"}\",CHAR(160),FC$1))-FIND(CHAR(160),SUBSTITUTE($O147,\"{\",CHAR(160),FC$1))+1),\"\")","v":""},{"$f":"IFERROR(MID($O147,FIND(CHAR(160),SUBSTITUTE($O147,\"{\",CHAR(160),FD$1)),FIND(CHAR(160),SUBSTITUTE($O147,\"}\",CHAR(160),FD$1))-FIND(CHAR(160),SUBSTITUTE($O147,\"{\",CHAR(160),FD$1))+1),\"\")","v":""},{"$f":"IFERROR(MID($O147,FIND(CHAR(160),SUBSTITUTE($O147,\"{\",CHAR(160),FE$1)),FIND(CHAR(160),SUBSTITUTE($O147,\"}\",CHAR(160),FE$1))-FIND(CHAR(160),SUBSTITUTE($O147,\"{\",CHAR(160),FE$1))+1),\"\")","v":""},{"$f":"IFERROR(MID($O147,FIND(CHAR(160),SUBSTITUTE($O147,\"{\",CHAR(160),FF$1)),FIND(CHAR(160),SUBSTITUTE($O147,\"}\",CHAR(160),FF$1))-FIND(CHAR(160),SUBSTITUTE($O147,\"{\",CHAR(160),FF$1))+1),\"\")","v":""},{"$f":"IFERROR(MID($O147,FIND(CHAR(160),SUBSTITUTE($O147,\"{\",CHAR(160),FG$1)),FIND(CHAR(160),SUBSTITUTE($O147,\"}\",CHAR(160),FG$1))-FIND(CHAR(160),SUBSTITUTE($O147,\"{\",CHAR(160),FG$1))+1),\"\")","v":""},{"$f":"IFERROR(MID($O147,FIND(CHAR(160),SUBSTITUTE($O147,\"{\",CHAR(160),FH$1)),FIND(CHAR(160),SUBSTITUTE($O147,\"}\",CHAR(160),FH$1))-FIND(CHAR(160),SUBSTITUTE($O147,\"{\",CHAR(160),FH$1))+1),\"\")","v":""},{"$f":"IFERROR(MID($O147,FIND(CHAR(160),SUBSTITUTE($O147,\"{\",CHAR(160),FI$1)),FIND(CHAR(160),SUBSTITUTE($O147,\"}\",CHAR(160),FI$1))-FIND(CHAR(160),SUBSTITUTE($O147,\"{\",CHAR(160),FI$1))+1),\"\")","v":""},{"$f":"IFERROR(MID($O147,FIND(CHAR(160),SUBSTITUTE($O147,\"{\",CHAR(160),FJ$1)),FIND(CHAR(160),SUBSTITUTE($O147,\"}\",CHAR(160),FJ$1))-FIND(CHAR(160),SUBSTITUTE($O147,\"{\",CHAR(160),FJ$1))+1),\"\")","v":""},{"$f":"IFERROR(MID($O147,FIND(CHAR(160),SUBSTITUTE($O147,\"{\",CHAR(160),FK$1)),FIND(CHAR(160),SUBSTITUTE($O147,\"}\",CHAR(160),FK$1))-FIND(CHAR(160),SUBSTITUTE($O147,\"{\",CHAR(160),FK$1))+1),\"\")","v":"{Measure:Quantity}"},{"$f":"IFERROR(MID($O147,FIND(CHAR(160),SUBSTITUTE($O147,\"{\",CHAR(160),FL$1)),FIND(CHAR(160),SUBSTITUTE($O147,\"}\",CHAR(160),FL$1))-FIND(CHAR(160),SUBSTITUTE($O147,\"{\",CHAR(160),FL$1))+1),\"\")","v":"{Type}"},{"$f":"IFERROR(MID($R147,FIND(CHAR(160),SUBSTITUTE($R147,\"{\",CHAR(160),FM$1)),FIND(CHAR(160),SUBSTITUTE($R147,\"}\",CHAR(160),FM$1))-FIND(CHAR(160),SUBSTITUTE($R147,\"{\",CHAR(160),FM$1))+1),\"\")","v":""},{"$f":"IFERROR(MID($R147,FIND(CHAR(160),SUBSTITUTE($R147,\"{\",CHAR(160),FN$1)),FIND(CHAR(160),SUBSTITUTE($R147,\"}\",CHAR(160),FN$1))-FIND(CHAR(160),SUBSTITUTE($R147,\"{\",CHAR(160),FN$1))+1),\"\")","v":""},{"$f":"IFERROR(MID($R147,FIND(CHAR(160),SUBSTITUTE($R147,\"{\",CHAR(160),FO$1)),FIND(CHAR(160),SUBSTITUTE($R147,\"}\",CHAR(160),FO$1))-FIND(CHAR(160),SUBSTITUTE($R147,\"{\",CHAR(160),FO$1))+1),\"\")","v":""},{"$f":"IFERROR(MID($R147,FIND(CHAR(160),SUBSTITUTE($R147,\"{\",CHAR(160),FP$1)),FIND(CHAR(160),SUBSTITUTE($R147,\"}\",CHAR(160),FP$1))-FIND(CHAR(160),SUBSTITUTE($R147,\"{\",CHAR(160),FP$1))+1),\"\")","v":""},{"$f":"IFERROR(MID($R147,FIND(CHAR(160),SUBSTITUTE($R147,\"{\",CHAR(160),FQ$1)),FIND(CHAR(160),SUBSTITUTE($R147,\"}\",CHAR(160),FQ$1))-FIND(CHAR(160),SUBSTITUTE($R147,\"{\",CHAR(160),FQ$1))+1),\"\")","v":""},{"$f":"IFERROR(MID($R147,FIND(CHAR(160),SUBSTITUTE($R147,\"{\",CHAR(160),FR$1)),FIND(CHAR(160),SUBSTITUTE($R147,\"}\",CHAR(160),FR$1))-FIND(CHAR(160),SUBSTITUTE($R147,\"{\",CHAR(160),FR$1))+1),\"\")","v":""},{"$f":"IFERROR(MID($R147,FIND(CHAR(160),SUBSTITUTE($R147,\"{\",CHAR(160),FS$1)),FIND(CHAR(160),SUBSTITUTE($R147,\"}\",CHAR(160),FS$1))-FIND(CHAR(160),SUBSTITUTE($R147,\"{\",CHAR(160),FS$1))+1),\"\")","v":""},{"$f":"IFERROR(MID($R147,FIND(CHAR(160),SUBSTITUTE($R147,\"{\",CHAR(160),FT$1)),FIND(CHAR(160),SUBSTITUTE($R147,\"}\",CHAR(160),FT$1))-FIND(CHAR(160),SUBSTITUTE($R147,\"{\",CHAR(160),FT$1))+1),\"\")","v":""},{"$f":"IFERROR(MID($R147,FIND(CHAR(160),SUBSTITUTE($R147,\"{\",CHAR(160),FU$1)),FIND(CHAR(160),SUBSTITUTE($R147,\"}\",CHAR(160),FU$1))-FIND(CHAR(160),SUBSTITUTE($R147,\"{\",CHAR(160),FU$1))+1),\"\")","v":"{Measure:Quantity}"},{"$f":"IFERROR(MID($R147,FIND(CHAR(160),SUBSTITUTE($R147,\"{\",CHAR(160),FV$1)),FIND(CHAR(160),SUBSTITUTE($R147,\"}\",CHAR(160),FV$1))-FIND(CHAR(160),SUBSTITUTE($R147,\"{\",CHAR(160),FV$1))+1),\"\")","v":"{Type}"},{"$f":"IFERROR(MID($U147,FIND(CHAR(160),SUBSTITUTE($U147,\"{\",CHAR(160),FW$1)),FIND(CHAR(160),SUBSTITUTE($U147,\"}\",CHAR(160),FW$1))-FIND(CHAR(160),SUBSTITUTE($U147,\"{\",CHAR(160),FW$1))+1),\"\")","v":"{Factor:WinterCF}"},{"$f":"IFERROR(MID($U147,FIND(CHAR(160),SUBSTITUTE($U147,\"{\",CHAR(160),FX$1)),FIND(CHAR(160),SUBSTITUTE($U147,\"}\",CHAR(160),FX$1))-FIND(CHAR(160),SUBSTITUTE($U147,\"{\",CHAR(160),FX$1))+1),\"\")","v":""},{"$f":"IFERROR(MID($U147,FIND(CHAR(160),SUBSTITUTE($U147,\"{\",CHAR(160),FY$1)),FIND(CHAR(160),SUBSTITUTE($U147,\"}\",CHAR(160),FY$1))-FIND(CHAR(160),SUBSTITUTE($U147,\"{\",CHAR(160),FY$1))+1),\"\")","v":""},{"$f":"IFERROR(MID($U147,FIND(CHAR(160),SUBSTITUTE($U147,\"{\",CHAR(160),FZ$1)),FIND(CHAR(160),SUBSTITUTE($U147,\"}\",CHAR(160),FZ$1))-FIND(CHAR(160),SUBSTITUTE($U147,\"{\",CHAR(160),FZ$1))+1),\"\")","v":""},{"$f":"IFERROR(MID($U147,FIND(CHAR(160),SUBSTITUTE($U147,\"{\",CHAR(160),GA$1)),FIND(CHAR(160),SUBSTITUTE($U147,\"}\",CHAR(160),GA$1))-FIND(CHAR(160),SUBSTITUTE($U147,\"{\",CHAR(160),GA$1))+1),\"\")","v":""},{"$f":"IFERROR(MID($U147,FIND(CHAR(160),SUBSTITUTE($U147,\"{\",CHAR(160),GB$1)),FIND(CHAR(160),SUBSTITUTE($U147,\"}\",CHAR(160),GB$1))-FIND(CHAR(160),SUBSTITUTE($U147,\"{\",CHAR(160),GB$1))+1),\"\")","v":""},{"$f":"IFERROR(MID($U147,FIND(CHAR(160),SUBSTITUTE($U147,\"{\",CHAR(160),GC$1)),FIND(CHAR(160),SUBSTITUTE($U147,\"}\",CHAR(160),GC$1))-FIND(CHAR(160),SUBSTITUTE($U147,\"{\",CHAR(160),GC$1))+1),\"\")","v":""},{"$f":"IFERROR(MID($U147,FIND(CHAR(160),SUBSTITUTE($U147,\"{\",CHAR(160),GD$1)),FIND(CHAR(160),SUBSTITUTE($U147,\"}\",CHAR(160),GD$1))-FIND(CHAR(160),SUBSTITUTE($U147,\"{\",CHAR(160),GD$1))+1),\"\")","v":""},{"$f":"IFERROR(MID($U147,FIND(CHAR(160),SUBSTITUTE($U147,\"{\",CHAR(160),GE$1)),FIND(CHAR(160),SUBSTITUTE($U147,\"}\",CHAR(160),GE$1))-FIND(CHAR(160),SUBSTITUTE($U147,\"{\",CHAR(160),GE$1))+1),\"\")","v":"{Measure:Quantity}"},{"$f":"IFERROR(MID($U147,FIND(CHAR(160),SUBSTITUTE($U147,\"{\",CHAR(160),GF$1)),FIND(CHAR(160),SUBSTITUTE($U147,\"}\",CHAR(160),GF$1))-FIND(CHAR(160),SUBSTITUTE($U147,\"{\",CHAR(160),GF$1))+1),\"\")","v":"{Type}"},{"$f":"IFERROR(MID($V147,FIND(CHAR(160),SUBSTITUTE($V147,\"{\",CHAR(160),GG$1)),FIND(CHAR(160),SUBSTITUTE($V147,\"}\",CHAR(160),GG$1))-FIND(CHAR(160),SUBSTITUTE($V147,\"{\",CHAR(160),GG$1))+1),\"\")","v":"{Factor:SummerCF}"},{"$f":"IFERROR(MID($V147,FIND(CHAR(160),SUBSTITUTE($V147,\"{\",CHAR(160),GH$1)),FIND(CHAR(160),SUBSTITUTE($V147,\"}\",CHAR(160),GH$1))-FIND(CHAR(160),SUBSTITUTE($V147,\"{\",CHAR(160),GH$1))+1),\"\")","v":""},{"$f":"IFERROR(MID($V147,FIND(CHAR(160),SUBSTITUTE($V147,\"{\",CHAR(160),GI$1)),FIND(CHAR(160),SUBSTITUTE($V147,\"}\",CHAR(160),GI$1))-FIND(CHAR(160),SUBSTITUTE($V147,\"{\",CHAR(160),GI$1))+1),\"\")","v":""},{"$f":"IFERROR(MID($V147,FIND(CHAR(160),SUBSTITUTE($V147,\"{\",CHAR(160),GJ$1)),FIND(CHAR(160),SUBSTITUTE($V147,\"}\",CHAR(160),GJ$1))-FIND(CHAR(160),SUBSTITUTE($V147,\"{\",CHAR(160),GJ$1))+1),\"\")","v":""},{"$f":"IFERROR(MID($V147,FIND(CHAR(160),SUBSTITUTE($V147,\"{\",CHAR(160),GK$1)),FIND(CHAR(160),SUBSTITUTE($V147,\"}\",CHAR(160),GK$1))-FIND(CHAR(160),SUBSTITUTE($V147,\"{\",CHAR(160),GK$1))+1),\"\")","v":""},{"$f":"IFERROR(MID($V147,FIND(CHAR(160),SUBSTITUTE($V147,\"{\",CHAR(160),GL$1)),FIND(CHAR(160),SUBSTITUTE($V147,\"}\",CHAR(160),GL$1))-FIND(CHAR(160),SUBSTITUTE($V147,\"{\",CHAR(160),GL$1))+1),\"\")","v":""},{"$f":"IFERROR(MID($V147,FIND(CHAR(160),SUBSTITUTE($V147,\"{\",CHAR(160),GM$1)),FIND(CHAR(160),SUBSTITUTE($V147,\"}\",CHAR(160),GM$1))-FIND(CHAR(160),SUBSTITUTE($V147,\"{\",CHAR(160),GM$1))+1),\"\")","v":""},{"$f":"IFERROR(MID($V147,FIND(CHAR(160),SUBSTITUTE($V147,\"{\",CHAR(160),GN$1)),FIND(CHAR(160),SUBSTITUTE($V147,\"}\",CHAR(160),GN$1))-FIND(CHAR(160),SUBSTITUTE($V147,\"{\",CHAR(160),GN$1))+1),\"\")","v":""},{"$f":"IFERROR(MID($V147,FIND(CHAR(160),SUBSTITUTE($V147,\"{\",CHAR(160),GO$1)),FIND(CHAR(160),SUBSTITUTE($V147,\"}\",CHAR(160),GO$1))-FIND(CHAR(160),SUBSTITUTE($V147,\"{\",CHAR(160),GO$1))+1),\"\")","v":"{Measure:Quantity}"},{"$f":"IFERROR(MID($V147,FIND(CHAR(160),SUBSTITUTE($V147,\"{\",CHAR(160),GP$1)),FIND(CHAR(160),SUBSTITUTE($V147,\"}\",CHAR(160),GP$1))-FIND(CHAR(160),SUBSTITUTE($V147,\"{\",CHAR(160),GP$1))+1),\"\")","v":"{Type}"},{"$f":"IFERROR(MID($W147,FIND(CHAR(160),SUBSTITUTE($W147,\"{\",CHAR(160),GQ$1)),FIND(CHAR(160),SUBSTITUTE($W147,\"}\",CHAR(160),GQ$1))-FIND(CHAR(160),SUBSTITUTE($W147,\"{\",CHAR(160),GQ$1))+1),\"\")","v":""},{"$f":"IFERROR(MID($W147,FIND(CHAR(160),SUBSTITUTE($W147,\"{\",CHAR(160),GR$1)),FIND(CHAR(160),SUBSTITUTE($W147,\"}\",CHAR(160),GR$1))-FIND(CHAR(160),SUBSTITUTE($W147,\"{\",CHAR(160),GR$1))+1),\"\")","v":""},{"$f":"IFERROR(MID($W147,FIND(CHAR(160),SUBSTITUTE($W147,\"{\",CHAR(160),GS$1)),FIND(CHAR(160),SUBSTITUTE($W147,\"}\",CHAR(160),GS$1))-FIND(CHAR(160),SUBSTITUTE($W147,\"{\",CHAR(160),GS$1))+1),\"\")","v":""},{"$f":"IFERROR(MID($W147,FIND(CHAR(160),SUBSTITUTE($W147,\"{\",CHAR(160),GT$1)),FIND(CHAR(160),SUBSTITUTE($W147,\"}\",CHAR(160),GT$1))-FIND(CHAR(160),SUBSTITUTE($W147,\"{\",CHAR(160),GT$1))+1),\"\")","v":""},{"$f":"IFERROR(MID($W147,FIND(CHAR(160),SUBSTITUTE($W147,\"{\",CHAR(160),GU$1)),FIND(CHAR(160),SUBSTITUTE($W147,\"}\",CHAR(160),GU$1))-FIND(CHAR(160),SUBSTITUTE($W147,\"{\",CHAR(160),GU$1))+1),\"\")","v":""},{"$f":"IFERROR(MID($W147,FIND(CHAR(160),SUBSTITUTE($W147,\"{\",CHAR(160),GV$1)),FIND(CHAR(160),SUBSTITUTE($W147,\"}\",CHAR(160),GV$1))-FIND(CHAR(160),SUBSTITUTE($W147,\"{\",CHAR(160),GV$1))+1),\"\")","v":""},{"$f":"IFERROR(MID($W147,FIND(CHAR(160),SUBSTITUTE($W147,\"{\",CHAR(160),GW$1)),FIND(CHAR(160),SUBSTITUTE($W147,\"}\",CHAR(160),GW$1))-FIND(CHAR(160),SUBSTITUTE($W147,\"{\",CHAR(160),GW$1))+1),\"\")","v":""},{"$f":"IFERROR(MID($W147,FIND(CHAR(160),SUBSTITUTE($W147,\"{\",CHAR(160),GX$1)),FIND(CHAR(160),SUBSTITUTE($W147,\"}\",CHAR(160),GX$1))-FIND(CHAR(160),SUBSTITUTE($W147,\"{\",CHAR(160),GX$1))+1),\"\")","v":""},{"$f":"IFERROR(MID($W147,FIND(CHAR(160),SUBSTITUTE($W147,\"{\",CHAR(160),GY$1)),FIND(CHAR(160),SUBSTITUTE($W147,\"}\",CHAR(160),GY$1))-FIND(CHAR(160),SUBSTITUTE($W147,\"{\",CHAR(160),GY$1))+1),\"\")","v":""},{"$f":"IFERROR(MID($W147,FIND(CHAR(160),SUBSTITUTE($W147,\"{\",CHAR(160),GZ$1)),FIND(CHAR(160),SUBSTITUTE($W147,\"}\",CHAR(160),GZ$1))-FIND(CHAR(160),SUBSTITUTE($W147,\"{\",CHAR(160),GZ$1))+1),\"\")","v":""},{"$f":"IFERROR(MID($X147,FIND(CHAR(160),SUBSTITUTE($X147,\"{\",CHAR(160),HA$1)),FIND(CHAR(160),SUBSTITUTE($X147,\"}\",CHAR(160),HA$1))-FIND(CHAR(160),SUBSTITUTE($X147,\"{\",CHAR(160),HA$1))+1),\"\")","v":""},{"$f":"IFERROR(MID($X147,FIND(CHAR(160),SUBSTITUTE($X147,\"{\",CHAR(160),HB$1)),FIND(CHAR(160),SUBSTITUTE($X147,\"}\",CHAR(160),HB$1))-FIND(CHAR(160),SUBSTITUTE($X147,\"{\",CHAR(160),HB$1))+1),\"\")","v":""},{"$f":"IFERROR(MID($X147,FIND(CHAR(160),SUBSTITUTE($X147,\"{\",CHAR(160),HC$1)),FIND(CHAR(160),SUBSTITUTE($X147,\"}\",CHAR(160),HC$1))-FIND(CHAR(160),SUBSTITUTE($X147,\"{\",CHAR(160),HC$1))+1),\"\")","v":""},{"$f":"IFERROR(MID($X147,FIND(CHAR(160),SUBSTITUTE($X147,\"{\",CHAR(160),HD$1)),FIND(CHAR(160),SUBSTITUTE($X147,\"}\",CHAR(160),HD$1))-FIND(CHAR(160),SUBSTITUTE($X147,\"{\",CHAR(160),HD$1))+1),\"\")","v":""},{"$f":"IFERROR(MID($X147,FIND(CHAR(160),SUBSTITUTE($X147,\"{\",CHAR(160),HE$1)),FIND(CHAR(160),SUBSTITUTE($X147,\"}\",CHAR(160),HE$1))-FIND(CHAR(160),SUBSTITUTE($X147,\"{\",CHAR(160),HE$1))+1),\"\")","v":""},{"$f":"IFERROR(MID($X147,FIND(CHAR(160),SUBSTITUTE($X147,\"{\",CHAR(160),HF$1)),FIND(CHAR(160),SUBSTITUTE($X147,\"}\",CHAR(160),HF$1))-FIND(CHAR(160),SUBSTITUTE($X147,\"{\",CHAR(160),HF$1))+1),\"\")","v":""},{"$f":"IFERROR(MID($X147,FIND(CHAR(160),SUBSTITUTE($X147,\"{\",CHAR(160),HG$1)),FIND(CHAR(160),SUBSTITUTE($X147,\"}\",CHAR(160),HG$1))-FIND(CHAR(160),SUBSTITUTE($X147,\"{\",CHAR(160),HG$1))+1),\"\")","v":""},{"$f":"IFERROR(MID($X147,FIND(CHAR(160),SUBSTITUTE($X147,\"{\",CHAR(160),HH$1)),FIND(CHAR(160),SUBSTITUTE($X147,\"}\",CHAR(160),HH$1))-FIND(CHAR(160),SUBSTITUTE($X147,\"{\",CHAR(160),HH$1))+1),\"\")","v":""},{"$f":"IFERROR(MID($X147,FIND(CHAR(160),SUBSTITUTE($X147,\"{\",CHAR(160),HI$1)),FIND(CHAR(160),SUBSTITUTE($X147,\"}\",CHAR(160),HI$1))-FIND(CHAR(160),SUBSTITUTE($X147,\"{\",CHAR(160),HI$1))+1),\"\")","v":""},{"$f":"IFERROR(MID($X147,FIND(CHAR(160),SUBSTITUTE($X147,\"{\",CHAR(160),HJ$1)),FIND(CHAR(160),SUBSTITUTE($X147,\"}\",CHAR(160),HJ$1))-FIND(CHAR(160),SUBSTITUTE($X147,\"{\",CHAR(160),HJ$1))+1),\"\")","v":""},{"$f":"IFERROR(MID($Y147,FIND(CHAR(160),SUBSTITUTE($Y147,\"{\",CHAR(160),HK$1)),FIND(CHAR(160),SUBSTITUTE($Y147,\"}\",CHAR(160),HK$1))-FIND(CHAR(160),SUBSTITUTE($Y147,\"{\",CHAR(160),HK$1))+1),\"\")","v":""},{"$f":"IFERROR(MID($Y147,FIND(CHAR(160),SUBSTITUTE($Y147,\"{\",CHAR(160),HL$1)),FIND(CHAR(160),SUBSTITUTE($Y147,\"}\",CHAR(160),HL$1))-FIND(CHAR(160),SUBSTITUTE($Y147,\"{\",CHAR(160),HL$1))+1),\"\")","v":""},{"$f":"IFERROR(MID($Y147,FIND(CHAR(160),SUBSTITUTE($Y147,\"{\",CHAR(160),HM$1)),FIND(CHAR(160),SUBSTITUTE($Y147,\"}\",CHAR(160),HM$1))-FIND(CHAR(160),SUBSTITUTE($Y147,\"{\",CHAR(160),HM$1))+1),\"\")","v":""},{"$f":"IFERROR(MID($Y147,FIND(CHAR(160),SUBSTITUTE($Y147,\"{\",CHAR(160),HN$1)),FIND(CHAR(160),SUBSTITUTE($Y147,\"}\",CHAR(160),HN$1))-FIND(CHAR(160),SUBSTITUTE($Y147,\"{\",CHAR(160),HN$1))+1),\"\")","v":""},{"$f":"IFERROR(MID($Y147,FIND(CHAR(160),SUBSTITUTE($Y147,\"{\",CHAR(160),HO$1)),FIND(CHAR(160),SUBSTITUTE($Y147,\"}\",CHAR(160),HO$1))-FIND(CHAR(160),SUBSTITUTE($Y147,\"{\",CHAR(160),HO$1))+1),\"\")","v":""},{"$f":"IFERROR(MID($Y147,FIND(CHAR(160),SUBSTITUTE($Y147,\"{\",CHAR(160),HP$1)),FIND(CHAR(160),SUBSTITUTE($Y147,\"}\",CHAR(160),HP$1))-FIND(CHAR(160),SUBSTITUTE($Y147,\"{\",CHAR(160),HP$1))+1),\"\")","v":""},{"$f":"IFERROR(MID($Y147,FIND(CHAR(160),SUBSTITUTE($Y147,\"{\",CHAR(160),HQ$1)),FIND(CHAR(160),SUBSTITUTE($Y147,\"}\",CHAR(160),HQ$1))-FIND(CHAR(160),SUBSTITUTE($Y147,\"{\",CHAR(160),HQ$1))+1),\"\")","v":""},{"$f":"IFERROR(MID($Y147,FIND(CHAR(160),SUBSTITUTE($Y147,\"{\",CHAR(160),HR$1)),FIND(CHAR(160),SUBSTITUTE($Y147,\"}\",CHAR(160),HR$1))-FIND(CHAR(160),SUBSTITUTE($Y147,\"{\",CHAR(160),HR$1))+1),\"\")","v":""},{"$f":"IFERROR(MID($Y147,FIND(CHAR(160),SUBSTITUTE($Y147,\"{\",CHAR(160),HS$1)),FIND(CHAR(160),SUBSTITUTE($Y147,\"}\",CHAR(160),HS$1))-FIND(CHAR(160),SUBSTITUTE($Y147,\"{\",CHAR(160),HS$1))+1),\"\")","v":""},{"$f":"IFERROR(MID($Y147,FIND(CHAR(160),SUBSTITUTE($Y147,\"{\",CHAR(160),HT$1)),FIND(CHAR(160),SUBSTITUTE($Y147,\"}\",CHAR(160),HT$1))-FIND(CHAR(160),SUBSTITUTE($Y147,\"{\",CHAR(160),HT$1))+1),\"\")","v":""},{"$f":"IFERROR(MID($Z147,FIND(CHAR(160),SUBSTITUTE($Z147,\"{\",CHAR(160),HU$1)),FIND(CHAR(160),SUBSTITUTE($Z147,\"}\",CHAR(160),HU$1))-FIND(CHAR(160),SUBSTITUTE($Z147,\"{\",CHAR(160),HU$1))+1),\"\")","v":""},{"$f":"IFERROR(MID($Z147,FIND(CHAR(160),SUBSTITUTE($Z147,\"{\",CHAR(160),HV$1)),FIND(CHAR(160),SUBSTITUTE($Z147,\"}\",CHAR(160),HV$1))-FIND(CHAR(160),SUBSTITUTE($Z147,\"{\",CHAR(160),HV$1))+1),\"\")","v":""},{"$f":"IFERROR(MID($Z147,FIND(CHAR(160),SUBSTITUTE($Z147,\"{\",CHAR(160),HW$1)),FIND(CHAR(160),SUBSTITUTE($Z147,\"}\",CHAR(160),HW$1))-FIND(CHAR(160),SUBSTITUTE($Z147,\"{\",CHAR(160),HW$1))+1),\"\")","v":""},{"$f":"IFERROR(MID($Z147,FIND(CHAR(160),SUBSTITUTE($Z147,\"{\",CHAR(160),HX$1)),FIND(CHAR(160),SUBSTITUTE($Z147,\"}\",CHAR(160),HX$1))-FIND(CHAR(160),SUBSTITUTE($Z147,\"{\",CHAR(160),HX$1))+1),\"\")","v":""},{"$f":"IFERROR(MID($Z147,FIND(CHAR(160),SUBSTITUTE($Z147,\"{\",CHAR(160),HY$1)),FIND(CHAR(160),SUBSTITUTE($Z147,\"}\",CHAR(160),HY$1))-FIND(CHAR(160),SUBSTITUTE($Z147,\"{\",CHAR(160),HY$1))+1),\"\")","v":""},{"$f":"IFERROR(MID($Z147,FIND(CHAR(160),SUBSTITUTE($Z147,\"{\",CHAR(160),HZ$1)),FIND(CHAR(160),SUBSTITUTE($Z147,\"}\",CHAR(160),HZ$1))-FIND(CHAR(160),SUBSTITUTE($Z147,\"{\",CHAR(160),HZ$1))+1),\"\")","v":""},{"$f":"IFERROR(MID($Z147,FIND(CHAR(160),SUBSTITUTE($Z147,\"{\",CHAR(160),IA$1)),FIND(CHAR(160),SUBSTITUTE($Z147,\"}\",CHAR(160),IA$1))-FIND(CHAR(160),SUBSTITUTE($Z147,\"{\",CHAR(160),IA$1))+1),\"\")","v":""},{"$f":"IFERROR(MID($Z147,FIND(CHAR(160),SUBSTITUTE($Z147,\"{\",CHAR(160),IB$1)),FIND(CHAR(160),SUBSTITUTE($Z147,\"}\",CHAR(160),IB$1))-FIND(CHAR(160),SUBSTITUTE($Z147,\"{\",CHAR(160),IB$1))+1),\"\")","v":""},{"$f":"IFERROR(MID($Z147,FIND(CHAR(160),SUBSTITUTE($Z147,\"{\",CHAR(160),IC$1)),FIND(CHAR(160),SUBSTITUTE($Z147,\"}\",CHAR(160),IC$1))-FIND(CHAR(160),SUBSTITUTE($Z147,\"{\",CHAR(160),IC$1))+1),\"\")","v":""},{"$f":"IFERROR(MID($Z147,FIND(CHAR(160),SUBSTITUTE($Z147,\"{\",CHAR(160),ID$1)),FIND(CHAR(160),SUBSTITUTE($Z147,\"}\",CHAR(160),ID$1))-FIND(CHAR(160),SUBSTITUTE($Z147,\"{\",CHAR(160),ID$1))+1),\"\")","v":""},{"$f":"IFERROR(MID($AA147,FIND(CHAR(160),SUBSTITUTE($AA147,\"{\",CHAR(160),IE$1)),FIND(CHAR(160),SUBSTITUTE($AA147,\"}\",CHAR(160),IE$1))-FIND(CHAR(160),SUBSTITUTE($AA147,\"{\",CHAR(160),IE$1))+1),\"\")","v":""},{"$f":"IFERROR(MID($AA147,FIND(CHAR(160),SUBSTITUTE($AA147,\"{\",CHAR(160),IF$1)),FIND(CHAR(160),SUBSTITUTE($AA147,\"}\",CHAR(160),IF$1))-FIND(CHAR(160),SUBSTITUTE($AA147,\"{\",CHAR(160),IF$1))+1),\"\")","v":""},{"$f":"IFERROR(MID($AA147,FIND(CHAR(160),SUBSTITUTE($AA147,\"{\",CHAR(160),IG$1)),FIND(CHAR(160),SUBSTITUTE($AA147,\"}\",CHAR(160),IG$1))-FIND(CHAR(160),SUBSTITUTE($AA147,\"{\",CHAR(160),IG$1))+1),\"\")","v":""},{"$f":"IFERROR(MID($AA147,FIND(CHAR(160),SUBSTITUTE($AA147,\"{\",CHAR(160),IH$1)),FIND(CHAR(160),SUBSTITUTE($AA147,\"}\",CHAR(160),IH$1))-FIND(CHAR(160),SUBSTITUTE($AA147,\"{\",CHAR(160),IH$1))+1),\"\")","v":""},{"$f":"IFERROR(MID($AA147,FIND(CHAR(160),SUBSTITUTE($AA147,\"{\",CHAR(160),II$1)),FIND(CHAR(160),SUBSTITUTE($AA147,\"}\",CHAR(160),II$1))-FIND(CHAR(160),SUBSTITUTE($AA147,\"{\",CHAR(160),II$1))+1),\"\")","v":""},{"$f":"IFERROR(MID($AA147,FIND(CHAR(160),SUBSTITUTE($AA147,\"{\",CHAR(160),IJ$1)),FIND(CHAR(160),SUBSTITUTE($AA147,\"}\",CHAR(160),IJ$1))-FIND(CHAR(160),SUBSTITUTE($AA147,\"{\",CHAR(160),IJ$1))+1),\"\")","v":""},{"$f":"IFERROR(MID($AA147,FIND(CHAR(160),SUBSTITUTE($AA147,\"{\",CHAR(160),IK$1)),FIND(CHAR(160),SUBSTITUTE($AA147,\"}\",CHAR(160),IK$1))-FIND(CHAR(160),SUBSTITUTE($AA147,\"{\",CHAR(160),IK$1))+1),\"\")","v":""},{"$f":"IFERROR(MID($AA147,FIND(CHAR(160),SUBSTITUTE($AA147,\"{\",CHAR(160),IL$1)),FIND(CHAR(160),SUBSTITUTE($AA147,\"}\",CHAR(160),IL$1))-FIND(CHAR(160),SUBSTITUTE($AA147,\"{\",CHAR(160),IL$1))+1),\"\")","v":""},{"$f":"IFERROR(MID($AA147,FIND(CHAR(160),SUBSTITUTE($AA147,\"{\",CHAR(160),IM$1)),FIND(CHAR(160),SUBSTITUTE($AA147,\"}\",CHAR(160),IM$1))-FIND(CHAR(160),SUBSTITUTE($AA147,\"{\",CHAR(160),IM$1))+1),\"\")","v":""},{"$f":"IFERROR(MID($AA147,FIND(CHAR(160),SUBSTITUTE($AA147,\"{\",CHAR(160),IN$1)),FIND(CHAR(160),SUBSTITUTE($AA147,\"}\",CHAR(160),IN$1))-FIND(CHAR(160),SUBSTITUTE($AA147,\"{\",CHAR(160),IN$1))+1),\"\")","v":""},{"$f":"IFERROR(MID($AB147,FIND(CHAR(160),SUBSTITUTE($AB147,\"{\",CHAR(160),IO$1)),FIND(CHAR(160),SUBSTITUTE($AB147,\"}\",CHAR(160),IO$1))-FIND(CHAR(160),SUBSTITUTE($AB147,\"{\",CHAR(160),IO$1))+1),\"\")","v":""},{"$f":"IFERROR(MID($AB147,FIND(CHAR(160),SUBSTITUTE($AB147,\"{\",CHAR(160),IP$1)),FIND(CHAR(160),SUBSTITUTE($AB147,\"}\",CHAR(160),IP$1))-FIND(CHAR(160),SUBSTITUTE($AB147,\"{\",CHAR(160),IP$1))+1),\"\")","v":""},{"$f":"IFERROR(MID($AB147,FIND(CHAR(160),SUBSTITUTE($AB147,\"{\",CHAR(160),IQ$1)),FIND(CHAR(160),SUBSTITUTE($AB147,\"}\",CHAR(160),IQ$1))-FIND(CHAR(160),SUBSTITUTE($AB147,\"{\",CHAR(160),IQ$1))+1),\"\")","v":""},{"$f":"IFERROR(MID($AB147,FIND(CHAR(160),SUBSTITUTE($AB147,\"{\",CHAR(160),IR$1)),FIND(CHAR(160),SUBSTITUTE($AB147,\"}\",CHAR(160),IR$1))-FIND(CHAR(160),SUBSTITUTE($AB147,\"{\",CHAR(160),IR$1))+1),\"\")","v":""},{"$f":"IFERROR(MID($AB147,FIND(CHAR(160),SUBSTITUTE($AB147,\"{\",CHAR(160),IS$1)),FIND(CHAR(160),SUBSTITUTE($AB147,\"}\",CHAR(160),IS$1))-FIND(CHAR(160),SUBSTITUTE($AB147,\"{\",CHAR(160),IS$1))+1),\"\")","v":""},{"$f":"IFERROR(MID($AB147,FIND(CHAR(160),SUBSTITUTE($AB147,\"{\",CHAR(160),IT$1)),FIND(CHAR(160),SUBSTITUTE($AB147,\"}\",CHAR(160),IT$1))-FIND(CHAR(160),SUBSTITUTE($AB147,\"{\",CHAR(160),IT$1))+1),\"\")","v":""},{"$f":"IFERROR(MID($AB147,FIND(CHAR(160),SUBSTITUTE($AB147,\"{\",CHAR(160),IU$1)),FIND(CHAR(160),SUBSTITUTE($AB147,\"}\",CHAR(160),IU$1))-FIND(CHAR(160),SUBSTITUTE($AB147,\"{\",CHAR(160),IU$1))+1),\"\")","v":""},{"$f":"IFERROR(MID($AB147,FIND(CHAR(160),SUBSTITUTE($AB147,\"{\",CHAR(160),IV$1)),FIND(CHAR(160),SUBSTITUTE($AB147,\"}\",CHAR(160),IV$1))-FIND(CHAR(160),SUBSTITUTE($AB147,\"{\",CHAR(160),IV$1))+1),\"\")","v":""},{"$f":"IFERROR(MID($AB147,FIND(CHAR(160),SUBSTITUTE($AB147,\"{\",CHAR(160),IW$1)),FIND(CHAR(160),SUBSTITUTE($AB147,\"}\",CHAR(160),IW$1))-FIND(CHAR(160),SUBSTITUTE($AB147,\"{\",CHAR(160),IW$1))+1),\"\")","v":""},{"$f":"IFERROR(MID($AB147,FIND(CHAR(160),SUBSTITUTE($AB147,\"{\",CHAR(160),IX$1)),FIND(CHAR(160),SUBSTITUTE($AB147,\"}\",CHAR(160),IX$1))-FIND(CHAR(160),SUBSTITUTE($AB147,\"{\",CHAR(160),IX$1))+1),\"\")","v":""},null,{"$f":"10-COUNTIF(DU147:ED147,\"\")","v":2}]
["C&I Refrigeration Solutions","R73 New Scroll Compressors - 5 HP","R73","2021-07-01","2022-06-30","Per Measure",1000,0,"Per Measure",550,0,"2020-11-01","2022-06-30","Calculated","{Measure:Quantity} * 5 * {Type}",1E-4,null,"{Measure:Quantity} * 5 * {Type} / 5858",null,null,"{Measure:Quantity} * 5 * {Type} / 5858 * {Factor:WinterCF}","{Measure:Quantity} * 5 * {Type} / 5858 *{Factor:SummerCF}",null,null,null,null,null,null,"2020-11-01","2022-06-30",15,0.50900000000000001,0.74,0.33,0.32600000000000001,0.17,0.17399999999999999,1,1.1220000000000001,1,0.52,1.6E-2,null,{"$f":"DU148","v":"{Measure:Quantity}"},1,{"$f":"DV148","v":"{Type}"},363,{"$f":"DW148","v":""},50,{"$f":"DX148","v":""},null,{"$f":"DY148","v":""},null,{"$f":"DZ148","v":""},null,{"$f":"EA148","v":""},null,{"$f":"EB148","v":""},null,{"$f":"EC148","v":""},null,{"$f":"ED148","v":""},null,{"$f":"AS148 * 5 * AU148","v":1815},{"$f":"0.0001","v":1E-4},0,{"$f":"AS148 * 5 * AU148 / 5858","v":0.30983270740867191},0,0,{"$f":"AS148 * 5 * AU148 / 5858 * AF148","v":0.15770484807101401},{"$f":"AS148 * 5 * AU148 / 5858 *AG148","v":0.2292762034824172},0,0,0,0,0,0,null,"Res","Default DR",{"$f":"Benefits(BL148,BR148,BS148,BT148,BU148,BV148,BW148,BX148,BY148,BZ148,AE148,AH148,AI148,AJ148,AK148,AL148,AM148,AN148,AO148,AP148,CA148,CB148)","v":2714.8510504512637},1025.5443209622572,0,0,0,0,0,0,0,{"$f":"SUMPRODUCT(CC148:CK148,--(CC148:CK148>0))","v":3740.3953714135209},{"$f":"-SUMPRODUCT(CC148:CK148,--(CC148:CK148<0))","v":0},null,{"$f":"1000","v":1000},null,null,{"$f":"CM148+CO148","v":1000},{"$f":"IF(NetOrGross=\"Net\",(1-AO148+AP148),1)","v":1},{"$f":"(SUMPRODUCT(CC148:CJ148,--(CC148:CJ148>0))+CN148)*CS148/((-SUMPRODUCT(CC148:CJ148,--(CC148:CJ148<0))+MAX(CO148,CV148)+CP148+CQ148)*CS148+IF(FRIncentives=\"Yes\",CV148*(1-CS148),0))","v":3.7403953714135207},1,{"$f":"550","v":550},null,"Electric","y",null,{"$f":"IF(F148=\"Manual Entry\",\"Manual\",IF(G148=\"\",0,\"X=\"&SUBSTITUTE(SUBSTITUTE(SUBSTITUTE(SUBSTITUTE(SUBSTITUTE(SUBSTITUTE(SUBSTITUTE(SUBSTITUTE(SUBSTITUTE(SUBSTITUTE(SUBSTITUTE(SUBSTITUTE(G148,$ED148,$ED$2&ROW($ED148)),$EC148,$EC$2&ROW($EC148)),$EB148,$EB$2&ROW($EB148)),$EA148,$EA$2&ROW($EA148)),$DZ148,$DZ$2&ROW($DZ148)),$DY148,$DY$2&ROW($DY148)),$DX148,$DX$2&ROW($DX148)),$DW148,$DW$2&ROW($DW148)),$DV148,$DV$2&ROW($DV148)),$DU148,$DU$2&ROW($DU148)),$DT148,$DT$2&ROW($DT148)),$DS148,$DS$2&ROW($DS148))))","v":"X=1000"},{"$f":"IF(I148=\"Manual Entry\",\"Manual\",IF(J148=\"\",0,\"X=\"&SUBSTITUTE(SUBSTITUTE(SUBSTITUTE(SUBSTITUTE(SUBSTITUTE(SUBSTITUTE(SUBSTITUTE(SUBSTITUTE(SUBSTITUTE(SUBSTITUTE(SUBSTITUTE(SUBSTITUTE(J148,$ED148,$ED$2&ROW($ED148)),$EC148,$EC$2&ROW($EC148)),$EB148,$EB$2&ROW($EB148)),$EA148,$EA$2&ROW($EA148)),$DZ148,$DZ$2&ROW($DZ148)),$DY148,$DY$2&ROW($DY148)),$DX148,$DX$2&ROW($DX148)),$DW148,$DW$2&ROW($DW148)),$DV148,$DV$2&ROW($DV148)),$DU148,$DU$2&ROW($DU148)),$DT148,$DT$2&ROW($DT148)),$DS148,$DS$2&ROW($DS148))))","v":"X=550"},{"$f":"IF(O148=\"\",0,\"X=\"&SUBSTITUTE(SUBSTITUTE(SUBSTITUTE(SUBSTITUTE(SUBSTITUTE(SUBSTITUTE(SUBSTITUTE(SUBSTITUTE(SUBSTITUTE(SUBSTITUTE(SUBSTITUTE(SUBSTITUTE(O148,$ED148,$ED$2&ROW($ED148)),$EC148,$EC$2&ROW($EC148)),$EB148,$EB$2&ROW($EB148)),$EA148,$EA$2&ROW($EA148)),$DZ148,$DZ$2&ROW($DZ148)),$DY148,$DY$2&ROW($DY148)),$DX148,$DX$2&ROW($DX148)),$DW148,$DW$2&ROW($DW148)),$DV148,$DV$2&ROW($DV148)),$DU148,$DU$2&ROW($DU148)),$DT148,$DT$2&ROW($DT148)),$DS148,$DS$2&ROW($DS148)))","v":"X=AS148 * 5 * AU148"},{"$f":"IF(P148=\"\",0,\"X=\"&SUBSTITUTE(SUBSTITUTE(SUBSTITUTE(SUBSTITUTE(SUBSTITUTE(SUBSTITUTE(SUBSTITUTE(SUBSTITUTE(SUBSTITUTE(SUBSTITUTE(SUBSTITUTE(SUBSTITUTE(P148,$ED148,$ED$2&ROW($ED148)),$EC148,$EC$2&ROW($EC148)),$EB148,$EB$2&ROW($EB148)),$EA148,$EA$2&ROW($EA148)),$DZ148,$DZ$2&ROW($DZ148)),$DY148,$DY$2&ROW($DY148)),$DX148,$DX$2&ROW($DX148)),$DW148,$DW$2&ROW($DW148)),$DV148,$DV$2&ROW($DV148)),$DU148,$DU$2&ROW($DU148)),$DT148,$DT$2&ROW($DT148)),$DS148,$DS$2&ROW($DS148)))","v":"X=0.0001"},{"$f":"IF(Q148=\"\",0,\"X=\"&SUBSTITUTE(SUBSTITUTE(SUBSTITUTE(SUBSTITUTE(SUBSTITUTE(SUBSTITUTE(SUBSTITUTE(SUBSTITUTE(SUBSTITUTE(SUBSTITUTE(SUBSTITUTE(SUBSTITUTE(Q148,$ED148,$ED$2&ROW($ED148)),$EC148,$EC$2&ROW($EC148)),$EB148,$EB$2&ROW($EB148)),$EA148,$EA$2&ROW($EA148)),$DZ148,$DZ$2&ROW($DZ148)),$DY148,$DY$2&ROW($DY148)),$DX148,$DX$2&ROW($DX148)),$DW148,$DW$2&ROW($DW148)),$DV148,$DV$2&ROW($DV148)),$DU148,$DU$2&ROW($DU148)),$DT148,$DT$2&ROW($DT148)),$DS148,$DS$2&ROW($DS148)))","v":0},{"$f":"IF(R148=\"\",0,\"X=\"&SUBSTITUTE(SUBSTITUTE(SUBSTITUTE(SUBSTITUTE(SUBSTITUTE(SUBSTITUTE(SUBSTITUTE(SUBSTITUTE(SUBSTITUTE(SUBSTITUTE(SUBSTITUTE(SUBSTITUTE(R148,$ED148,$ED$2&ROW($ED148)),$EC148,$EC$2&ROW($EC148)),$EB148,$EB$2&ROW($EB148)),$EA148,$EA$2&ROW($EA148)),$DZ148,$DZ$2&ROW($DZ148)),$DY148,$DY$2&ROW($DY148)),$DX148,$DX$2&ROW($DX148)),$DW148,$DW$2&ROW($DW148)),$DV148,$DV$2&ROW($DV148)),$DU148,$DU$2&ROW($DU148)),$DT148,$DT$2&ROW($DT148)),$DS148,$DS$2&ROW($DS148)))","v":"X=AS148 * 5 * AU148 / 5858"},{"$f":"IF(S148=\"\",0,\"X=\"&SUBSTITUTE(SUBSTITUTE(SUBSTITUTE(SUBSTITUTE(SUBSTITUTE(SUBSTITUTE(SUBSTITUTE(SUBSTITUTE(SUBSTITUTE(SUBSTITUTE(SUBSTITUTE(SUBSTITUTE(S148,$ED148,$ED$2&ROW($ED148)),$EC148,$EC$2&ROW($EC148)),$EB148,$EB$2&ROW($EB148)),$EA148,$EA$2&ROW($EA148)),$DZ148,$DZ$2&ROW($DZ148)),$DY148,$DY$2&ROW($DY148)),$DX148,$DX$2&ROW($DX148)),$DW148,$DW$2&ROW($DW148)),$DV148,$DV$2&ROW($DV148)),$DU148,$DU$2&ROW($DU148)),$DT148,$DT$2&ROW($DT148)),$DS148,$DS$2&ROW($DS148)))","v":0},{"$f":"IF(T148=\"\",0,\"X=\"&SUBSTITUTE(SUBSTITUTE(SUBSTITUTE(SUBSTITUTE(SUBSTITUTE(SUBSTITUTE(SUBSTITUTE(SUBSTITUTE(SUBSTITUTE(SUBSTITUTE(SUBSTITUTE(SUBSTITUTE(T148,$ED148,$ED$2&ROW($ED148)),$EC148,$EC$2&ROW($EC148)),$EB148,$EB$2&ROW($EB148)),$EA148,$EA$2&ROW($EA148)),$DZ148,$DZ$2&ROW($DZ148)),$DY148,$DY$2&ROW($DY148)),$DX148,$DX$2&ROW($DX148)),$DW148,$DW$2&ROW($DW148)),$DV148,$DV$2&ROW($DV148)),$DU148,$DU$2&ROW($DU148)),$DT148,$DT$2&ROW($DT148)),$DS148,$DS$2&ROW($DS148)))","v":0},{"$f":"IF(U148=\"\",0,\"X=\"&SUBSTITUTE(SUBSTITUTE(SUBSTITUTE(SUBSTITUTE(SUBSTITUTE(SUBSTITUTE(SUBSTITUTE(SUBSTITUTE(SUBSTITUTE(SUBSTITUTE(SUBSTITUTE(SUBSTITUTE(U148,$ED148,$ED$2&ROW($ED148)),$EC148,$EC$2&ROW($EC148)),$EB148,$EB$2&ROW($EB148)),$EA148,$EA$2&ROW($EA148)),$DZ148,$DZ$2&ROW($DZ148)),$DY148,$DY$2&ROW($DY148)),$DX148,$DX$2&ROW($DX148)),$DW148,$DW$2&ROW($DW148)),$DV148,$DV$2&ROW($DV148)),$DU148,$DU$2&ROW($DU148)),$DT148,$DT$2&ROW($DT148)),$DS148,$DS$2&ROW($DS148)))","v":"X=AS148 * 5 * AU148 / 5858 * AF148"},{"$f":"IF(V148=\"\",0,\"X=\"&SUBSTITUTE(SUBSTITUTE(SUBSTITUTE(SUBSTITUTE(SUBSTITUTE(SUBSTITUTE(SUBSTITUTE(SUBSTITUTE(SUBSTITUTE(SUBSTITUTE(SUBSTITUTE(SUBSTITUTE(V148,$ED148,$ED$2&ROW($ED148)),$EC148,$EC$2&ROW($EC148)),$EB148,$EB$2&ROW($EB148)),$EA148,$EA$2&ROW($EA148)),$DZ148,$DZ$2&ROW($DZ148)),$DY148,$DY$2&ROW($DY148)),$DX148,$DX$2&ROW($DX148)),$DW148,$DW$2&ROW($DW148)),$DV148,$DV$2&ROW($DV148)),$DU148,$DU$2&ROW($DU148)),$DT148,$DT$2&ROW($DT148)),$DS148,$DS$2&ROW($DS148)))","v":"X=AS148 * 5 * AU148 / 5858 *AG148"},{"$f":"IF(W148=\"\",0,\"X=\"&SUBSTITUTE(SUBSTITUTE(SUBSTITUTE(SUBSTITUTE(SUBSTITUTE(SUBSTITUTE(SUBSTITUTE(SUBSTITUTE(SUBSTITUTE(SUBSTITUTE(SUBSTITUTE(SUBSTITUTE(W148,$ED148,$ED$2&ROW($ED148)),$EC148,$EC$2&ROW($EC148)),$EB148,$EB$2&ROW($EB148)),$EA148,$EA$2&ROW($EA148)),$DZ148,$DZ$2&ROW($DZ148)),$DY148,$DY$2&ROW($DY148)),$DX148,$DX$2&ROW($DX148)),$DW148,$DW$2&ROW($DW148)),$DV148,$DV$2&ROW($DV148)),$DU148,$DU$2&ROW($DU148)),$DT148,$DT$2&ROW($DT148)),$DS148,$DS$2&ROW($DS148)))","v":0},{"$f":"IF(X148=\"\",0,\"X=\"&SUBSTITUTE(SUBSTITUTE(SUBSTITUTE(SUBSTITUTE(SUBSTITUTE(SUBSTITUTE(SUBSTITUTE(SUBSTITUTE(SUBSTITUTE(SUBSTITUTE(SUBSTITUTE(SUBSTITUTE(X148,$ED148,$ED$2&ROW($ED148)),$EC148,$EC$2&ROW($EC148)),$EB148,$EB$2&ROW($EB148)),$EA148,$EA$2&ROW($EA148)),$DZ148,$DZ$2&ROW($DZ148)),$DY148,$DY$2&ROW($DY148)),$DX148,$DX$2&ROW($DX148)),$DW148,$DW$2&ROW($DW148)),$DV148,$DV$2&ROW($DV148)),$DU148,$DU$2&ROW($DU148)),$DT148,$DT$2&ROW($DT148)),$DS148,$DS$2&ROW($DS148)))","v":0},{"$f":"IF(Y148=\"\",0,\"X=\"&SUBSTITUTE(SUBSTITUTE(SUBSTITUTE(SUBSTITUTE(SUBSTITUTE(SUBSTITUTE(SUBSTITUTE(SUBSTITUTE(SUBSTITUTE(SUBSTITUTE(SUBSTITUTE(SUBSTITUTE(Y148,$ED148,$ED$2&ROW($ED148)),$EC148,$EC$2&ROW($EC148)),$EB148,$EB$2&ROW($EB148)),$EA148,$EA$2&ROW($EA148)),$DZ148,$DZ$2&ROW($DZ148)),$DY148,$DY$2&ROW($DY148)),$DX148,$DX$2&ROW($DX148)),$DW148,$DW$2&ROW($DW148)),$DV148,$DV$2&ROW($DV148)),$DU148,$DU$2&ROW($DU148)),$DT148,$DT$2&ROW($DT148)),$DS148,$DS$2&ROW($DS148)))","v":0},{"$f":"IF(Z148=\"\",0,\"X=\"&SUBSTITUTE(SUBSTITUTE(SUBSTITUTE(SUBSTITUTE(SUBSTITUTE(SUBSTITUTE(SUBSTITUTE(SUBSTITUTE(SUBSTITUTE(SUBSTITUTE(SUBSTITUTE(SUBSTITUTE(Z148,$ED148,$ED$2&ROW($ED148)),$EC148,$EC$2&ROW($EC148)),$EB148,$EB$2&ROW($EB148)),$EA148,$EA$2&ROW($EA148)),$DZ148,$DZ$2&ROW($DZ148)),$DY148,$DY$2&ROW($DY148)),$DX148,$DX$2&ROW($DX148)),$DW148,$DW$2&ROW($DW148)),$DV148,$DV$2&ROW($DV148)),$DU148,$DU$2&ROW($DU148)),$DT148,$DT$2&ROW($DT148)),$DS148,$DS$2&ROW($DS148)))","v":0},{"$f":"IF(AA148=\"\",0,\"X=\"&SUBSTITUTE(SUBSTITUTE(SUBSTITUTE(SUBSTITUTE(SUBSTITUTE(SUBSTITUTE(SUBSTITUTE(SUBSTITUTE(SUBSTITUTE(SUBSTITUTE(SUBSTITUTE(SUBSTITUTE(AA148,$ED148,$ED$2&ROW($ED148)),$EC148,$EC$2&ROW($EC148)),$EB148,$EB$2&ROW($EB148)),$EA148,$EA$2&ROW($EA148)),$DZ148,$DZ$2&ROW($DZ148)),$DY148,$DY$2&ROW($DY148)),$DX148,$DX$2&ROW($DX148)),$DW148,$DW$2&ROW($DW148)),$DV148,$DV$2&ROW($DV148)),$DU148,$DU$2&ROW($DU148)),$DT148,$DT$2&ROW($DT148)),$DS148,$DS$2&ROW($DS148)))","v":0},{"$f":"IF(AB148=\"\",0,\"X=\"&SUBSTITUTE(SUBSTITUTE(SUBSTITUTE(SUBSTITUTE(SUBSTITUTE(SUBSTITUTE(SUBSTITUTE(SUBSTITUTE(SUBSTITUTE(SUBSTITUTE(SUBSTITUTE(SUBSTITUTE(AB148,$ED148,$ED$2&ROW($ED148)),$EC148,$EC$2&ROW($EC148)),$EB148,$EB$2&ROW($EB148)),$EA148,$EA$2&ROW($EA148)),$DZ148,$DZ$2&ROW($DZ148)),$DY148,$DY$2&ROW($DY148)),$DX148,$DX$2&ROW($DX148)),$DW148,$DW$2&ROW($DW148)),$DV148,$DV$2&ROW($DV148)),$DU148,$DU$2&ROW($DU148)),$DT148,$DT$2&ROW($DT148)),$DS148,$DS$2&ROW($DS148)))","v":0},null,null,"{Factor:WinterCF}","{Factor:SummerCF}",{"$f":"IFERROR(INDEX($EG148:$IV148,MATCH(0,COUNTIF($DR148:DT148,$EG148:$IV148),0)),\"\")","v":"{Measure:Quantity}"},{"$f":"IFERROR(INDEX($EG148:$IV148,MATCH(0,COUNTIF($DR148:DU148,$EG148:$IV148),0)),\"\")","v":"{Type}"},{"$f":"IFERROR(INDEX($EG148:$IV148,MATCH(0,COUNTIF($DR148:DV148,$EG148:$IV148),0)),\"\")","v":""},{"$f":"IFERROR(INDEX($EG148:$IV148,MATCH(0,COUNTIF($DR148:DW148,$EG148:$IV148),0)),\"\")","v":""},{"$f":"IFERROR(INDEX($EG148:$IV148,MATCH(0,COUNTIF($DR148:DX148,$EG148:$IV148),0)),\"\")","v":""},{"$f":"IFERROR(INDEX($EG148:$IV148,MATCH(0,COUNTIF($DR148:DY148,$EG148:$IV148),0)),\"\")","v":""},{"$f":"IFERROR(INDEX($EG148:$IV148,MATCH(0,COUNTIF($DR148:DZ148,$EG148:$IV148),0)),\"\")","v":""},{"$f":"IFERROR(INDEX($EG148:$IV148,MATCH(0,COUNTIF($DR148:EA148,$EG148:$IV148),0)),\"\")","v":""},{"$f":"IFERROR(INDEX($EG148:$IV148,MATCH(0,COUNTIF($DR148:EB148,$EG148:$IV148),0)),\"\")","v":""},{"$f":"IFERROR(INDEX($EG148:$IV148,MATCH(0,COUNTIF($DR148:EC148,$EG148:$IV148),0)),\"\")","v":""},null,null,{"$f":"IFERROR(MID($G148,FIND(CHAR(160),SUBSTITUTE($G148,\"{\",CHAR(160),EG$1)),FIND(CHAR(160),SUBSTITUTE($G148,\"}\",CHAR(160),EG$1))-FIND(CHAR(160),SUBSTITUTE($G148,\"{\",CHAR(160),EG$1))+1),\"\")","v":""},{"$f":"IFERROR(MID($G148,FIND(CHAR(160),SUBSTITUTE($G148,\"{\",CHAR(160),EH$1)),FIND(CHAR(160),SUBSTITUTE($G148,\"}\",CHAR(160),EH$1))-FIND(CHAR(160),SUBSTITUTE($G148,\"{\",CHAR(160),EH$1))+1),\"\")","v":""},{"$f":"IFERROR(MID($G148,FIND(CHAR(160),SUBSTITUTE($G148,\"{\",CHAR(160),EI$1)),FIND(CHAR(160),SUBSTITUTE($G148,\"}\",CHAR(160),EI$1))-FIND(CHAR(160),SUBSTITUTE($G148,\"{\",CHAR(160),EI$1))+1),\"\")","v":""},{"$f":"IFERROR(MID($G148,FIND(CHAR(160),SUBSTITUTE($G148,\"{\",CHAR(160),EJ$1)),FIND(CHAR(160),SUBSTITUTE($G148,\"}\",CHAR(160),EJ$1))-FIND(CHAR(160),SUBSTITUTE($G148,\"{\",CHAR(160),EJ$1))+1),\"\")","v":""},{"$f":"IFERROR(MID($G148,FIND(CHAR(160),SUBSTITUTE($G148,\"{\",CHAR(160),EK$1)),FIND(CHAR(160),SUBSTITUTE($G148,\"}\",CHAR(160),EK$1))-FIND(CHAR(160),SUBSTITUTE($G148,\"{\",CHAR(160),EK$1))+1),\"\")","v":""},{"$f":"IFERROR(MID($G148,FIND(CHAR(160),SUBSTITUTE($G148,\"{\",CHAR(160),EL$1)),FIND(CHAR(160),SUBSTITUTE($G148,\"}\",CHAR(160),EL$1))-FIND(CHAR(160),SUBSTITUTE($G148,\"{\",CHAR(160),EL$1))+1),\"\")","v":""},{"$f":"IFERROR(MID($G148,FIND(CHAR(160),SUBSTITUTE($G148,\"{\",CHAR(160),EM$1)),FIND(CHAR(160),SUBSTITUTE($G148,\"}\",CHAR(160),EM$1))-FIND(CHAR(160),SUBSTITUTE($G148,\"{\",CHAR(160),EM$1))+1),\"\")","v":""},{"$f":"IFERROR(MID($G148,FIND(CHAR(160),SUBSTITUTE($G148,\"{\",CHAR(160),EN$1)),FIND(CHAR(160),SUBSTITUTE($G148,\"}\",CHAR(160),EN$1))-FIND(CHAR(160),SUBSTITUTE($G148,\"{\",CHAR(160),EN$1))+1),\"\")","v":""},{"$f":"IFERROR(MID($G148,FIND(CHAR(160),SUBSTITUTE($G148,\"{\",CHAR(160),EO$1)),FIND(CHAR(160),SUBSTITUTE($G148,\"}\",CHAR(160),EO$1))-FIND(CHAR(160),SUBSTITUTE($G148,\"{\",CHAR(160),EO$1))+1),\"\")","v":""},{"$f":"IFERROR(MID($G148,FIND(CHAR(160),SUBSTITUTE($G148,\"{\",CHAR(160),EP$1)),FIND(CHAR(160),SUBSTITUTE($G148,\"}\",CHAR(160),EP$1))-FIND(CHAR(160),SUBSTITUTE($G148,\"{\",CHAR(160),EP$1))+1),\"\")","v":""},{"$f":"IFERROR(MID($J148,FIND(CHAR(160),SUBSTITUTE($J148,\"{\",CHAR(160),EQ$1)),FIND(CHAR(160),SUBSTITUTE($J148,\"}\",CHAR(160),EQ$1))-FIND(CHAR(160),SUBSTITUTE($J148,\"{\",CHAR(160),EQ$1))+1),\"\")","v":""},{"$f":"IFERROR(MID($J148,FIND(CHAR(160),SUBSTITUTE($J148,\"{\",CHAR(160),ER$1)),FIND(CHAR(160),SUBSTITUTE($J148,\"}\",CHAR(160),ER$1))-FIND(CHAR(160),SUBSTITUTE($J148,\"{\",CHAR(160),ER$1))+1),\"\")","v":""},{"$f":"IFERROR(MID($J148,FIND(CHAR(160),SUBSTITUTE($J148,\"{\",CHAR(160),ES$1)),FIND(CHAR(160),SUBSTITUTE($J148,\"}\",CHAR(160),ES$1))-FIND(CHAR(160),SUBSTITUTE($J148,\"{\",CHAR(160),ES$1))+1),\"\")","v":""},{"$f":"IFERROR(MID($J148,FIND(CHAR(160),SUBSTITUTE($J148,\"{\",CHAR(160),ET$1)),FIND(CHAR(160),SUBSTITUTE($J148,\"}\",CHAR(160),ET$1))-FIND(CHAR(160),SUBSTITUTE($J148,\"{\",CHAR(160),ET$1))+1),\"\")","v":""},{"$f":"IFERROR(MID($J148,FIND(CHAR(160),SUBSTITUTE($J148,\"{\",CHAR(160),EU$1)),FIND(CHAR(160),SUBSTITUTE($J148,\"}\",CHAR(160),EU$1))-FIND(CHAR(160),SUBSTITUTE($J148,\"{\",CHAR(160),EU$1))+1),\"\")","v":""},{"$f":"IFERROR(MID($J148,FIND(CHAR(160),SUBSTITUTE($J148,\"{\",CHAR(160),EV$1)),FIND(CHAR(160),SUBSTITUTE($J148,\"}\",CHAR(160),EV$1))-FIND(CHAR(160),SUBSTITUTE($J148,\"{\",CHAR(160),EV$1))+1),\"\")","v":""},{"$f":"IFERROR(MID($J148,FIND(CHAR(160),SUBSTITUTE($J148,\"{\",CHAR(160),EW$1)),FIND(CHAR(160),SUBSTITUTE($J148,\"}\",CHAR(160),EW$1))-FIND(CHAR(160),SUBSTITUTE($J148,\"{\",CHAR(160),EW$1))+1),\"\")","v":""},{"$f":"IFERROR(MID($J148,FIND(CHAR(160),SUBSTITUTE($J148,\"{\",CHAR(160),EX$1)),FIND(CHAR(160),SUBSTITUTE($J148,\"}\",CHAR(160),EX$1))-FIND(CHAR(160),SUBSTITUTE($J148,\"{\",CHAR(160),EX$1))+1),\"\")","v":""},{"$f":"IFERROR(MID($J148,FIND(CHAR(160),SUBSTITUTE($J148,\"{\",CHAR(160),EY$1)),FIND(CHAR(160),SUBSTITUTE($J148,\"}\",CHAR(160),EY$1))-FIND(CHAR(160),SUBSTITUTE($J148,\"{\",CHAR(160),EY$1))+1),\"\")","v":""},{"$f":"IFERROR(MID($J148,FIND(CHAR(160),SUBSTITUTE($J148,\"{\",CHAR(160),EZ$1)),FIND(CHAR(160),SUBSTITUTE($J148,\"}\",CHAR(160),EZ$1))-FIND(CHAR(160),SUBSTITUTE($J148,\"{\",CHAR(160),EZ$1))+1),\"\")","v":""},{"$f":"IFERROR(MID($J148,FIND(CHAR(160),SUBSTITUTE($J148,\"{\",CHAR(160),FA$1)),FIND(CHAR(160),SUBSTITUTE($J148,\"}\",CHAR(160),FA$1))-FIND(CHAR(160),SUBSTITUTE($J148,\"{\",CHAR(160),FA$1))+1),\"\")","v":""},{"$f":"IFERROR(MID($J148,FIND(CHAR(160),SUBSTITUTE($J148,\"{\",CHAR(160),FB$1)),FIND(CHAR(160),SUBSTITUTE($J148,\"}\",CHAR(160),FB$1))-FIND(CHAR(160),SUBSTITUTE($J148,\"{\",CHAR(160),FB$1))+1),\"\")","v":""},{"$f":"IFERROR(MID($O148,FIND(CHAR(160),SUBSTITUTE($O148,\"{\",CHAR(160),FC$1)),FIND(CHAR(160),SUBSTITUTE($O148,\"}\",CHAR(160),FC$1))-FIND(CHAR(160),SUBSTITUTE($O148,\"{\",CHAR(160),FC$1))+1),\"\")","v":""},{"$f":"IFERROR(MID($O148,FIND(CHAR(160),SUBSTITUTE($O148,\"{\",CHAR(160),FD$1)),FIND(CHAR(160),SUBSTITUTE($O148,\"}\",CHAR(160),FD$1))-FIND(CHAR(160),SUBSTITUTE($O148,\"{\",CHAR(160),FD$1))+1),\"\")","v":""},{"$f":"IFERROR(MID($O148,FIND(CHAR(160),SUBSTITUTE($O148,\"{\",CHAR(160),FE$1)),FIND(CHAR(160),SUBSTITUTE($O148,\"}\",CHAR(160),FE$1))-FIND(CHAR(160),SUBSTITUTE($O148,\"{\",CHAR(160),FE$1))+1),\"\")","v":""},{"$f":"IFERROR(MID($O148,FIND(CHAR(160),SUBSTITUTE($O148,\"{\",CHAR(160),FF$1)),FIND(CHAR(160),SUBSTITUTE($O148,\"}\",CHAR(160),FF$1))-FIND(CHAR(160),SUBSTITUTE($O148,\"{\",CHAR(160),FF$1))+1),\"\")","v":""},{"$f":"IFERROR(MID($O148,FIND(CHAR(160),SUBSTITUTE($O148,\"{\",CHAR(160),FG$1)),FIND(CHAR(160),SUBSTITUTE($O148,\"}\",CHAR(160),FG$1))-FIND(CHAR(160),SUBSTITUTE($O148,\"{\",CHAR(160),FG$1))+1),\"\")","v":""},{"$f":"IFERROR(MID($O148,FIND(CHAR(160),SUBSTITUTE($O148,\"{\",CHAR(160),FH$1)),FIND(CHAR(160),SUBSTITUTE($O148,\"}\",CHAR(160),FH$1))-FIND(CHAR(160),SUBSTITUTE($O148,\"{\",CHAR(160),FH$1))+1),\"\")","v":""},{"$f":"IFERROR(MID($O148,FIND(CHAR(160),SUBSTITUTE($O148,\"{\",CHAR(160),FI$1)),FIND(CHAR(160),SUBSTITUTE($O148,\"}\",CHAR(160),FI$1))-FIND(CHAR(160),SUBSTITUTE($O148,\"{\",CHAR(160),FI$1))+1),\"\")","v":""},{"$f":"IFERROR(MID($O148,FIND(CHAR(160),SUBSTITUTE($O148,\"{\",CHAR(160),FJ$1)),FIND(CHAR(160),SUBSTITUTE($O148,\"}\",CHAR(160),FJ$1))-FIND(CHAR(160),SUBSTITUTE($O148,\"{\",CHAR(160),FJ$1))+1),\"\")","v":""},{"$f":"IFERROR(MID($O148,FIND(CHAR(160),SUBSTITUTE($O148,\"{\",CHAR(160),FK$1)),FIND(CHAR(160),SUBSTITUTE($O148,\"}\",CHAR(160),FK$1))-FIND(CHAR(160),SUBSTITUTE($O148,\"{\",CHAR(160),FK$1))+1),\"\")","v":"{Measure:Quantity}"},{"$f":"IFERROR(MID($O148,FIND(CHAR(160),SUBSTITUTE($O148,\"{\",CHAR(160),FL$1)),FIND(CHAR(160),SUBSTITUTE($O148,\"}\",CHAR(160),FL$1))-FIND(CHAR(160),SUBSTITUTE($O148,\"{\",CHAR(160),FL$1))+1),\"\")","v":"{Type}"},{"$f":"IFERROR(MID($R148,FIND(CHAR(160),SUBSTITUTE($R148,\"{\",CHAR(160),FM$1)),FIND(CHAR(160),SUBSTITUTE($R148,\"}\",CHAR(160),FM$1))-FIND(CHAR(160),SUBSTITUTE($R148,\"{\",CHAR(160),FM$1))+1),\"\")","v":""},{"$f":"IFERROR(MID($R148,FIND(CHAR(160),SUBSTITUTE($R148,\"{\",CHAR(160),FN$1)),FIND(CHAR(160),SUBSTITUTE($R148,\"}\",CHAR(160),FN$1))-FIND(CHAR(160),SUBSTITUTE($R148,\"{\",CHAR(160),FN$1))+1),\"\")","v":""},{"$f":"IFERROR(MID($R148,FIND(CHAR(160),SUBSTITUTE($R148,\"{\",CHAR(160),FO$1)),FIND(CHAR(160),SUBSTITUTE($R148,\"}\",CHAR(160),FO$1))-FIND(CHAR(160),SUBSTITUTE($R148,\"{\",CHAR(160),FO$1))+1),\"\")","v":""},{"$f":"IFERROR(MID($R148,FIND(CHAR(160),SUBSTITUTE($R148,\"{\",CHAR(160),FP$1)),FIND(CHAR(160),SUBSTITUTE($R148,\"}\",CHAR(160),FP$1))-FIND(CHAR(160),SUBSTITUTE($R148,\"{\",CHAR(160),FP$1))+1),\"\")","v":""},{"$f":"IFERROR(MID($R148,FIND(CHAR(160),SUBSTITUTE($R148,\"{\",CHAR(160),FQ$1)),FIND(CHAR(160),SUBSTITUTE($R148,\"}\",CHAR(160),FQ$1))-FIND(CHAR(160),SUBSTITUTE($R148,\"{\",CHAR(160),FQ$1))+1),\"\")","v":""},{"$f":"IFERROR(MID($R148,FIND(CHAR(160),SUBSTITUTE($R148,\"{\",CHAR(160),FR$1)),FIND(CHAR(160),SUBSTITUTE($R148,\"}\",CHAR(160),FR$1))-FIND(CHAR(160),SUBSTITUTE($R148,\"{\",CHAR(160),FR$1))+1),\"\")","v":""},{"$f":"IFERROR(MID($R148,FIND(CHAR(160),SUBSTITUTE($R148,\"{\",CHAR(160),FS$1)),FIND(CHAR(160),SUBSTITUTE($R148,\"}\",CHAR(160),FS$1))-FIND(CHAR(160),SUBSTITUTE($R148,\"{\",CHAR(160),FS$1))+1),\"\")","v":""},{"$f":"IFERROR(MID($R148,FIND(CHAR(160),SUBSTITUTE($R148,\"{\",CHAR(160),FT$1)),FIND(CHAR(160),SUBSTITUTE($R148,\"}\",CHAR(160),FT$1))-FIND(CHAR(160),SUBSTITUTE($R148,\"{\",CHAR(160),FT$1))+1),\"\")","v":""},{"$f":"IFERROR(MID($R148,FIND(CHAR(160),SUBSTITUTE($R148,\"{\",CHAR(160),FU$1)),FIND(CHAR(160),SUBSTITUTE($R148,\"}\",CHAR(160),FU$1))-FIND(CHAR(160),SUBSTITUTE($R148,\"{\",CHAR(160),FU$1))+1),\"\")","v":"{Measure:Quantity}"},{"$f":"IFERROR(MID($R148,FIND(CHAR(160),SUBSTITUTE($R148,\"{\",CHAR(160),FV$1)),FIND(CHAR(160),SUBSTITUTE($R148,\"}\",CHAR(160),FV$1))-FIND(CHAR(160),SUBSTITUTE($R148,\"{\",CHAR(160),FV$1))+1),\"\")","v":"{Type}"},{"$f":"IFERROR(MID($U148,FIND(CHAR(160),SUBSTITUTE($U148,\"{\",CHAR(160),FW$1)),FIND(CHAR(160),SUBSTITUTE($U148,\"}\",CHAR(160),FW$1))-FIND(CHAR(160),SUBSTITUTE($U148,\"{\",CHAR(160),FW$1))+1),\"\")","v":"{Factor:WinterCF}"},{"$f":"IFERROR(MID($U148,FIND(CHAR(160),SUBSTITUTE($U148,\"{\",CHAR(160),FX$1)),FIND(CHAR(160),SUBSTITUTE($U148,\"}\",CHAR(160),FX$1))-FIND(CHAR(160),SUBSTITUTE($U148,\"{\",CHAR(160),FX$1))+1),\"\")","v":""},{"$f":"IFERROR(MID($U148,FIND(CHAR(160),SUBSTITUTE($U148,\"{\",CHAR(160),FY$1)),FIND(CHAR(160),SUBSTITUTE($U148,\"}\",CHAR(160),FY$1))-FIND(CHAR(160),SUBSTITUTE($U148,\"{\",CHAR(160),FY$1))+1),\"\")","v":""},{"$f":"IFERROR(MID($U148,FIND(CHAR(160),SUBSTITUTE($U148,\"{\",CHAR(160),FZ$1)),FIND(CHAR(160),SUBSTITUTE($U148,\"}\",CHAR(160),FZ$1))-FIND(CHAR(160),SUBSTITUTE($U148,\"{\",CHAR(160),FZ$1))+1),\"\")","v":""},{"$f":"IFERROR(MID($U148,FIND(CHAR(160),SUBSTITUTE($U148,\"{\",CHAR(160),GA$1)),FIND(CHAR(160),SUBSTITUTE($U148,\"}\",CHAR(160),GA$1))-FIND(CHAR(160),SUBSTITUTE($U148,\"{\",CHAR(160),GA$1))+1),\"\")","v":""},{"$f":"IFERROR(MID($U148,FIND(CHAR(160),SUBSTITUTE($U148,\"{\",CHAR(160),GB$1)),FIND(CHAR(160),SUBSTITUTE($U148,\"}\",CHAR(160),GB$1))-FIND(CHAR(160),SUBSTITUTE($U148,\"{\",CHAR(160),GB$1))+1),\"\")","v":""},{"$f":"IFERROR(MID($U148,FIND(CHAR(160),SUBSTITUTE($U148,\"{\",CHAR(160),GC$1)),FIND(CHAR(160),SUBSTITUTE($U148,\"}\",CHAR(160),GC$1))-FIND(CHAR(160),SUBSTITUTE($U148,\"{\",CHAR(160),GC$1))+1),\"\")","v":""},{"$f":"IFERROR(MID($U148,FIND(CHAR(160),SUBSTITUTE($U148,\"{\",CHAR(160),GD$1)),FIND(CHAR(160),SUBSTITUTE($U148,\"}\",CHAR(160),GD$1))-FIND(CHAR(160),SUBSTITUTE($U148,\"{\",CHAR(160),GD$1))+1),\"\")","v":""},{"$f":"IFERROR(MID($U148,FIND(CHAR(160),SUBSTITUTE($U148,\"{\",CHAR(160),GE$1)),FIND(CHAR(160),SUBSTITUTE($U148,\"}\",CHAR(160),GE$1))-FIND(CHAR(160),SUBSTITUTE($U148,\"{\",CHAR(160),GE$1))+1),\"\")","v":"{Measure:Quantity}"},{"$f":"IFERROR(MID($U148,FIND(CHAR(160),SUBSTITUTE($U148,\"{\",CHAR(160),GF$1)),FIND(CHAR(160),SUBSTITUTE($U148,\"}\",CHAR(160),GF$1))-FIND(CHAR(160),SUBSTITUTE($U148,\"{\",CHAR(160),GF$1))+1),\"\")","v":"{Type}"},{"$f":"IFERROR(MID($V148,FIND(CHAR(160),SUBSTITUTE($V148,\"{\",CHAR(160),GG$1)),FIND(CHAR(160),SUBSTITUTE($V148,\"}\",CHAR(160),GG$1))-FIND(CHAR(160),SUBSTITUTE($V148,\"{\",CHAR(160),GG$1))+1),\"\")","v":"{Factor:SummerCF}"},{"$f":"IFERROR(MID($V148,FIND(CHAR(160),SUBSTITUTE($V148,\"{\",CHAR(160),GH$1)),FIND(CHAR(160),SUBSTITUTE($V148,\"}\",CHAR(160),GH$1))-FIND(CHAR(160),SUBSTITUTE($V148,\"{\",CHAR(160),GH$1))+1),\"\")","v":""},{"$f":"IFERROR(MID($V148,FIND(CHAR(160),SUBSTITUTE($V148,\"{\",CHAR(160),GI$1)),FIND(CHAR(160),SUBSTITUTE($V148,\"}\",CHAR(160),GI$1))-FIND(CHAR(160),SUBSTITUTE($V148,\"{\",CHAR(160),GI$1))+1),\"\")","v":""},{"$f":"IFERROR(MID($V148,FIND(CHAR(160),SUBSTITUTE($V148,\"{\",CHAR(160),GJ$1)),FIND(CHAR(160),SUBSTITUTE($V148,\"}\",CHAR(160),GJ$1))-FIND(CHAR(160),SUBSTITUTE($V148,\"{\",CHAR(160),GJ$1))+1),\"\")","v":""},{"$f":"IFERROR(MID($V148,FIND(CHAR(160),SUBSTITUTE($V148,\"{\",CHAR(160),GK$1)),FIND(CHAR(160),SUBSTITUTE($V148,\"}\",CHAR(160),GK$1))-FIND(CHAR(160),SUBSTITUTE($V148,\"{\",CHAR(160),GK$1))+1),\"\")","v":""},{"$f":"IFERROR(MID($V148,FIND(CHAR(160),SUBSTITUTE($V148,\"{\",CHAR(160),GL$1)),FIND(CHAR(160),SUBSTITUTE($V148,\"}\",CHAR(160),GL$1))-FIND(CHAR(160),SUBSTITUTE($V148,\"{\",CHAR(160),GL$1))+1),\"\")","v":""},{"$f":"IFERROR(MID($V148,FIND(CHAR(160),SUBSTITUTE($V148,\"{\",CHAR(160),GM$1)),FIND(CHAR(160),SUBSTITUTE($V148,\"}\",CHAR(160),GM$1))-FIND(CHAR(160),SUBSTITUTE($V148,\"{\",CHAR(160),GM$1))+1),\"\")","v":""},{"$f":"IFERROR(MID($V148,FIND(CHAR(160),SUBSTITUTE($V148,\"{\",CHAR(160),GN$1)),FIND(CHAR(160),SUBSTITUTE($V148,\"}\",CHAR(160),GN$1))-FIND(CHAR(160),SUBSTITUTE($V148,\"{\",CHAR(160),GN$1))+1),\"\")","v":""},{"$f":"IFERROR(MID($V148,FIND(CHAR(160),SUBSTITUTE($V148,\"{\",CHAR(160),GO$1)),FIND(CHAR(160),SUBSTITUTE($V148,\"}\",CHAR(160),GO$1))-FIND(CHAR(160),SUBSTITUTE($V148,\"{\",CHAR(160),GO$1))+1),\"\")","v":"{Measure:Quantity}"},{"$f":"IFERROR(MID($V148,FIND(CHAR(160),SUBSTITUTE($V148,\"{\",CHAR(160),GP$1)),FIND(CHAR(160),SUBSTITUTE($V148,\"}\",CHAR(160),GP$1))-FIND(CHAR(160),SUBSTITUTE($V148,\"{\",CHAR(160),GP$1))+1),\"\")","v":"{Type}"},{"$f":"IFERROR(MID($W148,FIND(CHAR(160),SUBSTITUTE($W148,\"{\",CHAR(160),GQ$1)),FIND(CHAR(160),SUBSTITUTE($W148,\"}\",CHAR(160),GQ$1))-FIND(CHAR(160),SUBSTITUTE($W148,\"{\",CHAR(160),GQ$1))+1),\"\")","v":""},{"$f":"IFERROR(MID($W148,FIND(CHAR(160),SUBSTITUTE($W148,\"{\",CHAR(160),GR$1)),FIND(CHAR(160),SUBSTITUTE($W148,\"}\",CHAR(160),GR$1))-FIND(CHAR(160),SUBSTITUTE($W148,\"{\",CHAR(160),GR$1))+1),\"\")","v":""},{"$f":"IFERROR(MID($W148,FIND(CHAR(160),SUBSTITUTE($W148,\"{\",CHAR(160),GS$1)),FIND(CHAR(160),SUBSTITUTE($W148,\"}\",CHAR(160),GS$1))-FIND(CHAR(160),SUBSTITUTE($W148,\"{\",CHAR(160),GS$1))+1),\"\")","v":""},{"$f":"IFERROR(MID($W148,FIND(CHAR(160),SUBSTITUTE($W148,\"{\",CHAR(160),GT$1)),FIND(CHAR(160),SUBSTITUTE($W148,\"}\",CHAR(160),GT$1))-FIND(CHAR(160),SUBSTITUTE($W148,\"{\",CHAR(160),GT$1))+1),\"\")","v":""},{"$f":"IFERROR(MID($W148,FIND(CHAR(160),SUBSTITUTE($W148,\"{\",CHAR(160),GU$1)),FIND(CHAR(160),SUBSTITUTE($W148,\"}\",CHAR(160),GU$1))-FIND(CHAR(160),SUBSTITUTE($W148,\"{\",CHAR(160),GU$1))+1),\"\")","v":""},{"$f":"IFERROR(MID($W148,FIND(CHAR(160),SUBSTITUTE($W148,\"{\",CHAR(160),GV$1)),FIND(CHAR(160),SUBSTITUTE($W148,\"}\",CHAR(160),GV$1))-FIND(CHAR(160),SUBSTITUTE($W148,\"{\",CHAR(160),GV$1))+1),\"\")","v":""},{"$f":"IFERROR(MID($W148,FIND(CHAR(160),SUBSTITUTE($W148,\"{\",CHAR(160),GW$1)),FIND(CHAR(160),SUBSTITUTE($W148,\"}\",CHAR(160),GW$1))-FIND(CHAR(160),SUBSTITUTE($W148,\"{\",CHAR(160),GW$1))+1),\"\")","v":""},{"$f":"IFERROR(MID($W148,FIND(CHAR(160),SUBSTITUTE($W148,\"{\",CHAR(160),GX$1)),FIND(CHAR(160),SUBSTITUTE($W148,\"}\",CHAR(160),GX$1))-FIND(CHAR(160),SUBSTITUTE($W148,\"{\",CHAR(160),GX$1))+1),\"\")","v":""},{"$f":"IFERROR(MID($W148,FIND(CHAR(160),SUBSTITUTE($W148,\"{\",CHAR(160),GY$1)),FIND(CHAR(160),SUBSTITUTE($W148,\"}\",CHAR(160),GY$1))-FIND(CHAR(160),SUBSTITUTE($W148,\"{\",CHAR(160),GY$1))+1),\"\")","v":""},{"$f":"IFERROR(MID($W148,FIND(CHAR(160),SUBSTITUTE($W148,\"{\",CHAR(160),GZ$1)),FIND(CHAR(160),SUBSTITUTE($W148,\"}\",CHAR(160),GZ$1))-FIND(CHAR(160),SUBSTITUTE($W148,\"{\",CHAR(160),GZ$1))+1),\"\")","v":""},{"$f":"IFERROR(MID($X148,FIND(CHAR(160),SUBSTITUTE($X148,\"{\",CHAR(160),HA$1)),FIND(CHAR(160),SUBSTITUTE($X148,\"}\",CHAR(160),HA$1))-FIND(CHAR(160),SUBSTITUTE($X148,\"{\",CHAR(160),HA$1))+1),\"\")","v":""},{"$f":"IFERROR(MID($X148,FIND(CHAR(160),SUBSTITUTE($X148,\"{\",CHAR(160),HB$1)),FIND(CHAR(160),SUBSTITUTE($X148,\"}\",CHAR(160),HB$1))-FIND(CHAR(160),SUBSTITUTE($X148,\"{\",CHAR(160),HB$1))+1),\"\")","v":""},{"$f":"IFERROR(MID($X148,FIND(CHAR(160),SUBSTITUTE($X148,\"{\",CHAR(160),HC$1)),FIND(CHAR(160),SUBSTITUTE($X148,\"}\",CHAR(160),HC$1))-FIND(CHAR(160),SUBSTITUTE($X148,\"{\",CHAR(160),HC$1))+1),\"\")","v":""},{"$f":"IFERROR(MID($X148,FIND(CHAR(160),SUBSTITUTE($X148,\"{\",CHAR(160),HD$1)),FIND(CHAR(160),SUBSTITUTE($X148,\"}\",CHAR(160),HD$1))-FIND(CHAR(160),SUBSTITUTE($X148,\"{\",CHAR(160),HD$1))+1),\"\")","v":""},{"$f":"IFERROR(MID($X148,FIND(CHAR(160),SUBSTITUTE($X148,\"{\",CHAR(160),HE$1)),FIND(CHAR(160),SUBSTITUTE($X148,\"}\",CHAR(160),HE$1))-FIND(CHAR(160),SUBSTITUTE($X148,\"{\",CHAR(160),HE$1))+1),\"\")","v":""},{"$f":"IFERROR(MID($X148,FIND(CHAR(160),SUBSTITUTE($X148,\"{\",CHAR(160),HF$1)),FIND(CHAR(160),SUBSTITUTE($X148,\"}\",CHAR(160),HF$1))-FIND(CHAR(160),SUBSTITUTE($X148,\"{\",CHAR(160),HF$1))+1),\"\")","v":""},{"$f":"IFERROR(MID($X148,FIND(CHAR(160),SUBSTITUTE($X148,\"{\",CHAR(160),HG$1)),FIND(CHAR(160),SUBSTITUTE($X148,\"}\",CHAR(160),HG$1))-FIND(CHAR(160),SUBSTITUTE($X148,\"{\",CHAR(160),HG$1))+1),\"\")","v":""},{"$f":"IFERROR(MID($X148,FIND(CHAR(160),SUBSTITUTE($X148,\"{\",CHAR(160),HH$1)),FIND(CHAR(160),SUBSTITUTE($X148,\"}\",CHAR(160),HH$1))-FIND(CHAR(160),SUBSTITUTE($X148,\"{\",CHAR(160),HH$1))+1),\"\")","v":""},{"$f":"IFERROR(MID($X148,FIND(CHAR(160),SUBSTITUTE($X148,\"{\",CHAR(160),HI$1)),FIND(CHAR(160),SUBSTITUTE($X148,\"}\",CHAR(160),HI$1))-FIND(CHAR(160),SUBSTITUTE($X148,\"{\",CHAR(160),HI$1))+1),\"\")","v":""},{"$f":"IFERROR(MID($X148,FIND(CHAR(160),SUBSTITUTE($X148,\"{\",CHAR(160),HJ$1)),FIND(CHAR(160),SUBSTITUTE($X148,\"}\",CHAR(160),HJ$1))-FIND(CHAR(160),SUBSTITUTE($X148,\"{\",CHAR(160),HJ$1))+1),\"\")","v":""},{"$f":"IFERROR(MID($Y148,FIND(CHAR(160),SUBSTITUTE($Y148,\"{\",CHAR(160),HK$1)),FIND(CHAR(160),SUBSTITUTE($Y148,\"}\",CHAR(160),HK$1))-FIND(CHAR(160),SUBSTITUTE($Y148,\"{\",CHAR(160),HK$1))+1),\"\")","v":""},{"$f":"IFERROR(MID($Y148,FIND(CHAR(160),SUBSTITUTE($Y148,\"{\",CHAR(160),HL$1)),FIND(CHAR(160),SUBSTITUTE($Y148,\"}\",CHAR(160),HL$1))-FIND(CHAR(160),SUBSTITUTE($Y148,\"{\",CHAR(160),HL$1))+1),\"\")","v":""},{"$f":"IFERROR(MID($Y148,FIND(CHAR(160),SUBSTITUTE($Y148,\"{\",CHAR(160),HM$1)),FIND(CHAR(160),SUBSTITUTE($Y148,\"}\",CHAR(160),HM$1))-FIND(CHAR(160),SUBSTITUTE($Y148,\"{\",CHAR(160),HM$1))+1),\"\")","v":""},{"$f":"IFERROR(MID($Y148,FIND(CHAR(160),SUBSTITUTE($Y148,\"{\",CHAR(160),HN$1)),FIND(CHAR(160),SUBSTITUTE($Y148,\"}\",CHAR(160),HN$1))-FIND(CHAR(160),SUBSTITUTE($Y148,\"{\",CHAR(160),HN$1))+1),\"\")","v":""},{"$f":"IFERROR(MID($Y148,FIND(CHAR(160),SUBSTITUTE($Y148,\"{\",CHAR(160),HO$1)),FIND(CHAR(160),SUBSTITUTE($Y148,\"}\",CHAR(160),HO$1))-FIND(CHAR(160),SUBSTITUTE($Y148,\"{\",CHAR(160),HO$1))+1),\"\")","v":""},{"$f":"IFERROR(MID($Y148,FIND(CHAR(160),SUBSTITUTE($Y148,\"{\",CHAR(160),HP$1)),FIND(CHAR(160),SUBSTITUTE($Y148,\"}\",CHAR(160),HP$1))-FIND(CHAR(160),SUBSTITUTE($Y148,\"{\",CHAR(160),HP$1))+1),\"\")","v":""},{"$f":"IFERROR(MID($Y148,FIND(CHAR(160),SUBSTITUTE($Y148,\"{\",CHAR(160),HQ$1)),FIND(CHAR(160),SUBSTITUTE($Y148,\"}\",CHAR(160),HQ$1))-FIND(CHAR(160),SUBSTITUTE($Y148,\"{\",CHAR(160),HQ$1))+1),\"\")","v":""},{"$f":"IFERROR(MID($Y148,FIND(CHAR(160),SUBSTITUTE($Y148,\"{\",CHAR(160),HR$1)),FIND(CHAR(160),SUBSTITUTE($Y148,\"}\",CHAR(160),HR$1))-FIND(CHAR(160),SUBSTITUTE($Y148,\"{\",CHAR(160),HR$1))+1),\"\")","v":""},{"$f":"IFERROR(MID($Y148,FIND(CHAR(160),SUBSTITUTE($Y148,\"{\",CHAR(160),HS$1)),FIND(CHAR(160),SUBSTITUTE($Y148,\"}\",CHAR(160),HS$1))-FIND(CHAR(160),SUBSTITUTE($Y148,\"{\",CHAR(160),HS$1))+1),\"\")","v":""},{"$f":"IFERROR(MID($Y148,FIND(CHAR(160),SUBSTITUTE($Y148,\"{\",CHAR(160),HT$1)),FIND(CHAR(160),SUBSTITUTE($Y148,\"}\",CHAR(160),HT$1))-FIND(CHAR(160),SUBSTITUTE($Y148,\"{\",CHAR(160),HT$1))+1),\"\")","v":""},{"$f":"IFERROR(MID($Z148,FIND(CHAR(160),SUBSTITUTE($Z148,\"{\",CHAR(160),HU$1)),FIND(CHAR(160),SUBSTITUTE($Z148,\"}\",CHAR(160),HU$1))-FIND(CHAR(160),SUBSTITUTE($Z148,\"{\",CHAR(160),HU$1))+1),\"\")","v":""},{"$f":"IFERROR(MID($Z148,FIND(CHAR(160),SUBSTITUTE($Z148,\"{\",CHAR(160),HV$1)),FIND(CHAR(160),SUBSTITUTE($Z148,\"}\",CHAR(160),HV$1))-FIND(CHAR(160),SUBSTITUTE($Z148,\"{\",CHAR(160),HV$1))+1),\"\")","v":""},{"$f":"IFERROR(MID($Z148,FIND(CHAR(160),SUBSTITUTE($Z148,\"{\",CHAR(160),HW$1)),FIND(CHAR(160),SUBSTITUTE($Z148,\"}\",CHAR(160),HW$1))-FIND(CHAR(160),SUBSTITUTE($Z148,\"{\",CHAR(160),HW$1))+1),\"\")","v":""},{"$f":"IFERROR(MID($Z148,FIND(CHAR(160),SUBSTITUTE($Z148,\"{\",CHAR(160),HX$1)),FIND(CHAR(160),SUBSTITUTE($Z148,\"}\",CHAR(160),HX$1))-FIND(CHAR(160),SUBSTITUTE($Z148,\"{\",CHAR(160),HX$1))+1),\"\")","v":""},{"$f":"IFERROR(MID($Z148,FIND(CHAR(160),SUBSTITUTE($Z148,\"{\",CHAR(160),HY$1)),FIND(CHAR(160),SUBSTITUTE($Z148,\"}\",CHAR(160),HY$1))-FIND(CHAR(160),SUBSTITUTE($Z148,\"{\",CHAR(160),HY$1))+1),\"\")","v":""},{"$f":"IFERROR(MID($Z148,FIND(CHAR(160),SUBSTITUTE($Z148,\"{\",CHAR(160),HZ$1)),FIND(CHAR(160),SUBSTITUTE($Z148,\"}\",CHAR(160),HZ$1))-FIND(CHAR(160),SUBSTITUTE($Z148,\"{\",CHAR(160),HZ$1))+1),\"\")","v":""},{"$f":"IFERROR(MID($Z148,FIND(CHAR(160),SUBSTITUTE($Z148,\"{\",CHAR(160),IA$1)),FIND(CHAR(160),SUBSTITUTE($Z148,\"}\",CHAR(160),IA$1))-FIND(CHAR(160),SUBSTITUTE($Z148,\"{\",CHAR(160),IA$1))+1),\"\")","v":""},{"$f":"IFERROR(MID($Z148,FIND(CHAR(160),SUBSTITUTE($Z148,\"{\",CHAR(160),IB$1)),FIND(CHAR(160),SUBSTITUTE($Z148,\"}\",CHAR(160),IB$1))-FIND(CHAR(160),SUBSTITUTE($Z148,\"{\",CHAR(160),IB$1))+1),\"\")","v":""},{"$f":"IFERROR(MID($Z148,FIND(CHAR(160),SUBSTITUTE($Z148,\"{\",CHAR(160),IC$1)),FIND(CHAR(160),SUBSTITUTE($Z148,\"}\",CHAR(160),IC$1))-FIND(CHAR(160),SUBSTITUTE($Z148,\"{\",CHAR(160),IC$1))+1),\"\")","v":""},{"$f":"IFERROR(MID($Z148,FIND(CHAR(160),SUBSTITUTE($Z148,\"{\",CHAR(160),ID$1)),FIND(CHAR(160),SUBSTITUTE($Z148,\"}\",CHAR(160),ID$1))-FIND(CHAR(160),SUBSTITUTE($Z148,\"{\",CHAR(160),ID$1))+1),\"\")","v":""},{"$f":"IFERROR(MID($AA148,FIND(CHAR(160),SUBSTITUTE($AA148,\"{\",CHAR(160),IE$1)),FIND(CHAR(160),SUBSTITUTE($AA148,\"}\",CHAR(160),IE$1))-FIND(CHAR(160),SUBSTITUTE($AA148,\"{\",CHAR(160),IE$1))+1),\"\")","v":""},{"$f":"IFERROR(MID($AA148,FIND(CHAR(160),SUBSTITUTE($AA148,\"{\",CHAR(160),IF$1)),FIND(CHAR(160),SUBSTITUTE($AA148,\"}\",CHAR(160),IF$1))-FIND(CHAR(160),SUBSTITUTE($AA148,\"{\",CHAR(160),IF$1))+1),\"\")","v":""},{"$f":"IFERROR(MID($AA148,FIND(CHAR(160),SUBSTITUTE($AA148,\"{\",CHAR(160),IG$1)),FIND(CHAR(160),SUBSTITUTE($AA148,\"}\",CHAR(160),IG$1))-FIND(CHAR(160),SUBSTITUTE($AA148,\"{\",CHAR(160),IG$1))+1),\"\")","v":""},{"$f":"IFERROR(MID($AA148,FIND(CHAR(160),SUBSTITUTE($AA148,\"{\",CHAR(160),IH$1)),FIND(CHAR(160),SUBSTITUTE($AA148,\"}\",CHAR(160),IH$1))-FIND(CHAR(160),SUBSTITUTE($AA148,\"{\",CHAR(160),IH$1))+1),\"\")","v":""},{"$f":"IFERROR(MID($AA148,FIND(CHAR(160),SUBSTITUTE($AA148,\"{\",CHAR(160),II$1)),FIND(CHAR(160),SUBSTITUTE($AA148,\"}\",CHAR(160),II$1))-FIND(CHAR(160),SUBSTITUTE($AA148,\"{\",CHAR(160),II$1))+1),\"\")","v":""},{"$f":"IFERROR(MID($AA148,FIND(CHAR(160),SUBSTITUTE($AA148,\"{\",CHAR(160),IJ$1)),FIND(CHAR(160),SUBSTITUTE($AA148,\"}\",CHAR(160),IJ$1))-FIND(CHAR(160),SUBSTITUTE($AA148,\"{\",CHAR(160),IJ$1))+1),\"\")","v":""},{"$f":"IFERROR(MID($AA148,FIND(CHAR(160),SUBSTITUTE($AA148,\"{\",CHAR(160),IK$1)),FIND(CHAR(160),SUBSTITUTE($AA148,\"}\",CHAR(160),IK$1))-FIND(CHAR(160),SUBSTITUTE($AA148,\"{\",CHAR(160),IK$1))+1),\"\")","v":""},{"$f":"IFERROR(MID($AA148,FIND(CHAR(160),SUBSTITUTE($AA148,\"{\",CHAR(160),IL$1)),FIND(CHAR(160),SUBSTITUTE($AA148,\"}\",CHAR(160),IL$1))-FIND(CHAR(160),SUBSTITUTE($AA148,\"{\",CHAR(160),IL$1))+1),\"\")","v":""},{"$f":"IFERROR(MID($AA148,FIND(CHAR(160),SUBSTITUTE($AA148,\"{\",CHAR(160),IM$1)),FIND(CHAR(160),SUBSTITUTE($AA148,\"}\",CHAR(160),IM$1))-FIND(CHAR(160),SUBSTITUTE($AA148,\"{\",CHAR(160),IM$1))+1),\"\")","v":""},{"$f":"IFERROR(MID($AA148,FIND(CHAR(160),SUBSTITUTE($AA148,\"{\",CHAR(160),IN$1)),FIND(CHAR(160),SUBSTITUTE($AA148,\"}\",CHAR(160),IN$1))-FIND(CHAR(160),SUBSTITUTE($AA148,\"{\",CHAR(160),IN$1))+1),\"\")","v":""},{"$f":"IFERROR(MID($AB148,FIND(CHAR(160),SUBSTITUTE($AB148,\"{\",CHAR(160),IO$1)),FIND(CHAR(160),SUBSTITUTE($AB148,\"}\",CHAR(160),IO$1))-FIND(CHAR(160),SUBSTITUTE($AB148,\"{\",CHAR(160),IO$1))+1),\"\")","v":""},{"$f":"IFERROR(MID($AB148,FIND(CHAR(160),SUBSTITUTE($AB148,\"{\",CHAR(160),IP$1)),FIND(CHAR(160),SUBSTITUTE($AB148,\"}\",CHAR(160),IP$1))-FIND(CHAR(160),SUBSTITUTE($AB148,\"{\",CHAR(160),IP$1))+1),\"\")","v":""},{"$f":"IFERROR(MID($AB148,FIND(CHAR(160),SUBSTITUTE($AB148,\"{\",CHAR(160),IQ$1)),FIND(CHAR(160),SUBSTITUTE($AB148,\"}\",CHAR(160),IQ$1))-FIND(CHAR(160),SUBSTITUTE($AB148,\"{\",CHAR(160),IQ$1))+1),\"\")","v":""},{"$f":"IFERROR(MID($AB148,FIND(CHAR(160),SUBSTITUTE($AB148,\"{\",CHAR(160),IR$1)),FIND(CHAR(160),SUBSTITUTE($AB148,\"}\",CHAR(160),IR$1))-FIND(CHAR(160),SUBSTITUTE($AB148,\"{\",CHAR(160),IR$1))+1),\"\")","v":""},{"$f":"IFERROR(MID($AB148,FIND(CHAR(160),SUBSTITUTE($AB148,\"{\",CHAR(160),IS$1)),FIND(CHAR(160),SUBSTITUTE($AB148,\"}\",CHAR(160),IS$1))-FIND(CHAR(160),SUBSTITUTE($AB148,\"{\",CHAR(160),IS$1))+1),\"\")","v":""},{"$f":"IFERROR(MID($AB148,FIND(CHAR(160),SUBSTITUTE($AB148,\"{\",CHAR(160),IT$1)),FIND(CHAR(160),SUBSTITUTE($AB148,\"}\",CHAR(160),IT$1))-FIND(CHAR(160),SUBSTITUTE($AB148,\"{\",CHAR(160),IT$1))+1),\"\")","v":""},{"$f":"IFERROR(MID($AB148,FIND(CHAR(160),SUBSTITUTE($AB148,\"{\",CHAR(160),IU$1)),FIND(CHAR(160),SUBSTITUTE($AB148,\"}\",CHAR(160),IU$1))-FIND(CHAR(160),SUBSTITUTE($AB148,\"{\",CHAR(160),IU$1))+1),\"\")","v":""},{"$f":"IFERROR(MID($AB148,FIND(CHAR(160),SUBSTITUTE($AB148,\"{\",CHAR(160),IV$1)),FIND(CHAR(160),SUBSTITUTE($AB148,\"}\",CHAR(160),IV$1))-FIND(CHAR(160),SUBSTITUTE($AB148,\"{\",CHAR(160),IV$1))+1),\"\")","v":""},{"$f":"IFERROR(MID($AB148,FIND(CHAR(160),SUBSTITUTE($AB148,\"{\",CHAR(160),IW$1)),FIND(CHAR(160),SUBSTITUTE($AB148,\"}\",CHAR(160),IW$1))-FIND(CHAR(160),SUBSTITUTE($AB148,\"{\",CHAR(160),IW$1))+1),\"\")","v":""},{"$f":"IFERROR(MID($AB148,FIND(CHAR(160),SUBSTITUTE($AB148,\"{\",CHAR(160),IX$1)),FIND(CHAR(160),SUBSTITUTE($AB148,\"}\",CHAR(160),IX$1))-FIND(CHAR(160),SUBSTITUTE($AB148,\"{\",CHAR(160),IX$1))+1),\"\")","v":""},null,{"$f":"10-COUNTIF(DU148:ED148,\"\")","v":2}]
["C&I Refrigeration Solutions","R71 New Scroll Compressors - 3 HP","R71","2021-07-01","2022-06-30","Per Measure",525,0,"Per Measure",330,0,"2020-11-01","2022-06-30","Calculated","{Measure:Quantity} * 3 * {Type}",1E-4,null,"{Measure:Quantity} * 3 * {Type} / 5858",null,null,"{Measure:Quantity} * 3 * {Type} / 5858 * {Factor:WinterCF}","{Measure:Quantity} * 3 * {Type} / 5858 *{Factor:SummerCF}",null,null,null,null,null,null,"2020-11-01","2022-06-30",15,0.50900000000000001,0.74,0.33,0.32600000000000001,0.17,0.17399999999999999,1,1.1220000000000001,1,0.52,1.6E-2,null,{"$f":"DU149","v":"{Measure:Quantity}"},1,{"$f":"DV149","v":"{Type}"},363,{"$f":"DW149","v":""},50,{"$f":"DX149","v":""},null,{"$f":"DY149","v":""},null,{"$f":"DZ149","v":""},null,{"$f":"EA149","v":""},null,{"$f":"EB149","v":""},null,{"$f":"EC149","v":""},null,{"$f":"ED149","v":""},null,{"$f":"AS149 * 3 * AU149","v":1089},{"$f":"0.0001","v":1E-4},0,{"$f":"AS149 * 3 * AU149 / 5858","v":0.18589962444520314},0,0,{"$f":"AS149 * 3 * AU149 / 5858 * AF149","v":9.4622908842608405E-2},{"$f":"AS149 * 3 * AU149 / 5858 *AG149","v":0.13756572208945031},0,0,0,0,0,0,null,"Res","Default DR",{"$f":"Benefits(BL149,BR149,BS149,BT149,BU149,BV149,BW149,BX149,BY149,BZ149,AE149,AH149,AI149,AJ149,AK149,AL149,AM149,AN149,AO149,AP149,CA149,CB149)","v":1628.9106302707582},615.32659257735429,0,0,0,0,0,0,0,{"$f":"SUMPRODUCT(CC149:CK149,--(CC149:CK149>0))","v":2244.2372228481127},{"$f":"-SUMPRODUCT(CC149:CK149,--(CC149:CK149<0))","v":0},null,{"$f":"525","v":525},null,null,{"$f":"CM149+CO149","v":525},{"$f":"IF(NetOrGross=\"Net\",(1-AO149+AP149),1)","v":1},{"$f":"(SUMPRODUCT(CC149:CJ149,--(CC149:CJ149>0))+CN149)*CS149/((-SUMPRODUCT(CC149:CJ149,--(CC149:CJ149<0))+MAX(CO149,CV149)+CP149+CQ149)*CS149+IF(FRIncentives=\"Yes\",CV149*(1-CS149),0))","v":4.2747375673297388},1,{"$f":"330","v":330},null,"Electric","y",null,{"$f":"IF(F149=\"Manual Entry\",\"Manual\",IF(G149=\"\",0,\"X=\"&SUBSTITUTE(SUBSTITUTE(SUBSTITUTE(SUBSTITUTE(SUBSTITUTE(SUBSTITUTE(SUBSTITUTE(SUBSTITUTE(SUBSTITUTE(SUBSTITUTE(SUBSTITUTE(SUBSTITUTE(G149,$ED149,$ED$2&ROW($ED149)),$EC149,$EC$2&ROW($EC149)),$EB149,$EB$2&ROW($EB149)),$EA149,$EA$2&ROW($EA149)),$DZ149,$DZ$2&ROW($DZ149)),$DY149,$DY$2&ROW($DY149)),$DX149,$DX$2&ROW($DX149)),$DW149,$DW$2&ROW($DW149)),$DV149,$DV$2&ROW($DV149)),$DU149,$DU$2&ROW($DU149)),$DT149,$DT$2&ROW($DT149)),$DS149,$DS$2&ROW($DS149))))","v":"X=525"},{"$f":"IF(I149=\"Manual Entry\",\"Manual\",IF(J149=\"\",0,\"X=\"&SUBSTITUTE(SUBSTITUTE(SUBSTITUTE(SUBSTITUTE(SUBSTITUTE(SUBSTITUTE(SUBSTITUTE(SUBSTITUTE(SUBSTITUTE(SUBSTITUTE(SUBSTITUTE(SUBSTITUTE(J149,$ED149,$ED$2&ROW($ED149)),$EC149,$EC$2&ROW($EC149)),$EB149,$EB$2&ROW($EB149)),$EA149,$EA$2&ROW($EA149)),$DZ149,$DZ$2&ROW($DZ149)),$DY149,$DY$2&ROW($DY149)),$DX149,$DX$2&ROW($DX149)),$DW149,$DW$2&ROW($DW149)),$DV149,$DV$2&ROW($DV149)),$DU149,$DU$2&ROW($DU149)),$DT149,$DT$2&ROW($DT149)),$DS149,$DS$2&ROW($DS149))))","v":"X=330"},{"$f":"IF(O149=\"\",0,\"X=\"&SUBSTITUTE(SUBSTITUTE(SUBSTITUTE(SUBSTITUTE(SUBSTITUTE(SUBSTITUTE(SUBSTITUTE(SUBSTITUTE(SUBSTITUTE(SUBSTITUTE(SUBSTITUTE(SUBSTITUTE(O149,$ED149,$ED$2&ROW($ED149)),$EC149,$EC$2&ROW($EC149)),$EB149,$EB$2&ROW($EB149)),$EA149,$EA$2&ROW($EA149)),$DZ149,$DZ$2&ROW($DZ149)),$DY149,$DY$2&ROW($DY149)),$DX149,$DX$2&ROW($DX149)),$DW149,$DW$2&ROW($DW149)),$DV149,$DV$2&ROW($DV149)),$DU149,$DU$2&ROW($DU149)),$DT149,$DT$2&ROW($DT149)),$DS149,$DS$2&ROW($DS149)))","v":"X=AS149 * 3 * AU149"},{"$f":"IF(P149=\"\",0,\"X=\"&SUBSTITUTE(SUBSTITUTE(SUBSTITUTE(SUBSTITUTE(SUBSTITUTE(SUBSTITUTE(SUBSTITUTE(SUBSTITUTE(SUBSTITUTE(SUBSTITUTE(SUBSTITUTE(SUBSTITUTE(P149,$ED149,$ED$2&ROW($ED149)),$EC149,$EC$2&ROW($EC149)),$EB149,$EB$2&ROW($EB149)),$EA149,$EA$2&ROW($EA149)),$DZ149,$DZ$2&ROW($DZ149)),$DY149,$DY$2&ROW($DY149)),$DX149,$DX$2&ROW($DX149)),$DW149,$DW$2&ROW($DW149)),$DV149,$DV$2&ROW($DV149)),$DU149,$DU$2&ROW($DU149)),$DT149,$DT$2&ROW($DT149)),$DS149,$DS$2&ROW($DS149)))","v":"X=0.0001"},{"$f":"IF(Q149=\"\",0,\"X=\"&SUBSTITUTE(SUBSTITUTE(SUBSTITUTE(SUBSTITUTE(SUBSTITUTE(SUBSTITUTE(SUBSTITUTE(SUBSTITUTE(SUBSTITUTE(SUBSTITUTE(SUBSTITUTE(SUBSTITUTE(Q149,$ED149,$ED$2&ROW($ED149)),$EC149,$EC$2&ROW($EC149)),$EB149,$EB$2&ROW($EB149)),$EA149,$EA$2&ROW($EA149)),$DZ149,$DZ$2&ROW($DZ149)),$DY149,$DY$2&ROW($DY149)),$DX149,$DX$2&ROW($DX149)),$DW149,$DW$2&ROW($DW149)),$DV149,$DV$2&ROW($DV149)),$DU149,$DU$2&ROW($DU149)),$DT149,$DT$2&ROW($DT149)),$DS149,$DS$2&ROW($DS149)))","v":0},{"$f":"IF(R149=\"\",0,\"X=\"&SUBSTITUTE(SUBSTITUTE(SUBSTITUTE(SUBSTITUTE(SUBSTITUTE(SUBSTITUTE(SUBSTITUTE(SUBSTITUTE(SUBSTITUTE(SUBSTITUTE(SUBSTITUTE(SUBSTITUTE(R149,$ED149,$ED$2&ROW($ED149)),$EC149,$EC$2&ROW($EC149)),$EB149,$EB$2&ROW($EB149)),$EA149,$EA$2&ROW($EA149)),$DZ149,$DZ$2&ROW($DZ149)),$DY149,$DY$2&ROW($DY149)),$DX149,$DX$2&ROW($DX149)),$DW149,$DW$2&ROW($DW149)),$DV149,$DV$2&ROW($DV149)),$DU149,$DU$2&ROW($DU149)),$DT149,$DT$2&ROW($DT149)),$DS149,$DS$2&ROW($DS149)))","v":"X=AS149 * 3 * AU149 / 5858"},{"$f":"IF(S149=\"\",0,\"X=\"&SUBSTITUTE(SUBSTITUTE(SUBSTITUTE(SUBSTITUTE(SUBSTITUTE(SUBSTITUTE(SUBSTITUTE(SUBSTITUTE(SUBSTITUTE(SUBSTITUTE(SUBSTITUTE(SUBSTITUTE(S149,$ED149,$ED$2&ROW($ED149)),$EC149,$EC$2&ROW($EC149)),$EB149,$EB$2&ROW($EB149)),$EA149,$EA$2&ROW($EA149)),$DZ149,$DZ$2&ROW($DZ149)),$DY149,$DY$2&ROW($DY149)),$DX149,$DX$2&ROW($DX149)),$DW149,$DW$2&ROW($DW149)),$DV149,$DV$2&ROW($DV149)),$DU149,$DU$2&ROW($DU149)),$DT149,$DT$2&ROW($DT149)),$DS149,$DS$2&ROW($DS149)))","v":0},{"$f":"IF(T149=\"\",0,\"X=\"&SUBSTITUTE(SUBSTITUTE(SUBSTITUTE(SUBSTITUTE(SUBSTITUTE(SUBSTITUTE(SUBSTITUTE(SUBSTITUTE(SUBSTITUTE(SUBSTITUTE(SUBSTITUTE(SUBSTITUTE(T149,$ED149,$ED$2&ROW($ED149)),$EC149,$EC$2&ROW($EC149)),$EB149,$EB$2&ROW($EB149)),$EA149,$EA$2&ROW($EA149)),$DZ149,$DZ$2&ROW($DZ149)),$DY149,$DY$2&ROW($DY149)),$DX149,$DX$2&ROW($DX149)),$DW149,$DW$2&ROW($DW149)),$DV149,$DV$2&ROW($DV149)),$DU149,$DU$2&ROW($DU149)),$DT149,$DT$2&ROW($DT149)),$DS149,$DS$2&ROW($DS149)))","v":0},{"$f":"IF(U149=\"\",0,\"X=\"&SUBSTITUTE(SUBSTITUTE(SUBSTITUTE(SUBSTITUTE(SUBSTITUTE(SUBSTITUTE(SUBSTITUTE(SUBSTITUTE(SUBSTITUTE(SUBSTITUTE(SUBSTITUTE(SUBSTITUTE(U149,$ED149,$ED$2&ROW($ED149)),$EC149,$EC$2&ROW($EC149)),$EB149,$EB$2&ROW($EB149)),$EA149,$EA$2&ROW($EA149)),$DZ149,$DZ$2&ROW($DZ149)),$DY149,$DY$2&ROW($DY149)),$DX149,$DX$2&ROW($DX149)),$DW149,$DW$2&ROW($DW149)),$DV149,$DV$2&ROW($DV149)),$DU149,$DU$2&ROW($DU149)),$DT149,$DT$2&ROW($DT149)),$DS149,$DS$2&ROW($DS149)))","v":"X=AS149 * 3 * AU149 / 5858 * AF149"},{"$f":"IF(V149=\"\",0,\"X=\"&SUBSTITUTE(SUBSTITUTE(SUBSTITUTE(SUBSTITUTE(SUBSTITUTE(SUBSTITUTE(SUBSTITUTE(SUBSTITUTE(SUBSTITUTE(SUBSTITUTE(SUBSTITUTE(SUBSTITUTE(V149,$ED149,$ED$2&ROW($ED149)),$EC149,$EC$2&ROW($EC149)),$EB149,$EB$2&ROW($EB149)),$EA149,$EA$2&ROW($EA149)),$DZ149,$DZ$2&ROW($DZ149)),$DY149,$DY$2&ROW($DY149)),$DX149,$DX$2&ROW($DX149)),$DW149,$DW$2&ROW($DW149)),$DV149,$DV$2&ROW($DV149)),$DU149,$DU$2&ROW($DU149)),$DT149,$DT$2&ROW($DT149)),$DS149,$DS$2&ROW($DS149)))","v":"X=AS149 * 3 * AU149 / 5858 *AG149"},{"$f":"IF(W149=\"\",0,\"X=\"&SUBSTITUTE(SUBSTITUTE(SUBSTITUTE(SUBSTITUTE(SUBSTITUTE(SUBSTITUTE(SUBSTITUTE(SUBSTITUTE(SUBSTITUTE(SUBSTITUTE(SUBSTITUTE(SUBSTITUTE(W149,$ED149,$ED$2&ROW($ED149)),$EC149,$EC$2&ROW($EC149)),$EB149,$EB$2&ROW($EB149)),$EA149,$EA$2&ROW($EA149)),$DZ149,$DZ$2&ROW($DZ149)),$DY149,$DY$2&ROW($DY149)),$DX149,$DX$2&ROW($DX149)),$DW149,$DW$2&ROW($DW149)),$DV149,$DV$2&ROW($DV149)),$DU149,$DU$2&ROW($DU149)),$DT149,$DT$2&ROW($DT149)),$DS149,$DS$2&ROW($DS149)))","v":0},{"$f":"IF(X149=\"\",0,\"X=\"&SUBSTITUTE(SUBSTITUTE(SUBSTITUTE(SUBSTITUTE(SUBSTITUTE(SUBSTITUTE(SUBSTITUTE(SUBSTITUTE(SUBSTITUTE(SUBSTITUTE(SUBSTITUTE(SUBSTITUTE(X149,$ED149,$ED$2&ROW($ED149)),$EC149,$EC$2&ROW($EC149)),$EB149,$EB$2&ROW($EB149)),$EA149,$EA$2&ROW($EA149)),$DZ149,$DZ$2&ROW($DZ149)),$DY149,$DY$2&ROW($DY149)),$DX149,$DX$2&ROW($DX149)),$DW149,$DW$2&ROW($DW149)),$DV149,$DV$2&ROW($DV149)),$DU149,$DU$2&ROW($DU149)),$DT149,$DT$2&ROW($DT149)),$DS149,$DS$2&ROW($DS149)))","v":0},{"$f":"IF(Y149=\"\",0,\"X=\"&SUBSTITUTE(SUBSTITUTE(SUBSTITUTE(SUBSTITUTE(SUBSTITUTE(SUBSTITUTE(SUBSTITUTE(SUBSTITUTE(SUBSTITUTE(SUBSTITUTE(SUBSTITUTE(SUBSTITUTE(Y149,$ED149,$ED$2&ROW($ED149)),$EC149,$EC$2&ROW($EC149)),$EB149,$EB$2&ROW($EB149)),$EA149,$EA$2&ROW($EA149)),$DZ149,$DZ$2&ROW($DZ149)),$DY149,$DY$2&ROW($DY149)),$DX149,$DX$2&ROW($DX149)),$DW149,$DW$2&ROW($DW149)),$DV149,$DV$2&ROW($DV149)),$DU149,$DU$2&ROW($DU149)),$DT149,$DT$2&ROW($DT149)),$DS149,$DS$2&ROW($DS149)))","v":0},{"$f":"IF(Z149=\"\",0,\"X=\"&SUBSTITUTE(SUBSTITUTE(SUBSTITUTE(SUBSTITUTE(SUBSTITUTE(SUBSTITUTE(SUBSTITUTE(SUBSTITUTE(SUBSTITUTE(SUBSTITUTE(SUBSTITUTE(SUBSTITUTE(Z149,$ED149,$ED$2&ROW($ED149)),$EC149,$EC$2&ROW($EC149)),$EB149,$EB$2&ROW($EB149)),$EA149,$EA$2&ROW($EA149)),$DZ149,$DZ$2&ROW($DZ149)),$DY149,$DY$2&ROW($DY149)),$DX149,$DX$2&ROW($DX149)),$DW149,$DW$2&ROW($DW149)),$DV149,$DV$2&ROW($DV149)),$DU149,$DU$2&ROW($DU149)),$DT149,$DT$2&ROW($DT149)),$DS149,$DS$2&ROW($DS149)))","v":0},{"$f":"IF(AA149=\"\",0,\"X=\"&SUBSTITUTE(SUBSTITUTE(SUBSTITUTE(SUBSTITUTE(SUBSTITUTE(SUBSTITUTE(SUBSTITUTE(SUBSTITUTE(SUBSTITUTE(SUBSTITUTE(SUBSTITUTE(SUBSTITUTE(AA149,$ED149,$ED$2&ROW($ED149)),$EC149,$EC$2&ROW($EC149)),$EB149,$EB$2&ROW($EB149)),$EA149,$EA$2&ROW($EA149)),$DZ149,$DZ$2&ROW($DZ149)),$DY149,$DY$2&ROW($DY149)),$DX149,$DX$2&ROW($DX149)),$DW149,$DW$2&ROW($DW149)),$DV149,$DV$2&ROW($DV149)),$DU149,$DU$2&ROW($DU149)),$DT149,$DT$2&ROW($DT149)),$DS149,$DS$2&ROW($DS149)))","v":0},{"$f":"IF(AB149=\"\",0,\"X=\"&SUBSTITUTE(SUBSTITUTE(SUBSTITUTE(SUBSTITUTE(SUBSTITUTE(SUBSTITUTE(SUBSTITUTE(SUBSTITUTE(SUBSTITUTE(SUBSTITUTE(SUBSTITUTE(SUBSTITUTE(AB149,$ED149,$ED$2&ROW($ED149)),$EC149,$EC$2&ROW($EC149)),$EB149,$EB$2&ROW($EB149)),$EA149,$EA$2&ROW($EA149)),$DZ149,$DZ$2&ROW($DZ149)),$DY149,$DY$2&ROW($DY149)),$DX149,$DX$2&ROW($DX149)),$DW149,$DW$2&ROW($DW149)),$DV149,$DV$2&ROW($DV149)),$DU149,$DU$2&ROW($DU149)),$DT149,$DT$2&ROW($DT149)),$DS149,$DS$2&ROW($DS149)))","v":0},null,null,"{Factor:WinterCF}","{Factor:SummerCF}",{"$f":"IFERROR(INDEX($EG149:$IV149,MATCH(0,COUNTIF($DR149:DT149,$EG149:$IV149),0)),\"\")","v":"{Measure:Quantity}"},{"$f":"IFERROR(INDEX($EG149:$IV149,MATCH(0,COUNTIF($DR149:DU149,$EG149:$IV149),0)),\"\")","v":"{Type}"},{"$f":"IFERROR(INDEX($EG149:$IV149,MATCH(0,COUNTIF($DR149:DV149,$EG149:$IV149),0)),\"\")","v":""},{"$f":"IFERROR(INDEX($EG149:$IV149,MATCH(0,COUNTIF($DR149:DW149,$EG149:$IV149),0)),\"\")","v":""},{"$f":"IFERROR(INDEX($EG149:$IV149,MATCH(0,COUNTIF($DR149:DX149,$EG149:$IV149),0)),\"\")","v":""},{"$f":"IFERROR(INDEX($EG149:$IV149,MATCH(0,COUNTIF($DR149:DY149,$EG149:$IV149),0)),\"\")","v":""},{"$f":"IFERROR(INDEX($EG149:$IV149,MATCH(0,COUNTIF($DR149:DZ149,$EG149:$IV149),0)),\"\")","v":""},{"$f":"IFERROR(INDEX($EG149:$IV149,MATCH(0,COUNTIF($DR149:EA149,$EG149:$IV149),0)),\"\")","v":""},{"$f":"IFERROR(INDEX($EG149:$IV149,MATCH(0,COUNTIF($DR149:EB149,$EG149:$IV149),0)),\"\")","v":""},{"$f":"IFERROR(INDEX($EG149:$IV149,MATCH(0,COUNTIF($DR149:EC149,$EG149:$IV149),0)),\"\")","v":""},null,null,{"$f":"IFERROR(MID($G149,FIND(CHAR(160),SUBSTITUTE($G149,\"{\",CHAR(160),EG$1)),FIND(CHAR(160),SUBSTITUTE($G149,\"}\",CHAR(160),EG$1))-FIND(CHAR(160),SUBSTITUTE($G149,\"{\",CHAR(160),EG$1))+1),\"\")","v":""},{"$f":"IFERROR(MID($G149,FIND(CHAR(160),SUBSTITUTE($G149,\"{\",CHAR(160),EH$1)),FIND(CHAR(160),SUBSTITUTE($G149,\"}\",CHAR(160),EH$1))-FIND(CHAR(160),SUBSTITUTE($G149,\"{\",CHAR(160),EH$1))+1),\"\")","v":""},{"$f":"IFERROR(MID($G149,FIND(CHAR(160),SUBSTITUTE($G149,\"{\",CHAR(160),EI$1)),FIND(CHAR(160),SUBSTITUTE($G149,\"}\",CHAR(160),EI$1))-FIND(CHAR(160),SUBSTITUTE($G149,\"{\",CHAR(160),EI$1))+1),\"\")","v":""},{"$f":"IFERROR(MID($G149,FIND(CHAR(160),SUBSTITUTE($G149,\"{\",CHAR(160),EJ$1)),FIND(CHAR(160),SUBSTITUTE($G149,\"}\",CHAR(160),EJ$1))-FIND(CHAR(160),SUBSTITUTE($G149,\"{\",CHAR(160),EJ$1))+1),\"\")","v":""},{"$f":"IFERROR(MID($G149,FIND(CHAR(160),SUBSTITUTE($G149,\"{\",CHAR(160),EK$1)),FIND(CHAR(160),SUBSTITUTE($G149,\"}\",CHAR(160),EK$1))-FIND(CHAR(160),SUBSTITUTE($G149,\"{\",CHAR(160),EK$1))+1),\"\")","v":""},{"$f":"IFERROR(MID($G149,FIND(CHAR(160),SUBSTITUTE($G149,\"{\",CHAR(160),EL$1)),FIND(CHAR(160),SUBSTITUTE($G149,\"}\",CHAR(160),EL$1))-FIND(CHAR(160),SUBSTITUTE($G149,\"{\",CHAR(160),EL$1))+1),\"\")","v":""},{"$f":"IFERROR(MID($G149,FIND(CHAR(160),SUBSTITUTE($G149,\"{\",CHAR(160),EM$1)),FIND(CHAR(160),SUBSTITUTE($G149,\"}\",CHAR(160),EM$1))-FIND(CHAR(160),SUBSTITUTE($G149,\"{\",CHAR(160),EM$1))+1),\"\")","v":""},{"$f":"IFERROR(MID($G149,FIND(CHAR(160),SUBSTITUTE($G149,\"{\",CHAR(160),EN$1)),FIND(CHAR(160),SUBSTITUTE($G149,\"}\",CHAR(160),EN$1))-FIND(CHAR(160),SUBSTITUTE($G149,\"{\",CHAR(160),EN$1))+1),\"\")","v":""},{"$f":"IFERROR(MID($G149,FIND(CHAR(160),SUBSTITUTE($G149,\"{\",CHAR(160),EO$1)),FIND(CHAR(160),SUBSTITUTE($G149,\"}\",CHAR(160),EO$1))-FIND(CHAR(160),SUBSTITUTE($G149,\"{\",CHAR(160),EO$1))+1),\"\")","v":""},{"$f":"IFERROR(MID($G149,FIND(CHAR(160),SUBSTITUTE($G149,\"{\",CHAR(160),EP$1)),FIND(CHAR(160),SUBSTITUTE($G149,\"}\",CHAR(160),EP$1))-FIND(CHAR(160),SUBSTITUTE($G149,\"{\",CHAR(160),EP$1))+1),\"\")","v":""},{"$f":"IFERROR(MID($J149,FIND(CHAR(160),SUBSTITUTE($J149,\"{\",CHAR(160),EQ$1)),FIND(CHAR(160),SUBSTITUTE($J149,\"}\",CHAR(160),EQ$1))-FIND(CHAR(160),SUBSTITUTE($J149,\"{\",CHAR(160),EQ$1))+1),\"\")","v":""},{"$f":"IFERROR(MID($J149,FIND(CHAR(160),SUBSTITUTE($J149,\"{\",CHAR(160),ER$1)),FIND(CHAR(160),SUBSTITUTE($J149,\"}\",CHAR(160),ER$1))-FIND(CHAR(160),SUBSTITUTE($J149,\"{\",CHAR(160),ER$1))+1),\"\")","v":""},{"$f":"IFERROR(MID($J149,FIND(CHAR(160),SUBSTITUTE($J149,\"{\",CHAR(160),ES$1)),FIND(CHAR(160),SUBSTITUTE($J149,\"}\",CHAR(160),ES$1))-FIND(CHAR(160),SUBSTITUTE($J149,\"{\",CHAR(160),ES$1))+1),\"\")","v":""},{"$f":"IFERROR(MID($J149,FIND(CHAR(160),SUBSTITUTE($J149,\"{\",CHAR(160),ET$1)),FIND(CHAR(160),SUBSTITUTE($J149,\"}\",CHAR(160),ET$1))-FIND(CHAR(160),SUBSTITUTE($J149,\"{\",CHAR(160),ET$1))+1),\"\")","v":""},{"$f":"IFERROR(MID($J149,FIND(CHAR(160),SUBSTITUTE($J149,\"{\",CHAR(160),EU$1)),FIND(CHAR(160),SUBSTITUTE($J149,\"}\",CHAR(160),EU$1))-FIND(CHAR(160),SUBSTITUTE($J149,\"{\",CHAR(160),EU$1))+1),\"\")","v":""},{"$f":"IFERROR(MID($J149,FIND(CHAR(160),SUBSTITUTE($J149,\"{\",CHAR(160),EV$1)),FIND(CHAR(160),SUBSTITUTE($J149,\"}\",CHAR(160),EV$1))-FIND(CHAR(160),SUBSTITUTE($J149,\"{\",CHAR(160),EV$1))+1),\"\")","v":""},{"$f":"IFERROR(MID($J149,FIND(CHAR(160),SUBSTITUTE($J149,\"{\",CHAR(160),EW$1)),FIND(CHAR(160),SUBSTITUTE($J149,\"}\",CHAR(160),EW$1))-FIND(CHAR(160),SUBSTITUTE($J149,\"{\",CHAR(160),EW$1))+1),\"\")","v":""},{"$f":"IFERROR(MID($J149,FIND(CHAR(160),SUBSTITUTE($J149,\"{\",CHAR(160),EX$1)),FIND(CHAR(160),SUBSTITUTE($J149,\"}\",CHAR(160),EX$1))-FIND(CHAR(160),SUBSTITUTE($J149,\"{\",CHAR(160),EX$1))+1),\"\")","v":""},{"$f":"IFERROR(MID($J149,FIND(CHAR(160),SUBSTITUTE($J149,\"{\",CHAR(160),EY$1)),FIND(CHAR(160),SUBSTITUTE($J149,\"}\",CHAR(160),EY$1))-FIND(CHAR(160),SUBSTITUTE($J149,\"{\",CHAR(160),EY$1))+1),\"\")","v":""},{"$f":"IFERROR(MID($J149,FIND(CHAR(160),SUBSTITUTE($J149,\"{\",CHAR(160),EZ$1)),FIND(CHAR(160),SUBSTITUTE($J149,\"}\",CHAR(160),EZ$1))-FIND(CHAR(160),SUBSTITUTE($J149,\"{\",CHAR(160),EZ$1))+1),\"\")","v":""},{"$f":"IFERROR(MID($J149,FIND(CHAR(160),SUBSTITUTE($J149,\"{\",CHAR(160),FA$1)),FIND(CHAR(160),SUBSTITUTE($J149,\"}\",CHAR(160),FA$1))-FIND(CHAR(160),SUBSTITUTE($J149,\"{\",CHAR(160),FA$1))+1),\"\")","v":""},{"$f":"IFERROR(MID($J149,FIND(CHAR(160),SUBSTITUTE($J149,\"{\",CHAR(160),FB$1)),FIND(CHAR(160),SUBSTITUTE($J149,\"}\",CHAR(160),FB$1))-FIND(CHAR(160),SUBSTITUTE($J149,\"{\",CHAR(160),FB$1))+1),\"\")","v":""},{"$f":"IFERROR(MID($O149,FIND(CHAR(160),SUBSTITUTE($O149,\"{\",CHAR(160),FC$1)),FIND(CHAR(160),SUBSTITUTE($O149,\"}\",CHAR(160),FC$1))-FIND(CHAR(160),SUBSTITUTE($O149,\"{\",CHAR(160),FC$1))+1),\"\")","v":""},{"$f":"IFERROR(MID($O149,FIND(CHAR(160),SUBSTITUTE($O149,\"{\",CHAR(160),FD$1)),FIND(CHAR(160),SUBSTITUTE($O149,\"}\",CHAR(160),FD$1))-FIND(CHAR(160),SUBSTITUTE($O149,\"{\",CHAR(160),FD$1))+1),\"\")","v":""},{"$f":"IFERROR(MID($O149,FIND(CHAR(160),SUBSTITUTE($O149,\"{\",CHAR(160),FE$1)),FIND(CHAR(160),SUBSTITUTE($O149,\"}\",CHAR(160),FE$1))-FIND(CHAR(160),SUBSTITUTE($O149,\"{\",CHAR(160),FE$1))+1),\"\")","v":""},{"$f":"IFERROR(MID($O149,FIND(CHAR(160),SUBSTITUTE($O149,\"{\",CHAR(160),FF$1)),FIND(CHAR(160),SUBSTITUTE($O149,\"}\",CHAR(160),FF$1))-FIND(CHAR(160),SUBSTITUTE($O149,\"{\",CHAR(160),FF$1))+1),\"\")","v":""},{"$f":"IFERROR(MID($O149,FIND(CHAR(160),SUBSTITUTE($O149,\"{\",CHAR(160),FG$1)),FIND(CHAR(160),SUBSTITUTE($O149,\"}\",CHAR(160),FG$1))-FIND(CHAR(160),SUBSTITUTE($O149,\"{\",CHAR(160),FG$1))+1),\"\")","v":""},{"$f":"IFERROR(MID($O149,FIND(CHAR(160),SUBSTITUTE($O149,\"{\",CHAR(160),FH$1)),FIND(CHAR(160),SUBSTITUTE($O149,\"}\",CHAR(160),FH$1))-FIND(CHAR(160),SUBSTITUTE($O149,\"{\",CHAR(160),FH$1))+1),\"\")","v":""},{"$f":"IFERROR(MID($O149,FIND(CHAR(160),SUBSTITUTE($O149,\"{\",CHAR(160),FI$1)),FIND(CHAR(160),SUBSTITUTE($O149,\"}\",CHAR(160),FI$1))-FIND(CHAR(160),SUBSTITUTE($O149,\"{\",CHAR(160),FI$1))+1),\"\")","v":""},{"$f":"IFERROR(MID($O149,FIND(CHAR(160),SUBSTITUTE($O149,\"{\",CHAR(160),FJ$1)),FIND(CHAR(160),SUBSTITUTE($O149,\"}\",CHAR(160),FJ$1))-FIND(CHAR(160),SUBSTITUTE($O149,\"{\",CHAR(160),FJ$1))+1),\"\")","v":""},{"$f":"IFERROR(MID($O149,FIND(CHAR(160),SUBSTITUTE($O149,\"{\",CHAR(160),FK$1)),FIND(CHAR(160),SUBSTITUTE($O149,\"}\",CHAR(160),FK$1))-FIND(CHAR(160),SUBSTITUTE($O149,\"{\",CHAR(160),FK$1))+1),\"\")","v":"{Measure:Quantity}"},{"$f":"IFERROR(MID($O149,FIND(CHAR(160),SUBSTITUTE($O149,\"{\",CHAR(160),FL$1)),FIND(CHAR(160),SUBSTITUTE($O149,\"}\",CHAR(160),FL$1))-FIND(CHAR(160),SUBSTITUTE($O149,\"{\",CHAR(160),FL$1))+1),\"\")","v":"{Type}"},{"$f":"IFERROR(MID($R149,FIND(CHAR(160),SUBSTITUTE($R149,\"{\",CHAR(160),FM$1)),FIND(CHAR(160),SUBSTITUTE($R149,\"}\",CHAR(160),FM$1))-FIND(CHAR(160),SUBSTITUTE($R149,\"{\",CHAR(160),FM$1))+1),\"\")","v":""},{"$f":"IFERROR(MID($R149,FIND(CHAR(160),SUBSTITUTE($R149,\"{\",CHAR(160),FN$1)),FIND(CHAR(160),SUBSTITUTE($R149,\"}\",CHAR(160),FN$1))-FIND(CHAR(160),SUBSTITUTE($R149,\"{\",CHAR(160),FN$1))+1),\"\")","v":""},{"$f":"IFERROR(MID($R149,FIND(CHAR(160),SUBSTITUTE($R149,\"{\",CHAR(160),FO$1)),FIND(CHAR(160),SUBSTITUTE($R149,\"}\",CHAR(160),FO$1))-FIND(CHAR(160),SUBSTITUTE($R149,\"{\",CHAR(160),FO$1))+1),\"\")","v":""},{"$f":"IFERROR(MID($R149,FIND(CHAR(160),SUBSTITUTE($R149,\"{\",CHAR(160),FP$1)),FIND(CHAR(160),SUBSTITUTE($R149,\"}\",CHAR(160),FP$1))-FIND(CHAR(160),SUBSTITUTE($R149,\"{\",CHAR(160),FP$1))+1),\"\")","v":""},{"$f":"IFERROR(MID($R149,FIND(CHAR(160),SUBSTITUTE($R149,\"{\",CHAR(160),FQ$1)),FIND(CHAR(160),SUBSTITUTE($R149,\"}\",CHAR(160),FQ$1))-FIND(CHAR(160),SUBSTITUTE($R149,\"{\",CHAR(160),FQ$1))+1),\"\")","v":""},{"$f":"IFERROR(MID($R149,FIND(CHAR(160),SUBSTITUTE($R149,\"{\",CHAR(160),FR$1)),FIND(CHAR(160),SUBSTITUTE($R149,\"}\",CHAR(160),FR$1))-FIND(CHAR(160),SUBSTITUTE($R149,\"{\",CHAR(160),FR$1))+1),\"\")","v":""},{"$f":"IFERROR(MID($R149,FIND(CHAR(160),SUBSTITUTE($R149,\"{\",CHAR(160),FS$1)),FIND(CHAR(160),SUBSTITUTE($R149,\"}\",CHAR(160),FS$1))-FIND(CHAR(160),SUBSTITUTE($R149,\"{\",CHAR(160),FS$1))+1),\"\")","v":""},{"$f":"IFERROR(MID($R149,FIND(CHAR(160),SUBSTITUTE($R149,\"{\",CHAR(160),FT$1)),FIND(CHAR(160),SUBSTITUTE($R149,\"}\",CHAR(160),FT$1))-FIND(CHAR(160),SUBSTITUTE($R149,\"{\",CHAR(160),FT$1))+1),\"\")","v":""},{"$f":"IFERROR(MID($R149,FIND(CHAR(160),SUBSTITUTE($R149,\"{\",CHAR(160),FU$1)),FIND(CHAR(160),SUBSTITUTE($R149,\"}\",CHAR(160),FU$1))-FIND(CHAR(160),SUBSTITUTE($R149,\"{\",CHAR(160),FU$1))+1),\"\")","v":"{Measure:Quantity}"},{"$f":"IFERROR(MID($R149,FIND(CHAR(160),SUBSTITUTE($R149,\"{\",CHAR(160),FV$1)),FIND(CHAR(160),SUBSTITUTE($R149,\"}\",CHAR(160),FV$1))-FIND(CHAR(160),SUBSTITUTE($R149,\"{\",CHAR(160),FV$1))+1),\"\")","v":"{Type}"},{"$f":"IFERROR(MID($U149,FIND(CHAR(160),SUBSTITUTE($U149,\"{\",CHAR(160),FW$1)),FIND(CHAR(160),SUBSTITUTE($U149,\"}\",CHAR(160),FW$1))-FIND(CHAR(160),SUBSTITUTE($U149,\"{\",CHAR(160),FW$1))+1),\"\")","v":"{Factor:WinterCF}"},{"$f":"IFERROR(MID($U149,FIND(CHAR(160),SUBSTITUTE($U149,\"{\",CHAR(160),FX$1)),FIND(CHAR(160),SUBSTITUTE($U149,\"}\",CHAR(160),FX$1))-FIND(CHAR(160),SUBSTITUTE($U149,\"{\",CHAR(160),FX$1))+1),\"\")","v":""},{"$f":"IFERROR(MID($U149,FIND(CHAR(160),SUBSTITUTE($U149,\"{\",CHAR(160),FY$1)),FIND(CHAR(160),SUBSTITUTE($U149,\"}\",CHAR(160),FY$1))-FIND(CHAR(160),SUBSTITUTE($U149,\"{\",CHAR(160),FY$1))+1),\"\")","v":""},{"$f":"IFERROR(MID($U149,FIND(CHAR(160),SUBSTITUTE($U149,\"{\",CHAR(160),FZ$1)),FIND(CHAR(160),SUBSTITUTE($U149,\"}\",CHAR(160),FZ$1))-FIND(CHAR(160),SUBSTITUTE($U149,\"{\",CHAR(160),FZ$1))+1),\"\")","v":""},{"$f":"IFERROR(MID($U149,FIND(CHAR(160),SUBSTITUTE($U149,\"{\",CHAR(160),GA$1)),FIND(CHAR(160),SUBSTITUTE($U149,\"}\",CHAR(160),GA$1))-FIND(CHAR(160),SUBSTITUTE($U149,\"{\",CHAR(160),GA$1))+1),\"\")","v":""},{"$f":"IFERROR(MID($U149,FIND(CHAR(160),SUBSTITUTE($U149,\"{\",CHAR(160),GB$1)),FIND(CHAR(160),SUBSTITUTE($U149,\"}\",CHAR(160),GB$1))-FIND(CHAR(160),SUBSTITUTE($U149,\"{\",CHAR(160),GB$1))+1),\"\")","v":""},{"$f":"IFERROR(MID($U149,FIND(CHAR(160),SUBSTITUTE($U149,\"{\",CHAR(160),GC$1)),FIND(CHAR(160),SUBSTITUTE($U149,\"}\",CHAR(160),GC$1))-FIND(CHAR(160),SUBSTITUTE($U149,\"{\",CHAR(160),GC$1))+1),\"\")","v":""},{"$f":"IFERROR(MID($U149,FIND(CHAR(160),SUBSTITUTE($U149,\"{\",CHAR(160),GD$1)),FIND(CHAR(160),SUBSTITUTE($U149,\"}\",CHAR(160),GD$1))-FIND(CHAR(160),SUBSTITUTE($U149,\"{\",CHAR(160),GD$1))+1),\"\")","v":""},{"$f":"IFERROR(MID($U149,FIND(CHAR(160),SUBSTITUTE($U149,\"{\",CHAR(160),GE$1)),FIND(CHAR(160),SUBSTITUTE($U149,\"}\",CHAR(160),GE$1))-FIND(CHAR(160),SUBSTITUTE($U149,\"{\",CHAR(160),GE$1))+1),\"\")","v":"{Measure:Quantity}"},{"$f":"IFERROR(MID($U149,FIND(CHAR(160),SUBSTITUTE($U149,\"{\",CHAR(160),GF$1)),FIND(CHAR(160),SUBSTITUTE($U149,\"}\",CHAR(160),GF$1))-FIND(CHAR(160),SUBSTITUTE($U149,\"{\",CHAR(160),GF$1))+1),\"\")","v":"{Type}"},{"$f":"IFERROR(MID($V149,FIND(CHAR(160),SUBSTITUTE($V149,\"{\",CHAR(160),GG$1)),FIND(CHAR(160),SUBSTITUTE($V149,\"}\",CHAR(160),GG$1))-FIND(CHAR(160),SUBSTITUTE($V149,\"{\",CHAR(160),GG$1))+1),\"\")","v":"{Factor:SummerCF}"},{"$f":"IFERROR(MID($V149,FIND(CHAR(160),SUBSTITUTE($V149,\"{\",CHAR(160),GH$1)),FIND(CHAR(160),SUBSTITUTE($V149,\"}\",CHAR(160),GH$1))-FIND(CHAR(160),SUBSTITUTE($V149,\"{\",CHAR(160),GH$1))+1),\"\")","v":""},{"$f":"IFERROR(MID($V149,FIND(CHAR(160),SUBSTITUTE($V149,\"{\",CHAR(160),GI$1)),FIND(CHAR(160),SUBSTITUTE($V149,\"}\",CHAR(160),GI$1))-FIND(CHAR(160),SUBSTITUTE($V149,\"{\",CHAR(160),GI$1))+1),\"\")","v":""},{"$f":"IFERROR(MID($V149,FIND(CHAR(160),SUBSTITUTE($V149,\"{\",CHAR(160),GJ$1)),FIND(CHAR(160),SUBSTITUTE($V149,\"}\",CHAR(160),GJ$1))-FIND(CHAR(160),SUBSTITUTE($V149,\"{\",CHAR(160),GJ$1))+1),\"\")","v":""},{"$f":"IFERROR(MID($V149,FIND(CHAR(160),SUBSTITUTE($V149,\"{\",CHAR(160),GK$1)),FIND(CHAR(160),SUBSTITUTE($V149,\"}\",CHAR(160),GK$1))-FIND(CHAR(160),SUBSTITUTE($V149,\"{\",CHAR(160),GK$1))+1),\"\")","v":""},{"$f":"IFERROR(MID($V149,FIND(CHAR(160),SUBSTITUTE($V149,\"{\",CHAR(160),GL$1)),FIND(CHAR(160),SUBSTITUTE($V149,\"}\",CHAR(160),GL$1))-FIND(CHAR(160),SUBSTITUTE($V149,\"{\",CHAR(160),GL$1))+1),\"\")","v":""},{"$f":"IFERROR(MID($V149,FIND(CHAR(160),SUBSTITUTE($V149,\"{\",CHAR(160),GM$1)),FIND(CHAR(160),SUBSTITUTE($V149,\"}\",CHAR(160),GM$1))-FIND(CHAR(160),SUBSTITUTE($V149,\"{\",CHAR(160),GM$1))+1),\"\")","v":""},{"$f":"IFERROR(MID($V149,FIND(CHAR(160),SUBSTITUTE($V149,\"{\",CHAR(160),GN$1)),FIND(CHAR(160),SUBSTITUTE($V149,\"}\",CHAR(160),GN$1))-FIND(CHAR(160),SUBSTITUTE($V149,\"{\",CHAR(160),GN$1))+1),\"\")","v":""},{"$f":"IFERROR(MID($V149,FIND(CHAR(160),SUBSTITUTE($V149,\"{\",CHAR(160),GO$1)),FIND(CHAR(160),SUBSTITUTE($V149,\"}\",CHAR(160),GO$1))-FIND(CHAR(160),SUBSTITUTE($V149,\"{\",CHAR(160),GO$1))+1),\"\")","v":"{Measure:Quantity}"},{"$f":"IFERROR(MID($V149,FIND(CHAR(160),SUBSTITUTE($V149,\"{\",CHAR(160),GP$1)),FIND(CHAR(160),SUBSTITUTE($V149,\"}\",CHAR(160),GP$1))-FIND(CHAR(160),SUBSTITUTE($V149,\"{\",CHAR(160),GP$1))+1),\"\")","v":"{Type}"},{"$f":"IFERROR(MID($W149,FIND(CHAR(160),SUBSTITUTE($W149,\"{\",CHAR(160),GQ$1)),FIND(CHAR(160),SUBSTITUTE($W149,\"}\",CHAR(160),GQ$1))-FIND(CHAR(160),SUBSTITUTE($W149,\"{\",CHAR(160),GQ$1))+1),\"\")","v":""},{"$f":"IFERROR(MID($W149,FIND(CHAR(160),SUBSTITUTE($W149,\"{\",CHAR(160),GR$1)),FIND(CHAR(160),SUBSTITUTE($W149,\"}\",CHAR(160),GR$1))-FIND(CHAR(160),SUBSTITUTE($W149,\"{\",CHAR(160),GR$1))+1),\"\")","v":""},{"$f":"IFERROR(MID($W149,FIND(CHAR(160),SUBSTITUTE($W149,\"{\",CHAR(160),GS$1)),FIND(CHAR(160),SUBSTITUTE($W149,\"}\",CHAR(160),GS$1))-FIND(CHAR(160),SUBSTITUTE($W149,\"{\",CHAR(160),GS$1))+1),\"\")","v":""},{"$f":"IFERROR(MID($W149,FIND(CHAR(160),SUBSTITUTE($W149,\"{\",CHAR(160),GT$1)),FIND(CHAR(160),SUBSTITUTE($W149,\"}\",CHAR(160),GT$1))-FIND(CHAR(160),SUBSTITUTE($W149,\"{\",CHAR(160),GT$1))+1),\"\")","v":""},{"$f":"IFERROR(MID($W149,FIND(CHAR(160),SUBSTITUTE($W149,\"{\",CHAR(160),GU$1)),FIND(CHAR(160),SUBSTITUTE($W149,\"}\",CHAR(160),GU$1))-FIND(CHAR(160),SUBSTITUTE($W149,\"{\",CHAR(160),GU$1))+1),\"\")","v":""},{"$f":"IFERROR(MID($W149,FIND(CHAR(160),SUBSTITUTE($W149,\"{\",CHAR(160),GV$1)),FIND(CHAR(160),SUBSTITUTE($W149,\"}\",CHAR(160),GV$1))-FIND(CHAR(160),SUBSTITUTE($W149,\"{\",CHAR(160),GV$1))+1),\"\")","v":""},{"$f":"IFERROR(MID($W149,FIND(CHAR(160),SUBSTITUTE($W149,\"{\",CHAR(160),GW$1)),FIND(CHAR(160),SUBSTITUTE($W149,\"}\",CHAR(160),GW$1))-FIND(CHAR(160),SUBSTITUTE($W149,\"{\",CHAR(160),GW$1))+1),\"\")","v":""},{"$f":"IFERROR(MID($W149,FIND(CHAR(160),SUBSTITUTE($W149,\"{\",CHAR(160),GX$1)),FIND(CHAR(160),SUBSTITUTE($W149,\"}\",CHAR(160),GX$1))-FIND(CHAR(160),SUBSTITUTE($W149,\"{\",CHAR(160),GX$1))+1),\"\")","v":""},{"$f":"IFERROR(MID($W149,FIND(CHAR(160),SUBSTITUTE($W149,\"{\",CHAR(160),GY$1)),FIND(CHAR(160),SUBSTITUTE($W149,\"}\",CHAR(160),GY$1))-FIND(CHAR(160),SUBSTITUTE($W149,\"{\",CHAR(160),GY$1))+1),\"\")","v":""},{"$f":"IFERROR(MID($W149,FIND(CHAR(160),SUBSTITUTE($W149,\"{\",CHAR(160),GZ$1)),FIND(CHAR(160),SUBSTITUTE($W149,\"}\",CHAR(160),GZ$1))-FIND(CHAR(160),SUBSTITUTE($W149,\"{\",CHAR(160),GZ$1))+1),\"\")","v":""},{"$f":"IFERROR(MID($X149,FIND(CHAR(160),SUBSTITUTE($X149,\"{\",CHAR(160),HA$1)),FIND(CHAR(160),SUBSTITUTE($X149,\"}\",CHAR(160),HA$1))-FIND(CHAR(160),SUBSTITUTE($X149,\"{\",CHAR(160),HA$1))+1),\"\")","v":""},{"$f":"IFERROR(MID($X149,FIND(CHAR(160),SUBSTITUTE($X149,\"{\",CHAR(160),HB$1)),FIND(CHAR(160),SUBSTITUTE($X149,\"}\",CHAR(160),HB$1))-FIND(CHAR(160),SUBSTITUTE($X149,\"{\",CHAR(160),HB$1))+1),\"\")","v":""},{"$f":"IFERROR(MID($X149,FIND(CHAR(160),SUBSTITUTE($X149,\"{\",CHAR(160),HC$1)),FIND(CHAR(160),SUBSTITUTE($X149,\"}\",CHAR(160),HC$1))-FIND(CHAR(160),SUBSTITUTE($X149,\"{\",CHAR(160),HC$1))+1),\"\")","v":""},{"$f":"IFERROR(MID($X149,FIND(CHAR(160),SUBSTITUTE($X149,\"{\",CHAR(160),HD$1)),FIND(CHAR(160),SUBSTITUTE($X149,\"}\",CHAR(160),HD$1))-FIND(CHAR(160),SUBSTITUTE($X149,\"{\",CHAR(160),HD$1))+1),\"\")","v":""},{"$f":"IFERROR(MID($X149,FIND(CHAR(160),SUBSTITUTE($X149,\"{\",CHAR(160),HE$1)),FIND(CHAR(160),SUBSTITUTE($X149,\"}\",CHAR(160),HE$1))-FIND(CHAR(160),SUBSTITUTE($X149,\"{\",CHAR(160),HE$1))+1),\"\")","v":""},{"$f":"IFERROR(MID($X149,FIND(CHAR(160),SUBSTITUTE($X149,\"{\",CHAR(160),HF$1)),FIND(CHAR(160),SUBSTITUTE($X149,\"}\",CHAR(160),HF$1))-FIND(CHAR(160),SUBSTITUTE($X149,\"{\",CHAR(160),HF$1))+1),\"\")","v":""},{"$f":"IFERROR(MID($X149,FIND(CHAR(160),SUBSTITUTE($X149,\"{\",CHAR(160),HG$1)),FIND(CHAR(160),SUBSTITUTE($X149,\"}\",CHAR(160),HG$1))-FIND(CHAR(160),SUBSTITUTE($X149,\"{\",CHAR(160),HG$1))+1),\"\")","v":""},{"$f":"IFERROR(MID($X149,FIND(CHAR(160),SUBSTITUTE($X149,\"{\",CHAR(160),HH$1)),FIND(CHAR(160),SUBSTITUTE($X149,\"}\",CHAR(160),HH$1))-FIND(CHAR(160),SUBSTITUTE($X149,\"{\",CHAR(160),HH$1))+1),\"\")","v":""},{"$f":"IFERROR(MID($X149,FIND(CHAR(160),SUBSTITUTE($X149,\"{\",CHAR(160),HI$1)),FIND(CHAR(160),SUBSTITUTE($X149,\"}\",CHAR(160),HI$1))-FIND(CHAR(160),SUBSTITUTE($X149,\"{\",CHAR(160),HI$1))+1),\"\")","v":""},{"$f":"IFERROR(MID($X149,FIND(CHAR(160),SUBSTITUTE($X149,\"{\",CHAR(160),HJ$1)),FIND(CHAR(160),SUBSTITUTE($X149,\"}\",CHAR(160),HJ$1))-FIND(CHAR(160),SUBSTITUTE($X149,\"{\",CHAR(160),HJ$1))+1),\"\")","v":""},{"$f":"IFERROR(MID($Y149,FIND(CHAR(160),SUBSTITUTE($Y149,\"{\",CHAR(160),HK$1)),FIND(CHAR(160),SUBSTITUTE($Y149,\"}\",CHAR(160),HK$1))-FIND(CHAR(160),SUBSTITUTE($Y149,\"{\",CHAR(160),HK$1))+1),\"\")","v":""},{"$f":"IFERROR(MID($Y149,FIND(CHAR(160),SUBSTITUTE($Y149,\"{\",CHAR(160),HL$1)),FIND(CHAR(160),SUBSTITUTE($Y149,\"}\",CHAR(160),HL$1))-FIND(CHAR(160),SUBSTITUTE($Y149,\"{\",CHAR(160),HL$1))+1),\"\")","v":""},{"$f":"IFERROR(MID($Y149,FIND(CHAR(160),SUBSTITUTE($Y149,\"{\",CHAR(160),HM$1)),FIND(CHAR(160),SUBSTITUTE($Y149,\"}\",CHAR(160),HM$1))-FIND(CHAR(160),SUBSTITUTE($Y149,\"{\",CHAR(160),HM$1))+1),\"\")","v":""},{"$f":"IFERROR(MID($Y149,FIND(CHAR(160),SUBSTITUTE($Y149,\"{\",CHAR(160),HN$1)),FIND(CHAR(160),SUBSTITUTE($Y149,\"}\",CHAR(160),HN$1))-FIND(CHAR(160),SUBSTITUTE($Y149,\"{\",CHAR(160),HN$1))+1),\"\")","v":""},{"$f":"IFERROR(MID($Y149,FIND(CHAR(160),SUBSTITUTE($Y149,\"{\",CHAR(160),HO$1)),FIND(CHAR(160),SUBSTITUTE($Y149,\"}\",CHAR(160),HO$1))-FIND(CHAR(160),SUBSTITUTE($Y149,\"{\",CHAR(160),HO$1))+1),\"\")","v":""},{"$f":"IFERROR(MID($Y149,FIND(CHAR(160),SUBSTITUTE($Y149,\"{\",CHAR(160),HP$1)),FIND(CHAR(160),SUBSTITUTE($Y149,\"}\",CHAR(160),HP$1))-FIND(CHAR(160),SUBSTITUTE($Y149,\"{\",CHAR(160),HP$1))+1),\"\")","v":""},{"$f":"IFERROR(MID($Y149,FIND(CHAR(160),SUBSTITUTE($Y149,\"{\",CHAR(160),HQ$1)),FIND(CHAR(160),SUBSTITUTE($Y149,\"}\",CHAR(160),HQ$1))-FIND(CHAR(160),SUBSTITUTE($Y149,\"{\",CHAR(160),HQ$1))+1),\"\")","v":""},{"$f":"IFERROR(MID($Y149,FIND(CHAR(160),SUBSTITUTE($Y149,\"{\",CHAR(160),HR$1)),FIND(CHAR(160),SUBSTITUTE($Y149,\"}\",CHAR(160),HR$1))-FIND(CHAR(160),SUBSTITUTE($Y149,\"{\",CHAR(160),HR$1))+1),\"\")","v":""},{"$f":"IFERROR(MID($Y149,FIND(CHAR(160),SUBSTITUTE($Y149,\"{\",CHAR(160),HS$1)),FIND(CHAR(160),SUBSTITUTE($Y149,\"}\",CHAR(160),HS$1))-FIND(CHAR(160),SUBSTITUTE($Y149,\"{\",CHAR(160),HS$1))+1),\"\")","v":""},{"$f":"IFERROR(MID($Y149,FIND(CHAR(160),SUBSTITUTE($Y149,\"{\",CHAR(160),HT$1)),FIND(CHAR(160),SUBSTITUTE($Y149,\"}\",CHAR(160),HT$1))-FIND(CHAR(160),SUBSTITUTE($Y149,\"{\",CHAR(160),HT$1))+1),\"\")","v":""},{"$f":"IFERROR(MID($Z149,FIND(CHAR(160),SUBSTITUTE($Z149,\"{\",CHAR(160),HU$1)),FIND(CHAR(160),SUBSTITUTE($Z149,\"}\",CHAR(160),HU$1))-FIND(CHAR(160),SUBSTITUTE($Z149,\"{\",CHAR(160),HU$1))+1),\"\")","v":""},{"$f":"IFERROR(MID($Z149,FIND(CHAR(160),SUBSTITUTE($Z149,\"{\",CHAR(160),HV$1)),FIND(CHAR(160),SUBSTITUTE($Z149,\"}\",CHAR(160),HV$1))-FIND(CHAR(160),SUBSTITUTE($Z149,\"{\",CHAR(160),HV$1))+1),\"\")","v":""},{"$f":"IFERROR(MID($Z149,FIND(CHAR(160),SUBSTITUTE($Z149,\"{\",CHAR(160),HW$1)),FIND(CHAR(160),SUBSTITUTE($Z149,\"}\",CHAR(160),HW$1))-FIND(CHAR(160),SUBSTITUTE($Z149,\"{\",CHAR(160),HW$1))+1),\"\")","v":""},{"$f":"IFERROR(MID($Z149,FIND(CHAR(160),SUBSTITUTE($Z149,\"{\",CHAR(160),HX$1)),FIND(CHAR(160),SUBSTITUTE($Z149,\"}\",CHAR(160),HX$1))-FIND(CHAR(160),SUBSTITUTE($Z149,\"{\",CHAR(160),HX$1))+1),\"\")","v":""},{"$f":"IFERROR(MID($Z149,FIND(CHAR(160),SUBSTITUTE($Z149,\"{\",CHAR(160),HY$1)),FIND(CHAR(160),SUBSTITUTE($Z149,\"}\",CHAR(160),HY$1))-FIND(CHAR(160),SUBSTITUTE($Z149,\"{\",CHAR(160),HY$1))+1),\"\")","v":""},{"$f":"IFERROR(MID($Z149,FIND(CHAR(160),SUBSTITUTE($Z149,\"{\",CHAR(160),HZ$1)),FIND(CHAR(160),SUBSTITUTE($Z149,\"}\",CHAR(160),HZ$1))-FIND(CHAR(160),SUBSTITUTE($Z149,\"{\",CHAR(160),HZ$1))+1),\"\")","v":""},{"$f":"IFERROR(MID($Z149,FIND(CHAR(160),SUBSTITUTE($Z149,\"{\",CHAR(160),IA$1)),FIND(CHAR(160),SUBSTITUTE($Z149,\"}\",CHAR(160),IA$1))-FIND(CHAR(160),SUBSTITUTE($Z149,\"{\",CHAR(160),IA$1))+1),\"\")","v":""},{"$f":"IFERROR(MID($Z149,FIND(CHAR(160),SUBSTITUTE($Z149,\"{\",CHAR(160),IB$1)),FIND(CHAR(160),SUBSTITUTE($Z149,\"}\",CHAR(160),IB$1))-FIND(CHAR(160),SUBSTITUTE($Z149,\"{\",CHAR(160),IB$1))+1),\"\")","v":""},{"$f":"IFERROR(MID($Z149,FIND(CHAR(160),SUBSTITUTE($Z149,\"{\",CHAR(160),IC$1)),FIND(CHAR(160),SUBSTITUTE($Z149,\"}\",CHAR(160),IC$1))-FIND(CHAR(160),SUBSTITUTE($Z149,\"{\",CHAR(160),IC$1))+1),\"\")","v":""},{"$f":"IFERROR(MID($Z149,FIND(CHAR(160),SUBSTITUTE($Z149,\"{\",CHAR(160),ID$1)),FIND(CHAR(160),SUBSTITUTE($Z149,\"}\",CHAR(160),ID$1))-FIND(CHAR(160),SUBSTITUTE($Z149,\"{\",CHAR(160),ID$1))+1),\"\")","v":""},{"$f":"IFERROR(MID($AA149,FIND(CHAR(160),SUBSTITUTE($AA149,\"{\",CHAR(160),IE$1)),FIND(CHAR(160),SUBSTITUTE($AA149,\"}\",CHAR(160),IE$1))-FIND(CHAR(160),SUBSTITUTE($AA149,\"{\",CHAR(160),IE$1))+1),\"\")","v":""},{"$f":"IFERROR(MID($AA149,FIND(CHAR(160),SUBSTITUTE($AA149,\"{\",CHAR(160),IF$1)),FIND(CHAR(160),SUBSTITUTE($AA149,\"}\",CHAR(160),IF$1))-FIND(CHAR(160),SUBSTITUTE($AA149,\"{\",CHAR(160),IF$1))+1),\"\")","v":""},{"$f":"IFERROR(MID($AA149,FIND(CHAR(160),SUBSTITUTE($AA149,\"{\",CHAR(160),IG$1)),FIND(CHAR(160),SUBSTITUTE($AA149,\"}\",CHAR(160),IG$1))-FIND(CHAR(160),SUBSTITUTE($AA149,\"{\",CHAR(160),IG$1))+1),\"\")","v":""},{"$f":"IFERROR(MID($AA149,FIND(CHAR(160),SUBSTITUTE($AA149,\"{\",CHAR(160),IH$1)),FIND(CHAR(160),SUBSTITUTE($AA149,\"}\",CHAR(160),IH$1))-FIND(CHAR(160),SUBSTITUTE($AA149,\"{\",CHAR(160),IH$1))+1),\"\")","v":""},{"$f":"IFERROR(MID($AA149,FIND(CHAR(160),SUBSTITUTE($AA149,\"{\",CHAR(160),II$1)),FIND(CHAR(160),SUBSTITUTE($AA149,\"}\",CHAR(160),II$1))-FIND(CHAR(160),SUBSTITUTE($AA149,\"{\",CHAR(160),II$1))+1),\"\")","v":""},{"$f":"IFERROR(MID($AA149,FIND(CHAR(160),SUBSTITUTE($AA149,\"{\",CHAR(160),IJ$1)),FIND(CHAR(160),SUBSTITUTE($AA149,\"}\",CHAR(160),IJ$1))-FIND(CHAR(160),SUBSTITUTE($AA149,\"{\",CHAR(160),IJ$1))+1),\"\")","v":""},{"$f":"IFERROR(MID($AA149,FIND(CHAR(160),SUBSTITUTE($AA149,\"{\",CHAR(160),IK$1)),FIND(CHAR(160),SUBSTITUTE($AA149,\"}\",CHAR(160),IK$1))-FIND(CHAR(160),SUBSTITUTE($AA149,\"{\",CHAR(160),IK$1))+1),\"\")","v":""},{"$f":"IFERROR(MID($AA149,FIND(CHAR(160),SUBSTITUTE($AA149,\"{\",CHAR(160),IL$1)),FIND(CHAR(160),SUBSTITUTE($AA149,\"}\",CHAR(160),IL$1))-FIND(CHAR(160),SUBSTITUTE($AA149,\"{\",CHAR(160),IL$1))+1),\"\")","v":""},{"$f":"IFERROR(MID($AA149,FIND(CHAR(160),SUBSTITUTE($AA149,\"{\",CHAR(160),IM$1)),FIND(CHAR(160),SUBSTITUTE($AA149,\"}\",CHAR(160),IM$1))-FIND(CHAR(160),SUBSTITUTE($AA149,\"{\",CHAR(160),IM$1))+1),\"\")","v":""},{"$f":"IFERROR(MID($AA149,FIND(CHAR(160),SUBSTITUTE($AA149,\"{\",CHAR(160),IN$1)),FIND(CHAR(160),SUBSTITUTE($AA149,\"}\",CHAR(160),IN$1))-FIND(CHAR(160),SUBSTITUTE($AA149,\"{\",CHAR(160),IN$1))+1),\"\")","v":""},{"$f":"IFERROR(MID($AB149,FIND(CHAR(160),SUBSTITUTE($AB149,\"{\",CHAR(160),IO$1)),FIND(CHAR(160),SUBSTITUTE($AB149,\"}\",CHAR(160),IO$1))-FIND(CHAR(160),SUBSTITUTE($AB149,\"{\",CHAR(160),IO$1))+1),\"\")","v":""},{"$f":"IFERROR(MID($AB149,FIND(CHAR(160),SUBSTITUTE($AB149,\"{\",CHAR(160),IP$1)),FIND(CHAR(160),SUBSTITUTE($AB149,\"}\",CHAR(160),IP$1))-FIND(CHAR(160),SUBSTITUTE($AB149,\"{\",CHAR(160),IP$1))+1),\"\")","v":""},{"$f":"IFERROR(MID($AB149,FIND(CHAR(160),SUBSTITUTE($AB149,\"{\",CHAR(160),IQ$1)),FIND(CHAR(160),SUBSTITUTE($AB149,\"}\",CHAR(160),IQ$1))-FIND(CHAR(160),SUBSTITUTE($AB149,\"{\",CHAR(160),IQ$1))+1),\"\")","v":""},{"$f":"IFERROR(MID($AB149,FIND(CHAR(160),SUBSTITUTE($AB149,\"{\",CHAR(160),IR$1)),FIND(CHAR(160),SUBSTITUTE($AB149,\"}\",CHAR(160),IR$1))-FIND(CHAR(160),SUBSTITUTE($AB149,\"{\",CHAR(160),IR$1))+1),\"\")","v":""},{"$f":"IFERROR(MID($AB149,FIND(CHAR(160),SUBSTITUTE($AB149,\"{\",CHAR(160),IS$1)),FIND(CHAR(160),SUBSTITUTE($AB149,\"}\",CHAR(160),IS$1))-FIND(CHAR(160),SUBSTITUTE($AB149,\"{\",CHAR(160),IS$1))+1),\"\")","v":""},{"$f":"IFERROR(MID($AB149,FIND(CHAR(160),SUBSTITUTE($AB149,\"{\",CHAR(160),IT$1)),FIND(CHAR(160),SUBSTITUTE($AB149,\"}\",CHAR(160),IT$1))-FIND(CHAR(160),SUBSTITUTE($AB149,\"{\",CHAR(160),IT$1))+1),\"\")","v":""},{"$f":"IFERROR(MID($AB149,FIND(CHAR(160),SUBSTITUTE($AB149,\"{\",CHAR(160),IU$1)),FIND(CHAR(160),SUBSTITUTE($AB149,\"}\",CHAR(160),IU$1))-FIND(CHAR(160),SUBSTITUTE($AB149,\"{\",CHAR(160),IU$1))+1),\"\")","v":""},{"$f":"IFERROR(MID($AB149,FIND(CHAR(160),SUBSTITUTE($AB149,\"{\",CHAR(160),IV$1)),FIND(CHAR(160),SUBSTITUTE($AB149,\"}\",CHAR(160),IV$1))-FIND(CHAR(160),SUBSTITUTE($AB149,\"{\",CHAR(160),IV$1))+1),\"\")","v":""},{"$f":"IFERROR(MID($AB149,FIND(CHAR(160),SUBSTITUTE($AB149,\"{\",CHAR(160),IW$1)),FIND(CHAR(160),SUBSTITUTE($AB149,\"}\",CHAR(160),IW$1))-FIND(CHAR(160),SUBSTITUTE($AB149,\"{\",CHAR(160),IW$1))+1),\"\")","v":""},{"$f":"IFERROR(MID($AB149,FIND(CHAR(160),SUBSTITUTE($AB149,\"{\",CHAR(160),IX$1)),FIND(CHAR(160),SUBSTITUTE($AB149,\"}\",CHAR(160),IX$1))-FIND(CHAR(160),SUBSTITUTE($AB149,\"{\",CHAR(160),IX$1))+1),\"\")","v":""},null,{"$f":"10-COUNTIF(DU149:ED149,\"\")","v":2}]
["C&I Refrigeration Solutions","R52 Floating-Head Pressure Controls - Controlling 3 Coils","R52","2021-07-01","2022-06-30","Per Measure",984,0,"Per Measure",500,0,"2020-11-01","2022-06-30","Calculated","{Measure:Quantity} * {Controlled HP} * {Type}",1E-4,null,"{Measure:Quantity} * {Controlled HP} * {Type} / 7223",null,null,"{Measure:Quantity} * {Controlled HP} * {Type} / 7221 * {Factor:WinterCF}","{Measure:Quantity} * {Controlled HP} * {Type} / 7221 * {Factor:SummerCF}",null,null,null,null,null,null,"2020-11-01","2022-06-30",15,0.73699999999999999,0,0.33300000000000002,0.371,0.128,0.16800000000000001,1,1.1220000000000001,1,0.52,1.6E-2,null,{"$f":"DU150","v":"{Type}"},1,{"$f":"DV150","v":"{Measure:Quantity}"},5,{"$f":"DW150","v":"{Controlled HP}"},509,{"$f":"DX150","v":""},null,{"$f":"DY150","v":""},null,{"$f":"DZ150","v":""},null,{"$f":"EA150","v":""},null,{"$f":"EB150","v":""},null,{"$f":"EC150","v":""},null,{"$f":"ED150","v":""},null,{"$f":"AS150 * AU150 * AW150","v":2545},{"$f":"0.0001","v":1E-4},0,{"$f":"AS150 * AU150 * AW150 / 7223","v":0.35234667035857675},0,0,{"$f":"AS150 * AU150 * AW150 / 7221 * AF150","v":0.2597514194709874},{"$f":"AS150 * AU150 * AW150 / 7221 * AG150","v":0},0,0,0,0,0,0,null,"Res","Default DR",{"$f":"Benefits(BL150,BR150,BS150,BT150,BU150,BV150,BW150,BX150,BY150,BZ150,AE150,AH150,AI150,AJ150,AK150,AL150,AM150,AN150,AO150,AP150,CA150,CB150)","v":3838.1149636027385},978.12920541554968,0,0,0,0,0,0,0,{"$f":"SUMPRODUCT(CC150:CK150,--(CC150:CK150>0))","v":4816.2441690182877},{"$f":"-SUMPRODUCT(CC150:CK150,--(CC150:CK150<0))","v":0},null,{"$f":"984","v":984},null,null,{"$f":"CM150+CO150","v":984},{"$f":"IF(NetOrGross=\"Net\",(1-AO150+AP150),1)","v":1},{"$f":"(SUMPRODUCT(CC150:CJ150,--(CC150:CJ150>0))+CN150)*CS150/((-SUMPRODUCT(CC150:CJ150,--(CC150:CJ150<0))+MAX(CO150,CV150)+CP150+CQ150)*CS150+IF(FRIncentives=\"Yes\",CV150*(1-CS150),0))","v":4.8945570823356581},1,{"$f":"500","v":500},null,"Electric","y",null,{"$f":"IF(F150=\"Manual Entry\",\"Manual\",IF(G150=\"\",0,\"X=\"&SUBSTITUTE(SUBSTITUTE(SUBSTITUTE(SUBSTITUTE(SUBSTITUTE(SUBSTITUTE(SUBSTITUTE(SUBSTITUTE(SUBSTITUTE(SUBSTITUTE(SUBSTITUTE(SUBSTITUTE(G150,$ED150,$ED$2&ROW($ED150)),$EC150,$EC$2&ROW($EC150)),$EB150,$EB$2&ROW($EB150)),$EA150,$EA$2&ROW($EA150)),$DZ150,$DZ$2&ROW($DZ150)),$DY150,$DY$2&ROW($DY150)),$DX150,$DX$2&ROW($DX150)),$DW150,$DW$2&ROW($DW150)),$DV150,$DV$2&ROW($DV150)),$DU150,$DU$2&ROW($DU150)),$DT150,$DT$2&ROW($DT150)),$DS150,$DS$2&ROW($DS150))))","v":"X=984"},{"$f":"IF(I150=\"Manual Entry\",\"Manual\",IF(J150=\"\",0,\"X=\"&SUBSTITUTE(SUBSTITUTE(SUBSTITUTE(SUBSTITUTE(SUBSTITUTE(SUBSTITUTE(SUBSTITUTE(SUBSTITUTE(SUBSTITUTE(SUBSTITUTE(SUBSTITUTE(SUBSTITUTE(J150,$ED150,$ED$2&ROW($ED150)),$EC150,$EC$2&ROW($EC150)),$EB150,$EB$2&ROW($EB150)),$EA150,$EA$2&ROW($EA150)),$DZ150,$DZ$2&ROW($DZ150)),$DY150,$DY$2&ROW($DY150)),$DX150,$DX$2&ROW($DX150)),$DW150,$DW$2&ROW($DW150)),$DV150,$DV$2&ROW($DV150)),$DU150,$DU$2&ROW($DU150)),$DT150,$DT$2&ROW($DT150)),$DS150,$DS$2&ROW($DS150))))","v":"X=500"},{"$f":"IF(O150=\"\",0,\"X=\"&SUBSTITUTE(SUBSTITUTE(SUBSTITUTE(SUBSTITUTE(SUBSTITUTE(SUBSTITUTE(SUBSTITUTE(SUBSTITUTE(SUBSTITUTE(SUBSTITUTE(SUBSTITUTE(SUBSTITUTE(O150,$ED150,$ED$2&ROW($ED150)),$EC150,$EC$2&ROW($EC150)),$EB150,$EB$2&ROW($EB150)),$EA150,$EA$2&ROW($EA150)),$DZ150,$DZ$2&ROW($DZ150)),$DY150,$DY$2&ROW($DY150)),$DX150,$DX$2&ROW($DX150)),$DW150,$DW$2&ROW($DW150)),$DV150,$DV$2&ROW($DV150)),$DU150,$DU$2&ROW($DU150)),$DT150,$DT$2&ROW($DT150)),$DS150,$DS$2&ROW($DS150)))","v":"X=AU150 * AW150 * AS150"},{"$f":"IF(P150=\"\",0,\"X=\"&SUBSTITUTE(SUBSTITUTE(SUBSTITUTE(SUBSTITUTE(SUBSTITUTE(SUBSTITUTE(SUBSTITUTE(SUBSTITUTE(SUBSTITUTE(SUBSTITUTE(SUBSTITUTE(SUBSTITUTE(P150,$ED150,$ED$2&ROW($ED150)),$EC150,$EC$2&ROW($EC150)),$EB150,$EB$2&ROW($EB150)),$EA150,$EA$2&ROW($EA150)),$DZ150,$DZ$2&ROW($DZ150)),$DY150,$DY$2&ROW($DY150)),$DX150,$DX$2&ROW($DX150)),$DW150,$DW$2&ROW($DW150)),$DV150,$DV$2&ROW($DV150)),$DU150,$DU$2&ROW($DU150)),$DT150,$DT$2&ROW($DT150)),$DS150,$DS$2&ROW($DS150)))","v":"X=0.0001"},{"$f":"IF(Q150=\"\",0,\"X=\"&SUBSTITUTE(SUBSTITUTE(SUBSTITUTE(SUBSTITUTE(SUBSTITUTE(SUBSTITUTE(SUBSTITUTE(SUBSTITUTE(SUBSTITUTE(SUBSTITUTE(SUBSTITUTE(SUBSTITUTE(Q150,$ED150,$ED$2&ROW($ED150)),$EC150,$EC$2&ROW($EC150)),$EB150,$EB$2&ROW($EB150)),$EA150,$EA$2&ROW($EA150)),$DZ150,$DZ$2&ROW($DZ150)),$DY150,$DY$2&ROW($DY150)),$DX150,$DX$2&ROW($DX150)),$DW150,$DW$2&ROW($DW150)),$DV150,$DV$2&ROW($DV150)),$DU150,$DU$2&ROW($DU150)),$DT150,$DT$2&ROW($DT150)),$DS150,$DS$2&ROW($DS150)))","v":0},{"$f":"IF(R150=\"\",0,\"X=\"&SUBSTITUTE(SUBSTITUTE(SUBSTITUTE(SUBSTITUTE(SUBSTITUTE(SUBSTITUTE(SUBSTITUTE(SUBSTITUTE(SUBSTITUTE(SUBSTITUTE(SUBSTITUTE(SUBSTITUTE(R150,$ED150,$ED$2&ROW($ED150)),$EC150,$EC$2&ROW($EC150)),$EB150,$EB$2&ROW($EB150)),$EA150,$EA$2&ROW($EA150)),$DZ150,$DZ$2&ROW($DZ150)),$DY150,$DY$2&ROW($DY150)),$DX150,$DX$2&ROW($DX150)),$DW150,$DW$2&ROW($DW150)),$DV150,$DV$2&ROW($DV150)),$DU150,$DU$2&ROW($DU150)),$DT150,$DT$2&ROW($DT150)),$DS150,$DS$2&ROW($DS150)))","v":"X=AU150 * AW150 * AS150 / 7223"},{"$f":"IF(S150=\"\",0,\"X=\"&SUBSTITUTE(SUBSTITUTE(SUBSTITUTE(SUBSTITUTE(SUBSTITUTE(SUBSTITUTE(SUBSTITUTE(SUBSTITUTE(SUBSTITUTE(SUBSTITUTE(SUBSTITUTE(SUBSTITUTE(S150,$ED150,$ED$2&ROW($ED150)),$EC150,$EC$2&ROW($EC150)),$EB150,$EB$2&ROW($EB150)),$EA150,$EA$2&ROW($EA150)),$DZ150,$DZ$2&ROW($DZ150)),$DY150,$DY$2&ROW($DY150)),$DX150,$DX$2&ROW($DX150)),$DW150,$DW$2&ROW($DW150)),$DV150,$DV$2&ROW($DV150)),$DU150,$DU$2&ROW($DU150)),$DT150,$DT$2&ROW($DT150)),$DS150,$DS$2&ROW($DS150)))","v":0},{"$f":"IF(T150=\"\",0,\"X=\"&SUBSTITUTE(SUBSTITUTE(SUBSTITUTE(SUBSTITUTE(SUBSTITUTE(SUBSTITUTE(SUBSTITUTE(SUBSTITUTE(SUBSTITUTE(SUBSTITUTE(SUBSTITUTE(SUBSTITUTE(T150,$ED150,$ED$2&ROW($ED150)),$EC150,$EC$2&ROW($EC150)),$EB150,$EB$2&ROW($EB150)),$EA150,$EA$2&ROW($EA150)),$DZ150,$DZ$2&ROW($DZ150)),$DY150,$DY$2&ROW($DY150)),$DX150,$DX$2&ROW($DX150)),$DW150,$DW$2&ROW($DW150)),$DV150,$DV$2&ROW($DV150)),$DU150,$DU$2&ROW($DU150)),$DT150,$DT$2&ROW($DT150)),$DS150,$DS$2&ROW($DS150)))","v":0},{"$f":"IF(U150=\"\",0,\"X=\"&SUBSTITUTE(SUBSTITUTE(SUBSTITUTE(SUBSTITUTE(SUBSTITUTE(SUBSTITUTE(SUBSTITUTE(SUBSTITUTE(SUBSTITUTE(SUBSTITUTE(SUBSTITUTE(SUBSTITUTE(U150,$ED150,$ED$2&ROW($ED150)),$EC150,$EC$2&ROW($EC150)),$EB150,$EB$2&ROW($EB150)),$EA150,$EA$2&ROW($EA150)),$DZ150,$DZ$2&ROW($DZ150)),$DY150,$DY$2&ROW($DY150)),$DX150,$DX$2&ROW($DX150)),$DW150,$DW$2&ROW($DW150)),$DV150,$DV$2&ROW($DV150)),$DU150,$DU$2&ROW($DU150)),$DT150,$DT$2&ROW($DT150)),$DS150,$DS$2&ROW($DS150)))","v":"X=AU150 * AW150 * AS150 / 7221 * AF150"},{"$f":"IF(V150=\"\",0,\"X=\"&SUBSTITUTE(SUBSTITUTE(SUBSTITUTE(SUBSTITUTE(SUBSTITUTE(SUBSTITUTE(SUBSTITUTE(SUBSTITUTE(SUBSTITUTE(SUBSTITUTE(SUBSTITUTE(SUBSTITUTE(V150,$ED150,$ED$2&ROW($ED150)),$EC150,$EC$2&ROW($EC150)),$EB150,$EB$2&ROW($EB150)),$EA150,$EA$2&ROW($EA150)),$DZ150,$DZ$2&ROW($DZ150)),$DY150,$DY$2&ROW($DY150)),$DX150,$DX$2&ROW($DX150)),$DW150,$DW$2&ROW($DW150)),$DV150,$DV$2&ROW($DV150)),$DU150,$DU$2&ROW($DU150)),$DT150,$DT$2&ROW($DT150)),$DS150,$DS$2&ROW($DS150)))","v":"X=AU150 * AW150 * AS150 / 7221 * AG150"},{"$f":"IF(W150=\"\",0,\"X=\"&SUBSTITUTE(SUBSTITUTE(SUBSTITUTE(SUBSTITUTE(SUBSTITUTE(SUBSTITUTE(SUBSTITUTE(SUBSTITUTE(SUBSTITUTE(SUBSTITUTE(SUBSTITUTE(SUBSTITUTE(W150,$ED150,$ED$2&ROW($ED150)),$EC150,$EC$2&ROW($EC150)),$EB150,$EB$2&ROW($EB150)),$EA150,$EA$2&ROW($EA150)),$DZ150,$DZ$2&ROW($DZ150)),$DY150,$DY$2&ROW($DY150)),$DX150,$DX$2&ROW($DX150)),$DW150,$DW$2&ROW($DW150)),$DV150,$DV$2&ROW($DV150)),$DU150,$DU$2&ROW($DU150)),$DT150,$DT$2&ROW($DT150)),$DS150,$DS$2&ROW($DS150)))","v":0},{"$f":"IF(X150=\"\",0,\"X=\"&SUBSTITUTE(SUBSTITUTE(SUBSTITUTE(SUBSTITUTE(SUBSTITUTE(SUBSTITUTE(SUBSTITUTE(SUBSTITUTE(SUBSTITUTE(SUBSTITUTE(SUBSTITUTE(SUBSTITUTE(X150,$ED150,$ED$2&ROW($ED150)),$EC150,$EC$2&ROW($EC150)),$EB150,$EB$2&ROW($EB150)),$EA150,$EA$2&ROW($EA150)),$DZ150,$DZ$2&ROW($DZ150)),$DY150,$DY$2&ROW($DY150)),$DX150,$DX$2&ROW($DX150)),$DW150,$DW$2&ROW($DW150)),$DV150,$DV$2&ROW($DV150)),$DU150,$DU$2&ROW($DU150)),$DT150,$DT$2&ROW($DT150)),$DS150,$DS$2&ROW($DS150)))","v":0},{"$f":"IF(Y150=\"\",0,\"X=\"&SUBSTITUTE(SUBSTITUTE(SUBSTITUTE(SUBSTITUTE(SUBSTITUTE(SUBSTITUTE(SUBSTITUTE(SUBSTITUTE(SUBSTITUTE(SUBSTITUTE(SUBSTITUTE(SUBSTITUTE(Y150,$ED150,$ED$2&ROW($ED150)),$EC150,$EC$2&ROW($EC150)),$EB150,$EB$2&ROW($EB150)),$EA150,$EA$2&ROW($EA150)),$DZ150,$DZ$2&ROW($DZ150)),$DY150,$DY$2&ROW($DY150)),$DX150,$DX$2&ROW($DX150)),$DW150,$DW$2&ROW($DW150)),$DV150,$DV$2&ROW($DV150)),$DU150,$DU$2&ROW($DU150)),$DT150,$DT$2&ROW($DT150)),$DS150,$DS$2&ROW($DS150)))","v":0},{"$f":"IF(Z150=\"\",0,\"X=\"&SUBSTITUTE(SUBSTITUTE(SUBSTITUTE(SUBSTITUTE(SUBSTITUTE(SUBSTITUTE(SUBSTITUTE(SUBSTITUTE(SUBSTITUTE(SUBSTITUTE(SUBSTITUTE(SUBSTITUTE(Z150,$ED150,$ED$2&ROW($ED150)),$EC150,$EC$2&ROW($EC150)),$EB150,$EB$2&ROW($EB150)),$EA150,$EA$2&ROW($EA150)),$DZ150,$DZ$2&ROW($DZ150)),$DY150,$DY$2&ROW($DY150)),$DX150,$DX$2&ROW($DX150)),$DW150,$DW$2&ROW($DW150)),$DV150,$DV$2&ROW($DV150)),$DU150,$DU$2&ROW($DU150)),$DT150,$DT$2&ROW($DT150)),$DS150,$DS$2&ROW($DS150)))","v":0},{"$f":"IF(AA150=\"\",0,\"X=\"&SUBSTITUTE(SUBSTITUTE(SUBSTITUTE(SUBSTITUTE(SUBSTITUTE(SUBSTITUTE(SUBSTITUTE(SUBSTITUTE(SUBSTITUTE(SUBSTITUTE(SUBSTITUTE(SUBSTITUTE(AA150,$ED150,$ED$2&ROW($ED150)),$EC150,$EC$2&ROW($EC150)),$EB150,$EB$2&ROW($EB150)),$EA150,$EA$2&ROW($EA150)),$DZ150,$DZ$2&ROW($DZ150)),$DY150,$DY$2&ROW($DY150)),$DX150,$DX$2&ROW($DX150)),$DW150,$DW$2&ROW($DW150)),$DV150,$DV$2&ROW($DV150)),$DU150,$DU$2&ROW($DU150)),$DT150,$DT$2&ROW($DT150)),$DS150,$DS$2&ROW($DS150)))","v":0},{"$f":"IF(AB150=\"\",0,\"X=\"&SUBSTITUTE(SUBSTITUTE(SUBSTITUTE(SUBSTITUTE(SUBSTITUTE(SUBSTITUTE(SUBSTITUTE(SUBSTITUTE(SUBSTITUTE(SUBSTITUTE(SUBSTITUTE(SUBSTITUTE(AB150,$ED150,$ED$2&ROW($ED150)),$EC150,$EC$2&ROW($EC150)),$EB150,$EB$2&ROW($EB150)),$EA150,$EA$2&ROW($EA150)),$DZ150,$DZ$2&ROW($DZ150)),$DY150,$DY$2&ROW($DY150)),$DX150,$DX$2&ROW($DX150)),$DW150,$DW$2&ROW($DW150)),$DV150,$DV$2&ROW($DV150)),$DU150,$DU$2&ROW($DU150)),$DT150,$DT$2&ROW($DT150)),$DS150,$DS$2&ROW($DS150)))","v":0},null,null,"{Factor:WinterCF}","{Factor:SummerCF}",{"$f":"IFERROR(INDEX($EG150:$IV150,MATCH(0,COUNTIF($DR150:DT150,$EG150:$IV150),0)),\"\")","v":"{Type}"},{"$f":"IFERROR(INDEX($EG150:$IV150,MATCH(0,COUNTIF($DR150:DU150,$EG150:$IV150),0)),\"\")","v":"{Measure:Quantity}"},{"$f":"IFERROR(INDEX($EG150:$IV150,MATCH(0,COUNTIF($DR150:DV150,$EG150:$IV150),0)),\"\")","v":"{Controlled HP}"},{"$f":"IFERROR(INDEX($EG150:$IV150,MATCH(0,COUNTIF($DR150:DW150,$EG150:$IV150),0)),\"\")","v":""},{"$f":"IFERROR(INDEX($EG150:$IV150,MATCH(0,COUNTIF($DR150:DX150,$EG150:$IV150),0)),\"\")","v":""},{"$f":"IFERROR(INDEX($EG150:$IV150,MATCH(0,COUNTIF($DR150:DY150,$EG150:$IV150),0)),\"\")","v":""},{"$f":"IFERROR(INDEX($EG150:$IV150,MATCH(0,COUNTIF($DR150:DZ150,$EG150:$IV150),0)),\"\")","v":""},{"$f":"IFERROR(INDEX($EG150:$IV150,MATCH(0,COUNTIF($DR150:EA150,$EG150:$IV150),0)),\"\")","v":""},{"$f":"IFERROR(INDEX($EG150:$IV150,MATCH(0,COUNTIF($DR150:EB150,$EG150:$IV150),0)),\"\")","v":""},{"$f":"IFERROR(INDEX($EG150:$IV150,MATCH(0,COUNTIF($DR150:EC150,$EG150:$IV150),0)),\"\")","v":""},null,null,{"$f":"IFERROR(MID($G150,FIND(CHAR(160),SUBSTITUTE($G150,\"{\",CHAR(160),EG$1)),FIND(CHAR(160),SUBSTITUTE($G150,\"}\",CHAR(160),EG$1))-FIND(CHAR(160),SUBSTITUTE($G150,\"{\",CHAR(160),EG$1))+1),\"\")","v":""},{"$f":"IFERROR(MID($G150,FIND(CHAR(160),SUBSTITUTE($G150,\"{\",CHAR(160),EH$1)),FIND(CHAR(160),SUBSTITUTE($G150,\"}\",CHAR(160),EH$1))-FIND(CHAR(160),SUBSTITUTE($G150,\"{\",CHAR(160),EH$1))+1),\"\")","v":""},{"$f":"IFERROR(MID($G150,FIND(CHAR(160),SUBSTITUTE($G150,\"{\",CHAR(160),EI$1)),FIND(CHAR(160),SUBSTITUTE($G150,\"}\",CHAR(160),EI$1))-FIND(CHAR(160),SUBSTITUTE($G150,\"{\",CHAR(160),EI$1))+1),\"\")","v":""},{"$f":"IFERROR(MID($G150,FIND(CHAR(160),SUBSTITUTE($G150,\"{\",CHAR(160),EJ$1)),FIND(CHAR(160),SUBSTITUTE($G150,\"}\",CHAR(160),EJ$1))-FIND(CHAR(160),SUBSTITUTE($G150,\"{\",CHAR(160),EJ$1))+1),\"\")","v":""},{"$f":"IFERROR(MID($G150,FIND(CHAR(160),SUBSTITUTE($G150,\"{\",CHAR(160),EK$1)),FIND(CHAR(160),SUBSTITUTE($G150,\"}\",CHAR(160),EK$1))-FIND(CHAR(160),SUBSTITUTE($G150,\"{\",CHAR(160),EK$1))+1),\"\")","v":""},{"$f":"IFERROR(MID($G150,FIND(CHAR(160),SUBSTITUTE($G150,\"{\",CHAR(160),EL$1)),FIND(CHAR(160),SUBSTITUTE($G150,\"}\",CHAR(160),EL$1))-FIND(CHAR(160),SUBSTITUTE($G150,\"{\",CHAR(160),EL$1))+1),\"\")","v":""},{"$f":"IFERROR(MID($G150,FIND(CHAR(160),SUBSTITUTE($G150,\"{\",CHAR(160),EM$1)),FIND(CHAR(160),SUBSTITUTE($G150,\"}\",CHAR(160),EM$1))-FIND(CHAR(160),SUBSTITUTE($G150,\"{\",CHAR(160),EM$1))+1),\"\")","v":""},{"$f":"IFERROR(MID($G150,FIND(CHAR(160),SUBSTITUTE($G150,\"{\",CHAR(160),EN$1)),FIND(CHAR(160),SUBSTITUTE($G150,\"}\",CHAR(160),EN$1))-FIND(CHAR(160),SUBSTITUTE($G150,\"{\",CHAR(160),EN$1))+1),\"\")","v":""},{"$f":"IFERROR(MID($G150,FIND(CHAR(160),SUBSTITUTE($G150,\"{\",CHAR(160),EO$1)),FIND(CHAR(160),SUBSTITUTE($G150,\"}\",CHAR(160),EO$1))-FIND(CHAR(160),SUBSTITUTE($G150,\"{\",CHAR(160),EO$1))+1),\"\")","v":""},{"$f":"IFERROR(MID($G150,FIND(CHAR(160),SUBSTITUTE($G150,\"{\",CHAR(160),EP$1)),FIND(CHAR(160),SUBSTITUTE($G150,\"}\",CHAR(160),EP$1))-FIND(CHAR(160),SUBSTITUTE($G150,\"{\",CHAR(160),EP$1))+1),\"\")","v":""},{"$f":"IFERROR(MID($J150,FIND(CHAR(160),SUBSTITUTE($J150,\"{\",CHAR(160),EQ$1)),FIND(CHAR(160),SUBSTITUTE($J150,\"}\",CHAR(160),EQ$1))-FIND(CHAR(160),SUBSTITUTE($J150,\"{\",CHAR(160),EQ$1))+1),\"\")","v":""},{"$f":"IFERROR(MID($J150,FIND(CHAR(160),SUBSTITUTE($J150,\"{\",CHAR(160),ER$1)),FIND(CHAR(160),SUBSTITUTE($J150,\"}\",CHAR(160),ER$1))-FIND(CHAR(160),SUBSTITUTE($J150,\"{\",CHAR(160),ER$1))+1),\"\")","v":""},{"$f":"IFERROR(MID($J150,FIND(CHAR(160),SUBSTITUTE($J150,\"{\",CHAR(160),ES$1)),FIND(CHAR(160),SUBSTITUTE($J150,\"}\",CHAR(160),ES$1))-FIND(CHAR(160),SUBSTITUTE($J150,\"{\",CHAR(160),ES$1))+1),\"\")","v":""},{"$f":"IFERROR(MID($J150,FIND(CHAR(160),SUBSTITUTE($J150,\"{\",CHAR(160),ET$1)),FIND(CHAR(160),SUBSTITUTE($J150,\"}\",CHAR(160),ET$1))-FIND(CHAR(160),SUBSTITUTE($J150,\"{\",CHAR(160),ET$1))+1),\"\")","v":""},{"$f":"IFERROR(MID($J150,FIND(CHAR(160),SUBSTITUTE($J150,\"{\",CHAR(160),EU$1)),FIND(CHAR(160),SUBSTITUTE($J150,\"}\",CHAR(160),EU$1))-FIND(CHAR(160),SUBSTITUTE($J150,\"{\",CHAR(160),EU$1))+1),\"\")","v":""},{"$f":"IFERROR(MID($J150,FIND(CHAR(160),SUBSTITUTE($J150,\"{\",CHAR(160),EV$1)),FIND(CHAR(160),SUBSTITUTE($J150,\"}\",CHAR(160),EV$1))-FIND(CHAR(160),SUBSTITUTE($J150,\"{\",CHAR(160),EV$1))+1),\"\")","v":""},{"$f":"IFERROR(MID($J150,FIND(CHAR(160),SUBSTITUTE($J150,\"{\",CHAR(160),EW$1)),FIND(CHAR(160),SUBSTITUTE($J150,\"}\",CHAR(160),EW$1))-FIND(CHAR(160),SUBSTITUTE($J150,\"{\",CHAR(160),EW$1))+1),\"\")","v":""},{"$f":"IFERROR(MID($J150,FIND(CHAR(160),SUBSTITUTE($J150,\"{\",CHAR(160),EX$1)),FIND(CHAR(160),SUBSTITUTE($J150,\"}\",CHAR(160),EX$1))-FIND(CHAR(160),SUBSTITUTE($J150,\"{\",CHAR(160),EX$1))+1),\"\")","v":""},{"$f":"IFERROR(MID($J150,FIND(CHAR(160),SUBSTITUTE($J150,\"{\",CHAR(160),EY$1)),FIND(CHAR(160),SUBSTITUTE($J150,\"}\",CHAR(160),EY$1))-FIND(CHAR(160),SUBSTITUTE($J150,\"{\",CHAR(160),EY$1))+1),\"\")","v":""},{"$f":"IFERROR(MID($J150,FIND(CHAR(160),SUBSTITUTE($J150,\"{\",CHAR(160),EZ$1)),FIND(CHAR(160),SUBSTITUTE($J150,\"}\",CHAR(160),EZ$1))-FIND(CHAR(160),SUBSTITUTE($J150,\"{\",CHAR(160),EZ$1))+1),\"\")","v":""},{"$f":"IFERROR(MID($J150,FIND(CHAR(160),SUBSTITUTE($J150,\"{\",CHAR(160),FA$1)),FIND(CHAR(160),SUBSTITUTE($J150,\"}\",CHAR(160),FA$1))-FIND(CHAR(160),SUBSTITUTE($J150,\"{\",CHAR(160),FA$1))+1),\"\")","v":""},{"$f":"IFERROR(MID($J150,FIND(CHAR(160),SUBSTITUTE($J150,\"{\",CHAR(160),FB$1)),FIND(CHAR(160),SUBSTITUTE($J150,\"}\",CHAR(160),FB$1))-FIND(CHAR(160),SUBSTITUTE($J150,\"{\",CHAR(160),FB$1))+1),\"\")","v":""},{"$f":"IFERROR(MID($O150,FIND(CHAR(160),SUBSTITUTE($O150,\"{\",CHAR(160),FC$1)),FIND(CHAR(160),SUBSTITUTE($O150,\"}\",CHAR(160),FC$1))-FIND(CHAR(160),SUBSTITUTE($O150,\"{\",CHAR(160),FC$1))+1),\"\")","v":"{Type}"},{"$f":"IFERROR(MID($O150,FIND(CHAR(160),SUBSTITUTE($O150,\"{\",CHAR(160),FD$1)),FIND(CHAR(160),SUBSTITUTE($O150,\"}\",CHAR(160),FD$1))-FIND(CHAR(160),SUBSTITUTE($O150,\"{\",CHAR(160),FD$1))+1),\"\")","v":""},{"$f":"IFERROR(MID($O150,FIND(CHAR(160),SUBSTITUTE($O150,\"{\",CHAR(160),FE$1)),FIND(CHAR(160),SUBSTITUTE($O150,\"}\",CHAR(160),FE$1))-FIND(CHAR(160),SUBSTITUTE($O150,\"{\",CHAR(160),FE$1))+1),\"\")","v":""},{"$f":"IFERROR(MID($O150,FIND(CHAR(160),SUBSTITUTE($O150,\"{\",CHAR(160),FF$1)),FIND(CHAR(160),SUBSTITUTE($O150,\"}\",CHAR(160),FF$1))-FIND(CHAR(160),SUBSTITUTE($O150,\"{\",CHAR(160),FF$1))+1),\"\")","v":""},{"$f":"IFERROR(MID($O150,FIND(CHAR(160),SUBSTITUTE($O150,\"{\",CHAR(160),FG$1)),FIND(CHAR(160),SUBSTITUTE($O150,\"}\",CHAR(160),FG$1))-FIND(CHAR(160),SUBSTITUTE($O150,\"{\",CHAR(160),FG$1))+1),\"\")","v":""},{"$f":"IFERROR(MID($O150,FIND(CHAR(160),SUBSTITUTE($O150,\"{\",CHAR(160),FH$1)),FIND(CHAR(160),SUBSTITUTE($O150,\"}\",CHAR(160),FH$1))-FIND(CHAR(160),SUBSTITUTE($O150,\"{\",CHAR(160),FH$1))+1),\"\")","v":""},{"$f":"IFERROR(MID($O150,FIND(CHAR(160),SUBSTITUTE($O150,\"{\",CHAR(160),FI$1)),FIND(CHAR(160),SUBSTITUTE($O150,\"}\",CHAR(160),FI$1))-FIND(CHAR(160),SUBSTITUTE($O150,\"{\",CHAR(160),FI$1))+1),\"\")","v":""},{"$f":"IFERROR(MID($O150,FIND(CHAR(160),SUBSTITUTE($O150,\"{\",CHAR(160),FJ$1)),FIND(CHAR(160),SUBSTITUTE($O150,\"}\",CHAR(160),FJ$1))-FIND(CHAR(160),SUBSTITUTE($O150,\"{\",CHAR(160),FJ$1))+1),\"\")","v":""},{"$f":"IFERROR(MID($O150,FIND(CHAR(160),SUBSTITUTE($O150,\"{\",CHAR(160),FK$1)),FIND(CHAR(160),SUBSTITUTE($O150,\"}\",CHAR(160),FK$1))-FIND(CHAR(160),SUBSTITUTE($O150,\"{\",CHAR(160),FK$1))+1),\"\")","v":"{Measure:Quantity}"},{"$f":"IFERROR(MID($O150,FIND(CHAR(160),SUBSTITUTE($O150,\"{\",CHAR(160),FL$1)),FIND(CHAR(160),SUBSTITUTE($O150,\"}\",CHAR(160),FL$1))-FIND(CHAR(160),SUBSTITUTE($O150,\"{\",CHAR(160),FL$1))+1),\"\")","v":"{Controlled HP}"},{"$f":"IFERROR(MID($R150,FIND(CHAR(160),SUBSTITUTE($R150,\"{\",CHAR(160),FM$1)),FIND(CHAR(160),SUBSTITUTE($R150,\"}\",CHAR(160),FM$1))-FIND(CHAR(160),SUBSTITUTE($R150,\"{\",CHAR(160),FM$1))+1),\"\")","v":"{Type}"},{"$f":"IFERROR(MID($R150,FIND(CHAR(160),SUBSTITUTE($R150,\"{\",CHAR(160),FN$1)),FIND(CHAR(160),SUBSTITUTE($R150,\"}\",CHAR(160),FN$1))-FIND(CHAR(160),SUBSTITUTE($R150,\"{\",CHAR(160),FN$1))+1),\"\")","v":""},{"$f":"IFERROR(MID($R150,FIND(CHAR(160),SUBSTITUTE($R150,\"{\",CHAR(160),FO$1)),FIND(CHAR(160),SUBSTITUTE($R150,\"}\",CHAR(160),FO$1))-FIND(CHAR(160),SUBSTITUTE($R150,\"{\",CHAR(160),FO$1))+1),\"\")","v":""},{"$f":"IFERROR(MID($R150,FIND(CHAR(160),SUBSTITUTE($R150,\"{\",CHAR(160),FP$1)),FIND(CHAR(160),SUBSTITUTE($R150,\"}\",CHAR(160),FP$1))-FIND(CHAR(160),SUBSTITUTE($R150,\"{\",CHAR(160),FP$1))+1),\"\")","v":""},{"$f":"IFERROR(MID($R150,FIND(CHAR(160),SUBSTITUTE($R150,\"{\",CHAR(160),FQ$1)),FIND(CHAR(160),SUBSTITUTE($R150,\"}\",CHAR(160),FQ$1))-FIND(CHAR(160),SUBSTITUTE($R150,\"{\",CHAR(160),FQ$1))+1),\"\")","v":""},{"$f":"IFERROR(MID($R150,FIND(CHAR(160),SUBSTITUTE($R150,\"{\",CHAR(160),FR$1)),FIND(CHAR(160),SUBSTITUTE($R150,\"}\",CHAR(160),FR$1))-FIND(CHAR(160),SUBSTITUTE($R150,\"{\",CHAR(160),FR$1))+1),\"\")","v":""},{"$f":"IFERROR(MID($R150,FIND(CHAR(160),SUBSTITUTE($R150,\"{\",CHAR(160),FS$1)),FIND(CHAR(160),SUBSTITUTE($R150,\"}\",CHAR(160),FS$1))-FIND(CHAR(160),SUBSTITUTE($R150,\"{\",CHAR(160),FS$1))+1),\"\")","v":""},{"$f":"IFERROR(MID($R150,FIND(CHAR(160),SUBSTITUTE($R150,\"{\",CHAR(160),FT$1)),FIND(CHAR(160),SUBSTITUTE($R150,\"}\",CHAR(160),FT$1))-FIND(CHAR(160),SUBSTITUTE($R150,\"{\",CHAR(160),FT$1))+1),\"\")","v":""},{"$f":"IFERROR(MID($R150,FIND(CHAR(160),SUBSTITUTE($R150,\"{\",CHAR(160),FU$1)),FIND(CHAR(160),SUBSTITUTE($R150,\"}\",CHAR(160),FU$1))-FIND(CHAR(160),SUBSTITUTE($R150,\"{\",CHAR(160),FU$1))+1),\"\")","v":"{Measure:Quantity}"},{"$f":"IFERROR(MID($R150,FIND(CHAR(160),SUBSTITUTE($R150,\"{\",CHAR(160),FV$1)),FIND(CHAR(160),SUBSTITUTE($R150,\"}\",CHAR(160),FV$1))-FIND(CHAR(160),SUBSTITUTE($R150,\"{\",CHAR(160),FV$1))+1),\"\")","v":"{Controlled HP}"},{"$f":"IFERROR(MID($U150,FIND(CHAR(160),SUBSTITUTE($U150,\"{\",CHAR(160),FW$1)),FIND(CHAR(160),SUBSTITUTE($U150,\"}\",CHAR(160),FW$1))-FIND(CHAR(160),SUBSTITUTE($U150,\"{\",CHAR(160),FW$1))+1),\"\")","v":"{Type}"},{"$f":"IFERROR(MID($U150,FIND(CHAR(160),SUBSTITUTE($U150,\"{\",CHAR(160),FX$1)),FIND(CHAR(160),SUBSTITUTE($U150,\"}\",CHAR(160),FX$1))-FIND(CHAR(160),SUBSTITUTE($U150,\"{\",CHAR(160),FX$1))+1),\"\")","v":"{Factor:WinterCF}"},{"$f":"IFERROR(MID($U150,FIND(CHAR(160),SUBSTITUTE($U150,\"{\",CHAR(160),FY$1)),FIND(CHAR(160),SUBSTITUTE($U150,\"}\",CHAR(160),FY$1))-FIND(CHAR(160),SUBSTITUTE($U150,\"{\",CHAR(160),FY$1))+1),\"\")","v":""},{"$f":"IFERROR(MID($U150,FIND(CHAR(160),SUBSTITUTE($U150,\"{\",CHAR(160),FZ$1)),FIND(CHAR(160),SUBSTITUTE($U150,\"}\",CHAR(160),FZ$1))-FIND(CHAR(160),SUBSTITUTE($U150,\"{\",CHAR(160),FZ$1))+1),\"\")","v":""},{"$f":"IFERROR(MID($U150,FIND(CHAR(160),SUBSTITUTE($U150,\"{\",CHAR(160),GA$1)),FIND(CHAR(160),SUBSTITUTE($U150,\"}\",CHAR(160),GA$1))-FIND(CHAR(160),SUBSTITUTE($U150,\"{\",CHAR(160),GA$1))+1),\"\")","v":""},{"$f":"IFERROR(MID($U150,FIND(CHAR(160),SUBSTITUTE($U150,\"{\",CHAR(160),GB$1)),FIND(CHAR(160),SUBSTITUTE($U150,\"}\",CHAR(160),GB$1))-FIND(CHAR(160),SUBSTITUTE($U150,\"{\",CHAR(160),GB$1))+1),\"\")","v":""},{"$f":"IFERROR(MID($U150,FIND(CHAR(160),SUBSTITUTE($U150,\"{\",CHAR(160),GC$1)),FIND(CHAR(160),SUBSTITUTE($U150,\"}\",CHAR(160),GC$1))-FIND(CHAR(160),SUBSTITUTE($U150,\"{\",CHAR(160),GC$1))+1),\"\")","v":""},{"$f":"IFERROR(MID($U150,FIND(CHAR(160),SUBSTITUTE($U150,\"{\",CHAR(160),GD$1)),FIND(CHAR(160),SUBSTITUTE($U150,\"}\",CHAR(160),GD$1))-FIND(CHAR(160),SUBSTITUTE($U150,\"{\",CHAR(160),GD$1))+1),\"\")","v":""},{"$f":"IFERROR(MID($U150,FIND(CHAR(160),SUBSTITUTE($U150,\"{\",CHAR(160),GE$1)),FIND(CHAR(160),SUBSTITUTE($U150,\"}\",CHAR(160),GE$1))-FIND(CHAR(160),SUBSTITUTE($U150,\"{\",CHAR(160),GE$1))+1),\"\")","v":"{Measure:Quantity}"},{"$f":"IFERROR(MID($U150,FIND(CHAR(160),SUBSTITUTE($U150,\"{\",CHAR(160),GF$1)),FIND(CHAR(160),SUBSTITUTE($U150,\"}\",CHAR(160),GF$1))-FIND(CHAR(160),SUBSTITUTE($U150,\"{\",CHAR(160),GF$1))+1),\"\")","v":"{Controlled HP}"},{"$f":"IFERROR(MID($V150,FIND(CHAR(160),SUBSTITUTE($V150,\"{\",CHAR(160),GG$1)),FIND(CHAR(160),SUBSTITUTE($V150,\"}\",CHAR(160),GG$1))-FIND(CHAR(160),SUBSTITUTE($V150,\"{\",CHAR(160),GG$1))+1),\"\")","v":"{Type}"},{"$f":"IFERROR(MID($V150,FIND(CHAR(160),SUBSTITUTE($V150,\"{\",CHAR(160),GH$1)),FIND(CHAR(160),SUBSTITUTE($V150,\"}\",CHAR(160),GH$1))-FIND(CHAR(160),SUBSTITUTE($V150,\"{\",CHAR(160),GH$1))+1),\"\")","v":"{Factor:SummerCF}"},{"$f":"IFERROR(MID($V150,FIND(CHAR(160),SUBSTITUTE($V150,\"{\",CHAR(160),GI$1)),FIND(CHAR(160),SUBSTITUTE($V150,\"}\",CHAR(160),GI$1))-FIND(CHAR(160),SUBSTITUTE($V150,\"{\",CHAR(160),GI$1))+1),\"\")","v":""},{"$f":"IFERROR(MID($V150,FIND(CHAR(160),SUBSTITUTE($V150,\"{\",CHAR(160),GJ$1)),FIND(CHAR(160),SUBSTITUTE($V150,\"}\",CHAR(160),GJ$1))-FIND(CHAR(160),SUBSTITUTE($V150,\"{\",CHAR(160),GJ$1))+1),\"\")","v":""},{"$f":"IFERROR(MID($V150,FIND(CHAR(160),SUBSTITUTE($V150,\"{\",CHAR(160),GK$1)),FIND(CHAR(160),SUBSTITUTE($V150,\"}\",CHAR(160),GK$1))-FIND(CHAR(160),SUBSTITUTE($V150,\"{\",CHAR(160),GK$1))+1),\"\")","v":""},{"$f":"IFERROR(MID($V150,FIND(CHAR(160),SUBSTITUTE($V150,\"{\",CHAR(160),GL$1)),FIND(CHAR(160),SUBSTITUTE($V150,\"}\",CHAR(160),GL$1))-FIND(CHAR(160),SUBSTITUTE($V150,\"{\",CHAR(160),GL$1))+1),\"\")","v":""},{"$f":"IFERROR(MID($V150,FIND(CHAR(160),SUBSTITUTE($V150,\"{\",CHAR(160),GM$1)),FIND(CHAR(160),SUBSTITUTE($V150,\"}\",CHAR(160),GM$1))-FIND(CHAR(160),SUBSTITUTE($V150,\"{\",CHAR(160),GM$1))+1),\"\")","v":""},{"$f":"IFERROR(MID($V150,FIND(CHAR(160),SUBSTITUTE($V150,\"{\",CHAR(160),GN$1)),FIND(CHAR(160),SUBSTITUTE($V150,\"}\",CHAR(160),GN$1))-FIND(CHAR(160),SUBSTITUTE($V150,\"{\",CHAR(160),GN$1))+1),\"\")","v":""},{"$f":"IFERROR(MID($V150,FIND(CHAR(160),SUBSTITUTE($V150,\"{\",CHAR(160),GO$1)),FIND(CHAR(160),SUBSTITUTE($V150,\"}\",CHAR(160),GO$1))-FIND(CHAR(160),SUBSTITUTE($V150,\"{\",CHAR(160),GO$1))+1),\"\")","v":"{Measure:Quantity}"},{"$f":"IFERROR(MID($V150,FIND(CHAR(160),SUBSTITUTE($V150,\"{\",CHAR(160),GP$1)),FIND(CHAR(160),SUBSTITUTE($V150,\"}\",CHAR(160),GP$1))-FIND(CHAR(160),SUBSTITUTE($V150,\"{\",CHAR(160),GP$1))+1),\"\")","v":"{Controlled HP}"},{"$f":"IFERROR(MID($W150,FIND(CHAR(160),SUBSTITUTE($W150,\"{\",CHAR(160),GQ$1)),FIND(CHAR(160),SUBSTITUTE($W150,\"}\",CHAR(160),GQ$1))-FIND(CHAR(160),SUBSTITUTE($W150,\"{\",CHAR(160),GQ$1))+1),\"\")","v":""},{"$f":"IFERROR(MID($W150,FIND(CHAR(160),SUBSTITUTE($W150,\"{\",CHAR(160),GR$1)),FIND(CHAR(160),SUBSTITUTE($W150,\"}\",CHAR(160),GR$1))-FIND(CHAR(160),SUBSTITUTE($W150,\"{\",CHAR(160),GR$1))+1),\"\")","v":""},{"$f":"IFERROR(MID($W150,FIND(CHAR(160),SUBSTITUTE($W150,\"{\",CHAR(160),GS$1)),FIND(CHAR(160),SUBSTITUTE($W150,\"}\",CHAR(160),GS$1))-FIND(CHAR(160),SUBSTITUTE($W150,\"{\",CHAR(160),GS$1))+1),\"\")","v":""},{"$f":"IFERROR(MID($W150,FIND(CHAR(160),SUBSTITUTE($W150,\"{\",CHAR(160),GT$1)),FIND(CHAR(160),SUBSTITUTE($W150,\"}\",CHAR(160),GT$1))-FIND(CHAR(160),SUBSTITUTE($W150,\"{\",CHAR(160),GT$1))+1),\"\")","v":""},{"$f":"IFERROR(MID($W150,FIND(CHAR(160),SUBSTITUTE($W150,\"{\",CHAR(160),GU$1)),FIND(CHAR(160),SUBSTITUTE($W150,\"}\",CHAR(160),GU$1))-FIND(CHAR(160),SUBSTITUTE($W150,\"{\",CHAR(160),GU$1))+1),\"\")","v":""},{"$f":"IFERROR(MID($W150,FIND(CHAR(160),SUBSTITUTE($W150,\"{\",CHAR(160),GV$1)),FIND(CHAR(160),SUBSTITUTE($W150,\"}\",CHAR(160),GV$1))-FIND(CHAR(160),SUBSTITUTE($W150,\"{\",CHAR(160),GV$1))+1),\"\")","v":""},{"$f":"IFERROR(MID($W150,FIND(CHAR(160),SUBSTITUTE($W150,\"{\",CHAR(160),GW$1)),FIND(CHAR(160),SUBSTITUTE($W150,\"}\",CHAR(160),GW$1))-FIND(CHAR(160),SUBSTITUTE($W150,\"{\",CHAR(160),GW$1))+1),\"\")","v":""},{"$f":"IFERROR(MID($W150,FIND(CHAR(160),SUBSTITUTE($W150,\"{\",CHAR(160),GX$1)),FIND(CHAR(160),SUBSTITUTE($W150,\"}\",CHAR(160),GX$1))-FIND(CHAR(160),SUBSTITUTE($W150,\"{\",CHAR(160),GX$1))+1),\"\")","v":""},{"$f":"IFERROR(MID($W150,FIND(CHAR(160),SUBSTITUTE($W150,\"{\",CHAR(160),GY$1)),FIND(CHAR(160),SUBSTITUTE($W150,\"}\",CHAR(160),GY$1))-FIND(CHAR(160),SUBSTITUTE($W150,\"{\",CHAR(160),GY$1))+1),\"\")","v":""},{"$f":"IFERROR(MID($W150,FIND(CHAR(160),SUBSTITUTE($W150,\"{\",CHAR(160),GZ$1)),FIND(CHAR(160),SUBSTITUTE($W150,\"}\",CHAR(160),GZ$1))-FIND(CHAR(160),SUBSTITUTE($W150,\"{\",CHAR(160),GZ$1))+1),\"\")","v":""},{"$f":"IFERROR(MID($X150,FIND(CHAR(160),SUBSTITUTE($X150,\"{\",CHAR(160),HA$1)),FIND(CHAR(160),SUBSTITUTE($X150,\"}\",CHAR(160),HA$1))-FIND(CHAR(160),SUBSTITUTE($X150,\"{\",CHAR(160),HA$1))+1),\"\")","v":""},{"$f":"IFERROR(MID($X150,FIND(CHAR(160),SUBSTITUTE($X150,\"{\",CHAR(160),HB$1)),FIND(CHAR(160),SUBSTITUTE($X150,\"}\",CHAR(160),HB$1))-FIND(CHAR(160),SUBSTITUTE($X150,\"{\",CHAR(160),HB$1))+1),\"\")","v":""},{"$f":"IFERROR(MID($X150,FIND(CHAR(160),SUBSTITUTE($X150,\"{\",CHAR(160),HC$1)),FIND(CHAR(160),SUBSTITUTE($X150,\"}\",CHAR(160),HC$1))-FIND(CHAR(160),SUBSTITUTE($X150,\"{\",CHAR(160),HC$1))+1),\"\")","v":""},{"$f":"IFERROR(MID($X150,FIND(CHAR(160),SUBSTITUTE($X150,\"{\",CHAR(160),HD$1)),FIND(CHAR(160),SUBSTITUTE($X150,\"}\",CHAR(160),HD$1))-FIND(CHAR(160),SUBSTITUTE($X150,\"{\",CHAR(160),HD$1))+1),\"\")","v":""},{"$f":"IFERROR(MID($X150,FIND(CHAR(160),SUBSTITUTE($X150,\"{\",CHAR(160),HE$1)),FIND(CHAR(160),SUBSTITUTE($X150,\"}\",CHAR(160),HE$1))-FIND(CHAR(160),SUBSTITUTE($X150,\"{\",CHAR(160),HE$1))+1),\"\")","v":""},{"$f":"IFERROR(MID($X150,FIND(CHAR(160),SUBSTITUTE($X150,\"{\",CHAR(160),HF$1)),FIND(CHAR(160),SUBSTITUTE($X150,\"}\",CHAR(160),HF$1))-FIND(CHAR(160),SUBSTITUTE($X150,\"{\",CHAR(160),HF$1))+1),\"\")","v":""},{"$f":"IFERROR(MID($X150,FIND(CHAR(160),SUBSTITUTE($X150,\"{\",CHAR(160),HG$1)),FIND(CHAR(160),SUBSTITUTE($X150,\"}\",CHAR(160),HG$1))-FIND(CHAR(160),SUBSTITUTE($X150,\"{\",CHAR(160),HG$1))+1),\"\")","v":""},{"$f":"IFERROR(MID($X150,FIND(CHAR(160),SUBSTITUTE($X150,\"{\",CHAR(160),HH$1)),FIND(CHAR(160),SUBSTITUTE($X150,\"}\",CHAR(160),HH$1))-FIND(CHAR(160),SUBSTITUTE($X150,\"{\",CHAR(160),HH$1))+1),\"\")","v":""},{"$f":"IFERROR(MID($X150,FIND(CHAR(160),SUBSTITUTE($X150,\"{\",CHAR(160),HI$1)),FIND(CHAR(160),SUBSTITUTE($X150,\"}\",CHAR(160),HI$1))-FIND(CHAR(160),SUBSTITUTE($X150,\"{\",CHAR(160),HI$1))+1),\"\")","v":""},{"$f":"IFERROR(MID($X150,FIND(CHAR(160),SUBSTITUTE($X150,\"{\",CHAR(160),HJ$1)),FIND(CHAR(160),SUBSTITUTE($X150,\"}\",CHAR(160),HJ$1))-FIND(CHAR(160),SUBSTITUTE($X150,\"{\",CHAR(160),HJ$1))+1),\"\")","v":""},{"$f":"IFERROR(MID($Y150,FIND(CHAR(160),SUBSTITUTE($Y150,\"{\",CHAR(160),HK$1)),FIND(CHAR(160),SUBSTITUTE($Y150,\"}\",CHAR(160),HK$1))-FIND(CHAR(160),SUBSTITUTE($Y150,\"{\",CHAR(160),HK$1))+1),\"\")","v":""},{"$f":"IFERROR(MID($Y150,FIND(CHAR(160),SUBSTITUTE($Y150,\"{\",CHAR(160),HL$1)),FIND(CHAR(160),SUBSTITUTE($Y150,\"}\",CHAR(160),HL$1))-FIND(CHAR(160),SUBSTITUTE($Y150,\"{\",CHAR(160),HL$1))+1),\"\")","v":""},{"$f":"IFERROR(MID($Y150,FIND(CHAR(160),SUBSTITUTE($Y150,\"{\",CHAR(160),HM$1)),FIND(CHAR(160),SUBSTITUTE($Y150,\"}\",CHAR(160),HM$1))-FIND(CHAR(160),SUBSTITUTE($Y150,\"{\",CHAR(160),HM$1))+1),\"\")","v":""},{"$f":"IFERROR(MID($Y150,FIND(CHAR(160),SUBSTITUTE($Y150,\"{\",CHAR(160),HN$1)),FIND(CHAR(160),SUBSTITUTE($Y150,\"}\",CHAR(160),HN$1))-FIND(CHAR(160),SUBSTITUTE($Y150,\"{\",CHAR(160),HN$1))+1),\"\")","v":""},{"$f":"IFERROR(MID($Y150,FIND(CHAR(160),SUBSTITUTE($Y150,\"{\",CHAR(160),HO$1)),FIND(CHAR(160),SUBSTITUTE($Y150,\"}\",CHAR(160),HO$1))-FIND(CHAR(160),SUBSTITUTE($Y150,\"{\",CHAR(160),HO$1))+1),\"\")","v":""},{"$f":"IFERROR(MID($Y150,FIND(CHAR(160),SUBSTITUTE($Y150,\"{\",CHAR(160),HP$1)),FIND(CHAR(160),SUBSTITUTE($Y150,\"}\",CHAR(160),HP$1))-FIND(CHAR(160),SUBSTITUTE($Y150,\"{\",CHAR(160),HP$1))+1),\"\")","v":""},{"$f":"IFERROR(MID($Y150,FIND(CHAR(160),SUBSTITUTE($Y150,\"{\",CHAR(160),HQ$1)),FIND(CHAR(160),SUBSTITUTE($Y150,\"}\",CHAR(160),HQ$1))-FIND(CHAR(160),SUBSTITUTE($Y150,\"{\",CHAR(160),HQ$1))+1),\"\")","v":""},{"$f":"IFERROR(MID($Y150,FIND(CHAR(160),SUBSTITUTE($Y150,\"{\",CHAR(160),HR$1)),FIND(CHAR(160),SUBSTITUTE($Y150,\"}\",CHAR(160),HR$1))-FIND(CHAR(160),SUBSTITUTE($Y150,\"{\",CHAR(160),HR$1))+1),\"\")","v":""},{"$f":"IFERROR(MID($Y150,FIND(CHAR(160),SUBSTITUTE($Y150,\"{\",CHAR(160),HS$1)),FIND(CHAR(160),SUBSTITUTE($Y150,\"}\",CHAR(160),HS$1))-FIND(CHAR(160),SUBSTITUTE($Y150,\"{\",CHAR(160),HS$1))+1),\"\")","v":""},{"$f":"IFERROR(MID($Y150,FIND(CHAR(160),SUBSTITUTE($Y150,\"{\",CHAR(160),HT$1)),FIND(CHAR(160),SUBSTITUTE($Y150,\"}\",CHAR(160),HT$1))-FIND(CHAR(160),SUBSTITUTE($Y150,\"{\",CHAR(160),HT$1))+1),\"\")","v":""},{"$f":"IFERROR(MID($Z150,FIND(CHAR(160),SUBSTITUTE($Z150,\"{\",CHAR(160),HU$1)),FIND(CHAR(160),SUBSTITUTE($Z150,\"}\",CHAR(160),HU$1))-FIND(CHAR(160),SUBSTITUTE($Z150,\"{\",CHAR(160),HU$1))+1),\"\")","v":""},{"$f":"IFERROR(MID($Z150,FIND(CHAR(160),SUBSTITUTE($Z150,\"{\",CHAR(160),HV$1)),FIND(CHAR(160),SUBSTITUTE($Z150,\"}\",CHAR(160),HV$1))-FIND(CHAR(160),SUBSTITUTE($Z150,\"{\",CHAR(160),HV$1))+1),\"\")","v":""},{"$f":"IFERROR(MID($Z150,FIND(CHAR(160),SUBSTITUTE($Z150,\"{\",CHAR(160),HW$1)),FIND(CHAR(160),SUBSTITUTE($Z150,\"}\",CHAR(160),HW$1))-FIND(CHAR(160),SUBSTITUTE($Z150,\"{\",CHAR(160),HW$1))+1),\"\")","v":""},{"$f":"IFERROR(MID($Z150,FIND(CHAR(160),SUBSTITUTE($Z150,\"{\",CHAR(160),HX$1)),FIND(CHAR(160),SUBSTITUTE($Z150,\"}\",CHAR(160),HX$1))-FIND(CHAR(160),SUBSTITUTE($Z150,\"{\",CHAR(160),HX$1))+1),\"\")","v":""},{"$f":"IFERROR(MID($Z150,FIND(CHAR(160),SUBSTITUTE($Z150,\"{\",CHAR(160),HY$1)),FIND(CHAR(160),SUBSTITUTE($Z150,\"}\",CHAR(160),HY$1))-FIND(CHAR(160),SUBSTITUTE($Z150,\"{\",CHAR(160),HY$1))+1),\"\")","v":""},{"$f":"IFERROR(MID($Z150,FIND(CHAR(160),SUBSTITUTE($Z150,\"{\",CHAR(160),HZ$1)),FIND(CHAR(160),SUBSTITUTE($Z150,\"}\",CHAR(160),HZ$1))-FIND(CHAR(160),SUBSTITUTE($Z150,\"{\",CHAR(160),HZ$1))+1),\"\")","v":""},{"$f":"IFERROR(MID($Z150,FIND(CHAR(160),SUBSTITUTE($Z150,\"{\",CHAR(160),IA$1)),FIND(CHAR(160),SUBSTITUTE($Z150,\"}\",CHAR(160),IA$1))-FIND(CHAR(160),SUBSTITUTE($Z150,\"{\",CHAR(160),IA$1))+1),\"\")","v":""},{"$f":"IFERROR(MID($Z150,FIND(CHAR(160),SUBSTITUTE($Z150,\"{\",CHAR(160),IB$1)),FIND(CHAR(160),SUBSTITUTE($Z150,\"}\",CHAR(160),IB$1))-FIND(CHAR(160),SUBSTITUTE($Z150,\"{\",CHAR(160),IB$1))+1),\"\")","v":""},{"$f":"IFERROR(MID($Z150,FIND(CHAR(160),SUBSTITUTE($Z150,\"{\",CHAR(160),IC$1)),FIND(CHAR(160),SUBSTITUTE($Z150,\"}\",CHAR(160),IC$1))-FIND(CHAR(160),SUBSTITUTE($Z150,\"{\",CHAR(160),IC$1))+1),\"\")","v":""},{"$f":"IFERROR(MID($Z150,FIND(CHAR(160),SUBSTITUTE($Z150,\"{\",CHAR(160),ID$1)),FIND(CHAR(160),SUBSTITUTE($Z150,\"}\",CHAR(160),ID$1))-FIND(CHAR(160),SUBSTITUTE($Z150,\"{\",CHAR(160),ID$1))+1),\"\")","v":""},{"$f":"IFERROR(MID($AA150,FIND(CHAR(160),SUBSTITUTE($AA150,\"{\",CHAR(160),IE$1)),FIND(CHAR(160),SUBSTITUTE($AA150,\"}\",CHAR(160),IE$1))-FIND(CHAR(160),SUBSTITUTE($AA150,\"{\",CHAR(160),IE$1))+1),\"\")","v":""},{"$f":"IFERROR(MID($AA150,FIND(CHAR(160),SUBSTITUTE($AA150,\"{\",CHAR(160),IF$1)),FIND(CHAR(160),SUBSTITUTE($AA150,\"}\",CHAR(160),IF$1))-FIND(CHAR(160),SUBSTITUTE($AA150,\"{\",CHAR(160),IF$1))+1),\"\")","v":""},{"$f":"IFERROR(MID($AA150,FIND(CHAR(160),SUBSTITUTE($AA150,\"{\",CHAR(160),IG$1)),FIND(CHAR(160),SUBSTITUTE($AA150,\"}\",CHAR(160),IG$1))-FIND(CHAR(160),SUBSTITUTE($AA150,\"{\",CHAR(160),IG$1))+1),\"\")","v":""},{"$f":"IFERROR(MID($AA150,FIND(CHAR(160),SUBSTITUTE($AA150,\"{\",CHAR(160),IH$1)),FIND(CHAR(160),SUBSTITUTE($AA150,\"}\",CHAR(160),IH$1))-FIND(CHAR(160),SUBSTITUTE($AA150,\"{\",CHAR(160),IH$1))+1),\"\")","v":""},{"$f":"IFERROR(MID($AA150,FIND(CHAR(160),SUBSTITUTE($AA150,\"{\",CHAR(160),II$1)),FIND(CHAR(160),SUBSTITUTE($AA150,\"}\",CHAR(160),II$1))-FIND(CHAR(160),SUBSTITUTE($AA150,\"{\",CHAR(160),II$1))+1),\"\")","v":""},{"$f":"IFERROR(MID($AA150,FIND(CHAR(160),SUBSTITUTE($AA150,\"{\",CHAR(160),IJ$1)),FIND(CHAR(160),SUBSTITUTE($AA150,\"}\",CHAR(160),IJ$1))-FIND(CHAR(160),SUBSTITUTE($AA150,\"{\",CHAR(160),IJ$1))+1),\"\")","v":""},{"$f":"IFERROR(MID($AA150,FIND(CHAR(160),SUBSTITUTE($AA150,\"{\",CHAR(160),IK$1)),FIND(CHAR(160),SUBSTITUTE($AA150,\"}\",CHAR(160),IK$1))-FIND(CHAR(160),SUBSTITUTE($AA150,\"{\",CHAR(160),IK$1))+1),\"\")","v":""},{"$f":"IFERROR(MID($AA150,FIND(CHAR(160),SUBSTITUTE($AA150,\"{\",CHAR(160),IL$1)),FIND(CHAR(160),SUBSTITUTE($AA150,\"}\",CHAR(160),IL$1))-FIND(CHAR(160),SUBSTITUTE($AA150,\"{\",CHAR(160),IL$1))+1),\"\")","v":""},{"$f":"IFERROR(MID($AA150,FIND(CHAR(160),SUBSTITUTE($AA150,\"{\",CHAR(160),IM$1)),FIND(CHAR(160),SUBSTITUTE($AA150,\"}\",CHAR(160),IM$1))-FIND(CHAR(160),SUBSTITUTE($AA150,\"{\",CHAR(160),IM$1))+1),\"\")","v":""},{"$f":"IFERROR(MID($AA150,FIND(CHAR(160),SUBSTITUTE($AA150,\"{\",CHAR(160),IN$1)),FIND(CHAR(160),SUBSTITUTE($AA150,\"}\",CHAR(160),IN$1))-FIND(CHAR(160),SUBSTITUTE($AA150,\"{\",CHAR(160),IN$1))+1),\"\")","v":""},{"$f":"IFERROR(MID($AB150,FIND(CHAR(160),SUBSTITUTE($AB150,\"{\",CHAR(160),IO$1)),FIND(CHAR(160),SUBSTITUTE($AB150,\"}\",CHAR(160),IO$1))-FIND(CHAR(160),SUBSTITUTE($AB150,\"{\",CHAR(160),IO$1))+1),\"\")","v":""},{"$f":"IFERROR(MID($AB150,FIND(CHAR(160),SUBSTITUTE($AB150,\"{\",CHAR(160),IP$1)),FIND(CHAR(160),SUBSTITUTE($AB150,\"}\",CHAR(160),IP$1))-FIND(CHAR(160),SUBSTITUTE($AB150,\"{\",CHAR(160),IP$1))+1),\"\")","v":""},{"$f":"IFERROR(MID($AB150,FIND(CHAR(160),SUBSTITUTE($AB150,\"{\",CHAR(160),IQ$1)),FIND(CHAR(160),SUBSTITUTE($AB150,\"}\",CHAR(160),IQ$1))-FIND(CHAR(160),SUBSTITUTE($AB150,\"{\",CHAR(160),IQ$1))+1),\"\")","v":""},{"$f":"IFERROR(MID($AB150,FIND(CHAR(160),SUBSTITUTE($AB150,\"{\",CHAR(160),IR$1)),FIND(CHAR(160),SUBSTITUTE($AB150,\"}\",CHAR(160),IR$1))-FIND(CHAR(160),SUBSTITUTE($AB150,\"{\",CHAR(160),IR$1))+1),\"\")","v":""},{"$f":"IFERROR(MID($AB150,FIND(CHAR(160),SUBSTITUTE($AB150,\"{\",CHAR(160),IS$1)),FIND(CHAR(160),SUBSTITUTE($AB150,\"}\",CHAR(160),IS$1))-FIND(CHAR(160),SUBSTITUTE($AB150,\"{\",CHAR(160),IS$1))+1),\"\")","v":""},{"$f":"IFERROR(MID($AB150,FIND(CHAR(160),SUBSTITUTE($AB150,\"{\",CHAR(160),IT$1)),FIND(CHAR(160),SUBSTITUTE($AB150,\"}\",CHAR(160),IT$1))-FIND(CHAR(160),SUBSTITUTE($AB150,\"{\",CHAR(160),IT$1))+1),\"\")","v":""},{"$f":"IFERROR(MID($AB150,FIND(CHAR(160),SUBSTITUTE($AB150,\"{\",CHAR(160),IU$1)),FIND(CHAR(160),SUBSTITUTE($AB150,\"}\",CHAR(160),IU$1))-FIND(CHAR(160),SUBSTITUTE($AB150,\"{\",CHAR(160),IU$1))+1),\"\")","v":""},{"$f":"IFERROR(MID($AB150,FIND(CHAR(160),SUBSTITUTE($AB150,\"{\",CHAR(160),IV$1)),FIND(CHAR(160),SUBSTITUTE($AB150,\"}\",CHAR(160),IV$1))-FIND(CHAR(160),SUBSTITUTE($AB150,\"{\",CHAR(160),IV$1))+1),\"\")","v":""},{"$f":"IFERROR(MID($AB150,FIND(CHAR(160),SUBSTITUTE($AB150,\"{\",CHAR(160),IW$1)),FIND(CHAR(160),SUBSTITUTE($AB150,\"}\",CHAR(160),IW$1))-FIND(CHAR(160),SUBSTITUTE($AB150,\"{\",CHAR(160),IW$1))+1),\"\")","v":""},{"$f":"IFERROR(MID($AB150,FIND(CHAR(160),SUBSTITUTE($AB150,\"{\",CHAR(160),IX$1)),FIND(CHAR(160),SUBSTITUTE($AB150,\"}\",CHAR(160),IX$1))-FIND(CHAR(160),SUBSTITUTE($AB150,\"{\",CHAR(160),IX$1))+1),\"\")","v":""},null,{"$f":"10-COUNTIF(DU150:ED150,\"\")","v":3}]
["C&I Refrigeration Solutions","R72 New Scroll Compressors - 4 HP","R72","2021-07-01","2022-06-30","Per Measure",600,0,"Per Measure",440,0,"2020-11-01","2022-06-30","Calculated","{Measure:Quantity} * 4 * {Type}",1E-4,null,"{Measure:Quantity} * 4 * {Type} / 5858",null,null,"{Measure:Quantity} * 4 * {Type} / 5858 * {Factor:WinterCF}","{Measure:Quantity} * 4 * {Type} / 5858 *{Factor:SummerCF}",null,null,null,null,null,null,"2020-11-01","2022-06-30",15,0.50900000000000001,0.74,0.33,0.32600000000000001,0.17,0.17399999999999999,1,1.1220000000000001,1,0.52,1.6E-2,null,{"$f":"DU151","v":"{Measure:Quantity}"},1,{"$f":"DV151","v":"{Type}"},363,{"$f":"DW151","v":""},50,{"$f":"DX151","v":""},null,{"$f":"DY151","v":""},null,{"$f":"DZ151","v":""},null,{"$f":"EA151","v":""},null,{"$f":"EB151","v":""},null,{"$f":"EC151","v":""},null,{"$f":"ED151","v":""},null,{"$f":"AS151 * 4 * AU151","v":1452},{"$f":"0.0001","v":1E-4},0,{"$f":"AS151 * 4 * AU151 / 5858","v":0.24786616592693753},0,0,{"$f":"AS151 * 4 * AU151 / 5858 * AF151","v":0.12616387845681121},{"$f":"AS151 * 4 * AU151 / 5858 *AG151","v":0.18342096278593376},0,0,0,0,0,0,null,"Res","Default DR",{"$f":"Benefits(BL151,BR151,BS151,BT151,BU151,BV151,BW151,BX151,BY151,BZ151,AE151,AH151,AI151,AJ151,AK151,AL151,AM151,AN151,AO151,AP151,CA151,CB151)","v":2171.880840361011},820.43545676980568,0,0,0,0,0,0,0,{"$f":"SUMPRODUCT(CC151:CK151,--(CC151:CK151>0))","v":2992.3162971308166},{"$f":"-SUMPRODUCT(CC151:CK151,--(CC151:CK151<0))","v":0},null,{"$f":"600","v":600},null,null,{"$f":"CM151+CO151","v":600},{"$f":"IF(NetOrGross=\"Net\",(1-AO151+AP151),1)","v":1},{"$f":"(SUMPRODUCT(CC151:CJ151,--(CC151:CJ151>0))+CN151)*CS151/((-SUMPRODUCT(CC151:CJ151,--(CC151:CJ151<0))+MAX(CO151,CV151)+CP151+CQ151)*CS151+IF(FRIncentives=\"Yes\",CV151*(1-CS151),0))","v":4.9871938285513613},1,{"$f":"440","v":440},null,"Electric","y",null,{"$f":"IF(F151=\"Manual Entry\",\"Manual\",IF(G151=\"\",0,\"X=\"&SUBSTITUTE(SUBSTITUTE(SUBSTITUTE(SUBSTITUTE(SUBSTITUTE(SUBSTITUTE(SUBSTITUTE(SUBSTITUTE(SUBSTITUTE(SUBSTITUTE(SUBSTITUTE(SUBSTITUTE(G151,$ED151,$ED$2&ROW($ED151)),$EC151,$EC$2&ROW($EC151)),$EB151,$EB$2&ROW($EB151)),$EA151,$EA$2&ROW($EA151)),$DZ151,$DZ$2&ROW($DZ151)),$DY151,$DY$2&ROW($DY151)),$DX151,$DX$2&ROW($DX151)),$DW151,$DW$2&ROW($DW151)),$DV151,$DV$2&ROW($DV151)),$DU151,$DU$2&ROW($DU151)),$DT151,$DT$2&ROW($DT151)),$DS151,$DS$2&ROW($DS151))))","v":"X=600"},{"$f":"IF(I151=\"Manual Entry\",\"Manual\",IF(J151=\"\",0,\"X=\"&SUBSTITUTE(SUBSTITUTE(SUBSTITUTE(SUBSTITUTE(SUBSTITUTE(SUBSTITUTE(SUBSTITUTE(SUBSTITUTE(SUBSTITUTE(SUBSTITUTE(SUBSTITUTE(SUBSTITUTE(J151,$ED151,$ED$2&ROW($ED151)),$EC151,$EC$2&ROW($EC151)),$EB151,$EB$2&ROW($EB151)),$EA151,$EA$2&ROW($EA151)),$DZ151,$DZ$2&ROW($DZ151)),$DY151,$DY$2&ROW($DY151)),$DX151,$DX$2&ROW($DX151)),$DW151,$DW$2&ROW($DW151)),$DV151,$DV$2&ROW($DV151)),$DU151,$DU$2&ROW($DU151)),$DT151,$DT$2&ROW($DT151)),$DS151,$DS$2&ROW($DS151))))","v":"X=440"},{"$f":"IF(O151=\"\",0,\"X=\"&SUBSTITUTE(SUBSTITUTE(SUBSTITUTE(SUBSTITUTE(SUBSTITUTE(SUBSTITUTE(SUBSTITUTE(SUBSTITUTE(SUBSTITUTE(SUBSTITUTE(SUBSTITUTE(SUBSTITUTE(O151,$ED151,$ED$2&ROW($ED151)),$EC151,$EC$2&ROW($EC151)),$EB151,$EB$2&ROW($EB151)),$EA151,$EA$2&ROW($EA151)),$DZ151,$DZ$2&ROW($DZ151)),$DY151,$DY$2&ROW($DY151)),$DX151,$DX$2&ROW($DX151)),$DW151,$DW$2&ROW($DW151)),$DV151,$DV$2&ROW($DV151)),$DU151,$DU$2&ROW($DU151)),$DT151,$DT$2&ROW($DT151)),$DS151,$DS$2&ROW($DS151)))","v":"X=AS151 * 4 * AU151"},{"$f":"IF(P151=\"\",0,\"X=\"&SUBSTITUTE(SUBSTITUTE(SUBSTITUTE(SUBSTITUTE(SUBSTITUTE(SUBSTITUTE(SUBSTITUTE(SUBSTITUTE(SUBSTITUTE(SUBSTITUTE(SUBSTITUTE(SUBSTITUTE(P151,$ED151,$ED$2&ROW($ED151)),$EC151,$EC$2&ROW($EC151)),$EB151,$EB$2&ROW($EB151)),$EA151,$EA$2&ROW($EA151)),$DZ151,$DZ$2&ROW($DZ151)),$DY151,$DY$2&ROW($DY151)),$DX151,$DX$2&ROW($DX151)),$DW151,$DW$2&ROW($DW151)),$DV151,$DV$2&ROW($DV151)),$DU151,$DU$2&ROW($DU151)),$DT151,$DT$2&ROW($DT151)),$DS151,$DS$2&ROW($DS151)))","v":"X=0.0001"},{"$f":"IF(Q151=\"\",0,\"X=\"&SUBSTITUTE(SUBSTITUTE(SUBSTITUTE(SUBSTITUTE(SUBSTITUTE(SUBSTITUTE(SUBSTITUTE(SUBSTITUTE(SUBSTITUTE(SUBSTITUTE(SUBSTITUTE(SUBSTITUTE(Q151,$ED151,$ED$2&ROW($ED151)),$EC151,$EC$2&ROW($EC151)),$EB151,$EB$2&ROW($EB151)),$EA151,$EA$2&ROW($EA151)),$DZ151,$DZ$2&ROW($DZ151)),$DY151,$DY$2&ROW($DY151)),$DX151,$DX$2&ROW($DX151)),$DW151,$DW$2&ROW($DW151)),$DV151,$DV$2&ROW($DV151)),$DU151,$DU$2&ROW($DU151)),$DT151,$DT$2&ROW($DT151)),$DS151,$DS$2&ROW($DS151)))","v":0},{"$f":"IF(R151=\"\",0,\"X=\"&SUBSTITUTE(SUBSTITUTE(SUBSTITUTE(SUBSTITUTE(SUBSTITUTE(SUBSTITUTE(SUBSTITUTE(SUBSTITUTE(SUBSTITUTE(SUBSTITUTE(SUBSTITUTE(SUBSTITUTE(R151,$ED151,$ED$2&ROW($ED151)),$EC151,$EC$2&ROW($EC151)),$EB151,$EB$2&ROW($EB151)),$EA151,$EA$2&ROW($EA151)),$DZ151,$DZ$2&ROW($DZ151)),$DY151,$DY$2&ROW($DY151)),$DX151,$DX$2&ROW($DX151)),$DW151,$DW$2&ROW($DW151)),$DV151,$DV$2&ROW($DV151)),$DU151,$DU$2&ROW($DU151)),$DT151,$DT$2&ROW($DT151)),$DS151,$DS$2&ROW($DS151)))","v":"X=AS151 * 4 * AU151 / 5858"},{"$f":"IF(S151=\"\",0,\"X=\"&SUBSTITUTE(SUBSTITUTE(SUBSTITUTE(SUBSTITUTE(SUBSTITUTE(SUBSTITUTE(SUBSTITUTE(SUBSTITUTE(SUBSTITUTE(SUBSTITUTE(SUBSTITUTE(SUBSTITUTE(S151,$ED151,$ED$2&ROW($ED151)),$EC151,$EC$2&ROW($EC151)),$EB151,$EB$2&ROW($EB151)),$EA151,$EA$2&ROW($EA151)),$DZ151,$DZ$2&ROW($DZ151)),$DY151,$DY$2&ROW($DY151)),$DX151,$DX$2&ROW($DX151)),$DW151,$DW$2&ROW($DW151)),$DV151,$DV$2&ROW($DV151)),$DU151,$DU$2&ROW($DU151)),$DT151,$DT$2&ROW($DT151)),$DS151,$DS$2&ROW($DS151)))","v":0},{"$f":"IF(T151=\"\",0,\"X=\"&SUBSTITUTE(SUBSTITUTE(SUBSTITUTE(SUBSTITUTE(SUBSTITUTE(SUBSTITUTE(SUBSTITUTE(SUBSTITUTE(SUBSTITUTE(SUBSTITUTE(SUBSTITUTE(SUBSTITUTE(T151,$ED151,$ED$2&ROW($ED151)),$EC151,$EC$2&ROW($EC151)),$EB151,$EB$2&ROW($EB151)),$EA151,$EA$2&ROW($EA151)),$DZ151,$DZ$2&ROW($DZ151)),$DY151,$DY$2&ROW($DY151)),$DX151,$DX$2&ROW($DX151)),$DW151,$DW$2&ROW($DW151)),$DV151,$DV$2&ROW($DV151)),$DU151,$DU$2&ROW($DU151)),$DT151,$DT$2&ROW($DT151)),$DS151,$DS$2&ROW($DS151)))","v":0},{"$f":"IF(U151=\"\",0,\"X=\"&SUBSTITUTE(SUBSTITUTE(SUBSTITUTE(SUBSTITUTE(SUBSTITUTE(SUBSTITUTE(SUBSTITUTE(SUBSTITUTE(SUBSTITUTE(SUBSTITUTE(SUBSTITUTE(SUBSTITUTE(U151,$ED151,$ED$2&ROW($ED151)),$EC151,$EC$2&ROW($EC151)),$EB151,$EB$2&ROW($EB151)),$EA151,$EA$2&ROW($EA151)),$DZ151,$DZ$2&ROW($DZ151)),$DY151,$DY$2&ROW($DY151)),$DX151,$DX$2&ROW($DX151)),$DW151,$DW$2&ROW($DW151)),$DV151,$DV$2&ROW($DV151)),$DU151,$DU$2&ROW($DU151)),$DT151,$DT$2&ROW($DT151)),$DS151,$DS$2&ROW($DS151)))","v":"X=AS151 * 4 * AU151 / 5858 * AF151"},{"$f":"IF(V151=\"\",0,\"X=\"&SUBSTITUTE(SUBSTITUTE(SUBSTITUTE(SUBSTITUTE(SUBSTITUTE(SUBSTITUTE(SUBSTITUTE(SUBSTITUTE(SUBSTITUTE(SUBSTITUTE(SUBSTITUTE(SUBSTITUTE(V151,$ED151,$ED$2&ROW($ED151)),$EC151,$EC$2&ROW($EC151)),$EB151,$EB$2&ROW($EB151)),$EA151,$EA$2&ROW($EA151)),$DZ151,$DZ$2&ROW($DZ151)),$DY151,$DY$2&ROW($DY151)),$DX151,$DX$2&ROW($DX151)),$DW151,$DW$2&ROW($DW151)),$DV151,$DV$2&ROW($DV151)),$DU151,$DU$2&ROW($DU151)),$DT151,$DT$2&ROW($DT151)),$DS151,$DS$2&ROW($DS151)))","v":"X=AS151 * 4 * AU151 / 5858 *AG151"},{"$f":"IF(W151=\"\",0,\"X=\"&SUBSTITUTE(SUBSTITUTE(SUBSTITUTE(SUBSTITUTE(SUBSTITUTE(SUBSTITUTE(SUBSTITUTE(SUBSTITUTE(SUBSTITUTE(SUBSTITUTE(SUBSTITUTE(SUBSTITUTE(W151,$ED151,$ED$2&ROW($ED151)),$EC151,$EC$2&ROW($EC151)),$EB151,$EB$2&ROW($EB151)),$EA151,$EA$2&ROW($EA151)),$DZ151,$DZ$2&ROW($DZ151)),$DY151,$DY$2&ROW($DY151)),$DX151,$DX$2&ROW($DX151)),$DW151,$DW$2&ROW($DW151)),$DV151,$DV$2&ROW($DV151)),$DU151,$DU$2&ROW($DU151)),$DT151,$DT$2&ROW($DT151)),$DS151,$DS$2&ROW($DS151)))","v":0},{"$f":"IF(X151=\"\",0,\"X=\"&SUBSTITUTE(SUBSTITUTE(SUBSTITUTE(SUBSTITUTE(SUBSTITUTE(SUBSTITUTE(SUBSTITUTE(SUBSTITUTE(SUBSTITUTE(SUBSTITUTE(SUBSTITUTE(SUBSTITUTE(X151,$ED151,$ED$2&ROW($ED151)),$EC151,$EC$2&ROW($EC151)),$EB151,$EB$2&ROW($EB151)),$EA151,$EA$2&ROW($EA151)),$DZ151,$DZ$2&ROW($DZ151)),$DY151,$DY$2&ROW($DY151)),$DX151,$DX$2&ROW($DX151)),$DW151,$DW$2&ROW($DW151)),$DV151,$DV$2&ROW($DV151)),$DU151,$DU$2&ROW($DU151)),$DT151,$DT$2&ROW($DT151)),$DS151,$DS$2&ROW($DS151)))","v":0},{"$f":"IF(Y151=\"\",0,\"X=\"&SUBSTITUTE(SUBSTITUTE(SUBSTITUTE(SUBSTITUTE(SUBSTITUTE(SUBSTITUTE(SUBSTITUTE(SUBSTITUTE(SUBSTITUTE(SUBSTITUTE(SUBSTITUTE(SUBSTITUTE(Y151,$ED151,$ED$2&ROW($ED151)),$EC151,$EC$2&ROW($EC151)),$EB151,$EB$2&ROW($EB151)),$EA151,$EA$2&ROW($EA151)),$DZ151,$DZ$2&ROW($DZ151)),$DY151,$DY$2&ROW($DY151)),$DX151,$DX$2&ROW($DX151)),$DW151,$DW$2&ROW($DW151)),$DV151,$DV$2&ROW($DV151)),$DU151,$DU$2&ROW($DU151)),$DT151,$DT$2&ROW($DT151)),$DS151,$DS$2&ROW($DS151)))","v":0},{"$f":"IF(Z151=\"\",0,\"X=\"&SUBSTITUTE(SUBSTITUTE(SUBSTITUTE(SUBSTITUTE(SUBSTITUTE(SUBSTITUTE(SUBSTITUTE(SUBSTITUTE(SUBSTITUTE(SUBSTITUTE(SUBSTITUTE(SUBSTITUTE(Z151,$ED151,$ED$2&ROW($ED151)),$EC151,$EC$2&ROW($EC151)),$EB151,$EB$2&ROW($EB151)),$EA151,$EA$2&ROW($EA151)),$DZ151,$DZ$2&ROW($DZ151)),$DY151,$DY$2&ROW($DY151)),$DX151,$DX$2&ROW($DX151)),$DW151,$DW$2&ROW($DW151)),$DV151,$DV$2&ROW($DV151)),$DU151,$DU$2&ROW($DU151)),$DT151,$DT$2&ROW($DT151)),$DS151,$DS$2&ROW($DS151)))","v":0},{"$f":"IF(AA151=\"\",0,\"X=\"&SUBSTITUTE(SUBSTITUTE(SUBSTITUTE(SUBSTITUTE(SUBSTITUTE(SUBSTITUTE(SUBSTITUTE(SUBSTITUTE(SUBSTITUTE(SUBSTITUTE(SUBSTITUTE(SUBSTITUTE(AA151,$ED151,$ED$2&ROW($ED151)),$EC151,$EC$2&ROW($EC151)),$EB151,$EB$2&ROW($EB151)),$EA151,$EA$2&ROW($EA151)),$DZ151,$DZ$2&ROW($DZ151)),$DY151,$DY$2&ROW($DY151)),$DX151,$DX$2&ROW($DX151)),$DW151,$DW$2&ROW($DW151)),$DV151,$DV$2&ROW($DV151)),$DU151,$DU$2&ROW($DU151)),$DT151,$DT$2&ROW($DT151)),$DS151,$DS$2&ROW($DS151)))","v":0},{"$f":"IF(AB151=\"\",0,\"X=\"&SUBSTITUTE(SUBSTITUTE(SUBSTITUTE(SUBSTITUTE(SUBSTITUTE(SUBSTITUTE(SUBSTITUTE(SUBSTITUTE(SUBSTITUTE(SUBSTITUTE(SUBSTITUTE(SUBSTITUTE(AB151,$ED151,$ED$2&ROW($ED151)),$EC151,$EC$2&ROW($EC151)),$EB151,$EB$2&ROW($EB151)),$EA151,$EA$2&ROW($EA151)),$DZ151,$DZ$2&ROW($DZ151)),$DY151,$DY$2&ROW($DY151)),$DX151,$DX$2&ROW($DX151)),$DW151,$DW$2&ROW($DW151)),$DV151,$DV$2&ROW($DV151)),$DU151,$DU$2&ROW($DU151)),$DT151,$DT$2&ROW($DT151)),$DS151,$DS$2&ROW($DS151)))","v":0},null,null,"{Factor:WinterCF}","{Factor:SummerCF}",{"$f":"IFERROR(INDEX($EG151:$IV151,MATCH(0,COUNTIF($DR151:DT151,$EG151:$IV151),0)),\"\")","v":"{Measure:Quantity}"},{"$f":"IFERROR(INDEX($EG151:$IV151,MATCH(0,COUNTIF($DR151:DU151,$EG151:$IV151),0)),\"\")","v":"{Type}"},{"$f":"IFERROR(INDEX($EG151:$IV151,MATCH(0,COUNTIF($DR151:DV151,$EG151:$IV151),0)),\"\")","v":""},{"$f":"IFERROR(INDEX($EG151:$IV151,MATCH(0,COUNTIF($DR151:DW151,$EG151:$IV151),0)),\"\")","v":""},{"$f":"IFERROR(INDEX($EG151:$IV151,MATCH(0,COUNTIF($DR151:DX151,$EG151:$IV151),0)),\"\")","v":""},{"$f":"IFERROR(INDEX($EG151:$IV151,MATCH(0,COUNTIF($DR151:DY151,$EG151:$IV151),0)),\"\")","v":""},{"$f":"IFERROR(INDEX($EG151:$IV151,MATCH(0,COUNTIF($DR151:DZ151,$EG151:$IV151),0)),\"\")","v":""},{"$f":"IFERROR(INDEX($EG151:$IV151,MATCH(0,COUNTIF($DR151:EA151,$EG151:$IV151),0)),\"\")","v":""},{"$f":"IFERROR(INDEX($EG151:$IV151,MATCH(0,COUNTIF($DR151:EB151,$EG151:$IV151),0)),\"\")","v":""},{"$f":"IFERROR(INDEX($EG151:$IV151,MATCH(0,COUNTIF($DR151:EC151,$EG151:$IV151),0)),\"\")","v":""},null,null,{"$f":"IFERROR(MID($G151,FIND(CHAR(160),SUBSTITUTE($G151,\"{\",CHAR(160),EG$1)),FIND(CHAR(160),SUBSTITUTE($G151,\"}\",CHAR(160),EG$1))-FIND(CHAR(160),SUBSTITUTE($G151,\"{\",CHAR(160),EG$1))+1),\"\")","v":""},{"$f":"IFERROR(MID($G151,FIND(CHAR(160),SUBSTITUTE($G151,\"{\",CHAR(160),EH$1)),FIND(CHAR(160),SUBSTITUTE($G151,\"}\",CHAR(160),EH$1))-FIND(CHAR(160),SUBSTITUTE($G151,\"{\",CHAR(160),EH$1))+1),\"\")","v":""},{"$f":"IFERROR(MID($G151,FIND(CHAR(160),SUBSTITUTE($G151,\"{\",CHAR(160),EI$1)),FIND(CHAR(160),SUBSTITUTE($G151,\"}\",CHAR(160),EI$1))-FIND(CHAR(160),SUBSTITUTE($G151,\"{\",CHAR(160),EI$1))+1),\"\")","v":""},{"$f":"IFERROR(MID($G151,FIND(CHAR(160),SUBSTITUTE($G151,\"{\",CHAR(160),EJ$1)),FIND(CHAR(160),SUBSTITUTE($G151,\"}\",CHAR(160),EJ$1))-FIND(CHAR(160),SUBSTITUTE($G151,\"{\",CHAR(160),EJ$1))+1),\"\")","v":""},{"$f":"IFERROR(MID($G151,FIND(CHAR(160),SUBSTITUTE($G151,\"{\",CHAR(160),EK$1)),FIND(CHAR(160),SUBSTITUTE($G151,\"}\",CHAR(160),EK$1))-FIND(CHAR(160),SUBSTITUTE($G151,\"{\",CHAR(160),EK$1))+1),\"\")","v":""},{"$f":"IFERROR(MID($G151,FIND(CHAR(160),SUBSTITUTE($G151,\"{\",CHAR(160),EL$1)),FIND(CHAR(160),SUBSTITUTE($G151,\"}\",CHAR(160),EL$1))-FIND(CHAR(160),SUBSTITUTE($G151,\"{\",CHAR(160),EL$1))+1),\"\")","v":""},{"$f":"IFERROR(MID($G151,FIND(CHAR(160),SUBSTITUTE($G151,\"{\",CHAR(160),EM$1)),FIND(CHAR(160),SUBSTITUTE($G151,\"}\",CHAR(160),EM$1))-FIND(CHAR(160),SUBSTITUTE($G151,\"{\",CHAR(160),EM$1))+1),\"\")","v":""},{"$f":"IFERROR(MID($G151,FIND(CHAR(160),SUBSTITUTE($G151,\"{\",CHAR(160),EN$1)),FIND(CHAR(160),SUBSTITUTE($G151,\"}\",CHAR(160),EN$1))-FIND(CHAR(160),SUBSTITUTE($G151,\"{\",CHAR(160),EN$1))+1),\"\")","v":""},{"$f":"IFERROR(MID($G151,FIND(CHAR(160),SUBSTITUTE($G151,\"{\",CHAR(160),EO$1)),FIND(CHAR(160),SUBSTITUTE($G151,\"}\",CHAR(160),EO$1))-FIND(CHAR(160),SUBSTITUTE($G151,\"{\",CHAR(160),EO$1))+1),\"\")","v":""},{"$f":"IFERROR(MID($G151,FIND(CHAR(160),SUBSTITUTE($G151,\"{\",CHAR(160),EP$1)),FIND(CHAR(160),SUBSTITUTE($G151,\"}\",CHAR(160),EP$1))-FIND(CHAR(160),SUBSTITUTE($G151,\"{\",CHAR(160),EP$1))+1),\"\")","v":""},{"$f":"IFERROR(MID($J151,FIND(CHAR(160),SUBSTITUTE($J151,\"{\",CHAR(160),EQ$1)),FIND(CHAR(160),SUBSTITUTE($J151,\"}\",CHAR(160),EQ$1))-FIND(CHAR(160),SUBSTITUTE($J151,\"{\",CHAR(160),EQ$1))+1),\"\")","v":""},{"$f":"IFERROR(MID($J151,FIND(CHAR(160),SUBSTITUTE($J151,\"{\",CHAR(160),ER$1)),FIND(CHAR(160),SUBSTITUTE($J151,\"}\",CHAR(160),ER$1))-FIND(CHAR(160),SUBSTITUTE($J151,\"{\",CHAR(160),ER$1))+1),\"\")","v":""},{"$f":"IFERROR(MID($J151,FIND(CHAR(160),SUBSTITUTE($J151,\"{\",CHAR(160),ES$1)),FIND(CHAR(160),SUBSTITUTE($J151,\"}\",CHAR(160),ES$1))-FIND(CHAR(160),SUBSTITUTE($J151,\"{\",CHAR(160),ES$1))+1),\"\")","v":""},{"$f":"IFERROR(MID($J151,FIND(CHAR(160),SUBSTITUTE($J151,\"{\",CHAR(160),ET$1)),FIND(CHAR(160),SUBSTITUTE($J151,\"}\",CHAR(160),ET$1))-FIND(CHAR(160),SUBSTITUTE($J151,\"{\",CHAR(160),ET$1))+1),\"\")","v":""},{"$f":"IFERROR(MID($J151,FIND(CHAR(160),SUBSTITUTE($J151,\"{\",CHAR(160),EU$1)),FIND(CHAR(160),SUBSTITUTE($J151,\"}\",CHAR(160),EU$1))-FIND(CHAR(160),SUBSTITUTE($J151,\"{\",CHAR(160),EU$1))+1),\"\")","v":""},{"$f":"IFERROR(MID($J151,FIND(CHAR(160),SUBSTITUTE($J151,\"{\",CHAR(160),EV$1)),FIND(CHAR(160),SUBSTITUTE($J151,\"}\",CHAR(160),EV$1))-FIND(CHAR(160),SUBSTITUTE($J151,\"{\",CHAR(160),EV$1))+1),\"\")","v":""},{"$f":"IFERROR(MID($J151,FIND(CHAR(160),SUBSTITUTE($J151,\"{\",CHAR(160),EW$1)),FIND(CHAR(160),SUBSTITUTE($J151,\"}\",CHAR(160),EW$1))-FIND(CHAR(160),SUBSTITUTE($J151,\"{\",CHAR(160),EW$1))+1),\"\")","v":""},{"$f":"IFERROR(MID($J151,FIND(CHAR(160),SUBSTITUTE($J151,\"{\",CHAR(160),EX$1)),FIND(CHAR(160),SUBSTITUTE($J151,\"}\",CHAR(160),EX$1))-FIND(CHAR(160),SUBSTITUTE($J151,\"{\",CHAR(160),EX$1))+1),\"\")","v":""},{"$f":"IFERROR(MID($J151,FIND(CHAR(160),SUBSTITUTE($J151,\"{\",CHAR(160),EY$1)),FIND(CHAR(160),SUBSTITUTE($J151,\"}\",CHAR(160),EY$1))-FIND(CHAR(160),SUBSTITUTE($J151,\"{\",CHAR(160),EY$1))+1),\"\")","v":""},{"$f":"IFERROR(MID($J151,FIND(CHAR(160),SUBSTITUTE($J151,\"{\",CHAR(160),EZ$1)),FIND(CHAR(160),SUBSTITUTE($J151,\"}\",CHAR(160),EZ$1))-FIND(CHAR(160),SUBSTITUTE($J151,\"{\",CHAR(160),EZ$1))+1),\"\")","v":""},{"$f":"IFERROR(MID($J151,FIND(CHAR(160),SUBSTITUTE($J151,\"{\",CHAR(160),FA$1)),FIND(CHAR(160),SUBSTITUTE($J151,\"}\",CHAR(160),FA$1))-FIND(CHAR(160),SUBSTITUTE($J151,\"{\",CHAR(160),FA$1))+1),\"\")","v":""},{"$f":"IFERROR(MID($J151,FIND(CHAR(160),SUBSTITUTE($J151,\"{\",CHAR(160),FB$1)),FIND(CHAR(160),SUBSTITUTE($J151,\"}\",CHAR(160),FB$1))-FIND(CHAR(160),SUBSTITUTE($J151,\"{\",CHAR(160),FB$1))+1),\"\")","v":""},{"$f":"IFERROR(MID($O151,FIND(CHAR(160),SUBSTITUTE($O151,\"{\",CHAR(160),FC$1)),FIND(CHAR(160),SUBSTITUTE($O151,\"}\",CHAR(160),FC$1))-FIND(CHAR(160),SUBSTITUTE($O151,\"{\",CHAR(160),FC$1))+1),\"\")","v":""},{"$f":"IFERROR(MID($O151,FIND(CHAR(160),SUBSTITUTE($O151,\"{\",CHAR(160),FD$1)),FIND(CHAR(160),SUBSTITUTE($O151,\"}\",CHAR(160),FD$1))-FIND(CHAR(160),SUBSTITUTE($O151,\"{\",CHAR(160),FD$1))+1),\"\")","v":""},{"$f":"IFERROR(MID($O151,FIND(CHAR(160),SUBSTITUTE($O151,\"{\",CHAR(160),FE$1)),FIND(CHAR(160),SUBSTITUTE($O151,\"}\",CHAR(160),FE$1))-FIND(CHAR(160),SUBSTITUTE($O151,\"{\",CHAR(160),FE$1))+1),\"\")","v":""},{"$f":"IFERROR(MID($O151,FIND(CHAR(160),SUBSTITUTE($O151,\"{\",CHAR(160),FF$1)),FIND(CHAR(160),SUBSTITUTE($O151,\"}\",CHAR(160),FF$1))-FIND(CHAR(160),SUBSTITUTE($O151,\"{\",CHAR(160),FF$1))+1),\"\")","v":""},{"$f":"IFERROR(MID($O151,FIND(CHAR(160),SUBSTITUTE($O151,\"{\",CHAR(160),FG$1)),FIND(CHAR(160),SUBSTITUTE($O151,\"}\",CHAR(160),FG$1))-FIND(CHAR(160),SUBSTITUTE($O151,\"{\",CHAR(160),FG$1))+1),\"\")","v":""},{"$f":"IFERROR(MID($O151,FIND(CHAR(160),SUBSTITUTE($O151,\"{\",CHAR(160),FH$1)),FIND(CHAR(160),SUBSTITUTE($O151,\"}\",CHAR(160),FH$1))-FIND(CHAR(160),SUBSTITUTE($O151,\"{\",CHAR(160),FH$1))+1),\"\")","v":""},{"$f":"IFERROR(MID($O151,FIND(CHAR(160),SUBSTITUTE($O151,\"{\",CHAR(160),FI$1)),FIND(CHAR(160),SUBSTITUTE($O151,\"}\",CHAR(160),FI$1))-FIND(CHAR(160),SUBSTITUTE($O151,\"{\",CHAR(160),FI$1))+1),\"\")","v":""},{"$f":"IFERROR(MID($O151,FIND(CHAR(160),SUBSTITUTE($O151,\"{\",CHAR(160),FJ$1)),FIND(CHAR(160),SUBSTITUTE($O151,\"}\",CHAR(160),FJ$1))-FIND(CHAR(160),SUBSTITUTE($O151,\"{\",CHAR(160),FJ$1))+1),\"\")","v":""},{"$f":"IFERROR(MID($O151,FIND(CHAR(160),SUBSTITUTE($O151,\"{\",CHAR(160),FK$1)),FIND(CHAR(160),SUBSTITUTE($O151,\"}\",CHAR(160),FK$1))-FIND(CHAR(160),SUBSTITUTE($O151,\"{\",CHAR(160),FK$1))+1),\"\")","v":"{Measure:Quantity}"},{"$f":"IFERROR(MID($O151,FIND(CHAR(160),SUBSTITUTE($O151,\"{\",CHAR(160),FL$1)),FIND(CHAR(160),SUBSTITUTE($O151,\"}\",CHAR(160),FL$1))-FIND(CHAR(160),SUBSTITUTE($O151,\"{\",CHAR(160),FL$1))+1),\"\")","v":"{Type}"},{"$f":"IFERROR(MID($R151,FIND(CHAR(160),SUBSTITUTE($R151,\"{\",CHAR(160),FM$1)),FIND(CHAR(160),SUBSTITUTE($R151,\"}\",CHAR(160),FM$1))-FIND(CHAR(160),SUBSTITUTE($R151,\"{\",CHAR(160),FM$1))+1),\"\")","v":""},{"$f":"IFERROR(MID($R151,FIND(CHAR(160),SUBSTITUTE($R151,\"{\",CHAR(160),FN$1)),FIND(CHAR(160),SUBSTITUTE($R151,\"}\",CHAR(160),FN$1))-FIND(CHAR(160),SUBSTITUTE($R151,\"{\",CHAR(160),FN$1))+1),\"\")","v":""},{"$f":"IFERROR(MID($R151,FIND(CHAR(160),SUBSTITUTE($R151,\"{\",CHAR(160),FO$1)),FIND(CHAR(160),SUBSTITUTE($R151,\"}\",CHAR(160),FO$1))-FIND(CHAR(160),SUBSTITUTE($R151,\"{\",CHAR(160),FO$1))+1),\"\")","v":""},{"$f":"IFERROR(MID($R151,FIND(CHAR(160),SUBSTITUTE($R151,\"{\",CHAR(160),FP$1)),FIND(CHAR(160),SUBSTITUTE($R151,\"}\",CHAR(160),FP$1))-FIND(CHAR(160),SUBSTITUTE($R151,\"{\",CHAR(160),FP$1))+1),\"\")","v":""},{"$f":"IFERROR(MID($R151,FIND(CHAR(160),SUBSTITUTE($R151,\"{\",CHAR(160),FQ$1)),FIND(CHAR(160),SUBSTITUTE($R151,\"}\",CHAR(160),FQ$1))-FIND(CHAR(160),SUBSTITUTE($R151,\"{\",CHAR(160),FQ$1))+1),\"\")","v":""},{"$f":"IFERROR(MID($R151,FIND(CHAR(160),SUBSTITUTE($R151,\"{\",CHAR(160),FR$1)),FIND(CHAR(160),SUBSTITUTE($R151,\"}\",CHAR(160),FR$1))-FIND(CHAR(160),SUBSTITUTE($R151,\"{\",CHAR(160),FR$1))+1),\"\")","v":""},{"$f":"IFERROR(MID($R151,FIND(CHAR(160),SUBSTITUTE($R151,\"{\",CHAR(160),FS$1)),FIND(CHAR(160),SUBSTITUTE($R151,\"}\",CHAR(160),FS$1))-FIND(CHAR(160),SUBSTITUTE($R151,\"{\",CHAR(160),FS$1))+1),\"\")","v":""},{"$f":"IFERROR(MID($R151,FIND(CHAR(160),SUBSTITUTE($R151,\"{\",CHAR(160),FT$1)),FIND(CHAR(160),SUBSTITUTE($R151,\"}\",CHAR(160),FT$1))-FIND(CHAR(160),SUBSTITUTE($R151,\"{\",CHAR(160),FT$1))+1),\"\")","v":""},{"$f":"IFERROR(MID($R151,FIND(CHAR(160),SUBSTITUTE($R151,\"{\",CHAR(160),FU$1)),FIND(CHAR(160),SUBSTITUTE($R151,\"}\",CHAR(160),FU$1))-FIND(CHAR(160),SUBSTITUTE($R151,\"{\",CHAR(160),FU$1))+1),\"\")","v":"{Measure:Quantity}"},{"$f":"IFERROR(MID($R151,FIND(CHAR(160),SUBSTITUTE($R151,\"{\",CHAR(160),FV$1)),FIND(CHAR(160),SUBSTITUTE($R151,\"}\",CHAR(160),FV$1))-FIND(CHAR(160),SUBSTITUTE($R151,\"{\",CHAR(160),FV$1))+1),\"\")","v":"{Type}"},{"$f":"IFERROR(MID($U151,FIND(CHAR(160),SUBSTITUTE($U151,\"{\",CHAR(160),FW$1)),FIND(CHAR(160),SUBSTITUTE($U151,\"}\",CHAR(160),FW$1))-FIND(CHAR(160),SUBSTITUTE($U151,\"{\",CHAR(160),FW$1))+1),\"\")","v":"{Factor:WinterCF}"},{"$f":"IFERROR(MID($U151,FIND(CHAR(160),SUBSTITUTE($U151,\"{\",CHAR(160),FX$1)),FIND(CHAR(160),SUBSTITUTE($U151,\"}\",CHAR(160),FX$1))-FIND(CHAR(160),SUBSTITUTE($U151,\"{\",CHAR(160),FX$1))+1),\"\")","v":""},{"$f":"IFERROR(MID($U151,FIND(CHAR(160),SUBSTITUTE($U151,\"{\",CHAR(160),FY$1)),FIND(CHAR(160),SUBSTITUTE($U151,\"}\",CHAR(160),FY$1))-FIND(CHAR(160),SUBSTITUTE($U151,\"{\",CHAR(160),FY$1))+1),\"\")","v":""},{"$f":"IFERROR(MID($U151,FIND(CHAR(160),SUBSTITUTE($U151,\"{\",CHAR(160),FZ$1)),FIND(CHAR(160),SUBSTITUTE($U151,\"}\",CHAR(160),FZ$1))-FIND(CHAR(160),SUBSTITUTE($U151,\"{\",CHAR(160),FZ$1))+1),\"\")","v":""},{"$f":"IFERROR(MID($U151,FIND(CHAR(160),SUBSTITUTE($U151,\"{\",CHAR(160),GA$1)),FIND(CHAR(160),SUBSTITUTE($U151,\"}\",CHAR(160),GA$1))-FIND(CHAR(160),SUBSTITUTE($U151,\"{\",CHAR(160),GA$1))+1),\"\")","v":""},{"$f":"IFERROR(MID($U151,FIND(CHAR(160),SUBSTITUTE($U151,\"{\",CHAR(160),GB$1)),FIND(CHAR(160),SUBSTITUTE($U151,\"}\",CHAR(160),GB$1))-FIND(CHAR(160),SUBSTITUTE($U151,\"{\",CHAR(160),GB$1))+1),\"\")","v":""},{"$f":"IFERROR(MID($U151,FIND(CHAR(160),SUBSTITUTE($U151,\"{\",CHAR(160),GC$1)),FIND(CHAR(160),SUBSTITUTE($U151,\"}\",CHAR(160),GC$1))-FIND(CHAR(160),SUBSTITUTE($U151,\"{\",CHAR(160),GC$1))+1),\"\")","v":""},{"$f":"IFERROR(MID($U151,FIND(CHAR(160),SUBSTITUTE($U151,\"{\",CHAR(160),GD$1)),FIND(CHAR(160),SUBSTITUTE($U151,\"}\",CHAR(160),GD$1))-FIND(CHAR(160),SUBSTITUTE($U151,\"{\",CHAR(160),GD$1))+1),\"\")","v":""},{"$f":"IFERROR(MID($U151,FIND(CHAR(160),SUBSTITUTE($U151,\"{\",CHAR(160),GE$1)),FIND(CHAR(160),SUBSTITUTE($U151,\"}\",CHAR(160),GE$1))-FIND(CHAR(160),SUBSTITUTE($U151,\"{\",CHAR(160),GE$1))+1),\"\")","v":"{Measure:Quantity}"},{"$f":"IFERROR(MID($U151,FIND(CHAR(160),SUBSTITUTE($U151,\"{\",CHAR(160),GF$1)),FIND(CHAR(160),SUBSTITUTE($U151,\"}\",CHAR(160),GF$1))-FIND(CHAR(160),SUBSTITUTE($U151,\"{\",CHAR(160),GF$1))+1),\"\")","v":"{Type}"},{"$f":"IFERROR(MID($V151,FIND(CHAR(160),SUBSTITUTE($V151,\"{\",CHAR(160),GG$1)),FIND(CHAR(160),SUBSTITUTE($V151,\"}\",CHAR(160),GG$1))-FIND(CHAR(160),SUBSTITUTE($V151,\"{\",CHAR(160),GG$1))+1),\"\")","v":"{Factor:SummerCF}"},{"$f":"IFERROR(MID($V151,FIND(CHAR(160),SUBSTITUTE($V151,\"{\",CHAR(160),GH$1)),FIND(CHAR(160),SUBSTITUTE($V151,\"}\",CHAR(160),GH$1))-FIND(CHAR(160),SUBSTITUTE($V151,\"{\",CHAR(160),GH$1))+1),\"\")","v":""},{"$f":"IFERROR(MID($V151,FIND(CHAR(160),SUBSTITUTE($V151,\"{\",CHAR(160),GI$1)),FIND(CHAR(160),SUBSTITUTE($V151,\"}\",CHAR(160),GI$1))-FIND(CHAR(160),SUBSTITUTE($V151,\"{\",CHAR(160),GI$1))+1),\"\")","v":""},{"$f":"IFERROR(MID($V151,FIND(CHAR(160),SUBSTITUTE($V151,\"{\",CHAR(160),GJ$1)),FIND(CHAR(160),SUBSTITUTE($V151,\"}\",CHAR(160),GJ$1))-FIND(CHAR(160),SUBSTITUTE($V151,\"{\",CHAR(160),GJ$1))+1),\"\")","v":""},{"$f":"IFERROR(MID($V151,FIND(CHAR(160),SUBSTITUTE($V151,\"{\",CHAR(160),GK$1)),FIND(CHAR(160),SUBSTITUTE($V151,\"}\",CHAR(160),GK$1))-FIND(CHAR(160),SUBSTITUTE($V151,\"{\",CHAR(160),GK$1))+1),\"\")","v":""},{"$f":"IFERROR(MID($V151,FIND(CHAR(160),SUBSTITUTE($V151,\"{\",CHAR(160),GL$1)),FIND(CHAR(160),SUBSTITUTE($V151,\"}\",CHAR(160),GL$1))-FIND(CHAR(160),SUBSTITUTE($V151,\"{\",CHAR(160),GL$1))+1),\"\")","v":""},{"$f":"IFERROR(MID($V151,FIND(CHAR(160),SUBSTITUTE($V151,\"{\",CHAR(160),GM$1)),FIND(CHAR(160),SUBSTITUTE($V151,\"}\",CHAR(160),GM$1))-FIND(CHAR(160),SUBSTITUTE($V151,\"{\",CHAR(160),GM$1))+1),\"\")","v":""},{"$f":"IFERROR(MID($V151,FIND(CHAR(160),SUBSTITUTE($V151,\"{\",CHAR(160),GN$1)),FIND(CHAR(160),SUBSTITUTE($V151,\"}\",CHAR(160),GN$1))-FIND(CHAR(160),SUBSTITUTE($V151,\"{\",CHAR(160),GN$1))+1),\"\")","v":""},{"$f":"IFERROR(MID($V151,FIND(CHAR(160),SUBSTITUTE($V151,\"{\",CHAR(160),GO$1)),FIND(CHAR(160),SUBSTITUTE($V151,\"}\",CHAR(160),GO$1))-FIND(CHAR(160),SUBSTITUTE($V151,\"{\",CHAR(160),GO$1))+1),\"\")","v":"{Measure:Quantity}"},{"$f":"IFERROR(MID($V151,FIND(CHAR(160),SUBSTITUTE($V151,\"{\",CHAR(160),GP$1)),FIND(CHAR(160),SUBSTITUTE($V151,\"}\",CHAR(160),GP$1))-FIND(CHAR(160),SUBSTITUTE($V151,\"{\",CHAR(160),GP$1))+1),\"\")","v":"{Type}"},{"$f":"IFERROR(MID($W151,FIND(CHAR(160),SUBSTITUTE($W151,\"{\",CHAR(160),GQ$1)),FIND(CHAR(160),SUBSTITUTE($W151,\"}\",CHAR(160),GQ$1))-FIND(CHAR(160),SUBSTITUTE($W151,\"{\",CHAR(160),GQ$1))+1),\"\")","v":""},{"$f":"IFERROR(MID($W151,FIND(CHAR(160),SUBSTITUTE($W151,\"{\",CHAR(160),GR$1)),FIND(CHAR(160),SUBSTITUTE($W151,\"}\",CHAR(160),GR$1))-FIND(CHAR(160),SUBSTITUTE($W151,\"{\",CHAR(160),GR$1))+1),\"\")","v":""},{"$f":"IFERROR(MID($W151,FIND(CHAR(160),SUBSTITUTE($W151,\"{\",CHAR(160),GS$1)),FIND(CHAR(160),SUBSTITUTE($W151,\"}\",CHAR(160),GS$1))-FIND(CHAR(160),SUBSTITUTE($W151,\"{\",CHAR(160),GS$1))+1),\"\")","v":""},{"$f":"IFERROR(MID($W151,FIND(CHAR(160),SUBSTITUTE($W151,\"{\",CHAR(160),GT$1)),FIND(CHAR(160),SUBSTITUTE($W151,\"}\",CHAR(160),GT$1))-FIND(CHAR(160),SUBSTITUTE($W151,\"{\",CHAR(160),GT$1))+1),\"\")","v":""},{"$f":"IFERROR(MID($W151,FIND(CHAR(160),SUBSTITUTE($W151,\"{\",CHAR(160),GU$1)),FIND(CHAR(160),SUBSTITUTE($W151,\"}\",CHAR(160),GU$1))-FIND(CHAR(160),SUBSTITUTE($W151,\"{\",CHAR(160),GU$1))+1),\"\")","v":""},{"$f":"IFERROR(MID($W151,FIND(CHAR(160),SUBSTITUTE($W151,\"{\",CHAR(160),GV$1)),FIND(CHAR(160),SUBSTITUTE($W151,\"}\",CHAR(160),GV$1))-FIND(CHAR(160),SUBSTITUTE($W151,\"{\",CHAR(160),GV$1))+1),\"\")","v":""},{"$f":"IFERROR(MID($W151,FIND(CHAR(160),SUBSTITUTE($W151,\"{\",CHAR(160),GW$1)),FIND(CHAR(160),SUBSTITUTE($W151,\"}\",CHAR(160),GW$1))-FIND(CHAR(160),SUBSTITUTE($W151,\"{\",CHAR(160),GW$1))+1),\"\")","v":""},{"$f":"IFERROR(MID($W151,FIND(CHAR(160),SUBSTITUTE($W151,\"{\",CHAR(160),GX$1)),FIND(CHAR(160),SUBSTITUTE($W151,\"}\",CHAR(160),GX$1))-FIND(CHAR(160),SUBSTITUTE($W151,\"{\",CHAR(160),GX$1))+1),\"\")","v":""},{"$f":"IFERROR(MID($W151,FIND(CHAR(160),SUBSTITUTE($W151,\"{\",CHAR(160),GY$1)),FIND(CHAR(160),SUBSTITUTE($W151,\"}\",CHAR(160),GY$1))-FIND(CHAR(160),SUBSTITUTE($W151,\"{\",CHAR(160),GY$1))+1),\"\")","v":""},{"$f":"IFERROR(MID($W151,FIND(CHAR(160),SUBSTITUTE($W151,\"{\",CHAR(160),GZ$1)),FIND(CHAR(160),SUBSTITUTE($W151,\"}\",CHAR(160),GZ$1))-FIND(CHAR(160),SUBSTITUTE($W151,\"{\",CHAR(160),GZ$1))+1),\"\")","v":""},{"$f":"IFERROR(MID($X151,FIND(CHAR(160),SUBSTITUTE($X151,\"{\",CHAR(160),HA$1)),FIND(CHAR(160),SUBSTITUTE($X151,\"}\",CHAR(160),HA$1))-FIND(CHAR(160),SUBSTITUTE($X151,\"{\",CHAR(160),HA$1))+1),\"\")","v":""},{"$f":"IFERROR(MID($X151,FIND(CHAR(160),SUBSTITUTE($X151,\"{\",CHAR(160),HB$1)),FIND(CHAR(160),SUBSTITUTE($X151,\"}\",CHAR(160),HB$1))-FIND(CHAR(160),SUBSTITUTE($X151,\"{\",CHAR(160),HB$1))+1),\"\")","v":""},{"$f":"IFERROR(MID($X151,FIND(CHAR(160),SUBSTITUTE($X151,\"{\",CHAR(160),HC$1)),FIND(CHAR(160),SUBSTITUTE($X151,\"}\",CHAR(160),HC$1))-FIND(CHAR(160),SUBSTITUTE($X151,\"{\",CHAR(160),HC$1))+1),\"\")","v":""},{"$f":"IFERROR(MID($X151,FIND(CHAR(160),SUBSTITUTE($X151,\"{\",CHAR(160),HD$1)),FIND(CHAR(160),SUBSTITUTE($X151,\"}\",CHAR(160),HD$1))-FIND(CHAR(160),SUBSTITUTE($X151,\"{\",CHAR(160),HD$1))+1),\"\")","v":""},{"$f":"IFERROR(MID($X151,FIND(CHAR(160),SUBSTITUTE($X151,\"{\",CHAR(160),HE$1)),FIND(CHAR(160),SUBSTITUTE($X151,\"}\",CHAR(160),HE$1))-FIND(CHAR(160),SUBSTITUTE($X151,\"{\",CHAR(160),HE$1))+1),\"\")","v":""},{"$f":"IFERROR(MID($X151,FIND(CHAR(160),SUBSTITUTE($X151,\"{\",CHAR(160),HF$1)),FIND(CHAR(160),SUBSTITUTE($X151,\"}\",CHAR(160),HF$1))-FIND(CHAR(160),SUBSTITUTE($X151,\"{\",CHAR(160),HF$1))+1),\"\")","v":""},{"$f":"IFERROR(MID($X151,FIND(CHAR(160),SUBSTITUTE($X151,\"{\",CHAR(160),HG$1)),FIND(CHAR(160),SUBSTITUTE($X151,\"}\",CHAR(160),HG$1))-FIND(CHAR(160),SUBSTITUTE($X151,\"{\",CHAR(160),HG$1))+1),\"\")","v":""},{"$f":"IFERROR(MID($X151,FIND(CHAR(160),SUBSTITUTE($X151,\"{\",CHAR(160),HH$1)),FIND(CHAR(160),SUBSTITUTE($X151,\"}\",CHAR(160),HH$1))-FIND(CHAR(160),SUBSTITUTE($X151,\"{\",CHAR(160),HH$1))+1),\"\")","v":""},{"$f":"IFERROR(MID($X151,FIND(CHAR(160),SUBSTITUTE($X151,\"{\",CHAR(160),HI$1)),FIND(CHAR(160),SUBSTITUTE($X151,\"}\",CHAR(160),HI$1))-FIND(CHAR(160),SUBSTITUTE($X151,\"{\",CHAR(160),HI$1))+1),\"\")","v":""},{"$f":"IFERROR(MID($X151,FIND(CHAR(160),SUBSTITUTE($X151,\"{\",CHAR(160),HJ$1)),FIND(CHAR(160),SUBSTITUTE($X151,\"}\",CHAR(160),HJ$1))-FIND(CHAR(160),SUBSTITUTE($X151,\"{\",CHAR(160),HJ$1))+1),\"\")","v":""},{"$f":"IFERROR(MID($Y151,FIND(CHAR(160),SUBSTITUTE($Y151,\"{\",CHAR(160),HK$1)),FIND(CHAR(160),SUBSTITUTE($Y151,\"}\",CHAR(160),HK$1))-FIND(CHAR(160),SUBSTITUTE($Y151,\"{\",CHAR(160),HK$1))+1),\"\")","v":""},{"$f":"IFERROR(MID($Y151,FIND(CHAR(160),SUBSTITUTE($Y151,\"{\",CHAR(160),HL$1)),FIND(CHAR(160),SUBSTITUTE($Y151,\"}\",CHAR(160),HL$1))-FIND(CHAR(160),SUBSTITUTE($Y151,\"{\",CHAR(160),HL$1))+1),\"\")","v":""},{"$f":"IFERROR(MID($Y151,FIND(CHAR(160),SUBSTITUTE($Y151,\"{\",CHAR(160),HM$1)),FIND(CHAR(160),SUBSTITUTE($Y151,\"}\",CHAR(160),HM$1))-FIND(CHAR(160),SUBSTITUTE($Y151,\"{\",CHAR(160),HM$1))+1),\"\")","v":""},{"$f":"IFERROR(MID($Y151,FIND(CHAR(160),SUBSTITUTE($Y151,\"{\",CHAR(160),HN$1)),FIND(CHAR(160),SUBSTITUTE($Y151,\"}\",CHAR(160),HN$1))-FIND(CHAR(160),SUBSTITUTE($Y151,\"{\",CHAR(160),HN$1))+1),\"\")","v":""},{"$f":"IFERROR(MID($Y151,FIND(CHAR(160),SUBSTITUTE($Y151,\"{\",CHAR(160),HO$1)),FIND(CHAR(160),SUBSTITUTE($Y151,\"}\",CHAR(160),HO$1))-FIND(CHAR(160),SUBSTITUTE($Y151,\"{\",CHAR(160),HO$1))+1),\"\")","v":""},{"$f":"IFERROR(MID($Y151,FIND(CHAR(160),SUBSTITUTE($Y151,\"{\",CHAR(160),HP$1)),FIND(CHAR(160),SUBSTITUTE($Y151,\"}\",CHAR(160),HP$1))-FIND(CHAR(160),SUBSTITUTE($Y151,\"{\",CHAR(160),HP$1))+1),\"\")","v":""},{"$f":"IFERROR(MID($Y151,FIND(CHAR(160),SUBSTITUTE($Y151,\"{\",CHAR(160),HQ$1)),FIND(CHAR(160),SUBSTITUTE($Y151,\"}\",CHAR(160),HQ$1))-FIND(CHAR(160),SUBSTITUTE($Y151,\"{\",CHAR(160),HQ$1))+1),\"\")","v":""},{"$f":"IFERROR(MID($Y151,FIND(CHAR(160),SUBSTITUTE($Y151,\"{\",CHAR(160),HR$1)),FIND(CHAR(160),SUBSTITUTE($Y151,\"}\",CHAR(160),HR$1))-FIND(CHAR(160),SUBSTITUTE($Y151,\"{\",CHAR(160),HR$1))+1),\"\")","v":""},{"$f":"IFERROR(MID($Y151,FIND(CHAR(160),SUBSTITUTE($Y151,\"{\",CHAR(160),HS$1)),FIND(CHAR(160),SUBSTITUTE($Y151,\"}\",CHAR(160),HS$1))-FIND(CHAR(160),SUBSTITUTE($Y151,\"{\",CHAR(160),HS$1))+1),\"\")","v":""},{"$f":"IFERROR(MID($Y151,FIND(CHAR(160),SUBSTITUTE($Y151,\"{\",CHAR(160),HT$1)),FIND(CHAR(160),SUBSTITUTE($Y151,\"}\",CHAR(160),HT$1))-FIND(CHAR(160),SUBSTITUTE($Y151,\"{\",CHAR(160),HT$1))+1),\"\")","v":""},{"$f":"IFERROR(MID($Z151,FIND(CHAR(160),SUBSTITUTE($Z151,\"{\",CHAR(160),HU$1)),FIND(CHAR(160),SUBSTITUTE($Z151,\"}\",CHAR(160),HU$1))-FIND(CHAR(160),SUBSTITUTE($Z151,\"{\",CHAR(160),HU$1))+1),\"\")","v":""},{"$f":"IFERROR(MID($Z151,FIND(CHAR(160),SUBSTITUTE($Z151,\"{\",CHAR(160),HV$1)),FIND(CHAR(160),SUBSTITUTE($Z151,\"}\",CHAR(160),HV$1))-FIND(CHAR(160),SUBSTITUTE($Z151,\"{\",CHAR(160),HV$1))+1),\"\")","v":""},{"$f":"IFERROR(MID($Z151,FIND(CHAR(160),SUBSTITUTE($Z151,\"{\",CHAR(160),HW$1)),FIND(CHAR(160),SUBSTITUTE($Z151,\"}\",CHAR(160),HW$1))-FIND(CHAR(160),SUBSTITUTE($Z151,\"{\",CHAR(160),HW$1))+1),\"\")","v":""},{"$f":"IFERROR(MID($Z151,FIND(CHAR(160),SUBSTITUTE($Z151,\"{\",CHAR(160),HX$1)),FIND(CHAR(160),SUBSTITUTE($Z151,\"}\",CHAR(160),HX$1))-FIND(CHAR(160),SUBSTITUTE($Z151,\"{\",CHAR(160),HX$1))+1),\"\")","v":""},{"$f":"IFERROR(MID($Z151,FIND(CHAR(160),SUBSTITUTE($Z151,\"{\",CHAR(160),HY$1)),FIND(CHAR(160),SUBSTITUTE($Z151,\"}\",CHAR(160),HY$1))-FIND(CHAR(160),SUBSTITUTE($Z151,\"{\",CHAR(160),HY$1))+1),\"\")","v":""},{"$f":"IFERROR(MID($Z151,FIND(CHAR(160),SUBSTITUTE($Z151,\"{\",CHAR(160),HZ$1)),FIND(CHAR(160),SUBSTITUTE($Z151,\"}\",CHAR(160),HZ$1))-FIND(CHAR(160),SUBSTITUTE($Z151,\"{\",CHAR(160),HZ$1))+1),\"\")","v":""},{"$f":"IFERROR(MID($Z151,FIND(CHAR(160),SUBSTITUTE($Z151,\"{\",CHAR(160),IA$1)),FIND(CHAR(160),SUBSTITUTE($Z151,\"}\",CHAR(160),IA$1))-FIND(CHAR(160),SUBSTITUTE($Z151,\"{\",CHAR(160),IA$1))+1),\"\")","v":""},{"$f":"IFERROR(MID($Z151,FIND(CHAR(160),SUBSTITUTE($Z151,\"{\",CHAR(160),IB$1)),FIND(CHAR(160),SUBSTITUTE($Z151,\"}\",CHAR(160),IB$1))-FIND(CHAR(160),SUBSTITUTE($Z151,\"{\",CHAR(160),IB$1))+1),\"\")","v":""},{"$f":"IFERROR(MID($Z151,FIND(CHAR(160),SUBSTITUTE($Z151,\"{\",CHAR(160),IC$1)),FIND(CHAR(160),SUBSTITUTE($Z151,\"}\",CHAR(160),IC$1))-FIND(CHAR(160),SUBSTITUTE($Z151,\"{\",CHAR(160),IC$1))+1),\"\")","v":""},{"$f":"IFERROR(MID($Z151,FIND(CHAR(160),SUBSTITUTE($Z151,\"{\",CHAR(160),ID$1)),FIND(CHAR(160),SUBSTITUTE($Z151,\"}\",CHAR(160),ID$1))-FIND(CHAR(160),SUBSTITUTE($Z151,\"{\",CHAR(160),ID$1))+1),\"\")","v":""},{"$f":"IFERROR(MID($AA151,FIND(CHAR(160),SUBSTITUTE($AA151,\"{\",CHAR(160),IE$1)),FIND(CHAR(160),SUBSTITUTE($AA151,\"}\",CHAR(160),IE$1))-FIND(CHAR(160),SUBSTITUTE($AA151,\"{\",CHAR(160),IE$1))+1),\"\")","v":""},{"$f":"IFERROR(MID($AA151,FIND(CHAR(160),SUBSTITUTE($AA151,\"{\",CHAR(160),IF$1)),FIND(CHAR(160),SUBSTITUTE($AA151,\"}\",CHAR(160),IF$1))-FIND(CHAR(160),SUBSTITUTE($AA151,\"{\",CHAR(160),IF$1))+1),\"\")","v":""},{"$f":"IFERROR(MID($AA151,FIND(CHAR(160),SUBSTITUTE($AA151,\"{\",CHAR(160),IG$1)),FIND(CHAR(160),SUBSTITUTE($AA151,\"}\",CHAR(160),IG$1))-FIND(CHAR(160),SUBSTITUTE($AA151,\"{\",CHAR(160),IG$1))+1),\"\")","v":""},{"$f":"IFERROR(MID($AA151,FIND(CHAR(160),SUBSTITUTE($AA151,\"{\",CHAR(160),IH$1)),FIND(CHAR(160),SUBSTITUTE($AA151,\"}\",CHAR(160),IH$1))-FIND(CHAR(160),SUBSTITUTE($AA151,\"{\",CHAR(160),IH$1))+1),\"\")","v":""},{"$f":"IFERROR(MID($AA151,FIND(CHAR(160),SUBSTITUTE($AA151,\"{\",CHAR(160),II$1)),FIND(CHAR(160),SUBSTITUTE($AA151,\"}\",CHAR(160),II$1))-FIND(CHAR(160),SUBSTITUTE($AA151,\"{\",CHAR(160),II$1))+1),\"\")","v":""},{"$f":"IFERROR(MID($AA151,FIND(CHAR(160),SUBSTITUTE($AA151,\"{\",CHAR(160),IJ$1)),FIND(CHAR(160),SUBSTITUTE($AA151,\"}\",CHAR(160),IJ$1))-FIND(CHAR(160),SUBSTITUTE($AA151,\"{\",CHAR(160),IJ$1))+1),\"\")","v":""},{"$f":"IFERROR(MID($AA151,FIND(CHAR(160),SUBSTITUTE($AA151,\"{\",CHAR(160),IK$1)),FIND(CHAR(160),SUBSTITUTE($AA151,\"}\",CHAR(160),IK$1))-FIND(CHAR(160),SUBSTITUTE($AA151,\"{\",CHAR(160),IK$1))+1),\"\")","v":""},{"$f":"IFERROR(MID($AA151,FIND(CHAR(160),SUBSTITUTE($AA151,\"{\",CHAR(160),IL$1)),FIND(CHAR(160),SUBSTITUTE($AA151,\"}\",CHAR(160),IL$1))-FIND(CHAR(160),SUBSTITUTE($AA151,\"{\",CHAR(160),IL$1))+1),\"\")","v":""},{"$f":"IFERROR(MID($AA151,FIND(CHAR(160),SUBSTITUTE($AA151,\"{\",CHAR(160),IM$1)),FIND(CHAR(160),SUBSTITUTE($AA151,\"}\",CHAR(160),IM$1))-FIND(CHAR(160),SUBSTITUTE($AA151,\"{\",CHAR(160),IM$1))+1),\"\")","v":""},{"$f":"IFERROR(MID($AA151,FIND(CHAR(160),SUBSTITUTE($AA151,\"{\",CHAR(160),IN$1)),FIND(CHAR(160),SUBSTITUTE($AA151,\"}\",CHAR(160),IN$1))-FIND(CHAR(160),SUBSTITUTE($AA151,\"{\",CHAR(160),IN$1))+1),\"\")","v":""},{"$f":"IFERROR(MID($AB151,FIND(CHAR(160),SUBSTITUTE($AB151,\"{\",CHAR(160),IO$1)),FIND(CHAR(160),SUBSTITUTE($AB151,\"}\",CHAR(160),IO$1))-FIND(CHAR(160),SUBSTITUTE($AB151,\"{\",CHAR(160),IO$1))+1),\"\")","v":""},{"$f":"IFERROR(MID($AB151,FIND(CHAR(160),SUBSTITUTE($AB151,\"{\",CHAR(160),IP$1)),FIND(CHAR(160),SUBSTITUTE($AB151,\"}\",CHAR(160),IP$1))-FIND(CHAR(160),SUBSTITUTE($AB151,\"{\",CHAR(160),IP$1))+1),\"\")","v":""},{"$f":"IFERROR(MID($AB151,FIND(CHAR(160),SUBSTITUTE($AB151,\"{\",CHAR(160),IQ$1)),FIND(CHAR(160),SUBSTITUTE($AB151,\"}\",CHAR(160),IQ$1))-FIND(CHAR(160),SUBSTITUTE($AB151,\"{\",CHAR(160),IQ$1))+1),\"\")","v":""},{"$f":"IFERROR(MID($AB151,FIND(CHAR(160),SUBSTITUTE($AB151,\"{\",CHAR(160),IR$1)),FIND(CHAR(160),SUBSTITUTE($AB151,\"}\",CHAR(160),IR$1))-FIND(CHAR(160),SUBSTITUTE($AB151,\"{\",CHAR(160),IR$1))+1),\"\")","v":""},{"$f":"IFERROR(MID($AB151,FIND(CHAR(160),SUBSTITUTE($AB151,\"{\",CHAR(160),IS$1)),FIND(CHAR(160),SUBSTITUTE($AB151,\"}\",CHAR(160),IS$1))-FIND(CHAR(160),SUBSTITUTE($AB151,\"{\",CHAR(160),IS$1))+1),\"\")","v":""},{"$f":"IFERROR(MID($AB151,FIND(CHAR(160),SUBSTITUTE($AB151,\"{\",CHAR(160),IT$1)),FIND(CHAR(160),SUBSTITUTE($AB151,\"}\",CHAR(160),IT$1))-FIND(CHAR(160),SUBSTITUTE($AB151,\"{\",CHAR(160),IT$1))+1),\"\")","v":""},{"$f":"IFERROR(MID($AB151,FIND(CHAR(160),SUBSTITUTE($AB151,\"{\",CHAR(160),IU$1)),FIND(CHAR(160),SUBSTITUTE($AB151,\"}\",CHAR(160),IU$1))-FIND(CHAR(160),SUBSTITUTE($AB151,\"{\",CHAR(160),IU$1))+1),\"\")","v":""},{"$f":"IFERROR(MID($AB151,FIND(CHAR(160),SUBSTITUTE($AB151,\"{\",CHAR(160),IV$1)),FIND(CHAR(160),SUBSTITUTE($AB151,\"}\",CHAR(160),IV$1))-FIND(CHAR(160),SUBSTITUTE($AB151,\"{\",CHAR(160),IV$1))+1),\"\")","v":""},{"$f":"IFERROR(MID($AB151,FIND(CHAR(160),SUBSTITUTE($AB151,\"{\",CHAR(160),IW$1)),FIND(CHAR(160),SUBSTITUTE($AB151,\"}\",CHAR(160),IW$1))-FIND(CHAR(160),SUBSTITUTE($AB151,\"{\",CHAR(160),IW$1))+1),\"\")","v":""},{"$f":"IFERROR(MID($AB151,FIND(CHAR(160),SUBSTITUTE($AB151,\"{\",CHAR(160),IX$1)),FIND(CHAR(160),SUBSTITUTE($AB151,\"}\",CHAR(160),IX$1))-FIND(CHAR(160),SUBSTITUTE($AB151,\"{\",CHAR(160),IX$1))+1),\"\")","v":""},null,{"$f":"10-COUNTIF(DU151:ED151,\"\")","v":2}]
["C&I Refrigeration Solutions","R51 Floating-Head Pressure Controls - Controlling 2 Coils","R51","2021-07-01","2022-06-30","Per Measure",734,0,"Per Measure",375,0,"2020-11-01","2022-06-30","Calculated","{Measure:Quantity} * {Controlled HP} * {Type}",1E-4,null,"{Measure:Quantity} * {Controlled HP} * {Type} / 7222",null,null,"{Measure:Quantity} * {Controlled HP} * {Type} / 7221 * {Factor:WinterCF}","{Measure:Quantity} * {Controlled HP} * {Type} / 7221 * {Factor:SummerCF}",null,null,null,null,null,null,"2020-11-01","2022-06-30",15,0.73699999999999999,0,0.33300000000000002,0.371,0.128,0.16800000000000001,1,1.1220000000000001,1,0.52,1.6E-2,null,{"$f":"DU152","v":"{Type}"},1,{"$f":"DV152","v":"{Measure:Quantity}"},5,{"$f":"DW152","v":"{Controlled HP}"},509,{"$f":"DX152","v":""},null,{"$f":"DY152","v":""},null,{"$f":"DZ152","v":""},null,{"$f":"EA152","v":""},null,{"$f":"EB152","v":""},null,{"$f":"EC152","v":""},null,{"$f":"ED152","v":""},null,{"$f":"AS152 * AU152 * AW152","v":2545},{"$f":"0.0001","v":1E-4},0,{"$f":"AS152 * AU152 * AW152 / 7222","v":0.35239545832179453},0,0,{"$f":"AS152 * AU152 * AW152 / 7221 * AF152","v":0.2597514194709874},{"$f":"AS152 * AU152 * AW152 / 7221 * AG152","v":0},0,0,0,0,0,0,null,"Res","Default DR",{"$f":"Benefits(BL152,BR152,BS152,BT152,BU152,BV152,BW152,BX152,BY152,BZ152,AE152,AH152,AI152,AJ152,AK152,AL152,AM152,AN152,AO152,AP152,CA152,CB152)","v":3838.1149636027385},978.12920541554968,0,0,0,0,0,0,0,{"$f":"SUMPRODUCT(CC152:CK152,--(CC152:CK152>0))","v":4816.2441690182877},{"$f":"-SUMPRODUCT(CC152:CK152,--(CC152:CK152<0))","v":0},null,{"$f":"734","v":734},null,null,{"$f":"CM152+CO152","v":734},{"$f":"IF(NetOrGross=\"Net\",(1-AO152+AP152),1)","v":1},{"$f":"(SUMPRODUCT(CC152:CJ152,--(CC152:CJ152>0))+CN152)*CS152/((-SUMPRODUCT(CC152:CJ152,--(CC152:CJ152<0))+MAX(CO152,CV152)+CP152+CQ152)*CS152+IF(FRIncentives=\"Yes\",CV152*(1-CS152),0))","v":6.5616405572456236},1,{"$f":"375","v":375},null,"Electric","y",null,{"$f":"IF(F152=\"Manual Entry\",\"Manual\",IF(G152=\"\",0,\"X=\"&SUBSTITUTE(SUBSTITUTE(SUBSTITUTE(SUBSTITUTE(SUBSTITUTE(SUBSTITUTE(SUBSTITUTE(SUBSTITUTE(SUBSTITUTE(SUBSTITUTE(SUBSTITUTE(SUBSTITUTE(G152,$ED152,$ED$2&ROW($ED152)),$EC152,$EC$2&ROW($EC152)),$EB152,$EB$2&ROW($EB152)),$EA152,$EA$2&ROW($EA152)),$DZ152,$DZ$2&ROW($DZ152)),$DY152,$DY$2&ROW($DY152)),$DX152,$DX$2&ROW($DX152)),$DW152,$DW$2&ROW($DW152)),$DV152,$DV$2&ROW($DV152)),$DU152,$DU$2&ROW($DU152)),$DT152,$DT$2&ROW($DT152)),$DS152,$DS$2&ROW($DS152))))","v":"X=734"},{"$f":"IF(I152=\"Manual Entry\",\"Manual\",IF(J152=\"\",0,\"X=\"&SUBSTITUTE(SUBSTITUTE(SUBSTITUTE(SUBSTITUTE(SUBSTITUTE(SUBSTITUTE(SUBSTITUTE(SUBSTITUTE(SUBSTITUTE(SUBSTITUTE(SUBSTITUTE(SUBSTITUTE(J152,$ED152,$ED$2&ROW($ED152)),$EC152,$EC$2&ROW($EC152)),$EB152,$EB$2&ROW($EB152)),$EA152,$EA$2&ROW($EA152)),$DZ152,$DZ$2&ROW($DZ152)),$DY152,$DY$2&ROW($DY152)),$DX152,$DX$2&ROW($DX152)),$DW152,$DW$2&ROW($DW152)),$DV152,$DV$2&ROW($DV152)),$DU152,$DU$2&ROW($DU152)),$DT152,$DT$2&ROW($DT152)),$DS152,$DS$2&ROW($DS152))))","v":"X=375"},{"$f":"IF(O152=\"\",0,\"X=\"&SUBSTITUTE(SUBSTITUTE(SUBSTITUTE(SUBSTITUTE(SUBSTITUTE(SUBSTITUTE(SUBSTITUTE(SUBSTITUTE(SUBSTITUTE(SUBSTITUTE(SUBSTITUTE(SUBSTITUTE(O152,$ED152,$ED$2&ROW($ED152)),$EC152,$EC$2&ROW($EC152)),$EB152,$EB$2&ROW($EB152)),$EA152,$EA$2&ROW($EA152)),$DZ152,$DZ$2&ROW($DZ152)),$DY152,$DY$2&ROW($DY152)),$DX152,$DX$2&ROW($DX152)),$DW152,$DW$2&ROW($DW152)),$DV152,$DV$2&ROW($DV152)),$DU152,$DU$2&ROW($DU152)),$DT152,$DT$2&ROW($DT152)),$DS152,$DS$2&ROW($DS152)))","v":"X=AU152 * AW152 * AS152"},{"$f":"IF(P152=\"\",0,\"X=\"&SUBSTITUTE(SUBSTITUTE(SUBSTITUTE(SUBSTITUTE(SUBSTITUTE(SUBSTITUTE(SUBSTITUTE(SUBSTITUTE(SUBSTITUTE(SUBSTITUTE(SUBSTITUTE(SUBSTITUTE(P152,$ED152,$ED$2&ROW($ED152)),$EC152,$EC$2&ROW($EC152)),$EB152,$EB$2&ROW($EB152)),$EA152,$EA$2&ROW($EA152)),$DZ152,$DZ$2&ROW($DZ152)),$DY152,$DY$2&ROW($DY152)),$DX152,$DX$2&ROW($DX152)),$DW152,$DW$2&ROW($DW152)),$DV152,$DV$2&ROW($DV152)),$DU152,$DU$2&ROW($DU152)),$DT152,$DT$2&ROW($DT152)),$DS152,$DS$2&ROW($DS152)))","v":"X=0.0001"},{"$f":"IF(Q152=\"\",0,\"X=\"&SUBSTITUTE(SUBSTITUTE(SUBSTITUTE(SUBSTITUTE(SUBSTITUTE(SUBSTITUTE(SUBSTITUTE(SUBSTITUTE(SUBSTITUTE(SUBSTITUTE(SUBSTITUTE(SUBSTITUTE(Q152,$ED152,$ED$2&ROW($ED152)),$EC152,$EC$2&ROW($EC152)),$EB152,$EB$2&ROW($EB152)),$EA152,$EA$2&ROW($EA152)),$DZ152,$DZ$2&ROW($DZ152)),$DY152,$DY$2&ROW($DY152)),$DX152,$DX$2&ROW($DX152)),$DW152,$DW$2&ROW($DW152)),$DV152,$DV$2&ROW($DV152)),$DU152,$DU$2&ROW($DU152)),$DT152,$DT$2&ROW($DT152)),$DS152,$DS$2&ROW($DS152)))","v":0},{"$f":"IF(R152=\"\",0,\"X=\"&SUBSTITUTE(SUBSTITUTE(SUBSTITUTE(SUBSTITUTE(SUBSTITUTE(SUBSTITUTE(SUBSTITUTE(SUBSTITUTE(SUBSTITUTE(SUBSTITUTE(SUBSTITUTE(SUBSTITUTE(R152,$ED152,$ED$2&ROW($ED152)),$EC152,$EC$2&ROW($EC152)),$EB152,$EB$2&ROW($EB152)),$EA152,$EA$2&ROW($EA152)),$DZ152,$DZ$2&ROW($DZ152)),$DY152,$DY$2&ROW($DY152)),$DX152,$DX$2&ROW($DX152)),$DW152,$DW$2&ROW($DW152)),$DV152,$DV$2&ROW($DV152)),$DU152,$DU$2&ROW($DU152)),$DT152,$DT$2&ROW($DT152)),$DS152,$DS$2&ROW($DS152)))","v":"X=AU152 * AW152 * AS152 / 7222"},{"$f":"IF(S152=\"\",0,\"X=\"&SUBSTITUTE(SUBSTITUTE(SUBSTITUTE(SUBSTITUTE(SUBSTITUTE(SUBSTITUTE(SUBSTITUTE(SUBSTITUTE(SUBSTITUTE(SUBSTITUTE(SUBSTITUTE(SUBSTITUTE(S152,$ED152,$ED$2&ROW($ED152)),$EC152,$EC$2&ROW($EC152)),$EB152,$EB$2&ROW($EB152)),$EA152,$EA$2&ROW($EA152)),$DZ152,$DZ$2&ROW($DZ152)),$DY152,$DY$2&ROW($DY152)),$DX152,$DX$2&ROW($DX152)),$DW152,$DW$2&ROW($DW152)),$DV152,$DV$2&ROW($DV152)),$DU152,$DU$2&ROW($DU152)),$DT152,$DT$2&ROW($DT152)),$DS152,$DS$2&ROW($DS152)))","v":0},{"$f":"IF(T152=\"\",0,\"X=\"&SUBSTITUTE(SUBSTITUTE(SUBSTITUTE(SUBSTITUTE(SUBSTITUTE(SUBSTITUTE(SUBSTITUTE(SUBSTITUTE(SUBSTITUTE(SUBSTITUTE(SUBSTITUTE(SUBSTITUTE(T152,$ED152,$ED$2&ROW($ED152)),$EC152,$EC$2&ROW($EC152)),$EB152,$EB$2&ROW($EB152)),$EA152,$EA$2&ROW($EA152)),$DZ152,$DZ$2&ROW($DZ152)),$DY152,$DY$2&ROW($DY152)),$DX152,$DX$2&ROW($DX152)),$DW152,$DW$2&ROW($DW152)),$DV152,$DV$2&ROW($DV152)),$DU152,$DU$2&ROW($DU152)),$DT152,$DT$2&ROW($DT152)),$DS152,$DS$2&ROW($DS152)))","v":0},{"$f":"IF(U152=\"\",0,\"X=\"&SUBSTITUTE(SUBSTITUTE(SUBSTITUTE(SUBSTITUTE(SUBSTITUTE(SUBSTITUTE(SUBSTITUTE(SUBSTITUTE(SUBSTITUTE(SUBSTITUTE(SUBSTITUTE(SUBSTITUTE(U152,$ED152,$ED$2&ROW($ED152)),$EC152,$EC$2&ROW($EC152)),$EB152,$EB$2&ROW($EB152)),$EA152,$EA$2&ROW($EA152)),$DZ152,$DZ$2&ROW($DZ152)),$DY152,$DY$2&ROW($DY152)),$DX152,$DX$2&ROW($DX152)),$DW152,$DW$2&ROW($DW152)),$DV152,$DV$2&ROW($DV152)),$DU152,$DU$2&ROW($DU152)),$DT152,$DT$2&ROW($DT152)),$DS152,$DS$2&ROW($DS152)))","v":"X=AU152 * AW152 * AS152 / 7221 * AF152"},{"$f":"IF(V152=\"\",0,\"X=\"&SUBSTITUTE(SUBSTITUTE(SUBSTITUTE(SUBSTITUTE(SUBSTITUTE(SUBSTITUTE(SUBSTITUTE(SUBSTITUTE(SUBSTITUTE(SUBSTITUTE(SUBSTITUTE(SUBSTITUTE(V152,$ED152,$ED$2&ROW($ED152)),$EC152,$EC$2&ROW($EC152)),$EB152,$EB$2&ROW($EB152)),$EA152,$EA$2&ROW($EA152)),$DZ152,$DZ$2&ROW($DZ152)),$DY152,$DY$2&ROW($DY152)),$DX152,$DX$2&ROW($DX152)),$DW152,$DW$2&ROW($DW152)),$DV152,$DV$2&ROW($DV152)),$DU152,$DU$2&ROW($DU152)),$DT152,$DT$2&ROW($DT152)),$DS152,$DS$2&ROW($DS152)))","v":"X=AU152 * AW152 * AS152 / 7221 * AG152"},{"$f":"IF(W152=\"\",0,\"X=\"&SUBSTITUTE(SUBSTITUTE(SUBSTITUTE(SUBSTITUTE(SUBSTITUTE(SUBSTITUTE(SUBSTITUTE(SUBSTITUTE(SUBSTITUTE(SUBSTITUTE(SUBSTITUTE(SUBSTITUTE(W152,$ED152,$ED$2&ROW($ED152)),$EC152,$EC$2&ROW($EC152)),$EB152,$EB$2&ROW($EB152)),$EA152,$EA$2&ROW($EA152)),$DZ152,$DZ$2&ROW($DZ152)),$DY152,$DY$2&ROW($DY152)),$DX152,$DX$2&ROW($DX152)),$DW152,$DW$2&ROW($DW152)),$DV152,$DV$2&ROW($DV152)),$DU152,$DU$2&ROW($DU152)),$DT152,$DT$2&ROW($DT152)),$DS152,$DS$2&ROW($DS152)))","v":0},{"$f":"IF(X152=\"\",0,\"X=\"&SUBSTITUTE(SUBSTITUTE(SUBSTITUTE(SUBSTITUTE(SUBSTITUTE(SUBSTITUTE(SUBSTITUTE(SUBSTITUTE(SUBSTITUTE(SUBSTITUTE(SUBSTITUTE(SUBSTITUTE(X152,$ED152,$ED$2&ROW($ED152)),$EC152,$EC$2&ROW($EC152)),$EB152,$EB$2&ROW($EB152)),$EA152,$EA$2&ROW($EA152)),$DZ152,$DZ$2&ROW($DZ152)),$DY152,$DY$2&ROW($DY152)),$DX152,$DX$2&ROW($DX152)),$DW152,$DW$2&ROW($DW152)),$DV152,$DV$2&ROW($DV152)),$DU152,$DU$2&ROW($DU152)),$DT152,$DT$2&ROW($DT152)),$DS152,$DS$2&ROW($DS152)))","v":0},{"$f":"IF(Y152=\"\",0,\"X=\"&SUBSTITUTE(SUBSTITUTE(SUBSTITUTE(SUBSTITUTE(SUBSTITUTE(SUBSTITUTE(SUBSTITUTE(SUBSTITUTE(SUBSTITUTE(SUBSTITUTE(SUBSTITUTE(SUBSTITUTE(Y152,$ED152,$ED$2&ROW($ED152)),$EC152,$EC$2&ROW($EC152)),$EB152,$EB$2&ROW($EB152)),$EA152,$EA$2&ROW($EA152)),$DZ152,$DZ$2&ROW($DZ152)),$DY152,$DY$2&ROW($DY152)),$DX152,$DX$2&ROW($DX152)),$DW152,$DW$2&ROW($DW152)),$DV152,$DV$2&ROW($DV152)),$DU152,$DU$2&ROW($DU152)),$DT152,$DT$2&ROW($DT152)),$DS152,$DS$2&ROW($DS152)))","v":0},{"$f":"IF(Z152=\"\",0,\"X=\"&SUBSTITUTE(SUBSTITUTE(SUBSTITUTE(SUBSTITUTE(SUBSTITUTE(SUBSTITUTE(SUBSTITUTE(SUBSTITUTE(SUBSTITUTE(SUBSTITUTE(SUBSTITUTE(SUBSTITUTE(Z152,$ED152,$ED$2&ROW($ED152)),$EC152,$EC$2&ROW($EC152)),$EB152,$EB$2&ROW($EB152)),$EA152,$EA$2&ROW($EA152)),$DZ152,$DZ$2&ROW($DZ152)),$DY152,$DY$2&ROW($DY152)),$DX152,$DX$2&ROW($DX152)),$DW152,$DW$2&ROW($DW152)),$DV152,$DV$2&ROW($DV152)),$DU152,$DU$2&ROW($DU152)),$DT152,$DT$2&ROW($DT152)),$DS152,$DS$2&ROW($DS152)))","v":0},{"$f":"IF(AA152=\"\",0,\"X=\"&SUBSTITUTE(SUBSTITUTE(SUBSTITUTE(SUBSTITUTE(SUBSTITUTE(SUBSTITUTE(SUBSTITUTE(SUBSTITUTE(SUBSTITUTE(SUBSTITUTE(SUBSTITUTE(SUBSTITUTE(AA152,$ED152,$ED$2&ROW($ED152)),$EC152,$EC$2&ROW($EC152)),$EB152,$EB$2&ROW($EB152)),$EA152,$EA$2&ROW($EA152)),$DZ152,$DZ$2&ROW($DZ152)),$DY152,$DY$2&ROW($DY152)),$DX152,$DX$2&ROW($DX152)),$DW152,$DW$2&ROW($DW152)),$DV152,$DV$2&ROW($DV152)),$DU152,$DU$2&ROW($DU152)),$DT152,$DT$2&ROW($DT152)),$DS152,$DS$2&ROW($DS152)))","v":0},{"$f":"IF(AB152=\"\",0,\"X=\"&SUBSTITUTE(SUBSTITUTE(SUBSTITUTE(SUBSTITUTE(SUBSTITUTE(SUBSTITUTE(SUBSTITUTE(SUBSTITUTE(SUBSTITUTE(SUBSTITUTE(SUBSTITUTE(SUBSTITUTE(AB152,$ED152,$ED$2&ROW($ED152)),$EC152,$EC$2&ROW($EC152)),$EB152,$EB$2&ROW($EB152)),$EA152,$EA$2&ROW($EA152)),$DZ152,$DZ$2&ROW($DZ152)),$DY152,$DY$2&ROW($DY152)),$DX152,$DX$2&ROW($DX152)),$DW152,$DW$2&ROW($DW152)),$DV152,$DV$2&ROW($DV152)),$DU152,$DU$2&ROW($DU152)),$DT152,$DT$2&ROW($DT152)),$DS152,$DS$2&ROW($DS152)))","v":0},null,null,"{Factor:WinterCF}","{Factor:SummerCF}",{"$f":"IFERROR(INDEX($EG152:$IV152,MATCH(0,COUNTIF($DR152:DT152,$EG152:$IV152),0)),\"\")","v":"{Type}"},{"$f":"IFERROR(INDEX($EG152:$IV152,MATCH(0,COUNTIF($DR152:DU152,$EG152:$IV152),0)),\"\")","v":"{Measure:Quantity}"},{"$f":"IFERROR(INDEX($EG152:$IV152,MATCH(0,COUNTIF($DR152:DV152,$EG152:$IV152),0)),\"\")","v":"{Controlled HP}"},{"$f":"IFERROR(INDEX($EG152:$IV152,MATCH(0,COUNTIF($DR152:DW152,$EG152:$IV152),0)),\"\")","v":""},{"$f":"IFERROR(INDEX($EG152:$IV152,MATCH(0,COUNTIF($DR152:DX152,$EG152:$IV152),0)),\"\")","v":""},{"$f":"IFERROR(INDEX($EG152:$IV152,MATCH(0,COUNTIF($DR152:DY152,$EG152:$IV152),0)),\"\")","v":""},{"$f":"IFERROR(INDEX($EG152:$IV152,MATCH(0,COUNTIF($DR152:DZ152,$EG152:$IV152),0)),\"\")","v":""},{"$f":"IFERROR(INDEX($EG152:$IV152,MATCH(0,COUNTIF($DR152:EA152,$EG152:$IV152),0)),\"\")","v":""},{"$f":"IFERROR(INDEX($EG152:$IV152,MATCH(0,COUNTIF($DR152:EB152,$EG152:$IV152),0)),\"\")","v":""},{"$f":"IFERROR(INDEX($EG152:$IV152,MATCH(0,COUNTIF($DR152:EC152,$EG152:$IV152),0)),\"\")","v":""},null,null,{"$f":"IFERROR(MID($G152,FIND(CHAR(160),SUBSTITUTE($G152,\"{\",CHAR(160),EG$1)),FIND(CHAR(160),SUBSTITUTE($G152,\"}\",CHAR(160),EG$1))-FIND(CHAR(160),SUBSTITUTE($G152,\"{\",CHAR(160),EG$1))+1),\"\")","v":""},{"$f":"IFERROR(MID($G152,FIND(CHAR(160),SUBSTITUTE($G152,\"{\",CHAR(160),EH$1)),FIND(CHAR(160),SUBSTITUTE($G152,\"}\",CHAR(160),EH$1))-FIND(CHAR(160),SUBSTITUTE($G152,\"{\",CHAR(160),EH$1))+1),\"\")","v":""},{"$f":"IFERROR(MID($G152,FIND(CHAR(160),SUBSTITUTE($G152,\"{\",CHAR(160),EI$1)),FIND(CHAR(160),SUBSTITUTE($G152,\"}\",CHAR(160),EI$1))-FIND(CHAR(160),SUBSTITUTE($G152,\"{\",CHAR(160),EI$1))+1),\"\")","v":""},{"$f":"IFERROR(MID($G152,FIND(CHAR(160),SUBSTITUTE($G152,\"{\",CHAR(160),EJ$1)),FIND(CHAR(160),SUBSTITUTE($G152,\"}\",CHAR(160),EJ$1))-FIND(CHAR(160),SUBSTITUTE($G152,\"{\",CHAR(160),EJ$1))+1),\"\")","v":""},{"$f":"IFERROR(MID($G152,FIND(CHAR(160),SUBSTITUTE($G152,\"{\",CHAR(160),EK$1)),FIND(CHAR(160),SUBSTITUTE($G152,\"}\",CHAR(160),EK$1))-FIND(CHAR(160),SUBSTITUTE($G152,\"{\",CHAR(160),EK$1))+1),\"\")","v":""},{"$f":"IFERROR(MID($G152,FIND(CHAR(160),SUBSTITUTE($G152,\"{\",CHAR(160),EL$1)),FIND(CHAR(160),SUBSTITUTE($G152,\"}\",CHAR(160),EL$1))-FIND(CHAR(160),SUBSTITUTE($G152,\"{\",CHAR(160),EL$1))+1),\"\")","v":""},{"$f":"IFERROR(MID($G152,FIND(CHAR(160),SUBSTITUTE($G152,\"{\",CHAR(160),EM$1)),FIND(CHAR(160),SUBSTITUTE($G152,\"}\",CHAR(160),EM$1))-FIND(CHAR(160),SUBSTITUTE($G152,\"{\",CHAR(160),EM$1))+1),\"\")","v":""},{"$f":"IFERROR(MID($G152,FIND(CHAR(160),SUBSTITUTE($G152,\"{\",CHAR(160),EN$1)),FIND(CHAR(160),SUBSTITUTE($G152,\"}\",CHAR(160),EN$1))-FIND(CHAR(160),SUBSTITUTE($G152,\"{\",CHAR(160),EN$1))+1),\"\")","v":""},{"$f":"IFERROR(MID($G152,FIND(CHAR(160),SUBSTITUTE($G152,\"{\",CHAR(160),EO$1)),FIND(CHAR(160),SUBSTITUTE($G152,\"}\",CHAR(160),EO$1))-FIND(CHAR(160),SUBSTITUTE($G152,\"{\",CHAR(160),EO$1))+1),\"\")","v":""},{"$f":"IFERROR(MID($G152,FIND(CHAR(160),SUBSTITUTE($G152,\"{\",CHAR(160),EP$1)),FIND(CHAR(160),SUBSTITUTE($G152,\"}\",CHAR(160),EP$1))-FIND(CHAR(160),SUBSTITUTE($G152,\"{\",CHAR(160),EP$1))+1),\"\")","v":""},{"$f":"IFERROR(MID($J152,FIND(CHAR(160),SUBSTITUTE($J152,\"{\",CHAR(160),EQ$1)),FIND(CHAR(160),SUBSTITUTE($J152,\"}\",CHAR(160),EQ$1))-FIND(CHAR(160),SUBSTITUTE($J152,\"{\",CHAR(160),EQ$1))+1),\"\")","v":""},{"$f":"IFERROR(MID($J152,FIND(CHAR(160),SUBSTITUTE($J152,\"{\",CHAR(160),ER$1)),FIND(CHAR(160),SUBSTITUTE($J152,\"}\",CHAR(160),ER$1))-FIND(CHAR(160),SUBSTITUTE($J152,\"{\",CHAR(160),ER$1))+1),\"\")","v":""},{"$f":"IFERROR(MID($J152,FIND(CHAR(160),SUBSTITUTE($J152,\"{\",CHAR(160),ES$1)),FIND(CHAR(160),SUBSTITUTE($J152,\"}\",CHAR(160),ES$1))-FIND(CHAR(160),SUBSTITUTE($J152,\"{\",CHAR(160),ES$1))+1),\"\")","v":""},{"$f":"IFERROR(MID($J152,FIND(CHAR(160),SUBSTITUTE($J152,\"{\",CHAR(160),ET$1)),FIND(CHAR(160),SUBSTITUTE($J152,\"}\",CHAR(160),ET$1))-FIND(CHAR(160),SUBSTITUTE($J152,\"{\",CHAR(160),ET$1))+1),\"\")","v":""},{"$f":"IFERROR(MID($J152,FIND(CHAR(160),SUBSTITUTE($J152,\"{\",CHAR(160),EU$1)),FIND(CHAR(160),SUBSTITUTE($J152,\"}\",CHAR(160),EU$1))-FIND(CHAR(160),SUBSTITUTE($J152,\"{\",CHAR(160),EU$1))+1),\"\")","v":""},{"$f":"IFERROR(MID($J152,FIND(CHAR(160),SUBSTITUTE($J152,\"{\",CHAR(160),EV$1)),FIND(CHAR(160),SUBSTITUTE($J152,\"}\",CHAR(160),EV$1))-FIND(CHAR(160),SUBSTITUTE($J152,\"{\",CHAR(160),EV$1))+1),\"\")","v":""},{"$f":"IFERROR(MID($J152,FIND(CHAR(160),SUBSTITUTE($J152,\"{\",CHAR(160),EW$1)),FIND(CHAR(160),SUBSTITUTE($J152,\"}\",CHAR(160),EW$1))-FIND(CHAR(160),SUBSTITUTE($J152,\"{\",CHAR(160),EW$1))+1),\"\")","v":""},{"$f":"IFERROR(MID($J152,FIND(CHAR(160),SUBSTITUTE($J152,\"{\",CHAR(160),EX$1)),FIND(CHAR(160),SUBSTITUTE($J152,\"}\",CHAR(160),EX$1))-FIND(CHAR(160),SUBSTITUTE($J152,\"{\",CHAR(160),EX$1))+1),\"\")","v":""},{"$f":"IFERROR(MID($J152,FIND(CHAR(160),SUBSTITUTE($J152,\"{\",CHAR(160),EY$1)),FIND(CHAR(160),SUBSTITUTE($J152,\"}\",CHAR(160),EY$1))-FIND(CHAR(160),SUBSTITUTE($J152,\"{\",CHAR(160),EY$1))+1),\"\")","v":""},{"$f":"IFERROR(MID($J152,FIND(CHAR(160),SUBSTITUTE($J152,\"{\",CHAR(160),EZ$1)),FIND(CHAR(160),SUBSTITUTE($J152,\"}\",CHAR(160),EZ$1))-FIND(CHAR(160),SUBSTITUTE($J152,\"{\",CHAR(160),EZ$1))+1),\"\")","v":""},{"$f":"IFERROR(MID($J152,FIND(CHAR(160),SUBSTITUTE($J152,\"{\",CHAR(160),FA$1)),FIND(CHAR(160),SUBSTITUTE($J152,\"}\",CHAR(160),FA$1))-FIND(CHAR(160),SUBSTITUTE($J152,\"{\",CHAR(160),FA$1))+1),\"\")","v":""},{"$f":"IFERROR(MID($J152,FIND(CHAR(160),SUBSTITUTE($J152,\"{\",CHAR(160),FB$1)),FIND(CHAR(160),SUBSTITUTE($J152,\"}\",CHAR(160),FB$1))-FIND(CHAR(160),SUBSTITUTE($J152,\"{\",CHAR(160),FB$1))+1),\"\")","v":""},{"$f":"IFERROR(MID($O152,FIND(CHAR(160),SUBSTITUTE($O152,\"{\",CHAR(160),FC$1)),FIND(CHAR(160),SUBSTITUTE($O152,\"}\",CHAR(160),FC$1))-FIND(CHAR(160),SUBSTITUTE($O152,\"{\",CHAR(160),FC$1))+1),\"\")","v":"{Type}"},{"$f":"IFERROR(MID($O152,FIND(CHAR(160),SUBSTITUTE($O152,\"{\",CHAR(160),FD$1)),FIND(CHAR(160),SUBSTITUTE($O152,\"}\",CHAR(160),FD$1))-FIND(CHAR(160),SUBSTITUTE($O152,\"{\",CHAR(160),FD$1))+1),\"\")","v":""},{"$f":"IFERROR(MID($O152,FIND(CHAR(160),SUBSTITUTE($O152,\"{\",CHAR(160),FE$1)),FIND(CHAR(160),SUBSTITUTE($O152,\"}\",CHAR(160),FE$1))-FIND(CHAR(160),SUBSTITUTE($O152,\"{\",CHAR(160),FE$1))+1),\"\")","v":""},{"$f":"IFERROR(MID($O152,FIND(CHAR(160),SUBSTITUTE($O152,\"{\",CHAR(160),FF$1)),FIND(CHAR(160),SUBSTITUTE($O152,\"}\",CHAR(160),FF$1))-FIND(CHAR(160),SUBSTITUTE($O152,\"{\",CHAR(160),FF$1))+1),\"\")","v":""},{"$f":"IFERROR(MID($O152,FIND(CHAR(160),SUBSTITUTE($O152,\"{\",CHAR(160),FG$1)),FIND(CHAR(160),SUBSTITUTE($O152,\"}\",CHAR(160),FG$1))-FIND(CHAR(160),SUBSTITUTE($O152,\"{\",CHAR(160),FG$1))+1),\"\")","v":""},{"$f":"IFERROR(MID($O152,FIND(CHAR(160),SUBSTITUTE($O152,\"{\",CHAR(160),FH$1)),FIND(CHAR(160),SUBSTITUTE($O152,\"}\",CHAR(160),FH$1))-FIND(CHAR(160),SUBSTITUTE($O152,\"{\",CHAR(160),FH$1))+1),\"\")","v":""},{"$f":"IFERROR(MID($O152,FIND(CHAR(160),SUBSTITUTE($O152,\"{\",CHAR(160),FI$1)),FIND(CHAR(160),SUBSTITUTE($O152,\"}\",CHAR(160),FI$1))-FIND(CHAR(160),SUBSTITUTE($O152,\"{\",CHAR(160),FI$1))+1),\"\")","v":""},{"$f":"IFERROR(MID($O152,FIND(CHAR(160),SUBSTITUTE($O152,\"{\",CHAR(160),FJ$1)),FIND(CHAR(160),SUBSTITUTE($O152,\"}\",CHAR(160),FJ$1))-FIND(CHAR(160),SUBSTITUTE($O152,\"{\",CHAR(160),FJ$1))+1),\"\")","v":""},{"$f":"IFERROR(MID($O152,FIND(CHAR(160),SUBSTITUTE($O152,\"{\",CHAR(160),FK$1)),FIND(CHAR(160),SUBSTITUTE($O152,\"}\",CHAR(160),FK$1))-FIND(CHAR(160),SUBSTITUTE($O152,\"{\",CHAR(160),FK$1))+1),\"\")","v":"{Measure:Quantity}"},{"$f":"IFERROR(MID($O152,FIND(CHAR(160),SUBSTITUTE($O152,\"{\",CHAR(160),FL$1)),FIND(CHAR(160),SUBSTITUTE($O152,\"}\",CHAR(160),FL$1))-FIND(CHAR(160),SUBSTITUTE($O152,\"{\",CHAR(160),FL$1))+1),\"\")","v":"{Controlled HP}"},{"$f":"IFERROR(MID($R152,FIND(CHAR(160),SUBSTITUTE($R152,\"{\",CHAR(160),FM$1)),FIND(CHAR(160),SUBSTITUTE($R152,\"}\",CHAR(160),FM$1))-FIND(CHAR(160),SUBSTITUTE($R152,\"{\",CHAR(160),FM$1))+1),\"\")","v":"{Type}"},{"$f":"IFERROR(MID($R152,FIND(CHAR(160),SUBSTITUTE($R152,\"{\",CHAR(160),FN$1)),FIND(CHAR(160),SUBSTITUTE($R152,\"}\",CHAR(160),FN$1))-FIND(CHAR(160),SUBSTITUTE($R152,\"{\",CHAR(160),FN$1))+1),\"\")","v":""},{"$f":"IFERROR(MID($R152,FIND(CHAR(160),SUBSTITUTE($R152,\"{\",CHAR(160),FO$1)),FIND(CHAR(160),SUBSTITUTE($R152,\"}\",CHAR(160),FO$1))-FIND(CHAR(160),SUBSTITUTE($R152,\"{\",CHAR(160),FO$1))+1),\"\")","v":""},{"$f":"IFERROR(MID($R152,FIND(CHAR(160),SUBSTITUTE($R152,\"{\",CHAR(160),FP$1)),FIND(CHAR(160),SUBSTITUTE($R152,\"}\",CHAR(160),FP$1))-FIND(CHAR(160),SUBSTITUTE($R152,\"{\",CHAR(160),FP$1))+1),\"\")","v":""},{"$f":"IFERROR(MID($R152,FIND(CHAR(160),SUBSTITUTE($R152,\"{\",CHAR(160),FQ$1)),FIND(CHAR(160),SUBSTITUTE($R152,\"}\",CHAR(160),FQ$1))-FIND(CHAR(160),SUBSTITUTE($R152,\"{\",CHAR(160),FQ$1))+1),\"\")","v":""},{"$f":"IFERROR(MID($R152,FIND(CHAR(160),SUBSTITUTE($R152,\"{\",CHAR(160),FR$1)),FIND(CHAR(160),SUBSTITUTE($R152,\"}\",CHAR(160),FR$1))-FIND(CHAR(160),SUBSTITUTE($R152,\"{\",CHAR(160),FR$1))+1),\"\")","v":""},{"$f":"IFERROR(MID($R152,FIND(CHAR(160),SUBSTITUTE($R152,\"{\",CHAR(160),FS$1)),FIND(CHAR(160),SUBSTITUTE($R152,\"}\",CHAR(160),FS$1))-FIND(CHAR(160),SUBSTITUTE($R152,\"{\",CHAR(160),FS$1))+1),\"\")","v":""},{"$f":"IFERROR(MID($R152,FIND(CHAR(160),SUBSTITUTE($R152,\"{\",CHAR(160),FT$1)),FIND(CHAR(160),SUBSTITUTE($R152,\"}\",CHAR(160),FT$1))-FIND(CHAR(160),SUBSTITUTE($R152,\"{\",CHAR(160),FT$1))+1),\"\")","v":""},{"$f":"IFERROR(MID($R152,FIND(CHAR(160),SUBSTITUTE($R152,\"{\",CHAR(160),FU$1)),FIND(CHAR(160),SUBSTITUTE($R152,\"}\",CHAR(160),FU$1))-FIND(CHAR(160),SUBSTITUTE($R152,\"{\",CHAR(160),FU$1))+1),\"\")","v":"{Measure:Quantity}"},{"$f":"IFERROR(MID($R152,FIND(CHAR(160),SUBSTITUTE($R152,\"{\",CHAR(160),FV$1)),FIND(CHAR(160),SUBSTITUTE($R152,\"}\",CHAR(160),FV$1))-FIND(CHAR(160),SUBSTITUTE($R152,\"{\",CHAR(160),FV$1))+1),\"\")","v":"{Controlled HP}"},{"$f":"IFERROR(MID($U152,FIND(CHAR(160),SUBSTITUTE($U152,\"{\",CHAR(160),FW$1)),FIND(CHAR(160),SUBSTITUTE($U152,\"}\",CHAR(160),FW$1))-FIND(CHAR(160),SUBSTITUTE($U152,\"{\",CHAR(160),FW$1))+1),\"\")","v":"{Type}"},{"$f":"IFERROR(MID($U152,FIND(CHAR(160),SUBSTITUTE($U152,\"{\",CHAR(160),FX$1)),FIND(CHAR(160),SUBSTITUTE($U152,\"}\",CHAR(160),FX$1))-FIND(CHAR(160),SUBSTITUTE($U152,\"{\",CHAR(160),FX$1))+1),\"\")","v":"{Factor:WinterCF}"},{"$f":"IFERROR(MID($U152,FIND(CHAR(160),SUBSTITUTE($U152,\"{\",CHAR(160),FY$1)),FIND(CHAR(160),SUBSTITUTE($U152,\"}\",CHAR(160),FY$1))-FIND(CHAR(160),SUBSTITUTE($U152,\"{\",CHAR(160),FY$1))+1),\"\")","v":""},{"$f":"IFERROR(MID($U152,FIND(CHAR(160),SUBSTITUTE($U152,\"{\",CHAR(160),FZ$1)),FIND(CHAR(160),SUBSTITUTE($U152,\"}\",CHAR(160),FZ$1))-FIND(CHAR(160),SUBSTITUTE($U152,\"{\",CHAR(160),FZ$1))+1),\"\")","v":""},{"$f":"IFERROR(MID($U152,FIND(CHAR(160),SUBSTITUTE($U152,\"{\",CHAR(160),GA$1)),FIND(CHAR(160),SUBSTITUTE($U152,\"}\",CHAR(160),GA$1))-FIND(CHAR(160),SUBSTITUTE($U152,\"{\",CHAR(160),GA$1))+1),\"\")","v":""},{"$f":"IFERROR(MID($U152,FIND(CHAR(160),SUBSTITUTE($U152,\"{\",CHAR(160),GB$1)),FIND(CHAR(160),SUBSTITUTE($U152,\"}\",CHAR(160),GB$1))-FIND(CHAR(160),SUBSTITUTE($U152,\"{\",CHAR(160),GB$1))+1),\"\")","v":""},{"$f":"IFERROR(MID($U152,FIND(CHAR(160),SUBSTITUTE($U152,\"{\",CHAR(160),GC$1)),FIND(CHAR(160),SUBSTITUTE($U152,\"}\",CHAR(160),GC$1))-FIND(CHAR(160),SUBSTITUTE($U152,\"{\",CHAR(160),GC$1))+1),\"\")","v":""},{"$f":"IFERROR(MID($U152,FIND(CHAR(160),SUBSTITUTE($U152,\"{\",CHAR(160),GD$1)),FIND(CHAR(160),SUBSTITUTE($U152,\"}\",CHAR(160),GD$1))-FIND(CHAR(160),SUBSTITUTE($U152,\"{\",CHAR(160),GD$1))+1),\"\")","v":""},{"$f":"IFERROR(MID($U152,FIND(CHAR(160),SUBSTITUTE($U152,\"{\",CHAR(160),GE$1)),FIND(CHAR(160),SUBSTITUTE($U152,\"}\",CHAR(160),GE$1))-FIND(CHAR(160),SUBSTITUTE($U152,\"{\",CHAR(160),GE$1))+1),\"\")","v":"{Measure:Quantity}"},{"$f":"IFERROR(MID($U152,FIND(CHAR(160),SUBSTITUTE($U152,\"{\",CHAR(160),GF$1)),FIND(CHAR(160),SUBSTITUTE($U152,\"}\",CHAR(160),GF$1))-FIND(CHAR(160),SUBSTITUTE($U152,\"{\",CHAR(160),GF$1))+1),\"\")","v":"{Controlled HP}"},{"$f":"IFERROR(MID($V152,FIND(CHAR(160),SUBSTITUTE($V152,\"{\",CHAR(160),GG$1)),FIND(CHAR(160),SUBSTITUTE($V152,\"}\",CHAR(160),GG$1))-FIND(CHAR(160),SUBSTITUTE($V152,\"{\",CHAR(160),GG$1))+1),\"\")","v":"{Type}"},{"$f":"IFERROR(MID($V152,FIND(CHAR(160),SUBSTITUTE($V152,\"{\",CHAR(160),GH$1)),FIND(CHAR(160),SUBSTITUTE($V152,\"}\",CHAR(160),GH$1))-FIND(CHAR(160),SUBSTITUTE($V152,\"{\",CHAR(160),GH$1))+1),\"\")","v":"{Factor:SummerCF}"},{"$f":"IFERROR(MID($V152,FIND(CHAR(160),SUBSTITUTE($V152,\"{\",CHAR(160),GI$1)),FIND(CHAR(160),SUBSTITUTE($V152,\"}\",CHAR(160),GI$1))-FIND(CHAR(160),SUBSTITUTE($V152,\"{\",CHAR(160),GI$1))+1),\"\")","v":""},{"$f":"IFERROR(MID($V152,FIND(CHAR(160),SUBSTITUTE($V152,\"{\",CHAR(160),GJ$1)),FIND(CHAR(160),SUBSTITUTE($V152,\"}\",CHAR(160),GJ$1))-FIND(CHAR(160),SUBSTITUTE($V152,\"{\",CHAR(160),GJ$1))+1),\"\")","v":""},{"$f":"IFERROR(MID($V152,FIND(CHAR(160),SUBSTITUTE($V152,\"{\",CHAR(160),GK$1)),FIND(CHAR(160),SUBSTITUTE($V152,\"}\",CHAR(160),GK$1))-FIND(CHAR(160),SUBSTITUTE($V152,\"{\",CHAR(160),GK$1))+1),\"\")","v":""},{"$f":"IFERROR(MID($V152,FIND(CHAR(160),SUBSTITUTE($V152,\"{\",CHAR(160),GL$1)),FIND(CHAR(160),SUBSTITUTE($V152,\"}\",CHAR(160),GL$1))-FIND(CHAR(160),SUBSTITUTE($V152,\"{\",CHAR(160),GL$1))+1),\"\")","v":""},{"$f":"IFERROR(MID($V152,FIND(CHAR(160),SUBSTITUTE($V152,\"{\",CHAR(160),GM$1)),FIND(CHAR(160),SUBSTITUTE($V152,\"}\",CHAR(160),GM$1))-FIND(CHAR(160),SUBSTITUTE($V152,\"{\",CHAR(160),GM$1))+1),\"\")","v":""},{"$f":"IFERROR(MID($V152,FIND(CHAR(160),SUBSTITUTE($V152,\"{\",CHAR(160),GN$1)),FIND(CHAR(160),SUBSTITUTE($V152,\"}\",CHAR(160),GN$1))-FIND(CHAR(160),SUBSTITUTE($V152,\"{\",CHAR(160),GN$1))+1),\"\")","v":""},{"$f":"IFERROR(MID($V152,FIND(CHAR(160),SUBSTITUTE($V152,\"{\",CHAR(160),GO$1)),FIND(CHAR(160),SUBSTITUTE($V152,\"}\",CHAR(160),GO$1))-FIND(CHAR(160),SUBSTITUTE($V152,\"{\",CHAR(160),GO$1))+1),\"\")","v":"{Measure:Quantity}"},{"$f":"IFERROR(MID($V152,FIND(CHAR(160),SUBSTITUTE($V152,\"{\",CHAR(160),GP$1)),FIND(CHAR(160),SUBSTITUTE($V152,\"}\",CHAR(160),GP$1))-FIND(CHAR(160),SUBSTITUTE($V152,\"{\",CHAR(160),GP$1))+1),\"\")","v":"{Controlled HP}"},{"$f":"IFERROR(MID($W152,FIND(CHAR(160),SUBSTITUTE($W152,\"{\",CHAR(160),GQ$1)),FIND(CHAR(160),SUBSTITUTE($W152,\"}\",CHAR(160),GQ$1))-FIND(CHAR(160),SUBSTITUTE($W152,\"{\",CHAR(160),GQ$1))+1),\"\")","v":""},{"$f":"IFERROR(MID($W152,FIND(CHAR(160),SUBSTITUTE($W152,\"{\",CHAR(160),GR$1)),FIND(CHAR(160),SUBSTITUTE($W152,\"}\",CHAR(160),GR$1))-FIND(CHAR(160),SUBSTITUTE($W152,\"{\",CHAR(160),GR$1))+1),\"\")","v":""},{"$f":"IFERROR(MID($W152,FIND(CHAR(160),SUBSTITUTE($W152,\"{\",CHAR(160),GS$1)),FIND(CHAR(160),SUBSTITUTE($W152,\"}\",CHAR(160),GS$1))-FIND(CHAR(160),SUBSTITUTE($W152,\"{\",CHAR(160),GS$1))+1),\"\")","v":""},{"$f":"IFERROR(MID($W152,FIND(CHAR(160),SUBSTITUTE($W152,\"{\",CHAR(160),GT$1)),FIND(CHAR(160),SUBSTITUTE($W152,\"}\",CHAR(160),GT$1))-FIND(CHAR(160),SUBSTITUTE($W152,\"{\",CHAR(160),GT$1))+1),\"\")","v":""},{"$f":"IFERROR(MID($W152,FIND(CHAR(160),SUBSTITUTE($W152,\"{\",CHAR(160),GU$1)),FIND(CHAR(160),SUBSTITUTE($W152,\"}\",CHAR(160),GU$1))-FIND(CHAR(160),SUBSTITUTE($W152,\"{\",CHAR(160),GU$1))+1),\"\")","v":""},{"$f":"IFERROR(MID($W152,FIND(CHAR(160),SUBSTITUTE($W152,\"{\",CHAR(160),GV$1)),FIND(CHAR(160),SUBSTITUTE($W152,\"}\",CHAR(160),GV$1))-FIND(CHAR(160),SUBSTITUTE($W152,\"{\",CHAR(160),GV$1))+1),\"\")","v":""},{"$f":"IFERROR(MID($W152,FIND(CHAR(160),SUBSTITUTE($W152,\"{\",CHAR(160),GW$1)),FIND(CHAR(160),SUBSTITUTE($W152,\"}\",CHAR(160),GW$1))-FIND(CHAR(160),SUBSTITUTE($W152,\"{\",CHAR(160),GW$1))+1),\"\")","v":""},{"$f":"IFERROR(MID($W152,FIND(CHAR(160),SUBSTITUTE($W152,\"{\",CHAR(160),GX$1)),FIND(CHAR(160),SUBSTITUTE($W152,\"}\",CHAR(160),GX$1))-FIND(CHAR(160),SUBSTITUTE($W152,\"{\",CHAR(160),GX$1))+1),\"\")","v":""},{"$f":"IFERROR(MID($W152,FIND(CHAR(160),SUBSTITUTE($W152,\"{\",CHAR(160),GY$1)),FIND(CHAR(160),SUBSTITUTE($W152,\"}\",CHAR(160),GY$1))-FIND(CHAR(160),SUBSTITUTE($W152,\"{\",CHAR(160),GY$1))+1),\"\")","v":""},{"$f":"IFERROR(MID($W152,FIND(CHAR(160),SUBSTITUTE($W152,\"{\",CHAR(160),GZ$1)),FIND(CHAR(160),SUBSTITUTE($W152,\"}\",CHAR(160),GZ$1))-FIND(CHAR(160),SUBSTITUTE($W152,\"{\",CHAR(160),GZ$1))+1),\"\")","v":""},{"$f":"IFERROR(MID($X152,FIND(CHAR(160),SUBSTITUTE($X152,\"{\",CHAR(160),HA$1)),FIND(CHAR(160),SUBSTITUTE($X152,\"}\",CHAR(160),HA$1))-FIND(CHAR(160),SUBSTITUTE($X152,\"{\",CHAR(160),HA$1))+1),\"\")","v":""},{"$f":"IFERROR(MID($X152,FIND(CHAR(160),SUBSTITUTE($X152,\"{\",CHAR(160),HB$1)),FIND(CHAR(160),SUBSTITUTE($X152,\"}\",CHAR(160),HB$1))-FIND(CHAR(160),SUBSTITUTE($X152,\"{\",CHAR(160),HB$1))+1),\"\")","v":""},{"$f":"IFERROR(MID($X152,FIND(CHAR(160),SUBSTITUTE($X152,\"{\",CHAR(160),HC$1)),FIND(CHAR(160),SUBSTITUTE($X152,\"}\",CHAR(160),HC$1))-FIND(CHAR(160),SUBSTITUTE($X152,\"{\",CHAR(160),HC$1))+1),\"\")","v":""},{"$f":"IFERROR(MID($X152,FIND(CHAR(160),SUBSTITUTE($X152,\"{\",CHAR(160),HD$1)),FIND(CHAR(160),SUBSTITUTE($X152,\"}\",CHAR(160),HD$1))-FIND(CHAR(160),SUBSTITUTE($X152,\"{\",CHAR(160),HD$1))+1),\"\")","v":""},{"$f":"IFERROR(MID($X152,FIND(CHAR(160),SUBSTITUTE($X152,\"{\",CHAR(160),HE$1)),FIND(CHAR(160),SUBSTITUTE($X152,\"}\",CHAR(160),HE$1))-FIND(CHAR(160),SUBSTITUTE($X152,\"{\",CHAR(160),HE$1))+1),\"\")","v":""},{"$f":"IFERROR(MID($X152,FIND(CHAR(160),SUBSTITUTE($X152,\"{\",CHAR(160),HF$1)),FIND(CHAR(160),SUBSTITUTE($X152,\"}\",CHAR(160),HF$1))-FIND(CHAR(160),SUBSTITUTE($X152,\"{\",CHAR(160),HF$1))+1),\"\")","v":""},{"$f":"IFERROR(MID($X152,FIND(CHAR(160),SUBSTITUTE($X152,\"{\",CHAR(160),HG$1)),FIND(CHAR(160),SUBSTITUTE($X152,\"}\",CHAR(160),HG$1))-FIND(CHAR(160),SUBSTITUTE($X152,\"{\",CHAR(160),HG$1))+1),\"\")","v":""},{"$f":"IFERROR(MID($X152,FIND(CHAR(160),SUBSTITUTE($X152,\"{\",CHAR(160),HH$1)),FIND(CHAR(160),SUBSTITUTE($X152,\"}\",CHAR(160),HH$1))-FIND(CHAR(160),SUBSTITUTE($X152,\"{\",CHAR(160),HH$1))+1),\"\")","v":""},{"$f":"IFERROR(MID($X152,FIND(CHAR(160),SUBSTITUTE($X152,\"{\",CHAR(160),HI$1)),FIND(CHAR(160),SUBSTITUTE($X152,\"}\",CHAR(160),HI$1))-FIND(CHAR(160),SUBSTITUTE($X152,\"{\",CHAR(160),HI$1))+1),\"\")","v":""},{"$f":"IFERROR(MID($X152,FIND(CHAR(160),SUBSTITUTE($X152,\"{\",CHAR(160),HJ$1)),FIND(CHAR(160),SUBSTITUTE($X152,\"}\",CHAR(160),HJ$1))-FIND(CHAR(160),SUBSTITUTE($X152,\"{\",CHAR(160),HJ$1))+1),\"\")","v":""},{"$f":"IFERROR(MID($Y152,FIND(CHAR(160),SUBSTITUTE($Y152,\"{\",CHAR(160),HK$1)),FIND(CHAR(160),SUBSTITUTE($Y152,\"}\",CHAR(160),HK$1))-FIND(CHAR(160),SUBSTITUTE($Y152,\"{\",CHAR(160),HK$1))+1),\"\")","v":""},{"$f":"IFERROR(MID($Y152,FIND(CHAR(160),SUBSTITUTE($Y152,\"{\",CHAR(160),HL$1)),FIND(CHAR(160),SUBSTITUTE($Y152,\"}\",CHAR(160),HL$1))-FIND(CHAR(160),SUBSTITUTE($Y152,\"{\",CHAR(160),HL$1))+1),\"\")","v":""},{"$f":"IFERROR(MID($Y152,FIND(CHAR(160),SUBSTITUTE($Y152,\"{\",CHAR(160),HM$1)),FIND(CHAR(160),SUBSTITUTE($Y152,\"}\",CHAR(160),HM$1))-FIND(CHAR(160),SUBSTITUTE($Y152,\"{\",CHAR(160),HM$1))+1),\"\")","v":""},{"$f":"IFERROR(MID($Y152,FIND(CHAR(160),SUBSTITUTE($Y152,\"{\",CHAR(160),HN$1)),FIND(CHAR(160),SUBSTITUTE($Y152,\"}\",CHAR(160),HN$1))-FIND(CHAR(160),SUBSTITUTE($Y152,\"{\",CHAR(160),HN$1))+1),\"\")","v":""},{"$f":"IFERROR(MID($Y152,FIND(CHAR(160),SUBSTITUTE($Y152,\"{\",CHAR(160),HO$1)),FIND(CHAR(160),SUBSTITUTE($Y152,\"}\",CHAR(160),HO$1))-FIND(CHAR(160),SUBSTITUTE($Y152,\"{\",CHAR(160),HO$1))+1),\"\")","v":""},{"$f":"IFERROR(MID($Y152,FIND(CHAR(160),SUBSTITUTE($Y152,\"{\",CHAR(160),HP$1)),FIND(CHAR(160),SUBSTITUTE($Y152,\"}\",CHAR(160),HP$1))-FIND(CHAR(160),SUBSTITUTE($Y152,\"{\",CHAR(160),HP$1))+1),\"\")","v":""},{"$f":"IFERROR(MID($Y152,FIND(CHAR(160),SUBSTITUTE($Y152,\"{\",CHAR(160),HQ$1)),FIND(CHAR(160),SUBSTITUTE($Y152,\"}\",CHAR(160),HQ$1))-FIND(CHAR(160),SUBSTITUTE($Y152,\"{\",CHAR(160),HQ$1))+1),\"\")","v":""},{"$f":"IFERROR(MID($Y152,FIND(CHAR(160),SUBSTITUTE($Y152,\"{\",CHAR(160),HR$1)),FIND(CHAR(160),SUBSTITUTE($Y152,\"}\",CHAR(160),HR$1))-FIND(CHAR(160),SUBSTITUTE($Y152,\"{\",CHAR(160),HR$1))+1),\"\")","v":""},{"$f":"IFERROR(MID($Y152,FIND(CHAR(160),SUBSTITUTE($Y152,\"{\",CHAR(160),HS$1)),FIND(CHAR(160),SUBSTITUTE($Y152,\"}\",CHAR(160),HS$1))-FIND(CHAR(160),SUBSTITUTE($Y152,\"{\",CHAR(160),HS$1))+1),\"\")","v":""},{"$f":"IFERROR(MID($Y152,FIND(CHAR(160),SUBSTITUTE($Y152,\"{\",CHAR(160),HT$1)),FIND(CHAR(160),SUBSTITUTE($Y152,\"}\",CHAR(160),HT$1))-FIND(CHAR(160),SUBSTITUTE($Y152,\"{\",CHAR(160),HT$1))+1),\"\")","v":""},{"$f":"IFERROR(MID($Z152,FIND(CHAR(160),SUBSTITUTE($Z152,\"{\",CHAR(160),HU$1)),FIND(CHAR(160),SUBSTITUTE($Z152,\"}\",CHAR(160),HU$1))-FIND(CHAR(160),SUBSTITUTE($Z152,\"{\",CHAR(160),HU$1))+1),\"\")","v":""},{"$f":"IFERROR(MID($Z152,FIND(CHAR(160),SUBSTITUTE($Z152,\"{\",CHAR(160),HV$1)),FIND(CHAR(160),SUBSTITUTE($Z152,\"}\",CHAR(160),HV$1))-FIND(CHAR(160),SUBSTITUTE($Z152,\"{\",CHAR(160),HV$1))+1),\"\")","v":""},{"$f":"IFERROR(MID($Z152,FIND(CHAR(160),SUBSTITUTE($Z152,\"{\",CHAR(160),HW$1)),FIND(CHAR(160),SUBSTITUTE($Z152,\"}\",CHAR(160),HW$1))-FIND(CHAR(160),SUBSTITUTE($Z152,\"{\",CHAR(160),HW$1))+1),\"\")","v":""},{"$f":"IFERROR(MID($Z152,FIND(CHAR(160),SUBSTITUTE($Z152,\"{\",CHAR(160),HX$1)),FIND(CHAR(160),SUBSTITUTE($Z152,\"}\",CHAR(160),HX$1))-FIND(CHAR(160),SUBSTITUTE($Z152,\"{\",CHAR(160),HX$1))+1),\"\")","v":""},{"$f":"IFERROR(MID($Z152,FIND(CHAR(160),SUBSTITUTE($Z152,\"{\",CHAR(160),HY$1)),FIND(CHAR(160),SUBSTITUTE($Z152,\"}\",CHAR(160),HY$1))-FIND(CHAR(160),SUBSTITUTE($Z152,\"{\",CHAR(160),HY$1))+1),\"\")","v":""},{"$f":"IFERROR(MID($Z152,FIND(CHAR(160),SUBSTITUTE($Z152,\"{\",CHAR(160),HZ$1)),FIND(CHAR(160),SUBSTITUTE($Z152,\"}\",CHAR(160),HZ$1))-FIND(CHAR(160),SUBSTITUTE($Z152,\"{\",CHAR(160),HZ$1))+1),\"\")","v":""},{"$f":"IFERROR(MID($Z152,FIND(CHAR(160),SUBSTITUTE($Z152,\"{\",CHAR(160),IA$1)),FIND(CHAR(160),SUBSTITUTE($Z152,\"}\",CHAR(160),IA$1))-FIND(CHAR(160),SUBSTITUTE($Z152,\"{\",CHAR(160),IA$1))+1),\"\")","v":""},{"$f":"IFERROR(MID($Z152,FIND(CHAR(160),SUBSTITUTE($Z152,\"{\",CHAR(160),IB$1)),FIND(CHAR(160),SUBSTITUTE($Z152,\"}\",CHAR(160),IB$1))-FIND(CHAR(160),SUBSTITUTE($Z152,\"{\",CHAR(160),IB$1))+1),\"\")","v":""},{"$f":"IFERROR(MID($Z152,FIND(CHAR(160),SUBSTITUTE($Z152,\"{\",CHAR(160),IC$1)),FIND(CHAR(160),SUBSTITUTE($Z152,\"}\",CHAR(160),IC$1))-FIND(CHAR(160),SUBSTITUTE($Z152,\"{\",CHAR(160),IC$1))+1),\"\")","v":""},{"$f":"IFERROR(MID($Z152,FIND(CHAR(160),SUBSTITUTE($Z152,\"{\",CHAR(160),ID$1)),FIND(CHAR(160),SUBSTITUTE($Z152,\"}\",CHAR(160),ID$1))-FIND(CHAR(160),SUBSTITUTE($Z152,\"{\",CHAR(160),ID$1))+1),\"\")","v":""},{"$f":"IFERROR(MID($AA152,FIND(CHAR(160),SUBSTITUTE($AA152,\"{\",CHAR(160),IE$1)),FIND(CHAR(160),SUBSTITUTE($AA152,\"}\",CHAR(160),IE$1))-FIND(CHAR(160),SUBSTITUTE($AA152,\"{\",CHAR(160),IE$1))+1),\"\")","v":""},{"$f":"IFERROR(MID($AA152,FIND(CHAR(160),SUBSTITUTE($AA152,\"{\",CHAR(160),IF$1)),FIND(CHAR(160),SUBSTITUTE($AA152,\"}\",CHAR(160),IF$1))-FIND(CHAR(160),SUBSTITUTE($AA152,\"{\",CHAR(160),IF$1))+1),\"\")","v":""},{"$f":"IFERROR(MID($AA152,FIND(CHAR(160),SUBSTITUTE($AA152,\"{\",CHAR(160),IG$1)),FIND(CHAR(160),SUBSTITUTE($AA152,\"}\",CHAR(160),IG$1))-FIND(CHAR(160),SUBSTITUTE($AA152,\"{\",CHAR(160),IG$1))+1),\"\")","v":""},{"$f":"IFERROR(MID($AA152,FIND(CHAR(160),SUBSTITUTE($AA152,\"{\",CHAR(160),IH$1)),FIND(CHAR(160),SUBSTITUTE($AA152,\"}\",CHAR(160),IH$1))-FIND(CHAR(160),SUBSTITUTE($AA152,\"{\",CHAR(160),IH$1))+1),\"\")","v":""},{"$f":"IFERROR(MID($AA152,FIND(CHAR(160),SUBSTITUTE($AA152,\"{\",CHAR(160),II$1)),FIND(CHAR(160),SUBSTITUTE($AA152,\"}\",CHAR(160),II$1))-FIND(CHAR(160),SUBSTITUTE($AA152,\"{\",CHAR(160),II$1))+1),\"\")","v":""},{"$f":"IFERROR(MID($AA152,FIND(CHAR(160),SUBSTITUTE($AA152,\"{\",CHAR(160),IJ$1)),FIND(CHAR(160),SUBSTITUTE($AA152,\"}\",CHAR(160),IJ$1))-FIND(CHAR(160),SUBSTITUTE($AA152,\"{\",CHAR(160),IJ$1))+1),\"\")","v":""},{"$f":"IFERROR(MID($AA152,FIND(CHAR(160),SUBSTITUTE($AA152,\"{\",CHAR(160),IK$1)),FIND(CHAR(160),SUBSTITUTE($AA152,\"}\",CHAR(160),IK$1))-FIND(CHAR(160),SUBSTITUTE($AA152,\"{\",CHAR(160),IK$1))+1),\"\")","v":""},{"$f":"IFERROR(MID($AA152,FIND(CHAR(160),SUBSTITUTE($AA152,\"{\",CHAR(160),IL$1)),FIND(CHAR(160),SUBSTITUTE($AA152,\"}\",CHAR(160),IL$1))-FIND(CHAR(160),SUBSTITUTE($AA152,\"{\",CHAR(160),IL$1))+1),\"\")","v":""},{"$f":"IFERROR(MID($AA152,FIND(CHAR(160),SUBSTITUTE($AA152,\"{\",CHAR(160),IM$1)),FIND(CHAR(160),SUBSTITUTE($AA152,\"}\",CHAR(160),IM$1))-FIND(CHAR(160),SUBSTITUTE($AA152,\"{\",CHAR(160),IM$1))+1),\"\")","v":""},{"$f":"IFERROR(MID($AA152,FIND(CHAR(160),SUBSTITUTE($AA152,\"{\",CHAR(160),IN$1)),FIND(CHAR(160),SUBSTITUTE($AA152,\"}\",CHAR(160),IN$1))-FIND(CHAR(160),SUBSTITUTE($AA152,\"{\",CHAR(160),IN$1))+1),\"\")","v":""},{"$f":"IFERROR(MID($AB152,FIND(CHAR(160),SUBSTITUTE($AB152,\"{\",CHAR(160),IO$1)),FIND(CHAR(160),SUBSTITUTE($AB152,\"}\",CHAR(160),IO$1))-FIND(CHAR(160),SUBSTITUTE($AB152,\"{\",CHAR(160),IO$1))+1),\"\")","v":""},{"$f":"IFERROR(MID($AB152,FIND(CHAR(160),SUBSTITUTE($AB152,\"{\",CHAR(160),IP$1)),FIND(CHAR(160),SUBSTITUTE($AB152,\"}\",CHAR(160),IP$1))-FIND(CHAR(160),SUBSTITUTE($AB152,\"{\",CHAR(160),IP$1))+1),\"\")","v":""},{"$f":"IFERROR(MID($AB152,FIND(CHAR(160),SUBSTITUTE($AB152,\"{\",CHAR(160),IQ$1)),FIND(CHAR(160),SUBSTITUTE($AB152,\"}\",CHAR(160),IQ$1))-FIND(CHAR(160),SUBSTITUTE($AB152,\"{\",CHAR(160),IQ$1))+1),\"\")","v":""},{"$f":"IFERROR(MID($AB152,FIND(CHAR(160),SUBSTITUTE($AB152,\"{\",CHAR(160),IR$1)),FIND(CHAR(160),SUBSTITUTE($AB152,\"}\",CHAR(160),IR$1))-FIND(CHAR(160),SUBSTITUTE($AB152,\"{\",CHAR(160),IR$1))+1),\"\")","v":""},{"$f":"IFERROR(MID($AB152,FIND(CHAR(160),SUBSTITUTE($AB152,\"{\",CHAR(160),IS$1)),FIND(CHAR(160),SUBSTITUTE($AB152,\"}\",CHAR(160),IS$1))-FIND(CHAR(160),SUBSTITUTE($AB152,\"{\",CHAR(160),IS$1))+1),\"\")","v":""},{"$f":"IFERROR(MID($AB152,FIND(CHAR(160),SUBSTITUTE($AB152,\"{\",CHAR(160),IT$1)),FIND(CHAR(160),SUBSTITUTE($AB152,\"}\",CHAR(160),IT$1))-FIND(CHAR(160),SUBSTITUTE($AB152,\"{\",CHAR(160),IT$1))+1),\"\")","v":""},{"$f":"IFERROR(MID($AB152,FIND(CHAR(160),SUBSTITUTE($AB152,\"{\",CHAR(160),IU$1)),FIND(CHAR(160),SUBSTITUTE($AB152,\"}\",CHAR(160),IU$1))-FIND(CHAR(160),SUBSTITUTE($AB152,\"{\",CHAR(160),IU$1))+1),\"\")","v":""},{"$f":"IFERROR(MID($AB152,FIND(CHAR(160),SUBSTITUTE($AB152,\"{\",CHAR(160),IV$1)),FIND(CHAR(160),SUBSTITUTE($AB152,\"}\",CHAR(160),IV$1))-FIND(CHAR(160),SUBSTITUTE($AB152,\"{\",CHAR(160),IV$1))+1),\"\")","v":""},{"$f":"IFERROR(MID($AB152,FIND(CHAR(160),SUBSTITUTE($AB152,\"{\",CHAR(160),IW$1)),FIND(CHAR(160),SUBSTITUTE($AB152,\"}\",CHAR(160),IW$1))-FIND(CHAR(160),SUBSTITUTE($AB152,\"{\",CHAR(160),IW$1))+1),\"\")","v":""},{"$f":"IFERROR(MID($AB152,FIND(CHAR(160),SUBSTITUTE($AB152,\"{\",CHAR(160),IX$1)),FIND(CHAR(160),SUBSTITUTE($AB152,\"}\",CHAR(160),IX$1))-FIND(CHAR(160),SUBSTITUTE($AB152,\"{\",CHAR(160),IX$1))+1),\"\")","v":""},null,{"$f":"10-COUNTIF(DU152:ED152,\"\")","v":3}]
["C&I Refrigeration Solutions","R25 Strip Curtains","R25","2021-07-01","2022-06-30","Calculated","10.22*{Area Sq. Ft}",0,"Calculated","10*{Area Sq. Ft}",0,"2020-11-01","2022-06-30","Calculated","{Measure:Quantity} * ({Space Type} * {Area Sq. Ft} )",1E-4,null,"{Measure:Quantity} * ({Space Type} * {Area Sq. Ft})/8760",null,null,"{Measure:Quantity} * ({Space Type} * {Area Sq. Ft})/8760 * {Factor:WinterCF}","{Measure:Quantity} * ({Space Type} * {Area Sq. Ft})/8760* {Factor:SummerCF}",null,null,null,null,null,null,"2020-11-01","2022-06-30",4,0.50900000000000001,0.74,0.33,0.32600000000000001,0.17,0.17399999999999999,1,1.1220000000000001,1,0.52,1.6E-2,null,{"$f":"DU153","v":"{Area Sq. Ft}"},21,{"$f":"DV153","v":"{Measure:Quantity}"},1,{"$f":"DW153","v":"{Space Type}"},123,{"$f":"DX153","v":""},null,{"$f":"DY153","v":""},null,{"$f":"DZ153","v":""},null,{"$f":"EA153","v":""},null,{"$f":"EB153","v":""},null,{"$f":"EC153","v":""},null,{"$f":"ED153","v":""},null,{"$f":"AU153 * (AW153 * AS153 )","v":2583},{"$f":"0.0001","v":1E-4},0,{"$f":"AU153 * (AW153 * AS153)/8760","v":0.29486301369863016},0,0,{"$f":"AU153 * (AW153 * AS153)/8760 * AF153","v":0.15008527397260277},{"$f":"AU153 * (AW153 * AS153)/8760* AG153","v":0.21819863013698632},0,0,0,0,0,0,null,"Res","Default DR",{"$f":"Benefits(BL153,BR153,BS153,BT153,BU153,BV153,BW153,BX153,BY153,BZ153,AE153,AH153,AI153,AJ153,AK153,AL153,AM153,AN153,AO153,AP153,CA153,CB153)","v":1312.4630305682667},299.72379047376648,0,0,0,0,0,0,0,{"$f":"SUMPRODUCT(CC153:CK153,--(CC153:CK153>0))","v":1612.1868210420332},{"$f":"-SUMPRODUCT(CC153:CK153,--(CC153:CK153<0))","v":0},null,{"$f":"10.22*AS153","v":214.62},null,null,{"$f":"CM153+CO153","v":214.62},{"$f":"IF(NetOrGross=\"Net\",(1-AO153+AP153),1)","v":1},{"$f":"(SUMPRODUCT(CC153:CJ153,--(CC153:CJ153>0))+CN153)*CS153/((-SUMPRODUCT(CC153:CJ153,--(CC153:CJ153<0))+MAX(CO153,CV153)+CP153+CQ153)*CS153+IF(FRIncentives=\"Yes\",CV153*(1-CS153),0))","v":7.5118200589042639},1,{"$f":"10*AS153","v":210},null,"Electric","y",null,{"$f":"IF(F153=\"Manual Entry\",\"Manual\",IF(G153=\"\",0,\"X=\"&SUBSTITUTE(SUBSTITUTE(SUBSTITUTE(SUBSTITUTE(SUBSTITUTE(SUBSTITUTE(SUBSTITUTE(SUBSTITUTE(SUBSTITUTE(SUBSTITUTE(SUBSTITUTE(SUBSTITUTE(G153,$ED153,$ED$2&ROW($ED153)),$EC153,$EC$2&ROW($EC153)),$EB153,$EB$2&ROW($EB153)),$EA153,$EA$2&ROW($EA153)),$DZ153,$DZ$2&ROW($DZ153)),$DY153,$DY$2&ROW($DY153)),$DX153,$DX$2&ROW($DX153)),$DW153,$DW$2&ROW($DW153)),$DV153,$DV$2&ROW($DV153)),$DU153,$DU$2&ROW($DU153)),$DT153,$DT$2&ROW($DT153)),$DS153,$DS$2&ROW($DS153))))","v":"X=10.22*AS153"},{"$f":"IF(I153=\"Manual Entry\",\"Manual\",IF(J153=\"\",0,\"X=\"&SUBSTITUTE(SUBSTITUTE(SUBSTITUTE(SUBSTITUTE(SUBSTITUTE(SUBSTITUTE(SUBSTITUTE(SUBSTITUTE(SUBSTITUTE(SUBSTITUTE(SUBSTITUTE(SUBSTITUTE(J153,$ED153,$ED$2&ROW($ED153)),$EC153,$EC$2&ROW($EC153)),$EB153,$EB$2&ROW($EB153)),$EA153,$EA$2&ROW($EA153)),$DZ153,$DZ$2&ROW($DZ153)),$DY153,$DY$2&ROW($DY153)),$DX153,$DX$2&ROW($DX153)),$DW153,$DW$2&ROW($DW153)),$DV153,$DV$2&ROW($DV153)),$DU153,$DU$2&ROW($DU153)),$DT153,$DT$2&ROW($DT153)),$DS153,$DS$2&ROW($DS153))))","v":"X=10*AS153"},{"$f":"IF(O153=\"\",0,\"X=\"&SUBSTITUTE(SUBSTITUTE(SUBSTITUTE(SUBSTITUTE(SUBSTITUTE(SUBSTITUTE(SUBSTITUTE(SUBSTITUTE(SUBSTITUTE(SUBSTITUTE(SUBSTITUTE(SUBSTITUTE(O153,$ED153,$ED$2&ROW($ED153)),$EC153,$EC$2&ROW($EC153)),$EB153,$EB$2&ROW($EB153)),$EA153,$EA$2&ROW($EA153)),$DZ153,$DZ$2&ROW($DZ153)),$DY153,$DY$2&ROW($DY153)),$DX153,$DX$2&ROW($DX153)),$DW153,$DW$2&ROW($DW153)),$DV153,$DV$2&ROW($DV153)),$DU153,$DU$2&ROW($DU153)),$DT153,$DT$2&ROW($DT153)),$DS153,$DS$2&ROW($DS153)))","v":"X=AU153 * (AW153 * AS153 )"},{"$f":"IF(P153=\"\",0,\"X=\"&SUBSTITUTE(SUBSTITUTE(SUBSTITUTE(SUBSTITUTE(SUBSTITUTE(SUBSTITUTE(SUBSTITUTE(SUBSTITUTE(SUBSTITUTE(SUBSTITUTE(SUBSTITUTE(SUBSTITUTE(P153,$ED153,$ED$2&ROW($ED153)),$EC153,$EC$2&ROW($EC153)),$EB153,$EB$2&ROW($EB153)),$EA153,$EA$2&ROW($EA153)),$DZ153,$DZ$2&ROW($DZ153)),$DY153,$DY$2&ROW($DY153)),$DX153,$DX$2&ROW($DX153)),$DW153,$DW$2&ROW($DW153)),$DV153,$DV$2&ROW($DV153)),$DU153,$DU$2&ROW($DU153)),$DT153,$DT$2&ROW($DT153)),$DS153,$DS$2&ROW($DS153)))","v":"X=0.0001"},{"$f":"IF(Q153=\"\",0,\"X=\"&SUBSTITUTE(SUBSTITUTE(SUBSTITUTE(SUBSTITUTE(SUBSTITUTE(SUBSTITUTE(SUBSTITUTE(SUBSTITUTE(SUBSTITUTE(SUBSTITUTE(SUBSTITUTE(SUBSTITUTE(Q153,$ED153,$ED$2&ROW($ED153)),$EC153,$EC$2&ROW($EC153)),$EB153,$EB$2&ROW($EB153)),$EA153,$EA$2&ROW($EA153)),$DZ153,$DZ$2&ROW($DZ153)),$DY153,$DY$2&ROW($DY153)),$DX153,$DX$2&ROW($DX153)),$DW153,$DW$2&ROW($DW153)),$DV153,$DV$2&ROW($DV153)),$DU153,$DU$2&ROW($DU153)),$DT153,$DT$2&ROW($DT153)),$DS153,$DS$2&ROW($DS153)))","v":0},{"$f":"IF(R153=\"\",0,\"X=\"&SUBSTITUTE(SUBSTITUTE(SUBSTITUTE(SUBSTITUTE(SUBSTITUTE(SUBSTITUTE(SUBSTITUTE(SUBSTITUTE(SUBSTITUTE(SUBSTITUTE(SUBSTITUTE(SUBSTITUTE(R153,$ED153,$ED$2&ROW($ED153)),$EC153,$EC$2&ROW($EC153)),$EB153,$EB$2&ROW($EB153)),$EA153,$EA$2&ROW($EA153)),$DZ153,$DZ$2&ROW($DZ153)),$DY153,$DY$2&ROW($DY153)),$DX153,$DX$2&ROW($DX153)),$DW153,$DW$2&ROW($DW153)),$DV153,$DV$2&ROW($DV153)),$DU153,$DU$2&ROW($DU153)),$DT153,$DT$2&ROW($DT153)),$DS153,$DS$2&ROW($DS153)))","v":"X=AU153 * (AW153 * AS153)/8760"},{"$f":"IF(S153=\"\",0,\"X=\"&SUBSTITUTE(SUBSTITUTE(SUBSTITUTE(SUBSTITUTE(SUBSTITUTE(SUBSTITUTE(SUBSTITUTE(SUBSTITUTE(SUBSTITUTE(SUBSTITUTE(SUBSTITUTE(SUBSTITUTE(S153,$ED153,$ED$2&ROW($ED153)),$EC153,$EC$2&ROW($EC153)),$EB153,$EB$2&ROW($EB153)),$EA153,$EA$2&ROW($EA153)),$DZ153,$DZ$2&ROW($DZ153)),$DY153,$DY$2&ROW($DY153)),$DX153,$DX$2&ROW($DX153)),$DW153,$DW$2&ROW($DW153)),$DV153,$DV$2&ROW($DV153)),$DU153,$DU$2&ROW($DU153)),$DT153,$DT$2&ROW($DT153)),$DS153,$DS$2&ROW($DS153)))","v":0},{"$f":"IF(T153=\"\",0,\"X=\"&SUBSTITUTE(SUBSTITUTE(SUBSTITUTE(SUBSTITUTE(SUBSTITUTE(SUBSTITUTE(SUBSTITUTE(SUBSTITUTE(SUBSTITUTE(SUBSTITUTE(SUBSTITUTE(SUBSTITUTE(T153,$ED153,$ED$2&ROW($ED153)),$EC153,$EC$2&ROW($EC153)),$EB153,$EB$2&ROW($EB153)),$EA153,$EA$2&ROW($EA153)),$DZ153,$DZ$2&ROW($DZ153)),$DY153,$DY$2&ROW($DY153)),$DX153,$DX$2&ROW($DX153)),$DW153,$DW$2&ROW($DW153)),$DV153,$DV$2&ROW($DV153)),$DU153,$DU$2&ROW($DU153)),$DT153,$DT$2&ROW($DT153)),$DS153,$DS$2&ROW($DS153)))","v":0},{"$f":"IF(U153=\"\",0,\"X=\"&SUBSTITUTE(SUBSTITUTE(SUBSTITUTE(SUBSTITUTE(SUBSTITUTE(SUBSTITUTE(SUBSTITUTE(SUBSTITUTE(SUBSTITUTE(SUBSTITUTE(SUBSTITUTE(SUBSTITUTE(U153,$ED153,$ED$2&ROW($ED153)),$EC153,$EC$2&ROW($EC153)),$EB153,$EB$2&ROW($EB153)),$EA153,$EA$2&ROW($EA153)),$DZ153,$DZ$2&ROW($DZ153)),$DY153,$DY$2&ROW($DY153)),$DX153,$DX$2&ROW($DX153)),$DW153,$DW$2&ROW($DW153)),$DV153,$DV$2&ROW($DV153)),$DU153,$DU$2&ROW($DU153)),$DT153,$DT$2&ROW($DT153)),$DS153,$DS$2&ROW($DS153)))","v":"X=AU153 * (AW153 * AS153)/8760 * AF153"},{"$f":"IF(V153=\"\",0,\"X=\"&SUBSTITUTE(SUBSTITUTE(SUBSTITUTE(SUBSTITUTE(SUBSTITUTE(SUBSTITUTE(SUBSTITUTE(SUBSTITUTE(SUBSTITUTE(SUBSTITUTE(SUBSTITUTE(SUBSTITUTE(V153,$ED153,$ED$2&ROW($ED153)),$EC153,$EC$2&ROW($EC153)),$EB153,$EB$2&ROW($EB153)),$EA153,$EA$2&ROW($EA153)),$DZ153,$DZ$2&ROW($DZ153)),$DY153,$DY$2&ROW($DY153)),$DX153,$DX$2&ROW($DX153)),$DW153,$DW$2&ROW($DW153)),$DV153,$DV$2&ROW($DV153)),$DU153,$DU$2&ROW($DU153)),$DT153,$DT$2&ROW($DT153)),$DS153,$DS$2&ROW($DS153)))","v":"X=AU153 * (AW153 * AS153)/8760* AG153"},{"$f":"IF(W153=\"\",0,\"X=\"&SUBSTITUTE(SUBSTITUTE(SUBSTITUTE(SUBSTITUTE(SUBSTITUTE(SUBSTITUTE(SUBSTITUTE(SUBSTITUTE(SUBSTITUTE(SUBSTITUTE(SUBSTITUTE(SUBSTITUTE(W153,$ED153,$ED$2&ROW($ED153)),$EC153,$EC$2&ROW($EC153)),$EB153,$EB$2&ROW($EB153)),$EA153,$EA$2&ROW($EA153)),$DZ153,$DZ$2&ROW($DZ153)),$DY153,$DY$2&ROW($DY153)),$DX153,$DX$2&ROW($DX153)),$DW153,$DW$2&ROW($DW153)),$DV153,$DV$2&ROW($DV153)),$DU153,$DU$2&ROW($DU153)),$DT153,$DT$2&ROW($DT153)),$DS153,$DS$2&ROW($DS153)))","v":0},{"$f":"IF(X153=\"\",0,\"X=\"&SUBSTITUTE(SUBSTITUTE(SUBSTITUTE(SUBSTITUTE(SUBSTITUTE(SUBSTITUTE(SUBSTITUTE(SUBSTITUTE(SUBSTITUTE(SUBSTITUTE(SUBSTITUTE(SUBSTITUTE(X153,$ED153,$ED$2&ROW($ED153)),$EC153,$EC$2&ROW($EC153)),$EB153,$EB$2&ROW($EB153)),$EA153,$EA$2&ROW($EA153)),$DZ153,$DZ$2&ROW($DZ153)),$DY153,$DY$2&ROW($DY153)),$DX153,$DX$2&ROW($DX153)),$DW153,$DW$2&ROW($DW153)),$DV153,$DV$2&ROW($DV153)),$DU153,$DU$2&ROW($DU153)),$DT153,$DT$2&ROW($DT153)),$DS153,$DS$2&ROW($DS153)))","v":0},{"$f":"IF(Y153=\"\",0,\"X=\"&SUBSTITUTE(SUBSTITUTE(SUBSTITUTE(SUBSTITUTE(SUBSTITUTE(SUBSTITUTE(SUBSTITUTE(SUBSTITUTE(SUBSTITUTE(SUBSTITUTE(SUBSTITUTE(SUBSTITUTE(Y153,$ED153,$ED$2&ROW($ED153)),$EC153,$EC$2&ROW($EC153)),$EB153,$EB$2&ROW($EB153)),$EA153,$EA$2&ROW($EA153)),$DZ153,$DZ$2&ROW($DZ153)),$DY153,$DY$2&ROW($DY153)),$DX153,$DX$2&ROW($DX153)),$DW153,$DW$2&ROW($DW153)),$DV153,$DV$2&ROW($DV153)),$DU153,$DU$2&ROW($DU153)),$DT153,$DT$2&ROW($DT153)),$DS153,$DS$2&ROW($DS153)))","v":0},{"$f":"IF(Z153=\"\",0,\"X=\"&SUBSTITUTE(SUBSTITUTE(SUBSTITUTE(SUBSTITUTE(SUBSTITUTE(SUBSTITUTE(SUBSTITUTE(SUBSTITUTE(SUBSTITUTE(SUBSTITUTE(SUBSTITUTE(SUBSTITUTE(Z153,$ED153,$ED$2&ROW($ED153)),$EC153,$EC$2&ROW($EC153)),$EB153,$EB$2&ROW($EB153)),$EA153,$EA$2&ROW($EA153)),$DZ153,$DZ$2&ROW($DZ153)),$DY153,$DY$2&ROW($DY153)),$DX153,$DX$2&ROW($DX153)),$DW153,$DW$2&ROW($DW153)),$DV153,$DV$2&ROW($DV153)),$DU153,$DU$2&ROW($DU153)),$DT153,$DT$2&ROW($DT153)),$DS153,$DS$2&ROW($DS153)))","v":0},{"$f":"IF(AA153=\"\",0,\"X=\"&SUBSTITUTE(SUBSTITUTE(SUBSTITUTE(SUBSTITUTE(SUBSTITUTE(SUBSTITUTE(SUBSTITUTE(SUBSTITUTE(SUBSTITUTE(SUBSTITUTE(SUBSTITUTE(SUBSTITUTE(AA153,$ED153,$ED$2&ROW($ED153)),$EC153,$EC$2&ROW($EC153)),$EB153,$EB$2&ROW($EB153)),$EA153,$EA$2&ROW($EA153)),$DZ153,$DZ$2&ROW($DZ153)),$DY153,$DY$2&ROW($DY153)),$DX153,$DX$2&ROW($DX153)),$DW153,$DW$2&ROW($DW153)),$DV153,$DV$2&ROW($DV153)),$DU153,$DU$2&ROW($DU153)),$DT153,$DT$2&ROW($DT153)),$DS153,$DS$2&ROW($DS153)))","v":0},{"$f":"IF(AB153=\"\",0,\"X=\"&SUBSTITUTE(SUBSTITUTE(SUBSTITUTE(SUBSTITUTE(SUBSTITUTE(SUBSTITUTE(SUBSTITUTE(SUBSTITUTE(SUBSTITUTE(SUBSTITUTE(SUBSTITUTE(SUBSTITUTE(AB153,$ED153,$ED$2&ROW($ED153)),$EC153,$EC$2&ROW($EC153)),$EB153,$EB$2&ROW($EB153)),$EA153,$EA$2&ROW($EA153)),$DZ153,$DZ$2&ROW($DZ153)),$DY153,$DY$2&ROW($DY153)),$DX153,$DX$2&ROW($DX153)),$DW153,$DW$2&ROW($DW153)),$DV153,$DV$2&ROW($DV153)),$DU153,$DU$2&ROW($DU153)),$DT153,$DT$2&ROW($DT153)),$DS153,$DS$2&ROW($DS153)))","v":0},null,null,"{Factor:WinterCF}","{Factor:SummerCF}",{"$f":"IFERROR(INDEX($EG153:$IV153,MATCH(0,COUNTIF($DR153:DT153,$EG153:$IV153),0)),\"\")","v":"{Area Sq. Ft}"},{"$f":"IFERROR(INDEX($EG153:$IV153,MATCH(0,COUNTIF($DR153:DU153,$EG153:$IV153),0)),\"\")","v":"{Measure:Quantity}"},{"$f":"IFERROR(INDEX($EG153:$IV153,MATCH(0,COUNTIF($DR153:DV153,$EG153:$IV153),0)),\"\")","v":"{Space Type}"},{"$f":"IFERROR(INDEX($EG153:$IV153,MATCH(0,COUNTIF($DR153:DW153,$EG153:$IV153),0)),\"\")","v":""},{"$f":"IFERROR(INDEX($EG153:$IV153,MATCH(0,COUNTIF($DR153:DX153,$EG153:$IV153),0)),\"\")","v":""},{"$f":"IFERROR(INDEX($EG153:$IV153,MATCH(0,COUNTIF($DR153:DY153,$EG153:$IV153),0)),\"\")","v":""},{"$f":"IFERROR(INDEX($EG153:$IV153,MATCH(0,COUNTIF($DR153:DZ153,$EG153:$IV153),0)),\"\")","v":""},{"$f":"IFERROR(INDEX($EG153:$IV153,MATCH(0,COUNTIF($DR153:EA153,$EG153:$IV153),0)),\"\")","v":""},{"$f":"IFERROR(INDEX($EG153:$IV153,MATCH(0,COUNTIF($DR153:EB153,$EG153:$IV153),0)),\"\")","v":""},{"$f":"IFERROR(INDEX($EG153:$IV153,MATCH(0,COUNTIF($DR153:EC153,$EG153:$IV153),0)),\"\")","v":""},null,null,{"$f":"IFERROR(MID($G153,FIND(CHAR(160),SUBSTITUTE($G153,\"{\",CHAR(160),EG$1)),FIND(CHAR(160),SUBSTITUTE($G153,\"}\",CHAR(160),EG$1))-FIND(CHAR(160),SUBSTITUTE($G153,\"{\",CHAR(160),EG$1))+1),\"\")","v":"{Area Sq. Ft}"},{"$f":"IFERROR(MID($G153,FIND(CHAR(160),SUBSTITUTE($G153,\"{\",CHAR(160),EH$1)),FIND(CHAR(160),SUBSTITUTE($G153,\"}\",CHAR(160),EH$1))-FIND(CHAR(160),SUBSTITUTE($G153,\"{\",CHAR(160),EH$1))+1),\"\")","v":""},{"$f":"IFERROR(MID($G153,FIND(CHAR(160),SUBSTITUTE($G153,\"{\",CHAR(160),EI$1)),FIND(CHAR(160),SUBSTITUTE($G153,\"}\",CHAR(160),EI$1))-FIND(CHAR(160),SUBSTITUTE($G153,\"{\",CHAR(160),EI$1))+1),\"\")","v":""},{"$f":"IFERROR(MID($G153,FIND(CHAR(160),SUBSTITUTE($G153,\"{\",CHAR(160),EJ$1)),FIND(CHAR(160),SUBSTITUTE($G153,\"}\",CHAR(160),EJ$1))-FIND(CHAR(160),SUBSTITUTE($G153,\"{\",CHAR(160),EJ$1))+1),\"\")","v":""},{"$f":"IFERROR(MID($G153,FIND(CHAR(160),SUBSTITUTE($G153,\"{\",CHAR(160),EK$1)),FIND(CHAR(160),SUBSTITUTE($G153,\"}\",CHAR(160),EK$1))-FIND(CHAR(160),SUBSTITUTE($G153,\"{\",CHAR(160),EK$1))+1),\"\")","v":""},{"$f":"IFERROR(MID($G153,FIND(CHAR(160),SUBSTITUTE($G153,\"{\",CHAR(160),EL$1)),FIND(CHAR(160),SUBSTITUTE($G153,\"}\",CHAR(160),EL$1))-FIND(CHAR(160),SUBSTITUTE($G153,\"{\",CHAR(160),EL$1))+1),\"\")","v":""},{"$f":"IFERROR(MID($G153,FIND(CHAR(160),SUBSTITUTE($G153,\"{\",CHAR(160),EM$1)),FIND(CHAR(160),SUBSTITUTE($G153,\"}\",CHAR(160),EM$1))-FIND(CHAR(160),SUBSTITUTE($G153,\"{\",CHAR(160),EM$1))+1),\"\")","v":""},{"$f":"IFERROR(MID($G153,FIND(CHAR(160),SUBSTITUTE($G153,\"{\",CHAR(160),EN$1)),FIND(CHAR(160),SUBSTITUTE($G153,\"}\",CHAR(160),EN$1))-FIND(CHAR(160),SUBSTITUTE($G153,\"{\",CHAR(160),EN$1))+1),\"\")","v":""},{"$f":"IFERROR(MID($G153,FIND(CHAR(160),SUBSTITUTE($G153,\"{\",CHAR(160),EO$1)),FIND(CHAR(160),SUBSTITUTE($G153,\"}\",CHAR(160),EO$1))-FIND(CHAR(160),SUBSTITUTE($G153,\"{\",CHAR(160),EO$1))+1),\"\")","v":""},{"$f":"IFERROR(MID($G153,FIND(CHAR(160),SUBSTITUTE($G153,\"{\",CHAR(160),EP$1)),FIND(CHAR(160),SUBSTITUTE($G153,\"}\",CHAR(160),EP$1))-FIND(CHAR(160),SUBSTITUTE($G153,\"{\",CHAR(160),EP$1))+1),\"\")","v":""},{"$f":"IFERROR(MID($J153,FIND(CHAR(160),SUBSTITUTE($J153,\"{\",CHAR(160),EQ$1)),FIND(CHAR(160),SUBSTITUTE($J153,\"}\",CHAR(160),EQ$1))-FIND(CHAR(160),SUBSTITUTE($J153,\"{\",CHAR(160),EQ$1))+1),\"\")","v":"{Area Sq. Ft}"},{"$f":"IFERROR(MID($J153,FIND(CHAR(160),SUBSTITUTE($J153,\"{\",CHAR(160),ER$1)),FIND(CHAR(160),SUBSTITUTE($J153,\"}\",CHAR(160),ER$1))-FIND(CHAR(160),SUBSTITUTE($J153,\"{\",CHAR(160),ER$1))+1),\"\")","v":""},{"$f":"IFERROR(MID($J153,FIND(CHAR(160),SUBSTITUTE($J153,\"{\",CHAR(160),ES$1)),FIND(CHAR(160),SUBSTITUTE($J153,\"}\",CHAR(160),ES$1))-FIND(CHAR(160),SUBSTITUTE($J153,\"{\",CHAR(160),ES$1))+1),\"\")","v":""},{"$f":"IFERROR(MID($J153,FIND(CHAR(160),SUBSTITUTE($J153,\"{\",CHAR(160),ET$1)),FIND(CHAR(160),SUBSTITUTE($J153,\"}\",CHAR(160),ET$1))-FIND(CHAR(160),SUBSTITUTE($J153,\"{\",CHAR(160),ET$1))+1),\"\")","v":""},{"$f":"IFERROR(MID($J153,FIND(CHAR(160),SUBSTITUTE($J153,\"{\",CHAR(160),EU$1)),FIND(CHAR(160),SUBSTITUTE($J153,\"}\",CHAR(160),EU$1))-FIND(CHAR(160),SUBSTITUTE($J153,\"{\",CHAR(160),EU$1))+1),\"\")","v":""},{"$f":"IFERROR(MID($J153,FIND(CHAR(160),SUBSTITUTE($J153,\"{\",CHAR(160),EV$1)),FIND(CHAR(160),SUBSTITUTE($J153,\"}\",CHAR(160),EV$1))-FIND(CHAR(160),SUBSTITUTE($J153,\"{\",CHAR(160),EV$1))+1),\"\")","v":""},{"$f":"IFERROR(MID($J153,FIND(CHAR(160),SUBSTITUTE($J153,\"{\",CHAR(160),EW$1)),FIND(CHAR(160),SUBSTITUTE($J153,\"}\",CHAR(160),EW$1))-FIND(CHAR(160),SUBSTITUTE($J153,\"{\",CHAR(160),EW$1))+1),\"\")","v":""},{"$f":"IFERROR(MID($J153,FIND(CHAR(160),SUBSTITUTE($J153,\"{\",CHAR(160),EX$1)),FIND(CHAR(160),SUBSTITUTE($J153,\"}\",CHAR(160),EX$1))-FIND(CHAR(160),SUBSTITUTE($J153,\"{\",CHAR(160),EX$1))+1),\"\")","v":""},{"$f":"IFERROR(MID($J153,FIND(CHAR(160),SUBSTITUTE($J153,\"{\",CHAR(160),EY$1)),FIND(CHAR(160),SUBSTITUTE($J153,\"}\",CHAR(160),EY$1))-FIND(CHAR(160),SUBSTITUTE($J153,\"{\",CHAR(160),EY$1))+1),\"\")","v":""},{"$f":"IFERROR(MID($J153,FIND(CHAR(160),SUBSTITUTE($J153,\"{\",CHAR(160),EZ$1)),FIND(CHAR(160),SUBSTITUTE($J153,\"}\",CHAR(160),EZ$1))-FIND(CHAR(160),SUBSTITUTE($J153,\"{\",CHAR(160),EZ$1))+1),\"\")","v":""},{"$f":"IFERROR(MID($J153,FIND(CHAR(160),SUBSTITUTE($J153,\"{\",CHAR(160),FA$1)),FIND(CHAR(160),SUBSTITUTE($J153,\"}\",CHAR(160),FA$1))-FIND(CHAR(160),SUBSTITUTE($J153,\"{\",CHAR(160),FA$1))+1),\"\")","v":"{Area Sq. Ft}"},{"$f":"IFERROR(MID($J153,FIND(CHAR(160),SUBSTITUTE($J153,\"{\",CHAR(160),FB$1)),FIND(CHAR(160),SUBSTITUTE($J153,\"}\",CHAR(160),FB$1))-FIND(CHAR(160),SUBSTITUTE($J153,\"{\",CHAR(160),FB$1))+1),\"\")","v":""},{"$f":"IFERROR(MID($O153,FIND(CHAR(160),SUBSTITUTE($O153,\"{\",CHAR(160),FC$1)),FIND(CHAR(160),SUBSTITUTE($O153,\"}\",CHAR(160),FC$1))-FIND(CHAR(160),SUBSTITUTE($O153,\"{\",CHAR(160),FC$1))+1),\"\")","v":"{Area Sq. Ft}"},{"$f":"IFERROR(MID($O153,FIND(CHAR(160),SUBSTITUTE($O153,\"{\",CHAR(160),FD$1)),FIND(CHAR(160),SUBSTITUTE($O153,\"}\",CHAR(160),FD$1))-FIND(CHAR(160),SUBSTITUTE($O153,\"{\",CHAR(160),FD$1))+1),\"\")","v":""},{"$f":"IFERROR(MID($O153,FIND(CHAR(160),SUBSTITUTE($O153,\"{\",CHAR(160),FE$1)),FIND(CHAR(160),SUBSTITUTE($O153,\"}\",CHAR(160),FE$1))-FIND(CHAR(160),SUBSTITUTE($O153,\"{\",CHAR(160),FE$1))+1),\"\")","v":""},{"$f":"IFERROR(MID($O153,FIND(CHAR(160),SUBSTITUTE($O153,\"{\",CHAR(160),FF$1)),FIND(CHAR(160),SUBSTITUTE($O153,\"}\",CHAR(160),FF$1))-FIND(CHAR(160),SUBSTITUTE($O153,\"{\",CHAR(160),FF$1))+1),\"\")","v":""},{"$f":"IFERROR(MID($O153,FIND(CHAR(160),SUBSTITUTE($O153,\"{\",CHAR(160),FG$1)),FIND(CHAR(160),SUBSTITUTE($O153,\"}\",CHAR(160),FG$1))-FIND(CHAR(160),SUBSTITUTE($O153,\"{\",CHAR(160),FG$1))+1),\"\")","v":""},{"$f":"IFERROR(MID($O153,FIND(CHAR(160),SUBSTITUTE($O153,\"{\",CHAR(160),FH$1)),FIND(CHAR(160),SUBSTITUTE($O153,\"}\",CHAR(160),FH$1))-FIND(CHAR(160),SUBSTITUTE($O153,\"{\",CHAR(160),FH$1))+1),\"\")","v":""},{"$f":"IFERROR(MID($O153,FIND(CHAR(160),SUBSTITUTE($O153,\"{\",CHAR(160),FI$1)),FIND(CHAR(160),SUBSTITUTE($O153,\"}\",CHAR(160),FI$1))-FIND(CHAR(160),SUBSTITUTE($O153,\"{\",CHAR(160),FI$1))+1),\"\")","v":""},{"$f":"IFERROR(MID($O153,FIND(CHAR(160),SUBSTITUTE($O153,\"{\",CHAR(160),FJ$1)),FIND(CHAR(160),SUBSTITUTE($O153,\"}\",CHAR(160),FJ$1))-FIND(CHAR(160),SUBSTITUTE($O153,\"{\",CHAR(160),FJ$1))+1),\"\")","v":""},{"$f":"IFERROR(MID($O153,FIND(CHAR(160),SUBSTITUTE($O153,\"{\",CHAR(160),FK$1)),FIND(CHAR(160),SUBSTITUTE($O153,\"}\",CHAR(160),FK$1))-FIND(CHAR(160),SUBSTITUTE($O153,\"{\",CHAR(160),FK$1))+1),\"\")","v":"{Measure:Quantity}"},{"$f":"IFERROR(MID($O153,FIND(CHAR(160),SUBSTITUTE($O153,\"{\",CHAR(160),FL$1)),FIND(CHAR(160),SUBSTITUTE($O153,\"}\",CHAR(160),FL$1))-FIND(CHAR(160),SUBSTITUTE($O153,\"{\",CHAR(160),FL$1))+1),\"\")","v":"{Space Type}"},{"$f":"IFERROR(MID($R153,FIND(CHAR(160),SUBSTITUTE($R153,\"{\",CHAR(160),FM$1)),FIND(CHAR(160),SUBSTITUTE($R153,\"}\",CHAR(160),FM$1))-FIND(CHAR(160),SUBSTITUTE($R153,\"{\",CHAR(160),FM$1))+1),\"\")","v":"{Area Sq. Ft}"},{"$f":"IFERROR(MID($R153,FIND(CHAR(160),SUBSTITUTE($R153,\"{\",CHAR(160),FN$1)),FIND(CHAR(160),SUBSTITUTE($R153,\"}\",CHAR(160),FN$1))-FIND(CHAR(160),SUBSTITUTE($R153,\"{\",CHAR(160),FN$1))+1),\"\")","v":""},{"$f":"IFERROR(MID($R153,FIND(CHAR(160),SUBSTITUTE($R153,\"{\",CHAR(160),FO$1)),FIND(CHAR(160),SUBSTITUTE($R153,\"}\",CHAR(160),FO$1))-FIND(CHAR(160),SUBSTITUTE($R153,\"{\",CHAR(160),FO$1))+1),\"\")","v":""},{"$f":"IFERROR(MID($R153,FIND(CHAR(160),SUBSTITUTE($R153,\"{\",CHAR(160),FP$1)),FIND(CHAR(160),SUBSTITUTE($R153,\"}\",CHAR(160),FP$1))-FIND(CHAR(160),SUBSTITUTE($R153,\"{\",CHAR(160),FP$1))+1),\"\")","v":""},{"$f":"IFERROR(MID($R153,FIND(CHAR(160),SUBSTITUTE($R153,\"{\",CHAR(160),FQ$1)),FIND(CHAR(160),SUBSTITUTE($R153,\"}\",CHAR(160),FQ$1))-FIND(CHAR(160),SUBSTITUTE($R153,\"{\",CHAR(160),FQ$1))+1),\"\")","v":""},{"$f":"IFERROR(MID($R153,FIND(CHAR(160),SUBSTITUTE($R153,\"{\",CHAR(160),FR$1)),FIND(CHAR(160),SUBSTITUTE($R153,\"}\",CHAR(160),FR$1))-FIND(CHAR(160),SUBSTITUTE($R153,\"{\",CHAR(160),FR$1))+1),\"\")","v":""},{"$f":"IFERROR(MID($R153,FIND(CHAR(160),SUBSTITUTE($R153,\"{\",CHAR(160),FS$1)),FIND(CHAR(160),SUBSTITUTE($R153,\"}\",CHAR(160),FS$1))-FIND(CHAR(160),SUBSTITUTE($R153,\"{\",CHAR(160),FS$1))+1),\"\")","v":""},{"$f":"IFERROR(MID($R153,FIND(CHAR(160),SUBSTITUTE($R153,\"{\",CHAR(160),FT$1)),FIND(CHAR(160),SUBSTITUTE($R153,\"}\",CHAR(160),FT$1))-FIND(CHAR(160),SUBSTITUTE($R153,\"{\",CHAR(160),FT$1))+1),\"\")","v":""},{"$f":"IFERROR(MID($R153,FIND(CHAR(160),SUBSTITUTE($R153,\"{\",CHAR(160),FU$1)),FIND(CHAR(160),SUBSTITUTE($R153,\"}\",CHAR(160),FU$1))-FIND(CHAR(160),SUBSTITUTE($R153,\"{\",CHAR(160),FU$1))+1),\"\")","v":"{Measure:Quantity}"},{"$f":"IFERROR(MID($R153,FIND(CHAR(160),SUBSTITUTE($R153,\"{\",CHAR(160),FV$1)),FIND(CHAR(160),SUBSTITUTE($R153,\"}\",CHAR(160),FV$1))-FIND(CHAR(160),SUBSTITUTE($R153,\"{\",CHAR(160),FV$1))+1),\"\")","v":"{Space Type}"},{"$f":"IFERROR(MID($U153,FIND(CHAR(160),SUBSTITUTE($U153,\"{\",CHAR(160),FW$1)),FIND(CHAR(160),SUBSTITUTE($U153,\"}\",CHAR(160),FW$1))-FIND(CHAR(160),SUBSTITUTE($U153,\"{\",CHAR(160),FW$1))+1),\"\")","v":"{Area Sq. Ft}"},{"$f":"IFERROR(MID($U153,FIND(CHAR(160),SUBSTITUTE($U153,\"{\",CHAR(160),FX$1)),FIND(CHAR(160),SUBSTITUTE($U153,\"}\",CHAR(160),FX$1))-FIND(CHAR(160),SUBSTITUTE($U153,\"{\",CHAR(160),FX$1))+1),\"\")","v":"{Factor:WinterCF}"},{"$f":"IFERROR(MID($U153,FIND(CHAR(160),SUBSTITUTE($U153,\"{\",CHAR(160),FY$1)),FIND(CHAR(160),SUBSTITUTE($U153,\"}\",CHAR(160),FY$1))-FIND(CHAR(160),SUBSTITUTE($U153,\"{\",CHAR(160),FY$1))+1),\"\")","v":""},{"$f":"IFERROR(MID($U153,FIND(CHAR(160),SUBSTITUTE($U153,\"{\",CHAR(160),FZ$1)),FIND(CHAR(160),SUBSTITUTE($U153,\"}\",CHAR(160),FZ$1))-FIND(CHAR(160),SUBSTITUTE($U153,\"{\",CHAR(160),FZ$1))+1),\"\")","v":""},{"$f":"IFERROR(MID($U153,FIND(CHAR(160),SUBSTITUTE($U153,\"{\",CHAR(160),GA$1)),FIND(CHAR(160),SUBSTITUTE($U153,\"}\",CHAR(160),GA$1))-FIND(CHAR(160),SUBSTITUTE($U153,\"{\",CHAR(160),GA$1))+1),\"\")","v":""},{"$f":"IFERROR(MID($U153,FIND(CHAR(160),SUBSTITUTE($U153,\"{\",CHAR(160),GB$1)),FIND(CHAR(160),SUBSTITUTE($U153,\"}\",CHAR(160),GB$1))-FIND(CHAR(160),SUBSTITUTE($U153,\"{\",CHAR(160),GB$1))+1),\"\")","v":""},{"$f":"IFERROR(MID($U153,FIND(CHAR(160),SUBSTITUTE($U153,\"{\",CHAR(160),GC$1)),FIND(CHAR(160),SUBSTITUTE($U153,\"}\",CHAR(160),GC$1))-FIND(CHAR(160),SUBSTITUTE($U153,\"{\",CHAR(160),GC$1))+1),\"\")","v":""},{"$f":"IFERROR(MID($U153,FIND(CHAR(160),SUBSTITUTE($U153,\"{\",CHAR(160),GD$1)),FIND(CHAR(160),SUBSTITUTE($U153,\"}\",CHAR(160),GD$1))-FIND(CHAR(160),SUBSTITUTE($U153,\"{\",CHAR(160),GD$1))+1),\"\")","v":""},{"$f":"IFERROR(MID($U153,FIND(CHAR(160),SUBSTITUTE($U153,\"{\",CHAR(160),GE$1)),FIND(CHAR(160),SUBSTITUTE($U153,\"}\",CHAR(160),GE$1))-FIND(CHAR(160),SUBSTITUTE($U153,\"{\",CHAR(160),GE$1))+1),\"\")","v":"{Measure:Quantity}"},{"$f":"IFERROR(MID($U153,FIND(CHAR(160),SUBSTITUTE($U153,\"{\",CHAR(160),GF$1)),FIND(CHAR(160),SUBSTITUTE($U153,\"}\",CHAR(160),GF$1))-FIND(CHAR(160),SUBSTITUTE($U153,\"{\",CHAR(160),GF$1))+1),\"\")","v":"{Space Type}"},{"$f":"IFERROR(MID($V153,FIND(CHAR(160),SUBSTITUTE($V153,\"{\",CHAR(160),GG$1)),FIND(CHAR(160),SUBSTITUTE($V153,\"}\",CHAR(160),GG$1))-FIND(CHAR(160),SUBSTITUTE($V153,\"{\",CHAR(160),GG$1))+1),\"\")","v":"{Area Sq. Ft}"},{"$f":"IFERROR(MID($V153,FIND(CHAR(160),SUBSTITUTE($V153,\"{\",CHAR(160),GH$1)),FIND(CHAR(160),SUBSTITUTE($V153,\"}\",CHAR(160),GH$1))-FIND(CHAR(160),SUBSTITUTE($V153,\"{\",CHAR(160),GH$1))+1),\"\")","v":"{Factor:SummerCF}"},{"$f":"IFERROR(MID($V153,FIND(CHAR(160),SUBSTITUTE($V153,\"{\",CHAR(160),GI$1)),FIND(CHAR(160),SUBSTITUTE($V153,\"}\",CHAR(160),GI$1))-FIND(CHAR(160),SUBSTITUTE($V153,\"{\",CHAR(160),GI$1))+1),\"\")","v":""},{"$f":"IFERROR(MID($V153,FIND(CHAR(160),SUBSTITUTE($V153,\"{\",CHAR(160),GJ$1)),FIND(CHAR(160),SUBSTITUTE($V153,\"}\",CHAR(160),GJ$1))-FIND(CHAR(160),SUBSTITUTE($V153,\"{\",CHAR(160),GJ$1))+1),\"\")","v":""},{"$f":"IFERROR(MID($V153,FIND(CHAR(160),SUBSTITUTE($V153,\"{\",CHAR(160),GK$1)),FIND(CHAR(160),SUBSTITUTE($V153,\"}\",CHAR(160),GK$1))-FIND(CHAR(160),SUBSTITUTE($V153,\"{\",CHAR(160),GK$1))+1),\"\")","v":""},{"$f":"IFERROR(MID($V153,FIND(CHAR(160),SUBSTITUTE($V153,\"{\",CHAR(160),GL$1)),FIND(CHAR(160),SUBSTITUTE($V153,\"}\",CHAR(160),GL$1))-FIND(CHAR(160),SUBSTITUTE($V153,\"{\",CHAR(160),GL$1))+1),\"\")","v":""},{"$f":"IFERROR(MID($V153,FIND(CHAR(160),SUBSTITUTE($V153,\"{\",CHAR(160),GM$1)),FIND(CHAR(160),SUBSTITUTE($V153,\"}\",CHAR(160),GM$1))-FIND(CHAR(160),SUBSTITUTE($V153,\"{\",CHAR(160),GM$1))+1),\"\")","v":""},{"$f":"IFERROR(MID($V153,FIND(CHAR(160),SUBSTITUTE($V153,\"{\",CHAR(160),GN$1)),FIND(CHAR(160),SUBSTITUTE($V153,\"}\",CHAR(160),GN$1))-FIND(CHAR(160),SUBSTITUTE($V153,\"{\",CHAR(160),GN$1))+1),\"\")","v":""},{"$f":"IFERROR(MID($V153,FIND(CHAR(160),SUBSTITUTE($V153,\"{\",CHAR(160),GO$1)),FIND(CHAR(160),SUBSTITUTE($V153,\"}\",CHAR(160),GO$1))-FIND(CHAR(160),SUBSTITUTE($V153,\"{\",CHAR(160),GO$1))+1),\"\")","v":"{Measure:Quantity}"},{"$f":"IFERROR(MID($V153,FIND(CHAR(160),SUBSTITUTE($V153,\"{\",CHAR(160),GP$1)),FIND(CHAR(160),SUBSTITUTE($V153,\"}\",CHAR(160),GP$1))-FIND(CHAR(160),SUBSTITUTE($V153,\"{\",CHAR(160),GP$1))+1),\"\")","v":"{Space Type}"},{"$f":"IFERROR(MID($W153,FIND(CHAR(160),SUBSTITUTE($W153,\"{\",CHAR(160),GQ$1)),FIND(CHAR(160),SUBSTITUTE($W153,\"}\",CHAR(160),GQ$1))-FIND(CHAR(160),SUBSTITUTE($W153,\"{\",CHAR(160),GQ$1))+1),\"\")","v":""},{"$f":"IFERROR(MID($W153,FIND(CHAR(160),SUBSTITUTE($W153,\"{\",CHAR(160),GR$1)),FIND(CHAR(160),SUBSTITUTE($W153,\"}\",CHAR(160),GR$1))-FIND(CHAR(160),SUBSTITUTE($W153,\"{\",CHAR(160),GR$1))+1),\"\")","v":""},{"$f":"IFERROR(MID($W153,FIND(CHAR(160),SUBSTITUTE($W153,\"{\",CHAR(160),GS$1)),FIND(CHAR(160),SUBSTITUTE($W153,\"}\",CHAR(160),GS$1))-FIND(CHAR(160),SUBSTITUTE($W153,\"{\",CHAR(160),GS$1))+1),\"\")","v":""},{"$f":"IFERROR(MID($W153,FIND(CHAR(160),SUBSTITUTE($W153,\"{\",CHAR(160),GT$1)),FIND(CHAR(160),SUBSTITUTE($W153,\"}\",CHAR(160),GT$1))-FIND(CHAR(160),SUBSTITUTE($W153,\"{\",CHAR(160),GT$1))+1),\"\")","v":""},{"$f":"IFERROR(MID($W153,FIND(CHAR(160),SUBSTITUTE($W153,\"{\",CHAR(160),GU$1)),FIND(CHAR(160),SUBSTITUTE($W153,\"}\",CHAR(160),GU$1))-FIND(CHAR(160),SUBSTITUTE($W153,\"{\",CHAR(160),GU$1))+1),\"\")","v":""},{"$f":"IFERROR(MID($W153,FIND(CHAR(160),SUBSTITUTE($W153,\"{\",CHAR(160),GV$1)),FIND(CHAR(160),SUBSTITUTE($W153,\"}\",CHAR(160),GV$1))-FIND(CHAR(160),SUBSTITUTE($W153,\"{\",CHAR(160),GV$1))+1),\"\")","v":""},{"$f":"IFERROR(MID($W153,FIND(CHAR(160),SUBSTITUTE($W153,\"{\",CHAR(160),GW$1)),FIND(CHAR(160),SUBSTITUTE($W153,\"}\",CHAR(160),GW$1))-FIND(CHAR(160),SUBSTITUTE($W153,\"{\",CHAR(160),GW$1))+1),\"\")","v":""},{"$f":"IFERROR(MID($W153,FIND(CHAR(160),SUBSTITUTE($W153,\"{\",CHAR(160),GX$1)),FIND(CHAR(160),SUBSTITUTE($W153,\"}\",CHAR(160),GX$1))-FIND(CHAR(160),SUBSTITUTE($W153,\"{\",CHAR(160),GX$1))+1),\"\")","v":""},{"$f":"IFERROR(MID($W153,FIND(CHAR(160),SUBSTITUTE($W153,\"{\",CHAR(160),GY$1)),FIND(CHAR(160),SUBSTITUTE($W153,\"}\",CHAR(160),GY$1))-FIND(CHAR(160),SUBSTITUTE($W153,\"{\",CHAR(160),GY$1))+1),\"\")","v":""},{"$f":"IFERROR(MID($W153,FIND(CHAR(160),SUBSTITUTE($W153,\"{\",CHAR(160),GZ$1)),FIND(CHAR(160),SUBSTITUTE($W153,\"}\",CHAR(160),GZ$1))-FIND(CHAR(160),SUBSTITUTE($W153,\"{\",CHAR(160),GZ$1))+1),\"\")","v":""},{"$f":"IFERROR(MID($X153,FIND(CHAR(160),SUBSTITUTE($X153,\"{\",CHAR(160),HA$1)),FIND(CHAR(160),SUBSTITUTE($X153,\"}\",CHAR(160),HA$1))-FIND(CHAR(160),SUBSTITUTE($X153,\"{\",CHAR(160),HA$1))+1),\"\")","v":""},{"$f":"IFERROR(MID($X153,FIND(CHAR(160),SUBSTITUTE($X153,\"{\",CHAR(160),HB$1)),FIND(CHAR(160),SUBSTITUTE($X153,\"}\",CHAR(160),HB$1))-FIND(CHAR(160),SUBSTITUTE($X153,\"{\",CHAR(160),HB$1))+1),\"\")","v":""},{"$f":"IFERROR(MID($X153,FIND(CHAR(160),SUBSTITUTE($X153,\"{\",CHAR(160),HC$1)),FIND(CHAR(160),SUBSTITUTE($X153,\"}\",CHAR(160),HC$1))-FIND(CHAR(160),SUBSTITUTE($X153,\"{\",CHAR(160),HC$1))+1),\"\")","v":""},{"$f":"IFERROR(MID($X153,FIND(CHAR(160),SUBSTITUTE($X153,\"{\",CHAR(160),HD$1)),FIND(CHAR(160),SUBSTITUTE($X153,\"}\",CHAR(160),HD$1))-FIND(CHAR(160),SUBSTITUTE($X153,\"{\",CHAR(160),HD$1))+1),\"\")","v":""},{"$f":"IFERROR(MID($X153,FIND(CHAR(160),SUBSTITUTE($X153,\"{\",CHAR(160),HE$1)),FIND(CHAR(160),SUBSTITUTE($X153,\"}\",CHAR(160),HE$1))-FIND(CHAR(160),SUBSTITUTE($X153,\"{\",CHAR(160),HE$1))+1),\"\")","v":""},{"$f":"IFERROR(MID($X153,FIND(CHAR(160),SUBSTITUTE($X153,\"{\",CHAR(160),HF$1)),FIND(CHAR(160),SUBSTITUTE($X153,\"}\",CHAR(160),HF$1))-FIND(CHAR(160),SUBSTITUTE($X153,\"{\",CHAR(160),HF$1))+1),\"\")","v":""},{"$f":"IFERROR(MID($X153,FIND(CHAR(160),SUBSTITUTE($X153,\"{\",CHAR(160),HG$1)),FIND(CHAR(160),SUBSTITUTE($X153,\"}\",CHAR(160),HG$1))-FIND(CHAR(160),SUBSTITUTE($X153,\"{\",CHAR(160),HG$1))+1),\"\")","v":""},{"$f":"IFERROR(MID($X153,FIND(CHAR(160),SUBSTITUTE($X153,\"{\",CHAR(160),HH$1)),FIND(CHAR(160),SUBSTITUTE($X153,\"}\",CHAR(160),HH$1))-FIND(CHAR(160),SUBSTITUTE($X153,\"{\",CHAR(160),HH$1))+1),\"\")","v":""},{"$f":"IFERROR(MID($X153,FIND(CHAR(160),SUBSTITUTE($X153,\"{\",CHAR(160),HI$1)),FIND(CHAR(160),SUBSTITUTE($X153,\"}\",CHAR(160),HI$1))-FIND(CHAR(160),SUBSTITUTE($X153,\"{\",CHAR(160),HI$1))+1),\"\")","v":""},{"$f":"IFERROR(MID($X153,FIND(CHAR(160),SUBSTITUTE($X153,\"{\",CHAR(160),HJ$1)),FIND(CHAR(160),SUBSTITUTE($X153,\"}\",CHAR(160),HJ$1))-FIND(CHAR(160),SUBSTITUTE($X153,\"{\",CHAR(160),HJ$1))+1),\"\")","v":""},{"$f":"IFERROR(MID($Y153,FIND(CHAR(160),SUBSTITUTE($Y153,\"{\",CHAR(160),HK$1)),FIND(CHAR(160),SUBSTITUTE($Y153,\"}\",CHAR(160),HK$1))-FIND(CHAR(160),SUBSTITUTE($Y153,\"{\",CHAR(160),HK$1))+1),\"\")","v":""},{"$f":"IFERROR(MID($Y153,FIND(CHAR(160),SUBSTITUTE($Y153,\"{\",CHAR(160),HL$1)),FIND(CHAR(160),SUBSTITUTE($Y153,\"}\",CHAR(160),HL$1))-FIND(CHAR(160),SUBSTITUTE($Y153,\"{\",CHAR(160),HL$1))+1),\"\")","v":""},{"$f":"IFERROR(MID($Y153,FIND(CHAR(160),SUBSTITUTE($Y153,\"{\",CHAR(160),HM$1)),FIND(CHAR(160),SUBSTITUTE($Y153,\"}\",CHAR(160),HM$1))-FIND(CHAR(160),SUBSTITUTE($Y153,\"{\",CHAR(160),HM$1))+1),\"\")","v":""},{"$f":"IFERROR(MID($Y153,FIND(CHAR(160),SUBSTITUTE($Y153,\"{\",CHAR(160),HN$1)),FIND(CHAR(160),SUBSTITUTE($Y153,\"}\",CHAR(160),HN$1))-FIND(CHAR(160),SUBSTITUTE($Y153,\"{\",CHAR(160),HN$1))+1),\"\")","v":""},{"$f":"IFERROR(MID($Y153,FIND(CHAR(160),SUBSTITUTE($Y153,\"{\",CHAR(160),HO$1)),FIND(CHAR(160),SUBSTITUTE($Y153,\"}\",CHAR(160),HO$1))-FIND(CHAR(160),SUBSTITUTE($Y153,\"{\",CHAR(160),HO$1))+1),\"\")","v":""},{"$f":"IFERROR(MID($Y153,FIND(CHAR(160),SUBSTITUTE($Y153,\"{\",CHAR(160),HP$1)),FIND(CHAR(160),SUBSTITUTE($Y153,\"}\",CHAR(160),HP$1))-FIND(CHAR(160),SUBSTITUTE($Y153,\"{\",CHAR(160),HP$1))+1),\"\")","v":""},{"$f":"IFERROR(MID($Y153,FIND(CHAR(160),SUBSTITUTE($Y153,\"{\",CHAR(160),HQ$1)),FIND(CHAR(160),SUBSTITUTE($Y153,\"}\",CHAR(160),HQ$1))-FIND(CHAR(160),SUBSTITUTE($Y153,\"{\",CHAR(160),HQ$1))+1),\"\")","v":""},{"$f":"IFERROR(MID($Y153,FIND(CHAR(160),SUBSTITUTE($Y153,\"{\",CHAR(160),HR$1)),FIND(CHAR(160),SUBSTITUTE($Y153,\"}\",CHAR(160),HR$1))-FIND(CHAR(160),SUBSTITUTE($Y153,\"{\",CHAR(160),HR$1))+1),\"\")","v":""},{"$f":"IFERROR(MID($Y153,FIND(CHAR(160),SUBSTITUTE($Y153,\"{\",CHAR(160),HS$1)),FIND(CHAR(160),SUBSTITUTE($Y153,\"}\",CHAR(160),HS$1))-FIND(CHAR(160),SUBSTITUTE($Y153,\"{\",CHAR(160),HS$1))+1),\"\")","v":""},{"$f":"IFERROR(MID($Y153,FIND(CHAR(160),SUBSTITUTE($Y153,\"{\",CHAR(160),HT$1)),FIND(CHAR(160),SUBSTITUTE($Y153,\"}\",CHAR(160),HT$1))-FIND(CHAR(160),SUBSTITUTE($Y153,\"{\",CHAR(160),HT$1))+1),\"\")","v":""},{"$f":"IFERROR(MID($Z153,FIND(CHAR(160),SUBSTITUTE($Z153,\"{\",CHAR(160),HU$1)),FIND(CHAR(160),SUBSTITUTE($Z153,\"}\",CHAR(160),HU$1))-FIND(CHAR(160),SUBSTITUTE($Z153,\"{\",CHAR(160),HU$1))+1),\"\")","v":""},{"$f":"IFERROR(MID($Z153,FIND(CHAR(160),SUBSTITUTE($Z153,\"{\",CHAR(160),HV$1)),FIND(CHAR(160),SUBSTITUTE($Z153,\"}\",CHAR(160),HV$1))-FIND(CHAR(160),SUBSTITUTE($Z153,\"{\",CHAR(160),HV$1))+1),\"\")","v":""},{"$f":"IFERROR(MID($Z153,FIND(CHAR(160),SUBSTITUTE($Z153,\"{\",CHAR(160),HW$1)),FIND(CHAR(160),SUBSTITUTE($Z153,\"}\",CHAR(160),HW$1))-FIND(CHAR(160),SUBSTITUTE($Z153,\"{\",CHAR(160),HW$1))+1),\"\")","v":""},{"$f":"IFERROR(MID($Z153,FIND(CHAR(160),SUBSTITUTE($Z153,\"{\",CHAR(160),HX$1)),FIND(CHAR(160),SUBSTITUTE($Z153,\"}\",CHAR(160),HX$1))-FIND(CHAR(160),SUBSTITUTE($Z153,\"{\",CHAR(160),HX$1))+1),\"\")","v":""},{"$f":"IFERROR(MID($Z153,FIND(CHAR(160),SUBSTITUTE($Z153,\"{\",CHAR(160),HY$1)),FIND(CHAR(160),SUBSTITUTE($Z153,\"}\",CHAR(160),HY$1))-FIND(CHAR(160),SUBSTITUTE($Z153,\"{\",CHAR(160),HY$1))+1),\"\")","v":""},{"$f":"IFERROR(MID($Z153,FIND(CHAR(160),SUBSTITUTE($Z153,\"{\",CHAR(160),HZ$1)),FIND(CHAR(160),SUBSTITUTE($Z153,\"}\",CHAR(160),HZ$1))-FIND(CHAR(160),SUBSTITUTE($Z153,\"{\",CHAR(160),HZ$1))+1),\"\")","v":""},{"$f":"IFERROR(MID($Z153,FIND(CHAR(160),SUBSTITUTE($Z153,\"{\",CHAR(160),IA$1)),FIND(CHAR(160),SUBSTITUTE($Z153,\"}\",CHAR(160),IA$1))-FIND(CHAR(160),SUBSTITUTE($Z153,\"{\",CHAR(160),IA$1))+1),\"\")","v":""},{"$f":"IFERROR(MID($Z153,FIND(CHAR(160),SUBSTITUTE($Z153,\"{\",CHAR(160),IB$1)),FIND(CHAR(160),SUBSTITUTE($Z153,\"}\",CHAR(160),IB$1))-FIND(CHAR(160),SUBSTITUTE($Z153,\"{\",CHAR(160),IB$1))+1),\"\")","v":""},{"$f":"IFERROR(MID($Z153,FIND(CHAR(160),SUBSTITUTE($Z153,\"{\",CHAR(160),IC$1)),FIND(CHAR(160),SUBSTITUTE($Z153,\"}\",CHAR(160),IC$1))-FIND(CHAR(160),SUBSTITUTE($Z153,\"{\",CHAR(160),IC$1))+1),\"\")","v":""},{"$f":"IFERROR(MID($Z153,FIND(CHAR(160),SUBSTITUTE($Z153,\"{\",CHAR(160),ID$1)),FIND(CHAR(160),SUBSTITUTE($Z153,\"}\",CHAR(160),ID$1))-FIND(CHAR(160),SUBSTITUTE($Z153,\"{\",CHAR(160),ID$1))+1),\"\")","v":""},{"$f":"IFERROR(MID($AA153,FIND(CHAR(160),SUBSTITUTE($AA153,\"{\",CHAR(160),IE$1)),FIND(CHAR(160),SUBSTITUTE($AA153,\"}\",CHAR(160),IE$1))-FIND(CHAR(160),SUBSTITUTE($AA153,\"{\",CHAR(160),IE$1))+1),\"\")","v":""},{"$f":"IFERROR(MID($AA153,FIND(CHAR(160),SUBSTITUTE($AA153,\"{\",CHAR(160),IF$1)),FIND(CHAR(160),SUBSTITUTE($AA153,\"}\",CHAR(160),IF$1))-FIND(CHAR(160),SUBSTITUTE($AA153,\"{\",CHAR(160),IF$1))+1),\"\")","v":""},{"$f":"IFERROR(MID($AA153,FIND(CHAR(160),SUBSTITUTE($AA153,\"{\",CHAR(160),IG$1)),FIND(CHAR(160),SUBSTITUTE($AA153,\"}\",CHAR(160),IG$1))-FIND(CHAR(160),SUBSTITUTE($AA153,\"{\",CHAR(160),IG$1))+1),\"\")","v":""},{"$f":"IFERROR(MID($AA153,FIND(CHAR(160),SUBSTITUTE($AA153,\"{\",CHAR(160),IH$1)),FIND(CHAR(160),SUBSTITUTE($AA153,\"}\",CHAR(160),IH$1))-FIND(CHAR(160),SUBSTITUTE($AA153,\"{\",CHAR(160),IH$1))+1),\"\")","v":""},{"$f":"IFERROR(MID($AA153,FIND(CHAR(160),SUBSTITUTE($AA153,\"{\",CHAR(160),II$1)),FIND(CHAR(160),SUBSTITUTE($AA153,\"}\",CHAR(160),II$1))-FIND(CHAR(160),SUBSTITUTE($AA153,\"{\",CHAR(160),II$1))+1),\"\")","v":""},{"$f":"IFERROR(MID($AA153,FIND(CHAR(160),SUBSTITUTE($AA153,\"{\",CHAR(160),IJ$1)),FIND(CHAR(160),SUBSTITUTE($AA153,\"}\",CHAR(160),IJ$1))-FIND(CHAR(160),SUBSTITUTE($AA153,\"{\",CHAR(160),IJ$1))+1),\"\")","v":""},{"$f":"IFERROR(MID($AA153,FIND(CHAR(160),SUBSTITUTE($AA153,\"{\",CHAR(160),IK$1)),FIND(CHAR(160),SUBSTITUTE($AA153,\"}\",CHAR(160),IK$1))-FIND(CHAR(160),SUBSTITUTE($AA153,\"{\",CHAR(160),IK$1))+1),\"\")","v":""},{"$f":"IFERROR(MID($AA153,FIND(CHAR(160),SUBSTITUTE($AA153,\"{\",CHAR(160),IL$1)),FIND(CHAR(160),SUBSTITUTE($AA153,\"}\",CHAR(160),IL$1))-FIND(CHAR(160),SUBSTITUTE($AA153,\"{\",CHAR(160),IL$1))+1),\"\")","v":""},{"$f":"IFERROR(MID($AA153,FIND(CHAR(160),SUBSTITUTE($AA153,\"{\",CHAR(160),IM$1)),FIND(CHAR(160),SUBSTITUTE($AA153,\"}\",CHAR(160),IM$1))-FIND(CHAR(160),SUBSTITUTE($AA153,\"{\",CHAR(160),IM$1))+1),\"\")","v":""},{"$f":"IFERROR(MID($AA153,FIND(CHAR(160),SUBSTITUTE($AA153,\"{\",CHAR(160),IN$1)),FIND(CHAR(160),SUBSTITUTE($AA153,\"}\",CHAR(160),IN$1))-FIND(CHAR(160),SUBSTITUTE($AA153,\"{\",CHAR(160),IN$1))+1),\"\")","v":""},{"$f":"IFERROR(MID($AB153,FIND(CHAR(160),SUBSTITUTE($AB153,\"{\",CHAR(160),IO$1)),FIND(CHAR(160),SUBSTITUTE($AB153,\"}\",CHAR(160),IO$1))-FIND(CHAR(160),SUBSTITUTE($AB153,\"{\",CHAR(160),IO$1))+1),\"\")","v":""},{"$f":"IFERROR(MID($AB153,FIND(CHAR(160),SUBSTITUTE($AB153,\"{\",CHAR(160),IP$1)),FIND(CHAR(160),SUBSTITUTE($AB153,\"}\",CHAR(160),IP$1))-FIND(CHAR(160),SUBSTITUTE($AB153,\"{\",CHAR(160),IP$1))+1),\"\")","v":""},{"$f":"IFERROR(MID($AB153,FIND(CHAR(160),SUBSTITUTE($AB153,\"{\",CHAR(160),IQ$1)),FIND(CHAR(160),SUBSTITUTE($AB153,\"}\",CHAR(160),IQ$1))-FIND(CHAR(160),SUBSTITUTE($AB153,\"{\",CHAR(160),IQ$1))+1),\"\")","v":""},{"$f":"IFERROR(MID($AB153,FIND(CHAR(160),SUBSTITUTE($AB153,\"{\",CHAR(160),IR$1)),FIND(CHAR(160),SUBSTITUTE($AB153,\"}\",CHAR(160),IR$1))-FIND(CHAR(160),SUBSTITUTE($AB153,\"{\",CHAR(160),IR$1))+1),\"\")","v":""},{"$f":"IFERROR(MID($AB153,FIND(CHAR(160),SUBSTITUTE($AB153,\"{\",CHAR(160),IS$1)),FIND(CHAR(160),SUBSTITUTE($AB153,\"}\",CHAR(160),IS$1))-FIND(CHAR(160),SUBSTITUTE($AB153,\"{\",CHAR(160),IS$1))+1),\"\")","v":""},{"$f":"IFERROR(MID($AB153,FIND(CHAR(160),SUBSTITUTE($AB153,\"{\",CHAR(160),IT$1)),FIND(CHAR(160),SUBSTITUTE($AB153,\"}\",CHAR(160),IT$1))-FIND(CHAR(160),SUBSTITUTE($AB153,\"{\",CHAR(160),IT$1))+1),\"\")","v":""},{"$f":"IFERROR(MID($AB153,FIND(CHAR(160),SUBSTITUTE($AB153,\"{\",CHAR(160),IU$1)),FIND(CHAR(160),SUBSTITUTE($AB153,\"}\",CHAR(160),IU$1))-FIND(CHAR(160),SUBSTITUTE($AB153,\"{\",CHAR(160),IU$1))+1),\"\")","v":""},{"$f":"IFERROR(MID($AB153,FIND(CHAR(160),SUBSTITUTE($AB153,\"{\",CHAR(160),IV$1)),FIND(CHAR(160),SUBSTITUTE($AB153,\"}\",CHAR(160),IV$1))-FIND(CHAR(160),SUBSTITUTE($AB153,\"{\",CHAR(160),IV$1))+1),\"\")","v":""},{"$f":"IFERROR(MID($AB153,FIND(CHAR(160),SUBSTITUTE($AB153,\"{\",CHAR(160),IW$1)),FIND(CHAR(160),SUBSTITUTE($AB153,\"}\",CHAR(160),IW$1))-FIND(CHAR(160),SUBSTITUTE($AB153,\"{\",CHAR(160),IW$1))+1),\"\")","v":""},{"$f":"IFERROR(MID($AB153,FIND(CHAR(160),SUBSTITUTE($AB153,\"{\",CHAR(160),IX$1)),FIND(CHAR(160),SUBSTITUTE($AB153,\"}\",CHAR(160),IX$1))-FIND(CHAR(160),SUBSTITUTE($AB153,\"{\",CHAR(160),IX$1))+1),\"\")","v":""},null,{"$f":"10-COUNTIF(DU153:ED153,\"\")","v":3}]
["C&I Refrigeration Solutions","R50 Floating-Head Pressure Controls - Controlling 1 Coil","R50","2021-07-01","2022-06-30","Per Measure",518,0,"Per Measure",250,0,"2020-11-01","2022-06-30","Calculated","{Measure:Quantity} * {Controlled HP} * {Type}",1E-4,null,"{Measure:Quantity} * {Controlled HP} * {Type} / 7221",null,null,"{Measure:Quantity} * {Controlled HP} * {Type} / 7221 * {Factor:WinterCF}","{Measure:Quantity} * {Controlled HP} * {Type} / 7221 * {Factor:SummerCF}",null,null,null,null,null,null,"2020-11-01","2022-06-30",15,0.73699999999999999,0,0.33300000000000002,0.371,0.128,0.16800000000000001,1,1.1220000000000001,1,0.52,1.6E-2,null,{"$f":"DU154","v":"{Type}"},1,{"$f":"DV154","v":"{Measure:Quantity}"},5,{"$f":"DW154","v":"{Controlled HP}"},509,{"$f":"DX154","v":""},null,{"$f":"DY154","v":""},null,{"$f":"DZ154","v":""},null,{"$f":"EA154","v":""},null,{"$f":"EB154","v":""},null,{"$f":"EC154","v":""},null,{"$f":"ED154","v":""},null,{"$f":"AS154 * AU154 * AW154","v":2545},{"$f":"0.0001","v":1E-4},0,{"$f":"AS154 * AU154 * AW154 / 7221","v":0.35244425979781197},0,0,{"$f":"AS154 * AU154 * AW154 / 7221 * AF154","v":0.2597514194709874},{"$f":"AS154 * AU154 * AW154 / 7221 * AG154","v":0},0,0,0,0,0,0,null,"Res","Default DR",{"$f":"Benefits(BL154,BR154,BS154,BT154,BU154,BV154,BW154,BX154,BY154,BZ154,AE154,AH154,AI154,AJ154,AK154,AL154,AM154,AN154,AO154,AP154,CA154,CB154)","v":3838.1149636027385},978.12920541554968,0,0,0,0,0,0,0,{"$f":"SUMPRODUCT(CC154:CK154,--(CC154:CK154>0))","v":4816.2441690182877},{"$f":"-SUMPRODUCT(CC154:CK154,--(CC154:CK154<0))","v":0},null,{"$f":"518","v":518},null,null,{"$f":"CM154+CO154","v":518},{"$f":"IF(NetOrGross=\"Net\",(1-AO154+AP154),1)","v":1},{"$f":"(SUMPRODUCT(CC154:CJ154,--(CC154:CJ154>0))+CN154)*CS154/((-SUMPRODUCT(CC154:CJ154,--(CC154:CJ154<0))+MAX(CO154,CV154)+CP154+CQ154)*CS154+IF(FRIncentives=\"Yes\",CV154*(1-CS154),0))","v":9.2977686660584702},1,{"$f":"250","v":250},null,"Electric","y",null,{"$f":"IF(F154=\"Manual Entry\",\"Manual\",IF(G154=\"\",0,\"X=\"&SUBSTITUTE(SUBSTITUTE(SUBSTITUTE(SUBSTITUTE(SUBSTITUTE(SUBSTITUTE(SUBSTITUTE(SUBSTITUTE(SUBSTITUTE(SUBSTITUTE(SUBSTITUTE(SUBSTITUTE(G154,$ED154,$ED$2&ROW($ED154)),$EC154,$EC$2&ROW($EC154)),$EB154,$EB$2&ROW($EB154)),$EA154,$EA$2&ROW($EA154)),$DZ154,$DZ$2&ROW($DZ154)),$DY154,$DY$2&ROW($DY154)),$DX154,$DX$2&ROW($DX154)),$DW154,$DW$2&ROW($DW154)),$DV154,$DV$2&ROW($DV154)),$DU154,$DU$2&ROW($DU154)),$DT154,$DT$2&ROW($DT154)),$DS154,$DS$2&ROW($DS154))))","v":"X=518"},{"$f":"IF(I154=\"Manual Entry\",\"Manual\",IF(J154=\"\",0,\"X=\"&SUBSTITUTE(SUBSTITUTE(SUBSTITUTE(SUBSTITUTE(SUBSTITUTE(SUBSTITUTE(SUBSTITUTE(SUBSTITUTE(SUBSTITUTE(SUBSTITUTE(SUBSTITUTE(SUBSTITUTE(J154,$ED154,$ED$2&ROW($ED154)),$EC154,$EC$2&ROW($EC154)),$EB154,$EB$2&ROW($EB154)),$EA154,$EA$2&ROW($EA154)),$DZ154,$DZ$2&ROW($DZ154)),$DY154,$DY$2&ROW($DY154)),$DX154,$DX$2&ROW($DX154)),$DW154,$DW$2&ROW($DW154)),$DV154,$DV$2&ROW($DV154)),$DU154,$DU$2&ROW($DU154)),$DT154,$DT$2&ROW($DT154)),$DS154,$DS$2&ROW($DS154))))","v":"X=250"},{"$f":"IF(O154=\"\",0,\"X=\"&SUBSTITUTE(SUBSTITUTE(SUBSTITUTE(SUBSTITUTE(SUBSTITUTE(SUBSTITUTE(SUBSTITUTE(SUBSTITUTE(SUBSTITUTE(SUBSTITUTE(SUBSTITUTE(SUBSTITUTE(O154,$ED154,$ED$2&ROW($ED154)),$EC154,$EC$2&ROW($EC154)),$EB154,$EB$2&ROW($EB154)),$EA154,$EA$2&ROW($EA154)),$DZ154,$DZ$2&ROW($DZ154)),$DY154,$DY$2&ROW($DY154)),$DX154,$DX$2&ROW($DX154)),$DW154,$DW$2&ROW($DW154)),$DV154,$DV$2&ROW($DV154)),$DU154,$DU$2&ROW($DU154)),$DT154,$DT$2&ROW($DT154)),$DS154,$DS$2&ROW($DS154)))","v":"X=AU154 * AW154 * AS154"},{"$f":"IF(P154=\"\",0,\"X=\"&SUBSTITUTE(SUBSTITUTE(SUBSTITUTE(SUBSTITUTE(SUBSTITUTE(SUBSTITUTE(SUBSTITUTE(SUBSTITUTE(SUBSTITUTE(SUBSTITUTE(SUBSTITUTE(SUBSTITUTE(P154,$ED154,$ED$2&ROW($ED154)),$EC154,$EC$2&ROW($EC154)),$EB154,$EB$2&ROW($EB154)),$EA154,$EA$2&ROW($EA154)),$DZ154,$DZ$2&ROW($DZ154)),$DY154,$DY$2&ROW($DY154)),$DX154,$DX$2&ROW($DX154)),$DW154,$DW$2&ROW($DW154)),$DV154,$DV$2&ROW($DV154)),$DU154,$DU$2&ROW($DU154)),$DT154,$DT$2&ROW($DT154)),$DS154,$DS$2&ROW($DS154)))","v":"X=0.0001"},{"$f":"IF(Q154=\"\",0,\"X=\"&SUBSTITUTE(SUBSTITUTE(SUBSTITUTE(SUBSTITUTE(SUBSTITUTE(SUBSTITUTE(SUBSTITUTE(SUBSTITUTE(SUBSTITUTE(SUBSTITUTE(SUBSTITUTE(SUBSTITUTE(Q154,$ED154,$ED$2&ROW($ED154)),$EC154,$EC$2&ROW($EC154)),$EB154,$EB$2&ROW($EB154)),$EA154,$EA$2&ROW($EA154)),$DZ154,$DZ$2&ROW($DZ154)),$DY154,$DY$2&ROW($DY154)),$DX154,$DX$2&ROW($DX154)),$DW154,$DW$2&ROW($DW154)),$DV154,$DV$2&ROW($DV154)),$DU154,$DU$2&ROW($DU154)),$DT154,$DT$2&ROW($DT154)),$DS154,$DS$2&ROW($DS154)))","v":0},{"$f":"IF(R154=\"\",0,\"X=\"&SUBSTITUTE(SUBSTITUTE(SUBSTITUTE(SUBSTITUTE(SUBSTITUTE(SUBSTITUTE(SUBSTITUTE(SUBSTITUTE(SUBSTITUTE(SUBSTITUTE(SUBSTITUTE(SUBSTITUTE(R154,$ED154,$ED$2&ROW($ED154)),$EC154,$EC$2&ROW($EC154)),$EB154,$EB$2&ROW($EB154)),$EA154,$EA$2&ROW($EA154)),$DZ154,$DZ$2&ROW($DZ154)),$DY154,$DY$2&ROW($DY154)),$DX154,$DX$2&ROW($DX154)),$DW154,$DW$2&ROW($DW154)),$DV154,$DV$2&ROW($DV154)),$DU154,$DU$2&ROW($DU154)),$DT154,$DT$2&ROW($DT154)),$DS154,$DS$2&ROW($DS154)))","v":"X=AU154 * AW154 * AS154 / 7221"},{"$f":"IF(S154=\"\",0,\"X=\"&SUBSTITUTE(SUBSTITUTE(SUBSTITUTE(SUBSTITUTE(SUBSTITUTE(SUBSTITUTE(SUBSTITUTE(SUBSTITUTE(SUBSTITUTE(SUBSTITUTE(SUBSTITUTE(SUBSTITUTE(S154,$ED154,$ED$2&ROW($ED154)),$EC154,$EC$2&ROW($EC154)),$EB154,$EB$2&ROW($EB154)),$EA154,$EA$2&ROW($EA154)),$DZ154,$DZ$2&ROW($DZ154)),$DY154,$DY$2&ROW($DY154)),$DX154,$DX$2&ROW($DX154)),$DW154,$DW$2&ROW($DW154)),$DV154,$DV$2&ROW($DV154)),$DU154,$DU$2&ROW($DU154)),$DT154,$DT$2&ROW($DT154)),$DS154,$DS$2&ROW($DS154)))","v":0},{"$f":"IF(T154=\"\",0,\"X=\"&SUBSTITUTE(SUBSTITUTE(SUBSTITUTE(SUBSTITUTE(SUBSTITUTE(SUBSTITUTE(SUBSTITUTE(SUBSTITUTE(SUBSTITUTE(SUBSTITUTE(SUBSTITUTE(SUBSTITUTE(T154,$ED154,$ED$2&ROW($ED154)),$EC154,$EC$2&ROW($EC154)),$EB154,$EB$2&ROW($EB154)),$EA154,$EA$2&ROW($EA154)),$DZ154,$DZ$2&ROW($DZ154)),$DY154,$DY$2&ROW($DY154)),$DX154,$DX$2&ROW($DX154)),$DW154,$DW$2&ROW($DW154)),$DV154,$DV$2&ROW($DV154)),$DU154,$DU$2&ROW($DU154)),$DT154,$DT$2&ROW($DT154)),$DS154,$DS$2&ROW($DS154)))","v":0},{"$f":"IF(U154=\"\",0,\"X=\"&SUBSTITUTE(SUBSTITUTE(SUBSTITUTE(SUBSTITUTE(SUBSTITUTE(SUBSTITUTE(SUBSTITUTE(SUBSTITUTE(SUBSTITUTE(SUBSTITUTE(SUBSTITUTE(SUBSTITUTE(U154,$ED154,$ED$2&ROW($ED154)),$EC154,$EC$2&ROW($EC154)),$EB154,$EB$2&ROW($EB154)),$EA154,$EA$2&ROW($EA154)),$DZ154,$DZ$2&ROW($DZ154)),$DY154,$DY$2&ROW($DY154)),$DX154,$DX$2&ROW($DX154)),$DW154,$DW$2&ROW($DW154)),$DV154,$DV$2&ROW($DV154)),$DU154,$DU$2&ROW($DU154)),$DT154,$DT$2&ROW($DT154)),$DS154,$DS$2&ROW($DS154)))","v":"X=AU154 * AW154 * AS154 / 7221 * AF154"},{"$f":"IF(V154=\"\",0,\"X=\"&SUBSTITUTE(SUBSTITUTE(SUBSTITUTE(SUBSTITUTE(SUBSTITUTE(SUBSTITUTE(SUBSTITUTE(SUBSTITUTE(SUBSTITUTE(SUBSTITUTE(SUBSTITUTE(SUBSTITUTE(V154,$ED154,$ED$2&ROW($ED154)),$EC154,$EC$2&ROW($EC154)),$EB154,$EB$2&ROW($EB154)),$EA154,$EA$2&ROW($EA154)),$DZ154,$DZ$2&ROW($DZ154)),$DY154,$DY$2&ROW($DY154)),$DX154,$DX$2&ROW($DX154)),$DW154,$DW$2&ROW($DW154)),$DV154,$DV$2&ROW($DV154)),$DU154,$DU$2&ROW($DU154)),$DT154,$DT$2&ROW($DT154)),$DS154,$DS$2&ROW($DS154)))","v":"X=AU154 * AW154 * AS154 / 7221 * AG154"},{"$f":"IF(W154=\"\",0,\"X=\"&SUBSTITUTE(SUBSTITUTE(SUBSTITUTE(SUBSTITUTE(SUBSTITUTE(SUBSTITUTE(SUBSTITUTE(SUBSTITUTE(SUBSTITUTE(SUBSTITUTE(SUBSTITUTE(SUBSTITUTE(W154,$ED154,$ED$2&ROW($ED154)),$EC154,$EC$2&ROW($EC154)),$EB154,$EB$2&ROW($EB154)),$EA154,$EA$2&ROW($EA154)),$DZ154,$DZ$2&ROW($DZ154)),$DY154,$DY$2&ROW($DY154)),$DX154,$DX$2&ROW($DX154)),$DW154,$DW$2&ROW($DW154)),$DV154,$DV$2&ROW($DV154)),$DU154,$DU$2&ROW($DU154)),$DT154,$DT$2&ROW($DT154)),$DS154,$DS$2&ROW($DS154)))","v":0},{"$f":"IF(X154=\"\",0,\"X=\"&SUBSTITUTE(SUBSTITUTE(SUBSTITUTE(SUBSTITUTE(SUBSTITUTE(SUBSTITUTE(SUBSTITUTE(SUBSTITUTE(SUBSTITUTE(SUBSTITUTE(SUBSTITUTE(SUBSTITUTE(X154,$ED154,$ED$2&ROW($ED154)),$EC154,$EC$2&ROW($EC154)),$EB154,$EB$2&ROW($EB154)),$EA154,$EA$2&ROW($EA154)),$DZ154,$DZ$2&ROW($DZ154)),$DY154,$DY$2&ROW($DY154)),$DX154,$DX$2&ROW($DX154)),$DW154,$DW$2&ROW($DW154)),$DV154,$DV$2&ROW($DV154)),$DU154,$DU$2&ROW($DU154)),$DT154,$DT$2&ROW($DT154)),$DS154,$DS$2&ROW($DS154)))","v":0},{"$f":"IF(Y154=\"\",0,\"X=\"&SUBSTITUTE(SUBSTITUTE(SUBSTITUTE(SUBSTITUTE(SUBSTITUTE(SUBSTITUTE(SUBSTITUTE(SUBSTITUTE(SUBSTITUTE(SUBSTITUTE(SUBSTITUTE(SUBSTITUTE(Y154,$ED154,$ED$2&ROW($ED154)),$EC154,$EC$2&ROW($EC154)),$EB154,$EB$2&ROW($EB154)),$EA154,$EA$2&ROW($EA154)),$DZ154,$DZ$2&ROW($DZ154)),$DY154,$DY$2&ROW($DY154)),$DX154,$DX$2&ROW($DX154)),$DW154,$DW$2&ROW($DW154)),$DV154,$DV$2&ROW($DV154)),$DU154,$DU$2&ROW($DU154)),$DT154,$DT$2&ROW($DT154)),$DS154,$DS$2&ROW($DS154)))","v":0},{"$f":"IF(Z154=\"\",0,\"X=\"&SUBSTITUTE(SUBSTITUTE(SUBSTITUTE(SUBSTITUTE(SUBSTITUTE(SUBSTITUTE(SUBSTITUTE(SUBSTITUTE(SUBSTITUTE(SUBSTITUTE(SUBSTITUTE(SUBSTITUTE(Z154,$ED154,$ED$2&ROW($ED154)),$EC154,$EC$2&ROW($EC154)),$EB154,$EB$2&ROW($EB154)),$EA154,$EA$2&ROW($EA154)),$DZ154,$DZ$2&ROW($DZ154)),$DY154,$DY$2&ROW($DY154)),$DX154,$DX$2&ROW($DX154)),$DW154,$DW$2&ROW($DW154)),$DV154,$DV$2&ROW($DV154)),$DU154,$DU$2&ROW($DU154)),$DT154,$DT$2&ROW($DT154)),$DS154,$DS$2&ROW($DS154)))","v":0},{"$f":"IF(AA154=\"\",0,\"X=\"&SUBSTITUTE(SUBSTITUTE(SUBSTITUTE(SUBSTITUTE(SUBSTITUTE(SUBSTITUTE(SUBSTITUTE(SUBSTITUTE(SUBSTITUTE(SUBSTITUTE(SUBSTITUTE(SUBSTITUTE(AA154,$ED154,$ED$2&ROW($ED154)),$EC154,$EC$2&ROW($EC154)),$EB154,$EB$2&ROW($EB154)),$EA154,$EA$2&ROW($EA154)),$DZ154,$DZ$2&ROW($DZ154)),$DY154,$DY$2&ROW($DY154)),$DX154,$DX$2&ROW($DX154)),$DW154,$DW$2&ROW($DW154)),$DV154,$DV$2&ROW($DV154)),$DU154,$DU$2&ROW($DU154)),$DT154,$DT$2&ROW($DT154)),$DS154,$DS$2&ROW($DS154)))","v":0},{"$f":"IF(AB154=\"\",0,\"X=\"&SUBSTITUTE(SUBSTITUTE(SUBSTITUTE(SUBSTITUTE(SUBSTITUTE(SUBSTITUTE(SUBSTITUTE(SUBSTITUTE(SUBSTITUTE(SUBSTITUTE(SUBSTITUTE(SUBSTITUTE(AB154,$ED154,$ED$2&ROW($ED154)),$EC154,$EC$2&ROW($EC154)),$EB154,$EB$2&ROW($EB154)),$EA154,$EA$2&ROW($EA154)),$DZ154,$DZ$2&ROW($DZ154)),$DY154,$DY$2&ROW($DY154)),$DX154,$DX$2&ROW($DX154)),$DW154,$DW$2&ROW($DW154)),$DV154,$DV$2&ROW($DV154)),$DU154,$DU$2&ROW($DU154)),$DT154,$DT$2&ROW($DT154)),$DS154,$DS$2&ROW($DS154)))","v":0},null,null,"{Factor:WinterCF}","{Factor:SummerCF}",{"$f":"IFERROR(INDEX($EG154:$IV154,MATCH(0,COUNTIF($DR154:DT154,$EG154:$IV154),0)),\"\")","v":"{Type}"},{"$f":"IFERROR(INDEX($EG154:$IV154,MATCH(0,COUNTIF($DR154:DU154,$EG154:$IV154),0)),\"\")","v":"{Measure:Quantity}"},{"$f":"IFERROR(INDEX($EG154:$IV154,MATCH(0,COUNTIF($DR154:DV154,$EG154:$IV154),0)),\"\")","v":"{Controlled HP}"},{"$f":"IFERROR(INDEX($EG154:$IV154,MATCH(0,COUNTIF($DR154:DW154,$EG154:$IV154),0)),\"\")","v":""},{"$f":"IFERROR(INDEX($EG154:$IV154,MATCH(0,COUNTIF($DR154:DX154,$EG154:$IV154),0)),\"\")","v":""},{"$f":"IFERROR(INDEX($EG154:$IV154,MATCH(0,COUNTIF($DR154:DY154,$EG154:$IV154),0)),\"\")","v":""},{"$f":"IFERROR(INDEX($EG154:$IV154,MATCH(0,COUNTIF($DR154:DZ154,$EG154:$IV154),0)),\"\")","v":""},{"$f":"IFERROR(INDEX($EG154:$IV154,MATCH(0,COUNTIF($DR154:EA154,$EG154:$IV154),0)),\"\")","v":""},{"$f":"IFERROR(INDEX($EG154:$IV154,MATCH(0,COUNTIF($DR154:EB154,$EG154:$IV154),0)),\"\")","v":""},{"$f":"IFERROR(INDEX($EG154:$IV154,MATCH(0,COUNTIF($DR154:EC154,$EG154:$IV154),0)),\"\")","v":""},null,null,{"$f":"IFERROR(MID($G154,FIND(CHAR(160),SUBSTITUTE($G154,\"{\",CHAR(160),EG$1)),FIND(CHAR(160),SUBSTITUTE($G154,\"}\",CHAR(160),EG$1))-FIND(CHAR(160),SUBSTITUTE($G154,\"{\",CHAR(160),EG$1))+1),\"\")","v":""},{"$f":"IFERROR(MID($G154,FIND(CHAR(160),SUBSTITUTE($G154,\"{\",CHAR(160),EH$1)),FIND(CHAR(160),SUBSTITUTE($G154,\"}\",CHAR(160),EH$1))-FIND(CHAR(160),SUBSTITUTE($G154,\"{\",CHAR(160),EH$1))+1),\"\")","v":""},{"$f":"IFERROR(MID($G154,FIND(CHAR(160),SUBSTITUTE($G154,\"{\",CHAR(160),EI$1)),FIND(CHAR(160),SUBSTITUTE($G154,\"}\",CHAR(160),EI$1))-FIND(CHAR(160),SUBSTITUTE($G154,\"{\",CHAR(160),EI$1))+1),\"\")","v":""},{"$f":"IFERROR(MID($G154,FIND(CHAR(160),SUBSTITUTE($G154,\"{\",CHAR(160),EJ$1)),FIND(CHAR(160),SUBSTITUTE($G154,\"}\",CHAR(160),EJ$1))-FIND(CHAR(160),SUBSTITUTE($G154,\"{\",CHAR(160),EJ$1))+1),\"\")","v":""},{"$f":"IFERROR(MID($G154,FIND(CHAR(160),SUBSTITUTE($G154,\"{\",CHAR(160),EK$1)),FIND(CHAR(160),SUBSTITUTE($G154,\"}\",CHAR(160),EK$1))-FIND(CHAR(160),SUBSTITUTE($G154,\"{\",CHAR(160),EK$1))+1),\"\")","v":""},{"$f":"IFERROR(MID($G154,FIND(CHAR(160),SUBSTITUTE($G154,\"{\",CHAR(160),EL$1)),FIND(CHAR(160),SUBSTITUTE($G154,\"}\",CHAR(160),EL$1))-FIND(CHAR(160),SUBSTITUTE($G154,\"{\",CHAR(160),EL$1))+1),\"\")","v":""},{"$f":"IFERROR(MID($G154,FIND(CHAR(160),SUBSTITUTE($G154,\"{\",CHAR(160),EM$1)),FIND(CHAR(160),SUBSTITUTE($G154,\"}\",CHAR(160),EM$1))-FIND(CHAR(160),SUBSTITUTE($G154,\"{\",CHAR(160),EM$1))+1),\"\")","v":""},{"$f":"IFERROR(MID($G154,FIND(CHAR(160),SUBSTITUTE($G154,\"{\",CHAR(160),EN$1)),FIND(CHAR(160),SUBSTITUTE($G154,\"}\",CHAR(160),EN$1))-FIND(CHAR(160),SUBSTITUTE($G154,\"{\",CHAR(160),EN$1))+1),\"\")","v":""},{"$f":"IFERROR(MID($G154,FIND(CHAR(160),SUBSTITUTE($G154,\"{\",CHAR(160),EO$1)),FIND(CHAR(160),SUBSTITUTE($G154,\"}\",CHAR(160),EO$1))-FIND(CHAR(160),SUBSTITUTE($G154,\"{\",CHAR(160),EO$1))+1),\"\")","v":""},{"$f":"IFERROR(MID($G154,FIND(CHAR(160),SUBSTITUTE($G154,\"{\",CHAR(160),EP$1)),FIND(CHAR(160),SUBSTITUTE($G154,\"}\",CHAR(160),EP$1))-FIND(CHAR(160),SUBSTITUTE($G154,\"{\",CHAR(160),EP$1))+1),\"\")","v":""},{"$f":"IFERROR(MID($J154,FIND(CHAR(160),SUBSTITUTE($J154,\"{\",CHAR(160),EQ$1)),FIND(CHAR(160),SUBSTITUTE($J154,\"}\",CHAR(160),EQ$1))-FIND(CHAR(160),SUBSTITUTE($J154,\"{\",CHAR(160),EQ$1))+1),\"\")","v":""},{"$f":"IFERROR(MID($J154,FIND(CHAR(160),SUBSTITUTE($J154,\"{\",CHAR(160),ER$1)),FIND(CHAR(160),SUBSTITUTE($J154,\"}\",CHAR(160),ER$1))-FIND(CHAR(160),SUBSTITUTE($J154,\"{\",CHAR(160),ER$1))+1),\"\")","v":""},{"$f":"IFERROR(MID($J154,FIND(CHAR(160),SUBSTITUTE($J154,\"{\",CHAR(160),ES$1)),FIND(CHAR(160),SUBSTITUTE($J154,\"}\",CHAR(160),ES$1))-FIND(CHAR(160),SUBSTITUTE($J154,\"{\",CHAR(160),ES$1))+1),\"\")","v":""},{"$f":"IFERROR(MID($J154,FIND(CHAR(160),SUBSTITUTE($J154,\"{\",CHAR(160),ET$1)),FIND(CHAR(160),SUBSTITUTE($J154,\"}\",CHAR(160),ET$1))-FIND(CHAR(160),SUBSTITUTE($J154,\"{\",CHAR(160),ET$1))+1),\"\")","v":""},{"$f":"IFERROR(MID($J154,FIND(CHAR(160),SUBSTITUTE($J154,\"{\",CHAR(160),EU$1)),FIND(CHAR(160),SUBSTITUTE($J154,\"}\",CHAR(160),EU$1))-FIND(CHAR(160),SUBSTITUTE($J154,\"{\",CHAR(160),EU$1))+1),\"\")","v":""},{"$f":"IFERROR(MID($J154,FIND(CHAR(160),SUBSTITUTE($J154,\"{\",CHAR(160),EV$1)),FIND(CHAR(160),SUBSTITUTE($J154,\"}\",CHAR(160),EV$1))-FIND(CHAR(160),SUBSTITUTE($J154,\"{\",CHAR(160),EV$1))+1),\"\")","v":""},{"$f":"IFERROR(MID($J154,FIND(CHAR(160),SUBSTITUTE($J154,\"{\",CHAR(160),EW$1)),FIND(CHAR(160),SUBSTITUTE($J154,\"}\",CHAR(160),EW$1))-FIND(CHAR(160),SUBSTITUTE($J154,\"{\",CHAR(160),EW$1))+1),\"\")","v":""},{"$f":"IFERROR(MID($J154,FIND(CHAR(160),SUBSTITUTE($J154,\"{\",CHAR(160),EX$1)),FIND(CHAR(160),SUBSTITUTE($J154,\"}\",CHAR(160),EX$1))-FIND(CHAR(160),SUBSTITUTE($J154,\"{\",CHAR(160),EX$1))+1),\"\")","v":""},{"$f":"IFERROR(MID($J154,FIND(CHAR(160),SUBSTITUTE($J154,\"{\",CHAR(160),EY$1)),FIND(CHAR(160),SUBSTITUTE($J154,\"}\",CHAR(160),EY$1))-FIND(CHAR(160),SUBSTITUTE($J154,\"{\",CHAR(160),EY$1))+1),\"\")","v":""},{"$f":"IFERROR(MID($J154,FIND(CHAR(160),SUBSTITUTE($J154,\"{\",CHAR(160),EZ$1)),FIND(CHAR(160),SUBSTITUTE($J154,\"}\",CHAR(160),EZ$1))-FIND(CHAR(160),SUBSTITUTE($J154,\"{\",CHAR(160),EZ$1))+1),\"\")","v":""},{"$f":"IFERROR(MID($J154,FIND(CHAR(160),SUBSTITUTE($J154,\"{\",CHAR(160),FA$1)),FIND(CHAR(160),SUBSTITUTE($J154,\"}\",CHAR(160),FA$1))-FIND(CHAR(160),SUBSTITUTE($J154,\"{\",CHAR(160),FA$1))+1),\"\")","v":""},{"$f":"IFERROR(MID($J154,FIND(CHAR(160),SUBSTITUTE($J154,\"{\",CHAR(160),FB$1)),FIND(CHAR(160),SUBSTITUTE($J154,\"}\",CHAR(160),FB$1))-FIND(CHAR(160),SUBSTITUTE($J154,\"{\",CHAR(160),FB$1))+1),\"\")","v":""},{"$f":"IFERROR(MID($O154,FIND(CHAR(160),SUBSTITUTE($O154,\"{\",CHAR(160),FC$1)),FIND(CHAR(160),SUBSTITUTE($O154,\"}\",CHAR(160),FC$1))-FIND(CHAR(160),SUBSTITUTE($O154,\"{\",CHAR(160),FC$1))+1),\"\")","v":"{Type}"},{"$f":"IFERROR(MID($O154,FIND(CHAR(160),SUBSTITUTE($O154,\"{\",CHAR(160),FD$1)),FIND(CHAR(160),SUBSTITUTE($O154,\"}\",CHAR(160),FD$1))-FIND(CHAR(160),SUBSTITUTE($O154,\"{\",CHAR(160),FD$1))+1),\"\")","v":""},{"$f":"IFERROR(MID($O154,FIND(CHAR(160),SUBSTITUTE($O154,\"{\",CHAR(160),FE$1)),FIND(CHAR(160),SUBSTITUTE($O154,\"}\",CHAR(160),FE$1))-FIND(CHAR(160),SUBSTITUTE($O154,\"{\",CHAR(160),FE$1))+1),\"\")","v":""},{"$f":"IFERROR(MID($O154,FIND(CHAR(160),SUBSTITUTE($O154,\"{\",CHAR(160),FF$1)),FIND(CHAR(160),SUBSTITUTE($O154,\"}\",CHAR(160),FF$1))-FIND(CHAR(160),SUBSTITUTE($O154,\"{\",CHAR(160),FF$1))+1),\"\")","v":""},{"$f":"IFERROR(MID($O154,FIND(CHAR(160),SUBSTITUTE($O154,\"{\",CHAR(160),FG$1)),FIND(CHAR(160),SUBSTITUTE($O154,\"}\",CHAR(160),FG$1))-FIND(CHAR(160),SUBSTITUTE($O154,\"{\",CHAR(160),FG$1))+1),\"\")","v":""},{"$f":"IFERROR(MID($O154,FIND(CHAR(160),SUBSTITUTE($O154,\"{\",CHAR(160),FH$1)),FIND(CHAR(160),SUBSTITUTE($O154,\"}\",CHAR(160),FH$1))-FIND(CHAR(160),SUBSTITUTE($O154,\"{\",CHAR(160),FH$1))+1),\"\")","v":""},{"$f":"IFERROR(MID($O154,FIND(CHAR(160),SUBSTITUTE($O154,\"{\",CHAR(160),FI$1)),FIND(CHAR(160),SUBSTITUTE($O154,\"}\",CHAR(160),FI$1))-FIND(CHAR(160),SUBSTITUTE($O154,\"{\",CHAR(160),FI$1))+1),\"\")","v":""},{"$f":"IFERROR(MID($O154,FIND(CHAR(160),SUBSTITUTE($O154,\"{\",CHAR(160),FJ$1)),FIND(CHAR(160),SUBSTITUTE($O154,\"}\",CHAR(160),FJ$1))-FIND(CHAR(160),SUBSTITUTE($O154,\"{\",CHAR(160),FJ$1))+1),\"\")","v":""},{"$f":"IFERROR(MID($O154,FIND(CHAR(160),SUBSTITUTE($O154,\"{\",CHAR(160),FK$1)),FIND(CHAR(160),SUBSTITUTE($O154,\"}\",CHAR(160),FK$1))-FIND(CHAR(160),SUBSTITUTE($O154,\"{\",CHAR(160),FK$1))+1),\"\")","v":"{Measure:Quantity}"},{"$f":"IFERROR(MID($O154,FIND(CHAR(160),SUBSTITUTE($O154,\"{\",CHAR(160),FL$1)),FIND(CHAR(160),SUBSTITUTE($O154,\"}\",CHAR(160),FL$1))-FIND(CHAR(160),SUBSTITUTE($O154,\"{\",CHAR(160),FL$1))+1),\"\")","v":"{Controlled HP}"},{"$f":"IFERROR(MID($R154,FIND(CHAR(160),SUBSTITUTE($R154,\"{\",CHAR(160),FM$1)),FIND(CHAR(160),SUBSTITUTE($R154,\"}\",CHAR(160),FM$1))-FIND(CHAR(160),SUBSTITUTE($R154,\"{\",CHAR(160),FM$1))+1),\"\")","v":"{Type}"},{"$f":"IFERROR(MID($R154,FIND(CHAR(160),SUBSTITUTE($R154,\"{\",CHAR(160),FN$1)),FIND(CHAR(160),SUBSTITUTE($R154,\"}\",CHAR(160),FN$1))-FIND(CHAR(160),SUBSTITUTE($R154,\"{\",CHAR(160),FN$1))+1),\"\")","v":""},{"$f":"IFERROR(MID($R154,FIND(CHAR(160),SUBSTITUTE($R154,\"{\",CHAR(160),FO$1)),FIND(CHAR(160),SUBSTITUTE($R154,\"}\",CHAR(160),FO$1))-FIND(CHAR(160),SUBSTITUTE($R154,\"{\",CHAR(160),FO$1))+1),\"\")","v":""},{"$f":"IFERROR(MID($R154,FIND(CHAR(160),SUBSTITUTE($R154,\"{\",CHAR(160),FP$1)),FIND(CHAR(160),SUBSTITUTE($R154,\"}\",CHAR(160),FP$1))-FIND(CHAR(160),SUBSTITUTE($R154,\"{\",CHAR(160),FP$1))+1),\"\")","v":""},{"$f":"IFERROR(MID($R154,FIND(CHAR(160),SUBSTITUTE($R154,\"{\",CHAR(160),FQ$1)),FIND(CHAR(160),SUBSTITUTE($R154,\"}\",CHAR(160),FQ$1))-FIND(CHAR(160),SUBSTITUTE($R154,\"{\",CHAR(160),FQ$1))+1),\"\")","v":""},{"$f":"IFERROR(MID($R154,FIND(CHAR(160),SUBSTITUTE($R154,\"{\",CHAR(160),FR$1)),FIND(CHAR(160),SUBSTITUTE($R154,\"}\",CHAR(160),FR$1))-FIND(CHAR(160),SUBSTITUTE($R154,\"{\",CHAR(160),FR$1))+1),\"\")","v":""},{"$f":"IFERROR(MID($R154,FIND(CHAR(160),SUBSTITUTE($R154,\"{\",CHAR(160),FS$1)),FIND(CHAR(160),SUBSTITUTE($R154,\"}\",CHAR(160),FS$1))-FIND(CHAR(160),SUBSTITUTE($R154,\"{\",CHAR(160),FS$1))+1),\"\")","v":""},{"$f":"IFERROR(MID($R154,FIND(CHAR(160),SUBSTITUTE($R154,\"{\",CHAR(160),FT$1)),FIND(CHAR(160),SUBSTITUTE($R154,\"}\",CHAR(160),FT$1))-FIND(CHAR(160),SUBSTITUTE($R154,\"{\",CHAR(160),FT$1))+1),\"\")","v":""},{"$f":"IFERROR(MID($R154,FIND(CHAR(160),SUBSTITUTE($R154,\"{\",CHAR(160),FU$1)),FIND(CHAR(160),SUBSTITUTE($R154,\"}\",CHAR(160),FU$1))-FIND(CHAR(160),SUBSTITUTE($R154,\"{\",CHAR(160),FU$1))+1),\"\")","v":"{Measure:Quantity}"},{"$f":"IFERROR(MID($R154,FIND(CHAR(160),SUBSTITUTE($R154,\"{\",CHAR(160),FV$1)),FIND(CHAR(160),SUBSTITUTE($R154,\"}\",CHAR(160),FV$1))-FIND(CHAR(160),SUBSTITUTE($R154,\"{\",CHAR(160),FV$1))+1),\"\")","v":"{Controlled HP}"},{"$f":"IFERROR(MID($U154,FIND(CHAR(160),SUBSTITUTE($U154,\"{\",CHAR(160),FW$1)),FIND(CHAR(160),SUBSTITUTE($U154,\"}\",CHAR(160),FW$1))-FIND(CHAR(160),SUBSTITUTE($U154,\"{\",CHAR(160),FW$1))+1),\"\")","v":"{Type}"},{"$f":"IFERROR(MID($U154,FIND(CHAR(160),SUBSTITUTE($U154,\"{\",CHAR(160),FX$1)),FIND(CHAR(160),SUBSTITUTE($U154,\"}\",CHAR(160),FX$1))-FIND(CHAR(160),SUBSTITUTE($U154,\"{\",CHAR(160),FX$1))+1),\"\")","v":"{Factor:WinterCF}"},{"$f":"IFERROR(MID($U154,FIND(CHAR(160),SUBSTITUTE($U154,\"{\",CHAR(160),FY$1)),FIND(CHAR(160),SUBSTITUTE($U154,\"}\",CHAR(160),FY$1))-FIND(CHAR(160),SUBSTITUTE($U154,\"{\",CHAR(160),FY$1))+1),\"\")","v":""},{"$f":"IFERROR(MID($U154,FIND(CHAR(160),SUBSTITUTE($U154,\"{\",CHAR(160),FZ$1)),FIND(CHAR(160),SUBSTITUTE($U154,\"}\",CHAR(160),FZ$1))-FIND(CHAR(160),SUBSTITUTE($U154,\"{\",CHAR(160),FZ$1))+1),\"\")","v":""},{"$f":"IFERROR(MID($U154,FIND(CHAR(160),SUBSTITUTE($U154,\"{\",CHAR(160),GA$1)),FIND(CHAR(160),SUBSTITUTE($U154,\"}\",CHAR(160),GA$1))-FIND(CHAR(160),SUBSTITUTE($U154,\"{\",CHAR(160),GA$1))+1),\"\")","v":""},{"$f":"IFERROR(MID($U154,FIND(CHAR(160),SUBSTITUTE($U154,\"{\",CHAR(160),GB$1)),FIND(CHAR(160),SUBSTITUTE($U154,\"}\",CHAR(160),GB$1))-FIND(CHAR(160),SUBSTITUTE($U154,\"{\",CHAR(160),GB$1))+1),\"\")","v":""},{"$f":"IFERROR(MID($U154,FIND(CHAR(160),SUBSTITUTE($U154,\"{\",CHAR(160),GC$1)),FIND(CHAR(160),SUBSTITUTE($U154,\"}\",CHAR(160),GC$1))-FIND(CHAR(160),SUBSTITUTE($U154,\"{\",CHAR(160),GC$1))+1),\"\")","v":""},{"$f":"IFERROR(MID($U154,FIND(CHAR(160),SUBSTITUTE($U154,\"{\",CHAR(160),GD$1)),FIND(CHAR(160),SUBSTITUTE($U154,\"}\",CHAR(160),GD$1))-FIND(CHAR(160),SUBSTITUTE($U154,\"{\",CHAR(160),GD$1))+1),\"\")","v":""},{"$f":"IFERROR(MID($U154,FIND(CHAR(160),SUBSTITUTE($U154,\"{\",CHAR(160),GE$1)),FIND(CHAR(160),SUBSTITUTE($U154,\"}\",CHAR(160),GE$1))-FIND(CHAR(160),SUBSTITUTE($U154,\"{\",CHAR(160),GE$1))+1),\"\")","v":"{Measure:Quantity}"},{"$f":"IFERROR(MID($U154,FIND(CHAR(160),SUBSTITUTE($U154,\"{\",CHAR(160),GF$1)),FIND(CHAR(160),SUBSTITUTE($U154,\"}\",CHAR(160),GF$1))-FIND(CHAR(160),SUBSTITUTE($U154,\"{\",CHAR(160),GF$1))+1),\"\")","v":"{Controlled HP}"},{"$f":"IFERROR(MID($V154,FIND(CHAR(160),SUBSTITUTE($V154,\"{\",CHAR(160),GG$1)),FIND(CHAR(160),SUBSTITUTE($V154,\"}\",CHAR(160),GG$1))-FIND(CHAR(160),SUBSTITUTE($V154,\"{\",CHAR(160),GG$1))+1),\"\")","v":"{Type}"},{"$f":"IFERROR(MID($V154,FIND(CHAR(160),SUBSTITUTE($V154,\"{\",CHAR(160),GH$1)),FIND(CHAR(160),SUBSTITUTE($V154,\"}\",CHAR(160),GH$1))-FIND(CHAR(160),SUBSTITUTE($V154,\"{\",CHAR(160),GH$1))+1),\"\")","v":"{Factor:SummerCF}"},{"$f":"IFERROR(MID($V154,FIND(CHAR(160),SUBSTITUTE($V154,\"{\",CHAR(160),GI$1)),FIND(CHAR(160),SUBSTITUTE($V154,\"}\",CHAR(160),GI$1))-FIND(CHAR(160),SUBSTITUTE($V154,\"{\",CHAR(160),GI$1))+1),\"\")","v":""},{"$f":"IFERROR(MID($V154,FIND(CHAR(160),SUBSTITUTE($V154,\"{\",CHAR(160),GJ$1)),FIND(CHAR(160),SUBSTITUTE($V154,\"}\",CHAR(160),GJ$1))-FIND(CHAR(160),SUBSTITUTE($V154,\"{\",CHAR(160),GJ$1))+1),\"\")","v":""},{"$f":"IFERROR(MID($V154,FIND(CHAR(160),SUBSTITUTE($V154,\"{\",CHAR(160),GK$1)),FIND(CHAR(160),SUBSTITUTE($V154,\"}\",CHAR(160),GK$1))-FIND(CHAR(160),SUBSTITUTE($V154,\"{\",CHAR(160),GK$1))+1),\"\")","v":""},{"$f":"IFERROR(MID($V154,FIND(CHAR(160),SUBSTITUTE($V154,\"{\",CHAR(160),GL$1)),FIND(CHAR(160),SUBSTITUTE($V154,\"}\",CHAR(160),GL$1))-FIND(CHAR(160),SUBSTITUTE($V154,\"{\",CHAR(160),GL$1))+1),\"\")","v":""},{"$f":"IFERROR(MID($V154,FIND(CHAR(160),SUBSTITUTE($V154,\"{\",CHAR(160),GM$1)),FIND(CHAR(160),SUBSTITUTE($V154,\"}\",CHAR(160),GM$1))-FIND(CHAR(160),SUBSTITUTE($V154,\"{\",CHAR(160),GM$1))+1),\"\")","v":""},{"$f":"IFERROR(MID($V154,FIND(CHAR(160),SUBSTITUTE($V154,\"{\",CHAR(160),GN$1)),FIND(CHAR(160),SUBSTITUTE($V154,\"}\",CHAR(160),GN$1))-FIND(CHAR(160),SUBSTITUTE($V154,\"{\",CHAR(160),GN$1))+1),\"\")","v":""},{"$f":"IFERROR(MID($V154,FIND(CHAR(160),SUBSTITUTE($V154,\"{\",CHAR(160),GO$1)),FIND(CHAR(160),SUBSTITUTE($V154,\"}\",CHAR(160),GO$1))-FIND(CHAR(160),SUBSTITUTE($V154,\"{\",CHAR(160),GO$1))+1),\"\")","v":"{Measure:Quantity}"},{"$f":"IFERROR(MID($V154,FIND(CHAR(160),SUBSTITUTE($V154,\"{\",CHAR(160),GP$1)),FIND(CHAR(160),SUBSTITUTE($V154,\"}\",CHAR(160),GP$1))-FIND(CHAR(160),SUBSTITUTE($V154,\"{\",CHAR(160),GP$1))+1),\"\")","v":"{Controlled HP}"},{"$f":"IFERROR(MID($W154,FIND(CHAR(160),SUBSTITUTE($W154,\"{\",CHAR(160),GQ$1)),FIND(CHAR(160),SUBSTITUTE($W154,\"}\",CHAR(160),GQ$1))-FIND(CHAR(160),SUBSTITUTE($W154,\"{\",CHAR(160),GQ$1))+1),\"\")","v":""},{"$f":"IFERROR(MID($W154,FIND(CHAR(160),SUBSTITUTE($W154,\"{\",CHAR(160),GR$1)),FIND(CHAR(160),SUBSTITUTE($W154,\"}\",CHAR(160),GR$1))-FIND(CHAR(160),SUBSTITUTE($W154,\"{\",CHAR(160),GR$1))+1),\"\")","v":""},{"$f":"IFERROR(MID($W154,FIND(CHAR(160),SUBSTITUTE($W154,\"{\",CHAR(160),GS$1)),FIND(CHAR(160),SUBSTITUTE($W154,\"}\",CHAR(160),GS$1))-FIND(CHAR(160),SUBSTITUTE($W154,\"{\",CHAR(160),GS$1))+1),\"\")","v":""},{"$f":"IFERROR(MID($W154,FIND(CHAR(160),SUBSTITUTE($W154,\"{\",CHAR(160),GT$1)),FIND(CHAR(160),SUBSTITUTE($W154,\"}\",CHAR(160),GT$1))-FIND(CHAR(160),SUBSTITUTE($W154,\"{\",CHAR(160),GT$1))+1),\"\")","v":""},{"$f":"IFERROR(MID($W154,FIND(CHAR(160),SUBSTITUTE($W154,\"{\",CHAR(160),GU$1)),FIND(CHAR(160),SUBSTITUTE($W154,\"}\",CHAR(160),GU$1))-FIND(CHAR(160),SUBSTITUTE($W154,\"{\",CHAR(160),GU$1))+1),\"\")","v":""},{"$f":"IFERROR(MID($W154,FIND(CHAR(160),SUBSTITUTE($W154,\"{\",CHAR(160),GV$1)),FIND(CHAR(160),SUBSTITUTE($W154,\"}\",CHAR(160),GV$1))-FIND(CHAR(160),SUBSTITUTE($W154,\"{\",CHAR(160),GV$1))+1),\"\")","v":""},{"$f":"IFERROR(MID($W154,FIND(CHAR(160),SUBSTITUTE($W154,\"{\",CHAR(160),GW$1)),FIND(CHAR(160),SUBSTITUTE($W154,\"}\",CHAR(160),GW$1))-FIND(CHAR(160),SUBSTITUTE($W154,\"{\",CHAR(160),GW$1))+1),\"\")","v":""},{"$f":"IFERROR(MID($W154,FIND(CHAR(160),SUBSTITUTE($W154,\"{\",CHAR(160),GX$1)),FIND(CHAR(160),SUBSTITUTE($W154,\"}\",CHAR(160),GX$1))-FIND(CHAR(160),SUBSTITUTE($W154,\"{\",CHAR(160),GX$1))+1),\"\")","v":""},{"$f":"IFERROR(MID($W154,FIND(CHAR(160),SUBSTITUTE($W154,\"{\",CHAR(160),GY$1)),FIND(CHAR(160),SUBSTITUTE($W154,\"}\",CHAR(160),GY$1))-FIND(CHAR(160),SUBSTITUTE($W154,\"{\",CHAR(160),GY$1))+1),\"\")","v":""},{"$f":"IFERROR(MID($W154,FIND(CHAR(160),SUBSTITUTE($W154,\"{\",CHAR(160),GZ$1)),FIND(CHAR(160),SUBSTITUTE($W154,\"}\",CHAR(160),GZ$1))-FIND(CHAR(160),SUBSTITUTE($W154,\"{\",CHAR(160),GZ$1))+1),\"\")","v":""},{"$f":"IFERROR(MID($X154,FIND(CHAR(160),SUBSTITUTE($X154,\"{\",CHAR(160),HA$1)),FIND(CHAR(160),SUBSTITUTE($X154,\"}\",CHAR(160),HA$1))-FIND(CHAR(160),SUBSTITUTE($X154,\"{\",CHAR(160),HA$1))+1),\"\")","v":""},{"$f":"IFERROR(MID($X154,FIND(CHAR(160),SUBSTITUTE($X154,\"{\",CHAR(160),HB$1)),FIND(CHAR(160),SUBSTITUTE($X154,\"}\",CHAR(160),HB$1))-FIND(CHAR(160),SUBSTITUTE($X154,\"{\",CHAR(160),HB$1))+1),\"\")","v":""},{"$f":"IFERROR(MID($X154,FIND(CHAR(160),SUBSTITUTE($X154,\"{\",CHAR(160),HC$1)),FIND(CHAR(160),SUBSTITUTE($X154,\"}\",CHAR(160),HC$1))-FIND(CHAR(160),SUBSTITUTE($X154,\"{\",CHAR(160),HC$1))+1),\"\")","v":""},{"$f":"IFERROR(MID($X154,FIND(CHAR(160),SUBSTITUTE($X154,\"{\",CHAR(160),HD$1)),FIND(CHAR(160),SUBSTITUTE($X154,\"}\",CHAR(160),HD$1))-FIND(CHAR(160),SUBSTITUTE($X154,\"{\",CHAR(160),HD$1))+1),\"\")","v":""},{"$f":"IFERROR(MID($X154,FIND(CHAR(160),SUBSTITUTE($X154,\"{\",CHAR(160),HE$1)),FIND(CHAR(160),SUBSTITUTE($X154,\"}\",CHAR(160),HE$1))-FIND(CHAR(160),SUBSTITUTE($X154,\"{\",CHAR(160),HE$1))+1),\"\")","v":""},{"$f":"IFERROR(MID($X154,FIND(CHAR(160),SUBSTITUTE($X154,\"{\",CHAR(160),HF$1)),FIND(CHAR(160),SUBSTITUTE($X154,\"}\",CHAR(160),HF$1))-FIND(CHAR(160),SUBSTITUTE($X154,\"{\",CHAR(160),HF$1))+1),\"\")","v":""},{"$f":"IFERROR(MID($X154,FIND(CHAR(160),SUBSTITUTE($X154,\"{\",CHAR(160),HG$1)),FIND(CHAR(160),SUBSTITUTE($X154,\"}\",CHAR(160),HG$1))-FIND(CHAR(160),SUBSTITUTE($X154,\"{\",CHAR(160),HG$1))+1),\"\")","v":""},{"$f":"IFERROR(MID($X154,FIND(CHAR(160),SUBSTITUTE($X154,\"{\",CHAR(160),HH$1)),FIND(CHAR(160),SUBSTITUTE($X154,\"}\",CHAR(160),HH$1))-FIND(CHAR(160),SUBSTITUTE($X154,\"{\",CHAR(160),HH$1))+1),\"\")","v":""},{"$f":"IFERROR(MID($X154,FIND(CHAR(160),SUBSTITUTE($X154,\"{\",CHAR(160),HI$1)),FIND(CHAR(160),SUBSTITUTE($X154,\"}\",CHAR(160),HI$1))-FIND(CHAR(160),SUBSTITUTE($X154,\"{\",CHAR(160),HI$1))+1),\"\")","v":""},{"$f":"IFERROR(MID($X154,FIND(CHAR(160),SUBSTITUTE($X154,\"{\",CHAR(160),HJ$1)),FIND(CHAR(160),SUBSTITUTE($X154,\"}\",CHAR(160),HJ$1))-FIND(CHAR(160),SUBSTITUTE($X154,\"{\",CHAR(160),HJ$1))+1),\"\")","v":""},{"$f":"IFERROR(MID($Y154,FIND(CHAR(160),SUBSTITUTE($Y154,\"{\",CHAR(160),HK$1)),FIND(CHAR(160),SUBSTITUTE($Y154,\"}\",CHAR(160),HK$1))-FIND(CHAR(160),SUBSTITUTE($Y154,\"{\",CHAR(160),HK$1))+1),\"\")","v":""},{"$f":"IFERROR(MID($Y154,FIND(CHAR(160),SUBSTITUTE($Y154,\"{\",CHAR(160),HL$1)),FIND(CHAR(160),SUBSTITUTE($Y154,\"}\",CHAR(160),HL$1))-FIND(CHAR(160),SUBSTITUTE($Y154,\"{\",CHAR(160),HL$1))+1),\"\")","v":""},{"$f":"IFERROR(MID($Y154,FIND(CHAR(160),SUBSTITUTE($Y154,\"{\",CHAR(160),HM$1)),FIND(CHAR(160),SUBSTITUTE($Y154,\"}\",CHAR(160),HM$1))-FIND(CHAR(160),SUBSTITUTE($Y154,\"{\",CHAR(160),HM$1))+1),\"\")","v":""},{"$f":"IFERROR(MID($Y154,FIND(CHAR(160),SUBSTITUTE($Y154,\"{\",CHAR(160),HN$1)),FIND(CHAR(160),SUBSTITUTE($Y154,\"}\",CHAR(160),HN$1))-FIND(CHAR(160),SUBSTITUTE($Y154,\"{\",CHAR(160),HN$1))+1),\"\")","v":""},{"$f":"IFERROR(MID($Y154,FIND(CHAR(160),SUBSTITUTE($Y154,\"{\",CHAR(160),HO$1)),FIND(CHAR(160),SUBSTITUTE($Y154,\"}\",CHAR(160),HO$1))-FIND(CHAR(160),SUBSTITUTE($Y154,\"{\",CHAR(160),HO$1))+1),\"\")","v":""},{"$f":"IFERROR(MID($Y154,FIND(CHAR(160),SUBSTITUTE($Y154,\"{\",CHAR(160),HP$1)),FIND(CHAR(160),SUBSTITUTE($Y154,\"}\",CHAR(160),HP$1))-FIND(CHAR(160),SUBSTITUTE($Y154,\"{\",CHAR(160),HP$1))+1),\"\")","v":""},{"$f":"IFERROR(MID($Y154,FIND(CHAR(160),SUBSTITUTE($Y154,\"{\",CHAR(160),HQ$1)),FIND(CHAR(160),SUBSTITUTE($Y154,\"}\",CHAR(160),HQ$1))-FIND(CHAR(160),SUBSTITUTE($Y154,\"{\",CHAR(160),HQ$1))+1),\"\")","v":""},{"$f":"IFERROR(MID($Y154,FIND(CHAR(160),SUBSTITUTE($Y154,\"{\",CHAR(160),HR$1)),FIND(CHAR(160),SUBSTITUTE($Y154,\"}\",CHAR(160),HR$1))-FIND(CHAR(160),SUBSTITUTE($Y154,\"{\",CHAR(160),HR$1))+1),\"\")","v":""},{"$f":"IFERROR(MID($Y154,FIND(CHAR(160),SUBSTITUTE($Y154,\"{\",CHAR(160),HS$1)),FIND(CHAR(160),SUBSTITUTE($Y154,\"}\",CHAR(160),HS$1))-FIND(CHAR(160),SUBSTITUTE($Y154,\"{\",CHAR(160),HS$1))+1),\"\")","v":""},{"$f":"IFERROR(MID($Y154,FIND(CHAR(160),SUBSTITUTE($Y154,\"{\",CHAR(160),HT$1)),FIND(CHAR(160),SUBSTITUTE($Y154,\"}\",CHAR(160),HT$1))-FIND(CHAR(160),SUBSTITUTE($Y154,\"{\",CHAR(160),HT$1))+1),\"\")","v":""},{"$f":"IFERROR(MID($Z154,FIND(CHAR(160),SUBSTITUTE($Z154,\"{\",CHAR(160),HU$1)),FIND(CHAR(160),SUBSTITUTE($Z154,\"}\",CHAR(160),HU$1))-FIND(CHAR(160),SUBSTITUTE($Z154,\"{\",CHAR(160),HU$1))+1),\"\")","v":""},{"$f":"IFERROR(MID($Z154,FIND(CHAR(160),SUBSTITUTE($Z154,\"{\",CHAR(160),HV$1)),FIND(CHAR(160),SUBSTITUTE($Z154,\"}\",CHAR(160),HV$1))-FIND(CHAR(160),SUBSTITUTE($Z154,\"{\",CHAR(160),HV$1))+1),\"\")","v":""},{"$f":"IFERROR(MID($Z154,FIND(CHAR(160),SUBSTITUTE($Z154,\"{\",CHAR(160),HW$1)),FIND(CHAR(160),SUBSTITUTE($Z154,\"}\",CHAR(160),HW$1))-FIND(CHAR(160),SUBSTITUTE($Z154,\"{\",CHAR(160),HW$1))+1),\"\")","v":""},{"$f":"IFERROR(MID($Z154,FIND(CHAR(160),SUBSTITUTE($Z154,\"{\",CHAR(160),HX$1)),FIND(CHAR(160),SUBSTITUTE($Z154,\"}\",CHAR(160),HX$1))-FIND(CHAR(160),SUBSTITUTE($Z154,\"{\",CHAR(160),HX$1))+1),\"\")","v":""},{"$f":"IFERROR(MID($Z154,FIND(CHAR(160),SUBSTITUTE($Z154,\"{\",CHAR(160),HY$1)),FIND(CHAR(160),SUBSTITUTE($Z154,\"}\",CHAR(160),HY$1))-FIND(CHAR(160),SUBSTITUTE($Z154,\"{\",CHAR(160),HY$1))+1),\"\")","v":""},{"$f":"IFERROR(MID($Z154,FIND(CHAR(160),SUBSTITUTE($Z154,\"{\",CHAR(160),HZ$1)),FIND(CHAR(160),SUBSTITUTE($Z154,\"}\",CHAR(160),HZ$1))-FIND(CHAR(160),SUBSTITUTE($Z154,\"{\",CHAR(160),HZ$1))+1),\"\")","v":""},{"$f":"IFERROR(MID($Z154,FIND(CHAR(160),SUBSTITUTE($Z154,\"{\",CHAR(160),IA$1)),FIND(CHAR(160),SUBSTITUTE($Z154,\"}\",CHAR(160),IA$1))-FIND(CHAR(160),SUBSTITUTE($Z154,\"{\",CHAR(160),IA$1))+1),\"\")","v":""},{"$f":"IFERROR(MID($Z154,FIND(CHAR(160),SUBSTITUTE($Z154,\"{\",CHAR(160),IB$1)),FIND(CHAR(160),SUBSTITUTE($Z154,\"}\",CHAR(160),IB$1))-FIND(CHAR(160),SUBSTITUTE($Z154,\"{\",CHAR(160),IB$1))+1),\"\")","v":""},{"$f":"IFERROR(MID($Z154,FIND(CHAR(160),SUBSTITUTE($Z154,\"{\",CHAR(160),IC$1)),FIND(CHAR(160),SUBSTITUTE($Z154,\"}\",CHAR(160),IC$1))-FIND(CHAR(160),SUBSTITUTE($Z154,\"{\",CHAR(160),IC$1))+1),\"\")","v":""},{"$f":"IFERROR(MID($Z154,FIND(CHAR(160),SUBSTITUTE($Z154,\"{\",CHAR(160),ID$1)),FIND(CHAR(160),SUBSTITUTE($Z154,\"}\",CHAR(160),ID$1))-FIND(CHAR(160),SUBSTITUTE($Z154,\"{\",CHAR(160),ID$1))+1),\"\")","v":""},{"$f":"IFERROR(MID($AA154,FIND(CHAR(160),SUBSTITUTE($AA154,\"{\",CHAR(160),IE$1)),FIND(CHAR(160),SUBSTITUTE($AA154,\"}\",CHAR(160),IE$1))-FIND(CHAR(160),SUBSTITUTE($AA154,\"{\",CHAR(160),IE$1))+1),\"\")","v":""},{"$f":"IFERROR(MID($AA154,FIND(CHAR(160),SUBSTITUTE($AA154,\"{\",CHAR(160),IF$1)),FIND(CHAR(160),SUBSTITUTE($AA154,\"}\",CHAR(160),IF$1))-FIND(CHAR(160),SUBSTITUTE($AA154,\"{\",CHAR(160),IF$1))+1),\"\")","v":""},{"$f":"IFERROR(MID($AA154,FIND(CHAR(160),SUBSTITUTE($AA154,\"{\",CHAR(160),IG$1)),FIND(CHAR(160),SUBSTITUTE($AA154,\"}\",CHAR(160),IG$1))-FIND(CHAR(160),SUBSTITUTE($AA154,\"{\",CHAR(160),IG$1))+1),\"\")","v":""},{"$f":"IFERROR(MID($AA154,FIND(CHAR(160),SUBSTITUTE($AA154,\"{\",CHAR(160),IH$1)),FIND(CHAR(160),SUBSTITUTE($AA154,\"}\",CHAR(160),IH$1))-FIND(CHAR(160),SUBSTITUTE($AA154,\"{\",CHAR(160),IH$1))+1),\"\")","v":""},{"$f":"IFERROR(MID($AA154,FIND(CHAR(160),SUBSTITUTE($AA154,\"{\",CHAR(160),II$1)),FIND(CHAR(160),SUBSTITUTE($AA154,\"}\",CHAR(160),II$1))-FIND(CHAR(160),SUBSTITUTE($AA154,\"{\",CHAR(160),II$1))+1),\"\")","v":""},{"$f":"IFERROR(MID($AA154,FIND(CHAR(160),SUBSTITUTE($AA154,\"{\",CHAR(160),IJ$1)),FIND(CHAR(160),SUBSTITUTE($AA154,\"}\",CHAR(160),IJ$1))-FIND(CHAR(160),SUBSTITUTE($AA154,\"{\",CHAR(160),IJ$1))+1),\"\")","v":""},{"$f":"IFERROR(MID($AA154,FIND(CHAR(160),SUBSTITUTE($AA154,\"{\",CHAR(160),IK$1)),FIND(CHAR(160),SUBSTITUTE($AA154,\"}\",CHAR(160),IK$1))-FIND(CHAR(160),SUBSTITUTE($AA154,\"{\",CHAR(160),IK$1))+1),\"\")","v":""},{"$f":"IFERROR(MID($AA154,FIND(CHAR(160),SUBSTITUTE($AA154,\"{\",CHAR(160),IL$1)),FIND(CHAR(160),SUBSTITUTE($AA154,\"}\",CHAR(160),IL$1))-FIND(CHAR(160),SUBSTITUTE($AA154,\"{\",CHAR(160),IL$1))+1),\"\")","v":""},{"$f":"IFERROR(MID($AA154,FIND(CHAR(160),SUBSTITUTE($AA154,\"{\",CHAR(160),IM$1)),FIND(CHAR(160),SUBSTITUTE($AA154,\"}\",CHAR(160),IM$1))-FIND(CHAR(160),SUBSTITUTE($AA154,\"{\",CHAR(160),IM$1))+1),\"\")","v":""},{"$f":"IFERROR(MID($AA154,FIND(CHAR(160),SUBSTITUTE($AA154,\"{\",CHAR(160),IN$1)),FIND(CHAR(160),SUBSTITUTE($AA154,\"}\",CHAR(160),IN$1))-FIND(CHAR(160),SUBSTITUTE($AA154,\"{\",CHAR(160),IN$1))+1),\"\")","v":""},{"$f":"IFERROR(MID($AB154,FIND(CHAR(160),SUBSTITUTE($AB154,\"{\",CHAR(160),IO$1)),FIND(CHAR(160),SUBSTITUTE($AB154,\"}\",CHAR(160),IO$1))-FIND(CHAR(160),SUBSTITUTE($AB154,\"{\",CHAR(160),IO$1))+1),\"\")","v":""},{"$f":"IFERROR(MID($AB154,FIND(CHAR(160),SUBSTITUTE($AB154,\"{\",CHAR(160),IP$1)),FIND(CHAR(160),SUBSTITUTE($AB154,\"}\",CHAR(160),IP$1))-FIND(CHAR(160),SUBSTITUTE($AB154,\"{\",CHAR(160),IP$1))+1),\"\")","v":""},{"$f":"IFERROR(MID($AB154,FIND(CHAR(160),SUBSTITUTE($AB154,\"{\",CHAR(160),IQ$1)),FIND(CHAR(160),SUBSTITUTE($AB154,\"}\",CHAR(160),IQ$1))-FIND(CHAR(160),SUBSTITUTE($AB154,\"{\",CHAR(160),IQ$1))+1),\"\")","v":""},{"$f":"IFERROR(MID($AB154,FIND(CHAR(160),SUBSTITUTE($AB154,\"{\",CHAR(160),IR$1)),FIND(CHAR(160),SUBSTITUTE($AB154,\"}\",CHAR(160),IR$1))-FIND(CHAR(160),SUBSTITUTE($AB154,\"{\",CHAR(160),IR$1))+1),\"\")","v":""},{"$f":"IFERROR(MID($AB154,FIND(CHAR(160),SUBSTITUTE($AB154,\"{\",CHAR(160),IS$1)),FIND(CHAR(160),SUBSTITUTE($AB154,\"}\",CHAR(160),IS$1))-FIND(CHAR(160),SUBSTITUTE($AB154,\"{\",CHAR(160),IS$1))+1),\"\")","v":""},{"$f":"IFERROR(MID($AB154,FIND(CHAR(160),SUBSTITUTE($AB154,\"{\",CHAR(160),IT$1)),FIND(CHAR(160),SUBSTITUTE($AB154,\"}\",CHAR(160),IT$1))-FIND(CHAR(160),SUBSTITUTE($AB154,\"{\",CHAR(160),IT$1))+1),\"\")","v":""},{"$f":"IFERROR(MID($AB154,FIND(CHAR(160),SUBSTITUTE($AB154,\"{\",CHAR(160),IU$1)),FIND(CHAR(160),SUBSTITUTE($AB154,\"}\",CHAR(160),IU$1))-FIND(CHAR(160),SUBSTITUTE($AB154,\"{\",CHAR(160),IU$1))+1),\"\")","v":""},{"$f":"IFERROR(MID($AB154,FIND(CHAR(160),SUBSTITUTE($AB154,\"{\",CHAR(160),IV$1)),FIND(CHAR(160),SUBSTITUTE($AB154,\"}\",CHAR(160),IV$1))-FIND(CHAR(160),SUBSTITUTE($AB154,\"{\",CHAR(160),IV$1))+1),\"\")","v":""},{"$f":"IFERROR(MID($AB154,FIND(CHAR(160),SUBSTITUTE($AB154,\"{\",CHAR(160),IW$1)),FIND(CHAR(160),SUBSTITUTE($AB154,\"}\",CHAR(160),IW$1))-FIND(CHAR(160),SUBSTITUTE($AB154,\"{\",CHAR(160),IW$1))+1),\"\")","v":""},{"$f":"IFERROR(MID($AB154,FIND(CHAR(160),SUBSTITUTE($AB154,\"{\",CHAR(160),IX$1)),FIND(CHAR(160),SUBSTITUTE($AB154,\"}\",CHAR(160),IX$1))-FIND(CHAR(160),SUBSTITUTE($AB154,\"{\",CHAR(160),IX$1))+1),\"\")","v":""},null,{"$f":"10-COUNTIF(DU154:ED154,\"\")","v":3}]
["C&I Refrigeration Solutions","R40 High-Efficiency Evaporator Fan Motors - Walk-in Coolers/Freezers","R40","2021-07-01","2022-06-30","Per Measure",144,0,"Per Measure",50,0,"2020-11-01","2022-06-30","Calculated","{Measure:Quantity} * (0.123 - 0.040) * {DC - Evap Fan} * {Temperature} * 8760",1E-4,null,"{Measure:Quantity} * (0.123 - 0.040) * {Temperature}",null,null,"{Measure:Quantity} * (0.123 - 0.040) * {Temperature} * {Factor:WinterCF}","{Measure:Quantity} * (0.123 - 0.040) * {Temperature}* {Factor:SummerCF}",null,null,null,null,null,null,"2020-11-01","2022-06-30",15,0.73699999999999999,0.95899999999999996,0.30399999999999999,0.36199999999999999,0.156,0.17799999999999999,1,1.1220000000000001,1,0.52,1.6E-2,null,{"$f":"DU155","v":"{Temperature}"},1,{"$f":"DV155","v":"{Measure:Quantity}"},1,{"$f":"DW155","v":"{DC - Evap Fan}"},1.2,{"$f":"DX155","v":""},null,{"$f":"DY155","v":""},null,{"$f":"DZ155","v":""},null,{"$f":"EA155","v":""},null,{"$f":"EB155","v":""},null,{"$f":"EC155","v":""},null,{"$f":"ED155","v":""},null,{"$f":"AS155 * (0.123 - 0.04) * AU155 * AW155 * 8760","v":872.49599999999987},{"$f":"0.0001","v":1E-4},0,{"$f":"AS155 * (0.123 - 0.04) * AW155","v":9.959999999999998E-2},0,0,{"$f":"AS155 * (0.123 - 0.04) * AW155 * AF155","v":7.340519999999999E-2},{"$f":"AS155 * (0.123 - 0.04) * AW155* AG155","v":9.5516399999999974E-2},0,0,0,0,0,0,null,"Res","Default DR",{"$f":"Benefits(BL155,BR155,BS155,BT155,BU155,BV155,BW155,BX155,BY155,BZ155,AE155,AH155,AI155,AJ155,AK155,AL155,AM155,AN155,AO155,AP155,CA155,CB155)","v":1308.0221453401746},456.25721857001668,0,0,0,0,0,0,0,{"$f":"SUMPRODUCT(CC155:CK155,--(CC155:CK155>0))","v":1764.2793639101913},{"$f":"-SUMPRODUCT(CC155:CK155,--(CC155:CK155<0))","v":0},null,{"$f":"144","v":144},null,null,{"$f":"CM155+CO155","v":144},{"$f":"IF(NetOrGross=\"Net\",(1-AO155+AP155),1)","v":1},{"$f":"(SUMPRODUCT(CC155:CJ155,--(CC155:CJ155>0))+CN155)*CS155/((-SUMPRODUCT(CC155:CJ155,--(CC155:CJ155<0))+MAX(CO155,CV155)+CP155+CQ155)*CS155+IF(FRIncentives=\"Yes\",CV155*(1-CS155),0))","v":12.251940027154106},1,{"$f":"50","v":50},null,"Electric","y",null,{"$f":"IF(F155=\"Manual Entry\",\"Manual\",IF(G155=\"\",0,\"X=\"&SUBSTITUTE(SUBSTITUTE(SUBSTITUTE(SUBSTITUTE(SUBSTITUTE(SUBSTITUTE(SUBSTITUTE(SUBSTITUTE(SUBSTITUTE(SUBSTITUTE(SUBSTITUTE(SUBSTITUTE(G155,$ED155,$ED$2&ROW($ED155)),$EC155,$EC$2&ROW($EC155)),$EB155,$EB$2&ROW($EB155)),$EA155,$EA$2&ROW($EA155)),$DZ155,$DZ$2&ROW($DZ155)),$DY155,$DY$2&ROW($DY155)),$DX155,$DX$2&ROW($DX155)),$DW155,$DW$2&ROW($DW155)),$DV155,$DV$2&ROW($DV155)),$DU155,$DU$2&ROW($DU155)),$DT155,$DT$2&ROW($DT155)),$DS155,$DS$2&ROW($DS155))))","v":"X=144"},{"$f":"IF(I155=\"Manual Entry\",\"Manual\",IF(J155=\"\",0,\"X=\"&SUBSTITUTE(SUBSTITUTE(SUBSTITUTE(SUBSTITUTE(SUBSTITUTE(SUBSTITUTE(SUBSTITUTE(SUBSTITUTE(SUBSTITUTE(SUBSTITUTE(SUBSTITUTE(SUBSTITUTE(J155,$ED155,$ED$2&ROW($ED155)),$EC155,$EC$2&ROW($EC155)),$EB155,$EB$2&ROW($EB155)),$EA155,$EA$2&ROW($EA155)),$DZ155,$DZ$2&ROW($DZ155)),$DY155,$DY$2&ROW($DY155)),$DX155,$DX$2&ROW($DX155)),$DW155,$DW$2&ROW($DW155)),$DV155,$DV$2&ROW($DV155)),$DU155,$DU$2&ROW($DU155)),$DT155,$DT$2&ROW($DT155)),$DS155,$DS$2&ROW($DS155))))","v":"X=50"},{"$f":"IF(O155=\"\",0,\"X=\"&SUBSTITUTE(SUBSTITUTE(SUBSTITUTE(SUBSTITUTE(SUBSTITUTE(SUBSTITUTE(SUBSTITUTE(SUBSTITUTE(SUBSTITUTE(SUBSTITUTE(SUBSTITUTE(SUBSTITUTE(O155,$ED155,$ED$2&ROW($ED155)),$EC155,$EC$2&ROW($EC155)),$EB155,$EB$2&ROW($EB155)),$EA155,$EA$2&ROW($EA155)),$DZ155,$DZ$2&ROW($DZ155)),$DY155,$DY$2&ROW($DY155)),$DX155,$DX$2&ROW($DX155)),$DW155,$DW$2&ROW($DW155)),$DV155,$DV$2&ROW($DV155)),$DU155,$DU$2&ROW($DU155)),$DT155,$DT$2&ROW($DT155)),$DS155,$DS$2&ROW($DS155)))","v":"X=AU155 * (0.123 - 0.040) * AW155 * AS155 * 8760"},{"$f":"IF(P155=\"\",0,\"X=\"&SUBSTITUTE(SUBSTITUTE(SUBSTITUTE(SUBSTITUTE(SUBSTITUTE(SUBSTITUTE(SUBSTITUTE(SUBSTITUTE(SUBSTITUTE(SUBSTITUTE(SUBSTITUTE(SUBSTITUTE(P155,$ED155,$ED$2&ROW($ED155)),$EC155,$EC$2&ROW($EC155)),$EB155,$EB$2&ROW($EB155)),$EA155,$EA$2&ROW($EA155)),$DZ155,$DZ$2&ROW($DZ155)),$DY155,$DY$2&ROW($DY155)),$DX155,$DX$2&ROW($DX155)),$DW155,$DW$2&ROW($DW155)),$DV155,$DV$2&ROW($DV155)),$DU155,$DU$2&ROW($DU155)),$DT155,$DT$2&ROW($DT155)),$DS155,$DS$2&ROW($DS155)))","v":"X=0.0001"},{"$f":"IF(Q155=\"\",0,\"X=\"&SUBSTITUTE(SUBSTITUTE(SUBSTITUTE(SUBSTITUTE(SUBSTITUTE(SUBSTITUTE(SUBSTITUTE(SUBSTITUTE(SUBSTITUTE(SUBSTITUTE(SUBSTITUTE(SUBSTITUTE(Q155,$ED155,$ED$2&ROW($ED155)),$EC155,$EC$2&ROW($EC155)),$EB155,$EB$2&ROW($EB155)),$EA155,$EA$2&ROW($EA155)),$DZ155,$DZ$2&ROW($DZ155)),$DY155,$DY$2&ROW($DY155)),$DX155,$DX$2&ROW($DX155)),$DW155,$DW$2&ROW($DW155)),$DV155,$DV$2&ROW($DV155)),$DU155,$DU$2&ROW($DU155)),$DT155,$DT$2&ROW($DT155)),$DS155,$DS$2&ROW($DS155)))","v":0},{"$f":"IF(R155=\"\",0,\"X=\"&SUBSTITUTE(SUBSTITUTE(SUBSTITUTE(SUBSTITUTE(SUBSTITUTE(SUBSTITUTE(SUBSTITUTE(SUBSTITUTE(SUBSTITUTE(SUBSTITUTE(SUBSTITUTE(SUBSTITUTE(R155,$ED155,$ED$2&ROW($ED155)),$EC155,$EC$2&ROW($EC155)),$EB155,$EB$2&ROW($EB155)),$EA155,$EA$2&ROW($EA155)),$DZ155,$DZ$2&ROW($DZ155)),$DY155,$DY$2&ROW($DY155)),$DX155,$DX$2&ROW($DX155)),$DW155,$DW$2&ROW($DW155)),$DV155,$DV$2&ROW($DV155)),$DU155,$DU$2&ROW($DU155)),$DT155,$DT$2&ROW($DT155)),$DS155,$DS$2&ROW($DS155)))","v":"X=AU155 * (0.123 - 0.040) * AS155"},{"$f":"IF(S155=\"\",0,\"X=\"&SUBSTITUTE(SUBSTITUTE(SUBSTITUTE(SUBSTITUTE(SUBSTITUTE(SUBSTITUTE(SUBSTITUTE(SUBSTITUTE(SUBSTITUTE(SUBSTITUTE(SUBSTITUTE(SUBSTITUTE(S155,$ED155,$ED$2&ROW($ED155)),$EC155,$EC$2&ROW($EC155)),$EB155,$EB$2&ROW($EB155)),$EA155,$EA$2&ROW($EA155)),$DZ155,$DZ$2&ROW($DZ155)),$DY155,$DY$2&ROW($DY155)),$DX155,$DX$2&ROW($DX155)),$DW155,$DW$2&ROW($DW155)),$DV155,$DV$2&ROW($DV155)),$DU155,$DU$2&ROW($DU155)),$DT155,$DT$2&ROW($DT155)),$DS155,$DS$2&ROW($DS155)))","v":0},{"$f":"IF(T155=\"\",0,\"X=\"&SUBSTITUTE(SUBSTITUTE(SUBSTITUTE(SUBSTITUTE(SUBSTITUTE(SUBSTITUTE(SUBSTITUTE(SUBSTITUTE(SUBSTITUTE(SUBSTITUTE(SUBSTITUTE(SUBSTITUTE(T155,$ED155,$ED$2&ROW($ED155)),$EC155,$EC$2&ROW($EC155)),$EB155,$EB$2&ROW($EB155)),$EA155,$EA$2&ROW($EA155)),$DZ155,$DZ$2&ROW($DZ155)),$DY155,$DY$2&ROW($DY155)),$DX155,$DX$2&ROW($DX155)),$DW155,$DW$2&ROW($DW155)),$DV155,$DV$2&ROW($DV155)),$DU155,$DU$2&ROW($DU155)),$DT155,$DT$2&ROW($DT155)),$DS155,$DS$2&ROW($DS155)))","v":0},{"$f":"IF(U155=\"\",0,\"X=\"&SUBSTITUTE(SUBSTITUTE(SUBSTITUTE(SUBSTITUTE(SUBSTITUTE(SUBSTITUTE(SUBSTITUTE(SUBSTITUTE(SUBSTITUTE(SUBSTITUTE(SUBSTITUTE(SUBSTITUTE(U155,$ED155,$ED$2&ROW($ED155)),$EC155,$EC$2&ROW($EC155)),$EB155,$EB$2&ROW($EB155)),$EA155,$EA$2&ROW($EA155)),$DZ155,$DZ$2&ROW($DZ155)),$DY155,$DY$2&ROW($DY155)),$DX155,$DX$2&ROW($DX155)),$DW155,$DW$2&ROW($DW155)),$DV155,$DV$2&ROW($DV155)),$DU155,$DU$2&ROW($DU155)),$DT155,$DT$2&ROW($DT155)),$DS155,$DS$2&ROW($DS155)))","v":"X=AU155 * (0.123 - 0.040) * AS155 * AF155"},{"$f":"IF(V155=\"\",0,\"X=\"&SUBSTITUTE(SUBSTITUTE(SUBSTITUTE(SUBSTITUTE(SUBSTITUTE(SUBSTITUTE(SUBSTITUTE(SUBSTITUTE(SUBSTITUTE(SUBSTITUTE(SUBSTITUTE(SUBSTITUTE(V155,$ED155,$ED$2&ROW($ED155)),$EC155,$EC$2&ROW($EC155)),$EB155,$EB$2&ROW($EB155)),$EA155,$EA$2&ROW($EA155)),$DZ155,$DZ$2&ROW($DZ155)),$DY155,$DY$2&ROW($DY155)),$DX155,$DX$2&ROW($DX155)),$DW155,$DW$2&ROW($DW155)),$DV155,$DV$2&ROW($DV155)),$DU155,$DU$2&ROW($DU155)),$DT155,$DT$2&ROW($DT155)),$DS155,$DS$2&ROW($DS155)))","v":"X=AU155 * (0.123 - 0.040) * AS155* AG155"},{"$f":"IF(W155=\"\",0,\"X=\"&SUBSTITUTE(SUBSTITUTE(SUBSTITUTE(SUBSTITUTE(SUBSTITUTE(SUBSTITUTE(SUBSTITUTE(SUBSTITUTE(SUBSTITUTE(SUBSTITUTE(SUBSTITUTE(SUBSTITUTE(W155,$ED155,$ED$2&ROW($ED155)),$EC155,$EC$2&ROW($EC155)),$EB155,$EB$2&ROW($EB155)),$EA155,$EA$2&ROW($EA155)),$DZ155,$DZ$2&ROW($DZ155)),$DY155,$DY$2&ROW($DY155)),$DX155,$DX$2&ROW($DX155)),$DW155,$DW$2&ROW($DW155)),$DV155,$DV$2&ROW($DV155)),$DU155,$DU$2&ROW($DU155)),$DT155,$DT$2&ROW($DT155)),$DS155,$DS$2&ROW($DS155)))","v":0},{"$f":"IF(X155=\"\",0,\"X=\"&SUBSTITUTE(SUBSTITUTE(SUBSTITUTE(SUBSTITUTE(SUBSTITUTE(SUBSTITUTE(SUBSTITUTE(SUBSTITUTE(SUBSTITUTE(SUBSTITUTE(SUBSTITUTE(SUBSTITUTE(X155,$ED155,$ED$2&ROW($ED155)),$EC155,$EC$2&ROW($EC155)),$EB155,$EB$2&ROW($EB155)),$EA155,$EA$2&ROW($EA155)),$DZ155,$DZ$2&ROW($DZ155)),$DY155,$DY$2&ROW($DY155)),$DX155,$DX$2&ROW($DX155)),$DW155,$DW$2&ROW($DW155)),$DV155,$DV$2&ROW($DV155)),$DU155,$DU$2&ROW($DU155)),$DT155,$DT$2&ROW($DT155)),$DS155,$DS$2&ROW($DS155)))","v":0},{"$f":"IF(Y155=\"\",0,\"X=\"&SUBSTITUTE(SUBSTITUTE(SUBSTITUTE(SUBSTITUTE(SUBSTITUTE(SUBSTITUTE(SUBSTITUTE(SUBSTITUTE(SUBSTITUTE(SUBSTITUTE(SUBSTITUTE(SUBSTITUTE(Y155,$ED155,$ED$2&ROW($ED155)),$EC155,$EC$2&ROW($EC155)),$EB155,$EB$2&ROW($EB155)),$EA155,$EA$2&ROW($EA155)),$DZ155,$DZ$2&ROW($DZ155)),$DY155,$DY$2&ROW($DY155)),$DX155,$DX$2&ROW($DX155)),$DW155,$DW$2&ROW($DW155)),$DV155,$DV$2&ROW($DV155)),$DU155,$DU$2&ROW($DU155)),$DT155,$DT$2&ROW($DT155)),$DS155,$DS$2&ROW($DS155)))","v":0},{"$f":"IF(Z155=\"\",0,\"X=\"&SUBSTITUTE(SUBSTITUTE(SUBSTITUTE(SUBSTITUTE(SUBSTITUTE(SUBSTITUTE(SUBSTITUTE(SUBSTITUTE(SUBSTITUTE(SUBSTITUTE(SUBSTITUTE(SUBSTITUTE(Z155,$ED155,$ED$2&ROW($ED155)),$EC155,$EC$2&ROW($EC155)),$EB155,$EB$2&ROW($EB155)),$EA155,$EA$2&ROW($EA155)),$DZ155,$DZ$2&ROW($DZ155)),$DY155,$DY$2&ROW($DY155)),$DX155,$DX$2&ROW($DX155)),$DW155,$DW$2&ROW($DW155)),$DV155,$DV$2&ROW($DV155)),$DU155,$DU$2&ROW($DU155)),$DT155,$DT$2&ROW($DT155)),$DS155,$DS$2&ROW($DS155)))","v":0},{"$f":"IF(AA155=\"\",0,\"X=\"&SUBSTITUTE(SUBSTITUTE(SUBSTITUTE(SUBSTITUTE(SUBSTITUTE(SUBSTITUTE(SUBSTITUTE(SUBSTITUTE(SUBSTITUTE(SUBSTITUTE(SUBSTITUTE(SUBSTITUTE(AA155,$ED155,$ED$2&ROW($ED155)),$EC155,$EC$2&ROW($EC155)),$EB155,$EB$2&ROW($EB155)),$EA155,$EA$2&ROW($EA155)),$DZ155,$DZ$2&ROW($DZ155)),$DY155,$DY$2&ROW($DY155)),$DX155,$DX$2&ROW($DX155)),$DW155,$DW$2&ROW($DW155)),$DV155,$DV$2&ROW($DV155)),$DU155,$DU$2&ROW($DU155)),$DT155,$DT$2&ROW($DT155)),$DS155,$DS$2&ROW($DS155)))","v":0},{"$f":"IF(AB155=\"\",0,\"X=\"&SUBSTITUTE(SUBSTITUTE(SUBSTITUTE(SUBSTITUTE(SUBSTITUTE(SUBSTITUTE(SUBSTITUTE(SUBSTITUTE(SUBSTITUTE(SUBSTITUTE(SUBSTITUTE(SUBSTITUTE(AB155,$ED155,$ED$2&ROW($ED155)),$EC155,$EC$2&ROW($EC155)),$EB155,$EB$2&ROW($EB155)),$EA155,$EA$2&ROW($EA155)),$DZ155,$DZ$2&ROW($DZ155)),$DY155,$DY$2&ROW($DY155)),$DX155,$DX$2&ROW($DX155)),$DW155,$DW$2&ROW($DW155)),$DV155,$DV$2&ROW($DV155)),$DU155,$DU$2&ROW($DU155)),$DT155,$DT$2&ROW($DT155)),$DS155,$DS$2&ROW($DS155)))","v":0},null,null,"{Factor:WinterCF}","{Factor:SummerCF}",{"$f":"IFERROR(INDEX($EG155:$IV155,MATCH(0,COUNTIF($DR155:DT155,$EG155:$IV155),0)),\"\")","v":"{Temperature}"},{"$f":"IFERROR(INDEX($EG155:$IV155,MATCH(0,COUNTIF($DR155:DU155,$EG155:$IV155),0)),\"\")","v":"{Measure:Quantity}"},{"$f":"IFERROR(INDEX($EG155:$IV155,MATCH(0,COUNTIF($DR155:DV155,$EG155:$IV155),0)),\"\")","v":"{DC - Evap Fan}"},{"$f":"IFERROR(INDEX($EG155:$IV155,MATCH(0,COUNTIF($DR155:DW155,$EG155:$IV155),0)),\"\")","v":""},{"$f":"IFERROR(INDEX($EG155:$IV155,MATCH(0,COUNTIF($DR155:DX155,$EG155:$IV155),0)),\"\")","v":""},{"$f":"IFERROR(INDEX($EG155:$IV155,MATCH(0,COUNTIF($DR155:DY155,$EG155:$IV155),0)),\"\")","v":""},{"$f":"IFERROR(INDEX($EG155:$IV155,MATCH(0,COUNTIF($DR155:DZ155,$EG155:$IV155),0)),\"\")","v":""},{"$f":"IFERROR(INDEX($EG155:$IV155,MATCH(0,COUNTIF($DR155:EA155,$EG155:$IV155),0)),\"\")","v":""},{"$f":"IFERROR(INDEX($EG155:$IV155,MATCH(0,COUNTIF($DR155:EB155,$EG155:$IV155),0)),\"\")","v":""},{"$f":"IFERROR(INDEX($EG155:$IV155,MATCH(0,COUNTIF($DR155:EC155,$EG155:$IV155),0)),\"\")","v":""},null,null,{"$f":"IFERROR(MID($G155,FIND(CHAR(160),SUBSTITUTE($G155,\"{\",CHAR(160),EG$1)),FIND(CHAR(160),SUBSTITUTE($G155,\"}\",CHAR(160),EG$1))-FIND(CHAR(160),SUBSTITUTE($G155,\"{\",CHAR(160),EG$1))+1),\"\")","v":""},{"$f":"IFERROR(MID($G155,FIND(CHAR(160),SUBSTITUTE($G155,\"{\",CHAR(160),EH$1)),FIND(CHAR(160),SUBSTITUTE($G155,\"}\",CHAR(160),EH$1))-FIND(CHAR(160),SUBSTITUTE($G155,\"{\",CHAR(160),EH$1))+1),\"\")","v":""},{"$f":"IFERROR(MID($G155,FIND(CHAR(160),SUBSTITUTE($G155,\"{\",CHAR(160),EI$1)),FIND(CHAR(160),SUBSTITUTE($G155,\"}\",CHAR(160),EI$1))-FIND(CHAR(160),SUBSTITUTE($G155,\"{\",CHAR(160),EI$1))+1),\"\")","v":""},{"$f":"IFERROR(MID($G155,FIND(CHAR(160),SUBSTITUTE($G155,\"{\",CHAR(160),EJ$1)),FIND(CHAR(160),SUBSTITUTE($G155,\"}\",CHAR(160),EJ$1))-FIND(CHAR(160),SUBSTITUTE($G155,\"{\",CHAR(160),EJ$1))+1),\"\")","v":""},{"$f":"IFERROR(MID($G155,FIND(CHAR(160),SUBSTITUTE($G155,\"{\",CHAR(160),EK$1)),FIND(CHAR(160),SUBSTITUTE($G155,\"}\",CHAR(160),EK$1))-FIND(CHAR(160),SUBSTITUTE($G155,\"{\",CHAR(160),EK$1))+1),\"\")","v":""},{"$f":"IFERROR(MID($G155,FIND(CHAR(160),SUBSTITUTE($G155,\"{\",CHAR(160),EL$1)),FIND(CHAR(160),SUBSTITUTE($G155,\"}\",CHAR(160),EL$1))-FIND(CHAR(160),SUBSTITUTE($G155,\"{\",CHAR(160),EL$1))+1),\"\")","v":""},{"$f":"IFERROR(MID($G155,FIND(CHAR(160),SUBSTITUTE($G155,\"{\",CHAR(160),EM$1)),FIND(CHAR(160),SUBSTITUTE($G155,\"}\",CHAR(160),EM$1))-FIND(CHAR(160),SUBSTITUTE($G155,\"{\",CHAR(160),EM$1))+1),\"\")","v":""},{"$f":"IFERROR(MID($G155,FIND(CHAR(160),SUBSTITUTE($G155,\"{\",CHAR(160),EN$1)),FIND(CHAR(160),SUBSTITUTE($G155,\"}\",CHAR(160),EN$1))-FIND(CHAR(160),SUBSTITUTE($G155,\"{\",CHAR(160),EN$1))+1),\"\")","v":""},{"$f":"IFERROR(MID($G155,FIND(CHAR(160),SUBSTITUTE($G155,\"{\",CHAR(160),EO$1)),FIND(CHAR(160),SUBSTITUTE($G155,\"}\",CHAR(160),EO$1))-FIND(CHAR(160),SUBSTITUTE($G155,\"{\",CHAR(160),EO$1))+1),\"\")","v":""},{"$f":"IFERROR(MID($G155,FIND(CHAR(160),SUBSTITUTE($G155,\"{\",CHAR(160),EP$1)),FIND(CHAR(160),SUBSTITUTE($G155,\"}\",CHAR(160),EP$1))-FIND(CHAR(160),SUBSTITUTE($G155,\"{\",CHAR(160),EP$1))+1),\"\")","v":""},{"$f":"IFERROR(MID($J155,FIND(CHAR(160),SUBSTITUTE($J155,\"{\",CHAR(160),EQ$1)),FIND(CHAR(160),SUBSTITUTE($J155,\"}\",CHAR(160),EQ$1))-FIND(CHAR(160),SUBSTITUTE($J155,\"{\",CHAR(160),EQ$1))+1),\"\")","v":""},{"$f":"IFERROR(MID($J155,FIND(CHAR(160),SUBSTITUTE($J155,\"{\",CHAR(160),ER$1)),FIND(CHAR(160),SUBSTITUTE($J155,\"}\",CHAR(160),ER$1))-FIND(CHAR(160),SUBSTITUTE($J155,\"{\",CHAR(160),ER$1))+1),\"\")","v":""},{"$f":"IFERROR(MID($J155,FIND(CHAR(160),SUBSTITUTE($J155,\"{\",CHAR(160),ES$1)),FIND(CHAR(160),SUBSTITUTE($J155,\"}\",CHAR(160),ES$1))-FIND(CHAR(160),SUBSTITUTE($J155,\"{\",CHAR(160),ES$1))+1),\"\")","v":""},{"$f":"IFERROR(MID($J155,FIND(CHAR(160),SUBSTITUTE($J155,\"{\",CHAR(160),ET$1)),FIND(CHAR(160),SUBSTITUTE($J155,\"}\",CHAR(160),ET$1))-FIND(CHAR(160),SUBSTITUTE($J155,\"{\",CHAR(160),ET$1))+1),\"\")","v":""},{"$f":"IFERROR(MID($J155,FIND(CHAR(160),SUBSTITUTE($J155,\"{\",CHAR(160),EU$1)),FIND(CHAR(160),SUBSTITUTE($J155,\"}\",CHAR(160),EU$1))-FIND(CHAR(160),SUBSTITUTE($J155,\"{\",CHAR(160),EU$1))+1),\"\")","v":""},{"$f":"IFERROR(MID($J155,FIND(CHAR(160),SUBSTITUTE($J155,\"{\",CHAR(160),EV$1)),FIND(CHAR(160),SUBSTITUTE($J155,\"}\",CHAR(160),EV$1))-FIND(CHAR(160),SUBSTITUTE($J155,\"{\",CHAR(160),EV$1))+1),\"\")","v":""},{"$f":"IFERROR(MID($J155,FIND(CHAR(160),SUBSTITUTE($J155,\"{\",CHAR(160),EW$1)),FIND(CHAR(160),SUBSTITUTE($J155,\"}\",CHAR(160),EW$1))-FIND(CHAR(160),SUBSTITUTE($J155,\"{\",CHAR(160),EW$1))+1),\"\")","v":""},{"$f":"IFERROR(MID($J155,FIND(CHAR(160),SUBSTITUTE($J155,\"{\",CHAR(160),EX$1)),FIND(CHAR(160),SUBSTITUTE($J155,\"}\",CHAR(160),EX$1))-FIND(CHAR(160),SUBSTITUTE($J155,\"{\",CHAR(160),EX$1))+1),\"\")","v":""},{"$f":"IFERROR(MID($J155,FIND(CHAR(160),SUBSTITUTE($J155,\"{\",CHAR(160),EY$1)),FIND(CHAR(160),SUBSTITUTE($J155,\"}\",CHAR(160),EY$1))-FIND(CHAR(160),SUBSTITUTE($J155,\"{\",CHAR(160),EY$1))+1),\"\")","v":""},{"$f":"IFERROR(MID($J155,FIND(CHAR(160),SUBSTITUTE($J155,\"{\",CHAR(160),EZ$1)),FIND(CHAR(160),SUBSTITUTE($J155,\"}\",CHAR(160),EZ$1))-FIND(CHAR(160),SUBSTITUTE($J155,\"{\",CHAR(160),EZ$1))+1),\"\")","v":""},{"$f":"IFERROR(MID($J155,FIND(CHAR(160),SUBSTITUTE($J155,\"{\",CHAR(160),FA$1)),FIND(CHAR(160),SUBSTITUTE($J155,\"}\",CHAR(160),FA$1))-FIND(CHAR(160),SUBSTITUTE($J155,\"{\",CHAR(160),FA$1))+1),\"\")","v":""},{"$f":"IFERROR(MID($J155,FIND(CHAR(160),SUBSTITUTE($J155,\"{\",CHAR(160),FB$1)),FIND(CHAR(160),SUBSTITUTE($J155,\"}\",CHAR(160),FB$1))-FIND(CHAR(160),SUBSTITUTE($J155,\"{\",CHAR(160),FB$1))+1),\"\")","v":""},{"$f":"IFERROR(MID($O155,FIND(CHAR(160),SUBSTITUTE($O155,\"{\",CHAR(160),FC$1)),FIND(CHAR(160),SUBSTITUTE($O155,\"}\",CHAR(160),FC$1))-FIND(CHAR(160),SUBSTITUTE($O155,\"{\",CHAR(160),FC$1))+1),\"\")","v":"{Temperature}"},{"$f":"IFERROR(MID($O155,FIND(CHAR(160),SUBSTITUTE($O155,\"{\",CHAR(160),FD$1)),FIND(CHAR(160),SUBSTITUTE($O155,\"}\",CHAR(160),FD$1))-FIND(CHAR(160),SUBSTITUTE($O155,\"{\",CHAR(160),FD$1))+1),\"\")","v":""},{"$f":"IFERROR(MID($O155,FIND(CHAR(160),SUBSTITUTE($O155,\"{\",CHAR(160),FE$1)),FIND(CHAR(160),SUBSTITUTE($O155,\"}\",CHAR(160),FE$1))-FIND(CHAR(160),SUBSTITUTE($O155,\"{\",CHAR(160),FE$1))+1),\"\")","v":""},{"$f":"IFERROR(MID($O155,FIND(CHAR(160),SUBSTITUTE($O155,\"{\",CHAR(160),FF$1)),FIND(CHAR(160),SUBSTITUTE($O155,\"}\",CHAR(160),FF$1))-FIND(CHAR(160),SUBSTITUTE($O155,\"{\",CHAR(160),FF$1))+1),\"\")","v":""},{"$f":"IFERROR(MID($O155,FIND(CHAR(160),SUBSTITUTE($O155,\"{\",CHAR(160),FG$1)),FIND(CHAR(160),SUBSTITUTE($O155,\"}\",CHAR(160),FG$1))-FIND(CHAR(160),SUBSTITUTE($O155,\"{\",CHAR(160),FG$1))+1),\"\")","v":""},{"$f":"IFERROR(MID($O155,FIND(CHAR(160),SUBSTITUTE($O155,\"{\",CHAR(160),FH$1)),FIND(CHAR(160),SUBSTITUTE($O155,\"}\",CHAR(160),FH$1))-FIND(CHAR(160),SUBSTITUTE($O155,\"{\",CHAR(160),FH$1))+1),\"\")","v":""},{"$f":"IFERROR(MID($O155,FIND(CHAR(160),SUBSTITUTE($O155,\"{\",CHAR(160),FI$1)),FIND(CHAR(160),SUBSTITUTE($O155,\"}\",CHAR(160),FI$1))-FIND(CHAR(160),SUBSTITUTE($O155,\"{\",CHAR(160),FI$1))+1),\"\")","v":""},{"$f":"IFERROR(MID($O155,FIND(CHAR(160),SUBSTITUTE($O155,\"{\",CHAR(160),FJ$1)),FIND(CHAR(160),SUBSTITUTE($O155,\"}\",CHAR(160),FJ$1))-FIND(CHAR(160),SUBSTITUTE($O155,\"{\",CHAR(160),FJ$1))+1),\"\")","v":""},{"$f":"IFERROR(MID($O155,FIND(CHAR(160),SUBSTITUTE($O155,\"{\",CHAR(160),FK$1)),FIND(CHAR(160),SUBSTITUTE($O155,\"}\",CHAR(160),FK$1))-FIND(CHAR(160),SUBSTITUTE($O155,\"{\",CHAR(160),FK$1))+1),\"\")","v":"{Measure:Quantity}"},{"$f":"IFERROR(MID($O155,FIND(CHAR(160),SUBSTITUTE($O155,\"{\",CHAR(160),FL$1)),FIND(CHAR(160),SUBSTITUTE($O155,\"}\",CHAR(160),FL$1))-FIND(CHAR(160),SUBSTITUTE($O155,\"{\",CHAR(160),FL$1))+1),\"\")","v":"{DC - Evap Fan}"},{"$f":"IFERROR(MID($R155,FIND(CHAR(160),SUBSTITUTE($R155,\"{\",CHAR(160),FM$1)),FIND(CHAR(160),SUBSTITUTE($R155,\"}\",CHAR(160),FM$1))-FIND(CHAR(160),SUBSTITUTE($R155,\"{\",CHAR(160),FM$1))+1),\"\")","v":""},{"$f":"IFERROR(MID($R155,FIND(CHAR(160),SUBSTITUTE($R155,\"{\",CHAR(160),FN$1)),FIND(CHAR(160),SUBSTITUTE($R155,\"}\",CHAR(160),FN$1))-FIND(CHAR(160),SUBSTITUTE($R155,\"{\",CHAR(160),FN$1))+1),\"\")","v":""},{"$f":"IFERROR(MID($R155,FIND(CHAR(160),SUBSTITUTE($R155,\"{\",CHAR(160),FO$1)),FIND(CHAR(160),SUBSTITUTE($R155,\"}\",CHAR(160),FO$1))-FIND(CHAR(160),SUBSTITUTE($R155,\"{\",CHAR(160),FO$1))+1),\"\")","v":""},{"$f":"IFERROR(MID($R155,FIND(CHAR(160),SUBSTITUTE($R155,\"{\",CHAR(160),FP$1)),FIND(CHAR(160),SUBSTITUTE($R155,\"}\",CHAR(160),FP$1))-FIND(CHAR(160),SUBSTITUTE($R155,\"{\",CHAR(160),FP$1))+1),\"\")","v":""},{"$f":"IFERROR(MID($R155,FIND(CHAR(160),SUBSTITUTE($R155,\"{\",CHAR(160),FQ$1)),FIND(CHAR(160),SUBSTITUTE($R155,\"}\",CHAR(160),FQ$1))-FIND(CHAR(160),SUBSTITUTE($R155,\"{\",CHAR(160),FQ$1))+1),\"\")","v":""},{"$f":"IFERROR(MID($R155,FIND(CHAR(160),SUBSTITUTE($R155,\"{\",CHAR(160),FR$1)),FIND(CHAR(160),SUBSTITUTE($R155,\"}\",CHAR(160),FR$1))-FIND(CHAR(160),SUBSTITUTE($R155,\"{\",CHAR(160),FR$1))+1),\"\")","v":""},{"$f":"IFERROR(MID($R155,FIND(CHAR(160),SUBSTITUTE($R155,\"{\",CHAR(160),FS$1)),FIND(CHAR(160),SUBSTITUTE($R155,\"}\",CHAR(160),FS$1))-FIND(CHAR(160),SUBSTITUTE($R155,\"{\",CHAR(160),FS$1))+1),\"\")","v":""},{"$f":"IFERROR(MID($R155,FIND(CHAR(160),SUBSTITUTE($R155,\"{\",CHAR(160),FT$1)),FIND(CHAR(160),SUBSTITUTE($R155,\"}\",CHAR(160),FT$1))-FIND(CHAR(160),SUBSTITUTE($R155,\"{\",CHAR(160),FT$1))+1),\"\")","v":""},{"$f":"IFERROR(MID($R155,FIND(CHAR(160),SUBSTITUTE($R155,\"{\",CHAR(160),FU$1)),FIND(CHAR(160),SUBSTITUTE($R155,\"}\",CHAR(160),FU$1))-FIND(CHAR(160),SUBSTITUTE($R155,\"{\",CHAR(160),FU$1))+1),\"\")","v":"{Measure:Quantity}"},{"$f":"IFERROR(MID($R155,FIND(CHAR(160),SUBSTITUTE($R155,\"{\",CHAR(160),FV$1)),FIND(CHAR(160),SUBSTITUTE($R155,\"}\",CHAR(160),FV$1))-FIND(CHAR(160),SUBSTITUTE($R155,\"{\",CHAR(160),FV$1))+1),\"\")","v":"{Temperature}"},{"$f":"IFERROR(MID($U155,FIND(CHAR(160),SUBSTITUTE($U155,\"{\",CHAR(160),FW$1)),FIND(CHAR(160),SUBSTITUTE($U155,\"}\",CHAR(160),FW$1))-FIND(CHAR(160),SUBSTITUTE($U155,\"{\",CHAR(160),FW$1))+1),\"\")","v":"{Factor:WinterCF}"},{"$f":"IFERROR(MID($U155,FIND(CHAR(160),SUBSTITUTE($U155,\"{\",CHAR(160),FX$1)),FIND(CHAR(160),SUBSTITUTE($U155,\"}\",CHAR(160),FX$1))-FIND(CHAR(160),SUBSTITUTE($U155,\"{\",CHAR(160),FX$1))+1),\"\")","v":""},{"$f":"IFERROR(MID($U155,FIND(CHAR(160),SUBSTITUTE($U155,\"{\",CHAR(160),FY$1)),FIND(CHAR(160),SUBSTITUTE($U155,\"}\",CHAR(160),FY$1))-FIND(CHAR(160),SUBSTITUTE($U155,\"{\",CHAR(160),FY$1))+1),\"\")","v":""},{"$f":"IFERROR(MID($U155,FIND(CHAR(160),SUBSTITUTE($U155,\"{\",CHAR(160),FZ$1)),FIND(CHAR(160),SUBSTITUTE($U155,\"}\",CHAR(160),FZ$1))-FIND(CHAR(160),SUBSTITUTE($U155,\"{\",CHAR(160),FZ$1))+1),\"\")","v":""},{"$f":"IFERROR(MID($U155,FIND(CHAR(160),SUBSTITUTE($U155,\"{\",CHAR(160),GA$1)),FIND(CHAR(160),SUBSTITUTE($U155,\"}\",CHAR(160),GA$1))-FIND(CHAR(160),SUBSTITUTE($U155,\"{\",CHAR(160),GA$1))+1),\"\")","v":""},{"$f":"IFERROR(MID($U155,FIND(CHAR(160),SUBSTITUTE($U155,\"{\",CHAR(160),GB$1)),FIND(CHAR(160),SUBSTITUTE($U155,\"}\",CHAR(160),GB$1))-FIND(CHAR(160),SUBSTITUTE($U155,\"{\",CHAR(160),GB$1))+1),\"\")","v":""},{"$f":"IFERROR(MID($U155,FIND(CHAR(160),SUBSTITUTE($U155,\"{\",CHAR(160),GC$1)),FIND(CHAR(160),SUBSTITUTE($U155,\"}\",CHAR(160),GC$1))-FIND(CHAR(160),SUBSTITUTE($U155,\"{\",CHAR(160),GC$1))+1),\"\")","v":""},{"$f":"IFERROR(MID($U155,FIND(CHAR(160),SUBSTITUTE($U155,\"{\",CHAR(160),GD$1)),FIND(CHAR(160),SUBSTITUTE($U155,\"}\",CHAR(160),GD$1))-FIND(CHAR(160),SUBSTITUTE($U155,\"{\",CHAR(160),GD$1))+1),\"\")","v":""},{"$f":"IFERROR(MID($U155,FIND(CHAR(160),SUBSTITUTE($U155,\"{\",CHAR(160),GE$1)),FIND(CHAR(160),SUBSTITUTE($U155,\"}\",CHAR(160),GE$1))-FIND(CHAR(160),SUBSTITUTE($U155,\"{\",CHAR(160),GE$1))+1),\"\")","v":"{Measure:Quantity}"},{"$f":"IFERROR(MID($U155,FIND(CHAR(160),SUBSTITUTE($U155,\"{\",CHAR(160),GF$1)),FIND(CHAR(160),SUBSTITUTE($U155,\"}\",CHAR(160),GF$1))-FIND(CHAR(160),SUBSTITUTE($U155,\"{\",CHAR(160),GF$1))+1),\"\")","v":"{Temperature}"},{"$f":"IFERROR(MID($V155,FIND(CHAR(160),SUBSTITUTE($V155,\"{\",CHAR(160),GG$1)),FIND(CHAR(160),SUBSTITUTE($V155,\"}\",CHAR(160),GG$1))-FIND(CHAR(160),SUBSTITUTE($V155,\"{\",CHAR(160),GG$1))+1),\"\")","v":"{Factor:SummerCF}"},{"$f":"IFERROR(MID($V155,FIND(CHAR(160),SUBSTITUTE($V155,\"{\",CHAR(160),GH$1)),FIND(CHAR(160),SUBSTITUTE($V155,\"}\",CHAR(160),GH$1))-FIND(CHAR(160),SUBSTITUTE($V155,\"{\",CHAR(160),GH$1))+1),\"\")","v":""},{"$f":"IFERROR(MID($V155,FIND(CHAR(160),SUBSTITUTE($V155,\"{\",CHAR(160),GI$1)),FIND(CHAR(160),SUBSTITUTE($V155,\"}\",CHAR(160),GI$1))-FIND(CHAR(160),SUBSTITUTE($V155,\"{\",CHAR(160),GI$1))+1),\"\")","v":""},{"$f":"IFERROR(MID($V155,FIND(CHAR(160),SUBSTITUTE($V155,\"{\",CHAR(160),GJ$1)),FIND(CHAR(160),SUBSTITUTE($V155,\"}\",CHAR(160),GJ$1))-FIND(CHAR(160),SUBSTITUTE($V155,\"{\",CHAR(160),GJ$1))+1),\"\")","v":""},{"$f":"IFERROR(MID($V155,FIND(CHAR(160),SUBSTITUTE($V155,\"{\",CHAR(160),GK$1)),FIND(CHAR(160),SUBSTITUTE($V155,\"}\",CHAR(160),GK$1))-FIND(CHAR(160),SUBSTITUTE($V155,\"{\",CHAR(160),GK$1))+1),\"\")","v":""},{"$f":"IFERROR(MID($V155,FIND(CHAR(160),SUBSTITUTE($V155,\"{\",CHAR(160),GL$1)),FIND(CHAR(160),SUBSTITUTE($V155,\"}\",CHAR(160),GL$1))-FIND(CHAR(160),SUBSTITUTE($V155,\"{\",CHAR(160),GL$1))+1),\"\")","v":""},{"$f":"IFERROR(MID($V155,FIND(CHAR(160),SUBSTITUTE($V155,\"{\",CHAR(160),GM$1)),FIND(CHAR(160),SUBSTITUTE($V155,\"}\",CHAR(160),GM$1))-FIND(CHAR(160),SUBSTITUTE($V155,\"{\",CHAR(160),GM$1))+1),\"\")","v":""},{"$f":"IFERROR(MID($V155,FIND(CHAR(160),SUBSTITUTE($V155,\"{\",CHAR(160),GN$1)),FIND(CHAR(160),SUBSTITUTE($V155,\"}\",CHAR(160),GN$1))-FIND(CHAR(160),SUBSTITUTE($V155,\"{\",CHAR(160),GN$1))+1),\"\")","v":""},{"$f":"IFERROR(MID($V155,FIND(CHAR(160),SUBSTITUTE($V155,\"{\",CHAR(160),GO$1)),FIND(CHAR(160),SUBSTITUTE($V155,\"}\",CHAR(160),GO$1))-FIND(CHAR(160),SUBSTITUTE($V155,\"{\",CHAR(160),GO$1))+1),\"\")","v":"{Measure:Quantity}"},{"$f":"IFERROR(MID($V155,FIND(CHAR(160),SUBSTITUTE($V155,\"{\",CHAR(160),GP$1)),FIND(CHAR(160),SUBSTITUTE($V155,\"}\",CHAR(160),GP$1))-FIND(CHAR(160),SUBSTITUTE($V155,\"{\",CHAR(160),GP$1))+1),\"\")","v":"{Temperature}"},{"$f":"IFERROR(MID($W155,FIND(CHAR(160),SUBSTITUTE($W155,\"{\",CHAR(160),GQ$1)),FIND(CHAR(160),SUBSTITUTE($W155,\"}\",CHAR(160),GQ$1))-FIND(CHAR(160),SUBSTITUTE($W155,\"{\",CHAR(160),GQ$1))+1),\"\")","v":""},{"$f":"IFERROR(MID($W155,FIND(CHAR(160),SUBSTITUTE($W155,\"{\",CHAR(160),GR$1)),FIND(CHAR(160),SUBSTITUTE($W155,\"}\",CHAR(160),GR$1))-FIND(CHAR(160),SUBSTITUTE($W155,\"{\",CHAR(160),GR$1))+1),\"\")","v":""},{"$f":"IFERROR(MID($W155,FIND(CHAR(160),SUBSTITUTE($W155,\"{\",CHAR(160),GS$1)),FIND(CHAR(160),SUBSTITUTE($W155,\"}\",CHAR(160),GS$1))-FIND(CHAR(160),SUBSTITUTE($W155,\"{\",CHAR(160),GS$1))+1),\"\")","v":""},{"$f":"IFERROR(MID($W155,FIND(CHAR(160),SUBSTITUTE($W155,\"{\",CHAR(160),GT$1)),FIND(CHAR(160),SUBSTITUTE($W155,\"}\",CHAR(160),GT$1))-FIND(CHAR(160),SUBSTITUTE($W155,\"{\",CHAR(160),GT$1))+1),\"\")","v":""},{"$f":"IFERROR(MID($W155,FIND(CHAR(160),SUBSTITUTE($W155,\"{\",CHAR(160),GU$1)),FIND(CHAR(160),SUBSTITUTE($W155,\"}\",CHAR(160),GU$1))-FIND(CHAR(160),SUBSTITUTE($W155,\"{\",CHAR(160),GU$1))+1),\"\")","v":""},{"$f":"IFERROR(MID($W155,FIND(CHAR(160),SUBSTITUTE($W155,\"{\",CHAR(160),GV$1)),FIND(CHAR(160),SUBSTITUTE($W155,\"}\",CHAR(160),GV$1))-FIND(CHAR(160),SUBSTITUTE($W155,\"{\",CHAR(160),GV$1))+1),\"\")","v":""},{"$f":"IFERROR(MID($W155,FIND(CHAR(160),SUBSTITUTE($W155,\"{\",CHAR(160),GW$1)),FIND(CHAR(160),SUBSTITUTE($W155,\"}\",CHAR(160),GW$1))-FIND(CHAR(160),SUBSTITUTE($W155,\"{\",CHAR(160),GW$1))+1),\"\")","v":""},{"$f":"IFERROR(MID($W155,FIND(CHAR(160),SUBSTITUTE($W155,\"{\",CHAR(160),GX$1)),FIND(CHAR(160),SUBSTITUTE($W155,\"}\",CHAR(160),GX$1))-FIND(CHAR(160),SUBSTITUTE($W155,\"{\",CHAR(160),GX$1))+1),\"\")","v":""},{"$f":"IFERROR(MID($W155,FIND(CHAR(160),SUBSTITUTE($W155,\"{\",CHAR(160),GY$1)),FIND(CHAR(160),SUBSTITUTE($W155,\"}\",CHAR(160),GY$1))-FIND(CHAR(160),SUBSTITUTE($W155,\"{\",CHAR(160),GY$1))+1),\"\")","v":""},{"$f":"IFERROR(MID($W155,FIND(CHAR(160),SUBSTITUTE($W155,\"{\",CHAR(160),GZ$1)),FIND(CHAR(160),SUBSTITUTE($W155,\"}\",CHAR(160),GZ$1))-FIND(CHAR(160),SUBSTITUTE($W155,\"{\",CHAR(160),GZ$1))+1),\"\")","v":""},{"$f":"IFERROR(MID($X155,FIND(CHAR(160),SUBSTITUTE($X155,\"{\",CHAR(160),HA$1)),FIND(CHAR(160),SUBSTITUTE($X155,\"}\",CHAR(160),HA$1))-FIND(CHAR(160),SUBSTITUTE($X155,\"{\",CHAR(160),HA$1))+1),\"\")","v":""},{"$f":"IFERROR(MID($X155,FIND(CHAR(160),SUBSTITUTE($X155,\"{\",CHAR(160),HB$1)),FIND(CHAR(160),SUBSTITUTE($X155,\"}\",CHAR(160),HB$1))-FIND(CHAR(160),SUBSTITUTE($X155,\"{\",CHAR(160),HB$1))+1),\"\")","v":""},{"$f":"IFERROR(MID($X155,FIND(CHAR(160),SUBSTITUTE($X155,\"{\",CHAR(160),HC$1)),FIND(CHAR(160),SUBSTITUTE($X155,\"}\",CHAR(160),HC$1))-FIND(CHAR(160),SUBSTITUTE($X155,\"{\",CHAR(160),HC$1))+1),\"\")","v":""},{"$f":"IFERROR(MID($X155,FIND(CHAR(160),SUBSTITUTE($X155,\"{\",CHAR(160),HD$1)),FIND(CHAR(160),SUBSTITUTE($X155,\"}\",CHAR(160),HD$1))-FIND(CHAR(160),SUBSTITUTE($X155,\"{\",CHAR(160),HD$1))+1),\"\")","v":""},{"$f":"IFERROR(MID($X155,FIND(CHAR(160),SUBSTITUTE($X155,\"{\",CHAR(160),HE$1)),FIND(CHAR(160),SUBSTITUTE($X155,\"}\",CHAR(160),HE$1))-FIND(CHAR(160),SUBSTITUTE($X155,\"{\",CHAR(160),HE$1))+1),\"\")","v":""},{"$f":"IFERROR(MID($X155,FIND(CHAR(160),SUBSTITUTE($X155,\"{\",CHAR(160),HF$1)),FIND(CHAR(160),SUBSTITUTE($X155,\"}\",CHAR(160),HF$1))-FIND(CHAR(160),SUBSTITUTE($X155,\"{\",CHAR(160),HF$1))+1),\"\")","v":""},{"$f":"IFERROR(MID($X155,FIND(CHAR(160),SUBSTITUTE($X155,\"{\",CHAR(160),HG$1)),FIND(CHAR(160),SUBSTITUTE($X155,\"}\",CHAR(160),HG$1))-FIND(CHAR(160),SUBSTITUTE($X155,\"{\",CHAR(160),HG$1))+1),\"\")","v":""},{"$f":"IFERROR(MID($X155,FIND(CHAR(160),SUBSTITUTE($X155,\"{\",CHAR(160),HH$1)),FIND(CHAR(160),SUBSTITUTE($X155,\"}\",CHAR(160),HH$1))-FIND(CHAR(160),SUBSTITUTE($X155,\"{\",CHAR(160),HH$1))+1),\"\")","v":""},{"$f":"IFERROR(MID($X155,FIND(CHAR(160),SUBSTITUTE($X155,\"{\",CHAR(160),HI$1)),FIND(CHAR(160),SUBSTITUTE($X155,\"}\",CHAR(160),HI$1))-FIND(CHAR(160),SUBSTITUTE($X155,\"{\",CHAR(160),HI$1))+1),\"\")","v":""},{"$f":"IFERROR(MID($X155,FIND(CHAR(160),SUBSTITUTE($X155,\"{\",CHAR(160),HJ$1)),FIND(CHAR(160),SUBSTITUTE($X155,\"}\",CHAR(160),HJ$1))-FIND(CHAR(160),SUBSTITUTE($X155,\"{\",CHAR(160),HJ$1))+1),\"\")","v":""},{"$f":"IFERROR(MID($Y155,FIND(CHAR(160),SUBSTITUTE($Y155,\"{\",CHAR(160),HK$1)),FIND(CHAR(160),SUBSTITUTE($Y155,\"}\",CHAR(160),HK$1))-FIND(CHAR(160),SUBSTITUTE($Y155,\"{\",CHAR(160),HK$1))+1),\"\")","v":""},{"$f":"IFERROR(MID($Y155,FIND(CHAR(160),SUBSTITUTE($Y155,\"{\",CHAR(160),HL$1)),FIND(CHAR(160),SUBSTITUTE($Y155,\"}\",CHAR(160),HL$1))-FIND(CHAR(160),SUBSTITUTE($Y155,\"{\",CHAR(160),HL$1))+1),\"\")","v":""},{"$f":"IFERROR(MID($Y155,FIND(CHAR(160),SUBSTITUTE($Y155,\"{\",CHAR(160),HM$1)),FIND(CHAR(160),SUBSTITUTE($Y155,\"}\",CHAR(160),HM$1))-FIND(CHAR(160),SUBSTITUTE($Y155,\"{\",CHAR(160),HM$1))+1),\"\")","v":""},{"$f":"IFERROR(MID($Y155,FIND(CHAR(160),SUBSTITUTE($Y155,\"{\",CHAR(160),HN$1)),FIND(CHAR(160),SUBSTITUTE($Y155,\"}\",CHAR(160),HN$1))-FIND(CHAR(160),SUBSTITUTE($Y155,\"{\",CHAR(160),HN$1))+1),\"\")","v":""},{"$f":"IFERROR(MID($Y155,FIND(CHAR(160),SUBSTITUTE($Y155,\"{\",CHAR(160),HO$1)),FIND(CHAR(160),SUBSTITUTE($Y155,\"}\",CHAR(160),HO$1))-FIND(CHAR(160),SUBSTITUTE($Y155,\"{\",CHAR(160),HO$1))+1),\"\")","v":""},{"$f":"IFERROR(MID($Y155,FIND(CHAR(160),SUBSTITUTE($Y155,\"{\",CHAR(160),HP$1)),FIND(CHAR(160),SUBSTITUTE($Y155,\"}\",CHAR(160),HP$1))-FIND(CHAR(160),SUBSTITUTE($Y155,\"{\",CHAR(160),HP$1))+1),\"\")","v":""},{"$f":"IFERROR(MID($Y155,FIND(CHAR(160),SUBSTITUTE($Y155,\"{\",CHAR(160),HQ$1)),FIND(CHAR(160),SUBSTITUTE($Y155,\"}\",CHAR(160),HQ$1))-FIND(CHAR(160),SUBSTITUTE($Y155,\"{\",CHAR(160),HQ$1))+1),\"\")","v":""},{"$f":"IFERROR(MID($Y155,FIND(CHAR(160),SUBSTITUTE($Y155,\"{\",CHAR(160),HR$1)),FIND(CHAR(160),SUBSTITUTE($Y155,\"}\",CHAR(160),HR$1))-FIND(CHAR(160),SUBSTITUTE($Y155,\"{\",CHAR(160),HR$1))+1),\"\")","v":""},{"$f":"IFERROR(MID($Y155,FIND(CHAR(160),SUBSTITUTE($Y155,\"{\",CHAR(160),HS$1)),FIND(CHAR(160),SUBSTITUTE($Y155,\"}\",CHAR(160),HS$1))-FIND(CHAR(160),SUBSTITUTE($Y155,\"{\",CHAR(160),HS$1))+1),\"\")","v":""},{"$f":"IFERROR(MID($Y155,FIND(CHAR(160),SUBSTITUTE($Y155,\"{\",CHAR(160),HT$1)),FIND(CHAR(160),SUBSTITUTE($Y155,\"}\",CHAR(160),HT$1))-FIND(CHAR(160),SUBSTITUTE($Y155,\"{\",CHAR(160),HT$1))+1),\"\")","v":""},{"$f":"IFERROR(MID($Z155,FIND(CHAR(160),SUBSTITUTE($Z155,\"{\",CHAR(160),HU$1)),FIND(CHAR(160),SUBSTITUTE($Z155,\"}\",CHAR(160),HU$1))-FIND(CHAR(160),SUBSTITUTE($Z155,\"{\",CHAR(160),HU$1))+1),\"\")","v":""},{"$f":"IFERROR(MID($Z155,FIND(CHAR(160),SUBSTITUTE($Z155,\"{\",CHAR(160),HV$1)),FIND(CHAR(160),SUBSTITUTE($Z155,\"}\",CHAR(160),HV$1))-FIND(CHAR(160),SUBSTITUTE($Z155,\"{\",CHAR(160),HV$1))+1),\"\")","v":""},{"$f":"IFERROR(MID($Z155,FIND(CHAR(160),SUBSTITUTE($Z155,\"{\",CHAR(160),HW$1)),FIND(CHAR(160),SUBSTITUTE($Z155,\"}\",CHAR(160),HW$1))-FIND(CHAR(160),SUBSTITUTE($Z155,\"{\",CHAR(160),HW$1))+1),\"\")","v":""},{"$f":"IFERROR(MID($Z155,FIND(CHAR(160),SUBSTITUTE($Z155,\"{\",CHAR(160),HX$1)),FIND(CHAR(160),SUBSTITUTE($Z155,\"}\",CHAR(160),HX$1))-FIND(CHAR(160),SUBSTITUTE($Z155,\"{\",CHAR(160),HX$1))+1),\"\")","v":""},{"$f":"IFERROR(MID($Z155,FIND(CHAR(160),SUBSTITUTE($Z155,\"{\",CHAR(160),HY$1)),FIND(CHAR(160),SUBSTITUTE($Z155,\"}\",CHAR(160),HY$1))-FIND(CHAR(160),SUBSTITUTE($Z155,\"{\",CHAR(160),HY$1))+1),\"\")","v":""},{"$f":"IFERROR(MID($Z155,FIND(CHAR(160),SUBSTITUTE($Z155,\"{\",CHAR(160),HZ$1)),FIND(CHAR(160),SUBSTITUTE($Z155,\"}\",CHAR(160),HZ$1))-FIND(CHAR(160),SUBSTITUTE($Z155,\"{\",CHAR(160),HZ$1))+1),\"\")","v":""},{"$f":"IFERROR(MID($Z155,FIND(CHAR(160),SUBSTITUTE($Z155,\"{\",CHAR(160),IA$1)),FIND(CHAR(160),SUBSTITUTE($Z155,\"}\",CHAR(160),IA$1))-FIND(CHAR(160),SUBSTITUTE($Z155,\"{\",CHAR(160),IA$1))+1),\"\")","v":""},{"$f":"IFERROR(MID($Z155,FIND(CHAR(160),SUBSTITUTE($Z155,\"{\",CHAR(160),IB$1)),FIND(CHAR(160),SUBSTITUTE($Z155,\"}\",CHAR(160),IB$1))-FIND(CHAR(160),SUBSTITUTE($Z155,\"{\",CHAR(160),IB$1))+1),\"\")","v":""},{"$f":"IFERROR(MID($Z155,FIND(CHAR(160),SUBSTITUTE($Z155,\"{\",CHAR(160),IC$1)),FIND(CHAR(160),SUBSTITUTE($Z155,\"}\",CHAR(160),IC$1))-FIND(CHAR(160),SUBSTITUTE($Z155,\"{\",CHAR(160),IC$1))+1),\"\")","v":""},{"$f":"IFERROR(MID($Z155,FIND(CHAR(160),SUBSTITUTE($Z155,\"{\",CHAR(160),ID$1)),FIND(CHAR(160),SUBSTITUTE($Z155,\"}\",CHAR(160),ID$1))-FIND(CHAR(160),SUBSTITUTE($Z155,\"{\",CHAR(160),ID$1))+1),\"\")","v":""},{"$f":"IFERROR(MID($AA155,FIND(CHAR(160),SUBSTITUTE($AA155,\"{\",CHAR(160),IE$1)),FIND(CHAR(160),SUBSTITUTE($AA155,\"}\",CHAR(160),IE$1))-FIND(CHAR(160),SUBSTITUTE($AA155,\"{\",CHAR(160),IE$1))+1),\"\")","v":""},{"$f":"IFERROR(MID($AA155,FIND(CHAR(160),SUBSTITUTE($AA155,\"{\",CHAR(160),IF$1)),FIND(CHAR(160),SUBSTITUTE($AA155,\"}\",CHAR(160),IF$1))-FIND(CHAR(160),SUBSTITUTE($AA155,\"{\",CHAR(160),IF$1))+1),\"\")","v":""},{"$f":"IFERROR(MID($AA155,FIND(CHAR(160),SUBSTITUTE($AA155,\"{\",CHAR(160),IG$1)),FIND(CHAR(160),SUBSTITUTE($AA155,\"}\",CHAR(160),IG$1))-FIND(CHAR(160),SUBSTITUTE($AA155,\"{\",CHAR(160),IG$1))+1),\"\")","v":""},{"$f":"IFERROR(MID($AA155,FIND(CHAR(160),SUBSTITUTE($AA155,\"{\",CHAR(160),IH$1)),FIND(CHAR(160),SUBSTITUTE($AA155,\"}\",CHAR(160),IH$1))-FIND(CHAR(160),SUBSTITUTE($AA155,\"{\",CHAR(160),IH$1))+1),\"\")","v":""},{"$f":"IFERROR(MID($AA155,FIND(CHAR(160),SUBSTITUTE($AA155,\"{\",CHAR(160),II$1)),FIND(CHAR(160),SUBSTITUTE($AA155,\"}\",CHAR(160),II$1))-FIND(CHAR(160),SUBSTITUTE($AA155,\"{\",CHAR(160),II$1))+1),\"\")","v":""},{"$f":"IFERROR(MID($AA155,FIND(CHAR(160),SUBSTITUTE($AA155,\"{\",CHAR(160),IJ$1)),FIND(CHAR(160),SUBSTITUTE($AA155,\"}\",CHAR(160),IJ$1))-FIND(CHAR(160),SUBSTITUTE($AA155,\"{\",CHAR(160),IJ$1))+1),\"\")","v":""},{"$f":"IFERROR(MID($AA155,FIND(CHAR(160),SUBSTITUTE($AA155,\"{\",CHAR(160),IK$1)),FIND(CHAR(160),SUBSTITUTE($AA155,\"}\",CHAR(160),IK$1))-FIND(CHAR(160),SUBSTITUTE($AA155,\"{\",CHAR(160),IK$1))+1),\"\")","v":""},{"$f":"IFERROR(MID($AA155,FIND(CHAR(160),SUBSTITUTE($AA155,\"{\",CHAR(160),IL$1)),FIND(CHAR(160),SUBSTITUTE($AA155,\"}\",CHAR(160),IL$1))-FIND(CHAR(160),SUBSTITUTE($AA155,\"{\",CHAR(160),IL$1))+1),\"\")","v":""},{"$f":"IFERROR(MID($AA155,FIND(CHAR(160),SUBSTITUTE($AA155,\"{\",CHAR(160),IM$1)),FIND(CHAR(160),SUBSTITUTE($AA155,\"}\",CHAR(160),IM$1))-FIND(CHAR(160),SUBSTITUTE($AA155,\"{\",CHAR(160),IM$1))+1),\"\")","v":""},{"$f":"IFERROR(MID($AA155,FIND(CHAR(160),SUBSTITUTE($AA155,\"{\",CHAR(160),IN$1)),FIND(CHAR(160),SUBSTITUTE($AA155,\"}\",CHAR(160),IN$1))-FIND(CHAR(160),SUBSTITUTE($AA155,\"{\",CHAR(160),IN$1))+1),\"\")","v":""},{"$f":"IFERROR(MID($AB155,FIND(CHAR(160),SUBSTITUTE($AB155,\"{\",CHAR(160),IO$1)),FIND(CHAR(160),SUBSTITUTE($AB155,\"}\",CHAR(160),IO$1))-FIND(CHAR(160),SUBSTITUTE($AB155,\"{\",CHAR(160),IO$1))+1),\"\")","v":""},{"$f":"IFERROR(MID($AB155,FIND(CHAR(160),SUBSTITUTE($AB155,\"{\",CHAR(160),IP$1)),FIND(CHAR(160),SUBSTITUTE($AB155,\"}\",CHAR(160),IP$1))-FIND(CHAR(160),SUBSTITUTE($AB155,\"{\",CHAR(160),IP$1))+1),\"\")","v":""},{"$f":"IFERROR(MID($AB155,FIND(CHAR(160),SUBSTITUTE($AB155,\"{\",CHAR(160),IQ$1)),FIND(CHAR(160),SUBSTITUTE($AB155,\"}\",CHAR(160),IQ$1))-FIND(CHAR(160),SUBSTITUTE($AB155,\"{\",CHAR(160),IQ$1))+1),\"\")","v":""},{"$f":"IFERROR(MID($AB155,FIND(CHAR(160),SUBSTITUTE($AB155,\"{\",CHAR(160),IR$1)),FIND(CHAR(160),SUBSTITUTE($AB155,\"}\",CHAR(160),IR$1))-FIND(CHAR(160),SUBSTITUTE($AB155,\"{\",CHAR(160),IR$1))+1),\"\")","v":""},{"$f":"IFERROR(MID($AB155,FIND(CHAR(160),SUBSTITUTE($AB155,\"{\",CHAR(160),IS$1)),FIND(CHAR(160),SUBSTITUTE($AB155,\"}\",CHAR(160),IS$1))-FIND(CHAR(160),SUBSTITUTE($AB155,\"{\",CHAR(160),IS$1))+1),\"\")","v":""},{"$f":"IFERROR(MID($AB155,FIND(CHAR(160),SUBSTITUTE($AB155,\"{\",CHAR(160),IT$1)),FIND(CHAR(160),SUBSTITUTE($AB155,\"}\",CHAR(160),IT$1))-FIND(CHAR(160),SUBSTITUTE($AB155,\"{\",CHAR(160),IT$1))+1),\"\")","v":""},{"$f":"IFERROR(MID($AB155,FIND(CHAR(160),SUBSTITUTE($AB155,\"{\",CHAR(160),IU$1)),FIND(CHAR(160),SUBSTITUTE($AB155,\"}\",CHAR(160),IU$1))-FIND(CHAR(160),SUBSTITUTE($AB155,\"{\",CHAR(160),IU$1))+1),\"\")","v":""},{"$f":"IFERROR(MID($AB155,FIND(CHAR(160),SUBSTITUTE($AB155,\"{\",CHAR(160),IV$1)),FIND(CHAR(160),SUBSTITUTE($AB155,\"}\",CHAR(160),IV$1))-FIND(CHAR(160),SUBSTITUTE($AB155,\"{\",CHAR(160),IV$1))+1),\"\")","v":""},{"$f":"IFERROR(MID($AB155,FIND(CHAR(160),SUBSTITUTE($AB155,\"{\",CHAR(160),IW$1)),FIND(CHAR(160),SUBSTITUTE($AB155,\"}\",CHAR(160),IW$1))-FIND(CHAR(160),SUBSTITUTE($AB155,\"{\",CHAR(160),IW$1))+1),\"\")","v":""},{"$f":"IFERROR(MID($AB155,FIND(CHAR(160),SUBSTITUTE($AB155,\"{\",CHAR(160),IX$1)),FIND(CHAR(160),SUBSTITUTE($AB155,\"}\",CHAR(160),IX$1))-FIND(CHAR(160),SUBSTITUTE($AB155,\"{\",CHAR(160),IX$1))+1),\"\")","v":""},null,{"$f":"10-COUNTIF(DU155:ED155,\"\")","v":3}]
["C&I Refrigeration Solutions","R41 High-Efficiency Evaporator Fan Motors - Refrigerated Warehouses","R41","2021-07-01","2022-06-30","Per Measure",144,0,"Per Measure",100,0,"2020-11-01","2022-06-30","Calculated","{Measure:Quantity} * (0.123 - 0.040) * {DC - Evap Fan} * {Temperature} * 8760",1E-4,null,"{Measure:Quantity} * (0.123 - 0.040) * {Temperature}",null,null,"{Measure:Quantity} * (0.123 - 0.040) * {Temperature} * {Factor:WinterCF}","{Measure:Quantity} * (0.123 - 0.040) * {Temperature}* {Factor:SummerCF}",null,null,null,null,null,null,"2020-11-01","2022-06-30",15,0.73699999999999999,0.95899999999999996,0.30399999999999999,0.36199999999999999,0.156,0.17799999999999999,1,1.1220000000000001,1,0.52,1.6E-2,null,{"$f":"DU156","v":"{Temperature}"},1,{"$f":"DV156","v":"{Measure:Quantity}"},1,{"$f":"DW156","v":"{DC - Evap Fan}"},1.2,{"$f":"DX156","v":""},null,{"$f":"DY156","v":""},null,{"$f":"DZ156","v":""},null,{"$f":"EA156","v":""},null,{"$f":"EB156","v":""},null,{"$f":"EC156","v":""},null,{"$f":"ED156","v":""},null,{"$f":"AS156 * (0.123 - 0.04) * AU156 * AW156 * 8760","v":872.49599999999987},{"$f":"0.0001","v":1E-4},0,{"$f":"AS156 * (0.123 - 0.04) * AW156","v":9.959999999999998E-2},0,0,{"$f":"AS156 * (0.123 - 0.04) * AW156 * AF156","v":7.340519999999999E-2},{"$f":"AS156 * (0.123 - 0.04) * AW156* AG156","v":9.5516399999999974E-2},0,0,0,0,0,0,null,"Res","Default DR",{"$f":"Benefits(BL156,BR156,BS156,BT156,BU156,BV156,BW156,BX156,BY156,BZ156,AE156,AH156,AI156,AJ156,AK156,AL156,AM156,AN156,AO156,AP156,CA156,CB156)","v":1308.0221453401746},456.25721857001668,0,0,0,0,0,0,0,{"$f":"SUMPRODUCT(CC156:CK156,--(CC156:CK156>0))","v":1764.2793639101913},{"$f":"-SUMPRODUCT(CC156:CK156,--(CC156:CK156<0))","v":0},null,{"$f":"144","v":144},null,null,{"$f":"CM156+CO156","v":144},{"$f":"IF(NetOrGross=\"Net\",(1-AO156+AP156),1)","v":1},{"$f":"(SUMPRODUCT(CC156:CJ156,--(CC156:CJ156>0))+CN156)*CS156/((-SUMPRODUCT(CC156:CJ156,--(CC156:CJ156<0))+MAX(CO156,CV156)+CP156+CQ156)*CS156+IF(FRIncentives=\"Yes\",CV156*(1-CS156),0))","v":12.251940027154106},1,{"$f":"100","v":100},null,"Electric","y",null,{"$f":"IF(F156=\"Manual Entry\",\"Manual\",IF(G156=\"\",0,\"X=\"&SUBSTITUTE(SUBSTITUTE(SUBSTITUTE(SUBSTITUTE(SUBSTITUTE(SUBSTITUTE(SUBSTITUTE(SUBSTITUTE(SUBSTITUTE(SUBSTITUTE(SUBSTITUTE(SUBSTITUTE(G156,$ED156,$ED$2&ROW($ED156)),$EC156,$EC$2&ROW($EC156)),$EB156,$EB$2&ROW($EB156)),$EA156,$EA$2&ROW($EA156)),$DZ156,$DZ$2&ROW($DZ156)),$DY156,$DY$2&ROW($DY156)),$DX156,$DX$2&ROW($DX156)),$DW156,$DW$2&ROW($DW156)),$DV156,$DV$2&ROW($DV156)),$DU156,$DU$2&ROW($DU156)),$DT156,$DT$2&ROW($DT156)),$DS156,$DS$2&ROW($DS156))))","v":"X=144"},{"$f":"IF(I156=\"Manual Entry\",\"Manual\",IF(J156=\"\",0,\"X=\"&SUBSTITUTE(SUBSTITUTE(SUBSTITUTE(SUBSTITUTE(SUBSTITUTE(SUBSTITUTE(SUBSTITUTE(SUBSTITUTE(SUBSTITUTE(SUBSTITUTE(SUBSTITUTE(SUBSTITUTE(J156,$ED156,$ED$2&ROW($ED156)),$EC156,$EC$2&ROW($EC156)),$EB156,$EB$2&ROW($EB156)),$EA156,$EA$2&ROW($EA156)),$DZ156,$DZ$2&ROW($DZ156)),$DY156,$DY$2&ROW($DY156)),$DX156,$DX$2&ROW($DX156)),$DW156,$DW$2&ROW($DW156)),$DV156,$DV$2&ROW($DV156)),$DU156,$DU$2&ROW($DU156)),$DT156,$DT$2&ROW($DT156)),$DS156,$DS$2&ROW($DS156))))","v":"X=100"},{"$f":"IF(O156=\"\",0,\"X=\"&SUBSTITUTE(SUBSTITUTE(SUBSTITUTE(SUBSTITUTE(SUBSTITUTE(SUBSTITUTE(SUBSTITUTE(SUBSTITUTE(SUBSTITUTE(SUBSTITUTE(SUBSTITUTE(SUBSTITUTE(O156,$ED156,$ED$2&ROW($ED156)),$EC156,$EC$2&ROW($EC156)),$EB156,$EB$2&ROW($EB156)),$EA156,$EA$2&ROW($EA156)),$DZ156,$DZ$2&ROW($DZ156)),$DY156,$DY$2&ROW($DY156)),$DX156,$DX$2&ROW($DX156)),$DW156,$DW$2&ROW($DW156)),$DV156,$DV$2&ROW($DV156)),$DU156,$DU$2&ROW($DU156)),$DT156,$DT$2&ROW($DT156)),$DS156,$DS$2&ROW($DS156)))","v":"X=AU156 * (0.123 - 0.040) * AW156 * AS156 * 8760"},{"$f":"IF(P156=\"\",0,\"X=\"&SUBSTITUTE(SUBSTITUTE(SUBSTITUTE(SUBSTITUTE(SUBSTITUTE(SUBSTITUTE(SUBSTITUTE(SUBSTITUTE(SUBSTITUTE(SUBSTITUTE(SUBSTITUTE(SUBSTITUTE(P156,$ED156,$ED$2&ROW($ED156)),$EC156,$EC$2&ROW($EC156)),$EB156,$EB$2&ROW($EB156)),$EA156,$EA$2&ROW($EA156)),$DZ156,$DZ$2&ROW($DZ156)),$DY156,$DY$2&ROW($DY156)),$DX156,$DX$2&ROW($DX156)),$DW156,$DW$2&ROW($DW156)),$DV156,$DV$2&ROW($DV156)),$DU156,$DU$2&ROW($DU156)),$DT156,$DT$2&ROW($DT156)),$DS156,$DS$2&ROW($DS156)))","v":"X=0.0001"},{"$f":"IF(Q156=\"\",0,\"X=\"&SUBSTITUTE(SUBSTITUTE(SUBSTITUTE(SUBSTITUTE(SUBSTITUTE(SUBSTITUTE(SUBSTITUTE(SUBSTITUTE(SUBSTITUTE(SUBSTITUTE(SUBSTITUTE(SUBSTITUTE(Q156,$ED156,$ED$2&ROW($ED156)),$EC156,$EC$2&ROW($EC156)),$EB156,$EB$2&ROW($EB156)),$EA156,$EA$2&ROW($EA156)),$DZ156,$DZ$2&ROW($DZ156)),$DY156,$DY$2&ROW($DY156)),$DX156,$DX$2&ROW($DX156)),$DW156,$DW$2&ROW($DW156)),$DV156,$DV$2&ROW($DV156)),$DU156,$DU$2&ROW($DU156)),$DT156,$DT$2&ROW($DT156)),$DS156,$DS$2&ROW($DS156)))","v":0},{"$f":"IF(R156=\"\",0,\"X=\"&SUBSTITUTE(SUBSTITUTE(SUBSTITUTE(SUBSTITUTE(SUBSTITUTE(SUBSTITUTE(SUBSTITUTE(SUBSTITUTE(SUBSTITUTE(SUBSTITUTE(SUBSTITUTE(SUBSTITUTE(R156,$ED156,$ED$2&ROW($ED156)),$EC156,$EC$2&ROW($EC156)),$EB156,$EB$2&ROW($EB156)),$EA156,$EA$2&ROW($EA156)),$DZ156,$DZ$2&ROW($DZ156)),$DY156,$DY$2&ROW($DY156)),$DX156,$DX$2&ROW($DX156)),$DW156,$DW$2&ROW($DW156)),$DV156,$DV$2&ROW($DV156)),$DU156,$DU$2&ROW($DU156)),$DT156,$DT$2&ROW($DT156)),$DS156,$DS$2&ROW($DS156)))","v":"X=AU156 * (0.123 - 0.040) * AS156"},{"$f":"IF(S156=\"\",0,\"X=\"&SUBSTITUTE(SUBSTITUTE(SUBSTITUTE(SUBSTITUTE(SUBSTITUTE(SUBSTITUTE(SUBSTITUTE(SUBSTITUTE(SUBSTITUTE(SUBSTITUTE(SUBSTITUTE(SUBSTITUTE(S156,$ED156,$ED$2&ROW($ED156)),$EC156,$EC$2&ROW($EC156)),$EB156,$EB$2&ROW($EB156)),$EA156,$EA$2&ROW($EA156)),$DZ156,$DZ$2&ROW($DZ156)),$DY156,$DY$2&ROW($DY156)),$DX156,$DX$2&ROW($DX156)),$DW156,$DW$2&ROW($DW156)),$DV156,$DV$2&ROW($DV156)),$DU156,$DU$2&ROW($DU156)),$DT156,$DT$2&ROW($DT156)),$DS156,$DS$2&ROW($DS156)))","v":0},{"$f":"IF(T156=\"\",0,\"X=\"&SUBSTITUTE(SUBSTITUTE(SUBSTITUTE(SUBSTITUTE(SUBSTITUTE(SUBSTITUTE(SUBSTITUTE(SUBSTITUTE(SUBSTITUTE(SUBSTITUTE(SUBSTITUTE(SUBSTITUTE(T156,$ED156,$ED$2&ROW($ED156)),$EC156,$EC$2&ROW($EC156)),$EB156,$EB$2&ROW($EB156)),$EA156,$EA$2&ROW($EA156)),$DZ156,$DZ$2&ROW($DZ156)),$DY156,$DY$2&ROW($DY156)),$DX156,$DX$2&ROW($DX156)),$DW156,$DW$2&ROW($DW156)),$DV156,$DV$2&ROW($DV156)),$DU156,$DU$2&ROW($DU156)),$DT156,$DT$2&ROW($DT156)),$DS156,$DS$2&ROW($DS156)))","v":0},{"$f":"IF(U156=\"\",0,\"X=\"&SUBSTITUTE(SUBSTITUTE(SUBSTITUTE(SUBSTITUTE(SUBSTITUTE(SUBSTITUTE(SUBSTITUTE(SUBSTITUTE(SUBSTITUTE(SUBSTITUTE(SUBSTITUTE(SUBSTITUTE(U156,$ED156,$ED$2&ROW($ED156)),$EC156,$EC$2&ROW($EC156)),$EB156,$EB$2&ROW($EB156)),$EA156,$EA$2&ROW($EA156)),$DZ156,$DZ$2&ROW($DZ156)),$DY156,$DY$2&ROW($DY156)),$DX156,$DX$2&ROW($DX156)),$DW156,$DW$2&ROW($DW156)),$DV156,$DV$2&ROW($DV156)),$DU156,$DU$2&ROW($DU156)),$DT156,$DT$2&ROW($DT156)),$DS156,$DS$2&ROW($DS156)))","v":"X=AU156 * (0.123 - 0.040) * AS156 * AF156"},{"$f":"IF(V156=\"\",0,\"X=\"&SUBSTITUTE(SUBSTITUTE(SUBSTITUTE(SUBSTITUTE(SUBSTITUTE(SUBSTITUTE(SUBSTITUTE(SUBSTITUTE(SUBSTITUTE(SUBSTITUTE(SUBSTITUTE(SUBSTITUTE(V156,$ED156,$ED$2&ROW($ED156)),$EC156,$EC$2&ROW($EC156)),$EB156,$EB$2&ROW($EB156)),$EA156,$EA$2&ROW($EA156)),$DZ156,$DZ$2&ROW($DZ156)),$DY156,$DY$2&ROW($DY156)),$DX156,$DX$2&ROW($DX156)),$DW156,$DW$2&ROW($DW156)),$DV156,$DV$2&ROW($DV156)),$DU156,$DU$2&ROW($DU156)),$DT156,$DT$2&ROW($DT156)),$DS156,$DS$2&ROW($DS156)))","v":"X=AU156 * (0.123 - 0.040) * AS156* AG156"},{"$f":"IF(W156=\"\",0,\"X=\"&SUBSTITUTE(SUBSTITUTE(SUBSTITUTE(SUBSTITUTE(SUBSTITUTE(SUBSTITUTE(SUBSTITUTE(SUBSTITUTE(SUBSTITUTE(SUBSTITUTE(SUBSTITUTE(SUBSTITUTE(W156,$ED156,$ED$2&ROW($ED156)),$EC156,$EC$2&ROW($EC156)),$EB156,$EB$2&ROW($EB156)),$EA156,$EA$2&ROW($EA156)),$DZ156,$DZ$2&ROW($DZ156)),$DY156,$DY$2&ROW($DY156)),$DX156,$DX$2&ROW($DX156)),$DW156,$DW$2&ROW($DW156)),$DV156,$DV$2&ROW($DV156)),$DU156,$DU$2&ROW($DU156)),$DT156,$DT$2&ROW($DT156)),$DS156,$DS$2&ROW($DS156)))","v":0},{"$f":"IF(X156=\"\",0,\"X=\"&SUBSTITUTE(SUBSTITUTE(SUBSTITUTE(SUBSTITUTE(SUBSTITUTE(SUBSTITUTE(SUBSTITUTE(SUBSTITUTE(SUBSTITUTE(SUBSTITUTE(SUBSTITUTE(SUBSTITUTE(X156,$ED156,$ED$2&ROW($ED156)),$EC156,$EC$2&ROW($EC156)),$EB156,$EB$2&ROW($EB156)),$EA156,$EA$2&ROW($EA156)),$DZ156,$DZ$2&ROW($DZ156)),$DY156,$DY$2&ROW($DY156)),$DX156,$DX$2&ROW($DX156)),$DW156,$DW$2&ROW($DW156)),$DV156,$DV$2&ROW($DV156)),$DU156,$DU$2&ROW($DU156)),$DT156,$DT$2&ROW($DT156)),$DS156,$DS$2&ROW($DS156)))","v":0},{"$f":"IF(Y156=\"\",0,\"X=\"&SUBSTITUTE(SUBSTITUTE(SUBSTITUTE(SUBSTITUTE(SUBSTITUTE(SUBSTITUTE(SUBSTITUTE(SUBSTITUTE(SUBSTITUTE(SUBSTITUTE(SUBSTITUTE(SUBSTITUTE(Y156,$ED156,$ED$2&ROW($ED156)),$EC156,$EC$2&ROW($EC156)),$EB156,$EB$2&ROW($EB156)),$EA156,$EA$2&ROW($EA156)),$DZ156,$DZ$2&ROW($DZ156)),$DY156,$DY$2&ROW($DY156)),$DX156,$DX$2&ROW($DX156)),$DW156,$DW$2&ROW($DW156)),$DV156,$DV$2&ROW($DV156)),$DU156,$DU$2&ROW($DU156)),$DT156,$DT$2&ROW($DT156)),$DS156,$DS$2&ROW($DS156)))","v":0},{"$f":"IF(Z156=\"\",0,\"X=\"&SUBSTITUTE(SUBSTITUTE(SUBSTITUTE(SUBSTITUTE(SUBSTITUTE(SUBSTITUTE(SUBSTITUTE(SUBSTITUTE(SUBSTITUTE(SUBSTITUTE(SUBSTITUTE(SUBSTITUTE(Z156,$ED156,$ED$2&ROW($ED156)),$EC156,$EC$2&ROW($EC156)),$EB156,$EB$2&ROW($EB156)),$EA156,$EA$2&ROW($EA156)),$DZ156,$DZ$2&ROW($DZ156)),$DY156,$DY$2&ROW($DY156)),$DX156,$DX$2&ROW($DX156)),$DW156,$DW$2&ROW($DW156)),$DV156,$DV$2&ROW($DV156)),$DU156,$DU$2&ROW($DU156)),$DT156,$DT$2&ROW($DT156)),$DS156,$DS$2&ROW($DS156)))","v":0},{"$f":"IF(AA156=\"\",0,\"X=\"&SUBSTITUTE(SUBSTITUTE(SUBSTITUTE(SUBSTITUTE(SUBSTITUTE(SUBSTITUTE(SUBSTITUTE(SUBSTITUTE(SUBSTITUTE(SUBSTITUTE(SUBSTITUTE(SUBSTITUTE(AA156,$ED156,$ED$2&ROW($ED156)),$EC156,$EC$2&ROW($EC156)),$EB156,$EB$2&ROW($EB156)),$EA156,$EA$2&ROW($EA156)),$DZ156,$DZ$2&ROW($DZ156)),$DY156,$DY$2&ROW($DY156)),$DX156,$DX$2&ROW($DX156)),$DW156,$DW$2&ROW($DW156)),$DV156,$DV$2&ROW($DV156)),$DU156,$DU$2&ROW($DU156)),$DT156,$DT$2&ROW($DT156)),$DS156,$DS$2&ROW($DS156)))","v":0},{"$f":"IF(AB156=\"\",0,\"X=\"&SUBSTITUTE(SUBSTITUTE(SUBSTITUTE(SUBSTITUTE(SUBSTITUTE(SUBSTITUTE(SUBSTITUTE(SUBSTITUTE(SUBSTITUTE(SUBSTITUTE(SUBSTITUTE(SUBSTITUTE(AB156,$ED156,$ED$2&ROW($ED156)),$EC156,$EC$2&ROW($EC156)),$EB156,$EB$2&ROW($EB156)),$EA156,$EA$2&ROW($EA156)),$DZ156,$DZ$2&ROW($DZ156)),$DY156,$DY$2&ROW($DY156)),$DX156,$DX$2&ROW($DX156)),$DW156,$DW$2&ROW($DW156)),$DV156,$DV$2&ROW($DV156)),$DU156,$DU$2&ROW($DU156)),$DT156,$DT$2&ROW($DT156)),$DS156,$DS$2&ROW($DS156)))","v":0},null,null,"{Factor:WinterCF}","{Factor:SummerCF}",{"$f":"IFERROR(INDEX($EG156:$IV156,MATCH(0,COUNTIF($DR156:DT156,$EG156:$IV156),0)),\"\")","v":"{Temperature}"},{"$f":"IFERROR(INDEX($EG156:$IV156,MATCH(0,COUNTIF($DR156:DU156,$EG156:$IV156),0)),\"\")","v":"{Measure:Quantity}"},{"$f":"IFERROR(INDEX($EG156:$IV156,MATCH(0,COUNTIF($DR156:DV156,$EG156:$IV156),0)),\"\")","v":"{DC - Evap Fan}"},{"$f":"IFERROR(INDEX($EG156:$IV156,MATCH(0,COUNTIF($DR156:DW156,$EG156:$IV156),0)),\"\")","v":""},{"$f":"IFERROR(INDEX($EG156:$IV156,MATCH(0,COUNTIF($DR156:DX156,$EG156:$IV156),0)),\"\")","v":""},{"$f":"IFERROR(INDEX($EG156:$IV156,MATCH(0,COUNTIF($DR156:DY156,$EG156:$IV156),0)),\"\")","v":""},{"$f":"IFERROR(INDEX($EG156:$IV156,MATCH(0,COUNTIF($DR156:DZ156,$EG156:$IV156),0)),\"\")","v":""},{"$f":"IFERROR(INDEX($EG156:$IV156,MATCH(0,COUNTIF($DR156:EA156,$EG156:$IV156),0)),\"\")","v":""},{"$f":"IFERROR(INDEX($EG156:$IV156,MATCH(0,COUNTIF($DR156:EB156,$EG156:$IV156),0)),\"\")","v":""},{"$f":"IFERROR(INDEX($EG156:$IV156,MATCH(0,COUNTIF($DR156:EC156,$EG156:$IV156),0)),\"\")","v":""},null,null,{"$f":"IFERROR(MID($G156,FIND(CHAR(160),SUBSTITUTE($G156,\"{\",CHAR(160),EG$1)),FIND(CHAR(160),SUBSTITUTE($G156,\"}\",CHAR(160),EG$1))-FIND(CHAR(160),SUBSTITUTE($G156,\"{\",CHAR(160),EG$1))+1),\"\")","v":""},{"$f":"IFERROR(MID($G156,FIND(CHAR(160),SUBSTITUTE($G156,\"{\",CHAR(160),EH$1)),FIND(CHAR(160),SUBSTITUTE($G156,\"}\",CHAR(160),EH$1))-FIND(CHAR(160),SUBSTITUTE($G156,\"{\",CHAR(160),EH$1))+1),\"\")","v":""},{"$f":"IFERROR(MID($G156,FIND(CHAR(160),SUBSTITUTE($G156,\"{\",CHAR(160),EI$1)),FIND(CHAR(160),SUBSTITUTE($G156,\"}\",CHAR(160),EI$1))-FIND(CHAR(160),SUBSTITUTE($G156,\"{\",CHAR(160),EI$1))+1),\"\")","v":""},{"$f":"IFERROR(MID($G156,FIND(CHAR(160),SUBSTITUTE($G156,\"{\",CHAR(160),EJ$1)),FIND(CHAR(160),SUBSTITUTE($G156,\"}\",CHAR(160),EJ$1))-FIND(CHAR(160),SUBSTITUTE($G156,\"{\",CHAR(160),EJ$1))+1),\"\")","v":""},{"$f":"IFERROR(MID($G156,FIND(CHAR(160),SUBSTITUTE($G156,\"{\",CHAR(160),EK$1)),FIND(CHAR(160),SUBSTITUTE($G156,\"}\",CHAR(160),EK$1))-FIND(CHAR(160),SUBSTITUTE($G156,\"{\",CHAR(160),EK$1))+1),\"\")","v":""},{"$f":"IFERROR(MID($G156,FIND(CHAR(160),SUBSTITUTE($G156,\"{\",CHAR(160),EL$1)),FIND(CHAR(160),SUBSTITUTE($G156,\"}\",CHAR(160),EL$1))-FIND(CHAR(160),SUBSTITUTE($G156,\"{\",CHAR(160),EL$1))+1),\"\")","v":""},{"$f":"IFERROR(MID($G156,FIND(CHAR(160),SUBSTITUTE($G156,\"{\",CHAR(160),EM$1)),FIND(CHAR(160),SUBSTITUTE($G156,\"}\",CHAR(160),EM$1))-FIND(CHAR(160),SUBSTITUTE($G156,\"{\",CHAR(160),EM$1))+1),\"\")","v":""},{"$f":"IFERROR(MID($G156,FIND(CHAR(160),SUBSTITUTE($G156,\"{\",CHAR(160),EN$1)),FIND(CHAR(160),SUBSTITUTE($G156,\"}\",CHAR(160),EN$1))-FIND(CHAR(160),SUBSTITUTE($G156,\"{\",CHAR(160),EN$1))+1),\"\")","v":""},{"$f":"IFERROR(MID($G156,FIND(CHAR(160),SUBSTITUTE($G156,\"{\",CHAR(160),EO$1)),FIND(CHAR(160),SUBSTITUTE($G156,\"}\",CHAR(160),EO$1))-FIND(CHAR(160),SUBSTITUTE($G156,\"{\",CHAR(160),EO$1))+1),\"\")","v":""},{"$f":"IFERROR(MID($G156,FIND(CHAR(160),SUBSTITUTE($G156,\"{\",CHAR(160),EP$1)),FIND(CHAR(160),SUBSTITUTE($G156,\"}\",CHAR(160),EP$1))-FIND(CHAR(160),SUBSTITUTE($G156,\"{\",CHAR(160),EP$1))+1),\"\")","v":""},{"$f":"IFERROR(MID($J156,FIND(CHAR(160),SUBSTITUTE($J156,\"{\",CHAR(160),EQ$1)),FIND(CHAR(160),SUBSTITUTE($J156,\"}\",CHAR(160),EQ$1))-FIND(CHAR(160),SUBSTITUTE($J156,\"{\",CHAR(160),EQ$1))+1),\"\")","v":""},{"$f":"IFERROR(MID($J156,FIND(CHAR(160),SUBSTITUTE($J156,\"{\",CHAR(160),ER$1)),FIND(CHAR(160),SUBSTITUTE($J156,\"}\",CHAR(160),ER$1))-FIND(CHAR(160),SUBSTITUTE($J156,\"{\",CHAR(160),ER$1))+1),\"\")","v":""},{"$f":"IFERROR(MID($J156,FIND(CHAR(160),SUBSTITUTE($J156,\"{\",CHAR(160),ES$1)),FIND(CHAR(160),SUBSTITUTE($J156,\"}\",CHAR(160),ES$1))-FIND(CHAR(160),SUBSTITUTE($J156,\"{\",CHAR(160),ES$1))+1),\"\")","v":""},{"$f":"IFERROR(MID($J156,FIND(CHAR(160),SUBSTITUTE($J156,\"{\",CHAR(160),ET$1)),FIND(CHAR(160),SUBSTITUTE($J156,\"}\",CHAR(160),ET$1))-FIND(CHAR(160),SUBSTITUTE($J156,\"{\",CHAR(160),ET$1))+1),\"\")","v":""},{"$f":"IFERROR(MID($J156,FIND(CHAR(160),SUBSTITUTE($J156,\"{\",CHAR(160),EU$1)),FIND(CHAR(160),SUBSTITUTE($J156,\"}\",CHAR(160),EU$1))-FIND(CHAR(160),SUBSTITUTE($J156,\"{\",CHAR(160),EU$1))+1),\"\")","v":""},{"$f":"IFERROR(MID($J156,FIND(CHAR(160),SUBSTITUTE($J156,\"{\",CHAR(160),EV$1)),FIND(CHAR(160),SUBSTITUTE($J156,\"}\",CHAR(160),EV$1))-FIND(CHAR(160),SUBSTITUTE($J156,\"{\",CHAR(160),EV$1))+1),\"\")","v":""},{"$f":"IFERROR(MID($J156,FIND(CHAR(160),SUBSTITUTE($J156,\"{\",CHAR(160),EW$1)),FIND(CHAR(160),SUBSTITUTE($J156,\"}\",CHAR(160),EW$1))-FIND(CHAR(160),SUBSTITUTE($J156,\"{\",CHAR(160),EW$1))+1),\"\")","v":""},{"$f":"IFERROR(MID($J156,FIND(CHAR(160),SUBSTITUTE($J156,\"{\",CHAR(160),EX$1)),FIND(CHAR(160),SUBSTITUTE($J156,\"}\",CHAR(160),EX$1))-FIND(CHAR(160),SUBSTITUTE($J156,\"{\",CHAR(160),EX$1))+1),\"\")","v":""},{"$f":"IFERROR(MID($J156,FIND(CHAR(160),SUBSTITUTE($J156,\"{\",CHAR(160),EY$1)),FIND(CHAR(160),SUBSTITUTE($J156,\"}\",CHAR(160),EY$1))-FIND(CHAR(160),SUBSTITUTE($J156,\"{\",CHAR(160),EY$1))+1),\"\")","v":""},{"$f":"IFERROR(MID($J156,FIND(CHAR(160),SUBSTITUTE($J156,\"{\",CHAR(160),EZ$1)),FIND(CHAR(160),SUBSTITUTE($J156,\"}\",CHAR(160),EZ$1))-FIND(CHAR(160),SUBSTITUTE($J156,\"{\",CHAR(160),EZ$1))+1),\"\")","v":""},{"$f":"IFERROR(MID($J156,FIND(CHAR(160),SUBSTITUTE($J156,\"{\",CHAR(160),FA$1)),FIND(CHAR(160),SUBSTITUTE($J156,\"}\",CHAR(160),FA$1))-FIND(CHAR(160),SUBSTITUTE($J156,\"{\",CHAR(160),FA$1))+1),\"\")","v":""},{"$f":"IFERROR(MID($J156,FIND(CHAR(160),SUBSTITUTE($J156,\"{\",CHAR(160),FB$1)),FIND(CHAR(160),SUBSTITUTE($J156,\"}\",CHAR(160),FB$1))-FIND(CHAR(160),SUBSTITUTE($J156,\"{\",CHAR(160),FB$1))+1),\"\")","v":""},{"$f":"IFERROR(MID($O156,FIND(CHAR(160),SUBSTITUTE($O156,\"{\",CHAR(160),FC$1)),FIND(CHAR(160),SUBSTITUTE($O156,\"}\",CHAR(160),FC$1))-FIND(CHAR(160),SUBSTITUTE($O156,\"{\",CHAR(160),FC$1))+1),\"\")","v":"{Temperature}"},{"$f":"IFERROR(MID($O156,FIND(CHAR(160),SUBSTITUTE($O156,\"{\",CHAR(160),FD$1)),FIND(CHAR(160),SUBSTITUTE($O156,\"}\",CHAR(160),FD$1))-FIND(CHAR(160),SUBSTITUTE($O156,\"{\",CHAR(160),FD$1))+1),\"\")","v":""},{"$f":"IFERROR(MID($O156,FIND(CHAR(160),SUBSTITUTE($O156,\"{\",CHAR(160),FE$1)),FIND(CHAR(160),SUBSTITUTE($O156,\"}\",CHAR(160),FE$1))-FIND(CHAR(160),SUBSTITUTE($O156,\"{\",CHAR(160),FE$1))+1),\"\")","v":""},{"$f":"IFERROR(MID($O156,FIND(CHAR(160),SUBSTITUTE($O156,\"{\",CHAR(160),FF$1)),FIND(CHAR(160),SUBSTITUTE($O156,\"}\",CHAR(160),FF$1))-FIND(CHAR(160),SUBSTITUTE($O156,\"{\",CHAR(160),FF$1))+1),\"\")","v":""},{"$f":"IFERROR(MID($O156,FIND(CHAR(160),SUBSTITUTE($O156,\"{\",CHAR(160),FG$1)),FIND(CHAR(160),SUBSTITUTE($O156,\"}\",CHAR(160),FG$1))-FIND(CHAR(160),SUBSTITUTE($O156,\"{\",CHAR(160),FG$1))+1),\"\")","v":""},{"$f":"IFERROR(MID($O156,FIND(CHAR(160),SUBSTITUTE($O156,\"{\",CHAR(160),FH$1)),FIND(CHAR(160),SUBSTITUTE($O156,\"}\",CHAR(160),FH$1))-FIND(CHAR(160),SUBSTITUTE($O156,\"{\",CHAR(160),FH$1))+1),\"\")","v":""},{"$f":"IFERROR(MID($O156,FIND(CHAR(160),SUBSTITUTE($O156,\"{\",CHAR(160),FI$1)),FIND(CHAR(160),SUBSTITUTE($O156,\"}\",CHAR(160),FI$1))-FIND(CHAR(160),SUBSTITUTE($O156,\"{\",CHAR(160),FI$1))+1),\"\")","v":""},{"$f":"IFERROR(MID($O156,FIND(CHAR(160),SUBSTITUTE($O156,\"{\",CHAR(160),FJ$1)),FIND(CHAR(160),SUBSTITUTE($O156,\"}\",CHAR(160),FJ$1))-FIND(CHAR(160),SUBSTITUTE($O156,\"{\",CHAR(160),FJ$1))+1),\"\")","v":""},{"$f":"IFERROR(MID($O156,FIND(CHAR(160),SUBSTITUTE($O156,\"{\",CHAR(160),FK$1)),FIND(CHAR(160),SUBSTITUTE($O156,\"}\",CHAR(160),FK$1))-FIND(CHAR(160),SUBSTITUTE($O156,\"{\",CHAR(160),FK$1))+1),\"\")","v":"{Measure:Quantity}"},{"$f":"IFERROR(MID($O156,FIND(CHAR(160),SUBSTITUTE($O156,\"{\",CHAR(160),FL$1)),FIND(CHAR(160),SUBSTITUTE($O156,\"}\",CHAR(160),FL$1))-FIND(CHAR(160),SUBSTITUTE($O156,\"{\",CHAR(160),FL$1))+1),\"\")","v":"{DC - Evap Fan}"},{"$f":"IFERROR(MID($R156,FIND(CHAR(160),SUBSTITUTE($R156,\"{\",CHAR(160),FM$1)),FIND(CHAR(160),SUBSTITUTE($R156,\"}\",CHAR(160),FM$1))-FIND(CHAR(160),SUBSTITUTE($R156,\"{\",CHAR(160),FM$1))+1),\"\")","v":""},{"$f":"IFERROR(MID($R156,FIND(CHAR(160),SUBSTITUTE($R156,\"{\",CHAR(160),FN$1)),FIND(CHAR(160),SUBSTITUTE($R156,\"}\",CHAR(160),FN$1))-FIND(CHAR(160),SUBSTITUTE($R156,\"{\",CHAR(160),FN$1))+1),\"\")","v":""},{"$f":"IFERROR(MID($R156,FIND(CHAR(160),SUBSTITUTE($R156,\"{\",CHAR(160),FO$1)),FIND(CHAR(160),SUBSTITUTE($R156,\"}\",CHAR(160),FO$1))-FIND(CHAR(160),SUBSTITUTE($R156,\"{\",CHAR(160),FO$1))+1),\"\")","v":""},{"$f":"IFERROR(MID($R156,FIND(CHAR(160),SUBSTITUTE($R156,\"{\",CHAR(160),FP$1)),FIND(CHAR(160),SUBSTITUTE($R156,\"}\",CHAR(160),FP$1))-FIND(CHAR(160),SUBSTITUTE($R156,\"{\",CHAR(160),FP$1))+1),\"\")","v":""},{"$f":"IFERROR(MID($R156,FIND(CHAR(160),SUBSTITUTE($R156,\"{\",CHAR(160),FQ$1)),FIND(CHAR(160),SUBSTITUTE($R156,\"}\",CHAR(160),FQ$1))-FIND(CHAR(160),SUBSTITUTE($R156,\"{\",CHAR(160),FQ$1))+1),\"\")","v":""},{"$f":"IFERROR(MID($R156,FIND(CHAR(160),SUBSTITUTE($R156,\"{\",CHAR(160),FR$1)),FIND(CHAR(160),SUBSTITUTE($R156,\"}\",CHAR(160),FR$1))-FIND(CHAR(160),SUBSTITUTE($R156,\"{\",CHAR(160),FR$1))+1),\"\")","v":""},{"$f":"IFERROR(MID($R156,FIND(CHAR(160),SUBSTITUTE($R156,\"{\",CHAR(160),FS$1)),FIND(CHAR(160),SUBSTITUTE($R156,\"}\",CHAR(160),FS$1))-FIND(CHAR(160),SUBSTITUTE($R156,\"{\",CHAR(160),FS$1))+1),\"\")","v":""},{"$f":"IFERROR(MID($R156,FIND(CHAR(160),SUBSTITUTE($R156,\"{\",CHAR(160),FT$1)),FIND(CHAR(160),SUBSTITUTE($R156,\"}\",CHAR(160),FT$1))-FIND(CHAR(160),SUBSTITUTE($R156,\"{\",CHAR(160),FT$1))+1),\"\")","v":""},{"$f":"IFERROR(MID($R156,FIND(CHAR(160),SUBSTITUTE($R156,\"{\",CHAR(160),FU$1)),FIND(CHAR(160),SUBSTITUTE($R156,\"}\",CHAR(160),FU$1))-FIND(CHAR(160),SUBSTITUTE($R156,\"{\",CHAR(160),FU$1))+1),\"\")","v":"{Measure:Quantity}"},{"$f":"IFERROR(MID($R156,FIND(CHAR(160),SUBSTITUTE($R156,\"{\",CHAR(160),FV$1)),FIND(CHAR(160),SUBSTITUTE($R156,\"}\",CHAR(160),FV$1))-FIND(CHAR(160),SUBSTITUTE($R156,\"{\",CHAR(160),FV$1))+1),\"\")","v":"{Temperature}"},{"$f":"IFERROR(MID($U156,FIND(CHAR(160),SUBSTITUTE($U156,\"{\",CHAR(160),FW$1)),FIND(CHAR(160),SUBSTITUTE($U156,\"}\",CHAR(160),FW$1))-FIND(CHAR(160),SUBSTITUTE($U156,\"{\",CHAR(160),FW$1))+1),\"\")","v":"{Factor:WinterCF}"},{"$f":"IFERROR(MID($U156,FIND(CHAR(160),SUBSTITUTE($U156,\"{\",CHAR(160),FX$1)),FIND(CHAR(160),SUBSTITUTE($U156,\"}\",CHAR(160),FX$1))-FIND(CHAR(160),SUBSTITUTE($U156,\"{\",CHAR(160),FX$1))+1),\"\")","v":""},{"$f":"IFERROR(MID($U156,FIND(CHAR(160),SUBSTITUTE($U156,\"{\",CHAR(160),FY$1)),FIND(CHAR(160),SUBSTITUTE($U156,\"}\",CHAR(160),FY$1))-FIND(CHAR(160),SUBSTITUTE($U156,\"{\",CHAR(160),FY$1))+1),\"\")","v":""},{"$f":"IFERROR(MID($U156,FIND(CHAR(160),SUBSTITUTE($U156,\"{\",CHAR(160),FZ$1)),FIND(CHAR(160),SUBSTITUTE($U156,\"}\",CHAR(160),FZ$1))-FIND(CHAR(160),SUBSTITUTE($U156,\"{\",CHAR(160),FZ$1))+1),\"\")","v":""},{"$f":"IFERROR(MID($U156,FIND(CHAR(160),SUBSTITUTE($U156,\"{\",CHAR(160),GA$1)),FIND(CHAR(160),SUBSTITUTE($U156,\"}\",CHAR(160),GA$1))-FIND(CHAR(160),SUBSTITUTE($U156,\"{\",CHAR(160),GA$1))+1),\"\")","v":""},{"$f":"IFERROR(MID($U156,FIND(CHAR(160),SUBSTITUTE($U156,\"{\",CHAR(160),GB$1)),FIND(CHAR(160),SUBSTITUTE($U156,\"}\",CHAR(160),GB$1))-FIND(CHAR(160),SUBSTITUTE($U156,\"{\",CHAR(160),GB$1))+1),\"\")","v":""},{"$f":"IFERROR(MID($U156,FIND(CHAR(160),SUBSTITUTE($U156,\"{\",CHAR(160),GC$1)),FIND(CHAR(160),SUBSTITUTE($U156,\"}\",CHAR(160),GC$1))-FIND(CHAR(160),SUBSTITUTE($U156,\"{\",CHAR(160),GC$1))+1),\"\")","v":""},{"$f":"IFERROR(MID($U156,FIND(CHAR(160),SUBSTITUTE($U156,\"{\",CHAR(160),GD$1)),FIND(CHAR(160),SUBSTITUTE($U156,\"}\",CHAR(160),GD$1))-FIND(CHAR(160),SUBSTITUTE($U156,\"{\",CHAR(160),GD$1))+1),\"\")","v":""},{"$f":"IFERROR(MID($U156,FIND(CHAR(160),SUBSTITUTE($U156,\"{\",CHAR(160),GE$1)),FIND(CHAR(160),SUBSTITUTE($U156,\"}\",CHAR(160),GE$1))-FIND(CHAR(160),SUBSTITUTE($U156,\"{\",CHAR(160),GE$1))+1),\"\")","v":"{Measure:Quantity}"},{"$f":"IFERROR(MID($U156,FIND(CHAR(160),SUBSTITUTE($U156,\"{\",CHAR(160),GF$1)),FIND(CHAR(160),SUBSTITUTE($U156,\"}\",CHAR(160),GF$1))-FIND(CHAR(160),SUBSTITUTE($U156,\"{\",CHAR(160),GF$1))+1),\"\")","v":"{Temperature}"},{"$f":"IFERROR(MID($V156,FIND(CHAR(160),SUBSTITUTE($V156,\"{\",CHAR(160),GG$1)),FIND(CHAR(160),SUBSTITUTE($V156,\"}\",CHAR(160),GG$1))-FIND(CHAR(160),SUBSTITUTE($V156,\"{\",CHAR(160),GG$1))+1),\"\")","v":"{Factor:SummerCF}"},{"$f":"IFERROR(MID($V156,FIND(CHAR(160),SUBSTITUTE($V156,\"{\",CHAR(160),GH$1)),FIND(CHAR(160),SUBSTITUTE($V156,\"}\",CHAR(160),GH$1))-FIND(CHAR(160),SUBSTITUTE($V156,\"{\",CHAR(160),GH$1))+1),\"\")","v":""},{"$f":"IFERROR(MID($V156,FIND(CHAR(160),SUBSTITUTE($V156,\"{\",CHAR(160),GI$1)),FIND(CHAR(160),SUBSTITUTE($V156,\"}\",CHAR(160),GI$1))-FIND(CHAR(160),SUBSTITUTE($V156,\"{\",CHAR(160),GI$1))+1),\"\")","v":""},{"$f":"IFERROR(MID($V156,FIND(CHAR(160),SUBSTITUTE($V156,\"{\",CHAR(160),GJ$1)),FIND(CHAR(160),SUBSTITUTE($V156,\"}\",CHAR(160),GJ$1))-FIND(CHAR(160),SUBSTITUTE($V156,\"{\",CHAR(160),GJ$1))+1),\"\")","v":""},{"$f":"IFERROR(MID($V156,FIND(CHAR(160),SUBSTITUTE($V156,\"{\",CHAR(160),GK$1)),FIND(CHAR(160),SUBSTITUTE($V156,\"}\",CHAR(160),GK$1))-FIND(CHAR(160),SUBSTITUTE($V156,\"{\",CHAR(160),GK$1))+1),\"\")","v":""},{"$f":"IFERROR(MID($V156,FIND(CHAR(160),SUBSTITUTE($V156,\"{\",CHAR(160),GL$1)),FIND(CHAR(160),SUBSTITUTE($V156,\"}\",CHAR(160),GL$1))-FIND(CHAR(160),SUBSTITUTE($V156,\"{\",CHAR(160),GL$1))+1),\"\")","v":""},{"$f":"IFERROR(MID($V156,FIND(CHAR(160),SUBSTITUTE($V156,\"{\",CHAR(160),GM$1)),FIND(CHAR(160),SUBSTITUTE($V156,\"}\",CHAR(160),GM$1))-FIND(CHAR(160),SUBSTITUTE($V156,\"{\",CHAR(160),GM$1))+1),\"\")","v":""},{"$f":"IFERROR(MID($V156,FIND(CHAR(160),SUBSTITUTE($V156,\"{\",CHAR(160),GN$1)),FIND(CHAR(160),SUBSTITUTE($V156,\"}\",CHAR(160),GN$1))-FIND(CHAR(160),SUBSTITUTE($V156,\"{\",CHAR(160),GN$1))+1),\"\")","v":""},{"$f":"IFERROR(MID($V156,FIND(CHAR(160),SUBSTITUTE($V156,\"{\",CHAR(160),GO$1)),FIND(CHAR(160),SUBSTITUTE($V156,\"}\",CHAR(160),GO$1))-FIND(CHAR(160),SUBSTITUTE($V156,\"{\",CHAR(160),GO$1))+1),\"\")","v":"{Measure:Quantity}"},{"$f":"IFERROR(MID($V156,FIND(CHAR(160),SUBSTITUTE($V156,\"{\",CHAR(160),GP$1)),FIND(CHAR(160),SUBSTITUTE($V156,\"}\",CHAR(160),GP$1))-FIND(CHAR(160),SUBSTITUTE($V156,\"{\",CHAR(160),GP$1))+1),\"\")","v":"{Temperature}"},{"$f":"IFERROR(MID($W156,FIND(CHAR(160),SUBSTITUTE($W156,\"{\",CHAR(160),GQ$1)),FIND(CHAR(160),SUBSTITUTE($W156,\"}\",CHAR(160),GQ$1))-FIND(CHAR(160),SUBSTITUTE($W156,\"{\",CHAR(160),GQ$1))+1),\"\")","v":""},{"$f":"IFERROR(MID($W156,FIND(CHAR(160),SUBSTITUTE($W156,\"{\",CHAR(160),GR$1)),FIND(CHAR(160),SUBSTITUTE($W156,\"}\",CHAR(160),GR$1))-FIND(CHAR(160),SUBSTITUTE($W156,\"{\",CHAR(160),GR$1))+1),\"\")","v":""},{"$f":"IFERROR(MID($W156,FIND(CHAR(160),SUBSTITUTE($W156,\"{\",CHAR(160),GS$1)),FIND(CHAR(160),SUBSTITUTE($W156,\"}\",CHAR(160),GS$1))-FIND(CHAR(160),SUBSTITUTE($W156,\"{\",CHAR(160),GS$1))+1),\"\")","v":""},{"$f":"IFERROR(MID($W156,FIND(CHAR(160),SUBSTITUTE($W156,\"{\",CHAR(160),GT$1)),FIND(CHAR(160),SUBSTITUTE($W156,\"}\",CHAR(160),GT$1))-FIND(CHAR(160),SUBSTITUTE($W156,\"{\",CHAR(160),GT$1))+1),\"\")","v":""},{"$f":"IFERROR(MID($W156,FIND(CHAR(160),SUBSTITUTE($W156,\"{\",CHAR(160),GU$1)),FIND(CHAR(160),SUBSTITUTE($W156,\"}\",CHAR(160),GU$1))-FIND(CHAR(160),SUBSTITUTE($W156,\"{\",CHAR(160),GU$1))+1),\"\")","v":""},{"$f":"IFERROR(MID($W156,FIND(CHAR(160),SUBSTITUTE($W156,\"{\",CHAR(160),GV$1)),FIND(CHAR(160),SUBSTITUTE($W156,\"}\",CHAR(160),GV$1))-FIND(CHAR(160),SUBSTITUTE($W156,\"{\",CHAR(160),GV$1))+1),\"\")","v":""},{"$f":"IFERROR(MID($W156,FIND(CHAR(160),SUBSTITUTE($W156,\"{\",CHAR(160),GW$1)),FIND(CHAR(160),SUBSTITUTE($W156,\"}\",CHAR(160),GW$1))-FIND(CHAR(160),SUBSTITUTE($W156,\"{\",CHAR(160),GW$1))+1),\"\")","v":""},{"$f":"IFERROR(MID($W156,FIND(CHAR(160),SUBSTITUTE($W156,\"{\",CHAR(160),GX$1)),FIND(CHAR(160),SUBSTITUTE($W156,\"}\",CHAR(160),GX$1))-FIND(CHAR(160),SUBSTITUTE($W156,\"{\",CHAR(160),GX$1))+1),\"\")","v":""},{"$f":"IFERROR(MID($W156,FIND(CHAR(160),SUBSTITUTE($W156,\"{\",CHAR(160),GY$1)),FIND(CHAR(160),SUBSTITUTE($W156,\"}\",CHAR(160),GY$1))-FIND(CHAR(160),SUBSTITUTE($W156,\"{\",CHAR(160),GY$1))+1),\"\")","v":""},{"$f":"IFERROR(MID($W156,FIND(CHAR(160),SUBSTITUTE($W156,\"{\",CHAR(160),GZ$1)),FIND(CHAR(160),SUBSTITUTE($W156,\"}\",CHAR(160),GZ$1))-FIND(CHAR(160),SUBSTITUTE($W156,\"{\",CHAR(160),GZ$1))+1),\"\")","v":""},{"$f":"IFERROR(MID($X156,FIND(CHAR(160),SUBSTITUTE($X156,\"{\",CHAR(160),HA$1)),FIND(CHAR(160),SUBSTITUTE($X156,\"}\",CHAR(160),HA$1))-FIND(CHAR(160),SUBSTITUTE($X156,\"{\",CHAR(160),HA$1))+1),\"\")","v":""},{"$f":"IFERROR(MID($X156,FIND(CHAR(160),SUBSTITUTE($X156,\"{\",CHAR(160),HB$1)),FIND(CHAR(160),SUBSTITUTE($X156,\"}\",CHAR(160),HB$1))-FIND(CHAR(160),SUBSTITUTE($X156,\"{\",CHAR(160),HB$1))+1),\"\")","v":""},{"$f":"IFERROR(MID($X156,FIND(CHAR(160),SUBSTITUTE($X156,\"{\",CHAR(160),HC$1)),FIND(CHAR(160),SUBSTITUTE($X156,\"}\",CHAR(160),HC$1))-FIND(CHAR(160),SUBSTITUTE($X156,\"{\",CHAR(160),HC$1))+1),\"\")","v":""},{"$f":"IFERROR(MID($X156,FIND(CHAR(160),SUBSTITUTE($X156,\"{\",CHAR(160),HD$1)),FIND(CHAR(160),SUBSTITUTE($X156,\"}\",CHAR(160),HD$1))-FIND(CHAR(160),SUBSTITUTE($X156,\"{\",CHAR(160),HD$1))+1),\"\")","v":""},{"$f":"IFERROR(MID($X156,FIND(CHAR(160),SUBSTITUTE($X156,\"{\",CHAR(160),HE$1)),FIND(CHAR(160),SUBSTITUTE($X156,\"}\",CHAR(160),HE$1))-FIND(CHAR(160),SUBSTITUTE($X156,\"{\",CHAR(160),HE$1))+1),\"\")","v":""},{"$f":"IFERROR(MID($X156,FIND(CHAR(160),SUBSTITUTE($X156,\"{\",CHAR(160),HF$1)),FIND(CHAR(160),SUBSTITUTE($X156,\"}\",CHAR(160),HF$1))-FIND(CHAR(160),SUBSTITUTE($X156,\"{\",CHAR(160),HF$1))+1),\"\")","v":""},{"$f":"IFERROR(MID($X156,FIND(CHAR(160),SUBSTITUTE($X156,\"{\",CHAR(160),HG$1)),FIND(CHAR(160),SUBSTITUTE($X156,\"}\",CHAR(160),HG$1))-FIND(CHAR(160),SUBSTITUTE($X156,\"{\",CHAR(160),HG$1))+1),\"\")","v":""},{"$f":"IFERROR(MID($X156,FIND(CHAR(160),SUBSTITUTE($X156,\"{\",CHAR(160),HH$1)),FIND(CHAR(160),SUBSTITUTE($X156,\"}\",CHAR(160),HH$1))-FIND(CHAR(160),SUBSTITUTE($X156,\"{\",CHAR(160),HH$1))+1),\"\")","v":""},{"$f":"IFERROR(MID($X156,FIND(CHAR(160),SUBSTITUTE($X156,\"{\",CHAR(160),HI$1)),FIND(CHAR(160),SUBSTITUTE($X156,\"}\",CHAR(160),HI$1))-FIND(CHAR(160),SUBSTITUTE($X156,\"{\",CHAR(160),HI$1))+1),\"\")","v":""},{"$f":"IFERROR(MID($X156,FIND(CHAR(160),SUBSTITUTE($X156,\"{\",CHAR(160),HJ$1)),FIND(CHAR(160),SUBSTITUTE($X156,\"}\",CHAR(160),HJ$1))-FIND(CHAR(160),SUBSTITUTE($X156,\"{\",CHAR(160),HJ$1))+1),\"\")","v":""},{"$f":"IFERROR(MID($Y156,FIND(CHAR(160),SUBSTITUTE($Y156,\"{\",CHAR(160),HK$1)),FIND(CHAR(160),SUBSTITUTE($Y156,\"}\",CHAR(160),HK$1))-FIND(CHAR(160),SUBSTITUTE($Y156,\"{\",CHAR(160),HK$1))+1),\"\")","v":""},{"$f":"IFERROR(MID($Y156,FIND(CHAR(160),SUBSTITUTE($Y156,\"{\",CHAR(160),HL$1)),FIND(CHAR(160),SUBSTITUTE($Y156,\"}\",CHAR(160),HL$1))-FIND(CHAR(160),SUBSTITUTE($Y156,\"{\",CHAR(160),HL$1))+1),\"\")","v":""},{"$f":"IFERROR(MID($Y156,FIND(CHAR(160),SUBSTITUTE($Y156,\"{\",CHAR(160),HM$1)),FIND(CHAR(160),SUBSTITUTE($Y156,\"}\",CHAR(160),HM$1))-FIND(CHAR(160),SUBSTITUTE($Y156,\"{\",CHAR(160),HM$1))+1),\"\")","v":""},{"$f":"IFERROR(MID($Y156,FIND(CHAR(160),SUBSTITUTE($Y156,\"{\",CHAR(160),HN$1)),FIND(CHAR(160),SUBSTITUTE($Y156,\"}\",CHAR(160),HN$1))-FIND(CHAR(160),SUBSTITUTE($Y156,\"{\",CHAR(160),HN$1))+1),\"\")","v":""},{"$f":"IFERROR(MID($Y156,FIND(CHAR(160),SUBSTITUTE($Y156,\"{\",CHAR(160),HO$1)),FIND(CHAR(160),SUBSTITUTE($Y156,\"}\",CHAR(160),HO$1))-FIND(CHAR(160),SUBSTITUTE($Y156,\"{\",CHAR(160),HO$1))+1),\"\")","v":""},{"$f":"IFERROR(MID($Y156,FIND(CHAR(160),SUBSTITUTE($Y156,\"{\",CHAR(160),HP$1)),FIND(CHAR(160),SUBSTITUTE($Y156,\"}\",CHAR(160),HP$1))-FIND(CHAR(160),SUBSTITUTE($Y156,\"{\",CHAR(160),HP$1))+1),\"\")","v":""},{"$f":"IFERROR(MID($Y156,FIND(CHAR(160),SUBSTITUTE($Y156,\"{\",CHAR(160),HQ$1)),FIND(CHAR(160),SUBSTITUTE($Y156,\"}\",CHAR(160),HQ$1))-FIND(CHAR(160),SUBSTITUTE($Y156,\"{\",CHAR(160),HQ$1))+1),\"\")","v":""},{"$f":"IFERROR(MID($Y156,FIND(CHAR(160),SUBSTITUTE($Y156,\"{\",CHAR(160),HR$1)),FIND(CHAR(160),SUBSTITUTE($Y156,\"}\",CHAR(160),HR$1))-FIND(CHAR(160),SUBSTITUTE($Y156,\"{\",CHAR(160),HR$1))+1),\"\")","v":""},{"$f":"IFERROR(MID($Y156,FIND(CHAR(160),SUBSTITUTE($Y156,\"{\",CHAR(160),HS$1)),FIND(CHAR(160),SUBSTITUTE($Y156,\"}\",CHAR(160),HS$1))-FIND(CHAR(160),SUBSTITUTE($Y156,\"{\",CHAR(160),HS$1))+1),\"\")","v":""},{"$f":"IFERROR(MID($Y156,FIND(CHAR(160),SUBSTITUTE($Y156,\"{\",CHAR(160),HT$1)),FIND(CHAR(160),SUBSTITUTE($Y156,\"}\",CHAR(160),HT$1))-FIND(CHAR(160),SUBSTITUTE($Y156,\"{\",CHAR(160),HT$1))+1),\"\")","v":""},{"$f":"IFERROR(MID($Z156,FIND(CHAR(160),SUBSTITUTE($Z156,\"{\",CHAR(160),HU$1)),FIND(CHAR(160),SUBSTITUTE($Z156,\"}\",CHAR(160),HU$1))-FIND(CHAR(160),SUBSTITUTE($Z156,\"{\",CHAR(160),HU$1))+1),\"\")","v":""},{"$f":"IFERROR(MID($Z156,FIND(CHAR(160),SUBSTITUTE($Z156,\"{\",CHAR(160),HV$1)),FIND(CHAR(160),SUBSTITUTE($Z156,\"}\",CHAR(160),HV$1))-FIND(CHAR(160),SUBSTITUTE($Z156,\"{\",CHAR(160),HV$1))+1),\"\")","v":""},{"$f":"IFERROR(MID($Z156,FIND(CHAR(160),SUBSTITUTE($Z156,\"{\",CHAR(160),HW$1)),FIND(CHAR(160),SUBSTITUTE($Z156,\"}\",CHAR(160),HW$1))-FIND(CHAR(160),SUBSTITUTE($Z156,\"{\",CHAR(160),HW$1))+1),\"\")","v":""},{"$f":"IFERROR(MID($Z156,FIND(CHAR(160),SUBSTITUTE($Z156,\"{\",CHAR(160),HX$1)),FIND(CHAR(160),SUBSTITUTE($Z156,\"}\",CHAR(160),HX$1))-FIND(CHAR(160),SUBSTITUTE($Z156,\"{\",CHAR(160),HX$1))+1),\"\")","v":""},{"$f":"IFERROR(MID($Z156,FIND(CHAR(160),SUBSTITUTE($Z156,\"{\",CHAR(160),HY$1)),FIND(CHAR(160),SUBSTITUTE($Z156,\"}\",CHAR(160),HY$1))-FIND(CHAR(160),SUBSTITUTE($Z156,\"{\",CHAR(160),HY$1))+1),\"\")","v":""},{"$f":"IFERROR(MID($Z156,FIND(CHAR(160),SUBSTITUTE($Z156,\"{\",CHAR(160),HZ$1)),FIND(CHAR(160),SUBSTITUTE($Z156,\"}\",CHAR(160),HZ$1))-FIND(CHAR(160),SUBSTITUTE($Z156,\"{\",CHAR(160),HZ$1))+1),\"\")","v":""},{"$f":"IFERROR(MID($Z156,FIND(CHAR(160),SUBSTITUTE($Z156,\"{\",CHAR(160),IA$1)),FIND(CHAR(160),SUBSTITUTE($Z156,\"}\",CHAR(160),IA$1))-FIND(CHAR(160),SUBSTITUTE($Z156,\"{\",CHAR(160),IA$1))+1),\"\")","v":""},{"$f":"IFERROR(MID($Z156,FIND(CHAR(160),SUBSTITUTE($Z156,\"{\",CHAR(160),IB$1)),FIND(CHAR(160),SUBSTITUTE($Z156,\"}\",CHAR(160),IB$1))-FIND(CHAR(160),SUBSTITUTE($Z156,\"{\",CHAR(160),IB$1))+1),\"\")","v":""},{"$f":"IFERROR(MID($Z156,FIND(CHAR(160),SUBSTITUTE($Z156,\"{\",CHAR(160),IC$1)),FIND(CHAR(160),SUBSTITUTE($Z156,\"}\",CHAR(160),IC$1))-FIND(CHAR(160),SUBSTITUTE($Z156,\"{\",CHAR(160),IC$1))+1),\"\")","v":""},{"$f":"IFERROR(MID($Z156,FIND(CHAR(160),SUBSTITUTE($Z156,\"{\",CHAR(160),ID$1)),FIND(CHAR(160),SUBSTITUTE($Z156,\"}\",CHAR(160),ID$1))-FIND(CHAR(160),SUBSTITUTE($Z156,\"{\",CHAR(160),ID$1))+1),\"\")","v":""},{"$f":"IFERROR(MID($AA156,FIND(CHAR(160),SUBSTITUTE($AA156,\"{\",CHAR(160),IE$1)),FIND(CHAR(160),SUBSTITUTE($AA156,\"}\",CHAR(160),IE$1))-FIND(CHAR(160),SUBSTITUTE($AA156,\"{\",CHAR(160),IE$1))+1),\"\")","v":""},{"$f":"IFERROR(MID($AA156,FIND(CHAR(160),SUBSTITUTE($AA156,\"{\",CHAR(160),IF$1)),FIND(CHAR(160),SUBSTITUTE($AA156,\"}\",CHAR(160),IF$1))-FIND(CHAR(160),SUBSTITUTE($AA156,\"{\",CHAR(160),IF$1))+1),\"\")","v":""},{"$f":"IFERROR(MID($AA156,FIND(CHAR(160),SUBSTITUTE($AA156,\"{\",CHAR(160),IG$1)),FIND(CHAR(160),SUBSTITUTE($AA156,\"}\",CHAR(160),IG$1))-FIND(CHAR(160),SUBSTITUTE($AA156,\"{\",CHAR(160),IG$1))+1),\"\")","v":""},{"$f":"IFERROR(MID($AA156,FIND(CHAR(160),SUBSTITUTE($AA156,\"{\",CHAR(160),IH$1)),FIND(CHAR(160),SUBSTITUTE($AA156,\"}\",CHAR(160),IH$1))-FIND(CHAR(160),SUBSTITUTE($AA156,\"{\",CHAR(160),IH$1))+1),\"\")","v":""},{"$f":"IFERROR(MID($AA156,FIND(CHAR(160),SUBSTITUTE($AA156,\"{\",CHAR(160),II$1)),FIND(CHAR(160),SUBSTITUTE($AA156,\"}\",CHAR(160),II$1))-FIND(CHAR(160),SUBSTITUTE($AA156,\"{\",CHAR(160),II$1))+1),\"\")","v":""},{"$f":"IFERROR(MID($AA156,FIND(CHAR(160),SUBSTITUTE($AA156,\"{\",CHAR(160),IJ$1)),FIND(CHAR(160),SUBSTITUTE($AA156,\"}\",CHAR(160),IJ$1))-FIND(CHAR(160),SUBSTITUTE($AA156,\"{\",CHAR(160),IJ$1))+1),\"\")","v":""},{"$f":"IFERROR(MID($AA156,FIND(CHAR(160),SUBSTITUTE($AA156,\"{\",CHAR(160),IK$1)),FIND(CHAR(160),SUBSTITUTE($AA156,\"}\",CHAR(160),IK$1))-FIND(CHAR(160),SUBSTITUTE($AA156,\"{\",CHAR(160),IK$1))+1),\"\")","v":""},{"$f":"IFERROR(MID($AA156,FIND(CHAR(160),SUBSTITUTE($AA156,\"{\",CHAR(160),IL$1)),FIND(CHAR(160),SUBSTITUTE($AA156,\"}\",CHAR(160),IL$1))-FIND(CHAR(160),SUBSTITUTE($AA156,\"{\",CHAR(160),IL$1))+1),\"\")","v":""},{"$f":"IFERROR(MID($AA156,FIND(CHAR(160),SUBSTITUTE($AA156,\"{\",CHAR(160),IM$1)),FIND(CHAR(160),SUBSTITUTE($AA156,\"}\",CHAR(160),IM$1))-FIND(CHAR(160),SUBSTITUTE($AA156,\"{\",CHAR(160),IM$1))+1),\"\")","v":""},{"$f":"IFERROR(MID($AA156,FIND(CHAR(160),SUBSTITUTE($AA156,\"{\",CHAR(160),IN$1)),FIND(CHAR(160),SUBSTITUTE($AA156,\"}\",CHAR(160),IN$1))-FIND(CHAR(160),SUBSTITUTE($AA156,\"{\",CHAR(160),IN$1))+1),\"\")","v":""},{"$f":"IFERROR(MID($AB156,FIND(CHAR(160),SUBSTITUTE($AB156,\"{\",CHAR(160),IO$1)),FIND(CHAR(160),SUBSTITUTE($AB156,\"}\",CHAR(160),IO$1))-FIND(CHAR(160),SUBSTITUTE($AB156,\"{\",CHAR(160),IO$1))+1),\"\")","v":""},{"$f":"IFERROR(MID($AB156,FIND(CHAR(160),SUBSTITUTE($AB156,\"{\",CHAR(160),IP$1)),FIND(CHAR(160),SUBSTITUTE($AB156,\"}\",CHAR(160),IP$1))-FIND(CHAR(160),SUBSTITUTE($AB156,\"{\",CHAR(160),IP$1))+1),\"\")","v":""},{"$f":"IFERROR(MID($AB156,FIND(CHAR(160),SUBSTITUTE($AB156,\"{\",CHAR(160),IQ$1)),FIND(CHAR(160),SUBSTITUTE($AB156,\"}\",CHAR(160),IQ$1))-FIND(CHAR(160),SUBSTITUTE($AB156,\"{\",CHAR(160),IQ$1))+1),\"\")","v":""},{"$f":"IFERROR(MID($AB156,FIND(CHAR(160),SUBSTITUTE($AB156,\"{\",CHAR(160),IR$1)),FIND(CHAR(160),SUBSTITUTE($AB156,\"}\",CHAR(160),IR$1))-FIND(CHAR(160),SUBSTITUTE($AB156,\"{\",CHAR(160),IR$1))+1),\"\")","v":""},{"$f":"IFERROR(MID($AB156,FIND(CHAR(160),SUBSTITUTE($AB156,\"{\",CHAR(160),IS$1)),FIND(CHAR(160),SUBSTITUTE($AB156,\"}\",CHAR(160),IS$1))-FIND(CHAR(160),SUBSTITUTE($AB156,\"{\",CHAR(160),IS$1))+1),\"\")","v":""},{"$f":"IFERROR(MID($AB156,FIND(CHAR(160),SUBSTITUTE($AB156,\"{\",CHAR(160),IT$1)),FIND(CHAR(160),SUBSTITUTE($AB156,\"}\",CHAR(160),IT$1))-FIND(CHAR(160),SUBSTITUTE($AB156,\"{\",CHAR(160),IT$1))+1),\"\")","v":""},{"$f":"IFERROR(MID($AB156,FIND(CHAR(160),SUBSTITUTE($AB156,\"{\",CHAR(160),IU$1)),FIND(CHAR(160),SUBSTITUTE($AB156,\"}\",CHAR(160),IU$1))-FIND(CHAR(160),SUBSTITUTE($AB156,\"{\",CHAR(160),IU$1))+1),\"\")","v":""},{"$f":"IFERROR(MID($AB156,FIND(CHAR(160),SUBSTITUTE($AB156,\"{\",CHAR(160),IV$1)),FIND(CHAR(160),SUBSTITUTE($AB156,\"}\",CHAR(160),IV$1))-FIND(CHAR(160),SUBSTITUTE($AB156,\"{\",CHAR(160),IV$1))+1),\"\")","v":""},{"$f":"IFERROR(MID($AB156,FIND(CHAR(160),SUBSTITUTE($AB156,\"{\",CHAR(160),IW$1)),FIND(CHAR(160),SUBSTITUTE($AB156,\"}\",CHAR(160),IW$1))-FIND(CHAR(160),SUBSTITUTE($AB156,\"{\",CHAR(160),IW$1))+1),\"\")","v":""},{"$f":"IFERROR(MID($AB156,FIND(CHAR(160),SUBSTITUTE($AB156,\"{\",CHAR(160),IX$1)),FIND(CHAR(160),SUBSTITUTE($AB156,\"}\",CHAR(160),IX$1))-FIND(CHAR(160),SUBSTITUTE($AB156,\"{\",CHAR(160),IX$1))+1),\"\")","v":""},null,{"$f":"10-COUNTIF(DU156:ED156,\"\")","v":3}]
["C&I Refrigeration Solutions","R42 High-Efficiency Evaporator Fan Motors - Merchandise Cases","R42","2021-07-01","2022-06-30","Per Measure",117,0,"Per Measure",20,0,"2020-11-01","2022-06-30","Calculated","{Measure:Quantity} * (0.123 - 0.040) * {DC - Evap Fan} * {Temperature} * 8760",1E-4,null,"{Measure:Quantity} * (0.123 - 0.040) * {Temperature}",null,null,"{Measure:Quantity} * (0.123 - 0.040) * {Temperature} * {Factor:WinterCF}","{Measure:Quantity} * (0.123 - 0.040) * {Temperature}* {Factor:SummerCF}",null,null,null,null,null,null,"2020-11-01","2022-06-30",15,0.73699999999999999,0.95899999999999996,0.30399999999999999,0.36199999999999999,0.156,0.17799999999999999,1,1.1220000000000001,1,0.52,1.6E-2,null,{"$f":"DU157","v":"{Temperature}"},1,{"$f":"DV157","v":"{Measure:Quantity}"},1,{"$f":"DW157","v":"{DC - Evap Fan}"},1.2,{"$f":"DX157","v":""},null,{"$f":"DY157","v":""},null,{"$f":"DZ157","v":""},null,{"$f":"EA157","v":""},null,{"$f":"EB157","v":""},null,{"$f":"EC157","v":""},null,{"$f":"ED157","v":""},null,{"$f":"AS157 * (0.123 - 0.04) * AU157 * AW157 * 8760","v":872.49599999999987},{"$f":"0.0001","v":1E-4},0,{"$f":"AS157 * (0.123 - 0.04) * AW157","v":9.959999999999998E-2},0,0,{"$f":"AS157 * (0.123 - 0.04) * AW157 * AF157","v":7.340519999999999E-2},{"$f":"AS157 * (0.123 - 0.04) * AW157* AG157","v":9.5516399999999974E-2},0,0,0,0,0,0,null,"Res","Default DR",{"$f":"Benefits(BL157,BR157,BS157,BT157,BU157,BV157,BW157,BX157,BY157,BZ157,AE157,AH157,AI157,AJ157,AK157,AL157,AM157,AN157,AO157,AP157,CA157,CB157)","v":1308.0221453401746},456.25721857001668,0,0,0,0,0,0,0,{"$f":"SUMPRODUCT(CC157:CK157,--(CC157:CK157>0))","v":1764.2793639101913},{"$f":"-SUMPRODUCT(CC157:CK157,--(CC157:CK157<0))","v":0},null,{"$f":"117","v":117},null,null,{"$f":"CM157+CO157","v":117},{"$f":"IF(NetOrGross=\"Net\",(1-AO157+AP157),1)","v":1},{"$f":"(SUMPRODUCT(CC157:CJ157,--(CC157:CJ157>0))+CN157)*CS157/((-SUMPRODUCT(CC157:CJ157,--(CC157:CJ157<0))+MAX(CO157,CV157)+CP157+CQ157)*CS157+IF(FRIncentives=\"Yes\",CV157*(1-CS157),0))","v":15.079310802651207},1,{"$f":"20","v":20},null,"Electric","y",null,{"$f":"IF(F157=\"Manual Entry\",\"Manual\",IF(G157=\"\",0,\"X=\"&SUBSTITUTE(SUBSTITUTE(SUBSTITUTE(SUBSTITUTE(SUBSTITUTE(SUBSTITUTE(SUBSTITUTE(SUBSTITUTE(SUBSTITUTE(SUBSTITUTE(SUBSTITUTE(SUBSTITUTE(G157,$ED157,$ED$2&ROW($ED157)),$EC157,$EC$2&ROW($EC157)),$EB157,$EB$2&ROW($EB157)),$EA157,$EA$2&ROW($EA157)),$DZ157,$DZ$2&ROW($DZ157)),$DY157,$DY$2&ROW($DY157)),$DX157,$DX$2&ROW($DX157)),$DW157,$DW$2&ROW($DW157)),$DV157,$DV$2&ROW($DV157)),$DU157,$DU$2&ROW($DU157)),$DT157,$DT$2&ROW($DT157)),$DS157,$DS$2&ROW($DS157))))","v":"X=117"},{"$f":"IF(I157=\"Manual Entry\",\"Manual\",IF(J157=\"\",0,\"X=\"&SUBSTITUTE(SUBSTITUTE(SUBSTITUTE(SUBSTITUTE(SUBSTITUTE(SUBSTITUTE(SUBSTITUTE(SUBSTITUTE(SUBSTITUTE(SUBSTITUTE(SUBSTITUTE(SUBSTITUTE(J157,$ED157,$ED$2&ROW($ED157)),$EC157,$EC$2&ROW($EC157)),$EB157,$EB$2&ROW($EB157)),$EA157,$EA$2&ROW($EA157)),$DZ157,$DZ$2&ROW($DZ157)),$DY157,$DY$2&ROW($DY157)),$DX157,$DX$2&ROW($DX157)),$DW157,$DW$2&ROW($DW157)),$DV157,$DV$2&ROW($DV157)),$DU157,$DU$2&ROW($DU157)),$DT157,$DT$2&ROW($DT157)),$DS157,$DS$2&ROW($DS157))))","v":"X=20"},{"$f":"IF(O157=\"\",0,\"X=\"&SUBSTITUTE(SUBSTITUTE(SUBSTITUTE(SUBSTITUTE(SUBSTITUTE(SUBSTITUTE(SUBSTITUTE(SUBSTITUTE(SUBSTITUTE(SUBSTITUTE(SUBSTITUTE(SUBSTITUTE(O157,$ED157,$ED$2&ROW($ED157)),$EC157,$EC$2&ROW($EC157)),$EB157,$EB$2&ROW($EB157)),$EA157,$EA$2&ROW($EA157)),$DZ157,$DZ$2&ROW($DZ157)),$DY157,$DY$2&ROW($DY157)),$DX157,$DX$2&ROW($DX157)),$DW157,$DW$2&ROW($DW157)),$DV157,$DV$2&ROW($DV157)),$DU157,$DU$2&ROW($DU157)),$DT157,$DT$2&ROW($DT157)),$DS157,$DS$2&ROW($DS157)))","v":"X=AU157 * (0.123 - 0.040) * AW157 * AS157 * 8760"},{"$f":"IF(P157=\"\",0,\"X=\"&SUBSTITUTE(SUBSTITUTE(SUBSTITUTE(SUBSTITUTE(SUBSTITUTE(SUBSTITUTE(SUBSTITUTE(SUBSTITUTE(SUBSTITUTE(SUBSTITUTE(SUBSTITUTE(SUBSTITUTE(P157,$ED157,$ED$2&ROW($ED157)),$EC157,$EC$2&ROW($EC157)),$EB157,$EB$2&ROW($EB157)),$EA157,$EA$2&ROW($EA157)),$DZ157,$DZ$2&ROW($DZ157)),$DY157,$DY$2&ROW($DY157)),$DX157,$DX$2&ROW($DX157)),$DW157,$DW$2&ROW($DW157)),$DV157,$DV$2&ROW($DV157)),$DU157,$DU$2&ROW($DU157)),$DT157,$DT$2&ROW($DT157)),$DS157,$DS$2&ROW($DS157)))","v":"X=0.0001"},{"$f":"IF(Q157=\"\",0,\"X=\"&SUBSTITUTE(SUBSTITUTE(SUBSTITUTE(SUBSTITUTE(SUBSTITUTE(SUBSTITUTE(SUBSTITUTE(SUBSTITUTE(SUBSTITUTE(SUBSTITUTE(SUBSTITUTE(SUBSTITUTE(Q157,$ED157,$ED$2&ROW($ED157)),$EC157,$EC$2&ROW($EC157)),$EB157,$EB$2&ROW($EB157)),$EA157,$EA$2&ROW($EA157)),$DZ157,$DZ$2&ROW($DZ157)),$DY157,$DY$2&ROW($DY157)),$DX157,$DX$2&ROW($DX157)),$DW157,$DW$2&ROW($DW157)),$DV157,$DV$2&ROW($DV157)),$DU157,$DU$2&ROW($DU157)),$DT157,$DT$2&ROW($DT157)),$DS157,$DS$2&ROW($DS157)))","v":0},{"$f":"IF(R157=\"\",0,\"X=\"&SUBSTITUTE(SUBSTITUTE(SUBSTITUTE(SUBSTITUTE(SUBSTITUTE(SUBSTITUTE(SUBSTITUTE(SUBSTITUTE(SUBSTITUTE(SUBSTITUTE(SUBSTITUTE(SUBSTITUTE(R157,$ED157,$ED$2&ROW($ED157)),$EC157,$EC$2&ROW($EC157)),$EB157,$EB$2&ROW($EB157)),$EA157,$EA$2&ROW($EA157)),$DZ157,$DZ$2&ROW($DZ157)),$DY157,$DY$2&ROW($DY157)),$DX157,$DX$2&ROW($DX157)),$DW157,$DW$2&ROW($DW157)),$DV157,$DV$2&ROW($DV157)),$DU157,$DU$2&ROW($DU157)),$DT157,$DT$2&ROW($DT157)),$DS157,$DS$2&ROW($DS157)))","v":"X=AU157 * (0.123 - 0.040) * AS157"},{"$f":"IF(S157=\"\",0,\"X=\"&SUBSTITUTE(SUBSTITUTE(SUBSTITUTE(SUBSTITUTE(SUBSTITUTE(SUBSTITUTE(SUBSTITUTE(SUBSTITUTE(SUBSTITUTE(SUBSTITUTE(SUBSTITUTE(SUBSTITUTE(S157,$ED157,$ED$2&ROW($ED157)),$EC157,$EC$2&ROW($EC157)),$EB157,$EB$2&ROW($EB157)),$EA157,$EA$2&ROW($EA157)),$DZ157,$DZ$2&ROW($DZ157)),$DY157,$DY$2&ROW($DY157)),$DX157,$DX$2&ROW($DX157)),$DW157,$DW$2&ROW($DW157)),$DV157,$DV$2&ROW($DV157)),$DU157,$DU$2&ROW($DU157)),$DT157,$DT$2&ROW($DT157)),$DS157,$DS$2&ROW($DS157)))","v":0},{"$f":"IF(T157=\"\",0,\"X=\"&SUBSTITUTE(SUBSTITUTE(SUBSTITUTE(SUBSTITUTE(SUBSTITUTE(SUBSTITUTE(SUBSTITUTE(SUBSTITUTE(SUBSTITUTE(SUBSTITUTE(SUBSTITUTE(SUBSTITUTE(T157,$ED157,$ED$2&ROW($ED157)),$EC157,$EC$2&ROW($EC157)),$EB157,$EB$2&ROW($EB157)),$EA157,$EA$2&ROW($EA157)),$DZ157,$DZ$2&ROW($DZ157)),$DY157,$DY$2&ROW($DY157)),$DX157,$DX$2&ROW($DX157)),$DW157,$DW$2&ROW($DW157)),$DV157,$DV$2&ROW($DV157)),$DU157,$DU$2&ROW($DU157)),$DT157,$DT$2&ROW($DT157)),$DS157,$DS$2&ROW($DS157)))","v":0},{"$f":"IF(U157=\"\",0,\"X=\"&SUBSTITUTE(SUBSTITUTE(SUBSTITUTE(SUBSTITUTE(SUBSTITUTE(SUBSTITUTE(SUBSTITUTE(SUBSTITUTE(SUBSTITUTE(SUBSTITUTE(SUBSTITUTE(SUBSTITUTE(U157,$ED157,$ED$2&ROW($ED157)),$EC157,$EC$2&ROW($EC157)),$EB157,$EB$2&ROW($EB157)),$EA157,$EA$2&ROW($EA157)),$DZ157,$DZ$2&ROW($DZ157)),$DY157,$DY$2&ROW($DY157)),$DX157,$DX$2&ROW($DX157)),$DW157,$DW$2&ROW($DW157)),$DV157,$DV$2&ROW($DV157)),$DU157,$DU$2&ROW($DU157)),$DT157,$DT$2&ROW($DT157)),$DS157,$DS$2&ROW($DS157)))","v":"X=AU157 * (0.123 - 0.040) * AS157 * AF157"},{"$f":"IF(V157=\"\",0,\"X=\"&SUBSTITUTE(SUBSTITUTE(SUBSTITUTE(SUBSTITUTE(SUBSTITUTE(SUBSTITUTE(SUBSTITUTE(SUBSTITUTE(SUBSTITUTE(SUBSTITUTE(SUBSTITUTE(SUBSTITUTE(V157,$ED157,$ED$2&ROW($ED157)),$EC157,$EC$2&ROW($EC157)),$EB157,$EB$2&ROW($EB157)),$EA157,$EA$2&ROW($EA157)),$DZ157,$DZ$2&ROW($DZ157)),$DY157,$DY$2&ROW($DY157)),$DX157,$DX$2&ROW($DX157)),$DW157,$DW$2&ROW($DW157)),$DV157,$DV$2&ROW($DV157)),$DU157,$DU$2&ROW($DU157)),$DT157,$DT$2&ROW($DT157)),$DS157,$DS$2&ROW($DS157)))","v":"X=AU157 * (0.123 - 0.040) * AS157* AG157"},{"$f":"IF(W157=\"\",0,\"X=\"&SUBSTITUTE(SUBSTITUTE(SUBSTITUTE(SUBSTITUTE(SUBSTITUTE(SUBSTITUTE(SUBSTITUTE(SUBSTITUTE(SUBSTITUTE(SUBSTITUTE(SUBSTITUTE(SUBSTITUTE(W157,$ED157,$ED$2&ROW($ED157)),$EC157,$EC$2&ROW($EC157)),$EB157,$EB$2&ROW($EB157)),$EA157,$EA$2&ROW($EA157)),$DZ157,$DZ$2&ROW($DZ157)),$DY157,$DY$2&ROW($DY157)),$DX157,$DX$2&ROW($DX157)),$DW157,$DW$2&ROW($DW157)),$DV157,$DV$2&ROW($DV157)),$DU157,$DU$2&ROW($DU157)),$DT157,$DT$2&ROW($DT157)),$DS157,$DS$2&ROW($DS157)))","v":0},{"$f":"IF(X157=\"\",0,\"X=\"&SUBSTITUTE(SUBSTITUTE(SUBSTITUTE(SUBSTITUTE(SUBSTITUTE(SUBSTITUTE(SUBSTITUTE(SUBSTITUTE(SUBSTITUTE(SUBSTITUTE(SUBSTITUTE(SUBSTITUTE(X157,$ED157,$ED$2&ROW($ED157)),$EC157,$EC$2&ROW($EC157)),$EB157,$EB$2&ROW($EB157)),$EA157,$EA$2&ROW($EA157)),$DZ157,$DZ$2&ROW($DZ157)),$DY157,$DY$2&ROW($DY157)),$DX157,$DX$2&ROW($DX157)),$DW157,$DW$2&ROW($DW157)),$DV157,$DV$2&ROW($DV157)),$DU157,$DU$2&ROW($DU157)),$DT157,$DT$2&ROW($DT157)),$DS157,$DS$2&ROW($DS157)))","v":0},{"$f":"IF(Y157=\"\",0,\"X=\"&SUBSTITUTE(SUBSTITUTE(SUBSTITUTE(SUBSTITUTE(SUBSTITUTE(SUBSTITUTE(SUBSTITUTE(SUBSTITUTE(SUBSTITUTE(SUBSTITUTE(SUBSTITUTE(SUBSTITUTE(Y157,$ED157,$ED$2&ROW($ED157)),$EC157,$EC$2&ROW($EC157)),$EB157,$EB$2&ROW($EB157)),$EA157,$EA$2&ROW($EA157)),$DZ157,$DZ$2&ROW($DZ157)),$DY157,$DY$2&ROW($DY157)),$DX157,$DX$2&ROW($DX157)),$DW157,$DW$2&ROW($DW157)),$DV157,$DV$2&ROW($DV157)),$DU157,$DU$2&ROW($DU157)),$DT157,$DT$2&ROW($DT157)),$DS157,$DS$2&ROW($DS157)))","v":0},{"$f":"IF(Z157=\"\",0,\"X=\"&SUBSTITUTE(SUBSTITUTE(SUBSTITUTE(SUBSTITUTE(SUBSTITUTE(SUBSTITUTE(SUBSTITUTE(SUBSTITUTE(SUBSTITUTE(SUBSTITUTE(SUBSTITUTE(SUBSTITUTE(Z157,$ED157,$ED$2&ROW($ED157)),$EC157,$EC$2&ROW($EC157)),$EB157,$EB$2&ROW($EB157)),$EA157,$EA$2&ROW($EA157)),$DZ157,$DZ$2&ROW($DZ157)),$DY157,$DY$2&ROW($DY157)),$DX157,$DX$2&ROW($DX157)),$DW157,$DW$2&ROW($DW157)),$DV157,$DV$2&ROW($DV157)),$DU157,$DU$2&ROW($DU157)),$DT157,$DT$2&ROW($DT157)),$DS157,$DS$2&ROW($DS157)))","v":0},{"$f":"IF(AA157=\"\",0,\"X=\"&SUBSTITUTE(SUBSTITUTE(SUBSTITUTE(SUBSTITUTE(SUBSTITUTE(SUBSTITUTE(SUBSTITUTE(SUBSTITUTE(SUBSTITUTE(SUBSTITUTE(SUBSTITUTE(SUBSTITUTE(AA157,$ED157,$ED$2&ROW($ED157)),$EC157,$EC$2&ROW($EC157)),$EB157,$EB$2&ROW($EB157)),$EA157,$EA$2&ROW($EA157)),$DZ157,$DZ$2&ROW($DZ157)),$DY157,$DY$2&ROW($DY157)),$DX157,$DX$2&ROW($DX157)),$DW157,$DW$2&ROW($DW157)),$DV157,$DV$2&ROW($DV157)),$DU157,$DU$2&ROW($DU157)),$DT157,$DT$2&ROW($DT157)),$DS157,$DS$2&ROW($DS157)))","v":0},{"$f":"IF(AB157=\"\",0,\"X=\"&SUBSTITUTE(SUBSTITUTE(SUBSTITUTE(SUBSTITUTE(SUBSTITUTE(SUBSTITUTE(SUBSTITUTE(SUBSTITUTE(SUBSTITUTE(SUBSTITUTE(SUBSTITUTE(SUBSTITUTE(AB157,$ED157,$ED$2&ROW($ED157)),$EC157,$EC$2&ROW($EC157)),$EB157,$EB$2&ROW($EB157)),$EA157,$EA$2&ROW($EA157)),$DZ157,$DZ$2&ROW($DZ157)),$DY157,$DY$2&ROW($DY157)),$DX157,$DX$2&ROW($DX157)),$DW157,$DW$2&ROW($DW157)),$DV157,$DV$2&ROW($DV157)),$DU157,$DU$2&ROW($DU157)),$DT157,$DT$2&ROW($DT157)),$DS157,$DS$2&ROW($DS157)))","v":0},null,null,"{Factor:WinterCF}","{Factor:SummerCF}",{"$f":"IFERROR(INDEX($EG157:$IV157,MATCH(0,COUNTIF($DR157:DT157,$EG157:$IV157),0)),\"\")","v":"{Temperature}"},{"$f":"IFERROR(INDEX($EG157:$IV157,MATCH(0,COUNTIF($DR157:DU157,$EG157:$IV157),0)),\"\")","v":"{Measure:Quantity}"},{"$f":"IFERROR(INDEX($EG157:$IV157,MATCH(0,COUNTIF($DR157:DV157,$EG157:$IV157),0)),\"\")","v":"{DC - Evap Fan}"},{"$f":"IFERROR(INDEX($EG157:$IV157,MATCH(0,COUNTIF($DR157:DW157,$EG157:$IV157),0)),\"\")","v":""},{"$f":"IFERROR(INDEX($EG157:$IV157,MATCH(0,COUNTIF($DR157:DX157,$EG157:$IV157),0)),\"\")","v":""},{"$f":"IFERROR(INDEX($EG157:$IV157,MATCH(0,COUNTIF($DR157:DY157,$EG157:$IV157),0)),\"\")","v":""},{"$f":"IFERROR(INDEX($EG157:$IV157,MATCH(0,COUNTIF($DR157:DZ157,$EG157:$IV157),0)),\"\")","v":""},{"$f":"IFERROR(INDEX($EG157:$IV157,MATCH(0,COUNTIF($DR157:EA157,$EG157:$IV157),0)),\"\")","v":""},{"$f":"IFERROR(INDEX($EG157:$IV157,MATCH(0,COUNTIF($DR157:EB157,$EG157:$IV157),0)),\"\")","v":""},{"$f":"IFERROR(INDEX($EG157:$IV157,MATCH(0,COUNTIF($DR157:EC157,$EG157:$IV157),0)),\"\")","v":""},null,null,{"$f":"IFERROR(MID($G157,FIND(CHAR(160),SUBSTITUTE($G157,\"{\",CHAR(160),EG$1)),FIND(CHAR(160),SUBSTITUTE($G157,\"}\",CHAR(160),EG$1))-FIND(CHAR(160),SUBSTITUTE($G157,\"{\",CHAR(160),EG$1))+1),\"\")","v":""},{"$f":"IFERROR(MID($G157,FIND(CHAR(160),SUBSTITUTE($G157,\"{\",CHAR(160),EH$1)),FIND(CHAR(160),SUBSTITUTE($G157,\"}\",CHAR(160),EH$1))-FIND(CHAR(160),SUBSTITUTE($G157,\"{\",CHAR(160),EH$1))+1),\"\")","v":""},{"$f":"IFERROR(MID($G157,FIND(CHAR(160),SUBSTITUTE($G157,\"{\",CHAR(160),EI$1)),FIND(CHAR(160),SUBSTITUTE($G157,\"}\",CHAR(160),EI$1))-FIND(CHAR(160),SUBSTITUTE($G157,\"{\",CHAR(160),EI$1))+1),\"\")","v":""},{"$f":"IFERROR(MID($G157,FIND(CHAR(160),SUBSTITUTE($G157,\"{\",CHAR(160),EJ$1)),FIND(CHAR(160),SUBSTITUTE($G157,\"}\",CHAR(160),EJ$1))-FIND(CHAR(160),SUBSTITUTE($G157,\"{\",CHAR(160),EJ$1))+1),\"\")","v":""},{"$f":"IFERROR(MID($G157,FIND(CHAR(160),SUBSTITUTE($G157,\"{\",CHAR(160),EK$1)),FIND(CHAR(160),SUBSTITUTE($G157,\"}\",CHAR(160),EK$1))-FIND(CHAR(160),SUBSTITUTE($G157,\"{\",CHAR(160),EK$1))+1),\"\")","v":""},{"$f":"IFERROR(MID($G157,FIND(CHAR(160),SUBSTITUTE($G157,\"{\",CHAR(160),EL$1)),FIND(CHAR(160),SUBSTITUTE($G157,\"}\",CHAR(160),EL$1))-FIND(CHAR(160),SUBSTITUTE($G157,\"{\",CHAR(160),EL$1))+1),\"\")","v":""},{"$f":"IFERROR(MID($G157,FIND(CHAR(160),SUBSTITUTE($G157,\"{\",CHAR(160),EM$1)),FIND(CHAR(160),SUBSTITUTE($G157,\"}\",CHAR(160),EM$1))-FIND(CHAR(160),SUBSTITUTE($G157,\"{\",CHAR(160),EM$1))+1),\"\")","v":""},{"$f":"IFERROR(MID($G157,FIND(CHAR(160),SUBSTITUTE($G157,\"{\",CHAR(160),EN$1)),FIND(CHAR(160),SUBSTITUTE($G157,\"}\",CHAR(160),EN$1))-FIND(CHAR(160),SUBSTITUTE($G157,\"{\",CHAR(160),EN$1))+1),\"\")","v":""},{"$f":"IFERROR(MID($G157,FIND(CHAR(160),SUBSTITUTE($G157,\"{\",CHAR(160),EO$1)),FIND(CHAR(160),SUBSTITUTE($G157,\"}\",CHAR(160),EO$1))-FIND(CHAR(160),SUBSTITUTE($G157,\"{\",CHAR(160),EO$1))+1),\"\")","v":""},{"$f":"IFERROR(MID($G157,FIND(CHAR(160),SUBSTITUTE($G157,\"{\",CHAR(160),EP$1)),FIND(CHAR(160),SUBSTITUTE($G157,\"}\",CHAR(160),EP$1))-FIND(CHAR(160),SUBSTITUTE($G157,\"{\",CHAR(160),EP$1))+1),\"\")","v":""},{"$f":"IFERROR(MID($J157,FIND(CHAR(160),SUBSTITUTE($J157,\"{\",CHAR(160),EQ$1)),FIND(CHAR(160),SUBSTITUTE($J157,\"}\",CHAR(160),EQ$1))-FIND(CHAR(160),SUBSTITUTE($J157,\"{\",CHAR(160),EQ$1))+1),\"\")","v":""},{"$f":"IFERROR(MID($J157,FIND(CHAR(160),SUBSTITUTE($J157,\"{\",CHAR(160),ER$1)),FIND(CHAR(160),SUBSTITUTE($J157,\"}\",CHAR(160),ER$1))-FIND(CHAR(160),SUBSTITUTE($J157,\"{\",CHAR(160),ER$1))+1),\"\")","v":""},{"$f":"IFERROR(MID($J157,FIND(CHAR(160),SUBSTITUTE($J157,\"{\",CHAR(160),ES$1)),FIND(CHAR(160),SUBSTITUTE($J157,\"}\",CHAR(160),ES$1))-FIND(CHAR(160),SUBSTITUTE($J157,\"{\",CHAR(160),ES$1))+1),\"\")","v":""},{"$f":"IFERROR(MID($J157,FIND(CHAR(160),SUBSTITUTE($J157,\"{\",CHAR(160),ET$1)),FIND(CHAR(160),SUBSTITUTE($J157,\"}\",CHAR(160),ET$1))-FIND(CHAR(160),SUBSTITUTE($J157,\"{\",CHAR(160),ET$1))+1),\"\")","v":""},{"$f":"IFERROR(MID($J157,FIND(CHAR(160),SUBSTITUTE($J157,\"{\",CHAR(160),EU$1)),FIND(CHAR(160),SUBSTITUTE($J157,\"}\",CHAR(160),EU$1))-FIND(CHAR(160),SUBSTITUTE($J157,\"{\",CHAR(160),EU$1))+1),\"\")","v":""},{"$f":"IFERROR(MID($J157,FIND(CHAR(160),SUBSTITUTE($J157,\"{\",CHAR(160),EV$1)),FIND(CHAR(160),SUBSTITUTE($J157,\"}\",CHAR(160),EV$1))-FIND(CHAR(160),SUBSTITUTE($J157,\"{\",CHAR(160),EV$1))+1),\"\")","v":""},{"$f":"IFERROR(MID($J157,FIND(CHAR(160),SUBSTITUTE($J157,\"{\",CHAR(160),EW$1)),FIND(CHAR(160),SUBSTITUTE($J157,\"}\",CHAR(160),EW$1))-FIND(CHAR(160),SUBSTITUTE($J157,\"{\",CHAR(160),EW$1))+1),\"\")","v":""},{"$f":"IFERROR(MID($J157,FIND(CHAR(160),SUBSTITUTE($J157,\"{\",CHAR(160),EX$1)),FIND(CHAR(160),SUBSTITUTE($J157,\"}\",CHAR(160),EX$1))-FIND(CHAR(160),SUBSTITUTE($J157,\"{\",CHAR(160),EX$1))+1),\"\")","v":""},{"$f":"IFERROR(MID($J157,FIND(CHAR(160),SUBSTITUTE($J157,\"{\",CHAR(160),EY$1)),FIND(CHAR(160),SUBSTITUTE($J157,\"}\",CHAR(160),EY$1))-FIND(CHAR(160),SUBSTITUTE($J157,\"{\",CHAR(160),EY$1))+1),\"\")","v":""},{"$f":"IFERROR(MID($J157,FIND(CHAR(160),SUBSTITUTE($J157,\"{\",CHAR(160),EZ$1)),FIND(CHAR(160),SUBSTITUTE($J157,\"}\",CHAR(160),EZ$1))-FIND(CHAR(160),SUBSTITUTE($J157,\"{\",CHAR(160),EZ$1))+1),\"\")","v":""},{"$f":"IFERROR(MID($J157,FIND(CHAR(160),SUBSTITUTE($J157,\"{\",CHAR(160),FA$1)),FIND(CHAR(160),SUBSTITUTE($J157,\"}\",CHAR(160),FA$1))-FIND(CHAR(160),SUBSTITUTE($J157,\"{\",CHAR(160),FA$1))+1),\"\")","v":""},{"$f":"IFERROR(MID($J157,FIND(CHAR(160),SUBSTITUTE($J157,\"{\",CHAR(160),FB$1)),FIND(CHAR(160),SUBSTITUTE($J157,\"}\",CHAR(160),FB$1))-FIND(CHAR(160),SUBSTITUTE($J157,\"{\",CHAR(160),FB$1))+1),\"\")","v":""},{"$f":"IFERROR(MID($O157,FIND(CHAR(160),SUBSTITUTE($O157,\"{\",CHAR(160),FC$1)),FIND(CHAR(160),SUBSTITUTE($O157,\"}\",CHAR(160),FC$1))-FIND(CHAR(160),SUBSTITUTE($O157,\"{\",CHAR(160),FC$1))+1),\"\")","v":"{Temperature}"},{"$f":"IFERROR(MID($O157,FIND(CHAR(160),SUBSTITUTE($O157,\"{\",CHAR(160),FD$1)),FIND(CHAR(160),SUBSTITUTE($O157,\"}\",CHAR(160),FD$1))-FIND(CHAR(160),SUBSTITUTE($O157,\"{\",CHAR(160),FD$1))+1),\"\")","v":""},{"$f":"IFERROR(MID($O157,FIND(CHAR(160),SUBSTITUTE($O157,\"{\",CHAR(160),FE$1)),FIND(CHAR(160),SUBSTITUTE($O157,\"}\",CHAR(160),FE$1))-FIND(CHAR(160),SUBSTITUTE($O157,\"{\",CHAR(160),FE$1))+1),\"\")","v":""},{"$f":"IFERROR(MID($O157,FIND(CHAR(160),SUBSTITUTE($O157,\"{\",CHAR(160),FF$1)),FIND(CHAR(160),SUBSTITUTE($O157,\"}\",CHAR(160),FF$1))-FIND(CHAR(160),SUBSTITUTE($O157,\"{\",CHAR(160),FF$1))+1),\"\")","v":""},{"$f":"IFERROR(MID($O157,FIND(CHAR(160),SUBSTITUTE($O157,\"{\",CHAR(160),FG$1)),FIND(CHAR(160),SUBSTITUTE($O157,\"}\",CHAR(160),FG$1))-FIND(CHAR(160),SUBSTITUTE($O157,\"{\",CHAR(160),FG$1))+1),\"\")","v":""},{"$f":"IFERROR(MID($O157,FIND(CHAR(160),SUBSTITUTE($O157,\"{\",CHAR(160),FH$1)),FIND(CHAR(160),SUBSTITUTE($O157,\"}\",CHAR(160),FH$1))-FIND(CHAR(160),SUBSTITUTE($O157,\"{\",CHAR(160),FH$1))+1),\"\")","v":""},{"$f":"IFERROR(MID($O157,FIND(CHAR(160),SUBSTITUTE($O157,\"{\",CHAR(160),FI$1)),FIND(CHAR(160),SUBSTITUTE($O157,\"}\",CHAR(160),FI$1))-FIND(CHAR(160),SUBSTITUTE($O157,\"{\",CHAR(160),FI$1))+1),\"\")","v":""},{"$f":"IFERROR(MID($O157,FIND(CHAR(160),SUBSTITUTE($O157,\"{\",CHAR(160),FJ$1)),FIND(CHAR(160),SUBSTITUTE($O157,\"}\",CHAR(160),FJ$1))-FIND(CHAR(160),SUBSTITUTE($O157,\"{\",CHAR(160),FJ$1))+1),\"\")","v":""},{"$f":"IFERROR(MID($O157,FIND(CHAR(160),SUBSTITUTE($O157,\"{\",CHAR(160),FK$1)),FIND(CHAR(160),SUBSTITUTE($O157,\"}\",CHAR(160),FK$1))-FIND(CHAR(160),SUBSTITUTE($O157,\"{\",CHAR(160),FK$1))+1),\"\")","v":"{Measure:Quantity}"},{"$f":"IFERROR(MID($O157,FIND(CHAR(160),SUBSTITUTE($O157,\"{\",CHAR(160),FL$1)),FIND(CHAR(160),SUBSTITUTE($O157,\"}\",CHAR(160),FL$1))-FIND(CHAR(160),SUBSTITUTE($O157,\"{\",CHAR(160),FL$1))+1),\"\")","v":"{DC - Evap Fan}"},{"$f":"IFERROR(MID($R157,FIND(CHAR(160),SUBSTITUTE($R157,\"{\",CHAR(160),FM$1)),FIND(CHAR(160),SUBSTITUTE($R157,\"}\",CHAR(160),FM$1))-FIND(CHAR(160),SUBSTITUTE($R157,\"{\",CHAR(160),FM$1))+1),\"\")","v":""},{"$f":"IFERROR(MID($R157,FIND(CHAR(160),SUBSTITUTE($R157,\"{\",CHAR(160),FN$1)),FIND(CHAR(160),SUBSTITUTE($R157,\"}\",CHAR(160),FN$1))-FIND(CHAR(160),SUBSTITUTE($R157,\"{\",CHAR(160),FN$1))+1),\"\")","v":""},{"$f":"IFERROR(MID($R157,FIND(CHAR(160),SUBSTITUTE($R157,\"{\",CHAR(160),FO$1)),FIND(CHAR(160),SUBSTITUTE($R157,\"}\",CHAR(160),FO$1))-FIND(CHAR(160),SUBSTITUTE($R157,\"{\",CHAR(160),FO$1))+1),\"\")","v":""},{"$f":"IFERROR(MID($R157,FIND(CHAR(160),SUBSTITUTE($R157,\"{\",CHAR(160),FP$1)),FIND(CHAR(160),SUBSTITUTE($R157,\"}\",CHAR(160),FP$1))-FIND(CHAR(160),SUBSTITUTE($R157,\"{\",CHAR(160),FP$1))+1),\"\")","v":""},{"$f":"IFERROR(MID($R157,FIND(CHAR(160),SUBSTITUTE($R157,\"{\",CHAR(160),FQ$1)),FIND(CHAR(160),SUBSTITUTE($R157,\"}\",CHAR(160),FQ$1))-FIND(CHAR(160),SUBSTITUTE($R157,\"{\",CHAR(160),FQ$1))+1),\"\")","v":""},{"$f":"IFERROR(MID($R157,FIND(CHAR(160),SUBSTITUTE($R157,\"{\",CHAR(160),FR$1)),FIND(CHAR(160),SUBSTITUTE($R157,\"}\",CHAR(160),FR$1))-FIND(CHAR(160),SUBSTITUTE($R157,\"{\",CHAR(160),FR$1))+1),\"\")","v":""},{"$f":"IFERROR(MID($R157,FIND(CHAR(160),SUBSTITUTE($R157,\"{\",CHAR(160),FS$1)),FIND(CHAR(160),SUBSTITUTE($R157,\"}\",CHAR(160),FS$1))-FIND(CHAR(160),SUBSTITUTE($R157,\"{\",CHAR(160),FS$1))+1),\"\")","v":""},{"$f":"IFERROR(MID($R157,FIND(CHAR(160),SUBSTITUTE($R157,\"{\",CHAR(160),FT$1)),FIND(CHAR(160),SUBSTITUTE($R157,\"}\",CHAR(160),FT$1))-FIND(CHAR(160),SUBSTITUTE($R157,\"{\",CHAR(160),FT$1))+1),\"\")","v":""},{"$f":"IFERROR(MID($R157,FIND(CHAR(160),SUBSTITUTE($R157,\"{\",CHAR(160),FU$1)),FIND(CHAR(160),SUBSTITUTE($R157,\"}\",CHAR(160),FU$1))-FIND(CHAR(160),SUBSTITUTE($R157,\"{\",CHAR(160),FU$1))+1),\"\")","v":"{Measure:Quantity}"},{"$f":"IFERROR(MID($R157,FIND(CHAR(160),SUBSTITUTE($R157,\"{\",CHAR(160),FV$1)),FIND(CHAR(160),SUBSTITUTE($R157,\"}\",CHAR(160),FV$1))-FIND(CHAR(160),SUBSTITUTE($R157,\"{\",CHAR(160),FV$1))+1),\"\")","v":"{Temperature}"},{"$f":"IFERROR(MID($U157,FIND(CHAR(160),SUBSTITUTE($U157,\"{\",CHAR(160),FW$1)),FIND(CHAR(160),SUBSTITUTE($U157,\"}\",CHAR(160),FW$1))-FIND(CHAR(160),SUBSTITUTE($U157,\"{\",CHAR(160),FW$1))+1),\"\")","v":"{Factor:WinterCF}"},{"$f":"IFERROR(MID($U157,FIND(CHAR(160),SUBSTITUTE($U157,\"{\",CHAR(160),FX$1)),FIND(CHAR(160),SUBSTITUTE($U157,\"}\",CHAR(160),FX$1))-FIND(CHAR(160),SUBSTITUTE($U157,\"{\",CHAR(160),FX$1))+1),\"\")","v":""},{"$f":"IFERROR(MID($U157,FIND(CHAR(160),SUBSTITUTE($U157,\"{\",CHAR(160),FY$1)),FIND(CHAR(160),SUBSTITUTE($U157,\"}\",CHAR(160),FY$1))-FIND(CHAR(160),SUBSTITUTE($U157,\"{\",CHAR(160),FY$1))+1),\"\")","v":""},{"$f":"IFERROR(MID($U157,FIND(CHAR(160),SUBSTITUTE($U157,\"{\",CHAR(160),FZ$1)),FIND(CHAR(160),SUBSTITUTE($U157,\"}\",CHAR(160),FZ$1))-FIND(CHAR(160),SUBSTITUTE($U157,\"{\",CHAR(160),FZ$1))+1),\"\")","v":""},{"$f":"IFERROR(MID($U157,FIND(CHAR(160),SUBSTITUTE($U157,\"{\",CHAR(160),GA$1)),FIND(CHAR(160),SUBSTITUTE($U157,\"}\",CHAR(160),GA$1))-FIND(CHAR(160),SUBSTITUTE($U157,\"{\",CHAR(160),GA$1))+1),\"\")","v":""},{"$f":"IFERROR(MID($U157,FIND(CHAR(160),SUBSTITUTE($U157,\"{\",CHAR(160),GB$1)),FIND(CHAR(160),SUBSTITUTE($U157,\"}\",CHAR(160),GB$1))-FIND(CHAR(160),SUBSTITUTE($U157,\"{\",CHAR(160),GB$1))+1),\"\")","v":""},{"$f":"IFERROR(MID($U157,FIND(CHAR(160),SUBSTITUTE($U157,\"{\",CHAR(160),GC$1)),FIND(CHAR(160),SUBSTITUTE($U157,\"}\",CHAR(160),GC$1))-FIND(CHAR(160),SUBSTITUTE($U157,\"{\",CHAR(160),GC$1))+1),\"\")","v":""},{"$f":"IFERROR(MID($U157,FIND(CHAR(160),SUBSTITUTE($U157,\"{\",CHAR(160),GD$1)),FIND(CHAR(160),SUBSTITUTE($U157,\"}\",CHAR(160),GD$1))-FIND(CHAR(160),SUBSTITUTE($U157,\"{\",CHAR(160),GD$1))+1),\"\")","v":""},{"$f":"IFERROR(MID($U157,FIND(CHAR(160),SUBSTITUTE($U157,\"{\",CHAR(160),GE$1)),FIND(CHAR(160),SUBSTITUTE($U157,\"}\",CHAR(160),GE$1))-FIND(CHAR(160),SUBSTITUTE($U157,\"{\",CHAR(160),GE$1))+1),\"\")","v":"{Measure:Quantity}"},{"$f":"IFERROR(MID($U157,FIND(CHAR(160),SUBSTITUTE($U157,\"{\",CHAR(160),GF$1)),FIND(CHAR(160),SUBSTITUTE($U157,\"}\",CHAR(160),GF$1))-FIND(CHAR(160),SUBSTITUTE($U157,\"{\",CHAR(160),GF$1))+1),\"\")","v":"{Temperature}"},{"$f":"IFERROR(MID($V157,FIND(CHAR(160),SUBSTITUTE($V157,\"{\",CHAR(160),GG$1)),FIND(CHAR(160),SUBSTITUTE($V157,\"}\",CHAR(160),GG$1))-FIND(CHAR(160),SUBSTITUTE($V157,\"{\",CHAR(160),GG$1))+1),\"\")","v":"{Factor:SummerCF}"},{"$f":"IFERROR(MID($V157,FIND(CHAR(160),SUBSTITUTE($V157,\"{\",CHAR(160),GH$1)),FIND(CHAR(160),SUBSTITUTE($V157,\"}\",CHAR(160),GH$1))-FIND(CHAR(160),SUBSTITUTE($V157,\"{\",CHAR(160),GH$1))+1),\"\")","v":""},{"$f":"IFERROR(MID($V157,FIND(CHAR(160),SUBSTITUTE($V157,\"{\",CHAR(160),GI$1)),FIND(CHAR(160),SUBSTITUTE($V157,\"}\",CHAR(160),GI$1))-FIND(CHAR(160),SUBSTITUTE($V157,\"{\",CHAR(160),GI$1))+1),\"\")","v":""},{"$f":"IFERROR(MID($V157,FIND(CHAR(160),SUBSTITUTE($V157,\"{\",CHAR(160),GJ$1)),FIND(CHAR(160),SUBSTITUTE($V157,\"}\",CHAR(160),GJ$1))-FIND(CHAR(160),SUBSTITUTE($V157,\"{\",CHAR(160),GJ$1))+1),\"\")","v":""},{"$f":"IFERROR(MID($V157,FIND(CHAR(160),SUBSTITUTE($V157,\"{\",CHAR(160),GK$1)),FIND(CHAR(160),SUBSTITUTE($V157,\"}\",CHAR(160),GK$1))-FIND(CHAR(160),SUBSTITUTE($V157,\"{\",CHAR(160),GK$1))+1),\"\")","v":""},{"$f":"IFERROR(MID($V157,FIND(CHAR(160),SUBSTITUTE($V157,\"{\",CHAR(160),GL$1)),FIND(CHAR(160),SUBSTITUTE($V157,\"}\",CHAR(160),GL$1))-FIND(CHAR(160),SUBSTITUTE($V157,\"{\",CHAR(160),GL$1))+1),\"\")","v":""},{"$f":"IFERROR(MID($V157,FIND(CHAR(160),SUBSTITUTE($V157,\"{\",CHAR(160),GM$1)),FIND(CHAR(160),SUBSTITUTE($V157,\"}\",CHAR(160),GM$1))-FIND(CHAR(160),SUBSTITUTE($V157,\"{\",CHAR(160),GM$1))+1),\"\")","v":""},{"$f":"IFERROR(MID($V157,FIND(CHAR(160),SUBSTITUTE($V157,\"{\",CHAR(160),GN$1)),FIND(CHAR(160),SUBSTITUTE($V157,\"}\",CHAR(160),GN$1))-FIND(CHAR(160),SUBSTITUTE($V157,\"{\",CHAR(160),GN$1))+1),\"\")","v":""},{"$f":"IFERROR(MID($V157,FIND(CHAR(160),SUBSTITUTE($V157,\"{\",CHAR(160),GO$1)),FIND(CHAR(160),SUBSTITUTE($V157,\"}\",CHAR(160),GO$1))-FIND(CHAR(160),SUBSTITUTE($V157,\"{\",CHAR(160),GO$1))+1),\"\")","v":"{Measure:Quantity}"},{"$f":"IFERROR(MID($V157,FIND(CHAR(160),SUBSTITUTE($V157,\"{\",CHAR(160),GP$1)),FIND(CHAR(160),SUBSTITUTE($V157,\"}\",CHAR(160),GP$1))-FIND(CHAR(160),SUBSTITUTE($V157,\"{\",CHAR(160),GP$1))+1),\"\")","v":"{Temperature}"},{"$f":"IFERROR(MID($W157,FIND(CHAR(160),SUBSTITUTE($W157,\"{\",CHAR(160),GQ$1)),FIND(CHAR(160),SUBSTITUTE($W157,\"}\",CHAR(160),GQ$1))-FIND(CHAR(160),SUBSTITUTE($W157,\"{\",CHAR(160),GQ$1))+1),\"\")","v":""},{"$f":"IFERROR(MID($W157,FIND(CHAR(160),SUBSTITUTE($W157,\"{\",CHAR(160),GR$1)),FIND(CHAR(160),SUBSTITUTE($W157,\"}\",CHAR(160),GR$1))-FIND(CHAR(160),SUBSTITUTE($W157,\"{\",CHAR(160),GR$1))+1),\"\")","v":""},{"$f":"IFERROR(MID($W157,FIND(CHAR(160),SUBSTITUTE($W157,\"{\",CHAR(160),GS$1)),FIND(CHAR(160),SUBSTITUTE($W157,\"}\",CHAR(160),GS$1))-FIND(CHAR(160),SUBSTITUTE($W157,\"{\",CHAR(160),GS$1))+1),\"\")","v":""},{"$f":"IFERROR(MID($W157,FIND(CHAR(160),SUBSTITUTE($W157,\"{\",CHAR(160),GT$1)),FIND(CHAR(160),SUBSTITUTE($W157,\"}\",CHAR(160),GT$1))-FIND(CHAR(160),SUBSTITUTE($W157,\"{\",CHAR(160),GT$1))+1),\"\")","v":""},{"$f":"IFERROR(MID($W157,FIND(CHAR(160),SUBSTITUTE($W157,\"{\",CHAR(160),GU$1)),FIND(CHAR(160),SUBSTITUTE($W157,\"}\",CHAR(160),GU$1))-FIND(CHAR(160),SUBSTITUTE($W157,\"{\",CHAR(160),GU$1))+1),\"\")","v":""},{"$f":"IFERROR(MID($W157,FIND(CHAR(160),SUBSTITUTE($W157,\"{\",CHAR(160),GV$1)),FIND(CHAR(160),SUBSTITUTE($W157,\"}\",CHAR(160),GV$1))-FIND(CHAR(160),SUBSTITUTE($W157,\"{\",CHAR(160),GV$1))+1),\"\")","v":""},{"$f":"IFERROR(MID($W157,FIND(CHAR(160),SUBSTITUTE($W157,\"{\",CHAR(160),GW$1)),FIND(CHAR(160),SUBSTITUTE($W157,\"}\",CHAR(160),GW$1))-FIND(CHAR(160),SUBSTITUTE($W157,\"{\",CHAR(160),GW$1))+1),\"\")","v":""},{"$f":"IFERROR(MID($W157,FIND(CHAR(160),SUBSTITUTE($W157,\"{\",CHAR(160),GX$1)),FIND(CHAR(160),SUBSTITUTE($W157,\"}\",CHAR(160),GX$1))-FIND(CHAR(160),SUBSTITUTE($W157,\"{\",CHAR(160),GX$1))+1),\"\")","v":""},{"$f":"IFERROR(MID($W157,FIND(CHAR(160),SUBSTITUTE($W157,\"{\",CHAR(160),GY$1)),FIND(CHAR(160),SUBSTITUTE($W157,\"}\",CHAR(160),GY$1))-FIND(CHAR(160),SUBSTITUTE($W157,\"{\",CHAR(160),GY$1))+1),\"\")","v":""},{"$f":"IFERROR(MID($W157,FIND(CHAR(160),SUBSTITUTE($W157,\"{\",CHAR(160),GZ$1)),FIND(CHAR(160),SUBSTITUTE($W157,\"}\",CHAR(160),GZ$1))-FIND(CHAR(160),SUBSTITUTE($W157,\"{\",CHAR(160),GZ$1))+1),\"\")","v":""},{"$f":"IFERROR(MID($X157,FIND(CHAR(160),SUBSTITUTE($X157,\"{\",CHAR(160),HA$1)),FIND(CHAR(160),SUBSTITUTE($X157,\"}\",CHAR(160),HA$1))-FIND(CHAR(160),SUBSTITUTE($X157,\"{\",CHAR(160),HA$1))+1),\"\")","v":""},{"$f":"IFERROR(MID($X157,FIND(CHAR(160),SUBSTITUTE($X157,\"{\",CHAR(160),HB$1)),FIND(CHAR(160),SUBSTITUTE($X157,\"}\",CHAR(160),HB$1))-FIND(CHAR(160),SUBSTITUTE($X157,\"{\",CHAR(160),HB$1))+1),\"\")","v":""},{"$f":"IFERROR(MID($X157,FIND(CHAR(160),SUBSTITUTE($X157,\"{\",CHAR(160),HC$1)),FIND(CHAR(160),SUBSTITUTE($X157,\"}\",CHAR(160),HC$1))-FIND(CHAR(160),SUBSTITUTE($X157,\"{\",CHAR(160),HC$1))+1),\"\")","v":""},{"$f":"IFERROR(MID($X157,FIND(CHAR(160),SUBSTITUTE($X157,\"{\",CHAR(160),HD$1)),FIND(CHAR(160),SUBSTITUTE($X157,\"}\",CHAR(160),HD$1))-FIND(CHAR(160),SUBSTITUTE($X157,\"{\",CHAR(160),HD$1))+1),\"\")","v":""},{"$f":"IFERROR(MID($X157,FIND(CHAR(160),SUBSTITUTE($X157,\"{\",CHAR(160),HE$1)),FIND(CHAR(160),SUBSTITUTE($X157,\"}\",CHAR(160),HE$1))-FIND(CHAR(160),SUBSTITUTE($X157,\"{\",CHAR(160),HE$1))+1),\"\")","v":""},{"$f":"IFERROR(MID($X157,FIND(CHAR(160),SUBSTITUTE($X157,\"{\",CHAR(160),HF$1)),FIND(CHAR(160),SUBSTITUTE($X157,\"}\",CHAR(160),HF$1))-FIND(CHAR(160),SUBSTITUTE($X157,\"{\",CHAR(160),HF$1))+1),\"\")","v":""},{"$f":"IFERROR(MID($X157,FIND(CHAR(160),SUBSTITUTE($X157,\"{\",CHAR(160),HG$1)),FIND(CHAR(160),SUBSTITUTE($X157,\"}\",CHAR(160),HG$1))-FIND(CHAR(160),SUBSTITUTE($X157,\"{\",CHAR(160),HG$1))+1),\"\")","v":""},{"$f":"IFERROR(MID($X157,FIND(CHAR(160),SUBSTITUTE($X157,\"{\",CHAR(160),HH$1)),FIND(CHAR(160),SUBSTITUTE($X157,\"}\",CHAR(160),HH$1))-FIND(CHAR(160),SUBSTITUTE($X157,\"{\",CHAR(160),HH$1))+1),\"\")","v":""},{"$f":"IFERROR(MID($X157,FIND(CHAR(160),SUBSTITUTE($X157,\"{\",CHAR(160),HI$1)),FIND(CHAR(160),SUBSTITUTE($X157,\"}\",CHAR(160),HI$1))-FIND(CHAR(160),SUBSTITUTE($X157,\"{\",CHAR(160),HI$1))+1),\"\")","v":""},{"$f":"IFERROR(MID($X157,FIND(CHAR(160),SUBSTITUTE($X157,\"{\",CHAR(160),HJ$1)),FIND(CHAR(160),SUBSTITUTE($X157,\"}\",CHAR(160),HJ$1))-FIND(CHAR(160),SUBSTITUTE($X157,\"{\",CHAR(160),HJ$1))+1),\"\")","v":""},{"$f":"IFERROR(MID($Y157,FIND(CHAR(160),SUBSTITUTE($Y157,\"{\",CHAR(160),HK$1)),FIND(CHAR(160),SUBSTITUTE($Y157,\"}\",CHAR(160),HK$1))-FIND(CHAR(160),SUBSTITUTE($Y157,\"{\",CHAR(160),HK$1))+1),\"\")","v":""},{"$f":"IFERROR(MID($Y157,FIND(CHAR(160),SUBSTITUTE($Y157,\"{\",CHAR(160),HL$1)),FIND(CHAR(160),SUBSTITUTE($Y157,\"}\",CHAR(160),HL$1))-FIND(CHAR(160),SUBSTITUTE($Y157,\"{\",CHAR(160),HL$1))+1),\"\")","v":""},{"$f":"IFERROR(MID($Y157,FIND(CHAR(160),SUBSTITUTE($Y157,\"{\",CHAR(160),HM$1)),FIND(CHAR(160),SUBSTITUTE($Y157,\"}\",CHAR(160),HM$1))-FIND(CHAR(160),SUBSTITUTE($Y157,\"{\",CHAR(160),HM$1))+1),\"\")","v":""},{"$f":"IFERROR(MID($Y157,FIND(CHAR(160),SUBSTITUTE($Y157,\"{\",CHAR(160),HN$1)),FIND(CHAR(160),SUBSTITUTE($Y157,\"}\",CHAR(160),HN$1))-FIND(CHAR(160),SUBSTITUTE($Y157,\"{\",CHAR(160),HN$1))+1),\"\")","v":""},{"$f":"IFERROR(MID($Y157,FIND(CHAR(160),SUBSTITUTE($Y157,\"{\",CHAR(160),HO$1)),FIND(CHAR(160),SUBSTITUTE($Y157,\"}\",CHAR(160),HO$1))-FIND(CHAR(160),SUBSTITUTE($Y157,\"{\",CHAR(160),HO$1))+1),\"\")","v":""},{"$f":"IFERROR(MID($Y157,FIND(CHAR(160),SUBSTITUTE($Y157,\"{\",CHAR(160),HP$1)),FIND(CHAR(160),SUBSTITUTE($Y157,\"}\",CHAR(160),HP$1))-FIND(CHAR(160),SUBSTITUTE($Y157,\"{\",CHAR(160),HP$1))+1),\"\")","v":""},{"$f":"IFERROR(MID($Y157,FIND(CHAR(160),SUBSTITUTE($Y157,\"{\",CHAR(160),HQ$1)),FIND(CHAR(160),SUBSTITUTE($Y157,\"}\",CHAR(160),HQ$1))-FIND(CHAR(160),SUBSTITUTE($Y157,\"{\",CHAR(160),HQ$1))+1),\"\")","v":""},{"$f":"IFERROR(MID($Y157,FIND(CHAR(160),SUBSTITUTE($Y157,\"{\",CHAR(160),HR$1)),FIND(CHAR(160),SUBSTITUTE($Y157,\"}\",CHAR(160),HR$1))-FIND(CHAR(160),SUBSTITUTE($Y157,\"{\",CHAR(160),HR$1))+1),\"\")","v":""},{"$f":"IFERROR(MID($Y157,FIND(CHAR(160),SUBSTITUTE($Y157,\"{\",CHAR(160),HS$1)),FIND(CHAR(160),SUBSTITUTE($Y157,\"}\",CHAR(160),HS$1))-FIND(CHAR(160),SUBSTITUTE($Y157,\"{\",CHAR(160),HS$1))+1),\"\")","v":""},{"$f":"IFERROR(MID($Y157,FIND(CHAR(160),SUBSTITUTE($Y157,\"{\",CHAR(160),HT$1)),FIND(CHAR(160),SUBSTITUTE($Y157,\"}\",CHAR(160),HT$1))-FIND(CHAR(160),SUBSTITUTE($Y157,\"{\",CHAR(160),HT$1))+1),\"\")","v":""},{"$f":"IFERROR(MID($Z157,FIND(CHAR(160),SUBSTITUTE($Z157,\"{\",CHAR(160),HU$1)),FIND(CHAR(160),SUBSTITUTE($Z157,\"}\",CHAR(160),HU$1))-FIND(CHAR(160),SUBSTITUTE($Z157,\"{\",CHAR(160),HU$1))+1),\"\")","v":""},{"$f":"IFERROR(MID($Z157,FIND(CHAR(160),SUBSTITUTE($Z157,\"{\",CHAR(160),HV$1)),FIND(CHAR(160),SUBSTITUTE($Z157,\"}\",CHAR(160),HV$1))-FIND(CHAR(160),SUBSTITUTE($Z157,\"{\",CHAR(160),HV$1))+1),\"\")","v":""},{"$f":"IFERROR(MID($Z157,FIND(CHAR(160),SUBSTITUTE($Z157,\"{\",CHAR(160),HW$1)),FIND(CHAR(160),SUBSTITUTE($Z157,\"}\",CHAR(160),HW$1))-FIND(CHAR(160),SUBSTITUTE($Z157,\"{\",CHAR(160),HW$1))+1),\"\")","v":""},{"$f":"IFERROR(MID($Z157,FIND(CHAR(160),SUBSTITUTE($Z157,\"{\",CHAR(160),HX$1)),FIND(CHAR(160),SUBSTITUTE($Z157,\"}\",CHAR(160),HX$1))-FIND(CHAR(160),SUBSTITUTE($Z157,\"{\",CHAR(160),HX$1))+1),\"\")","v":""},{"$f":"IFERROR(MID($Z157,FIND(CHAR(160),SUBSTITUTE($Z157,\"{\",CHAR(160),HY$1)),FIND(CHAR(160),SUBSTITUTE($Z157,\"}\",CHAR(160),HY$1))-FIND(CHAR(160),SUBSTITUTE($Z157,\"{\",CHAR(160),HY$1))+1),\"\")","v":""},{"$f":"IFERROR(MID($Z157,FIND(CHAR(160),SUBSTITUTE($Z157,\"{\",CHAR(160),HZ$1)),FIND(CHAR(160),SUBSTITUTE($Z157,\"}\",CHAR(160),HZ$1))-FIND(CHAR(160),SUBSTITUTE($Z157,\"{\",CHAR(160),HZ$1))+1),\"\")","v":""},{"$f":"IFERROR(MID($Z157,FIND(CHAR(160),SUBSTITUTE($Z157,\"{\",CHAR(160),IA$1)),FIND(CHAR(160),SUBSTITUTE($Z157,\"}\",CHAR(160),IA$1))-FIND(CHAR(160),SUBSTITUTE($Z157,\"{\",CHAR(160),IA$1))+1),\"\")","v":""},{"$f":"IFERROR(MID($Z157,FIND(CHAR(160),SUBSTITUTE($Z157,\"{\",CHAR(160),IB$1)),FIND(CHAR(160),SUBSTITUTE($Z157,\"}\",CHAR(160),IB$1))-FIND(CHAR(160),SUBSTITUTE($Z157,\"{\",CHAR(160),IB$1))+1),\"\")","v":""},{"$f":"IFERROR(MID($Z157,FIND(CHAR(160),SUBSTITUTE($Z157,\"{\",CHAR(160),IC$1)),FIND(CHAR(160),SUBSTITUTE($Z157,\"}\",CHAR(160),IC$1))-FIND(CHAR(160),SUBSTITUTE($Z157,\"{\",CHAR(160),IC$1))+1),\"\")","v":""},{"$f":"IFERROR(MID($Z157,FIND(CHAR(160),SUBSTITUTE($Z157,\"{\",CHAR(160),ID$1)),FIND(CHAR(160),SUBSTITUTE($Z157,\"}\",CHAR(160),ID$1))-FIND(CHAR(160),SUBSTITUTE($Z157,\"{\",CHAR(160),ID$1))+1),\"\")","v":""},{"$f":"IFERROR(MID($AA157,FIND(CHAR(160),SUBSTITUTE($AA157,\"{\",CHAR(160),IE$1)),FIND(CHAR(160),SUBSTITUTE($AA157,\"}\",CHAR(160),IE$1))-FIND(CHAR(160),SUBSTITUTE($AA157,\"{\",CHAR(160),IE$1))+1),\"\")","v":""},{"$f":"IFERROR(MID($AA157,FIND(CHAR(160),SUBSTITUTE($AA157,\"{\",CHAR(160),IF$1)),FIND(CHAR(160),SUBSTITUTE($AA157,\"}\",CHAR(160),IF$1))-FIND(CHAR(160),SUBSTITUTE($AA157,\"{\",CHAR(160),IF$1))+1),\"\")","v":""},{"$f":"IFERROR(MID($AA157,FIND(CHAR(160),SUBSTITUTE($AA157,\"{\",CHAR(160),IG$1)),FIND(CHAR(160),SUBSTITUTE($AA157,\"}\",CHAR(160),IG$1))-FIND(CHAR(160),SUBSTITUTE($AA157,\"{\",CHAR(160),IG$1))+1),\"\")","v":""},{"$f":"IFERROR(MID($AA157,FIND(CHAR(160),SUBSTITUTE($AA157,\"{\",CHAR(160),IH$1)),FIND(CHAR(160),SUBSTITUTE($AA157,\"}\",CHAR(160),IH$1))-FIND(CHAR(160),SUBSTITUTE($AA157,\"{\",CHAR(160),IH$1))+1),\"\")","v":""},{"$f":"IFERROR(MID($AA157,FIND(CHAR(160),SUBSTITUTE($AA157,\"{\",CHAR(160),II$1)),FIND(CHAR(160),SUBSTITUTE($AA157,\"}\",CHAR(160),II$1))-FIND(CHAR(160),SUBSTITUTE($AA157,\"{\",CHAR(160),II$1))+1),\"\")","v":""},{"$f":"IFERROR(MID($AA157,FIND(CHAR(160),SUBSTITUTE($AA157,\"{\",CHAR(160),IJ$1)),FIND(CHAR(160),SUBSTITUTE($AA157,\"}\",CHAR(160),IJ$1))-FIND(CHAR(160),SUBSTITUTE($AA157,\"{\",CHAR(160),IJ$1))+1),\"\")","v":""},{"$f":"IFERROR(MID($AA157,FIND(CHAR(160),SUBSTITUTE($AA157,\"{\",CHAR(160),IK$1)),FIND(CHAR(160),SUBSTITUTE($AA157,\"}\",CHAR(160),IK$1))-FIND(CHAR(160),SUBSTITUTE($AA157,\"{\",CHAR(160),IK$1))+1),\"\")","v":""},{"$f":"IFERROR(MID($AA157,FIND(CHAR(160),SUBSTITUTE($AA157,\"{\",CHAR(160),IL$1)),FIND(CHAR(160),SUBSTITUTE($AA157,\"}\",CHAR(160),IL$1))-FIND(CHAR(160),SUBSTITUTE($AA157,\"{\",CHAR(160),IL$1))+1),\"\")","v":""},{"$f":"IFERROR(MID($AA157,FIND(CHAR(160),SUBSTITUTE($AA157,\"{\",CHAR(160),IM$1)),FIND(CHAR(160),SUBSTITUTE($AA157,\"}\",CHAR(160),IM$1))-FIND(CHAR(160),SUBSTITUTE($AA157,\"{\",CHAR(160),IM$1))+1),\"\")","v":""},{"$f":"IFERROR(MID($AA157,FIND(CHAR(160),SUBSTITUTE($AA157,\"{\",CHAR(160),IN$1)),FIND(CHAR(160),SUBSTITUTE($AA157,\"}\",CHAR(160),IN$1))-FIND(CHAR(160),SUBSTITUTE($AA157,\"{\",CHAR(160),IN$1))+1),\"\")","v":""},{"$f":"IFERROR(MID($AB157,FIND(CHAR(160),SUBSTITUTE($AB157,\"{\",CHAR(160),IO$1)),FIND(CHAR(160),SUBSTITUTE($AB157,\"}\",CHAR(160),IO$1))-FIND(CHAR(160),SUBSTITUTE($AB157,\"{\",CHAR(160),IO$1))+1),\"\")","v":""},{"$f":"IFERROR(MID($AB157,FIND(CHAR(160),SUBSTITUTE($AB157,\"{\",CHAR(160),IP$1)),FIND(CHAR(160),SUBSTITUTE($AB157,\"}\",CHAR(160),IP$1))-FIND(CHAR(160),SUBSTITUTE($AB157,\"{\",CHAR(160),IP$1))+1),\"\")","v":""},{"$f":"IFERROR(MID($AB157,FIND(CHAR(160),SUBSTITUTE($AB157,\"{\",CHAR(160),IQ$1)),FIND(CHAR(160),SUBSTITUTE($AB157,\"}\",CHAR(160),IQ$1))-FIND(CHAR(160),SUBSTITUTE($AB157,\"{\",CHAR(160),IQ$1))+1),\"\")","v":""},{"$f":"IFERROR(MID($AB157,FIND(CHAR(160),SUBSTITUTE($AB157,\"{\",CHAR(160),IR$1)),FIND(CHAR(160),SUBSTITUTE($AB157,\"}\",CHAR(160),IR$1))-FIND(CHAR(160),SUBSTITUTE($AB157,\"{\",CHAR(160),IR$1))+1),\"\")","v":""},{"$f":"IFERROR(MID($AB157,FIND(CHAR(160),SUBSTITUTE($AB157,\"{\",CHAR(160),IS$1)),FIND(CHAR(160),SUBSTITUTE($AB157,\"}\",CHAR(160),IS$1))-FIND(CHAR(160),SUBSTITUTE($AB157,\"{\",CHAR(160),IS$1))+1),\"\")","v":""},{"$f":"IFERROR(MID($AB157,FIND(CHAR(160),SUBSTITUTE($AB157,\"{\",CHAR(160),IT$1)),FIND(CHAR(160),SUBSTITUTE($AB157,\"}\",CHAR(160),IT$1))-FIND(CHAR(160),SUBSTITUTE($AB157,\"{\",CHAR(160),IT$1))+1),\"\")","v":""},{"$f":"IFERROR(MID($AB157,FIND(CHAR(160),SUBSTITUTE($AB157,\"{\",CHAR(160),IU$1)),FIND(CHAR(160),SUBSTITUTE($AB157,\"}\",CHAR(160),IU$1))-FIND(CHAR(160),SUBSTITUTE($AB157,\"{\",CHAR(160),IU$1))+1),\"\")","v":""},{"$f":"IFERROR(MID($AB157,FIND(CHAR(160),SUBSTITUTE($AB157,\"{\",CHAR(160),IV$1)),FIND(CHAR(160),SUBSTITUTE($AB157,\"}\",CHAR(160),IV$1))-FIND(CHAR(160),SUBSTITUTE($AB157,\"{\",CHAR(160),IV$1))+1),\"\")","v":""},{"$f":"IFERROR(MID($AB157,FIND(CHAR(160),SUBSTITUTE($AB157,\"{\",CHAR(160),IW$1)),FIND(CHAR(160),SUBSTITUTE($AB157,\"}\",CHAR(160),IW$1))-FIND(CHAR(160),SUBSTITUTE($AB157,\"{\",CHAR(160),IW$1))+1),\"\")","v":""},{"$f":"IFERROR(MID($AB157,FIND(CHAR(160),SUBSTITUTE($AB157,\"{\",CHAR(160),IX$1)),FIND(CHAR(160),SUBSTITUTE($AB157,\"}\",CHAR(160),IX$1))-FIND(CHAR(160),SUBSTITUTE($AB157,\"{\",CHAR(160),IX$1))+1),\"\")","v":""},null,{"$f":"10-COUNTIF(DU157:ED157,\"\")","v":3}]
["Distributor Domestic Hot Water - Electric","Heat Pump Water Heater","HPWHD","2021-07-01","2022-06-30","Per Measure",1040,0,"Calculated","if({Retail Price}<({Rebate Level}+{Bonus Amount}),{Retail Price}+{Stipend/Paperwork Fee},{Rebate Level}+{Bonus Amount}+{Stipend/Paperwork Fee})*{Measure:Quantity}",0,"2020-10-20","2022-06-30","Calculated","if({Previous Mark Down (y/n)}=1,0,{Measure:Quantity} * 738)",null,null,null,null,null,"if({Previous Mark Down (y/n)}=1,0,{Measure:Quantity} * .129)","if({Previous Mark Down (y/n)}=1,0,{Measure:Quantity} * .080)","if({Previous Mark Down (y/n)}=1,0,{Measure:Quantity} * .080)","if({Previous Mark Down (y/n)}=1,0,{Measure:Quantity} * 0.26 * 10)","if({Previous Mark Down (y/n)}=1,0,{Measure:Quantity} * 0.9)","if({Previous Mark Down (y/n)}=1,0,{Measure:Quantity} * 4.34)","if({Previous Mark Down (y/n)}=1,0,{Measure:Quantity} *0.13)",null,"2020-10-20","2022-06-30",13,1,1,0.35799999999999998,0.308,0.17899999999999999,0.155,1,1,1,0.23,0,null,{"$f":"DU158","v":"{Retail Price}"},1,{"$f":"DV158","v":"{Rebate Level}"},750,{"$f":"DW158","v":"{Bonus Amount}"},100,{"$f":"DX158","v":"{Stipend/Paperwork Fee}"},50,{"$f":"DY158","v":"{Measure:Quantity}"},1,{"$f":"DZ158","v":"{Previous Mark Down (y/n)}"},0,{"$f":"EA158","v":""},null,{"$f":"EB158","v":""},null,{"$f":"EC158","v":""},null,{"$f":"ED158","v":""},null,{"$f":"IF(BC158=1,0,BA158 * 738)","v":738},0,0,0,0,0,{"$f":"IF(BC158=1,0,BA158 * 0.129)","v":0.129},{"$f":"IF(BC158=1,0,BA158 * 0.08)","v":0.08},{"$f":"IF(BC158=1,0,BA158 * 0.08)","v":0.08},{"$f":"IF(BC158=1,0,BA158 * 0.26 * 10)","v":2.6},{"$f":"IF(BC158=1,0,BA158 * 0.9)","v":0.9},{"$f":"IF(BC158=1,0,BA158 * 4.34)","v":4.34},{"$f":"IF(BC158=1,0,BA158 *0.13)","v":0.13},0,null,"Res","Default DR",{"$f":"Benefits(BL158,BR158,BS158,BT158,BU158,BV158,BW158,BX158,BY158,BZ158,AE158,AH158,AI158,AJ158,AK158,AL158,AM158,AN158,AO158,AP158,CA158,CB158)","v":887.14134793483663},565.98695473927182,1.4346359518380996,339.48551671340664,1898.2052559525837,1365.8833580537496,30.092903584468807,0,0,{"$f":"SUMPRODUCT(CC158:CK158,--(CC158:CK158>0))","v":5088.2299729301558},{"$f":"-SUMPRODUCT(CC158:CK158,--(CC158:CK158<0))","v":0},null,{"$f":"1040","v":1040},null,null,{"$f":"CM158+CO158","v":1040},{"$f":"IF(NetOrGross=\"Net\",(1-AO158+AP158),1)","v":1},{"$f":"(SUMPRODUCT(CC158:CJ158,--(CC158:CJ158>0))+CN158)*CS158/((-SUMPRODUCT(CC158:CJ158,--(CC158:CJ158<0))+MAX(CO158,CV158)+CP158+CQ158)*CS158+IF(FRIncentives=\"Yes\",CV158*(1-CS158),0))","v":4.8925288201251496},1,{"$f":"IF(AS158<(AU158+AW158),AS158+AY158,AU158+AW158+AY158)*BA158","v":51},null,"Electric","y",null,{"$f":"IF(F158=\"Manual Entry\",\"Manual\",IF(G158=\"\",0,\"X=\"&SUBSTITUTE(SUBSTITUTE(SUBSTITUTE(SUBSTITUTE(SUBSTITUTE(SUBSTITUTE(SUBSTITUTE(SUBSTITUTE(SUBSTITUTE(SUBSTITUTE(SUBSTITUTE(SUBSTITUTE(G158,$ED158,$ED$2&ROW($ED158)),$EC158,$EC$2&ROW($EC158)),$EB158,$EB$2&ROW($EB158)),$EA158,$EA$2&ROW($EA158)),$DZ158,$DZ$2&ROW($DZ158)),$DY158,$DY$2&ROW($DY158)),$DX158,$DX$2&ROW($DX158)),$DW158,$DW$2&ROW($DW158)),$DV158,$DV$2&ROW($DV158)),$DU158,$DU$2&ROW($DU158)),$DT158,$DT$2&ROW($DT158)),$DS158,$DS$2&ROW($DS158))))","v":"X=1040"},{"$f":"IF(I158=\"Manual Entry\",\"Manual\",IF(J158=\"\",0,\"X=\"&SUBSTITUTE(SUBSTITUTE(SUBSTITUTE(SUBSTITUTE(SUBSTITUTE(SUBSTITUTE(SUBSTITUTE(SUBSTITUTE(SUBSTITUTE(SUBSTITUTE(SUBSTITUTE(SUBSTITUTE(J158,$ED158,$ED$2&ROW($ED158)),$EC158,$EC$2&ROW($EC158)),$EB158,$EB$2&ROW($EB158)),$EA158,$EA$2&ROW($EA158)),$DZ158,$DZ$2&ROW($DZ158)),$DY158,$DY$2&ROW($DY158)),$DX158,$DX$2&ROW($DX158)),$DW158,$DW$2&ROW($DW158)),$DV158,$DV$2&ROW($DV158)),$DU158,$DU$2&ROW($DU158)),$DT158,$DT$2&ROW($DT158)),$DS158,$DS$2&ROW($DS158))))","v":"X=if(AS158<(AU158+AW158),AS158+AY158,AU158+AW158+AY158)*BA158"},{"$f":"IF(O158=\"\",0,\"X=\"&SUBSTITUTE(SUBSTITUTE(SUBSTITUTE(SUBSTITUTE(SUBSTITUTE(SUBSTITUTE(SUBSTITUTE(SUBSTITUTE(SUBSTITUTE(SUBSTITUTE(SUBSTITUTE(SUBSTITUTE(O158,$ED158,$ED$2&ROW($ED158)),$EC158,$EC$2&ROW($EC158)),$EB158,$EB$2&ROW($EB158)),$EA158,$EA$2&ROW($EA158)),$DZ158,$DZ$2&ROW($DZ158)),$DY158,$DY$2&ROW($DY158)),$DX158,$DX$2&ROW($DX158)),$DW158,$DW$2&ROW($DW158)),$DV158,$DV$2&ROW($DV158)),$DU158,$DU$2&ROW($DU158)),$DT158,$DT$2&ROW($DT158)),$DS158,$DS$2&ROW($DS158)))","v":"X=if(BC158=1,0,BA158 * 738)"},{"$f":"IF(P158=\"\",0,\"X=\"&SUBSTITUTE(SUBSTITUTE(SUBSTITUTE(SUBSTITUTE(SUBSTITUTE(SUBSTITUTE(SUBSTITUTE(SUBSTITUTE(SUBSTITUTE(SUBSTITUTE(SUBSTITUTE(SUBSTITUTE(P158,$ED158,$ED$2&ROW($ED158)),$EC158,$EC$2&ROW($EC158)),$EB158,$EB$2&ROW($EB158)),$EA158,$EA$2&ROW($EA158)),$DZ158,$DZ$2&ROW($DZ158)),$DY158,$DY$2&ROW($DY158)),$DX158,$DX$2&ROW($DX158)),$DW158,$DW$2&ROW($DW158)),$DV158,$DV$2&ROW($DV158)),$DU158,$DU$2&ROW($DU158)),$DT158,$DT$2&ROW($DT158)),$DS158,$DS$2&ROW($DS158)))","v":0},{"$f":"IF(Q158=\"\",0,\"X=\"&SUBSTITUTE(SUBSTITUTE(SUBSTITUTE(SUBSTITUTE(SUBSTITUTE(SUBSTITUTE(SUBSTITUTE(SUBSTITUTE(SUBSTITUTE(SUBSTITUTE(SUBSTITUTE(SUBSTITUTE(Q158,$ED158,$ED$2&ROW($ED158)),$EC158,$EC$2&ROW($EC158)),$EB158,$EB$2&ROW($EB158)),$EA158,$EA$2&ROW($EA158)),$DZ158,$DZ$2&ROW($DZ158)),$DY158,$DY$2&ROW($DY158)),$DX158,$DX$2&ROW($DX158)),$DW158,$DW$2&ROW($DW158)),$DV158,$DV$2&ROW($DV158)),$DU158,$DU$2&ROW($DU158)),$DT158,$DT$2&ROW($DT158)),$DS158,$DS$2&ROW($DS158)))","v":0},{"$f":"IF(R158=\"\",0,\"X=\"&SUBSTITUTE(SUBSTITUTE(SUBSTITUTE(SUBSTITUTE(SUBSTITUTE(SUBSTITUTE(SUBSTITUTE(SUBSTITUTE(SUBSTITUTE(SUBSTITUTE(SUBSTITUTE(SUBSTITUTE(R158,$ED158,$ED$2&ROW($ED158)),$EC158,$EC$2&ROW($EC158)),$EB158,$EB$2&ROW($EB158)),$EA158,$EA$2&ROW($EA158)),$DZ158,$DZ$2&ROW($DZ158)),$DY158,$DY$2&ROW($DY158)),$DX158,$DX$2&ROW($DX158)),$DW158,$DW$2&ROW($DW158)),$DV158,$DV$2&ROW($DV158)),$DU158,$DU$2&ROW($DU158)),$DT158,$DT$2&ROW($DT158)),$DS158,$DS$2&ROW($DS158)))","v":0},{"$f":"IF(S158=\"\",0,\"X=\"&SUBSTITUTE(SUBSTITUTE(SUBSTITUTE(SUBSTITUTE(SUBSTITUTE(SUBSTITUTE(SUBSTITUTE(SUBSTITUTE(SUBSTITUTE(SUBSTITUTE(SUBSTITUTE(SUBSTITUTE(S158,$ED158,$ED$2&ROW($ED158)),$EC158,$EC$2&ROW($EC158)),$EB158,$EB$2&ROW($EB158)),$EA158,$EA$2&ROW($EA158)),$DZ158,$DZ$2&ROW($DZ158)),$DY158,$DY$2&ROW($DY158)),$DX158,$DX$2&ROW($DX158)),$DW158,$DW$2&ROW($DW158)),$DV158,$DV$2&ROW($DV158)),$DU158,$DU$2&ROW($DU158)),$DT158,$DT$2&ROW($DT158)),$DS158,$DS$2&ROW($DS158)))","v":0},{"$f":"IF(T158=\"\",0,\"X=\"&SUBSTITUTE(SUBSTITUTE(SUBSTITUTE(SUBSTITUTE(SUBSTITUTE(SUBSTITUTE(SUBSTITUTE(SUBSTITUTE(SUBSTITUTE(SUBSTITUTE(SUBSTITUTE(SUBSTITUTE(T158,$ED158,$ED$2&ROW($ED158)),$EC158,$EC$2&ROW($EC158)),$EB158,$EB$2&ROW($EB158)),$EA158,$EA$2&ROW($EA158)),$DZ158,$DZ$2&ROW($DZ158)),$DY158,$DY$2&ROW($DY158)),$DX158,$DX$2&ROW($DX158)),$DW158,$DW$2&ROW($DW158)),$DV158,$DV$2&ROW($DV158)),$DU158,$DU$2&ROW($DU158)),$DT158,$DT$2&ROW($DT158)),$DS158,$DS$2&ROW($DS158)))","v":0},{"$f":"IF(U158=\"\",0,\"X=\"&SUBSTITUTE(SUBSTITUTE(SUBSTITUTE(SUBSTITUTE(SUBSTITUTE(SUBSTITUTE(SUBSTITUTE(SUBSTITUTE(SUBSTITUTE(SUBSTITUTE(SUBSTITUTE(SUBSTITUTE(U158,$ED158,$ED$2&ROW($ED158)),$EC158,$EC$2&ROW($EC158)),$EB158,$EB$2&ROW($EB158)),$EA158,$EA$2&ROW($EA158)),$DZ158,$DZ$2&ROW($DZ158)),$DY158,$DY$2&ROW($DY158)),$DX158,$DX$2&ROW($DX158)),$DW158,$DW$2&ROW($DW158)),$DV158,$DV$2&ROW($DV158)),$DU158,$DU$2&ROW($DU158)),$DT158,$DT$2&ROW($DT158)),$DS158,$DS$2&ROW($DS158)))","v":"X=if(BC158=1,0,BA158 * .129)"},{"$f":"IF(V158=\"\",0,\"X=\"&SUBSTITUTE(SUBSTITUTE(SUBSTITUTE(SUBSTITUTE(SUBSTITUTE(SUBSTITUTE(SUBSTITUTE(SUBSTITUTE(SUBSTITUTE(SUBSTITUTE(SUBSTITUTE(SUBSTITUTE(V158,$ED158,$ED$2&ROW($ED158)),$EC158,$EC$2&ROW($EC158)),$EB158,$EB$2&ROW($EB158)),$EA158,$EA$2&ROW($EA158)),$DZ158,$DZ$2&ROW($DZ158)),$DY158,$DY$2&ROW($DY158)),$DX158,$DX$2&ROW($DX158)),$DW158,$DW$2&ROW($DW158)),$DV158,$DV$2&ROW($DV158)),$DU158,$DU$2&ROW($DU158)),$DT158,$DT$2&ROW($DT158)),$DS158,$DS$2&ROW($DS158)))","v":"X=if(BC158=1,0,BA158 * .080)"},{"$f":"IF(W158=\"\",0,\"X=\"&SUBSTITUTE(SUBSTITUTE(SUBSTITUTE(SUBSTITUTE(SUBSTITUTE(SUBSTITUTE(SUBSTITUTE(SUBSTITUTE(SUBSTITUTE(SUBSTITUTE(SUBSTITUTE(SUBSTITUTE(W158,$ED158,$ED$2&ROW($ED158)),$EC158,$EC$2&ROW($EC158)),$EB158,$EB$2&ROW($EB158)),$EA158,$EA$2&ROW($EA158)),$DZ158,$DZ$2&ROW($DZ158)),$DY158,$DY$2&ROW($DY158)),$DX158,$DX$2&ROW($DX158)),$DW158,$DW$2&ROW($DW158)),$DV158,$DV$2&ROW($DV158)),$DU158,$DU$2&ROW($DU158)),$DT158,$DT$2&ROW($DT158)),$DS158,$DS$2&ROW($DS158)))","v":"X=if(BC158=1,0,BA158 * .080)"},{"$f":"IF(X158=\"\",0,\"X=\"&SUBSTITUTE(SUBSTITUTE(SUBSTITUTE(SUBSTITUTE(SUBSTITUTE(SUBSTITUTE(SUBSTITUTE(SUBSTITUTE(SUBSTITUTE(SUBSTITUTE(SUBSTITUTE(SUBSTITUTE(X158,$ED158,$ED$2&ROW($ED158)),$EC158,$EC$2&ROW($EC158)),$EB158,$EB$2&ROW($EB158)),$EA158,$EA$2&ROW($EA158)),$DZ158,$DZ$2&ROW($DZ158)),$DY158,$DY$2&ROW($DY158)),$DX158,$DX$2&ROW($DX158)),$DW158,$DW$2&ROW($DW158)),$DV158,$DV$2&ROW($DV158)),$DU158,$DU$2&ROW($DU158)),$DT158,$DT$2&ROW($DT158)),$DS158,$DS$2&ROW($DS158)))","v":"X=if(BC158=1,0,BA158 * 0.26 * 10)"},{"$f":"IF(Y158=\"\",0,\"X=\"&SUBSTITUTE(SUBSTITUTE(SUBSTITUTE(SUBSTITUTE(SUBSTITUTE(SUBSTITUTE(SUBSTITUTE(SUBSTITUTE(SUBSTITUTE(SUBSTITUTE(SUBSTITUTE(SUBSTITUTE(Y158,$ED158,$ED$2&ROW($ED158)),$EC158,$EC$2&ROW($EC158)),$EB158,$EB$2&ROW($EB158)),$EA158,$EA$2&ROW($EA158)),$DZ158,$DZ$2&ROW($DZ158)),$DY158,$DY$2&ROW($DY158)),$DX158,$DX$2&ROW($DX158)),$DW158,$DW$2&ROW($DW158)),$DV158,$DV$2&ROW($DV158)),$DU158,$DU$2&ROW($DU158)),$DT158,$DT$2&ROW($DT158)),$DS158,$DS$2&ROW($DS158)))","v":"X=if(BC158=1,0,BA158 * 0.9)"},{"$f":"IF(Z158=\"\",0,\"X=\"&SUBSTITUTE(SUBSTITUTE(SUBSTITUTE(SUBSTITUTE(SUBSTITUTE(SUBSTITUTE(SUBSTITUTE(SUBSTITUTE(SUBSTITUTE(SUBSTITUTE(SUBSTITUTE(SUBSTITUTE(Z158,$ED158,$ED$2&ROW($ED158)),$EC158,$EC$2&ROW($EC158)),$EB158,$EB$2&ROW($EB158)),$EA158,$EA$2&ROW($EA158)),$DZ158,$DZ$2&ROW($DZ158)),$DY158,$DY$2&ROW($DY158)),$DX158,$DX$2&ROW($DX158)),$DW158,$DW$2&ROW($DW158)),$DV158,$DV$2&ROW($DV158)),$DU158,$DU$2&ROW($DU158)),$DT158,$DT$2&ROW($DT158)),$DS158,$DS$2&ROW($DS158)))","v":"X=if(BC158=1,0,BA158 * 4.34)"},{"$f":"IF(AA158=\"\",0,\"X=\"&SUBSTITUTE(SUBSTITUTE(SUBSTITUTE(SUBSTITUTE(SUBSTITUTE(SUBSTITUTE(SUBSTITUTE(SUBSTITUTE(SUBSTITUTE(SUBSTITUTE(SUBSTITUTE(SUBSTITUTE(AA158,$ED158,$ED$2&ROW($ED158)),$EC158,$EC$2&ROW($EC158)),$EB158,$EB$2&ROW($EB158)),$EA158,$EA$2&ROW($EA158)),$DZ158,$DZ$2&ROW($DZ158)),$DY158,$DY$2&ROW($DY158)),$DX158,$DX$2&ROW($DX158)),$DW158,$DW$2&ROW($DW158)),$DV158,$DV$2&ROW($DV158)),$DU158,$DU$2&ROW($DU158)),$DT158,$DT$2&ROW($DT158)),$DS158,$DS$2&ROW($DS158)))","v":"X=if(BC158=1,0,BA158 *0.13)"},{"$f":"IF(AB158=\"\",0,\"X=\"&SUBSTITUTE(SUBSTITUTE(SUBSTITUTE(SUBSTITUTE(SUBSTITUTE(SUBSTITUTE(SUBSTITUTE(SUBSTITUTE(SUBSTITUTE(SUBSTITUTE(SUBSTITUTE(SUBSTITUTE(AB158,$ED158,$ED$2&ROW($ED158)),$EC158,$EC$2&ROW($EC158)),$EB158,$EB$2&ROW($EB158)),$EA158,$EA$2&ROW($EA158)),$DZ158,$DZ$2&ROW($DZ158)),$DY158,$DY$2&ROW($DY158)),$DX158,$DX$2&ROW($DX158)),$DW158,$DW$2&ROW($DW158)),$DV158,$DV$2&ROW($DV158)),$DU158,$DU$2&ROW($DU158)),$DT158,$DT$2&ROW($DT158)),$DS158,$DS$2&ROW($DS158)))","v":0},null,null,"{Factor:WinterCF}","{Factor:SummerCF}",{"$f":"IFERROR(INDEX($EG158:$IV158,MATCH(0,COUNTIF($DR158:DT158,$EG158:$IV158),0)),\"\")","v":"{Retail Price}"},{"$f":"IFERROR(INDEX($EG158:$IV158,MATCH(0,COUNTIF($DR158:DU158,$EG158:$IV158),0)),\"\")","v":"{Rebate Level}"},{"$f":"IFERROR(INDEX($EG158:$IV158,MATCH(0,COUNTIF($DR158:DV158,$EG158:$IV158),0)),\"\")","v":"{Bonus Amount}"},{"$f":"IFERROR(INDEX($EG158:$IV158,MATCH(0,COUNTIF($DR158:DW158,$EG158:$IV158),0)),\"\")","v":"{Stipend/Paperwork Fee}"},{"$f":"IFERROR(INDEX($EG158:$IV158,MATCH(0,COUNTIF($DR158:DX158,$EG158:$IV158),0)),\"\")","v":"{Measure:Quantity}"},{"$f":"IFERROR(INDEX($EG158:$IV158,MATCH(0,COUNTIF($DR158:DY158,$EG158:$IV158),0)),\"\")","v":"{Previous Mark Down (y/n)}"},{"$f":"IFERROR(INDEX($EG158:$IV158,MATCH(0,COUNTIF($DR158:DZ158,$EG158:$IV158),0)),\"\")","v":""},{"$f":"IFERROR(INDEX($EG158:$IV158,MATCH(0,COUNTIF($DR158:EA158,$EG158:$IV158),0)),\"\")","v":""},{"$f":"IFERROR(INDEX($EG158:$IV158,MATCH(0,COUNTIF($DR158:EB158,$EG158:$IV158),0)),\"\")","v":""},{"$f":"IFERROR(INDEX($EG158:$IV158,MATCH(0,COUNTIF($DR158:EC158,$EG158:$IV158),0)),\"\")","v":""},null,null,{"$f":"IFERROR(MID($G158,FIND(CHAR(160),SUBSTITUTE($G158,\"{\",CHAR(160),EG$1)),FIND(CHAR(160),SUBSTITUTE($G158,\"}\",CHAR(160),EG$1))-FIND(CHAR(160),SUBSTITUTE($G158,\"{\",CHAR(160),EG$1))+1),\"\")","v":""},{"$f":"IFERROR(MID($G158,FIND(CHAR(160),SUBSTITUTE($G158,\"{\",CHAR(160),EH$1)),FIND(CHAR(160),SUBSTITUTE($G158,\"}\",CHAR(160),EH$1))-FIND(CHAR(160),SUBSTITUTE($G158,\"{\",CHAR(160),EH$1))+1),\"\")","v":""},{"$f":"IFERROR(MID($G158,FIND(CHAR(160),SUBSTITUTE($G158,\"{\",CHAR(160),EI$1)),FIND(CHAR(160),SUBSTITUTE($G158,\"}\",CHAR(160),EI$1))-FIND(CHAR(160),SUBSTITUTE($G158,\"{\",CHAR(160),EI$1))+1),\"\")","v":""},{"$f":"IFERROR(MID($G158,FIND(CHAR(160),SUBSTITUTE($G158,\"{\",CHAR(160),EJ$1)),FIND(CHAR(160),SUBSTITUTE($G158,\"}\",CHAR(160),EJ$1))-FIND(CHAR(160),SUBSTITUTE($G158,\"{\",CHAR(160),EJ$1))+1),\"\")","v":""},{"$f":"IFERROR(MID($G158,FIND(CHAR(160),SUBSTITUTE($G158,\"{\",CHAR(160),EK$1)),FIND(CHAR(160),SUBSTITUTE($G158,\"}\",CHAR(160),EK$1))-FIND(CHAR(160),SUBSTITUTE($G158,\"{\",CHAR(160),EK$1))+1),\"\")","v":""},{"$f":"IFERROR(MID($G158,FIND(CHAR(160),SUBSTITUTE($G158,\"{\",CHAR(160),EL$1)),FIND(CHAR(160),SUBSTITUTE($G158,\"}\",CHAR(160),EL$1))-FIND(CHAR(160),SUBSTITUTE($G158,\"{\",CHAR(160),EL$1))+1),\"\")","v":""},{"$f":"IFERROR(MID($G158,FIND(CHAR(160),SUBSTITUTE($G158,\"{\",CHAR(160),EM$1)),FIND(CHAR(160),SUBSTITUTE($G158,\"}\",CHAR(160),EM$1))-FIND(CHAR(160),SUBSTITUTE($G158,\"{\",CHAR(160),EM$1))+1),\"\")","v":""},{"$f":"IFERROR(MID($G158,FIND(CHAR(160),SUBSTITUTE($G158,\"{\",CHAR(160),EN$1)),FIND(CHAR(160),SUBSTITUTE($G158,\"}\",CHAR(160),EN$1))-FIND(CHAR(160),SUBSTITUTE($G158,\"{\",CHAR(160),EN$1))+1),\"\")","v":""},{"$f":"IFERROR(MID($G158,FIND(CHAR(160),SUBSTITUTE($G158,\"{\",CHAR(160),EO$1)),FIND(CHAR(160),SUBSTITUTE($G158,\"}\",CHAR(160),EO$1))-FIND(CHAR(160),SUBSTITUTE($G158,\"{\",CHAR(160),EO$1))+1),\"\")","v":""},{"$f":"IFERROR(MID($G158,FIND(CHAR(160),SUBSTITUTE($G158,\"{\",CHAR(160),EP$1)),FIND(CHAR(160),SUBSTITUTE($G158,\"}\",CHAR(160),EP$1))-FIND(CHAR(160),SUBSTITUTE($G158,\"{\",CHAR(160),EP$1))+1),\"\")","v":""},{"$f":"IFERROR(MID($J158,FIND(CHAR(160),SUBSTITUTE($J158,\"{\",CHAR(160),EQ$1)),FIND(CHAR(160),SUBSTITUTE($J158,\"}\",CHAR(160),EQ$1))-FIND(CHAR(160),SUBSTITUTE($J158,\"{\",CHAR(160),EQ$1))+1),\"\")","v":"{Retail Price}"},{"$f":"IFERROR(MID($J158,FIND(CHAR(160),SUBSTITUTE($J158,\"{\",CHAR(160),ER$1)),FIND(CHAR(160),SUBSTITUTE($J158,\"}\",CHAR(160),ER$1))-FIND(CHAR(160),SUBSTITUTE($J158,\"{\",CHAR(160),ER$1))+1),\"\")","v":"{Rebate Level}"},{"$f":"IFERROR(MID($J158,FIND(CHAR(160),SUBSTITUTE($J158,\"{\",CHAR(160),ES$1)),FIND(CHAR(160),SUBSTITUTE($J158,\"}\",CHAR(160),ES$1))-FIND(CHAR(160),SUBSTITUTE($J158,\"{\",CHAR(160),ES$1))+1),\"\")","v":"{Bonus Amount}"},{"$f":"IFERROR(MID($J158,FIND(CHAR(160),SUBSTITUTE($J158,\"{\",CHAR(160),ET$1)),FIND(CHAR(160),SUBSTITUTE($J158,\"}\",CHAR(160),ET$1))-FIND(CHAR(160),SUBSTITUTE($J158,\"{\",CHAR(160),ET$1))+1),\"\")","v":"{Retail Price}"},{"$f":"IFERROR(MID($J158,FIND(CHAR(160),SUBSTITUTE($J158,\"{\",CHAR(160),EU$1)),FIND(CHAR(160),SUBSTITUTE($J158,\"}\",CHAR(160),EU$1))-FIND(CHAR(160),SUBSTITUTE($J158,\"{\",CHAR(160),EU$1))+1),\"\")","v":"{Stipend/Paperwork Fee}"},{"$f":"IFERROR(MID($J158,FIND(CHAR(160),SUBSTITUTE($J158,\"{\",CHAR(160),EV$1)),FIND(CHAR(160),SUBSTITUTE($J158,\"}\",CHAR(160),EV$1))-FIND(CHAR(160),SUBSTITUTE($J158,\"{\",CHAR(160),EV$1))+1),\"\")","v":"{Rebate Level}"},{"$f":"IFERROR(MID($J158,FIND(CHAR(160),SUBSTITUTE($J158,\"{\",CHAR(160),EW$1)),FIND(CHAR(160),SUBSTITUTE($J158,\"}\",CHAR(160),EW$1))-FIND(CHAR(160),SUBSTITUTE($J158,\"{\",CHAR(160),EW$1))+1),\"\")","v":"{Bonus Amount}"},{"$f":"IFERROR(MID($J158,FIND(CHAR(160),SUBSTITUTE($J158,\"{\",CHAR(160),EX$1)),FIND(CHAR(160),SUBSTITUTE($J158,\"}\",CHAR(160),EX$1))-FIND(CHAR(160),SUBSTITUTE($J158,\"{\",CHAR(160),EX$1))+1),\"\")","v":"{Stipend/Paperwork Fee}"},{"$f":"IFERROR(MID($J158,FIND(CHAR(160),SUBSTITUTE($J158,\"{\",CHAR(160),EY$1)),FIND(CHAR(160),SUBSTITUTE($J158,\"}\",CHAR(160),EY$1))-FIND(CHAR(160),SUBSTITUTE($J158,\"{\",CHAR(160),EY$1))+1),\"\")","v":"{Measure:Quantity}"},{"$f":"IFERROR(MID($J158,FIND(CHAR(160),SUBSTITUTE($J158,\"{\",CHAR(160),EZ$1)),FIND(CHAR(160),SUBSTITUTE($J158,\"}\",CHAR(160),EZ$1))-FIND(CHAR(160),SUBSTITUTE($J158,\"{\",CHAR(160),EZ$1))+1),\"\")","v":""},{"$f":"IFERROR(MID($J158,FIND(CHAR(160),SUBSTITUTE($J158,\"{\",CHAR(160),FA$1)),FIND(CHAR(160),SUBSTITUTE($J158,\"}\",CHAR(160),FA$1))-FIND(CHAR(160),SUBSTITUTE($J158,\"{\",CHAR(160),FA$1))+1),\"\")","v":"{Retail Price}"},{"$f":"IFERROR(MID($J158,FIND(CHAR(160),SUBSTITUTE($J158,\"{\",CHAR(160),FB$1)),FIND(CHAR(160),SUBSTITUTE($J158,\"}\",CHAR(160),FB$1))-FIND(CHAR(160),SUBSTITUTE($J158,\"{\",CHAR(160),FB$1))+1),\"\")","v":"{Rebate Level}"},{"$f":"IFERROR(MID($O158,FIND(CHAR(160),SUBSTITUTE($O158,\"{\",CHAR(160),FC$1)),FIND(CHAR(160),SUBSTITUTE($O158,\"}\",CHAR(160),FC$1))-FIND(CHAR(160),SUBSTITUTE($O158,\"{\",CHAR(160),FC$1))+1),\"\")","v":""},{"$f":"IFERROR(MID($O158,FIND(CHAR(160),SUBSTITUTE($O158,\"{\",CHAR(160),FD$1)),FIND(CHAR(160),SUBSTITUTE($O158,\"}\",CHAR(160),FD$1))-FIND(CHAR(160),SUBSTITUTE($O158,\"{\",CHAR(160),FD$1))+1),\"\")","v":""},{"$f":"IFERROR(MID($O158,FIND(CHAR(160),SUBSTITUTE($O158,\"{\",CHAR(160),FE$1)),FIND(CHAR(160),SUBSTITUTE($O158,\"}\",CHAR(160),FE$1))-FIND(CHAR(160),SUBSTITUTE($O158,\"{\",CHAR(160),FE$1))+1),\"\")","v":""},{"$f":"IFERROR(MID($O158,FIND(CHAR(160),SUBSTITUTE($O158,\"{\",CHAR(160),FF$1)),FIND(CHAR(160),SUBSTITUTE($O158,\"}\",CHAR(160),FF$1))-FIND(CHAR(160),SUBSTITUTE($O158,\"{\",CHAR(160),FF$1))+1),\"\")","v":""},{"$f":"IFERROR(MID($O158,FIND(CHAR(160),SUBSTITUTE($O158,\"{\",CHAR(160),FG$1)),FIND(CHAR(160),SUBSTITUTE($O158,\"}\",CHAR(160),FG$1))-FIND(CHAR(160),SUBSTITUTE($O158,\"{\",CHAR(160),FG$1))+1),\"\")","v":""},{"$f":"IFERROR(MID($O158,FIND(CHAR(160),SUBSTITUTE($O158,\"{\",CHAR(160),FH$1)),FIND(CHAR(160),SUBSTITUTE($O158,\"}\",CHAR(160),FH$1))-FIND(CHAR(160),SUBSTITUTE($O158,\"{\",CHAR(160),FH$1))+1),\"\")","v":""},{"$f":"IFERROR(MID($O158,FIND(CHAR(160),SUBSTITUTE($O158,\"{\",CHAR(160),FI$1)),FIND(CHAR(160),SUBSTITUTE($O158,\"}\",CHAR(160),FI$1))-FIND(CHAR(160),SUBSTITUTE($O158,\"{\",CHAR(160),FI$1))+1),\"\")","v":""},{"$f":"IFERROR(MID($O158,FIND(CHAR(160),SUBSTITUTE($O158,\"{\",CHAR(160),FJ$1)),FIND(CHAR(160),SUBSTITUTE($O158,\"}\",CHAR(160),FJ$1))-FIND(CHAR(160),SUBSTITUTE($O158,\"{\",CHAR(160),FJ$1))+1),\"\")","v":""},{"$f":"IFERROR(MID($O158,FIND(CHAR(160),SUBSTITUTE($O158,\"{\",CHAR(160),FK$1)),FIND(CHAR(160),SUBSTITUTE($O158,\"}\",CHAR(160),FK$1))-FIND(CHAR(160),SUBSTITUTE($O158,\"{\",CHAR(160),FK$1))+1),\"\")","v":"{Previous Mark Down (y/n)}"},{"$f":"IFERROR(MID($O158,FIND(CHAR(160),SUBSTITUTE($O158,\"{\",CHAR(160),FL$1)),FIND(CHAR(160),SUBSTITUTE($O158,\"}\",CHAR(160),FL$1))-FIND(CHAR(160),SUBSTITUTE($O158,\"{\",CHAR(160),FL$1))+1),\"\")","v":"{Measure:Quantity}"},{"$f":"IFERROR(MID($R158,FIND(CHAR(160),SUBSTITUTE($R158,\"{\",CHAR(160),FM$1)),FIND(CHAR(160),SUBSTITUTE($R158,\"}\",CHAR(160),FM$1))-FIND(CHAR(160),SUBSTITUTE($R158,\"{\",CHAR(160),FM$1))+1),\"\")","v":""},{"$f":"IFERROR(MID($R158,FIND(CHAR(160),SUBSTITUTE($R158,\"{\",CHAR(160),FN$1)),FIND(CHAR(160),SUBSTITUTE($R158,\"}\",CHAR(160),FN$1))-FIND(CHAR(160),SUBSTITUTE($R158,\"{\",CHAR(160),FN$1))+1),\"\")","v":""},{"$f":"IFERROR(MID($R158,FIND(CHAR(160),SUBSTITUTE($R158,\"{\",CHAR(160),FO$1)),FIND(CHAR(160),SUBSTITUTE($R158,\"}\",CHAR(160),FO$1))-FIND(CHAR(160),SUBSTITUTE($R158,\"{\",CHAR(160),FO$1))+1),\"\")","v":""},{"$f":"IFERROR(MID($R158,FIND(CHAR(160),SUBSTITUTE($R158,\"{\",CHAR(160),FP$1)),FIND(CHAR(160),SUBSTITUTE($R158,\"}\",CHAR(160),FP$1))-FIND(CHAR(160),SUBSTITUTE($R158,\"{\",CHAR(160),FP$1))+1),\"\")","v":""},{"$f":"IFERROR(MID($R158,FIND(CHAR(160),SUBSTITUTE($R158,\"{\",CHAR(160),FQ$1)),FIND(CHAR(160),SUBSTITUTE($R158,\"}\",CHAR(160),FQ$1))-FIND(CHAR(160),SUBSTITUTE($R158,\"{\",CHAR(160),FQ$1))+1),\"\")","v":""},{"$f":"IFERROR(MID($R158,FIND(CHAR(160),SUBSTITUTE($R158,\"{\",CHAR(160),FR$1)),FIND(CHAR(160),SUBSTITUTE($R158,\"}\",CHAR(160),FR$1))-FIND(CHAR(160),SUBSTITUTE($R158,\"{\",CHAR(160),FR$1))+1),\"\")","v":""},{"$f":"IFERROR(MID($R158,FIND(CHAR(160),SUBSTITUTE($R158,\"{\",CHAR(160),FS$1)),FIND(CHAR(160),SUBSTITUTE($R158,\"}\",CHAR(160),FS$1))-FIND(CHAR(160),SUBSTITUTE($R158,\"{\",CHAR(160),FS$1))+1),\"\")","v":""},{"$f":"IFERROR(MID($R158,FIND(CHAR(160),SUBSTITUTE($R158,\"{\",CHAR(160),FT$1)),FIND(CHAR(160),SUBSTITUTE($R158,\"}\",CHAR(160),FT$1))-FIND(CHAR(160),SUBSTITUTE($R158,\"{\",CHAR(160),FT$1))+1),\"\")","v":""},{"$f":"IFERROR(MID($R158,FIND(CHAR(160),SUBSTITUTE($R158,\"{\",CHAR(160),FU$1)),FIND(CHAR(160),SUBSTITUTE($R158,\"}\",CHAR(160),FU$1))-FIND(CHAR(160),SUBSTITUTE($R158,\"{\",CHAR(160),FU$1))+1),\"\")","v":""},{"$f":"IFERROR(MID($R158,FIND(CHAR(160),SUBSTITUTE($R158,\"{\",CHAR(160),FV$1)),FIND(CHAR(160),SUBSTITUTE($R158,\"}\",CHAR(160),FV$1))-FIND(CHAR(160),SUBSTITUTE($R158,\"{\",CHAR(160),FV$1))+1),\"\")","v":""},{"$f":"IFERROR(MID($U158,FIND(CHAR(160),SUBSTITUTE($U158,\"{\",CHAR(160),FW$1)),FIND(CHAR(160),SUBSTITUTE($U158,\"}\",CHAR(160),FW$1))-FIND(CHAR(160),SUBSTITUTE($U158,\"{\",CHAR(160),FW$1))+1),\"\")","v":""},{"$f":"IFERROR(MID($U158,FIND(CHAR(160),SUBSTITUTE($U158,\"{\",CHAR(160),FX$1)),FIND(CHAR(160),SUBSTITUTE($U158,\"}\",CHAR(160),FX$1))-FIND(CHAR(160),SUBSTITUTE($U158,\"{\",CHAR(160),FX$1))+1),\"\")","v":""},{"$f":"IFERROR(MID($U158,FIND(CHAR(160),SUBSTITUTE($U158,\"{\",CHAR(160),FY$1)),FIND(CHAR(160),SUBSTITUTE($U158,\"}\",CHAR(160),FY$1))-FIND(CHAR(160),SUBSTITUTE($U158,\"{\",CHAR(160),FY$1))+1),\"\")","v":""},{"$f":"IFERROR(MID($U158,FIND(CHAR(160),SUBSTITUTE($U158,\"{\",CHAR(160),FZ$1)),FIND(CHAR(160),SUBSTITUTE($U158,\"}\",CHAR(160),FZ$1))-FIND(CHAR(160),SUBSTITUTE($U158,\"{\",CHAR(160),FZ$1))+1),\"\")","v":""},{"$f":"IFERROR(MID($U158,FIND(CHAR(160),SUBSTITUTE($U158,\"{\",CHAR(160),GA$1)),FIND(CHAR(160),SUBSTITUTE($U158,\"}\",CHAR(160),GA$1))-FIND(CHAR(160),SUBSTITUTE($U158,\"{\",CHAR(160),GA$1))+1),\"\")","v":""},{"$f":"IFERROR(MID($U158,FIND(CHAR(160),SUBSTITUTE($U158,\"{\",CHAR(160),GB$1)),FIND(CHAR(160),SUBSTITUTE($U158,\"}\",CHAR(160),GB$1))-FIND(CHAR(160),SUBSTITUTE($U158,\"{\",CHAR(160),GB$1))+1),\"\")","v":""},{"$f":"IFERROR(MID($U158,FIND(CHAR(160),SUBSTITUTE($U158,\"{\",CHAR(160),GC$1)),FIND(CHAR(160),SUBSTITUTE($U158,\"}\",CHAR(160),GC$1))-FIND(CHAR(160),SUBSTITUTE($U158,\"{\",CHAR(160),GC$1))+1),\"\")","v":""},{"$f":"IFERROR(MID($U158,FIND(CHAR(160),SUBSTITUTE($U158,\"{\",CHAR(160),GD$1)),FIND(CHAR(160),SUBSTITUTE($U158,\"}\",CHAR(160),GD$1))-FIND(CHAR(160),SUBSTITUTE($U158,\"{\",CHAR(160),GD$1))+1),\"\")","v":""},{"$f":"IFERROR(MID($U158,FIND(CHAR(160),SUBSTITUTE($U158,\"{\",CHAR(160),GE$1)),FIND(CHAR(160),SUBSTITUTE($U158,\"}\",CHAR(160),GE$1))-FIND(CHAR(160),SUBSTITUTE($U158,\"{\",CHAR(160),GE$1))+1),\"\")","v":"{Previous Mark Down (y/n)}"},{"$f":"IFERROR(MID($U158,FIND(CHAR(160),SUBSTITUTE($U158,\"{\",CHAR(160),GF$1)),FIND(CHAR(160),SUBSTITUTE($U158,\"}\",CHAR(160),GF$1))-FIND(CHAR(160),SUBSTITUTE($U158,\"{\",CHAR(160),GF$1))+1),\"\")","v":"{Measure:Quantity}"},{"$f":"IFERROR(MID($V158,FIND(CHAR(160),SUBSTITUTE($V158,\"{\",CHAR(160),GG$1)),FIND(CHAR(160),SUBSTITUTE($V158,\"}\",CHAR(160),GG$1))-FIND(CHAR(160),SUBSTITUTE($V158,\"{\",CHAR(160),GG$1))+1),\"\")","v":""},{"$f":"IFERROR(MID($V158,FIND(CHAR(160),SUBSTITUTE($V158,\"{\",CHAR(160),GH$1)),FIND(CHAR(160),SUBSTITUTE($V158,\"}\",CHAR(160),GH$1))-FIND(CHAR(160),SUBSTITUTE($V158,\"{\",CHAR(160),GH$1))+1),\"\")","v":""},{"$f":"IFERROR(MID($V158,FIND(CHAR(160),SUBSTITUTE($V158,\"{\",CHAR(160),GI$1)),FIND(CHAR(160),SUBSTITUTE($V158,\"}\",CHAR(160),GI$1))-FIND(CHAR(160),SUBSTITUTE($V158,\"{\",CHAR(160),GI$1))+1),\"\")","v":""},{"$f":"IFERROR(MID($V158,FIND(CHAR(160),SUBSTITUTE($V158,\"{\",CHAR(160),GJ$1)),FIND(CHAR(160),SUBSTITUTE($V158,\"}\",CHAR(160),GJ$1))-FIND(CHAR(160),SUBSTITUTE($V158,\"{\",CHAR(160),GJ$1))+1),\"\")","v":""},{"$f":"IFERROR(MID($V158,FIND(CHAR(160),SUBSTITUTE($V158,\"{\",CHAR(160),GK$1)),FIND(CHAR(160),SUBSTITUTE($V158,\"}\",CHAR(160),GK$1))-FIND(CHAR(160),SUBSTITUTE($V158,\"{\",CHAR(160),GK$1))+1),\"\")","v":""},{"$f":"IFERROR(MID($V158,FIND(CHAR(160),SUBSTITUTE($V158,\"{\",CHAR(160),GL$1)),FIND(CHAR(160),SUBSTITUTE($V158,\"}\",CHAR(160),GL$1))-FIND(CHAR(160),SUBSTITUTE($V158,\"{\",CHAR(160),GL$1))+1),\"\")","v":""},{"$f":"IFERROR(MID($V158,FIND(CHAR(160),SUBSTITUTE($V158,\"{\",CHAR(160),GM$1)),FIND(CHAR(160),SUBSTITUTE($V158,\"}\",CHAR(160),GM$1))-FIND(CHAR(160),SUBSTITUTE($V158,\"{\",CHAR(160),GM$1))+1),\"\")","v":""},{"$f":"IFERROR(MID($V158,FIND(CHAR(160),SUBSTITUTE($V158,\"{\",CHAR(160),GN$1)),FIND(CHAR(160),SUBSTITUTE($V158,\"}\",CHAR(160),GN$1))-FIND(CHAR(160),SUBSTITUTE($V158,\"{\",CHAR(160),GN$1))+1),\"\")","v":""},{"$f":"IFERROR(MID($V158,FIND(CHAR(160),SUBSTITUTE($V158,\"{\",CHAR(160),GO$1)),FIND(CHAR(160),SUBSTITUTE($V158,\"}\",CHAR(160),GO$1))-FIND(CHAR(160),SUBSTITUTE($V158,\"{\",CHAR(160),GO$1))+1),\"\")","v":"{Previous Mark Down (y/n)}"},{"$f":"IFERROR(MID($V158,FIND(CHAR(160),SUBSTITUTE($V158,\"{\",CHAR(160),GP$1)),FIND(CHAR(160),SUBSTITUTE($V158,\"}\",CHAR(160),GP$1))-FIND(CHAR(160),SUBSTITUTE($V158,\"{\",CHAR(160),GP$1))+1),\"\")","v":"{Measure:Quantity}"},{"$f":"IFERROR(MID($W158,FIND(CHAR(160),SUBSTITUTE($W158,\"{\",CHAR(160),GQ$1)),FIND(CHAR(160),SUBSTITUTE($W158,\"}\",CHAR(160),GQ$1))-FIND(CHAR(160),SUBSTITUTE($W158,\"{\",CHAR(160),GQ$1))+1),\"\")","v":""},{"$f":"IFERROR(MID($W158,FIND(CHAR(160),SUBSTITUTE($W158,\"{\",CHAR(160),GR$1)),FIND(CHAR(160),SUBSTITUTE($W158,\"}\",CHAR(160),GR$1))-FIND(CHAR(160),SUBSTITUTE($W158,\"{\",CHAR(160),GR$1))+1),\"\")","v":""},{"$f":"IFERROR(MID($W158,FIND(CHAR(160),SUBSTITUTE($W158,\"{\",CHAR(160),GS$1)),FIND(CHAR(160),SUBSTITUTE($W158,\"}\",CHAR(160),GS$1))-FIND(CHAR(160),SUBSTITUTE($W158,\"{\",CHAR(160),GS$1))+1),\"\")","v":""},{"$f":"IFERROR(MID($W158,FIND(CHAR(160),SUBSTITUTE($W158,\"{\",CHAR(160),GT$1)),FIND(CHAR(160),SUBSTITUTE($W158,\"}\",CHAR(160),GT$1))-FIND(CHAR(160),SUBSTITUTE($W158,\"{\",CHAR(160),GT$1))+1),\"\")","v":""},{"$f":"IFERROR(MID($W158,FIND(CHAR(160),SUBSTITUTE($W158,\"{\",CHAR(160),GU$1)),FIND(CHAR(160),SUBSTITUTE($W158,\"}\",CHAR(160),GU$1))-FIND(CHAR(160),SUBSTITUTE($W158,\"{\",CHAR(160),GU$1))+1),\"\")","v":""},{"$f":"IFERROR(MID($W158,FIND(CHAR(160),SUBSTITUTE($W158,\"{\",CHAR(160),GV$1)),FIND(CHAR(160),SUBSTITUTE($W158,\"}\",CHAR(160),GV$1))-FIND(CHAR(160),SUBSTITUTE($W158,\"{\",CHAR(160),GV$1))+1),\"\")","v":""},{"$f":"IFERROR(MID($W158,FIND(CHAR(160),SUBSTITUTE($W158,\"{\",CHAR(160),GW$1)),FIND(CHAR(160),SUBSTITUTE($W158,\"}\",CHAR(160),GW$1))-FIND(CHAR(160),SUBSTITUTE($W158,\"{\",CHAR(160),GW$1))+1),\"\")","v":""},{"$f":"IFERROR(MID($W158,FIND(CHAR(160),SUBSTITUTE($W158,\"{\",CHAR(160),GX$1)),FIND(CHAR(160),SUBSTITUTE($W158,\"}\",CHAR(160),GX$1))-FIND(CHAR(160),SUBSTITUTE($W158,\"{\",CHAR(160),GX$1))+1),\"\")","v":""},{"$f":"IFERROR(MID($W158,FIND(CHAR(160),SUBSTITUTE($W158,\"{\",CHAR(160),GY$1)),FIND(CHAR(160),SUBSTITUTE($W158,\"}\",CHAR(160),GY$1))-FIND(CHAR(160),SUBSTITUTE($W158,\"{\",CHAR(160),GY$1))+1),\"\")","v":"{Previous Mark Down (y/n)}"},{"$f":"IFERROR(MID($W158,FIND(CHAR(160),SUBSTITUTE($W158,\"{\",CHAR(160),GZ$1)),FIND(CHAR(160),SUBSTITUTE($W158,\"}\",CHAR(160),GZ$1))-FIND(CHAR(160),SUBSTITUTE($W158,\"{\",CHAR(160),GZ$1))+1),\"\")","v":"{Measure:Quantity}"},{"$f":"IFERROR(MID($X158,FIND(CHAR(160),SUBSTITUTE($X158,\"{\",CHAR(160),HA$1)),FIND(CHAR(160),SUBSTITUTE($X158,\"}\",CHAR(160),HA$1))-FIND(CHAR(160),SUBSTITUTE($X158,\"{\",CHAR(160),HA$1))+1),\"\")","v":""},{"$f":"IFERROR(MID($X158,FIND(CHAR(160),SUBSTITUTE($X158,\"{\",CHAR(160),HB$1)),FIND(CHAR(160),SUBSTITUTE($X158,\"}\",CHAR(160),HB$1))-FIND(CHAR(160),SUBSTITUTE($X158,\"{\",CHAR(160),HB$1))+1),\"\")","v":""},{"$f":"IFERROR(MID($X158,FIND(CHAR(160),SUBSTITUTE($X158,\"{\",CHAR(160),HC$1)),FIND(CHAR(160),SUBSTITUTE($X158,\"}\",CHAR(160),HC$1))-FIND(CHAR(160),SUBSTITUTE($X158,\"{\",CHAR(160),HC$1))+1),\"\")","v":""},{"$f":"IFERROR(MID($X158,FIND(CHAR(160),SUBSTITUTE($X158,\"{\",CHAR(160),HD$1)),FIND(CHAR(160),SUBSTITUTE($X158,\"}\",CHAR(160),HD$1))-FIND(CHAR(160),SUBSTITUTE($X158,\"{\",CHAR(160),HD$1))+1),\"\")","v":""},{"$f":"IFERROR(MID($X158,FIND(CHAR(160),SUBSTITUTE($X158,\"{\",CHAR(160),HE$1)),FIND(CHAR(160),SUBSTITUTE($X158,\"}\",CHAR(160),HE$1))-FIND(CHAR(160),SUBSTITUTE($X158,\"{\",CHAR(160),HE$1))+1),\"\")","v":""},{"$f":"IFERROR(MID($X158,FIND(CHAR(160),SUBSTITUTE($X158,\"{\",CHAR(160),HF$1)),FIND(CHAR(160),SUBSTITUTE($X158,\"}\",CHAR(160),HF$1))-FIND(CHAR(160),SUBSTITUTE($X158,\"{\",CHAR(160),HF$1))+1),\"\")","v":""},{"$f":"IFERROR(MID($X158,FIND(CHAR(160),SUBSTITUTE($X158,\"{\",CHAR(160),HG$1)),FIND(CHAR(160),SUBSTITUTE($X158,\"}\",CHAR(160),HG$1))-FIND(CHAR(160),SUBSTITUTE($X158,\"{\",CHAR(160),HG$1))+1),\"\")","v":""},{"$f":"IFERROR(MID($X158,FIND(CHAR(160),SUBSTITUTE($X158,\"{\",CHAR(160),HH$1)),FIND(CHAR(160),SUBSTITUTE($X158,\"}\",CHAR(160),HH$1))-FIND(CHAR(160),SUBSTITUTE($X158,\"{\",CHAR(160),HH$1))+1),\"\")","v":""},{"$f":"IFERROR(MID($X158,FIND(CHAR(160),SUBSTITUTE($X158,\"{\",CHAR(160),HI$1)),FIND(CHAR(160),SUBSTITUTE($X158,\"}\",CHAR(160),HI$1))-FIND(CHAR(160),SUBSTITUTE($X158,\"{\",CHAR(160),HI$1))+1),\"\")","v":"{Previous Mark Down (y/n)}"},{"$f":"IFERROR(MID($X158,FIND(CHAR(160),SUBSTITUTE($X158,\"{\",CHAR(160),HJ$1)),FIND(CHAR(160),SUBSTITUTE($X158,\"}\",CHAR(160),HJ$1))-FIND(CHAR(160),SUBSTITUTE($X158,\"{\",CHAR(160),HJ$1))+1),\"\")","v":"{Measure:Quantity}"},{"$f":"IFERROR(MID($Y158,FIND(CHAR(160),SUBSTITUTE($Y158,\"{\",CHAR(160),HK$1)),FIND(CHAR(160),SUBSTITUTE($Y158,\"}\",CHAR(160),HK$1))-FIND(CHAR(160),SUBSTITUTE($Y158,\"{\",CHAR(160),HK$1))+1),\"\")","v":""},{"$f":"IFERROR(MID($Y158,FIND(CHAR(160),SUBSTITUTE($Y158,\"{\",CHAR(160),HL$1)),FIND(CHAR(160),SUBSTITUTE($Y158,\"}\",CHAR(160),HL$1))-FIND(CHAR(160),SUBSTITUTE($Y158,\"{\",CHAR(160),HL$1))+1),\"\")","v":""},{"$f":"IFERROR(MID($Y158,FIND(CHAR(160),SUBSTITUTE($Y158,\"{\",CHAR(160),HM$1)),FIND(CHAR(160),SUBSTITUTE($Y158,\"}\",CHAR(160),HM$1))-FIND(CHAR(160),SUBSTITUTE($Y158,\"{\",CHAR(160),HM$1))+1),\"\")","v":""},{"$f":"IFERROR(MID($Y158,FIND(CHAR(160),SUBSTITUTE($Y158,\"{\",CHAR(160),HN$1)),FIND(CHAR(160),SUBSTITUTE($Y158,\"}\",CHAR(160),HN$1))-FIND(CHAR(160),SUBSTITUTE($Y158,\"{\",CHAR(160),HN$1))+1),\"\")","v":""},{"$f":"IFERROR(MID($Y158,FIND(CHAR(160),SUBSTITUTE($Y158,\"{\",CHAR(160),HO$1)),FIND(CHAR(160),SUBSTITUTE($Y158,\"}\",CHAR(160),HO$1))-FIND(CHAR(160),SUBSTITUTE($Y158,\"{\",CHAR(160),HO$1))+1),\"\")","v":""},{"$f":"IFERROR(MID($Y158,FIND(CHAR(160),SUBSTITUTE($Y158,\"{\",CHAR(160),HP$1)),FIND(CHAR(160),SUBSTITUTE($Y158,\"}\",CHAR(160),HP$1))-FIND(CHAR(160),SUBSTITUTE($Y158,\"{\",CHAR(160),HP$1))+1),\"\")","v":""},{"$f":"IFERROR(MID($Y158,FIND(CHAR(160),SUBSTITUTE($Y158,\"{\",CHAR(160),HQ$1)),FIND(CHAR(160),SUBSTITUTE($Y158,\"}\",CHAR(160),HQ$1))-FIND(CHAR(160),SUBSTITUTE($Y158,\"{\",CHAR(160),HQ$1))+1),\"\")","v":""},{"$f":"IFERROR(MID($Y158,FIND(CHAR(160),SUBSTITUTE($Y158,\"{\",CHAR(160),HR$1)),FIND(CHAR(160),SUBSTITUTE($Y158,\"}\",CHAR(160),HR$1))-FIND(CHAR(160),SUBSTITUTE($Y158,\"{\",CHAR(160),HR$1))+1),\"\")","v":""},{"$f":"IFERROR(MID($Y158,FIND(CHAR(160),SUBSTITUTE($Y158,\"{\",CHAR(160),HS$1)),FIND(CHAR(160),SUBSTITUTE($Y158,\"}\",CHAR(160),HS$1))-FIND(CHAR(160),SUBSTITUTE($Y158,\"{\",CHAR(160),HS$1))+1),\"\")","v":"{Previous Mark Down (y/n)}"},{"$f":"IFERROR(MID($Y158,FIND(CHAR(160),SUBSTITUTE($Y158,\"{\",CHAR(160),HT$1)),FIND(CHAR(160),SUBSTITUTE($Y158,\"}\",CHAR(160),HT$1))-FIND(CHAR(160),SUBSTITUTE($Y158,\"{\",CHAR(160),HT$1))+1),\"\")","v":"{Measure:Quantity}"},{"$f":"IFERROR(MID($Z158,FIND(CHAR(160),SUBSTITUTE($Z158,\"{\",CHAR(160),HU$1)),FIND(CHAR(160),SUBSTITUTE($Z158,\"}\",CHAR(160),HU$1))-FIND(CHAR(160),SUBSTITUTE($Z158,\"{\",CHAR(160),HU$1))+1),\"\")","v":""},{"$f":"IFERROR(MID($Z158,FIND(CHAR(160),SUBSTITUTE($Z158,\"{\",CHAR(160),HV$1)),FIND(CHAR(160),SUBSTITUTE($Z158,\"}\",CHAR(160),HV$1))-FIND(CHAR(160),SUBSTITUTE($Z158,\"{\",CHAR(160),HV$1))+1),\"\")","v":""},{"$f":"IFERROR(MID($Z158,FIND(CHAR(160),SUBSTITUTE($Z158,\"{\",CHAR(160),HW$1)),FIND(CHAR(160),SUBSTITUTE($Z158,\"}\",CHAR(160),HW$1))-FIND(CHAR(160),SUBSTITUTE($Z158,\"{\",CHAR(160),HW$1))+1),\"\")","v":""},{"$f":"IFERROR(MID($Z158,FIND(CHAR(160),SUBSTITUTE($Z158,\"{\",CHAR(160),HX$1)),FIND(CHAR(160),SUBSTITUTE($Z158,\"}\",CHAR(160),HX$1))-FIND(CHAR(160),SUBSTITUTE($Z158,\"{\",CHAR(160),HX$1))+1),\"\")","v":""},{"$f":"IFERROR(MID($Z158,FIND(CHAR(160),SUBSTITUTE($Z158,\"{\",CHAR(160),HY$1)),FIND(CHAR(160),SUBSTITUTE($Z158,\"}\",CHAR(160),HY$1))-FIND(CHAR(160),SUBSTITUTE($Z158,\"{\",CHAR(160),HY$1))+1),\"\")","v":""},{"$f":"IFERROR(MID($Z158,FIND(CHAR(160),SUBSTITUTE($Z158,\"{\",CHAR(160),HZ$1)),FIND(CHAR(160),SUBSTITUTE($Z158,\"}\",CHAR(160),HZ$1))-FIND(CHAR(160),SUBSTITUTE($Z158,\"{\",CHAR(160),HZ$1))+1),\"\")","v":""},{"$f":"IFERROR(MID($Z158,FIND(CHAR(160),SUBSTITUTE($Z158,\"{\",CHAR(160),IA$1)),FIND(CHAR(160),SUBSTITUTE($Z158,\"}\",CHAR(160),IA$1))-FIND(CHAR(160),SUBSTITUTE($Z158,\"{\",CHAR(160),IA$1))+1),\"\")","v":""},{"$f":"IFERROR(MID($Z158,FIND(CHAR(160),SUBSTITUTE($Z158,\"{\",CHAR(160),IB$1)),FIND(CHAR(160),SUBSTITUTE($Z158,\"}\",CHAR(160),IB$1))-FIND(CHAR(160),SUBSTITUTE($Z158,\"{\",CHAR(160),IB$1))+1),\"\")","v":""},{"$f":"IFERROR(MID($Z158,FIND(CHAR(160),SUBSTITUTE($Z158,\"{\",CHAR(160),IC$1)),FIND(CHAR(160),SUBSTITUTE($Z158,\"}\",CHAR(160),IC$1))-FIND(CHAR(160),SUBSTITUTE($Z158,\"{\",CHAR(160),IC$1))+1),\"\")","v":"{Previous Mark Down (y/n)}"},{"$f":"IFERROR(MID($Z158,FIND(CHAR(160),SUBSTITUTE($Z158,\"{\",CHAR(160),ID$1)),FIND(CHAR(160),SUBSTITUTE($Z158,\"}\",CHAR(160),ID$1))-FIND(CHAR(160),SUBSTITUTE($Z158,\"{\",CHAR(160),ID$1))+1),\"\")","v":"{Measure:Quantity}"},{"$f":"IFERROR(MID($AA158,FIND(CHAR(160),SUBSTITUTE($AA158,\"{\",CHAR(160),IE$1)),FIND(CHAR(160),SUBSTITUTE($AA158,\"}\",CHAR(160),IE$1))-FIND(CHAR(160),SUBSTITUTE($AA158,\"{\",CHAR(160),IE$1))+1),\"\")","v":""},{"$f":"IFERROR(MID($AA158,FIND(CHAR(160),SUBSTITUTE($AA158,\"{\",CHAR(160),IF$1)),FIND(CHAR(160),SUBSTITUTE($AA158,\"}\",CHAR(160),IF$1))-FIND(CHAR(160),SUBSTITUTE($AA158,\"{\",CHAR(160),IF$1))+1),\"\")","v":""},{"$f":"IFERROR(MID($AA158,FIND(CHAR(160),SUBSTITUTE($AA158,\"{\",CHAR(160),IG$1)),FIND(CHAR(160),SUBSTITUTE($AA158,\"}\",CHAR(160),IG$1))-FIND(CHAR(160),SUBSTITUTE($AA158,\"{\",CHAR(160),IG$1))+1),\"\")","v":""},{"$f":"IFERROR(MID($AA158,FIND(CHAR(160),SUBSTITUTE($AA158,\"{\",CHAR(160),IH$1)),FIND(CHAR(160),SUBSTITUTE($AA158,\"}\",CHAR(160),IH$1))-FIND(CHAR(160),SUBSTITUTE($AA158,\"{\",CHAR(160),IH$1))+1),\"\")","v":""},{"$f":"IFERROR(MID($AA158,FIND(CHAR(160),SUBSTITUTE($AA158,\"{\",CHAR(160),II$1)),FIND(CHAR(160),SUBSTITUTE($AA158,\"}\",CHAR(160),II$1))-FIND(CHAR(160),SUBSTITUTE($AA158,\"{\",CHAR(160),II$1))+1),\"\")","v":""},{"$f":"IFERROR(MID($AA158,FIND(CHAR(160),SUBSTITUTE($AA158,\"{\",CHAR(160),IJ$1)),FIND(CHAR(160),SUBSTITUTE($AA158,\"}\",CHAR(160),IJ$1))-FIND(CHAR(160),SUBSTITUTE($AA158,\"{\",CHAR(160),IJ$1))+1),\"\")","v":""},{"$f":"IFERROR(MID($AA158,FIND(CHAR(160),SUBSTITUTE($AA158,\"{\",CHAR(160),IK$1)),FIND(CHAR(160),SUBSTITUTE($AA158,\"}\",CHAR(160),IK$1))-FIND(CHAR(160),SUBSTITUTE($AA158,\"{\",CHAR(160),IK$1))+1),\"\")","v":""},{"$f":"IFERROR(MID($AA158,FIND(CHAR(160),SUBSTITUTE($AA158,\"{\",CHAR(160),IL$1)),FIND(CHAR(160),SUBSTITUTE($AA158,\"}\",CHAR(160),IL$1))-FIND(CHAR(160),SUBSTITUTE($AA158,\"{\",CHAR(160),IL$1))+1),\"\")","v":""},{"$f":"IFERROR(MID($AA158,FIND(CHAR(160),SUBSTITUTE($AA158,\"{\",CHAR(160),IM$1)),FIND(CHAR(160),SUBSTITUTE($AA158,\"}\",CHAR(160),IM$1))-FIND(CHAR(160),SUBSTITUTE($AA158,\"{\",CHAR(160),IM$1))+1),\"\")","v":"{Previous Mark Down (y/n)}"},{"$f":"IFERROR(MID($AA158,FIND(CHAR(160),SUBSTITUTE($AA158,\"{\",CHAR(160),IN$1)),FIND(CHAR(160),SUBSTITUTE($AA158,\"}\",CHAR(160),IN$1))-FIND(CHAR(160),SUBSTITUTE($AA158,\"{\",CHAR(160),IN$1))+1),\"\")","v":"{Measure:Quantity}"},{"$f":"IFERROR(MID($AB158,FIND(CHAR(160),SUBSTITUTE($AB158,\"{\",CHAR(160),IO$1)),FIND(CHAR(160),SUBSTITUTE($AB158,\"}\",CHAR(160),IO$1))-FIND(CHAR(160),SUBSTITUTE($AB158,\"{\",CHAR(160),IO$1))+1),\"\")","v":""},{"$f":"IFERROR(MID($AB158,FIND(CHAR(160),SUBSTITUTE($AB158,\"{\",CHAR(160),IP$1)),FIND(CHAR(160),SUBSTITUTE($AB158,\"}\",CHAR(160),IP$1))-FIND(CHAR(160),SUBSTITUTE($AB158,\"{\",CHAR(160),IP$1))+1),\"\")","v":""},{"$f":"IFERROR(MID($AB158,FIND(CHAR(160),SUBSTITUTE($AB158,\"{\",CHAR(160),IQ$1)),FIND(CHAR(160),SUBSTITUTE($AB158,\"}\",CHAR(160),IQ$1))-FIND(CHAR(160),SUBSTITUTE($AB158,\"{\",CHAR(160),IQ$1))+1),\"\")","v":""},{"$f":"IFERROR(MID($AB158,FIND(CHAR(160),SUBSTITUTE($AB158,\"{\",CHAR(160),IR$1)),FIND(CHAR(160),SUBSTITUTE($AB158,\"}\",CHAR(160),IR$1))-FIND(CHAR(160),SUBSTITUTE($AB158,\"{\",CHAR(160),IR$1))+1),\"\")","v":""},{"$f":"IFERROR(MID($AB158,FIND(CHAR(160),SUBSTITUTE($AB158,\"{\",CHAR(160),IS$1)),FIND(CHAR(160),SUBSTITUTE($AB158,\"}\",CHAR(160),IS$1))-FIND(CHAR(160),SUBSTITUTE($AB158,\"{\",CHAR(160),IS$1))+1),\"\")","v":""},{"$f":"IFERROR(MID($AB158,FIND(CHAR(160),SUBSTITUTE($AB158,\"{\",CHAR(160),IT$1)),FIND(CHAR(160),SUBSTITUTE($AB158,\"}\",CHAR(160),IT$1))-FIND(CHAR(160),SUBSTITUTE($AB158,\"{\",CHAR(160),IT$1))+1),\"\")","v":""},{"$f":"IFERROR(MID($AB158,FIND(CHAR(160),SUBSTITUTE($AB158,\"{\",CHAR(160),IU$1)),FIND(CHAR(160),SUBSTITUTE($AB158,\"}\",CHAR(160),IU$1))-FIND(CHAR(160),SUBSTITUTE($AB158,\"{\",CHAR(160),IU$1))+1),\"\")","v":""},{"$f":"IFERROR(MID($AB158,FIND(CHAR(160),SUBSTITUTE($AB158,\"{\",CHAR(160),IV$1)),FIND(CHAR(160),SUBSTITUTE($AB158,\"}\",CHAR(160),IV$1))-FIND(CHAR(160),SUBSTITUTE($AB158,\"{\",CHAR(160),IV$1))+1),\"\")","v":""},{"$f":"IFERROR(MID($AB158,FIND(CHAR(160),SUBSTITUTE($AB158,\"{\",CHAR(160),IW$1)),FIND(CHAR(160),SUBSTITUTE($AB158,\"}\",CHAR(160),IW$1))-FIND(CHAR(160),SUBSTITUTE($AB158,\"{\",CHAR(160),IW$1))+1),\"\")","v":""},{"$f":"IFERROR(MID($AB158,FIND(CHAR(160),SUBSTITUTE($AB158,\"{\",CHAR(160),IX$1)),FIND(CHAR(160),SUBSTITUTE($AB158,\"}\",CHAR(160),IX$1))-FIND(CHAR(160),SUBSTITUTE($AB158,\"{\",CHAR(160),IX$1))+1),\"\")","v":""},null,{"$f":"10-COUNTIF(DU158:ED158,\"\")","v":6}]
["Distributor HVAC – Electric","ECMHW Electronically Commuted Pump","ECMHW","2021-07-01","2022-06-30","Calculated","if({Customer Type}=2,{Measure:Quantity}*56.84,(if({Customer Type}=3,{Measure:Quantity}*56.84,{Measure:Quantity}*if({Rated Watts}<(150),368,if({Rated Watts}<(600),758,1018)))))",0,"Calculated","if({Rated Watts}<150,if({Retail Price}<75,{Retail Price},75)*{Measure:Quantity},if({Rated Watts}>500,if({Retail Price}<250,{Retail Price},250)*{Measure:Quantity},if({Retail Price}<150,{Retail Price},150)*{Measure:Quantity}))+{Stipend/Paperwork Fee}",0,"2019-07-01","2022-06-30","Calculated","if({Customer Type}=2,{Measure:Quantity}*100.7,(if({Customer Type}=3,{Measure:Quantity}*100.7,{Measure:Quantity}*if({Rated Watts}<(1.25*120),426,if({Rated Watts}<(5*120),804,2586)))))",null,null,"if({Customer Type}=2,{Measure:Quantity}*0.0733,(if({Customer Type}=3,{Measure:Quantity}*0.0733,{Measure:Quantity}*if({Rated Watts}<(1.25*120),426,if({Rated Watts}<(5*120),804,2586))/4858)))",null,null,"if({Customer Type}=2,{Measure:Quantity}*0.0363,(if({Customer Type}=3,{Measure:Quantity}*0.0363,{Measure:Quantity}*if({Rated Watts}<(1.25*120),426,if({Rated Watts}<(5*120),804,2586))/4858*{Factor:WinterCF})))","if({Customer Type}=2,{Measure:Quantity}*0,(if({Customer Type}=3,{Measure:Quantity}*0,{Measure:Quantity}*if({Rated Watts}<(1.25*120),426,if({Rated Watts}<(5*120),804,2586))/4858*{Factor:SummerCF})))",null,null,null,null,null,null,"2019-07-01","2022-06-30",20,0.495,0,0.39800000000000002,0.56100000000000005,0.01,3.1E-2,1,1,1,0.25,0,null,{"$f":"DU159","v":"{Customer Type}"},3,{"$f":"DV159","v":"{Measure:Quantity}"},1,{"$f":"DW159","v":"{Rated Watts}"},50,{"$f":"DX159","v":"{Retail Price}"},200,{"$f":"DY159","v":""},5,{"$f":"DZ159","v":""},null,{"$f":"EA159","v":""},null,{"$f":"EB159","v":""},null,{"$f":"EC159","v":""},null,{"$f":"ED159","v":""},null,{"$f":"IF(AS159=2,AU159*100.7,(IF(AS159=3,AU159*100.7,AU159*IF(AW159<(1.25*120),426,IF(AW159<(5*120),804,2586)))))","v":100.7},0,0,{"$f":"IF(AS159=2,AU159*0.0733,(IF(AS159=3,AU159*0.0733,AU159*IF(AW159<(1.25*120),426,IF(AW159<(5*120),804,2586))/4858)))","v":7.3300000000000004E-2},0,0,{"$f":"IF(AS159=2,AU159*0.0363,(IF(AS159=3,AU159*0.0363,AU159*IF(AW159<(1.25*120),426,IF(AW159<(5*120),804,2586))/4858*AF159)))","v":3.6299999999999999E-2},{"$f":"IF(AS159=2,AU159*0,(IF(AS159=3,AU159*0,AU159*IF(AW159<(1.25*120),426,IF(AW159<(5*120),804,2586))/4858*AG159)))","v":0},0,0,0,0,0,0,null,"Res","Default DR",{"$f":"Benefits(BL159,BR159,BS159,BT159,BU159,BV159,BW159,BX159,BY159,BZ159,AE159,AH159,AI159,AJ159,AK159,AL159,AM159,AN159,AO159,AP159,CA159,CB159)","v":171.53437783152259},171.29892947907985,0,0,0,0,0,0,0,{"$f":"SUMPRODUCT(CC159:CK159,--(CC159:CK159>0))","v":342.83330731060244},{"$f":"-SUMPRODUCT(CC159:CK159,--(CC159:CK159<0))","v":0},null,{"$f":"IF(AS159=2,AU159*56.84,(IF(AS159=3,AU159*56.84,AU159*IF(AW159<(150),368,IF(AW159<(600),758,1018)))))","v":56.84},null,null,{"$f":"CM159+CO159","v":56.84},{"$f":"IF(NetOrGross=\"Net\",(1-AO159+AP159),1)","v":1},{"$f":"(SUMPRODUCT(CC159:CJ159,--(CC159:CJ159>0))+CN159)*CS159/((-SUMPRODUCT(CC159:CJ159,--(CC159:CJ159<0))+MAX(CO159,CV159)+CP159+CQ159)*CS159+IF(FRIncentives=\"Yes\",CV159*(1-CS159),0))","v":4.2854163413825308},1,{"$f":"IF(AW159<150,IF(AY159<75,AY159,75)*AU159,IF(AW159>500,IF(AY159<250,AY159,250)*AU159,IF(AY159<150,AY159,150)*AU159))+BA159","v":80},null,"NG","y",null,{"$f":"IF(F159=\"Manual Entry\",\"Manual\",IF(G159=\"\",0,\"X=\"&SUBSTITUTE(SUBSTITUTE(SUBSTITUTE(SUBSTITUTE(SUBSTITUTE(SUBSTITUTE(SUBSTITUTE(SUBSTITUTE(SUBSTITUTE(SUBSTITUTE(SUBSTITUTE(SUBSTITUTE(G159,$ED159,$ED$2&ROW($ED159)),$EC159,$EC$2&ROW($EC159)),$EB159,$EB$2&ROW($EB159)),$EA159,$EA$2&ROW($EA159)),$DZ159,$DZ$2&ROW($DZ159)),$DY159,$DY$2&ROW($DY159)),$DX159,$DX$2&ROW($DX159)),$DW159,$DW$2&ROW($DW159)),$DV159,$DV$2&ROW($DV159)),$DU159,$DU$2&ROW($DU159)),$DT159,$DT$2&ROW($DT159)),$DS159,$DS$2&ROW($DS159))))","v":"X=if(AS159=2,AU159*56.84,(if(AS159=3,AU159*56.84,AU159*if(AW159<(150),368,if(AW159<(600),758,1018)))))"},{"$f":"IF(I159=\"Manual Entry\",\"Manual\",IF(J159=\"\",0,\"X=\"&SUBSTITUTE(SUBSTITUTE(SUBSTITUTE(SUBSTITUTE(SUBSTITUTE(SUBSTITUTE(SUBSTITUTE(SUBSTITUTE(SUBSTITUTE(SUBSTITUTE(SUBSTITUTE(SUBSTITUTE(J159,$ED159,$ED$2&ROW($ED159)),$EC159,$EC$2&ROW($EC159)),$EB159,$EB$2&ROW($EB159)),$EA159,$EA$2&ROW($EA159)),$DZ159,$DZ$2&ROW($DZ159)),$DY159,$DY$2&ROW($DY159)),$DX159,$DX$2&ROW($DX159)),$DW159,$DW$2&ROW($DW159)),$DV159,$DV$2&ROW($DV159)),$DU159,$DU$2&ROW($DU159)),$DT159,$DT$2&ROW($DT159)),$DS159,$DS$2&ROW($DS159))))","v":"X=if(AW159<150,if(AY159<75,AY159,75)*AU159,if(AW159>500,if(AY159<250,AY159,250)*AU159,if(AY159<150,AY159,150)*AU159))+{Stipend/Paperwork Fee}"},{"$f":"IF(O159=\"\",0,\"X=\"&SUBSTITUTE(SUBSTITUTE(SUBSTITUTE(SUBSTITUTE(SUBSTITUTE(SUBSTITUTE(SUBSTITUTE(SUBSTITUTE(SUBSTITUTE(SUBSTITUTE(SUBSTITUTE(SUBSTITUTE(O159,$ED159,$ED$2&ROW($ED159)),$EC159,$EC$2&ROW($EC159)),$EB159,$EB$2&ROW($EB159)),$EA159,$EA$2&ROW($EA159)),$DZ159,$DZ$2&ROW($DZ159)),$DY159,$DY$2&ROW($DY159)),$DX159,$DX$2&ROW($DX159)),$DW159,$DW$2&ROW($DW159)),$DV159,$DV$2&ROW($DV159)),$DU159,$DU$2&ROW($DU159)),$DT159,$DT$2&ROW($DT159)),$DS159,$DS$2&ROW($DS159)))","v":"X=if(AS159=2,AU159*100.7,(if(AS159=3,AU159*100.7,AU159*if(AW159<(1.25*120),426,if(AW159<(5*120),804,2586)))))"},{"$f":"IF(P159=\"\",0,\"X=\"&SUBSTITUTE(SUBSTITUTE(SUBSTITUTE(SUBSTITUTE(SUBSTITUTE(SUBSTITUTE(SUBSTITUTE(SUBSTITUTE(SUBSTITUTE(SUBSTITUTE(SUBSTITUTE(SUBSTITUTE(P159,$ED159,$ED$2&ROW($ED159)),$EC159,$EC$2&ROW($EC159)),$EB159,$EB$2&ROW($EB159)),$EA159,$EA$2&ROW($EA159)),$DZ159,$DZ$2&ROW($DZ159)),$DY159,$DY$2&ROW($DY159)),$DX159,$DX$2&ROW($DX159)),$DW159,$DW$2&ROW($DW159)),$DV159,$DV$2&ROW($DV159)),$DU159,$DU$2&ROW($DU159)),$DT159,$DT$2&ROW($DT159)),$DS159,$DS$2&ROW($DS159)))","v":0},{"$f":"IF(Q159=\"\",0,\"X=\"&SUBSTITUTE(SUBSTITUTE(SUBSTITUTE(SUBSTITUTE(SUBSTITUTE(SUBSTITUTE(SUBSTITUTE(SUBSTITUTE(SUBSTITUTE(SUBSTITUTE(SUBSTITUTE(SUBSTITUTE(Q159,$ED159,$ED$2&ROW($ED159)),$EC159,$EC$2&ROW($EC159)),$EB159,$EB$2&ROW($EB159)),$EA159,$EA$2&ROW($EA159)),$DZ159,$DZ$2&ROW($DZ159)),$DY159,$DY$2&ROW($DY159)),$DX159,$DX$2&ROW($DX159)),$DW159,$DW$2&ROW($DW159)),$DV159,$DV$2&ROW($DV159)),$DU159,$DU$2&ROW($DU159)),$DT159,$DT$2&ROW($DT159)),$DS159,$DS$2&ROW($DS159)))","v":0},{"$f":"IF(R159=\"\",0,\"X=\"&SUBSTITUTE(SUBSTITUTE(SUBSTITUTE(SUBSTITUTE(SUBSTITUTE(SUBSTITUTE(SUBSTITUTE(SUBSTITUTE(SUBSTITUTE(SUBSTITUTE(SUBSTITUTE(SUBSTITUTE(R159,$ED159,$ED$2&ROW($ED159)),$EC159,$EC$2&ROW($EC159)),$EB159,$EB$2&ROW($EB159)),$EA159,$EA$2&ROW($EA159)),$DZ159,$DZ$2&ROW($DZ159)),$DY159,$DY$2&ROW($DY159)),$DX159,$DX$2&ROW($DX159)),$DW159,$DW$2&ROW($DW159)),$DV159,$DV$2&ROW($DV159)),$DU159,$DU$2&ROW($DU159)),$DT159,$DT$2&ROW($DT159)),$DS159,$DS$2&ROW($DS159)))","v":"X=if(AS159=2,AU159*0.0733,(if(AS159=3,AU159*0.0733,AU159*if(AW159<(1.25*120),426,if(AW159<(5*120),804,2586))/4858)))"},{"$f":"IF(S159=\"\",0,\"X=\"&SUBSTITUTE(SUBSTITUTE(SUBSTITUTE(SUBSTITUTE(SUBSTITUTE(SUBSTITUTE(SUBSTITUTE(SUBSTITUTE(SUBSTITUTE(SUBSTITUTE(SUBSTITUTE(SUBSTITUTE(S159,$ED159,$ED$2&ROW($ED159)),$EC159,$EC$2&ROW($EC159)),$EB159,$EB$2&ROW($EB159)),$EA159,$EA$2&ROW($EA159)),$DZ159,$DZ$2&ROW($DZ159)),$DY159,$DY$2&ROW($DY159)),$DX159,$DX$2&ROW($DX159)),$DW159,$DW$2&ROW($DW159)),$DV159,$DV$2&ROW($DV159)),$DU159,$DU$2&ROW($DU159)),$DT159,$DT$2&ROW($DT159)),$DS159,$DS$2&ROW($DS159)))","v":0},{"$f":"IF(T159=\"\",0,\"X=\"&SUBSTITUTE(SUBSTITUTE(SUBSTITUTE(SUBSTITUTE(SUBSTITUTE(SUBSTITUTE(SUBSTITUTE(SUBSTITUTE(SUBSTITUTE(SUBSTITUTE(SUBSTITUTE(SUBSTITUTE(T159,$ED159,$ED$2&ROW($ED159)),$EC159,$EC$2&ROW($EC159)),$EB159,$EB$2&ROW($EB159)),$EA159,$EA$2&ROW($EA159)),$DZ159,$DZ$2&ROW($DZ159)),$DY159,$DY$2&ROW($DY159)),$DX159,$DX$2&ROW($DX159)),$DW159,$DW$2&ROW($DW159)),$DV159,$DV$2&ROW($DV159)),$DU159,$DU$2&ROW($DU159)),$DT159,$DT$2&ROW($DT159)),$DS159,$DS$2&ROW($DS159)))","v":0},{"$f":"IF(U159=\"\",0,\"X=\"&SUBSTITUTE(SUBSTITUTE(SUBSTITUTE(SUBSTITUTE(SUBSTITUTE(SUBSTITUTE(SUBSTITUTE(SUBSTITUTE(SUBSTITUTE(SUBSTITUTE(SUBSTITUTE(SUBSTITUTE(U159,$ED159,$ED$2&ROW($ED159)),$EC159,$EC$2&ROW($EC159)),$EB159,$EB$2&ROW($EB159)),$EA159,$EA$2&ROW($EA159)),$DZ159,$DZ$2&ROW($DZ159)),$DY159,$DY$2&ROW($DY159)),$DX159,$DX$2&ROW($DX159)),$DW159,$DW$2&ROW($DW159)),$DV159,$DV$2&ROW($DV159)),$DU159,$DU$2&ROW($DU159)),$DT159,$DT$2&ROW($DT159)),$DS159,$DS$2&ROW($DS159)))","v":"X=if(AS159=2,AU159*0.0363,(if(AS159=3,AU159*0.0363,AU159*if(AW159<(1.25*120),426,if(AW159<(5*120),804,2586))/4858*AF159)))"},{"$f":"IF(V159=\"\",0,\"X=\"&SUBSTITUTE(SUBSTITUTE(SUBSTITUTE(SUBSTITUTE(SUBSTITUTE(SUBSTITUTE(SUBSTITUTE(SUBSTITUTE(SUBSTITUTE(SUBSTITUTE(SUBSTITUTE(SUBSTITUTE(V159,$ED159,$ED$2&ROW($ED159)),$EC159,$EC$2&ROW($EC159)),$EB159,$EB$2&ROW($EB159)),$EA159,$EA$2&ROW($EA159)),$DZ159,$DZ$2&ROW($DZ159)),$DY159,$DY$2&ROW($DY159)),$DX159,$DX$2&ROW($DX159)),$DW159,$DW$2&ROW($DW159)),$DV159,$DV$2&ROW($DV159)),$DU159,$DU$2&ROW($DU159)),$DT159,$DT$2&ROW($DT159)),$DS159,$DS$2&ROW($DS159)))","v":"X=if(AS159=2,AU159*0,(if(AS159=3,AU159*0,AU159*if(AW159<(1.25*120),426,if(AW159<(5*120),804,2586))/4858*AG159)))"},{"$f":"IF(W159=\"\",0,\"X=\"&SUBSTITUTE(SUBSTITUTE(SUBSTITUTE(SUBSTITUTE(SUBSTITUTE(SUBSTITUTE(SUBSTITUTE(SUBSTITUTE(SUBSTITUTE(SUBSTITUTE(SUBSTITUTE(SUBSTITUTE(W159,$ED159,$ED$2&ROW($ED159)),$EC159,$EC$2&ROW($EC159)),$EB159,$EB$2&ROW($EB159)),$EA159,$EA$2&ROW($EA159)),$DZ159,$DZ$2&ROW($DZ159)),$DY159,$DY$2&ROW($DY159)),$DX159,$DX$2&ROW($DX159)),$DW159,$DW$2&ROW($DW159)),$DV159,$DV$2&ROW($DV159)),$DU159,$DU$2&ROW($DU159)),$DT159,$DT$2&ROW($DT159)),$DS159,$DS$2&ROW($DS159)))","v":0},{"$f":"IF(X159=\"\",0,\"X=\"&SUBSTITUTE(SUBSTITUTE(SUBSTITUTE(SUBSTITUTE(SUBSTITUTE(SUBSTITUTE(SUBSTITUTE(SUBSTITUTE(SUBSTITUTE(SUBSTITUTE(SUBSTITUTE(SUBSTITUTE(X159,$ED159,$ED$2&ROW($ED159)),$EC159,$EC$2&ROW($EC159)),$EB159,$EB$2&ROW($EB159)),$EA159,$EA$2&ROW($EA159)),$DZ159,$DZ$2&ROW($DZ159)),$DY159,$DY$2&ROW($DY159)),$DX159,$DX$2&ROW($DX159)),$DW159,$DW$2&ROW($DW159)),$DV159,$DV$2&ROW($DV159)),$DU159,$DU$2&ROW($DU159)),$DT159,$DT$2&ROW($DT159)),$DS159,$DS$2&ROW($DS159)))","v":0},{"$f":"IF(Y159=\"\",0,\"X=\"&SUBSTITUTE(SUBSTITUTE(SUBSTITUTE(SUBSTITUTE(SUBSTITUTE(SUBSTITUTE(SUBSTITUTE(SUBSTITUTE(SUBSTITUTE(SUBSTITUTE(SUBSTITUTE(SUBSTITUTE(Y159,$ED159,$ED$2&ROW($ED159)),$EC159,$EC$2&ROW($EC159)),$EB159,$EB$2&ROW($EB159)),$EA159,$EA$2&ROW($EA159)),$DZ159,$DZ$2&ROW($DZ159)),$DY159,$DY$2&ROW($DY159)),$DX159,$DX$2&ROW($DX159)),$DW159,$DW$2&ROW($DW159)),$DV159,$DV$2&ROW($DV159)),$DU159,$DU$2&ROW($DU159)),$DT159,$DT$2&ROW($DT159)),$DS159,$DS$2&ROW($DS159)))","v":0},{"$f":"IF(Z159=\"\",0,\"X=\"&SUBSTITUTE(SUBSTITUTE(SUBSTITUTE(SUBSTITUTE(SUBSTITUTE(SUBSTITUTE(SUBSTITUTE(SUBSTITUTE(SUBSTITUTE(SUBSTITUTE(SUBSTITUTE(SUBSTITUTE(Z159,$ED159,$ED$2&ROW($ED159)),$EC159,$EC$2&ROW($EC159)),$EB159,$EB$2&ROW($EB159)),$EA159,$EA$2&ROW($EA159)),$DZ159,$DZ$2&ROW($DZ159)),$DY159,$DY$2&ROW($DY159)),$DX159,$DX$2&ROW($DX159)),$DW159,$DW$2&ROW($DW159)),$DV159,$DV$2&ROW($DV159)),$DU159,$DU$2&ROW($DU159)),$DT159,$DT$2&ROW($DT159)),$DS159,$DS$2&ROW($DS159)))","v":0},{"$f":"IF(AA159=\"\",0,\"X=\"&SUBSTITUTE(SUBSTITUTE(SUBSTITUTE(SUBSTITUTE(SUBSTITUTE(SUBSTITUTE(SUBSTITUTE(SUBSTITUTE(SUBSTITUTE(SUBSTITUTE(SUBSTITUTE(SUBSTITUTE(AA159,$ED159,$ED$2&ROW($ED159)),$EC159,$EC$2&ROW($EC159)),$EB159,$EB$2&ROW($EB159)),$EA159,$EA$2&ROW($EA159)),$DZ159,$DZ$2&ROW($DZ159)),$DY159,$DY$2&ROW($DY159)),$DX159,$DX$2&ROW($DX159)),$DW159,$DW$2&ROW($DW159)),$DV159,$DV$2&ROW($DV159)),$DU159,$DU$2&ROW($DU159)),$DT159,$DT$2&ROW($DT159)),$DS159,$DS$2&ROW($DS159)))","v":0},{"$f":"IF(AB159=\"\",0,\"X=\"&SUBSTITUTE(SUBSTITUTE(SUBSTITUTE(SUBSTITUTE(SUBSTITUTE(SUBSTITUTE(SUBSTITUTE(SUBSTITUTE(SUBSTITUTE(SUBSTITUTE(SUBSTITUTE(SUBSTITUTE(AB159,$ED159,$ED$2&ROW($ED159)),$EC159,$EC$2&ROW($EC159)),$EB159,$EB$2&ROW($EB159)),$EA159,$EA$2&ROW($EA159)),$DZ159,$DZ$2&ROW($DZ159)),$DY159,$DY$2&ROW($DY159)),$DX159,$DX$2&ROW($DX159)),$DW159,$DW$2&ROW($DW159)),$DV159,$DV$2&ROW($DV159)),$DU159,$DU$2&ROW($DU159)),$DT159,$DT$2&ROW($DT159)),$DS159,$DS$2&ROW($DS159)))","v":0},null,null,"{Factor:WinterCF}","{Factor:SummerCF}",{"$f":"IFERROR(INDEX($EG159:$IV159,MATCH(0,COUNTIF($DR159:DT159,$EG159:$IV159),0)),\"\")","v":"{Customer Type}"},{"$f":"IFERROR(INDEX($EG159:$IV159,MATCH(0,COUNTIF($DR159:DU159,$EG159:$IV159),0)),\"\")","v":"{Measure:Quantity}"},{"$f":"IFERROR(INDEX($EG159:$IV159,MATCH(0,COUNTIF($DR159:DV159,$EG159:$IV159),0)),\"\")","v":"{Rated Watts}"},{"$f":"IFERROR(INDEX($EG159:$IV159,MATCH(0,COUNTIF($DR159:DW159,$EG159:$IV159),0)),\"\")","v":"{Retail Price}"},{"$f":"IFERROR(INDEX($EG159:$IV159,MATCH(0,COUNTIF($DR159:DX159,$EG159:$IV159),0)),\"\")","v":""},{"$f":"IFERROR(INDEX($EG159:$IV159,MATCH(0,COUNTIF($DR159:DY159,$EG159:$IV159),0)),\"\")","v":""},{"$f":"IFERROR(INDEX($EG159:$IV159,MATCH(0,COUNTIF($DR159:DZ159,$EG159:$IV159),0)),\"\")","v":""},{"$f":"IFERROR(INDEX($EG159:$IV159,MATCH(0,COUNTIF($DR159:EA159,$EG159:$IV159),0)),\"\")","v":""},{"$f":"IFERROR(INDEX($EG159:$IV159,MATCH(0,COUNTIF($DR159:EB159,$EG159:$IV159),0)),\"\")","v":""},{"$f":"IFERROR(INDEX($EG159:$IV159,MATCH(0,COUNTIF($DR159:EC159,$EG159:$IV159),0)),\"\")","v":""},null,null,{"$f":"IFERROR(MID($G159,FIND(CHAR(160),SUBSTITUTE($G159,\"{\",CHAR(160),EG$1)),FIND(CHAR(160),SUBSTITUTE($G159,\"}\",CHAR(160),EG$1))-FIND(CHAR(160),SUBSTITUTE($G159,\"{\",CHAR(160),EG$1))+1),\"\")","v":"{Customer Type}"},{"$f":"IFERROR(MID($G159,FIND(CHAR(160),SUBSTITUTE($G159,\"{\",CHAR(160),EH$1)),FIND(CHAR(160),SUBSTITUTE($G159,\"}\",CHAR(160),EH$1))-FIND(CHAR(160),SUBSTITUTE($G159,\"{\",CHAR(160),EH$1))+1),\"\")","v":"{Measure:Quantity}"},{"$f":"IFERROR(MID($G159,FIND(CHAR(160),SUBSTITUTE($G159,\"{\",CHAR(160),EI$1)),FIND(CHAR(160),SUBSTITUTE($G159,\"}\",CHAR(160),EI$1))-FIND(CHAR(160),SUBSTITUTE($G159,\"{\",CHAR(160),EI$1))+1),\"\")","v":"{Customer Type}"},{"$f":"IFERROR(MID($G159,FIND(CHAR(160),SUBSTITUTE($G159,\"{\",CHAR(160),EJ$1)),FIND(CHAR(160),SUBSTITUTE($G159,\"}\",CHAR(160),EJ$1))-FIND(CHAR(160),SUBSTITUTE($G159,\"{\",CHAR(160),EJ$1))+1),\"\")","v":"{Measure:Quantity}"},{"$f":"IFERROR(MID($G159,FIND(CHAR(160),SUBSTITUTE($G159,\"{\",CHAR(160),EK$1)),FIND(CHAR(160),SUBSTITUTE($G159,\"}\",CHAR(160),EK$1))-FIND(CHAR(160),SUBSTITUTE($G159,\"{\",CHAR(160),EK$1))+1),\"\")","v":"{Measure:Quantity}"},{"$f":"IFERROR(MID($G159,FIND(CHAR(160),SUBSTITUTE($G159,\"{\",CHAR(160),EL$1)),FIND(CHAR(160),SUBSTITUTE($G159,\"}\",CHAR(160),EL$1))-FIND(CHAR(160),SUBSTITUTE($G159,\"{\",CHAR(160),EL$1))+1),\"\")","v":"{Rated Watts}"},{"$f":"IFERROR(MID($G159,FIND(CHAR(160),SUBSTITUTE($G159,\"{\",CHAR(160),EM$1)),FIND(CHAR(160),SUBSTITUTE($G159,\"}\",CHAR(160),EM$1))-FIND(CHAR(160),SUBSTITUTE($G159,\"{\",CHAR(160),EM$1))+1),\"\")","v":"{Rated Watts}"},{"$f":"IFERROR(MID($G159,FIND(CHAR(160),SUBSTITUTE($G159,\"{\",CHAR(160),EN$1)),FIND(CHAR(160),SUBSTITUTE($G159,\"}\",CHAR(160),EN$1))-FIND(CHAR(160),SUBSTITUTE($G159,\"{\",CHAR(160),EN$1))+1),\"\")","v":""},{"$f":"IFERROR(MID($G159,FIND(CHAR(160),SUBSTITUTE($G159,\"{\",CHAR(160),EO$1)),FIND(CHAR(160),SUBSTITUTE($G159,\"}\",CHAR(160),EO$1))-FIND(CHAR(160),SUBSTITUTE($G159,\"{\",CHAR(160),EO$1))+1),\"\")","v":""},{"$f":"IFERROR(MID($G159,FIND(CHAR(160),SUBSTITUTE($G159,\"{\",CHAR(160),EP$1)),FIND(CHAR(160),SUBSTITUTE($G159,\"}\",CHAR(160),EP$1))-FIND(CHAR(160),SUBSTITUTE($G159,\"{\",CHAR(160),EP$1))+1),\"\")","v":""},{"$f":"IFERROR(MID($J159,FIND(CHAR(160),SUBSTITUTE($J159,\"{\",CHAR(160),EQ$1)),FIND(CHAR(160),SUBSTITUTE($J159,\"}\",CHAR(160),EQ$1))-FIND(CHAR(160),SUBSTITUTE($J159,\"{\",CHAR(160),EQ$1))+1),\"\")","v":"{Rated Watts}"},{"$f":"IFERROR(MID($J159,FIND(CHAR(160),SUBSTITUTE($J159,\"{\",CHAR(160),ER$1)),FIND(CHAR(160),SUBSTITUTE($J159,\"}\",CHAR(160),ER$1))-FIND(CHAR(160),SUBSTITUTE($J159,\"{\",CHAR(160),ER$1))+1),\"\")","v":"{Retail Price}"},{"$f":"IFERROR(MID($J159,FIND(CHAR(160),SUBSTITUTE($J159,\"{\",CHAR(160),ES$1)),FIND(CHAR(160),SUBSTITUTE($J159,\"}\",CHAR(160),ES$1))-FIND(CHAR(160),SUBSTITUTE($J159,\"{\",CHAR(160),ES$1))+1),\"\")","v":"{Retail Price}"},{"$f":"IFERROR(MID($J159,FIND(CHAR(160),SUBSTITUTE($J159,\"{\",CHAR(160),ET$1)),FIND(CHAR(160),SUBSTITUTE($J159,\"}\",CHAR(160),ET$1))-FIND(CHAR(160),SUBSTITUTE($J159,\"{\",CHAR(160),ET$1))+1),\"\")","v":"{Measure:Quantity}"},{"$f":"IFERROR(MID($J159,FIND(CHAR(160),SUBSTITUTE($J159,\"{\",CHAR(160),EU$1)),FIND(CHAR(160),SUBSTITUTE($J159,\"}\",CHAR(160),EU$1))-FIND(CHAR(160),SUBSTITUTE($J159,\"{\",CHAR(160),EU$1))+1),\"\")","v":"{Rated Watts}"},{"$f":"IFERROR(MID($J159,FIND(CHAR(160),SUBSTITUTE($J159,\"{\",CHAR(160),EV$1)),FIND(CHAR(160),SUBSTITUTE($J159,\"}\",CHAR(160),EV$1))-FIND(CHAR(160),SUBSTITUTE($J159,\"{\",CHAR(160),EV$1))+1),\"\")","v":"{Retail Price}"},{"$f":"IFERROR(MID($J159,FIND(CHAR(160),SUBSTITUTE($J159,\"{\",CHAR(160),EW$1)),FIND(CHAR(160),SUBSTITUTE($J159,\"}\",CHAR(160),EW$1))-FIND(CHAR(160),SUBSTITUTE($J159,\"{\",CHAR(160),EW$1))+1),\"\")","v":"{Retail Price}"},{"$f":"IFERROR(MID($J159,FIND(CHAR(160),SUBSTITUTE($J159,\"{\",CHAR(160),EX$1)),FIND(CHAR(160),SUBSTITUTE($J159,\"}\",CHAR(160),EX$1))-FIND(CHAR(160),SUBSTITUTE($J159,\"{\",CHAR(160),EX$1))+1),\"\")","v":"{Measure:Quantity}"},{"$f":"IFERROR(MID($J159,FIND(CHAR(160),SUBSTITUTE($J159,\"{\",CHAR(160),EY$1)),FIND(CHAR(160),SUBSTITUTE($J159,\"}\",CHAR(160),EY$1))-FIND(CHAR(160),SUBSTITUTE($J159,\"{\",CHAR(160),EY$1))+1),\"\")","v":"{Retail Price}"},{"$f":"IFERROR(MID($J159,FIND(CHAR(160),SUBSTITUTE($J159,\"{\",CHAR(160),EZ$1)),FIND(CHAR(160),SUBSTITUTE($J159,\"}\",CHAR(160),EZ$1))-FIND(CHAR(160),SUBSTITUTE($J159,\"{\",CHAR(160),EZ$1))+1),\"\")","v":"{Retail Price}"},{"$f":"IFERROR(MID($J159,FIND(CHAR(160),SUBSTITUTE($J159,\"{\",CHAR(160),FA$1)),FIND(CHAR(160),SUBSTITUTE($J159,\"}\",CHAR(160),FA$1))-FIND(CHAR(160),SUBSTITUTE($J159,\"{\",CHAR(160),FA$1))+1),\"\")","v":"{Rated Watts}"},{"$f":"IFERROR(MID($J159,FIND(CHAR(160),SUBSTITUTE($J159,\"{\",CHAR(160),FB$1)),FIND(CHAR(160),SUBSTITUTE($J159,\"}\",CHAR(160),FB$1))-FIND(CHAR(160),SUBSTITUTE($J159,\"{\",CHAR(160),FB$1))+1),\"\")","v":"{Retail Price}"},{"$f":"IFERROR(MID($O159,FIND(CHAR(160),SUBSTITUTE($O159,\"{\",CHAR(160),FC$1)),FIND(CHAR(160),SUBSTITUTE($O159,\"}\",CHAR(160),FC$1))-FIND(CHAR(160),SUBSTITUTE($O159,\"{\",CHAR(160),FC$1))+1),\"\")","v":"{Customer Type}"},{"$f":"IFERROR(MID($O159,FIND(CHAR(160),SUBSTITUTE($O159,\"{\",CHAR(160),FD$1)),FIND(CHAR(160),SUBSTITUTE($O159,\"}\",CHAR(160),FD$1))-FIND(CHAR(160),SUBSTITUTE($O159,\"{\",CHAR(160),FD$1))+1),\"\")","v":"{Measure:Quantity}"},{"$f":"IFERROR(MID($O159,FIND(CHAR(160),SUBSTITUTE($O159,\"{\",CHAR(160),FE$1)),FIND(CHAR(160),SUBSTITUTE($O159,\"}\",CHAR(160),FE$1))-FIND(CHAR(160),SUBSTITUTE($O159,\"{\",CHAR(160),FE$1))+1),\"\")","v":"{Measure:Quantity}"},{"$f":"IFERROR(MID($O159,FIND(CHAR(160),SUBSTITUTE($O159,\"{\",CHAR(160),FF$1)),FIND(CHAR(160),SUBSTITUTE($O159,\"}\",CHAR(160),FF$1))-FIND(CHAR(160),SUBSTITUTE($O159,\"{\",CHAR(160),FF$1))+1),\"\")","v":"{Rated Watts}"},{"$f":"IFERROR(MID($O159,FIND(CHAR(160),SUBSTITUTE($O159,\"{\",CHAR(160),FG$1)),FIND(CHAR(160),SUBSTITUTE($O159,\"}\",CHAR(160),FG$1))-FIND(CHAR(160),SUBSTITUTE($O159,\"{\",CHAR(160),FG$1))+1),\"\")","v":"{Rated Watts}"},{"$f":"IFERROR(MID($O159,FIND(CHAR(160),SUBSTITUTE($O159,\"{\",CHAR(160),FH$1)),FIND(CHAR(160),SUBSTITUTE($O159,\"}\",CHAR(160),FH$1))-FIND(CHAR(160),SUBSTITUTE($O159,\"{\",CHAR(160),FH$1))+1),\"\")","v":""},{"$f":"IFERROR(MID($O159,FIND(CHAR(160),SUBSTITUTE($O159,\"{\",CHAR(160),FI$1)),FIND(CHAR(160),SUBSTITUTE($O159,\"}\",CHAR(160),FI$1))-FIND(CHAR(160),SUBSTITUTE($O159,\"{\",CHAR(160),FI$1))+1),\"\")","v":""},{"$f":"IFERROR(MID($O159,FIND(CHAR(160),SUBSTITUTE($O159,\"{\",CHAR(160),FJ$1)),FIND(CHAR(160),SUBSTITUTE($O159,\"}\",CHAR(160),FJ$1))-FIND(CHAR(160),SUBSTITUTE($O159,\"{\",CHAR(160),FJ$1))+1),\"\")","v":""},{"$f":"IFERROR(MID($O159,FIND(CHAR(160),SUBSTITUTE($O159,\"{\",CHAR(160),FK$1)),FIND(CHAR(160),SUBSTITUTE($O159,\"}\",CHAR(160),FK$1))-FIND(CHAR(160),SUBSTITUTE($O159,\"{\",CHAR(160),FK$1))+1),\"\")","v":"{Customer Type}"},{"$f":"IFERROR(MID($O159,FIND(CHAR(160),SUBSTITUTE($O159,\"{\",CHAR(160),FL$1)),FIND(CHAR(160),SUBSTITUTE($O159,\"}\",CHAR(160),FL$1))-FIND(CHAR(160),SUBSTITUTE($O159,\"{\",CHAR(160),FL$1))+1),\"\")","v":"{Measure:Quantity}"},{"$f":"IFERROR(MID($R159,FIND(CHAR(160),SUBSTITUTE($R159,\"{\",CHAR(160),FM$1)),FIND(CHAR(160),SUBSTITUTE($R159,\"}\",CHAR(160),FM$1))-FIND(CHAR(160),SUBSTITUTE($R159,\"{\",CHAR(160),FM$1))+1),\"\")","v":"{Customer Type}"},{"$f":"IFERROR(MID($R159,FIND(CHAR(160),SUBSTITUTE($R159,\"{\",CHAR(160),FN$1)),FIND(CHAR(160),SUBSTITUTE($R159,\"}\",CHAR(160),FN$1))-FIND(CHAR(160),SUBSTITUTE($R159,\"{\",CHAR(160),FN$1))+1),\"\")","v":"{Measure:Quantity}"},{"$f":"IFERROR(MID($R159,FIND(CHAR(160),SUBSTITUTE($R159,\"{\",CHAR(160),FO$1)),FIND(CHAR(160),SUBSTITUTE($R159,\"}\",CHAR(160),FO$1))-FIND(CHAR(160),SUBSTITUTE($R159,\"{\",CHAR(160),FO$1))+1),\"\")","v":"{Measure:Quantity}"},{"$f":"IFERROR(MID($R159,FIND(CHAR(160),SUBSTITUTE($R159,\"{\",CHAR(160),FP$1)),FIND(CHAR(160),SUBSTITUTE($R159,\"}\",CHAR(160),FP$1))-FIND(CHAR(160),SUBSTITUTE($R159,\"{\",CHAR(160),FP$1))+1),\"\")","v":"{Rated Watts}"},{"$f":"IFERROR(MID($R159,FIND(CHAR(160),SUBSTITUTE($R159,\"{\",CHAR(160),FQ$1)),FIND(CHAR(160),SUBSTITUTE($R159,\"}\",CHAR(160),FQ$1))-FIND(CHAR(160),SUBSTITUTE($R159,\"{\",CHAR(160),FQ$1))+1),\"\")","v":"{Rated Watts}"},{"$f":"IFERROR(MID($R159,FIND(CHAR(160),SUBSTITUTE($R159,\"{\",CHAR(160),FR$1)),FIND(CHAR(160),SUBSTITUTE($R159,\"}\",CHAR(160),FR$1))-FIND(CHAR(160),SUBSTITUTE($R159,\"{\",CHAR(160),FR$1))+1),\"\")","v":""},{"$f":"IFERROR(MID($R159,FIND(CHAR(160),SUBSTITUTE($R159,\"{\",CHAR(160),FS$1)),FIND(CHAR(160),SUBSTITUTE($R159,\"}\",CHAR(160),FS$1))-FIND(CHAR(160),SUBSTITUTE($R159,\"{\",CHAR(160),FS$1))+1),\"\")","v":""},{"$f":"IFERROR(MID($R159,FIND(CHAR(160),SUBSTITUTE($R159,\"{\",CHAR(160),FT$1)),FIND(CHAR(160),SUBSTITUTE($R159,\"}\",CHAR(160),FT$1))-FIND(CHAR(160),SUBSTITUTE($R159,\"{\",CHAR(160),FT$1))+1),\"\")","v":""},{"$f":"IFERROR(MID($R159,FIND(CHAR(160),SUBSTITUTE($R159,\"{\",CHAR(160),FU$1)),FIND(CHAR(160),SUBSTITUTE($R159,\"}\",CHAR(160),FU$1))-FIND(CHAR(160),SUBSTITUTE($R159,\"{\",CHAR(160),FU$1))+1),\"\")","v":"{Customer Type}"},{"$f":"IFERROR(MID($R159,FIND(CHAR(160),SUBSTITUTE($R159,\"{\",CHAR(160),FV$1)),FIND(CHAR(160),SUBSTITUTE($R159,\"}\",CHAR(160),FV$1))-FIND(CHAR(160),SUBSTITUTE($R159,\"{\",CHAR(160),FV$1))+1),\"\")","v":"{Measure:Quantity}"},{"$f":"IFERROR(MID($U159,FIND(CHAR(160),SUBSTITUTE($U159,\"{\",CHAR(160),FW$1)),FIND(CHAR(160),SUBSTITUTE($U159,\"}\",CHAR(160),FW$1))-FIND(CHAR(160),SUBSTITUTE($U159,\"{\",CHAR(160),FW$1))+1),\"\")","v":"{Customer Type}"},{"$f":"IFERROR(MID($U159,FIND(CHAR(160),SUBSTITUTE($U159,\"{\",CHAR(160),FX$1)),FIND(CHAR(160),SUBSTITUTE($U159,\"}\",CHAR(160),FX$1))-FIND(CHAR(160),SUBSTITUTE($U159,\"{\",CHAR(160),FX$1))+1),\"\")","v":"{Measure:Quantity}"},{"$f":"IFERROR(MID($U159,FIND(CHAR(160),SUBSTITUTE($U159,\"{\",CHAR(160),FY$1)),FIND(CHAR(160),SUBSTITUTE($U159,\"}\",CHAR(160),FY$1))-FIND(CHAR(160),SUBSTITUTE($U159,\"{\",CHAR(160),FY$1))+1),\"\")","v":"{Measure:Quantity}"},{"$f":"IFERROR(MID($U159,FIND(CHAR(160),SUBSTITUTE($U159,\"{\",CHAR(160),FZ$1)),FIND(CHAR(160),SUBSTITUTE($U159,\"}\",CHAR(160),FZ$1))-FIND(CHAR(160),SUBSTITUTE($U159,\"{\",CHAR(160),FZ$1))+1),\"\")","v":"{Rated Watts}"},{"$f":"IFERROR(MID($U159,FIND(CHAR(160),SUBSTITUTE($U159,\"{\",CHAR(160),GA$1)),FIND(CHAR(160),SUBSTITUTE($U159,\"}\",CHAR(160),GA$1))-FIND(CHAR(160),SUBSTITUTE($U159,\"{\",CHAR(160),GA$1))+1),\"\")","v":"{Rated Watts}"},{"$f":"IFERROR(MID($U159,FIND(CHAR(160),SUBSTITUTE($U159,\"{\",CHAR(160),GB$1)),FIND(CHAR(160),SUBSTITUTE($U159,\"}\",CHAR(160),GB$1))-FIND(CHAR(160),SUBSTITUTE($U159,\"{\",CHAR(160),GB$1))+1),\"\")","v":"{Factor:WinterCF}"},{"$f":"IFERROR(MID($U159,FIND(CHAR(160),SUBSTITUTE($U159,\"{\",CHAR(160),GC$1)),FIND(CHAR(160),SUBSTITUTE($U159,\"}\",CHAR(160),GC$1))-FIND(CHAR(160),SUBSTITUTE($U159,\"{\",CHAR(160),GC$1))+1),\"\")","v":""},{"$f":"IFERROR(MID($U159,FIND(CHAR(160),SUBSTITUTE($U159,\"{\",CHAR(160),GD$1)),FIND(CHAR(160),SUBSTITUTE($U159,\"}\",CHAR(160),GD$1))-FIND(CHAR(160),SUBSTITUTE($U159,\"{\",CHAR(160),GD$1))+1),\"\")","v":""},{"$f":"IFERROR(MID($U159,FIND(CHAR(160),SUBSTITUTE($U159,\"{\",CHAR(160),GE$1)),FIND(CHAR(160),SUBSTITUTE($U159,\"}\",CHAR(160),GE$1))-FIND(CHAR(160),SUBSTITUTE($U159,\"{\",CHAR(160),GE$1))+1),\"\")","v":"{Customer Type}"},{"$f":"IFERROR(MID($U159,FIND(CHAR(160),SUBSTITUTE($U159,\"{\",CHAR(160),GF$1)),FIND(CHAR(160),SUBSTITUTE($U159,\"}\",CHAR(160),GF$1))-FIND(CHAR(160),SUBSTITUTE($U159,\"{\",CHAR(160),GF$1))+1),\"\")","v":"{Measure:Quantity}"},{"$f":"IFERROR(MID($V159,FIND(CHAR(160),SUBSTITUTE($V159,\"{\",CHAR(160),GG$1)),FIND(CHAR(160),SUBSTITUTE($V159,\"}\",CHAR(160),GG$1))-FIND(CHAR(160),SUBSTITUTE($V159,\"{\",CHAR(160),GG$1))+1),\"\")","v":"{Customer Type}"},{"$f":"IFERROR(MID($V159,FIND(CHAR(160),SUBSTITUTE($V159,\"{\",CHAR(160),GH$1)),FIND(CHAR(160),SUBSTITUTE($V159,\"}\",CHAR(160),GH$1))-FIND(CHAR(160),SUBSTITUTE($V159,\"{\",CHAR(160),GH$1))+1),\"\")","v":"{Measure:Quantity}"},{"$f":"IFERROR(MID($V159,FIND(CHAR(160),SUBSTITUTE($V159,\"{\",CHAR(160),GI$1)),FIND(CHAR(160),SUBSTITUTE($V159,\"}\",CHAR(160),GI$1))-FIND(CHAR(160),SUBSTITUTE($V159,\"{\",CHAR(160),GI$1))+1),\"\")","v":"{Measure:Quantity}"},{"$f":"IFERROR(MID($V159,FIND(CHAR(160),SUBSTITUTE($V159,\"{\",CHAR(160),GJ$1)),FIND(CHAR(160),SUBSTITUTE($V159,\"}\",CHAR(160),GJ$1))-FIND(CHAR(160),SUBSTITUTE($V159,\"{\",CHAR(160),GJ$1))+1),\"\")","v":"{Rated Watts}"},{"$f":"IFERROR(MID($V159,FIND(CHAR(160),SUBSTITUTE($V159,\"{\",CHAR(160),GK$1)),FIND(CHAR(160),SUBSTITUTE($V159,\"}\",CHAR(160),GK$1))-FIND(CHAR(160),SUBSTITUTE($V159,\"{\",CHAR(160),GK$1))+1),\"\")","v":"{Rated Watts}"},{"$f":"IFERROR(MID($V159,FIND(CHAR(160),SUBSTITUTE($V159,\"{\",CHAR(160),GL$1)),FIND(CHAR(160),SUBSTITUTE($V159,\"}\",CHAR(160),GL$1))-FIND(CHAR(160),SUBSTITUTE($V159,\"{\",CHAR(160),GL$1))+1),\"\")","v":"{Factor:SummerCF}"},{"$f":"IFERROR(MID($V159,FIND(CHAR(160),SUBSTITUTE($V159,\"{\",CHAR(160),GM$1)),FIND(CHAR(160),SUBSTITUTE($V159,\"}\",CHAR(160),GM$1))-FIND(CHAR(160),SUBSTITUTE($V159,\"{\",CHAR(160),GM$1))+1),\"\")","v":""},{"$f":"IFERROR(MID($V159,FIND(CHAR(160),SUBSTITUTE($V159,\"{\",CHAR(160),GN$1)),FIND(CHAR(160),SUBSTITUTE($V159,\"}\",CHAR(160),GN$1))-FIND(CHAR(160),SUBSTITUTE($V159,\"{\",CHAR(160),GN$1))+1),\"\")","v":""},{"$f":"IFERROR(MID($V159,FIND(CHAR(160),SUBSTITUTE($V159,\"{\",CHAR(160),GO$1)),FIND(CHAR(160),SUBSTITUTE($V159,\"}\",CHAR(160),GO$1))-FIND(CHAR(160),SUBSTITUTE($V159,\"{\",CHAR(160),GO$1))+1),\"\")","v":"{Customer Type}"},{"$f":"IFERROR(MID($V159,FIND(CHAR(160),SUBSTITUTE($V159,\"{\",CHAR(160),GP$1)),FIND(CHAR(160),SUBSTITUTE($V159,\"}\",CHAR(160),GP$1))-FIND(CHAR(160),SUBSTITUTE($V159,\"{\",CHAR(160),GP$1))+1),\"\")","v":"{Measure:Quantity}"},{"$f":"IFERROR(MID($W159,FIND(CHAR(160),SUBSTITUTE($W159,\"{\",CHAR(160),GQ$1)),FIND(CHAR(160),SUBSTITUTE($W159,\"}\",CHAR(160),GQ$1))-FIND(CHAR(160),SUBSTITUTE($W159,\"{\",CHAR(160),GQ$1))+1),\"\")","v":""},{"$f":"IFERROR(MID($W159,FIND(CHAR(160),SUBSTITUTE($W159,\"{\",CHAR(160),GR$1)),FIND(CHAR(160),SUBSTITUTE($W159,\"}\",CHAR(160),GR$1))-FIND(CHAR(160),SUBSTITUTE($W159,\"{\",CHAR(160),GR$1))+1),\"\")","v":""},{"$f":"IFERROR(MID($W159,FIND(CHAR(160),SUBSTITUTE($W159,\"{\",CHAR(160),GS$1)),FIND(CHAR(160),SUBSTITUTE($W159,\"}\",CHAR(160),GS$1))-FIND(CHAR(160),SUBSTITUTE($W159,\"{\",CHAR(160),GS$1))+1),\"\")","v":""},{"$f":"IFERROR(MID($W159,FIND(CHAR(160),SUBSTITUTE($W159,\"{\",CHAR(160),GT$1)),FIND(CHAR(160),SUBSTITUTE($W159,\"}\",CHAR(160),GT$1))-FIND(CHAR(160),SUBSTITUTE($W159,\"{\",CHAR(160),GT$1))+1),\"\")","v":""},{"$f":"IFERROR(MID($W159,FIND(CHAR(160),SUBSTITUTE($W159,\"{\",CHAR(160),GU$1)),FIND(CHAR(160),SUBSTITUTE($W159,\"}\",CHAR(160),GU$1))-FIND(CHAR(160),SUBSTITUTE($W159,\"{\",CHAR(160),GU$1))+1),\"\")","v":""},{"$f":"IFERROR(MID($W159,FIND(CHAR(160),SUBSTITUTE($W159,\"{\",CHAR(160),GV$1)),FIND(CHAR(160),SUBSTITUTE($W159,\"}\",CHAR(160),GV$1))-FIND(CHAR(160),SUBSTITUTE($W159,\"{\",CHAR(160),GV$1))+1),\"\")","v":""},{"$f":"IFERROR(MID($W159,FIND(CHAR(160),SUBSTITUTE($W159,\"{\",CHAR(160),GW$1)),FIND(CHAR(160),SUBSTITUTE($W159,\"}\",CHAR(160),GW$1))-FIND(CHAR(160),SUBSTITUTE($W159,\"{\",CHAR(160),GW$1))+1),\"\")","v":""},{"$f":"IFERROR(MID($W159,FIND(CHAR(160),SUBSTITUTE($W159,\"{\",CHAR(160),GX$1)),FIND(CHAR(160),SUBSTITUTE($W159,\"}\",CHAR(160),GX$1))-FIND(CHAR(160),SUBSTITUTE($W159,\"{\",CHAR(160),GX$1))+1),\"\")","v":""},{"$f":"IFERROR(MID($W159,FIND(CHAR(160),SUBSTITUTE($W159,\"{\",CHAR(160),GY$1)),FIND(CHAR(160),SUBSTITUTE($W159,\"}\",CHAR(160),GY$1))-FIND(CHAR(160),SUBSTITUTE($W159,\"{\",CHAR(160),GY$1))+1),\"\")","v":""},{"$f":"IFERROR(MID($W159,FIND(CHAR(160),SUBSTITUTE($W159,\"{\",CHAR(160),GZ$1)),FIND(CHAR(160),SUBSTITUTE($W159,\"}\",CHAR(160),GZ$1))-FIND(CHAR(160),SUBSTITUTE($W159,\"{\",CHAR(160),GZ$1))+1),\"\")","v":""},{"$f":"IFERROR(MID($X159,FIND(CHAR(160),SUBSTITUTE($X159,\"{\",CHAR(160),HA$1)),FIND(CHAR(160),SUBSTITUTE($X159,\"}\",CHAR(160),HA$1))-FIND(CHAR(160),SUBSTITUTE($X159,\"{\",CHAR(160),HA$1))+1),\"\")","v":""},{"$f":"IFERROR(MID($X159,FIND(CHAR(160),SUBSTITUTE($X159,\"{\",CHAR(160),HB$1)),FIND(CHAR(160),SUBSTITUTE($X159,\"}\",CHAR(160),HB$1))-FIND(CHAR(160),SUBSTITUTE($X159,\"{\",CHAR(160),HB$1))+1),\"\")","v":""},{"$f":"IFERROR(MID($X159,FIND(CHAR(160),SUBSTITUTE($X159,\"{\",CHAR(160),HC$1)),FIND(CHAR(160),SUBSTITUTE($X159,\"}\",CHAR(160),HC$1))-FIND(CHAR(160),SUBSTITUTE($X159,\"{\",CHAR(160),HC$1))+1),\"\")","v":""},{"$f":"IFERROR(MID($X159,FIND(CHAR(160),SUBSTITUTE($X159,\"{\",CHAR(160),HD$1)),FIND(CHAR(160),SUBSTITUTE($X159,\"}\",CHAR(160),HD$1))-FIND(CHAR(160),SUBSTITUTE($X159,\"{\",CHAR(160),HD$1))+1),\"\")","v":""},{"$f":"IFERROR(MID($X159,FIND(CHAR(160),SUBSTITUTE($X159,\"{\",CHAR(160),HE$1)),FIND(CHAR(160),SUBSTITUTE($X159,\"}\",CHAR(160),HE$1))-FIND(CHAR(160),SUBSTITUTE($X159,\"{\",CHAR(160),HE$1))+1),\"\")","v":""},{"$f":"IFERROR(MID($X159,FIND(CHAR(160),SUBSTITUTE($X159,\"{\",CHAR(160),HF$1)),FIND(CHAR(160),SUBSTITUTE($X159,\"}\",CHAR(160),HF$1))-FIND(CHAR(160),SUBSTITUTE($X159,\"{\",CHAR(160),HF$1))+1),\"\")","v":""},{"$f":"IFERROR(MID($X159,FIND(CHAR(160),SUBSTITUTE($X159,\"{\",CHAR(160),HG$1)),FIND(CHAR(160),SUBSTITUTE($X159,\"}\",CHAR(160),HG$1))-FIND(CHAR(160),SUBSTITUTE($X159,\"{\",CHAR(160),HG$1))+1),\"\")","v":""},{"$f":"IFERROR(MID($X159,FIND(CHAR(160),SUBSTITUTE($X159,\"{\",CHAR(160),HH$1)),FIND(CHAR(160),SUBSTITUTE($X159,\"}\",CHAR(160),HH$1))-FIND(CHAR(160),SUBSTITUTE($X159,\"{\",CHAR(160),HH$1))+1),\"\")","v":""},{"$f":"IFERROR(MID($X159,FIND(CHAR(160),SUBSTITUTE($X159,\"{\",CHAR(160),HI$1)),FIND(CHAR(160),SUBSTITUTE($X159,\"}\",CHAR(160),HI$1))-FIND(CHAR(160),SUBSTITUTE($X159,\"{\",CHAR(160),HI$1))+1),\"\")","v":""},{"$f":"IFERROR(MID($X159,FIND(CHAR(160),SUBSTITUTE($X159,\"{\",CHAR(160),HJ$1)),FIND(CHAR(160),SUBSTITUTE($X159,\"}\",CHAR(160),HJ$1))-FIND(CHAR(160),SUBSTITUTE($X159,\"{\",CHAR(160),HJ$1))+1),\"\")","v":""},{"$f":"IFERROR(MID($Y159,FIND(CHAR(160),SUBSTITUTE($Y159,\"{\",CHAR(160),HK$1)),FIND(CHAR(160),SUBSTITUTE($Y159,\"}\",CHAR(160),HK$1))-FIND(CHAR(160),SUBSTITUTE($Y159,\"{\",CHAR(160),HK$1))+1),\"\")","v":""},{"$f":"IFERROR(MID($Y159,FIND(CHAR(160),SUBSTITUTE($Y159,\"{\",CHAR(160),HL$1)),FIND(CHAR(160),SUBSTITUTE($Y159,\"}\",CHAR(160),HL$1))-FIND(CHAR(160),SUBSTITUTE($Y159,\"{\",CHAR(160),HL$1))+1),\"\")","v":""},{"$f":"IFERROR(MID($Y159,FIND(CHAR(160),SUBSTITUTE($Y159,\"{\",CHAR(160),HM$1)),FIND(CHAR(160),SUBSTITUTE($Y159,\"}\",CHAR(160),HM$1))-FIND(CHAR(160),SUBSTITUTE($Y159,\"{\",CHAR(160),HM$1))+1),\"\")","v":""},{"$f":"IFERROR(MID($Y159,FIND(CHAR(160),SUBSTITUTE($Y159,\"{\",CHAR(160),HN$1)),FIND(CHAR(160),SUBSTITUTE($Y159,\"}\",CHAR(160),HN$1))-FIND(CHAR(160),SUBSTITUTE($Y159,\"{\",CHAR(160),HN$1))+1),\"\")","v":""},{"$f":"IFERROR(MID($Y159,FIND(CHAR(160),SUBSTITUTE($Y159,\"{\",CHAR(160),HO$1)),FIND(CHAR(160),SUBSTITUTE($Y159,\"}\",CHAR(160),HO$1))-FIND(CHAR(160),SUBSTITUTE($Y159,\"{\",CHAR(160),HO$1))+1),\"\")","v":""},{"$f":"IFERROR(MID($Y159,FIND(CHAR(160),SUBSTITUTE($Y159,\"{\",CHAR(160),HP$1)),FIND(CHAR(160),SUBSTITUTE($Y159,\"}\",CHAR(160),HP$1))-FIND(CHAR(160),SUBSTITUTE($Y159,\"{\",CHAR(160),HP$1))+1),\"\")","v":""},{"$f":"IFERROR(MID($Y159,FIND(CHAR(160),SUBSTITUTE($Y159,\"{\",CHAR(160),HQ$1)),FIND(CHAR(160),SUBSTITUTE($Y159,\"}\",CHAR(160),HQ$1))-FIND(CHAR(160),SUBSTITUTE($Y159,\"{\",CHAR(160),HQ$1))+1),\"\")","v":""},{"$f":"IFERROR(MID($Y159,FIND(CHAR(160),SUBSTITUTE($Y159,\"{\",CHAR(160),HR$1)),FIND(CHAR(160),SUBSTITUTE($Y159,\"}\",CHAR(160),HR$1))-FIND(CHAR(160),SUBSTITUTE($Y159,\"{\",CHAR(160),HR$1))+1),\"\")","v":""},{"$f":"IFERROR(MID($Y159,FIND(CHAR(160),SUBSTITUTE($Y159,\"{\",CHAR(160),HS$1)),FIND(CHAR(160),SUBSTITUTE($Y159,\"}\",CHAR(160),HS$1))-FIND(CHAR(160),SUBSTITUTE($Y159,\"{\",CHAR(160),HS$1))+1),\"\")","v":""},{"$f":"IFERROR(MID($Y159,FIND(CHAR(160),SUBSTITUTE($Y159,\"{\",CHAR(160),HT$1)),FIND(CHAR(160),SUBSTITUTE($Y159,\"}\",CHAR(160),HT$1))-FIND(CHAR(160),SUBSTITUTE($Y159,\"{\",CHAR(160),HT$1))+1),\"\")","v":""},{"$f":"IFERROR(MID($Z159,FIND(CHAR(160),SUBSTITUTE($Z159,\"{\",CHAR(160),HU$1)),FIND(CHAR(160),SUBSTITUTE($Z159,\"}\",CHAR(160),HU$1))-FIND(CHAR(160),SUBSTITUTE($Z159,\"{\",CHAR(160),HU$1))+1),\"\")","v":""},{"$f":"IFERROR(MID($Z159,FIND(CHAR(160),SUBSTITUTE($Z159,\"{\",CHAR(160),HV$1)),FIND(CHAR(160),SUBSTITUTE($Z159,\"}\",CHAR(160),HV$1))-FIND(CHAR(160),SUBSTITUTE($Z159,\"{\",CHAR(160),HV$1))+1),\"\")","v":""},{"$f":"IFERROR(MID($Z159,FIND(CHAR(160),SUBSTITUTE($Z159,\"{\",CHAR(160),HW$1)),FIND(CHAR(160),SUBSTITUTE($Z159,\"}\",CHAR(160),HW$1))-FIND(CHAR(160),SUBSTITUTE($Z159,\"{\",CHAR(160),HW$1))+1),\"\")","v":""},{"$f":"IFERROR(MID($Z159,FIND(CHAR(160),SUBSTITUTE($Z159,\"{\",CHAR(160),HX$1)),FIND(CHAR(160),SUBSTITUTE($Z159,\"}\",CHAR(160),HX$1))-FIND(CHAR(160),SUBSTITUTE($Z159,\"{\",CHAR(160),HX$1))+1),\"\")","v":""},{"$f":"IFERROR(MID($Z159,FIND(CHAR(160),SUBSTITUTE($Z159,\"{\",CHAR(160),HY$1)),FIND(CHAR(160),SUBSTITUTE($Z159,\"}\",CHAR(160),HY$1))-FIND(CHAR(160),SUBSTITUTE($Z159,\"{\",CHAR(160),HY$1))+1),\"\")","v":""},{"$f":"IFERROR(MID($Z159,FIND(CHAR(160),SUBSTITUTE($Z159,\"{\",CHAR(160),HZ$1)),FIND(CHAR(160),SUBSTITUTE($Z159,\"}\",CHAR(160),HZ$1))-FIND(CHAR(160),SUBSTITUTE($Z159,\"{\",CHAR(160),HZ$1))+1),\"\")","v":""},{"$f":"IFERROR(MID($Z159,FIND(CHAR(160),SUBSTITUTE($Z159,\"{\",CHAR(160),IA$1)),FIND(CHAR(160),SUBSTITUTE($Z159,\"}\",CHAR(160),IA$1))-FIND(CHAR(160),SUBSTITUTE($Z159,\"{\",CHAR(160),IA$1))+1),\"\")","v":""},{"$f":"IFERROR(MID($Z159,FIND(CHAR(160),SUBSTITUTE($Z159,\"{\",CHAR(160),IB$1)),FIND(CHAR(160),SUBSTITUTE($Z159,\"}\",CHAR(160),IB$1))-FIND(CHAR(160),SUBSTITUTE($Z159,\"{\",CHAR(160),IB$1))+1),\"\")","v":""},{"$f":"IFERROR(MID($Z159,FIND(CHAR(160),SUBSTITUTE($Z159,\"{\",CHAR(160),IC$1)),FIND(CHAR(160),SUBSTITUTE($Z159,\"}\",CHAR(160),IC$1))-FIND(CHAR(160),SUBSTITUTE($Z159,\"{\",CHAR(160),IC$1))+1),\"\")","v":""},{"$f":"IFERROR(MID($Z159,FIND(CHAR(160),SUBSTITUTE($Z159,\"{\",CHAR(160),ID$1)),FIND(CHAR(160),SUBSTITUTE($Z159,\"}\",CHAR(160),ID$1))-FIND(CHAR(160),SUBSTITUTE($Z159,\"{\",CHAR(160),ID$1))+1),\"\")","v":""},{"$f":"IFERROR(MID($AA159,FIND(CHAR(160),SUBSTITUTE($AA159,\"{\",CHAR(160),IE$1)),FIND(CHAR(160),SUBSTITUTE($AA159,\"}\",CHAR(160),IE$1))-FIND(CHAR(160),SUBSTITUTE($AA159,\"{\",CHAR(160),IE$1))+1),\"\")","v":""},{"$f":"IFERROR(MID($AA159,FIND(CHAR(160),SUBSTITUTE($AA159,\"{\",CHAR(160),IF$1)),FIND(CHAR(160),SUBSTITUTE($AA159,\"}\",CHAR(160),IF$1))-FIND(CHAR(160),SUBSTITUTE($AA159,\"{\",CHAR(160),IF$1))+1),\"\")","v":""},{"$f":"IFERROR(MID($AA159,FIND(CHAR(160),SUBSTITUTE($AA159,\"{\",CHAR(160),IG$1)),FIND(CHAR(160),SUBSTITUTE($AA159,\"}\",CHAR(160),IG$1))-FIND(CHAR(160),SUBSTITUTE($AA159,\"{\",CHAR(160),IG$1))+1),\"\")","v":""},{"$f":"IFERROR(MID($AA159,FIND(CHAR(160),SUBSTITUTE($AA159,\"{\",CHAR(160),IH$1)),FIND(CHAR(160),SUBSTITUTE($AA159,\"}\",CHAR(160),IH$1))-FIND(CHAR(160),SUBSTITUTE($AA159,\"{\",CHAR(160),IH$1))+1),\"\")","v":""},{"$f":"IFERROR(MID($AA159,FIND(CHAR(160),SUBSTITUTE($AA159,\"{\",CHAR(160),II$1)),FIND(CHAR(160),SUBSTITUTE($AA159,\"}\",CHAR(160),II$1))-FIND(CHAR(160),SUBSTITUTE($AA159,\"{\",CHAR(160),II$1))+1),\"\")","v":""},{"$f":"IFERROR(MID($AA159,FIND(CHAR(160),SUBSTITUTE($AA159,\"{\",CHAR(160),IJ$1)),FIND(CHAR(160),SUBSTITUTE($AA159,\"}\",CHAR(160),IJ$1))-FIND(CHAR(160),SUBSTITUTE($AA159,\"{\",CHAR(160),IJ$1))+1),\"\")","v":""},{"$f":"IFERROR(MID($AA159,FIND(CHAR(160),SUBSTITUTE($AA159,\"{\",CHAR(160),IK$1)),FIND(CHAR(160),SUBSTITUTE($AA159,\"}\",CHAR(160),IK$1))-FIND(CHAR(160),SUBSTITUTE($AA159,\"{\",CHAR(160),IK$1))+1),\"\")","v":""},{"$f":"IFERROR(MID($AA159,FIND(CHAR(160),SUBSTITUTE($AA159,\"{\",CHAR(160),IL$1)),FIND(CHAR(160),SUBSTITUTE($AA159,\"}\",CHAR(160),IL$1))-FIND(CHAR(160),SUBSTITUTE($AA159,\"{\",CHAR(160),IL$1))+1),\"\")","v":""},{"$f":"IFERROR(MID($AA159,FIND(CHAR(160),SUBSTITUTE($AA159,\"{\",CHAR(160),IM$1)),FIND(CHAR(160),SUBSTITUTE($AA159,\"}\",CHAR(160),IM$1))-FIND(CHAR(160),SUBSTITUTE($AA159,\"{\",CHAR(160),IM$1))+1),\"\")","v":""},{"$f":"IFERROR(MID($AA159,FIND(CHAR(160),SUBSTITUTE($AA159,\"{\",CHAR(160),IN$1)),FIND(CHAR(160),SUBSTITUTE($AA159,\"}\",CHAR(160),IN$1))-FIND(CHAR(160),SUBSTITUTE($AA159,\"{\",CHAR(160),IN$1))+1),\"\")","v":""},{"$f":"IFERROR(MID($AB159,FIND(CHAR(160),SUBSTITUTE($AB159,\"{\",CHAR(160),IO$1)),FIND(CHAR(160),SUBSTITUTE($AB159,\"}\",CHAR(160),IO$1))-FIND(CHAR(160),SUBSTITUTE($AB159,\"{\",CHAR(160),IO$1))+1),\"\")","v":""},{"$f":"IFERROR(MID($AB159,FIND(CHAR(160),SUBSTITUTE($AB159,\"{\",CHAR(160),IP$1)),FIND(CHAR(160),SUBSTITUTE($AB159,\"}\",CHAR(160),IP$1))-FIND(CHAR(160),SUBSTITUTE($AB159,\"{\",CHAR(160),IP$1))+1),\"\")","v":""},{"$f":"IFERROR(MID($AB159,FIND(CHAR(160),SUBSTITUTE($AB159,\"{\",CHAR(160),IQ$1)),FIND(CHAR(160),SUBSTITUTE($AB159,\"}\",CHAR(160),IQ$1))-FIND(CHAR(160),SUBSTITUTE($AB159,\"{\",CHAR(160),IQ$1))+1),\"\")","v":""},{"$f":"IFERROR(MID($AB159,FIND(CHAR(160),SUBSTITUTE($AB159,\"{\",CHAR(160),IR$1)),FIND(CHAR(160),SUBSTITUTE($AB159,\"}\",CHAR(160),IR$1))-FIND(CHAR(160),SUBSTITUTE($AB159,\"{\",CHAR(160),IR$1))+1),\"\")","v":""},{"$f":"IFERROR(MID($AB159,FIND(CHAR(160),SUBSTITUTE($AB159,\"{\",CHAR(160),IS$1)),FIND(CHAR(160),SUBSTITUTE($AB159,\"}\",CHAR(160),IS$1))-FIND(CHAR(160),SUBSTITUTE($AB159,\"{\",CHAR(160),IS$1))+1),\"\")","v":""},{"$f":"IFERROR(MID($AB159,FIND(CHAR(160),SUBSTITUTE($AB159,\"{\",CHAR(160),IT$1)),FIND(CHAR(160),SUBSTITUTE($AB159,\"}\",CHAR(160),IT$1))-FIND(CHAR(160),SUBSTITUTE($AB159,\"{\",CHAR(160),IT$1))+1),\"\")","v":""},{"$f":"IFERROR(MID($AB159,FIND(CHAR(160),SUBSTITUTE($AB159,\"{\",CHAR(160),IU$1)),FIND(CHAR(160),SUBSTITUTE($AB159,\"}\",CHAR(160),IU$1))-FIND(CHAR(160),SUBSTITUTE($AB159,\"{\",CHAR(160),IU$1))+1),\"\")","v":""},{"$f":"IFERROR(MID($AB159,FIND(CHAR(160),SUBSTITUTE($AB159,\"{\",CHAR(160),IV$1)),FIND(CHAR(160),SUBSTITUTE($AB159,\"}\",CHAR(160),IV$1))-FIND(CHAR(160),SUBSTITUTE($AB159,\"{\",CHAR(160),IV$1))+1),\"\")","v":""},{"$f":"IFERROR(MID($AB159,FIND(CHAR(160),SUBSTITUTE($AB159,\"{\",CHAR(160),IW$1)),FIND(CHAR(160),SUBSTITUTE($AB159,\"}\",CHAR(160),IW$1))-FIND(CHAR(160),SUBSTITUTE($AB159,\"{\",CHAR(160),IW$1))+1),\"\")","v":""},{"$f":"IFERROR(MID($AB159,FIND(CHAR(160),SUBSTITUTE($AB159,\"{\",CHAR(160),IX$1)),FIND(CHAR(160),SUBSTITUTE($AB159,\"}\",CHAR(160),IX$1))-FIND(CHAR(160),SUBSTITUTE($AB159,\"{\",CHAR(160),IX$1))+1),\"\")","v":""},null,{"$f":"10-COUNTIF(DU159:ED159,\"\")","v":4}]
["Distributor HVAC – Natural Gas","BOILM Hot Water Boiler","BOILM","2021-07-01","2022-06-30","Calculated","{Measure:Quantity}*1785",0,"Calculated","(if({Retail Price}<300,{Retail Price},300)*{Measure:Quantity})+{Stipend/Paperwork Fee}",0,"2021-01-20","2022-06-30","Calculated",null,null,null,null,null,null,null,null,"{Measure:Quantity} * if({Customer Type}=1,(186648*{Design Load (Btu/h)}/({Indoor Design Temp (oF)}-{Outdoor Design Temp (oF)})/1000000)* ((1/.87)-(1/.925))*10+51.1*365*8.33*1*(126.2-50.8)*(1/.60-1/.925)/1000000*10,if({Customer Type}=2,(13.148*10),if({Customer Type}=3,(13.148*10), if({Customer Type}=4,(186648*{Design Load (Btu/h)}/({Indoor Design Temp (oF)}-{Outdoor Design Temp (oF)})/1000000)* ((1/.87)-(1/.925))*10+51.1*365*8.33*1*(126.2-50.8)*(1/.60-1/.925)/1000000*10,0))))",null,null,null,null,null,"2021-01-20","2022-06-30",25,0,0,1,0,0,0,1,1,0,0.25,0,null,{"$f":"DU160","v":"{Measure:Quantity}"},1,{"$f":"DV160","v":"{Retail Price}"},2500,{"$f":"DW160","v":"{Stipend/Paperwork Fee}"},50,{"$f":"DX160","v":"{Design Load (Btu/h)}"},1,{"$f":"DY160","v":"{Indoor Design Temp (oF)}"},34010.54,{"$f":"DZ160","v":"{Outdoor Design Temp (oF)}"},68,{"$f":"EA160","v":"{Customer Type}"},-1,{"$f":"EB160","v":""},null,{"$f":"EC160","v":""},null,{"$f":"ED160","v":""},null,0,0,0,0,0,0,0,0,{"$f":"AS160 * IF(AY160=1,(186648*BA160/(BC160-BE160)/1000000)* ((1/0.87)-(1/0.925))*10+51.1*365*8.33*1*(126.2-50.8)*(1/0.6-1/0.925)/1000000*10,IF(AY160=2,(13.148*10),IF(AY160=3,(13.148*10), IF(AY160=4,(186648*BA160/(BC160-BE160)/1000000)* ((1/0.87)-(1/0.925))*10+51.1*365*8.33*1*(126.2-50.8)*(1/0.6-1/0.925)/1000000*10,0))))","v":131.47608979361209},0,0,0,0,0,null,"Res","Default DR",{"$f":"Benefits(BL160,BR160,BS160,BT160,BU160,BV160,BW160,BX160,BY160,BZ160,AE160,AH160,AI160,AJ160,AK160,AL160,AM160,AN160,AO160,AP160,CA160,CB160)","v":0},0,3518.1978226172473,0,0,0,0,0,0,{"$f":"SUMPRODUCT(CC160:CK160,--(CC160:CK160>0))","v":3518.1978226172473},{"$f":"-SUMPRODUCT(CC160:CK160,--(CC160:CK160<0))","v":0},null,{"$f":"AS160*1785","v":1785},null,null,{"$f":"CM160+CO160","v":1785},{"$f":"IF(NetOrGross=\"Net\",(1-AO160+AP160),1)","v":1},{"$f":"(SUMPRODUCT(CC160:CJ160,--(CC160:CJ160>0))+CN160)*CS160/((-SUMPRODUCT(CC160:CJ160,--(CC160:CJ160<0))+MAX(CO160,CV160)+CP160+CQ160)*CS160+IF(FRIncentives=\"Yes\",CV160*(1-CS160),0))","v":1.9709791723345924},1,{"$f":"(IF(AU160<300,AU160,300)*AS160)+AW160","v":350},null,"NG","y",null,{"$f":"IF(F160=\"Manual Entry\",\"Manual\",IF(G160=\"\",0,\"X=\"&SUBSTITUTE(SUBSTITUTE(SUBSTITUTE(SUBSTITUTE(SUBSTITUTE(SUBSTITUTE(SUBSTITUTE(SUBSTITUTE(SUBSTITUTE(SUBSTITUTE(SUBSTITUTE(SUBSTITUTE(G160,$ED160,$ED$2&ROW($ED160)),$EC160,$EC$2&ROW($EC160)),$EB160,$EB$2&ROW($EB160)),$EA160,$EA$2&ROW($EA160)),$DZ160,$DZ$2&ROW($DZ160)),$DY160,$DY$2&ROW($DY160)),$DX160,$DX$2&ROW($DX160)),$DW160,$DW$2&ROW($DW160)),$DV160,$DV$2&ROW($DV160)),$DU160,$DU$2&ROW($DU160)),$DT160,$DT$2&ROW($DT160)),$DS160,$DS$2&ROW($DS160))))","v":"X=AS160*1785"},{"$f":"IF(I160=\"Manual Entry\",\"Manual\",IF(J160=\"\",0,\"X=\"&SUBSTITUTE(SUBSTITUTE(SUBSTITUTE(SUBSTITUTE(SUBSTITUTE(SUBSTITUTE(SUBSTITUTE(SUBSTITUTE(SUBSTITUTE(SUBSTITUTE(SUBSTITUTE(SUBSTITUTE(J160,$ED160,$ED$2&ROW($ED160)),$EC160,$EC$2&ROW($EC160)),$EB160,$EB$2&ROW($EB160)),$EA160,$EA$2&ROW($EA160)),$DZ160,$DZ$2&ROW($DZ160)),$DY160,$DY$2&ROW($DY160)),$DX160,$DX$2&ROW($DX160)),$DW160,$DW$2&ROW($DW160)),$DV160,$DV$2&ROW($DV160)),$DU160,$DU$2&ROW($DU160)),$DT160,$DT$2&ROW($DT160)),$DS160,$DS$2&ROW($DS160))))","v":"X=(if(AU160<300,AU160,300)*AS160)+AW160"},{"$f":"IF(O160=\"\",0,\"X=\"&SUBSTITUTE(SUBSTITUTE(SUBSTITUTE(SUBSTITUTE(SUBSTITUTE(SUBSTITUTE(SUBSTITUTE(SUBSTITUTE(SUBSTITUTE(SUBSTITUTE(SUBSTITUTE(SUBSTITUTE(O160,$ED160,$ED$2&ROW($ED160)),$EC160,$EC$2&ROW($EC160)),$EB160,$EB$2&ROW($EB160)),$EA160,$EA$2&ROW($EA160)),$DZ160,$DZ$2&ROW($DZ160)),$DY160,$DY$2&ROW($DY160)),$DX160,$DX$2&ROW($DX160)),$DW160,$DW$2&ROW($DW160)),$DV160,$DV$2&ROW($DV160)),$DU160,$DU$2&ROW($DU160)),$DT160,$DT$2&ROW($DT160)),$DS160,$DS$2&ROW($DS160)))","v":0},{"$f":"IF(P160=\"\",0,\"X=\"&SUBSTITUTE(SUBSTITUTE(SUBSTITUTE(SUBSTITUTE(SUBSTITUTE(SUBSTITUTE(SUBSTITUTE(SUBSTITUTE(SUBSTITUTE(SUBSTITUTE(SUBSTITUTE(SUBSTITUTE(P160,$ED160,$ED$2&ROW($ED160)),$EC160,$EC$2&ROW($EC160)),$EB160,$EB$2&ROW($EB160)),$EA160,$EA$2&ROW($EA160)),$DZ160,$DZ$2&ROW($DZ160)),$DY160,$DY$2&ROW($DY160)),$DX160,$DX$2&ROW($DX160)),$DW160,$DW$2&ROW($DW160)),$DV160,$DV$2&ROW($DV160)),$DU160,$DU$2&ROW($DU160)),$DT160,$DT$2&ROW($DT160)),$DS160,$DS$2&ROW($DS160)))","v":0},{"$f":"IF(Q160=\"\",0,\"X=\"&SUBSTITUTE(SUBSTITUTE(SUBSTITUTE(SUBSTITUTE(SUBSTITUTE(SUBSTITUTE(SUBSTITUTE(SUBSTITUTE(SUBSTITUTE(SUBSTITUTE(SUBSTITUTE(SUBSTITUTE(Q160,$ED160,$ED$2&ROW($ED160)),$EC160,$EC$2&ROW($EC160)),$EB160,$EB$2&ROW($EB160)),$EA160,$EA$2&ROW($EA160)),$DZ160,$DZ$2&ROW($DZ160)),$DY160,$DY$2&ROW($DY160)),$DX160,$DX$2&ROW($DX160)),$DW160,$DW$2&ROW($DW160)),$DV160,$DV$2&ROW($DV160)),$DU160,$DU$2&ROW($DU160)),$DT160,$DT$2&ROW($DT160)),$DS160,$DS$2&ROW($DS160)))","v":0},{"$f":"IF(R160=\"\",0,\"X=\"&SUBSTITUTE(SUBSTITUTE(SUBSTITUTE(SUBSTITUTE(SUBSTITUTE(SUBSTITUTE(SUBSTITUTE(SUBSTITUTE(SUBSTITUTE(SUBSTITUTE(SUBSTITUTE(SUBSTITUTE(R160,$ED160,$ED$2&ROW($ED160)),$EC160,$EC$2&ROW($EC160)),$EB160,$EB$2&ROW($EB160)),$EA160,$EA$2&ROW($EA160)),$DZ160,$DZ$2&ROW($DZ160)),$DY160,$DY$2&ROW($DY160)),$DX160,$DX$2&ROW($DX160)),$DW160,$DW$2&ROW($DW160)),$DV160,$DV$2&ROW($DV160)),$DU160,$DU$2&ROW($DU160)),$DT160,$DT$2&ROW($DT160)),$DS160,$DS$2&ROW($DS160)))","v":0},{"$f":"IF(S160=\"\",0,\"X=\"&SUBSTITUTE(SUBSTITUTE(SUBSTITUTE(SUBSTITUTE(SUBSTITUTE(SUBSTITUTE(SUBSTITUTE(SUBSTITUTE(SUBSTITUTE(SUBSTITUTE(SUBSTITUTE(SUBSTITUTE(S160,$ED160,$ED$2&ROW($ED160)),$EC160,$EC$2&ROW($EC160)),$EB160,$EB$2&ROW($EB160)),$EA160,$EA$2&ROW($EA160)),$DZ160,$DZ$2&ROW($DZ160)),$DY160,$DY$2&ROW($DY160)),$DX160,$DX$2&ROW($DX160)),$DW160,$DW$2&ROW($DW160)),$DV160,$DV$2&ROW($DV160)),$DU160,$DU$2&ROW($DU160)),$DT160,$DT$2&ROW($DT160)),$DS160,$DS$2&ROW($DS160)))","v":0},{"$f":"IF(T160=\"\",0,\"X=\"&SUBSTITUTE(SUBSTITUTE(SUBSTITUTE(SUBSTITUTE(SUBSTITUTE(SUBSTITUTE(SUBSTITUTE(SUBSTITUTE(SUBSTITUTE(SUBSTITUTE(SUBSTITUTE(SUBSTITUTE(T160,$ED160,$ED$2&ROW($ED160)),$EC160,$EC$2&ROW($EC160)),$EB160,$EB$2&ROW($EB160)),$EA160,$EA$2&ROW($EA160)),$DZ160,$DZ$2&ROW($DZ160)),$DY160,$DY$2&ROW($DY160)),$DX160,$DX$2&ROW($DX160)),$DW160,$DW$2&ROW($DW160)),$DV160,$DV$2&ROW($DV160)),$DU160,$DU$2&ROW($DU160)),$DT160,$DT$2&ROW($DT160)),$DS160,$DS$2&ROW($DS160)))","v":0},{"$f":"IF(U160=\"\",0,\"X=\"&SUBSTITUTE(SUBSTITUTE(SUBSTITUTE(SUBSTITUTE(SUBSTITUTE(SUBSTITUTE(SUBSTITUTE(SUBSTITUTE(SUBSTITUTE(SUBSTITUTE(SUBSTITUTE(SUBSTITUTE(U160,$ED160,$ED$2&ROW($ED160)),$EC160,$EC$2&ROW($EC160)),$EB160,$EB$2&ROW($EB160)),$EA160,$EA$2&ROW($EA160)),$DZ160,$DZ$2&ROW($DZ160)),$DY160,$DY$2&ROW($DY160)),$DX160,$DX$2&ROW($DX160)),$DW160,$DW$2&ROW($DW160)),$DV160,$DV$2&ROW($DV160)),$DU160,$DU$2&ROW($DU160)),$DT160,$DT$2&ROW($DT160)),$DS160,$DS$2&ROW($DS160)))","v":0},{"$f":"IF(V160=\"\",0,\"X=\"&SUBSTITUTE(SUBSTITUTE(SUBSTITUTE(SUBSTITUTE(SUBSTITUTE(SUBSTITUTE(SUBSTITUTE(SUBSTITUTE(SUBSTITUTE(SUBSTITUTE(SUBSTITUTE(SUBSTITUTE(V160,$ED160,$ED$2&ROW($ED160)),$EC160,$EC$2&ROW($EC160)),$EB160,$EB$2&ROW($EB160)),$EA160,$EA$2&ROW($EA160)),$DZ160,$DZ$2&ROW($DZ160)),$DY160,$DY$2&ROW($DY160)),$DX160,$DX$2&ROW($DX160)),$DW160,$DW$2&ROW($DW160)),$DV160,$DV$2&ROW($DV160)),$DU160,$DU$2&ROW($DU160)),$DT160,$DT$2&ROW($DT160)),$DS160,$DS$2&ROW($DS160)))","v":0},{"$f":"IF(W160=\"\",0,\"X=\"&SUBSTITUTE(SUBSTITUTE(SUBSTITUTE(SUBSTITUTE(SUBSTITUTE(SUBSTITUTE(SUBSTITUTE(SUBSTITUTE(SUBSTITUTE(SUBSTITUTE(SUBSTITUTE(SUBSTITUTE(W160,$ED160,$ED$2&ROW($ED160)),$EC160,$EC$2&ROW($EC160)),$EB160,$EB$2&ROW($EB160)),$EA160,$EA$2&ROW($EA160)),$DZ160,$DZ$2&ROW($DZ160)),$DY160,$DY$2&ROW($DY160)),$DX160,$DX$2&ROW($DX160)),$DW160,$DW$2&ROW($DW160)),$DV160,$DV$2&ROW($DV160)),$DU160,$DU$2&ROW($DU160)),$DT160,$DT$2&ROW($DT160)),$DS160,$DS$2&ROW($DS160)))","v":"X=AS160 * if(BE160=1,(186648*AY160/(BA160-BC160)/1000000)* ((1/.87)-(1/.925))*10+51.1*365*8.33*1*(126.2-50.8)*(1/.60-1/.925)/1000000*10,if(BE160=2,(13.148*10),if(BE160=3,(13.148*10), if(BE160=4,(186648*AY160/(BA160-BC160)/1000000)* ((1/.87)-(1/.925))*10+51.1*365*8.33*1*(126.2-50.8)*(1/.60-1/.925)/1000000*10,0))))"},{"$f":"IF(X160=\"\",0,\"X=\"&SUBSTITUTE(SUBSTITUTE(SUBSTITUTE(SUBSTITUTE(SUBSTITUTE(SUBSTITUTE(SUBSTITUTE(SUBSTITUTE(SUBSTITUTE(SUBSTITUTE(SUBSTITUTE(SUBSTITUTE(X160,$ED160,$ED$2&ROW($ED160)),$EC160,$EC$2&ROW($EC160)),$EB160,$EB$2&ROW($EB160)),$EA160,$EA$2&ROW($EA160)),$DZ160,$DZ$2&ROW($DZ160)),$DY160,$DY$2&ROW($DY160)),$DX160,$DX$2&ROW($DX160)),$DW160,$DW$2&ROW($DW160)),$DV160,$DV$2&ROW($DV160)),$DU160,$DU$2&ROW($DU160)),$DT160,$DT$2&ROW($DT160)),$DS160,$DS$2&ROW($DS160)))","v":0},{"$f":"IF(Y160=\"\",0,\"X=\"&SUBSTITUTE(SUBSTITUTE(SUBSTITUTE(SUBSTITUTE(SUBSTITUTE(SUBSTITUTE(SUBSTITUTE(SUBSTITUTE(SUBSTITUTE(SUBSTITUTE(SUBSTITUTE(SUBSTITUTE(Y160,$ED160,$ED$2&ROW($ED160)),$EC160,$EC$2&ROW($EC160)),$EB160,$EB$2&ROW($EB160)),$EA160,$EA$2&ROW($EA160)),$DZ160,$DZ$2&ROW($DZ160)),$DY160,$DY$2&ROW($DY160)),$DX160,$DX$2&ROW($DX160)),$DW160,$DW$2&ROW($DW160)),$DV160,$DV$2&ROW($DV160)),$DU160,$DU$2&ROW($DU160)),$DT160,$DT$2&ROW($DT160)),$DS160,$DS$2&ROW($DS160)))","v":0},{"$f":"IF(Z160=\"\",0,\"X=\"&SUBSTITUTE(SUBSTITUTE(SUBSTITUTE(SUBSTITUTE(SUBSTITUTE(SUBSTITUTE(SUBSTITUTE(SUBSTITUTE(SUBSTITUTE(SUBSTITUTE(SUBSTITUTE(SUBSTITUTE(Z160,$ED160,$ED$2&ROW($ED160)),$EC160,$EC$2&ROW($EC160)),$EB160,$EB$2&ROW($EB160)),$EA160,$EA$2&ROW($EA160)),$DZ160,$DZ$2&ROW($DZ160)),$DY160,$DY$2&ROW($DY160)),$DX160,$DX$2&ROW($DX160)),$DW160,$DW$2&ROW($DW160)),$DV160,$DV$2&ROW($DV160)),$DU160,$DU$2&ROW($DU160)),$DT160,$DT$2&ROW($DT160)),$DS160,$DS$2&ROW($DS160)))","v":0},{"$f":"IF(AA160=\"\",0,\"X=\"&SUBSTITUTE(SUBSTITUTE(SUBSTITUTE(SUBSTITUTE(SUBSTITUTE(SUBSTITUTE(SUBSTITUTE(SUBSTITUTE(SUBSTITUTE(SUBSTITUTE(SUBSTITUTE(SUBSTITUTE(AA160,$ED160,$ED$2&ROW($ED160)),$EC160,$EC$2&ROW($EC160)),$EB160,$EB$2&ROW($EB160)),$EA160,$EA$2&ROW($EA160)),$DZ160,$DZ$2&ROW($DZ160)),$DY160,$DY$2&ROW($DY160)),$DX160,$DX$2&ROW($DX160)),$DW160,$DW$2&ROW($DW160)),$DV160,$DV$2&ROW($DV160)),$DU160,$DU$2&ROW($DU160)),$DT160,$DT$2&ROW($DT160)),$DS160,$DS$2&ROW($DS160)))","v":0},{"$f":"IF(AB160=\"\",0,\"X=\"&SUBSTITUTE(SUBSTITUTE(SUBSTITUTE(SUBSTITUTE(SUBSTITUTE(SUBSTITUTE(SUBSTITUTE(SUBSTITUTE(SUBSTITUTE(SUBSTITUTE(SUBSTITUTE(SUBSTITUTE(AB160,$ED160,$ED$2&ROW($ED160)),$EC160,$EC$2&ROW($EC160)),$EB160,$EB$2&ROW($EB160)),$EA160,$EA$2&ROW($EA160)),$DZ160,$DZ$2&ROW($DZ160)),$DY160,$DY$2&ROW($DY160)),$DX160,$DX$2&ROW($DX160)),$DW160,$DW$2&ROW($DW160)),$DV160,$DV$2&ROW($DV160)),$DU160,$DU$2&ROW($DU160)),$DT160,$DT$2&ROW($DT160)),$DS160,$DS$2&ROW($DS160)))","v":0},null,null,"{Factor:WinterCF}","{Factor:SummerCF}",{"$f":"IFERROR(INDEX($EG160:$IV160,MATCH(0,COUNTIF($DR160:DT160,$EG160:$IV160),0)),\"\")","v":"{Measure:Quantity}"},{"$f":"IFERROR(INDEX($EG160:$IV160,MATCH(0,COUNTIF($DR160:DU160,$EG160:$IV160),0)),\"\")","v":"{Retail Price}"},{"$f":"IFERROR(INDEX($EG160:$IV160,MATCH(0,COUNTIF($DR160:DV160,$EG160:$IV160),0)),\"\")","v":"{Stipend/Paperwork Fee}"},{"$f":"IFERROR(INDEX($EG160:$IV160,MATCH(0,COUNTIF($DR160:DW160,$EG160:$IV160),0)),\"\")","v":"{Design Load (Btu/h)}"},{"$f":"IFERROR(INDEX($EG160:$IV160,MATCH(0,COUNTIF($DR160:DX160,$EG160:$IV160),0)),\"\")","v":"{Indoor Design Temp (oF)}"},{"$f":"IFERROR(INDEX($EG160:$IV160,MATCH(0,COUNTIF($DR160:DY160,$EG160:$IV160),0)),\"\")","v":"{Outdoor Design Temp (oF)}"},{"$f":"IFERROR(INDEX($EG160:$IV160,MATCH(0,COUNTIF($DR160:DZ160,$EG160:$IV160),0)),\"\")","v":"{Customer Type}"},{"$f":"IFERROR(INDEX($EG160:$IV160,MATCH(0,COUNTIF($DR160:EA160,$EG160:$IV160),0)),\"\")","v":""},{"$f":"IFERROR(INDEX($EG160:$IV160,MATCH(0,COUNTIF($DR160:EB160,$EG160:$IV160),0)),\"\")","v":""},{"$f":"IFERROR(INDEX($EG160:$IV160,MATCH(0,COUNTIF($DR160:EC160,$EG160:$IV160),0)),\"\")","v":""},null,null,{"$f":"IFERROR(MID($G160,FIND(CHAR(160),SUBSTITUTE($G160,\"{\",CHAR(160),EG$1)),FIND(CHAR(160),SUBSTITUTE($G160,\"}\",CHAR(160),EG$1))-FIND(CHAR(160),SUBSTITUTE($G160,\"{\",CHAR(160),EG$1))+1),\"\")","v":"{Measure:Quantity}"},{"$f":"IFERROR(MID($G160,FIND(CHAR(160),SUBSTITUTE($G160,\"{\",CHAR(160),EH$1)),FIND(CHAR(160),SUBSTITUTE($G160,\"}\",CHAR(160),EH$1))-FIND(CHAR(160),SUBSTITUTE($G160,\"{\",CHAR(160),EH$1))+1),\"\")","v":""},{"$f":"IFERROR(MID($G160,FIND(CHAR(160),SUBSTITUTE($G160,\"{\",CHAR(160),EI$1)),FIND(CHAR(160),SUBSTITUTE($G160,\"}\",CHAR(160),EI$1))-FIND(CHAR(160),SUBSTITUTE($G160,\"{\",CHAR(160),EI$1))+1),\"\")","v":""},{"$f":"IFERROR(MID($G160,FIND(CHAR(160),SUBSTITUTE($G160,\"{\",CHAR(160),EJ$1)),FIND(CHAR(160),SUBSTITUTE($G160,\"}\",CHAR(160),EJ$1))-FIND(CHAR(160),SUBSTITUTE($G160,\"{\",CHAR(160),EJ$1))+1),\"\")","v":""},{"$f":"IFERROR(MID($G160,FIND(CHAR(160),SUBSTITUTE($G160,\"{\",CHAR(160),EK$1)),FIND(CHAR(160),SUBSTITUTE($G160,\"}\",CHAR(160),EK$1))-FIND(CHAR(160),SUBSTITUTE($G160,\"{\",CHAR(160),EK$1))+1),\"\")","v":""},{"$f":"IFERROR(MID($G160,FIND(CHAR(160),SUBSTITUTE($G160,\"{\",CHAR(160),EL$1)),FIND(CHAR(160),SUBSTITUTE($G160,\"}\",CHAR(160),EL$1))-FIND(CHAR(160),SUBSTITUTE($G160,\"{\",CHAR(160),EL$1))+1),\"\")","v":""},{"$f":"IFERROR(MID($G160,FIND(CHAR(160),SUBSTITUTE($G160,\"{\",CHAR(160),EM$1)),FIND(CHAR(160),SUBSTITUTE($G160,\"}\",CHAR(160),EM$1))-FIND(CHAR(160),SUBSTITUTE($G160,\"{\",CHAR(160),EM$1))+1),\"\")","v":""},{"$f":"IFERROR(MID($G160,FIND(CHAR(160),SUBSTITUTE($G160,\"{\",CHAR(160),EN$1)),FIND(CHAR(160),SUBSTITUTE($G160,\"}\",CHAR(160),EN$1))-FIND(CHAR(160),SUBSTITUTE($G160,\"{\",CHAR(160),EN$1))+1),\"\")","v":""},{"$f":"IFERROR(MID($G160,FIND(CHAR(160),SUBSTITUTE($G160,\"{\",CHAR(160),EO$1)),FIND(CHAR(160),SUBSTITUTE($G160,\"}\",CHAR(160),EO$1))-FIND(CHAR(160),SUBSTITUTE($G160,\"{\",CHAR(160),EO$1))+1),\"\")","v":""},{"$f":"IFERROR(MID($G160,FIND(CHAR(160),SUBSTITUTE($G160,\"{\",CHAR(160),EP$1)),FIND(CHAR(160),SUBSTITUTE($G160,\"}\",CHAR(160),EP$1))-FIND(CHAR(160),SUBSTITUTE($G160,\"{\",CHAR(160),EP$1))+1),\"\")","v":""},{"$f":"IFERROR(MID($J160,FIND(CHAR(160),SUBSTITUTE($J160,\"{\",CHAR(160),EQ$1)),FIND(CHAR(160),SUBSTITUTE($J160,\"}\",CHAR(160),EQ$1))-FIND(CHAR(160),SUBSTITUTE($J160,\"{\",CHAR(160),EQ$1))+1),\"\")","v":"{Retail Price}"},{"$f":"IFERROR(MID($J160,FIND(CHAR(160),SUBSTITUTE($J160,\"{\",CHAR(160),ER$1)),FIND(CHAR(160),SUBSTITUTE($J160,\"}\",CHAR(160),ER$1))-FIND(CHAR(160),SUBSTITUTE($J160,\"{\",CHAR(160),ER$1))+1),\"\")","v":"{Retail Price}"},{"$f":"IFERROR(MID($J160,FIND(CHAR(160),SUBSTITUTE($J160,\"{\",CHAR(160),ES$1)),FIND(CHAR(160),SUBSTITUTE($J160,\"}\",CHAR(160),ES$1))-FIND(CHAR(160),SUBSTITUTE($J160,\"{\",CHAR(160),ES$1))+1),\"\")","v":"{Measure:Quantity}"},{"$f":"IFERROR(MID($J160,FIND(CHAR(160),SUBSTITUTE($J160,\"{\",CHAR(160),ET$1)),FIND(CHAR(160),SUBSTITUTE($J160,\"}\",CHAR(160),ET$1))-FIND(CHAR(160),SUBSTITUTE($J160,\"{\",CHAR(160),ET$1))+1),\"\")","v":"{Stipend/Paperwork Fee}"},{"$f":"IFERROR(MID($J160,FIND(CHAR(160),SUBSTITUTE($J160,\"{\",CHAR(160),EU$1)),FIND(CHAR(160),SUBSTITUTE($J160,\"}\",CHAR(160),EU$1))-FIND(CHAR(160),SUBSTITUTE($J160,\"{\",CHAR(160),EU$1))+1),\"\")","v":""},{"$f":"IFERROR(MID($J160,FIND(CHAR(160),SUBSTITUTE($J160,\"{\",CHAR(160),EV$1)),FIND(CHAR(160),SUBSTITUTE($J160,\"}\",CHAR(160),EV$1))-FIND(CHAR(160),SUBSTITUTE($J160,\"{\",CHAR(160),EV$1))+1),\"\")","v":""},{"$f":"IFERROR(MID($J160,FIND(CHAR(160),SUBSTITUTE($J160,\"{\",CHAR(160),EW$1)),FIND(CHAR(160),SUBSTITUTE($J160,\"}\",CHAR(160),EW$1))-FIND(CHAR(160),SUBSTITUTE($J160,\"{\",CHAR(160),EW$1))+1),\"\")","v":""},{"$f":"IFERROR(MID($J160,FIND(CHAR(160),SUBSTITUTE($J160,\"{\",CHAR(160),EX$1)),FIND(CHAR(160),SUBSTITUTE($J160,\"}\",CHAR(160),EX$1))-FIND(CHAR(160),SUBSTITUTE($J160,\"{\",CHAR(160),EX$1))+1),\"\")","v":""},{"$f":"IFERROR(MID($J160,FIND(CHAR(160),SUBSTITUTE($J160,\"{\",CHAR(160),EY$1)),FIND(CHAR(160),SUBSTITUTE($J160,\"}\",CHAR(160),EY$1))-FIND(CHAR(160),SUBSTITUTE($J160,\"{\",CHAR(160),EY$1))+1),\"\")","v":""},{"$f":"IFERROR(MID($J160,FIND(CHAR(160),SUBSTITUTE($J160,\"{\",CHAR(160),EZ$1)),FIND(CHAR(160),SUBSTITUTE($J160,\"}\",CHAR(160),EZ$1))-FIND(CHAR(160),SUBSTITUTE($J160,\"{\",CHAR(160),EZ$1))+1),\"\")","v":""},{"$f":"IFERROR(MID($J160,FIND(CHAR(160),SUBSTITUTE($J160,\"{\",CHAR(160),FA$1)),FIND(CHAR(160),SUBSTITUTE($J160,\"}\",CHAR(160),FA$1))-FIND(CHAR(160),SUBSTITUTE($J160,\"{\",CHAR(160),FA$1))+1),\"\")","v":"{Retail Price}"},{"$f":"IFERROR(MID($J160,FIND(CHAR(160),SUBSTITUTE($J160,\"{\",CHAR(160),FB$1)),FIND(CHAR(160),SUBSTITUTE($J160,\"}\",CHAR(160),FB$1))-FIND(CHAR(160),SUBSTITUTE($J160,\"{\",CHAR(160),FB$1))+1),\"\")","v":"{Retail Price}"},{"$f":"IFERROR(MID($O160,FIND(CHAR(160),SUBSTITUTE($O160,\"{\",CHAR(160),FC$1)),FIND(CHAR(160),SUBSTITUTE($O160,\"}\",CHAR(160),FC$1))-FIND(CHAR(160),SUBSTITUTE($O160,\"{\",CHAR(160),FC$1))+1),\"\")","v":""},{"$f":"IFERROR(MID($O160,FIND(CHAR(160),SUBSTITUTE($O160,\"{\",CHAR(160),FD$1)),FIND(CHAR(160),SUBSTITUTE($O160,\"}\",CHAR(160),FD$1))-FIND(CHAR(160),SUBSTITUTE($O160,\"{\",CHAR(160),FD$1))+1),\"\")","v":""},{"$f":"IFERROR(MID($O160,FIND(CHAR(160),SUBSTITUTE($O160,\"{\",CHAR(160),FE$1)),FIND(CHAR(160),SUBSTITUTE($O160,\"}\",CHAR(160),FE$1))-FIND(CHAR(160),SUBSTITUTE($O160,\"{\",CHAR(160),FE$1))+1),\"\")","v":""},{"$f":"IFERROR(MID($O160,FIND(CHAR(160),SUBSTITUTE($O160,\"{\",CHAR(160),FF$1)),FIND(CHAR(160),SUBSTITUTE($O160,\"}\",CHAR(160),FF$1))-FIND(CHAR(160),SUBSTITUTE($O160,\"{\",CHAR(160),FF$1))+1),\"\")","v":""},{"$f":"IFERROR(MID($O160,FIND(CHAR(160),SUBSTITUTE($O160,\"{\",CHAR(160),FG$1)),FIND(CHAR(160),SUBSTITUTE($O160,\"}\",CHAR(160),FG$1))-FIND(CHAR(160),SUBSTITUTE($O160,\"{\",CHAR(160),FG$1))+1),\"\")","v":""},{"$f":"IFERROR(MID($O160,FIND(CHAR(160),SUBSTITUTE($O160,\"{\",CHAR(160),FH$1)),FIND(CHAR(160),SUBSTITUTE($O160,\"}\",CHAR(160),FH$1))-FIND(CHAR(160),SUBSTITUTE($O160,\"{\",CHAR(160),FH$1))+1),\"\")","v":""},{"$f":"IFERROR(MID($O160,FIND(CHAR(160),SUBSTITUTE($O160,\"{\",CHAR(160),FI$1)),FIND(CHAR(160),SUBSTITUTE($O160,\"}\",CHAR(160),FI$1))-FIND(CHAR(160),SUBSTITUTE($O160,\"{\",CHAR(160),FI$1))+1),\"\")","v":""},{"$f":"IFERROR(MID($O160,FIND(CHAR(160),SUBSTITUTE($O160,\"{\",CHAR(160),FJ$1)),FIND(CHAR(160),SUBSTITUTE($O160,\"}\",CHAR(160),FJ$1))-FIND(CHAR(160),SUBSTITUTE($O160,\"{\",CHAR(160),FJ$1))+1),\"\")","v":""},{"$f":"IFERROR(MID($O160,FIND(CHAR(160),SUBSTITUTE($O160,\"{\",CHAR(160),FK$1)),FIND(CHAR(160),SUBSTITUTE($O160,\"}\",CHAR(160),FK$1))-FIND(CHAR(160),SUBSTITUTE($O160,\"{\",CHAR(160),FK$1))+1),\"\")","v":""},{"$f":"IFERROR(MID($O160,FIND(CHAR(160),SUBSTITUTE($O160,\"{\",CHAR(160),FL$1)),FIND(CHAR(160),SUBSTITUTE($O160,\"}\",CHAR(160),FL$1))-FIND(CHAR(160),SUBSTITUTE($O160,\"{\",CHAR(160),FL$1))+1),\"\")","v":""},{"$f":"IFERROR(MID($R160,FIND(CHAR(160),SUBSTITUTE($R160,\"{\",CHAR(160),FM$1)),FIND(CHAR(160),SUBSTITUTE($R160,\"}\",CHAR(160),FM$1))-FIND(CHAR(160),SUBSTITUTE($R160,\"{\",CHAR(160),FM$1))+1),\"\")","v":""},{"$f":"IFERROR(MID($R160,FIND(CHAR(160),SUBSTITUTE($R160,\"{\",CHAR(160),FN$1)),FIND(CHAR(160),SUBSTITUTE($R160,\"}\",CHAR(160),FN$1))-FIND(CHAR(160),SUBSTITUTE($R160,\"{\",CHAR(160),FN$1))+1),\"\")","v":""},{"$f":"IFERROR(MID($R160,FIND(CHAR(160),SUBSTITUTE($R160,\"{\",CHAR(160),FO$1)),FIND(CHAR(160),SUBSTITUTE($R160,\"}\",CHAR(160),FO$1))-FIND(CHAR(160),SUBSTITUTE($R160,\"{\",CHAR(160),FO$1))+1),\"\")","v":""},{"$f":"IFERROR(MID($R160,FIND(CHAR(160),SUBSTITUTE($R160,\"{\",CHAR(160),FP$1)),FIND(CHAR(160),SUBSTITUTE($R160,\"}\",CHAR(160),FP$1))-FIND(CHAR(160),SUBSTITUTE($R160,\"{\",CHAR(160),FP$1))+1),\"\")","v":""},{"$f":"IFERROR(MID($R160,FIND(CHAR(160),SUBSTITUTE($R160,\"{\",CHAR(160),FQ$1)),FIND(CHAR(160),SUBSTITUTE($R160,\"}\",CHAR(160),FQ$1))-FIND(CHAR(160),SUBSTITUTE($R160,\"{\",CHAR(160),FQ$1))+1),\"\")","v":""},{"$f":"IFERROR(MID($R160,FIND(CHAR(160),SUBSTITUTE($R160,\"{\",CHAR(160),FR$1)),FIND(CHAR(160),SUBSTITUTE($R160,\"}\",CHAR(160),FR$1))-FIND(CHAR(160),SUBSTITUTE($R160,\"{\",CHAR(160),FR$1))+1),\"\")","v":""},{"$f":"IFERROR(MID($R160,FIND(CHAR(160),SUBSTITUTE($R160,\"{\",CHAR(160),FS$1)),FIND(CHAR(160),SUBSTITUTE($R160,\"}\",CHAR(160),FS$1))-FIND(CHAR(160),SUBSTITUTE($R160,\"{\",CHAR(160),FS$1))+1),\"\")","v":""},{"$f":"IFERROR(MID($R160,FIND(CHAR(160),SUBSTITUTE($R160,\"{\",CHAR(160),FT$1)),FIND(CHAR(160),SUBSTITUTE($R160,\"}\",CHAR(160),FT$1))-FIND(CHAR(160),SUBSTITUTE($R160,\"{\",CHAR(160),FT$1))+1),\"\")","v":""},{"$f":"IFERROR(MID($R160,FIND(CHAR(160),SUBSTITUTE($R160,\"{\",CHAR(160),FU$1)),FIND(CHAR(160),SUBSTITUTE($R160,\"}\",CHAR(160),FU$1))-FIND(CHAR(160),SUBSTITUTE($R160,\"{\",CHAR(160),FU$1))+1),\"\")","v":""},{"$f":"IFERROR(MID($R160,FIND(CHAR(160),SUBSTITUTE($R160,\"{\",CHAR(160),FV$1)),FIND(CHAR(160),SUBSTITUTE($R160,\"}\",CHAR(160),FV$1))-FIND(CHAR(160),SUBSTITUTE($R160,\"{\",CHAR(160),FV$1))+1),\"\")","v":""},{"$f":"IFERROR(MID($U160,FIND(CHAR(160),SUBSTITUTE($U160,\"{\",CHAR(160),FW$1)),FIND(CHAR(160),SUBSTITUTE($U160,\"}\",CHAR(160),FW$1))-FIND(CHAR(160),SUBSTITUTE($U160,\"{\",CHAR(160),FW$1))+1),\"\")","v":""},{"$f":"IFERROR(MID($U160,FIND(CHAR(160),SUBSTITUTE($U160,\"{\",CHAR(160),FX$1)),FIND(CHAR(160),SUBSTITUTE($U160,\"}\",CHAR(160),FX$1))-FIND(CHAR(160),SUBSTITUTE($U160,\"{\",CHAR(160),FX$1))+1),\"\")","v":""},{"$f":"IFERROR(MID($U160,FIND(CHAR(160),SUBSTITUTE($U160,\"{\",CHAR(160),FY$1)),FIND(CHAR(160),SUBSTITUTE($U160,\"}\",CHAR(160),FY$1))-FIND(CHAR(160),SUBSTITUTE($U160,\"{\",CHAR(160),FY$1))+1),\"\")","v":""},{"$f":"IFERROR(MID($U160,FIND(CHAR(160),SUBSTITUTE($U160,\"{\",CHAR(160),FZ$1)),FIND(CHAR(160),SUBSTITUTE($U160,\"}\",CHAR(160),FZ$1))-FIND(CHAR(160),SUBSTITUTE($U160,\"{\",CHAR(160),FZ$1))+1),\"\")","v":""},{"$f":"IFERROR(MID($U160,FIND(CHAR(160),SUBSTITUTE($U160,\"{\",CHAR(160),GA$1)),FIND(CHAR(160),SUBSTITUTE($U160,\"}\",CHAR(160),GA$1))-FIND(CHAR(160),SUBSTITUTE($U160,\"{\",CHAR(160),GA$1))+1),\"\")","v":""},{"$f":"IFERROR(MID($U160,FIND(CHAR(160),SUBSTITUTE($U160,\"{\",CHAR(160),GB$1)),FIND(CHAR(160),SUBSTITUTE($U160,\"}\",CHAR(160),GB$1))-FIND(CHAR(160),SUBSTITUTE($U160,\"{\",CHAR(160),GB$1))+1),\"\")","v":""},{"$f":"IFERROR(MID($U160,FIND(CHAR(160),SUBSTITUTE($U160,\"{\",CHAR(160),GC$1)),FIND(CHAR(160),SUBSTITUTE($U160,\"}\",CHAR(160),GC$1))-FIND(CHAR(160),SUBSTITUTE($U160,\"{\",CHAR(160),GC$1))+1),\"\")","v":""},{"$f":"IFERROR(MID($U160,FIND(CHAR(160),SUBSTITUTE($U160,\"{\",CHAR(160),GD$1)),FIND(CHAR(160),SUBSTITUTE($U160,\"}\",CHAR(160),GD$1))-FIND(CHAR(160),SUBSTITUTE($U160,\"{\",CHAR(160),GD$1))+1),\"\")","v":""},{"$f":"IFERROR(MID($U160,FIND(CHAR(160),SUBSTITUTE($U160,\"{\",CHAR(160),GE$1)),FIND(CHAR(160),SUBSTITUTE($U160,\"}\",CHAR(160),GE$1))-FIND(CHAR(160),SUBSTITUTE($U160,\"{\",CHAR(160),GE$1))+1),\"\")","v":""},{"$f":"IFERROR(MID($U160,FIND(CHAR(160),SUBSTITUTE($U160,\"{\",CHAR(160),GF$1)),FIND(CHAR(160),SUBSTITUTE($U160,\"}\",CHAR(160),GF$1))-FIND(CHAR(160),SUBSTITUTE($U160,\"{\",CHAR(160),GF$1))+1),\"\")","v":""},{"$f":"IFERROR(MID($V160,FIND(CHAR(160),SUBSTITUTE($V160,\"{\",CHAR(160),GG$1)),FIND(CHAR(160),SUBSTITUTE($V160,\"}\",CHAR(160),GG$1))-FIND(CHAR(160),SUBSTITUTE($V160,\"{\",CHAR(160),GG$1))+1),\"\")","v":""},{"$f":"IFERROR(MID($V160,FIND(CHAR(160),SUBSTITUTE($V160,\"{\",CHAR(160),GH$1)),FIND(CHAR(160),SUBSTITUTE($V160,\"}\",CHAR(160),GH$1))-FIND(CHAR(160),SUBSTITUTE($V160,\"{\",CHAR(160),GH$1))+1),\"\")","v":""},{"$f":"IFERROR(MID($V160,FIND(CHAR(160),SUBSTITUTE($V160,\"{\",CHAR(160),GI$1)),FIND(CHAR(160),SUBSTITUTE($V160,\"}\",CHAR(160),GI$1))-FIND(CHAR(160),SUBSTITUTE($V160,\"{\",CHAR(160),GI$1))+1),\"\")","v":""},{"$f":"IFERROR(MID($V160,FIND(CHAR(160),SUBSTITUTE($V160,\"{\",CHAR(160),GJ$1)),FIND(CHAR(160),SUBSTITUTE($V160,\"}\",CHAR(160),GJ$1))-FIND(CHAR(160),SUBSTITUTE($V160,\"{\",CHAR(160),GJ$1))+1),\"\")","v":""},{"$f":"IFERROR(MID($V160,FIND(CHAR(160),SUBSTITUTE($V160,\"{\",CHAR(160),GK$1)),FIND(CHAR(160),SUBSTITUTE($V160,\"}\",CHAR(160),GK$1))-FIND(CHAR(160),SUBSTITUTE($V160,\"{\",CHAR(160),GK$1))+1),\"\")","v":""},{"$f":"IFERROR(MID($V160,FIND(CHAR(160),SUBSTITUTE($V160,\"{\",CHAR(160),GL$1)),FIND(CHAR(160),SUBSTITUTE($V160,\"}\",CHAR(160),GL$1))-FIND(CHAR(160),SUBSTITUTE($V160,\"{\",CHAR(160),GL$1))+1),\"\")","v":""},{"$f":"IFERROR(MID($V160,FIND(CHAR(160),SUBSTITUTE($V160,\"{\",CHAR(160),GM$1)),FIND(CHAR(160),SUBSTITUTE($V160,\"}\",CHAR(160),GM$1))-FIND(CHAR(160),SUBSTITUTE($V160,\"{\",CHAR(160),GM$1))+1),\"\")","v":""},{"$f":"IFERROR(MID($V160,FIND(CHAR(160),SUBSTITUTE($V160,\"{\",CHAR(160),GN$1)),FIND(CHAR(160),SUBSTITUTE($V160,\"}\",CHAR(160),GN$1))-FIND(CHAR(160),SUBSTITUTE($V160,\"{\",CHAR(160),GN$1))+1),\"\")","v":""},{"$f":"IFERROR(MID($V160,FIND(CHAR(160),SUBSTITUTE($V160,\"{\",CHAR(160),GO$1)),FIND(CHAR(160),SUBSTITUTE($V160,\"}\",CHAR(160),GO$1))-FIND(CHAR(160),SUBSTITUTE($V160,\"{\",CHAR(160),GO$1))+1),\"\")","v":""},{"$f":"IFERROR(MID($V160,FIND(CHAR(160),SUBSTITUTE($V160,\"{\",CHAR(160),GP$1)),FIND(CHAR(160),SUBSTITUTE($V160,\"}\",CHAR(160),GP$1))-FIND(CHAR(160),SUBSTITUTE($V160,\"{\",CHAR(160),GP$1))+1),\"\")","v":""},{"$f":"IFERROR(MID($W160,FIND(CHAR(160),SUBSTITUTE($W160,\"{\",CHAR(160),GQ$1)),FIND(CHAR(160),SUBSTITUTE($W160,\"}\",CHAR(160),GQ$1))-FIND(CHAR(160),SUBSTITUTE($W160,\"{\",CHAR(160),GQ$1))+1),\"\")","v":"{Design Load (Btu/h)}"},{"$f":"IFERROR(MID($W160,FIND(CHAR(160),SUBSTITUTE($W160,\"{\",CHAR(160),GR$1)),FIND(CHAR(160),SUBSTITUTE($W160,\"}\",CHAR(160),GR$1))-FIND(CHAR(160),SUBSTITUTE($W160,\"{\",CHAR(160),GR$1))+1),\"\")","v":"{Indoor Design Temp (oF)}"},{"$f":"IFERROR(MID($W160,FIND(CHAR(160),SUBSTITUTE($W160,\"{\",CHAR(160),GS$1)),FIND(CHAR(160),SUBSTITUTE($W160,\"}\",CHAR(160),GS$1))-FIND(CHAR(160),SUBSTITUTE($W160,\"{\",CHAR(160),GS$1))+1),\"\")","v":"{Outdoor Design Temp (oF)}"},{"$f":"IFERROR(MID($W160,FIND(CHAR(160),SUBSTITUTE($W160,\"{\",CHAR(160),GT$1)),FIND(CHAR(160),SUBSTITUTE($W160,\"}\",CHAR(160),GT$1))-FIND(CHAR(160),SUBSTITUTE($W160,\"{\",CHAR(160),GT$1))+1),\"\")","v":"{Customer Type}"},{"$f":"IFERROR(MID($W160,FIND(CHAR(160),SUBSTITUTE($W160,\"{\",CHAR(160),GU$1)),FIND(CHAR(160),SUBSTITUTE($W160,\"}\",CHAR(160),GU$1))-FIND(CHAR(160),SUBSTITUTE($W160,\"{\",CHAR(160),GU$1))+1),\"\")","v":"{Customer Type}"},{"$f":"IFERROR(MID($W160,FIND(CHAR(160),SUBSTITUTE($W160,\"{\",CHAR(160),GV$1)),FIND(CHAR(160),SUBSTITUTE($W160,\"}\",CHAR(160),GV$1))-FIND(CHAR(160),SUBSTITUTE($W160,\"{\",CHAR(160),GV$1))+1),\"\")","v":"{Customer Type}"},{"$f":"IFERROR(MID($W160,FIND(CHAR(160),SUBSTITUTE($W160,\"{\",CHAR(160),GW$1)),FIND(CHAR(160),SUBSTITUTE($W160,\"}\",CHAR(160),GW$1))-FIND(CHAR(160),SUBSTITUTE($W160,\"{\",CHAR(160),GW$1))+1),\"\")","v":"{Design Load (Btu/h)}"},{"$f":"IFERROR(MID($W160,FIND(CHAR(160),SUBSTITUTE($W160,\"{\",CHAR(160),GX$1)),FIND(CHAR(160),SUBSTITUTE($W160,\"}\",CHAR(160),GX$1))-FIND(CHAR(160),SUBSTITUTE($W160,\"{\",CHAR(160),GX$1))+1),\"\")","v":"{Indoor Design Temp (oF)}"},{"$f":"IFERROR(MID($W160,FIND(CHAR(160),SUBSTITUTE($W160,\"{\",CHAR(160),GY$1)),FIND(CHAR(160),SUBSTITUTE($W160,\"}\",CHAR(160),GY$1))-FIND(CHAR(160),SUBSTITUTE($W160,\"{\",CHAR(160),GY$1))+1),\"\")","v":"{Measure:Quantity}"},{"$f":"IFERROR(MID($W160,FIND(CHAR(160),SUBSTITUTE($W160,\"{\",CHAR(160),GZ$1)),FIND(CHAR(160),SUBSTITUTE($W160,\"}\",CHAR(160),GZ$1))-FIND(CHAR(160),SUBSTITUTE($W160,\"{\",CHAR(160),GZ$1))+1),\"\")","v":"{Customer Type}"},{"$f":"IFERROR(MID($X160,FIND(CHAR(160),SUBSTITUTE($X160,\"{\",CHAR(160),HA$1)),FIND(CHAR(160),SUBSTITUTE($X160,\"}\",CHAR(160),HA$1))-FIND(CHAR(160),SUBSTITUTE($X160,\"{\",CHAR(160),HA$1))+1),\"\")","v":""},{"$f":"IFERROR(MID($X160,FIND(CHAR(160),SUBSTITUTE($X160,\"{\",CHAR(160),HB$1)),FIND(CHAR(160),SUBSTITUTE($X160,\"}\",CHAR(160),HB$1))-FIND(CHAR(160),SUBSTITUTE($X160,\"{\",CHAR(160),HB$1))+1),\"\")","v":""},{"$f":"IFERROR(MID($X160,FIND(CHAR(160),SUBSTITUTE($X160,\"{\",CHAR(160),HC$1)),FIND(CHAR(160),SUBSTITUTE($X160,\"}\",CHAR(160),HC$1))-FIND(CHAR(160),SUBSTITUTE($X160,\"{\",CHAR(160),HC$1))+1),\"\")","v":""},{"$f":"IFERROR(MID($X160,FIND(CHAR(160),SUBSTITUTE($X160,\"{\",CHAR(160),HD$1)),FIND(CHAR(160),SUBSTITUTE($X160,\"}\",CHAR(160),HD$1))-FIND(CHAR(160),SUBSTITUTE($X160,\"{\",CHAR(160),HD$1))+1),\"\")","v":""},{"$f":"IFERROR(MID($X160,FIND(CHAR(160),SUBSTITUTE($X160,\"{\",CHAR(160),HE$1)),FIND(CHAR(160),SUBSTITUTE($X160,\"}\",CHAR(160),HE$1))-FIND(CHAR(160),SUBSTITUTE($X160,\"{\",CHAR(160),HE$1))+1),\"\")","v":""},{"$f":"IFERROR(MID($X160,FIND(CHAR(160),SUBSTITUTE($X160,\"{\",CHAR(160),HF$1)),FIND(CHAR(160),SUBSTITUTE($X160,\"}\",CHAR(160),HF$1))-FIND(CHAR(160),SUBSTITUTE($X160,\"{\",CHAR(160),HF$1))+1),\"\")","v":""},{"$f":"IFERROR(MID($X160,FIND(CHAR(160),SUBSTITUTE($X160,\"{\",CHAR(160),HG$1)),FIND(CHAR(160),SUBSTITUTE($X160,\"}\",CHAR(160),HG$1))-FIND(CHAR(160),SUBSTITUTE($X160,\"{\",CHAR(160),HG$1))+1),\"\")","v":""},{"$f":"IFERROR(MID($X160,FIND(CHAR(160),SUBSTITUTE($X160,\"{\",CHAR(160),HH$1)),FIND(CHAR(160),SUBSTITUTE($X160,\"}\",CHAR(160),HH$1))-FIND(CHAR(160),SUBSTITUTE($X160,\"{\",CHAR(160),HH$1))+1),\"\")","v":""},{"$f":"IFERROR(MID($X160,FIND(CHAR(160),SUBSTITUTE($X160,\"{\",CHAR(160),HI$1)),FIND(CHAR(160),SUBSTITUTE($X160,\"}\",CHAR(160),HI$1))-FIND(CHAR(160),SUBSTITUTE($X160,\"{\",CHAR(160),HI$1))+1),\"\")","v":""},{"$f":"IFERROR(MID($X160,FIND(CHAR(160),SUBSTITUTE($X160,\"{\",CHAR(160),HJ$1)),FIND(CHAR(160),SUBSTITUTE($X160,\"}\",CHAR(160),HJ$1))-FIND(CHAR(160),SUBSTITUTE($X160,\"{\",CHAR(160),HJ$1))+1),\"\")","v":""},{"$f":"IFERROR(MID($Y160,FIND(CHAR(160),SUBSTITUTE($Y160,\"{\",CHAR(160),HK$1)),FIND(CHAR(160),SUBSTITUTE($Y160,\"}\",CHAR(160),HK$1))-FIND(CHAR(160),SUBSTITUTE($Y160,\"{\",CHAR(160),HK$1))+1),\"\")","v":""},{"$f":"IFERROR(MID($Y160,FIND(CHAR(160),SUBSTITUTE($Y160,\"{\",CHAR(160),HL$1)),FIND(CHAR(160),SUBSTITUTE($Y160,\"}\",CHAR(160),HL$1))-FIND(CHAR(160),SUBSTITUTE($Y160,\"{\",CHAR(160),HL$1))+1),\"\")","v":""},{"$f":"IFERROR(MID($Y160,FIND(CHAR(160),SUBSTITUTE($Y160,\"{\",CHAR(160),HM$1)),FIND(CHAR(160),SUBSTITUTE($Y160,\"}\",CHAR(160),HM$1))-FIND(CHAR(160),SUBSTITUTE($Y160,\"{\",CHAR(160),HM$1))+1),\"\")","v":""},{"$f":"IFERROR(MID($Y160,FIND(CHAR(160),SUBSTITUTE($Y160,\"{\",CHAR(160),HN$1)),FIND(CHAR(160),SUBSTITUTE($Y160,\"}\",CHAR(160),HN$1))-FIND(CHAR(160),SUBSTITUTE($Y160,\"{\",CHAR(160),HN$1))+1),\"\")","v":""},{"$f":"IFERROR(MID($Y160,FIND(CHAR(160),SUBSTITUTE($Y160,\"{\",CHAR(160),HO$1)),FIND(CHAR(160),SUBSTITUTE($Y160,\"}\",CHAR(160),HO$1))-FIND(CHAR(160),SUBSTITUTE($Y160,\"{\",CHAR(160),HO$1))+1),\"\")","v":""},{"$f":"IFERROR(MID($Y160,FIND(CHAR(160),SUBSTITUTE($Y160,\"{\",CHAR(160),HP$1)),FIND(CHAR(160),SUBSTITUTE($Y160,\"}\",CHAR(160),HP$1))-FIND(CHAR(160),SUBSTITUTE($Y160,\"{\",CHAR(160),HP$1))+1),\"\")","v":""},{"$f":"IFERROR(MID($Y160,FIND(CHAR(160),SUBSTITUTE($Y160,\"{\",CHAR(160),HQ$1)),FIND(CHAR(160),SUBSTITUTE($Y160,\"}\",CHAR(160),HQ$1))-FIND(CHAR(160),SUBSTITUTE($Y160,\"{\",CHAR(160),HQ$1))+1),\"\")","v":""},{"$f":"IFERROR(MID($Y160,FIND(CHAR(160),SUBSTITUTE($Y160,\"{\",CHAR(160),HR$1)),FIND(CHAR(160),SUBSTITUTE($Y160,\"}\",CHAR(160),HR$1))-FIND(CHAR(160),SUBSTITUTE($Y160,\"{\",CHAR(160),HR$1))+1),\"\")","v":""},{"$f":"IFERROR(MID($Y160,FIND(CHAR(160),SUBSTITUTE($Y160,\"{\",CHAR(160),HS$1)),FIND(CHAR(160),SUBSTITUTE($Y160,\"}\",CHAR(160),HS$1))-FIND(CHAR(160),SUBSTITUTE($Y160,\"{\",CHAR(160),HS$1))+1),\"\")","v":""},{"$f":"IFERROR(MID($Y160,FIND(CHAR(160),SUBSTITUTE($Y160,\"{\",CHAR(160),HT$1)),FIND(CHAR(160),SUBSTITUTE($Y160,\"}\",CHAR(160),HT$1))-FIND(CHAR(160),SUBSTITUTE($Y160,\"{\",CHAR(160),HT$1))+1),\"\")","v":""},{"$f":"IFERROR(MID($Z160,FIND(CHAR(160),SUBSTITUTE($Z160,\"{\",CHAR(160),HU$1)),FIND(CHAR(160),SUBSTITUTE($Z160,\"}\",CHAR(160),HU$1))-FIND(CHAR(160),SUBSTITUTE($Z160,\"{\",CHAR(160),HU$1))+1),\"\")","v":""},{"$f":"IFERROR(MID($Z160,FIND(CHAR(160),SUBSTITUTE($Z160,\"{\",CHAR(160),HV$1)),FIND(CHAR(160),SUBSTITUTE($Z160,\"}\",CHAR(160),HV$1))-FIND(CHAR(160),SUBSTITUTE($Z160,\"{\",CHAR(160),HV$1))+1),\"\")","v":""},{"$f":"IFERROR(MID($Z160,FIND(CHAR(160),SUBSTITUTE($Z160,\"{\",CHAR(160),HW$1)),FIND(CHAR(160),SUBSTITUTE($Z160,\"}\",CHAR(160),HW$1))-FIND(CHAR(160),SUBSTITUTE($Z160,\"{\",CHAR(160),HW$1))+1),\"\")","v":""},{"$f":"IFERROR(MID($Z160,FIND(CHAR(160),SUBSTITUTE($Z160,\"{\",CHAR(160),HX$1)),FIND(CHAR(160),SUBSTITUTE($Z160,\"}\",CHAR(160),HX$1))-FIND(CHAR(160),SUBSTITUTE($Z160,\"{\",CHAR(160),HX$1))+1),\"\")","v":""},{"$f":"IFERROR(MID($Z160,FIND(CHAR(160),SUBSTITUTE($Z160,\"{\",CHAR(160),HY$1)),FIND(CHAR(160),SUBSTITUTE($Z160,\"}\",CHAR(160),HY$1))-FIND(CHAR(160),SUBSTITUTE($Z160,\"{\",CHAR(160),HY$1))+1),\"\")","v":""},{"$f":"IFERROR(MID($Z160,FIND(CHAR(160),SUBSTITUTE($Z160,\"{\",CHAR(160),HZ$1)),FIND(CHAR(160),SUBSTITUTE($Z160,\"}\",CHAR(160),HZ$1))-FIND(CHAR(160),SUBSTITUTE($Z160,\"{\",CHAR(160),HZ$1))+1),\"\")","v":""},{"$f":"IFERROR(MID($Z160,FIND(CHAR(160),SUBSTITUTE($Z160,\"{\",CHAR(160),IA$1)),FIND(CHAR(160),SUBSTITUTE($Z160,\"}\",CHAR(160),IA$1))-FIND(CHAR(160),SUBSTITUTE($Z160,\"{\",CHAR(160),IA$1))+1),\"\")","v":""},{"$f":"IFERROR(MID($Z160,FIND(CHAR(160),SUBSTITUTE($Z160,\"{\",CHAR(160),IB$1)),FIND(CHAR(160),SUBSTITUTE($Z160,\"}\",CHAR(160),IB$1))-FIND(CHAR(160),SUBSTITUTE($Z160,\"{\",CHAR(160),IB$1))+1),\"\")","v":""},{"$f":"IFERROR(MID($Z160,FIND(CHAR(160),SUBSTITUTE($Z160,\"{\",CHAR(160),IC$1)),FIND(CHAR(160),SUBSTITUTE($Z160,\"}\",CHAR(160),IC$1))-FIND(CHAR(160),SUBSTITUTE($Z160,\"{\",CHAR(160),IC$1))+1),\"\")","v":""},{"$f":"IFERROR(MID($Z160,FIND(CHAR(160),SUBSTITUTE($Z160,\"{\",CHAR(160),ID$1)),FIND(CHAR(160),SUBSTITUTE($Z160,\"}\",CHAR(160),ID$1))-FIND(CHAR(160),SUBSTITUTE($Z160,\"{\",CHAR(160),ID$1))+1),\"\")","v":""},{"$f":"IFERROR(MID($AA160,FIND(CHAR(160),SUBSTITUTE($AA160,\"{\",CHAR(160),IE$1)),FIND(CHAR(160),SUBSTITUTE($AA160,\"}\",CHAR(160),IE$1))-FIND(CHAR(160),SUBSTITUTE($AA160,\"{\",CHAR(160),IE$1))+1),\"\")","v":""},{"$f":"IFERROR(MID($AA160,FIND(CHAR(160),SUBSTITUTE($AA160,\"{\",CHAR(160),IF$1)),FIND(CHAR(160),SUBSTITUTE($AA160,\"}\",CHAR(160),IF$1))-FIND(CHAR(160),SUBSTITUTE($AA160,\"{\",CHAR(160),IF$1))+1),\"\")","v":""},{"$f":"IFERROR(MID($AA160,FIND(CHAR(160),SUBSTITUTE($AA160,\"{\",CHAR(160),IG$1)),FIND(CHAR(160),SUBSTITUTE($AA160,\"}\",CHAR(160),IG$1))-FIND(CHAR(160),SUBSTITUTE($AA160,\"{\",CHAR(160),IG$1))+1),\"\")","v":""},{"$f":"IFERROR(MID($AA160,FIND(CHAR(160),SUBSTITUTE($AA160,\"{\",CHAR(160),IH$1)),FIND(CHAR(160),SUBSTITUTE($AA160,\"}\",CHAR(160),IH$1))-FIND(CHAR(160),SUBSTITUTE($AA160,\"{\",CHAR(160),IH$1))+1),\"\")","v":""},{"$f":"IFERROR(MID($AA160,FIND(CHAR(160),SUBSTITUTE($AA160,\"{\",CHAR(160),II$1)),FIND(CHAR(160),SUBSTITUTE($AA160,\"}\",CHAR(160),II$1))-FIND(CHAR(160),SUBSTITUTE($AA160,\"{\",CHAR(160),II$1))+1),\"\")","v":""},{"$f":"IFERROR(MID($AA160,FIND(CHAR(160),SUBSTITUTE($AA160,\"{\",CHAR(160),IJ$1)),FIND(CHAR(160),SUBSTITUTE($AA160,\"}\",CHAR(160),IJ$1))-FIND(CHAR(160),SUBSTITUTE($AA160,\"{\",CHAR(160),IJ$1))+1),\"\")","v":""},{"$f":"IFERROR(MID($AA160,FIND(CHAR(160),SUBSTITUTE($AA160,\"{\",CHAR(160),IK$1)),FIND(CHAR(160),SUBSTITUTE($AA160,\"}\",CHAR(160),IK$1))-FIND(CHAR(160),SUBSTITUTE($AA160,\"{\",CHAR(160),IK$1))+1),\"\")","v":""},{"$f":"IFERROR(MID($AA160,FIND(CHAR(160),SUBSTITUTE($AA160,\"{\",CHAR(160),IL$1)),FIND(CHAR(160),SUBSTITUTE($AA160,\"}\",CHAR(160),IL$1))-FIND(CHAR(160),SUBSTITUTE($AA160,\"{\",CHAR(160),IL$1))+1),\"\")","v":""},{"$f":"IFERROR(MID($AA160,FIND(CHAR(160),SUBSTITUTE($AA160,\"{\",CHAR(160),IM$1)),FIND(CHAR(160),SUBSTITUTE($AA160,\"}\",CHAR(160),IM$1))-FIND(CHAR(160),SUBSTITUTE($AA160,\"{\",CHAR(160),IM$1))+1),\"\")","v":""},{"$f":"IFERROR(MID($AA160,FIND(CHAR(160),SUBSTITUTE($AA160,\"{\",CHAR(160),IN$1)),FIND(CHAR(160),SUBSTITUTE($AA160,\"}\",CHAR(160),IN$1))-FIND(CHAR(160),SUBSTITUTE($AA160,\"{\",CHAR(160),IN$1))+1),\"\")","v":""},{"$f":"IFERROR(MID($AB160,FIND(CHAR(160),SUBSTITUTE($AB160,\"{\",CHAR(160),IO$1)),FIND(CHAR(160),SUBSTITUTE($AB160,\"}\",CHAR(160),IO$1))-FIND(CHAR(160),SUBSTITUTE($AB160,\"{\",CHAR(160),IO$1))+1),\"\")","v":""},{"$f":"IFERROR(MID($AB160,FIND(CHAR(160),SUBSTITUTE($AB160,\"{\",CHAR(160),IP$1)),FIND(CHAR(160),SUBSTITUTE($AB160,\"}\",CHAR(160),IP$1))-FIND(CHAR(160),SUBSTITUTE($AB160,\"{\",CHAR(160),IP$1))+1),\"\")","v":""},{"$f":"IFERROR(MID($AB160,FIND(CHAR(160),SUBSTITUTE($AB160,\"{\",CHAR(160),IQ$1)),FIND(CHAR(160),SUBSTITUTE($AB160,\"}\",CHAR(160),IQ$1))-FIND(CHAR(160),SUBSTITUTE($AB160,\"{\",CHAR(160),IQ$1))+1),\"\")","v":""},{"$f":"IFERROR(MID($AB160,FIND(CHAR(160),SUBSTITUTE($AB160,\"{\",CHAR(160),IR$1)),FIND(CHAR(160),SUBSTITUTE($AB160,\"}\",CHAR(160),IR$1))-FIND(CHAR(160),SUBSTITUTE($AB160,\"{\",CHAR(160),IR$1))+1),\"\")","v":""},{"$f":"IFERROR(MID($AB160,FIND(CHAR(160),SUBSTITUTE($AB160,\"{\",CHAR(160),IS$1)),FIND(CHAR(160),SUBSTITUTE($AB160,\"}\",CHAR(160),IS$1))-FIND(CHAR(160),SUBSTITUTE($AB160,\"{\",CHAR(160),IS$1))+1),\"\")","v":""},{"$f":"IFERROR(MID($AB160,FIND(CHAR(160),SUBSTITUTE($AB160,\"{\",CHAR(160),IT$1)),FIND(CHAR(160),SUBSTITUTE($AB160,\"}\",CHAR(160),IT$1))-FIND(CHAR(160),SUBSTITUTE($AB160,\"{\",CHAR(160),IT$1))+1),\"\")","v":""},{"$f":"IFERROR(MID($AB160,FIND(CHAR(160),SUBSTITUTE($AB160,\"{\",CHAR(160),IU$1)),FIND(CHAR(160),SUBSTITUTE($AB160,\"}\",CHAR(160),IU$1))-FIND(CHAR(160),SUBSTITUTE($AB160,\"{\",CHAR(160),IU$1))+1),\"\")","v":""},{"$f":"IFERROR(MID($AB160,FIND(CHAR(160),SUBSTITUTE($AB160,\"{\",CHAR(160),IV$1)),FIND(CHAR(160),SUBSTITUTE($AB160,\"}\",CHAR(160),IV$1))-FIND(CHAR(160),SUBSTITUTE($AB160,\"{\",CHAR(160),IV$1))+1),\"\")","v":""},{"$f":"IFERROR(MID($AB160,FIND(CHAR(160),SUBSTITUTE($AB160,\"{\",CHAR(160),IW$1)),FIND(CHAR(160),SUBSTITUTE($AB160,\"}\",CHAR(160),IW$1))-FIND(CHAR(160),SUBSTITUTE($AB160,\"{\",CHAR(160),IW$1))+1),\"\")","v":""},{"$f":"IFERROR(MID($AB160,FIND(CHAR(160),SUBSTITUTE($AB160,\"{\",CHAR(160),IX$1)),FIND(CHAR(160),SUBSTITUTE($AB160,\"}\",CHAR(160),IX$1))-FIND(CHAR(160),SUBSTITUTE($AB160,\"{\",CHAR(160),IX$1))+1),\"\")","v":""},null,{"$f":"10-COUNTIF(DU160:ED160,\"\")","v":7}]
["Distributor HVAC – Natural Gas","Tankless Water Heater","TLWH","2021-07-01","2022-06-30","Calculated","{Measure:Quantity}*780",0,"Calculated","(if({Retail Price}<300,{Retail Price},300)*{Measure:Quantity})+{Stipend/Paperwork Fee}",0,"2021-01-20","2022-06-30","Calculated",null,null,null,null,null,null,null,null,"{Measure:Quantity}*if({Customer Type}=1,72018,if({Customer Type}=4,72018,18664)) * 8.33 * 1 * (126.2-50.8) * ((1/if({Customer Type}=1,0.7,if({Customer Type}=4,0.7,0.62)))-(1/0.9)) / 1000000*10",null,null,null,null,null,"2021-01-20","2022-06-30",25,0,0,1,0,0,0,1,1,0,0.25,0,null,{"$f":"DU161","v":"{Measure:Quantity}"},1,{"$f":"DV161","v":"{Retail Price}"},1500,{"$f":"DW161","v":"{Stipend/Paperwork Fee}"},20,{"$f":"DX161","v":"{Customer Type}"},1,{"$f":"DY161","v":""},null,{"$f":"DZ161","v":""},null,{"$f":"EA161","v":""},null,{"$f":"EB161","v":""},null,{"$f":"EC161","v":""},null,{"$f":"ED161","v":""},null,0,0,0,0,0,0,0,0,{"$f":"AS161*IF(AY161=1,72018,IF(AY161=4,72018,18664)) * 8.33 * 1 * (126.2-50.8) * ((1/IF(AY161=1,0.7,IF(AY161=4,0.7,0.62)))-(1/0.9)) / 1000000*10","v":143.59749040000003},0,0,0,0,0,null,"Res","RGGI DR",{"$f":"Benefits(BL161,BR161,BS161,BT161,BU161,BV161,BW161,BX161,BY161,BZ161,AE161,AH161,AI161,AJ161,AK161,AL161,AM161,AN161,AO161,AP161,CA161,CB161)","v":0},0,3842.5570676131183,0,0,0,0,0,0,{"$f":"SUMPRODUCT(CC161:CK161,--(CC161:CK161>0))","v":3842.5570676131183},{"$f":"-SUMPRODUCT(CC161:CK161,--(CC161:CK161<0))","v":0},null,{"$f":"AS161*780","v":780},null,null,{"$f":"CM161+CO161","v":780},{"$f":"IF(NetOrGross=\"Net\",(1-AO161+AP161),1)","v":1},{"$f":"(SUMPRODUCT(CC161:CJ161,--(CC161:CJ161>0))+CN161)*CS161/((-SUMPRODUCT(CC161:CJ161,--(CC161:CJ161<0))+MAX(CO161,CV161)+CP161+CQ161)*CS161+IF(FRIncentives=\"Yes\",CV161*(1-CS161),0))","v":4.9263552148886136},1,{"$f":"(IF(AU161<300,AU161,300)*AS161)+AW161","v":320},null,"RGGI","y",null,{"$f":"IF(F161=\"Manual Entry\",\"Manual\",IF(G161=\"\",0,\"X=\"&SUBSTITUTE(SUBSTITUTE(SUBSTITUTE(SUBSTITUTE(SUBSTITUTE(SUBSTITUTE(SUBSTITUTE(SUBSTITUTE(SUBSTITUTE(SUBSTITUTE(SUBSTITUTE(SUBSTITUTE(G161,$ED161,$ED$2&ROW($ED161)),$EC161,$EC$2&ROW($EC161)),$EB161,$EB$2&ROW($EB161)),$EA161,$EA$2&ROW($EA161)),$DZ161,$DZ$2&ROW($DZ161)),$DY161,$DY$2&ROW($DY161)),$DX161,$DX$2&ROW($DX161)),$DW161,$DW$2&ROW($DW161)),$DV161,$DV$2&ROW($DV161)),$DU161,$DU$2&ROW($DU161)),$DT161,$DT$2&ROW($DT161)),$DS161,$DS$2&ROW($DS161))))","v":"X=AS161*780"},{"$f":"IF(I161=\"Manual Entry\",\"Manual\",IF(J161=\"\",0,\"X=\"&SUBSTITUTE(SUBSTITUTE(SUBSTITUTE(SUBSTITUTE(SUBSTITUTE(SUBSTITUTE(SUBSTITUTE(SUBSTITUTE(SUBSTITUTE(SUBSTITUTE(SUBSTITUTE(SUBSTITUTE(J161,$ED161,$ED$2&ROW($ED161)),$EC161,$EC$2&ROW($EC161)),$EB161,$EB$2&ROW($EB161)),$EA161,$EA$2&ROW($EA161)),$DZ161,$DZ$2&ROW($DZ161)),$DY161,$DY$2&ROW($DY161)),$DX161,$DX$2&ROW($DX161)),$DW161,$DW$2&ROW($DW161)),$DV161,$DV$2&ROW($DV161)),$DU161,$DU$2&ROW($DU161)),$DT161,$DT$2&ROW($DT161)),$DS161,$DS$2&ROW($DS161))))","v":"X=(if(AU161<300,AU161,300)*AS161)+AW161"},{"$f":"IF(O161=\"\",0,\"X=\"&SUBSTITUTE(SUBSTITUTE(SUBSTITUTE(SUBSTITUTE(SUBSTITUTE(SUBSTITUTE(SUBSTITUTE(SUBSTITUTE(SUBSTITUTE(SUBSTITUTE(SUBSTITUTE(SUBSTITUTE(O161,$ED161,$ED$2&ROW($ED161)),$EC161,$EC$2&ROW($EC161)),$EB161,$EB$2&ROW($EB161)),$EA161,$EA$2&ROW($EA161)),$DZ161,$DZ$2&ROW($DZ161)),$DY161,$DY$2&ROW($DY161)),$DX161,$DX$2&ROW($DX161)),$DW161,$DW$2&ROW($DW161)),$DV161,$DV$2&ROW($DV161)),$DU161,$DU$2&ROW($DU161)),$DT161,$DT$2&ROW($DT161)),$DS161,$DS$2&ROW($DS161)))","v":0},{"$f":"IF(P161=\"\",0,\"X=\"&SUBSTITUTE(SUBSTITUTE(SUBSTITUTE(SUBSTITUTE(SUBSTITUTE(SUBSTITUTE(SUBSTITUTE(SUBSTITUTE(SUBSTITUTE(SUBSTITUTE(SUBSTITUTE(SUBSTITUTE(P161,$ED161,$ED$2&ROW($ED161)),$EC161,$EC$2&ROW($EC161)),$EB161,$EB$2&ROW($EB161)),$EA161,$EA$2&ROW($EA161)),$DZ161,$DZ$2&ROW($DZ161)),$DY161,$DY$2&ROW($DY161)),$DX161,$DX$2&ROW($DX161)),$DW161,$DW$2&ROW($DW161)),$DV161,$DV$2&ROW($DV161)),$DU161,$DU$2&ROW($DU161)),$DT161,$DT$2&ROW($DT161)),$DS161,$DS$2&ROW($DS161)))","v":0},{"$f":"IF(Q161=\"\",0,\"X=\"&SUBSTITUTE(SUBSTITUTE(SUBSTITUTE(SUBSTITUTE(SUBSTITUTE(SUBSTITUTE(SUBSTITUTE(SUBSTITUTE(SUBSTITUTE(SUBSTITUTE(SUBSTITUTE(SUBSTITUTE(Q161,$ED161,$ED$2&ROW($ED161)),$EC161,$EC$2&ROW($EC161)),$EB161,$EB$2&ROW($EB161)),$EA161,$EA$2&ROW($EA161)),$DZ161,$DZ$2&ROW($DZ161)),$DY161,$DY$2&ROW($DY161)),$DX161,$DX$2&ROW($DX161)),$DW161,$DW$2&ROW($DW161)),$DV161,$DV$2&ROW($DV161)),$DU161,$DU$2&ROW($DU161)),$DT161,$DT$2&ROW($DT161)),$DS161,$DS$2&ROW($DS161)))","v":0},{"$f":"IF(R161=\"\",0,\"X=\"&SUBSTITUTE(SUBSTITUTE(SUBSTITUTE(SUBSTITUTE(SUBSTITUTE(SUBSTITUTE(SUBSTITUTE(SUBSTITUTE(SUBSTITUTE(SUBSTITUTE(SUBSTITUTE(SUBSTITUTE(R161,$ED161,$ED$2&ROW($ED161)),$EC161,$EC$2&ROW($EC161)),$EB161,$EB$2&ROW($EB161)),$EA161,$EA$2&ROW($EA161)),$DZ161,$DZ$2&ROW($DZ161)),$DY161,$DY$2&ROW($DY161)),$DX161,$DX$2&ROW($DX161)),$DW161,$DW$2&ROW($DW161)),$DV161,$DV$2&ROW($DV161)),$DU161,$DU$2&ROW($DU161)),$DT161,$DT$2&ROW($DT161)),$DS161,$DS$2&ROW($DS161)))","v":0},{"$f":"IF(S161=\"\",0,\"X=\"&SUBSTITUTE(SUBSTITUTE(SUBSTITUTE(SUBSTITUTE(SUBSTITUTE(SUBSTITUTE(SUBSTITUTE(SUBSTITUTE(SUBSTITUTE(SUBSTITUTE(SUBSTITUTE(SUBSTITUTE(S161,$ED161,$ED$2&ROW($ED161)),$EC161,$EC$2&ROW($EC161)),$EB161,$EB$2&ROW($EB161)),$EA161,$EA$2&ROW($EA161)),$DZ161,$DZ$2&ROW($DZ161)),$DY161,$DY$2&ROW($DY161)),$DX161,$DX$2&ROW($DX161)),$DW161,$DW$2&ROW($DW161)),$DV161,$DV$2&ROW($DV161)),$DU161,$DU$2&ROW($DU161)),$DT161,$DT$2&ROW($DT161)),$DS161,$DS$2&ROW($DS161)))","v":0},{"$f":"IF(T161=\"\",0,\"X=\"&SUBSTITUTE(SUBSTITUTE(SUBSTITUTE(SUBSTITUTE(SUBSTITUTE(SUBSTITUTE(SUBSTITUTE(SUBSTITUTE(SUBSTITUTE(SUBSTITUTE(SUBSTITUTE(SUBSTITUTE(T161,$ED161,$ED$2&ROW($ED161)),$EC161,$EC$2&ROW($EC161)),$EB161,$EB$2&ROW($EB161)),$EA161,$EA$2&ROW($EA161)),$DZ161,$DZ$2&ROW($DZ161)),$DY161,$DY$2&ROW($DY161)),$DX161,$DX$2&ROW($DX161)),$DW161,$DW$2&ROW($DW161)),$DV161,$DV$2&ROW($DV161)),$DU161,$DU$2&ROW($DU161)),$DT161,$DT$2&ROW($DT161)),$DS161,$DS$2&ROW($DS161)))","v":0},{"$f":"IF(U161=\"\",0,\"X=\"&SUBSTITUTE(SUBSTITUTE(SUBSTITUTE(SUBSTITUTE(SUBSTITUTE(SUBSTITUTE(SUBSTITUTE(SUBSTITUTE(SUBSTITUTE(SUBSTITUTE(SUBSTITUTE(SUBSTITUTE(U161,$ED161,$ED$2&ROW($ED161)),$EC161,$EC$2&ROW($EC161)),$EB161,$EB$2&ROW($EB161)),$EA161,$EA$2&ROW($EA161)),$DZ161,$DZ$2&ROW($DZ161)),$DY161,$DY$2&ROW($DY161)),$DX161,$DX$2&ROW($DX161)),$DW161,$DW$2&ROW($DW161)),$DV161,$DV$2&ROW($DV161)),$DU161,$DU$2&ROW($DU161)),$DT161,$DT$2&ROW($DT161)),$DS161,$DS$2&ROW($DS161)))","v":0},{"$f":"IF(V161=\"\",0,\"X=\"&SUBSTITUTE(SUBSTITUTE(SUBSTITUTE(SUBSTITUTE(SUBSTITUTE(SUBSTITUTE(SUBSTITUTE(SUBSTITUTE(SUBSTITUTE(SUBSTITUTE(SUBSTITUTE(SUBSTITUTE(V161,$ED161,$ED$2&ROW($ED161)),$EC161,$EC$2&ROW($EC161)),$EB161,$EB$2&ROW($EB161)),$EA161,$EA$2&ROW($EA161)),$DZ161,$DZ$2&ROW($DZ161)),$DY161,$DY$2&ROW($DY161)),$DX161,$DX$2&ROW($DX161)),$DW161,$DW$2&ROW($DW161)),$DV161,$DV$2&ROW($DV161)),$DU161,$DU$2&ROW($DU161)),$DT161,$DT$2&ROW($DT161)),$DS161,$DS$2&ROW($DS161)))","v":0},{"$f":"IF(W161=\"\",0,\"X=\"&SUBSTITUTE(SUBSTITUTE(SUBSTITUTE(SUBSTITUTE(SUBSTITUTE(SUBSTITUTE(SUBSTITUTE(SUBSTITUTE(SUBSTITUTE(SUBSTITUTE(SUBSTITUTE(SUBSTITUTE(W161,$ED161,$ED$2&ROW($ED161)),$EC161,$EC$2&ROW($EC161)),$EB161,$EB$2&ROW($EB161)),$EA161,$EA$2&ROW($EA161)),$DZ161,$DZ$2&ROW($DZ161)),$DY161,$DY$2&ROW($DY161)),$DX161,$DX$2&ROW($DX161)),$DW161,$DW$2&ROW($DW161)),$DV161,$DV$2&ROW($DV161)),$DU161,$DU$2&ROW($DU161)),$DT161,$DT$2&ROW($DT161)),$DS161,$DS$2&ROW($DS161)))","v":"X=AS161*if(AY161=1,72018,if(AY161=4,72018,18664)) * 8.33 * 1 * (126.2-50.8) * ((1/if(AY161=1,0.7,if(AY161=4,0.7,0.62)))-(1/0.9)) / 1000000*10"},{"$f":"IF(X161=\"\",0,\"X=\"&SUBSTITUTE(SUBSTITUTE(SUBSTITUTE(SUBSTITUTE(SUBSTITUTE(SUBSTITUTE(SUBSTITUTE(SUBSTITUTE(SUBSTITUTE(SUBSTITUTE(SUBSTITUTE(SUBSTITUTE(X161,$ED161,$ED$2&ROW($ED161)),$EC161,$EC$2&ROW($EC161)),$EB161,$EB$2&ROW($EB161)),$EA161,$EA$2&ROW($EA161)),$DZ161,$DZ$2&ROW($DZ161)),$DY161,$DY$2&ROW($DY161)),$DX161,$DX$2&ROW($DX161)),$DW161,$DW$2&ROW($DW161)),$DV161,$DV$2&ROW($DV161)),$DU161,$DU$2&ROW($DU161)),$DT161,$DT$2&ROW($DT161)),$DS161,$DS$2&ROW($DS161)))","v":0},{"$f":"IF(Y161=\"\",0,\"X=\"&SUBSTITUTE(SUBSTITUTE(SUBSTITUTE(SUBSTITUTE(SUBSTITUTE(SUBSTITUTE(SUBSTITUTE(SUBSTITUTE(SUBSTITUTE(SUBSTITUTE(SUBSTITUTE(SUBSTITUTE(Y161,$ED161,$ED$2&ROW($ED161)),$EC161,$EC$2&ROW($EC161)),$EB161,$EB$2&ROW($EB161)),$EA161,$EA$2&ROW($EA161)),$DZ161,$DZ$2&ROW($DZ161)),$DY161,$DY$2&ROW($DY161)),$DX161,$DX$2&ROW($DX161)),$DW161,$DW$2&ROW($DW161)),$DV161,$DV$2&ROW($DV161)),$DU161,$DU$2&ROW($DU161)),$DT161,$DT$2&ROW($DT161)),$DS161,$DS$2&ROW($DS161)))","v":0},{"$f":"IF(Z161=\"\",0,\"X=\"&SUBSTITUTE(SUBSTITUTE(SUBSTITUTE(SUBSTITUTE(SUBSTITUTE(SUBSTITUTE(SUBSTITUTE(SUBSTITUTE(SUBSTITUTE(SUBSTITUTE(SUBSTITUTE(SUBSTITUTE(Z161,$ED161,$ED$2&ROW($ED161)),$EC161,$EC$2&ROW($EC161)),$EB161,$EB$2&ROW($EB161)),$EA161,$EA$2&ROW($EA161)),$DZ161,$DZ$2&ROW($DZ161)),$DY161,$DY$2&ROW($DY161)),$DX161,$DX$2&ROW($DX161)),$DW161,$DW$2&ROW($DW161)),$DV161,$DV$2&ROW($DV161)),$DU161,$DU$2&ROW($DU161)),$DT161,$DT$2&ROW($DT161)),$DS161,$DS$2&ROW($DS161)))","v":0},{"$f":"IF(AA161=\"\",0,\"X=\"&SUBSTITUTE(SUBSTITUTE(SUBSTITUTE(SUBSTITUTE(SUBSTITUTE(SUBSTITUTE(SUBSTITUTE(SUBSTITUTE(SUBSTITUTE(SUBSTITUTE(SUBSTITUTE(SUBSTITUTE(AA161,$ED161,$ED$2&ROW($ED161)),$EC161,$EC$2&ROW($EC161)),$EB161,$EB$2&ROW($EB161)),$EA161,$EA$2&ROW($EA161)),$DZ161,$DZ$2&ROW($DZ161)),$DY161,$DY$2&ROW($DY161)),$DX161,$DX$2&ROW($DX161)),$DW161,$DW$2&ROW($DW161)),$DV161,$DV$2&ROW($DV161)),$DU161,$DU$2&ROW($DU161)),$DT161,$DT$2&ROW($DT161)),$DS161,$DS$2&ROW($DS161)))","v":0},{"$f":"IF(AB161=\"\",0,\"X=\"&SUBSTITUTE(SUBSTITUTE(SUBSTITUTE(SUBSTITUTE(SUBSTITUTE(SUBSTITUTE(SUBSTITUTE(SUBSTITUTE(SUBSTITUTE(SUBSTITUTE(SUBSTITUTE(SUBSTITUTE(AB161,$ED161,$ED$2&ROW($ED161)),$EC161,$EC$2&ROW($EC161)),$EB161,$EB$2&ROW($EB161)),$EA161,$EA$2&ROW($EA161)),$DZ161,$DZ$2&ROW($DZ161)),$DY161,$DY$2&ROW($DY161)),$DX161,$DX$2&ROW($DX161)),$DW161,$DW$2&ROW($DW161)),$DV161,$DV$2&ROW($DV161)),$DU161,$DU$2&ROW($DU161)),$DT161,$DT$2&ROW($DT161)),$DS161,$DS$2&ROW($DS161)))","v":0},null,null,"{Factor:WinterCF}","{Factor:SummerCF}",{"$f":"IFERROR(INDEX($EG161:$IV161,MATCH(0,COUNTIF($DR161:DT161,$EG161:$IV161),0)),\"\")","v":"{Measure:Quantity}"},{"$f":"IFERROR(INDEX($EG161:$IV161,MATCH(0,COUNTIF($DR161:DU161,$EG161:$IV161),0)),\"\")","v":"{Retail Price}"},{"$f":"IFERROR(INDEX($EG161:$IV161,MATCH(0,COUNTIF($DR161:DV161,$EG161:$IV161),0)),\"\")","v":"{Stipend/Paperwork Fee}"},{"$f":"IFERROR(INDEX($EG161:$IV161,MATCH(0,COUNTIF($DR161:DW161,$EG161:$IV161),0)),\"\")","v":"{Customer Type}"},{"$f":"IFERROR(INDEX($EG161:$IV161,MATCH(0,COUNTIF($DR161:DX161,$EG161:$IV161),0)),\"\")","v":""},{"$f":"IFERROR(INDEX($EG161:$IV161,MATCH(0,COUNTIF($DR161:DY161,$EG161:$IV161),0)),\"\")","v":""},{"$f":"IFERROR(INDEX($EG161:$IV161,MATCH(0,COUNTIF($DR161:DZ161,$EG161:$IV161),0)),\"\")","v":""},{"$f":"IFERROR(INDEX($EG161:$IV161,MATCH(0,COUNTIF($DR161:EA161,$EG161:$IV161),0)),\"\")","v":""},{"$f":"IFERROR(INDEX($EG161:$IV161,MATCH(0,COUNTIF($DR161:EB161,$EG161:$IV161),0)),\"\")","v":""},{"$f":"IFERROR(INDEX($EG161:$IV161,MATCH(0,COUNTIF($DR161:EC161,$EG161:$IV161),0)),\"\")","v":""},null,null,{"$f":"IFERROR(MID($G161,FIND(CHAR(160),SUBSTITUTE($G161,\"{\",CHAR(160),EG$1)),FIND(CHAR(160),SUBSTITUTE($G161,\"}\",CHAR(160),EG$1))-FIND(CHAR(160),SUBSTITUTE($G161,\"{\",CHAR(160),EG$1))+1),\"\")","v":"{Measure:Quantity}"},{"$f":"IFERROR(MID($G161,FIND(CHAR(160),SUBSTITUTE($G161,\"{\",CHAR(160),EH$1)),FIND(CHAR(160),SUBSTITUTE($G161,\"}\",CHAR(160),EH$1))-FIND(CHAR(160),SUBSTITUTE($G161,\"{\",CHAR(160),EH$1))+1),\"\")","v":""},{"$f":"IFERROR(MID($G161,FIND(CHAR(160),SUBSTITUTE($G161,\"{\",CHAR(160),EI$1)),FIND(CHAR(160),SUBSTITUTE($G161,\"}\",CHAR(160),EI$1))-FIND(CHAR(160),SUBSTITUTE($G161,\"{\",CHAR(160),EI$1))+1),\"\")","v":""},{"$f":"IFERROR(MID($G161,FIND(CHAR(160),SUBSTITUTE($G161,\"{\",CHAR(160),EJ$1)),FIND(CHAR(160),SUBSTITUTE($G161,\"}\",CHAR(160),EJ$1))-FIND(CHAR(160),SUBSTITUTE($G161,\"{\",CHAR(160),EJ$1))+1),\"\")","v":""},{"$f":"IFERROR(MID($G161,FIND(CHAR(160),SUBSTITUTE($G161,\"{\",CHAR(160),EK$1)),FIND(CHAR(160),SUBSTITUTE($G161,\"}\",CHAR(160),EK$1))-FIND(CHAR(160),SUBSTITUTE($G161,\"{\",CHAR(160),EK$1))+1),\"\")","v":""},{"$f":"IFERROR(MID($G161,FIND(CHAR(160),SUBSTITUTE($G161,\"{\",CHAR(160),EL$1)),FIND(CHAR(160),SUBSTITUTE($G161,\"}\",CHAR(160),EL$1))-FIND(CHAR(160),SUBSTITUTE($G161,\"{\",CHAR(160),EL$1))+1),\"\")","v":""},{"$f":"IFERROR(MID($G161,FIND(CHAR(160),SUBSTITUTE($G161,\"{\",CHAR(160),EM$1)),FIND(CHAR(160),SUBSTITUTE($G161,\"}\",CHAR(160),EM$1))-FIND(CHAR(160),SUBSTITUTE($G161,\"{\",CHAR(160),EM$1))+1),\"\")","v":""},{"$f":"IFERROR(MID($G161,FIND(CHAR(160),SUBSTITUTE($G161,\"{\",CHAR(160),EN$1)),FIND(CHAR(160),SUBSTITUTE($G161,\"}\",CHAR(160),EN$1))-FIND(CHAR(160),SUBSTITUTE($G161,\"{\",CHAR(160),EN$1))+1),\"\")","v":""},{"$f":"IFERROR(MID($G161,FIND(CHAR(160),SUBSTITUTE($G161,\"{\",CHAR(160),EO$1)),FIND(CHAR(160),SUBSTITUTE($G161,\"}\",CHAR(160),EO$1))-FIND(CHAR(160),SUBSTITUTE($G161,\"{\",CHAR(160),EO$1))+1),\"\")","v":""},{"$f":"IFERROR(MID($G161,FIND(CHAR(160),SUBSTITUTE($G161,\"{\",CHAR(160),EP$1)),FIND(CHAR(160),SUBSTITUTE($G161,\"}\",CHAR(160),EP$1))-FIND(CHAR(160),SUBSTITUTE($G161,\"{\",CHAR(160),EP$1))+1),\"\")","v":""},{"$f":"IFERROR(MID($J161,FIND(CHAR(160),SUBSTITUTE($J161,\"{\",CHAR(160),EQ$1)),FIND(CHAR(160),SUBSTITUTE($J161,\"}\",CHAR(160),EQ$1))-FIND(CHAR(160),SUBSTITUTE($J161,\"{\",CHAR(160),EQ$1))+1),\"\")","v":"{Retail Price}"},{"$f":"IFERROR(MID($J161,FIND(CHAR(160),SUBSTITUTE($J161,\"{\",CHAR(160),ER$1)),FIND(CHAR(160),SUBSTITUTE($J161,\"}\",CHAR(160),ER$1))-FIND(CHAR(160),SUBSTITUTE($J161,\"{\",CHAR(160),ER$1))+1),\"\")","v":"{Retail Price}"},{"$f":"IFERROR(MID($J161,FIND(CHAR(160),SUBSTITUTE($J161,\"{\",CHAR(160),ES$1)),FIND(CHAR(160),SUBSTITUTE($J161,\"}\",CHAR(160),ES$1))-FIND(CHAR(160),SUBSTITUTE($J161,\"{\",CHAR(160),ES$1))+1),\"\")","v":"{Measure:Quantity}"},{"$f":"IFERROR(MID($J161,FIND(CHAR(160),SUBSTITUTE($J161,\"{\",CHAR(160),ET$1)),FIND(CHAR(160),SUBSTITUTE($J161,\"}\",CHAR(160),ET$1))-FIND(CHAR(160),SUBSTITUTE($J161,\"{\",CHAR(160),ET$1))+1),\"\")","v":"{Stipend/Paperwork Fee}"},{"$f":"IFERROR(MID($J161,FIND(CHAR(160),SUBSTITUTE($J161,\"{\",CHAR(160),EU$1)),FIND(CHAR(160),SUBSTITUTE($J161,\"}\",CHAR(160),EU$1))-FIND(CHAR(160),SUBSTITUTE($J161,\"{\",CHAR(160),EU$1))+1),\"\")","v":""},{"$f":"IFERROR(MID($J161,FIND(CHAR(160),SUBSTITUTE($J161,\"{\",CHAR(160),EV$1)),FIND(CHAR(160),SUBSTITUTE($J161,\"}\",CHAR(160),EV$1))-FIND(CHAR(160),SUBSTITUTE($J161,\"{\",CHAR(160),EV$1))+1),\"\")","v":""},{"$f":"IFERROR(MID($J161,FIND(CHAR(160),SUBSTITUTE($J161,\"{\",CHAR(160),EW$1)),FIND(CHAR(160),SUBSTITUTE($J161,\"}\",CHAR(160),EW$1))-FIND(CHAR(160),SUBSTITUTE($J161,\"{\",CHAR(160),EW$1))+1),\"\")","v":""},{"$f":"IFERROR(MID($J161,FIND(CHAR(160),SUBSTITUTE($J161,\"{\",CHAR(160),EX$1)),FIND(CHAR(160),SUBSTITUTE($J161,\"}\",CHAR(160),EX$1))-FIND(CHAR(160),SUBSTITUTE($J161,\"{\",CHAR(160),EX$1))+1),\"\")","v":""},{"$f":"IFERROR(MID($J161,FIND(CHAR(160),SUBSTITUTE($J161,\"{\",CHAR(160),EY$1)),FIND(CHAR(160),SUBSTITUTE($J161,\"}\",CHAR(160),EY$1))-FIND(CHAR(160),SUBSTITUTE($J161,\"{\",CHAR(160),EY$1))+1),\"\")","v":""},{"$f":"IFERROR(MID($J161,FIND(CHAR(160),SUBSTITUTE($J161,\"{\",CHAR(160),EZ$1)),FIND(CHAR(160),SUBSTITUTE($J161,\"}\",CHAR(160),EZ$1))-FIND(CHAR(160),SUBSTITUTE($J161,\"{\",CHAR(160),EZ$1))+1),\"\")","v":""},{"$f":"IFERROR(MID($J161,FIND(CHAR(160),SUBSTITUTE($J161,\"{\",CHAR(160),FA$1)),FIND(CHAR(160),SUBSTITUTE($J161,\"}\",CHAR(160),FA$1))-FIND(CHAR(160),SUBSTITUTE($J161,\"{\",CHAR(160),FA$1))+1),\"\")","v":"{Retail Price}"},{"$f":"IFERROR(MID($J161,FIND(CHAR(160),SUBSTITUTE($J161,\"{\",CHAR(160),FB$1)),FIND(CHAR(160),SUBSTITUTE($J161,\"}\",CHAR(160),FB$1))-FIND(CHAR(160),SUBSTITUTE($J161,\"{\",CHAR(160),FB$1))+1),\"\")","v":"{Retail Price}"},{"$f":"IFERROR(MID($O161,FIND(CHAR(160),SUBSTITUTE($O161,\"{\",CHAR(160),FC$1)),FIND(CHAR(160),SUBSTITUTE($O161,\"}\",CHAR(160),FC$1))-FIND(CHAR(160),SUBSTITUTE($O161,\"{\",CHAR(160),FC$1))+1),\"\")","v":""},{"$f":"IFERROR(MID($O161,FIND(CHAR(160),SUBSTITUTE($O161,\"{\",CHAR(160),FD$1)),FIND(CHAR(160),SUBSTITUTE($O161,\"}\",CHAR(160),FD$1))-FIND(CHAR(160),SUBSTITUTE($O161,\"{\",CHAR(160),FD$1))+1),\"\")","v":""},{"$f":"IFERROR(MID($O161,FIND(CHAR(160),SUBSTITUTE($O161,\"{\",CHAR(160),FE$1)),FIND(CHAR(160),SUBSTITUTE($O161,\"}\",CHAR(160),FE$1))-FIND(CHAR(160),SUBSTITUTE($O161,\"{\",CHAR(160),FE$1))+1),\"\")","v":""},{"$f":"IFERROR(MID($O161,FIND(CHAR(160),SUBSTITUTE($O161,\"{\",CHAR(160),FF$1)),FIND(CHAR(160),SUBSTITUTE($O161,\"}\",CHAR(160),FF$1))-FIND(CHAR(160),SUBSTITUTE($O161,\"{\",CHAR(160),FF$1))+1),\"\")","v":""},{"$f":"IFERROR(MID($O161,FIND(CHAR(160),SUBSTITUTE($O161,\"{\",CHAR(160),FG$1)),FIND(CHAR(160),SUBSTITUTE($O161,\"}\",CHAR(160),FG$1))-FIND(CHAR(160),SUBSTITUTE($O161,\"{\",CHAR(160),FG$1))+1),\"\")","v":""},{"$f":"IFERROR(MID($O161,FIND(CHAR(160),SUBSTITUTE($O161,\"{\",CHAR(160),FH$1)),FIND(CHAR(160),SUBSTITUTE($O161,\"}\",CHAR(160),FH$1))-FIND(CHAR(160),SUBSTITUTE($O161,\"{\",CHAR(160),FH$1))+1),\"\")","v":""},{"$f":"IFERROR(MID($O161,FIND(CHAR(160),SUBSTITUTE($O161,\"{\",CHAR(160),FI$1)),FIND(CHAR(160),SUBSTITUTE($O161,\"}\",CHAR(160),FI$1))-FIND(CHAR(160),SUBSTITUTE($O161,\"{\",CHAR(160),FI$1))+1),\"\")","v":""},{"$f":"IFERROR(MID($O161,FIND(CHAR(160),SUBSTITUTE($O161,\"{\",CHAR(160),FJ$1)),FIND(CHAR(160),SUBSTITUTE($O161,\"}\",CHAR(160),FJ$1))-FIND(CHAR(160),SUBSTITUTE($O161,\"{\",CHAR(160),FJ$1))+1),\"\")","v":""},{"$f":"IFERROR(MID($O161,FIND(CHAR(160),SUBSTITUTE($O161,\"{\",CHAR(160),FK$1)),FIND(CHAR(160),SUBSTITUTE($O161,\"}\",CHAR(160),FK$1))-FIND(CHAR(160),SUBSTITUTE($O161,\"{\",CHAR(160),FK$1))+1),\"\")","v":""},{"$f":"IFERROR(MID($O161,FIND(CHAR(160),SUBSTITUTE($O161,\"{\",CHAR(160),FL$1)),FIND(CHAR(160),SUBSTITUTE($O161,\"}\",CHAR(160),FL$1))-FIND(CHAR(160),SUBSTITUTE($O161,\"{\",CHAR(160),FL$1))+1),\"\")","v":""},{"$f":"IFERROR(MID($R161,FIND(CHAR(160),SUBSTITUTE($R161,\"{\",CHAR(160),FM$1)),FIND(CHAR(160),SUBSTITUTE($R161,\"}\",CHAR(160),FM$1))-FIND(CHAR(160),SUBSTITUTE($R161,\"{\",CHAR(160),FM$1))+1),\"\")","v":""},{"$f":"IFERROR(MID($R161,FIND(CHAR(160),SUBSTITUTE($R161,\"{\",CHAR(160),FN$1)),FIND(CHAR(160),SUBSTITUTE($R161,\"}\",CHAR(160),FN$1))-FIND(CHAR(160),SUBSTITUTE($R161,\"{\",CHAR(160),FN$1))+1),\"\")","v":""},{"$f":"IFERROR(MID($R161,FIND(CHAR(160),SUBSTITUTE($R161,\"{\",CHAR(160),FO$1)),FIND(CHAR(160),SUBSTITUTE($R161,\"}\",CHAR(160),FO$1))-FIND(CHAR(160),SUBSTITUTE($R161,\"{\",CHAR(160),FO$1))+1),\"\")","v":""},{"$f":"IFERROR(MID($R161,FIND(CHAR(160),SUBSTITUTE($R161,\"{\",CHAR(160),FP$1)),FIND(CHAR(160),SUBSTITUTE($R161,\"}\",CHAR(160),FP$1))-FIND(CHAR(160),SUBSTITUTE($R161,\"{\",CHAR(160),FP$1))+1),\"\")","v":""},{"$f":"IFERROR(MID($R161,FIND(CHAR(160),SUBSTITUTE($R161,\"{\",CHAR(160),FQ$1)),FIND(CHAR(160),SUBSTITUTE($R161,\"}\",CHAR(160),FQ$1))-FIND(CHAR(160),SUBSTITUTE($R161,\"{\",CHAR(160),FQ$1))+1),\"\")","v":""},{"$f":"IFERROR(MID($R161,FIND(CHAR(160),SUBSTITUTE($R161,\"{\",CHAR(160),FR$1)),FIND(CHAR(160),SUBSTITUTE($R161,\"}\",CHAR(160),FR$1))-FIND(CHAR(160),SUBSTITUTE($R161,\"{\",CHAR(160),FR$1))+1),\"\")","v":""},{"$f":"IFERROR(MID($R161,FIND(CHAR(160),SUBSTITUTE($R161,\"{\",CHAR(160),FS$1)),FIND(CHAR(160),SUBSTITUTE($R161,\"}\",CHAR(160),FS$1))-FIND(CHAR(160),SUBSTITUTE($R161,\"{\",CHAR(160),FS$1))+1),\"\")","v":""},{"$f":"IFERROR(MID($R161,FIND(CHAR(160),SUBSTITUTE($R161,\"{\",CHAR(160),FT$1)),FIND(CHAR(160),SUBSTITUTE($R161,\"}\",CHAR(160),FT$1))-FIND(CHAR(160),SUBSTITUTE($R161,\"{\",CHAR(160),FT$1))+1),\"\")","v":""},{"$f":"IFERROR(MID($R161,FIND(CHAR(160),SUBSTITUTE($R161,\"{\",CHAR(160),FU$1)),FIND(CHAR(160),SUBSTITUTE($R161,\"}\",CHAR(160),FU$1))-FIND(CHAR(160),SUBSTITUTE($R161,\"{\",CHAR(160),FU$1))+1),\"\")","v":""},{"$f":"IFERROR(MID($R161,FIND(CHAR(160),SUBSTITUTE($R161,\"{\",CHAR(160),FV$1)),FIND(CHAR(160),SUBSTITUTE($R161,\"}\",CHAR(160),FV$1))-FIND(CHAR(160),SUBSTITUTE($R161,\"{\",CHAR(160),FV$1))+1),\"\")","v":""},{"$f":"IFERROR(MID($U161,FIND(CHAR(160),SUBSTITUTE($U161,\"{\",CHAR(160),FW$1)),FIND(CHAR(160),SUBSTITUTE($U161,\"}\",CHAR(160),FW$1))-FIND(CHAR(160),SUBSTITUTE($U161,\"{\",CHAR(160),FW$1))+1),\"\")","v":""},{"$f":"IFERROR(MID($U161,FIND(CHAR(160),SUBSTITUTE($U161,\"{\",CHAR(160),FX$1)),FIND(CHAR(160),SUBSTITUTE($U161,\"}\",CHAR(160),FX$1))-FIND(CHAR(160),SUBSTITUTE($U161,\"{\",CHAR(160),FX$1))+1),\"\")","v":""},{"$f":"IFERROR(MID($U161,FIND(CHAR(160),SUBSTITUTE($U161,\"{\",CHAR(160),FY$1)),FIND(CHAR(160),SUBSTITUTE($U161,\"}\",CHAR(160),FY$1))-FIND(CHAR(160),SUBSTITUTE($U161,\"{\",CHAR(160),FY$1))+1),\"\")","v":""},{"$f":"IFERROR(MID($U161,FIND(CHAR(160),SUBSTITUTE($U161,\"{\",CHAR(160),FZ$1)),FIND(CHAR(160),SUBSTITUTE($U161,\"}\",CHAR(160),FZ$1))-FIND(CHAR(160),SUBSTITUTE($U161,\"{\",CHAR(160),FZ$1))+1),\"\")","v":""},{"$f":"IFERROR(MID($U161,FIND(CHAR(160),SUBSTITUTE($U161,\"{\",CHAR(160),GA$1)),FIND(CHAR(160),SUBSTITUTE($U161,\"}\",CHAR(160),GA$1))-FIND(CHAR(160),SUBSTITUTE($U161,\"{\",CHAR(160),GA$1))+1),\"\")","v":""},{"$f":"IFERROR(MID($U161,FIND(CHAR(160),SUBSTITUTE($U161,\"{\",CHAR(160),GB$1)),FIND(CHAR(160),SUBSTITUTE($U161,\"}\",CHAR(160),GB$1))-FIND(CHAR(160),SUBSTITUTE($U161,\"{\",CHAR(160),GB$1))+1),\"\")","v":""},{"$f":"IFERROR(MID($U161,FIND(CHAR(160),SUBSTITUTE($U161,\"{\",CHAR(160),GC$1)),FIND(CHAR(160),SUBSTITUTE($U161,\"}\",CHAR(160),GC$1))-FIND(CHAR(160),SUBSTITUTE($U161,\"{\",CHAR(160),GC$1))+1),\"\")","v":""},{"$f":"IFERROR(MID($U161,FIND(CHAR(160),SUBSTITUTE($U161,\"{\",CHAR(160),GD$1)),FIND(CHAR(160),SUBSTITUTE($U161,\"}\",CHAR(160),GD$1))-FIND(CHAR(160),SUBSTITUTE($U161,\"{\",CHAR(160),GD$1))+1),\"\")","v":""},{"$f":"IFERROR(MID($U161,FIND(CHAR(160),SUBSTITUTE($U161,\"{\",CHAR(160),GE$1)),FIND(CHAR(160),SUBSTITUTE($U161,\"}\",CHAR(160),GE$1))-FIND(CHAR(160),SUBSTITUTE($U161,\"{\",CHAR(160),GE$1))+1),\"\")","v":""},{"$f":"IFERROR(MID($U161,FIND(CHAR(160),SUBSTITUTE($U161,\"{\",CHAR(160),GF$1)),FIND(CHAR(160),SUBSTITUTE($U161,\"}\",CHAR(160),GF$1))-FIND(CHAR(160),SUBSTITUTE($U161,\"{\",CHAR(160),GF$1))+1),\"\")","v":""},{"$f":"IFERROR(MID($V161,FIND(CHAR(160),SUBSTITUTE($V161,\"{\",CHAR(160),GG$1)),FIND(CHAR(160),SUBSTITUTE($V161,\"}\",CHAR(160),GG$1))-FIND(CHAR(160),SUBSTITUTE($V161,\"{\",CHAR(160),GG$1))+1),\"\")","v":""},{"$f":"IFERROR(MID($V161,FIND(CHAR(160),SUBSTITUTE($V161,\"{\",CHAR(160),GH$1)),FIND(CHAR(160),SUBSTITUTE($V161,\"}\",CHAR(160),GH$1))-FIND(CHAR(160),SUBSTITUTE($V161,\"{\",CHAR(160),GH$1))+1),\"\")","v":""},{"$f":"IFERROR(MID($V161,FIND(CHAR(160),SUBSTITUTE($V161,\"{\",CHAR(160),GI$1)),FIND(CHAR(160),SUBSTITUTE($V161,\"}\",CHAR(160),GI$1))-FIND(CHAR(160),SUBSTITUTE($V161,\"{\",CHAR(160),GI$1))+1),\"\")","v":""},{"$f":"IFERROR(MID($V161,FIND(CHAR(160),SUBSTITUTE($V161,\"{\",CHAR(160),GJ$1)),FIND(CHAR(160),SUBSTITUTE($V161,\"}\",CHAR(160),GJ$1))-FIND(CHAR(160),SUBSTITUTE($V161,\"{\",CHAR(160),GJ$1))+1),\"\")","v":""},{"$f":"IFERROR(MID($V161,FIND(CHAR(160),SUBSTITUTE($V161,\"{\",CHAR(160),GK$1)),FIND(CHAR(160),SUBSTITUTE($V161,\"}\",CHAR(160),GK$1))-FIND(CHAR(160),SUBSTITUTE($V161,\"{\",CHAR(160),GK$1))+1),\"\")","v":""},{"$f":"IFERROR(MID($V161,FIND(CHAR(160),SUBSTITUTE($V161,\"{\",CHAR(160),GL$1)),FIND(CHAR(160),SUBSTITUTE($V161,\"}\",CHAR(160),GL$1))-FIND(CHAR(160),SUBSTITUTE($V161,\"{\",CHAR(160),GL$1))+1),\"\")","v":""},{"$f":"IFERROR(MID($V161,FIND(CHAR(160),SUBSTITUTE($V161,\"{\",CHAR(160),GM$1)),FIND(CHAR(160),SUBSTITUTE($V161,\"}\",CHAR(160),GM$1))-FIND(CHAR(160),SUBSTITUTE($V161,\"{\",CHAR(160),GM$1))+1),\"\")","v":""},{"$f":"IFERROR(MID($V161,FIND(CHAR(160),SUBSTITUTE($V161,\"{\",CHAR(160),GN$1)),FIND(CHAR(160),SUBSTITUTE($V161,\"}\",CHAR(160),GN$1))-FIND(CHAR(160),SUBSTITUTE($V161,\"{\",CHAR(160),GN$1))+1),\"\")","v":""},{"$f":"IFERROR(MID($V161,FIND(CHAR(160),SUBSTITUTE($V161,\"{\",CHAR(160),GO$1)),FIND(CHAR(160),SUBSTITUTE($V161,\"}\",CHAR(160),GO$1))-FIND(CHAR(160),SUBSTITUTE($V161,\"{\",CHAR(160),GO$1))+1),\"\")","v":""},{"$f":"IFERROR(MID($V161,FIND(CHAR(160),SUBSTITUTE($V161,\"{\",CHAR(160),GP$1)),FIND(CHAR(160),SUBSTITUTE($V161,\"}\",CHAR(160),GP$1))-FIND(CHAR(160),SUBSTITUTE($V161,\"{\",CHAR(160),GP$1))+1),\"\")","v":""},{"$f":"IFERROR(MID($W161,FIND(CHAR(160),SUBSTITUTE($W161,\"{\",CHAR(160),GQ$1)),FIND(CHAR(160),SUBSTITUTE($W161,\"}\",CHAR(160),GQ$1))-FIND(CHAR(160),SUBSTITUTE($W161,\"{\",CHAR(160),GQ$1))+1),\"\")","v":"{Customer Type}"},{"$f":"IFERROR(MID($W161,FIND(CHAR(160),SUBSTITUTE($W161,\"{\",CHAR(160),GR$1)),FIND(CHAR(160),SUBSTITUTE($W161,\"}\",CHAR(160),GR$1))-FIND(CHAR(160),SUBSTITUTE($W161,\"{\",CHAR(160),GR$1))+1),\"\")","v":"{Customer Type}"},{"$f":"IFERROR(MID($W161,FIND(CHAR(160),SUBSTITUTE($W161,\"{\",CHAR(160),GS$1)),FIND(CHAR(160),SUBSTITUTE($W161,\"}\",CHAR(160),GS$1))-FIND(CHAR(160),SUBSTITUTE($W161,\"{\",CHAR(160),GS$1))+1),\"\")","v":"{Customer Type}"},{"$f":"IFERROR(MID($W161,FIND(CHAR(160),SUBSTITUTE($W161,\"{\",CHAR(160),GT$1)),FIND(CHAR(160),SUBSTITUTE($W161,\"}\",CHAR(160),GT$1))-FIND(CHAR(160),SUBSTITUTE($W161,\"{\",CHAR(160),GT$1))+1),\"\")","v":""},{"$f":"IFERROR(MID($W161,FIND(CHAR(160),SUBSTITUTE($W161,\"{\",CHAR(160),GU$1)),FIND(CHAR(160),SUBSTITUTE($W161,\"}\",CHAR(160),GU$1))-FIND(CHAR(160),SUBSTITUTE($W161,\"{\",CHAR(160),GU$1))+1),\"\")","v":""},{"$f":"IFERROR(MID($W161,FIND(CHAR(160),SUBSTITUTE($W161,\"{\",CHAR(160),GV$1)),FIND(CHAR(160),SUBSTITUTE($W161,\"}\",CHAR(160),GV$1))-FIND(CHAR(160),SUBSTITUTE($W161,\"{\",CHAR(160),GV$1))+1),\"\")","v":""},{"$f":"IFERROR(MID($W161,FIND(CHAR(160),SUBSTITUTE($W161,\"{\",CHAR(160),GW$1)),FIND(CHAR(160),SUBSTITUTE($W161,\"}\",CHAR(160),GW$1))-FIND(CHAR(160),SUBSTITUTE($W161,\"{\",CHAR(160),GW$1))+1),\"\")","v":""},{"$f":"IFERROR(MID($W161,FIND(CHAR(160),SUBSTITUTE($W161,\"{\",CHAR(160),GX$1)),FIND(CHAR(160),SUBSTITUTE($W161,\"}\",CHAR(160),GX$1))-FIND(CHAR(160),SUBSTITUTE($W161,\"{\",CHAR(160),GX$1))+1),\"\")","v":""},{"$f":"IFERROR(MID($W161,FIND(CHAR(160),SUBSTITUTE($W161,\"{\",CHAR(160),GY$1)),FIND(CHAR(160),SUBSTITUTE($W161,\"}\",CHAR(160),GY$1))-FIND(CHAR(160),SUBSTITUTE($W161,\"{\",CHAR(160),GY$1))+1),\"\")","v":"{Measure:Quantity}"},{"$f":"IFERROR(MID($W161,FIND(CHAR(160),SUBSTITUTE($W161,\"{\",CHAR(160),GZ$1)),FIND(CHAR(160),SUBSTITUTE($W161,\"}\",CHAR(160),GZ$1))-FIND(CHAR(160),SUBSTITUTE($W161,\"{\",CHAR(160),GZ$1))+1),\"\")","v":"{Customer Type}"},{"$f":"IFERROR(MID($X161,FIND(CHAR(160),SUBSTITUTE($X161,\"{\",CHAR(160),HA$1)),FIND(CHAR(160),SUBSTITUTE($X161,\"}\",CHAR(160),HA$1))-FIND(CHAR(160),SUBSTITUTE($X161,\"{\",CHAR(160),HA$1))+1),\"\")","v":""},{"$f":"IFERROR(MID($X161,FIND(CHAR(160),SUBSTITUTE($X161,\"{\",CHAR(160),HB$1)),FIND(CHAR(160),SUBSTITUTE($X161,\"}\",CHAR(160),HB$1))-FIND(CHAR(160),SUBSTITUTE($X161,\"{\",CHAR(160),HB$1))+1),\"\")","v":""},{"$f":"IFERROR(MID($X161,FIND(CHAR(160),SUBSTITUTE($X161,\"{\",CHAR(160),HC$1)),FIND(CHAR(160),SUBSTITUTE($X161,\"}\",CHAR(160),HC$1))-FIND(CHAR(160),SUBSTITUTE($X161,\"{\",CHAR(160),HC$1))+1),\"\")","v":""},{"$f":"IFERROR(MID($X161,FIND(CHAR(160),SUBSTITUTE($X161,\"{\",CHAR(160),HD$1)),FIND(CHAR(160),SUBSTITUTE($X161,\"}\",CHAR(160),HD$1))-FIND(CHAR(160),SUBSTITUTE($X161,\"{\",CHAR(160),HD$1))+1),\"\")","v":""},{"$f":"IFERROR(MID($X161,FIND(CHAR(160),SUBSTITUTE($X161,\"{\",CHAR(160),HE$1)),FIND(CHAR(160),SUBSTITUTE($X161,\"}\",CHAR(160),HE$1))-FIND(CHAR(160),SUBSTITUTE($X161,\"{\",CHAR(160),HE$1))+1),\"\")","v":""},{"$f":"IFERROR(MID($X161,FIND(CHAR(160),SUBSTITUTE($X161,\"{\",CHAR(160),HF$1)),FIND(CHAR(160),SUBSTITUTE($X161,\"}\",CHAR(160),HF$1))-FIND(CHAR(160),SUBSTITUTE($X161,\"{\",CHAR(160),HF$1))+1),\"\")","v":""},{"$f":"IFERROR(MID($X161,FIND(CHAR(160),SUBSTITUTE($X161,\"{\",CHAR(160),HG$1)),FIND(CHAR(160),SUBSTITUTE($X161,\"}\",CHAR(160),HG$1))-FIND(CHAR(160),SUBSTITUTE($X161,\"{\",CHAR(160),HG$1))+1),\"\")","v":""},{"$f":"IFERROR(MID($X161,FIND(CHAR(160),SUBSTITUTE($X161,\"{\",CHAR(160),HH$1)),FIND(CHAR(160),SUBSTITUTE($X161,\"}\",CHAR(160),HH$1))-FIND(CHAR(160),SUBSTITUTE($X161,\"{\",CHAR(160),HH$1))+1),\"\")","v":""},{"$f":"IFERROR(MID($X161,FIND(CHAR(160),SUBSTITUTE($X161,\"{\",CHAR(160),HI$1)),FIND(CHAR(160),SUBSTITUTE($X161,\"}\",CHAR(160),HI$1))-FIND(CHAR(160),SUBSTITUTE($X161,\"{\",CHAR(160),HI$1))+1),\"\")","v":""},{"$f":"IFERROR(MID($X161,FIND(CHAR(160),SUBSTITUTE($X161,\"{\",CHAR(160),HJ$1)),FIND(CHAR(160),SUBSTITUTE($X161,\"}\",CHAR(160),HJ$1))-FIND(CHAR(160),SUBSTITUTE($X161,\"{\",CHAR(160),HJ$1))+1),\"\")","v":""},{"$f":"IFERROR(MID($Y161,FIND(CHAR(160),SUBSTITUTE($Y161,\"{\",CHAR(160),HK$1)),FIND(CHAR(160),SUBSTITUTE($Y161,\"}\",CHAR(160),HK$1))-FIND(CHAR(160),SUBSTITUTE($Y161,\"{\",CHAR(160),HK$1))+1),\"\")","v":""},{"$f":"IFERROR(MID($Y161,FIND(CHAR(160),SUBSTITUTE($Y161,\"{\",CHAR(160),HL$1)),FIND(CHAR(160),SUBSTITUTE($Y161,\"}\",CHAR(160),HL$1))-FIND(CHAR(160),SUBSTITUTE($Y161,\"{\",CHAR(160),HL$1))+1),\"\")","v":""},{"$f":"IFERROR(MID($Y161,FIND(CHAR(160),SUBSTITUTE($Y161,\"{\",CHAR(160),HM$1)),FIND(CHAR(160),SUBSTITUTE($Y161,\"}\",CHAR(160),HM$1))-FIND(CHAR(160),SUBSTITUTE($Y161,\"{\",CHAR(160),HM$1))+1),\"\")","v":""},{"$f":"IFERROR(MID($Y161,FIND(CHAR(160),SUBSTITUTE($Y161,\"{\",CHAR(160),HN$1)),FIND(CHAR(160),SUBSTITUTE($Y161,\"}\",CHAR(160),HN$1))-FIND(CHAR(160),SUBSTITUTE($Y161,\"{\",CHAR(160),HN$1))+1),\"\")","v":""},{"$f":"IFERROR(MID($Y161,FIND(CHAR(160),SUBSTITUTE($Y161,\"{\",CHAR(160),HO$1)),FIND(CHAR(160),SUBSTITUTE($Y161,\"}\",CHAR(160),HO$1))-FIND(CHAR(160),SUBSTITUTE($Y161,\"{\",CHAR(160),HO$1))+1),\"\")","v":""},{"$f":"IFERROR(MID($Y161,FIND(CHAR(160),SUBSTITUTE($Y161,\"{\",CHAR(160),HP$1)),FIND(CHAR(160),SUBSTITUTE($Y161,\"}\",CHAR(160),HP$1))-FIND(CHAR(160),SUBSTITUTE($Y161,\"{\",CHAR(160),HP$1))+1),\"\")","v":""},{"$f":"IFERROR(MID($Y161,FIND(CHAR(160),SUBSTITUTE($Y161,\"{\",CHAR(160),HQ$1)),FIND(CHAR(160),SUBSTITUTE($Y161,\"}\",CHAR(160),HQ$1))-FIND(CHAR(160),SUBSTITUTE($Y161,\"{\",CHAR(160),HQ$1))+1),\"\")","v":""},{"$f":"IFERROR(MID($Y161,FIND(CHAR(160),SUBSTITUTE($Y161,\"{\",CHAR(160),HR$1)),FIND(CHAR(160),SUBSTITUTE($Y161,\"}\",CHAR(160),HR$1))-FIND(CHAR(160),SUBSTITUTE($Y161,\"{\",CHAR(160),HR$1))+1),\"\")","v":""},{"$f":"IFERROR(MID($Y161,FIND(CHAR(160),SUBSTITUTE($Y161,\"{\",CHAR(160),HS$1)),FIND(CHAR(160),SUBSTITUTE($Y161,\"}\",CHAR(160),HS$1))-FIND(CHAR(160),SUBSTITUTE($Y161,\"{\",CHAR(160),HS$1))+1),\"\")","v":""},{"$f":"IFERROR(MID($Y161,FIND(CHAR(160),SUBSTITUTE($Y161,\"{\",CHAR(160),HT$1)),FIND(CHAR(160),SUBSTITUTE($Y161,\"}\",CHAR(160),HT$1))-FIND(CHAR(160),SUBSTITUTE($Y161,\"{\",CHAR(160),HT$1))+1),\"\")","v":""},{"$f":"IFERROR(MID($Z161,FIND(CHAR(160),SUBSTITUTE($Z161,\"{\",CHAR(160),HU$1)),FIND(CHAR(160),SUBSTITUTE($Z161,\"}\",CHAR(160),HU$1))-FIND(CHAR(160),SUBSTITUTE($Z161,\"{\",CHAR(160),HU$1))+1),\"\")","v":""},{"$f":"IFERROR(MID($Z161,FIND(CHAR(160),SUBSTITUTE($Z161,\"{\",CHAR(160),HV$1)),FIND(CHAR(160),SUBSTITUTE($Z161,\"}\",CHAR(160),HV$1))-FIND(CHAR(160),SUBSTITUTE($Z161,\"{\",CHAR(160),HV$1))+1),\"\")","v":""},{"$f":"IFERROR(MID($Z161,FIND(CHAR(160),SUBSTITUTE($Z161,\"{\",CHAR(160),HW$1)),FIND(CHAR(160),SUBSTITUTE($Z161,\"}\",CHAR(160),HW$1))-FIND(CHAR(160),SUBSTITUTE($Z161,\"{\",CHAR(160),HW$1))+1),\"\")","v":""},{"$f":"IFERROR(MID($Z161,FIND(CHAR(160),SUBSTITUTE($Z161,\"{\",CHAR(160),HX$1)),FIND(CHAR(160),SUBSTITUTE($Z161,\"}\",CHAR(160),HX$1))-FIND(CHAR(160),SUBSTITUTE($Z161,\"{\",CHAR(160),HX$1))+1),\"\")","v":""},{"$f":"IFERROR(MID($Z161,FIND(CHAR(160),SUBSTITUTE($Z161,\"{\",CHAR(160),HY$1)),FIND(CHAR(160),SUBSTITUTE($Z161,\"}\",CHAR(160),HY$1))-FIND(CHAR(160),SUBSTITUTE($Z161,\"{\",CHAR(160),HY$1))+1),\"\")","v":""},{"$f":"IFERROR(MID($Z161,FIND(CHAR(160),SUBSTITUTE($Z161,\"{\",CHAR(160),HZ$1)),FIND(CHAR(160),SUBSTITUTE($Z161,\"}\",CHAR(160),HZ$1))-FIND(CHAR(160),SUBSTITUTE($Z161,\"{\",CHAR(160),HZ$1))+1),\"\")","v":""},{"$f":"IFERROR(MID($Z161,FIND(CHAR(160),SUBSTITUTE($Z161,\"{\",CHAR(160),IA$1)),FIND(CHAR(160),SUBSTITUTE($Z161,\"}\",CHAR(160),IA$1))-FIND(CHAR(160),SUBSTITUTE($Z161,\"{\",CHAR(160),IA$1))+1),\"\")","v":""},{"$f":"IFERROR(MID($Z161,FIND(CHAR(160),SUBSTITUTE($Z161,\"{\",CHAR(160),IB$1)),FIND(CHAR(160),SUBSTITUTE($Z161,\"}\",CHAR(160),IB$1))-FIND(CHAR(160),SUBSTITUTE($Z161,\"{\",CHAR(160),IB$1))+1),\"\")","v":""},{"$f":"IFERROR(MID($Z161,FIND(CHAR(160),SUBSTITUTE($Z161,\"{\",CHAR(160),IC$1)),FIND(CHAR(160),SUBSTITUTE($Z161,\"}\",CHAR(160),IC$1))-FIND(CHAR(160),SUBSTITUTE($Z161,\"{\",CHAR(160),IC$1))+1),\"\")","v":""},{"$f":"IFERROR(MID($Z161,FIND(CHAR(160),SUBSTITUTE($Z161,\"{\",CHAR(160),ID$1)),FIND(CHAR(160),SUBSTITUTE($Z161,\"}\",CHAR(160),ID$1))-FIND(CHAR(160),SUBSTITUTE($Z161,\"{\",CHAR(160),ID$1))+1),\"\")","v":""},{"$f":"IFERROR(MID($AA161,FIND(CHAR(160),SUBSTITUTE($AA161,\"{\",CHAR(160),IE$1)),FIND(CHAR(160),SUBSTITUTE($AA161,\"}\",CHAR(160),IE$1))-FIND(CHAR(160),SUBSTITUTE($AA161,\"{\",CHAR(160),IE$1))+1),\"\")","v":""},{"$f":"IFERROR(MID($AA161,FIND(CHAR(160),SUBSTITUTE($AA161,\"{\",CHAR(160),IF$1)),FIND(CHAR(160),SUBSTITUTE($AA161,\"}\",CHAR(160),IF$1))-FIND(CHAR(160),SUBSTITUTE($AA161,\"{\",CHAR(160),IF$1))+1),\"\")","v":""},{"$f":"IFERROR(MID($AA161,FIND(CHAR(160),SUBSTITUTE($AA161,\"{\",CHAR(160),IG$1)),FIND(CHAR(160),SUBSTITUTE($AA161,\"}\",CHAR(160),IG$1))-FIND(CHAR(160),SUBSTITUTE($AA161,\"{\",CHAR(160),IG$1))+1),\"\")","v":""},{"$f":"IFERROR(MID($AA161,FIND(CHAR(160),SUBSTITUTE($AA161,\"{\",CHAR(160),IH$1)),FIND(CHAR(160),SUBSTITUTE($AA161,\"}\",CHAR(160),IH$1))-FIND(CHAR(160),SUBSTITUTE($AA161,\"{\",CHAR(160),IH$1))+1),\"\")","v":""},{"$f":"IFERROR(MID($AA161,FIND(CHAR(160),SUBSTITUTE($AA161,\"{\",CHAR(160),II$1)),FIND(CHAR(160),SUBSTITUTE($AA161,\"}\",CHAR(160),II$1))-FIND(CHAR(160),SUBSTITUTE($AA161,\"{\",CHAR(160),II$1))+1),\"\")","v":""},{"$f":"IFERROR(MID($AA161,FIND(CHAR(160),SUBSTITUTE($AA161,\"{\",CHAR(160),IJ$1)),FIND(CHAR(160),SUBSTITUTE($AA161,\"}\",CHAR(160),IJ$1))-FIND(CHAR(160),SUBSTITUTE($AA161,\"{\",CHAR(160),IJ$1))+1),\"\")","v":""},{"$f":"IFERROR(MID($AA161,FIND(CHAR(160),SUBSTITUTE($AA161,\"{\",CHAR(160),IK$1)),FIND(CHAR(160),SUBSTITUTE($AA161,\"}\",CHAR(160),IK$1))-FIND(CHAR(160),SUBSTITUTE($AA161,\"{\",CHAR(160),IK$1))+1),\"\")","v":""},{"$f":"IFERROR(MID($AA161,FIND(CHAR(160),SUBSTITUTE($AA161,\"{\",CHAR(160),IL$1)),FIND(CHAR(160),SUBSTITUTE($AA161,\"}\",CHAR(160),IL$1))-FIND(CHAR(160),SUBSTITUTE($AA161,\"{\",CHAR(160),IL$1))+1),\"\")","v":""},{"$f":"IFERROR(MID($AA161,FIND(CHAR(160),SUBSTITUTE($AA161,\"{\",CHAR(160),IM$1)),FIND(CHAR(160),SUBSTITUTE($AA161,\"}\",CHAR(160),IM$1))-FIND(CHAR(160),SUBSTITUTE($AA161,\"{\",CHAR(160),IM$1))+1),\"\")","v":""},{"$f":"IFERROR(MID($AA161,FIND(CHAR(160),SUBSTITUTE($AA161,\"{\",CHAR(160),IN$1)),FIND(CHAR(160),SUBSTITUTE($AA161,\"}\",CHAR(160),IN$1))-FIND(CHAR(160),SUBSTITUTE($AA161,\"{\",CHAR(160),IN$1))+1),\"\")","v":""},{"$f":"IFERROR(MID($AB161,FIND(CHAR(160),SUBSTITUTE($AB161,\"{\",CHAR(160),IO$1)),FIND(CHAR(160),SUBSTITUTE($AB161,\"}\",CHAR(160),IO$1))-FIND(CHAR(160),SUBSTITUTE($AB161,\"{\",CHAR(160),IO$1))+1),\"\")","v":""},{"$f":"IFERROR(MID($AB161,FIND(CHAR(160),SUBSTITUTE($AB161,\"{\",CHAR(160),IP$1)),FIND(CHAR(160),SUBSTITUTE($AB161,\"}\",CHAR(160),IP$1))-FIND(CHAR(160),SUBSTITUTE($AB161,\"{\",CHAR(160),IP$1))+1),\"\")","v":""},{"$f":"IFERROR(MID($AB161,FIND(CHAR(160),SUBSTITUTE($AB161,\"{\",CHAR(160),IQ$1)),FIND(CHAR(160),SUBSTITUTE($AB161,\"}\",CHAR(160),IQ$1))-FIND(CHAR(160),SUBSTITUTE($AB161,\"{\",CHAR(160),IQ$1))+1),\"\")","v":""},{"$f":"IFERROR(MID($AB161,FIND(CHAR(160),SUBSTITUTE($AB161,\"{\",CHAR(160),IR$1)),FIND(CHAR(160),SUBSTITUTE($AB161,\"}\",CHAR(160),IR$1))-FIND(CHAR(160),SUBSTITUTE($AB161,\"{\",CHAR(160),IR$1))+1),\"\")","v":""},{"$f":"IFERROR(MID($AB161,FIND(CHAR(160),SUBSTITUTE($AB161,\"{\",CHAR(160),IS$1)),FIND(CHAR(160),SUBSTITUTE($AB161,\"}\",CHAR(160),IS$1))-FIND(CHAR(160),SUBSTITUTE($AB161,\"{\",CHAR(160),IS$1))+1),\"\")","v":""},{"$f":"IFERROR(MID($AB161,FIND(CHAR(160),SUBSTITUTE($AB161,\"{\",CHAR(160),IT$1)),FIND(CHAR(160),SUBSTITUTE($AB161,\"}\",CHAR(160),IT$1))-FIND(CHAR(160),SUBSTITUTE($AB161,\"{\",CHAR(160),IT$1))+1),\"\")","v":""},{"$f":"IFERROR(MID($AB161,FIND(CHAR(160),SUBSTITUTE($AB161,\"{\",CHAR(160),IU$1)),FIND(CHAR(160),SUBSTITUTE($AB161,\"}\",CHAR(160),IU$1))-FIND(CHAR(160),SUBSTITUTE($AB161,\"{\",CHAR(160),IU$1))+1),\"\")","v":""},{"$f":"IFERROR(MID($AB161,FIND(CHAR(160),SUBSTITUTE($AB161,\"{\",CHAR(160),IV$1)),FIND(CHAR(160),SUBSTITUTE($AB161,\"}\",CHAR(160),IV$1))-FIND(CHAR(160),SUBSTITUTE($AB161,\"{\",CHAR(160),IV$1))+1),\"\")","v":""},{"$f":"IFERROR(MID($AB161,FIND(CHAR(160),SUBSTITUTE($AB161,\"{\",CHAR(160),IW$1)),FIND(CHAR(160),SUBSTITUTE($AB161,\"}\",CHAR(160),IW$1))-FIND(CHAR(160),SUBSTITUTE($AB161,\"{\",CHAR(160),IW$1))+1),\"\")","v":""},{"$f":"IFERROR(MID($AB161,FIND(CHAR(160),SUBSTITUTE($AB161,\"{\",CHAR(160),IX$1)),FIND(CHAR(160),SUBSTITUTE($AB161,\"}\",CHAR(160),IX$1))-FIND(CHAR(160),SUBSTITUTE($AB161,\"{\",CHAR(160),IX$1))+1),\"\")","v":""},null,{"$f":"10-COUNTIF(DU161:ED161,\"\")","v":4}]
["Distributor HVAC – Natural Gas","Smart Thermostat","STSTAT","2021-07-01","2022-06-30","Calculated","{Measure:Quantity}*{Retail Price}",0,"Calculated","if({Retail Price}>200,200,{Retail Price})*{Measure:Quantity}",0,"2021-01-20","2022-06-30","Calculated",null,null,null,null,null,null,null,null,"{Measure:Quantity}*9.12*10",null,null,null,null,null,"2021-01-20","2022-06-30",10,1,1,null,null,null,null,1,1,1,0.25,0,null,{"$f":"DU162","v":"{Measure:Quantity}"},1,{"$f":"DV162","v":"{Retail Price}"},6,{"$f":"DW162","v":""},null,{"$f":"DX162","v":""},null,{"$f":"DY162","v":""},null,{"$f":"DZ162","v":""},null,{"$f":"EA162","v":""},null,{"$f":"EB162","v":""},null,{"$f":"EC162","v":""},null,{"$f":"ED162","v":""},null,0,0,0,0,0,0,0,0,{"$f":"AS162*9.12*10","v":91.199999999999989},0,0,0,0,0,null,"Res","Default DR",{"$f":"Benefits(BL162,BR162,BS162,BT162,BU162,BV162,BW162,BX162,BY162,BZ162,AE162,AH162,AI162,AJ162,AK162,AL162,AM162,AN162,AO162,AP162,CA162,CB162)","v":0},0,1344.0413097342739,0,0,0,0,0,0,{"$f":"SUMPRODUCT(CC162:CK162,--(CC162:CK162>0))","v":1344.0413097342739},{"$f":"-SUMPRODUCT(CC162:CK162,--(CC162:CK162<0))","v":0},null,{"$f":"AS162*AU162","v":6},null,null,{"$f":"CM162+CO162","v":6},{"$f":"IF(NetOrGross=\"Net\",(1-AO162+AP162),1)","v":1},{"$f":"(SUMPRODUCT(CC162:CJ162,--(CC162:CJ162>0))+CN162)*CS162/((-SUMPRODUCT(CC162:CJ162,--(CC162:CJ162<0))+MAX(CO162,CV162)+CP162+CQ162)*CS162+IF(FRIncentives=\"Yes\",CV162*(1-CS162),0))","v":224.00688495571231},1,{"$f":"IF(AU162>200,200,AU162)*AS162","v":6},null,"Electric","y",null,{"$f":"IF(F162=\"Manual Entry\",\"Manual\",IF(G162=\"\",0,\"X=\"&SUBSTITUTE(SUBSTITUTE(SUBSTITUTE(SUBSTITUTE(SUBSTITUTE(SUBSTITUTE(SUBSTITUTE(SUBSTITUTE(SUBSTITUTE(SUBSTITUTE(SUBSTITUTE(SUBSTITUTE(G162,$ED162,$ED$2&ROW($ED162)),$EC162,$EC$2&ROW($EC162)),$EB162,$EB$2&ROW($EB162)),$EA162,$EA$2&ROW($EA162)),$DZ162,$DZ$2&ROW($DZ162)),$DY162,$DY$2&ROW($DY162)),$DX162,$DX$2&ROW($DX162)),$DW162,$DW$2&ROW($DW162)),$DV162,$DV$2&ROW($DV162)),$DU162,$DU$2&ROW($DU162)),$DT162,$DT$2&ROW($DT162)),$DS162,$DS$2&ROW($DS162))))","v":"X=AS162*AU162"},{"$f":"IF(I162=\"Manual Entry\",\"Manual\",IF(J162=\"\",0,\"X=\"&SUBSTITUTE(SUBSTITUTE(SUBSTITUTE(SUBSTITUTE(SUBSTITUTE(SUBSTITUTE(SUBSTITUTE(SUBSTITUTE(SUBSTITUTE(SUBSTITUTE(SUBSTITUTE(SUBSTITUTE(J162,$ED162,$ED$2&ROW($ED162)),$EC162,$EC$2&ROW($EC162)),$EB162,$EB$2&ROW($EB162)),$EA162,$EA$2&ROW($EA162)),$DZ162,$DZ$2&ROW($DZ162)),$DY162,$DY$2&ROW($DY162)),$DX162,$DX$2&ROW($DX162)),$DW162,$DW$2&ROW($DW162)),$DV162,$DV$2&ROW($DV162)),$DU162,$DU$2&ROW($DU162)),$DT162,$DT$2&ROW($DT162)),$DS162,$DS$2&ROW($DS162))))","v":"X=if(AU162>200,200,AU162)*AS162"},{"$f":"IF(O162=\"\",0,\"X=\"&SUBSTITUTE(SUBSTITUTE(SUBSTITUTE(SUBSTITUTE(SUBSTITUTE(SUBSTITUTE(SUBSTITUTE(SUBSTITUTE(SUBSTITUTE(SUBSTITUTE(SUBSTITUTE(SUBSTITUTE(O162,$ED162,$ED$2&ROW($ED162)),$EC162,$EC$2&ROW($EC162)),$EB162,$EB$2&ROW($EB162)),$EA162,$EA$2&ROW($EA162)),$DZ162,$DZ$2&ROW($DZ162)),$DY162,$DY$2&ROW($DY162)),$DX162,$DX$2&ROW($DX162)),$DW162,$DW$2&ROW($DW162)),$DV162,$DV$2&ROW($DV162)),$DU162,$DU$2&ROW($DU162)),$DT162,$DT$2&ROW($DT162)),$DS162,$DS$2&ROW($DS162)))","v":0},{"$f":"IF(P162=\"\",0,\"X=\"&SUBSTITUTE(SUBSTITUTE(SUBSTITUTE(SUBSTITUTE(SUBSTITUTE(SUBSTITUTE(SUBSTITUTE(SUBSTITUTE(SUBSTITUTE(SUBSTITUTE(SUBSTITUTE(SUBSTITUTE(P162,$ED162,$ED$2&ROW($ED162)),$EC162,$EC$2&ROW($EC162)),$EB162,$EB$2&ROW($EB162)),$EA162,$EA$2&ROW($EA162)),$DZ162,$DZ$2&ROW($DZ162)),$DY162,$DY$2&ROW($DY162)),$DX162,$DX$2&ROW($DX162)),$DW162,$DW$2&ROW($DW162)),$DV162,$DV$2&ROW($DV162)),$DU162,$DU$2&ROW($DU162)),$DT162,$DT$2&ROW($DT162)),$DS162,$DS$2&ROW($DS162)))","v":0},{"$f":"IF(Q162=\"\",0,\"X=\"&SUBSTITUTE(SUBSTITUTE(SUBSTITUTE(SUBSTITUTE(SUBSTITUTE(SUBSTITUTE(SUBSTITUTE(SUBSTITUTE(SUBSTITUTE(SUBSTITUTE(SUBSTITUTE(SUBSTITUTE(Q162,$ED162,$ED$2&ROW($ED162)),$EC162,$EC$2&ROW($EC162)),$EB162,$EB$2&ROW($EB162)),$EA162,$EA$2&ROW($EA162)),$DZ162,$DZ$2&ROW($DZ162)),$DY162,$DY$2&ROW($DY162)),$DX162,$DX$2&ROW($DX162)),$DW162,$DW$2&ROW($DW162)),$DV162,$DV$2&ROW($DV162)),$DU162,$DU$2&ROW($DU162)),$DT162,$DT$2&ROW($DT162)),$DS162,$DS$2&ROW($DS162)))","v":0},{"$f":"IF(R162=\"\",0,\"X=\"&SUBSTITUTE(SUBSTITUTE(SUBSTITUTE(SUBSTITUTE(SUBSTITUTE(SUBSTITUTE(SUBSTITUTE(SUBSTITUTE(SUBSTITUTE(SUBSTITUTE(SUBSTITUTE(SUBSTITUTE(R162,$ED162,$ED$2&ROW($ED162)),$EC162,$EC$2&ROW($EC162)),$EB162,$EB$2&ROW($EB162)),$EA162,$EA$2&ROW($EA162)),$DZ162,$DZ$2&ROW($DZ162)),$DY162,$DY$2&ROW($DY162)),$DX162,$DX$2&ROW($DX162)),$DW162,$DW$2&ROW($DW162)),$DV162,$DV$2&ROW($DV162)),$DU162,$DU$2&ROW($DU162)),$DT162,$DT$2&ROW($DT162)),$DS162,$DS$2&ROW($DS162)))","v":0},{"$f":"IF(S162=\"\",0,\"X=\"&SUBSTITUTE(SUBSTITUTE(SUBSTITUTE(SUBSTITUTE(SUBSTITUTE(SUBSTITUTE(SUBSTITUTE(SUBSTITUTE(SUBSTITUTE(SUBSTITUTE(SUBSTITUTE(SUBSTITUTE(S162,$ED162,$ED$2&ROW($ED162)),$EC162,$EC$2&ROW($EC162)),$EB162,$EB$2&ROW($EB162)),$EA162,$EA$2&ROW($EA162)),$DZ162,$DZ$2&ROW($DZ162)),$DY162,$DY$2&ROW($DY162)),$DX162,$DX$2&ROW($DX162)),$DW162,$DW$2&ROW($DW162)),$DV162,$DV$2&ROW($DV162)),$DU162,$DU$2&ROW($DU162)),$DT162,$DT$2&ROW($DT162)),$DS162,$DS$2&ROW($DS162)))","v":0},{"$f":"IF(T162=\"\",0,\"X=\"&SUBSTITUTE(SUBSTITUTE(SUBSTITUTE(SUBSTITUTE(SUBSTITUTE(SUBSTITUTE(SUBSTITUTE(SUBSTITUTE(SUBSTITUTE(SUBSTITUTE(SUBSTITUTE(SUBSTITUTE(T162,$ED162,$ED$2&ROW($ED162)),$EC162,$EC$2&ROW($EC162)),$EB162,$EB$2&ROW($EB162)),$EA162,$EA$2&ROW($EA162)),$DZ162,$DZ$2&ROW($DZ162)),$DY162,$DY$2&ROW($DY162)),$DX162,$DX$2&ROW($DX162)),$DW162,$DW$2&ROW($DW162)),$DV162,$DV$2&ROW($DV162)),$DU162,$DU$2&ROW($DU162)),$DT162,$DT$2&ROW($DT162)),$DS162,$DS$2&ROW($DS162)))","v":0},{"$f":"IF(U162=\"\",0,\"X=\"&SUBSTITUTE(SUBSTITUTE(SUBSTITUTE(SUBSTITUTE(SUBSTITUTE(SUBSTITUTE(SUBSTITUTE(SUBSTITUTE(SUBSTITUTE(SUBSTITUTE(SUBSTITUTE(SUBSTITUTE(U162,$ED162,$ED$2&ROW($ED162)),$EC162,$EC$2&ROW($EC162)),$EB162,$EB$2&ROW($EB162)),$EA162,$EA$2&ROW($EA162)),$DZ162,$DZ$2&ROW($DZ162)),$DY162,$DY$2&ROW($DY162)),$DX162,$DX$2&ROW($DX162)),$DW162,$DW$2&ROW($DW162)),$DV162,$DV$2&ROW($DV162)),$DU162,$DU$2&ROW($DU162)),$DT162,$DT$2&ROW($DT162)),$DS162,$DS$2&ROW($DS162)))","v":0},{"$f":"IF(V162=\"\",0,\"X=\"&SUBSTITUTE(SUBSTITUTE(SUBSTITUTE(SUBSTITUTE(SUBSTITUTE(SUBSTITUTE(SUBSTITUTE(SUBSTITUTE(SUBSTITUTE(SUBSTITUTE(SUBSTITUTE(SUBSTITUTE(V162,$ED162,$ED$2&ROW($ED162)),$EC162,$EC$2&ROW($EC162)),$EB162,$EB$2&ROW($EB162)),$EA162,$EA$2&ROW($EA162)),$DZ162,$DZ$2&ROW($DZ162)),$DY162,$DY$2&ROW($DY162)),$DX162,$DX$2&ROW($DX162)),$DW162,$DW$2&ROW($DW162)),$DV162,$DV$2&ROW($DV162)),$DU162,$DU$2&ROW($DU162)),$DT162,$DT$2&ROW($DT162)),$DS162,$DS$2&ROW($DS162)))","v":0},{"$f":"IF(W162=\"\",0,\"X=\"&SUBSTITUTE(SUBSTITUTE(SUBSTITUTE(SUBSTITUTE(SUBSTITUTE(SUBSTITUTE(SUBSTITUTE(SUBSTITUTE(SUBSTITUTE(SUBSTITUTE(SUBSTITUTE(SUBSTITUTE(W162,$ED162,$ED$2&ROW($ED162)),$EC162,$EC$2&ROW($EC162)),$EB162,$EB$2&ROW($EB162)),$EA162,$EA$2&ROW($EA162)),$DZ162,$DZ$2&ROW($DZ162)),$DY162,$DY$2&ROW($DY162)),$DX162,$DX$2&ROW($DX162)),$DW162,$DW$2&ROW($DW162)),$DV162,$DV$2&ROW($DV162)),$DU162,$DU$2&ROW($DU162)),$DT162,$DT$2&ROW($DT162)),$DS162,$DS$2&ROW($DS162)))","v":"X=AS162*9.12*10"},{"$f":"IF(X162=\"\",0,\"X=\"&SUBSTITUTE(SUBSTITUTE(SUBSTITUTE(SUBSTITUTE(SUBSTITUTE(SUBSTITUTE(SUBSTITUTE(SUBSTITUTE(SUBSTITUTE(SUBSTITUTE(SUBSTITUTE(SUBSTITUTE(X162,$ED162,$ED$2&ROW($ED162)),$EC162,$EC$2&ROW($EC162)),$EB162,$EB$2&ROW($EB162)),$EA162,$EA$2&ROW($EA162)),$DZ162,$DZ$2&ROW($DZ162)),$DY162,$DY$2&ROW($DY162)),$DX162,$DX$2&ROW($DX162)),$DW162,$DW$2&ROW($DW162)),$DV162,$DV$2&ROW($DV162)),$DU162,$DU$2&ROW($DU162)),$DT162,$DT$2&ROW($DT162)),$DS162,$DS$2&ROW($DS162)))","v":0},{"$f":"IF(Y162=\"\",0,\"X=\"&SUBSTITUTE(SUBSTITUTE(SUBSTITUTE(SUBSTITUTE(SUBSTITUTE(SUBSTITUTE(SUBSTITUTE(SUBSTITUTE(SUBSTITUTE(SUBSTITUTE(SUBSTITUTE(SUBSTITUTE(Y162,$ED162,$ED$2&ROW($ED162)),$EC162,$EC$2&ROW($EC162)),$EB162,$EB$2&ROW($EB162)),$EA162,$EA$2&ROW($EA162)),$DZ162,$DZ$2&ROW($DZ162)),$DY162,$DY$2&ROW($DY162)),$DX162,$DX$2&ROW($DX162)),$DW162,$DW$2&ROW($DW162)),$DV162,$DV$2&ROW($DV162)),$DU162,$DU$2&ROW($DU162)),$DT162,$DT$2&ROW($DT162)),$DS162,$DS$2&ROW($DS162)))","v":0},{"$f":"IF(Z162=\"\",0,\"X=\"&SUBSTITUTE(SUBSTITUTE(SUBSTITUTE(SUBSTITUTE(SUBSTITUTE(SUBSTITUTE(SUBSTITUTE(SUBSTITUTE(SUBSTITUTE(SUBSTITUTE(SUBSTITUTE(SUBSTITUTE(Z162,$ED162,$ED$2&ROW($ED162)),$EC162,$EC$2&ROW($EC162)),$EB162,$EB$2&ROW($EB162)),$EA162,$EA$2&ROW($EA162)),$DZ162,$DZ$2&ROW($DZ162)),$DY162,$DY$2&ROW($DY162)),$DX162,$DX$2&ROW($DX162)),$DW162,$DW$2&ROW($DW162)),$DV162,$DV$2&ROW($DV162)),$DU162,$DU$2&ROW($DU162)),$DT162,$DT$2&ROW($DT162)),$DS162,$DS$2&ROW($DS162)))","v":0},{"$f":"IF(AA162=\"\",0,\"X=\"&SUBSTITUTE(SUBSTITUTE(SUBSTITUTE(SUBSTITUTE(SUBSTITUTE(SUBSTITUTE(SUBSTITUTE(SUBSTITUTE(SUBSTITUTE(SUBSTITUTE(SUBSTITUTE(SUBSTITUTE(AA162,$ED162,$ED$2&ROW($ED162)),$EC162,$EC$2&ROW($EC162)),$EB162,$EB$2&ROW($EB162)),$EA162,$EA$2&ROW($EA162)),$DZ162,$DZ$2&ROW($DZ162)),$DY162,$DY$2&ROW($DY162)),$DX162,$DX$2&ROW($DX162)),$DW162,$DW$2&ROW($DW162)),$DV162,$DV$2&ROW($DV162)),$DU162,$DU$2&ROW($DU162)),$DT162,$DT$2&ROW($DT162)),$DS162,$DS$2&ROW($DS162)))","v":0},{"$f":"IF(AB162=\"\",0,\"X=\"&SUBSTITUTE(SUBSTITUTE(SUBSTITUTE(SUBSTITUTE(SUBSTITUTE(SUBSTITUTE(SUBSTITUTE(SUBSTITUTE(SUBSTITUTE(SUBSTITUTE(SUBSTITUTE(SUBSTITUTE(AB162,$ED162,$ED$2&ROW($ED162)),$EC162,$EC$2&ROW($EC162)),$EB162,$EB$2&ROW($EB162)),$EA162,$EA$2&ROW($EA162)),$DZ162,$DZ$2&ROW($DZ162)),$DY162,$DY$2&ROW($DY162)),$DX162,$DX$2&ROW($DX162)),$DW162,$DW$2&ROW($DW162)),$DV162,$DV$2&ROW($DV162)),$DU162,$DU$2&ROW($DU162)),$DT162,$DT$2&ROW($DT162)),$DS162,$DS$2&ROW($DS162)))","v":0},null,null,"{Factor:WinterCF}","{Factor:SummerCF}",{"$f":"IFERROR(INDEX($EG162:$IV162,MATCH(0,COUNTIF($DR162:DT162,$EG162:$IV162),0)),\"\")","v":"{Measure:Quantity}"},{"$f":"IFERROR(INDEX($EG162:$IV162,MATCH(0,COUNTIF($DR162:DU162,$EG162:$IV162),0)),\"\")","v":"{Retail Price}"},{"$f":"IFERROR(INDEX($EG162:$IV162,MATCH(0,COUNTIF($DR162:DV162,$EG162:$IV162),0)),\"\")","v":""},{"$f":"IFERROR(INDEX($EG162:$IV162,MATCH(0,COUNTIF($DR162:DW162,$EG162:$IV162),0)),\"\")","v":""},{"$f":"IFERROR(INDEX($EG162:$IV162,MATCH(0,COUNTIF($DR162:DX162,$EG162:$IV162),0)),\"\")","v":""},{"$f":"IFERROR(INDEX($EG162:$IV162,MATCH(0,COUNTIF($DR162:DY162,$EG162:$IV162),0)),\"\")","v":""},{"$f":"IFERROR(INDEX($EG162:$IV162,MATCH(0,COUNTIF($DR162:DZ162,$EG162:$IV162),0)),\"\")","v":""},{"$f":"IFERROR(INDEX($EG162:$IV162,MATCH(0,COUNTIF($DR162:EA162,$EG162:$IV162),0)),\"\")","v":""},{"$f":"IFERROR(INDEX($EG162:$IV162,MATCH(0,COUNTIF($DR162:EB162,$EG162:$IV162),0)),\"\")","v":""},{"$f":"IFERROR(INDEX($EG162:$IV162,MATCH(0,COUNTIF($DR162:EC162,$EG162:$IV162),0)),\"\")","v":""},null,null,{"$f":"IFERROR(MID($G162,FIND(CHAR(160),SUBSTITUTE($G162,\"{\",CHAR(160),EG$1)),FIND(CHAR(160),SUBSTITUTE($G162,\"}\",CHAR(160),EG$1))-FIND(CHAR(160),SUBSTITUTE($G162,\"{\",CHAR(160),EG$1))+1),\"\")","v":"{Measure:Quantity}"},{"$f":"IFERROR(MID($G162,FIND(CHAR(160),SUBSTITUTE($G162,\"{\",CHAR(160),EH$1)),FIND(CHAR(160),SUBSTITUTE($G162,\"}\",CHAR(160),EH$1))-FIND(CHAR(160),SUBSTITUTE($G162,\"{\",CHAR(160),EH$1))+1),\"\")","v":"{Retail Price}"},{"$f":"IFERROR(MID($G162,FIND(CHAR(160),SUBSTITUTE($G162,\"{\",CHAR(160),EI$1)),FIND(CHAR(160),SUBSTITUTE($G162,\"}\",CHAR(160),EI$1))-FIND(CHAR(160),SUBSTITUTE($G162,\"{\",CHAR(160),EI$1))+1),\"\")","v":""},{"$f":"IFERROR(MID($G162,FIND(CHAR(160),SUBSTITUTE($G162,\"{\",CHAR(160),EJ$1)),FIND(CHAR(160),SUBSTITUTE($G162,\"}\",CHAR(160),EJ$1))-FIND(CHAR(160),SUBSTITUTE($G162,\"{\",CHAR(160),EJ$1))+1),\"\")","v":""},{"$f":"IFERROR(MID($G162,FIND(CHAR(160),SUBSTITUTE($G162,\"{\",CHAR(160),EK$1)),FIND(CHAR(160),SUBSTITUTE($G162,\"}\",CHAR(160),EK$1))-FIND(CHAR(160),SUBSTITUTE($G162,\"{\",CHAR(160),EK$1))+1),\"\")","v":""},{"$f":"IFERROR(MID($G162,FIND(CHAR(160),SUBSTITUTE($G162,\"{\",CHAR(160),EL$1)),FIND(CHAR(160),SUBSTITUTE($G162,\"}\",CHAR(160),EL$1))-FIND(CHAR(160),SUBSTITUTE($G162,\"{\",CHAR(160),EL$1))+1),\"\")","v":""},{"$f":"IFERROR(MID($G162,FIND(CHAR(160),SUBSTITUTE($G162,\"{\",CHAR(160),EM$1)),FIND(CHAR(160),SUBSTITUTE($G162,\"}\",CHAR(160),EM$1))-FIND(CHAR(160),SUBSTITUTE($G162,\"{\",CHAR(160),EM$1))+1),\"\")","v":""},{"$f":"IFERROR(MID($G162,FIND(CHAR(160),SUBSTITUTE($G162,\"{\",CHAR(160),EN$1)),FIND(CHAR(160),SUBSTITUTE($G162,\"}\",CHAR(160),EN$1))-FIND(CHAR(160),SUBSTITUTE($G162,\"{\",CHAR(160),EN$1))+1),\"\")","v":""},{"$f":"IFERROR(MID($G162,FIND(CHAR(160),SUBSTITUTE($G162,\"{\",CHAR(160),EO$1)),FIND(CHAR(160),SUBSTITUTE($G162,\"}\",CHAR(160),EO$1))-FIND(CHAR(160),SUBSTITUTE($G162,\"{\",CHAR(160),EO$1))+1),\"\")","v":""},{"$f":"IFERROR(MID($G162,FIND(CHAR(160),SUBSTITUTE($G162,\"{\",CHAR(160),EP$1)),FIND(CHAR(160),SUBSTITUTE($G162,\"}\",CHAR(160),EP$1))-FIND(CHAR(160),SUBSTITUTE($G162,\"{\",CHAR(160),EP$1))+1),\"\")","v":""},{"$f":"IFERROR(MID($J162,FIND(CHAR(160),SUBSTITUTE($J162,\"{\",CHAR(160),EQ$1)),FIND(CHAR(160),SUBSTITUTE($J162,\"}\",CHAR(160),EQ$1))-FIND(CHAR(160),SUBSTITUTE($J162,\"{\",CHAR(160),EQ$1))+1),\"\")","v":"{Retail Price}"},{"$f":"IFERROR(MID($J162,FIND(CHAR(160),SUBSTITUTE($J162,\"{\",CHAR(160),ER$1)),FIND(CHAR(160),SUBSTITUTE($J162,\"}\",CHAR(160),ER$1))-FIND(CHAR(160),SUBSTITUTE($J162,\"{\",CHAR(160),ER$1))+1),\"\")","v":"{Retail Price}"},{"$f":"IFERROR(MID($J162,FIND(CHAR(160),SUBSTITUTE($J162,\"{\",CHAR(160),ES$1)),FIND(CHAR(160),SUBSTITUTE($J162,\"}\",CHAR(160),ES$1))-FIND(CHAR(160),SUBSTITUTE($J162,\"{\",CHAR(160),ES$1))+1),\"\")","v":"{Measure:Quantity}"},{"$f":"IFERROR(MID($J162,FIND(CHAR(160),SUBSTITUTE($J162,\"{\",CHAR(160),ET$1)),FIND(CHAR(160),SUBSTITUTE($J162,\"}\",CHAR(160),ET$1))-FIND(CHAR(160),SUBSTITUTE($J162,\"{\",CHAR(160),ET$1))+1),\"\")","v":""},{"$f":"IFERROR(MID($J162,FIND(CHAR(160),SUBSTITUTE($J162,\"{\",CHAR(160),EU$1)),FIND(CHAR(160),SUBSTITUTE($J162,\"}\",CHAR(160),EU$1))-FIND(CHAR(160),SUBSTITUTE($J162,\"{\",CHAR(160),EU$1))+1),\"\")","v":""},{"$f":"IFERROR(MID($J162,FIND(CHAR(160),SUBSTITUTE($J162,\"{\",CHAR(160),EV$1)),FIND(CHAR(160),SUBSTITUTE($J162,\"}\",CHAR(160),EV$1))-FIND(CHAR(160),SUBSTITUTE($J162,\"{\",CHAR(160),EV$1))+1),\"\")","v":""},{"$f":"IFERROR(MID($J162,FIND(CHAR(160),SUBSTITUTE($J162,\"{\",CHAR(160),EW$1)),FIND(CHAR(160),SUBSTITUTE($J162,\"}\",CHAR(160),EW$1))-FIND(CHAR(160),SUBSTITUTE($J162,\"{\",CHAR(160),EW$1))+1),\"\")","v":""},{"$f":"IFERROR(MID($J162,FIND(CHAR(160),SUBSTITUTE($J162,\"{\",CHAR(160),EX$1)),FIND(CHAR(160),SUBSTITUTE($J162,\"}\",CHAR(160),EX$1))-FIND(CHAR(160),SUBSTITUTE($J162,\"{\",CHAR(160),EX$1))+1),\"\")","v":""},{"$f":"IFERROR(MID($J162,FIND(CHAR(160),SUBSTITUTE($J162,\"{\",CHAR(160),EY$1)),FIND(CHAR(160),SUBSTITUTE($J162,\"}\",CHAR(160),EY$1))-FIND(CHAR(160),SUBSTITUTE($J162,\"{\",CHAR(160),EY$1))+1),\"\")","v":""},{"$f":"IFERROR(MID($J162,FIND(CHAR(160),SUBSTITUTE($J162,\"{\",CHAR(160),EZ$1)),FIND(CHAR(160),SUBSTITUTE($J162,\"}\",CHAR(160),EZ$1))-FIND(CHAR(160),SUBSTITUTE($J162,\"{\",CHAR(160),EZ$1))+1),\"\")","v":""},{"$f":"IFERROR(MID($J162,FIND(CHAR(160),SUBSTITUTE($J162,\"{\",CHAR(160),FA$1)),FIND(CHAR(160),SUBSTITUTE($J162,\"}\",CHAR(160),FA$1))-FIND(CHAR(160),SUBSTITUTE($J162,\"{\",CHAR(160),FA$1))+1),\"\")","v":"{Retail Price}"},{"$f":"IFERROR(MID($J162,FIND(CHAR(160),SUBSTITUTE($J162,\"{\",CHAR(160),FB$1)),FIND(CHAR(160),SUBSTITUTE($J162,\"}\",CHAR(160),FB$1))-FIND(CHAR(160),SUBSTITUTE($J162,\"{\",CHAR(160),FB$1))+1),\"\")","v":"{Retail Price}"},{"$f":"IFERROR(MID($O162,FIND(CHAR(160),SUBSTITUTE($O162,\"{\",CHAR(160),FC$1)),FIND(CHAR(160),SUBSTITUTE($O162,\"}\",CHAR(160),FC$1))-FIND(CHAR(160),SUBSTITUTE($O162,\"{\",CHAR(160),FC$1))+1),\"\")","v":""},{"$f":"IFERROR(MID($O162,FIND(CHAR(160),SUBSTITUTE($O162,\"{\",CHAR(160),FD$1)),FIND(CHAR(160),SUBSTITUTE($O162,\"}\",CHAR(160),FD$1))-FIND(CHAR(160),SUBSTITUTE($O162,\"{\",CHAR(160),FD$1))+1),\"\")","v":""},{"$f":"IFERROR(MID($O162,FIND(CHAR(160),SUBSTITUTE($O162,\"{\",CHAR(160),FE$1)),FIND(CHAR(160),SUBSTITUTE($O162,\"}\",CHAR(160),FE$1))-FIND(CHAR(160),SUBSTITUTE($O162,\"{\",CHAR(160),FE$1))+1),\"\")","v":""},{"$f":"IFERROR(MID($O162,FIND(CHAR(160),SUBSTITUTE($O162,\"{\",CHAR(160),FF$1)),FIND(CHAR(160),SUBSTITUTE($O162,\"}\",CHAR(160),FF$1))-FIND(CHAR(160),SUBSTITUTE($O162,\"{\",CHAR(160),FF$1))+1),\"\")","v":""},{"$f":"IFERROR(MID($O162,FIND(CHAR(160),SUBSTITUTE($O162,\"{\",CHAR(160),FG$1)),FIND(CHAR(160),SUBSTITUTE($O162,\"}\",CHAR(160),FG$1))-FIND(CHAR(160),SUBSTITUTE($O162,\"{\",CHAR(160),FG$1))+1),\"\")","v":""},{"$f":"IFERROR(MID($O162,FIND(CHAR(160),SUBSTITUTE($O162,\"{\",CHAR(160),FH$1)),FIND(CHAR(160),SUBSTITUTE($O162,\"}\",CHAR(160),FH$1))-FIND(CHAR(160),SUBSTITUTE($O162,\"{\",CHAR(160),FH$1))+1),\"\")","v":""},{"$f":"IFERROR(MID($O162,FIND(CHAR(160),SUBSTITUTE($O162,\"{\",CHAR(160),FI$1)),FIND(CHAR(160),SUBSTITUTE($O162,\"}\",CHAR(160),FI$1))-FIND(CHAR(160),SUBSTITUTE($O162,\"{\",CHAR(160),FI$1))+1),\"\")","v":""},{"$f":"IFERROR(MID($O162,FIND(CHAR(160),SUBSTITUTE($O162,\"{\",CHAR(160),FJ$1)),FIND(CHAR(160),SUBSTITUTE($O162,\"}\",CHAR(160),FJ$1))-FIND(CHAR(160),SUBSTITUTE($O162,\"{\",CHAR(160),FJ$1))+1),\"\")","v":""},{"$f":"IFERROR(MID($O162,FIND(CHAR(160),SUBSTITUTE($O162,\"{\",CHAR(160),FK$1)),FIND(CHAR(160),SUBSTITUTE($O162,\"}\",CHAR(160),FK$1))-FIND(CHAR(160),SUBSTITUTE($O162,\"{\",CHAR(160),FK$1))+1),\"\")","v":""},{"$f":"IFERROR(MID($O162,FIND(CHAR(160),SUBSTITUTE($O162,\"{\",CHAR(160),FL$1)),FIND(CHAR(160),SUBSTITUTE($O162,\"}\",CHAR(160),FL$1))-FIND(CHAR(160),SUBSTITUTE($O162,\"{\",CHAR(160),FL$1))+1),\"\")","v":""},{"$f":"IFERROR(MID($R162,FIND(CHAR(160),SUBSTITUTE($R162,\"{\",CHAR(160),FM$1)),FIND(CHAR(160),SUBSTITUTE($R162,\"}\",CHAR(160),FM$1))-FIND(CHAR(160),SUBSTITUTE($R162,\"{\",CHAR(160),FM$1))+1),\"\")","v":""},{"$f":"IFERROR(MID($R162,FIND(CHAR(160),SUBSTITUTE($R162,\"{\",CHAR(160),FN$1)),FIND(CHAR(160),SUBSTITUTE($R162,\"}\",CHAR(160),FN$1))-FIND(CHAR(160),SUBSTITUTE($R162,\"{\",CHAR(160),FN$1))+1),\"\")","v":""},{"$f":"IFERROR(MID($R162,FIND(CHAR(160),SUBSTITUTE($R162,\"{\",CHAR(160),FO$1)),FIND(CHAR(160),SUBSTITUTE($R162,\"}\",CHAR(160),FO$1))-FIND(CHAR(160),SUBSTITUTE($R162,\"{\",CHAR(160),FO$1))+1),\"\")","v":""},{"$f":"IFERROR(MID($R162,FIND(CHAR(160),SUBSTITUTE($R162,\"{\",CHAR(160),FP$1)),FIND(CHAR(160),SUBSTITUTE($R162,\"}\",CHAR(160),FP$1))-FIND(CHAR(160),SUBSTITUTE($R162,\"{\",CHAR(160),FP$1))+1),\"\")","v":""},{"$f":"IFERROR(MID($R162,FIND(CHAR(160),SUBSTITUTE($R162,\"{\",CHAR(160),FQ$1)),FIND(CHAR(160),SUBSTITUTE($R162,\"}\",CHAR(160),FQ$1))-FIND(CHAR(160),SUBSTITUTE($R162,\"{\",CHAR(160),FQ$1))+1),\"\")","v":""},{"$f":"IFERROR(MID($R162,FIND(CHAR(160),SUBSTITUTE($R162,\"{\",CHAR(160),FR$1)),FIND(CHAR(160),SUBSTITUTE($R162,\"}\",CHAR(160),FR$1))-FIND(CHAR(160),SUBSTITUTE($R162,\"{\",CHAR(160),FR$1))+1),\"\")","v":""},{"$f":"IFERROR(MID($R162,FIND(CHAR(160),SUBSTITUTE($R162,\"{\",CHAR(160),FS$1)),FIND(CHAR(160),SUBSTITUTE($R162,\"}\",CHAR(160),FS$1))-FIND(CHAR(160),SUBSTITUTE($R162,\"{\",CHAR(160),FS$1))+1),\"\")","v":""},{"$f":"IFERROR(MID($R162,FIND(CHAR(160),SUBSTITUTE($R162,\"{\",CHAR(160),FT$1)),FIND(CHAR(160),SUBSTITUTE($R162,\"}\",CHAR(160),FT$1))-FIND(CHAR(160),SUBSTITUTE($R162,\"{\",CHAR(160),FT$1))+1),\"\")","v":""},{"$f":"IFERROR(MID($R162,FIND(CHAR(160),SUBSTITUTE($R162,\"{\",CHAR(160),FU$1)),FIND(CHAR(160),SUBSTITUTE($R162,\"}\",CHAR(160),FU$1))-FIND(CHAR(160),SUBSTITUTE($R162,\"{\",CHAR(160),FU$1))+1),\"\")","v":""},{"$f":"IFERROR(MID($R162,FIND(CHAR(160),SUBSTITUTE($R162,\"{\",CHAR(160),FV$1)),FIND(CHAR(160),SUBSTITUTE($R162,\"}\",CHAR(160),FV$1))-FIND(CHAR(160),SUBSTITUTE($R162,\"{\",CHAR(160),FV$1))+1),\"\")","v":""},{"$f":"IFERROR(MID($U162,FIND(CHAR(160),SUBSTITUTE($U162,\"{\",CHAR(160),FW$1)),FIND(CHAR(160),SUBSTITUTE($U162,\"}\",CHAR(160),FW$1))-FIND(CHAR(160),SUBSTITUTE($U162,\"{\",CHAR(160),FW$1))+1),\"\")","v":""},{"$f":"IFERROR(MID($U162,FIND(CHAR(160),SUBSTITUTE($U162,\"{\",CHAR(160),FX$1)),FIND(CHAR(160),SUBSTITUTE($U162,\"}\",CHAR(160),FX$1))-FIND(CHAR(160),SUBSTITUTE($U162,\"{\",CHAR(160),FX$1))+1),\"\")","v":""},{"$f":"IFERROR(MID($U162,FIND(CHAR(160),SUBSTITUTE($U162,\"{\",CHAR(160),FY$1)),FIND(CHAR(160),SUBSTITUTE($U162,\"}\",CHAR(160),FY$1))-FIND(CHAR(160),SUBSTITUTE($U162,\"{\",CHAR(160),FY$1))+1),\"\")","v":""},{"$f":"IFERROR(MID($U162,FIND(CHAR(160),SUBSTITUTE($U162,\"{\",CHAR(160),FZ$1)),FIND(CHAR(160),SUBSTITUTE($U162,\"}\",CHAR(160),FZ$1))-FIND(CHAR(160),SUBSTITUTE($U162,\"{\",CHAR(160),FZ$1))+1),\"\")","v":""},{"$f":"IFERROR(MID($U162,FIND(CHAR(160),SUBSTITUTE($U162,\"{\",CHAR(160),GA$1)),FIND(CHAR(160),SUBSTITUTE($U162,\"}\",CHAR(160),GA$1))-FIND(CHAR(160),SUBSTITUTE($U162,\"{\",CHAR(160),GA$1))+1),\"\")","v":""},{"$f":"IFERROR(MID($U162,FIND(CHAR(160),SUBSTITUTE($U162,\"{\",CHAR(160),GB$1)),FIND(CHAR(160),SUBSTITUTE($U162,\"}\",CHAR(160),GB$1))-FIND(CHAR(160),SUBSTITUTE($U162,\"{\",CHAR(160),GB$1))+1),\"\")","v":""},{"$f":"IFERROR(MID($U162,FIND(CHAR(160),SUBSTITUTE($U162,\"{\",CHAR(160),GC$1)),FIND(CHAR(160),SUBSTITUTE($U162,\"}\",CHAR(160),GC$1))-FIND(CHAR(160),SUBSTITUTE($U162,\"{\",CHAR(160),GC$1))+1),\"\")","v":""},{"$f":"IFERROR(MID($U162,FIND(CHAR(160),SUBSTITUTE($U162,\"{\",CHAR(160),GD$1)),FIND(CHAR(160),SUBSTITUTE($U162,\"}\",CHAR(160),GD$1))-FIND(CHAR(160),SUBSTITUTE($U162,\"{\",CHAR(160),GD$1))+1),\"\")","v":""},{"$f":"IFERROR(MID($U162,FIND(CHAR(160),SUBSTITUTE($U162,\"{\",CHAR(160),GE$1)),FIND(CHAR(160),SUBSTITUTE($U162,\"}\",CHAR(160),GE$1))-FIND(CHAR(160),SUBSTITUTE($U162,\"{\",CHAR(160),GE$1))+1),\"\")","v":""},{"$f":"IFERROR(MID($U162,FIND(CHAR(160),SUBSTITUTE($U162,\"{\",CHAR(160),GF$1)),FIND(CHAR(160),SUBSTITUTE($U162,\"}\",CHAR(160),GF$1))-FIND(CHAR(160),SUBSTITUTE($U162,\"{\",CHAR(160),GF$1))+1),\"\")","v":""},{"$f":"IFERROR(MID($V162,FIND(CHAR(160),SUBSTITUTE($V162,\"{\",CHAR(160),GG$1)),FIND(CHAR(160),SUBSTITUTE($V162,\"}\",CHAR(160),GG$1))-FIND(CHAR(160),SUBSTITUTE($V162,\"{\",CHAR(160),GG$1))+1),\"\")","v":""},{"$f":"IFERROR(MID($V162,FIND(CHAR(160),SUBSTITUTE($V162,\"{\",CHAR(160),GH$1)),FIND(CHAR(160),SUBSTITUTE($V162,\"}\",CHAR(160),GH$1))-FIND(CHAR(160),SUBSTITUTE($V162,\"{\",CHAR(160),GH$1))+1),\"\")","v":""},{"$f":"IFERROR(MID($V162,FIND(CHAR(160),SUBSTITUTE($V162,\"{\",CHAR(160),GI$1)),FIND(CHAR(160),SUBSTITUTE($V162,\"}\",CHAR(160),GI$1))-FIND(CHAR(160),SUBSTITUTE($V162,\"{\",CHAR(160),GI$1))+1),\"\")","v":""},{"$f":"IFERROR(MID($V162,FIND(CHAR(160),SUBSTITUTE($V162,\"{\",CHAR(160),GJ$1)),FIND(CHAR(160),SUBSTITUTE($V162,\"}\",CHAR(160),GJ$1))-FIND(CHAR(160),SUBSTITUTE($V162,\"{\",CHAR(160),GJ$1))+1),\"\")","v":""},{"$f":"IFERROR(MID($V162,FIND(CHAR(160),SUBSTITUTE($V162,\"{\",CHAR(160),GK$1)),FIND(CHAR(160),SUBSTITUTE($V162,\"}\",CHAR(160),GK$1))-FIND(CHAR(160),SUBSTITUTE($V162,\"{\",CHAR(160),GK$1))+1),\"\")","v":""},{"$f":"IFERROR(MID($V162,FIND(CHAR(160),SUBSTITUTE($V162,\"{\",CHAR(160),GL$1)),FIND(CHAR(160),SUBSTITUTE($V162,\"}\",CHAR(160),GL$1))-FIND(CHAR(160),SUBSTITUTE($V162,\"{\",CHAR(160),GL$1))+1),\"\")","v":""},{"$f":"IFERROR(MID($V162,FIND(CHAR(160),SUBSTITUTE($V162,\"{\",CHAR(160),GM$1)),FIND(CHAR(160),SUBSTITUTE($V162,\"}\",CHAR(160),GM$1))-FIND(CHAR(160),SUBSTITUTE($V162,\"{\",CHAR(160),GM$1))+1),\"\")","v":""},{"$f":"IFERROR(MID($V162,FIND(CHAR(160),SUBSTITUTE($V162,\"{\",CHAR(160),GN$1)),FIND(CHAR(160),SUBSTITUTE($V162,\"}\",CHAR(160),GN$1))-FIND(CHAR(160),SUBSTITUTE($V162,\"{\",CHAR(160),GN$1))+1),\"\")","v":""},{"$f":"IFERROR(MID($V162,FIND(CHAR(160),SUBSTITUTE($V162,\"{\",CHAR(160),GO$1)),FIND(CHAR(160),SUBSTITUTE($V162,\"}\",CHAR(160),GO$1))-FIND(CHAR(160),SUBSTITUTE($V162,\"{\",CHAR(160),GO$1))+1),\"\")","v":""},{"$f":"IFERROR(MID($V162,FIND(CHAR(160),SUBSTITUTE($V162,\"{\",CHAR(160),GP$1)),FIND(CHAR(160),SUBSTITUTE($V162,\"}\",CHAR(160),GP$1))-FIND(CHAR(160),SUBSTITUTE($V162,\"{\",CHAR(160),GP$1))+1),\"\")","v":""},{"$f":"IFERROR(MID($W162,FIND(CHAR(160),SUBSTITUTE($W162,\"{\",CHAR(160),GQ$1)),FIND(CHAR(160),SUBSTITUTE($W162,\"}\",CHAR(160),GQ$1))-FIND(CHAR(160),SUBSTITUTE($W162,\"{\",CHAR(160),GQ$1))+1),\"\")","v":""},{"$f":"IFERROR(MID($W162,FIND(CHAR(160),SUBSTITUTE($W162,\"{\",CHAR(160),GR$1)),FIND(CHAR(160),SUBSTITUTE($W162,\"}\",CHAR(160),GR$1))-FIND(CHAR(160),SUBSTITUTE($W162,\"{\",CHAR(160),GR$1))+1),\"\")","v":""},{"$f":"IFERROR(MID($W162,FIND(CHAR(160),SUBSTITUTE($W162,\"{\",CHAR(160),GS$1)),FIND(CHAR(160),SUBSTITUTE($W162,\"}\",CHAR(160),GS$1))-FIND(CHAR(160),SUBSTITUTE($W162,\"{\",CHAR(160),GS$1))+1),\"\")","v":""},{"$f":"IFERROR(MID($W162,FIND(CHAR(160),SUBSTITUTE($W162,\"{\",CHAR(160),GT$1)),FIND(CHAR(160),SUBSTITUTE($W162,\"}\",CHAR(160),GT$1))-FIND(CHAR(160),SUBSTITUTE($W162,\"{\",CHAR(160),GT$1))+1),\"\")","v":""},{"$f":"IFERROR(MID($W162,FIND(CHAR(160),SUBSTITUTE($W162,\"{\",CHAR(160),GU$1)),FIND(CHAR(160),SUBSTITUTE($W162,\"}\",CHAR(160),GU$1))-FIND(CHAR(160),SUBSTITUTE($W162,\"{\",CHAR(160),GU$1))+1),\"\")","v":""},{"$f":"IFERROR(MID($W162,FIND(CHAR(160),SUBSTITUTE($W162,\"{\",CHAR(160),GV$1)),FIND(CHAR(160),SUBSTITUTE($W162,\"}\",CHAR(160),GV$1))-FIND(CHAR(160),SUBSTITUTE($W162,\"{\",CHAR(160),GV$1))+1),\"\")","v":""},{"$f":"IFERROR(MID($W162,FIND(CHAR(160),SUBSTITUTE($W162,\"{\",CHAR(160),GW$1)),FIND(CHAR(160),SUBSTITUTE($W162,\"}\",CHAR(160),GW$1))-FIND(CHAR(160),SUBSTITUTE($W162,\"{\",CHAR(160),GW$1))+1),\"\")","v":""},{"$f":"IFERROR(MID($W162,FIND(CHAR(160),SUBSTITUTE($W162,\"{\",CHAR(160),GX$1)),FIND(CHAR(160),SUBSTITUTE($W162,\"}\",CHAR(160),GX$1))-FIND(CHAR(160),SUBSTITUTE($W162,\"{\",CHAR(160),GX$1))+1),\"\")","v":""},{"$f":"IFERROR(MID($W162,FIND(CHAR(160),SUBSTITUTE($W162,\"{\",CHAR(160),GY$1)),FIND(CHAR(160),SUBSTITUTE($W162,\"}\",CHAR(160),GY$1))-FIND(CHAR(160),SUBSTITUTE($W162,\"{\",CHAR(160),GY$1))+1),\"\")","v":"{Measure:Quantity}"},{"$f":"IFERROR(MID($W162,FIND(CHAR(160),SUBSTITUTE($W162,\"{\",CHAR(160),GZ$1)),FIND(CHAR(160),SUBSTITUTE($W162,\"}\",CHAR(160),GZ$1))-FIND(CHAR(160),SUBSTITUTE($W162,\"{\",CHAR(160),GZ$1))+1),\"\")","v":""},{"$f":"IFERROR(MID($X162,FIND(CHAR(160),SUBSTITUTE($X162,\"{\",CHAR(160),HA$1)),FIND(CHAR(160),SUBSTITUTE($X162,\"}\",CHAR(160),HA$1))-FIND(CHAR(160),SUBSTITUTE($X162,\"{\",CHAR(160),HA$1))+1),\"\")","v":""},{"$f":"IFERROR(MID($X162,FIND(CHAR(160),SUBSTITUTE($X162,\"{\",CHAR(160),HB$1)),FIND(CHAR(160),SUBSTITUTE($X162,\"}\",CHAR(160),HB$1))-FIND(CHAR(160),SUBSTITUTE($X162,\"{\",CHAR(160),HB$1))+1),\"\")","v":""},{"$f":"IFERROR(MID($X162,FIND(CHAR(160),SUBSTITUTE($X162,\"{\",CHAR(160),HC$1)),FIND(CHAR(160),SUBSTITUTE($X162,\"}\",CHAR(160),HC$1))-FIND(CHAR(160),SUBSTITUTE($X162,\"{\",CHAR(160),HC$1))+1),\"\")","v":""},{"$f":"IFERROR(MID($X162,FIND(CHAR(160),SUBSTITUTE($X162,\"{\",CHAR(160),HD$1)),FIND(CHAR(160),SUBSTITUTE($X162,\"}\",CHAR(160),HD$1))-FIND(CHAR(160),SUBSTITUTE($X162,\"{\",CHAR(160),HD$1))+1),\"\")","v":""},{"$f":"IFERROR(MID($X162,FIND(CHAR(160),SUBSTITUTE($X162,\"{\",CHAR(160),HE$1)),FIND(CHAR(160),SUBSTITUTE($X162,\"}\",CHAR(160),HE$1))-FIND(CHAR(160),SUBSTITUTE($X162,\"{\",CHAR(160),HE$1))+1),\"\")","v":""},{"$f":"IFERROR(MID($X162,FIND(CHAR(160),SUBSTITUTE($X162,\"{\",CHAR(160),HF$1)),FIND(CHAR(160),SUBSTITUTE($X162,\"}\",CHAR(160),HF$1))-FIND(CHAR(160),SUBSTITUTE($X162,\"{\",CHAR(160),HF$1))+1),\"\")","v":""},{"$f":"IFERROR(MID($X162,FIND(CHAR(160),SUBSTITUTE($X162,\"{\",CHAR(160),HG$1)),FIND(CHAR(160),SUBSTITUTE($X162,\"}\",CHAR(160),HG$1))-FIND(CHAR(160),SUBSTITUTE($X162,\"{\",CHAR(160),HG$1))+1),\"\")","v":""},{"$f":"IFERROR(MID($X162,FIND(CHAR(160),SUBSTITUTE($X162,\"{\",CHAR(160),HH$1)),FIND(CHAR(160),SUBSTITUTE($X162,\"}\",CHAR(160),HH$1))-FIND(CHAR(160),SUBSTITUTE($X162,\"{\",CHAR(160),HH$1))+1),\"\")","v":""},{"$f":"IFERROR(MID($X162,FIND(CHAR(160),SUBSTITUTE($X162,\"{\",CHAR(160),HI$1)),FIND(CHAR(160),SUBSTITUTE($X162,\"}\",CHAR(160),HI$1))-FIND(CHAR(160),SUBSTITUTE($X162,\"{\",CHAR(160),HI$1))+1),\"\")","v":""},{"$f":"IFERROR(MID($X162,FIND(CHAR(160),SUBSTITUTE($X162,\"{\",CHAR(160),HJ$1)),FIND(CHAR(160),SUBSTITUTE($X162,\"}\",CHAR(160),HJ$1))-FIND(CHAR(160),SUBSTITUTE($X162,\"{\",CHAR(160),HJ$1))+1),\"\")","v":""},{"$f":"IFERROR(MID($Y162,FIND(CHAR(160),SUBSTITUTE($Y162,\"{\",CHAR(160),HK$1)),FIND(CHAR(160),SUBSTITUTE($Y162,\"}\",CHAR(160),HK$1))-FIND(CHAR(160),SUBSTITUTE($Y162,\"{\",CHAR(160),HK$1))+1),\"\")","v":""},{"$f":"IFERROR(MID($Y162,FIND(CHAR(160),SUBSTITUTE($Y162,\"{\",CHAR(160),HL$1)),FIND(CHAR(160),SUBSTITUTE($Y162,\"}\",CHAR(160),HL$1))-FIND(CHAR(160),SUBSTITUTE($Y162,\"{\",CHAR(160),HL$1))+1),\"\")","v":""},{"$f":"IFERROR(MID($Y162,FIND(CHAR(160),SUBSTITUTE($Y162,\"{\",CHAR(160),HM$1)),FIND(CHAR(160),SUBSTITUTE($Y162,\"}\",CHAR(160),HM$1))-FIND(CHAR(160),SUBSTITUTE($Y162,\"{\",CHAR(160),HM$1))+1),\"\")","v":""},{"$f":"IFERROR(MID($Y162,FIND(CHAR(160),SUBSTITUTE($Y162,\"{\",CHAR(160),HN$1)),FIND(CHAR(160),SUBSTITUTE($Y162,\"}\",CHAR(160),HN$1))-FIND(CHAR(160),SUBSTITUTE($Y162,\"{\",CHAR(160),HN$1))+1),\"\")","v":""},{"$f":"IFERROR(MID($Y162,FIND(CHAR(160),SUBSTITUTE($Y162,\"{\",CHAR(160),HO$1)),FIND(CHAR(160),SUBSTITUTE($Y162,\"}\",CHAR(160),HO$1))-FIND(CHAR(160),SUBSTITUTE($Y162,\"{\",CHAR(160),HO$1))+1),\"\")","v":""},{"$f":"IFERROR(MID($Y162,FIND(CHAR(160),SUBSTITUTE($Y162,\"{\",CHAR(160),HP$1)),FIND(CHAR(160),SUBSTITUTE($Y162,\"}\",CHAR(160),HP$1))-FIND(CHAR(160),SUBSTITUTE($Y162,\"{\",CHAR(160),HP$1))+1),\"\")","v":""},{"$f":"IFERROR(MID($Y162,FIND(CHAR(160),SUBSTITUTE($Y162,\"{\",CHAR(160),HQ$1)),FIND(CHAR(160),SUBSTITUTE($Y162,\"}\",CHAR(160),HQ$1))-FIND(CHAR(160),SUBSTITUTE($Y162,\"{\",CHAR(160),HQ$1))+1),\"\")","v":""},{"$f":"IFERROR(MID($Y162,FIND(CHAR(160),SUBSTITUTE($Y162,\"{\",CHAR(160),HR$1)),FIND(CHAR(160),SUBSTITUTE($Y162,\"}\",CHAR(160),HR$1))-FIND(CHAR(160),SUBSTITUTE($Y162,\"{\",CHAR(160),HR$1))+1),\"\")","v":""},{"$f":"IFERROR(MID($Y162,FIND(CHAR(160),SUBSTITUTE($Y162,\"{\",CHAR(160),HS$1)),FIND(CHAR(160),SUBSTITUTE($Y162,\"}\",CHAR(160),HS$1))-FIND(CHAR(160),SUBSTITUTE($Y162,\"{\",CHAR(160),HS$1))+1),\"\")","v":""},{"$f":"IFERROR(MID($Y162,FIND(CHAR(160),SUBSTITUTE($Y162,\"{\",CHAR(160),HT$1)),FIND(CHAR(160),SUBSTITUTE($Y162,\"}\",CHAR(160),HT$1))-FIND(CHAR(160),SUBSTITUTE($Y162,\"{\",CHAR(160),HT$1))+1),\"\")","v":""},{"$f":"IFERROR(MID($Z162,FIND(CHAR(160),SUBSTITUTE($Z162,\"{\",CHAR(160),HU$1)),FIND(CHAR(160),SUBSTITUTE($Z162,\"}\",CHAR(160),HU$1))-FIND(CHAR(160),SUBSTITUTE($Z162,\"{\",CHAR(160),HU$1))+1),\"\")","v":""},{"$f":"IFERROR(MID($Z162,FIND(CHAR(160),SUBSTITUTE($Z162,\"{\",CHAR(160),HV$1)),FIND(CHAR(160),SUBSTITUTE($Z162,\"}\",CHAR(160),HV$1))-FIND(CHAR(160),SUBSTITUTE($Z162,\"{\",CHAR(160),HV$1))+1),\"\")","v":""},{"$f":"IFERROR(MID($Z162,FIND(CHAR(160),SUBSTITUTE($Z162,\"{\",CHAR(160),HW$1)),FIND(CHAR(160),SUBSTITUTE($Z162,\"}\",CHAR(160),HW$1))-FIND(CHAR(160),SUBSTITUTE($Z162,\"{\",CHAR(160),HW$1))+1),\"\")","v":""},{"$f":"IFERROR(MID($Z162,FIND(CHAR(160),SUBSTITUTE($Z162,\"{\",CHAR(160),HX$1)),FIND(CHAR(160),SUBSTITUTE($Z162,\"}\",CHAR(160),HX$1))-FIND(CHAR(160),SUBSTITUTE($Z162,\"{\",CHAR(160),HX$1))+1),\"\")","v":""},{"$f":"IFERROR(MID($Z162,FIND(CHAR(160),SUBSTITUTE($Z162,\"{\",CHAR(160),HY$1)),FIND(CHAR(160),SUBSTITUTE($Z162,\"}\",CHAR(160),HY$1))-FIND(CHAR(160),SUBSTITUTE($Z162,\"{\",CHAR(160),HY$1))+1),\"\")","v":""},{"$f":"IFERROR(MID($Z162,FIND(CHAR(160),SUBSTITUTE($Z162,\"{\",CHAR(160),HZ$1)),FIND(CHAR(160),SUBSTITUTE($Z162,\"}\",CHAR(160),HZ$1))-FIND(CHAR(160),SUBSTITUTE($Z162,\"{\",CHAR(160),HZ$1))+1),\"\")","v":""},{"$f":"IFERROR(MID($Z162,FIND(CHAR(160),SUBSTITUTE($Z162,\"{\",CHAR(160),IA$1)),FIND(CHAR(160),SUBSTITUTE($Z162,\"}\",CHAR(160),IA$1))-FIND(CHAR(160),SUBSTITUTE($Z162,\"{\",CHAR(160),IA$1))+1),\"\")","v":""},{"$f":"IFERROR(MID($Z162,FIND(CHAR(160),SUBSTITUTE($Z162,\"{\",CHAR(160),IB$1)),FIND(CHAR(160),SUBSTITUTE($Z162,\"}\",CHAR(160),IB$1))-FIND(CHAR(160),SUBSTITUTE($Z162,\"{\",CHAR(160),IB$1))+1),\"\")","v":""},{"$f":"IFERROR(MID($Z162,FIND(CHAR(160),SUBSTITUTE($Z162,\"{\",CHAR(160),IC$1)),FIND(CHAR(160),SUBSTITUTE($Z162,\"}\",CHAR(160),IC$1))-FIND(CHAR(160),SUBSTITUTE($Z162,\"{\",CHAR(160),IC$1))+1),\"\")","v":""},{"$f":"IFERROR(MID($Z162,FIND(CHAR(160),SUBSTITUTE($Z162,\"{\",CHAR(160),ID$1)),FIND(CHAR(160),SUBSTITUTE($Z162,\"}\",CHAR(160),ID$1))-FIND(CHAR(160),SUBSTITUTE($Z162,\"{\",CHAR(160),ID$1))+1),\"\")","v":""},{"$f":"IFERROR(MID($AA162,FIND(CHAR(160),SUBSTITUTE($AA162,\"{\",CHAR(160),IE$1)),FIND(CHAR(160),SUBSTITUTE($AA162,\"}\",CHAR(160),IE$1))-FIND(CHAR(160),SUBSTITUTE($AA162,\"{\",CHAR(160),IE$1))+1),\"\")","v":""},{"$f":"IFERROR(MID($AA162,FIND(CHAR(160),SUBSTITUTE($AA162,\"{\",CHAR(160),IF$1)),FIND(CHAR(160),SUBSTITUTE($AA162,\"}\",CHAR(160),IF$1))-FIND(CHAR(160),SUBSTITUTE($AA162,\"{\",CHAR(160),IF$1))+1),\"\")","v":""},{"$f":"IFERROR(MID($AA162,FIND(CHAR(160),SUBSTITUTE($AA162,\"{\",CHAR(160),IG$1)),FIND(CHAR(160),SUBSTITUTE($AA162,\"}\",CHAR(160),IG$1))-FIND(CHAR(160),SUBSTITUTE($AA162,\"{\",CHAR(160),IG$1))+1),\"\")","v":""},{"$f":"IFERROR(MID($AA162,FIND(CHAR(160),SUBSTITUTE($AA162,\"{\",CHAR(160),IH$1)),FIND(CHAR(160),SUBSTITUTE($AA162,\"}\",CHAR(160),IH$1))-FIND(CHAR(160),SUBSTITUTE($AA162,\"{\",CHAR(160),IH$1))+1),\"\")","v":""},{"$f":"IFERROR(MID($AA162,FIND(CHAR(160),SUBSTITUTE($AA162,\"{\",CHAR(160),II$1)),FIND(CHAR(160),SUBSTITUTE($AA162,\"}\",CHAR(160),II$1))-FIND(CHAR(160),SUBSTITUTE($AA162,\"{\",CHAR(160),II$1))+1),\"\")","v":""},{"$f":"IFERROR(MID($AA162,FIND(CHAR(160),SUBSTITUTE($AA162,\"{\",CHAR(160),IJ$1)),FIND(CHAR(160),SUBSTITUTE($AA162,\"}\",CHAR(160),IJ$1))-FIND(CHAR(160),SUBSTITUTE($AA162,\"{\",CHAR(160),IJ$1))+1),\"\")","v":""},{"$f":"IFERROR(MID($AA162,FIND(CHAR(160),SUBSTITUTE($AA162,\"{\",CHAR(160),IK$1)),FIND(CHAR(160),SUBSTITUTE($AA162,\"}\",CHAR(160),IK$1))-FIND(CHAR(160),SUBSTITUTE($AA162,\"{\",CHAR(160),IK$1))+1),\"\")","v":""},{"$f":"IFERROR(MID($AA162,FIND(CHAR(160),SUBSTITUTE($AA162,\"{\",CHAR(160),IL$1)),FIND(CHAR(160),SUBSTITUTE($AA162,\"}\",CHAR(160),IL$1))-FIND(CHAR(160),SUBSTITUTE($AA162,\"{\",CHAR(160),IL$1))+1),\"\")","v":""},{"$f":"IFERROR(MID($AA162,FIND(CHAR(160),SUBSTITUTE($AA162,\"{\",CHAR(160),IM$1)),FIND(CHAR(160),SUBSTITUTE($AA162,\"}\",CHAR(160),IM$1))-FIND(CHAR(160),SUBSTITUTE($AA162,\"{\",CHAR(160),IM$1))+1),\"\")","v":""},{"$f":"IFERROR(MID($AA162,FIND(CHAR(160),SUBSTITUTE($AA162,\"{\",CHAR(160),IN$1)),FIND(CHAR(160),SUBSTITUTE($AA162,\"}\",CHAR(160),IN$1))-FIND(CHAR(160),SUBSTITUTE($AA162,\"{\",CHAR(160),IN$1))+1),\"\")","v":""},{"$f":"IFERROR(MID($AB162,FIND(CHAR(160),SUBSTITUTE($AB162,\"{\",CHAR(160),IO$1)),FIND(CHAR(160),SUBSTITUTE($AB162,\"}\",CHAR(160),IO$1))-FIND(CHAR(160),SUBSTITUTE($AB162,\"{\",CHAR(160),IO$1))+1),\"\")","v":""},{"$f":"IFERROR(MID($AB162,FIND(CHAR(160),SUBSTITUTE($AB162,\"{\",CHAR(160),IP$1)),FIND(CHAR(160),SUBSTITUTE($AB162,\"}\",CHAR(160),IP$1))-FIND(CHAR(160),SUBSTITUTE($AB162,\"{\",CHAR(160),IP$1))+1),\"\")","v":""},{"$f":"IFERROR(MID($AB162,FIND(CHAR(160),SUBSTITUTE($AB162,\"{\",CHAR(160),IQ$1)),FIND(CHAR(160),SUBSTITUTE($AB162,\"}\",CHAR(160),IQ$1))-FIND(CHAR(160),SUBSTITUTE($AB162,\"{\",CHAR(160),IQ$1))+1),\"\")","v":""},{"$f":"IFERROR(MID($AB162,FIND(CHAR(160),SUBSTITUTE($AB162,\"{\",CHAR(160),IR$1)),FIND(CHAR(160),SUBSTITUTE($AB162,\"}\",CHAR(160),IR$1))-FIND(CHAR(160),SUBSTITUTE($AB162,\"{\",CHAR(160),IR$1))+1),\"\")","v":""},{"$f":"IFERROR(MID($AB162,FIND(CHAR(160),SUBSTITUTE($AB162,\"{\",CHAR(160),IS$1)),FIND(CHAR(160),SUBSTITUTE($AB162,\"}\",CHAR(160),IS$1))-FIND(CHAR(160),SUBSTITUTE($AB162,\"{\",CHAR(160),IS$1))+1),\"\")","v":""},{"$f":"IFERROR(MID($AB162,FIND(CHAR(160),SUBSTITUTE($AB162,\"{\",CHAR(160),IT$1)),FIND(CHAR(160),SUBSTITUTE($AB162,\"}\",CHAR(160),IT$1))-FIND(CHAR(160),SUBSTITUTE($AB162,\"{\",CHAR(160),IT$1))+1),\"\")","v":""},{"$f":"IFERROR(MID($AB162,FIND(CHAR(160),SUBSTITUTE($AB162,\"{\",CHAR(160),IU$1)),FIND(CHAR(160),SUBSTITUTE($AB162,\"}\",CHAR(160),IU$1))-FIND(CHAR(160),SUBSTITUTE($AB162,\"{\",CHAR(160),IU$1))+1),\"\")","v":""},{"$f":"IFERROR(MID($AB162,FIND(CHAR(160),SUBSTITUTE($AB162,\"{\",CHAR(160),IV$1)),FIND(CHAR(160),SUBSTITUTE($AB162,\"}\",CHAR(160),IV$1))-FIND(CHAR(160),SUBSTITUTE($AB162,\"{\",CHAR(160),IV$1))+1),\"\")","v":""},{"$f":"IFERROR(MID($AB162,FIND(CHAR(160),SUBSTITUTE($AB162,\"{\",CHAR(160),IW$1)),FIND(CHAR(160),SUBSTITUTE($AB162,\"}\",CHAR(160),IW$1))-FIND(CHAR(160),SUBSTITUTE($AB162,\"{\",CHAR(160),IW$1))+1),\"\")","v":""},{"$f":"IFERROR(MID($AB162,FIND(CHAR(160),SUBSTITUTE($AB162,\"{\",CHAR(160),IX$1)),FIND(CHAR(160),SUBSTITUTE($AB162,\"}\",CHAR(160),IX$1))-FIND(CHAR(160),SUBSTITUTE($AB162,\"{\",CHAR(160),IX$1))+1),\"\")","v":""},null,{"$f":"10-COUNTIF(DU162:ED162,\"\")","v":2}]
["Distributor Lighting","Specialty LED - PAR16","LEDPAR16","2021-07-01","2022-06-30","Calculated","{Measure:Quantity}*{Package Size}*7.4",0,"Calculated","{Measure:Quantity}*{Rebate per Package}",0,"2021-07-01","2022-06-30","Calculated","{Measure:Quantity}*{Package Size}*62",null,null,"{Measure:Quantity}*{Package Size}*1.0747*0.036",null,null,"{Measure:Quantity}*{Package Size}*{Factor:WinterCF}*0.036","{Measure:Quantity}*{Package Size}*{Factor:SummerCF}*1.0747*0.036","{Measure:Quantity}*{Package Size}*10*-0.008","{Measure:Quantity}*{Package Size}*-0.005","{Measure:Quantity}*{Package Size}*-0.041","{Measure:Quantity}*{Package Size}*-0.002","{Measure:Quantity}*{Package Size}*-0.01",null,"2021-07-01","2022-06-30",2,0.254,0.309,0.42299999999999999,0.249,0.21,0.11799999999999999,0.99,1,1,0.51,0,null,{"$f":"DU163","v":"{Measure:Quantity}"},1,{"$f":"DV163","v":"{Package Size}"},1,{"$f":"DW163","v":"{Rebate per Package}"},{"$f":"CW163*CO163","v":0},{"$f":"DX163","v":""},null,{"$f":"DY163","v":""},null,{"$f":"DZ163","v":""},null,{"$f":"EA163","v":""},null,{"$f":"EB163","v":""},null,{"$f":"EC163","v":""},null,{"$f":"ED163","v":""},null,{"$f":"AS163*AU163*62","v":62},0,0,{"$f":"AS163*AU163*1.0747*0.036","v":3.86892E-2},0,0,{"$f":"AS163*AU163*AF163*0.036","v":9.1439999999999994E-3},{"$f":"AS163*AU163*AG163*1.0747*0.036","v":1.19549628E-2},{"$f":"AS163*AU163*10*-0.008","v":-0.08},{"$f":"AS163*AU163*-0.005","v":-5.0000000000000001E-3},{"$f":"AS163*AU163*-0.041","v":-4.1000000000000002E-2},{"$f":"AS163*AU163*-0.002","v":-2E-3},{"$f":"AS163*AU163*-0.01","v":-0.01},0,null,"Res","Default DR",{"$f":"Benefits(BL163,BR163,BS163,BT163,BU163,BV163,BW163,BX163,BY163,BZ163,AE163,AH163,AI163,AJ163,AK163,AL163,AM163,AN163,AO163,AP163,CA163,CB163)","v":14.778799820694292},8.9894184587362531,-0.28758372030538804,-2.6845244890739304,-0.14862690259143968,-0.45371663404669266,-0.34444945961089496,0,0,{"$f":"SUMPRODUCT(CC163:CK163,--(CC163:CK163>0))","v":23.768218279430545},{"$f":"-SUMPRODUCT(CC163:CK163,--(CC163:CK163<0))","v":3.9189012056283454},null,{"$f":"AS163*AU163*7.4","v":7.4},null,null,{"$f":"CM163+CO163","v":11.318901205628347},{"$f":"IF(NetOrGross=\"Net\",(1-AO163+AP163),1)","v":1},{"$f":"(SUMPRODUCT(CC163:CJ163,--(CC163:CJ163>0))+CN163)*CS163/((-SUMPRODUCT(CC163:CJ163,--(CC163:CJ163<0))+MAX(CO163,CV163)+CP163+CQ163)*CS163+IF(FRIncentives=\"Yes\",CV163*(1-CS163),0))","v":2.0998697530473849},1,{"$f":"AS163*AW163","v":0},{"$f":"CW162","v":0},"Electric","y",null,{"$f":"IF(F163=\"Manual Entry\",\"Manual\",IF(G163=\"\",0,\"X=\"&SUBSTITUTE(SUBSTITUTE(SUBSTITUTE(SUBSTITUTE(SUBSTITUTE(SUBSTITUTE(SUBSTITUTE(SUBSTITUTE(SUBSTITUTE(SUBSTITUTE(SUBSTITUTE(SUBSTITUTE(G163,$ED163,$ED$2&ROW($ED163)),$EC163,$EC$2&ROW($EC163)),$EB163,$EB$2&ROW($EB163)),$EA163,$EA$2&ROW($EA163)),$DZ163,$DZ$2&ROW($DZ163)),$DY163,$DY$2&ROW($DY163)),$DX163,$DX$2&ROW($DX163)),$DW163,$DW$2&ROW($DW163)),$DV163,$DV$2&ROW($DV163)),$DU163,$DU$2&ROW($DU163)),$DT163,$DT$2&ROW($DT163)),$DS163,$DS$2&ROW($DS163))))","v":"X=AS163*AU163*7.4"},{"$f":"IF(I163=\"Manual Entry\",\"Manual\",IF(J163=\"\",0,\"X=\"&SUBSTITUTE(SUBSTITUTE(SUBSTITUTE(SUBSTITUTE(SUBSTITUTE(SUBSTITUTE(SUBSTITUTE(SUBSTITUTE(SUBSTITUTE(SUBSTITUTE(SUBSTITUTE(SUBSTITUTE(J163,$ED163,$ED$2&ROW($ED163)),$EC163,$EC$2&ROW($EC163)),$EB163,$EB$2&ROW($EB163)),$EA163,$EA$2&ROW($EA163)),$DZ163,$DZ$2&ROW($DZ163)),$DY163,$DY$2&ROW($DY163)),$DX163,$DX$2&ROW($DX163)),$DW163,$DW$2&ROW($DW163)),$DV163,$DV$2&ROW($DV163)),$DU163,$DU$2&ROW($DU163)),$DT163,$DT$2&ROW($DT163)),$DS163,$DS$2&ROW($DS163))))","v":"X=AS163*AW163"},{"$f":"IF(O163=\"\",0,\"X=\"&SUBSTITUTE(SUBSTITUTE(SUBSTITUTE(SUBSTITUTE(SUBSTITUTE(SUBSTITUTE(SUBSTITUTE(SUBSTITUTE(SUBSTITUTE(SUBSTITUTE(SUBSTITUTE(SUBSTITUTE(O163,$ED163,$ED$2&ROW($ED163)),$EC163,$EC$2&ROW($EC163)),$EB163,$EB$2&ROW($EB163)),$EA163,$EA$2&ROW($EA163)),$DZ163,$DZ$2&ROW($DZ163)),$DY163,$DY$2&ROW($DY163)),$DX163,$DX$2&ROW($DX163)),$DW163,$DW$2&ROW($DW163)),$DV163,$DV$2&ROW($DV163)),$DU163,$DU$2&ROW($DU163)),$DT163,$DT$2&ROW($DT163)),$DS163,$DS$2&ROW($DS163)))","v":"X=AS163*AU163*62"},{"$f":"IF(P163=\"\",0,\"X=\"&SUBSTITUTE(SUBSTITUTE(SUBSTITUTE(SUBSTITUTE(SUBSTITUTE(SUBSTITUTE(SUBSTITUTE(SUBSTITUTE(SUBSTITUTE(SUBSTITUTE(SUBSTITUTE(SUBSTITUTE(P163,$ED163,$ED$2&ROW($ED163)),$EC163,$EC$2&ROW($EC163)),$EB163,$EB$2&ROW($EB163)),$EA163,$EA$2&ROW($EA163)),$DZ163,$DZ$2&ROW($DZ163)),$DY163,$DY$2&ROW($DY163)),$DX163,$DX$2&ROW($DX163)),$DW163,$DW$2&ROW($DW163)),$DV163,$DV$2&ROW($DV163)),$DU163,$DU$2&ROW($DU163)),$DT163,$DT$2&ROW($DT163)),$DS163,$DS$2&ROW($DS163)))","v":0},{"$f":"IF(Q163=\"\",0,\"X=\"&SUBSTITUTE(SUBSTITUTE(SUBSTITUTE(SUBSTITUTE(SUBSTITUTE(SUBSTITUTE(SUBSTITUTE(SUBSTITUTE(SUBSTITUTE(SUBSTITUTE(SUBSTITUTE(SUBSTITUTE(Q163,$ED163,$ED$2&ROW($ED163)),$EC163,$EC$2&ROW($EC163)),$EB163,$EB$2&ROW($EB163)),$EA163,$EA$2&ROW($EA163)),$DZ163,$DZ$2&ROW($DZ163)),$DY163,$DY$2&ROW($DY163)),$DX163,$DX$2&ROW($DX163)),$DW163,$DW$2&ROW($DW163)),$DV163,$DV$2&ROW($DV163)),$DU163,$DU$2&ROW($DU163)),$DT163,$DT$2&ROW($DT163)),$DS163,$DS$2&ROW($DS163)))","v":0},{"$f":"IF(R163=\"\",0,\"X=\"&SUBSTITUTE(SUBSTITUTE(SUBSTITUTE(SUBSTITUTE(SUBSTITUTE(SUBSTITUTE(SUBSTITUTE(SUBSTITUTE(SUBSTITUTE(SUBSTITUTE(SUBSTITUTE(SUBSTITUTE(R163,$ED163,$ED$2&ROW($ED163)),$EC163,$EC$2&ROW($EC163)),$EB163,$EB$2&ROW($EB163)),$EA163,$EA$2&ROW($EA163)),$DZ163,$DZ$2&ROW($DZ163)),$DY163,$DY$2&ROW($DY163)),$DX163,$DX$2&ROW($DX163)),$DW163,$DW$2&ROW($DW163)),$DV163,$DV$2&ROW($DV163)),$DU163,$DU$2&ROW($DU163)),$DT163,$DT$2&ROW($DT163)),$DS163,$DS$2&ROW($DS163)))","v":"X=AS163*AU163*1.0747*0.036"},{"$f":"IF(S163=\"\",0,\"X=\"&SUBSTITUTE(SUBSTITUTE(SUBSTITUTE(SUBSTITUTE(SUBSTITUTE(SUBSTITUTE(SUBSTITUTE(SUBSTITUTE(SUBSTITUTE(SUBSTITUTE(SUBSTITUTE(SUBSTITUTE(S163,$ED163,$ED$2&ROW($ED163)),$EC163,$EC$2&ROW($EC163)),$EB163,$EB$2&ROW($EB163)),$EA163,$EA$2&ROW($EA163)),$DZ163,$DZ$2&ROW($DZ163)),$DY163,$DY$2&ROW($DY163)),$DX163,$DX$2&ROW($DX163)),$DW163,$DW$2&ROW($DW163)),$DV163,$DV$2&ROW($DV163)),$DU163,$DU$2&ROW($DU163)),$DT163,$DT$2&ROW($DT163)),$DS163,$DS$2&ROW($DS163)))","v":0},{"$f":"IF(T163=\"\",0,\"X=\"&SUBSTITUTE(SUBSTITUTE(SUBSTITUTE(SUBSTITUTE(SUBSTITUTE(SUBSTITUTE(SUBSTITUTE(SUBSTITUTE(SUBSTITUTE(SUBSTITUTE(SUBSTITUTE(SUBSTITUTE(T163,$ED163,$ED$2&ROW($ED163)),$EC163,$EC$2&ROW($EC163)),$EB163,$EB$2&ROW($EB163)),$EA163,$EA$2&ROW($EA163)),$DZ163,$DZ$2&ROW($DZ163)),$DY163,$DY$2&ROW($DY163)),$DX163,$DX$2&ROW($DX163)),$DW163,$DW$2&ROW($DW163)),$DV163,$DV$2&ROW($DV163)),$DU163,$DU$2&ROW($DU163)),$DT163,$DT$2&ROW($DT163)),$DS163,$DS$2&ROW($DS163)))","v":0},{"$f":"IF(U163=\"\",0,\"X=\"&SUBSTITUTE(SUBSTITUTE(SUBSTITUTE(SUBSTITUTE(SUBSTITUTE(SUBSTITUTE(SUBSTITUTE(SUBSTITUTE(SUBSTITUTE(SUBSTITUTE(SUBSTITUTE(SUBSTITUTE(U163,$ED163,$ED$2&ROW($ED163)),$EC163,$EC$2&ROW($EC163)),$EB163,$EB$2&ROW($EB163)),$EA163,$EA$2&ROW($EA163)),$DZ163,$DZ$2&ROW($DZ163)),$DY163,$DY$2&ROW($DY163)),$DX163,$DX$2&ROW($DX163)),$DW163,$DW$2&ROW($DW163)),$DV163,$DV$2&ROW($DV163)),$DU163,$DU$2&ROW($DU163)),$DT163,$DT$2&ROW($DT163)),$DS163,$DS$2&ROW($DS163)))","v":"X=AS163*AU163*AF163*0.036"},{"$f":"IF(V163=\"\",0,\"X=\"&SUBSTITUTE(SUBSTITUTE(SUBSTITUTE(SUBSTITUTE(SUBSTITUTE(SUBSTITUTE(SUBSTITUTE(SUBSTITUTE(SUBSTITUTE(SUBSTITUTE(SUBSTITUTE(SUBSTITUTE(V163,$ED163,$ED$2&ROW($ED163)),$EC163,$EC$2&ROW($EC163)),$EB163,$EB$2&ROW($EB163)),$EA163,$EA$2&ROW($EA163)),$DZ163,$DZ$2&ROW($DZ163)),$DY163,$DY$2&ROW($DY163)),$DX163,$DX$2&ROW($DX163)),$DW163,$DW$2&ROW($DW163)),$DV163,$DV$2&ROW($DV163)),$DU163,$DU$2&ROW($DU163)),$DT163,$DT$2&ROW($DT163)),$DS163,$DS$2&ROW($DS163)))","v":"X=AS163*AU163*AG163*1.0747*0.036"},{"$f":"IF(W163=\"\",0,\"X=\"&SUBSTITUTE(SUBSTITUTE(SUBSTITUTE(SUBSTITUTE(SUBSTITUTE(SUBSTITUTE(SUBSTITUTE(SUBSTITUTE(SUBSTITUTE(SUBSTITUTE(SUBSTITUTE(SUBSTITUTE(W163,$ED163,$ED$2&ROW($ED163)),$EC163,$EC$2&ROW($EC163)),$EB163,$EB$2&ROW($EB163)),$EA163,$EA$2&ROW($EA163)),$DZ163,$DZ$2&ROW($DZ163)),$DY163,$DY$2&ROW($DY163)),$DX163,$DX$2&ROW($DX163)),$DW163,$DW$2&ROW($DW163)),$DV163,$DV$2&ROW($DV163)),$DU163,$DU$2&ROW($DU163)),$DT163,$DT$2&ROW($DT163)),$DS163,$DS$2&ROW($DS163)))","v":"X=AS163*AU163*10*-0.008"},{"$f":"IF(X163=\"\",0,\"X=\"&SUBSTITUTE(SUBSTITUTE(SUBSTITUTE(SUBSTITUTE(SUBSTITUTE(SUBSTITUTE(SUBSTITUTE(SUBSTITUTE(SUBSTITUTE(SUBSTITUTE(SUBSTITUTE(SUBSTITUTE(X163,$ED163,$ED$2&ROW($ED163)),$EC163,$EC$2&ROW($EC163)),$EB163,$EB$2&ROW($EB163)),$EA163,$EA$2&ROW($EA163)),$DZ163,$DZ$2&ROW($DZ163)),$DY163,$DY$2&ROW($DY163)),$DX163,$DX$2&ROW($DX163)),$DW163,$DW$2&ROW($DW163)),$DV163,$DV$2&ROW($DV163)),$DU163,$DU$2&ROW($DU163)),$DT163,$DT$2&ROW($DT163)),$DS163,$DS$2&ROW($DS163)))","v":"X=AS163*AU163*-0.005"},{"$f":"IF(Y163=\"\",0,\"X=\"&SUBSTITUTE(SUBSTITUTE(SUBSTITUTE(SUBSTITUTE(SUBSTITUTE(SUBSTITUTE(SUBSTITUTE(SUBSTITUTE(SUBSTITUTE(SUBSTITUTE(SUBSTITUTE(SUBSTITUTE(Y163,$ED163,$ED$2&ROW($ED163)),$EC163,$EC$2&ROW($EC163)),$EB163,$EB$2&ROW($EB163)),$EA163,$EA$2&ROW($EA163)),$DZ163,$DZ$2&ROW($DZ163)),$DY163,$DY$2&ROW($DY163)),$DX163,$DX$2&ROW($DX163)),$DW163,$DW$2&ROW($DW163)),$DV163,$DV$2&ROW($DV163)),$DU163,$DU$2&ROW($DU163)),$DT163,$DT$2&ROW($DT163)),$DS163,$DS$2&ROW($DS163)))","v":"X=AS163*AU163*-0.041"},{"$f":"IF(Z163=\"\",0,\"X=\"&SUBSTITUTE(SUBSTITUTE(SUBSTITUTE(SUBSTITUTE(SUBSTITUTE(SUBSTITUTE(SUBSTITUTE(SUBSTITUTE(SUBSTITUTE(SUBSTITUTE(SUBSTITUTE(SUBSTITUTE(Z163,$ED163,$ED$2&ROW($ED163)),$EC163,$EC$2&ROW($EC163)),$EB163,$EB$2&ROW($EB163)),$EA163,$EA$2&ROW($EA163)),$DZ163,$DZ$2&ROW($DZ163)),$DY163,$DY$2&ROW($DY163)),$DX163,$DX$2&ROW($DX163)),$DW163,$DW$2&ROW($DW163)),$DV163,$DV$2&ROW($DV163)),$DU163,$DU$2&ROW($DU163)),$DT163,$DT$2&ROW($DT163)),$DS163,$DS$2&ROW($DS163)))","v":"X=AS163*AU163*-0.002"},{"$f":"IF(AA163=\"\",0,\"X=\"&SUBSTITUTE(SUBSTITUTE(SUBSTITUTE(SUBSTITUTE(SUBSTITUTE(SUBSTITUTE(SUBSTITUTE(SUBSTITUTE(SUBSTITUTE(SUBSTITUTE(SUBSTITUTE(SUBSTITUTE(AA163,$ED163,$ED$2&ROW($ED163)),$EC163,$EC$2&ROW($EC163)),$EB163,$EB$2&ROW($EB163)),$EA163,$EA$2&ROW($EA163)),$DZ163,$DZ$2&ROW($DZ163)),$DY163,$DY$2&ROW($DY163)),$DX163,$DX$2&ROW($DX163)),$DW163,$DW$2&ROW($DW163)),$DV163,$DV$2&ROW($DV163)),$DU163,$DU$2&ROW($DU163)),$DT163,$DT$2&ROW($DT163)),$DS163,$DS$2&ROW($DS163)))","v":"X=AS163*AU163*-0.01"},{"$f":"IF(AB163=\"\",0,\"X=\"&SUBSTITUTE(SUBSTITUTE(SUBSTITUTE(SUBSTITUTE(SUBSTITUTE(SUBSTITUTE(SUBSTITUTE(SUBSTITUTE(SUBSTITUTE(SUBSTITUTE(SUBSTITUTE(SUBSTITUTE(AB163,$ED163,$ED$2&ROW($ED163)),$EC163,$EC$2&ROW($EC163)),$EB163,$EB$2&ROW($EB163)),$EA163,$EA$2&ROW($EA163)),$DZ163,$DZ$2&ROW($DZ163)),$DY163,$DY$2&ROW($DY163)),$DX163,$DX$2&ROW($DX163)),$DW163,$DW$2&ROW($DW163)),$DV163,$DV$2&ROW($DV163)),$DU163,$DU$2&ROW($DU163)),$DT163,$DT$2&ROW($DT163)),$DS163,$DS$2&ROW($DS163)))","v":0},null,null,"{Factor:WinterCF}","{Factor:SummerCF}",{"$f":"IFERROR(INDEX($EG163:$IV163,MATCH(0,COUNTIF($DR163:DT163,$EG163:$IV163),0)),\"\")","v":"{Measure:Quantity}"},{"$f":"IFERROR(INDEX($EG163:$IV163,MATCH(0,COUNTIF($DR163:DU163,$EG163:$IV163),0)),\"\")","v":"{Package Size}"},{"$f":"IFERROR(INDEX($EG163:$IV163,MATCH(0,COUNTIF($DR163:DV163,$EG163:$IV163),0)),\"\")","v":"{Rebate per Package}"},{"$f":"IFERROR(INDEX($EG163:$IV163,MATCH(0,COUNTIF($DR163:DW163,$EG163:$IV163),0)),\"\")","v":""},{"$f":"IFERROR(INDEX($EG163:$IV163,MATCH(0,COUNTIF($DR163:DX163,$EG163:$IV163),0)),\"\")","v":""},{"$f":"IFERROR(INDEX($EG163:$IV163,MATCH(0,COUNTIF($DR163:DY163,$EG163:$IV163),0)),\"\")","v":""},{"$f":"IFERROR(INDEX($EG163:$IV163,MATCH(0,COUNTIF($DR163:DZ163,$EG163:$IV163),0)),\"\")","v":""},{"$f":"IFERROR(INDEX($EG163:$IV163,MATCH(0,COUNTIF($DR163:EA163,$EG163:$IV163),0)),\"\")","v":""},{"$f":"IFERROR(INDEX($EG163:$IV163,MATCH(0,COUNTIF($DR163:EB163,$EG163:$IV163),0)),\"\")","v":""},{"$f":"IFERROR(INDEX($EG163:$IV163,MATCH(0,COUNTIF($DR163:EC163,$EG163:$IV163),0)),\"\")","v":""},null,null,{"$f":"IFERROR(MID($G163,FIND(CHAR(160),SUBSTITUTE($G163,\"{\",CHAR(160),EG$1)),FIND(CHAR(160),SUBSTITUTE($G163,\"}\",CHAR(160),EG$1))-FIND(CHAR(160),SUBSTITUTE($G163,\"{\",CHAR(160),EG$1))+1),\"\")","v":"{Measure:Quantity}"},{"$f":"IFERROR(MID($G163,FIND(CHAR(160),SUBSTITUTE($G163,\"{\",CHAR(160),EH$1)),FIND(CHAR(160),SUBSTITUTE($G163,\"}\",CHAR(160),EH$1))-FIND(CHAR(160),SUBSTITUTE($G163,\"{\",CHAR(160),EH$1))+1),\"\")","v":"{Package Size}"},{"$f":"IFERROR(MID($G163,FIND(CHAR(160),SUBSTITUTE($G163,\"{\",CHAR(160),EI$1)),FIND(CHAR(160),SUBSTITUTE($G163,\"}\",CHAR(160),EI$1))-FIND(CHAR(160),SUBSTITUTE($G163,\"{\",CHAR(160),EI$1))+1),\"\")","v":""},{"$f":"IFERROR(MID($G163,FIND(CHAR(160),SUBSTITUTE($G163,\"{\",CHAR(160),EJ$1)),FIND(CHAR(160),SUBSTITUTE($G163,\"}\",CHAR(160),EJ$1))-FIND(CHAR(160),SUBSTITUTE($G163,\"{\",CHAR(160),EJ$1))+1),\"\")","v":""},{"$f":"IFERROR(MID($G163,FIND(CHAR(160),SUBSTITUTE($G163,\"{\",CHAR(160),EK$1)),FIND(CHAR(160),SUBSTITUTE($G163,\"}\",CHAR(160),EK$1))-FIND(CHAR(160),SUBSTITUTE($G163,\"{\",CHAR(160),EK$1))+1),\"\")","v":""},{"$f":"IFERROR(MID($G163,FIND(CHAR(160),SUBSTITUTE($G163,\"{\",CHAR(160),EL$1)),FIND(CHAR(160),SUBSTITUTE($G163,\"}\",CHAR(160),EL$1))-FIND(CHAR(160),SUBSTITUTE($G163,\"{\",CHAR(160),EL$1))+1),\"\")","v":""},{"$f":"IFERROR(MID($G163,FIND(CHAR(160),SUBSTITUTE($G163,\"{\",CHAR(160),EM$1)),FIND(CHAR(160),SUBSTITUTE($G163,\"}\",CHAR(160),EM$1))-FIND(CHAR(160),SUBSTITUTE($G163,\"{\",CHAR(160),EM$1))+1),\"\")","v":""},{"$f":"IFERROR(MID($G163,FIND(CHAR(160),SUBSTITUTE($G163,\"{\",CHAR(160),EN$1)),FIND(CHAR(160),SUBSTITUTE($G163,\"}\",CHAR(160),EN$1))-FIND(CHAR(160),SUBSTITUTE($G163,\"{\",CHAR(160),EN$1))+1),\"\")","v":""},{"$f":"IFERROR(MID($G163,FIND(CHAR(160),SUBSTITUTE($G163,\"{\",CHAR(160),EO$1)),FIND(CHAR(160),SUBSTITUTE($G163,\"}\",CHAR(160),EO$1))-FIND(CHAR(160),SUBSTITUTE($G163,\"{\",CHAR(160),EO$1))+1),\"\")","v":""},{"$f":"IFERROR(MID($G163,FIND(CHAR(160),SUBSTITUTE($G163,\"{\",CHAR(160),EP$1)),FIND(CHAR(160),SUBSTITUTE($G163,\"}\",CHAR(160),EP$1))-FIND(CHAR(160),SUBSTITUTE($G163,\"{\",CHAR(160),EP$1))+1),\"\")","v":""},{"$f":"IFERROR(MID($J163,FIND(CHAR(160),SUBSTITUTE($J163,\"{\",CHAR(160),EQ$1)),FIND(CHAR(160),SUBSTITUTE($J163,\"}\",CHAR(160),EQ$1))-FIND(CHAR(160),SUBSTITUTE($J163,\"{\",CHAR(160),EQ$1))+1),\"\")","v":"{Measure:Quantity}"},{"$f":"IFERROR(MID($J163,FIND(CHAR(160),SUBSTITUTE($J163,\"{\",CHAR(160),ER$1)),FIND(CHAR(160),SUBSTITUTE($J163,\"}\",CHAR(160),ER$1))-FIND(CHAR(160),SUBSTITUTE($J163,\"{\",CHAR(160),ER$1))+1),\"\")","v":"{Rebate per Package}"},{"$f":"IFERROR(MID($J163,FIND(CHAR(160),SUBSTITUTE($J163,\"{\",CHAR(160),ES$1)),FIND(CHAR(160),SUBSTITUTE($J163,\"}\",CHAR(160),ES$1))-FIND(CHAR(160),SUBSTITUTE($J163,\"{\",CHAR(160),ES$1))+1),\"\")","v":""},{"$f":"IFERROR(MID($J163,FIND(CHAR(160),SUBSTITUTE($J163,\"{\",CHAR(160),ET$1)),FIND(CHAR(160),SUBSTITUTE($J163,\"}\",CHAR(160),ET$1))-FIND(CHAR(160),SUBSTITUTE($J163,\"{\",CHAR(160),ET$1))+1),\"\")","v":""},{"$f":"IFERROR(MID($J163,FIND(CHAR(160),SUBSTITUTE($J163,\"{\",CHAR(160),EU$1)),FIND(CHAR(160),SUBSTITUTE($J163,\"}\",CHAR(160),EU$1))-FIND(CHAR(160),SUBSTITUTE($J163,\"{\",CHAR(160),EU$1))+1),\"\")","v":""},{"$f":"IFERROR(MID($J163,FIND(CHAR(160),SUBSTITUTE($J163,\"{\",CHAR(160),EV$1)),FIND(CHAR(160),SUBSTITUTE($J163,\"}\",CHAR(160),EV$1))-FIND(CHAR(160),SUBSTITUTE($J163,\"{\",CHAR(160),EV$1))+1),\"\")","v":""},{"$f":"IFERROR(MID($J163,FIND(CHAR(160),SUBSTITUTE($J163,\"{\",CHAR(160),EW$1)),FIND(CHAR(160),SUBSTITUTE($J163,\"}\",CHAR(160),EW$1))-FIND(CHAR(160),SUBSTITUTE($J163,\"{\",CHAR(160),EW$1))+1),\"\")","v":""},{"$f":"IFERROR(MID($J163,FIND(CHAR(160),SUBSTITUTE($J163,\"{\",CHAR(160),EX$1)),FIND(CHAR(160),SUBSTITUTE($J163,\"}\",CHAR(160),EX$1))-FIND(CHAR(160),SUBSTITUTE($J163,\"{\",CHAR(160),EX$1))+1),\"\")","v":""},{"$f":"IFERROR(MID($J163,FIND(CHAR(160),SUBSTITUTE($J163,\"{\",CHAR(160),EY$1)),FIND(CHAR(160),SUBSTITUTE($J163,\"}\",CHAR(160),EY$1))-FIND(CHAR(160),SUBSTITUTE($J163,\"{\",CHAR(160),EY$1))+1),\"\")","v":""},{"$f":"IFERROR(MID($J163,FIND(CHAR(160),SUBSTITUTE($J163,\"{\",CHAR(160),EZ$1)),FIND(CHAR(160),SUBSTITUTE($J163,\"}\",CHAR(160),EZ$1))-FIND(CHAR(160),SUBSTITUTE($J163,\"{\",CHAR(160),EZ$1))+1),\"\")","v":""},{"$f":"IFERROR(MID($J163,FIND(CHAR(160),SUBSTITUTE($J163,\"{\",CHAR(160),FA$1)),FIND(CHAR(160),SUBSTITUTE($J163,\"}\",CHAR(160),FA$1))-FIND(CHAR(160),SUBSTITUTE($J163,\"{\",CHAR(160),FA$1))+1),\"\")","v":"{Measure:Quantity}"},{"$f":"IFERROR(MID($J163,FIND(CHAR(160),SUBSTITUTE($J163,\"{\",CHAR(160),FB$1)),FIND(CHAR(160),SUBSTITUTE($J163,\"}\",CHAR(160),FB$1))-FIND(CHAR(160),SUBSTITUTE($J163,\"{\",CHAR(160),FB$1))+1),\"\")","v":"{Rebate per Package}"},{"$f":"IFERROR(MID($O163,FIND(CHAR(160),SUBSTITUTE($O163,\"{\",CHAR(160),FC$1)),FIND(CHAR(160),SUBSTITUTE($O163,\"}\",CHAR(160),FC$1))-FIND(CHAR(160),SUBSTITUTE($O163,\"{\",CHAR(160),FC$1))+1),\"\")","v":""},{"$f":"IFERROR(MID($O163,FIND(CHAR(160),SUBSTITUTE($O163,\"{\",CHAR(160),FD$1)),FIND(CHAR(160),SUBSTITUTE($O163,\"}\",CHAR(160),FD$1))-FIND(CHAR(160),SUBSTITUTE($O163,\"{\",CHAR(160),FD$1))+1),\"\")","v":""},{"$f":"IFERROR(MID($O163,FIND(CHAR(160),SUBSTITUTE($O163,\"{\",CHAR(160),FE$1)),FIND(CHAR(160),SUBSTITUTE($O163,\"}\",CHAR(160),FE$1))-FIND(CHAR(160),SUBSTITUTE($O163,\"{\",CHAR(160),FE$1))+1),\"\")","v":""},{"$f":"IFERROR(MID($O163,FIND(CHAR(160),SUBSTITUTE($O163,\"{\",CHAR(160),FF$1)),FIND(CHAR(160),SUBSTITUTE($O163,\"}\",CHAR(160),FF$1))-FIND(CHAR(160),SUBSTITUTE($O163,\"{\",CHAR(160),FF$1))+1),\"\")","v":""},{"$f":"IFERROR(MID($O163,FIND(CHAR(160),SUBSTITUTE($O163,\"{\",CHAR(160),FG$1)),FIND(CHAR(160),SUBSTITUTE($O163,\"}\",CHAR(160),FG$1))-FIND(CHAR(160),SUBSTITUTE($O163,\"{\",CHAR(160),FG$1))+1),\"\")","v":""},{"$f":"IFERROR(MID($O163,FIND(CHAR(160),SUBSTITUTE($O163,\"{\",CHAR(160),FH$1)),FIND(CHAR(160),SUBSTITUTE($O163,\"}\",CHAR(160),FH$1))-FIND(CHAR(160),SUBSTITUTE($O163,\"{\",CHAR(160),FH$1))+1),\"\")","v":""},{"$f":"IFERROR(MID($O163,FIND(CHAR(160),SUBSTITUTE($O163,\"{\",CHAR(160),FI$1)),FIND(CHAR(160),SUBSTITUTE($O163,\"}\",CHAR(160),FI$1))-FIND(CHAR(160),SUBSTITUTE($O163,\"{\",CHAR(160),FI$1))+1),\"\")","v":""},{"$f":"IFERROR(MID($O163,FIND(CHAR(160),SUBSTITUTE($O163,\"{\",CHAR(160),FJ$1)),FIND(CHAR(160),SUBSTITUTE($O163,\"}\",CHAR(160),FJ$1))-FIND(CHAR(160),SUBSTITUTE($O163,\"{\",CHAR(160),FJ$1))+1),\"\")","v":""},{"$f":"IFERROR(MID($O163,FIND(CHAR(160),SUBSTITUTE($O163,\"{\",CHAR(160),FK$1)),FIND(CHAR(160),SUBSTITUTE($O163,\"}\",CHAR(160),FK$1))-FIND(CHAR(160),SUBSTITUTE($O163,\"{\",CHAR(160),FK$1))+1),\"\")","v":"{Measure:Quantity}"},{"$f":"IFERROR(MID($O163,FIND(CHAR(160),SUBSTITUTE($O163,\"{\",CHAR(160),FL$1)),FIND(CHAR(160),SUBSTITUTE($O163,\"}\",CHAR(160),FL$1))-FIND(CHAR(160),SUBSTITUTE($O163,\"{\",CHAR(160),FL$1))+1),\"\")","v":"{Package Size}"},{"$f":"IFERROR(MID($R163,FIND(CHAR(160),SUBSTITUTE($R163,\"{\",CHAR(160),FM$1)),FIND(CHAR(160),SUBSTITUTE($R163,\"}\",CHAR(160),FM$1))-FIND(CHAR(160),SUBSTITUTE($R163,\"{\",CHAR(160),FM$1))+1),\"\")","v":""},{"$f":"IFERROR(MID($R163,FIND(CHAR(160),SUBSTITUTE($R163,\"{\",CHAR(160),FN$1)),FIND(CHAR(160),SUBSTITUTE($R163,\"}\",CHAR(160),FN$1))-FIND(CHAR(160),SUBSTITUTE($R163,\"{\",CHAR(160),FN$1))+1),\"\")","v":""},{"$f":"IFERROR(MID($R163,FIND(CHAR(160),SUBSTITUTE($R163,\"{\",CHAR(160),FO$1)),FIND(CHAR(160),SUBSTITUTE($R163,\"}\",CHAR(160),FO$1))-FIND(CHAR(160),SUBSTITUTE($R163,\"{\",CHAR(160),FO$1))+1),\"\")","v":""},{"$f":"IFERROR(MID($R163,FIND(CHAR(160),SUBSTITUTE($R163,\"{\",CHAR(160),FP$1)),FIND(CHAR(160),SUBSTITUTE($R163,\"}\",CHAR(160),FP$1))-FIND(CHAR(160),SUBSTITUTE($R163,\"{\",CHAR(160),FP$1))+1),\"\")","v":""},{"$f":"IFERROR(MID($R163,FIND(CHAR(160),SUBSTITUTE($R163,\"{\",CHAR(160),FQ$1)),FIND(CHAR(160),SUBSTITUTE($R163,\"}\",CHAR(160),FQ$1))-FIND(CHAR(160),SUBSTITUTE($R163,\"{\",CHAR(160),FQ$1))+1),\"\")","v":""},{"$f":"IFERROR(MID($R163,FIND(CHAR(160),SUBSTITUTE($R163,\"{\",CHAR(160),FR$1)),FIND(CHAR(160),SUBSTITUTE($R163,\"}\",CHAR(160),FR$1))-FIND(CHAR(160),SUBSTITUTE($R163,\"{\",CHAR(160),FR$1))+1),\"\")","v":""},{"$f":"IFERROR(MID($R163,FIND(CHAR(160),SUBSTITUTE($R163,\"{\",CHAR(160),FS$1)),FIND(CHAR(160),SUBSTITUTE($R163,\"}\",CHAR(160),FS$1))-FIND(CHAR(160),SUBSTITUTE($R163,\"{\",CHAR(160),FS$1))+1),\"\")","v":""},{"$f":"IFERROR(MID($R163,FIND(CHAR(160),SUBSTITUTE($R163,\"{\",CHAR(160),FT$1)),FIND(CHAR(160),SUBSTITUTE($R163,\"}\",CHAR(160),FT$1))-FIND(CHAR(160),SUBSTITUTE($R163,\"{\",CHAR(160),FT$1))+1),\"\")","v":""},{"$f":"IFERROR(MID($R163,FIND(CHAR(160),SUBSTITUTE($R163,\"{\",CHAR(160),FU$1)),FIND(CHAR(160),SUBSTITUTE($R163,\"}\",CHAR(160),FU$1))-FIND(CHAR(160),SUBSTITUTE($R163,\"{\",CHAR(160),FU$1))+1),\"\")","v":"{Measure:Quantity}"},{"$f":"IFERROR(MID($R163,FIND(CHAR(160),SUBSTITUTE($R163,\"{\",CHAR(160),FV$1)),FIND(CHAR(160),SUBSTITUTE($R163,\"}\",CHAR(160),FV$1))-FIND(CHAR(160),SUBSTITUTE($R163,\"{\",CHAR(160),FV$1))+1),\"\")","v":"{Package Size}"},{"$f":"IFERROR(MID($U163,FIND(CHAR(160),SUBSTITUTE($U163,\"{\",CHAR(160),FW$1)),FIND(CHAR(160),SUBSTITUTE($U163,\"}\",CHAR(160),FW$1))-FIND(CHAR(160),SUBSTITUTE($U163,\"{\",CHAR(160),FW$1))+1),\"\")","v":"{Factor:WinterCF}"},{"$f":"IFERROR(MID($U163,FIND(CHAR(160),SUBSTITUTE($U163,\"{\",CHAR(160),FX$1)),FIND(CHAR(160),SUBSTITUTE($U163,\"}\",CHAR(160),FX$1))-FIND(CHAR(160),SUBSTITUTE($U163,\"{\",CHAR(160),FX$1))+1),\"\")","v":""},{"$f":"IFERROR(MID($U163,FIND(CHAR(160),SUBSTITUTE($U163,\"{\",CHAR(160),FY$1)),FIND(CHAR(160),SUBSTITUTE($U163,\"}\",CHAR(160),FY$1))-FIND(CHAR(160),SUBSTITUTE($U163,\"{\",CHAR(160),FY$1))+1),\"\")","v":""},{"$f":"IFERROR(MID($U163,FIND(CHAR(160),SUBSTITUTE($U163,\"{\",CHAR(160),FZ$1)),FIND(CHAR(160),SUBSTITUTE($U163,\"}\",CHAR(160),FZ$1))-FIND(CHAR(160),SUBSTITUTE($U163,\"{\",CHAR(160),FZ$1))+1),\"\")","v":""},{"$f":"IFERROR(MID($U163,FIND(CHAR(160),SUBSTITUTE($U163,\"{\",CHAR(160),GA$1)),FIND(CHAR(160),SUBSTITUTE($U163,\"}\",CHAR(160),GA$1))-FIND(CHAR(160),SUBSTITUTE($U163,\"{\",CHAR(160),GA$1))+1),\"\")","v":""},{"$f":"IFERROR(MID($U163,FIND(CHAR(160),SUBSTITUTE($U163,\"{\",CHAR(160),GB$1)),FIND(CHAR(160),SUBSTITUTE($U163,\"}\",CHAR(160),GB$1))-FIND(CHAR(160),SUBSTITUTE($U163,\"{\",CHAR(160),GB$1))+1),\"\")","v":""},{"$f":"IFERROR(MID($U163,FIND(CHAR(160),SUBSTITUTE($U163,\"{\",CHAR(160),GC$1)),FIND(CHAR(160),SUBSTITUTE($U163,\"}\",CHAR(160),GC$1))-FIND(CHAR(160),SUBSTITUTE($U163,\"{\",CHAR(160),GC$1))+1),\"\")","v":""},{"$f":"IFERROR(MID($U163,FIND(CHAR(160),SUBSTITUTE($U163,\"{\",CHAR(160),GD$1)),FIND(CHAR(160),SUBSTITUTE($U163,\"}\",CHAR(160),GD$1))-FIND(CHAR(160),SUBSTITUTE($U163,\"{\",CHAR(160),GD$1))+1),\"\")","v":""},{"$f":"IFERROR(MID($U163,FIND(CHAR(160),SUBSTITUTE($U163,\"{\",CHAR(160),GE$1)),FIND(CHAR(160),SUBSTITUTE($U163,\"}\",CHAR(160),GE$1))-FIND(CHAR(160),SUBSTITUTE($U163,\"{\",CHAR(160),GE$1))+1),\"\")","v":"{Measure:Quantity}"},{"$f":"IFERROR(MID($U163,FIND(CHAR(160),SUBSTITUTE($U163,\"{\",CHAR(160),GF$1)),FIND(CHAR(160),SUBSTITUTE($U163,\"}\",CHAR(160),GF$1))-FIND(CHAR(160),SUBSTITUTE($U163,\"{\",CHAR(160),GF$1))+1),\"\")","v":"{Package Size}"},{"$f":"IFERROR(MID($V163,FIND(CHAR(160),SUBSTITUTE($V163,\"{\",CHAR(160),GG$1)),FIND(CHAR(160),SUBSTITUTE($V163,\"}\",CHAR(160),GG$1))-FIND(CHAR(160),SUBSTITUTE($V163,\"{\",CHAR(160),GG$1))+1),\"\")","v":"{Factor:SummerCF}"},{"$f":"IFERROR(MID($V163,FIND(CHAR(160),SUBSTITUTE($V163,\"{\",CHAR(160),GH$1)),FIND(CHAR(160),SUBSTITUTE($V163,\"}\",CHAR(160),GH$1))-FIND(CHAR(160),SUBSTITUTE($V163,\"{\",CHAR(160),GH$1))+1),\"\")","v":""},{"$f":"IFERROR(MID($V163,FIND(CHAR(160),SUBSTITUTE($V163,\"{\",CHAR(160),GI$1)),FIND(CHAR(160),SUBSTITUTE($V163,\"}\",CHAR(160),GI$1))-FIND(CHAR(160),SUBSTITUTE($V163,\"{\",CHAR(160),GI$1))+1),\"\")","v":""},{"$f":"IFERROR(MID($V163,FIND(CHAR(160),SUBSTITUTE($V163,\"{\",CHAR(160),GJ$1)),FIND(CHAR(160),SUBSTITUTE($V163,\"}\",CHAR(160),GJ$1))-FIND(CHAR(160),SUBSTITUTE($V163,\"{\",CHAR(160),GJ$1))+1),\"\")","v":""},{"$f":"IFERROR(MID($V163,FIND(CHAR(160),SUBSTITUTE($V163,\"{\",CHAR(160),GK$1)),FIND(CHAR(160),SUBSTITUTE($V163,\"}\",CHAR(160),GK$1))-FIND(CHAR(160),SUBSTITUTE($V163,\"{\",CHAR(160),GK$1))+1),\"\")","v":""},{"$f":"IFERROR(MID($V163,FIND(CHAR(160),SUBSTITUTE($V163,\"{\",CHAR(160),GL$1)),FIND(CHAR(160),SUBSTITUTE($V163,\"}\",CHAR(160),GL$1))-FIND(CHAR(160),SUBSTITUTE($V163,\"{\",CHAR(160),GL$1))+1),\"\")","v":""},{"$f":"IFERROR(MID($V163,FIND(CHAR(160),SUBSTITUTE($V163,\"{\",CHAR(160),GM$1)),FIND(CHAR(160),SUBSTITUTE($V163,\"}\",CHAR(160),GM$1))-FIND(CHAR(160),SUBSTITUTE($V163,\"{\",CHAR(160),GM$1))+1),\"\")","v":""},{"$f":"IFERROR(MID($V163,FIND(CHAR(160),SUBSTITUTE($V163,\"{\",CHAR(160),GN$1)),FIND(CHAR(160),SUBSTITUTE($V163,\"}\",CHAR(160),GN$1))-FIND(CHAR(160),SUBSTITUTE($V163,\"{\",CHAR(160),GN$1))+1),\"\")","v":""},{"$f":"IFERROR(MID($V163,FIND(CHAR(160),SUBSTITUTE($V163,\"{\",CHAR(160),GO$1)),FIND(CHAR(160),SUBSTITUTE($V163,\"}\",CHAR(160),GO$1))-FIND(CHAR(160),SUBSTITUTE($V163,\"{\",CHAR(160),GO$1))+1),\"\")","v":"{Measure:Quantity}"},{"$f":"IFERROR(MID($V163,FIND(CHAR(160),SUBSTITUTE($V163,\"{\",CHAR(160),GP$1)),FIND(CHAR(160),SUBSTITUTE($V163,\"}\",CHAR(160),GP$1))-FIND(CHAR(160),SUBSTITUTE($V163,\"{\",CHAR(160),GP$1))+1),\"\")","v":"{Package Size}"},{"$f":"IFERROR(MID($W163,FIND(CHAR(160),SUBSTITUTE($W163,\"{\",CHAR(160),GQ$1)),FIND(CHAR(160),SUBSTITUTE($W163,\"}\",CHAR(160),GQ$1))-FIND(CHAR(160),SUBSTITUTE($W163,\"{\",CHAR(160),GQ$1))+1),\"\")","v":""},{"$f":"IFERROR(MID($W163,FIND(CHAR(160),SUBSTITUTE($W163,\"{\",CHAR(160),GR$1)),FIND(CHAR(160),SUBSTITUTE($W163,\"}\",CHAR(160),GR$1))-FIND(CHAR(160),SUBSTITUTE($W163,\"{\",CHAR(160),GR$1))+1),\"\")","v":""},{"$f":"IFERROR(MID($W163,FIND(CHAR(160),SUBSTITUTE($W163,\"{\",CHAR(160),GS$1)),FIND(CHAR(160),SUBSTITUTE($W163,\"}\",CHAR(160),GS$1))-FIND(CHAR(160),SUBSTITUTE($W163,\"{\",CHAR(160),GS$1))+1),\"\")","v":""},{"$f":"IFERROR(MID($W163,FIND(CHAR(160),SUBSTITUTE($W163,\"{\",CHAR(160),GT$1)),FIND(CHAR(160),SUBSTITUTE($W163,\"}\",CHAR(160),GT$1))-FIND(CHAR(160),SUBSTITUTE($W163,\"{\",CHAR(160),GT$1))+1),\"\")","v":""},{"$f":"IFERROR(MID($W163,FIND(CHAR(160),SUBSTITUTE($W163,\"{\",CHAR(160),GU$1)),FIND(CHAR(160),SUBSTITUTE($W163,\"}\",CHAR(160),GU$1))-FIND(CHAR(160),SUBSTITUTE($W163,\"{\",CHAR(160),GU$1))+1),\"\")","v":""},{"$f":"IFERROR(MID($W163,FIND(CHAR(160),SUBSTITUTE($W163,\"{\",CHAR(160),GV$1)),FIND(CHAR(160),SUBSTITUTE($W163,\"}\",CHAR(160),GV$1))-FIND(CHAR(160),SUBSTITUTE($W163,\"{\",CHAR(160),GV$1))+1),\"\")","v":""},{"$f":"IFERROR(MID($W163,FIND(CHAR(160),SUBSTITUTE($W163,\"{\",CHAR(160),GW$1)),FIND(CHAR(160),SUBSTITUTE($W163,\"}\",CHAR(160),GW$1))-FIND(CHAR(160),SUBSTITUTE($W163,\"{\",CHAR(160),GW$1))+1),\"\")","v":""},{"$f":"IFERROR(MID($W163,FIND(CHAR(160),SUBSTITUTE($W163,\"{\",CHAR(160),GX$1)),FIND(CHAR(160),SUBSTITUTE($W163,\"}\",CHAR(160),GX$1))-FIND(CHAR(160),SUBSTITUTE($W163,\"{\",CHAR(160),GX$1))+1),\"\")","v":""},{"$f":"IFERROR(MID($W163,FIND(CHAR(160),SUBSTITUTE($W163,\"{\",CHAR(160),GY$1)),FIND(CHAR(160),SUBSTITUTE($W163,\"}\",CHAR(160),GY$1))-FIND(CHAR(160),SUBSTITUTE($W163,\"{\",CHAR(160),GY$1))+1),\"\")","v":"{Measure:Quantity}"},{"$f":"IFERROR(MID($W163,FIND(CHAR(160),SUBSTITUTE($W163,\"{\",CHAR(160),GZ$1)),FIND(CHAR(160),SUBSTITUTE($W163,\"}\",CHAR(160),GZ$1))-FIND(CHAR(160),SUBSTITUTE($W163,\"{\",CHAR(160),GZ$1))+1),\"\")","v":"{Package Size}"},{"$f":"IFERROR(MID($X163,FIND(CHAR(160),SUBSTITUTE($X163,\"{\",CHAR(160),HA$1)),FIND(CHAR(160),SUBSTITUTE($X163,\"}\",CHAR(160),HA$1))-FIND(CHAR(160),SUBSTITUTE($X163,\"{\",CHAR(160),HA$1))+1),\"\")","v":""},{"$f":"IFERROR(MID($X163,FIND(CHAR(160),SUBSTITUTE($X163,\"{\",CHAR(160),HB$1)),FIND(CHAR(160),SUBSTITUTE($X163,\"}\",CHAR(160),HB$1))-FIND(CHAR(160),SUBSTITUTE($X163,\"{\",CHAR(160),HB$1))+1),\"\")","v":""},{"$f":"IFERROR(MID($X163,FIND(CHAR(160),SUBSTITUTE($X163,\"{\",CHAR(160),HC$1)),FIND(CHAR(160),SUBSTITUTE($X163,\"}\",CHAR(160),HC$1))-FIND(CHAR(160),SUBSTITUTE($X163,\"{\",CHAR(160),HC$1))+1),\"\")","v":""},{"$f":"IFERROR(MID($X163,FIND(CHAR(160),SUBSTITUTE($X163,\"{\",CHAR(160),HD$1)),FIND(CHAR(160),SUBSTITUTE($X163,\"}\",CHAR(160),HD$1))-FIND(CHAR(160),SUBSTITUTE($X163,\"{\",CHAR(160),HD$1))+1),\"\")","v":""},{"$f":"IFERROR(MID($X163,FIND(CHAR(160),SUBSTITUTE($X163,\"{\",CHAR(160),HE$1)),FIND(CHAR(160),SUBSTITUTE($X163,\"}\",CHAR(160),HE$1))-FIND(CHAR(160),SUBSTITUTE($X163,\"{\",CHAR(160),HE$1))+1),\"\")","v":""},{"$f":"IFERROR(MID($X163,FIND(CHAR(160),SUBSTITUTE($X163,\"{\",CHAR(160),HF$1)),FIND(CHAR(160),SUBSTITUTE($X163,\"}\",CHAR(160),HF$1))-FIND(CHAR(160),SUBSTITUTE($X163,\"{\",CHAR(160),HF$1))+1),\"\")","v":""},{"$f":"IFERROR(MID($X163,FIND(CHAR(160),SUBSTITUTE($X163,\"{\",CHAR(160),HG$1)),FIND(CHAR(160),SUBSTITUTE($X163,\"}\",CHAR(160),HG$1))-FIND(CHAR(160),SUBSTITUTE($X163,\"{\",CHAR(160),HG$1))+1),\"\")","v":""},{"$f":"IFERROR(MID($X163,FIND(CHAR(160),SUBSTITUTE($X163,\"{\",CHAR(160),HH$1)),FIND(CHAR(160),SUBSTITUTE($X163,\"}\",CHAR(160),HH$1))-FIND(CHAR(160),SUBSTITUTE($X163,\"{\",CHAR(160),HH$1))+1),\"\")","v":""},{"$f":"IFERROR(MID($X163,FIND(CHAR(160),SUBSTITUTE($X163,\"{\",CHAR(160),HI$1)),FIND(CHAR(160),SUBSTITUTE($X163,\"}\",CHAR(160),HI$1))-FIND(CHAR(160),SUBSTITUTE($X163,\"{\",CHAR(160),HI$1))+1),\"\")","v":"{Measure:Quantity}"},{"$f":"IFERROR(MID($X163,FIND(CHAR(160),SUBSTITUTE($X163,\"{\",CHAR(160),HJ$1)),FIND(CHAR(160),SUBSTITUTE($X163,\"}\",CHAR(160),HJ$1))-FIND(CHAR(160),SUBSTITUTE($X163,\"{\",CHAR(160),HJ$1))+1),\"\")","v":"{Package Size}"},{"$f":"IFERROR(MID($Y163,FIND(CHAR(160),SUBSTITUTE($Y163,\"{\",CHAR(160),HK$1)),FIND(CHAR(160),SUBSTITUTE($Y163,\"}\",CHAR(160),HK$1))-FIND(CHAR(160),SUBSTITUTE($Y163,\"{\",CHAR(160),HK$1))+1),\"\")","v":""},{"$f":"IFERROR(MID($Y163,FIND(CHAR(160),SUBSTITUTE($Y163,\"{\",CHAR(160),HL$1)),FIND(CHAR(160),SUBSTITUTE($Y163,\"}\",CHAR(160),HL$1))-FIND(CHAR(160),SUBSTITUTE($Y163,\"{\",CHAR(160),HL$1))+1),\"\")","v":""},{"$f":"IFERROR(MID($Y163,FIND(CHAR(160),SUBSTITUTE($Y163,\"{\",CHAR(160),HM$1)),FIND(CHAR(160),SUBSTITUTE($Y163,\"}\",CHAR(160),HM$1))-FIND(CHAR(160),SUBSTITUTE($Y163,\"{\",CHAR(160),HM$1))+1),\"\")","v":""},{"$f":"IFERROR(MID($Y163,FIND(CHAR(160),SUBSTITUTE($Y163,\"{\",CHAR(160),HN$1)),FIND(CHAR(160),SUBSTITUTE($Y163,\"}\",CHAR(160),HN$1))-FIND(CHAR(160),SUBSTITUTE($Y163,\"{\",CHAR(160),HN$1))+1),\"\")","v":""},{"$f":"IFERROR(MID($Y163,FIND(CHAR(160),SUBSTITUTE($Y163,\"{\",CHAR(160),HO$1)),FIND(CHAR(160),SUBSTITUTE($Y163,\"}\",CHAR(160),HO$1))-FIND(CHAR(160),SUBSTITUTE($Y163,\"{\",CHAR(160),HO$1))+1),\"\")","v":""},{"$f":"IFERROR(MID($Y163,FIND(CHAR(160),SUBSTITUTE($Y163,\"{\",CHAR(160),HP$1)),FIND(CHAR(160),SUBSTITUTE($Y163,\"}\",CHAR(160),HP$1))-FIND(CHAR(160),SUBSTITUTE($Y163,\"{\",CHAR(160),HP$1))+1),\"\")","v":""},{"$f":"IFERROR(MID($Y163,FIND(CHAR(160),SUBSTITUTE($Y163,\"{\",CHAR(160),HQ$1)),FIND(CHAR(160),SUBSTITUTE($Y163,\"}\",CHAR(160),HQ$1))-FIND(CHAR(160),SUBSTITUTE($Y163,\"{\",CHAR(160),HQ$1))+1),\"\")","v":""},{"$f":"IFERROR(MID($Y163,FIND(CHAR(160),SUBSTITUTE($Y163,\"{\",CHAR(160),HR$1)),FIND(CHAR(160),SUBSTITUTE($Y163,\"}\",CHAR(160),HR$1))-FIND(CHAR(160),SUBSTITUTE($Y163,\"{\",CHAR(160),HR$1))+1),\"\")","v":""},{"$f":"IFERROR(MID($Y163,FIND(CHAR(160),SUBSTITUTE($Y163,\"{\",CHAR(160),HS$1)),FIND(CHAR(160),SUBSTITUTE($Y163,\"}\",CHAR(160),HS$1))-FIND(CHAR(160),SUBSTITUTE($Y163,\"{\",CHAR(160),HS$1))+1),\"\")","v":"{Measure:Quantity}"},{"$f":"IFERROR(MID($Y163,FIND(CHAR(160),SUBSTITUTE($Y163,\"{\",CHAR(160),HT$1)),FIND(CHAR(160),SUBSTITUTE($Y163,\"}\",CHAR(160),HT$1))-FIND(CHAR(160),SUBSTITUTE($Y163,\"{\",CHAR(160),HT$1))+1),\"\")","v":"{Package Size}"},{"$f":"IFERROR(MID($Z163,FIND(CHAR(160),SUBSTITUTE($Z163,\"{\",CHAR(160),HU$1)),FIND(CHAR(160),SUBSTITUTE($Z163,\"}\",CHAR(160),HU$1))-FIND(CHAR(160),SUBSTITUTE($Z163,\"{\",CHAR(160),HU$1))+1),\"\")","v":""},{"$f":"IFERROR(MID($Z163,FIND(CHAR(160),SUBSTITUTE($Z163,\"{\",CHAR(160),HV$1)),FIND(CHAR(160),SUBSTITUTE($Z163,\"}\",CHAR(160),HV$1))-FIND(CHAR(160),SUBSTITUTE($Z163,\"{\",CHAR(160),HV$1))+1),\"\")","v":""},{"$f":"IFERROR(MID($Z163,FIND(CHAR(160),SUBSTITUTE($Z163,\"{\",CHAR(160),HW$1)),FIND(CHAR(160),SUBSTITUTE($Z163,\"}\",CHAR(160),HW$1))-FIND(CHAR(160),SUBSTITUTE($Z163,\"{\",CHAR(160),HW$1))+1),\"\")","v":""},{"$f":"IFERROR(MID($Z163,FIND(CHAR(160),SUBSTITUTE($Z163,\"{\",CHAR(160),HX$1)),FIND(CHAR(160),SUBSTITUTE($Z163,\"}\",CHAR(160),HX$1))-FIND(CHAR(160),SUBSTITUTE($Z163,\"{\",CHAR(160),HX$1))+1),\"\")","v":""},{"$f":"IFERROR(MID($Z163,FIND(CHAR(160),SUBSTITUTE($Z163,\"{\",CHAR(160),HY$1)),FIND(CHAR(160),SUBSTITUTE($Z163,\"}\",CHAR(160),HY$1))-FIND(CHAR(160),SUBSTITUTE($Z163,\"{\",CHAR(160),HY$1))+1),\"\")","v":""},{"$f":"IFERROR(MID($Z163,FIND(CHAR(160),SUBSTITUTE($Z163,\"{\",CHAR(160),HZ$1)),FIND(CHAR(160),SUBSTITUTE($Z163,\"}\",CHAR(160),HZ$1))-FIND(CHAR(160),SUBSTITUTE($Z163,\"{\",CHAR(160),HZ$1))+1),\"\")","v":""},{"$f":"IFERROR(MID($Z163,FIND(CHAR(160),SUBSTITUTE($Z163,\"{\",CHAR(160),IA$1)),FIND(CHAR(160),SUBSTITUTE($Z163,\"}\",CHAR(160),IA$1))-FIND(CHAR(160),SUBSTITUTE($Z163,\"{\",CHAR(160),IA$1))+1),\"\")","v":""},{"$f":"IFERROR(MID($Z163,FIND(CHAR(160),SUBSTITUTE($Z163,\"{\",CHAR(160),IB$1)),FIND(CHAR(160),SUBSTITUTE($Z163,\"}\",CHAR(160),IB$1))-FIND(CHAR(160),SUBSTITUTE($Z163,\"{\",CHAR(160),IB$1))+1),\"\")","v":""},{"$f":"IFERROR(MID($Z163,FIND(CHAR(160),SUBSTITUTE($Z163,\"{\",CHAR(160),IC$1)),FIND(CHAR(160),SUBSTITUTE($Z163,\"}\",CHAR(160),IC$1))-FIND(CHAR(160),SUBSTITUTE($Z163,\"{\",CHAR(160),IC$1))+1),\"\")","v":"{Measure:Quantity}"},{"$f":"IFERROR(MID($Z163,FIND(CHAR(160),SUBSTITUTE($Z163,\"{\",CHAR(160),ID$1)),FIND(CHAR(160),SUBSTITUTE($Z163,\"}\",CHAR(160),ID$1))-FIND(CHAR(160),SUBSTITUTE($Z163,\"{\",CHAR(160),ID$1))+1),\"\")","v":"{Package Size}"},{"$f":"IFERROR(MID($AA163,FIND(CHAR(160),SUBSTITUTE($AA163,\"{\",CHAR(160),IE$1)),FIND(CHAR(160),SUBSTITUTE($AA163,\"}\",CHAR(160),IE$1))-FIND(CHAR(160),SUBSTITUTE($AA163,\"{\",CHAR(160),IE$1))+1),\"\")","v":""},{"$f":"IFERROR(MID($AA163,FIND(CHAR(160),SUBSTITUTE($AA163,\"{\",CHAR(160),IF$1)),FIND(CHAR(160),SUBSTITUTE($AA163,\"}\",CHAR(160),IF$1))-FIND(CHAR(160),SUBSTITUTE($AA163,\"{\",CHAR(160),IF$1))+1),\"\")","v":""},{"$f":"IFERROR(MID($AA163,FIND(CHAR(160),SUBSTITUTE($AA163,\"{\",CHAR(160),IG$1)),FIND(CHAR(160),SUBSTITUTE($AA163,\"}\",CHAR(160),IG$1))-FIND(CHAR(160),SUBSTITUTE($AA163,\"{\",CHAR(160),IG$1))+1),\"\")","v":""},{"$f":"IFERROR(MID($AA163,FIND(CHAR(160),SUBSTITUTE($AA163,\"{\",CHAR(160),IH$1)),FIND(CHAR(160),SUBSTITUTE($AA163,\"}\",CHAR(160),IH$1))-FIND(CHAR(160),SUBSTITUTE($AA163,\"{\",CHAR(160),IH$1))+1),\"\")","v":""},{"$f":"IFERROR(MID($AA163,FIND(CHAR(160),SUBSTITUTE($AA163,\"{\",CHAR(160),II$1)),FIND(CHAR(160),SUBSTITUTE($AA163,\"}\",CHAR(160),II$1))-FIND(CHAR(160),SUBSTITUTE($AA163,\"{\",CHAR(160),II$1))+1),\"\")","v":""},{"$f":"IFERROR(MID($AA163,FIND(CHAR(160),SUBSTITUTE($AA163,\"{\",CHAR(160),IJ$1)),FIND(CHAR(160),SUBSTITUTE($AA163,\"}\",CHAR(160),IJ$1))-FIND(CHAR(160),SUBSTITUTE($AA163,\"{\",CHAR(160),IJ$1))+1),\"\")","v":""},{"$f":"IFERROR(MID($AA163,FIND(CHAR(160),SUBSTITUTE($AA163,\"{\",CHAR(160),IK$1)),FIND(CHAR(160),SUBSTITUTE($AA163,\"}\",CHAR(160),IK$1))-FIND(CHAR(160),SUBSTITUTE($AA163,\"{\",CHAR(160),IK$1))+1),\"\")","v":""},{"$f":"IFERROR(MID($AA163,FIND(CHAR(160),SUBSTITUTE($AA163,\"{\",CHAR(160),IL$1)),FIND(CHAR(160),SUBSTITUTE($AA163,\"}\",CHAR(160),IL$1))-FIND(CHAR(160),SUBSTITUTE($AA163,\"{\",CHAR(160),IL$1))+1),\"\")","v":""},{"$f":"IFERROR(MID($AA163,FIND(CHAR(160),SUBSTITUTE($AA163,\"{\",CHAR(160),IM$1)),FIND(CHAR(160),SUBSTITUTE($AA163,\"}\",CHAR(160),IM$1))-FIND(CHAR(160),SUBSTITUTE($AA163,\"{\",CHAR(160),IM$1))+1),\"\")","v":"{Measure:Quantity}"},{"$f":"IFERROR(MID($AA163,FIND(CHAR(160),SUBSTITUTE($AA163,\"{\",CHAR(160),IN$1)),FIND(CHAR(160),SUBSTITUTE($AA163,\"}\",CHAR(160),IN$1))-FIND(CHAR(160),SUBSTITUTE($AA163,\"{\",CHAR(160),IN$1))+1),\"\")","v":"{Package Size}"},{"$f":"IFERROR(MID($AB163,FIND(CHAR(160),SUBSTITUTE($AB163,\"{\",CHAR(160),IO$1)),FIND(CHAR(160),SUBSTITUTE($AB163,\"}\",CHAR(160),IO$1))-FIND(CHAR(160),SUBSTITUTE($AB163,\"{\",CHAR(160),IO$1))+1),\"\")","v":""},{"$f":"IFERROR(MID($AB163,FIND(CHAR(160),SUBSTITUTE($AB163,\"{\",CHAR(160),IP$1)),FIND(CHAR(160),SUBSTITUTE($AB163,\"}\",CHAR(160),IP$1))-FIND(CHAR(160),SUBSTITUTE($AB163,\"{\",CHAR(160),IP$1))+1),\"\")","v":""},{"$f":"IFERROR(MID($AB163,FIND(CHAR(160),SUBSTITUTE($AB163,\"{\",CHAR(160),IQ$1)),FIND(CHAR(160),SUBSTITUTE($AB163,\"}\",CHAR(160),IQ$1))-FIND(CHAR(160),SUBSTITUTE($AB163,\"{\",CHAR(160),IQ$1))+1),\"\")","v":""},{"$f":"IFERROR(MID($AB163,FIND(CHAR(160),SUBSTITUTE($AB163,\"{\",CHAR(160),IR$1)),FIND(CHAR(160),SUBSTITUTE($AB163,\"}\",CHAR(160),IR$1))-FIND(CHAR(160),SUBSTITUTE($AB163,\"{\",CHAR(160),IR$1))+1),\"\")","v":""},{"$f":"IFERROR(MID($AB163,FIND(CHAR(160),SUBSTITUTE($AB163,\"{\",CHAR(160),IS$1)),FIND(CHAR(160),SUBSTITUTE($AB163,\"}\",CHAR(160),IS$1))-FIND(CHAR(160),SUBSTITUTE($AB163,\"{\",CHAR(160),IS$1))+1),\"\")","v":""},{"$f":"IFERROR(MID($AB163,FIND(CHAR(160),SUBSTITUTE($AB163,\"{\",CHAR(160),IT$1)),FIND(CHAR(160),SUBSTITUTE($AB163,\"}\",CHAR(160),IT$1))-FIND(CHAR(160),SUBSTITUTE($AB163,\"{\",CHAR(160),IT$1))+1),\"\")","v":""},{"$f":"IFERROR(MID($AB163,FIND(CHAR(160),SUBSTITUTE($AB163,\"{\",CHAR(160),IU$1)),FIND(CHAR(160),SUBSTITUTE($AB163,\"}\",CHAR(160),IU$1))-FIND(CHAR(160),SUBSTITUTE($AB163,\"{\",CHAR(160),IU$1))+1),\"\")","v":""},{"$f":"IFERROR(MID($AB163,FIND(CHAR(160),SUBSTITUTE($AB163,\"{\",CHAR(160),IV$1)),FIND(CHAR(160),SUBSTITUTE($AB163,\"}\",CHAR(160),IV$1))-FIND(CHAR(160),SUBSTITUTE($AB163,\"{\",CHAR(160),IV$1))+1),\"\")","v":""},{"$f":"IFERROR(MID($AB163,FIND(CHAR(160),SUBSTITUTE($AB163,\"{\",CHAR(160),IW$1)),FIND(CHAR(160),SUBSTITUTE($AB163,\"}\",CHAR(160),IW$1))-FIND(CHAR(160),SUBSTITUTE($AB163,\"{\",CHAR(160),IW$1))+1),\"\")","v":""},{"$f":"IFERROR(MID($AB163,FIND(CHAR(160),SUBSTITUTE($AB163,\"{\",CHAR(160),IX$1)),FIND(CHAR(160),SUBSTITUTE($AB163,\"}\",CHAR(160),IX$1))-FIND(CHAR(160),SUBSTITUTE($AB163,\"{\",CHAR(160),IX$1))+1),\"\")","v":""},null,{"$f":"10-COUNTIF(DU163:ED163,\"\")","v":3}]
["Distributor Lighting","Specialty LED - PAR38","LEDPAR38","2021-07-01","2022-06-30","Calculated","{Measure:Quantity}*{Package Size}*12.07",0,"Calculated","{Measure:Quantity}*{Rebate per Package}",0,"2021-07-01","2022-06-30","Calculated","{Measure:Quantity}*{Package Size}*121",null,null,"{Measure:Quantity}*{Package Size}*1.0747*0.07",null,null,"{Measure:Quantity}*{Package Size}*{Factor:WinterCF}*0.07","{Measure:Quantity}*{Package Size}*{Factor:SummerCF}*1.0747*0.07","{Measure:Quantity}*{Package Size}*10*-0.016","{Measure:Quantity}*{Package Size}*-0.009","{Measure:Quantity}*{Package Size}*-0.08","{Measure:Quantity}*{Package Size}*-0.003","{Measure:Quantity}*{Package Size}*-0.02",null,"2021-07-01","2022-06-30",2,0.254,0.309,0.42299999999999999,0.249,0.21,0.11799999999999999,0.99,1,1,0.51,0,null,{"$f":"DU164","v":"{Measure:Quantity}"},1,{"$f":"DV164","v":"{Package Size}"},1,{"$f":"DW164","v":"{Rebate per Package}"},{"$f":"CW164*CO164","v":0},{"$f":"DX164","v":""},null,{"$f":"DY164","v":""},null,{"$f":"DZ164","v":""},null,{"$f":"EA164","v":""},null,{"$f":"EB164","v":""},null,{"$f":"EC164","v":""},null,{"$f":"ED164","v":""},null,{"$f":"AS164*AU164*121","v":121},0,0,{"$f":"AS164*AU164*1.0747*0.07","v":7.5229000000000004E-2},0,0,{"$f":"AS164*AU164*AF164*0.07","v":1.7780000000000001E-2},{"$f":"AS164*AU164*AG164*1.0747*0.07","v":2.3245761000000004E-2},{"$f":"AS164*AU164*10*-0.016","v":-0.16},{"$f":"AS164*AU164*-0.009","v":-8.9999999999999993E-3},{"$f":"AS164*AU164*-0.08","v":-0.08},{"$f":"AS164*AU164*-0.003","v":-3.0000000000000001E-3},{"$f":"AS164*AU164*-0.02","v":-0.02},0,null,"Res","Default DR",{"$f":"Benefits(BL164,BR164,BS164,BT164,BU164,BV164,BW164,BX164,BY164,BZ164,AE164,AH164,AI164,AJ164,AK164,AL164,AM164,AN164,AO164,AP164,CA164,CB164)","v":28.842496424258215},17.479424780876052,-0.57516744061077607,-5.2380965640466925,-0.22294035388715955,-0.81668994128404659,-0.68889891922178992,0,0,{"$f":"SUMPRODUCT(CC164:CK164,--(CC164:CK164>0))","v":46.321921205134267},{"$f":"-SUMPRODUCT(CC164:CK164,--(CC164:CK164<0))","v":7.5417932190504651},null,{"$f":"AS164*AU164*12.07","v":12.07},null,null,{"$f":"CM164+CO164","v":19.611793219050465},{"$f":"IF(NetOrGross=\"Net\",(1-AO164+AP164),1)","v":1},{"$f":"(SUMPRODUCT(CC164:CJ164,--(CC164:CJ164>0))+CN164)*CS164/((-SUMPRODUCT(CC164:CJ164,--(CC164:CJ164<0))+MAX(CO164,CV164)+CP164+CQ164)*CS164+IF(FRIncentives=\"Yes\",CV164*(1-CS164),0))","v":2.3619421583610301},1,{"$f":"AS164*AW164","v":0},{"$f":"CW163","v":0},"Electric","y",null,{"$f":"IF(F164=\"Manual Entry\",\"Manual\",IF(G164=\"\",0,\"X=\"&SUBSTITUTE(SUBSTITUTE(SUBSTITUTE(SUBSTITUTE(SUBSTITUTE(SUBSTITUTE(SUBSTITUTE(SUBSTITUTE(SUBSTITUTE(SUBSTITUTE(SUBSTITUTE(SUBSTITUTE(G164,$ED164,$ED$2&ROW($ED164)),$EC164,$EC$2&ROW($EC164)),$EB164,$EB$2&ROW($EB164)),$EA164,$EA$2&ROW($EA164)),$DZ164,$DZ$2&ROW($DZ164)),$DY164,$DY$2&ROW($DY164)),$DX164,$DX$2&ROW($DX164)),$DW164,$DW$2&ROW($DW164)),$DV164,$DV$2&ROW($DV164)),$DU164,$DU$2&ROW($DU164)),$DT164,$DT$2&ROW($DT164)),$DS164,$DS$2&ROW($DS164))))","v":"X=AS164*AU164*12.07"},{"$f":"IF(I164=\"Manual Entry\",\"Manual\",IF(J164=\"\",0,\"X=\"&SUBSTITUTE(SUBSTITUTE(SUBSTITUTE(SUBSTITUTE(SUBSTITUTE(SUBSTITUTE(SUBSTITUTE(SUBSTITUTE(SUBSTITUTE(SUBSTITUTE(SUBSTITUTE(SUBSTITUTE(J164,$ED164,$ED$2&ROW($ED164)),$EC164,$EC$2&ROW($EC164)),$EB164,$EB$2&ROW($EB164)),$EA164,$EA$2&ROW($EA164)),$DZ164,$DZ$2&ROW($DZ164)),$DY164,$DY$2&ROW($DY164)),$DX164,$DX$2&ROW($DX164)),$DW164,$DW$2&ROW($DW164)),$DV164,$DV$2&ROW($DV164)),$DU164,$DU$2&ROW($DU164)),$DT164,$DT$2&ROW($DT164)),$DS164,$DS$2&ROW($DS164))))","v":"X=AS164*AW164"},{"$f":"IF(O164=\"\",0,\"X=\"&SUBSTITUTE(SUBSTITUTE(SUBSTITUTE(SUBSTITUTE(SUBSTITUTE(SUBSTITUTE(SUBSTITUTE(SUBSTITUTE(SUBSTITUTE(SUBSTITUTE(SUBSTITUTE(SUBSTITUTE(O164,$ED164,$ED$2&ROW($ED164)),$EC164,$EC$2&ROW($EC164)),$EB164,$EB$2&ROW($EB164)),$EA164,$EA$2&ROW($EA164)),$DZ164,$DZ$2&ROW($DZ164)),$DY164,$DY$2&ROW($DY164)),$DX164,$DX$2&ROW($DX164)),$DW164,$DW$2&ROW($DW164)),$DV164,$DV$2&ROW($DV164)),$DU164,$DU$2&ROW($DU164)),$DT164,$DT$2&ROW($DT164)),$DS164,$DS$2&ROW($DS164)))","v":"X=AS164*AU164*121"},{"$f":"IF(P164=\"\",0,\"X=\"&SUBSTITUTE(SUBSTITUTE(SUBSTITUTE(SUBSTITUTE(SUBSTITUTE(SUBSTITUTE(SUBSTITUTE(SUBSTITUTE(SUBSTITUTE(SUBSTITUTE(SUBSTITUTE(SUBSTITUTE(P164,$ED164,$ED$2&ROW($ED164)),$EC164,$EC$2&ROW($EC164)),$EB164,$EB$2&ROW($EB164)),$EA164,$EA$2&ROW($EA164)),$DZ164,$DZ$2&ROW($DZ164)),$DY164,$DY$2&ROW($DY164)),$DX164,$DX$2&ROW($DX164)),$DW164,$DW$2&ROW($DW164)),$DV164,$DV$2&ROW($DV164)),$DU164,$DU$2&ROW($DU164)),$DT164,$DT$2&ROW($DT164)),$DS164,$DS$2&ROW($DS164)))","v":0},{"$f":"IF(Q164=\"\",0,\"X=\"&SUBSTITUTE(SUBSTITUTE(SUBSTITUTE(SUBSTITUTE(SUBSTITUTE(SUBSTITUTE(SUBSTITUTE(SUBSTITUTE(SUBSTITUTE(SUBSTITUTE(SUBSTITUTE(SUBSTITUTE(Q164,$ED164,$ED$2&ROW($ED164)),$EC164,$EC$2&ROW($EC164)),$EB164,$EB$2&ROW($EB164)),$EA164,$EA$2&ROW($EA164)),$DZ164,$DZ$2&ROW($DZ164)),$DY164,$DY$2&ROW($DY164)),$DX164,$DX$2&ROW($DX164)),$DW164,$DW$2&ROW($DW164)),$DV164,$DV$2&ROW($DV164)),$DU164,$DU$2&ROW($DU164)),$DT164,$DT$2&ROW($DT164)),$DS164,$DS$2&ROW($DS164)))","v":0},{"$f":"IF(R164=\"\",0,\"X=\"&SUBSTITUTE(SUBSTITUTE(SUBSTITUTE(SUBSTITUTE(SUBSTITUTE(SUBSTITUTE(SUBSTITUTE(SUBSTITUTE(SUBSTITUTE(SUBSTITUTE(SUBSTITUTE(SUBSTITUTE(R164,$ED164,$ED$2&ROW($ED164)),$EC164,$EC$2&ROW($EC164)),$EB164,$EB$2&ROW($EB164)),$EA164,$EA$2&ROW($EA164)),$DZ164,$DZ$2&ROW($DZ164)),$DY164,$DY$2&ROW($DY164)),$DX164,$DX$2&ROW($DX164)),$DW164,$DW$2&ROW($DW164)),$DV164,$DV$2&ROW($DV164)),$DU164,$DU$2&ROW($DU164)),$DT164,$DT$2&ROW($DT164)),$DS164,$DS$2&ROW($DS164)))","v":"X=AS164*AU164*1.0747*0.07"},{"$f":"IF(S164=\"\",0,\"X=\"&SUBSTITUTE(SUBSTITUTE(SUBSTITUTE(SUBSTITUTE(SUBSTITUTE(SUBSTITUTE(SUBSTITUTE(SUBSTITUTE(SUBSTITUTE(SUBSTITUTE(SUBSTITUTE(SUBSTITUTE(S164,$ED164,$ED$2&ROW($ED164)),$EC164,$EC$2&ROW($EC164)),$EB164,$EB$2&ROW($EB164)),$EA164,$EA$2&ROW($EA164)),$DZ164,$DZ$2&ROW($DZ164)),$DY164,$DY$2&ROW($DY164)),$DX164,$DX$2&ROW($DX164)),$DW164,$DW$2&ROW($DW164)),$DV164,$DV$2&ROW($DV164)),$DU164,$DU$2&ROW($DU164)),$DT164,$DT$2&ROW($DT164)),$DS164,$DS$2&ROW($DS164)))","v":0},{"$f":"IF(T164=\"\",0,\"X=\"&SUBSTITUTE(SUBSTITUTE(SUBSTITUTE(SUBSTITUTE(SUBSTITUTE(SUBSTITUTE(SUBSTITUTE(SUBSTITUTE(SUBSTITUTE(SUBSTITUTE(SUBSTITUTE(SUBSTITUTE(T164,$ED164,$ED$2&ROW($ED164)),$EC164,$EC$2&ROW($EC164)),$EB164,$EB$2&ROW($EB164)),$EA164,$EA$2&ROW($EA164)),$DZ164,$DZ$2&ROW($DZ164)),$DY164,$DY$2&ROW($DY164)),$DX164,$DX$2&ROW($DX164)),$DW164,$DW$2&ROW($DW164)),$DV164,$DV$2&ROW($DV164)),$DU164,$DU$2&ROW($DU164)),$DT164,$DT$2&ROW($DT164)),$DS164,$DS$2&ROW($DS164)))","v":0},{"$f":"IF(U164=\"\",0,\"X=\"&SUBSTITUTE(SUBSTITUTE(SUBSTITUTE(SUBSTITUTE(SUBSTITUTE(SUBSTITUTE(SUBSTITUTE(SUBSTITUTE(SUBSTITUTE(SUBSTITUTE(SUBSTITUTE(SUBSTITUTE(U164,$ED164,$ED$2&ROW($ED164)),$EC164,$EC$2&ROW($EC164)),$EB164,$EB$2&ROW($EB164)),$EA164,$EA$2&ROW($EA164)),$DZ164,$DZ$2&ROW($DZ164)),$DY164,$DY$2&ROW($DY164)),$DX164,$DX$2&ROW($DX164)),$DW164,$DW$2&ROW($DW164)),$DV164,$DV$2&ROW($DV164)),$DU164,$DU$2&ROW($DU164)),$DT164,$DT$2&ROW($DT164)),$DS164,$DS$2&ROW($DS164)))","v":"X=AS164*AU164*AF164*0.07"},{"$f":"IF(V164=\"\",0,\"X=\"&SUBSTITUTE(SUBSTITUTE(SUBSTITUTE(SUBSTITUTE(SUBSTITUTE(SUBSTITUTE(SUBSTITUTE(SUBSTITUTE(SUBSTITUTE(SUBSTITUTE(SUBSTITUTE(SUBSTITUTE(V164,$ED164,$ED$2&ROW($ED164)),$EC164,$EC$2&ROW($EC164)),$EB164,$EB$2&ROW($EB164)),$EA164,$EA$2&ROW($EA164)),$DZ164,$DZ$2&ROW($DZ164)),$DY164,$DY$2&ROW($DY164)),$DX164,$DX$2&ROW($DX164)),$DW164,$DW$2&ROW($DW164)),$DV164,$DV$2&ROW($DV164)),$DU164,$DU$2&ROW($DU164)),$DT164,$DT$2&ROW($DT164)),$DS164,$DS$2&ROW($DS164)))","v":"X=AS164*AU164*AG164*1.0747*0.07"},{"$f":"IF(W164=\"\",0,\"X=\"&SUBSTITUTE(SUBSTITUTE(SUBSTITUTE(SUBSTITUTE(SUBSTITUTE(SUBSTITUTE(SUBSTITUTE(SUBSTITUTE(SUBSTITUTE(SUBSTITUTE(SUBSTITUTE(SUBSTITUTE(W164,$ED164,$ED$2&ROW($ED164)),$EC164,$EC$2&ROW($EC164)),$EB164,$EB$2&ROW($EB164)),$EA164,$EA$2&ROW($EA164)),$DZ164,$DZ$2&ROW($DZ164)),$DY164,$DY$2&ROW($DY164)),$DX164,$DX$2&ROW($DX164)),$DW164,$DW$2&ROW($DW164)),$DV164,$DV$2&ROW($DV164)),$DU164,$DU$2&ROW($DU164)),$DT164,$DT$2&ROW($DT164)),$DS164,$DS$2&ROW($DS164)))","v":"X=AS164*AU164*10*-0.016"},{"$f":"IF(X164=\"\",0,\"X=\"&SUBSTITUTE(SUBSTITUTE(SUBSTITUTE(SUBSTITUTE(SUBSTITUTE(SUBSTITUTE(SUBSTITUTE(SUBSTITUTE(SUBSTITUTE(SUBSTITUTE(SUBSTITUTE(SUBSTITUTE(X164,$ED164,$ED$2&ROW($ED164)),$EC164,$EC$2&ROW($EC164)),$EB164,$EB$2&ROW($EB164)),$EA164,$EA$2&ROW($EA164)),$DZ164,$DZ$2&ROW($DZ164)),$DY164,$DY$2&ROW($DY164)),$DX164,$DX$2&ROW($DX164)),$DW164,$DW$2&ROW($DW164)),$DV164,$DV$2&ROW($DV164)),$DU164,$DU$2&ROW($DU164)),$DT164,$DT$2&ROW($DT164)),$DS164,$DS$2&ROW($DS164)))","v":"X=AS164*AU164*-0.009"},{"$f":"IF(Y164=\"\",0,\"X=\"&SUBSTITUTE(SUBSTITUTE(SUBSTITUTE(SUBSTITUTE(SUBSTITUTE(SUBSTITUTE(SUBSTITUTE(SUBSTITUTE(SUBSTITUTE(SUBSTITUTE(SUBSTITUTE(SUBSTITUTE(Y164,$ED164,$ED$2&ROW($ED164)),$EC164,$EC$2&ROW($EC164)),$EB164,$EB$2&ROW($EB164)),$EA164,$EA$2&ROW($EA164)),$DZ164,$DZ$2&ROW($DZ164)),$DY164,$DY$2&ROW($DY164)),$DX164,$DX$2&ROW($DX164)),$DW164,$DW$2&ROW($DW164)),$DV164,$DV$2&ROW($DV164)),$DU164,$DU$2&ROW($DU164)),$DT164,$DT$2&ROW($DT164)),$DS164,$DS$2&ROW($DS164)))","v":"X=AS164*AU164*-0.08"},{"$f":"IF(Z164=\"\",0,\"X=\"&SUBSTITUTE(SUBSTITUTE(SUBSTITUTE(SUBSTITUTE(SUBSTITUTE(SUBSTITUTE(SUBSTITUTE(SUBSTITUTE(SUBSTITUTE(SUBSTITUTE(SUBSTITUTE(SUBSTITUTE(Z164,$ED164,$ED$2&ROW($ED164)),$EC164,$EC$2&ROW($EC164)),$EB164,$EB$2&ROW($EB164)),$EA164,$EA$2&ROW($EA164)),$DZ164,$DZ$2&ROW($DZ164)),$DY164,$DY$2&ROW($DY164)),$DX164,$DX$2&ROW($DX164)),$DW164,$DW$2&ROW($DW164)),$DV164,$DV$2&ROW($DV164)),$DU164,$DU$2&ROW($DU164)),$DT164,$DT$2&ROW($DT164)),$DS164,$DS$2&ROW($DS164)))","v":"X=AS164*AU164*-0.003"},{"$f":"IF(AA164=\"\",0,\"X=\"&SUBSTITUTE(SUBSTITUTE(SUBSTITUTE(SUBSTITUTE(SUBSTITUTE(SUBSTITUTE(SUBSTITUTE(SUBSTITUTE(SUBSTITUTE(SUBSTITUTE(SUBSTITUTE(SUBSTITUTE(AA164,$ED164,$ED$2&ROW($ED164)),$EC164,$EC$2&ROW($EC164)),$EB164,$EB$2&ROW($EB164)),$EA164,$EA$2&ROW($EA164)),$DZ164,$DZ$2&ROW($DZ164)),$DY164,$DY$2&ROW($DY164)),$DX164,$DX$2&ROW($DX164)),$DW164,$DW$2&ROW($DW164)),$DV164,$DV$2&ROW($DV164)),$DU164,$DU$2&ROW($DU164)),$DT164,$DT$2&ROW($DT164)),$DS164,$DS$2&ROW($DS164)))","v":"X=AS164*AU164*-0.02"},{"$f":"IF(AB164=\"\",0,\"X=\"&SUBSTITUTE(SUBSTITUTE(SUBSTITUTE(SUBSTITUTE(SUBSTITUTE(SUBSTITUTE(SUBSTITUTE(SUBSTITUTE(SUBSTITUTE(SUBSTITUTE(SUBSTITUTE(SUBSTITUTE(AB164,$ED164,$ED$2&ROW($ED164)),$EC164,$EC$2&ROW($EC164)),$EB164,$EB$2&ROW($EB164)),$EA164,$EA$2&ROW($EA164)),$DZ164,$DZ$2&ROW($DZ164)),$DY164,$DY$2&ROW($DY164)),$DX164,$DX$2&ROW($DX164)),$DW164,$DW$2&ROW($DW164)),$DV164,$DV$2&ROW($DV164)),$DU164,$DU$2&ROW($DU164)),$DT164,$DT$2&ROW($DT164)),$DS164,$DS$2&ROW($DS164)))","v":0},null,null,"{Factor:WinterCF}","{Factor:SummerCF}",{"$f":"IFERROR(INDEX($EG164:$IV164,MATCH(0,COUNTIF($DR164:DT164,$EG164:$IV164),0)),\"\")","v":"{Measure:Quantity}"},{"$f":"IFERROR(INDEX($EG164:$IV164,MATCH(0,COUNTIF($DR164:DU164,$EG164:$IV164),0)),\"\")","v":"{Package Size}"},{"$f":"IFERROR(INDEX($EG164:$IV164,MATCH(0,COUNTIF($DR164:DV164,$EG164:$IV164),0)),\"\")","v":"{Rebate per Package}"},{"$f":"IFERROR(INDEX($EG164:$IV164,MATCH(0,COUNTIF($DR164:DW164,$EG164:$IV164),0)),\"\")","v":""},{"$f":"IFERROR(INDEX($EG164:$IV164,MATCH(0,COUNTIF($DR164:DX164,$EG164:$IV164),0)),\"\")","v":""},{"$f":"IFERROR(INDEX($EG164:$IV164,MATCH(0,COUNTIF($DR164:DY164,$EG164:$IV164),0)),\"\")","v":""},{"$f":"IFERROR(INDEX($EG164:$IV164,MATCH(0,COUNTIF($DR164:DZ164,$EG164:$IV164),0)),\"\")","v":""},{"$f":"IFERROR(INDEX($EG164:$IV164,MATCH(0,COUNTIF($DR164:EA164,$EG164:$IV164),0)),\"\")","v":""},{"$f":"IFERROR(INDEX($EG164:$IV164,MATCH(0,COUNTIF($DR164:EB164,$EG164:$IV164),0)),\"\")","v":""},{"$f":"IFERROR(INDEX($EG164:$IV164,MATCH(0,COUNTIF($DR164:EC164,$EG164:$IV164),0)),\"\")","v":""},null,null,{"$f":"IFERROR(MID($G164,FIND(CHAR(160),SUBSTITUTE($G164,\"{\",CHAR(160),EG$1)),FIND(CHAR(160),SUBSTITUTE($G164,\"}\",CHAR(160),EG$1))-FIND(CHAR(160),SUBSTITUTE($G164,\"{\",CHAR(160),EG$1))+1),\"\")","v":"{Measure:Quantity}"},{"$f":"IFERROR(MID($G164,FIND(CHAR(160),SUBSTITUTE($G164,\"{\",CHAR(160),EH$1)),FIND(CHAR(160),SUBSTITUTE($G164,\"}\",CHAR(160),EH$1))-FIND(CHAR(160),SUBSTITUTE($G164,\"{\",CHAR(160),EH$1))+1),\"\")","v":"{Package Size}"},{"$f":"IFERROR(MID($G164,FIND(CHAR(160),SUBSTITUTE($G164,\"{\",CHAR(160),EI$1)),FIND(CHAR(160),SUBSTITUTE($G164,\"}\",CHAR(160),EI$1))-FIND(CHAR(160),SUBSTITUTE($G164,\"{\",CHAR(160),EI$1))+1),\"\")","v":""},{"$f":"IFERROR(MID($G164,FIND(CHAR(160),SUBSTITUTE($G164,\"{\",CHAR(160),EJ$1)),FIND(CHAR(160),SUBSTITUTE($G164,\"}\",CHAR(160),EJ$1))-FIND(CHAR(160),SUBSTITUTE($G164,\"{\",CHAR(160),EJ$1))+1),\"\")","v":""},{"$f":"IFERROR(MID($G164,FIND(CHAR(160),SUBSTITUTE($G164,\"{\",CHAR(160),EK$1)),FIND(CHAR(160),SUBSTITUTE($G164,\"}\",CHAR(160),EK$1))-FIND(CHAR(160),SUBSTITUTE($G164,\"{\",CHAR(160),EK$1))+1),\"\")","v":""},{"$f":"IFERROR(MID($G164,FIND(CHAR(160),SUBSTITUTE($G164,\"{\",CHAR(160),EL$1)),FIND(CHAR(160),SUBSTITUTE($G164,\"}\",CHAR(160),EL$1))-FIND(CHAR(160),SUBSTITUTE($G164,\"{\",CHAR(160),EL$1))+1),\"\")","v":""},{"$f":"IFERROR(MID($G164,FIND(CHAR(160),SUBSTITUTE($G164,\"{\",CHAR(160),EM$1)),FIND(CHAR(160),SUBSTITUTE($G164,\"}\",CHAR(160),EM$1))-FIND(CHAR(160),SUBSTITUTE($G164,\"{\",CHAR(160),EM$1))+1),\"\")","v":""},{"$f":"IFERROR(MID($G164,FIND(CHAR(160),SUBSTITUTE($G164,\"{\",CHAR(160),EN$1)),FIND(CHAR(160),SUBSTITUTE($G164,\"}\",CHAR(160),EN$1))-FIND(CHAR(160),SUBSTITUTE($G164,\"{\",CHAR(160),EN$1))+1),\"\")","v":""},{"$f":"IFERROR(MID($G164,FIND(CHAR(160),SUBSTITUTE($G164,\"{\",CHAR(160),EO$1)),FIND(CHAR(160),SUBSTITUTE($G164,\"}\",CHAR(160),EO$1))-FIND(CHAR(160),SUBSTITUTE($G164,\"{\",CHAR(160),EO$1))+1),\"\")","v":""},{"$f":"IFERROR(MID($G164,FIND(CHAR(160),SUBSTITUTE($G164,\"{\",CHAR(160),EP$1)),FIND(CHAR(160),SUBSTITUTE($G164,\"}\",CHAR(160),EP$1))-FIND(CHAR(160),SUBSTITUTE($G164,\"{\",CHAR(160),EP$1))+1),\"\")","v":""},{"$f":"IFERROR(MID($J164,FIND(CHAR(160),SUBSTITUTE($J164,\"{\",CHAR(160),EQ$1)),FIND(CHAR(160),SUBSTITUTE($J164,\"}\",CHAR(160),EQ$1))-FIND(CHAR(160),SUBSTITUTE($J164,\"{\",CHAR(160),EQ$1))+1),\"\")","v":"{Measure:Quantity}"},{"$f":"IFERROR(MID($J164,FIND(CHAR(160),SUBSTITUTE($J164,\"{\",CHAR(160),ER$1)),FIND(CHAR(160),SUBSTITUTE($J164,\"}\",CHAR(160),ER$1))-FIND(CHAR(160),SUBSTITUTE($J164,\"{\",CHAR(160),ER$1))+1),\"\")","v":"{Rebate per Package}"},{"$f":"IFERROR(MID($J164,FIND(CHAR(160),SUBSTITUTE($J164,\"{\",CHAR(160),ES$1)),FIND(CHAR(160),SUBSTITUTE($J164,\"}\",CHAR(160),ES$1))-FIND(CHAR(160),SUBSTITUTE($J164,\"{\",CHAR(160),ES$1))+1),\"\")","v":""},{"$f":"IFERROR(MID($J164,FIND(CHAR(160),SUBSTITUTE($J164,\"{\",CHAR(160),ET$1)),FIND(CHAR(160),SUBSTITUTE($J164,\"}\",CHAR(160),ET$1))-FIND(CHAR(160),SUBSTITUTE($J164,\"{\",CHAR(160),ET$1))+1),\"\")","v":""},{"$f":"IFERROR(MID($J164,FIND(CHAR(160),SUBSTITUTE($J164,\"{\",CHAR(160),EU$1)),FIND(CHAR(160),SUBSTITUTE($J164,\"}\",CHAR(160),EU$1))-FIND(CHAR(160),SUBSTITUTE($J164,\"{\",CHAR(160),EU$1))+1),\"\")","v":""},{"$f":"IFERROR(MID($J164,FIND(CHAR(160),SUBSTITUTE($J164,\"{\",CHAR(160),EV$1)),FIND(CHAR(160),SUBSTITUTE($J164,\"}\",CHAR(160),EV$1))-FIND(CHAR(160),SUBSTITUTE($J164,\"{\",CHAR(160),EV$1))+1),\"\")","v":""},{"$f":"IFERROR(MID($J164,FIND(CHAR(160),SUBSTITUTE($J164,\"{\",CHAR(160),EW$1)),FIND(CHAR(160),SUBSTITUTE($J164,\"}\",CHAR(160),EW$1))-FIND(CHAR(160),SUBSTITUTE($J164,\"{\",CHAR(160),EW$1))+1),\"\")","v":""},{"$f":"IFERROR(MID($J164,FIND(CHAR(160),SUBSTITUTE($J164,\"{\",CHAR(160),EX$1)),FIND(CHAR(160),SUBSTITUTE($J164,\"}\",CHAR(160),EX$1))-FIND(CHAR(160),SUBSTITUTE($J164,\"{\",CHAR(160),EX$1))+1),\"\")","v":""},{"$f":"IFERROR(MID($J164,FIND(CHAR(160),SUBSTITUTE($J164,\"{\",CHAR(160),EY$1)),FIND(CHAR(160),SUBSTITUTE($J164,\"}\",CHAR(160),EY$1))-FIND(CHAR(160),SUBSTITUTE($J164,\"{\",CHAR(160),EY$1))+1),\"\")","v":""},{"$f":"IFERROR(MID($J164,FIND(CHAR(160),SUBSTITUTE($J164,\"{\",CHAR(160),EZ$1)),FIND(CHAR(160),SUBSTITUTE($J164,\"}\",CHAR(160),EZ$1))-FIND(CHAR(160),SUBSTITUTE($J164,\"{\",CHAR(160),EZ$1))+1),\"\")","v":""},{"$f":"IFERROR(MID($J164,FIND(CHAR(160),SUBSTITUTE($J164,\"{\",CHAR(160),FA$1)),FIND(CHAR(160),SUBSTITUTE($J164,\"}\",CHAR(160),FA$1))-FIND(CHAR(160),SUBSTITUTE($J164,\"{\",CHAR(160),FA$1))+1),\"\")","v":"{Measure:Quantity}"},{"$f":"IFERROR(MID($J164,FIND(CHAR(160),SUBSTITUTE($J164,\"{\",CHAR(160),FB$1)),FIND(CHAR(160),SUBSTITUTE($J164,\"}\",CHAR(160),FB$1))-FIND(CHAR(160),SUBSTITUTE($J164,\"{\",CHAR(160),FB$1))+1),\"\")","v":"{Rebate per Package}"},{"$f":"IFERROR(MID($O164,FIND(CHAR(160),SUBSTITUTE($O164,\"{\",CHAR(160),FC$1)),FIND(CHAR(160),SUBSTITUTE($O164,\"}\",CHAR(160),FC$1))-FIND(CHAR(160),SUBSTITUTE($O164,\"{\",CHAR(160),FC$1))+1),\"\")","v":""},{"$f":"IFERROR(MID($O164,FIND(CHAR(160),SUBSTITUTE($O164,\"{\",CHAR(160),FD$1)),FIND(CHAR(160),SUBSTITUTE($O164,\"}\",CHAR(160),FD$1))-FIND(CHAR(160),SUBSTITUTE($O164,\"{\",CHAR(160),FD$1))+1),\"\")","v":""},{"$f":"IFERROR(MID($O164,FIND(CHAR(160),SUBSTITUTE($O164,\"{\",CHAR(160),FE$1)),FIND(CHAR(160),SUBSTITUTE($O164,\"}\",CHAR(160),FE$1))-FIND(CHAR(160),SUBSTITUTE($O164,\"{\",CHAR(160),FE$1))+1),\"\")","v":""},{"$f":"IFERROR(MID($O164,FIND(CHAR(160),SUBSTITUTE($O164,\"{\",CHAR(160),FF$1)),FIND(CHAR(160),SUBSTITUTE($O164,\"}\",CHAR(160),FF$1))-FIND(CHAR(160),SUBSTITUTE($O164,\"{\",CHAR(160),FF$1))+1),\"\")","v":""},{"$f":"IFERROR(MID($O164,FIND(CHAR(160),SUBSTITUTE($O164,\"{\",CHAR(160),FG$1)),FIND(CHAR(160),SUBSTITUTE($O164,\"}\",CHAR(160),FG$1))-FIND(CHAR(160),SUBSTITUTE($O164,\"{\",CHAR(160),FG$1))+1),\"\")","v":""},{"$f":"IFERROR(MID($O164,FIND(CHAR(160),SUBSTITUTE($O164,\"{\",CHAR(160),FH$1)),FIND(CHAR(160),SUBSTITUTE($O164,\"}\",CHAR(160),FH$1))-FIND(CHAR(160),SUBSTITUTE($O164,\"{\",CHAR(160),FH$1))+1),\"\")","v":""},{"$f":"IFERROR(MID($O164,FIND(CHAR(160),SUBSTITUTE($O164,\"{\",CHAR(160),FI$1)),FIND(CHAR(160),SUBSTITUTE($O164,\"}\",CHAR(160),FI$1))-FIND(CHAR(160),SUBSTITUTE($O164,\"{\",CHAR(160),FI$1))+1),\"\")","v":""},{"$f":"IFERROR(MID($O164,FIND(CHAR(160),SUBSTITUTE($O164,\"{\",CHAR(160),FJ$1)),FIND(CHAR(160),SUBSTITUTE($O164,\"}\",CHAR(160),FJ$1))-FIND(CHAR(160),SUBSTITUTE($O164,\"{\",CHAR(160),FJ$1))+1),\"\")","v":""},{"$f":"IFERROR(MID($O164,FIND(CHAR(160),SUBSTITUTE($O164,\"{\",CHAR(160),FK$1)),FIND(CHAR(160),SUBSTITUTE($O164,\"}\",CHAR(160),FK$1))-FIND(CHAR(160),SUBSTITUTE($O164,\"{\",CHAR(160),FK$1))+1),\"\")","v":"{Measure:Quantity}"},{"$f":"IFERROR(MID($O164,FIND(CHAR(160),SUBSTITUTE($O164,\"{\",CHAR(160),FL$1)),FIND(CHAR(160),SUBSTITUTE($O164,\"}\",CHAR(160),FL$1))-FIND(CHAR(160),SUBSTITUTE($O164,\"{\",CHAR(160),FL$1))+1),\"\")","v":"{Package Size}"},{"$f":"IFERROR(MID($R164,FIND(CHAR(160),SUBSTITUTE($R164,\"{\",CHAR(160),FM$1)),FIND(CHAR(160),SUBSTITUTE($R164,\"}\",CHAR(160),FM$1))-FIND(CHAR(160),SUBSTITUTE($R164,\"{\",CHAR(160),FM$1))+1),\"\")","v":""},{"$f":"IFERROR(MID($R164,FIND(CHAR(160),SUBSTITUTE($R164,\"{\",CHAR(160),FN$1)),FIND(CHAR(160),SUBSTITUTE($R164,\"}\",CHAR(160),FN$1))-FIND(CHAR(160),SUBSTITUTE($R164,\"{\",CHAR(160),FN$1))+1),\"\")","v":""},{"$f":"IFERROR(MID($R164,FIND(CHAR(160),SUBSTITUTE($R164,\"{\",CHAR(160),FO$1)),FIND(CHAR(160),SUBSTITUTE($R164,\"}\",CHAR(160),FO$1))-FIND(CHAR(160),SUBSTITUTE($R164,\"{\",CHAR(160),FO$1))+1),\"\")","v":""},{"$f":"IFERROR(MID($R164,FIND(CHAR(160),SUBSTITUTE($R164,\"{\",CHAR(160),FP$1)),FIND(CHAR(160),SUBSTITUTE($R164,\"}\",CHAR(160),FP$1))-FIND(CHAR(160),SUBSTITUTE($R164,\"{\",CHAR(160),FP$1))+1),\"\")","v":""},{"$f":"IFERROR(MID($R164,FIND(CHAR(160),SUBSTITUTE($R164,\"{\",CHAR(160),FQ$1)),FIND(CHAR(160),SUBSTITUTE($R164,\"}\",CHAR(160),FQ$1))-FIND(CHAR(160),SUBSTITUTE($R164,\"{\",CHAR(160),FQ$1))+1),\"\")","v":""},{"$f":"IFERROR(MID($R164,FIND(CHAR(160),SUBSTITUTE($R164,\"{\",CHAR(160),FR$1)),FIND(CHAR(160),SUBSTITUTE($R164,\"}\",CHAR(160),FR$1))-FIND(CHAR(160),SUBSTITUTE($R164,\"{\",CHAR(160),FR$1))+1),\"\")","v":""},{"$f":"IFERROR(MID($R164,FIND(CHAR(160),SUBSTITUTE($R164,\"{\",CHAR(160),FS$1)),FIND(CHAR(160),SUBSTITUTE($R164,\"}\",CHAR(160),FS$1))-FIND(CHAR(160),SUBSTITUTE($R164,\"{\",CHAR(160),FS$1))+1),\"\")","v":""},{"$f":"IFERROR(MID($R164,FIND(CHAR(160),SUBSTITUTE($R164,\"{\",CHAR(160),FT$1)),FIND(CHAR(160),SUBSTITUTE($R164,\"}\",CHAR(160),FT$1))-FIND(CHAR(160),SUBSTITUTE($R164,\"{\",CHAR(160),FT$1))+1),\"\")","v":""},{"$f":"IFERROR(MID($R164,FIND(CHAR(160),SUBSTITUTE($R164,\"{\",CHAR(160),FU$1)),FIND(CHAR(160),SUBSTITUTE($R164,\"}\",CHAR(160),FU$1))-FIND(CHAR(160),SUBSTITUTE($R164,\"{\",CHAR(160),FU$1))+1),\"\")","v":"{Measure:Quantity}"},{"$f":"IFERROR(MID($R164,FIND(CHAR(160),SUBSTITUTE($R164,\"{\",CHAR(160),FV$1)),FIND(CHAR(160),SUBSTITUTE($R164,\"}\",CHAR(160),FV$1))-FIND(CHAR(160),SUBSTITUTE($R164,\"{\",CHAR(160),FV$1))+1),\"\")","v":"{Package Size}"},{"$f":"IFERROR(MID($U164,FIND(CHAR(160),SUBSTITUTE($U164,\"{\",CHAR(160),FW$1)),FIND(CHAR(160),SUBSTITUTE($U164,\"}\",CHAR(160),FW$1))-FIND(CHAR(160),SUBSTITUTE($U164,\"{\",CHAR(160),FW$1))+1),\"\")","v":"{Factor:WinterCF}"},{"$f":"IFERROR(MID($U164,FIND(CHAR(160),SUBSTITUTE($U164,\"{\",CHAR(160),FX$1)),FIND(CHAR(160),SUBSTITUTE($U164,\"}\",CHAR(160),FX$1))-FIND(CHAR(160),SUBSTITUTE($U164,\"{\",CHAR(160),FX$1))+1),\"\")","v":""},{"$f":"IFERROR(MID($U164,FIND(CHAR(160),SUBSTITUTE($U164,\"{\",CHAR(160),FY$1)),FIND(CHAR(160),SUBSTITUTE($U164,\"}\",CHAR(160),FY$1))-FIND(CHAR(160),SUBSTITUTE($U164,\"{\",CHAR(160),FY$1))+1),\"\")","v":""},{"$f":"IFERROR(MID($U164,FIND(CHAR(160),SUBSTITUTE($U164,\"{\",CHAR(160),FZ$1)),FIND(CHAR(160),SUBSTITUTE($U164,\"}\",CHAR(160),FZ$1))-FIND(CHAR(160),SUBSTITUTE($U164,\"{\",CHAR(160),FZ$1))+1),\"\")","v":""},{"$f":"IFERROR(MID($U164,FIND(CHAR(160),SUBSTITUTE($U164,\"{\",CHAR(160),GA$1)),FIND(CHAR(160),SUBSTITUTE($U164,\"}\",CHAR(160),GA$1))-FIND(CHAR(160),SUBSTITUTE($U164,\"{\",CHAR(160),GA$1))+1),\"\")","v":""},{"$f":"IFERROR(MID($U164,FIND(CHAR(160),SUBSTITUTE($U164,\"{\",CHAR(160),GB$1)),FIND(CHAR(160),SUBSTITUTE($U164,\"}\",CHAR(160),GB$1))-FIND(CHAR(160),SUBSTITUTE($U164,\"{\",CHAR(160),GB$1))+1),\"\")","v":""},{"$f":"IFERROR(MID($U164,FIND(CHAR(160),SUBSTITUTE($U164,\"{\",CHAR(160),GC$1)),FIND(CHAR(160),SUBSTITUTE($U164,\"}\",CHAR(160),GC$1))-FIND(CHAR(160),SUBSTITUTE($U164,\"{\",CHAR(160),GC$1))+1),\"\")","v":""},{"$f":"IFERROR(MID($U164,FIND(CHAR(160),SUBSTITUTE($U164,\"{\",CHAR(160),GD$1)),FIND(CHAR(160),SUBSTITUTE($U164,\"}\",CHAR(160),GD$1))-FIND(CHAR(160),SUBSTITUTE($U164,\"{\",CHAR(160),GD$1))+1),\"\")","v":""},{"$f":"IFERROR(MID($U164,FIND(CHAR(160),SUBSTITUTE($U164,\"{\",CHAR(160),GE$1)),FIND(CHAR(160),SUBSTITUTE($U164,\"}\",CHAR(160),GE$1))-FIND(CHAR(160),SUBSTITUTE($U164,\"{\",CHAR(160),GE$1))+1),\"\")","v":"{Measure:Quantity}"},{"$f":"IFERROR(MID($U164,FIND(CHAR(160),SUBSTITUTE($U164,\"{\",CHAR(160),GF$1)),FIND(CHAR(160),SUBSTITUTE($U164,\"}\",CHAR(160),GF$1))-FIND(CHAR(160),SUBSTITUTE($U164,\"{\",CHAR(160),GF$1))+1),\"\")","v":"{Package Size}"},{"$f":"IFERROR(MID($V164,FIND(CHAR(160),SUBSTITUTE($V164,\"{\",CHAR(160),GG$1)),FIND(CHAR(160),SUBSTITUTE($V164,\"}\",CHAR(160),GG$1))-FIND(CHAR(160),SUBSTITUTE($V164,\"{\",CHAR(160),GG$1))+1),\"\")","v":"{Factor:SummerCF}"},{"$f":"IFERROR(MID($V164,FIND(CHAR(160),SUBSTITUTE($V164,\"{\",CHAR(160),GH$1)),FIND(CHAR(160),SUBSTITUTE($V164,\"}\",CHAR(160),GH$1))-FIND(CHAR(160),SUBSTITUTE($V164,\"{\",CHAR(160),GH$1))+1),\"\")","v":""},{"$f":"IFERROR(MID($V164,FIND(CHAR(160),SUBSTITUTE($V164,\"{\",CHAR(160),GI$1)),FIND(CHAR(160),SUBSTITUTE($V164,\"}\",CHAR(160),GI$1))-FIND(CHAR(160),SUBSTITUTE($V164,\"{\",CHAR(160),GI$1))+1),\"\")","v":""},{"$f":"IFERROR(MID($V164,FIND(CHAR(160),SUBSTITUTE($V164,\"{\",CHAR(160),GJ$1)),FIND(CHAR(160),SUBSTITUTE($V164,\"}\",CHAR(160),GJ$1))-FIND(CHAR(160),SUBSTITUTE($V164,\"{\",CHAR(160),GJ$1))+1),\"\")","v":""},{"$f":"IFERROR(MID($V164,FIND(CHAR(160),SUBSTITUTE($V164,\"{\",CHAR(160),GK$1)),FIND(CHAR(160),SUBSTITUTE($V164,\"}\",CHAR(160),GK$1))-FIND(CHAR(160),SUBSTITUTE($V164,\"{\",CHAR(160),GK$1))+1),\"\")","v":""},{"$f":"IFERROR(MID($V164,FIND(CHAR(160),SUBSTITUTE($V164,\"{\",CHAR(160),GL$1)),FIND(CHAR(160),SUBSTITUTE($V164,\"}\",CHAR(160),GL$1))-FIND(CHAR(160),SUBSTITUTE($V164,\"{\",CHAR(160),GL$1))+1),\"\")","v":""},{"$f":"IFERROR(MID($V164,FIND(CHAR(160),SUBSTITUTE($V164,\"{\",CHAR(160),GM$1)),FIND(CHAR(160),SUBSTITUTE($V164,\"}\",CHAR(160),GM$1))-FIND(CHAR(160),SUBSTITUTE($V164,\"{\",CHAR(160),GM$1))+1),\"\")","v":""},{"$f":"IFERROR(MID($V164,FIND(CHAR(160),SUBSTITUTE($V164,\"{\",CHAR(160),GN$1)),FIND(CHAR(160),SUBSTITUTE($V164,\"}\",CHAR(160),GN$1))-FIND(CHAR(160),SUBSTITUTE($V164,\"{\",CHAR(160),GN$1))+1),\"\")","v":""},{"$f":"IFERROR(MID($V164,FIND(CHAR(160),SUBSTITUTE($V164,\"{\",CHAR(160),GO$1)),FIND(CHAR(160),SUBSTITUTE($V164,\"}\",CHAR(160),GO$1))-FIND(CHAR(160),SUBSTITUTE($V164,\"{\",CHAR(160),GO$1))+1),\"\")","v":"{Measure:Quantity}"},{"$f":"IFERROR(MID($V164,FIND(CHAR(160),SUBSTITUTE($V164,\"{\",CHAR(160),GP$1)),FIND(CHAR(160),SUBSTITUTE($V164,\"}\",CHAR(160),GP$1))-FIND(CHAR(160),SUBSTITUTE($V164,\"{\",CHAR(160),GP$1))+1),\"\")","v":"{Package Size}"},{"$f":"IFERROR(MID($W164,FIND(CHAR(160),SUBSTITUTE($W164,\"{\",CHAR(160),GQ$1)),FIND(CHAR(160),SUBSTITUTE($W164,\"}\",CHAR(160),GQ$1))-FIND(CHAR(160),SUBSTITUTE($W164,\"{\",CHAR(160),GQ$1))+1),\"\")","v":""},{"$f":"IFERROR(MID($W164,FIND(CHAR(160),SUBSTITUTE($W164,\"{\",CHAR(160),GR$1)),FIND(CHAR(160),SUBSTITUTE($W164,\"}\",CHAR(160),GR$1))-FIND(CHAR(160),SUBSTITUTE($W164,\"{\",CHAR(160),GR$1))+1),\"\")","v":""},{"$f":"IFERROR(MID($W164,FIND(CHAR(160),SUBSTITUTE($W164,\"{\",CHAR(160),GS$1)),FIND(CHAR(160),SUBSTITUTE($W164,\"}\",CHAR(160),GS$1))-FIND(CHAR(160),SUBSTITUTE($W164,\"{\",CHAR(160),GS$1))+1),\"\")","v":""},{"$f":"IFERROR(MID($W164,FIND(CHAR(160),SUBSTITUTE($W164,\"{\",CHAR(160),GT$1)),FIND(CHAR(160),SUBSTITUTE($W164,\"}\",CHAR(160),GT$1))-FIND(CHAR(160),SUBSTITUTE($W164,\"{\",CHAR(160),GT$1))+1),\"\")","v":""},{"$f":"IFERROR(MID($W164,FIND(CHAR(160),SUBSTITUTE($W164,\"{\",CHAR(160),GU$1)),FIND(CHAR(160),SUBSTITUTE($W164,\"}\",CHAR(160),GU$1))-FIND(CHAR(160),SUBSTITUTE($W164,\"{\",CHAR(160),GU$1))+1),\"\")","v":""},{"$f":"IFERROR(MID($W164,FIND(CHAR(160),SUBSTITUTE($W164,\"{\",CHAR(160),GV$1)),FIND(CHAR(160),SUBSTITUTE($W164,\"}\",CHAR(160),GV$1))-FIND(CHAR(160),SUBSTITUTE($W164,\"{\",CHAR(160),GV$1))+1),\"\")","v":""},{"$f":"IFERROR(MID($W164,FIND(CHAR(160),SUBSTITUTE($W164,\"{\",CHAR(160),GW$1)),FIND(CHAR(160),SUBSTITUTE($W164,\"}\",CHAR(160),GW$1))-FIND(CHAR(160),SUBSTITUTE($W164,\"{\",CHAR(160),GW$1))+1),\"\")","v":""},{"$f":"IFERROR(MID($W164,FIND(CHAR(160),SUBSTITUTE($W164,\"{\",CHAR(160),GX$1)),FIND(CHAR(160),SUBSTITUTE($W164,\"}\",CHAR(160),GX$1))-FIND(CHAR(160),SUBSTITUTE($W164,\"{\",CHAR(160),GX$1))+1),\"\")","v":""},{"$f":"IFERROR(MID($W164,FIND(CHAR(160),SUBSTITUTE($W164,\"{\",CHAR(160),GY$1)),FIND(CHAR(160),SUBSTITUTE($W164,\"}\",CHAR(160),GY$1))-FIND(CHAR(160),SUBSTITUTE($W164,\"{\",CHAR(160),GY$1))+1),\"\")","v":"{Measure:Quantity}"},{"$f":"IFERROR(MID($W164,FIND(CHAR(160),SUBSTITUTE($W164,\"{\",CHAR(160),GZ$1)),FIND(CHAR(160),SUBSTITUTE($W164,\"}\",CHAR(160),GZ$1))-FIND(CHAR(160),SUBSTITUTE($W164,\"{\",CHAR(160),GZ$1))+1),\"\")","v":"{Package Size}"},{"$f":"IFERROR(MID($X164,FIND(CHAR(160),SUBSTITUTE($X164,\"{\",CHAR(160),HA$1)),FIND(CHAR(160),SUBSTITUTE($X164,\"}\",CHAR(160),HA$1))-FIND(CHAR(160),SUBSTITUTE($X164,\"{\",CHAR(160),HA$1))+1),\"\")","v":""},{"$f":"IFERROR(MID($X164,FIND(CHAR(160),SUBSTITUTE($X164,\"{\",CHAR(160),HB$1)),FIND(CHAR(160),SUBSTITUTE($X164,\"}\",CHAR(160),HB$1))-FIND(CHAR(160),SUBSTITUTE($X164,\"{\",CHAR(160),HB$1))+1),\"\")","v":""},{"$f":"IFERROR(MID($X164,FIND(CHAR(160),SUBSTITUTE($X164,\"{\",CHAR(160),HC$1)),FIND(CHAR(160),SUBSTITUTE($X164,\"}\",CHAR(160),HC$1))-FIND(CHAR(160),SUBSTITUTE($X164,\"{\",CHAR(160),HC$1))+1),\"\")","v":""},{"$f":"IFERROR(MID($X164,FIND(CHAR(160),SUBSTITUTE($X164,\"{\",CHAR(160),HD$1)),FIND(CHAR(160),SUBSTITUTE($X164,\"}\",CHAR(160),HD$1))-FIND(CHAR(160),SUBSTITUTE($X164,\"{\",CHAR(160),HD$1))+1),\"\")","v":""},{"$f":"IFERROR(MID($X164,FIND(CHAR(160),SUBSTITUTE($X164,\"{\",CHAR(160),HE$1)),FIND(CHAR(160),SUBSTITUTE($X164,\"}\",CHAR(160),HE$1))-FIND(CHAR(160),SUBSTITUTE($X164,\"{\",CHAR(160),HE$1))+1),\"\")","v":""},{"$f":"IFERROR(MID($X164,FIND(CHAR(160),SUBSTITUTE($X164,\"{\",CHAR(160),HF$1)),FIND(CHAR(160),SUBSTITUTE($X164,\"}\",CHAR(160),HF$1))-FIND(CHAR(160),SUBSTITUTE($X164,\"{\",CHAR(160),HF$1))+1),\"\")","v":""},{"$f":"IFERROR(MID($X164,FIND(CHAR(160),SUBSTITUTE($X164,\"{\",CHAR(160),HG$1)),FIND(CHAR(160),SUBSTITUTE($X164,\"}\",CHAR(160),HG$1))-FIND(CHAR(160),SUBSTITUTE($X164,\"{\",CHAR(160),HG$1))+1),\"\")","v":""},{"$f":"IFERROR(MID($X164,FIND(CHAR(160),SUBSTITUTE($X164,\"{\",CHAR(160),HH$1)),FIND(CHAR(160),SUBSTITUTE($X164,\"}\",CHAR(160),HH$1))-FIND(CHAR(160),SUBSTITUTE($X164,\"{\",CHAR(160),HH$1))+1),\"\")","v":""},{"$f":"IFERROR(MID($X164,FIND(CHAR(160),SUBSTITUTE($X164,\"{\",CHAR(160),HI$1)),FIND(CHAR(160),SUBSTITUTE($X164,\"}\",CHAR(160),HI$1))-FIND(CHAR(160),SUBSTITUTE($X164,\"{\",CHAR(160),HI$1))+1),\"\")","v":"{Measure:Quantity}"},{"$f":"IFERROR(MID($X164,FIND(CHAR(160),SUBSTITUTE($X164,\"{\",CHAR(160),HJ$1)),FIND(CHAR(160),SUBSTITUTE($X164,\"}\",CHAR(160),HJ$1))-FIND(CHAR(160),SUBSTITUTE($X164,\"{\",CHAR(160),HJ$1))+1),\"\")","v":"{Package Size}"},{"$f":"IFERROR(MID($Y164,FIND(CHAR(160),SUBSTITUTE($Y164,\"{\",CHAR(160),HK$1)),FIND(CHAR(160),SUBSTITUTE($Y164,\"}\",CHAR(160),HK$1))-FIND(CHAR(160),SUBSTITUTE($Y164,\"{\",CHAR(160),HK$1))+1),\"\")","v":""},{"$f":"IFERROR(MID($Y164,FIND(CHAR(160),SUBSTITUTE($Y164,\"{\",CHAR(160),HL$1)),FIND(CHAR(160),SUBSTITUTE($Y164,\"}\",CHAR(160),HL$1))-FIND(CHAR(160),SUBSTITUTE($Y164,\"{\",CHAR(160),HL$1))+1),\"\")","v":""},{"$f":"IFERROR(MID($Y164,FIND(CHAR(160),SUBSTITUTE($Y164,\"{\",CHAR(160),HM$1)),FIND(CHAR(160),SUBSTITUTE($Y164,\"}\",CHAR(160),HM$1))-FIND(CHAR(160),SUBSTITUTE($Y164,\"{\",CHAR(160),HM$1))+1),\"\")","v":""},{"$f":"IFERROR(MID($Y164,FIND(CHAR(160),SUBSTITUTE($Y164,\"{\",CHAR(160),HN$1)),FIND(CHAR(160),SUBSTITUTE($Y164,\"}\",CHAR(160),HN$1))-FIND(CHAR(160),SUBSTITUTE($Y164,\"{\",CHAR(160),HN$1))+1),\"\")","v":""},{"$f":"IFERROR(MID($Y164,FIND(CHAR(160),SUBSTITUTE($Y164,\"{\",CHAR(160),HO$1)),FIND(CHAR(160),SUBSTITUTE($Y164,\"}\",CHAR(160),HO$1))-FIND(CHAR(160),SUBSTITUTE($Y164,\"{\",CHAR(160),HO$1))+1),\"\")","v":""},{"$f":"IFERROR(MID($Y164,FIND(CHAR(160),SUBSTITUTE($Y164,\"{\",CHAR(160),HP$1)),FIND(CHAR(160),SUBSTITUTE($Y164,\"}\",CHAR(160),HP$1))-FIND(CHAR(160),SUBSTITUTE($Y164,\"{\",CHAR(160),HP$1))+1),\"\")","v":""},{"$f":"IFERROR(MID($Y164,FIND(CHAR(160),SUBSTITUTE($Y164,\"{\",CHAR(160),HQ$1)),FIND(CHAR(160),SUBSTITUTE($Y164,\"}\",CHAR(160),HQ$1))-FIND(CHAR(160),SUBSTITUTE($Y164,\"{\",CHAR(160),HQ$1))+1),\"\")","v":""},{"$f":"IFERROR(MID($Y164,FIND(CHAR(160),SUBSTITUTE($Y164,\"{\",CHAR(160),HR$1)),FIND(CHAR(160),SUBSTITUTE($Y164,\"}\",CHAR(160),HR$1))-FIND(CHAR(160),SUBSTITUTE($Y164,\"{\",CHAR(160),HR$1))+1),\"\")","v":""},{"$f":"IFERROR(MID($Y164,FIND(CHAR(160),SUBSTITUTE($Y164,\"{\",CHAR(160),HS$1)),FIND(CHAR(160),SUBSTITUTE($Y164,\"}\",CHAR(160),HS$1))-FIND(CHAR(160),SUBSTITUTE($Y164,\"{\",CHAR(160),HS$1))+1),\"\")","v":"{Measure:Quantity}"},{"$f":"IFERROR(MID($Y164,FIND(CHAR(160),SUBSTITUTE($Y164,\"{\",CHAR(160),HT$1)),FIND(CHAR(160),SUBSTITUTE($Y164,\"}\",CHAR(160),HT$1))-FIND(CHAR(160),SUBSTITUTE($Y164,\"{\",CHAR(160),HT$1))+1),\"\")","v":"{Package Size}"},{"$f":"IFERROR(MID($Z164,FIND(CHAR(160),SUBSTITUTE($Z164,\"{\",CHAR(160),HU$1)),FIND(CHAR(160),SUBSTITUTE($Z164,\"}\",CHAR(160),HU$1))-FIND(CHAR(160),SUBSTITUTE($Z164,\"{\",CHAR(160),HU$1))+1),\"\")","v":""},{"$f":"IFERROR(MID($Z164,FIND(CHAR(160),SUBSTITUTE($Z164,\"{\",CHAR(160),HV$1)),FIND(CHAR(160),SUBSTITUTE($Z164,\"}\",CHAR(160),HV$1))-FIND(CHAR(160),SUBSTITUTE($Z164,\"{\",CHAR(160),HV$1))+1),\"\")","v":""},{"$f":"IFERROR(MID($Z164,FIND(CHAR(160),SUBSTITUTE($Z164,\"{\",CHAR(160),HW$1)),FIND(CHAR(160),SUBSTITUTE($Z164,\"}\",CHAR(160),HW$1))-FIND(CHAR(160),SUBSTITUTE($Z164,\"{\",CHAR(160),HW$1))+1),\"\")","v":""},{"$f":"IFERROR(MID($Z164,FIND(CHAR(160),SUBSTITUTE($Z164,\"{\",CHAR(160),HX$1)),FIND(CHAR(160),SUBSTITUTE($Z164,\"}\",CHAR(160),HX$1))-FIND(CHAR(160),SUBSTITUTE($Z164,\"{\",CHAR(160),HX$1))+1),\"\")","v":""},{"$f":"IFERROR(MID($Z164,FIND(CHAR(160),SUBSTITUTE($Z164,\"{\",CHAR(160),HY$1)),FIND(CHAR(160),SUBSTITUTE($Z164,\"}\",CHAR(160),HY$1))-FIND(CHAR(160),SUBSTITUTE($Z164,\"{\",CHAR(160),HY$1))+1),\"\")","v":""},{"$f":"IFERROR(MID($Z164,FIND(CHAR(160),SUBSTITUTE($Z164,\"{\",CHAR(160),HZ$1)),FIND(CHAR(160),SUBSTITUTE($Z164,\"}\",CHAR(160),HZ$1))-FIND(CHAR(160),SUBSTITUTE($Z164,\"{\",CHAR(160),HZ$1))+1),\"\")","v":""},{"$f":"IFERROR(MID($Z164,FIND(CHAR(160),SUBSTITUTE($Z164,\"{\",CHAR(160),IA$1)),FIND(CHAR(160),SUBSTITUTE($Z164,\"}\",CHAR(160),IA$1))-FIND(CHAR(160),SUBSTITUTE($Z164,\"{\",CHAR(160),IA$1))+1),\"\")","v":""},{"$f":"IFERROR(MID($Z164,FIND(CHAR(160),SUBSTITUTE($Z164,\"{\",CHAR(160),IB$1)),FIND(CHAR(160),SUBSTITUTE($Z164,\"}\",CHAR(160),IB$1))-FIND(CHAR(160),SUBSTITUTE($Z164,\"{\",CHAR(160),IB$1))+1),\"\")","v":""},{"$f":"IFERROR(MID($Z164,FIND(CHAR(160),SUBSTITUTE($Z164,\"{\",CHAR(160),IC$1)),FIND(CHAR(160),SUBSTITUTE($Z164,\"}\",CHAR(160),IC$1))-FIND(CHAR(160),SUBSTITUTE($Z164,\"{\",CHAR(160),IC$1))+1),\"\")","v":"{Measure:Quantity}"},{"$f":"IFERROR(MID($Z164,FIND(CHAR(160),SUBSTITUTE($Z164,\"{\",CHAR(160),ID$1)),FIND(CHAR(160),SUBSTITUTE($Z164,\"}\",CHAR(160),ID$1))-FIND(CHAR(160),SUBSTITUTE($Z164,\"{\",CHAR(160),ID$1))+1),\"\")","v":"{Package Size}"},{"$f":"IFERROR(MID($AA164,FIND(CHAR(160),SUBSTITUTE($AA164,\"{\",CHAR(160),IE$1)),FIND(CHAR(160),SUBSTITUTE($AA164,\"}\",CHAR(160),IE$1))-FIND(CHAR(160),SUBSTITUTE($AA164,\"{\",CHAR(160),IE$1))+1),\"\")","v":""},{"$f":"IFERROR(MID($AA164,FIND(CHAR(160),SUBSTITUTE($AA164,\"{\",CHAR(160),IF$1)),FIND(CHAR(160),SUBSTITUTE($AA164,\"}\",CHAR(160),IF$1))-FIND(CHAR(160),SUBSTITUTE($AA164,\"{\",CHAR(160),IF$1))+1),\"\")","v":""},{"$f":"IFERROR(MID($AA164,FIND(CHAR(160),SUBSTITUTE($AA164,\"{\",CHAR(160),IG$1)),FIND(CHAR(160),SUBSTITUTE($AA164,\"}\",CHAR(160),IG$1))-FIND(CHAR(160),SUBSTITUTE($AA164,\"{\",CHAR(160),IG$1))+1),\"\")","v":""},{"$f":"IFERROR(MID($AA164,FIND(CHAR(160),SUBSTITUTE($AA164,\"{\",CHAR(160),IH$1)),FIND(CHAR(160),SUBSTITUTE($AA164,\"}\",CHAR(160),IH$1))-FIND(CHAR(160),SUBSTITUTE($AA164,\"{\",CHAR(160),IH$1))+1),\"\")","v":""},{"$f":"IFERROR(MID($AA164,FIND(CHAR(160),SUBSTITUTE($AA164,\"{\",CHAR(160),II$1)),FIND(CHAR(160),SUBSTITUTE($AA164,\"}\",CHAR(160),II$1))-FIND(CHAR(160),SUBSTITUTE($AA164,\"{\",CHAR(160),II$1))+1),\"\")","v":""},{"$f":"IFERROR(MID($AA164,FIND(CHAR(160),SUBSTITUTE($AA164,\"{\",CHAR(160),IJ$1)),FIND(CHAR(160),SUBSTITUTE($AA164,\"}\",CHAR(160),IJ$1))-FIND(CHAR(160),SUBSTITUTE($AA164,\"{\",CHAR(160),IJ$1))+1),\"\")","v":""},{"$f":"IFERROR(MID($AA164,FIND(CHAR(160),SUBSTITUTE($AA164,\"{\",CHAR(160),IK$1)),FIND(CHAR(160),SUBSTITUTE($AA164,\"}\",CHAR(160),IK$1))-FIND(CHAR(160),SUBSTITUTE($AA164,\"{\",CHAR(160),IK$1))+1),\"\")","v":""},{"$f":"IFERROR(MID($AA164,FIND(CHAR(160),SUBSTITUTE($AA164,\"{\",CHAR(160),IL$1)),FIND(CHAR(160),SUBSTITUTE($AA164,\"}\",CHAR(160),IL$1))-FIND(CHAR(160),SUBSTITUTE($AA164,\"{\",CHAR(160),IL$1))+1),\"\")","v":""},{"$f":"IFERROR(MID($AA164,FIND(CHAR(160),SUBSTITUTE($AA164,\"{\",CHAR(160),IM$1)),FIND(CHAR(160),SUBSTITUTE($AA164,\"}\",CHAR(160),IM$1))-FIND(CHAR(160),SUBSTITUTE($AA164,\"{\",CHAR(160),IM$1))+1),\"\")","v":"{Measure:Quantity}"},{"$f":"IFERROR(MID($AA164,FIND(CHAR(160),SUBSTITUTE($AA164,\"{\",CHAR(160),IN$1)),FIND(CHAR(160),SUBSTITUTE($AA164,\"}\",CHAR(160),IN$1))-FIND(CHAR(160),SUBSTITUTE($AA164,\"{\",CHAR(160),IN$1))+1),\"\")","v":"{Package Size}"},{"$f":"IFERROR(MID($AB164,FIND(CHAR(160),SUBSTITUTE($AB164,\"{\",CHAR(160),IO$1)),FIND(CHAR(160),SUBSTITUTE($AB164,\"}\",CHAR(160),IO$1))-FIND(CHAR(160),SUBSTITUTE($AB164,\"{\",CHAR(160),IO$1))+1),\"\")","v":""},{"$f":"IFERROR(MID($AB164,FIND(CHAR(160),SUBSTITUTE($AB164,\"{\",CHAR(160),IP$1)),FIND(CHAR(160),SUBSTITUTE($AB164,\"}\",CHAR(160),IP$1))-FIND(CHAR(160),SUBSTITUTE($AB164,\"{\",CHAR(160),IP$1))+1),\"\")","v":""},{"$f":"IFERROR(MID($AB164,FIND(CHAR(160),SUBSTITUTE($AB164,\"{\",CHAR(160),IQ$1)),FIND(CHAR(160),SUBSTITUTE($AB164,\"}\",CHAR(160),IQ$1))-FIND(CHAR(160),SUBSTITUTE($AB164,\"{\",CHAR(160),IQ$1))+1),\"\")","v":""},{"$f":"IFERROR(MID($AB164,FIND(CHAR(160),SUBSTITUTE($AB164,\"{\",CHAR(160),IR$1)),FIND(CHAR(160),SUBSTITUTE($AB164,\"}\",CHAR(160),IR$1))-FIND(CHAR(160),SUBSTITUTE($AB164,\"{\",CHAR(160),IR$1))+1),\"\")","v":""},{"$f":"IFERROR(MID($AB164,FIND(CHAR(160),SUBSTITUTE($AB164,\"{\",CHAR(160),IS$1)),FIND(CHAR(160),SUBSTITUTE($AB164,\"}\",CHAR(160),IS$1))-FIND(CHAR(160),SUBSTITUTE($AB164,\"{\",CHAR(160),IS$1))+1),\"\")","v":""},{"$f":"IFERROR(MID($AB164,FIND(CHAR(160),SUBSTITUTE($AB164,\"{\",CHAR(160),IT$1)),FIND(CHAR(160),SUBSTITUTE($AB164,\"}\",CHAR(160),IT$1))-FIND(CHAR(160),SUBSTITUTE($AB164,\"{\",CHAR(160),IT$1))+1),\"\")","v":""},{"$f":"IFERROR(MID($AB164,FIND(CHAR(160),SUBSTITUTE($AB164,\"{\",CHAR(160),IU$1)),FIND(CHAR(160),SUBSTITUTE($AB164,\"}\",CHAR(160),IU$1))-FIND(CHAR(160),SUBSTITUTE($AB164,\"{\",CHAR(160),IU$1))+1),\"\")","v":""},{"$f":"IFERROR(MID($AB164,FIND(CHAR(160),SUBSTITUTE($AB164,\"{\",CHAR(160),IV$1)),FIND(CHAR(160),SUBSTITUTE($AB164,\"}\",CHAR(160),IV$1))-FIND(CHAR(160),SUBSTITUTE($AB164,\"{\",CHAR(160),IV$1))+1),\"\")","v":""},{"$f":"IFERROR(MID($AB164,FIND(CHAR(160),SUBSTITUTE($AB164,\"{\",CHAR(160),IW$1)),FIND(CHAR(160),SUBSTITUTE($AB164,\"}\",CHAR(160),IW$1))-FIND(CHAR(160),SUBSTITUTE($AB164,\"{\",CHAR(160),IW$1))+1),\"\")","v":""},{"$f":"IFERROR(MID($AB164,FIND(CHAR(160),SUBSTITUTE($AB164,\"{\",CHAR(160),IX$1)),FIND(CHAR(160),SUBSTITUTE($AB164,\"}\",CHAR(160),IX$1))-FIND(CHAR(160),SUBSTITUTE($AB164,\"{\",CHAR(160),IX$1))+1),\"\")","v":""},null,{"$f":"10-COUNTIF(DU164:ED164,\"\")","v":3}]
["Distributor Lighting","Specialty LED  - MR16","LEDMR16","2021-07-01","2022-06-30","Calculated","{Measure:Quantity}*{Package Size}*5.22",0,"Calculated","{Measure:Quantity}*{Rebate per Package}",0,"2021-07-01","2022-06-30","Calculated","{Measure:Quantity}*{Package Size}*52",null,null,"{Measure:Quantity}*{Package Size}*1.0747*0.03",null,null,"{Measure:Quantity}*{Package Size}*{Factor:WinterCF}*0.03","{Measure:Quantity}*{Package Size}*{Factor:SummerCF}*1.0747*0.03","{Measure:Quantity}*{Package Size}*10*-0.007","{Measure:Quantity}*{Package Size}*-0.004","{Measure:Quantity}*{Package Size}*-0.034","{Measure:Quantity}*{Package Size}*-0.001","{Measure:Quantity}*{Package Size}*-0.008",null,"2021-07-01","2022-06-30",2,0.254,0.309,0.42299999999999999,0.249,0.21,0.11799999999999999,0.99,1,1,0.51,0,null,{"$f":"DU165","v":"{Measure:Quantity}"},1,{"$f":"DV165","v":"{Package Size}"},1,{"$f":"DW165","v":"{Rebate per Package}"},{"$f":"CW165*CO165","v":0},{"$f":"DX165","v":""},null,{"$f":"DY165","v":""},null,{"$f":"DZ165","v":""},null,{"$f":"EA165","v":""},null,{"$f":"EB165","v":""},null,{"$f":"EC165","v":""},null,{"$f":"ED165","v":""},null,{"$f":"AS165*AU165*52","v":52},0,0,{"$f":"AS165*AU165*1.0747*0.03","v":3.2240999999999999E-2},0,0,{"$f":"AS165*AU165*AF165*0.03","v":7.62E-3},{"$f":"AS165*AU165*AG165*1.0747*0.03","v":9.9624689999999998E-3},{"$f":"AS165*AU165*10*-0.007","v":-7.0000000000000007E-2},{"$f":"AS165*AU165*-0.004","v":-4.0000000000000001E-3},{"$f":"AS165*AU165*-0.034","v":-3.4000000000000002E-2},{"$f":"AS165*AU165*-0.001","v":-1E-3},{"$f":"AS165*AU165*-0.008","v":-8.0000000000000002E-3},0,null,"Res","Default DR",{"$f":"Benefits(BL165,BR165,BS165,BT165,BU165,BV165,BW165,BX165,BY165,BZ165,AE165,AH165,AI165,AJ165,AK165,AL165,AM165,AN165,AO165,AP165,CA165,CB165)","v":12.395122430259727},7.4911820489468779,-0.25163575526721454,-2.2261910397198443,-7.431345129571984E-2,-0.3629733072373541,-0.27555956768871592,0,0,{"$f":"SUMPRODUCT(CC165:CK165,--(CC165:CK165>0))","v":19.886304479206604},{"$f":"-SUMPRODUCT(CC165:CK165,--(CC165:CK165<0))","v":3.1906731212088486},null,{"$f":"AS165*AU165*5.22","v":5.22},null,null,{"$f":"CM165+CO165","v":8.4106731212088484},{"$f":"IF(NetOrGross=\"Net\",(1-AO165+AP165),1)","v":1},{"$f":"(SUMPRODUCT(CC165:CJ165,--(CC165:CJ165>0))+CN165)*CS165/((-SUMPRODUCT(CC165:CJ165,--(CC165:CJ165<0))+MAX(CO165,CV165)+CP165+CQ165)*CS165+IF(FRIncentives=\"Yes\",CV165*(1-CS165),0))","v":2.3644129539477796},1,{"$f":"AS165*AW165","v":0},{"$f":"CW164","v":0},"Electric","y",null,{"$f":"IF(F165=\"Manual Entry\",\"Manual\",IF(G165=\"\",0,\"X=\"&SUBSTITUTE(SUBSTITUTE(SUBSTITUTE(SUBSTITUTE(SUBSTITUTE(SUBSTITUTE(SUBSTITUTE(SUBSTITUTE(SUBSTITUTE(SUBSTITUTE(SUBSTITUTE(SUBSTITUTE(G165,$ED165,$ED$2&ROW($ED165)),$EC165,$EC$2&ROW($EC165)),$EB165,$EB$2&ROW($EB165)),$EA165,$EA$2&ROW($EA165)),$DZ165,$DZ$2&ROW($DZ165)),$DY165,$DY$2&ROW($DY165)),$DX165,$DX$2&ROW($DX165)),$DW165,$DW$2&ROW($DW165)),$DV165,$DV$2&ROW($DV165)),$DU165,$DU$2&ROW($DU165)),$DT165,$DT$2&ROW($DT165)),$DS165,$DS$2&ROW($DS165))))","v":"X=AS165*AU165*5.22"},{"$f":"IF(I165=\"Manual Entry\",\"Manual\",IF(J165=\"\",0,\"X=\"&SUBSTITUTE(SUBSTITUTE(SUBSTITUTE(SUBSTITUTE(SUBSTITUTE(SUBSTITUTE(SUBSTITUTE(SUBSTITUTE(SUBSTITUTE(SUBSTITUTE(SUBSTITUTE(SUBSTITUTE(J165,$ED165,$ED$2&ROW($ED165)),$EC165,$EC$2&ROW($EC165)),$EB165,$EB$2&ROW($EB165)),$EA165,$EA$2&ROW($EA165)),$DZ165,$DZ$2&ROW($DZ165)),$DY165,$DY$2&ROW($DY165)),$DX165,$DX$2&ROW($DX165)),$DW165,$DW$2&ROW($DW165)),$DV165,$DV$2&ROW($DV165)),$DU165,$DU$2&ROW($DU165)),$DT165,$DT$2&ROW($DT165)),$DS165,$DS$2&ROW($DS165))))","v":"X=AS165*AW165"},{"$f":"IF(O165=\"\",0,\"X=\"&SUBSTITUTE(SUBSTITUTE(SUBSTITUTE(SUBSTITUTE(SUBSTITUTE(SUBSTITUTE(SUBSTITUTE(SUBSTITUTE(SUBSTITUTE(SUBSTITUTE(SUBSTITUTE(SUBSTITUTE(O165,$ED165,$ED$2&ROW($ED165)),$EC165,$EC$2&ROW($EC165)),$EB165,$EB$2&ROW($EB165)),$EA165,$EA$2&ROW($EA165)),$DZ165,$DZ$2&ROW($DZ165)),$DY165,$DY$2&ROW($DY165)),$DX165,$DX$2&ROW($DX165)),$DW165,$DW$2&ROW($DW165)),$DV165,$DV$2&ROW($DV165)),$DU165,$DU$2&ROW($DU165)),$DT165,$DT$2&ROW($DT165)),$DS165,$DS$2&ROW($DS165)))","v":"X=AS165*AU165*52"},{"$f":"IF(P165=\"\",0,\"X=\"&SUBSTITUTE(SUBSTITUTE(SUBSTITUTE(SUBSTITUTE(SUBSTITUTE(SUBSTITUTE(SUBSTITUTE(SUBSTITUTE(SUBSTITUTE(SUBSTITUTE(SUBSTITUTE(SUBSTITUTE(P165,$ED165,$ED$2&ROW($ED165)),$EC165,$EC$2&ROW($EC165)),$EB165,$EB$2&ROW($EB165)),$EA165,$EA$2&ROW($EA165)),$DZ165,$DZ$2&ROW($DZ165)),$DY165,$DY$2&ROW($DY165)),$DX165,$DX$2&ROW($DX165)),$DW165,$DW$2&ROW($DW165)),$DV165,$DV$2&ROW($DV165)),$DU165,$DU$2&ROW($DU165)),$DT165,$DT$2&ROW($DT165)),$DS165,$DS$2&ROW($DS165)))","v":0},{"$f":"IF(Q165=\"\",0,\"X=\"&SUBSTITUTE(SUBSTITUTE(SUBSTITUTE(SUBSTITUTE(SUBSTITUTE(SUBSTITUTE(SUBSTITUTE(SUBSTITUTE(SUBSTITUTE(SUBSTITUTE(SUBSTITUTE(SUBSTITUTE(Q165,$ED165,$ED$2&ROW($ED165)),$EC165,$EC$2&ROW($EC165)),$EB165,$EB$2&ROW($EB165)),$EA165,$EA$2&ROW($EA165)),$DZ165,$DZ$2&ROW($DZ165)),$DY165,$DY$2&ROW($DY165)),$DX165,$DX$2&ROW($DX165)),$DW165,$DW$2&ROW($DW165)),$DV165,$DV$2&ROW($DV165)),$DU165,$DU$2&ROW($DU165)),$DT165,$DT$2&ROW($DT165)),$DS165,$DS$2&ROW($DS165)))","v":0},{"$f":"IF(R165=\"\",0,\"X=\"&SUBSTITUTE(SUBSTITUTE(SUBSTITUTE(SUBSTITUTE(SUBSTITUTE(SUBSTITUTE(SUBSTITUTE(SUBSTITUTE(SUBSTITUTE(SUBSTITUTE(SUBSTITUTE(SUBSTITUTE(R165,$ED165,$ED$2&ROW($ED165)),$EC165,$EC$2&ROW($EC165)),$EB165,$EB$2&ROW($EB165)),$EA165,$EA$2&ROW($EA165)),$DZ165,$DZ$2&ROW($DZ165)),$DY165,$DY$2&ROW($DY165)),$DX165,$DX$2&ROW($DX165)),$DW165,$DW$2&ROW($DW165)),$DV165,$DV$2&ROW($DV165)),$DU165,$DU$2&ROW($DU165)),$DT165,$DT$2&ROW($DT165)),$DS165,$DS$2&ROW($DS165)))","v":"X=AS165*AU165*1.0747*0.03"},{"$f":"IF(S165=\"\",0,\"X=\"&SUBSTITUTE(SUBSTITUTE(SUBSTITUTE(SUBSTITUTE(SUBSTITUTE(SUBSTITUTE(SUBSTITUTE(SUBSTITUTE(SUBSTITUTE(SUBSTITUTE(SUBSTITUTE(SUBSTITUTE(S165,$ED165,$ED$2&ROW($ED165)),$EC165,$EC$2&ROW($EC165)),$EB165,$EB$2&ROW($EB165)),$EA165,$EA$2&ROW($EA165)),$DZ165,$DZ$2&ROW($DZ165)),$DY165,$DY$2&ROW($DY165)),$DX165,$DX$2&ROW($DX165)),$DW165,$DW$2&ROW($DW165)),$DV165,$DV$2&ROW($DV165)),$DU165,$DU$2&ROW($DU165)),$DT165,$DT$2&ROW($DT165)),$DS165,$DS$2&ROW($DS165)))","v":0},{"$f":"IF(T165=\"\",0,\"X=\"&SUBSTITUTE(SUBSTITUTE(SUBSTITUTE(SUBSTITUTE(SUBSTITUTE(SUBSTITUTE(SUBSTITUTE(SUBSTITUTE(SUBSTITUTE(SUBSTITUTE(SUBSTITUTE(SUBSTITUTE(T165,$ED165,$ED$2&ROW($ED165)),$EC165,$EC$2&ROW($EC165)),$EB165,$EB$2&ROW($EB165)),$EA165,$EA$2&ROW($EA165)),$DZ165,$DZ$2&ROW($DZ165)),$DY165,$DY$2&ROW($DY165)),$DX165,$DX$2&ROW($DX165)),$DW165,$DW$2&ROW($DW165)),$DV165,$DV$2&ROW($DV165)),$DU165,$DU$2&ROW($DU165)),$DT165,$DT$2&ROW($DT165)),$DS165,$DS$2&ROW($DS165)))","v":0},{"$f":"IF(U165=\"\",0,\"X=\"&SUBSTITUTE(SUBSTITUTE(SUBSTITUTE(SUBSTITUTE(SUBSTITUTE(SUBSTITUTE(SUBSTITUTE(SUBSTITUTE(SUBSTITUTE(SUBSTITUTE(SUBSTITUTE(SUBSTITUTE(U165,$ED165,$ED$2&ROW($ED165)),$EC165,$EC$2&ROW($EC165)),$EB165,$EB$2&ROW($EB165)),$EA165,$EA$2&ROW($EA165)),$DZ165,$DZ$2&ROW($DZ165)),$DY165,$DY$2&ROW($DY165)),$DX165,$DX$2&ROW($DX165)),$DW165,$DW$2&ROW($DW165)),$DV165,$DV$2&ROW($DV165)),$DU165,$DU$2&ROW($DU165)),$DT165,$DT$2&ROW($DT165)),$DS165,$DS$2&ROW($DS165)))","v":"X=AS165*AU165*AF165*0.03"},{"$f":"IF(V165=\"\",0,\"X=\"&SUBSTITUTE(SUBSTITUTE(SUBSTITUTE(SUBSTITUTE(SUBSTITUTE(SUBSTITUTE(SUBSTITUTE(SUBSTITUTE(SUBSTITUTE(SUBSTITUTE(SUBSTITUTE(SUBSTITUTE(V165,$ED165,$ED$2&ROW($ED165)),$EC165,$EC$2&ROW($EC165)),$EB165,$EB$2&ROW($EB165)),$EA165,$EA$2&ROW($EA165)),$DZ165,$DZ$2&ROW($DZ165)),$DY165,$DY$2&ROW($DY165)),$DX165,$DX$2&ROW($DX165)),$DW165,$DW$2&ROW($DW165)),$DV165,$DV$2&ROW($DV165)),$DU165,$DU$2&ROW($DU165)),$DT165,$DT$2&ROW($DT165)),$DS165,$DS$2&ROW($DS165)))","v":"X=AS165*AU165*AG165*1.0747*0.03"},{"$f":"IF(W165=\"\",0,\"X=\"&SUBSTITUTE(SUBSTITUTE(SUBSTITUTE(SUBSTITUTE(SUBSTITUTE(SUBSTITUTE(SUBSTITUTE(SUBSTITUTE(SUBSTITUTE(SUBSTITUTE(SUBSTITUTE(SUBSTITUTE(W165,$ED165,$ED$2&ROW($ED165)),$EC165,$EC$2&ROW($EC165)),$EB165,$EB$2&ROW($EB165)),$EA165,$EA$2&ROW($EA165)),$DZ165,$DZ$2&ROW($DZ165)),$DY165,$DY$2&ROW($DY165)),$DX165,$DX$2&ROW($DX165)),$DW165,$DW$2&ROW($DW165)),$DV165,$DV$2&ROW($DV165)),$DU165,$DU$2&ROW($DU165)),$DT165,$DT$2&ROW($DT165)),$DS165,$DS$2&ROW($DS165)))","v":"X=AS165*AU165*10*-0.007"},{"$f":"IF(X165=\"\",0,\"X=\"&SUBSTITUTE(SUBSTITUTE(SUBSTITUTE(SUBSTITUTE(SUBSTITUTE(SUBSTITUTE(SUBSTITUTE(SUBSTITUTE(SUBSTITUTE(SUBSTITUTE(SUBSTITUTE(SUBSTITUTE(X165,$ED165,$ED$2&ROW($ED165)),$EC165,$EC$2&ROW($EC165)),$EB165,$EB$2&ROW($EB165)),$EA165,$EA$2&ROW($EA165)),$DZ165,$DZ$2&ROW($DZ165)),$DY165,$DY$2&ROW($DY165)),$DX165,$DX$2&ROW($DX165)),$DW165,$DW$2&ROW($DW165)),$DV165,$DV$2&ROW($DV165)),$DU165,$DU$2&ROW($DU165)),$DT165,$DT$2&ROW($DT165)),$DS165,$DS$2&ROW($DS165)))","v":"X=AS165*AU165*-0.004"},{"$f":"IF(Y165=\"\",0,\"X=\"&SUBSTITUTE(SUBSTITUTE(SUBSTITUTE(SUBSTITUTE(SUBSTITUTE(SUBSTITUTE(SUBSTITUTE(SUBSTITUTE(SUBSTITUTE(SUBSTITUTE(SUBSTITUTE(SUBSTITUTE(Y165,$ED165,$ED$2&ROW($ED165)),$EC165,$EC$2&ROW($EC165)),$EB165,$EB$2&ROW($EB165)),$EA165,$EA$2&ROW($EA165)),$DZ165,$DZ$2&ROW($DZ165)),$DY165,$DY$2&ROW($DY165)),$DX165,$DX$2&ROW($DX165)),$DW165,$DW$2&ROW($DW165)),$DV165,$DV$2&ROW($DV165)),$DU165,$DU$2&ROW($DU165)),$DT165,$DT$2&ROW($DT165)),$DS165,$DS$2&ROW($DS165)))","v":"X=AS165*AU165*-0.034"},{"$f":"IF(Z165=\"\",0,\"X=\"&SUBSTITUTE(SUBSTITUTE(SUBSTITUTE(SUBSTITUTE(SUBSTITUTE(SUBSTITUTE(SUBSTITUTE(SUBSTITUTE(SUBSTITUTE(SUBSTITUTE(SUBSTITUTE(SUBSTITUTE(Z165,$ED165,$ED$2&ROW($ED165)),$EC165,$EC$2&ROW($EC165)),$EB165,$EB$2&ROW($EB165)),$EA165,$EA$2&ROW($EA165)),$DZ165,$DZ$2&ROW($DZ165)),$DY165,$DY$2&ROW($DY165)),$DX165,$DX$2&ROW($DX165)),$DW165,$DW$2&ROW($DW165)),$DV165,$DV$2&ROW($DV165)),$DU165,$DU$2&ROW($DU165)),$DT165,$DT$2&ROW($DT165)),$DS165,$DS$2&ROW($DS165)))","v":"X=AS165*AU165*-0.001"},{"$f":"IF(AA165=\"\",0,\"X=\"&SUBSTITUTE(SUBSTITUTE(SUBSTITUTE(SUBSTITUTE(SUBSTITUTE(SUBSTITUTE(SUBSTITUTE(SUBSTITUTE(SUBSTITUTE(SUBSTITUTE(SUBSTITUTE(SUBSTITUTE(AA165,$ED165,$ED$2&ROW($ED165)),$EC165,$EC$2&ROW($EC165)),$EB165,$EB$2&ROW($EB165)),$EA165,$EA$2&ROW($EA165)),$DZ165,$DZ$2&ROW($DZ165)),$DY165,$DY$2&ROW($DY165)),$DX165,$DX$2&ROW($DX165)),$DW165,$DW$2&ROW($DW165)),$DV165,$DV$2&ROW($DV165)),$DU165,$DU$2&ROW($DU165)),$DT165,$DT$2&ROW($DT165)),$DS165,$DS$2&ROW($DS165)))","v":"X=AS165*AU165*-0.008"},{"$f":"IF(AB165=\"\",0,\"X=\"&SUBSTITUTE(SUBSTITUTE(SUBSTITUTE(SUBSTITUTE(SUBSTITUTE(SUBSTITUTE(SUBSTITUTE(SUBSTITUTE(SUBSTITUTE(SUBSTITUTE(SUBSTITUTE(SUBSTITUTE(AB165,$ED165,$ED$2&ROW($ED165)),$EC165,$EC$2&ROW($EC165)),$EB165,$EB$2&ROW($EB165)),$EA165,$EA$2&ROW($EA165)),$DZ165,$DZ$2&ROW($DZ165)),$DY165,$DY$2&ROW($DY165)),$DX165,$DX$2&ROW($DX165)),$DW165,$DW$2&ROW($DW165)),$DV165,$DV$2&ROW($DV165)),$DU165,$DU$2&ROW($DU165)),$DT165,$DT$2&ROW($DT165)),$DS165,$DS$2&ROW($DS165)))","v":0},null,null,"{Factor:WinterCF}","{Factor:SummerCF}",{"$f":"IFERROR(INDEX($EG165:$IV165,MATCH(0,COUNTIF($DR165:DT165,$EG165:$IV165),0)),\"\")","v":"{Measure:Quantity}"},{"$f":"IFERROR(INDEX($EG165:$IV165,MATCH(0,COUNTIF($DR165:DU165,$EG165:$IV165),0)),\"\")","v":"{Package Size}"},{"$f":"IFERROR(INDEX($EG165:$IV165,MATCH(0,COUNTIF($DR165:DV165,$EG165:$IV165),0)),\"\")","v":"{Rebate per Package}"},{"$f":"IFERROR(INDEX($EG165:$IV165,MATCH(0,COUNTIF($DR165:DW165,$EG165:$IV165),0)),\"\")","v":""},{"$f":"IFERROR(INDEX($EG165:$IV165,MATCH(0,COUNTIF($DR165:DX165,$EG165:$IV165),0)),\"\")","v":""},{"$f":"IFERROR(INDEX($EG165:$IV165,MATCH(0,COUNTIF($DR165:DY165,$EG165:$IV165),0)),\"\")","v":""},{"$f":"IFERROR(INDEX($EG165:$IV165,MATCH(0,COUNTIF($DR165:DZ165,$EG165:$IV165),0)),\"\")","v":""},{"$f":"IFERROR(INDEX($EG165:$IV165,MATCH(0,COUNTIF($DR165:EA165,$EG165:$IV165),0)),\"\")","v":""},{"$f":"IFERROR(INDEX($EG165:$IV165,MATCH(0,COUNTIF($DR165:EB165,$EG165:$IV165),0)),\"\")","v":""},{"$f":"IFERROR(INDEX($EG165:$IV165,MATCH(0,COUNTIF($DR165:EC165,$EG165:$IV165),0)),\"\")","v":""},null,null,{"$f":"IFERROR(MID($G165,FIND(CHAR(160),SUBSTITUTE($G165,\"{\",CHAR(160),EG$1)),FIND(CHAR(160),SUBSTITUTE($G165,\"}\",CHAR(160),EG$1))-FIND(CHAR(160),SUBSTITUTE($G165,\"{\",CHAR(160),EG$1))+1),\"\")","v":"{Measure:Quantity}"},{"$f":"IFERROR(MID($G165,FIND(CHAR(160),SUBSTITUTE($G165,\"{\",CHAR(160),EH$1)),FIND(CHAR(160),SUBSTITUTE($G165,\"}\",CHAR(160),EH$1))-FIND(CHAR(160),SUBSTITUTE($G165,\"{\",CHAR(160),EH$1))+1),\"\")","v":"{Package Size}"},{"$f":"IFERROR(MID($G165,FIND(CHAR(160),SUBSTITUTE($G165,\"{\",CHAR(160),EI$1)),FIND(CHAR(160),SUBSTITUTE($G165,\"}\",CHAR(160),EI$1))-FIND(CHAR(160),SUBSTITUTE($G165,\"{\",CHAR(160),EI$1))+1),\"\")","v":""},{"$f":"IFERROR(MID($G165,FIND(CHAR(160),SUBSTITUTE($G165,\"{\",CHAR(160),EJ$1)),FIND(CHAR(160),SUBSTITUTE($G165,\"}\",CHAR(160),EJ$1))-FIND(CHAR(160),SUBSTITUTE($G165,\"{\",CHAR(160),EJ$1))+1),\"\")","v":""},{"$f":"IFERROR(MID($G165,FIND(CHAR(160),SUBSTITUTE($G165,\"{\",CHAR(160),EK$1)),FIND(CHAR(160),SUBSTITUTE($G165,\"}\",CHAR(160),EK$1))-FIND(CHAR(160),SUBSTITUTE($G165,\"{\",CHAR(160),EK$1))+1),\"\")","v":""},{"$f":"IFERROR(MID($G165,FIND(CHAR(160),SUBSTITUTE($G165,\"{\",CHAR(160),EL$1)),FIND(CHAR(160),SUBSTITUTE($G165,\"}\",CHAR(160),EL$1))-FIND(CHAR(160),SUBSTITUTE($G165,\"{\",CHAR(160),EL$1))+1),\"\")","v":""},{"$f":"IFERROR(MID($G165,FIND(CHAR(160),SUBSTITUTE($G165,\"{\",CHAR(160),EM$1)),FIND(CHAR(160),SUBSTITUTE($G165,\"}\",CHAR(160),EM$1))-FIND(CHAR(160),SUBSTITUTE($G165,\"{\",CHAR(160),EM$1))+1),\"\")","v":""},{"$f":"IFERROR(MID($G165,FIND(CHAR(160),SUBSTITUTE($G165,\"{\",CHAR(160),EN$1)),FIND(CHAR(160),SUBSTITUTE($G165,\"}\",CHAR(160),EN$1))-FIND(CHAR(160),SUBSTITUTE($G165,\"{\",CHAR(160),EN$1))+1),\"\")","v":""},{"$f":"IFERROR(MID($G165,FIND(CHAR(160),SUBSTITUTE($G165,\"{\",CHAR(160),EO$1)),FIND(CHAR(160),SUBSTITUTE($G165,\"}\",CHAR(160),EO$1))-FIND(CHAR(160),SUBSTITUTE($G165,\"{\",CHAR(160),EO$1))+1),\"\")","v":""},{"$f":"IFERROR(MID($G165,FIND(CHAR(160),SUBSTITUTE($G165,\"{\",CHAR(160),EP$1)),FIND(CHAR(160),SUBSTITUTE($G165,\"}\",CHAR(160),EP$1))-FIND(CHAR(160),SUBSTITUTE($G165,\"{\",CHAR(160),EP$1))+1),\"\")","v":""},{"$f":"IFERROR(MID($J165,FIND(CHAR(160),SUBSTITUTE($J165,\"{\",CHAR(160),EQ$1)),FIND(CHAR(160),SUBSTITUTE($J165,\"}\",CHAR(160),EQ$1))-FIND(CHAR(160),SUBSTITUTE($J165,\"{\",CHAR(160),EQ$1))+1),\"\")","v":"{Measure:Quantity}"},{"$f":"IFERROR(MID($J165,FIND(CHAR(160),SUBSTITUTE($J165,\"{\",CHAR(160),ER$1)),FIND(CHAR(160),SUBSTITUTE($J165,\"}\",CHAR(160),ER$1))-FIND(CHAR(160),SUBSTITUTE($J165,\"{\",CHAR(160),ER$1))+1),\"\")","v":"{Rebate per Package}"},{"$f":"IFERROR(MID($J165,FIND(CHAR(160),SUBSTITUTE($J165,\"{\",CHAR(160),ES$1)),FIND(CHAR(160),SUBSTITUTE($J165,\"}\",CHAR(160),ES$1))-FIND(CHAR(160),SUBSTITUTE($J165,\"{\",CHAR(160),ES$1))+1),\"\")","v":""},{"$f":"IFERROR(MID($J165,FIND(CHAR(160),SUBSTITUTE($J165,\"{\",CHAR(160),ET$1)),FIND(CHAR(160),SUBSTITUTE($J165,\"}\",CHAR(160),ET$1))-FIND(CHAR(160),SUBSTITUTE($J165,\"{\",CHAR(160),ET$1))+1),\"\")","v":""},{"$f":"IFERROR(MID($J165,FIND(CHAR(160),SUBSTITUTE($J165,\"{\",CHAR(160),EU$1)),FIND(CHAR(160),SUBSTITUTE($J165,\"}\",CHAR(160),EU$1))-FIND(CHAR(160),SUBSTITUTE($J165,\"{\",CHAR(160),EU$1))+1),\"\")","v":""},{"$f":"IFERROR(MID($J165,FIND(CHAR(160),SUBSTITUTE($J165,\"{\",CHAR(160),EV$1)),FIND(CHAR(160),SUBSTITUTE($J165,\"}\",CHAR(160),EV$1))-FIND(CHAR(160),SUBSTITUTE($J165,\"{\",CHAR(160),EV$1))+1),\"\")","v":""},{"$f":"IFERROR(MID($J165,FIND(CHAR(160),SUBSTITUTE($J165,\"{\",CHAR(160),EW$1)),FIND(CHAR(160),SUBSTITUTE($J165,\"}\",CHAR(160),EW$1))-FIND(CHAR(160),SUBSTITUTE($J165,\"{\",CHAR(160),EW$1))+1),\"\")","v":""},{"$f":"IFERROR(MID($J165,FIND(CHAR(160),SUBSTITUTE($J165,\"{\",CHAR(160),EX$1)),FIND(CHAR(160),SUBSTITUTE($J165,\"}\",CHAR(160),EX$1))-FIND(CHAR(160),SUBSTITUTE($J165,\"{\",CHAR(160),EX$1))+1),\"\")","v":""},{"$f":"IFERROR(MID($J165,FIND(CHAR(160),SUBSTITUTE($J165,\"{\",CHAR(160),EY$1)),FIND(CHAR(160),SUBSTITUTE($J165,\"}\",CHAR(160),EY$1))-FIND(CHAR(160),SUBSTITUTE($J165,\"{\",CHAR(160),EY$1))+1),\"\")","v":""},{"$f":"IFERROR(MID($J165,FIND(CHAR(160),SUBSTITUTE($J165,\"{\",CHAR(160),EZ$1)),FIND(CHAR(160),SUBSTITUTE($J165,\"}\",CHAR(160),EZ$1))-FIND(CHAR(160),SUBSTITUTE($J165,\"{\",CHAR(160),EZ$1))+1),\"\")","v":""},{"$f":"IFERROR(MID($J165,FIND(CHAR(160),SUBSTITUTE($J165,\"{\",CHAR(160),FA$1)),FIND(CHAR(160),SUBSTITUTE($J165,\"}\",CHAR(160),FA$1))-FIND(CHAR(160),SUBSTITUTE($J165,\"{\",CHAR(160),FA$1))+1),\"\")","v":"{Measure:Quantity}"},{"$f":"IFERROR(MID($J165,FIND(CHAR(160),SUBSTITUTE($J165,\"{\",CHAR(160),FB$1)),FIND(CHAR(160),SUBSTITUTE($J165,\"}\",CHAR(160),FB$1))-FIND(CHAR(160),SUBSTITUTE($J165,\"{\",CHAR(160),FB$1))+1),\"\")","v":"{Rebate per Package}"},{"$f":"IFERROR(MID($O165,FIND(CHAR(160),SUBSTITUTE($O165,\"{\",CHAR(160),FC$1)),FIND(CHAR(160),SUBSTITUTE($O165,\"}\",CHAR(160),FC$1))-FIND(CHAR(160),SUBSTITUTE($O165,\"{\",CHAR(160),FC$1))+1),\"\")","v":""},{"$f":"IFERROR(MID($O165,FIND(CHAR(160),SUBSTITUTE($O165,\"{\",CHAR(160),FD$1)),FIND(CHAR(160),SUBSTITUTE($O165,\"}\",CHAR(160),FD$1))-FIND(CHAR(160),SUBSTITUTE($O165,\"{\",CHAR(160),FD$1))+1),\"\")","v":""},{"$f":"IFERROR(MID($O165,FIND(CHAR(160),SUBSTITUTE($O165,\"{\",CHAR(160),FE$1)),FIND(CHAR(160),SUBSTITUTE($O165,\"}\",CHAR(160),FE$1))-FIND(CHAR(160),SUBSTITUTE($O165,\"{\",CHAR(160),FE$1))+1),\"\")","v":""},{"$f":"IFERROR(MID($O165,FIND(CHAR(160),SUBSTITUTE($O165,\"{\",CHAR(160),FF$1)),FIND(CHAR(160),SUBSTITUTE($O165,\"}\",CHAR(160),FF$1))-FIND(CHAR(160),SUBSTITUTE($O165,\"{\",CHAR(160),FF$1))+1),\"\")","v":""},{"$f":"IFERROR(MID($O165,FIND(CHAR(160),SUBSTITUTE($O165,\"{\",CHAR(160),FG$1)),FIND(CHAR(160),SUBSTITUTE($O165,\"}\",CHAR(160),FG$1))-FIND(CHAR(160),SUBSTITUTE($O165,\"{\",CHAR(160),FG$1))+1),\"\")","v":""},{"$f":"IFERROR(MID($O165,FIND(CHAR(160),SUBSTITUTE($O165,\"{\",CHAR(160),FH$1)),FIND(CHAR(160),SUBSTITUTE($O165,\"}\",CHAR(160),FH$1))-FIND(CHAR(160),SUBSTITUTE($O165,\"{\",CHAR(160),FH$1))+1),\"\")","v":""},{"$f":"IFERROR(MID($O165,FIND(CHAR(160),SUBSTITUTE($O165,\"{\",CHAR(160),FI$1)),FIND(CHAR(160),SUBSTITUTE($O165,\"}\",CHAR(160),FI$1))-FIND(CHAR(160),SUBSTITUTE($O165,\"{\",CHAR(160),FI$1))+1),\"\")","v":""},{"$f":"IFERROR(MID($O165,FIND(CHAR(160),SUBSTITUTE($O165,\"{\",CHAR(160),FJ$1)),FIND(CHAR(160),SUBSTITUTE($O165,\"}\",CHAR(160),FJ$1))-FIND(CHAR(160),SUBSTITUTE($O165,\"{\",CHAR(160),FJ$1))+1),\"\")","v":""},{"$f":"IFERROR(MID($O165,FIND(CHAR(160),SUBSTITUTE($O165,\"{\",CHAR(160),FK$1)),FIND(CHAR(160),SUBSTITUTE($O165,\"}\",CHAR(160),FK$1))-FIND(CHAR(160),SUBSTITUTE($O165,\"{\",CHAR(160),FK$1))+1),\"\")","v":"{Measure:Quantity}"},{"$f":"IFERROR(MID($O165,FIND(CHAR(160),SUBSTITUTE($O165,\"{\",CHAR(160),FL$1)),FIND(CHAR(160),SUBSTITUTE($O165,\"}\",CHAR(160),FL$1))-FIND(CHAR(160),SUBSTITUTE($O165,\"{\",CHAR(160),FL$1))+1),\"\")","v":"{Package Size}"},{"$f":"IFERROR(MID($R165,FIND(CHAR(160),SUBSTITUTE($R165,\"{\",CHAR(160),FM$1)),FIND(CHAR(160),SUBSTITUTE($R165,\"}\",CHAR(160),FM$1))-FIND(CHAR(160),SUBSTITUTE($R165,\"{\",CHAR(160),FM$1))+1),\"\")","v":""},{"$f":"IFERROR(MID($R165,FIND(CHAR(160),SUBSTITUTE($R165,\"{\",CHAR(160),FN$1)),FIND(CHAR(160),SUBSTITUTE($R165,\"}\",CHAR(160),FN$1))-FIND(CHAR(160),SUBSTITUTE($R165,\"{\",CHAR(160),FN$1))+1),\"\")","v":""},{"$f":"IFERROR(MID($R165,FIND(CHAR(160),SUBSTITUTE($R165,\"{\",CHAR(160),FO$1)),FIND(CHAR(160),SUBSTITUTE($R165,\"}\",CHAR(160),FO$1))-FIND(CHAR(160),SUBSTITUTE($R165,\"{\",CHAR(160),FO$1))+1),\"\")","v":""},{"$f":"IFERROR(MID($R165,FIND(CHAR(160),SUBSTITUTE($R165,\"{\",CHAR(160),FP$1)),FIND(CHAR(160),SUBSTITUTE($R165,\"}\",CHAR(160),FP$1))-FIND(CHAR(160),SUBSTITUTE($R165,\"{\",CHAR(160),FP$1))+1),\"\")","v":""},{"$f":"IFERROR(MID($R165,FIND(CHAR(160),SUBSTITUTE($R165,\"{\",CHAR(160),FQ$1)),FIND(CHAR(160),SUBSTITUTE($R165,\"}\",CHAR(160),FQ$1))-FIND(CHAR(160),SUBSTITUTE($R165,\"{\",CHAR(160),FQ$1))+1),\"\")","v":""},{"$f":"IFERROR(MID($R165,FIND(CHAR(160),SUBSTITUTE($R165,\"{\",CHAR(160),FR$1)),FIND(CHAR(160),SUBSTITUTE($R165,\"}\",CHAR(160),FR$1))-FIND(CHAR(160),SUBSTITUTE($R165,\"{\",CHAR(160),FR$1))+1),\"\")","v":""},{"$f":"IFERROR(MID($R165,FIND(CHAR(160),SUBSTITUTE($R165,\"{\",CHAR(160),FS$1)),FIND(CHAR(160),SUBSTITUTE($R165,\"}\",CHAR(160),FS$1))-FIND(CHAR(160),SUBSTITUTE($R165,\"{\",CHAR(160),FS$1))+1),\"\")","v":""},{"$f":"IFERROR(MID($R165,FIND(CHAR(160),SUBSTITUTE($R165,\"{\",CHAR(160),FT$1)),FIND(CHAR(160),SUBSTITUTE($R165,\"}\",CHAR(160),FT$1))-FIND(CHAR(160),SUBSTITUTE($R165,\"{\",CHAR(160),FT$1))+1),\"\")","v":""},{"$f":"IFERROR(MID($R165,FIND(CHAR(160),SUBSTITUTE($R165,\"{\",CHAR(160),FU$1)),FIND(CHAR(160),SUBSTITUTE($R165,\"}\",CHAR(160),FU$1))-FIND(CHAR(160),SUBSTITUTE($R165,\"{\",CHAR(160),FU$1))+1),\"\")","v":"{Measure:Quantity}"},{"$f":"IFERROR(MID($R165,FIND(CHAR(160),SUBSTITUTE($R165,\"{\",CHAR(160),FV$1)),FIND(CHAR(160),SUBSTITUTE($R165,\"}\",CHAR(160),FV$1))-FIND(CHAR(160),SUBSTITUTE($R165,\"{\",CHAR(160),FV$1))+1),\"\")","v":"{Package Size}"},{"$f":"IFERROR(MID($U165,FIND(CHAR(160),SUBSTITUTE($U165,\"{\",CHAR(160),FW$1)),FIND(CHAR(160),SUBSTITUTE($U165,\"}\",CHAR(160),FW$1))-FIND(CHAR(160),SUBSTITUTE($U165,\"{\",CHAR(160),FW$1))+1),\"\")","v":"{Factor:WinterCF}"},{"$f":"IFERROR(MID($U165,FIND(CHAR(160),SUBSTITUTE($U165,\"{\",CHAR(160),FX$1)),FIND(CHAR(160),SUBSTITUTE($U165,\"}\",CHAR(160),FX$1))-FIND(CHAR(160),SUBSTITUTE($U165,\"{\",CHAR(160),FX$1))+1),\"\")","v":""},{"$f":"IFERROR(MID($U165,FIND(CHAR(160),SUBSTITUTE($U165,\"{\",CHAR(160),FY$1)),FIND(CHAR(160),SUBSTITUTE($U165,\"}\",CHAR(160),FY$1))-FIND(CHAR(160),SUBSTITUTE($U165,\"{\",CHAR(160),FY$1))+1),\"\")","v":""},{"$f":"IFERROR(MID($U165,FIND(CHAR(160),SUBSTITUTE($U165,\"{\",CHAR(160),FZ$1)),FIND(CHAR(160),SUBSTITUTE($U165,\"}\",CHAR(160),FZ$1))-FIND(CHAR(160),SUBSTITUTE($U165,\"{\",CHAR(160),FZ$1))+1),\"\")","v":""},{"$f":"IFERROR(MID($U165,FIND(CHAR(160),SUBSTITUTE($U165,\"{\",CHAR(160),GA$1)),FIND(CHAR(160),SUBSTITUTE($U165,\"}\",CHAR(160),GA$1))-FIND(CHAR(160),SUBSTITUTE($U165,\"{\",CHAR(160),GA$1))+1),\"\")","v":""},{"$f":"IFERROR(MID($U165,FIND(CHAR(160),SUBSTITUTE($U165,\"{\",CHAR(160),GB$1)),FIND(CHAR(160),SUBSTITUTE($U165,\"}\",CHAR(160),GB$1))-FIND(CHAR(160),SUBSTITUTE($U165,\"{\",CHAR(160),GB$1))+1),\"\")","v":""},{"$f":"IFERROR(MID($U165,FIND(CHAR(160),SUBSTITUTE($U165,\"{\",CHAR(160),GC$1)),FIND(CHAR(160),SUBSTITUTE($U165,\"}\",CHAR(160),GC$1))-FIND(CHAR(160),SUBSTITUTE($U165,\"{\",CHAR(160),GC$1))+1),\"\")","v":""},{"$f":"IFERROR(MID($U165,FIND(CHAR(160),SUBSTITUTE($U165,\"{\",CHAR(160),GD$1)),FIND(CHAR(160),SUBSTITUTE($U165,\"}\",CHAR(160),GD$1))-FIND(CHAR(160),SUBSTITUTE($U165,\"{\",CHAR(160),GD$1))+1),\"\")","v":""},{"$f":"IFERROR(MID($U165,FIND(CHAR(160),SUBSTITUTE($U165,\"{\",CHAR(160),GE$1)),FIND(CHAR(160),SUBSTITUTE($U165,\"}\",CHAR(160),GE$1))-FIND(CHAR(160),SUBSTITUTE($U165,\"{\",CHAR(160),GE$1))+1),\"\")","v":"{Measure:Quantity}"},{"$f":"IFERROR(MID($U165,FIND(CHAR(160),SUBSTITUTE($U165,\"{\",CHAR(160),GF$1)),FIND(CHAR(160),SUBSTITUTE($U165,\"}\",CHAR(160),GF$1))-FIND(CHAR(160),SUBSTITUTE($U165,\"{\",CHAR(160),GF$1))+1),\"\")","v":"{Package Size}"},{"$f":"IFERROR(MID($V165,FIND(CHAR(160),SUBSTITUTE($V165,\"{\",CHAR(160),GG$1)),FIND(CHAR(160),SUBSTITUTE($V165,\"}\",CHAR(160),GG$1))-FIND(CHAR(160),SUBSTITUTE($V165,\"{\",CHAR(160),GG$1))+1),\"\")","v":"{Factor:SummerCF}"},{"$f":"IFERROR(MID($V165,FIND(CHAR(160),SUBSTITUTE($V165,\"{\",CHAR(160),GH$1)),FIND(CHAR(160),SUBSTITUTE($V165,\"}\",CHAR(160),GH$1))-FIND(CHAR(160),SUBSTITUTE($V165,\"{\",CHAR(160),GH$1))+1),\"\")","v":""},{"$f":"IFERROR(MID($V165,FIND(CHAR(160),SUBSTITUTE($V165,\"{\",CHAR(160),GI$1)),FIND(CHAR(160),SUBSTITUTE($V165,\"}\",CHAR(160),GI$1))-FIND(CHAR(160),SUBSTITUTE($V165,\"{\",CHAR(160),GI$1))+1),\"\")","v":""},{"$f":"IFERROR(MID($V165,FIND(CHAR(160),SUBSTITUTE($V165,\"{\",CHAR(160),GJ$1)),FIND(CHAR(160),SUBSTITUTE($V165,\"}\",CHAR(160),GJ$1))-FIND(CHAR(160),SUBSTITUTE($V165,\"{\",CHAR(160),GJ$1))+1),\"\")","v":""},{"$f":"IFERROR(MID($V165,FIND(CHAR(160),SUBSTITUTE($V165,\"{\",CHAR(160),GK$1)),FIND(CHAR(160),SUBSTITUTE($V165,\"}\",CHAR(160),GK$1))-FIND(CHAR(160),SUBSTITUTE($V165,\"{\",CHAR(160),GK$1))+1),\"\")","v":""},{"$f":"IFERROR(MID($V165,FIND(CHAR(160),SUBSTITUTE($V165,\"{\",CHAR(160),GL$1)),FIND(CHAR(160),SUBSTITUTE($V165,\"}\",CHAR(160),GL$1))-FIND(CHAR(160),SUBSTITUTE($V165,\"{\",CHAR(160),GL$1))+1),\"\")","v":""},{"$f":"IFERROR(MID($V165,FIND(CHAR(160),SUBSTITUTE($V165,\"{\",CHAR(160),GM$1)),FIND(CHAR(160),SUBSTITUTE($V165,\"}\",CHAR(160),GM$1))-FIND(CHAR(160),SUBSTITUTE($V165,\"{\",CHAR(160),GM$1))+1),\"\")","v":""},{"$f":"IFERROR(MID($V165,FIND(CHAR(160),SUBSTITUTE($V165,\"{\",CHAR(160),GN$1)),FIND(CHAR(160),SUBSTITUTE($V165,\"}\",CHAR(160),GN$1))-FIND(CHAR(160),SUBSTITUTE($V165,\"{\",CHAR(160),GN$1))+1),\"\")","v":""},{"$f":"IFERROR(MID($V165,FIND(CHAR(160),SUBSTITUTE($V165,\"{\",CHAR(160),GO$1)),FIND(CHAR(160),SUBSTITUTE($V165,\"}\",CHAR(160),GO$1))-FIND(CHAR(160),SUBSTITUTE($V165,\"{\",CHAR(160),GO$1))+1),\"\")","v":"{Measure:Quantity}"},{"$f":"IFERROR(MID($V165,FIND(CHAR(160),SUBSTITUTE($V165,\"{\",CHAR(160),GP$1)),FIND(CHAR(160),SUBSTITUTE($V165,\"}\",CHAR(160),GP$1))-FIND(CHAR(160),SUBSTITUTE($V165,\"{\",CHAR(160),GP$1))+1),\"\")","v":"{Package Size}"},{"$f":"IFERROR(MID($W165,FIND(CHAR(160),SUBSTITUTE($W165,\"{\",CHAR(160),GQ$1)),FIND(CHAR(160),SUBSTITUTE($W165,\"}\",CHAR(160),GQ$1))-FIND(CHAR(160),SUBSTITUTE($W165,\"{\",CHAR(160),GQ$1))+1),\"\")","v":""},{"$f":"IFERROR(MID($W165,FIND(CHAR(160),SUBSTITUTE($W165,\"{\",CHAR(160),GR$1)),FIND(CHAR(160),SUBSTITUTE($W165,\"}\",CHAR(160),GR$1))-FIND(CHAR(160),SUBSTITUTE($W165,\"{\",CHAR(160),GR$1))+1),\"\")","v":""},{"$f":"IFERROR(MID($W165,FIND(CHAR(160),SUBSTITUTE($W165,\"{\",CHAR(160),GS$1)),FIND(CHAR(160),SUBSTITUTE($W165,\"}\",CHAR(160),GS$1))-FIND(CHAR(160),SUBSTITUTE($W165,\"{\",CHAR(160),GS$1))+1),\"\")","v":""},{"$f":"IFERROR(MID($W165,FIND(CHAR(160),SUBSTITUTE($W165,\"{\",CHAR(160),GT$1)),FIND(CHAR(160),SUBSTITUTE($W165,\"}\",CHAR(160),GT$1))-FIND(CHAR(160),SUBSTITUTE($W165,\"{\",CHAR(160),GT$1))+1),\"\")","v":""},{"$f":"IFERROR(MID($W165,FIND(CHAR(160),SUBSTITUTE($W165,\"{\",CHAR(160),GU$1)),FIND(CHAR(160),SUBSTITUTE($W165,\"}\",CHAR(160),GU$1))-FIND(CHAR(160),SUBSTITUTE($W165,\"{\",CHAR(160),GU$1))+1),\"\")","v":""},{"$f":"IFERROR(MID($W165,FIND(CHAR(160),SUBSTITUTE($W165,\"{\",CHAR(160),GV$1)),FIND(CHAR(160),SUBSTITUTE($W165,\"}\",CHAR(160),GV$1))-FIND(CHAR(160),SUBSTITUTE($W165,\"{\",CHAR(160),GV$1))+1),\"\")","v":""},{"$f":"IFERROR(MID($W165,FIND(CHAR(160),SUBSTITUTE($W165,\"{\",CHAR(160),GW$1)),FIND(CHAR(160),SUBSTITUTE($W165,\"}\",CHAR(160),GW$1))-FIND(CHAR(160),SUBSTITUTE($W165,\"{\",CHAR(160),GW$1))+1),\"\")","v":""},{"$f":"IFERROR(MID($W165,FIND(CHAR(160),SUBSTITUTE($W165,\"{\",CHAR(160),GX$1)),FIND(CHAR(160),SUBSTITUTE($W165,\"}\",CHAR(160),GX$1))-FIND(CHAR(160),SUBSTITUTE($W165,\"{\",CHAR(160),GX$1))+1),\"\")","v":""},{"$f":"IFERROR(MID($W165,FIND(CHAR(160),SUBSTITUTE($W165,\"{\",CHAR(160),GY$1)),FIND(CHAR(160),SUBSTITUTE($W165,\"}\",CHAR(160),GY$1))-FIND(CHAR(160),SUBSTITUTE($W165,\"{\",CHAR(160),GY$1))+1),\"\")","v":"{Measure:Quantity}"},{"$f":"IFERROR(MID($W165,FIND(CHAR(160),SUBSTITUTE($W165,\"{\",CHAR(160),GZ$1)),FIND(CHAR(160),SUBSTITUTE($W165,\"}\",CHAR(160),GZ$1))-FIND(CHAR(160),SUBSTITUTE($W165,\"{\",CHAR(160),GZ$1))+1),\"\")","v":"{Package Size}"},{"$f":"IFERROR(MID($X165,FIND(CHAR(160),SUBSTITUTE($X165,\"{\",CHAR(160),HA$1)),FIND(CHAR(160),SUBSTITUTE($X165,\"}\",CHAR(160),HA$1))-FIND(CHAR(160),SUBSTITUTE($X165,\"{\",CHAR(160),HA$1))+1),\"\")","v":""},{"$f":"IFERROR(MID($X165,FIND(CHAR(160),SUBSTITUTE($X165,\"{\",CHAR(160),HB$1)),FIND(CHAR(160),SUBSTITUTE($X165,\"}\",CHAR(160),HB$1))-FIND(CHAR(160),SUBSTITUTE($X165,\"{\",CHAR(160),HB$1))+1),\"\")","v":""},{"$f":"IFERROR(MID($X165,FIND(CHAR(160),SUBSTITUTE($X165,\"{\",CHAR(160),HC$1)),FIND(CHAR(160),SUBSTITUTE($X165,\"}\",CHAR(160),HC$1))-FIND(CHAR(160),SUBSTITUTE($X165,\"{\",CHAR(160),HC$1))+1),\"\")","v":""},{"$f":"IFERROR(MID($X165,FIND(CHAR(160),SUBSTITUTE($X165,\"{\",CHAR(160),HD$1)),FIND(CHAR(160),SUBSTITUTE($X165,\"}\",CHAR(160),HD$1))-FIND(CHAR(160),SUBSTITUTE($X165,\"{\",CHAR(160),HD$1))+1),\"\")","v":""},{"$f":"IFERROR(MID($X165,FIND(CHAR(160),SUBSTITUTE($X165,\"{\",CHAR(160),HE$1)),FIND(CHAR(160),SUBSTITUTE($X165,\"}\",CHAR(160),HE$1))-FIND(CHAR(160),SUBSTITUTE($X165,\"{\",CHAR(160),HE$1))+1),\"\")","v":""},{"$f":"IFERROR(MID($X165,FIND(CHAR(160),SUBSTITUTE($X165,\"{\",CHAR(160),HF$1)),FIND(CHAR(160),SUBSTITUTE($X165,\"}\",CHAR(160),HF$1))-FIND(CHAR(160),SUBSTITUTE($X165,\"{\",CHAR(160),HF$1))+1),\"\")","v":""},{"$f":"IFERROR(MID($X165,FIND(CHAR(160),SUBSTITUTE($X165,\"{\",CHAR(160),HG$1)),FIND(CHAR(160),SUBSTITUTE($X165,\"}\",CHAR(160),HG$1))-FIND(CHAR(160),SUBSTITUTE($X165,\"{\",CHAR(160),HG$1))+1),\"\")","v":""},{"$f":"IFERROR(MID($X165,FIND(CHAR(160),SUBSTITUTE($X165,\"{\",CHAR(160),HH$1)),FIND(CHAR(160),SUBSTITUTE($X165,\"}\",CHAR(160),HH$1))-FIND(CHAR(160),SUBSTITUTE($X165,\"{\",CHAR(160),HH$1))+1),\"\")","v":""},{"$f":"IFERROR(MID($X165,FIND(CHAR(160),SUBSTITUTE($X165,\"{\",CHAR(160),HI$1)),FIND(CHAR(160),SUBSTITUTE($X165,\"}\",CHAR(160),HI$1))-FIND(CHAR(160),SUBSTITUTE($X165,\"{\",CHAR(160),HI$1))+1),\"\")","v":"{Measure:Quantity}"},{"$f":"IFERROR(MID($X165,FIND(CHAR(160),SUBSTITUTE($X165,\"{\",CHAR(160),HJ$1)),FIND(CHAR(160),SUBSTITUTE($X165,\"}\",CHAR(160),HJ$1))-FIND(CHAR(160),SUBSTITUTE($X165,\"{\",CHAR(160),HJ$1))+1),\"\")","v":"{Package Size}"},{"$f":"IFERROR(MID($Y165,FIND(CHAR(160),SUBSTITUTE($Y165,\"{\",CHAR(160),HK$1)),FIND(CHAR(160),SUBSTITUTE($Y165,\"}\",CHAR(160),HK$1))-FIND(CHAR(160),SUBSTITUTE($Y165,\"{\",CHAR(160),HK$1))+1),\"\")","v":""},{"$f":"IFERROR(MID($Y165,FIND(CHAR(160),SUBSTITUTE($Y165,\"{\",CHAR(160),HL$1)),FIND(CHAR(160),SUBSTITUTE($Y165,\"}\",CHAR(160),HL$1))-FIND(CHAR(160),SUBSTITUTE($Y165,\"{\",CHAR(160),HL$1))+1),\"\")","v":""},{"$f":"IFERROR(MID($Y165,FIND(CHAR(160),SUBSTITUTE($Y165,\"{\",CHAR(160),HM$1)),FIND(CHAR(160),SUBSTITUTE($Y165,\"}\",CHAR(160),HM$1))-FIND(CHAR(160),SUBSTITUTE($Y165,\"{\",CHAR(160),HM$1))+1),\"\")","v":""},{"$f":"IFERROR(MID($Y165,FIND(CHAR(160),SUBSTITUTE($Y165,\"{\",CHAR(160),HN$1)),FIND(CHAR(160),SUBSTITUTE($Y165,\"}\",CHAR(160),HN$1))-FIND(CHAR(160),SUBSTITUTE($Y165,\"{\",CHAR(160),HN$1))+1),\"\")","v":""},{"$f":"IFERROR(MID($Y165,FIND(CHAR(160),SUBSTITUTE($Y165,\"{\",CHAR(160),HO$1)),FIND(CHAR(160),SUBSTITUTE($Y165,\"}\",CHAR(160),HO$1))-FIND(CHAR(160),SUBSTITUTE($Y165,\"{\",CHAR(160),HO$1))+1),\"\")","v":""},{"$f":"IFERROR(MID($Y165,FIND(CHAR(160),SUBSTITUTE($Y165,\"{\",CHAR(160),HP$1)),FIND(CHAR(160),SUBSTITUTE($Y165,\"}\",CHAR(160),HP$1))-FIND(CHAR(160),SUBSTITUTE($Y165,\"{\",CHAR(160),HP$1))+1),\"\")","v":""},{"$f":"IFERROR(MID($Y165,FIND(CHAR(160),SUBSTITUTE($Y165,\"{\",CHAR(160),HQ$1)),FIND(CHAR(160),SUBSTITUTE($Y165,\"}\",CHAR(160),HQ$1))-FIND(CHAR(160),SUBSTITUTE($Y165,\"{\",CHAR(160),HQ$1))+1),\"\")","v":""},{"$f":"IFERROR(MID($Y165,FIND(CHAR(160),SUBSTITUTE($Y165,\"{\",CHAR(160),HR$1)),FIND(CHAR(160),SUBSTITUTE($Y165,\"}\",CHAR(160),HR$1))-FIND(CHAR(160),SUBSTITUTE($Y165,\"{\",CHAR(160),HR$1))+1),\"\")","v":""},{"$f":"IFERROR(MID($Y165,FIND(CHAR(160),SUBSTITUTE($Y165,\"{\",CHAR(160),HS$1)),FIND(CHAR(160),SUBSTITUTE($Y165,\"}\",CHAR(160),HS$1))-FIND(CHAR(160),SUBSTITUTE($Y165,\"{\",CHAR(160),HS$1))+1),\"\")","v":"{Measure:Quantity}"},{"$f":"IFERROR(MID($Y165,FIND(CHAR(160),SUBSTITUTE($Y165,\"{\",CHAR(160),HT$1)),FIND(CHAR(160),SUBSTITUTE($Y165,\"}\",CHAR(160),HT$1))-FIND(CHAR(160),SUBSTITUTE($Y165,\"{\",CHAR(160),HT$1))+1),\"\")","v":"{Package Size}"},{"$f":"IFERROR(MID($Z165,FIND(CHAR(160),SUBSTITUTE($Z165,\"{\",CHAR(160),HU$1)),FIND(CHAR(160),SUBSTITUTE($Z165,\"}\",CHAR(160),HU$1))-FIND(CHAR(160),SUBSTITUTE($Z165,\"{\",CHAR(160),HU$1))+1),\"\")","v":""},{"$f":"IFERROR(MID($Z165,FIND(CHAR(160),SUBSTITUTE($Z165,\"{\",CHAR(160),HV$1)),FIND(CHAR(160),SUBSTITUTE($Z165,\"}\",CHAR(160),HV$1))-FIND(CHAR(160),SUBSTITUTE($Z165,\"{\",CHAR(160),HV$1))+1),\"\")","v":""},{"$f":"IFERROR(MID($Z165,FIND(CHAR(160),SUBSTITUTE($Z165,\"{\",CHAR(160),HW$1)),FIND(CHAR(160),SUBSTITUTE($Z165,\"}\",CHAR(160),HW$1))-FIND(CHAR(160),SUBSTITUTE($Z165,\"{\",CHAR(160),HW$1))+1),\"\")","v":""},{"$f":"IFERROR(MID($Z165,FIND(CHAR(160),SUBSTITUTE($Z165,\"{\",CHAR(160),HX$1)),FIND(CHAR(160),SUBSTITUTE($Z165,\"}\",CHAR(160),HX$1))-FIND(CHAR(160),SUBSTITUTE($Z165,\"{\",CHAR(160),HX$1))+1),\"\")","v":""},{"$f":"IFERROR(MID($Z165,FIND(CHAR(160),SUBSTITUTE($Z165,\"{\",CHAR(160),HY$1)),FIND(CHAR(160),SUBSTITUTE($Z165,\"}\",CHAR(160),HY$1))-FIND(CHAR(160),SUBSTITUTE($Z165,\"{\",CHAR(160),HY$1))+1),\"\")","v":""},{"$f":"IFERROR(MID($Z165,FIND(CHAR(160),SUBSTITUTE($Z165,\"{\",CHAR(160),HZ$1)),FIND(CHAR(160),SUBSTITUTE($Z165,\"}\",CHAR(160),HZ$1))-FIND(CHAR(160),SUBSTITUTE($Z165,\"{\",CHAR(160),HZ$1))+1),\"\")","v":""},{"$f":"IFERROR(MID($Z165,FIND(CHAR(160),SUBSTITUTE($Z165,\"{\",CHAR(160),IA$1)),FIND(CHAR(160),SUBSTITUTE($Z165,\"}\",CHAR(160),IA$1))-FIND(CHAR(160),SUBSTITUTE($Z165,\"{\",CHAR(160),IA$1))+1),\"\")","v":""},{"$f":"IFERROR(MID($Z165,FIND(CHAR(160),SUBSTITUTE($Z165,\"{\",CHAR(160),IB$1)),FIND(CHAR(160),SUBSTITUTE($Z165,\"}\",CHAR(160),IB$1))-FIND(CHAR(160),SUBSTITUTE($Z165,\"{\",CHAR(160),IB$1))+1),\"\")","v":""},{"$f":"IFERROR(MID($Z165,FIND(CHAR(160),SUBSTITUTE($Z165,\"{\",CHAR(160),IC$1)),FIND(CHAR(160),SUBSTITUTE($Z165,\"}\",CHAR(160),IC$1))-FIND(CHAR(160),SUBSTITUTE($Z165,\"{\",CHAR(160),IC$1))+1),\"\")","v":"{Measure:Quantity}"},{"$f":"IFERROR(MID($Z165,FIND(CHAR(160),SUBSTITUTE($Z165,\"{\",CHAR(160),ID$1)),FIND(CHAR(160),SUBSTITUTE($Z165,\"}\",CHAR(160),ID$1))-FIND(CHAR(160),SUBSTITUTE($Z165,\"{\",CHAR(160),ID$1))+1),\"\")","v":"{Package Size}"},{"$f":"IFERROR(MID($AA165,FIND(CHAR(160),SUBSTITUTE($AA165,\"{\",CHAR(160),IE$1)),FIND(CHAR(160),SUBSTITUTE($AA165,\"}\",CHAR(160),IE$1))-FIND(CHAR(160),SUBSTITUTE($AA165,\"{\",CHAR(160),IE$1))+1),\"\")","v":""},{"$f":"IFERROR(MID($AA165,FIND(CHAR(160),SUBSTITUTE($AA165,\"{\",CHAR(160),IF$1)),FIND(CHAR(160),SUBSTITUTE($AA165,\"}\",CHAR(160),IF$1))-FIND(CHAR(160),SUBSTITUTE($AA165,\"{\",CHAR(160),IF$1))+1),\"\")","v":""},{"$f":"IFERROR(MID($AA165,FIND(CHAR(160),SUBSTITUTE($AA165,\"{\",CHAR(160),IG$1)),FIND(CHAR(160),SUBSTITUTE($AA165,\"}\",CHAR(160),IG$1))-FIND(CHAR(160),SUBSTITUTE($AA165,\"{\",CHAR(160),IG$1))+1),\"\")","v":""},{"$f":"IFERROR(MID($AA165,FIND(CHAR(160),SUBSTITUTE($AA165,\"{\",CHAR(160),IH$1)),FIND(CHAR(160),SUBSTITUTE($AA165,\"}\",CHAR(160),IH$1))-FIND(CHAR(160),SUBSTITUTE($AA165,\"{\",CHAR(160),IH$1))+1),\"\")","v":""},{"$f":"IFERROR(MID($AA165,FIND(CHAR(160),SUBSTITUTE($AA165,\"{\",CHAR(160),II$1)),FIND(CHAR(160),SUBSTITUTE($AA165,\"}\",CHAR(160),II$1))-FIND(CHAR(160),SUBSTITUTE($AA165,\"{\",CHAR(160),II$1))+1),\"\")","v":""},{"$f":"IFERROR(MID($AA165,FIND(CHAR(160),SUBSTITUTE($AA165,\"{\",CHAR(160),IJ$1)),FIND(CHAR(160),SUBSTITUTE($AA165,\"}\",CHAR(160),IJ$1))-FIND(CHAR(160),SUBSTITUTE($AA165,\"{\",CHAR(160),IJ$1))+1),\"\")","v":""},{"$f":"IFERROR(MID($AA165,FIND(CHAR(160),SUBSTITUTE($AA165,\"{\",CHAR(160),IK$1)),FIND(CHAR(160),SUBSTITUTE($AA165,\"}\",CHAR(160),IK$1))-FIND(CHAR(160),SUBSTITUTE($AA165,\"{\",CHAR(160),IK$1))+1),\"\")","v":""},{"$f":"IFERROR(MID($AA165,FIND(CHAR(160),SUBSTITUTE($AA165,\"{\",CHAR(160),IL$1)),FIND(CHAR(160),SUBSTITUTE($AA165,\"}\",CHAR(160),IL$1))-FIND(CHAR(160),SUBSTITUTE($AA165,\"{\",CHAR(160),IL$1))+1),\"\")","v":""},{"$f":"IFERROR(MID($AA165,FIND(CHAR(160),SUBSTITUTE($AA165,\"{\",CHAR(160),IM$1)),FIND(CHAR(160),SUBSTITUTE($AA165,\"}\",CHAR(160),IM$1))-FIND(CHAR(160),SUBSTITUTE($AA165,\"{\",CHAR(160),IM$1))+1),\"\")","v":"{Measure:Quantity}"},{"$f":"IFERROR(MID($AA165,FIND(CHAR(160),SUBSTITUTE($AA165,\"{\",CHAR(160),IN$1)),FIND(CHAR(160),SUBSTITUTE($AA165,\"}\",CHAR(160),IN$1))-FIND(CHAR(160),SUBSTITUTE($AA165,\"{\",CHAR(160),IN$1))+1),\"\")","v":"{Package Size}"},{"$f":"IFERROR(MID($AB165,FIND(CHAR(160),SUBSTITUTE($AB165,\"{\",CHAR(160),IO$1)),FIND(CHAR(160),SUBSTITUTE($AB165,\"}\",CHAR(160),IO$1))-FIND(CHAR(160),SUBSTITUTE($AB165,\"{\",CHAR(160),IO$1))+1),\"\")","v":""},{"$f":"IFERROR(MID($AB165,FIND(CHAR(160),SUBSTITUTE($AB165,\"{\",CHAR(160),IP$1)),FIND(CHAR(160),SUBSTITUTE($AB165,\"}\",CHAR(160),IP$1))-FIND(CHAR(160),SUBSTITUTE($AB165,\"{\",CHAR(160),IP$1))+1),\"\")","v":""},{"$f":"IFERROR(MID($AB165,FIND(CHAR(160),SUBSTITUTE($AB165,\"{\",CHAR(160),IQ$1)),FIND(CHAR(160),SUBSTITUTE($AB165,\"}\",CHAR(160),IQ$1))-FIND(CHAR(160),SUBSTITUTE($AB165,\"{\",CHAR(160),IQ$1))+1),\"\")","v":""},{"$f":"IFERROR(MID($AB165,FIND(CHAR(160),SUBSTITUTE($AB165,\"{\",CHAR(160),IR$1)),FIND(CHAR(160),SUBSTITUTE($AB165,\"}\",CHAR(160),IR$1))-FIND(CHAR(160),SUBSTITUTE($AB165,\"{\",CHAR(160),IR$1))+1),\"\")","v":""},{"$f":"IFERROR(MID($AB165,FIND(CHAR(160),SUBSTITUTE($AB165,\"{\",CHAR(160),IS$1)),FIND(CHAR(160),SUBSTITUTE($AB165,\"}\",CHAR(160),IS$1))-FIND(CHAR(160),SUBSTITUTE($AB165,\"{\",CHAR(160),IS$1))+1),\"\")","v":""},{"$f":"IFERROR(MID($AB165,FIND(CHAR(160),SUBSTITUTE($AB165,\"{\",CHAR(160),IT$1)),FIND(CHAR(160),SUBSTITUTE($AB165,\"}\",CHAR(160),IT$1))-FIND(CHAR(160),SUBSTITUTE($AB165,\"{\",CHAR(160),IT$1))+1),\"\")","v":""},{"$f":"IFERROR(MID($AB165,FIND(CHAR(160),SUBSTITUTE($AB165,\"{\",CHAR(160),IU$1)),FIND(CHAR(160),SUBSTITUTE($AB165,\"}\",CHAR(160),IU$1))-FIND(CHAR(160),SUBSTITUTE($AB165,\"{\",CHAR(160),IU$1))+1),\"\")","v":""},{"$f":"IFERROR(MID($AB165,FIND(CHAR(160),SUBSTITUTE($AB165,\"{\",CHAR(160),IV$1)),FIND(CHAR(160),SUBSTITUTE($AB165,\"}\",CHAR(160),IV$1))-FIND(CHAR(160),SUBSTITUTE($AB165,\"{\",CHAR(160),IV$1))+1),\"\")","v":""},{"$f":"IFERROR(MID($AB165,FIND(CHAR(160),SUBSTITUTE($AB165,\"{\",CHAR(160),IW$1)),FIND(CHAR(160),SUBSTITUTE($AB165,\"}\",CHAR(160),IW$1))-FIND(CHAR(160),SUBSTITUTE($AB165,\"{\",CHAR(160),IW$1))+1),\"\")","v":""},{"$f":"IFERROR(MID($AB165,FIND(CHAR(160),SUBSTITUTE($AB165,\"{\",CHAR(160),IX$1)),FIND(CHAR(160),SUBSTITUTE($AB165,\"}\",CHAR(160),IX$1))-FIND(CHAR(160),SUBSTITUTE($AB165,\"{\",CHAR(160),IX$1))+1),\"\")","v":""},null,{"$f":"10-COUNTIF(DU165:ED165,\"\")","v":3}]
["Distributor Lighting","Specialty LED - PAR30","LEDPAR30","2021-07-01","2022-06-30","Calculated","{Measure:Quantity}*{Package Size}*6.84",0,"Calculated","{Measure:Quantity}*{Rebate per Package}",0,"2021-07-01","2022-06-30","Calculated","{Measure:Quantity}*{Package Size}*81",null,null,"{Measure:Quantity}*{Package Size}*1.0747*0.047",null,null,"{Measure:Quantity}*{Package Size}*{Factor:WinterCF}*0.047","{Measure:Quantity}*{Package Size}*{Factor:SummerCF}*1.0747*0.047","{Measure:Quantity}*{Package Size}*10*-0.011","{Measure:Quantity}*{Package Size}*-0.006","{Measure:Quantity}*{Package Size}*-0.054","{Measure:Quantity}*{Package Size}*-0.002","{Measure:Quantity}*{Package Size}*-0.013",null,"2021-07-01","2022-06-30",2,0.254,0.309,0.42299999999999999,0.249,0.21,0.11799999999999999,0.99,1,1,0.51,0,null,{"$f":"DU166","v":"{Measure:Quantity}"},1,{"$f":"DV166","v":"{Package Size}"},1,{"$f":"DW166","v":"{Rebate per Package}"},{"$f":"CW166*CO166","v":0},{"$f":"DX166","v":""},null,{"$f":"DY166","v":""},null,{"$f":"DZ166","v":""},null,{"$f":"EA166","v":""},null,{"$f":"EB166","v":""},null,{"$f":"EC166","v":""},null,{"$f":"ED166","v":""},null,{"$f":"AS166*AU166*81","v":81},0,0,{"$f":"AS166*AU166*1.0747*0.047","v":5.0510899999999997E-2},0,0,{"$f":"AS166*AU166*AF166*0.047","v":1.1938000000000001E-2},{"$f":"AS166*AU166*AG166*1.0747*0.047","v":1.56078681E-2},{"$f":"AS166*AU166*10*-0.011","v":-0.10999999999999999},{"$f":"AS166*AU166*-0.006","v":-6.0000000000000001E-3},{"$f":"AS166*AU166*-0.054","v":-5.3999999999999999E-2},{"$f":"AS166*AU166*-0.002","v":-2E-3},{"$f":"AS166*AU166*-0.013","v":-1.2999999999999999E-2},0,null,"Res","Default DR",{"$f":"Benefits(BL166,BR166,BS166,BT166,BU166,BV166,BW166,BX166,BY166,BZ166,AE166,AH166,AI166,AJ166,AK166,AL166,AM166,AN166,AO166,AP166,CA166,CB166)","v":19.307786862519961},11.736185210016776,-0.39542761541990851,-3.5357151807315175,-0.14862690259143968,-0.54445996085603121,-0.44778429749416337,0,0,{"$f":"SUMPRODUCT(CC166:CK166,--(CC166:CK166>0))","v":31.043972072536739},{"$f":"-SUMPRODUCT(CC166:CK166,--(CC166:CK166<0))","v":5.07201395709306},null,{"$f":"AS166*AU166*6.84","v":6.84},null,null,{"$f":"CM166+CO166","v":11.912013957093059},{"$f":"IF(NetOrGross=\"Net\",(1-AO166+AP166),1)","v":1},{"$f":"(SUMPRODUCT(CC166:CJ166,--(CC166:CJ166>0))+CN166)*CS166/((-SUMPRODUCT(CC166:CJ166,--(CC166:CJ166<0))+MAX(CO166,CV166)+CP166+CQ166)*CS166+IF(FRIncentives=\"Yes\",CV166*(1-CS166),0))","v":2.6061060862047998},1,{"$f":"AS166*AW166","v":0},{"$f":"CW165","v":0},"Electric","y",null,{"$f":"IF(F166=\"Manual Entry\",\"Manual\",IF(G166=\"\",0,\"X=\"&SUBSTITUTE(SUBSTITUTE(SUBSTITUTE(SUBSTITUTE(SUBSTITUTE(SUBSTITUTE(SUBSTITUTE(SUBSTITUTE(SUBSTITUTE(SUBSTITUTE(SUBSTITUTE(SUBSTITUTE(G166,$ED166,$ED$2&ROW($ED166)),$EC166,$EC$2&ROW($EC166)),$EB166,$EB$2&ROW($EB166)),$EA166,$EA$2&ROW($EA166)),$DZ166,$DZ$2&ROW($DZ166)),$DY166,$DY$2&ROW($DY166)),$DX166,$DX$2&ROW($DX166)),$DW166,$DW$2&ROW($DW166)),$DV166,$DV$2&ROW($DV166)),$DU166,$DU$2&ROW($DU166)),$DT166,$DT$2&ROW($DT166)),$DS166,$DS$2&ROW($DS166))))","v":"X=AS166*AU166*6.84"},{"$f":"IF(I166=\"Manual Entry\",\"Manual\",IF(J166=\"\",0,\"X=\"&SUBSTITUTE(SUBSTITUTE(SUBSTITUTE(SUBSTITUTE(SUBSTITUTE(SUBSTITUTE(SUBSTITUTE(SUBSTITUTE(SUBSTITUTE(SUBSTITUTE(SUBSTITUTE(SUBSTITUTE(J166,$ED166,$ED$2&ROW($ED166)),$EC166,$EC$2&ROW($EC166)),$EB166,$EB$2&ROW($EB166)),$EA166,$EA$2&ROW($EA166)),$DZ166,$DZ$2&ROW($DZ166)),$DY166,$DY$2&ROW($DY166)),$DX166,$DX$2&ROW($DX166)),$DW166,$DW$2&ROW($DW166)),$DV166,$DV$2&ROW($DV166)),$DU166,$DU$2&ROW($DU166)),$DT166,$DT$2&ROW($DT166)),$DS166,$DS$2&ROW($DS166))))","v":"X=AS166*AW166"},{"$f":"IF(O166=\"\",0,\"X=\"&SUBSTITUTE(SUBSTITUTE(SUBSTITUTE(SUBSTITUTE(SUBSTITUTE(SUBSTITUTE(SUBSTITUTE(SUBSTITUTE(SUBSTITUTE(SUBSTITUTE(SUBSTITUTE(SUBSTITUTE(O166,$ED166,$ED$2&ROW($ED166)),$EC166,$EC$2&ROW($EC166)),$EB166,$EB$2&ROW($EB166)),$EA166,$EA$2&ROW($EA166)),$DZ166,$DZ$2&ROW($DZ166)),$DY166,$DY$2&ROW($DY166)),$DX166,$DX$2&ROW($DX166)),$DW166,$DW$2&ROW($DW166)),$DV166,$DV$2&ROW($DV166)),$DU166,$DU$2&ROW($DU166)),$DT166,$DT$2&ROW($DT166)),$DS166,$DS$2&ROW($DS166)))","v":"X=AS166*AU166*81"},{"$f":"IF(P166=\"\",0,\"X=\"&SUBSTITUTE(SUBSTITUTE(SUBSTITUTE(SUBSTITUTE(SUBSTITUTE(SUBSTITUTE(SUBSTITUTE(SUBSTITUTE(SUBSTITUTE(SUBSTITUTE(SUBSTITUTE(SUBSTITUTE(P166,$ED166,$ED$2&ROW($ED166)),$EC166,$EC$2&ROW($EC166)),$EB166,$EB$2&ROW($EB166)),$EA166,$EA$2&ROW($EA166)),$DZ166,$DZ$2&ROW($DZ166)),$DY166,$DY$2&ROW($DY166)),$DX166,$DX$2&ROW($DX166)),$DW166,$DW$2&ROW($DW166)),$DV166,$DV$2&ROW($DV166)),$DU166,$DU$2&ROW($DU166)),$DT166,$DT$2&ROW($DT166)),$DS166,$DS$2&ROW($DS166)))","v":0},{"$f":"IF(Q166=\"\",0,\"X=\"&SUBSTITUTE(SUBSTITUTE(SUBSTITUTE(SUBSTITUTE(SUBSTITUTE(SUBSTITUTE(SUBSTITUTE(SUBSTITUTE(SUBSTITUTE(SUBSTITUTE(SUBSTITUTE(SUBSTITUTE(Q166,$ED166,$ED$2&ROW($ED166)),$EC166,$EC$2&ROW($EC166)),$EB166,$EB$2&ROW($EB166)),$EA166,$EA$2&ROW($EA166)),$DZ166,$DZ$2&ROW($DZ166)),$DY166,$DY$2&ROW($DY166)),$DX166,$DX$2&ROW($DX166)),$DW166,$DW$2&ROW($DW166)),$DV166,$DV$2&ROW($DV166)),$DU166,$DU$2&ROW($DU166)),$DT166,$DT$2&ROW($DT166)),$DS166,$DS$2&ROW($DS166)))","v":0},{"$f":"IF(R166=\"\",0,\"X=\"&SUBSTITUTE(SUBSTITUTE(SUBSTITUTE(SUBSTITUTE(SUBSTITUTE(SUBSTITUTE(SUBSTITUTE(SUBSTITUTE(SUBSTITUTE(SUBSTITUTE(SUBSTITUTE(SUBSTITUTE(R166,$ED166,$ED$2&ROW($ED166)),$EC166,$EC$2&ROW($EC166)),$EB166,$EB$2&ROW($EB166)),$EA166,$EA$2&ROW($EA166)),$DZ166,$DZ$2&ROW($DZ166)),$DY166,$DY$2&ROW($DY166)),$DX166,$DX$2&ROW($DX166)),$DW166,$DW$2&ROW($DW166)),$DV166,$DV$2&ROW($DV166)),$DU166,$DU$2&ROW($DU166)),$DT166,$DT$2&ROW($DT166)),$DS166,$DS$2&ROW($DS166)))","v":"X=AS166*AU166*1.0747*0.047"},{"$f":"IF(S166=\"\",0,\"X=\"&SUBSTITUTE(SUBSTITUTE(SUBSTITUTE(SUBSTITUTE(SUBSTITUTE(SUBSTITUTE(SUBSTITUTE(SUBSTITUTE(SUBSTITUTE(SUBSTITUTE(SUBSTITUTE(SUBSTITUTE(S166,$ED166,$ED$2&ROW($ED166)),$EC166,$EC$2&ROW($EC166)),$EB166,$EB$2&ROW($EB166)),$EA166,$EA$2&ROW($EA166)),$DZ166,$DZ$2&ROW($DZ166)),$DY166,$DY$2&ROW($DY166)),$DX166,$DX$2&ROW($DX166)),$DW166,$DW$2&ROW($DW166)),$DV166,$DV$2&ROW($DV166)),$DU166,$DU$2&ROW($DU166)),$DT166,$DT$2&ROW($DT166)),$DS166,$DS$2&ROW($DS166)))","v":0},{"$f":"IF(T166=\"\",0,\"X=\"&SUBSTITUTE(SUBSTITUTE(SUBSTITUTE(SUBSTITUTE(SUBSTITUTE(SUBSTITUTE(SUBSTITUTE(SUBSTITUTE(SUBSTITUTE(SUBSTITUTE(SUBSTITUTE(SUBSTITUTE(T166,$ED166,$ED$2&ROW($ED166)),$EC166,$EC$2&ROW($EC166)),$EB166,$EB$2&ROW($EB166)),$EA166,$EA$2&ROW($EA166)),$DZ166,$DZ$2&ROW($DZ166)),$DY166,$DY$2&ROW($DY166)),$DX166,$DX$2&ROW($DX166)),$DW166,$DW$2&ROW($DW166)),$DV166,$DV$2&ROW($DV166)),$DU166,$DU$2&ROW($DU166)),$DT166,$DT$2&ROW($DT166)),$DS166,$DS$2&ROW($DS166)))","v":0},{"$f":"IF(U166=\"\",0,\"X=\"&SUBSTITUTE(SUBSTITUTE(SUBSTITUTE(SUBSTITUTE(SUBSTITUTE(SUBSTITUTE(SUBSTITUTE(SUBSTITUTE(SUBSTITUTE(SUBSTITUTE(SUBSTITUTE(SUBSTITUTE(U166,$ED166,$ED$2&ROW($ED166)),$EC166,$EC$2&ROW($EC166)),$EB166,$EB$2&ROW($EB166)),$EA166,$EA$2&ROW($EA166)),$DZ166,$DZ$2&ROW($DZ166)),$DY166,$DY$2&ROW($DY166)),$DX166,$DX$2&ROW($DX166)),$DW166,$DW$2&ROW($DW166)),$DV166,$DV$2&ROW($DV166)),$DU166,$DU$2&ROW($DU166)),$DT166,$DT$2&ROW($DT166)),$DS166,$DS$2&ROW($DS166)))","v":"X=AS166*AU166*AF166*0.047"},{"$f":"IF(V166=\"\",0,\"X=\"&SUBSTITUTE(SUBSTITUTE(SUBSTITUTE(SUBSTITUTE(SUBSTITUTE(SUBSTITUTE(SUBSTITUTE(SUBSTITUTE(SUBSTITUTE(SUBSTITUTE(SUBSTITUTE(SUBSTITUTE(V166,$ED166,$ED$2&ROW($ED166)),$EC166,$EC$2&ROW($EC166)),$EB166,$EB$2&ROW($EB166)),$EA166,$EA$2&ROW($EA166)),$DZ166,$DZ$2&ROW($DZ166)),$DY166,$DY$2&ROW($DY166)),$DX166,$DX$2&ROW($DX166)),$DW166,$DW$2&ROW($DW166)),$DV166,$DV$2&ROW($DV166)),$DU166,$DU$2&ROW($DU166)),$DT166,$DT$2&ROW($DT166)),$DS166,$DS$2&ROW($DS166)))","v":"X=AS166*AU166*AG166*1.0747*0.047"},{"$f":"IF(W166=\"\",0,\"X=\"&SUBSTITUTE(SUBSTITUTE(SUBSTITUTE(SUBSTITUTE(SUBSTITUTE(SUBSTITUTE(SUBSTITUTE(SUBSTITUTE(SUBSTITUTE(SUBSTITUTE(SUBSTITUTE(SUBSTITUTE(W166,$ED166,$ED$2&ROW($ED166)),$EC166,$EC$2&ROW($EC166)),$EB166,$EB$2&ROW($EB166)),$EA166,$EA$2&ROW($EA166)),$DZ166,$DZ$2&ROW($DZ166)),$DY166,$DY$2&ROW($DY166)),$DX166,$DX$2&ROW($DX166)),$DW166,$DW$2&ROW($DW166)),$DV166,$DV$2&ROW($DV166)),$DU166,$DU$2&ROW($DU166)),$DT166,$DT$2&ROW($DT166)),$DS166,$DS$2&ROW($DS166)))","v":"X=AS166*AU166*10*-0.011"},{"$f":"IF(X166=\"\",0,\"X=\"&SUBSTITUTE(SUBSTITUTE(SUBSTITUTE(SUBSTITUTE(SUBSTITUTE(SUBSTITUTE(SUBSTITUTE(SUBSTITUTE(SUBSTITUTE(SUBSTITUTE(SUBSTITUTE(SUBSTITUTE(X166,$ED166,$ED$2&ROW($ED166)),$EC166,$EC$2&ROW($EC166)),$EB166,$EB$2&ROW($EB166)),$EA166,$EA$2&ROW($EA166)),$DZ166,$DZ$2&ROW($DZ166)),$DY166,$DY$2&ROW($DY166)),$DX166,$DX$2&ROW($DX166)),$DW166,$DW$2&ROW($DW166)),$DV166,$DV$2&ROW($DV166)),$DU166,$DU$2&ROW($DU166)),$DT166,$DT$2&ROW($DT166)),$DS166,$DS$2&ROW($DS166)))","v":"X=AS166*AU166*-0.006"},{"$f":"IF(Y166=\"\",0,\"X=\"&SUBSTITUTE(SUBSTITUTE(SUBSTITUTE(SUBSTITUTE(SUBSTITUTE(SUBSTITUTE(SUBSTITUTE(SUBSTITUTE(SUBSTITUTE(SUBSTITUTE(SUBSTITUTE(SUBSTITUTE(Y166,$ED166,$ED$2&ROW($ED166)),$EC166,$EC$2&ROW($EC166)),$EB166,$EB$2&ROW($EB166)),$EA166,$EA$2&ROW($EA166)),$DZ166,$DZ$2&ROW($DZ166)),$DY166,$DY$2&ROW($DY166)),$DX166,$DX$2&ROW($DX166)),$DW166,$DW$2&ROW($DW166)),$DV166,$DV$2&ROW($DV166)),$DU166,$DU$2&ROW($DU166)),$DT166,$DT$2&ROW($DT166)),$DS166,$DS$2&ROW($DS166)))","v":"X=AS166*AU166*-0.054"},{"$f":"IF(Z166=\"\",0,\"X=\"&SUBSTITUTE(SUBSTITUTE(SUBSTITUTE(SUBSTITUTE(SUBSTITUTE(SUBSTITUTE(SUBSTITUTE(SUBSTITUTE(SUBSTITUTE(SUBSTITUTE(SUBSTITUTE(SUBSTITUTE(Z166,$ED166,$ED$2&ROW($ED166)),$EC166,$EC$2&ROW($EC166)),$EB166,$EB$2&ROW($EB166)),$EA166,$EA$2&ROW($EA166)),$DZ166,$DZ$2&ROW($DZ166)),$DY166,$DY$2&ROW($DY166)),$DX166,$DX$2&ROW($DX166)),$DW166,$DW$2&ROW($DW166)),$DV166,$DV$2&ROW($DV166)),$DU166,$DU$2&ROW($DU166)),$DT166,$DT$2&ROW($DT166)),$DS166,$DS$2&ROW($DS166)))","v":"X=AS166*AU166*-0.002"},{"$f":"IF(AA166=\"\",0,\"X=\"&SUBSTITUTE(SUBSTITUTE(SUBSTITUTE(SUBSTITUTE(SUBSTITUTE(SUBSTITUTE(SUBSTITUTE(SUBSTITUTE(SUBSTITUTE(SUBSTITUTE(SUBSTITUTE(SUBSTITUTE(AA166,$ED166,$ED$2&ROW($ED166)),$EC166,$EC$2&ROW($EC166)),$EB166,$EB$2&ROW($EB166)),$EA166,$EA$2&ROW($EA166)),$DZ166,$DZ$2&ROW($DZ166)),$DY166,$DY$2&ROW($DY166)),$DX166,$DX$2&ROW($DX166)),$DW166,$DW$2&ROW($DW166)),$DV166,$DV$2&ROW($DV166)),$DU166,$DU$2&ROW($DU166)),$DT166,$DT$2&ROW($DT166)),$DS166,$DS$2&ROW($DS166)))","v":"X=AS166*AU166*-0.013"},{"$f":"IF(AB166=\"\",0,\"X=\"&SUBSTITUTE(SUBSTITUTE(SUBSTITUTE(SUBSTITUTE(SUBSTITUTE(SUBSTITUTE(SUBSTITUTE(SUBSTITUTE(SUBSTITUTE(SUBSTITUTE(SUBSTITUTE(SUBSTITUTE(AB166,$ED166,$ED$2&ROW($ED166)),$EC166,$EC$2&ROW($EC166)),$EB166,$EB$2&ROW($EB166)),$EA166,$EA$2&ROW($EA166)),$DZ166,$DZ$2&ROW($DZ166)),$DY166,$DY$2&ROW($DY166)),$DX166,$DX$2&ROW($DX166)),$DW166,$DW$2&ROW($DW166)),$DV166,$DV$2&ROW($DV166)),$DU166,$DU$2&ROW($DU166)),$DT166,$DT$2&ROW($DT166)),$DS166,$DS$2&ROW($DS166)))","v":0},null,null,"{Factor:WinterCF}","{Factor:SummerCF}",{"$f":"IFERROR(INDEX($EG166:$IV166,MATCH(0,COUNTIF($DR166:DT166,$EG166:$IV166),0)),\"\")","v":"{Measure:Quantity}"},{"$f":"IFERROR(INDEX($EG166:$IV166,MATCH(0,COUNTIF($DR166:DU166,$EG166:$IV166),0)),\"\")","v":"{Package Size}"},{"$f":"IFERROR(INDEX($EG166:$IV166,MATCH(0,COUNTIF($DR166:DV166,$EG166:$IV166),0)),\"\")","v":"{Rebate per Package}"},{"$f":"IFERROR(INDEX($EG166:$IV166,MATCH(0,COUNTIF($DR166:DW166,$EG166:$IV166),0)),\"\")","v":""},{"$f":"IFERROR(INDEX($EG166:$IV166,MATCH(0,COUNTIF($DR166:DX166,$EG166:$IV166),0)),\"\")","v":""},{"$f":"IFERROR(INDEX($EG166:$IV166,MATCH(0,COUNTIF($DR166:DY166,$EG166:$IV166),0)),\"\")","v":""},{"$f":"IFERROR(INDEX($EG166:$IV166,MATCH(0,COUNTIF($DR166:DZ166,$EG166:$IV166),0)),\"\")","v":""},{"$f":"IFERROR(INDEX($EG166:$IV166,MATCH(0,COUNTIF($DR166:EA166,$EG166:$IV166),0)),\"\")","v":""},{"$f":"IFERROR(INDEX($EG166:$IV166,MATCH(0,COUNTIF($DR166:EB166,$EG166:$IV166),0)),\"\")","v":""},{"$f":"IFERROR(INDEX($EG166:$IV166,MATCH(0,COUNTIF($DR166:EC166,$EG166:$IV166),0)),\"\")","v":""},null,null,{"$f":"IFERROR(MID($G166,FIND(CHAR(160),SUBSTITUTE($G166,\"{\",CHAR(160),EG$1)),FIND(CHAR(160),SUBSTITUTE($G166,\"}\",CHAR(160),EG$1))-FIND(CHAR(160),SUBSTITUTE($G166,\"{\",CHAR(160),EG$1))+1),\"\")","v":"{Measure:Quantity}"},{"$f":"IFERROR(MID($G166,FIND(CHAR(160),SUBSTITUTE($G166,\"{\",CHAR(160),EH$1)),FIND(CHAR(160),SUBSTITUTE($G166,\"}\",CHAR(160),EH$1))-FIND(CHAR(160),SUBSTITUTE($G166,\"{\",CHAR(160),EH$1))+1),\"\")","v":"{Package Size}"},{"$f":"IFERROR(MID($G166,FIND(CHAR(160),SUBSTITUTE($G166,\"{\",CHAR(160),EI$1)),FIND(CHAR(160),SUBSTITUTE($G166,\"}\",CHAR(160),EI$1))-FIND(CHAR(160),SUBSTITUTE($G166,\"{\",CHAR(160),EI$1))+1),\"\")","v":""},{"$f":"IFERROR(MID($G166,FIND(CHAR(160),SUBSTITUTE($G166,\"{\",CHAR(160),EJ$1)),FIND(CHAR(160),SUBSTITUTE($G166,\"}\",CHAR(160),EJ$1))-FIND(CHAR(160),SUBSTITUTE($G166,\"{\",CHAR(160),EJ$1))+1),\"\")","v":""},{"$f":"IFERROR(MID($G166,FIND(CHAR(160),SUBSTITUTE($G166,\"{\",CHAR(160),EK$1)),FIND(CHAR(160),SUBSTITUTE($G166,\"}\",CHAR(160),EK$1))-FIND(CHAR(160),SUBSTITUTE($G166,\"{\",CHAR(160),EK$1))+1),\"\")","v":""},{"$f":"IFERROR(MID($G166,FIND(CHAR(160),SUBSTITUTE($G166,\"{\",CHAR(160),EL$1)),FIND(CHAR(160),SUBSTITUTE($G166,\"}\",CHAR(160),EL$1))-FIND(CHAR(160),SUBSTITUTE($G166,\"{\",CHAR(160),EL$1))+1),\"\")","v":""},{"$f":"IFERROR(MID($G166,FIND(CHAR(160),SUBSTITUTE($G166,\"{\",CHAR(160),EM$1)),FIND(CHAR(160),SUBSTITUTE($G166,\"}\",CHAR(160),EM$1))-FIND(CHAR(160),SUBSTITUTE($G166,\"{\",CHAR(160),EM$1))+1),\"\")","v":""},{"$f":"IFERROR(MID($G166,FIND(CHAR(160),SUBSTITUTE($G166,\"{\",CHAR(160),EN$1)),FIND(CHAR(160),SUBSTITUTE($G166,\"}\",CHAR(160),EN$1))-FIND(CHAR(160),SUBSTITUTE($G166,\"{\",CHAR(160),EN$1))+1),\"\")","v":""},{"$f":"IFERROR(MID($G166,FIND(CHAR(160),SUBSTITUTE($G166,\"{\",CHAR(160),EO$1)),FIND(CHAR(160),SUBSTITUTE($G166,\"}\",CHAR(160),EO$1))-FIND(CHAR(160),SUBSTITUTE($G166,\"{\",CHAR(160),EO$1))+1),\"\")","v":""},{"$f":"IFERROR(MID($G166,FIND(CHAR(160),SUBSTITUTE($G166,\"{\",CHAR(160),EP$1)),FIND(CHAR(160),SUBSTITUTE($G166,\"}\",CHAR(160),EP$1))-FIND(CHAR(160),SUBSTITUTE($G166,\"{\",CHAR(160),EP$1))+1),\"\")","v":""},{"$f":"IFERROR(MID($J166,FIND(CHAR(160),SUBSTITUTE($J166,\"{\",CHAR(160),EQ$1)),FIND(CHAR(160),SUBSTITUTE($J166,\"}\",CHAR(160),EQ$1))-FIND(CHAR(160),SUBSTITUTE($J166,\"{\",CHAR(160),EQ$1))+1),\"\")","v":"{Measure:Quantity}"},{"$f":"IFERROR(MID($J166,FIND(CHAR(160),SUBSTITUTE($J166,\"{\",CHAR(160),ER$1)),FIND(CHAR(160),SUBSTITUTE($J166,\"}\",CHAR(160),ER$1))-FIND(CHAR(160),SUBSTITUTE($J166,\"{\",CHAR(160),ER$1))+1),\"\")","v":"{Rebate per Package}"},{"$f":"IFERROR(MID($J166,FIND(CHAR(160),SUBSTITUTE($J166,\"{\",CHAR(160),ES$1)),FIND(CHAR(160),SUBSTITUTE($J166,\"}\",CHAR(160),ES$1))-FIND(CHAR(160),SUBSTITUTE($J166,\"{\",CHAR(160),ES$1))+1),\"\")","v":""},{"$f":"IFERROR(MID($J166,FIND(CHAR(160),SUBSTITUTE($J166,\"{\",CHAR(160),ET$1)),FIND(CHAR(160),SUBSTITUTE($J166,\"}\",CHAR(160),ET$1))-FIND(CHAR(160),SUBSTITUTE($J166,\"{\",CHAR(160),ET$1))+1),\"\")","v":""},{"$f":"IFERROR(MID($J166,FIND(CHAR(160),SUBSTITUTE($J166,\"{\",CHAR(160),EU$1)),FIND(CHAR(160),SUBSTITUTE($J166,\"}\",CHAR(160),EU$1))-FIND(CHAR(160),SUBSTITUTE($J166,\"{\",CHAR(160),EU$1))+1),\"\")","v":""},{"$f":"IFERROR(MID($J166,FIND(CHAR(160),SUBSTITUTE($J166,\"{\",CHAR(160),EV$1)),FIND(CHAR(160),SUBSTITUTE($J166,\"}\",CHAR(160),EV$1))-FIND(CHAR(160),SUBSTITUTE($J166,\"{\",CHAR(160),EV$1))+1),\"\")","v":""},{"$f":"IFERROR(MID($J166,FIND(CHAR(160),SUBSTITUTE($J166,\"{\",CHAR(160),EW$1)),FIND(CHAR(160),SUBSTITUTE($J166,\"}\",CHAR(160),EW$1))-FIND(CHAR(160),SUBSTITUTE($J166,\"{\",CHAR(160),EW$1))+1),\"\")","v":""},{"$f":"IFERROR(MID($J166,FIND(CHAR(160),SUBSTITUTE($J166,\"{\",CHAR(160),EX$1)),FIND(CHAR(160),SUBSTITUTE($J166,\"}\",CHAR(160),EX$1))-FIND(CHAR(160),SUBSTITUTE($J166,\"{\",CHAR(160),EX$1))+1),\"\")","v":""},{"$f":"IFERROR(MID($J166,FIND(CHAR(160),SUBSTITUTE($J166,\"{\",CHAR(160),EY$1)),FIND(CHAR(160),SUBSTITUTE($J166,\"}\",CHAR(160),EY$1))-FIND(CHAR(160),SUBSTITUTE($J166,\"{\",CHAR(160),EY$1))+1),\"\")","v":""},{"$f":"IFERROR(MID($J166,FIND(CHAR(160),SUBSTITUTE($J166,\"{\",CHAR(160),EZ$1)),FIND(CHAR(160),SUBSTITUTE($J166,\"}\",CHAR(160),EZ$1))-FIND(CHAR(160),SUBSTITUTE($J166,\"{\",CHAR(160),EZ$1))+1),\"\")","v":""},{"$f":"IFERROR(MID($J166,FIND(CHAR(160),SUBSTITUTE($J166,\"{\",CHAR(160),FA$1)),FIND(CHAR(160),SUBSTITUTE($J166,\"}\",CHAR(160),FA$1))-FIND(CHAR(160),SUBSTITUTE($J166,\"{\",CHAR(160),FA$1))+1),\"\")","v":"{Measure:Quantity}"},{"$f":"IFERROR(MID($J166,FIND(CHAR(160),SUBSTITUTE($J166,\"{\",CHAR(160),FB$1)),FIND(CHAR(160),SUBSTITUTE($J166,\"}\",CHAR(160),FB$1))-FIND(CHAR(160),SUBSTITUTE($J166,\"{\",CHAR(160),FB$1))+1),\"\")","v":"{Rebate per Package}"},{"$f":"IFERROR(MID($O166,FIND(CHAR(160),SUBSTITUTE($O166,\"{\",CHAR(160),FC$1)),FIND(CHAR(160),SUBSTITUTE($O166,\"}\",CHAR(160),FC$1))-FIND(CHAR(160),SUBSTITUTE($O166,\"{\",CHAR(160),FC$1))+1),\"\")","v":""},{"$f":"IFERROR(MID($O166,FIND(CHAR(160),SUBSTITUTE($O166,\"{\",CHAR(160),FD$1)),FIND(CHAR(160),SUBSTITUTE($O166,\"}\",CHAR(160),FD$1))-FIND(CHAR(160),SUBSTITUTE($O166,\"{\",CHAR(160),FD$1))+1),\"\")","v":""},{"$f":"IFERROR(MID($O166,FIND(CHAR(160),SUBSTITUTE($O166,\"{\",CHAR(160),FE$1)),FIND(CHAR(160),SUBSTITUTE($O166,\"}\",CHAR(160),FE$1))-FIND(CHAR(160),SUBSTITUTE($O166,\"{\",CHAR(160),FE$1))+1),\"\")","v":""},{"$f":"IFERROR(MID($O166,FIND(CHAR(160),SUBSTITUTE($O166,\"{\",CHAR(160),FF$1)),FIND(CHAR(160),SUBSTITUTE($O166,\"}\",CHAR(160),FF$1))-FIND(CHAR(160),SUBSTITUTE($O166,\"{\",CHAR(160),FF$1))+1),\"\")","v":""},{"$f":"IFERROR(MID($O166,FIND(CHAR(160),SUBSTITUTE($O166,\"{\",CHAR(160),FG$1)),FIND(CHAR(160),SUBSTITUTE($O166,\"}\",CHAR(160),FG$1))-FIND(CHAR(160),SUBSTITUTE($O166,\"{\",CHAR(160),FG$1))+1),\"\")","v":""},{"$f":"IFERROR(MID($O166,FIND(CHAR(160),SUBSTITUTE($O166,\"{\",CHAR(160),FH$1)),FIND(CHAR(160),SUBSTITUTE($O166,\"}\",CHAR(160),FH$1))-FIND(CHAR(160),SUBSTITUTE($O166,\"{\",CHAR(160),FH$1))+1),\"\")","v":""},{"$f":"IFERROR(MID($O166,FIND(CHAR(160),SUBSTITUTE($O166,\"{\",CHAR(160),FI$1)),FIND(CHAR(160),SUBSTITUTE($O166,\"}\",CHAR(160),FI$1))-FIND(CHAR(160),SUBSTITUTE($O166,\"{\",CHAR(160),FI$1))+1),\"\")","v":""},{"$f":"IFERROR(MID($O166,FIND(CHAR(160),SUBSTITUTE($O166,\"{\",CHAR(160),FJ$1)),FIND(CHAR(160),SUBSTITUTE($O166,\"}\",CHAR(160),FJ$1))-FIND(CHAR(160),SUBSTITUTE($O166,\"{\",CHAR(160),FJ$1))+1),\"\")","v":""},{"$f":"IFERROR(MID($O166,FIND(CHAR(160),SUBSTITUTE($O166,\"{\",CHAR(160),FK$1)),FIND(CHAR(160),SUBSTITUTE($O166,\"}\",CHAR(160),FK$1))-FIND(CHAR(160),SUBSTITUTE($O166,\"{\",CHAR(160),FK$1))+1),\"\")","v":"{Measure:Quantity}"},{"$f":"IFERROR(MID($O166,FIND(CHAR(160),SUBSTITUTE($O166,\"{\",CHAR(160),FL$1)),FIND(CHAR(160),SUBSTITUTE($O166,\"}\",CHAR(160),FL$1))-FIND(CHAR(160),SUBSTITUTE($O166,\"{\",CHAR(160),FL$1))+1),\"\")","v":"{Package Size}"},{"$f":"IFERROR(MID($R166,FIND(CHAR(160),SUBSTITUTE($R166,\"{\",CHAR(160),FM$1)),FIND(CHAR(160),SUBSTITUTE($R166,\"}\",CHAR(160),FM$1))-FIND(CHAR(160),SUBSTITUTE($R166,\"{\",CHAR(160),FM$1))+1),\"\")","v":""},{"$f":"IFERROR(MID($R166,FIND(CHAR(160),SUBSTITUTE($R166,\"{\",CHAR(160),FN$1)),FIND(CHAR(160),SUBSTITUTE($R166,\"}\",CHAR(160),FN$1))-FIND(CHAR(160),SUBSTITUTE($R166,\"{\",CHAR(160),FN$1))+1),\"\")","v":""},{"$f":"IFERROR(MID($R166,FIND(CHAR(160),SUBSTITUTE($R166,\"{\",CHAR(160),FO$1)),FIND(CHAR(160),SUBSTITUTE($R166,\"}\",CHAR(160),FO$1))-FIND(CHAR(160),SUBSTITUTE($R166,\"{\",CHAR(160),FO$1))+1),\"\")","v":""},{"$f":"IFERROR(MID($R166,FIND(CHAR(160),SUBSTITUTE($R166,\"{\",CHAR(160),FP$1)),FIND(CHAR(160),SUBSTITUTE($R166,\"}\",CHAR(160),FP$1))-FIND(CHAR(160),SUBSTITUTE($R166,\"{\",CHAR(160),FP$1))+1),\"\")","v":""},{"$f":"IFERROR(MID($R166,FIND(CHAR(160),SUBSTITUTE($R166,\"{\",CHAR(160),FQ$1)),FIND(CHAR(160),SUBSTITUTE($R166,\"}\",CHAR(160),FQ$1))-FIND(CHAR(160),SUBSTITUTE($R166,\"{\",CHAR(160),FQ$1))+1),\"\")","v":""},{"$f":"IFERROR(MID($R166,FIND(CHAR(160),SUBSTITUTE($R166,\"{\",CHAR(160),FR$1)),FIND(CHAR(160),SUBSTITUTE($R166,\"}\",CHAR(160),FR$1))-FIND(CHAR(160),SUBSTITUTE($R166,\"{\",CHAR(160),FR$1))+1),\"\")","v":""},{"$f":"IFERROR(MID($R166,FIND(CHAR(160),SUBSTITUTE($R166,\"{\",CHAR(160),FS$1)),FIND(CHAR(160),SUBSTITUTE($R166,\"}\",CHAR(160),FS$1))-FIND(CHAR(160),SUBSTITUTE($R166,\"{\",CHAR(160),FS$1))+1),\"\")","v":""},{"$f":"IFERROR(MID($R166,FIND(CHAR(160),SUBSTITUTE($R166,\"{\",CHAR(160),FT$1)),FIND(CHAR(160),SUBSTITUTE($R166,\"}\",CHAR(160),FT$1))-FIND(CHAR(160),SUBSTITUTE($R166,\"{\",CHAR(160),FT$1))+1),\"\")","v":""},{"$f":"IFERROR(MID($R166,FIND(CHAR(160),SUBSTITUTE($R166,\"{\",CHAR(160),FU$1)),FIND(CHAR(160),SUBSTITUTE($R166,\"}\",CHAR(160),FU$1))-FIND(CHAR(160),SUBSTITUTE($R166,\"{\",CHAR(160),FU$1))+1),\"\")","v":"{Measure:Quantity}"},{"$f":"IFERROR(MID($R166,FIND(CHAR(160),SUBSTITUTE($R166,\"{\",CHAR(160),FV$1)),FIND(CHAR(160),SUBSTITUTE($R166,\"}\",CHAR(160),FV$1))-FIND(CHAR(160),SUBSTITUTE($R166,\"{\",CHAR(160),FV$1))+1),\"\")","v":"{Package Size}"},{"$f":"IFERROR(MID($U166,FIND(CHAR(160),SUBSTITUTE($U166,\"{\",CHAR(160),FW$1)),FIND(CHAR(160),SUBSTITUTE($U166,\"}\",CHAR(160),FW$1))-FIND(CHAR(160),SUBSTITUTE($U166,\"{\",CHAR(160),FW$1))+1),\"\")","v":"{Factor:WinterCF}"},{"$f":"IFERROR(MID($U166,FIND(CHAR(160),SUBSTITUTE($U166,\"{\",CHAR(160),FX$1)),FIND(CHAR(160),SUBSTITUTE($U166,\"}\",CHAR(160),FX$1))-FIND(CHAR(160),SUBSTITUTE($U166,\"{\",CHAR(160),FX$1))+1),\"\")","v":""},{"$f":"IFERROR(MID($U166,FIND(CHAR(160),SUBSTITUTE($U166,\"{\",CHAR(160),FY$1)),FIND(CHAR(160),SUBSTITUTE($U166,\"}\",CHAR(160),FY$1))-FIND(CHAR(160),SUBSTITUTE($U166,\"{\",CHAR(160),FY$1))+1),\"\")","v":""},{"$f":"IFERROR(MID($U166,FIND(CHAR(160),SUBSTITUTE($U166,\"{\",CHAR(160),FZ$1)),FIND(CHAR(160),SUBSTITUTE($U166,\"}\",CHAR(160),FZ$1))-FIND(CHAR(160),SUBSTITUTE($U166,\"{\",CHAR(160),FZ$1))+1),\"\")","v":""},{"$f":"IFERROR(MID($U166,FIND(CHAR(160),SUBSTITUTE($U166,\"{\",CHAR(160),GA$1)),FIND(CHAR(160),SUBSTITUTE($U166,\"}\",CHAR(160),GA$1))-FIND(CHAR(160),SUBSTITUTE($U166,\"{\",CHAR(160),GA$1))+1),\"\")","v":""},{"$f":"IFERROR(MID($U166,FIND(CHAR(160),SUBSTITUTE($U166,\"{\",CHAR(160),GB$1)),FIND(CHAR(160),SUBSTITUTE($U166,\"}\",CHAR(160),GB$1))-FIND(CHAR(160),SUBSTITUTE($U166,\"{\",CHAR(160),GB$1))+1),\"\")","v":""},{"$f":"IFERROR(MID($U166,FIND(CHAR(160),SUBSTITUTE($U166,\"{\",CHAR(160),GC$1)),FIND(CHAR(160),SUBSTITUTE($U166,\"}\",CHAR(160),GC$1))-FIND(CHAR(160),SUBSTITUTE($U166,\"{\",CHAR(160),GC$1))+1),\"\")","v":""},{"$f":"IFERROR(MID($U166,FIND(CHAR(160),SUBSTITUTE($U166,\"{\",CHAR(160),GD$1)),FIND(CHAR(160),SUBSTITUTE($U166,\"}\",CHAR(160),GD$1))-FIND(CHAR(160),SUBSTITUTE($U166,\"{\",CHAR(160),GD$1))+1),\"\")","v":""},{"$f":"IFERROR(MID($U166,FIND(CHAR(160),SUBSTITUTE($U166,\"{\",CHAR(160),GE$1)),FIND(CHAR(160),SUBSTITUTE($U166,\"}\",CHAR(160),GE$1))-FIND(CHAR(160),SUBSTITUTE($U166,\"{\",CHAR(160),GE$1))+1),\"\")","v":"{Measure:Quantity}"},{"$f":"IFERROR(MID($U166,FIND(CHAR(160),SUBSTITUTE($U166,\"{\",CHAR(160),GF$1)),FIND(CHAR(160),SUBSTITUTE($U166,\"}\",CHAR(160),GF$1))-FIND(CHAR(160),SUBSTITUTE($U166,\"{\",CHAR(160),GF$1))+1),\"\")","v":"{Package Size}"},{"$f":"IFERROR(MID($V166,FIND(CHAR(160),SUBSTITUTE($V166,\"{\",CHAR(160),GG$1)),FIND(CHAR(160),SUBSTITUTE($V166,\"}\",CHAR(160),GG$1))-FIND(CHAR(160),SUBSTITUTE($V166,\"{\",CHAR(160),GG$1))+1),\"\")","v":"{Factor:SummerCF}"},{"$f":"IFERROR(MID($V166,FIND(CHAR(160),SUBSTITUTE($V166,\"{\",CHAR(160),GH$1)),FIND(CHAR(160),SUBSTITUTE($V166,\"}\",CHAR(160),GH$1))-FIND(CHAR(160),SUBSTITUTE($V166,\"{\",CHAR(160),GH$1))+1),\"\")","v":""},{"$f":"IFERROR(MID($V166,FIND(CHAR(160),SUBSTITUTE($V166,\"{\",CHAR(160),GI$1)),FIND(CHAR(160),SUBSTITUTE($V166,\"}\",CHAR(160),GI$1))-FIND(CHAR(160),SUBSTITUTE($V166,\"{\",CHAR(160),GI$1))+1),\"\")","v":""},{"$f":"IFERROR(MID($V166,FIND(CHAR(160),SUBSTITUTE($V166,\"{\",CHAR(160),GJ$1)),FIND(CHAR(160),SUBSTITUTE($V166,\"}\",CHAR(160),GJ$1))-FIND(CHAR(160),SUBSTITUTE($V166,\"{\",CHAR(160),GJ$1))+1),\"\")","v":""},{"$f":"IFERROR(MID($V166,FIND(CHAR(160),SUBSTITUTE($V166,\"{\",CHAR(160),GK$1)),FIND(CHAR(160),SUBSTITUTE($V166,\"}\",CHAR(160),GK$1))-FIND(CHAR(160),SUBSTITUTE($V166,\"{\",CHAR(160),GK$1))+1),\"\")","v":""},{"$f":"IFERROR(MID($V166,FIND(CHAR(160),SUBSTITUTE($V166,\"{\",CHAR(160),GL$1)),FIND(CHAR(160),SUBSTITUTE($V166,\"}\",CHAR(160),GL$1))-FIND(CHAR(160),SUBSTITUTE($V166,\"{\",CHAR(160),GL$1))+1),\"\")","v":""},{"$f":"IFERROR(MID($V166,FIND(CHAR(160),SUBSTITUTE($V166,\"{\",CHAR(160),GM$1)),FIND(CHAR(160),SUBSTITUTE($V166,\"}\",CHAR(160),GM$1))-FIND(CHAR(160),SUBSTITUTE($V166,\"{\",CHAR(160),GM$1))+1),\"\")","v":""},{"$f":"IFERROR(MID($V166,FIND(CHAR(160),SUBSTITUTE($V166,\"{\",CHAR(160),GN$1)),FIND(CHAR(160),SUBSTITUTE($V166,\"}\",CHAR(160),GN$1))-FIND(CHAR(160),SUBSTITUTE($V166,\"{\",CHAR(160),GN$1))+1),\"\")","v":""},{"$f":"IFERROR(MID($V166,FIND(CHAR(160),SUBSTITUTE($V166,\"{\",CHAR(160),GO$1)),FIND(CHAR(160),SUBSTITUTE($V166,\"}\",CHAR(160),GO$1))-FIND(CHAR(160),SUBSTITUTE($V166,\"{\",CHAR(160),GO$1))+1),\"\")","v":"{Measure:Quantity}"},{"$f":"IFERROR(MID($V166,FIND(CHAR(160),SUBSTITUTE($V166,\"{\",CHAR(160),GP$1)),FIND(CHAR(160),SUBSTITUTE($V166,\"}\",CHAR(160),GP$1))-FIND(CHAR(160),SUBSTITUTE($V166,\"{\",CHAR(160),GP$1))+1),\"\")","v":"{Package Size}"},{"$f":"IFERROR(MID($W166,FIND(CHAR(160),SUBSTITUTE($W166,\"{\",CHAR(160),GQ$1)),FIND(CHAR(160),SUBSTITUTE($W166,\"}\",CHAR(160),GQ$1))-FIND(CHAR(160),SUBSTITUTE($W166,\"{\",CHAR(160),GQ$1))+1),\"\")","v":""},{"$f":"IFERROR(MID($W166,FIND(CHAR(160),SUBSTITUTE($W166,\"{\",CHAR(160),GR$1)),FIND(CHAR(160),SUBSTITUTE($W166,\"}\",CHAR(160),GR$1))-FIND(CHAR(160),SUBSTITUTE($W166,\"{\",CHAR(160),GR$1))+1),\"\")","v":""},{"$f":"IFERROR(MID($W166,FIND(CHAR(160),SUBSTITUTE($W166,\"{\",CHAR(160),GS$1)),FIND(CHAR(160),SUBSTITUTE($W166,\"}\",CHAR(160),GS$1))-FIND(CHAR(160),SUBSTITUTE($W166,\"{\",CHAR(160),GS$1))+1),\"\")","v":""},{"$f":"IFERROR(MID($W166,FIND(CHAR(160),SUBSTITUTE($W166,\"{\",CHAR(160),GT$1)),FIND(CHAR(160),SUBSTITUTE($W166,\"}\",CHAR(160),GT$1))-FIND(CHAR(160),SUBSTITUTE($W166,\"{\",CHAR(160),GT$1))+1),\"\")","v":""},{"$f":"IFERROR(MID($W166,FIND(CHAR(160),SUBSTITUTE($W166,\"{\",CHAR(160),GU$1)),FIND(CHAR(160),SUBSTITUTE($W166,\"}\",CHAR(160),GU$1))-FIND(CHAR(160),SUBSTITUTE($W166,\"{\",CHAR(160),GU$1))+1),\"\")","v":""},{"$f":"IFERROR(MID($W166,FIND(CHAR(160),SUBSTITUTE($W166,\"{\",CHAR(160),GV$1)),FIND(CHAR(160),SUBSTITUTE($W166,\"}\",CHAR(160),GV$1))-FIND(CHAR(160),SUBSTITUTE($W166,\"{\",CHAR(160),GV$1))+1),\"\")","v":""},{"$f":"IFERROR(MID($W166,FIND(CHAR(160),SUBSTITUTE($W166,\"{\",CHAR(160),GW$1)),FIND(CHAR(160),SUBSTITUTE($W166,\"}\",CHAR(160),GW$1))-FIND(CHAR(160),SUBSTITUTE($W166,\"{\",CHAR(160),GW$1))+1),\"\")","v":""},{"$f":"IFERROR(MID($W166,FIND(CHAR(160),SUBSTITUTE($W166,\"{\",CHAR(160),GX$1)),FIND(CHAR(160),SUBSTITUTE($W166,\"}\",CHAR(160),GX$1))-FIND(CHAR(160),SUBSTITUTE($W166,\"{\",CHAR(160),GX$1))+1),\"\")","v":""},{"$f":"IFERROR(MID($W166,FIND(CHAR(160),SUBSTITUTE($W166,\"{\",CHAR(160),GY$1)),FIND(CHAR(160),SUBSTITUTE($W166,\"}\",CHAR(160),GY$1))-FIND(CHAR(160),SUBSTITUTE($W166,\"{\",CHAR(160),GY$1))+1),\"\")","v":"{Measure:Quantity}"},{"$f":"IFERROR(MID($W166,FIND(CHAR(160),SUBSTITUTE($W166,\"{\",CHAR(160),GZ$1)),FIND(CHAR(160),SUBSTITUTE($W166,\"}\",CHAR(160),GZ$1))-FIND(CHAR(160),SUBSTITUTE($W166,\"{\",CHAR(160),GZ$1))+1),\"\")","v":"{Package Size}"},{"$f":"IFERROR(MID($X166,FIND(CHAR(160),SUBSTITUTE($X166,\"{\",CHAR(160),HA$1)),FIND(CHAR(160),SUBSTITUTE($X166,\"}\",CHAR(160),HA$1))-FIND(CHAR(160),SUBSTITUTE($X166,\"{\",CHAR(160),HA$1))+1),\"\")","v":""},{"$f":"IFERROR(MID($X166,FIND(CHAR(160),SUBSTITUTE($X166,\"{\",CHAR(160),HB$1)),FIND(CHAR(160),SUBSTITUTE($X166,\"}\",CHAR(160),HB$1))-FIND(CHAR(160),SUBSTITUTE($X166,\"{\",CHAR(160),HB$1))+1),\"\")","v":""},{"$f":"IFERROR(MID($X166,FIND(CHAR(160),SUBSTITUTE($X166,\"{\",CHAR(160),HC$1)),FIND(CHAR(160),SUBSTITUTE($X166,\"}\",CHAR(160),HC$1))-FIND(CHAR(160),SUBSTITUTE($X166,\"{\",CHAR(160),HC$1))+1),\"\")","v":""},{"$f":"IFERROR(MID($X166,FIND(CHAR(160),SUBSTITUTE($X166,\"{\",CHAR(160),HD$1)),FIND(CHAR(160),SUBSTITUTE($X166,\"}\",CHAR(160),HD$1))-FIND(CHAR(160),SUBSTITUTE($X166,\"{\",CHAR(160),HD$1))+1),\"\")","v":""},{"$f":"IFERROR(MID($X166,FIND(CHAR(160),SUBSTITUTE($X166,\"{\",CHAR(160),HE$1)),FIND(CHAR(160),SUBSTITUTE($X166,\"}\",CHAR(160),HE$1))-FIND(CHAR(160),SUBSTITUTE($X166,\"{\",CHAR(160),HE$1))+1),\"\")","v":""},{"$f":"IFERROR(MID($X166,FIND(CHAR(160),SUBSTITUTE($X166,\"{\",CHAR(160),HF$1)),FIND(CHAR(160),SUBSTITUTE($X166,\"}\",CHAR(160),HF$1))-FIND(CHAR(160),SUBSTITUTE($X166,\"{\",CHAR(160),HF$1))+1),\"\")","v":""},{"$f":"IFERROR(MID($X166,FIND(CHAR(160),SUBSTITUTE($X166,\"{\",CHAR(160),HG$1)),FIND(CHAR(160),SUBSTITUTE($X166,\"}\",CHAR(160),HG$1))-FIND(CHAR(160),SUBSTITUTE($X166,\"{\",CHAR(160),HG$1))+1),\"\")","v":""},{"$f":"IFERROR(MID($X166,FIND(CHAR(160),SUBSTITUTE($X166,\"{\",CHAR(160),HH$1)),FIND(CHAR(160),SUBSTITUTE($X166,\"}\",CHAR(160),HH$1))-FIND(CHAR(160),SUBSTITUTE($X166,\"{\",CHAR(160),HH$1))+1),\"\")","v":""},{"$f":"IFERROR(MID($X166,FIND(CHAR(160),SUBSTITUTE($X166,\"{\",CHAR(160),HI$1)),FIND(CHAR(160),SUBSTITUTE($X166,\"}\",CHAR(160),HI$1))-FIND(CHAR(160),SUBSTITUTE($X166,\"{\",CHAR(160),HI$1))+1),\"\")","v":"{Measure:Quantity}"},{"$f":"IFERROR(MID($X166,FIND(CHAR(160),SUBSTITUTE($X166,\"{\",CHAR(160),HJ$1)),FIND(CHAR(160),SUBSTITUTE($X166,\"}\",CHAR(160),HJ$1))-FIND(CHAR(160),SUBSTITUTE($X166,\"{\",CHAR(160),HJ$1))+1),\"\")","v":"{Package Size}"},{"$f":"IFERROR(MID($Y166,FIND(CHAR(160),SUBSTITUTE($Y166,\"{\",CHAR(160),HK$1)),FIND(CHAR(160),SUBSTITUTE($Y166,\"}\",CHAR(160),HK$1))-FIND(CHAR(160),SUBSTITUTE($Y166,\"{\",CHAR(160),HK$1))+1),\"\")","v":""},{"$f":"IFERROR(MID($Y166,FIND(CHAR(160),SUBSTITUTE($Y166,\"{\",CHAR(160),HL$1)),FIND(CHAR(160),SUBSTITUTE($Y166,\"}\",CHAR(160),HL$1))-FIND(CHAR(160),SUBSTITUTE($Y166,\"{\",CHAR(160),HL$1))+1),\"\")","v":""},{"$f":"IFERROR(MID($Y166,FIND(CHAR(160),SUBSTITUTE($Y166,\"{\",CHAR(160),HM$1)),FIND(CHAR(160),SUBSTITUTE($Y166,\"}\",CHAR(160),HM$1))-FIND(CHAR(160),SUBSTITUTE($Y166,\"{\",CHAR(160),HM$1))+1),\"\")","v":""},{"$f":"IFERROR(MID($Y166,FIND(CHAR(160),SUBSTITUTE($Y166,\"{\",CHAR(160),HN$1)),FIND(CHAR(160),SUBSTITUTE($Y166,\"}\",CHAR(160),HN$1))-FIND(CHAR(160),SUBSTITUTE($Y166,\"{\",CHAR(160),HN$1))+1),\"\")","v":""},{"$f":"IFERROR(MID($Y166,FIND(CHAR(160),SUBSTITUTE($Y166,\"{\",CHAR(160),HO$1)),FIND(CHAR(160),SUBSTITUTE($Y166,\"}\",CHAR(160),HO$1))-FIND(CHAR(160),SUBSTITUTE($Y166,\"{\",CHAR(160),HO$1))+1),\"\")","v":""},{"$f":"IFERROR(MID($Y166,FIND(CHAR(160),SUBSTITUTE($Y166,\"{\",CHAR(160),HP$1)),FIND(CHAR(160),SUBSTITUTE($Y166,\"}\",CHAR(160),HP$1))-FIND(CHAR(160),SUBSTITUTE($Y166,\"{\",CHAR(160),HP$1))+1),\"\")","v":""},{"$f":"IFERROR(MID($Y166,FIND(CHAR(160),SUBSTITUTE($Y166,\"{\",CHAR(160),HQ$1)),FIND(CHAR(160),SUBSTITUTE($Y166,\"}\",CHAR(160),HQ$1))-FIND(CHAR(160),SUBSTITUTE($Y166,\"{\",CHAR(160),HQ$1))+1),\"\")","v":""},{"$f":"IFERROR(MID($Y166,FIND(CHAR(160),SUBSTITUTE($Y166,\"{\",CHAR(160),HR$1)),FIND(CHAR(160),SUBSTITUTE($Y166,\"}\",CHAR(160),HR$1))-FIND(CHAR(160),SUBSTITUTE($Y166,\"{\",CHAR(160),HR$1))+1),\"\")","v":""},{"$f":"IFERROR(MID($Y166,FIND(CHAR(160),SUBSTITUTE($Y166,\"{\",CHAR(160),HS$1)),FIND(CHAR(160),SUBSTITUTE($Y166,\"}\",CHAR(160),HS$1))-FIND(CHAR(160),SUBSTITUTE($Y166,\"{\",CHAR(160),HS$1))+1),\"\")","v":"{Measure:Quantity}"},{"$f":"IFERROR(MID($Y166,FIND(CHAR(160),SUBSTITUTE($Y166,\"{\",CHAR(160),HT$1)),FIND(CHAR(160),SUBSTITUTE($Y166,\"}\",CHAR(160),HT$1))-FIND(CHAR(160),SUBSTITUTE($Y166,\"{\",CHAR(160),HT$1))+1),\"\")","v":"{Package Size}"},{"$f":"IFERROR(MID($Z166,FIND(CHAR(160),SUBSTITUTE($Z166,\"{\",CHAR(160),HU$1)),FIND(CHAR(160),SUBSTITUTE($Z166,\"}\",CHAR(160),HU$1))-FIND(CHAR(160),SUBSTITUTE($Z166,\"{\",CHAR(160),HU$1))+1),\"\")","v":""},{"$f":"IFERROR(MID($Z166,FIND(CHAR(160),SUBSTITUTE($Z166,\"{\",CHAR(160),HV$1)),FIND(CHAR(160),SUBSTITUTE($Z166,\"}\",CHAR(160),HV$1))-FIND(CHAR(160),SUBSTITUTE($Z166,\"{\",CHAR(160),HV$1))+1),\"\")","v":""},{"$f":"IFERROR(MID($Z166,FIND(CHAR(160),SUBSTITUTE($Z166,\"{\",CHAR(160),HW$1)),FIND(CHAR(160),SUBSTITUTE($Z166,\"}\",CHAR(160),HW$1))-FIND(CHAR(160),SUBSTITUTE($Z166,\"{\",CHAR(160),HW$1))+1),\"\")","v":""},{"$f":"IFERROR(MID($Z166,FIND(CHAR(160),SUBSTITUTE($Z166,\"{\",CHAR(160),HX$1)),FIND(CHAR(160),SUBSTITUTE($Z166,\"}\",CHAR(160),HX$1))-FIND(CHAR(160),SUBSTITUTE($Z166,\"{\",CHAR(160),HX$1))+1),\"\")","v":""},{"$f":"IFERROR(MID($Z166,FIND(CHAR(160),SUBSTITUTE($Z166,\"{\",CHAR(160),HY$1)),FIND(CHAR(160),SUBSTITUTE($Z166,\"}\",CHAR(160),HY$1))-FIND(CHAR(160),SUBSTITUTE($Z166,\"{\",CHAR(160),HY$1))+1),\"\")","v":""},{"$f":"IFERROR(MID($Z166,FIND(CHAR(160),SUBSTITUTE($Z166,\"{\",CHAR(160),HZ$1)),FIND(CHAR(160),SUBSTITUTE($Z166,\"}\",CHAR(160),HZ$1))-FIND(CHAR(160),SUBSTITUTE($Z166,\"{\",CHAR(160),HZ$1))+1),\"\")","v":""},{"$f":"IFERROR(MID($Z166,FIND(CHAR(160),SUBSTITUTE($Z166,\"{\",CHAR(160),IA$1)),FIND(CHAR(160),SUBSTITUTE($Z166,\"}\",CHAR(160),IA$1))-FIND(CHAR(160),SUBSTITUTE($Z166,\"{\",CHAR(160),IA$1))+1),\"\")","v":""},{"$f":"IFERROR(MID($Z166,FIND(CHAR(160),SUBSTITUTE($Z166,\"{\",CHAR(160),IB$1)),FIND(CHAR(160),SUBSTITUTE($Z166,\"}\",CHAR(160),IB$1))-FIND(CHAR(160),SUBSTITUTE($Z166,\"{\",CHAR(160),IB$1))+1),\"\")","v":""},{"$f":"IFERROR(MID($Z166,FIND(CHAR(160),SUBSTITUTE($Z166,\"{\",CHAR(160),IC$1)),FIND(CHAR(160),SUBSTITUTE($Z166,\"}\",CHAR(160),IC$1))-FIND(CHAR(160),SUBSTITUTE($Z166,\"{\",CHAR(160),IC$1))+1),\"\")","v":"{Measure:Quantity}"},{"$f":"IFERROR(MID($Z166,FIND(CHAR(160),SUBSTITUTE($Z166,\"{\",CHAR(160),ID$1)),FIND(CHAR(160),SUBSTITUTE($Z166,\"}\",CHAR(160),ID$1))-FIND(CHAR(160),SUBSTITUTE($Z166,\"{\",CHAR(160),ID$1))+1),\"\")","v":"{Package Size}"},{"$f":"IFERROR(MID($AA166,FIND(CHAR(160),SUBSTITUTE($AA166,\"{\",CHAR(160),IE$1)),FIND(CHAR(160),SUBSTITUTE($AA166,\"}\",CHAR(160),IE$1))-FIND(CHAR(160),SUBSTITUTE($AA166,\"{\",CHAR(160),IE$1))+1),\"\")","v":""},{"$f":"IFERROR(MID($AA166,FIND(CHAR(160),SUBSTITUTE($AA166,\"{\",CHAR(160),IF$1)),FIND(CHAR(160),SUBSTITUTE($AA166,\"}\",CHAR(160),IF$1))-FIND(CHAR(160),SUBSTITUTE($AA166,\"{\",CHAR(160),IF$1))+1),\"\")","v":""},{"$f":"IFERROR(MID($AA166,FIND(CHAR(160),SUBSTITUTE($AA166,\"{\",CHAR(160),IG$1)),FIND(CHAR(160),SUBSTITUTE($AA166,\"}\",CHAR(160),IG$1))-FIND(CHAR(160),SUBSTITUTE($AA166,\"{\",CHAR(160),IG$1))+1),\"\")","v":""},{"$f":"IFERROR(MID($AA166,FIND(CHAR(160),SUBSTITUTE($AA166,\"{\",CHAR(160),IH$1)),FIND(CHAR(160),SUBSTITUTE($AA166,\"}\",CHAR(160),IH$1))-FIND(CHAR(160),SUBSTITUTE($AA166,\"{\",CHAR(160),IH$1))+1),\"\")","v":""},{"$f":"IFERROR(MID($AA166,FIND(CHAR(160),SUBSTITUTE($AA166,\"{\",CHAR(160),II$1)),FIND(CHAR(160),SUBSTITUTE($AA166,\"}\",CHAR(160),II$1))-FIND(CHAR(160),SUBSTITUTE($AA166,\"{\",CHAR(160),II$1))+1),\"\")","v":""},{"$f":"IFERROR(MID($AA166,FIND(CHAR(160),SUBSTITUTE($AA166,\"{\",CHAR(160),IJ$1)),FIND(CHAR(160),SUBSTITUTE($AA166,\"}\",CHAR(160),IJ$1))-FIND(CHAR(160),SUBSTITUTE($AA166,\"{\",CHAR(160),IJ$1))+1),\"\")","v":""},{"$f":"IFERROR(MID($AA166,FIND(CHAR(160),SUBSTITUTE($AA166,\"{\",CHAR(160),IK$1)),FIND(CHAR(160),SUBSTITUTE($AA166,\"}\",CHAR(160),IK$1))-FIND(CHAR(160),SUBSTITUTE($AA166,\"{\",CHAR(160),IK$1))+1),\"\")","v":""},{"$f":"IFERROR(MID($AA166,FIND(CHAR(160),SUBSTITUTE($AA166,\"{\",CHAR(160),IL$1)),FIND(CHAR(160),SUBSTITUTE($AA166,\"}\",CHAR(160),IL$1))-FIND(CHAR(160),SUBSTITUTE($AA166,\"{\",CHAR(160),IL$1))+1),\"\")","v":""},{"$f":"IFERROR(MID($AA166,FIND(CHAR(160),SUBSTITUTE($AA166,\"{\",CHAR(160),IM$1)),FIND(CHAR(160),SUBSTITUTE($AA166,\"}\",CHAR(160),IM$1))-FIND(CHAR(160),SUBSTITUTE($AA166,\"{\",CHAR(160),IM$1))+1),\"\")","v":"{Measure:Quantity}"},{"$f":"IFERROR(MID($AA166,FIND(CHAR(160),SUBSTITUTE($AA166,\"{\",CHAR(160),IN$1)),FIND(CHAR(160),SUBSTITUTE($AA166,\"}\",CHAR(160),IN$1))-FIND(CHAR(160),SUBSTITUTE($AA166,\"{\",CHAR(160),IN$1))+1),\"\")","v":"{Package Size}"},{"$f":"IFERROR(MID($AB166,FIND(CHAR(160),SUBSTITUTE($AB166,\"{\",CHAR(160),IO$1)),FIND(CHAR(160),SUBSTITUTE($AB166,\"}\",CHAR(160),IO$1))-FIND(CHAR(160),SUBSTITUTE($AB166,\"{\",CHAR(160),IO$1))+1),\"\")","v":""},{"$f":"IFERROR(MID($AB166,FIND(CHAR(160),SUBSTITUTE($AB166,\"{\",CHAR(160),IP$1)),FIND(CHAR(160),SUBSTITUTE($AB166,\"}\",CHAR(160),IP$1))-FIND(CHAR(160),SUBSTITUTE($AB166,\"{\",CHAR(160),IP$1))+1),\"\")","v":""},{"$f":"IFERROR(MID($AB166,FIND(CHAR(160),SUBSTITUTE($AB166,\"{\",CHAR(160),IQ$1)),FIND(CHAR(160),SUBSTITUTE($AB166,\"}\",CHAR(160),IQ$1))-FIND(CHAR(160),SUBSTITUTE($AB166,\"{\",CHAR(160),IQ$1))+1),\"\")","v":""},{"$f":"IFERROR(MID($AB166,FIND(CHAR(160),SUBSTITUTE($AB166,\"{\",CHAR(160),IR$1)),FIND(CHAR(160),SUBSTITUTE($AB166,\"}\",CHAR(160),IR$1))-FIND(CHAR(160),SUBSTITUTE($AB166,\"{\",CHAR(160),IR$1))+1),\"\")","v":""},{"$f":"IFERROR(MID($AB166,FIND(CHAR(160),SUBSTITUTE($AB166,\"{\",CHAR(160),IS$1)),FIND(CHAR(160),SUBSTITUTE($AB166,\"}\",CHAR(160),IS$1))-FIND(CHAR(160),SUBSTITUTE($AB166,\"{\",CHAR(160),IS$1))+1),\"\")","v":""},{"$f":"IFERROR(MID($AB166,FIND(CHAR(160),SUBSTITUTE($AB166,\"{\",CHAR(160),IT$1)),FIND(CHAR(160),SUBSTITUTE($AB166,\"}\",CHAR(160),IT$1))-FIND(CHAR(160),SUBSTITUTE($AB166,\"{\",CHAR(160),IT$1))+1),\"\")","v":""},{"$f":"IFERROR(MID($AB166,FIND(CHAR(160),SUBSTITUTE($AB166,\"{\",CHAR(160),IU$1)),FIND(CHAR(160),SUBSTITUTE($AB166,\"}\",CHAR(160),IU$1))-FIND(CHAR(160),SUBSTITUTE($AB166,\"{\",CHAR(160),IU$1))+1),\"\")","v":""},{"$f":"IFERROR(MID($AB166,FIND(CHAR(160),SUBSTITUTE($AB166,\"{\",CHAR(160),IV$1)),FIND(CHAR(160),SUBSTITUTE($AB166,\"}\",CHAR(160),IV$1))-FIND(CHAR(160),SUBSTITUTE($AB166,\"{\",CHAR(160),IV$1))+1),\"\")","v":""},{"$f":"IFERROR(MID($AB166,FIND(CHAR(160),SUBSTITUTE($AB166,\"{\",CHAR(160),IW$1)),FIND(CHAR(160),SUBSTITUTE($AB166,\"}\",CHAR(160),IW$1))-FIND(CHAR(160),SUBSTITUTE($AB166,\"{\",CHAR(160),IW$1))+1),\"\")","v":""},{"$f":"IFERROR(MID($AB166,FIND(CHAR(160),SUBSTITUTE($AB166,\"{\",CHAR(160),IX$1)),FIND(CHAR(160),SUBSTITUTE($AB166,\"}\",CHAR(160),IX$1))-FIND(CHAR(160),SUBSTITUTE($AB166,\"{\",CHAR(160),IX$1))+1),\"\")","v":""},null,{"$f":"10-COUNTIF(DU166:ED166,\"\")","v":3}]
["Distributor Lighting","Specialty LED - Globe","LEDGlobe","2021-07-01","2022-06-30","Calculated","{Measure:Quantity}*{Package Size}*7.21",0,"Calculated","{Measure:Quantity}*{Rebate per Package}",0,"2021-07-01","2022-06-30","Calculated","{Measure:Quantity}*{Package Size}*52",null,null,"{Measure:Quantity}*{Package Size}*1.0747*0.03",null,null,"{Measure:Quantity}*{Package Size}*{Factor:WinterCF}*0.03","{Measure:Quantity}*{Package Size}*{Factor:SummerCF}*1.0747*0.03","{Measure:Quantity}*{Package Size}*10*-0.007","{Measure:Quantity}*{Package Size}*-0.004","{Measure:Quantity}*{Package Size}*-0.034","{Measure:Quantity}*{Package Size}*-0.001","{Measure:Quantity}*{Package Size}*-0.008",null,"2021-07-01","2022-06-30",4,0.254,0.309,0.42299999999999999,0.249,0.21,0.11799999999999999,0.99,1,1,0.51,0,null,{"$f":"DU167","v":"{Measure:Quantity}"},1,{"$f":"DV167","v":"{Package Size}"},1,{"$f":"DW167","v":"{Rebate per Package}"},{"$f":"CW167*CO167","v":0},{"$f":"DX167","v":""},null,{"$f":"DY167","v":""},null,{"$f":"DZ167","v":""},null,{"$f":"EA167","v":""},null,{"$f":"EB167","v":""},null,{"$f":"EC167","v":""},null,{"$f":"ED167","v":""},null,{"$f":"AS167*AU167*52","v":52},0,0,{"$f":"AS167*AU167*1.0747*0.03","v":3.2240999999999999E-2},0,0,{"$f":"AS167*AU167*AF167*0.03","v":7.62E-3},{"$f":"AS167*AU167*AG167*1.0747*0.03","v":9.9624689999999998E-3},{"$f":"AS167*AU167*10*-0.007","v":-7.0000000000000007E-2},{"$f":"AS167*AU167*-0.004","v":-4.0000000000000001E-3},{"$f":"AS167*AU167*-0.034","v":-3.4000000000000002E-2},{"$f":"AS167*AU167*-0.001","v":-1E-3},{"$f":"AS167*AU167*-0.008","v":-8.0000000000000002E-3},0,null,"Res","Default DR",{"$f":"Benefits(BL167,BR167,BS167,BT167,BU167,BV167,BW167,BX167,BY167,BZ167,AE167,AH167,AI167,AJ167,AK167,AL167,AM167,AN167,AO167,AP167,CA167,CB167)","v":23.238901117741712},14.426478384121983,-0.4654485056949223,-4.3200723008493451,-0.14543538089809677,-0.70777768089744719,-0.56972925166876776,0,0,{"$f":"SUMPRODUCT(CC167:CK167,--(CC167:CK167>0))","v":37.665379501863697},{"$f":"-SUMPRODUCT(CC167:CK167,--(CC167:CK167<0))","v":6.2084631200085791},null,{"$f":"AS167*AU167*7.21","v":7.21},null,null,{"$f":"CM167+CO167","v":13.418463120008578},{"$f":"IF(NetOrGross=\"Net\",(1-AO167+AP167),1)","v":1},{"$f":"(SUMPRODUCT(CC167:CJ167,--(CC167:CJ167>0))+CN167)*CS167/((-SUMPRODUCT(CC167:CJ167,--(CC167:CJ167<0))+MAX(CO167,CV167)+CP167+CQ167)*CS167+IF(FRIncentives=\"Yes\",CV167*(1-CS167),0))","v":2.8069816315774632},1,{"$f":"AS167*AW167","v":0},{"$f":"CW166","v":0},"Electric","y",null,{"$f":"IF(F167=\"Manual Entry\",\"Manual\",IF(G167=\"\",0,\"X=\"&SUBSTITUTE(SUBSTITUTE(SUBSTITUTE(SUBSTITUTE(SUBSTITUTE(SUBSTITUTE(SUBSTITUTE(SUBSTITUTE(SUBSTITUTE(SUBSTITUTE(SUBSTITUTE(SUBSTITUTE(G167,$ED167,$ED$2&ROW($ED167)),$EC167,$EC$2&ROW($EC167)),$EB167,$EB$2&ROW($EB167)),$EA167,$EA$2&ROW($EA167)),$DZ167,$DZ$2&ROW($DZ167)),$DY167,$DY$2&ROW($DY167)),$DX167,$DX$2&ROW($DX167)),$DW167,$DW$2&ROW($DW167)),$DV167,$DV$2&ROW($DV167)),$DU167,$DU$2&ROW($DU167)),$DT167,$DT$2&ROW($DT167)),$DS167,$DS$2&ROW($DS167))))","v":"X=AS167*AU167*7.21"},{"$f":"IF(I167=\"Manual Entry\",\"Manual\",IF(J167=\"\",0,\"X=\"&SUBSTITUTE(SUBSTITUTE(SUBSTITUTE(SUBSTITUTE(SUBSTITUTE(SUBSTITUTE(SUBSTITUTE(SUBSTITUTE(SUBSTITUTE(SUBSTITUTE(SUBSTITUTE(SUBSTITUTE(J167,$ED167,$ED$2&ROW($ED167)),$EC167,$EC$2&ROW($EC167)),$EB167,$EB$2&ROW($EB167)),$EA167,$EA$2&ROW($EA167)),$DZ167,$DZ$2&ROW($DZ167)),$DY167,$DY$2&ROW($DY167)),$DX167,$DX$2&ROW($DX167)),$DW167,$DW$2&ROW($DW167)),$DV167,$DV$2&ROW($DV167)),$DU167,$DU$2&ROW($DU167)),$DT167,$DT$2&ROW($DT167)),$DS167,$DS$2&ROW($DS167))))","v":"X=AS167*AW167"},{"$f":"IF(O167=\"\",0,\"X=\"&SUBSTITUTE(SUBSTITUTE(SUBSTITUTE(SUBSTITUTE(SUBSTITUTE(SUBSTITUTE(SUBSTITUTE(SUBSTITUTE(SUBSTITUTE(SUBSTITUTE(SUBSTITUTE(SUBSTITUTE(O167,$ED167,$ED$2&ROW($ED167)),$EC167,$EC$2&ROW($EC167)),$EB167,$EB$2&ROW($EB167)),$EA167,$EA$2&ROW($EA167)),$DZ167,$DZ$2&ROW($DZ167)),$DY167,$DY$2&ROW($DY167)),$DX167,$DX$2&ROW($DX167)),$DW167,$DW$2&ROW($DW167)),$DV167,$DV$2&ROW($DV167)),$DU167,$DU$2&ROW($DU167)),$DT167,$DT$2&ROW($DT167)),$DS167,$DS$2&ROW($DS167)))","v":"X=AS167*AU167*52"},{"$f":"IF(P167=\"\",0,\"X=\"&SUBSTITUTE(SUBSTITUTE(SUBSTITUTE(SUBSTITUTE(SUBSTITUTE(SUBSTITUTE(SUBSTITUTE(SUBSTITUTE(SUBSTITUTE(SUBSTITUTE(SUBSTITUTE(SUBSTITUTE(P167,$ED167,$ED$2&ROW($ED167)),$EC167,$EC$2&ROW($EC167)),$EB167,$EB$2&ROW($EB167)),$EA167,$EA$2&ROW($EA167)),$DZ167,$DZ$2&ROW($DZ167)),$DY167,$DY$2&ROW($DY167)),$DX167,$DX$2&ROW($DX167)),$DW167,$DW$2&ROW($DW167)),$DV167,$DV$2&ROW($DV167)),$DU167,$DU$2&ROW($DU167)),$DT167,$DT$2&ROW($DT167)),$DS167,$DS$2&ROW($DS167)))","v":0},{"$f":"IF(Q167=\"\",0,\"X=\"&SUBSTITUTE(SUBSTITUTE(SUBSTITUTE(SUBSTITUTE(SUBSTITUTE(SUBSTITUTE(SUBSTITUTE(SUBSTITUTE(SUBSTITUTE(SUBSTITUTE(SUBSTITUTE(SUBSTITUTE(Q167,$ED167,$ED$2&ROW($ED167)),$EC167,$EC$2&ROW($EC167)),$EB167,$EB$2&ROW($EB167)),$EA167,$EA$2&ROW($EA167)),$DZ167,$DZ$2&ROW($DZ167)),$DY167,$DY$2&ROW($DY167)),$DX167,$DX$2&ROW($DX167)),$DW167,$DW$2&ROW($DW167)),$DV167,$DV$2&ROW($DV167)),$DU167,$DU$2&ROW($DU167)),$DT167,$DT$2&ROW($DT167)),$DS167,$DS$2&ROW($DS167)))","v":0},{"$f":"IF(R167=\"\",0,\"X=\"&SUBSTITUTE(SUBSTITUTE(SUBSTITUTE(SUBSTITUTE(SUBSTITUTE(SUBSTITUTE(SUBSTITUTE(SUBSTITUTE(SUBSTITUTE(SUBSTITUTE(SUBSTITUTE(SUBSTITUTE(R167,$ED167,$ED$2&ROW($ED167)),$EC167,$EC$2&ROW($EC167)),$EB167,$EB$2&ROW($EB167)),$EA167,$EA$2&ROW($EA167)),$DZ167,$DZ$2&ROW($DZ167)),$DY167,$DY$2&ROW($DY167)),$DX167,$DX$2&ROW($DX167)),$DW167,$DW$2&ROW($DW167)),$DV167,$DV$2&ROW($DV167)),$DU167,$DU$2&ROW($DU167)),$DT167,$DT$2&ROW($DT167)),$DS167,$DS$2&ROW($DS167)))","v":"X=AS167*AU167*1.0747*0.03"},{"$f":"IF(S167=\"\",0,\"X=\"&SUBSTITUTE(SUBSTITUTE(SUBSTITUTE(SUBSTITUTE(SUBSTITUTE(SUBSTITUTE(SUBSTITUTE(SUBSTITUTE(SUBSTITUTE(SUBSTITUTE(SUBSTITUTE(SUBSTITUTE(S167,$ED167,$ED$2&ROW($ED167)),$EC167,$EC$2&ROW($EC167)),$EB167,$EB$2&ROW($EB167)),$EA167,$EA$2&ROW($EA167)),$DZ167,$DZ$2&ROW($DZ167)),$DY167,$DY$2&ROW($DY167)),$DX167,$DX$2&ROW($DX167)),$DW167,$DW$2&ROW($DW167)),$DV167,$DV$2&ROW($DV167)),$DU167,$DU$2&ROW($DU167)),$DT167,$DT$2&ROW($DT167)),$DS167,$DS$2&ROW($DS167)))","v":0},{"$f":"IF(T167=\"\",0,\"X=\"&SUBSTITUTE(SUBSTITUTE(SUBSTITUTE(SUBSTITUTE(SUBSTITUTE(SUBSTITUTE(SUBSTITUTE(SUBSTITUTE(SUBSTITUTE(SUBSTITUTE(SUBSTITUTE(SUBSTITUTE(T167,$ED167,$ED$2&ROW($ED167)),$EC167,$EC$2&ROW($EC167)),$EB167,$EB$2&ROW($EB167)),$EA167,$EA$2&ROW($EA167)),$DZ167,$DZ$2&ROW($DZ167)),$DY167,$DY$2&ROW($DY167)),$DX167,$DX$2&ROW($DX167)),$DW167,$DW$2&ROW($DW167)),$DV167,$DV$2&ROW($DV167)),$DU167,$DU$2&ROW($DU167)),$DT167,$DT$2&ROW($DT167)),$DS167,$DS$2&ROW($DS167)))","v":0},{"$f":"IF(U167=\"\",0,\"X=\"&SUBSTITUTE(SUBSTITUTE(SUBSTITUTE(SUBSTITUTE(SUBSTITUTE(SUBSTITUTE(SUBSTITUTE(SUBSTITUTE(SUBSTITUTE(SUBSTITUTE(SUBSTITUTE(SUBSTITUTE(U167,$ED167,$ED$2&ROW($ED167)),$EC167,$EC$2&ROW($EC167)),$EB167,$EB$2&ROW($EB167)),$EA167,$EA$2&ROW($EA167)),$DZ167,$DZ$2&ROW($DZ167)),$DY167,$DY$2&ROW($DY167)),$DX167,$DX$2&ROW($DX167)),$DW167,$DW$2&ROW($DW167)),$DV167,$DV$2&ROW($DV167)),$DU167,$DU$2&ROW($DU167)),$DT167,$DT$2&ROW($DT167)),$DS167,$DS$2&ROW($DS167)))","v":"X=AS167*AU167*AF167*0.03"},{"$f":"IF(V167=\"\",0,\"X=\"&SUBSTITUTE(SUBSTITUTE(SUBSTITUTE(SUBSTITUTE(SUBSTITUTE(SUBSTITUTE(SUBSTITUTE(SUBSTITUTE(SUBSTITUTE(SUBSTITUTE(SUBSTITUTE(SUBSTITUTE(V167,$ED167,$ED$2&ROW($ED167)),$EC167,$EC$2&ROW($EC167)),$EB167,$EB$2&ROW($EB167)),$EA167,$EA$2&ROW($EA167)),$DZ167,$DZ$2&ROW($DZ167)),$DY167,$DY$2&ROW($DY167)),$DX167,$DX$2&ROW($DX167)),$DW167,$DW$2&ROW($DW167)),$DV167,$DV$2&ROW($DV167)),$DU167,$DU$2&ROW($DU167)),$DT167,$DT$2&ROW($DT167)),$DS167,$DS$2&ROW($DS167)))","v":"X=AS167*AU167*AG167*1.0747*0.03"},{"$f":"IF(W167=\"\",0,\"X=\"&SUBSTITUTE(SUBSTITUTE(SUBSTITUTE(SUBSTITUTE(SUBSTITUTE(SUBSTITUTE(SUBSTITUTE(SUBSTITUTE(SUBSTITUTE(SUBSTITUTE(SUBSTITUTE(SUBSTITUTE(W167,$ED167,$ED$2&ROW($ED167)),$EC167,$EC$2&ROW($EC167)),$EB167,$EB$2&ROW($EB167)),$EA167,$EA$2&ROW($EA167)),$DZ167,$DZ$2&ROW($DZ167)),$DY167,$DY$2&ROW($DY167)),$DX167,$DX$2&ROW($DX167)),$DW167,$DW$2&ROW($DW167)),$DV167,$DV$2&ROW($DV167)),$DU167,$DU$2&ROW($DU167)),$DT167,$DT$2&ROW($DT167)),$DS167,$DS$2&ROW($DS167)))","v":"X=AS167*AU167*10*-0.007"},{"$f":"IF(X167=\"\",0,\"X=\"&SUBSTITUTE(SUBSTITUTE(SUBSTITUTE(SUBSTITUTE(SUBSTITUTE(SUBSTITUTE(SUBSTITUTE(SUBSTITUTE(SUBSTITUTE(SUBSTITUTE(SUBSTITUTE(SUBSTITUTE(X167,$ED167,$ED$2&ROW($ED167)),$EC167,$EC$2&ROW($EC167)),$EB167,$EB$2&ROW($EB167)),$EA167,$EA$2&ROW($EA167)),$DZ167,$DZ$2&ROW($DZ167)),$DY167,$DY$2&ROW($DY167)),$DX167,$DX$2&ROW($DX167)),$DW167,$DW$2&ROW($DW167)),$DV167,$DV$2&ROW($DV167)),$DU167,$DU$2&ROW($DU167)),$DT167,$DT$2&ROW($DT167)),$DS167,$DS$2&ROW($DS167)))","v":"X=AS167*AU167*-0.004"},{"$f":"IF(Y167=\"\",0,\"X=\"&SUBSTITUTE(SUBSTITUTE(SUBSTITUTE(SUBSTITUTE(SUBSTITUTE(SUBSTITUTE(SUBSTITUTE(SUBSTITUTE(SUBSTITUTE(SUBSTITUTE(SUBSTITUTE(SUBSTITUTE(Y167,$ED167,$ED$2&ROW($ED167)),$EC167,$EC$2&ROW($EC167)),$EB167,$EB$2&ROW($EB167)),$EA167,$EA$2&ROW($EA167)),$DZ167,$DZ$2&ROW($DZ167)),$DY167,$DY$2&ROW($DY167)),$DX167,$DX$2&ROW($DX167)),$DW167,$DW$2&ROW($DW167)),$DV167,$DV$2&ROW($DV167)),$DU167,$DU$2&ROW($DU167)),$DT167,$DT$2&ROW($DT167)),$DS167,$DS$2&ROW($DS167)))","v":"X=AS167*AU167*-0.034"},{"$f":"IF(Z167=\"\",0,\"X=\"&SUBSTITUTE(SUBSTITUTE(SUBSTITUTE(SUBSTITUTE(SUBSTITUTE(SUBSTITUTE(SUBSTITUTE(SUBSTITUTE(SUBSTITUTE(SUBSTITUTE(SUBSTITUTE(SUBSTITUTE(Z167,$ED167,$ED$2&ROW($ED167)),$EC167,$EC$2&ROW($EC167)),$EB167,$EB$2&ROW($EB167)),$EA167,$EA$2&ROW($EA167)),$DZ167,$DZ$2&ROW($DZ167)),$DY167,$DY$2&ROW($DY167)),$DX167,$DX$2&ROW($DX167)),$DW167,$DW$2&ROW($DW167)),$DV167,$DV$2&ROW($DV167)),$DU167,$DU$2&ROW($DU167)),$DT167,$DT$2&ROW($DT167)),$DS167,$DS$2&ROW($DS167)))","v":"X=AS167*AU167*-0.001"},{"$f":"IF(AA167=\"\",0,\"X=\"&SUBSTITUTE(SUBSTITUTE(SUBSTITUTE(SUBSTITUTE(SUBSTITUTE(SUBSTITUTE(SUBSTITUTE(SUBSTITUTE(SUBSTITUTE(SUBSTITUTE(SUBSTITUTE(SUBSTITUTE(AA167,$ED167,$ED$2&ROW($ED167)),$EC167,$EC$2&ROW($EC167)),$EB167,$EB$2&ROW($EB167)),$EA167,$EA$2&ROW($EA167)),$DZ167,$DZ$2&ROW($DZ167)),$DY167,$DY$2&ROW($DY167)),$DX167,$DX$2&ROW($DX167)),$DW167,$DW$2&ROW($DW167)),$DV167,$DV$2&ROW($DV167)),$DU167,$DU$2&ROW($DU167)),$DT167,$DT$2&ROW($DT167)),$DS167,$DS$2&ROW($DS167)))","v":"X=AS167*AU167*-0.008"},{"$f":"IF(AB167=\"\",0,\"X=\"&SUBSTITUTE(SUBSTITUTE(SUBSTITUTE(SUBSTITUTE(SUBSTITUTE(SUBSTITUTE(SUBSTITUTE(SUBSTITUTE(SUBSTITUTE(SUBSTITUTE(SUBSTITUTE(SUBSTITUTE(AB167,$ED167,$ED$2&ROW($ED167)),$EC167,$EC$2&ROW($EC167)),$EB167,$EB$2&ROW($EB167)),$EA167,$EA$2&ROW($EA167)),$DZ167,$DZ$2&ROW($DZ167)),$DY167,$DY$2&ROW($DY167)),$DX167,$DX$2&ROW($DX167)),$DW167,$DW$2&ROW($DW167)),$DV167,$DV$2&ROW($DV167)),$DU167,$DU$2&ROW($DU167)),$DT167,$DT$2&ROW($DT167)),$DS167,$DS$2&ROW($DS167)))","v":0},null,null,"{Factor:WinterCF}","{Factor:SummerCF}",{"$f":"IFERROR(INDEX($EG167:$IV167,MATCH(0,COUNTIF($DR167:DT167,$EG167:$IV167),0)),\"\")","v":"{Measure:Quantity}"},{"$f":"IFERROR(INDEX($EG167:$IV167,MATCH(0,COUNTIF($DR167:DU167,$EG167:$IV167),0)),\"\")","v":"{Package Size}"},{"$f":"IFERROR(INDEX($EG167:$IV167,MATCH(0,COUNTIF($DR167:DV167,$EG167:$IV167),0)),\"\")","v":"{Rebate per Package}"},{"$f":"IFERROR(INDEX($EG167:$IV167,MATCH(0,COUNTIF($DR167:DW167,$EG167:$IV167),0)),\"\")","v":""},{"$f":"IFERROR(INDEX($EG167:$IV167,MATCH(0,COUNTIF($DR167:DX167,$EG167:$IV167),0)),\"\")","v":""},{"$f":"IFERROR(INDEX($EG167:$IV167,MATCH(0,COUNTIF($DR167:DY167,$EG167:$IV167),0)),\"\")","v":""},{"$f":"IFERROR(INDEX($EG167:$IV167,MATCH(0,COUNTIF($DR167:DZ167,$EG167:$IV167),0)),\"\")","v":""},{"$f":"IFERROR(INDEX($EG167:$IV167,MATCH(0,COUNTIF($DR167:EA167,$EG167:$IV167),0)),\"\")","v":""},{"$f":"IFERROR(INDEX($EG167:$IV167,MATCH(0,COUNTIF($DR167:EB167,$EG167:$IV167),0)),\"\")","v":""},{"$f":"IFERROR(INDEX($EG167:$IV167,MATCH(0,COUNTIF($DR167:EC167,$EG167:$IV167),0)),\"\")","v":""},null,null,{"$f":"IFERROR(MID($G167,FIND(CHAR(160),SUBSTITUTE($G167,\"{\",CHAR(160),EG$1)),FIND(CHAR(160),SUBSTITUTE($G167,\"}\",CHAR(160),EG$1))-FIND(CHAR(160),SUBSTITUTE($G167,\"{\",CHAR(160),EG$1))+1),\"\")","v":"{Measure:Quantity}"},{"$f":"IFERROR(MID($G167,FIND(CHAR(160),SUBSTITUTE($G167,\"{\",CHAR(160),EH$1)),FIND(CHAR(160),SUBSTITUTE($G167,\"}\",CHAR(160),EH$1))-FIND(CHAR(160),SUBSTITUTE($G167,\"{\",CHAR(160),EH$1))+1),\"\")","v":"{Package Size}"},{"$f":"IFERROR(MID($G167,FIND(CHAR(160),SUBSTITUTE($G167,\"{\",CHAR(160),EI$1)),FIND(CHAR(160),SUBSTITUTE($G167,\"}\",CHAR(160),EI$1))-FIND(CHAR(160),SUBSTITUTE($G167,\"{\",CHAR(160),EI$1))+1),\"\")","v":""},{"$f":"IFERROR(MID($G167,FIND(CHAR(160),SUBSTITUTE($G167,\"{\",CHAR(160),EJ$1)),FIND(CHAR(160),SUBSTITUTE($G167,\"}\",CHAR(160),EJ$1))-FIND(CHAR(160),SUBSTITUTE($G167,\"{\",CHAR(160),EJ$1))+1),\"\")","v":""},{"$f":"IFERROR(MID($G167,FIND(CHAR(160),SUBSTITUTE($G167,\"{\",CHAR(160),EK$1)),FIND(CHAR(160),SUBSTITUTE($G167,\"}\",CHAR(160),EK$1))-FIND(CHAR(160),SUBSTITUTE($G167,\"{\",CHAR(160),EK$1))+1),\"\")","v":""},{"$f":"IFERROR(MID($G167,FIND(CHAR(160),SUBSTITUTE($G167,\"{\",CHAR(160),EL$1)),FIND(CHAR(160),SUBSTITUTE($G167,\"}\",CHAR(160),EL$1))-FIND(CHAR(160),SUBSTITUTE($G167,\"{\",CHAR(160),EL$1))+1),\"\")","v":""},{"$f":"IFERROR(MID($G167,FIND(CHAR(160),SUBSTITUTE($G167,\"{\",CHAR(160),EM$1)),FIND(CHAR(160),SUBSTITUTE($G167,\"}\",CHAR(160),EM$1))-FIND(CHAR(160),SUBSTITUTE($G167,\"{\",CHAR(160),EM$1))+1),\"\")","v":""},{"$f":"IFERROR(MID($G167,FIND(CHAR(160),SUBSTITUTE($G167,\"{\",CHAR(160),EN$1)),FIND(CHAR(160),SUBSTITUTE($G167,\"}\",CHAR(160),EN$1))-FIND(CHAR(160),SUBSTITUTE($G167,\"{\",CHAR(160),EN$1))+1),\"\")","v":""},{"$f":"IFERROR(MID($G167,FIND(CHAR(160),SUBSTITUTE($G167,\"{\",CHAR(160),EO$1)),FIND(CHAR(160),SUBSTITUTE($G167,\"}\",CHAR(160),EO$1))-FIND(CHAR(160),SUBSTITUTE($G167,\"{\",CHAR(160),EO$1))+1),\"\")","v":""},{"$f":"IFERROR(MID($G167,FIND(CHAR(160),SUBSTITUTE($G167,\"{\",CHAR(160),EP$1)),FIND(CHAR(160),SUBSTITUTE($G167,\"}\",CHAR(160),EP$1))-FIND(CHAR(160),SUBSTITUTE($G167,\"{\",CHAR(160),EP$1))+1),\"\")","v":""},{"$f":"IFERROR(MID($J167,FIND(CHAR(160),SUBSTITUTE($J167,\"{\",CHAR(160),EQ$1)),FIND(CHAR(160),SUBSTITUTE($J167,\"}\",CHAR(160),EQ$1))-FIND(CHAR(160),SUBSTITUTE($J167,\"{\",CHAR(160),EQ$1))+1),\"\")","v":"{Measure:Quantity}"},{"$f":"IFERROR(MID($J167,FIND(CHAR(160),SUBSTITUTE($J167,\"{\",CHAR(160),ER$1)),FIND(CHAR(160),SUBSTITUTE($J167,\"}\",CHAR(160),ER$1))-FIND(CHAR(160),SUBSTITUTE($J167,\"{\",CHAR(160),ER$1))+1),\"\")","v":"{Rebate per Package}"},{"$f":"IFERROR(MID($J167,FIND(CHAR(160),SUBSTITUTE($J167,\"{\",CHAR(160),ES$1)),FIND(CHAR(160),SUBSTITUTE($J167,\"}\",CHAR(160),ES$1))-FIND(CHAR(160),SUBSTITUTE($J167,\"{\",CHAR(160),ES$1))+1),\"\")","v":""},{"$f":"IFERROR(MID($J167,FIND(CHAR(160),SUBSTITUTE($J167,\"{\",CHAR(160),ET$1)),FIND(CHAR(160),SUBSTITUTE($J167,\"}\",CHAR(160),ET$1))-FIND(CHAR(160),SUBSTITUTE($J167,\"{\",CHAR(160),ET$1))+1),\"\")","v":""},{"$f":"IFERROR(MID($J167,FIND(CHAR(160),SUBSTITUTE($J167,\"{\",CHAR(160),EU$1)),FIND(CHAR(160),SUBSTITUTE($J167,\"}\",CHAR(160),EU$1))-FIND(CHAR(160),SUBSTITUTE($J167,\"{\",CHAR(160),EU$1))+1),\"\")","v":""},{"$f":"IFERROR(MID($J167,FIND(CHAR(160),SUBSTITUTE($J167,\"{\",CHAR(160),EV$1)),FIND(CHAR(160),SUBSTITUTE($J167,\"}\",CHAR(160),EV$1))-FIND(CHAR(160),SUBSTITUTE($J167,\"{\",CHAR(160),EV$1))+1),\"\")","v":""},{"$f":"IFERROR(MID($J167,FIND(CHAR(160),SUBSTITUTE($J167,\"{\",CHAR(160),EW$1)),FIND(CHAR(160),SUBSTITUTE($J167,\"}\",CHAR(160),EW$1))-FIND(CHAR(160),SUBSTITUTE($J167,\"{\",CHAR(160),EW$1))+1),\"\")","v":""},{"$f":"IFERROR(MID($J167,FIND(CHAR(160),SUBSTITUTE($J167,\"{\",CHAR(160),EX$1)),FIND(CHAR(160),SUBSTITUTE($J167,\"}\",CHAR(160),EX$1))-FIND(CHAR(160),SUBSTITUTE($J167,\"{\",CHAR(160),EX$1))+1),\"\")","v":""},{"$f":"IFERROR(MID($J167,FIND(CHAR(160),SUBSTITUTE($J167,\"{\",CHAR(160),EY$1)),FIND(CHAR(160),SUBSTITUTE($J167,\"}\",CHAR(160),EY$1))-FIND(CHAR(160),SUBSTITUTE($J167,\"{\",CHAR(160),EY$1))+1),\"\")","v":""},{"$f":"IFERROR(MID($J167,FIND(CHAR(160),SUBSTITUTE($J167,\"{\",CHAR(160),EZ$1)),FIND(CHAR(160),SUBSTITUTE($J167,\"}\",CHAR(160),EZ$1))-FIND(CHAR(160),SUBSTITUTE($J167,\"{\",CHAR(160),EZ$1))+1),\"\")","v":""},{"$f":"IFERROR(MID($J167,FIND(CHAR(160),SUBSTITUTE($J167,\"{\",CHAR(160),FA$1)),FIND(CHAR(160),SUBSTITUTE($J167,\"}\",CHAR(160),FA$1))-FIND(CHAR(160),SUBSTITUTE($J167,\"{\",CHAR(160),FA$1))+1),\"\")","v":"{Measure:Quantity}"},{"$f":"IFERROR(MID($J167,FIND(CHAR(160),SUBSTITUTE($J167,\"{\",CHAR(160),FB$1)),FIND(CHAR(160),SUBSTITUTE($J167,\"}\",CHAR(160),FB$1))-FIND(CHAR(160),SUBSTITUTE($J167,\"{\",CHAR(160),FB$1))+1),\"\")","v":"{Rebate per Package}"},{"$f":"IFERROR(MID($O167,FIND(CHAR(160),SUBSTITUTE($O167,\"{\",CHAR(160),FC$1)),FIND(CHAR(160),SUBSTITUTE($O167,\"}\",CHAR(160),FC$1))-FIND(CHAR(160),SUBSTITUTE($O167,\"{\",CHAR(160),FC$1))+1),\"\")","v":""},{"$f":"IFERROR(MID($O167,FIND(CHAR(160),SUBSTITUTE($O167,\"{\",CHAR(160),FD$1)),FIND(CHAR(160),SUBSTITUTE($O167,\"}\",CHAR(160),FD$1))-FIND(CHAR(160),SUBSTITUTE($O167,\"{\",CHAR(160),FD$1))+1),\"\")","v":""},{"$f":"IFERROR(MID($O167,FIND(CHAR(160),SUBSTITUTE($O167,\"{\",CHAR(160),FE$1)),FIND(CHAR(160),SUBSTITUTE($O167,\"}\",CHAR(160),FE$1))-FIND(CHAR(160),SUBSTITUTE($O167,\"{\",CHAR(160),FE$1))+1),\"\")","v":""},{"$f":"IFERROR(MID($O167,FIND(CHAR(160),SUBSTITUTE($O167,\"{\",CHAR(160),FF$1)),FIND(CHAR(160),SUBSTITUTE($O167,\"}\",CHAR(160),FF$1))-FIND(CHAR(160),SUBSTITUTE($O167,\"{\",CHAR(160),FF$1))+1),\"\")","v":""},{"$f":"IFERROR(MID($O167,FIND(CHAR(160),SUBSTITUTE($O167,\"{\",CHAR(160),FG$1)),FIND(CHAR(160),SUBSTITUTE($O167,\"}\",CHAR(160),FG$1))-FIND(CHAR(160),SUBSTITUTE($O167,\"{\",CHAR(160),FG$1))+1),\"\")","v":""},{"$f":"IFERROR(MID($O167,FIND(CHAR(160),SUBSTITUTE($O167,\"{\",CHAR(160),FH$1)),FIND(CHAR(160),SUBSTITUTE($O167,\"}\",CHAR(160),FH$1))-FIND(CHAR(160),SUBSTITUTE($O167,\"{\",CHAR(160),FH$1))+1),\"\")","v":""},{"$f":"IFERROR(MID($O167,FIND(CHAR(160),SUBSTITUTE($O167,\"{\",CHAR(160),FI$1)),FIND(CHAR(160),SUBSTITUTE($O167,\"}\",CHAR(160),FI$1))-FIND(CHAR(160),SUBSTITUTE($O167,\"{\",CHAR(160),FI$1))+1),\"\")","v":""},{"$f":"IFERROR(MID($O167,FIND(CHAR(160),SUBSTITUTE($O167,\"{\",CHAR(160),FJ$1)),FIND(CHAR(160),SUBSTITUTE($O167,\"}\",CHAR(160),FJ$1))-FIND(CHAR(160),SUBSTITUTE($O167,\"{\",CHAR(160),FJ$1))+1),\"\")","v":""},{"$f":"IFERROR(MID($O167,FIND(CHAR(160),SUBSTITUTE($O167,\"{\",CHAR(160),FK$1)),FIND(CHAR(160),SUBSTITUTE($O167,\"}\",CHAR(160),FK$1))-FIND(CHAR(160),SUBSTITUTE($O167,\"{\",CHAR(160),FK$1))+1),\"\")","v":"{Measure:Quantity}"},{"$f":"IFERROR(MID($O167,FIND(CHAR(160),SUBSTITUTE($O167,\"{\",CHAR(160),FL$1)),FIND(CHAR(160),SUBSTITUTE($O167,\"}\",CHAR(160),FL$1))-FIND(CHAR(160),SUBSTITUTE($O167,\"{\",CHAR(160),FL$1))+1),\"\")","v":"{Package Size}"},{"$f":"IFERROR(MID($R167,FIND(CHAR(160),SUBSTITUTE($R167,\"{\",CHAR(160),FM$1)),FIND(CHAR(160),SUBSTITUTE($R167,\"}\",CHAR(160),FM$1))-FIND(CHAR(160),SUBSTITUTE($R167,\"{\",CHAR(160),FM$1))+1),\"\")","v":""},{"$f":"IFERROR(MID($R167,FIND(CHAR(160),SUBSTITUTE($R167,\"{\",CHAR(160),FN$1)),FIND(CHAR(160),SUBSTITUTE($R167,\"}\",CHAR(160),FN$1))-FIND(CHAR(160),SUBSTITUTE($R167,\"{\",CHAR(160),FN$1))+1),\"\")","v":""},{"$f":"IFERROR(MID($R167,FIND(CHAR(160),SUBSTITUTE($R167,\"{\",CHAR(160),FO$1)),FIND(CHAR(160),SUBSTITUTE($R167,\"}\",CHAR(160),FO$1))-FIND(CHAR(160),SUBSTITUTE($R167,\"{\",CHAR(160),FO$1))+1),\"\")","v":""},{"$f":"IFERROR(MID($R167,FIND(CHAR(160),SUBSTITUTE($R167,\"{\",CHAR(160),FP$1)),FIND(CHAR(160),SUBSTITUTE($R167,\"}\",CHAR(160),FP$1))-FIND(CHAR(160),SUBSTITUTE($R167,\"{\",CHAR(160),FP$1))+1),\"\")","v":""},{"$f":"IFERROR(MID($R167,FIND(CHAR(160),SUBSTITUTE($R167,\"{\",CHAR(160),FQ$1)),FIND(CHAR(160),SUBSTITUTE($R167,\"}\",CHAR(160),FQ$1))-FIND(CHAR(160),SUBSTITUTE($R167,\"{\",CHAR(160),FQ$1))+1),\"\")","v":""},{"$f":"IFERROR(MID($R167,FIND(CHAR(160),SUBSTITUTE($R167,\"{\",CHAR(160),FR$1)),FIND(CHAR(160),SUBSTITUTE($R167,\"}\",CHAR(160),FR$1))-FIND(CHAR(160),SUBSTITUTE($R167,\"{\",CHAR(160),FR$1))+1),\"\")","v":""},{"$f":"IFERROR(MID($R167,FIND(CHAR(160),SUBSTITUTE($R167,\"{\",CHAR(160),FS$1)),FIND(CHAR(160),SUBSTITUTE($R167,\"}\",CHAR(160),FS$1))-FIND(CHAR(160),SUBSTITUTE($R167,\"{\",CHAR(160),FS$1))+1),\"\")","v":""},{"$f":"IFERROR(MID($R167,FIND(CHAR(160),SUBSTITUTE($R167,\"{\",CHAR(160),FT$1)),FIND(CHAR(160),SUBSTITUTE($R167,\"}\",CHAR(160),FT$1))-FIND(CHAR(160),SUBSTITUTE($R167,\"{\",CHAR(160),FT$1))+1),\"\")","v":""},{"$f":"IFERROR(MID($R167,FIND(CHAR(160),SUBSTITUTE($R167,\"{\",CHAR(160),FU$1)),FIND(CHAR(160),SUBSTITUTE($R167,\"}\",CHAR(160),FU$1))-FIND(CHAR(160),SUBSTITUTE($R167,\"{\",CHAR(160),FU$1))+1),\"\")","v":"{Measure:Quantity}"},{"$f":"IFERROR(MID($R167,FIND(CHAR(160),SUBSTITUTE($R167,\"{\",CHAR(160),FV$1)),FIND(CHAR(160),SUBSTITUTE($R167,\"}\",CHAR(160),FV$1))-FIND(CHAR(160),SUBSTITUTE($R167,\"{\",CHAR(160),FV$1))+1),\"\")","v":"{Package Size}"},{"$f":"IFERROR(MID($U167,FIND(CHAR(160),SUBSTITUTE($U167,\"{\",CHAR(160),FW$1)),FIND(CHAR(160),SUBSTITUTE($U167,\"}\",CHAR(160),FW$1))-FIND(CHAR(160),SUBSTITUTE($U167,\"{\",CHAR(160),FW$1))+1),\"\")","v":"{Factor:WinterCF}"},{"$f":"IFERROR(MID($U167,FIND(CHAR(160),SUBSTITUTE($U167,\"{\",CHAR(160),FX$1)),FIND(CHAR(160),SUBSTITUTE($U167,\"}\",CHAR(160),FX$1))-FIND(CHAR(160),SUBSTITUTE($U167,\"{\",CHAR(160),FX$1))+1),\"\")","v":""},{"$f":"IFERROR(MID($U167,FIND(CHAR(160),SUBSTITUTE($U167,\"{\",CHAR(160),FY$1)),FIND(CHAR(160),SUBSTITUTE($U167,\"}\",CHAR(160),FY$1))-FIND(CHAR(160),SUBSTITUTE($U167,\"{\",CHAR(160),FY$1))+1),\"\")","v":""},{"$f":"IFERROR(MID($U167,FIND(CHAR(160),SUBSTITUTE($U167,\"{\",CHAR(160),FZ$1)),FIND(CHAR(160),SUBSTITUTE($U167,\"}\",CHAR(160),FZ$1))-FIND(CHAR(160),SUBSTITUTE($U167,\"{\",CHAR(160),FZ$1))+1),\"\")","v":""},{"$f":"IFERROR(MID($U167,FIND(CHAR(160),SUBSTITUTE($U167,\"{\",CHAR(160),GA$1)),FIND(CHAR(160),SUBSTITUTE($U167,\"}\",CHAR(160),GA$1))-FIND(CHAR(160),SUBSTITUTE($U167,\"{\",CHAR(160),GA$1))+1),\"\")","v":""},{"$f":"IFERROR(MID($U167,FIND(CHAR(160),SUBSTITUTE($U167,\"{\",CHAR(160),GB$1)),FIND(CHAR(160),SUBSTITUTE($U167,\"}\",CHAR(160),GB$1))-FIND(CHAR(160),SUBSTITUTE($U167,\"{\",CHAR(160),GB$1))+1),\"\")","v":""},{"$f":"IFERROR(MID($U167,FIND(CHAR(160),SUBSTITUTE($U167,\"{\",CHAR(160),GC$1)),FIND(CHAR(160),SUBSTITUTE($U167,\"}\",CHAR(160),GC$1))-FIND(CHAR(160),SUBSTITUTE($U167,\"{\",CHAR(160),GC$1))+1),\"\")","v":""},{"$f":"IFERROR(MID($U167,FIND(CHAR(160),SUBSTITUTE($U167,\"{\",CHAR(160),GD$1)),FIND(CHAR(160),SUBSTITUTE($U167,\"}\",CHAR(160),GD$1))-FIND(CHAR(160),SUBSTITUTE($U167,\"{\",CHAR(160),GD$1))+1),\"\")","v":""},{"$f":"IFERROR(MID($U167,FIND(CHAR(160),SUBSTITUTE($U167,\"{\",CHAR(160),GE$1)),FIND(CHAR(160),SUBSTITUTE($U167,\"}\",CHAR(160),GE$1))-FIND(CHAR(160),SUBSTITUTE($U167,\"{\",CHAR(160),GE$1))+1),\"\")","v":"{Measure:Quantity}"},{"$f":"IFERROR(MID($U167,FIND(CHAR(160),SUBSTITUTE($U167,\"{\",CHAR(160),GF$1)),FIND(CHAR(160),SUBSTITUTE($U167,\"}\",CHAR(160),GF$1))-FIND(CHAR(160),SUBSTITUTE($U167,\"{\",CHAR(160),GF$1))+1),\"\")","v":"{Package Size}"},{"$f":"IFERROR(MID($V167,FIND(CHAR(160),SUBSTITUTE($V167,\"{\",CHAR(160),GG$1)),FIND(CHAR(160),SUBSTITUTE($V167,\"}\",CHAR(160),GG$1))-FIND(CHAR(160),SUBSTITUTE($V167,\"{\",CHAR(160),GG$1))+1),\"\")","v":"{Factor:SummerCF}"},{"$f":"IFERROR(MID($V167,FIND(CHAR(160),SUBSTITUTE($V167,\"{\",CHAR(160),GH$1)),FIND(CHAR(160),SUBSTITUTE($V167,\"}\",CHAR(160),GH$1))-FIND(CHAR(160),SUBSTITUTE($V167,\"{\",CHAR(160),GH$1))+1),\"\")","v":""},{"$f":"IFERROR(MID($V167,FIND(CHAR(160),SUBSTITUTE($V167,\"{\",CHAR(160),GI$1)),FIND(CHAR(160),SUBSTITUTE($V167,\"}\",CHAR(160),GI$1))-FIND(CHAR(160),SUBSTITUTE($V167,\"{\",CHAR(160),GI$1))+1),\"\")","v":""},{"$f":"IFERROR(MID($V167,FIND(CHAR(160),SUBSTITUTE($V167,\"{\",CHAR(160),GJ$1)),FIND(CHAR(160),SUBSTITUTE($V167,\"}\",CHAR(160),GJ$1))-FIND(CHAR(160),SUBSTITUTE($V167,\"{\",CHAR(160),GJ$1))+1),\"\")","v":""},{"$f":"IFERROR(MID($V167,FIND(CHAR(160),SUBSTITUTE($V167,\"{\",CHAR(160),GK$1)),FIND(CHAR(160),SUBSTITUTE($V167,\"}\",CHAR(160),GK$1))-FIND(CHAR(160),SUBSTITUTE($V167,\"{\",CHAR(160),GK$1))+1),\"\")","v":""},{"$f":"IFERROR(MID($V167,FIND(CHAR(160),SUBSTITUTE($V167,\"{\",CHAR(160),GL$1)),FIND(CHAR(160),SUBSTITUTE($V167,\"}\",CHAR(160),GL$1))-FIND(CHAR(160),SUBSTITUTE($V167,\"{\",CHAR(160),GL$1))+1),\"\")","v":""},{"$f":"IFERROR(MID($V167,FIND(CHAR(160),SUBSTITUTE($V167,\"{\",CHAR(160),GM$1)),FIND(CHAR(160),SUBSTITUTE($V167,\"}\",CHAR(160),GM$1))-FIND(CHAR(160),SUBSTITUTE($V167,\"{\",CHAR(160),GM$1))+1),\"\")","v":""},{"$f":"IFERROR(MID($V167,FIND(CHAR(160),SUBSTITUTE($V167,\"{\",CHAR(160),GN$1)),FIND(CHAR(160),SUBSTITUTE($V167,\"}\",CHAR(160),GN$1))-FIND(CHAR(160),SUBSTITUTE($V167,\"{\",CHAR(160),GN$1))+1),\"\")","v":""},{"$f":"IFERROR(MID($V167,FIND(CHAR(160),SUBSTITUTE($V167,\"{\",CHAR(160),GO$1)),FIND(CHAR(160),SUBSTITUTE($V167,\"}\",CHAR(160),GO$1))-FIND(CHAR(160),SUBSTITUTE($V167,\"{\",CHAR(160),GO$1))+1),\"\")","v":"{Measure:Quantity}"},{"$f":"IFERROR(MID($V167,FIND(CHAR(160),SUBSTITUTE($V167,\"{\",CHAR(160),GP$1)),FIND(CHAR(160),SUBSTITUTE($V167,\"}\",CHAR(160),GP$1))-FIND(CHAR(160),SUBSTITUTE($V167,\"{\",CHAR(160),GP$1))+1),\"\")","v":"{Package Size}"},{"$f":"IFERROR(MID($W167,FIND(CHAR(160),SUBSTITUTE($W167,\"{\",CHAR(160),GQ$1)),FIND(CHAR(160),SUBSTITUTE($W167,\"}\",CHAR(160),GQ$1))-FIND(CHAR(160),SUBSTITUTE($W167,\"{\",CHAR(160),GQ$1))+1),\"\")","v":""},{"$f":"IFERROR(MID($W167,FIND(CHAR(160),SUBSTITUTE($W167,\"{\",CHAR(160),GR$1)),FIND(CHAR(160),SUBSTITUTE($W167,\"}\",CHAR(160),GR$1))-FIND(CHAR(160),SUBSTITUTE($W167,\"{\",CHAR(160),GR$1))+1),\"\")","v":""},{"$f":"IFERROR(MID($W167,FIND(CHAR(160),SUBSTITUTE($W167,\"{\",CHAR(160),GS$1)),FIND(CHAR(160),SUBSTITUTE($W167,\"}\",CHAR(160),GS$1))-FIND(CHAR(160),SUBSTITUTE($W167,\"{\",CHAR(160),GS$1))+1),\"\")","v":""},{"$f":"IFERROR(MID($W167,FIND(CHAR(160),SUBSTITUTE($W167,\"{\",CHAR(160),GT$1)),FIND(CHAR(160),SUBSTITUTE($W167,\"}\",CHAR(160),GT$1))-FIND(CHAR(160),SUBSTITUTE($W167,\"{\",CHAR(160),GT$1))+1),\"\")","v":""},{"$f":"IFERROR(MID($W167,FIND(CHAR(160),SUBSTITUTE($W167,\"{\",CHAR(160),GU$1)),FIND(CHAR(160),SUBSTITUTE($W167,\"}\",CHAR(160),GU$1))-FIND(CHAR(160),SUBSTITUTE($W167,\"{\",CHAR(160),GU$1))+1),\"\")","v":""},{"$f":"IFERROR(MID($W167,FIND(CHAR(160),SUBSTITUTE($W167,\"{\",CHAR(160),GV$1)),FIND(CHAR(160),SUBSTITUTE($W167,\"}\",CHAR(160),GV$1))-FIND(CHAR(160),SUBSTITUTE($W167,\"{\",CHAR(160),GV$1))+1),\"\")","v":""},{"$f":"IFERROR(MID($W167,FIND(CHAR(160),SUBSTITUTE($W167,\"{\",CHAR(160),GW$1)),FIND(CHAR(160),SUBSTITUTE($W167,\"}\",CHAR(160),GW$1))-FIND(CHAR(160),SUBSTITUTE($W167,\"{\",CHAR(160),GW$1))+1),\"\")","v":""},{"$f":"IFERROR(MID($W167,FIND(CHAR(160),SUBSTITUTE($W167,\"{\",CHAR(160),GX$1)),FIND(CHAR(160),SUBSTITUTE($W167,\"}\",CHAR(160),GX$1))-FIND(CHAR(160),SUBSTITUTE($W167,\"{\",CHAR(160),GX$1))+1),\"\")","v":""},{"$f":"IFERROR(MID($W167,FIND(CHAR(160),SUBSTITUTE($W167,\"{\",CHAR(160),GY$1)),FIND(CHAR(160),SUBSTITUTE($W167,\"}\",CHAR(160),GY$1))-FIND(CHAR(160),SUBSTITUTE($W167,\"{\",CHAR(160),GY$1))+1),\"\")","v":"{Measure:Quantity}"},{"$f":"IFERROR(MID($W167,FIND(CHAR(160),SUBSTITUTE($W167,\"{\",CHAR(160),GZ$1)),FIND(CHAR(160),SUBSTITUTE($W167,\"}\",CHAR(160),GZ$1))-FIND(CHAR(160),SUBSTITUTE($W167,\"{\",CHAR(160),GZ$1))+1),\"\")","v":"{Package Size}"},{"$f":"IFERROR(MID($X167,FIND(CHAR(160),SUBSTITUTE($X167,\"{\",CHAR(160),HA$1)),FIND(CHAR(160),SUBSTITUTE($X167,\"}\",CHAR(160),HA$1))-FIND(CHAR(160),SUBSTITUTE($X167,\"{\",CHAR(160),HA$1))+1),\"\")","v":""},{"$f":"IFERROR(MID($X167,FIND(CHAR(160),SUBSTITUTE($X167,\"{\",CHAR(160),HB$1)),FIND(CHAR(160),SUBSTITUTE($X167,\"}\",CHAR(160),HB$1))-FIND(CHAR(160),SUBSTITUTE($X167,\"{\",CHAR(160),HB$1))+1),\"\")","v":""},{"$f":"IFERROR(MID($X167,FIND(CHAR(160),SUBSTITUTE($X167,\"{\",CHAR(160),HC$1)),FIND(CHAR(160),SUBSTITUTE($X167,\"}\",CHAR(160),HC$1))-FIND(CHAR(160),SUBSTITUTE($X167,\"{\",CHAR(160),HC$1))+1),\"\")","v":""},{"$f":"IFERROR(MID($X167,FIND(CHAR(160),SUBSTITUTE($X167,\"{\",CHAR(160),HD$1)),FIND(CHAR(160),SUBSTITUTE($X167,\"}\",CHAR(160),HD$1))-FIND(CHAR(160),SUBSTITUTE($X167,\"{\",CHAR(160),HD$1))+1),\"\")","v":""},{"$f":"IFERROR(MID($X167,FIND(CHAR(160),SUBSTITUTE($X167,\"{\",CHAR(160),HE$1)),FIND(CHAR(160),SUBSTITUTE($X167,\"}\",CHAR(160),HE$1))-FIND(CHAR(160),SUBSTITUTE($X167,\"{\",CHAR(160),HE$1))+1),\"\")","v":""},{"$f":"IFERROR(MID($X167,FIND(CHAR(160),SUBSTITUTE($X167,\"{\",CHAR(160),HF$1)),FIND(CHAR(160),SUBSTITUTE($X167,\"}\",CHAR(160),HF$1))-FIND(CHAR(160),SUBSTITUTE($X167,\"{\",CHAR(160),HF$1))+1),\"\")","v":""},{"$f":"IFERROR(MID($X167,FIND(CHAR(160),SUBSTITUTE($X167,\"{\",CHAR(160),HG$1)),FIND(CHAR(160),SUBSTITUTE($X167,\"}\",CHAR(160),HG$1))-FIND(CHAR(160),SUBSTITUTE($X167,\"{\",CHAR(160),HG$1))+1),\"\")","v":""},{"$f":"IFERROR(MID($X167,FIND(CHAR(160),SUBSTITUTE($X167,\"{\",CHAR(160),HH$1)),FIND(CHAR(160),SUBSTITUTE($X167,\"}\",CHAR(160),HH$1))-FIND(CHAR(160),SUBSTITUTE($X167,\"{\",CHAR(160),HH$1))+1),\"\")","v":""},{"$f":"IFERROR(MID($X167,FIND(CHAR(160),SUBSTITUTE($X167,\"{\",CHAR(160),HI$1)),FIND(CHAR(160),SUBSTITUTE($X167,\"}\",CHAR(160),HI$1))-FIND(CHAR(160),SUBSTITUTE($X167,\"{\",CHAR(160),HI$1))+1),\"\")","v":"{Measure:Quantity}"},{"$f":"IFERROR(MID($X167,FIND(CHAR(160),SUBSTITUTE($X167,\"{\",CHAR(160),HJ$1)),FIND(CHAR(160),SUBSTITUTE($X167,\"}\",CHAR(160),HJ$1))-FIND(CHAR(160),SUBSTITUTE($X167,\"{\",CHAR(160),HJ$1))+1),\"\")","v":"{Package Size}"},{"$f":"IFERROR(MID($Y167,FIND(CHAR(160),SUBSTITUTE($Y167,\"{\",CHAR(160),HK$1)),FIND(CHAR(160),SUBSTITUTE($Y167,\"}\",CHAR(160),HK$1))-FIND(CHAR(160),SUBSTITUTE($Y167,\"{\",CHAR(160),HK$1))+1),\"\")","v":""},{"$f":"IFERROR(MID($Y167,FIND(CHAR(160),SUBSTITUTE($Y167,\"{\",CHAR(160),HL$1)),FIND(CHAR(160),SUBSTITUTE($Y167,\"}\",CHAR(160),HL$1))-FIND(CHAR(160),SUBSTITUTE($Y167,\"{\",CHAR(160),HL$1))+1),\"\")","v":""},{"$f":"IFERROR(MID($Y167,FIND(CHAR(160),SUBSTITUTE($Y167,\"{\",CHAR(160),HM$1)),FIND(CHAR(160),SUBSTITUTE($Y167,\"}\",CHAR(160),HM$1))-FIND(CHAR(160),SUBSTITUTE($Y167,\"{\",CHAR(160),HM$1))+1),\"\")","v":""},{"$f":"IFERROR(MID($Y167,FIND(CHAR(160),SUBSTITUTE($Y167,\"{\",CHAR(160),HN$1)),FIND(CHAR(160),SUBSTITUTE($Y167,\"}\",CHAR(160),HN$1))-FIND(CHAR(160),SUBSTITUTE($Y167,\"{\",CHAR(160),HN$1))+1),\"\")","v":""},{"$f":"IFERROR(MID($Y167,FIND(CHAR(160),SUBSTITUTE($Y167,\"{\",CHAR(160),HO$1)),FIND(CHAR(160),SUBSTITUTE($Y167,\"}\",CHAR(160),HO$1))-FIND(CHAR(160),SUBSTITUTE($Y167,\"{\",CHAR(160),HO$1))+1),\"\")","v":""},{"$f":"IFERROR(MID($Y167,FIND(CHAR(160),SUBSTITUTE($Y167,\"{\",CHAR(160),HP$1)),FIND(CHAR(160),SUBSTITUTE($Y167,\"}\",CHAR(160),HP$1))-FIND(CHAR(160),SUBSTITUTE($Y167,\"{\",CHAR(160),HP$1))+1),\"\")","v":""},{"$f":"IFERROR(MID($Y167,FIND(CHAR(160),SUBSTITUTE($Y167,\"{\",CHAR(160),HQ$1)),FIND(CHAR(160),SUBSTITUTE($Y167,\"}\",CHAR(160),HQ$1))-FIND(CHAR(160),SUBSTITUTE($Y167,\"{\",CHAR(160),HQ$1))+1),\"\")","v":""},{"$f":"IFERROR(MID($Y167,FIND(CHAR(160),SUBSTITUTE($Y167,\"{\",CHAR(160),HR$1)),FIND(CHAR(160),SUBSTITUTE($Y167,\"}\",CHAR(160),HR$1))-FIND(CHAR(160),SUBSTITUTE($Y167,\"{\",CHAR(160),HR$1))+1),\"\")","v":""},{"$f":"IFERROR(MID($Y167,FIND(CHAR(160),SUBSTITUTE($Y167,\"{\",CHAR(160),HS$1)),FIND(CHAR(160),SUBSTITUTE($Y167,\"}\",CHAR(160),HS$1))-FIND(CHAR(160),SUBSTITUTE($Y167,\"{\",CHAR(160),HS$1))+1),\"\")","v":"{Measure:Quantity}"},{"$f":"IFERROR(MID($Y167,FIND(CHAR(160),SUBSTITUTE($Y167,\"{\",CHAR(160),HT$1)),FIND(CHAR(160),SUBSTITUTE($Y167,\"}\",CHAR(160),HT$1))-FIND(CHAR(160),SUBSTITUTE($Y167,\"{\",CHAR(160),HT$1))+1),\"\")","v":"{Package Size}"},{"$f":"IFERROR(MID($Z167,FIND(CHAR(160),SUBSTITUTE($Z167,\"{\",CHAR(160),HU$1)),FIND(CHAR(160),SUBSTITUTE($Z167,\"}\",CHAR(160),HU$1))-FIND(CHAR(160),SUBSTITUTE($Z167,\"{\",CHAR(160),HU$1))+1),\"\")","v":""},{"$f":"IFERROR(MID($Z167,FIND(CHAR(160),SUBSTITUTE($Z167,\"{\",CHAR(160),HV$1)),FIND(CHAR(160),SUBSTITUTE($Z167,\"}\",CHAR(160),HV$1))-FIND(CHAR(160),SUBSTITUTE($Z167,\"{\",CHAR(160),HV$1))+1),\"\")","v":""},{"$f":"IFERROR(MID($Z167,FIND(CHAR(160),SUBSTITUTE($Z167,\"{\",CHAR(160),HW$1)),FIND(CHAR(160),SUBSTITUTE($Z167,\"}\",CHAR(160),HW$1))-FIND(CHAR(160),SUBSTITUTE($Z167,\"{\",CHAR(160),HW$1))+1),\"\")","v":""},{"$f":"IFERROR(MID($Z167,FIND(CHAR(160),SUBSTITUTE($Z167,\"{\",CHAR(160),HX$1)),FIND(CHAR(160),SUBSTITUTE($Z167,\"}\",CHAR(160),HX$1))-FIND(CHAR(160),SUBSTITUTE($Z167,\"{\",CHAR(160),HX$1))+1),\"\")","v":""},{"$f":"IFERROR(MID($Z167,FIND(CHAR(160),SUBSTITUTE($Z167,\"{\",CHAR(160),HY$1)),FIND(CHAR(160),SUBSTITUTE($Z167,\"}\",CHAR(160),HY$1))-FIND(CHAR(160),SUBSTITUTE($Z167,\"{\",CHAR(160),HY$1))+1),\"\")","v":""},{"$f":"IFERROR(MID($Z167,FIND(CHAR(160),SUBSTITUTE($Z167,\"{\",CHAR(160),HZ$1)),FIND(CHAR(160),SUBSTITUTE($Z167,\"}\",CHAR(160),HZ$1))-FIND(CHAR(160),SUBSTITUTE($Z167,\"{\",CHAR(160),HZ$1))+1),\"\")","v":""},{"$f":"IFERROR(MID($Z167,FIND(CHAR(160),SUBSTITUTE($Z167,\"{\",CHAR(160),IA$1)),FIND(CHAR(160),SUBSTITUTE($Z167,\"}\",CHAR(160),IA$1))-FIND(CHAR(160),SUBSTITUTE($Z167,\"{\",CHAR(160),IA$1))+1),\"\")","v":""},{"$f":"IFERROR(MID($Z167,FIND(CHAR(160),SUBSTITUTE($Z167,\"{\",CHAR(160),IB$1)),FIND(CHAR(160),SUBSTITUTE($Z167,\"}\",CHAR(160),IB$1))-FIND(CHAR(160),SUBSTITUTE($Z167,\"{\",CHAR(160),IB$1))+1),\"\")","v":""},{"$f":"IFERROR(MID($Z167,FIND(CHAR(160),SUBSTITUTE($Z167,\"{\",CHAR(160),IC$1)),FIND(CHAR(160),SUBSTITUTE($Z167,\"}\",CHAR(160),IC$1))-FIND(CHAR(160),SUBSTITUTE($Z167,\"{\",CHAR(160),IC$1))+1),\"\")","v":"{Measure:Quantity}"},{"$f":"IFERROR(MID($Z167,FIND(CHAR(160),SUBSTITUTE($Z167,\"{\",CHAR(160),ID$1)),FIND(CHAR(160),SUBSTITUTE($Z167,\"}\",CHAR(160),ID$1))-FIND(CHAR(160),SUBSTITUTE($Z167,\"{\",CHAR(160),ID$1))+1),\"\")","v":"{Package Size}"},{"$f":"IFERROR(MID($AA167,FIND(CHAR(160),SUBSTITUTE($AA167,\"{\",CHAR(160),IE$1)),FIND(CHAR(160),SUBSTITUTE($AA167,\"}\",CHAR(160),IE$1))-FIND(CHAR(160),SUBSTITUTE($AA167,\"{\",CHAR(160),IE$1))+1),\"\")","v":""},{"$f":"IFERROR(MID($AA167,FIND(CHAR(160),SUBSTITUTE($AA167,\"{\",CHAR(160),IF$1)),FIND(CHAR(160),SUBSTITUTE($AA167,\"}\",CHAR(160),IF$1))-FIND(CHAR(160),SUBSTITUTE($AA167,\"{\",CHAR(160),IF$1))+1),\"\")","v":""},{"$f":"IFERROR(MID($AA167,FIND(CHAR(160),SUBSTITUTE($AA167,\"{\",CHAR(160),IG$1)),FIND(CHAR(160),SUBSTITUTE($AA167,\"}\",CHAR(160),IG$1))-FIND(CHAR(160),SUBSTITUTE($AA167,\"{\",CHAR(160),IG$1))+1),\"\")","v":""},{"$f":"IFERROR(MID($AA167,FIND(CHAR(160),SUBSTITUTE($AA167,\"{\",CHAR(160),IH$1)),FIND(CHAR(160),SUBSTITUTE($AA167,\"}\",CHAR(160),IH$1))-FIND(CHAR(160),SUBSTITUTE($AA167,\"{\",CHAR(160),IH$1))+1),\"\")","v":""},{"$f":"IFERROR(MID($AA167,FIND(CHAR(160),SUBSTITUTE($AA167,\"{\",CHAR(160),II$1)),FIND(CHAR(160),SUBSTITUTE($AA167,\"}\",CHAR(160),II$1))-FIND(CHAR(160),SUBSTITUTE($AA167,\"{\",CHAR(160),II$1))+1),\"\")","v":""},{"$f":"IFERROR(MID($AA167,FIND(CHAR(160),SUBSTITUTE($AA167,\"{\",CHAR(160),IJ$1)),FIND(CHAR(160),SUBSTITUTE($AA167,\"}\",CHAR(160),IJ$1))-FIND(CHAR(160),SUBSTITUTE($AA167,\"{\",CHAR(160),IJ$1))+1),\"\")","v":""},{"$f":"IFERROR(MID($AA167,FIND(CHAR(160),SUBSTITUTE($AA167,\"{\",CHAR(160),IK$1)),FIND(CHAR(160),SUBSTITUTE($AA167,\"}\",CHAR(160),IK$1))-FIND(CHAR(160),SUBSTITUTE($AA167,\"{\",CHAR(160),IK$1))+1),\"\")","v":""},{"$f":"IFERROR(MID($AA167,FIND(CHAR(160),SUBSTITUTE($AA167,\"{\",CHAR(160),IL$1)),FIND(CHAR(160),SUBSTITUTE($AA167,\"}\",CHAR(160),IL$1))-FIND(CHAR(160),SUBSTITUTE($AA167,\"{\",CHAR(160),IL$1))+1),\"\")","v":""},{"$f":"IFERROR(MID($AA167,FIND(CHAR(160),SUBSTITUTE($AA167,\"{\",CHAR(160),IM$1)),FIND(CHAR(160),SUBSTITUTE($AA167,\"}\",CHAR(160),IM$1))-FIND(CHAR(160),SUBSTITUTE($AA167,\"{\",CHAR(160),IM$1))+1),\"\")","v":"{Measure:Quantity}"},{"$f":"IFERROR(MID($AA167,FIND(CHAR(160),SUBSTITUTE($AA167,\"{\",CHAR(160),IN$1)),FIND(CHAR(160),SUBSTITUTE($AA167,\"}\",CHAR(160),IN$1))-FIND(CHAR(160),SUBSTITUTE($AA167,\"{\",CHAR(160),IN$1))+1),\"\")","v":"{Package Size}"},{"$f":"IFERROR(MID($AB167,FIND(CHAR(160),SUBSTITUTE($AB167,\"{\",CHAR(160),IO$1)),FIND(CHAR(160),SUBSTITUTE($AB167,\"}\",CHAR(160),IO$1))-FIND(CHAR(160),SUBSTITUTE($AB167,\"{\",CHAR(160),IO$1))+1),\"\")","v":""},{"$f":"IFERROR(MID($AB167,FIND(CHAR(160),SUBSTITUTE($AB167,\"{\",CHAR(160),IP$1)),FIND(CHAR(160),SUBSTITUTE($AB167,\"}\",CHAR(160),IP$1))-FIND(CHAR(160),SUBSTITUTE($AB167,\"{\",CHAR(160),IP$1))+1),\"\")","v":""},{"$f":"IFERROR(MID($AB167,FIND(CHAR(160),SUBSTITUTE($AB167,\"{\",CHAR(160),IQ$1)),FIND(CHAR(160),SUBSTITUTE($AB167,\"}\",CHAR(160),IQ$1))-FIND(CHAR(160),SUBSTITUTE($AB167,\"{\",CHAR(160),IQ$1))+1),\"\")","v":""},{"$f":"IFERROR(MID($AB167,FIND(CHAR(160),SUBSTITUTE($AB167,\"{\",CHAR(160),IR$1)),FIND(CHAR(160),SUBSTITUTE($AB167,\"}\",CHAR(160),IR$1))-FIND(CHAR(160),SUBSTITUTE($AB167,\"{\",CHAR(160),IR$1))+1),\"\")","v":""},{"$f":"IFERROR(MID($AB167,FIND(CHAR(160),SUBSTITUTE($AB167,\"{\",CHAR(160),IS$1)),FIND(CHAR(160),SUBSTITUTE($AB167,\"}\",CHAR(160),IS$1))-FIND(CHAR(160),SUBSTITUTE($AB167,\"{\",CHAR(160),IS$1))+1),\"\")","v":""},{"$f":"IFERROR(MID($AB167,FIND(CHAR(160),SUBSTITUTE($AB167,\"{\",CHAR(160),IT$1)),FIND(CHAR(160),SUBSTITUTE($AB167,\"}\",CHAR(160),IT$1))-FIND(CHAR(160),SUBSTITUTE($AB167,\"{\",CHAR(160),IT$1))+1),\"\")","v":""},{"$f":"IFERROR(MID($AB167,FIND(CHAR(160),SUBSTITUTE($AB167,\"{\",CHAR(160),IU$1)),FIND(CHAR(160),SUBSTITUTE($AB167,\"}\",CHAR(160),IU$1))-FIND(CHAR(160),SUBSTITUTE($AB167,\"{\",CHAR(160),IU$1))+1),\"\")","v":""},{"$f":"IFERROR(MID($AB167,FIND(CHAR(160),SUBSTITUTE($AB167,\"{\",CHAR(160),IV$1)),FIND(CHAR(160),SUBSTITUTE($AB167,\"}\",CHAR(160),IV$1))-FIND(CHAR(160),SUBSTITUTE($AB167,\"{\",CHAR(160),IV$1))+1),\"\")","v":""},{"$f":"IFERROR(MID($AB167,FIND(CHAR(160),SUBSTITUTE($AB167,\"{\",CHAR(160),IW$1)),FIND(CHAR(160),SUBSTITUTE($AB167,\"}\",CHAR(160),IW$1))-FIND(CHAR(160),SUBSTITUTE($AB167,\"{\",CHAR(160),IW$1))+1),\"\")","v":""},{"$f":"IFERROR(MID($AB167,FIND(CHAR(160),SUBSTITUTE($AB167,\"{\",CHAR(160),IX$1)),FIND(CHAR(160),SUBSTITUTE($AB167,\"}\",CHAR(160),IX$1))-FIND(CHAR(160),SUBSTITUTE($AB167,\"{\",CHAR(160),IX$1))+1),\"\")","v":""},null,{"$f":"10-COUNTIF(DU167:ED167,\"\")","v":3}]
["Distributor Lighting","TLED_TYPE_A_2ft - long life","S110A2L","2021-07-01","2022-06-30","Calculated","{Measure:Quantity}*{Package Size}*8.31",0,"Calculated","{Measure:Quantity}*{Rebate per Package}",0,"2021-07-01","2022-06-30","Calculated","{Measure:Quantity}*{Package Size}*22",null,null,"{Measure:Quantity}*{Package Size}*1.0747*0.007",null,null,"{Measure:Quantity}*{Package Size}*{Factor:WinterCF}*0.007","{Measure:Quantity}*{Package Size}*{Factor:SummerCF}*1.0747*0.007","{Measure:Quantity}*{Package Size}*10*-0.009","{Measure:Quantity}*{Package Size}*-0.002","{Measure:Quantity}*{Package Size}*-0.009","{Measure:Quantity}*{Package Size}*0","{Measure:Quantity}*{Package Size}*-0.002",null,"2021-07-01","2022-06-30",16,0.372,0.64500000000000002,0.45,0.218,0.22900000000000001,0.10299999999999999,1,1,1,0.51,0,null,{"$f":"DU168","v":"{Measure:Quantity}"},1,{"$f":"DV168","v":"{Package Size}"},1,{"$f":"DW168","v":"{Rebate per Package}"},{"$f":"CW168*CO168","v":0},{"$f":"DX168","v":""},null,{"$f":"DY168","v":""},null,{"$f":"DZ168","v":""},null,{"$f":"EA168","v":""},null,{"$f":"EB168","v":""},null,{"$f":"EC168","v":""},null,{"$f":"ED168","v":""},null,{"$f":"AS168*AU168*22","v":22},0,0,{"$f":"AS168*AU168*1.0747*0.007","v":7.5228999999999999E-3},0,0,{"$f":"AS168*AU168*AF168*0.007","v":2.604E-3},{"$f":"AS168*AU168*AG168*1.0747*0.007","v":4.8522705000000003E-3},{"$f":"AS168*AU168*10*-0.009","v":-0.09},{"$f":"AS168*AU168*-0.002","v":-2E-3},{"$f":"AS168*AU168*-0.009","v":-8.9999999999999993E-3},{"$f":"AS168*AU168*0","v":0},{"$f":"AS168*AU168*-0.002","v":-2E-3},0,null,"Res","Default DR",{"$f":"Benefits(BL168,BR168,BS168,BT168,BU168,BV168,BW168,BX168,BY168,BZ168,AE168,AH168,AI168,AJ168,AK168,AL168,AM168,AN168,AO168,AP168,CA168,CB168)","v":30.661298427280286},19.950066643062712,-1.8564014533810831,-3.9873680540086873,0,-1.2392876231275212,-0.55723282280335451,0,0,{"$f":"SUMPRODUCT(CC168:CK168,--(CC168:CK168>0))","v":50.611365070342998},{"$f":"-SUMPRODUCT(CC168:CK168,--(CC168:CK168<0))","v":7.6402899533206456},null,{"$f":"AS168*AU168*8.31","v":8.31},null,null,{"$f":"CM168+CO168","v":15.950289953320645},{"$f":"IF(NetOrGross=\"Net\",(1-AO168+AP168),1)","v":1},{"$f":"(SUMPRODUCT(CC168:CJ168,--(CC168:CJ168>0))+CN168)*CS168/((-SUMPRODUCT(CC168:CJ168,--(CC168:CJ168<0))+MAX(CO168,CV168)+CP168+CQ168)*CS168+IF(FRIncentives=\"Yes\",CV168*(1-CS168),0))","v":3.1730686538275981},1,{"$f":"AS168*AW168","v":0},{"$f":"CW167","v":0},"Electric","y",null,{"$f":"IF(F168=\"Manual Entry\",\"Manual\",IF(G168=\"\",0,\"X=\"&SUBSTITUTE(SUBSTITUTE(SUBSTITUTE(SUBSTITUTE(SUBSTITUTE(SUBSTITUTE(SUBSTITUTE(SUBSTITUTE(SUBSTITUTE(SUBSTITUTE(SUBSTITUTE(SUBSTITUTE(G168,$ED168,$ED$2&ROW($ED168)),$EC168,$EC$2&ROW($EC168)),$EB168,$EB$2&ROW($EB168)),$EA168,$EA$2&ROW($EA168)),$DZ168,$DZ$2&ROW($DZ168)),$DY168,$DY$2&ROW($DY168)),$DX168,$DX$2&ROW($DX168)),$DW168,$DW$2&ROW($DW168)),$DV168,$DV$2&ROW($DV168)),$DU168,$DU$2&ROW($DU168)),$DT168,$DT$2&ROW($DT168)),$DS168,$DS$2&ROW($DS168))))","v":"X=AS168*AU168*8.31"},{"$f":"IF(I168=\"Manual Entry\",\"Manual\",IF(J168=\"\",0,\"X=\"&SUBSTITUTE(SUBSTITUTE(SUBSTITUTE(SUBSTITUTE(SUBSTITUTE(SUBSTITUTE(SUBSTITUTE(SUBSTITUTE(SUBSTITUTE(SUBSTITUTE(SUBSTITUTE(SUBSTITUTE(J168,$ED168,$ED$2&ROW($ED168)),$EC168,$EC$2&ROW($EC168)),$EB168,$EB$2&ROW($EB168)),$EA168,$EA$2&ROW($EA168)),$DZ168,$DZ$2&ROW($DZ168)),$DY168,$DY$2&ROW($DY168)),$DX168,$DX$2&ROW($DX168)),$DW168,$DW$2&ROW($DW168)),$DV168,$DV$2&ROW($DV168)),$DU168,$DU$2&ROW($DU168)),$DT168,$DT$2&ROW($DT168)),$DS168,$DS$2&ROW($DS168))))","v":"X=AS168*AW168"},{"$f":"IF(O168=\"\",0,\"X=\"&SUBSTITUTE(SUBSTITUTE(SUBSTITUTE(SUBSTITUTE(SUBSTITUTE(SUBSTITUTE(SUBSTITUTE(SUBSTITUTE(SUBSTITUTE(SUBSTITUTE(SUBSTITUTE(SUBSTITUTE(O168,$ED168,$ED$2&ROW($ED168)),$EC168,$EC$2&ROW($EC168)),$EB168,$EB$2&ROW($EB168)),$EA168,$EA$2&ROW($EA168)),$DZ168,$DZ$2&ROW($DZ168)),$DY168,$DY$2&ROW($DY168)),$DX168,$DX$2&ROW($DX168)),$DW168,$DW$2&ROW($DW168)),$DV168,$DV$2&ROW($DV168)),$DU168,$DU$2&ROW($DU168)),$DT168,$DT$2&ROW($DT168)),$DS168,$DS$2&ROW($DS168)))","v":"X=AS168*AU168*22"},{"$f":"IF(P168=\"\",0,\"X=\"&SUBSTITUTE(SUBSTITUTE(SUBSTITUTE(SUBSTITUTE(SUBSTITUTE(SUBSTITUTE(SUBSTITUTE(SUBSTITUTE(SUBSTITUTE(SUBSTITUTE(SUBSTITUTE(SUBSTITUTE(P168,$ED168,$ED$2&ROW($ED168)),$EC168,$EC$2&ROW($EC168)),$EB168,$EB$2&ROW($EB168)),$EA168,$EA$2&ROW($EA168)),$DZ168,$DZ$2&ROW($DZ168)),$DY168,$DY$2&ROW($DY168)),$DX168,$DX$2&ROW($DX168)),$DW168,$DW$2&ROW($DW168)),$DV168,$DV$2&ROW($DV168)),$DU168,$DU$2&ROW($DU168)),$DT168,$DT$2&ROW($DT168)),$DS168,$DS$2&ROW($DS168)))","v":0},{"$f":"IF(Q168=\"\",0,\"X=\"&SUBSTITUTE(SUBSTITUTE(SUBSTITUTE(SUBSTITUTE(SUBSTITUTE(SUBSTITUTE(SUBSTITUTE(SUBSTITUTE(SUBSTITUTE(SUBSTITUTE(SUBSTITUTE(SUBSTITUTE(Q168,$ED168,$ED$2&ROW($ED168)),$EC168,$EC$2&ROW($EC168)),$EB168,$EB$2&ROW($EB168)),$EA168,$EA$2&ROW($EA168)),$DZ168,$DZ$2&ROW($DZ168)),$DY168,$DY$2&ROW($DY168)),$DX168,$DX$2&ROW($DX168)),$DW168,$DW$2&ROW($DW168)),$DV168,$DV$2&ROW($DV168)),$DU168,$DU$2&ROW($DU168)),$DT168,$DT$2&ROW($DT168)),$DS168,$DS$2&ROW($DS168)))","v":0},{"$f":"IF(R168=\"\",0,\"X=\"&SUBSTITUTE(SUBSTITUTE(SUBSTITUTE(SUBSTITUTE(SUBSTITUTE(SUBSTITUTE(SUBSTITUTE(SUBSTITUTE(SUBSTITUTE(SUBSTITUTE(SUBSTITUTE(SUBSTITUTE(R168,$ED168,$ED$2&ROW($ED168)),$EC168,$EC$2&ROW($EC168)),$EB168,$EB$2&ROW($EB168)),$EA168,$EA$2&ROW($EA168)),$DZ168,$DZ$2&ROW($DZ168)),$DY168,$DY$2&ROW($DY168)),$DX168,$DX$2&ROW($DX168)),$DW168,$DW$2&ROW($DW168)),$DV168,$DV$2&ROW($DV168)),$DU168,$DU$2&ROW($DU168)),$DT168,$DT$2&ROW($DT168)),$DS168,$DS$2&ROW($DS168)))","v":"X=AS168*AU168*1.0747*0.007"},{"$f":"IF(S168=\"\",0,\"X=\"&SUBSTITUTE(SUBSTITUTE(SUBSTITUTE(SUBSTITUTE(SUBSTITUTE(SUBSTITUTE(SUBSTITUTE(SUBSTITUTE(SUBSTITUTE(SUBSTITUTE(SUBSTITUTE(SUBSTITUTE(S168,$ED168,$ED$2&ROW($ED168)),$EC168,$EC$2&ROW($EC168)),$EB168,$EB$2&ROW($EB168)),$EA168,$EA$2&ROW($EA168)),$DZ168,$DZ$2&ROW($DZ168)),$DY168,$DY$2&ROW($DY168)),$DX168,$DX$2&ROW($DX168)),$DW168,$DW$2&ROW($DW168)),$DV168,$DV$2&ROW($DV168)),$DU168,$DU$2&ROW($DU168)),$DT168,$DT$2&ROW($DT168)),$DS168,$DS$2&ROW($DS168)))","v":0},{"$f":"IF(T168=\"\",0,\"X=\"&SUBSTITUTE(SUBSTITUTE(SUBSTITUTE(SUBSTITUTE(SUBSTITUTE(SUBSTITUTE(SUBSTITUTE(SUBSTITUTE(SUBSTITUTE(SUBSTITUTE(SUBSTITUTE(SUBSTITUTE(T168,$ED168,$ED$2&ROW($ED168)),$EC168,$EC$2&ROW($EC168)),$EB168,$EB$2&ROW($EB168)),$EA168,$EA$2&ROW($EA168)),$DZ168,$DZ$2&ROW($DZ168)),$DY168,$DY$2&ROW($DY168)),$DX168,$DX$2&ROW($DX168)),$DW168,$DW$2&ROW($DW168)),$DV168,$DV$2&ROW($DV168)),$DU168,$DU$2&ROW($DU168)),$DT168,$DT$2&ROW($DT168)),$DS168,$DS$2&ROW($DS168)))","v":0},{"$f":"IF(U168=\"\",0,\"X=\"&SUBSTITUTE(SUBSTITUTE(SUBSTITUTE(SUBSTITUTE(SUBSTITUTE(SUBSTITUTE(SUBSTITUTE(SUBSTITUTE(SUBSTITUTE(SUBSTITUTE(SUBSTITUTE(SUBSTITUTE(U168,$ED168,$ED$2&ROW($ED168)),$EC168,$EC$2&ROW($EC168)),$EB168,$EB$2&ROW($EB168)),$EA168,$EA$2&ROW($EA168)),$DZ168,$DZ$2&ROW($DZ168)),$DY168,$DY$2&ROW($DY168)),$DX168,$DX$2&ROW($DX168)),$DW168,$DW$2&ROW($DW168)),$DV168,$DV$2&ROW($DV168)),$DU168,$DU$2&ROW($DU168)),$DT168,$DT$2&ROW($DT168)),$DS168,$DS$2&ROW($DS168)))","v":"X=AS168*AU168*AF168*0.007"},{"$f":"IF(V168=\"\",0,\"X=\"&SUBSTITUTE(SUBSTITUTE(SUBSTITUTE(SUBSTITUTE(SUBSTITUTE(SUBSTITUTE(SUBSTITUTE(SUBSTITUTE(SUBSTITUTE(SUBSTITUTE(SUBSTITUTE(SUBSTITUTE(V168,$ED168,$ED$2&ROW($ED168)),$EC168,$EC$2&ROW($EC168)),$EB168,$EB$2&ROW($EB168)),$EA168,$EA$2&ROW($EA168)),$DZ168,$DZ$2&ROW($DZ168)),$DY168,$DY$2&ROW($DY168)),$DX168,$DX$2&ROW($DX168)),$DW168,$DW$2&ROW($DW168)),$DV168,$DV$2&ROW($DV168)),$DU168,$DU$2&ROW($DU168)),$DT168,$DT$2&ROW($DT168)),$DS168,$DS$2&ROW($DS168)))","v":"X=AS168*AU168*AG168*1.0747*0.007"},{"$f":"IF(W168=\"\",0,\"X=\"&SUBSTITUTE(SUBSTITUTE(SUBSTITUTE(SUBSTITUTE(SUBSTITUTE(SUBSTITUTE(SUBSTITUTE(SUBSTITUTE(SUBSTITUTE(SUBSTITUTE(SUBSTITUTE(SUBSTITUTE(W168,$ED168,$ED$2&ROW($ED168)),$EC168,$EC$2&ROW($EC168)),$EB168,$EB$2&ROW($EB168)),$EA168,$EA$2&ROW($EA168)),$DZ168,$DZ$2&ROW($DZ168)),$DY168,$DY$2&ROW($DY168)),$DX168,$DX$2&ROW($DX168)),$DW168,$DW$2&ROW($DW168)),$DV168,$DV$2&ROW($DV168)),$DU168,$DU$2&ROW($DU168)),$DT168,$DT$2&ROW($DT168)),$DS168,$DS$2&ROW($DS168)))","v":"X=AS168*AU168*10*-0.009"},{"$f":"IF(X168=\"\",0,\"X=\"&SUBSTITUTE(SUBSTITUTE(SUBSTITUTE(SUBSTITUTE(SUBSTITUTE(SUBSTITUTE(SUBSTITUTE(SUBSTITUTE(SUBSTITUTE(SUBSTITUTE(SUBSTITUTE(SUBSTITUTE(X168,$ED168,$ED$2&ROW($ED168)),$EC168,$EC$2&ROW($EC168)),$EB168,$EB$2&ROW($EB168)),$EA168,$EA$2&ROW($EA168)),$DZ168,$DZ$2&ROW($DZ168)),$DY168,$DY$2&ROW($DY168)),$DX168,$DX$2&ROW($DX168)),$DW168,$DW$2&ROW($DW168)),$DV168,$DV$2&ROW($DV168)),$DU168,$DU$2&ROW($DU168)),$DT168,$DT$2&ROW($DT168)),$DS168,$DS$2&ROW($DS168)))","v":"X=AS168*AU168*-0.002"},{"$f":"IF(Y168=\"\",0,\"X=\"&SUBSTITUTE(SUBSTITUTE(SUBSTITUTE(SUBSTITUTE(SUBSTITUTE(SUBSTITUTE(SUBSTITUTE(SUBSTITUTE(SUBSTITUTE(SUBSTITUTE(SUBSTITUTE(SUBSTITUTE(Y168,$ED168,$ED$2&ROW($ED168)),$EC168,$EC$2&ROW($EC168)),$EB168,$EB$2&ROW($EB168)),$EA168,$EA$2&ROW($EA168)),$DZ168,$DZ$2&ROW($DZ168)),$DY168,$DY$2&ROW($DY168)),$DX168,$DX$2&ROW($DX168)),$DW168,$DW$2&ROW($DW168)),$DV168,$DV$2&ROW($DV168)),$DU168,$DU$2&ROW($DU168)),$DT168,$DT$2&ROW($DT168)),$DS168,$DS$2&ROW($DS168)))","v":"X=AS168*AU168*-0.009"},{"$f":"IF(Z168=\"\",0,\"X=\"&SUBSTITUTE(SUBSTITUTE(SUBSTITUTE(SUBSTITUTE(SUBSTITUTE(SUBSTITUTE(SUBSTITUTE(SUBSTITUTE(SUBSTITUTE(SUBSTITUTE(SUBSTITUTE(SUBSTITUTE(Z168,$ED168,$ED$2&ROW($ED168)),$EC168,$EC$2&ROW($EC168)),$EB168,$EB$2&ROW($EB168)),$EA168,$EA$2&ROW($EA168)),$DZ168,$DZ$2&ROW($DZ168)),$DY168,$DY$2&ROW($DY168)),$DX168,$DX$2&ROW($DX168)),$DW168,$DW$2&ROW($DW168)),$DV168,$DV$2&ROW($DV168)),$DU168,$DU$2&ROW($DU168)),$DT168,$DT$2&ROW($DT168)),$DS168,$DS$2&ROW($DS168)))","v":"X=AS168*AU168*0"},{"$f":"IF(AA168=\"\",0,\"X=\"&SUBSTITUTE(SUBSTITUTE(SUBSTITUTE(SUBSTITUTE(SUBSTITUTE(SUBSTITUTE(SUBSTITUTE(SUBSTITUTE(SUBSTITUTE(SUBSTITUTE(SUBSTITUTE(SUBSTITUTE(AA168,$ED168,$ED$2&ROW($ED168)),$EC168,$EC$2&ROW($EC168)),$EB168,$EB$2&ROW($EB168)),$EA168,$EA$2&ROW($EA168)),$DZ168,$DZ$2&ROW($DZ168)),$DY168,$DY$2&ROW($DY168)),$DX168,$DX$2&ROW($DX168)),$DW168,$DW$2&ROW($DW168)),$DV168,$DV$2&ROW($DV168)),$DU168,$DU$2&ROW($DU168)),$DT168,$DT$2&ROW($DT168)),$DS168,$DS$2&ROW($DS168)))","v":"X=AS168*AU168*-0.002"},{"$f":"IF(AB168=\"\",0,\"X=\"&SUBSTITUTE(SUBSTITUTE(SUBSTITUTE(SUBSTITUTE(SUBSTITUTE(SUBSTITUTE(SUBSTITUTE(SUBSTITUTE(SUBSTITUTE(SUBSTITUTE(SUBSTITUTE(SUBSTITUTE(AB168,$ED168,$ED$2&ROW($ED168)),$EC168,$EC$2&ROW($EC168)),$EB168,$EB$2&ROW($EB168)),$EA168,$EA$2&ROW($EA168)),$DZ168,$DZ$2&ROW($DZ168)),$DY168,$DY$2&ROW($DY168)),$DX168,$DX$2&ROW($DX168)),$DW168,$DW$2&ROW($DW168)),$DV168,$DV$2&ROW($DV168)),$DU168,$DU$2&ROW($DU168)),$DT168,$DT$2&ROW($DT168)),$DS168,$DS$2&ROW($DS168)))","v":0},null,null,"{Factor:WinterCF}","{Factor:SummerCF}",{"$f":"IFERROR(INDEX($EG168:$IV168,MATCH(0,COUNTIF($DR168:DT168,$EG168:$IV168),0)),\"\")","v":"{Measure:Quantity}"},{"$f":"IFERROR(INDEX($EG168:$IV168,MATCH(0,COUNTIF($DR168:DU168,$EG168:$IV168),0)),\"\")","v":"{Package Size}"},{"$f":"IFERROR(INDEX($EG168:$IV168,MATCH(0,COUNTIF($DR168:DV168,$EG168:$IV168),0)),\"\")","v":"{Rebate per Package}"},{"$f":"IFERROR(INDEX($EG168:$IV168,MATCH(0,COUNTIF($DR168:DW168,$EG168:$IV168),0)),\"\")","v":""},{"$f":"IFERROR(INDEX($EG168:$IV168,MATCH(0,COUNTIF($DR168:DX168,$EG168:$IV168),0)),\"\")","v":""},{"$f":"IFERROR(INDEX($EG168:$IV168,MATCH(0,COUNTIF($DR168:DY168,$EG168:$IV168),0)),\"\")","v":""},{"$f":"IFERROR(INDEX($EG168:$IV168,MATCH(0,COUNTIF($DR168:DZ168,$EG168:$IV168),0)),\"\")","v":""},{"$f":"IFERROR(INDEX($EG168:$IV168,MATCH(0,COUNTIF($DR168:EA168,$EG168:$IV168),0)),\"\")","v":""},{"$f":"IFERROR(INDEX($EG168:$IV168,MATCH(0,COUNTIF($DR168:EB168,$EG168:$IV168),0)),\"\")","v":""},{"$f":"IFERROR(INDEX($EG168:$IV168,MATCH(0,COUNTIF($DR168:EC168,$EG168:$IV168),0)),\"\")","v":""},null,null,{"$f":"IFERROR(MID($G168,FIND(CHAR(160),SUBSTITUTE($G168,\"{\",CHAR(160),EG$1)),FIND(CHAR(160),SUBSTITUTE($G168,\"}\",CHAR(160),EG$1))-FIND(CHAR(160),SUBSTITUTE($G168,\"{\",CHAR(160),EG$1))+1),\"\")","v":"{Measure:Quantity}"},{"$f":"IFERROR(MID($G168,FIND(CHAR(160),SUBSTITUTE($G168,\"{\",CHAR(160),EH$1)),FIND(CHAR(160),SUBSTITUTE($G168,\"}\",CHAR(160),EH$1))-FIND(CHAR(160),SUBSTITUTE($G168,\"{\",CHAR(160),EH$1))+1),\"\")","v":"{Package Size}"},{"$f":"IFERROR(MID($G168,FIND(CHAR(160),SUBSTITUTE($G168,\"{\",CHAR(160),EI$1)),FIND(CHAR(160),SUBSTITUTE($G168,\"}\",CHAR(160),EI$1))-FIND(CHAR(160),SUBSTITUTE($G168,\"{\",CHAR(160),EI$1))+1),\"\")","v":""},{"$f":"IFERROR(MID($G168,FIND(CHAR(160),SUBSTITUTE($G168,\"{\",CHAR(160),EJ$1)),FIND(CHAR(160),SUBSTITUTE($G168,\"}\",CHAR(160),EJ$1))-FIND(CHAR(160),SUBSTITUTE($G168,\"{\",CHAR(160),EJ$1))+1),\"\")","v":""},{"$f":"IFERROR(MID($G168,FIND(CHAR(160),SUBSTITUTE($G168,\"{\",CHAR(160),EK$1)),FIND(CHAR(160),SUBSTITUTE($G168,\"}\",CHAR(160),EK$1))-FIND(CHAR(160),SUBSTITUTE($G168,\"{\",CHAR(160),EK$1))+1),\"\")","v":""},{"$f":"IFERROR(MID($G168,FIND(CHAR(160),SUBSTITUTE($G168,\"{\",CHAR(160),EL$1)),FIND(CHAR(160),SUBSTITUTE($G168,\"}\",CHAR(160),EL$1))-FIND(CHAR(160),SUBSTITUTE($G168,\"{\",CHAR(160),EL$1))+1),\"\")","v":""},{"$f":"IFERROR(MID($G168,FIND(CHAR(160),SUBSTITUTE($G168,\"{\",CHAR(160),EM$1)),FIND(CHAR(160),SUBSTITUTE($G168,\"}\",CHAR(160),EM$1))-FIND(CHAR(160),SUBSTITUTE($G168,\"{\",CHAR(160),EM$1))+1),\"\")","v":""},{"$f":"IFERROR(MID($G168,FIND(CHAR(160),SUBSTITUTE($G168,\"{\",CHAR(160),EN$1)),FIND(CHAR(160),SUBSTITUTE($G168,\"}\",CHAR(160),EN$1))-FIND(CHAR(160),SUBSTITUTE($G168,\"{\",CHAR(160),EN$1))+1),\"\")","v":""},{"$f":"IFERROR(MID($G168,FIND(CHAR(160),SUBSTITUTE($G168,\"{\",CHAR(160),EO$1)),FIND(CHAR(160),SUBSTITUTE($G168,\"}\",CHAR(160),EO$1))-FIND(CHAR(160),SUBSTITUTE($G168,\"{\",CHAR(160),EO$1))+1),\"\")","v":""},{"$f":"IFERROR(MID($G168,FIND(CHAR(160),SUBSTITUTE($G168,\"{\",CHAR(160),EP$1)),FIND(CHAR(160),SUBSTITUTE($G168,\"}\",CHAR(160),EP$1))-FIND(CHAR(160),SUBSTITUTE($G168,\"{\",CHAR(160),EP$1))+1),\"\")","v":""},{"$f":"IFERROR(MID($J168,FIND(CHAR(160),SUBSTITUTE($J168,\"{\",CHAR(160),EQ$1)),FIND(CHAR(160),SUBSTITUTE($J168,\"}\",CHAR(160),EQ$1))-FIND(CHAR(160),SUBSTITUTE($J168,\"{\",CHAR(160),EQ$1))+1),\"\")","v":"{Measure:Quantity}"},{"$f":"IFERROR(MID($J168,FIND(CHAR(160),SUBSTITUTE($J168,\"{\",CHAR(160),ER$1)),FIND(CHAR(160),SUBSTITUTE($J168,\"}\",CHAR(160),ER$1))-FIND(CHAR(160),SUBSTITUTE($J168,\"{\",CHAR(160),ER$1))+1),\"\")","v":"{Rebate per Package}"},{"$f":"IFERROR(MID($J168,FIND(CHAR(160),SUBSTITUTE($J168,\"{\",CHAR(160),ES$1)),FIND(CHAR(160),SUBSTITUTE($J168,\"}\",CHAR(160),ES$1))-FIND(CHAR(160),SUBSTITUTE($J168,\"{\",CHAR(160),ES$1))+1),\"\")","v":""},{"$f":"IFERROR(MID($J168,FIND(CHAR(160),SUBSTITUTE($J168,\"{\",CHAR(160),ET$1)),FIND(CHAR(160),SUBSTITUTE($J168,\"}\",CHAR(160),ET$1))-FIND(CHAR(160),SUBSTITUTE($J168,\"{\",CHAR(160),ET$1))+1),\"\")","v":""},{"$f":"IFERROR(MID($J168,FIND(CHAR(160),SUBSTITUTE($J168,\"{\",CHAR(160),EU$1)),FIND(CHAR(160),SUBSTITUTE($J168,\"}\",CHAR(160),EU$1))-FIND(CHAR(160),SUBSTITUTE($J168,\"{\",CHAR(160),EU$1))+1),\"\")","v":""},{"$f":"IFERROR(MID($J168,FIND(CHAR(160),SUBSTITUTE($J168,\"{\",CHAR(160),EV$1)),FIND(CHAR(160),SUBSTITUTE($J168,\"}\",CHAR(160),EV$1))-FIND(CHAR(160),SUBSTITUTE($J168,\"{\",CHAR(160),EV$1))+1),\"\")","v":""},{"$f":"IFERROR(MID($J168,FIND(CHAR(160),SUBSTITUTE($J168,\"{\",CHAR(160),EW$1)),FIND(CHAR(160),SUBSTITUTE($J168,\"}\",CHAR(160),EW$1))-FIND(CHAR(160),SUBSTITUTE($J168,\"{\",CHAR(160),EW$1))+1),\"\")","v":""},{"$f":"IFERROR(MID($J168,FIND(CHAR(160),SUBSTITUTE($J168,\"{\",CHAR(160),EX$1)),FIND(CHAR(160),SUBSTITUTE($J168,\"}\",CHAR(160),EX$1))-FIND(CHAR(160),SUBSTITUTE($J168,\"{\",CHAR(160),EX$1))+1),\"\")","v":""},{"$f":"IFERROR(MID($J168,FIND(CHAR(160),SUBSTITUTE($J168,\"{\",CHAR(160),EY$1)),FIND(CHAR(160),SUBSTITUTE($J168,\"}\",CHAR(160),EY$1))-FIND(CHAR(160),SUBSTITUTE($J168,\"{\",CHAR(160),EY$1))+1),\"\")","v":""},{"$f":"IFERROR(MID($J168,FIND(CHAR(160),SUBSTITUTE($J168,\"{\",CHAR(160),EZ$1)),FIND(CHAR(160),SUBSTITUTE($J168,\"}\",CHAR(160),EZ$1))-FIND(CHAR(160),SUBSTITUTE($J168,\"{\",CHAR(160),EZ$1))+1),\"\")","v":""},{"$f":"IFERROR(MID($J168,FIND(CHAR(160),SUBSTITUTE($J168,\"{\",CHAR(160),FA$1)),FIND(CHAR(160),SUBSTITUTE($J168,\"}\",CHAR(160),FA$1))-FIND(CHAR(160),SUBSTITUTE($J168,\"{\",CHAR(160),FA$1))+1),\"\")","v":"{Measure:Quantity}"},{"$f":"IFERROR(MID($J168,FIND(CHAR(160),SUBSTITUTE($J168,\"{\",CHAR(160),FB$1)),FIND(CHAR(160),SUBSTITUTE($J168,\"}\",CHAR(160),FB$1))-FIND(CHAR(160),SUBSTITUTE($J168,\"{\",CHAR(160),FB$1))+1),\"\")","v":"{Rebate per Package}"},{"$f":"IFERROR(MID($O168,FIND(CHAR(160),SUBSTITUTE($O168,\"{\",CHAR(160),FC$1)),FIND(CHAR(160),SUBSTITUTE($O168,\"}\",CHAR(160),FC$1))-FIND(CHAR(160),SUBSTITUTE($O168,\"{\",CHAR(160),FC$1))+1),\"\")","v":""},{"$f":"IFERROR(MID($O168,FIND(CHAR(160),SUBSTITUTE($O168,\"{\",CHAR(160),FD$1)),FIND(CHAR(160),SUBSTITUTE($O168,\"}\",CHAR(160),FD$1))-FIND(CHAR(160),SUBSTITUTE($O168,\"{\",CHAR(160),FD$1))+1),\"\")","v":""},{"$f":"IFERROR(MID($O168,FIND(CHAR(160),SUBSTITUTE($O168,\"{\",CHAR(160),FE$1)),FIND(CHAR(160),SUBSTITUTE($O168,\"}\",CHAR(160),FE$1))-FIND(CHAR(160),SUBSTITUTE($O168,\"{\",CHAR(160),FE$1))+1),\"\")","v":""},{"$f":"IFERROR(MID($O168,FIND(CHAR(160),SUBSTITUTE($O168,\"{\",CHAR(160),FF$1)),FIND(CHAR(160),SUBSTITUTE($O168,\"}\",CHAR(160),FF$1))-FIND(CHAR(160),SUBSTITUTE($O168,\"{\",CHAR(160),FF$1))+1),\"\")","v":""},{"$f":"IFERROR(MID($O168,FIND(CHAR(160),SUBSTITUTE($O168,\"{\",CHAR(160),FG$1)),FIND(CHAR(160),SUBSTITUTE($O168,\"}\",CHAR(160),FG$1))-FIND(CHAR(160),SUBSTITUTE($O168,\"{\",CHAR(160),FG$1))+1),\"\")","v":""},{"$f":"IFERROR(MID($O168,FIND(CHAR(160),SUBSTITUTE($O168,\"{\",CHAR(160),FH$1)),FIND(CHAR(160),SUBSTITUTE($O168,\"}\",CHAR(160),FH$1))-FIND(CHAR(160),SUBSTITUTE($O168,\"{\",CHAR(160),FH$1))+1),\"\")","v":""},{"$f":"IFERROR(MID($O168,FIND(CHAR(160),SUBSTITUTE($O168,\"{\",CHAR(160),FI$1)),FIND(CHAR(160),SUBSTITUTE($O168,\"}\",CHAR(160),FI$1))-FIND(CHAR(160),SUBSTITUTE($O168,\"{\",CHAR(160),FI$1))+1),\"\")","v":""},{"$f":"IFERROR(MID($O168,FIND(CHAR(160),SUBSTITUTE($O168,\"{\",CHAR(160),FJ$1)),FIND(CHAR(160),SUBSTITUTE($O168,\"}\",CHAR(160),FJ$1))-FIND(CHAR(160),SUBSTITUTE($O168,\"{\",CHAR(160),FJ$1))+1),\"\")","v":""},{"$f":"IFERROR(MID($O168,FIND(CHAR(160),SUBSTITUTE($O168,\"{\",CHAR(160),FK$1)),FIND(CHAR(160),SUBSTITUTE($O168,\"}\",CHAR(160),FK$1))-FIND(CHAR(160),SUBSTITUTE($O168,\"{\",CHAR(160),FK$1))+1),\"\")","v":"{Measure:Quantity}"},{"$f":"IFERROR(MID($O168,FIND(CHAR(160),SUBSTITUTE($O168,\"{\",CHAR(160),FL$1)),FIND(CHAR(160),SUBSTITUTE($O168,\"}\",CHAR(160),FL$1))-FIND(CHAR(160),SUBSTITUTE($O168,\"{\",CHAR(160),FL$1))+1),\"\")","v":"{Package Size}"},{"$f":"IFERROR(MID($R168,FIND(CHAR(160),SUBSTITUTE($R168,\"{\",CHAR(160),FM$1)),FIND(CHAR(160),SUBSTITUTE($R168,\"}\",CHAR(160),FM$1))-FIND(CHAR(160),SUBSTITUTE($R168,\"{\",CHAR(160),FM$1))+1),\"\")","v":""},{"$f":"IFERROR(MID($R168,FIND(CHAR(160),SUBSTITUTE($R168,\"{\",CHAR(160),FN$1)),FIND(CHAR(160),SUBSTITUTE($R168,\"}\",CHAR(160),FN$1))-FIND(CHAR(160),SUBSTITUTE($R168,\"{\",CHAR(160),FN$1))+1),\"\")","v":""},{"$f":"IFERROR(MID($R168,FIND(CHAR(160),SUBSTITUTE($R168,\"{\",CHAR(160),FO$1)),FIND(CHAR(160),SUBSTITUTE($R168,\"}\",CHAR(160),FO$1))-FIND(CHAR(160),SUBSTITUTE($R168,\"{\",CHAR(160),FO$1))+1),\"\")","v":""},{"$f":"IFERROR(MID($R168,FIND(CHAR(160),SUBSTITUTE($R168,\"{\",CHAR(160),FP$1)),FIND(CHAR(160),SUBSTITUTE($R168,\"}\",CHAR(160),FP$1))-FIND(CHAR(160),SUBSTITUTE($R168,\"{\",CHAR(160),FP$1))+1),\"\")","v":""},{"$f":"IFERROR(MID($R168,FIND(CHAR(160),SUBSTITUTE($R168,\"{\",CHAR(160),FQ$1)),FIND(CHAR(160),SUBSTITUTE($R168,\"}\",CHAR(160),FQ$1))-FIND(CHAR(160),SUBSTITUTE($R168,\"{\",CHAR(160),FQ$1))+1),\"\")","v":""},{"$f":"IFERROR(MID($R168,FIND(CHAR(160),SUBSTITUTE($R168,\"{\",CHAR(160),FR$1)),FIND(CHAR(160),SUBSTITUTE($R168,\"}\",CHAR(160),FR$1))-FIND(CHAR(160),SUBSTITUTE($R168,\"{\",CHAR(160),FR$1))+1),\"\")","v":""},{"$f":"IFERROR(MID($R168,FIND(CHAR(160),SUBSTITUTE($R168,\"{\",CHAR(160),FS$1)),FIND(CHAR(160),SUBSTITUTE($R168,\"}\",CHAR(160),FS$1))-FIND(CHAR(160),SUBSTITUTE($R168,\"{\",CHAR(160),FS$1))+1),\"\")","v":""},{"$f":"IFERROR(MID($R168,FIND(CHAR(160),SUBSTITUTE($R168,\"{\",CHAR(160),FT$1)),FIND(CHAR(160),SUBSTITUTE($R168,\"}\",CHAR(160),FT$1))-FIND(CHAR(160),SUBSTITUTE($R168,\"{\",CHAR(160),FT$1))+1),\"\")","v":""},{"$f":"IFERROR(MID($R168,FIND(CHAR(160),SUBSTITUTE($R168,\"{\",CHAR(160),FU$1)),FIND(CHAR(160),SUBSTITUTE($R168,\"}\",CHAR(160),FU$1))-FIND(CHAR(160),SUBSTITUTE($R168,\"{\",CHAR(160),FU$1))+1),\"\")","v":"{Measure:Quantity}"},{"$f":"IFERROR(MID($R168,FIND(CHAR(160),SUBSTITUTE($R168,\"{\",CHAR(160),FV$1)),FIND(CHAR(160),SUBSTITUTE($R168,\"}\",CHAR(160),FV$1))-FIND(CHAR(160),SUBSTITUTE($R168,\"{\",CHAR(160),FV$1))+1),\"\")","v":"{Package Size}"},{"$f":"IFERROR(MID($U168,FIND(CHAR(160),SUBSTITUTE($U168,\"{\",CHAR(160),FW$1)),FIND(CHAR(160),SUBSTITUTE($U168,\"}\",CHAR(160),FW$1))-FIND(CHAR(160),SUBSTITUTE($U168,\"{\",CHAR(160),FW$1))+1),\"\")","v":"{Factor:WinterCF}"},{"$f":"IFERROR(MID($U168,FIND(CHAR(160),SUBSTITUTE($U168,\"{\",CHAR(160),FX$1)),FIND(CHAR(160),SUBSTITUTE($U168,\"}\",CHAR(160),FX$1))-FIND(CHAR(160),SUBSTITUTE($U168,\"{\",CHAR(160),FX$1))+1),\"\")","v":""},{"$f":"IFERROR(MID($U168,FIND(CHAR(160),SUBSTITUTE($U168,\"{\",CHAR(160),FY$1)),FIND(CHAR(160),SUBSTITUTE($U168,\"}\",CHAR(160),FY$1))-FIND(CHAR(160),SUBSTITUTE($U168,\"{\",CHAR(160),FY$1))+1),\"\")","v":""},{"$f":"IFERROR(MID($U168,FIND(CHAR(160),SUBSTITUTE($U168,\"{\",CHAR(160),FZ$1)),FIND(CHAR(160),SUBSTITUTE($U168,\"}\",CHAR(160),FZ$1))-FIND(CHAR(160),SUBSTITUTE($U168,\"{\",CHAR(160),FZ$1))+1),\"\")","v":""},{"$f":"IFERROR(MID($U168,FIND(CHAR(160),SUBSTITUTE($U168,\"{\",CHAR(160),GA$1)),FIND(CHAR(160),SUBSTITUTE($U168,\"}\",CHAR(160),GA$1))-FIND(CHAR(160),SUBSTITUTE($U168,\"{\",CHAR(160),GA$1))+1),\"\")","v":""},{"$f":"IFERROR(MID($U168,FIND(CHAR(160),SUBSTITUTE($U168,\"{\",CHAR(160),GB$1)),FIND(CHAR(160),SUBSTITUTE($U168,\"}\",CHAR(160),GB$1))-FIND(CHAR(160),SUBSTITUTE($U168,\"{\",CHAR(160),GB$1))+1),\"\")","v":""},{"$f":"IFERROR(MID($U168,FIND(CHAR(160),SUBSTITUTE($U168,\"{\",CHAR(160),GC$1)),FIND(CHAR(160),SUBSTITUTE($U168,\"}\",CHAR(160),GC$1))-FIND(CHAR(160),SUBSTITUTE($U168,\"{\",CHAR(160),GC$1))+1),\"\")","v":""},{"$f":"IFERROR(MID($U168,FIND(CHAR(160),SUBSTITUTE($U168,\"{\",CHAR(160),GD$1)),FIND(CHAR(160),SUBSTITUTE($U168,\"}\",CHAR(160),GD$1))-FIND(CHAR(160),SUBSTITUTE($U168,\"{\",CHAR(160),GD$1))+1),\"\")","v":""},{"$f":"IFERROR(MID($U168,FIND(CHAR(160),SUBSTITUTE($U168,\"{\",CHAR(160),GE$1)),FIND(CHAR(160),SUBSTITUTE($U168,\"}\",CHAR(160),GE$1))-FIND(CHAR(160),SUBSTITUTE($U168,\"{\",CHAR(160),GE$1))+1),\"\")","v":"{Measure:Quantity}"},{"$f":"IFERROR(MID($U168,FIND(CHAR(160),SUBSTITUTE($U168,\"{\",CHAR(160),GF$1)),FIND(CHAR(160),SUBSTITUTE($U168,\"}\",CHAR(160),GF$1))-FIND(CHAR(160),SUBSTITUTE($U168,\"{\",CHAR(160),GF$1))+1),\"\")","v":"{Package Size}"},{"$f":"IFERROR(MID($V168,FIND(CHAR(160),SUBSTITUTE($V168,\"{\",CHAR(160),GG$1)),FIND(CHAR(160),SUBSTITUTE($V168,\"}\",CHAR(160),GG$1))-FIND(CHAR(160),SUBSTITUTE($V168,\"{\",CHAR(160),GG$1))+1),\"\")","v":"{Factor:SummerCF}"},{"$f":"IFERROR(MID($V168,FIND(CHAR(160),SUBSTITUTE($V168,\"{\",CHAR(160),GH$1)),FIND(CHAR(160),SUBSTITUTE($V168,\"}\",CHAR(160),GH$1))-FIND(CHAR(160),SUBSTITUTE($V168,\"{\",CHAR(160),GH$1))+1),\"\")","v":""},{"$f":"IFERROR(MID($V168,FIND(CHAR(160),SUBSTITUTE($V168,\"{\",CHAR(160),GI$1)),FIND(CHAR(160),SUBSTITUTE($V168,\"}\",CHAR(160),GI$1))-FIND(CHAR(160),SUBSTITUTE($V168,\"{\",CHAR(160),GI$1))+1),\"\")","v":""},{"$f":"IFERROR(MID($V168,FIND(CHAR(160),SUBSTITUTE($V168,\"{\",CHAR(160),GJ$1)),FIND(CHAR(160),SUBSTITUTE($V168,\"}\",CHAR(160),GJ$1))-FIND(CHAR(160),SUBSTITUTE($V168,\"{\",CHAR(160),GJ$1))+1),\"\")","v":""},{"$f":"IFERROR(MID($V168,FIND(CHAR(160),SUBSTITUTE($V168,\"{\",CHAR(160),GK$1)),FIND(CHAR(160),SUBSTITUTE($V168,\"}\",CHAR(160),GK$1))-FIND(CHAR(160),SUBSTITUTE($V168,\"{\",CHAR(160),GK$1))+1),\"\")","v":""},{"$f":"IFERROR(MID($V168,FIND(CHAR(160),SUBSTITUTE($V168,\"{\",CHAR(160),GL$1)),FIND(CHAR(160),SUBSTITUTE($V168,\"}\",CHAR(160),GL$1))-FIND(CHAR(160),SUBSTITUTE($V168,\"{\",CHAR(160),GL$1))+1),\"\")","v":""},{"$f":"IFERROR(MID($V168,FIND(CHAR(160),SUBSTITUTE($V168,\"{\",CHAR(160),GM$1)),FIND(CHAR(160),SUBSTITUTE($V168,\"}\",CHAR(160),GM$1))-FIND(CHAR(160),SUBSTITUTE($V168,\"{\",CHAR(160),GM$1))+1),\"\")","v":""},{"$f":"IFERROR(MID($V168,FIND(CHAR(160),SUBSTITUTE($V168,\"{\",CHAR(160),GN$1)),FIND(CHAR(160),SUBSTITUTE($V168,\"}\",CHAR(160),GN$1))-FIND(CHAR(160),SUBSTITUTE($V168,\"{\",CHAR(160),GN$1))+1),\"\")","v":""},{"$f":"IFERROR(MID($V168,FIND(CHAR(160),SUBSTITUTE($V168,\"{\",CHAR(160),GO$1)),FIND(CHAR(160),SUBSTITUTE($V168,\"}\",CHAR(160),GO$1))-FIND(CHAR(160),SUBSTITUTE($V168,\"{\",CHAR(160),GO$1))+1),\"\")","v":"{Measure:Quantity}"},{"$f":"IFERROR(MID($V168,FIND(CHAR(160),SUBSTITUTE($V168,\"{\",CHAR(160),GP$1)),FIND(CHAR(160),SUBSTITUTE($V168,\"}\",CHAR(160),GP$1))-FIND(CHAR(160),SUBSTITUTE($V168,\"{\",CHAR(160),GP$1))+1),\"\")","v":"{Package Size}"},{"$f":"IFERROR(MID($W168,FIND(CHAR(160),SUBSTITUTE($W168,\"{\",CHAR(160),GQ$1)),FIND(CHAR(160),SUBSTITUTE($W168,\"}\",CHAR(160),GQ$1))-FIND(CHAR(160),SUBSTITUTE($W168,\"{\",CHAR(160),GQ$1))+1),\"\")","v":""},{"$f":"IFERROR(MID($W168,FIND(CHAR(160),SUBSTITUTE($W168,\"{\",CHAR(160),GR$1)),FIND(CHAR(160),SUBSTITUTE($W168,\"}\",CHAR(160),GR$1))-FIND(CHAR(160),SUBSTITUTE($W168,\"{\",CHAR(160),GR$1))+1),\"\")","v":""},{"$f":"IFERROR(MID($W168,FIND(CHAR(160),SUBSTITUTE($W168,\"{\",CHAR(160),GS$1)),FIND(CHAR(160),SUBSTITUTE($W168,\"}\",CHAR(160),GS$1))-FIND(CHAR(160),SUBSTITUTE($W168,\"{\",CHAR(160),GS$1))+1),\"\")","v":""},{"$f":"IFERROR(MID($W168,FIND(CHAR(160),SUBSTITUTE($W168,\"{\",CHAR(160),GT$1)),FIND(CHAR(160),SUBSTITUTE($W168,\"}\",CHAR(160),GT$1))-FIND(CHAR(160),SUBSTITUTE($W168,\"{\",CHAR(160),GT$1))+1),\"\")","v":""},{"$f":"IFERROR(MID($W168,FIND(CHAR(160),SUBSTITUTE($W168,\"{\",CHAR(160),GU$1)),FIND(CHAR(160),SUBSTITUTE($W168,\"}\",CHAR(160),GU$1))-FIND(CHAR(160),SUBSTITUTE($W168,\"{\",CHAR(160),GU$1))+1),\"\")","v":""},{"$f":"IFERROR(MID($W168,FIND(CHAR(160),SUBSTITUTE($W168,\"{\",CHAR(160),GV$1)),FIND(CHAR(160),SUBSTITUTE($W168,\"}\",CHAR(160),GV$1))-FIND(CHAR(160),SUBSTITUTE($W168,\"{\",CHAR(160),GV$1))+1),\"\")","v":""},{"$f":"IFERROR(MID($W168,FIND(CHAR(160),SUBSTITUTE($W168,\"{\",CHAR(160),GW$1)),FIND(CHAR(160),SUBSTITUTE($W168,\"}\",CHAR(160),GW$1))-FIND(CHAR(160),SUBSTITUTE($W168,\"{\",CHAR(160),GW$1))+1),\"\")","v":""},{"$f":"IFERROR(MID($W168,FIND(CHAR(160),SUBSTITUTE($W168,\"{\",CHAR(160),GX$1)),FIND(CHAR(160),SUBSTITUTE($W168,\"}\",CHAR(160),GX$1))-FIND(CHAR(160),SUBSTITUTE($W168,\"{\",CHAR(160),GX$1))+1),\"\")","v":""},{"$f":"IFERROR(MID($W168,FIND(CHAR(160),SUBSTITUTE($W168,\"{\",CHAR(160),GY$1)),FIND(CHAR(160),SUBSTITUTE($W168,\"}\",CHAR(160),GY$1))-FIND(CHAR(160),SUBSTITUTE($W168,\"{\",CHAR(160),GY$1))+1),\"\")","v":"{Measure:Quantity}"},{"$f":"IFERROR(MID($W168,FIND(CHAR(160),SUBSTITUTE($W168,\"{\",CHAR(160),GZ$1)),FIND(CHAR(160),SUBSTITUTE($W168,\"}\",CHAR(160),GZ$1))-FIND(CHAR(160),SUBSTITUTE($W168,\"{\",CHAR(160),GZ$1))+1),\"\")","v":"{Package Size}"},{"$f":"IFERROR(MID($X168,FIND(CHAR(160),SUBSTITUTE($X168,\"{\",CHAR(160),HA$1)),FIND(CHAR(160),SUBSTITUTE($X168,\"}\",CHAR(160),HA$1))-FIND(CHAR(160),SUBSTITUTE($X168,\"{\",CHAR(160),HA$1))+1),\"\")","v":""},{"$f":"IFERROR(MID($X168,FIND(CHAR(160),SUBSTITUTE($X168,\"{\",CHAR(160),HB$1)),FIND(CHAR(160),SUBSTITUTE($X168,\"}\",CHAR(160),HB$1))-FIND(CHAR(160),SUBSTITUTE($X168,\"{\",CHAR(160),HB$1))+1),\"\")","v":""},{"$f":"IFERROR(MID($X168,FIND(CHAR(160),SUBSTITUTE($X168,\"{\",CHAR(160),HC$1)),FIND(CHAR(160),SUBSTITUTE($X168,\"}\",CHAR(160),HC$1))-FIND(CHAR(160),SUBSTITUTE($X168,\"{\",CHAR(160),HC$1))+1),\"\")","v":""},{"$f":"IFERROR(MID($X168,FIND(CHAR(160),SUBSTITUTE($X168,\"{\",CHAR(160),HD$1)),FIND(CHAR(160),SUBSTITUTE($X168,\"}\",CHAR(160),HD$1))-FIND(CHAR(160),SUBSTITUTE($X168,\"{\",CHAR(160),HD$1))+1),\"\")","v":""},{"$f":"IFERROR(MID($X168,FIND(CHAR(160),SUBSTITUTE($X168,\"{\",CHAR(160),HE$1)),FIND(CHAR(160),SUBSTITUTE($X168,\"}\",CHAR(160),HE$1))-FIND(CHAR(160),SUBSTITUTE($X168,\"{\",CHAR(160),HE$1))+1),\"\")","v":""},{"$f":"IFERROR(MID($X168,FIND(CHAR(160),SUBSTITUTE($X168,\"{\",CHAR(160),HF$1)),FIND(CHAR(160),SUBSTITUTE($X168,\"}\",CHAR(160),HF$1))-FIND(CHAR(160),SUBSTITUTE($X168,\"{\",CHAR(160),HF$1))+1),\"\")","v":""},{"$f":"IFERROR(MID($X168,FIND(CHAR(160),SUBSTITUTE($X168,\"{\",CHAR(160),HG$1)),FIND(CHAR(160),SUBSTITUTE($X168,\"}\",CHAR(160),HG$1))-FIND(CHAR(160),SUBSTITUTE($X168,\"{\",CHAR(160),HG$1))+1),\"\")","v":""},{"$f":"IFERROR(MID($X168,FIND(CHAR(160),SUBSTITUTE($X168,\"{\",CHAR(160),HH$1)),FIND(CHAR(160),SUBSTITUTE($X168,\"}\",CHAR(160),HH$1))-FIND(CHAR(160),SUBSTITUTE($X168,\"{\",CHAR(160),HH$1))+1),\"\")","v":""},{"$f":"IFERROR(MID($X168,FIND(CHAR(160),SUBSTITUTE($X168,\"{\",CHAR(160),HI$1)),FIND(CHAR(160),SUBSTITUTE($X168,\"}\",CHAR(160),HI$1))-FIND(CHAR(160),SUBSTITUTE($X168,\"{\",CHAR(160),HI$1))+1),\"\")","v":"{Measure:Quantity}"},{"$f":"IFERROR(MID($X168,FIND(CHAR(160),SUBSTITUTE($X168,\"{\",CHAR(160),HJ$1)),FIND(CHAR(160),SUBSTITUTE($X168,\"}\",CHAR(160),HJ$1))-FIND(CHAR(160),SUBSTITUTE($X168,\"{\",CHAR(160),HJ$1))+1),\"\")","v":"{Package Size}"},{"$f":"IFERROR(MID($Y168,FIND(CHAR(160),SUBSTITUTE($Y168,\"{\",CHAR(160),HK$1)),FIND(CHAR(160),SUBSTITUTE($Y168,\"}\",CHAR(160),HK$1))-FIND(CHAR(160),SUBSTITUTE($Y168,\"{\",CHAR(160),HK$1))+1),\"\")","v":""},{"$f":"IFERROR(MID($Y168,FIND(CHAR(160),SUBSTITUTE($Y168,\"{\",CHAR(160),HL$1)),FIND(CHAR(160),SUBSTITUTE($Y168,\"}\",CHAR(160),HL$1))-FIND(CHAR(160),SUBSTITUTE($Y168,\"{\",CHAR(160),HL$1))+1),\"\")","v":""},{"$f":"IFERROR(MID($Y168,FIND(CHAR(160),SUBSTITUTE($Y168,\"{\",CHAR(160),HM$1)),FIND(CHAR(160),SUBSTITUTE($Y168,\"}\",CHAR(160),HM$1))-FIND(CHAR(160),SUBSTITUTE($Y168,\"{\",CHAR(160),HM$1))+1),\"\")","v":""},{"$f":"IFERROR(MID($Y168,FIND(CHAR(160),SUBSTITUTE($Y168,\"{\",CHAR(160),HN$1)),FIND(CHAR(160),SUBSTITUTE($Y168,\"}\",CHAR(160),HN$1))-FIND(CHAR(160),SUBSTITUTE($Y168,\"{\",CHAR(160),HN$1))+1),\"\")","v":""},{"$f":"IFERROR(MID($Y168,FIND(CHAR(160),SUBSTITUTE($Y168,\"{\",CHAR(160),HO$1)),FIND(CHAR(160),SUBSTITUTE($Y168,\"}\",CHAR(160),HO$1))-FIND(CHAR(160),SUBSTITUTE($Y168,\"{\",CHAR(160),HO$1))+1),\"\")","v":""},{"$f":"IFERROR(MID($Y168,FIND(CHAR(160),SUBSTITUTE($Y168,\"{\",CHAR(160),HP$1)),FIND(CHAR(160),SUBSTITUTE($Y168,\"}\",CHAR(160),HP$1))-FIND(CHAR(160),SUBSTITUTE($Y168,\"{\",CHAR(160),HP$1))+1),\"\")","v":""},{"$f":"IFERROR(MID($Y168,FIND(CHAR(160),SUBSTITUTE($Y168,\"{\",CHAR(160),HQ$1)),FIND(CHAR(160),SUBSTITUTE($Y168,\"}\",CHAR(160),HQ$1))-FIND(CHAR(160),SUBSTITUTE($Y168,\"{\",CHAR(160),HQ$1))+1),\"\")","v":""},{"$f":"IFERROR(MID($Y168,FIND(CHAR(160),SUBSTITUTE($Y168,\"{\",CHAR(160),HR$1)),FIND(CHAR(160),SUBSTITUTE($Y168,\"}\",CHAR(160),HR$1))-FIND(CHAR(160),SUBSTITUTE($Y168,\"{\",CHAR(160),HR$1))+1),\"\")","v":""},{"$f":"IFERROR(MID($Y168,FIND(CHAR(160),SUBSTITUTE($Y168,\"{\",CHAR(160),HS$1)),FIND(CHAR(160),SUBSTITUTE($Y168,\"}\",CHAR(160),HS$1))-FIND(CHAR(160),SUBSTITUTE($Y168,\"{\",CHAR(160),HS$1))+1),\"\")","v":"{Measure:Quantity}"},{"$f":"IFERROR(MID($Y168,FIND(CHAR(160),SUBSTITUTE($Y168,\"{\",CHAR(160),HT$1)),FIND(CHAR(160),SUBSTITUTE($Y168,\"}\",CHAR(160),HT$1))-FIND(CHAR(160),SUBSTITUTE($Y168,\"{\",CHAR(160),HT$1))+1),\"\")","v":"{Package Size}"},{"$f":"IFERROR(MID($Z168,FIND(CHAR(160),SUBSTITUTE($Z168,\"{\",CHAR(160),HU$1)),FIND(CHAR(160),SUBSTITUTE($Z168,\"}\",CHAR(160),HU$1))-FIND(CHAR(160),SUBSTITUTE($Z168,\"{\",CHAR(160),HU$1))+1),\"\")","v":""},{"$f":"IFERROR(MID($Z168,FIND(CHAR(160),SUBSTITUTE($Z168,\"{\",CHAR(160),HV$1)),FIND(CHAR(160),SUBSTITUTE($Z168,\"}\",CHAR(160),HV$1))-FIND(CHAR(160),SUBSTITUTE($Z168,\"{\",CHAR(160),HV$1))+1),\"\")","v":""},{"$f":"IFERROR(MID($Z168,FIND(CHAR(160),SUBSTITUTE($Z168,\"{\",CHAR(160),HW$1)),FIND(CHAR(160),SUBSTITUTE($Z168,\"}\",CHAR(160),HW$1))-FIND(CHAR(160),SUBSTITUTE($Z168,\"{\",CHAR(160),HW$1))+1),\"\")","v":""},{"$f":"IFERROR(MID($Z168,FIND(CHAR(160),SUBSTITUTE($Z168,\"{\",CHAR(160),HX$1)),FIND(CHAR(160),SUBSTITUTE($Z168,\"}\",CHAR(160),HX$1))-FIND(CHAR(160),SUBSTITUTE($Z168,\"{\",CHAR(160),HX$1))+1),\"\")","v":""},{"$f":"IFERROR(MID($Z168,FIND(CHAR(160),SUBSTITUTE($Z168,\"{\",CHAR(160),HY$1)),FIND(CHAR(160),SUBSTITUTE($Z168,\"}\",CHAR(160),HY$1))-FIND(CHAR(160),SUBSTITUTE($Z168,\"{\",CHAR(160),HY$1))+1),\"\")","v":""},{"$f":"IFERROR(MID($Z168,FIND(CHAR(160),SUBSTITUTE($Z168,\"{\",CHAR(160),HZ$1)),FIND(CHAR(160),SUBSTITUTE($Z168,\"}\",CHAR(160),HZ$1))-FIND(CHAR(160),SUBSTITUTE($Z168,\"{\",CHAR(160),HZ$1))+1),\"\")","v":""},{"$f":"IFERROR(MID($Z168,FIND(CHAR(160),SUBSTITUTE($Z168,\"{\",CHAR(160),IA$1)),FIND(CHAR(160),SUBSTITUTE($Z168,\"}\",CHAR(160),IA$1))-FIND(CHAR(160),SUBSTITUTE($Z168,\"{\",CHAR(160),IA$1))+1),\"\")","v":""},{"$f":"IFERROR(MID($Z168,FIND(CHAR(160),SUBSTITUTE($Z168,\"{\",CHAR(160),IB$1)),FIND(CHAR(160),SUBSTITUTE($Z168,\"}\",CHAR(160),IB$1))-FIND(CHAR(160),SUBSTITUTE($Z168,\"{\",CHAR(160),IB$1))+1),\"\")","v":""},{"$f":"IFERROR(MID($Z168,FIND(CHAR(160),SUBSTITUTE($Z168,\"{\",CHAR(160),IC$1)),FIND(CHAR(160),SUBSTITUTE($Z168,\"}\",CHAR(160),IC$1))-FIND(CHAR(160),SUBSTITUTE($Z168,\"{\",CHAR(160),IC$1))+1),\"\")","v":"{Measure:Quantity}"},{"$f":"IFERROR(MID($Z168,FIND(CHAR(160),SUBSTITUTE($Z168,\"{\",CHAR(160),ID$1)),FIND(CHAR(160),SUBSTITUTE($Z168,\"}\",CHAR(160),ID$1))-FIND(CHAR(160),SUBSTITUTE($Z168,\"{\",CHAR(160),ID$1))+1),\"\")","v":"{Package Size}"},{"$f":"IFERROR(MID($AA168,FIND(CHAR(160),SUBSTITUTE($AA168,\"{\",CHAR(160),IE$1)),FIND(CHAR(160),SUBSTITUTE($AA168,\"}\",CHAR(160),IE$1))-FIND(CHAR(160),SUBSTITUTE($AA168,\"{\",CHAR(160),IE$1))+1),\"\")","v":""},{"$f":"IFERROR(MID($AA168,FIND(CHAR(160),SUBSTITUTE($AA168,\"{\",CHAR(160),IF$1)),FIND(CHAR(160),SUBSTITUTE($AA168,\"}\",CHAR(160),IF$1))-FIND(CHAR(160),SUBSTITUTE($AA168,\"{\",CHAR(160),IF$1))+1),\"\")","v":""},{"$f":"IFERROR(MID($AA168,FIND(CHAR(160),SUBSTITUTE($AA168,\"{\",CHAR(160),IG$1)),FIND(CHAR(160),SUBSTITUTE($AA168,\"}\",CHAR(160),IG$1))-FIND(CHAR(160),SUBSTITUTE($AA168,\"{\",CHAR(160),IG$1))+1),\"\")","v":""},{"$f":"IFERROR(MID($AA168,FIND(CHAR(160),SUBSTITUTE($AA168,\"{\",CHAR(160),IH$1)),FIND(CHAR(160),SUBSTITUTE($AA168,\"}\",CHAR(160),IH$1))-FIND(CHAR(160),SUBSTITUTE($AA168,\"{\",CHAR(160),IH$1))+1),\"\")","v":""},{"$f":"IFERROR(MID($AA168,FIND(CHAR(160),SUBSTITUTE($AA168,\"{\",CHAR(160),II$1)),FIND(CHAR(160),SUBSTITUTE($AA168,\"}\",CHAR(160),II$1))-FIND(CHAR(160),SUBSTITUTE($AA168,\"{\",CHAR(160),II$1))+1),\"\")","v":""},{"$f":"IFERROR(MID($AA168,FIND(CHAR(160),SUBSTITUTE($AA168,\"{\",CHAR(160),IJ$1)),FIND(CHAR(160),SUBSTITUTE($AA168,\"}\",CHAR(160),IJ$1))-FIND(CHAR(160),SUBSTITUTE($AA168,\"{\",CHAR(160),IJ$1))+1),\"\")","v":""},{"$f":"IFERROR(MID($AA168,FIND(CHAR(160),SUBSTITUTE($AA168,\"{\",CHAR(160),IK$1)),FIND(CHAR(160),SUBSTITUTE($AA168,\"}\",CHAR(160),IK$1))-FIND(CHAR(160),SUBSTITUTE($AA168,\"{\",CHAR(160),IK$1))+1),\"\")","v":""},{"$f":"IFERROR(MID($AA168,FIND(CHAR(160),SUBSTITUTE($AA168,\"{\",CHAR(160),IL$1)),FIND(CHAR(160),SUBSTITUTE($AA168,\"}\",CHAR(160),IL$1))-FIND(CHAR(160),SUBSTITUTE($AA168,\"{\",CHAR(160),IL$1))+1),\"\")","v":""},{"$f":"IFERROR(MID($AA168,FIND(CHAR(160),SUBSTITUTE($AA168,\"{\",CHAR(160),IM$1)),FIND(CHAR(160),SUBSTITUTE($AA168,\"}\",CHAR(160),IM$1))-FIND(CHAR(160),SUBSTITUTE($AA168,\"{\",CHAR(160),IM$1))+1),\"\")","v":"{Measure:Quantity}"},{"$f":"IFERROR(MID($AA168,FIND(CHAR(160),SUBSTITUTE($AA168,\"{\",CHAR(160),IN$1)),FIND(CHAR(160),SUBSTITUTE($AA168,\"}\",CHAR(160),IN$1))-FIND(CHAR(160),SUBSTITUTE($AA168,\"{\",CHAR(160),IN$1))+1),\"\")","v":"{Package Size}"},{"$f":"IFERROR(MID($AB168,FIND(CHAR(160),SUBSTITUTE($AB168,\"{\",CHAR(160),IO$1)),FIND(CHAR(160),SUBSTITUTE($AB168,\"}\",CHAR(160),IO$1))-FIND(CHAR(160),SUBSTITUTE($AB168,\"{\",CHAR(160),IO$1))+1),\"\")","v":""},{"$f":"IFERROR(MID($AB168,FIND(CHAR(160),SUBSTITUTE($AB168,\"{\",CHAR(160),IP$1)),FIND(CHAR(160),SUBSTITUTE($AB168,\"}\",CHAR(160),IP$1))-FIND(CHAR(160),SUBSTITUTE($AB168,\"{\",CHAR(160),IP$1))+1),\"\")","v":""},{"$f":"IFERROR(MID($AB168,FIND(CHAR(160),SUBSTITUTE($AB168,\"{\",CHAR(160),IQ$1)),FIND(CHAR(160),SUBSTITUTE($AB168,\"}\",CHAR(160),IQ$1))-FIND(CHAR(160),SUBSTITUTE($AB168,\"{\",CHAR(160),IQ$1))+1),\"\")","v":""},{"$f":"IFERROR(MID($AB168,FIND(CHAR(160),SUBSTITUTE($AB168,\"{\",CHAR(160),IR$1)),FIND(CHAR(160),SUBSTITUTE($AB168,\"}\",CHAR(160),IR$1))-FIND(CHAR(160),SUBSTITUTE($AB168,\"{\",CHAR(160),IR$1))+1),\"\")","v":""},{"$f":"IFERROR(MID($AB168,FIND(CHAR(160),SUBSTITUTE($AB168,\"{\",CHAR(160),IS$1)),FIND(CHAR(160),SUBSTITUTE($AB168,\"}\",CHAR(160),IS$1))-FIND(CHAR(160),SUBSTITUTE($AB168,\"{\",CHAR(160),IS$1))+1),\"\")","v":""},{"$f":"IFERROR(MID($AB168,FIND(CHAR(160),SUBSTITUTE($AB168,\"{\",CHAR(160),IT$1)),FIND(CHAR(160),SUBSTITUTE($AB168,\"}\",CHAR(160),IT$1))-FIND(CHAR(160),SUBSTITUTE($AB168,\"{\",CHAR(160),IT$1))+1),\"\")","v":""},{"$f":"IFERROR(MID($AB168,FIND(CHAR(160),SUBSTITUTE($AB168,\"{\",CHAR(160),IU$1)),FIND(CHAR(160),SUBSTITUTE($AB168,\"}\",CHAR(160),IU$1))-FIND(CHAR(160),SUBSTITUTE($AB168,\"{\",CHAR(160),IU$1))+1),\"\")","v":""},{"$f":"IFERROR(MID($AB168,FIND(CHAR(160),SUBSTITUTE($AB168,\"{\",CHAR(160),IV$1)),FIND(CHAR(160),SUBSTITUTE($AB168,\"}\",CHAR(160),IV$1))-FIND(CHAR(160),SUBSTITUTE($AB168,\"{\",CHAR(160),IV$1))+1),\"\")","v":""},{"$f":"IFERROR(MID($AB168,FIND(CHAR(160),SUBSTITUTE($AB168,\"{\",CHAR(160),IW$1)),FIND(CHAR(160),SUBSTITUTE($AB168,\"}\",CHAR(160),IW$1))-FIND(CHAR(160),SUBSTITUTE($AB168,\"{\",CHAR(160),IW$1))+1),\"\")","v":""},{"$f":"IFERROR(MID($AB168,FIND(CHAR(160),SUBSTITUTE($AB168,\"{\",CHAR(160),IX$1)),FIND(CHAR(160),SUBSTITUTE($AB168,\"}\",CHAR(160),IX$1))-FIND(CHAR(160),SUBSTITUTE($AB168,\"{\",CHAR(160),IX$1))+1),\"\")","v":""},null,{"$f":"10-COUNTIF(DU168:ED168,\"\")","v":3}]
["Distributor Lighting","Specialty LED - BR40","LEDBR40","2021-07-01","2022-06-30","Calculated","{Measure:Quantity}*{Package Size}*6.18",0,"Calculated","{Measure:Quantity}*{Rebate per Package}",0,"2021-07-01","2022-06-30","Calculated","{Measure:Quantity}*{Package Size}*123",null,null,"{Measure:Quantity}*{Package Size}*1.0747*0.071",null,null,"{Measure:Quantity}*{Package Size}*{Factor:WinterCF}*0.071","{Measure:Quantity}*{Package Size}*{Factor:SummerCF}*1.0747*0.071","{Measure:Quantity}*{Package Size}*10*-0.016","{Measure:Quantity}*{Package Size}*-0.01","{Measure:Quantity}*{Package Size}*-0.082","{Measure:Quantity}*{Package Size}*-0.003","{Measure:Quantity}*{Package Size}*-0.02",null,"2021-07-01","2022-06-30",2,0.254,0.309,0.42299999999999999,0.249,0.21,0.11799999999999999,0.99,1,1,0.51,0,null,{"$f":"DU169","v":"{Measure:Quantity}"},1,{"$f":"DV169","v":"{Package Size}"},1,{"$f":"DW169","v":"{Rebate per Package}"},{"$f":"CW169*CO169","v":0},{"$f":"DX169","v":""},null,{"$f":"DY169","v":""},null,{"$f":"DZ169","v":""},null,{"$f":"EA169","v":""},null,{"$f":"EB169","v":""},null,{"$f":"EC169","v":""},null,{"$f":"ED169","v":""},null,{"$f":"AS169*AU169*123","v":123},0,0,{"$f":"AS169*AU169*1.0747*0.071","v":7.6303699999999988E-2},0,0,{"$f":"AS169*AU169*AF169*0.071","v":1.8033999999999998E-2},{"$f":"AS169*AU169*AG169*1.0747*0.071","v":2.3577843299999998E-2},{"$f":"AS169*AU169*10*-0.016","v":-0.16},{"$f":"AS169*AU169*-0.01","v":-0.01},{"$f":"AS169*AU169*-0.082","v":-8.2000000000000003E-2},{"$f":"AS169*AU169*-0.003","v":-3.0000000000000001E-3},{"$f":"AS169*AU169*-0.02","v":-0.02},0,null,"Res","Default DR",{"$f":"Benefits(BL169,BR169,BS169,BT169,BU169,BV169,BW169,BX169,BY169,BZ169,AE169,AH169,AI169,AJ169,AK169,AL169,AM169,AN169,AO169,AP169,CA169,CB169)","v":29.319231902345127},17.729130849174275,-0.57516744061077607,-5.3690489781478608,-0.22294035388715955,-0.90743326809338531,-0.68889891922178992,0,0,{"$f":"SUMPRODUCT(CC169:CK169,--(CC169:CK169>0))","v":47.048362751519406},{"$f":"-SUMPRODUCT(CC169:CK169,--(CC169:CK169<0))","v":7.7634889599609718},null,{"$f":"AS169*AU169*6.18","v":6.18},null,null,{"$f":"CM169+CO169","v":13.943488959960971},{"$f":"IF(NetOrGross=\"Net\",(1-AO169+AP169),1)","v":1},{"$f":"(SUMPRODUCT(CC169:CJ169,--(CC169:CJ169>0))+CN169)*CS169/((-SUMPRODUCT(CC169:CJ169,--(CC169:CJ169<0))+MAX(CO169,CV169)+CP169+CQ169)*CS169+IF(FRIncentives=\"Yes\",CV169*(1-CS169),0))","v":3.3742173774885034},1,{"$f":"AS169*AW169","v":0},{"$f":"CW168","v":0},"Electric","y",null,{"$f":"IF(F169=\"Manual Entry\",\"Manual\",IF(G169=\"\",0,\"X=\"&SUBSTITUTE(SUBSTITUTE(SUBSTITUTE(SUBSTITUTE(SUBSTITUTE(SUBSTITUTE(SUBSTITUTE(SUBSTITUTE(SUBSTITUTE(SUBSTITUTE(SUBSTITUTE(SUBSTITUTE(G169,$ED169,$ED$2&ROW($ED169)),$EC169,$EC$2&ROW($EC169)),$EB169,$EB$2&ROW($EB169)),$EA169,$EA$2&ROW($EA169)),$DZ169,$DZ$2&ROW($DZ169)),$DY169,$DY$2&ROW($DY169)),$DX169,$DX$2&ROW($DX169)),$DW169,$DW$2&ROW($DW169)),$DV169,$DV$2&ROW($DV169)),$DU169,$DU$2&ROW($DU169)),$DT169,$DT$2&ROW($DT169)),$DS169,$DS$2&ROW($DS169))))","v":"X=AS169*AU169*6.18"},{"$f":"IF(I169=\"Manual Entry\",\"Manual\",IF(J169=\"\",0,\"X=\"&SUBSTITUTE(SUBSTITUTE(SUBSTITUTE(SUBSTITUTE(SUBSTITUTE(SUBSTITUTE(SUBSTITUTE(SUBSTITUTE(SUBSTITUTE(SUBSTITUTE(SUBSTITUTE(SUBSTITUTE(J169,$ED169,$ED$2&ROW($ED169)),$EC169,$EC$2&ROW($EC169)),$EB169,$EB$2&ROW($EB169)),$EA169,$EA$2&ROW($EA169)),$DZ169,$DZ$2&ROW($DZ169)),$DY169,$DY$2&ROW($DY169)),$DX169,$DX$2&ROW($DX169)),$DW169,$DW$2&ROW($DW169)),$DV169,$DV$2&ROW($DV169)),$DU169,$DU$2&ROW($DU169)),$DT169,$DT$2&ROW($DT169)),$DS169,$DS$2&ROW($DS169))))","v":"X=AS169*AW169"},{"$f":"IF(O169=\"\",0,\"X=\"&SUBSTITUTE(SUBSTITUTE(SUBSTITUTE(SUBSTITUTE(SUBSTITUTE(SUBSTITUTE(SUBSTITUTE(SUBSTITUTE(SUBSTITUTE(SUBSTITUTE(SUBSTITUTE(SUBSTITUTE(O169,$ED169,$ED$2&ROW($ED169)),$EC169,$EC$2&ROW($EC169)),$EB169,$EB$2&ROW($EB169)),$EA169,$EA$2&ROW($EA169)),$DZ169,$DZ$2&ROW($DZ169)),$DY169,$DY$2&ROW($DY169)),$DX169,$DX$2&ROW($DX169)),$DW169,$DW$2&ROW($DW169)),$DV169,$DV$2&ROW($DV169)),$DU169,$DU$2&ROW($DU169)),$DT169,$DT$2&ROW($DT169)),$DS169,$DS$2&ROW($DS169)))","v":"X=AS169*AU169*123"},{"$f":"IF(P169=\"\",0,\"X=\"&SUBSTITUTE(SUBSTITUTE(SUBSTITUTE(SUBSTITUTE(SUBSTITUTE(SUBSTITUTE(SUBSTITUTE(SUBSTITUTE(SUBSTITUTE(SUBSTITUTE(SUBSTITUTE(SUBSTITUTE(P169,$ED169,$ED$2&ROW($ED169)),$EC169,$EC$2&ROW($EC169)),$EB169,$EB$2&ROW($EB169)),$EA169,$EA$2&ROW($EA169)),$DZ169,$DZ$2&ROW($DZ169)),$DY169,$DY$2&ROW($DY169)),$DX169,$DX$2&ROW($DX169)),$DW169,$DW$2&ROW($DW169)),$DV169,$DV$2&ROW($DV169)),$DU169,$DU$2&ROW($DU169)),$DT169,$DT$2&ROW($DT169)),$DS169,$DS$2&ROW($DS169)))","v":0},{"$f":"IF(Q169=\"\",0,\"X=\"&SUBSTITUTE(SUBSTITUTE(SUBSTITUTE(SUBSTITUTE(SUBSTITUTE(SUBSTITUTE(SUBSTITUTE(SUBSTITUTE(SUBSTITUTE(SUBSTITUTE(SUBSTITUTE(SUBSTITUTE(Q169,$ED169,$ED$2&ROW($ED169)),$EC169,$EC$2&ROW($EC169)),$EB169,$EB$2&ROW($EB169)),$EA169,$EA$2&ROW($EA169)),$DZ169,$DZ$2&ROW($DZ169)),$DY169,$DY$2&ROW($DY169)),$DX169,$DX$2&ROW($DX169)),$DW169,$DW$2&ROW($DW169)),$DV169,$DV$2&ROW($DV169)),$DU169,$DU$2&ROW($DU169)),$DT169,$DT$2&ROW($DT169)),$DS169,$DS$2&ROW($DS169)))","v":0},{"$f":"IF(R169=\"\",0,\"X=\"&SUBSTITUTE(SUBSTITUTE(SUBSTITUTE(SUBSTITUTE(SUBSTITUTE(SUBSTITUTE(SUBSTITUTE(SUBSTITUTE(SUBSTITUTE(SUBSTITUTE(SUBSTITUTE(SUBSTITUTE(R169,$ED169,$ED$2&ROW($ED169)),$EC169,$EC$2&ROW($EC169)),$EB169,$EB$2&ROW($EB169)),$EA169,$EA$2&ROW($EA169)),$DZ169,$DZ$2&ROW($DZ169)),$DY169,$DY$2&ROW($DY169)),$DX169,$DX$2&ROW($DX169)),$DW169,$DW$2&ROW($DW169)),$DV169,$DV$2&ROW($DV169)),$DU169,$DU$2&ROW($DU169)),$DT169,$DT$2&ROW($DT169)),$DS169,$DS$2&ROW($DS169)))","v":"X=AS169*AU169*1.0747*0.071"},{"$f":"IF(S169=\"\",0,\"X=\"&SUBSTITUTE(SUBSTITUTE(SUBSTITUTE(SUBSTITUTE(SUBSTITUTE(SUBSTITUTE(SUBSTITUTE(SUBSTITUTE(SUBSTITUTE(SUBSTITUTE(SUBSTITUTE(SUBSTITUTE(S169,$ED169,$ED$2&ROW($ED169)),$EC169,$EC$2&ROW($EC169)),$EB169,$EB$2&ROW($EB169)),$EA169,$EA$2&ROW($EA169)),$DZ169,$DZ$2&ROW($DZ169)),$DY169,$DY$2&ROW($DY169)),$DX169,$DX$2&ROW($DX169)),$DW169,$DW$2&ROW($DW169)),$DV169,$DV$2&ROW($DV169)),$DU169,$DU$2&ROW($DU169)),$DT169,$DT$2&ROW($DT169)),$DS169,$DS$2&ROW($DS169)))","v":0},{"$f":"IF(T169=\"\",0,\"X=\"&SUBSTITUTE(SUBSTITUTE(SUBSTITUTE(SUBSTITUTE(SUBSTITUTE(SUBSTITUTE(SUBSTITUTE(SUBSTITUTE(SUBSTITUTE(SUBSTITUTE(SUBSTITUTE(SUBSTITUTE(T169,$ED169,$ED$2&ROW($ED169)),$EC169,$EC$2&ROW($EC169)),$EB169,$EB$2&ROW($EB169)),$EA169,$EA$2&ROW($EA169)),$DZ169,$DZ$2&ROW($DZ169)),$DY169,$DY$2&ROW($DY169)),$DX169,$DX$2&ROW($DX169)),$DW169,$DW$2&ROW($DW169)),$DV169,$DV$2&ROW($DV169)),$DU169,$DU$2&ROW($DU169)),$DT169,$DT$2&ROW($DT169)),$DS169,$DS$2&ROW($DS169)))","v":0},{"$f":"IF(U169=\"\",0,\"X=\"&SUBSTITUTE(SUBSTITUTE(SUBSTITUTE(SUBSTITUTE(SUBSTITUTE(SUBSTITUTE(SUBSTITUTE(SUBSTITUTE(SUBSTITUTE(SUBSTITUTE(SUBSTITUTE(SUBSTITUTE(U169,$ED169,$ED$2&ROW($ED169)),$EC169,$EC$2&ROW($EC169)),$EB169,$EB$2&ROW($EB169)),$EA169,$EA$2&ROW($EA169)),$DZ169,$DZ$2&ROW($DZ169)),$DY169,$DY$2&ROW($DY169)),$DX169,$DX$2&ROW($DX169)),$DW169,$DW$2&ROW($DW169)),$DV169,$DV$2&ROW($DV169)),$DU169,$DU$2&ROW($DU169)),$DT169,$DT$2&ROW($DT169)),$DS169,$DS$2&ROW($DS169)))","v":"X=AS169*AU169*AF169*0.071"},{"$f":"IF(V169=\"\",0,\"X=\"&SUBSTITUTE(SUBSTITUTE(SUBSTITUTE(SUBSTITUTE(SUBSTITUTE(SUBSTITUTE(SUBSTITUTE(SUBSTITUTE(SUBSTITUTE(SUBSTITUTE(SUBSTITUTE(SUBSTITUTE(V169,$ED169,$ED$2&ROW($ED169)),$EC169,$EC$2&ROW($EC169)),$EB169,$EB$2&ROW($EB169)),$EA169,$EA$2&ROW($EA169)),$DZ169,$DZ$2&ROW($DZ169)),$DY169,$DY$2&ROW($DY169)),$DX169,$DX$2&ROW($DX169)),$DW169,$DW$2&ROW($DW169)),$DV169,$DV$2&ROW($DV169)),$DU169,$DU$2&ROW($DU169)),$DT169,$DT$2&ROW($DT169)),$DS169,$DS$2&ROW($DS169)))","v":"X=AS169*AU169*AG169*1.0747*0.071"},{"$f":"IF(W169=\"\",0,\"X=\"&SUBSTITUTE(SUBSTITUTE(SUBSTITUTE(SUBSTITUTE(SUBSTITUTE(SUBSTITUTE(SUBSTITUTE(SUBSTITUTE(SUBSTITUTE(SUBSTITUTE(SUBSTITUTE(SUBSTITUTE(W169,$ED169,$ED$2&ROW($ED169)),$EC169,$EC$2&ROW($EC169)),$EB169,$EB$2&ROW($EB169)),$EA169,$EA$2&ROW($EA169)),$DZ169,$DZ$2&ROW($DZ169)),$DY169,$DY$2&ROW($DY169)),$DX169,$DX$2&ROW($DX169)),$DW169,$DW$2&ROW($DW169)),$DV169,$DV$2&ROW($DV169)),$DU169,$DU$2&ROW($DU169)),$DT169,$DT$2&ROW($DT169)),$DS169,$DS$2&ROW($DS169)))","v":"X=AS169*AU169*10*-0.016"},{"$f":"IF(X169=\"\",0,\"X=\"&SUBSTITUTE(SUBSTITUTE(SUBSTITUTE(SUBSTITUTE(SUBSTITUTE(SUBSTITUTE(SUBSTITUTE(SUBSTITUTE(SUBSTITUTE(SUBSTITUTE(SUBSTITUTE(SUBSTITUTE(X169,$ED169,$ED$2&ROW($ED169)),$EC169,$EC$2&ROW($EC169)),$EB169,$EB$2&ROW($EB169)),$EA169,$EA$2&ROW($EA169)),$DZ169,$DZ$2&ROW($DZ169)),$DY169,$DY$2&ROW($DY169)),$DX169,$DX$2&ROW($DX169)),$DW169,$DW$2&ROW($DW169)),$DV169,$DV$2&ROW($DV169)),$DU169,$DU$2&ROW($DU169)),$DT169,$DT$2&ROW($DT169)),$DS169,$DS$2&ROW($DS169)))","v":"X=AS169*AU169*-0.01"},{"$f":"IF(Y169=\"\",0,\"X=\"&SUBSTITUTE(SUBSTITUTE(SUBSTITUTE(SUBSTITUTE(SUBSTITUTE(SUBSTITUTE(SUBSTITUTE(SUBSTITUTE(SUBSTITUTE(SUBSTITUTE(SUBSTITUTE(SUBSTITUTE(Y169,$ED169,$ED$2&ROW($ED169)),$EC169,$EC$2&ROW($EC169)),$EB169,$EB$2&ROW($EB169)),$EA169,$EA$2&ROW($EA169)),$DZ169,$DZ$2&ROW($DZ169)),$DY169,$DY$2&ROW($DY169)),$DX169,$DX$2&ROW($DX169)),$DW169,$DW$2&ROW($DW169)),$DV169,$DV$2&ROW($DV169)),$DU169,$DU$2&ROW($DU169)),$DT169,$DT$2&ROW($DT169)),$DS169,$DS$2&ROW($DS169)))","v":"X=AS169*AU169*-0.082"},{"$f":"IF(Z169=\"\",0,\"X=\"&SUBSTITUTE(SUBSTITUTE(SUBSTITUTE(SUBSTITUTE(SUBSTITUTE(SUBSTITUTE(SUBSTITUTE(SUBSTITUTE(SUBSTITUTE(SUBSTITUTE(SUBSTITUTE(SUBSTITUTE(Z169,$ED169,$ED$2&ROW($ED169)),$EC169,$EC$2&ROW($EC169)),$EB169,$EB$2&ROW($EB169)),$EA169,$EA$2&ROW($EA169)),$DZ169,$DZ$2&ROW($DZ169)),$DY169,$DY$2&ROW($DY169)),$DX169,$DX$2&ROW($DX169)),$DW169,$DW$2&ROW($DW169)),$DV169,$DV$2&ROW($DV169)),$DU169,$DU$2&ROW($DU169)),$DT169,$DT$2&ROW($DT169)),$DS169,$DS$2&ROW($DS169)))","v":"X=AS169*AU169*-0.003"},{"$f":"IF(AA169=\"\",0,\"X=\"&SUBSTITUTE(SUBSTITUTE(SUBSTITUTE(SUBSTITUTE(SUBSTITUTE(SUBSTITUTE(SUBSTITUTE(SUBSTITUTE(SUBSTITUTE(SUBSTITUTE(SUBSTITUTE(SUBSTITUTE(AA169,$ED169,$ED$2&ROW($ED169)),$EC169,$EC$2&ROW($EC169)),$EB169,$EB$2&ROW($EB169)),$EA169,$EA$2&ROW($EA169)),$DZ169,$DZ$2&ROW($DZ169)),$DY169,$DY$2&ROW($DY169)),$DX169,$DX$2&ROW($DX169)),$DW169,$DW$2&ROW($DW169)),$DV169,$DV$2&ROW($DV169)),$DU169,$DU$2&ROW($DU169)),$DT169,$DT$2&ROW($DT169)),$DS169,$DS$2&ROW($DS169)))","v":"X=AS169*AU169*-0.02"},{"$f":"IF(AB169=\"\",0,\"X=\"&SUBSTITUTE(SUBSTITUTE(SUBSTITUTE(SUBSTITUTE(SUBSTITUTE(SUBSTITUTE(SUBSTITUTE(SUBSTITUTE(SUBSTITUTE(SUBSTITUTE(SUBSTITUTE(SUBSTITUTE(AB169,$ED169,$ED$2&ROW($ED169)),$EC169,$EC$2&ROW($EC169)),$EB169,$EB$2&ROW($EB169)),$EA169,$EA$2&ROW($EA169)),$DZ169,$DZ$2&ROW($DZ169)),$DY169,$DY$2&ROW($DY169)),$DX169,$DX$2&ROW($DX169)),$DW169,$DW$2&ROW($DW169)),$DV169,$DV$2&ROW($DV169)),$DU169,$DU$2&ROW($DU169)),$DT169,$DT$2&ROW($DT169)),$DS169,$DS$2&ROW($DS169)))","v":0},null,null,"{Factor:WinterCF}","{Factor:SummerCF}",{"$f":"IFERROR(INDEX($EG169:$IV169,MATCH(0,COUNTIF($DR169:DT169,$EG169:$IV169),0)),\"\")","v":"{Measure:Quantity}"},{"$f":"IFERROR(INDEX($EG169:$IV169,MATCH(0,COUNTIF($DR169:DU169,$EG169:$IV169),0)),\"\")","v":"{Package Size}"},{"$f":"IFERROR(INDEX($EG169:$IV169,MATCH(0,COUNTIF($DR169:DV169,$EG169:$IV169),0)),\"\")","v":"{Rebate per Package}"},{"$f":"IFERROR(INDEX($EG169:$IV169,MATCH(0,COUNTIF($DR169:DW169,$EG169:$IV169),0)),\"\")","v":""},{"$f":"IFERROR(INDEX($EG169:$IV169,MATCH(0,COUNTIF($DR169:DX169,$EG169:$IV169),0)),\"\")","v":""},{"$f":"IFERROR(INDEX($EG169:$IV169,MATCH(0,COUNTIF($DR169:DY169,$EG169:$IV169),0)),\"\")","v":""},{"$f":"IFERROR(INDEX($EG169:$IV169,MATCH(0,COUNTIF($DR169:DZ169,$EG169:$IV169),0)),\"\")","v":""},{"$f":"IFERROR(INDEX($EG169:$IV169,MATCH(0,COUNTIF($DR169:EA169,$EG169:$IV169),0)),\"\")","v":""},{"$f":"IFERROR(INDEX($EG169:$IV169,MATCH(0,COUNTIF($DR169:EB169,$EG169:$IV169),0)),\"\")","v":""},{"$f":"IFERROR(INDEX($EG169:$IV169,MATCH(0,COUNTIF($DR169:EC169,$EG169:$IV169),0)),\"\")","v":""},null,null,{"$f":"IFERROR(MID($G169,FIND(CHAR(160),SUBSTITUTE($G169,\"{\",CHAR(160),EG$1)),FIND(CHAR(160),SUBSTITUTE($G169,\"}\",CHAR(160),EG$1))-FIND(CHAR(160),SUBSTITUTE($G169,\"{\",CHAR(160),EG$1))+1),\"\")","v":"{Measure:Quantity}"},{"$f":"IFERROR(MID($G169,FIND(CHAR(160),SUBSTITUTE($G169,\"{\",CHAR(160),EH$1)),FIND(CHAR(160),SUBSTITUTE($G169,\"}\",CHAR(160),EH$1))-FIND(CHAR(160),SUBSTITUTE($G169,\"{\",CHAR(160),EH$1))+1),\"\")","v":"{Package Size}"},{"$f":"IFERROR(MID($G169,FIND(CHAR(160),SUBSTITUTE($G169,\"{\",CHAR(160),EI$1)),FIND(CHAR(160),SUBSTITUTE($G169,\"}\",CHAR(160),EI$1))-FIND(CHAR(160),SUBSTITUTE($G169,\"{\",CHAR(160),EI$1))+1),\"\")","v":""},{"$f":"IFERROR(MID($G169,FIND(CHAR(160),SUBSTITUTE($G169,\"{\",CHAR(160),EJ$1)),FIND(CHAR(160),SUBSTITUTE($G169,\"}\",CHAR(160),EJ$1))-FIND(CHAR(160),SUBSTITUTE($G169,\"{\",CHAR(160),EJ$1))+1),\"\")","v":""},{"$f":"IFERROR(MID($G169,FIND(CHAR(160),SUBSTITUTE($G169,\"{\",CHAR(160),EK$1)),FIND(CHAR(160),SUBSTITUTE($G169,\"}\",CHAR(160),EK$1))-FIND(CHAR(160),SUBSTITUTE($G169,\"{\",CHAR(160),EK$1))+1),\"\")","v":""},{"$f":"IFERROR(MID($G169,FIND(CHAR(160),SUBSTITUTE($G169,\"{\",CHAR(160),EL$1)),FIND(CHAR(160),SUBSTITUTE($G169,\"}\",CHAR(160),EL$1))-FIND(CHAR(160),SUBSTITUTE($G169,\"{\",CHAR(160),EL$1))+1),\"\")","v":""},{"$f":"IFERROR(MID($G169,FIND(CHAR(160),SUBSTITUTE($G169,\"{\",CHAR(160),EM$1)),FIND(CHAR(160),SUBSTITUTE($G169,\"}\",CHAR(160),EM$1))-FIND(CHAR(160),SUBSTITUTE($G169,\"{\",CHAR(160),EM$1))+1),\"\")","v":""},{"$f":"IFERROR(MID($G169,FIND(CHAR(160),SUBSTITUTE($G169,\"{\",CHAR(160),EN$1)),FIND(CHAR(160),SUBSTITUTE($G169,\"}\",CHAR(160),EN$1))-FIND(CHAR(160),SUBSTITUTE($G169,\"{\",CHAR(160),EN$1))+1),\"\")","v":""},{"$f":"IFERROR(MID($G169,FIND(CHAR(160),SUBSTITUTE($G169,\"{\",CHAR(160),EO$1)),FIND(CHAR(160),SUBSTITUTE($G169,\"}\",CHAR(160),EO$1))-FIND(CHAR(160),SUBSTITUTE($G169,\"{\",CHAR(160),EO$1))+1),\"\")","v":""},{"$f":"IFERROR(MID($G169,FIND(CHAR(160),SUBSTITUTE($G169,\"{\",CHAR(160),EP$1)),FIND(CHAR(160),SUBSTITUTE($G169,\"}\",CHAR(160),EP$1))-FIND(CHAR(160),SUBSTITUTE($G169,\"{\",CHAR(160),EP$1))+1),\"\")","v":""},{"$f":"IFERROR(MID($J169,FIND(CHAR(160),SUBSTITUTE($J169,\"{\",CHAR(160),EQ$1)),FIND(CHAR(160),SUBSTITUTE($J169,\"}\",CHAR(160),EQ$1))-FIND(CHAR(160),SUBSTITUTE($J169,\"{\",CHAR(160),EQ$1))+1),\"\")","v":"{Measure:Quantity}"},{"$f":"IFERROR(MID($J169,FIND(CHAR(160),SUBSTITUTE($J169,\"{\",CHAR(160),ER$1)),FIND(CHAR(160),SUBSTITUTE($J169,\"}\",CHAR(160),ER$1))-FIND(CHAR(160),SUBSTITUTE($J169,\"{\",CHAR(160),ER$1))+1),\"\")","v":"{Rebate per Package}"},{"$f":"IFERROR(MID($J169,FIND(CHAR(160),SUBSTITUTE($J169,\"{\",CHAR(160),ES$1)),FIND(CHAR(160),SUBSTITUTE($J169,\"}\",CHAR(160),ES$1))-FIND(CHAR(160),SUBSTITUTE($J169,\"{\",CHAR(160),ES$1))+1),\"\")","v":""},{"$f":"IFERROR(MID($J169,FIND(CHAR(160),SUBSTITUTE($J169,\"{\",CHAR(160),ET$1)),FIND(CHAR(160),SUBSTITUTE($J169,\"}\",CHAR(160),ET$1))-FIND(CHAR(160),SUBSTITUTE($J169,\"{\",CHAR(160),ET$1))+1),\"\")","v":""},{"$f":"IFERROR(MID($J169,FIND(CHAR(160),SUBSTITUTE($J169,\"{\",CHAR(160),EU$1)),FIND(CHAR(160),SUBSTITUTE($J169,\"}\",CHAR(160),EU$1))-FIND(CHAR(160),SUBSTITUTE($J169,\"{\",CHAR(160),EU$1))+1),\"\")","v":""},{"$f":"IFERROR(MID($J169,FIND(CHAR(160),SUBSTITUTE($J169,\"{\",CHAR(160),EV$1)),FIND(CHAR(160),SUBSTITUTE($J169,\"}\",CHAR(160),EV$1))-FIND(CHAR(160),SUBSTITUTE($J169,\"{\",CHAR(160),EV$1))+1),\"\")","v":""},{"$f":"IFERROR(MID($J169,FIND(CHAR(160),SUBSTITUTE($J169,\"{\",CHAR(160),EW$1)),FIND(CHAR(160),SUBSTITUTE($J169,\"}\",CHAR(160),EW$1))-FIND(CHAR(160),SUBSTITUTE($J169,\"{\",CHAR(160),EW$1))+1),\"\")","v":""},{"$f":"IFERROR(MID($J169,FIND(CHAR(160),SUBSTITUTE($J169,\"{\",CHAR(160),EX$1)),FIND(CHAR(160),SUBSTITUTE($J169,\"}\",CHAR(160),EX$1))-FIND(CHAR(160),SUBSTITUTE($J169,\"{\",CHAR(160),EX$1))+1),\"\")","v":""},{"$f":"IFERROR(MID($J169,FIND(CHAR(160),SUBSTITUTE($J169,\"{\",CHAR(160),EY$1)),FIND(CHAR(160),SUBSTITUTE($J169,\"}\",CHAR(160),EY$1))-FIND(CHAR(160),SUBSTITUTE($J169,\"{\",CHAR(160),EY$1))+1),\"\")","v":""},{"$f":"IFERROR(MID($J169,FIND(CHAR(160),SUBSTITUTE($J169,\"{\",CHAR(160),EZ$1)),FIND(CHAR(160),SUBSTITUTE($J169,\"}\",CHAR(160),EZ$1))-FIND(CHAR(160),SUBSTITUTE($J169,\"{\",CHAR(160),EZ$1))+1),\"\")","v":""},{"$f":"IFERROR(MID($J169,FIND(CHAR(160),SUBSTITUTE($J169,\"{\",CHAR(160),FA$1)),FIND(CHAR(160),SUBSTITUTE($J169,\"}\",CHAR(160),FA$1))-FIND(CHAR(160),SUBSTITUTE($J169,\"{\",CHAR(160),FA$1))+1),\"\")","v":"{Measure:Quantity}"},{"$f":"IFERROR(MID($J169,FIND(CHAR(160),SUBSTITUTE($J169,\"{\",CHAR(160),FB$1)),FIND(CHAR(160),SUBSTITUTE($J169,\"}\",CHAR(160),FB$1))-FIND(CHAR(160),SUBSTITUTE($J169,\"{\",CHAR(160),FB$1))+1),\"\")","v":"{Rebate per Package}"},{"$f":"IFERROR(MID($O169,FIND(CHAR(160),SUBSTITUTE($O169,\"{\",CHAR(160),FC$1)),FIND(CHAR(160),SUBSTITUTE($O169,\"}\",CHAR(160),FC$1))-FIND(CHAR(160),SUBSTITUTE($O169,\"{\",CHAR(160),FC$1))+1),\"\")","v":""},{"$f":"IFERROR(MID($O169,FIND(CHAR(160),SUBSTITUTE($O169,\"{\",CHAR(160),FD$1)),FIND(CHAR(160),SUBSTITUTE($O169,\"}\",CHAR(160),FD$1))-FIND(CHAR(160),SUBSTITUTE($O169,\"{\",CHAR(160),FD$1))+1),\"\")","v":""},{"$f":"IFERROR(MID($O169,FIND(CHAR(160),SUBSTITUTE($O169,\"{\",CHAR(160),FE$1)),FIND(CHAR(160),SUBSTITUTE($O169,\"}\",CHAR(160),FE$1))-FIND(CHAR(160),SUBSTITUTE($O169,\"{\",CHAR(160),FE$1))+1),\"\")","v":""},{"$f":"IFERROR(MID($O169,FIND(CHAR(160),SUBSTITUTE($O169,\"{\",CHAR(160),FF$1)),FIND(CHAR(160),SUBSTITUTE($O169,\"}\",CHAR(160),FF$1))-FIND(CHAR(160),SUBSTITUTE($O169,\"{\",CHAR(160),FF$1))+1),\"\")","v":""},{"$f":"IFERROR(MID($O169,FIND(CHAR(160),SUBSTITUTE($O169,\"{\",CHAR(160),FG$1)),FIND(CHAR(160),SUBSTITUTE($O169,\"}\",CHAR(160),FG$1))-FIND(CHAR(160),SUBSTITUTE($O169,\"{\",CHAR(160),FG$1))+1),\"\")","v":""},{"$f":"IFERROR(MID($O169,FIND(CHAR(160),SUBSTITUTE($O169,\"{\",CHAR(160),FH$1)),FIND(CHAR(160),SUBSTITUTE($O169,\"}\",CHAR(160),FH$1))-FIND(CHAR(160),SUBSTITUTE($O169,\"{\",CHAR(160),FH$1))+1),\"\")","v":""},{"$f":"IFERROR(MID($O169,FIND(CHAR(160),SUBSTITUTE($O169,\"{\",CHAR(160),FI$1)),FIND(CHAR(160),SUBSTITUTE($O169,\"}\",CHAR(160),FI$1))-FIND(CHAR(160),SUBSTITUTE($O169,\"{\",CHAR(160),FI$1))+1),\"\")","v":""},{"$f":"IFERROR(MID($O169,FIND(CHAR(160),SUBSTITUTE($O169,\"{\",CHAR(160),FJ$1)),FIND(CHAR(160),SUBSTITUTE($O169,\"}\",CHAR(160),FJ$1))-FIND(CHAR(160),SUBSTITUTE($O169,\"{\",CHAR(160),FJ$1))+1),\"\")","v":""},{"$f":"IFERROR(MID($O169,FIND(CHAR(160),SUBSTITUTE($O169,\"{\",CHAR(160),FK$1)),FIND(CHAR(160),SUBSTITUTE($O169,\"}\",CHAR(160),FK$1))-FIND(CHAR(160),SUBSTITUTE($O169,\"{\",CHAR(160),FK$1))+1),\"\")","v":"{Measure:Quantity}"},{"$f":"IFERROR(MID($O169,FIND(CHAR(160),SUBSTITUTE($O169,\"{\",CHAR(160),FL$1)),FIND(CHAR(160),SUBSTITUTE($O169,\"}\",CHAR(160),FL$1))-FIND(CHAR(160),SUBSTITUTE($O169,\"{\",CHAR(160),FL$1))+1),\"\")","v":"{Package Size}"},{"$f":"IFERROR(MID($R169,FIND(CHAR(160),SUBSTITUTE($R169,\"{\",CHAR(160),FM$1)),FIND(CHAR(160),SUBSTITUTE($R169,\"}\",CHAR(160),FM$1))-FIND(CHAR(160),SUBSTITUTE($R169,\"{\",CHAR(160),FM$1))+1),\"\")","v":""},{"$f":"IFERROR(MID($R169,FIND(CHAR(160),SUBSTITUTE($R169,\"{\",CHAR(160),FN$1)),FIND(CHAR(160),SUBSTITUTE($R169,\"}\",CHAR(160),FN$1))-FIND(CHAR(160),SUBSTITUTE($R169,\"{\",CHAR(160),FN$1))+1),\"\")","v":""},{"$f":"IFERROR(MID($R169,FIND(CHAR(160),SUBSTITUTE($R169,\"{\",CHAR(160),FO$1)),FIND(CHAR(160),SUBSTITUTE($R169,\"}\",CHAR(160),FO$1))-FIND(CHAR(160),SUBSTITUTE($R169,\"{\",CHAR(160),FO$1))+1),\"\")","v":""},{"$f":"IFERROR(MID($R169,FIND(CHAR(160),SUBSTITUTE($R169,\"{\",CHAR(160),FP$1)),FIND(CHAR(160),SUBSTITUTE($R169,\"}\",CHAR(160),FP$1))-FIND(CHAR(160),SUBSTITUTE($R169,\"{\",CHAR(160),FP$1))+1),\"\")","v":""},{"$f":"IFERROR(MID($R169,FIND(CHAR(160),SUBSTITUTE($R169,\"{\",CHAR(160),FQ$1)),FIND(CHAR(160),SUBSTITUTE($R169,\"}\",CHAR(160),FQ$1))-FIND(CHAR(160),SUBSTITUTE($R169,\"{\",CHAR(160),FQ$1))+1),\"\")","v":""},{"$f":"IFERROR(MID($R169,FIND(CHAR(160),SUBSTITUTE($R169,\"{\",CHAR(160),FR$1)),FIND(CHAR(160),SUBSTITUTE($R169,\"}\",CHAR(160),FR$1))-FIND(CHAR(160),SUBSTITUTE($R169,\"{\",CHAR(160),FR$1))+1),\"\")","v":""},{"$f":"IFERROR(MID($R169,FIND(CHAR(160),SUBSTITUTE($R169,\"{\",CHAR(160),FS$1)),FIND(CHAR(160),SUBSTITUTE($R169,\"}\",CHAR(160),FS$1))-FIND(CHAR(160),SUBSTITUTE($R169,\"{\",CHAR(160),FS$1))+1),\"\")","v":""},{"$f":"IFERROR(MID($R169,FIND(CHAR(160),SUBSTITUTE($R169,\"{\",CHAR(160),FT$1)),FIND(CHAR(160),SUBSTITUTE($R169,\"}\",CHAR(160),FT$1))-FIND(CHAR(160),SUBSTITUTE($R169,\"{\",CHAR(160),FT$1))+1),\"\")","v":""},{"$f":"IFERROR(MID($R169,FIND(CHAR(160),SUBSTITUTE($R169,\"{\",CHAR(160),FU$1)),FIND(CHAR(160),SUBSTITUTE($R169,\"}\",CHAR(160),FU$1))-FIND(CHAR(160),SUBSTITUTE($R169,\"{\",CHAR(160),FU$1))+1),\"\")","v":"{Measure:Quantity}"},{"$f":"IFERROR(MID($R169,FIND(CHAR(160),SUBSTITUTE($R169,\"{\",CHAR(160),FV$1)),FIND(CHAR(160),SUBSTITUTE($R169,\"}\",CHAR(160),FV$1))-FIND(CHAR(160),SUBSTITUTE($R169,\"{\",CHAR(160),FV$1))+1),\"\")","v":"{Package Size}"},{"$f":"IFERROR(MID($U169,FIND(CHAR(160),SUBSTITUTE($U169,\"{\",CHAR(160),FW$1)),FIND(CHAR(160),SUBSTITUTE($U169,\"}\",CHAR(160),FW$1))-FIND(CHAR(160),SUBSTITUTE($U169,\"{\",CHAR(160),FW$1))+1),\"\")","v":"{Factor:WinterCF}"},{"$f":"IFERROR(MID($U169,FIND(CHAR(160),SUBSTITUTE($U169,\"{\",CHAR(160),FX$1)),FIND(CHAR(160),SUBSTITUTE($U169,\"}\",CHAR(160),FX$1))-FIND(CHAR(160),SUBSTITUTE($U169,\"{\",CHAR(160),FX$1))+1),\"\")","v":""},{"$f":"IFERROR(MID($U169,FIND(CHAR(160),SUBSTITUTE($U169,\"{\",CHAR(160),FY$1)),FIND(CHAR(160),SUBSTITUTE($U169,\"}\",CHAR(160),FY$1))-FIND(CHAR(160),SUBSTITUTE($U169,\"{\",CHAR(160),FY$1))+1),\"\")","v":""},{"$f":"IFERROR(MID($U169,FIND(CHAR(160),SUBSTITUTE($U169,\"{\",CHAR(160),FZ$1)),FIND(CHAR(160),SUBSTITUTE($U169,\"}\",CHAR(160),FZ$1))-FIND(CHAR(160),SUBSTITUTE($U169,\"{\",CHAR(160),FZ$1))+1),\"\")","v":""},{"$f":"IFERROR(MID($U169,FIND(CHAR(160),SUBSTITUTE($U169,\"{\",CHAR(160),GA$1)),FIND(CHAR(160),SUBSTITUTE($U169,\"}\",CHAR(160),GA$1))-FIND(CHAR(160),SUBSTITUTE($U169,\"{\",CHAR(160),GA$1))+1),\"\")","v":""},{"$f":"IFERROR(MID($U169,FIND(CHAR(160),SUBSTITUTE($U169,\"{\",CHAR(160),GB$1)),FIND(CHAR(160),SUBSTITUTE($U169,\"}\",CHAR(160),GB$1))-FIND(CHAR(160),SUBSTITUTE($U169,\"{\",CHAR(160),GB$1))+1),\"\")","v":""},{"$f":"IFERROR(MID($U169,FIND(CHAR(160),SUBSTITUTE($U169,\"{\",CHAR(160),GC$1)),FIND(CHAR(160),SUBSTITUTE($U169,\"}\",CHAR(160),GC$1))-FIND(CHAR(160),SUBSTITUTE($U169,\"{\",CHAR(160),GC$1))+1),\"\")","v":""},{"$f":"IFERROR(MID($U169,FIND(CHAR(160),SUBSTITUTE($U169,\"{\",CHAR(160),GD$1)),FIND(CHAR(160),SUBSTITUTE($U169,\"}\",CHAR(160),GD$1))-FIND(CHAR(160),SUBSTITUTE($U169,\"{\",CHAR(160),GD$1))+1),\"\")","v":""},{"$f":"IFERROR(MID($U169,FIND(CHAR(160),SUBSTITUTE($U169,\"{\",CHAR(160),GE$1)),FIND(CHAR(160),SUBSTITUTE($U169,\"}\",CHAR(160),GE$1))-FIND(CHAR(160),SUBSTITUTE($U169,\"{\",CHAR(160),GE$1))+1),\"\")","v":"{Measure:Quantity}"},{"$f":"IFERROR(MID($U169,FIND(CHAR(160),SUBSTITUTE($U169,\"{\",CHAR(160),GF$1)),FIND(CHAR(160),SUBSTITUTE($U169,\"}\",CHAR(160),GF$1))-FIND(CHAR(160),SUBSTITUTE($U169,\"{\",CHAR(160),GF$1))+1),\"\")","v":"{Package Size}"},{"$f":"IFERROR(MID($V169,FIND(CHAR(160),SUBSTITUTE($V169,\"{\",CHAR(160),GG$1)),FIND(CHAR(160),SUBSTITUTE($V169,\"}\",CHAR(160),GG$1))-FIND(CHAR(160),SUBSTITUTE($V169,\"{\",CHAR(160),GG$1))+1),\"\")","v":"{Factor:SummerCF}"},{"$f":"IFERROR(MID($V169,FIND(CHAR(160),SUBSTITUTE($V169,\"{\",CHAR(160),GH$1)),FIND(CHAR(160),SUBSTITUTE($V169,\"}\",CHAR(160),GH$1))-FIND(CHAR(160),SUBSTITUTE($V169,\"{\",CHAR(160),GH$1))+1),\"\")","v":""},{"$f":"IFERROR(MID($V169,FIND(CHAR(160),SUBSTITUTE($V169,\"{\",CHAR(160),GI$1)),FIND(CHAR(160),SUBSTITUTE($V169,\"}\",CHAR(160),GI$1))-FIND(CHAR(160),SUBSTITUTE($V169,\"{\",CHAR(160),GI$1))+1),\"\")","v":""},{"$f":"IFERROR(MID($V169,FIND(CHAR(160),SUBSTITUTE($V169,\"{\",CHAR(160),GJ$1)),FIND(CHAR(160),SUBSTITUTE($V169,\"}\",CHAR(160),GJ$1))-FIND(CHAR(160),SUBSTITUTE($V169,\"{\",CHAR(160),GJ$1))+1),\"\")","v":""},{"$f":"IFERROR(MID($V169,FIND(CHAR(160),SUBSTITUTE($V169,\"{\",CHAR(160),GK$1)),FIND(CHAR(160),SUBSTITUTE($V169,\"}\",CHAR(160),GK$1))-FIND(CHAR(160),SUBSTITUTE($V169,\"{\",CHAR(160),GK$1))+1),\"\")","v":""},{"$f":"IFERROR(MID($V169,FIND(CHAR(160),SUBSTITUTE($V169,\"{\",CHAR(160),GL$1)),FIND(CHAR(160),SUBSTITUTE($V169,\"}\",CHAR(160),GL$1))-FIND(CHAR(160),SUBSTITUTE($V169,\"{\",CHAR(160),GL$1))+1),\"\")","v":""},{"$f":"IFERROR(MID($V169,FIND(CHAR(160),SUBSTITUTE($V169,\"{\",CHAR(160),GM$1)),FIND(CHAR(160),SUBSTITUTE($V169,\"}\",CHAR(160),GM$1))-FIND(CHAR(160),SUBSTITUTE($V169,\"{\",CHAR(160),GM$1))+1),\"\")","v":""},{"$f":"IFERROR(MID($V169,FIND(CHAR(160),SUBSTITUTE($V169,\"{\",CHAR(160),GN$1)),FIND(CHAR(160),SUBSTITUTE($V169,\"}\",CHAR(160),GN$1))-FIND(CHAR(160),SUBSTITUTE($V169,\"{\",CHAR(160),GN$1))+1),\"\")","v":""},{"$f":"IFERROR(MID($V169,FIND(CHAR(160),SUBSTITUTE($V169,\"{\",CHAR(160),GO$1)),FIND(CHAR(160),SUBSTITUTE($V169,\"}\",CHAR(160),GO$1))-FIND(CHAR(160),SUBSTITUTE($V169,\"{\",CHAR(160),GO$1))+1),\"\")","v":"{Measure:Quantity}"},{"$f":"IFERROR(MID($V169,FIND(CHAR(160),SUBSTITUTE($V169,\"{\",CHAR(160),GP$1)),FIND(CHAR(160),SUBSTITUTE($V169,\"}\",CHAR(160),GP$1))-FIND(CHAR(160),SUBSTITUTE($V169,\"{\",CHAR(160),GP$1))+1),\"\")","v":"{Package Size}"},{"$f":"IFERROR(MID($W169,FIND(CHAR(160),SUBSTITUTE($W169,\"{\",CHAR(160),GQ$1)),FIND(CHAR(160),SUBSTITUTE($W169,\"}\",CHAR(160),GQ$1))-FIND(CHAR(160),SUBSTITUTE($W169,\"{\",CHAR(160),GQ$1))+1),\"\")","v":""},{"$f":"IFERROR(MID($W169,FIND(CHAR(160),SUBSTITUTE($W169,\"{\",CHAR(160),GR$1)),FIND(CHAR(160),SUBSTITUTE($W169,\"}\",CHAR(160),GR$1))-FIND(CHAR(160),SUBSTITUTE($W169,\"{\",CHAR(160),GR$1))+1),\"\")","v":""},{"$f":"IFERROR(MID($W169,FIND(CHAR(160),SUBSTITUTE($W169,\"{\",CHAR(160),GS$1)),FIND(CHAR(160),SUBSTITUTE($W169,\"}\",CHAR(160),GS$1))-FIND(CHAR(160),SUBSTITUTE($W169,\"{\",CHAR(160),GS$1))+1),\"\")","v":""},{"$f":"IFERROR(MID($W169,FIND(CHAR(160),SUBSTITUTE($W169,\"{\",CHAR(160),GT$1)),FIND(CHAR(160),SUBSTITUTE($W169,\"}\",CHAR(160),GT$1))-FIND(CHAR(160),SUBSTITUTE($W169,\"{\",CHAR(160),GT$1))+1),\"\")","v":""},{"$f":"IFERROR(MID($W169,FIND(CHAR(160),SUBSTITUTE($W169,\"{\",CHAR(160),GU$1)),FIND(CHAR(160),SUBSTITUTE($W169,\"}\",CHAR(160),GU$1))-FIND(CHAR(160),SUBSTITUTE($W169,\"{\",CHAR(160),GU$1))+1),\"\")","v":""},{"$f":"IFERROR(MID($W169,FIND(CHAR(160),SUBSTITUTE($W169,\"{\",CHAR(160),GV$1)),FIND(CHAR(160),SUBSTITUTE($W169,\"}\",CHAR(160),GV$1))-FIND(CHAR(160),SUBSTITUTE($W169,\"{\",CHAR(160),GV$1))+1),\"\")","v":""},{"$f":"IFERROR(MID($W169,FIND(CHAR(160),SUBSTITUTE($W169,\"{\",CHAR(160),GW$1)),FIND(CHAR(160),SUBSTITUTE($W169,\"}\",CHAR(160),GW$1))-FIND(CHAR(160),SUBSTITUTE($W169,\"{\",CHAR(160),GW$1))+1),\"\")","v":""},{"$f":"IFERROR(MID($W169,FIND(CHAR(160),SUBSTITUTE($W169,\"{\",CHAR(160),GX$1)),FIND(CHAR(160),SUBSTITUTE($W169,\"}\",CHAR(160),GX$1))-FIND(CHAR(160),SUBSTITUTE($W169,\"{\",CHAR(160),GX$1))+1),\"\")","v":""},{"$f":"IFERROR(MID($W169,FIND(CHAR(160),SUBSTITUTE($W169,\"{\",CHAR(160),GY$1)),FIND(CHAR(160),SUBSTITUTE($W169,\"}\",CHAR(160),GY$1))-FIND(CHAR(160),SUBSTITUTE($W169,\"{\",CHAR(160),GY$1))+1),\"\")","v":"{Measure:Quantity}"},{"$f":"IFERROR(MID($W169,FIND(CHAR(160),SUBSTITUTE($W169,\"{\",CHAR(160),GZ$1)),FIND(CHAR(160),SUBSTITUTE($W169,\"}\",CHAR(160),GZ$1))-FIND(CHAR(160),SUBSTITUTE($W169,\"{\",CHAR(160),GZ$1))+1),\"\")","v":"{Package Size}"},{"$f":"IFERROR(MID($X169,FIND(CHAR(160),SUBSTITUTE($X169,\"{\",CHAR(160),HA$1)),FIND(CHAR(160),SUBSTITUTE($X169,\"}\",CHAR(160),HA$1))-FIND(CHAR(160),SUBSTITUTE($X169,\"{\",CHAR(160),HA$1))+1),\"\")","v":""},{"$f":"IFERROR(MID($X169,FIND(CHAR(160),SUBSTITUTE($X169,\"{\",CHAR(160),HB$1)),FIND(CHAR(160),SUBSTITUTE($X169,\"}\",CHAR(160),HB$1))-FIND(CHAR(160),SUBSTITUTE($X169,\"{\",CHAR(160),HB$1))+1),\"\")","v":""},{"$f":"IFERROR(MID($X169,FIND(CHAR(160),SUBSTITUTE($X169,\"{\",CHAR(160),HC$1)),FIND(CHAR(160),SUBSTITUTE($X169,\"}\",CHAR(160),HC$1))-FIND(CHAR(160),SUBSTITUTE($X169,\"{\",CHAR(160),HC$1))+1),\"\")","v":""},{"$f":"IFERROR(MID($X169,FIND(CHAR(160),SUBSTITUTE($X169,\"{\",CHAR(160),HD$1)),FIND(CHAR(160),SUBSTITUTE($X169,\"}\",CHAR(160),HD$1))-FIND(CHAR(160),SUBSTITUTE($X169,\"{\",CHAR(160),HD$1))+1),\"\")","v":""},{"$f":"IFERROR(MID($X169,FIND(CHAR(160),SUBSTITUTE($X169,\"{\",CHAR(160),HE$1)),FIND(CHAR(160),SUBSTITUTE($X169,\"}\",CHAR(160),HE$1))-FIND(CHAR(160),SUBSTITUTE($X169,\"{\",CHAR(160),HE$1))+1),\"\")","v":""},{"$f":"IFERROR(MID($X169,FIND(CHAR(160),SUBSTITUTE($X169,\"{\",CHAR(160),HF$1)),FIND(CHAR(160),SUBSTITUTE($X169,\"}\",CHAR(160),HF$1))-FIND(CHAR(160),SUBSTITUTE($X169,\"{\",CHAR(160),HF$1))+1),\"\")","v":""},{"$f":"IFERROR(MID($X169,FIND(CHAR(160),SUBSTITUTE($X169,\"{\",CHAR(160),HG$1)),FIND(CHAR(160),SUBSTITUTE($X169,\"}\",CHAR(160),HG$1))-FIND(CHAR(160),SUBSTITUTE($X169,\"{\",CHAR(160),HG$1))+1),\"\")","v":""},{"$f":"IFERROR(MID($X169,FIND(CHAR(160),SUBSTITUTE($X169,\"{\",CHAR(160),HH$1)),FIND(CHAR(160),SUBSTITUTE($X169,\"}\",CHAR(160),HH$1))-FIND(CHAR(160),SUBSTITUTE($X169,\"{\",CHAR(160),HH$1))+1),\"\")","v":""},{"$f":"IFERROR(MID($X169,FIND(CHAR(160),SUBSTITUTE($X169,\"{\",CHAR(160),HI$1)),FIND(CHAR(160),SUBSTITUTE($X169,\"}\",CHAR(160),HI$1))-FIND(CHAR(160),SUBSTITUTE($X169,\"{\",CHAR(160),HI$1))+1),\"\")","v":"{Measure:Quantity}"},{"$f":"IFERROR(MID($X169,FIND(CHAR(160),SUBSTITUTE($X169,\"{\",CHAR(160),HJ$1)),FIND(CHAR(160),SUBSTITUTE($X169,\"}\",CHAR(160),HJ$1))-FIND(CHAR(160),SUBSTITUTE($X169,\"{\",CHAR(160),HJ$1))+1),\"\")","v":"{Package Size}"},{"$f":"IFERROR(MID($Y169,FIND(CHAR(160),SUBSTITUTE($Y169,\"{\",CHAR(160),HK$1)),FIND(CHAR(160),SUBSTITUTE($Y169,\"}\",CHAR(160),HK$1))-FIND(CHAR(160),SUBSTITUTE($Y169,\"{\",CHAR(160),HK$1))+1),\"\")","v":""},{"$f":"IFERROR(MID($Y169,FIND(CHAR(160),SUBSTITUTE($Y169,\"{\",CHAR(160),HL$1)),FIND(CHAR(160),SUBSTITUTE($Y169,\"}\",CHAR(160),HL$1))-FIND(CHAR(160),SUBSTITUTE($Y169,\"{\",CHAR(160),HL$1))+1),\"\")","v":""},{"$f":"IFERROR(MID($Y169,FIND(CHAR(160),SUBSTITUTE($Y169,\"{\",CHAR(160),HM$1)),FIND(CHAR(160),SUBSTITUTE($Y169,\"}\",CHAR(160),HM$1))-FIND(CHAR(160),SUBSTITUTE($Y169,\"{\",CHAR(160),HM$1))+1),\"\")","v":""},{"$f":"IFERROR(MID($Y169,FIND(CHAR(160),SUBSTITUTE($Y169,\"{\",CHAR(160),HN$1)),FIND(CHAR(160),SUBSTITUTE($Y169,\"}\",CHAR(160),HN$1))-FIND(CHAR(160),SUBSTITUTE($Y169,\"{\",CHAR(160),HN$1))+1),\"\")","v":""},{"$f":"IFERROR(MID($Y169,FIND(CHAR(160),SUBSTITUTE($Y169,\"{\",CHAR(160),HO$1)),FIND(CHAR(160),SUBSTITUTE($Y169,\"}\",CHAR(160),HO$1))-FIND(CHAR(160),SUBSTITUTE($Y169,\"{\",CHAR(160),HO$1))+1),\"\")","v":""},{"$f":"IFERROR(MID($Y169,FIND(CHAR(160),SUBSTITUTE($Y169,\"{\",CHAR(160),HP$1)),FIND(CHAR(160),SUBSTITUTE($Y169,\"}\",CHAR(160),HP$1))-FIND(CHAR(160),SUBSTITUTE($Y169,\"{\",CHAR(160),HP$1))+1),\"\")","v":""},{"$f":"IFERROR(MID($Y169,FIND(CHAR(160),SUBSTITUTE($Y169,\"{\",CHAR(160),HQ$1)),FIND(CHAR(160),SUBSTITUTE($Y169,\"}\",CHAR(160),HQ$1))-FIND(CHAR(160),SUBSTITUTE($Y169,\"{\",CHAR(160),HQ$1))+1),\"\")","v":""},{"$f":"IFERROR(MID($Y169,FIND(CHAR(160),SUBSTITUTE($Y169,\"{\",CHAR(160),HR$1)),FIND(CHAR(160),SUBSTITUTE($Y169,\"}\",CHAR(160),HR$1))-FIND(CHAR(160),SUBSTITUTE($Y169,\"{\",CHAR(160),HR$1))+1),\"\")","v":""},{"$f":"IFERROR(MID($Y169,FIND(CHAR(160),SUBSTITUTE($Y169,\"{\",CHAR(160),HS$1)),FIND(CHAR(160),SUBSTITUTE($Y169,\"}\",CHAR(160),HS$1))-FIND(CHAR(160),SUBSTITUTE($Y169,\"{\",CHAR(160),HS$1))+1),\"\")","v":"{Measure:Quantity}"},{"$f":"IFERROR(MID($Y169,FIND(CHAR(160),SUBSTITUTE($Y169,\"{\",CHAR(160),HT$1)),FIND(CHAR(160),SUBSTITUTE($Y169,\"}\",CHAR(160),HT$1))-FIND(CHAR(160),SUBSTITUTE($Y169,\"{\",CHAR(160),HT$1))+1),\"\")","v":"{Package Size}"},{"$f":"IFERROR(MID($Z169,FIND(CHAR(160),SUBSTITUTE($Z169,\"{\",CHAR(160),HU$1)),FIND(CHAR(160),SUBSTITUTE($Z169,\"}\",CHAR(160),HU$1))-FIND(CHAR(160),SUBSTITUTE($Z169,\"{\",CHAR(160),HU$1))+1),\"\")","v":""},{"$f":"IFERROR(MID($Z169,FIND(CHAR(160),SUBSTITUTE($Z169,\"{\",CHAR(160),HV$1)),FIND(CHAR(160),SUBSTITUTE($Z169,\"}\",CHAR(160),HV$1))-FIND(CHAR(160),SUBSTITUTE($Z169,\"{\",CHAR(160),HV$1))+1),\"\")","v":""},{"$f":"IFERROR(MID($Z169,FIND(CHAR(160),SUBSTITUTE($Z169,\"{\",CHAR(160),HW$1)),FIND(CHAR(160),SUBSTITUTE($Z169,\"}\",CHAR(160),HW$1))-FIND(CHAR(160),SUBSTITUTE($Z169,\"{\",CHAR(160),HW$1))+1),\"\")","v":""},{"$f":"IFERROR(MID($Z169,FIND(CHAR(160),SUBSTITUTE($Z169,\"{\",CHAR(160),HX$1)),FIND(CHAR(160),SUBSTITUTE($Z169,\"}\",CHAR(160),HX$1))-FIND(CHAR(160),SUBSTITUTE($Z169,\"{\",CHAR(160),HX$1))+1),\"\")","v":""},{"$f":"IFERROR(MID($Z169,FIND(CHAR(160),SUBSTITUTE($Z169,\"{\",CHAR(160),HY$1)),FIND(CHAR(160),SUBSTITUTE($Z169,\"}\",CHAR(160),HY$1))-FIND(CHAR(160),SUBSTITUTE($Z169,\"{\",CHAR(160),HY$1))+1),\"\")","v":""},{"$f":"IFERROR(MID($Z169,FIND(CHAR(160),SUBSTITUTE($Z169,\"{\",CHAR(160),HZ$1)),FIND(CHAR(160),SUBSTITUTE($Z169,\"}\",CHAR(160),HZ$1))-FIND(CHAR(160),SUBSTITUTE($Z169,\"{\",CHAR(160),HZ$1))+1),\"\")","v":""},{"$f":"IFERROR(MID($Z169,FIND(CHAR(160),SUBSTITUTE($Z169,\"{\",CHAR(160),IA$1)),FIND(CHAR(160),SUBSTITUTE($Z169,\"}\",CHAR(160),IA$1))-FIND(CHAR(160),SUBSTITUTE($Z169,\"{\",CHAR(160),IA$1))+1),\"\")","v":""},{"$f":"IFERROR(MID($Z169,FIND(CHAR(160),SUBSTITUTE($Z169,\"{\",CHAR(160),IB$1)),FIND(CHAR(160),SUBSTITUTE($Z169,\"}\",CHAR(160),IB$1))-FIND(CHAR(160),SUBSTITUTE($Z169,\"{\",CHAR(160),IB$1))+1),\"\")","v":""},{"$f":"IFERROR(MID($Z169,FIND(CHAR(160),SUBSTITUTE($Z169,\"{\",CHAR(160),IC$1)),FIND(CHAR(160),SUBSTITUTE($Z169,\"}\",CHAR(160),IC$1))-FIND(CHAR(160),SUBSTITUTE($Z169,\"{\",CHAR(160),IC$1))+1),\"\")","v":"{Measure:Quantity}"},{"$f":"IFERROR(MID($Z169,FIND(CHAR(160),SUBSTITUTE($Z169,\"{\",CHAR(160),ID$1)),FIND(CHAR(160),SUBSTITUTE($Z169,\"}\",CHAR(160),ID$1))-FIND(CHAR(160),SUBSTITUTE($Z169,\"{\",CHAR(160),ID$1))+1),\"\")","v":"{Package Size}"},{"$f":"IFERROR(MID($AA169,FIND(CHAR(160),SUBSTITUTE($AA169,\"{\",CHAR(160),IE$1)),FIND(CHAR(160),SUBSTITUTE($AA169,\"}\",CHAR(160),IE$1))-FIND(CHAR(160),SUBSTITUTE($AA169,\"{\",CHAR(160),IE$1))+1),\"\")","v":""},{"$f":"IFERROR(MID($AA169,FIND(CHAR(160),SUBSTITUTE($AA169,\"{\",CHAR(160),IF$1)),FIND(CHAR(160),SUBSTITUTE($AA169,\"}\",CHAR(160),IF$1))-FIND(CHAR(160),SUBSTITUTE($AA169,\"{\",CHAR(160),IF$1))+1),\"\")","v":""},{"$f":"IFERROR(MID($AA169,FIND(CHAR(160),SUBSTITUTE($AA169,\"{\",CHAR(160),IG$1)),FIND(CHAR(160),SUBSTITUTE($AA169,\"}\",CHAR(160),IG$1))-FIND(CHAR(160),SUBSTITUTE($AA169,\"{\",CHAR(160),IG$1))+1),\"\")","v":""},{"$f":"IFERROR(MID($AA169,FIND(CHAR(160),SUBSTITUTE($AA169,\"{\",CHAR(160),IH$1)),FIND(CHAR(160),SUBSTITUTE($AA169,\"}\",CHAR(160),IH$1))-FIND(CHAR(160),SUBSTITUTE($AA169,\"{\",CHAR(160),IH$1))+1),\"\")","v":""},{"$f":"IFERROR(MID($AA169,FIND(CHAR(160),SUBSTITUTE($AA169,\"{\",CHAR(160),II$1)),FIND(CHAR(160),SUBSTITUTE($AA169,\"}\",CHAR(160),II$1))-FIND(CHAR(160),SUBSTITUTE($AA169,\"{\",CHAR(160),II$1))+1),\"\")","v":""},{"$f":"IFERROR(MID($AA169,FIND(CHAR(160),SUBSTITUTE($AA169,\"{\",CHAR(160),IJ$1)),FIND(CHAR(160),SUBSTITUTE($AA169,\"}\",CHAR(160),IJ$1))-FIND(CHAR(160),SUBSTITUTE($AA169,\"{\",CHAR(160),IJ$1))+1),\"\")","v":""},{"$f":"IFERROR(MID($AA169,FIND(CHAR(160),SUBSTITUTE($AA169,\"{\",CHAR(160),IK$1)),FIND(CHAR(160),SUBSTITUTE($AA169,\"}\",CHAR(160),IK$1))-FIND(CHAR(160),SUBSTITUTE($AA169,\"{\",CHAR(160),IK$1))+1),\"\")","v":""},{"$f":"IFERROR(MID($AA169,FIND(CHAR(160),SUBSTITUTE($AA169,\"{\",CHAR(160),IL$1)),FIND(CHAR(160),SUBSTITUTE($AA169,\"}\",CHAR(160),IL$1))-FIND(CHAR(160),SUBSTITUTE($AA169,\"{\",CHAR(160),IL$1))+1),\"\")","v":""},{"$f":"IFERROR(MID($AA169,FIND(CHAR(160),SUBSTITUTE($AA169,\"{\",CHAR(160),IM$1)),FIND(CHAR(160),SUBSTITUTE($AA169,\"}\",CHAR(160),IM$1))-FIND(CHAR(160),SUBSTITUTE($AA169,\"{\",CHAR(160),IM$1))+1),\"\")","v":"{Measure:Quantity}"},{"$f":"IFERROR(MID($AA169,FIND(CHAR(160),SUBSTITUTE($AA169,\"{\",CHAR(160),IN$1)),FIND(CHAR(160),SUBSTITUTE($AA169,\"}\",CHAR(160),IN$1))-FIND(CHAR(160),SUBSTITUTE($AA169,\"{\",CHAR(160),IN$1))+1),\"\")","v":"{Package Size}"},{"$f":"IFERROR(MID($AB169,FIND(CHAR(160),SUBSTITUTE($AB169,\"{\",CHAR(160),IO$1)),FIND(CHAR(160),SUBSTITUTE($AB169,\"}\",CHAR(160),IO$1))-FIND(CHAR(160),SUBSTITUTE($AB169,\"{\",CHAR(160),IO$1))+1),\"\")","v":""},{"$f":"IFERROR(MID($AB169,FIND(CHAR(160),SUBSTITUTE($AB169,\"{\",CHAR(160),IP$1)),FIND(CHAR(160),SUBSTITUTE($AB169,\"}\",CHAR(160),IP$1))-FIND(CHAR(160),SUBSTITUTE($AB169,\"{\",CHAR(160),IP$1))+1),\"\")","v":""},{"$f":"IFERROR(MID($AB169,FIND(CHAR(160),SUBSTITUTE($AB169,\"{\",CHAR(160),IQ$1)),FIND(CHAR(160),SUBSTITUTE($AB169,\"}\",CHAR(160),IQ$1))-FIND(CHAR(160),SUBSTITUTE($AB169,\"{\",CHAR(160),IQ$1))+1),\"\")","v":""},{"$f":"IFERROR(MID($AB169,FIND(CHAR(160),SUBSTITUTE($AB169,\"{\",CHAR(160),IR$1)),FIND(CHAR(160),SUBSTITUTE($AB169,\"}\",CHAR(160),IR$1))-FIND(CHAR(160),SUBSTITUTE($AB169,\"{\",CHAR(160),IR$1))+1),\"\")","v":""},{"$f":"IFERROR(MID($AB169,FIND(CHAR(160),SUBSTITUTE($AB169,\"{\",CHAR(160),IS$1)),FIND(CHAR(160),SUBSTITUTE($AB169,\"}\",CHAR(160),IS$1))-FIND(CHAR(160),SUBSTITUTE($AB169,\"{\",CHAR(160),IS$1))+1),\"\")","v":""},{"$f":"IFERROR(MID($AB169,FIND(CHAR(160),SUBSTITUTE($AB169,\"{\",CHAR(160),IT$1)),FIND(CHAR(160),SUBSTITUTE($AB169,\"}\",CHAR(160),IT$1))-FIND(CHAR(160),SUBSTITUTE($AB169,\"{\",CHAR(160),IT$1))+1),\"\")","v":""},{"$f":"IFERROR(MID($AB169,FIND(CHAR(160),SUBSTITUTE($AB169,\"{\",CHAR(160),IU$1)),FIND(CHAR(160),SUBSTITUTE($AB169,\"}\",CHAR(160),IU$1))-FIND(CHAR(160),SUBSTITUTE($AB169,\"{\",CHAR(160),IU$1))+1),\"\")","v":""},{"$f":"IFERROR(MID($AB169,FIND(CHAR(160),SUBSTITUTE($AB169,\"{\",CHAR(160),IV$1)),FIND(CHAR(160),SUBSTITUTE($AB169,\"}\",CHAR(160),IV$1))-FIND(CHAR(160),SUBSTITUTE($AB169,\"{\",CHAR(160),IV$1))+1),\"\")","v":""},{"$f":"IFERROR(MID($AB169,FIND(CHAR(160),SUBSTITUTE($AB169,\"{\",CHAR(160),IW$1)),FIND(CHAR(160),SUBSTITUTE($AB169,\"}\",CHAR(160),IW$1))-FIND(CHAR(160),SUBSTITUTE($AB169,\"{\",CHAR(160),IW$1))+1),\"\")","v":""},{"$f":"IFERROR(MID($AB169,FIND(CHAR(160),SUBSTITUTE($AB169,\"{\",CHAR(160),IX$1)),FIND(CHAR(160),SUBSTITUTE($AB169,\"}\",CHAR(160),IX$1))-FIND(CHAR(160),SUBSTITUTE($AB169,\"{\",CHAR(160),IX$1))+1),\"\")","v":""},null,{"$f":"10-COUNTIF(DU169:ED169,\"\")","v":3}]
["Distributor Lighting","LED Specialty Bulb Candelabra Long Life","LEDSPCCDDL","2021-07-01","2022-06-30","Calculated","{Measure:Quantity}*{Package Size}*6.22",0,"Calculated","{Measure:Quantity}*{Rebate per Package}",0,"2021-07-01","2022-06-30","Calculated","{Measure:Quantity}*{Package Size}*74",null,null,"{Measure:Quantity}*{Package Size}*1.0747*0.043",null,null,"{Measure:Quantity}*{Package Size}*{Factor:WinterCF}*0.043","{Measure:Quantity}*{Package Size}*{Factor:SummerCF}*1.0747*0.043","{Measure:Quantity}*{Package Size}*10*-0.01","{Measure:Quantity}*{Package Size}*-0.006","{Measure:Quantity}*{Package Size}*-0.049","{Measure:Quantity}*{Package Size}*-0.002","{Measure:Quantity}*{Package Size}*-0.012",null,"2021-07-01","2022-06-30",4,0.254,0.309,0.42299999999999999,0.249,0.21,0.11799999999999999,0.99,1,1,0.51,0,null,{"$f":"DU170","v":"{Measure:Quantity}"},1,{"$f":"DV170","v":"{Package Size}"},1,{"$f":"DW170","v":"{Rebate per Package}"},{"$f":"CW170*CO170","v":0},{"$f":"DX170","v":""},null,{"$f":"DY170","v":""},null,{"$f":"DZ170","v":""},null,{"$f":"EA170","v":""},null,{"$f":"EB170","v":""},null,{"$f":"EC170","v":""},null,{"$f":"ED170","v":""},null,{"$f":"AS170*AU170*74","v":74},0,0,{"$f":"AS170*AU170*1.0747*0.043","v":4.6212099999999999E-2},0,0,{"$f":"AS170*AU170*AF170*0.043","v":1.0921999999999999E-2},{"$f":"AS170*AU170*AG170*1.0747*0.043","v":1.4279538899999999E-2},{"$f":"AS170*AU170*10*-0.01","v":-0.1},{"$f":"AS170*AU170*-0.006","v":-6.0000000000000001E-3},{"$f":"AS170*AU170*-0.049","v":-4.9000000000000002E-2},{"$f":"AS170*AU170*-0.002","v":-2E-3},{"$f":"AS170*AU170*-0.012","v":-1.2E-2},0,null,"Res","Default DR",{"$f":"Benefits(BL170,BR170,BS170,BT170,BU170,BV170,BW170,BX170,BY170,BZ170,AE170,AH170,AI170,AJ170,AK170,AL170,AM170,AN170,AO170,AP170,CA170,CB170)","v":33.07074389832475},20.677952350574841,-0.66492643670703178,-6.2259865512240573,-0.29087076179619353,-1.0616665213461709,-0.85459387750315163,0,0,{"$f":"SUMPRODUCT(CC170:CK170,--(CC170:CK170>0))","v":53.748696248899591},{"$f":"-SUMPRODUCT(CC170:CK170,--(CC170:CK170<0))","v":9.098044148576605},null,{"$f":"AS170*AU170*6.22","v":6.22},null,null,{"$f":"CM170+CO170","v":15.318044148576604},{"$f":"IF(NetOrGross=\"Net\",(1-AO170+AP170),1)","v":1},{"$f":"(SUMPRODUCT(CC170:CJ170,--(CC170:CJ170>0))+CN170)*CS170/((-SUMPRODUCT(CC170:CJ170,--(CC170:CJ170<0))+MAX(CO170,CV170)+CP170+CQ170)*CS170+IF(FRIncentives=\"Yes\",CV170*(1-CS170),0))","v":3.5088485009944348},1,{"$f":"AS170*AW170","v":0},{"$f":"CW169","v":0},"Electric","y",null,{"$f":"IF(F170=\"Manual Entry\",\"Manual\",IF(G170=\"\",0,\"X=\"&SUBSTITUTE(SUBSTITUTE(SUBSTITUTE(SUBSTITUTE(SUBSTITUTE(SUBSTITUTE(SUBSTITUTE(SUBSTITUTE(SUBSTITUTE(SUBSTITUTE(SUBSTITUTE(SUBSTITUTE(G170,$ED170,$ED$2&ROW($ED170)),$EC170,$EC$2&ROW($EC170)),$EB170,$EB$2&ROW($EB170)),$EA170,$EA$2&ROW($EA170)),$DZ170,$DZ$2&ROW($DZ170)),$DY170,$DY$2&ROW($DY170)),$DX170,$DX$2&ROW($DX170)),$DW170,$DW$2&ROW($DW170)),$DV170,$DV$2&ROW($DV170)),$DU170,$DU$2&ROW($DU170)),$DT170,$DT$2&ROW($DT170)),$DS170,$DS$2&ROW($DS170))))","v":"X=AS170*AU170*6.22"},{"$f":"IF(I170=\"Manual Entry\",\"Manual\",IF(J170=\"\",0,\"X=\"&SUBSTITUTE(SUBSTITUTE(SUBSTITUTE(SUBSTITUTE(SUBSTITUTE(SUBSTITUTE(SUBSTITUTE(SUBSTITUTE(SUBSTITUTE(SUBSTITUTE(SUBSTITUTE(SUBSTITUTE(J170,$ED170,$ED$2&ROW($ED170)),$EC170,$EC$2&ROW($EC170)),$EB170,$EB$2&ROW($EB170)),$EA170,$EA$2&ROW($EA170)),$DZ170,$DZ$2&ROW($DZ170)),$DY170,$DY$2&ROW($DY170)),$DX170,$DX$2&ROW($DX170)),$DW170,$DW$2&ROW($DW170)),$DV170,$DV$2&ROW($DV170)),$DU170,$DU$2&ROW($DU170)),$DT170,$DT$2&ROW($DT170)),$DS170,$DS$2&ROW($DS170))))","v":"X=AS170*AW170"},{"$f":"IF(O170=\"\",0,\"X=\"&SUBSTITUTE(SUBSTITUTE(SUBSTITUTE(SUBSTITUTE(SUBSTITUTE(SUBSTITUTE(SUBSTITUTE(SUBSTITUTE(SUBSTITUTE(SUBSTITUTE(SUBSTITUTE(SUBSTITUTE(O170,$ED170,$ED$2&ROW($ED170)),$EC170,$EC$2&ROW($EC170)),$EB170,$EB$2&ROW($EB170)),$EA170,$EA$2&ROW($EA170)),$DZ170,$DZ$2&ROW($DZ170)),$DY170,$DY$2&ROW($DY170)),$DX170,$DX$2&ROW($DX170)),$DW170,$DW$2&ROW($DW170)),$DV170,$DV$2&ROW($DV170)),$DU170,$DU$2&ROW($DU170)),$DT170,$DT$2&ROW($DT170)),$DS170,$DS$2&ROW($DS170)))","v":"X=AS170*AU170*74"},{"$f":"IF(P170=\"\",0,\"X=\"&SUBSTITUTE(SUBSTITUTE(SUBSTITUTE(SUBSTITUTE(SUBSTITUTE(SUBSTITUTE(SUBSTITUTE(SUBSTITUTE(SUBSTITUTE(SUBSTITUTE(SUBSTITUTE(SUBSTITUTE(P170,$ED170,$ED$2&ROW($ED170)),$EC170,$EC$2&ROW($EC170)),$EB170,$EB$2&ROW($EB170)),$EA170,$EA$2&ROW($EA170)),$DZ170,$DZ$2&ROW($DZ170)),$DY170,$DY$2&ROW($DY170)),$DX170,$DX$2&ROW($DX170)),$DW170,$DW$2&ROW($DW170)),$DV170,$DV$2&ROW($DV170)),$DU170,$DU$2&ROW($DU170)),$DT170,$DT$2&ROW($DT170)),$DS170,$DS$2&ROW($DS170)))","v":0},{"$f":"IF(Q170=\"\",0,\"X=\"&SUBSTITUTE(SUBSTITUTE(SUBSTITUTE(SUBSTITUTE(SUBSTITUTE(SUBSTITUTE(SUBSTITUTE(SUBSTITUTE(SUBSTITUTE(SUBSTITUTE(SUBSTITUTE(SUBSTITUTE(Q170,$ED170,$ED$2&ROW($ED170)),$EC170,$EC$2&ROW($EC170)),$EB170,$EB$2&ROW($EB170)),$EA170,$EA$2&ROW($EA170)),$DZ170,$DZ$2&ROW($DZ170)),$DY170,$DY$2&ROW($DY170)),$DX170,$DX$2&ROW($DX170)),$DW170,$DW$2&ROW($DW170)),$DV170,$DV$2&ROW($DV170)),$DU170,$DU$2&ROW($DU170)),$DT170,$DT$2&ROW($DT170)),$DS170,$DS$2&ROW($DS170)))","v":0},{"$f":"IF(R170=\"\",0,\"X=\"&SUBSTITUTE(SUBSTITUTE(SUBSTITUTE(SUBSTITUTE(SUBSTITUTE(SUBSTITUTE(SUBSTITUTE(SUBSTITUTE(SUBSTITUTE(SUBSTITUTE(SUBSTITUTE(SUBSTITUTE(R170,$ED170,$ED$2&ROW($ED170)),$EC170,$EC$2&ROW($EC170)),$EB170,$EB$2&ROW($EB170)),$EA170,$EA$2&ROW($EA170)),$DZ170,$DZ$2&ROW($DZ170)),$DY170,$DY$2&ROW($DY170)),$DX170,$DX$2&ROW($DX170)),$DW170,$DW$2&ROW($DW170)),$DV170,$DV$2&ROW($DV170)),$DU170,$DU$2&ROW($DU170)),$DT170,$DT$2&ROW($DT170)),$DS170,$DS$2&ROW($DS170)))","v":"X=AS170*AU170*1.0747*0.043"},{"$f":"IF(S170=\"\",0,\"X=\"&SUBSTITUTE(SUBSTITUTE(SUBSTITUTE(SUBSTITUTE(SUBSTITUTE(SUBSTITUTE(SUBSTITUTE(SUBSTITUTE(SUBSTITUTE(SUBSTITUTE(SUBSTITUTE(SUBSTITUTE(S170,$ED170,$ED$2&ROW($ED170)),$EC170,$EC$2&ROW($EC170)),$EB170,$EB$2&ROW($EB170)),$EA170,$EA$2&ROW($EA170)),$DZ170,$DZ$2&ROW($DZ170)),$DY170,$DY$2&ROW($DY170)),$DX170,$DX$2&ROW($DX170)),$DW170,$DW$2&ROW($DW170)),$DV170,$DV$2&ROW($DV170)),$DU170,$DU$2&ROW($DU170)),$DT170,$DT$2&ROW($DT170)),$DS170,$DS$2&ROW($DS170)))","v":0},{"$f":"IF(T170=\"\",0,\"X=\"&SUBSTITUTE(SUBSTITUTE(SUBSTITUTE(SUBSTITUTE(SUBSTITUTE(SUBSTITUTE(SUBSTITUTE(SUBSTITUTE(SUBSTITUTE(SUBSTITUTE(SUBSTITUTE(SUBSTITUTE(T170,$ED170,$ED$2&ROW($ED170)),$EC170,$EC$2&ROW($EC170)),$EB170,$EB$2&ROW($EB170)),$EA170,$EA$2&ROW($EA170)),$DZ170,$DZ$2&ROW($DZ170)),$DY170,$DY$2&ROW($DY170)),$DX170,$DX$2&ROW($DX170)),$DW170,$DW$2&ROW($DW170)),$DV170,$DV$2&ROW($DV170)),$DU170,$DU$2&ROW($DU170)),$DT170,$DT$2&ROW($DT170)),$DS170,$DS$2&ROW($DS170)))","v":0},{"$f":"IF(U170=\"\",0,\"X=\"&SUBSTITUTE(SUBSTITUTE(SUBSTITUTE(SUBSTITUTE(SUBSTITUTE(SUBSTITUTE(SUBSTITUTE(SUBSTITUTE(SUBSTITUTE(SUBSTITUTE(SUBSTITUTE(SUBSTITUTE(U170,$ED170,$ED$2&ROW($ED170)),$EC170,$EC$2&ROW($EC170)),$EB170,$EB$2&ROW($EB170)),$EA170,$EA$2&ROW($EA170)),$DZ170,$DZ$2&ROW($DZ170)),$DY170,$DY$2&ROW($DY170)),$DX170,$DX$2&ROW($DX170)),$DW170,$DW$2&ROW($DW170)),$DV170,$DV$2&ROW($DV170)),$DU170,$DU$2&ROW($DU170)),$DT170,$DT$2&ROW($DT170)),$DS170,$DS$2&ROW($DS170)))","v":"X=AS170*AU170*AF170*0.043"},{"$f":"IF(V170=\"\",0,\"X=\"&SUBSTITUTE(SUBSTITUTE(SUBSTITUTE(SUBSTITUTE(SUBSTITUTE(SUBSTITUTE(SUBSTITUTE(SUBSTITUTE(SUBSTITUTE(SUBSTITUTE(SUBSTITUTE(SUBSTITUTE(V170,$ED170,$ED$2&ROW($ED170)),$EC170,$EC$2&ROW($EC170)),$EB170,$EB$2&ROW($EB170)),$EA170,$EA$2&ROW($EA170)),$DZ170,$DZ$2&ROW($DZ170)),$DY170,$DY$2&ROW($DY170)),$DX170,$DX$2&ROW($DX170)),$DW170,$DW$2&ROW($DW170)),$DV170,$DV$2&ROW($DV170)),$DU170,$DU$2&ROW($DU170)),$DT170,$DT$2&ROW($DT170)),$DS170,$DS$2&ROW($DS170)))","v":"X=AS170*AU170*AG170*1.0747*0.043"},{"$f":"IF(W170=\"\",0,\"X=\"&SUBSTITUTE(SUBSTITUTE(SUBSTITUTE(SUBSTITUTE(SUBSTITUTE(SUBSTITUTE(SUBSTITUTE(SUBSTITUTE(SUBSTITUTE(SUBSTITUTE(SUBSTITUTE(SUBSTITUTE(W170,$ED170,$ED$2&ROW($ED170)),$EC170,$EC$2&ROW($EC170)),$EB170,$EB$2&ROW($EB170)),$EA170,$EA$2&ROW($EA170)),$DZ170,$DZ$2&ROW($DZ170)),$DY170,$DY$2&ROW($DY170)),$DX170,$DX$2&ROW($DX170)),$DW170,$DW$2&ROW($DW170)),$DV170,$DV$2&ROW($DV170)),$DU170,$DU$2&ROW($DU170)),$DT170,$DT$2&ROW($DT170)),$DS170,$DS$2&ROW($DS170)))","v":"X=AS170*AU170*10*-0.01"},{"$f":"IF(X170=\"\",0,\"X=\"&SUBSTITUTE(SUBSTITUTE(SUBSTITUTE(SUBSTITUTE(SUBSTITUTE(SUBSTITUTE(SUBSTITUTE(SUBSTITUTE(SUBSTITUTE(SUBSTITUTE(SUBSTITUTE(SUBSTITUTE(X170,$ED170,$ED$2&ROW($ED170)),$EC170,$EC$2&ROW($EC170)),$EB170,$EB$2&ROW($EB170)),$EA170,$EA$2&ROW($EA170)),$DZ170,$DZ$2&ROW($DZ170)),$DY170,$DY$2&ROW($DY170)),$DX170,$DX$2&ROW($DX170)),$DW170,$DW$2&ROW($DW170)),$DV170,$DV$2&ROW($DV170)),$DU170,$DU$2&ROW($DU170)),$DT170,$DT$2&ROW($DT170)),$DS170,$DS$2&ROW($DS170)))","v":"X=AS170*AU170*-0.006"},{"$f":"IF(Y170=\"\",0,\"X=\"&SUBSTITUTE(SUBSTITUTE(SUBSTITUTE(SUBSTITUTE(SUBSTITUTE(SUBSTITUTE(SUBSTITUTE(SUBSTITUTE(SUBSTITUTE(SUBSTITUTE(SUBSTITUTE(SUBSTITUTE(Y170,$ED170,$ED$2&ROW($ED170)),$EC170,$EC$2&ROW($EC170)),$EB170,$EB$2&ROW($EB170)),$EA170,$EA$2&ROW($EA170)),$DZ170,$DZ$2&ROW($DZ170)),$DY170,$DY$2&ROW($DY170)),$DX170,$DX$2&ROW($DX170)),$DW170,$DW$2&ROW($DW170)),$DV170,$DV$2&ROW($DV170)),$DU170,$DU$2&ROW($DU170)),$DT170,$DT$2&ROW($DT170)),$DS170,$DS$2&ROW($DS170)))","v":"X=AS170*AU170*-0.049"},{"$f":"IF(Z170=\"\",0,\"X=\"&SUBSTITUTE(SUBSTITUTE(SUBSTITUTE(SUBSTITUTE(SUBSTITUTE(SUBSTITUTE(SUBSTITUTE(SUBSTITUTE(SUBSTITUTE(SUBSTITUTE(SUBSTITUTE(SUBSTITUTE(Z170,$ED170,$ED$2&ROW($ED170)),$EC170,$EC$2&ROW($EC170)),$EB170,$EB$2&ROW($EB170)),$EA170,$EA$2&ROW($EA170)),$DZ170,$DZ$2&ROW($DZ170)),$DY170,$DY$2&ROW($DY170)),$DX170,$DX$2&ROW($DX170)),$DW170,$DW$2&ROW($DW170)),$DV170,$DV$2&ROW($DV170)),$DU170,$DU$2&ROW($DU170)),$DT170,$DT$2&ROW($DT170)),$DS170,$DS$2&ROW($DS170)))","v":"X=AS170*AU170*-0.002"},{"$f":"IF(AA170=\"\",0,\"X=\"&SUBSTITUTE(SUBSTITUTE(SUBSTITUTE(SUBSTITUTE(SUBSTITUTE(SUBSTITUTE(SUBSTITUTE(SUBSTITUTE(SUBSTITUTE(SUBSTITUTE(SUBSTITUTE(SUBSTITUTE(AA170,$ED170,$ED$2&ROW($ED170)),$EC170,$EC$2&ROW($EC170)),$EB170,$EB$2&ROW($EB170)),$EA170,$EA$2&ROW($EA170)),$DZ170,$DZ$2&ROW($DZ170)),$DY170,$DY$2&ROW($DY170)),$DX170,$DX$2&ROW($DX170)),$DW170,$DW$2&ROW($DW170)),$DV170,$DV$2&ROW($DV170)),$DU170,$DU$2&ROW($DU170)),$DT170,$DT$2&ROW($DT170)),$DS170,$DS$2&ROW($DS170)))","v":"X=AS170*AU170*-0.012"},{"$f":"IF(AB170=\"\",0,\"X=\"&SUBSTITUTE(SUBSTITUTE(SUBSTITUTE(SUBSTITUTE(SUBSTITUTE(SUBSTITUTE(SUBSTITUTE(SUBSTITUTE(SUBSTITUTE(SUBSTITUTE(SUBSTITUTE(SUBSTITUTE(AB170,$ED170,$ED$2&ROW($ED170)),$EC170,$EC$2&ROW($EC170)),$EB170,$EB$2&ROW($EB170)),$EA170,$EA$2&ROW($EA170)),$DZ170,$DZ$2&ROW($DZ170)),$DY170,$DY$2&ROW($DY170)),$DX170,$DX$2&ROW($DX170)),$DW170,$DW$2&ROW($DW170)),$DV170,$DV$2&ROW($DV170)),$DU170,$DU$2&ROW($DU170)),$DT170,$DT$2&ROW($DT170)),$DS170,$DS$2&ROW($DS170)))","v":0},null,null,"{Factor:WinterCF}","{Factor:SummerCF}",{"$f":"IFERROR(INDEX($EG170:$IV170,MATCH(0,COUNTIF($DR170:DT170,$EG170:$IV170),0)),\"\")","v":"{Measure:Quantity}"},{"$f":"IFERROR(INDEX($EG170:$IV170,MATCH(0,COUNTIF($DR170:DU170,$EG170:$IV170),0)),\"\")","v":"{Package Size}"},{"$f":"IFERROR(INDEX($EG170:$IV170,MATCH(0,COUNTIF($DR170:DV170,$EG170:$IV170),0)),\"\")","v":"{Rebate per Package}"},{"$f":"IFERROR(INDEX($EG170:$IV170,MATCH(0,COUNTIF($DR170:DW170,$EG170:$IV170),0)),\"\")","v":""},{"$f":"IFERROR(INDEX($EG170:$IV170,MATCH(0,COUNTIF($DR170:DX170,$EG170:$IV170),0)),\"\")","v":""},{"$f":"IFERROR(INDEX($EG170:$IV170,MATCH(0,COUNTIF($DR170:DY170,$EG170:$IV170),0)),\"\")","v":""},{"$f":"IFERROR(INDEX($EG170:$IV170,MATCH(0,COUNTIF($DR170:DZ170,$EG170:$IV170),0)),\"\")","v":""},{"$f":"IFERROR(INDEX($EG170:$IV170,MATCH(0,COUNTIF($DR170:EA170,$EG170:$IV170),0)),\"\")","v":""},{"$f":"IFERROR(INDEX($EG170:$IV170,MATCH(0,COUNTIF($DR170:EB170,$EG170:$IV170),0)),\"\")","v":""},{"$f":"IFERROR(INDEX($EG170:$IV170,MATCH(0,COUNTIF($DR170:EC170,$EG170:$IV170),0)),\"\")","v":""},null,null,{"$f":"IFERROR(MID($G170,FIND(CHAR(160),SUBSTITUTE($G170,\"{\",CHAR(160),EG$1)),FIND(CHAR(160),SUBSTITUTE($G170,\"}\",CHAR(160),EG$1))-FIND(CHAR(160),SUBSTITUTE($G170,\"{\",CHAR(160),EG$1))+1),\"\")","v":"{Measure:Quantity}"},{"$f":"IFERROR(MID($G170,FIND(CHAR(160),SUBSTITUTE($G170,\"{\",CHAR(160),EH$1)),FIND(CHAR(160),SUBSTITUTE($G170,\"}\",CHAR(160),EH$1))-FIND(CHAR(160),SUBSTITUTE($G170,\"{\",CHAR(160),EH$1))+1),\"\")","v":"{Package Size}"},{"$f":"IFERROR(MID($G170,FIND(CHAR(160),SUBSTITUTE($G170,\"{\",CHAR(160),EI$1)),FIND(CHAR(160),SUBSTITUTE($G170,\"}\",CHAR(160),EI$1))-FIND(CHAR(160),SUBSTITUTE($G170,\"{\",CHAR(160),EI$1))+1),\"\")","v":""},{"$f":"IFERROR(MID($G170,FIND(CHAR(160),SUBSTITUTE($G170,\"{\",CHAR(160),EJ$1)),FIND(CHAR(160),SUBSTITUTE($G170,\"}\",CHAR(160),EJ$1))-FIND(CHAR(160),SUBSTITUTE($G170,\"{\",CHAR(160),EJ$1))+1),\"\")","v":""},{"$f":"IFERROR(MID($G170,FIND(CHAR(160),SUBSTITUTE($G170,\"{\",CHAR(160),EK$1)),FIND(CHAR(160),SUBSTITUTE($G170,\"}\",CHAR(160),EK$1))-FIND(CHAR(160),SUBSTITUTE($G170,\"{\",CHAR(160),EK$1))+1),\"\")","v":""},{"$f":"IFERROR(MID($G170,FIND(CHAR(160),SUBSTITUTE($G170,\"{\",CHAR(160),EL$1)),FIND(CHAR(160),SUBSTITUTE($G170,\"}\",CHAR(160),EL$1))-FIND(CHAR(160),SUBSTITUTE($G170,\"{\",CHAR(160),EL$1))+1),\"\")","v":""},{"$f":"IFERROR(MID($G170,FIND(CHAR(160),SUBSTITUTE($G170,\"{\",CHAR(160),EM$1)),FIND(CHAR(160),SUBSTITUTE($G170,\"}\",CHAR(160),EM$1))-FIND(CHAR(160),SUBSTITUTE($G170,\"{\",CHAR(160),EM$1))+1),\"\")","v":""},{"$f":"IFERROR(MID($G170,FIND(CHAR(160),SUBSTITUTE($G170,\"{\",CHAR(160),EN$1)),FIND(CHAR(160),SUBSTITUTE($G170,\"}\",CHAR(160),EN$1))-FIND(CHAR(160),SUBSTITUTE($G170,\"{\",CHAR(160),EN$1))+1),\"\")","v":""},{"$f":"IFERROR(MID($G170,FIND(CHAR(160),SUBSTITUTE($G170,\"{\",CHAR(160),EO$1)),FIND(CHAR(160),SUBSTITUTE($G170,\"}\",CHAR(160),EO$1))-FIND(CHAR(160),SUBSTITUTE($G170,\"{\",CHAR(160),EO$1))+1),\"\")","v":""},{"$f":"IFERROR(MID($G170,FIND(CHAR(160),SUBSTITUTE($G170,\"{\",CHAR(160),EP$1)),FIND(CHAR(160),SUBSTITUTE($G170,\"}\",CHAR(160),EP$1))-FIND(CHAR(160),SUBSTITUTE($G170,\"{\",CHAR(160),EP$1))+1),\"\")","v":""},{"$f":"IFERROR(MID($J170,FIND(CHAR(160),SUBSTITUTE($J170,\"{\",CHAR(160),EQ$1)),FIND(CHAR(160),SUBSTITUTE($J170,\"}\",CHAR(160),EQ$1))-FIND(CHAR(160),SUBSTITUTE($J170,\"{\",CHAR(160),EQ$1))+1),\"\")","v":"{Measure:Quantity}"},{"$f":"IFERROR(MID($J170,FIND(CHAR(160),SUBSTITUTE($J170,\"{\",CHAR(160),ER$1)),FIND(CHAR(160),SUBSTITUTE($J170,\"}\",CHAR(160),ER$1))-FIND(CHAR(160),SUBSTITUTE($J170,\"{\",CHAR(160),ER$1))+1),\"\")","v":"{Rebate per Package}"},{"$f":"IFERROR(MID($J170,FIND(CHAR(160),SUBSTITUTE($J170,\"{\",CHAR(160),ES$1)),FIND(CHAR(160),SUBSTITUTE($J170,\"}\",CHAR(160),ES$1))-FIND(CHAR(160),SUBSTITUTE($J170,\"{\",CHAR(160),ES$1))+1),\"\")","v":""},{"$f":"IFERROR(MID($J170,FIND(CHAR(160),SUBSTITUTE($J170,\"{\",CHAR(160),ET$1)),FIND(CHAR(160),SUBSTITUTE($J170,\"}\",CHAR(160),ET$1))-FIND(CHAR(160),SUBSTITUTE($J170,\"{\",CHAR(160),ET$1))+1),\"\")","v":""},{"$f":"IFERROR(MID($J170,FIND(CHAR(160),SUBSTITUTE($J170,\"{\",CHAR(160),EU$1)),FIND(CHAR(160),SUBSTITUTE($J170,\"}\",CHAR(160),EU$1))-FIND(CHAR(160),SUBSTITUTE($J170,\"{\",CHAR(160),EU$1))+1),\"\")","v":""},{"$f":"IFERROR(MID($J170,FIND(CHAR(160),SUBSTITUTE($J170,\"{\",CHAR(160),EV$1)),FIND(CHAR(160),SUBSTITUTE($J170,\"}\",CHAR(160),EV$1))-FIND(CHAR(160),SUBSTITUTE($J170,\"{\",CHAR(160),EV$1))+1),\"\")","v":""},{"$f":"IFERROR(MID($J170,FIND(CHAR(160),SUBSTITUTE($J170,\"{\",CHAR(160),EW$1)),FIND(CHAR(160),SUBSTITUTE($J170,\"}\",CHAR(160),EW$1))-FIND(CHAR(160),SUBSTITUTE($J170,\"{\",CHAR(160),EW$1))+1),\"\")","v":""},{"$f":"IFERROR(MID($J170,FIND(CHAR(160),SUBSTITUTE($J170,\"{\",CHAR(160),EX$1)),FIND(CHAR(160),SUBSTITUTE($J170,\"}\",CHAR(160),EX$1))-FIND(CHAR(160),SUBSTITUTE($J170,\"{\",CHAR(160),EX$1))+1),\"\")","v":""},{"$f":"IFERROR(MID($J170,FIND(CHAR(160),SUBSTITUTE($J170,\"{\",CHAR(160),EY$1)),FIND(CHAR(160),SUBSTITUTE($J170,\"}\",CHAR(160),EY$1))-FIND(CHAR(160),SUBSTITUTE($J170,\"{\",CHAR(160),EY$1))+1),\"\")","v":""},{"$f":"IFERROR(MID($J170,FIND(CHAR(160),SUBSTITUTE($J170,\"{\",CHAR(160),EZ$1)),FIND(CHAR(160),SUBSTITUTE($J170,\"}\",CHAR(160),EZ$1))-FIND(CHAR(160),SUBSTITUTE($J170,\"{\",CHAR(160),EZ$1))+1),\"\")","v":""},{"$f":"IFERROR(MID($J170,FIND(CHAR(160),SUBSTITUTE($J170,\"{\",CHAR(160),FA$1)),FIND(CHAR(160),SUBSTITUTE($J170,\"}\",CHAR(160),FA$1))-FIND(CHAR(160),SUBSTITUTE($J170,\"{\",CHAR(160),FA$1))+1),\"\")","v":"{Measure:Quantity}"},{"$f":"IFERROR(MID($J170,FIND(CHAR(160),SUBSTITUTE($J170,\"{\",CHAR(160),FB$1)),FIND(CHAR(160),SUBSTITUTE($J170,\"}\",CHAR(160),FB$1))-FIND(CHAR(160),SUBSTITUTE($J170,\"{\",CHAR(160),FB$1))+1),\"\")","v":"{Rebate per Package}"},{"$f":"IFERROR(MID($O170,FIND(CHAR(160),SUBSTITUTE($O170,\"{\",CHAR(160),FC$1)),FIND(CHAR(160),SUBSTITUTE($O170,\"}\",CHAR(160),FC$1))-FIND(CHAR(160),SUBSTITUTE($O170,\"{\",CHAR(160),FC$1))+1),\"\")","v":""},{"$f":"IFERROR(MID($O170,FIND(CHAR(160),SUBSTITUTE($O170,\"{\",CHAR(160),FD$1)),FIND(CHAR(160),SUBSTITUTE($O170,\"}\",CHAR(160),FD$1))-FIND(CHAR(160),SUBSTITUTE($O170,\"{\",CHAR(160),FD$1))+1),\"\")","v":""},{"$f":"IFERROR(MID($O170,FIND(CHAR(160),SUBSTITUTE($O170,\"{\",CHAR(160),FE$1)),FIND(CHAR(160),SUBSTITUTE($O170,\"}\",CHAR(160),FE$1))-FIND(CHAR(160),SUBSTITUTE($O170,\"{\",CHAR(160),FE$1))+1),\"\")","v":""},{"$f":"IFERROR(MID($O170,FIND(CHAR(160),SUBSTITUTE($O170,\"{\",CHAR(160),FF$1)),FIND(CHAR(160),SUBSTITUTE($O170,\"}\",CHAR(160),FF$1))-FIND(CHAR(160),SUBSTITUTE($O170,\"{\",CHAR(160),FF$1))+1),\"\")","v":""},{"$f":"IFERROR(MID($O170,FIND(CHAR(160),SUBSTITUTE($O170,\"{\",CHAR(160),FG$1)),FIND(CHAR(160),SUBSTITUTE($O170,\"}\",CHAR(160),FG$1))-FIND(CHAR(160),SUBSTITUTE($O170,\"{\",CHAR(160),FG$1))+1),\"\")","v":""},{"$f":"IFERROR(MID($O170,FIND(CHAR(160),SUBSTITUTE($O170,\"{\",CHAR(160),FH$1)),FIND(CHAR(160),SUBSTITUTE($O170,\"}\",CHAR(160),FH$1))-FIND(CHAR(160),SUBSTITUTE($O170,\"{\",CHAR(160),FH$1))+1),\"\")","v":""},{"$f":"IFERROR(MID($O170,FIND(CHAR(160),SUBSTITUTE($O170,\"{\",CHAR(160),FI$1)),FIND(CHAR(160),SUBSTITUTE($O170,\"}\",CHAR(160),FI$1))-FIND(CHAR(160),SUBSTITUTE($O170,\"{\",CHAR(160),FI$1))+1),\"\")","v":""},{"$f":"IFERROR(MID($O170,FIND(CHAR(160),SUBSTITUTE($O170,\"{\",CHAR(160),FJ$1)),FIND(CHAR(160),SUBSTITUTE($O170,\"}\",CHAR(160),FJ$1))-FIND(CHAR(160),SUBSTITUTE($O170,\"{\",CHAR(160),FJ$1))+1),\"\")","v":""},{"$f":"IFERROR(MID($O170,FIND(CHAR(160),SUBSTITUTE($O170,\"{\",CHAR(160),FK$1)),FIND(CHAR(160),SUBSTITUTE($O170,\"}\",CHAR(160),FK$1))-FIND(CHAR(160),SUBSTITUTE($O170,\"{\",CHAR(160),FK$1))+1),\"\")","v":"{Measure:Quantity}"},{"$f":"IFERROR(MID($O170,FIND(CHAR(160),SUBSTITUTE($O170,\"{\",CHAR(160),FL$1)),FIND(CHAR(160),SUBSTITUTE($O170,\"}\",CHAR(160),FL$1))-FIND(CHAR(160),SUBSTITUTE($O170,\"{\",CHAR(160),FL$1))+1),\"\")","v":"{Package Size}"},{"$f":"IFERROR(MID($R170,FIND(CHAR(160),SUBSTITUTE($R170,\"{\",CHAR(160),FM$1)),FIND(CHAR(160),SUBSTITUTE($R170,\"}\",CHAR(160),FM$1))-FIND(CHAR(160),SUBSTITUTE($R170,\"{\",CHAR(160),FM$1))+1),\"\")","v":""},{"$f":"IFERROR(MID($R170,FIND(CHAR(160),SUBSTITUTE($R170,\"{\",CHAR(160),FN$1)),FIND(CHAR(160),SUBSTITUTE($R170,\"}\",CHAR(160),FN$1))-FIND(CHAR(160),SUBSTITUTE($R170,\"{\",CHAR(160),FN$1))+1),\"\")","v":""},{"$f":"IFERROR(MID($R170,FIND(CHAR(160),SUBSTITUTE($R170,\"{\",CHAR(160),FO$1)),FIND(CHAR(160),SUBSTITUTE($R170,\"}\",CHAR(160),FO$1))-FIND(CHAR(160),SUBSTITUTE($R170,\"{\",CHAR(160),FO$1))+1),\"\")","v":""},{"$f":"IFERROR(MID($R170,FIND(CHAR(160),SUBSTITUTE($R170,\"{\",CHAR(160),FP$1)),FIND(CHAR(160),SUBSTITUTE($R170,\"}\",CHAR(160),FP$1))-FIND(CHAR(160),SUBSTITUTE($R170,\"{\",CHAR(160),FP$1))+1),\"\")","v":""},{"$f":"IFERROR(MID($R170,FIND(CHAR(160),SUBSTITUTE($R170,\"{\",CHAR(160),FQ$1)),FIND(CHAR(160),SUBSTITUTE($R170,\"}\",CHAR(160),FQ$1))-FIND(CHAR(160),SUBSTITUTE($R170,\"{\",CHAR(160),FQ$1))+1),\"\")","v":""},{"$f":"IFERROR(MID($R170,FIND(CHAR(160),SUBSTITUTE($R170,\"{\",CHAR(160),FR$1)),FIND(CHAR(160),SUBSTITUTE($R170,\"}\",CHAR(160),FR$1))-FIND(CHAR(160),SUBSTITUTE($R170,\"{\",CHAR(160),FR$1))+1),\"\")","v":""},{"$f":"IFERROR(MID($R170,FIND(CHAR(160),SUBSTITUTE($R170,\"{\",CHAR(160),FS$1)),FIND(CHAR(160),SUBSTITUTE($R170,\"}\",CHAR(160),FS$1))-FIND(CHAR(160),SUBSTITUTE($R170,\"{\",CHAR(160),FS$1))+1),\"\")","v":""},{"$f":"IFERROR(MID($R170,FIND(CHAR(160),SUBSTITUTE($R170,\"{\",CHAR(160),FT$1)),FIND(CHAR(160),SUBSTITUTE($R170,\"}\",CHAR(160),FT$1))-FIND(CHAR(160),SUBSTITUTE($R170,\"{\",CHAR(160),FT$1))+1),\"\")","v":""},{"$f":"IFERROR(MID($R170,FIND(CHAR(160),SUBSTITUTE($R170,\"{\",CHAR(160),FU$1)),FIND(CHAR(160),SUBSTITUTE($R170,\"}\",CHAR(160),FU$1))-FIND(CHAR(160),SUBSTITUTE($R170,\"{\",CHAR(160),FU$1))+1),\"\")","v":"{Measure:Quantity}"},{"$f":"IFERROR(MID($R170,FIND(CHAR(160),SUBSTITUTE($R170,\"{\",CHAR(160),FV$1)),FIND(CHAR(160),SUBSTITUTE($R170,\"}\",CHAR(160),FV$1))-FIND(CHAR(160),SUBSTITUTE($R170,\"{\",CHAR(160),FV$1))+1),\"\")","v":"{Package Size}"},{"$f":"IFERROR(MID($U170,FIND(CHAR(160),SUBSTITUTE($U170,\"{\",CHAR(160),FW$1)),FIND(CHAR(160),SUBSTITUTE($U170,\"}\",CHAR(160),FW$1))-FIND(CHAR(160),SUBSTITUTE($U170,\"{\",CHAR(160),FW$1))+1),\"\")","v":"{Factor:WinterCF}"},{"$f":"IFERROR(MID($U170,FIND(CHAR(160),SUBSTITUTE($U170,\"{\",CHAR(160),FX$1)),FIND(CHAR(160),SUBSTITUTE($U170,\"}\",CHAR(160),FX$1))-FIND(CHAR(160),SUBSTITUTE($U170,\"{\",CHAR(160),FX$1))+1),\"\")","v":""},{"$f":"IFERROR(MID($U170,FIND(CHAR(160),SUBSTITUTE($U170,\"{\",CHAR(160),FY$1)),FIND(CHAR(160),SUBSTITUTE($U170,\"}\",CHAR(160),FY$1))-FIND(CHAR(160),SUBSTITUTE($U170,\"{\",CHAR(160),FY$1))+1),\"\")","v":""},{"$f":"IFERROR(MID($U170,FIND(CHAR(160),SUBSTITUTE($U170,\"{\",CHAR(160),FZ$1)),FIND(CHAR(160),SUBSTITUTE($U170,\"}\",CHAR(160),FZ$1))-FIND(CHAR(160),SUBSTITUTE($U170,\"{\",CHAR(160),FZ$1))+1),\"\")","v":""},{"$f":"IFERROR(MID($U170,FIND(CHAR(160),SUBSTITUTE($U170,\"{\",CHAR(160),GA$1)),FIND(CHAR(160),SUBSTITUTE($U170,\"}\",CHAR(160),GA$1))-FIND(CHAR(160),SUBSTITUTE($U170,\"{\",CHAR(160),GA$1))+1),\"\")","v":""},{"$f":"IFERROR(MID($U170,FIND(CHAR(160),SUBSTITUTE($U170,\"{\",CHAR(160),GB$1)),FIND(CHAR(160),SUBSTITUTE($U170,\"}\",CHAR(160),GB$1))-FIND(CHAR(160),SUBSTITUTE($U170,\"{\",CHAR(160),GB$1))+1),\"\")","v":""},{"$f":"IFERROR(MID($U170,FIND(CHAR(160),SUBSTITUTE($U170,\"{\",CHAR(160),GC$1)),FIND(CHAR(160),SUBSTITUTE($U170,\"}\",CHAR(160),GC$1))-FIND(CHAR(160),SUBSTITUTE($U170,\"{\",CHAR(160),GC$1))+1),\"\")","v":""},{"$f":"IFERROR(MID($U170,FIND(CHAR(160),SUBSTITUTE($U170,\"{\",CHAR(160),GD$1)),FIND(CHAR(160),SUBSTITUTE($U170,\"}\",CHAR(160),GD$1))-FIND(CHAR(160),SUBSTITUTE($U170,\"{\",CHAR(160),GD$1))+1),\"\")","v":""},{"$f":"IFERROR(MID($U170,FIND(CHAR(160),SUBSTITUTE($U170,\"{\",CHAR(160),GE$1)),FIND(CHAR(160),SUBSTITUTE($U170,\"}\",CHAR(160),GE$1))-FIND(CHAR(160),SUBSTITUTE($U170,\"{\",CHAR(160),GE$1))+1),\"\")","v":"{Measure:Quantity}"},{"$f":"IFERROR(MID($U170,FIND(CHAR(160),SUBSTITUTE($U170,\"{\",CHAR(160),GF$1)),FIND(CHAR(160),SUBSTITUTE($U170,\"}\",CHAR(160),GF$1))-FIND(CHAR(160),SUBSTITUTE($U170,\"{\",CHAR(160),GF$1))+1),\"\")","v":"{Package Size}"},{"$f":"IFERROR(MID($V170,FIND(CHAR(160),SUBSTITUTE($V170,\"{\",CHAR(160),GG$1)),FIND(CHAR(160),SUBSTITUTE($V170,\"}\",CHAR(160),GG$1))-FIND(CHAR(160),SUBSTITUTE($V170,\"{\",CHAR(160),GG$1))+1),\"\")","v":"{Factor:SummerCF}"},{"$f":"IFERROR(MID($V170,FIND(CHAR(160),SUBSTITUTE($V170,\"{\",CHAR(160),GH$1)),FIND(CHAR(160),SUBSTITUTE($V170,\"}\",CHAR(160),GH$1))-FIND(CHAR(160),SUBSTITUTE($V170,\"{\",CHAR(160),GH$1))+1),\"\")","v":""},{"$f":"IFERROR(MID($V170,FIND(CHAR(160),SUBSTITUTE($V170,\"{\",CHAR(160),GI$1)),FIND(CHAR(160),SUBSTITUTE($V170,\"}\",CHAR(160),GI$1))-FIND(CHAR(160),SUBSTITUTE($V170,\"{\",CHAR(160),GI$1))+1),\"\")","v":""},{"$f":"IFERROR(MID($V170,FIND(CHAR(160),SUBSTITUTE($V170,\"{\",CHAR(160),GJ$1)),FIND(CHAR(160),SUBSTITUTE($V170,\"}\",CHAR(160),GJ$1))-FIND(CHAR(160),SUBSTITUTE($V170,\"{\",CHAR(160),GJ$1))+1),\"\")","v":""},{"$f":"IFERROR(MID($V170,FIND(CHAR(160),SUBSTITUTE($V170,\"{\",CHAR(160),GK$1)),FIND(CHAR(160),SUBSTITUTE($V170,\"}\",CHAR(160),GK$1))-FIND(CHAR(160),SUBSTITUTE($V170,\"{\",CHAR(160),GK$1))+1),\"\")","v":""},{"$f":"IFERROR(MID($V170,FIND(CHAR(160),SUBSTITUTE($V170,\"{\",CHAR(160),GL$1)),FIND(CHAR(160),SUBSTITUTE($V170,\"}\",CHAR(160),GL$1))-FIND(CHAR(160),SUBSTITUTE($V170,\"{\",CHAR(160),GL$1))+1),\"\")","v":""},{"$f":"IFERROR(MID($V170,FIND(CHAR(160),SUBSTITUTE($V170,\"{\",CHAR(160),GM$1)),FIND(CHAR(160),SUBSTITUTE($V170,\"}\",CHAR(160),GM$1))-FIND(CHAR(160),SUBSTITUTE($V170,\"{\",CHAR(160),GM$1))+1),\"\")","v":""},{"$f":"IFERROR(MID($V170,FIND(CHAR(160),SUBSTITUTE($V170,\"{\",CHAR(160),GN$1)),FIND(CHAR(160),SUBSTITUTE($V170,\"}\",CHAR(160),GN$1))-FIND(CHAR(160),SUBSTITUTE($V170,\"{\",CHAR(160),GN$1))+1),\"\")","v":""},{"$f":"IFERROR(MID($V170,FIND(CHAR(160),SUBSTITUTE($V170,\"{\",CHAR(160),GO$1)),FIND(CHAR(160),SUBSTITUTE($V170,\"}\",CHAR(160),GO$1))-FIND(CHAR(160),SUBSTITUTE($V170,\"{\",CHAR(160),GO$1))+1),\"\")","v":"{Measure:Quantity}"},{"$f":"IFERROR(MID($V170,FIND(CHAR(160),SUBSTITUTE($V170,\"{\",CHAR(160),GP$1)),FIND(CHAR(160),SUBSTITUTE($V170,\"}\",CHAR(160),GP$1))-FIND(CHAR(160),SUBSTITUTE($V170,\"{\",CHAR(160),GP$1))+1),\"\")","v":"{Package Size}"},{"$f":"IFERROR(MID($W170,FIND(CHAR(160),SUBSTITUTE($W170,\"{\",CHAR(160),GQ$1)),FIND(CHAR(160),SUBSTITUTE($W170,\"}\",CHAR(160),GQ$1))-FIND(CHAR(160),SUBSTITUTE($W170,\"{\",CHAR(160),GQ$1))+1),\"\")","v":""},{"$f":"IFERROR(MID($W170,FIND(CHAR(160),SUBSTITUTE($W170,\"{\",CHAR(160),GR$1)),FIND(CHAR(160),SUBSTITUTE($W170,\"}\",CHAR(160),GR$1))-FIND(CHAR(160),SUBSTITUTE($W170,\"{\",CHAR(160),GR$1))+1),\"\")","v":""},{"$f":"IFERROR(MID($W170,FIND(CHAR(160),SUBSTITUTE($W170,\"{\",CHAR(160),GS$1)),FIND(CHAR(160),SUBSTITUTE($W170,\"}\",CHAR(160),GS$1))-FIND(CHAR(160),SUBSTITUTE($W170,\"{\",CHAR(160),GS$1))+1),\"\")","v":""},{"$f":"IFERROR(MID($W170,FIND(CHAR(160),SUBSTITUTE($W170,\"{\",CHAR(160),GT$1)),FIND(CHAR(160),SUBSTITUTE($W170,\"}\",CHAR(160),GT$1))-FIND(CHAR(160),SUBSTITUTE($W170,\"{\",CHAR(160),GT$1))+1),\"\")","v":""},{"$f":"IFERROR(MID($W170,FIND(CHAR(160),SUBSTITUTE($W170,\"{\",CHAR(160),GU$1)),FIND(CHAR(160),SUBSTITUTE($W170,\"}\",CHAR(160),GU$1))-FIND(CHAR(160),SUBSTITUTE($W170,\"{\",CHAR(160),GU$1))+1),\"\")","v":""},{"$f":"IFERROR(MID($W170,FIND(CHAR(160),SUBSTITUTE($W170,\"{\",CHAR(160),GV$1)),FIND(CHAR(160),SUBSTITUTE($W170,\"}\",CHAR(160),GV$1))-FIND(CHAR(160),SUBSTITUTE($W170,\"{\",CHAR(160),GV$1))+1),\"\")","v":""},{"$f":"IFERROR(MID($W170,FIND(CHAR(160),SUBSTITUTE($W170,\"{\",CHAR(160),GW$1)),FIND(CHAR(160),SUBSTITUTE($W170,\"}\",CHAR(160),GW$1))-FIND(CHAR(160),SUBSTITUTE($W170,\"{\",CHAR(160),GW$1))+1),\"\")","v":""},{"$f":"IFERROR(MID($W170,FIND(CHAR(160),SUBSTITUTE($W170,\"{\",CHAR(160),GX$1)),FIND(CHAR(160),SUBSTITUTE($W170,\"}\",CHAR(160),GX$1))-FIND(CHAR(160),SUBSTITUTE($W170,\"{\",CHAR(160),GX$1))+1),\"\")","v":""},{"$f":"IFERROR(MID($W170,FIND(CHAR(160),SUBSTITUTE($W170,\"{\",CHAR(160),GY$1)),FIND(CHAR(160),SUBSTITUTE($W170,\"}\",CHAR(160),GY$1))-FIND(CHAR(160),SUBSTITUTE($W170,\"{\",CHAR(160),GY$1))+1),\"\")","v":"{Measure:Quantity}"},{"$f":"IFERROR(MID($W170,FIND(CHAR(160),SUBSTITUTE($W170,\"{\",CHAR(160),GZ$1)),FIND(CHAR(160),SUBSTITUTE($W170,\"}\",CHAR(160),GZ$1))-FIND(CHAR(160),SUBSTITUTE($W170,\"{\",CHAR(160),GZ$1))+1),\"\")","v":"{Package Size}"},{"$f":"IFERROR(MID($X170,FIND(CHAR(160),SUBSTITUTE($X170,\"{\",CHAR(160),HA$1)),FIND(CHAR(160),SUBSTITUTE($X170,\"}\",CHAR(160),HA$1))-FIND(CHAR(160),SUBSTITUTE($X170,\"{\",CHAR(160),HA$1))+1),\"\")","v":""},{"$f":"IFERROR(MID($X170,FIND(CHAR(160),SUBSTITUTE($X170,\"{\",CHAR(160),HB$1)),FIND(CHAR(160),SUBSTITUTE($X170,\"}\",CHAR(160),HB$1))-FIND(CHAR(160),SUBSTITUTE($X170,\"{\",CHAR(160),HB$1))+1),\"\")","v":""},{"$f":"IFERROR(MID($X170,FIND(CHAR(160),SUBSTITUTE($X170,\"{\",CHAR(160),HC$1)),FIND(CHAR(160),SUBSTITUTE($X170,\"}\",CHAR(160),HC$1))-FIND(CHAR(160),SUBSTITUTE($X170,\"{\",CHAR(160),HC$1))+1),\"\")","v":""},{"$f":"IFERROR(MID($X170,FIND(CHAR(160),SUBSTITUTE($X170,\"{\",CHAR(160),HD$1)),FIND(CHAR(160),SUBSTITUTE($X170,\"}\",CHAR(160),HD$1))-FIND(CHAR(160),SUBSTITUTE($X170,\"{\",CHAR(160),HD$1))+1),\"\")","v":""},{"$f":"IFERROR(MID($X170,FIND(CHAR(160),SUBSTITUTE($X170,\"{\",CHAR(160),HE$1)),FIND(CHAR(160),SUBSTITUTE($X170,\"}\",CHAR(160),HE$1))-FIND(CHAR(160),SUBSTITUTE($X170,\"{\",CHAR(160),HE$1))+1),\"\")","v":""},{"$f":"IFERROR(MID($X170,FIND(CHAR(160),SUBSTITUTE($X170,\"{\",CHAR(160),HF$1)),FIND(CHAR(160),SUBSTITUTE($X170,\"}\",CHAR(160),HF$1))-FIND(CHAR(160),SUBSTITUTE($X170,\"{\",CHAR(160),HF$1))+1),\"\")","v":""},{"$f":"IFERROR(MID($X170,FIND(CHAR(160),SUBSTITUTE($X170,\"{\",CHAR(160),HG$1)),FIND(CHAR(160),SUBSTITUTE($X170,\"}\",CHAR(160),HG$1))-FIND(CHAR(160),SUBSTITUTE($X170,\"{\",CHAR(160),HG$1))+1),\"\")","v":""},{"$f":"IFERROR(MID($X170,FIND(CHAR(160),SUBSTITUTE($X170,\"{\",CHAR(160),HH$1)),FIND(CHAR(160),SUBSTITUTE($X170,\"}\",CHAR(160),HH$1))-FIND(CHAR(160),SUBSTITUTE($X170,\"{\",CHAR(160),HH$1))+1),\"\")","v":""},{"$f":"IFERROR(MID($X170,FIND(CHAR(160),SUBSTITUTE($X170,\"{\",CHAR(160),HI$1)),FIND(CHAR(160),SUBSTITUTE($X170,\"}\",CHAR(160),HI$1))-FIND(CHAR(160),SUBSTITUTE($X170,\"{\",CHAR(160),HI$1))+1),\"\")","v":"{Measure:Quantity}"},{"$f":"IFERROR(MID($X170,FIND(CHAR(160),SUBSTITUTE($X170,\"{\",CHAR(160),HJ$1)),FIND(CHAR(160),SUBSTITUTE($X170,\"}\",CHAR(160),HJ$1))-FIND(CHAR(160),SUBSTITUTE($X170,\"{\",CHAR(160),HJ$1))+1),\"\")","v":"{Package Size}"},{"$f":"IFERROR(MID($Y170,FIND(CHAR(160),SUBSTITUTE($Y170,\"{\",CHAR(160),HK$1)),FIND(CHAR(160),SUBSTITUTE($Y170,\"}\",CHAR(160),HK$1))-FIND(CHAR(160),SUBSTITUTE($Y170,\"{\",CHAR(160),HK$1))+1),\"\")","v":""},{"$f":"IFERROR(MID($Y170,FIND(CHAR(160),SUBSTITUTE($Y170,\"{\",CHAR(160),HL$1)),FIND(CHAR(160),SUBSTITUTE($Y170,\"}\",CHAR(160),HL$1))-FIND(CHAR(160),SUBSTITUTE($Y170,\"{\",CHAR(160),HL$1))+1),\"\")","v":""},{"$f":"IFERROR(MID($Y170,FIND(CHAR(160),SUBSTITUTE($Y170,\"{\",CHAR(160),HM$1)),FIND(CHAR(160),SUBSTITUTE($Y170,\"}\",CHAR(160),HM$1))-FIND(CHAR(160),SUBSTITUTE($Y170,\"{\",CHAR(160),HM$1))+1),\"\")","v":""},{"$f":"IFERROR(MID($Y170,FIND(CHAR(160),SUBSTITUTE($Y170,\"{\",CHAR(160),HN$1)),FIND(CHAR(160),SUBSTITUTE($Y170,\"}\",CHAR(160),HN$1))-FIND(CHAR(160),SUBSTITUTE($Y170,\"{\",CHAR(160),HN$1))+1),\"\")","v":""},{"$f":"IFERROR(MID($Y170,FIND(CHAR(160),SUBSTITUTE($Y170,\"{\",CHAR(160),HO$1)),FIND(CHAR(160),SUBSTITUTE($Y170,\"}\",CHAR(160),HO$1))-FIND(CHAR(160),SUBSTITUTE($Y170,\"{\",CHAR(160),HO$1))+1),\"\")","v":""},{"$f":"IFERROR(MID($Y170,FIND(CHAR(160),SUBSTITUTE($Y170,\"{\",CHAR(160),HP$1)),FIND(CHAR(160),SUBSTITUTE($Y170,\"}\",CHAR(160),HP$1))-FIND(CHAR(160),SUBSTITUTE($Y170,\"{\",CHAR(160),HP$1))+1),\"\")","v":""},{"$f":"IFERROR(MID($Y170,FIND(CHAR(160),SUBSTITUTE($Y170,\"{\",CHAR(160),HQ$1)),FIND(CHAR(160),SUBSTITUTE($Y170,\"}\",CHAR(160),HQ$1))-FIND(CHAR(160),SUBSTITUTE($Y170,\"{\",CHAR(160),HQ$1))+1),\"\")","v":""},{"$f":"IFERROR(MID($Y170,FIND(CHAR(160),SUBSTITUTE($Y170,\"{\",CHAR(160),HR$1)),FIND(CHAR(160),SUBSTITUTE($Y170,\"}\",CHAR(160),HR$1))-FIND(CHAR(160),SUBSTITUTE($Y170,\"{\",CHAR(160),HR$1))+1),\"\")","v":""},{"$f":"IFERROR(MID($Y170,FIND(CHAR(160),SUBSTITUTE($Y170,\"{\",CHAR(160),HS$1)),FIND(CHAR(160),SUBSTITUTE($Y170,\"}\",CHAR(160),HS$1))-FIND(CHAR(160),SUBSTITUTE($Y170,\"{\",CHAR(160),HS$1))+1),\"\")","v":"{Measure:Quantity}"},{"$f":"IFERROR(MID($Y170,FIND(CHAR(160),SUBSTITUTE($Y170,\"{\",CHAR(160),HT$1)),FIND(CHAR(160),SUBSTITUTE($Y170,\"}\",CHAR(160),HT$1))-FIND(CHAR(160),SUBSTITUTE($Y170,\"{\",CHAR(160),HT$1))+1),\"\")","v":"{Package Size}"},{"$f":"IFERROR(MID($Z170,FIND(CHAR(160),SUBSTITUTE($Z170,\"{\",CHAR(160),HU$1)),FIND(CHAR(160),SUBSTITUTE($Z170,\"}\",CHAR(160),HU$1))-FIND(CHAR(160),SUBSTITUTE($Z170,\"{\",CHAR(160),HU$1))+1),\"\")","v":""},{"$f":"IFERROR(MID($Z170,FIND(CHAR(160),SUBSTITUTE($Z170,\"{\",CHAR(160),HV$1)),FIND(CHAR(160),SUBSTITUTE($Z170,\"}\",CHAR(160),HV$1))-FIND(CHAR(160),SUBSTITUTE($Z170,\"{\",CHAR(160),HV$1))+1),\"\")","v":""},{"$f":"IFERROR(MID($Z170,FIND(CHAR(160),SUBSTITUTE($Z170,\"{\",CHAR(160),HW$1)),FIND(CHAR(160),SUBSTITUTE($Z170,\"}\",CHAR(160),HW$1))-FIND(CHAR(160),SUBSTITUTE($Z170,\"{\",CHAR(160),HW$1))+1),\"\")","v":""},{"$f":"IFERROR(MID($Z170,FIND(CHAR(160),SUBSTITUTE($Z170,\"{\",CHAR(160),HX$1)),FIND(CHAR(160),SUBSTITUTE($Z170,\"}\",CHAR(160),HX$1))-FIND(CHAR(160),SUBSTITUTE($Z170,\"{\",CHAR(160),HX$1))+1),\"\")","v":""},{"$f":"IFERROR(MID($Z170,FIND(CHAR(160),SUBSTITUTE($Z170,\"{\",CHAR(160),HY$1)),FIND(CHAR(160),SUBSTITUTE($Z170,\"}\",CHAR(160),HY$1))-FIND(CHAR(160),SUBSTITUTE($Z170,\"{\",CHAR(160),HY$1))+1),\"\")","v":""},{"$f":"IFERROR(MID($Z170,FIND(CHAR(160),SUBSTITUTE($Z170,\"{\",CHAR(160),HZ$1)),FIND(CHAR(160),SUBSTITUTE($Z170,\"}\",CHAR(160),HZ$1))-FIND(CHAR(160),SUBSTITUTE($Z170,\"{\",CHAR(160),HZ$1))+1),\"\")","v":""},{"$f":"IFERROR(MID($Z170,FIND(CHAR(160),SUBSTITUTE($Z170,\"{\",CHAR(160),IA$1)),FIND(CHAR(160),SUBSTITUTE($Z170,\"}\",CHAR(160),IA$1))-FIND(CHAR(160),SUBSTITUTE($Z170,\"{\",CHAR(160),IA$1))+1),\"\")","v":""},{"$f":"IFERROR(MID($Z170,FIND(CHAR(160),SUBSTITUTE($Z170,\"{\",CHAR(160),IB$1)),FIND(CHAR(160),SUBSTITUTE($Z170,\"}\",CHAR(160),IB$1))-FIND(CHAR(160),SUBSTITUTE($Z170,\"{\",CHAR(160),IB$1))+1),\"\")","v":""},{"$f":"IFERROR(MID($Z170,FIND(CHAR(160),SUBSTITUTE($Z170,\"{\",CHAR(160),IC$1)),FIND(CHAR(160),SUBSTITUTE($Z170,\"}\",CHAR(160),IC$1))-FIND(CHAR(160),SUBSTITUTE($Z170,\"{\",CHAR(160),IC$1))+1),\"\")","v":"{Measure:Quantity}"},{"$f":"IFERROR(MID($Z170,FIND(CHAR(160),SUBSTITUTE($Z170,\"{\",CHAR(160),ID$1)),FIND(CHAR(160),SUBSTITUTE($Z170,\"}\",CHAR(160),ID$1))-FIND(CHAR(160),SUBSTITUTE($Z170,\"{\",CHAR(160),ID$1))+1),\"\")","v":"{Package Size}"},{"$f":"IFERROR(MID($AA170,FIND(CHAR(160),SUBSTITUTE($AA170,\"{\",CHAR(160),IE$1)),FIND(CHAR(160),SUBSTITUTE($AA170,\"}\",CHAR(160),IE$1))-FIND(CHAR(160),SUBSTITUTE($AA170,\"{\",CHAR(160),IE$1))+1),\"\")","v":""},{"$f":"IFERROR(MID($AA170,FIND(CHAR(160),SUBSTITUTE($AA170,\"{\",CHAR(160),IF$1)),FIND(CHAR(160),SUBSTITUTE($AA170,\"}\",CHAR(160),IF$1))-FIND(CHAR(160),SUBSTITUTE($AA170,\"{\",CHAR(160),IF$1))+1),\"\")","v":""},{"$f":"IFERROR(MID($AA170,FIND(CHAR(160),SUBSTITUTE($AA170,\"{\",CHAR(160),IG$1)),FIND(CHAR(160),SUBSTITUTE($AA170,\"}\",CHAR(160),IG$1))-FIND(CHAR(160),SUBSTITUTE($AA170,\"{\",CHAR(160),IG$1))+1),\"\")","v":""},{"$f":"IFERROR(MID($AA170,FIND(CHAR(160),SUBSTITUTE($AA170,\"{\",CHAR(160),IH$1)),FIND(CHAR(160),SUBSTITUTE($AA170,\"}\",CHAR(160),IH$1))-FIND(CHAR(160),SUBSTITUTE($AA170,\"{\",CHAR(160),IH$1))+1),\"\")","v":""},{"$f":"IFERROR(MID($AA170,FIND(CHAR(160),SUBSTITUTE($AA170,\"{\",CHAR(160),II$1)),FIND(CHAR(160),SUBSTITUTE($AA170,\"}\",CHAR(160),II$1))-FIND(CHAR(160),SUBSTITUTE($AA170,\"{\",CHAR(160),II$1))+1),\"\")","v":""},{"$f":"IFERROR(MID($AA170,FIND(CHAR(160),SUBSTITUTE($AA170,\"{\",CHAR(160),IJ$1)),FIND(CHAR(160),SUBSTITUTE($AA170,\"}\",CHAR(160),IJ$1))-FIND(CHAR(160),SUBSTITUTE($AA170,\"{\",CHAR(160),IJ$1))+1),\"\")","v":""},{"$f":"IFERROR(MID($AA170,FIND(CHAR(160),SUBSTITUTE($AA170,\"{\",CHAR(160),IK$1)),FIND(CHAR(160),SUBSTITUTE($AA170,\"}\",CHAR(160),IK$1))-FIND(CHAR(160),SUBSTITUTE($AA170,\"{\",CHAR(160),IK$1))+1),\"\")","v":""},{"$f":"IFERROR(MID($AA170,FIND(CHAR(160),SUBSTITUTE($AA170,\"{\",CHAR(160),IL$1)),FIND(CHAR(160),SUBSTITUTE($AA170,\"}\",CHAR(160),IL$1))-FIND(CHAR(160),SUBSTITUTE($AA170,\"{\",CHAR(160),IL$1))+1),\"\")","v":""},{"$f":"IFERROR(MID($AA170,FIND(CHAR(160),SUBSTITUTE($AA170,\"{\",CHAR(160),IM$1)),FIND(CHAR(160),SUBSTITUTE($AA170,\"}\",CHAR(160),IM$1))-FIND(CHAR(160),SUBSTITUTE($AA170,\"{\",CHAR(160),IM$1))+1),\"\")","v":"{Measure:Quantity}"},{"$f":"IFERROR(MID($AA170,FIND(CHAR(160),SUBSTITUTE($AA170,\"{\",CHAR(160),IN$1)),FIND(CHAR(160),SUBSTITUTE($AA170,\"}\",CHAR(160),IN$1))-FIND(CHAR(160),SUBSTITUTE($AA170,\"{\",CHAR(160),IN$1))+1),\"\")","v":"{Package Size}"},{"$f":"IFERROR(MID($AB170,FIND(CHAR(160),SUBSTITUTE($AB170,\"{\",CHAR(160),IO$1)),FIND(CHAR(160),SUBSTITUTE($AB170,\"}\",CHAR(160),IO$1))-FIND(CHAR(160),SUBSTITUTE($AB170,\"{\",CHAR(160),IO$1))+1),\"\")","v":""},{"$f":"IFERROR(MID($AB170,FIND(CHAR(160),SUBSTITUTE($AB170,\"{\",CHAR(160),IP$1)),FIND(CHAR(160),SUBSTITUTE($AB170,\"}\",CHAR(160),IP$1))-FIND(CHAR(160),SUBSTITUTE($AB170,\"{\",CHAR(160),IP$1))+1),\"\")","v":""},{"$f":"IFERROR(MID($AB170,FIND(CHAR(160),SUBSTITUTE($AB170,\"{\",CHAR(160),IQ$1)),FIND(CHAR(160),SUBSTITUTE($AB170,\"}\",CHAR(160),IQ$1))-FIND(CHAR(160),SUBSTITUTE($AB170,\"{\",CHAR(160),IQ$1))+1),\"\")","v":""},{"$f":"IFERROR(MID($AB170,FIND(CHAR(160),SUBSTITUTE($AB170,\"{\",CHAR(160),IR$1)),FIND(CHAR(160),SUBSTITUTE($AB170,\"}\",CHAR(160),IR$1))-FIND(CHAR(160),SUBSTITUTE($AB170,\"{\",CHAR(160),IR$1))+1),\"\")","v":""},{"$f":"IFERROR(MID($AB170,FIND(CHAR(160),SUBSTITUTE($AB170,\"{\",CHAR(160),IS$1)),FIND(CHAR(160),SUBSTITUTE($AB170,\"}\",CHAR(160),IS$1))-FIND(CHAR(160),SUBSTITUTE($AB170,\"{\",CHAR(160),IS$1))+1),\"\")","v":""},{"$f":"IFERROR(MID($AB170,FIND(CHAR(160),SUBSTITUTE($AB170,\"{\",CHAR(160),IT$1)),FIND(CHAR(160),SUBSTITUTE($AB170,\"}\",CHAR(160),IT$1))-FIND(CHAR(160),SUBSTITUTE($AB170,\"{\",CHAR(160),IT$1))+1),\"\")","v":""},{"$f":"IFERROR(MID($AB170,FIND(CHAR(160),SUBSTITUTE($AB170,\"{\",CHAR(160),IU$1)),FIND(CHAR(160),SUBSTITUTE($AB170,\"}\",CHAR(160),IU$1))-FIND(CHAR(160),SUBSTITUTE($AB170,\"{\",CHAR(160),IU$1))+1),\"\")","v":""},{"$f":"IFERROR(MID($AB170,FIND(CHAR(160),SUBSTITUTE($AB170,\"{\",CHAR(160),IV$1)),FIND(CHAR(160),SUBSTITUTE($AB170,\"}\",CHAR(160),IV$1))-FIND(CHAR(160),SUBSTITUTE($AB170,\"{\",CHAR(160),IV$1))+1),\"\")","v":""},{"$f":"IFERROR(MID($AB170,FIND(CHAR(160),SUBSTITUTE($AB170,\"{\",CHAR(160),IW$1)),FIND(CHAR(160),SUBSTITUTE($AB170,\"}\",CHAR(160),IW$1))-FIND(CHAR(160),SUBSTITUTE($AB170,\"{\",CHAR(160),IW$1))+1),\"\")","v":""},{"$f":"IFERROR(MID($AB170,FIND(CHAR(160),SUBSTITUTE($AB170,\"{\",CHAR(160),IX$1)),FIND(CHAR(160),SUBSTITUTE($AB170,\"}\",CHAR(160),IX$1))-FIND(CHAR(160),SUBSTITUTE($AB170,\"{\",CHAR(160),IX$1))+1),\"\")","v":""},null,{"$f":"10-COUNTIF(DU170:ED170,\"\")","v":3}]
["Distributor Lighting","Specialty LED - BR30","LEDBR30","2021-07-01","2022-06-30","Calculated","{Measure:Quantity}*{Package Size}*2.62",0,"Calculated","{Measure:Quantity}*{Rebate per Package}",0,"2021-07-01","2022-06-30","Calculated","{Measure:Quantity}*{Package Size}*57",null,null,"{Measure:Quantity}*{Package Size}*1.0747*0.033",null,null,"{Measure:Quantity}*{Package Size}*{Factor:WinterCF}*0.033","{Measure:Quantity}*{Package Size}*{Factor:SummerCF}*1.0747*0.033","{Measure:Quantity}*{Package Size}*10*-0.008","{Measure:Quantity}*{Package Size}*-0.004","{Measure:Quantity}*{Package Size}*-0.038","{Measure:Quantity}*{Package Size}*-0.001","{Measure:Quantity}*{Package Size}*-0.009",null,"2021-07-01","2022-06-30",2,0.254,0.309,0.42299999999999999,0.249,0.21,0.11799999999999999,0.99,1,1,0.51,0,null,{"$f":"DU171","v":"{Measure:Quantity}"},1,{"$f":"DV171","v":"{Package Size}"},1,{"$f":"DW171","v":"{Rebate per Package}"},{"$f":"CW171*CO171","v":1.9650000000000001},{"$f":"DX171","v":""},null,{"$f":"DY171","v":""},null,{"$f":"DZ171","v":""},null,{"$f":"EA171","v":""},null,{"$f":"EB171","v":""},null,{"$f":"EC171","v":""},null,{"$f":"ED171","v":""},null,{"$f":"AS171*AU171*57","v":57},0,0,{"$f":"AS171*AU171*1.0747*0.033","v":3.5465099999999999E-2},0,0,{"$f":"AS171*AU171*AF171*0.033","v":8.3820000000000006E-3},{"$f":"AS171*AU171*AG171*1.0747*0.033","v":1.0958715900000001E-2},{"$f":"AS171*AU171*10*-0.008","v":-0.08},{"$f":"AS171*AU171*-0.004","v":-4.0000000000000001E-3},{"$f":"AS171*AU171*-0.038","v":-3.7999999999999999E-2},{"$f":"AS171*AU171*-0.001","v":-1E-3},{"$f":"AS171*AU171*-0.009","v":-8.9999999999999993E-3},0,null,"Res","Default DR",{"$f":"Benefits(BL171,BR171,BS171,BT171,BU171,BV171,BW171,BX171,BY171,BZ171,AE171,AH171,AI171,AJ171,AK171,AL171,AM171,AN171,AO171,AP171,CA171,CB171)","v":13.586961125477011},8.2403002538415659,-0.28758372030538804,-2.488095867922179,-7.431345129571984E-2,-0.3629733072373541,-0.31000451364980541,0,0,{"$f":"SUMPRODUCT(CC171:CK171,--(CC171:CK171>0))","v":21.827261379318578},{"$f":"-SUMPRODUCT(CC171:CK171,--(CC171:CK171<0))","v":3.5229708604104464},null,{"$f":"AS171*AU171*2.62","v":2.62},null,null,{"$f":"CM171+CO171","v":6.1429708604104469},{"$f":"IF(NetOrGross=\"Net\",(1-AO171+AP171),1)","v":1},{"$f":"(SUMPRODUCT(CC171:CJ171,--(CC171:CJ171>0))+CN171)*CS171/((-SUMPRODUCT(CC171:CJ171,--(CC171:CJ171<0))+MAX(CO171,CV171)+CP171+CQ171)*CS171+IF(FRIncentives=\"Yes\",CV171*(1-CS171),0))","v":3.5532093306820887},1,{"$f":"AS171*AW171","v":1.9650000000000001},0.75,"Electric","y",null,{"$f":"IF(F171=\"Manual Entry\",\"Manual\",IF(G171=\"\",0,\"X=\"&SUBSTITUTE(SUBSTITUTE(SUBSTITUTE(SUBSTITUTE(SUBSTITUTE(SUBSTITUTE(SUBSTITUTE(SUBSTITUTE(SUBSTITUTE(SUBSTITUTE(SUBSTITUTE(SUBSTITUTE(G171,$ED171,$ED$2&ROW($ED171)),$EC171,$EC$2&ROW($EC171)),$EB171,$EB$2&ROW($EB171)),$EA171,$EA$2&ROW($EA171)),$DZ171,$DZ$2&ROW($DZ171)),$DY171,$DY$2&ROW($DY171)),$DX171,$DX$2&ROW($DX171)),$DW171,$DW$2&ROW($DW171)),$DV171,$DV$2&ROW($DV171)),$DU171,$DU$2&ROW($DU171)),$DT171,$DT$2&ROW($DT171)),$DS171,$DS$2&ROW($DS171))))","v":"X=AS171*AU171*2.62"},{"$f":"IF(I171=\"Manual Entry\",\"Manual\",IF(J171=\"\",0,\"X=\"&SUBSTITUTE(SUBSTITUTE(SUBSTITUTE(SUBSTITUTE(SUBSTITUTE(SUBSTITUTE(SUBSTITUTE(SUBSTITUTE(SUBSTITUTE(SUBSTITUTE(SUBSTITUTE(SUBSTITUTE(J171,$ED171,$ED$2&ROW($ED171)),$EC171,$EC$2&ROW($EC171)),$EB171,$EB$2&ROW($EB171)),$EA171,$EA$2&ROW($EA171)),$DZ171,$DZ$2&ROW($DZ171)),$DY171,$DY$2&ROW($DY171)),$DX171,$DX$2&ROW($DX171)),$DW171,$DW$2&ROW($DW171)),$DV171,$DV$2&ROW($DV171)),$DU171,$DU$2&ROW($DU171)),$DT171,$DT$2&ROW($DT171)),$DS171,$DS$2&ROW($DS171))))","v":"X=AS171*AW171"},{"$f":"IF(O171=\"\",0,\"X=\"&SUBSTITUTE(SUBSTITUTE(SUBSTITUTE(SUBSTITUTE(SUBSTITUTE(SUBSTITUTE(SUBSTITUTE(SUBSTITUTE(SUBSTITUTE(SUBSTITUTE(SUBSTITUTE(SUBSTITUTE(O171,$ED171,$ED$2&ROW($ED171)),$EC171,$EC$2&ROW($EC171)),$EB171,$EB$2&ROW($EB171)),$EA171,$EA$2&ROW($EA171)),$DZ171,$DZ$2&ROW($DZ171)),$DY171,$DY$2&ROW($DY171)),$DX171,$DX$2&ROW($DX171)),$DW171,$DW$2&ROW($DW171)),$DV171,$DV$2&ROW($DV171)),$DU171,$DU$2&ROW($DU171)),$DT171,$DT$2&ROW($DT171)),$DS171,$DS$2&ROW($DS171)))","v":"X=AS171*AU171*57"},{"$f":"IF(P171=\"\",0,\"X=\"&SUBSTITUTE(SUBSTITUTE(SUBSTITUTE(SUBSTITUTE(SUBSTITUTE(SUBSTITUTE(SUBSTITUTE(SUBSTITUTE(SUBSTITUTE(SUBSTITUTE(SUBSTITUTE(SUBSTITUTE(P171,$ED171,$ED$2&ROW($ED171)),$EC171,$EC$2&ROW($EC171)),$EB171,$EB$2&ROW($EB171)),$EA171,$EA$2&ROW($EA171)),$DZ171,$DZ$2&ROW($DZ171)),$DY171,$DY$2&ROW($DY171)),$DX171,$DX$2&ROW($DX171)),$DW171,$DW$2&ROW($DW171)),$DV171,$DV$2&ROW($DV171)),$DU171,$DU$2&ROW($DU171)),$DT171,$DT$2&ROW($DT171)),$DS171,$DS$2&ROW($DS171)))","v":0},{"$f":"IF(Q171=\"\",0,\"X=\"&SUBSTITUTE(SUBSTITUTE(SUBSTITUTE(SUBSTITUTE(SUBSTITUTE(SUBSTITUTE(SUBSTITUTE(SUBSTITUTE(SUBSTITUTE(SUBSTITUTE(SUBSTITUTE(SUBSTITUTE(Q171,$ED171,$ED$2&ROW($ED171)),$EC171,$EC$2&ROW($EC171)),$EB171,$EB$2&ROW($EB171)),$EA171,$EA$2&ROW($EA171)),$DZ171,$DZ$2&ROW($DZ171)),$DY171,$DY$2&ROW($DY171)),$DX171,$DX$2&ROW($DX171)),$DW171,$DW$2&ROW($DW171)),$DV171,$DV$2&ROW($DV171)),$DU171,$DU$2&ROW($DU171)),$DT171,$DT$2&ROW($DT171)),$DS171,$DS$2&ROW($DS171)))","v":0},{"$f":"IF(R171=\"\",0,\"X=\"&SUBSTITUTE(SUBSTITUTE(SUBSTITUTE(SUBSTITUTE(SUBSTITUTE(SUBSTITUTE(SUBSTITUTE(SUBSTITUTE(SUBSTITUTE(SUBSTITUTE(SUBSTITUTE(SUBSTITUTE(R171,$ED171,$ED$2&ROW($ED171)),$EC171,$EC$2&ROW($EC171)),$EB171,$EB$2&ROW($EB171)),$EA171,$EA$2&ROW($EA171)),$DZ171,$DZ$2&ROW($DZ171)),$DY171,$DY$2&ROW($DY171)),$DX171,$DX$2&ROW($DX171)),$DW171,$DW$2&ROW($DW171)),$DV171,$DV$2&ROW($DV171)),$DU171,$DU$2&ROW($DU171)),$DT171,$DT$2&ROW($DT171)),$DS171,$DS$2&ROW($DS171)))","v":"X=AS171*AU171*1.0747*0.033"},{"$f":"IF(S171=\"\",0,\"X=\"&SUBSTITUTE(SUBSTITUTE(SUBSTITUTE(SUBSTITUTE(SUBSTITUTE(SUBSTITUTE(SUBSTITUTE(SUBSTITUTE(SUBSTITUTE(SUBSTITUTE(SUBSTITUTE(SUBSTITUTE(S171,$ED171,$ED$2&ROW($ED171)),$EC171,$EC$2&ROW($EC171)),$EB171,$EB$2&ROW($EB171)),$EA171,$EA$2&ROW($EA171)),$DZ171,$DZ$2&ROW($DZ171)),$DY171,$DY$2&ROW($DY171)),$DX171,$DX$2&ROW($DX171)),$DW171,$DW$2&ROW($DW171)),$DV171,$DV$2&ROW($DV171)),$DU171,$DU$2&ROW($DU171)),$DT171,$DT$2&ROW($DT171)),$DS171,$DS$2&ROW($DS171)))","v":0},{"$f":"IF(T171=\"\",0,\"X=\"&SUBSTITUTE(SUBSTITUTE(SUBSTITUTE(SUBSTITUTE(SUBSTITUTE(SUBSTITUTE(SUBSTITUTE(SUBSTITUTE(SUBSTITUTE(SUBSTITUTE(SUBSTITUTE(SUBSTITUTE(T171,$ED171,$ED$2&ROW($ED171)),$EC171,$EC$2&ROW($EC171)),$EB171,$EB$2&ROW($EB171)),$EA171,$EA$2&ROW($EA171)),$DZ171,$DZ$2&ROW($DZ171)),$DY171,$DY$2&ROW($DY171)),$DX171,$DX$2&ROW($DX171)),$DW171,$DW$2&ROW($DW171)),$DV171,$DV$2&ROW($DV171)),$DU171,$DU$2&ROW($DU171)),$DT171,$DT$2&ROW($DT171)),$DS171,$DS$2&ROW($DS171)))","v":0},{"$f":"IF(U171=\"\",0,\"X=\"&SUBSTITUTE(SUBSTITUTE(SUBSTITUTE(SUBSTITUTE(SUBSTITUTE(SUBSTITUTE(SUBSTITUTE(SUBSTITUTE(SUBSTITUTE(SUBSTITUTE(SUBSTITUTE(SUBSTITUTE(U171,$ED171,$ED$2&ROW($ED171)),$EC171,$EC$2&ROW($EC171)),$EB171,$EB$2&ROW($EB171)),$EA171,$EA$2&ROW($EA171)),$DZ171,$DZ$2&ROW($DZ171)),$DY171,$DY$2&ROW($DY171)),$DX171,$DX$2&ROW($DX171)),$DW171,$DW$2&ROW($DW171)),$DV171,$DV$2&ROW($DV171)),$DU171,$DU$2&ROW($DU171)),$DT171,$DT$2&ROW($DT171)),$DS171,$DS$2&ROW($DS171)))","v":"X=AS171*AU171*AF171*0.033"},{"$f":"IF(V171=\"\",0,\"X=\"&SUBSTITUTE(SUBSTITUTE(SUBSTITUTE(SUBSTITUTE(SUBSTITUTE(SUBSTITUTE(SUBSTITUTE(SUBSTITUTE(SUBSTITUTE(SUBSTITUTE(SUBSTITUTE(SUBSTITUTE(V171,$ED171,$ED$2&ROW($ED171)),$EC171,$EC$2&ROW($EC171)),$EB171,$EB$2&ROW($EB171)),$EA171,$EA$2&ROW($EA171)),$DZ171,$DZ$2&ROW($DZ171)),$DY171,$DY$2&ROW($DY171)),$DX171,$DX$2&ROW($DX171)),$DW171,$DW$2&ROW($DW171)),$DV171,$DV$2&ROW($DV171)),$DU171,$DU$2&ROW($DU171)),$DT171,$DT$2&ROW($DT171)),$DS171,$DS$2&ROW($DS171)))","v":"X=AS171*AU171*AG171*1.0747*0.033"},{"$f":"IF(W171=\"\",0,\"X=\"&SUBSTITUTE(SUBSTITUTE(SUBSTITUTE(SUBSTITUTE(SUBSTITUTE(SUBSTITUTE(SUBSTITUTE(SUBSTITUTE(SUBSTITUTE(SUBSTITUTE(SUBSTITUTE(SUBSTITUTE(W171,$ED171,$ED$2&ROW($ED171)),$EC171,$EC$2&ROW($EC171)),$EB171,$EB$2&ROW($EB171)),$EA171,$EA$2&ROW($EA171)),$DZ171,$DZ$2&ROW($DZ171)),$DY171,$DY$2&ROW($DY171)),$DX171,$DX$2&ROW($DX171)),$DW171,$DW$2&ROW($DW171)),$DV171,$DV$2&ROW($DV171)),$DU171,$DU$2&ROW($DU171)),$DT171,$DT$2&ROW($DT171)),$DS171,$DS$2&ROW($DS171)))","v":"X=AS171*AU171*10*-0.008"},{"$f":"IF(X171=\"\",0,\"X=\"&SUBSTITUTE(SUBSTITUTE(SUBSTITUTE(SUBSTITUTE(SUBSTITUTE(SUBSTITUTE(SUBSTITUTE(SUBSTITUTE(SUBSTITUTE(SUBSTITUTE(SUBSTITUTE(SUBSTITUTE(X171,$ED171,$ED$2&ROW($ED171)),$EC171,$EC$2&ROW($EC171)),$EB171,$EB$2&ROW($EB171)),$EA171,$EA$2&ROW($EA171)),$DZ171,$DZ$2&ROW($DZ171)),$DY171,$DY$2&ROW($DY171)),$DX171,$DX$2&ROW($DX171)),$DW171,$DW$2&ROW($DW171)),$DV171,$DV$2&ROW($DV171)),$DU171,$DU$2&ROW($DU171)),$DT171,$DT$2&ROW($DT171)),$DS171,$DS$2&ROW($DS171)))","v":"X=AS171*AU171*-0.004"},{"$f":"IF(Y171=\"\",0,\"X=\"&SUBSTITUTE(SUBSTITUTE(SUBSTITUTE(SUBSTITUTE(SUBSTITUTE(SUBSTITUTE(SUBSTITUTE(SUBSTITUTE(SUBSTITUTE(SUBSTITUTE(SUBSTITUTE(SUBSTITUTE(Y171,$ED171,$ED$2&ROW($ED171)),$EC171,$EC$2&ROW($EC171)),$EB171,$EB$2&ROW($EB171)),$EA171,$EA$2&ROW($EA171)),$DZ171,$DZ$2&ROW($DZ171)),$DY171,$DY$2&ROW($DY171)),$DX171,$DX$2&ROW($DX171)),$DW171,$DW$2&ROW($DW171)),$DV171,$DV$2&ROW($DV171)),$DU171,$DU$2&ROW($DU171)),$DT171,$DT$2&ROW($DT171)),$DS171,$DS$2&ROW($DS171)))","v":"X=AS171*AU171*-0.038"},{"$f":"IF(Z171=\"\",0,\"X=\"&SUBSTITUTE(SUBSTITUTE(SUBSTITUTE(SUBSTITUTE(SUBSTITUTE(SUBSTITUTE(SUBSTITUTE(SUBSTITUTE(SUBSTITUTE(SUBSTITUTE(SUBSTITUTE(SUBSTITUTE(Z171,$ED171,$ED$2&ROW($ED171)),$EC171,$EC$2&ROW($EC171)),$EB171,$EB$2&ROW($EB171)),$EA171,$EA$2&ROW($EA171)),$DZ171,$DZ$2&ROW($DZ171)),$DY171,$DY$2&ROW($DY171)),$DX171,$DX$2&ROW($DX171)),$DW171,$DW$2&ROW($DW171)),$DV171,$DV$2&ROW($DV171)),$DU171,$DU$2&ROW($DU171)),$DT171,$DT$2&ROW($DT171)),$DS171,$DS$2&ROW($DS171)))","v":"X=AS171*AU171*-0.001"},{"$f":"IF(AA171=\"\",0,\"X=\"&SUBSTITUTE(SUBSTITUTE(SUBSTITUTE(SUBSTITUTE(SUBSTITUTE(SUBSTITUTE(SUBSTITUTE(SUBSTITUTE(SUBSTITUTE(SUBSTITUTE(SUBSTITUTE(SUBSTITUTE(AA171,$ED171,$ED$2&ROW($ED171)),$EC171,$EC$2&ROW($EC171)),$EB171,$EB$2&ROW($EB171)),$EA171,$EA$2&ROW($EA171)),$DZ171,$DZ$2&ROW($DZ171)),$DY171,$DY$2&ROW($DY171)),$DX171,$DX$2&ROW($DX171)),$DW171,$DW$2&ROW($DW171)),$DV171,$DV$2&ROW($DV171)),$DU171,$DU$2&ROW($DU171)),$DT171,$DT$2&ROW($DT171)),$DS171,$DS$2&ROW($DS171)))","v":"X=AS171*AU171*-0.009"},{"$f":"IF(AB171=\"\",0,\"X=\"&SUBSTITUTE(SUBSTITUTE(SUBSTITUTE(SUBSTITUTE(SUBSTITUTE(SUBSTITUTE(SUBSTITUTE(SUBSTITUTE(SUBSTITUTE(SUBSTITUTE(SUBSTITUTE(SUBSTITUTE(AB171,$ED171,$ED$2&ROW($ED171)),$EC171,$EC$2&ROW($EC171)),$EB171,$EB$2&ROW($EB171)),$EA171,$EA$2&ROW($EA171)),$DZ171,$DZ$2&ROW($DZ171)),$DY171,$DY$2&ROW($DY171)),$DX171,$DX$2&ROW($DX171)),$DW171,$DW$2&ROW($DW171)),$DV171,$DV$2&ROW($DV171)),$DU171,$DU$2&ROW($DU171)),$DT171,$DT$2&ROW($DT171)),$DS171,$DS$2&ROW($DS171)))","v":0},null,null,"{Factor:WinterCF}","{Factor:SummerCF}",{"$f":"IFERROR(INDEX($EG171:$IV171,MATCH(0,COUNTIF($DR171:DT171,$EG171:$IV171),0)),\"\")","v":"{Measure:Quantity}"},{"$f":"IFERROR(INDEX($EG171:$IV171,MATCH(0,COUNTIF($DR171:DU171,$EG171:$IV171),0)),\"\")","v":"{Package Size}"},{"$f":"IFERROR(INDEX($EG171:$IV171,MATCH(0,COUNTIF($DR171:DV171,$EG171:$IV171),0)),\"\")","v":"{Rebate per Package}"},{"$f":"IFERROR(INDEX($EG171:$IV171,MATCH(0,COUNTIF($DR171:DW171,$EG171:$IV171),0)),\"\")","v":""},{"$f":"IFERROR(INDEX($EG171:$IV171,MATCH(0,COUNTIF($DR171:DX171,$EG171:$IV171),0)),\"\")","v":""},{"$f":"IFERROR(INDEX($EG171:$IV171,MATCH(0,COUNTIF($DR171:DY171,$EG171:$IV171),0)),\"\")","v":""},{"$f":"IFERROR(INDEX($EG171:$IV171,MATCH(0,COUNTIF($DR171:DZ171,$EG171:$IV171),0)),\"\")","v":""},{"$f":"IFERROR(INDEX($EG171:$IV171,MATCH(0,COUNTIF($DR171:EA171,$EG171:$IV171),0)),\"\")","v":""},{"$f":"IFERROR(INDEX($EG171:$IV171,MATCH(0,COUNTIF($DR171:EB171,$EG171:$IV171),0)),\"\")","v":""},{"$f":"IFERROR(INDEX($EG171:$IV171,MATCH(0,COUNTIF($DR171:EC171,$EG171:$IV171),0)),\"\")","v":""},null,null,{"$f":"IFERROR(MID($G171,FIND(CHAR(160),SUBSTITUTE($G171,\"{\",CHAR(160),EG$1)),FIND(CHAR(160),SUBSTITUTE($G171,\"}\",CHAR(160),EG$1))-FIND(CHAR(160),SUBSTITUTE($G171,\"{\",CHAR(160),EG$1))+1),\"\")","v":"{Measure:Quantity}"},{"$f":"IFERROR(MID($G171,FIND(CHAR(160),SUBSTITUTE($G171,\"{\",CHAR(160),EH$1)),FIND(CHAR(160),SUBSTITUTE($G171,\"}\",CHAR(160),EH$1))-FIND(CHAR(160),SUBSTITUTE($G171,\"{\",CHAR(160),EH$1))+1),\"\")","v":"{Package Size}"},{"$f":"IFERROR(MID($G171,FIND(CHAR(160),SUBSTITUTE($G171,\"{\",CHAR(160),EI$1)),FIND(CHAR(160),SUBSTITUTE($G171,\"}\",CHAR(160),EI$1))-FIND(CHAR(160),SUBSTITUTE($G171,\"{\",CHAR(160),EI$1))+1),\"\")","v":""},{"$f":"IFERROR(MID($G171,FIND(CHAR(160),SUBSTITUTE($G171,\"{\",CHAR(160),EJ$1)),FIND(CHAR(160),SUBSTITUTE($G171,\"}\",CHAR(160),EJ$1))-FIND(CHAR(160),SUBSTITUTE($G171,\"{\",CHAR(160),EJ$1))+1),\"\")","v":""},{"$f":"IFERROR(MID($G171,FIND(CHAR(160),SUBSTITUTE($G171,\"{\",CHAR(160),EK$1)),FIND(CHAR(160),SUBSTITUTE($G171,\"}\",CHAR(160),EK$1))-FIND(CHAR(160),SUBSTITUTE($G171,\"{\",CHAR(160),EK$1))+1),\"\")","v":""},{"$f":"IFERROR(MID($G171,FIND(CHAR(160),SUBSTITUTE($G171,\"{\",CHAR(160),EL$1)),FIND(CHAR(160),SUBSTITUTE($G171,\"}\",CHAR(160),EL$1))-FIND(CHAR(160),SUBSTITUTE($G171,\"{\",CHAR(160),EL$1))+1),\"\")","v":""},{"$f":"IFERROR(MID($G171,FIND(CHAR(160),SUBSTITUTE($G171,\"{\",CHAR(160),EM$1)),FIND(CHAR(160),SUBSTITUTE($G171,\"}\",CHAR(160),EM$1))-FIND(CHAR(160),SUBSTITUTE($G171,\"{\",CHAR(160),EM$1))+1),\"\")","v":""},{"$f":"IFERROR(MID($G171,FIND(CHAR(160),SUBSTITUTE($G171,\"{\",CHAR(160),EN$1)),FIND(CHAR(160),SUBSTITUTE($G171,\"}\",CHAR(160),EN$1))-FIND(CHAR(160),SUBSTITUTE($G171,\"{\",CHAR(160),EN$1))+1),\"\")","v":""},{"$f":"IFERROR(MID($G171,FIND(CHAR(160),SUBSTITUTE($G171,\"{\",CHAR(160),EO$1)),FIND(CHAR(160),SUBSTITUTE($G171,\"}\",CHAR(160),EO$1))-FIND(CHAR(160),SUBSTITUTE($G171,\"{\",CHAR(160),EO$1))+1),\"\")","v":""},{"$f":"IFERROR(MID($G171,FIND(CHAR(160),SUBSTITUTE($G171,\"{\",CHAR(160),EP$1)),FIND(CHAR(160),SUBSTITUTE($G171,\"}\",CHAR(160),EP$1))-FIND(CHAR(160),SUBSTITUTE($G171,\"{\",CHAR(160),EP$1))+1),\"\")","v":""},{"$f":"IFERROR(MID($J171,FIND(CHAR(160),SUBSTITUTE($J171,\"{\",CHAR(160),EQ$1)),FIND(CHAR(160),SUBSTITUTE($J171,\"}\",CHAR(160),EQ$1))-FIND(CHAR(160),SUBSTITUTE($J171,\"{\",CHAR(160),EQ$1))+1),\"\")","v":"{Measure:Quantity}"},{"$f":"IFERROR(MID($J171,FIND(CHAR(160),SUBSTITUTE($J171,\"{\",CHAR(160),ER$1)),FIND(CHAR(160),SUBSTITUTE($J171,\"}\",CHAR(160),ER$1))-FIND(CHAR(160),SUBSTITUTE($J171,\"{\",CHAR(160),ER$1))+1),\"\")","v":"{Rebate per Package}"},{"$f":"IFERROR(MID($J171,FIND(CHAR(160),SUBSTITUTE($J171,\"{\",CHAR(160),ES$1)),FIND(CHAR(160),SUBSTITUTE($J171,\"}\",CHAR(160),ES$1))-FIND(CHAR(160),SUBSTITUTE($J171,\"{\",CHAR(160),ES$1))+1),\"\")","v":""},{"$f":"IFERROR(MID($J171,FIND(CHAR(160),SUBSTITUTE($J171,\"{\",CHAR(160),ET$1)),FIND(CHAR(160),SUBSTITUTE($J171,\"}\",CHAR(160),ET$1))-FIND(CHAR(160),SUBSTITUTE($J171,\"{\",CHAR(160),ET$1))+1),\"\")","v":""},{"$f":"IFERROR(MID($J171,FIND(CHAR(160),SUBSTITUTE($J171,\"{\",CHAR(160),EU$1)),FIND(CHAR(160),SUBSTITUTE($J171,\"}\",CHAR(160),EU$1))-FIND(CHAR(160),SUBSTITUTE($J171,\"{\",CHAR(160),EU$1))+1),\"\")","v":""},{"$f":"IFERROR(MID($J171,FIND(CHAR(160),SUBSTITUTE($J171,\"{\",CHAR(160),EV$1)),FIND(CHAR(160),SUBSTITUTE($J171,\"}\",CHAR(160),EV$1))-FIND(CHAR(160),SUBSTITUTE($J171,\"{\",CHAR(160),EV$1))+1),\"\")","v":""},{"$f":"IFERROR(MID($J171,FIND(CHAR(160),SUBSTITUTE($J171,\"{\",CHAR(160),EW$1)),FIND(CHAR(160),SUBSTITUTE($J171,\"}\",CHAR(160),EW$1))-FIND(CHAR(160),SUBSTITUTE($J171,\"{\",CHAR(160),EW$1))+1),\"\")","v":""},{"$f":"IFERROR(MID($J171,FIND(CHAR(160),SUBSTITUTE($J171,\"{\",CHAR(160),EX$1)),FIND(CHAR(160),SUBSTITUTE($J171,\"}\",CHAR(160),EX$1))-FIND(CHAR(160),SUBSTITUTE($J171,\"{\",CHAR(160),EX$1))+1),\"\")","v":""},{"$f":"IFERROR(MID($J171,FIND(CHAR(160),SUBSTITUTE($J171,\"{\",CHAR(160),EY$1)),FIND(CHAR(160),SUBSTITUTE($J171,\"}\",CHAR(160),EY$1))-FIND(CHAR(160),SUBSTITUTE($J171,\"{\",CHAR(160),EY$1))+1),\"\")","v":""},{"$f":"IFERROR(MID($J171,FIND(CHAR(160),SUBSTITUTE($J171,\"{\",CHAR(160),EZ$1)),FIND(CHAR(160),SUBSTITUTE($J171,\"}\",CHAR(160),EZ$1))-FIND(CHAR(160),SUBSTITUTE($J171,\"{\",CHAR(160),EZ$1))+1),\"\")","v":""},{"$f":"IFERROR(MID($J171,FIND(CHAR(160),SUBSTITUTE($J171,\"{\",CHAR(160),FA$1)),FIND(CHAR(160),SUBSTITUTE($J171,\"}\",CHAR(160),FA$1))-FIND(CHAR(160),SUBSTITUTE($J171,\"{\",CHAR(160),FA$1))+1),\"\")","v":"{Measure:Quantity}"},{"$f":"IFERROR(MID($J171,FIND(CHAR(160),SUBSTITUTE($J171,\"{\",CHAR(160),FB$1)),FIND(CHAR(160),SUBSTITUTE($J171,\"}\",CHAR(160),FB$1))-FIND(CHAR(160),SUBSTITUTE($J171,\"{\",CHAR(160),FB$1))+1),\"\")","v":"{Rebate per Package}"},{"$f":"IFERROR(MID($O171,FIND(CHAR(160),SUBSTITUTE($O171,\"{\",CHAR(160),FC$1)),FIND(CHAR(160),SUBSTITUTE($O171,\"}\",CHAR(160),FC$1))-FIND(CHAR(160),SUBSTITUTE($O171,\"{\",CHAR(160),FC$1))+1),\"\")","v":""},{"$f":"IFERROR(MID($O171,FIND(CHAR(160),SUBSTITUTE($O171,\"{\",CHAR(160),FD$1)),FIND(CHAR(160),SUBSTITUTE($O171,\"}\",CHAR(160),FD$1))-FIND(CHAR(160),SUBSTITUTE($O171,\"{\",CHAR(160),FD$1))+1),\"\")","v":""},{"$f":"IFERROR(MID($O171,FIND(CHAR(160),SUBSTITUTE($O171,\"{\",CHAR(160),FE$1)),FIND(CHAR(160),SUBSTITUTE($O171,\"}\",CHAR(160),FE$1))-FIND(CHAR(160),SUBSTITUTE($O171,\"{\",CHAR(160),FE$1))+1),\"\")","v":""},{"$f":"IFERROR(MID($O171,FIND(CHAR(160),SUBSTITUTE($O171,\"{\",CHAR(160),FF$1)),FIND(CHAR(160),SUBSTITUTE($O171,\"}\",CHAR(160),FF$1))-FIND(CHAR(160),SUBSTITUTE($O171,\"{\",CHAR(160),FF$1))+1),\"\")","v":""},{"$f":"IFERROR(MID($O171,FIND(CHAR(160),SUBSTITUTE($O171,\"{\",CHAR(160),FG$1)),FIND(CHAR(160),SUBSTITUTE($O171,\"}\",CHAR(160),FG$1))-FIND(CHAR(160),SUBSTITUTE($O171,\"{\",CHAR(160),FG$1))+1),\"\")","v":""},{"$f":"IFERROR(MID($O171,FIND(CHAR(160),SUBSTITUTE($O171,\"{\",CHAR(160),FH$1)),FIND(CHAR(160),SUBSTITUTE($O171,\"}\",CHAR(160),FH$1))-FIND(CHAR(160),SUBSTITUTE($O171,\"{\",CHAR(160),FH$1))+1),\"\")","v":""},{"$f":"IFERROR(MID($O171,FIND(CHAR(160),SUBSTITUTE($O171,\"{\",CHAR(160),FI$1)),FIND(CHAR(160),SUBSTITUTE($O171,\"}\",CHAR(160),FI$1))-FIND(CHAR(160),SUBSTITUTE($O171,\"{\",CHAR(160),FI$1))+1),\"\")","v":""},{"$f":"IFERROR(MID($O171,FIND(CHAR(160),SUBSTITUTE($O171,\"{\",CHAR(160),FJ$1)),FIND(CHAR(160),SUBSTITUTE($O171,\"}\",CHAR(160),FJ$1))-FIND(CHAR(160),SUBSTITUTE($O171,\"{\",CHAR(160),FJ$1))+1),\"\")","v":""},{"$f":"IFERROR(MID($O171,FIND(CHAR(160),SUBSTITUTE($O171,\"{\",CHAR(160),FK$1)),FIND(CHAR(160),SUBSTITUTE($O171,\"}\",CHAR(160),FK$1))-FIND(CHAR(160),SUBSTITUTE($O171,\"{\",CHAR(160),FK$1))+1),\"\")","v":"{Measure:Quantity}"},{"$f":"IFERROR(MID($O171,FIND(CHAR(160),SUBSTITUTE($O171,\"{\",CHAR(160),FL$1)),FIND(CHAR(160),SUBSTITUTE($O171,\"}\",CHAR(160),FL$1))-FIND(CHAR(160),SUBSTITUTE($O171,\"{\",CHAR(160),FL$1))+1),\"\")","v":"{Package Size}"},{"$f":"IFERROR(MID($R171,FIND(CHAR(160),SUBSTITUTE($R171,\"{\",CHAR(160),FM$1)),FIND(CHAR(160),SUBSTITUTE($R171,\"}\",CHAR(160),FM$1))-FIND(CHAR(160),SUBSTITUTE($R171,\"{\",CHAR(160),FM$1))+1),\"\")","v":""},{"$f":"IFERROR(MID($R171,FIND(CHAR(160),SUBSTITUTE($R171,\"{\",CHAR(160),FN$1)),FIND(CHAR(160),SUBSTITUTE($R171,\"}\",CHAR(160),FN$1))-FIND(CHAR(160),SUBSTITUTE($R171,\"{\",CHAR(160),FN$1))+1),\"\")","v":""},{"$f":"IFERROR(MID($R171,FIND(CHAR(160),SUBSTITUTE($R171,\"{\",CHAR(160),FO$1)),FIND(CHAR(160),SUBSTITUTE($R171,\"}\",CHAR(160),FO$1))-FIND(CHAR(160),SUBSTITUTE($R171,\"{\",CHAR(160),FO$1))+1),\"\")","v":""},{"$f":"IFERROR(MID($R171,FIND(CHAR(160),SUBSTITUTE($R171,\"{\",CHAR(160),FP$1)),FIND(CHAR(160),SUBSTITUTE($R171,\"}\",CHAR(160),FP$1))-FIND(CHAR(160),SUBSTITUTE($R171,\"{\",CHAR(160),FP$1))+1),\"\")","v":""},{"$f":"IFERROR(MID($R171,FIND(CHAR(160),SUBSTITUTE($R171,\"{\",CHAR(160),FQ$1)),FIND(CHAR(160),SUBSTITUTE($R171,\"}\",CHAR(160),FQ$1))-FIND(CHAR(160),SUBSTITUTE($R171,\"{\",CHAR(160),FQ$1))+1),\"\")","v":""},{"$f":"IFERROR(MID($R171,FIND(CHAR(160),SUBSTITUTE($R171,\"{\",CHAR(160),FR$1)),FIND(CHAR(160),SUBSTITUTE($R171,\"}\",CHAR(160),FR$1))-FIND(CHAR(160),SUBSTITUTE($R171,\"{\",CHAR(160),FR$1))+1),\"\")","v":""},{"$f":"IFERROR(MID($R171,FIND(CHAR(160),SUBSTITUTE($R171,\"{\",CHAR(160),FS$1)),FIND(CHAR(160),SUBSTITUTE($R171,\"}\",CHAR(160),FS$1))-FIND(CHAR(160),SUBSTITUTE($R171,\"{\",CHAR(160),FS$1))+1),\"\")","v":""},{"$f":"IFERROR(MID($R171,FIND(CHAR(160),SUBSTITUTE($R171,\"{\",CHAR(160),FT$1)),FIND(CHAR(160),SUBSTITUTE($R171,\"}\",CHAR(160),FT$1))-FIND(CHAR(160),SUBSTITUTE($R171,\"{\",CHAR(160),FT$1))+1),\"\")","v":""},{"$f":"IFERROR(MID($R171,FIND(CHAR(160),SUBSTITUTE($R171,\"{\",CHAR(160),FU$1)),FIND(CHAR(160),SUBSTITUTE($R171,\"}\",CHAR(160),FU$1))-FIND(CHAR(160),SUBSTITUTE($R171,\"{\",CHAR(160),FU$1))+1),\"\")","v":"{Measure:Quantity}"},{"$f":"IFERROR(MID($R171,FIND(CHAR(160),SUBSTITUTE($R171,\"{\",CHAR(160),FV$1)),FIND(CHAR(160),SUBSTITUTE($R171,\"}\",CHAR(160),FV$1))-FIND(CHAR(160),SUBSTITUTE($R171,\"{\",CHAR(160),FV$1))+1),\"\")","v":"{Package Size}"},{"$f":"IFERROR(MID($U171,FIND(CHAR(160),SUBSTITUTE($U171,\"{\",CHAR(160),FW$1)),FIND(CHAR(160),SUBSTITUTE($U171,\"}\",CHAR(160),FW$1))-FIND(CHAR(160),SUBSTITUTE($U171,\"{\",CHAR(160),FW$1))+1),\"\")","v":"{Factor:WinterCF}"},{"$f":"IFERROR(MID($U171,FIND(CHAR(160),SUBSTITUTE($U171,\"{\",CHAR(160),FX$1)),FIND(CHAR(160),SUBSTITUTE($U171,\"}\",CHAR(160),FX$1))-FIND(CHAR(160),SUBSTITUTE($U171,\"{\",CHAR(160),FX$1))+1),\"\")","v":""},{"$f":"IFERROR(MID($U171,FIND(CHAR(160),SUBSTITUTE($U171,\"{\",CHAR(160),FY$1)),FIND(CHAR(160),SUBSTITUTE($U171,\"}\",CHAR(160),FY$1))-FIND(CHAR(160),SUBSTITUTE($U171,\"{\",CHAR(160),FY$1))+1),\"\")","v":""},{"$f":"IFERROR(MID($U171,FIND(CHAR(160),SUBSTITUTE($U171,\"{\",CHAR(160),FZ$1)),FIND(CHAR(160),SUBSTITUTE($U171,\"}\",CHAR(160),FZ$1))-FIND(CHAR(160),SUBSTITUTE($U171,\"{\",CHAR(160),FZ$1))+1),\"\")","v":""},{"$f":"IFERROR(MID($U171,FIND(CHAR(160),SUBSTITUTE($U171,\"{\",CHAR(160),GA$1)),FIND(CHAR(160),SUBSTITUTE($U171,\"}\",CHAR(160),GA$1))-FIND(CHAR(160),SUBSTITUTE($U171,\"{\",CHAR(160),GA$1))+1),\"\")","v":""},{"$f":"IFERROR(MID($U171,FIND(CHAR(160),SUBSTITUTE($U171,\"{\",CHAR(160),GB$1)),FIND(CHAR(160),SUBSTITUTE($U171,\"}\",CHAR(160),GB$1))-FIND(CHAR(160),SUBSTITUTE($U171,\"{\",CHAR(160),GB$1))+1),\"\")","v":""},{"$f":"IFERROR(MID($U171,FIND(CHAR(160),SUBSTITUTE($U171,\"{\",CHAR(160),GC$1)),FIND(CHAR(160),SUBSTITUTE($U171,\"}\",CHAR(160),GC$1))-FIND(CHAR(160),SUBSTITUTE($U171,\"{\",CHAR(160),GC$1))+1),\"\")","v":""},{"$f":"IFERROR(MID($U171,FIND(CHAR(160),SUBSTITUTE($U171,\"{\",CHAR(160),GD$1)),FIND(CHAR(160),SUBSTITUTE($U171,\"}\",CHAR(160),GD$1))-FIND(CHAR(160),SUBSTITUTE($U171,\"{\",CHAR(160),GD$1))+1),\"\")","v":""},{"$f":"IFERROR(MID($U171,FIND(CHAR(160),SUBSTITUTE($U171,\"{\",CHAR(160),GE$1)),FIND(CHAR(160),SUBSTITUTE($U171,\"}\",CHAR(160),GE$1))-FIND(CHAR(160),SUBSTITUTE($U171,\"{\",CHAR(160),GE$1))+1),\"\")","v":"{Measure:Quantity}"},{"$f":"IFERROR(MID($U171,FIND(CHAR(160),SUBSTITUTE($U171,\"{\",CHAR(160),GF$1)),FIND(CHAR(160),SUBSTITUTE($U171,\"}\",CHAR(160),GF$1))-FIND(CHAR(160),SUBSTITUTE($U171,\"{\",CHAR(160),GF$1))+1),\"\")","v":"{Package Size}"},{"$f":"IFERROR(MID($V171,FIND(CHAR(160),SUBSTITUTE($V171,\"{\",CHAR(160),GG$1)),FIND(CHAR(160),SUBSTITUTE($V171,\"}\",CHAR(160),GG$1))-FIND(CHAR(160),SUBSTITUTE($V171,\"{\",CHAR(160),GG$1))+1),\"\")","v":"{Factor:SummerCF}"},{"$f":"IFERROR(MID($V171,FIND(CHAR(160),SUBSTITUTE($V171,\"{\",CHAR(160),GH$1)),FIND(CHAR(160),SUBSTITUTE($V171,\"}\",CHAR(160),GH$1))-FIND(CHAR(160),SUBSTITUTE($V171,\"{\",CHAR(160),GH$1))+1),\"\")","v":""},{"$f":"IFERROR(MID($V171,FIND(CHAR(160),SUBSTITUTE($V171,\"{\",CHAR(160),GI$1)),FIND(CHAR(160),SUBSTITUTE($V171,\"}\",CHAR(160),GI$1))-FIND(CHAR(160),SUBSTITUTE($V171,\"{\",CHAR(160),GI$1))+1),\"\")","v":""},{"$f":"IFERROR(MID($V171,FIND(CHAR(160),SUBSTITUTE($V171,\"{\",CHAR(160),GJ$1)),FIND(CHAR(160),SUBSTITUTE($V171,\"}\",CHAR(160),GJ$1))-FIND(CHAR(160),SUBSTITUTE($V171,\"{\",CHAR(160),GJ$1))+1),\"\")","v":""},{"$f":"IFERROR(MID($V171,FIND(CHAR(160),SUBSTITUTE($V171,\"{\",CHAR(160),GK$1)),FIND(CHAR(160),SUBSTITUTE($V171,\"}\",CHAR(160),GK$1))-FIND(CHAR(160),SUBSTITUTE($V171,\"{\",CHAR(160),GK$1))+1),\"\")","v":""},{"$f":"IFERROR(MID($V171,FIND(CHAR(160),SUBSTITUTE($V171,\"{\",CHAR(160),GL$1)),FIND(CHAR(160),SUBSTITUTE($V171,\"}\",CHAR(160),GL$1))-FIND(CHAR(160),SUBSTITUTE($V171,\"{\",CHAR(160),GL$1))+1),\"\")","v":""},{"$f":"IFERROR(MID($V171,FIND(CHAR(160),SUBSTITUTE($V171,\"{\",CHAR(160),GM$1)),FIND(CHAR(160),SUBSTITUTE($V171,\"}\",CHAR(160),GM$1))-FIND(CHAR(160),SUBSTITUTE($V171,\"{\",CHAR(160),GM$1))+1),\"\")","v":""},{"$f":"IFERROR(MID($V171,FIND(CHAR(160),SUBSTITUTE($V171,\"{\",CHAR(160),GN$1)),FIND(CHAR(160),SUBSTITUTE($V171,\"}\",CHAR(160),GN$1))-FIND(CHAR(160),SUBSTITUTE($V171,\"{\",CHAR(160),GN$1))+1),\"\")","v":""},{"$f":"IFERROR(MID($V171,FIND(CHAR(160),SUBSTITUTE($V171,\"{\",CHAR(160),GO$1)),FIND(CHAR(160),SUBSTITUTE($V171,\"}\",CHAR(160),GO$1))-FIND(CHAR(160),SUBSTITUTE($V171,\"{\",CHAR(160),GO$1))+1),\"\")","v":"{Measure:Quantity}"},{"$f":"IFERROR(MID($V171,FIND(CHAR(160),SUBSTITUTE($V171,\"{\",CHAR(160),GP$1)),FIND(CHAR(160),SUBSTITUTE($V171,\"}\",CHAR(160),GP$1))-FIND(CHAR(160),SUBSTITUTE($V171,\"{\",CHAR(160),GP$1))+1),\"\")","v":"{Package Size}"},{"$f":"IFERROR(MID($W171,FIND(CHAR(160),SUBSTITUTE($W171,\"{\",CHAR(160),GQ$1)),FIND(CHAR(160),SUBSTITUTE($W171,\"}\",CHAR(160),GQ$1))-FIND(CHAR(160),SUBSTITUTE($W171,\"{\",CHAR(160),GQ$1))+1),\"\")","v":""},{"$f":"IFERROR(MID($W171,FIND(CHAR(160),SUBSTITUTE($W171,\"{\",CHAR(160),GR$1)),FIND(CHAR(160),SUBSTITUTE($W171,\"}\",CHAR(160),GR$1))-FIND(CHAR(160),SUBSTITUTE($W171,\"{\",CHAR(160),GR$1))+1),\"\")","v":""},{"$f":"IFERROR(MID($W171,FIND(CHAR(160),SUBSTITUTE($W171,\"{\",CHAR(160),GS$1)),FIND(CHAR(160),SUBSTITUTE($W171,\"}\",CHAR(160),GS$1))-FIND(CHAR(160),SUBSTITUTE($W171,\"{\",CHAR(160),GS$1))+1),\"\")","v":""},{"$f":"IFERROR(MID($W171,FIND(CHAR(160),SUBSTITUTE($W171,\"{\",CHAR(160),GT$1)),FIND(CHAR(160),SUBSTITUTE($W171,\"}\",CHAR(160),GT$1))-FIND(CHAR(160),SUBSTITUTE($W171,\"{\",CHAR(160),GT$1))+1),\"\")","v":""},{"$f":"IFERROR(MID($W171,FIND(CHAR(160),SUBSTITUTE($W171,\"{\",CHAR(160),GU$1)),FIND(CHAR(160),SUBSTITUTE($W171,\"}\",CHAR(160),GU$1))-FIND(CHAR(160),SUBSTITUTE($W171,\"{\",CHAR(160),GU$1))+1),\"\")","v":""},{"$f":"IFERROR(MID($W171,FIND(CHAR(160),SUBSTITUTE($W171,\"{\",CHAR(160),GV$1)),FIND(CHAR(160),SUBSTITUTE($W171,\"}\",CHAR(160),GV$1))-FIND(CHAR(160),SUBSTITUTE($W171,\"{\",CHAR(160),GV$1))+1),\"\")","v":""},{"$f":"IFERROR(MID($W171,FIND(CHAR(160),SUBSTITUTE($W171,\"{\",CHAR(160),GW$1)),FIND(CHAR(160),SUBSTITUTE($W171,\"}\",CHAR(160),GW$1))-FIND(CHAR(160),SUBSTITUTE($W171,\"{\",CHAR(160),GW$1))+1),\"\")","v":""},{"$f":"IFERROR(MID($W171,FIND(CHAR(160),SUBSTITUTE($W171,\"{\",CHAR(160),GX$1)),FIND(CHAR(160),SUBSTITUTE($W171,\"}\",CHAR(160),GX$1))-FIND(CHAR(160),SUBSTITUTE($W171,\"{\",CHAR(160),GX$1))+1),\"\")","v":""},{"$f":"IFERROR(MID($W171,FIND(CHAR(160),SUBSTITUTE($W171,\"{\",CHAR(160),GY$1)),FIND(CHAR(160),SUBSTITUTE($W171,\"}\",CHAR(160),GY$1))-FIND(CHAR(160),SUBSTITUTE($W171,\"{\",CHAR(160),GY$1))+1),\"\")","v":"{Measure:Quantity}"},{"$f":"IFERROR(MID($W171,FIND(CHAR(160),SUBSTITUTE($W171,\"{\",CHAR(160),GZ$1)),FIND(CHAR(160),SUBSTITUTE($W171,\"}\",CHAR(160),GZ$1))-FIND(CHAR(160),SUBSTITUTE($W171,\"{\",CHAR(160),GZ$1))+1),\"\")","v":"{Package Size}"},{"$f":"IFERROR(MID($X171,FIND(CHAR(160),SUBSTITUTE($X171,\"{\",CHAR(160),HA$1)),FIND(CHAR(160),SUBSTITUTE($X171,\"}\",CHAR(160),HA$1))-FIND(CHAR(160),SUBSTITUTE($X171,\"{\",CHAR(160),HA$1))+1),\"\")","v":""},{"$f":"IFERROR(MID($X171,FIND(CHAR(160),SUBSTITUTE($X171,\"{\",CHAR(160),HB$1)),FIND(CHAR(160),SUBSTITUTE($X171,\"}\",CHAR(160),HB$1))-FIND(CHAR(160),SUBSTITUTE($X171,\"{\",CHAR(160),HB$1))+1),\"\")","v":""},{"$f":"IFERROR(MID($X171,FIND(CHAR(160),SUBSTITUTE($X171,\"{\",CHAR(160),HC$1)),FIND(CHAR(160),SUBSTITUTE($X171,\"}\",CHAR(160),HC$1))-FIND(CHAR(160),SUBSTITUTE($X171,\"{\",CHAR(160),HC$1))+1),\"\")","v":""},{"$f":"IFERROR(MID($X171,FIND(CHAR(160),SUBSTITUTE($X171,\"{\",CHAR(160),HD$1)),FIND(CHAR(160),SUBSTITUTE($X171,\"}\",CHAR(160),HD$1))-FIND(CHAR(160),SUBSTITUTE($X171,\"{\",CHAR(160),HD$1))+1),\"\")","v":""},{"$f":"IFERROR(MID($X171,FIND(CHAR(160),SUBSTITUTE($X171,\"{\",CHAR(160),HE$1)),FIND(CHAR(160),SUBSTITUTE($X171,\"}\",CHAR(160),HE$1))-FIND(CHAR(160),SUBSTITUTE($X171,\"{\",CHAR(160),HE$1))+1),\"\")","v":""},{"$f":"IFERROR(MID($X171,FIND(CHAR(160),SUBSTITUTE($X171,\"{\",CHAR(160),HF$1)),FIND(CHAR(160),SUBSTITUTE($X171,\"}\",CHAR(160),HF$1))-FIND(CHAR(160),SUBSTITUTE($X171,\"{\",CHAR(160),HF$1))+1),\"\")","v":""},{"$f":"IFERROR(MID($X171,FIND(CHAR(160),SUBSTITUTE($X171,\"{\",CHAR(160),HG$1)),FIND(CHAR(160),SUBSTITUTE($X171,\"}\",CHAR(160),HG$1))-FIND(CHAR(160),SUBSTITUTE($X171,\"{\",CHAR(160),HG$1))+1),\"\")","v":""},{"$f":"IFERROR(MID($X171,FIND(CHAR(160),SUBSTITUTE($X171,\"{\",CHAR(160),HH$1)),FIND(CHAR(160),SUBSTITUTE($X171,\"}\",CHAR(160),HH$1))-FIND(CHAR(160),SUBSTITUTE($X171,\"{\",CHAR(160),HH$1))+1),\"\")","v":""},{"$f":"IFERROR(MID($X171,FIND(CHAR(160),SUBSTITUTE($X171,\"{\",CHAR(160),HI$1)),FIND(CHAR(160),SUBSTITUTE($X171,\"}\",CHAR(160),HI$1))-FIND(CHAR(160),SUBSTITUTE($X171,\"{\",CHAR(160),HI$1))+1),\"\")","v":"{Measure:Quantity}"},{"$f":"IFERROR(MID($X171,FIND(CHAR(160),SUBSTITUTE($X171,\"{\",CHAR(160),HJ$1)),FIND(CHAR(160),SUBSTITUTE($X171,\"}\",CHAR(160),HJ$1))-FIND(CHAR(160),SUBSTITUTE($X171,\"{\",CHAR(160),HJ$1))+1),\"\")","v":"{Package Size}"},{"$f":"IFERROR(MID($Y171,FIND(CHAR(160),SUBSTITUTE($Y171,\"{\",CHAR(160),HK$1)),FIND(CHAR(160),SUBSTITUTE($Y171,\"}\",CHAR(160),HK$1))-FIND(CHAR(160),SUBSTITUTE($Y171,\"{\",CHAR(160),HK$1))+1),\"\")","v":""},{"$f":"IFERROR(MID($Y171,FIND(CHAR(160),SUBSTITUTE($Y171,\"{\",CHAR(160),HL$1)),FIND(CHAR(160),SUBSTITUTE($Y171,\"}\",CHAR(160),HL$1))-FIND(CHAR(160),SUBSTITUTE($Y171,\"{\",CHAR(160),HL$1))+1),\"\")","v":""},{"$f":"IFERROR(MID($Y171,FIND(CHAR(160),SUBSTITUTE($Y171,\"{\",CHAR(160),HM$1)),FIND(CHAR(160),SUBSTITUTE($Y171,\"}\",CHAR(160),HM$1))-FIND(CHAR(160),SUBSTITUTE($Y171,\"{\",CHAR(160),HM$1))+1),\"\")","v":""},{"$f":"IFERROR(MID($Y171,FIND(CHAR(160),SUBSTITUTE($Y171,\"{\",CHAR(160),HN$1)),FIND(CHAR(160),SUBSTITUTE($Y171,\"}\",CHAR(160),HN$1))-FIND(CHAR(160),SUBSTITUTE($Y171,\"{\",CHAR(160),HN$1))+1),\"\")","v":""},{"$f":"IFERROR(MID($Y171,FIND(CHAR(160),SUBSTITUTE($Y171,\"{\",CHAR(160),HO$1)),FIND(CHAR(160),SUBSTITUTE($Y171,\"}\",CHAR(160),HO$1))-FIND(CHAR(160),SUBSTITUTE($Y171,\"{\",CHAR(160),HO$1))+1),\"\")","v":""},{"$f":"IFERROR(MID($Y171,FIND(CHAR(160),SUBSTITUTE($Y171,\"{\",CHAR(160),HP$1)),FIND(CHAR(160),SUBSTITUTE($Y171,\"}\",CHAR(160),HP$1))-FIND(CHAR(160),SUBSTITUTE($Y171,\"{\",CHAR(160),HP$1))+1),\"\")","v":""},{"$f":"IFERROR(MID($Y171,FIND(CHAR(160),SUBSTITUTE($Y171,\"{\",CHAR(160),HQ$1)),FIND(CHAR(160),SUBSTITUTE($Y171,\"}\",CHAR(160),HQ$1))-FIND(CHAR(160),SUBSTITUTE($Y171,\"{\",CHAR(160),HQ$1))+1),\"\")","v":""},{"$f":"IFERROR(MID($Y171,FIND(CHAR(160),SUBSTITUTE($Y171,\"{\",CHAR(160),HR$1)),FIND(CHAR(160),SUBSTITUTE($Y171,\"}\",CHAR(160),HR$1))-FIND(CHAR(160),SUBSTITUTE($Y171,\"{\",CHAR(160),HR$1))+1),\"\")","v":""},{"$f":"IFERROR(MID($Y171,FIND(CHAR(160),SUBSTITUTE($Y171,\"{\",CHAR(160),HS$1)),FIND(CHAR(160),SUBSTITUTE($Y171,\"}\",CHAR(160),HS$1))-FIND(CHAR(160),SUBSTITUTE($Y171,\"{\",CHAR(160),HS$1))+1),\"\")","v":"{Measure:Quantity}"},{"$f":"IFERROR(MID($Y171,FIND(CHAR(160),SUBSTITUTE($Y171,\"{\",CHAR(160),HT$1)),FIND(CHAR(160),SUBSTITUTE($Y171,\"}\",CHAR(160),HT$1))-FIND(CHAR(160),SUBSTITUTE($Y171,\"{\",CHAR(160),HT$1))+1),\"\")","v":"{Package Size}"},{"$f":"IFERROR(MID($Z171,FIND(CHAR(160),SUBSTITUTE($Z171,\"{\",CHAR(160),HU$1)),FIND(CHAR(160),SUBSTITUTE($Z171,\"}\",CHAR(160),HU$1))-FIND(CHAR(160),SUBSTITUTE($Z171,\"{\",CHAR(160),HU$1))+1),\"\")","v":""},{"$f":"IFERROR(MID($Z171,FIND(CHAR(160),SUBSTITUTE($Z171,\"{\",CHAR(160),HV$1)),FIND(CHAR(160),SUBSTITUTE($Z171,\"}\",CHAR(160),HV$1))-FIND(CHAR(160),SUBSTITUTE($Z171,\"{\",CHAR(160),HV$1))+1),\"\")","v":""},{"$f":"IFERROR(MID($Z171,FIND(CHAR(160),SUBSTITUTE($Z171,\"{\",CHAR(160),HW$1)),FIND(CHAR(160),SUBSTITUTE($Z171,\"}\",CHAR(160),HW$1))-FIND(CHAR(160),SUBSTITUTE($Z171,\"{\",CHAR(160),HW$1))+1),\"\")","v":""},{"$f":"IFERROR(MID($Z171,FIND(CHAR(160),SUBSTITUTE($Z171,\"{\",CHAR(160),HX$1)),FIND(CHAR(160),SUBSTITUTE($Z171,\"}\",CHAR(160),HX$1))-FIND(CHAR(160),SUBSTITUTE($Z171,\"{\",CHAR(160),HX$1))+1),\"\")","v":""},{"$f":"IFERROR(MID($Z171,FIND(CHAR(160),SUBSTITUTE($Z171,\"{\",CHAR(160),HY$1)),FIND(CHAR(160),SUBSTITUTE($Z171,\"}\",CHAR(160),HY$1))-FIND(CHAR(160),SUBSTITUTE($Z171,\"{\",CHAR(160),HY$1))+1),\"\")","v":""},{"$f":"IFERROR(MID($Z171,FIND(CHAR(160),SUBSTITUTE($Z171,\"{\",CHAR(160),HZ$1)),FIND(CHAR(160),SUBSTITUTE($Z171,\"}\",CHAR(160),HZ$1))-FIND(CHAR(160),SUBSTITUTE($Z171,\"{\",CHAR(160),HZ$1))+1),\"\")","v":""},{"$f":"IFERROR(MID($Z171,FIND(CHAR(160),SUBSTITUTE($Z171,\"{\",CHAR(160),IA$1)),FIND(CHAR(160),SUBSTITUTE($Z171,\"}\",CHAR(160),IA$1))-FIND(CHAR(160),SUBSTITUTE($Z171,\"{\",CHAR(160),IA$1))+1),\"\")","v":""},{"$f":"IFERROR(MID($Z171,FIND(CHAR(160),SUBSTITUTE($Z171,\"{\",CHAR(160),IB$1)),FIND(CHAR(160),SUBSTITUTE($Z171,\"}\",CHAR(160),IB$1))-FIND(CHAR(160),SUBSTITUTE($Z171,\"{\",CHAR(160),IB$1))+1),\"\")","v":""},{"$f":"IFERROR(MID($Z171,FIND(CHAR(160),SUBSTITUTE($Z171,\"{\",CHAR(160),IC$1)),FIND(CHAR(160),SUBSTITUTE($Z171,\"}\",CHAR(160),IC$1))-FIND(CHAR(160),SUBSTITUTE($Z171,\"{\",CHAR(160),IC$1))+1),\"\")","v":"{Measure:Quantity}"},{"$f":"IFERROR(MID($Z171,FIND(CHAR(160),SUBSTITUTE($Z171,\"{\",CHAR(160),ID$1)),FIND(CHAR(160),SUBSTITUTE($Z171,\"}\",CHAR(160),ID$1))-FIND(CHAR(160),SUBSTITUTE($Z171,\"{\",CHAR(160),ID$1))+1),\"\")","v":"{Package Size}"},{"$f":"IFERROR(MID($AA171,FIND(CHAR(160),SUBSTITUTE($AA171,\"{\",CHAR(160),IE$1)),FIND(CHAR(160),SUBSTITUTE($AA171,\"}\",CHAR(160),IE$1))-FIND(CHAR(160),SUBSTITUTE($AA171,\"{\",CHAR(160),IE$1))+1),\"\")","v":""},{"$f":"IFERROR(MID($AA171,FIND(CHAR(160),SUBSTITUTE($AA171,\"{\",CHAR(160),IF$1)),FIND(CHAR(160),SUBSTITUTE($AA171,\"}\",CHAR(160),IF$1))-FIND(CHAR(160),SUBSTITUTE($AA171,\"{\",CHAR(160),IF$1))+1),\"\")","v":""},{"$f":"IFERROR(MID($AA171,FIND(CHAR(160),SUBSTITUTE($AA171,\"{\",CHAR(160),IG$1)),FIND(CHAR(160),SUBSTITUTE($AA171,\"}\",CHAR(160),IG$1))-FIND(CHAR(160),SUBSTITUTE($AA171,\"{\",CHAR(160),IG$1))+1),\"\")","v":""},{"$f":"IFERROR(MID($AA171,FIND(CHAR(160),SUBSTITUTE($AA171,\"{\",CHAR(160),IH$1)),FIND(CHAR(160),SUBSTITUTE($AA171,\"}\",CHAR(160),IH$1))-FIND(CHAR(160),SUBSTITUTE($AA171,\"{\",CHAR(160),IH$1))+1),\"\")","v":""},{"$f":"IFERROR(MID($AA171,FIND(CHAR(160),SUBSTITUTE($AA171,\"{\",CHAR(160),II$1)),FIND(CHAR(160),SUBSTITUTE($AA171,\"}\",CHAR(160),II$1))-FIND(CHAR(160),SUBSTITUTE($AA171,\"{\",CHAR(160),II$1))+1),\"\")","v":""},{"$f":"IFERROR(MID($AA171,FIND(CHAR(160),SUBSTITUTE($AA171,\"{\",CHAR(160),IJ$1)),FIND(CHAR(160),SUBSTITUTE($AA171,\"}\",CHAR(160),IJ$1))-FIND(CHAR(160),SUBSTITUTE($AA171,\"{\",CHAR(160),IJ$1))+1),\"\")","v":""},{"$f":"IFERROR(MID($AA171,FIND(CHAR(160),SUBSTITUTE($AA171,\"{\",CHAR(160),IK$1)),FIND(CHAR(160),SUBSTITUTE($AA171,\"}\",CHAR(160),IK$1))-FIND(CHAR(160),SUBSTITUTE($AA171,\"{\",CHAR(160),IK$1))+1),\"\")","v":""},{"$f":"IFERROR(MID($AA171,FIND(CHAR(160),SUBSTITUTE($AA171,\"{\",CHAR(160),IL$1)),FIND(CHAR(160),SUBSTITUTE($AA171,\"}\",CHAR(160),IL$1))-FIND(CHAR(160),SUBSTITUTE($AA171,\"{\",CHAR(160),IL$1))+1),\"\")","v":""},{"$f":"IFERROR(MID($AA171,FIND(CHAR(160),SUBSTITUTE($AA171,\"{\",CHAR(160),IM$1)),FIND(CHAR(160),SUBSTITUTE($AA171,\"}\",CHAR(160),IM$1))-FIND(CHAR(160),SUBSTITUTE($AA171,\"{\",CHAR(160),IM$1))+1),\"\")","v":"{Measure:Quantity}"},{"$f":"IFERROR(MID($AA171,FIND(CHAR(160),SUBSTITUTE($AA171,\"{\",CHAR(160),IN$1)),FIND(CHAR(160),SUBSTITUTE($AA171,\"}\",CHAR(160),IN$1))-FIND(CHAR(160),SUBSTITUTE($AA171,\"{\",CHAR(160),IN$1))+1),\"\")","v":"{Package Size}"},{"$f":"IFERROR(MID($AB171,FIND(CHAR(160),SUBSTITUTE($AB171,\"{\",CHAR(160),IO$1)),FIND(CHAR(160),SUBSTITUTE($AB171,\"}\",CHAR(160),IO$1))-FIND(CHAR(160),SUBSTITUTE($AB171,\"{\",CHAR(160),IO$1))+1),\"\")","v":""},{"$f":"IFERROR(MID($AB171,FIND(CHAR(160),SUBSTITUTE($AB171,\"{\",CHAR(160),IP$1)),FIND(CHAR(160),SUBSTITUTE($AB171,\"}\",CHAR(160),IP$1))-FIND(CHAR(160),SUBSTITUTE($AB171,\"{\",CHAR(160),IP$1))+1),\"\")","v":""},{"$f":"IFERROR(MID($AB171,FIND(CHAR(160),SUBSTITUTE($AB171,\"{\",CHAR(160),IQ$1)),FIND(CHAR(160),SUBSTITUTE($AB171,\"}\",CHAR(160),IQ$1))-FIND(CHAR(160),SUBSTITUTE($AB171,\"{\",CHAR(160),IQ$1))+1),\"\")","v":""},{"$f":"IFERROR(MID($AB171,FIND(CHAR(160),SUBSTITUTE($AB171,\"{\",CHAR(160),IR$1)),FIND(CHAR(160),SUBSTITUTE($AB171,\"}\",CHAR(160),IR$1))-FIND(CHAR(160),SUBSTITUTE($AB171,\"{\",CHAR(160),IR$1))+1),\"\")","v":""},{"$f":"IFERROR(MID($AB171,FIND(CHAR(160),SUBSTITUTE($AB171,\"{\",CHAR(160),IS$1)),FIND(CHAR(160),SUBSTITUTE($AB171,\"}\",CHAR(160),IS$1))-FIND(CHAR(160),SUBSTITUTE($AB171,\"{\",CHAR(160),IS$1))+1),\"\")","v":""},{"$f":"IFERROR(MID($AB171,FIND(CHAR(160),SUBSTITUTE($AB171,\"{\",CHAR(160),IT$1)),FIND(CHAR(160),SUBSTITUTE($AB171,\"}\",CHAR(160),IT$1))-FIND(CHAR(160),SUBSTITUTE($AB171,\"{\",CHAR(160),IT$1))+1),\"\")","v":""},{"$f":"IFERROR(MID($AB171,FIND(CHAR(160),SUBSTITUTE($AB171,\"{\",CHAR(160),IU$1)),FIND(CHAR(160),SUBSTITUTE($AB171,\"}\",CHAR(160),IU$1))-FIND(CHAR(160),SUBSTITUTE($AB171,\"{\",CHAR(160),IU$1))+1),\"\")","v":""},{"$f":"IFERROR(MID($AB171,FIND(CHAR(160),SUBSTITUTE($AB171,\"{\",CHAR(160),IV$1)),FIND(CHAR(160),SUBSTITUTE($AB171,\"}\",CHAR(160),IV$1))-FIND(CHAR(160),SUBSTITUTE($AB171,\"{\",CHAR(160),IV$1))+1),\"\")","v":""},{"$f":"IFERROR(MID($AB171,FIND(CHAR(160),SUBSTITUTE($AB171,\"{\",CHAR(160),IW$1)),FIND(CHAR(160),SUBSTITUTE($AB171,\"}\",CHAR(160),IW$1))-FIND(CHAR(160),SUBSTITUTE($AB171,\"{\",CHAR(160),IW$1))+1),\"\")","v":""},{"$f":"IFERROR(MID($AB171,FIND(CHAR(160),SUBSTITUTE($AB171,\"{\",CHAR(160),IX$1)),FIND(CHAR(160),SUBSTITUTE($AB171,\"}\",CHAR(160),IX$1))-FIND(CHAR(160),SUBSTITUTE($AB171,\"{\",CHAR(160),IX$1))+1),\"\")","v":""},null,{"$f":"10-COUNTIF(DU171:ED171,\"\")","v":3}]
["Distributor Lighting","LED Replacement Lamps T8 U-Bend (Type A)","S111AU","2021-07-01","2022-06-30","Calculated","{Measure:Quantity}*{Package Size}*13.51",0,"Calculated","{Measure:Quantity}*{Rebate per Package}",0,"2021-07-01","2022-06-30","Calculated","{Measure:Quantity}*{Package Size}*50",null,null,"{Measure:Quantity}*{Package Size}*1.0747*0.016",null,null,"{Measure:Quantity}*{Package Size}*{Factor:WinterCF}*0.016","{Measure:Quantity}*{Package Size}*{Factor:SummerCF}*1.0747*0.016","{Measure:Quantity}*{Package Size}*10*-0.021","{Measure:Quantity}*{Package Size}*-0.005","{Measure:Quantity}*{Package Size}*-0.021","{Measure:Quantity}*{Package Size}*-0.001","{Measure:Quantity}*{Package Size}*-0.005",null,"2021-07-01","2022-06-30",16,0.372,0.64500000000000002,0.45,0.218,0.22900000000000001,0.10299999999999999,1,1,1,0.51,0,null,{"$f":"DU172","v":"{Measure:Quantity}"},1,{"$f":"DV172","v":"{Package Size}"},1,{"$f":"DW172","v":"{Rebate per Package}"},{"$f":"CW172*CO172","v":10.1325},{"$f":"DX172","v":""},null,{"$f":"DY172","v":""},null,{"$f":"DZ172","v":""},null,{"$f":"EA172","v":""},null,{"$f":"EB172","v":""},null,{"$f":"EC172","v":""},null,{"$f":"ED172","v":""},null,{"$f":"AS172*AU172*50","v":50},0,0,{"$f":"AS172*AU172*1.0747*0.016","v":1.7195200000000001E-2},0,0,{"$f":"AS172*AU172*AF172*0.016","v":5.9519999999999998E-3},{"$f":"AS172*AU172*AG172*1.0747*0.016","v":1.1090904E-2},{"$f":"AS172*AU172*10*-0.021","v":-0.21000000000000002},{"$f":"AS172*AU172*-0.005","v":-5.0000000000000001E-3},{"$f":"AS172*AU172*-0.021","v":-2.1000000000000001E-2},{"$f":"AS172*AU172*-0.001","v":-1E-3},{"$f":"AS172*AU172*-0.005","v":-5.0000000000000001E-3},0,null,"Res","Default DR",{"$f":"Benefits(BL172,BR172,BS172,BT172,BU172,BV172,BW172,BX172,BY172,BZ172,AE172,AH172,AI172,AJ172,AK172,AL172,AM172,AN172,AO172,AP172,CA172,CB172)","v":69.684769152909737},45.60015232700048,-4.3316033912225276,-9.30385879268694,-0.51559606167104488,-3.0982190578188034,-1.3930820570083862,0,0,{"$f":"SUMPRODUCT(CC172:CK172,--(CC172:CK172>0))","v":115.28492147991022},{"$f":"-SUMPRODUCT(CC172:CK172,--(CC172:CK172<0))","v":18.642359360407703},null,{"$f":"AS172*AU172*13.51","v":13.51},null,null,{"$f":"CM172+CO172","v":32.152359360407701},{"$f":"IF(NetOrGross=\"Net\",(1-AO172+AP172),1)","v":1},{"$f":"(SUMPRODUCT(CC172:CJ172,--(CC172:CJ172>0))+CN172)*CS172/((-SUMPRODUCT(CC172:CJ172,--(CC172:CJ172<0))+MAX(CO172,CV172)+CP172+CQ172)*CS172+IF(FRIncentives=\"Yes\",CV172*(1-CS172),0))","v":3.5855820155416547},1,{"$f":"AS172*AW172","v":10.1325},{"$f":"CW171","v":0.75},"Electric","y",null,{"$f":"IF(F172=\"Manual Entry\",\"Manual\",IF(G172=\"\",0,\"X=\"&SUBSTITUTE(SUBSTITUTE(SUBSTITUTE(SUBSTITUTE(SUBSTITUTE(SUBSTITUTE(SUBSTITUTE(SUBSTITUTE(SUBSTITUTE(SUBSTITUTE(SUBSTITUTE(SUBSTITUTE(G172,$ED172,$ED$2&ROW($ED172)),$EC172,$EC$2&ROW($EC172)),$EB172,$EB$2&ROW($EB172)),$EA172,$EA$2&ROW($EA172)),$DZ172,$DZ$2&ROW($DZ172)),$DY172,$DY$2&ROW($DY172)),$DX172,$DX$2&ROW($DX172)),$DW172,$DW$2&ROW($DW172)),$DV172,$DV$2&ROW($DV172)),$DU172,$DU$2&ROW($DU172)),$DT172,$DT$2&ROW($DT172)),$DS172,$DS$2&ROW($DS172))))","v":"X=AS172*AU172*13.51"},{"$f":"IF(I172=\"Manual Entry\",\"Manual\",IF(J172=\"\",0,\"X=\"&SUBSTITUTE(SUBSTITUTE(SUBSTITUTE(SUBSTITUTE(SUBSTITUTE(SUBSTITUTE(SUBSTITUTE(SUBSTITUTE(SUBSTITUTE(SUBSTITUTE(SUBSTITUTE(SUBSTITUTE(J172,$ED172,$ED$2&ROW($ED172)),$EC172,$EC$2&ROW($EC172)),$EB172,$EB$2&ROW($EB172)),$EA172,$EA$2&ROW($EA172)),$DZ172,$DZ$2&ROW($DZ172)),$DY172,$DY$2&ROW($DY172)),$DX172,$DX$2&ROW($DX172)),$DW172,$DW$2&ROW($DW172)),$DV172,$DV$2&ROW($DV172)),$DU172,$DU$2&ROW($DU172)),$DT172,$DT$2&ROW($DT172)),$DS172,$DS$2&ROW($DS172))))","v":"X=AS172*AW172"},{"$f":"IF(O172=\"\",0,\"X=\"&SUBSTITUTE(SUBSTITUTE(SUBSTITUTE(SUBSTITUTE(SUBSTITUTE(SUBSTITUTE(SUBSTITUTE(SUBSTITUTE(SUBSTITUTE(SUBSTITUTE(SUBSTITUTE(SUBSTITUTE(O172,$ED172,$ED$2&ROW($ED172)),$EC172,$EC$2&ROW($EC172)),$EB172,$EB$2&ROW($EB172)),$EA172,$EA$2&ROW($EA172)),$DZ172,$DZ$2&ROW($DZ172)),$DY172,$DY$2&ROW($DY172)),$DX172,$DX$2&ROW($DX172)),$DW172,$DW$2&ROW($DW172)),$DV172,$DV$2&ROW($DV172)),$DU172,$DU$2&ROW($DU172)),$DT172,$DT$2&ROW($DT172)),$DS172,$DS$2&ROW($DS172)))","v":"X=AS172*AU172*50"},{"$f":"IF(P172=\"\",0,\"X=\"&SUBSTITUTE(SUBSTITUTE(SUBSTITUTE(SUBSTITUTE(SUBSTITUTE(SUBSTITUTE(SUBSTITUTE(SUBSTITUTE(SUBSTITUTE(SUBSTITUTE(SUBSTITUTE(SUBSTITUTE(P172,$ED172,$ED$2&ROW($ED172)),$EC172,$EC$2&ROW($EC172)),$EB172,$EB$2&ROW($EB172)),$EA172,$EA$2&ROW($EA172)),$DZ172,$DZ$2&ROW($DZ172)),$DY172,$DY$2&ROW($DY172)),$DX172,$DX$2&ROW($DX172)),$DW172,$DW$2&ROW($DW172)),$DV172,$DV$2&ROW($DV172)),$DU172,$DU$2&ROW($DU172)),$DT172,$DT$2&ROW($DT172)),$DS172,$DS$2&ROW($DS172)))","v":0},{"$f":"IF(Q172=\"\",0,\"X=\"&SUBSTITUTE(SUBSTITUTE(SUBSTITUTE(SUBSTITUTE(SUBSTITUTE(SUBSTITUTE(SUBSTITUTE(SUBSTITUTE(SUBSTITUTE(SUBSTITUTE(SUBSTITUTE(SUBSTITUTE(Q172,$ED172,$ED$2&ROW($ED172)),$EC172,$EC$2&ROW($EC172)),$EB172,$EB$2&ROW($EB172)),$EA172,$EA$2&ROW($EA172)),$DZ172,$DZ$2&ROW($DZ172)),$DY172,$DY$2&ROW($DY172)),$DX172,$DX$2&ROW($DX172)),$DW172,$DW$2&ROW($DW172)),$DV172,$DV$2&ROW($DV172)),$DU172,$DU$2&ROW($DU172)),$DT172,$DT$2&ROW($DT172)),$DS172,$DS$2&ROW($DS172)))","v":0},{"$f":"IF(R172=\"\",0,\"X=\"&SUBSTITUTE(SUBSTITUTE(SUBSTITUTE(SUBSTITUTE(SUBSTITUTE(SUBSTITUTE(SUBSTITUTE(SUBSTITUTE(SUBSTITUTE(SUBSTITUTE(SUBSTITUTE(SUBSTITUTE(R172,$ED172,$ED$2&ROW($ED172)),$EC172,$EC$2&ROW($EC172)),$EB172,$EB$2&ROW($EB172)),$EA172,$EA$2&ROW($EA172)),$DZ172,$DZ$2&ROW($DZ172)),$DY172,$DY$2&ROW($DY172)),$DX172,$DX$2&ROW($DX172)),$DW172,$DW$2&ROW($DW172)),$DV172,$DV$2&ROW($DV172)),$DU172,$DU$2&ROW($DU172)),$DT172,$DT$2&ROW($DT172)),$DS172,$DS$2&ROW($DS172)))","v":"X=AS172*AU172*1.0747*0.016"},{"$f":"IF(S172=\"\",0,\"X=\"&SUBSTITUTE(SUBSTITUTE(SUBSTITUTE(SUBSTITUTE(SUBSTITUTE(SUBSTITUTE(SUBSTITUTE(SUBSTITUTE(SUBSTITUTE(SUBSTITUTE(SUBSTITUTE(SUBSTITUTE(S172,$ED172,$ED$2&ROW($ED172)),$EC172,$EC$2&ROW($EC172)),$EB172,$EB$2&ROW($EB172)),$EA172,$EA$2&ROW($EA172)),$DZ172,$DZ$2&ROW($DZ172)),$DY172,$DY$2&ROW($DY172)),$DX172,$DX$2&ROW($DX172)),$DW172,$DW$2&ROW($DW172)),$DV172,$DV$2&ROW($DV172)),$DU172,$DU$2&ROW($DU172)),$DT172,$DT$2&ROW($DT172)),$DS172,$DS$2&ROW($DS172)))","v":0},{"$f":"IF(T172=\"\",0,\"X=\"&SUBSTITUTE(SUBSTITUTE(SUBSTITUTE(SUBSTITUTE(SUBSTITUTE(SUBSTITUTE(SUBSTITUTE(SUBSTITUTE(SUBSTITUTE(SUBSTITUTE(SUBSTITUTE(SUBSTITUTE(T172,$ED172,$ED$2&ROW($ED172)),$EC172,$EC$2&ROW($EC172)),$EB172,$EB$2&ROW($EB172)),$EA172,$EA$2&ROW($EA172)),$DZ172,$DZ$2&ROW($DZ172)),$DY172,$DY$2&ROW($DY172)),$DX172,$DX$2&ROW($DX172)),$DW172,$DW$2&ROW($DW172)),$DV172,$DV$2&ROW($DV172)),$DU172,$DU$2&ROW($DU172)),$DT172,$DT$2&ROW($DT172)),$DS172,$DS$2&ROW($DS172)))","v":0},{"$f":"IF(U172=\"\",0,\"X=\"&SUBSTITUTE(SUBSTITUTE(SUBSTITUTE(SUBSTITUTE(SUBSTITUTE(SUBSTITUTE(SUBSTITUTE(SUBSTITUTE(SUBSTITUTE(SUBSTITUTE(SUBSTITUTE(SUBSTITUTE(U172,$ED172,$ED$2&ROW($ED172)),$EC172,$EC$2&ROW($EC172)),$EB172,$EB$2&ROW($EB172)),$EA172,$EA$2&ROW($EA172)),$DZ172,$DZ$2&ROW($DZ172)),$DY172,$DY$2&ROW($DY172)),$DX172,$DX$2&ROW($DX172)),$DW172,$DW$2&ROW($DW172)),$DV172,$DV$2&ROW($DV172)),$DU172,$DU$2&ROW($DU172)),$DT172,$DT$2&ROW($DT172)),$DS172,$DS$2&ROW($DS172)))","v":"X=AS172*AU172*AF172*0.016"},{"$f":"IF(V172=\"\",0,\"X=\"&SUBSTITUTE(SUBSTITUTE(SUBSTITUTE(SUBSTITUTE(SUBSTITUTE(SUBSTITUTE(SUBSTITUTE(SUBSTITUTE(SUBSTITUTE(SUBSTITUTE(SUBSTITUTE(SUBSTITUTE(V172,$ED172,$ED$2&ROW($ED172)),$EC172,$EC$2&ROW($EC172)),$EB172,$EB$2&ROW($EB172)),$EA172,$EA$2&ROW($EA172)),$DZ172,$DZ$2&ROW($DZ172)),$DY172,$DY$2&ROW($DY172)),$DX172,$DX$2&ROW($DX172)),$DW172,$DW$2&ROW($DW172)),$DV172,$DV$2&ROW($DV172)),$DU172,$DU$2&ROW($DU172)),$DT172,$DT$2&ROW($DT172)),$DS172,$DS$2&ROW($DS172)))","v":"X=AS172*AU172*AG172*1.0747*0.016"},{"$f":"IF(W172=\"\",0,\"X=\"&SUBSTITUTE(SUBSTITUTE(SUBSTITUTE(SUBSTITUTE(SUBSTITUTE(SUBSTITUTE(SUBSTITUTE(SUBSTITUTE(SUBSTITUTE(SUBSTITUTE(SUBSTITUTE(SUBSTITUTE(W172,$ED172,$ED$2&ROW($ED172)),$EC172,$EC$2&ROW($EC172)),$EB172,$EB$2&ROW($EB172)),$EA172,$EA$2&ROW($EA172)),$DZ172,$DZ$2&ROW($DZ172)),$DY172,$DY$2&ROW($DY172)),$DX172,$DX$2&ROW($DX172)),$DW172,$DW$2&ROW($DW172)),$DV172,$DV$2&ROW($DV172)),$DU172,$DU$2&ROW($DU172)),$DT172,$DT$2&ROW($DT172)),$DS172,$DS$2&ROW($DS172)))","v":"X=AS172*AU172*10*-0.021"},{"$f":"IF(X172=\"\",0,\"X=\"&SUBSTITUTE(SUBSTITUTE(SUBSTITUTE(SUBSTITUTE(SUBSTITUTE(SUBSTITUTE(SUBSTITUTE(SUBSTITUTE(SUBSTITUTE(SUBSTITUTE(SUBSTITUTE(SUBSTITUTE(X172,$ED172,$ED$2&ROW($ED172)),$EC172,$EC$2&ROW($EC172)),$EB172,$EB$2&ROW($EB172)),$EA172,$EA$2&ROW($EA172)),$DZ172,$DZ$2&ROW($DZ172)),$DY172,$DY$2&ROW($DY172)),$DX172,$DX$2&ROW($DX172)),$DW172,$DW$2&ROW($DW172)),$DV172,$DV$2&ROW($DV172)),$DU172,$DU$2&ROW($DU172)),$DT172,$DT$2&ROW($DT172)),$DS172,$DS$2&ROW($DS172)))","v":"X=AS172*AU172*-0.005"},{"$f":"IF(Y172=\"\",0,\"X=\"&SUBSTITUTE(SUBSTITUTE(SUBSTITUTE(SUBSTITUTE(SUBSTITUTE(SUBSTITUTE(SUBSTITUTE(SUBSTITUTE(SUBSTITUTE(SUBSTITUTE(SUBSTITUTE(SUBSTITUTE(Y172,$ED172,$ED$2&ROW($ED172)),$EC172,$EC$2&ROW($EC172)),$EB172,$EB$2&ROW($EB172)),$EA172,$EA$2&ROW($EA172)),$DZ172,$DZ$2&ROW($DZ172)),$DY172,$DY$2&ROW($DY172)),$DX172,$DX$2&ROW($DX172)),$DW172,$DW$2&ROW($DW172)),$DV172,$DV$2&ROW($DV172)),$DU172,$DU$2&ROW($DU172)),$DT172,$DT$2&ROW($DT172)),$DS172,$DS$2&ROW($DS172)))","v":"X=AS172*AU172*-0.021"},{"$f":"IF(Z172=\"\",0,\"X=\"&SUBSTITUTE(SUBSTITUTE(SUBSTITUTE(SUBSTITUTE(SUBSTITUTE(SUBSTITUTE(SUBSTITUTE(SUBSTITUTE(SUBSTITUTE(SUBSTITUTE(SUBSTITUTE(SUBSTITUTE(Z172,$ED172,$ED$2&ROW($ED172)),$EC172,$EC$2&ROW($EC172)),$EB172,$EB$2&ROW($EB172)),$EA172,$EA$2&ROW($EA172)),$DZ172,$DZ$2&ROW($DZ172)),$DY172,$DY$2&ROW($DY172)),$DX172,$DX$2&ROW($DX172)),$DW172,$DW$2&ROW($DW172)),$DV172,$DV$2&ROW($DV172)),$DU172,$DU$2&ROW($DU172)),$DT172,$DT$2&ROW($DT172)),$DS172,$DS$2&ROW($DS172)))","v":"X=AS172*AU172*-0.001"},{"$f":"IF(AA172=\"\",0,\"X=\"&SUBSTITUTE(SUBSTITUTE(SUBSTITUTE(SUBSTITUTE(SUBSTITUTE(SUBSTITUTE(SUBSTITUTE(SUBSTITUTE(SUBSTITUTE(SUBSTITUTE(SUBSTITUTE(SUBSTITUTE(AA172,$ED172,$ED$2&ROW($ED172)),$EC172,$EC$2&ROW($EC172)),$EB172,$EB$2&ROW($EB172)),$EA172,$EA$2&ROW($EA172)),$DZ172,$DZ$2&ROW($DZ172)),$DY172,$DY$2&ROW($DY172)),$DX172,$DX$2&ROW($DX172)),$DW172,$DW$2&ROW($DW172)),$DV172,$DV$2&ROW($DV172)),$DU172,$DU$2&ROW($DU172)),$DT172,$DT$2&ROW($DT172)),$DS172,$DS$2&ROW($DS172)))","v":"X=AS172*AU172*-0.005"},{"$f":"IF(AB172=\"\",0,\"X=\"&SUBSTITUTE(SUBSTITUTE(SUBSTITUTE(SUBSTITUTE(SUBSTITUTE(SUBSTITUTE(SUBSTITUTE(SUBSTITUTE(SUBSTITUTE(SUBSTITUTE(SUBSTITUTE(SUBSTITUTE(AB172,$ED172,$ED$2&ROW($ED172)),$EC172,$EC$2&ROW($EC172)),$EB172,$EB$2&ROW($EB172)),$EA172,$EA$2&ROW($EA172)),$DZ172,$DZ$2&ROW($DZ172)),$DY172,$DY$2&ROW($DY172)),$DX172,$DX$2&ROW($DX172)),$DW172,$DW$2&ROW($DW172)),$DV172,$DV$2&ROW($DV172)),$DU172,$DU$2&ROW($DU172)),$DT172,$DT$2&ROW($DT172)),$DS172,$DS$2&ROW($DS172)))","v":0},null,null,"{Factor:WinterCF}","{Factor:SummerCF}",{"$f":"IFERROR(INDEX($EG172:$IV172,MATCH(0,COUNTIF($DR172:DT172,$EG172:$IV172),0)),\"\")","v":"{Measure:Quantity}"},{"$f":"IFERROR(INDEX($EG172:$IV172,MATCH(0,COUNTIF($DR172:DU172,$EG172:$IV172),0)),\"\")","v":"{Package Size}"},{"$f":"IFERROR(INDEX($EG172:$IV172,MATCH(0,COUNTIF($DR172:DV172,$EG172:$IV172),0)),\"\")","v":"{Rebate per Package}"},{"$f":"IFERROR(INDEX($EG172:$IV172,MATCH(0,COUNTIF($DR172:DW172,$EG172:$IV172),0)),\"\")","v":""},{"$f":"IFERROR(INDEX($EG172:$IV172,MATCH(0,COUNTIF($DR172:DX172,$EG172:$IV172),0)),\"\")","v":""},{"$f":"IFERROR(INDEX($EG172:$IV172,MATCH(0,COUNTIF($DR172:DY172,$EG172:$IV172),0)),\"\")","v":""},{"$f":"IFERROR(INDEX($EG172:$IV172,MATCH(0,COUNTIF($DR172:DZ172,$EG172:$IV172),0)),\"\")","v":""},{"$f":"IFERROR(INDEX($EG172:$IV172,MATCH(0,COUNTIF($DR172:EA172,$EG172:$IV172),0)),\"\")","v":""},{"$f":"IFERROR(INDEX($EG172:$IV172,MATCH(0,COUNTIF($DR172:EB172,$EG172:$IV172),0)),\"\")","v":""},{"$f":"IFERROR(INDEX($EG172:$IV172,MATCH(0,COUNTIF($DR172:EC172,$EG172:$IV172),0)),\"\")","v":""},null,null,{"$f":"IFERROR(MID($G172,FIND(CHAR(160),SUBSTITUTE($G172,\"{\",CHAR(160),EG$1)),FIND(CHAR(160),SUBSTITUTE($G172,\"}\",CHAR(160),EG$1))-FIND(CHAR(160),SUBSTITUTE($G172,\"{\",CHAR(160),EG$1))+1),\"\")","v":"{Measure:Quantity}"},{"$f":"IFERROR(MID($G172,FIND(CHAR(160),SUBSTITUTE($G172,\"{\",CHAR(160),EH$1)),FIND(CHAR(160),SUBSTITUTE($G172,\"}\",CHAR(160),EH$1))-FIND(CHAR(160),SUBSTITUTE($G172,\"{\",CHAR(160),EH$1))+1),\"\")","v":"{Package Size}"},{"$f":"IFERROR(MID($G172,FIND(CHAR(160),SUBSTITUTE($G172,\"{\",CHAR(160),EI$1)),FIND(CHAR(160),SUBSTITUTE($G172,\"}\",CHAR(160),EI$1))-FIND(CHAR(160),SUBSTITUTE($G172,\"{\",CHAR(160),EI$1))+1),\"\")","v":""},{"$f":"IFERROR(MID($G172,FIND(CHAR(160),SUBSTITUTE($G172,\"{\",CHAR(160),EJ$1)),FIND(CHAR(160),SUBSTITUTE($G172,\"}\",CHAR(160),EJ$1))-FIND(CHAR(160),SUBSTITUTE($G172,\"{\",CHAR(160),EJ$1))+1),\"\")","v":""},{"$f":"IFERROR(MID($G172,FIND(CHAR(160),SUBSTITUTE($G172,\"{\",CHAR(160),EK$1)),FIND(CHAR(160),SUBSTITUTE($G172,\"}\",CHAR(160),EK$1))-FIND(CHAR(160),SUBSTITUTE($G172,\"{\",CHAR(160),EK$1))+1),\"\")","v":""},{"$f":"IFERROR(MID($G172,FIND(CHAR(160),SUBSTITUTE($G172,\"{\",CHAR(160),EL$1)),FIND(CHAR(160),SUBSTITUTE($G172,\"}\",CHAR(160),EL$1))-FIND(CHAR(160),SUBSTITUTE($G172,\"{\",CHAR(160),EL$1))+1),\"\")","v":""},{"$f":"IFERROR(MID($G172,FIND(CHAR(160),SUBSTITUTE($G172,\"{\",CHAR(160),EM$1)),FIND(CHAR(160),SUBSTITUTE($G172,\"}\",CHAR(160),EM$1))-FIND(CHAR(160),SUBSTITUTE($G172,\"{\",CHAR(160),EM$1))+1),\"\")","v":""},{"$f":"IFERROR(MID($G172,FIND(CHAR(160),SUBSTITUTE($G172,\"{\",CHAR(160),EN$1)),FIND(CHAR(160),SUBSTITUTE($G172,\"}\",CHAR(160),EN$1))-FIND(CHAR(160),SUBSTITUTE($G172,\"{\",CHAR(160),EN$1))+1),\"\")","v":""},{"$f":"IFERROR(MID($G172,FIND(CHAR(160),SUBSTITUTE($G172,\"{\",CHAR(160),EO$1)),FIND(CHAR(160),SUBSTITUTE($G172,\"}\",CHAR(160),EO$1))-FIND(CHAR(160),SUBSTITUTE($G172,\"{\",CHAR(160),EO$1))+1),\"\")","v":""},{"$f":"IFERROR(MID($G172,FIND(CHAR(160),SUBSTITUTE($G172,\"{\",CHAR(160),EP$1)),FIND(CHAR(160),SUBSTITUTE($G172,\"}\",CHAR(160),EP$1))-FIND(CHAR(160),SUBSTITUTE($G172,\"{\",CHAR(160),EP$1))+1),\"\")","v":""},{"$f":"IFERROR(MID($J172,FIND(CHAR(160),SUBSTITUTE($J172,\"{\",CHAR(160),EQ$1)),FIND(CHAR(160),SUBSTITUTE($J172,\"}\",CHAR(160),EQ$1))-FIND(CHAR(160),SUBSTITUTE($J172,\"{\",CHAR(160),EQ$1))+1),\"\")","v":"{Measure:Quantity}"},{"$f":"IFERROR(MID($J172,FIND(CHAR(160),SUBSTITUTE($J172,\"{\",CHAR(160),ER$1)),FIND(CHAR(160),SUBSTITUTE($J172,\"}\",CHAR(160),ER$1))-FIND(CHAR(160),SUBSTITUTE($J172,\"{\",CHAR(160),ER$1))+1),\"\")","v":"{Rebate per Package}"},{"$f":"IFERROR(MID($J172,FIND(CHAR(160),SUBSTITUTE($J172,\"{\",CHAR(160),ES$1)),FIND(CHAR(160),SUBSTITUTE($J172,\"}\",CHAR(160),ES$1))-FIND(CHAR(160),SUBSTITUTE($J172,\"{\",CHAR(160),ES$1))+1),\"\")","v":""},{"$f":"IFERROR(MID($J172,FIND(CHAR(160),SUBSTITUTE($J172,\"{\",CHAR(160),ET$1)),FIND(CHAR(160),SUBSTITUTE($J172,\"}\",CHAR(160),ET$1))-FIND(CHAR(160),SUBSTITUTE($J172,\"{\",CHAR(160),ET$1))+1),\"\")","v":""},{"$f":"IFERROR(MID($J172,FIND(CHAR(160),SUBSTITUTE($J172,\"{\",CHAR(160),EU$1)),FIND(CHAR(160),SUBSTITUTE($J172,\"}\",CHAR(160),EU$1))-FIND(CHAR(160),SUBSTITUTE($J172,\"{\",CHAR(160),EU$1))+1),\"\")","v":""},{"$f":"IFERROR(MID($J172,FIND(CHAR(160),SUBSTITUTE($J172,\"{\",CHAR(160),EV$1)),FIND(CHAR(160),SUBSTITUTE($J172,\"}\",CHAR(160),EV$1))-FIND(CHAR(160),SUBSTITUTE($J172,\"{\",CHAR(160),EV$1))+1),\"\")","v":""},{"$f":"IFERROR(MID($J172,FIND(CHAR(160),SUBSTITUTE($J172,\"{\",CHAR(160),EW$1)),FIND(CHAR(160),SUBSTITUTE($J172,\"}\",CHAR(160),EW$1))-FIND(CHAR(160),SUBSTITUTE($J172,\"{\",CHAR(160),EW$1))+1),\"\")","v":""},{"$f":"IFERROR(MID($J172,FIND(CHAR(160),SUBSTITUTE($J172,\"{\",CHAR(160),EX$1)),FIND(CHAR(160),SUBSTITUTE($J172,\"}\",CHAR(160),EX$1))-FIND(CHAR(160),SUBSTITUTE($J172,\"{\",CHAR(160),EX$1))+1),\"\")","v":""},{"$f":"IFERROR(MID($J172,FIND(CHAR(160),SUBSTITUTE($J172,\"{\",CHAR(160),EY$1)),FIND(CHAR(160),SUBSTITUTE($J172,\"}\",CHAR(160),EY$1))-FIND(CHAR(160),SUBSTITUTE($J172,\"{\",CHAR(160),EY$1))+1),\"\")","v":""},{"$f":"IFERROR(MID($J172,FIND(CHAR(160),SUBSTITUTE($J172,\"{\",CHAR(160),EZ$1)),FIND(CHAR(160),SUBSTITUTE($J172,\"}\",CHAR(160),EZ$1))-FIND(CHAR(160),SUBSTITUTE($J172,\"{\",CHAR(160),EZ$1))+1),\"\")","v":""},{"$f":"IFERROR(MID($J172,FIND(CHAR(160),SUBSTITUTE($J172,\"{\",CHAR(160),FA$1)),FIND(CHAR(160),SUBSTITUTE($J172,\"}\",CHAR(160),FA$1))-FIND(CHAR(160),SUBSTITUTE($J172,\"{\",CHAR(160),FA$1))+1),\"\")","v":"{Measure:Quantity}"},{"$f":"IFERROR(MID($J172,FIND(CHAR(160),SUBSTITUTE($J172,\"{\",CHAR(160),FB$1)),FIND(CHAR(160),SUBSTITUTE($J172,\"}\",CHAR(160),FB$1))-FIND(CHAR(160),SUBSTITUTE($J172,\"{\",CHAR(160),FB$1))+1),\"\")","v":"{Rebate per Package}"},{"$f":"IFERROR(MID($O172,FIND(CHAR(160),SUBSTITUTE($O172,\"{\",CHAR(160),FC$1)),FIND(CHAR(160),SUBSTITUTE($O172,\"}\",CHAR(160),FC$1))-FIND(CHAR(160),SUBSTITUTE($O172,\"{\",CHAR(160),FC$1))+1),\"\")","v":""},{"$f":"IFERROR(MID($O172,FIND(CHAR(160),SUBSTITUTE($O172,\"{\",CHAR(160),FD$1)),FIND(CHAR(160),SUBSTITUTE($O172,\"}\",CHAR(160),FD$1))-FIND(CHAR(160),SUBSTITUTE($O172,\"{\",CHAR(160),FD$1))+1),\"\")","v":""},{"$f":"IFERROR(MID($O172,FIND(CHAR(160),SUBSTITUTE($O172,\"{\",CHAR(160),FE$1)),FIND(CHAR(160),SUBSTITUTE($O172,\"}\",CHAR(160),FE$1))-FIND(CHAR(160),SUBSTITUTE($O172,\"{\",CHAR(160),FE$1))+1),\"\")","v":""},{"$f":"IFERROR(MID($O172,FIND(CHAR(160),SUBSTITUTE($O172,\"{\",CHAR(160),FF$1)),FIND(CHAR(160),SUBSTITUTE($O172,\"}\",CHAR(160),FF$1))-FIND(CHAR(160),SUBSTITUTE($O172,\"{\",CHAR(160),FF$1))+1),\"\")","v":""},{"$f":"IFERROR(MID($O172,FIND(CHAR(160),SUBSTITUTE($O172,\"{\",CHAR(160),FG$1)),FIND(CHAR(160),SUBSTITUTE($O172,\"}\",CHAR(160),FG$1))-FIND(CHAR(160),SUBSTITUTE($O172,\"{\",CHAR(160),FG$1))+1),\"\")","v":""},{"$f":"IFERROR(MID($O172,FIND(CHAR(160),SUBSTITUTE($O172,\"{\",CHAR(160),FH$1)),FIND(CHAR(160),SUBSTITUTE($O172,\"}\",CHAR(160),FH$1))-FIND(CHAR(160),SUBSTITUTE($O172,\"{\",CHAR(160),FH$1))+1),\"\")","v":""},{"$f":"IFERROR(MID($O172,FIND(CHAR(160),SUBSTITUTE($O172,\"{\",CHAR(160),FI$1)),FIND(CHAR(160),SUBSTITUTE($O172,\"}\",CHAR(160),FI$1))-FIND(CHAR(160),SUBSTITUTE($O172,\"{\",CHAR(160),FI$1))+1),\"\")","v":""},{"$f":"IFERROR(MID($O172,FIND(CHAR(160),SUBSTITUTE($O172,\"{\",CHAR(160),FJ$1)),FIND(CHAR(160),SUBSTITUTE($O172,\"}\",CHAR(160),FJ$1))-FIND(CHAR(160),SUBSTITUTE($O172,\"{\",CHAR(160),FJ$1))+1),\"\")","v":""},{"$f":"IFERROR(MID($O172,FIND(CHAR(160),SUBSTITUTE($O172,\"{\",CHAR(160),FK$1)),FIND(CHAR(160),SUBSTITUTE($O172,\"}\",CHAR(160),FK$1))-FIND(CHAR(160),SUBSTITUTE($O172,\"{\",CHAR(160),FK$1))+1),\"\")","v":"{Measure:Quantity}"},{"$f":"IFERROR(MID($O172,FIND(CHAR(160),SUBSTITUTE($O172,\"{\",CHAR(160),FL$1)),FIND(CHAR(160),SUBSTITUTE($O172,\"}\",CHAR(160),FL$1))-FIND(CHAR(160),SUBSTITUTE($O172,\"{\",CHAR(160),FL$1))+1),\"\")","v":"{Package Size}"},{"$f":"IFERROR(MID($R172,FIND(CHAR(160),SUBSTITUTE($R172,\"{\",CHAR(160),FM$1)),FIND(CHAR(160),SUBSTITUTE($R172,\"}\",CHAR(160),FM$1))-FIND(CHAR(160),SUBSTITUTE($R172,\"{\",CHAR(160),FM$1))+1),\"\")","v":""},{"$f":"IFERROR(MID($R172,FIND(CHAR(160),SUBSTITUTE($R172,\"{\",CHAR(160),FN$1)),FIND(CHAR(160),SUBSTITUTE($R172,\"}\",CHAR(160),FN$1))-FIND(CHAR(160),SUBSTITUTE($R172,\"{\",CHAR(160),FN$1))+1),\"\")","v":""},{"$f":"IFERROR(MID($R172,FIND(CHAR(160),SUBSTITUTE($R172,\"{\",CHAR(160),FO$1)),FIND(CHAR(160),SUBSTITUTE($R172,\"}\",CHAR(160),FO$1))-FIND(CHAR(160),SUBSTITUTE($R172,\"{\",CHAR(160),FO$1))+1),\"\")","v":""},{"$f":"IFERROR(MID($R172,FIND(CHAR(160),SUBSTITUTE($R172,\"{\",CHAR(160),FP$1)),FIND(CHAR(160),SUBSTITUTE($R172,\"}\",CHAR(160),FP$1))-FIND(CHAR(160),SUBSTITUTE($R172,\"{\",CHAR(160),FP$1))+1),\"\")","v":""},{"$f":"IFERROR(MID($R172,FIND(CHAR(160),SUBSTITUTE($R172,\"{\",CHAR(160),FQ$1)),FIND(CHAR(160),SUBSTITUTE($R172,\"}\",CHAR(160),FQ$1))-FIND(CHAR(160),SUBSTITUTE($R172,\"{\",CHAR(160),FQ$1))+1),\"\")","v":""},{"$f":"IFERROR(MID($R172,FIND(CHAR(160),SUBSTITUTE($R172,\"{\",CHAR(160),FR$1)),FIND(CHAR(160),SUBSTITUTE($R172,\"}\",CHAR(160),FR$1))-FIND(CHAR(160),SUBSTITUTE($R172,\"{\",CHAR(160),FR$1))+1),\"\")","v":""},{"$f":"IFERROR(MID($R172,FIND(CHAR(160),SUBSTITUTE($R172,\"{\",CHAR(160),FS$1)),FIND(CHAR(160),SUBSTITUTE($R172,\"}\",CHAR(160),FS$1))-FIND(CHAR(160),SUBSTITUTE($R172,\"{\",CHAR(160),FS$1))+1),\"\")","v":""},{"$f":"IFERROR(MID($R172,FIND(CHAR(160),SUBSTITUTE($R172,\"{\",CHAR(160),FT$1)),FIND(CHAR(160),SUBSTITUTE($R172,\"}\",CHAR(160),FT$1))-FIND(CHAR(160),SUBSTITUTE($R172,\"{\",CHAR(160),FT$1))+1),\"\")","v":""},{"$f":"IFERROR(MID($R172,FIND(CHAR(160),SUBSTITUTE($R172,\"{\",CHAR(160),FU$1)),FIND(CHAR(160),SUBSTITUTE($R172,\"}\",CHAR(160),FU$1))-FIND(CHAR(160),SUBSTITUTE($R172,\"{\",CHAR(160),FU$1))+1),\"\")","v":"{Measure:Quantity}"},{"$f":"IFERROR(MID($R172,FIND(CHAR(160),SUBSTITUTE($R172,\"{\",CHAR(160),FV$1)),FIND(CHAR(160),SUBSTITUTE($R172,\"}\",CHAR(160),FV$1))-FIND(CHAR(160),SUBSTITUTE($R172,\"{\",CHAR(160),FV$1))+1),\"\")","v":"{Package Size}"},{"$f":"IFERROR(MID($U172,FIND(CHAR(160),SUBSTITUTE($U172,\"{\",CHAR(160),FW$1)),FIND(CHAR(160),SUBSTITUTE($U172,\"}\",CHAR(160),FW$1))-FIND(CHAR(160),SUBSTITUTE($U172,\"{\",CHAR(160),FW$1))+1),\"\")","v":"{Factor:WinterCF}"},{"$f":"IFERROR(MID($U172,FIND(CHAR(160),SUBSTITUTE($U172,\"{\",CHAR(160),FX$1)),FIND(CHAR(160),SUBSTITUTE($U172,\"}\",CHAR(160),FX$1))-FIND(CHAR(160),SUBSTITUTE($U172,\"{\",CHAR(160),FX$1))+1),\"\")","v":""},{"$f":"IFERROR(MID($U172,FIND(CHAR(160),SUBSTITUTE($U172,\"{\",CHAR(160),FY$1)),FIND(CHAR(160),SUBSTITUTE($U172,\"}\",CHAR(160),FY$1))-FIND(CHAR(160),SUBSTITUTE($U172,\"{\",CHAR(160),FY$1))+1),\"\")","v":""},{"$f":"IFERROR(MID($U172,FIND(CHAR(160),SUBSTITUTE($U172,\"{\",CHAR(160),FZ$1)),FIND(CHAR(160),SUBSTITUTE($U172,\"}\",CHAR(160),FZ$1))-FIND(CHAR(160),SUBSTITUTE($U172,\"{\",CHAR(160),FZ$1))+1),\"\")","v":""},{"$f":"IFERROR(MID($U172,FIND(CHAR(160),SUBSTITUTE($U172,\"{\",CHAR(160),GA$1)),FIND(CHAR(160),SUBSTITUTE($U172,\"}\",CHAR(160),GA$1))-FIND(CHAR(160),SUBSTITUTE($U172,\"{\",CHAR(160),GA$1))+1),\"\")","v":""},{"$f":"IFERROR(MID($U172,FIND(CHAR(160),SUBSTITUTE($U172,\"{\",CHAR(160),GB$1)),FIND(CHAR(160),SUBSTITUTE($U172,\"}\",CHAR(160),GB$1))-FIND(CHAR(160),SUBSTITUTE($U172,\"{\",CHAR(160),GB$1))+1),\"\")","v":""},{"$f":"IFERROR(MID($U172,FIND(CHAR(160),SUBSTITUTE($U172,\"{\",CHAR(160),GC$1)),FIND(CHAR(160),SUBSTITUTE($U172,\"}\",CHAR(160),GC$1))-FIND(CHAR(160),SUBSTITUTE($U172,\"{\",CHAR(160),GC$1))+1),\"\")","v":""},{"$f":"IFERROR(MID($U172,FIND(CHAR(160),SUBSTITUTE($U172,\"{\",CHAR(160),GD$1)),FIND(CHAR(160),SUBSTITUTE($U172,\"}\",CHAR(160),GD$1))-FIND(CHAR(160),SUBSTITUTE($U172,\"{\",CHAR(160),GD$1))+1),\"\")","v":""},{"$f":"IFERROR(MID($U172,FIND(CHAR(160),SUBSTITUTE($U172,\"{\",CHAR(160),GE$1)),FIND(CHAR(160),SUBSTITUTE($U172,\"}\",CHAR(160),GE$1))-FIND(CHAR(160),SUBSTITUTE($U172,\"{\",CHAR(160),GE$1))+1),\"\")","v":"{Measure:Quantity}"},{"$f":"IFERROR(MID($U172,FIND(CHAR(160),SUBSTITUTE($U172,\"{\",CHAR(160),GF$1)),FIND(CHAR(160),SUBSTITUTE($U172,\"}\",CHAR(160),GF$1))-FIND(CHAR(160),SUBSTITUTE($U172,\"{\",CHAR(160),GF$1))+1),\"\")","v":"{Package Size}"},{"$f":"IFERROR(MID($V172,FIND(CHAR(160),SUBSTITUTE($V172,\"{\",CHAR(160),GG$1)),FIND(CHAR(160),SUBSTITUTE($V172,\"}\",CHAR(160),GG$1))-FIND(CHAR(160),SUBSTITUTE($V172,\"{\",CHAR(160),GG$1))+1),\"\")","v":"{Factor:SummerCF}"},{"$f":"IFERROR(MID($V172,FIND(CHAR(160),SUBSTITUTE($V172,\"{\",CHAR(160),GH$1)),FIND(CHAR(160),SUBSTITUTE($V172,\"}\",CHAR(160),GH$1))-FIND(CHAR(160),SUBSTITUTE($V172,\"{\",CHAR(160),GH$1))+1),\"\")","v":""},{"$f":"IFERROR(MID($V172,FIND(CHAR(160),SUBSTITUTE($V172,\"{\",CHAR(160),GI$1)),FIND(CHAR(160),SUBSTITUTE($V172,\"}\",CHAR(160),GI$1))-FIND(CHAR(160),SUBSTITUTE($V172,\"{\",CHAR(160),GI$1))+1),\"\")","v":""},{"$f":"IFERROR(MID($V172,FIND(CHAR(160),SUBSTITUTE($V172,\"{\",CHAR(160),GJ$1)),FIND(CHAR(160),SUBSTITUTE($V172,\"}\",CHAR(160),GJ$1))-FIND(CHAR(160),SUBSTITUTE($V172,\"{\",CHAR(160),GJ$1))+1),\"\")","v":""},{"$f":"IFERROR(MID($V172,FIND(CHAR(160),SUBSTITUTE($V172,\"{\",CHAR(160),GK$1)),FIND(CHAR(160),SUBSTITUTE($V172,\"}\",CHAR(160),GK$1))-FIND(CHAR(160),SUBSTITUTE($V172,\"{\",CHAR(160),GK$1))+1),\"\")","v":""},{"$f":"IFERROR(MID($V172,FIND(CHAR(160),SUBSTITUTE($V172,\"{\",CHAR(160),GL$1)),FIND(CHAR(160),SUBSTITUTE($V172,\"}\",CHAR(160),GL$1))-FIND(CHAR(160),SUBSTITUTE($V172,\"{\",CHAR(160),GL$1))+1),\"\")","v":""},{"$f":"IFERROR(MID($V172,FIND(CHAR(160),SUBSTITUTE($V172,\"{\",CHAR(160),GM$1)),FIND(CHAR(160),SUBSTITUTE($V172,\"}\",CHAR(160),GM$1))-FIND(CHAR(160),SUBSTITUTE($V172,\"{\",CHAR(160),GM$1))+1),\"\")","v":""},{"$f":"IFERROR(MID($V172,FIND(CHAR(160),SUBSTITUTE($V172,\"{\",CHAR(160),GN$1)),FIND(CHAR(160),SUBSTITUTE($V172,\"}\",CHAR(160),GN$1))-FIND(CHAR(160),SUBSTITUTE($V172,\"{\",CHAR(160),GN$1))+1),\"\")","v":""},{"$f":"IFERROR(MID($V172,FIND(CHAR(160),SUBSTITUTE($V172,\"{\",CHAR(160),GO$1)),FIND(CHAR(160),SUBSTITUTE($V172,\"}\",CHAR(160),GO$1))-FIND(CHAR(160),SUBSTITUTE($V172,\"{\",CHAR(160),GO$1))+1),\"\")","v":"{Measure:Quantity}"},{"$f":"IFERROR(MID($V172,FIND(CHAR(160),SUBSTITUTE($V172,\"{\",CHAR(160),GP$1)),FIND(CHAR(160),SUBSTITUTE($V172,\"}\",CHAR(160),GP$1))-FIND(CHAR(160),SUBSTITUTE($V172,\"{\",CHAR(160),GP$1))+1),\"\")","v":"{Package Size}"},{"$f":"IFERROR(MID($W172,FIND(CHAR(160),SUBSTITUTE($W172,\"{\",CHAR(160),GQ$1)),FIND(CHAR(160),SUBSTITUTE($W172,\"}\",CHAR(160),GQ$1))-FIND(CHAR(160),SUBSTITUTE($W172,\"{\",CHAR(160),GQ$1))+1),\"\")","v":""},{"$f":"IFERROR(MID($W172,FIND(CHAR(160),SUBSTITUTE($W172,\"{\",CHAR(160),GR$1)),FIND(CHAR(160),SUBSTITUTE($W172,\"}\",CHAR(160),GR$1))-FIND(CHAR(160),SUBSTITUTE($W172,\"{\",CHAR(160),GR$1))+1),\"\")","v":""},{"$f":"IFERROR(MID($W172,FIND(CHAR(160),SUBSTITUTE($W172,\"{\",CHAR(160),GS$1)),FIND(CHAR(160),SUBSTITUTE($W172,\"}\",CHAR(160),GS$1))-FIND(CHAR(160),SUBSTITUTE($W172,\"{\",CHAR(160),GS$1))+1),\"\")","v":""},{"$f":"IFERROR(MID($W172,FIND(CHAR(160),SUBSTITUTE($W172,\"{\",CHAR(160),GT$1)),FIND(CHAR(160),SUBSTITUTE($W172,\"}\",CHAR(160),GT$1))-FIND(CHAR(160),SUBSTITUTE($W172,\"{\",CHAR(160),GT$1))+1),\"\")","v":""},{"$f":"IFERROR(MID($W172,FIND(CHAR(160),SUBSTITUTE($W172,\"{\",CHAR(160),GU$1)),FIND(CHAR(160),SUBSTITUTE($W172,\"}\",CHAR(160),GU$1))-FIND(CHAR(160),SUBSTITUTE($W172,\"{\",CHAR(160),GU$1))+1),\"\")","v":""},{"$f":"IFERROR(MID($W172,FIND(CHAR(160),SUBSTITUTE($W172,\"{\",CHAR(160),GV$1)),FIND(CHAR(160),SUBSTITUTE($W172,\"}\",CHAR(160),GV$1))-FIND(CHAR(160),SUBSTITUTE($W172,\"{\",CHAR(160),GV$1))+1),\"\")","v":""},{"$f":"IFERROR(MID($W172,FIND(CHAR(160),SUBSTITUTE($W172,\"{\",CHAR(160),GW$1)),FIND(CHAR(160),SUBSTITUTE($W172,\"}\",CHAR(160),GW$1))-FIND(CHAR(160),SUBSTITUTE($W172,\"{\",CHAR(160),GW$1))+1),\"\")","v":""},{"$f":"IFERROR(MID($W172,FIND(CHAR(160),SUBSTITUTE($W172,\"{\",CHAR(160),GX$1)),FIND(CHAR(160),SUBSTITUTE($W172,\"}\",CHAR(160),GX$1))-FIND(CHAR(160),SUBSTITUTE($W172,\"{\",CHAR(160),GX$1))+1),\"\")","v":""},{"$f":"IFERROR(MID($W172,FIND(CHAR(160),SUBSTITUTE($W172,\"{\",CHAR(160),GY$1)),FIND(CHAR(160),SUBSTITUTE($W172,\"}\",CHAR(160),GY$1))-FIND(CHAR(160),SUBSTITUTE($W172,\"{\",CHAR(160),GY$1))+1),\"\")","v":"{Measure:Quantity}"},{"$f":"IFERROR(MID($W172,FIND(CHAR(160),SUBSTITUTE($W172,\"{\",CHAR(160),GZ$1)),FIND(CHAR(160),SUBSTITUTE($W172,\"}\",CHAR(160),GZ$1))-FIND(CHAR(160),SUBSTITUTE($W172,\"{\",CHAR(160),GZ$1))+1),\"\")","v":"{Package Size}"},{"$f":"IFERROR(MID($X172,FIND(CHAR(160),SUBSTITUTE($X172,\"{\",CHAR(160),HA$1)),FIND(CHAR(160),SUBSTITUTE($X172,\"}\",CHAR(160),HA$1))-FIND(CHAR(160),SUBSTITUTE($X172,\"{\",CHAR(160),HA$1))+1),\"\")","v":""},{"$f":"IFERROR(MID($X172,FIND(CHAR(160),SUBSTITUTE($X172,\"{\",CHAR(160),HB$1)),FIND(CHAR(160),SUBSTITUTE($X172,\"}\",CHAR(160),HB$1))-FIND(CHAR(160),SUBSTITUTE($X172,\"{\",CHAR(160),HB$1))+1),\"\")","v":""},{"$f":"IFERROR(MID($X172,FIND(CHAR(160),SUBSTITUTE($X172,\"{\",CHAR(160),HC$1)),FIND(CHAR(160),SUBSTITUTE($X172,\"}\",CHAR(160),HC$1))-FIND(CHAR(160),SUBSTITUTE($X172,\"{\",CHAR(160),HC$1))+1),\"\")","v":""},{"$f":"IFERROR(MID($X172,FIND(CHAR(160),SUBSTITUTE($X172,\"{\",CHAR(160),HD$1)),FIND(CHAR(160),SUBSTITUTE($X172,\"}\",CHAR(160),HD$1))-FIND(CHAR(160),SUBSTITUTE($X172,\"{\",CHAR(160),HD$1))+1),\"\")","v":""},{"$f":"IFERROR(MID($X172,FIND(CHAR(160),SUBSTITUTE($X172,\"{\",CHAR(160),HE$1)),FIND(CHAR(160),SUBSTITUTE($X172,\"}\",CHAR(160),HE$1))-FIND(CHAR(160),SUBSTITUTE($X172,\"{\",CHAR(160),HE$1))+1),\"\")","v":""},{"$f":"IFERROR(MID($X172,FIND(CHAR(160),SUBSTITUTE($X172,\"{\",CHAR(160),HF$1)),FIND(CHAR(160),SUBSTITUTE($X172,\"}\",CHAR(160),HF$1))-FIND(CHAR(160),SUBSTITUTE($X172,\"{\",CHAR(160),HF$1))+1),\"\")","v":""},{"$f":"IFERROR(MID($X172,FIND(CHAR(160),SUBSTITUTE($X172,\"{\",CHAR(160),HG$1)),FIND(CHAR(160),SUBSTITUTE($X172,\"}\",CHAR(160),HG$1))-FIND(CHAR(160),SUBSTITUTE($X172,\"{\",CHAR(160),HG$1))+1),\"\")","v":""},{"$f":"IFERROR(MID($X172,FIND(CHAR(160),SUBSTITUTE($X172,\"{\",CHAR(160),HH$1)),FIND(CHAR(160),SUBSTITUTE($X172,\"}\",CHAR(160),HH$1))-FIND(CHAR(160),SUBSTITUTE($X172,\"{\",CHAR(160),HH$1))+1),\"\")","v":""},{"$f":"IFERROR(MID($X172,FIND(CHAR(160),SUBSTITUTE($X172,\"{\",CHAR(160),HI$1)),FIND(CHAR(160),SUBSTITUTE($X172,\"}\",CHAR(160),HI$1))-FIND(CHAR(160),SUBSTITUTE($X172,\"{\",CHAR(160),HI$1))+1),\"\")","v":"{Measure:Quantity}"},{"$f":"IFERROR(MID($X172,FIND(CHAR(160),SUBSTITUTE($X172,\"{\",CHAR(160),HJ$1)),FIND(CHAR(160),SUBSTITUTE($X172,\"}\",CHAR(160),HJ$1))-FIND(CHAR(160),SUBSTITUTE($X172,\"{\",CHAR(160),HJ$1))+1),\"\")","v":"{Package Size}"},{"$f":"IFERROR(MID($Y172,FIND(CHAR(160),SUBSTITUTE($Y172,\"{\",CHAR(160),HK$1)),FIND(CHAR(160),SUBSTITUTE($Y172,\"}\",CHAR(160),HK$1))-FIND(CHAR(160),SUBSTITUTE($Y172,\"{\",CHAR(160),HK$1))+1),\"\")","v":""},{"$f":"IFERROR(MID($Y172,FIND(CHAR(160),SUBSTITUTE($Y172,\"{\",CHAR(160),HL$1)),FIND(CHAR(160),SUBSTITUTE($Y172,\"}\",CHAR(160),HL$1))-FIND(CHAR(160),SUBSTITUTE($Y172,\"{\",CHAR(160),HL$1))+1),\"\")","v":""},{"$f":"IFERROR(MID($Y172,FIND(CHAR(160),SUBSTITUTE($Y172,\"{\",CHAR(160),HM$1)),FIND(CHAR(160),SUBSTITUTE($Y172,\"}\",CHAR(160),HM$1))-FIND(CHAR(160),SUBSTITUTE($Y172,\"{\",CHAR(160),HM$1))+1),\"\")","v":""},{"$f":"IFERROR(MID($Y172,FIND(CHAR(160),SUBSTITUTE($Y172,\"{\",CHAR(160),HN$1)),FIND(CHAR(160),SUBSTITUTE($Y172,\"}\",CHAR(160),HN$1))-FIND(CHAR(160),SUBSTITUTE($Y172,\"{\",CHAR(160),HN$1))+1),\"\")","v":""},{"$f":"IFERROR(MID($Y172,FIND(CHAR(160),SUBSTITUTE($Y172,\"{\",CHAR(160),HO$1)),FIND(CHAR(160),SUBSTITUTE($Y172,\"}\",CHAR(160),HO$1))-FIND(CHAR(160),SUBSTITUTE($Y172,\"{\",CHAR(160),HO$1))+1),\"\")","v":""},{"$f":"IFERROR(MID($Y172,FIND(CHAR(160),SUBSTITUTE($Y172,\"{\",CHAR(160),HP$1)),FIND(CHAR(160),SUBSTITUTE($Y172,\"}\",CHAR(160),HP$1))-FIND(CHAR(160),SUBSTITUTE($Y172,\"{\",CHAR(160),HP$1))+1),\"\")","v":""},{"$f":"IFERROR(MID($Y172,FIND(CHAR(160),SUBSTITUTE($Y172,\"{\",CHAR(160),HQ$1)),FIND(CHAR(160),SUBSTITUTE($Y172,\"}\",CHAR(160),HQ$1))-FIND(CHAR(160),SUBSTITUTE($Y172,\"{\",CHAR(160),HQ$1))+1),\"\")","v":""},{"$f":"IFERROR(MID($Y172,FIND(CHAR(160),SUBSTITUTE($Y172,\"{\",CHAR(160),HR$1)),FIND(CHAR(160),SUBSTITUTE($Y172,\"}\",CHAR(160),HR$1))-FIND(CHAR(160),SUBSTITUTE($Y172,\"{\",CHAR(160),HR$1))+1),\"\")","v":""},{"$f":"IFERROR(MID($Y172,FIND(CHAR(160),SUBSTITUTE($Y172,\"{\",CHAR(160),HS$1)),FIND(CHAR(160),SUBSTITUTE($Y172,\"}\",CHAR(160),HS$1))-FIND(CHAR(160),SUBSTITUTE($Y172,\"{\",CHAR(160),HS$1))+1),\"\")","v":"{Measure:Quantity}"},{"$f":"IFERROR(MID($Y172,FIND(CHAR(160),SUBSTITUTE($Y172,\"{\",CHAR(160),HT$1)),FIND(CHAR(160),SUBSTITUTE($Y172,\"}\",CHAR(160),HT$1))-FIND(CHAR(160),SUBSTITUTE($Y172,\"{\",CHAR(160),HT$1))+1),\"\")","v":"{Package Size}"},{"$f":"IFERROR(MID($Z172,FIND(CHAR(160),SUBSTITUTE($Z172,\"{\",CHAR(160),HU$1)),FIND(CHAR(160),SUBSTITUTE($Z172,\"}\",CHAR(160),HU$1))-FIND(CHAR(160),SUBSTITUTE($Z172,\"{\",CHAR(160),HU$1))+1),\"\")","v":""},{"$f":"IFERROR(MID($Z172,FIND(CHAR(160),SUBSTITUTE($Z172,\"{\",CHAR(160),HV$1)),FIND(CHAR(160),SUBSTITUTE($Z172,\"}\",CHAR(160),HV$1))-FIND(CHAR(160),SUBSTITUTE($Z172,\"{\",CHAR(160),HV$1))+1),\"\")","v":""},{"$f":"IFERROR(MID($Z172,FIND(CHAR(160),SUBSTITUTE($Z172,\"{\",CHAR(160),HW$1)),FIND(CHAR(160),SUBSTITUTE($Z172,\"}\",CHAR(160),HW$1))-FIND(CHAR(160),SUBSTITUTE($Z172,\"{\",CHAR(160),HW$1))+1),\"\")","v":""},{"$f":"IFERROR(MID($Z172,FIND(CHAR(160),SUBSTITUTE($Z172,\"{\",CHAR(160),HX$1)),FIND(CHAR(160),SUBSTITUTE($Z172,\"}\",CHAR(160),HX$1))-FIND(CHAR(160),SUBSTITUTE($Z172,\"{\",CHAR(160),HX$1))+1),\"\")","v":""},{"$f":"IFERROR(MID($Z172,FIND(CHAR(160),SUBSTITUTE($Z172,\"{\",CHAR(160),HY$1)),FIND(CHAR(160),SUBSTITUTE($Z172,\"}\",CHAR(160),HY$1))-FIND(CHAR(160),SUBSTITUTE($Z172,\"{\",CHAR(160),HY$1))+1),\"\")","v":""},{"$f":"IFERROR(MID($Z172,FIND(CHAR(160),SUBSTITUTE($Z172,\"{\",CHAR(160),HZ$1)),FIND(CHAR(160),SUBSTITUTE($Z172,\"}\",CHAR(160),HZ$1))-FIND(CHAR(160),SUBSTITUTE($Z172,\"{\",CHAR(160),HZ$1))+1),\"\")","v":""},{"$f":"IFERROR(MID($Z172,FIND(CHAR(160),SUBSTITUTE($Z172,\"{\",CHAR(160),IA$1)),FIND(CHAR(160),SUBSTITUTE($Z172,\"}\",CHAR(160),IA$1))-FIND(CHAR(160),SUBSTITUTE($Z172,\"{\",CHAR(160),IA$1))+1),\"\")","v":""},{"$f":"IFERROR(MID($Z172,FIND(CHAR(160),SUBSTITUTE($Z172,\"{\",CHAR(160),IB$1)),FIND(CHAR(160),SUBSTITUTE($Z172,\"}\",CHAR(160),IB$1))-FIND(CHAR(160),SUBSTITUTE($Z172,\"{\",CHAR(160),IB$1))+1),\"\")","v":""},{"$f":"IFERROR(MID($Z172,FIND(CHAR(160),SUBSTITUTE($Z172,\"{\",CHAR(160),IC$1)),FIND(CHAR(160),SUBSTITUTE($Z172,\"}\",CHAR(160),IC$1))-FIND(CHAR(160),SUBSTITUTE($Z172,\"{\",CHAR(160),IC$1))+1),\"\")","v":"{Measure:Quantity}"},{"$f":"IFERROR(MID($Z172,FIND(CHAR(160),SUBSTITUTE($Z172,\"{\",CHAR(160),ID$1)),FIND(CHAR(160),SUBSTITUTE($Z172,\"}\",CHAR(160),ID$1))-FIND(CHAR(160),SUBSTITUTE($Z172,\"{\",CHAR(160),ID$1))+1),\"\")","v":"{Package Size}"},{"$f":"IFERROR(MID($AA172,FIND(CHAR(160),SUBSTITUTE($AA172,\"{\",CHAR(160),IE$1)),FIND(CHAR(160),SUBSTITUTE($AA172,\"}\",CHAR(160),IE$1))-FIND(CHAR(160),SUBSTITUTE($AA172,\"{\",CHAR(160),IE$1))+1),\"\")","v":""},{"$f":"IFERROR(MID($AA172,FIND(CHAR(160),SUBSTITUTE($AA172,\"{\",CHAR(160),IF$1)),FIND(CHAR(160),SUBSTITUTE($AA172,\"}\",CHAR(160),IF$1))-FIND(CHAR(160),SUBSTITUTE($AA172,\"{\",CHAR(160),IF$1))+1),\"\")","v":""},{"$f":"IFERROR(MID($AA172,FIND(CHAR(160),SUBSTITUTE($AA172,\"{\",CHAR(160),IG$1)),FIND(CHAR(160),SUBSTITUTE($AA172,\"}\",CHAR(160),IG$1))-FIND(CHAR(160),SUBSTITUTE($AA172,\"{\",CHAR(160),IG$1))+1),\"\")","v":""},{"$f":"IFERROR(MID($AA172,FIND(CHAR(160),SUBSTITUTE($AA172,\"{\",CHAR(160),IH$1)),FIND(CHAR(160),SUBSTITUTE($AA172,\"}\",CHAR(160),IH$1))-FIND(CHAR(160),SUBSTITUTE($AA172,\"{\",CHAR(160),IH$1))+1),\"\")","v":""},{"$f":"IFERROR(MID($AA172,FIND(CHAR(160),SUBSTITUTE($AA172,\"{\",CHAR(160),II$1)),FIND(CHAR(160),SUBSTITUTE($AA172,\"}\",CHAR(160),II$1))-FIND(CHAR(160),SUBSTITUTE($AA172,\"{\",CHAR(160),II$1))+1),\"\")","v":""},{"$f":"IFERROR(MID($AA172,FIND(CHAR(160),SUBSTITUTE($AA172,\"{\",CHAR(160),IJ$1)),FIND(CHAR(160),SUBSTITUTE($AA172,\"}\",CHAR(160),IJ$1))-FIND(CHAR(160),SUBSTITUTE($AA172,\"{\",CHAR(160),IJ$1))+1),\"\")","v":""},{"$f":"IFERROR(MID($AA172,FIND(CHAR(160),SUBSTITUTE($AA172,\"{\",CHAR(160),IK$1)),FIND(CHAR(160),SUBSTITUTE($AA172,\"}\",CHAR(160),IK$1))-FIND(CHAR(160),SUBSTITUTE($AA172,\"{\",CHAR(160),IK$1))+1),\"\")","v":""},{"$f":"IFERROR(MID($AA172,FIND(CHAR(160),SUBSTITUTE($AA172,\"{\",CHAR(160),IL$1)),FIND(CHAR(160),SUBSTITUTE($AA172,\"}\",CHAR(160),IL$1))-FIND(CHAR(160),SUBSTITUTE($AA172,\"{\",CHAR(160),IL$1))+1),\"\")","v":""},{"$f":"IFERROR(MID($AA172,FIND(CHAR(160),SUBSTITUTE($AA172,\"{\",CHAR(160),IM$1)),FIND(CHAR(160),SUBSTITUTE($AA172,\"}\",CHAR(160),IM$1))-FIND(CHAR(160),SUBSTITUTE($AA172,\"{\",CHAR(160),IM$1))+1),\"\")","v":"{Measure:Quantity}"},{"$f":"IFERROR(MID($AA172,FIND(CHAR(160),SUBSTITUTE($AA172,\"{\",CHAR(160),IN$1)),FIND(CHAR(160),SUBSTITUTE($AA172,\"}\",CHAR(160),IN$1))-FIND(CHAR(160),SUBSTITUTE($AA172,\"{\",CHAR(160),IN$1))+1),\"\")","v":"{Package Size}"},{"$f":"IFERROR(MID($AB172,FIND(CHAR(160),SUBSTITUTE($AB172,\"{\",CHAR(160),IO$1)),FIND(CHAR(160),SUBSTITUTE($AB172,\"}\",CHAR(160),IO$1))-FIND(CHAR(160),SUBSTITUTE($AB172,\"{\",CHAR(160),IO$1))+1),\"\")","v":""},{"$f":"IFERROR(MID($AB172,FIND(CHAR(160),SUBSTITUTE($AB172,\"{\",CHAR(160),IP$1)),FIND(CHAR(160),SUBSTITUTE($AB172,\"}\",CHAR(160),IP$1))-FIND(CHAR(160),SUBSTITUTE($AB172,\"{\",CHAR(160),IP$1))+1),\"\")","v":""},{"$f":"IFERROR(MID($AB172,FIND(CHAR(160),SUBSTITUTE($AB172,\"{\",CHAR(160),IQ$1)),FIND(CHAR(160),SUBSTITUTE($AB172,\"}\",CHAR(160),IQ$1))-FIND(CHAR(160),SUBSTITUTE($AB172,\"{\",CHAR(160),IQ$1))+1),\"\")","v":""},{"$f":"IFERROR(MID($AB172,FIND(CHAR(160),SUBSTITUTE($AB172,\"{\",CHAR(160),IR$1)),FIND(CHAR(160),SUBSTITUTE($AB172,\"}\",CHAR(160),IR$1))-FIND(CHAR(160),SUBSTITUTE($AB172,\"{\",CHAR(160),IR$1))+1),\"\")","v":""},{"$f":"IFERROR(MID($AB172,FIND(CHAR(160),SUBSTITUTE($AB172,\"{\",CHAR(160),IS$1)),FIND(CHAR(160),SUBSTITUTE($AB172,\"}\",CHAR(160),IS$1))-FIND(CHAR(160),SUBSTITUTE($AB172,\"{\",CHAR(160),IS$1))+1),\"\")","v":""},{"$f":"IFERROR(MID($AB172,FIND(CHAR(160),SUBSTITUTE($AB172,\"{\",CHAR(160),IT$1)),FIND(CHAR(160),SUBSTITUTE($AB172,\"}\",CHAR(160),IT$1))-FIND(CHAR(160),SUBSTITUTE($AB172,\"{\",CHAR(160),IT$1))+1),\"\")","v":""},{"$f":"IFERROR(MID($AB172,FIND(CHAR(160),SUBSTITUTE($AB172,\"{\",CHAR(160),IU$1)),FIND(CHAR(160),SUBSTITUTE($AB172,\"}\",CHAR(160),IU$1))-FIND(CHAR(160),SUBSTITUTE($AB172,\"{\",CHAR(160),IU$1))+1),\"\")","v":""},{"$f":"IFERROR(MID($AB172,FIND(CHAR(160),SUBSTITUTE($AB172,\"{\",CHAR(160),IV$1)),FIND(CHAR(160),SUBSTITUTE($AB172,\"}\",CHAR(160),IV$1))-FIND(CHAR(160),SUBSTITUTE($AB172,\"{\",CHAR(160),IV$1))+1),\"\")","v":""},{"$f":"IFERROR(MID($AB172,FIND(CHAR(160),SUBSTITUTE($AB172,\"{\",CHAR(160),IW$1)),FIND(CHAR(160),SUBSTITUTE($AB172,\"}\",CHAR(160),IW$1))-FIND(CHAR(160),SUBSTITUTE($AB172,\"{\",CHAR(160),IW$1))+1),\"\")","v":""},{"$f":"IFERROR(MID($AB172,FIND(CHAR(160),SUBSTITUTE($AB172,\"{\",CHAR(160),IX$1)),FIND(CHAR(160),SUBSTITUTE($AB172,\"}\",CHAR(160),IX$1))-FIND(CHAR(160),SUBSTITUTE($AB172,\"{\",CHAR(160),IX$1))+1),\"\")","v":""},null,{"$f":"10-COUNTIF(DU172:ED172,\"\")","v":3}]
["Distributor Lighting","4' LED Lamp T8/Type C Kit (3 Lamp/1 external driver)","S110C43","2021-07-01","2022-06-30","Calculated","{Measure:Quantity}*{Package Size}*21.58",0,"Calculated","{Measure:Quantity}*{Rebate per Package}",0,"2021-07-01","2022-06-30","Calculated","{Measure:Quantity}*{Package Size}*142",null,null,"{Measure:Quantity}*{Package Size}*1.0747*0.049",null,null,"{Measure:Quantity}*{Package Size}*{Factor:WinterCF}*0.049","{Measure:Quantity}*{Package Size}*{Factor:SummerCF}*1.0747*0.049","{Measure:Quantity}*{Package Size}*10*-0.007","{Measure:Quantity}*{Package Size}*-0.01","{Measure:Quantity}*{Package Size}*-0.114","{Measure:Quantity}*{Package Size}*-0.005","{Measure:Quantity}*{Package Size}*-0.03",null,"2021-07-01","2022-06-30",16,0.372,0.64500000000000002,0.45,0.218,0.22900000000000001,0.10299999999999999,1,1,1,0.51,0,null,{"$f":"DU173","v":"{Measure:Quantity}"},1,{"$f":"DV173","v":"{Package Size}"},1,{"$f":"DW173","v":"{Rebate per Package}"},{"$f":"CW173*CO173","v":16.184999999999999},{"$f":"DX173","v":""},null,{"$f":"DY173","v":""},null,{"$f":"DZ173","v":""},null,{"$f":"EA173","v":""},null,{"$f":"EB173","v":""},null,{"$f":"EC173","v":""},null,{"$f":"ED173","v":""},null,{"$f":"AS173*AU173*142","v":142},0,0,{"$f":"AS173*AU173*1.0747*0.049","v":5.26603E-2},0,0,{"$f":"AS173*AU173*AF173*0.049","v":1.8228000000000001E-2},{"$f":"AS173*AU173*AG173*1.0747*0.049","v":3.3965893500000004E-2},{"$f":"AS173*AU173*10*-0.007","v":-7.0000000000000007E-2},{"$f":"AS173*AU173*-0.01","v":-0.01},{"$f":"AS173*AU173*-0.114","v":-0.114},{"$f":"AS173*AU173*-0.005","v":-5.0000000000000001E-3},{"$f":"AS173*AU173*-0.03","v":-0.03},0,null,"Res","Default DR",{"$f":"Benefits(BL173,BR173,BS173,BT173,BU173,BV173,BW173,BX173,BY173,BZ173,AE173,AH173,AI173,AJ173,AK173,AL173,AM173,AN173,AO173,AP173,CA173,CB173)","v":197.90474439426362},139.65046650143898,-1.4438677970741758,-50.506662017443375,-2.5779803083552246,-6.1964381156376067,-8.3584923420503188,0,0,{"$f":"SUMPRODUCT(CC173:CK173,--(CC173:CK173>0))","v":337.5552108957026},{"$f":"-SUMPRODUCT(CC173:CK173,--(CC173:CK173<0))","v":69.083440580560705},null,{"$f":"AS173*AU173*21.58","v":21.58},null,null,{"$f":"CM173+CO173","v":90.663440580560703},{"$f":"IF(NetOrGross=\"Net\",(1-AO173+AP173),1)","v":1},{"$f":"(SUMPRODUCT(CC173:CJ173,--(CC173:CJ173>0))+CN173)*CS173/((-SUMPRODUCT(CC173:CJ173,--(CC173:CJ173<0))+MAX(CO173,CV173)+CP173+CQ173)*CS173+IF(FRIncentives=\"Yes\",CV173*(1-CS173),0))","v":3.7231678914254482},1,{"$f":"AS173*AW173","v":16.184999999999999},{"$f":"CW172","v":0.75},"Electric","y",null,{"$f":"IF(F173=\"Manual Entry\",\"Manual\",IF(G173=\"\",0,\"X=\"&SUBSTITUTE(SUBSTITUTE(SUBSTITUTE(SUBSTITUTE(SUBSTITUTE(SUBSTITUTE(SUBSTITUTE(SUBSTITUTE(SUBSTITUTE(SUBSTITUTE(SUBSTITUTE(SUBSTITUTE(G173,$ED173,$ED$2&ROW($ED173)),$EC173,$EC$2&ROW($EC173)),$EB173,$EB$2&ROW($EB173)),$EA173,$EA$2&ROW($EA173)),$DZ173,$DZ$2&ROW($DZ173)),$DY173,$DY$2&ROW($DY173)),$DX173,$DX$2&ROW($DX173)),$DW173,$DW$2&ROW($DW173)),$DV173,$DV$2&ROW($DV173)),$DU173,$DU$2&ROW($DU173)),$DT173,$DT$2&ROW($DT173)),$DS173,$DS$2&ROW($DS173))))","v":"X=AS173*AU173*21.58"},{"$f":"IF(I173=\"Manual Entry\",\"Manual\",IF(J173=\"\",0,\"X=\"&SUBSTITUTE(SUBSTITUTE(SUBSTITUTE(SUBSTITUTE(SUBSTITUTE(SUBSTITUTE(SUBSTITUTE(SUBSTITUTE(SUBSTITUTE(SUBSTITUTE(SUBSTITUTE(SUBSTITUTE(J173,$ED173,$ED$2&ROW($ED173)),$EC173,$EC$2&ROW($EC173)),$EB173,$EB$2&ROW($EB173)),$EA173,$EA$2&ROW($EA173)),$DZ173,$DZ$2&ROW($DZ173)),$DY173,$DY$2&ROW($DY173)),$DX173,$DX$2&ROW($DX173)),$DW173,$DW$2&ROW($DW173)),$DV173,$DV$2&ROW($DV173)),$DU173,$DU$2&ROW($DU173)),$DT173,$DT$2&ROW($DT173)),$DS173,$DS$2&ROW($DS173))))","v":"X=AS173*AW173"},{"$f":"IF(O173=\"\",0,\"X=\"&SUBSTITUTE(SUBSTITUTE(SUBSTITUTE(SUBSTITUTE(SUBSTITUTE(SUBSTITUTE(SUBSTITUTE(SUBSTITUTE(SUBSTITUTE(SUBSTITUTE(SUBSTITUTE(SUBSTITUTE(O173,$ED173,$ED$2&ROW($ED173)),$EC173,$EC$2&ROW($EC173)),$EB173,$EB$2&ROW($EB173)),$EA173,$EA$2&ROW($EA173)),$DZ173,$DZ$2&ROW($DZ173)),$DY173,$DY$2&ROW($DY173)),$DX173,$DX$2&ROW($DX173)),$DW173,$DW$2&ROW($DW173)),$DV173,$DV$2&ROW($DV173)),$DU173,$DU$2&ROW($DU173)),$DT173,$DT$2&ROW($DT173)),$DS173,$DS$2&ROW($DS173)))","v":"X=AS173*AU173*142"},{"$f":"IF(P173=\"\",0,\"X=\"&SUBSTITUTE(SUBSTITUTE(SUBSTITUTE(SUBSTITUTE(SUBSTITUTE(SUBSTITUTE(SUBSTITUTE(SUBSTITUTE(SUBSTITUTE(SUBSTITUTE(SUBSTITUTE(SUBSTITUTE(P173,$ED173,$ED$2&ROW($ED173)),$EC173,$EC$2&ROW($EC173)),$EB173,$EB$2&ROW($EB173)),$EA173,$EA$2&ROW($EA173)),$DZ173,$DZ$2&ROW($DZ173)),$DY173,$DY$2&ROW($DY173)),$DX173,$DX$2&ROW($DX173)),$DW173,$DW$2&ROW($DW173)),$DV173,$DV$2&ROW($DV173)),$DU173,$DU$2&ROW($DU173)),$DT173,$DT$2&ROW($DT173)),$DS173,$DS$2&ROW($DS173)))","v":0},{"$f":"IF(Q173=\"\",0,\"X=\"&SUBSTITUTE(SUBSTITUTE(SUBSTITUTE(SUBSTITUTE(SUBSTITUTE(SUBSTITUTE(SUBSTITUTE(SUBSTITUTE(SUBSTITUTE(SUBSTITUTE(SUBSTITUTE(SUBSTITUTE(Q173,$ED173,$ED$2&ROW($ED173)),$EC173,$EC$2&ROW($EC173)),$EB173,$EB$2&ROW($EB173)),$EA173,$EA$2&ROW($EA173)),$DZ173,$DZ$2&ROW($DZ173)),$DY173,$DY$2&ROW($DY173)),$DX173,$DX$2&ROW($DX173)),$DW173,$DW$2&ROW($DW173)),$DV173,$DV$2&ROW($DV173)),$DU173,$DU$2&ROW($DU173)),$DT173,$DT$2&ROW($DT173)),$DS173,$DS$2&ROW($DS173)))","v":0},{"$f":"IF(R173=\"\",0,\"X=\"&SUBSTITUTE(SUBSTITUTE(SUBSTITUTE(SUBSTITUTE(SUBSTITUTE(SUBSTITUTE(SUBSTITUTE(SUBSTITUTE(SUBSTITUTE(SUBSTITUTE(SUBSTITUTE(SUBSTITUTE(R173,$ED173,$ED$2&ROW($ED173)),$EC173,$EC$2&ROW($EC173)),$EB173,$EB$2&ROW($EB173)),$EA173,$EA$2&ROW($EA173)),$DZ173,$DZ$2&ROW($DZ173)),$DY173,$DY$2&ROW($DY173)),$DX173,$DX$2&ROW($DX173)),$DW173,$DW$2&ROW($DW173)),$DV173,$DV$2&ROW($DV173)),$DU173,$DU$2&ROW($DU173)),$DT173,$DT$2&ROW($DT173)),$DS173,$DS$2&ROW($DS173)))","v":"X=AS173*AU173*1.0747*0.049"},{"$f":"IF(S173=\"\",0,\"X=\"&SUBSTITUTE(SUBSTITUTE(SUBSTITUTE(SUBSTITUTE(SUBSTITUTE(SUBSTITUTE(SUBSTITUTE(SUBSTITUTE(SUBSTITUTE(SUBSTITUTE(SUBSTITUTE(SUBSTITUTE(S173,$ED173,$ED$2&ROW($ED173)),$EC173,$EC$2&ROW($EC173)),$EB173,$EB$2&ROW($EB173)),$EA173,$EA$2&ROW($EA173)),$DZ173,$DZ$2&ROW($DZ173)),$DY173,$DY$2&ROW($DY173)),$DX173,$DX$2&ROW($DX173)),$DW173,$DW$2&ROW($DW173)),$DV173,$DV$2&ROW($DV173)),$DU173,$DU$2&ROW($DU173)),$DT173,$DT$2&ROW($DT173)),$DS173,$DS$2&ROW($DS173)))","v":0},{"$f":"IF(T173=\"\",0,\"X=\"&SUBSTITUTE(SUBSTITUTE(SUBSTITUTE(SUBSTITUTE(SUBSTITUTE(SUBSTITUTE(SUBSTITUTE(SUBSTITUTE(SUBSTITUTE(SUBSTITUTE(SUBSTITUTE(SUBSTITUTE(T173,$ED173,$ED$2&ROW($ED173)),$EC173,$EC$2&ROW($EC173)),$EB173,$EB$2&ROW($EB173)),$EA173,$EA$2&ROW($EA173)),$DZ173,$DZ$2&ROW($DZ173)),$DY173,$DY$2&ROW($DY173)),$DX173,$DX$2&ROW($DX173)),$DW173,$DW$2&ROW($DW173)),$DV173,$DV$2&ROW($DV173)),$DU173,$DU$2&ROW($DU173)),$DT173,$DT$2&ROW($DT173)),$DS173,$DS$2&ROW($DS173)))","v":0},{"$f":"IF(U173=\"\",0,\"X=\"&SUBSTITUTE(SUBSTITUTE(SUBSTITUTE(SUBSTITUTE(SUBSTITUTE(SUBSTITUTE(SUBSTITUTE(SUBSTITUTE(SUBSTITUTE(SUBSTITUTE(SUBSTITUTE(SUBSTITUTE(U173,$ED173,$ED$2&ROW($ED173)),$EC173,$EC$2&ROW($EC173)),$EB173,$EB$2&ROW($EB173)),$EA173,$EA$2&ROW($EA173)),$DZ173,$DZ$2&ROW($DZ173)),$DY173,$DY$2&ROW($DY173)),$DX173,$DX$2&ROW($DX173)),$DW173,$DW$2&ROW($DW173)),$DV173,$DV$2&ROW($DV173)),$DU173,$DU$2&ROW($DU173)),$DT173,$DT$2&ROW($DT173)),$DS173,$DS$2&ROW($DS173)))","v":"X=AS173*AU173*AF173*0.049"},{"$f":"IF(V173=\"\",0,\"X=\"&SUBSTITUTE(SUBSTITUTE(SUBSTITUTE(SUBSTITUTE(SUBSTITUTE(SUBSTITUTE(SUBSTITUTE(SUBSTITUTE(SUBSTITUTE(SUBSTITUTE(SUBSTITUTE(SUBSTITUTE(V173,$ED173,$ED$2&ROW($ED173)),$EC173,$EC$2&ROW($EC173)),$EB173,$EB$2&ROW($EB173)),$EA173,$EA$2&ROW($EA173)),$DZ173,$DZ$2&ROW($DZ173)),$DY173,$DY$2&ROW($DY173)),$DX173,$DX$2&ROW($DX173)),$DW173,$DW$2&ROW($DW173)),$DV173,$DV$2&ROW($DV173)),$DU173,$DU$2&ROW($DU173)),$DT173,$DT$2&ROW($DT173)),$DS173,$DS$2&ROW($DS173)))","v":"X=AS173*AU173*AG173*1.0747*0.049"},{"$f":"IF(W173=\"\",0,\"X=\"&SUBSTITUTE(SUBSTITUTE(SUBSTITUTE(SUBSTITUTE(SUBSTITUTE(SUBSTITUTE(SUBSTITUTE(SUBSTITUTE(SUBSTITUTE(SUBSTITUTE(SUBSTITUTE(SUBSTITUTE(W173,$ED173,$ED$2&ROW($ED173)),$EC173,$EC$2&ROW($EC173)),$EB173,$EB$2&ROW($EB173)),$EA173,$EA$2&ROW($EA173)),$DZ173,$DZ$2&ROW($DZ173)),$DY173,$DY$2&ROW($DY173)),$DX173,$DX$2&ROW($DX173)),$DW173,$DW$2&ROW($DW173)),$DV173,$DV$2&ROW($DV173)),$DU173,$DU$2&ROW($DU173)),$DT173,$DT$2&ROW($DT173)),$DS173,$DS$2&ROW($DS173)))","v":"X=AS173*AU173*10*-0.007"},{"$f":"IF(X173=\"\",0,\"X=\"&SUBSTITUTE(SUBSTITUTE(SUBSTITUTE(SUBSTITUTE(SUBSTITUTE(SUBSTITUTE(SUBSTITUTE(SUBSTITUTE(SUBSTITUTE(SUBSTITUTE(SUBSTITUTE(SUBSTITUTE(X173,$ED173,$ED$2&ROW($ED173)),$EC173,$EC$2&ROW($EC173)),$EB173,$EB$2&ROW($EB173)),$EA173,$EA$2&ROW($EA173)),$DZ173,$DZ$2&ROW($DZ173)),$DY173,$DY$2&ROW($DY173)),$DX173,$DX$2&ROW($DX173)),$DW173,$DW$2&ROW($DW173)),$DV173,$DV$2&ROW($DV173)),$DU173,$DU$2&ROW($DU173)),$DT173,$DT$2&ROW($DT173)),$DS173,$DS$2&ROW($DS173)))","v":"X=AS173*AU173*-0.01"},{"$f":"IF(Y173=\"\",0,\"X=\"&SUBSTITUTE(SUBSTITUTE(SUBSTITUTE(SUBSTITUTE(SUBSTITUTE(SUBSTITUTE(SUBSTITUTE(SUBSTITUTE(SUBSTITUTE(SUBSTITUTE(SUBSTITUTE(SUBSTITUTE(Y173,$ED173,$ED$2&ROW($ED173)),$EC173,$EC$2&ROW($EC173)),$EB173,$EB$2&ROW($EB173)),$EA173,$EA$2&ROW($EA173)),$DZ173,$DZ$2&ROW($DZ173)),$DY173,$DY$2&ROW($DY173)),$DX173,$DX$2&ROW($DX173)),$DW173,$DW$2&ROW($DW173)),$DV173,$DV$2&ROW($DV173)),$DU173,$DU$2&ROW($DU173)),$DT173,$DT$2&ROW($DT173)),$DS173,$DS$2&ROW($DS173)))","v":"X=AS173*AU173*-0.114"},{"$f":"IF(Z173=\"\",0,\"X=\"&SUBSTITUTE(SUBSTITUTE(SUBSTITUTE(SUBSTITUTE(SUBSTITUTE(SUBSTITUTE(SUBSTITUTE(SUBSTITUTE(SUBSTITUTE(SUBSTITUTE(SUBSTITUTE(SUBSTITUTE(Z173,$ED173,$ED$2&ROW($ED173)),$EC173,$EC$2&ROW($EC173)),$EB173,$EB$2&ROW($EB173)),$EA173,$EA$2&ROW($EA173)),$DZ173,$DZ$2&ROW($DZ173)),$DY173,$DY$2&ROW($DY173)),$DX173,$DX$2&ROW($DX173)),$DW173,$DW$2&ROW($DW173)),$DV173,$DV$2&ROW($DV173)),$DU173,$DU$2&ROW($DU173)),$DT173,$DT$2&ROW($DT173)),$DS173,$DS$2&ROW($DS173)))","v":"X=AS173*AU173*-0.005"},{"$f":"IF(AA173=\"\",0,\"X=\"&SUBSTITUTE(SUBSTITUTE(SUBSTITUTE(SUBSTITUTE(SUBSTITUTE(SUBSTITUTE(SUBSTITUTE(SUBSTITUTE(SUBSTITUTE(SUBSTITUTE(SUBSTITUTE(SUBSTITUTE(AA173,$ED173,$ED$2&ROW($ED173)),$EC173,$EC$2&ROW($EC173)),$EB173,$EB$2&ROW($EB173)),$EA173,$EA$2&ROW($EA173)),$DZ173,$DZ$2&ROW($DZ173)),$DY173,$DY$2&ROW($DY173)),$DX173,$DX$2&ROW($DX173)),$DW173,$DW$2&ROW($DW173)),$DV173,$DV$2&ROW($DV173)),$DU173,$DU$2&ROW($DU173)),$DT173,$DT$2&ROW($DT173)),$DS173,$DS$2&ROW($DS173)))","v":"X=AS173*AU173*-0.03"},{"$f":"IF(AB173=\"\",0,\"X=\"&SUBSTITUTE(SUBSTITUTE(SUBSTITUTE(SUBSTITUTE(SUBSTITUTE(SUBSTITUTE(SUBSTITUTE(SUBSTITUTE(SUBSTITUTE(SUBSTITUTE(SUBSTITUTE(SUBSTITUTE(AB173,$ED173,$ED$2&ROW($ED173)),$EC173,$EC$2&ROW($EC173)),$EB173,$EB$2&ROW($EB173)),$EA173,$EA$2&ROW($EA173)),$DZ173,$DZ$2&ROW($DZ173)),$DY173,$DY$2&ROW($DY173)),$DX173,$DX$2&ROW($DX173)),$DW173,$DW$2&ROW($DW173)),$DV173,$DV$2&ROW($DV173)),$DU173,$DU$2&ROW($DU173)),$DT173,$DT$2&ROW($DT173)),$DS173,$DS$2&ROW($DS173)))","v":0},null,null,"{Factor:WinterCF}","{Factor:SummerCF}",{"$f":"IFERROR(INDEX($EG173:$IV173,MATCH(0,COUNTIF($DR173:DT173,$EG173:$IV173),0)),\"\")","v":"{Measure:Quantity}"},{"$f":"IFERROR(INDEX($EG173:$IV173,MATCH(0,COUNTIF($DR173:DU173,$EG173:$IV173),0)),\"\")","v":"{Package Size}"},{"$f":"IFERROR(INDEX($EG173:$IV173,MATCH(0,COUNTIF($DR173:DV173,$EG173:$IV173),0)),\"\")","v":"{Rebate per Package}"},{"$f":"IFERROR(INDEX($EG173:$IV173,MATCH(0,COUNTIF($DR173:DW173,$EG173:$IV173),0)),\"\")","v":""},{"$f":"IFERROR(INDEX($EG173:$IV173,MATCH(0,COUNTIF($DR173:DX173,$EG173:$IV173),0)),\"\")","v":""},{"$f":"IFERROR(INDEX($EG173:$IV173,MATCH(0,COUNTIF($DR173:DY173,$EG173:$IV173),0)),\"\")","v":""},{"$f":"IFERROR(INDEX($EG173:$IV173,MATCH(0,COUNTIF($DR173:DZ173,$EG173:$IV173),0)),\"\")","v":""},{"$f":"IFERROR(INDEX($EG173:$IV173,MATCH(0,COUNTIF($DR173:EA173,$EG173:$IV173),0)),\"\")","v":""},{"$f":"IFERROR(INDEX($EG173:$IV173,MATCH(0,COUNTIF($DR173:EB173,$EG173:$IV173),0)),\"\")","v":""},{"$f":"IFERROR(INDEX($EG173:$IV173,MATCH(0,COUNTIF($DR173:EC173,$EG173:$IV173),0)),\"\")","v":""},null,null,{"$f":"IFERROR(MID($G173,FIND(CHAR(160),SUBSTITUTE($G173,\"{\",CHAR(160),EG$1)),FIND(CHAR(160),SUBSTITUTE($G173,\"}\",CHAR(160),EG$1))-FIND(CHAR(160),SUBSTITUTE($G173,\"{\",CHAR(160),EG$1))+1),\"\")","v":"{Measure:Quantity}"},{"$f":"IFERROR(MID($G173,FIND(CHAR(160),SUBSTITUTE($G173,\"{\",CHAR(160),EH$1)),FIND(CHAR(160),SUBSTITUTE($G173,\"}\",CHAR(160),EH$1))-FIND(CHAR(160),SUBSTITUTE($G173,\"{\",CHAR(160),EH$1))+1),\"\")","v":"{Package Size}"},{"$f":"IFERROR(MID($G173,FIND(CHAR(160),SUBSTITUTE($G173,\"{\",CHAR(160),EI$1)),FIND(CHAR(160),SUBSTITUTE($G173,\"}\",CHAR(160),EI$1))-FIND(CHAR(160),SUBSTITUTE($G173,\"{\",CHAR(160),EI$1))+1),\"\")","v":""},{"$f":"IFERROR(MID($G173,FIND(CHAR(160),SUBSTITUTE($G173,\"{\",CHAR(160),EJ$1)),FIND(CHAR(160),SUBSTITUTE($G173,\"}\",CHAR(160),EJ$1))-FIND(CHAR(160),SUBSTITUTE($G173,\"{\",CHAR(160),EJ$1))+1),\"\")","v":""},{"$f":"IFERROR(MID($G173,FIND(CHAR(160),SUBSTITUTE($G173,\"{\",CHAR(160),EK$1)),FIND(CHAR(160),SUBSTITUTE($G173,\"}\",CHAR(160),EK$1))-FIND(CHAR(160),SUBSTITUTE($G173,\"{\",CHAR(160),EK$1))+1),\"\")","v":""},{"$f":"IFERROR(MID($G173,FIND(CHAR(160),SUBSTITUTE($G173,\"{\",CHAR(160),EL$1)),FIND(CHAR(160),SUBSTITUTE($G173,\"}\",CHAR(160),EL$1))-FIND(CHAR(160),SUBSTITUTE($G173,\"{\",CHAR(160),EL$1))+1),\"\")","v":""},{"$f":"IFERROR(MID($G173,FIND(CHAR(160),SUBSTITUTE($G173,\"{\",CHAR(160),EM$1)),FIND(CHAR(160),SUBSTITUTE($G173,\"}\",CHAR(160),EM$1))-FIND(CHAR(160),SUBSTITUTE($G173,\"{\",CHAR(160),EM$1))+1),\"\")","v":""},{"$f":"IFERROR(MID($G173,FIND(CHAR(160),SUBSTITUTE($G173,\"{\",CHAR(160),EN$1)),FIND(CHAR(160),SUBSTITUTE($G173,\"}\",CHAR(160),EN$1))-FIND(CHAR(160),SUBSTITUTE($G173,\"{\",CHAR(160),EN$1))+1),\"\")","v":""},{"$f":"IFERROR(MID($G173,FIND(CHAR(160),SUBSTITUTE($G173,\"{\",CHAR(160),EO$1)),FIND(CHAR(160),SUBSTITUTE($G173,\"}\",CHAR(160),EO$1))-FIND(CHAR(160),SUBSTITUTE($G173,\"{\",CHAR(160),EO$1))+1),\"\")","v":""},{"$f":"IFERROR(MID($G173,FIND(CHAR(160),SUBSTITUTE($G173,\"{\",CHAR(160),EP$1)),FIND(CHAR(160),SUBSTITUTE($G173,\"}\",CHAR(160),EP$1))-FIND(CHAR(160),SUBSTITUTE($G173,\"{\",CHAR(160),EP$1))+1),\"\")","v":""},{"$f":"IFERROR(MID($J173,FIND(CHAR(160),SUBSTITUTE($J173,\"{\",CHAR(160),EQ$1)),FIND(CHAR(160),SUBSTITUTE($J173,\"}\",CHAR(160),EQ$1))-FIND(CHAR(160),SUBSTITUTE($J173,\"{\",CHAR(160),EQ$1))+1),\"\")","v":"{Measure:Quantity}"},{"$f":"IFERROR(MID($J173,FIND(CHAR(160),SUBSTITUTE($J173,\"{\",CHAR(160),ER$1)),FIND(CHAR(160),SUBSTITUTE($J173,\"}\",CHAR(160),ER$1))-FIND(CHAR(160),SUBSTITUTE($J173,\"{\",CHAR(160),ER$1))+1),\"\")","v":"{Rebate per Package}"},{"$f":"IFERROR(MID($J173,FIND(CHAR(160),SUBSTITUTE($J173,\"{\",CHAR(160),ES$1)),FIND(CHAR(160),SUBSTITUTE($J173,\"}\",CHAR(160),ES$1))-FIND(CHAR(160),SUBSTITUTE($J173,\"{\",CHAR(160),ES$1))+1),\"\")","v":""},{"$f":"IFERROR(MID($J173,FIND(CHAR(160),SUBSTITUTE($J173,\"{\",CHAR(160),ET$1)),FIND(CHAR(160),SUBSTITUTE($J173,\"}\",CHAR(160),ET$1))-FIND(CHAR(160),SUBSTITUTE($J173,\"{\",CHAR(160),ET$1))+1),\"\")","v":""},{"$f":"IFERROR(MID($J173,FIND(CHAR(160),SUBSTITUTE($J173,\"{\",CHAR(160),EU$1)),FIND(CHAR(160),SUBSTITUTE($J173,\"}\",CHAR(160),EU$1))-FIND(CHAR(160),SUBSTITUTE($J173,\"{\",CHAR(160),EU$1))+1),\"\")","v":""},{"$f":"IFERROR(MID($J173,FIND(CHAR(160),SUBSTITUTE($J173,\"{\",CHAR(160),EV$1)),FIND(CHAR(160),SUBSTITUTE($J173,\"}\",CHAR(160),EV$1))-FIND(CHAR(160),SUBSTITUTE($J173,\"{\",CHAR(160),EV$1))+1),\"\")","v":""},{"$f":"IFERROR(MID($J173,FIND(CHAR(160),SUBSTITUTE($J173,\"{\",CHAR(160),EW$1)),FIND(CHAR(160),SUBSTITUTE($J173,\"}\",CHAR(160),EW$1))-FIND(CHAR(160),SUBSTITUTE($J173,\"{\",CHAR(160),EW$1))+1),\"\")","v":""},{"$f":"IFERROR(MID($J173,FIND(CHAR(160),SUBSTITUTE($J173,\"{\",CHAR(160),EX$1)),FIND(CHAR(160),SUBSTITUTE($J173,\"}\",CHAR(160),EX$1))-FIND(CHAR(160),SUBSTITUTE($J173,\"{\",CHAR(160),EX$1))+1),\"\")","v":""},{"$f":"IFERROR(MID($J173,FIND(CHAR(160),SUBSTITUTE($J173,\"{\",CHAR(160),EY$1)),FIND(CHAR(160),SUBSTITUTE($J173,\"}\",CHAR(160),EY$1))-FIND(CHAR(160),SUBSTITUTE($J173,\"{\",CHAR(160),EY$1))+1),\"\")","v":""},{"$f":"IFERROR(MID($J173,FIND(CHAR(160),SUBSTITUTE($J173,\"{\",CHAR(160),EZ$1)),FIND(CHAR(160),SUBSTITUTE($J173,\"}\",CHAR(160),EZ$1))-FIND(CHAR(160),SUBSTITUTE($J173,\"{\",CHAR(160),EZ$1))+1),\"\")","v":""},{"$f":"IFERROR(MID($J173,FIND(CHAR(160),SUBSTITUTE($J173,\"{\",CHAR(160),FA$1)),FIND(CHAR(160),SUBSTITUTE($J173,\"}\",CHAR(160),FA$1))-FIND(CHAR(160),SUBSTITUTE($J173,\"{\",CHAR(160),FA$1))+1),\"\")","v":"{Measure:Quantity}"},{"$f":"IFERROR(MID($J173,FIND(CHAR(160),SUBSTITUTE($J173,\"{\",CHAR(160),FB$1)),FIND(CHAR(160),SUBSTITUTE($J173,\"}\",CHAR(160),FB$1))-FIND(CHAR(160),SUBSTITUTE($J173,\"{\",CHAR(160),FB$1))+1),\"\")","v":"{Rebate per Package}"},{"$f":"IFERROR(MID($O173,FIND(CHAR(160),SUBSTITUTE($O173,\"{\",CHAR(160),FC$1)),FIND(CHAR(160),SUBSTITUTE($O173,\"}\",CHAR(160),FC$1))-FIND(CHAR(160),SUBSTITUTE($O173,\"{\",CHAR(160),FC$1))+1),\"\")","v":""},{"$f":"IFERROR(MID($O173,FIND(CHAR(160),SUBSTITUTE($O173,\"{\",CHAR(160),FD$1)),FIND(CHAR(160),SUBSTITUTE($O173,\"}\",CHAR(160),FD$1))-FIND(CHAR(160),SUBSTITUTE($O173,\"{\",CHAR(160),FD$1))+1),\"\")","v":""},{"$f":"IFERROR(MID($O173,FIND(CHAR(160),SUBSTITUTE($O173,\"{\",CHAR(160),FE$1)),FIND(CHAR(160),SUBSTITUTE($O173,\"}\",CHAR(160),FE$1))-FIND(CHAR(160),SUBSTITUTE($O173,\"{\",CHAR(160),FE$1))+1),\"\")","v":""},{"$f":"IFERROR(MID($O173,FIND(CHAR(160),SUBSTITUTE($O173,\"{\",CHAR(160),FF$1)),FIND(CHAR(160),SUBSTITUTE($O173,\"}\",CHAR(160),FF$1))-FIND(CHAR(160),SUBSTITUTE($O173,\"{\",CHAR(160),FF$1))+1),\"\")","v":""},{"$f":"IFERROR(MID($O173,FIND(CHAR(160),SUBSTITUTE($O173,\"{\",CHAR(160),FG$1)),FIND(CHAR(160),SUBSTITUTE($O173,\"}\",CHAR(160),FG$1))-FIND(CHAR(160),SUBSTITUTE($O173,\"{\",CHAR(160),FG$1))+1),\"\")","v":""},{"$f":"IFERROR(MID($O173,FIND(CHAR(160),SUBSTITUTE($O173,\"{\",CHAR(160),FH$1)),FIND(CHAR(160),SUBSTITUTE($O173,\"}\",CHAR(160),FH$1))-FIND(CHAR(160),SUBSTITUTE($O173,\"{\",CHAR(160),FH$1))+1),\"\")","v":""},{"$f":"IFERROR(MID($O173,FIND(CHAR(160),SUBSTITUTE($O173,\"{\",CHAR(160),FI$1)),FIND(CHAR(160),SUBSTITUTE($O173,\"}\",CHAR(160),FI$1))-FIND(CHAR(160),SUBSTITUTE($O173,\"{\",CHAR(160),FI$1))+1),\"\")","v":""},{"$f":"IFERROR(MID($O173,FIND(CHAR(160),SUBSTITUTE($O173,\"{\",CHAR(160),FJ$1)),FIND(CHAR(160),SUBSTITUTE($O173,\"}\",CHAR(160),FJ$1))-FIND(CHAR(160),SUBSTITUTE($O173,\"{\",CHAR(160),FJ$1))+1),\"\")","v":""},{"$f":"IFERROR(MID($O173,FIND(CHAR(160),SUBSTITUTE($O173,\"{\",CHAR(160),FK$1)),FIND(CHAR(160),SUBSTITUTE($O173,\"}\",CHAR(160),FK$1))-FIND(CHAR(160),SUBSTITUTE($O173,\"{\",CHAR(160),FK$1))+1),\"\")","v":"{Measure:Quantity}"},{"$f":"IFERROR(MID($O173,FIND(CHAR(160),SUBSTITUTE($O173,\"{\",CHAR(160),FL$1)),FIND(CHAR(160),SUBSTITUTE($O173,\"}\",CHAR(160),FL$1))-FIND(CHAR(160),SUBSTITUTE($O173,\"{\",CHAR(160),FL$1))+1),\"\")","v":"{Package Size}"},{"$f":"IFERROR(MID($R173,FIND(CHAR(160),SUBSTITUTE($R173,\"{\",CHAR(160),FM$1)),FIND(CHAR(160),SUBSTITUTE($R173,\"}\",CHAR(160),FM$1))-FIND(CHAR(160),SUBSTITUTE($R173,\"{\",CHAR(160),FM$1))+1),\"\")","v":""},{"$f":"IFERROR(MID($R173,FIND(CHAR(160),SUBSTITUTE($R173,\"{\",CHAR(160),FN$1)),FIND(CHAR(160),SUBSTITUTE($R173,\"}\",CHAR(160),FN$1))-FIND(CHAR(160),SUBSTITUTE($R173,\"{\",CHAR(160),FN$1))+1),\"\")","v":""},{"$f":"IFERROR(MID($R173,FIND(CHAR(160),SUBSTITUTE($R173,\"{\",CHAR(160),FO$1)),FIND(CHAR(160),SUBSTITUTE($R173,\"}\",CHAR(160),FO$1))-FIND(CHAR(160),SUBSTITUTE($R173,\"{\",CHAR(160),FO$1))+1),\"\")","v":""},{"$f":"IFERROR(MID($R173,FIND(CHAR(160),SUBSTITUTE($R173,\"{\",CHAR(160),FP$1)),FIND(CHAR(160),SUBSTITUTE($R173,\"}\",CHAR(160),FP$1))-FIND(CHAR(160),SUBSTITUTE($R173,\"{\",CHAR(160),FP$1))+1),\"\")","v":""},{"$f":"IFERROR(MID($R173,FIND(CHAR(160),SUBSTITUTE($R173,\"{\",CHAR(160),FQ$1)),FIND(CHAR(160),SUBSTITUTE($R173,\"}\",CHAR(160),FQ$1))-FIND(CHAR(160),SUBSTITUTE($R173,\"{\",CHAR(160),FQ$1))+1),\"\")","v":""},{"$f":"IFERROR(MID($R173,FIND(CHAR(160),SUBSTITUTE($R173,\"{\",CHAR(160),FR$1)),FIND(CHAR(160),SUBSTITUTE($R173,\"}\",CHAR(160),FR$1))-FIND(CHAR(160),SUBSTITUTE($R173,\"{\",CHAR(160),FR$1))+1),\"\")","v":""},{"$f":"IFERROR(MID($R173,FIND(CHAR(160),SUBSTITUTE($R173,\"{\",CHAR(160),FS$1)),FIND(CHAR(160),SUBSTITUTE($R173,\"}\",CHAR(160),FS$1))-FIND(CHAR(160),SUBSTITUTE($R173,\"{\",CHAR(160),FS$1))+1),\"\")","v":""},{"$f":"IFERROR(MID($R173,FIND(CHAR(160),SUBSTITUTE($R173,\"{\",CHAR(160),FT$1)),FIND(CHAR(160),SUBSTITUTE($R173,\"}\",CHAR(160),FT$1))-FIND(CHAR(160),SUBSTITUTE($R173,\"{\",CHAR(160),FT$1))+1),\"\")","v":""},{"$f":"IFERROR(MID($R173,FIND(CHAR(160),SUBSTITUTE($R173,\"{\",CHAR(160),FU$1)),FIND(CHAR(160),SUBSTITUTE($R173,\"}\",CHAR(160),FU$1))-FIND(CHAR(160),SUBSTITUTE($R173,\"{\",CHAR(160),FU$1))+1),\"\")","v":"{Measure:Quantity}"},{"$f":"IFERROR(MID($R173,FIND(CHAR(160),SUBSTITUTE($R173,\"{\",CHAR(160),FV$1)),FIND(CHAR(160),SUBSTITUTE($R173,\"}\",CHAR(160),FV$1))-FIND(CHAR(160),SUBSTITUTE($R173,\"{\",CHAR(160),FV$1))+1),\"\")","v":"{Package Size}"},{"$f":"IFERROR(MID($U173,FIND(CHAR(160),SUBSTITUTE($U173,\"{\",CHAR(160),FW$1)),FIND(CHAR(160),SUBSTITUTE($U173,\"}\",CHAR(160),FW$1))-FIND(CHAR(160),SUBSTITUTE($U173,\"{\",CHAR(160),FW$1))+1),\"\")","v":"{Factor:WinterCF}"},{"$f":"IFERROR(MID($U173,FIND(CHAR(160),SUBSTITUTE($U173,\"{\",CHAR(160),FX$1)),FIND(CHAR(160),SUBSTITUTE($U173,\"}\",CHAR(160),FX$1))-FIND(CHAR(160),SUBSTITUTE($U173,\"{\",CHAR(160),FX$1))+1),\"\")","v":""},{"$f":"IFERROR(MID($U173,FIND(CHAR(160),SUBSTITUTE($U173,\"{\",CHAR(160),FY$1)),FIND(CHAR(160),SUBSTITUTE($U173,\"}\",CHAR(160),FY$1))-FIND(CHAR(160),SUBSTITUTE($U173,\"{\",CHAR(160),FY$1))+1),\"\")","v":""},{"$f":"IFERROR(MID($U173,FIND(CHAR(160),SUBSTITUTE($U173,\"{\",CHAR(160),FZ$1)),FIND(CHAR(160),SUBSTITUTE($U173,\"}\",CHAR(160),FZ$1))-FIND(CHAR(160),SUBSTITUTE($U173,\"{\",CHAR(160),FZ$1))+1),\"\")","v":""},{"$f":"IFERROR(MID($U173,FIND(CHAR(160),SUBSTITUTE($U173,\"{\",CHAR(160),GA$1)),FIND(CHAR(160),SUBSTITUTE($U173,\"}\",CHAR(160),GA$1))-FIND(CHAR(160),SUBSTITUTE($U173,\"{\",CHAR(160),GA$1))+1),\"\")","v":""},{"$f":"IFERROR(MID($U173,FIND(CHAR(160),SUBSTITUTE($U173,\"{\",CHAR(160),GB$1)),FIND(CHAR(160),SUBSTITUTE($U173,\"}\",CHAR(160),GB$1))-FIND(CHAR(160),SUBSTITUTE($U173,\"{\",CHAR(160),GB$1))+1),\"\")","v":""},{"$f":"IFERROR(MID($U173,FIND(CHAR(160),SUBSTITUTE($U173,\"{\",CHAR(160),GC$1)),FIND(CHAR(160),SUBSTITUTE($U173,\"}\",CHAR(160),GC$1))-FIND(CHAR(160),SUBSTITUTE($U173,\"{\",CHAR(160),GC$1))+1),\"\")","v":""},{"$f":"IFERROR(MID($U173,FIND(CHAR(160),SUBSTITUTE($U173,\"{\",CHAR(160),GD$1)),FIND(CHAR(160),SUBSTITUTE($U173,\"}\",CHAR(160),GD$1))-FIND(CHAR(160),SUBSTITUTE($U173,\"{\",CHAR(160),GD$1))+1),\"\")","v":""},{"$f":"IFERROR(MID($U173,FIND(CHAR(160),SUBSTITUTE($U173,\"{\",CHAR(160),GE$1)),FIND(CHAR(160),SUBSTITUTE($U173,\"}\",CHAR(160),GE$1))-FIND(CHAR(160),SUBSTITUTE($U173,\"{\",CHAR(160),GE$1))+1),\"\")","v":"{Measure:Quantity}"},{"$f":"IFERROR(MID($U173,FIND(CHAR(160),SUBSTITUTE($U173,\"{\",CHAR(160),GF$1)),FIND(CHAR(160),SUBSTITUTE($U173,\"}\",CHAR(160),GF$1))-FIND(CHAR(160),SUBSTITUTE($U173,\"{\",CHAR(160),GF$1))+1),\"\")","v":"{Package Size}"},{"$f":"IFERROR(MID($V173,FIND(CHAR(160),SUBSTITUTE($V173,\"{\",CHAR(160),GG$1)),FIND(CHAR(160),SUBSTITUTE($V173,\"}\",CHAR(160),GG$1))-FIND(CHAR(160),SUBSTITUTE($V173,\"{\",CHAR(160),GG$1))+1),\"\")","v":"{Factor:SummerCF}"},{"$f":"IFERROR(MID($V173,FIND(CHAR(160),SUBSTITUTE($V173,\"{\",CHAR(160),GH$1)),FIND(CHAR(160),SUBSTITUTE($V173,\"}\",CHAR(160),GH$1))-FIND(CHAR(160),SUBSTITUTE($V173,\"{\",CHAR(160),GH$1))+1),\"\")","v":""},{"$f":"IFERROR(MID($V173,FIND(CHAR(160),SUBSTITUTE($V173,\"{\",CHAR(160),GI$1)),FIND(CHAR(160),SUBSTITUTE($V173,\"}\",CHAR(160),GI$1))-FIND(CHAR(160),SUBSTITUTE($V173,\"{\",CHAR(160),GI$1))+1),\"\")","v":""},{"$f":"IFERROR(MID($V173,FIND(CHAR(160),SUBSTITUTE($V173,\"{\",CHAR(160),GJ$1)),FIND(CHAR(160),SUBSTITUTE($V173,\"}\",CHAR(160),GJ$1))-FIND(CHAR(160),SUBSTITUTE($V173,\"{\",CHAR(160),GJ$1))+1),\"\")","v":""},{"$f":"IFERROR(MID($V173,FIND(CHAR(160),SUBSTITUTE($V173,\"{\",CHAR(160),GK$1)),FIND(CHAR(160),SUBSTITUTE($V173,\"}\",CHAR(160),GK$1))-FIND(CHAR(160),SUBSTITUTE($V173,\"{\",CHAR(160),GK$1))+1),\"\")","v":""},{"$f":"IFERROR(MID($V173,FIND(CHAR(160),SUBSTITUTE($V173,\"{\",CHAR(160),GL$1)),FIND(CHAR(160),SUBSTITUTE($V173,\"}\",CHAR(160),GL$1))-FIND(CHAR(160),SUBSTITUTE($V173,\"{\",CHAR(160),GL$1))+1),\"\")","v":""},{"$f":"IFERROR(MID($V173,FIND(CHAR(160),SUBSTITUTE($V173,\"{\",CHAR(160),GM$1)),FIND(CHAR(160),SUBSTITUTE($V173,\"}\",CHAR(160),GM$1))-FIND(CHAR(160),SUBSTITUTE($V173,\"{\",CHAR(160),GM$1))+1),\"\")","v":""},{"$f":"IFERROR(MID($V173,FIND(CHAR(160),SUBSTITUTE($V173,\"{\",CHAR(160),GN$1)),FIND(CHAR(160),SUBSTITUTE($V173,\"}\",CHAR(160),GN$1))-FIND(CHAR(160),SUBSTITUTE($V173,\"{\",CHAR(160),GN$1))+1),\"\")","v":""},{"$f":"IFERROR(MID($V173,FIND(CHAR(160),SUBSTITUTE($V173,\"{\",CHAR(160),GO$1)),FIND(CHAR(160),SUBSTITUTE($V173,\"}\",CHAR(160),GO$1))-FIND(CHAR(160),SUBSTITUTE($V173,\"{\",CHAR(160),GO$1))+1),\"\")","v":"{Measure:Quantity}"},{"$f":"IFERROR(MID($V173,FIND(CHAR(160),SUBSTITUTE($V173,\"{\",CHAR(160),GP$1)),FIND(CHAR(160),SUBSTITUTE($V173,\"}\",CHAR(160),GP$1))-FIND(CHAR(160),SUBSTITUTE($V173,\"{\",CHAR(160),GP$1))+1),\"\")","v":"{Package Size}"},{"$f":"IFERROR(MID($W173,FIND(CHAR(160),SUBSTITUTE($W173,\"{\",CHAR(160),GQ$1)),FIND(CHAR(160),SUBSTITUTE($W173,\"}\",CHAR(160),GQ$1))-FIND(CHAR(160),SUBSTITUTE($W173,\"{\",CHAR(160),GQ$1))+1),\"\")","v":""},{"$f":"IFERROR(MID($W173,FIND(CHAR(160),SUBSTITUTE($W173,\"{\",CHAR(160),GR$1)),FIND(CHAR(160),SUBSTITUTE($W173,\"}\",CHAR(160),GR$1))-FIND(CHAR(160),SUBSTITUTE($W173,\"{\",CHAR(160),GR$1))+1),\"\")","v":""},{"$f":"IFERROR(MID($W173,FIND(CHAR(160),SUBSTITUTE($W173,\"{\",CHAR(160),GS$1)),FIND(CHAR(160),SUBSTITUTE($W173,\"}\",CHAR(160),GS$1))-FIND(CHAR(160),SUBSTITUTE($W173,\"{\",CHAR(160),GS$1))+1),\"\")","v":""},{"$f":"IFERROR(MID($W173,FIND(CHAR(160),SUBSTITUTE($W173,\"{\",CHAR(160),GT$1)),FIND(CHAR(160),SUBSTITUTE($W173,\"}\",CHAR(160),GT$1))-FIND(CHAR(160),SUBSTITUTE($W173,\"{\",CHAR(160),GT$1))+1),\"\")","v":""},{"$f":"IFERROR(MID($W173,FIND(CHAR(160),SUBSTITUTE($W173,\"{\",CHAR(160),GU$1)),FIND(CHAR(160),SUBSTITUTE($W173,\"}\",CHAR(160),GU$1))-FIND(CHAR(160),SUBSTITUTE($W173,\"{\",CHAR(160),GU$1))+1),\"\")","v":""},{"$f":"IFERROR(MID($W173,FIND(CHAR(160),SUBSTITUTE($W173,\"{\",CHAR(160),GV$1)),FIND(CHAR(160),SUBSTITUTE($W173,\"}\",CHAR(160),GV$1))-FIND(CHAR(160),SUBSTITUTE($W173,\"{\",CHAR(160),GV$1))+1),\"\")","v":""},{"$f":"IFERROR(MID($W173,FIND(CHAR(160),SUBSTITUTE($W173,\"{\",CHAR(160),GW$1)),FIND(CHAR(160),SUBSTITUTE($W173,\"}\",CHAR(160),GW$1))-FIND(CHAR(160),SUBSTITUTE($W173,\"{\",CHAR(160),GW$1))+1),\"\")","v":""},{"$f":"IFERROR(MID($W173,FIND(CHAR(160),SUBSTITUTE($W173,\"{\",CHAR(160),GX$1)),FIND(CHAR(160),SUBSTITUTE($W173,\"}\",CHAR(160),GX$1))-FIND(CHAR(160),SUBSTITUTE($W173,\"{\",CHAR(160),GX$1))+1),\"\")","v":""},{"$f":"IFERROR(MID($W173,FIND(CHAR(160),SUBSTITUTE($W173,\"{\",CHAR(160),GY$1)),FIND(CHAR(160),SUBSTITUTE($W173,\"}\",CHAR(160),GY$1))-FIND(CHAR(160),SUBSTITUTE($W173,\"{\",CHAR(160),GY$1))+1),\"\")","v":"{Measure:Quantity}"},{"$f":"IFERROR(MID($W173,FIND(CHAR(160),SUBSTITUTE($W173,\"{\",CHAR(160),GZ$1)),FIND(CHAR(160),SUBSTITUTE($W173,\"}\",CHAR(160),GZ$1))-FIND(CHAR(160),SUBSTITUTE($W173,\"{\",CHAR(160),GZ$1))+1),\"\")","v":"{Package Size}"},{"$f":"IFERROR(MID($X173,FIND(CHAR(160),SUBSTITUTE($X173,\"{\",CHAR(160),HA$1)),FIND(CHAR(160),SUBSTITUTE($X173,\"}\",CHAR(160),HA$1))-FIND(CHAR(160),SUBSTITUTE($X173,\"{\",CHAR(160),HA$1))+1),\"\")","v":""},{"$f":"IFERROR(MID($X173,FIND(CHAR(160),SUBSTITUTE($X173,\"{\",CHAR(160),HB$1)),FIND(CHAR(160),SUBSTITUTE($X173,\"}\",CHAR(160),HB$1))-FIND(CHAR(160),SUBSTITUTE($X173,\"{\",CHAR(160),HB$1))+1),\"\")","v":""},{"$f":"IFERROR(MID($X173,FIND(CHAR(160),SUBSTITUTE($X173,\"{\",CHAR(160),HC$1)),FIND(CHAR(160),SUBSTITUTE($X173,\"}\",CHAR(160),HC$1))-FIND(CHAR(160),SUBSTITUTE($X173,\"{\",CHAR(160),HC$1))+1),\"\")","v":""},{"$f":"IFERROR(MID($X173,FIND(CHAR(160),SUBSTITUTE($X173,\"{\",CHAR(160),HD$1)),FIND(CHAR(160),SUBSTITUTE($X173,\"}\",CHAR(160),HD$1))-FIND(CHAR(160),SUBSTITUTE($X173,\"{\",CHAR(160),HD$1))+1),\"\")","v":""},{"$f":"IFERROR(MID($X173,FIND(CHAR(160),SUBSTITUTE($X173,\"{\",CHAR(160),HE$1)),FIND(CHAR(160),SUBSTITUTE($X173,\"}\",CHAR(160),HE$1))-FIND(CHAR(160),SUBSTITUTE($X173,\"{\",CHAR(160),HE$1))+1),\"\")","v":""},{"$f":"IFERROR(MID($X173,FIND(CHAR(160),SUBSTITUTE($X173,\"{\",CHAR(160),HF$1)),FIND(CHAR(160),SUBSTITUTE($X173,\"}\",CHAR(160),HF$1))-FIND(CHAR(160),SUBSTITUTE($X173,\"{\",CHAR(160),HF$1))+1),\"\")","v":""},{"$f":"IFERROR(MID($X173,FIND(CHAR(160),SUBSTITUTE($X173,\"{\",CHAR(160),HG$1)),FIND(CHAR(160),SUBSTITUTE($X173,\"}\",CHAR(160),HG$1))-FIND(CHAR(160),SUBSTITUTE($X173,\"{\",CHAR(160),HG$1))+1),\"\")","v":""},{"$f":"IFERROR(MID($X173,FIND(CHAR(160),SUBSTITUTE($X173,\"{\",CHAR(160),HH$1)),FIND(CHAR(160),SUBSTITUTE($X173,\"}\",CHAR(160),HH$1))-FIND(CHAR(160),SUBSTITUTE($X173,\"{\",CHAR(160),HH$1))+1),\"\")","v":""},{"$f":"IFERROR(MID($X173,FIND(CHAR(160),SUBSTITUTE($X173,\"{\",CHAR(160),HI$1)),FIND(CHAR(160),SUBSTITUTE($X173,\"}\",CHAR(160),HI$1))-FIND(CHAR(160),SUBSTITUTE($X173,\"{\",CHAR(160),HI$1))+1),\"\")","v":"{Measure:Quantity}"},{"$f":"IFERROR(MID($X173,FIND(CHAR(160),SUBSTITUTE($X173,\"{\",CHAR(160),HJ$1)),FIND(CHAR(160),SUBSTITUTE($X173,\"}\",CHAR(160),HJ$1))-FIND(CHAR(160),SUBSTITUTE($X173,\"{\",CHAR(160),HJ$1))+1),\"\")","v":"{Package Size}"},{"$f":"IFERROR(MID($Y173,FIND(CHAR(160),SUBSTITUTE($Y173,\"{\",CHAR(160),HK$1)),FIND(CHAR(160),SUBSTITUTE($Y173,\"}\",CHAR(160),HK$1))-FIND(CHAR(160),SUBSTITUTE($Y173,\"{\",CHAR(160),HK$1))+1),\"\")","v":""},{"$f":"IFERROR(MID($Y173,FIND(CHAR(160),SUBSTITUTE($Y173,\"{\",CHAR(160),HL$1)),FIND(CHAR(160),SUBSTITUTE($Y173,\"}\",CHAR(160),HL$1))-FIND(CHAR(160),SUBSTITUTE($Y173,\"{\",CHAR(160),HL$1))+1),\"\")","v":""},{"$f":"IFERROR(MID($Y173,FIND(CHAR(160),SUBSTITUTE($Y173,\"{\",CHAR(160),HM$1)),FIND(CHAR(160),SUBSTITUTE($Y173,\"}\",CHAR(160),HM$1))-FIND(CHAR(160),SUBSTITUTE($Y173,\"{\",CHAR(160),HM$1))+1),\"\")","v":""},{"$f":"IFERROR(MID($Y173,FIND(CHAR(160),SUBSTITUTE($Y173,\"{\",CHAR(160),HN$1)),FIND(CHAR(160),SUBSTITUTE($Y173,\"}\",CHAR(160),HN$1))-FIND(CHAR(160),SUBSTITUTE($Y173,\"{\",CHAR(160),HN$1))+1),\"\")","v":""},{"$f":"IFERROR(MID($Y173,FIND(CHAR(160),SUBSTITUTE($Y173,\"{\",CHAR(160),HO$1)),FIND(CHAR(160),SUBSTITUTE($Y173,\"}\",CHAR(160),HO$1))-FIND(CHAR(160),SUBSTITUTE($Y173,\"{\",CHAR(160),HO$1))+1),\"\")","v":""},{"$f":"IFERROR(MID($Y173,FIND(CHAR(160),SUBSTITUTE($Y173,\"{\",CHAR(160),HP$1)),FIND(CHAR(160),SUBSTITUTE($Y173,\"}\",CHAR(160),HP$1))-FIND(CHAR(160),SUBSTITUTE($Y173,\"{\",CHAR(160),HP$1))+1),\"\")","v":""},{"$f":"IFERROR(MID($Y173,FIND(CHAR(160),SUBSTITUTE($Y173,\"{\",CHAR(160),HQ$1)),FIND(CHAR(160),SUBSTITUTE($Y173,\"}\",CHAR(160),HQ$1))-FIND(CHAR(160),SUBSTITUTE($Y173,\"{\",CHAR(160),HQ$1))+1),\"\")","v":""},{"$f":"IFERROR(MID($Y173,FIND(CHAR(160),SUBSTITUTE($Y173,\"{\",CHAR(160),HR$1)),FIND(CHAR(160),SUBSTITUTE($Y173,\"}\",CHAR(160),HR$1))-FIND(CHAR(160),SUBSTITUTE($Y173,\"{\",CHAR(160),HR$1))+1),\"\")","v":""},{"$f":"IFERROR(MID($Y173,FIND(CHAR(160),SUBSTITUTE($Y173,\"{\",CHAR(160),HS$1)),FIND(CHAR(160),SUBSTITUTE($Y173,\"}\",CHAR(160),HS$1))-FIND(CHAR(160),SUBSTITUTE($Y173,\"{\",CHAR(160),HS$1))+1),\"\")","v":"{Measure:Quantity}"},{"$f":"IFERROR(MID($Y173,FIND(CHAR(160),SUBSTITUTE($Y173,\"{\",CHAR(160),HT$1)),FIND(CHAR(160),SUBSTITUTE($Y173,\"}\",CHAR(160),HT$1))-FIND(CHAR(160),SUBSTITUTE($Y173,\"{\",CHAR(160),HT$1))+1),\"\")","v":"{Package Size}"},{"$f":"IFERROR(MID($Z173,FIND(CHAR(160),SUBSTITUTE($Z173,\"{\",CHAR(160),HU$1)),FIND(CHAR(160),SUBSTITUTE($Z173,\"}\",CHAR(160),HU$1))-FIND(CHAR(160),SUBSTITUTE($Z173,\"{\",CHAR(160),HU$1))+1),\"\")","v":""},{"$f":"IFERROR(MID($Z173,FIND(CHAR(160),SUBSTITUTE($Z173,\"{\",CHAR(160),HV$1)),FIND(CHAR(160),SUBSTITUTE($Z173,\"}\",CHAR(160),HV$1))-FIND(CHAR(160),SUBSTITUTE($Z173,\"{\",CHAR(160),HV$1))+1),\"\")","v":""},{"$f":"IFERROR(MID($Z173,FIND(CHAR(160),SUBSTITUTE($Z173,\"{\",CHAR(160),HW$1)),FIND(CHAR(160),SUBSTITUTE($Z173,\"}\",CHAR(160),HW$1))-FIND(CHAR(160),SUBSTITUTE($Z173,\"{\",CHAR(160),HW$1))+1),\"\")","v":""},{"$f":"IFERROR(MID($Z173,FIND(CHAR(160),SUBSTITUTE($Z173,\"{\",CHAR(160),HX$1)),FIND(CHAR(160),SUBSTITUTE($Z173,\"}\",CHAR(160),HX$1))-FIND(CHAR(160),SUBSTITUTE($Z173,\"{\",CHAR(160),HX$1))+1),\"\")","v":""},{"$f":"IFERROR(MID($Z173,FIND(CHAR(160),SUBSTITUTE($Z173,\"{\",CHAR(160),HY$1)),FIND(CHAR(160),SUBSTITUTE($Z173,\"}\",CHAR(160),HY$1))-FIND(CHAR(160),SUBSTITUTE($Z173,\"{\",CHAR(160),HY$1))+1),\"\")","v":""},{"$f":"IFERROR(MID($Z173,FIND(CHAR(160),SUBSTITUTE($Z173,\"{\",CHAR(160),HZ$1)),FIND(CHAR(160),SUBSTITUTE($Z173,\"}\",CHAR(160),HZ$1))-FIND(CHAR(160),SUBSTITUTE($Z173,\"{\",CHAR(160),HZ$1))+1),\"\")","v":""},{"$f":"IFERROR(MID($Z173,FIND(CHAR(160),SUBSTITUTE($Z173,\"{\",CHAR(160),IA$1)),FIND(CHAR(160),SUBSTITUTE($Z173,\"}\",CHAR(160),IA$1))-FIND(CHAR(160),SUBSTITUTE($Z173,\"{\",CHAR(160),IA$1))+1),\"\")","v":""},{"$f":"IFERROR(MID($Z173,FIND(CHAR(160),SUBSTITUTE($Z173,\"{\",CHAR(160),IB$1)),FIND(CHAR(160),SUBSTITUTE($Z173,\"}\",CHAR(160),IB$1))-FIND(CHAR(160),SUBSTITUTE($Z173,\"{\",CHAR(160),IB$1))+1),\"\")","v":""},{"$f":"IFERROR(MID($Z173,FIND(CHAR(160),SUBSTITUTE($Z173,\"{\",CHAR(160),IC$1)),FIND(CHAR(160),SUBSTITUTE($Z173,\"}\",CHAR(160),IC$1))-FIND(CHAR(160),SUBSTITUTE($Z173,\"{\",CHAR(160),IC$1))+1),\"\")","v":"{Measure:Quantity}"},{"$f":"IFERROR(MID($Z173,FIND(CHAR(160),SUBSTITUTE($Z173,\"{\",CHAR(160),ID$1)),FIND(CHAR(160),SUBSTITUTE($Z173,\"}\",CHAR(160),ID$1))-FIND(CHAR(160),SUBSTITUTE($Z173,\"{\",CHAR(160),ID$1))+1),\"\")","v":"{Package Size}"},{"$f":"IFERROR(MID($AA173,FIND(CHAR(160),SUBSTITUTE($AA173,\"{\",CHAR(160),IE$1)),FIND(CHAR(160),SUBSTITUTE($AA173,\"}\",CHAR(160),IE$1))-FIND(CHAR(160),SUBSTITUTE($AA173,\"{\",CHAR(160),IE$1))+1),\"\")","v":""},{"$f":"IFERROR(MID($AA173,FIND(CHAR(160),SUBSTITUTE($AA173,\"{\",CHAR(160),IF$1)),FIND(CHAR(160),SUBSTITUTE($AA173,\"}\",CHAR(160),IF$1))-FIND(CHAR(160),SUBSTITUTE($AA173,\"{\",CHAR(160),IF$1))+1),\"\")","v":""},{"$f":"IFERROR(MID($AA173,FIND(CHAR(160),SUBSTITUTE($AA173,\"{\",CHAR(160),IG$1)),FIND(CHAR(160),SUBSTITUTE($AA173,\"}\",CHAR(160),IG$1))-FIND(CHAR(160),SUBSTITUTE($AA173,\"{\",CHAR(160),IG$1))+1),\"\")","v":""},{"$f":"IFERROR(MID($AA173,FIND(CHAR(160),SUBSTITUTE($AA173,\"{\",CHAR(160),IH$1)),FIND(CHAR(160),SUBSTITUTE($AA173,\"}\",CHAR(160),IH$1))-FIND(CHAR(160),SUBSTITUTE($AA173,\"{\",CHAR(160),IH$1))+1),\"\")","v":""},{"$f":"IFERROR(MID($AA173,FIND(CHAR(160),SUBSTITUTE($AA173,\"{\",CHAR(160),II$1)),FIND(CHAR(160),SUBSTITUTE($AA173,\"}\",CHAR(160),II$1))-FIND(CHAR(160),SUBSTITUTE($AA173,\"{\",CHAR(160),II$1))+1),\"\")","v":""},{"$f":"IFERROR(MID($AA173,FIND(CHAR(160),SUBSTITUTE($AA173,\"{\",CHAR(160),IJ$1)),FIND(CHAR(160),SUBSTITUTE($AA173,\"}\",CHAR(160),IJ$1))-FIND(CHAR(160),SUBSTITUTE($AA173,\"{\",CHAR(160),IJ$1))+1),\"\")","v":""},{"$f":"IFERROR(MID($AA173,FIND(CHAR(160),SUBSTITUTE($AA173,\"{\",CHAR(160),IK$1)),FIND(CHAR(160),SUBSTITUTE($AA173,\"}\",CHAR(160),IK$1))-FIND(CHAR(160),SUBSTITUTE($AA173,\"{\",CHAR(160),IK$1))+1),\"\")","v":""},{"$f":"IFERROR(MID($AA173,FIND(CHAR(160),SUBSTITUTE($AA173,\"{\",CHAR(160),IL$1)),FIND(CHAR(160),SUBSTITUTE($AA173,\"}\",CHAR(160),IL$1))-FIND(CHAR(160),SUBSTITUTE($AA173,\"{\",CHAR(160),IL$1))+1),\"\")","v":""},{"$f":"IFERROR(MID($AA173,FIND(CHAR(160),SUBSTITUTE($AA173,\"{\",CHAR(160),IM$1)),FIND(CHAR(160),SUBSTITUTE($AA173,\"}\",CHAR(160),IM$1))-FIND(CHAR(160),SUBSTITUTE($AA173,\"{\",CHAR(160),IM$1))+1),\"\")","v":"{Measure:Quantity}"},{"$f":"IFERROR(MID($AA173,FIND(CHAR(160),SUBSTITUTE($AA173,\"{\",CHAR(160),IN$1)),FIND(CHAR(160),SUBSTITUTE($AA173,\"}\",CHAR(160),IN$1))-FIND(CHAR(160),SUBSTITUTE($AA173,\"{\",CHAR(160),IN$1))+1),\"\")","v":"{Package Size}"},{"$f":"IFERROR(MID($AB173,FIND(CHAR(160),SUBSTITUTE($AB173,\"{\",CHAR(160),IO$1)),FIND(CHAR(160),SUBSTITUTE($AB173,\"}\",CHAR(160),IO$1))-FIND(CHAR(160),SUBSTITUTE($AB173,\"{\",CHAR(160),IO$1))+1),\"\")","v":""},{"$f":"IFERROR(MID($AB173,FIND(CHAR(160),SUBSTITUTE($AB173,\"{\",CHAR(160),IP$1)),FIND(CHAR(160),SUBSTITUTE($AB173,\"}\",CHAR(160),IP$1))-FIND(CHAR(160),SUBSTITUTE($AB173,\"{\",CHAR(160),IP$1))+1),\"\")","v":""},{"$f":"IFERROR(MID($AB173,FIND(CHAR(160),SUBSTITUTE($AB173,\"{\",CHAR(160),IQ$1)),FIND(CHAR(160),SUBSTITUTE($AB173,\"}\",CHAR(160),IQ$1))-FIND(CHAR(160),SUBSTITUTE($AB173,\"{\",CHAR(160),IQ$1))+1),\"\")","v":""},{"$f":"IFERROR(MID($AB173,FIND(CHAR(160),SUBSTITUTE($AB173,\"{\",CHAR(160),IR$1)),FIND(CHAR(160),SUBSTITUTE($AB173,\"}\",CHAR(160),IR$1))-FIND(CHAR(160),SUBSTITUTE($AB173,\"{\",CHAR(160),IR$1))+1),\"\")","v":""},{"$f":"IFERROR(MID($AB173,FIND(CHAR(160),SUBSTITUTE($AB173,\"{\",CHAR(160),IS$1)),FIND(CHAR(160),SUBSTITUTE($AB173,\"}\",CHAR(160),IS$1))-FIND(CHAR(160),SUBSTITUTE($AB173,\"{\",CHAR(160),IS$1))+1),\"\")","v":""},{"$f":"IFERROR(MID($AB173,FIND(CHAR(160),SUBSTITUTE($AB173,\"{\",CHAR(160),IT$1)),FIND(CHAR(160),SUBSTITUTE($AB173,\"}\",CHAR(160),IT$1))-FIND(CHAR(160),SUBSTITUTE($AB173,\"{\",CHAR(160),IT$1))+1),\"\")","v":""},{"$f":"IFERROR(MID($AB173,FIND(CHAR(160),SUBSTITUTE($AB173,\"{\",CHAR(160),IU$1)),FIND(CHAR(160),SUBSTITUTE($AB173,\"}\",CHAR(160),IU$1))-FIND(CHAR(160),SUBSTITUTE($AB173,\"{\",CHAR(160),IU$1))+1),\"\")","v":""},{"$f":"IFERROR(MID($AB173,FIND(CHAR(160),SUBSTITUTE($AB173,\"{\",CHAR(160),IV$1)),FIND(CHAR(160),SUBSTITUTE($AB173,\"}\",CHAR(160),IV$1))-FIND(CHAR(160),SUBSTITUTE($AB173,\"{\",CHAR(160),IV$1))+1),\"\")","v":""},{"$f":"IFERROR(MID($AB173,FIND(CHAR(160),SUBSTITUTE($AB173,\"{\",CHAR(160),IW$1)),FIND(CHAR(160),SUBSTITUTE($AB173,\"}\",CHAR(160),IW$1))-FIND(CHAR(160),SUBSTITUTE($AB173,\"{\",CHAR(160),IW$1))+1),\"\")","v":""},{"$f":"IFERROR(MID($AB173,FIND(CHAR(160),SUBSTITUTE($AB173,\"{\",CHAR(160),IX$1)),FIND(CHAR(160),SUBSTITUTE($AB173,\"}\",CHAR(160),IX$1))-FIND(CHAR(160),SUBSTITUTE($AB173,\"{\",CHAR(160),IX$1))+1),\"\")","v":""},null,{"$f":"10-COUNTIF(DU173:ED173,\"\")","v":3}]
["Distributor Lighting","Specialty LED - PAR20","LEDPAR20","2021-07-01","2022-06-30","Calculated","{Measure:Quantity}*{Package Size}*3.32",0,"Calculated","{Measure:Quantity}*{Rebate per Package}",0,"2021-07-01","2022-06-30","Calculated","{Measure:Quantity}*{Package Size}*92",null,null,"{Measure:Quantity}*{Package Size}*1.0747*0.053",null,null,"{Measure:Quantity}*{Package Size}*{Factor:WinterCF}*0.053","{Measure:Quantity}*{Package Size}*{Factor:SummerCF}*1.0747*0.053","{Measure:Quantity}*{Package Size}*10*-0.012","{Measure:Quantity}*{Package Size}*-0.007","{Measure:Quantity}*{Package Size}*-0.061","{Measure:Quantity}*{Package Size}*-0.002","{Measure:Quantity}*{Package Size}*-0.015",null,"2021-07-01","2022-06-30",2,0.254,0.309,0.42299999999999999,0.249,0.21,0.11799999999999999,0.99,1,1,0.51,0,null,{"$f":"DU174","v":"{Measure:Quantity}"},1,{"$f":"DV174","v":"{Package Size}"},1,{"$f":"DW174","v":"{Rebate per Package}"},{"$f":"CW174*CO174","v":2.4899999999999998},{"$f":"DX174","v":""},null,{"$f":"DY174","v":""},null,{"$f":"DZ174","v":""},null,{"$f":"EA174","v":""},null,{"$f":"EB174","v":""},null,{"$f":"EC174","v":""},null,{"$f":"ED174","v":""},null,{"$f":"AS174*AU174*92","v":92},0,0,{"$f":"AS174*AU174*1.0747*0.053","v":5.6959099999999999E-2},0,0,{"$f":"AS174*AU174*AF174*0.053","v":1.3462E-2},{"$f":"AS174*AU174*AG174*1.0747*0.053","v":1.76003619E-2},{"$f":"AS174*AU174*10*-0.012","v":-0.12},{"$f":"AS174*AU174*-0.007","v":-7.0000000000000001E-3},{"$f":"AS174*AU174*-0.061","v":-6.0999999999999999E-2},{"$f":"AS174*AU174*-0.002","v":-2E-3},{"$f":"AS174*AU174*-0.015","v":-1.4999999999999999E-2},0,null,"Res","Default DR",{"$f":"Benefits(BL174,BR174,BS174,BT174,BU174,BV174,BW174,BX174,BY174,BZ174,AE174,AH174,AI174,AJ174,AK174,AL174,AM174,AN174,AO174,AP174,CA174,CB174)","v":21.929831991997979},13.234421619806151,-0.431375580458082,-3.9940486300856031,-0.14862690259143968,-0.63520328766536971,-0.51667418941634236,0,0,{"$f":"SUMPRODUCT(CC174:CK174,--(CC174:CK174>0))","v":35.164253611804128},{"$f":"-SUMPRODUCT(CC174:CK174,--(CC174:CK174<0))","v":5.7259285902168369},null,{"$f":"AS174*AU174*3.32","v":3.32},null,null,{"$f":"CM174+CO174","v":9.0459285902168372},{"$f":"IF(NetOrGross=\"Net\",(1-AO174+AP174),1)","v":1},{"$f":"(SUMPRODUCT(CC174:CJ174,--(CC174:CJ174>0))+CN174)*CS174/((-SUMPRODUCT(CC174:CJ174,--(CC174:CJ174<0))+MAX(CO174,CV174)+CP174+CQ174)*CS174+IF(FRIncentives=\"Yes\",CV174*(1-CS174),0))","v":3.8873017027609782},1,{"$f":"AS174*AW174","v":2.4899999999999998},{"$f":"CW173","v":0.75},"Electric","y",null,{"$f":"IF(F174=\"Manual Entry\",\"Manual\",IF(G174=\"\",0,\"X=\"&SUBSTITUTE(SUBSTITUTE(SUBSTITUTE(SUBSTITUTE(SUBSTITUTE(SUBSTITUTE(SUBSTITUTE(SUBSTITUTE(SUBSTITUTE(SUBSTITUTE(SUBSTITUTE(SUBSTITUTE(G174,$ED174,$ED$2&ROW($ED174)),$EC174,$EC$2&ROW($EC174)),$EB174,$EB$2&ROW($EB174)),$EA174,$EA$2&ROW($EA174)),$DZ174,$DZ$2&ROW($DZ174)),$DY174,$DY$2&ROW($DY174)),$DX174,$DX$2&ROW($DX174)),$DW174,$DW$2&ROW($DW174)),$DV174,$DV$2&ROW($DV174)),$DU174,$DU$2&ROW($DU174)),$DT174,$DT$2&ROW($DT174)),$DS174,$DS$2&ROW($DS174))))","v":"X=AS174*AU174*3.32"},{"$f":"IF(I174=\"Manual Entry\",\"Manual\",IF(J174=\"\",0,\"X=\"&SUBSTITUTE(SUBSTITUTE(SUBSTITUTE(SUBSTITUTE(SUBSTITUTE(SUBSTITUTE(SUBSTITUTE(SUBSTITUTE(SUBSTITUTE(SUBSTITUTE(SUBSTITUTE(SUBSTITUTE(J174,$ED174,$ED$2&ROW($ED174)),$EC174,$EC$2&ROW($EC174)),$EB174,$EB$2&ROW($EB174)),$EA174,$EA$2&ROW($EA174)),$DZ174,$DZ$2&ROW($DZ174)),$DY174,$DY$2&ROW($DY174)),$DX174,$DX$2&ROW($DX174)),$DW174,$DW$2&ROW($DW174)),$DV174,$DV$2&ROW($DV174)),$DU174,$DU$2&ROW($DU174)),$DT174,$DT$2&ROW($DT174)),$DS174,$DS$2&ROW($DS174))))","v":"X=AS174*AW174"},{"$f":"IF(O174=\"\",0,\"X=\"&SUBSTITUTE(SUBSTITUTE(SUBSTITUTE(SUBSTITUTE(SUBSTITUTE(SUBSTITUTE(SUBSTITUTE(SUBSTITUTE(SUBSTITUTE(SUBSTITUTE(SUBSTITUTE(SUBSTITUTE(O174,$ED174,$ED$2&ROW($ED174)),$EC174,$EC$2&ROW($EC174)),$EB174,$EB$2&ROW($EB174)),$EA174,$EA$2&ROW($EA174)),$DZ174,$DZ$2&ROW($DZ174)),$DY174,$DY$2&ROW($DY174)),$DX174,$DX$2&ROW($DX174)),$DW174,$DW$2&ROW($DW174)),$DV174,$DV$2&ROW($DV174)),$DU174,$DU$2&ROW($DU174)),$DT174,$DT$2&ROW($DT174)),$DS174,$DS$2&ROW($DS174)))","v":"X=AS174*AU174*92"},{"$f":"IF(P174=\"\",0,\"X=\"&SUBSTITUTE(SUBSTITUTE(SUBSTITUTE(SUBSTITUTE(SUBSTITUTE(SUBSTITUTE(SUBSTITUTE(SUBSTITUTE(SUBSTITUTE(SUBSTITUTE(SUBSTITUTE(SUBSTITUTE(P174,$ED174,$ED$2&ROW($ED174)),$EC174,$EC$2&ROW($EC174)),$EB174,$EB$2&ROW($EB174)),$EA174,$EA$2&ROW($EA174)),$DZ174,$DZ$2&ROW($DZ174)),$DY174,$DY$2&ROW($DY174)),$DX174,$DX$2&ROW($DX174)),$DW174,$DW$2&ROW($DW174)),$DV174,$DV$2&ROW($DV174)),$DU174,$DU$2&ROW($DU174)),$DT174,$DT$2&ROW($DT174)),$DS174,$DS$2&ROW($DS174)))","v":0},{"$f":"IF(Q174=\"\",0,\"X=\"&SUBSTITUTE(SUBSTITUTE(SUBSTITUTE(SUBSTITUTE(SUBSTITUTE(SUBSTITUTE(SUBSTITUTE(SUBSTITUTE(SUBSTITUTE(SUBSTITUTE(SUBSTITUTE(SUBSTITUTE(Q174,$ED174,$ED$2&ROW($ED174)),$EC174,$EC$2&ROW($EC174)),$EB174,$EB$2&ROW($EB174)),$EA174,$EA$2&ROW($EA174)),$DZ174,$DZ$2&ROW($DZ174)),$DY174,$DY$2&ROW($DY174)),$DX174,$DX$2&ROW($DX174)),$DW174,$DW$2&ROW($DW174)),$DV174,$DV$2&ROW($DV174)),$DU174,$DU$2&ROW($DU174)),$DT174,$DT$2&ROW($DT174)),$DS174,$DS$2&ROW($DS174)))","v":0},{"$f":"IF(R174=\"\",0,\"X=\"&SUBSTITUTE(SUBSTITUTE(SUBSTITUTE(SUBSTITUTE(SUBSTITUTE(SUBSTITUTE(SUBSTITUTE(SUBSTITUTE(SUBSTITUTE(SUBSTITUTE(SUBSTITUTE(SUBSTITUTE(R174,$ED174,$ED$2&ROW($ED174)),$EC174,$EC$2&ROW($EC174)),$EB174,$EB$2&ROW($EB174)),$EA174,$EA$2&ROW($EA174)),$DZ174,$DZ$2&ROW($DZ174)),$DY174,$DY$2&ROW($DY174)),$DX174,$DX$2&ROW($DX174)),$DW174,$DW$2&ROW($DW174)),$DV174,$DV$2&ROW($DV174)),$DU174,$DU$2&ROW($DU174)),$DT174,$DT$2&ROW($DT174)),$DS174,$DS$2&ROW($DS174)))","v":"X=AS174*AU174*1.0747*0.053"},{"$f":"IF(S174=\"\",0,\"X=\"&SUBSTITUTE(SUBSTITUTE(SUBSTITUTE(SUBSTITUTE(SUBSTITUTE(SUBSTITUTE(SUBSTITUTE(SUBSTITUTE(SUBSTITUTE(SUBSTITUTE(SUBSTITUTE(SUBSTITUTE(S174,$ED174,$ED$2&ROW($ED174)),$EC174,$EC$2&ROW($EC174)),$EB174,$EB$2&ROW($EB174)),$EA174,$EA$2&ROW($EA174)),$DZ174,$DZ$2&ROW($DZ174)),$DY174,$DY$2&ROW($DY174)),$DX174,$DX$2&ROW($DX174)),$DW174,$DW$2&ROW($DW174)),$DV174,$DV$2&ROW($DV174)),$DU174,$DU$2&ROW($DU174)),$DT174,$DT$2&ROW($DT174)),$DS174,$DS$2&ROW($DS174)))","v":0},{"$f":"IF(T174=\"\",0,\"X=\"&SUBSTITUTE(SUBSTITUTE(SUBSTITUTE(SUBSTITUTE(SUBSTITUTE(SUBSTITUTE(SUBSTITUTE(SUBSTITUTE(SUBSTITUTE(SUBSTITUTE(SUBSTITUTE(SUBSTITUTE(T174,$ED174,$ED$2&ROW($ED174)),$EC174,$EC$2&ROW($EC174)),$EB174,$EB$2&ROW($EB174)),$EA174,$EA$2&ROW($EA174)),$DZ174,$DZ$2&ROW($DZ174)),$DY174,$DY$2&ROW($DY174)),$DX174,$DX$2&ROW($DX174)),$DW174,$DW$2&ROW($DW174)),$DV174,$DV$2&ROW($DV174)),$DU174,$DU$2&ROW($DU174)),$DT174,$DT$2&ROW($DT174)),$DS174,$DS$2&ROW($DS174)))","v":0},{"$f":"IF(U174=\"\",0,\"X=\"&SUBSTITUTE(SUBSTITUTE(SUBSTITUTE(SUBSTITUTE(SUBSTITUTE(SUBSTITUTE(SUBSTITUTE(SUBSTITUTE(SUBSTITUTE(SUBSTITUTE(SUBSTITUTE(SUBSTITUTE(U174,$ED174,$ED$2&ROW($ED174)),$EC174,$EC$2&ROW($EC174)),$EB174,$EB$2&ROW($EB174)),$EA174,$EA$2&ROW($EA174)),$DZ174,$DZ$2&ROW($DZ174)),$DY174,$DY$2&ROW($DY174)),$DX174,$DX$2&ROW($DX174)),$DW174,$DW$2&ROW($DW174)),$DV174,$DV$2&ROW($DV174)),$DU174,$DU$2&ROW($DU174)),$DT174,$DT$2&ROW($DT174)),$DS174,$DS$2&ROW($DS174)))","v":"X=AS174*AU174*AF174*0.053"},{"$f":"IF(V174=\"\",0,\"X=\"&SUBSTITUTE(SUBSTITUTE(SUBSTITUTE(SUBSTITUTE(SUBSTITUTE(SUBSTITUTE(SUBSTITUTE(SUBSTITUTE(SUBSTITUTE(SUBSTITUTE(SUBSTITUTE(SUBSTITUTE(V174,$ED174,$ED$2&ROW($ED174)),$EC174,$EC$2&ROW($EC174)),$EB174,$EB$2&ROW($EB174)),$EA174,$EA$2&ROW($EA174)),$DZ174,$DZ$2&ROW($DZ174)),$DY174,$DY$2&ROW($DY174)),$DX174,$DX$2&ROW($DX174)),$DW174,$DW$2&ROW($DW174)),$DV174,$DV$2&ROW($DV174)),$DU174,$DU$2&ROW($DU174)),$DT174,$DT$2&ROW($DT174)),$DS174,$DS$2&ROW($DS174)))","v":"X=AS174*AU174*AG174*1.0747*0.053"},{"$f":"IF(W174=\"\",0,\"X=\"&SUBSTITUTE(SUBSTITUTE(SUBSTITUTE(SUBSTITUTE(SUBSTITUTE(SUBSTITUTE(SUBSTITUTE(SUBSTITUTE(SUBSTITUTE(SUBSTITUTE(SUBSTITUTE(SUBSTITUTE(W174,$ED174,$ED$2&ROW($ED174)),$EC174,$EC$2&ROW($EC174)),$EB174,$EB$2&ROW($EB174)),$EA174,$EA$2&ROW($EA174)),$DZ174,$DZ$2&ROW($DZ174)),$DY174,$DY$2&ROW($DY174)),$DX174,$DX$2&ROW($DX174)),$DW174,$DW$2&ROW($DW174)),$DV174,$DV$2&ROW($DV174)),$DU174,$DU$2&ROW($DU174)),$DT174,$DT$2&ROW($DT174)),$DS174,$DS$2&ROW($DS174)))","v":"X=AS174*AU174*10*-0.012"},{"$f":"IF(X174=\"\",0,\"X=\"&SUBSTITUTE(SUBSTITUTE(SUBSTITUTE(SUBSTITUTE(SUBSTITUTE(SUBSTITUTE(SUBSTITUTE(SUBSTITUTE(SUBSTITUTE(SUBSTITUTE(SUBSTITUTE(SUBSTITUTE(X174,$ED174,$ED$2&ROW($ED174)),$EC174,$EC$2&ROW($EC174)),$EB174,$EB$2&ROW($EB174)),$EA174,$EA$2&ROW($EA174)),$DZ174,$DZ$2&ROW($DZ174)),$DY174,$DY$2&ROW($DY174)),$DX174,$DX$2&ROW($DX174)),$DW174,$DW$2&ROW($DW174)),$DV174,$DV$2&ROW($DV174)),$DU174,$DU$2&ROW($DU174)),$DT174,$DT$2&ROW($DT174)),$DS174,$DS$2&ROW($DS174)))","v":"X=AS174*AU174*-0.007"},{"$f":"IF(Y174=\"\",0,\"X=\"&SUBSTITUTE(SUBSTITUTE(SUBSTITUTE(SUBSTITUTE(SUBSTITUTE(SUBSTITUTE(SUBSTITUTE(SUBSTITUTE(SUBSTITUTE(SUBSTITUTE(SUBSTITUTE(SUBSTITUTE(Y174,$ED174,$ED$2&ROW($ED174)),$EC174,$EC$2&ROW($EC174)),$EB174,$EB$2&ROW($EB174)),$EA174,$EA$2&ROW($EA174)),$DZ174,$DZ$2&ROW($DZ174)),$DY174,$DY$2&ROW($DY174)),$DX174,$DX$2&ROW($DX174)),$DW174,$DW$2&ROW($DW174)),$DV174,$DV$2&ROW($DV174)),$DU174,$DU$2&ROW($DU174)),$DT174,$DT$2&ROW($DT174)),$DS174,$DS$2&ROW($DS174)))","v":"X=AS174*AU174*-0.061"},{"$f":"IF(Z174=\"\",0,\"X=\"&SUBSTITUTE(SUBSTITUTE(SUBSTITUTE(SUBSTITUTE(SUBSTITUTE(SUBSTITUTE(SUBSTITUTE(SUBSTITUTE(SUBSTITUTE(SUBSTITUTE(SUBSTITUTE(SUBSTITUTE(Z174,$ED174,$ED$2&ROW($ED174)),$EC174,$EC$2&ROW($EC174)),$EB174,$EB$2&ROW($EB174)),$EA174,$EA$2&ROW($EA174)),$DZ174,$DZ$2&ROW($DZ174)),$DY174,$DY$2&ROW($DY174)),$DX174,$DX$2&ROW($DX174)),$DW174,$DW$2&ROW($DW174)),$DV174,$DV$2&ROW($DV174)),$DU174,$DU$2&ROW($DU174)),$DT174,$DT$2&ROW($DT174)),$DS174,$DS$2&ROW($DS174)))","v":"X=AS174*AU174*-0.002"},{"$f":"IF(AA174=\"\",0,\"X=\"&SUBSTITUTE(SUBSTITUTE(SUBSTITUTE(SUBSTITUTE(SUBSTITUTE(SUBSTITUTE(SUBSTITUTE(SUBSTITUTE(SUBSTITUTE(SUBSTITUTE(SUBSTITUTE(SUBSTITUTE(AA174,$ED174,$ED$2&ROW($ED174)),$EC174,$EC$2&ROW($EC174)),$EB174,$EB$2&ROW($EB174)),$EA174,$EA$2&ROW($EA174)),$DZ174,$DZ$2&ROW($DZ174)),$DY174,$DY$2&ROW($DY174)),$DX174,$DX$2&ROW($DX174)),$DW174,$DW$2&ROW($DW174)),$DV174,$DV$2&ROW($DV174)),$DU174,$DU$2&ROW($DU174)),$DT174,$DT$2&ROW($DT174)),$DS174,$DS$2&ROW($DS174)))","v":"X=AS174*AU174*-0.015"},{"$f":"IF(AB174=\"\",0,\"X=\"&SUBSTITUTE(SUBSTITUTE(SUBSTITUTE(SUBSTITUTE(SUBSTITUTE(SUBSTITUTE(SUBSTITUTE(SUBSTITUTE(SUBSTITUTE(SUBSTITUTE(SUBSTITUTE(SUBSTITUTE(AB174,$ED174,$ED$2&ROW($ED174)),$EC174,$EC$2&ROW($EC174)),$EB174,$EB$2&ROW($EB174)),$EA174,$EA$2&ROW($EA174)),$DZ174,$DZ$2&ROW($DZ174)),$DY174,$DY$2&ROW($DY174)),$DX174,$DX$2&ROW($DX174)),$DW174,$DW$2&ROW($DW174)),$DV174,$DV$2&ROW($DV174)),$DU174,$DU$2&ROW($DU174)),$DT174,$DT$2&ROW($DT174)),$DS174,$DS$2&ROW($DS174)))","v":0},null,null,"{Factor:WinterCF}","{Factor:SummerCF}",{"$f":"IFERROR(INDEX($EG174:$IV174,MATCH(0,COUNTIF($DR174:DT174,$EG174:$IV174),0)),\"\")","v":"{Measure:Quantity}"},{"$f":"IFERROR(INDEX($EG174:$IV174,MATCH(0,COUNTIF($DR174:DU174,$EG174:$IV174),0)),\"\")","v":"{Package Size}"},{"$f":"IFERROR(INDEX($EG174:$IV174,MATCH(0,COUNTIF($DR174:DV174,$EG174:$IV174),0)),\"\")","v":"{Rebate per Package}"},{"$f":"IFERROR(INDEX($EG174:$IV174,MATCH(0,COUNTIF($DR174:DW174,$EG174:$IV174),0)),\"\")","v":""},{"$f":"IFERROR(INDEX($EG174:$IV174,MATCH(0,COUNTIF($DR174:DX174,$EG174:$IV174),0)),\"\")","v":""},{"$f":"IFERROR(INDEX($EG174:$IV174,MATCH(0,COUNTIF($DR174:DY174,$EG174:$IV174),0)),\"\")","v":""},{"$f":"IFERROR(INDEX($EG174:$IV174,MATCH(0,COUNTIF($DR174:DZ174,$EG174:$IV174),0)),\"\")","v":""},{"$f":"IFERROR(INDEX($EG174:$IV174,MATCH(0,COUNTIF($DR174:EA174,$EG174:$IV174),0)),\"\")","v":""},{"$f":"IFERROR(INDEX($EG174:$IV174,MATCH(0,COUNTIF($DR174:EB174,$EG174:$IV174),0)),\"\")","v":""},{"$f":"IFERROR(INDEX($EG174:$IV174,MATCH(0,COUNTIF($DR174:EC174,$EG174:$IV174),0)),\"\")","v":""},null,null,{"$f":"IFERROR(MID($G174,FIND(CHAR(160),SUBSTITUTE($G174,\"{\",CHAR(160),EG$1)),FIND(CHAR(160),SUBSTITUTE($G174,\"}\",CHAR(160),EG$1))-FIND(CHAR(160),SUBSTITUTE($G174,\"{\",CHAR(160),EG$1))+1),\"\")","v":"{Measure:Quantity}"},{"$f":"IFERROR(MID($G174,FIND(CHAR(160),SUBSTITUTE($G174,\"{\",CHAR(160),EH$1)),FIND(CHAR(160),SUBSTITUTE($G174,\"}\",CHAR(160),EH$1))-FIND(CHAR(160),SUBSTITUTE($G174,\"{\",CHAR(160),EH$1))+1),\"\")","v":"{Package Size}"},{"$f":"IFERROR(MID($G174,FIND(CHAR(160),SUBSTITUTE($G174,\"{\",CHAR(160),EI$1)),FIND(CHAR(160),SUBSTITUTE($G174,\"}\",CHAR(160),EI$1))-FIND(CHAR(160),SUBSTITUTE($G174,\"{\",CHAR(160),EI$1))+1),\"\")","v":""},{"$f":"IFERROR(MID($G174,FIND(CHAR(160),SUBSTITUTE($G174,\"{\",CHAR(160),EJ$1)),FIND(CHAR(160),SUBSTITUTE($G174,\"}\",CHAR(160),EJ$1))-FIND(CHAR(160),SUBSTITUTE($G174,\"{\",CHAR(160),EJ$1))+1),\"\")","v":""},{"$f":"IFERROR(MID($G174,FIND(CHAR(160),SUBSTITUTE($G174,\"{\",CHAR(160),EK$1)),FIND(CHAR(160),SUBSTITUTE($G174,\"}\",CHAR(160),EK$1))-FIND(CHAR(160),SUBSTITUTE($G174,\"{\",CHAR(160),EK$1))+1),\"\")","v":""},{"$f":"IFERROR(MID($G174,FIND(CHAR(160),SUBSTITUTE($G174,\"{\",CHAR(160),EL$1)),FIND(CHAR(160),SUBSTITUTE($G174,\"}\",CHAR(160),EL$1))-FIND(CHAR(160),SUBSTITUTE($G174,\"{\",CHAR(160),EL$1))+1),\"\")","v":""},{"$f":"IFERROR(MID($G174,FIND(CHAR(160),SUBSTITUTE($G174,\"{\",CHAR(160),EM$1)),FIND(CHAR(160),SUBSTITUTE($G174,\"}\",CHAR(160),EM$1))-FIND(CHAR(160),SUBSTITUTE($G174,\"{\",CHAR(160),EM$1))+1),\"\")","v":""},{"$f":"IFERROR(MID($G174,FIND(CHAR(160),SUBSTITUTE($G174,\"{\",CHAR(160),EN$1)),FIND(CHAR(160),SUBSTITUTE($G174,\"}\",CHAR(160),EN$1))-FIND(CHAR(160),SUBSTITUTE($G174,\"{\",CHAR(160),EN$1))+1),\"\")","v":""},{"$f":"IFERROR(MID($G174,FIND(CHAR(160),SUBSTITUTE($G174,\"{\",CHAR(160),EO$1)),FIND(CHAR(160),SUBSTITUTE($G174,\"}\",CHAR(160),EO$1))-FIND(CHAR(160),SUBSTITUTE($G174,\"{\",CHAR(160),EO$1))+1),\"\")","v":""},{"$f":"IFERROR(MID($G174,FIND(CHAR(160),SUBSTITUTE($G174,\"{\",CHAR(160),EP$1)),FIND(CHAR(160),SUBSTITUTE($G174,\"}\",CHAR(160),EP$1))-FIND(CHAR(160),SUBSTITUTE($G174,\"{\",CHAR(160),EP$1))+1),\"\")","v":""},{"$f":"IFERROR(MID($J174,FIND(CHAR(160),SUBSTITUTE($J174,\"{\",CHAR(160),EQ$1)),FIND(CHAR(160),SUBSTITUTE($J174,\"}\",CHAR(160),EQ$1))-FIND(CHAR(160),SUBSTITUTE($J174,\"{\",CHAR(160),EQ$1))+1),\"\")","v":"{Measure:Quantity}"},{"$f":"IFERROR(MID($J174,FIND(CHAR(160),SUBSTITUTE($J174,\"{\",CHAR(160),ER$1)),FIND(CHAR(160),SUBSTITUTE($J174,\"}\",CHAR(160),ER$1))-FIND(CHAR(160),SUBSTITUTE($J174,\"{\",CHAR(160),ER$1))+1),\"\")","v":"{Rebate per Package}"},{"$f":"IFERROR(MID($J174,FIND(CHAR(160),SUBSTITUTE($J174,\"{\",CHAR(160),ES$1)),FIND(CHAR(160),SUBSTITUTE($J174,\"}\",CHAR(160),ES$1))-FIND(CHAR(160),SUBSTITUTE($J174,\"{\",CHAR(160),ES$1))+1),\"\")","v":""},{"$f":"IFERROR(MID($J174,FIND(CHAR(160),SUBSTITUTE($J174,\"{\",CHAR(160),ET$1)),FIND(CHAR(160),SUBSTITUTE($J174,\"}\",CHAR(160),ET$1))-FIND(CHAR(160),SUBSTITUTE($J174,\"{\",CHAR(160),ET$1))+1),\"\")","v":""},{"$f":"IFERROR(MID($J174,FIND(CHAR(160),SUBSTITUTE($J174,\"{\",CHAR(160),EU$1)),FIND(CHAR(160),SUBSTITUTE($J174,\"}\",CHAR(160),EU$1))-FIND(CHAR(160),SUBSTITUTE($J174,\"{\",CHAR(160),EU$1))+1),\"\")","v":""},{"$f":"IFERROR(MID($J174,FIND(CHAR(160),SUBSTITUTE($J174,\"{\",CHAR(160),EV$1)),FIND(CHAR(160),SUBSTITUTE($J174,\"}\",CHAR(160),EV$1))-FIND(CHAR(160),SUBSTITUTE($J174,\"{\",CHAR(160),EV$1))+1),\"\")","v":""},{"$f":"IFERROR(MID($J174,FIND(CHAR(160),SUBSTITUTE($J174,\"{\",CHAR(160),EW$1)),FIND(CHAR(160),SUBSTITUTE($J174,\"}\",CHAR(160),EW$1))-FIND(CHAR(160),SUBSTITUTE($J174,\"{\",CHAR(160),EW$1))+1),\"\")","v":""},{"$f":"IFERROR(MID($J174,FIND(CHAR(160),SUBSTITUTE($J174,\"{\",CHAR(160),EX$1)),FIND(CHAR(160),SUBSTITUTE($J174,\"}\",CHAR(160),EX$1))-FIND(CHAR(160),SUBSTITUTE($J174,\"{\",CHAR(160),EX$1))+1),\"\")","v":""},{"$f":"IFERROR(MID($J174,FIND(CHAR(160),SUBSTITUTE($J174,\"{\",CHAR(160),EY$1)),FIND(CHAR(160),SUBSTITUTE($J174,\"}\",CHAR(160),EY$1))-FIND(CHAR(160),SUBSTITUTE($J174,\"{\",CHAR(160),EY$1))+1),\"\")","v":""},{"$f":"IFERROR(MID($J174,FIND(CHAR(160),SUBSTITUTE($J174,\"{\",CHAR(160),EZ$1)),FIND(CHAR(160),SUBSTITUTE($J174,\"}\",CHAR(160),EZ$1))-FIND(CHAR(160),SUBSTITUTE($J174,\"{\",CHAR(160),EZ$1))+1),\"\")","v":""},{"$f":"IFERROR(MID($J174,FIND(CHAR(160),SUBSTITUTE($J174,\"{\",CHAR(160),FA$1)),FIND(CHAR(160),SUBSTITUTE($J174,\"}\",CHAR(160),FA$1))-FIND(CHAR(160),SUBSTITUTE($J174,\"{\",CHAR(160),FA$1))+1),\"\")","v":"{Measure:Quantity}"},{"$f":"IFERROR(MID($J174,FIND(CHAR(160),SUBSTITUTE($J174,\"{\",CHAR(160),FB$1)),FIND(CHAR(160),SUBSTITUTE($J174,\"}\",CHAR(160),FB$1))-FIND(CHAR(160),SUBSTITUTE($J174,\"{\",CHAR(160),FB$1))+1),\"\")","v":"{Rebate per Package}"},{"$f":"IFERROR(MID($O174,FIND(CHAR(160),SUBSTITUTE($O174,\"{\",CHAR(160),FC$1)),FIND(CHAR(160),SUBSTITUTE($O174,\"}\",CHAR(160),FC$1))-FIND(CHAR(160),SUBSTITUTE($O174,\"{\",CHAR(160),FC$1))+1),\"\")","v":""},{"$f":"IFERROR(MID($O174,FIND(CHAR(160),SUBSTITUTE($O174,\"{\",CHAR(160),FD$1)),FIND(CHAR(160),SUBSTITUTE($O174,\"}\",CHAR(160),FD$1))-FIND(CHAR(160),SUBSTITUTE($O174,\"{\",CHAR(160),FD$1))+1),\"\")","v":""},{"$f":"IFERROR(MID($O174,FIND(CHAR(160),SUBSTITUTE($O174,\"{\",CHAR(160),FE$1)),FIND(CHAR(160),SUBSTITUTE($O174,\"}\",CHAR(160),FE$1))-FIND(CHAR(160),SUBSTITUTE($O174,\"{\",CHAR(160),FE$1))+1),\"\")","v":""},{"$f":"IFERROR(MID($O174,FIND(CHAR(160),SUBSTITUTE($O174,\"{\",CHAR(160),FF$1)),FIND(CHAR(160),SUBSTITUTE($O174,\"}\",CHAR(160),FF$1))-FIND(CHAR(160),SUBSTITUTE($O174,\"{\",CHAR(160),FF$1))+1),\"\")","v":""},{"$f":"IFERROR(MID($O174,FIND(CHAR(160),SUBSTITUTE($O174,\"{\",CHAR(160),FG$1)),FIND(CHAR(160),SUBSTITUTE($O174,\"}\",CHAR(160),FG$1))-FIND(CHAR(160),SUBSTITUTE($O174,\"{\",CHAR(160),FG$1))+1),\"\")","v":""},{"$f":"IFERROR(MID($O174,FIND(CHAR(160),SUBSTITUTE($O174,\"{\",CHAR(160),FH$1)),FIND(CHAR(160),SUBSTITUTE($O174,\"}\",CHAR(160),FH$1))-FIND(CHAR(160),SUBSTITUTE($O174,\"{\",CHAR(160),FH$1))+1),\"\")","v":""},{"$f":"IFERROR(MID($O174,FIND(CHAR(160),SUBSTITUTE($O174,\"{\",CHAR(160),FI$1)),FIND(CHAR(160),SUBSTITUTE($O174,\"}\",CHAR(160),FI$1))-FIND(CHAR(160),SUBSTITUTE($O174,\"{\",CHAR(160),FI$1))+1),\"\")","v":""},{"$f":"IFERROR(MID($O174,FIND(CHAR(160),SUBSTITUTE($O174,\"{\",CHAR(160),FJ$1)),FIND(CHAR(160),SUBSTITUTE($O174,\"}\",CHAR(160),FJ$1))-FIND(CHAR(160),SUBSTITUTE($O174,\"{\",CHAR(160),FJ$1))+1),\"\")","v":""},{"$f":"IFERROR(MID($O174,FIND(CHAR(160),SUBSTITUTE($O174,\"{\",CHAR(160),FK$1)),FIND(CHAR(160),SUBSTITUTE($O174,\"}\",CHAR(160),FK$1))-FIND(CHAR(160),SUBSTITUTE($O174,\"{\",CHAR(160),FK$1))+1),\"\")","v":"{Measure:Quantity}"},{"$f":"IFERROR(MID($O174,FIND(CHAR(160),SUBSTITUTE($O174,\"{\",CHAR(160),FL$1)),FIND(CHAR(160),SUBSTITUTE($O174,\"}\",CHAR(160),FL$1))-FIND(CHAR(160),SUBSTITUTE($O174,\"{\",CHAR(160),FL$1))+1),\"\")","v":"{Package Size}"},{"$f":"IFERROR(MID($R174,FIND(CHAR(160),SUBSTITUTE($R174,\"{\",CHAR(160),FM$1)),FIND(CHAR(160),SUBSTITUTE($R174,\"}\",CHAR(160),FM$1))-FIND(CHAR(160),SUBSTITUTE($R174,\"{\",CHAR(160),FM$1))+1),\"\")","v":""},{"$f":"IFERROR(MID($R174,FIND(CHAR(160),SUBSTITUTE($R174,\"{\",CHAR(160),FN$1)),FIND(CHAR(160),SUBSTITUTE($R174,\"}\",CHAR(160),FN$1))-FIND(CHAR(160),SUBSTITUTE($R174,\"{\",CHAR(160),FN$1))+1),\"\")","v":""},{"$f":"IFERROR(MID($R174,FIND(CHAR(160),SUBSTITUTE($R174,\"{\",CHAR(160),FO$1)),FIND(CHAR(160),SUBSTITUTE($R174,\"}\",CHAR(160),FO$1))-FIND(CHAR(160),SUBSTITUTE($R174,\"{\",CHAR(160),FO$1))+1),\"\")","v":""},{"$f":"IFERROR(MID($R174,FIND(CHAR(160),SUBSTITUTE($R174,\"{\",CHAR(160),FP$1)),FIND(CHAR(160),SUBSTITUTE($R174,\"}\",CHAR(160),FP$1))-FIND(CHAR(160),SUBSTITUTE($R174,\"{\",CHAR(160),FP$1))+1),\"\")","v":""},{"$f":"IFERROR(MID($R174,FIND(CHAR(160),SUBSTITUTE($R174,\"{\",CHAR(160),FQ$1)),FIND(CHAR(160),SUBSTITUTE($R174,\"}\",CHAR(160),FQ$1))-FIND(CHAR(160),SUBSTITUTE($R174,\"{\",CHAR(160),FQ$1))+1),\"\")","v":""},{"$f":"IFERROR(MID($R174,FIND(CHAR(160),SUBSTITUTE($R174,\"{\",CHAR(160),FR$1)),FIND(CHAR(160),SUBSTITUTE($R174,\"}\",CHAR(160),FR$1))-FIND(CHAR(160),SUBSTITUTE($R174,\"{\",CHAR(160),FR$1))+1),\"\")","v":""},{"$f":"IFERROR(MID($R174,FIND(CHAR(160),SUBSTITUTE($R174,\"{\",CHAR(160),FS$1)),FIND(CHAR(160),SUBSTITUTE($R174,\"}\",CHAR(160),FS$1))-FIND(CHAR(160),SUBSTITUTE($R174,\"{\",CHAR(160),FS$1))+1),\"\")","v":""},{"$f":"IFERROR(MID($R174,FIND(CHAR(160),SUBSTITUTE($R174,\"{\",CHAR(160),FT$1)),FIND(CHAR(160),SUBSTITUTE($R174,\"}\",CHAR(160),FT$1))-FIND(CHAR(160),SUBSTITUTE($R174,\"{\",CHAR(160),FT$1))+1),\"\")","v":""},{"$f":"IFERROR(MID($R174,FIND(CHAR(160),SUBSTITUTE($R174,\"{\",CHAR(160),FU$1)),FIND(CHAR(160),SUBSTITUTE($R174,\"}\",CHAR(160),FU$1))-FIND(CHAR(160),SUBSTITUTE($R174,\"{\",CHAR(160),FU$1))+1),\"\")","v":"{Measure:Quantity}"},{"$f":"IFERROR(MID($R174,FIND(CHAR(160),SUBSTITUTE($R174,\"{\",CHAR(160),FV$1)),FIND(CHAR(160),SUBSTITUTE($R174,\"}\",CHAR(160),FV$1))-FIND(CHAR(160),SUBSTITUTE($R174,\"{\",CHAR(160),FV$1))+1),\"\")","v":"{Package Size}"},{"$f":"IFERROR(MID($U174,FIND(CHAR(160),SUBSTITUTE($U174,\"{\",CHAR(160),FW$1)),FIND(CHAR(160),SUBSTITUTE($U174,\"}\",CHAR(160),FW$1))-FIND(CHAR(160),SUBSTITUTE($U174,\"{\",CHAR(160),FW$1))+1),\"\")","v":"{Factor:WinterCF}"},{"$f":"IFERROR(MID($U174,FIND(CHAR(160),SUBSTITUTE($U174,\"{\",CHAR(160),FX$1)),FIND(CHAR(160),SUBSTITUTE($U174,\"}\",CHAR(160),FX$1))-FIND(CHAR(160),SUBSTITUTE($U174,\"{\",CHAR(160),FX$1))+1),\"\")","v":""},{"$f":"IFERROR(MID($U174,FIND(CHAR(160),SUBSTITUTE($U174,\"{\",CHAR(160),FY$1)),FIND(CHAR(160),SUBSTITUTE($U174,\"}\",CHAR(160),FY$1))-FIND(CHAR(160),SUBSTITUTE($U174,\"{\",CHAR(160),FY$1))+1),\"\")","v":""},{"$f":"IFERROR(MID($U174,FIND(CHAR(160),SUBSTITUTE($U174,\"{\",CHAR(160),FZ$1)),FIND(CHAR(160),SUBSTITUTE($U174,\"}\",CHAR(160),FZ$1))-FIND(CHAR(160),SUBSTITUTE($U174,\"{\",CHAR(160),FZ$1))+1),\"\")","v":""},{"$f":"IFERROR(MID($U174,FIND(CHAR(160),SUBSTITUTE($U174,\"{\",CHAR(160),GA$1)),FIND(CHAR(160),SUBSTITUTE($U174,\"}\",CHAR(160),GA$1))-FIND(CHAR(160),SUBSTITUTE($U174,\"{\",CHAR(160),GA$1))+1),\"\")","v":""},{"$f":"IFERROR(MID($U174,FIND(CHAR(160),SUBSTITUTE($U174,\"{\",CHAR(160),GB$1)),FIND(CHAR(160),SUBSTITUTE($U174,\"}\",CHAR(160),GB$1))-FIND(CHAR(160),SUBSTITUTE($U174,\"{\",CHAR(160),GB$1))+1),\"\")","v":""},{"$f":"IFERROR(MID($U174,FIND(CHAR(160),SUBSTITUTE($U174,\"{\",CHAR(160),GC$1)),FIND(CHAR(160),SUBSTITUTE($U174,\"}\",CHAR(160),GC$1))-FIND(CHAR(160),SUBSTITUTE($U174,\"{\",CHAR(160),GC$1))+1),\"\")","v":""},{"$f":"IFERROR(MID($U174,FIND(CHAR(160),SUBSTITUTE($U174,\"{\",CHAR(160),GD$1)),FIND(CHAR(160),SUBSTITUTE($U174,\"}\",CHAR(160),GD$1))-FIND(CHAR(160),SUBSTITUTE($U174,\"{\",CHAR(160),GD$1))+1),\"\")","v":""},{"$f":"IFERROR(MID($U174,FIND(CHAR(160),SUBSTITUTE($U174,\"{\",CHAR(160),GE$1)),FIND(CHAR(160),SUBSTITUTE($U174,\"}\",CHAR(160),GE$1))-FIND(CHAR(160),SUBSTITUTE($U174,\"{\",CHAR(160),GE$1))+1),\"\")","v":"{Measure:Quantity}"},{"$f":"IFERROR(MID($U174,FIND(CHAR(160),SUBSTITUTE($U174,\"{\",CHAR(160),GF$1)),FIND(CHAR(160),SUBSTITUTE($U174,\"}\",CHAR(160),GF$1))-FIND(CHAR(160),SUBSTITUTE($U174,\"{\",CHAR(160),GF$1))+1),\"\")","v":"{Package Size}"},{"$f":"IFERROR(MID($V174,FIND(CHAR(160),SUBSTITUTE($V174,\"{\",CHAR(160),GG$1)),FIND(CHAR(160),SUBSTITUTE($V174,\"}\",CHAR(160),GG$1))-FIND(CHAR(160),SUBSTITUTE($V174,\"{\",CHAR(160),GG$1))+1),\"\")","v":"{Factor:SummerCF}"},{"$f":"IFERROR(MID($V174,FIND(CHAR(160),SUBSTITUTE($V174,\"{\",CHAR(160),GH$1)),FIND(CHAR(160),SUBSTITUTE($V174,\"}\",CHAR(160),GH$1))-FIND(CHAR(160),SUBSTITUTE($V174,\"{\",CHAR(160),GH$1))+1),\"\")","v":""},{"$f":"IFERROR(MID($V174,FIND(CHAR(160),SUBSTITUTE($V174,\"{\",CHAR(160),GI$1)),FIND(CHAR(160),SUBSTITUTE($V174,\"}\",CHAR(160),GI$1))-FIND(CHAR(160),SUBSTITUTE($V174,\"{\",CHAR(160),GI$1))+1),\"\")","v":""},{"$f":"IFERROR(MID($V174,FIND(CHAR(160),SUBSTITUTE($V174,\"{\",CHAR(160),GJ$1)),FIND(CHAR(160),SUBSTITUTE($V174,\"}\",CHAR(160),GJ$1))-FIND(CHAR(160),SUBSTITUTE($V174,\"{\",CHAR(160),GJ$1))+1),\"\")","v":""},{"$f":"IFERROR(MID($V174,FIND(CHAR(160),SUBSTITUTE($V174,\"{\",CHAR(160),GK$1)),FIND(CHAR(160),SUBSTITUTE($V174,\"}\",CHAR(160),GK$1))-FIND(CHAR(160),SUBSTITUTE($V174,\"{\",CHAR(160),GK$1))+1),\"\")","v":""},{"$f":"IFERROR(MID($V174,FIND(CHAR(160),SUBSTITUTE($V174,\"{\",CHAR(160),GL$1)),FIND(CHAR(160),SUBSTITUTE($V174,\"}\",CHAR(160),GL$1))-FIND(CHAR(160),SUBSTITUTE($V174,\"{\",CHAR(160),GL$1))+1),\"\")","v":""},{"$f":"IFERROR(MID($V174,FIND(CHAR(160),SUBSTITUTE($V174,\"{\",CHAR(160),GM$1)),FIND(CHAR(160),SUBSTITUTE($V174,\"}\",CHAR(160),GM$1))-FIND(CHAR(160),SUBSTITUTE($V174,\"{\",CHAR(160),GM$1))+1),\"\")","v":""},{"$f":"IFERROR(MID($V174,FIND(CHAR(160),SUBSTITUTE($V174,\"{\",CHAR(160),GN$1)),FIND(CHAR(160),SUBSTITUTE($V174,\"}\",CHAR(160),GN$1))-FIND(CHAR(160),SUBSTITUTE($V174,\"{\",CHAR(160),GN$1))+1),\"\")","v":""},{"$f":"IFERROR(MID($V174,FIND(CHAR(160),SUBSTITUTE($V174,\"{\",CHAR(160),GO$1)),FIND(CHAR(160),SUBSTITUTE($V174,\"}\",CHAR(160),GO$1))-FIND(CHAR(160),SUBSTITUTE($V174,\"{\",CHAR(160),GO$1))+1),\"\")","v":"{Measure:Quantity}"},{"$f":"IFERROR(MID($V174,FIND(CHAR(160),SUBSTITUTE($V174,\"{\",CHAR(160),GP$1)),FIND(CHAR(160),SUBSTITUTE($V174,\"}\",CHAR(160),GP$1))-FIND(CHAR(160),SUBSTITUTE($V174,\"{\",CHAR(160),GP$1))+1),\"\")","v":"{Package Size}"},{"$f":"IFERROR(MID($W174,FIND(CHAR(160),SUBSTITUTE($W174,\"{\",CHAR(160),GQ$1)),FIND(CHAR(160),SUBSTITUTE($W174,\"}\",CHAR(160),GQ$1))-FIND(CHAR(160),SUBSTITUTE($W174,\"{\",CHAR(160),GQ$1))+1),\"\")","v":""},{"$f":"IFERROR(MID($W174,FIND(CHAR(160),SUBSTITUTE($W174,\"{\",CHAR(160),GR$1)),FIND(CHAR(160),SUBSTITUTE($W174,\"}\",CHAR(160),GR$1))-FIND(CHAR(160),SUBSTITUTE($W174,\"{\",CHAR(160),GR$1))+1),\"\")","v":""},{"$f":"IFERROR(MID($W174,FIND(CHAR(160),SUBSTITUTE($W174,\"{\",CHAR(160),GS$1)),FIND(CHAR(160),SUBSTITUTE($W174,\"}\",CHAR(160),GS$1))-FIND(CHAR(160),SUBSTITUTE($W174,\"{\",CHAR(160),GS$1))+1),\"\")","v":""},{"$f":"IFERROR(MID($W174,FIND(CHAR(160),SUBSTITUTE($W174,\"{\",CHAR(160),GT$1)),FIND(CHAR(160),SUBSTITUTE($W174,\"}\",CHAR(160),GT$1))-FIND(CHAR(160),SUBSTITUTE($W174,\"{\",CHAR(160),GT$1))+1),\"\")","v":""},{"$f":"IFERROR(MID($W174,FIND(CHAR(160),SUBSTITUTE($W174,\"{\",CHAR(160),GU$1)),FIND(CHAR(160),SUBSTITUTE($W174,\"}\",CHAR(160),GU$1))-FIND(CHAR(160),SUBSTITUTE($W174,\"{\",CHAR(160),GU$1))+1),\"\")","v":""},{"$f":"IFERROR(MID($W174,FIND(CHAR(160),SUBSTITUTE($W174,\"{\",CHAR(160),GV$1)),FIND(CHAR(160),SUBSTITUTE($W174,\"}\",CHAR(160),GV$1))-FIND(CHAR(160),SUBSTITUTE($W174,\"{\",CHAR(160),GV$1))+1),\"\")","v":""},{"$f":"IFERROR(MID($W174,FIND(CHAR(160),SUBSTITUTE($W174,\"{\",CHAR(160),GW$1)),FIND(CHAR(160),SUBSTITUTE($W174,\"}\",CHAR(160),GW$1))-FIND(CHAR(160),SUBSTITUTE($W174,\"{\",CHAR(160),GW$1))+1),\"\")","v":""},{"$f":"IFERROR(MID($W174,FIND(CHAR(160),SUBSTITUTE($W174,\"{\",CHAR(160),GX$1)),FIND(CHAR(160),SUBSTITUTE($W174,\"}\",CHAR(160),GX$1))-FIND(CHAR(160),SUBSTITUTE($W174,\"{\",CHAR(160),GX$1))+1),\"\")","v":""},{"$f":"IFERROR(MID($W174,FIND(CHAR(160),SUBSTITUTE($W174,\"{\",CHAR(160),GY$1)),FIND(CHAR(160),SUBSTITUTE($W174,\"}\",CHAR(160),GY$1))-FIND(CHAR(160),SUBSTITUTE($W174,\"{\",CHAR(160),GY$1))+1),\"\")","v":"{Measure:Quantity}"},{"$f":"IFERROR(MID($W174,FIND(CHAR(160),SUBSTITUTE($W174,\"{\",CHAR(160),GZ$1)),FIND(CHAR(160),SUBSTITUTE($W174,\"}\",CHAR(160),GZ$1))-FIND(CHAR(160),SUBSTITUTE($W174,\"{\",CHAR(160),GZ$1))+1),\"\")","v":"{Package Size}"},{"$f":"IFERROR(MID($X174,FIND(CHAR(160),SUBSTITUTE($X174,\"{\",CHAR(160),HA$1)),FIND(CHAR(160),SUBSTITUTE($X174,\"}\",CHAR(160),HA$1))-FIND(CHAR(160),SUBSTITUTE($X174,\"{\",CHAR(160),HA$1))+1),\"\")","v":""},{"$f":"IFERROR(MID($X174,FIND(CHAR(160),SUBSTITUTE($X174,\"{\",CHAR(160),HB$1)),FIND(CHAR(160),SUBSTITUTE($X174,\"}\",CHAR(160),HB$1))-FIND(CHAR(160),SUBSTITUTE($X174,\"{\",CHAR(160),HB$1))+1),\"\")","v":""},{"$f":"IFERROR(MID($X174,FIND(CHAR(160),SUBSTITUTE($X174,\"{\",CHAR(160),HC$1)),FIND(CHAR(160),SUBSTITUTE($X174,\"}\",CHAR(160),HC$1))-FIND(CHAR(160),SUBSTITUTE($X174,\"{\",CHAR(160),HC$1))+1),\"\")","v":""},{"$f":"IFERROR(MID($X174,FIND(CHAR(160),SUBSTITUTE($X174,\"{\",CHAR(160),HD$1)),FIND(CHAR(160),SUBSTITUTE($X174,\"}\",CHAR(160),HD$1))-FIND(CHAR(160),SUBSTITUTE($X174,\"{\",CHAR(160),HD$1))+1),\"\")","v":""},{"$f":"IFERROR(MID($X174,FIND(CHAR(160),SUBSTITUTE($X174,\"{\",CHAR(160),HE$1)),FIND(CHAR(160),SUBSTITUTE($X174,\"}\",CHAR(160),HE$1))-FIND(CHAR(160),SUBSTITUTE($X174,\"{\",CHAR(160),HE$1))+1),\"\")","v":""},{"$f":"IFERROR(MID($X174,FIND(CHAR(160),SUBSTITUTE($X174,\"{\",CHAR(160),HF$1)),FIND(CHAR(160),SUBSTITUTE($X174,\"}\",CHAR(160),HF$1))-FIND(CHAR(160),SUBSTITUTE($X174,\"{\",CHAR(160),HF$1))+1),\"\")","v":""},{"$f":"IFERROR(MID($X174,FIND(CHAR(160),SUBSTITUTE($X174,\"{\",CHAR(160),HG$1)),FIND(CHAR(160),SUBSTITUTE($X174,\"}\",CHAR(160),HG$1))-FIND(CHAR(160),SUBSTITUTE($X174,\"{\",CHAR(160),HG$1))+1),\"\")","v":""},{"$f":"IFERROR(MID($X174,FIND(CHAR(160),SUBSTITUTE($X174,\"{\",CHAR(160),HH$1)),FIND(CHAR(160),SUBSTITUTE($X174,\"}\",CHAR(160),HH$1))-FIND(CHAR(160),SUBSTITUTE($X174,\"{\",CHAR(160),HH$1))+1),\"\")","v":""},{"$f":"IFERROR(MID($X174,FIND(CHAR(160),SUBSTITUTE($X174,\"{\",CHAR(160),HI$1)),FIND(CHAR(160),SUBSTITUTE($X174,\"}\",CHAR(160),HI$1))-FIND(CHAR(160),SUBSTITUTE($X174,\"{\",CHAR(160),HI$1))+1),\"\")","v":"{Measure:Quantity}"},{"$f":"IFERROR(MID($X174,FIND(CHAR(160),SUBSTITUTE($X174,\"{\",CHAR(160),HJ$1)),FIND(CHAR(160),SUBSTITUTE($X174,\"}\",CHAR(160),HJ$1))-FIND(CHAR(160),SUBSTITUTE($X174,\"{\",CHAR(160),HJ$1))+1),\"\")","v":"{Package Size}"},{"$f":"IFERROR(MID($Y174,FIND(CHAR(160),SUBSTITUTE($Y174,\"{\",CHAR(160),HK$1)),FIND(CHAR(160),SUBSTITUTE($Y174,\"}\",CHAR(160),HK$1))-FIND(CHAR(160),SUBSTITUTE($Y174,\"{\",CHAR(160),HK$1))+1),\"\")","v":""},{"$f":"IFERROR(MID($Y174,FIND(CHAR(160),SUBSTITUTE($Y174,\"{\",CHAR(160),HL$1)),FIND(CHAR(160),SUBSTITUTE($Y174,\"}\",CHAR(160),HL$1))-FIND(CHAR(160),SUBSTITUTE($Y174,\"{\",CHAR(160),HL$1))+1),\"\")","v":""},{"$f":"IFERROR(MID($Y174,FIND(CHAR(160),SUBSTITUTE($Y174,\"{\",CHAR(160),HM$1)),FIND(CHAR(160),SUBSTITUTE($Y174,\"}\",CHAR(160),HM$1))-FIND(CHAR(160),SUBSTITUTE($Y174,\"{\",CHAR(160),HM$1))+1),\"\")","v":""},{"$f":"IFERROR(MID($Y174,FIND(CHAR(160),SUBSTITUTE($Y174,\"{\",CHAR(160),HN$1)),FIND(CHAR(160),SUBSTITUTE($Y174,\"}\",CHAR(160),HN$1))-FIND(CHAR(160),SUBSTITUTE($Y174,\"{\",CHAR(160),HN$1))+1),\"\")","v":""},{"$f":"IFERROR(MID($Y174,FIND(CHAR(160),SUBSTITUTE($Y174,\"{\",CHAR(160),HO$1)),FIND(CHAR(160),SUBSTITUTE($Y174,\"}\",CHAR(160),HO$1))-FIND(CHAR(160),SUBSTITUTE($Y174,\"{\",CHAR(160),HO$1))+1),\"\")","v":""},{"$f":"IFERROR(MID($Y174,FIND(CHAR(160),SUBSTITUTE($Y174,\"{\",CHAR(160),HP$1)),FIND(CHAR(160),SUBSTITUTE($Y174,\"}\",CHAR(160),HP$1))-FIND(CHAR(160),SUBSTITUTE($Y174,\"{\",CHAR(160),HP$1))+1),\"\")","v":""},{"$f":"IFERROR(MID($Y174,FIND(CHAR(160),SUBSTITUTE($Y174,\"{\",CHAR(160),HQ$1)),FIND(CHAR(160),SUBSTITUTE($Y174,\"}\",CHAR(160),HQ$1))-FIND(CHAR(160),SUBSTITUTE($Y174,\"{\",CHAR(160),HQ$1))+1),\"\")","v":""},{"$f":"IFERROR(MID($Y174,FIND(CHAR(160),SUBSTITUTE($Y174,\"{\",CHAR(160),HR$1)),FIND(CHAR(160),SUBSTITUTE($Y174,\"}\",CHAR(160),HR$1))-FIND(CHAR(160),SUBSTITUTE($Y174,\"{\",CHAR(160),HR$1))+1),\"\")","v":""},{"$f":"IFERROR(MID($Y174,FIND(CHAR(160),SUBSTITUTE($Y174,\"{\",CHAR(160),HS$1)),FIND(CHAR(160),SUBSTITUTE($Y174,\"}\",CHAR(160),HS$1))-FIND(CHAR(160),SUBSTITUTE($Y174,\"{\",CHAR(160),HS$1))+1),\"\")","v":"{Measure:Quantity}"},{"$f":"IFERROR(MID($Y174,FIND(CHAR(160),SUBSTITUTE($Y174,\"{\",CHAR(160),HT$1)),FIND(CHAR(160),SUBSTITUTE($Y174,\"}\",CHAR(160),HT$1))-FIND(CHAR(160),SUBSTITUTE($Y174,\"{\",CHAR(160),HT$1))+1),\"\")","v":"{Package Size}"},{"$f":"IFERROR(MID($Z174,FIND(CHAR(160),SUBSTITUTE($Z174,\"{\",CHAR(160),HU$1)),FIND(CHAR(160),SUBSTITUTE($Z174,\"}\",CHAR(160),HU$1))-FIND(CHAR(160),SUBSTITUTE($Z174,\"{\",CHAR(160),HU$1))+1),\"\")","v":""},{"$f":"IFERROR(MID($Z174,FIND(CHAR(160),SUBSTITUTE($Z174,\"{\",CHAR(160),HV$1)),FIND(CHAR(160),SUBSTITUTE($Z174,\"}\",CHAR(160),HV$1))-FIND(CHAR(160),SUBSTITUTE($Z174,\"{\",CHAR(160),HV$1))+1),\"\")","v":""},{"$f":"IFERROR(MID($Z174,FIND(CHAR(160),SUBSTITUTE($Z174,\"{\",CHAR(160),HW$1)),FIND(CHAR(160),SUBSTITUTE($Z174,\"}\",CHAR(160),HW$1))-FIND(CHAR(160),SUBSTITUTE($Z174,\"{\",CHAR(160),HW$1))+1),\"\")","v":""},{"$f":"IFERROR(MID($Z174,FIND(CHAR(160),SUBSTITUTE($Z174,\"{\",CHAR(160),HX$1)),FIND(CHAR(160),SUBSTITUTE($Z174,\"}\",CHAR(160),HX$1))-FIND(CHAR(160),SUBSTITUTE($Z174,\"{\",CHAR(160),HX$1))+1),\"\")","v":""},{"$f":"IFERROR(MID($Z174,FIND(CHAR(160),SUBSTITUTE($Z174,\"{\",CHAR(160),HY$1)),FIND(CHAR(160),SUBSTITUTE($Z174,\"}\",CHAR(160),HY$1))-FIND(CHAR(160),SUBSTITUTE($Z174,\"{\",CHAR(160),HY$1))+1),\"\")","v":""},{"$f":"IFERROR(MID($Z174,FIND(CHAR(160),SUBSTITUTE($Z174,\"{\",CHAR(160),HZ$1)),FIND(CHAR(160),SUBSTITUTE($Z174,\"}\",CHAR(160),HZ$1))-FIND(CHAR(160),SUBSTITUTE($Z174,\"{\",CHAR(160),HZ$1))+1),\"\")","v":""},{"$f":"IFERROR(MID($Z174,FIND(CHAR(160),SUBSTITUTE($Z174,\"{\",CHAR(160),IA$1)),FIND(CHAR(160),SUBSTITUTE($Z174,\"}\",CHAR(160),IA$1))-FIND(CHAR(160),SUBSTITUTE($Z174,\"{\",CHAR(160),IA$1))+1),\"\")","v":""},{"$f":"IFERROR(MID($Z174,FIND(CHAR(160),SUBSTITUTE($Z174,\"{\",CHAR(160),IB$1)),FIND(CHAR(160),SUBSTITUTE($Z174,\"}\",CHAR(160),IB$1))-FIND(CHAR(160),SUBSTITUTE($Z174,\"{\",CHAR(160),IB$1))+1),\"\")","v":""},{"$f":"IFERROR(MID($Z174,FIND(CHAR(160),SUBSTITUTE($Z174,\"{\",CHAR(160),IC$1)),FIND(CHAR(160),SUBSTITUTE($Z174,\"}\",CHAR(160),IC$1))-FIND(CHAR(160),SUBSTITUTE($Z174,\"{\",CHAR(160),IC$1))+1),\"\")","v":"{Measure:Quantity}"},{"$f":"IFERROR(MID($Z174,FIND(CHAR(160),SUBSTITUTE($Z174,\"{\",CHAR(160),ID$1)),FIND(CHAR(160),SUBSTITUTE($Z174,\"}\",CHAR(160),ID$1))-FIND(CHAR(160),SUBSTITUTE($Z174,\"{\",CHAR(160),ID$1))+1),\"\")","v":"{Package Size}"},{"$f":"IFERROR(MID($AA174,FIND(CHAR(160),SUBSTITUTE($AA174,\"{\",CHAR(160),IE$1)),FIND(CHAR(160),SUBSTITUTE($AA174,\"}\",CHAR(160),IE$1))-FIND(CHAR(160),SUBSTITUTE($AA174,\"{\",CHAR(160),IE$1))+1),\"\")","v":""},{"$f":"IFERROR(MID($AA174,FIND(CHAR(160),SUBSTITUTE($AA174,\"{\",CHAR(160),IF$1)),FIND(CHAR(160),SUBSTITUTE($AA174,\"}\",CHAR(160),IF$1))-FIND(CHAR(160),SUBSTITUTE($AA174,\"{\",CHAR(160),IF$1))+1),\"\")","v":""},{"$f":"IFERROR(MID($AA174,FIND(CHAR(160),SUBSTITUTE($AA174,\"{\",CHAR(160),IG$1)),FIND(CHAR(160),SUBSTITUTE($AA174,\"}\",CHAR(160),IG$1))-FIND(CHAR(160),SUBSTITUTE($AA174,\"{\",CHAR(160),IG$1))+1),\"\")","v":""},{"$f":"IFERROR(MID($AA174,FIND(CHAR(160),SUBSTITUTE($AA174,\"{\",CHAR(160),IH$1)),FIND(CHAR(160),SUBSTITUTE($AA174,\"}\",CHAR(160),IH$1))-FIND(CHAR(160),SUBSTITUTE($AA174,\"{\",CHAR(160),IH$1))+1),\"\")","v":""},{"$f":"IFERROR(MID($AA174,FIND(CHAR(160),SUBSTITUTE($AA174,\"{\",CHAR(160),II$1)),FIND(CHAR(160),SUBSTITUTE($AA174,\"}\",CHAR(160),II$1))-FIND(CHAR(160),SUBSTITUTE($AA174,\"{\",CHAR(160),II$1))+1),\"\")","v":""},{"$f":"IFERROR(MID($AA174,FIND(CHAR(160),SUBSTITUTE($AA174,\"{\",CHAR(160),IJ$1)),FIND(CHAR(160),SUBSTITUTE($AA174,\"}\",CHAR(160),IJ$1))-FIND(CHAR(160),SUBSTITUTE($AA174,\"{\",CHAR(160),IJ$1))+1),\"\")","v":""},{"$f":"IFERROR(MID($AA174,FIND(CHAR(160),SUBSTITUTE($AA174,\"{\",CHAR(160),IK$1)),FIND(CHAR(160),SUBSTITUTE($AA174,\"}\",CHAR(160),IK$1))-FIND(CHAR(160),SUBSTITUTE($AA174,\"{\",CHAR(160),IK$1))+1),\"\")","v":""},{"$f":"IFERROR(MID($AA174,FIND(CHAR(160),SUBSTITUTE($AA174,\"{\",CHAR(160),IL$1)),FIND(CHAR(160),SUBSTITUTE($AA174,\"}\",CHAR(160),IL$1))-FIND(CHAR(160),SUBSTITUTE($AA174,\"{\",CHAR(160),IL$1))+1),\"\")","v":""},{"$f":"IFERROR(MID($AA174,FIND(CHAR(160),SUBSTITUTE($AA174,\"{\",CHAR(160),IM$1)),FIND(CHAR(160),SUBSTITUTE($AA174,\"}\",CHAR(160),IM$1))-FIND(CHAR(160),SUBSTITUTE($AA174,\"{\",CHAR(160),IM$1))+1),\"\")","v":"{Measure:Quantity}"},{"$f":"IFERROR(MID($AA174,FIND(CHAR(160),SUBSTITUTE($AA174,\"{\",CHAR(160),IN$1)),FIND(CHAR(160),SUBSTITUTE($AA174,\"}\",CHAR(160),IN$1))-FIND(CHAR(160),SUBSTITUTE($AA174,\"{\",CHAR(160),IN$1))+1),\"\")","v":"{Package Size}"},{"$f":"IFERROR(MID($AB174,FIND(CHAR(160),SUBSTITUTE($AB174,\"{\",CHAR(160),IO$1)),FIND(CHAR(160),SUBSTITUTE($AB174,\"}\",CHAR(160),IO$1))-FIND(CHAR(160),SUBSTITUTE($AB174,\"{\",CHAR(160),IO$1))+1),\"\")","v":""},{"$f":"IFERROR(MID($AB174,FIND(CHAR(160),SUBSTITUTE($AB174,\"{\",CHAR(160),IP$1)),FIND(CHAR(160),SUBSTITUTE($AB174,\"}\",CHAR(160),IP$1))-FIND(CHAR(160),SUBSTITUTE($AB174,\"{\",CHAR(160),IP$1))+1),\"\")","v":""},{"$f":"IFERROR(MID($AB174,FIND(CHAR(160),SUBSTITUTE($AB174,\"{\",CHAR(160),IQ$1)),FIND(CHAR(160),SUBSTITUTE($AB174,\"}\",CHAR(160),IQ$1))-FIND(CHAR(160),SUBSTITUTE($AB174,\"{\",CHAR(160),IQ$1))+1),\"\")","v":""},{"$f":"IFERROR(MID($AB174,FIND(CHAR(160),SUBSTITUTE($AB174,\"{\",CHAR(160),IR$1)),FIND(CHAR(160),SUBSTITUTE($AB174,\"}\",CHAR(160),IR$1))-FIND(CHAR(160),SUBSTITUTE($AB174,\"{\",CHAR(160),IR$1))+1),\"\")","v":""},{"$f":"IFERROR(MID($AB174,FIND(CHAR(160),SUBSTITUTE($AB174,\"{\",CHAR(160),IS$1)),FIND(CHAR(160),SUBSTITUTE($AB174,\"}\",CHAR(160),IS$1))-FIND(CHAR(160),SUBSTITUTE($AB174,\"{\",CHAR(160),IS$1))+1),\"\")","v":""},{"$f":"IFERROR(MID($AB174,FIND(CHAR(160),SUBSTITUTE($AB174,\"{\",CHAR(160),IT$1)),FIND(CHAR(160),SUBSTITUTE($AB174,\"}\",CHAR(160),IT$1))-FIND(CHAR(160),SUBSTITUTE($AB174,\"{\",CHAR(160),IT$1))+1),\"\")","v":""},{"$f":"IFERROR(MID($AB174,FIND(CHAR(160),SUBSTITUTE($AB174,\"{\",CHAR(160),IU$1)),FIND(CHAR(160),SUBSTITUTE($AB174,\"}\",CHAR(160),IU$1))-FIND(CHAR(160),SUBSTITUTE($AB174,\"{\",CHAR(160),IU$1))+1),\"\")","v":""},{"$f":"IFERROR(MID($AB174,FIND(CHAR(160),SUBSTITUTE($AB174,\"{\",CHAR(160),IV$1)),FIND(CHAR(160),SUBSTITUTE($AB174,\"}\",CHAR(160),IV$1))-FIND(CHAR(160),SUBSTITUTE($AB174,\"{\",CHAR(160),IV$1))+1),\"\")","v":""},{"$f":"IFERROR(MID($AB174,FIND(CHAR(160),SUBSTITUTE($AB174,\"{\",CHAR(160),IW$1)),FIND(CHAR(160),SUBSTITUTE($AB174,\"}\",CHAR(160),IW$1))-FIND(CHAR(160),SUBSTITUTE($AB174,\"{\",CHAR(160),IW$1))+1),\"\")","v":""},{"$f":"IFERROR(MID($AB174,FIND(CHAR(160),SUBSTITUTE($AB174,\"{\",CHAR(160),IX$1)),FIND(CHAR(160),SUBSTITUTE($AB174,\"}\",CHAR(160),IX$1))-FIND(CHAR(160),SUBSTITUTE($AB174,\"{\",CHAR(160),IX$1))+1),\"\")","v":""},null,{"$f":"10-COUNTIF(DU174:ED174,\"\")","v":3}]
["Distributor Lighting","Specialty LED - R20","LEDR20","2021-07-01","2022-06-30","Calculated","{Measure:Quantity}*{Package Size}*1.76",0,"Calculated","{Measure:Quantity}*{Rebate per Package}",0,"2021-07-01","2022-06-30","Calculated","{Measure:Quantity}*{Package Size}*50",null,null,"{Measure:Quantity}*{Package Size}*1.0747*0.029",null,null,"{Measure:Quantity}*{Package Size}*{Factor:WinterCF}*0.029","{Measure:Quantity}*{Package Size}*{Factor:SummerCF}*1.0747*0.029","{Measure:Quantity}*{Package Size}*10*-0.007","{Measure:Quantity}*{Package Size}*-0.004","{Measure:Quantity}*{Package Size}*-0.033","{Measure:Quantity}*{Package Size}*-0.001","{Measure:Quantity}*{Package Size}*-0.008",null,"2021-07-01","2022-06-30",2,0.254,0.309,0.42299999999999999,0.249,0.21,0.11799999999999999,0.99,1,1,0.51,0,null,{"$f":"DU175","v":"{Measure:Quantity}"},1,{"$f":"DV175","v":"{Package Size}"},1,{"$f":"DW175","v":"{Rebate per Package}"},{"$f":"CW175*CO175","v":1.32},{"$f":"DX175","v":""},null,{"$f":"DY175","v":""},null,{"$f":"DZ175","v":""},null,{"$f":"EA175","v":""},null,{"$f":"EB175","v":""},null,{"$f":"EC175","v":""},null,{"$f":"ED175","v":""},null,{"$f":"AS175*AU175*50","v":50},0,0,{"$f":"AS175*AU175*1.0747*0.029","v":3.1166300000000001E-2},0,0,{"$f":"AS175*AU175*AF175*0.029","v":7.3660000000000002E-3},{"$f":"AS175*AU175*AG175*1.0747*0.029","v":9.6303867000000001E-3},{"$f":"AS175*AU175*10*-0.007","v":-7.0000000000000007E-2},{"$f":"AS175*AU175*-0.004","v":-4.0000000000000001E-3},{"$f":"AS175*AU175*-0.033","v":-3.3000000000000002E-2},{"$f":"AS175*AU175*-0.001","v":-1E-3},{"$f":"AS175*AU175*-0.008","v":-8.0000000000000002E-3},0,null,"Res","Default DR",{"$f":"Benefits(BL175,BR175,BS175,BT175,BU175,BV175,BW175,BX175,BY175,BZ175,AE175,AH175,AI175,AJ175,AK175,AL175,AM175,AN175,AO175,AP175,CA175,CB175)","v":11.918386952172817},7.2414759806486479,-0.25163575526721454,-2.1607148326692611,-7.431345129571984E-2,-0.3629733072373541,-0.27555956768871592,0,0,{"$f":"SUMPRODUCT(CC175:CK175,--(CC175:CK175>0))","v":19.159862932821465},{"$f":"-SUMPRODUCT(CC175:CK175,--(CC175:CK175<0))","v":3.1251969141582654},null,{"$f":"AS175*AU175*1.76","v":1.76},null,null,{"$f":"CM175+CO175","v":4.8851969141582652},{"$f":"IF(NetOrGross=\"Net\",(1-AO175+AP175),1)","v":1},{"$f":"(SUMPRODUCT(CC175:CJ175,--(CC175:CJ175>0))+CN175)*CS175/((-SUMPRODUCT(CC175:CJ175,--(CC175:CJ175<0))+MAX(CO175,CV175)+CP175+CQ175)*CS175+IF(FRIncentives=\"Yes\",CV175*(1-CS175),0))","v":3.9220246940900987},1,{"$f":"AS175*AW175","v":1.32},0.75,"Electric","y",null,{"$f":"IF(F175=\"Manual Entry\",\"Manual\",IF(G175=\"\",0,\"X=\"&SUBSTITUTE(SUBSTITUTE(SUBSTITUTE(SUBSTITUTE(SUBSTITUTE(SUBSTITUTE(SUBSTITUTE(SUBSTITUTE(SUBSTITUTE(SUBSTITUTE(SUBSTITUTE(SUBSTITUTE(G175,$ED175,$ED$2&ROW($ED175)),$EC175,$EC$2&ROW($EC175)),$EB175,$EB$2&ROW($EB175)),$EA175,$EA$2&ROW($EA175)),$DZ175,$DZ$2&ROW($DZ175)),$DY175,$DY$2&ROW($DY175)),$DX175,$DX$2&ROW($DX175)),$DW175,$DW$2&ROW($DW175)),$DV175,$DV$2&ROW($DV175)),$DU175,$DU$2&ROW($DU175)),$DT175,$DT$2&ROW($DT175)),$DS175,$DS$2&ROW($DS175))))","v":"X=AS175*AU175*1.76"},{"$f":"IF(I175=\"Manual Entry\",\"Manual\",IF(J175=\"\",0,\"X=\"&SUBSTITUTE(SUBSTITUTE(SUBSTITUTE(SUBSTITUTE(SUBSTITUTE(SUBSTITUTE(SUBSTITUTE(SUBSTITUTE(SUBSTITUTE(SUBSTITUTE(SUBSTITUTE(SUBSTITUTE(J175,$ED175,$ED$2&ROW($ED175)),$EC175,$EC$2&ROW($EC175)),$EB175,$EB$2&ROW($EB175)),$EA175,$EA$2&ROW($EA175)),$DZ175,$DZ$2&ROW($DZ175)),$DY175,$DY$2&ROW($DY175)),$DX175,$DX$2&ROW($DX175)),$DW175,$DW$2&ROW($DW175)),$DV175,$DV$2&ROW($DV175)),$DU175,$DU$2&ROW($DU175)),$DT175,$DT$2&ROW($DT175)),$DS175,$DS$2&ROW($DS175))))","v":"X=AS175*AW175"},{"$f":"IF(O175=\"\",0,\"X=\"&SUBSTITUTE(SUBSTITUTE(SUBSTITUTE(SUBSTITUTE(SUBSTITUTE(SUBSTITUTE(SUBSTITUTE(SUBSTITUTE(SUBSTITUTE(SUBSTITUTE(SUBSTITUTE(SUBSTITUTE(O175,$ED175,$ED$2&ROW($ED175)),$EC175,$EC$2&ROW($EC175)),$EB175,$EB$2&ROW($EB175)),$EA175,$EA$2&ROW($EA175)),$DZ175,$DZ$2&ROW($DZ175)),$DY175,$DY$2&ROW($DY175)),$DX175,$DX$2&ROW($DX175)),$DW175,$DW$2&ROW($DW175)),$DV175,$DV$2&ROW($DV175)),$DU175,$DU$2&ROW($DU175)),$DT175,$DT$2&ROW($DT175)),$DS175,$DS$2&ROW($DS175)))","v":"X=AS175*AU175*50"},{"$f":"IF(P175=\"\",0,\"X=\"&SUBSTITUTE(SUBSTITUTE(SUBSTITUTE(SUBSTITUTE(SUBSTITUTE(SUBSTITUTE(SUBSTITUTE(SUBSTITUTE(SUBSTITUTE(SUBSTITUTE(SUBSTITUTE(SUBSTITUTE(P175,$ED175,$ED$2&ROW($ED175)),$EC175,$EC$2&ROW($EC175)),$EB175,$EB$2&ROW($EB175)),$EA175,$EA$2&ROW($EA175)),$DZ175,$DZ$2&ROW($DZ175)),$DY175,$DY$2&ROW($DY175)),$DX175,$DX$2&ROW($DX175)),$DW175,$DW$2&ROW($DW175)),$DV175,$DV$2&ROW($DV175)),$DU175,$DU$2&ROW($DU175)),$DT175,$DT$2&ROW($DT175)),$DS175,$DS$2&ROW($DS175)))","v":0},{"$f":"IF(Q175=\"\",0,\"X=\"&SUBSTITUTE(SUBSTITUTE(SUBSTITUTE(SUBSTITUTE(SUBSTITUTE(SUBSTITUTE(SUBSTITUTE(SUBSTITUTE(SUBSTITUTE(SUBSTITUTE(SUBSTITUTE(SUBSTITUTE(Q175,$ED175,$ED$2&ROW($ED175)),$EC175,$EC$2&ROW($EC175)),$EB175,$EB$2&ROW($EB175)),$EA175,$EA$2&ROW($EA175)),$DZ175,$DZ$2&ROW($DZ175)),$DY175,$DY$2&ROW($DY175)),$DX175,$DX$2&ROW($DX175)),$DW175,$DW$2&ROW($DW175)),$DV175,$DV$2&ROW($DV175)),$DU175,$DU$2&ROW($DU175)),$DT175,$DT$2&ROW($DT175)),$DS175,$DS$2&ROW($DS175)))","v":0},{"$f":"IF(R175=\"\",0,\"X=\"&SUBSTITUTE(SUBSTITUTE(SUBSTITUTE(SUBSTITUTE(SUBSTITUTE(SUBSTITUTE(SUBSTITUTE(SUBSTITUTE(SUBSTITUTE(SUBSTITUTE(SUBSTITUTE(SUBSTITUTE(R175,$ED175,$ED$2&ROW($ED175)),$EC175,$EC$2&ROW($EC175)),$EB175,$EB$2&ROW($EB175)),$EA175,$EA$2&ROW($EA175)),$DZ175,$DZ$2&ROW($DZ175)),$DY175,$DY$2&ROW($DY175)),$DX175,$DX$2&ROW($DX175)),$DW175,$DW$2&ROW($DW175)),$DV175,$DV$2&ROW($DV175)),$DU175,$DU$2&ROW($DU175)),$DT175,$DT$2&ROW($DT175)),$DS175,$DS$2&ROW($DS175)))","v":"X=AS175*AU175*1.0747*0.029"},{"$f":"IF(S175=\"\",0,\"X=\"&SUBSTITUTE(SUBSTITUTE(SUBSTITUTE(SUBSTITUTE(SUBSTITUTE(SUBSTITUTE(SUBSTITUTE(SUBSTITUTE(SUBSTITUTE(SUBSTITUTE(SUBSTITUTE(SUBSTITUTE(S175,$ED175,$ED$2&ROW($ED175)),$EC175,$EC$2&ROW($EC175)),$EB175,$EB$2&ROW($EB175)),$EA175,$EA$2&ROW($EA175)),$DZ175,$DZ$2&ROW($DZ175)),$DY175,$DY$2&ROW($DY175)),$DX175,$DX$2&ROW($DX175)),$DW175,$DW$2&ROW($DW175)),$DV175,$DV$2&ROW($DV175)),$DU175,$DU$2&ROW($DU175)),$DT175,$DT$2&ROW($DT175)),$DS175,$DS$2&ROW($DS175)))","v":0},{"$f":"IF(T175=\"\",0,\"X=\"&SUBSTITUTE(SUBSTITUTE(SUBSTITUTE(SUBSTITUTE(SUBSTITUTE(SUBSTITUTE(SUBSTITUTE(SUBSTITUTE(SUBSTITUTE(SUBSTITUTE(SUBSTITUTE(SUBSTITUTE(T175,$ED175,$ED$2&ROW($ED175)),$EC175,$EC$2&ROW($EC175)),$EB175,$EB$2&ROW($EB175)),$EA175,$EA$2&ROW($EA175)),$DZ175,$DZ$2&ROW($DZ175)),$DY175,$DY$2&ROW($DY175)),$DX175,$DX$2&ROW($DX175)),$DW175,$DW$2&ROW($DW175)),$DV175,$DV$2&ROW($DV175)),$DU175,$DU$2&ROW($DU175)),$DT175,$DT$2&ROW($DT175)),$DS175,$DS$2&ROW($DS175)))","v":0},{"$f":"IF(U175=\"\",0,\"X=\"&SUBSTITUTE(SUBSTITUTE(SUBSTITUTE(SUBSTITUTE(SUBSTITUTE(SUBSTITUTE(SUBSTITUTE(SUBSTITUTE(SUBSTITUTE(SUBSTITUTE(SUBSTITUTE(SUBSTITUTE(U175,$ED175,$ED$2&ROW($ED175)),$EC175,$EC$2&ROW($EC175)),$EB175,$EB$2&ROW($EB175)),$EA175,$EA$2&ROW($EA175)),$DZ175,$DZ$2&ROW($DZ175)),$DY175,$DY$2&ROW($DY175)),$DX175,$DX$2&ROW($DX175)),$DW175,$DW$2&ROW($DW175)),$DV175,$DV$2&ROW($DV175)),$DU175,$DU$2&ROW($DU175)),$DT175,$DT$2&ROW($DT175)),$DS175,$DS$2&ROW($DS175)))","v":"X=AS175*AU175*AF175*0.029"},{"$f":"IF(V175=\"\",0,\"X=\"&SUBSTITUTE(SUBSTITUTE(SUBSTITUTE(SUBSTITUTE(SUBSTITUTE(SUBSTITUTE(SUBSTITUTE(SUBSTITUTE(SUBSTITUTE(SUBSTITUTE(SUBSTITUTE(SUBSTITUTE(V175,$ED175,$ED$2&ROW($ED175)),$EC175,$EC$2&ROW($EC175)),$EB175,$EB$2&ROW($EB175)),$EA175,$EA$2&ROW($EA175)),$DZ175,$DZ$2&ROW($DZ175)),$DY175,$DY$2&ROW($DY175)),$DX175,$DX$2&ROW($DX175)),$DW175,$DW$2&ROW($DW175)),$DV175,$DV$2&ROW($DV175)),$DU175,$DU$2&ROW($DU175)),$DT175,$DT$2&ROW($DT175)),$DS175,$DS$2&ROW($DS175)))","v":"X=AS175*AU175*AG175*1.0747*0.029"},{"$f":"IF(W175=\"\",0,\"X=\"&SUBSTITUTE(SUBSTITUTE(SUBSTITUTE(SUBSTITUTE(SUBSTITUTE(SUBSTITUTE(SUBSTITUTE(SUBSTITUTE(SUBSTITUTE(SUBSTITUTE(SUBSTITUTE(SUBSTITUTE(W175,$ED175,$ED$2&ROW($ED175)),$EC175,$EC$2&ROW($EC175)),$EB175,$EB$2&ROW($EB175)),$EA175,$EA$2&ROW($EA175)),$DZ175,$DZ$2&ROW($DZ175)),$DY175,$DY$2&ROW($DY175)),$DX175,$DX$2&ROW($DX175)),$DW175,$DW$2&ROW($DW175)),$DV175,$DV$2&ROW($DV175)),$DU175,$DU$2&ROW($DU175)),$DT175,$DT$2&ROW($DT175)),$DS175,$DS$2&ROW($DS175)))","v":"X=AS175*AU175*10*-0.007"},{"$f":"IF(X175=\"\",0,\"X=\"&SUBSTITUTE(SUBSTITUTE(SUBSTITUTE(SUBSTITUTE(SUBSTITUTE(SUBSTITUTE(SUBSTITUTE(SUBSTITUTE(SUBSTITUTE(SUBSTITUTE(SUBSTITUTE(SUBSTITUTE(X175,$ED175,$ED$2&ROW($ED175)),$EC175,$EC$2&ROW($EC175)),$EB175,$EB$2&ROW($EB175)),$EA175,$EA$2&ROW($EA175)),$DZ175,$DZ$2&ROW($DZ175)),$DY175,$DY$2&ROW($DY175)),$DX175,$DX$2&ROW($DX175)),$DW175,$DW$2&ROW($DW175)),$DV175,$DV$2&ROW($DV175)),$DU175,$DU$2&ROW($DU175)),$DT175,$DT$2&ROW($DT175)),$DS175,$DS$2&ROW($DS175)))","v":"X=AS175*AU175*-0.004"},{"$f":"IF(Y175=\"\",0,\"X=\"&SUBSTITUTE(SUBSTITUTE(SUBSTITUTE(SUBSTITUTE(SUBSTITUTE(SUBSTITUTE(SUBSTITUTE(SUBSTITUTE(SUBSTITUTE(SUBSTITUTE(SUBSTITUTE(SUBSTITUTE(Y175,$ED175,$ED$2&ROW($ED175)),$EC175,$EC$2&ROW($EC175)),$EB175,$EB$2&ROW($EB175)),$EA175,$EA$2&ROW($EA175)),$DZ175,$DZ$2&ROW($DZ175)),$DY175,$DY$2&ROW($DY175)),$DX175,$DX$2&ROW($DX175)),$DW175,$DW$2&ROW($DW175)),$DV175,$DV$2&ROW($DV175)),$DU175,$DU$2&ROW($DU175)),$DT175,$DT$2&ROW($DT175)),$DS175,$DS$2&ROW($DS175)))","v":"X=AS175*AU175*-0.033"},{"$f":"IF(Z175=\"\",0,\"X=\"&SUBSTITUTE(SUBSTITUTE(SUBSTITUTE(SUBSTITUTE(SUBSTITUTE(SUBSTITUTE(SUBSTITUTE(SUBSTITUTE(SUBSTITUTE(SUBSTITUTE(SUBSTITUTE(SUBSTITUTE(Z175,$ED175,$ED$2&ROW($ED175)),$EC175,$EC$2&ROW($EC175)),$EB175,$EB$2&ROW($EB175)),$EA175,$EA$2&ROW($EA175)),$DZ175,$DZ$2&ROW($DZ175)),$DY175,$DY$2&ROW($DY175)),$DX175,$DX$2&ROW($DX175)),$DW175,$DW$2&ROW($DW175)),$DV175,$DV$2&ROW($DV175)),$DU175,$DU$2&ROW($DU175)),$DT175,$DT$2&ROW($DT175)),$DS175,$DS$2&ROW($DS175)))","v":"X=AS175*AU175*-0.001"},{"$f":"IF(AA175=\"\",0,\"X=\"&SUBSTITUTE(SUBSTITUTE(SUBSTITUTE(SUBSTITUTE(SUBSTITUTE(SUBSTITUTE(SUBSTITUTE(SUBSTITUTE(SUBSTITUTE(SUBSTITUTE(SUBSTITUTE(SUBSTITUTE(AA175,$ED175,$ED$2&ROW($ED175)),$EC175,$EC$2&ROW($EC175)),$EB175,$EB$2&ROW($EB175)),$EA175,$EA$2&ROW($EA175)),$DZ175,$DZ$2&ROW($DZ175)),$DY175,$DY$2&ROW($DY175)),$DX175,$DX$2&ROW($DX175)),$DW175,$DW$2&ROW($DW175)),$DV175,$DV$2&ROW($DV175)),$DU175,$DU$2&ROW($DU175)),$DT175,$DT$2&ROW($DT175)),$DS175,$DS$2&ROW($DS175)))","v":"X=AS175*AU175*-0.008"},{"$f":"IF(AB175=\"\",0,\"X=\"&SUBSTITUTE(SUBSTITUTE(SUBSTITUTE(SUBSTITUTE(SUBSTITUTE(SUBSTITUTE(SUBSTITUTE(SUBSTITUTE(SUBSTITUTE(SUBSTITUTE(SUBSTITUTE(SUBSTITUTE(AB175,$ED175,$ED$2&ROW($ED175)),$EC175,$EC$2&ROW($EC175)),$EB175,$EB$2&ROW($EB175)),$EA175,$EA$2&ROW($EA175)),$DZ175,$DZ$2&ROW($DZ175)),$DY175,$DY$2&ROW($DY175)),$DX175,$DX$2&ROW($DX175)),$DW175,$DW$2&ROW($DW175)),$DV175,$DV$2&ROW($DV175)),$DU175,$DU$2&ROW($DU175)),$DT175,$DT$2&ROW($DT175)),$DS175,$DS$2&ROW($DS175)))","v":0},null,null,"{Factor:WinterCF}","{Factor:SummerCF}",{"$f":"IFERROR(INDEX($EG175:$IV175,MATCH(0,COUNTIF($DR175:DT175,$EG175:$IV175),0)),\"\")","v":"{Measure:Quantity}"},{"$f":"IFERROR(INDEX($EG175:$IV175,MATCH(0,COUNTIF($DR175:DU175,$EG175:$IV175),0)),\"\")","v":"{Package Size}"},{"$f":"IFERROR(INDEX($EG175:$IV175,MATCH(0,COUNTIF($DR175:DV175,$EG175:$IV175),0)),\"\")","v":"{Rebate per Package}"},{"$f":"IFERROR(INDEX($EG175:$IV175,MATCH(0,COUNTIF($DR175:DW175,$EG175:$IV175),0)),\"\")","v":""},{"$f":"IFERROR(INDEX($EG175:$IV175,MATCH(0,COUNTIF($DR175:DX175,$EG175:$IV175),0)),\"\")","v":""},{"$f":"IFERROR(INDEX($EG175:$IV175,MATCH(0,COUNTIF($DR175:DY175,$EG175:$IV175),0)),\"\")","v":""},{"$f":"IFERROR(INDEX($EG175:$IV175,MATCH(0,COUNTIF($DR175:DZ175,$EG175:$IV175),0)),\"\")","v":""},{"$f":"IFERROR(INDEX($EG175:$IV175,MATCH(0,COUNTIF($DR175:EA175,$EG175:$IV175),0)),\"\")","v":""},{"$f":"IFERROR(INDEX($EG175:$IV175,MATCH(0,COUNTIF($DR175:EB175,$EG175:$IV175),0)),\"\")","v":""},{"$f":"IFERROR(INDEX($EG175:$IV175,MATCH(0,COUNTIF($DR175:EC175,$EG175:$IV175),0)),\"\")","v":""},null,null,{"$f":"IFERROR(MID($G175,FIND(CHAR(160),SUBSTITUTE($G175,\"{\",CHAR(160),EG$1)),FIND(CHAR(160),SUBSTITUTE($G175,\"}\",CHAR(160),EG$1))-FIND(CHAR(160),SUBSTITUTE($G175,\"{\",CHAR(160),EG$1))+1),\"\")","v":"{Measure:Quantity}"},{"$f":"IFERROR(MID($G175,FIND(CHAR(160),SUBSTITUTE($G175,\"{\",CHAR(160),EH$1)),FIND(CHAR(160),SUBSTITUTE($G175,\"}\",CHAR(160),EH$1))-FIND(CHAR(160),SUBSTITUTE($G175,\"{\",CHAR(160),EH$1))+1),\"\")","v":"{Package Size}"},{"$f":"IFERROR(MID($G175,FIND(CHAR(160),SUBSTITUTE($G175,\"{\",CHAR(160),EI$1)),FIND(CHAR(160),SUBSTITUTE($G175,\"}\",CHAR(160),EI$1))-FIND(CHAR(160),SUBSTITUTE($G175,\"{\",CHAR(160),EI$1))+1),\"\")","v":""},{"$f":"IFERROR(MID($G175,FIND(CHAR(160),SUBSTITUTE($G175,\"{\",CHAR(160),EJ$1)),FIND(CHAR(160),SUBSTITUTE($G175,\"}\",CHAR(160),EJ$1))-FIND(CHAR(160),SUBSTITUTE($G175,\"{\",CHAR(160),EJ$1))+1),\"\")","v":""},{"$f":"IFERROR(MID($G175,FIND(CHAR(160),SUBSTITUTE($G175,\"{\",CHAR(160),EK$1)),FIND(CHAR(160),SUBSTITUTE($G175,\"}\",CHAR(160),EK$1))-FIND(CHAR(160),SUBSTITUTE($G175,\"{\",CHAR(160),EK$1))+1),\"\")","v":""},{"$f":"IFERROR(MID($G175,FIND(CHAR(160),SUBSTITUTE($G175,\"{\",CHAR(160),EL$1)),FIND(CHAR(160),SUBSTITUTE($G175,\"}\",CHAR(160),EL$1))-FIND(CHAR(160),SUBSTITUTE($G175,\"{\",CHAR(160),EL$1))+1),\"\")","v":""},{"$f":"IFERROR(MID($G175,FIND(CHAR(160),SUBSTITUTE($G175,\"{\",CHAR(160),EM$1)),FIND(CHAR(160),SUBSTITUTE($G175,\"}\",CHAR(160),EM$1))-FIND(CHAR(160),SUBSTITUTE($G175,\"{\",CHAR(160),EM$1))+1),\"\")","v":""},{"$f":"IFERROR(MID($G175,FIND(CHAR(160),SUBSTITUTE($G175,\"{\",CHAR(160),EN$1)),FIND(CHAR(160),SUBSTITUTE($G175,\"}\",CHAR(160),EN$1))-FIND(CHAR(160),SUBSTITUTE($G175,\"{\",CHAR(160),EN$1))+1),\"\")","v":""},{"$f":"IFERROR(MID($G175,FIND(CHAR(160),SUBSTITUTE($G175,\"{\",CHAR(160),EO$1)),FIND(CHAR(160),SUBSTITUTE($G175,\"}\",CHAR(160),EO$1))-FIND(CHAR(160),SUBSTITUTE($G175,\"{\",CHAR(160),EO$1))+1),\"\")","v":""},{"$f":"IFERROR(MID($G175,FIND(CHAR(160),SUBSTITUTE($G175,\"{\",CHAR(160),EP$1)),FIND(CHAR(160),SUBSTITUTE($G175,\"}\",CHAR(160),EP$1))-FIND(CHAR(160),SUBSTITUTE($G175,\"{\",CHAR(160),EP$1))+1),\"\")","v":""},{"$f":"IFERROR(MID($J175,FIND(CHAR(160),SUBSTITUTE($J175,\"{\",CHAR(160),EQ$1)),FIND(CHAR(160),SUBSTITUTE($J175,\"}\",CHAR(160),EQ$1))-FIND(CHAR(160),SUBSTITUTE($J175,\"{\",CHAR(160),EQ$1))+1),\"\")","v":"{Measure:Quantity}"},{"$f":"IFERROR(MID($J175,FIND(CHAR(160),SUBSTITUTE($J175,\"{\",CHAR(160),ER$1)),FIND(CHAR(160),SUBSTITUTE($J175,\"}\",CHAR(160),ER$1))-FIND(CHAR(160),SUBSTITUTE($J175,\"{\",CHAR(160),ER$1))+1),\"\")","v":"{Rebate per Package}"},{"$f":"IFERROR(MID($J175,FIND(CHAR(160),SUBSTITUTE($J175,\"{\",CHAR(160),ES$1)),FIND(CHAR(160),SUBSTITUTE($J175,\"}\",CHAR(160),ES$1))-FIND(CHAR(160),SUBSTITUTE($J175,\"{\",CHAR(160),ES$1))+1),\"\")","v":""},{"$f":"IFERROR(MID($J175,FIND(CHAR(160),SUBSTITUTE($J175,\"{\",CHAR(160),ET$1)),FIND(CHAR(160),SUBSTITUTE($J175,\"}\",CHAR(160),ET$1))-FIND(CHAR(160),SUBSTITUTE($J175,\"{\",CHAR(160),ET$1))+1),\"\")","v":""},{"$f":"IFERROR(MID($J175,FIND(CHAR(160),SUBSTITUTE($J175,\"{\",CHAR(160),EU$1)),FIND(CHAR(160),SUBSTITUTE($J175,\"}\",CHAR(160),EU$1))-FIND(CHAR(160),SUBSTITUTE($J175,\"{\",CHAR(160),EU$1))+1),\"\")","v":""},{"$f":"IFERROR(MID($J175,FIND(CHAR(160),SUBSTITUTE($J175,\"{\",CHAR(160),EV$1)),FIND(CHAR(160),SUBSTITUTE($J175,\"}\",CHAR(160),EV$1))-FIND(CHAR(160),SUBSTITUTE($J175,\"{\",CHAR(160),EV$1))+1),\"\")","v":""},{"$f":"IFERROR(MID($J175,FIND(CHAR(160),SUBSTITUTE($J175,\"{\",CHAR(160),EW$1)),FIND(CHAR(160),SUBSTITUTE($J175,\"}\",CHAR(160),EW$1))-FIND(CHAR(160),SUBSTITUTE($J175,\"{\",CHAR(160),EW$1))+1),\"\")","v":""},{"$f":"IFERROR(MID($J175,FIND(CHAR(160),SUBSTITUTE($J175,\"{\",CHAR(160),EX$1)),FIND(CHAR(160),SUBSTITUTE($J175,\"}\",CHAR(160),EX$1))-FIND(CHAR(160),SUBSTITUTE($J175,\"{\",CHAR(160),EX$1))+1),\"\")","v":""},{"$f":"IFERROR(MID($J175,FIND(CHAR(160),SUBSTITUTE($J175,\"{\",CHAR(160),EY$1)),FIND(CHAR(160),SUBSTITUTE($J175,\"}\",CHAR(160),EY$1))-FIND(CHAR(160),SUBSTITUTE($J175,\"{\",CHAR(160),EY$1))+1),\"\")","v":""},{"$f":"IFERROR(MID($J175,FIND(CHAR(160),SUBSTITUTE($J175,\"{\",CHAR(160),EZ$1)),FIND(CHAR(160),SUBSTITUTE($J175,\"}\",CHAR(160),EZ$1))-FIND(CHAR(160),SUBSTITUTE($J175,\"{\",CHAR(160),EZ$1))+1),\"\")","v":""},{"$f":"IFERROR(MID($J175,FIND(CHAR(160),SUBSTITUTE($J175,\"{\",CHAR(160),FA$1)),FIND(CHAR(160),SUBSTITUTE($J175,\"}\",CHAR(160),FA$1))-FIND(CHAR(160),SUBSTITUTE($J175,\"{\",CHAR(160),FA$1))+1),\"\")","v":"{Measure:Quantity}"},{"$f":"IFERROR(MID($J175,FIND(CHAR(160),SUBSTITUTE($J175,\"{\",CHAR(160),FB$1)),FIND(CHAR(160),SUBSTITUTE($J175,\"}\",CHAR(160),FB$1))-FIND(CHAR(160),SUBSTITUTE($J175,\"{\",CHAR(160),FB$1))+1),\"\")","v":"{Rebate per Package}"},{"$f":"IFERROR(MID($O175,FIND(CHAR(160),SUBSTITUTE($O175,\"{\",CHAR(160),FC$1)),FIND(CHAR(160),SUBSTITUTE($O175,\"}\",CHAR(160),FC$1))-FIND(CHAR(160),SUBSTITUTE($O175,\"{\",CHAR(160),FC$1))+1),\"\")","v":""},{"$f":"IFERROR(MID($O175,FIND(CHAR(160),SUBSTITUTE($O175,\"{\",CHAR(160),FD$1)),FIND(CHAR(160),SUBSTITUTE($O175,\"}\",CHAR(160),FD$1))-FIND(CHAR(160),SUBSTITUTE($O175,\"{\",CHAR(160),FD$1))+1),\"\")","v":""},{"$f":"IFERROR(MID($O175,FIND(CHAR(160),SUBSTITUTE($O175,\"{\",CHAR(160),FE$1)),FIND(CHAR(160),SUBSTITUTE($O175,\"}\",CHAR(160),FE$1))-FIND(CHAR(160),SUBSTITUTE($O175,\"{\",CHAR(160),FE$1))+1),\"\")","v":""},{"$f":"IFERROR(MID($O175,FIND(CHAR(160),SUBSTITUTE($O175,\"{\",CHAR(160),FF$1)),FIND(CHAR(160),SUBSTITUTE($O175,\"}\",CHAR(160),FF$1))-FIND(CHAR(160),SUBSTITUTE($O175,\"{\",CHAR(160),FF$1))+1),\"\")","v":""},{"$f":"IFERROR(MID($O175,FIND(CHAR(160),SUBSTITUTE($O175,\"{\",CHAR(160),FG$1)),FIND(CHAR(160),SUBSTITUTE($O175,\"}\",CHAR(160),FG$1))-FIND(CHAR(160),SUBSTITUTE($O175,\"{\",CHAR(160),FG$1))+1),\"\")","v":""},{"$f":"IFERROR(MID($O175,FIND(CHAR(160),SUBSTITUTE($O175,\"{\",CHAR(160),FH$1)),FIND(CHAR(160),SUBSTITUTE($O175,\"}\",CHAR(160),FH$1))-FIND(CHAR(160),SUBSTITUTE($O175,\"{\",CHAR(160),FH$1))+1),\"\")","v":""},{"$f":"IFERROR(MID($O175,FIND(CHAR(160),SUBSTITUTE($O175,\"{\",CHAR(160),FI$1)),FIND(CHAR(160),SUBSTITUTE($O175,\"}\",CHAR(160),FI$1))-FIND(CHAR(160),SUBSTITUTE($O175,\"{\",CHAR(160),FI$1))+1),\"\")","v":""},{"$f":"IFERROR(MID($O175,FIND(CHAR(160),SUBSTITUTE($O175,\"{\",CHAR(160),FJ$1)),FIND(CHAR(160),SUBSTITUTE($O175,\"}\",CHAR(160),FJ$1))-FIND(CHAR(160),SUBSTITUTE($O175,\"{\",CHAR(160),FJ$1))+1),\"\")","v":""},{"$f":"IFERROR(MID($O175,FIND(CHAR(160),SUBSTITUTE($O175,\"{\",CHAR(160),FK$1)),FIND(CHAR(160),SUBSTITUTE($O175,\"}\",CHAR(160),FK$1))-FIND(CHAR(160),SUBSTITUTE($O175,\"{\",CHAR(160),FK$1))+1),\"\")","v":"{Measure:Quantity}"},{"$f":"IFERROR(MID($O175,FIND(CHAR(160),SUBSTITUTE($O175,\"{\",CHAR(160),FL$1)),FIND(CHAR(160),SUBSTITUTE($O175,\"}\",CHAR(160),FL$1))-FIND(CHAR(160),SUBSTITUTE($O175,\"{\",CHAR(160),FL$1))+1),\"\")","v":"{Package Size}"},{"$f":"IFERROR(MID($R175,FIND(CHAR(160),SUBSTITUTE($R175,\"{\",CHAR(160),FM$1)),FIND(CHAR(160),SUBSTITUTE($R175,\"}\",CHAR(160),FM$1))-FIND(CHAR(160),SUBSTITUTE($R175,\"{\",CHAR(160),FM$1))+1),\"\")","v":""},{"$f":"IFERROR(MID($R175,FIND(CHAR(160),SUBSTITUTE($R175,\"{\",CHAR(160),FN$1)),FIND(CHAR(160),SUBSTITUTE($R175,\"}\",CHAR(160),FN$1))-FIND(CHAR(160),SUBSTITUTE($R175,\"{\",CHAR(160),FN$1))+1),\"\")","v":""},{"$f":"IFERROR(MID($R175,FIND(CHAR(160),SUBSTITUTE($R175,\"{\",CHAR(160),FO$1)),FIND(CHAR(160),SUBSTITUTE($R175,\"}\",CHAR(160),FO$1))-FIND(CHAR(160),SUBSTITUTE($R175,\"{\",CHAR(160),FO$1))+1),\"\")","v":""},{"$f":"IFERROR(MID($R175,FIND(CHAR(160),SUBSTITUTE($R175,\"{\",CHAR(160),FP$1)),FIND(CHAR(160),SUBSTITUTE($R175,\"}\",CHAR(160),FP$1))-FIND(CHAR(160),SUBSTITUTE($R175,\"{\",CHAR(160),FP$1))+1),\"\")","v":""},{"$f":"IFERROR(MID($R175,FIND(CHAR(160),SUBSTITUTE($R175,\"{\",CHAR(160),FQ$1)),FIND(CHAR(160),SUBSTITUTE($R175,\"}\",CHAR(160),FQ$1))-FIND(CHAR(160),SUBSTITUTE($R175,\"{\",CHAR(160),FQ$1))+1),\"\")","v":""},{"$f":"IFERROR(MID($R175,FIND(CHAR(160),SUBSTITUTE($R175,\"{\",CHAR(160),FR$1)),FIND(CHAR(160),SUBSTITUTE($R175,\"}\",CHAR(160),FR$1))-FIND(CHAR(160),SUBSTITUTE($R175,\"{\",CHAR(160),FR$1))+1),\"\")","v":""},{"$f":"IFERROR(MID($R175,FIND(CHAR(160),SUBSTITUTE($R175,\"{\",CHAR(160),FS$1)),FIND(CHAR(160),SUBSTITUTE($R175,\"}\",CHAR(160),FS$1))-FIND(CHAR(160),SUBSTITUTE($R175,\"{\",CHAR(160),FS$1))+1),\"\")","v":""},{"$f":"IFERROR(MID($R175,FIND(CHAR(160),SUBSTITUTE($R175,\"{\",CHAR(160),FT$1)),FIND(CHAR(160),SUBSTITUTE($R175,\"}\",CHAR(160),FT$1))-FIND(CHAR(160),SUBSTITUTE($R175,\"{\",CHAR(160),FT$1))+1),\"\")","v":""},{"$f":"IFERROR(MID($R175,FIND(CHAR(160),SUBSTITUTE($R175,\"{\",CHAR(160),FU$1)),FIND(CHAR(160),SUBSTITUTE($R175,\"}\",CHAR(160),FU$1))-FIND(CHAR(160),SUBSTITUTE($R175,\"{\",CHAR(160),FU$1))+1),\"\")","v":"{Measure:Quantity}"},{"$f":"IFERROR(MID($R175,FIND(CHAR(160),SUBSTITUTE($R175,\"{\",CHAR(160),FV$1)),FIND(CHAR(160),SUBSTITUTE($R175,\"}\",CHAR(160),FV$1))-FIND(CHAR(160),SUBSTITUTE($R175,\"{\",CHAR(160),FV$1))+1),\"\")","v":"{Package Size}"},{"$f":"IFERROR(MID($U175,FIND(CHAR(160),SUBSTITUTE($U175,\"{\",CHAR(160),FW$1)),FIND(CHAR(160),SUBSTITUTE($U175,\"}\",CHAR(160),FW$1))-FIND(CHAR(160),SUBSTITUTE($U175,\"{\",CHAR(160),FW$1))+1),\"\")","v":"{Factor:WinterCF}"},{"$f":"IFERROR(MID($U175,FIND(CHAR(160),SUBSTITUTE($U175,\"{\",CHAR(160),FX$1)),FIND(CHAR(160),SUBSTITUTE($U175,\"}\",CHAR(160),FX$1))-FIND(CHAR(160),SUBSTITUTE($U175,\"{\",CHAR(160),FX$1))+1),\"\")","v":""},{"$f":"IFERROR(MID($U175,FIND(CHAR(160),SUBSTITUTE($U175,\"{\",CHAR(160),FY$1)),FIND(CHAR(160),SUBSTITUTE($U175,\"}\",CHAR(160),FY$1))-FIND(CHAR(160),SUBSTITUTE($U175,\"{\",CHAR(160),FY$1))+1),\"\")","v":""},{"$f":"IFERROR(MID($U175,FIND(CHAR(160),SUBSTITUTE($U175,\"{\",CHAR(160),FZ$1)),FIND(CHAR(160),SUBSTITUTE($U175,\"}\",CHAR(160),FZ$1))-FIND(CHAR(160),SUBSTITUTE($U175,\"{\",CHAR(160),FZ$1))+1),\"\")","v":""},{"$f":"IFERROR(MID($U175,FIND(CHAR(160),SUBSTITUTE($U175,\"{\",CHAR(160),GA$1)),FIND(CHAR(160),SUBSTITUTE($U175,\"}\",CHAR(160),GA$1))-FIND(CHAR(160),SUBSTITUTE($U175,\"{\",CHAR(160),GA$1))+1),\"\")","v":""},{"$f":"IFERROR(MID($U175,FIND(CHAR(160),SUBSTITUTE($U175,\"{\",CHAR(160),GB$1)),FIND(CHAR(160),SUBSTITUTE($U175,\"}\",CHAR(160),GB$1))-FIND(CHAR(160),SUBSTITUTE($U175,\"{\",CHAR(160),GB$1))+1),\"\")","v":""},{"$f":"IFERROR(MID($U175,FIND(CHAR(160),SUBSTITUTE($U175,\"{\",CHAR(160),GC$1)),FIND(CHAR(160),SUBSTITUTE($U175,\"}\",CHAR(160),GC$1))-FIND(CHAR(160),SUBSTITUTE($U175,\"{\",CHAR(160),GC$1))+1),\"\")","v":""},{"$f":"IFERROR(MID($U175,FIND(CHAR(160),SUBSTITUTE($U175,\"{\",CHAR(160),GD$1)),FIND(CHAR(160),SUBSTITUTE($U175,\"}\",CHAR(160),GD$1))-FIND(CHAR(160),SUBSTITUTE($U175,\"{\",CHAR(160),GD$1))+1),\"\")","v":""},{"$f":"IFERROR(MID($U175,FIND(CHAR(160),SUBSTITUTE($U175,\"{\",CHAR(160),GE$1)),FIND(CHAR(160),SUBSTITUTE($U175,\"}\",CHAR(160),GE$1))-FIND(CHAR(160),SUBSTITUTE($U175,\"{\",CHAR(160),GE$1))+1),\"\")","v":"{Measure:Quantity}"},{"$f":"IFERROR(MID($U175,FIND(CHAR(160),SUBSTITUTE($U175,\"{\",CHAR(160),GF$1)),FIND(CHAR(160),SUBSTITUTE($U175,\"}\",CHAR(160),GF$1))-FIND(CHAR(160),SUBSTITUTE($U175,\"{\",CHAR(160),GF$1))+1),\"\")","v":"{Package Size}"},{"$f":"IFERROR(MID($V175,FIND(CHAR(160),SUBSTITUTE($V175,\"{\",CHAR(160),GG$1)),FIND(CHAR(160),SUBSTITUTE($V175,\"}\",CHAR(160),GG$1))-FIND(CHAR(160),SUBSTITUTE($V175,\"{\",CHAR(160),GG$1))+1),\"\")","v":"{Factor:SummerCF}"},{"$f":"IFERROR(MID($V175,FIND(CHAR(160),SUBSTITUTE($V175,\"{\",CHAR(160),GH$1)),FIND(CHAR(160),SUBSTITUTE($V175,\"}\",CHAR(160),GH$1))-FIND(CHAR(160),SUBSTITUTE($V175,\"{\",CHAR(160),GH$1))+1),\"\")","v":""},{"$f":"IFERROR(MID($V175,FIND(CHAR(160),SUBSTITUTE($V175,\"{\",CHAR(160),GI$1)),FIND(CHAR(160),SUBSTITUTE($V175,\"}\",CHAR(160),GI$1))-FIND(CHAR(160),SUBSTITUTE($V175,\"{\",CHAR(160),GI$1))+1),\"\")","v":""},{"$f":"IFERROR(MID($V175,FIND(CHAR(160),SUBSTITUTE($V175,\"{\",CHAR(160),GJ$1)),FIND(CHAR(160),SUBSTITUTE($V175,\"}\",CHAR(160),GJ$1))-FIND(CHAR(160),SUBSTITUTE($V175,\"{\",CHAR(160),GJ$1))+1),\"\")","v":""},{"$f":"IFERROR(MID($V175,FIND(CHAR(160),SUBSTITUTE($V175,\"{\",CHAR(160),GK$1)),FIND(CHAR(160),SUBSTITUTE($V175,\"}\",CHAR(160),GK$1))-FIND(CHAR(160),SUBSTITUTE($V175,\"{\",CHAR(160),GK$1))+1),\"\")","v":""},{"$f":"IFERROR(MID($V175,FIND(CHAR(160),SUBSTITUTE($V175,\"{\",CHAR(160),GL$1)),FIND(CHAR(160),SUBSTITUTE($V175,\"}\",CHAR(160),GL$1))-FIND(CHAR(160),SUBSTITUTE($V175,\"{\",CHAR(160),GL$1))+1),\"\")","v":""},{"$f":"IFERROR(MID($V175,FIND(CHAR(160),SUBSTITUTE($V175,\"{\",CHAR(160),GM$1)),FIND(CHAR(160),SUBSTITUTE($V175,\"}\",CHAR(160),GM$1))-FIND(CHAR(160),SUBSTITUTE($V175,\"{\",CHAR(160),GM$1))+1),\"\")","v":""},{"$f":"IFERROR(MID($V175,FIND(CHAR(160),SUBSTITUTE($V175,\"{\",CHAR(160),GN$1)),FIND(CHAR(160),SUBSTITUTE($V175,\"}\",CHAR(160),GN$1))-FIND(CHAR(160),SUBSTITUTE($V175,\"{\",CHAR(160),GN$1))+1),\"\")","v":""},{"$f":"IFERROR(MID($V175,FIND(CHAR(160),SUBSTITUTE($V175,\"{\",CHAR(160),GO$1)),FIND(CHAR(160),SUBSTITUTE($V175,\"}\",CHAR(160),GO$1))-FIND(CHAR(160),SUBSTITUTE($V175,\"{\",CHAR(160),GO$1))+1),\"\")","v":"{Measure:Quantity}"},{"$f":"IFERROR(MID($V175,FIND(CHAR(160),SUBSTITUTE($V175,\"{\",CHAR(160),GP$1)),FIND(CHAR(160),SUBSTITUTE($V175,\"}\",CHAR(160),GP$1))-FIND(CHAR(160),SUBSTITUTE($V175,\"{\",CHAR(160),GP$1))+1),\"\")","v":"{Package Size}"},{"$f":"IFERROR(MID($W175,FIND(CHAR(160),SUBSTITUTE($W175,\"{\",CHAR(160),GQ$1)),FIND(CHAR(160),SUBSTITUTE($W175,\"}\",CHAR(160),GQ$1))-FIND(CHAR(160),SUBSTITUTE($W175,\"{\",CHAR(160),GQ$1))+1),\"\")","v":""},{"$f":"IFERROR(MID($W175,FIND(CHAR(160),SUBSTITUTE($W175,\"{\",CHAR(160),GR$1)),FIND(CHAR(160),SUBSTITUTE($W175,\"}\",CHAR(160),GR$1))-FIND(CHAR(160),SUBSTITUTE($W175,\"{\",CHAR(160),GR$1))+1),\"\")","v":""},{"$f":"IFERROR(MID($W175,FIND(CHAR(160),SUBSTITUTE($W175,\"{\",CHAR(160),GS$1)),FIND(CHAR(160),SUBSTITUTE($W175,\"}\",CHAR(160),GS$1))-FIND(CHAR(160),SUBSTITUTE($W175,\"{\",CHAR(160),GS$1))+1),\"\")","v":""},{"$f":"IFERROR(MID($W175,FIND(CHAR(160),SUBSTITUTE($W175,\"{\",CHAR(160),GT$1)),FIND(CHAR(160),SUBSTITUTE($W175,\"}\",CHAR(160),GT$1))-FIND(CHAR(160),SUBSTITUTE($W175,\"{\",CHAR(160),GT$1))+1),\"\")","v":""},{"$f":"IFERROR(MID($W175,FIND(CHAR(160),SUBSTITUTE($W175,\"{\",CHAR(160),GU$1)),FIND(CHAR(160),SUBSTITUTE($W175,\"}\",CHAR(160),GU$1))-FIND(CHAR(160),SUBSTITUTE($W175,\"{\",CHAR(160),GU$1))+1),\"\")","v":""},{"$f":"IFERROR(MID($W175,FIND(CHAR(160),SUBSTITUTE($W175,\"{\",CHAR(160),GV$1)),FIND(CHAR(160),SUBSTITUTE($W175,\"}\",CHAR(160),GV$1))-FIND(CHAR(160),SUBSTITUTE($W175,\"{\",CHAR(160),GV$1))+1),\"\")","v":""},{"$f":"IFERROR(MID($W175,FIND(CHAR(160),SUBSTITUTE($W175,\"{\",CHAR(160),GW$1)),FIND(CHAR(160),SUBSTITUTE($W175,\"}\",CHAR(160),GW$1))-FIND(CHAR(160),SUBSTITUTE($W175,\"{\",CHAR(160),GW$1))+1),\"\")","v":""},{"$f":"IFERROR(MID($W175,FIND(CHAR(160),SUBSTITUTE($W175,\"{\",CHAR(160),GX$1)),FIND(CHAR(160),SUBSTITUTE($W175,\"}\",CHAR(160),GX$1))-FIND(CHAR(160),SUBSTITUTE($W175,\"{\",CHAR(160),GX$1))+1),\"\")","v":""},{"$f":"IFERROR(MID($W175,FIND(CHAR(160),SUBSTITUTE($W175,\"{\",CHAR(160),GY$1)),FIND(CHAR(160),SUBSTITUTE($W175,\"}\",CHAR(160),GY$1))-FIND(CHAR(160),SUBSTITUTE($W175,\"{\",CHAR(160),GY$1))+1),\"\")","v":"{Measure:Quantity}"},{"$f":"IFERROR(MID($W175,FIND(CHAR(160),SUBSTITUTE($W175,\"{\",CHAR(160),GZ$1)),FIND(CHAR(160),SUBSTITUTE($W175,\"}\",CHAR(160),GZ$1))-FIND(CHAR(160),SUBSTITUTE($W175,\"{\",CHAR(160),GZ$1))+1),\"\")","v":"{Package Size}"},{"$f":"IFERROR(MID($X175,FIND(CHAR(160),SUBSTITUTE($X175,\"{\",CHAR(160),HA$1)),FIND(CHAR(160),SUBSTITUTE($X175,\"}\",CHAR(160),HA$1))-FIND(CHAR(160),SUBSTITUTE($X175,\"{\",CHAR(160),HA$1))+1),\"\")","v":""},{"$f":"IFERROR(MID($X175,FIND(CHAR(160),SUBSTITUTE($X175,\"{\",CHAR(160),HB$1)),FIND(CHAR(160),SUBSTITUTE($X175,\"}\",CHAR(160),HB$1))-FIND(CHAR(160),SUBSTITUTE($X175,\"{\",CHAR(160),HB$1))+1),\"\")","v":""},{"$f":"IFERROR(MID($X175,FIND(CHAR(160),SUBSTITUTE($X175,\"{\",CHAR(160),HC$1)),FIND(CHAR(160),SUBSTITUTE($X175,\"}\",CHAR(160),HC$1))-FIND(CHAR(160),SUBSTITUTE($X175,\"{\",CHAR(160),HC$1))+1),\"\")","v":""},{"$f":"IFERROR(MID($X175,FIND(CHAR(160),SUBSTITUTE($X175,\"{\",CHAR(160),HD$1)),FIND(CHAR(160),SUBSTITUTE($X175,\"}\",CHAR(160),HD$1))-FIND(CHAR(160),SUBSTITUTE($X175,\"{\",CHAR(160),HD$1))+1),\"\")","v":""},{"$f":"IFERROR(MID($X175,FIND(CHAR(160),SUBSTITUTE($X175,\"{\",CHAR(160),HE$1)),FIND(CHAR(160),SUBSTITUTE($X175,\"}\",CHAR(160),HE$1))-FIND(CHAR(160),SUBSTITUTE($X175,\"{\",CHAR(160),HE$1))+1),\"\")","v":""},{"$f":"IFERROR(MID($X175,FIND(CHAR(160),SUBSTITUTE($X175,\"{\",CHAR(160),HF$1)),FIND(CHAR(160),SUBSTITUTE($X175,\"}\",CHAR(160),HF$1))-FIND(CHAR(160),SUBSTITUTE($X175,\"{\",CHAR(160),HF$1))+1),\"\")","v":""},{"$f":"IFERROR(MID($X175,FIND(CHAR(160),SUBSTITUTE($X175,\"{\",CHAR(160),HG$1)),FIND(CHAR(160),SUBSTITUTE($X175,\"}\",CHAR(160),HG$1))-FIND(CHAR(160),SUBSTITUTE($X175,\"{\",CHAR(160),HG$1))+1),\"\")","v":""},{"$f":"IFERROR(MID($X175,FIND(CHAR(160),SUBSTITUTE($X175,\"{\",CHAR(160),HH$1)),FIND(CHAR(160),SUBSTITUTE($X175,\"}\",CHAR(160),HH$1))-FIND(CHAR(160),SUBSTITUTE($X175,\"{\",CHAR(160),HH$1))+1),\"\")","v":""},{"$f":"IFERROR(MID($X175,FIND(CHAR(160),SUBSTITUTE($X175,\"{\",CHAR(160),HI$1)),FIND(CHAR(160),SUBSTITUTE($X175,\"}\",CHAR(160),HI$1))-FIND(CHAR(160),SUBSTITUTE($X175,\"{\",CHAR(160),HI$1))+1),\"\")","v":"{Measure:Quantity}"},{"$f":"IFERROR(MID($X175,FIND(CHAR(160),SUBSTITUTE($X175,\"{\",CHAR(160),HJ$1)),FIND(CHAR(160),SUBSTITUTE($X175,\"}\",CHAR(160),HJ$1))-FIND(CHAR(160),SUBSTITUTE($X175,\"{\",CHAR(160),HJ$1))+1),\"\")","v":"{Package Size}"},{"$f":"IFERROR(MID($Y175,FIND(CHAR(160),SUBSTITUTE($Y175,\"{\",CHAR(160),HK$1)),FIND(CHAR(160),SUBSTITUTE($Y175,\"}\",CHAR(160),HK$1))-FIND(CHAR(160),SUBSTITUTE($Y175,\"{\",CHAR(160),HK$1))+1),\"\")","v":""},{"$f":"IFERROR(MID($Y175,FIND(CHAR(160),SUBSTITUTE($Y175,\"{\",CHAR(160),HL$1)),FIND(CHAR(160),SUBSTITUTE($Y175,\"}\",CHAR(160),HL$1))-FIND(CHAR(160),SUBSTITUTE($Y175,\"{\",CHAR(160),HL$1))+1),\"\")","v":""},{"$f":"IFERROR(MID($Y175,FIND(CHAR(160),SUBSTITUTE($Y175,\"{\",CHAR(160),HM$1)),FIND(CHAR(160),SUBSTITUTE($Y175,\"}\",CHAR(160),HM$1))-FIND(CHAR(160),SUBSTITUTE($Y175,\"{\",CHAR(160),HM$1))+1),\"\")","v":""},{"$f":"IFERROR(MID($Y175,FIND(CHAR(160),SUBSTITUTE($Y175,\"{\",CHAR(160),HN$1)),FIND(CHAR(160),SUBSTITUTE($Y175,\"}\",CHAR(160),HN$1))-FIND(CHAR(160),SUBSTITUTE($Y175,\"{\",CHAR(160),HN$1))+1),\"\")","v":""},{"$f":"IFERROR(MID($Y175,FIND(CHAR(160),SUBSTITUTE($Y175,\"{\",CHAR(160),HO$1)),FIND(CHAR(160),SUBSTITUTE($Y175,\"}\",CHAR(160),HO$1))-FIND(CHAR(160),SUBSTITUTE($Y175,\"{\",CHAR(160),HO$1))+1),\"\")","v":""},{"$f":"IFERROR(MID($Y175,FIND(CHAR(160),SUBSTITUTE($Y175,\"{\",CHAR(160),HP$1)),FIND(CHAR(160),SUBSTITUTE($Y175,\"}\",CHAR(160),HP$1))-FIND(CHAR(160),SUBSTITUTE($Y175,\"{\",CHAR(160),HP$1))+1),\"\")","v":""},{"$f":"IFERROR(MID($Y175,FIND(CHAR(160),SUBSTITUTE($Y175,\"{\",CHAR(160),HQ$1)),FIND(CHAR(160),SUBSTITUTE($Y175,\"}\",CHAR(160),HQ$1))-FIND(CHAR(160),SUBSTITUTE($Y175,\"{\",CHAR(160),HQ$1))+1),\"\")","v":""},{"$f":"IFERROR(MID($Y175,FIND(CHAR(160),SUBSTITUTE($Y175,\"{\",CHAR(160),HR$1)),FIND(CHAR(160),SUBSTITUTE($Y175,\"}\",CHAR(160),HR$1))-FIND(CHAR(160),SUBSTITUTE($Y175,\"{\",CHAR(160),HR$1))+1),\"\")","v":""},{"$f":"IFERROR(MID($Y175,FIND(CHAR(160),SUBSTITUTE($Y175,\"{\",CHAR(160),HS$1)),FIND(CHAR(160),SUBSTITUTE($Y175,\"}\",CHAR(160),HS$1))-FIND(CHAR(160),SUBSTITUTE($Y175,\"{\",CHAR(160),HS$1))+1),\"\")","v":"{Measure:Quantity}"},{"$f":"IFERROR(MID($Y175,FIND(CHAR(160),SUBSTITUTE($Y175,\"{\",CHAR(160),HT$1)),FIND(CHAR(160),SUBSTITUTE($Y175,\"}\",CHAR(160),HT$1))-FIND(CHAR(160),SUBSTITUTE($Y175,\"{\",CHAR(160),HT$1))+1),\"\")","v":"{Package Size}"},{"$f":"IFERROR(MID($Z175,FIND(CHAR(160),SUBSTITUTE($Z175,\"{\",CHAR(160),HU$1)),FIND(CHAR(160),SUBSTITUTE($Z175,\"}\",CHAR(160),HU$1))-FIND(CHAR(160),SUBSTITUTE($Z175,\"{\",CHAR(160),HU$1))+1),\"\")","v":""},{"$f":"IFERROR(MID($Z175,FIND(CHAR(160),SUBSTITUTE($Z175,\"{\",CHAR(160),HV$1)),FIND(CHAR(160),SUBSTITUTE($Z175,\"}\",CHAR(160),HV$1))-FIND(CHAR(160),SUBSTITUTE($Z175,\"{\",CHAR(160),HV$1))+1),\"\")","v":""},{"$f":"IFERROR(MID($Z175,FIND(CHAR(160),SUBSTITUTE($Z175,\"{\",CHAR(160),HW$1)),FIND(CHAR(160),SUBSTITUTE($Z175,\"}\",CHAR(160),HW$1))-FIND(CHAR(160),SUBSTITUTE($Z175,\"{\",CHAR(160),HW$1))+1),\"\")","v":""},{"$f":"IFERROR(MID($Z175,FIND(CHAR(160),SUBSTITUTE($Z175,\"{\",CHAR(160),HX$1)),FIND(CHAR(160),SUBSTITUTE($Z175,\"}\",CHAR(160),HX$1))-FIND(CHAR(160),SUBSTITUTE($Z175,\"{\",CHAR(160),HX$1))+1),\"\")","v":""},{"$f":"IFERROR(MID($Z175,FIND(CHAR(160),SUBSTITUTE($Z175,\"{\",CHAR(160),HY$1)),FIND(CHAR(160),SUBSTITUTE($Z175,\"}\",CHAR(160),HY$1))-FIND(CHAR(160),SUBSTITUTE($Z175,\"{\",CHAR(160),HY$1))+1),\"\")","v":""},{"$f":"IFERROR(MID($Z175,FIND(CHAR(160),SUBSTITUTE($Z175,\"{\",CHAR(160),HZ$1)),FIND(CHAR(160),SUBSTITUTE($Z175,\"}\",CHAR(160),HZ$1))-FIND(CHAR(160),SUBSTITUTE($Z175,\"{\",CHAR(160),HZ$1))+1),\"\")","v":""},{"$f":"IFERROR(MID($Z175,FIND(CHAR(160),SUBSTITUTE($Z175,\"{\",CHAR(160),IA$1)),FIND(CHAR(160),SUBSTITUTE($Z175,\"}\",CHAR(160),IA$1))-FIND(CHAR(160),SUBSTITUTE($Z175,\"{\",CHAR(160),IA$1))+1),\"\")","v":""},{"$f":"IFERROR(MID($Z175,FIND(CHAR(160),SUBSTITUTE($Z175,\"{\",CHAR(160),IB$1)),FIND(CHAR(160),SUBSTITUTE($Z175,\"}\",CHAR(160),IB$1))-FIND(CHAR(160),SUBSTITUTE($Z175,\"{\",CHAR(160),IB$1))+1),\"\")","v":""},{"$f":"IFERROR(MID($Z175,FIND(CHAR(160),SUBSTITUTE($Z175,\"{\",CHAR(160),IC$1)),FIND(CHAR(160),SUBSTITUTE($Z175,\"}\",CHAR(160),IC$1))-FIND(CHAR(160),SUBSTITUTE($Z175,\"{\",CHAR(160),IC$1))+1),\"\")","v":"{Measure:Quantity}"},{"$f":"IFERROR(MID($Z175,FIND(CHAR(160),SUBSTITUTE($Z175,\"{\",CHAR(160),ID$1)),FIND(CHAR(160),SUBSTITUTE($Z175,\"}\",CHAR(160),ID$1))-FIND(CHAR(160),SUBSTITUTE($Z175,\"{\",CHAR(160),ID$1))+1),\"\")","v":"{Package Size}"},{"$f":"IFERROR(MID($AA175,FIND(CHAR(160),SUBSTITUTE($AA175,\"{\",CHAR(160),IE$1)),FIND(CHAR(160),SUBSTITUTE($AA175,\"}\",CHAR(160),IE$1))-FIND(CHAR(160),SUBSTITUTE($AA175,\"{\",CHAR(160),IE$1))+1),\"\")","v":""},{"$f":"IFERROR(MID($AA175,FIND(CHAR(160),SUBSTITUTE($AA175,\"{\",CHAR(160),IF$1)),FIND(CHAR(160),SUBSTITUTE($AA175,\"}\",CHAR(160),IF$1))-FIND(CHAR(160),SUBSTITUTE($AA175,\"{\",CHAR(160),IF$1))+1),\"\")","v":""},{"$f":"IFERROR(MID($AA175,FIND(CHAR(160),SUBSTITUTE($AA175,\"{\",CHAR(160),IG$1)),FIND(CHAR(160),SUBSTITUTE($AA175,\"}\",CHAR(160),IG$1))-FIND(CHAR(160),SUBSTITUTE($AA175,\"{\",CHAR(160),IG$1))+1),\"\")","v":""},{"$f":"IFERROR(MID($AA175,FIND(CHAR(160),SUBSTITUTE($AA175,\"{\",CHAR(160),IH$1)),FIND(CHAR(160),SUBSTITUTE($AA175,\"}\",CHAR(160),IH$1))-FIND(CHAR(160),SUBSTITUTE($AA175,\"{\",CHAR(160),IH$1))+1),\"\")","v":""},{"$f":"IFERROR(MID($AA175,FIND(CHAR(160),SUBSTITUTE($AA175,\"{\",CHAR(160),II$1)),FIND(CHAR(160),SUBSTITUTE($AA175,\"}\",CHAR(160),II$1))-FIND(CHAR(160),SUBSTITUTE($AA175,\"{\",CHAR(160),II$1))+1),\"\")","v":""},{"$f":"IFERROR(MID($AA175,FIND(CHAR(160),SUBSTITUTE($AA175,\"{\",CHAR(160),IJ$1)),FIND(CHAR(160),SUBSTITUTE($AA175,\"}\",CHAR(160),IJ$1))-FIND(CHAR(160),SUBSTITUTE($AA175,\"{\",CHAR(160),IJ$1))+1),\"\")","v":""},{"$f":"IFERROR(MID($AA175,FIND(CHAR(160),SUBSTITUTE($AA175,\"{\",CHAR(160),IK$1)),FIND(CHAR(160),SUBSTITUTE($AA175,\"}\",CHAR(160),IK$1))-FIND(CHAR(160),SUBSTITUTE($AA175,\"{\",CHAR(160),IK$1))+1),\"\")","v":""},{"$f":"IFERROR(MID($AA175,FIND(CHAR(160),SUBSTITUTE($AA175,\"{\",CHAR(160),IL$1)),FIND(CHAR(160),SUBSTITUTE($AA175,\"}\",CHAR(160),IL$1))-FIND(CHAR(160),SUBSTITUTE($AA175,\"{\",CHAR(160),IL$1))+1),\"\")","v":""},{"$f":"IFERROR(MID($AA175,FIND(CHAR(160),SUBSTITUTE($AA175,\"{\",CHAR(160),IM$1)),FIND(CHAR(160),SUBSTITUTE($AA175,\"}\",CHAR(160),IM$1))-FIND(CHAR(160),SUBSTITUTE($AA175,\"{\",CHAR(160),IM$1))+1),\"\")","v":"{Measure:Quantity}"},{"$f":"IFERROR(MID($AA175,FIND(CHAR(160),SUBSTITUTE($AA175,\"{\",CHAR(160),IN$1)),FIND(CHAR(160),SUBSTITUTE($AA175,\"}\",CHAR(160),IN$1))-FIND(CHAR(160),SUBSTITUTE($AA175,\"{\",CHAR(160),IN$1))+1),\"\")","v":"{Package Size}"},{"$f":"IFERROR(MID($AB175,FIND(CHAR(160),SUBSTITUTE($AB175,\"{\",CHAR(160),IO$1)),FIND(CHAR(160),SUBSTITUTE($AB175,\"}\",CHAR(160),IO$1))-FIND(CHAR(160),SUBSTITUTE($AB175,\"{\",CHAR(160),IO$1))+1),\"\")","v":""},{"$f":"IFERROR(MID($AB175,FIND(CHAR(160),SUBSTITUTE($AB175,\"{\",CHAR(160),IP$1)),FIND(CHAR(160),SUBSTITUTE($AB175,\"}\",CHAR(160),IP$1))-FIND(CHAR(160),SUBSTITUTE($AB175,\"{\",CHAR(160),IP$1))+1),\"\")","v":""},{"$f":"IFERROR(MID($AB175,FIND(CHAR(160),SUBSTITUTE($AB175,\"{\",CHAR(160),IQ$1)),FIND(CHAR(160),SUBSTITUTE($AB175,\"}\",CHAR(160),IQ$1))-FIND(CHAR(160),SUBSTITUTE($AB175,\"{\",CHAR(160),IQ$1))+1),\"\")","v":""},{"$f":"IFERROR(MID($AB175,FIND(CHAR(160),SUBSTITUTE($AB175,\"{\",CHAR(160),IR$1)),FIND(CHAR(160),SUBSTITUTE($AB175,\"}\",CHAR(160),IR$1))-FIND(CHAR(160),SUBSTITUTE($AB175,\"{\",CHAR(160),IR$1))+1),\"\")","v":""},{"$f":"IFERROR(MID($AB175,FIND(CHAR(160),SUBSTITUTE($AB175,\"{\",CHAR(160),IS$1)),FIND(CHAR(160),SUBSTITUTE($AB175,\"}\",CHAR(160),IS$1))-FIND(CHAR(160),SUBSTITUTE($AB175,\"{\",CHAR(160),IS$1))+1),\"\")","v":""},{"$f":"IFERROR(MID($AB175,FIND(CHAR(160),SUBSTITUTE($AB175,\"{\",CHAR(160),IT$1)),FIND(CHAR(160),SUBSTITUTE($AB175,\"}\",CHAR(160),IT$1))-FIND(CHAR(160),SUBSTITUTE($AB175,\"{\",CHAR(160),IT$1))+1),\"\")","v":""},{"$f":"IFERROR(MID($AB175,FIND(CHAR(160),SUBSTITUTE($AB175,\"{\",CHAR(160),IU$1)),FIND(CHAR(160),SUBSTITUTE($AB175,\"}\",CHAR(160),IU$1))-FIND(CHAR(160),SUBSTITUTE($AB175,\"{\",CHAR(160),IU$1))+1),\"\")","v":""},{"$f":"IFERROR(MID($AB175,FIND(CHAR(160),SUBSTITUTE($AB175,\"{\",CHAR(160),IV$1)),FIND(CHAR(160),SUBSTITUTE($AB175,\"}\",CHAR(160),IV$1))-FIND(CHAR(160),SUBSTITUTE($AB175,\"{\",CHAR(160),IV$1))+1),\"\")","v":""},{"$f":"IFERROR(MID($AB175,FIND(CHAR(160),SUBSTITUTE($AB175,\"{\",CHAR(160),IW$1)),FIND(CHAR(160),SUBSTITUTE($AB175,\"}\",CHAR(160),IW$1))-FIND(CHAR(160),SUBSTITUTE($AB175,\"{\",CHAR(160),IW$1))+1),\"\")","v":""},{"$f":"IFERROR(MID($AB175,FIND(CHAR(160),SUBSTITUTE($AB175,\"{\",CHAR(160),IX$1)),FIND(CHAR(160),SUBSTITUTE($AB175,\"}\",CHAR(160),IX$1))-FIND(CHAR(160),SUBSTITUTE($AB175,\"{\",CHAR(160),IX$1))+1),\"\")","v":""},null,{"$f":"10-COUNTIF(DU175:ED175,\"\")","v":3}]
["Distributor Lighting","LED Replacement Lamps T5 (Type A)","S111A","2021-07-01","2022-06-30","Calculated","{Measure:Quantity}*{Package Size}*7.91",0,"Calculated","{Measure:Quantity}*{Rebate per Package}",0,"2021-07-01","2022-06-30","Calculated","{Measure:Quantity}*{Package Size}*50",null,null,"{Measure:Quantity}*{Package Size}*1.0747*0.016",null,null,"{Measure:Quantity}*{Package Size}*{Factor:WinterCF}*0.016","{Measure:Quantity}*{Package Size}*{Factor:SummerCF}*1.0747*0.016","{Measure:Quantity}*{Package Size}*10*-0.021","{Measure:Quantity}*{Package Size}*-0.005","{Measure:Quantity}*{Package Size}*-0.021","{Measure:Quantity}*{Package Size}*-0.001","{Measure:Quantity}*{Package Size}*-0.005",null,"2021-07-01","2022-06-30",16,0.372,0.64500000000000002,0.45,0.218,0.22900000000000001,0.10299999999999999,1,1,1,0.51,0,null,{"$f":"DU176","v":"{Measure:Quantity}"},1,{"$f":"DV176","v":"{Package Size}"},1,{"$f":"DW176","v":"{Rebate per Package}"},{"$f":"CW176*CO176","v":5.9325000000000001},{"$f":"DX176","v":""},null,{"$f":"DY176","v":""},null,{"$f":"DZ176","v":""},null,{"$f":"EA176","v":""},null,{"$f":"EB176","v":""},null,{"$f":"EC176","v":""},null,{"$f":"ED176","v":""},null,{"$f":"AS176*AU176*50","v":50},0,0,{"$f":"AS176*AU176*1.0747*0.016","v":1.7195200000000001E-2},0,0,{"$f":"AS176*AU176*AF176*0.016","v":5.9519999999999998E-3},{"$f":"AS176*AU176*AG176*1.0747*0.016","v":1.1090904E-2},{"$f":"AS176*AU176*10*-0.021","v":-0.21000000000000002},{"$f":"AS176*AU176*-0.005","v":-5.0000000000000001E-3},{"$f":"AS176*AU176*-0.021","v":-2.1000000000000001E-2},{"$f":"AS176*AU176*-0.001","v":-1E-3},{"$f":"AS176*AU176*-0.005","v":-5.0000000000000001E-3},0,null,"Res","Default DR",{"$f":"Benefits(BL176,BR176,BS176,BT176,BU176,BV176,BW176,BX176,BY176,BZ176,AE176,AH176,AI176,AJ176,AK176,AL176,AM176,AN176,AO176,AP176,CA176,CB176)","v":69.684769152909737},45.60015232700048,-4.3316033912225276,-9.30385879268694,-0.51559606167104488,-3.0982190578188034,-1.3930820570083862,0,0,{"$f":"SUMPRODUCT(CC176:CK176,--(CC176:CK176>0))","v":115.28492147991022},{"$f":"-SUMPRODUCT(CC176:CK176,--(CC176:CK176<0))","v":18.642359360407703},null,{"$f":"AS176*AU176*7.91","v":7.91},null,null,{"$f":"CM176+CO176","v":26.552359360407703},{"$f":"IF(NetOrGross=\"Net\",(1-AO176+AP176),1)","v":1},{"$f":"(SUMPRODUCT(CC176:CJ176,--(CC176:CJ176>0))+CN176)*CS176/((-SUMPRODUCT(CC176:CJ176,--(CC176:CJ176<0))+MAX(CO176,CV176)+CP176+CQ176)*CS176+IF(FRIncentives=\"Yes\",CV176*(1-CS176),0))","v":4.3417957671894083},1,{"$f":"AS176*AW176","v":5.9325000000000001},{"$f":"CW175","v":0.75},"Electric","y",null,{"$f":"IF(F176=\"Manual Entry\",\"Manual\",IF(G176=\"\",0,\"X=\"&SUBSTITUTE(SUBSTITUTE(SUBSTITUTE(SUBSTITUTE(SUBSTITUTE(SUBSTITUTE(SUBSTITUTE(SUBSTITUTE(SUBSTITUTE(SUBSTITUTE(SUBSTITUTE(SUBSTITUTE(G176,$ED176,$ED$2&ROW($ED176)),$EC176,$EC$2&ROW($EC176)),$EB176,$EB$2&ROW($EB176)),$EA176,$EA$2&ROW($EA176)),$DZ176,$DZ$2&ROW($DZ176)),$DY176,$DY$2&ROW($DY176)),$DX176,$DX$2&ROW($DX176)),$DW176,$DW$2&ROW($DW176)),$DV176,$DV$2&ROW($DV176)),$DU176,$DU$2&ROW($DU176)),$DT176,$DT$2&ROW($DT176)),$DS176,$DS$2&ROW($DS176))))","v":"X=AS176*AU176*7.91"},{"$f":"IF(I176=\"Manual Entry\",\"Manual\",IF(J176=\"\",0,\"X=\"&SUBSTITUTE(SUBSTITUTE(SUBSTITUTE(SUBSTITUTE(SUBSTITUTE(SUBSTITUTE(SUBSTITUTE(SUBSTITUTE(SUBSTITUTE(SUBSTITUTE(SUBSTITUTE(SUBSTITUTE(J176,$ED176,$ED$2&ROW($ED176)),$EC176,$EC$2&ROW($EC176)),$EB176,$EB$2&ROW($EB176)),$EA176,$EA$2&ROW($EA176)),$DZ176,$DZ$2&ROW($DZ176)),$DY176,$DY$2&ROW($DY176)),$DX176,$DX$2&ROW($DX176)),$DW176,$DW$2&ROW($DW176)),$DV176,$DV$2&ROW($DV176)),$DU176,$DU$2&ROW($DU176)),$DT176,$DT$2&ROW($DT176)),$DS176,$DS$2&ROW($DS176))))","v":"X=AS176*AW176"},{"$f":"IF(O176=\"\",0,\"X=\"&SUBSTITUTE(SUBSTITUTE(SUBSTITUTE(SUBSTITUTE(SUBSTITUTE(SUBSTITUTE(SUBSTITUTE(SUBSTITUTE(SUBSTITUTE(SUBSTITUTE(SUBSTITUTE(SUBSTITUTE(O176,$ED176,$ED$2&ROW($ED176)),$EC176,$EC$2&ROW($EC176)),$EB176,$EB$2&ROW($EB176)),$EA176,$EA$2&ROW($EA176)),$DZ176,$DZ$2&ROW($DZ176)),$DY176,$DY$2&ROW($DY176)),$DX176,$DX$2&ROW($DX176)),$DW176,$DW$2&ROW($DW176)),$DV176,$DV$2&ROW($DV176)),$DU176,$DU$2&ROW($DU176)),$DT176,$DT$2&ROW($DT176)),$DS176,$DS$2&ROW($DS176)))","v":"X=AS176*AU176*50"},{"$f":"IF(P176=\"\",0,\"X=\"&SUBSTITUTE(SUBSTITUTE(SUBSTITUTE(SUBSTITUTE(SUBSTITUTE(SUBSTITUTE(SUBSTITUTE(SUBSTITUTE(SUBSTITUTE(SUBSTITUTE(SUBSTITUTE(SUBSTITUTE(P176,$ED176,$ED$2&ROW($ED176)),$EC176,$EC$2&ROW($EC176)),$EB176,$EB$2&ROW($EB176)),$EA176,$EA$2&ROW($EA176)),$DZ176,$DZ$2&ROW($DZ176)),$DY176,$DY$2&ROW($DY176)),$DX176,$DX$2&ROW($DX176)),$DW176,$DW$2&ROW($DW176)),$DV176,$DV$2&ROW($DV176)),$DU176,$DU$2&ROW($DU176)),$DT176,$DT$2&ROW($DT176)),$DS176,$DS$2&ROW($DS176)))","v":0},{"$f":"IF(Q176=\"\",0,\"X=\"&SUBSTITUTE(SUBSTITUTE(SUBSTITUTE(SUBSTITUTE(SUBSTITUTE(SUBSTITUTE(SUBSTITUTE(SUBSTITUTE(SUBSTITUTE(SUBSTITUTE(SUBSTITUTE(SUBSTITUTE(Q176,$ED176,$ED$2&ROW($ED176)),$EC176,$EC$2&ROW($EC176)),$EB176,$EB$2&ROW($EB176)),$EA176,$EA$2&ROW($EA176)),$DZ176,$DZ$2&ROW($DZ176)),$DY176,$DY$2&ROW($DY176)),$DX176,$DX$2&ROW($DX176)),$DW176,$DW$2&ROW($DW176)),$DV176,$DV$2&ROW($DV176)),$DU176,$DU$2&ROW($DU176)),$DT176,$DT$2&ROW($DT176)),$DS176,$DS$2&ROW($DS176)))","v":0},{"$f":"IF(R176=\"\",0,\"X=\"&SUBSTITUTE(SUBSTITUTE(SUBSTITUTE(SUBSTITUTE(SUBSTITUTE(SUBSTITUTE(SUBSTITUTE(SUBSTITUTE(SUBSTITUTE(SUBSTITUTE(SUBSTITUTE(SUBSTITUTE(R176,$ED176,$ED$2&ROW($ED176)),$EC176,$EC$2&ROW($EC176)),$EB176,$EB$2&ROW($EB176)),$EA176,$EA$2&ROW($EA176)),$DZ176,$DZ$2&ROW($DZ176)),$DY176,$DY$2&ROW($DY176)),$DX176,$DX$2&ROW($DX176)),$DW176,$DW$2&ROW($DW176)),$DV176,$DV$2&ROW($DV176)),$DU176,$DU$2&ROW($DU176)),$DT176,$DT$2&ROW($DT176)),$DS176,$DS$2&ROW($DS176)))","v":"X=AS176*AU176*1.0747*0.016"},{"$f":"IF(S176=\"\",0,\"X=\"&SUBSTITUTE(SUBSTITUTE(SUBSTITUTE(SUBSTITUTE(SUBSTITUTE(SUBSTITUTE(SUBSTITUTE(SUBSTITUTE(SUBSTITUTE(SUBSTITUTE(SUBSTITUTE(SUBSTITUTE(S176,$ED176,$ED$2&ROW($ED176)),$EC176,$EC$2&ROW($EC176)),$EB176,$EB$2&ROW($EB176)),$EA176,$EA$2&ROW($EA176)),$DZ176,$DZ$2&ROW($DZ176)),$DY176,$DY$2&ROW($DY176)),$DX176,$DX$2&ROW($DX176)),$DW176,$DW$2&ROW($DW176)),$DV176,$DV$2&ROW($DV176)),$DU176,$DU$2&ROW($DU176)),$DT176,$DT$2&ROW($DT176)),$DS176,$DS$2&ROW($DS176)))","v":0},{"$f":"IF(T176=\"\",0,\"X=\"&SUBSTITUTE(SUBSTITUTE(SUBSTITUTE(SUBSTITUTE(SUBSTITUTE(SUBSTITUTE(SUBSTITUTE(SUBSTITUTE(SUBSTITUTE(SUBSTITUTE(SUBSTITUTE(SUBSTITUTE(T176,$ED176,$ED$2&ROW($ED176)),$EC176,$EC$2&ROW($EC176)),$EB176,$EB$2&ROW($EB176)),$EA176,$EA$2&ROW($EA176)),$DZ176,$DZ$2&ROW($DZ176)),$DY176,$DY$2&ROW($DY176)),$DX176,$DX$2&ROW($DX176)),$DW176,$DW$2&ROW($DW176)),$DV176,$DV$2&ROW($DV176)),$DU176,$DU$2&ROW($DU176)),$DT176,$DT$2&ROW($DT176)),$DS176,$DS$2&ROW($DS176)))","v":0},{"$f":"IF(U176=\"\",0,\"X=\"&SUBSTITUTE(SUBSTITUTE(SUBSTITUTE(SUBSTITUTE(SUBSTITUTE(SUBSTITUTE(SUBSTITUTE(SUBSTITUTE(SUBSTITUTE(SUBSTITUTE(SUBSTITUTE(SUBSTITUTE(U176,$ED176,$ED$2&ROW($ED176)),$EC176,$EC$2&ROW($EC176)),$EB176,$EB$2&ROW($EB176)),$EA176,$EA$2&ROW($EA176)),$DZ176,$DZ$2&ROW($DZ176)),$DY176,$DY$2&ROW($DY176)),$DX176,$DX$2&ROW($DX176)),$DW176,$DW$2&ROW($DW176)),$DV176,$DV$2&ROW($DV176)),$DU176,$DU$2&ROW($DU176)),$DT176,$DT$2&ROW($DT176)),$DS176,$DS$2&ROW($DS176)))","v":"X=AS176*AU176*AF176*0.016"},{"$f":"IF(V176=\"\",0,\"X=\"&SUBSTITUTE(SUBSTITUTE(SUBSTITUTE(SUBSTITUTE(SUBSTITUTE(SUBSTITUTE(SUBSTITUTE(SUBSTITUTE(SUBSTITUTE(SUBSTITUTE(SUBSTITUTE(SUBSTITUTE(V176,$ED176,$ED$2&ROW($ED176)),$EC176,$EC$2&ROW($EC176)),$EB176,$EB$2&ROW($EB176)),$EA176,$EA$2&ROW($EA176)),$DZ176,$DZ$2&ROW($DZ176)),$DY176,$DY$2&ROW($DY176)),$DX176,$DX$2&ROW($DX176)),$DW176,$DW$2&ROW($DW176)),$DV176,$DV$2&ROW($DV176)),$DU176,$DU$2&ROW($DU176)),$DT176,$DT$2&ROW($DT176)),$DS176,$DS$2&ROW($DS176)))","v":"X=AS176*AU176*AG176*1.0747*0.016"},{"$f":"IF(W176=\"\",0,\"X=\"&SUBSTITUTE(SUBSTITUTE(SUBSTITUTE(SUBSTITUTE(SUBSTITUTE(SUBSTITUTE(SUBSTITUTE(SUBSTITUTE(SUBSTITUTE(SUBSTITUTE(SUBSTITUTE(SUBSTITUTE(W176,$ED176,$ED$2&ROW($ED176)),$EC176,$EC$2&ROW($EC176)),$EB176,$EB$2&ROW($EB176)),$EA176,$EA$2&ROW($EA176)),$DZ176,$DZ$2&ROW($DZ176)),$DY176,$DY$2&ROW($DY176)),$DX176,$DX$2&ROW($DX176)),$DW176,$DW$2&ROW($DW176)),$DV176,$DV$2&ROW($DV176)),$DU176,$DU$2&ROW($DU176)),$DT176,$DT$2&ROW($DT176)),$DS176,$DS$2&ROW($DS176)))","v":"X=AS176*AU176*10*-0.021"},{"$f":"IF(X176=\"\",0,\"X=\"&SUBSTITUTE(SUBSTITUTE(SUBSTITUTE(SUBSTITUTE(SUBSTITUTE(SUBSTITUTE(SUBSTITUTE(SUBSTITUTE(SUBSTITUTE(SUBSTITUTE(SUBSTITUTE(SUBSTITUTE(X176,$ED176,$ED$2&ROW($ED176)),$EC176,$EC$2&ROW($EC176)),$EB176,$EB$2&ROW($EB176)),$EA176,$EA$2&ROW($EA176)),$DZ176,$DZ$2&ROW($DZ176)),$DY176,$DY$2&ROW($DY176)),$DX176,$DX$2&ROW($DX176)),$DW176,$DW$2&ROW($DW176)),$DV176,$DV$2&ROW($DV176)),$DU176,$DU$2&ROW($DU176)),$DT176,$DT$2&ROW($DT176)),$DS176,$DS$2&ROW($DS176)))","v":"X=AS176*AU176*-0.005"},{"$f":"IF(Y176=\"\",0,\"X=\"&SUBSTITUTE(SUBSTITUTE(SUBSTITUTE(SUBSTITUTE(SUBSTITUTE(SUBSTITUTE(SUBSTITUTE(SUBSTITUTE(SUBSTITUTE(SUBSTITUTE(SUBSTITUTE(SUBSTITUTE(Y176,$ED176,$ED$2&ROW($ED176)),$EC176,$EC$2&ROW($EC176)),$EB176,$EB$2&ROW($EB176)),$EA176,$EA$2&ROW($EA176)),$DZ176,$DZ$2&ROW($DZ176)),$DY176,$DY$2&ROW($DY176)),$DX176,$DX$2&ROW($DX176)),$DW176,$DW$2&ROW($DW176)),$DV176,$DV$2&ROW($DV176)),$DU176,$DU$2&ROW($DU176)),$DT176,$DT$2&ROW($DT176)),$DS176,$DS$2&ROW($DS176)))","v":"X=AS176*AU176*-0.021"},{"$f":"IF(Z176=\"\",0,\"X=\"&SUBSTITUTE(SUBSTITUTE(SUBSTITUTE(SUBSTITUTE(SUBSTITUTE(SUBSTITUTE(SUBSTITUTE(SUBSTITUTE(SUBSTITUTE(SUBSTITUTE(SUBSTITUTE(SUBSTITUTE(Z176,$ED176,$ED$2&ROW($ED176)),$EC176,$EC$2&ROW($EC176)),$EB176,$EB$2&ROW($EB176)),$EA176,$EA$2&ROW($EA176)),$DZ176,$DZ$2&ROW($DZ176)),$DY176,$DY$2&ROW($DY176)),$DX176,$DX$2&ROW($DX176)),$DW176,$DW$2&ROW($DW176)),$DV176,$DV$2&ROW($DV176)),$DU176,$DU$2&ROW($DU176)),$DT176,$DT$2&ROW($DT176)),$DS176,$DS$2&ROW($DS176)))","v":"X=AS176*AU176*-0.001"},{"$f":"IF(AA176=\"\",0,\"X=\"&SUBSTITUTE(SUBSTITUTE(SUBSTITUTE(SUBSTITUTE(SUBSTITUTE(SUBSTITUTE(SUBSTITUTE(SUBSTITUTE(SUBSTITUTE(SUBSTITUTE(SUBSTITUTE(SUBSTITUTE(AA176,$ED176,$ED$2&ROW($ED176)),$EC176,$EC$2&ROW($EC176)),$EB176,$EB$2&ROW($EB176)),$EA176,$EA$2&ROW($EA176)),$DZ176,$DZ$2&ROW($DZ176)),$DY176,$DY$2&ROW($DY176)),$DX176,$DX$2&ROW($DX176)),$DW176,$DW$2&ROW($DW176)),$DV176,$DV$2&ROW($DV176)),$DU176,$DU$2&ROW($DU176)),$DT176,$DT$2&ROW($DT176)),$DS176,$DS$2&ROW($DS176)))","v":"X=AS176*AU176*-0.005"},{"$f":"IF(AB176=\"\",0,\"X=\"&SUBSTITUTE(SUBSTITUTE(SUBSTITUTE(SUBSTITUTE(SUBSTITUTE(SUBSTITUTE(SUBSTITUTE(SUBSTITUTE(SUBSTITUTE(SUBSTITUTE(SUBSTITUTE(SUBSTITUTE(AB176,$ED176,$ED$2&ROW($ED176)),$EC176,$EC$2&ROW($EC176)),$EB176,$EB$2&ROW($EB176)),$EA176,$EA$2&ROW($EA176)),$DZ176,$DZ$2&ROW($DZ176)),$DY176,$DY$2&ROW($DY176)),$DX176,$DX$2&ROW($DX176)),$DW176,$DW$2&ROW($DW176)),$DV176,$DV$2&ROW($DV176)),$DU176,$DU$2&ROW($DU176)),$DT176,$DT$2&ROW($DT176)),$DS176,$DS$2&ROW($DS176)))","v":0},null,null,"{Factor:WinterCF}","{Factor:SummerCF}",{"$f":"IFERROR(INDEX($EG176:$IV176,MATCH(0,COUNTIF($DR176:DT176,$EG176:$IV176),0)),\"\")","v":"{Measure:Quantity}"},{"$f":"IFERROR(INDEX($EG176:$IV176,MATCH(0,COUNTIF($DR176:DU176,$EG176:$IV176),0)),\"\")","v":"{Package Size}"},{"$f":"IFERROR(INDEX($EG176:$IV176,MATCH(0,COUNTIF($DR176:DV176,$EG176:$IV176),0)),\"\")","v":"{Rebate per Package}"},{"$f":"IFERROR(INDEX($EG176:$IV176,MATCH(0,COUNTIF($DR176:DW176,$EG176:$IV176),0)),\"\")","v":""},{"$f":"IFERROR(INDEX($EG176:$IV176,MATCH(0,COUNTIF($DR176:DX176,$EG176:$IV176),0)),\"\")","v":""},{"$f":"IFERROR(INDEX($EG176:$IV176,MATCH(0,COUNTIF($DR176:DY176,$EG176:$IV176),0)),\"\")","v":""},{"$f":"IFERROR(INDEX($EG176:$IV176,MATCH(0,COUNTIF($DR176:DZ176,$EG176:$IV176),0)),\"\")","v":""},{"$f":"IFERROR(INDEX($EG176:$IV176,MATCH(0,COUNTIF($DR176:EA176,$EG176:$IV176),0)),\"\")","v":""},{"$f":"IFERROR(INDEX($EG176:$IV176,MATCH(0,COUNTIF($DR176:EB176,$EG176:$IV176),0)),\"\")","v":""},{"$f":"IFERROR(INDEX($EG176:$IV176,MATCH(0,COUNTIF($DR176:EC176,$EG176:$IV176),0)),\"\")","v":""},null,null,{"$f":"IFERROR(MID($G176,FIND(CHAR(160),SUBSTITUTE($G176,\"{\",CHAR(160),EG$1)),FIND(CHAR(160),SUBSTITUTE($G176,\"}\",CHAR(160),EG$1))-FIND(CHAR(160),SUBSTITUTE($G176,\"{\",CHAR(160),EG$1))+1),\"\")","v":"{Measure:Quantity}"},{"$f":"IFERROR(MID($G176,FIND(CHAR(160),SUBSTITUTE($G176,\"{\",CHAR(160),EH$1)),FIND(CHAR(160),SUBSTITUTE($G176,\"}\",CHAR(160),EH$1))-FIND(CHAR(160),SUBSTITUTE($G176,\"{\",CHAR(160),EH$1))+1),\"\")","v":"{Package Size}"},{"$f":"IFERROR(MID($G176,FIND(CHAR(160),SUBSTITUTE($G176,\"{\",CHAR(160),EI$1)),FIND(CHAR(160),SUBSTITUTE($G176,\"}\",CHAR(160),EI$1))-FIND(CHAR(160),SUBSTITUTE($G176,\"{\",CHAR(160),EI$1))+1),\"\")","v":""},{"$f":"IFERROR(MID($G176,FIND(CHAR(160),SUBSTITUTE($G176,\"{\",CHAR(160),EJ$1)),FIND(CHAR(160),SUBSTITUTE($G176,\"}\",CHAR(160),EJ$1))-FIND(CHAR(160),SUBSTITUTE($G176,\"{\",CHAR(160),EJ$1))+1),\"\")","v":""},{"$f":"IFERROR(MID($G176,FIND(CHAR(160),SUBSTITUTE($G176,\"{\",CHAR(160),EK$1)),FIND(CHAR(160),SUBSTITUTE($G176,\"}\",CHAR(160),EK$1))-FIND(CHAR(160),SUBSTITUTE($G176,\"{\",CHAR(160),EK$1))+1),\"\")","v":""},{"$f":"IFERROR(MID($G176,FIND(CHAR(160),SUBSTITUTE($G176,\"{\",CHAR(160),EL$1)),FIND(CHAR(160),SUBSTITUTE($G176,\"}\",CHAR(160),EL$1))-FIND(CHAR(160),SUBSTITUTE($G176,\"{\",CHAR(160),EL$1))+1),\"\")","v":""},{"$f":"IFERROR(MID($G176,FIND(CHAR(160),SUBSTITUTE($G176,\"{\",CHAR(160),EM$1)),FIND(CHAR(160),SUBSTITUTE($G176,\"}\",CHAR(160),EM$1))-FIND(CHAR(160),SUBSTITUTE($G176,\"{\",CHAR(160),EM$1))+1),\"\")","v":""},{"$f":"IFERROR(MID($G176,FIND(CHAR(160),SUBSTITUTE($G176,\"{\",CHAR(160),EN$1)),FIND(CHAR(160),SUBSTITUTE($G176,\"}\",CHAR(160),EN$1))-FIND(CHAR(160),SUBSTITUTE($G176,\"{\",CHAR(160),EN$1))+1),\"\")","v":""},{"$f":"IFERROR(MID($G176,FIND(CHAR(160),SUBSTITUTE($G176,\"{\",CHAR(160),EO$1)),FIND(CHAR(160),SUBSTITUTE($G176,\"}\",CHAR(160),EO$1))-FIND(CHAR(160),SUBSTITUTE($G176,\"{\",CHAR(160),EO$1))+1),\"\")","v":""},{"$f":"IFERROR(MID($G176,FIND(CHAR(160),SUBSTITUTE($G176,\"{\",CHAR(160),EP$1)),FIND(CHAR(160),SUBSTITUTE($G176,\"}\",CHAR(160),EP$1))-FIND(CHAR(160),SUBSTITUTE($G176,\"{\",CHAR(160),EP$1))+1),\"\")","v":""},{"$f":"IFERROR(MID($J176,FIND(CHAR(160),SUBSTITUTE($J176,\"{\",CHAR(160),EQ$1)),FIND(CHAR(160),SUBSTITUTE($J176,\"}\",CHAR(160),EQ$1))-FIND(CHAR(160),SUBSTITUTE($J176,\"{\",CHAR(160),EQ$1))+1),\"\")","v":"{Measure:Quantity}"},{"$f":"IFERROR(MID($J176,FIND(CHAR(160),SUBSTITUTE($J176,\"{\",CHAR(160),ER$1)),FIND(CHAR(160),SUBSTITUTE($J176,\"}\",CHAR(160),ER$1))-FIND(CHAR(160),SUBSTITUTE($J176,\"{\",CHAR(160),ER$1))+1),\"\")","v":"{Rebate per Package}"},{"$f":"IFERROR(MID($J176,FIND(CHAR(160),SUBSTITUTE($J176,\"{\",CHAR(160),ES$1)),FIND(CHAR(160),SUBSTITUTE($J176,\"}\",CHAR(160),ES$1))-FIND(CHAR(160),SUBSTITUTE($J176,\"{\",CHAR(160),ES$1))+1),\"\")","v":""},{"$f":"IFERROR(MID($J176,FIND(CHAR(160),SUBSTITUTE($J176,\"{\",CHAR(160),ET$1)),FIND(CHAR(160),SUBSTITUTE($J176,\"}\",CHAR(160),ET$1))-FIND(CHAR(160),SUBSTITUTE($J176,\"{\",CHAR(160),ET$1))+1),\"\")","v":""},{"$f":"IFERROR(MID($J176,FIND(CHAR(160),SUBSTITUTE($J176,\"{\",CHAR(160),EU$1)),FIND(CHAR(160),SUBSTITUTE($J176,\"}\",CHAR(160),EU$1))-FIND(CHAR(160),SUBSTITUTE($J176,\"{\",CHAR(160),EU$1))+1),\"\")","v":""},{"$f":"IFERROR(MID($J176,FIND(CHAR(160),SUBSTITUTE($J176,\"{\",CHAR(160),EV$1)),FIND(CHAR(160),SUBSTITUTE($J176,\"}\",CHAR(160),EV$1))-FIND(CHAR(160),SUBSTITUTE($J176,\"{\",CHAR(160),EV$1))+1),\"\")","v":""},{"$f":"IFERROR(MID($J176,FIND(CHAR(160),SUBSTITUTE($J176,\"{\",CHAR(160),EW$1)),FIND(CHAR(160),SUBSTITUTE($J176,\"}\",CHAR(160),EW$1))-FIND(CHAR(160),SUBSTITUTE($J176,\"{\",CHAR(160),EW$1))+1),\"\")","v":""},{"$f":"IFERROR(MID($J176,FIND(CHAR(160),SUBSTITUTE($J176,\"{\",CHAR(160),EX$1)),FIND(CHAR(160),SUBSTITUTE($J176,\"}\",CHAR(160),EX$1))-FIND(CHAR(160),SUBSTITUTE($J176,\"{\",CHAR(160),EX$1))+1),\"\")","v":""},{"$f":"IFERROR(MID($J176,FIND(CHAR(160),SUBSTITUTE($J176,\"{\",CHAR(160),EY$1)),FIND(CHAR(160),SUBSTITUTE($J176,\"}\",CHAR(160),EY$1))-FIND(CHAR(160),SUBSTITUTE($J176,\"{\",CHAR(160),EY$1))+1),\"\")","v":""},{"$f":"IFERROR(MID($J176,FIND(CHAR(160),SUBSTITUTE($J176,\"{\",CHAR(160),EZ$1)),FIND(CHAR(160),SUBSTITUTE($J176,\"}\",CHAR(160),EZ$1))-FIND(CHAR(160),SUBSTITUTE($J176,\"{\",CHAR(160),EZ$1))+1),\"\")","v":""},{"$f":"IFERROR(MID($J176,FIND(CHAR(160),SUBSTITUTE($J176,\"{\",CHAR(160),FA$1)),FIND(CHAR(160),SUBSTITUTE($J176,\"}\",CHAR(160),FA$1))-FIND(CHAR(160),SUBSTITUTE($J176,\"{\",CHAR(160),FA$1))+1),\"\")","v":"{Measure:Quantity}"},{"$f":"IFERROR(MID($J176,FIND(CHAR(160),SUBSTITUTE($J176,\"{\",CHAR(160),FB$1)),FIND(CHAR(160),SUBSTITUTE($J176,\"}\",CHAR(160),FB$1))-FIND(CHAR(160),SUBSTITUTE($J176,\"{\",CHAR(160),FB$1))+1),\"\")","v":"{Rebate per Package}"},{"$f":"IFERROR(MID($O176,FIND(CHAR(160),SUBSTITUTE($O176,\"{\",CHAR(160),FC$1)),FIND(CHAR(160),SUBSTITUTE($O176,\"}\",CHAR(160),FC$1))-FIND(CHAR(160),SUBSTITUTE($O176,\"{\",CHAR(160),FC$1))+1),\"\")","v":""},{"$f":"IFERROR(MID($O176,FIND(CHAR(160),SUBSTITUTE($O176,\"{\",CHAR(160),FD$1)),FIND(CHAR(160),SUBSTITUTE($O176,\"}\",CHAR(160),FD$1))-FIND(CHAR(160),SUBSTITUTE($O176,\"{\",CHAR(160),FD$1))+1),\"\")","v":""},{"$f":"IFERROR(MID($O176,FIND(CHAR(160),SUBSTITUTE($O176,\"{\",CHAR(160),FE$1)),FIND(CHAR(160),SUBSTITUTE($O176,\"}\",CHAR(160),FE$1))-FIND(CHAR(160),SUBSTITUTE($O176,\"{\",CHAR(160),FE$1))+1),\"\")","v":""},{"$f":"IFERROR(MID($O176,FIND(CHAR(160),SUBSTITUTE($O176,\"{\",CHAR(160),FF$1)),FIND(CHAR(160),SUBSTITUTE($O176,\"}\",CHAR(160),FF$1))-FIND(CHAR(160),SUBSTITUTE($O176,\"{\",CHAR(160),FF$1))+1),\"\")","v":""},{"$f":"IFERROR(MID($O176,FIND(CHAR(160),SUBSTITUTE($O176,\"{\",CHAR(160),FG$1)),FIND(CHAR(160),SUBSTITUTE($O176,\"}\",CHAR(160),FG$1))-FIND(CHAR(160),SUBSTITUTE($O176,\"{\",CHAR(160),FG$1))+1),\"\")","v":""},{"$f":"IFERROR(MID($O176,FIND(CHAR(160),SUBSTITUTE($O176,\"{\",CHAR(160),FH$1)),FIND(CHAR(160),SUBSTITUTE($O176,\"}\",CHAR(160),FH$1))-FIND(CHAR(160),SUBSTITUTE($O176,\"{\",CHAR(160),FH$1))+1),\"\")","v":""},{"$f":"IFERROR(MID($O176,FIND(CHAR(160),SUBSTITUTE($O176,\"{\",CHAR(160),FI$1)),FIND(CHAR(160),SUBSTITUTE($O176,\"}\",CHAR(160),FI$1))-FIND(CHAR(160),SUBSTITUTE($O176,\"{\",CHAR(160),FI$1))+1),\"\")","v":""},{"$f":"IFERROR(MID($O176,FIND(CHAR(160),SUBSTITUTE($O176,\"{\",CHAR(160),FJ$1)),FIND(CHAR(160),SUBSTITUTE($O176,\"}\",CHAR(160),FJ$1))-FIND(CHAR(160),SUBSTITUTE($O176,\"{\",CHAR(160),FJ$1))+1),\"\")","v":""},{"$f":"IFERROR(MID($O176,FIND(CHAR(160),SUBSTITUTE($O176,\"{\",CHAR(160),FK$1)),FIND(CHAR(160),SUBSTITUTE($O176,\"}\",CHAR(160),FK$1))-FIND(CHAR(160),SUBSTITUTE($O176,\"{\",CHAR(160),FK$1))+1),\"\")","v":"{Measure:Quantity}"},{"$f":"IFERROR(MID($O176,FIND(CHAR(160),SUBSTITUTE($O176,\"{\",CHAR(160),FL$1)),FIND(CHAR(160),SUBSTITUTE($O176,\"}\",CHAR(160),FL$1))-FIND(CHAR(160),SUBSTITUTE($O176,\"{\",CHAR(160),FL$1))+1),\"\")","v":"{Package Size}"},{"$f":"IFERROR(MID($R176,FIND(CHAR(160),SUBSTITUTE($R176,\"{\",CHAR(160),FM$1)),FIND(CHAR(160),SUBSTITUTE($R176,\"}\",CHAR(160),FM$1))-FIND(CHAR(160),SUBSTITUTE($R176,\"{\",CHAR(160),FM$1))+1),\"\")","v":""},{"$f":"IFERROR(MID($R176,FIND(CHAR(160),SUBSTITUTE($R176,\"{\",CHAR(160),FN$1)),FIND(CHAR(160),SUBSTITUTE($R176,\"}\",CHAR(160),FN$1))-FIND(CHAR(160),SUBSTITUTE($R176,\"{\",CHAR(160),FN$1))+1),\"\")","v":""},{"$f":"IFERROR(MID($R176,FIND(CHAR(160),SUBSTITUTE($R176,\"{\",CHAR(160),FO$1)),FIND(CHAR(160),SUBSTITUTE($R176,\"}\",CHAR(160),FO$1))-FIND(CHAR(160),SUBSTITUTE($R176,\"{\",CHAR(160),FO$1))+1),\"\")","v":""},{"$f":"IFERROR(MID($R176,FIND(CHAR(160),SUBSTITUTE($R176,\"{\",CHAR(160),FP$1)),FIND(CHAR(160),SUBSTITUTE($R176,\"}\",CHAR(160),FP$1))-FIND(CHAR(160),SUBSTITUTE($R176,\"{\",CHAR(160),FP$1))+1),\"\")","v":""},{"$f":"IFERROR(MID($R176,FIND(CHAR(160),SUBSTITUTE($R176,\"{\",CHAR(160),FQ$1)),FIND(CHAR(160),SUBSTITUTE($R176,\"}\",CHAR(160),FQ$1))-FIND(CHAR(160),SUBSTITUTE($R176,\"{\",CHAR(160),FQ$1))+1),\"\")","v":""},{"$f":"IFERROR(MID($R176,FIND(CHAR(160),SUBSTITUTE($R176,\"{\",CHAR(160),FR$1)),FIND(CHAR(160),SUBSTITUTE($R176,\"}\",CHAR(160),FR$1))-FIND(CHAR(160),SUBSTITUTE($R176,\"{\",CHAR(160),FR$1))+1),\"\")","v":""},{"$f":"IFERROR(MID($R176,FIND(CHAR(160),SUBSTITUTE($R176,\"{\",CHAR(160),FS$1)),FIND(CHAR(160),SUBSTITUTE($R176,\"}\",CHAR(160),FS$1))-FIND(CHAR(160),SUBSTITUTE($R176,\"{\",CHAR(160),FS$1))+1),\"\")","v":""},{"$f":"IFERROR(MID($R176,FIND(CHAR(160),SUBSTITUTE($R176,\"{\",CHAR(160),FT$1)),FIND(CHAR(160),SUBSTITUTE($R176,\"}\",CHAR(160),FT$1))-FIND(CHAR(160),SUBSTITUTE($R176,\"{\",CHAR(160),FT$1))+1),\"\")","v":""},{"$f":"IFERROR(MID($R176,FIND(CHAR(160),SUBSTITUTE($R176,\"{\",CHAR(160),FU$1)),FIND(CHAR(160),SUBSTITUTE($R176,\"}\",CHAR(160),FU$1))-FIND(CHAR(160),SUBSTITUTE($R176,\"{\",CHAR(160),FU$1))+1),\"\")","v":"{Measure:Quantity}"},{"$f":"IFERROR(MID($R176,FIND(CHAR(160),SUBSTITUTE($R176,\"{\",CHAR(160),FV$1)),FIND(CHAR(160),SUBSTITUTE($R176,\"}\",CHAR(160),FV$1))-FIND(CHAR(160),SUBSTITUTE($R176,\"{\",CHAR(160),FV$1))+1),\"\")","v":"{Package Size}"},{"$f":"IFERROR(MID($U176,FIND(CHAR(160),SUBSTITUTE($U176,\"{\",CHAR(160),FW$1)),FIND(CHAR(160),SUBSTITUTE($U176,\"}\",CHAR(160),FW$1))-FIND(CHAR(160),SUBSTITUTE($U176,\"{\",CHAR(160),FW$1))+1),\"\")","v":"{Factor:WinterCF}"},{"$f":"IFERROR(MID($U176,FIND(CHAR(160),SUBSTITUTE($U176,\"{\",CHAR(160),FX$1)),FIND(CHAR(160),SUBSTITUTE($U176,\"}\",CHAR(160),FX$1))-FIND(CHAR(160),SUBSTITUTE($U176,\"{\",CHAR(160),FX$1))+1),\"\")","v":""},{"$f":"IFERROR(MID($U176,FIND(CHAR(160),SUBSTITUTE($U176,\"{\",CHAR(160),FY$1)),FIND(CHAR(160),SUBSTITUTE($U176,\"}\",CHAR(160),FY$1))-FIND(CHAR(160),SUBSTITUTE($U176,\"{\",CHAR(160),FY$1))+1),\"\")","v":""},{"$f":"IFERROR(MID($U176,FIND(CHAR(160),SUBSTITUTE($U176,\"{\",CHAR(160),FZ$1)),FIND(CHAR(160),SUBSTITUTE($U176,\"}\",CHAR(160),FZ$1))-FIND(CHAR(160),SUBSTITUTE($U176,\"{\",CHAR(160),FZ$1))+1),\"\")","v":""},{"$f":"IFERROR(MID($U176,FIND(CHAR(160),SUBSTITUTE($U176,\"{\",CHAR(160),GA$1)),FIND(CHAR(160),SUBSTITUTE($U176,\"}\",CHAR(160),GA$1))-FIND(CHAR(160),SUBSTITUTE($U176,\"{\",CHAR(160),GA$1))+1),\"\")","v":""},{"$f":"IFERROR(MID($U176,FIND(CHAR(160),SUBSTITUTE($U176,\"{\",CHAR(160),GB$1)),FIND(CHAR(160),SUBSTITUTE($U176,\"}\",CHAR(160),GB$1))-FIND(CHAR(160),SUBSTITUTE($U176,\"{\",CHAR(160),GB$1))+1),\"\")","v":""},{"$f":"IFERROR(MID($U176,FIND(CHAR(160),SUBSTITUTE($U176,\"{\",CHAR(160),GC$1)),FIND(CHAR(160),SUBSTITUTE($U176,\"}\",CHAR(160),GC$1))-FIND(CHAR(160),SUBSTITUTE($U176,\"{\",CHAR(160),GC$1))+1),\"\")","v":""},{"$f":"IFERROR(MID($U176,FIND(CHAR(160),SUBSTITUTE($U176,\"{\",CHAR(160),GD$1)),FIND(CHAR(160),SUBSTITUTE($U176,\"}\",CHAR(160),GD$1))-FIND(CHAR(160),SUBSTITUTE($U176,\"{\",CHAR(160),GD$1))+1),\"\")","v":""},{"$f":"IFERROR(MID($U176,FIND(CHAR(160),SUBSTITUTE($U176,\"{\",CHAR(160),GE$1)),FIND(CHAR(160),SUBSTITUTE($U176,\"}\",CHAR(160),GE$1))-FIND(CHAR(160),SUBSTITUTE($U176,\"{\",CHAR(160),GE$1))+1),\"\")","v":"{Measure:Quantity}"},{"$f":"IFERROR(MID($U176,FIND(CHAR(160),SUBSTITUTE($U176,\"{\",CHAR(160),GF$1)),FIND(CHAR(160),SUBSTITUTE($U176,\"}\",CHAR(160),GF$1))-FIND(CHAR(160),SUBSTITUTE($U176,\"{\",CHAR(160),GF$1))+1),\"\")","v":"{Package Size}"},{"$f":"IFERROR(MID($V176,FIND(CHAR(160),SUBSTITUTE($V176,\"{\",CHAR(160),GG$1)),FIND(CHAR(160),SUBSTITUTE($V176,\"}\",CHAR(160),GG$1))-FIND(CHAR(160),SUBSTITUTE($V176,\"{\",CHAR(160),GG$1))+1),\"\")","v":"{Factor:SummerCF}"},{"$f":"IFERROR(MID($V176,FIND(CHAR(160),SUBSTITUTE($V176,\"{\",CHAR(160),GH$1)),FIND(CHAR(160),SUBSTITUTE($V176,\"}\",CHAR(160),GH$1))-FIND(CHAR(160),SUBSTITUTE($V176,\"{\",CHAR(160),GH$1))+1),\"\")","v":""},{"$f":"IFERROR(MID($V176,FIND(CHAR(160),SUBSTITUTE($V176,\"{\",CHAR(160),GI$1)),FIND(CHAR(160),SUBSTITUTE($V176,\"}\",CHAR(160),GI$1))-FIND(CHAR(160),SUBSTITUTE($V176,\"{\",CHAR(160),GI$1))+1),\"\")","v":""},{"$f":"IFERROR(MID($V176,FIND(CHAR(160),SUBSTITUTE($V176,\"{\",CHAR(160),GJ$1)),FIND(CHAR(160),SUBSTITUTE($V176,\"}\",CHAR(160),GJ$1))-FIND(CHAR(160),SUBSTITUTE($V176,\"{\",CHAR(160),GJ$1))+1),\"\")","v":""},{"$f":"IFERROR(MID($V176,FIND(CHAR(160),SUBSTITUTE($V176,\"{\",CHAR(160),GK$1)),FIND(CHAR(160),SUBSTITUTE($V176,\"}\",CHAR(160),GK$1))-FIND(CHAR(160),SUBSTITUTE($V176,\"{\",CHAR(160),GK$1))+1),\"\")","v":""},{"$f":"IFERROR(MID($V176,FIND(CHAR(160),SUBSTITUTE($V176,\"{\",CHAR(160),GL$1)),FIND(CHAR(160),SUBSTITUTE($V176,\"}\",CHAR(160),GL$1))-FIND(CHAR(160),SUBSTITUTE($V176,\"{\",CHAR(160),GL$1))+1),\"\")","v":""},{"$f":"IFERROR(MID($V176,FIND(CHAR(160),SUBSTITUTE($V176,\"{\",CHAR(160),GM$1)),FIND(CHAR(160),SUBSTITUTE($V176,\"}\",CHAR(160),GM$1))-FIND(CHAR(160),SUBSTITUTE($V176,\"{\",CHAR(160),GM$1))+1),\"\")","v":""},{"$f":"IFERROR(MID($V176,FIND(CHAR(160),SUBSTITUTE($V176,\"{\",CHAR(160),GN$1)),FIND(CHAR(160),SUBSTITUTE($V176,\"}\",CHAR(160),GN$1))-FIND(CHAR(160),SUBSTITUTE($V176,\"{\",CHAR(160),GN$1))+1),\"\")","v":""},{"$f":"IFERROR(MID($V176,FIND(CHAR(160),SUBSTITUTE($V176,\"{\",CHAR(160),GO$1)),FIND(CHAR(160),SUBSTITUTE($V176,\"}\",CHAR(160),GO$1))-FIND(CHAR(160),SUBSTITUTE($V176,\"{\",CHAR(160),GO$1))+1),\"\")","v":"{Measure:Quantity}"},{"$f":"IFERROR(MID($V176,FIND(CHAR(160),SUBSTITUTE($V176,\"{\",CHAR(160),GP$1)),FIND(CHAR(160),SUBSTITUTE($V176,\"}\",CHAR(160),GP$1))-FIND(CHAR(160),SUBSTITUTE($V176,\"{\",CHAR(160),GP$1))+1),\"\")","v":"{Package Size}"},{"$f":"IFERROR(MID($W176,FIND(CHAR(160),SUBSTITUTE($W176,\"{\",CHAR(160),GQ$1)),FIND(CHAR(160),SUBSTITUTE($W176,\"}\",CHAR(160),GQ$1))-FIND(CHAR(160),SUBSTITUTE($W176,\"{\",CHAR(160),GQ$1))+1),\"\")","v":""},{"$f":"IFERROR(MID($W176,FIND(CHAR(160),SUBSTITUTE($W176,\"{\",CHAR(160),GR$1)),FIND(CHAR(160),SUBSTITUTE($W176,\"}\",CHAR(160),GR$1))-FIND(CHAR(160),SUBSTITUTE($W176,\"{\",CHAR(160),GR$1))+1),\"\")","v":""},{"$f":"IFERROR(MID($W176,FIND(CHAR(160),SUBSTITUTE($W176,\"{\",CHAR(160),GS$1)),FIND(CHAR(160),SUBSTITUTE($W176,\"}\",CHAR(160),GS$1))-FIND(CHAR(160),SUBSTITUTE($W176,\"{\",CHAR(160),GS$1))+1),\"\")","v":""},{"$f":"IFERROR(MID($W176,FIND(CHAR(160),SUBSTITUTE($W176,\"{\",CHAR(160),GT$1)),FIND(CHAR(160),SUBSTITUTE($W176,\"}\",CHAR(160),GT$1))-FIND(CHAR(160),SUBSTITUTE($W176,\"{\",CHAR(160),GT$1))+1),\"\")","v":""},{"$f":"IFERROR(MID($W176,FIND(CHAR(160),SUBSTITUTE($W176,\"{\",CHAR(160),GU$1)),FIND(CHAR(160),SUBSTITUTE($W176,\"}\",CHAR(160),GU$1))-FIND(CHAR(160),SUBSTITUTE($W176,\"{\",CHAR(160),GU$1))+1),\"\")","v":""},{"$f":"IFERROR(MID($W176,FIND(CHAR(160),SUBSTITUTE($W176,\"{\",CHAR(160),GV$1)),FIND(CHAR(160),SUBSTITUTE($W176,\"}\",CHAR(160),GV$1))-FIND(CHAR(160),SUBSTITUTE($W176,\"{\",CHAR(160),GV$1))+1),\"\")","v":""},{"$f":"IFERROR(MID($W176,FIND(CHAR(160),SUBSTITUTE($W176,\"{\",CHAR(160),GW$1)),FIND(CHAR(160),SUBSTITUTE($W176,\"}\",CHAR(160),GW$1))-FIND(CHAR(160),SUBSTITUTE($W176,\"{\",CHAR(160),GW$1))+1),\"\")","v":""},{"$f":"IFERROR(MID($W176,FIND(CHAR(160),SUBSTITUTE($W176,\"{\",CHAR(160),GX$1)),FIND(CHAR(160),SUBSTITUTE($W176,\"}\",CHAR(160),GX$1))-FIND(CHAR(160),SUBSTITUTE($W176,\"{\",CHAR(160),GX$1))+1),\"\")","v":""},{"$f":"IFERROR(MID($W176,FIND(CHAR(160),SUBSTITUTE($W176,\"{\",CHAR(160),GY$1)),FIND(CHAR(160),SUBSTITUTE($W176,\"}\",CHAR(160),GY$1))-FIND(CHAR(160),SUBSTITUTE($W176,\"{\",CHAR(160),GY$1))+1),\"\")","v":"{Measure:Quantity}"},{"$f":"IFERROR(MID($W176,FIND(CHAR(160),SUBSTITUTE($W176,\"{\",CHAR(160),GZ$1)),FIND(CHAR(160),SUBSTITUTE($W176,\"}\",CHAR(160),GZ$1))-FIND(CHAR(160),SUBSTITUTE($W176,\"{\",CHAR(160),GZ$1))+1),\"\")","v":"{Package Size}"},{"$f":"IFERROR(MID($X176,FIND(CHAR(160),SUBSTITUTE($X176,\"{\",CHAR(160),HA$1)),FIND(CHAR(160),SUBSTITUTE($X176,\"}\",CHAR(160),HA$1))-FIND(CHAR(160),SUBSTITUTE($X176,\"{\",CHAR(160),HA$1))+1),\"\")","v":""},{"$f":"IFERROR(MID($X176,FIND(CHAR(160),SUBSTITUTE($X176,\"{\",CHAR(160),HB$1)),FIND(CHAR(160),SUBSTITUTE($X176,\"}\",CHAR(160),HB$1))-FIND(CHAR(160),SUBSTITUTE($X176,\"{\",CHAR(160),HB$1))+1),\"\")","v":""},{"$f":"IFERROR(MID($X176,FIND(CHAR(160),SUBSTITUTE($X176,\"{\",CHAR(160),HC$1)),FIND(CHAR(160),SUBSTITUTE($X176,\"}\",CHAR(160),HC$1))-FIND(CHAR(160),SUBSTITUTE($X176,\"{\",CHAR(160),HC$1))+1),\"\")","v":""},{"$f":"IFERROR(MID($X176,FIND(CHAR(160),SUBSTITUTE($X176,\"{\",CHAR(160),HD$1)),FIND(CHAR(160),SUBSTITUTE($X176,\"}\",CHAR(160),HD$1))-FIND(CHAR(160),SUBSTITUTE($X176,\"{\",CHAR(160),HD$1))+1),\"\")","v":""},{"$f":"IFERROR(MID($X176,FIND(CHAR(160),SUBSTITUTE($X176,\"{\",CHAR(160),HE$1)),FIND(CHAR(160),SUBSTITUTE($X176,\"}\",CHAR(160),HE$1))-FIND(CHAR(160),SUBSTITUTE($X176,\"{\",CHAR(160),HE$1))+1),\"\")","v":""},{"$f":"IFERROR(MID($X176,FIND(CHAR(160),SUBSTITUTE($X176,\"{\",CHAR(160),HF$1)),FIND(CHAR(160),SUBSTITUTE($X176,\"}\",CHAR(160),HF$1))-FIND(CHAR(160),SUBSTITUTE($X176,\"{\",CHAR(160),HF$1))+1),\"\")","v":""},{"$f":"IFERROR(MID($X176,FIND(CHAR(160),SUBSTITUTE($X176,\"{\",CHAR(160),HG$1)),FIND(CHAR(160),SUBSTITUTE($X176,\"}\",CHAR(160),HG$1))-FIND(CHAR(160),SUBSTITUTE($X176,\"{\",CHAR(160),HG$1))+1),\"\")","v":""},{"$f":"IFERROR(MID($X176,FIND(CHAR(160),SUBSTITUTE($X176,\"{\",CHAR(160),HH$1)),FIND(CHAR(160),SUBSTITUTE($X176,\"}\",CHAR(160),HH$1))-FIND(CHAR(160),SUBSTITUTE($X176,\"{\",CHAR(160),HH$1))+1),\"\")","v":""},{"$f":"IFERROR(MID($X176,FIND(CHAR(160),SUBSTITUTE($X176,\"{\",CHAR(160),HI$1)),FIND(CHAR(160),SUBSTITUTE($X176,\"}\",CHAR(160),HI$1))-FIND(CHAR(160),SUBSTITUTE($X176,\"{\",CHAR(160),HI$1))+1),\"\")","v":"{Measure:Quantity}"},{"$f":"IFERROR(MID($X176,FIND(CHAR(160),SUBSTITUTE($X176,\"{\",CHAR(160),HJ$1)),FIND(CHAR(160),SUBSTITUTE($X176,\"}\",CHAR(160),HJ$1))-FIND(CHAR(160),SUBSTITUTE($X176,\"{\",CHAR(160),HJ$1))+1),\"\")","v":"{Package Size}"},{"$f":"IFERROR(MID($Y176,FIND(CHAR(160),SUBSTITUTE($Y176,\"{\",CHAR(160),HK$1)),FIND(CHAR(160),SUBSTITUTE($Y176,\"}\",CHAR(160),HK$1))-FIND(CHAR(160),SUBSTITUTE($Y176,\"{\",CHAR(160),HK$1))+1),\"\")","v":""},{"$f":"IFERROR(MID($Y176,FIND(CHAR(160),SUBSTITUTE($Y176,\"{\",CHAR(160),HL$1)),FIND(CHAR(160),SUBSTITUTE($Y176,\"}\",CHAR(160),HL$1))-FIND(CHAR(160),SUBSTITUTE($Y176,\"{\",CHAR(160),HL$1))+1),\"\")","v":""},{"$f":"IFERROR(MID($Y176,FIND(CHAR(160),SUBSTITUTE($Y176,\"{\",CHAR(160),HM$1)),FIND(CHAR(160),SUBSTITUTE($Y176,\"}\",CHAR(160),HM$1))-FIND(CHAR(160),SUBSTITUTE($Y176,\"{\",CHAR(160),HM$1))+1),\"\")","v":""},{"$f":"IFERROR(MID($Y176,FIND(CHAR(160),SUBSTITUTE($Y176,\"{\",CHAR(160),HN$1)),FIND(CHAR(160),SUBSTITUTE($Y176,\"}\",CHAR(160),HN$1))-FIND(CHAR(160),SUBSTITUTE($Y176,\"{\",CHAR(160),HN$1))+1),\"\")","v":""},{"$f":"IFERROR(MID($Y176,FIND(CHAR(160),SUBSTITUTE($Y176,\"{\",CHAR(160),HO$1)),FIND(CHAR(160),SUBSTITUTE($Y176,\"}\",CHAR(160),HO$1))-FIND(CHAR(160),SUBSTITUTE($Y176,\"{\",CHAR(160),HO$1))+1),\"\")","v":""},{"$f":"IFERROR(MID($Y176,FIND(CHAR(160),SUBSTITUTE($Y176,\"{\",CHAR(160),HP$1)),FIND(CHAR(160),SUBSTITUTE($Y176,\"}\",CHAR(160),HP$1))-FIND(CHAR(160),SUBSTITUTE($Y176,\"{\",CHAR(160),HP$1))+1),\"\")","v":""},{"$f":"IFERROR(MID($Y176,FIND(CHAR(160),SUBSTITUTE($Y176,\"{\",CHAR(160),HQ$1)),FIND(CHAR(160),SUBSTITUTE($Y176,\"}\",CHAR(160),HQ$1))-FIND(CHAR(160),SUBSTITUTE($Y176,\"{\",CHAR(160),HQ$1))+1),\"\")","v":""},{"$f":"IFERROR(MID($Y176,FIND(CHAR(160),SUBSTITUTE($Y176,\"{\",CHAR(160),HR$1)),FIND(CHAR(160),SUBSTITUTE($Y176,\"}\",CHAR(160),HR$1))-FIND(CHAR(160),SUBSTITUTE($Y176,\"{\",CHAR(160),HR$1))+1),\"\")","v":""},{"$f":"IFERROR(MID($Y176,FIND(CHAR(160),SUBSTITUTE($Y176,\"{\",CHAR(160),HS$1)),FIND(CHAR(160),SUBSTITUTE($Y176,\"}\",CHAR(160),HS$1))-FIND(CHAR(160),SUBSTITUTE($Y176,\"{\",CHAR(160),HS$1))+1),\"\")","v":"{Measure:Quantity}"},{"$f":"IFERROR(MID($Y176,FIND(CHAR(160),SUBSTITUTE($Y176,\"{\",CHAR(160),HT$1)),FIND(CHAR(160),SUBSTITUTE($Y176,\"}\",CHAR(160),HT$1))-FIND(CHAR(160),SUBSTITUTE($Y176,\"{\",CHAR(160),HT$1))+1),\"\")","v":"{Package Size}"},{"$f":"IFERROR(MID($Z176,FIND(CHAR(160),SUBSTITUTE($Z176,\"{\",CHAR(160),HU$1)),FIND(CHAR(160),SUBSTITUTE($Z176,\"}\",CHAR(160),HU$1))-FIND(CHAR(160),SUBSTITUTE($Z176,\"{\",CHAR(160),HU$1))+1),\"\")","v":""},{"$f":"IFERROR(MID($Z176,FIND(CHAR(160),SUBSTITUTE($Z176,\"{\",CHAR(160),HV$1)),FIND(CHAR(160),SUBSTITUTE($Z176,\"}\",CHAR(160),HV$1))-FIND(CHAR(160),SUBSTITUTE($Z176,\"{\",CHAR(160),HV$1))+1),\"\")","v":""},{"$f":"IFERROR(MID($Z176,FIND(CHAR(160),SUBSTITUTE($Z176,\"{\",CHAR(160),HW$1)),FIND(CHAR(160),SUBSTITUTE($Z176,\"}\",CHAR(160),HW$1))-FIND(CHAR(160),SUBSTITUTE($Z176,\"{\",CHAR(160),HW$1))+1),\"\")","v":""},{"$f":"IFERROR(MID($Z176,FIND(CHAR(160),SUBSTITUTE($Z176,\"{\",CHAR(160),HX$1)),FIND(CHAR(160),SUBSTITUTE($Z176,\"}\",CHAR(160),HX$1))-FIND(CHAR(160),SUBSTITUTE($Z176,\"{\",CHAR(160),HX$1))+1),\"\")","v":""},{"$f":"IFERROR(MID($Z176,FIND(CHAR(160),SUBSTITUTE($Z176,\"{\",CHAR(160),HY$1)),FIND(CHAR(160),SUBSTITUTE($Z176,\"}\",CHAR(160),HY$1))-FIND(CHAR(160),SUBSTITUTE($Z176,\"{\",CHAR(160),HY$1))+1),\"\")","v":""},{"$f":"IFERROR(MID($Z176,FIND(CHAR(160),SUBSTITUTE($Z176,\"{\",CHAR(160),HZ$1)),FIND(CHAR(160),SUBSTITUTE($Z176,\"}\",CHAR(160),HZ$1))-FIND(CHAR(160),SUBSTITUTE($Z176,\"{\",CHAR(160),HZ$1))+1),\"\")","v":""},{"$f":"IFERROR(MID($Z176,FIND(CHAR(160),SUBSTITUTE($Z176,\"{\",CHAR(160),IA$1)),FIND(CHAR(160),SUBSTITUTE($Z176,\"}\",CHAR(160),IA$1))-FIND(CHAR(160),SUBSTITUTE($Z176,\"{\",CHAR(160),IA$1))+1),\"\")","v":""},{"$f":"IFERROR(MID($Z176,FIND(CHAR(160),SUBSTITUTE($Z176,\"{\",CHAR(160),IB$1)),FIND(CHAR(160),SUBSTITUTE($Z176,\"}\",CHAR(160),IB$1))-FIND(CHAR(160),SUBSTITUTE($Z176,\"{\",CHAR(160),IB$1))+1),\"\")","v":""},{"$f":"IFERROR(MID($Z176,FIND(CHAR(160),SUBSTITUTE($Z176,\"{\",CHAR(160),IC$1)),FIND(CHAR(160),SUBSTITUTE($Z176,\"}\",CHAR(160),IC$1))-FIND(CHAR(160),SUBSTITUTE($Z176,\"{\",CHAR(160),IC$1))+1),\"\")","v":"{Measure:Quantity}"},{"$f":"IFERROR(MID($Z176,FIND(CHAR(160),SUBSTITUTE($Z176,\"{\",CHAR(160),ID$1)),FIND(CHAR(160),SUBSTITUTE($Z176,\"}\",CHAR(160),ID$1))-FIND(CHAR(160),SUBSTITUTE($Z176,\"{\",CHAR(160),ID$1))+1),\"\")","v":"{Package Size}"},{"$f":"IFERROR(MID($AA176,FIND(CHAR(160),SUBSTITUTE($AA176,\"{\",CHAR(160),IE$1)),FIND(CHAR(160),SUBSTITUTE($AA176,\"}\",CHAR(160),IE$1))-FIND(CHAR(160),SUBSTITUTE($AA176,\"{\",CHAR(160),IE$1))+1),\"\")","v":""},{"$f":"IFERROR(MID($AA176,FIND(CHAR(160),SUBSTITUTE($AA176,\"{\",CHAR(160),IF$1)),FIND(CHAR(160),SUBSTITUTE($AA176,\"}\",CHAR(160),IF$1))-FIND(CHAR(160),SUBSTITUTE($AA176,\"{\",CHAR(160),IF$1))+1),\"\")","v":""},{"$f":"IFERROR(MID($AA176,FIND(CHAR(160),SUBSTITUTE($AA176,\"{\",CHAR(160),IG$1)),FIND(CHAR(160),SUBSTITUTE($AA176,\"}\",CHAR(160),IG$1))-FIND(CHAR(160),SUBSTITUTE($AA176,\"{\",CHAR(160),IG$1))+1),\"\")","v":""},{"$f":"IFERROR(MID($AA176,FIND(CHAR(160),SUBSTITUTE($AA176,\"{\",CHAR(160),IH$1)),FIND(CHAR(160),SUBSTITUTE($AA176,\"}\",CHAR(160),IH$1))-FIND(CHAR(160),SUBSTITUTE($AA176,\"{\",CHAR(160),IH$1))+1),\"\")","v":""},{"$f":"IFERROR(MID($AA176,FIND(CHAR(160),SUBSTITUTE($AA176,\"{\",CHAR(160),II$1)),FIND(CHAR(160),SUBSTITUTE($AA176,\"}\",CHAR(160),II$1))-FIND(CHAR(160),SUBSTITUTE($AA176,\"{\",CHAR(160),II$1))+1),\"\")","v":""},{"$f":"IFERROR(MID($AA176,FIND(CHAR(160),SUBSTITUTE($AA176,\"{\",CHAR(160),IJ$1)),FIND(CHAR(160),SUBSTITUTE($AA176,\"}\",CHAR(160),IJ$1))-FIND(CHAR(160),SUBSTITUTE($AA176,\"{\",CHAR(160),IJ$1))+1),\"\")","v":""},{"$f":"IFERROR(MID($AA176,FIND(CHAR(160),SUBSTITUTE($AA176,\"{\",CHAR(160),IK$1)),FIND(CHAR(160),SUBSTITUTE($AA176,\"}\",CHAR(160),IK$1))-FIND(CHAR(160),SUBSTITUTE($AA176,\"{\",CHAR(160),IK$1))+1),\"\")","v":""},{"$f":"IFERROR(MID($AA176,FIND(CHAR(160),SUBSTITUTE($AA176,\"{\",CHAR(160),IL$1)),FIND(CHAR(160),SUBSTITUTE($AA176,\"}\",CHAR(160),IL$1))-FIND(CHAR(160),SUBSTITUTE($AA176,\"{\",CHAR(160),IL$1))+1),\"\")","v":""},{"$f":"IFERROR(MID($AA176,FIND(CHAR(160),SUBSTITUTE($AA176,\"{\",CHAR(160),IM$1)),FIND(CHAR(160),SUBSTITUTE($AA176,\"}\",CHAR(160),IM$1))-FIND(CHAR(160),SUBSTITUTE($AA176,\"{\",CHAR(160),IM$1))+1),\"\")","v":"{Measure:Quantity}"},{"$f":"IFERROR(MID($AA176,FIND(CHAR(160),SUBSTITUTE($AA176,\"{\",CHAR(160),IN$1)),FIND(CHAR(160),SUBSTITUTE($AA176,\"}\",CHAR(160),IN$1))-FIND(CHAR(160),SUBSTITUTE($AA176,\"{\",CHAR(160),IN$1))+1),\"\")","v":"{Package Size}"},{"$f":"IFERROR(MID($AB176,FIND(CHAR(160),SUBSTITUTE($AB176,\"{\",CHAR(160),IO$1)),FIND(CHAR(160),SUBSTITUTE($AB176,\"}\",CHAR(160),IO$1))-FIND(CHAR(160),SUBSTITUTE($AB176,\"{\",CHAR(160),IO$1))+1),\"\")","v":""},{"$f":"IFERROR(MID($AB176,FIND(CHAR(160),SUBSTITUTE($AB176,\"{\",CHAR(160),IP$1)),FIND(CHAR(160),SUBSTITUTE($AB176,\"}\",CHAR(160),IP$1))-FIND(CHAR(160),SUBSTITUTE($AB176,\"{\",CHAR(160),IP$1))+1),\"\")","v":""},{"$f":"IFERROR(MID($AB176,FIND(CHAR(160),SUBSTITUTE($AB176,\"{\",CHAR(160),IQ$1)),FIND(CHAR(160),SUBSTITUTE($AB176,\"}\",CHAR(160),IQ$1))-FIND(CHAR(160),SUBSTITUTE($AB176,\"{\",CHAR(160),IQ$1))+1),\"\")","v":""},{"$f":"IFERROR(MID($AB176,FIND(CHAR(160),SUBSTITUTE($AB176,\"{\",CHAR(160),IR$1)),FIND(CHAR(160),SUBSTITUTE($AB176,\"}\",CHAR(160),IR$1))-FIND(CHAR(160),SUBSTITUTE($AB176,\"{\",CHAR(160),IR$1))+1),\"\")","v":""},{"$f":"IFERROR(MID($AB176,FIND(CHAR(160),SUBSTITUTE($AB176,\"{\",CHAR(160),IS$1)),FIND(CHAR(160),SUBSTITUTE($AB176,\"}\",CHAR(160),IS$1))-FIND(CHAR(160),SUBSTITUTE($AB176,\"{\",CHAR(160),IS$1))+1),\"\")","v":""},{"$f":"IFERROR(MID($AB176,FIND(CHAR(160),SUBSTITUTE($AB176,\"{\",CHAR(160),IT$1)),FIND(CHAR(160),SUBSTITUTE($AB176,\"}\",CHAR(160),IT$1))-FIND(CHAR(160),SUBSTITUTE($AB176,\"{\",CHAR(160),IT$1))+1),\"\")","v":""},{"$f":"IFERROR(MID($AB176,FIND(CHAR(160),SUBSTITUTE($AB176,\"{\",CHAR(160),IU$1)),FIND(CHAR(160),SUBSTITUTE($AB176,\"}\",CHAR(160),IU$1))-FIND(CHAR(160),SUBSTITUTE($AB176,\"{\",CHAR(160),IU$1))+1),\"\")","v":""},{"$f":"IFERROR(MID($AB176,FIND(CHAR(160),SUBSTITUTE($AB176,\"{\",CHAR(160),IV$1)),FIND(CHAR(160),SUBSTITUTE($AB176,\"}\",CHAR(160),IV$1))-FIND(CHAR(160),SUBSTITUTE($AB176,\"{\",CHAR(160),IV$1))+1),\"\")","v":""},{"$f":"IFERROR(MID($AB176,FIND(CHAR(160),SUBSTITUTE($AB176,\"{\",CHAR(160),IW$1)),FIND(CHAR(160),SUBSTITUTE($AB176,\"}\",CHAR(160),IW$1))-FIND(CHAR(160),SUBSTITUTE($AB176,\"{\",CHAR(160),IW$1))+1),\"\")","v":""},{"$f":"IFERROR(MID($AB176,FIND(CHAR(160),SUBSTITUTE($AB176,\"{\",CHAR(160),IX$1)),FIND(CHAR(160),SUBSTITUTE($AB176,\"}\",CHAR(160),IX$1))-FIND(CHAR(160),SUBSTITUTE($AB176,\"{\",CHAR(160),IX$1))+1),\"\")","v":""},null,{"$f":"10-COUNTIF(DU176:ED176,\"\")","v":3}]
["Distributor Lighting","Bay_High_Type_BC<120 W - long life","S64BCHLL","2021-07-01","2022-06-30","Calculated","{Measure:Quantity}*{Package Size}*92.43",0,"Calculated","{Measure:Quantity}*{Rebate per Package}",0,"2021-07-01","2022-06-30","Calculated","{Measure:Quantity}*{Package Size}*612",null,null,"{Measure:Quantity}*{Package Size}*1.0747*0.197",null,null,"{Measure:Quantity}*{Package Size}*{Factor:WinterCF}*0.197","{Measure:Quantity}*{Package Size}*{Factor:SummerCF}*1.0747*0.197","{Measure:Quantity}*{Package Size}*10*-0.257","{Measure:Quantity}*{Package Size}*-0.062","{Measure:Quantity}*{Package Size}*-0.261","{Measure:Quantity}*{Package Size}*-0.01","{Measure:Quantity}*{Package Size}*-0.06",null,"2021-07-01","2022-06-30",16,0.372,0.64500000000000002,0.45,0.218,0.22900000000000001,0.10299999999999999,0.99,1,1,0.51,0,null,{"$f":"DU177","v":"{Measure:Quantity}"},1,{"$f":"DV177","v":"{Package Size}"},1,{"$f":"DW177","v":"{Rebate per Package}"},{"$f":"CW177*CO177","v":69.322500000000005},{"$f":"DX177","v":""},null,{"$f":"DY177","v":""},null,{"$f":"DZ177","v":""},null,{"$f":"EA177","v":""},null,{"$f":"EB177","v":""},null,{"$f":"EC177","v":""},null,{"$f":"ED177","v":""},null,{"$f":"AS177*AU177*612","v":612},0,0,{"$f":"AS177*AU177*1.0747*0.197","v":0.21171590000000001},0,0,{"$f":"AS177*AU177*AF177*0.197","v":7.3284000000000002E-2},{"$f":"AS177*AU177*AG177*1.0747*0.197","v":0.13655675550000002},{"$f":"AS177*AU177*10*-0.257","v":-2.5700000000000003},{"$f":"AS177*AU177*-0.062","v":-6.2E-2},{"$f":"AS177*AU177*-0.261","v":-0.26100000000000001},{"$f":"AS177*AU177*-0.01","v":-0.01},{"$f":"AS177*AU177*-0.06","v":-0.06},0,null,"Res","Default DR",{"$f":"Benefits(BL177,BR177,BS177,BT177,BU177,BV177,BW177,BX177,BY177,BZ177,AE177,AH177,AI177,AJ177,AK177,AL177,AM177,AN177,AO177,AP177,CA177,CB177)","v":844.41215868729898},555.83735677093159,-52.480469087083236,-114.47733683058944,-5.1044010105433442,-38.033737153783626,-16.549814837259625,0,0,{"$f":"SUMPRODUCT(CC177:CK177,--(CC177:CK177>0))","v":1400.2495154582307},{"$f":"-SUMPRODUCT(CC177:CK177,--(CC177:CK177<0))","v":226.64575891925924},null,{"$f":"AS177*AU177*92.43","v":92.43},null,null,{"$f":"CM177+CO177","v":319.07575891925921},{"$f":"IF(NetOrGross=\"Net\",(1-AO177+AP177),1)","v":1},{"$f":"(SUMPRODUCT(CC177:CJ177,--(CC177:CJ177>0))+CN177)*CS177/((-SUMPRODUCT(CC177:CJ177,--(CC177:CJ177<0))+MAX(CO177,CV177)+CP177+CQ177)*CS177+IF(FRIncentives=\"Yes\",CV177*(1-CS177),0))","v":4.3884547049296776},1,{"$f":"AS177*AW177","v":69.322500000000005},{"$f":"CW176","v":0.75},"Electric","y",null,{"$f":"IF(F177=\"Manual Entry\",\"Manual\",IF(G177=\"\",0,\"X=\"&SUBSTITUTE(SUBSTITUTE(SUBSTITUTE(SUBSTITUTE(SUBSTITUTE(SUBSTITUTE(SUBSTITUTE(SUBSTITUTE(SUBSTITUTE(SUBSTITUTE(SUBSTITUTE(SUBSTITUTE(G177,$ED177,$ED$2&ROW($ED177)),$EC177,$EC$2&ROW($EC177)),$EB177,$EB$2&ROW($EB177)),$EA177,$EA$2&ROW($EA177)),$DZ177,$DZ$2&ROW($DZ177)),$DY177,$DY$2&ROW($DY177)),$DX177,$DX$2&ROW($DX177)),$DW177,$DW$2&ROW($DW177)),$DV177,$DV$2&ROW($DV177)),$DU177,$DU$2&ROW($DU177)),$DT177,$DT$2&ROW($DT177)),$DS177,$DS$2&ROW($DS177))))","v":"X=AS177*AU177*92.43"},{"$f":"IF(I177=\"Manual Entry\",\"Manual\",IF(J177=\"\",0,\"X=\"&SUBSTITUTE(SUBSTITUTE(SUBSTITUTE(SUBSTITUTE(SUBSTITUTE(SUBSTITUTE(SUBSTITUTE(SUBSTITUTE(SUBSTITUTE(SUBSTITUTE(SUBSTITUTE(SUBSTITUTE(J177,$ED177,$ED$2&ROW($ED177)),$EC177,$EC$2&ROW($EC177)),$EB177,$EB$2&ROW($EB177)),$EA177,$EA$2&ROW($EA177)),$DZ177,$DZ$2&ROW($DZ177)),$DY177,$DY$2&ROW($DY177)),$DX177,$DX$2&ROW($DX177)),$DW177,$DW$2&ROW($DW177)),$DV177,$DV$2&ROW($DV177)),$DU177,$DU$2&ROW($DU177)),$DT177,$DT$2&ROW($DT177)),$DS177,$DS$2&ROW($DS177))))","v":"X=AS177*AW177"},{"$f":"IF(O177=\"\",0,\"X=\"&SUBSTITUTE(SUBSTITUTE(SUBSTITUTE(SUBSTITUTE(SUBSTITUTE(SUBSTITUTE(SUBSTITUTE(SUBSTITUTE(SUBSTITUTE(SUBSTITUTE(SUBSTITUTE(SUBSTITUTE(O177,$ED177,$ED$2&ROW($ED177)),$EC177,$EC$2&ROW($EC177)),$EB177,$EB$2&ROW($EB177)),$EA177,$EA$2&ROW($EA177)),$DZ177,$DZ$2&ROW($DZ177)),$DY177,$DY$2&ROW($DY177)),$DX177,$DX$2&ROW($DX177)),$DW177,$DW$2&ROW($DW177)),$DV177,$DV$2&ROW($DV177)),$DU177,$DU$2&ROW($DU177)),$DT177,$DT$2&ROW($DT177)),$DS177,$DS$2&ROW($DS177)))","v":"X=AS177*AU177*612"},{"$f":"IF(P177=\"\",0,\"X=\"&SUBSTITUTE(SUBSTITUTE(SUBSTITUTE(SUBSTITUTE(SUBSTITUTE(SUBSTITUTE(SUBSTITUTE(SUBSTITUTE(SUBSTITUTE(SUBSTITUTE(SUBSTITUTE(SUBSTITUTE(P177,$ED177,$ED$2&ROW($ED177)),$EC177,$EC$2&ROW($EC177)),$EB177,$EB$2&ROW($EB177)),$EA177,$EA$2&ROW($EA177)),$DZ177,$DZ$2&ROW($DZ177)),$DY177,$DY$2&ROW($DY177)),$DX177,$DX$2&ROW($DX177)),$DW177,$DW$2&ROW($DW177)),$DV177,$DV$2&ROW($DV177)),$DU177,$DU$2&ROW($DU177)),$DT177,$DT$2&ROW($DT177)),$DS177,$DS$2&ROW($DS177)))","v":0},{"$f":"IF(Q177=\"\",0,\"X=\"&SUBSTITUTE(SUBSTITUTE(SUBSTITUTE(SUBSTITUTE(SUBSTITUTE(SUBSTITUTE(SUBSTITUTE(SUBSTITUTE(SUBSTITUTE(SUBSTITUTE(SUBSTITUTE(SUBSTITUTE(Q177,$ED177,$ED$2&ROW($ED177)),$EC177,$EC$2&ROW($EC177)),$EB177,$EB$2&ROW($EB177)),$EA177,$EA$2&ROW($EA177)),$DZ177,$DZ$2&ROW($DZ177)),$DY177,$DY$2&ROW($DY177)),$DX177,$DX$2&ROW($DX177)),$DW177,$DW$2&ROW($DW177)),$DV177,$DV$2&ROW($DV177)),$DU177,$DU$2&ROW($DU177)),$DT177,$DT$2&ROW($DT177)),$DS177,$DS$2&ROW($DS177)))","v":0},{"$f":"IF(R177=\"\",0,\"X=\"&SUBSTITUTE(SUBSTITUTE(SUBSTITUTE(SUBSTITUTE(SUBSTITUTE(SUBSTITUTE(SUBSTITUTE(SUBSTITUTE(SUBSTITUTE(SUBSTITUTE(SUBSTITUTE(SUBSTITUTE(R177,$ED177,$ED$2&ROW($ED177)),$EC177,$EC$2&ROW($EC177)),$EB177,$EB$2&ROW($EB177)),$EA177,$EA$2&ROW($EA177)),$DZ177,$DZ$2&ROW($DZ177)),$DY177,$DY$2&ROW($DY177)),$DX177,$DX$2&ROW($DX177)),$DW177,$DW$2&ROW($DW177)),$DV177,$DV$2&ROW($DV177)),$DU177,$DU$2&ROW($DU177)),$DT177,$DT$2&ROW($DT177)),$DS177,$DS$2&ROW($DS177)))","v":"X=AS177*AU177*1.0747*0.197"},{"$f":"IF(S177=\"\",0,\"X=\"&SUBSTITUTE(SUBSTITUTE(SUBSTITUTE(SUBSTITUTE(SUBSTITUTE(SUBSTITUTE(SUBSTITUTE(SUBSTITUTE(SUBSTITUTE(SUBSTITUTE(SUBSTITUTE(SUBSTITUTE(S177,$ED177,$ED$2&ROW($ED177)),$EC177,$EC$2&ROW($EC177)),$EB177,$EB$2&ROW($EB177)),$EA177,$EA$2&ROW($EA177)),$DZ177,$DZ$2&ROW($DZ177)),$DY177,$DY$2&ROW($DY177)),$DX177,$DX$2&ROW($DX177)),$DW177,$DW$2&ROW($DW177)),$DV177,$DV$2&ROW($DV177)),$DU177,$DU$2&ROW($DU177)),$DT177,$DT$2&ROW($DT177)),$DS177,$DS$2&ROW($DS177)))","v":0},{"$f":"IF(T177=\"\",0,\"X=\"&SUBSTITUTE(SUBSTITUTE(SUBSTITUTE(SUBSTITUTE(SUBSTITUTE(SUBSTITUTE(SUBSTITUTE(SUBSTITUTE(SUBSTITUTE(SUBSTITUTE(SUBSTITUTE(SUBSTITUTE(T177,$ED177,$ED$2&ROW($ED177)),$EC177,$EC$2&ROW($EC177)),$EB177,$EB$2&ROW($EB177)),$EA177,$EA$2&ROW($EA177)),$DZ177,$DZ$2&ROW($DZ177)),$DY177,$DY$2&ROW($DY177)),$DX177,$DX$2&ROW($DX177)),$DW177,$DW$2&ROW($DW177)),$DV177,$DV$2&ROW($DV177)),$DU177,$DU$2&ROW($DU177)),$DT177,$DT$2&ROW($DT177)),$DS177,$DS$2&ROW($DS177)))","v":0},{"$f":"IF(U177=\"\",0,\"X=\"&SUBSTITUTE(SUBSTITUTE(SUBSTITUTE(SUBSTITUTE(SUBSTITUTE(SUBSTITUTE(SUBSTITUTE(SUBSTITUTE(SUBSTITUTE(SUBSTITUTE(SUBSTITUTE(SUBSTITUTE(U177,$ED177,$ED$2&ROW($ED177)),$EC177,$EC$2&ROW($EC177)),$EB177,$EB$2&ROW($EB177)),$EA177,$EA$2&ROW($EA177)),$DZ177,$DZ$2&ROW($DZ177)),$DY177,$DY$2&ROW($DY177)),$DX177,$DX$2&ROW($DX177)),$DW177,$DW$2&ROW($DW177)),$DV177,$DV$2&ROW($DV177)),$DU177,$DU$2&ROW($DU177)),$DT177,$DT$2&ROW($DT177)),$DS177,$DS$2&ROW($DS177)))","v":"X=AS177*AU177*AF177*0.197"},{"$f":"IF(V177=\"\",0,\"X=\"&SUBSTITUTE(SUBSTITUTE(SUBSTITUTE(SUBSTITUTE(SUBSTITUTE(SUBSTITUTE(SUBSTITUTE(SUBSTITUTE(SUBSTITUTE(SUBSTITUTE(SUBSTITUTE(SUBSTITUTE(V177,$ED177,$ED$2&ROW($ED177)),$EC177,$EC$2&ROW($EC177)),$EB177,$EB$2&ROW($EB177)),$EA177,$EA$2&ROW($EA177)),$DZ177,$DZ$2&ROW($DZ177)),$DY177,$DY$2&ROW($DY177)),$DX177,$DX$2&ROW($DX177)),$DW177,$DW$2&ROW($DW177)),$DV177,$DV$2&ROW($DV177)),$DU177,$DU$2&ROW($DU177)),$DT177,$DT$2&ROW($DT177)),$DS177,$DS$2&ROW($DS177)))","v":"X=AS177*AU177*AG177*1.0747*0.197"},{"$f":"IF(W177=\"\",0,\"X=\"&SUBSTITUTE(SUBSTITUTE(SUBSTITUTE(SUBSTITUTE(SUBSTITUTE(SUBSTITUTE(SUBSTITUTE(SUBSTITUTE(SUBSTITUTE(SUBSTITUTE(SUBSTITUTE(SUBSTITUTE(W177,$ED177,$ED$2&ROW($ED177)),$EC177,$EC$2&ROW($EC177)),$EB177,$EB$2&ROW($EB177)),$EA177,$EA$2&ROW($EA177)),$DZ177,$DZ$2&ROW($DZ177)),$DY177,$DY$2&ROW($DY177)),$DX177,$DX$2&ROW($DX177)),$DW177,$DW$2&ROW($DW177)),$DV177,$DV$2&ROW($DV177)),$DU177,$DU$2&ROW($DU177)),$DT177,$DT$2&ROW($DT177)),$DS177,$DS$2&ROW($DS177)))","v":"X=AS177*AU177*10*-0.257"},{"$f":"IF(X177=\"\",0,\"X=\"&SUBSTITUTE(SUBSTITUTE(SUBSTITUTE(SUBSTITUTE(SUBSTITUTE(SUBSTITUTE(SUBSTITUTE(SUBSTITUTE(SUBSTITUTE(SUBSTITUTE(SUBSTITUTE(SUBSTITUTE(X177,$ED177,$ED$2&ROW($ED177)),$EC177,$EC$2&ROW($EC177)),$EB177,$EB$2&ROW($EB177)),$EA177,$EA$2&ROW($EA177)),$DZ177,$DZ$2&ROW($DZ177)),$DY177,$DY$2&ROW($DY177)),$DX177,$DX$2&ROW($DX177)),$DW177,$DW$2&ROW($DW177)),$DV177,$DV$2&ROW($DV177)),$DU177,$DU$2&ROW($DU177)),$DT177,$DT$2&ROW($DT177)),$DS177,$DS$2&ROW($DS177)))","v":"X=AS177*AU177*-0.062"},{"$f":"IF(Y177=\"\",0,\"X=\"&SUBSTITUTE(SUBSTITUTE(SUBSTITUTE(SUBSTITUTE(SUBSTITUTE(SUBSTITUTE(SUBSTITUTE(SUBSTITUTE(SUBSTITUTE(SUBSTITUTE(SUBSTITUTE(SUBSTITUTE(Y177,$ED177,$ED$2&ROW($ED177)),$EC177,$EC$2&ROW($EC177)),$EB177,$EB$2&ROW($EB177)),$EA177,$EA$2&ROW($EA177)),$DZ177,$DZ$2&ROW($DZ177)),$DY177,$DY$2&ROW($DY177)),$DX177,$DX$2&ROW($DX177)),$DW177,$DW$2&ROW($DW177)),$DV177,$DV$2&ROW($DV177)),$DU177,$DU$2&ROW($DU177)),$DT177,$DT$2&ROW($DT177)),$DS177,$DS$2&ROW($DS177)))","v":"X=AS177*AU177*-0.261"},{"$f":"IF(Z177=\"\",0,\"X=\"&SUBSTITUTE(SUBSTITUTE(SUBSTITUTE(SUBSTITUTE(SUBSTITUTE(SUBSTITUTE(SUBSTITUTE(SUBSTITUTE(SUBSTITUTE(SUBSTITUTE(SUBSTITUTE(SUBSTITUTE(Z177,$ED177,$ED$2&ROW($ED177)),$EC177,$EC$2&ROW($EC177)),$EB177,$EB$2&ROW($EB177)),$EA177,$EA$2&ROW($EA177)),$DZ177,$DZ$2&ROW($DZ177)),$DY177,$DY$2&ROW($DY177)),$DX177,$DX$2&ROW($DX177)),$DW177,$DW$2&ROW($DW177)),$DV177,$DV$2&ROW($DV177)),$DU177,$DU$2&ROW($DU177)),$DT177,$DT$2&ROW($DT177)),$DS177,$DS$2&ROW($DS177)))","v":"X=AS177*AU177*-0.01"},{"$f":"IF(AA177=\"\",0,\"X=\"&SUBSTITUTE(SUBSTITUTE(SUBSTITUTE(SUBSTITUTE(SUBSTITUTE(SUBSTITUTE(SUBSTITUTE(SUBSTITUTE(SUBSTITUTE(SUBSTITUTE(SUBSTITUTE(SUBSTITUTE(AA177,$ED177,$ED$2&ROW($ED177)),$EC177,$EC$2&ROW($EC177)),$EB177,$EB$2&ROW($EB177)),$EA177,$EA$2&ROW($EA177)),$DZ177,$DZ$2&ROW($DZ177)),$DY177,$DY$2&ROW($DY177)),$DX177,$DX$2&ROW($DX177)),$DW177,$DW$2&ROW($DW177)),$DV177,$DV$2&ROW($DV177)),$DU177,$DU$2&ROW($DU177)),$DT177,$DT$2&ROW($DT177)),$DS177,$DS$2&ROW($DS177)))","v":"X=AS177*AU177*-0.06"},{"$f":"IF(AB177=\"\",0,\"X=\"&SUBSTITUTE(SUBSTITUTE(SUBSTITUTE(SUBSTITUTE(SUBSTITUTE(SUBSTITUTE(SUBSTITUTE(SUBSTITUTE(SUBSTITUTE(SUBSTITUTE(SUBSTITUTE(SUBSTITUTE(AB177,$ED177,$ED$2&ROW($ED177)),$EC177,$EC$2&ROW($EC177)),$EB177,$EB$2&ROW($EB177)),$EA177,$EA$2&ROW($EA177)),$DZ177,$DZ$2&ROW($DZ177)),$DY177,$DY$2&ROW($DY177)),$DX177,$DX$2&ROW($DX177)),$DW177,$DW$2&ROW($DW177)),$DV177,$DV$2&ROW($DV177)),$DU177,$DU$2&ROW($DU177)),$DT177,$DT$2&ROW($DT177)),$DS177,$DS$2&ROW($DS177)))","v":0},null,null,"{Factor:WinterCF}","{Factor:SummerCF}",{"$f":"IFERROR(INDEX($EG177:$IV177,MATCH(0,COUNTIF($DR177:DT177,$EG177:$IV177),0)),\"\")","v":"{Measure:Quantity}"},{"$f":"IFERROR(INDEX($EG177:$IV177,MATCH(0,COUNTIF($DR177:DU177,$EG177:$IV177),0)),\"\")","v":"{Package Size}"},{"$f":"IFERROR(INDEX($EG177:$IV177,MATCH(0,COUNTIF($DR177:DV177,$EG177:$IV177),0)),\"\")","v":"{Rebate per Package}"},{"$f":"IFERROR(INDEX($EG177:$IV177,MATCH(0,COUNTIF($DR177:DW177,$EG177:$IV177),0)),\"\")","v":""},{"$f":"IFERROR(INDEX($EG177:$IV177,MATCH(0,COUNTIF($DR177:DX177,$EG177:$IV177),0)),\"\")","v":""},{"$f":"IFERROR(INDEX($EG177:$IV177,MATCH(0,COUNTIF($DR177:DY177,$EG177:$IV177),0)),\"\")","v":""},{"$f":"IFERROR(INDEX($EG177:$IV177,MATCH(0,COUNTIF($DR177:DZ177,$EG177:$IV177),0)),\"\")","v":""},{"$f":"IFERROR(INDEX($EG177:$IV177,MATCH(0,COUNTIF($DR177:EA177,$EG177:$IV177),0)),\"\")","v":""},{"$f":"IFERROR(INDEX($EG177:$IV177,MATCH(0,COUNTIF($DR177:EB177,$EG177:$IV177),0)),\"\")","v":""},{"$f":"IFERROR(INDEX($EG177:$IV177,MATCH(0,COUNTIF($DR177:EC177,$EG177:$IV177),0)),\"\")","v":""},null,null,{"$f":"IFERROR(MID($G177,FIND(CHAR(160),SUBSTITUTE($G177,\"{\",CHAR(160),EG$1)),FIND(CHAR(160),SUBSTITUTE($G177,\"}\",CHAR(160),EG$1))-FIND(CHAR(160),SUBSTITUTE($G177,\"{\",CHAR(160),EG$1))+1),\"\")","v":"{Measure:Quantity}"},{"$f":"IFERROR(MID($G177,FIND(CHAR(160),SUBSTITUTE($G177,\"{\",CHAR(160),EH$1)),FIND(CHAR(160),SUBSTITUTE($G177,\"}\",CHAR(160),EH$1))-FIND(CHAR(160),SUBSTITUTE($G177,\"{\",CHAR(160),EH$1))+1),\"\")","v":"{Package Size}"},{"$f":"IFERROR(MID($G177,FIND(CHAR(160),SUBSTITUTE($G177,\"{\",CHAR(160),EI$1)),FIND(CHAR(160),SUBSTITUTE($G177,\"}\",CHAR(160),EI$1))-FIND(CHAR(160),SUBSTITUTE($G177,\"{\",CHAR(160),EI$1))+1),\"\")","v":""},{"$f":"IFERROR(MID($G177,FIND(CHAR(160),SUBSTITUTE($G177,\"{\",CHAR(160),EJ$1)),FIND(CHAR(160),SUBSTITUTE($G177,\"}\",CHAR(160),EJ$1))-FIND(CHAR(160),SUBSTITUTE($G177,\"{\",CHAR(160),EJ$1))+1),\"\")","v":""},{"$f":"IFERROR(MID($G177,FIND(CHAR(160),SUBSTITUTE($G177,\"{\",CHAR(160),EK$1)),FIND(CHAR(160),SUBSTITUTE($G177,\"}\",CHAR(160),EK$1))-FIND(CHAR(160),SUBSTITUTE($G177,\"{\",CHAR(160),EK$1))+1),\"\")","v":""},{"$f":"IFERROR(MID($G177,FIND(CHAR(160),SUBSTITUTE($G177,\"{\",CHAR(160),EL$1)),FIND(CHAR(160),SUBSTITUTE($G177,\"}\",CHAR(160),EL$1))-FIND(CHAR(160),SUBSTITUTE($G177,\"{\",CHAR(160),EL$1))+1),\"\")","v":""},{"$f":"IFERROR(MID($G177,FIND(CHAR(160),SUBSTITUTE($G177,\"{\",CHAR(160),EM$1)),FIND(CHAR(160),SUBSTITUTE($G177,\"}\",CHAR(160),EM$1))-FIND(CHAR(160),SUBSTITUTE($G177,\"{\",CHAR(160),EM$1))+1),\"\")","v":""},{"$f":"IFERROR(MID($G177,FIND(CHAR(160),SUBSTITUTE($G177,\"{\",CHAR(160),EN$1)),FIND(CHAR(160),SUBSTITUTE($G177,\"}\",CHAR(160),EN$1))-FIND(CHAR(160),SUBSTITUTE($G177,\"{\",CHAR(160),EN$1))+1),\"\")","v":""},{"$f":"IFERROR(MID($G177,FIND(CHAR(160),SUBSTITUTE($G177,\"{\",CHAR(160),EO$1)),FIND(CHAR(160),SUBSTITUTE($G177,\"}\",CHAR(160),EO$1))-FIND(CHAR(160),SUBSTITUTE($G177,\"{\",CHAR(160),EO$1))+1),\"\")","v":""},{"$f":"IFERROR(MID($G177,FIND(CHAR(160),SUBSTITUTE($G177,\"{\",CHAR(160),EP$1)),FIND(CHAR(160),SUBSTITUTE($G177,\"}\",CHAR(160),EP$1))-FIND(CHAR(160),SUBSTITUTE($G177,\"{\",CHAR(160),EP$1))+1),\"\")","v":""},{"$f":"IFERROR(MID($J177,FIND(CHAR(160),SUBSTITUTE($J177,\"{\",CHAR(160),EQ$1)),FIND(CHAR(160),SUBSTITUTE($J177,\"}\",CHAR(160),EQ$1))-FIND(CHAR(160),SUBSTITUTE($J177,\"{\",CHAR(160),EQ$1))+1),\"\")","v":"{Measure:Quantity}"},{"$f":"IFERROR(MID($J177,FIND(CHAR(160),SUBSTITUTE($J177,\"{\",CHAR(160),ER$1)),FIND(CHAR(160),SUBSTITUTE($J177,\"}\",CHAR(160),ER$1))-FIND(CHAR(160),SUBSTITUTE($J177,\"{\",CHAR(160),ER$1))+1),\"\")","v":"{Rebate per Package}"},{"$f":"IFERROR(MID($J177,FIND(CHAR(160),SUBSTITUTE($J177,\"{\",CHAR(160),ES$1)),FIND(CHAR(160),SUBSTITUTE($J177,\"}\",CHAR(160),ES$1))-FIND(CHAR(160),SUBSTITUTE($J177,\"{\",CHAR(160),ES$1))+1),\"\")","v":""},{"$f":"IFERROR(MID($J177,FIND(CHAR(160),SUBSTITUTE($J177,\"{\",CHAR(160),ET$1)),FIND(CHAR(160),SUBSTITUTE($J177,\"}\",CHAR(160),ET$1))-FIND(CHAR(160),SUBSTITUTE($J177,\"{\",CHAR(160),ET$1))+1),\"\")","v":""},{"$f":"IFERROR(MID($J177,FIND(CHAR(160),SUBSTITUTE($J177,\"{\",CHAR(160),EU$1)),FIND(CHAR(160),SUBSTITUTE($J177,\"}\",CHAR(160),EU$1))-FIND(CHAR(160),SUBSTITUTE($J177,\"{\",CHAR(160),EU$1))+1),\"\")","v":""},{"$f":"IFERROR(MID($J177,FIND(CHAR(160),SUBSTITUTE($J177,\"{\",CHAR(160),EV$1)),FIND(CHAR(160),SUBSTITUTE($J177,\"}\",CHAR(160),EV$1))-FIND(CHAR(160),SUBSTITUTE($J177,\"{\",CHAR(160),EV$1))+1),\"\")","v":""},{"$f":"IFERROR(MID($J177,FIND(CHAR(160),SUBSTITUTE($J177,\"{\",CHAR(160),EW$1)),FIND(CHAR(160),SUBSTITUTE($J177,\"}\",CHAR(160),EW$1))-FIND(CHAR(160),SUBSTITUTE($J177,\"{\",CHAR(160),EW$1))+1),\"\")","v":""},{"$f":"IFERROR(MID($J177,FIND(CHAR(160),SUBSTITUTE($J177,\"{\",CHAR(160),EX$1)),FIND(CHAR(160),SUBSTITUTE($J177,\"}\",CHAR(160),EX$1))-FIND(CHAR(160),SUBSTITUTE($J177,\"{\",CHAR(160),EX$1))+1),\"\")","v":""},{"$f":"IFERROR(MID($J177,FIND(CHAR(160),SUBSTITUTE($J177,\"{\",CHAR(160),EY$1)),FIND(CHAR(160),SUBSTITUTE($J177,\"}\",CHAR(160),EY$1))-FIND(CHAR(160),SUBSTITUTE($J177,\"{\",CHAR(160),EY$1))+1),\"\")","v":""},{"$f":"IFERROR(MID($J177,FIND(CHAR(160),SUBSTITUTE($J177,\"{\",CHAR(160),EZ$1)),FIND(CHAR(160),SUBSTITUTE($J177,\"}\",CHAR(160),EZ$1))-FIND(CHAR(160),SUBSTITUTE($J177,\"{\",CHAR(160),EZ$1))+1),\"\")","v":""},{"$f":"IFERROR(MID($J177,FIND(CHAR(160),SUBSTITUTE($J177,\"{\",CHAR(160),FA$1)),FIND(CHAR(160),SUBSTITUTE($J177,\"}\",CHAR(160),FA$1))-FIND(CHAR(160),SUBSTITUTE($J177,\"{\",CHAR(160),FA$1))+1),\"\")","v":"{Measure:Quantity}"},{"$f":"IFERROR(MID($J177,FIND(CHAR(160),SUBSTITUTE($J177,\"{\",CHAR(160),FB$1)),FIND(CHAR(160),SUBSTITUTE($J177,\"}\",CHAR(160),FB$1))-FIND(CHAR(160),SUBSTITUTE($J177,\"{\",CHAR(160),FB$1))+1),\"\")","v":"{Rebate per Package}"},{"$f":"IFERROR(MID($O177,FIND(CHAR(160),SUBSTITUTE($O177,\"{\",CHAR(160),FC$1)),FIND(CHAR(160),SUBSTITUTE($O177,\"}\",CHAR(160),FC$1))-FIND(CHAR(160),SUBSTITUTE($O177,\"{\",CHAR(160),FC$1))+1),\"\")","v":""},{"$f":"IFERROR(MID($O177,FIND(CHAR(160),SUBSTITUTE($O177,\"{\",CHAR(160),FD$1)),FIND(CHAR(160),SUBSTITUTE($O177,\"}\",CHAR(160),FD$1))-FIND(CHAR(160),SUBSTITUTE($O177,\"{\",CHAR(160),FD$1))+1),\"\")","v":""},{"$f":"IFERROR(MID($O177,FIND(CHAR(160),SUBSTITUTE($O177,\"{\",CHAR(160),FE$1)),FIND(CHAR(160),SUBSTITUTE($O177,\"}\",CHAR(160),FE$1))-FIND(CHAR(160),SUBSTITUTE($O177,\"{\",CHAR(160),FE$1))+1),\"\")","v":""},{"$f":"IFERROR(MID($O177,FIND(CHAR(160),SUBSTITUTE($O177,\"{\",CHAR(160),FF$1)),FIND(CHAR(160),SUBSTITUTE($O177,\"}\",CHAR(160),FF$1))-FIND(CHAR(160),SUBSTITUTE($O177,\"{\",CHAR(160),FF$1))+1),\"\")","v":""},{"$f":"IFERROR(MID($O177,FIND(CHAR(160),SUBSTITUTE($O177,\"{\",CHAR(160),FG$1)),FIND(CHAR(160),SUBSTITUTE($O177,\"}\",CHAR(160),FG$1))-FIND(CHAR(160),SUBSTITUTE($O177,\"{\",CHAR(160),FG$1))+1),\"\")","v":""},{"$f":"IFERROR(MID($O177,FIND(CHAR(160),SUBSTITUTE($O177,\"{\",CHAR(160),FH$1)),FIND(CHAR(160),SUBSTITUTE($O177,\"}\",CHAR(160),FH$1))-FIND(CHAR(160),SUBSTITUTE($O177,\"{\",CHAR(160),FH$1))+1),\"\")","v":""},{"$f":"IFERROR(MID($O177,FIND(CHAR(160),SUBSTITUTE($O177,\"{\",CHAR(160),FI$1)),FIND(CHAR(160),SUBSTITUTE($O177,\"}\",CHAR(160),FI$1))-FIND(CHAR(160),SUBSTITUTE($O177,\"{\",CHAR(160),FI$1))+1),\"\")","v":""},{"$f":"IFERROR(MID($O177,FIND(CHAR(160),SUBSTITUTE($O177,\"{\",CHAR(160),FJ$1)),FIND(CHAR(160),SUBSTITUTE($O177,\"}\",CHAR(160),FJ$1))-FIND(CHAR(160),SUBSTITUTE($O177,\"{\",CHAR(160),FJ$1))+1),\"\")","v":""},{"$f":"IFERROR(MID($O177,FIND(CHAR(160),SUBSTITUTE($O177,\"{\",CHAR(160),FK$1)),FIND(CHAR(160),SUBSTITUTE($O177,\"}\",CHAR(160),FK$1))-FIND(CHAR(160),SUBSTITUTE($O177,\"{\",CHAR(160),FK$1))+1),\"\")","v":"{Measure:Quantity}"},{"$f":"IFERROR(MID($O177,FIND(CHAR(160),SUBSTITUTE($O177,\"{\",CHAR(160),FL$1)),FIND(CHAR(160),SUBSTITUTE($O177,\"}\",CHAR(160),FL$1))-FIND(CHAR(160),SUBSTITUTE($O177,\"{\",CHAR(160),FL$1))+1),\"\")","v":"{Package Size}"},{"$f":"IFERROR(MID($R177,FIND(CHAR(160),SUBSTITUTE($R177,\"{\",CHAR(160),FM$1)),FIND(CHAR(160),SUBSTITUTE($R177,\"}\",CHAR(160),FM$1))-FIND(CHAR(160),SUBSTITUTE($R177,\"{\",CHAR(160),FM$1))+1),\"\")","v":""},{"$f":"IFERROR(MID($R177,FIND(CHAR(160),SUBSTITUTE($R177,\"{\",CHAR(160),FN$1)),FIND(CHAR(160),SUBSTITUTE($R177,\"}\",CHAR(160),FN$1))-FIND(CHAR(160),SUBSTITUTE($R177,\"{\",CHAR(160),FN$1))+1),\"\")","v":""},{"$f":"IFERROR(MID($R177,FIND(CHAR(160),SUBSTITUTE($R177,\"{\",CHAR(160),FO$1)),FIND(CHAR(160),SUBSTITUTE($R177,\"}\",CHAR(160),FO$1))-FIND(CHAR(160),SUBSTITUTE($R177,\"{\",CHAR(160),FO$1))+1),\"\")","v":""},{"$f":"IFERROR(MID($R177,FIND(CHAR(160),SUBSTITUTE($R177,\"{\",CHAR(160),FP$1)),FIND(CHAR(160),SUBSTITUTE($R177,\"}\",CHAR(160),FP$1))-FIND(CHAR(160),SUBSTITUTE($R177,\"{\",CHAR(160),FP$1))+1),\"\")","v":""},{"$f":"IFERROR(MID($R177,FIND(CHAR(160),SUBSTITUTE($R177,\"{\",CHAR(160),FQ$1)),FIND(CHAR(160),SUBSTITUTE($R177,\"}\",CHAR(160),FQ$1))-FIND(CHAR(160),SUBSTITUTE($R177,\"{\",CHAR(160),FQ$1))+1),\"\")","v":""},{"$f":"IFERROR(MID($R177,FIND(CHAR(160),SUBSTITUTE($R177,\"{\",CHAR(160),FR$1)),FIND(CHAR(160),SUBSTITUTE($R177,\"}\",CHAR(160),FR$1))-FIND(CHAR(160),SUBSTITUTE($R177,\"{\",CHAR(160),FR$1))+1),\"\")","v":""},{"$f":"IFERROR(MID($R177,FIND(CHAR(160),SUBSTITUTE($R177,\"{\",CHAR(160),FS$1)),FIND(CHAR(160),SUBSTITUTE($R177,\"}\",CHAR(160),FS$1))-FIND(CHAR(160),SUBSTITUTE($R177,\"{\",CHAR(160),FS$1))+1),\"\")","v":""},{"$f":"IFERROR(MID($R177,FIND(CHAR(160),SUBSTITUTE($R177,\"{\",CHAR(160),FT$1)),FIND(CHAR(160),SUBSTITUTE($R177,\"}\",CHAR(160),FT$1))-FIND(CHAR(160),SUBSTITUTE($R177,\"{\",CHAR(160),FT$1))+1),\"\")","v":""},{"$f":"IFERROR(MID($R177,FIND(CHAR(160),SUBSTITUTE($R177,\"{\",CHAR(160),FU$1)),FIND(CHAR(160),SUBSTITUTE($R177,\"}\",CHAR(160),FU$1))-FIND(CHAR(160),SUBSTITUTE($R177,\"{\",CHAR(160),FU$1))+1),\"\")","v":"{Measure:Quantity}"},{"$f":"IFERROR(MID($R177,FIND(CHAR(160),SUBSTITUTE($R177,\"{\",CHAR(160),FV$1)),FIND(CHAR(160),SUBSTITUTE($R177,\"}\",CHAR(160),FV$1))-FIND(CHAR(160),SUBSTITUTE($R177,\"{\",CHAR(160),FV$1))+1),\"\")","v":"{Package Size}"},{"$f":"IFERROR(MID($U177,FIND(CHAR(160),SUBSTITUTE($U177,\"{\",CHAR(160),FW$1)),FIND(CHAR(160),SUBSTITUTE($U177,\"}\",CHAR(160),FW$1))-FIND(CHAR(160),SUBSTITUTE($U177,\"{\",CHAR(160),FW$1))+1),\"\")","v":"{Factor:WinterCF}"},{"$f":"IFERROR(MID($U177,FIND(CHAR(160),SUBSTITUTE($U177,\"{\",CHAR(160),FX$1)),FIND(CHAR(160),SUBSTITUTE($U177,\"}\",CHAR(160),FX$1))-FIND(CHAR(160),SUBSTITUTE($U177,\"{\",CHAR(160),FX$1))+1),\"\")","v":""},{"$f":"IFERROR(MID($U177,FIND(CHAR(160),SUBSTITUTE($U177,\"{\",CHAR(160),FY$1)),FIND(CHAR(160),SUBSTITUTE($U177,\"}\",CHAR(160),FY$1))-FIND(CHAR(160),SUBSTITUTE($U177,\"{\",CHAR(160),FY$1))+1),\"\")","v":""},{"$f":"IFERROR(MID($U177,FIND(CHAR(160),SUBSTITUTE($U177,\"{\",CHAR(160),FZ$1)),FIND(CHAR(160),SUBSTITUTE($U177,\"}\",CHAR(160),FZ$1))-FIND(CHAR(160),SUBSTITUTE($U177,\"{\",CHAR(160),FZ$1))+1),\"\")","v":""},{"$f":"IFERROR(MID($U177,FIND(CHAR(160),SUBSTITUTE($U177,\"{\",CHAR(160),GA$1)),FIND(CHAR(160),SUBSTITUTE($U177,\"}\",CHAR(160),GA$1))-FIND(CHAR(160),SUBSTITUTE($U177,\"{\",CHAR(160),GA$1))+1),\"\")","v":""},{"$f":"IFERROR(MID($U177,FIND(CHAR(160),SUBSTITUTE($U177,\"{\",CHAR(160),GB$1)),FIND(CHAR(160),SUBSTITUTE($U177,\"}\",CHAR(160),GB$1))-FIND(CHAR(160),SUBSTITUTE($U177,\"{\",CHAR(160),GB$1))+1),\"\")","v":""},{"$f":"IFERROR(MID($U177,FIND(CHAR(160),SUBSTITUTE($U177,\"{\",CHAR(160),GC$1)),FIND(CHAR(160),SUBSTITUTE($U177,\"}\",CHAR(160),GC$1))-FIND(CHAR(160),SUBSTITUTE($U177,\"{\",CHAR(160),GC$1))+1),\"\")","v":""},{"$f":"IFERROR(MID($U177,FIND(CHAR(160),SUBSTITUTE($U177,\"{\",CHAR(160),GD$1)),FIND(CHAR(160),SUBSTITUTE($U177,\"}\",CHAR(160),GD$1))-FIND(CHAR(160),SUBSTITUTE($U177,\"{\",CHAR(160),GD$1))+1),\"\")","v":""},{"$f":"IFERROR(MID($U177,FIND(CHAR(160),SUBSTITUTE($U177,\"{\",CHAR(160),GE$1)),FIND(CHAR(160),SUBSTITUTE($U177,\"}\",CHAR(160),GE$1))-FIND(CHAR(160),SUBSTITUTE($U177,\"{\",CHAR(160),GE$1))+1),\"\")","v":"{Measure:Quantity}"},{"$f":"IFERROR(MID($U177,FIND(CHAR(160),SUBSTITUTE($U177,\"{\",CHAR(160),GF$1)),FIND(CHAR(160),SUBSTITUTE($U177,\"}\",CHAR(160),GF$1))-FIND(CHAR(160),SUBSTITUTE($U177,\"{\",CHAR(160),GF$1))+1),\"\")","v":"{Package Size}"},{"$f":"IFERROR(MID($V177,FIND(CHAR(160),SUBSTITUTE($V177,\"{\",CHAR(160),GG$1)),FIND(CHAR(160),SUBSTITUTE($V177,\"}\",CHAR(160),GG$1))-FIND(CHAR(160),SUBSTITUTE($V177,\"{\",CHAR(160),GG$1))+1),\"\")","v":"{Factor:SummerCF}"},{"$f":"IFERROR(MID($V177,FIND(CHAR(160),SUBSTITUTE($V177,\"{\",CHAR(160),GH$1)),FIND(CHAR(160),SUBSTITUTE($V177,\"}\",CHAR(160),GH$1))-FIND(CHAR(160),SUBSTITUTE($V177,\"{\",CHAR(160),GH$1))+1),\"\")","v":""},{"$f":"IFERROR(MID($V177,FIND(CHAR(160),SUBSTITUTE($V177,\"{\",CHAR(160),GI$1)),FIND(CHAR(160),SUBSTITUTE($V177,\"}\",CHAR(160),GI$1))-FIND(CHAR(160),SUBSTITUTE($V177,\"{\",CHAR(160),GI$1))+1),\"\")","v":""},{"$f":"IFERROR(MID($V177,FIND(CHAR(160),SUBSTITUTE($V177,\"{\",CHAR(160),GJ$1)),FIND(CHAR(160),SUBSTITUTE($V177,\"}\",CHAR(160),GJ$1))-FIND(CHAR(160),SUBSTITUTE($V177,\"{\",CHAR(160),GJ$1))+1),\"\")","v":""},{"$f":"IFERROR(MID($V177,FIND(CHAR(160),SUBSTITUTE($V177,\"{\",CHAR(160),GK$1)),FIND(CHAR(160),SUBSTITUTE($V177,\"}\",CHAR(160),GK$1))-FIND(CHAR(160),SUBSTITUTE($V177,\"{\",CHAR(160),GK$1))+1),\"\")","v":""},{"$f":"IFERROR(MID($V177,FIND(CHAR(160),SUBSTITUTE($V177,\"{\",CHAR(160),GL$1)),FIND(CHAR(160),SUBSTITUTE($V177,\"}\",CHAR(160),GL$1))-FIND(CHAR(160),SUBSTITUTE($V177,\"{\",CHAR(160),GL$1))+1),\"\")","v":""},{"$f":"IFERROR(MID($V177,FIND(CHAR(160),SUBSTITUTE($V177,\"{\",CHAR(160),GM$1)),FIND(CHAR(160),SUBSTITUTE($V177,\"}\",CHAR(160),GM$1))-FIND(CHAR(160),SUBSTITUTE($V177,\"{\",CHAR(160),GM$1))+1),\"\")","v":""},{"$f":"IFERROR(MID($V177,FIND(CHAR(160),SUBSTITUTE($V177,\"{\",CHAR(160),GN$1)),FIND(CHAR(160),SUBSTITUTE($V177,\"}\",CHAR(160),GN$1))-FIND(CHAR(160),SUBSTITUTE($V177,\"{\",CHAR(160),GN$1))+1),\"\")","v":""},{"$f":"IFERROR(MID($V177,FIND(CHAR(160),SUBSTITUTE($V177,\"{\",CHAR(160),GO$1)),FIND(CHAR(160),SUBSTITUTE($V177,\"}\",CHAR(160),GO$1))-FIND(CHAR(160),SUBSTITUTE($V177,\"{\",CHAR(160),GO$1))+1),\"\")","v":"{Measure:Quantity}"},{"$f":"IFERROR(MID($V177,FIND(CHAR(160),SUBSTITUTE($V177,\"{\",CHAR(160),GP$1)),FIND(CHAR(160),SUBSTITUTE($V177,\"}\",CHAR(160),GP$1))-FIND(CHAR(160),SUBSTITUTE($V177,\"{\",CHAR(160),GP$1))+1),\"\")","v":"{Package Size}"},{"$f":"IFERROR(MID($W177,FIND(CHAR(160),SUBSTITUTE($W177,\"{\",CHAR(160),GQ$1)),FIND(CHAR(160),SUBSTITUTE($W177,\"}\",CHAR(160),GQ$1))-FIND(CHAR(160),SUBSTITUTE($W177,\"{\",CHAR(160),GQ$1))+1),\"\")","v":""},{"$f":"IFERROR(MID($W177,FIND(CHAR(160),SUBSTITUTE($W177,\"{\",CHAR(160),GR$1)),FIND(CHAR(160),SUBSTITUTE($W177,\"}\",CHAR(160),GR$1))-FIND(CHAR(160),SUBSTITUTE($W177,\"{\",CHAR(160),GR$1))+1),\"\")","v":""},{"$f":"IFERROR(MID($W177,FIND(CHAR(160),SUBSTITUTE($W177,\"{\",CHAR(160),GS$1)),FIND(CHAR(160),SUBSTITUTE($W177,\"}\",CHAR(160),GS$1))-FIND(CHAR(160),SUBSTITUTE($W177,\"{\",CHAR(160),GS$1))+1),\"\")","v":""},{"$f":"IFERROR(MID($W177,FIND(CHAR(160),SUBSTITUTE($W177,\"{\",CHAR(160),GT$1)),FIND(CHAR(160),SUBSTITUTE($W177,\"}\",CHAR(160),GT$1))-FIND(CHAR(160),SUBSTITUTE($W177,\"{\",CHAR(160),GT$1))+1),\"\")","v":""},{"$f":"IFERROR(MID($W177,FIND(CHAR(160),SUBSTITUTE($W177,\"{\",CHAR(160),GU$1)),FIND(CHAR(160),SUBSTITUTE($W177,\"}\",CHAR(160),GU$1))-FIND(CHAR(160),SUBSTITUTE($W177,\"{\",CHAR(160),GU$1))+1),\"\")","v":""},{"$f":"IFERROR(MID($W177,FIND(CHAR(160),SUBSTITUTE($W177,\"{\",CHAR(160),GV$1)),FIND(CHAR(160),SUBSTITUTE($W177,\"}\",CHAR(160),GV$1))-FIND(CHAR(160),SUBSTITUTE($W177,\"{\",CHAR(160),GV$1))+1),\"\")","v":""},{"$f":"IFERROR(MID($W177,FIND(CHAR(160),SUBSTITUTE($W177,\"{\",CHAR(160),GW$1)),FIND(CHAR(160),SUBSTITUTE($W177,\"}\",CHAR(160),GW$1))-FIND(CHAR(160),SUBSTITUTE($W177,\"{\",CHAR(160),GW$1))+1),\"\")","v":""},{"$f":"IFERROR(MID($W177,FIND(CHAR(160),SUBSTITUTE($W177,\"{\",CHAR(160),GX$1)),FIND(CHAR(160),SUBSTITUTE($W177,\"}\",CHAR(160),GX$1))-FIND(CHAR(160),SUBSTITUTE($W177,\"{\",CHAR(160),GX$1))+1),\"\")","v":""},{"$f":"IFERROR(MID($W177,FIND(CHAR(160),SUBSTITUTE($W177,\"{\",CHAR(160),GY$1)),FIND(CHAR(160),SUBSTITUTE($W177,\"}\",CHAR(160),GY$1))-FIND(CHAR(160),SUBSTITUTE($W177,\"{\",CHAR(160),GY$1))+1),\"\")","v":"{Measure:Quantity}"},{"$f":"IFERROR(MID($W177,FIND(CHAR(160),SUBSTITUTE($W177,\"{\",CHAR(160),GZ$1)),FIND(CHAR(160),SUBSTITUTE($W177,\"}\",CHAR(160),GZ$1))-FIND(CHAR(160),SUBSTITUTE($W177,\"{\",CHAR(160),GZ$1))+1),\"\")","v":"{Package Size}"},{"$f":"IFERROR(MID($X177,FIND(CHAR(160),SUBSTITUTE($X177,\"{\",CHAR(160),HA$1)),FIND(CHAR(160),SUBSTITUTE($X177,\"}\",CHAR(160),HA$1))-FIND(CHAR(160),SUBSTITUTE($X177,\"{\",CHAR(160),HA$1))+1),\"\")","v":""},{"$f":"IFERROR(MID($X177,FIND(CHAR(160),SUBSTITUTE($X177,\"{\",CHAR(160),HB$1)),FIND(CHAR(160),SUBSTITUTE($X177,\"}\",CHAR(160),HB$1))-FIND(CHAR(160),SUBSTITUTE($X177,\"{\",CHAR(160),HB$1))+1),\"\")","v":""},{"$f":"IFERROR(MID($X177,FIND(CHAR(160),SUBSTITUTE($X177,\"{\",CHAR(160),HC$1)),FIND(CHAR(160),SUBSTITUTE($X177,\"}\",CHAR(160),HC$1))-FIND(CHAR(160),SUBSTITUTE($X177,\"{\",CHAR(160),HC$1))+1),\"\")","v":""},{"$f":"IFERROR(MID($X177,FIND(CHAR(160),SUBSTITUTE($X177,\"{\",CHAR(160),HD$1)),FIND(CHAR(160),SUBSTITUTE($X177,\"}\",CHAR(160),HD$1))-FIND(CHAR(160),SUBSTITUTE($X177,\"{\",CHAR(160),HD$1))+1),\"\")","v":""},{"$f":"IFERROR(MID($X177,FIND(CHAR(160),SUBSTITUTE($X177,\"{\",CHAR(160),HE$1)),FIND(CHAR(160),SUBSTITUTE($X177,\"}\",CHAR(160),HE$1))-FIND(CHAR(160),SUBSTITUTE($X177,\"{\",CHAR(160),HE$1))+1),\"\")","v":""},{"$f":"IFERROR(MID($X177,FIND(CHAR(160),SUBSTITUTE($X177,\"{\",CHAR(160),HF$1)),FIND(CHAR(160),SUBSTITUTE($X177,\"}\",CHAR(160),HF$1))-FIND(CHAR(160),SUBSTITUTE($X177,\"{\",CHAR(160),HF$1))+1),\"\")","v":""},{"$f":"IFERROR(MID($X177,FIND(CHAR(160),SUBSTITUTE($X177,\"{\",CHAR(160),HG$1)),FIND(CHAR(160),SUBSTITUTE($X177,\"}\",CHAR(160),HG$1))-FIND(CHAR(160),SUBSTITUTE($X177,\"{\",CHAR(160),HG$1))+1),\"\")","v":""},{"$f":"IFERROR(MID($X177,FIND(CHAR(160),SUBSTITUTE($X177,\"{\",CHAR(160),HH$1)),FIND(CHAR(160),SUBSTITUTE($X177,\"}\",CHAR(160),HH$1))-FIND(CHAR(160),SUBSTITUTE($X177,\"{\",CHAR(160),HH$1))+1),\"\")","v":""},{"$f":"IFERROR(MID($X177,FIND(CHAR(160),SUBSTITUTE($X177,\"{\",CHAR(160),HI$1)),FIND(CHAR(160),SUBSTITUTE($X177,\"}\",CHAR(160),HI$1))-FIND(CHAR(160),SUBSTITUTE($X177,\"{\",CHAR(160),HI$1))+1),\"\")","v":"{Measure:Quantity}"},{"$f":"IFERROR(MID($X177,FIND(CHAR(160),SUBSTITUTE($X177,\"{\",CHAR(160),HJ$1)),FIND(CHAR(160),SUBSTITUTE($X177,\"}\",CHAR(160),HJ$1))-FIND(CHAR(160),SUBSTITUTE($X177,\"{\",CHAR(160),HJ$1))+1),\"\")","v":"{Package Size}"},{"$f":"IFERROR(MID($Y177,FIND(CHAR(160),SUBSTITUTE($Y177,\"{\",CHAR(160),HK$1)),FIND(CHAR(160),SUBSTITUTE($Y177,\"}\",CHAR(160),HK$1))-FIND(CHAR(160),SUBSTITUTE($Y177,\"{\",CHAR(160),HK$1))+1),\"\")","v":""},{"$f":"IFERROR(MID($Y177,FIND(CHAR(160),SUBSTITUTE($Y177,\"{\",CHAR(160),HL$1)),FIND(CHAR(160),SUBSTITUTE($Y177,\"}\",CHAR(160),HL$1))-FIND(CHAR(160),SUBSTITUTE($Y177,\"{\",CHAR(160),HL$1))+1),\"\")","v":""},{"$f":"IFERROR(MID($Y177,FIND(CHAR(160),SUBSTITUTE($Y177,\"{\",CHAR(160),HM$1)),FIND(CHAR(160),SUBSTITUTE($Y177,\"}\",CHAR(160),HM$1))-FIND(CHAR(160),SUBSTITUTE($Y177,\"{\",CHAR(160),HM$1))+1),\"\")","v":""},{"$f":"IFERROR(MID($Y177,FIND(CHAR(160),SUBSTITUTE($Y177,\"{\",CHAR(160),HN$1)),FIND(CHAR(160),SUBSTITUTE($Y177,\"}\",CHAR(160),HN$1))-FIND(CHAR(160),SUBSTITUTE($Y177,\"{\",CHAR(160),HN$1))+1),\"\")","v":""},{"$f":"IFERROR(MID($Y177,FIND(CHAR(160),SUBSTITUTE($Y177,\"{\",CHAR(160),HO$1)),FIND(CHAR(160),SUBSTITUTE($Y177,\"}\",CHAR(160),HO$1))-FIND(CHAR(160),SUBSTITUTE($Y177,\"{\",CHAR(160),HO$1))+1),\"\")","v":""},{"$f":"IFERROR(MID($Y177,FIND(CHAR(160),SUBSTITUTE($Y177,\"{\",CHAR(160),HP$1)),FIND(CHAR(160),SUBSTITUTE($Y177,\"}\",CHAR(160),HP$1))-FIND(CHAR(160),SUBSTITUTE($Y177,\"{\",CHAR(160),HP$1))+1),\"\")","v":""},{"$f":"IFERROR(MID($Y177,FIND(CHAR(160),SUBSTITUTE($Y177,\"{\",CHAR(160),HQ$1)),FIND(CHAR(160),SUBSTITUTE($Y177,\"}\",CHAR(160),HQ$1))-FIND(CHAR(160),SUBSTITUTE($Y177,\"{\",CHAR(160),HQ$1))+1),\"\")","v":""},{"$f":"IFERROR(MID($Y177,FIND(CHAR(160),SUBSTITUTE($Y177,\"{\",CHAR(160),HR$1)),FIND(CHAR(160),SUBSTITUTE($Y177,\"}\",CHAR(160),HR$1))-FIND(CHAR(160),SUBSTITUTE($Y177,\"{\",CHAR(160),HR$1))+1),\"\")","v":""},{"$f":"IFERROR(MID($Y177,FIND(CHAR(160),SUBSTITUTE($Y177,\"{\",CHAR(160),HS$1)),FIND(CHAR(160),SUBSTITUTE($Y177,\"}\",CHAR(160),HS$1))-FIND(CHAR(160),SUBSTITUTE($Y177,\"{\",CHAR(160),HS$1))+1),\"\")","v":"{Measure:Quantity}"},{"$f":"IFERROR(MID($Y177,FIND(CHAR(160),SUBSTITUTE($Y177,\"{\",CHAR(160),HT$1)),FIND(CHAR(160),SUBSTITUTE($Y177,\"}\",CHAR(160),HT$1))-FIND(CHAR(160),SUBSTITUTE($Y177,\"{\",CHAR(160),HT$1))+1),\"\")","v":"{Package Size}"},{"$f":"IFERROR(MID($Z177,FIND(CHAR(160),SUBSTITUTE($Z177,\"{\",CHAR(160),HU$1)),FIND(CHAR(160),SUBSTITUTE($Z177,\"}\",CHAR(160),HU$1))-FIND(CHAR(160),SUBSTITUTE($Z177,\"{\",CHAR(160),HU$1))+1),\"\")","v":""},{"$f":"IFERROR(MID($Z177,FIND(CHAR(160),SUBSTITUTE($Z177,\"{\",CHAR(160),HV$1)),FIND(CHAR(160),SUBSTITUTE($Z177,\"}\",CHAR(160),HV$1))-FIND(CHAR(160),SUBSTITUTE($Z177,\"{\",CHAR(160),HV$1))+1),\"\")","v":""},{"$f":"IFERROR(MID($Z177,FIND(CHAR(160),SUBSTITUTE($Z177,\"{\",CHAR(160),HW$1)),FIND(CHAR(160),SUBSTITUTE($Z177,\"}\",CHAR(160),HW$1))-FIND(CHAR(160),SUBSTITUTE($Z177,\"{\",CHAR(160),HW$1))+1),\"\")","v":""},{"$f":"IFERROR(MID($Z177,FIND(CHAR(160),SUBSTITUTE($Z177,\"{\",CHAR(160),HX$1)),FIND(CHAR(160),SUBSTITUTE($Z177,\"}\",CHAR(160),HX$1))-FIND(CHAR(160),SUBSTITUTE($Z177,\"{\",CHAR(160),HX$1))+1),\"\")","v":""},{"$f":"IFERROR(MID($Z177,FIND(CHAR(160),SUBSTITUTE($Z177,\"{\",CHAR(160),HY$1)),FIND(CHAR(160),SUBSTITUTE($Z177,\"}\",CHAR(160),HY$1))-FIND(CHAR(160),SUBSTITUTE($Z177,\"{\",CHAR(160),HY$1))+1),\"\")","v":""},{"$f":"IFERROR(MID($Z177,FIND(CHAR(160),SUBSTITUTE($Z177,\"{\",CHAR(160),HZ$1)),FIND(CHAR(160),SUBSTITUTE($Z177,\"}\",CHAR(160),HZ$1))-FIND(CHAR(160),SUBSTITUTE($Z177,\"{\",CHAR(160),HZ$1))+1),\"\")","v":""},{"$f":"IFERROR(MID($Z177,FIND(CHAR(160),SUBSTITUTE($Z177,\"{\",CHAR(160),IA$1)),FIND(CHAR(160),SUBSTITUTE($Z177,\"}\",CHAR(160),IA$1))-FIND(CHAR(160),SUBSTITUTE($Z177,\"{\",CHAR(160),IA$1))+1),\"\")","v":""},{"$f":"IFERROR(MID($Z177,FIND(CHAR(160),SUBSTITUTE($Z177,\"{\",CHAR(160),IB$1)),FIND(CHAR(160),SUBSTITUTE($Z177,\"}\",CHAR(160),IB$1))-FIND(CHAR(160),SUBSTITUTE($Z177,\"{\",CHAR(160),IB$1))+1),\"\")","v":""},{"$f":"IFERROR(MID($Z177,FIND(CHAR(160),SUBSTITUTE($Z177,\"{\",CHAR(160),IC$1)),FIND(CHAR(160),SUBSTITUTE($Z177,\"}\",CHAR(160),IC$1))-FIND(CHAR(160),SUBSTITUTE($Z177,\"{\",CHAR(160),IC$1))+1),\"\")","v":"{Measure:Quantity}"},{"$f":"IFERROR(MID($Z177,FIND(CHAR(160),SUBSTITUTE($Z177,\"{\",CHAR(160),ID$1)),FIND(CHAR(160),SUBSTITUTE($Z177,\"}\",CHAR(160),ID$1))-FIND(CHAR(160),SUBSTITUTE($Z177,\"{\",CHAR(160),ID$1))+1),\"\")","v":"{Package Size}"},{"$f":"IFERROR(MID($AA177,FIND(CHAR(160),SUBSTITUTE($AA177,\"{\",CHAR(160),IE$1)),FIND(CHAR(160),SUBSTITUTE($AA177,\"}\",CHAR(160),IE$1))-FIND(CHAR(160),SUBSTITUTE($AA177,\"{\",CHAR(160),IE$1))+1),\"\")","v":""},{"$f":"IFERROR(MID($AA177,FIND(CHAR(160),SUBSTITUTE($AA177,\"{\",CHAR(160),IF$1)),FIND(CHAR(160),SUBSTITUTE($AA177,\"}\",CHAR(160),IF$1))-FIND(CHAR(160),SUBSTITUTE($AA177,\"{\",CHAR(160),IF$1))+1),\"\")","v":""},{"$f":"IFERROR(MID($AA177,FIND(CHAR(160),SUBSTITUTE($AA177,\"{\",CHAR(160),IG$1)),FIND(CHAR(160),SUBSTITUTE($AA177,\"}\",CHAR(160),IG$1))-FIND(CHAR(160),SUBSTITUTE($AA177,\"{\",CHAR(160),IG$1))+1),\"\")","v":""},{"$f":"IFERROR(MID($AA177,FIND(CHAR(160),SUBSTITUTE($AA177,\"{\",CHAR(160),IH$1)),FIND(CHAR(160),SUBSTITUTE($AA177,\"}\",CHAR(160),IH$1))-FIND(CHAR(160),SUBSTITUTE($AA177,\"{\",CHAR(160),IH$1))+1),\"\")","v":""},{"$f":"IFERROR(MID($AA177,FIND(CHAR(160),SUBSTITUTE($AA177,\"{\",CHAR(160),II$1)),FIND(CHAR(160),SUBSTITUTE($AA177,\"}\",CHAR(160),II$1))-FIND(CHAR(160),SUBSTITUTE($AA177,\"{\",CHAR(160),II$1))+1),\"\")","v":""},{"$f":"IFERROR(MID($AA177,FIND(CHAR(160),SUBSTITUTE($AA177,\"{\",CHAR(160),IJ$1)),FIND(CHAR(160),SUBSTITUTE($AA177,\"}\",CHAR(160),IJ$1))-FIND(CHAR(160),SUBSTITUTE($AA177,\"{\",CHAR(160),IJ$1))+1),\"\")","v":""},{"$f":"IFERROR(MID($AA177,FIND(CHAR(160),SUBSTITUTE($AA177,\"{\",CHAR(160),IK$1)),FIND(CHAR(160),SUBSTITUTE($AA177,\"}\",CHAR(160),IK$1))-FIND(CHAR(160),SUBSTITUTE($AA177,\"{\",CHAR(160),IK$1))+1),\"\")","v":""},{"$f":"IFERROR(MID($AA177,FIND(CHAR(160),SUBSTITUTE($AA177,\"{\",CHAR(160),IL$1)),FIND(CHAR(160),SUBSTITUTE($AA177,\"}\",CHAR(160),IL$1))-FIND(CHAR(160),SUBSTITUTE($AA177,\"{\",CHAR(160),IL$1))+1),\"\")","v":""},{"$f":"IFERROR(MID($AA177,FIND(CHAR(160),SUBSTITUTE($AA177,\"{\",CHAR(160),IM$1)),FIND(CHAR(160),SUBSTITUTE($AA177,\"}\",CHAR(160),IM$1))-FIND(CHAR(160),SUBSTITUTE($AA177,\"{\",CHAR(160),IM$1))+1),\"\")","v":"{Measure:Quantity}"},{"$f":"IFERROR(MID($AA177,FIND(CHAR(160),SUBSTITUTE($AA177,\"{\",CHAR(160),IN$1)),FIND(CHAR(160),SUBSTITUTE($AA177,\"}\",CHAR(160),IN$1))-FIND(CHAR(160),SUBSTITUTE($AA177,\"{\",CHAR(160),IN$1))+1),\"\")","v":"{Package Size}"},{"$f":"IFERROR(MID($AB177,FIND(CHAR(160),SUBSTITUTE($AB177,\"{\",CHAR(160),IO$1)),FIND(CHAR(160),SUBSTITUTE($AB177,\"}\",CHAR(160),IO$1))-FIND(CHAR(160),SUBSTITUTE($AB177,\"{\",CHAR(160),IO$1))+1),\"\")","v":""},{"$f":"IFERROR(MID($AB177,FIND(CHAR(160),SUBSTITUTE($AB177,\"{\",CHAR(160),IP$1)),FIND(CHAR(160),SUBSTITUTE($AB177,\"}\",CHAR(160),IP$1))-FIND(CHAR(160),SUBSTITUTE($AB177,\"{\",CHAR(160),IP$1))+1),\"\")","v":""},{"$f":"IFERROR(MID($AB177,FIND(CHAR(160),SUBSTITUTE($AB177,\"{\",CHAR(160),IQ$1)),FIND(CHAR(160),SUBSTITUTE($AB177,\"}\",CHAR(160),IQ$1))-FIND(CHAR(160),SUBSTITUTE($AB177,\"{\",CHAR(160),IQ$1))+1),\"\")","v":""},{"$f":"IFERROR(MID($AB177,FIND(CHAR(160),SUBSTITUTE($AB177,\"{\",CHAR(160),IR$1)),FIND(CHAR(160),SUBSTITUTE($AB177,\"}\",CHAR(160),IR$1))-FIND(CHAR(160),SUBSTITUTE($AB177,\"{\",CHAR(160),IR$1))+1),\"\")","v":""},{"$f":"IFERROR(MID($AB177,FIND(CHAR(160),SUBSTITUTE($AB177,\"{\",CHAR(160),IS$1)),FIND(CHAR(160),SUBSTITUTE($AB177,\"}\",CHAR(160),IS$1))-FIND(CHAR(160),SUBSTITUTE($AB177,\"{\",CHAR(160),IS$1))+1),\"\")","v":""},{"$f":"IFERROR(MID($AB177,FIND(CHAR(160),SUBSTITUTE($AB177,\"{\",CHAR(160),IT$1)),FIND(CHAR(160),SUBSTITUTE($AB177,\"}\",CHAR(160),IT$1))-FIND(CHAR(160),SUBSTITUTE($AB177,\"{\",CHAR(160),IT$1))+1),\"\")","v":""},{"$f":"IFERROR(MID($AB177,FIND(CHAR(160),SUBSTITUTE($AB177,\"{\",CHAR(160),IU$1)),FIND(CHAR(160),SUBSTITUTE($AB177,\"}\",CHAR(160),IU$1))-FIND(CHAR(160),SUBSTITUTE($AB177,\"{\",CHAR(160),IU$1))+1),\"\")","v":""},{"$f":"IFERROR(MID($AB177,FIND(CHAR(160),SUBSTITUTE($AB177,\"{\",CHAR(160),IV$1)),FIND(CHAR(160),SUBSTITUTE($AB177,\"}\",CHAR(160),IV$1))-FIND(CHAR(160),SUBSTITUTE($AB177,\"{\",CHAR(160),IV$1))+1),\"\")","v":""},{"$f":"IFERROR(MID($AB177,FIND(CHAR(160),SUBSTITUTE($AB177,\"{\",CHAR(160),IW$1)),FIND(CHAR(160),SUBSTITUTE($AB177,\"}\",CHAR(160),IW$1))-FIND(CHAR(160),SUBSTITUTE($AB177,\"{\",CHAR(160),IW$1))+1),\"\")","v":""},{"$f":"IFERROR(MID($AB177,FIND(CHAR(160),SUBSTITUTE($AB177,\"{\",CHAR(160),IX$1)),FIND(CHAR(160),SUBSTITUTE($AB177,\"}\",CHAR(160),IX$1))-FIND(CHAR(160),SUBSTITUTE($AB177,\"{\",CHAR(160),IX$1))+1),\"\")","v":""},null,{"$f":"10-COUNTIF(DU177:ED177,\"\")","v":3}]
["Distributor Lighting","4' LED Lamp T8/Type C Kit (2 Lamp/1 external driver)","S110C42","2021-07-01","2022-06-30","Calculated","{Measure:Quantity}*{Package Size}*15.76",0,"Calculated","{Measure:Quantity}*{Rebate per Package}",0,"2021-07-01","2022-06-30","Calculated","{Measure:Quantity}*{Package Size}*106",null,null,"{Measure:Quantity}*{Package Size}*1.0747*0.034",null,null,"{Measure:Quantity}*{Package Size}*{Factor:WinterCF}*0.034","{Measure:Quantity}*{Package Size}*{Factor:SummerCF}*1.0747*0.034","{Measure:Quantity}*{Package Size}*10*-0.044","{Measure:Quantity}*{Package Size}*-0.011","{Measure:Quantity}*{Package Size}*-0.045","{Measure:Quantity}*{Package Size}*-0.002","{Measure:Quantity}*{Package Size}*-0.01",null,"2021-07-01","2022-06-30",16,0.372,0.64500000000000002,0.45,0.218,0.22900000000000001,0.10299999999999999,1,1,1,0.51,0,null,{"$f":"DU178","v":"{Measure:Quantity}"},1,{"$f":"DV178","v":"{Package Size}"},1,{"$f":"DW178","v":"{Rebate per Package}"},{"$f":"CW178*CO178","v":11.82},{"$f":"DX178","v":""},null,{"$f":"DY178","v":""},null,{"$f":"DZ178","v":""},null,{"$f":"EA178","v":""},null,{"$f":"EB178","v":""},null,{"$f":"EC178","v":""},null,{"$f":"ED178","v":""},null,{"$f":"AS178*AU178*106","v":106},0,0,{"$f":"AS178*AU178*1.0747*0.034","v":3.6539800000000004E-2},0,0,{"$f":"AS178*AU178*AF178*0.034","v":1.2648000000000001E-2},{"$f":"AS178*AU178*AG178*1.0747*0.034","v":2.3568171000000002E-2},{"$f":"AS178*AU178*10*-0.044","v":-0.43999999999999995},{"$f":"AS178*AU178*-0.011","v":-1.0999999999999999E-2},{"$f":"AS178*AU178*-0.045","v":-4.4999999999999998E-2},{"$f":"AS178*AU178*-0.002","v":-2E-3},{"$f":"AS178*AU178*-0.01","v":-0.01},0,null,"Res","Default DR",{"$f":"Benefits(BL178,BR178,BS178,BT178,BU178,BV178,BW178,BX178,BY178,BZ178,AE178,AH178,AI178,AJ178,AK178,AL178,AM178,AN178,AO178,AP178,CA178,CB178)","v":147.73171060416865},96.900323694876022,-9.0757404387519607,-19.936840270043437,-1.0311921233420898,-6.8160819272013677,-2.7861641140167723,0,0,{"$f":"SUMPRODUCT(CC178:CK178,--(CC178:CK178>0))","v":244.63203429904468},{"$f":"-SUMPRODUCT(CC178:CK178,--(CC178:CK178<0))","v":39.646018873355629},null,{"$f":"AS178*AU178*15.76","v":15.76},null,null,{"$f":"CM178+CO178","v":55.406018873355627},{"$f":"IF(NetOrGross=\"Net\",(1-AO178+AP178),1)","v":1},{"$f":"(SUMPRODUCT(CC178:CJ178,--(CC178:CJ178>0))+CN178)*CS178/((-SUMPRODUCT(CC178:CJ178,--(CC178:CJ178<0))+MAX(CO178,CV178)+CP178+CQ178)*CS178+IF(FRIncentives=\"Yes\",CV178*(1-CS178),0))","v":4.4152610000406751},1,{"$f":"AS178*AW178","v":11.82},{"$f":"CW177","v":0.75},"Electric","y",null,{"$f":"IF(F178=\"Manual Entry\",\"Manual\",IF(G178=\"\",0,\"X=\"&SUBSTITUTE(SUBSTITUTE(SUBSTITUTE(SUBSTITUTE(SUBSTITUTE(SUBSTITUTE(SUBSTITUTE(SUBSTITUTE(SUBSTITUTE(SUBSTITUTE(SUBSTITUTE(SUBSTITUTE(G178,$ED178,$ED$2&ROW($ED178)),$EC178,$EC$2&ROW($EC178)),$EB178,$EB$2&ROW($EB178)),$EA178,$EA$2&ROW($EA178)),$DZ178,$DZ$2&ROW($DZ178)),$DY178,$DY$2&ROW($DY178)),$DX178,$DX$2&ROW($DX178)),$DW178,$DW$2&ROW($DW178)),$DV178,$DV$2&ROW($DV178)),$DU178,$DU$2&ROW($DU178)),$DT178,$DT$2&ROW($DT178)),$DS178,$DS$2&ROW($DS178))))","v":"X=AS178*AU178*15.76"},{"$f":"IF(I178=\"Manual Entry\",\"Manual\",IF(J178=\"\",0,\"X=\"&SUBSTITUTE(SUBSTITUTE(SUBSTITUTE(SUBSTITUTE(SUBSTITUTE(SUBSTITUTE(SUBSTITUTE(SUBSTITUTE(SUBSTITUTE(SUBSTITUTE(SUBSTITUTE(SUBSTITUTE(J178,$ED178,$ED$2&ROW($ED178)),$EC178,$EC$2&ROW($EC178)),$EB178,$EB$2&ROW($EB178)),$EA178,$EA$2&ROW($EA178)),$DZ178,$DZ$2&ROW($DZ178)),$DY178,$DY$2&ROW($DY178)),$DX178,$DX$2&ROW($DX178)),$DW178,$DW$2&ROW($DW178)),$DV178,$DV$2&ROW($DV178)),$DU178,$DU$2&ROW($DU178)),$DT178,$DT$2&ROW($DT178)),$DS178,$DS$2&ROW($DS178))))","v":"X=AS178*AW178"},{"$f":"IF(O178=\"\",0,\"X=\"&SUBSTITUTE(SUBSTITUTE(SUBSTITUTE(SUBSTITUTE(SUBSTITUTE(SUBSTITUTE(SUBSTITUTE(SUBSTITUTE(SUBSTITUTE(SUBSTITUTE(SUBSTITUTE(SUBSTITUTE(O178,$ED178,$ED$2&ROW($ED178)),$EC178,$EC$2&ROW($EC178)),$EB178,$EB$2&ROW($EB178)),$EA178,$EA$2&ROW($EA178)),$DZ178,$DZ$2&ROW($DZ178)),$DY178,$DY$2&ROW($DY178)),$DX178,$DX$2&ROW($DX178)),$DW178,$DW$2&ROW($DW178)),$DV178,$DV$2&ROW($DV178)),$DU178,$DU$2&ROW($DU178)),$DT178,$DT$2&ROW($DT178)),$DS178,$DS$2&ROW($DS178)))","v":"X=AS178*AU178*106"},{"$f":"IF(P178=\"\",0,\"X=\"&SUBSTITUTE(SUBSTITUTE(SUBSTITUTE(SUBSTITUTE(SUBSTITUTE(SUBSTITUTE(SUBSTITUTE(SUBSTITUTE(SUBSTITUTE(SUBSTITUTE(SUBSTITUTE(SUBSTITUTE(P178,$ED178,$ED$2&ROW($ED178)),$EC178,$EC$2&ROW($EC178)),$EB178,$EB$2&ROW($EB178)),$EA178,$EA$2&ROW($EA178)),$DZ178,$DZ$2&ROW($DZ178)),$DY178,$DY$2&ROW($DY178)),$DX178,$DX$2&ROW($DX178)),$DW178,$DW$2&ROW($DW178)),$DV178,$DV$2&ROW($DV178)),$DU178,$DU$2&ROW($DU178)),$DT178,$DT$2&ROW($DT178)),$DS178,$DS$2&ROW($DS178)))","v":0},{"$f":"IF(Q178=\"\",0,\"X=\"&SUBSTITUTE(SUBSTITUTE(SUBSTITUTE(SUBSTITUTE(SUBSTITUTE(SUBSTITUTE(SUBSTITUTE(SUBSTITUTE(SUBSTITUTE(SUBSTITUTE(SUBSTITUTE(SUBSTITUTE(Q178,$ED178,$ED$2&ROW($ED178)),$EC178,$EC$2&ROW($EC178)),$EB178,$EB$2&ROW($EB178)),$EA178,$EA$2&ROW($EA178)),$DZ178,$DZ$2&ROW($DZ178)),$DY178,$DY$2&ROW($DY178)),$DX178,$DX$2&ROW($DX178)),$DW178,$DW$2&ROW($DW178)),$DV178,$DV$2&ROW($DV178)),$DU178,$DU$2&ROW($DU178)),$DT178,$DT$2&ROW($DT178)),$DS178,$DS$2&ROW($DS178)))","v":0},{"$f":"IF(R178=\"\",0,\"X=\"&SUBSTITUTE(SUBSTITUTE(SUBSTITUTE(SUBSTITUTE(SUBSTITUTE(SUBSTITUTE(SUBSTITUTE(SUBSTITUTE(SUBSTITUTE(SUBSTITUTE(SUBSTITUTE(SUBSTITUTE(R178,$ED178,$ED$2&ROW($ED178)),$EC178,$EC$2&ROW($EC178)),$EB178,$EB$2&ROW($EB178)),$EA178,$EA$2&ROW($EA178)),$DZ178,$DZ$2&ROW($DZ178)),$DY178,$DY$2&ROW($DY178)),$DX178,$DX$2&ROW($DX178)),$DW178,$DW$2&ROW($DW178)),$DV178,$DV$2&ROW($DV178)),$DU178,$DU$2&ROW($DU178)),$DT178,$DT$2&ROW($DT178)),$DS178,$DS$2&ROW($DS178)))","v":"X=AS178*AU178*1.0747*0.034"},{"$f":"IF(S178=\"\",0,\"X=\"&SUBSTITUTE(SUBSTITUTE(SUBSTITUTE(SUBSTITUTE(SUBSTITUTE(SUBSTITUTE(SUBSTITUTE(SUBSTITUTE(SUBSTITUTE(SUBSTITUTE(SUBSTITUTE(SUBSTITUTE(S178,$ED178,$ED$2&ROW($ED178)),$EC178,$EC$2&ROW($EC178)),$EB178,$EB$2&ROW($EB178)),$EA178,$EA$2&ROW($EA178)),$DZ178,$DZ$2&ROW($DZ178)),$DY178,$DY$2&ROW($DY178)),$DX178,$DX$2&ROW($DX178)),$DW178,$DW$2&ROW($DW178)),$DV178,$DV$2&ROW($DV178)),$DU178,$DU$2&ROW($DU178)),$DT178,$DT$2&ROW($DT178)),$DS178,$DS$2&ROW($DS178)))","v":0},{"$f":"IF(T178=\"\",0,\"X=\"&SUBSTITUTE(SUBSTITUTE(SUBSTITUTE(SUBSTITUTE(SUBSTITUTE(SUBSTITUTE(SUBSTITUTE(SUBSTITUTE(SUBSTITUTE(SUBSTITUTE(SUBSTITUTE(SUBSTITUTE(T178,$ED178,$ED$2&ROW($ED178)),$EC178,$EC$2&ROW($EC178)),$EB178,$EB$2&ROW($EB178)),$EA178,$EA$2&ROW($EA178)),$DZ178,$DZ$2&ROW($DZ178)),$DY178,$DY$2&ROW($DY178)),$DX178,$DX$2&ROW($DX178)),$DW178,$DW$2&ROW($DW178)),$DV178,$DV$2&ROW($DV178)),$DU178,$DU$2&ROW($DU178)),$DT178,$DT$2&ROW($DT178)),$DS178,$DS$2&ROW($DS178)))","v":0},{"$f":"IF(U178=\"\",0,\"X=\"&SUBSTITUTE(SUBSTITUTE(SUBSTITUTE(SUBSTITUTE(SUBSTITUTE(SUBSTITUTE(SUBSTITUTE(SUBSTITUTE(SUBSTITUTE(SUBSTITUTE(SUBSTITUTE(SUBSTITUTE(U178,$ED178,$ED$2&ROW($ED178)),$EC178,$EC$2&ROW($EC178)),$EB178,$EB$2&ROW($EB178)),$EA178,$EA$2&ROW($EA178)),$DZ178,$DZ$2&ROW($DZ178)),$DY178,$DY$2&ROW($DY178)),$DX178,$DX$2&ROW($DX178)),$DW178,$DW$2&ROW($DW178)),$DV178,$DV$2&ROW($DV178)),$DU178,$DU$2&ROW($DU178)),$DT178,$DT$2&ROW($DT178)),$DS178,$DS$2&ROW($DS178)))","v":"X=AS178*AU178*AF178*0.034"},{"$f":"IF(V178=\"\",0,\"X=\"&SUBSTITUTE(SUBSTITUTE(SUBSTITUTE(SUBSTITUTE(SUBSTITUTE(SUBSTITUTE(SUBSTITUTE(SUBSTITUTE(SUBSTITUTE(SUBSTITUTE(SUBSTITUTE(SUBSTITUTE(V178,$ED178,$ED$2&ROW($ED178)),$EC178,$EC$2&ROW($EC178)),$EB178,$EB$2&ROW($EB178)),$EA178,$EA$2&ROW($EA178)),$DZ178,$DZ$2&ROW($DZ178)),$DY178,$DY$2&ROW($DY178)),$DX178,$DX$2&ROW($DX178)),$DW178,$DW$2&ROW($DW178)),$DV178,$DV$2&ROW($DV178)),$DU178,$DU$2&ROW($DU178)),$DT178,$DT$2&ROW($DT178)),$DS178,$DS$2&ROW($DS178)))","v":"X=AS178*AU178*AG178*1.0747*0.034"},{"$f":"IF(W178=\"\",0,\"X=\"&SUBSTITUTE(SUBSTITUTE(SUBSTITUTE(SUBSTITUTE(SUBSTITUTE(SUBSTITUTE(SUBSTITUTE(SUBSTITUTE(SUBSTITUTE(SUBSTITUTE(SUBSTITUTE(SUBSTITUTE(W178,$ED178,$ED$2&ROW($ED178)),$EC178,$EC$2&ROW($EC178)),$EB178,$EB$2&ROW($EB178)),$EA178,$EA$2&ROW($EA178)),$DZ178,$DZ$2&ROW($DZ178)),$DY178,$DY$2&ROW($DY178)),$DX178,$DX$2&ROW($DX178)),$DW178,$DW$2&ROW($DW178)),$DV178,$DV$2&ROW($DV178)),$DU178,$DU$2&ROW($DU178)),$DT178,$DT$2&ROW($DT178)),$DS178,$DS$2&ROW($DS178)))","v":"X=AS178*AU178*10*-0.044"},{"$f":"IF(X178=\"\",0,\"X=\"&SUBSTITUTE(SUBSTITUTE(SUBSTITUTE(SUBSTITUTE(SUBSTITUTE(SUBSTITUTE(SUBSTITUTE(SUBSTITUTE(SUBSTITUTE(SUBSTITUTE(SUBSTITUTE(SUBSTITUTE(X178,$ED178,$ED$2&ROW($ED178)),$EC178,$EC$2&ROW($EC178)),$EB178,$EB$2&ROW($EB178)),$EA178,$EA$2&ROW($EA178)),$DZ178,$DZ$2&ROW($DZ178)),$DY178,$DY$2&ROW($DY178)),$DX178,$DX$2&ROW($DX178)),$DW178,$DW$2&ROW($DW178)),$DV178,$DV$2&ROW($DV178)),$DU178,$DU$2&ROW($DU178)),$DT178,$DT$2&ROW($DT178)),$DS178,$DS$2&ROW($DS178)))","v":"X=AS178*AU178*-0.011"},{"$f":"IF(Y178=\"\",0,\"X=\"&SUBSTITUTE(SUBSTITUTE(SUBSTITUTE(SUBSTITUTE(SUBSTITUTE(SUBSTITUTE(SUBSTITUTE(SUBSTITUTE(SUBSTITUTE(SUBSTITUTE(SUBSTITUTE(SUBSTITUTE(Y178,$ED178,$ED$2&ROW($ED178)),$EC178,$EC$2&ROW($EC178)),$EB178,$EB$2&ROW($EB178)),$EA178,$EA$2&ROW($EA178)),$DZ178,$DZ$2&ROW($DZ178)),$DY178,$DY$2&ROW($DY178)),$DX178,$DX$2&ROW($DX178)),$DW178,$DW$2&ROW($DW178)),$DV178,$DV$2&ROW($DV178)),$DU178,$DU$2&ROW($DU178)),$DT178,$DT$2&ROW($DT178)),$DS178,$DS$2&ROW($DS178)))","v":"X=AS178*AU178*-0.045"},{"$f":"IF(Z178=\"\",0,\"X=\"&SUBSTITUTE(SUBSTITUTE(SUBSTITUTE(SUBSTITUTE(SUBSTITUTE(SUBSTITUTE(SUBSTITUTE(SUBSTITUTE(SUBSTITUTE(SUBSTITUTE(SUBSTITUTE(SUBSTITUTE(Z178,$ED178,$ED$2&ROW($ED178)),$EC178,$EC$2&ROW($EC178)),$EB178,$EB$2&ROW($EB178)),$EA178,$EA$2&ROW($EA178)),$DZ178,$DZ$2&ROW($DZ178)),$DY178,$DY$2&ROW($DY178)),$DX178,$DX$2&ROW($DX178)),$DW178,$DW$2&ROW($DW178)),$DV178,$DV$2&ROW($DV178)),$DU178,$DU$2&ROW($DU178)),$DT178,$DT$2&ROW($DT178)),$DS178,$DS$2&ROW($DS178)))","v":"X=AS178*AU178*-0.002"},{"$f":"IF(AA178=\"\",0,\"X=\"&SUBSTITUTE(SUBSTITUTE(SUBSTITUTE(SUBSTITUTE(SUBSTITUTE(SUBSTITUTE(SUBSTITUTE(SUBSTITUTE(SUBSTITUTE(SUBSTITUTE(SUBSTITUTE(SUBSTITUTE(AA178,$ED178,$ED$2&ROW($ED178)),$EC178,$EC$2&ROW($EC178)),$EB178,$EB$2&ROW($EB178)),$EA178,$EA$2&ROW($EA178)),$DZ178,$DZ$2&ROW($DZ178)),$DY178,$DY$2&ROW($DY178)),$DX178,$DX$2&ROW($DX178)),$DW178,$DW$2&ROW($DW178)),$DV178,$DV$2&ROW($DV178)),$DU178,$DU$2&ROW($DU178)),$DT178,$DT$2&ROW($DT178)),$DS178,$DS$2&ROW($DS178)))","v":"X=AS178*AU178*-0.01"},{"$f":"IF(AB178=\"\",0,\"X=\"&SUBSTITUTE(SUBSTITUTE(SUBSTITUTE(SUBSTITUTE(SUBSTITUTE(SUBSTITUTE(SUBSTITUTE(SUBSTITUTE(SUBSTITUTE(SUBSTITUTE(SUBSTITUTE(SUBSTITUTE(AB178,$ED178,$ED$2&ROW($ED178)),$EC178,$EC$2&ROW($EC178)),$EB178,$EB$2&ROW($EB178)),$EA178,$EA$2&ROW($EA178)),$DZ178,$DZ$2&ROW($DZ178)),$DY178,$DY$2&ROW($DY178)),$DX178,$DX$2&ROW($DX178)),$DW178,$DW$2&ROW($DW178)),$DV178,$DV$2&ROW($DV178)),$DU178,$DU$2&ROW($DU178)),$DT178,$DT$2&ROW($DT178)),$DS178,$DS$2&ROW($DS178)))","v":0},null,null,"{Factor:WinterCF}","{Factor:SummerCF}",{"$f":"IFERROR(INDEX($EG178:$IV178,MATCH(0,COUNTIF($DR178:DT178,$EG178:$IV178),0)),\"\")","v":"{Measure:Quantity}"},{"$f":"IFERROR(INDEX($EG178:$IV178,MATCH(0,COUNTIF($DR178:DU178,$EG178:$IV178),0)),\"\")","v":"{Package Size}"},{"$f":"IFERROR(INDEX($EG178:$IV178,MATCH(0,COUNTIF($DR178:DV178,$EG178:$IV178),0)),\"\")","v":"{Rebate per Package}"},{"$f":"IFERROR(INDEX($EG178:$IV178,MATCH(0,COUNTIF($DR178:DW178,$EG178:$IV178),0)),\"\")","v":""},{"$f":"IFERROR(INDEX($EG178:$IV178,MATCH(0,COUNTIF($DR178:DX178,$EG178:$IV178),0)),\"\")","v":""},{"$f":"IFERROR(INDEX($EG178:$IV178,MATCH(0,COUNTIF($DR178:DY178,$EG178:$IV178),0)),\"\")","v":""},{"$f":"IFERROR(INDEX($EG178:$IV178,MATCH(0,COUNTIF($DR178:DZ178,$EG178:$IV178),0)),\"\")","v":""},{"$f":"IFERROR(INDEX($EG178:$IV178,MATCH(0,COUNTIF($DR178:EA178,$EG178:$IV178),0)),\"\")","v":""},{"$f":"IFERROR(INDEX($EG178:$IV178,MATCH(0,COUNTIF($DR178:EB178,$EG178:$IV178),0)),\"\")","v":""},{"$f":"IFERROR(INDEX($EG178:$IV178,MATCH(0,COUNTIF($DR178:EC178,$EG178:$IV178),0)),\"\")","v":""},null,null,{"$f":"IFERROR(MID($G178,FIND(CHAR(160),SUBSTITUTE($G178,\"{\",CHAR(160),EG$1)),FIND(CHAR(160),SUBSTITUTE($G178,\"}\",CHAR(160),EG$1))-FIND(CHAR(160),SUBSTITUTE($G178,\"{\",CHAR(160),EG$1))+1),\"\")","v":"{Measure:Quantity}"},{"$f":"IFERROR(MID($G178,FIND(CHAR(160),SUBSTITUTE($G178,\"{\",CHAR(160),EH$1)),FIND(CHAR(160),SUBSTITUTE($G178,\"}\",CHAR(160),EH$1))-FIND(CHAR(160),SUBSTITUTE($G178,\"{\",CHAR(160),EH$1))+1),\"\")","v":"{Package Size}"},{"$f":"IFERROR(MID($G178,FIND(CHAR(160),SUBSTITUTE($G178,\"{\",CHAR(160),EI$1)),FIND(CHAR(160),SUBSTITUTE($G178,\"}\",CHAR(160),EI$1))-FIND(CHAR(160),SUBSTITUTE($G178,\"{\",CHAR(160),EI$1))+1),\"\")","v":""},{"$f":"IFERROR(MID($G178,FIND(CHAR(160),SUBSTITUTE($G178,\"{\",CHAR(160),EJ$1)),FIND(CHAR(160),SUBSTITUTE($G178,\"}\",CHAR(160),EJ$1))-FIND(CHAR(160),SUBSTITUTE($G178,\"{\",CHAR(160),EJ$1))+1),\"\")","v":""},{"$f":"IFERROR(MID($G178,FIND(CHAR(160),SUBSTITUTE($G178,\"{\",CHAR(160),EK$1)),FIND(CHAR(160),SUBSTITUTE($G178,\"}\",CHAR(160),EK$1))-FIND(CHAR(160),SUBSTITUTE($G178,\"{\",CHAR(160),EK$1))+1),\"\")","v":""},{"$f":"IFERROR(MID($G178,FIND(CHAR(160),SUBSTITUTE($G178,\"{\",CHAR(160),EL$1)),FIND(CHAR(160),SUBSTITUTE($G178,\"}\",CHAR(160),EL$1))-FIND(CHAR(160),SUBSTITUTE($G178,\"{\",CHAR(160),EL$1))+1),\"\")","v":""},{"$f":"IFERROR(MID($G178,FIND(CHAR(160),SUBSTITUTE($G178,\"{\",CHAR(160),EM$1)),FIND(CHAR(160),SUBSTITUTE($G178,\"}\",CHAR(160),EM$1))-FIND(CHAR(160),SUBSTITUTE($G178,\"{\",CHAR(160),EM$1))+1),\"\")","v":""},{"$f":"IFERROR(MID($G178,FIND(CHAR(160),SUBSTITUTE($G178,\"{\",CHAR(160),EN$1)),FIND(CHAR(160),SUBSTITUTE($G178,\"}\",CHAR(160),EN$1))-FIND(CHAR(160),SUBSTITUTE($G178,\"{\",CHAR(160),EN$1))+1),\"\")","v":""},{"$f":"IFERROR(MID($G178,FIND(CHAR(160),SUBSTITUTE($G178,\"{\",CHAR(160),EO$1)),FIND(CHAR(160),SUBSTITUTE($G178,\"}\",CHAR(160),EO$1))-FIND(CHAR(160),SUBSTITUTE($G178,\"{\",CHAR(160),EO$1))+1),\"\")","v":""},{"$f":"IFERROR(MID($G178,FIND(CHAR(160),SUBSTITUTE($G178,\"{\",CHAR(160),EP$1)),FIND(CHAR(160),SUBSTITUTE($G178,\"}\",CHAR(160),EP$1))-FIND(CHAR(160),SUBSTITUTE($G178,\"{\",CHAR(160),EP$1))+1),\"\")","v":""},{"$f":"IFERROR(MID($J178,FIND(CHAR(160),SUBSTITUTE($J178,\"{\",CHAR(160),EQ$1)),FIND(CHAR(160),SUBSTITUTE($J178,\"}\",CHAR(160),EQ$1))-FIND(CHAR(160),SUBSTITUTE($J178,\"{\",CHAR(160),EQ$1))+1),\"\")","v":"{Measure:Quantity}"},{"$f":"IFERROR(MID($J178,FIND(CHAR(160),SUBSTITUTE($J178,\"{\",CHAR(160),ER$1)),FIND(CHAR(160),SUBSTITUTE($J178,\"}\",CHAR(160),ER$1))-FIND(CHAR(160),SUBSTITUTE($J178,\"{\",CHAR(160),ER$1))+1),\"\")","v":"{Rebate per Package}"},{"$f":"IFERROR(MID($J178,FIND(CHAR(160),SUBSTITUTE($J178,\"{\",CHAR(160),ES$1)),FIND(CHAR(160),SUBSTITUTE($J178,\"}\",CHAR(160),ES$1))-FIND(CHAR(160),SUBSTITUTE($J178,\"{\",CHAR(160),ES$1))+1),\"\")","v":""},{"$f":"IFERROR(MID($J178,FIND(CHAR(160),SUBSTITUTE($J178,\"{\",CHAR(160),ET$1)),FIND(CHAR(160),SUBSTITUTE($J178,\"}\",CHAR(160),ET$1))-FIND(CHAR(160),SUBSTITUTE($J178,\"{\",CHAR(160),ET$1))+1),\"\")","v":""},{"$f":"IFERROR(MID($J178,FIND(CHAR(160),SUBSTITUTE($J178,\"{\",CHAR(160),EU$1)),FIND(CHAR(160),SUBSTITUTE($J178,\"}\",CHAR(160),EU$1))-FIND(CHAR(160),SUBSTITUTE($J178,\"{\",CHAR(160),EU$1))+1),\"\")","v":""},{"$f":"IFERROR(MID($J178,FIND(CHAR(160),SUBSTITUTE($J178,\"{\",CHAR(160),EV$1)),FIND(CHAR(160),SUBSTITUTE($J178,\"}\",CHAR(160),EV$1))-FIND(CHAR(160),SUBSTITUTE($J178,\"{\",CHAR(160),EV$1))+1),\"\")","v":""},{"$f":"IFERROR(MID($J178,FIND(CHAR(160),SUBSTITUTE($J178,\"{\",CHAR(160),EW$1)),FIND(CHAR(160),SUBSTITUTE($J178,\"}\",CHAR(160),EW$1))-FIND(CHAR(160),SUBSTITUTE($J178,\"{\",CHAR(160),EW$1))+1),\"\")","v":""},{"$f":"IFERROR(MID($J178,FIND(CHAR(160),SUBSTITUTE($J178,\"{\",CHAR(160),EX$1)),FIND(CHAR(160),SUBSTITUTE($J178,\"}\",CHAR(160),EX$1))-FIND(CHAR(160),SUBSTITUTE($J178,\"{\",CHAR(160),EX$1))+1),\"\")","v":""},{"$f":"IFERROR(MID($J178,FIND(CHAR(160),SUBSTITUTE($J178,\"{\",CHAR(160),EY$1)),FIND(CHAR(160),SUBSTITUTE($J178,\"}\",CHAR(160),EY$1))-FIND(CHAR(160),SUBSTITUTE($J178,\"{\",CHAR(160),EY$1))+1),\"\")","v":""},{"$f":"IFERROR(MID($J178,FIND(CHAR(160),SUBSTITUTE($J178,\"{\",CHAR(160),EZ$1)),FIND(CHAR(160),SUBSTITUTE($J178,\"}\",CHAR(160),EZ$1))-FIND(CHAR(160),SUBSTITUTE($J178,\"{\",CHAR(160),EZ$1))+1),\"\")","v":""},{"$f":"IFERROR(MID($J178,FIND(CHAR(160),SUBSTITUTE($J178,\"{\",CHAR(160),FA$1)),FIND(CHAR(160),SUBSTITUTE($J178,\"}\",CHAR(160),FA$1))-FIND(CHAR(160),SUBSTITUTE($J178,\"{\",CHAR(160),FA$1))+1),\"\")","v":"{Measure:Quantity}"},{"$f":"IFERROR(MID($J178,FIND(CHAR(160),SUBSTITUTE($J178,\"{\",CHAR(160),FB$1)),FIND(CHAR(160),SUBSTITUTE($J178,\"}\",CHAR(160),FB$1))-FIND(CHAR(160),SUBSTITUTE($J178,\"{\",CHAR(160),FB$1))+1),\"\")","v":"{Rebate per Package}"},{"$f":"IFERROR(MID($O178,FIND(CHAR(160),SUBSTITUTE($O178,\"{\",CHAR(160),FC$1)),FIND(CHAR(160),SUBSTITUTE($O178,\"}\",CHAR(160),FC$1))-FIND(CHAR(160),SUBSTITUTE($O178,\"{\",CHAR(160),FC$1))+1),\"\")","v":""},{"$f":"IFERROR(MID($O178,FIND(CHAR(160),SUBSTITUTE($O178,\"{\",CHAR(160),FD$1)),FIND(CHAR(160),SUBSTITUTE($O178,\"}\",CHAR(160),FD$1))-FIND(CHAR(160),SUBSTITUTE($O178,\"{\",CHAR(160),FD$1))+1),\"\")","v":""},{"$f":"IFERROR(MID($O178,FIND(CHAR(160),SUBSTITUTE($O178,\"{\",CHAR(160),FE$1)),FIND(CHAR(160),SUBSTITUTE($O178,\"}\",CHAR(160),FE$1))-FIND(CHAR(160),SUBSTITUTE($O178,\"{\",CHAR(160),FE$1))+1),\"\")","v":""},{"$f":"IFERROR(MID($O178,FIND(CHAR(160),SUBSTITUTE($O178,\"{\",CHAR(160),FF$1)),FIND(CHAR(160),SUBSTITUTE($O178,\"}\",CHAR(160),FF$1))-FIND(CHAR(160),SUBSTITUTE($O178,\"{\",CHAR(160),FF$1))+1),\"\")","v":""},{"$f":"IFERROR(MID($O178,FIND(CHAR(160),SUBSTITUTE($O178,\"{\",CHAR(160),FG$1)),FIND(CHAR(160),SUBSTITUTE($O178,\"}\",CHAR(160),FG$1))-FIND(CHAR(160),SUBSTITUTE($O178,\"{\",CHAR(160),FG$1))+1),\"\")","v":""},{"$f":"IFERROR(MID($O178,FIND(CHAR(160),SUBSTITUTE($O178,\"{\",CHAR(160),FH$1)),FIND(CHAR(160),SUBSTITUTE($O178,\"}\",CHAR(160),FH$1))-FIND(CHAR(160),SUBSTITUTE($O178,\"{\",CHAR(160),FH$1))+1),\"\")","v":""},{"$f":"IFERROR(MID($O178,FIND(CHAR(160),SUBSTITUTE($O178,\"{\",CHAR(160),FI$1)),FIND(CHAR(160),SUBSTITUTE($O178,\"}\",CHAR(160),FI$1))-FIND(CHAR(160),SUBSTITUTE($O178,\"{\",CHAR(160),FI$1))+1),\"\")","v":""},{"$f":"IFERROR(MID($O178,FIND(CHAR(160),SUBSTITUTE($O178,\"{\",CHAR(160),FJ$1)),FIND(CHAR(160),SUBSTITUTE($O178,\"}\",CHAR(160),FJ$1))-FIND(CHAR(160),SUBSTITUTE($O178,\"{\",CHAR(160),FJ$1))+1),\"\")","v":""},{"$f":"IFERROR(MID($O178,FIND(CHAR(160),SUBSTITUTE($O178,\"{\",CHAR(160),FK$1)),FIND(CHAR(160),SUBSTITUTE($O178,\"}\",CHAR(160),FK$1))-FIND(CHAR(160),SUBSTITUTE($O178,\"{\",CHAR(160),FK$1))+1),\"\")","v":"{Measure:Quantity}"},{"$f":"IFERROR(MID($O178,FIND(CHAR(160),SUBSTITUTE($O178,\"{\",CHAR(160),FL$1)),FIND(CHAR(160),SUBSTITUTE($O178,\"}\",CHAR(160),FL$1))-FIND(CHAR(160),SUBSTITUTE($O178,\"{\",CHAR(160),FL$1))+1),\"\")","v":"{Package Size}"},{"$f":"IFERROR(MID($R178,FIND(CHAR(160),SUBSTITUTE($R178,\"{\",CHAR(160),FM$1)),FIND(CHAR(160),SUBSTITUTE($R178,\"}\",CHAR(160),FM$1))-FIND(CHAR(160),SUBSTITUTE($R178,\"{\",CHAR(160),FM$1))+1),\"\")","v":""},{"$f":"IFERROR(MID($R178,FIND(CHAR(160),SUBSTITUTE($R178,\"{\",CHAR(160),FN$1)),FIND(CHAR(160),SUBSTITUTE($R178,\"}\",CHAR(160),FN$1))-FIND(CHAR(160),SUBSTITUTE($R178,\"{\",CHAR(160),FN$1))+1),\"\")","v":""},{"$f":"IFERROR(MID($R178,FIND(CHAR(160),SUBSTITUTE($R178,\"{\",CHAR(160),FO$1)),FIND(CHAR(160),SUBSTITUTE($R178,\"}\",CHAR(160),FO$1))-FIND(CHAR(160),SUBSTITUTE($R178,\"{\",CHAR(160),FO$1))+1),\"\")","v":""},{"$f":"IFERROR(MID($R178,FIND(CHAR(160),SUBSTITUTE($R178,\"{\",CHAR(160),FP$1)),FIND(CHAR(160),SUBSTITUTE($R178,\"}\",CHAR(160),FP$1))-FIND(CHAR(160),SUBSTITUTE($R178,\"{\",CHAR(160),FP$1))+1),\"\")","v":""},{"$f":"IFERROR(MID($R178,FIND(CHAR(160),SUBSTITUTE($R178,\"{\",CHAR(160),FQ$1)),FIND(CHAR(160),SUBSTITUTE($R178,\"}\",CHAR(160),FQ$1))-FIND(CHAR(160),SUBSTITUTE($R178,\"{\",CHAR(160),FQ$1))+1),\"\")","v":""},{"$f":"IFERROR(MID($R178,FIND(CHAR(160),SUBSTITUTE($R178,\"{\",CHAR(160),FR$1)),FIND(CHAR(160),SUBSTITUTE($R178,\"}\",CHAR(160),FR$1))-FIND(CHAR(160),SUBSTITUTE($R178,\"{\",CHAR(160),FR$1))+1),\"\")","v":""},{"$f":"IFERROR(MID($R178,FIND(CHAR(160),SUBSTITUTE($R178,\"{\",CHAR(160),FS$1)),FIND(CHAR(160),SUBSTITUTE($R178,\"}\",CHAR(160),FS$1))-FIND(CHAR(160),SUBSTITUTE($R178,\"{\",CHAR(160),FS$1))+1),\"\")","v":""},{"$f":"IFERROR(MID($R178,FIND(CHAR(160),SUBSTITUTE($R178,\"{\",CHAR(160),FT$1)),FIND(CHAR(160),SUBSTITUTE($R178,\"}\",CHAR(160),FT$1))-FIND(CHAR(160),SUBSTITUTE($R178,\"{\",CHAR(160),FT$1))+1),\"\")","v":""},{"$f":"IFERROR(MID($R178,FIND(CHAR(160),SUBSTITUTE($R178,\"{\",CHAR(160),FU$1)),FIND(CHAR(160),SUBSTITUTE($R178,\"}\",CHAR(160),FU$1))-FIND(CHAR(160),SUBSTITUTE($R178,\"{\",CHAR(160),FU$1))+1),\"\")","v":"{Measure:Quantity}"},{"$f":"IFERROR(MID($R178,FIND(CHAR(160),SUBSTITUTE($R178,\"{\",CHAR(160),FV$1)),FIND(CHAR(160),SUBSTITUTE($R178,\"}\",CHAR(160),FV$1))-FIND(CHAR(160),SUBSTITUTE($R178,\"{\",CHAR(160),FV$1))+1),\"\")","v":"{Package Size}"},{"$f":"IFERROR(MID($U178,FIND(CHAR(160),SUBSTITUTE($U178,\"{\",CHAR(160),FW$1)),FIND(CHAR(160),SUBSTITUTE($U178,\"}\",CHAR(160),FW$1))-FIND(CHAR(160),SUBSTITUTE($U178,\"{\",CHAR(160),FW$1))+1),\"\")","v":"{Factor:WinterCF}"},{"$f":"IFERROR(MID($U178,FIND(CHAR(160),SUBSTITUTE($U178,\"{\",CHAR(160),FX$1)),FIND(CHAR(160),SUBSTITUTE($U178,\"}\",CHAR(160),FX$1))-FIND(CHAR(160),SUBSTITUTE($U178,\"{\",CHAR(160),FX$1))+1),\"\")","v":""},{"$f":"IFERROR(MID($U178,FIND(CHAR(160),SUBSTITUTE($U178,\"{\",CHAR(160),FY$1)),FIND(CHAR(160),SUBSTITUTE($U178,\"}\",CHAR(160),FY$1))-FIND(CHAR(160),SUBSTITUTE($U178,\"{\",CHAR(160),FY$1))+1),\"\")","v":""},{"$f":"IFERROR(MID($U178,FIND(CHAR(160),SUBSTITUTE($U178,\"{\",CHAR(160),FZ$1)),FIND(CHAR(160),SUBSTITUTE($U178,\"}\",CHAR(160),FZ$1))-FIND(CHAR(160),SUBSTITUTE($U178,\"{\",CHAR(160),FZ$1))+1),\"\")","v":""},{"$f":"IFERROR(MID($U178,FIND(CHAR(160),SUBSTITUTE($U178,\"{\",CHAR(160),GA$1)),FIND(CHAR(160),SUBSTITUTE($U178,\"}\",CHAR(160),GA$1))-FIND(CHAR(160),SUBSTITUTE($U178,\"{\",CHAR(160),GA$1))+1),\"\")","v":""},{"$f":"IFERROR(MID($U178,FIND(CHAR(160),SUBSTITUTE($U178,\"{\",CHAR(160),GB$1)),FIND(CHAR(160),SUBSTITUTE($U178,\"}\",CHAR(160),GB$1))-FIND(CHAR(160),SUBSTITUTE($U178,\"{\",CHAR(160),GB$1))+1),\"\")","v":""},{"$f":"IFERROR(MID($U178,FIND(CHAR(160),SUBSTITUTE($U178,\"{\",CHAR(160),GC$1)),FIND(CHAR(160),SUBSTITUTE($U178,\"}\",CHAR(160),GC$1))-FIND(CHAR(160),SUBSTITUTE($U178,\"{\",CHAR(160),GC$1))+1),\"\")","v":""},{"$f":"IFERROR(MID($U178,FIND(CHAR(160),SUBSTITUTE($U178,\"{\",CHAR(160),GD$1)),FIND(CHAR(160),SUBSTITUTE($U178,\"}\",CHAR(160),GD$1))-FIND(CHAR(160),SUBSTITUTE($U178,\"{\",CHAR(160),GD$1))+1),\"\")","v":""},{"$f":"IFERROR(MID($U178,FIND(CHAR(160),SUBSTITUTE($U178,\"{\",CHAR(160),GE$1)),FIND(CHAR(160),SUBSTITUTE($U178,\"}\",CHAR(160),GE$1))-FIND(CHAR(160),SUBSTITUTE($U178,\"{\",CHAR(160),GE$1))+1),\"\")","v":"{Measure:Quantity}"},{"$f":"IFERROR(MID($U178,FIND(CHAR(160),SUBSTITUTE($U178,\"{\",CHAR(160),GF$1)),FIND(CHAR(160),SUBSTITUTE($U178,\"}\",CHAR(160),GF$1))-FIND(CHAR(160),SUBSTITUTE($U178,\"{\",CHAR(160),GF$1))+1),\"\")","v":"{Package Size}"},{"$f":"IFERROR(MID($V178,FIND(CHAR(160),SUBSTITUTE($V178,\"{\",CHAR(160),GG$1)),FIND(CHAR(160),SUBSTITUTE($V178,\"}\",CHAR(160),GG$1))-FIND(CHAR(160),SUBSTITUTE($V178,\"{\",CHAR(160),GG$1))+1),\"\")","v":"{Factor:SummerCF}"},{"$f":"IFERROR(MID($V178,FIND(CHAR(160),SUBSTITUTE($V178,\"{\",CHAR(160),GH$1)),FIND(CHAR(160),SUBSTITUTE($V178,\"}\",CHAR(160),GH$1))-FIND(CHAR(160),SUBSTITUTE($V178,\"{\",CHAR(160),GH$1))+1),\"\")","v":""},{"$f":"IFERROR(MID($V178,FIND(CHAR(160),SUBSTITUTE($V178,\"{\",CHAR(160),GI$1)),FIND(CHAR(160),SUBSTITUTE($V178,\"}\",CHAR(160),GI$1))-FIND(CHAR(160),SUBSTITUTE($V178,\"{\",CHAR(160),GI$1))+1),\"\")","v":""},{"$f":"IFERROR(MID($V178,FIND(CHAR(160),SUBSTITUTE($V178,\"{\",CHAR(160),GJ$1)),FIND(CHAR(160),SUBSTITUTE($V178,\"}\",CHAR(160),GJ$1))-FIND(CHAR(160),SUBSTITUTE($V178,\"{\",CHAR(160),GJ$1))+1),\"\")","v":""},{"$f":"IFERROR(MID($V178,FIND(CHAR(160),SUBSTITUTE($V178,\"{\",CHAR(160),GK$1)),FIND(CHAR(160),SUBSTITUTE($V178,\"}\",CHAR(160),GK$1))-FIND(CHAR(160),SUBSTITUTE($V178,\"{\",CHAR(160),GK$1))+1),\"\")","v":""},{"$f":"IFERROR(MID($V178,FIND(CHAR(160),SUBSTITUTE($V178,\"{\",CHAR(160),GL$1)),FIND(CHAR(160),SUBSTITUTE($V178,\"}\",CHAR(160),GL$1))-FIND(CHAR(160),SUBSTITUTE($V178,\"{\",CHAR(160),GL$1))+1),\"\")","v":""},{"$f":"IFERROR(MID($V178,FIND(CHAR(160),SUBSTITUTE($V178,\"{\",CHAR(160),GM$1)),FIND(CHAR(160),SUBSTITUTE($V178,\"}\",CHAR(160),GM$1))-FIND(CHAR(160),SUBSTITUTE($V178,\"{\",CHAR(160),GM$1))+1),\"\")","v":""},{"$f":"IFERROR(MID($V178,FIND(CHAR(160),SUBSTITUTE($V178,\"{\",CHAR(160),GN$1)),FIND(CHAR(160),SUBSTITUTE($V178,\"}\",CHAR(160),GN$1))-FIND(CHAR(160),SUBSTITUTE($V178,\"{\",CHAR(160),GN$1))+1),\"\")","v":""},{"$f":"IFERROR(MID($V178,FIND(CHAR(160),SUBSTITUTE($V178,\"{\",CHAR(160),GO$1)),FIND(CHAR(160),SUBSTITUTE($V178,\"}\",CHAR(160),GO$1))-FIND(CHAR(160),SUBSTITUTE($V178,\"{\",CHAR(160),GO$1))+1),\"\")","v":"{Measure:Quantity}"},{"$f":"IFERROR(MID($V178,FIND(CHAR(160),SUBSTITUTE($V178,\"{\",CHAR(160),GP$1)),FIND(CHAR(160),SUBSTITUTE($V178,\"}\",CHAR(160),GP$1))-FIND(CHAR(160),SUBSTITUTE($V178,\"{\",CHAR(160),GP$1))+1),\"\")","v":"{Package Size}"},{"$f":"IFERROR(MID($W178,FIND(CHAR(160),SUBSTITUTE($W178,\"{\",CHAR(160),GQ$1)),FIND(CHAR(160),SUBSTITUTE($W178,\"}\",CHAR(160),GQ$1))-FIND(CHAR(160),SUBSTITUTE($W178,\"{\",CHAR(160),GQ$1))+1),\"\")","v":""},{"$f":"IFERROR(MID($W178,FIND(CHAR(160),SUBSTITUTE($W178,\"{\",CHAR(160),GR$1)),FIND(CHAR(160),SUBSTITUTE($W178,\"}\",CHAR(160),GR$1))-FIND(CHAR(160),SUBSTITUTE($W178,\"{\",CHAR(160),GR$1))+1),\"\")","v":""},{"$f":"IFERROR(MID($W178,FIND(CHAR(160),SUBSTITUTE($W178,\"{\",CHAR(160),GS$1)),FIND(CHAR(160),SUBSTITUTE($W178,\"}\",CHAR(160),GS$1))-FIND(CHAR(160),SUBSTITUTE($W178,\"{\",CHAR(160),GS$1))+1),\"\")","v":""},{"$f":"IFERROR(MID($W178,FIND(CHAR(160),SUBSTITUTE($W178,\"{\",CHAR(160),GT$1)),FIND(CHAR(160),SUBSTITUTE($W178,\"}\",CHAR(160),GT$1))-FIND(CHAR(160),SUBSTITUTE($W178,\"{\",CHAR(160),GT$1))+1),\"\")","v":""},{"$f":"IFERROR(MID($W178,FIND(CHAR(160),SUBSTITUTE($W178,\"{\",CHAR(160),GU$1)),FIND(CHAR(160),SUBSTITUTE($W178,\"}\",CHAR(160),GU$1))-FIND(CHAR(160),SUBSTITUTE($W178,\"{\",CHAR(160),GU$1))+1),\"\")","v":""},{"$f":"IFERROR(MID($W178,FIND(CHAR(160),SUBSTITUTE($W178,\"{\",CHAR(160),GV$1)),FIND(CHAR(160),SUBSTITUTE($W178,\"}\",CHAR(160),GV$1))-FIND(CHAR(160),SUBSTITUTE($W178,\"{\",CHAR(160),GV$1))+1),\"\")","v":""},{"$f":"IFERROR(MID($W178,FIND(CHAR(160),SUBSTITUTE($W178,\"{\",CHAR(160),GW$1)),FIND(CHAR(160),SUBSTITUTE($W178,\"}\",CHAR(160),GW$1))-FIND(CHAR(160),SUBSTITUTE($W178,\"{\",CHAR(160),GW$1))+1),\"\")","v":""},{"$f":"IFERROR(MID($W178,FIND(CHAR(160),SUBSTITUTE($W178,\"{\",CHAR(160),GX$1)),FIND(CHAR(160),SUBSTITUTE($W178,\"}\",CHAR(160),GX$1))-FIND(CHAR(160),SUBSTITUTE($W178,\"{\",CHAR(160),GX$1))+1),\"\")","v":""},{"$f":"IFERROR(MID($W178,FIND(CHAR(160),SUBSTITUTE($W178,\"{\",CHAR(160),GY$1)),FIND(CHAR(160),SUBSTITUTE($W178,\"}\",CHAR(160),GY$1))-FIND(CHAR(160),SUBSTITUTE($W178,\"{\",CHAR(160),GY$1))+1),\"\")","v":"{Measure:Quantity}"},{"$f":"IFERROR(MID($W178,FIND(CHAR(160),SUBSTITUTE($W178,\"{\",CHAR(160),GZ$1)),FIND(CHAR(160),SUBSTITUTE($W178,\"}\",CHAR(160),GZ$1))-FIND(CHAR(160),SUBSTITUTE($W178,\"{\",CHAR(160),GZ$1))+1),\"\")","v":"{Package Size}"},{"$f":"IFERROR(MID($X178,FIND(CHAR(160),SUBSTITUTE($X178,\"{\",CHAR(160),HA$1)),FIND(CHAR(160),SUBSTITUTE($X178,\"}\",CHAR(160),HA$1))-FIND(CHAR(160),SUBSTITUTE($X178,\"{\",CHAR(160),HA$1))+1),\"\")","v":""},{"$f":"IFERROR(MID($X178,FIND(CHAR(160),SUBSTITUTE($X178,\"{\",CHAR(160),HB$1)),FIND(CHAR(160),SUBSTITUTE($X178,\"}\",CHAR(160),HB$1))-FIND(CHAR(160),SUBSTITUTE($X178,\"{\",CHAR(160),HB$1))+1),\"\")","v":""},{"$f":"IFERROR(MID($X178,FIND(CHAR(160),SUBSTITUTE($X178,\"{\",CHAR(160),HC$1)),FIND(CHAR(160),SUBSTITUTE($X178,\"}\",CHAR(160),HC$1))-FIND(CHAR(160),SUBSTITUTE($X178,\"{\",CHAR(160),HC$1))+1),\"\")","v":""},{"$f":"IFERROR(MID($X178,FIND(CHAR(160),SUBSTITUTE($X178,\"{\",CHAR(160),HD$1)),FIND(CHAR(160),SUBSTITUTE($X178,\"}\",CHAR(160),HD$1))-FIND(CHAR(160),SUBSTITUTE($X178,\"{\",CHAR(160),HD$1))+1),\"\")","v":""},{"$f":"IFERROR(MID($X178,FIND(CHAR(160),SUBSTITUTE($X178,\"{\",CHAR(160),HE$1)),FIND(CHAR(160),SUBSTITUTE($X178,\"}\",CHAR(160),HE$1))-FIND(CHAR(160),SUBSTITUTE($X178,\"{\",CHAR(160),HE$1))+1),\"\")","v":""},{"$f":"IFERROR(MID($X178,FIND(CHAR(160),SUBSTITUTE($X178,\"{\",CHAR(160),HF$1)),FIND(CHAR(160),SUBSTITUTE($X178,\"}\",CHAR(160),HF$1))-FIND(CHAR(160),SUBSTITUTE($X178,\"{\",CHAR(160),HF$1))+1),\"\")","v":""},{"$f":"IFERROR(MID($X178,FIND(CHAR(160),SUBSTITUTE($X178,\"{\",CHAR(160),HG$1)),FIND(CHAR(160),SUBSTITUTE($X178,\"}\",CHAR(160),HG$1))-FIND(CHAR(160),SUBSTITUTE($X178,\"{\",CHAR(160),HG$1))+1),\"\")","v":""},{"$f":"IFERROR(MID($X178,FIND(CHAR(160),SUBSTITUTE($X178,\"{\",CHAR(160),HH$1)),FIND(CHAR(160),SUBSTITUTE($X178,\"}\",CHAR(160),HH$1))-FIND(CHAR(160),SUBSTITUTE($X178,\"{\",CHAR(160),HH$1))+1),\"\")","v":""},{"$f":"IFERROR(MID($X178,FIND(CHAR(160),SUBSTITUTE($X178,\"{\",CHAR(160),HI$1)),FIND(CHAR(160),SUBSTITUTE($X178,\"}\",CHAR(160),HI$1))-FIND(CHAR(160),SUBSTITUTE($X178,\"{\",CHAR(160),HI$1))+1),\"\")","v":"{Measure:Quantity}"},{"$f":"IFERROR(MID($X178,FIND(CHAR(160),SUBSTITUTE($X178,\"{\",CHAR(160),HJ$1)),FIND(CHAR(160),SUBSTITUTE($X178,\"}\",CHAR(160),HJ$1))-FIND(CHAR(160),SUBSTITUTE($X178,\"{\",CHAR(160),HJ$1))+1),\"\")","v":"{Package Size}"},{"$f":"IFERROR(MID($Y178,FIND(CHAR(160),SUBSTITUTE($Y178,\"{\",CHAR(160),HK$1)),FIND(CHAR(160),SUBSTITUTE($Y178,\"}\",CHAR(160),HK$1))-FIND(CHAR(160),SUBSTITUTE($Y178,\"{\",CHAR(160),HK$1))+1),\"\")","v":""},{"$f":"IFERROR(MID($Y178,FIND(CHAR(160),SUBSTITUTE($Y178,\"{\",CHAR(160),HL$1)),FIND(CHAR(160),SUBSTITUTE($Y178,\"}\",CHAR(160),HL$1))-FIND(CHAR(160),SUBSTITUTE($Y178,\"{\",CHAR(160),HL$1))+1),\"\")","v":""},{"$f":"IFERROR(MID($Y178,FIND(CHAR(160),SUBSTITUTE($Y178,\"{\",CHAR(160),HM$1)),FIND(CHAR(160),SUBSTITUTE($Y178,\"}\",CHAR(160),HM$1))-FIND(CHAR(160),SUBSTITUTE($Y178,\"{\",CHAR(160),HM$1))+1),\"\")","v":""},{"$f":"IFERROR(MID($Y178,FIND(CHAR(160),SUBSTITUTE($Y178,\"{\",CHAR(160),HN$1)),FIND(CHAR(160),SUBSTITUTE($Y178,\"}\",CHAR(160),HN$1))-FIND(CHAR(160),SUBSTITUTE($Y178,\"{\",CHAR(160),HN$1))+1),\"\")","v":""},{"$f":"IFERROR(MID($Y178,FIND(CHAR(160),SUBSTITUTE($Y178,\"{\",CHAR(160),HO$1)),FIND(CHAR(160),SUBSTITUTE($Y178,\"}\",CHAR(160),HO$1))-FIND(CHAR(160),SUBSTITUTE($Y178,\"{\",CHAR(160),HO$1))+1),\"\")","v":""},{"$f":"IFERROR(MID($Y178,FIND(CHAR(160),SUBSTITUTE($Y178,\"{\",CHAR(160),HP$1)),FIND(CHAR(160),SUBSTITUTE($Y178,\"}\",CHAR(160),HP$1))-FIND(CHAR(160),SUBSTITUTE($Y178,\"{\",CHAR(160),HP$1))+1),\"\")","v":""},{"$f":"IFERROR(MID($Y178,FIND(CHAR(160),SUBSTITUTE($Y178,\"{\",CHAR(160),HQ$1)),FIND(CHAR(160),SUBSTITUTE($Y178,\"}\",CHAR(160),HQ$1))-FIND(CHAR(160),SUBSTITUTE($Y178,\"{\",CHAR(160),HQ$1))+1),\"\")","v":""},{"$f":"IFERROR(MID($Y178,FIND(CHAR(160),SUBSTITUTE($Y178,\"{\",CHAR(160),HR$1)),FIND(CHAR(160),SUBSTITUTE($Y178,\"}\",CHAR(160),HR$1))-FIND(CHAR(160),SUBSTITUTE($Y178,\"{\",CHAR(160),HR$1))+1),\"\")","v":""},{"$f":"IFERROR(MID($Y178,FIND(CHAR(160),SUBSTITUTE($Y178,\"{\",CHAR(160),HS$1)),FIND(CHAR(160),SUBSTITUTE($Y178,\"}\",CHAR(160),HS$1))-FIND(CHAR(160),SUBSTITUTE($Y178,\"{\",CHAR(160),HS$1))+1),\"\")","v":"{Measure:Quantity}"},{"$f":"IFERROR(MID($Y178,FIND(CHAR(160),SUBSTITUTE($Y178,\"{\",CHAR(160),HT$1)),FIND(CHAR(160),SUBSTITUTE($Y178,\"}\",CHAR(160),HT$1))-FIND(CHAR(160),SUBSTITUTE($Y178,\"{\",CHAR(160),HT$1))+1),\"\")","v":"{Package Size}"},{"$f":"IFERROR(MID($Z178,FIND(CHAR(160),SUBSTITUTE($Z178,\"{\",CHAR(160),HU$1)),FIND(CHAR(160),SUBSTITUTE($Z178,\"}\",CHAR(160),HU$1))-FIND(CHAR(160),SUBSTITUTE($Z178,\"{\",CHAR(160),HU$1))+1),\"\")","v":""},{"$f":"IFERROR(MID($Z178,FIND(CHAR(160),SUBSTITUTE($Z178,\"{\",CHAR(160),HV$1)),FIND(CHAR(160),SUBSTITUTE($Z178,\"}\",CHAR(160),HV$1))-FIND(CHAR(160),SUBSTITUTE($Z178,\"{\",CHAR(160),HV$1))+1),\"\")","v":""},{"$f":"IFERROR(MID($Z178,FIND(CHAR(160),SUBSTITUTE($Z178,\"{\",CHAR(160),HW$1)),FIND(CHAR(160),SUBSTITUTE($Z178,\"}\",CHAR(160),HW$1))-FIND(CHAR(160),SUBSTITUTE($Z178,\"{\",CHAR(160),HW$1))+1),\"\")","v":""},{"$f":"IFERROR(MID($Z178,FIND(CHAR(160),SUBSTITUTE($Z178,\"{\",CHAR(160),HX$1)),FIND(CHAR(160),SUBSTITUTE($Z178,\"}\",CHAR(160),HX$1))-FIND(CHAR(160),SUBSTITUTE($Z178,\"{\",CHAR(160),HX$1))+1),\"\")","v":""},{"$f":"IFERROR(MID($Z178,FIND(CHAR(160),SUBSTITUTE($Z178,\"{\",CHAR(160),HY$1)),FIND(CHAR(160),SUBSTITUTE($Z178,\"}\",CHAR(160),HY$1))-FIND(CHAR(160),SUBSTITUTE($Z178,\"{\",CHAR(160),HY$1))+1),\"\")","v":""},{"$f":"IFERROR(MID($Z178,FIND(CHAR(160),SUBSTITUTE($Z178,\"{\",CHAR(160),HZ$1)),FIND(CHAR(160),SUBSTITUTE($Z178,\"}\",CHAR(160),HZ$1))-FIND(CHAR(160),SUBSTITUTE($Z178,\"{\",CHAR(160),HZ$1))+1),\"\")","v":""},{"$f":"IFERROR(MID($Z178,FIND(CHAR(160),SUBSTITUTE($Z178,\"{\",CHAR(160),IA$1)),FIND(CHAR(160),SUBSTITUTE($Z178,\"}\",CHAR(160),IA$1))-FIND(CHAR(160),SUBSTITUTE($Z178,\"{\",CHAR(160),IA$1))+1),\"\")","v":""},{"$f":"IFERROR(MID($Z178,FIND(CHAR(160),SUBSTITUTE($Z178,\"{\",CHAR(160),IB$1)),FIND(CHAR(160),SUBSTITUTE($Z178,\"}\",CHAR(160),IB$1))-FIND(CHAR(160),SUBSTITUTE($Z178,\"{\",CHAR(160),IB$1))+1),\"\")","v":""},{"$f":"IFERROR(MID($Z178,FIND(CHAR(160),SUBSTITUTE($Z178,\"{\",CHAR(160),IC$1)),FIND(CHAR(160),SUBSTITUTE($Z178,\"}\",CHAR(160),IC$1))-FIND(CHAR(160),SUBSTITUTE($Z178,\"{\",CHAR(160),IC$1))+1),\"\")","v":"{Measure:Quantity}"},{"$f":"IFERROR(MID($Z178,FIND(CHAR(160),SUBSTITUTE($Z178,\"{\",CHAR(160),ID$1)),FIND(CHAR(160),SUBSTITUTE($Z178,\"}\",CHAR(160),ID$1))-FIND(CHAR(160),SUBSTITUTE($Z178,\"{\",CHAR(160),ID$1))+1),\"\")","v":"{Package Size}"},{"$f":"IFERROR(MID($AA178,FIND(CHAR(160),SUBSTITUTE($AA178,\"{\",CHAR(160),IE$1)),FIND(CHAR(160),SUBSTITUTE($AA178,\"}\",CHAR(160),IE$1))-FIND(CHAR(160),SUBSTITUTE($AA178,\"{\",CHAR(160),IE$1))+1),\"\")","v":""},{"$f":"IFERROR(MID($AA178,FIND(CHAR(160),SUBSTITUTE($AA178,\"{\",CHAR(160),IF$1)),FIND(CHAR(160),SUBSTITUTE($AA178,\"}\",CHAR(160),IF$1))-FIND(CHAR(160),SUBSTITUTE($AA178,\"{\",CHAR(160),IF$1))+1),\"\")","v":""},{"$f":"IFERROR(MID($AA178,FIND(CHAR(160),SUBSTITUTE($AA178,\"{\",CHAR(160),IG$1)),FIND(CHAR(160),SUBSTITUTE($AA178,\"}\",CHAR(160),IG$1))-FIND(CHAR(160),SUBSTITUTE($AA178,\"{\",CHAR(160),IG$1))+1),\"\")","v":""},{"$f":"IFERROR(MID($AA178,FIND(CHAR(160),SUBSTITUTE($AA178,\"{\",CHAR(160),IH$1)),FIND(CHAR(160),SUBSTITUTE($AA178,\"}\",CHAR(160),IH$1))-FIND(CHAR(160),SUBSTITUTE($AA178,\"{\",CHAR(160),IH$1))+1),\"\")","v":""},{"$f":"IFERROR(MID($AA178,FIND(CHAR(160),SUBSTITUTE($AA178,\"{\",CHAR(160),II$1)),FIND(CHAR(160),SUBSTITUTE($AA178,\"}\",CHAR(160),II$1))-FIND(CHAR(160),SUBSTITUTE($AA178,\"{\",CHAR(160),II$1))+1),\"\")","v":""},{"$f":"IFERROR(MID($AA178,FIND(CHAR(160),SUBSTITUTE($AA178,\"{\",CHAR(160),IJ$1)),FIND(CHAR(160),SUBSTITUTE($AA178,\"}\",CHAR(160),IJ$1))-FIND(CHAR(160),SUBSTITUTE($AA178,\"{\",CHAR(160),IJ$1))+1),\"\")","v":""},{"$f":"IFERROR(MID($AA178,FIND(CHAR(160),SUBSTITUTE($AA178,\"{\",CHAR(160),IK$1)),FIND(CHAR(160),SUBSTITUTE($AA178,\"}\",CHAR(160),IK$1))-FIND(CHAR(160),SUBSTITUTE($AA178,\"{\",CHAR(160),IK$1))+1),\"\")","v":""},{"$f":"IFERROR(MID($AA178,FIND(CHAR(160),SUBSTITUTE($AA178,\"{\",CHAR(160),IL$1)),FIND(CHAR(160),SUBSTITUTE($AA178,\"}\",CHAR(160),IL$1))-FIND(CHAR(160),SUBSTITUTE($AA178,\"{\",CHAR(160),IL$1))+1),\"\")","v":""},{"$f":"IFERROR(MID($AA178,FIND(CHAR(160),SUBSTITUTE($AA178,\"{\",CHAR(160),IM$1)),FIND(CHAR(160),SUBSTITUTE($AA178,\"}\",CHAR(160),IM$1))-FIND(CHAR(160),SUBSTITUTE($AA178,\"{\",CHAR(160),IM$1))+1),\"\")","v":"{Measure:Quantity}"},{"$f":"IFERROR(MID($AA178,FIND(CHAR(160),SUBSTITUTE($AA178,\"{\",CHAR(160),IN$1)),FIND(CHAR(160),SUBSTITUTE($AA178,\"}\",CHAR(160),IN$1))-FIND(CHAR(160),SUBSTITUTE($AA178,\"{\",CHAR(160),IN$1))+1),\"\")","v":"{Package Size}"},{"$f":"IFERROR(MID($AB178,FIND(CHAR(160),SUBSTITUTE($AB178,\"{\",CHAR(160),IO$1)),FIND(CHAR(160),SUBSTITUTE($AB178,\"}\",CHAR(160),IO$1))-FIND(CHAR(160),SUBSTITUTE($AB178,\"{\",CHAR(160),IO$1))+1),\"\")","v":""},{"$f":"IFERROR(MID($AB178,FIND(CHAR(160),SUBSTITUTE($AB178,\"{\",CHAR(160),IP$1)),FIND(CHAR(160),SUBSTITUTE($AB178,\"}\",CHAR(160),IP$1))-FIND(CHAR(160),SUBSTITUTE($AB178,\"{\",CHAR(160),IP$1))+1),\"\")","v":""},{"$f":"IFERROR(MID($AB178,FIND(CHAR(160),SUBSTITUTE($AB178,\"{\",CHAR(160),IQ$1)),FIND(CHAR(160),SUBSTITUTE($AB178,\"}\",CHAR(160),IQ$1))-FIND(CHAR(160),SUBSTITUTE($AB178,\"{\",CHAR(160),IQ$1))+1),\"\")","v":""},{"$f":"IFERROR(MID($AB178,FIND(CHAR(160),SUBSTITUTE($AB178,\"{\",CHAR(160),IR$1)),FIND(CHAR(160),SUBSTITUTE($AB178,\"}\",CHAR(160),IR$1))-FIND(CHAR(160),SUBSTITUTE($AB178,\"{\",CHAR(160),IR$1))+1),\"\")","v":""},{"$f":"IFERROR(MID($AB178,FIND(CHAR(160),SUBSTITUTE($AB178,\"{\",CHAR(160),IS$1)),FIND(CHAR(160),SUBSTITUTE($AB178,\"}\",CHAR(160),IS$1))-FIND(CHAR(160),SUBSTITUTE($AB178,\"{\",CHAR(160),IS$1))+1),\"\")","v":""},{"$f":"IFERROR(MID($AB178,FIND(CHAR(160),SUBSTITUTE($AB178,\"{\",CHAR(160),IT$1)),FIND(CHAR(160),SUBSTITUTE($AB178,\"}\",CHAR(160),IT$1))-FIND(CHAR(160),SUBSTITUTE($AB178,\"{\",CHAR(160),IT$1))+1),\"\")","v":""},{"$f":"IFERROR(MID($AB178,FIND(CHAR(160),SUBSTITUTE($AB178,\"{\",CHAR(160),IU$1)),FIND(CHAR(160),SUBSTITUTE($AB178,\"}\",CHAR(160),IU$1))-FIND(CHAR(160),SUBSTITUTE($AB178,\"{\",CHAR(160),IU$1))+1),\"\")","v":""},{"$f":"IFERROR(MID($AB178,FIND(CHAR(160),SUBSTITUTE($AB178,\"{\",CHAR(160),IV$1)),FIND(CHAR(160),SUBSTITUTE($AB178,\"}\",CHAR(160),IV$1))-FIND(CHAR(160),SUBSTITUTE($AB178,\"{\",CHAR(160),IV$1))+1),\"\")","v":""},{"$f":"IFERROR(MID($AB178,FIND(CHAR(160),SUBSTITUTE($AB178,\"{\",CHAR(160),IW$1)),FIND(CHAR(160),SUBSTITUTE($AB178,\"}\",CHAR(160),IW$1))-FIND(CHAR(160),SUBSTITUTE($AB178,\"{\",CHAR(160),IW$1))+1),\"\")","v":""},{"$f":"IFERROR(MID($AB178,FIND(CHAR(160),SUBSTITUTE($AB178,\"{\",CHAR(160),IX$1)),FIND(CHAR(160),SUBSTITUTE($AB178,\"}\",CHAR(160),IX$1))-FIND(CHAR(160),SUBSTITUTE($AB178,\"{\",CHAR(160),IX$1))+1),\"\")","v":""},null,{"$f":"10-COUNTIF(DU178:ED178,\"\")","v":3}]
["Distributor Lighting","Bay_Low_Type_BC>80 W - long life","S64BCLHL","2021-07-01","2022-06-30","Calculated","{Measure:Quantity}*{Package Size}*110.86",0,"Calculated","{Measure:Quantity}*{Rebate per Package}",0,"2021-07-01","2022-06-30","Calculated","{Measure:Quantity}*{Package Size}*878",null,null,"{Measure:Quantity}*{Package Size}*1.0747*0.283",null,null,"{Measure:Quantity}*{Package Size}*{Factor:WinterCF}*0.283","{Measure:Quantity}*{Package Size}*{Factor:SummerCF}*1.0747*0.283","{Measure:Quantity}*{Package Size}*10*-0.37","{Measure:Quantity}*{Package Size}*-0.089","{Measure:Quantity}*{Package Size}*-0.375","{Measure:Quantity}*{Package Size}*-0.014","{Measure:Quantity}*{Package Size}*-0.086",null,"2021-07-01","2022-06-30",16,0.372,0.64500000000000002,0.45,0.218,0.22900000000000001,0.10299999999999999,0.99,1,1,0.51,0,null,{"$f":"DU179","v":"{Measure:Quantity}"},1,{"$f":"DV179","v":"{Package Size}"},1,{"$f":"DW179","v":"{Rebate per Package}"},{"$f":"CW179*CO179","v":83.144999999999996},{"$f":"DX179","v":""},null,{"$f":"DY179","v":""},null,{"$f":"DZ179","v":""},null,{"$f":"EA179","v":""},null,{"$f":"EB179","v":""},null,{"$f":"EC179","v":""},null,{"$f":"ED179","v":""},null,{"$f":"AS179*AU179*878","v":878},0,0,{"$f":"AS179*AU179*1.0747*0.283","v":0.30414009999999997},0,0,{"$f":"AS179*AU179*AF179*0.283","v":0.10527599999999999},{"$f":"AS179*AU179*AG179*1.0747*0.283","v":0.19617036449999997},{"$f":"AS179*AU179*10*-0.37","v":-3.7},{"$f":"AS179*AU179*-0.089","v":-8.8999999999999996E-2},{"$f":"AS179*AU179*-0.375","v":-0.375},{"$f":"AS179*AU179*-0.014","v":-1.4E-2},{"$f":"AS179*AU179*-0.086","v":-8.5999999999999993E-2},0,null,"Res","Default DR",{"$f":"Benefits(BL179,BR179,BS179,BT179,BU179,BV179,BW179,BX179,BY179,BZ179,AE179,AH179,AI179,AJ179,AK179,AL179,AM179,AN179,AO179,AP179,CA179,CB179)","v":1211.4279008618439},798.48716734098298,-75.555539152610095,-164.47893222785834,-7.146161414760682,-54.596816236882951,-23.721401266738798,0,0,{"$f":"SUMPRODUCT(CC179:CK179,--(CC179:CK179>0))","v":2009.9150682028269},{"$f":"-SUMPRODUCT(CC179:CK179,--(CC179:CK179<0))","v":325.49885029885087},null,{"$f":"AS179*AU179*110.86","v":110.86},null,null,{"$f":"CM179+CO179","v":436.35885029885088},{"$f":"IF(NetOrGross=\"Net\",(1-AO179+AP179),1)","v":1},{"$f":"(SUMPRODUCT(CC179:CJ179,--(CC179:CJ179>0))+CN179)*CS179/((-SUMPRODUCT(CC179:CJ179,--(CC179:CJ179<0))+MAX(CO179,CV179)+CP179+CQ179)*CS179+IF(FRIncentives=\"Yes\",CV179*(1-CS179),0))","v":4.6061058847008329},1,{"$f":"AS179*AW179","v":83.144999999999996},{"$f":"CW178","v":0.75},"Electric","y",null,{"$f":"IF(F179=\"Manual Entry\",\"Manual\",IF(G179=\"\",0,\"X=\"&SUBSTITUTE(SUBSTITUTE(SUBSTITUTE(SUBSTITUTE(SUBSTITUTE(SUBSTITUTE(SUBSTITUTE(SUBSTITUTE(SUBSTITUTE(SUBSTITUTE(SUBSTITUTE(SUBSTITUTE(G179,$ED179,$ED$2&ROW($ED179)),$EC179,$EC$2&ROW($EC179)),$EB179,$EB$2&ROW($EB179)),$EA179,$EA$2&ROW($EA179)),$DZ179,$DZ$2&ROW($DZ179)),$DY179,$DY$2&ROW($DY179)),$DX179,$DX$2&ROW($DX179)),$DW179,$DW$2&ROW($DW179)),$DV179,$DV$2&ROW($DV179)),$DU179,$DU$2&ROW($DU179)),$DT179,$DT$2&ROW($DT179)),$DS179,$DS$2&ROW($DS179))))","v":"X=AS179*AU179*110.86"},{"$f":"IF(I179=\"Manual Entry\",\"Manual\",IF(J179=\"\",0,\"X=\"&SUBSTITUTE(SUBSTITUTE(SUBSTITUTE(SUBSTITUTE(SUBSTITUTE(SUBSTITUTE(SUBSTITUTE(SUBSTITUTE(SUBSTITUTE(SUBSTITUTE(SUBSTITUTE(SUBSTITUTE(J179,$ED179,$ED$2&ROW($ED179)),$EC179,$EC$2&ROW($EC179)),$EB179,$EB$2&ROW($EB179)),$EA179,$EA$2&ROW($EA179)),$DZ179,$DZ$2&ROW($DZ179)),$DY179,$DY$2&ROW($DY179)),$DX179,$DX$2&ROW($DX179)),$DW179,$DW$2&ROW($DW179)),$DV179,$DV$2&ROW($DV179)),$DU179,$DU$2&ROW($DU179)),$DT179,$DT$2&ROW($DT179)),$DS179,$DS$2&ROW($DS179))))","v":"X=AS179*AW179"},{"$f":"IF(O179=\"\",0,\"X=\"&SUBSTITUTE(SUBSTITUTE(SUBSTITUTE(SUBSTITUTE(SUBSTITUTE(SUBSTITUTE(SUBSTITUTE(SUBSTITUTE(SUBSTITUTE(SUBSTITUTE(SUBSTITUTE(SUBSTITUTE(O179,$ED179,$ED$2&ROW($ED179)),$EC179,$EC$2&ROW($EC179)),$EB179,$EB$2&ROW($EB179)),$EA179,$EA$2&ROW($EA179)),$DZ179,$DZ$2&ROW($DZ179)),$DY179,$DY$2&ROW($DY179)),$DX179,$DX$2&ROW($DX179)),$DW179,$DW$2&ROW($DW179)),$DV179,$DV$2&ROW($DV179)),$DU179,$DU$2&ROW($DU179)),$DT179,$DT$2&ROW($DT179)),$DS179,$DS$2&ROW($DS179)))","v":"X=AS179*AU179*878"},{"$f":"IF(P179=\"\",0,\"X=\"&SUBSTITUTE(SUBSTITUTE(SUBSTITUTE(SUBSTITUTE(SUBSTITUTE(SUBSTITUTE(SUBSTITUTE(SUBSTITUTE(SUBSTITUTE(SUBSTITUTE(SUBSTITUTE(SUBSTITUTE(P179,$ED179,$ED$2&ROW($ED179)),$EC179,$EC$2&ROW($EC179)),$EB179,$EB$2&ROW($EB179)),$EA179,$EA$2&ROW($EA179)),$DZ179,$DZ$2&ROW($DZ179)),$DY179,$DY$2&ROW($DY179)),$DX179,$DX$2&ROW($DX179)),$DW179,$DW$2&ROW($DW179)),$DV179,$DV$2&ROW($DV179)),$DU179,$DU$2&ROW($DU179)),$DT179,$DT$2&ROW($DT179)),$DS179,$DS$2&ROW($DS179)))","v":0},{"$f":"IF(Q179=\"\",0,\"X=\"&SUBSTITUTE(SUBSTITUTE(SUBSTITUTE(SUBSTITUTE(SUBSTITUTE(SUBSTITUTE(SUBSTITUTE(SUBSTITUTE(SUBSTITUTE(SUBSTITUTE(SUBSTITUTE(SUBSTITUTE(Q179,$ED179,$ED$2&ROW($ED179)),$EC179,$EC$2&ROW($EC179)),$EB179,$EB$2&ROW($EB179)),$EA179,$EA$2&ROW($EA179)),$DZ179,$DZ$2&ROW($DZ179)),$DY179,$DY$2&ROW($DY179)),$DX179,$DX$2&ROW($DX179)),$DW179,$DW$2&ROW($DW179)),$DV179,$DV$2&ROW($DV179)),$DU179,$DU$2&ROW($DU179)),$DT179,$DT$2&ROW($DT179)),$DS179,$DS$2&ROW($DS179)))","v":0},{"$f":"IF(R179=\"\",0,\"X=\"&SUBSTITUTE(SUBSTITUTE(SUBSTITUTE(SUBSTITUTE(SUBSTITUTE(SUBSTITUTE(SUBSTITUTE(SUBSTITUTE(SUBSTITUTE(SUBSTITUTE(SUBSTITUTE(SUBSTITUTE(R179,$ED179,$ED$2&ROW($ED179)),$EC179,$EC$2&ROW($EC179)),$EB179,$EB$2&ROW($EB179)),$EA179,$EA$2&ROW($EA179)),$DZ179,$DZ$2&ROW($DZ179)),$DY179,$DY$2&ROW($DY179)),$DX179,$DX$2&ROW($DX179)),$DW179,$DW$2&ROW($DW179)),$DV179,$DV$2&ROW($DV179)),$DU179,$DU$2&ROW($DU179)),$DT179,$DT$2&ROW($DT179)),$DS179,$DS$2&ROW($DS179)))","v":"X=AS179*AU179*1.0747*0.283"},{"$f":"IF(S179=\"\",0,\"X=\"&SUBSTITUTE(SUBSTITUTE(SUBSTITUTE(SUBSTITUTE(SUBSTITUTE(SUBSTITUTE(SUBSTITUTE(SUBSTITUTE(SUBSTITUTE(SUBSTITUTE(SUBSTITUTE(SUBSTITUTE(S179,$ED179,$ED$2&ROW($ED179)),$EC179,$EC$2&ROW($EC179)),$EB179,$EB$2&ROW($EB179)),$EA179,$EA$2&ROW($EA179)),$DZ179,$DZ$2&ROW($DZ179)),$DY179,$DY$2&ROW($DY179)),$DX179,$DX$2&ROW($DX179)),$DW179,$DW$2&ROW($DW179)),$DV179,$DV$2&ROW($DV179)),$DU179,$DU$2&ROW($DU179)),$DT179,$DT$2&ROW($DT179)),$DS179,$DS$2&ROW($DS179)))","v":0},{"$f":"IF(T179=\"\",0,\"X=\"&SUBSTITUTE(SUBSTITUTE(SUBSTITUTE(SUBSTITUTE(SUBSTITUTE(SUBSTITUTE(SUBSTITUTE(SUBSTITUTE(SUBSTITUTE(SUBSTITUTE(SUBSTITUTE(SUBSTITUTE(T179,$ED179,$ED$2&ROW($ED179)),$EC179,$EC$2&ROW($EC179)),$EB179,$EB$2&ROW($EB179)),$EA179,$EA$2&ROW($EA179)),$DZ179,$DZ$2&ROW($DZ179)),$DY179,$DY$2&ROW($DY179)),$DX179,$DX$2&ROW($DX179)),$DW179,$DW$2&ROW($DW179)),$DV179,$DV$2&ROW($DV179)),$DU179,$DU$2&ROW($DU179)),$DT179,$DT$2&ROW($DT179)),$DS179,$DS$2&ROW($DS179)))","v":0},{"$f":"IF(U179=\"\",0,\"X=\"&SUBSTITUTE(SUBSTITUTE(SUBSTITUTE(SUBSTITUTE(SUBSTITUTE(SUBSTITUTE(SUBSTITUTE(SUBSTITUTE(SUBSTITUTE(SUBSTITUTE(SUBSTITUTE(SUBSTITUTE(U179,$ED179,$ED$2&ROW($ED179)),$EC179,$EC$2&ROW($EC179)),$EB179,$EB$2&ROW($EB179)),$EA179,$EA$2&ROW($EA179)),$DZ179,$DZ$2&ROW($DZ179)),$DY179,$DY$2&ROW($DY179)),$DX179,$DX$2&ROW($DX179)),$DW179,$DW$2&ROW($DW179)),$DV179,$DV$2&ROW($DV179)),$DU179,$DU$2&ROW($DU179)),$DT179,$DT$2&ROW($DT179)),$DS179,$DS$2&ROW($DS179)))","v":"X=AS179*AU179*AF179*0.283"},{"$f":"IF(V179=\"\",0,\"X=\"&SUBSTITUTE(SUBSTITUTE(SUBSTITUTE(SUBSTITUTE(SUBSTITUTE(SUBSTITUTE(SUBSTITUTE(SUBSTITUTE(SUBSTITUTE(SUBSTITUTE(SUBSTITUTE(SUBSTITUTE(V179,$ED179,$ED$2&ROW($ED179)),$EC179,$EC$2&ROW($EC179)),$EB179,$EB$2&ROW($EB179)),$EA179,$EA$2&ROW($EA179)),$DZ179,$DZ$2&ROW($DZ179)),$DY179,$DY$2&ROW($DY179)),$DX179,$DX$2&ROW($DX179)),$DW179,$DW$2&ROW($DW179)),$DV179,$DV$2&ROW($DV179)),$DU179,$DU$2&ROW($DU179)),$DT179,$DT$2&ROW($DT179)),$DS179,$DS$2&ROW($DS179)))","v":"X=AS179*AU179*AG179*1.0747*0.283"},{"$f":"IF(W179=\"\",0,\"X=\"&SUBSTITUTE(SUBSTITUTE(SUBSTITUTE(SUBSTITUTE(SUBSTITUTE(SUBSTITUTE(SUBSTITUTE(SUBSTITUTE(SUBSTITUTE(SUBSTITUTE(SUBSTITUTE(SUBSTITUTE(W179,$ED179,$ED$2&ROW($ED179)),$EC179,$EC$2&ROW($EC179)),$EB179,$EB$2&ROW($EB179)),$EA179,$EA$2&ROW($EA179)),$DZ179,$DZ$2&ROW($DZ179)),$DY179,$DY$2&ROW($DY179)),$DX179,$DX$2&ROW($DX179)),$DW179,$DW$2&ROW($DW179)),$DV179,$DV$2&ROW($DV179)),$DU179,$DU$2&ROW($DU179)),$DT179,$DT$2&ROW($DT179)),$DS179,$DS$2&ROW($DS179)))","v":"X=AS179*AU179*10*-0.37"},{"$f":"IF(X179=\"\",0,\"X=\"&SUBSTITUTE(SUBSTITUTE(SUBSTITUTE(SUBSTITUTE(SUBSTITUTE(SUBSTITUTE(SUBSTITUTE(SUBSTITUTE(SUBSTITUTE(SUBSTITUTE(SUBSTITUTE(SUBSTITUTE(X179,$ED179,$ED$2&ROW($ED179)),$EC179,$EC$2&ROW($EC179)),$EB179,$EB$2&ROW($EB179)),$EA179,$EA$2&ROW($EA179)),$DZ179,$DZ$2&ROW($DZ179)),$DY179,$DY$2&ROW($DY179)),$DX179,$DX$2&ROW($DX179)),$DW179,$DW$2&ROW($DW179)),$DV179,$DV$2&ROW($DV179)),$DU179,$DU$2&ROW($DU179)),$DT179,$DT$2&ROW($DT179)),$DS179,$DS$2&ROW($DS179)))","v":"X=AS179*AU179*-0.089"},{"$f":"IF(Y179=\"\",0,\"X=\"&SUBSTITUTE(SUBSTITUTE(SUBSTITUTE(SUBSTITUTE(SUBSTITUTE(SUBSTITUTE(SUBSTITUTE(SUBSTITUTE(SUBSTITUTE(SUBSTITUTE(SUBSTITUTE(SUBSTITUTE(Y179,$ED179,$ED$2&ROW($ED179)),$EC179,$EC$2&ROW($EC179)),$EB179,$EB$2&ROW($EB179)),$EA179,$EA$2&ROW($EA179)),$DZ179,$DZ$2&ROW($DZ179)),$DY179,$DY$2&ROW($DY179)),$DX179,$DX$2&ROW($DX179)),$DW179,$DW$2&ROW($DW179)),$DV179,$DV$2&ROW($DV179)),$DU179,$DU$2&ROW($DU179)),$DT179,$DT$2&ROW($DT179)),$DS179,$DS$2&ROW($DS179)))","v":"X=AS179*AU179*-0.375"},{"$f":"IF(Z179=\"\",0,\"X=\"&SUBSTITUTE(SUBSTITUTE(SUBSTITUTE(SUBSTITUTE(SUBSTITUTE(SUBSTITUTE(SUBSTITUTE(SUBSTITUTE(SUBSTITUTE(SUBSTITUTE(SUBSTITUTE(SUBSTITUTE(Z179,$ED179,$ED$2&ROW($ED179)),$EC179,$EC$2&ROW($EC179)),$EB179,$EB$2&ROW($EB179)),$EA179,$EA$2&ROW($EA179)),$DZ179,$DZ$2&ROW($DZ179)),$DY179,$DY$2&ROW($DY179)),$DX179,$DX$2&ROW($DX179)),$DW179,$DW$2&ROW($DW179)),$DV179,$DV$2&ROW($DV179)),$DU179,$DU$2&ROW($DU179)),$DT179,$DT$2&ROW($DT179)),$DS179,$DS$2&ROW($DS179)))","v":"X=AS179*AU179*-0.014"},{"$f":"IF(AA179=\"\",0,\"X=\"&SUBSTITUTE(SUBSTITUTE(SUBSTITUTE(SUBSTITUTE(SUBSTITUTE(SUBSTITUTE(SUBSTITUTE(SUBSTITUTE(SUBSTITUTE(SUBSTITUTE(SUBSTITUTE(SUBSTITUTE(AA179,$ED179,$ED$2&ROW($ED179)),$EC179,$EC$2&ROW($EC179)),$EB179,$EB$2&ROW($EB179)),$EA179,$EA$2&ROW($EA179)),$DZ179,$DZ$2&ROW($DZ179)),$DY179,$DY$2&ROW($DY179)),$DX179,$DX$2&ROW($DX179)),$DW179,$DW$2&ROW($DW179)),$DV179,$DV$2&ROW($DV179)),$DU179,$DU$2&ROW($DU179)),$DT179,$DT$2&ROW($DT179)),$DS179,$DS$2&ROW($DS179)))","v":"X=AS179*AU179*-0.086"},{"$f":"IF(AB179=\"\",0,\"X=\"&SUBSTITUTE(SUBSTITUTE(SUBSTITUTE(SUBSTITUTE(SUBSTITUTE(SUBSTITUTE(SUBSTITUTE(SUBSTITUTE(SUBSTITUTE(SUBSTITUTE(SUBSTITUTE(SUBSTITUTE(AB179,$ED179,$ED$2&ROW($ED179)),$EC179,$EC$2&ROW($EC179)),$EB179,$EB$2&ROW($EB179)),$EA179,$EA$2&ROW($EA179)),$DZ179,$DZ$2&ROW($DZ179)),$DY179,$DY$2&ROW($DY179)),$DX179,$DX$2&ROW($DX179)),$DW179,$DW$2&ROW($DW179)),$DV179,$DV$2&ROW($DV179)),$DU179,$DU$2&ROW($DU179)),$DT179,$DT$2&ROW($DT179)),$DS179,$DS$2&ROW($DS179)))","v":0},null,null,"{Factor:WinterCF}","{Factor:SummerCF}",{"$f":"IFERROR(INDEX($EG179:$IV179,MATCH(0,COUNTIF($DR179:DT179,$EG179:$IV179),0)),\"\")","v":"{Measure:Quantity}"},{"$f":"IFERROR(INDEX($EG179:$IV179,MATCH(0,COUNTIF($DR179:DU179,$EG179:$IV179),0)),\"\")","v":"{Package Size}"},{"$f":"IFERROR(INDEX($EG179:$IV179,MATCH(0,COUNTIF($DR179:DV179,$EG179:$IV179),0)),\"\")","v":"{Rebate per Package}"},{"$f":"IFERROR(INDEX($EG179:$IV179,MATCH(0,COUNTIF($DR179:DW179,$EG179:$IV179),0)),\"\")","v":""},{"$f":"IFERROR(INDEX($EG179:$IV179,MATCH(0,COUNTIF($DR179:DX179,$EG179:$IV179),0)),\"\")","v":""},{"$f":"IFERROR(INDEX($EG179:$IV179,MATCH(0,COUNTIF($DR179:DY179,$EG179:$IV179),0)),\"\")","v":""},{"$f":"IFERROR(INDEX($EG179:$IV179,MATCH(0,COUNTIF($DR179:DZ179,$EG179:$IV179),0)),\"\")","v":""},{"$f":"IFERROR(INDEX($EG179:$IV179,MATCH(0,COUNTIF($DR179:EA179,$EG179:$IV179),0)),\"\")","v":""},{"$f":"IFERROR(INDEX($EG179:$IV179,MATCH(0,COUNTIF($DR179:EB179,$EG179:$IV179),0)),\"\")","v":""},{"$f":"IFERROR(INDEX($EG179:$IV179,MATCH(0,COUNTIF($DR179:EC179,$EG179:$IV179),0)),\"\")","v":""},null,null,{"$f":"IFERROR(MID($G179,FIND(CHAR(160),SUBSTITUTE($G179,\"{\",CHAR(160),EG$1)),FIND(CHAR(160),SUBSTITUTE($G179,\"}\",CHAR(160),EG$1))-FIND(CHAR(160),SUBSTITUTE($G179,\"{\",CHAR(160),EG$1))+1),\"\")","v":"{Measure:Quantity}"},{"$f":"IFERROR(MID($G179,FIND(CHAR(160),SUBSTITUTE($G179,\"{\",CHAR(160),EH$1)),FIND(CHAR(160),SUBSTITUTE($G179,\"}\",CHAR(160),EH$1))-FIND(CHAR(160),SUBSTITUTE($G179,\"{\",CHAR(160),EH$1))+1),\"\")","v":"{Package Size}"},{"$f":"IFERROR(MID($G179,FIND(CHAR(160),SUBSTITUTE($G179,\"{\",CHAR(160),EI$1)),FIND(CHAR(160),SUBSTITUTE($G179,\"}\",CHAR(160),EI$1))-FIND(CHAR(160),SUBSTITUTE($G179,\"{\",CHAR(160),EI$1))+1),\"\")","v":""},{"$f":"IFERROR(MID($G179,FIND(CHAR(160),SUBSTITUTE($G179,\"{\",CHAR(160),EJ$1)),FIND(CHAR(160),SUBSTITUTE($G179,\"}\",CHAR(160),EJ$1))-FIND(CHAR(160),SUBSTITUTE($G179,\"{\",CHAR(160),EJ$1))+1),\"\")","v":""},{"$f":"IFERROR(MID($G179,FIND(CHAR(160),SUBSTITUTE($G179,\"{\",CHAR(160),EK$1)),FIND(CHAR(160),SUBSTITUTE($G179,\"}\",CHAR(160),EK$1))-FIND(CHAR(160),SUBSTITUTE($G179,\"{\",CHAR(160),EK$1))+1),\"\")","v":""},{"$f":"IFERROR(MID($G179,FIND(CHAR(160),SUBSTITUTE($G179,\"{\",CHAR(160),EL$1)),FIND(CHAR(160),SUBSTITUTE($G179,\"}\",CHAR(160),EL$1))-FIND(CHAR(160),SUBSTITUTE($G179,\"{\",CHAR(160),EL$1))+1),\"\")","v":""},{"$f":"IFERROR(MID($G179,FIND(CHAR(160),SUBSTITUTE($G179,\"{\",CHAR(160),EM$1)),FIND(CHAR(160),SUBSTITUTE($G179,\"}\",CHAR(160),EM$1))-FIND(CHAR(160),SUBSTITUTE($G179,\"{\",CHAR(160),EM$1))+1),\"\")","v":""},{"$f":"IFERROR(MID($G179,FIND(CHAR(160),SUBSTITUTE($G179,\"{\",CHAR(160),EN$1)),FIND(CHAR(160),SUBSTITUTE($G179,\"}\",CHAR(160),EN$1))-FIND(CHAR(160),SUBSTITUTE($G179,\"{\",CHAR(160),EN$1))+1),\"\")","v":""},{"$f":"IFERROR(MID($G179,FIND(CHAR(160),SUBSTITUTE($G179,\"{\",CHAR(160),EO$1)),FIND(CHAR(160),SUBSTITUTE($G179,\"}\",CHAR(160),EO$1))-FIND(CHAR(160),SUBSTITUTE($G179,\"{\",CHAR(160),EO$1))+1),\"\")","v":""},{"$f":"IFERROR(MID($G179,FIND(CHAR(160),SUBSTITUTE($G179,\"{\",CHAR(160),EP$1)),FIND(CHAR(160),SUBSTITUTE($G179,\"}\",CHAR(160),EP$1))-FIND(CHAR(160),SUBSTITUTE($G179,\"{\",CHAR(160),EP$1))+1),\"\")","v":""},{"$f":"IFERROR(MID($J179,FIND(CHAR(160),SUBSTITUTE($J179,\"{\",CHAR(160),EQ$1)),FIND(CHAR(160),SUBSTITUTE($J179,\"}\",CHAR(160),EQ$1))-FIND(CHAR(160),SUBSTITUTE($J179,\"{\",CHAR(160),EQ$1))+1),\"\")","v":"{Measure:Quantity}"},{"$f":"IFERROR(MID($J179,FIND(CHAR(160),SUBSTITUTE($J179,\"{\",CHAR(160),ER$1)),FIND(CHAR(160),SUBSTITUTE($J179,\"}\",CHAR(160),ER$1))-FIND(CHAR(160),SUBSTITUTE($J179,\"{\",CHAR(160),ER$1))+1),\"\")","v":"{Rebate per Package}"},{"$f":"IFERROR(MID($J179,FIND(CHAR(160),SUBSTITUTE($J179,\"{\",CHAR(160),ES$1)),FIND(CHAR(160),SUBSTITUTE($J179,\"}\",CHAR(160),ES$1))-FIND(CHAR(160),SUBSTITUTE($J179,\"{\",CHAR(160),ES$1))+1),\"\")","v":""},{"$f":"IFERROR(MID($J179,FIND(CHAR(160),SUBSTITUTE($J179,\"{\",CHAR(160),ET$1)),FIND(CHAR(160),SUBSTITUTE($J179,\"}\",CHAR(160),ET$1))-FIND(CHAR(160),SUBSTITUTE($J179,\"{\",CHAR(160),ET$1))+1),\"\")","v":""},{"$f":"IFERROR(MID($J179,FIND(CHAR(160),SUBSTITUTE($J179,\"{\",CHAR(160),EU$1)),FIND(CHAR(160),SUBSTITUTE($J179,\"}\",CHAR(160),EU$1))-FIND(CHAR(160),SUBSTITUTE($J179,\"{\",CHAR(160),EU$1))+1),\"\")","v":""},{"$f":"IFERROR(MID($J179,FIND(CHAR(160),SUBSTITUTE($J179,\"{\",CHAR(160),EV$1)),FIND(CHAR(160),SUBSTITUTE($J179,\"}\",CHAR(160),EV$1))-FIND(CHAR(160),SUBSTITUTE($J179,\"{\",CHAR(160),EV$1))+1),\"\")","v":""},{"$f":"IFERROR(MID($J179,FIND(CHAR(160),SUBSTITUTE($J179,\"{\",CHAR(160),EW$1)),FIND(CHAR(160),SUBSTITUTE($J179,\"}\",CHAR(160),EW$1))-FIND(CHAR(160),SUBSTITUTE($J179,\"{\",CHAR(160),EW$1))+1),\"\")","v":""},{"$f":"IFERROR(MID($J179,FIND(CHAR(160),SUBSTITUTE($J179,\"{\",CHAR(160),EX$1)),FIND(CHAR(160),SUBSTITUTE($J179,\"}\",CHAR(160),EX$1))-FIND(CHAR(160),SUBSTITUTE($J179,\"{\",CHAR(160),EX$1))+1),\"\")","v":""},{"$f":"IFERROR(MID($J179,FIND(CHAR(160),SUBSTITUTE($J179,\"{\",CHAR(160),EY$1)),FIND(CHAR(160),SUBSTITUTE($J179,\"}\",CHAR(160),EY$1))-FIND(CHAR(160),SUBSTITUTE($J179,\"{\",CHAR(160),EY$1))+1),\"\")","v":""},{"$f":"IFERROR(MID($J179,FIND(CHAR(160),SUBSTITUTE($J179,\"{\",CHAR(160),EZ$1)),FIND(CHAR(160),SUBSTITUTE($J179,\"}\",CHAR(160),EZ$1))-FIND(CHAR(160),SUBSTITUTE($J179,\"{\",CHAR(160),EZ$1))+1),\"\")","v":""},{"$f":"IFERROR(MID($J179,FIND(CHAR(160),SUBSTITUTE($J179,\"{\",CHAR(160),FA$1)),FIND(CHAR(160),SUBSTITUTE($J179,\"}\",CHAR(160),FA$1))-FIND(CHAR(160),SUBSTITUTE($J179,\"{\",CHAR(160),FA$1))+1),\"\")","v":"{Measure:Quantity}"},{"$f":"IFERROR(MID($J179,FIND(CHAR(160),SUBSTITUTE($J179,\"{\",CHAR(160),FB$1)),FIND(CHAR(160),SUBSTITUTE($J179,\"}\",CHAR(160),FB$1))-FIND(CHAR(160),SUBSTITUTE($J179,\"{\",CHAR(160),FB$1))+1),\"\")","v":"{Rebate per Package}"},{"$f":"IFERROR(MID($O179,FIND(CHAR(160),SUBSTITUTE($O179,\"{\",CHAR(160),FC$1)),FIND(CHAR(160),SUBSTITUTE($O179,\"}\",CHAR(160),FC$1))-FIND(CHAR(160),SUBSTITUTE($O179,\"{\",CHAR(160),FC$1))+1),\"\")","v":""},{"$f":"IFERROR(MID($O179,FIND(CHAR(160),SUBSTITUTE($O179,\"{\",CHAR(160),FD$1)),FIND(CHAR(160),SUBSTITUTE($O179,\"}\",CHAR(160),FD$1))-FIND(CHAR(160),SUBSTITUTE($O179,\"{\",CHAR(160),FD$1))+1),\"\")","v":""},{"$f":"IFERROR(MID($O179,FIND(CHAR(160),SUBSTITUTE($O179,\"{\",CHAR(160),FE$1)),FIND(CHAR(160),SUBSTITUTE($O179,\"}\",CHAR(160),FE$1))-FIND(CHAR(160),SUBSTITUTE($O179,\"{\",CHAR(160),FE$1))+1),\"\")","v":""},{"$f":"IFERROR(MID($O179,FIND(CHAR(160),SUBSTITUTE($O179,\"{\",CHAR(160),FF$1)),FIND(CHAR(160),SUBSTITUTE($O179,\"}\",CHAR(160),FF$1))-FIND(CHAR(160),SUBSTITUTE($O179,\"{\",CHAR(160),FF$1))+1),\"\")","v":""},{"$f":"IFERROR(MID($O179,FIND(CHAR(160),SUBSTITUTE($O179,\"{\",CHAR(160),FG$1)),FIND(CHAR(160),SUBSTITUTE($O179,\"}\",CHAR(160),FG$1))-FIND(CHAR(160),SUBSTITUTE($O179,\"{\",CHAR(160),FG$1))+1),\"\")","v":""},{"$f":"IFERROR(MID($O179,FIND(CHAR(160),SUBSTITUTE($O179,\"{\",CHAR(160),FH$1)),FIND(CHAR(160),SUBSTITUTE($O179,\"}\",CHAR(160),FH$1))-FIND(CHAR(160),SUBSTITUTE($O179,\"{\",CHAR(160),FH$1))+1),\"\")","v":""},{"$f":"IFERROR(MID($O179,FIND(CHAR(160),SUBSTITUTE($O179,\"{\",CHAR(160),FI$1)),FIND(CHAR(160),SUBSTITUTE($O179,\"}\",CHAR(160),FI$1))-FIND(CHAR(160),SUBSTITUTE($O179,\"{\",CHAR(160),FI$1))+1),\"\")","v":""},{"$f":"IFERROR(MID($O179,FIND(CHAR(160),SUBSTITUTE($O179,\"{\",CHAR(160),FJ$1)),FIND(CHAR(160),SUBSTITUTE($O179,\"}\",CHAR(160),FJ$1))-FIND(CHAR(160),SUBSTITUTE($O179,\"{\",CHAR(160),FJ$1))+1),\"\")","v":""},{"$f":"IFERROR(MID($O179,FIND(CHAR(160),SUBSTITUTE($O179,\"{\",CHAR(160),FK$1)),FIND(CHAR(160),SUBSTITUTE($O179,\"}\",CHAR(160),FK$1))-FIND(CHAR(160),SUBSTITUTE($O179,\"{\",CHAR(160),FK$1))+1),\"\")","v":"{Measure:Quantity}"},{"$f":"IFERROR(MID($O179,FIND(CHAR(160),SUBSTITUTE($O179,\"{\",CHAR(160),FL$1)),FIND(CHAR(160),SUBSTITUTE($O179,\"}\",CHAR(160),FL$1))-FIND(CHAR(160),SUBSTITUTE($O179,\"{\",CHAR(160),FL$1))+1),\"\")","v":"{Package Size}"},{"$f":"IFERROR(MID($R179,FIND(CHAR(160),SUBSTITUTE($R179,\"{\",CHAR(160),FM$1)),FIND(CHAR(160),SUBSTITUTE($R179,\"}\",CHAR(160),FM$1))-FIND(CHAR(160),SUBSTITUTE($R179,\"{\",CHAR(160),FM$1))+1),\"\")","v":""},{"$f":"IFERROR(MID($R179,FIND(CHAR(160),SUBSTITUTE($R179,\"{\",CHAR(160),FN$1)),FIND(CHAR(160),SUBSTITUTE($R179,\"}\",CHAR(160),FN$1))-FIND(CHAR(160),SUBSTITUTE($R179,\"{\",CHAR(160),FN$1))+1),\"\")","v":""},{"$f":"IFERROR(MID($R179,FIND(CHAR(160),SUBSTITUTE($R179,\"{\",CHAR(160),FO$1)),FIND(CHAR(160),SUBSTITUTE($R179,\"}\",CHAR(160),FO$1))-FIND(CHAR(160),SUBSTITUTE($R179,\"{\",CHAR(160),FO$1))+1),\"\")","v":""},{"$f":"IFERROR(MID($R179,FIND(CHAR(160),SUBSTITUTE($R179,\"{\",CHAR(160),FP$1)),FIND(CHAR(160),SUBSTITUTE($R179,\"}\",CHAR(160),FP$1))-FIND(CHAR(160),SUBSTITUTE($R179,\"{\",CHAR(160),FP$1))+1),\"\")","v":""},{"$f":"IFERROR(MID($R179,FIND(CHAR(160),SUBSTITUTE($R179,\"{\",CHAR(160),FQ$1)),FIND(CHAR(160),SUBSTITUTE($R179,\"}\",CHAR(160),FQ$1))-FIND(CHAR(160),SUBSTITUTE($R179,\"{\",CHAR(160),FQ$1))+1),\"\")","v":""},{"$f":"IFERROR(MID($R179,FIND(CHAR(160),SUBSTITUTE($R179,\"{\",CHAR(160),FR$1)),FIND(CHAR(160),SUBSTITUTE($R179,\"}\",CHAR(160),FR$1))-FIND(CHAR(160),SUBSTITUTE($R179,\"{\",CHAR(160),FR$1))+1),\"\")","v":""},{"$f":"IFERROR(MID($R179,FIND(CHAR(160),SUBSTITUTE($R179,\"{\",CHAR(160),FS$1)),FIND(CHAR(160),SUBSTITUTE($R179,\"}\",CHAR(160),FS$1))-FIND(CHAR(160),SUBSTITUTE($R179,\"{\",CHAR(160),FS$1))+1),\"\")","v":""},{"$f":"IFERROR(MID($R179,FIND(CHAR(160),SUBSTITUTE($R179,\"{\",CHAR(160),FT$1)),FIND(CHAR(160),SUBSTITUTE($R179,\"}\",CHAR(160),FT$1))-FIND(CHAR(160),SUBSTITUTE($R179,\"{\",CHAR(160),FT$1))+1),\"\")","v":""},{"$f":"IFERROR(MID($R179,FIND(CHAR(160),SUBSTITUTE($R179,\"{\",CHAR(160),FU$1)),FIND(CHAR(160),SUBSTITUTE($R179,\"}\",CHAR(160),FU$1))-FIND(CHAR(160),SUBSTITUTE($R179,\"{\",CHAR(160),FU$1))+1),\"\")","v":"{Measure:Quantity}"},{"$f":"IFERROR(MID($R179,FIND(CHAR(160),SUBSTITUTE($R179,\"{\",CHAR(160),FV$1)),FIND(CHAR(160),SUBSTITUTE($R179,\"}\",CHAR(160),FV$1))-FIND(CHAR(160),SUBSTITUTE($R179,\"{\",CHAR(160),FV$1))+1),\"\")","v":"{Package Size}"},{"$f":"IFERROR(MID($U179,FIND(CHAR(160),SUBSTITUTE($U179,\"{\",CHAR(160),FW$1)),FIND(CHAR(160),SUBSTITUTE($U179,\"}\",CHAR(160),FW$1))-FIND(CHAR(160),SUBSTITUTE($U179,\"{\",CHAR(160),FW$1))+1),\"\")","v":"{Factor:WinterCF}"},{"$f":"IFERROR(MID($U179,FIND(CHAR(160),SUBSTITUTE($U179,\"{\",CHAR(160),FX$1)),FIND(CHAR(160),SUBSTITUTE($U179,\"}\",CHAR(160),FX$1))-FIND(CHAR(160),SUBSTITUTE($U179,\"{\",CHAR(160),FX$1))+1),\"\")","v":""},{"$f":"IFERROR(MID($U179,FIND(CHAR(160),SUBSTITUTE($U179,\"{\",CHAR(160),FY$1)),FIND(CHAR(160),SUBSTITUTE($U179,\"}\",CHAR(160),FY$1))-FIND(CHAR(160),SUBSTITUTE($U179,\"{\",CHAR(160),FY$1))+1),\"\")","v":""},{"$f":"IFERROR(MID($U179,FIND(CHAR(160),SUBSTITUTE($U179,\"{\",CHAR(160),FZ$1)),FIND(CHAR(160),SUBSTITUTE($U179,\"}\",CHAR(160),FZ$1))-FIND(CHAR(160),SUBSTITUTE($U179,\"{\",CHAR(160),FZ$1))+1),\"\")","v":""},{"$f":"IFERROR(MID($U179,FIND(CHAR(160),SUBSTITUTE($U179,\"{\",CHAR(160),GA$1)),FIND(CHAR(160),SUBSTITUTE($U179,\"}\",CHAR(160),GA$1))-FIND(CHAR(160),SUBSTITUTE($U179,\"{\",CHAR(160),GA$1))+1),\"\")","v":""},{"$f":"IFERROR(MID($U179,FIND(CHAR(160),SUBSTITUTE($U179,\"{\",CHAR(160),GB$1)),FIND(CHAR(160),SUBSTITUTE($U179,\"}\",CHAR(160),GB$1))-FIND(CHAR(160),SUBSTITUTE($U179,\"{\",CHAR(160),GB$1))+1),\"\")","v":""},{"$f":"IFERROR(MID($U179,FIND(CHAR(160),SUBSTITUTE($U179,\"{\",CHAR(160),GC$1)),FIND(CHAR(160),SUBSTITUTE($U179,\"}\",CHAR(160),GC$1))-FIND(CHAR(160),SUBSTITUTE($U179,\"{\",CHAR(160),GC$1))+1),\"\")","v":""},{"$f":"IFERROR(MID($U179,FIND(CHAR(160),SUBSTITUTE($U179,\"{\",CHAR(160),GD$1)),FIND(CHAR(160),SUBSTITUTE($U179,\"}\",CHAR(160),GD$1))-FIND(CHAR(160),SUBSTITUTE($U179,\"{\",CHAR(160),GD$1))+1),\"\")","v":""},{"$f":"IFERROR(MID($U179,FIND(CHAR(160),SUBSTITUTE($U179,\"{\",CHAR(160),GE$1)),FIND(CHAR(160),SUBSTITUTE($U179,\"}\",CHAR(160),GE$1))-FIND(CHAR(160),SUBSTITUTE($U179,\"{\",CHAR(160),GE$1))+1),\"\")","v":"{Measure:Quantity}"},{"$f":"IFERROR(MID($U179,FIND(CHAR(160),SUBSTITUTE($U179,\"{\",CHAR(160),GF$1)),FIND(CHAR(160),SUBSTITUTE($U179,\"}\",CHAR(160),GF$1))-FIND(CHAR(160),SUBSTITUTE($U179,\"{\",CHAR(160),GF$1))+1),\"\")","v":"{Package Size}"},{"$f":"IFERROR(MID($V179,FIND(CHAR(160),SUBSTITUTE($V179,\"{\",CHAR(160),GG$1)),FIND(CHAR(160),SUBSTITUTE($V179,\"}\",CHAR(160),GG$1))-FIND(CHAR(160),SUBSTITUTE($V179,\"{\",CHAR(160),GG$1))+1),\"\")","v":"{Factor:SummerCF}"},{"$f":"IFERROR(MID($V179,FIND(CHAR(160),SUBSTITUTE($V179,\"{\",CHAR(160),GH$1)),FIND(CHAR(160),SUBSTITUTE($V179,\"}\",CHAR(160),GH$1))-FIND(CHAR(160),SUBSTITUTE($V179,\"{\",CHAR(160),GH$1))+1),\"\")","v":""},{"$f":"IFERROR(MID($V179,FIND(CHAR(160),SUBSTITUTE($V179,\"{\",CHAR(160),GI$1)),FIND(CHAR(160),SUBSTITUTE($V179,\"}\",CHAR(160),GI$1))-FIND(CHAR(160),SUBSTITUTE($V179,\"{\",CHAR(160),GI$1))+1),\"\")","v":""},{"$f":"IFERROR(MID($V179,FIND(CHAR(160),SUBSTITUTE($V179,\"{\",CHAR(160),GJ$1)),FIND(CHAR(160),SUBSTITUTE($V179,\"}\",CHAR(160),GJ$1))-FIND(CHAR(160),SUBSTITUTE($V179,\"{\",CHAR(160),GJ$1))+1),\"\")","v":""},{"$f":"IFERROR(MID($V179,FIND(CHAR(160),SUBSTITUTE($V179,\"{\",CHAR(160),GK$1)),FIND(CHAR(160),SUBSTITUTE($V179,\"}\",CHAR(160),GK$1))-FIND(CHAR(160),SUBSTITUTE($V179,\"{\",CHAR(160),GK$1))+1),\"\")","v":""},{"$f":"IFERROR(MID($V179,FIND(CHAR(160),SUBSTITUTE($V179,\"{\",CHAR(160),GL$1)),FIND(CHAR(160),SUBSTITUTE($V179,\"}\",CHAR(160),GL$1))-FIND(CHAR(160),SUBSTITUTE($V179,\"{\",CHAR(160),GL$1))+1),\"\")","v":""},{"$f":"IFERROR(MID($V179,FIND(CHAR(160),SUBSTITUTE($V179,\"{\",CHAR(160),GM$1)),FIND(CHAR(160),SUBSTITUTE($V179,\"}\",CHAR(160),GM$1))-FIND(CHAR(160),SUBSTITUTE($V179,\"{\",CHAR(160),GM$1))+1),\"\")","v":""},{"$f":"IFERROR(MID($V179,FIND(CHAR(160),SUBSTITUTE($V179,\"{\",CHAR(160),GN$1)),FIND(CHAR(160),SUBSTITUTE($V179,\"}\",CHAR(160),GN$1))-FIND(CHAR(160),SUBSTITUTE($V179,\"{\",CHAR(160),GN$1))+1),\"\")","v":""},{"$f":"IFERROR(MID($V179,FIND(CHAR(160),SUBSTITUTE($V179,\"{\",CHAR(160),GO$1)),FIND(CHAR(160),SUBSTITUTE($V179,\"}\",CHAR(160),GO$1))-FIND(CHAR(160),SUBSTITUTE($V179,\"{\",CHAR(160),GO$1))+1),\"\")","v":"{Measure:Quantity}"},{"$f":"IFERROR(MID($V179,FIND(CHAR(160),SUBSTITUTE($V179,\"{\",CHAR(160),GP$1)),FIND(CHAR(160),SUBSTITUTE($V179,\"}\",CHAR(160),GP$1))-FIND(CHAR(160),SUBSTITUTE($V179,\"{\",CHAR(160),GP$1))+1),\"\")","v":"{Package Size}"},{"$f":"IFERROR(MID($W179,FIND(CHAR(160),SUBSTITUTE($W179,\"{\",CHAR(160),GQ$1)),FIND(CHAR(160),SUBSTITUTE($W179,\"}\",CHAR(160),GQ$1))-FIND(CHAR(160),SUBSTITUTE($W179,\"{\",CHAR(160),GQ$1))+1),\"\")","v":""},{"$f":"IFERROR(MID($W179,FIND(CHAR(160),SUBSTITUTE($W179,\"{\",CHAR(160),GR$1)),FIND(CHAR(160),SUBSTITUTE($W179,\"}\",CHAR(160),GR$1))-FIND(CHAR(160),SUBSTITUTE($W179,\"{\",CHAR(160),GR$1))+1),\"\")","v":""},{"$f":"IFERROR(MID($W179,FIND(CHAR(160),SUBSTITUTE($W179,\"{\",CHAR(160),GS$1)),FIND(CHAR(160),SUBSTITUTE($W179,\"}\",CHAR(160),GS$1))-FIND(CHAR(160),SUBSTITUTE($W179,\"{\",CHAR(160),GS$1))+1),\"\")","v":""},{"$f":"IFERROR(MID($W179,FIND(CHAR(160),SUBSTITUTE($W179,\"{\",CHAR(160),GT$1)),FIND(CHAR(160),SUBSTITUTE($W179,\"}\",CHAR(160),GT$1))-FIND(CHAR(160),SUBSTITUTE($W179,\"{\",CHAR(160),GT$1))+1),\"\")","v":""},{"$f":"IFERROR(MID($W179,FIND(CHAR(160),SUBSTITUTE($W179,\"{\",CHAR(160),GU$1)),FIND(CHAR(160),SUBSTITUTE($W179,\"}\",CHAR(160),GU$1))-FIND(CHAR(160),SUBSTITUTE($W179,\"{\",CHAR(160),GU$1))+1),\"\")","v":""},{"$f":"IFERROR(MID($W179,FIND(CHAR(160),SUBSTITUTE($W179,\"{\",CHAR(160),GV$1)),FIND(CHAR(160),SUBSTITUTE($W179,\"}\",CHAR(160),GV$1))-FIND(CHAR(160),SUBSTITUTE($W179,\"{\",CHAR(160),GV$1))+1),\"\")","v":""},{"$f":"IFERROR(MID($W179,FIND(CHAR(160),SUBSTITUTE($W179,\"{\",CHAR(160),GW$1)),FIND(CHAR(160),SUBSTITUTE($W179,\"}\",CHAR(160),GW$1))-FIND(CHAR(160),SUBSTITUTE($W179,\"{\",CHAR(160),GW$1))+1),\"\")","v":""},{"$f":"IFERROR(MID($W179,FIND(CHAR(160),SUBSTITUTE($W179,\"{\",CHAR(160),GX$1)),FIND(CHAR(160),SUBSTITUTE($W179,\"}\",CHAR(160),GX$1))-FIND(CHAR(160),SUBSTITUTE($W179,\"{\",CHAR(160),GX$1))+1),\"\")","v":""},{"$f":"IFERROR(MID($W179,FIND(CHAR(160),SUBSTITUTE($W179,\"{\",CHAR(160),GY$1)),FIND(CHAR(160),SUBSTITUTE($W179,\"}\",CHAR(160),GY$1))-FIND(CHAR(160),SUBSTITUTE($W179,\"{\",CHAR(160),GY$1))+1),\"\")","v":"{Measure:Quantity}"},{"$f":"IFERROR(MID($W179,FIND(CHAR(160),SUBSTITUTE($W179,\"{\",CHAR(160),GZ$1)),FIND(CHAR(160),SUBSTITUTE($W179,\"}\",CHAR(160),GZ$1))-FIND(CHAR(160),SUBSTITUTE($W179,\"{\",CHAR(160),GZ$1))+1),\"\")","v":"{Package Size}"},{"$f":"IFERROR(MID($X179,FIND(CHAR(160),SUBSTITUTE($X179,\"{\",CHAR(160),HA$1)),FIND(CHAR(160),SUBSTITUTE($X179,\"}\",CHAR(160),HA$1))-FIND(CHAR(160),SUBSTITUTE($X179,\"{\",CHAR(160),HA$1))+1),\"\")","v":""},{"$f":"IFERROR(MID($X179,FIND(CHAR(160),SUBSTITUTE($X179,\"{\",CHAR(160),HB$1)),FIND(CHAR(160),SUBSTITUTE($X179,\"}\",CHAR(160),HB$1))-FIND(CHAR(160),SUBSTITUTE($X179,\"{\",CHAR(160),HB$1))+1),\"\")","v":""},{"$f":"IFERROR(MID($X179,FIND(CHAR(160),SUBSTITUTE($X179,\"{\",CHAR(160),HC$1)),FIND(CHAR(160),SUBSTITUTE($X179,\"}\",CHAR(160),HC$1))-FIND(CHAR(160),SUBSTITUTE($X179,\"{\",CHAR(160),HC$1))+1),\"\")","v":""},{"$f":"IFERROR(MID($X179,FIND(CHAR(160),SUBSTITUTE($X179,\"{\",CHAR(160),HD$1)),FIND(CHAR(160),SUBSTITUTE($X179,\"}\",CHAR(160),HD$1))-FIND(CHAR(160),SUBSTITUTE($X179,\"{\",CHAR(160),HD$1))+1),\"\")","v":""},{"$f":"IFERROR(MID($X179,FIND(CHAR(160),SUBSTITUTE($X179,\"{\",CHAR(160),HE$1)),FIND(CHAR(160),SUBSTITUTE($X179,\"}\",CHAR(160),HE$1))-FIND(CHAR(160),SUBSTITUTE($X179,\"{\",CHAR(160),HE$1))+1),\"\")","v":""},{"$f":"IFERROR(MID($X179,FIND(CHAR(160),SUBSTITUTE($X179,\"{\",CHAR(160),HF$1)),FIND(CHAR(160),SUBSTITUTE($X179,\"}\",CHAR(160),HF$1))-FIND(CHAR(160),SUBSTITUTE($X179,\"{\",CHAR(160),HF$1))+1),\"\")","v":""},{"$f":"IFERROR(MID($X179,FIND(CHAR(160),SUBSTITUTE($X179,\"{\",CHAR(160),HG$1)),FIND(CHAR(160),SUBSTITUTE($X179,\"}\",CHAR(160),HG$1))-FIND(CHAR(160),SUBSTITUTE($X179,\"{\",CHAR(160),HG$1))+1),\"\")","v":""},{"$f":"IFERROR(MID($X179,FIND(CHAR(160),SUBSTITUTE($X179,\"{\",CHAR(160),HH$1)),FIND(CHAR(160),SUBSTITUTE($X179,\"}\",CHAR(160),HH$1))-FIND(CHAR(160),SUBSTITUTE($X179,\"{\",CHAR(160),HH$1))+1),\"\")","v":""},{"$f":"IFERROR(MID($X179,FIND(CHAR(160),SUBSTITUTE($X179,\"{\",CHAR(160),HI$1)),FIND(CHAR(160),SUBSTITUTE($X179,\"}\",CHAR(160),HI$1))-FIND(CHAR(160),SUBSTITUTE($X179,\"{\",CHAR(160),HI$1))+1),\"\")","v":"{Measure:Quantity}"},{"$f":"IFERROR(MID($X179,FIND(CHAR(160),SUBSTITUTE($X179,\"{\",CHAR(160),HJ$1)),FIND(CHAR(160),SUBSTITUTE($X179,\"}\",CHAR(160),HJ$1))-FIND(CHAR(160),SUBSTITUTE($X179,\"{\",CHAR(160),HJ$1))+1),\"\")","v":"{Package Size}"},{"$f":"IFERROR(MID($Y179,FIND(CHAR(160),SUBSTITUTE($Y179,\"{\",CHAR(160),HK$1)),FIND(CHAR(160),SUBSTITUTE($Y179,\"}\",CHAR(160),HK$1))-FIND(CHAR(160),SUBSTITUTE($Y179,\"{\",CHAR(160),HK$1))+1),\"\")","v":""},{"$f":"IFERROR(MID($Y179,FIND(CHAR(160),SUBSTITUTE($Y179,\"{\",CHAR(160),HL$1)),FIND(CHAR(160),SUBSTITUTE($Y179,\"}\",CHAR(160),HL$1))-FIND(CHAR(160),SUBSTITUTE($Y179,\"{\",CHAR(160),HL$1))+1),\"\")","v":""},{"$f":"IFERROR(MID($Y179,FIND(CHAR(160),SUBSTITUTE($Y179,\"{\",CHAR(160),HM$1)),FIND(CHAR(160),SUBSTITUTE($Y179,\"}\",CHAR(160),HM$1))-FIND(CHAR(160),SUBSTITUTE($Y179,\"{\",CHAR(160),HM$1))+1),\"\")","v":""},{"$f":"IFERROR(MID($Y179,FIND(CHAR(160),SUBSTITUTE($Y179,\"{\",CHAR(160),HN$1)),FIND(CHAR(160),SUBSTITUTE($Y179,\"}\",CHAR(160),HN$1))-FIND(CHAR(160),SUBSTITUTE($Y179,\"{\",CHAR(160),HN$1))+1),\"\")","v":""},{"$f":"IFERROR(MID($Y179,FIND(CHAR(160),SUBSTITUTE($Y179,\"{\",CHAR(160),HO$1)),FIND(CHAR(160),SUBSTITUTE($Y179,\"}\",CHAR(160),HO$1))-FIND(CHAR(160),SUBSTITUTE($Y179,\"{\",CHAR(160),HO$1))+1),\"\")","v":""},{"$f":"IFERROR(MID($Y179,FIND(CHAR(160),SUBSTITUTE($Y179,\"{\",CHAR(160),HP$1)),FIND(CHAR(160),SUBSTITUTE($Y179,\"}\",CHAR(160),HP$1))-FIND(CHAR(160),SUBSTITUTE($Y179,\"{\",CHAR(160),HP$1))+1),\"\")","v":""},{"$f":"IFERROR(MID($Y179,FIND(CHAR(160),SUBSTITUTE($Y179,\"{\",CHAR(160),HQ$1)),FIND(CHAR(160),SUBSTITUTE($Y179,\"}\",CHAR(160),HQ$1))-FIND(CHAR(160),SUBSTITUTE($Y179,\"{\",CHAR(160),HQ$1))+1),\"\")","v":""},{"$f":"IFERROR(MID($Y179,FIND(CHAR(160),SUBSTITUTE($Y179,\"{\",CHAR(160),HR$1)),FIND(CHAR(160),SUBSTITUTE($Y179,\"}\",CHAR(160),HR$1))-FIND(CHAR(160),SUBSTITUTE($Y179,\"{\",CHAR(160),HR$1))+1),\"\")","v":""},{"$f":"IFERROR(MID($Y179,FIND(CHAR(160),SUBSTITUTE($Y179,\"{\",CHAR(160),HS$1)),FIND(CHAR(160),SUBSTITUTE($Y179,\"}\",CHAR(160),HS$1))-FIND(CHAR(160),SUBSTITUTE($Y179,\"{\",CHAR(160),HS$1))+1),\"\")","v":"{Measure:Quantity}"},{"$f":"IFERROR(MID($Y179,FIND(CHAR(160),SUBSTITUTE($Y179,\"{\",CHAR(160),HT$1)),FIND(CHAR(160),SUBSTITUTE($Y179,\"}\",CHAR(160),HT$1))-FIND(CHAR(160),SUBSTITUTE($Y179,\"{\",CHAR(160),HT$1))+1),\"\")","v":"{Package Size}"},{"$f":"IFERROR(MID($Z179,FIND(CHAR(160),SUBSTITUTE($Z179,\"{\",CHAR(160),HU$1)),FIND(CHAR(160),SUBSTITUTE($Z179,\"}\",CHAR(160),HU$1))-FIND(CHAR(160),SUBSTITUTE($Z179,\"{\",CHAR(160),HU$1))+1),\"\")","v":""},{"$f":"IFERROR(MID($Z179,FIND(CHAR(160),SUBSTITUTE($Z179,\"{\",CHAR(160),HV$1)),FIND(CHAR(160),SUBSTITUTE($Z179,\"}\",CHAR(160),HV$1))-FIND(CHAR(160),SUBSTITUTE($Z179,\"{\",CHAR(160),HV$1))+1),\"\")","v":""},{"$f":"IFERROR(MID($Z179,FIND(CHAR(160),SUBSTITUTE($Z179,\"{\",CHAR(160),HW$1)),FIND(CHAR(160),SUBSTITUTE($Z179,\"}\",CHAR(160),HW$1))-FIND(CHAR(160),SUBSTITUTE($Z179,\"{\",CHAR(160),HW$1))+1),\"\")","v":""},{"$f":"IFERROR(MID($Z179,FIND(CHAR(160),SUBSTITUTE($Z179,\"{\",CHAR(160),HX$1)),FIND(CHAR(160),SUBSTITUTE($Z179,\"}\",CHAR(160),HX$1))-FIND(CHAR(160),SUBSTITUTE($Z179,\"{\",CHAR(160),HX$1))+1),\"\")","v":""},{"$f":"IFERROR(MID($Z179,FIND(CHAR(160),SUBSTITUTE($Z179,\"{\",CHAR(160),HY$1)),FIND(CHAR(160),SUBSTITUTE($Z179,\"}\",CHAR(160),HY$1))-FIND(CHAR(160),SUBSTITUTE($Z179,\"{\",CHAR(160),HY$1))+1),\"\")","v":""},{"$f":"IFERROR(MID($Z179,FIND(CHAR(160),SUBSTITUTE($Z179,\"{\",CHAR(160),HZ$1)),FIND(CHAR(160),SUBSTITUTE($Z179,\"}\",CHAR(160),HZ$1))-FIND(CHAR(160),SUBSTITUTE($Z179,\"{\",CHAR(160),HZ$1))+1),\"\")","v":""},{"$f":"IFERROR(MID($Z179,FIND(CHAR(160),SUBSTITUTE($Z179,\"{\",CHAR(160),IA$1)),FIND(CHAR(160),SUBSTITUTE($Z179,\"}\",CHAR(160),IA$1))-FIND(CHAR(160),SUBSTITUTE($Z179,\"{\",CHAR(160),IA$1))+1),\"\")","v":""},{"$f":"IFERROR(MID($Z179,FIND(CHAR(160),SUBSTITUTE($Z179,\"{\",CHAR(160),IB$1)),FIND(CHAR(160),SUBSTITUTE($Z179,\"}\",CHAR(160),IB$1))-FIND(CHAR(160),SUBSTITUTE($Z179,\"{\",CHAR(160),IB$1))+1),\"\")","v":""},{"$f":"IFERROR(MID($Z179,FIND(CHAR(160),SUBSTITUTE($Z179,\"{\",CHAR(160),IC$1)),FIND(CHAR(160),SUBSTITUTE($Z179,\"}\",CHAR(160),IC$1))-FIND(CHAR(160),SUBSTITUTE($Z179,\"{\",CHAR(160),IC$1))+1),\"\")","v":"{Measure:Quantity}"},{"$f":"IFERROR(MID($Z179,FIND(CHAR(160),SUBSTITUTE($Z179,\"{\",CHAR(160),ID$1)),FIND(CHAR(160),SUBSTITUTE($Z179,\"}\",CHAR(160),ID$1))-FIND(CHAR(160),SUBSTITUTE($Z179,\"{\",CHAR(160),ID$1))+1),\"\")","v":"{Package Size}"},{"$f":"IFERROR(MID($AA179,FIND(CHAR(160),SUBSTITUTE($AA179,\"{\",CHAR(160),IE$1)),FIND(CHAR(160),SUBSTITUTE($AA179,\"}\",CHAR(160),IE$1))-FIND(CHAR(160),SUBSTITUTE($AA179,\"{\",CHAR(160),IE$1))+1),\"\")","v":""},{"$f":"IFERROR(MID($AA179,FIND(CHAR(160),SUBSTITUTE($AA179,\"{\",CHAR(160),IF$1)),FIND(CHAR(160),SUBSTITUTE($AA179,\"}\",CHAR(160),IF$1))-FIND(CHAR(160),SUBSTITUTE($AA179,\"{\",CHAR(160),IF$1))+1),\"\")","v":""},{"$f":"IFERROR(MID($AA179,FIND(CHAR(160),SUBSTITUTE($AA179,\"{\",CHAR(160),IG$1)),FIND(CHAR(160),SUBSTITUTE($AA179,\"}\",CHAR(160),IG$1))-FIND(CHAR(160),SUBSTITUTE($AA179,\"{\",CHAR(160),IG$1))+1),\"\")","v":""},{"$f":"IFERROR(MID($AA179,FIND(CHAR(160),SUBSTITUTE($AA179,\"{\",CHAR(160),IH$1)),FIND(CHAR(160),SUBSTITUTE($AA179,\"}\",CHAR(160),IH$1))-FIND(CHAR(160),SUBSTITUTE($AA179,\"{\",CHAR(160),IH$1))+1),\"\")","v":""},{"$f":"IFERROR(MID($AA179,FIND(CHAR(160),SUBSTITUTE($AA179,\"{\",CHAR(160),II$1)),FIND(CHAR(160),SUBSTITUTE($AA179,\"}\",CHAR(160),II$1))-FIND(CHAR(160),SUBSTITUTE($AA179,\"{\",CHAR(160),II$1))+1),\"\")","v":""},{"$f":"IFERROR(MID($AA179,FIND(CHAR(160),SUBSTITUTE($AA179,\"{\",CHAR(160),IJ$1)),FIND(CHAR(160),SUBSTITUTE($AA179,\"}\",CHAR(160),IJ$1))-FIND(CHAR(160),SUBSTITUTE($AA179,\"{\",CHAR(160),IJ$1))+1),\"\")","v":""},{"$f":"IFERROR(MID($AA179,FIND(CHAR(160),SUBSTITUTE($AA179,\"{\",CHAR(160),IK$1)),FIND(CHAR(160),SUBSTITUTE($AA179,\"}\",CHAR(160),IK$1))-FIND(CHAR(160),SUBSTITUTE($AA179,\"{\",CHAR(160),IK$1))+1),\"\")","v":""},{"$f":"IFERROR(MID($AA179,FIND(CHAR(160),SUBSTITUTE($AA179,\"{\",CHAR(160),IL$1)),FIND(CHAR(160),SUBSTITUTE($AA179,\"}\",CHAR(160),IL$1))-FIND(CHAR(160),SUBSTITUTE($AA179,\"{\",CHAR(160),IL$1))+1),\"\")","v":""},{"$f":"IFERROR(MID($AA179,FIND(CHAR(160),SUBSTITUTE($AA179,\"{\",CHAR(160),IM$1)),FIND(CHAR(160),SUBSTITUTE($AA179,\"}\",CHAR(160),IM$1))-FIND(CHAR(160),SUBSTITUTE($AA179,\"{\",CHAR(160),IM$1))+1),\"\")","v":"{Measure:Quantity}"},{"$f":"IFERROR(MID($AA179,FIND(CHAR(160),SUBSTITUTE($AA179,\"{\",CHAR(160),IN$1)),FIND(CHAR(160),SUBSTITUTE($AA179,\"}\",CHAR(160),IN$1))-FIND(CHAR(160),SUBSTITUTE($AA179,\"{\",CHAR(160),IN$1))+1),\"\")","v":"{Package Size}"},{"$f":"IFERROR(MID($AB179,FIND(CHAR(160),SUBSTITUTE($AB179,\"{\",CHAR(160),IO$1)),FIND(CHAR(160),SUBSTITUTE($AB179,\"}\",CHAR(160),IO$1))-FIND(CHAR(160),SUBSTITUTE($AB179,\"{\",CHAR(160),IO$1))+1),\"\")","v":""},{"$f":"IFERROR(MID($AB179,FIND(CHAR(160),SUBSTITUTE($AB179,\"{\",CHAR(160),IP$1)),FIND(CHAR(160),SUBSTITUTE($AB179,\"}\",CHAR(160),IP$1))-FIND(CHAR(160),SUBSTITUTE($AB179,\"{\",CHAR(160),IP$1))+1),\"\")","v":""},{"$f":"IFERROR(MID($AB179,FIND(CHAR(160),SUBSTITUTE($AB179,\"{\",CHAR(160),IQ$1)),FIND(CHAR(160),SUBSTITUTE($AB179,\"}\",CHAR(160),IQ$1))-FIND(CHAR(160),SUBSTITUTE($AB179,\"{\",CHAR(160),IQ$1))+1),\"\")","v":""},{"$f":"IFERROR(MID($AB179,FIND(CHAR(160),SUBSTITUTE($AB179,\"{\",CHAR(160),IR$1)),FIND(CHAR(160),SUBSTITUTE($AB179,\"}\",CHAR(160),IR$1))-FIND(CHAR(160),SUBSTITUTE($AB179,\"{\",CHAR(160),IR$1))+1),\"\")","v":""},{"$f":"IFERROR(MID($AB179,FIND(CHAR(160),SUBSTITUTE($AB179,\"{\",CHAR(160),IS$1)),FIND(CHAR(160),SUBSTITUTE($AB179,\"}\",CHAR(160),IS$1))-FIND(CHAR(160),SUBSTITUTE($AB179,\"{\",CHAR(160),IS$1))+1),\"\")","v":""},{"$f":"IFERROR(MID($AB179,FIND(CHAR(160),SUBSTITUTE($AB179,\"{\",CHAR(160),IT$1)),FIND(CHAR(160),SUBSTITUTE($AB179,\"}\",CHAR(160),IT$1))-FIND(CHAR(160),SUBSTITUTE($AB179,\"{\",CHAR(160),IT$1))+1),\"\")","v":""},{"$f":"IFERROR(MID($AB179,FIND(CHAR(160),SUBSTITUTE($AB179,\"{\",CHAR(160),IU$1)),FIND(CHAR(160),SUBSTITUTE($AB179,\"}\",CHAR(160),IU$1))-FIND(CHAR(160),SUBSTITUTE($AB179,\"{\",CHAR(160),IU$1))+1),\"\")","v":""},{"$f":"IFERROR(MID($AB179,FIND(CHAR(160),SUBSTITUTE($AB179,\"{\",CHAR(160),IV$1)),FIND(CHAR(160),SUBSTITUTE($AB179,\"}\",CHAR(160),IV$1))-FIND(CHAR(160),SUBSTITUTE($AB179,\"{\",CHAR(160),IV$1))+1),\"\")","v":""},{"$f":"IFERROR(MID($AB179,FIND(CHAR(160),SUBSTITUTE($AB179,\"{\",CHAR(160),IW$1)),FIND(CHAR(160),SUBSTITUTE($AB179,\"}\",CHAR(160),IW$1))-FIND(CHAR(160),SUBSTITUTE($AB179,\"{\",CHAR(160),IW$1))+1),\"\")","v":""},{"$f":"IFERROR(MID($AB179,FIND(CHAR(160),SUBSTITUTE($AB179,\"{\",CHAR(160),IX$1)),FIND(CHAR(160),SUBSTITUTE($AB179,\"}\",CHAR(160),IX$1))-FIND(CHAR(160),SUBSTITUTE($AB179,\"{\",CHAR(160),IX$1))+1),\"\")","v":""},null,{"$f":"10-COUNTIF(DU179:ED179,\"\")","v":3}]
["Distributor Lighting","4' LED Lamp T8/Type C Kit (4 Lamp/1 external driver)","S110C44","2021-07-01","2022-06-30","Calculated","{Measure:Quantity}*{Package Size}*27.4",0,"Calculated","{Measure:Quantity}*{Rebate per Package}",0,"2021-07-01","2022-06-30","Calculated","{Measure:Quantity}*{Package Size}*217",null,null,"{Measure:Quantity}*{Package Size}*1.0747*0.07",null,null,"{Measure:Quantity}*{Package Size}*{Factor:WinterCF}*0.07","{Measure:Quantity}*{Package Size}*{Factor:SummerCF}*1.0747*0.07","{Measure:Quantity}*{Package Size}*10*-0.091","{Measure:Quantity}*{Package Size}*-0.022","{Measure:Quantity}*{Package Size}*-0.093","{Measure:Quantity}*{Package Size}*-0.004","{Measure:Quantity}*{Package Size}*-0.021",null,"2021-07-01","2022-06-30",16,0.372,0.64500000000000002,0.45,0.218,0.22900000000000001,0.10299999999999999,1,1,1,0.51,0,null,{"$f":"DU180","v":"{Measure:Quantity}"},1,{"$f":"DV180","v":"{Package Size}"},1,{"$f":"DW180","v":"{Rebate per Package}"},{"$f":"CW180*CO180","v":20.549999999999997},{"$f":"DX180","v":""},null,{"$f":"DY180","v":""},null,{"$f":"DZ180","v":""},null,{"$f":"EA180","v":""},null,{"$f":"EB180","v":""},null,{"$f":"EC180","v":""},null,{"$f":"ED180","v":""},null,{"$f":"AS180*AU180*217","v":217},0,0,{"$f":"AS180*AU180*1.0747*0.07","v":7.5229000000000004E-2},0,0,{"$f":"AS180*AU180*AF180*0.07","v":2.6040000000000001E-2},{"$f":"AS180*AU180*AG180*1.0747*0.07","v":4.8522705000000006E-2},{"$f":"AS180*AU180*10*-0.091","v":-0.90999999999999992},{"$f":"AS180*AU180*-0.022","v":-2.1999999999999999E-2},{"$f":"AS180*AU180*-0.093","v":-9.2999999999999999E-2},{"$f":"AS180*AU180*-0.004","v":-4.0000000000000001E-3},{"$f":"AS180*AU180*-0.021","v":-2.1000000000000001E-2},0,null,"Res","Default DR",{"$f":"Benefits(BL180,BR180,BS180,BT180,BU180,BV180,BW180,BX180,BY180,BZ180,AE180,AH180,AI180,AJ180,AK180,AL180,AM180,AN180,AO180,AP180,CA180,CB180)","v":302.43189812362829},199.50066643062712,-18.770281361964287,-41.202803224756437,-2.0623842466841795,-13.632163854402735,-5.8509446394352214,0,0,{"$f":"SUMPRODUCT(CC180:CK180,--(CC180:CK180>0))","v":501.93256455425541},{"$f":"-SUMPRODUCT(CC180:CK180,--(CC180:CK180<0))","v":81.518577327242866},null,{"$f":"AS180*AU180*27.4","v":27.4},null,null,{"$f":"CM180+CO180","v":108.91857732724287},{"$f":"IF(NetOrGross=\"Net\",(1-AO180+AP180),1)","v":1},{"$f":"(SUMPRODUCT(CC180:CJ180,--(CC180:CJ180>0))+CN180)*CS180/((-SUMPRODUCT(CC180:CJ180,--(CC180:CJ180<0))+MAX(CO180,CV180)+CP180+CQ180)*CS180+IF(FRIncentives=\"Yes\",CV180*(1-CS180),0))","v":4.6083283207621486},1,{"$f":"AS180*AW180","v":20.549999999999997},0.75,"Electric","y",null,{"$f":"IF(F180=\"Manual Entry\",\"Manual\",IF(G180=\"\",0,\"X=\"&SUBSTITUTE(SUBSTITUTE(SUBSTITUTE(SUBSTITUTE(SUBSTITUTE(SUBSTITUTE(SUBSTITUTE(SUBSTITUTE(SUBSTITUTE(SUBSTITUTE(SUBSTITUTE(SUBSTITUTE(G180,$ED180,$ED$2&ROW($ED180)),$EC180,$EC$2&ROW($EC180)),$EB180,$EB$2&ROW($EB180)),$EA180,$EA$2&ROW($EA180)),$DZ180,$DZ$2&ROW($DZ180)),$DY180,$DY$2&ROW($DY180)),$DX180,$DX$2&ROW($DX180)),$DW180,$DW$2&ROW($DW180)),$DV180,$DV$2&ROW($DV180)),$DU180,$DU$2&ROW($DU180)),$DT180,$DT$2&ROW($DT180)),$DS180,$DS$2&ROW($DS180))))","v":"X=AS180*AU180*27.4"},{"$f":"IF(I180=\"Manual Entry\",\"Manual\",IF(J180=\"\",0,\"X=\"&SUBSTITUTE(SUBSTITUTE(SUBSTITUTE(SUBSTITUTE(SUBSTITUTE(SUBSTITUTE(SUBSTITUTE(SUBSTITUTE(SUBSTITUTE(SUBSTITUTE(SUBSTITUTE(SUBSTITUTE(J180,$ED180,$ED$2&ROW($ED180)),$EC180,$EC$2&ROW($EC180)),$EB180,$EB$2&ROW($EB180)),$EA180,$EA$2&ROW($EA180)),$DZ180,$DZ$2&ROW($DZ180)),$DY180,$DY$2&ROW($DY180)),$DX180,$DX$2&ROW($DX180)),$DW180,$DW$2&ROW($DW180)),$DV180,$DV$2&ROW($DV180)),$DU180,$DU$2&ROW($DU180)),$DT180,$DT$2&ROW($DT180)),$DS180,$DS$2&ROW($DS180))))","v":"X=AS180*AW180"},{"$f":"IF(O180=\"\",0,\"X=\"&SUBSTITUTE(SUBSTITUTE(SUBSTITUTE(SUBSTITUTE(SUBSTITUTE(SUBSTITUTE(SUBSTITUTE(SUBSTITUTE(SUBSTITUTE(SUBSTITUTE(SUBSTITUTE(SUBSTITUTE(O180,$ED180,$ED$2&ROW($ED180)),$EC180,$EC$2&ROW($EC180)),$EB180,$EB$2&ROW($EB180)),$EA180,$EA$2&ROW($EA180)),$DZ180,$DZ$2&ROW($DZ180)),$DY180,$DY$2&ROW($DY180)),$DX180,$DX$2&ROW($DX180)),$DW180,$DW$2&ROW($DW180)),$DV180,$DV$2&ROW($DV180)),$DU180,$DU$2&ROW($DU180)),$DT180,$DT$2&ROW($DT180)),$DS180,$DS$2&ROW($DS180)))","v":"X=AS180*AU180*217"},{"$f":"IF(P180=\"\",0,\"X=\"&SUBSTITUTE(SUBSTITUTE(SUBSTITUTE(SUBSTITUTE(SUBSTITUTE(SUBSTITUTE(SUBSTITUTE(SUBSTITUTE(SUBSTITUTE(SUBSTITUTE(SUBSTITUTE(SUBSTITUTE(P180,$ED180,$ED$2&ROW($ED180)),$EC180,$EC$2&ROW($EC180)),$EB180,$EB$2&ROW($EB180)),$EA180,$EA$2&ROW($EA180)),$DZ180,$DZ$2&ROW($DZ180)),$DY180,$DY$2&ROW($DY180)),$DX180,$DX$2&ROW($DX180)),$DW180,$DW$2&ROW($DW180)),$DV180,$DV$2&ROW($DV180)),$DU180,$DU$2&ROW($DU180)),$DT180,$DT$2&ROW($DT180)),$DS180,$DS$2&ROW($DS180)))","v":0},{"$f":"IF(Q180=\"\",0,\"X=\"&SUBSTITUTE(SUBSTITUTE(SUBSTITUTE(SUBSTITUTE(SUBSTITUTE(SUBSTITUTE(SUBSTITUTE(SUBSTITUTE(SUBSTITUTE(SUBSTITUTE(SUBSTITUTE(SUBSTITUTE(Q180,$ED180,$ED$2&ROW($ED180)),$EC180,$EC$2&ROW($EC180)),$EB180,$EB$2&ROW($EB180)),$EA180,$EA$2&ROW($EA180)),$DZ180,$DZ$2&ROW($DZ180)),$DY180,$DY$2&ROW($DY180)),$DX180,$DX$2&ROW($DX180)),$DW180,$DW$2&ROW($DW180)),$DV180,$DV$2&ROW($DV180)),$DU180,$DU$2&ROW($DU180)),$DT180,$DT$2&ROW($DT180)),$DS180,$DS$2&ROW($DS180)))","v":0},{"$f":"IF(R180=\"\",0,\"X=\"&SUBSTITUTE(SUBSTITUTE(SUBSTITUTE(SUBSTITUTE(SUBSTITUTE(SUBSTITUTE(SUBSTITUTE(SUBSTITUTE(SUBSTITUTE(SUBSTITUTE(SUBSTITUTE(SUBSTITUTE(R180,$ED180,$ED$2&ROW($ED180)),$EC180,$EC$2&ROW($EC180)),$EB180,$EB$2&ROW($EB180)),$EA180,$EA$2&ROW($EA180)),$DZ180,$DZ$2&ROW($DZ180)),$DY180,$DY$2&ROW($DY180)),$DX180,$DX$2&ROW($DX180)),$DW180,$DW$2&ROW($DW180)),$DV180,$DV$2&ROW($DV180)),$DU180,$DU$2&ROW($DU180)),$DT180,$DT$2&ROW($DT180)),$DS180,$DS$2&ROW($DS180)))","v":"X=AS180*AU180*1.0747*0.07"},{"$f":"IF(S180=\"\",0,\"X=\"&SUBSTITUTE(SUBSTITUTE(SUBSTITUTE(SUBSTITUTE(SUBSTITUTE(SUBSTITUTE(SUBSTITUTE(SUBSTITUTE(SUBSTITUTE(SUBSTITUTE(SUBSTITUTE(SUBSTITUTE(S180,$ED180,$ED$2&ROW($ED180)),$EC180,$EC$2&ROW($EC180)),$EB180,$EB$2&ROW($EB180)),$EA180,$EA$2&ROW($EA180)),$DZ180,$DZ$2&ROW($DZ180)),$DY180,$DY$2&ROW($DY180)),$DX180,$DX$2&ROW($DX180)),$DW180,$DW$2&ROW($DW180)),$DV180,$DV$2&ROW($DV180)),$DU180,$DU$2&ROW($DU180)),$DT180,$DT$2&ROW($DT180)),$DS180,$DS$2&ROW($DS180)))","v":0},{"$f":"IF(T180=\"\",0,\"X=\"&SUBSTITUTE(SUBSTITUTE(SUBSTITUTE(SUBSTITUTE(SUBSTITUTE(SUBSTITUTE(SUBSTITUTE(SUBSTITUTE(SUBSTITUTE(SUBSTITUTE(SUBSTITUTE(SUBSTITUTE(T180,$ED180,$ED$2&ROW($ED180)),$EC180,$EC$2&ROW($EC180)),$EB180,$EB$2&ROW($EB180)),$EA180,$EA$2&ROW($EA180)),$DZ180,$DZ$2&ROW($DZ180)),$DY180,$DY$2&ROW($DY180)),$DX180,$DX$2&ROW($DX180)),$DW180,$DW$2&ROW($DW180)),$DV180,$DV$2&ROW($DV180)),$DU180,$DU$2&ROW($DU180)),$DT180,$DT$2&ROW($DT180)),$DS180,$DS$2&ROW($DS180)))","v":0},{"$f":"IF(U180=\"\",0,\"X=\"&SUBSTITUTE(SUBSTITUTE(SUBSTITUTE(SUBSTITUTE(SUBSTITUTE(SUBSTITUTE(SUBSTITUTE(SUBSTITUTE(SUBSTITUTE(SUBSTITUTE(SUBSTITUTE(SUBSTITUTE(U180,$ED180,$ED$2&ROW($ED180)),$EC180,$EC$2&ROW($EC180)),$EB180,$EB$2&ROW($EB180)),$EA180,$EA$2&ROW($EA180)),$DZ180,$DZ$2&ROW($DZ180)),$DY180,$DY$2&ROW($DY180)),$DX180,$DX$2&ROW($DX180)),$DW180,$DW$2&ROW($DW180)),$DV180,$DV$2&ROW($DV180)),$DU180,$DU$2&ROW($DU180)),$DT180,$DT$2&ROW($DT180)),$DS180,$DS$2&ROW($DS180)))","v":"X=AS180*AU180*AF180*0.07"},{"$f":"IF(V180=\"\",0,\"X=\"&SUBSTITUTE(SUBSTITUTE(SUBSTITUTE(SUBSTITUTE(SUBSTITUTE(SUBSTITUTE(SUBSTITUTE(SUBSTITUTE(SUBSTITUTE(SUBSTITUTE(SUBSTITUTE(SUBSTITUTE(V180,$ED180,$ED$2&ROW($ED180)),$EC180,$EC$2&ROW($EC180)),$EB180,$EB$2&ROW($EB180)),$EA180,$EA$2&ROW($EA180)),$DZ180,$DZ$2&ROW($DZ180)),$DY180,$DY$2&ROW($DY180)),$DX180,$DX$2&ROW($DX180)),$DW180,$DW$2&ROW($DW180)),$DV180,$DV$2&ROW($DV180)),$DU180,$DU$2&ROW($DU180)),$DT180,$DT$2&ROW($DT180)),$DS180,$DS$2&ROW($DS180)))","v":"X=AS180*AU180*AG180*1.0747*0.07"},{"$f":"IF(W180=\"\",0,\"X=\"&SUBSTITUTE(SUBSTITUTE(SUBSTITUTE(SUBSTITUTE(SUBSTITUTE(SUBSTITUTE(SUBSTITUTE(SUBSTITUTE(SUBSTITUTE(SUBSTITUTE(SUBSTITUTE(SUBSTITUTE(W180,$ED180,$ED$2&ROW($ED180)),$EC180,$EC$2&ROW($EC180)),$EB180,$EB$2&ROW($EB180)),$EA180,$EA$2&ROW($EA180)),$DZ180,$DZ$2&ROW($DZ180)),$DY180,$DY$2&ROW($DY180)),$DX180,$DX$2&ROW($DX180)),$DW180,$DW$2&ROW($DW180)),$DV180,$DV$2&ROW($DV180)),$DU180,$DU$2&ROW($DU180)),$DT180,$DT$2&ROW($DT180)),$DS180,$DS$2&ROW($DS180)))","v":"X=AS180*AU180*10*-0.091"},{"$f":"IF(X180=\"\",0,\"X=\"&SUBSTITUTE(SUBSTITUTE(SUBSTITUTE(SUBSTITUTE(SUBSTITUTE(SUBSTITUTE(SUBSTITUTE(SUBSTITUTE(SUBSTITUTE(SUBSTITUTE(SUBSTITUTE(SUBSTITUTE(X180,$ED180,$ED$2&ROW($ED180)),$EC180,$EC$2&ROW($EC180)),$EB180,$EB$2&ROW($EB180)),$EA180,$EA$2&ROW($EA180)),$DZ180,$DZ$2&ROW($DZ180)),$DY180,$DY$2&ROW($DY180)),$DX180,$DX$2&ROW($DX180)),$DW180,$DW$2&ROW($DW180)),$DV180,$DV$2&ROW($DV180)),$DU180,$DU$2&ROW($DU180)),$DT180,$DT$2&ROW($DT180)),$DS180,$DS$2&ROW($DS180)))","v":"X=AS180*AU180*-0.022"},{"$f":"IF(Y180=\"\",0,\"X=\"&SUBSTITUTE(SUBSTITUTE(SUBSTITUTE(SUBSTITUTE(SUBSTITUTE(SUBSTITUTE(SUBSTITUTE(SUBSTITUTE(SUBSTITUTE(SUBSTITUTE(SUBSTITUTE(SUBSTITUTE(Y180,$ED180,$ED$2&ROW($ED180)),$EC180,$EC$2&ROW($EC180)),$EB180,$EB$2&ROW($EB180)),$EA180,$EA$2&ROW($EA180)),$DZ180,$DZ$2&ROW($DZ180)),$DY180,$DY$2&ROW($DY180)),$DX180,$DX$2&ROW($DX180)),$DW180,$DW$2&ROW($DW180)),$DV180,$DV$2&ROW($DV180)),$DU180,$DU$2&ROW($DU180)),$DT180,$DT$2&ROW($DT180)),$DS180,$DS$2&ROW($DS180)))","v":"X=AS180*AU180*-0.093"},{"$f":"IF(Z180=\"\",0,\"X=\"&SUBSTITUTE(SUBSTITUTE(SUBSTITUTE(SUBSTITUTE(SUBSTITUTE(SUBSTITUTE(SUBSTITUTE(SUBSTITUTE(SUBSTITUTE(SUBSTITUTE(SUBSTITUTE(SUBSTITUTE(Z180,$ED180,$ED$2&ROW($ED180)),$EC180,$EC$2&ROW($EC180)),$EB180,$EB$2&ROW($EB180)),$EA180,$EA$2&ROW($EA180)),$DZ180,$DZ$2&ROW($DZ180)),$DY180,$DY$2&ROW($DY180)),$DX180,$DX$2&ROW($DX180)),$DW180,$DW$2&ROW($DW180)),$DV180,$DV$2&ROW($DV180)),$DU180,$DU$2&ROW($DU180)),$DT180,$DT$2&ROW($DT180)),$DS180,$DS$2&ROW($DS180)))","v":"X=AS180*AU180*-0.004"},{"$f":"IF(AA180=\"\",0,\"X=\"&SUBSTITUTE(SUBSTITUTE(SUBSTITUTE(SUBSTITUTE(SUBSTITUTE(SUBSTITUTE(SUBSTITUTE(SUBSTITUTE(SUBSTITUTE(SUBSTITUTE(SUBSTITUTE(SUBSTITUTE(AA180,$ED180,$ED$2&ROW($ED180)),$EC180,$EC$2&ROW($EC180)),$EB180,$EB$2&ROW($EB180)),$EA180,$EA$2&ROW($EA180)),$DZ180,$DZ$2&ROW($DZ180)),$DY180,$DY$2&ROW($DY180)),$DX180,$DX$2&ROW($DX180)),$DW180,$DW$2&ROW($DW180)),$DV180,$DV$2&ROW($DV180)),$DU180,$DU$2&ROW($DU180)),$DT180,$DT$2&ROW($DT180)),$DS180,$DS$2&ROW($DS180)))","v":"X=AS180*AU180*-0.021"},{"$f":"IF(AB180=\"\",0,\"X=\"&SUBSTITUTE(SUBSTITUTE(SUBSTITUTE(SUBSTITUTE(SUBSTITUTE(SUBSTITUTE(SUBSTITUTE(SUBSTITUTE(SUBSTITUTE(SUBSTITUTE(SUBSTITUTE(SUBSTITUTE(AB180,$ED180,$ED$2&ROW($ED180)),$EC180,$EC$2&ROW($EC180)),$EB180,$EB$2&ROW($EB180)),$EA180,$EA$2&ROW($EA180)),$DZ180,$DZ$2&ROW($DZ180)),$DY180,$DY$2&ROW($DY180)),$DX180,$DX$2&ROW($DX180)),$DW180,$DW$2&ROW($DW180)),$DV180,$DV$2&ROW($DV180)),$DU180,$DU$2&ROW($DU180)),$DT180,$DT$2&ROW($DT180)),$DS180,$DS$2&ROW($DS180)))","v":0},null,null,"{Factor:WinterCF}","{Factor:SummerCF}",{"$f":"IFERROR(INDEX($EG180:$IV180,MATCH(0,COUNTIF($DR180:DT180,$EG180:$IV180),0)),\"\")","v":"{Measure:Quantity}"},{"$f":"IFERROR(INDEX($EG180:$IV180,MATCH(0,COUNTIF($DR180:DU180,$EG180:$IV180),0)),\"\")","v":"{Package Size}"},{"$f":"IFERROR(INDEX($EG180:$IV180,MATCH(0,COUNTIF($DR180:DV180,$EG180:$IV180),0)),\"\")","v":"{Rebate per Package}"},{"$f":"IFERROR(INDEX($EG180:$IV180,MATCH(0,COUNTIF($DR180:DW180,$EG180:$IV180),0)),\"\")","v":""},{"$f":"IFERROR(INDEX($EG180:$IV180,MATCH(0,COUNTIF($DR180:DX180,$EG180:$IV180),0)),\"\")","v":""},{"$f":"IFERROR(INDEX($EG180:$IV180,MATCH(0,COUNTIF($DR180:DY180,$EG180:$IV180),0)),\"\")","v":""},{"$f":"IFERROR(INDEX($EG180:$IV180,MATCH(0,COUNTIF($DR180:DZ180,$EG180:$IV180),0)),\"\")","v":""},{"$f":"IFERROR(INDEX($EG180:$IV180,MATCH(0,COUNTIF($DR180:EA180,$EG180:$IV180),0)),\"\")","v":""},{"$f":"IFERROR(INDEX($EG180:$IV180,MATCH(0,COUNTIF($DR180:EB180,$EG180:$IV180),0)),\"\")","v":""},{"$f":"IFERROR(INDEX($EG180:$IV180,MATCH(0,COUNTIF($DR180:EC180,$EG180:$IV180),0)),\"\")","v":""},null,null,{"$f":"IFERROR(MID($G180,FIND(CHAR(160),SUBSTITUTE($G180,\"{\",CHAR(160),EG$1)),FIND(CHAR(160),SUBSTITUTE($G180,\"}\",CHAR(160),EG$1))-FIND(CHAR(160),SUBSTITUTE($G180,\"{\",CHAR(160),EG$1))+1),\"\")","v":"{Measure:Quantity}"},{"$f":"IFERROR(MID($G180,FIND(CHAR(160),SUBSTITUTE($G180,\"{\",CHAR(160),EH$1)),FIND(CHAR(160),SUBSTITUTE($G180,\"}\",CHAR(160),EH$1))-FIND(CHAR(160),SUBSTITUTE($G180,\"{\",CHAR(160),EH$1))+1),\"\")","v":"{Package Size}"},{"$f":"IFERROR(MID($G180,FIND(CHAR(160),SUBSTITUTE($G180,\"{\",CHAR(160),EI$1)),FIND(CHAR(160),SUBSTITUTE($G180,\"}\",CHAR(160),EI$1))-FIND(CHAR(160),SUBSTITUTE($G180,\"{\",CHAR(160),EI$1))+1),\"\")","v":""},{"$f":"IFERROR(MID($G180,FIND(CHAR(160),SUBSTITUTE($G180,\"{\",CHAR(160),EJ$1)),FIND(CHAR(160),SUBSTITUTE($G180,\"}\",CHAR(160),EJ$1))-FIND(CHAR(160),SUBSTITUTE($G180,\"{\",CHAR(160),EJ$1))+1),\"\")","v":""},{"$f":"IFERROR(MID($G180,FIND(CHAR(160),SUBSTITUTE($G180,\"{\",CHAR(160),EK$1)),FIND(CHAR(160),SUBSTITUTE($G180,\"}\",CHAR(160),EK$1))-FIND(CHAR(160),SUBSTITUTE($G180,\"{\",CHAR(160),EK$1))+1),\"\")","v":""},{"$f":"IFERROR(MID($G180,FIND(CHAR(160),SUBSTITUTE($G180,\"{\",CHAR(160),EL$1)),FIND(CHAR(160),SUBSTITUTE($G180,\"}\",CHAR(160),EL$1))-FIND(CHAR(160),SUBSTITUTE($G180,\"{\",CHAR(160),EL$1))+1),\"\")","v":""},{"$f":"IFERROR(MID($G180,FIND(CHAR(160),SUBSTITUTE($G180,\"{\",CHAR(160),EM$1)),FIND(CHAR(160),SUBSTITUTE($G180,\"}\",CHAR(160),EM$1))-FIND(CHAR(160),SUBSTITUTE($G180,\"{\",CHAR(160),EM$1))+1),\"\")","v":""},{"$f":"IFERROR(MID($G180,FIND(CHAR(160),SUBSTITUTE($G180,\"{\",CHAR(160),EN$1)),FIND(CHAR(160),SUBSTITUTE($G180,\"}\",CHAR(160),EN$1))-FIND(CHAR(160),SUBSTITUTE($G180,\"{\",CHAR(160),EN$1))+1),\"\")","v":""},{"$f":"IFERROR(MID($G180,FIND(CHAR(160),SUBSTITUTE($G180,\"{\",CHAR(160),EO$1)),FIND(CHAR(160),SUBSTITUTE($G180,\"}\",CHAR(160),EO$1))-FIND(CHAR(160),SUBSTITUTE($G180,\"{\",CHAR(160),EO$1))+1),\"\")","v":""},{"$f":"IFERROR(MID($G180,FIND(CHAR(160),SUBSTITUTE($G180,\"{\",CHAR(160),EP$1)),FIND(CHAR(160),SUBSTITUTE($G180,\"}\",CHAR(160),EP$1))-FIND(CHAR(160),SUBSTITUTE($G180,\"{\",CHAR(160),EP$1))+1),\"\")","v":""},{"$f":"IFERROR(MID($J180,FIND(CHAR(160),SUBSTITUTE($J180,\"{\",CHAR(160),EQ$1)),FIND(CHAR(160),SUBSTITUTE($J180,\"}\",CHAR(160),EQ$1))-FIND(CHAR(160),SUBSTITUTE($J180,\"{\",CHAR(160),EQ$1))+1),\"\")","v":"{Measure:Quantity}"},{"$f":"IFERROR(MID($J180,FIND(CHAR(160),SUBSTITUTE($J180,\"{\",CHAR(160),ER$1)),FIND(CHAR(160),SUBSTITUTE($J180,\"}\",CHAR(160),ER$1))-FIND(CHAR(160),SUBSTITUTE($J180,\"{\",CHAR(160),ER$1))+1),\"\")","v":"{Rebate per Package}"},{"$f":"IFERROR(MID($J180,FIND(CHAR(160),SUBSTITUTE($J180,\"{\",CHAR(160),ES$1)),FIND(CHAR(160),SUBSTITUTE($J180,\"}\",CHAR(160),ES$1))-FIND(CHAR(160),SUBSTITUTE($J180,\"{\",CHAR(160),ES$1))+1),\"\")","v":""},{"$f":"IFERROR(MID($J180,FIND(CHAR(160),SUBSTITUTE($J180,\"{\",CHAR(160),ET$1)),FIND(CHAR(160),SUBSTITUTE($J180,\"}\",CHAR(160),ET$1))-FIND(CHAR(160),SUBSTITUTE($J180,\"{\",CHAR(160),ET$1))+1),\"\")","v":""},{"$f":"IFERROR(MID($J180,FIND(CHAR(160),SUBSTITUTE($J180,\"{\",CHAR(160),EU$1)),FIND(CHAR(160),SUBSTITUTE($J180,\"}\",CHAR(160),EU$1))-FIND(CHAR(160),SUBSTITUTE($J180,\"{\",CHAR(160),EU$1))+1),\"\")","v":""},{"$f":"IFERROR(MID($J180,FIND(CHAR(160),SUBSTITUTE($J180,\"{\",CHAR(160),EV$1)),FIND(CHAR(160),SUBSTITUTE($J180,\"}\",CHAR(160),EV$1))-FIND(CHAR(160),SUBSTITUTE($J180,\"{\",CHAR(160),EV$1))+1),\"\")","v":""},{"$f":"IFERROR(MID($J180,FIND(CHAR(160),SUBSTITUTE($J180,\"{\",CHAR(160),EW$1)),FIND(CHAR(160),SUBSTITUTE($J180,\"}\",CHAR(160),EW$1))-FIND(CHAR(160),SUBSTITUTE($J180,\"{\",CHAR(160),EW$1))+1),\"\")","v":""},{"$f":"IFERROR(MID($J180,FIND(CHAR(160),SUBSTITUTE($J180,\"{\",CHAR(160),EX$1)),FIND(CHAR(160),SUBSTITUTE($J180,\"}\",CHAR(160),EX$1))-FIND(CHAR(160),SUBSTITUTE($J180,\"{\",CHAR(160),EX$1))+1),\"\")","v":""},{"$f":"IFERROR(MID($J180,FIND(CHAR(160),SUBSTITUTE($J180,\"{\",CHAR(160),EY$1)),FIND(CHAR(160),SUBSTITUTE($J180,\"}\",CHAR(160),EY$1))-FIND(CHAR(160),SUBSTITUTE($J180,\"{\",CHAR(160),EY$1))+1),\"\")","v":""},{"$f":"IFERROR(MID($J180,FIND(CHAR(160),SUBSTITUTE($J180,\"{\",CHAR(160),EZ$1)),FIND(CHAR(160),SUBSTITUTE($J180,\"}\",CHAR(160),EZ$1))-FIND(CHAR(160),SUBSTITUTE($J180,\"{\",CHAR(160),EZ$1))+1),\"\")","v":""},{"$f":"IFERROR(MID($J180,FIND(CHAR(160),SUBSTITUTE($J180,\"{\",CHAR(160),FA$1)),FIND(CHAR(160),SUBSTITUTE($J180,\"}\",CHAR(160),FA$1))-FIND(CHAR(160),SUBSTITUTE($J180,\"{\",CHAR(160),FA$1))+1),\"\")","v":"{Measure:Quantity}"},{"$f":"IFERROR(MID($J180,FIND(CHAR(160),SUBSTITUTE($J180,\"{\",CHAR(160),FB$1)),FIND(CHAR(160),SUBSTITUTE($J180,\"}\",CHAR(160),FB$1))-FIND(CHAR(160),SUBSTITUTE($J180,\"{\",CHAR(160),FB$1))+1),\"\")","v":"{Rebate per Package}"},{"$f":"IFERROR(MID($O180,FIND(CHAR(160),SUBSTITUTE($O180,\"{\",CHAR(160),FC$1)),FIND(CHAR(160),SUBSTITUTE($O180,\"}\",CHAR(160),FC$1))-FIND(CHAR(160),SUBSTITUTE($O180,\"{\",CHAR(160),FC$1))+1),\"\")","v":""},{"$f":"IFERROR(MID($O180,FIND(CHAR(160),SUBSTITUTE($O180,\"{\",CHAR(160),FD$1)),FIND(CHAR(160),SUBSTITUTE($O180,\"}\",CHAR(160),FD$1))-FIND(CHAR(160),SUBSTITUTE($O180,\"{\",CHAR(160),FD$1))+1),\"\")","v":""},{"$f":"IFERROR(MID($O180,FIND(CHAR(160),SUBSTITUTE($O180,\"{\",CHAR(160),FE$1)),FIND(CHAR(160),SUBSTITUTE($O180,\"}\",CHAR(160),FE$1))-FIND(CHAR(160),SUBSTITUTE($O180,\"{\",CHAR(160),FE$1))+1),\"\")","v":""},{"$f":"IFERROR(MID($O180,FIND(CHAR(160),SUBSTITUTE($O180,\"{\",CHAR(160),FF$1)),FIND(CHAR(160),SUBSTITUTE($O180,\"}\",CHAR(160),FF$1))-FIND(CHAR(160),SUBSTITUTE($O180,\"{\",CHAR(160),FF$1))+1),\"\")","v":""},{"$f":"IFERROR(MID($O180,FIND(CHAR(160),SUBSTITUTE($O180,\"{\",CHAR(160),FG$1)),FIND(CHAR(160),SUBSTITUTE($O180,\"}\",CHAR(160),FG$1))-FIND(CHAR(160),SUBSTITUTE($O180,\"{\",CHAR(160),FG$1))+1),\"\")","v":""},{"$f":"IFERROR(MID($O180,FIND(CHAR(160),SUBSTITUTE($O180,\"{\",CHAR(160),FH$1)),FIND(CHAR(160),SUBSTITUTE($O180,\"}\",CHAR(160),FH$1))-FIND(CHAR(160),SUBSTITUTE($O180,\"{\",CHAR(160),FH$1))+1),\"\")","v":""},{"$f":"IFERROR(MID($O180,FIND(CHAR(160),SUBSTITUTE($O180,\"{\",CHAR(160),FI$1)),FIND(CHAR(160),SUBSTITUTE($O180,\"}\",CHAR(160),FI$1))-FIND(CHAR(160),SUBSTITUTE($O180,\"{\",CHAR(160),FI$1))+1),\"\")","v":""},{"$f":"IFERROR(MID($O180,FIND(CHAR(160),SUBSTITUTE($O180,\"{\",CHAR(160),FJ$1)),FIND(CHAR(160),SUBSTITUTE($O180,\"}\",CHAR(160),FJ$1))-FIND(CHAR(160),SUBSTITUTE($O180,\"{\",CHAR(160),FJ$1))+1),\"\")","v":""},{"$f":"IFERROR(MID($O180,FIND(CHAR(160),SUBSTITUTE($O180,\"{\",CHAR(160),FK$1)),FIND(CHAR(160),SUBSTITUTE($O180,\"}\",CHAR(160),FK$1))-FIND(CHAR(160),SUBSTITUTE($O180,\"{\",CHAR(160),FK$1))+1),\"\")","v":"{Measure:Quantity}"},{"$f":"IFERROR(MID($O180,FIND(CHAR(160),SUBSTITUTE($O180,\"{\",CHAR(160),FL$1)),FIND(CHAR(160),SUBSTITUTE($O180,\"}\",CHAR(160),FL$1))-FIND(CHAR(160),SUBSTITUTE($O180,\"{\",CHAR(160),FL$1))+1),\"\")","v":"{Package Size}"},{"$f":"IFERROR(MID($R180,FIND(CHAR(160),SUBSTITUTE($R180,\"{\",CHAR(160),FM$1)),FIND(CHAR(160),SUBSTITUTE($R180,\"}\",CHAR(160),FM$1))-FIND(CHAR(160),SUBSTITUTE($R180,\"{\",CHAR(160),FM$1))+1),\"\")","v":""},{"$f":"IFERROR(MID($R180,FIND(CHAR(160),SUBSTITUTE($R180,\"{\",CHAR(160),FN$1)),FIND(CHAR(160),SUBSTITUTE($R180,\"}\",CHAR(160),FN$1))-FIND(CHAR(160),SUBSTITUTE($R180,\"{\",CHAR(160),FN$1))+1),\"\")","v":""},{"$f":"IFERROR(MID($R180,FIND(CHAR(160),SUBSTITUTE($R180,\"{\",CHAR(160),FO$1)),FIND(CHAR(160),SUBSTITUTE($R180,\"}\",CHAR(160),FO$1))-FIND(CHAR(160),SUBSTITUTE($R180,\"{\",CHAR(160),FO$1))+1),\"\")","v":""},{"$f":"IFERROR(MID($R180,FIND(CHAR(160),SUBSTITUTE($R180,\"{\",CHAR(160),FP$1)),FIND(CHAR(160),SUBSTITUTE($R180,\"}\",CHAR(160),FP$1))-FIND(CHAR(160),SUBSTITUTE($R180,\"{\",CHAR(160),FP$1))+1),\"\")","v":""},{"$f":"IFERROR(MID($R180,FIND(CHAR(160),SUBSTITUTE($R180,\"{\",CHAR(160),FQ$1)),FIND(CHAR(160),SUBSTITUTE($R180,\"}\",CHAR(160),FQ$1))-FIND(CHAR(160),SUBSTITUTE($R180,\"{\",CHAR(160),FQ$1))+1),\"\")","v":""},{"$f":"IFERROR(MID($R180,FIND(CHAR(160),SUBSTITUTE($R180,\"{\",CHAR(160),FR$1)),FIND(CHAR(160),SUBSTITUTE($R180,\"}\",CHAR(160),FR$1))-FIND(CHAR(160),SUBSTITUTE($R180,\"{\",CHAR(160),FR$1))+1),\"\")","v":""},{"$f":"IFERROR(MID($R180,FIND(CHAR(160),SUBSTITUTE($R180,\"{\",CHAR(160),FS$1)),FIND(CHAR(160),SUBSTITUTE($R180,\"}\",CHAR(160),FS$1))-FIND(CHAR(160),SUBSTITUTE($R180,\"{\",CHAR(160),FS$1))+1),\"\")","v":""},{"$f":"IFERROR(MID($R180,FIND(CHAR(160),SUBSTITUTE($R180,\"{\",CHAR(160),FT$1)),FIND(CHAR(160),SUBSTITUTE($R180,\"}\",CHAR(160),FT$1))-FIND(CHAR(160),SUBSTITUTE($R180,\"{\",CHAR(160),FT$1))+1),\"\")","v":""},{"$f":"IFERROR(MID($R180,FIND(CHAR(160),SUBSTITUTE($R180,\"{\",CHAR(160),FU$1)),FIND(CHAR(160),SUBSTITUTE($R180,\"}\",CHAR(160),FU$1))-FIND(CHAR(160),SUBSTITUTE($R180,\"{\",CHAR(160),FU$1))+1),\"\")","v":"{Measure:Quantity}"},{"$f":"IFERROR(MID($R180,FIND(CHAR(160),SUBSTITUTE($R180,\"{\",CHAR(160),FV$1)),FIND(CHAR(160),SUBSTITUTE($R180,\"}\",CHAR(160),FV$1))-FIND(CHAR(160),SUBSTITUTE($R180,\"{\",CHAR(160),FV$1))+1),\"\")","v":"{Package Size}"},{"$f":"IFERROR(MID($U180,FIND(CHAR(160),SUBSTITUTE($U180,\"{\",CHAR(160),FW$1)),FIND(CHAR(160),SUBSTITUTE($U180,\"}\",CHAR(160),FW$1))-FIND(CHAR(160),SUBSTITUTE($U180,\"{\",CHAR(160),FW$1))+1),\"\")","v":"{Factor:WinterCF}"},{"$f":"IFERROR(MID($U180,FIND(CHAR(160),SUBSTITUTE($U180,\"{\",CHAR(160),FX$1)),FIND(CHAR(160),SUBSTITUTE($U180,\"}\",CHAR(160),FX$1))-FIND(CHAR(160),SUBSTITUTE($U180,\"{\",CHAR(160),FX$1))+1),\"\")","v":""},{"$f":"IFERROR(MID($U180,FIND(CHAR(160),SUBSTITUTE($U180,\"{\",CHAR(160),FY$1)),FIND(CHAR(160),SUBSTITUTE($U180,\"}\",CHAR(160),FY$1))-FIND(CHAR(160),SUBSTITUTE($U180,\"{\",CHAR(160),FY$1))+1),\"\")","v":""},{"$f":"IFERROR(MID($U180,FIND(CHAR(160),SUBSTITUTE($U180,\"{\",CHAR(160),FZ$1)),FIND(CHAR(160),SUBSTITUTE($U180,\"}\",CHAR(160),FZ$1))-FIND(CHAR(160),SUBSTITUTE($U180,\"{\",CHAR(160),FZ$1))+1),\"\")","v":""},{"$f":"IFERROR(MID($U180,FIND(CHAR(160),SUBSTITUTE($U180,\"{\",CHAR(160),GA$1)),FIND(CHAR(160),SUBSTITUTE($U180,\"}\",CHAR(160),GA$1))-FIND(CHAR(160),SUBSTITUTE($U180,\"{\",CHAR(160),GA$1))+1),\"\")","v":""},{"$f":"IFERROR(MID($U180,FIND(CHAR(160),SUBSTITUTE($U180,\"{\",CHAR(160),GB$1)),FIND(CHAR(160),SUBSTITUTE($U180,\"}\",CHAR(160),GB$1))-FIND(CHAR(160),SUBSTITUTE($U180,\"{\",CHAR(160),GB$1))+1),\"\")","v":""},{"$f":"IFERROR(MID($U180,FIND(CHAR(160),SUBSTITUTE($U180,\"{\",CHAR(160),GC$1)),FIND(CHAR(160),SUBSTITUTE($U180,\"}\",CHAR(160),GC$1))-FIND(CHAR(160),SUBSTITUTE($U180,\"{\",CHAR(160),GC$1))+1),\"\")","v":""},{"$f":"IFERROR(MID($U180,FIND(CHAR(160),SUBSTITUTE($U180,\"{\",CHAR(160),GD$1)),FIND(CHAR(160),SUBSTITUTE($U180,\"}\",CHAR(160),GD$1))-FIND(CHAR(160),SUBSTITUTE($U180,\"{\",CHAR(160),GD$1))+1),\"\")","v":""},{"$f":"IFERROR(MID($U180,FIND(CHAR(160),SUBSTITUTE($U180,\"{\",CHAR(160),GE$1)),FIND(CHAR(160),SUBSTITUTE($U180,\"}\",CHAR(160),GE$1))-FIND(CHAR(160),SUBSTITUTE($U180,\"{\",CHAR(160),GE$1))+1),\"\")","v":"{Measure:Quantity}"},{"$f":"IFERROR(MID($U180,FIND(CHAR(160),SUBSTITUTE($U180,\"{\",CHAR(160),GF$1)),FIND(CHAR(160),SUBSTITUTE($U180,\"}\",CHAR(160),GF$1))-FIND(CHAR(160),SUBSTITUTE($U180,\"{\",CHAR(160),GF$1))+1),\"\")","v":"{Package Size}"},{"$f":"IFERROR(MID($V180,FIND(CHAR(160),SUBSTITUTE($V180,\"{\",CHAR(160),GG$1)),FIND(CHAR(160),SUBSTITUTE($V180,\"}\",CHAR(160),GG$1))-FIND(CHAR(160),SUBSTITUTE($V180,\"{\",CHAR(160),GG$1))+1),\"\")","v":"{Factor:SummerCF}"},{"$f":"IFERROR(MID($V180,FIND(CHAR(160),SUBSTITUTE($V180,\"{\",CHAR(160),GH$1)),FIND(CHAR(160),SUBSTITUTE($V180,\"}\",CHAR(160),GH$1))-FIND(CHAR(160),SUBSTITUTE($V180,\"{\",CHAR(160),GH$1))+1),\"\")","v":""},{"$f":"IFERROR(MID($V180,FIND(CHAR(160),SUBSTITUTE($V180,\"{\",CHAR(160),GI$1)),FIND(CHAR(160),SUBSTITUTE($V180,\"}\",CHAR(160),GI$1))-FIND(CHAR(160),SUBSTITUTE($V180,\"{\",CHAR(160),GI$1))+1),\"\")","v":""},{"$f":"IFERROR(MID($V180,FIND(CHAR(160),SUBSTITUTE($V180,\"{\",CHAR(160),GJ$1)),FIND(CHAR(160),SUBSTITUTE($V180,\"}\",CHAR(160),GJ$1))-FIND(CHAR(160),SUBSTITUTE($V180,\"{\",CHAR(160),GJ$1))+1),\"\")","v":""},{"$f":"IFERROR(MID($V180,FIND(CHAR(160),SUBSTITUTE($V180,\"{\",CHAR(160),GK$1)),FIND(CHAR(160),SUBSTITUTE($V180,\"}\",CHAR(160),GK$1))-FIND(CHAR(160),SUBSTITUTE($V180,\"{\",CHAR(160),GK$1))+1),\"\")","v":""},{"$f":"IFERROR(MID($V180,FIND(CHAR(160),SUBSTITUTE($V180,\"{\",CHAR(160),GL$1)),FIND(CHAR(160),SUBSTITUTE($V180,\"}\",CHAR(160),GL$1))-FIND(CHAR(160),SUBSTITUTE($V180,\"{\",CHAR(160),GL$1))+1),\"\")","v":""},{"$f":"IFERROR(MID($V180,FIND(CHAR(160),SUBSTITUTE($V180,\"{\",CHAR(160),GM$1)),FIND(CHAR(160),SUBSTITUTE($V180,\"}\",CHAR(160),GM$1))-FIND(CHAR(160),SUBSTITUTE($V180,\"{\",CHAR(160),GM$1))+1),\"\")","v":""},{"$f":"IFERROR(MID($V180,FIND(CHAR(160),SUBSTITUTE($V180,\"{\",CHAR(160),GN$1)),FIND(CHAR(160),SUBSTITUTE($V180,\"}\",CHAR(160),GN$1))-FIND(CHAR(160),SUBSTITUTE($V180,\"{\",CHAR(160),GN$1))+1),\"\")","v":""},{"$f":"IFERROR(MID($V180,FIND(CHAR(160),SUBSTITUTE($V180,\"{\",CHAR(160),GO$1)),FIND(CHAR(160),SUBSTITUTE($V180,\"}\",CHAR(160),GO$1))-FIND(CHAR(160),SUBSTITUTE($V180,\"{\",CHAR(160),GO$1))+1),\"\")","v":"{Measure:Quantity}"},{"$f":"IFERROR(MID($V180,FIND(CHAR(160),SUBSTITUTE($V180,\"{\",CHAR(160),GP$1)),FIND(CHAR(160),SUBSTITUTE($V180,\"}\",CHAR(160),GP$1))-FIND(CHAR(160),SUBSTITUTE($V180,\"{\",CHAR(160),GP$1))+1),\"\")","v":"{Package Size}"},{"$f":"IFERROR(MID($W180,FIND(CHAR(160),SUBSTITUTE($W180,\"{\",CHAR(160),GQ$1)),FIND(CHAR(160),SUBSTITUTE($W180,\"}\",CHAR(160),GQ$1))-FIND(CHAR(160),SUBSTITUTE($W180,\"{\",CHAR(160),GQ$1))+1),\"\")","v":""},{"$f":"IFERROR(MID($W180,FIND(CHAR(160),SUBSTITUTE($W180,\"{\",CHAR(160),GR$1)),FIND(CHAR(160),SUBSTITUTE($W180,\"}\",CHAR(160),GR$1))-FIND(CHAR(160),SUBSTITUTE($W180,\"{\",CHAR(160),GR$1))+1),\"\")","v":""},{"$f":"IFERROR(MID($W180,FIND(CHAR(160),SUBSTITUTE($W180,\"{\",CHAR(160),GS$1)),FIND(CHAR(160),SUBSTITUTE($W180,\"}\",CHAR(160),GS$1))-FIND(CHAR(160),SUBSTITUTE($W180,\"{\",CHAR(160),GS$1))+1),\"\")","v":""},{"$f":"IFERROR(MID($W180,FIND(CHAR(160),SUBSTITUTE($W180,\"{\",CHAR(160),GT$1)),FIND(CHAR(160),SUBSTITUTE($W180,\"}\",CHAR(160),GT$1))-FIND(CHAR(160),SUBSTITUTE($W180,\"{\",CHAR(160),GT$1))+1),\"\")","v":""},{"$f":"IFERROR(MID($W180,FIND(CHAR(160),SUBSTITUTE($W180,\"{\",CHAR(160),GU$1)),FIND(CHAR(160),SUBSTITUTE($W180,\"}\",CHAR(160),GU$1))-FIND(CHAR(160),SUBSTITUTE($W180,\"{\",CHAR(160),GU$1))+1),\"\")","v":""},{"$f":"IFERROR(MID($W180,FIND(CHAR(160),SUBSTITUTE($W180,\"{\",CHAR(160),GV$1)),FIND(CHAR(160),SUBSTITUTE($W180,\"}\",CHAR(160),GV$1))-FIND(CHAR(160),SUBSTITUTE($W180,\"{\",CHAR(160),GV$1))+1),\"\")","v":""},{"$f":"IFERROR(MID($W180,FIND(CHAR(160),SUBSTITUTE($W180,\"{\",CHAR(160),GW$1)),FIND(CHAR(160),SUBSTITUTE($W180,\"}\",CHAR(160),GW$1))-FIND(CHAR(160),SUBSTITUTE($W180,\"{\",CHAR(160),GW$1))+1),\"\")","v":""},{"$f":"IFERROR(MID($W180,FIND(CHAR(160),SUBSTITUTE($W180,\"{\",CHAR(160),GX$1)),FIND(CHAR(160),SUBSTITUTE($W180,\"}\",CHAR(160),GX$1))-FIND(CHAR(160),SUBSTITUTE($W180,\"{\",CHAR(160),GX$1))+1),\"\")","v":""},{"$f":"IFERROR(MID($W180,FIND(CHAR(160),SUBSTITUTE($W180,\"{\",CHAR(160),GY$1)),FIND(CHAR(160),SUBSTITUTE($W180,\"}\",CHAR(160),GY$1))-FIND(CHAR(160),SUBSTITUTE($W180,\"{\",CHAR(160),GY$1))+1),\"\")","v":"{Measure:Quantity}"},{"$f":"IFERROR(MID($W180,FIND(CHAR(160),SUBSTITUTE($W180,\"{\",CHAR(160),GZ$1)),FIND(CHAR(160),SUBSTITUTE($W180,\"}\",CHAR(160),GZ$1))-FIND(CHAR(160),SUBSTITUTE($W180,\"{\",CHAR(160),GZ$1))+1),\"\")","v":"{Package Size}"},{"$f":"IFERROR(MID($X180,FIND(CHAR(160),SUBSTITUTE($X180,\"{\",CHAR(160),HA$1)),FIND(CHAR(160),SUBSTITUTE($X180,\"}\",CHAR(160),HA$1))-FIND(CHAR(160),SUBSTITUTE($X180,\"{\",CHAR(160),HA$1))+1),\"\")","v":""},{"$f":"IFERROR(MID($X180,FIND(CHAR(160),SUBSTITUTE($X180,\"{\",CHAR(160),HB$1)),FIND(CHAR(160),SUBSTITUTE($X180,\"}\",CHAR(160),HB$1))-FIND(CHAR(160),SUBSTITUTE($X180,\"{\",CHAR(160),HB$1))+1),\"\")","v":""},{"$f":"IFERROR(MID($X180,FIND(CHAR(160),SUBSTITUTE($X180,\"{\",CHAR(160),HC$1)),FIND(CHAR(160),SUBSTITUTE($X180,\"}\",CHAR(160),HC$1))-FIND(CHAR(160),SUBSTITUTE($X180,\"{\",CHAR(160),HC$1))+1),\"\")","v":""},{"$f":"IFERROR(MID($X180,FIND(CHAR(160),SUBSTITUTE($X180,\"{\",CHAR(160),HD$1)),FIND(CHAR(160),SUBSTITUTE($X180,\"}\",CHAR(160),HD$1))-FIND(CHAR(160),SUBSTITUTE($X180,\"{\",CHAR(160),HD$1))+1),\"\")","v":""},{"$f":"IFERROR(MID($X180,FIND(CHAR(160),SUBSTITUTE($X180,\"{\",CHAR(160),HE$1)),FIND(CHAR(160),SUBSTITUTE($X180,\"}\",CHAR(160),HE$1))-FIND(CHAR(160),SUBSTITUTE($X180,\"{\",CHAR(160),HE$1))+1),\"\")","v":""},{"$f":"IFERROR(MID($X180,FIND(CHAR(160),SUBSTITUTE($X180,\"{\",CHAR(160),HF$1)),FIND(CHAR(160),SUBSTITUTE($X180,\"}\",CHAR(160),HF$1))-FIND(CHAR(160),SUBSTITUTE($X180,\"{\",CHAR(160),HF$1))+1),\"\")","v":""},{"$f":"IFERROR(MID($X180,FIND(CHAR(160),SUBSTITUTE($X180,\"{\",CHAR(160),HG$1)),FIND(CHAR(160),SUBSTITUTE($X180,\"}\",CHAR(160),HG$1))-FIND(CHAR(160),SUBSTITUTE($X180,\"{\",CHAR(160),HG$1))+1),\"\")","v":""},{"$f":"IFERROR(MID($X180,FIND(CHAR(160),SUBSTITUTE($X180,\"{\",CHAR(160),HH$1)),FIND(CHAR(160),SUBSTITUTE($X180,\"}\",CHAR(160),HH$1))-FIND(CHAR(160),SUBSTITUTE($X180,\"{\",CHAR(160),HH$1))+1),\"\")","v":""},{"$f":"IFERROR(MID($X180,FIND(CHAR(160),SUBSTITUTE($X180,\"{\",CHAR(160),HI$1)),FIND(CHAR(160),SUBSTITUTE($X180,\"}\",CHAR(160),HI$1))-FIND(CHAR(160),SUBSTITUTE($X180,\"{\",CHAR(160),HI$1))+1),\"\")","v":"{Measure:Quantity}"},{"$f":"IFERROR(MID($X180,FIND(CHAR(160),SUBSTITUTE($X180,\"{\",CHAR(160),HJ$1)),FIND(CHAR(160),SUBSTITUTE($X180,\"}\",CHAR(160),HJ$1))-FIND(CHAR(160),SUBSTITUTE($X180,\"{\",CHAR(160),HJ$1))+1),\"\")","v":"{Package Size}"},{"$f":"IFERROR(MID($Y180,FIND(CHAR(160),SUBSTITUTE($Y180,\"{\",CHAR(160),HK$1)),FIND(CHAR(160),SUBSTITUTE($Y180,\"}\",CHAR(160),HK$1))-FIND(CHAR(160),SUBSTITUTE($Y180,\"{\",CHAR(160),HK$1))+1),\"\")","v":""},{"$f":"IFERROR(MID($Y180,FIND(CHAR(160),SUBSTITUTE($Y180,\"{\",CHAR(160),HL$1)),FIND(CHAR(160),SUBSTITUTE($Y180,\"}\",CHAR(160),HL$1))-FIND(CHAR(160),SUBSTITUTE($Y180,\"{\",CHAR(160),HL$1))+1),\"\")","v":""},{"$f":"IFERROR(MID($Y180,FIND(CHAR(160),SUBSTITUTE($Y180,\"{\",CHAR(160),HM$1)),FIND(CHAR(160),SUBSTITUTE($Y180,\"}\",CHAR(160),HM$1))-FIND(CHAR(160),SUBSTITUTE($Y180,\"{\",CHAR(160),HM$1))+1),\"\")","v":""},{"$f":"IFERROR(MID($Y180,FIND(CHAR(160),SUBSTITUTE($Y180,\"{\",CHAR(160),HN$1)),FIND(CHAR(160),SUBSTITUTE($Y180,\"}\",CHAR(160),HN$1))-FIND(CHAR(160),SUBSTITUTE($Y180,\"{\",CHAR(160),HN$1))+1),\"\")","v":""},{"$f":"IFERROR(MID($Y180,FIND(CHAR(160),SUBSTITUTE($Y180,\"{\",CHAR(160),HO$1)),FIND(CHAR(160),SUBSTITUTE($Y180,\"}\",CHAR(160),HO$1))-FIND(CHAR(160),SUBSTITUTE($Y180,\"{\",CHAR(160),HO$1))+1),\"\")","v":""},{"$f":"IFERROR(MID($Y180,FIND(CHAR(160),SUBSTITUTE($Y180,\"{\",CHAR(160),HP$1)),FIND(CHAR(160),SUBSTITUTE($Y180,\"}\",CHAR(160),HP$1))-FIND(CHAR(160),SUBSTITUTE($Y180,\"{\",CHAR(160),HP$1))+1),\"\")","v":""},{"$f":"IFERROR(MID($Y180,FIND(CHAR(160),SUBSTITUTE($Y180,\"{\",CHAR(160),HQ$1)),FIND(CHAR(160),SUBSTITUTE($Y180,\"}\",CHAR(160),HQ$1))-FIND(CHAR(160),SUBSTITUTE($Y180,\"{\",CHAR(160),HQ$1))+1),\"\")","v":""},{"$f":"IFERROR(MID($Y180,FIND(CHAR(160),SUBSTITUTE($Y180,\"{\",CHAR(160),HR$1)),FIND(CHAR(160),SUBSTITUTE($Y180,\"}\",CHAR(160),HR$1))-FIND(CHAR(160),SUBSTITUTE($Y180,\"{\",CHAR(160),HR$1))+1),\"\")","v":""},{"$f":"IFERROR(MID($Y180,FIND(CHAR(160),SUBSTITUTE($Y180,\"{\",CHAR(160),HS$1)),FIND(CHAR(160),SUBSTITUTE($Y180,\"}\",CHAR(160),HS$1))-FIND(CHAR(160),SUBSTITUTE($Y180,\"{\",CHAR(160),HS$1))+1),\"\")","v":"{Measure:Quantity}"},{"$f":"IFERROR(MID($Y180,FIND(CHAR(160),SUBSTITUTE($Y180,\"{\",CHAR(160),HT$1)),FIND(CHAR(160),SUBSTITUTE($Y180,\"}\",CHAR(160),HT$1))-FIND(CHAR(160),SUBSTITUTE($Y180,\"{\",CHAR(160),HT$1))+1),\"\")","v":"{Package Size}"},{"$f":"IFERROR(MID($Z180,FIND(CHAR(160),SUBSTITUTE($Z180,\"{\",CHAR(160),HU$1)),FIND(CHAR(160),SUBSTITUTE($Z180,\"}\",CHAR(160),HU$1))-FIND(CHAR(160),SUBSTITUTE($Z180,\"{\",CHAR(160),HU$1))+1),\"\")","v":""},{"$f":"IFERROR(MID($Z180,FIND(CHAR(160),SUBSTITUTE($Z180,\"{\",CHAR(160),HV$1)),FIND(CHAR(160),SUBSTITUTE($Z180,\"}\",CHAR(160),HV$1))-FIND(CHAR(160),SUBSTITUTE($Z180,\"{\",CHAR(160),HV$1))+1),\"\")","v":""},{"$f":"IFERROR(MID($Z180,FIND(CHAR(160),SUBSTITUTE($Z180,\"{\",CHAR(160),HW$1)),FIND(CHAR(160),SUBSTITUTE($Z180,\"}\",CHAR(160),HW$1))-FIND(CHAR(160),SUBSTITUTE($Z180,\"{\",CHAR(160),HW$1))+1),\"\")","v":""},{"$f":"IFERROR(MID($Z180,FIND(CHAR(160),SUBSTITUTE($Z180,\"{\",CHAR(160),HX$1)),FIND(CHAR(160),SUBSTITUTE($Z180,\"}\",CHAR(160),HX$1))-FIND(CHAR(160),SUBSTITUTE($Z180,\"{\",CHAR(160),HX$1))+1),\"\")","v":""},{"$f":"IFERROR(MID($Z180,FIND(CHAR(160),SUBSTITUTE($Z180,\"{\",CHAR(160),HY$1)),FIND(CHAR(160),SUBSTITUTE($Z180,\"}\",CHAR(160),HY$1))-FIND(CHAR(160),SUBSTITUTE($Z180,\"{\",CHAR(160),HY$1))+1),\"\")","v":""},{"$f":"IFERROR(MID($Z180,FIND(CHAR(160),SUBSTITUTE($Z180,\"{\",CHAR(160),HZ$1)),FIND(CHAR(160),SUBSTITUTE($Z180,\"}\",CHAR(160),HZ$1))-FIND(CHAR(160),SUBSTITUTE($Z180,\"{\",CHAR(160),HZ$1))+1),\"\")","v":""},{"$f":"IFERROR(MID($Z180,FIND(CHAR(160),SUBSTITUTE($Z180,\"{\",CHAR(160),IA$1)),FIND(CHAR(160),SUBSTITUTE($Z180,\"}\",CHAR(160),IA$1))-FIND(CHAR(160),SUBSTITUTE($Z180,\"{\",CHAR(160),IA$1))+1),\"\")","v":""},{"$f":"IFERROR(MID($Z180,FIND(CHAR(160),SUBSTITUTE($Z180,\"{\",CHAR(160),IB$1)),FIND(CHAR(160),SUBSTITUTE($Z180,\"}\",CHAR(160),IB$1))-FIND(CHAR(160),SUBSTITUTE($Z180,\"{\",CHAR(160),IB$1))+1),\"\")","v":""},{"$f":"IFERROR(MID($Z180,FIND(CHAR(160),SUBSTITUTE($Z180,\"{\",CHAR(160),IC$1)),FIND(CHAR(160),SUBSTITUTE($Z180,\"}\",CHAR(160),IC$1))-FIND(CHAR(160),SUBSTITUTE($Z180,\"{\",CHAR(160),IC$1))+1),\"\")","v":"{Measure:Quantity}"},{"$f":"IFERROR(MID($Z180,FIND(CHAR(160),SUBSTITUTE($Z180,\"{\",CHAR(160),ID$1)),FIND(CHAR(160),SUBSTITUTE($Z180,\"}\",CHAR(160),ID$1))-FIND(CHAR(160),SUBSTITUTE($Z180,\"{\",CHAR(160),ID$1))+1),\"\")","v":"{Package Size}"},{"$f":"IFERROR(MID($AA180,FIND(CHAR(160),SUBSTITUTE($AA180,\"{\",CHAR(160),IE$1)),FIND(CHAR(160),SUBSTITUTE($AA180,\"}\",CHAR(160),IE$1))-FIND(CHAR(160),SUBSTITUTE($AA180,\"{\",CHAR(160),IE$1))+1),\"\")","v":""},{"$f":"IFERROR(MID($AA180,FIND(CHAR(160),SUBSTITUTE($AA180,\"{\",CHAR(160),IF$1)),FIND(CHAR(160),SUBSTITUTE($AA180,\"}\",CHAR(160),IF$1))-FIND(CHAR(160),SUBSTITUTE($AA180,\"{\",CHAR(160),IF$1))+1),\"\")","v":""},{"$f":"IFERROR(MID($AA180,FIND(CHAR(160),SUBSTITUTE($AA180,\"{\",CHAR(160),IG$1)),FIND(CHAR(160),SUBSTITUTE($AA180,\"}\",CHAR(160),IG$1))-FIND(CHAR(160),SUBSTITUTE($AA180,\"{\",CHAR(160),IG$1))+1),\"\")","v":""},{"$f":"IFERROR(MID($AA180,FIND(CHAR(160),SUBSTITUTE($AA180,\"{\",CHAR(160),IH$1)),FIND(CHAR(160),SUBSTITUTE($AA180,\"}\",CHAR(160),IH$1))-FIND(CHAR(160),SUBSTITUTE($AA180,\"{\",CHAR(160),IH$1))+1),\"\")","v":""},{"$f":"IFERROR(MID($AA180,FIND(CHAR(160),SUBSTITUTE($AA180,\"{\",CHAR(160),II$1)),FIND(CHAR(160),SUBSTITUTE($AA180,\"}\",CHAR(160),II$1))-FIND(CHAR(160),SUBSTITUTE($AA180,\"{\",CHAR(160),II$1))+1),\"\")","v":""},{"$f":"IFERROR(MID($AA180,FIND(CHAR(160),SUBSTITUTE($AA180,\"{\",CHAR(160),IJ$1)),FIND(CHAR(160),SUBSTITUTE($AA180,\"}\",CHAR(160),IJ$1))-FIND(CHAR(160),SUBSTITUTE($AA180,\"{\",CHAR(160),IJ$1))+1),\"\")","v":""},{"$f":"IFERROR(MID($AA180,FIND(CHAR(160),SUBSTITUTE($AA180,\"{\",CHAR(160),IK$1)),FIND(CHAR(160),SUBSTITUTE($AA180,\"}\",CHAR(160),IK$1))-FIND(CHAR(160),SUBSTITUTE($AA180,\"{\",CHAR(160),IK$1))+1),\"\")","v":""},{"$f":"IFERROR(MID($AA180,FIND(CHAR(160),SUBSTITUTE($AA180,\"{\",CHAR(160),IL$1)),FIND(CHAR(160),SUBSTITUTE($AA180,\"}\",CHAR(160),IL$1))-FIND(CHAR(160),SUBSTITUTE($AA180,\"{\",CHAR(160),IL$1))+1),\"\")","v":""},{"$f":"IFERROR(MID($AA180,FIND(CHAR(160),SUBSTITUTE($AA180,\"{\",CHAR(160),IM$1)),FIND(CHAR(160),SUBSTITUTE($AA180,\"}\",CHAR(160),IM$1))-FIND(CHAR(160),SUBSTITUTE($AA180,\"{\",CHAR(160),IM$1))+1),\"\")","v":"{Measure:Quantity}"},{"$f":"IFERROR(MID($AA180,FIND(CHAR(160),SUBSTITUTE($AA180,\"{\",CHAR(160),IN$1)),FIND(CHAR(160),SUBSTITUTE($AA180,\"}\",CHAR(160),IN$1))-FIND(CHAR(160),SUBSTITUTE($AA180,\"{\",CHAR(160),IN$1))+1),\"\")","v":"{Package Size}"},{"$f":"IFERROR(MID($AB180,FIND(CHAR(160),SUBSTITUTE($AB180,\"{\",CHAR(160),IO$1)),FIND(CHAR(160),SUBSTITUTE($AB180,\"}\",CHAR(160),IO$1))-FIND(CHAR(160),SUBSTITUTE($AB180,\"{\",CHAR(160),IO$1))+1),\"\")","v":""},{"$f":"IFERROR(MID($AB180,FIND(CHAR(160),SUBSTITUTE($AB180,\"{\",CHAR(160),IP$1)),FIND(CHAR(160),SUBSTITUTE($AB180,\"}\",CHAR(160),IP$1))-FIND(CHAR(160),SUBSTITUTE($AB180,\"{\",CHAR(160),IP$1))+1),\"\")","v":""},{"$f":"IFERROR(MID($AB180,FIND(CHAR(160),SUBSTITUTE($AB180,\"{\",CHAR(160),IQ$1)),FIND(CHAR(160),SUBSTITUTE($AB180,\"}\",CHAR(160),IQ$1))-FIND(CHAR(160),SUBSTITUTE($AB180,\"{\",CHAR(160),IQ$1))+1),\"\")","v":""},{"$f":"IFERROR(MID($AB180,FIND(CHAR(160),SUBSTITUTE($AB180,\"{\",CHAR(160),IR$1)),FIND(CHAR(160),SUBSTITUTE($AB180,\"}\",CHAR(160),IR$1))-FIND(CHAR(160),SUBSTITUTE($AB180,\"{\",CHAR(160),IR$1))+1),\"\")","v":""},{"$f":"IFERROR(MID($AB180,FIND(CHAR(160),SUBSTITUTE($AB180,\"{\",CHAR(160),IS$1)),FIND(CHAR(160),SUBSTITUTE($AB180,\"}\",CHAR(160),IS$1))-FIND(CHAR(160),SUBSTITUTE($AB180,\"{\",CHAR(160),IS$1))+1),\"\")","v":""},{"$f":"IFERROR(MID($AB180,FIND(CHAR(160),SUBSTITUTE($AB180,\"{\",CHAR(160),IT$1)),FIND(CHAR(160),SUBSTITUTE($AB180,\"}\",CHAR(160),IT$1))-FIND(CHAR(160),SUBSTITUTE($AB180,\"{\",CHAR(160),IT$1))+1),\"\")","v":""},{"$f":"IFERROR(MID($AB180,FIND(CHAR(160),SUBSTITUTE($AB180,\"{\",CHAR(160),IU$1)),FIND(CHAR(160),SUBSTITUTE($AB180,\"}\",CHAR(160),IU$1))-FIND(CHAR(160),SUBSTITUTE($AB180,\"{\",CHAR(160),IU$1))+1),\"\")","v":""},{"$f":"IFERROR(MID($AB180,FIND(CHAR(160),SUBSTITUTE($AB180,\"{\",CHAR(160),IV$1)),FIND(CHAR(160),SUBSTITUTE($AB180,\"}\",CHAR(160),IV$1))-FIND(CHAR(160),SUBSTITUTE($AB180,\"{\",CHAR(160),IV$1))+1),\"\")","v":""},{"$f":"IFERROR(MID($AB180,FIND(CHAR(160),SUBSTITUTE($AB180,\"{\",CHAR(160),IW$1)),FIND(CHAR(160),SUBSTITUTE($AB180,\"}\",CHAR(160),IW$1))-FIND(CHAR(160),SUBSTITUTE($AB180,\"{\",CHAR(160),IW$1))+1),\"\")","v":""},{"$f":"IFERROR(MID($AB180,FIND(CHAR(160),SUBSTITUTE($AB180,\"{\",CHAR(160),IX$1)),FIND(CHAR(160),SUBSTITUTE($AB180,\"}\",CHAR(160),IX$1))-FIND(CHAR(160),SUBSTITUTE($AB180,\"{\",CHAR(160),IX$1))+1),\"\")","v":""},null,{"$f":"10-COUNTIF(DU180:ED180,\"\")","v":3}]
["Distributor Lighting","LED Replacement Lamps T5HO (Type A)","S111AHO","2021-07-01","2022-06-30","Calculated","{Measure:Quantity}*{Package Size}*11.21",0,"Calculated","{Measure:Quantity}*{Rebate per Package}",0,"2021-07-01","2022-06-30","Calculated","{Measure:Quantity}*{Package Size}*93",null,null,"{Measure:Quantity}*{Package Size}*1.0747*0.03",null,null,"{Measure:Quantity}*{Package Size}*{Factor:WinterCF}*0.03","{Measure:Quantity}*{Package Size}*{Factor:SummerCF}*1.0747*0.03","{Measure:Quantity}*{Package Size}*10*-0.039","{Measure:Quantity}*{Package Size}*-0.009","{Measure:Quantity}*{Package Size}*-0.04","{Measure:Quantity}*{Package Size}*-0.002","{Measure:Quantity}*{Package Size}*-0.009",null,"2021-07-01","2022-06-30",16,0.372,0.64500000000000002,0.45,0.218,0.22900000000000001,0.10299999999999999,1,1,1,0.51,0,null,{"$f":"DU181","v":"{Measure:Quantity}"},1,{"$f":"DV181","v":"{Package Size}"},1,{"$f":"DW181","v":"{Rebate per Package}"},{"$f":"CW181*CO181","v":8.4075000000000006},{"$f":"DX181","v":""},null,{"$f":"DY181","v":""},null,{"$f":"DZ181","v":""},null,{"$f":"EA181","v":""},null,{"$f":"EB181","v":""},null,{"$f":"EC181","v":""},null,{"$f":"ED181","v":""},null,{"$f":"AS181*AU181*93","v":93},0,0,{"$f":"AS181*AU181*1.0747*0.03","v":3.2240999999999999E-2},0,0,{"$f":"AS181*AU181*AF181*0.03","v":1.116E-2},{"$f":"AS181*AU181*AG181*1.0747*0.03","v":2.0795444999999999E-2},{"$f":"AS181*AU181*10*-0.039","v":-0.39},{"$f":"AS181*AU181*-0.009","v":-8.9999999999999993E-3},{"$f":"AS181*AU181*-0.04","v":-0.04},{"$f":"AS181*AU181*-0.002","v":-2E-3},{"$f":"AS181*AU181*-0.009","v":-8.9999999999999993E-3},0,null,"Res","Default DR",{"$f":"Benefits(BL181,BR181,BS181,BT181,BU181,BV181,BW181,BX181,BY181,BZ181,AE181,AH181,AI181,AJ181,AK181,AL181,AM181,AN181,AO181,AP181,CA181,CB181)","v":129.61367062441209},85.500285613125911,-8.0444062979846933,-17.721635795594171,-1.0311921233420898,-5.5767943040738448,-2.5075477026150952,0,0,{"$f":"SUMPRODUCT(CC181:CK181,--(CC181:CK181>0))","v":215.11395623753799},{"$f":"-SUMPRODUCT(CC181:CK181,--(CC181:CK181<0))","v":34.881576223609891},null,{"$f":"AS181*AU181*11.21","v":11.21},null,null,{"$f":"CM181+CO181","v":46.091576223609891},{"$f":"IF(NetOrGross=\"Net\",(1-AO181+AP181),1)","v":1},{"$f":"(SUMPRODUCT(CC181:CJ181,--(CC181:CJ181>0))+CN181)*CS181/((-SUMPRODUCT(CC181:CJ181,--(CC181:CJ181<0))+MAX(CO181,CV181)+CP181+CQ181)*CS181+IF(FRIncentives=\"Yes\",CV181*(1-CS181),0))","v":4.6670991504809569},1,{"$f":"AS181*AW181","v":8.4075000000000006},{"$f":"CW180","v":0.75},"Electric","y",null,{"$f":"IF(F181=\"Manual Entry\",\"Manual\",IF(G181=\"\",0,\"X=\"&SUBSTITUTE(SUBSTITUTE(SUBSTITUTE(SUBSTITUTE(SUBSTITUTE(SUBSTITUTE(SUBSTITUTE(SUBSTITUTE(SUBSTITUTE(SUBSTITUTE(SUBSTITUTE(SUBSTITUTE(G181,$ED181,$ED$2&ROW($ED181)),$EC181,$EC$2&ROW($EC181)),$EB181,$EB$2&ROW($EB181)),$EA181,$EA$2&ROW($EA181)),$DZ181,$DZ$2&ROW($DZ181)),$DY181,$DY$2&ROW($DY181)),$DX181,$DX$2&ROW($DX181)),$DW181,$DW$2&ROW($DW181)),$DV181,$DV$2&ROW($DV181)),$DU181,$DU$2&ROW($DU181)),$DT181,$DT$2&ROW($DT181)),$DS181,$DS$2&ROW($DS181))))","v":"X=AS181*AU181*11.21"},{"$f":"IF(I181=\"Manual Entry\",\"Manual\",IF(J181=\"\",0,\"X=\"&SUBSTITUTE(SUBSTITUTE(SUBSTITUTE(SUBSTITUTE(SUBSTITUTE(SUBSTITUTE(SUBSTITUTE(SUBSTITUTE(SUBSTITUTE(SUBSTITUTE(SUBSTITUTE(SUBSTITUTE(J181,$ED181,$ED$2&ROW($ED181)),$EC181,$EC$2&ROW($EC181)),$EB181,$EB$2&ROW($EB181)),$EA181,$EA$2&ROW($EA181)),$DZ181,$DZ$2&ROW($DZ181)),$DY181,$DY$2&ROW($DY181)),$DX181,$DX$2&ROW($DX181)),$DW181,$DW$2&ROW($DW181)),$DV181,$DV$2&ROW($DV181)),$DU181,$DU$2&ROW($DU181)),$DT181,$DT$2&ROW($DT181)),$DS181,$DS$2&ROW($DS181))))","v":"X=AS181*AW181"},{"$f":"IF(O181=\"\",0,\"X=\"&SUBSTITUTE(SUBSTITUTE(SUBSTITUTE(SUBSTITUTE(SUBSTITUTE(SUBSTITUTE(SUBSTITUTE(SUBSTITUTE(SUBSTITUTE(SUBSTITUTE(SUBSTITUTE(SUBSTITUTE(O181,$ED181,$ED$2&ROW($ED181)),$EC181,$EC$2&ROW($EC181)),$EB181,$EB$2&ROW($EB181)),$EA181,$EA$2&ROW($EA181)),$DZ181,$DZ$2&ROW($DZ181)),$DY181,$DY$2&ROW($DY181)),$DX181,$DX$2&ROW($DX181)),$DW181,$DW$2&ROW($DW181)),$DV181,$DV$2&ROW($DV181)),$DU181,$DU$2&ROW($DU181)),$DT181,$DT$2&ROW($DT181)),$DS181,$DS$2&ROW($DS181)))","v":"X=AS181*AU181*93"},{"$f":"IF(P181=\"\",0,\"X=\"&SUBSTITUTE(SUBSTITUTE(SUBSTITUTE(SUBSTITUTE(SUBSTITUTE(SUBSTITUTE(SUBSTITUTE(SUBSTITUTE(SUBSTITUTE(SUBSTITUTE(SUBSTITUTE(SUBSTITUTE(P181,$ED181,$ED$2&ROW($ED181)),$EC181,$EC$2&ROW($EC181)),$EB181,$EB$2&ROW($EB181)),$EA181,$EA$2&ROW($EA181)),$DZ181,$DZ$2&ROW($DZ181)),$DY181,$DY$2&ROW($DY181)),$DX181,$DX$2&ROW($DX181)),$DW181,$DW$2&ROW($DW181)),$DV181,$DV$2&ROW($DV181)),$DU181,$DU$2&ROW($DU181)),$DT181,$DT$2&ROW($DT181)),$DS181,$DS$2&ROW($DS181)))","v":0},{"$f":"IF(Q181=\"\",0,\"X=\"&SUBSTITUTE(SUBSTITUTE(SUBSTITUTE(SUBSTITUTE(SUBSTITUTE(SUBSTITUTE(SUBSTITUTE(SUBSTITUTE(SUBSTITUTE(SUBSTITUTE(SUBSTITUTE(SUBSTITUTE(Q181,$ED181,$ED$2&ROW($ED181)),$EC181,$EC$2&ROW($EC181)),$EB181,$EB$2&ROW($EB181)),$EA181,$EA$2&ROW($EA181)),$DZ181,$DZ$2&ROW($DZ181)),$DY181,$DY$2&ROW($DY181)),$DX181,$DX$2&ROW($DX181)),$DW181,$DW$2&ROW($DW181)),$DV181,$DV$2&ROW($DV181)),$DU181,$DU$2&ROW($DU181)),$DT181,$DT$2&ROW($DT181)),$DS181,$DS$2&ROW($DS181)))","v":0},{"$f":"IF(R181=\"\",0,\"X=\"&SUBSTITUTE(SUBSTITUTE(SUBSTITUTE(SUBSTITUTE(SUBSTITUTE(SUBSTITUTE(SUBSTITUTE(SUBSTITUTE(SUBSTITUTE(SUBSTITUTE(SUBSTITUTE(SUBSTITUTE(R181,$ED181,$ED$2&ROW($ED181)),$EC181,$EC$2&ROW($EC181)),$EB181,$EB$2&ROW($EB181)),$EA181,$EA$2&ROW($EA181)),$DZ181,$DZ$2&ROW($DZ181)),$DY181,$DY$2&ROW($DY181)),$DX181,$DX$2&ROW($DX181)),$DW181,$DW$2&ROW($DW181)),$DV181,$DV$2&ROW($DV181)),$DU181,$DU$2&ROW($DU181)),$DT181,$DT$2&ROW($DT181)),$DS181,$DS$2&ROW($DS181)))","v":"X=AS181*AU181*1.0747*0.03"},{"$f":"IF(S181=\"\",0,\"X=\"&SUBSTITUTE(SUBSTITUTE(SUBSTITUTE(SUBSTITUTE(SUBSTITUTE(SUBSTITUTE(SUBSTITUTE(SUBSTITUTE(SUBSTITUTE(SUBSTITUTE(SUBSTITUTE(SUBSTITUTE(S181,$ED181,$ED$2&ROW($ED181)),$EC181,$EC$2&ROW($EC181)),$EB181,$EB$2&ROW($EB181)),$EA181,$EA$2&ROW($EA181)),$DZ181,$DZ$2&ROW($DZ181)),$DY181,$DY$2&ROW($DY181)),$DX181,$DX$2&ROW($DX181)),$DW181,$DW$2&ROW($DW181)),$DV181,$DV$2&ROW($DV181)),$DU181,$DU$2&ROW($DU181)),$DT181,$DT$2&ROW($DT181)),$DS181,$DS$2&ROW($DS181)))","v":0},{"$f":"IF(T181=\"\",0,\"X=\"&SUBSTITUTE(SUBSTITUTE(SUBSTITUTE(SUBSTITUTE(SUBSTITUTE(SUBSTITUTE(SUBSTITUTE(SUBSTITUTE(SUBSTITUTE(SUBSTITUTE(SUBSTITUTE(SUBSTITUTE(T181,$ED181,$ED$2&ROW($ED181)),$EC181,$EC$2&ROW($EC181)),$EB181,$EB$2&ROW($EB181)),$EA181,$EA$2&ROW($EA181)),$DZ181,$DZ$2&ROW($DZ181)),$DY181,$DY$2&ROW($DY181)),$DX181,$DX$2&ROW($DX181)),$DW181,$DW$2&ROW($DW181)),$DV181,$DV$2&ROW($DV181)),$DU181,$DU$2&ROW($DU181)),$DT181,$DT$2&ROW($DT181)),$DS181,$DS$2&ROW($DS181)))","v":0},{"$f":"IF(U181=\"\",0,\"X=\"&SUBSTITUTE(SUBSTITUTE(SUBSTITUTE(SUBSTITUTE(SUBSTITUTE(SUBSTITUTE(SUBSTITUTE(SUBSTITUTE(SUBSTITUTE(SUBSTITUTE(SUBSTITUTE(SUBSTITUTE(U181,$ED181,$ED$2&ROW($ED181)),$EC181,$EC$2&ROW($EC181)),$EB181,$EB$2&ROW($EB181)),$EA181,$EA$2&ROW($EA181)),$DZ181,$DZ$2&ROW($DZ181)),$DY181,$DY$2&ROW($DY181)),$DX181,$DX$2&ROW($DX181)),$DW181,$DW$2&ROW($DW181)),$DV181,$DV$2&ROW($DV181)),$DU181,$DU$2&ROW($DU181)),$DT181,$DT$2&ROW($DT181)),$DS181,$DS$2&ROW($DS181)))","v":"X=AS181*AU181*AF181*0.03"},{"$f":"IF(V181=\"\",0,\"X=\"&SUBSTITUTE(SUBSTITUTE(SUBSTITUTE(SUBSTITUTE(SUBSTITUTE(SUBSTITUTE(SUBSTITUTE(SUBSTITUTE(SUBSTITUTE(SUBSTITUTE(SUBSTITUTE(SUBSTITUTE(V181,$ED181,$ED$2&ROW($ED181)),$EC181,$EC$2&ROW($EC181)),$EB181,$EB$2&ROW($EB181)),$EA181,$EA$2&ROW($EA181)),$DZ181,$DZ$2&ROW($DZ181)),$DY181,$DY$2&ROW($DY181)),$DX181,$DX$2&ROW($DX181)),$DW181,$DW$2&ROW($DW181)),$DV181,$DV$2&ROW($DV181)),$DU181,$DU$2&ROW($DU181)),$DT181,$DT$2&ROW($DT181)),$DS181,$DS$2&ROW($DS181)))","v":"X=AS181*AU181*AG181*1.0747*0.03"},{"$f":"IF(W181=\"\",0,\"X=\"&SUBSTITUTE(SUBSTITUTE(SUBSTITUTE(SUBSTITUTE(SUBSTITUTE(SUBSTITUTE(SUBSTITUTE(SUBSTITUTE(SUBSTITUTE(SUBSTITUTE(SUBSTITUTE(SUBSTITUTE(W181,$ED181,$ED$2&ROW($ED181)),$EC181,$EC$2&ROW($EC181)),$EB181,$EB$2&ROW($EB181)),$EA181,$EA$2&ROW($EA181)),$DZ181,$DZ$2&ROW($DZ181)),$DY181,$DY$2&ROW($DY181)),$DX181,$DX$2&ROW($DX181)),$DW181,$DW$2&ROW($DW181)),$DV181,$DV$2&ROW($DV181)),$DU181,$DU$2&ROW($DU181)),$DT181,$DT$2&ROW($DT181)),$DS181,$DS$2&ROW($DS181)))","v":"X=AS181*AU181*10*-0.039"},{"$f":"IF(X181=\"\",0,\"X=\"&SUBSTITUTE(SUBSTITUTE(SUBSTITUTE(SUBSTITUTE(SUBSTITUTE(SUBSTITUTE(SUBSTITUTE(SUBSTITUTE(SUBSTITUTE(SUBSTITUTE(SUBSTITUTE(SUBSTITUTE(X181,$ED181,$ED$2&ROW($ED181)),$EC181,$EC$2&ROW($EC181)),$EB181,$EB$2&ROW($EB181)),$EA181,$EA$2&ROW($EA181)),$DZ181,$DZ$2&ROW($DZ181)),$DY181,$DY$2&ROW($DY181)),$DX181,$DX$2&ROW($DX181)),$DW181,$DW$2&ROW($DW181)),$DV181,$DV$2&ROW($DV181)),$DU181,$DU$2&ROW($DU181)),$DT181,$DT$2&ROW($DT181)),$DS181,$DS$2&ROW($DS181)))","v":"X=AS181*AU181*-0.009"},{"$f":"IF(Y181=\"\",0,\"X=\"&SUBSTITUTE(SUBSTITUTE(SUBSTITUTE(SUBSTITUTE(SUBSTITUTE(SUBSTITUTE(SUBSTITUTE(SUBSTITUTE(SUBSTITUTE(SUBSTITUTE(SUBSTITUTE(SUBSTITUTE(Y181,$ED181,$ED$2&ROW($ED181)),$EC181,$EC$2&ROW($EC181)),$EB181,$EB$2&ROW($EB181)),$EA181,$EA$2&ROW($EA181)),$DZ181,$DZ$2&ROW($DZ181)),$DY181,$DY$2&ROW($DY181)),$DX181,$DX$2&ROW($DX181)),$DW181,$DW$2&ROW($DW181)),$DV181,$DV$2&ROW($DV181)),$DU181,$DU$2&ROW($DU181)),$DT181,$DT$2&ROW($DT181)),$DS181,$DS$2&ROW($DS181)))","v":"X=AS181*AU181*-0.04"},{"$f":"IF(Z181=\"\",0,\"X=\"&SUBSTITUTE(SUBSTITUTE(SUBSTITUTE(SUBSTITUTE(SUBSTITUTE(SUBSTITUTE(SUBSTITUTE(SUBSTITUTE(SUBSTITUTE(SUBSTITUTE(SUBSTITUTE(SUBSTITUTE(Z181,$ED181,$ED$2&ROW($ED181)),$EC181,$EC$2&ROW($EC181)),$EB181,$EB$2&ROW($EB181)),$EA181,$EA$2&ROW($EA181)),$DZ181,$DZ$2&ROW($DZ181)),$DY181,$DY$2&ROW($DY181)),$DX181,$DX$2&ROW($DX181)),$DW181,$DW$2&ROW($DW181)),$DV181,$DV$2&ROW($DV181)),$DU181,$DU$2&ROW($DU181)),$DT181,$DT$2&ROW($DT181)),$DS181,$DS$2&ROW($DS181)))","v":"X=AS181*AU181*-0.002"},{"$f":"IF(AA181=\"\",0,\"X=\"&SUBSTITUTE(SUBSTITUTE(SUBSTITUTE(SUBSTITUTE(SUBSTITUTE(SUBSTITUTE(SUBSTITUTE(SUBSTITUTE(SUBSTITUTE(SUBSTITUTE(SUBSTITUTE(SUBSTITUTE(AA181,$ED181,$ED$2&ROW($ED181)),$EC181,$EC$2&ROW($EC181)),$EB181,$EB$2&ROW($EB181)),$EA181,$EA$2&ROW($EA181)),$DZ181,$DZ$2&ROW($DZ181)),$DY181,$DY$2&ROW($DY181)),$DX181,$DX$2&ROW($DX181)),$DW181,$DW$2&ROW($DW181)),$DV181,$DV$2&ROW($DV181)),$DU181,$DU$2&ROW($DU181)),$DT181,$DT$2&ROW($DT181)),$DS181,$DS$2&ROW($DS181)))","v":"X=AS181*AU181*-0.009"},{"$f":"IF(AB181=\"\",0,\"X=\"&SUBSTITUTE(SUBSTITUTE(SUBSTITUTE(SUBSTITUTE(SUBSTITUTE(SUBSTITUTE(SUBSTITUTE(SUBSTITUTE(SUBSTITUTE(SUBSTITUTE(SUBSTITUTE(SUBSTITUTE(AB181,$ED181,$ED$2&ROW($ED181)),$EC181,$EC$2&ROW($EC181)),$EB181,$EB$2&ROW($EB181)),$EA181,$EA$2&ROW($EA181)),$DZ181,$DZ$2&ROW($DZ181)),$DY181,$DY$2&ROW($DY181)),$DX181,$DX$2&ROW($DX181)),$DW181,$DW$2&ROW($DW181)),$DV181,$DV$2&ROW($DV181)),$DU181,$DU$2&ROW($DU181)),$DT181,$DT$2&ROW($DT181)),$DS181,$DS$2&ROW($DS181)))","v":0},null,null,"{Factor:WinterCF}","{Factor:SummerCF}",{"$f":"IFERROR(INDEX($EG181:$IV181,MATCH(0,COUNTIF($DR181:DT181,$EG181:$IV181),0)),\"\")","v":"{Measure:Quantity}"},{"$f":"IFERROR(INDEX($EG181:$IV181,MATCH(0,COUNTIF($DR181:DU181,$EG181:$IV181),0)),\"\")","v":"{Package Size}"},{"$f":"IFERROR(INDEX($EG181:$IV181,MATCH(0,COUNTIF($DR181:DV181,$EG181:$IV181),0)),\"\")","v":"{Rebate per Package}"},{"$f":"IFERROR(INDEX($EG181:$IV181,MATCH(0,COUNTIF($DR181:DW181,$EG181:$IV181),0)),\"\")","v":""},{"$f":"IFERROR(INDEX($EG181:$IV181,MATCH(0,COUNTIF($DR181:DX181,$EG181:$IV181),0)),\"\")","v":""},{"$f":"IFERROR(INDEX($EG181:$IV181,MATCH(0,COUNTIF($DR181:DY181,$EG181:$IV181),0)),\"\")","v":""},{"$f":"IFERROR(INDEX($EG181:$IV181,MATCH(0,COUNTIF($DR181:DZ181,$EG181:$IV181),0)),\"\")","v":""},{"$f":"IFERROR(INDEX($EG181:$IV181,MATCH(0,COUNTIF($DR181:EA181,$EG181:$IV181),0)),\"\")","v":""},{"$f":"IFERROR(INDEX($EG181:$IV181,MATCH(0,COUNTIF($DR181:EB181,$EG181:$IV181),0)),\"\")","v":""},{"$f":"IFERROR(INDEX($EG181:$IV181,MATCH(0,COUNTIF($DR181:EC181,$EG181:$IV181),0)),\"\")","v":""},null,null,{"$f":"IFERROR(MID($G181,FIND(CHAR(160),SUBSTITUTE($G181,\"{\",CHAR(160),EG$1)),FIND(CHAR(160),SUBSTITUTE($G181,\"}\",CHAR(160),EG$1))-FIND(CHAR(160),SUBSTITUTE($G181,\"{\",CHAR(160),EG$1))+1),\"\")","v":"{Measure:Quantity}"},{"$f":"IFERROR(MID($G181,FIND(CHAR(160),SUBSTITUTE($G181,\"{\",CHAR(160),EH$1)),FIND(CHAR(160),SUBSTITUTE($G181,\"}\",CHAR(160),EH$1))-FIND(CHAR(160),SUBSTITUTE($G181,\"{\",CHAR(160),EH$1))+1),\"\")","v":"{Package Size}"},{"$f":"IFERROR(MID($G181,FIND(CHAR(160),SUBSTITUTE($G181,\"{\",CHAR(160),EI$1)),FIND(CHAR(160),SUBSTITUTE($G181,\"}\",CHAR(160),EI$1))-FIND(CHAR(160),SUBSTITUTE($G181,\"{\",CHAR(160),EI$1))+1),\"\")","v":""},{"$f":"IFERROR(MID($G181,FIND(CHAR(160),SUBSTITUTE($G181,\"{\",CHAR(160),EJ$1)),FIND(CHAR(160),SUBSTITUTE($G181,\"}\",CHAR(160),EJ$1))-FIND(CHAR(160),SUBSTITUTE($G181,\"{\",CHAR(160),EJ$1))+1),\"\")","v":""},{"$f":"IFERROR(MID($G181,FIND(CHAR(160),SUBSTITUTE($G181,\"{\",CHAR(160),EK$1)),FIND(CHAR(160),SUBSTITUTE($G181,\"}\",CHAR(160),EK$1))-FIND(CHAR(160),SUBSTITUTE($G181,\"{\",CHAR(160),EK$1))+1),\"\")","v":""},{"$f":"IFERROR(MID($G181,FIND(CHAR(160),SUBSTITUTE($G181,\"{\",CHAR(160),EL$1)),FIND(CHAR(160),SUBSTITUTE($G181,\"}\",CHAR(160),EL$1))-FIND(CHAR(160),SUBSTITUTE($G181,\"{\",CHAR(160),EL$1))+1),\"\")","v":""},{"$f":"IFERROR(MID($G181,FIND(CHAR(160),SUBSTITUTE($G181,\"{\",CHAR(160),EM$1)),FIND(CHAR(160),SUBSTITUTE($G181,\"}\",CHAR(160),EM$1))-FIND(CHAR(160),SUBSTITUTE($G181,\"{\",CHAR(160),EM$1))+1),\"\")","v":""},{"$f":"IFERROR(MID($G181,FIND(CHAR(160),SUBSTITUTE($G181,\"{\",CHAR(160),EN$1)),FIND(CHAR(160),SUBSTITUTE($G181,\"}\",CHAR(160),EN$1))-FIND(CHAR(160),SUBSTITUTE($G181,\"{\",CHAR(160),EN$1))+1),\"\")","v":""},{"$f":"IFERROR(MID($G181,FIND(CHAR(160),SUBSTITUTE($G181,\"{\",CHAR(160),EO$1)),FIND(CHAR(160),SUBSTITUTE($G181,\"}\",CHAR(160),EO$1))-FIND(CHAR(160),SUBSTITUTE($G181,\"{\",CHAR(160),EO$1))+1),\"\")","v":""},{"$f":"IFERROR(MID($G181,FIND(CHAR(160),SUBSTITUTE($G181,\"{\",CHAR(160),EP$1)),FIND(CHAR(160),SUBSTITUTE($G181,\"}\",CHAR(160),EP$1))-FIND(CHAR(160),SUBSTITUTE($G181,\"{\",CHAR(160),EP$1))+1),\"\")","v":""},{"$f":"IFERROR(MID($J181,FIND(CHAR(160),SUBSTITUTE($J181,\"{\",CHAR(160),EQ$1)),FIND(CHAR(160),SUBSTITUTE($J181,\"}\",CHAR(160),EQ$1))-FIND(CHAR(160),SUBSTITUTE($J181,\"{\",CHAR(160),EQ$1))+1),\"\")","v":"{Measure:Quantity}"},{"$f":"IFERROR(MID($J181,FIND(CHAR(160),SUBSTITUTE($J181,\"{\",CHAR(160),ER$1)),FIND(CHAR(160),SUBSTITUTE($J181,\"}\",CHAR(160),ER$1))-FIND(CHAR(160),SUBSTITUTE($J181,\"{\",CHAR(160),ER$1))+1),\"\")","v":"{Rebate per Package}"},{"$f":"IFERROR(MID($J181,FIND(CHAR(160),SUBSTITUTE($J181,\"{\",CHAR(160),ES$1)),FIND(CHAR(160),SUBSTITUTE($J181,\"}\",CHAR(160),ES$1))-FIND(CHAR(160),SUBSTITUTE($J181,\"{\",CHAR(160),ES$1))+1),\"\")","v":""},{"$f":"IFERROR(MID($J181,FIND(CHAR(160),SUBSTITUTE($J181,\"{\",CHAR(160),ET$1)),FIND(CHAR(160),SUBSTITUTE($J181,\"}\",CHAR(160),ET$1))-FIND(CHAR(160),SUBSTITUTE($J181,\"{\",CHAR(160),ET$1))+1),\"\")","v":""},{"$f":"IFERROR(MID($J181,FIND(CHAR(160),SUBSTITUTE($J181,\"{\",CHAR(160),EU$1)),FIND(CHAR(160),SUBSTITUTE($J181,\"}\",CHAR(160),EU$1))-FIND(CHAR(160),SUBSTITUTE($J181,\"{\",CHAR(160),EU$1))+1),\"\")","v":""},{"$f":"IFERROR(MID($J181,FIND(CHAR(160),SUBSTITUTE($J181,\"{\",CHAR(160),EV$1)),FIND(CHAR(160),SUBSTITUTE($J181,\"}\",CHAR(160),EV$1))-FIND(CHAR(160),SUBSTITUTE($J181,\"{\",CHAR(160),EV$1))+1),\"\")","v":""},{"$f":"IFERROR(MID($J181,FIND(CHAR(160),SUBSTITUTE($J181,\"{\",CHAR(160),EW$1)),FIND(CHAR(160),SUBSTITUTE($J181,\"}\",CHAR(160),EW$1))-FIND(CHAR(160),SUBSTITUTE($J181,\"{\",CHAR(160),EW$1))+1),\"\")","v":""},{"$f":"IFERROR(MID($J181,FIND(CHAR(160),SUBSTITUTE($J181,\"{\",CHAR(160),EX$1)),FIND(CHAR(160),SUBSTITUTE($J181,\"}\",CHAR(160),EX$1))-FIND(CHAR(160),SUBSTITUTE($J181,\"{\",CHAR(160),EX$1))+1),\"\")","v":""},{"$f":"IFERROR(MID($J181,FIND(CHAR(160),SUBSTITUTE($J181,\"{\",CHAR(160),EY$1)),FIND(CHAR(160),SUBSTITUTE($J181,\"}\",CHAR(160),EY$1))-FIND(CHAR(160),SUBSTITUTE($J181,\"{\",CHAR(160),EY$1))+1),\"\")","v":""},{"$f":"IFERROR(MID($J181,FIND(CHAR(160),SUBSTITUTE($J181,\"{\",CHAR(160),EZ$1)),FIND(CHAR(160),SUBSTITUTE($J181,\"}\",CHAR(160),EZ$1))-FIND(CHAR(160),SUBSTITUTE($J181,\"{\",CHAR(160),EZ$1))+1),\"\")","v":""},{"$f":"IFERROR(MID($J181,FIND(CHAR(160),SUBSTITUTE($J181,\"{\",CHAR(160),FA$1)),FIND(CHAR(160),SUBSTITUTE($J181,\"}\",CHAR(160),FA$1))-FIND(CHAR(160),SUBSTITUTE($J181,\"{\",CHAR(160),FA$1))+1),\"\")","v":"{Measure:Quantity}"},{"$f":"IFERROR(MID($J181,FIND(CHAR(160),SUBSTITUTE($J181,\"{\",CHAR(160),FB$1)),FIND(CHAR(160),SUBSTITUTE($J181,\"}\",CHAR(160),FB$1))-FIND(CHAR(160),SUBSTITUTE($J181,\"{\",CHAR(160),FB$1))+1),\"\")","v":"{Rebate per Package}"},{"$f":"IFERROR(MID($O181,FIND(CHAR(160),SUBSTITUTE($O181,\"{\",CHAR(160),FC$1)),FIND(CHAR(160),SUBSTITUTE($O181,\"}\",CHAR(160),FC$1))-FIND(CHAR(160),SUBSTITUTE($O181,\"{\",CHAR(160),FC$1))+1),\"\")","v":""},{"$f":"IFERROR(MID($O181,FIND(CHAR(160),SUBSTITUTE($O181,\"{\",CHAR(160),FD$1)),FIND(CHAR(160),SUBSTITUTE($O181,\"}\",CHAR(160),FD$1))-FIND(CHAR(160),SUBSTITUTE($O181,\"{\",CHAR(160),FD$1))+1),\"\")","v":""},{"$f":"IFERROR(MID($O181,FIND(CHAR(160),SUBSTITUTE($O181,\"{\",CHAR(160),FE$1)),FIND(CHAR(160),SUBSTITUTE($O181,\"}\",CHAR(160),FE$1))-FIND(CHAR(160),SUBSTITUTE($O181,\"{\",CHAR(160),FE$1))+1),\"\")","v":""},{"$f":"IFERROR(MID($O181,FIND(CHAR(160),SUBSTITUTE($O181,\"{\",CHAR(160),FF$1)),FIND(CHAR(160),SUBSTITUTE($O181,\"}\",CHAR(160),FF$1))-FIND(CHAR(160),SUBSTITUTE($O181,\"{\",CHAR(160),FF$1))+1),\"\")","v":""},{"$f":"IFERROR(MID($O181,FIND(CHAR(160),SUBSTITUTE($O181,\"{\",CHAR(160),FG$1)),FIND(CHAR(160),SUBSTITUTE($O181,\"}\",CHAR(160),FG$1))-FIND(CHAR(160),SUBSTITUTE($O181,\"{\",CHAR(160),FG$1))+1),\"\")","v":""},{"$f":"IFERROR(MID($O181,FIND(CHAR(160),SUBSTITUTE($O181,\"{\",CHAR(160),FH$1)),FIND(CHAR(160),SUBSTITUTE($O181,\"}\",CHAR(160),FH$1))-FIND(CHAR(160),SUBSTITUTE($O181,\"{\",CHAR(160),FH$1))+1),\"\")","v":""},{"$f":"IFERROR(MID($O181,FIND(CHAR(160),SUBSTITUTE($O181,\"{\",CHAR(160),FI$1)),FIND(CHAR(160),SUBSTITUTE($O181,\"}\",CHAR(160),FI$1))-FIND(CHAR(160),SUBSTITUTE($O181,\"{\",CHAR(160),FI$1))+1),\"\")","v":""},{"$f":"IFERROR(MID($O181,FIND(CHAR(160),SUBSTITUTE($O181,\"{\",CHAR(160),FJ$1)),FIND(CHAR(160),SUBSTITUTE($O181,\"}\",CHAR(160),FJ$1))-FIND(CHAR(160),SUBSTITUTE($O181,\"{\",CHAR(160),FJ$1))+1),\"\")","v":""},{"$f":"IFERROR(MID($O181,FIND(CHAR(160),SUBSTITUTE($O181,\"{\",CHAR(160),FK$1)),FIND(CHAR(160),SUBSTITUTE($O181,\"}\",CHAR(160),FK$1))-FIND(CHAR(160),SUBSTITUTE($O181,\"{\",CHAR(160),FK$1))+1),\"\")","v":"{Measure:Quantity}"},{"$f":"IFERROR(MID($O181,FIND(CHAR(160),SUBSTITUTE($O181,\"{\",CHAR(160),FL$1)),FIND(CHAR(160),SUBSTITUTE($O181,\"}\",CHAR(160),FL$1))-FIND(CHAR(160),SUBSTITUTE($O181,\"{\",CHAR(160),FL$1))+1),\"\")","v":"{Package Size}"},{"$f":"IFERROR(MID($R181,FIND(CHAR(160),SUBSTITUTE($R181,\"{\",CHAR(160),FM$1)),FIND(CHAR(160),SUBSTITUTE($R181,\"}\",CHAR(160),FM$1))-FIND(CHAR(160),SUBSTITUTE($R181,\"{\",CHAR(160),FM$1))+1),\"\")","v":""},{"$f":"IFERROR(MID($R181,FIND(CHAR(160),SUBSTITUTE($R181,\"{\",CHAR(160),FN$1)),FIND(CHAR(160),SUBSTITUTE($R181,\"}\",CHAR(160),FN$1))-FIND(CHAR(160),SUBSTITUTE($R181,\"{\",CHAR(160),FN$1))+1),\"\")","v":""},{"$f":"IFERROR(MID($R181,FIND(CHAR(160),SUBSTITUTE($R181,\"{\",CHAR(160),FO$1)),FIND(CHAR(160),SUBSTITUTE($R181,\"}\",CHAR(160),FO$1))-FIND(CHAR(160),SUBSTITUTE($R181,\"{\",CHAR(160),FO$1))+1),\"\")","v":""},{"$f":"IFERROR(MID($R181,FIND(CHAR(160),SUBSTITUTE($R181,\"{\",CHAR(160),FP$1)),FIND(CHAR(160),SUBSTITUTE($R181,\"}\",CHAR(160),FP$1))-FIND(CHAR(160),SUBSTITUTE($R181,\"{\",CHAR(160),FP$1))+1),\"\")","v":""},{"$f":"IFERROR(MID($R181,FIND(CHAR(160),SUBSTITUTE($R181,\"{\",CHAR(160),FQ$1)),FIND(CHAR(160),SUBSTITUTE($R181,\"}\",CHAR(160),FQ$1))-FIND(CHAR(160),SUBSTITUTE($R181,\"{\",CHAR(160),FQ$1))+1),\"\")","v":""},{"$f":"IFERROR(MID($R181,FIND(CHAR(160),SUBSTITUTE($R181,\"{\",CHAR(160),FR$1)),FIND(CHAR(160),SUBSTITUTE($R181,\"}\",CHAR(160),FR$1))-FIND(CHAR(160),SUBSTITUTE($R181,\"{\",CHAR(160),FR$1))+1),\"\")","v":""},{"$f":"IFERROR(MID($R181,FIND(CHAR(160),SUBSTITUTE($R181,\"{\",CHAR(160),FS$1)),FIND(CHAR(160),SUBSTITUTE($R181,\"}\",CHAR(160),FS$1))-FIND(CHAR(160),SUBSTITUTE($R181,\"{\",CHAR(160),FS$1))+1),\"\")","v":""},{"$f":"IFERROR(MID($R181,FIND(CHAR(160),SUBSTITUTE($R181,\"{\",CHAR(160),FT$1)),FIND(CHAR(160),SUBSTITUTE($R181,\"}\",CHAR(160),FT$1))-FIND(CHAR(160),SUBSTITUTE($R181,\"{\",CHAR(160),FT$1))+1),\"\")","v":""},{"$f":"IFERROR(MID($R181,FIND(CHAR(160),SUBSTITUTE($R181,\"{\",CHAR(160),FU$1)),FIND(CHAR(160),SUBSTITUTE($R181,\"}\",CHAR(160),FU$1))-FIND(CHAR(160),SUBSTITUTE($R181,\"{\",CHAR(160),FU$1))+1),\"\")","v":"{Measure:Quantity}"},{"$f":"IFERROR(MID($R181,FIND(CHAR(160),SUBSTITUTE($R181,\"{\",CHAR(160),FV$1)),FIND(CHAR(160),SUBSTITUTE($R181,\"}\",CHAR(160),FV$1))-FIND(CHAR(160),SUBSTITUTE($R181,\"{\",CHAR(160),FV$1))+1),\"\")","v":"{Package Size}"},{"$f":"IFERROR(MID($U181,FIND(CHAR(160),SUBSTITUTE($U181,\"{\",CHAR(160),FW$1)),FIND(CHAR(160),SUBSTITUTE($U181,\"}\",CHAR(160),FW$1))-FIND(CHAR(160),SUBSTITUTE($U181,\"{\",CHAR(160),FW$1))+1),\"\")","v":"{Factor:WinterCF}"},{"$f":"IFERROR(MID($U181,FIND(CHAR(160),SUBSTITUTE($U181,\"{\",CHAR(160),FX$1)),FIND(CHAR(160),SUBSTITUTE($U181,\"}\",CHAR(160),FX$1))-FIND(CHAR(160),SUBSTITUTE($U181,\"{\",CHAR(160),FX$1))+1),\"\")","v":""},{"$f":"IFERROR(MID($U181,FIND(CHAR(160),SUBSTITUTE($U181,\"{\",CHAR(160),FY$1)),FIND(CHAR(160),SUBSTITUTE($U181,\"}\",CHAR(160),FY$1))-FIND(CHAR(160),SUBSTITUTE($U181,\"{\",CHAR(160),FY$1))+1),\"\")","v":""},{"$f":"IFERROR(MID($U181,FIND(CHAR(160),SUBSTITUTE($U181,\"{\",CHAR(160),FZ$1)),FIND(CHAR(160),SUBSTITUTE($U181,\"}\",CHAR(160),FZ$1))-FIND(CHAR(160),SUBSTITUTE($U181,\"{\",CHAR(160),FZ$1))+1),\"\")","v":""},{"$f":"IFERROR(MID($U181,FIND(CHAR(160),SUBSTITUTE($U181,\"{\",CHAR(160),GA$1)),FIND(CHAR(160),SUBSTITUTE($U181,\"}\",CHAR(160),GA$1))-FIND(CHAR(160),SUBSTITUTE($U181,\"{\",CHAR(160),GA$1))+1),\"\")","v":""},{"$f":"IFERROR(MID($U181,FIND(CHAR(160),SUBSTITUTE($U181,\"{\",CHAR(160),GB$1)),FIND(CHAR(160),SUBSTITUTE($U181,\"}\",CHAR(160),GB$1))-FIND(CHAR(160),SUBSTITUTE($U181,\"{\",CHAR(160),GB$1))+1),\"\")","v":""},{"$f":"IFERROR(MID($U181,FIND(CHAR(160),SUBSTITUTE($U181,\"{\",CHAR(160),GC$1)),FIND(CHAR(160),SUBSTITUTE($U181,\"}\",CHAR(160),GC$1))-FIND(CHAR(160),SUBSTITUTE($U181,\"{\",CHAR(160),GC$1))+1),\"\")","v":""},{"$f":"IFERROR(MID($U181,FIND(CHAR(160),SUBSTITUTE($U181,\"{\",CHAR(160),GD$1)),FIND(CHAR(160),SUBSTITUTE($U181,\"}\",CHAR(160),GD$1))-FIND(CHAR(160),SUBSTITUTE($U181,\"{\",CHAR(160),GD$1))+1),\"\")","v":""},{"$f":"IFERROR(MID($U181,FIND(CHAR(160),SUBSTITUTE($U181,\"{\",CHAR(160),GE$1)),FIND(CHAR(160),SUBSTITUTE($U181,\"}\",CHAR(160),GE$1))-FIND(CHAR(160),SUBSTITUTE($U181,\"{\",CHAR(160),GE$1))+1),\"\")","v":"{Measure:Quantity}"},{"$f":"IFERROR(MID($U181,FIND(CHAR(160),SUBSTITUTE($U181,\"{\",CHAR(160),GF$1)),FIND(CHAR(160),SUBSTITUTE($U181,\"}\",CHAR(160),GF$1))-FIND(CHAR(160),SUBSTITUTE($U181,\"{\",CHAR(160),GF$1))+1),\"\")","v":"{Package Size}"},{"$f":"IFERROR(MID($V181,FIND(CHAR(160),SUBSTITUTE($V181,\"{\",CHAR(160),GG$1)),FIND(CHAR(160),SUBSTITUTE($V181,\"}\",CHAR(160),GG$1))-FIND(CHAR(160),SUBSTITUTE($V181,\"{\",CHAR(160),GG$1))+1),\"\")","v":"{Factor:SummerCF}"},{"$f":"IFERROR(MID($V181,FIND(CHAR(160),SUBSTITUTE($V181,\"{\",CHAR(160),GH$1)),FIND(CHAR(160),SUBSTITUTE($V181,\"}\",CHAR(160),GH$1))-FIND(CHAR(160),SUBSTITUTE($V181,\"{\",CHAR(160),GH$1))+1),\"\")","v":""},{"$f":"IFERROR(MID($V181,FIND(CHAR(160),SUBSTITUTE($V181,\"{\",CHAR(160),GI$1)),FIND(CHAR(160),SUBSTITUTE($V181,\"}\",CHAR(160),GI$1))-FIND(CHAR(160),SUBSTITUTE($V181,\"{\",CHAR(160),GI$1))+1),\"\")","v":""},{"$f":"IFERROR(MID($V181,FIND(CHAR(160),SUBSTITUTE($V181,\"{\",CHAR(160),GJ$1)),FIND(CHAR(160),SUBSTITUTE($V181,\"}\",CHAR(160),GJ$1))-FIND(CHAR(160),SUBSTITUTE($V181,\"{\",CHAR(160),GJ$1))+1),\"\")","v":""},{"$f":"IFERROR(MID($V181,FIND(CHAR(160),SUBSTITUTE($V181,\"{\",CHAR(160),GK$1)),FIND(CHAR(160),SUBSTITUTE($V181,\"}\",CHAR(160),GK$1))-FIND(CHAR(160),SUBSTITUTE($V181,\"{\",CHAR(160),GK$1))+1),\"\")","v":""},{"$f":"IFERROR(MID($V181,FIND(CHAR(160),SUBSTITUTE($V181,\"{\",CHAR(160),GL$1)),FIND(CHAR(160),SUBSTITUTE($V181,\"}\",CHAR(160),GL$1))-FIND(CHAR(160),SUBSTITUTE($V181,\"{\",CHAR(160),GL$1))+1),\"\")","v":""},{"$f":"IFERROR(MID($V181,FIND(CHAR(160),SUBSTITUTE($V181,\"{\",CHAR(160),GM$1)),FIND(CHAR(160),SUBSTITUTE($V181,\"}\",CHAR(160),GM$1))-FIND(CHAR(160),SUBSTITUTE($V181,\"{\",CHAR(160),GM$1))+1),\"\")","v":""},{"$f":"IFERROR(MID($V181,FIND(CHAR(160),SUBSTITUTE($V181,\"{\",CHAR(160),GN$1)),FIND(CHAR(160),SUBSTITUTE($V181,\"}\",CHAR(160),GN$1))-FIND(CHAR(160),SUBSTITUTE($V181,\"{\",CHAR(160),GN$1))+1),\"\")","v":""},{"$f":"IFERROR(MID($V181,FIND(CHAR(160),SUBSTITUTE($V181,\"{\",CHAR(160),GO$1)),FIND(CHAR(160),SUBSTITUTE($V181,\"}\",CHAR(160),GO$1))-FIND(CHAR(160),SUBSTITUTE($V181,\"{\",CHAR(160),GO$1))+1),\"\")","v":"{Measure:Quantity}"},{"$f":"IFERROR(MID($V181,FIND(CHAR(160),SUBSTITUTE($V181,\"{\",CHAR(160),GP$1)),FIND(CHAR(160),SUBSTITUTE($V181,\"}\",CHAR(160),GP$1))-FIND(CHAR(160),SUBSTITUTE($V181,\"{\",CHAR(160),GP$1))+1),\"\")","v":"{Package Size}"},{"$f":"IFERROR(MID($W181,FIND(CHAR(160),SUBSTITUTE($W181,\"{\",CHAR(160),GQ$1)),FIND(CHAR(160),SUBSTITUTE($W181,\"}\",CHAR(160),GQ$1))-FIND(CHAR(160),SUBSTITUTE($W181,\"{\",CHAR(160),GQ$1))+1),\"\")","v":""},{"$f":"IFERROR(MID($W181,FIND(CHAR(160),SUBSTITUTE($W181,\"{\",CHAR(160),GR$1)),FIND(CHAR(160),SUBSTITUTE($W181,\"}\",CHAR(160),GR$1))-FIND(CHAR(160),SUBSTITUTE($W181,\"{\",CHAR(160),GR$1))+1),\"\")","v":""},{"$f":"IFERROR(MID($W181,FIND(CHAR(160),SUBSTITUTE($W181,\"{\",CHAR(160),GS$1)),FIND(CHAR(160),SUBSTITUTE($W181,\"}\",CHAR(160),GS$1))-FIND(CHAR(160),SUBSTITUTE($W181,\"{\",CHAR(160),GS$1))+1),\"\")","v":""},{"$f":"IFERROR(MID($W181,FIND(CHAR(160),SUBSTITUTE($W181,\"{\",CHAR(160),GT$1)),FIND(CHAR(160),SUBSTITUTE($W181,\"}\",CHAR(160),GT$1))-FIND(CHAR(160),SUBSTITUTE($W181,\"{\",CHAR(160),GT$1))+1),\"\")","v":""},{"$f":"IFERROR(MID($W181,FIND(CHAR(160),SUBSTITUTE($W181,\"{\",CHAR(160),GU$1)),FIND(CHAR(160),SUBSTITUTE($W181,\"}\",CHAR(160),GU$1))-FIND(CHAR(160),SUBSTITUTE($W181,\"{\",CHAR(160),GU$1))+1),\"\")","v":""},{"$f":"IFERROR(MID($W181,FIND(CHAR(160),SUBSTITUTE($W181,\"{\",CHAR(160),GV$1)),FIND(CHAR(160),SUBSTITUTE($W181,\"}\",CHAR(160),GV$1))-FIND(CHAR(160),SUBSTITUTE($W181,\"{\",CHAR(160),GV$1))+1),\"\")","v":""},{"$f":"IFERROR(MID($W181,FIND(CHAR(160),SUBSTITUTE($W181,\"{\",CHAR(160),GW$1)),FIND(CHAR(160),SUBSTITUTE($W181,\"}\",CHAR(160),GW$1))-FIND(CHAR(160),SUBSTITUTE($W181,\"{\",CHAR(160),GW$1))+1),\"\")","v":""},{"$f":"IFERROR(MID($W181,FIND(CHAR(160),SUBSTITUTE($W181,\"{\",CHAR(160),GX$1)),FIND(CHAR(160),SUBSTITUTE($W181,\"}\",CHAR(160),GX$1))-FIND(CHAR(160),SUBSTITUTE($W181,\"{\",CHAR(160),GX$1))+1),\"\")","v":""},{"$f":"IFERROR(MID($W181,FIND(CHAR(160),SUBSTITUTE($W181,\"{\",CHAR(160),GY$1)),FIND(CHAR(160),SUBSTITUTE($W181,\"}\",CHAR(160),GY$1))-FIND(CHAR(160),SUBSTITUTE($W181,\"{\",CHAR(160),GY$1))+1),\"\")","v":"{Measure:Quantity}"},{"$f":"IFERROR(MID($W181,FIND(CHAR(160),SUBSTITUTE($W181,\"{\",CHAR(160),GZ$1)),FIND(CHAR(160),SUBSTITUTE($W181,\"}\",CHAR(160),GZ$1))-FIND(CHAR(160),SUBSTITUTE($W181,\"{\",CHAR(160),GZ$1))+1),\"\")","v":"{Package Size}"},{"$f":"IFERROR(MID($X181,FIND(CHAR(160),SUBSTITUTE($X181,\"{\",CHAR(160),HA$1)),FIND(CHAR(160),SUBSTITUTE($X181,\"}\",CHAR(160),HA$1))-FIND(CHAR(160),SUBSTITUTE($X181,\"{\",CHAR(160),HA$1))+1),\"\")","v":""},{"$f":"IFERROR(MID($X181,FIND(CHAR(160),SUBSTITUTE($X181,\"{\",CHAR(160),HB$1)),FIND(CHAR(160),SUBSTITUTE($X181,\"}\",CHAR(160),HB$1))-FIND(CHAR(160),SUBSTITUTE($X181,\"{\",CHAR(160),HB$1))+1),\"\")","v":""},{"$f":"IFERROR(MID($X181,FIND(CHAR(160),SUBSTITUTE($X181,\"{\",CHAR(160),HC$1)),FIND(CHAR(160),SUBSTITUTE($X181,\"}\",CHAR(160),HC$1))-FIND(CHAR(160),SUBSTITUTE($X181,\"{\",CHAR(160),HC$1))+1),\"\")","v":""},{"$f":"IFERROR(MID($X181,FIND(CHAR(160),SUBSTITUTE($X181,\"{\",CHAR(160),HD$1)),FIND(CHAR(160),SUBSTITUTE($X181,\"}\",CHAR(160),HD$1))-FIND(CHAR(160),SUBSTITUTE($X181,\"{\",CHAR(160),HD$1))+1),\"\")","v":""},{"$f":"IFERROR(MID($X181,FIND(CHAR(160),SUBSTITUTE($X181,\"{\",CHAR(160),HE$1)),FIND(CHAR(160),SUBSTITUTE($X181,\"}\",CHAR(160),HE$1))-FIND(CHAR(160),SUBSTITUTE($X181,\"{\",CHAR(160),HE$1))+1),\"\")","v":""},{"$f":"IFERROR(MID($X181,FIND(CHAR(160),SUBSTITUTE($X181,\"{\",CHAR(160),HF$1)),FIND(CHAR(160),SUBSTITUTE($X181,\"}\",CHAR(160),HF$1))-FIND(CHAR(160),SUBSTITUTE($X181,\"{\",CHAR(160),HF$1))+1),\"\")","v":""},{"$f":"IFERROR(MID($X181,FIND(CHAR(160),SUBSTITUTE($X181,\"{\",CHAR(160),HG$1)),FIND(CHAR(160),SUBSTITUTE($X181,\"}\",CHAR(160),HG$1))-FIND(CHAR(160),SUBSTITUTE($X181,\"{\",CHAR(160),HG$1))+1),\"\")","v":""},{"$f":"IFERROR(MID($X181,FIND(CHAR(160),SUBSTITUTE($X181,\"{\",CHAR(160),HH$1)),FIND(CHAR(160),SUBSTITUTE($X181,\"}\",CHAR(160),HH$1))-FIND(CHAR(160),SUBSTITUTE($X181,\"{\",CHAR(160),HH$1))+1),\"\")","v":""},{"$f":"IFERROR(MID($X181,FIND(CHAR(160),SUBSTITUTE($X181,\"{\",CHAR(160),HI$1)),FIND(CHAR(160),SUBSTITUTE($X181,\"}\",CHAR(160),HI$1))-FIND(CHAR(160),SUBSTITUTE($X181,\"{\",CHAR(160),HI$1))+1),\"\")","v":"{Measure:Quantity}"},{"$f":"IFERROR(MID($X181,FIND(CHAR(160),SUBSTITUTE($X181,\"{\",CHAR(160),HJ$1)),FIND(CHAR(160),SUBSTITUTE($X181,\"}\",CHAR(160),HJ$1))-FIND(CHAR(160),SUBSTITUTE($X181,\"{\",CHAR(160),HJ$1))+1),\"\")","v":"{Package Size}"},{"$f":"IFERROR(MID($Y181,FIND(CHAR(160),SUBSTITUTE($Y181,\"{\",CHAR(160),HK$1)),FIND(CHAR(160),SUBSTITUTE($Y181,\"}\",CHAR(160),HK$1))-FIND(CHAR(160),SUBSTITUTE($Y181,\"{\",CHAR(160),HK$1))+1),\"\")","v":""},{"$f":"IFERROR(MID($Y181,FIND(CHAR(160),SUBSTITUTE($Y181,\"{\",CHAR(160),HL$1)),FIND(CHAR(160),SUBSTITUTE($Y181,\"}\",CHAR(160),HL$1))-FIND(CHAR(160),SUBSTITUTE($Y181,\"{\",CHAR(160),HL$1))+1),\"\")","v":""},{"$f":"IFERROR(MID($Y181,FIND(CHAR(160),SUBSTITUTE($Y181,\"{\",CHAR(160),HM$1)),FIND(CHAR(160),SUBSTITUTE($Y181,\"}\",CHAR(160),HM$1))-FIND(CHAR(160),SUBSTITUTE($Y181,\"{\",CHAR(160),HM$1))+1),\"\")","v":""},{"$f":"IFERROR(MID($Y181,FIND(CHAR(160),SUBSTITUTE($Y181,\"{\",CHAR(160),HN$1)),FIND(CHAR(160),SUBSTITUTE($Y181,\"}\",CHAR(160),HN$1))-FIND(CHAR(160),SUBSTITUTE($Y181,\"{\",CHAR(160),HN$1))+1),\"\")","v":""},{"$f":"IFERROR(MID($Y181,FIND(CHAR(160),SUBSTITUTE($Y181,\"{\",CHAR(160),HO$1)),FIND(CHAR(160),SUBSTITUTE($Y181,\"}\",CHAR(160),HO$1))-FIND(CHAR(160),SUBSTITUTE($Y181,\"{\",CHAR(160),HO$1))+1),\"\")","v":""},{"$f":"IFERROR(MID($Y181,FIND(CHAR(160),SUBSTITUTE($Y181,\"{\",CHAR(160),HP$1)),FIND(CHAR(160),SUBSTITUTE($Y181,\"}\",CHAR(160),HP$1))-FIND(CHAR(160),SUBSTITUTE($Y181,\"{\",CHAR(160),HP$1))+1),\"\")","v":""},{"$f":"IFERROR(MID($Y181,FIND(CHAR(160),SUBSTITUTE($Y181,\"{\",CHAR(160),HQ$1)),FIND(CHAR(160),SUBSTITUTE($Y181,\"}\",CHAR(160),HQ$1))-FIND(CHAR(160),SUBSTITUTE($Y181,\"{\",CHAR(160),HQ$1))+1),\"\")","v":""},{"$f":"IFERROR(MID($Y181,FIND(CHAR(160),SUBSTITUTE($Y181,\"{\",CHAR(160),HR$1)),FIND(CHAR(160),SUBSTITUTE($Y181,\"}\",CHAR(160),HR$1))-FIND(CHAR(160),SUBSTITUTE($Y181,\"{\",CHAR(160),HR$1))+1),\"\")","v":""},{"$f":"IFERROR(MID($Y181,FIND(CHAR(160),SUBSTITUTE($Y181,\"{\",CHAR(160),HS$1)),FIND(CHAR(160),SUBSTITUTE($Y181,\"}\",CHAR(160),HS$1))-FIND(CHAR(160),SUBSTITUTE($Y181,\"{\",CHAR(160),HS$1))+1),\"\")","v":"{Measure:Quantity}"},{"$f":"IFERROR(MID($Y181,FIND(CHAR(160),SUBSTITUTE($Y181,\"{\",CHAR(160),HT$1)),FIND(CHAR(160),SUBSTITUTE($Y181,\"}\",CHAR(160),HT$1))-FIND(CHAR(160),SUBSTITUTE($Y181,\"{\",CHAR(160),HT$1))+1),\"\")","v":"{Package Size}"},{"$f":"IFERROR(MID($Z181,FIND(CHAR(160),SUBSTITUTE($Z181,\"{\",CHAR(160),HU$1)),FIND(CHAR(160),SUBSTITUTE($Z181,\"}\",CHAR(160),HU$1))-FIND(CHAR(160),SUBSTITUTE($Z181,\"{\",CHAR(160),HU$1))+1),\"\")","v":""},{"$f":"IFERROR(MID($Z181,FIND(CHAR(160),SUBSTITUTE($Z181,\"{\",CHAR(160),HV$1)),FIND(CHAR(160),SUBSTITUTE($Z181,\"}\",CHAR(160),HV$1))-FIND(CHAR(160),SUBSTITUTE($Z181,\"{\",CHAR(160),HV$1))+1),\"\")","v":""},{"$f":"IFERROR(MID($Z181,FIND(CHAR(160),SUBSTITUTE($Z181,\"{\",CHAR(160),HW$1)),FIND(CHAR(160),SUBSTITUTE($Z181,\"}\",CHAR(160),HW$1))-FIND(CHAR(160),SUBSTITUTE($Z181,\"{\",CHAR(160),HW$1))+1),\"\")","v":""},{"$f":"IFERROR(MID($Z181,FIND(CHAR(160),SUBSTITUTE($Z181,\"{\",CHAR(160),HX$1)),FIND(CHAR(160),SUBSTITUTE($Z181,\"}\",CHAR(160),HX$1))-FIND(CHAR(160),SUBSTITUTE($Z181,\"{\",CHAR(160),HX$1))+1),\"\")","v":""},{"$f":"IFERROR(MID($Z181,FIND(CHAR(160),SUBSTITUTE($Z181,\"{\",CHAR(160),HY$1)),FIND(CHAR(160),SUBSTITUTE($Z181,\"}\",CHAR(160),HY$1))-FIND(CHAR(160),SUBSTITUTE($Z181,\"{\",CHAR(160),HY$1))+1),\"\")","v":""},{"$f":"IFERROR(MID($Z181,FIND(CHAR(160),SUBSTITUTE($Z181,\"{\",CHAR(160),HZ$1)),FIND(CHAR(160),SUBSTITUTE($Z181,\"}\",CHAR(160),HZ$1))-FIND(CHAR(160),SUBSTITUTE($Z181,\"{\",CHAR(160),HZ$1))+1),\"\")","v":""},{"$f":"IFERROR(MID($Z181,FIND(CHAR(160),SUBSTITUTE($Z181,\"{\",CHAR(160),IA$1)),FIND(CHAR(160),SUBSTITUTE($Z181,\"}\",CHAR(160),IA$1))-FIND(CHAR(160),SUBSTITUTE($Z181,\"{\",CHAR(160),IA$1))+1),\"\")","v":""},{"$f":"IFERROR(MID($Z181,FIND(CHAR(160),SUBSTITUTE($Z181,\"{\",CHAR(160),IB$1)),FIND(CHAR(160),SUBSTITUTE($Z181,\"}\",CHAR(160),IB$1))-FIND(CHAR(160),SUBSTITUTE($Z181,\"{\",CHAR(160),IB$1))+1),\"\")","v":""},{"$f":"IFERROR(MID($Z181,FIND(CHAR(160),SUBSTITUTE($Z181,\"{\",CHAR(160),IC$1)),FIND(CHAR(160),SUBSTITUTE($Z181,\"}\",CHAR(160),IC$1))-FIND(CHAR(160),SUBSTITUTE($Z181,\"{\",CHAR(160),IC$1))+1),\"\")","v":"{Measure:Quantity}"},{"$f":"IFERROR(MID($Z181,FIND(CHAR(160),SUBSTITUTE($Z181,\"{\",CHAR(160),ID$1)),FIND(CHAR(160),SUBSTITUTE($Z181,\"}\",CHAR(160),ID$1))-FIND(CHAR(160),SUBSTITUTE($Z181,\"{\",CHAR(160),ID$1))+1),\"\")","v":"{Package Size}"},{"$f":"IFERROR(MID($AA181,FIND(CHAR(160),SUBSTITUTE($AA181,\"{\",CHAR(160),IE$1)),FIND(CHAR(160),SUBSTITUTE($AA181,\"}\",CHAR(160),IE$1))-FIND(CHAR(160),SUBSTITUTE($AA181,\"{\",CHAR(160),IE$1))+1),\"\")","v":""},{"$f":"IFERROR(MID($AA181,FIND(CHAR(160),SUBSTITUTE($AA181,\"{\",CHAR(160),IF$1)),FIND(CHAR(160),SUBSTITUTE($AA181,\"}\",CHAR(160),IF$1))-FIND(CHAR(160),SUBSTITUTE($AA181,\"{\",CHAR(160),IF$1))+1),\"\")","v":""},{"$f":"IFERROR(MID($AA181,FIND(CHAR(160),SUBSTITUTE($AA181,\"{\",CHAR(160),IG$1)),FIND(CHAR(160),SUBSTITUTE($AA181,\"}\",CHAR(160),IG$1))-FIND(CHAR(160),SUBSTITUTE($AA181,\"{\",CHAR(160),IG$1))+1),\"\")","v":""},{"$f":"IFERROR(MID($AA181,FIND(CHAR(160),SUBSTITUTE($AA181,\"{\",CHAR(160),IH$1)),FIND(CHAR(160),SUBSTITUTE($AA181,\"}\",CHAR(160),IH$1))-FIND(CHAR(160),SUBSTITUTE($AA181,\"{\",CHAR(160),IH$1))+1),\"\")","v":""},{"$f":"IFERROR(MID($AA181,FIND(CHAR(160),SUBSTITUTE($AA181,\"{\",CHAR(160),II$1)),FIND(CHAR(160),SUBSTITUTE($AA181,\"}\",CHAR(160),II$1))-FIND(CHAR(160),SUBSTITUTE($AA181,\"{\",CHAR(160),II$1))+1),\"\")","v":""},{"$f":"IFERROR(MID($AA181,FIND(CHAR(160),SUBSTITUTE($AA181,\"{\",CHAR(160),IJ$1)),FIND(CHAR(160),SUBSTITUTE($AA181,\"}\",CHAR(160),IJ$1))-FIND(CHAR(160),SUBSTITUTE($AA181,\"{\",CHAR(160),IJ$1))+1),\"\")","v":""},{"$f":"IFERROR(MID($AA181,FIND(CHAR(160),SUBSTITUTE($AA181,\"{\",CHAR(160),IK$1)),FIND(CHAR(160),SUBSTITUTE($AA181,\"}\",CHAR(160),IK$1))-FIND(CHAR(160),SUBSTITUTE($AA181,\"{\",CHAR(160),IK$1))+1),\"\")","v":""},{"$f":"IFERROR(MID($AA181,FIND(CHAR(160),SUBSTITUTE($AA181,\"{\",CHAR(160),IL$1)),FIND(CHAR(160),SUBSTITUTE($AA181,\"}\",CHAR(160),IL$1))-FIND(CHAR(160),SUBSTITUTE($AA181,\"{\",CHAR(160),IL$1))+1),\"\")","v":""},{"$f":"IFERROR(MID($AA181,FIND(CHAR(160),SUBSTITUTE($AA181,\"{\",CHAR(160),IM$1)),FIND(CHAR(160),SUBSTITUTE($AA181,\"}\",CHAR(160),IM$1))-FIND(CHAR(160),SUBSTITUTE($AA181,\"{\",CHAR(160),IM$1))+1),\"\")","v":"{Measure:Quantity}"},{"$f":"IFERROR(MID($AA181,FIND(CHAR(160),SUBSTITUTE($AA181,\"{\",CHAR(160),IN$1)),FIND(CHAR(160),SUBSTITUTE($AA181,\"}\",CHAR(160),IN$1))-FIND(CHAR(160),SUBSTITUTE($AA181,\"{\",CHAR(160),IN$1))+1),\"\")","v":"{Package Size}"},{"$f":"IFERROR(MID($AB181,FIND(CHAR(160),SUBSTITUTE($AB181,\"{\",CHAR(160),IO$1)),FIND(CHAR(160),SUBSTITUTE($AB181,\"}\",CHAR(160),IO$1))-FIND(CHAR(160),SUBSTITUTE($AB181,\"{\",CHAR(160),IO$1))+1),\"\")","v":""},{"$f":"IFERROR(MID($AB181,FIND(CHAR(160),SUBSTITUTE($AB181,\"{\",CHAR(160),IP$1)),FIND(CHAR(160),SUBSTITUTE($AB181,\"}\",CHAR(160),IP$1))-FIND(CHAR(160),SUBSTITUTE($AB181,\"{\",CHAR(160),IP$1))+1),\"\")","v":""},{"$f":"IFERROR(MID($AB181,FIND(CHAR(160),SUBSTITUTE($AB181,\"{\",CHAR(160),IQ$1)),FIND(CHAR(160),SUBSTITUTE($AB181,\"}\",CHAR(160),IQ$1))-FIND(CHAR(160),SUBSTITUTE($AB181,\"{\",CHAR(160),IQ$1))+1),\"\")","v":""},{"$f":"IFERROR(MID($AB181,FIND(CHAR(160),SUBSTITUTE($AB181,\"{\",CHAR(160),IR$1)),FIND(CHAR(160),SUBSTITUTE($AB181,\"}\",CHAR(160),IR$1))-FIND(CHAR(160),SUBSTITUTE($AB181,\"{\",CHAR(160),IR$1))+1),\"\")","v":""},{"$f":"IFERROR(MID($AB181,FIND(CHAR(160),SUBSTITUTE($AB181,\"{\",CHAR(160),IS$1)),FIND(CHAR(160),SUBSTITUTE($AB181,\"}\",CHAR(160),IS$1))-FIND(CHAR(160),SUBSTITUTE($AB181,\"{\",CHAR(160),IS$1))+1),\"\")","v":""},{"$f":"IFERROR(MID($AB181,FIND(CHAR(160),SUBSTITUTE($AB181,\"{\",CHAR(160),IT$1)),FIND(CHAR(160),SUBSTITUTE($AB181,\"}\",CHAR(160),IT$1))-FIND(CHAR(160),SUBSTITUTE($AB181,\"{\",CHAR(160),IT$1))+1),\"\")","v":""},{"$f":"IFERROR(MID($AB181,FIND(CHAR(160),SUBSTITUTE($AB181,\"{\",CHAR(160),IU$1)),FIND(CHAR(160),SUBSTITUTE($AB181,\"}\",CHAR(160),IU$1))-FIND(CHAR(160),SUBSTITUTE($AB181,\"{\",CHAR(160),IU$1))+1),\"\")","v":""},{"$f":"IFERROR(MID($AB181,FIND(CHAR(160),SUBSTITUTE($AB181,\"{\",CHAR(160),IV$1)),FIND(CHAR(160),SUBSTITUTE($AB181,\"}\",CHAR(160),IV$1))-FIND(CHAR(160),SUBSTITUTE($AB181,\"{\",CHAR(160),IV$1))+1),\"\")","v":""},{"$f":"IFERROR(MID($AB181,FIND(CHAR(160),SUBSTITUTE($AB181,\"{\",CHAR(160),IW$1)),FIND(CHAR(160),SUBSTITUTE($AB181,\"}\",CHAR(160),IW$1))-FIND(CHAR(160),SUBSTITUTE($AB181,\"{\",CHAR(160),IW$1))+1),\"\")","v":""},{"$f":"IFERROR(MID($AB181,FIND(CHAR(160),SUBSTITUTE($AB181,\"{\",CHAR(160),IX$1)),FIND(CHAR(160),SUBSTITUTE($AB181,\"}\",CHAR(160),IX$1))-FIND(CHAR(160),SUBSTITUTE($AB181,\"{\",CHAR(160),IX$1))+1),\"\")","v":""},null,{"$f":"10-COUNTIF(DU181:ED181,\"\")","v":3}]
["Distributor Lighting","TLED_TYPE_A_4ft - long life","S110A4L","2021-07-01","2022-06-30","Calculated","{Measure:Quantity}*{Package Size}*4.99",0,"Calculated","{Measure:Quantity}*{Rebate per Package}",0,"2021-07-01","2022-06-30","Calculated","{Measure:Quantity}*{Package Size}*47",null,null,"{Measure:Quantity}*{Package Size}*1.0747*0.015",null,null,"{Measure:Quantity}*{Package Size}*{Factor:WinterCF}*0.015","{Measure:Quantity}*{Package Size}*{Factor:SummerCF}*1.0747*0.015","{Measure:Quantity}*{Package Size}*10*-0.02","{Measure:Quantity}*{Package Size}*-0.005","{Measure:Quantity}*{Package Size}*-0.02","{Measure:Quantity}*{Package Size}*-0.001","{Measure:Quantity}*{Package Size}*-0.005",null,"2021-07-01","2022-06-30",16,0.372,0.64500000000000002,0.45,0.218,0.22900000000000001,0.10299999999999999,1,1,1,0.51,0,null,{"$f":"DU182","v":"{Measure:Quantity}"},1,{"$f":"DV182","v":"{Package Size}"},1,{"$f":"DW182","v":"{Rebate per Package}"},{"$f":"CW182*CO182","v":3.7425000000000002},{"$f":"DX182","v":""},null,{"$f":"DY182","v":""},null,{"$f":"DZ182","v":""},null,{"$f":"EA182","v":""},null,{"$f":"EB182","v":""},null,{"$f":"EC182","v":""},null,{"$f":"ED182","v":""},null,{"$f":"AS182*AU182*47","v":47},0,0,{"$f":"AS182*AU182*1.0747*0.015","v":1.6120499999999999E-2},0,0,{"$f":"AS182*AU182*AF182*0.015","v":5.5799999999999999E-3},{"$f":"AS182*AU182*AG182*1.0747*0.015","v":1.03977225E-2},{"$f":"AS182*AU182*10*-0.02","v":-0.2},{"$f":"AS182*AU182*-0.005","v":-5.0000000000000001E-3},{"$f":"AS182*AU182*-0.02","v":-0.02},{"$f":"AS182*AU182*-0.001","v":-1E-3},{"$f":"AS182*AU182*-0.005","v":-5.0000000000000001E-3},0,null,"Res","Default DR",{"$f":"Benefits(BL182,BR182,BS182,BT182,BU182,BV182,BW182,BX182,BY182,BZ182,AE182,AH182,AI182,AJ182,AK182,AL182,AM182,AN182,AO182,AP182,CA182,CB182)","v":65.503683003735148},42.750142806562955,-4.1253365630690739,-8.8608178977970855,-0.51559606167104488,-3.0982190578188034,-1.3930820570083862,0,0,{"$f":"SUMPRODUCT(CC182:CK182,--(CC182:CK182>0))","v":108.25382581029811},{"$f":"-SUMPRODUCT(CC182:CK182,--(CC182:CK182<0))","v":17.993051637364395},null,{"$f":"AS182*AU182*4.99","v":4.99},null,null,{"$f":"CM182+CO182","v":22.983051637364397},{"$f":"IF(NetOrGross=\"Net\",(1-AO182+AP182),1)","v":1},{"$f":"(SUMPRODUCT(CC182:CJ182,--(CC182:CJ182>0))+CN182)*CS182/((-SUMPRODUCT(CC182:CJ182,--(CC182:CJ182<0))+MAX(CO182,CV182)+CP182+CQ182)*CS182+IF(FRIncentives=\"Yes\",CV182*(1-CS182),0))","v":4.7101589257322933},1,{"$f":"AS182*AW182","v":3.7425000000000002},{"$f":"CW181","v":0.75},"Electric","y",null,{"$f":"IF(F182=\"Manual Entry\",\"Manual\",IF(G182=\"\",0,\"X=\"&SUBSTITUTE(SUBSTITUTE(SUBSTITUTE(SUBSTITUTE(SUBSTITUTE(SUBSTITUTE(SUBSTITUTE(SUBSTITUTE(SUBSTITUTE(SUBSTITUTE(SUBSTITUTE(SUBSTITUTE(G182,$ED182,$ED$2&ROW($ED182)),$EC182,$EC$2&ROW($EC182)),$EB182,$EB$2&ROW($EB182)),$EA182,$EA$2&ROW($EA182)),$DZ182,$DZ$2&ROW($DZ182)),$DY182,$DY$2&ROW($DY182)),$DX182,$DX$2&ROW($DX182)),$DW182,$DW$2&ROW($DW182)),$DV182,$DV$2&ROW($DV182)),$DU182,$DU$2&ROW($DU182)),$DT182,$DT$2&ROW($DT182)),$DS182,$DS$2&ROW($DS182))))","v":"X=AS182*AU182*4.99"},{"$f":"IF(I182=\"Manual Entry\",\"Manual\",IF(J182=\"\",0,\"X=\"&SUBSTITUTE(SUBSTITUTE(SUBSTITUTE(SUBSTITUTE(SUBSTITUTE(SUBSTITUTE(SUBSTITUTE(SUBSTITUTE(SUBSTITUTE(SUBSTITUTE(SUBSTITUTE(SUBSTITUTE(J182,$ED182,$ED$2&ROW($ED182)),$EC182,$EC$2&ROW($EC182)),$EB182,$EB$2&ROW($EB182)),$EA182,$EA$2&ROW($EA182)),$DZ182,$DZ$2&ROW($DZ182)),$DY182,$DY$2&ROW($DY182)),$DX182,$DX$2&ROW($DX182)),$DW182,$DW$2&ROW($DW182)),$DV182,$DV$2&ROW($DV182)),$DU182,$DU$2&ROW($DU182)),$DT182,$DT$2&ROW($DT182)),$DS182,$DS$2&ROW($DS182))))","v":"X=AS182*AW182"},{"$f":"IF(O182=\"\",0,\"X=\"&SUBSTITUTE(SUBSTITUTE(SUBSTITUTE(SUBSTITUTE(SUBSTITUTE(SUBSTITUTE(SUBSTITUTE(SUBSTITUTE(SUBSTITUTE(SUBSTITUTE(SUBSTITUTE(SUBSTITUTE(O182,$ED182,$ED$2&ROW($ED182)),$EC182,$EC$2&ROW($EC182)),$EB182,$EB$2&ROW($EB182)),$EA182,$EA$2&ROW($EA182)),$DZ182,$DZ$2&ROW($DZ182)),$DY182,$DY$2&ROW($DY182)),$DX182,$DX$2&ROW($DX182)),$DW182,$DW$2&ROW($DW182)),$DV182,$DV$2&ROW($DV182)),$DU182,$DU$2&ROW($DU182)),$DT182,$DT$2&ROW($DT182)),$DS182,$DS$2&ROW($DS182)))","v":"X=AS182*AU182*47"},{"$f":"IF(P182=\"\",0,\"X=\"&SUBSTITUTE(SUBSTITUTE(SUBSTITUTE(SUBSTITUTE(SUBSTITUTE(SUBSTITUTE(SUBSTITUTE(SUBSTITUTE(SUBSTITUTE(SUBSTITUTE(SUBSTITUTE(SUBSTITUTE(P182,$ED182,$ED$2&ROW($ED182)),$EC182,$EC$2&ROW($EC182)),$EB182,$EB$2&ROW($EB182)),$EA182,$EA$2&ROW($EA182)),$DZ182,$DZ$2&ROW($DZ182)),$DY182,$DY$2&ROW($DY182)),$DX182,$DX$2&ROW($DX182)),$DW182,$DW$2&ROW($DW182)),$DV182,$DV$2&ROW($DV182)),$DU182,$DU$2&ROW($DU182)),$DT182,$DT$2&ROW($DT182)),$DS182,$DS$2&ROW($DS182)))","v":0},{"$f":"IF(Q182=\"\",0,\"X=\"&SUBSTITUTE(SUBSTITUTE(SUBSTITUTE(SUBSTITUTE(SUBSTITUTE(SUBSTITUTE(SUBSTITUTE(SUBSTITUTE(SUBSTITUTE(SUBSTITUTE(SUBSTITUTE(SUBSTITUTE(Q182,$ED182,$ED$2&ROW($ED182)),$EC182,$EC$2&ROW($EC182)),$EB182,$EB$2&ROW($EB182)),$EA182,$EA$2&ROW($EA182)),$DZ182,$DZ$2&ROW($DZ182)),$DY182,$DY$2&ROW($DY182)),$DX182,$DX$2&ROW($DX182)),$DW182,$DW$2&ROW($DW182)),$DV182,$DV$2&ROW($DV182)),$DU182,$DU$2&ROW($DU182)),$DT182,$DT$2&ROW($DT182)),$DS182,$DS$2&ROW($DS182)))","v":0},{"$f":"IF(R182=\"\",0,\"X=\"&SUBSTITUTE(SUBSTITUTE(SUBSTITUTE(SUBSTITUTE(SUBSTITUTE(SUBSTITUTE(SUBSTITUTE(SUBSTITUTE(SUBSTITUTE(SUBSTITUTE(SUBSTITUTE(SUBSTITUTE(R182,$ED182,$ED$2&ROW($ED182)),$EC182,$EC$2&ROW($EC182)),$EB182,$EB$2&ROW($EB182)),$EA182,$EA$2&ROW($EA182)),$DZ182,$DZ$2&ROW($DZ182)),$DY182,$DY$2&ROW($DY182)),$DX182,$DX$2&ROW($DX182)),$DW182,$DW$2&ROW($DW182)),$DV182,$DV$2&ROW($DV182)),$DU182,$DU$2&ROW($DU182)),$DT182,$DT$2&ROW($DT182)),$DS182,$DS$2&ROW($DS182)))","v":"X=AS182*AU182*1.0747*0.015"},{"$f":"IF(S182=\"\",0,\"X=\"&SUBSTITUTE(SUBSTITUTE(SUBSTITUTE(SUBSTITUTE(SUBSTITUTE(SUBSTITUTE(SUBSTITUTE(SUBSTITUTE(SUBSTITUTE(SUBSTITUTE(SUBSTITUTE(SUBSTITUTE(S182,$ED182,$ED$2&ROW($ED182)),$EC182,$EC$2&ROW($EC182)),$EB182,$EB$2&ROW($EB182)),$EA182,$EA$2&ROW($EA182)),$DZ182,$DZ$2&ROW($DZ182)),$DY182,$DY$2&ROW($DY182)),$DX182,$DX$2&ROW($DX182)),$DW182,$DW$2&ROW($DW182)),$DV182,$DV$2&ROW($DV182)),$DU182,$DU$2&ROW($DU182)),$DT182,$DT$2&ROW($DT182)),$DS182,$DS$2&ROW($DS182)))","v":0},{"$f":"IF(T182=\"\",0,\"X=\"&SUBSTITUTE(SUBSTITUTE(SUBSTITUTE(SUBSTITUTE(SUBSTITUTE(SUBSTITUTE(SUBSTITUTE(SUBSTITUTE(SUBSTITUTE(SUBSTITUTE(SUBSTITUTE(SUBSTITUTE(T182,$ED182,$ED$2&ROW($ED182)),$EC182,$EC$2&ROW($EC182)),$EB182,$EB$2&ROW($EB182)),$EA182,$EA$2&ROW($EA182)),$DZ182,$DZ$2&ROW($DZ182)),$DY182,$DY$2&ROW($DY182)),$DX182,$DX$2&ROW($DX182)),$DW182,$DW$2&ROW($DW182)),$DV182,$DV$2&ROW($DV182)),$DU182,$DU$2&ROW($DU182)),$DT182,$DT$2&ROW($DT182)),$DS182,$DS$2&ROW($DS182)))","v":0},{"$f":"IF(U182=\"\",0,\"X=\"&SUBSTITUTE(SUBSTITUTE(SUBSTITUTE(SUBSTITUTE(SUBSTITUTE(SUBSTITUTE(SUBSTITUTE(SUBSTITUTE(SUBSTITUTE(SUBSTITUTE(SUBSTITUTE(SUBSTITUTE(U182,$ED182,$ED$2&ROW($ED182)),$EC182,$EC$2&ROW($EC182)),$EB182,$EB$2&ROW($EB182)),$EA182,$EA$2&ROW($EA182)),$DZ182,$DZ$2&ROW($DZ182)),$DY182,$DY$2&ROW($DY182)),$DX182,$DX$2&ROW($DX182)),$DW182,$DW$2&ROW($DW182)),$DV182,$DV$2&ROW($DV182)),$DU182,$DU$2&ROW($DU182)),$DT182,$DT$2&ROW($DT182)),$DS182,$DS$2&ROW($DS182)))","v":"X=AS182*AU182*AF182*0.015"},{"$f":"IF(V182=\"\",0,\"X=\"&SUBSTITUTE(SUBSTITUTE(SUBSTITUTE(SUBSTITUTE(SUBSTITUTE(SUBSTITUTE(SUBSTITUTE(SUBSTITUTE(SUBSTITUTE(SUBSTITUTE(SUBSTITUTE(SUBSTITUTE(V182,$ED182,$ED$2&ROW($ED182)),$EC182,$EC$2&ROW($EC182)),$EB182,$EB$2&ROW($EB182)),$EA182,$EA$2&ROW($EA182)),$DZ182,$DZ$2&ROW($DZ182)),$DY182,$DY$2&ROW($DY182)),$DX182,$DX$2&ROW($DX182)),$DW182,$DW$2&ROW($DW182)),$DV182,$DV$2&ROW($DV182)),$DU182,$DU$2&ROW($DU182)),$DT182,$DT$2&ROW($DT182)),$DS182,$DS$2&ROW($DS182)))","v":"X=AS182*AU182*AG182*1.0747*0.015"},{"$f":"IF(W182=\"\",0,\"X=\"&SUBSTITUTE(SUBSTITUTE(SUBSTITUTE(SUBSTITUTE(SUBSTITUTE(SUBSTITUTE(SUBSTITUTE(SUBSTITUTE(SUBSTITUTE(SUBSTITUTE(SUBSTITUTE(SUBSTITUTE(W182,$ED182,$ED$2&ROW($ED182)),$EC182,$EC$2&ROW($EC182)),$EB182,$EB$2&ROW($EB182)),$EA182,$EA$2&ROW($EA182)),$DZ182,$DZ$2&ROW($DZ182)),$DY182,$DY$2&ROW($DY182)),$DX182,$DX$2&ROW($DX182)),$DW182,$DW$2&ROW($DW182)),$DV182,$DV$2&ROW($DV182)),$DU182,$DU$2&ROW($DU182)),$DT182,$DT$2&ROW($DT182)),$DS182,$DS$2&ROW($DS182)))","v":"X=AS182*AU182*10*-0.02"},{"$f":"IF(X182=\"\",0,\"X=\"&SUBSTITUTE(SUBSTITUTE(SUBSTITUTE(SUBSTITUTE(SUBSTITUTE(SUBSTITUTE(SUBSTITUTE(SUBSTITUTE(SUBSTITUTE(SUBSTITUTE(SUBSTITUTE(SUBSTITUTE(X182,$ED182,$ED$2&ROW($ED182)),$EC182,$EC$2&ROW($EC182)),$EB182,$EB$2&ROW($EB182)),$EA182,$EA$2&ROW($EA182)),$DZ182,$DZ$2&ROW($DZ182)),$DY182,$DY$2&ROW($DY182)),$DX182,$DX$2&ROW($DX182)),$DW182,$DW$2&ROW($DW182)),$DV182,$DV$2&ROW($DV182)),$DU182,$DU$2&ROW($DU182)),$DT182,$DT$2&ROW($DT182)),$DS182,$DS$2&ROW($DS182)))","v":"X=AS182*AU182*-0.005"},{"$f":"IF(Y182=\"\",0,\"X=\"&SUBSTITUTE(SUBSTITUTE(SUBSTITUTE(SUBSTITUTE(SUBSTITUTE(SUBSTITUTE(SUBSTITUTE(SUBSTITUTE(SUBSTITUTE(SUBSTITUTE(SUBSTITUTE(SUBSTITUTE(Y182,$ED182,$ED$2&ROW($ED182)),$EC182,$EC$2&ROW($EC182)),$EB182,$EB$2&ROW($EB182)),$EA182,$EA$2&ROW($EA182)),$DZ182,$DZ$2&ROW($DZ182)),$DY182,$DY$2&ROW($DY182)),$DX182,$DX$2&ROW($DX182)),$DW182,$DW$2&ROW($DW182)),$DV182,$DV$2&ROW($DV182)),$DU182,$DU$2&ROW($DU182)),$DT182,$DT$2&ROW($DT182)),$DS182,$DS$2&ROW($DS182)))","v":"X=AS182*AU182*-0.02"},{"$f":"IF(Z182=\"\",0,\"X=\"&SUBSTITUTE(SUBSTITUTE(SUBSTITUTE(SUBSTITUTE(SUBSTITUTE(SUBSTITUTE(SUBSTITUTE(SUBSTITUTE(SUBSTITUTE(SUBSTITUTE(SUBSTITUTE(SUBSTITUTE(Z182,$ED182,$ED$2&ROW($ED182)),$EC182,$EC$2&ROW($EC182)),$EB182,$EB$2&ROW($EB182)),$EA182,$EA$2&ROW($EA182)),$DZ182,$DZ$2&ROW($DZ182)),$DY182,$DY$2&ROW($DY182)),$DX182,$DX$2&ROW($DX182)),$DW182,$DW$2&ROW($DW182)),$DV182,$DV$2&ROW($DV182)),$DU182,$DU$2&ROW($DU182)),$DT182,$DT$2&ROW($DT182)),$DS182,$DS$2&ROW($DS182)))","v":"X=AS182*AU182*-0.001"},{"$f":"IF(AA182=\"\",0,\"X=\"&SUBSTITUTE(SUBSTITUTE(SUBSTITUTE(SUBSTITUTE(SUBSTITUTE(SUBSTITUTE(SUBSTITUTE(SUBSTITUTE(SUBSTITUTE(SUBSTITUTE(SUBSTITUTE(SUBSTITUTE(AA182,$ED182,$ED$2&ROW($ED182)),$EC182,$EC$2&ROW($EC182)),$EB182,$EB$2&ROW($EB182)),$EA182,$EA$2&ROW($EA182)),$DZ182,$DZ$2&ROW($DZ182)),$DY182,$DY$2&ROW($DY182)),$DX182,$DX$2&ROW($DX182)),$DW182,$DW$2&ROW($DW182)),$DV182,$DV$2&ROW($DV182)),$DU182,$DU$2&ROW($DU182)),$DT182,$DT$2&ROW($DT182)),$DS182,$DS$2&ROW($DS182)))","v":"X=AS182*AU182*-0.005"},{"$f":"IF(AB182=\"\",0,\"X=\"&SUBSTITUTE(SUBSTITUTE(SUBSTITUTE(SUBSTITUTE(SUBSTITUTE(SUBSTITUTE(SUBSTITUTE(SUBSTITUTE(SUBSTITUTE(SUBSTITUTE(SUBSTITUTE(SUBSTITUTE(AB182,$ED182,$ED$2&ROW($ED182)),$EC182,$EC$2&ROW($EC182)),$EB182,$EB$2&ROW($EB182)),$EA182,$EA$2&ROW($EA182)),$DZ182,$DZ$2&ROW($DZ182)),$DY182,$DY$2&ROW($DY182)),$DX182,$DX$2&ROW($DX182)),$DW182,$DW$2&ROW($DW182)),$DV182,$DV$2&ROW($DV182)),$DU182,$DU$2&ROW($DU182)),$DT182,$DT$2&ROW($DT182)),$DS182,$DS$2&ROW($DS182)))","v":0},null,null,"{Factor:WinterCF}","{Factor:SummerCF}",{"$f":"IFERROR(INDEX($EG182:$IV182,MATCH(0,COUNTIF($DR182:DT182,$EG182:$IV182),0)),\"\")","v":"{Measure:Quantity}"},{"$f":"IFERROR(INDEX($EG182:$IV182,MATCH(0,COUNTIF($DR182:DU182,$EG182:$IV182),0)),\"\")","v":"{Package Size}"},{"$f":"IFERROR(INDEX($EG182:$IV182,MATCH(0,COUNTIF($DR182:DV182,$EG182:$IV182),0)),\"\")","v":"{Rebate per Package}"},{"$f":"IFERROR(INDEX($EG182:$IV182,MATCH(0,COUNTIF($DR182:DW182,$EG182:$IV182),0)),\"\")","v":""},{"$f":"IFERROR(INDEX($EG182:$IV182,MATCH(0,COUNTIF($DR182:DX182,$EG182:$IV182),0)),\"\")","v":""},{"$f":"IFERROR(INDEX($EG182:$IV182,MATCH(0,COUNTIF($DR182:DY182,$EG182:$IV182),0)),\"\")","v":""},{"$f":"IFERROR(INDEX($EG182:$IV182,MATCH(0,COUNTIF($DR182:DZ182,$EG182:$IV182),0)),\"\")","v":""},{"$f":"IFERROR(INDEX($EG182:$IV182,MATCH(0,COUNTIF($DR182:EA182,$EG182:$IV182),0)),\"\")","v":""},{"$f":"IFERROR(INDEX($EG182:$IV182,MATCH(0,COUNTIF($DR182:EB182,$EG182:$IV182),0)),\"\")","v":""},{"$f":"IFERROR(INDEX($EG182:$IV182,MATCH(0,COUNTIF($DR182:EC182,$EG182:$IV182),0)),\"\")","v":""},null,null,{"$f":"IFERROR(MID($G182,FIND(CHAR(160),SUBSTITUTE($G182,\"{\",CHAR(160),EG$1)),FIND(CHAR(160),SUBSTITUTE($G182,\"}\",CHAR(160),EG$1))-FIND(CHAR(160),SUBSTITUTE($G182,\"{\",CHAR(160),EG$1))+1),\"\")","v":"{Measure:Quantity}"},{"$f":"IFERROR(MID($G182,FIND(CHAR(160),SUBSTITUTE($G182,\"{\",CHAR(160),EH$1)),FIND(CHAR(160),SUBSTITUTE($G182,\"}\",CHAR(160),EH$1))-FIND(CHAR(160),SUBSTITUTE($G182,\"{\",CHAR(160),EH$1))+1),\"\")","v":"{Package Size}"},{"$f":"IFERROR(MID($G182,FIND(CHAR(160),SUBSTITUTE($G182,\"{\",CHAR(160),EI$1)),FIND(CHAR(160),SUBSTITUTE($G182,\"}\",CHAR(160),EI$1))-FIND(CHAR(160),SUBSTITUTE($G182,\"{\",CHAR(160),EI$1))+1),\"\")","v":""},{"$f":"IFERROR(MID($G182,FIND(CHAR(160),SUBSTITUTE($G182,\"{\",CHAR(160),EJ$1)),FIND(CHAR(160),SUBSTITUTE($G182,\"}\",CHAR(160),EJ$1))-FIND(CHAR(160),SUBSTITUTE($G182,\"{\",CHAR(160),EJ$1))+1),\"\")","v":""},{"$f":"IFERROR(MID($G182,FIND(CHAR(160),SUBSTITUTE($G182,\"{\",CHAR(160),EK$1)),FIND(CHAR(160),SUBSTITUTE($G182,\"}\",CHAR(160),EK$1))-FIND(CHAR(160),SUBSTITUTE($G182,\"{\",CHAR(160),EK$1))+1),\"\")","v":""},{"$f":"IFERROR(MID($G182,FIND(CHAR(160),SUBSTITUTE($G182,\"{\",CHAR(160),EL$1)),FIND(CHAR(160),SUBSTITUTE($G182,\"}\",CHAR(160),EL$1))-FIND(CHAR(160),SUBSTITUTE($G182,\"{\",CHAR(160),EL$1))+1),\"\")","v":""},{"$f":"IFERROR(MID($G182,FIND(CHAR(160),SUBSTITUTE($G182,\"{\",CHAR(160),EM$1)),FIND(CHAR(160),SUBSTITUTE($G182,\"}\",CHAR(160),EM$1))-FIND(CHAR(160),SUBSTITUTE($G182,\"{\",CHAR(160),EM$1))+1),\"\")","v":""},{"$f":"IFERROR(MID($G182,FIND(CHAR(160),SUBSTITUTE($G182,\"{\",CHAR(160),EN$1)),FIND(CHAR(160),SUBSTITUTE($G182,\"}\",CHAR(160),EN$1))-FIND(CHAR(160),SUBSTITUTE($G182,\"{\",CHAR(160),EN$1))+1),\"\")","v":""},{"$f":"IFERROR(MID($G182,FIND(CHAR(160),SUBSTITUTE($G182,\"{\",CHAR(160),EO$1)),FIND(CHAR(160),SUBSTITUTE($G182,\"}\",CHAR(160),EO$1))-FIND(CHAR(160),SUBSTITUTE($G182,\"{\",CHAR(160),EO$1))+1),\"\")","v":""},{"$f":"IFERROR(MID($G182,FIND(CHAR(160),SUBSTITUTE($G182,\"{\",CHAR(160),EP$1)),FIND(CHAR(160),SUBSTITUTE($G182,\"}\",CHAR(160),EP$1))-FIND(CHAR(160),SUBSTITUTE($G182,\"{\",CHAR(160),EP$1))+1),\"\")","v":""},{"$f":"IFERROR(MID($J182,FIND(CHAR(160),SUBSTITUTE($J182,\"{\",CHAR(160),EQ$1)),FIND(CHAR(160),SUBSTITUTE($J182,\"}\",CHAR(160),EQ$1))-FIND(CHAR(160),SUBSTITUTE($J182,\"{\",CHAR(160),EQ$1))+1),\"\")","v":"{Measure:Quantity}"},{"$f":"IFERROR(MID($J182,FIND(CHAR(160),SUBSTITUTE($J182,\"{\",CHAR(160),ER$1)),FIND(CHAR(160),SUBSTITUTE($J182,\"}\",CHAR(160),ER$1))-FIND(CHAR(160),SUBSTITUTE($J182,\"{\",CHAR(160),ER$1))+1),\"\")","v":"{Rebate per Package}"},{"$f":"IFERROR(MID($J182,FIND(CHAR(160),SUBSTITUTE($J182,\"{\",CHAR(160),ES$1)),FIND(CHAR(160),SUBSTITUTE($J182,\"}\",CHAR(160),ES$1))-FIND(CHAR(160),SUBSTITUTE($J182,\"{\",CHAR(160),ES$1))+1),\"\")","v":""},{"$f":"IFERROR(MID($J182,FIND(CHAR(160),SUBSTITUTE($J182,\"{\",CHAR(160),ET$1)),FIND(CHAR(160),SUBSTITUTE($J182,\"}\",CHAR(160),ET$1))-FIND(CHAR(160),SUBSTITUTE($J182,\"{\",CHAR(160),ET$1))+1),\"\")","v":""},{"$f":"IFERROR(MID($J182,FIND(CHAR(160),SUBSTITUTE($J182,\"{\",CHAR(160),EU$1)),FIND(CHAR(160),SUBSTITUTE($J182,\"}\",CHAR(160),EU$1))-FIND(CHAR(160),SUBSTITUTE($J182,\"{\",CHAR(160),EU$1))+1),\"\")","v":""},{"$f":"IFERROR(MID($J182,FIND(CHAR(160),SUBSTITUTE($J182,\"{\",CHAR(160),EV$1)),FIND(CHAR(160),SUBSTITUTE($J182,\"}\",CHAR(160),EV$1))-FIND(CHAR(160),SUBSTITUTE($J182,\"{\",CHAR(160),EV$1))+1),\"\")","v":""},{"$f":"IFERROR(MID($J182,FIND(CHAR(160),SUBSTITUTE($J182,\"{\",CHAR(160),EW$1)),FIND(CHAR(160),SUBSTITUTE($J182,\"}\",CHAR(160),EW$1))-FIND(CHAR(160),SUBSTITUTE($J182,\"{\",CHAR(160),EW$1))+1),\"\")","v":""},{"$f":"IFERROR(MID($J182,FIND(CHAR(160),SUBSTITUTE($J182,\"{\",CHAR(160),EX$1)),FIND(CHAR(160),SUBSTITUTE($J182,\"}\",CHAR(160),EX$1))-FIND(CHAR(160),SUBSTITUTE($J182,\"{\",CHAR(160),EX$1))+1),\"\")","v":""},{"$f":"IFERROR(MID($J182,FIND(CHAR(160),SUBSTITUTE($J182,\"{\",CHAR(160),EY$1)),FIND(CHAR(160),SUBSTITUTE($J182,\"}\",CHAR(160),EY$1))-FIND(CHAR(160),SUBSTITUTE($J182,\"{\",CHAR(160),EY$1))+1),\"\")","v":""},{"$f":"IFERROR(MID($J182,FIND(CHAR(160),SUBSTITUTE($J182,\"{\",CHAR(160),EZ$1)),FIND(CHAR(160),SUBSTITUTE($J182,\"}\",CHAR(160),EZ$1))-FIND(CHAR(160),SUBSTITUTE($J182,\"{\",CHAR(160),EZ$1))+1),\"\")","v":""},{"$f":"IFERROR(MID($J182,FIND(CHAR(160),SUBSTITUTE($J182,\"{\",CHAR(160),FA$1)),FIND(CHAR(160),SUBSTITUTE($J182,\"}\",CHAR(160),FA$1))-FIND(CHAR(160),SUBSTITUTE($J182,\"{\",CHAR(160),FA$1))+1),\"\")","v":"{Measure:Quantity}"},{"$f":"IFERROR(MID($J182,FIND(CHAR(160),SUBSTITUTE($J182,\"{\",CHAR(160),FB$1)),FIND(CHAR(160),SUBSTITUTE($J182,\"}\",CHAR(160),FB$1))-FIND(CHAR(160),SUBSTITUTE($J182,\"{\",CHAR(160),FB$1))+1),\"\")","v":"{Rebate per Package}"},{"$f":"IFERROR(MID($O182,FIND(CHAR(160),SUBSTITUTE($O182,\"{\",CHAR(160),FC$1)),FIND(CHAR(160),SUBSTITUTE($O182,\"}\",CHAR(160),FC$1))-FIND(CHAR(160),SUBSTITUTE($O182,\"{\",CHAR(160),FC$1))+1),\"\")","v":""},{"$f":"IFERROR(MID($O182,FIND(CHAR(160),SUBSTITUTE($O182,\"{\",CHAR(160),FD$1)),FIND(CHAR(160),SUBSTITUTE($O182,\"}\",CHAR(160),FD$1))-FIND(CHAR(160),SUBSTITUTE($O182,\"{\",CHAR(160),FD$1))+1),\"\")","v":""},{"$f":"IFERROR(MID($O182,FIND(CHAR(160),SUBSTITUTE($O182,\"{\",CHAR(160),FE$1)),FIND(CHAR(160),SUBSTITUTE($O182,\"}\",CHAR(160),FE$1))-FIND(CHAR(160),SUBSTITUTE($O182,\"{\",CHAR(160),FE$1))+1),\"\")","v":""},{"$f":"IFERROR(MID($O182,FIND(CHAR(160),SUBSTITUTE($O182,\"{\",CHAR(160),FF$1)),FIND(CHAR(160),SUBSTITUTE($O182,\"}\",CHAR(160),FF$1))-FIND(CHAR(160),SUBSTITUTE($O182,\"{\",CHAR(160),FF$1))+1),\"\")","v":""},{"$f":"IFERROR(MID($O182,FIND(CHAR(160),SUBSTITUTE($O182,\"{\",CHAR(160),FG$1)),FIND(CHAR(160),SUBSTITUTE($O182,\"}\",CHAR(160),FG$1))-FIND(CHAR(160),SUBSTITUTE($O182,\"{\",CHAR(160),FG$1))+1),\"\")","v":""},{"$f":"IFERROR(MID($O182,FIND(CHAR(160),SUBSTITUTE($O182,\"{\",CHAR(160),FH$1)),FIND(CHAR(160),SUBSTITUTE($O182,\"}\",CHAR(160),FH$1))-FIND(CHAR(160),SUBSTITUTE($O182,\"{\",CHAR(160),FH$1))+1),\"\")","v":""},{"$f":"IFERROR(MID($O182,FIND(CHAR(160),SUBSTITUTE($O182,\"{\",CHAR(160),FI$1)),FIND(CHAR(160),SUBSTITUTE($O182,\"}\",CHAR(160),FI$1))-FIND(CHAR(160),SUBSTITUTE($O182,\"{\",CHAR(160),FI$1))+1),\"\")","v":""},{"$f":"IFERROR(MID($O182,FIND(CHAR(160),SUBSTITUTE($O182,\"{\",CHAR(160),FJ$1)),FIND(CHAR(160),SUBSTITUTE($O182,\"}\",CHAR(160),FJ$1))-FIND(CHAR(160),SUBSTITUTE($O182,\"{\",CHAR(160),FJ$1))+1),\"\")","v":""},{"$f":"IFERROR(MID($O182,FIND(CHAR(160),SUBSTITUTE($O182,\"{\",CHAR(160),FK$1)),FIND(CHAR(160),SUBSTITUTE($O182,\"}\",CHAR(160),FK$1))-FIND(CHAR(160),SUBSTITUTE($O182,\"{\",CHAR(160),FK$1))+1),\"\")","v":"{Measure:Quantity}"},{"$f":"IFERROR(MID($O182,FIND(CHAR(160),SUBSTITUTE($O182,\"{\",CHAR(160),FL$1)),FIND(CHAR(160),SUBSTITUTE($O182,\"}\",CHAR(160),FL$1))-FIND(CHAR(160),SUBSTITUTE($O182,\"{\",CHAR(160),FL$1))+1),\"\")","v":"{Package Size}"},{"$f":"IFERROR(MID($R182,FIND(CHAR(160),SUBSTITUTE($R182,\"{\",CHAR(160),FM$1)),FIND(CHAR(160),SUBSTITUTE($R182,\"}\",CHAR(160),FM$1))-FIND(CHAR(160),SUBSTITUTE($R182,\"{\",CHAR(160),FM$1))+1),\"\")","v":""},{"$f":"IFERROR(MID($R182,FIND(CHAR(160),SUBSTITUTE($R182,\"{\",CHAR(160),FN$1)),FIND(CHAR(160),SUBSTITUTE($R182,\"}\",CHAR(160),FN$1))-FIND(CHAR(160),SUBSTITUTE($R182,\"{\",CHAR(160),FN$1))+1),\"\")","v":""},{"$f":"IFERROR(MID($R182,FIND(CHAR(160),SUBSTITUTE($R182,\"{\",CHAR(160),FO$1)),FIND(CHAR(160),SUBSTITUTE($R182,\"}\",CHAR(160),FO$1))-FIND(CHAR(160),SUBSTITUTE($R182,\"{\",CHAR(160),FO$1))+1),\"\")","v":""},{"$f":"IFERROR(MID($R182,FIND(CHAR(160),SUBSTITUTE($R182,\"{\",CHAR(160),FP$1)),FIND(CHAR(160),SUBSTITUTE($R182,\"}\",CHAR(160),FP$1))-FIND(CHAR(160),SUBSTITUTE($R182,\"{\",CHAR(160),FP$1))+1),\"\")","v":""},{"$f":"IFERROR(MID($R182,FIND(CHAR(160),SUBSTITUTE($R182,\"{\",CHAR(160),FQ$1)),FIND(CHAR(160),SUBSTITUTE($R182,\"}\",CHAR(160),FQ$1))-FIND(CHAR(160),SUBSTITUTE($R182,\"{\",CHAR(160),FQ$1))+1),\"\")","v":""},{"$f":"IFERROR(MID($R182,FIND(CHAR(160),SUBSTITUTE($R182,\"{\",CHAR(160),FR$1)),FIND(CHAR(160),SUBSTITUTE($R182,\"}\",CHAR(160),FR$1))-FIND(CHAR(160),SUBSTITUTE($R182,\"{\",CHAR(160),FR$1))+1),\"\")","v":""},{"$f":"IFERROR(MID($R182,FIND(CHAR(160),SUBSTITUTE($R182,\"{\",CHAR(160),FS$1)),FIND(CHAR(160),SUBSTITUTE($R182,\"}\",CHAR(160),FS$1))-FIND(CHAR(160),SUBSTITUTE($R182,\"{\",CHAR(160),FS$1))+1),\"\")","v":""},{"$f":"IFERROR(MID($R182,FIND(CHAR(160),SUBSTITUTE($R182,\"{\",CHAR(160),FT$1)),FIND(CHAR(160),SUBSTITUTE($R182,\"}\",CHAR(160),FT$1))-FIND(CHAR(160),SUBSTITUTE($R182,\"{\",CHAR(160),FT$1))+1),\"\")","v":""},{"$f":"IFERROR(MID($R182,FIND(CHAR(160),SUBSTITUTE($R182,\"{\",CHAR(160),FU$1)),FIND(CHAR(160),SUBSTITUTE($R182,\"}\",CHAR(160),FU$1))-FIND(CHAR(160),SUBSTITUTE($R182,\"{\",CHAR(160),FU$1))+1),\"\")","v":"{Measure:Quantity}"},{"$f":"IFERROR(MID($R182,FIND(CHAR(160),SUBSTITUTE($R182,\"{\",CHAR(160),FV$1)),FIND(CHAR(160),SUBSTITUTE($R182,\"}\",CHAR(160),FV$1))-FIND(CHAR(160),SUBSTITUTE($R182,\"{\",CHAR(160),FV$1))+1),\"\")","v":"{Package Size}"},{"$f":"IFERROR(MID($U182,FIND(CHAR(160),SUBSTITUTE($U182,\"{\",CHAR(160),FW$1)),FIND(CHAR(160),SUBSTITUTE($U182,\"}\",CHAR(160),FW$1))-FIND(CHAR(160),SUBSTITUTE($U182,\"{\",CHAR(160),FW$1))+1),\"\")","v":"{Factor:WinterCF}"},{"$f":"IFERROR(MID($U182,FIND(CHAR(160),SUBSTITUTE($U182,\"{\",CHAR(160),FX$1)),FIND(CHAR(160),SUBSTITUTE($U182,\"}\",CHAR(160),FX$1))-FIND(CHAR(160),SUBSTITUTE($U182,\"{\",CHAR(160),FX$1))+1),\"\")","v":""},{"$f":"IFERROR(MID($U182,FIND(CHAR(160),SUBSTITUTE($U182,\"{\",CHAR(160),FY$1)),FIND(CHAR(160),SUBSTITUTE($U182,\"}\",CHAR(160),FY$1))-FIND(CHAR(160),SUBSTITUTE($U182,\"{\",CHAR(160),FY$1))+1),\"\")","v":""},{"$f":"IFERROR(MID($U182,FIND(CHAR(160),SUBSTITUTE($U182,\"{\",CHAR(160),FZ$1)),FIND(CHAR(160),SUBSTITUTE($U182,\"}\",CHAR(160),FZ$1))-FIND(CHAR(160),SUBSTITUTE($U182,\"{\",CHAR(160),FZ$1))+1),\"\")","v":""},{"$f":"IFERROR(MID($U182,FIND(CHAR(160),SUBSTITUTE($U182,\"{\",CHAR(160),GA$1)),FIND(CHAR(160),SUBSTITUTE($U182,\"}\",CHAR(160),GA$1))-FIND(CHAR(160),SUBSTITUTE($U182,\"{\",CHAR(160),GA$1))+1),\"\")","v":""},{"$f":"IFERROR(MID($U182,FIND(CHAR(160),SUBSTITUTE($U182,\"{\",CHAR(160),GB$1)),FIND(CHAR(160),SUBSTITUTE($U182,\"}\",CHAR(160),GB$1))-FIND(CHAR(160),SUBSTITUTE($U182,\"{\",CHAR(160),GB$1))+1),\"\")","v":""},{"$f":"IFERROR(MID($U182,FIND(CHAR(160),SUBSTITUTE($U182,\"{\",CHAR(160),GC$1)),FIND(CHAR(160),SUBSTITUTE($U182,\"}\",CHAR(160),GC$1))-FIND(CHAR(160),SUBSTITUTE($U182,\"{\",CHAR(160),GC$1))+1),\"\")","v":""},{"$f":"IFERROR(MID($U182,FIND(CHAR(160),SUBSTITUTE($U182,\"{\",CHAR(160),GD$1)),FIND(CHAR(160),SUBSTITUTE($U182,\"}\",CHAR(160),GD$1))-FIND(CHAR(160),SUBSTITUTE($U182,\"{\",CHAR(160),GD$1))+1),\"\")","v":""},{"$f":"IFERROR(MID($U182,FIND(CHAR(160),SUBSTITUTE($U182,\"{\",CHAR(160),GE$1)),FIND(CHAR(160),SUBSTITUTE($U182,\"}\",CHAR(160),GE$1))-FIND(CHAR(160),SUBSTITUTE($U182,\"{\",CHAR(160),GE$1))+1),\"\")","v":"{Measure:Quantity}"},{"$f":"IFERROR(MID($U182,FIND(CHAR(160),SUBSTITUTE($U182,\"{\",CHAR(160),GF$1)),FIND(CHAR(160),SUBSTITUTE($U182,\"}\",CHAR(160),GF$1))-FIND(CHAR(160),SUBSTITUTE($U182,\"{\",CHAR(160),GF$1))+1),\"\")","v":"{Package Size}"},{"$f":"IFERROR(MID($V182,FIND(CHAR(160),SUBSTITUTE($V182,\"{\",CHAR(160),GG$1)),FIND(CHAR(160),SUBSTITUTE($V182,\"}\",CHAR(160),GG$1))-FIND(CHAR(160),SUBSTITUTE($V182,\"{\",CHAR(160),GG$1))+1),\"\")","v":"{Factor:SummerCF}"},{"$f":"IFERROR(MID($V182,FIND(CHAR(160),SUBSTITUTE($V182,\"{\",CHAR(160),GH$1)),FIND(CHAR(160),SUBSTITUTE($V182,\"}\",CHAR(160),GH$1))-FIND(CHAR(160),SUBSTITUTE($V182,\"{\",CHAR(160),GH$1))+1),\"\")","v":""},{"$f":"IFERROR(MID($V182,FIND(CHAR(160),SUBSTITUTE($V182,\"{\",CHAR(160),GI$1)),FIND(CHAR(160),SUBSTITUTE($V182,\"}\",CHAR(160),GI$1))-FIND(CHAR(160),SUBSTITUTE($V182,\"{\",CHAR(160),GI$1))+1),\"\")","v":""},{"$f":"IFERROR(MID($V182,FIND(CHAR(160),SUBSTITUTE($V182,\"{\",CHAR(160),GJ$1)),FIND(CHAR(160),SUBSTITUTE($V182,\"}\",CHAR(160),GJ$1))-FIND(CHAR(160),SUBSTITUTE($V182,\"{\",CHAR(160),GJ$1))+1),\"\")","v":""},{"$f":"IFERROR(MID($V182,FIND(CHAR(160),SUBSTITUTE($V182,\"{\",CHAR(160),GK$1)),FIND(CHAR(160),SUBSTITUTE($V182,\"}\",CHAR(160),GK$1))-FIND(CHAR(160),SUBSTITUTE($V182,\"{\",CHAR(160),GK$1))+1),\"\")","v":""},{"$f":"IFERROR(MID($V182,FIND(CHAR(160),SUBSTITUTE($V182,\"{\",CHAR(160),GL$1)),FIND(CHAR(160),SUBSTITUTE($V182,\"}\",CHAR(160),GL$1))-FIND(CHAR(160),SUBSTITUTE($V182,\"{\",CHAR(160),GL$1))+1),\"\")","v":""},{"$f":"IFERROR(MID($V182,FIND(CHAR(160),SUBSTITUTE($V182,\"{\",CHAR(160),GM$1)),FIND(CHAR(160),SUBSTITUTE($V182,\"}\",CHAR(160),GM$1))-FIND(CHAR(160),SUBSTITUTE($V182,\"{\",CHAR(160),GM$1))+1),\"\")","v":""},{"$f":"IFERROR(MID($V182,FIND(CHAR(160),SUBSTITUTE($V182,\"{\",CHAR(160),GN$1)),FIND(CHAR(160),SUBSTITUTE($V182,\"}\",CHAR(160),GN$1))-FIND(CHAR(160),SUBSTITUTE($V182,\"{\",CHAR(160),GN$1))+1),\"\")","v":""},{"$f":"IFERROR(MID($V182,FIND(CHAR(160),SUBSTITUTE($V182,\"{\",CHAR(160),GO$1)),FIND(CHAR(160),SUBSTITUTE($V182,\"}\",CHAR(160),GO$1))-FIND(CHAR(160),SUBSTITUTE($V182,\"{\",CHAR(160),GO$1))+1),\"\")","v":"{Measure:Quantity}"},{"$f":"IFERROR(MID($V182,FIND(CHAR(160),SUBSTITUTE($V182,\"{\",CHAR(160),GP$1)),FIND(CHAR(160),SUBSTITUTE($V182,\"}\",CHAR(160),GP$1))-FIND(CHAR(160),SUBSTITUTE($V182,\"{\",CHAR(160),GP$1))+1),\"\")","v":"{Package Size}"},{"$f":"IFERROR(MID($W182,FIND(CHAR(160),SUBSTITUTE($W182,\"{\",CHAR(160),GQ$1)),FIND(CHAR(160),SUBSTITUTE($W182,\"}\",CHAR(160),GQ$1))-FIND(CHAR(160),SUBSTITUTE($W182,\"{\",CHAR(160),GQ$1))+1),\"\")","v":""},{"$f":"IFERROR(MID($W182,FIND(CHAR(160),SUBSTITUTE($W182,\"{\",CHAR(160),GR$1)),FIND(CHAR(160),SUBSTITUTE($W182,\"}\",CHAR(160),GR$1))-FIND(CHAR(160),SUBSTITUTE($W182,\"{\",CHAR(160),GR$1))+1),\"\")","v":""},{"$f":"IFERROR(MID($W182,FIND(CHAR(160),SUBSTITUTE($W182,\"{\",CHAR(160),GS$1)),FIND(CHAR(160),SUBSTITUTE($W182,\"}\",CHAR(160),GS$1))-FIND(CHAR(160),SUBSTITUTE($W182,\"{\",CHAR(160),GS$1))+1),\"\")","v":""},{"$f":"IFERROR(MID($W182,FIND(CHAR(160),SUBSTITUTE($W182,\"{\",CHAR(160),GT$1)),FIND(CHAR(160),SUBSTITUTE($W182,\"}\",CHAR(160),GT$1))-FIND(CHAR(160),SUBSTITUTE($W182,\"{\",CHAR(160),GT$1))+1),\"\")","v":""},{"$f":"IFERROR(MID($W182,FIND(CHAR(160),SUBSTITUTE($W182,\"{\",CHAR(160),GU$1)),FIND(CHAR(160),SUBSTITUTE($W182,\"}\",CHAR(160),GU$1))-FIND(CHAR(160),SUBSTITUTE($W182,\"{\",CHAR(160),GU$1))+1),\"\")","v":""},{"$f":"IFERROR(MID($W182,FIND(CHAR(160),SUBSTITUTE($W182,\"{\",CHAR(160),GV$1)),FIND(CHAR(160),SUBSTITUTE($W182,\"}\",CHAR(160),GV$1))-FIND(CHAR(160),SUBSTITUTE($W182,\"{\",CHAR(160),GV$1))+1),\"\")","v":""},{"$f":"IFERROR(MID($W182,FIND(CHAR(160),SUBSTITUTE($W182,\"{\",CHAR(160),GW$1)),FIND(CHAR(160),SUBSTITUTE($W182,\"}\",CHAR(160),GW$1))-FIND(CHAR(160),SUBSTITUTE($W182,\"{\",CHAR(160),GW$1))+1),\"\")","v":""},{"$f":"IFERROR(MID($W182,FIND(CHAR(160),SUBSTITUTE($W182,\"{\",CHAR(160),GX$1)),FIND(CHAR(160),SUBSTITUTE($W182,\"}\",CHAR(160),GX$1))-FIND(CHAR(160),SUBSTITUTE($W182,\"{\",CHAR(160),GX$1))+1),\"\")","v":""},{"$f":"IFERROR(MID($W182,FIND(CHAR(160),SUBSTITUTE($W182,\"{\",CHAR(160),GY$1)),FIND(CHAR(160),SUBSTITUTE($W182,\"}\",CHAR(160),GY$1))-FIND(CHAR(160),SUBSTITUTE($W182,\"{\",CHAR(160),GY$1))+1),\"\")","v":"{Measure:Quantity}"},{"$f":"IFERROR(MID($W182,FIND(CHAR(160),SUBSTITUTE($W182,\"{\",CHAR(160),GZ$1)),FIND(CHAR(160),SUBSTITUTE($W182,\"}\",CHAR(160),GZ$1))-FIND(CHAR(160),SUBSTITUTE($W182,\"{\",CHAR(160),GZ$1))+1),\"\")","v":"{Package Size}"},{"$f":"IFERROR(MID($X182,FIND(CHAR(160),SUBSTITUTE($X182,\"{\",CHAR(160),HA$1)),FIND(CHAR(160),SUBSTITUTE($X182,\"}\",CHAR(160),HA$1))-FIND(CHAR(160),SUBSTITUTE($X182,\"{\",CHAR(160),HA$1))+1),\"\")","v":""},{"$f":"IFERROR(MID($X182,FIND(CHAR(160),SUBSTITUTE($X182,\"{\",CHAR(160),HB$1)),FIND(CHAR(160),SUBSTITUTE($X182,\"}\",CHAR(160),HB$1))-FIND(CHAR(160),SUBSTITUTE($X182,\"{\",CHAR(160),HB$1))+1),\"\")","v":""},{"$f":"IFERROR(MID($X182,FIND(CHAR(160),SUBSTITUTE($X182,\"{\",CHAR(160),HC$1)),FIND(CHAR(160),SUBSTITUTE($X182,\"}\",CHAR(160),HC$1))-FIND(CHAR(160),SUBSTITUTE($X182,\"{\",CHAR(160),HC$1))+1),\"\")","v":""},{"$f":"IFERROR(MID($X182,FIND(CHAR(160),SUBSTITUTE($X182,\"{\",CHAR(160),HD$1)),FIND(CHAR(160),SUBSTITUTE($X182,\"}\",CHAR(160),HD$1))-FIND(CHAR(160),SUBSTITUTE($X182,\"{\",CHAR(160),HD$1))+1),\"\")","v":""},{"$f":"IFERROR(MID($X182,FIND(CHAR(160),SUBSTITUTE($X182,\"{\",CHAR(160),HE$1)),FIND(CHAR(160),SUBSTITUTE($X182,\"}\",CHAR(160),HE$1))-FIND(CHAR(160),SUBSTITUTE($X182,\"{\",CHAR(160),HE$1))+1),\"\")","v":""},{"$f":"IFERROR(MID($X182,FIND(CHAR(160),SUBSTITUTE($X182,\"{\",CHAR(160),HF$1)),FIND(CHAR(160),SUBSTITUTE($X182,\"}\",CHAR(160),HF$1))-FIND(CHAR(160),SUBSTITUTE($X182,\"{\",CHAR(160),HF$1))+1),\"\")","v":""},{"$f":"IFERROR(MID($X182,FIND(CHAR(160),SUBSTITUTE($X182,\"{\",CHAR(160),HG$1)),FIND(CHAR(160),SUBSTITUTE($X182,\"}\",CHAR(160),HG$1))-FIND(CHAR(160),SUBSTITUTE($X182,\"{\",CHAR(160),HG$1))+1),\"\")","v":""},{"$f":"IFERROR(MID($X182,FIND(CHAR(160),SUBSTITUTE($X182,\"{\",CHAR(160),HH$1)),FIND(CHAR(160),SUBSTITUTE($X182,\"}\",CHAR(160),HH$1))-FIND(CHAR(160),SUBSTITUTE($X182,\"{\",CHAR(160),HH$1))+1),\"\")","v":""},{"$f":"IFERROR(MID($X182,FIND(CHAR(160),SUBSTITUTE($X182,\"{\",CHAR(160),HI$1)),FIND(CHAR(160),SUBSTITUTE($X182,\"}\",CHAR(160),HI$1))-FIND(CHAR(160),SUBSTITUTE($X182,\"{\",CHAR(160),HI$1))+1),\"\")","v":"{Measure:Quantity}"},{"$f":"IFERROR(MID($X182,FIND(CHAR(160),SUBSTITUTE($X182,\"{\",CHAR(160),HJ$1)),FIND(CHAR(160),SUBSTITUTE($X182,\"}\",CHAR(160),HJ$1))-FIND(CHAR(160),SUBSTITUTE($X182,\"{\",CHAR(160),HJ$1))+1),\"\")","v":"{Package Size}"},{"$f":"IFERROR(MID($Y182,FIND(CHAR(160),SUBSTITUTE($Y182,\"{\",CHAR(160),HK$1)),FIND(CHAR(160),SUBSTITUTE($Y182,\"}\",CHAR(160),HK$1))-FIND(CHAR(160),SUBSTITUTE($Y182,\"{\",CHAR(160),HK$1))+1),\"\")","v":""},{"$f":"IFERROR(MID($Y182,FIND(CHAR(160),SUBSTITUTE($Y182,\"{\",CHAR(160),HL$1)),FIND(CHAR(160),SUBSTITUTE($Y182,\"}\",CHAR(160),HL$1))-FIND(CHAR(160),SUBSTITUTE($Y182,\"{\",CHAR(160),HL$1))+1),\"\")","v":""},{"$f":"IFERROR(MID($Y182,FIND(CHAR(160),SUBSTITUTE($Y182,\"{\",CHAR(160),HM$1)),FIND(CHAR(160),SUBSTITUTE($Y182,\"}\",CHAR(160),HM$1))-FIND(CHAR(160),SUBSTITUTE($Y182,\"{\",CHAR(160),HM$1))+1),\"\")","v":""},{"$f":"IFERROR(MID($Y182,FIND(CHAR(160),SUBSTITUTE($Y182,\"{\",CHAR(160),HN$1)),FIND(CHAR(160),SUBSTITUTE($Y182,\"}\",CHAR(160),HN$1))-FIND(CHAR(160),SUBSTITUTE($Y182,\"{\",CHAR(160),HN$1))+1),\"\")","v":""},{"$f":"IFERROR(MID($Y182,FIND(CHAR(160),SUBSTITUTE($Y182,\"{\",CHAR(160),HO$1)),FIND(CHAR(160),SUBSTITUTE($Y182,\"}\",CHAR(160),HO$1))-FIND(CHAR(160),SUBSTITUTE($Y182,\"{\",CHAR(160),HO$1))+1),\"\")","v":""},{"$f":"IFERROR(MID($Y182,FIND(CHAR(160),SUBSTITUTE($Y182,\"{\",CHAR(160),HP$1)),FIND(CHAR(160),SUBSTITUTE($Y182,\"}\",CHAR(160),HP$1))-FIND(CHAR(160),SUBSTITUTE($Y182,\"{\",CHAR(160),HP$1))+1),\"\")","v":""},{"$f":"IFERROR(MID($Y182,FIND(CHAR(160),SUBSTITUTE($Y182,\"{\",CHAR(160),HQ$1)),FIND(CHAR(160),SUBSTITUTE($Y182,\"}\",CHAR(160),HQ$1))-FIND(CHAR(160),SUBSTITUTE($Y182,\"{\",CHAR(160),HQ$1))+1),\"\")","v":""},{"$f":"IFERROR(MID($Y182,FIND(CHAR(160),SUBSTITUTE($Y182,\"{\",CHAR(160),HR$1)),FIND(CHAR(160),SUBSTITUTE($Y182,\"}\",CHAR(160),HR$1))-FIND(CHAR(160),SUBSTITUTE($Y182,\"{\",CHAR(160),HR$1))+1),\"\")","v":""},{"$f":"IFERROR(MID($Y182,FIND(CHAR(160),SUBSTITUTE($Y182,\"{\",CHAR(160),HS$1)),FIND(CHAR(160),SUBSTITUTE($Y182,\"}\",CHAR(160),HS$1))-FIND(CHAR(160),SUBSTITUTE($Y182,\"{\",CHAR(160),HS$1))+1),\"\")","v":"{Measure:Quantity}"},{"$f":"IFERROR(MID($Y182,FIND(CHAR(160),SUBSTITUTE($Y182,\"{\",CHAR(160),HT$1)),FIND(CHAR(160),SUBSTITUTE($Y182,\"}\",CHAR(160),HT$1))-FIND(CHAR(160),SUBSTITUTE($Y182,\"{\",CHAR(160),HT$1))+1),\"\")","v":"{Package Size}"},{"$f":"IFERROR(MID($Z182,FIND(CHAR(160),SUBSTITUTE($Z182,\"{\",CHAR(160),HU$1)),FIND(CHAR(160),SUBSTITUTE($Z182,\"}\",CHAR(160),HU$1))-FIND(CHAR(160),SUBSTITUTE($Z182,\"{\",CHAR(160),HU$1))+1),\"\")","v":""},{"$f":"IFERROR(MID($Z182,FIND(CHAR(160),SUBSTITUTE($Z182,\"{\",CHAR(160),HV$1)),FIND(CHAR(160),SUBSTITUTE($Z182,\"}\",CHAR(160),HV$1))-FIND(CHAR(160),SUBSTITUTE($Z182,\"{\",CHAR(160),HV$1))+1),\"\")","v":""},{"$f":"IFERROR(MID($Z182,FIND(CHAR(160),SUBSTITUTE($Z182,\"{\",CHAR(160),HW$1)),FIND(CHAR(160),SUBSTITUTE($Z182,\"}\",CHAR(160),HW$1))-FIND(CHAR(160),SUBSTITUTE($Z182,\"{\",CHAR(160),HW$1))+1),\"\")","v":""},{"$f":"IFERROR(MID($Z182,FIND(CHAR(160),SUBSTITUTE($Z182,\"{\",CHAR(160),HX$1)),FIND(CHAR(160),SUBSTITUTE($Z182,\"}\",CHAR(160),HX$1))-FIND(CHAR(160),SUBSTITUTE($Z182,\"{\",CHAR(160),HX$1))+1),\"\")","v":""},{"$f":"IFERROR(MID($Z182,FIND(CHAR(160),SUBSTITUTE($Z182,\"{\",CHAR(160),HY$1)),FIND(CHAR(160),SUBSTITUTE($Z182,\"}\",CHAR(160),HY$1))-FIND(CHAR(160),SUBSTITUTE($Z182,\"{\",CHAR(160),HY$1))+1),\"\")","v":""},{"$f":"IFERROR(MID($Z182,FIND(CHAR(160),SUBSTITUTE($Z182,\"{\",CHAR(160),HZ$1)),FIND(CHAR(160),SUBSTITUTE($Z182,\"}\",CHAR(160),HZ$1))-FIND(CHAR(160),SUBSTITUTE($Z182,\"{\",CHAR(160),HZ$1))+1),\"\")","v":""},{"$f":"IFERROR(MID($Z182,FIND(CHAR(160),SUBSTITUTE($Z182,\"{\",CHAR(160),IA$1)),FIND(CHAR(160),SUBSTITUTE($Z182,\"}\",CHAR(160),IA$1))-FIND(CHAR(160),SUBSTITUTE($Z182,\"{\",CHAR(160),IA$1))+1),\"\")","v":""},{"$f":"IFERROR(MID($Z182,FIND(CHAR(160),SUBSTITUTE($Z182,\"{\",CHAR(160),IB$1)),FIND(CHAR(160),SUBSTITUTE($Z182,\"}\",CHAR(160),IB$1))-FIND(CHAR(160),SUBSTITUTE($Z182,\"{\",CHAR(160),IB$1))+1),\"\")","v":""},{"$f":"IFERROR(MID($Z182,FIND(CHAR(160),SUBSTITUTE($Z182,\"{\",CHAR(160),IC$1)),FIND(CHAR(160),SUBSTITUTE($Z182,\"}\",CHAR(160),IC$1))-FIND(CHAR(160),SUBSTITUTE($Z182,\"{\",CHAR(160),IC$1))+1),\"\")","v":"{Measure:Quantity}"},{"$f":"IFERROR(MID($Z182,FIND(CHAR(160),SUBSTITUTE($Z182,\"{\",CHAR(160),ID$1)),FIND(CHAR(160),SUBSTITUTE($Z182,\"}\",CHAR(160),ID$1))-FIND(CHAR(160),SUBSTITUTE($Z182,\"{\",CHAR(160),ID$1))+1),\"\")","v":"{Package Size}"},{"$f":"IFERROR(MID($AA182,FIND(CHAR(160),SUBSTITUTE($AA182,\"{\",CHAR(160),IE$1)),FIND(CHAR(160),SUBSTITUTE($AA182,\"}\",CHAR(160),IE$1))-FIND(CHAR(160),SUBSTITUTE($AA182,\"{\",CHAR(160),IE$1))+1),\"\")","v":""},{"$f":"IFERROR(MID($AA182,FIND(CHAR(160),SUBSTITUTE($AA182,\"{\",CHAR(160),IF$1)),FIND(CHAR(160),SUBSTITUTE($AA182,\"}\",CHAR(160),IF$1))-FIND(CHAR(160),SUBSTITUTE($AA182,\"{\",CHAR(160),IF$1))+1),\"\")","v":""},{"$f":"IFERROR(MID($AA182,FIND(CHAR(160),SUBSTITUTE($AA182,\"{\",CHAR(160),IG$1)),FIND(CHAR(160),SUBSTITUTE($AA182,\"}\",CHAR(160),IG$1))-FIND(CHAR(160),SUBSTITUTE($AA182,\"{\",CHAR(160),IG$1))+1),\"\")","v":""},{"$f":"IFERROR(MID($AA182,FIND(CHAR(160),SUBSTITUTE($AA182,\"{\",CHAR(160),IH$1)),FIND(CHAR(160),SUBSTITUTE($AA182,\"}\",CHAR(160),IH$1))-FIND(CHAR(160),SUBSTITUTE($AA182,\"{\",CHAR(160),IH$1))+1),\"\")","v":""},{"$f":"IFERROR(MID($AA182,FIND(CHAR(160),SUBSTITUTE($AA182,\"{\",CHAR(160),II$1)),FIND(CHAR(160),SUBSTITUTE($AA182,\"}\",CHAR(160),II$1))-FIND(CHAR(160),SUBSTITUTE($AA182,\"{\",CHAR(160),II$1))+1),\"\")","v":""},{"$f":"IFERROR(MID($AA182,FIND(CHAR(160),SUBSTITUTE($AA182,\"{\",CHAR(160),IJ$1)),FIND(CHAR(160),SUBSTITUTE($AA182,\"}\",CHAR(160),IJ$1))-FIND(CHAR(160),SUBSTITUTE($AA182,\"{\",CHAR(160),IJ$1))+1),\"\")","v":""},{"$f":"IFERROR(MID($AA182,FIND(CHAR(160),SUBSTITUTE($AA182,\"{\",CHAR(160),IK$1)),FIND(CHAR(160),SUBSTITUTE($AA182,\"}\",CHAR(160),IK$1))-FIND(CHAR(160),SUBSTITUTE($AA182,\"{\",CHAR(160),IK$1))+1),\"\")","v":""},{"$f":"IFERROR(MID($AA182,FIND(CHAR(160),SUBSTITUTE($AA182,\"{\",CHAR(160),IL$1)),FIND(CHAR(160),SUBSTITUTE($AA182,\"}\",CHAR(160),IL$1))-FIND(CHAR(160),SUBSTITUTE($AA182,\"{\",CHAR(160),IL$1))+1),\"\")","v":""},{"$f":"IFERROR(MID($AA182,FIND(CHAR(160),SUBSTITUTE($AA182,\"{\",CHAR(160),IM$1)),FIND(CHAR(160),SUBSTITUTE($AA182,\"}\",CHAR(160),IM$1))-FIND(CHAR(160),SUBSTITUTE($AA182,\"{\",CHAR(160),IM$1))+1),\"\")","v":"{Measure:Quantity}"},{"$f":"IFERROR(MID($AA182,FIND(CHAR(160),SUBSTITUTE($AA182,\"{\",CHAR(160),IN$1)),FIND(CHAR(160),SUBSTITUTE($AA182,\"}\",CHAR(160),IN$1))-FIND(CHAR(160),SUBSTITUTE($AA182,\"{\",CHAR(160),IN$1))+1),\"\")","v":"{Package Size}"},{"$f":"IFERROR(MID($AB182,FIND(CHAR(160),SUBSTITUTE($AB182,\"{\",CHAR(160),IO$1)),FIND(CHAR(160),SUBSTITUTE($AB182,\"}\",CHAR(160),IO$1))-FIND(CHAR(160),SUBSTITUTE($AB182,\"{\",CHAR(160),IO$1))+1),\"\")","v":""},{"$f":"IFERROR(MID($AB182,FIND(CHAR(160),SUBSTITUTE($AB182,\"{\",CHAR(160),IP$1)),FIND(CHAR(160),SUBSTITUTE($AB182,\"}\",CHAR(160),IP$1))-FIND(CHAR(160),SUBSTITUTE($AB182,\"{\",CHAR(160),IP$1))+1),\"\")","v":""},{"$f":"IFERROR(MID($AB182,FIND(CHAR(160),SUBSTITUTE($AB182,\"{\",CHAR(160),IQ$1)),FIND(CHAR(160),SUBSTITUTE($AB182,\"}\",CHAR(160),IQ$1))-FIND(CHAR(160),SUBSTITUTE($AB182,\"{\",CHAR(160),IQ$1))+1),\"\")","v":""},{"$f":"IFERROR(MID($AB182,FIND(CHAR(160),SUBSTITUTE($AB182,\"{\",CHAR(160),IR$1)),FIND(CHAR(160),SUBSTITUTE($AB182,\"}\",CHAR(160),IR$1))-FIND(CHAR(160),SUBSTITUTE($AB182,\"{\",CHAR(160),IR$1))+1),\"\")","v":""},{"$f":"IFERROR(MID($AB182,FIND(CHAR(160),SUBSTITUTE($AB182,\"{\",CHAR(160),IS$1)),FIND(CHAR(160),SUBSTITUTE($AB182,\"}\",CHAR(160),IS$1))-FIND(CHAR(160),SUBSTITUTE($AB182,\"{\",CHAR(160),IS$1))+1),\"\")","v":""},{"$f":"IFERROR(MID($AB182,FIND(CHAR(160),SUBSTITUTE($AB182,\"{\",CHAR(160),IT$1)),FIND(CHAR(160),SUBSTITUTE($AB182,\"}\",CHAR(160),IT$1))-FIND(CHAR(160),SUBSTITUTE($AB182,\"{\",CHAR(160),IT$1))+1),\"\")","v":""},{"$f":"IFERROR(MID($AB182,FIND(CHAR(160),SUBSTITUTE($AB182,\"{\",CHAR(160),IU$1)),FIND(CHAR(160),SUBSTITUTE($AB182,\"}\",CHAR(160),IU$1))-FIND(CHAR(160),SUBSTITUTE($AB182,\"{\",CHAR(160),IU$1))+1),\"\")","v":""},{"$f":"IFERROR(MID($AB182,FIND(CHAR(160),SUBSTITUTE($AB182,\"{\",CHAR(160),IV$1)),FIND(CHAR(160),SUBSTITUTE($AB182,\"}\",CHAR(160),IV$1))-FIND(CHAR(160),SUBSTITUTE($AB182,\"{\",CHAR(160),IV$1))+1),\"\")","v":""},{"$f":"IFERROR(MID($AB182,FIND(CHAR(160),SUBSTITUTE($AB182,\"{\",CHAR(160),IW$1)),FIND(CHAR(160),SUBSTITUTE($AB182,\"}\",CHAR(160),IW$1))-FIND(CHAR(160),SUBSTITUTE($AB182,\"{\",CHAR(160),IW$1))+1),\"\")","v":""},{"$f":"IFERROR(MID($AB182,FIND(CHAR(160),SUBSTITUTE($AB182,\"{\",CHAR(160),IX$1)),FIND(CHAR(160),SUBSTITUTE($AB182,\"}\",CHAR(160),IX$1))-FIND(CHAR(160),SUBSTITUTE($AB182,\"{\",CHAR(160),IX$1))+1),\"\")","v":""},null,{"$f":"10-COUNTIF(DU182:ED182,\"\")","v":3}]
["Distributor Lighting","Bay_High_Type_BC>120 W - long life","S64BCHHL","2021-07-01","2022-06-30","Calculated","{Measure:Quantity}*{Package Size}*94.81",0,"Calculated","{Measure:Quantity}*{Rebate per Package}",0,"2021-07-01","2022-06-30","Calculated","{Measure:Quantity}*{Package Size}*1046",null,null,"{Measure:Quantity}*{Package Size}*1.0747*0.337",null,null,"{Measure:Quantity}*{Package Size}*{Factor:WinterCF}*0.337","{Measure:Quantity}*{Package Size}*{Factor:SummerCF}*1.0747*0.337","{Measure:Quantity}*{Package Size}*10*-0.44","{Measure:Quantity}*{Package Size}*-0.106","{Measure:Quantity}*{Package Size}*-0.447","{Measure:Quantity}*{Package Size}*-0.017","{Measure:Quantity}*{Package Size}*-0.102",null,"2021-07-01","2022-06-30",16,0.372,0.64500000000000002,0.45,0.218,0.22900000000000001,0.10299999999999999,0.99,1,1,0.51,0,null,{"$f":"DU183","v":"{Measure:Quantity}"},1,{"$f":"DV183","v":"{Package Size}"},1,{"$f":"DW183","v":"{Rebate per Package}"},{"$f":"CW183*CO183","v":71.107500000000002},{"$f":"DX183","v":""},null,{"$f":"DY183","v":""},null,{"$f":"DZ183","v":""},null,{"$f":"EA183","v":""},null,{"$f":"EB183","v":""},null,{"$f":"EC183","v":""},null,{"$f":"ED183","v":""},null,{"$f":"AS183*AU183*1046","v":1046},0,0,{"$f":"AS183*AU183*1.0747*0.337","v":0.36217389999999999},0,0,{"$f":"AS183*AU183*AF183*0.337","v":0.125364},{"$f":"AS183*AU183*AG183*1.0747*0.337","v":0.23360216550000001},{"$f":"AS183*AU183*10*-0.44","v":-4.4000000000000004},{"$f":"AS183*AU183*-0.106","v":-0.106},{"$f":"AS183*AU183*-0.447","v":-0.44700000000000001},{"$f":"AS183*AU183*-0.017","v":-1.7000000000000001E-2},{"$f":"AS183*AU183*-0.102","v":-0.10199999999999999},0,null,"Res","Default DR",{"$f":"Benefits(BL183,BR183,BS183,BT183,BU183,BV183,BW183,BX183,BY183,BZ183,AE183,AH183,AI183,AJ183,AK183,AL183,AM183,AN183,AO183,AP183,CA183,CB183)","v":1443.2273169720829},950.84867630357348,-89.849830343644427,-196.05888721560714,-8.6774817179236869,-65.025421585501022,-28.134685223341368,0,0,{"$f":"SUMPRODUCT(CC183:CK183,--(CC183:CK183>0))","v":2394.0759932756564},{"$f":"-SUMPRODUCT(CC183:CK183,--(CC183:CK183<0))","v":387.74630608601763},null,{"$f":"AS183*AU183*94.81","v":94.81},null,null,{"$f":"CM183+CO183","v":482.55630608601763},{"$f":"IF(NetOrGross=\"Net\",(1-AO183+AP183),1)","v":1},{"$f":"(SUMPRODUCT(CC183:CJ183,--(CC183:CJ183>0))+CN183)*CS183/((-SUMPRODUCT(CC183:CJ183,--(CC183:CJ183<0))+MAX(CO183,CV183)+CP183+CQ183)*CS183+IF(FRIncentives=\"Yes\",CV183*(1-CS183),0))","v":4.9612365709068209},1,{"$f":"AS183*AW183","v":71.107500000000002},{"$f":"CW182","v":0.75},"Electric","y",null,{"$f":"IF(F183=\"Manual Entry\",\"Manual\",IF(G183=\"\",0,\"X=\"&SUBSTITUTE(SUBSTITUTE(SUBSTITUTE(SUBSTITUTE(SUBSTITUTE(SUBSTITUTE(SUBSTITUTE(SUBSTITUTE(SUBSTITUTE(SUBSTITUTE(SUBSTITUTE(SUBSTITUTE(G183,$ED183,$ED$2&ROW($ED183)),$EC183,$EC$2&ROW($EC183)),$EB183,$EB$2&ROW($EB183)),$EA183,$EA$2&ROW($EA183)),$DZ183,$DZ$2&ROW($DZ183)),$DY183,$DY$2&ROW($DY183)),$DX183,$DX$2&ROW($DX183)),$DW183,$DW$2&ROW($DW183)),$DV183,$DV$2&ROW($DV183)),$DU183,$DU$2&ROW($DU183)),$DT183,$DT$2&ROW($DT183)),$DS183,$DS$2&ROW($DS183))))","v":"X=AS183*AU183*94.81"},{"$f":"IF(I183=\"Manual Entry\",\"Manual\",IF(J183=\"\",0,\"X=\"&SUBSTITUTE(SUBSTITUTE(SUBSTITUTE(SUBSTITUTE(SUBSTITUTE(SUBSTITUTE(SUBSTITUTE(SUBSTITUTE(SUBSTITUTE(SUBSTITUTE(SUBSTITUTE(SUBSTITUTE(J183,$ED183,$ED$2&ROW($ED183)),$EC183,$EC$2&ROW($EC183)),$EB183,$EB$2&ROW($EB183)),$EA183,$EA$2&ROW($EA183)),$DZ183,$DZ$2&ROW($DZ183)),$DY183,$DY$2&ROW($DY183)),$DX183,$DX$2&ROW($DX183)),$DW183,$DW$2&ROW($DW183)),$DV183,$DV$2&ROW($DV183)),$DU183,$DU$2&ROW($DU183)),$DT183,$DT$2&ROW($DT183)),$DS183,$DS$2&ROW($DS183))))","v":"X=AS183*AW183"},{"$f":"IF(O183=\"\",0,\"X=\"&SUBSTITUTE(SUBSTITUTE(SUBSTITUTE(SUBSTITUTE(SUBSTITUTE(SUBSTITUTE(SUBSTITUTE(SUBSTITUTE(SUBSTITUTE(SUBSTITUTE(SUBSTITUTE(SUBSTITUTE(O183,$ED183,$ED$2&ROW($ED183)),$EC183,$EC$2&ROW($EC183)),$EB183,$EB$2&ROW($EB183)),$EA183,$EA$2&ROW($EA183)),$DZ183,$DZ$2&ROW($DZ183)),$DY183,$DY$2&ROW($DY183)),$DX183,$DX$2&ROW($DX183)),$DW183,$DW$2&ROW($DW183)),$DV183,$DV$2&ROW($DV183)),$DU183,$DU$2&ROW($DU183)),$DT183,$DT$2&ROW($DT183)),$DS183,$DS$2&ROW($DS183)))","v":"X=AS183*AU183*1046"},{"$f":"IF(P183=\"\",0,\"X=\"&SUBSTITUTE(SUBSTITUTE(SUBSTITUTE(SUBSTITUTE(SUBSTITUTE(SUBSTITUTE(SUBSTITUTE(SUBSTITUTE(SUBSTITUTE(SUBSTITUTE(SUBSTITUTE(SUBSTITUTE(P183,$ED183,$ED$2&ROW($ED183)),$EC183,$EC$2&ROW($EC183)),$EB183,$EB$2&ROW($EB183)),$EA183,$EA$2&ROW($EA183)),$DZ183,$DZ$2&ROW($DZ183)),$DY183,$DY$2&ROW($DY183)),$DX183,$DX$2&ROW($DX183)),$DW183,$DW$2&ROW($DW183)),$DV183,$DV$2&ROW($DV183)),$DU183,$DU$2&ROW($DU183)),$DT183,$DT$2&ROW($DT183)),$DS183,$DS$2&ROW($DS183)))","v":0},{"$f":"IF(Q183=\"\",0,\"X=\"&SUBSTITUTE(SUBSTITUTE(SUBSTITUTE(SUBSTITUTE(SUBSTITUTE(SUBSTITUTE(SUBSTITUTE(SUBSTITUTE(SUBSTITUTE(SUBSTITUTE(SUBSTITUTE(SUBSTITUTE(Q183,$ED183,$ED$2&ROW($ED183)),$EC183,$EC$2&ROW($EC183)),$EB183,$EB$2&ROW($EB183)),$EA183,$EA$2&ROW($EA183)),$DZ183,$DZ$2&ROW($DZ183)),$DY183,$DY$2&ROW($DY183)),$DX183,$DX$2&ROW($DX183)),$DW183,$DW$2&ROW($DW183)),$DV183,$DV$2&ROW($DV183)),$DU183,$DU$2&ROW($DU183)),$DT183,$DT$2&ROW($DT183)),$DS183,$DS$2&ROW($DS183)))","v":0},{"$f":"IF(R183=\"\",0,\"X=\"&SUBSTITUTE(SUBSTITUTE(SUBSTITUTE(SUBSTITUTE(SUBSTITUTE(SUBSTITUTE(SUBSTITUTE(SUBSTITUTE(SUBSTITUTE(SUBSTITUTE(SUBSTITUTE(SUBSTITUTE(R183,$ED183,$ED$2&ROW($ED183)),$EC183,$EC$2&ROW($EC183)),$EB183,$EB$2&ROW($EB183)),$EA183,$EA$2&ROW($EA183)),$DZ183,$DZ$2&ROW($DZ183)),$DY183,$DY$2&ROW($DY183)),$DX183,$DX$2&ROW($DX183)),$DW183,$DW$2&ROW($DW183)),$DV183,$DV$2&ROW($DV183)),$DU183,$DU$2&ROW($DU183)),$DT183,$DT$2&ROW($DT183)),$DS183,$DS$2&ROW($DS183)))","v":"X=AS183*AU183*1.0747*0.337"},{"$f":"IF(S183=\"\",0,\"X=\"&SUBSTITUTE(SUBSTITUTE(SUBSTITUTE(SUBSTITUTE(SUBSTITUTE(SUBSTITUTE(SUBSTITUTE(SUBSTITUTE(SUBSTITUTE(SUBSTITUTE(SUBSTITUTE(SUBSTITUTE(S183,$ED183,$ED$2&ROW($ED183)),$EC183,$EC$2&ROW($EC183)),$EB183,$EB$2&ROW($EB183)),$EA183,$EA$2&ROW($EA183)),$DZ183,$DZ$2&ROW($DZ183)),$DY183,$DY$2&ROW($DY183)),$DX183,$DX$2&ROW($DX183)),$DW183,$DW$2&ROW($DW183)),$DV183,$DV$2&ROW($DV183)),$DU183,$DU$2&ROW($DU183)),$DT183,$DT$2&ROW($DT183)),$DS183,$DS$2&ROW($DS183)))","v":0},{"$f":"IF(T183=\"\",0,\"X=\"&SUBSTITUTE(SUBSTITUTE(SUBSTITUTE(SUBSTITUTE(SUBSTITUTE(SUBSTITUTE(SUBSTITUTE(SUBSTITUTE(SUBSTITUTE(SUBSTITUTE(SUBSTITUTE(SUBSTITUTE(T183,$ED183,$ED$2&ROW($ED183)),$EC183,$EC$2&ROW($EC183)),$EB183,$EB$2&ROW($EB183)),$EA183,$EA$2&ROW($EA183)),$DZ183,$DZ$2&ROW($DZ183)),$DY183,$DY$2&ROW($DY183)),$DX183,$DX$2&ROW($DX183)),$DW183,$DW$2&ROW($DW183)),$DV183,$DV$2&ROW($DV183)),$DU183,$DU$2&ROW($DU183)),$DT183,$DT$2&ROW($DT183)),$DS183,$DS$2&ROW($DS183)))","v":0},{"$f":"IF(U183=\"\",0,\"X=\"&SUBSTITUTE(SUBSTITUTE(SUBSTITUTE(SUBSTITUTE(SUBSTITUTE(SUBSTITUTE(SUBSTITUTE(SUBSTITUTE(SUBSTITUTE(SUBSTITUTE(SUBSTITUTE(SUBSTITUTE(U183,$ED183,$ED$2&ROW($ED183)),$EC183,$EC$2&ROW($EC183)),$EB183,$EB$2&ROW($EB183)),$EA183,$EA$2&ROW($EA183)),$DZ183,$DZ$2&ROW($DZ183)),$DY183,$DY$2&ROW($DY183)),$DX183,$DX$2&ROW($DX183)),$DW183,$DW$2&ROW($DW183)),$DV183,$DV$2&ROW($DV183)),$DU183,$DU$2&ROW($DU183)),$DT183,$DT$2&ROW($DT183)),$DS183,$DS$2&ROW($DS183)))","v":"X=AS183*AU183*AF183*0.337"},{"$f":"IF(V183=\"\",0,\"X=\"&SUBSTITUTE(SUBSTITUTE(SUBSTITUTE(SUBSTITUTE(SUBSTITUTE(SUBSTITUTE(SUBSTITUTE(SUBSTITUTE(SUBSTITUTE(SUBSTITUTE(SUBSTITUTE(SUBSTITUTE(V183,$ED183,$ED$2&ROW($ED183)),$EC183,$EC$2&ROW($EC183)),$EB183,$EB$2&ROW($EB183)),$EA183,$EA$2&ROW($EA183)),$DZ183,$DZ$2&ROW($DZ183)),$DY183,$DY$2&ROW($DY183)),$DX183,$DX$2&ROW($DX183)),$DW183,$DW$2&ROW($DW183)),$DV183,$DV$2&ROW($DV183)),$DU183,$DU$2&ROW($DU183)),$DT183,$DT$2&ROW($DT183)),$DS183,$DS$2&ROW($DS183)))","v":"X=AS183*AU183*AG183*1.0747*0.337"},{"$f":"IF(W183=\"\",0,\"X=\"&SUBSTITUTE(SUBSTITUTE(SUBSTITUTE(SUBSTITUTE(SUBSTITUTE(SUBSTITUTE(SUBSTITUTE(SUBSTITUTE(SUBSTITUTE(SUBSTITUTE(SUBSTITUTE(SUBSTITUTE(W183,$ED183,$ED$2&ROW($ED183)),$EC183,$EC$2&ROW($EC183)),$EB183,$EB$2&ROW($EB183)),$EA183,$EA$2&ROW($EA183)),$DZ183,$DZ$2&ROW($DZ183)),$DY183,$DY$2&ROW($DY183)),$DX183,$DX$2&ROW($DX183)),$DW183,$DW$2&ROW($DW183)),$DV183,$DV$2&ROW($DV183)),$DU183,$DU$2&ROW($DU183)),$DT183,$DT$2&ROW($DT183)),$DS183,$DS$2&ROW($DS183)))","v":"X=AS183*AU183*10*-0.44"},{"$f":"IF(X183=\"\",0,\"X=\"&SUBSTITUTE(SUBSTITUTE(SUBSTITUTE(SUBSTITUTE(SUBSTITUTE(SUBSTITUTE(SUBSTITUTE(SUBSTITUTE(SUBSTITUTE(SUBSTITUTE(SUBSTITUTE(SUBSTITUTE(X183,$ED183,$ED$2&ROW($ED183)),$EC183,$EC$2&ROW($EC183)),$EB183,$EB$2&ROW($EB183)),$EA183,$EA$2&ROW($EA183)),$DZ183,$DZ$2&ROW($DZ183)),$DY183,$DY$2&ROW($DY183)),$DX183,$DX$2&ROW($DX183)),$DW183,$DW$2&ROW($DW183)),$DV183,$DV$2&ROW($DV183)),$DU183,$DU$2&ROW($DU183)),$DT183,$DT$2&ROW($DT183)),$DS183,$DS$2&ROW($DS183)))","v":"X=AS183*AU183*-0.106"},{"$f":"IF(Y183=\"\",0,\"X=\"&SUBSTITUTE(SUBSTITUTE(SUBSTITUTE(SUBSTITUTE(SUBSTITUTE(SUBSTITUTE(SUBSTITUTE(SUBSTITUTE(SUBSTITUTE(SUBSTITUTE(SUBSTITUTE(SUBSTITUTE(Y183,$ED183,$ED$2&ROW($ED183)),$EC183,$EC$2&ROW($EC183)),$EB183,$EB$2&ROW($EB183)),$EA183,$EA$2&ROW($EA183)),$DZ183,$DZ$2&ROW($DZ183)),$DY183,$DY$2&ROW($DY183)),$DX183,$DX$2&ROW($DX183)),$DW183,$DW$2&ROW($DW183)),$DV183,$DV$2&ROW($DV183)),$DU183,$DU$2&ROW($DU183)),$DT183,$DT$2&ROW($DT183)),$DS183,$DS$2&ROW($DS183)))","v":"X=AS183*AU183*-0.447"},{"$f":"IF(Z183=\"\",0,\"X=\"&SUBSTITUTE(SUBSTITUTE(SUBSTITUTE(SUBSTITUTE(SUBSTITUTE(SUBSTITUTE(SUBSTITUTE(SUBSTITUTE(SUBSTITUTE(SUBSTITUTE(SUBSTITUTE(SUBSTITUTE(Z183,$ED183,$ED$2&ROW($ED183)),$EC183,$EC$2&ROW($EC183)),$EB183,$EB$2&ROW($EB183)),$EA183,$EA$2&ROW($EA183)),$DZ183,$DZ$2&ROW($DZ183)),$DY183,$DY$2&ROW($DY183)),$DX183,$DX$2&ROW($DX183)),$DW183,$DW$2&ROW($DW183)),$DV183,$DV$2&ROW($DV183)),$DU183,$DU$2&ROW($DU183)),$DT183,$DT$2&ROW($DT183)),$DS183,$DS$2&ROW($DS183)))","v":"X=AS183*AU183*-0.017"},{"$f":"IF(AA183=\"\",0,\"X=\"&SUBSTITUTE(SUBSTITUTE(SUBSTITUTE(SUBSTITUTE(SUBSTITUTE(SUBSTITUTE(SUBSTITUTE(SUBSTITUTE(SUBSTITUTE(SUBSTITUTE(SUBSTITUTE(SUBSTITUTE(AA183,$ED183,$ED$2&ROW($ED183)),$EC183,$EC$2&ROW($EC183)),$EB183,$EB$2&ROW($EB183)),$EA183,$EA$2&ROW($EA183)),$DZ183,$DZ$2&ROW($DZ183)),$DY183,$DY$2&ROW($DY183)),$DX183,$DX$2&ROW($DX183)),$DW183,$DW$2&ROW($DW183)),$DV183,$DV$2&ROW($DV183)),$DU183,$DU$2&ROW($DU183)),$DT183,$DT$2&ROW($DT183)),$DS183,$DS$2&ROW($DS183)))","v":"X=AS183*AU183*-0.102"},{"$f":"IF(AB183=\"\",0,\"X=\"&SUBSTITUTE(SUBSTITUTE(SUBSTITUTE(SUBSTITUTE(SUBSTITUTE(SUBSTITUTE(SUBSTITUTE(SUBSTITUTE(SUBSTITUTE(SUBSTITUTE(SUBSTITUTE(SUBSTITUTE(AB183,$ED183,$ED$2&ROW($ED183)),$EC183,$EC$2&ROW($EC183)),$EB183,$EB$2&ROW($EB183)),$EA183,$EA$2&ROW($EA183)),$DZ183,$DZ$2&ROW($DZ183)),$DY183,$DY$2&ROW($DY183)),$DX183,$DX$2&ROW($DX183)),$DW183,$DW$2&ROW($DW183)),$DV183,$DV$2&ROW($DV183)),$DU183,$DU$2&ROW($DU183)),$DT183,$DT$2&ROW($DT183)),$DS183,$DS$2&ROW($DS183)))","v":0},null,null,"{Factor:WinterCF}","{Factor:SummerCF}",{"$f":"IFERROR(INDEX($EG183:$IV183,MATCH(0,COUNTIF($DR183:DT183,$EG183:$IV183),0)),\"\")","v":"{Measure:Quantity}"},{"$f":"IFERROR(INDEX($EG183:$IV183,MATCH(0,COUNTIF($DR183:DU183,$EG183:$IV183),0)),\"\")","v":"{Package Size}"},{"$f":"IFERROR(INDEX($EG183:$IV183,MATCH(0,COUNTIF($DR183:DV183,$EG183:$IV183),0)),\"\")","v":"{Rebate per Package}"},{"$f":"IFERROR(INDEX($EG183:$IV183,MATCH(0,COUNTIF($DR183:DW183,$EG183:$IV183),0)),\"\")","v":""},{"$f":"IFERROR(INDEX($EG183:$IV183,MATCH(0,COUNTIF($DR183:DX183,$EG183:$IV183),0)),\"\")","v":""},{"$f":"IFERROR(INDEX($EG183:$IV183,MATCH(0,COUNTIF($DR183:DY183,$EG183:$IV183),0)),\"\")","v":""},{"$f":"IFERROR(INDEX($EG183:$IV183,MATCH(0,COUNTIF($DR183:DZ183,$EG183:$IV183),0)),\"\")","v":""},{"$f":"IFERROR(INDEX($EG183:$IV183,MATCH(0,COUNTIF($DR183:EA183,$EG183:$IV183),0)),\"\")","v":""},{"$f":"IFERROR(INDEX($EG183:$IV183,MATCH(0,COUNTIF($DR183:EB183,$EG183:$IV183),0)),\"\")","v":""},{"$f":"IFERROR(INDEX($EG183:$IV183,MATCH(0,COUNTIF($DR183:EC183,$EG183:$IV183),0)),\"\")","v":""},null,null,{"$f":"IFERROR(MID($G183,FIND(CHAR(160),SUBSTITUTE($G183,\"{\",CHAR(160),EG$1)),FIND(CHAR(160),SUBSTITUTE($G183,\"}\",CHAR(160),EG$1))-FIND(CHAR(160),SUBSTITUTE($G183,\"{\",CHAR(160),EG$1))+1),\"\")","v":"{Measure:Quantity}"},{"$f":"IFERROR(MID($G183,FIND(CHAR(160),SUBSTITUTE($G183,\"{\",CHAR(160),EH$1)),FIND(CHAR(160),SUBSTITUTE($G183,\"}\",CHAR(160),EH$1))-FIND(CHAR(160),SUBSTITUTE($G183,\"{\",CHAR(160),EH$1))+1),\"\")","v":"{Package Size}"},{"$f":"IFERROR(MID($G183,FIND(CHAR(160),SUBSTITUTE($G183,\"{\",CHAR(160),EI$1)),FIND(CHAR(160),SUBSTITUTE($G183,\"}\",CHAR(160),EI$1))-FIND(CHAR(160),SUBSTITUTE($G183,\"{\",CHAR(160),EI$1))+1),\"\")","v":""},{"$f":"IFERROR(MID($G183,FIND(CHAR(160),SUBSTITUTE($G183,\"{\",CHAR(160),EJ$1)),FIND(CHAR(160),SUBSTITUTE($G183,\"}\",CHAR(160),EJ$1))-FIND(CHAR(160),SUBSTITUTE($G183,\"{\",CHAR(160),EJ$1))+1),\"\")","v":""},{"$f":"IFERROR(MID($G183,FIND(CHAR(160),SUBSTITUTE($G183,\"{\",CHAR(160),EK$1)),FIND(CHAR(160),SUBSTITUTE($G183,\"}\",CHAR(160),EK$1))-FIND(CHAR(160),SUBSTITUTE($G183,\"{\",CHAR(160),EK$1))+1),\"\")","v":""},{"$f":"IFERROR(MID($G183,FIND(CHAR(160),SUBSTITUTE($G183,\"{\",CHAR(160),EL$1)),FIND(CHAR(160),SUBSTITUTE($G183,\"}\",CHAR(160),EL$1))-FIND(CHAR(160),SUBSTITUTE($G183,\"{\",CHAR(160),EL$1))+1),\"\")","v":""},{"$f":"IFERROR(MID($G183,FIND(CHAR(160),SUBSTITUTE($G183,\"{\",CHAR(160),EM$1)),FIND(CHAR(160),SUBSTITUTE($G183,\"}\",CHAR(160),EM$1))-FIND(CHAR(160),SUBSTITUTE($G183,\"{\",CHAR(160),EM$1))+1),\"\")","v":""},{"$f":"IFERROR(MID($G183,FIND(CHAR(160),SUBSTITUTE($G183,\"{\",CHAR(160),EN$1)),FIND(CHAR(160),SUBSTITUTE($G183,\"}\",CHAR(160),EN$1))-FIND(CHAR(160),SUBSTITUTE($G183,\"{\",CHAR(160),EN$1))+1),\"\")","v":""},{"$f":"IFERROR(MID($G183,FIND(CHAR(160),SUBSTITUTE($G183,\"{\",CHAR(160),EO$1)),FIND(CHAR(160),SUBSTITUTE($G183,\"}\",CHAR(160),EO$1))-FIND(CHAR(160),SUBSTITUTE($G183,\"{\",CHAR(160),EO$1))+1),\"\")","v":""},{"$f":"IFERROR(MID($G183,FIND(CHAR(160),SUBSTITUTE($G183,\"{\",CHAR(160),EP$1)),FIND(CHAR(160),SUBSTITUTE($G183,\"}\",CHAR(160),EP$1))-FIND(CHAR(160),SUBSTITUTE($G183,\"{\",CHAR(160),EP$1))+1),\"\")","v":""},{"$f":"IFERROR(MID($J183,FIND(CHAR(160),SUBSTITUTE($J183,\"{\",CHAR(160),EQ$1)),FIND(CHAR(160),SUBSTITUTE($J183,\"}\",CHAR(160),EQ$1))-FIND(CHAR(160),SUBSTITUTE($J183,\"{\",CHAR(160),EQ$1))+1),\"\")","v":"{Measure:Quantity}"},{"$f":"IFERROR(MID($J183,FIND(CHAR(160),SUBSTITUTE($J183,\"{\",CHAR(160),ER$1)),FIND(CHAR(160),SUBSTITUTE($J183,\"}\",CHAR(160),ER$1))-FIND(CHAR(160),SUBSTITUTE($J183,\"{\",CHAR(160),ER$1))+1),\"\")","v":"{Rebate per Package}"},{"$f":"IFERROR(MID($J183,FIND(CHAR(160),SUBSTITUTE($J183,\"{\",CHAR(160),ES$1)),FIND(CHAR(160),SUBSTITUTE($J183,\"}\",CHAR(160),ES$1))-FIND(CHAR(160),SUBSTITUTE($J183,\"{\",CHAR(160),ES$1))+1),\"\")","v":""},{"$f":"IFERROR(MID($J183,FIND(CHAR(160),SUBSTITUTE($J183,\"{\",CHAR(160),ET$1)),FIND(CHAR(160),SUBSTITUTE($J183,\"}\",CHAR(160),ET$1))-FIND(CHAR(160),SUBSTITUTE($J183,\"{\",CHAR(160),ET$1))+1),\"\")","v":""},{"$f":"IFERROR(MID($J183,FIND(CHAR(160),SUBSTITUTE($J183,\"{\",CHAR(160),EU$1)),FIND(CHAR(160),SUBSTITUTE($J183,\"}\",CHAR(160),EU$1))-FIND(CHAR(160),SUBSTITUTE($J183,\"{\",CHAR(160),EU$1))+1),\"\")","v":""},{"$f":"IFERROR(MID($J183,FIND(CHAR(160),SUBSTITUTE($J183,\"{\",CHAR(160),EV$1)),FIND(CHAR(160),SUBSTITUTE($J183,\"}\",CHAR(160),EV$1))-FIND(CHAR(160),SUBSTITUTE($J183,\"{\",CHAR(160),EV$1))+1),\"\")","v":""},{"$f":"IFERROR(MID($J183,FIND(CHAR(160),SUBSTITUTE($J183,\"{\",CHAR(160),EW$1)),FIND(CHAR(160),SUBSTITUTE($J183,\"}\",CHAR(160),EW$1))-FIND(CHAR(160),SUBSTITUTE($J183,\"{\",CHAR(160),EW$1))+1),\"\")","v":""},{"$f":"IFERROR(MID($J183,FIND(CHAR(160),SUBSTITUTE($J183,\"{\",CHAR(160),EX$1)),FIND(CHAR(160),SUBSTITUTE($J183,\"}\",CHAR(160),EX$1))-FIND(CHAR(160),SUBSTITUTE($J183,\"{\",CHAR(160),EX$1))+1),\"\")","v":""},{"$f":"IFERROR(MID($J183,FIND(CHAR(160),SUBSTITUTE($J183,\"{\",CHAR(160),EY$1)),FIND(CHAR(160),SUBSTITUTE($J183,\"}\",CHAR(160),EY$1))-FIND(CHAR(160),SUBSTITUTE($J183,\"{\",CHAR(160),EY$1))+1),\"\")","v":""},{"$f":"IFERROR(MID($J183,FIND(CHAR(160),SUBSTITUTE($J183,\"{\",CHAR(160),EZ$1)),FIND(CHAR(160),SUBSTITUTE($J183,\"}\",CHAR(160),EZ$1))-FIND(CHAR(160),SUBSTITUTE($J183,\"{\",CHAR(160),EZ$1))+1),\"\")","v":""},{"$f":"IFERROR(MID($J183,FIND(CHAR(160),SUBSTITUTE($J183,\"{\",CHAR(160),FA$1)),FIND(CHAR(160),SUBSTITUTE($J183,\"}\",CHAR(160),FA$1))-FIND(CHAR(160),SUBSTITUTE($J183,\"{\",CHAR(160),FA$1))+1),\"\")","v":"{Measure:Quantity}"},{"$f":"IFERROR(MID($J183,FIND(CHAR(160),SUBSTITUTE($J183,\"{\",CHAR(160),FB$1)),FIND(CHAR(160),SUBSTITUTE($J183,\"}\",CHAR(160),FB$1))-FIND(CHAR(160),SUBSTITUTE($J183,\"{\",CHAR(160),FB$1))+1),\"\")","v":"{Rebate per Package}"},{"$f":"IFERROR(MID($O183,FIND(CHAR(160),SUBSTITUTE($O183,\"{\",CHAR(160),FC$1)),FIND(CHAR(160),SUBSTITUTE($O183,\"}\",CHAR(160),FC$1))-FIND(CHAR(160),SUBSTITUTE($O183,\"{\",CHAR(160),FC$1))+1),\"\")","v":""},{"$f":"IFERROR(MID($O183,FIND(CHAR(160),SUBSTITUTE($O183,\"{\",CHAR(160),FD$1)),FIND(CHAR(160),SUBSTITUTE($O183,\"}\",CHAR(160),FD$1))-FIND(CHAR(160),SUBSTITUTE($O183,\"{\",CHAR(160),FD$1))+1),\"\")","v":""},{"$f":"IFERROR(MID($O183,FIND(CHAR(160),SUBSTITUTE($O183,\"{\",CHAR(160),FE$1)),FIND(CHAR(160),SUBSTITUTE($O183,\"}\",CHAR(160),FE$1))-FIND(CHAR(160),SUBSTITUTE($O183,\"{\",CHAR(160),FE$1))+1),\"\")","v":""},{"$f":"IFERROR(MID($O183,FIND(CHAR(160),SUBSTITUTE($O183,\"{\",CHAR(160),FF$1)),FIND(CHAR(160),SUBSTITUTE($O183,\"}\",CHAR(160),FF$1))-FIND(CHAR(160),SUBSTITUTE($O183,\"{\",CHAR(160),FF$1))+1),\"\")","v":""},{"$f":"IFERROR(MID($O183,FIND(CHAR(160),SUBSTITUTE($O183,\"{\",CHAR(160),FG$1)),FIND(CHAR(160),SUBSTITUTE($O183,\"}\",CHAR(160),FG$1))-FIND(CHAR(160),SUBSTITUTE($O183,\"{\",CHAR(160),FG$1))+1),\"\")","v":""},{"$f":"IFERROR(MID($O183,FIND(CHAR(160),SUBSTITUTE($O183,\"{\",CHAR(160),FH$1)),FIND(CHAR(160),SUBSTITUTE($O183,\"}\",CHAR(160),FH$1))-FIND(CHAR(160),SUBSTITUTE($O183,\"{\",CHAR(160),FH$1))+1),\"\")","v":""},{"$f":"IFERROR(MID($O183,FIND(CHAR(160),SUBSTITUTE($O183,\"{\",CHAR(160),FI$1)),FIND(CHAR(160),SUBSTITUTE($O183,\"}\",CHAR(160),FI$1))-FIND(CHAR(160),SUBSTITUTE($O183,\"{\",CHAR(160),FI$1))+1),\"\")","v":""},{"$f":"IFERROR(MID($O183,FIND(CHAR(160),SUBSTITUTE($O183,\"{\",CHAR(160),FJ$1)),FIND(CHAR(160),SUBSTITUTE($O183,\"}\",CHAR(160),FJ$1))-FIND(CHAR(160),SUBSTITUTE($O183,\"{\",CHAR(160),FJ$1))+1),\"\")","v":""},{"$f":"IFERROR(MID($O183,FIND(CHAR(160),SUBSTITUTE($O183,\"{\",CHAR(160),FK$1)),FIND(CHAR(160),SUBSTITUTE($O183,\"}\",CHAR(160),FK$1))-FIND(CHAR(160),SUBSTITUTE($O183,\"{\",CHAR(160),FK$1))+1),\"\")","v":"{Measure:Quantity}"},{"$f":"IFERROR(MID($O183,FIND(CHAR(160),SUBSTITUTE($O183,\"{\",CHAR(160),FL$1)),FIND(CHAR(160),SUBSTITUTE($O183,\"}\",CHAR(160),FL$1))-FIND(CHAR(160),SUBSTITUTE($O183,\"{\",CHAR(160),FL$1))+1),\"\")","v":"{Package Size}"},{"$f":"IFERROR(MID($R183,FIND(CHAR(160),SUBSTITUTE($R183,\"{\",CHAR(160),FM$1)),FIND(CHAR(160),SUBSTITUTE($R183,\"}\",CHAR(160),FM$1))-FIND(CHAR(160),SUBSTITUTE($R183,\"{\",CHAR(160),FM$1))+1),\"\")","v":""},{"$f":"IFERROR(MID($R183,FIND(CHAR(160),SUBSTITUTE($R183,\"{\",CHAR(160),FN$1)),FIND(CHAR(160),SUBSTITUTE($R183,\"}\",CHAR(160),FN$1))-FIND(CHAR(160),SUBSTITUTE($R183,\"{\",CHAR(160),FN$1))+1),\"\")","v":""},{"$f":"IFERROR(MID($R183,FIND(CHAR(160),SUBSTITUTE($R183,\"{\",CHAR(160),FO$1)),FIND(CHAR(160),SUBSTITUTE($R183,\"}\",CHAR(160),FO$1))-FIND(CHAR(160),SUBSTITUTE($R183,\"{\",CHAR(160),FO$1))+1),\"\")","v":""},{"$f":"IFERROR(MID($R183,FIND(CHAR(160),SUBSTITUTE($R183,\"{\",CHAR(160),FP$1)),FIND(CHAR(160),SUBSTITUTE($R183,\"}\",CHAR(160),FP$1))-FIND(CHAR(160),SUBSTITUTE($R183,\"{\",CHAR(160),FP$1))+1),\"\")","v":""},{"$f":"IFERROR(MID($R183,FIND(CHAR(160),SUBSTITUTE($R183,\"{\",CHAR(160),FQ$1)),FIND(CHAR(160),SUBSTITUTE($R183,\"}\",CHAR(160),FQ$1))-FIND(CHAR(160),SUBSTITUTE($R183,\"{\",CHAR(160),FQ$1))+1),\"\")","v":""},{"$f":"IFERROR(MID($R183,FIND(CHAR(160),SUBSTITUTE($R183,\"{\",CHAR(160),FR$1)),FIND(CHAR(160),SUBSTITUTE($R183,\"}\",CHAR(160),FR$1))-FIND(CHAR(160),SUBSTITUTE($R183,\"{\",CHAR(160),FR$1))+1),\"\")","v":""},{"$f":"IFERROR(MID($R183,FIND(CHAR(160),SUBSTITUTE($R183,\"{\",CHAR(160),FS$1)),FIND(CHAR(160),SUBSTITUTE($R183,\"}\",CHAR(160),FS$1))-FIND(CHAR(160),SUBSTITUTE($R183,\"{\",CHAR(160),FS$1))+1),\"\")","v":""},{"$f":"IFERROR(MID($R183,FIND(CHAR(160),SUBSTITUTE($R183,\"{\",CHAR(160),FT$1)),FIND(CHAR(160),SUBSTITUTE($R183,\"}\",CHAR(160),FT$1))-FIND(CHAR(160),SUBSTITUTE($R183,\"{\",CHAR(160),FT$1))+1),\"\")","v":""},{"$f":"IFERROR(MID($R183,FIND(CHAR(160),SUBSTITUTE($R183,\"{\",CHAR(160),FU$1)),FIND(CHAR(160),SUBSTITUTE($R183,\"}\",CHAR(160),FU$1))-FIND(CHAR(160),SUBSTITUTE($R183,\"{\",CHAR(160),FU$1))+1),\"\")","v":"{Measure:Quantity}"},{"$f":"IFERROR(MID($R183,FIND(CHAR(160),SUBSTITUTE($R183,\"{\",CHAR(160),FV$1)),FIND(CHAR(160),SUBSTITUTE($R183,\"}\",CHAR(160),FV$1))-FIND(CHAR(160),SUBSTITUTE($R183,\"{\",CHAR(160),FV$1))+1),\"\")","v":"{Package Size}"},{"$f":"IFERROR(MID($U183,FIND(CHAR(160),SUBSTITUTE($U183,\"{\",CHAR(160),FW$1)),FIND(CHAR(160),SUBSTITUTE($U183,\"}\",CHAR(160),FW$1))-FIND(CHAR(160),SUBSTITUTE($U183,\"{\",CHAR(160),FW$1))+1),\"\")","v":"{Factor:WinterCF}"},{"$f":"IFERROR(MID($U183,FIND(CHAR(160),SUBSTITUTE($U183,\"{\",CHAR(160),FX$1)),FIND(CHAR(160),SUBSTITUTE($U183,\"}\",CHAR(160),FX$1))-FIND(CHAR(160),SUBSTITUTE($U183,\"{\",CHAR(160),FX$1))+1),\"\")","v":""},{"$f":"IFERROR(MID($U183,FIND(CHAR(160),SUBSTITUTE($U183,\"{\",CHAR(160),FY$1)),FIND(CHAR(160),SUBSTITUTE($U183,\"}\",CHAR(160),FY$1))-FIND(CHAR(160),SUBSTITUTE($U183,\"{\",CHAR(160),FY$1))+1),\"\")","v":""},{"$f":"IFERROR(MID($U183,FIND(CHAR(160),SUBSTITUTE($U183,\"{\",CHAR(160),FZ$1)),FIND(CHAR(160),SUBSTITUTE($U183,\"}\",CHAR(160),FZ$1))-FIND(CHAR(160),SUBSTITUTE($U183,\"{\",CHAR(160),FZ$1))+1),\"\")","v":""},{"$f":"IFERROR(MID($U183,FIND(CHAR(160),SUBSTITUTE($U183,\"{\",CHAR(160),GA$1)),FIND(CHAR(160),SUBSTITUTE($U183,\"}\",CHAR(160),GA$1))-FIND(CHAR(160),SUBSTITUTE($U183,\"{\",CHAR(160),GA$1))+1),\"\")","v":""},{"$f":"IFERROR(MID($U183,FIND(CHAR(160),SUBSTITUTE($U183,\"{\",CHAR(160),GB$1)),FIND(CHAR(160),SUBSTITUTE($U183,\"}\",CHAR(160),GB$1))-FIND(CHAR(160),SUBSTITUTE($U183,\"{\",CHAR(160),GB$1))+1),\"\")","v":""},{"$f":"IFERROR(MID($U183,FIND(CHAR(160),SUBSTITUTE($U183,\"{\",CHAR(160),GC$1)),FIND(CHAR(160),SUBSTITUTE($U183,\"}\",CHAR(160),GC$1))-FIND(CHAR(160),SUBSTITUTE($U183,\"{\",CHAR(160),GC$1))+1),\"\")","v":""},{"$f":"IFERROR(MID($U183,FIND(CHAR(160),SUBSTITUTE($U183,\"{\",CHAR(160),GD$1)),FIND(CHAR(160),SUBSTITUTE($U183,\"}\",CHAR(160),GD$1))-FIND(CHAR(160),SUBSTITUTE($U183,\"{\",CHAR(160),GD$1))+1),\"\")","v":""},{"$f":"IFERROR(MID($U183,FIND(CHAR(160),SUBSTITUTE($U183,\"{\",CHAR(160),GE$1)),FIND(CHAR(160),SUBSTITUTE($U183,\"}\",CHAR(160),GE$1))-FIND(CHAR(160),SUBSTITUTE($U183,\"{\",CHAR(160),GE$1))+1),\"\")","v":"{Measure:Quantity}"},{"$f":"IFERROR(MID($U183,FIND(CHAR(160),SUBSTITUTE($U183,\"{\",CHAR(160),GF$1)),FIND(CHAR(160),SUBSTITUTE($U183,\"}\",CHAR(160),GF$1))-FIND(CHAR(160),SUBSTITUTE($U183,\"{\",CHAR(160),GF$1))+1),\"\")","v":"{Package Size}"},{"$f":"IFERROR(MID($V183,FIND(CHAR(160),SUBSTITUTE($V183,\"{\",CHAR(160),GG$1)),FIND(CHAR(160),SUBSTITUTE($V183,\"}\",CHAR(160),GG$1))-FIND(CHAR(160),SUBSTITUTE($V183,\"{\",CHAR(160),GG$1))+1),\"\")","v":"{Factor:SummerCF}"},{"$f":"IFERROR(MID($V183,FIND(CHAR(160),SUBSTITUTE($V183,\"{\",CHAR(160),GH$1)),FIND(CHAR(160),SUBSTITUTE($V183,\"}\",CHAR(160),GH$1))-FIND(CHAR(160),SUBSTITUTE($V183,\"{\",CHAR(160),GH$1))+1),\"\")","v":""},{"$f":"IFERROR(MID($V183,FIND(CHAR(160),SUBSTITUTE($V183,\"{\",CHAR(160),GI$1)),FIND(CHAR(160),SUBSTITUTE($V183,\"}\",CHAR(160),GI$1))-FIND(CHAR(160),SUBSTITUTE($V183,\"{\",CHAR(160),GI$1))+1),\"\")","v":""},{"$f":"IFERROR(MID($V183,FIND(CHAR(160),SUBSTITUTE($V183,\"{\",CHAR(160),GJ$1)),FIND(CHAR(160),SUBSTITUTE($V183,\"}\",CHAR(160),GJ$1))-FIND(CHAR(160),SUBSTITUTE($V183,\"{\",CHAR(160),GJ$1))+1),\"\")","v":""},{"$f":"IFERROR(MID($V183,FIND(CHAR(160),SUBSTITUTE($V183,\"{\",CHAR(160),GK$1)),FIND(CHAR(160),SUBSTITUTE($V183,\"}\",CHAR(160),GK$1))-FIND(CHAR(160),SUBSTITUTE($V183,\"{\",CHAR(160),GK$1))+1),\"\")","v":""},{"$f":"IFERROR(MID($V183,FIND(CHAR(160),SUBSTITUTE($V183,\"{\",CHAR(160),GL$1)),FIND(CHAR(160),SUBSTITUTE($V183,\"}\",CHAR(160),GL$1))-FIND(CHAR(160),SUBSTITUTE($V183,\"{\",CHAR(160),GL$1))+1),\"\")","v":""},{"$f":"IFERROR(MID($V183,FIND(CHAR(160),SUBSTITUTE($V183,\"{\",CHAR(160),GM$1)),FIND(CHAR(160),SUBSTITUTE($V183,\"}\",CHAR(160),GM$1))-FIND(CHAR(160),SUBSTITUTE($V183,\"{\",CHAR(160),GM$1))+1),\"\")","v":""},{"$f":"IFERROR(MID($V183,FIND(CHAR(160),SUBSTITUTE($V183,\"{\",CHAR(160),GN$1)),FIND(CHAR(160),SUBSTITUTE($V183,\"}\",CHAR(160),GN$1))-FIND(CHAR(160),SUBSTITUTE($V183,\"{\",CHAR(160),GN$1))+1),\"\")","v":""},{"$f":"IFERROR(MID($V183,FIND(CHAR(160),SUBSTITUTE($V183,\"{\",CHAR(160),GO$1)),FIND(CHAR(160),SUBSTITUTE($V183,\"}\",CHAR(160),GO$1))-FIND(CHAR(160),SUBSTITUTE($V183,\"{\",CHAR(160),GO$1))+1),\"\")","v":"{Measure:Quantity}"},{"$f":"IFERROR(MID($V183,FIND(CHAR(160),SUBSTITUTE($V183,\"{\",CHAR(160),GP$1)),FIND(CHAR(160),SUBSTITUTE($V183,\"}\",CHAR(160),GP$1))-FIND(CHAR(160),SUBSTITUTE($V183,\"{\",CHAR(160),GP$1))+1),\"\")","v":"{Package Size}"},{"$f":"IFERROR(MID($W183,FIND(CHAR(160),SUBSTITUTE($W183,\"{\",CHAR(160),GQ$1)),FIND(CHAR(160),SUBSTITUTE($W183,\"}\",CHAR(160),GQ$1))-FIND(CHAR(160),SUBSTITUTE($W183,\"{\",CHAR(160),GQ$1))+1),\"\")","v":""},{"$f":"IFERROR(MID($W183,FIND(CHAR(160),SUBSTITUTE($W183,\"{\",CHAR(160),GR$1)),FIND(CHAR(160),SUBSTITUTE($W183,\"}\",CHAR(160),GR$1))-FIND(CHAR(160),SUBSTITUTE($W183,\"{\",CHAR(160),GR$1))+1),\"\")","v":""},{"$f":"IFERROR(MID($W183,FIND(CHAR(160),SUBSTITUTE($W183,\"{\",CHAR(160),GS$1)),FIND(CHAR(160),SUBSTITUTE($W183,\"}\",CHAR(160),GS$1))-FIND(CHAR(160),SUBSTITUTE($W183,\"{\",CHAR(160),GS$1))+1),\"\")","v":""},{"$f":"IFERROR(MID($W183,FIND(CHAR(160),SUBSTITUTE($W183,\"{\",CHAR(160),GT$1)),FIND(CHAR(160),SUBSTITUTE($W183,\"}\",CHAR(160),GT$1))-FIND(CHAR(160),SUBSTITUTE($W183,\"{\",CHAR(160),GT$1))+1),\"\")","v":""},{"$f":"IFERROR(MID($W183,FIND(CHAR(160),SUBSTITUTE($W183,\"{\",CHAR(160),GU$1)),FIND(CHAR(160),SUBSTITUTE($W183,\"}\",CHAR(160),GU$1))-FIND(CHAR(160),SUBSTITUTE($W183,\"{\",CHAR(160),GU$1))+1),\"\")","v":""},{"$f":"IFERROR(MID($W183,FIND(CHAR(160),SUBSTITUTE($W183,\"{\",CHAR(160),GV$1)),FIND(CHAR(160),SUBSTITUTE($W183,\"}\",CHAR(160),GV$1))-FIND(CHAR(160),SUBSTITUTE($W183,\"{\",CHAR(160),GV$1))+1),\"\")","v":""},{"$f":"IFERROR(MID($W183,FIND(CHAR(160),SUBSTITUTE($W183,\"{\",CHAR(160),GW$1)),FIND(CHAR(160),SUBSTITUTE($W183,\"}\",CHAR(160),GW$1))-FIND(CHAR(160),SUBSTITUTE($W183,\"{\",CHAR(160),GW$1))+1),\"\")","v":""},{"$f":"IFERROR(MID($W183,FIND(CHAR(160),SUBSTITUTE($W183,\"{\",CHAR(160),GX$1)),FIND(CHAR(160),SUBSTITUTE($W183,\"}\",CHAR(160),GX$1))-FIND(CHAR(160),SUBSTITUTE($W183,\"{\",CHAR(160),GX$1))+1),\"\")","v":""},{"$f":"IFERROR(MID($W183,FIND(CHAR(160),SUBSTITUTE($W183,\"{\",CHAR(160),GY$1)),FIND(CHAR(160),SUBSTITUTE($W183,\"}\",CHAR(160),GY$1))-FIND(CHAR(160),SUBSTITUTE($W183,\"{\",CHAR(160),GY$1))+1),\"\")","v":"{Measure:Quantity}"},{"$f":"IFERROR(MID($W183,FIND(CHAR(160),SUBSTITUTE($W183,\"{\",CHAR(160),GZ$1)),FIND(CHAR(160),SUBSTITUTE($W183,\"}\",CHAR(160),GZ$1))-FIND(CHAR(160),SUBSTITUTE($W183,\"{\",CHAR(160),GZ$1))+1),\"\")","v":"{Package Size}"},{"$f":"IFERROR(MID($X183,FIND(CHAR(160),SUBSTITUTE($X183,\"{\",CHAR(160),HA$1)),FIND(CHAR(160),SUBSTITUTE($X183,\"}\",CHAR(160),HA$1))-FIND(CHAR(160),SUBSTITUTE($X183,\"{\",CHAR(160),HA$1))+1),\"\")","v":""},{"$f":"IFERROR(MID($X183,FIND(CHAR(160),SUBSTITUTE($X183,\"{\",CHAR(160),HB$1)),FIND(CHAR(160),SUBSTITUTE($X183,\"}\",CHAR(160),HB$1))-FIND(CHAR(160),SUBSTITUTE($X183,\"{\",CHAR(160),HB$1))+1),\"\")","v":""},{"$f":"IFERROR(MID($X183,FIND(CHAR(160),SUBSTITUTE($X183,\"{\",CHAR(160),HC$1)),FIND(CHAR(160),SUBSTITUTE($X183,\"}\",CHAR(160),HC$1))-FIND(CHAR(160),SUBSTITUTE($X183,\"{\",CHAR(160),HC$1))+1),\"\")","v":""},{"$f":"IFERROR(MID($X183,FIND(CHAR(160),SUBSTITUTE($X183,\"{\",CHAR(160),HD$1)),FIND(CHAR(160),SUBSTITUTE($X183,\"}\",CHAR(160),HD$1))-FIND(CHAR(160),SUBSTITUTE($X183,\"{\",CHAR(160),HD$1))+1),\"\")","v":""},{"$f":"IFERROR(MID($X183,FIND(CHAR(160),SUBSTITUTE($X183,\"{\",CHAR(160),HE$1)),FIND(CHAR(160),SUBSTITUTE($X183,\"}\",CHAR(160),HE$1))-FIND(CHAR(160),SUBSTITUTE($X183,\"{\",CHAR(160),HE$1))+1),\"\")","v":""},{"$f":"IFERROR(MID($X183,FIND(CHAR(160),SUBSTITUTE($X183,\"{\",CHAR(160),HF$1)),FIND(CHAR(160),SUBSTITUTE($X183,\"}\",CHAR(160),HF$1))-FIND(CHAR(160),SUBSTITUTE($X183,\"{\",CHAR(160),HF$1))+1),\"\")","v":""},{"$f":"IFERROR(MID($X183,FIND(CHAR(160),SUBSTITUTE($X183,\"{\",CHAR(160),HG$1)),FIND(CHAR(160),SUBSTITUTE($X183,\"}\",CHAR(160),HG$1))-FIND(CHAR(160),SUBSTITUTE($X183,\"{\",CHAR(160),HG$1))+1),\"\")","v":""},{"$f":"IFERROR(MID($X183,FIND(CHAR(160),SUBSTITUTE($X183,\"{\",CHAR(160),HH$1)),FIND(CHAR(160),SUBSTITUTE($X183,\"}\",CHAR(160),HH$1))-FIND(CHAR(160),SUBSTITUTE($X183,\"{\",CHAR(160),HH$1))+1),\"\")","v":""},{"$f":"IFERROR(MID($X183,FIND(CHAR(160),SUBSTITUTE($X183,\"{\",CHAR(160),HI$1)),FIND(CHAR(160),SUBSTITUTE($X183,\"}\",CHAR(160),HI$1))-FIND(CHAR(160),SUBSTITUTE($X183,\"{\",CHAR(160),HI$1))+1),\"\")","v":"{Measure:Quantity}"},{"$f":"IFERROR(MID($X183,FIND(CHAR(160),SUBSTITUTE($X183,\"{\",CHAR(160),HJ$1)),FIND(CHAR(160),SUBSTITUTE($X183,\"}\",CHAR(160),HJ$1))-FIND(CHAR(160),SUBSTITUTE($X183,\"{\",CHAR(160),HJ$1))+1),\"\")","v":"{Package Size}"},{"$f":"IFERROR(MID($Y183,FIND(CHAR(160),SUBSTITUTE($Y183,\"{\",CHAR(160),HK$1)),FIND(CHAR(160),SUBSTITUTE($Y183,\"}\",CHAR(160),HK$1))-FIND(CHAR(160),SUBSTITUTE($Y183,\"{\",CHAR(160),HK$1))+1),\"\")","v":""},{"$f":"IFERROR(MID($Y183,FIND(CHAR(160),SUBSTITUTE($Y183,\"{\",CHAR(160),HL$1)),FIND(CHAR(160),SUBSTITUTE($Y183,\"}\",CHAR(160),HL$1))-FIND(CHAR(160),SUBSTITUTE($Y183,\"{\",CHAR(160),HL$1))+1),\"\")","v":""},{"$f":"IFERROR(MID($Y183,FIND(CHAR(160),SUBSTITUTE($Y183,\"{\",CHAR(160),HM$1)),FIND(CHAR(160),SUBSTITUTE($Y183,\"}\",CHAR(160),HM$1))-FIND(CHAR(160),SUBSTITUTE($Y183,\"{\",CHAR(160),HM$1))+1),\"\")","v":""},{"$f":"IFERROR(MID($Y183,FIND(CHAR(160),SUBSTITUTE($Y183,\"{\",CHAR(160),HN$1)),FIND(CHAR(160),SUBSTITUTE($Y183,\"}\",CHAR(160),HN$1))-FIND(CHAR(160),SUBSTITUTE($Y183,\"{\",CHAR(160),HN$1))+1),\"\")","v":""},{"$f":"IFERROR(MID($Y183,FIND(CHAR(160),SUBSTITUTE($Y183,\"{\",CHAR(160),HO$1)),FIND(CHAR(160),SUBSTITUTE($Y183,\"}\",CHAR(160),HO$1))-FIND(CHAR(160),SUBSTITUTE($Y183,\"{\",CHAR(160),HO$1))+1),\"\")","v":""},{"$f":"IFERROR(MID($Y183,FIND(CHAR(160),SUBSTITUTE($Y183,\"{\",CHAR(160),HP$1)),FIND(CHAR(160),SUBSTITUTE($Y183,\"}\",CHAR(160),HP$1))-FIND(CHAR(160),SUBSTITUTE($Y183,\"{\",CHAR(160),HP$1))+1),\"\")","v":""},{"$f":"IFERROR(MID($Y183,FIND(CHAR(160),SUBSTITUTE($Y183,\"{\",CHAR(160),HQ$1)),FIND(CHAR(160),SUBSTITUTE($Y183,\"}\",CHAR(160),HQ$1))-FIND(CHAR(160),SUBSTITUTE($Y183,\"{\",CHAR(160),HQ$1))+1),\"\")","v":""},{"$f":"IFERROR(MID($Y183,FIND(CHAR(160),SUBSTITUTE($Y183,\"{\",CHAR(160),HR$1)),FIND(CHAR(160),SUBSTITUTE($Y183,\"}\",CHAR(160),HR$1))-FIND(CHAR(160),SUBSTITUTE($Y183,\"{\",CHAR(160),HR$1))+1),\"\")","v":""},{"$f":"IFERROR(MID($Y183,FIND(CHAR(160),SUBSTITUTE($Y183,\"{\",CHAR(160),HS$1)),FIND(CHAR(160),SUBSTITUTE($Y183,\"}\",CHAR(160),HS$1))-FIND(CHAR(160),SUBSTITUTE($Y183,\"{\",CHAR(160),HS$1))+1),\"\")","v":"{Measure:Quantity}"},{"$f":"IFERROR(MID($Y183,FIND(CHAR(160),SUBSTITUTE($Y183,\"{\",CHAR(160),HT$1)),FIND(CHAR(160),SUBSTITUTE($Y183,\"}\",CHAR(160),HT$1))-FIND(CHAR(160),SUBSTITUTE($Y183,\"{\",CHAR(160),HT$1))+1),\"\")","v":"{Package Size}"},{"$f":"IFERROR(MID($Z183,FIND(CHAR(160),SUBSTITUTE($Z183,\"{\",CHAR(160),HU$1)),FIND(CHAR(160),SUBSTITUTE($Z183,\"}\",CHAR(160),HU$1))-FIND(CHAR(160),SUBSTITUTE($Z183,\"{\",CHAR(160),HU$1))+1),\"\")","v":""},{"$f":"IFERROR(MID($Z183,FIND(CHAR(160),SUBSTITUTE($Z183,\"{\",CHAR(160),HV$1)),FIND(CHAR(160),SUBSTITUTE($Z183,\"}\",CHAR(160),HV$1))-FIND(CHAR(160),SUBSTITUTE($Z183,\"{\",CHAR(160),HV$1))+1),\"\")","v":""},{"$f":"IFERROR(MID($Z183,FIND(CHAR(160),SUBSTITUTE($Z183,\"{\",CHAR(160),HW$1)),FIND(CHAR(160),SUBSTITUTE($Z183,\"}\",CHAR(160),HW$1))-FIND(CHAR(160),SUBSTITUTE($Z183,\"{\",CHAR(160),HW$1))+1),\"\")","v":""},{"$f":"IFERROR(MID($Z183,FIND(CHAR(160),SUBSTITUTE($Z183,\"{\",CHAR(160),HX$1)),FIND(CHAR(160),SUBSTITUTE($Z183,\"}\",CHAR(160),HX$1))-FIND(CHAR(160),SUBSTITUTE($Z183,\"{\",CHAR(160),HX$1))+1),\"\")","v":""},{"$f":"IFERROR(MID($Z183,FIND(CHAR(160),SUBSTITUTE($Z183,\"{\",CHAR(160),HY$1)),FIND(CHAR(160),SUBSTITUTE($Z183,\"}\",CHAR(160),HY$1))-FIND(CHAR(160),SUBSTITUTE($Z183,\"{\",CHAR(160),HY$1))+1),\"\")","v":""},{"$f":"IFERROR(MID($Z183,FIND(CHAR(160),SUBSTITUTE($Z183,\"{\",CHAR(160),HZ$1)),FIND(CHAR(160),SUBSTITUTE($Z183,\"}\",CHAR(160),HZ$1))-FIND(CHAR(160),SUBSTITUTE($Z183,\"{\",CHAR(160),HZ$1))+1),\"\")","v":""},{"$f":"IFERROR(MID($Z183,FIND(CHAR(160),SUBSTITUTE($Z183,\"{\",CHAR(160),IA$1)),FIND(CHAR(160),SUBSTITUTE($Z183,\"}\",CHAR(160),IA$1))-FIND(CHAR(160),SUBSTITUTE($Z183,\"{\",CHAR(160),IA$1))+1),\"\")","v":""},{"$f":"IFERROR(MID($Z183,FIND(CHAR(160),SUBSTITUTE($Z183,\"{\",CHAR(160),IB$1)),FIND(CHAR(160),SUBSTITUTE($Z183,\"}\",CHAR(160),IB$1))-FIND(CHAR(160),SUBSTITUTE($Z183,\"{\",CHAR(160),IB$1))+1),\"\")","v":""},{"$f":"IFERROR(MID($Z183,FIND(CHAR(160),SUBSTITUTE($Z183,\"{\",CHAR(160),IC$1)),FIND(CHAR(160),SUBSTITUTE($Z183,\"}\",CHAR(160),IC$1))-FIND(CHAR(160),SUBSTITUTE($Z183,\"{\",CHAR(160),IC$1))+1),\"\")","v":"{Measure:Quantity}"},{"$f":"IFERROR(MID($Z183,FIND(CHAR(160),SUBSTITUTE($Z183,\"{\",CHAR(160),ID$1)),FIND(CHAR(160),SUBSTITUTE($Z183,\"}\",CHAR(160),ID$1))-FIND(CHAR(160),SUBSTITUTE($Z183,\"{\",CHAR(160),ID$1))+1),\"\")","v":"{Package Size}"},{"$f":"IFERROR(MID($AA183,FIND(CHAR(160),SUBSTITUTE($AA183,\"{\",CHAR(160),IE$1)),FIND(CHAR(160),SUBSTITUTE($AA183,\"}\",CHAR(160),IE$1))-FIND(CHAR(160),SUBSTITUTE($AA183,\"{\",CHAR(160),IE$1))+1),\"\")","v":""},{"$f":"IFERROR(MID($AA183,FIND(CHAR(160),SUBSTITUTE($AA183,\"{\",CHAR(160),IF$1)),FIND(CHAR(160),SUBSTITUTE($AA183,\"}\",CHAR(160),IF$1))-FIND(CHAR(160),SUBSTITUTE($AA183,\"{\",CHAR(160),IF$1))+1),\"\")","v":""},{"$f":"IFERROR(MID($AA183,FIND(CHAR(160),SUBSTITUTE($AA183,\"{\",CHAR(160),IG$1)),FIND(CHAR(160),SUBSTITUTE($AA183,\"}\",CHAR(160),IG$1))-FIND(CHAR(160),SUBSTITUTE($AA183,\"{\",CHAR(160),IG$1))+1),\"\")","v":""},{"$f":"IFERROR(MID($AA183,FIND(CHAR(160),SUBSTITUTE($AA183,\"{\",CHAR(160),IH$1)),FIND(CHAR(160),SUBSTITUTE($AA183,\"}\",CHAR(160),IH$1))-FIND(CHAR(160),SUBSTITUTE($AA183,\"{\",CHAR(160),IH$1))+1),\"\")","v":""},{"$f":"IFERROR(MID($AA183,FIND(CHAR(160),SUBSTITUTE($AA183,\"{\",CHAR(160),II$1)),FIND(CHAR(160),SUBSTITUTE($AA183,\"}\",CHAR(160),II$1))-FIND(CHAR(160),SUBSTITUTE($AA183,\"{\",CHAR(160),II$1))+1),\"\")","v":""},{"$f":"IFERROR(MID($AA183,FIND(CHAR(160),SUBSTITUTE($AA183,\"{\",CHAR(160),IJ$1)),FIND(CHAR(160),SUBSTITUTE($AA183,\"}\",CHAR(160),IJ$1))-FIND(CHAR(160),SUBSTITUTE($AA183,\"{\",CHAR(160),IJ$1))+1),\"\")","v":""},{"$f":"IFERROR(MID($AA183,FIND(CHAR(160),SUBSTITUTE($AA183,\"{\",CHAR(160),IK$1)),FIND(CHAR(160),SUBSTITUTE($AA183,\"}\",CHAR(160),IK$1))-FIND(CHAR(160),SUBSTITUTE($AA183,\"{\",CHAR(160),IK$1))+1),\"\")","v":""},{"$f":"IFERROR(MID($AA183,FIND(CHAR(160),SUBSTITUTE($AA183,\"{\",CHAR(160),IL$1)),FIND(CHAR(160),SUBSTITUTE($AA183,\"}\",CHAR(160),IL$1))-FIND(CHAR(160),SUBSTITUTE($AA183,\"{\",CHAR(160),IL$1))+1),\"\")","v":""},{"$f":"IFERROR(MID($AA183,FIND(CHAR(160),SUBSTITUTE($AA183,\"{\",CHAR(160),IM$1)),FIND(CHAR(160),SUBSTITUTE($AA183,\"}\",CHAR(160),IM$1))-FIND(CHAR(160),SUBSTITUTE($AA183,\"{\",CHAR(160),IM$1))+1),\"\")","v":"{Measure:Quantity}"},{"$f":"IFERROR(MID($AA183,FIND(CHAR(160),SUBSTITUTE($AA183,\"{\",CHAR(160),IN$1)),FIND(CHAR(160),SUBSTITUTE($AA183,\"}\",CHAR(160),IN$1))-FIND(CHAR(160),SUBSTITUTE($AA183,\"{\",CHAR(160),IN$1))+1),\"\")","v":"{Package Size}"},{"$f":"IFERROR(MID($AB183,FIND(CHAR(160),SUBSTITUTE($AB183,\"{\",CHAR(160),IO$1)),FIND(CHAR(160),SUBSTITUTE($AB183,\"}\",CHAR(160),IO$1))-FIND(CHAR(160),SUBSTITUTE($AB183,\"{\",CHAR(160),IO$1))+1),\"\")","v":""},{"$f":"IFERROR(MID($AB183,FIND(CHAR(160),SUBSTITUTE($AB183,\"{\",CHAR(160),IP$1)),FIND(CHAR(160),SUBSTITUTE($AB183,\"}\",CHAR(160),IP$1))-FIND(CHAR(160),SUBSTITUTE($AB183,\"{\",CHAR(160),IP$1))+1),\"\")","v":""},{"$f":"IFERROR(MID($AB183,FIND(CHAR(160),SUBSTITUTE($AB183,\"{\",CHAR(160),IQ$1)),FIND(CHAR(160),SUBSTITUTE($AB183,\"}\",CHAR(160),IQ$1))-FIND(CHAR(160),SUBSTITUTE($AB183,\"{\",CHAR(160),IQ$1))+1),\"\")","v":""},{"$f":"IFERROR(MID($AB183,FIND(CHAR(160),SUBSTITUTE($AB183,\"{\",CHAR(160),IR$1)),FIND(CHAR(160),SUBSTITUTE($AB183,\"}\",CHAR(160),IR$1))-FIND(CHAR(160),SUBSTITUTE($AB183,\"{\",CHAR(160),IR$1))+1),\"\")","v":""},{"$f":"IFERROR(MID($AB183,FIND(CHAR(160),SUBSTITUTE($AB183,\"{\",CHAR(160),IS$1)),FIND(CHAR(160),SUBSTITUTE($AB183,\"}\",CHAR(160),IS$1))-FIND(CHAR(160),SUBSTITUTE($AB183,\"{\",CHAR(160),IS$1))+1),\"\")","v":""},{"$f":"IFERROR(MID($AB183,FIND(CHAR(160),SUBSTITUTE($AB183,\"{\",CHAR(160),IT$1)),FIND(CHAR(160),SUBSTITUTE($AB183,\"}\",CHAR(160),IT$1))-FIND(CHAR(160),SUBSTITUTE($AB183,\"{\",CHAR(160),IT$1))+1),\"\")","v":""},{"$f":"IFERROR(MID($AB183,FIND(CHAR(160),SUBSTITUTE($AB183,\"{\",CHAR(160),IU$1)),FIND(CHAR(160),SUBSTITUTE($AB183,\"}\",CHAR(160),IU$1))-FIND(CHAR(160),SUBSTITUTE($AB183,\"{\",CHAR(160),IU$1))+1),\"\")","v":""},{"$f":"IFERROR(MID($AB183,FIND(CHAR(160),SUBSTITUTE($AB183,\"{\",CHAR(160),IV$1)),FIND(CHAR(160),SUBSTITUTE($AB183,\"}\",CHAR(160),IV$1))-FIND(CHAR(160),SUBSTITUTE($AB183,\"{\",CHAR(160),IV$1))+1),\"\")","v":""},{"$f":"IFERROR(MID($AB183,FIND(CHAR(160),SUBSTITUTE($AB183,\"{\",CHAR(160),IW$1)),FIND(CHAR(160),SUBSTITUTE($AB183,\"}\",CHAR(160),IW$1))-FIND(CHAR(160),SUBSTITUTE($AB183,\"{\",CHAR(160),IW$1))+1),\"\")","v":""},{"$f":"IFERROR(MID($AB183,FIND(CHAR(160),SUBSTITUTE($AB183,\"{\",CHAR(160),IX$1)),FIND(CHAR(160),SUBSTITUTE($AB183,\"}\",CHAR(160),IX$1))-FIND(CHAR(160),SUBSTITUTE($AB183,\"{\",CHAR(160),IX$1))+1),\"\")","v":""},null,{"$f":"10-COUNTIF(DU183:ED183,\"\")","v":3}]
["Distributor Lighting","Bay_Low_Type_BC<80 W - long life","S64BCLLL","2021-07-01","2022-06-30","Calculated","{Measure:Quantity}*{Package Size}*41.59",0,"Calculated","{Measure:Quantity}*{Rebate per Package}",0,"2021-07-01","2022-06-30","Calculated","{Measure:Quantity}*{Package Size}*909",null,null,"{Measure:Quantity}*{Package Size}*1.0747*0.234",null,null,"{Measure:Quantity}*{Package Size}*{Factor:WinterCF}*0.234","{Measure:Quantity}*{Package Size}*{Factor:SummerCF}*1.0747*0.234","{Measure:Quantity}*{Package Size}*10*-0.03","{Measure:Quantity}*{Package Size}*-0.045","{Measure:Quantity}*{Package Size}*-0.51","{Measure:Quantity}*{Package Size}*-0.023","{Measure:Quantity}*{Package Size}*-0.135",null,"2021-07-01","2022-06-30",16,0.372,0.64500000000000002,0.45,0.218,0.22900000000000001,0.10299999999999999,0.99,1,1,0.51,0,null,{"$f":"DU184","v":"{Measure:Quantity}"},1,{"$f":"DV184","v":"{Package Size}"},1,{"$f":"DW184","v":"{Rebate per Package}"},{"$f":"CW184*CO184","v":31.192500000000003},{"$f":"DX184","v":""},null,{"$f":"DY184","v":""},null,{"$f":"DZ184","v":""},null,{"$f":"EA184","v":""},null,{"$f":"EB184","v":""},null,{"$f":"EC184","v":""},null,{"$f":"ED184","v":""},null,{"$f":"AS184*AU184*909","v":909},0,0,{"$f":"AS184*AU184*1.0747*0.234","v":0.25147980000000003},0,0,{"$f":"AS184*AU184*AF184*0.234","v":8.7048E-2},{"$f":"AS184*AU184*AG184*1.0747*0.234","v":0.16220447100000002},{"$f":"AS184*AU184*10*-0.03","v":-0.3},{"$f":"AS184*AU184*-0.045","v":-4.4999999999999998E-2},{"$f":"AS184*AU184*-0.51","v":-0.51},{"$f":"AS184*AU184*-0.023","v":-2.3E-2},{"$f":"AS184*AU184*-0.135","v":-0.13500000000000001},0,null,"Res","Default DR",{"$f":"Benefits(BL184,BR184,BS184,BT184,BU184,BV184,BW184,BX184,BY184,BZ184,AE184,AH184,AI184,AJ184,AK184,AL184,AM184,AN184,AO184,AP184,CA184,CB184)","v":1254.2004121678997},660.23320550455821,-6.1261247961575744,-223.69134782988741,-11.740122324249688,-27.605131805165531,-37.237083383834175,0,0,{"$f":"SUMPRODUCT(CC184:CK184,--(CC184:CK184>0))","v":1914.4336176724578},{"$f":"-SUMPRODUCT(CC184:CK184,--(CC184:CK184<0))","v":306.39981013929435},null,{"$f":"AS184*AU184*41.59","v":41.59},null,null,{"$f":"CM184+CO184","v":347.98981013929438},{"$f":"IF(NetOrGross=\"Net\",(1-AO184+AP184),1)","v":1},{"$f":"(SUMPRODUCT(CC184:CJ184,--(CC184:CJ184>0))+CN184)*CS184/((-SUMPRODUCT(CC184:CJ184,--(CC184:CJ184<0))+MAX(CO184,CV184)+CP184+CQ184)*CS184+IF(FRIncentives=\"Yes\",CV184*(1-CS184),0))","v":5.5014071156455495},1,{"$f":"AS184*AW184","v":31.192500000000003},{"$f":"CW183","v":0.75},"Electric","y",null,{"$f":"IF(F184=\"Manual Entry\",\"Manual\",IF(G184=\"\",0,\"X=\"&SUBSTITUTE(SUBSTITUTE(SUBSTITUTE(SUBSTITUTE(SUBSTITUTE(SUBSTITUTE(SUBSTITUTE(SUBSTITUTE(SUBSTITUTE(SUBSTITUTE(SUBSTITUTE(SUBSTITUTE(G184,$ED184,$ED$2&ROW($ED184)),$EC184,$EC$2&ROW($EC184)),$EB184,$EB$2&ROW($EB184)),$EA184,$EA$2&ROW($EA184)),$DZ184,$DZ$2&ROW($DZ184)),$DY184,$DY$2&ROW($DY184)),$DX184,$DX$2&ROW($DX184)),$DW184,$DW$2&ROW($DW184)),$DV184,$DV$2&ROW($DV184)),$DU184,$DU$2&ROW($DU184)),$DT184,$DT$2&ROW($DT184)),$DS184,$DS$2&ROW($DS184))))","v":"X=AS184*AU184*41.59"},{"$f":"IF(I184=\"Manual Entry\",\"Manual\",IF(J184=\"\",0,\"X=\"&SUBSTITUTE(SUBSTITUTE(SUBSTITUTE(SUBSTITUTE(SUBSTITUTE(SUBSTITUTE(SUBSTITUTE(SUBSTITUTE(SUBSTITUTE(SUBSTITUTE(SUBSTITUTE(SUBSTITUTE(J184,$ED184,$ED$2&ROW($ED184)),$EC184,$EC$2&ROW($EC184)),$EB184,$EB$2&ROW($EB184)),$EA184,$EA$2&ROW($EA184)),$DZ184,$DZ$2&ROW($DZ184)),$DY184,$DY$2&ROW($DY184)),$DX184,$DX$2&ROW($DX184)),$DW184,$DW$2&ROW($DW184)),$DV184,$DV$2&ROW($DV184)),$DU184,$DU$2&ROW($DU184)),$DT184,$DT$2&ROW($DT184)),$DS184,$DS$2&ROW($DS184))))","v":"X=AS184*AW184"},{"$f":"IF(O184=\"\",0,\"X=\"&SUBSTITUTE(SUBSTITUTE(SUBSTITUTE(SUBSTITUTE(SUBSTITUTE(SUBSTITUTE(SUBSTITUTE(SUBSTITUTE(SUBSTITUTE(SUBSTITUTE(SUBSTITUTE(SUBSTITUTE(O184,$ED184,$ED$2&ROW($ED184)),$EC184,$EC$2&ROW($EC184)),$EB184,$EB$2&ROW($EB184)),$EA184,$EA$2&ROW($EA184)),$DZ184,$DZ$2&ROW($DZ184)),$DY184,$DY$2&ROW($DY184)),$DX184,$DX$2&ROW($DX184)),$DW184,$DW$2&ROW($DW184)),$DV184,$DV$2&ROW($DV184)),$DU184,$DU$2&ROW($DU184)),$DT184,$DT$2&ROW($DT184)),$DS184,$DS$2&ROW($DS184)))","v":"X=AS184*AU184*909"},{"$f":"IF(P184=\"\",0,\"X=\"&SUBSTITUTE(SUBSTITUTE(SUBSTITUTE(SUBSTITUTE(SUBSTITUTE(SUBSTITUTE(SUBSTITUTE(SUBSTITUTE(SUBSTITUTE(SUBSTITUTE(SUBSTITUTE(SUBSTITUTE(P184,$ED184,$ED$2&ROW($ED184)),$EC184,$EC$2&ROW($EC184)),$EB184,$EB$2&ROW($EB184)),$EA184,$EA$2&ROW($EA184)),$DZ184,$DZ$2&ROW($DZ184)),$DY184,$DY$2&ROW($DY184)),$DX184,$DX$2&ROW($DX184)),$DW184,$DW$2&ROW($DW184)),$DV184,$DV$2&ROW($DV184)),$DU184,$DU$2&ROW($DU184)),$DT184,$DT$2&ROW($DT184)),$DS184,$DS$2&ROW($DS184)))","v":0},{"$f":"IF(Q184=\"\",0,\"X=\"&SUBSTITUTE(SUBSTITUTE(SUBSTITUTE(SUBSTITUTE(SUBSTITUTE(SUBSTITUTE(SUBSTITUTE(SUBSTITUTE(SUBSTITUTE(SUBSTITUTE(SUBSTITUTE(SUBSTITUTE(Q184,$ED184,$ED$2&ROW($ED184)),$EC184,$EC$2&ROW($EC184)),$EB184,$EB$2&ROW($EB184)),$EA184,$EA$2&ROW($EA184)),$DZ184,$DZ$2&ROW($DZ184)),$DY184,$DY$2&ROW($DY184)),$DX184,$DX$2&ROW($DX184)),$DW184,$DW$2&ROW($DW184)),$DV184,$DV$2&ROW($DV184)),$DU184,$DU$2&ROW($DU184)),$DT184,$DT$2&ROW($DT184)),$DS184,$DS$2&ROW($DS184)))","v":0},{"$f":"IF(R184=\"\",0,\"X=\"&SUBSTITUTE(SUBSTITUTE(SUBSTITUTE(SUBSTITUTE(SUBSTITUTE(SUBSTITUTE(SUBSTITUTE(SUBSTITUTE(SUBSTITUTE(SUBSTITUTE(SUBSTITUTE(SUBSTITUTE(R184,$ED184,$ED$2&ROW($ED184)),$EC184,$EC$2&ROW($EC184)),$EB184,$EB$2&ROW($EB184)),$EA184,$EA$2&ROW($EA184)),$DZ184,$DZ$2&ROW($DZ184)),$DY184,$DY$2&ROW($DY184)),$DX184,$DX$2&ROW($DX184)),$DW184,$DW$2&ROW($DW184)),$DV184,$DV$2&ROW($DV184)),$DU184,$DU$2&ROW($DU184)),$DT184,$DT$2&ROW($DT184)),$DS184,$DS$2&ROW($DS184)))","v":"X=AS184*AU184*1.0747*0.234"},{"$f":"IF(S184=\"\",0,\"X=\"&SUBSTITUTE(SUBSTITUTE(SUBSTITUTE(SUBSTITUTE(SUBSTITUTE(SUBSTITUTE(SUBSTITUTE(SUBSTITUTE(SUBSTITUTE(SUBSTITUTE(SUBSTITUTE(SUBSTITUTE(S184,$ED184,$ED$2&ROW($ED184)),$EC184,$EC$2&ROW($EC184)),$EB184,$EB$2&ROW($EB184)),$EA184,$EA$2&ROW($EA184)),$DZ184,$DZ$2&ROW($DZ184)),$DY184,$DY$2&ROW($DY184)),$DX184,$DX$2&ROW($DX184)),$DW184,$DW$2&ROW($DW184)),$DV184,$DV$2&ROW($DV184)),$DU184,$DU$2&ROW($DU184)),$DT184,$DT$2&ROW($DT184)),$DS184,$DS$2&ROW($DS184)))","v":0},{"$f":"IF(T184=\"\",0,\"X=\"&SUBSTITUTE(SUBSTITUTE(SUBSTITUTE(SUBSTITUTE(SUBSTITUTE(SUBSTITUTE(SUBSTITUTE(SUBSTITUTE(SUBSTITUTE(SUBSTITUTE(SUBSTITUTE(SUBSTITUTE(T184,$ED184,$ED$2&ROW($ED184)),$EC184,$EC$2&ROW($EC184)),$EB184,$EB$2&ROW($EB184)),$EA184,$EA$2&ROW($EA184)),$DZ184,$DZ$2&ROW($DZ184)),$DY184,$DY$2&ROW($DY184)),$DX184,$DX$2&ROW($DX184)),$DW184,$DW$2&ROW($DW184)),$DV184,$DV$2&ROW($DV184)),$DU184,$DU$2&ROW($DU184)),$DT184,$DT$2&ROW($DT184)),$DS184,$DS$2&ROW($DS184)))","v":0},{"$f":"IF(U184=\"\",0,\"X=\"&SUBSTITUTE(SUBSTITUTE(SUBSTITUTE(SUBSTITUTE(SUBSTITUTE(SUBSTITUTE(SUBSTITUTE(SUBSTITUTE(SUBSTITUTE(SUBSTITUTE(SUBSTITUTE(SUBSTITUTE(U184,$ED184,$ED$2&ROW($ED184)),$EC184,$EC$2&ROW($EC184)),$EB184,$EB$2&ROW($EB184)),$EA184,$EA$2&ROW($EA184)),$DZ184,$DZ$2&ROW($DZ184)),$DY184,$DY$2&ROW($DY184)),$DX184,$DX$2&ROW($DX184)),$DW184,$DW$2&ROW($DW184)),$DV184,$DV$2&ROW($DV184)),$DU184,$DU$2&ROW($DU184)),$DT184,$DT$2&ROW($DT184)),$DS184,$DS$2&ROW($DS184)))","v":"X=AS184*AU184*AF184*0.234"},{"$f":"IF(V184=\"\",0,\"X=\"&SUBSTITUTE(SUBSTITUTE(SUBSTITUTE(SUBSTITUTE(SUBSTITUTE(SUBSTITUTE(SUBSTITUTE(SUBSTITUTE(SUBSTITUTE(SUBSTITUTE(SUBSTITUTE(SUBSTITUTE(V184,$ED184,$ED$2&ROW($ED184)),$EC184,$EC$2&ROW($EC184)),$EB184,$EB$2&ROW($EB184)),$EA184,$EA$2&ROW($EA184)),$DZ184,$DZ$2&ROW($DZ184)),$DY184,$DY$2&ROW($DY184)),$DX184,$DX$2&ROW($DX184)),$DW184,$DW$2&ROW($DW184)),$DV184,$DV$2&ROW($DV184)),$DU184,$DU$2&ROW($DU184)),$DT184,$DT$2&ROW($DT184)),$DS184,$DS$2&ROW($DS184)))","v":"X=AS184*AU184*AG184*1.0747*0.234"},{"$f":"IF(W184=\"\",0,\"X=\"&SUBSTITUTE(SUBSTITUTE(SUBSTITUTE(SUBSTITUTE(SUBSTITUTE(SUBSTITUTE(SUBSTITUTE(SUBSTITUTE(SUBSTITUTE(SUBSTITUTE(SUBSTITUTE(SUBSTITUTE(W184,$ED184,$ED$2&ROW($ED184)),$EC184,$EC$2&ROW($EC184)),$EB184,$EB$2&ROW($EB184)),$EA184,$EA$2&ROW($EA184)),$DZ184,$DZ$2&ROW($DZ184)),$DY184,$DY$2&ROW($DY184)),$DX184,$DX$2&ROW($DX184)),$DW184,$DW$2&ROW($DW184)),$DV184,$DV$2&ROW($DV184)),$DU184,$DU$2&ROW($DU184)),$DT184,$DT$2&ROW($DT184)),$DS184,$DS$2&ROW($DS184)))","v":"X=AS184*AU184*10*-0.03"},{"$f":"IF(X184=\"\",0,\"X=\"&SUBSTITUTE(SUBSTITUTE(SUBSTITUTE(SUBSTITUTE(SUBSTITUTE(SUBSTITUTE(SUBSTITUTE(SUBSTITUTE(SUBSTITUTE(SUBSTITUTE(SUBSTITUTE(SUBSTITUTE(X184,$ED184,$ED$2&ROW($ED184)),$EC184,$EC$2&ROW($EC184)),$EB184,$EB$2&ROW($EB184)),$EA184,$EA$2&ROW($EA184)),$DZ184,$DZ$2&ROW($DZ184)),$DY184,$DY$2&ROW($DY184)),$DX184,$DX$2&ROW($DX184)),$DW184,$DW$2&ROW($DW184)),$DV184,$DV$2&ROW($DV184)),$DU184,$DU$2&ROW($DU184)),$DT184,$DT$2&ROW($DT184)),$DS184,$DS$2&ROW($DS184)))","v":"X=AS184*AU184*-0.045"},{"$f":"IF(Y184=\"\",0,\"X=\"&SUBSTITUTE(SUBSTITUTE(SUBSTITUTE(SUBSTITUTE(SUBSTITUTE(SUBSTITUTE(SUBSTITUTE(SUBSTITUTE(SUBSTITUTE(SUBSTITUTE(SUBSTITUTE(SUBSTITUTE(Y184,$ED184,$ED$2&ROW($ED184)),$EC184,$EC$2&ROW($EC184)),$EB184,$EB$2&ROW($EB184)),$EA184,$EA$2&ROW($EA184)),$DZ184,$DZ$2&ROW($DZ184)),$DY184,$DY$2&ROW($DY184)),$DX184,$DX$2&ROW($DX184)),$DW184,$DW$2&ROW($DW184)),$DV184,$DV$2&ROW($DV184)),$DU184,$DU$2&ROW($DU184)),$DT184,$DT$2&ROW($DT184)),$DS184,$DS$2&ROW($DS184)))","v":"X=AS184*AU184*-0.51"},{"$f":"IF(Z184=\"\",0,\"X=\"&SUBSTITUTE(SUBSTITUTE(SUBSTITUTE(SUBSTITUTE(SUBSTITUTE(SUBSTITUTE(SUBSTITUTE(SUBSTITUTE(SUBSTITUTE(SUBSTITUTE(SUBSTITUTE(SUBSTITUTE(Z184,$ED184,$ED$2&ROW($ED184)),$EC184,$EC$2&ROW($EC184)),$EB184,$EB$2&ROW($EB184)),$EA184,$EA$2&ROW($EA184)),$DZ184,$DZ$2&ROW($DZ184)),$DY184,$DY$2&ROW($DY184)),$DX184,$DX$2&ROW($DX184)),$DW184,$DW$2&ROW($DW184)),$DV184,$DV$2&ROW($DV184)),$DU184,$DU$2&ROW($DU184)),$DT184,$DT$2&ROW($DT184)),$DS184,$DS$2&ROW($DS184)))","v":"X=AS184*AU184*-0.023"},{"$f":"IF(AA184=\"\",0,\"X=\"&SUBSTITUTE(SUBSTITUTE(SUBSTITUTE(SUBSTITUTE(SUBSTITUTE(SUBSTITUTE(SUBSTITUTE(SUBSTITUTE(SUBSTITUTE(SUBSTITUTE(SUBSTITUTE(SUBSTITUTE(AA184,$ED184,$ED$2&ROW($ED184)),$EC184,$EC$2&ROW($EC184)),$EB184,$EB$2&ROW($EB184)),$EA184,$EA$2&ROW($EA184)),$DZ184,$DZ$2&ROW($DZ184)),$DY184,$DY$2&ROW($DY184)),$DX184,$DX$2&ROW($DX184)),$DW184,$DW$2&ROW($DW184)),$DV184,$DV$2&ROW($DV184)),$DU184,$DU$2&ROW($DU184)),$DT184,$DT$2&ROW($DT184)),$DS184,$DS$2&ROW($DS184)))","v":"X=AS184*AU184*-0.135"},{"$f":"IF(AB184=\"\",0,\"X=\"&SUBSTITUTE(SUBSTITUTE(SUBSTITUTE(SUBSTITUTE(SUBSTITUTE(SUBSTITUTE(SUBSTITUTE(SUBSTITUTE(SUBSTITUTE(SUBSTITUTE(SUBSTITUTE(SUBSTITUTE(AB184,$ED184,$ED$2&ROW($ED184)),$EC184,$EC$2&ROW($EC184)),$EB184,$EB$2&ROW($EB184)),$EA184,$EA$2&ROW($EA184)),$DZ184,$DZ$2&ROW($DZ184)),$DY184,$DY$2&ROW($DY184)),$DX184,$DX$2&ROW($DX184)),$DW184,$DW$2&ROW($DW184)),$DV184,$DV$2&ROW($DV184)),$DU184,$DU$2&ROW($DU184)),$DT184,$DT$2&ROW($DT184)),$DS184,$DS$2&ROW($DS184)))","v":0},null,null,"{Factor:WinterCF}","{Factor:SummerCF}",{"$f":"IFERROR(INDEX($EG184:$IV184,MATCH(0,COUNTIF($DR184:DT184,$EG184:$IV184),0)),\"\")","v":"{Measure:Quantity}"},{"$f":"IFERROR(INDEX($EG184:$IV184,MATCH(0,COUNTIF($DR184:DU184,$EG184:$IV184),0)),\"\")","v":"{Package Size}"},{"$f":"IFERROR(INDEX($EG184:$IV184,MATCH(0,COUNTIF($DR184:DV184,$EG184:$IV184),0)),\"\")","v":"{Rebate per Package}"},{"$f":"IFERROR(INDEX($EG184:$IV184,MATCH(0,COUNTIF($DR184:DW184,$EG184:$IV184),0)),\"\")","v":""},{"$f":"IFERROR(INDEX($EG184:$IV184,MATCH(0,COUNTIF($DR184:DX184,$EG184:$IV184),0)),\"\")","v":""},{"$f":"IFERROR(INDEX($EG184:$IV184,MATCH(0,COUNTIF($DR184:DY184,$EG184:$IV184),0)),\"\")","v":""},{"$f":"IFERROR(INDEX($EG184:$IV184,MATCH(0,COUNTIF($DR184:DZ184,$EG184:$IV184),0)),\"\")","v":""},{"$f":"IFERROR(INDEX($EG184:$IV184,MATCH(0,COUNTIF($DR184:EA184,$EG184:$IV184),0)),\"\")","v":""},{"$f":"IFERROR(INDEX($EG184:$IV184,MATCH(0,COUNTIF($DR184:EB184,$EG184:$IV184),0)),\"\")","v":""},{"$f":"IFERROR(INDEX($EG184:$IV184,MATCH(0,COUNTIF($DR184:EC184,$EG184:$IV184),0)),\"\")","v":""},null,null,{"$f":"IFERROR(MID($G184,FIND(CHAR(160),SUBSTITUTE($G184,\"{\",CHAR(160),EG$1)),FIND(CHAR(160),SUBSTITUTE($G184,\"}\",CHAR(160),EG$1))-FIND(CHAR(160),SUBSTITUTE($G184,\"{\",CHAR(160),EG$1))+1),\"\")","v":"{Measure:Quantity}"},{"$f":"IFERROR(MID($G184,FIND(CHAR(160),SUBSTITUTE($G184,\"{\",CHAR(160),EH$1)),FIND(CHAR(160),SUBSTITUTE($G184,\"}\",CHAR(160),EH$1))-FIND(CHAR(160),SUBSTITUTE($G184,\"{\",CHAR(160),EH$1))+1),\"\")","v":"{Package Size}"},{"$f":"IFERROR(MID($G184,FIND(CHAR(160),SUBSTITUTE($G184,\"{\",CHAR(160),EI$1)),FIND(CHAR(160),SUBSTITUTE($G184,\"}\",CHAR(160),EI$1))-FIND(CHAR(160),SUBSTITUTE($G184,\"{\",CHAR(160),EI$1))+1),\"\")","v":""},{"$f":"IFERROR(MID($G184,FIND(CHAR(160),SUBSTITUTE($G184,\"{\",CHAR(160),EJ$1)),FIND(CHAR(160),SUBSTITUTE($G184,\"}\",CHAR(160),EJ$1))-FIND(CHAR(160),SUBSTITUTE($G184,\"{\",CHAR(160),EJ$1))+1),\"\")","v":""},{"$f":"IFERROR(MID($G184,FIND(CHAR(160),SUBSTITUTE($G184,\"{\",CHAR(160),EK$1)),FIND(CHAR(160),SUBSTITUTE($G184,\"}\",CHAR(160),EK$1))-FIND(CHAR(160),SUBSTITUTE($G184,\"{\",CHAR(160),EK$1))+1),\"\")","v":""},{"$f":"IFERROR(MID($G184,FIND(CHAR(160),SUBSTITUTE($G184,\"{\",CHAR(160),EL$1)),FIND(CHAR(160),SUBSTITUTE($G184,\"}\",CHAR(160),EL$1))-FIND(CHAR(160),SUBSTITUTE($G184,\"{\",CHAR(160),EL$1))+1),\"\")","v":""},{"$f":"IFERROR(MID($G184,FIND(CHAR(160),SUBSTITUTE($G184,\"{\",CHAR(160),EM$1)),FIND(CHAR(160),SUBSTITUTE($G184,\"}\",CHAR(160),EM$1))-FIND(CHAR(160),SUBSTITUTE($G184,\"{\",CHAR(160),EM$1))+1),\"\")","v":""},{"$f":"IFERROR(MID($G184,FIND(CHAR(160),SUBSTITUTE($G184,\"{\",CHAR(160),EN$1)),FIND(CHAR(160),SUBSTITUTE($G184,\"}\",CHAR(160),EN$1))-FIND(CHAR(160),SUBSTITUTE($G184,\"{\",CHAR(160),EN$1))+1),\"\")","v":""},{"$f":"IFERROR(MID($G184,FIND(CHAR(160),SUBSTITUTE($G184,\"{\",CHAR(160),EO$1)),FIND(CHAR(160),SUBSTITUTE($G184,\"}\",CHAR(160),EO$1))-FIND(CHAR(160),SUBSTITUTE($G184,\"{\",CHAR(160),EO$1))+1),\"\")","v":""},{"$f":"IFERROR(MID($G184,FIND(CHAR(160),SUBSTITUTE($G184,\"{\",CHAR(160),EP$1)),FIND(CHAR(160),SUBSTITUTE($G184,\"}\",CHAR(160),EP$1))-FIND(CHAR(160),SUBSTITUTE($G184,\"{\",CHAR(160),EP$1))+1),\"\")","v":""},{"$f":"IFERROR(MID($J184,FIND(CHAR(160),SUBSTITUTE($J184,\"{\",CHAR(160),EQ$1)),FIND(CHAR(160),SUBSTITUTE($J184,\"}\",CHAR(160),EQ$1))-FIND(CHAR(160),SUBSTITUTE($J184,\"{\",CHAR(160),EQ$1))+1),\"\")","v":"{Measure:Quantity}"},{"$f":"IFERROR(MID($J184,FIND(CHAR(160),SUBSTITUTE($J184,\"{\",CHAR(160),ER$1)),FIND(CHAR(160),SUBSTITUTE($J184,\"}\",CHAR(160),ER$1))-FIND(CHAR(160),SUBSTITUTE($J184,\"{\",CHAR(160),ER$1))+1),\"\")","v":"{Rebate per Package}"},{"$f":"IFERROR(MID($J184,FIND(CHAR(160),SUBSTITUTE($J184,\"{\",CHAR(160),ES$1)),FIND(CHAR(160),SUBSTITUTE($J184,\"}\",CHAR(160),ES$1))-FIND(CHAR(160),SUBSTITUTE($J184,\"{\",CHAR(160),ES$1))+1),\"\")","v":""},{"$f":"IFERROR(MID($J184,FIND(CHAR(160),SUBSTITUTE($J184,\"{\",CHAR(160),ET$1)),FIND(CHAR(160),SUBSTITUTE($J184,\"}\",CHAR(160),ET$1))-FIND(CHAR(160),SUBSTITUTE($J184,\"{\",CHAR(160),ET$1))+1),\"\")","v":""},{"$f":"IFERROR(MID($J184,FIND(CHAR(160),SUBSTITUTE($J184,\"{\",CHAR(160),EU$1)),FIND(CHAR(160),SUBSTITUTE($J184,\"}\",CHAR(160),EU$1))-FIND(CHAR(160),SUBSTITUTE($J184,\"{\",CHAR(160),EU$1))+1),\"\")","v":""},{"$f":"IFERROR(MID($J184,FIND(CHAR(160),SUBSTITUTE($J184,\"{\",CHAR(160),EV$1)),FIND(CHAR(160),SUBSTITUTE($J184,\"}\",CHAR(160),EV$1))-FIND(CHAR(160),SUBSTITUTE($J184,\"{\",CHAR(160),EV$1))+1),\"\")","v":""},{"$f":"IFERROR(MID($J184,FIND(CHAR(160),SUBSTITUTE($J184,\"{\",CHAR(160),EW$1)),FIND(CHAR(160),SUBSTITUTE($J184,\"}\",CHAR(160),EW$1))-FIND(CHAR(160),SUBSTITUTE($J184,\"{\",CHAR(160),EW$1))+1),\"\")","v":""},{"$f":"IFERROR(MID($J184,FIND(CHAR(160),SUBSTITUTE($J184,\"{\",CHAR(160),EX$1)),FIND(CHAR(160),SUBSTITUTE($J184,\"}\",CHAR(160),EX$1))-FIND(CHAR(160),SUBSTITUTE($J184,\"{\",CHAR(160),EX$1))+1),\"\")","v":""},{"$f":"IFERROR(MID($J184,FIND(CHAR(160),SUBSTITUTE($J184,\"{\",CHAR(160),EY$1)),FIND(CHAR(160),SUBSTITUTE($J184,\"}\",CHAR(160),EY$1))-FIND(CHAR(160),SUBSTITUTE($J184,\"{\",CHAR(160),EY$1))+1),\"\")","v":""},{"$f":"IFERROR(MID($J184,FIND(CHAR(160),SUBSTITUTE($J184,\"{\",CHAR(160),EZ$1)),FIND(CHAR(160),SUBSTITUTE($J184,\"}\",CHAR(160),EZ$1))-FIND(CHAR(160),SUBSTITUTE($J184,\"{\",CHAR(160),EZ$1))+1),\"\")","v":""},{"$f":"IFERROR(MID($J184,FIND(CHAR(160),SUBSTITUTE($J184,\"{\",CHAR(160),FA$1)),FIND(CHAR(160),SUBSTITUTE($J184,\"}\",CHAR(160),FA$1))-FIND(CHAR(160),SUBSTITUTE($J184,\"{\",CHAR(160),FA$1))+1),\"\")","v":"{Measure:Quantity}"},{"$f":"IFERROR(MID($J184,FIND(CHAR(160),SUBSTITUTE($J184,\"{\",CHAR(160),FB$1)),FIND(CHAR(160),SUBSTITUTE($J184,\"}\",CHAR(160),FB$1))-FIND(CHAR(160),SUBSTITUTE($J184,\"{\",CHAR(160),FB$1))+1),\"\")","v":"{Rebate per Package}"},{"$f":"IFERROR(MID($O184,FIND(CHAR(160),SUBSTITUTE($O184,\"{\",CHAR(160),FC$1)),FIND(CHAR(160),SUBSTITUTE($O184,\"}\",CHAR(160),FC$1))-FIND(CHAR(160),SUBSTITUTE($O184,\"{\",CHAR(160),FC$1))+1),\"\")","v":""},{"$f":"IFERROR(MID($O184,FIND(CHAR(160),SUBSTITUTE($O184,\"{\",CHAR(160),FD$1)),FIND(CHAR(160),SUBSTITUTE($O184,\"}\",CHAR(160),FD$1))-FIND(CHAR(160),SUBSTITUTE($O184,\"{\",CHAR(160),FD$1))+1),\"\")","v":""},{"$f":"IFERROR(MID($O184,FIND(CHAR(160),SUBSTITUTE($O184,\"{\",CHAR(160),FE$1)),FIND(CHAR(160),SUBSTITUTE($O184,\"}\",CHAR(160),FE$1))-FIND(CHAR(160),SUBSTITUTE($O184,\"{\",CHAR(160),FE$1))+1),\"\")","v":""},{"$f":"IFERROR(MID($O184,FIND(CHAR(160),SUBSTITUTE($O184,\"{\",CHAR(160),FF$1)),FIND(CHAR(160),SUBSTITUTE($O184,\"}\",CHAR(160),FF$1))-FIND(CHAR(160),SUBSTITUTE($O184,\"{\",CHAR(160),FF$1))+1),\"\")","v":""},{"$f":"IFERROR(MID($O184,FIND(CHAR(160),SUBSTITUTE($O184,\"{\",CHAR(160),FG$1)),FIND(CHAR(160),SUBSTITUTE($O184,\"}\",CHAR(160),FG$1))-FIND(CHAR(160),SUBSTITUTE($O184,\"{\",CHAR(160),FG$1))+1),\"\")","v":""},{"$f":"IFERROR(MID($O184,FIND(CHAR(160),SUBSTITUTE($O184,\"{\",CHAR(160),FH$1)),FIND(CHAR(160),SUBSTITUTE($O184,\"}\",CHAR(160),FH$1))-FIND(CHAR(160),SUBSTITUTE($O184,\"{\",CHAR(160),FH$1))+1),\"\")","v":""},{"$f":"IFERROR(MID($O184,FIND(CHAR(160),SUBSTITUTE($O184,\"{\",CHAR(160),FI$1)),FIND(CHAR(160),SUBSTITUTE($O184,\"}\",CHAR(160),FI$1))-FIND(CHAR(160),SUBSTITUTE($O184,\"{\",CHAR(160),FI$1))+1),\"\")","v":""},{"$f":"IFERROR(MID($O184,FIND(CHAR(160),SUBSTITUTE($O184,\"{\",CHAR(160),FJ$1)),FIND(CHAR(160),SUBSTITUTE($O184,\"}\",CHAR(160),FJ$1))-FIND(CHAR(160),SUBSTITUTE($O184,\"{\",CHAR(160),FJ$1))+1),\"\")","v":""},{"$f":"IFERROR(MID($O184,FIND(CHAR(160),SUBSTITUTE($O184,\"{\",CHAR(160),FK$1)),FIND(CHAR(160),SUBSTITUTE($O184,\"}\",CHAR(160),FK$1))-FIND(CHAR(160),SUBSTITUTE($O184,\"{\",CHAR(160),FK$1))+1),\"\")","v":"{Measure:Quantity}"},{"$f":"IFERROR(MID($O184,FIND(CHAR(160),SUBSTITUTE($O184,\"{\",CHAR(160),FL$1)),FIND(CHAR(160),SUBSTITUTE($O184,\"}\",CHAR(160),FL$1))-FIND(CHAR(160),SUBSTITUTE($O184,\"{\",CHAR(160),FL$1))+1),\"\")","v":"{Package Size}"},{"$f":"IFERROR(MID($R184,FIND(CHAR(160),SUBSTITUTE($R184,\"{\",CHAR(160),FM$1)),FIND(CHAR(160),SUBSTITUTE($R184,\"}\",CHAR(160),FM$1))-FIND(CHAR(160),SUBSTITUTE($R184,\"{\",CHAR(160),FM$1))+1),\"\")","v":""},{"$f":"IFERROR(MID($R184,FIND(CHAR(160),SUBSTITUTE($R184,\"{\",CHAR(160),FN$1)),FIND(CHAR(160),SUBSTITUTE($R184,\"}\",CHAR(160),FN$1))-FIND(CHAR(160),SUBSTITUTE($R184,\"{\",CHAR(160),FN$1))+1),\"\")","v":""},{"$f":"IFERROR(MID($R184,FIND(CHAR(160),SUBSTITUTE($R184,\"{\",CHAR(160),FO$1)),FIND(CHAR(160),SUBSTITUTE($R184,\"}\",CHAR(160),FO$1))-FIND(CHAR(160),SUBSTITUTE($R184,\"{\",CHAR(160),FO$1))+1),\"\")","v":""},{"$f":"IFERROR(MID($R184,FIND(CHAR(160),SUBSTITUTE($R184,\"{\",CHAR(160),FP$1)),FIND(CHAR(160),SUBSTITUTE($R184,\"}\",CHAR(160),FP$1))-FIND(CHAR(160),SUBSTITUTE($R184,\"{\",CHAR(160),FP$1))+1),\"\")","v":""},{"$f":"IFERROR(MID($R184,FIND(CHAR(160),SUBSTITUTE($R184,\"{\",CHAR(160),FQ$1)),FIND(CHAR(160),SUBSTITUTE($R184,\"}\",CHAR(160),FQ$1))-FIND(CHAR(160),SUBSTITUTE($R184,\"{\",CHAR(160),FQ$1))+1),\"\")","v":""},{"$f":"IFERROR(MID($R184,FIND(CHAR(160),SUBSTITUTE($R184,\"{\",CHAR(160),FR$1)),FIND(CHAR(160),SUBSTITUTE($R184,\"}\",CHAR(160),FR$1))-FIND(CHAR(160),SUBSTITUTE($R184,\"{\",CHAR(160),FR$1))+1),\"\")","v":""},{"$f":"IFERROR(MID($R184,FIND(CHAR(160),SUBSTITUTE($R184,\"{\",CHAR(160),FS$1)),FIND(CHAR(160),SUBSTITUTE($R184,\"}\",CHAR(160),FS$1))-FIND(CHAR(160),SUBSTITUTE($R184,\"{\",CHAR(160),FS$1))+1),\"\")","v":""},{"$f":"IFERROR(MID($R184,FIND(CHAR(160),SUBSTITUTE($R184,\"{\",CHAR(160),FT$1)),FIND(CHAR(160),SUBSTITUTE($R184,\"}\",CHAR(160),FT$1))-FIND(CHAR(160),SUBSTITUTE($R184,\"{\",CHAR(160),FT$1))+1),\"\")","v":""},{"$f":"IFERROR(MID($R184,FIND(CHAR(160),SUBSTITUTE($R184,\"{\",CHAR(160),FU$1)),FIND(CHAR(160),SUBSTITUTE($R184,\"}\",CHAR(160),FU$1))-FIND(CHAR(160),SUBSTITUTE($R184,\"{\",CHAR(160),FU$1))+1),\"\")","v":"{Measure:Quantity}"},{"$f":"IFERROR(MID($R184,FIND(CHAR(160),SUBSTITUTE($R184,\"{\",CHAR(160),FV$1)),FIND(CHAR(160),SUBSTITUTE($R184,\"}\",CHAR(160),FV$1))-FIND(CHAR(160),SUBSTITUTE($R184,\"{\",CHAR(160),FV$1))+1),\"\")","v":"{Package Size}"},{"$f":"IFERROR(MID($U184,FIND(CHAR(160),SUBSTITUTE($U184,\"{\",CHAR(160),FW$1)),FIND(CHAR(160),SUBSTITUTE($U184,\"}\",CHAR(160),FW$1))-FIND(CHAR(160),SUBSTITUTE($U184,\"{\",CHAR(160),FW$1))+1),\"\")","v":"{Factor:WinterCF}"},{"$f":"IFERROR(MID($U184,FIND(CHAR(160),SUBSTITUTE($U184,\"{\",CHAR(160),FX$1)),FIND(CHAR(160),SUBSTITUTE($U184,\"}\",CHAR(160),FX$1))-FIND(CHAR(160),SUBSTITUTE($U184,\"{\",CHAR(160),FX$1))+1),\"\")","v":""},{"$f":"IFERROR(MID($U184,FIND(CHAR(160),SUBSTITUTE($U184,\"{\",CHAR(160),FY$1)),FIND(CHAR(160),SUBSTITUTE($U184,\"}\",CHAR(160),FY$1))-FIND(CHAR(160),SUBSTITUTE($U184,\"{\",CHAR(160),FY$1))+1),\"\")","v":""},{"$f":"IFERROR(MID($U184,FIND(CHAR(160),SUBSTITUTE($U184,\"{\",CHAR(160),FZ$1)),FIND(CHAR(160),SUBSTITUTE($U184,\"}\",CHAR(160),FZ$1))-FIND(CHAR(160),SUBSTITUTE($U184,\"{\",CHAR(160),FZ$1))+1),\"\")","v":""},{"$f":"IFERROR(MID($U184,FIND(CHAR(160),SUBSTITUTE($U184,\"{\",CHAR(160),GA$1)),FIND(CHAR(160),SUBSTITUTE($U184,\"}\",CHAR(160),GA$1))-FIND(CHAR(160),SUBSTITUTE($U184,\"{\",CHAR(160),GA$1))+1),\"\")","v":""},{"$f":"IFERROR(MID($U184,FIND(CHAR(160),SUBSTITUTE($U184,\"{\",CHAR(160),GB$1)),FIND(CHAR(160),SUBSTITUTE($U184,\"}\",CHAR(160),GB$1))-FIND(CHAR(160),SUBSTITUTE($U184,\"{\",CHAR(160),GB$1))+1),\"\")","v":""},{"$f":"IFERROR(MID($U184,FIND(CHAR(160),SUBSTITUTE($U184,\"{\",CHAR(160),GC$1)),FIND(CHAR(160),SUBSTITUTE($U184,\"}\",CHAR(160),GC$1))-FIND(CHAR(160),SUBSTITUTE($U184,\"{\",CHAR(160),GC$1))+1),\"\")","v":""},{"$f":"IFERROR(MID($U184,FIND(CHAR(160),SUBSTITUTE($U184,\"{\",CHAR(160),GD$1)),FIND(CHAR(160),SUBSTITUTE($U184,\"}\",CHAR(160),GD$1))-FIND(CHAR(160),SUBSTITUTE($U184,\"{\",CHAR(160),GD$1))+1),\"\")","v":""},{"$f":"IFERROR(MID($U184,FIND(CHAR(160),SUBSTITUTE($U184,\"{\",CHAR(160),GE$1)),FIND(CHAR(160),SUBSTITUTE($U184,\"}\",CHAR(160),GE$1))-FIND(CHAR(160),SUBSTITUTE($U184,\"{\",CHAR(160),GE$1))+1),\"\")","v":"{Measure:Quantity}"},{"$f":"IFERROR(MID($U184,FIND(CHAR(160),SUBSTITUTE($U184,\"{\",CHAR(160),GF$1)),FIND(CHAR(160),SUBSTITUTE($U184,\"}\",CHAR(160),GF$1))-FIND(CHAR(160),SUBSTITUTE($U184,\"{\",CHAR(160),GF$1))+1),\"\")","v":"{Package Size}"},{"$f":"IFERROR(MID($V184,FIND(CHAR(160),SUBSTITUTE($V184,\"{\",CHAR(160),GG$1)),FIND(CHAR(160),SUBSTITUTE($V184,\"}\",CHAR(160),GG$1))-FIND(CHAR(160),SUBSTITUTE($V184,\"{\",CHAR(160),GG$1))+1),\"\")","v":"{Factor:SummerCF}"},{"$f":"IFERROR(MID($V184,FIND(CHAR(160),SUBSTITUTE($V184,\"{\",CHAR(160),GH$1)),FIND(CHAR(160),SUBSTITUTE($V184,\"}\",CHAR(160),GH$1))-FIND(CHAR(160),SUBSTITUTE($V184,\"{\",CHAR(160),GH$1))+1),\"\")","v":""},{"$f":"IFERROR(MID($V184,FIND(CHAR(160),SUBSTITUTE($V184,\"{\",CHAR(160),GI$1)),FIND(CHAR(160),SUBSTITUTE($V184,\"}\",CHAR(160),GI$1))-FIND(CHAR(160),SUBSTITUTE($V184,\"{\",CHAR(160),GI$1))+1),\"\")","v":""},{"$f":"IFERROR(MID($V184,FIND(CHAR(160),SUBSTITUTE($V184,\"{\",CHAR(160),GJ$1)),FIND(CHAR(160),SUBSTITUTE($V184,\"}\",CHAR(160),GJ$1))-FIND(CHAR(160),SUBSTITUTE($V184,\"{\",CHAR(160),GJ$1))+1),\"\")","v":""},{"$f":"IFERROR(MID($V184,FIND(CHAR(160),SUBSTITUTE($V184,\"{\",CHAR(160),GK$1)),FIND(CHAR(160),SUBSTITUTE($V184,\"}\",CHAR(160),GK$1))-FIND(CHAR(160),SUBSTITUTE($V184,\"{\",CHAR(160),GK$1))+1),\"\")","v":""},{"$f":"IFERROR(MID($V184,FIND(CHAR(160),SUBSTITUTE($V184,\"{\",CHAR(160),GL$1)),FIND(CHAR(160),SUBSTITUTE($V184,\"}\",CHAR(160),GL$1))-FIND(CHAR(160),SUBSTITUTE($V184,\"{\",CHAR(160),GL$1))+1),\"\")","v":""},{"$f":"IFERROR(MID($V184,FIND(CHAR(160),SUBSTITUTE($V184,\"{\",CHAR(160),GM$1)),FIND(CHAR(160),SUBSTITUTE($V184,\"}\",CHAR(160),GM$1))-FIND(CHAR(160),SUBSTITUTE($V184,\"{\",CHAR(160),GM$1))+1),\"\")","v":""},{"$f":"IFERROR(MID($V184,FIND(CHAR(160),SUBSTITUTE($V184,\"{\",CHAR(160),GN$1)),FIND(CHAR(160),SUBSTITUTE($V184,\"}\",CHAR(160),GN$1))-FIND(CHAR(160),SUBSTITUTE($V184,\"{\",CHAR(160),GN$1))+1),\"\")","v":""},{"$f":"IFERROR(MID($V184,FIND(CHAR(160),SUBSTITUTE($V184,\"{\",CHAR(160),GO$1)),FIND(CHAR(160),SUBSTITUTE($V184,\"}\",CHAR(160),GO$1))-FIND(CHAR(160),SUBSTITUTE($V184,\"{\",CHAR(160),GO$1))+1),\"\")","v":"{Measure:Quantity}"},{"$f":"IFERROR(MID($V184,FIND(CHAR(160),SUBSTITUTE($V184,\"{\",CHAR(160),GP$1)),FIND(CHAR(160),SUBSTITUTE($V184,\"}\",CHAR(160),GP$1))-FIND(CHAR(160),SUBSTITUTE($V184,\"{\",CHAR(160),GP$1))+1),\"\")","v":"{Package Size}"},{"$f":"IFERROR(MID($W184,FIND(CHAR(160),SUBSTITUTE($W184,\"{\",CHAR(160),GQ$1)),FIND(CHAR(160),SUBSTITUTE($W184,\"}\",CHAR(160),GQ$1))-FIND(CHAR(160),SUBSTITUTE($W184,\"{\",CHAR(160),GQ$1))+1),\"\")","v":""},{"$f":"IFERROR(MID($W184,FIND(CHAR(160),SUBSTITUTE($W184,\"{\",CHAR(160),GR$1)),FIND(CHAR(160),SUBSTITUTE($W184,\"}\",CHAR(160),GR$1))-FIND(CHAR(160),SUBSTITUTE($W184,\"{\",CHAR(160),GR$1))+1),\"\")","v":""},{"$f":"IFERROR(MID($W184,FIND(CHAR(160),SUBSTITUTE($W184,\"{\",CHAR(160),GS$1)),FIND(CHAR(160),SUBSTITUTE($W184,\"}\",CHAR(160),GS$1))-FIND(CHAR(160),SUBSTITUTE($W184,\"{\",CHAR(160),GS$1))+1),\"\")","v":""},{"$f":"IFERROR(MID($W184,FIND(CHAR(160),SUBSTITUTE($W184,\"{\",CHAR(160),GT$1)),FIND(CHAR(160),SUBSTITUTE($W184,\"}\",CHAR(160),GT$1))-FIND(CHAR(160),SUBSTITUTE($W184,\"{\",CHAR(160),GT$1))+1),\"\")","v":""},{"$f":"IFERROR(MID($W184,FIND(CHAR(160),SUBSTITUTE($W184,\"{\",CHAR(160),GU$1)),FIND(CHAR(160),SUBSTITUTE($W184,\"}\",CHAR(160),GU$1))-FIND(CHAR(160),SUBSTITUTE($W184,\"{\",CHAR(160),GU$1))+1),\"\")","v":""},{"$f":"IFERROR(MID($W184,FIND(CHAR(160),SUBSTITUTE($W184,\"{\",CHAR(160),GV$1)),FIND(CHAR(160),SUBSTITUTE($W184,\"}\",CHAR(160),GV$1))-FIND(CHAR(160),SUBSTITUTE($W184,\"{\",CHAR(160),GV$1))+1),\"\")","v":""},{"$f":"IFERROR(MID($W184,FIND(CHAR(160),SUBSTITUTE($W184,\"{\",CHAR(160),GW$1)),FIND(CHAR(160),SUBSTITUTE($W184,\"}\",CHAR(160),GW$1))-FIND(CHAR(160),SUBSTITUTE($W184,\"{\",CHAR(160),GW$1))+1),\"\")","v":""},{"$f":"IFERROR(MID($W184,FIND(CHAR(160),SUBSTITUTE($W184,\"{\",CHAR(160),GX$1)),FIND(CHAR(160),SUBSTITUTE($W184,\"}\",CHAR(160),GX$1))-FIND(CHAR(160),SUBSTITUTE($W184,\"{\",CHAR(160),GX$1))+1),\"\")","v":""},{"$f":"IFERROR(MID($W184,FIND(CHAR(160),SUBSTITUTE($W184,\"{\",CHAR(160),GY$1)),FIND(CHAR(160),SUBSTITUTE($W184,\"}\",CHAR(160),GY$1))-FIND(CHAR(160),SUBSTITUTE($W184,\"{\",CHAR(160),GY$1))+1),\"\")","v":"{Measure:Quantity}"},{"$f":"IFERROR(MID($W184,FIND(CHAR(160),SUBSTITUTE($W184,\"{\",CHAR(160),GZ$1)),FIND(CHAR(160),SUBSTITUTE($W184,\"}\",CHAR(160),GZ$1))-FIND(CHAR(160),SUBSTITUTE($W184,\"{\",CHAR(160),GZ$1))+1),\"\")","v":"{Package Size}"},{"$f":"IFERROR(MID($X184,FIND(CHAR(160),SUBSTITUTE($X184,\"{\",CHAR(160),HA$1)),FIND(CHAR(160),SUBSTITUTE($X184,\"}\",CHAR(160),HA$1))-FIND(CHAR(160),SUBSTITUTE($X184,\"{\",CHAR(160),HA$1))+1),\"\")","v":""},{"$f":"IFERROR(MID($X184,FIND(CHAR(160),SUBSTITUTE($X184,\"{\",CHAR(160),HB$1)),FIND(CHAR(160),SUBSTITUTE($X184,\"}\",CHAR(160),HB$1))-FIND(CHAR(160),SUBSTITUTE($X184,\"{\",CHAR(160),HB$1))+1),\"\")","v":""},{"$f":"IFERROR(MID($X184,FIND(CHAR(160),SUBSTITUTE($X184,\"{\",CHAR(160),HC$1)),FIND(CHAR(160),SUBSTITUTE($X184,\"}\",CHAR(160),HC$1))-FIND(CHAR(160),SUBSTITUTE($X184,\"{\",CHAR(160),HC$1))+1),\"\")","v":""},{"$f":"IFERROR(MID($X184,FIND(CHAR(160),SUBSTITUTE($X184,\"{\",CHAR(160),HD$1)),FIND(CHAR(160),SUBSTITUTE($X184,\"}\",CHAR(160),HD$1))-FIND(CHAR(160),SUBSTITUTE($X184,\"{\",CHAR(160),HD$1))+1),\"\")","v":""},{"$f":"IFERROR(MID($X184,FIND(CHAR(160),SUBSTITUTE($X184,\"{\",CHAR(160),HE$1)),FIND(CHAR(160),SUBSTITUTE($X184,\"}\",CHAR(160),HE$1))-FIND(CHAR(160),SUBSTITUTE($X184,\"{\",CHAR(160),HE$1))+1),\"\")","v":""},{"$f":"IFERROR(MID($X184,FIND(CHAR(160),SUBSTITUTE($X184,\"{\",CHAR(160),HF$1)),FIND(CHAR(160),SUBSTITUTE($X184,\"}\",CHAR(160),HF$1))-FIND(CHAR(160),SUBSTITUTE($X184,\"{\",CHAR(160),HF$1))+1),\"\")","v":""},{"$f":"IFERROR(MID($X184,FIND(CHAR(160),SUBSTITUTE($X184,\"{\",CHAR(160),HG$1)),FIND(CHAR(160),SUBSTITUTE($X184,\"}\",CHAR(160),HG$1))-FIND(CHAR(160),SUBSTITUTE($X184,\"{\",CHAR(160),HG$1))+1),\"\")","v":""},{"$f":"IFERROR(MID($X184,FIND(CHAR(160),SUBSTITUTE($X184,\"{\",CHAR(160),HH$1)),FIND(CHAR(160),SUBSTITUTE($X184,\"}\",CHAR(160),HH$1))-FIND(CHAR(160),SUBSTITUTE($X184,\"{\",CHAR(160),HH$1))+1),\"\")","v":""},{"$f":"IFERROR(MID($X184,FIND(CHAR(160),SUBSTITUTE($X184,\"{\",CHAR(160),HI$1)),FIND(CHAR(160),SUBSTITUTE($X184,\"}\",CHAR(160),HI$1))-FIND(CHAR(160),SUBSTITUTE($X184,\"{\",CHAR(160),HI$1))+1),\"\")","v":"{Measure:Quantity}"},{"$f":"IFERROR(MID($X184,FIND(CHAR(160),SUBSTITUTE($X184,\"{\",CHAR(160),HJ$1)),FIND(CHAR(160),SUBSTITUTE($X184,\"}\",CHAR(160),HJ$1))-FIND(CHAR(160),SUBSTITUTE($X184,\"{\",CHAR(160),HJ$1))+1),\"\")","v":"{Package Size}"},{"$f":"IFERROR(MID($Y184,FIND(CHAR(160),SUBSTITUTE($Y184,\"{\",CHAR(160),HK$1)),FIND(CHAR(160),SUBSTITUTE($Y184,\"}\",CHAR(160),HK$1))-FIND(CHAR(160),SUBSTITUTE($Y184,\"{\",CHAR(160),HK$1))+1),\"\")","v":""},{"$f":"IFERROR(MID($Y184,FIND(CHAR(160),SUBSTITUTE($Y184,\"{\",CHAR(160),HL$1)),FIND(CHAR(160),SUBSTITUTE($Y184,\"}\",CHAR(160),HL$1))-FIND(CHAR(160),SUBSTITUTE($Y184,\"{\",CHAR(160),HL$1))+1),\"\")","v":""},{"$f":"IFERROR(MID($Y184,FIND(CHAR(160),SUBSTITUTE($Y184,\"{\",CHAR(160),HM$1)),FIND(CHAR(160),SUBSTITUTE($Y184,\"}\",CHAR(160),HM$1))-FIND(CHAR(160),SUBSTITUTE($Y184,\"{\",CHAR(160),HM$1))+1),\"\")","v":""},{"$f":"IFERROR(MID($Y184,FIND(CHAR(160),SUBSTITUTE($Y184,\"{\",CHAR(160),HN$1)),FIND(CHAR(160),SUBSTITUTE($Y184,\"}\",CHAR(160),HN$1))-FIND(CHAR(160),SUBSTITUTE($Y184,\"{\",CHAR(160),HN$1))+1),\"\")","v":""},{"$f":"IFERROR(MID($Y184,FIND(CHAR(160),SUBSTITUTE($Y184,\"{\",CHAR(160),HO$1)),FIND(CHAR(160),SUBSTITUTE($Y184,\"}\",CHAR(160),HO$1))-FIND(CHAR(160),SUBSTITUTE($Y184,\"{\",CHAR(160),HO$1))+1),\"\")","v":""},{"$f":"IFERROR(MID($Y184,FIND(CHAR(160),SUBSTITUTE($Y184,\"{\",CHAR(160),HP$1)),FIND(CHAR(160),SUBSTITUTE($Y184,\"}\",CHAR(160),HP$1))-FIND(CHAR(160),SUBSTITUTE($Y184,\"{\",CHAR(160),HP$1))+1),\"\")","v":""},{"$f":"IFERROR(MID($Y184,FIND(CHAR(160),SUBSTITUTE($Y184,\"{\",CHAR(160),HQ$1)),FIND(CHAR(160),SUBSTITUTE($Y184,\"}\",CHAR(160),HQ$1))-FIND(CHAR(160),SUBSTITUTE($Y184,\"{\",CHAR(160),HQ$1))+1),\"\")","v":""},{"$f":"IFERROR(MID($Y184,FIND(CHAR(160),SUBSTITUTE($Y184,\"{\",CHAR(160),HR$1)),FIND(CHAR(160),SUBSTITUTE($Y184,\"}\",CHAR(160),HR$1))-FIND(CHAR(160),SUBSTITUTE($Y184,\"{\",CHAR(160),HR$1))+1),\"\")","v":""},{"$f":"IFERROR(MID($Y184,FIND(CHAR(160),SUBSTITUTE($Y184,\"{\",CHAR(160),HS$1)),FIND(CHAR(160),SUBSTITUTE($Y184,\"}\",CHAR(160),HS$1))-FIND(CHAR(160),SUBSTITUTE($Y184,\"{\",CHAR(160),HS$1))+1),\"\")","v":"{Measure:Quantity}"},{"$f":"IFERROR(MID($Y184,FIND(CHAR(160),SUBSTITUTE($Y184,\"{\",CHAR(160),HT$1)),FIND(CHAR(160),SUBSTITUTE($Y184,\"}\",CHAR(160),HT$1))-FIND(CHAR(160),SUBSTITUTE($Y184,\"{\",CHAR(160),HT$1))+1),\"\")","v":"{Package Size}"},{"$f":"IFERROR(MID($Z184,FIND(CHAR(160),SUBSTITUTE($Z184,\"{\",CHAR(160),HU$1)),FIND(CHAR(160),SUBSTITUTE($Z184,\"}\",CHAR(160),HU$1))-FIND(CHAR(160),SUBSTITUTE($Z184,\"{\",CHAR(160),HU$1))+1),\"\")","v":""},{"$f":"IFERROR(MID($Z184,FIND(CHAR(160),SUBSTITUTE($Z184,\"{\",CHAR(160),HV$1)),FIND(CHAR(160),SUBSTITUTE($Z184,\"}\",CHAR(160),HV$1))-FIND(CHAR(160),SUBSTITUTE($Z184,\"{\",CHAR(160),HV$1))+1),\"\")","v":""},{"$f":"IFERROR(MID($Z184,FIND(CHAR(160),SUBSTITUTE($Z184,\"{\",CHAR(160),HW$1)),FIND(CHAR(160),SUBSTITUTE($Z184,\"}\",CHAR(160),HW$1))-FIND(CHAR(160),SUBSTITUTE($Z184,\"{\",CHAR(160),HW$1))+1),\"\")","v":""},{"$f":"IFERROR(MID($Z184,FIND(CHAR(160),SUBSTITUTE($Z184,\"{\",CHAR(160),HX$1)),FIND(CHAR(160),SUBSTITUTE($Z184,\"}\",CHAR(160),HX$1))-FIND(CHAR(160),SUBSTITUTE($Z184,\"{\",CHAR(160),HX$1))+1),\"\")","v":""},{"$f":"IFERROR(MID($Z184,FIND(CHAR(160),SUBSTITUTE($Z184,\"{\",CHAR(160),HY$1)),FIND(CHAR(160),SUBSTITUTE($Z184,\"}\",CHAR(160),HY$1))-FIND(CHAR(160),SUBSTITUTE($Z184,\"{\",CHAR(160),HY$1))+1),\"\")","v":""},{"$f":"IFERROR(MID($Z184,FIND(CHAR(160),SUBSTITUTE($Z184,\"{\",CHAR(160),HZ$1)),FIND(CHAR(160),SUBSTITUTE($Z184,\"}\",CHAR(160),HZ$1))-FIND(CHAR(160),SUBSTITUTE($Z184,\"{\",CHAR(160),HZ$1))+1),\"\")","v":""},{"$f":"IFERROR(MID($Z184,FIND(CHAR(160),SUBSTITUTE($Z184,\"{\",CHAR(160),IA$1)),FIND(CHAR(160),SUBSTITUTE($Z184,\"}\",CHAR(160),IA$1))-FIND(CHAR(160),SUBSTITUTE($Z184,\"{\",CHAR(160),IA$1))+1),\"\")","v":""},{"$f":"IFERROR(MID($Z184,FIND(CHAR(160),SUBSTITUTE($Z184,\"{\",CHAR(160),IB$1)),FIND(CHAR(160),SUBSTITUTE($Z184,\"}\",CHAR(160),IB$1))-FIND(CHAR(160),SUBSTITUTE($Z184,\"{\",CHAR(160),IB$1))+1),\"\")","v":""},{"$f":"IFERROR(MID($Z184,FIND(CHAR(160),SUBSTITUTE($Z184,\"{\",CHAR(160),IC$1)),FIND(CHAR(160),SUBSTITUTE($Z184,\"}\",CHAR(160),IC$1))-FIND(CHAR(160),SUBSTITUTE($Z184,\"{\",CHAR(160),IC$1))+1),\"\")","v":"{Measure:Quantity}"},{"$f":"IFERROR(MID($Z184,FIND(CHAR(160),SUBSTITUTE($Z184,\"{\",CHAR(160),ID$1)),FIND(CHAR(160),SUBSTITUTE($Z184,\"}\",CHAR(160),ID$1))-FIND(CHAR(160),SUBSTITUTE($Z184,\"{\",CHAR(160),ID$1))+1),\"\")","v":"{Package Size}"},{"$f":"IFERROR(MID($AA184,FIND(CHAR(160),SUBSTITUTE($AA184,\"{\",CHAR(160),IE$1)),FIND(CHAR(160),SUBSTITUTE($AA184,\"}\",CHAR(160),IE$1))-FIND(CHAR(160),SUBSTITUTE($AA184,\"{\",CHAR(160),IE$1))+1),\"\")","v":""},{"$f":"IFERROR(MID($AA184,FIND(CHAR(160),SUBSTITUTE($AA184,\"{\",CHAR(160),IF$1)),FIND(CHAR(160),SUBSTITUTE($AA184,\"}\",CHAR(160),IF$1))-FIND(CHAR(160),SUBSTITUTE($AA184,\"{\",CHAR(160),IF$1))+1),\"\")","v":""},{"$f":"IFERROR(MID($AA184,FIND(CHAR(160),SUBSTITUTE($AA184,\"{\",CHAR(160),IG$1)),FIND(CHAR(160),SUBSTITUTE($AA184,\"}\",CHAR(160),IG$1))-FIND(CHAR(160),SUBSTITUTE($AA184,\"{\",CHAR(160),IG$1))+1),\"\")","v":""},{"$f":"IFERROR(MID($AA184,FIND(CHAR(160),SUBSTITUTE($AA184,\"{\",CHAR(160),IH$1)),FIND(CHAR(160),SUBSTITUTE($AA184,\"}\",CHAR(160),IH$1))-FIND(CHAR(160),SUBSTITUTE($AA184,\"{\",CHAR(160),IH$1))+1),\"\")","v":""},{"$f":"IFERROR(MID($AA184,FIND(CHAR(160),SUBSTITUTE($AA184,\"{\",CHAR(160),II$1)),FIND(CHAR(160),SUBSTITUTE($AA184,\"}\",CHAR(160),II$1))-FIND(CHAR(160),SUBSTITUTE($AA184,\"{\",CHAR(160),II$1))+1),\"\")","v":""},{"$f":"IFERROR(MID($AA184,FIND(CHAR(160),SUBSTITUTE($AA184,\"{\",CHAR(160),IJ$1)),FIND(CHAR(160),SUBSTITUTE($AA184,\"}\",CHAR(160),IJ$1))-FIND(CHAR(160),SUBSTITUTE($AA184,\"{\",CHAR(160),IJ$1))+1),\"\")","v":""},{"$f":"IFERROR(MID($AA184,FIND(CHAR(160),SUBSTITUTE($AA184,\"{\",CHAR(160),IK$1)),FIND(CHAR(160),SUBSTITUTE($AA184,\"}\",CHAR(160),IK$1))-FIND(CHAR(160),SUBSTITUTE($AA184,\"{\",CHAR(160),IK$1))+1),\"\")","v":""},{"$f":"IFERROR(MID($AA184,FIND(CHAR(160),SUBSTITUTE($AA184,\"{\",CHAR(160),IL$1)),FIND(CHAR(160),SUBSTITUTE($AA184,\"}\",CHAR(160),IL$1))-FIND(CHAR(160),SUBSTITUTE($AA184,\"{\",CHAR(160),IL$1))+1),\"\")","v":""},{"$f":"IFERROR(MID($AA184,FIND(CHAR(160),SUBSTITUTE($AA184,\"{\",CHAR(160),IM$1)),FIND(CHAR(160),SUBSTITUTE($AA184,\"}\",CHAR(160),IM$1))-FIND(CHAR(160),SUBSTITUTE($AA184,\"{\",CHAR(160),IM$1))+1),\"\")","v":"{Measure:Quantity}"},{"$f":"IFERROR(MID($AA184,FIND(CHAR(160),SUBSTITUTE($AA184,\"{\",CHAR(160),IN$1)),FIND(CHAR(160),SUBSTITUTE($AA184,\"}\",CHAR(160),IN$1))-FIND(CHAR(160),SUBSTITUTE($AA184,\"{\",CHAR(160),IN$1))+1),\"\")","v":"{Package Size}"},{"$f":"IFERROR(MID($AB184,FIND(CHAR(160),SUBSTITUTE($AB184,\"{\",CHAR(160),IO$1)),FIND(CHAR(160),SUBSTITUTE($AB184,\"}\",CHAR(160),IO$1))-FIND(CHAR(160),SUBSTITUTE($AB184,\"{\",CHAR(160),IO$1))+1),\"\")","v":""},{"$f":"IFERROR(MID($AB184,FIND(CHAR(160),SUBSTITUTE($AB184,\"{\",CHAR(160),IP$1)),FIND(CHAR(160),SUBSTITUTE($AB184,\"}\",CHAR(160),IP$1))-FIND(CHAR(160),SUBSTITUTE($AB184,\"{\",CHAR(160),IP$1))+1),\"\")","v":""},{"$f":"IFERROR(MID($AB184,FIND(CHAR(160),SUBSTITUTE($AB184,\"{\",CHAR(160),IQ$1)),FIND(CHAR(160),SUBSTITUTE($AB184,\"}\",CHAR(160),IQ$1))-FIND(CHAR(160),SUBSTITUTE($AB184,\"{\",CHAR(160),IQ$1))+1),\"\")","v":""},{"$f":"IFERROR(MID($AB184,FIND(CHAR(160),SUBSTITUTE($AB184,\"{\",CHAR(160),IR$1)),FIND(CHAR(160),SUBSTITUTE($AB184,\"}\",CHAR(160),IR$1))-FIND(CHAR(160),SUBSTITUTE($AB184,\"{\",CHAR(160),IR$1))+1),\"\")","v":""},{"$f":"IFERROR(MID($AB184,FIND(CHAR(160),SUBSTITUTE($AB184,\"{\",CHAR(160),IS$1)),FIND(CHAR(160),SUBSTITUTE($AB184,\"}\",CHAR(160),IS$1))-FIND(CHAR(160),SUBSTITUTE($AB184,\"{\",CHAR(160),IS$1))+1),\"\")","v":""},{"$f":"IFERROR(MID($AB184,FIND(CHAR(160),SUBSTITUTE($AB184,\"{\",CHAR(160),IT$1)),FIND(CHAR(160),SUBSTITUTE($AB184,\"}\",CHAR(160),IT$1))-FIND(CHAR(160),SUBSTITUTE($AB184,\"{\",CHAR(160),IT$1))+1),\"\")","v":""},{"$f":"IFERROR(MID($AB184,FIND(CHAR(160),SUBSTITUTE($AB184,\"{\",CHAR(160),IU$1)),FIND(CHAR(160),SUBSTITUTE($AB184,\"}\",CHAR(160),IU$1))-FIND(CHAR(160),SUBSTITUTE($AB184,\"{\",CHAR(160),IU$1))+1),\"\")","v":""},{"$f":"IFERROR(MID($AB184,FIND(CHAR(160),SUBSTITUTE($AB184,\"{\",CHAR(160),IV$1)),FIND(CHAR(160),SUBSTITUTE($AB184,\"}\",CHAR(160),IV$1))-FIND(CHAR(160),SUBSTITUTE($AB184,\"{\",CHAR(160),IV$1))+1),\"\")","v":""},{"$f":"IFERROR(MID($AB184,FIND(CHAR(160),SUBSTITUTE($AB184,\"{\",CHAR(160),IW$1)),FIND(CHAR(160),SUBSTITUTE($AB184,\"}\",CHAR(160),IW$1))-FIND(CHAR(160),SUBSTITUTE($AB184,\"{\",CHAR(160),IW$1))+1),\"\")","v":""},{"$f":"IFERROR(MID($AB184,FIND(CHAR(160),SUBSTITUTE($AB184,\"{\",CHAR(160),IX$1)),FIND(CHAR(160),SUBSTITUTE($AB184,\"}\",CHAR(160),IX$1))-FIND(CHAR(160),SUBSTITUTE($AB184,\"{\",CHAR(160),IX$1))+1),\"\")","v":""},null,{"$f":"10-COUNTIF(DU184:ED184,\"\")","v":3}]
["Distributor Lighting","Outdoor_Type_B <5000 lm - long life","S6BLL","2021-07-01","2022-06-30","Calculated","{Measure:Quantity}*{Package Size}*46",0,"Calculated","{Measure:Quantity}*{Rebate per Package}",0,"2021-07-01","2022-06-30","Calculated","{Measure:Quantity}*{Package Size}*476",null,null,"{Measure:Quantity}*{Package Size}*1*0.112",null,null,"{Measure:Quantity}*{Package Size}*{Factor:WinterCF}*0.112","{Measure:Quantity}*{Package Size}*{Factor:SummerCF}*1*0.112","{Measure:Quantity}*{Package Size}*10*0","{Measure:Quantity}*{Package Size}*0","{Measure:Quantity}*{Package Size}*0","{Measure:Quantity}*{Package Size}*0","{Measure:Quantity}*{Package Size}*0",null,"2021-07-01","2022-06-30",12,0.82399999999999995,6.6000000000000003E-2,0.27300000000000002,0.45,9.5000000000000001E-2,0.182,0.99,1,1,0.51,0,null,{"$f":"DU185","v":"{Measure:Quantity}"},1,{"$f":"DV185","v":"{Package Size}"},1,{"$f":"DW185","v":"{Rebate per Package}"},{"$f":"CW185*CO185","v":34.5},{"$f":"DX185","v":""},null,{"$f":"DY185","v":""},null,{"$f":"DZ185","v":""},null,{"$f":"EA185","v":""},null,{"$f":"EB185","v":""},null,{"$f":"EC185","v":""},null,{"$f":"ED185","v":""},null,{"$f":"AS185*AU185*476","v":476},0,0,{"$f":"AS185*AU185*1*0.112","v":0.112},0,0,{"$f":"AS185*AU185*AF185*0.112","v":9.2287999999999995E-2},{"$f":"AS185*AU185*AG185*1*0.112","v":7.3920000000000001E-3},{"$f":"AS185*AU185*10*0","v":0},{"$f":"AS185*AU185*0","v":0},{"$f":"AS185*AU185*0","v":0},{"$f":"AS185*AU185*0","v":0},{"$f":"AS185*AU185*0","v":0},0,null,"Res","Default DR",{"$f":"Benefits(BL185,BR185,BS185,BT185,BU185,BV185,BW185,BX185,BY185,BZ185,AE185,AH185,AI185,AJ185,AK185,AL185,AM185,AN185,AO185,AP185,CA185,CB185)","v":541.23540996610802},296.77539924640564,0,0,0,0,0,0,0,{"$f":"SUMPRODUCT(CC185:CK185,--(CC185:CK185>0))","v":838.01080921251366},{"$f":"-SUMPRODUCT(CC185:CK185,--(CC185:CK185<0))","v":0},null,{"$f":"AS185*AU185*46","v":46},null,null,{"$f":"CM185+CO185","v":46},{"$f":"IF(NetOrGross=\"Net\",(1-AO185+AP185),1)","v":1},{"$f":"(SUMPRODUCT(CC185:CJ185,--(CC185:CJ185>0))+CN185)*CS185/((-SUMPRODUCT(CC185:CJ185,--(CC185:CJ185<0))+MAX(CO185,CV185)+CP185+CQ185)*CS185+IF(FRIncentives=\"Yes\",CV185*(1-CS185),0))","v":18.217626287228558},1,{"$f":"AS185*AW185","v":34.5},{"$f":"CW184","v":0.75},"Electric","y",null,{"$f":"IF(F185=\"Manual Entry\",\"Manual\",IF(G185=\"\",0,\"X=\"&SUBSTITUTE(SUBSTITUTE(SUBSTITUTE(SUBSTITUTE(SUBSTITUTE(SUBSTITUTE(SUBSTITUTE(SUBSTITUTE(SUBSTITUTE(SUBSTITUTE(SUBSTITUTE(SUBSTITUTE(G185,$ED185,$ED$2&ROW($ED185)),$EC185,$EC$2&ROW($EC185)),$EB185,$EB$2&ROW($EB185)),$EA185,$EA$2&ROW($EA185)),$DZ185,$DZ$2&ROW($DZ185)),$DY185,$DY$2&ROW($DY185)),$DX185,$DX$2&ROW($DX185)),$DW185,$DW$2&ROW($DW185)),$DV185,$DV$2&ROW($DV185)),$DU185,$DU$2&ROW($DU185)),$DT185,$DT$2&ROW($DT185)),$DS185,$DS$2&ROW($DS185))))","v":"X=AS185*AU185*46"},{"$f":"IF(I185=\"Manual Entry\",\"Manual\",IF(J185=\"\",0,\"X=\"&SUBSTITUTE(SUBSTITUTE(SUBSTITUTE(SUBSTITUTE(SUBSTITUTE(SUBSTITUTE(SUBSTITUTE(SUBSTITUTE(SUBSTITUTE(SUBSTITUTE(SUBSTITUTE(SUBSTITUTE(J185,$ED185,$ED$2&ROW($ED185)),$EC185,$EC$2&ROW($EC185)),$EB185,$EB$2&ROW($EB185)),$EA185,$EA$2&ROW($EA185)),$DZ185,$DZ$2&ROW($DZ185)),$DY185,$DY$2&ROW($DY185)),$DX185,$DX$2&ROW($DX185)),$DW185,$DW$2&ROW($DW185)),$DV185,$DV$2&ROW($DV185)),$DU185,$DU$2&ROW($DU185)),$DT185,$DT$2&ROW($DT185)),$DS185,$DS$2&ROW($DS185))))","v":"X=AS185*AW185"},{"$f":"IF(O185=\"\",0,\"X=\"&SUBSTITUTE(SUBSTITUTE(SUBSTITUTE(SUBSTITUTE(SUBSTITUTE(SUBSTITUTE(SUBSTITUTE(SUBSTITUTE(SUBSTITUTE(SUBSTITUTE(SUBSTITUTE(SUBSTITUTE(O185,$ED185,$ED$2&ROW($ED185)),$EC185,$EC$2&ROW($EC185)),$EB185,$EB$2&ROW($EB185)),$EA185,$EA$2&ROW($EA185)),$DZ185,$DZ$2&ROW($DZ185)),$DY185,$DY$2&ROW($DY185)),$DX185,$DX$2&ROW($DX185)),$DW185,$DW$2&ROW($DW185)),$DV185,$DV$2&ROW($DV185)),$DU185,$DU$2&ROW($DU185)),$DT185,$DT$2&ROW($DT185)),$DS185,$DS$2&ROW($DS185)))","v":"X=AS185*AU185*476"},{"$f":"IF(P185=\"\",0,\"X=\"&SUBSTITUTE(SUBSTITUTE(SUBSTITUTE(SUBSTITUTE(SUBSTITUTE(SUBSTITUTE(SUBSTITUTE(SUBSTITUTE(SUBSTITUTE(SUBSTITUTE(SUBSTITUTE(SUBSTITUTE(P185,$ED185,$ED$2&ROW($ED185)),$EC185,$EC$2&ROW($EC185)),$EB185,$EB$2&ROW($EB185)),$EA185,$EA$2&ROW($EA185)),$DZ185,$DZ$2&ROW($DZ185)),$DY185,$DY$2&ROW($DY185)),$DX185,$DX$2&ROW($DX185)),$DW185,$DW$2&ROW($DW185)),$DV185,$DV$2&ROW($DV185)),$DU185,$DU$2&ROW($DU185)),$DT185,$DT$2&ROW($DT185)),$DS185,$DS$2&ROW($DS185)))","v":0},{"$f":"IF(Q185=\"\",0,\"X=\"&SUBSTITUTE(SUBSTITUTE(SUBSTITUTE(SUBSTITUTE(SUBSTITUTE(SUBSTITUTE(SUBSTITUTE(SUBSTITUTE(SUBSTITUTE(SUBSTITUTE(SUBSTITUTE(SUBSTITUTE(Q185,$ED185,$ED$2&ROW($ED185)),$EC185,$EC$2&ROW($EC185)),$EB185,$EB$2&ROW($EB185)),$EA185,$EA$2&ROW($EA185)),$DZ185,$DZ$2&ROW($DZ185)),$DY185,$DY$2&ROW($DY185)),$DX185,$DX$2&ROW($DX185)),$DW185,$DW$2&ROW($DW185)),$DV185,$DV$2&ROW($DV185)),$DU185,$DU$2&ROW($DU185)),$DT185,$DT$2&ROW($DT185)),$DS185,$DS$2&ROW($DS185)))","v":0},{"$f":"IF(R185=\"\",0,\"X=\"&SUBSTITUTE(SUBSTITUTE(SUBSTITUTE(SUBSTITUTE(SUBSTITUTE(SUBSTITUTE(SUBSTITUTE(SUBSTITUTE(SUBSTITUTE(SUBSTITUTE(SUBSTITUTE(SUBSTITUTE(R185,$ED185,$ED$2&ROW($ED185)),$EC185,$EC$2&ROW($EC185)),$EB185,$EB$2&ROW($EB185)),$EA185,$EA$2&ROW($EA185)),$DZ185,$DZ$2&ROW($DZ185)),$DY185,$DY$2&ROW($DY185)),$DX185,$DX$2&ROW($DX185)),$DW185,$DW$2&ROW($DW185)),$DV185,$DV$2&ROW($DV185)),$DU185,$DU$2&ROW($DU185)),$DT185,$DT$2&ROW($DT185)),$DS185,$DS$2&ROW($DS185)))","v":"X=AS185*AU185*1*0.112"},{"$f":"IF(S185=\"\",0,\"X=\"&SUBSTITUTE(SUBSTITUTE(SUBSTITUTE(SUBSTITUTE(SUBSTITUTE(SUBSTITUTE(SUBSTITUTE(SUBSTITUTE(SUBSTITUTE(SUBSTITUTE(SUBSTITUTE(SUBSTITUTE(S185,$ED185,$ED$2&ROW($ED185)),$EC185,$EC$2&ROW($EC185)),$EB185,$EB$2&ROW($EB185)),$EA185,$EA$2&ROW($EA185)),$DZ185,$DZ$2&ROW($DZ185)),$DY185,$DY$2&ROW($DY185)),$DX185,$DX$2&ROW($DX185)),$DW185,$DW$2&ROW($DW185)),$DV185,$DV$2&ROW($DV185)),$DU185,$DU$2&ROW($DU185)),$DT185,$DT$2&ROW($DT185)),$DS185,$DS$2&ROW($DS185)))","v":0},{"$f":"IF(T185=\"\",0,\"X=\"&SUBSTITUTE(SUBSTITUTE(SUBSTITUTE(SUBSTITUTE(SUBSTITUTE(SUBSTITUTE(SUBSTITUTE(SUBSTITUTE(SUBSTITUTE(SUBSTITUTE(SUBSTITUTE(SUBSTITUTE(T185,$ED185,$ED$2&ROW($ED185)),$EC185,$EC$2&ROW($EC185)),$EB185,$EB$2&ROW($EB185)),$EA185,$EA$2&ROW($EA185)),$DZ185,$DZ$2&ROW($DZ185)),$DY185,$DY$2&ROW($DY185)),$DX185,$DX$2&ROW($DX185)),$DW185,$DW$2&ROW($DW185)),$DV185,$DV$2&ROW($DV185)),$DU185,$DU$2&ROW($DU185)),$DT185,$DT$2&ROW($DT185)),$DS185,$DS$2&ROW($DS185)))","v":0},{"$f":"IF(U185=\"\",0,\"X=\"&SUBSTITUTE(SUBSTITUTE(SUBSTITUTE(SUBSTITUTE(SUBSTITUTE(SUBSTITUTE(SUBSTITUTE(SUBSTITUTE(SUBSTITUTE(SUBSTITUTE(SUBSTITUTE(SUBSTITUTE(U185,$ED185,$ED$2&ROW($ED185)),$EC185,$EC$2&ROW($EC185)),$EB185,$EB$2&ROW($EB185)),$EA185,$EA$2&ROW($EA185)),$DZ185,$DZ$2&ROW($DZ185)),$DY185,$DY$2&ROW($DY185)),$DX185,$DX$2&ROW($DX185)),$DW185,$DW$2&ROW($DW185)),$DV185,$DV$2&ROW($DV185)),$DU185,$DU$2&ROW($DU185)),$DT185,$DT$2&ROW($DT185)),$DS185,$DS$2&ROW($DS185)))","v":"X=AS185*AU185*AF185*0.112"},{"$f":"IF(V185=\"\",0,\"X=\"&SUBSTITUTE(SUBSTITUTE(SUBSTITUTE(SUBSTITUTE(SUBSTITUTE(SUBSTITUTE(SUBSTITUTE(SUBSTITUTE(SUBSTITUTE(SUBSTITUTE(SUBSTITUTE(SUBSTITUTE(V185,$ED185,$ED$2&ROW($ED185)),$EC185,$EC$2&ROW($EC185)),$EB185,$EB$2&ROW($EB185)),$EA185,$EA$2&ROW($EA185)),$DZ185,$DZ$2&ROW($DZ185)),$DY185,$DY$2&ROW($DY185)),$DX185,$DX$2&ROW($DX185)),$DW185,$DW$2&ROW($DW185)),$DV185,$DV$2&ROW($DV185)),$DU185,$DU$2&ROW($DU185)),$DT185,$DT$2&ROW($DT185)),$DS185,$DS$2&ROW($DS185)))","v":"X=AS185*AU185*AG185*1*0.112"},{"$f":"IF(W185=\"\",0,\"X=\"&SUBSTITUTE(SUBSTITUTE(SUBSTITUTE(SUBSTITUTE(SUBSTITUTE(SUBSTITUTE(SUBSTITUTE(SUBSTITUTE(SUBSTITUTE(SUBSTITUTE(SUBSTITUTE(SUBSTITUTE(W185,$ED185,$ED$2&ROW($ED185)),$EC185,$EC$2&ROW($EC185)),$EB185,$EB$2&ROW($EB185)),$EA185,$EA$2&ROW($EA185)),$DZ185,$DZ$2&ROW($DZ185)),$DY185,$DY$2&ROW($DY185)),$DX185,$DX$2&ROW($DX185)),$DW185,$DW$2&ROW($DW185)),$DV185,$DV$2&ROW($DV185)),$DU185,$DU$2&ROW($DU185)),$DT185,$DT$2&ROW($DT185)),$DS185,$DS$2&ROW($DS185)))","v":"X=AS185*AU185*10*0"},{"$f":"IF(X185=\"\",0,\"X=\"&SUBSTITUTE(SUBSTITUTE(SUBSTITUTE(SUBSTITUTE(SUBSTITUTE(SUBSTITUTE(SUBSTITUTE(SUBSTITUTE(SUBSTITUTE(SUBSTITUTE(SUBSTITUTE(SUBSTITUTE(X185,$ED185,$ED$2&ROW($ED185)),$EC185,$EC$2&ROW($EC185)),$EB185,$EB$2&ROW($EB185)),$EA185,$EA$2&ROW($EA185)),$DZ185,$DZ$2&ROW($DZ185)),$DY185,$DY$2&ROW($DY185)),$DX185,$DX$2&ROW($DX185)),$DW185,$DW$2&ROW($DW185)),$DV185,$DV$2&ROW($DV185)),$DU185,$DU$2&ROW($DU185)),$DT185,$DT$2&ROW($DT185)),$DS185,$DS$2&ROW($DS185)))","v":"X=AS185*AU185*0"},{"$f":"IF(Y185=\"\",0,\"X=\"&SUBSTITUTE(SUBSTITUTE(SUBSTITUTE(SUBSTITUTE(SUBSTITUTE(SUBSTITUTE(SUBSTITUTE(SUBSTITUTE(SUBSTITUTE(SUBSTITUTE(SUBSTITUTE(SUBSTITUTE(Y185,$ED185,$ED$2&ROW($ED185)),$EC185,$EC$2&ROW($EC185)),$EB185,$EB$2&ROW($EB185)),$EA185,$EA$2&ROW($EA185)),$DZ185,$DZ$2&ROW($DZ185)),$DY185,$DY$2&ROW($DY185)),$DX185,$DX$2&ROW($DX185)),$DW185,$DW$2&ROW($DW185)),$DV185,$DV$2&ROW($DV185)),$DU185,$DU$2&ROW($DU185)),$DT185,$DT$2&ROW($DT185)),$DS185,$DS$2&ROW($DS185)))","v":"X=AS185*AU185*0"},{"$f":"IF(Z185=\"\",0,\"X=\"&SUBSTITUTE(SUBSTITUTE(SUBSTITUTE(SUBSTITUTE(SUBSTITUTE(SUBSTITUTE(SUBSTITUTE(SUBSTITUTE(SUBSTITUTE(SUBSTITUTE(SUBSTITUTE(SUBSTITUTE(Z185,$ED185,$ED$2&ROW($ED185)),$EC185,$EC$2&ROW($EC185)),$EB185,$EB$2&ROW($EB185)),$EA185,$EA$2&ROW($EA185)),$DZ185,$DZ$2&ROW($DZ185)),$DY185,$DY$2&ROW($DY185)),$DX185,$DX$2&ROW($DX185)),$DW185,$DW$2&ROW($DW185)),$DV185,$DV$2&ROW($DV185)),$DU185,$DU$2&ROW($DU185)),$DT185,$DT$2&ROW($DT185)),$DS185,$DS$2&ROW($DS185)))","v":"X=AS185*AU185*0"},{"$f":"IF(AA185=\"\",0,\"X=\"&SUBSTITUTE(SUBSTITUTE(SUBSTITUTE(SUBSTITUTE(SUBSTITUTE(SUBSTITUTE(SUBSTITUTE(SUBSTITUTE(SUBSTITUTE(SUBSTITUTE(SUBSTITUTE(SUBSTITUTE(AA185,$ED185,$ED$2&ROW($ED185)),$EC185,$EC$2&ROW($EC185)),$EB185,$EB$2&ROW($EB185)),$EA185,$EA$2&ROW($EA185)),$DZ185,$DZ$2&ROW($DZ185)),$DY185,$DY$2&ROW($DY185)),$DX185,$DX$2&ROW($DX185)),$DW185,$DW$2&ROW($DW185)),$DV185,$DV$2&ROW($DV185)),$DU185,$DU$2&ROW($DU185)),$DT185,$DT$2&ROW($DT185)),$DS185,$DS$2&ROW($DS185)))","v":"X=AS185*AU185*0"},{"$f":"IF(AB185=\"\",0,\"X=\"&SUBSTITUTE(SUBSTITUTE(SUBSTITUTE(SUBSTITUTE(SUBSTITUTE(SUBSTITUTE(SUBSTITUTE(SUBSTITUTE(SUBSTITUTE(SUBSTITUTE(SUBSTITUTE(SUBSTITUTE(AB185,$ED185,$ED$2&ROW($ED185)),$EC185,$EC$2&ROW($EC185)),$EB185,$EB$2&ROW($EB185)),$EA185,$EA$2&ROW($EA185)),$DZ185,$DZ$2&ROW($DZ185)),$DY185,$DY$2&ROW($DY185)),$DX185,$DX$2&ROW($DX185)),$DW185,$DW$2&ROW($DW185)),$DV185,$DV$2&ROW($DV185)),$DU185,$DU$2&ROW($DU185)),$DT185,$DT$2&ROW($DT185)),$DS185,$DS$2&ROW($DS185)))","v":0},null,null,"{Factor:WinterCF}","{Factor:SummerCF}",{"$f":"IFERROR(INDEX($EG185:$IV185,MATCH(0,COUNTIF($DR185:DT185,$EG185:$IV185),0)),\"\")","v":"{Measure:Quantity}"},{"$f":"IFERROR(INDEX($EG185:$IV185,MATCH(0,COUNTIF($DR185:DU185,$EG185:$IV185),0)),\"\")","v":"{Package Size}"},{"$f":"IFERROR(INDEX($EG185:$IV185,MATCH(0,COUNTIF($DR185:DV185,$EG185:$IV185),0)),\"\")","v":"{Rebate per Package}"},{"$f":"IFERROR(INDEX($EG185:$IV185,MATCH(0,COUNTIF($DR185:DW185,$EG185:$IV185),0)),\"\")","v":""},{"$f":"IFERROR(INDEX($EG185:$IV185,MATCH(0,COUNTIF($DR185:DX185,$EG185:$IV185),0)),\"\")","v":""},{"$f":"IFERROR(INDEX($EG185:$IV185,MATCH(0,COUNTIF($DR185:DY185,$EG185:$IV185),0)),\"\")","v":""},{"$f":"IFERROR(INDEX($EG185:$IV185,MATCH(0,COUNTIF($DR185:DZ185,$EG185:$IV185),0)),\"\")","v":""},{"$f":"IFERROR(INDEX($EG185:$IV185,MATCH(0,COUNTIF($DR185:EA185,$EG185:$IV185),0)),\"\")","v":""},{"$f":"IFERROR(INDEX($EG185:$IV185,MATCH(0,COUNTIF($DR185:EB185,$EG185:$IV185),0)),\"\")","v":""},{"$f":"IFERROR(INDEX($EG185:$IV185,MATCH(0,COUNTIF($DR185:EC185,$EG185:$IV185),0)),\"\")","v":""},null,null,{"$f":"IFERROR(MID($G185,FIND(CHAR(160),SUBSTITUTE($G185,\"{\",CHAR(160),EG$1)),FIND(CHAR(160),SUBSTITUTE($G185,\"}\",CHAR(160),EG$1))-FIND(CHAR(160),SUBSTITUTE($G185,\"{\",CHAR(160),EG$1))+1),\"\")","v":"{Measure:Quantity}"},{"$f":"IFERROR(MID($G185,FIND(CHAR(160),SUBSTITUTE($G185,\"{\",CHAR(160),EH$1)),FIND(CHAR(160),SUBSTITUTE($G185,\"}\",CHAR(160),EH$1))-FIND(CHAR(160),SUBSTITUTE($G185,\"{\",CHAR(160),EH$1))+1),\"\")","v":"{Package Size}"},{"$f":"IFERROR(MID($G185,FIND(CHAR(160),SUBSTITUTE($G185,\"{\",CHAR(160),EI$1)),FIND(CHAR(160),SUBSTITUTE($G185,\"}\",CHAR(160),EI$1))-FIND(CHAR(160),SUBSTITUTE($G185,\"{\",CHAR(160),EI$1))+1),\"\")","v":""},{"$f":"IFERROR(MID($G185,FIND(CHAR(160),SUBSTITUTE($G185,\"{\",CHAR(160),EJ$1)),FIND(CHAR(160),SUBSTITUTE($G185,\"}\",CHAR(160),EJ$1))-FIND(CHAR(160),SUBSTITUTE($G185,\"{\",CHAR(160),EJ$1))+1),\"\")","v":""},{"$f":"IFERROR(MID($G185,FIND(CHAR(160),SUBSTITUTE($G185,\"{\",CHAR(160),EK$1)),FIND(CHAR(160),SUBSTITUTE($G185,\"}\",CHAR(160),EK$1))-FIND(CHAR(160),SUBSTITUTE($G185,\"{\",CHAR(160),EK$1))+1),\"\")","v":""},{"$f":"IFERROR(MID($G185,FIND(CHAR(160),SUBSTITUTE($G185,\"{\",CHAR(160),EL$1)),FIND(CHAR(160),SUBSTITUTE($G185,\"}\",CHAR(160),EL$1))-FIND(CHAR(160),SUBSTITUTE($G185,\"{\",CHAR(160),EL$1))+1),\"\")","v":""},{"$f":"IFERROR(MID($G185,FIND(CHAR(160),SUBSTITUTE($G185,\"{\",CHAR(160),EM$1)),FIND(CHAR(160),SUBSTITUTE($G185,\"}\",CHAR(160),EM$1))-FIND(CHAR(160),SUBSTITUTE($G185,\"{\",CHAR(160),EM$1))+1),\"\")","v":""},{"$f":"IFERROR(MID($G185,FIND(CHAR(160),SUBSTITUTE($G185,\"{\",CHAR(160),EN$1)),FIND(CHAR(160),SUBSTITUTE($G185,\"}\",CHAR(160),EN$1))-FIND(CHAR(160),SUBSTITUTE($G185,\"{\",CHAR(160),EN$1))+1),\"\")","v":""},{"$f":"IFERROR(MID($G185,FIND(CHAR(160),SUBSTITUTE($G185,\"{\",CHAR(160),EO$1)),FIND(CHAR(160),SUBSTITUTE($G185,\"}\",CHAR(160),EO$1))-FIND(CHAR(160),SUBSTITUTE($G185,\"{\",CHAR(160),EO$1))+1),\"\")","v":""},{"$f":"IFERROR(MID($G185,FIND(CHAR(160),SUBSTITUTE($G185,\"{\",CHAR(160),EP$1)),FIND(CHAR(160),SUBSTITUTE($G185,\"}\",CHAR(160),EP$1))-FIND(CHAR(160),SUBSTITUTE($G185,\"{\",CHAR(160),EP$1))+1),\"\")","v":""},{"$f":"IFERROR(MID($J185,FIND(CHAR(160),SUBSTITUTE($J185,\"{\",CHAR(160),EQ$1)),FIND(CHAR(160),SUBSTITUTE($J185,\"}\",CHAR(160),EQ$1))-FIND(CHAR(160),SUBSTITUTE($J185,\"{\",CHAR(160),EQ$1))+1),\"\")","v":"{Measure:Quantity}"},{"$f":"IFERROR(MID($J185,FIND(CHAR(160),SUBSTITUTE($J185,\"{\",CHAR(160),ER$1)),FIND(CHAR(160),SUBSTITUTE($J185,\"}\",CHAR(160),ER$1))-FIND(CHAR(160),SUBSTITUTE($J185,\"{\",CHAR(160),ER$1))+1),\"\")","v":"{Rebate per Package}"},{"$f":"IFERROR(MID($J185,FIND(CHAR(160),SUBSTITUTE($J185,\"{\",CHAR(160),ES$1)),FIND(CHAR(160),SUBSTITUTE($J185,\"}\",CHAR(160),ES$1))-FIND(CHAR(160),SUBSTITUTE($J185,\"{\",CHAR(160),ES$1))+1),\"\")","v":""},{"$f":"IFERROR(MID($J185,FIND(CHAR(160),SUBSTITUTE($J185,\"{\",CHAR(160),ET$1)),FIND(CHAR(160),SUBSTITUTE($J185,\"}\",CHAR(160),ET$1))-FIND(CHAR(160),SUBSTITUTE($J185,\"{\",CHAR(160),ET$1))+1),\"\")","v":""},{"$f":"IFERROR(MID($J185,FIND(CHAR(160),SUBSTITUTE($J185,\"{\",CHAR(160),EU$1)),FIND(CHAR(160),SUBSTITUTE($J185,\"}\",CHAR(160),EU$1))-FIND(CHAR(160),SUBSTITUTE($J185,\"{\",CHAR(160),EU$1))+1),\"\")","v":""},{"$f":"IFERROR(MID($J185,FIND(CHAR(160),SUBSTITUTE($J185,\"{\",CHAR(160),EV$1)),FIND(CHAR(160),SUBSTITUTE($J185,\"}\",CHAR(160),EV$1))-FIND(CHAR(160),SUBSTITUTE($J185,\"{\",CHAR(160),EV$1))+1),\"\")","v":""},{"$f":"IFERROR(MID($J185,FIND(CHAR(160),SUBSTITUTE($J185,\"{\",CHAR(160),EW$1)),FIND(CHAR(160),SUBSTITUTE($J185,\"}\",CHAR(160),EW$1))-FIND(CHAR(160),SUBSTITUTE($J185,\"{\",CHAR(160),EW$1))+1),\"\")","v":""},{"$f":"IFERROR(MID($J185,FIND(CHAR(160),SUBSTITUTE($J185,\"{\",CHAR(160),EX$1)),FIND(CHAR(160),SUBSTITUTE($J185,\"}\",CHAR(160),EX$1))-FIND(CHAR(160),SUBSTITUTE($J185,\"{\",CHAR(160),EX$1))+1),\"\")","v":""},{"$f":"IFERROR(MID($J185,FIND(CHAR(160),SUBSTITUTE($J185,\"{\",CHAR(160),EY$1)),FIND(CHAR(160),SUBSTITUTE($J185,\"}\",CHAR(160),EY$1))-FIND(CHAR(160),SUBSTITUTE($J185,\"{\",CHAR(160),EY$1))+1),\"\")","v":""},{"$f":"IFERROR(MID($J185,FIND(CHAR(160),SUBSTITUTE($J185,\"{\",CHAR(160),EZ$1)),FIND(CHAR(160),SUBSTITUTE($J185,\"}\",CHAR(160),EZ$1))-FIND(CHAR(160),SUBSTITUTE($J185,\"{\",CHAR(160),EZ$1))+1),\"\")","v":""},{"$f":"IFERROR(MID($J185,FIND(CHAR(160),SUBSTITUTE($J185,\"{\",CHAR(160),FA$1)),FIND(CHAR(160),SUBSTITUTE($J185,\"}\",CHAR(160),FA$1))-FIND(CHAR(160),SUBSTITUTE($J185,\"{\",CHAR(160),FA$1))+1),\"\")","v":"{Measure:Quantity}"},{"$f":"IFERROR(MID($J185,FIND(CHAR(160),SUBSTITUTE($J185,\"{\",CHAR(160),FB$1)),FIND(CHAR(160),SUBSTITUTE($J185,\"}\",CHAR(160),FB$1))-FIND(CHAR(160),SUBSTITUTE($J185,\"{\",CHAR(160),FB$1))+1),\"\")","v":"{Rebate per Package}"},{"$f":"IFERROR(MID($O185,FIND(CHAR(160),SUBSTITUTE($O185,\"{\",CHAR(160),FC$1)),FIND(CHAR(160),SUBSTITUTE($O185,\"}\",CHAR(160),FC$1))-FIND(CHAR(160),SUBSTITUTE($O185,\"{\",CHAR(160),FC$1))+1),\"\")","v":""},{"$f":"IFERROR(MID($O185,FIND(CHAR(160),SUBSTITUTE($O185,\"{\",CHAR(160),FD$1)),FIND(CHAR(160),SUBSTITUTE($O185,\"}\",CHAR(160),FD$1))-FIND(CHAR(160),SUBSTITUTE($O185,\"{\",CHAR(160),FD$1))+1),\"\")","v":""},{"$f":"IFERROR(MID($O185,FIND(CHAR(160),SUBSTITUTE($O185,\"{\",CHAR(160),FE$1)),FIND(CHAR(160),SUBSTITUTE($O185,\"}\",CHAR(160),FE$1))-FIND(CHAR(160),SUBSTITUTE($O185,\"{\",CHAR(160),FE$1))+1),\"\")","v":""},{"$f":"IFERROR(MID($O185,FIND(CHAR(160),SUBSTITUTE($O185,\"{\",CHAR(160),FF$1)),FIND(CHAR(160),SUBSTITUTE($O185,\"}\",CHAR(160),FF$1))-FIND(CHAR(160),SUBSTITUTE($O185,\"{\",CHAR(160),FF$1))+1),\"\")","v":""},{"$f":"IFERROR(MID($O185,FIND(CHAR(160),SUBSTITUTE($O185,\"{\",CHAR(160),FG$1)),FIND(CHAR(160),SUBSTITUTE($O185,\"}\",CHAR(160),FG$1))-FIND(CHAR(160),SUBSTITUTE($O185,\"{\",CHAR(160),FG$1))+1),\"\")","v":""},{"$f":"IFERROR(MID($O185,FIND(CHAR(160),SUBSTITUTE($O185,\"{\",CHAR(160),FH$1)),FIND(CHAR(160),SUBSTITUTE($O185,\"}\",CHAR(160),FH$1))-FIND(CHAR(160),SUBSTITUTE($O185,\"{\",CHAR(160),FH$1))+1),\"\")","v":""},{"$f":"IFERROR(MID($O185,FIND(CHAR(160),SUBSTITUTE($O185,\"{\",CHAR(160),FI$1)),FIND(CHAR(160),SUBSTITUTE($O185,\"}\",CHAR(160),FI$1))-FIND(CHAR(160),SUBSTITUTE($O185,\"{\",CHAR(160),FI$1))+1),\"\")","v":""},{"$f":"IFERROR(MID($O185,FIND(CHAR(160),SUBSTITUTE($O185,\"{\",CHAR(160),FJ$1)),FIND(CHAR(160),SUBSTITUTE($O185,\"}\",CHAR(160),FJ$1))-FIND(CHAR(160),SUBSTITUTE($O185,\"{\",CHAR(160),FJ$1))+1),\"\")","v":""},{"$f":"IFERROR(MID($O185,FIND(CHAR(160),SUBSTITUTE($O185,\"{\",CHAR(160),FK$1)),FIND(CHAR(160),SUBSTITUTE($O185,\"}\",CHAR(160),FK$1))-FIND(CHAR(160),SUBSTITUTE($O185,\"{\",CHAR(160),FK$1))+1),\"\")","v":"{Measure:Quantity}"},{"$f":"IFERROR(MID($O185,FIND(CHAR(160),SUBSTITUTE($O185,\"{\",CHAR(160),FL$1)),FIND(CHAR(160),SUBSTITUTE($O185,\"}\",CHAR(160),FL$1))-FIND(CHAR(160),SUBSTITUTE($O185,\"{\",CHAR(160),FL$1))+1),\"\")","v":"{Package Size}"},{"$f":"IFERROR(MID($R185,FIND(CHAR(160),SUBSTITUTE($R185,\"{\",CHAR(160),FM$1)),FIND(CHAR(160),SUBSTITUTE($R185,\"}\",CHAR(160),FM$1))-FIND(CHAR(160),SUBSTITUTE($R185,\"{\",CHAR(160),FM$1))+1),\"\")","v":""},{"$f":"IFERROR(MID($R185,FIND(CHAR(160),SUBSTITUTE($R185,\"{\",CHAR(160),FN$1)),FIND(CHAR(160),SUBSTITUTE($R185,\"}\",CHAR(160),FN$1))-FIND(CHAR(160),SUBSTITUTE($R185,\"{\",CHAR(160),FN$1))+1),\"\")","v":""},{"$f":"IFERROR(MID($R185,FIND(CHAR(160),SUBSTITUTE($R185,\"{\",CHAR(160),FO$1)),FIND(CHAR(160),SUBSTITUTE($R185,\"}\",CHAR(160),FO$1))-FIND(CHAR(160),SUBSTITUTE($R185,\"{\",CHAR(160),FO$1))+1),\"\")","v":""},{"$f":"IFERROR(MID($R185,FIND(CHAR(160),SUBSTITUTE($R185,\"{\",CHAR(160),FP$1)),FIND(CHAR(160),SUBSTITUTE($R185,\"}\",CHAR(160),FP$1))-FIND(CHAR(160),SUBSTITUTE($R185,\"{\",CHAR(160),FP$1))+1),\"\")","v":""},{"$f":"IFERROR(MID($R185,FIND(CHAR(160),SUBSTITUTE($R185,\"{\",CHAR(160),FQ$1)),FIND(CHAR(160),SUBSTITUTE($R185,\"}\",CHAR(160),FQ$1))-FIND(CHAR(160),SUBSTITUTE($R185,\"{\",CHAR(160),FQ$1))+1),\"\")","v":""},{"$f":"IFERROR(MID($R185,FIND(CHAR(160),SUBSTITUTE($R185,\"{\",CHAR(160),FR$1)),FIND(CHAR(160),SUBSTITUTE($R185,\"}\",CHAR(160),FR$1))-FIND(CHAR(160),SUBSTITUTE($R185,\"{\",CHAR(160),FR$1))+1),\"\")","v":""},{"$f":"IFERROR(MID($R185,FIND(CHAR(160),SUBSTITUTE($R185,\"{\",CHAR(160),FS$1)),FIND(CHAR(160),SUBSTITUTE($R185,\"}\",CHAR(160),FS$1))-FIND(CHAR(160),SUBSTITUTE($R185,\"{\",CHAR(160),FS$1))+1),\"\")","v":""},{"$f":"IFERROR(MID($R185,FIND(CHAR(160),SUBSTITUTE($R185,\"{\",CHAR(160),FT$1)),FIND(CHAR(160),SUBSTITUTE($R185,\"}\",CHAR(160),FT$1))-FIND(CHAR(160),SUBSTITUTE($R185,\"{\",CHAR(160),FT$1))+1),\"\")","v":""},{"$f":"IFERROR(MID($R185,FIND(CHAR(160),SUBSTITUTE($R185,\"{\",CHAR(160),FU$1)),FIND(CHAR(160),SUBSTITUTE($R185,\"}\",CHAR(160),FU$1))-FIND(CHAR(160),SUBSTITUTE($R185,\"{\",CHAR(160),FU$1))+1),\"\")","v":"{Measure:Quantity}"},{"$f":"IFERROR(MID($R185,FIND(CHAR(160),SUBSTITUTE($R185,\"{\",CHAR(160),FV$1)),FIND(CHAR(160),SUBSTITUTE($R185,\"}\",CHAR(160),FV$1))-FIND(CHAR(160),SUBSTITUTE($R185,\"{\",CHAR(160),FV$1))+1),\"\")","v":"{Package Size}"},{"$f":"IFERROR(MID($U185,FIND(CHAR(160),SUBSTITUTE($U185,\"{\",CHAR(160),FW$1)),FIND(CHAR(160),SUBSTITUTE($U185,\"}\",CHAR(160),FW$1))-FIND(CHAR(160),SUBSTITUTE($U185,\"{\",CHAR(160),FW$1))+1),\"\")","v":"{Factor:WinterCF}"},{"$f":"IFERROR(MID($U185,FIND(CHAR(160),SUBSTITUTE($U185,\"{\",CHAR(160),FX$1)),FIND(CHAR(160),SUBSTITUTE($U185,\"}\",CHAR(160),FX$1))-FIND(CHAR(160),SUBSTITUTE($U185,\"{\",CHAR(160),FX$1))+1),\"\")","v":""},{"$f":"IFERROR(MID($U185,FIND(CHAR(160),SUBSTITUTE($U185,\"{\",CHAR(160),FY$1)),FIND(CHAR(160),SUBSTITUTE($U185,\"}\",CHAR(160),FY$1))-FIND(CHAR(160),SUBSTITUTE($U185,\"{\",CHAR(160),FY$1))+1),\"\")","v":""},{"$f":"IFERROR(MID($U185,FIND(CHAR(160),SUBSTITUTE($U185,\"{\",CHAR(160),FZ$1)),FIND(CHAR(160),SUBSTITUTE($U185,\"}\",CHAR(160),FZ$1))-FIND(CHAR(160),SUBSTITUTE($U185,\"{\",CHAR(160),FZ$1))+1),\"\")","v":""},{"$f":"IFERROR(MID($U185,FIND(CHAR(160),SUBSTITUTE($U185,\"{\",CHAR(160),GA$1)),FIND(CHAR(160),SUBSTITUTE($U185,\"}\",CHAR(160),GA$1))-FIND(CHAR(160),SUBSTITUTE($U185,\"{\",CHAR(160),GA$1))+1),\"\")","v":""},{"$f":"IFERROR(MID($U185,FIND(CHAR(160),SUBSTITUTE($U185,\"{\",CHAR(160),GB$1)),FIND(CHAR(160),SUBSTITUTE($U185,\"}\",CHAR(160),GB$1))-FIND(CHAR(160),SUBSTITUTE($U185,\"{\",CHAR(160),GB$1))+1),\"\")","v":""},{"$f":"IFERROR(MID($U185,FIND(CHAR(160),SUBSTITUTE($U185,\"{\",CHAR(160),GC$1)),FIND(CHAR(160),SUBSTITUTE($U185,\"}\",CHAR(160),GC$1))-FIND(CHAR(160),SUBSTITUTE($U185,\"{\",CHAR(160),GC$1))+1),\"\")","v":""},{"$f":"IFERROR(MID($U185,FIND(CHAR(160),SUBSTITUTE($U185,\"{\",CHAR(160),GD$1)),FIND(CHAR(160),SUBSTITUTE($U185,\"}\",CHAR(160),GD$1))-FIND(CHAR(160),SUBSTITUTE($U185,\"{\",CHAR(160),GD$1))+1),\"\")","v":""},{"$f":"IFERROR(MID($U185,FIND(CHAR(160),SUBSTITUTE($U185,\"{\",CHAR(160),GE$1)),FIND(CHAR(160),SUBSTITUTE($U185,\"}\",CHAR(160),GE$1))-FIND(CHAR(160),SUBSTITUTE($U185,\"{\",CHAR(160),GE$1))+1),\"\")","v":"{Measure:Quantity}"},{"$f":"IFERROR(MID($U185,FIND(CHAR(160),SUBSTITUTE($U185,\"{\",CHAR(160),GF$1)),FIND(CHAR(160),SUBSTITUTE($U185,\"}\",CHAR(160),GF$1))-FIND(CHAR(160),SUBSTITUTE($U185,\"{\",CHAR(160),GF$1))+1),\"\")","v":"{Package Size}"},{"$f":"IFERROR(MID($V185,FIND(CHAR(160),SUBSTITUTE($V185,\"{\",CHAR(160),GG$1)),FIND(CHAR(160),SUBSTITUTE($V185,\"}\",CHAR(160),GG$1))-FIND(CHAR(160),SUBSTITUTE($V185,\"{\",CHAR(160),GG$1))+1),\"\")","v":"{Factor:SummerCF}"},{"$f":"IFERROR(MID($V185,FIND(CHAR(160),SUBSTITUTE($V185,\"{\",CHAR(160),GH$1)),FIND(CHAR(160),SUBSTITUTE($V185,\"}\",CHAR(160),GH$1))-FIND(CHAR(160),SUBSTITUTE($V185,\"{\",CHAR(160),GH$1))+1),\"\")","v":""},{"$f":"IFERROR(MID($V185,FIND(CHAR(160),SUBSTITUTE($V185,\"{\",CHAR(160),GI$1)),FIND(CHAR(160),SUBSTITUTE($V185,\"}\",CHAR(160),GI$1))-FIND(CHAR(160),SUBSTITUTE($V185,\"{\",CHAR(160),GI$1))+1),\"\")","v":""},{"$f":"IFERROR(MID($V185,FIND(CHAR(160),SUBSTITUTE($V185,\"{\",CHAR(160),GJ$1)),FIND(CHAR(160),SUBSTITUTE($V185,\"}\",CHAR(160),GJ$1))-FIND(CHAR(160),SUBSTITUTE($V185,\"{\",CHAR(160),GJ$1))+1),\"\")","v":""},{"$f":"IFERROR(MID($V185,FIND(CHAR(160),SUBSTITUTE($V185,\"{\",CHAR(160),GK$1)),FIND(CHAR(160),SUBSTITUTE($V185,\"}\",CHAR(160),GK$1))-FIND(CHAR(160),SUBSTITUTE($V185,\"{\",CHAR(160),GK$1))+1),\"\")","v":""},{"$f":"IFERROR(MID($V185,FIND(CHAR(160),SUBSTITUTE($V185,\"{\",CHAR(160),GL$1)),FIND(CHAR(160),SUBSTITUTE($V185,\"}\",CHAR(160),GL$1))-FIND(CHAR(160),SUBSTITUTE($V185,\"{\",CHAR(160),GL$1))+1),\"\")","v":""},{"$f":"IFERROR(MID($V185,FIND(CHAR(160),SUBSTITUTE($V185,\"{\",CHAR(160),GM$1)),FIND(CHAR(160),SUBSTITUTE($V185,\"}\",CHAR(160),GM$1))-FIND(CHAR(160),SUBSTITUTE($V185,\"{\",CHAR(160),GM$1))+1),\"\")","v":""},{"$f":"IFERROR(MID($V185,FIND(CHAR(160),SUBSTITUTE($V185,\"{\",CHAR(160),GN$1)),FIND(CHAR(160),SUBSTITUTE($V185,\"}\",CHAR(160),GN$1))-FIND(CHAR(160),SUBSTITUTE($V185,\"{\",CHAR(160),GN$1))+1),\"\")","v":""},{"$f":"IFERROR(MID($V185,FIND(CHAR(160),SUBSTITUTE($V185,\"{\",CHAR(160),GO$1)),FIND(CHAR(160),SUBSTITUTE($V185,\"}\",CHAR(160),GO$1))-FIND(CHAR(160),SUBSTITUTE($V185,\"{\",CHAR(160),GO$1))+1),\"\")","v":"{Measure:Quantity}"},{"$f":"IFERROR(MID($V185,FIND(CHAR(160),SUBSTITUTE($V185,\"{\",CHAR(160),GP$1)),FIND(CHAR(160),SUBSTITUTE($V185,\"}\",CHAR(160),GP$1))-FIND(CHAR(160),SUBSTITUTE($V185,\"{\",CHAR(160),GP$1))+1),\"\")","v":"{Package Size}"},{"$f":"IFERROR(MID($W185,FIND(CHAR(160),SUBSTITUTE($W185,\"{\",CHAR(160),GQ$1)),FIND(CHAR(160),SUBSTITUTE($W185,\"}\",CHAR(160),GQ$1))-FIND(CHAR(160),SUBSTITUTE($W185,\"{\",CHAR(160),GQ$1))+1),\"\")","v":""},{"$f":"IFERROR(MID($W185,FIND(CHAR(160),SUBSTITUTE($W185,\"{\",CHAR(160),GR$1)),FIND(CHAR(160),SUBSTITUTE($W185,\"}\",CHAR(160),GR$1))-FIND(CHAR(160),SUBSTITUTE($W185,\"{\",CHAR(160),GR$1))+1),\"\")","v":""},{"$f":"IFERROR(MID($W185,FIND(CHAR(160),SUBSTITUTE($W185,\"{\",CHAR(160),GS$1)),FIND(CHAR(160),SUBSTITUTE($W185,\"}\",CHAR(160),GS$1))-FIND(CHAR(160),SUBSTITUTE($W185,\"{\",CHAR(160),GS$1))+1),\"\")","v":""},{"$f":"IFERROR(MID($W185,FIND(CHAR(160),SUBSTITUTE($W185,\"{\",CHAR(160),GT$1)),FIND(CHAR(160),SUBSTITUTE($W185,\"}\",CHAR(160),GT$1))-FIND(CHAR(160),SUBSTITUTE($W185,\"{\",CHAR(160),GT$1))+1),\"\")","v":""},{"$f":"IFERROR(MID($W185,FIND(CHAR(160),SUBSTITUTE($W185,\"{\",CHAR(160),GU$1)),FIND(CHAR(160),SUBSTITUTE($W185,\"}\",CHAR(160),GU$1))-FIND(CHAR(160),SUBSTITUTE($W185,\"{\",CHAR(160),GU$1))+1),\"\")","v":""},{"$f":"IFERROR(MID($W185,FIND(CHAR(160),SUBSTITUTE($W185,\"{\",CHAR(160),GV$1)),FIND(CHAR(160),SUBSTITUTE($W185,\"}\",CHAR(160),GV$1))-FIND(CHAR(160),SUBSTITUTE($W185,\"{\",CHAR(160),GV$1))+1),\"\")","v":""},{"$f":"IFERROR(MID($W185,FIND(CHAR(160),SUBSTITUTE($W185,\"{\",CHAR(160),GW$1)),FIND(CHAR(160),SUBSTITUTE($W185,\"}\",CHAR(160),GW$1))-FIND(CHAR(160),SUBSTITUTE($W185,\"{\",CHAR(160),GW$1))+1),\"\")","v":""},{"$f":"IFERROR(MID($W185,FIND(CHAR(160),SUBSTITUTE($W185,\"{\",CHAR(160),GX$1)),FIND(CHAR(160),SUBSTITUTE($W185,\"}\",CHAR(160),GX$1))-FIND(CHAR(160),SUBSTITUTE($W185,\"{\",CHAR(160),GX$1))+1),\"\")","v":""},{"$f":"IFERROR(MID($W185,FIND(CHAR(160),SUBSTITUTE($W185,\"{\",CHAR(160),GY$1)),FIND(CHAR(160),SUBSTITUTE($W185,\"}\",CHAR(160),GY$1))-FIND(CHAR(160),SUBSTITUTE($W185,\"{\",CHAR(160),GY$1))+1),\"\")","v":"{Measure:Quantity}"},{"$f":"IFERROR(MID($W185,FIND(CHAR(160),SUBSTITUTE($W185,\"{\",CHAR(160),GZ$1)),FIND(CHAR(160),SUBSTITUTE($W185,\"}\",CHAR(160),GZ$1))-FIND(CHAR(160),SUBSTITUTE($W185,\"{\",CHAR(160),GZ$1))+1),\"\")","v":"{Package Size}"},{"$f":"IFERROR(MID($X185,FIND(CHAR(160),SUBSTITUTE($X185,\"{\",CHAR(160),HA$1)),FIND(CHAR(160),SUBSTITUTE($X185,\"}\",CHAR(160),HA$1))-FIND(CHAR(160),SUBSTITUTE($X185,\"{\",CHAR(160),HA$1))+1),\"\")","v":""},{"$f":"IFERROR(MID($X185,FIND(CHAR(160),SUBSTITUTE($X185,\"{\",CHAR(160),HB$1)),FIND(CHAR(160),SUBSTITUTE($X185,\"}\",CHAR(160),HB$1))-FIND(CHAR(160),SUBSTITUTE($X185,\"{\",CHAR(160),HB$1))+1),\"\")","v":""},{"$f":"IFERROR(MID($X185,FIND(CHAR(160),SUBSTITUTE($X185,\"{\",CHAR(160),HC$1)),FIND(CHAR(160),SUBSTITUTE($X185,\"}\",CHAR(160),HC$1))-FIND(CHAR(160),SUBSTITUTE($X185,\"{\",CHAR(160),HC$1))+1),\"\")","v":""},{"$f":"IFERROR(MID($X185,FIND(CHAR(160),SUBSTITUTE($X185,\"{\",CHAR(160),HD$1)),FIND(CHAR(160),SUBSTITUTE($X185,\"}\",CHAR(160),HD$1))-FIND(CHAR(160),SUBSTITUTE($X185,\"{\",CHAR(160),HD$1))+1),\"\")","v":""},{"$f":"IFERROR(MID($X185,FIND(CHAR(160),SUBSTITUTE($X185,\"{\",CHAR(160),HE$1)),FIND(CHAR(160),SUBSTITUTE($X185,\"}\",CHAR(160),HE$1))-FIND(CHAR(160),SUBSTITUTE($X185,\"{\",CHAR(160),HE$1))+1),\"\")","v":""},{"$f":"IFERROR(MID($X185,FIND(CHAR(160),SUBSTITUTE($X185,\"{\",CHAR(160),HF$1)),FIND(CHAR(160),SUBSTITUTE($X185,\"}\",CHAR(160),HF$1))-FIND(CHAR(160),SUBSTITUTE($X185,\"{\",CHAR(160),HF$1))+1),\"\")","v":""},{"$f":"IFERROR(MID($X185,FIND(CHAR(160),SUBSTITUTE($X185,\"{\",CHAR(160),HG$1)),FIND(CHAR(160),SUBSTITUTE($X185,\"}\",CHAR(160),HG$1))-FIND(CHAR(160),SUBSTITUTE($X185,\"{\",CHAR(160),HG$1))+1),\"\")","v":""},{"$f":"IFERROR(MID($X185,FIND(CHAR(160),SUBSTITUTE($X185,\"{\",CHAR(160),HH$1)),FIND(CHAR(160),SUBSTITUTE($X185,\"}\",CHAR(160),HH$1))-FIND(CHAR(160),SUBSTITUTE($X185,\"{\",CHAR(160),HH$1))+1),\"\")","v":""},{"$f":"IFERROR(MID($X185,FIND(CHAR(160),SUBSTITUTE($X185,\"{\",CHAR(160),HI$1)),FIND(CHAR(160),SUBSTITUTE($X185,\"}\",CHAR(160),HI$1))-FIND(CHAR(160),SUBSTITUTE($X185,\"{\",CHAR(160),HI$1))+1),\"\")","v":"{Measure:Quantity}"},{"$f":"IFERROR(MID($X185,FIND(CHAR(160),SUBSTITUTE($X185,\"{\",CHAR(160),HJ$1)),FIND(CHAR(160),SUBSTITUTE($X185,\"}\",CHAR(160),HJ$1))-FIND(CHAR(160),SUBSTITUTE($X185,\"{\",CHAR(160),HJ$1))+1),\"\")","v":"{Package Size}"},{"$f":"IFERROR(MID($Y185,FIND(CHAR(160),SUBSTITUTE($Y185,\"{\",CHAR(160),HK$1)),FIND(CHAR(160),SUBSTITUTE($Y185,\"}\",CHAR(160),HK$1))-FIND(CHAR(160),SUBSTITUTE($Y185,\"{\",CHAR(160),HK$1))+1),\"\")","v":""},{"$f":"IFERROR(MID($Y185,FIND(CHAR(160),SUBSTITUTE($Y185,\"{\",CHAR(160),HL$1)),FIND(CHAR(160),SUBSTITUTE($Y185,\"}\",CHAR(160),HL$1))-FIND(CHAR(160),SUBSTITUTE($Y185,\"{\",CHAR(160),HL$1))+1),\"\")","v":""},{"$f":"IFERROR(MID($Y185,FIND(CHAR(160),SUBSTITUTE($Y185,\"{\",CHAR(160),HM$1)),FIND(CHAR(160),SUBSTITUTE($Y185,\"}\",CHAR(160),HM$1))-FIND(CHAR(160),SUBSTITUTE($Y185,\"{\",CHAR(160),HM$1))+1),\"\")","v":""},{"$f":"IFERROR(MID($Y185,FIND(CHAR(160),SUBSTITUTE($Y185,\"{\",CHAR(160),HN$1)),FIND(CHAR(160),SUBSTITUTE($Y185,\"}\",CHAR(160),HN$1))-FIND(CHAR(160),SUBSTITUTE($Y185,\"{\",CHAR(160),HN$1))+1),\"\")","v":""},{"$f":"IFERROR(MID($Y185,FIND(CHAR(160),SUBSTITUTE($Y185,\"{\",CHAR(160),HO$1)),FIND(CHAR(160),SUBSTITUTE($Y185,\"}\",CHAR(160),HO$1))-FIND(CHAR(160),SUBSTITUTE($Y185,\"{\",CHAR(160),HO$1))+1),\"\")","v":""},{"$f":"IFERROR(MID($Y185,FIND(CHAR(160),SUBSTITUTE($Y185,\"{\",CHAR(160),HP$1)),FIND(CHAR(160),SUBSTITUTE($Y185,\"}\",CHAR(160),HP$1))-FIND(CHAR(160),SUBSTITUTE($Y185,\"{\",CHAR(160),HP$1))+1),\"\")","v":""},{"$f":"IFERROR(MID($Y185,FIND(CHAR(160),SUBSTITUTE($Y185,\"{\",CHAR(160),HQ$1)),FIND(CHAR(160),SUBSTITUTE($Y185,\"}\",CHAR(160),HQ$1))-FIND(CHAR(160),SUBSTITUTE($Y185,\"{\",CHAR(160),HQ$1))+1),\"\")","v":""},{"$f":"IFERROR(MID($Y185,FIND(CHAR(160),SUBSTITUTE($Y185,\"{\",CHAR(160),HR$1)),FIND(CHAR(160),SUBSTITUTE($Y185,\"}\",CHAR(160),HR$1))-FIND(CHAR(160),SUBSTITUTE($Y185,\"{\",CHAR(160),HR$1))+1),\"\")","v":""},{"$f":"IFERROR(MID($Y185,FIND(CHAR(160),SUBSTITUTE($Y185,\"{\",CHAR(160),HS$1)),FIND(CHAR(160),SUBSTITUTE($Y185,\"}\",CHAR(160),HS$1))-FIND(CHAR(160),SUBSTITUTE($Y185,\"{\",CHAR(160),HS$1))+1),\"\")","v":"{Measure:Quantity}"},{"$f":"IFERROR(MID($Y185,FIND(CHAR(160),SUBSTITUTE($Y185,\"{\",CHAR(160),HT$1)),FIND(CHAR(160),SUBSTITUTE($Y185,\"}\",CHAR(160),HT$1))-FIND(CHAR(160),SUBSTITUTE($Y185,\"{\",CHAR(160),HT$1))+1),\"\")","v":"{Package Size}"},{"$f":"IFERROR(MID($Z185,FIND(CHAR(160),SUBSTITUTE($Z185,\"{\",CHAR(160),HU$1)),FIND(CHAR(160),SUBSTITUTE($Z185,\"}\",CHAR(160),HU$1))-FIND(CHAR(160),SUBSTITUTE($Z185,\"{\",CHAR(160),HU$1))+1),\"\")","v":""},{"$f":"IFERROR(MID($Z185,FIND(CHAR(160),SUBSTITUTE($Z185,\"{\",CHAR(160),HV$1)),FIND(CHAR(160),SUBSTITUTE($Z185,\"}\",CHAR(160),HV$1))-FIND(CHAR(160),SUBSTITUTE($Z185,\"{\",CHAR(160),HV$1))+1),\"\")","v":""},{"$f":"IFERROR(MID($Z185,FIND(CHAR(160),SUBSTITUTE($Z185,\"{\",CHAR(160),HW$1)),FIND(CHAR(160),SUBSTITUTE($Z185,\"}\",CHAR(160),HW$1))-FIND(CHAR(160),SUBSTITUTE($Z185,\"{\",CHAR(160),HW$1))+1),\"\")","v":""},{"$f":"IFERROR(MID($Z185,FIND(CHAR(160),SUBSTITUTE($Z185,\"{\",CHAR(160),HX$1)),FIND(CHAR(160),SUBSTITUTE($Z185,\"}\",CHAR(160),HX$1))-FIND(CHAR(160),SUBSTITUTE($Z185,\"{\",CHAR(160),HX$1))+1),\"\")","v":""},{"$f":"IFERROR(MID($Z185,FIND(CHAR(160),SUBSTITUTE($Z185,\"{\",CHAR(160),HY$1)),FIND(CHAR(160),SUBSTITUTE($Z185,\"}\",CHAR(160),HY$1))-FIND(CHAR(160),SUBSTITUTE($Z185,\"{\",CHAR(160),HY$1))+1),\"\")","v":""},{"$f":"IFERROR(MID($Z185,FIND(CHAR(160),SUBSTITUTE($Z185,\"{\",CHAR(160),HZ$1)),FIND(CHAR(160),SUBSTITUTE($Z185,\"}\",CHAR(160),HZ$1))-FIND(CHAR(160),SUBSTITUTE($Z185,\"{\",CHAR(160),HZ$1))+1),\"\")","v":""},{"$f":"IFERROR(MID($Z185,FIND(CHAR(160),SUBSTITUTE($Z185,\"{\",CHAR(160),IA$1)),FIND(CHAR(160),SUBSTITUTE($Z185,\"}\",CHAR(160),IA$1))-FIND(CHAR(160),SUBSTITUTE($Z185,\"{\",CHAR(160),IA$1))+1),\"\")","v":""},{"$f":"IFERROR(MID($Z185,FIND(CHAR(160),SUBSTITUTE($Z185,\"{\",CHAR(160),IB$1)),FIND(CHAR(160),SUBSTITUTE($Z185,\"}\",CHAR(160),IB$1))-FIND(CHAR(160),SUBSTITUTE($Z185,\"{\",CHAR(160),IB$1))+1),\"\")","v":""},{"$f":"IFERROR(MID($Z185,FIND(CHAR(160),SUBSTITUTE($Z185,\"{\",CHAR(160),IC$1)),FIND(CHAR(160),SUBSTITUTE($Z185,\"}\",CHAR(160),IC$1))-FIND(CHAR(160),SUBSTITUTE($Z185,\"{\",CHAR(160),IC$1))+1),\"\")","v":"{Measure:Quantity}"},{"$f":"IFERROR(MID($Z185,FIND(CHAR(160),SUBSTITUTE($Z185,\"{\",CHAR(160),ID$1)),FIND(CHAR(160),SUBSTITUTE($Z185,\"}\",CHAR(160),ID$1))-FIND(CHAR(160),SUBSTITUTE($Z185,\"{\",CHAR(160),ID$1))+1),\"\")","v":"{Package Size}"},{"$f":"IFERROR(MID($AA185,FIND(CHAR(160),SUBSTITUTE($AA185,\"{\",CHAR(160),IE$1)),FIND(CHAR(160),SUBSTITUTE($AA185,\"}\",CHAR(160),IE$1))-FIND(CHAR(160),SUBSTITUTE($AA185,\"{\",CHAR(160),IE$1))+1),\"\")","v":""},{"$f":"IFERROR(MID($AA185,FIND(CHAR(160),SUBSTITUTE($AA185,\"{\",CHAR(160),IF$1)),FIND(CHAR(160),SUBSTITUTE($AA185,\"}\",CHAR(160),IF$1))-FIND(CHAR(160),SUBSTITUTE($AA185,\"{\",CHAR(160),IF$1))+1),\"\")","v":""},{"$f":"IFERROR(MID($AA185,FIND(CHAR(160),SUBSTITUTE($AA185,\"{\",CHAR(160),IG$1)),FIND(CHAR(160),SUBSTITUTE($AA185,\"}\",CHAR(160),IG$1))-FIND(CHAR(160),SUBSTITUTE($AA185,\"{\",CHAR(160),IG$1))+1),\"\")","v":""},{"$f":"IFERROR(MID($AA185,FIND(CHAR(160),SUBSTITUTE($AA185,\"{\",CHAR(160),IH$1)),FIND(CHAR(160),SUBSTITUTE($AA185,\"}\",CHAR(160),IH$1))-FIND(CHAR(160),SUBSTITUTE($AA185,\"{\",CHAR(160),IH$1))+1),\"\")","v":""},{"$f":"IFERROR(MID($AA185,FIND(CHAR(160),SUBSTITUTE($AA185,\"{\",CHAR(160),II$1)),FIND(CHAR(160),SUBSTITUTE($AA185,\"}\",CHAR(160),II$1))-FIND(CHAR(160),SUBSTITUTE($AA185,\"{\",CHAR(160),II$1))+1),\"\")","v":""},{"$f":"IFERROR(MID($AA185,FIND(CHAR(160),SUBSTITUTE($AA185,\"{\",CHAR(160),IJ$1)),FIND(CHAR(160),SUBSTITUTE($AA185,\"}\",CHAR(160),IJ$1))-FIND(CHAR(160),SUBSTITUTE($AA185,\"{\",CHAR(160),IJ$1))+1),\"\")","v":""},{"$f":"IFERROR(MID($AA185,FIND(CHAR(160),SUBSTITUTE($AA185,\"{\",CHAR(160),IK$1)),FIND(CHAR(160),SUBSTITUTE($AA185,\"}\",CHAR(160),IK$1))-FIND(CHAR(160),SUBSTITUTE($AA185,\"{\",CHAR(160),IK$1))+1),\"\")","v":""},{"$f":"IFERROR(MID($AA185,FIND(CHAR(160),SUBSTITUTE($AA185,\"{\",CHAR(160),IL$1)),FIND(CHAR(160),SUBSTITUTE($AA185,\"}\",CHAR(160),IL$1))-FIND(CHAR(160),SUBSTITUTE($AA185,\"{\",CHAR(160),IL$1))+1),\"\")","v":""},{"$f":"IFERROR(MID($AA185,FIND(CHAR(160),SUBSTITUTE($AA185,\"{\",CHAR(160),IM$1)),FIND(CHAR(160),SUBSTITUTE($AA185,\"}\",CHAR(160),IM$1))-FIND(CHAR(160),SUBSTITUTE($AA185,\"{\",CHAR(160),IM$1))+1),\"\")","v":"{Measure:Quantity}"},{"$f":"IFERROR(MID($AA185,FIND(CHAR(160),SUBSTITUTE($AA185,\"{\",CHAR(160),IN$1)),FIND(CHAR(160),SUBSTITUTE($AA185,\"}\",CHAR(160),IN$1))-FIND(CHAR(160),SUBSTITUTE($AA185,\"{\",CHAR(160),IN$1))+1),\"\")","v":"{Package Size}"},{"$f":"IFERROR(MID($AB185,FIND(CHAR(160),SUBSTITUTE($AB185,\"{\",CHAR(160),IO$1)),FIND(CHAR(160),SUBSTITUTE($AB185,\"}\",CHAR(160),IO$1))-FIND(CHAR(160),SUBSTITUTE($AB185,\"{\",CHAR(160),IO$1))+1),\"\")","v":""},{"$f":"IFERROR(MID($AB185,FIND(CHAR(160),SUBSTITUTE($AB185,\"{\",CHAR(160),IP$1)),FIND(CHAR(160),SUBSTITUTE($AB185,\"}\",CHAR(160),IP$1))-FIND(CHAR(160),SUBSTITUTE($AB185,\"{\",CHAR(160),IP$1))+1),\"\")","v":""},{"$f":"IFERROR(MID($AB185,FIND(CHAR(160),SUBSTITUTE($AB185,\"{\",CHAR(160),IQ$1)),FIND(CHAR(160),SUBSTITUTE($AB185,\"}\",CHAR(160),IQ$1))-FIND(CHAR(160),SUBSTITUTE($AB185,\"{\",CHAR(160),IQ$1))+1),\"\")","v":""},{"$f":"IFERROR(MID($AB185,FIND(CHAR(160),SUBSTITUTE($AB185,\"{\",CHAR(160),IR$1)),FIND(CHAR(160),SUBSTITUTE($AB185,\"}\",CHAR(160),IR$1))-FIND(CHAR(160),SUBSTITUTE($AB185,\"{\",CHAR(160),IR$1))+1),\"\")","v":""},{"$f":"IFERROR(MID($AB185,FIND(CHAR(160),SUBSTITUTE($AB185,\"{\",CHAR(160),IS$1)),FIND(CHAR(160),SUBSTITUTE($AB185,\"}\",CHAR(160),IS$1))-FIND(CHAR(160),SUBSTITUTE($AB185,\"{\",CHAR(160),IS$1))+1),\"\")","v":""},{"$f":"IFERROR(MID($AB185,FIND(CHAR(160),SUBSTITUTE($AB185,\"{\",CHAR(160),IT$1)),FIND(CHAR(160),SUBSTITUTE($AB185,\"}\",CHAR(160),IT$1))-FIND(CHAR(160),SUBSTITUTE($AB185,\"{\",CHAR(160),IT$1))+1),\"\")","v":""},{"$f":"IFERROR(MID($AB185,FIND(CHAR(160),SUBSTITUTE($AB185,\"{\",CHAR(160),IU$1)),FIND(CHAR(160),SUBSTITUTE($AB185,\"}\",CHAR(160),IU$1))-FIND(CHAR(160),SUBSTITUTE($AB185,\"{\",CHAR(160),IU$1))+1),\"\")","v":""},{"$f":"IFERROR(MID($AB185,FIND(CHAR(160),SUBSTITUTE($AB185,\"{\",CHAR(160),IV$1)),FIND(CHAR(160),SUBSTITUTE($AB185,\"}\",CHAR(160),IV$1))-FIND(CHAR(160),SUBSTITUTE($AB185,\"{\",CHAR(160),IV$1))+1),\"\")","v":""},{"$f":"IFERROR(MID($AB185,FIND(CHAR(160),SUBSTITUTE($AB185,\"{\",CHAR(160),IW$1)),FIND(CHAR(160),SUBSTITUTE($AB185,\"}\",CHAR(160),IW$1))-FIND(CHAR(160),SUBSTITUTE($AB185,\"{\",CHAR(160),IW$1))+1),\"\")","v":""},{"$f":"IFERROR(MID($AB185,FIND(CHAR(160),SUBSTITUTE($AB185,\"{\",CHAR(160),IX$1)),FIND(CHAR(160),SUBSTITUTE($AB185,\"}\",CHAR(160),IX$1))-FIND(CHAR(160),SUBSTITUTE($AB185,\"{\",CHAR(160),IX$1))+1),\"\")","v":""},null,{"$f":"10-COUNTIF(DU185:ED185,\"\")","v":3}]
["Distributor Lighting","Outdoor_Type_C <5000 lm - long life","S6CLL","2021-07-01","2022-06-30","Calculated","{Measure:Quantity}*{Package Size}*46",0,"Calculated","{Measure:Quantity}*{Rebate per Package}",0,"2021-07-01","2022-06-30","Calculated","{Measure:Quantity}*{Package Size}*476",null,null,"{Measure:Quantity}*{Package Size}*1*0.112",null,null,"{Measure:Quantity}*{Package Size}*{Factor:WinterCF}*0.112","{Measure:Quantity}*{Package Size}*{Factor:SummerCF}*1*0.112","{Measure:Quantity}*{Package Size}*10*0","{Measure:Quantity}*{Package Size}*0","{Measure:Quantity}*{Package Size}*0","{Measure:Quantity}*{Package Size}*0","{Measure:Quantity}*{Package Size}*0",null,"2021-07-01","2022-06-30",12,0.82399999999999995,6.6000000000000003E-2,0.27300000000000002,0.45,9.5000000000000001E-2,0.182,0.99,1,1,0.51,0,null,{"$f":"DU186","v":"{Measure:Quantity}"},1,{"$f":"DV186","v":"{Package Size}"},1,{"$f":"DW186","v":"{Rebate per Package}"},{"$f":"CW186*CO186","v":34.5},{"$f":"DX186","v":""},null,{"$f":"DY186","v":""},null,{"$f":"DZ186","v":""},null,{"$f":"EA186","v":""},null,{"$f":"EB186","v":""},null,{"$f":"EC186","v":""},null,{"$f":"ED186","v":""},null,{"$f":"AS186*AU186*476","v":476},0,0,{"$f":"AS186*AU186*1*0.112","v":0.112},0,0,{"$f":"AS186*AU186*AF186*0.112","v":9.2287999999999995E-2},{"$f":"AS186*AU186*AG186*1*0.112","v":7.3920000000000001E-3},{"$f":"AS186*AU186*10*0","v":0},{"$f":"AS186*AU186*0","v":0},{"$f":"AS186*AU186*0","v":0},{"$f":"AS186*AU186*0","v":0},{"$f":"AS186*AU186*0","v":0},0,null,"Res","Default DR",{"$f":"Benefits(BL186,BR186,BS186,BT186,BU186,BV186,BW186,BX186,BY186,BZ186,AE186,AH186,AI186,AJ186,AK186,AL186,AM186,AN186,AO186,AP186,CA186,CB186)","v":541.23540996610802},296.77539924640564,0,0,0,0,0,0,0,{"$f":"SUMPRODUCT(CC186:CK186,--(CC186:CK186>0))","v":838.01080921251366},{"$f":"-SUMPRODUCT(CC186:CK186,--(CC186:CK186<0))","v":0},null,{"$f":"AS186*AU186*46","v":46},null,null,{"$f":"CM186+CO186","v":46},{"$f":"IF(NetOrGross=\"Net\",(1-AO186+AP186),1)","v":1},{"$f":"(SUMPRODUCT(CC186:CJ186,--(CC186:CJ186>0))+CN186)*CS186/((-SUMPRODUCT(CC186:CJ186,--(CC186:CJ186<0))+MAX(CO186,CV186)+CP186+CQ186)*CS186+IF(FRIncentives=\"Yes\",CV186*(1-CS186),0))","v":18.217626287228558},1,{"$f":"AS186*AW186","v":34.5},{"$f":"CW185","v":0.75},"Electric","y",null,{"$f":"IF(F186=\"Manual Entry\",\"Manual\",IF(G186=\"\",0,\"X=\"&SUBSTITUTE(SUBSTITUTE(SUBSTITUTE(SUBSTITUTE(SUBSTITUTE(SUBSTITUTE(SUBSTITUTE(SUBSTITUTE(SUBSTITUTE(SUBSTITUTE(SUBSTITUTE(SUBSTITUTE(G186,$ED186,$ED$2&ROW($ED186)),$EC186,$EC$2&ROW($EC186)),$EB186,$EB$2&ROW($EB186)),$EA186,$EA$2&ROW($EA186)),$DZ186,$DZ$2&ROW($DZ186)),$DY186,$DY$2&ROW($DY186)),$DX186,$DX$2&ROW($DX186)),$DW186,$DW$2&ROW($DW186)),$DV186,$DV$2&ROW($DV186)),$DU186,$DU$2&ROW($DU186)),$DT186,$DT$2&ROW($DT186)),$DS186,$DS$2&ROW($DS186))))","v":"X=AS186*AU186*46"},{"$f":"IF(I186=\"Manual Entry\",\"Manual\",IF(J186=\"\",0,\"X=\"&SUBSTITUTE(SUBSTITUTE(SUBSTITUTE(SUBSTITUTE(SUBSTITUTE(SUBSTITUTE(SUBSTITUTE(SUBSTITUTE(SUBSTITUTE(SUBSTITUTE(SUBSTITUTE(SUBSTITUTE(J186,$ED186,$ED$2&ROW($ED186)),$EC186,$EC$2&ROW($EC186)),$EB186,$EB$2&ROW($EB186)),$EA186,$EA$2&ROW($EA186)),$DZ186,$DZ$2&ROW($DZ186)),$DY186,$DY$2&ROW($DY186)),$DX186,$DX$2&ROW($DX186)),$DW186,$DW$2&ROW($DW186)),$DV186,$DV$2&ROW($DV186)),$DU186,$DU$2&ROW($DU186)),$DT186,$DT$2&ROW($DT186)),$DS186,$DS$2&ROW($DS186))))","v":"X=AS186*AW186"},{"$f":"IF(O186=\"\",0,\"X=\"&SUBSTITUTE(SUBSTITUTE(SUBSTITUTE(SUBSTITUTE(SUBSTITUTE(SUBSTITUTE(SUBSTITUTE(SUBSTITUTE(SUBSTITUTE(SUBSTITUTE(SUBSTITUTE(SUBSTITUTE(O186,$ED186,$ED$2&ROW($ED186)),$EC186,$EC$2&ROW($EC186)),$EB186,$EB$2&ROW($EB186)),$EA186,$EA$2&ROW($EA186)),$DZ186,$DZ$2&ROW($DZ186)),$DY186,$DY$2&ROW($DY186)),$DX186,$DX$2&ROW($DX186)),$DW186,$DW$2&ROW($DW186)),$DV186,$DV$2&ROW($DV186)),$DU186,$DU$2&ROW($DU186)),$DT186,$DT$2&ROW($DT186)),$DS186,$DS$2&ROW($DS186)))","v":"X=AS186*AU186*476"},{"$f":"IF(P186=\"\",0,\"X=\"&SUBSTITUTE(SUBSTITUTE(SUBSTITUTE(SUBSTITUTE(SUBSTITUTE(SUBSTITUTE(SUBSTITUTE(SUBSTITUTE(SUBSTITUTE(SUBSTITUTE(SUBSTITUTE(SUBSTITUTE(P186,$ED186,$ED$2&ROW($ED186)),$EC186,$EC$2&ROW($EC186)),$EB186,$EB$2&ROW($EB186)),$EA186,$EA$2&ROW($EA186)),$DZ186,$DZ$2&ROW($DZ186)),$DY186,$DY$2&ROW($DY186)),$DX186,$DX$2&ROW($DX186)),$DW186,$DW$2&ROW($DW186)),$DV186,$DV$2&ROW($DV186)),$DU186,$DU$2&ROW($DU186)),$DT186,$DT$2&ROW($DT186)),$DS186,$DS$2&ROW($DS186)))","v":0},{"$f":"IF(Q186=\"\",0,\"X=\"&SUBSTITUTE(SUBSTITUTE(SUBSTITUTE(SUBSTITUTE(SUBSTITUTE(SUBSTITUTE(SUBSTITUTE(SUBSTITUTE(SUBSTITUTE(SUBSTITUTE(SUBSTITUTE(SUBSTITUTE(Q186,$ED186,$ED$2&ROW($ED186)),$EC186,$EC$2&ROW($EC186)),$EB186,$EB$2&ROW($EB186)),$EA186,$EA$2&ROW($EA186)),$DZ186,$DZ$2&ROW($DZ186)),$DY186,$DY$2&ROW($DY186)),$DX186,$DX$2&ROW($DX186)),$DW186,$DW$2&ROW($DW186)),$DV186,$DV$2&ROW($DV186)),$DU186,$DU$2&ROW($DU186)),$DT186,$DT$2&ROW($DT186)),$DS186,$DS$2&ROW($DS186)))","v":0},{"$f":"IF(R186=\"\",0,\"X=\"&SUBSTITUTE(SUBSTITUTE(SUBSTITUTE(SUBSTITUTE(SUBSTITUTE(SUBSTITUTE(SUBSTITUTE(SUBSTITUTE(SUBSTITUTE(SUBSTITUTE(SUBSTITUTE(SUBSTITUTE(R186,$ED186,$ED$2&ROW($ED186)),$EC186,$EC$2&ROW($EC186)),$EB186,$EB$2&ROW($EB186)),$EA186,$EA$2&ROW($EA186)),$DZ186,$DZ$2&ROW($DZ186)),$DY186,$DY$2&ROW($DY186)),$DX186,$DX$2&ROW($DX186)),$DW186,$DW$2&ROW($DW186)),$DV186,$DV$2&ROW($DV186)),$DU186,$DU$2&ROW($DU186)),$DT186,$DT$2&ROW($DT186)),$DS186,$DS$2&ROW($DS186)))","v":"X=AS186*AU186*1*0.112"},{"$f":"IF(S186=\"\",0,\"X=\"&SUBSTITUTE(SUBSTITUTE(SUBSTITUTE(SUBSTITUTE(SUBSTITUTE(SUBSTITUTE(SUBSTITUTE(SUBSTITUTE(SUBSTITUTE(SUBSTITUTE(SUBSTITUTE(SUBSTITUTE(S186,$ED186,$ED$2&ROW($ED186)),$EC186,$EC$2&ROW($EC186)),$EB186,$EB$2&ROW($EB186)),$EA186,$EA$2&ROW($EA186)),$DZ186,$DZ$2&ROW($DZ186)),$DY186,$DY$2&ROW($DY186)),$DX186,$DX$2&ROW($DX186)),$DW186,$DW$2&ROW($DW186)),$DV186,$DV$2&ROW($DV186)),$DU186,$DU$2&ROW($DU186)),$DT186,$DT$2&ROW($DT186)),$DS186,$DS$2&ROW($DS186)))","v":0},{"$f":"IF(T186=\"\",0,\"X=\"&SUBSTITUTE(SUBSTITUTE(SUBSTITUTE(SUBSTITUTE(SUBSTITUTE(SUBSTITUTE(SUBSTITUTE(SUBSTITUTE(SUBSTITUTE(SUBSTITUTE(SUBSTITUTE(SUBSTITUTE(T186,$ED186,$ED$2&ROW($ED186)),$EC186,$EC$2&ROW($EC186)),$EB186,$EB$2&ROW($EB186)),$EA186,$EA$2&ROW($EA186)),$DZ186,$DZ$2&ROW($DZ186)),$DY186,$DY$2&ROW($DY186)),$DX186,$DX$2&ROW($DX186)),$DW186,$DW$2&ROW($DW186)),$DV186,$DV$2&ROW($DV186)),$DU186,$DU$2&ROW($DU186)),$DT186,$DT$2&ROW($DT186)),$DS186,$DS$2&ROW($DS186)))","v":0},{"$f":"IF(U186=\"\",0,\"X=\"&SUBSTITUTE(SUBSTITUTE(SUBSTITUTE(SUBSTITUTE(SUBSTITUTE(SUBSTITUTE(SUBSTITUTE(SUBSTITUTE(SUBSTITUTE(SUBSTITUTE(SUBSTITUTE(SUBSTITUTE(U186,$ED186,$ED$2&ROW($ED186)),$EC186,$EC$2&ROW($EC186)),$EB186,$EB$2&ROW($EB186)),$EA186,$EA$2&ROW($EA186)),$DZ186,$DZ$2&ROW($DZ186)),$DY186,$DY$2&ROW($DY186)),$DX186,$DX$2&ROW($DX186)),$DW186,$DW$2&ROW($DW186)),$DV186,$DV$2&ROW($DV186)),$DU186,$DU$2&ROW($DU186)),$DT186,$DT$2&ROW($DT186)),$DS186,$DS$2&ROW($DS186)))","v":"X=AS186*AU186*AF186*0.112"},{"$f":"IF(V186=\"\",0,\"X=\"&SUBSTITUTE(SUBSTITUTE(SUBSTITUTE(SUBSTITUTE(SUBSTITUTE(SUBSTITUTE(SUBSTITUTE(SUBSTITUTE(SUBSTITUTE(SUBSTITUTE(SUBSTITUTE(SUBSTITUTE(V186,$ED186,$ED$2&ROW($ED186)),$EC186,$EC$2&ROW($EC186)),$EB186,$EB$2&ROW($EB186)),$EA186,$EA$2&ROW($EA186)),$DZ186,$DZ$2&ROW($DZ186)),$DY186,$DY$2&ROW($DY186)),$DX186,$DX$2&ROW($DX186)),$DW186,$DW$2&ROW($DW186)),$DV186,$DV$2&ROW($DV186)),$DU186,$DU$2&ROW($DU186)),$DT186,$DT$2&ROW($DT186)),$DS186,$DS$2&ROW($DS186)))","v":"X=AS186*AU186*AG186*1*0.112"},{"$f":"IF(W186=\"\",0,\"X=\"&SUBSTITUTE(SUBSTITUTE(SUBSTITUTE(SUBSTITUTE(SUBSTITUTE(SUBSTITUTE(SUBSTITUTE(SUBSTITUTE(SUBSTITUTE(SUBSTITUTE(SUBSTITUTE(SUBSTITUTE(W186,$ED186,$ED$2&ROW($ED186)),$EC186,$EC$2&ROW($EC186)),$EB186,$EB$2&ROW($EB186)),$EA186,$EA$2&ROW($EA186)),$DZ186,$DZ$2&ROW($DZ186)),$DY186,$DY$2&ROW($DY186)),$DX186,$DX$2&ROW($DX186)),$DW186,$DW$2&ROW($DW186)),$DV186,$DV$2&ROW($DV186)),$DU186,$DU$2&ROW($DU186)),$DT186,$DT$2&ROW($DT186)),$DS186,$DS$2&ROW($DS186)))","v":"X=AS186*AU186*10*0"},{"$f":"IF(X186=\"\",0,\"X=\"&SUBSTITUTE(SUBSTITUTE(SUBSTITUTE(SUBSTITUTE(SUBSTITUTE(SUBSTITUTE(SUBSTITUTE(SUBSTITUTE(SUBSTITUTE(SUBSTITUTE(SUBSTITUTE(SUBSTITUTE(X186,$ED186,$ED$2&ROW($ED186)),$EC186,$EC$2&ROW($EC186)),$EB186,$EB$2&ROW($EB186)),$EA186,$EA$2&ROW($EA186)),$DZ186,$DZ$2&ROW($DZ186)),$DY186,$DY$2&ROW($DY186)),$DX186,$DX$2&ROW($DX186)),$DW186,$DW$2&ROW($DW186)),$DV186,$DV$2&ROW($DV186)),$DU186,$DU$2&ROW($DU186)),$DT186,$DT$2&ROW($DT186)),$DS186,$DS$2&ROW($DS186)))","v":"X=AS186*AU186*0"},{"$f":"IF(Y186=\"\",0,\"X=\"&SUBSTITUTE(SUBSTITUTE(SUBSTITUTE(SUBSTITUTE(SUBSTITUTE(SUBSTITUTE(SUBSTITUTE(SUBSTITUTE(SUBSTITUTE(SUBSTITUTE(SUBSTITUTE(SUBSTITUTE(Y186,$ED186,$ED$2&ROW($ED186)),$EC186,$EC$2&ROW($EC186)),$EB186,$EB$2&ROW($EB186)),$EA186,$EA$2&ROW($EA186)),$DZ186,$DZ$2&ROW($DZ186)),$DY186,$DY$2&ROW($DY186)),$DX186,$DX$2&ROW($DX186)),$DW186,$DW$2&ROW($DW186)),$DV186,$DV$2&ROW($DV186)),$DU186,$DU$2&ROW($DU186)),$DT186,$DT$2&ROW($DT186)),$DS186,$DS$2&ROW($DS186)))","v":"X=AS186*AU186*0"},{"$f":"IF(Z186=\"\",0,\"X=\"&SUBSTITUTE(SUBSTITUTE(SUBSTITUTE(SUBSTITUTE(SUBSTITUTE(SUBSTITUTE(SUBSTITUTE(SUBSTITUTE(SUBSTITUTE(SUBSTITUTE(SUBSTITUTE(SUBSTITUTE(Z186,$ED186,$ED$2&ROW($ED186)),$EC186,$EC$2&ROW($EC186)),$EB186,$EB$2&ROW($EB186)),$EA186,$EA$2&ROW($EA186)),$DZ186,$DZ$2&ROW($DZ186)),$DY186,$DY$2&ROW($DY186)),$DX186,$DX$2&ROW($DX186)),$DW186,$DW$2&ROW($DW186)),$DV186,$DV$2&ROW($DV186)),$DU186,$DU$2&ROW($DU186)),$DT186,$DT$2&ROW($DT186)),$DS186,$DS$2&ROW($DS186)))","v":"X=AS186*AU186*0"},{"$f":"IF(AA186=\"\",0,\"X=\"&SUBSTITUTE(SUBSTITUTE(SUBSTITUTE(SUBSTITUTE(SUBSTITUTE(SUBSTITUTE(SUBSTITUTE(SUBSTITUTE(SUBSTITUTE(SUBSTITUTE(SUBSTITUTE(SUBSTITUTE(AA186,$ED186,$ED$2&ROW($ED186)),$EC186,$EC$2&ROW($EC186)),$EB186,$EB$2&ROW($EB186)),$EA186,$EA$2&ROW($EA186)),$DZ186,$DZ$2&ROW($DZ186)),$DY186,$DY$2&ROW($DY186)),$DX186,$DX$2&ROW($DX186)),$DW186,$DW$2&ROW($DW186)),$DV186,$DV$2&ROW($DV186)),$DU186,$DU$2&ROW($DU186)),$DT186,$DT$2&ROW($DT186)),$DS186,$DS$2&ROW($DS186)))","v":"X=AS186*AU186*0"},{"$f":"IF(AB186=\"\",0,\"X=\"&SUBSTITUTE(SUBSTITUTE(SUBSTITUTE(SUBSTITUTE(SUBSTITUTE(SUBSTITUTE(SUBSTITUTE(SUBSTITUTE(SUBSTITUTE(SUBSTITUTE(SUBSTITUTE(SUBSTITUTE(AB186,$ED186,$ED$2&ROW($ED186)),$EC186,$EC$2&ROW($EC186)),$EB186,$EB$2&ROW($EB186)),$EA186,$EA$2&ROW($EA186)),$DZ186,$DZ$2&ROW($DZ186)),$DY186,$DY$2&ROW($DY186)),$DX186,$DX$2&ROW($DX186)),$DW186,$DW$2&ROW($DW186)),$DV186,$DV$2&ROW($DV186)),$DU186,$DU$2&ROW($DU186)),$DT186,$DT$2&ROW($DT186)),$DS186,$DS$2&ROW($DS186)))","v":0},null,null,"{Factor:WinterCF}","{Factor:SummerCF}",{"$f":"IFERROR(INDEX($EG186:$IV186,MATCH(0,COUNTIF($DR186:DT186,$EG186:$IV186),0)),\"\")","v":"{Measure:Quantity}"},{"$f":"IFERROR(INDEX($EG186:$IV186,MATCH(0,COUNTIF($DR186:DU186,$EG186:$IV186),0)),\"\")","v":"{Package Size}"},{"$f":"IFERROR(INDEX($EG186:$IV186,MATCH(0,COUNTIF($DR186:DV186,$EG186:$IV186),0)),\"\")","v":"{Rebate per Package}"},{"$f":"IFERROR(INDEX($EG186:$IV186,MATCH(0,COUNTIF($DR186:DW186,$EG186:$IV186),0)),\"\")","v":""},{"$f":"IFERROR(INDEX($EG186:$IV186,MATCH(0,COUNTIF($DR186:DX186,$EG186:$IV186),0)),\"\")","v":""},{"$f":"IFERROR(INDEX($EG186:$IV186,MATCH(0,COUNTIF($DR186:DY186,$EG186:$IV186),0)),\"\")","v":""},{"$f":"IFERROR(INDEX($EG186:$IV186,MATCH(0,COUNTIF($DR186:DZ186,$EG186:$IV186),0)),\"\")","v":""},{"$f":"IFERROR(INDEX($EG186:$IV186,MATCH(0,COUNTIF($DR186:EA186,$EG186:$IV186),0)),\"\")","v":""},{"$f":"IFERROR(INDEX($EG186:$IV186,MATCH(0,COUNTIF($DR186:EB186,$EG186:$IV186),0)),\"\")","v":""},{"$f":"IFERROR(INDEX($EG186:$IV186,MATCH(0,COUNTIF($DR186:EC186,$EG186:$IV186),0)),\"\")","v":""},null,null,{"$f":"IFERROR(MID($G186,FIND(CHAR(160),SUBSTITUTE($G186,\"{\",CHAR(160),EG$1)),FIND(CHAR(160),SUBSTITUTE($G186,\"}\",CHAR(160),EG$1))-FIND(CHAR(160),SUBSTITUTE($G186,\"{\",CHAR(160),EG$1))+1),\"\")","v":"{Measure:Quantity}"},{"$f":"IFERROR(MID($G186,FIND(CHAR(160),SUBSTITUTE($G186,\"{\",CHAR(160),EH$1)),FIND(CHAR(160),SUBSTITUTE($G186,\"}\",CHAR(160),EH$1))-FIND(CHAR(160),SUBSTITUTE($G186,\"{\",CHAR(160),EH$1))+1),\"\")","v":"{Package Size}"},{"$f":"IFERROR(MID($G186,FIND(CHAR(160),SUBSTITUTE($G186,\"{\",CHAR(160),EI$1)),FIND(CHAR(160),SUBSTITUTE($G186,\"}\",CHAR(160),EI$1))-FIND(CHAR(160),SUBSTITUTE($G186,\"{\",CHAR(160),EI$1))+1),\"\")","v":""},{"$f":"IFERROR(MID($G186,FIND(CHAR(160),SUBSTITUTE($G186,\"{\",CHAR(160),EJ$1)),FIND(CHAR(160),SUBSTITUTE($G186,\"}\",CHAR(160),EJ$1))-FIND(CHAR(160),SUBSTITUTE($G186,\"{\",CHAR(160),EJ$1))+1),\"\")","v":""},{"$f":"IFERROR(MID($G186,FIND(CHAR(160),SUBSTITUTE($G186,\"{\",CHAR(160),EK$1)),FIND(CHAR(160),SUBSTITUTE($G186,\"}\",CHAR(160),EK$1))-FIND(CHAR(160),SUBSTITUTE($G186,\"{\",CHAR(160),EK$1))+1),\"\")","v":""},{"$f":"IFERROR(MID($G186,FIND(CHAR(160),SUBSTITUTE($G186,\"{\",CHAR(160),EL$1)),FIND(CHAR(160),SUBSTITUTE($G186,\"}\",CHAR(160),EL$1))-FIND(CHAR(160),SUBSTITUTE($G186,\"{\",CHAR(160),EL$1))+1),\"\")","v":""},{"$f":"IFERROR(MID($G186,FIND(CHAR(160),SUBSTITUTE($G186,\"{\",CHAR(160),EM$1)),FIND(CHAR(160),SUBSTITUTE($G186,\"}\",CHAR(160),EM$1))-FIND(CHAR(160),SUBSTITUTE($G186,\"{\",CHAR(160),EM$1))+1),\"\")","v":""},{"$f":"IFERROR(MID($G186,FIND(CHAR(160),SUBSTITUTE($G186,\"{\",CHAR(160),EN$1)),FIND(CHAR(160),SUBSTITUTE($G186,\"}\",CHAR(160),EN$1))-FIND(CHAR(160),SUBSTITUTE($G186,\"{\",CHAR(160),EN$1))+1),\"\")","v":""},{"$f":"IFERROR(MID($G186,FIND(CHAR(160),SUBSTITUTE($G186,\"{\",CHAR(160),EO$1)),FIND(CHAR(160),SUBSTITUTE($G186,\"}\",CHAR(160),EO$1))-FIND(CHAR(160),SUBSTITUTE($G186,\"{\",CHAR(160),EO$1))+1),\"\")","v":""},{"$f":"IFERROR(MID($G186,FIND(CHAR(160),SUBSTITUTE($G186,\"{\",CHAR(160),EP$1)),FIND(CHAR(160),SUBSTITUTE($G186,\"}\",CHAR(160),EP$1))-FIND(CHAR(160),SUBSTITUTE($G186,\"{\",CHAR(160),EP$1))+1),\"\")","v":""},{"$f":"IFERROR(MID($J186,FIND(CHAR(160),SUBSTITUTE($J186,\"{\",CHAR(160),EQ$1)),FIND(CHAR(160),SUBSTITUTE($J186,\"}\",CHAR(160),EQ$1))-FIND(CHAR(160),SUBSTITUTE($J186,\"{\",CHAR(160),EQ$1))+1),\"\")","v":"{Measure:Quantity}"},{"$f":"IFERROR(MID($J186,FIND(CHAR(160),SUBSTITUTE($J186,\"{\",CHAR(160),ER$1)),FIND(CHAR(160),SUBSTITUTE($J186,\"}\",CHAR(160),ER$1))-FIND(CHAR(160),SUBSTITUTE($J186,\"{\",CHAR(160),ER$1))+1),\"\")","v":"{Rebate per Package}"},{"$f":"IFERROR(MID($J186,FIND(CHAR(160),SUBSTITUTE($J186,\"{\",CHAR(160),ES$1)),FIND(CHAR(160),SUBSTITUTE($J186,\"}\",CHAR(160),ES$1))-FIND(CHAR(160),SUBSTITUTE($J186,\"{\",CHAR(160),ES$1))+1),\"\")","v":""},{"$f":"IFERROR(MID($J186,FIND(CHAR(160),SUBSTITUTE($J186,\"{\",CHAR(160),ET$1)),FIND(CHAR(160),SUBSTITUTE($J186,\"}\",CHAR(160),ET$1))-FIND(CHAR(160),SUBSTITUTE($J186,\"{\",CHAR(160),ET$1))+1),\"\")","v":""},{"$f":"IFERROR(MID($J186,FIND(CHAR(160),SUBSTITUTE($J186,\"{\",CHAR(160),EU$1)),FIND(CHAR(160),SUBSTITUTE($J186,\"}\",CHAR(160),EU$1))-FIND(CHAR(160),SUBSTITUTE($J186,\"{\",CHAR(160),EU$1))+1),\"\")","v":""},{"$f":"IFERROR(MID($J186,FIND(CHAR(160),SUBSTITUTE($J186,\"{\",CHAR(160),EV$1)),FIND(CHAR(160),SUBSTITUTE($J186,\"}\",CHAR(160),EV$1))-FIND(CHAR(160),SUBSTITUTE($J186,\"{\",CHAR(160),EV$1))+1),\"\")","v":""},{"$f":"IFERROR(MID($J186,FIND(CHAR(160),SUBSTITUTE($J186,\"{\",CHAR(160),EW$1)),FIND(CHAR(160),SUBSTITUTE($J186,\"}\",CHAR(160),EW$1))-FIND(CHAR(160),SUBSTITUTE($J186,\"{\",CHAR(160),EW$1))+1),\"\")","v":""},{"$f":"IFERROR(MID($J186,FIND(CHAR(160),SUBSTITUTE($J186,\"{\",CHAR(160),EX$1)),FIND(CHAR(160),SUBSTITUTE($J186,\"}\",CHAR(160),EX$1))-FIND(CHAR(160),SUBSTITUTE($J186,\"{\",CHAR(160),EX$1))+1),\"\")","v":""},{"$f":"IFERROR(MID($J186,FIND(CHAR(160),SUBSTITUTE($J186,\"{\",CHAR(160),EY$1)),FIND(CHAR(160),SUBSTITUTE($J186,\"}\",CHAR(160),EY$1))-FIND(CHAR(160),SUBSTITUTE($J186,\"{\",CHAR(160),EY$1))+1),\"\")","v":""},{"$f":"IFERROR(MID($J186,FIND(CHAR(160),SUBSTITUTE($J186,\"{\",CHAR(160),EZ$1)),FIND(CHAR(160),SUBSTITUTE($J186,\"}\",CHAR(160),EZ$1))-FIND(CHAR(160),SUBSTITUTE($J186,\"{\",CHAR(160),EZ$1))+1),\"\")","v":""},{"$f":"IFERROR(MID($J186,FIND(CHAR(160),SUBSTITUTE($J186,\"{\",CHAR(160),FA$1)),FIND(CHAR(160),SUBSTITUTE($J186,\"}\",CHAR(160),FA$1))-FIND(CHAR(160),SUBSTITUTE($J186,\"{\",CHAR(160),FA$1))+1),\"\")","v":"{Measure:Quantity}"},{"$f":"IFERROR(MID($J186,FIND(CHAR(160),SUBSTITUTE($J186,\"{\",CHAR(160),FB$1)),FIND(CHAR(160),SUBSTITUTE($J186,\"}\",CHAR(160),FB$1))-FIND(CHAR(160),SUBSTITUTE($J186,\"{\",CHAR(160),FB$1))+1),\"\")","v":"{Rebate per Package}"},{"$f":"IFERROR(MID($O186,FIND(CHAR(160),SUBSTITUTE($O186,\"{\",CHAR(160),FC$1)),FIND(CHAR(160),SUBSTITUTE($O186,\"}\",CHAR(160),FC$1))-FIND(CHAR(160),SUBSTITUTE($O186,\"{\",CHAR(160),FC$1))+1),\"\")","v":""},{"$f":"IFERROR(MID($O186,FIND(CHAR(160),SUBSTITUTE($O186,\"{\",CHAR(160),FD$1)),FIND(CHAR(160),SUBSTITUTE($O186,\"}\",CHAR(160),FD$1))-FIND(CHAR(160),SUBSTITUTE($O186,\"{\",CHAR(160),FD$1))+1),\"\")","v":""},{"$f":"IFERROR(MID($O186,FIND(CHAR(160),SUBSTITUTE($O186,\"{\",CHAR(160),FE$1)),FIND(CHAR(160),SUBSTITUTE($O186,\"}\",CHAR(160),FE$1))-FIND(CHAR(160),SUBSTITUTE($O186,\"{\",CHAR(160),FE$1))+1),\"\")","v":""},{"$f":"IFERROR(MID($O186,FIND(CHAR(160),SUBSTITUTE($O186,\"{\",CHAR(160),FF$1)),FIND(CHAR(160),SUBSTITUTE($O186,\"}\",CHAR(160),FF$1))-FIND(CHAR(160),SUBSTITUTE($O186,\"{\",CHAR(160),FF$1))+1),\"\")","v":""},{"$f":"IFERROR(MID($O186,FIND(CHAR(160),SUBSTITUTE($O186,\"{\",CHAR(160),FG$1)),FIND(CHAR(160),SUBSTITUTE($O186,\"}\",CHAR(160),FG$1))-FIND(CHAR(160),SUBSTITUTE($O186,\"{\",CHAR(160),FG$1))+1),\"\")","v":""},{"$f":"IFERROR(MID($O186,FIND(CHAR(160),SUBSTITUTE($O186,\"{\",CHAR(160),FH$1)),FIND(CHAR(160),SUBSTITUTE($O186,\"}\",CHAR(160),FH$1))-FIND(CHAR(160),SUBSTITUTE($O186,\"{\",CHAR(160),FH$1))+1),\"\")","v":""},{"$f":"IFERROR(MID($O186,FIND(CHAR(160),SUBSTITUTE($O186,\"{\",CHAR(160),FI$1)),FIND(CHAR(160),SUBSTITUTE($O186,\"}\",CHAR(160),FI$1))-FIND(CHAR(160),SUBSTITUTE($O186,\"{\",CHAR(160),FI$1))+1),\"\")","v":""},{"$f":"IFERROR(MID($O186,FIND(CHAR(160),SUBSTITUTE($O186,\"{\",CHAR(160),FJ$1)),FIND(CHAR(160),SUBSTITUTE($O186,\"}\",CHAR(160),FJ$1))-FIND(CHAR(160),SUBSTITUTE($O186,\"{\",CHAR(160),FJ$1))+1),\"\")","v":""},{"$f":"IFERROR(MID($O186,FIND(CHAR(160),SUBSTITUTE($O186,\"{\",CHAR(160),FK$1)),FIND(CHAR(160),SUBSTITUTE($O186,\"}\",CHAR(160),FK$1))-FIND(CHAR(160),SUBSTITUTE($O186,\"{\",CHAR(160),FK$1))+1),\"\")","v":"{Measure:Quantity}"},{"$f":"IFERROR(MID($O186,FIND(CHAR(160),SUBSTITUTE($O186,\"{\",CHAR(160),FL$1)),FIND(CHAR(160),SUBSTITUTE($O186,\"}\",CHAR(160),FL$1))-FIND(CHAR(160),SUBSTITUTE($O186,\"{\",CHAR(160),FL$1))+1),\"\")","v":"{Package Size}"},{"$f":"IFERROR(MID($R186,FIND(CHAR(160),SUBSTITUTE($R186,\"{\",CHAR(160),FM$1)),FIND(CHAR(160),SUBSTITUTE($R186,\"}\",CHAR(160),FM$1))-FIND(CHAR(160),SUBSTITUTE($R186,\"{\",CHAR(160),FM$1))+1),\"\")","v":""},{"$f":"IFERROR(MID($R186,FIND(CHAR(160),SUBSTITUTE($R186,\"{\",CHAR(160),FN$1)),FIND(CHAR(160),SUBSTITUTE($R186,\"}\",CHAR(160),FN$1))-FIND(CHAR(160),SUBSTITUTE($R186,\"{\",CHAR(160),FN$1))+1),\"\")","v":""},{"$f":"IFERROR(MID($R186,FIND(CHAR(160),SUBSTITUTE($R186,\"{\",CHAR(160),FO$1)),FIND(CHAR(160),SUBSTITUTE($R186,\"}\",CHAR(160),FO$1))-FIND(CHAR(160),SUBSTITUTE($R186,\"{\",CHAR(160),FO$1))+1),\"\")","v":""},{"$f":"IFERROR(MID($R186,FIND(CHAR(160),SUBSTITUTE($R186,\"{\",CHAR(160),FP$1)),FIND(CHAR(160),SUBSTITUTE($R186,\"}\",CHAR(160),FP$1))-FIND(CHAR(160),SUBSTITUTE($R186,\"{\",CHAR(160),FP$1))+1),\"\")","v":""},{"$f":"IFERROR(MID($R186,FIND(CHAR(160),SUBSTITUTE($R186,\"{\",CHAR(160),FQ$1)),FIND(CHAR(160),SUBSTITUTE($R186,\"}\",CHAR(160),FQ$1))-FIND(CHAR(160),SUBSTITUTE($R186,\"{\",CHAR(160),FQ$1))+1),\"\")","v":""},{"$f":"IFERROR(MID($R186,FIND(CHAR(160),SUBSTITUTE($R186,\"{\",CHAR(160),FR$1)),FIND(CHAR(160),SUBSTITUTE($R186,\"}\",CHAR(160),FR$1))-FIND(CHAR(160),SUBSTITUTE($R186,\"{\",CHAR(160),FR$1))+1),\"\")","v":""},{"$f":"IFERROR(MID($R186,FIND(CHAR(160),SUBSTITUTE($R186,\"{\",CHAR(160),FS$1)),FIND(CHAR(160),SUBSTITUTE($R186,\"}\",CHAR(160),FS$1))-FIND(CHAR(160),SUBSTITUTE($R186,\"{\",CHAR(160),FS$1))+1),\"\")","v":""},{"$f":"IFERROR(MID($R186,FIND(CHAR(160),SUBSTITUTE($R186,\"{\",CHAR(160),FT$1)),FIND(CHAR(160),SUBSTITUTE($R186,\"}\",CHAR(160),FT$1))-FIND(CHAR(160),SUBSTITUTE($R186,\"{\",CHAR(160),FT$1))+1),\"\")","v":""},{"$f":"IFERROR(MID($R186,FIND(CHAR(160),SUBSTITUTE($R186,\"{\",CHAR(160),FU$1)),FIND(CHAR(160),SUBSTITUTE($R186,\"}\",CHAR(160),FU$1))-FIND(CHAR(160),SUBSTITUTE($R186,\"{\",CHAR(160),FU$1))+1),\"\")","v":"{Measure:Quantity}"},{"$f":"IFERROR(MID($R186,FIND(CHAR(160),SUBSTITUTE($R186,\"{\",CHAR(160),FV$1)),FIND(CHAR(160),SUBSTITUTE($R186,\"}\",CHAR(160),FV$1))-FIND(CHAR(160),SUBSTITUTE($R186,\"{\",CHAR(160),FV$1))+1),\"\")","v":"{Package Size}"},{"$f":"IFERROR(MID($U186,FIND(CHAR(160),SUBSTITUTE($U186,\"{\",CHAR(160),FW$1)),FIND(CHAR(160),SUBSTITUTE($U186,\"}\",CHAR(160),FW$1))-FIND(CHAR(160),SUBSTITUTE($U186,\"{\",CHAR(160),FW$1))+1),\"\")","v":"{Factor:WinterCF}"},{"$f":"IFERROR(MID($U186,FIND(CHAR(160),SUBSTITUTE($U186,\"{\",CHAR(160),FX$1)),FIND(CHAR(160),SUBSTITUTE($U186,\"}\",CHAR(160),FX$1))-FIND(CHAR(160),SUBSTITUTE($U186,\"{\",CHAR(160),FX$1))+1),\"\")","v":""},{"$f":"IFERROR(MID($U186,FIND(CHAR(160),SUBSTITUTE($U186,\"{\",CHAR(160),FY$1)),FIND(CHAR(160),SUBSTITUTE($U186,\"}\",CHAR(160),FY$1))-FIND(CHAR(160),SUBSTITUTE($U186,\"{\",CHAR(160),FY$1))+1),\"\")","v":""},{"$f":"IFERROR(MID($U186,FIND(CHAR(160),SUBSTITUTE($U186,\"{\",CHAR(160),FZ$1)),FIND(CHAR(160),SUBSTITUTE($U186,\"}\",CHAR(160),FZ$1))-FIND(CHAR(160),SUBSTITUTE($U186,\"{\",CHAR(160),FZ$1))+1),\"\")","v":""},{"$f":"IFERROR(MID($U186,FIND(CHAR(160),SUBSTITUTE($U186,\"{\",CHAR(160),GA$1)),FIND(CHAR(160),SUBSTITUTE($U186,\"}\",CHAR(160),GA$1))-FIND(CHAR(160),SUBSTITUTE($U186,\"{\",CHAR(160),GA$1))+1),\"\")","v":""},{"$f":"IFERROR(MID($U186,FIND(CHAR(160),SUBSTITUTE($U186,\"{\",CHAR(160),GB$1)),FIND(CHAR(160),SUBSTITUTE($U186,\"}\",CHAR(160),GB$1))-FIND(CHAR(160),SUBSTITUTE($U186,\"{\",CHAR(160),GB$1))+1),\"\")","v":""},{"$f":"IFERROR(MID($U186,FIND(CHAR(160),SUBSTITUTE($U186,\"{\",CHAR(160),GC$1)),FIND(CHAR(160),SUBSTITUTE($U186,\"}\",CHAR(160),GC$1))-FIND(CHAR(160),SUBSTITUTE($U186,\"{\",CHAR(160),GC$1))+1),\"\")","v":""},{"$f":"IFERROR(MID($U186,FIND(CHAR(160),SUBSTITUTE($U186,\"{\",CHAR(160),GD$1)),FIND(CHAR(160),SUBSTITUTE($U186,\"}\",CHAR(160),GD$1))-FIND(CHAR(160),SUBSTITUTE($U186,\"{\",CHAR(160),GD$1))+1),\"\")","v":""},{"$f":"IFERROR(MID($U186,FIND(CHAR(160),SUBSTITUTE($U186,\"{\",CHAR(160),GE$1)),FIND(CHAR(160),SUBSTITUTE($U186,\"}\",CHAR(160),GE$1))-FIND(CHAR(160),SUBSTITUTE($U186,\"{\",CHAR(160),GE$1))+1),\"\")","v":"{Measure:Quantity}"},{"$f":"IFERROR(MID($U186,FIND(CHAR(160),SUBSTITUTE($U186,\"{\",CHAR(160),GF$1)),FIND(CHAR(160),SUBSTITUTE($U186,\"}\",CHAR(160),GF$1))-FIND(CHAR(160),SUBSTITUTE($U186,\"{\",CHAR(160),GF$1))+1),\"\")","v":"{Package Size}"},{"$f":"IFERROR(MID($V186,FIND(CHAR(160),SUBSTITUTE($V186,\"{\",CHAR(160),GG$1)),FIND(CHAR(160),SUBSTITUTE($V186,\"}\",CHAR(160),GG$1))-FIND(CHAR(160),SUBSTITUTE($V186,\"{\",CHAR(160),GG$1))+1),\"\")","v":"{Factor:SummerCF}"},{"$f":"IFERROR(MID($V186,FIND(CHAR(160),SUBSTITUTE($V186,\"{\",CHAR(160),GH$1)),FIND(CHAR(160),SUBSTITUTE($V186,\"}\",CHAR(160),GH$1))-FIND(CHAR(160),SUBSTITUTE($V186,\"{\",CHAR(160),GH$1))+1),\"\")","v":""},{"$f":"IFERROR(MID($V186,FIND(CHAR(160),SUBSTITUTE($V186,\"{\",CHAR(160),GI$1)),FIND(CHAR(160),SUBSTITUTE($V186,\"}\",CHAR(160),GI$1))-FIND(CHAR(160),SUBSTITUTE($V186,\"{\",CHAR(160),GI$1))+1),\"\")","v":""},{"$f":"IFERROR(MID($V186,FIND(CHAR(160),SUBSTITUTE($V186,\"{\",CHAR(160),GJ$1)),FIND(CHAR(160),SUBSTITUTE($V186,\"}\",CHAR(160),GJ$1))-FIND(CHAR(160),SUBSTITUTE($V186,\"{\",CHAR(160),GJ$1))+1),\"\")","v":""},{"$f":"IFERROR(MID($V186,FIND(CHAR(160),SUBSTITUTE($V186,\"{\",CHAR(160),GK$1)),FIND(CHAR(160),SUBSTITUTE($V186,\"}\",CHAR(160),GK$1))-FIND(CHAR(160),SUBSTITUTE($V186,\"{\",CHAR(160),GK$1))+1),\"\")","v":""},{"$f":"IFERROR(MID($V186,FIND(CHAR(160),SUBSTITUTE($V186,\"{\",CHAR(160),GL$1)),FIND(CHAR(160),SUBSTITUTE($V186,\"}\",CHAR(160),GL$1))-FIND(CHAR(160),SUBSTITUTE($V186,\"{\",CHAR(160),GL$1))+1),\"\")","v":""},{"$f":"IFERROR(MID($V186,FIND(CHAR(160),SUBSTITUTE($V186,\"{\",CHAR(160),GM$1)),FIND(CHAR(160),SUBSTITUTE($V186,\"}\",CHAR(160),GM$1))-FIND(CHAR(160),SUBSTITUTE($V186,\"{\",CHAR(160),GM$1))+1),\"\")","v":""},{"$f":"IFERROR(MID($V186,FIND(CHAR(160),SUBSTITUTE($V186,\"{\",CHAR(160),GN$1)),FIND(CHAR(160),SUBSTITUTE($V186,\"}\",CHAR(160),GN$1))-FIND(CHAR(160),SUBSTITUTE($V186,\"{\",CHAR(160),GN$1))+1),\"\")","v":""},{"$f":"IFERROR(MID($V186,FIND(CHAR(160),SUBSTITUTE($V186,\"{\",CHAR(160),GO$1)),FIND(CHAR(160),SUBSTITUTE($V186,\"}\",CHAR(160),GO$1))-FIND(CHAR(160),SUBSTITUTE($V186,\"{\",CHAR(160),GO$1))+1),\"\")","v":"{Measure:Quantity}"},{"$f":"IFERROR(MID($V186,FIND(CHAR(160),SUBSTITUTE($V186,\"{\",CHAR(160),GP$1)),FIND(CHAR(160),SUBSTITUTE($V186,\"}\",CHAR(160),GP$1))-FIND(CHAR(160),SUBSTITUTE($V186,\"{\",CHAR(160),GP$1))+1),\"\")","v":"{Package Size}"},{"$f":"IFERROR(MID($W186,FIND(CHAR(160),SUBSTITUTE($W186,\"{\",CHAR(160),GQ$1)),FIND(CHAR(160),SUBSTITUTE($W186,\"}\",CHAR(160),GQ$1))-FIND(CHAR(160),SUBSTITUTE($W186,\"{\",CHAR(160),GQ$1))+1),\"\")","v":""},{"$f":"IFERROR(MID($W186,FIND(CHAR(160),SUBSTITUTE($W186,\"{\",CHAR(160),GR$1)),FIND(CHAR(160),SUBSTITUTE($W186,\"}\",CHAR(160),GR$1))-FIND(CHAR(160),SUBSTITUTE($W186,\"{\",CHAR(160),GR$1))+1),\"\")","v":""},{"$f":"IFERROR(MID($W186,FIND(CHAR(160),SUBSTITUTE($W186,\"{\",CHAR(160),GS$1)),FIND(CHAR(160),SUBSTITUTE($W186,\"}\",CHAR(160),GS$1))-FIND(CHAR(160),SUBSTITUTE($W186,\"{\",CHAR(160),GS$1))+1),\"\")","v":""},{"$f":"IFERROR(MID($W186,FIND(CHAR(160),SUBSTITUTE($W186,\"{\",CHAR(160),GT$1)),FIND(CHAR(160),SUBSTITUTE($W186,\"}\",CHAR(160),GT$1))-FIND(CHAR(160),SUBSTITUTE($W186,\"{\",CHAR(160),GT$1))+1),\"\")","v":""},{"$f":"IFERROR(MID($W186,FIND(CHAR(160),SUBSTITUTE($W186,\"{\",CHAR(160),GU$1)),FIND(CHAR(160),SUBSTITUTE($W186,\"}\",CHAR(160),GU$1))-FIND(CHAR(160),SUBSTITUTE($W186,\"{\",CHAR(160),GU$1))+1),\"\")","v":""},{"$f":"IFERROR(MID($W186,FIND(CHAR(160),SUBSTITUTE($W186,\"{\",CHAR(160),GV$1)),FIND(CHAR(160),SUBSTITUTE($W186,\"}\",CHAR(160),GV$1))-FIND(CHAR(160),SUBSTITUTE($W186,\"{\",CHAR(160),GV$1))+1),\"\")","v":""},{"$f":"IFERROR(MID($W186,FIND(CHAR(160),SUBSTITUTE($W186,\"{\",CHAR(160),GW$1)),FIND(CHAR(160),SUBSTITUTE($W186,\"}\",CHAR(160),GW$1))-FIND(CHAR(160),SUBSTITUTE($W186,\"{\",CHAR(160),GW$1))+1),\"\")","v":""},{"$f":"IFERROR(MID($W186,FIND(CHAR(160),SUBSTITUTE($W186,\"{\",CHAR(160),GX$1)),FIND(CHAR(160),SUBSTITUTE($W186,\"}\",CHAR(160),GX$1))-FIND(CHAR(160),SUBSTITUTE($W186,\"{\",CHAR(160),GX$1))+1),\"\")","v":""},{"$f":"IFERROR(MID($W186,FIND(CHAR(160),SUBSTITUTE($W186,\"{\",CHAR(160),GY$1)),FIND(CHAR(160),SUBSTITUTE($W186,\"}\",CHAR(160),GY$1))-FIND(CHAR(160),SUBSTITUTE($W186,\"{\",CHAR(160),GY$1))+1),\"\")","v":"{Measure:Quantity}"},{"$f":"IFERROR(MID($W186,FIND(CHAR(160),SUBSTITUTE($W186,\"{\",CHAR(160),GZ$1)),FIND(CHAR(160),SUBSTITUTE($W186,\"}\",CHAR(160),GZ$1))-FIND(CHAR(160),SUBSTITUTE($W186,\"{\",CHAR(160),GZ$1))+1),\"\")","v":"{Package Size}"},{"$f":"IFERROR(MID($X186,FIND(CHAR(160),SUBSTITUTE($X186,\"{\",CHAR(160),HA$1)),FIND(CHAR(160),SUBSTITUTE($X186,\"}\",CHAR(160),HA$1))-FIND(CHAR(160),SUBSTITUTE($X186,\"{\",CHAR(160),HA$1))+1),\"\")","v":""},{"$f":"IFERROR(MID($X186,FIND(CHAR(160),SUBSTITUTE($X186,\"{\",CHAR(160),HB$1)),FIND(CHAR(160),SUBSTITUTE($X186,\"}\",CHAR(160),HB$1))-FIND(CHAR(160),SUBSTITUTE($X186,\"{\",CHAR(160),HB$1))+1),\"\")","v":""},{"$f":"IFERROR(MID($X186,FIND(CHAR(160),SUBSTITUTE($X186,\"{\",CHAR(160),HC$1)),FIND(CHAR(160),SUBSTITUTE($X186,\"}\",CHAR(160),HC$1))-FIND(CHAR(160),SUBSTITUTE($X186,\"{\",CHAR(160),HC$1))+1),\"\")","v":""},{"$f":"IFERROR(MID($X186,FIND(CHAR(160),SUBSTITUTE($X186,\"{\",CHAR(160),HD$1)),FIND(CHAR(160),SUBSTITUTE($X186,\"}\",CHAR(160),HD$1))-FIND(CHAR(160),SUBSTITUTE($X186,\"{\",CHAR(160),HD$1))+1),\"\")","v":""},{"$f":"IFERROR(MID($X186,FIND(CHAR(160),SUBSTITUTE($X186,\"{\",CHAR(160),HE$1)),FIND(CHAR(160),SUBSTITUTE($X186,\"}\",CHAR(160),HE$1))-FIND(CHAR(160),SUBSTITUTE($X186,\"{\",CHAR(160),HE$1))+1),\"\")","v":""},{"$f":"IFERROR(MID($X186,FIND(CHAR(160),SUBSTITUTE($X186,\"{\",CHAR(160),HF$1)),FIND(CHAR(160),SUBSTITUTE($X186,\"}\",CHAR(160),HF$1))-FIND(CHAR(160),SUBSTITUTE($X186,\"{\",CHAR(160),HF$1))+1),\"\")","v":""},{"$f":"IFERROR(MID($X186,FIND(CHAR(160),SUBSTITUTE($X186,\"{\",CHAR(160),HG$1)),FIND(CHAR(160),SUBSTITUTE($X186,\"}\",CHAR(160),HG$1))-FIND(CHAR(160),SUBSTITUTE($X186,\"{\",CHAR(160),HG$1))+1),\"\")","v":""},{"$f":"IFERROR(MID($X186,FIND(CHAR(160),SUBSTITUTE($X186,\"{\",CHAR(160),HH$1)),FIND(CHAR(160),SUBSTITUTE($X186,\"}\",CHAR(160),HH$1))-FIND(CHAR(160),SUBSTITUTE($X186,\"{\",CHAR(160),HH$1))+1),\"\")","v":""},{"$f":"IFERROR(MID($X186,FIND(CHAR(160),SUBSTITUTE($X186,\"{\",CHAR(160),HI$1)),FIND(CHAR(160),SUBSTITUTE($X186,\"}\",CHAR(160),HI$1))-FIND(CHAR(160),SUBSTITUTE($X186,\"{\",CHAR(160),HI$1))+1),\"\")","v":"{Measure:Quantity}"},{"$f":"IFERROR(MID($X186,FIND(CHAR(160),SUBSTITUTE($X186,\"{\",CHAR(160),HJ$1)),FIND(CHAR(160),SUBSTITUTE($X186,\"}\",CHAR(160),HJ$1))-FIND(CHAR(160),SUBSTITUTE($X186,\"{\",CHAR(160),HJ$1))+1),\"\")","v":"{Package Size}"},{"$f":"IFERROR(MID($Y186,FIND(CHAR(160),SUBSTITUTE($Y186,\"{\",CHAR(160),HK$1)),FIND(CHAR(160),SUBSTITUTE($Y186,\"}\",CHAR(160),HK$1))-FIND(CHAR(160),SUBSTITUTE($Y186,\"{\",CHAR(160),HK$1))+1),\"\")","v":""},{"$f":"IFERROR(MID($Y186,FIND(CHAR(160),SUBSTITUTE($Y186,\"{\",CHAR(160),HL$1)),FIND(CHAR(160),SUBSTITUTE($Y186,\"}\",CHAR(160),HL$1))-FIND(CHAR(160),SUBSTITUTE($Y186,\"{\",CHAR(160),HL$1))+1),\"\")","v":""},{"$f":"IFERROR(MID($Y186,FIND(CHAR(160),SUBSTITUTE($Y186,\"{\",CHAR(160),HM$1)),FIND(CHAR(160),SUBSTITUTE($Y186,\"}\",CHAR(160),HM$1))-FIND(CHAR(160),SUBSTITUTE($Y186,\"{\",CHAR(160),HM$1))+1),\"\")","v":""},{"$f":"IFERROR(MID($Y186,FIND(CHAR(160),SUBSTITUTE($Y186,\"{\",CHAR(160),HN$1)),FIND(CHAR(160),SUBSTITUTE($Y186,\"}\",CHAR(160),HN$1))-FIND(CHAR(160),SUBSTITUTE($Y186,\"{\",CHAR(160),HN$1))+1),\"\")","v":""},{"$f":"IFERROR(MID($Y186,FIND(CHAR(160),SUBSTITUTE($Y186,\"{\",CHAR(160),HO$1)),FIND(CHAR(160),SUBSTITUTE($Y186,\"}\",CHAR(160),HO$1))-FIND(CHAR(160),SUBSTITUTE($Y186,\"{\",CHAR(160),HO$1))+1),\"\")","v":""},{"$f":"IFERROR(MID($Y186,FIND(CHAR(160),SUBSTITUTE($Y186,\"{\",CHAR(160),HP$1)),FIND(CHAR(160),SUBSTITUTE($Y186,\"}\",CHAR(160),HP$1))-FIND(CHAR(160),SUBSTITUTE($Y186,\"{\",CHAR(160),HP$1))+1),\"\")","v":""},{"$f":"IFERROR(MID($Y186,FIND(CHAR(160),SUBSTITUTE($Y186,\"{\",CHAR(160),HQ$1)),FIND(CHAR(160),SUBSTITUTE($Y186,\"}\",CHAR(160),HQ$1))-FIND(CHAR(160),SUBSTITUTE($Y186,\"{\",CHAR(160),HQ$1))+1),\"\")","v":""},{"$f":"IFERROR(MID($Y186,FIND(CHAR(160),SUBSTITUTE($Y186,\"{\",CHAR(160),HR$1)),FIND(CHAR(160),SUBSTITUTE($Y186,\"}\",CHAR(160),HR$1))-FIND(CHAR(160),SUBSTITUTE($Y186,\"{\",CHAR(160),HR$1))+1),\"\")","v":""},{"$f":"IFERROR(MID($Y186,FIND(CHAR(160),SUBSTITUTE($Y186,\"{\",CHAR(160),HS$1)),FIND(CHAR(160),SUBSTITUTE($Y186,\"}\",CHAR(160),HS$1))-FIND(CHAR(160),SUBSTITUTE($Y186,\"{\",CHAR(160),HS$1))+1),\"\")","v":"{Measure:Quantity}"},{"$f":"IFERROR(MID($Y186,FIND(CHAR(160),SUBSTITUTE($Y186,\"{\",CHAR(160),HT$1)),FIND(CHAR(160),SUBSTITUTE($Y186,\"}\",CHAR(160),HT$1))-FIND(CHAR(160),SUBSTITUTE($Y186,\"{\",CHAR(160),HT$1))+1),\"\")","v":"{Package Size}"},{"$f":"IFERROR(MID($Z186,FIND(CHAR(160),SUBSTITUTE($Z186,\"{\",CHAR(160),HU$1)),FIND(CHAR(160),SUBSTITUTE($Z186,\"}\",CHAR(160),HU$1))-FIND(CHAR(160),SUBSTITUTE($Z186,\"{\",CHAR(160),HU$1))+1),\"\")","v":""},{"$f":"IFERROR(MID($Z186,FIND(CHAR(160),SUBSTITUTE($Z186,\"{\",CHAR(160),HV$1)),FIND(CHAR(160),SUBSTITUTE($Z186,\"}\",CHAR(160),HV$1))-FIND(CHAR(160),SUBSTITUTE($Z186,\"{\",CHAR(160),HV$1))+1),\"\")","v":""},{"$f":"IFERROR(MID($Z186,FIND(CHAR(160),SUBSTITUTE($Z186,\"{\",CHAR(160),HW$1)),FIND(CHAR(160),SUBSTITUTE($Z186,\"}\",CHAR(160),HW$1))-FIND(CHAR(160),SUBSTITUTE($Z186,\"{\",CHAR(160),HW$1))+1),\"\")","v":""},{"$f":"IFERROR(MID($Z186,FIND(CHAR(160),SUBSTITUTE($Z186,\"{\",CHAR(160),HX$1)),FIND(CHAR(160),SUBSTITUTE($Z186,\"}\",CHAR(160),HX$1))-FIND(CHAR(160),SUBSTITUTE($Z186,\"{\",CHAR(160),HX$1))+1),\"\")","v":""},{"$f":"IFERROR(MID($Z186,FIND(CHAR(160),SUBSTITUTE($Z186,\"{\",CHAR(160),HY$1)),FIND(CHAR(160),SUBSTITUTE($Z186,\"}\",CHAR(160),HY$1))-FIND(CHAR(160),SUBSTITUTE($Z186,\"{\",CHAR(160),HY$1))+1),\"\")","v":""},{"$f":"IFERROR(MID($Z186,FIND(CHAR(160),SUBSTITUTE($Z186,\"{\",CHAR(160),HZ$1)),FIND(CHAR(160),SUBSTITUTE($Z186,\"}\",CHAR(160),HZ$1))-FIND(CHAR(160),SUBSTITUTE($Z186,\"{\",CHAR(160),HZ$1))+1),\"\")","v":""},{"$f":"IFERROR(MID($Z186,FIND(CHAR(160),SUBSTITUTE($Z186,\"{\",CHAR(160),IA$1)),FIND(CHAR(160),SUBSTITUTE($Z186,\"}\",CHAR(160),IA$1))-FIND(CHAR(160),SUBSTITUTE($Z186,\"{\",CHAR(160),IA$1))+1),\"\")","v":""},{"$f":"IFERROR(MID($Z186,FIND(CHAR(160),SUBSTITUTE($Z186,\"{\",CHAR(160),IB$1)),FIND(CHAR(160),SUBSTITUTE($Z186,\"}\",CHAR(160),IB$1))-FIND(CHAR(160),SUBSTITUTE($Z186,\"{\",CHAR(160),IB$1))+1),\"\")","v":""},{"$f":"IFERROR(MID($Z186,FIND(CHAR(160),SUBSTITUTE($Z186,\"{\",CHAR(160),IC$1)),FIND(CHAR(160),SUBSTITUTE($Z186,\"}\",CHAR(160),IC$1))-FIND(CHAR(160),SUBSTITUTE($Z186,\"{\",CHAR(160),IC$1))+1),\"\")","v":"{Measure:Quantity}"},{"$f":"IFERROR(MID($Z186,FIND(CHAR(160),SUBSTITUTE($Z186,\"{\",CHAR(160),ID$1)),FIND(CHAR(160),SUBSTITUTE($Z186,\"}\",CHAR(160),ID$1))-FIND(CHAR(160),SUBSTITUTE($Z186,\"{\",CHAR(160),ID$1))+1),\"\")","v":"{Package Size}"},{"$f":"IFERROR(MID($AA186,FIND(CHAR(160),SUBSTITUTE($AA186,\"{\",CHAR(160),IE$1)),FIND(CHAR(160),SUBSTITUTE($AA186,\"}\",CHAR(160),IE$1))-FIND(CHAR(160),SUBSTITUTE($AA186,\"{\",CHAR(160),IE$1))+1),\"\")","v":""},{"$f":"IFERROR(MID($AA186,FIND(CHAR(160),SUBSTITUTE($AA186,\"{\",CHAR(160),IF$1)),FIND(CHAR(160),SUBSTITUTE($AA186,\"}\",CHAR(160),IF$1))-FIND(CHAR(160),SUBSTITUTE($AA186,\"{\",CHAR(160),IF$1))+1),\"\")","v":""},{"$f":"IFERROR(MID($AA186,FIND(CHAR(160),SUBSTITUTE($AA186,\"{\",CHAR(160),IG$1)),FIND(CHAR(160),SUBSTITUTE($AA186,\"}\",CHAR(160),IG$1))-FIND(CHAR(160),SUBSTITUTE($AA186,\"{\",CHAR(160),IG$1))+1),\"\")","v":""},{"$f":"IFERROR(MID($AA186,FIND(CHAR(160),SUBSTITUTE($AA186,\"{\",CHAR(160),IH$1)),FIND(CHAR(160),SUBSTITUTE($AA186,\"}\",CHAR(160),IH$1))-FIND(CHAR(160),SUBSTITUTE($AA186,\"{\",CHAR(160),IH$1))+1),\"\")","v":""},{"$f":"IFERROR(MID($AA186,FIND(CHAR(160),SUBSTITUTE($AA186,\"{\",CHAR(160),II$1)),FIND(CHAR(160),SUBSTITUTE($AA186,\"}\",CHAR(160),II$1))-FIND(CHAR(160),SUBSTITUTE($AA186,\"{\",CHAR(160),II$1))+1),\"\")","v":""},{"$f":"IFERROR(MID($AA186,FIND(CHAR(160),SUBSTITUTE($AA186,\"{\",CHAR(160),IJ$1)),FIND(CHAR(160),SUBSTITUTE($AA186,\"}\",CHAR(160),IJ$1))-FIND(CHAR(160),SUBSTITUTE($AA186,\"{\",CHAR(160),IJ$1))+1),\"\")","v":""},{"$f":"IFERROR(MID($AA186,FIND(CHAR(160),SUBSTITUTE($AA186,\"{\",CHAR(160),IK$1)),FIND(CHAR(160),SUBSTITUTE($AA186,\"}\",CHAR(160),IK$1))-FIND(CHAR(160),SUBSTITUTE($AA186,\"{\",CHAR(160),IK$1))+1),\"\")","v":""},{"$f":"IFERROR(MID($AA186,FIND(CHAR(160),SUBSTITUTE($AA186,\"{\",CHAR(160),IL$1)),FIND(CHAR(160),SUBSTITUTE($AA186,\"}\",CHAR(160),IL$1))-FIND(CHAR(160),SUBSTITUTE($AA186,\"{\",CHAR(160),IL$1))+1),\"\")","v":""},{"$f":"IFERROR(MID($AA186,FIND(CHAR(160),SUBSTITUTE($AA186,\"{\",CHAR(160),IM$1)),FIND(CHAR(160),SUBSTITUTE($AA186,\"}\",CHAR(160),IM$1))-FIND(CHAR(160),SUBSTITUTE($AA186,\"{\",CHAR(160),IM$1))+1),\"\")","v":"{Measure:Quantity}"},{"$f":"IFERROR(MID($AA186,FIND(CHAR(160),SUBSTITUTE($AA186,\"{\",CHAR(160),IN$1)),FIND(CHAR(160),SUBSTITUTE($AA186,\"}\",CHAR(160),IN$1))-FIND(CHAR(160),SUBSTITUTE($AA186,\"{\",CHAR(160),IN$1))+1),\"\")","v":"{Package Size}"},{"$f":"IFERROR(MID($AB186,FIND(CHAR(160),SUBSTITUTE($AB186,\"{\",CHAR(160),IO$1)),FIND(CHAR(160),SUBSTITUTE($AB186,\"}\",CHAR(160),IO$1))-FIND(CHAR(160),SUBSTITUTE($AB186,\"{\",CHAR(160),IO$1))+1),\"\")","v":""},{"$f":"IFERROR(MID($AB186,FIND(CHAR(160),SUBSTITUTE($AB186,\"{\",CHAR(160),IP$1)),FIND(CHAR(160),SUBSTITUTE($AB186,\"}\",CHAR(160),IP$1))-FIND(CHAR(160),SUBSTITUTE($AB186,\"{\",CHAR(160),IP$1))+1),\"\")","v":""},{"$f":"IFERROR(MID($AB186,FIND(CHAR(160),SUBSTITUTE($AB186,\"{\",CHAR(160),IQ$1)),FIND(CHAR(160),SUBSTITUTE($AB186,\"}\",CHAR(160),IQ$1))-FIND(CHAR(160),SUBSTITUTE($AB186,\"{\",CHAR(160),IQ$1))+1),\"\")","v":""},{"$f":"IFERROR(MID($AB186,FIND(CHAR(160),SUBSTITUTE($AB186,\"{\",CHAR(160),IR$1)),FIND(CHAR(160),SUBSTITUTE($AB186,\"}\",CHAR(160),IR$1))-FIND(CHAR(160),SUBSTITUTE($AB186,\"{\",CHAR(160),IR$1))+1),\"\")","v":""},{"$f":"IFERROR(MID($AB186,FIND(CHAR(160),SUBSTITUTE($AB186,\"{\",CHAR(160),IS$1)),FIND(CHAR(160),SUBSTITUTE($AB186,\"}\",CHAR(160),IS$1))-FIND(CHAR(160),SUBSTITUTE($AB186,\"{\",CHAR(160),IS$1))+1),\"\")","v":""},{"$f":"IFERROR(MID($AB186,FIND(CHAR(160),SUBSTITUTE($AB186,\"{\",CHAR(160),IT$1)),FIND(CHAR(160),SUBSTITUTE($AB186,\"}\",CHAR(160),IT$1))-FIND(CHAR(160),SUBSTITUTE($AB186,\"{\",CHAR(160),IT$1))+1),\"\")","v":""},{"$f":"IFERROR(MID($AB186,FIND(CHAR(160),SUBSTITUTE($AB186,\"{\",CHAR(160),IU$1)),FIND(CHAR(160),SUBSTITUTE($AB186,\"}\",CHAR(160),IU$1))-FIND(CHAR(160),SUBSTITUTE($AB186,\"{\",CHAR(160),IU$1))+1),\"\")","v":""},{"$f":"IFERROR(MID($AB186,FIND(CHAR(160),SUBSTITUTE($AB186,\"{\",CHAR(160),IV$1)),FIND(CHAR(160),SUBSTITUTE($AB186,\"}\",CHAR(160),IV$1))-FIND(CHAR(160),SUBSTITUTE($AB186,\"{\",CHAR(160),IV$1))+1),\"\")","v":""},{"$f":"IFERROR(MID($AB186,FIND(CHAR(160),SUBSTITUTE($AB186,\"{\",CHAR(160),IW$1)),FIND(CHAR(160),SUBSTITUTE($AB186,\"}\",CHAR(160),IW$1))-FIND(CHAR(160),SUBSTITUTE($AB186,\"{\",CHAR(160),IW$1))+1),\"\")","v":""},{"$f":"IFERROR(MID($AB186,FIND(CHAR(160),SUBSTITUTE($AB186,\"{\",CHAR(160),IX$1)),FIND(CHAR(160),SUBSTITUTE($AB186,\"}\",CHAR(160),IX$1))-FIND(CHAR(160),SUBSTITUTE($AB186,\"{\",CHAR(160),IX$1))+1),\"\")","v":""},null,{"$f":"10-COUNTIF(DU186:ED186,\"\")","v":3}]
["Distributor Lighting","Outdoor_Type_B >10000 lm - long life","S6BHL","2021-07-01","2022-06-30","Calculated","{Measure:Quantity}*{Package Size}*99.13",0,"Calculated","{Measure:Quantity}*{Rebate per Package}",0,"2021-07-01","2022-06-30","Calculated","{Measure:Quantity}*{Package Size}*1444",null,null,"{Measure:Quantity}*{Package Size}*1*0.34",null,null,"{Measure:Quantity}*{Package Size}*{Factor:WinterCF}*0.34","{Measure:Quantity}*{Package Size}*{Factor:SummerCF}*1*0.34","{Measure:Quantity}*{Package Size}*10*0","{Measure:Quantity}*{Package Size}*0","{Measure:Quantity}*{Package Size}*0","{Measure:Quantity}*{Package Size}*0","{Measure:Quantity}*{Package Size}*0",null,"2021-07-01","2022-06-30",12,0.82399999999999995,6.6000000000000003E-2,0.27300000000000002,0.45,9.5000000000000001E-2,0.182,0.99,1,1,0.51,0,null,{"$f":"DU187","v":"{Measure:Quantity}"},1,{"$f":"DV187","v":"{Package Size}"},1,{"$f":"DW187","v":"{Rebate per Package}"},{"$f":"CW187*CO187","v":74.347499999999997},{"$f":"DX187","v":""},null,{"$f":"DY187","v":""},null,{"$f":"DZ187","v":""},null,{"$f":"EA187","v":""},null,{"$f":"EB187","v":""},null,{"$f":"EC187","v":""},null,{"$f":"ED187","v":""},null,{"$f":"AS187*AU187*1444","v":1444},0,0,{"$f":"AS187*AU187*1*0.34","v":0.34},0,0,{"$f":"AS187*AU187*AF187*0.34","v":0.28016000000000002},{"$f":"AS187*AU187*AG187*1*0.34","v":2.2440000000000002E-2},{"$f":"AS187*AU187*10*0","v":0},{"$f":"AS187*AU187*0","v":0},{"$f":"AS187*AU187*0","v":0},{"$f":"AS187*AU187*0","v":0},{"$f":"AS187*AU187*0","v":0},0,null,"Res","Default DR",{"$f":"Benefits(BL187,BR187,BS187,BT187,BU187,BV187,BW187,BX187,BY187,BZ187,AE187,AH187,AI187,AJ187,AK187,AL187,AM187,AN187,AO187,AP187,CA187,CB187)","v":1641.8990167879408},900.92531914087419,0,0,0,0,0,0,0,{"$f":"SUMPRODUCT(CC187:CK187,--(CC187:CK187>0))","v":2542.8243359288149},{"$f":"-SUMPRODUCT(CC187:CK187,--(CC187:CK187<0))","v":0},null,{"$f":"AS187*AU187*99.13","v":99.13},null,null,{"$f":"CM187+CO187","v":99.13},{"$f":"IF(NetOrGross=\"Net\",(1-AO187+AP187),1)","v":1},{"$f":"(SUMPRODUCT(CC187:CJ187,--(CC187:CJ187>0))+CN187)*CS187/((-SUMPRODUCT(CC187:CJ187,--(CC187:CJ187<0))+MAX(CO187,CV187)+CP187+CQ187)*CS187+IF(FRIncentives=\"Yes\",CV187*(1-CS187),0))","v":25.651410631784678},1,{"$f":"AS187*AW187","v":74.347499999999997},{"$f":"CW186","v":0.75},"Electric","y",null,{"$f":"IF(F187=\"Manual Entry\",\"Manual\",IF(G187=\"\",0,\"X=\"&SUBSTITUTE(SUBSTITUTE(SUBSTITUTE(SUBSTITUTE(SUBSTITUTE(SUBSTITUTE(SUBSTITUTE(SUBSTITUTE(SUBSTITUTE(SUBSTITUTE(SUBSTITUTE(SUBSTITUTE(G187,$ED187,$ED$2&ROW($ED187)),$EC187,$EC$2&ROW($EC187)),$EB187,$EB$2&ROW($EB187)),$EA187,$EA$2&ROW($EA187)),$DZ187,$DZ$2&ROW($DZ187)),$DY187,$DY$2&ROW($DY187)),$DX187,$DX$2&ROW($DX187)),$DW187,$DW$2&ROW($DW187)),$DV187,$DV$2&ROW($DV187)),$DU187,$DU$2&ROW($DU187)),$DT187,$DT$2&ROW($DT187)),$DS187,$DS$2&ROW($DS187))))","v":"X=AS187*AU187*99.13"},{"$f":"IF(I187=\"Manual Entry\",\"Manual\",IF(J187=\"\",0,\"X=\"&SUBSTITUTE(SUBSTITUTE(SUBSTITUTE(SUBSTITUTE(SUBSTITUTE(SUBSTITUTE(SUBSTITUTE(SUBSTITUTE(SUBSTITUTE(SUBSTITUTE(SUBSTITUTE(SUBSTITUTE(J187,$ED187,$ED$2&ROW($ED187)),$EC187,$EC$2&ROW($EC187)),$EB187,$EB$2&ROW($EB187)),$EA187,$EA$2&ROW($EA187)),$DZ187,$DZ$2&ROW($DZ187)),$DY187,$DY$2&ROW($DY187)),$DX187,$DX$2&ROW($DX187)),$DW187,$DW$2&ROW($DW187)),$DV187,$DV$2&ROW($DV187)),$DU187,$DU$2&ROW($DU187)),$DT187,$DT$2&ROW($DT187)),$DS187,$DS$2&ROW($DS187))))","v":"X=AS187*AW187"},{"$f":"IF(O187=\"\",0,\"X=\"&SUBSTITUTE(SUBSTITUTE(SUBSTITUTE(SUBSTITUTE(SUBSTITUTE(SUBSTITUTE(SUBSTITUTE(SUBSTITUTE(SUBSTITUTE(SUBSTITUTE(SUBSTITUTE(SUBSTITUTE(O187,$ED187,$ED$2&ROW($ED187)),$EC187,$EC$2&ROW($EC187)),$EB187,$EB$2&ROW($EB187)),$EA187,$EA$2&ROW($EA187)),$DZ187,$DZ$2&ROW($DZ187)),$DY187,$DY$2&ROW($DY187)),$DX187,$DX$2&ROW($DX187)),$DW187,$DW$2&ROW($DW187)),$DV187,$DV$2&ROW($DV187)),$DU187,$DU$2&ROW($DU187)),$DT187,$DT$2&ROW($DT187)),$DS187,$DS$2&ROW($DS187)))","v":"X=AS187*AU187*1444"},{"$f":"IF(P187=\"\",0,\"X=\"&SUBSTITUTE(SUBSTITUTE(SUBSTITUTE(SUBSTITUTE(SUBSTITUTE(SUBSTITUTE(SUBSTITUTE(SUBSTITUTE(SUBSTITUTE(SUBSTITUTE(SUBSTITUTE(SUBSTITUTE(P187,$ED187,$ED$2&ROW($ED187)),$EC187,$EC$2&ROW($EC187)),$EB187,$EB$2&ROW($EB187)),$EA187,$EA$2&ROW($EA187)),$DZ187,$DZ$2&ROW($DZ187)),$DY187,$DY$2&ROW($DY187)),$DX187,$DX$2&ROW($DX187)),$DW187,$DW$2&ROW($DW187)),$DV187,$DV$2&ROW($DV187)),$DU187,$DU$2&ROW($DU187)),$DT187,$DT$2&ROW($DT187)),$DS187,$DS$2&ROW($DS187)))","v":0},{"$f":"IF(Q187=\"\",0,\"X=\"&SUBSTITUTE(SUBSTITUTE(SUBSTITUTE(SUBSTITUTE(SUBSTITUTE(SUBSTITUTE(SUBSTITUTE(SUBSTITUTE(SUBSTITUTE(SUBSTITUTE(SUBSTITUTE(SUBSTITUTE(Q187,$ED187,$ED$2&ROW($ED187)),$EC187,$EC$2&ROW($EC187)),$EB187,$EB$2&ROW($EB187)),$EA187,$EA$2&ROW($EA187)),$DZ187,$DZ$2&ROW($DZ187)),$DY187,$DY$2&ROW($DY187)),$DX187,$DX$2&ROW($DX187)),$DW187,$DW$2&ROW($DW187)),$DV187,$DV$2&ROW($DV187)),$DU187,$DU$2&ROW($DU187)),$DT187,$DT$2&ROW($DT187)),$DS187,$DS$2&ROW($DS187)))","v":0},{"$f":"IF(R187=\"\",0,\"X=\"&SUBSTITUTE(SUBSTITUTE(SUBSTITUTE(SUBSTITUTE(SUBSTITUTE(SUBSTITUTE(SUBSTITUTE(SUBSTITUTE(SUBSTITUTE(SUBSTITUTE(SUBSTITUTE(SUBSTITUTE(R187,$ED187,$ED$2&ROW($ED187)),$EC187,$EC$2&ROW($EC187)),$EB187,$EB$2&ROW($EB187)),$EA187,$EA$2&ROW($EA187)),$DZ187,$DZ$2&ROW($DZ187)),$DY187,$DY$2&ROW($DY187)),$DX187,$DX$2&ROW($DX187)),$DW187,$DW$2&ROW($DW187)),$DV187,$DV$2&ROW($DV187)),$DU187,$DU$2&ROW($DU187)),$DT187,$DT$2&ROW($DT187)),$DS187,$DS$2&ROW($DS187)))","v":"X=AS187*AU187*1*0.34"},{"$f":"IF(S187=\"\",0,\"X=\"&SUBSTITUTE(SUBSTITUTE(SUBSTITUTE(SUBSTITUTE(SUBSTITUTE(SUBSTITUTE(SUBSTITUTE(SUBSTITUTE(SUBSTITUTE(SUBSTITUTE(SUBSTITUTE(SUBSTITUTE(S187,$ED187,$ED$2&ROW($ED187)),$EC187,$EC$2&ROW($EC187)),$EB187,$EB$2&ROW($EB187)),$EA187,$EA$2&ROW($EA187)),$DZ187,$DZ$2&ROW($DZ187)),$DY187,$DY$2&ROW($DY187)),$DX187,$DX$2&ROW($DX187)),$DW187,$DW$2&ROW($DW187)),$DV187,$DV$2&ROW($DV187)),$DU187,$DU$2&ROW($DU187)),$DT187,$DT$2&ROW($DT187)),$DS187,$DS$2&ROW($DS187)))","v":0},{"$f":"IF(T187=\"\",0,\"X=\"&SUBSTITUTE(SUBSTITUTE(SUBSTITUTE(SUBSTITUTE(SUBSTITUTE(SUBSTITUTE(SUBSTITUTE(SUBSTITUTE(SUBSTITUTE(SUBSTITUTE(SUBSTITUTE(SUBSTITUTE(T187,$ED187,$ED$2&ROW($ED187)),$EC187,$EC$2&ROW($EC187)),$EB187,$EB$2&ROW($EB187)),$EA187,$EA$2&ROW($EA187)),$DZ187,$DZ$2&ROW($DZ187)),$DY187,$DY$2&ROW($DY187)),$DX187,$DX$2&ROW($DX187)),$DW187,$DW$2&ROW($DW187)),$DV187,$DV$2&ROW($DV187)),$DU187,$DU$2&ROW($DU187)),$DT187,$DT$2&ROW($DT187)),$DS187,$DS$2&ROW($DS187)))","v":0},{"$f":"IF(U187=\"\",0,\"X=\"&SUBSTITUTE(SUBSTITUTE(SUBSTITUTE(SUBSTITUTE(SUBSTITUTE(SUBSTITUTE(SUBSTITUTE(SUBSTITUTE(SUBSTITUTE(SUBSTITUTE(SUBSTITUTE(SUBSTITUTE(U187,$ED187,$ED$2&ROW($ED187)),$EC187,$EC$2&ROW($EC187)),$EB187,$EB$2&ROW($EB187)),$EA187,$EA$2&ROW($EA187)),$DZ187,$DZ$2&ROW($DZ187)),$DY187,$DY$2&ROW($DY187)),$DX187,$DX$2&ROW($DX187)),$DW187,$DW$2&ROW($DW187)),$DV187,$DV$2&ROW($DV187)),$DU187,$DU$2&ROW($DU187)),$DT187,$DT$2&ROW($DT187)),$DS187,$DS$2&ROW($DS187)))","v":"X=AS187*AU187*AF187*0.34"},{"$f":"IF(V187=\"\",0,\"X=\"&SUBSTITUTE(SUBSTITUTE(SUBSTITUTE(SUBSTITUTE(SUBSTITUTE(SUBSTITUTE(SUBSTITUTE(SUBSTITUTE(SUBSTITUTE(SUBSTITUTE(SUBSTITUTE(SUBSTITUTE(V187,$ED187,$ED$2&ROW($ED187)),$EC187,$EC$2&ROW($EC187)),$EB187,$EB$2&ROW($EB187)),$EA187,$EA$2&ROW($EA187)),$DZ187,$DZ$2&ROW($DZ187)),$DY187,$DY$2&ROW($DY187)),$DX187,$DX$2&ROW($DX187)),$DW187,$DW$2&ROW($DW187)),$DV187,$DV$2&ROW($DV187)),$DU187,$DU$2&ROW($DU187)),$DT187,$DT$2&ROW($DT187)),$DS187,$DS$2&ROW($DS187)))","v":"X=AS187*AU187*AG187*1*0.34"},{"$f":"IF(W187=\"\",0,\"X=\"&SUBSTITUTE(SUBSTITUTE(SUBSTITUTE(SUBSTITUTE(SUBSTITUTE(SUBSTITUTE(SUBSTITUTE(SUBSTITUTE(SUBSTITUTE(SUBSTITUTE(SUBSTITUTE(SUBSTITUTE(W187,$ED187,$ED$2&ROW($ED187)),$EC187,$EC$2&ROW($EC187)),$EB187,$EB$2&ROW($EB187)),$EA187,$EA$2&ROW($EA187)),$DZ187,$DZ$2&ROW($DZ187)),$DY187,$DY$2&ROW($DY187)),$DX187,$DX$2&ROW($DX187)),$DW187,$DW$2&ROW($DW187)),$DV187,$DV$2&ROW($DV187)),$DU187,$DU$2&ROW($DU187)),$DT187,$DT$2&ROW($DT187)),$DS187,$DS$2&ROW($DS187)))","v":"X=AS187*AU187*10*0"},{"$f":"IF(X187=\"\",0,\"X=\"&SUBSTITUTE(SUBSTITUTE(SUBSTITUTE(SUBSTITUTE(SUBSTITUTE(SUBSTITUTE(SUBSTITUTE(SUBSTITUTE(SUBSTITUTE(SUBSTITUTE(SUBSTITUTE(SUBSTITUTE(X187,$ED187,$ED$2&ROW($ED187)),$EC187,$EC$2&ROW($EC187)),$EB187,$EB$2&ROW($EB187)),$EA187,$EA$2&ROW($EA187)),$DZ187,$DZ$2&ROW($DZ187)),$DY187,$DY$2&ROW($DY187)),$DX187,$DX$2&ROW($DX187)),$DW187,$DW$2&ROW($DW187)),$DV187,$DV$2&ROW($DV187)),$DU187,$DU$2&ROW($DU187)),$DT187,$DT$2&ROW($DT187)),$DS187,$DS$2&ROW($DS187)))","v":"X=AS187*AU187*0"},{"$f":"IF(Y187=\"\",0,\"X=\"&SUBSTITUTE(SUBSTITUTE(SUBSTITUTE(SUBSTITUTE(SUBSTITUTE(SUBSTITUTE(SUBSTITUTE(SUBSTITUTE(SUBSTITUTE(SUBSTITUTE(SUBSTITUTE(SUBSTITUTE(Y187,$ED187,$ED$2&ROW($ED187)),$EC187,$EC$2&ROW($EC187)),$EB187,$EB$2&ROW($EB187)),$EA187,$EA$2&ROW($EA187)),$DZ187,$DZ$2&ROW($DZ187)),$DY187,$DY$2&ROW($DY187)),$DX187,$DX$2&ROW($DX187)),$DW187,$DW$2&ROW($DW187)),$DV187,$DV$2&ROW($DV187)),$DU187,$DU$2&ROW($DU187)),$DT187,$DT$2&ROW($DT187)),$DS187,$DS$2&ROW($DS187)))","v":"X=AS187*AU187*0"},{"$f":"IF(Z187=\"\",0,\"X=\"&SUBSTITUTE(SUBSTITUTE(SUBSTITUTE(SUBSTITUTE(SUBSTITUTE(SUBSTITUTE(SUBSTITUTE(SUBSTITUTE(SUBSTITUTE(SUBSTITUTE(SUBSTITUTE(SUBSTITUTE(Z187,$ED187,$ED$2&ROW($ED187)),$EC187,$EC$2&ROW($EC187)),$EB187,$EB$2&ROW($EB187)),$EA187,$EA$2&ROW($EA187)),$DZ187,$DZ$2&ROW($DZ187)),$DY187,$DY$2&ROW($DY187)),$DX187,$DX$2&ROW($DX187)),$DW187,$DW$2&ROW($DW187)),$DV187,$DV$2&ROW($DV187)),$DU187,$DU$2&ROW($DU187)),$DT187,$DT$2&ROW($DT187)),$DS187,$DS$2&ROW($DS187)))","v":"X=AS187*AU187*0"},{"$f":"IF(AA187=\"\",0,\"X=\"&SUBSTITUTE(SUBSTITUTE(SUBSTITUTE(SUBSTITUTE(SUBSTITUTE(SUBSTITUTE(SUBSTITUTE(SUBSTITUTE(SUBSTITUTE(SUBSTITUTE(SUBSTITUTE(SUBSTITUTE(AA187,$ED187,$ED$2&ROW($ED187)),$EC187,$EC$2&ROW($EC187)),$EB187,$EB$2&ROW($EB187)),$EA187,$EA$2&ROW($EA187)),$DZ187,$DZ$2&ROW($DZ187)),$DY187,$DY$2&ROW($DY187)),$DX187,$DX$2&ROW($DX187)),$DW187,$DW$2&ROW($DW187)),$DV187,$DV$2&ROW($DV187)),$DU187,$DU$2&ROW($DU187)),$DT187,$DT$2&ROW($DT187)),$DS187,$DS$2&ROW($DS187)))","v":"X=AS187*AU187*0"},{"$f":"IF(AB187=\"\",0,\"X=\"&SUBSTITUTE(SUBSTITUTE(SUBSTITUTE(SUBSTITUTE(SUBSTITUTE(SUBSTITUTE(SUBSTITUTE(SUBSTITUTE(SUBSTITUTE(SUBSTITUTE(SUBSTITUTE(SUBSTITUTE(AB187,$ED187,$ED$2&ROW($ED187)),$EC187,$EC$2&ROW($EC187)),$EB187,$EB$2&ROW($EB187)),$EA187,$EA$2&ROW($EA187)),$DZ187,$DZ$2&ROW($DZ187)),$DY187,$DY$2&ROW($DY187)),$DX187,$DX$2&ROW($DX187)),$DW187,$DW$2&ROW($DW187)),$DV187,$DV$2&ROW($DV187)),$DU187,$DU$2&ROW($DU187)),$DT187,$DT$2&ROW($DT187)),$DS187,$DS$2&ROW($DS187)))","v":0},null,null,"{Factor:WinterCF}","{Factor:SummerCF}",{"$f":"IFERROR(INDEX($EG187:$IV187,MATCH(0,COUNTIF($DR187:DT187,$EG187:$IV187),0)),\"\")","v":"{Measure:Quantity}"},{"$f":"IFERROR(INDEX($EG187:$IV187,MATCH(0,COUNTIF($DR187:DU187,$EG187:$IV187),0)),\"\")","v":"{Package Size}"},{"$f":"IFERROR(INDEX($EG187:$IV187,MATCH(0,COUNTIF($DR187:DV187,$EG187:$IV187),0)),\"\")","v":"{Rebate per Package}"},{"$f":"IFERROR(INDEX($EG187:$IV187,MATCH(0,COUNTIF($DR187:DW187,$EG187:$IV187),0)),\"\")","v":""},{"$f":"IFERROR(INDEX($EG187:$IV187,MATCH(0,COUNTIF($DR187:DX187,$EG187:$IV187),0)),\"\")","v":""},{"$f":"IFERROR(INDEX($EG187:$IV187,MATCH(0,COUNTIF($DR187:DY187,$EG187:$IV187),0)),\"\")","v":""},{"$f":"IFERROR(INDEX($EG187:$IV187,MATCH(0,COUNTIF($DR187:DZ187,$EG187:$IV187),0)),\"\")","v":""},{"$f":"IFERROR(INDEX($EG187:$IV187,MATCH(0,COUNTIF($DR187:EA187,$EG187:$IV187),0)),\"\")","v":""},{"$f":"IFERROR(INDEX($EG187:$IV187,MATCH(0,COUNTIF($DR187:EB187,$EG187:$IV187),0)),\"\")","v":""},{"$f":"IFERROR(INDEX($EG187:$IV187,MATCH(0,COUNTIF($DR187:EC187,$EG187:$IV187),0)),\"\")","v":""},null,null,{"$f":"IFERROR(MID($G187,FIND(CHAR(160),SUBSTITUTE($G187,\"{\",CHAR(160),EG$1)),FIND(CHAR(160),SUBSTITUTE($G187,\"}\",CHAR(160),EG$1))-FIND(CHAR(160),SUBSTITUTE($G187,\"{\",CHAR(160),EG$1))+1),\"\")","v":"{Measure:Quantity}"},{"$f":"IFERROR(MID($G187,FIND(CHAR(160),SUBSTITUTE($G187,\"{\",CHAR(160),EH$1)),FIND(CHAR(160),SUBSTITUTE($G187,\"}\",CHAR(160),EH$1))-FIND(CHAR(160),SUBSTITUTE($G187,\"{\",CHAR(160),EH$1))+1),\"\")","v":"{Package Size}"},{"$f":"IFERROR(MID($G187,FIND(CHAR(160),SUBSTITUTE($G187,\"{\",CHAR(160),EI$1)),FIND(CHAR(160),SUBSTITUTE($G187,\"}\",CHAR(160),EI$1))-FIND(CHAR(160),SUBSTITUTE($G187,\"{\",CHAR(160),EI$1))+1),\"\")","v":""},{"$f":"IFERROR(MID($G187,FIND(CHAR(160),SUBSTITUTE($G187,\"{\",CHAR(160),EJ$1)),FIND(CHAR(160),SUBSTITUTE($G187,\"}\",CHAR(160),EJ$1))-FIND(CHAR(160),SUBSTITUTE($G187,\"{\",CHAR(160),EJ$1))+1),\"\")","v":""},{"$f":"IFERROR(MID($G187,FIND(CHAR(160),SUBSTITUTE($G187,\"{\",CHAR(160),EK$1)),FIND(CHAR(160),SUBSTITUTE($G187,\"}\",CHAR(160),EK$1))-FIND(CHAR(160),SUBSTITUTE($G187,\"{\",CHAR(160),EK$1))+1),\"\")","v":""},{"$f":"IFERROR(MID($G187,FIND(CHAR(160),SUBSTITUTE($G187,\"{\",CHAR(160),EL$1)),FIND(CHAR(160),SUBSTITUTE($G187,\"}\",CHAR(160),EL$1))-FIND(CHAR(160),SUBSTITUTE($G187,\"{\",CHAR(160),EL$1))+1),\"\")","v":""},{"$f":"IFERROR(MID($G187,FIND(CHAR(160),SUBSTITUTE($G187,\"{\",CHAR(160),EM$1)),FIND(CHAR(160),SUBSTITUTE($G187,\"}\",CHAR(160),EM$1))-FIND(CHAR(160),SUBSTITUTE($G187,\"{\",CHAR(160),EM$1))+1),\"\")","v":""},{"$f":"IFERROR(MID($G187,FIND(CHAR(160),SUBSTITUTE($G187,\"{\",CHAR(160),EN$1)),FIND(CHAR(160),SUBSTITUTE($G187,\"}\",CHAR(160),EN$1))-FIND(CHAR(160),SUBSTITUTE($G187,\"{\",CHAR(160),EN$1))+1),\"\")","v":""},{"$f":"IFERROR(MID($G187,FIND(CHAR(160),SUBSTITUTE($G187,\"{\",CHAR(160),EO$1)),FIND(CHAR(160),SUBSTITUTE($G187,\"}\",CHAR(160),EO$1))-FIND(CHAR(160),SUBSTITUTE($G187,\"{\",CHAR(160),EO$1))+1),\"\")","v":""},{"$f":"IFERROR(MID($G187,FIND(CHAR(160),SUBSTITUTE($G187,\"{\",CHAR(160),EP$1)),FIND(CHAR(160),SUBSTITUTE($G187,\"}\",CHAR(160),EP$1))-FIND(CHAR(160),SUBSTITUTE($G187,\"{\",CHAR(160),EP$1))+1),\"\")","v":""},{"$f":"IFERROR(MID($J187,FIND(CHAR(160),SUBSTITUTE($J187,\"{\",CHAR(160),EQ$1)),FIND(CHAR(160),SUBSTITUTE($J187,\"}\",CHAR(160),EQ$1))-FIND(CHAR(160),SUBSTITUTE($J187,\"{\",CHAR(160),EQ$1))+1),\"\")","v":"{Measure:Quantity}"},{"$f":"IFERROR(MID($J187,FIND(CHAR(160),SUBSTITUTE($J187,\"{\",CHAR(160),ER$1)),FIND(CHAR(160),SUBSTITUTE($J187,\"}\",CHAR(160),ER$1))-FIND(CHAR(160),SUBSTITUTE($J187,\"{\",CHAR(160),ER$1))+1),\"\")","v":"{Rebate per Package}"},{"$f":"IFERROR(MID($J187,FIND(CHAR(160),SUBSTITUTE($J187,\"{\",CHAR(160),ES$1)),FIND(CHAR(160),SUBSTITUTE($J187,\"}\",CHAR(160),ES$1))-FIND(CHAR(160),SUBSTITUTE($J187,\"{\",CHAR(160),ES$1))+1),\"\")","v":""},{"$f":"IFERROR(MID($J187,FIND(CHAR(160),SUBSTITUTE($J187,\"{\",CHAR(160),ET$1)),FIND(CHAR(160),SUBSTITUTE($J187,\"}\",CHAR(160),ET$1))-FIND(CHAR(160),SUBSTITUTE($J187,\"{\",CHAR(160),ET$1))+1),\"\")","v":""},{"$f":"IFERROR(MID($J187,FIND(CHAR(160),SUBSTITUTE($J187,\"{\",CHAR(160),EU$1)),FIND(CHAR(160),SUBSTITUTE($J187,\"}\",CHAR(160),EU$1))-FIND(CHAR(160),SUBSTITUTE($J187,\"{\",CHAR(160),EU$1))+1),\"\")","v":""},{"$f":"IFERROR(MID($J187,FIND(CHAR(160),SUBSTITUTE($J187,\"{\",CHAR(160),EV$1)),FIND(CHAR(160),SUBSTITUTE($J187,\"}\",CHAR(160),EV$1))-FIND(CHAR(160),SUBSTITUTE($J187,\"{\",CHAR(160),EV$1))+1),\"\")","v":""},{"$f":"IFERROR(MID($J187,FIND(CHAR(160),SUBSTITUTE($J187,\"{\",CHAR(160),EW$1)),FIND(CHAR(160),SUBSTITUTE($J187,\"}\",CHAR(160),EW$1))-FIND(CHAR(160),SUBSTITUTE($J187,\"{\",CHAR(160),EW$1))+1),\"\")","v":""},{"$f":"IFERROR(MID($J187,FIND(CHAR(160),SUBSTITUTE($J187,\"{\",CHAR(160),EX$1)),FIND(CHAR(160),SUBSTITUTE($J187,\"}\",CHAR(160),EX$1))-FIND(CHAR(160),SUBSTITUTE($J187,\"{\",CHAR(160),EX$1))+1),\"\")","v":""},{"$f":"IFERROR(MID($J187,FIND(CHAR(160),SUBSTITUTE($J187,\"{\",CHAR(160),EY$1)),FIND(CHAR(160),SUBSTITUTE($J187,\"}\",CHAR(160),EY$1))-FIND(CHAR(160),SUBSTITUTE($J187,\"{\",CHAR(160),EY$1))+1),\"\")","v":""},{"$f":"IFERROR(MID($J187,FIND(CHAR(160),SUBSTITUTE($J187,\"{\",CHAR(160),EZ$1)),FIND(CHAR(160),SUBSTITUTE($J187,\"}\",CHAR(160),EZ$1))-FIND(CHAR(160),SUBSTITUTE($J187,\"{\",CHAR(160),EZ$1))+1),\"\")","v":""},{"$f":"IFERROR(MID($J187,FIND(CHAR(160),SUBSTITUTE($J187,\"{\",CHAR(160),FA$1)),FIND(CHAR(160),SUBSTITUTE($J187,\"}\",CHAR(160),FA$1))-FIND(CHAR(160),SUBSTITUTE($J187,\"{\",CHAR(160),FA$1))+1),\"\")","v":"{Measure:Quantity}"},{"$f":"IFERROR(MID($J187,FIND(CHAR(160),SUBSTITUTE($J187,\"{\",CHAR(160),FB$1)),FIND(CHAR(160),SUBSTITUTE($J187,\"}\",CHAR(160),FB$1))-FIND(CHAR(160),SUBSTITUTE($J187,\"{\",CHAR(160),FB$1))+1),\"\")","v":"{Rebate per Package}"},{"$f":"IFERROR(MID($O187,FIND(CHAR(160),SUBSTITUTE($O187,\"{\",CHAR(160),FC$1)),FIND(CHAR(160),SUBSTITUTE($O187,\"}\",CHAR(160),FC$1))-FIND(CHAR(160),SUBSTITUTE($O187,\"{\",CHAR(160),FC$1))+1),\"\")","v":""},{"$f":"IFERROR(MID($O187,FIND(CHAR(160),SUBSTITUTE($O187,\"{\",CHAR(160),FD$1)),FIND(CHAR(160),SUBSTITUTE($O187,\"}\",CHAR(160),FD$1))-FIND(CHAR(160),SUBSTITUTE($O187,\"{\",CHAR(160),FD$1))+1),\"\")","v":""},{"$f":"IFERROR(MID($O187,FIND(CHAR(160),SUBSTITUTE($O187,\"{\",CHAR(160),FE$1)),FIND(CHAR(160),SUBSTITUTE($O187,\"}\",CHAR(160),FE$1))-FIND(CHAR(160),SUBSTITUTE($O187,\"{\",CHAR(160),FE$1))+1),\"\")","v":""},{"$f":"IFERROR(MID($O187,FIND(CHAR(160),SUBSTITUTE($O187,\"{\",CHAR(160),FF$1)),FIND(CHAR(160),SUBSTITUTE($O187,\"}\",CHAR(160),FF$1))-FIND(CHAR(160),SUBSTITUTE($O187,\"{\",CHAR(160),FF$1))+1),\"\")","v":""},{"$f":"IFERROR(MID($O187,FIND(CHAR(160),SUBSTITUTE($O187,\"{\",CHAR(160),FG$1)),FIND(CHAR(160),SUBSTITUTE($O187,\"}\",CHAR(160),FG$1))-FIND(CHAR(160),SUBSTITUTE($O187,\"{\",CHAR(160),FG$1))+1),\"\")","v":""},{"$f":"IFERROR(MID($O187,FIND(CHAR(160),SUBSTITUTE($O187,\"{\",CHAR(160),FH$1)),FIND(CHAR(160),SUBSTITUTE($O187,\"}\",CHAR(160),FH$1))-FIND(CHAR(160),SUBSTITUTE($O187,\"{\",CHAR(160),FH$1))+1),\"\")","v":""},{"$f":"IFERROR(MID($O187,FIND(CHAR(160),SUBSTITUTE($O187,\"{\",CHAR(160),FI$1)),FIND(CHAR(160),SUBSTITUTE($O187,\"}\",CHAR(160),FI$1))-FIND(CHAR(160),SUBSTITUTE($O187,\"{\",CHAR(160),FI$1))+1),\"\")","v":""},{"$f":"IFERROR(MID($O187,FIND(CHAR(160),SUBSTITUTE($O187,\"{\",CHAR(160),FJ$1)),FIND(CHAR(160),SUBSTITUTE($O187,\"}\",CHAR(160),FJ$1))-FIND(CHAR(160),SUBSTITUTE($O187,\"{\",CHAR(160),FJ$1))+1),\"\")","v":""},{"$f":"IFERROR(MID($O187,FIND(CHAR(160),SUBSTITUTE($O187,\"{\",CHAR(160),FK$1)),FIND(CHAR(160),SUBSTITUTE($O187,\"}\",CHAR(160),FK$1))-FIND(CHAR(160),SUBSTITUTE($O187,\"{\",CHAR(160),FK$1))+1),\"\")","v":"{Measure:Quantity}"},{"$f":"IFERROR(MID($O187,FIND(CHAR(160),SUBSTITUTE($O187,\"{\",CHAR(160),FL$1)),FIND(CHAR(160),SUBSTITUTE($O187,\"}\",CHAR(160),FL$1))-FIND(CHAR(160),SUBSTITUTE($O187,\"{\",CHAR(160),FL$1))+1),\"\")","v":"{Package Size}"},{"$f":"IFERROR(MID($R187,FIND(CHAR(160),SUBSTITUTE($R187,\"{\",CHAR(160),FM$1)),FIND(CHAR(160),SUBSTITUTE($R187,\"}\",CHAR(160),FM$1))-FIND(CHAR(160),SUBSTITUTE($R187,\"{\",CHAR(160),FM$1))+1),\"\")","v":""},{"$f":"IFERROR(MID($R187,FIND(CHAR(160),SUBSTITUTE($R187,\"{\",CHAR(160),FN$1)),FIND(CHAR(160),SUBSTITUTE($R187,\"}\",CHAR(160),FN$1))-FIND(CHAR(160),SUBSTITUTE($R187,\"{\",CHAR(160),FN$1))+1),\"\")","v":""},{"$f":"IFERROR(MID($R187,FIND(CHAR(160),SUBSTITUTE($R187,\"{\",CHAR(160),FO$1)),FIND(CHAR(160),SUBSTITUTE($R187,\"}\",CHAR(160),FO$1))-FIND(CHAR(160),SUBSTITUTE($R187,\"{\",CHAR(160),FO$1))+1),\"\")","v":""},{"$f":"IFERROR(MID($R187,FIND(CHAR(160),SUBSTITUTE($R187,\"{\",CHAR(160),FP$1)),FIND(CHAR(160),SUBSTITUTE($R187,\"}\",CHAR(160),FP$1))-FIND(CHAR(160),SUBSTITUTE($R187,\"{\",CHAR(160),FP$1))+1),\"\")","v":""},{"$f":"IFERROR(MID($R187,FIND(CHAR(160),SUBSTITUTE($R187,\"{\",CHAR(160),FQ$1)),FIND(CHAR(160),SUBSTITUTE($R187,\"}\",CHAR(160),FQ$1))-FIND(CHAR(160),SUBSTITUTE($R187,\"{\",CHAR(160),FQ$1))+1),\"\")","v":""},{"$f":"IFERROR(MID($R187,FIND(CHAR(160),SUBSTITUTE($R187,\"{\",CHAR(160),FR$1)),FIND(CHAR(160),SUBSTITUTE($R187,\"}\",CHAR(160),FR$1))-FIND(CHAR(160),SUBSTITUTE($R187,\"{\",CHAR(160),FR$1))+1),\"\")","v":""},{"$f":"IFERROR(MID($R187,FIND(CHAR(160),SUBSTITUTE($R187,\"{\",CHAR(160),FS$1)),FIND(CHAR(160),SUBSTITUTE($R187,\"}\",CHAR(160),FS$1))-FIND(CHAR(160),SUBSTITUTE($R187,\"{\",CHAR(160),FS$1))+1),\"\")","v":""},{"$f":"IFERROR(MID($R187,FIND(CHAR(160),SUBSTITUTE($R187,\"{\",CHAR(160),FT$1)),FIND(CHAR(160),SUBSTITUTE($R187,\"}\",CHAR(160),FT$1))-FIND(CHAR(160),SUBSTITUTE($R187,\"{\",CHAR(160),FT$1))+1),\"\")","v":""},{"$f":"IFERROR(MID($R187,FIND(CHAR(160),SUBSTITUTE($R187,\"{\",CHAR(160),FU$1)),FIND(CHAR(160),SUBSTITUTE($R187,\"}\",CHAR(160),FU$1))-FIND(CHAR(160),SUBSTITUTE($R187,\"{\",CHAR(160),FU$1))+1),\"\")","v":"{Measure:Quantity}"},{"$f":"IFERROR(MID($R187,FIND(CHAR(160),SUBSTITUTE($R187,\"{\",CHAR(160),FV$1)),FIND(CHAR(160),SUBSTITUTE($R187,\"}\",CHAR(160),FV$1))-FIND(CHAR(160),SUBSTITUTE($R187,\"{\",CHAR(160),FV$1))+1),\"\")","v":"{Package Size}"},{"$f":"IFERROR(MID($U187,FIND(CHAR(160),SUBSTITUTE($U187,\"{\",CHAR(160),FW$1)),FIND(CHAR(160),SUBSTITUTE($U187,\"}\",CHAR(160),FW$1))-FIND(CHAR(160),SUBSTITUTE($U187,\"{\",CHAR(160),FW$1))+1),\"\")","v":"{Factor:WinterCF}"},{"$f":"IFERROR(MID($U187,FIND(CHAR(160),SUBSTITUTE($U187,\"{\",CHAR(160),FX$1)),FIND(CHAR(160),SUBSTITUTE($U187,\"}\",CHAR(160),FX$1))-FIND(CHAR(160),SUBSTITUTE($U187,\"{\",CHAR(160),FX$1))+1),\"\")","v":""},{"$f":"IFERROR(MID($U187,FIND(CHAR(160),SUBSTITUTE($U187,\"{\",CHAR(160),FY$1)),FIND(CHAR(160),SUBSTITUTE($U187,\"}\",CHAR(160),FY$1))-FIND(CHAR(160),SUBSTITUTE($U187,\"{\",CHAR(160),FY$1))+1),\"\")","v":""},{"$f":"IFERROR(MID($U187,FIND(CHAR(160),SUBSTITUTE($U187,\"{\",CHAR(160),FZ$1)),FIND(CHAR(160),SUBSTITUTE($U187,\"}\",CHAR(160),FZ$1))-FIND(CHAR(160),SUBSTITUTE($U187,\"{\",CHAR(160),FZ$1))+1),\"\")","v":""},{"$f":"IFERROR(MID($U187,FIND(CHAR(160),SUBSTITUTE($U187,\"{\",CHAR(160),GA$1)),FIND(CHAR(160),SUBSTITUTE($U187,\"}\",CHAR(160),GA$1))-FIND(CHAR(160),SUBSTITUTE($U187,\"{\",CHAR(160),GA$1))+1),\"\")","v":""},{"$f":"IFERROR(MID($U187,FIND(CHAR(160),SUBSTITUTE($U187,\"{\",CHAR(160),GB$1)),FIND(CHAR(160),SUBSTITUTE($U187,\"}\",CHAR(160),GB$1))-FIND(CHAR(160),SUBSTITUTE($U187,\"{\",CHAR(160),GB$1))+1),\"\")","v":""},{"$f":"IFERROR(MID($U187,FIND(CHAR(160),SUBSTITUTE($U187,\"{\",CHAR(160),GC$1)),FIND(CHAR(160),SUBSTITUTE($U187,\"}\",CHAR(160),GC$1))-FIND(CHAR(160),SUBSTITUTE($U187,\"{\",CHAR(160),GC$1))+1),\"\")","v":""},{"$f":"IFERROR(MID($U187,FIND(CHAR(160),SUBSTITUTE($U187,\"{\",CHAR(160),GD$1)),FIND(CHAR(160),SUBSTITUTE($U187,\"}\",CHAR(160),GD$1))-FIND(CHAR(160),SUBSTITUTE($U187,\"{\",CHAR(160),GD$1))+1),\"\")","v":""},{"$f":"IFERROR(MID($U187,FIND(CHAR(160),SUBSTITUTE($U187,\"{\",CHAR(160),GE$1)),FIND(CHAR(160),SUBSTITUTE($U187,\"}\",CHAR(160),GE$1))-FIND(CHAR(160),SUBSTITUTE($U187,\"{\",CHAR(160),GE$1))+1),\"\")","v":"{Measure:Quantity}"},{"$f":"IFERROR(MID($U187,FIND(CHAR(160),SUBSTITUTE($U187,\"{\",CHAR(160),GF$1)),FIND(CHAR(160),SUBSTITUTE($U187,\"}\",CHAR(160),GF$1))-FIND(CHAR(160),SUBSTITUTE($U187,\"{\",CHAR(160),GF$1))+1),\"\")","v":"{Package Size}"},{"$f":"IFERROR(MID($V187,FIND(CHAR(160),SUBSTITUTE($V187,\"{\",CHAR(160),GG$1)),FIND(CHAR(160),SUBSTITUTE($V187,\"}\",CHAR(160),GG$1))-FIND(CHAR(160),SUBSTITUTE($V187,\"{\",CHAR(160),GG$1))+1),\"\")","v":"{Factor:SummerCF}"},{"$f":"IFERROR(MID($V187,FIND(CHAR(160),SUBSTITUTE($V187,\"{\",CHAR(160),GH$1)),FIND(CHAR(160),SUBSTITUTE($V187,\"}\",CHAR(160),GH$1))-FIND(CHAR(160),SUBSTITUTE($V187,\"{\",CHAR(160),GH$1))+1),\"\")","v":""},{"$f":"IFERROR(MID($V187,FIND(CHAR(160),SUBSTITUTE($V187,\"{\",CHAR(160),GI$1)),FIND(CHAR(160),SUBSTITUTE($V187,\"}\",CHAR(160),GI$1))-FIND(CHAR(160),SUBSTITUTE($V187,\"{\",CHAR(160),GI$1))+1),\"\")","v":""},{"$f":"IFERROR(MID($V187,FIND(CHAR(160),SUBSTITUTE($V187,\"{\",CHAR(160),GJ$1)),FIND(CHAR(160),SUBSTITUTE($V187,\"}\",CHAR(160),GJ$1))-FIND(CHAR(160),SUBSTITUTE($V187,\"{\",CHAR(160),GJ$1))+1),\"\")","v":""},{"$f":"IFERROR(MID($V187,FIND(CHAR(160),SUBSTITUTE($V187,\"{\",CHAR(160),GK$1)),FIND(CHAR(160),SUBSTITUTE($V187,\"}\",CHAR(160),GK$1))-FIND(CHAR(160),SUBSTITUTE($V187,\"{\",CHAR(160),GK$1))+1),\"\")","v":""},{"$f":"IFERROR(MID($V187,FIND(CHAR(160),SUBSTITUTE($V187,\"{\",CHAR(160),GL$1)),FIND(CHAR(160),SUBSTITUTE($V187,\"}\",CHAR(160),GL$1))-FIND(CHAR(160),SUBSTITUTE($V187,\"{\",CHAR(160),GL$1))+1),\"\")","v":""},{"$f":"IFERROR(MID($V187,FIND(CHAR(160),SUBSTITUTE($V187,\"{\",CHAR(160),GM$1)),FIND(CHAR(160),SUBSTITUTE($V187,\"}\",CHAR(160),GM$1))-FIND(CHAR(160),SUBSTITUTE($V187,\"{\",CHAR(160),GM$1))+1),\"\")","v":""},{"$f":"IFERROR(MID($V187,FIND(CHAR(160),SUBSTITUTE($V187,\"{\",CHAR(160),GN$1)),FIND(CHAR(160),SUBSTITUTE($V187,\"}\",CHAR(160),GN$1))-FIND(CHAR(160),SUBSTITUTE($V187,\"{\",CHAR(160),GN$1))+1),\"\")","v":""},{"$f":"IFERROR(MID($V187,FIND(CHAR(160),SUBSTITUTE($V187,\"{\",CHAR(160),GO$1)),FIND(CHAR(160),SUBSTITUTE($V187,\"}\",CHAR(160),GO$1))-FIND(CHAR(160),SUBSTITUTE($V187,\"{\",CHAR(160),GO$1))+1),\"\")","v":"{Measure:Quantity}"},{"$f":"IFERROR(MID($V187,FIND(CHAR(160),SUBSTITUTE($V187,\"{\",CHAR(160),GP$1)),FIND(CHAR(160),SUBSTITUTE($V187,\"}\",CHAR(160),GP$1))-FIND(CHAR(160),SUBSTITUTE($V187,\"{\",CHAR(160),GP$1))+1),\"\")","v":"{Package Size}"},{"$f":"IFERROR(MID($W187,FIND(CHAR(160),SUBSTITUTE($W187,\"{\",CHAR(160),GQ$1)),FIND(CHAR(160),SUBSTITUTE($W187,\"}\",CHAR(160),GQ$1))-FIND(CHAR(160),SUBSTITUTE($W187,\"{\",CHAR(160),GQ$1))+1),\"\")","v":""},{"$f":"IFERROR(MID($W187,FIND(CHAR(160),SUBSTITUTE($W187,\"{\",CHAR(160),GR$1)),FIND(CHAR(160),SUBSTITUTE($W187,\"}\",CHAR(160),GR$1))-FIND(CHAR(160),SUBSTITUTE($W187,\"{\",CHAR(160),GR$1))+1),\"\")","v":""},{"$f":"IFERROR(MID($W187,FIND(CHAR(160),SUBSTITUTE($W187,\"{\",CHAR(160),GS$1)),FIND(CHAR(160),SUBSTITUTE($W187,\"}\",CHAR(160),GS$1))-FIND(CHAR(160),SUBSTITUTE($W187,\"{\",CHAR(160),GS$1))+1),\"\")","v":""},{"$f":"IFERROR(MID($W187,FIND(CHAR(160),SUBSTITUTE($W187,\"{\",CHAR(160),GT$1)),FIND(CHAR(160),SUBSTITUTE($W187,\"}\",CHAR(160),GT$1))-FIND(CHAR(160),SUBSTITUTE($W187,\"{\",CHAR(160),GT$1))+1),\"\")","v":""},{"$f":"IFERROR(MID($W187,FIND(CHAR(160),SUBSTITUTE($W187,\"{\",CHAR(160),GU$1)),FIND(CHAR(160),SUBSTITUTE($W187,\"}\",CHAR(160),GU$1))-FIND(CHAR(160),SUBSTITUTE($W187,\"{\",CHAR(160),GU$1))+1),\"\")","v":""},{"$f":"IFERROR(MID($W187,FIND(CHAR(160),SUBSTITUTE($W187,\"{\",CHAR(160),GV$1)),FIND(CHAR(160),SUBSTITUTE($W187,\"}\",CHAR(160),GV$1))-FIND(CHAR(160),SUBSTITUTE($W187,\"{\",CHAR(160),GV$1))+1),\"\")","v":""},{"$f":"IFERROR(MID($W187,FIND(CHAR(160),SUBSTITUTE($W187,\"{\",CHAR(160),GW$1)),FIND(CHAR(160),SUBSTITUTE($W187,\"}\",CHAR(160),GW$1))-FIND(CHAR(160),SUBSTITUTE($W187,\"{\",CHAR(160),GW$1))+1),\"\")","v":""},{"$f":"IFERROR(MID($W187,FIND(CHAR(160),SUBSTITUTE($W187,\"{\",CHAR(160),GX$1)),FIND(CHAR(160),SUBSTITUTE($W187,\"}\",CHAR(160),GX$1))-FIND(CHAR(160),SUBSTITUTE($W187,\"{\",CHAR(160),GX$1))+1),\"\")","v":""},{"$f":"IFERROR(MID($W187,FIND(CHAR(160),SUBSTITUTE($W187,\"{\",CHAR(160),GY$1)),FIND(CHAR(160),SUBSTITUTE($W187,\"}\",CHAR(160),GY$1))-FIND(CHAR(160),SUBSTITUTE($W187,\"{\",CHAR(160),GY$1))+1),\"\")","v":"{Measure:Quantity}"},{"$f":"IFERROR(MID($W187,FIND(CHAR(160),SUBSTITUTE($W187,\"{\",CHAR(160),GZ$1)),FIND(CHAR(160),SUBSTITUTE($W187,\"}\",CHAR(160),GZ$1))-FIND(CHAR(160),SUBSTITUTE($W187,\"{\",CHAR(160),GZ$1))+1),\"\")","v":"{Package Size}"},{"$f":"IFERROR(MID($X187,FIND(CHAR(160),SUBSTITUTE($X187,\"{\",CHAR(160),HA$1)),FIND(CHAR(160),SUBSTITUTE($X187,\"}\",CHAR(160),HA$1))-FIND(CHAR(160),SUBSTITUTE($X187,\"{\",CHAR(160),HA$1))+1),\"\")","v":""},{"$f":"IFERROR(MID($X187,FIND(CHAR(160),SUBSTITUTE($X187,\"{\",CHAR(160),HB$1)),FIND(CHAR(160),SUBSTITUTE($X187,\"}\",CHAR(160),HB$1))-FIND(CHAR(160),SUBSTITUTE($X187,\"{\",CHAR(160),HB$1))+1),\"\")","v":""},{"$f":"IFERROR(MID($X187,FIND(CHAR(160),SUBSTITUTE($X187,\"{\",CHAR(160),HC$1)),FIND(CHAR(160),SUBSTITUTE($X187,\"}\",CHAR(160),HC$1))-FIND(CHAR(160),SUBSTITUTE($X187,\"{\",CHAR(160),HC$1))+1),\"\")","v":""},{"$f":"IFERROR(MID($X187,FIND(CHAR(160),SUBSTITUTE($X187,\"{\",CHAR(160),HD$1)),FIND(CHAR(160),SUBSTITUTE($X187,\"}\",CHAR(160),HD$1))-FIND(CHAR(160),SUBSTITUTE($X187,\"{\",CHAR(160),HD$1))+1),\"\")","v":""},{"$f":"IFERROR(MID($X187,FIND(CHAR(160),SUBSTITUTE($X187,\"{\",CHAR(160),HE$1)),FIND(CHAR(160),SUBSTITUTE($X187,\"}\",CHAR(160),HE$1))-FIND(CHAR(160),SUBSTITUTE($X187,\"{\",CHAR(160),HE$1))+1),\"\")","v":""},{"$f":"IFERROR(MID($X187,FIND(CHAR(160),SUBSTITUTE($X187,\"{\",CHAR(160),HF$1)),FIND(CHAR(160),SUBSTITUTE($X187,\"}\",CHAR(160),HF$1))-FIND(CHAR(160),SUBSTITUTE($X187,\"{\",CHAR(160),HF$1))+1),\"\")","v":""},{"$f":"IFERROR(MID($X187,FIND(CHAR(160),SUBSTITUTE($X187,\"{\",CHAR(160),HG$1)),FIND(CHAR(160),SUBSTITUTE($X187,\"}\",CHAR(160),HG$1))-FIND(CHAR(160),SUBSTITUTE($X187,\"{\",CHAR(160),HG$1))+1),\"\")","v":""},{"$f":"IFERROR(MID($X187,FIND(CHAR(160),SUBSTITUTE($X187,\"{\",CHAR(160),HH$1)),FIND(CHAR(160),SUBSTITUTE($X187,\"}\",CHAR(160),HH$1))-FIND(CHAR(160),SUBSTITUTE($X187,\"{\",CHAR(160),HH$1))+1),\"\")","v":""},{"$f":"IFERROR(MID($X187,FIND(CHAR(160),SUBSTITUTE($X187,\"{\",CHAR(160),HI$1)),FIND(CHAR(160),SUBSTITUTE($X187,\"}\",CHAR(160),HI$1))-FIND(CHAR(160),SUBSTITUTE($X187,\"{\",CHAR(160),HI$1))+1),\"\")","v":"{Measure:Quantity}"},{"$f":"IFERROR(MID($X187,FIND(CHAR(160),SUBSTITUTE($X187,\"{\",CHAR(160),HJ$1)),FIND(CHAR(160),SUBSTITUTE($X187,\"}\",CHAR(160),HJ$1))-FIND(CHAR(160),SUBSTITUTE($X187,\"{\",CHAR(160),HJ$1))+1),\"\")","v":"{Package Size}"},{"$f":"IFERROR(MID($Y187,FIND(CHAR(160),SUBSTITUTE($Y187,\"{\",CHAR(160),HK$1)),FIND(CHAR(160),SUBSTITUTE($Y187,\"}\",CHAR(160),HK$1))-FIND(CHAR(160),SUBSTITUTE($Y187,\"{\",CHAR(160),HK$1))+1),\"\")","v":""},{"$f":"IFERROR(MID($Y187,FIND(CHAR(160),SUBSTITUTE($Y187,\"{\",CHAR(160),HL$1)),FIND(CHAR(160),SUBSTITUTE($Y187,\"}\",CHAR(160),HL$1))-FIND(CHAR(160),SUBSTITUTE($Y187,\"{\",CHAR(160),HL$1))+1),\"\")","v":""},{"$f":"IFERROR(MID($Y187,FIND(CHAR(160),SUBSTITUTE($Y187,\"{\",CHAR(160),HM$1)),FIND(CHAR(160),SUBSTITUTE($Y187,\"}\",CHAR(160),HM$1))-FIND(CHAR(160),SUBSTITUTE($Y187,\"{\",CHAR(160),HM$1))+1),\"\")","v":""},{"$f":"IFERROR(MID($Y187,FIND(CHAR(160),SUBSTITUTE($Y187,\"{\",CHAR(160),HN$1)),FIND(CHAR(160),SUBSTITUTE($Y187,\"}\",CHAR(160),HN$1))-FIND(CHAR(160),SUBSTITUTE($Y187,\"{\",CHAR(160),HN$1))+1),\"\")","v":""},{"$f":"IFERROR(MID($Y187,FIND(CHAR(160),SUBSTITUTE($Y187,\"{\",CHAR(160),HO$1)),FIND(CHAR(160),SUBSTITUTE($Y187,\"}\",CHAR(160),HO$1))-FIND(CHAR(160),SUBSTITUTE($Y187,\"{\",CHAR(160),HO$1))+1),\"\")","v":""},{"$f":"IFERROR(MID($Y187,FIND(CHAR(160),SUBSTITUTE($Y187,\"{\",CHAR(160),HP$1)),FIND(CHAR(160),SUBSTITUTE($Y187,\"}\",CHAR(160),HP$1))-FIND(CHAR(160),SUBSTITUTE($Y187,\"{\",CHAR(160),HP$1))+1),\"\")","v":""},{"$f":"IFERROR(MID($Y187,FIND(CHAR(160),SUBSTITUTE($Y187,\"{\",CHAR(160),HQ$1)),FIND(CHAR(160),SUBSTITUTE($Y187,\"}\",CHAR(160),HQ$1))-FIND(CHAR(160),SUBSTITUTE($Y187,\"{\",CHAR(160),HQ$1))+1),\"\")","v":""},{"$f":"IFERROR(MID($Y187,FIND(CHAR(160),SUBSTITUTE($Y187,\"{\",CHAR(160),HR$1)),FIND(CHAR(160),SUBSTITUTE($Y187,\"}\",CHAR(160),HR$1))-FIND(CHAR(160),SUBSTITUTE($Y187,\"{\",CHAR(160),HR$1))+1),\"\")","v":""},{"$f":"IFERROR(MID($Y187,FIND(CHAR(160),SUBSTITUTE($Y187,\"{\",CHAR(160),HS$1)),FIND(CHAR(160),SUBSTITUTE($Y187,\"}\",CHAR(160),HS$1))-FIND(CHAR(160),SUBSTITUTE($Y187,\"{\",CHAR(160),HS$1))+1),\"\")","v":"{Measure:Quantity}"},{"$f":"IFERROR(MID($Y187,FIND(CHAR(160),SUBSTITUTE($Y187,\"{\",CHAR(160),HT$1)),FIND(CHAR(160),SUBSTITUTE($Y187,\"}\",CHAR(160),HT$1))-FIND(CHAR(160),SUBSTITUTE($Y187,\"{\",CHAR(160),HT$1))+1),\"\")","v":"{Package Size}"},{"$f":"IFERROR(MID($Z187,FIND(CHAR(160),SUBSTITUTE($Z187,\"{\",CHAR(160),HU$1)),FIND(CHAR(160),SUBSTITUTE($Z187,\"}\",CHAR(160),HU$1))-FIND(CHAR(160),SUBSTITUTE($Z187,\"{\",CHAR(160),HU$1))+1),\"\")","v":""},{"$f":"IFERROR(MID($Z187,FIND(CHAR(160),SUBSTITUTE($Z187,\"{\",CHAR(160),HV$1)),FIND(CHAR(160),SUBSTITUTE($Z187,\"}\",CHAR(160),HV$1))-FIND(CHAR(160),SUBSTITUTE($Z187,\"{\",CHAR(160),HV$1))+1),\"\")","v":""},{"$f":"IFERROR(MID($Z187,FIND(CHAR(160),SUBSTITUTE($Z187,\"{\",CHAR(160),HW$1)),FIND(CHAR(160),SUBSTITUTE($Z187,\"}\",CHAR(160),HW$1))-FIND(CHAR(160),SUBSTITUTE($Z187,\"{\",CHAR(160),HW$1))+1),\"\")","v":""},{"$f":"IFERROR(MID($Z187,FIND(CHAR(160),SUBSTITUTE($Z187,\"{\",CHAR(160),HX$1)),FIND(CHAR(160),SUBSTITUTE($Z187,\"}\",CHAR(160),HX$1))-FIND(CHAR(160),SUBSTITUTE($Z187,\"{\",CHAR(160),HX$1))+1),\"\")","v":""},{"$f":"IFERROR(MID($Z187,FIND(CHAR(160),SUBSTITUTE($Z187,\"{\",CHAR(160),HY$1)),FIND(CHAR(160),SUBSTITUTE($Z187,\"}\",CHAR(160),HY$1))-FIND(CHAR(160),SUBSTITUTE($Z187,\"{\",CHAR(160),HY$1))+1),\"\")","v":""},{"$f":"IFERROR(MID($Z187,FIND(CHAR(160),SUBSTITUTE($Z187,\"{\",CHAR(160),HZ$1)),FIND(CHAR(160),SUBSTITUTE($Z187,\"}\",CHAR(160),HZ$1))-FIND(CHAR(160),SUBSTITUTE($Z187,\"{\",CHAR(160),HZ$1))+1),\"\")","v":""},{"$f":"IFERROR(MID($Z187,FIND(CHAR(160),SUBSTITUTE($Z187,\"{\",CHAR(160),IA$1)),FIND(CHAR(160),SUBSTITUTE($Z187,\"}\",CHAR(160),IA$1))-FIND(CHAR(160),SUBSTITUTE($Z187,\"{\",CHAR(160),IA$1))+1),\"\")","v":""},{"$f":"IFERROR(MID($Z187,FIND(CHAR(160),SUBSTITUTE($Z187,\"{\",CHAR(160),IB$1)),FIND(CHAR(160),SUBSTITUTE($Z187,\"}\",CHAR(160),IB$1))-FIND(CHAR(160),SUBSTITUTE($Z187,\"{\",CHAR(160),IB$1))+1),\"\")","v":""},{"$f":"IFERROR(MID($Z187,FIND(CHAR(160),SUBSTITUTE($Z187,\"{\",CHAR(160),IC$1)),FIND(CHAR(160),SUBSTITUTE($Z187,\"}\",CHAR(160),IC$1))-FIND(CHAR(160),SUBSTITUTE($Z187,\"{\",CHAR(160),IC$1))+1),\"\")","v":"{Measure:Quantity}"},{"$f":"IFERROR(MID($Z187,FIND(CHAR(160),SUBSTITUTE($Z187,\"{\",CHAR(160),ID$1)),FIND(CHAR(160),SUBSTITUTE($Z187,\"}\",CHAR(160),ID$1))-FIND(CHAR(160),SUBSTITUTE($Z187,\"{\",CHAR(160),ID$1))+1),\"\")","v":"{Package Size}"},{"$f":"IFERROR(MID($AA187,FIND(CHAR(160),SUBSTITUTE($AA187,\"{\",CHAR(160),IE$1)),FIND(CHAR(160),SUBSTITUTE($AA187,\"}\",CHAR(160),IE$1))-FIND(CHAR(160),SUBSTITUTE($AA187,\"{\",CHAR(160),IE$1))+1),\"\")","v":""},{"$f":"IFERROR(MID($AA187,FIND(CHAR(160),SUBSTITUTE($AA187,\"{\",CHAR(160),IF$1)),FIND(CHAR(160),SUBSTITUTE($AA187,\"}\",CHAR(160),IF$1))-FIND(CHAR(160),SUBSTITUTE($AA187,\"{\",CHAR(160),IF$1))+1),\"\")","v":""},{"$f":"IFERROR(MID($AA187,FIND(CHAR(160),SUBSTITUTE($AA187,\"{\",CHAR(160),IG$1)),FIND(CHAR(160),SUBSTITUTE($AA187,\"}\",CHAR(160),IG$1))-FIND(CHAR(160),SUBSTITUTE($AA187,\"{\",CHAR(160),IG$1))+1),\"\")","v":""},{"$f":"IFERROR(MID($AA187,FIND(CHAR(160),SUBSTITUTE($AA187,\"{\",CHAR(160),IH$1)),FIND(CHAR(160),SUBSTITUTE($AA187,\"}\",CHAR(160),IH$1))-FIND(CHAR(160),SUBSTITUTE($AA187,\"{\",CHAR(160),IH$1))+1),\"\")","v":""},{"$f":"IFERROR(MID($AA187,FIND(CHAR(160),SUBSTITUTE($AA187,\"{\",CHAR(160),II$1)),FIND(CHAR(160),SUBSTITUTE($AA187,\"}\",CHAR(160),II$1))-FIND(CHAR(160),SUBSTITUTE($AA187,\"{\",CHAR(160),II$1))+1),\"\")","v":""},{"$f":"IFERROR(MID($AA187,FIND(CHAR(160),SUBSTITUTE($AA187,\"{\",CHAR(160),IJ$1)),FIND(CHAR(160),SUBSTITUTE($AA187,\"}\",CHAR(160),IJ$1))-FIND(CHAR(160),SUBSTITUTE($AA187,\"{\",CHAR(160),IJ$1))+1),\"\")","v":""},{"$f":"IFERROR(MID($AA187,FIND(CHAR(160),SUBSTITUTE($AA187,\"{\",CHAR(160),IK$1)),FIND(CHAR(160),SUBSTITUTE($AA187,\"}\",CHAR(160),IK$1))-FIND(CHAR(160),SUBSTITUTE($AA187,\"{\",CHAR(160),IK$1))+1),\"\")","v":""},{"$f":"IFERROR(MID($AA187,FIND(CHAR(160),SUBSTITUTE($AA187,\"{\",CHAR(160),IL$1)),FIND(CHAR(160),SUBSTITUTE($AA187,\"}\",CHAR(160),IL$1))-FIND(CHAR(160),SUBSTITUTE($AA187,\"{\",CHAR(160),IL$1))+1),\"\")","v":""},{"$f":"IFERROR(MID($AA187,FIND(CHAR(160),SUBSTITUTE($AA187,\"{\",CHAR(160),IM$1)),FIND(CHAR(160),SUBSTITUTE($AA187,\"}\",CHAR(160),IM$1))-FIND(CHAR(160),SUBSTITUTE($AA187,\"{\",CHAR(160),IM$1))+1),\"\")","v":"{Measure:Quantity}"},{"$f":"IFERROR(MID($AA187,FIND(CHAR(160),SUBSTITUTE($AA187,\"{\",CHAR(160),IN$1)),FIND(CHAR(160),SUBSTITUTE($AA187,\"}\",CHAR(160),IN$1))-FIND(CHAR(160),SUBSTITUTE($AA187,\"{\",CHAR(160),IN$1))+1),\"\")","v":"{Package Size}"},{"$f":"IFERROR(MID($AB187,FIND(CHAR(160),SUBSTITUTE($AB187,\"{\",CHAR(160),IO$1)),FIND(CHAR(160),SUBSTITUTE($AB187,\"}\",CHAR(160),IO$1))-FIND(CHAR(160),SUBSTITUTE($AB187,\"{\",CHAR(160),IO$1))+1),\"\")","v":""},{"$f":"IFERROR(MID($AB187,FIND(CHAR(160),SUBSTITUTE($AB187,\"{\",CHAR(160),IP$1)),FIND(CHAR(160),SUBSTITUTE($AB187,\"}\",CHAR(160),IP$1))-FIND(CHAR(160),SUBSTITUTE($AB187,\"{\",CHAR(160),IP$1))+1),\"\")","v":""},{"$f":"IFERROR(MID($AB187,FIND(CHAR(160),SUBSTITUTE($AB187,\"{\",CHAR(160),IQ$1)),FIND(CHAR(160),SUBSTITUTE($AB187,\"}\",CHAR(160),IQ$1))-FIND(CHAR(160),SUBSTITUTE($AB187,\"{\",CHAR(160),IQ$1))+1),\"\")","v":""},{"$f":"IFERROR(MID($AB187,FIND(CHAR(160),SUBSTITUTE($AB187,\"{\",CHAR(160),IR$1)),FIND(CHAR(160),SUBSTITUTE($AB187,\"}\",CHAR(160),IR$1))-FIND(CHAR(160),SUBSTITUTE($AB187,\"{\",CHAR(160),IR$1))+1),\"\")","v":""},{"$f":"IFERROR(MID($AB187,FIND(CHAR(160),SUBSTITUTE($AB187,\"{\",CHAR(160),IS$1)),FIND(CHAR(160),SUBSTITUTE($AB187,\"}\",CHAR(160),IS$1))-FIND(CHAR(160),SUBSTITUTE($AB187,\"{\",CHAR(160),IS$1))+1),\"\")","v":""},{"$f":"IFERROR(MID($AB187,FIND(CHAR(160),SUBSTITUTE($AB187,\"{\",CHAR(160),IT$1)),FIND(CHAR(160),SUBSTITUTE($AB187,\"}\",CHAR(160),IT$1))-FIND(CHAR(160),SUBSTITUTE($AB187,\"{\",CHAR(160),IT$1))+1),\"\")","v":""},{"$f":"IFERROR(MID($AB187,FIND(CHAR(160),SUBSTITUTE($AB187,\"{\",CHAR(160),IU$1)),FIND(CHAR(160),SUBSTITUTE($AB187,\"}\",CHAR(160),IU$1))-FIND(CHAR(160),SUBSTITUTE($AB187,\"{\",CHAR(160),IU$1))+1),\"\")","v":""},{"$f":"IFERROR(MID($AB187,FIND(CHAR(160),SUBSTITUTE($AB187,\"{\",CHAR(160),IV$1)),FIND(CHAR(160),SUBSTITUTE($AB187,\"}\",CHAR(160),IV$1))-FIND(CHAR(160),SUBSTITUTE($AB187,\"{\",CHAR(160),IV$1))+1),\"\")","v":""},{"$f":"IFERROR(MID($AB187,FIND(CHAR(160),SUBSTITUTE($AB187,\"{\",CHAR(160),IW$1)),FIND(CHAR(160),SUBSTITUTE($AB187,\"}\",CHAR(160),IW$1))-FIND(CHAR(160),SUBSTITUTE($AB187,\"{\",CHAR(160),IW$1))+1),\"\")","v":""},{"$f":"IFERROR(MID($AB187,FIND(CHAR(160),SUBSTITUTE($AB187,\"{\",CHAR(160),IX$1)),FIND(CHAR(160),SUBSTITUTE($AB187,\"}\",CHAR(160),IX$1))-FIND(CHAR(160),SUBSTITUTE($AB187,\"{\",CHAR(160),IX$1))+1),\"\")","v":""},null,{"$f":"10-COUNTIF(DU187:ED187,\"\")","v":3}]
["Distributor Lighting","Outdoor_Type_C >10000 lm - long life","S6CHL","2021-07-01","2022-06-30","Calculated","{Measure:Quantity}*{Package Size}*99.13",0,"Calculated","{Measure:Quantity}*{Rebate per Package}",0,"2021-07-01","2022-06-30","Calculated","{Measure:Quantity}*{Package Size}*1444",null,null,"{Measure:Quantity}*{Package Size}*1*0.34",null,null,"{Measure:Quantity}*{Package Size}*{Factor:WinterCF}*0.34","{Measure:Quantity}*{Package Size}*{Factor:SummerCF}*1*0.34","{Measure:Quantity}*{Package Size}*10*0","{Measure:Quantity}*{Package Size}*0","{Measure:Quantity}*{Package Size}*0","{Measure:Quantity}*{Package Size}*0","{Measure:Quantity}*{Package Size}*0",null,"2021-07-01","2022-06-30",12,0.82399999999999995,6.6000000000000003E-2,0.27300000000000002,0.45,9.5000000000000001E-2,0.182,0.99,1,1,0.51,0,null,{"$f":"DU188","v":"{Measure:Quantity}"},1,{"$f":"DV188","v":"{Package Size}"},1,{"$f":"DW188","v":"{Rebate per Package}"},{"$f":"CW188*CO188","v":74.347499999999997},{"$f":"DX188","v":""},null,{"$f":"DY188","v":""},null,{"$f":"DZ188","v":""},null,{"$f":"EA188","v":""},null,{"$f":"EB188","v":""},null,{"$f":"EC188","v":""},null,{"$f":"ED188","v":""},null,{"$f":"AS188*AU188*1444","v":1444},0,0,{"$f":"AS188*AU188*1*0.34","v":0.34},0,0,{"$f":"AS188*AU188*AF188*0.34","v":0.28016000000000002},{"$f":"AS188*AU188*AG188*1*0.34","v":2.2440000000000002E-2},{"$f":"AS188*AU188*10*0","v":0},{"$f":"AS188*AU188*0","v":0},{"$f":"AS188*AU188*0","v":0},{"$f":"AS188*AU188*0","v":0},{"$f":"AS188*AU188*0","v":0},0,null,"Res","Default DR",{"$f":"Benefits(BL188,BR188,BS188,BT188,BU188,BV188,BW188,BX188,BY188,BZ188,AE188,AH188,AI188,AJ188,AK188,AL188,AM188,AN188,AO188,AP188,CA188,CB188)","v":1641.8990167879408},900.92531914087419,0,0,0,0,0,0,0,{"$f":"SUMPRODUCT(CC188:CK188,--(CC188:CK188>0))","v":2542.8243359288149},{"$f":"-SUMPRODUCT(CC188:CK188,--(CC188:CK188<0))","v":0},null,{"$f":"AS188*AU188*99.13","v":99.13},null,null,{"$f":"CM188+CO188","v":99.13},{"$f":"IF(NetOrGross=\"Net\",(1-AO188+AP188),1)","v":1},{"$f":"(SUMPRODUCT(CC188:CJ188,--(CC188:CJ188>0))+CN188)*CS188/((-SUMPRODUCT(CC188:CJ188,--(CC188:CJ188<0))+MAX(CO188,CV188)+CP188+CQ188)*CS188+IF(FRIncentives=\"Yes\",CV188*(1-CS188),0))","v":25.651410631784678},1,{"$f":"AS188*AW188","v":74.347499999999997},{"$f":"CW187","v":0.75},"Electric","y",null,{"$f":"IF(F188=\"Manual Entry\",\"Manual\",IF(G188=\"\",0,\"X=\"&SUBSTITUTE(SUBSTITUTE(SUBSTITUTE(SUBSTITUTE(SUBSTITUTE(SUBSTITUTE(SUBSTITUTE(SUBSTITUTE(SUBSTITUTE(SUBSTITUTE(SUBSTITUTE(SUBSTITUTE(G188,$ED188,$ED$2&ROW($ED188)),$EC188,$EC$2&ROW($EC188)),$EB188,$EB$2&ROW($EB188)),$EA188,$EA$2&ROW($EA188)),$DZ188,$DZ$2&ROW($DZ188)),$DY188,$DY$2&ROW($DY188)),$DX188,$DX$2&ROW($DX188)),$DW188,$DW$2&ROW($DW188)),$DV188,$DV$2&ROW($DV188)),$DU188,$DU$2&ROW($DU188)),$DT188,$DT$2&ROW($DT188)),$DS188,$DS$2&ROW($DS188))))","v":"X=AS188*AU188*99.13"},{"$f":"IF(I188=\"Manual Entry\",\"Manual\",IF(J188=\"\",0,\"X=\"&SUBSTITUTE(SUBSTITUTE(SUBSTITUTE(SUBSTITUTE(SUBSTITUTE(SUBSTITUTE(SUBSTITUTE(SUBSTITUTE(SUBSTITUTE(SUBSTITUTE(SUBSTITUTE(SUBSTITUTE(J188,$ED188,$ED$2&ROW($ED188)),$EC188,$EC$2&ROW($EC188)),$EB188,$EB$2&ROW($EB188)),$EA188,$EA$2&ROW($EA188)),$DZ188,$DZ$2&ROW($DZ188)),$DY188,$DY$2&ROW($DY188)),$DX188,$DX$2&ROW($DX188)),$DW188,$DW$2&ROW($DW188)),$DV188,$DV$2&ROW($DV188)),$DU188,$DU$2&ROW($DU188)),$DT188,$DT$2&ROW($DT188)),$DS188,$DS$2&ROW($DS188))))","v":"X=AS188*AW188"},{"$f":"IF(O188=\"\",0,\"X=\"&SUBSTITUTE(SUBSTITUTE(SUBSTITUTE(SUBSTITUTE(SUBSTITUTE(SUBSTITUTE(SUBSTITUTE(SUBSTITUTE(SUBSTITUTE(SUBSTITUTE(SUBSTITUTE(SUBSTITUTE(O188,$ED188,$ED$2&ROW($ED188)),$EC188,$EC$2&ROW($EC188)),$EB188,$EB$2&ROW($EB188)),$EA188,$EA$2&ROW($EA188)),$DZ188,$DZ$2&ROW($DZ188)),$DY188,$DY$2&ROW($DY188)),$DX188,$DX$2&ROW($DX188)),$DW188,$DW$2&ROW($DW188)),$DV188,$DV$2&ROW($DV188)),$DU188,$DU$2&ROW($DU188)),$DT188,$DT$2&ROW($DT188)),$DS188,$DS$2&ROW($DS188)))","v":"X=AS188*AU188*1444"},{"$f":"IF(P188=\"\",0,\"X=\"&SUBSTITUTE(SUBSTITUTE(SUBSTITUTE(SUBSTITUTE(SUBSTITUTE(SUBSTITUTE(SUBSTITUTE(SUBSTITUTE(SUBSTITUTE(SUBSTITUTE(SUBSTITUTE(SUBSTITUTE(P188,$ED188,$ED$2&ROW($ED188)),$EC188,$EC$2&ROW($EC188)),$EB188,$EB$2&ROW($EB188)),$EA188,$EA$2&ROW($EA188)),$DZ188,$DZ$2&ROW($DZ188)),$DY188,$DY$2&ROW($DY188)),$DX188,$DX$2&ROW($DX188)),$DW188,$DW$2&ROW($DW188)),$DV188,$DV$2&ROW($DV188)),$DU188,$DU$2&ROW($DU188)),$DT188,$DT$2&ROW($DT188)),$DS188,$DS$2&ROW($DS188)))","v":0},{"$f":"IF(Q188=\"\",0,\"X=\"&SUBSTITUTE(SUBSTITUTE(SUBSTITUTE(SUBSTITUTE(SUBSTITUTE(SUBSTITUTE(SUBSTITUTE(SUBSTITUTE(SUBSTITUTE(SUBSTITUTE(SUBSTITUTE(SUBSTITUTE(Q188,$ED188,$ED$2&ROW($ED188)),$EC188,$EC$2&ROW($EC188)),$EB188,$EB$2&ROW($EB188)),$EA188,$EA$2&ROW($EA188)),$DZ188,$DZ$2&ROW($DZ188)),$DY188,$DY$2&ROW($DY188)),$DX188,$DX$2&ROW($DX188)),$DW188,$DW$2&ROW($DW188)),$DV188,$DV$2&ROW($DV188)),$DU188,$DU$2&ROW($DU188)),$DT188,$DT$2&ROW($DT188)),$DS188,$DS$2&ROW($DS188)))","v":0},{"$f":"IF(R188=\"\",0,\"X=\"&SUBSTITUTE(SUBSTITUTE(SUBSTITUTE(SUBSTITUTE(SUBSTITUTE(SUBSTITUTE(SUBSTITUTE(SUBSTITUTE(SUBSTITUTE(SUBSTITUTE(SUBSTITUTE(SUBSTITUTE(R188,$ED188,$ED$2&ROW($ED188)),$EC188,$EC$2&ROW($EC188)),$EB188,$EB$2&ROW($EB188)),$EA188,$EA$2&ROW($EA188)),$DZ188,$DZ$2&ROW($DZ188)),$DY188,$DY$2&ROW($DY188)),$DX188,$DX$2&ROW($DX188)),$DW188,$DW$2&ROW($DW188)),$DV188,$DV$2&ROW($DV188)),$DU188,$DU$2&ROW($DU188)),$DT188,$DT$2&ROW($DT188)),$DS188,$DS$2&ROW($DS188)))","v":"X=AS188*AU188*1*0.34"},{"$f":"IF(S188=\"\",0,\"X=\"&SUBSTITUTE(SUBSTITUTE(SUBSTITUTE(SUBSTITUTE(SUBSTITUTE(SUBSTITUTE(SUBSTITUTE(SUBSTITUTE(SUBSTITUTE(SUBSTITUTE(SUBSTITUTE(SUBSTITUTE(S188,$ED188,$ED$2&ROW($ED188)),$EC188,$EC$2&ROW($EC188)),$EB188,$EB$2&ROW($EB188)),$EA188,$EA$2&ROW($EA188)),$DZ188,$DZ$2&ROW($DZ188)),$DY188,$DY$2&ROW($DY188)),$DX188,$DX$2&ROW($DX188)),$DW188,$DW$2&ROW($DW188)),$DV188,$DV$2&ROW($DV188)),$DU188,$DU$2&ROW($DU188)),$DT188,$DT$2&ROW($DT188)),$DS188,$DS$2&ROW($DS188)))","v":0},{"$f":"IF(T188=\"\",0,\"X=\"&SUBSTITUTE(SUBSTITUTE(SUBSTITUTE(SUBSTITUTE(SUBSTITUTE(SUBSTITUTE(SUBSTITUTE(SUBSTITUTE(SUBSTITUTE(SUBSTITUTE(SUBSTITUTE(SUBSTITUTE(T188,$ED188,$ED$2&ROW($ED188)),$EC188,$EC$2&ROW($EC188)),$EB188,$EB$2&ROW($EB188)),$EA188,$EA$2&ROW($EA188)),$DZ188,$DZ$2&ROW($DZ188)),$DY188,$DY$2&ROW($DY188)),$DX188,$DX$2&ROW($DX188)),$DW188,$DW$2&ROW($DW188)),$DV188,$DV$2&ROW($DV188)),$DU188,$DU$2&ROW($DU188)),$DT188,$DT$2&ROW($DT188)),$DS188,$DS$2&ROW($DS188)))","v":0},{"$f":"IF(U188=\"\",0,\"X=\"&SUBSTITUTE(SUBSTITUTE(SUBSTITUTE(SUBSTITUTE(SUBSTITUTE(SUBSTITUTE(SUBSTITUTE(SUBSTITUTE(SUBSTITUTE(SUBSTITUTE(SUBSTITUTE(SUBSTITUTE(U188,$ED188,$ED$2&ROW($ED188)),$EC188,$EC$2&ROW($EC188)),$EB188,$EB$2&ROW($EB188)),$EA188,$EA$2&ROW($EA188)),$DZ188,$DZ$2&ROW($DZ188)),$DY188,$DY$2&ROW($DY188)),$DX188,$DX$2&ROW($DX188)),$DW188,$DW$2&ROW($DW188)),$DV188,$DV$2&ROW($DV188)),$DU188,$DU$2&ROW($DU188)),$DT188,$DT$2&ROW($DT188)),$DS188,$DS$2&ROW($DS188)))","v":"X=AS188*AU188*AF188*0.34"},{"$f":"IF(V188=\"\",0,\"X=\"&SUBSTITUTE(SUBSTITUTE(SUBSTITUTE(SUBSTITUTE(SUBSTITUTE(SUBSTITUTE(SUBSTITUTE(SUBSTITUTE(SUBSTITUTE(SUBSTITUTE(SUBSTITUTE(SUBSTITUTE(V188,$ED188,$ED$2&ROW($ED188)),$EC188,$EC$2&ROW($EC188)),$EB188,$EB$2&ROW($EB188)),$EA188,$EA$2&ROW($EA188)),$DZ188,$DZ$2&ROW($DZ188)),$DY188,$DY$2&ROW($DY188)),$DX188,$DX$2&ROW($DX188)),$DW188,$DW$2&ROW($DW188)),$DV188,$DV$2&ROW($DV188)),$DU188,$DU$2&ROW($DU188)),$DT188,$DT$2&ROW($DT188)),$DS188,$DS$2&ROW($DS188)))","v":"X=AS188*AU188*AG188*1*0.34"},{"$f":"IF(W188=\"\",0,\"X=\"&SUBSTITUTE(SUBSTITUTE(SUBSTITUTE(SUBSTITUTE(SUBSTITUTE(SUBSTITUTE(SUBSTITUTE(SUBSTITUTE(SUBSTITUTE(SUBSTITUTE(SUBSTITUTE(SUBSTITUTE(W188,$ED188,$ED$2&ROW($ED188)),$EC188,$EC$2&ROW($EC188)),$EB188,$EB$2&ROW($EB188)),$EA188,$EA$2&ROW($EA188)),$DZ188,$DZ$2&ROW($DZ188)),$DY188,$DY$2&ROW($DY188)),$DX188,$DX$2&ROW($DX188)),$DW188,$DW$2&ROW($DW188)),$DV188,$DV$2&ROW($DV188)),$DU188,$DU$2&ROW($DU188)),$DT188,$DT$2&ROW($DT188)),$DS188,$DS$2&ROW($DS188)))","v":"X=AS188*AU188*10*0"},{"$f":"IF(X188=\"\",0,\"X=\"&SUBSTITUTE(SUBSTITUTE(SUBSTITUTE(SUBSTITUTE(SUBSTITUTE(SUBSTITUTE(SUBSTITUTE(SUBSTITUTE(SUBSTITUTE(SUBSTITUTE(SUBSTITUTE(SUBSTITUTE(X188,$ED188,$ED$2&ROW($ED188)),$EC188,$EC$2&ROW($EC188)),$EB188,$EB$2&ROW($EB188)),$EA188,$EA$2&ROW($EA188)),$DZ188,$DZ$2&ROW($DZ188)),$DY188,$DY$2&ROW($DY188)),$DX188,$DX$2&ROW($DX188)),$DW188,$DW$2&ROW($DW188)),$DV188,$DV$2&ROW($DV188)),$DU188,$DU$2&ROW($DU188)),$DT188,$DT$2&ROW($DT188)),$DS188,$DS$2&ROW($DS188)))","v":"X=AS188*AU188*0"},{"$f":"IF(Y188=\"\",0,\"X=\"&SUBSTITUTE(SUBSTITUTE(SUBSTITUTE(SUBSTITUTE(SUBSTITUTE(SUBSTITUTE(SUBSTITUTE(SUBSTITUTE(SUBSTITUTE(SUBSTITUTE(SUBSTITUTE(SUBSTITUTE(Y188,$ED188,$ED$2&ROW($ED188)),$EC188,$EC$2&ROW($EC188)),$EB188,$EB$2&ROW($EB188)),$EA188,$EA$2&ROW($EA188)),$DZ188,$DZ$2&ROW($DZ188)),$DY188,$DY$2&ROW($DY188)),$DX188,$DX$2&ROW($DX188)),$DW188,$DW$2&ROW($DW188)),$DV188,$DV$2&ROW($DV188)),$DU188,$DU$2&ROW($DU188)),$DT188,$DT$2&ROW($DT188)),$DS188,$DS$2&ROW($DS188)))","v":"X=AS188*AU188*0"},{"$f":"IF(Z188=\"\",0,\"X=\"&SUBSTITUTE(SUBSTITUTE(SUBSTITUTE(SUBSTITUTE(SUBSTITUTE(SUBSTITUTE(SUBSTITUTE(SUBSTITUTE(SUBSTITUTE(SUBSTITUTE(SUBSTITUTE(SUBSTITUTE(Z188,$ED188,$ED$2&ROW($ED188)),$EC188,$EC$2&ROW($EC188)),$EB188,$EB$2&ROW($EB188)),$EA188,$EA$2&ROW($EA188)),$DZ188,$DZ$2&ROW($DZ188)),$DY188,$DY$2&ROW($DY188)),$DX188,$DX$2&ROW($DX188)),$DW188,$DW$2&ROW($DW188)),$DV188,$DV$2&ROW($DV188)),$DU188,$DU$2&ROW($DU188)),$DT188,$DT$2&ROW($DT188)),$DS188,$DS$2&ROW($DS188)))","v":"X=AS188*AU188*0"},{"$f":"IF(AA188=\"\",0,\"X=\"&SUBSTITUTE(SUBSTITUTE(SUBSTITUTE(SUBSTITUTE(SUBSTITUTE(SUBSTITUTE(SUBSTITUTE(SUBSTITUTE(SUBSTITUTE(SUBSTITUTE(SUBSTITUTE(SUBSTITUTE(AA188,$ED188,$ED$2&ROW($ED188)),$EC188,$EC$2&ROW($EC188)),$EB188,$EB$2&ROW($EB188)),$EA188,$EA$2&ROW($EA188)),$DZ188,$DZ$2&ROW($DZ188)),$DY188,$DY$2&ROW($DY188)),$DX188,$DX$2&ROW($DX188)),$DW188,$DW$2&ROW($DW188)),$DV188,$DV$2&ROW($DV188)),$DU188,$DU$2&ROW($DU188)),$DT188,$DT$2&ROW($DT188)),$DS188,$DS$2&ROW($DS188)))","v":"X=AS188*AU188*0"},{"$f":"IF(AB188=\"\",0,\"X=\"&SUBSTITUTE(SUBSTITUTE(SUBSTITUTE(SUBSTITUTE(SUBSTITUTE(SUBSTITUTE(SUBSTITUTE(SUBSTITUTE(SUBSTITUTE(SUBSTITUTE(SUBSTITUTE(SUBSTITUTE(AB188,$ED188,$ED$2&ROW($ED188)),$EC188,$EC$2&ROW($EC188)),$EB188,$EB$2&ROW($EB188)),$EA188,$EA$2&ROW($EA188)),$DZ188,$DZ$2&ROW($DZ188)),$DY188,$DY$2&ROW($DY188)),$DX188,$DX$2&ROW($DX188)),$DW188,$DW$2&ROW($DW188)),$DV188,$DV$2&ROW($DV188)),$DU188,$DU$2&ROW($DU188)),$DT188,$DT$2&ROW($DT188)),$DS188,$DS$2&ROW($DS188)))","v":0},null,null,"{Factor:WinterCF}","{Factor:SummerCF}",{"$f":"IFERROR(INDEX($EG188:$IV188,MATCH(0,COUNTIF($DR188:DT188,$EG188:$IV188),0)),\"\")","v":"{Measure:Quantity}"},{"$f":"IFERROR(INDEX($EG188:$IV188,MATCH(0,COUNTIF($DR188:DU188,$EG188:$IV188),0)),\"\")","v":"{Package Size}"},{"$f":"IFERROR(INDEX($EG188:$IV188,MATCH(0,COUNTIF($DR188:DV188,$EG188:$IV188),0)),\"\")","v":"{Rebate per Package}"},{"$f":"IFERROR(INDEX($EG188:$IV188,MATCH(0,COUNTIF($DR188:DW188,$EG188:$IV188),0)),\"\")","v":""},{"$f":"IFERROR(INDEX($EG188:$IV188,MATCH(0,COUNTIF($DR188:DX188,$EG188:$IV188),0)),\"\")","v":""},{"$f":"IFERROR(INDEX($EG188:$IV188,MATCH(0,COUNTIF($DR188:DY188,$EG188:$IV188),0)),\"\")","v":""},{"$f":"IFERROR(INDEX($EG188:$IV188,MATCH(0,COUNTIF($DR188:DZ188,$EG188:$IV188),0)),\"\")","v":""},{"$f":"IFERROR(INDEX($EG188:$IV188,MATCH(0,COUNTIF($DR188:EA188,$EG188:$IV188),0)),\"\")","v":""},{"$f":"IFERROR(INDEX($EG188:$IV188,MATCH(0,COUNTIF($DR188:EB188,$EG188:$IV188),0)),\"\")","v":""},{"$f":"IFERROR(INDEX($EG188:$IV188,MATCH(0,COUNTIF($DR188:EC188,$EG188:$IV188),0)),\"\")","v":""},null,null,{"$f":"IFERROR(MID($G188,FIND(CHAR(160),SUBSTITUTE($G188,\"{\",CHAR(160),EG$1)),FIND(CHAR(160),SUBSTITUTE($G188,\"}\",CHAR(160),EG$1))-FIND(CHAR(160),SUBSTITUTE($G188,\"{\",CHAR(160),EG$1))+1),\"\")","v":"{Measure:Quantity}"},{"$f":"IFERROR(MID($G188,FIND(CHAR(160),SUBSTITUTE($G188,\"{\",CHAR(160),EH$1)),FIND(CHAR(160),SUBSTITUTE($G188,\"}\",CHAR(160),EH$1))-FIND(CHAR(160),SUBSTITUTE($G188,\"{\",CHAR(160),EH$1))+1),\"\")","v":"{Package Size}"},{"$f":"IFERROR(MID($G188,FIND(CHAR(160),SUBSTITUTE($G188,\"{\",CHAR(160),EI$1)),FIND(CHAR(160),SUBSTITUTE($G188,\"}\",CHAR(160),EI$1))-FIND(CHAR(160),SUBSTITUTE($G188,\"{\",CHAR(160),EI$1))+1),\"\")","v":""},{"$f":"IFERROR(MID($G188,FIND(CHAR(160),SUBSTITUTE($G188,\"{\",CHAR(160),EJ$1)),FIND(CHAR(160),SUBSTITUTE($G188,\"}\",CHAR(160),EJ$1))-FIND(CHAR(160),SUBSTITUTE($G188,\"{\",CHAR(160),EJ$1))+1),\"\")","v":""},{"$f":"IFERROR(MID($G188,FIND(CHAR(160),SUBSTITUTE($G188,\"{\",CHAR(160),EK$1)),FIND(CHAR(160),SUBSTITUTE($G188,\"}\",CHAR(160),EK$1))-FIND(CHAR(160),SUBSTITUTE($G188,\"{\",CHAR(160),EK$1))+1),\"\")","v":""},{"$f":"IFERROR(MID($G188,FIND(CHAR(160),SUBSTITUTE($G188,\"{\",CHAR(160),EL$1)),FIND(CHAR(160),SUBSTITUTE($G188,\"}\",CHAR(160),EL$1))-FIND(CHAR(160),SUBSTITUTE($G188,\"{\",CHAR(160),EL$1))+1),\"\")","v":""},{"$f":"IFERROR(MID($G188,FIND(CHAR(160),SUBSTITUTE($G188,\"{\",CHAR(160),EM$1)),FIND(CHAR(160),SUBSTITUTE($G188,\"}\",CHAR(160),EM$1))-FIND(CHAR(160),SUBSTITUTE($G188,\"{\",CHAR(160),EM$1))+1),\"\")","v":""},{"$f":"IFERROR(MID($G188,FIND(CHAR(160),SUBSTITUTE($G188,\"{\",CHAR(160),EN$1)),FIND(CHAR(160),SUBSTITUTE($G188,\"}\",CHAR(160),EN$1))-FIND(CHAR(160),SUBSTITUTE($G188,\"{\",CHAR(160),EN$1))+1),\"\")","v":""},{"$f":"IFERROR(MID($G188,FIND(CHAR(160),SUBSTITUTE($G188,\"{\",CHAR(160),EO$1)),FIND(CHAR(160),SUBSTITUTE($G188,\"}\",CHAR(160),EO$1))-FIND(CHAR(160),SUBSTITUTE($G188,\"{\",CHAR(160),EO$1))+1),\"\")","v":""},{"$f":"IFERROR(MID($G188,FIND(CHAR(160),SUBSTITUTE($G188,\"{\",CHAR(160),EP$1)),FIND(CHAR(160),SUBSTITUTE($G188,\"}\",CHAR(160),EP$1))-FIND(CHAR(160),SUBSTITUTE($G188,\"{\",CHAR(160),EP$1))+1),\"\")","v":""},{"$f":"IFERROR(MID($J188,FIND(CHAR(160),SUBSTITUTE($J188,\"{\",CHAR(160),EQ$1)),FIND(CHAR(160),SUBSTITUTE($J188,\"}\",CHAR(160),EQ$1))-FIND(CHAR(160),SUBSTITUTE($J188,\"{\",CHAR(160),EQ$1))+1),\"\")","v":"{Measure:Quantity}"},{"$f":"IFERROR(MID($J188,FIND(CHAR(160),SUBSTITUTE($J188,\"{\",CHAR(160),ER$1)),FIND(CHAR(160),SUBSTITUTE($J188,\"}\",CHAR(160),ER$1))-FIND(CHAR(160),SUBSTITUTE($J188,\"{\",CHAR(160),ER$1))+1),\"\")","v":"{Rebate per Package}"},{"$f":"IFERROR(MID($J188,FIND(CHAR(160),SUBSTITUTE($J188,\"{\",CHAR(160),ES$1)),FIND(CHAR(160),SUBSTITUTE($J188,\"}\",CHAR(160),ES$1))-FIND(CHAR(160),SUBSTITUTE($J188,\"{\",CHAR(160),ES$1))+1),\"\")","v":""},{"$f":"IFERROR(MID($J188,FIND(CHAR(160),SUBSTITUTE($J188,\"{\",CHAR(160),ET$1)),FIND(CHAR(160),SUBSTITUTE($J188,\"}\",CHAR(160),ET$1))-FIND(CHAR(160),SUBSTITUTE($J188,\"{\",CHAR(160),ET$1))+1),\"\")","v":""},{"$f":"IFERROR(MID($J188,FIND(CHAR(160),SUBSTITUTE($J188,\"{\",CHAR(160),EU$1)),FIND(CHAR(160),SUBSTITUTE($J188,\"}\",CHAR(160),EU$1))-FIND(CHAR(160),SUBSTITUTE($J188,\"{\",CHAR(160),EU$1))+1),\"\")","v":""},{"$f":"IFERROR(MID($J188,FIND(CHAR(160),SUBSTITUTE($J188,\"{\",CHAR(160),EV$1)),FIND(CHAR(160),SUBSTITUTE($J188,\"}\",CHAR(160),EV$1))-FIND(CHAR(160),SUBSTITUTE($J188,\"{\",CHAR(160),EV$1))+1),\"\")","v":""},{"$f":"IFERROR(MID($J188,FIND(CHAR(160),SUBSTITUTE($J188,\"{\",CHAR(160),EW$1)),FIND(CHAR(160),SUBSTITUTE($J188,\"}\",CHAR(160),EW$1))-FIND(CHAR(160),SUBSTITUTE($J188,\"{\",CHAR(160),EW$1))+1),\"\")","v":""},{"$f":"IFERROR(MID($J188,FIND(CHAR(160),SUBSTITUTE($J188,\"{\",CHAR(160),EX$1)),FIND(CHAR(160),SUBSTITUTE($J188,\"}\",CHAR(160),EX$1))-FIND(CHAR(160),SUBSTITUTE($J188,\"{\",CHAR(160),EX$1))+1),\"\")","v":""},{"$f":"IFERROR(MID($J188,FIND(CHAR(160),SUBSTITUTE($J188,\"{\",CHAR(160),EY$1)),FIND(CHAR(160),SUBSTITUTE($J188,\"}\",CHAR(160),EY$1))-FIND(CHAR(160),SUBSTITUTE($J188,\"{\",CHAR(160),EY$1))+1),\"\")","v":""},{"$f":"IFERROR(MID($J188,FIND(CHAR(160),SUBSTITUTE($J188,\"{\",CHAR(160),EZ$1)),FIND(CHAR(160),SUBSTITUTE($J188,\"}\",CHAR(160),EZ$1))-FIND(CHAR(160),SUBSTITUTE($J188,\"{\",CHAR(160),EZ$1))+1),\"\")","v":""},{"$f":"IFERROR(MID($J188,FIND(CHAR(160),SUBSTITUTE($J188,\"{\",CHAR(160),FA$1)),FIND(CHAR(160),SUBSTITUTE($J188,\"}\",CHAR(160),FA$1))-FIND(CHAR(160),SUBSTITUTE($J188,\"{\",CHAR(160),FA$1))+1),\"\")","v":"{Measure:Quantity}"},{"$f":"IFERROR(MID($J188,FIND(CHAR(160),SUBSTITUTE($J188,\"{\",CHAR(160),FB$1)),FIND(CHAR(160),SUBSTITUTE($J188,\"}\",CHAR(160),FB$1))-FIND(CHAR(160),SUBSTITUTE($J188,\"{\",CHAR(160),FB$1))+1),\"\")","v":"{Rebate per Package}"},{"$f":"IFERROR(MID($O188,FIND(CHAR(160),SUBSTITUTE($O188,\"{\",CHAR(160),FC$1)),FIND(CHAR(160),SUBSTITUTE($O188,\"}\",CHAR(160),FC$1))-FIND(CHAR(160),SUBSTITUTE($O188,\"{\",CHAR(160),FC$1))+1),\"\")","v":""},{"$f":"IFERROR(MID($O188,FIND(CHAR(160),SUBSTITUTE($O188,\"{\",CHAR(160),FD$1)),FIND(CHAR(160),SUBSTITUTE($O188,\"}\",CHAR(160),FD$1))-FIND(CHAR(160),SUBSTITUTE($O188,\"{\",CHAR(160),FD$1))+1),\"\")","v":""},{"$f":"IFERROR(MID($O188,FIND(CHAR(160),SUBSTITUTE($O188,\"{\",CHAR(160),FE$1)),FIND(CHAR(160),SUBSTITUTE($O188,\"}\",CHAR(160),FE$1))-FIND(CHAR(160),SUBSTITUTE($O188,\"{\",CHAR(160),FE$1))+1),\"\")","v":""},{"$f":"IFERROR(MID($O188,FIND(CHAR(160),SUBSTITUTE($O188,\"{\",CHAR(160),FF$1)),FIND(CHAR(160),SUBSTITUTE($O188,\"}\",CHAR(160),FF$1))-FIND(CHAR(160),SUBSTITUTE($O188,\"{\",CHAR(160),FF$1))+1),\"\")","v":""},{"$f":"IFERROR(MID($O188,FIND(CHAR(160),SUBSTITUTE($O188,\"{\",CHAR(160),FG$1)),FIND(CHAR(160),SUBSTITUTE($O188,\"}\",CHAR(160),FG$1))-FIND(CHAR(160),SUBSTITUTE($O188,\"{\",CHAR(160),FG$1))+1),\"\")","v":""},{"$f":"IFERROR(MID($O188,FIND(CHAR(160),SUBSTITUTE($O188,\"{\",CHAR(160),FH$1)),FIND(CHAR(160),SUBSTITUTE($O188,\"}\",CHAR(160),FH$1))-FIND(CHAR(160),SUBSTITUTE($O188,\"{\",CHAR(160),FH$1))+1),\"\")","v":""},{"$f":"IFERROR(MID($O188,FIND(CHAR(160),SUBSTITUTE($O188,\"{\",CHAR(160),FI$1)),FIND(CHAR(160),SUBSTITUTE($O188,\"}\",CHAR(160),FI$1))-FIND(CHAR(160),SUBSTITUTE($O188,\"{\",CHAR(160),FI$1))+1),\"\")","v":""},{"$f":"IFERROR(MID($O188,FIND(CHAR(160),SUBSTITUTE($O188,\"{\",CHAR(160),FJ$1)),FIND(CHAR(160),SUBSTITUTE($O188,\"}\",CHAR(160),FJ$1))-FIND(CHAR(160),SUBSTITUTE($O188,\"{\",CHAR(160),FJ$1))+1),\"\")","v":""},{"$f":"IFERROR(MID($O188,FIND(CHAR(160),SUBSTITUTE($O188,\"{\",CHAR(160),FK$1)),FIND(CHAR(160),SUBSTITUTE($O188,\"}\",CHAR(160),FK$1))-FIND(CHAR(160),SUBSTITUTE($O188,\"{\",CHAR(160),FK$1))+1),\"\")","v":"{Measure:Quantity}"},{"$f":"IFERROR(MID($O188,FIND(CHAR(160),SUBSTITUTE($O188,\"{\",CHAR(160),FL$1)),FIND(CHAR(160),SUBSTITUTE($O188,\"}\",CHAR(160),FL$1))-FIND(CHAR(160),SUBSTITUTE($O188,\"{\",CHAR(160),FL$1))+1),\"\")","v":"{Package Size}"},{"$f":"IFERROR(MID($R188,FIND(CHAR(160),SUBSTITUTE($R188,\"{\",CHAR(160),FM$1)),FIND(CHAR(160),SUBSTITUTE($R188,\"}\",CHAR(160),FM$1))-FIND(CHAR(160),SUBSTITUTE($R188,\"{\",CHAR(160),FM$1))+1),\"\")","v":""},{"$f":"IFERROR(MID($R188,FIND(CHAR(160),SUBSTITUTE($R188,\"{\",CHAR(160),FN$1)),FIND(CHAR(160),SUBSTITUTE($R188,\"}\",CHAR(160),FN$1))-FIND(CHAR(160),SUBSTITUTE($R188,\"{\",CHAR(160),FN$1))+1),\"\")","v":""},{"$f":"IFERROR(MID($R188,FIND(CHAR(160),SUBSTITUTE($R188,\"{\",CHAR(160),FO$1)),FIND(CHAR(160),SUBSTITUTE($R188,\"}\",CHAR(160),FO$1))-FIND(CHAR(160),SUBSTITUTE($R188,\"{\",CHAR(160),FO$1))+1),\"\")","v":""},{"$f":"IFERROR(MID($R188,FIND(CHAR(160),SUBSTITUTE($R188,\"{\",CHAR(160),FP$1)),FIND(CHAR(160),SUBSTITUTE($R188,\"}\",CHAR(160),FP$1))-FIND(CHAR(160),SUBSTITUTE($R188,\"{\",CHAR(160),FP$1))+1),\"\")","v":""},{"$f":"IFERROR(MID($R188,FIND(CHAR(160),SUBSTITUTE($R188,\"{\",CHAR(160),FQ$1)),FIND(CHAR(160),SUBSTITUTE($R188,\"}\",CHAR(160),FQ$1))-FIND(CHAR(160),SUBSTITUTE($R188,\"{\",CHAR(160),FQ$1))+1),\"\")","v":""},{"$f":"IFERROR(MID($R188,FIND(CHAR(160),SUBSTITUTE($R188,\"{\",CHAR(160),FR$1)),FIND(CHAR(160),SUBSTITUTE($R188,\"}\",CHAR(160),FR$1))-FIND(CHAR(160),SUBSTITUTE($R188,\"{\",CHAR(160),FR$1))+1),\"\")","v":""},{"$f":"IFERROR(MID($R188,FIND(CHAR(160),SUBSTITUTE($R188,\"{\",CHAR(160),FS$1)),FIND(CHAR(160),SUBSTITUTE($R188,\"}\",CHAR(160),FS$1))-FIND(CHAR(160),SUBSTITUTE($R188,\"{\",CHAR(160),FS$1))+1),\"\")","v":""},{"$f":"IFERROR(MID($R188,FIND(CHAR(160),SUBSTITUTE($R188,\"{\",CHAR(160),FT$1)),FIND(CHAR(160),SUBSTITUTE($R188,\"}\",CHAR(160),FT$1))-FIND(CHAR(160),SUBSTITUTE($R188,\"{\",CHAR(160),FT$1))+1),\"\")","v":""},{"$f":"IFERROR(MID($R188,FIND(CHAR(160),SUBSTITUTE($R188,\"{\",CHAR(160),FU$1)),FIND(CHAR(160),SUBSTITUTE($R188,\"}\",CHAR(160),FU$1))-FIND(CHAR(160),SUBSTITUTE($R188,\"{\",CHAR(160),FU$1))+1),\"\")","v":"{Measure:Quantity}"},{"$f":"IFERROR(MID($R188,FIND(CHAR(160),SUBSTITUTE($R188,\"{\",CHAR(160),FV$1)),FIND(CHAR(160),SUBSTITUTE($R188,\"}\",CHAR(160),FV$1))-FIND(CHAR(160),SUBSTITUTE($R188,\"{\",CHAR(160),FV$1))+1),\"\")","v":"{Package Size}"},{"$f":"IFERROR(MID($U188,FIND(CHAR(160),SUBSTITUTE($U188,\"{\",CHAR(160),FW$1)),FIND(CHAR(160),SUBSTITUTE($U188,\"}\",CHAR(160),FW$1))-FIND(CHAR(160),SUBSTITUTE($U188,\"{\",CHAR(160),FW$1))+1),\"\")","v":"{Factor:WinterCF}"},{"$f":"IFERROR(MID($U188,FIND(CHAR(160),SUBSTITUTE($U188,\"{\",CHAR(160),FX$1)),FIND(CHAR(160),SUBSTITUTE($U188,\"}\",CHAR(160),FX$1))-FIND(CHAR(160),SUBSTITUTE($U188,\"{\",CHAR(160),FX$1))+1),\"\")","v":""},{"$f":"IFERROR(MID($U188,FIND(CHAR(160),SUBSTITUTE($U188,\"{\",CHAR(160),FY$1)),FIND(CHAR(160),SUBSTITUTE($U188,\"}\",CHAR(160),FY$1))-FIND(CHAR(160),SUBSTITUTE($U188,\"{\",CHAR(160),FY$1))+1),\"\")","v":""},{"$f":"IFERROR(MID($U188,FIND(CHAR(160),SUBSTITUTE($U188,\"{\",CHAR(160),FZ$1)),FIND(CHAR(160),SUBSTITUTE($U188,\"}\",CHAR(160),FZ$1))-FIND(CHAR(160),SUBSTITUTE($U188,\"{\",CHAR(160),FZ$1))+1),\"\")","v":""},{"$f":"IFERROR(MID($U188,FIND(CHAR(160),SUBSTITUTE($U188,\"{\",CHAR(160),GA$1)),FIND(CHAR(160),SUBSTITUTE($U188,\"}\",CHAR(160),GA$1))-FIND(CHAR(160),SUBSTITUTE($U188,\"{\",CHAR(160),GA$1))+1),\"\")","v":""},{"$f":"IFERROR(MID($U188,FIND(CHAR(160),SUBSTITUTE($U188,\"{\",CHAR(160),GB$1)),FIND(CHAR(160),SUBSTITUTE($U188,\"}\",CHAR(160),GB$1))-FIND(CHAR(160),SUBSTITUTE($U188,\"{\",CHAR(160),GB$1))+1),\"\")","v":""},{"$f":"IFERROR(MID($U188,FIND(CHAR(160),SUBSTITUTE($U188,\"{\",CHAR(160),GC$1)),FIND(CHAR(160),SUBSTITUTE($U188,\"}\",CHAR(160),GC$1))-FIND(CHAR(160),SUBSTITUTE($U188,\"{\",CHAR(160),GC$1))+1),\"\")","v":""},{"$f":"IFERROR(MID($U188,FIND(CHAR(160),SUBSTITUTE($U188,\"{\",CHAR(160),GD$1)),FIND(CHAR(160),SUBSTITUTE($U188,\"}\",CHAR(160),GD$1))-FIND(CHAR(160),SUBSTITUTE($U188,\"{\",CHAR(160),GD$1))+1),\"\")","v":""},{"$f":"IFERROR(MID($U188,FIND(CHAR(160),SUBSTITUTE($U188,\"{\",CHAR(160),GE$1)),FIND(CHAR(160),SUBSTITUTE($U188,\"}\",CHAR(160),GE$1))-FIND(CHAR(160),SUBSTITUTE($U188,\"{\",CHAR(160),GE$1))+1),\"\")","v":"{Measure:Quantity}"},{"$f":"IFERROR(MID($U188,FIND(CHAR(160),SUBSTITUTE($U188,\"{\",CHAR(160),GF$1)),FIND(CHAR(160),SUBSTITUTE($U188,\"}\",CHAR(160),GF$1))-FIND(CHAR(160),SUBSTITUTE($U188,\"{\",CHAR(160),GF$1))+1),\"\")","v":"{Package Size}"},{"$f":"IFERROR(MID($V188,FIND(CHAR(160),SUBSTITUTE($V188,\"{\",CHAR(160),GG$1)),FIND(CHAR(160),SUBSTITUTE($V188,\"}\",CHAR(160),GG$1))-FIND(CHAR(160),SUBSTITUTE($V188,\"{\",CHAR(160),GG$1))+1),\"\")","v":"{Factor:SummerCF}"},{"$f":"IFERROR(MID($V188,FIND(CHAR(160),SUBSTITUTE($V188,\"{\",CHAR(160),GH$1)),FIND(CHAR(160),SUBSTITUTE($V188,\"}\",CHAR(160),GH$1))-FIND(CHAR(160),SUBSTITUTE($V188,\"{\",CHAR(160),GH$1))+1),\"\")","v":""},{"$f":"IFERROR(MID($V188,FIND(CHAR(160),SUBSTITUTE($V188,\"{\",CHAR(160),GI$1)),FIND(CHAR(160),SUBSTITUTE($V188,\"}\",CHAR(160),GI$1))-FIND(CHAR(160),SUBSTITUTE($V188,\"{\",CHAR(160),GI$1))+1),\"\")","v":""},{"$f":"IFERROR(MID($V188,FIND(CHAR(160),SUBSTITUTE($V188,\"{\",CHAR(160),GJ$1)),FIND(CHAR(160),SUBSTITUTE($V188,\"}\",CHAR(160),GJ$1))-FIND(CHAR(160),SUBSTITUTE($V188,\"{\",CHAR(160),GJ$1))+1),\"\")","v":""},{"$f":"IFERROR(MID($V188,FIND(CHAR(160),SUBSTITUTE($V188,\"{\",CHAR(160),GK$1)),FIND(CHAR(160),SUBSTITUTE($V188,\"}\",CHAR(160),GK$1))-FIND(CHAR(160),SUBSTITUTE($V188,\"{\",CHAR(160),GK$1))+1),\"\")","v":""},{"$f":"IFERROR(MID($V188,FIND(CHAR(160),SUBSTITUTE($V188,\"{\",CHAR(160),GL$1)),FIND(CHAR(160),SUBSTITUTE($V188,\"}\",CHAR(160),GL$1))-FIND(CHAR(160),SUBSTITUTE($V188,\"{\",CHAR(160),GL$1))+1),\"\")","v":""},{"$f":"IFERROR(MID($V188,FIND(CHAR(160),SUBSTITUTE($V188,\"{\",CHAR(160),GM$1)),FIND(CHAR(160),SUBSTITUTE($V188,\"}\",CHAR(160),GM$1))-FIND(CHAR(160),SUBSTITUTE($V188,\"{\",CHAR(160),GM$1))+1),\"\")","v":""},{"$f":"IFERROR(MID($V188,FIND(CHAR(160),SUBSTITUTE($V188,\"{\",CHAR(160),GN$1)),FIND(CHAR(160),SUBSTITUTE($V188,\"}\",CHAR(160),GN$1))-FIND(CHAR(160),SUBSTITUTE($V188,\"{\",CHAR(160),GN$1))+1),\"\")","v":""},{"$f":"IFERROR(MID($V188,FIND(CHAR(160),SUBSTITUTE($V188,\"{\",CHAR(160),GO$1)),FIND(CHAR(160),SUBSTITUTE($V188,\"}\",CHAR(160),GO$1))-FIND(CHAR(160),SUBSTITUTE($V188,\"{\",CHAR(160),GO$1))+1),\"\")","v":"{Measure:Quantity}"},{"$f":"IFERROR(MID($V188,FIND(CHAR(160),SUBSTITUTE($V188,\"{\",CHAR(160),GP$1)),FIND(CHAR(160),SUBSTITUTE($V188,\"}\",CHAR(160),GP$1))-FIND(CHAR(160),SUBSTITUTE($V188,\"{\",CHAR(160),GP$1))+1),\"\")","v":"{Package Size}"},{"$f":"IFERROR(MID($W188,FIND(CHAR(160),SUBSTITUTE($W188,\"{\",CHAR(160),GQ$1)),FIND(CHAR(160),SUBSTITUTE($W188,\"}\",CHAR(160),GQ$1))-FIND(CHAR(160),SUBSTITUTE($W188,\"{\",CHAR(160),GQ$1))+1),\"\")","v":""},{"$f":"IFERROR(MID($W188,FIND(CHAR(160),SUBSTITUTE($W188,\"{\",CHAR(160),GR$1)),FIND(CHAR(160),SUBSTITUTE($W188,\"}\",CHAR(160),GR$1))-FIND(CHAR(160),SUBSTITUTE($W188,\"{\",CHAR(160),GR$1))+1),\"\")","v":""},{"$f":"IFERROR(MID($W188,FIND(CHAR(160),SUBSTITUTE($W188,\"{\",CHAR(160),GS$1)),FIND(CHAR(160),SUBSTITUTE($W188,\"}\",CHAR(160),GS$1))-FIND(CHAR(160),SUBSTITUTE($W188,\"{\",CHAR(160),GS$1))+1),\"\")","v":""},{"$f":"IFERROR(MID($W188,FIND(CHAR(160),SUBSTITUTE($W188,\"{\",CHAR(160),GT$1)),FIND(CHAR(160),SUBSTITUTE($W188,\"}\",CHAR(160),GT$1))-FIND(CHAR(160),SUBSTITUTE($W188,\"{\",CHAR(160),GT$1))+1),\"\")","v":""},{"$f":"IFERROR(MID($W188,FIND(CHAR(160),SUBSTITUTE($W188,\"{\",CHAR(160),GU$1)),FIND(CHAR(160),SUBSTITUTE($W188,\"}\",CHAR(160),GU$1))-FIND(CHAR(160),SUBSTITUTE($W188,\"{\",CHAR(160),GU$1))+1),\"\")","v":""},{"$f":"IFERROR(MID($W188,FIND(CHAR(160),SUBSTITUTE($W188,\"{\",CHAR(160),GV$1)),FIND(CHAR(160),SUBSTITUTE($W188,\"}\",CHAR(160),GV$1))-FIND(CHAR(160),SUBSTITUTE($W188,\"{\",CHAR(160),GV$1))+1),\"\")","v":""},{"$f":"IFERROR(MID($W188,FIND(CHAR(160),SUBSTITUTE($W188,\"{\",CHAR(160),GW$1)),FIND(CHAR(160),SUBSTITUTE($W188,\"}\",CHAR(160),GW$1))-FIND(CHAR(160),SUBSTITUTE($W188,\"{\",CHAR(160),GW$1))+1),\"\")","v":""},{"$f":"IFERROR(MID($W188,FIND(CHAR(160),SUBSTITUTE($W188,\"{\",CHAR(160),GX$1)),FIND(CHAR(160),SUBSTITUTE($W188,\"}\",CHAR(160),GX$1))-FIND(CHAR(160),SUBSTITUTE($W188,\"{\",CHAR(160),GX$1))+1),\"\")","v":""},{"$f":"IFERROR(MID($W188,FIND(CHAR(160),SUBSTITUTE($W188,\"{\",CHAR(160),GY$1)),FIND(CHAR(160),SUBSTITUTE($W188,\"}\",CHAR(160),GY$1))-FIND(CHAR(160),SUBSTITUTE($W188,\"{\",CHAR(160),GY$1))+1),\"\")","v":"{Measure:Quantity}"},{"$f":"IFERROR(MID($W188,FIND(CHAR(160),SUBSTITUTE($W188,\"{\",CHAR(160),GZ$1)),FIND(CHAR(160),SUBSTITUTE($W188,\"}\",CHAR(160),GZ$1))-FIND(CHAR(160),SUBSTITUTE($W188,\"{\",CHAR(160),GZ$1))+1),\"\")","v":"{Package Size}"},{"$f":"IFERROR(MID($X188,FIND(CHAR(160),SUBSTITUTE($X188,\"{\",CHAR(160),HA$1)),FIND(CHAR(160),SUBSTITUTE($X188,\"}\",CHAR(160),HA$1))-FIND(CHAR(160),SUBSTITUTE($X188,\"{\",CHAR(160),HA$1))+1),\"\")","v":""},{"$f":"IFERROR(MID($X188,FIND(CHAR(160),SUBSTITUTE($X188,\"{\",CHAR(160),HB$1)),FIND(CHAR(160),SUBSTITUTE($X188,\"}\",CHAR(160),HB$1))-FIND(CHAR(160),SUBSTITUTE($X188,\"{\",CHAR(160),HB$1))+1),\"\")","v":""},{"$f":"IFERROR(MID($X188,FIND(CHAR(160),SUBSTITUTE($X188,\"{\",CHAR(160),HC$1)),FIND(CHAR(160),SUBSTITUTE($X188,\"}\",CHAR(160),HC$1))-FIND(CHAR(160),SUBSTITUTE($X188,\"{\",CHAR(160),HC$1))+1),\"\")","v":""},{"$f":"IFERROR(MID($X188,FIND(CHAR(160),SUBSTITUTE($X188,\"{\",CHAR(160),HD$1)),FIND(CHAR(160),SUBSTITUTE($X188,\"}\",CHAR(160),HD$1))-FIND(CHAR(160),SUBSTITUTE($X188,\"{\",CHAR(160),HD$1))+1),\"\")","v":""},{"$f":"IFERROR(MID($X188,FIND(CHAR(160),SUBSTITUTE($X188,\"{\",CHAR(160),HE$1)),FIND(CHAR(160),SUBSTITUTE($X188,\"}\",CHAR(160),HE$1))-FIND(CHAR(160),SUBSTITUTE($X188,\"{\",CHAR(160),HE$1))+1),\"\")","v":""},{"$f":"IFERROR(MID($X188,FIND(CHAR(160),SUBSTITUTE($X188,\"{\",CHAR(160),HF$1)),FIND(CHAR(160),SUBSTITUTE($X188,\"}\",CHAR(160),HF$1))-FIND(CHAR(160),SUBSTITUTE($X188,\"{\",CHAR(160),HF$1))+1),\"\")","v":""},{"$f":"IFERROR(MID($X188,FIND(CHAR(160),SUBSTITUTE($X188,\"{\",CHAR(160),HG$1)),FIND(CHAR(160),SUBSTITUTE($X188,\"}\",CHAR(160),HG$1))-FIND(CHAR(160),SUBSTITUTE($X188,\"{\",CHAR(160),HG$1))+1),\"\")","v":""},{"$f":"IFERROR(MID($X188,FIND(CHAR(160),SUBSTITUTE($X188,\"{\",CHAR(160),HH$1)),FIND(CHAR(160),SUBSTITUTE($X188,\"}\",CHAR(160),HH$1))-FIND(CHAR(160),SUBSTITUTE($X188,\"{\",CHAR(160),HH$1))+1),\"\")","v":""},{"$f":"IFERROR(MID($X188,FIND(CHAR(160),SUBSTITUTE($X188,\"{\",CHAR(160),HI$1)),FIND(CHAR(160),SUBSTITUTE($X188,\"}\",CHAR(160),HI$1))-FIND(CHAR(160),SUBSTITUTE($X188,\"{\",CHAR(160),HI$1))+1),\"\")","v":"{Measure:Quantity}"},{"$f":"IFERROR(MID($X188,FIND(CHAR(160),SUBSTITUTE($X188,\"{\",CHAR(160),HJ$1)),FIND(CHAR(160),SUBSTITUTE($X188,\"}\",CHAR(160),HJ$1))-FIND(CHAR(160),SUBSTITUTE($X188,\"{\",CHAR(160),HJ$1))+1),\"\")","v":"{Package Size}"},{"$f":"IFERROR(MID($Y188,FIND(CHAR(160),SUBSTITUTE($Y188,\"{\",CHAR(160),HK$1)),FIND(CHAR(160),SUBSTITUTE($Y188,\"}\",CHAR(160),HK$1))-FIND(CHAR(160),SUBSTITUTE($Y188,\"{\",CHAR(160),HK$1))+1),\"\")","v":""},{"$f":"IFERROR(MID($Y188,FIND(CHAR(160),SUBSTITUTE($Y188,\"{\",CHAR(160),HL$1)),FIND(CHAR(160),SUBSTITUTE($Y188,\"}\",CHAR(160),HL$1))-FIND(CHAR(160),SUBSTITUTE($Y188,\"{\",CHAR(160),HL$1))+1),\"\")","v":""},{"$f":"IFERROR(MID($Y188,FIND(CHAR(160),SUBSTITUTE($Y188,\"{\",CHAR(160),HM$1)),FIND(CHAR(160),SUBSTITUTE($Y188,\"}\",CHAR(160),HM$1))-FIND(CHAR(160),SUBSTITUTE($Y188,\"{\",CHAR(160),HM$1))+1),\"\")","v":""},{"$f":"IFERROR(MID($Y188,FIND(CHAR(160),SUBSTITUTE($Y188,\"{\",CHAR(160),HN$1)),FIND(CHAR(160),SUBSTITUTE($Y188,\"}\",CHAR(160),HN$1))-FIND(CHAR(160),SUBSTITUTE($Y188,\"{\",CHAR(160),HN$1))+1),\"\")","v":""},{"$f":"IFERROR(MID($Y188,FIND(CHAR(160),SUBSTITUTE($Y188,\"{\",CHAR(160),HO$1)),FIND(CHAR(160),SUBSTITUTE($Y188,\"}\",CHAR(160),HO$1))-FIND(CHAR(160),SUBSTITUTE($Y188,\"{\",CHAR(160),HO$1))+1),\"\")","v":""},{"$f":"IFERROR(MID($Y188,FIND(CHAR(160),SUBSTITUTE($Y188,\"{\",CHAR(160),HP$1)),FIND(CHAR(160),SUBSTITUTE($Y188,\"}\",CHAR(160),HP$1))-FIND(CHAR(160),SUBSTITUTE($Y188,\"{\",CHAR(160),HP$1))+1),\"\")","v":""},{"$f":"IFERROR(MID($Y188,FIND(CHAR(160),SUBSTITUTE($Y188,\"{\",CHAR(160),HQ$1)),FIND(CHAR(160),SUBSTITUTE($Y188,\"}\",CHAR(160),HQ$1))-FIND(CHAR(160),SUBSTITUTE($Y188,\"{\",CHAR(160),HQ$1))+1),\"\")","v":""},{"$f":"IFERROR(MID($Y188,FIND(CHAR(160),SUBSTITUTE($Y188,\"{\",CHAR(160),HR$1)),FIND(CHAR(160),SUBSTITUTE($Y188,\"}\",CHAR(160),HR$1))-FIND(CHAR(160),SUBSTITUTE($Y188,\"{\",CHAR(160),HR$1))+1),\"\")","v":""},{"$f":"IFERROR(MID($Y188,FIND(CHAR(160),SUBSTITUTE($Y188,\"{\",CHAR(160),HS$1)),FIND(CHAR(160),SUBSTITUTE($Y188,\"}\",CHAR(160),HS$1))-FIND(CHAR(160),SUBSTITUTE($Y188,\"{\",CHAR(160),HS$1))+1),\"\")","v":"{Measure:Quantity}"},{"$f":"IFERROR(MID($Y188,FIND(CHAR(160),SUBSTITUTE($Y188,\"{\",CHAR(160),HT$1)),FIND(CHAR(160),SUBSTITUTE($Y188,\"}\",CHAR(160),HT$1))-FIND(CHAR(160),SUBSTITUTE($Y188,\"{\",CHAR(160),HT$1))+1),\"\")","v":"{Package Size}"},{"$f":"IFERROR(MID($Z188,FIND(CHAR(160),SUBSTITUTE($Z188,\"{\",CHAR(160),HU$1)),FIND(CHAR(160),SUBSTITUTE($Z188,\"}\",CHAR(160),HU$1))-FIND(CHAR(160),SUBSTITUTE($Z188,\"{\",CHAR(160),HU$1))+1),\"\")","v":""},{"$f":"IFERROR(MID($Z188,FIND(CHAR(160),SUBSTITUTE($Z188,\"{\",CHAR(160),HV$1)),FIND(CHAR(160),SUBSTITUTE($Z188,\"}\",CHAR(160),HV$1))-FIND(CHAR(160),SUBSTITUTE($Z188,\"{\",CHAR(160),HV$1))+1),\"\")","v":""},{"$f":"IFERROR(MID($Z188,FIND(CHAR(160),SUBSTITUTE($Z188,\"{\",CHAR(160),HW$1)),FIND(CHAR(160),SUBSTITUTE($Z188,\"}\",CHAR(160),HW$1))-FIND(CHAR(160),SUBSTITUTE($Z188,\"{\",CHAR(160),HW$1))+1),\"\")","v":""},{"$f":"IFERROR(MID($Z188,FIND(CHAR(160),SUBSTITUTE($Z188,\"{\",CHAR(160),HX$1)),FIND(CHAR(160),SUBSTITUTE($Z188,\"}\",CHAR(160),HX$1))-FIND(CHAR(160),SUBSTITUTE($Z188,\"{\",CHAR(160),HX$1))+1),\"\")","v":""},{"$f":"IFERROR(MID($Z188,FIND(CHAR(160),SUBSTITUTE($Z188,\"{\",CHAR(160),HY$1)),FIND(CHAR(160),SUBSTITUTE($Z188,\"}\",CHAR(160),HY$1))-FIND(CHAR(160),SUBSTITUTE($Z188,\"{\",CHAR(160),HY$1))+1),\"\")","v":""},{"$f":"IFERROR(MID($Z188,FIND(CHAR(160),SUBSTITUTE($Z188,\"{\",CHAR(160),HZ$1)),FIND(CHAR(160),SUBSTITUTE($Z188,\"}\",CHAR(160),HZ$1))-FIND(CHAR(160),SUBSTITUTE($Z188,\"{\",CHAR(160),HZ$1))+1),\"\")","v":""},{"$f":"IFERROR(MID($Z188,FIND(CHAR(160),SUBSTITUTE($Z188,\"{\",CHAR(160),IA$1)),FIND(CHAR(160),SUBSTITUTE($Z188,\"}\",CHAR(160),IA$1))-FIND(CHAR(160),SUBSTITUTE($Z188,\"{\",CHAR(160),IA$1))+1),\"\")","v":""},{"$f":"IFERROR(MID($Z188,FIND(CHAR(160),SUBSTITUTE($Z188,\"{\",CHAR(160),IB$1)),FIND(CHAR(160),SUBSTITUTE($Z188,\"}\",CHAR(160),IB$1))-FIND(CHAR(160),SUBSTITUTE($Z188,\"{\",CHAR(160),IB$1))+1),\"\")","v":""},{"$f":"IFERROR(MID($Z188,FIND(CHAR(160),SUBSTITUTE($Z188,\"{\",CHAR(160),IC$1)),FIND(CHAR(160),SUBSTITUTE($Z188,\"}\",CHAR(160),IC$1))-FIND(CHAR(160),SUBSTITUTE($Z188,\"{\",CHAR(160),IC$1))+1),\"\")","v":"{Measure:Quantity}"},{"$f":"IFERROR(MID($Z188,FIND(CHAR(160),SUBSTITUTE($Z188,\"{\",CHAR(160),ID$1)),FIND(CHAR(160),SUBSTITUTE($Z188,\"}\",CHAR(160),ID$1))-FIND(CHAR(160),SUBSTITUTE($Z188,\"{\",CHAR(160),ID$1))+1),\"\")","v":"{Package Size}"},{"$f":"IFERROR(MID($AA188,FIND(CHAR(160),SUBSTITUTE($AA188,\"{\",CHAR(160),IE$1)),FIND(CHAR(160),SUBSTITUTE($AA188,\"}\",CHAR(160),IE$1))-FIND(CHAR(160),SUBSTITUTE($AA188,\"{\",CHAR(160),IE$1))+1),\"\")","v":""},{"$f":"IFERROR(MID($AA188,FIND(CHAR(160),SUBSTITUTE($AA188,\"{\",CHAR(160),IF$1)),FIND(CHAR(160),SUBSTITUTE($AA188,\"}\",CHAR(160),IF$1))-FIND(CHAR(160),SUBSTITUTE($AA188,\"{\",CHAR(160),IF$1))+1),\"\")","v":""},{"$f":"IFERROR(MID($AA188,FIND(CHAR(160),SUBSTITUTE($AA188,\"{\",CHAR(160),IG$1)),FIND(CHAR(160),SUBSTITUTE($AA188,\"}\",CHAR(160),IG$1))-FIND(CHAR(160),SUBSTITUTE($AA188,\"{\",CHAR(160),IG$1))+1),\"\")","v":""},{"$f":"IFERROR(MID($AA188,FIND(CHAR(160),SUBSTITUTE($AA188,\"{\",CHAR(160),IH$1)),FIND(CHAR(160),SUBSTITUTE($AA188,\"}\",CHAR(160),IH$1))-FIND(CHAR(160),SUBSTITUTE($AA188,\"{\",CHAR(160),IH$1))+1),\"\")","v":""},{"$f":"IFERROR(MID($AA188,FIND(CHAR(160),SUBSTITUTE($AA188,\"{\",CHAR(160),II$1)),FIND(CHAR(160),SUBSTITUTE($AA188,\"}\",CHAR(160),II$1))-FIND(CHAR(160),SUBSTITUTE($AA188,\"{\",CHAR(160),II$1))+1),\"\")","v":""},{"$f":"IFERROR(MID($AA188,FIND(CHAR(160),SUBSTITUTE($AA188,\"{\",CHAR(160),IJ$1)),FIND(CHAR(160),SUBSTITUTE($AA188,\"}\",CHAR(160),IJ$1))-FIND(CHAR(160),SUBSTITUTE($AA188,\"{\",CHAR(160),IJ$1))+1),\"\")","v":""},{"$f":"IFERROR(MID($AA188,FIND(CHAR(160),SUBSTITUTE($AA188,\"{\",CHAR(160),IK$1)),FIND(CHAR(160),SUBSTITUTE($AA188,\"}\",CHAR(160),IK$1))-FIND(CHAR(160),SUBSTITUTE($AA188,\"{\",CHAR(160),IK$1))+1),\"\")","v":""},{"$f":"IFERROR(MID($AA188,FIND(CHAR(160),SUBSTITUTE($AA188,\"{\",CHAR(160),IL$1)),FIND(CHAR(160),SUBSTITUTE($AA188,\"}\",CHAR(160),IL$1))-FIND(CHAR(160),SUBSTITUTE($AA188,\"{\",CHAR(160),IL$1))+1),\"\")","v":""},{"$f":"IFERROR(MID($AA188,FIND(CHAR(160),SUBSTITUTE($AA188,\"{\",CHAR(160),IM$1)),FIND(CHAR(160),SUBSTITUTE($AA188,\"}\",CHAR(160),IM$1))-FIND(CHAR(160),SUBSTITUTE($AA188,\"{\",CHAR(160),IM$1))+1),\"\")","v":"{Measure:Quantity}"},{"$f":"IFERROR(MID($AA188,FIND(CHAR(160),SUBSTITUTE($AA188,\"{\",CHAR(160),IN$1)),FIND(CHAR(160),SUBSTITUTE($AA188,\"}\",CHAR(160),IN$1))-FIND(CHAR(160),SUBSTITUTE($AA188,\"{\",CHAR(160),IN$1))+1),\"\")","v":"{Package Size}"},{"$f":"IFERROR(MID($AB188,FIND(CHAR(160),SUBSTITUTE($AB188,\"{\",CHAR(160),IO$1)),FIND(CHAR(160),SUBSTITUTE($AB188,\"}\",CHAR(160),IO$1))-FIND(CHAR(160),SUBSTITUTE($AB188,\"{\",CHAR(160),IO$1))+1),\"\")","v":""},{"$f":"IFERROR(MID($AB188,FIND(CHAR(160),SUBSTITUTE($AB188,\"{\",CHAR(160),IP$1)),FIND(CHAR(160),SUBSTITUTE($AB188,\"}\",CHAR(160),IP$1))-FIND(CHAR(160),SUBSTITUTE($AB188,\"{\",CHAR(160),IP$1))+1),\"\")","v":""},{"$f":"IFERROR(MID($AB188,FIND(CHAR(160),SUBSTITUTE($AB188,\"{\",CHAR(160),IQ$1)),FIND(CHAR(160),SUBSTITUTE($AB188,\"}\",CHAR(160),IQ$1))-FIND(CHAR(160),SUBSTITUTE($AB188,\"{\",CHAR(160),IQ$1))+1),\"\")","v":""},{"$f":"IFERROR(MID($AB188,FIND(CHAR(160),SUBSTITUTE($AB188,\"{\",CHAR(160),IR$1)),FIND(CHAR(160),SUBSTITUTE($AB188,\"}\",CHAR(160),IR$1))-FIND(CHAR(160),SUBSTITUTE($AB188,\"{\",CHAR(160),IR$1))+1),\"\")","v":""},{"$f":"IFERROR(MID($AB188,FIND(CHAR(160),SUBSTITUTE($AB188,\"{\",CHAR(160),IS$1)),FIND(CHAR(160),SUBSTITUTE($AB188,\"}\",CHAR(160),IS$1))-FIND(CHAR(160),SUBSTITUTE($AB188,\"{\",CHAR(160),IS$1))+1),\"\")","v":""},{"$f":"IFERROR(MID($AB188,FIND(CHAR(160),SUBSTITUTE($AB188,\"{\",CHAR(160),IT$1)),FIND(CHAR(160),SUBSTITUTE($AB188,\"}\",CHAR(160),IT$1))-FIND(CHAR(160),SUBSTITUTE($AB188,\"{\",CHAR(160),IT$1))+1),\"\")","v":""},{"$f":"IFERROR(MID($AB188,FIND(CHAR(160),SUBSTITUTE($AB188,\"{\",CHAR(160),IU$1)),FIND(CHAR(160),SUBSTITUTE($AB188,\"}\",CHAR(160),IU$1))-FIND(CHAR(160),SUBSTITUTE($AB188,\"{\",CHAR(160),IU$1))+1),\"\")","v":""},{"$f":"IFERROR(MID($AB188,FIND(CHAR(160),SUBSTITUTE($AB188,\"{\",CHAR(160),IV$1)),FIND(CHAR(160),SUBSTITUTE($AB188,\"}\",CHAR(160),IV$1))-FIND(CHAR(160),SUBSTITUTE($AB188,\"{\",CHAR(160),IV$1))+1),\"\")","v":""},{"$f":"IFERROR(MID($AB188,FIND(CHAR(160),SUBSTITUTE($AB188,\"{\",CHAR(160),IW$1)),FIND(CHAR(160),SUBSTITUTE($AB188,\"}\",CHAR(160),IW$1))-FIND(CHAR(160),SUBSTITUTE($AB188,\"{\",CHAR(160),IW$1))+1),\"\")","v":""},{"$f":"IFERROR(MID($AB188,FIND(CHAR(160),SUBSTITUTE($AB188,\"{\",CHAR(160),IX$1)),FIND(CHAR(160),SUBSTITUTE($AB188,\"}\",CHAR(160),IX$1))-FIND(CHAR(160),SUBSTITUTE($AB188,\"{\",CHAR(160),IX$1))+1),\"\")","v":""},null,{"$f":"10-COUNTIF(DU188:ED188,\"\")","v":3}]
["Distributor Lighting","Outdoor_Type_B 5k_10k lm - long life","S6BML","2021-07-01","2022-06-30","Calculated","{Measure:Quantity}*{Package Size}*35.99",0,"Calculated","{Measure:Quantity}*{Rebate per Package}",0,"2021-07-01","2022-06-30","Calculated","{Measure:Quantity}*{Package Size}*1037",null,null,"{Measure:Quantity}*{Package Size}*1*0.244",null,null,"{Measure:Quantity}*{Package Size}*{Factor:WinterCF}*0.244","{Measure:Quantity}*{Package Size}*{Factor:SummerCF}*1*0.244","{Measure:Quantity}*{Package Size}*10*0","{Measure:Quantity}*{Package Size}*0","{Measure:Quantity}*{Package Size}*0","{Measure:Quantity}*{Package Size}*0","{Measure:Quantity}*{Package Size}*0",null,"2021-07-01","2022-06-30",12,0.82399999999999995,6.6000000000000003E-2,0.27300000000000002,0.45,9.5000000000000001E-2,0.182,0.99,1,1,0.51,0,null,{"$f":"DU189","v":"{Measure:Quantity}"},1,{"$f":"DV189","v":"{Package Size}"},1,{"$f":"DW189","v":"{Rebate per Package}"},{"$f":"CW189*CO189","v":26.9925},{"$f":"DX189","v":""},null,{"$f":"DY189","v":""},null,{"$f":"DZ189","v":""},null,{"$f":"EA189","v":""},null,{"$f":"EB189","v":""},null,{"$f":"EC189","v":""},null,{"$f":"ED189","v":""},null,{"$f":"AS189*AU189*1037","v":1037},0,0,{"$f":"AS189*AU189*1*0.244","v":0.24399999999999999},0,0,{"$f":"AS189*AU189*AF189*0.244","v":0.20105599999999998},{"$f":"AS189*AU189*AG189*1*0.244","v":1.6104E-2},{"$f":"AS189*AU189*10*0","v":0},{"$f":"AS189*AU189*0","v":0},{"$f":"AS189*AU189*0","v":0},{"$f":"AS189*AU189*0","v":0},{"$f":"AS189*AU189*0","v":0},0,null,"Res","Default DR",{"$f":"Benefits(BL189,BR189,BS189,BT189,BU189,BV189,BW189,BX189,BY189,BZ189,AE189,AH189,AI189,AJ189,AK189,AL189,AM189,AN189,AO189,AP189,CA189,CB189)","v":1179.1200002833064},646.54640550109798,0,0,0,0,0,0,0,{"$f":"SUMPRODUCT(CC189:CK189,--(CC189:CK189>0))","v":1825.6664057844043},{"$f":"-SUMPRODUCT(CC189:CK189,--(CC189:CK189<0))","v":0},null,{"$f":"AS189*AU189*35.99","v":35.99},null,null,{"$f":"CM189+CO189","v":35.99},{"$f":"IF(NetOrGross=\"Net\",(1-AO189+AP189),1)","v":1},{"$f":"(SUMPRODUCT(CC189:CJ189,--(CC189:CJ189>0))+CN189)*CS189/((-SUMPRODUCT(CC189:CJ189,--(CC189:CJ189<0))+MAX(CO189,CV189)+CP189+CQ189)*CS189+IF(FRIncentives=\"Yes\",CV189*(1-CS189),0))","v":50.72704656250081},1,{"$f":"AS189*AW189","v":26.9925},{"$f":"CW188","v":0.75},"Electric","y",null,{"$f":"IF(F189=\"Manual Entry\",\"Manual\",IF(G189=\"\",0,\"X=\"&SUBSTITUTE(SUBSTITUTE(SUBSTITUTE(SUBSTITUTE(SUBSTITUTE(SUBSTITUTE(SUBSTITUTE(SUBSTITUTE(SUBSTITUTE(SUBSTITUTE(SUBSTITUTE(SUBSTITUTE(G189,$ED189,$ED$2&ROW($ED189)),$EC189,$EC$2&ROW($EC189)),$EB189,$EB$2&ROW($EB189)),$EA189,$EA$2&ROW($EA189)),$DZ189,$DZ$2&ROW($DZ189)),$DY189,$DY$2&ROW($DY189)),$DX189,$DX$2&ROW($DX189)),$DW189,$DW$2&ROW($DW189)),$DV189,$DV$2&ROW($DV189)),$DU189,$DU$2&ROW($DU189)),$DT189,$DT$2&ROW($DT189)),$DS189,$DS$2&ROW($DS189))))","v":"X=AS189*AU189*35.99"},{"$f":"IF(I189=\"Manual Entry\",\"Manual\",IF(J189=\"\",0,\"X=\"&SUBSTITUTE(SUBSTITUTE(SUBSTITUTE(SUBSTITUTE(SUBSTITUTE(SUBSTITUTE(SUBSTITUTE(SUBSTITUTE(SUBSTITUTE(SUBSTITUTE(SUBSTITUTE(SUBSTITUTE(J189,$ED189,$ED$2&ROW($ED189)),$EC189,$EC$2&ROW($EC189)),$EB189,$EB$2&ROW($EB189)),$EA189,$EA$2&ROW($EA189)),$DZ189,$DZ$2&ROW($DZ189)),$DY189,$DY$2&ROW($DY189)),$DX189,$DX$2&ROW($DX189)),$DW189,$DW$2&ROW($DW189)),$DV189,$DV$2&ROW($DV189)),$DU189,$DU$2&ROW($DU189)),$DT189,$DT$2&ROW($DT189)),$DS189,$DS$2&ROW($DS189))))","v":"X=AS189*AW189"},{"$f":"IF(O189=\"\",0,\"X=\"&SUBSTITUTE(SUBSTITUTE(SUBSTITUTE(SUBSTITUTE(SUBSTITUTE(SUBSTITUTE(SUBSTITUTE(SUBSTITUTE(SUBSTITUTE(SUBSTITUTE(SUBSTITUTE(SUBSTITUTE(O189,$ED189,$ED$2&ROW($ED189)),$EC189,$EC$2&ROW($EC189)),$EB189,$EB$2&ROW($EB189)),$EA189,$EA$2&ROW($EA189)),$DZ189,$DZ$2&ROW($DZ189)),$DY189,$DY$2&ROW($DY189)),$DX189,$DX$2&ROW($DX189)),$DW189,$DW$2&ROW($DW189)),$DV189,$DV$2&ROW($DV189)),$DU189,$DU$2&ROW($DU189)),$DT189,$DT$2&ROW($DT189)),$DS189,$DS$2&ROW($DS189)))","v":"X=AS189*AU189*1037"},{"$f":"IF(P189=\"\",0,\"X=\"&SUBSTITUTE(SUBSTITUTE(SUBSTITUTE(SUBSTITUTE(SUBSTITUTE(SUBSTITUTE(SUBSTITUTE(SUBSTITUTE(SUBSTITUTE(SUBSTITUTE(SUBSTITUTE(SUBSTITUTE(P189,$ED189,$ED$2&ROW($ED189)),$EC189,$EC$2&ROW($EC189)),$EB189,$EB$2&ROW($EB189)),$EA189,$EA$2&ROW($EA189)),$DZ189,$DZ$2&ROW($DZ189)),$DY189,$DY$2&ROW($DY189)),$DX189,$DX$2&ROW($DX189)),$DW189,$DW$2&ROW($DW189)),$DV189,$DV$2&ROW($DV189)),$DU189,$DU$2&ROW($DU189)),$DT189,$DT$2&ROW($DT189)),$DS189,$DS$2&ROW($DS189)))","v":0},{"$f":"IF(Q189=\"\",0,\"X=\"&SUBSTITUTE(SUBSTITUTE(SUBSTITUTE(SUBSTITUTE(SUBSTITUTE(SUBSTITUTE(SUBSTITUTE(SUBSTITUTE(SUBSTITUTE(SUBSTITUTE(SUBSTITUTE(SUBSTITUTE(Q189,$ED189,$ED$2&ROW($ED189)),$EC189,$EC$2&ROW($EC189)),$EB189,$EB$2&ROW($EB189)),$EA189,$EA$2&ROW($EA189)),$DZ189,$DZ$2&ROW($DZ189)),$DY189,$DY$2&ROW($DY189)),$DX189,$DX$2&ROW($DX189)),$DW189,$DW$2&ROW($DW189)),$DV189,$DV$2&ROW($DV189)),$DU189,$DU$2&ROW($DU189)),$DT189,$DT$2&ROW($DT189)),$DS189,$DS$2&ROW($DS189)))","v":0},{"$f":"IF(R189=\"\",0,\"X=\"&SUBSTITUTE(SUBSTITUTE(SUBSTITUTE(SUBSTITUTE(SUBSTITUTE(SUBSTITUTE(SUBSTITUTE(SUBSTITUTE(SUBSTITUTE(SUBSTITUTE(SUBSTITUTE(SUBSTITUTE(R189,$ED189,$ED$2&ROW($ED189)),$EC189,$EC$2&ROW($EC189)),$EB189,$EB$2&ROW($EB189)),$EA189,$EA$2&ROW($EA189)),$DZ189,$DZ$2&ROW($DZ189)),$DY189,$DY$2&ROW($DY189)),$DX189,$DX$2&ROW($DX189)),$DW189,$DW$2&ROW($DW189)),$DV189,$DV$2&ROW($DV189)),$DU189,$DU$2&ROW($DU189)),$DT189,$DT$2&ROW($DT189)),$DS189,$DS$2&ROW($DS189)))","v":"X=AS189*AU189*1*0.244"},{"$f":"IF(S189=\"\",0,\"X=\"&SUBSTITUTE(SUBSTITUTE(SUBSTITUTE(SUBSTITUTE(SUBSTITUTE(SUBSTITUTE(SUBSTITUTE(SUBSTITUTE(SUBSTITUTE(SUBSTITUTE(SUBSTITUTE(SUBSTITUTE(S189,$ED189,$ED$2&ROW($ED189)),$EC189,$EC$2&ROW($EC189)),$EB189,$EB$2&ROW($EB189)),$EA189,$EA$2&ROW($EA189)),$DZ189,$DZ$2&ROW($DZ189)),$DY189,$DY$2&ROW($DY189)),$DX189,$DX$2&ROW($DX189)),$DW189,$DW$2&ROW($DW189)),$DV189,$DV$2&ROW($DV189)),$DU189,$DU$2&ROW($DU189)),$DT189,$DT$2&ROW($DT189)),$DS189,$DS$2&ROW($DS189)))","v":0},{"$f":"IF(T189=\"\",0,\"X=\"&SUBSTITUTE(SUBSTITUTE(SUBSTITUTE(SUBSTITUTE(SUBSTITUTE(SUBSTITUTE(SUBSTITUTE(SUBSTITUTE(SUBSTITUTE(SUBSTITUTE(SUBSTITUTE(SUBSTITUTE(T189,$ED189,$ED$2&ROW($ED189)),$EC189,$EC$2&ROW($EC189)),$EB189,$EB$2&ROW($EB189)),$EA189,$EA$2&ROW($EA189)),$DZ189,$DZ$2&ROW($DZ189)),$DY189,$DY$2&ROW($DY189)),$DX189,$DX$2&ROW($DX189)),$DW189,$DW$2&ROW($DW189)),$DV189,$DV$2&ROW($DV189)),$DU189,$DU$2&ROW($DU189)),$DT189,$DT$2&ROW($DT189)),$DS189,$DS$2&ROW($DS189)))","v":0},{"$f":"IF(U189=\"\",0,\"X=\"&SUBSTITUTE(SUBSTITUTE(SUBSTITUTE(SUBSTITUTE(SUBSTITUTE(SUBSTITUTE(SUBSTITUTE(SUBSTITUTE(SUBSTITUTE(SUBSTITUTE(SUBSTITUTE(SUBSTITUTE(U189,$ED189,$ED$2&ROW($ED189)),$EC189,$EC$2&ROW($EC189)),$EB189,$EB$2&ROW($EB189)),$EA189,$EA$2&ROW($EA189)),$DZ189,$DZ$2&ROW($DZ189)),$DY189,$DY$2&ROW($DY189)),$DX189,$DX$2&ROW($DX189)),$DW189,$DW$2&ROW($DW189)),$DV189,$DV$2&ROW($DV189)),$DU189,$DU$2&ROW($DU189)),$DT189,$DT$2&ROW($DT189)),$DS189,$DS$2&ROW($DS189)))","v":"X=AS189*AU189*AF189*0.244"},{"$f":"IF(V189=\"\",0,\"X=\"&SUBSTITUTE(SUBSTITUTE(SUBSTITUTE(SUBSTITUTE(SUBSTITUTE(SUBSTITUTE(SUBSTITUTE(SUBSTITUTE(SUBSTITUTE(SUBSTITUTE(SUBSTITUTE(SUBSTITUTE(V189,$ED189,$ED$2&ROW($ED189)),$EC189,$EC$2&ROW($EC189)),$EB189,$EB$2&ROW($EB189)),$EA189,$EA$2&ROW($EA189)),$DZ189,$DZ$2&ROW($DZ189)),$DY189,$DY$2&ROW($DY189)),$DX189,$DX$2&ROW($DX189)),$DW189,$DW$2&ROW($DW189)),$DV189,$DV$2&ROW($DV189)),$DU189,$DU$2&ROW($DU189)),$DT189,$DT$2&ROW($DT189)),$DS189,$DS$2&ROW($DS189)))","v":"X=AS189*AU189*AG189*1*0.244"},{"$f":"IF(W189=\"\",0,\"X=\"&SUBSTITUTE(SUBSTITUTE(SUBSTITUTE(SUBSTITUTE(SUBSTITUTE(SUBSTITUTE(SUBSTITUTE(SUBSTITUTE(SUBSTITUTE(SUBSTITUTE(SUBSTITUTE(SUBSTITUTE(W189,$ED189,$ED$2&ROW($ED189)),$EC189,$EC$2&ROW($EC189)),$EB189,$EB$2&ROW($EB189)),$EA189,$EA$2&ROW($EA189)),$DZ189,$DZ$2&ROW($DZ189)),$DY189,$DY$2&ROW($DY189)),$DX189,$DX$2&ROW($DX189)),$DW189,$DW$2&ROW($DW189)),$DV189,$DV$2&ROW($DV189)),$DU189,$DU$2&ROW($DU189)),$DT189,$DT$2&ROW($DT189)),$DS189,$DS$2&ROW($DS189)))","v":"X=AS189*AU189*10*0"},{"$f":"IF(X189=\"\",0,\"X=\"&SUBSTITUTE(SUBSTITUTE(SUBSTITUTE(SUBSTITUTE(SUBSTITUTE(SUBSTITUTE(SUBSTITUTE(SUBSTITUTE(SUBSTITUTE(SUBSTITUTE(SUBSTITUTE(SUBSTITUTE(X189,$ED189,$ED$2&ROW($ED189)),$EC189,$EC$2&ROW($EC189)),$EB189,$EB$2&ROW($EB189)),$EA189,$EA$2&ROW($EA189)),$DZ189,$DZ$2&ROW($DZ189)),$DY189,$DY$2&ROW($DY189)),$DX189,$DX$2&ROW($DX189)),$DW189,$DW$2&ROW($DW189)),$DV189,$DV$2&ROW($DV189)),$DU189,$DU$2&ROW($DU189)),$DT189,$DT$2&ROW($DT189)),$DS189,$DS$2&ROW($DS189)))","v":"X=AS189*AU189*0"},{"$f":"IF(Y189=\"\",0,\"X=\"&SUBSTITUTE(SUBSTITUTE(SUBSTITUTE(SUBSTITUTE(SUBSTITUTE(SUBSTITUTE(SUBSTITUTE(SUBSTITUTE(SUBSTITUTE(SUBSTITUTE(SUBSTITUTE(SUBSTITUTE(Y189,$ED189,$ED$2&ROW($ED189)),$EC189,$EC$2&ROW($EC189)),$EB189,$EB$2&ROW($EB189)),$EA189,$EA$2&ROW($EA189)),$DZ189,$DZ$2&ROW($DZ189)),$DY189,$DY$2&ROW($DY189)),$DX189,$DX$2&ROW($DX189)),$DW189,$DW$2&ROW($DW189)),$DV189,$DV$2&ROW($DV189)),$DU189,$DU$2&ROW($DU189)),$DT189,$DT$2&ROW($DT189)),$DS189,$DS$2&ROW($DS189)))","v":"X=AS189*AU189*0"},{"$f":"IF(Z189=\"\",0,\"X=\"&SUBSTITUTE(SUBSTITUTE(SUBSTITUTE(SUBSTITUTE(SUBSTITUTE(SUBSTITUTE(SUBSTITUTE(SUBSTITUTE(SUBSTITUTE(SUBSTITUTE(SUBSTITUTE(SUBSTITUTE(Z189,$ED189,$ED$2&ROW($ED189)),$EC189,$EC$2&ROW($EC189)),$EB189,$EB$2&ROW($EB189)),$EA189,$EA$2&ROW($EA189)),$DZ189,$DZ$2&ROW($DZ189)),$DY189,$DY$2&ROW($DY189)),$DX189,$DX$2&ROW($DX189)),$DW189,$DW$2&ROW($DW189)),$DV189,$DV$2&ROW($DV189)),$DU189,$DU$2&ROW($DU189)),$DT189,$DT$2&ROW($DT189)),$DS189,$DS$2&ROW($DS189)))","v":"X=AS189*AU189*0"},{"$f":"IF(AA189=\"\",0,\"X=\"&SUBSTITUTE(SUBSTITUTE(SUBSTITUTE(SUBSTITUTE(SUBSTITUTE(SUBSTITUTE(SUBSTITUTE(SUBSTITUTE(SUBSTITUTE(SUBSTITUTE(SUBSTITUTE(SUBSTITUTE(AA189,$ED189,$ED$2&ROW($ED189)),$EC189,$EC$2&ROW($EC189)),$EB189,$EB$2&ROW($EB189)),$EA189,$EA$2&ROW($EA189)),$DZ189,$DZ$2&ROW($DZ189)),$DY189,$DY$2&ROW($DY189)),$DX189,$DX$2&ROW($DX189)),$DW189,$DW$2&ROW($DW189)),$DV189,$DV$2&ROW($DV189)),$DU189,$DU$2&ROW($DU189)),$DT189,$DT$2&ROW($DT189)),$DS189,$DS$2&ROW($DS189)))","v":"X=AS189*AU189*0"},{"$f":"IF(AB189=\"\",0,\"X=\"&SUBSTITUTE(SUBSTITUTE(SUBSTITUTE(SUBSTITUTE(SUBSTITUTE(SUBSTITUTE(SUBSTITUTE(SUBSTITUTE(SUBSTITUTE(SUBSTITUTE(SUBSTITUTE(SUBSTITUTE(AB189,$ED189,$ED$2&ROW($ED189)),$EC189,$EC$2&ROW($EC189)),$EB189,$EB$2&ROW($EB189)),$EA189,$EA$2&ROW($EA189)),$DZ189,$DZ$2&ROW($DZ189)),$DY189,$DY$2&ROW($DY189)),$DX189,$DX$2&ROW($DX189)),$DW189,$DW$2&ROW($DW189)),$DV189,$DV$2&ROW($DV189)),$DU189,$DU$2&ROW($DU189)),$DT189,$DT$2&ROW($DT189)),$DS189,$DS$2&ROW($DS189)))","v":0},null,null,"{Factor:WinterCF}","{Factor:SummerCF}",{"$f":"IFERROR(INDEX($EG189:$IV189,MATCH(0,COUNTIF($DR189:DT189,$EG189:$IV189),0)),\"\")","v":"{Measure:Quantity}"},{"$f":"IFERROR(INDEX($EG189:$IV189,MATCH(0,COUNTIF($DR189:DU189,$EG189:$IV189),0)),\"\")","v":"{Package Size}"},{"$f":"IFERROR(INDEX($EG189:$IV189,MATCH(0,COUNTIF($DR189:DV189,$EG189:$IV189),0)),\"\")","v":"{Rebate per Package}"},{"$f":"IFERROR(INDEX($EG189:$IV189,MATCH(0,COUNTIF($DR189:DW189,$EG189:$IV189),0)),\"\")","v":""},{"$f":"IFERROR(INDEX($EG189:$IV189,MATCH(0,COUNTIF($DR189:DX189,$EG189:$IV189),0)),\"\")","v":""},{"$f":"IFERROR(INDEX($EG189:$IV189,MATCH(0,COUNTIF($DR189:DY189,$EG189:$IV189),0)),\"\")","v":""},{"$f":"IFERROR(INDEX($EG189:$IV189,MATCH(0,COUNTIF($DR189:DZ189,$EG189:$IV189),0)),\"\")","v":""},{"$f":"IFERROR(INDEX($EG189:$IV189,MATCH(0,COUNTIF($DR189:EA189,$EG189:$IV189),0)),\"\")","v":""},{"$f":"IFERROR(INDEX($EG189:$IV189,MATCH(0,COUNTIF($DR189:EB189,$EG189:$IV189),0)),\"\")","v":""},{"$f":"IFERROR(INDEX($EG189:$IV189,MATCH(0,COUNTIF($DR189:EC189,$EG189:$IV189),0)),\"\")","v":""},null,null,{"$f":"IFERROR(MID($G189,FIND(CHAR(160),SUBSTITUTE($G189,\"{\",CHAR(160),EG$1)),FIND(CHAR(160),SUBSTITUTE($G189,\"}\",CHAR(160),EG$1))-FIND(CHAR(160),SUBSTITUTE($G189,\"{\",CHAR(160),EG$1))+1),\"\")","v":"{Measure:Quantity}"},{"$f":"IFERROR(MID($G189,FIND(CHAR(160),SUBSTITUTE($G189,\"{\",CHAR(160),EH$1)),FIND(CHAR(160),SUBSTITUTE($G189,\"}\",CHAR(160),EH$1))-FIND(CHAR(160),SUBSTITUTE($G189,\"{\",CHAR(160),EH$1))+1),\"\")","v":"{Package Size}"},{"$f":"IFERROR(MID($G189,FIND(CHAR(160),SUBSTITUTE($G189,\"{\",CHAR(160),EI$1)),FIND(CHAR(160),SUBSTITUTE($G189,\"}\",CHAR(160),EI$1))-FIND(CHAR(160),SUBSTITUTE($G189,\"{\",CHAR(160),EI$1))+1),\"\")","v":""},{"$f":"IFERROR(MID($G189,FIND(CHAR(160),SUBSTITUTE($G189,\"{\",CHAR(160),EJ$1)),FIND(CHAR(160),SUBSTITUTE($G189,\"}\",CHAR(160),EJ$1))-FIND(CHAR(160),SUBSTITUTE($G189,\"{\",CHAR(160),EJ$1))+1),\"\")","v":""},{"$f":"IFERROR(MID($G189,FIND(CHAR(160),SUBSTITUTE($G189,\"{\",CHAR(160),EK$1)),FIND(CHAR(160),SUBSTITUTE($G189,\"}\",CHAR(160),EK$1))-FIND(CHAR(160),SUBSTITUTE($G189,\"{\",CHAR(160),EK$1))+1),\"\")","v":""},{"$f":"IFERROR(MID($G189,FIND(CHAR(160),SUBSTITUTE($G189,\"{\",CHAR(160),EL$1)),FIND(CHAR(160),SUBSTITUTE($G189,\"}\",CHAR(160),EL$1))-FIND(CHAR(160),SUBSTITUTE($G189,\"{\",CHAR(160),EL$1))+1),\"\")","v":""},{"$f":"IFERROR(MID($G189,FIND(CHAR(160),SUBSTITUTE($G189,\"{\",CHAR(160),EM$1)),FIND(CHAR(160),SUBSTITUTE($G189,\"}\",CHAR(160),EM$1))-FIND(CHAR(160),SUBSTITUTE($G189,\"{\",CHAR(160),EM$1))+1),\"\")","v":""},{"$f":"IFERROR(MID($G189,FIND(CHAR(160),SUBSTITUTE($G189,\"{\",CHAR(160),EN$1)),FIND(CHAR(160),SUBSTITUTE($G189,\"}\",CHAR(160),EN$1))-FIND(CHAR(160),SUBSTITUTE($G189,\"{\",CHAR(160),EN$1))+1),\"\")","v":""},{"$f":"IFERROR(MID($G189,FIND(CHAR(160),SUBSTITUTE($G189,\"{\",CHAR(160),EO$1)),FIND(CHAR(160),SUBSTITUTE($G189,\"}\",CHAR(160),EO$1))-FIND(CHAR(160),SUBSTITUTE($G189,\"{\",CHAR(160),EO$1))+1),\"\")","v":""},{"$f":"IFERROR(MID($G189,FIND(CHAR(160),SUBSTITUTE($G189,\"{\",CHAR(160),EP$1)),FIND(CHAR(160),SUBSTITUTE($G189,\"}\",CHAR(160),EP$1))-FIND(CHAR(160),SUBSTITUTE($G189,\"{\",CHAR(160),EP$1))+1),\"\")","v":""},{"$f":"IFERROR(MID($J189,FIND(CHAR(160),SUBSTITUTE($J189,\"{\",CHAR(160),EQ$1)),FIND(CHAR(160),SUBSTITUTE($J189,\"}\",CHAR(160),EQ$1))-FIND(CHAR(160),SUBSTITUTE($J189,\"{\",CHAR(160),EQ$1))+1),\"\")","v":"{Measure:Quantity}"},{"$f":"IFERROR(MID($J189,FIND(CHAR(160),SUBSTITUTE($J189,\"{\",CHAR(160),ER$1)),FIND(CHAR(160),SUBSTITUTE($J189,\"}\",CHAR(160),ER$1))-FIND(CHAR(160),SUBSTITUTE($J189,\"{\",CHAR(160),ER$1))+1),\"\")","v":"{Rebate per Package}"},{"$f":"IFERROR(MID($J189,FIND(CHAR(160),SUBSTITUTE($J189,\"{\",CHAR(160),ES$1)),FIND(CHAR(160),SUBSTITUTE($J189,\"}\",CHAR(160),ES$1))-FIND(CHAR(160),SUBSTITUTE($J189,\"{\",CHAR(160),ES$1))+1),\"\")","v":""},{"$f":"IFERROR(MID($J189,FIND(CHAR(160),SUBSTITUTE($J189,\"{\",CHAR(160),ET$1)),FIND(CHAR(160),SUBSTITUTE($J189,\"}\",CHAR(160),ET$1))-FIND(CHAR(160),SUBSTITUTE($J189,\"{\",CHAR(160),ET$1))+1),\"\")","v":""},{"$f":"IFERROR(MID($J189,FIND(CHAR(160),SUBSTITUTE($J189,\"{\",CHAR(160),EU$1)),FIND(CHAR(160),SUBSTITUTE($J189,\"}\",CHAR(160),EU$1))-FIND(CHAR(160),SUBSTITUTE($J189,\"{\",CHAR(160),EU$1))+1),\"\")","v":""},{"$f":"IFERROR(MID($J189,FIND(CHAR(160),SUBSTITUTE($J189,\"{\",CHAR(160),EV$1)),FIND(CHAR(160),SUBSTITUTE($J189,\"}\",CHAR(160),EV$1))-FIND(CHAR(160),SUBSTITUTE($J189,\"{\",CHAR(160),EV$1))+1),\"\")","v":""},{"$f":"IFERROR(MID($J189,FIND(CHAR(160),SUBSTITUTE($J189,\"{\",CHAR(160),EW$1)),FIND(CHAR(160),SUBSTITUTE($J189,\"}\",CHAR(160),EW$1))-FIND(CHAR(160),SUBSTITUTE($J189,\"{\",CHAR(160),EW$1))+1),\"\")","v":""},{"$f":"IFERROR(MID($J189,FIND(CHAR(160),SUBSTITUTE($J189,\"{\",CHAR(160),EX$1)),FIND(CHAR(160),SUBSTITUTE($J189,\"}\",CHAR(160),EX$1))-FIND(CHAR(160),SUBSTITUTE($J189,\"{\",CHAR(160),EX$1))+1),\"\")","v":""},{"$f":"IFERROR(MID($J189,FIND(CHAR(160),SUBSTITUTE($J189,\"{\",CHAR(160),EY$1)),FIND(CHAR(160),SUBSTITUTE($J189,\"}\",CHAR(160),EY$1))-FIND(CHAR(160),SUBSTITUTE($J189,\"{\",CHAR(160),EY$1))+1),\"\")","v":""},{"$f":"IFERROR(MID($J189,FIND(CHAR(160),SUBSTITUTE($J189,\"{\",CHAR(160),EZ$1)),FIND(CHAR(160),SUBSTITUTE($J189,\"}\",CHAR(160),EZ$1))-FIND(CHAR(160),SUBSTITUTE($J189,\"{\",CHAR(160),EZ$1))+1),\"\")","v":""},{"$f":"IFERROR(MID($J189,FIND(CHAR(160),SUBSTITUTE($J189,\"{\",CHAR(160),FA$1)),FIND(CHAR(160),SUBSTITUTE($J189,\"}\",CHAR(160),FA$1))-FIND(CHAR(160),SUBSTITUTE($J189,\"{\",CHAR(160),FA$1))+1),\"\")","v":"{Measure:Quantity}"},{"$f":"IFERROR(MID($J189,FIND(CHAR(160),SUBSTITUTE($J189,\"{\",CHAR(160),FB$1)),FIND(CHAR(160),SUBSTITUTE($J189,\"}\",CHAR(160),FB$1))-FIND(CHAR(160),SUBSTITUTE($J189,\"{\",CHAR(160),FB$1))+1),\"\")","v":"{Rebate per Package}"},{"$f":"IFERROR(MID($O189,FIND(CHAR(160),SUBSTITUTE($O189,\"{\",CHAR(160),FC$1)),FIND(CHAR(160),SUBSTITUTE($O189,\"}\",CHAR(160),FC$1))-FIND(CHAR(160),SUBSTITUTE($O189,\"{\",CHAR(160),FC$1))+1),\"\")","v":""},{"$f":"IFERROR(MID($O189,FIND(CHAR(160),SUBSTITUTE($O189,\"{\",CHAR(160),FD$1)),FIND(CHAR(160),SUBSTITUTE($O189,\"}\",CHAR(160),FD$1))-FIND(CHAR(160),SUBSTITUTE($O189,\"{\",CHAR(160),FD$1))+1),\"\")","v":""},{"$f":"IFERROR(MID($O189,FIND(CHAR(160),SUBSTITUTE($O189,\"{\",CHAR(160),FE$1)),FIND(CHAR(160),SUBSTITUTE($O189,\"}\",CHAR(160),FE$1))-FIND(CHAR(160),SUBSTITUTE($O189,\"{\",CHAR(160),FE$1))+1),\"\")","v":""},{"$f":"IFERROR(MID($O189,FIND(CHAR(160),SUBSTITUTE($O189,\"{\",CHAR(160),FF$1)),FIND(CHAR(160),SUBSTITUTE($O189,\"}\",CHAR(160),FF$1))-FIND(CHAR(160),SUBSTITUTE($O189,\"{\",CHAR(160),FF$1))+1),\"\")","v":""},{"$f":"IFERROR(MID($O189,FIND(CHAR(160),SUBSTITUTE($O189,\"{\",CHAR(160),FG$1)),FIND(CHAR(160),SUBSTITUTE($O189,\"}\",CHAR(160),FG$1))-FIND(CHAR(160),SUBSTITUTE($O189,\"{\",CHAR(160),FG$1))+1),\"\")","v":""},{"$f":"IFERROR(MID($O189,FIND(CHAR(160),SUBSTITUTE($O189,\"{\",CHAR(160),FH$1)),FIND(CHAR(160),SUBSTITUTE($O189,\"}\",CHAR(160),FH$1))-FIND(CHAR(160),SUBSTITUTE($O189,\"{\",CHAR(160),FH$1))+1),\"\")","v":""},{"$f":"IFERROR(MID($O189,FIND(CHAR(160),SUBSTITUTE($O189,\"{\",CHAR(160),FI$1)),FIND(CHAR(160),SUBSTITUTE($O189,\"}\",CHAR(160),FI$1))-FIND(CHAR(160),SUBSTITUTE($O189,\"{\",CHAR(160),FI$1))+1),\"\")","v":""},{"$f":"IFERROR(MID($O189,FIND(CHAR(160),SUBSTITUTE($O189,\"{\",CHAR(160),FJ$1)),FIND(CHAR(160),SUBSTITUTE($O189,\"}\",CHAR(160),FJ$1))-FIND(CHAR(160),SUBSTITUTE($O189,\"{\",CHAR(160),FJ$1))+1),\"\")","v":""},{"$f":"IFERROR(MID($O189,FIND(CHAR(160),SUBSTITUTE($O189,\"{\",CHAR(160),FK$1)),FIND(CHAR(160),SUBSTITUTE($O189,\"}\",CHAR(160),FK$1))-FIND(CHAR(160),SUBSTITUTE($O189,\"{\",CHAR(160),FK$1))+1),\"\")","v":"{Measure:Quantity}"},{"$f":"IFERROR(MID($O189,FIND(CHAR(160),SUBSTITUTE($O189,\"{\",CHAR(160),FL$1)),FIND(CHAR(160),SUBSTITUTE($O189,\"}\",CHAR(160),FL$1))-FIND(CHAR(160),SUBSTITUTE($O189,\"{\",CHAR(160),FL$1))+1),\"\")","v":"{Package Size}"},{"$f":"IFERROR(MID($R189,FIND(CHAR(160),SUBSTITUTE($R189,\"{\",CHAR(160),FM$1)),FIND(CHAR(160),SUBSTITUTE($R189,\"}\",CHAR(160),FM$1))-FIND(CHAR(160),SUBSTITUTE($R189,\"{\",CHAR(160),FM$1))+1),\"\")","v":""},{"$f":"IFERROR(MID($R189,FIND(CHAR(160),SUBSTITUTE($R189,\"{\",CHAR(160),FN$1)),FIND(CHAR(160),SUBSTITUTE($R189,\"}\",CHAR(160),FN$1))-FIND(CHAR(160),SUBSTITUTE($R189,\"{\",CHAR(160),FN$1))+1),\"\")","v":""},{"$f":"IFERROR(MID($R189,FIND(CHAR(160),SUBSTITUTE($R189,\"{\",CHAR(160),FO$1)),FIND(CHAR(160),SUBSTITUTE($R189,\"}\",CHAR(160),FO$1))-FIND(CHAR(160),SUBSTITUTE($R189,\"{\",CHAR(160),FO$1))+1),\"\")","v":""},{"$f":"IFERROR(MID($R189,FIND(CHAR(160),SUBSTITUTE($R189,\"{\",CHAR(160),FP$1)),FIND(CHAR(160),SUBSTITUTE($R189,\"}\",CHAR(160),FP$1))-FIND(CHAR(160),SUBSTITUTE($R189,\"{\",CHAR(160),FP$1))+1),\"\")","v":""},{"$f":"IFERROR(MID($R189,FIND(CHAR(160),SUBSTITUTE($R189,\"{\",CHAR(160),FQ$1)),FIND(CHAR(160),SUBSTITUTE($R189,\"}\",CHAR(160),FQ$1))-FIND(CHAR(160),SUBSTITUTE($R189,\"{\",CHAR(160),FQ$1))+1),\"\")","v":""},{"$f":"IFERROR(MID($R189,FIND(CHAR(160),SUBSTITUTE($R189,\"{\",CHAR(160),FR$1)),FIND(CHAR(160),SUBSTITUTE($R189,\"}\",CHAR(160),FR$1))-FIND(CHAR(160),SUBSTITUTE($R189,\"{\",CHAR(160),FR$1))+1),\"\")","v":""},{"$f":"IFERROR(MID($R189,FIND(CHAR(160),SUBSTITUTE($R189,\"{\",CHAR(160),FS$1)),FIND(CHAR(160),SUBSTITUTE($R189,\"}\",CHAR(160),FS$1))-FIND(CHAR(160),SUBSTITUTE($R189,\"{\",CHAR(160),FS$1))+1),\"\")","v":""},{"$f":"IFERROR(MID($R189,FIND(CHAR(160),SUBSTITUTE($R189,\"{\",CHAR(160),FT$1)),FIND(CHAR(160),SUBSTITUTE($R189,\"}\",CHAR(160),FT$1))-FIND(CHAR(160),SUBSTITUTE($R189,\"{\",CHAR(160),FT$1))+1),\"\")","v":""},{"$f":"IFERROR(MID($R189,FIND(CHAR(160),SUBSTITUTE($R189,\"{\",CHAR(160),FU$1)),FIND(CHAR(160),SUBSTITUTE($R189,\"}\",CHAR(160),FU$1))-FIND(CHAR(160),SUBSTITUTE($R189,\"{\",CHAR(160),FU$1))+1),\"\")","v":"{Measure:Quantity}"},{"$f":"IFERROR(MID($R189,FIND(CHAR(160),SUBSTITUTE($R189,\"{\",CHAR(160),FV$1)),FIND(CHAR(160),SUBSTITUTE($R189,\"}\",CHAR(160),FV$1))-FIND(CHAR(160),SUBSTITUTE($R189,\"{\",CHAR(160),FV$1))+1),\"\")","v":"{Package Size}"},{"$f":"IFERROR(MID($U189,FIND(CHAR(160),SUBSTITUTE($U189,\"{\",CHAR(160),FW$1)),FIND(CHAR(160),SUBSTITUTE($U189,\"}\",CHAR(160),FW$1))-FIND(CHAR(160),SUBSTITUTE($U189,\"{\",CHAR(160),FW$1))+1),\"\")","v":"{Factor:WinterCF}"},{"$f":"IFERROR(MID($U189,FIND(CHAR(160),SUBSTITUTE($U189,\"{\",CHAR(160),FX$1)),FIND(CHAR(160),SUBSTITUTE($U189,\"}\",CHAR(160),FX$1))-FIND(CHAR(160),SUBSTITUTE($U189,\"{\",CHAR(160),FX$1))+1),\"\")","v":""},{"$f":"IFERROR(MID($U189,FIND(CHAR(160),SUBSTITUTE($U189,\"{\",CHAR(160),FY$1)),FIND(CHAR(160),SUBSTITUTE($U189,\"}\",CHAR(160),FY$1))-FIND(CHAR(160),SUBSTITUTE($U189,\"{\",CHAR(160),FY$1))+1),\"\")","v":""},{"$f":"IFERROR(MID($U189,FIND(CHAR(160),SUBSTITUTE($U189,\"{\",CHAR(160),FZ$1)),FIND(CHAR(160),SUBSTITUTE($U189,\"}\",CHAR(160),FZ$1))-FIND(CHAR(160),SUBSTITUTE($U189,\"{\",CHAR(160),FZ$1))+1),\"\")","v":""},{"$f":"IFERROR(MID($U189,FIND(CHAR(160),SUBSTITUTE($U189,\"{\",CHAR(160),GA$1)),FIND(CHAR(160),SUBSTITUTE($U189,\"}\",CHAR(160),GA$1))-FIND(CHAR(160),SUBSTITUTE($U189,\"{\",CHAR(160),GA$1))+1),\"\")","v":""},{"$f":"IFERROR(MID($U189,FIND(CHAR(160),SUBSTITUTE($U189,\"{\",CHAR(160),GB$1)),FIND(CHAR(160),SUBSTITUTE($U189,\"}\",CHAR(160),GB$1))-FIND(CHAR(160),SUBSTITUTE($U189,\"{\",CHAR(160),GB$1))+1),\"\")","v":""},{"$f":"IFERROR(MID($U189,FIND(CHAR(160),SUBSTITUTE($U189,\"{\",CHAR(160),GC$1)),FIND(CHAR(160),SUBSTITUTE($U189,\"}\",CHAR(160),GC$1))-FIND(CHAR(160),SUBSTITUTE($U189,\"{\",CHAR(160),GC$1))+1),\"\")","v":""},{"$f":"IFERROR(MID($U189,FIND(CHAR(160),SUBSTITUTE($U189,\"{\",CHAR(160),GD$1)),FIND(CHAR(160),SUBSTITUTE($U189,\"}\",CHAR(160),GD$1))-FIND(CHAR(160),SUBSTITUTE($U189,\"{\",CHAR(160),GD$1))+1),\"\")","v":""},{"$f":"IFERROR(MID($U189,FIND(CHAR(160),SUBSTITUTE($U189,\"{\",CHAR(160),GE$1)),FIND(CHAR(160),SUBSTITUTE($U189,\"}\",CHAR(160),GE$1))-FIND(CHAR(160),SUBSTITUTE($U189,\"{\",CHAR(160),GE$1))+1),\"\")","v":"{Measure:Quantity}"},{"$f":"IFERROR(MID($U189,FIND(CHAR(160),SUBSTITUTE($U189,\"{\",CHAR(160),GF$1)),FIND(CHAR(160),SUBSTITUTE($U189,\"}\",CHAR(160),GF$1))-FIND(CHAR(160),SUBSTITUTE($U189,\"{\",CHAR(160),GF$1))+1),\"\")","v":"{Package Size}"},{"$f":"IFERROR(MID($V189,FIND(CHAR(160),SUBSTITUTE($V189,\"{\",CHAR(160),GG$1)),FIND(CHAR(160),SUBSTITUTE($V189,\"}\",CHAR(160),GG$1))-FIND(CHAR(160),SUBSTITUTE($V189,\"{\",CHAR(160),GG$1))+1),\"\")","v":"{Factor:SummerCF}"},{"$f":"IFERROR(MID($V189,FIND(CHAR(160),SUBSTITUTE($V189,\"{\",CHAR(160),GH$1)),FIND(CHAR(160),SUBSTITUTE($V189,\"}\",CHAR(160),GH$1))-FIND(CHAR(160),SUBSTITUTE($V189,\"{\",CHAR(160),GH$1))+1),\"\")","v":""},{"$f":"IFERROR(MID($V189,FIND(CHAR(160),SUBSTITUTE($V189,\"{\",CHAR(160),GI$1)),FIND(CHAR(160),SUBSTITUTE($V189,\"}\",CHAR(160),GI$1))-FIND(CHAR(160),SUBSTITUTE($V189,\"{\",CHAR(160),GI$1))+1),\"\")","v":""},{"$f":"IFERROR(MID($V189,FIND(CHAR(160),SUBSTITUTE($V189,\"{\",CHAR(160),GJ$1)),FIND(CHAR(160),SUBSTITUTE($V189,\"}\",CHAR(160),GJ$1))-FIND(CHAR(160),SUBSTITUTE($V189,\"{\",CHAR(160),GJ$1))+1),\"\")","v":""},{"$f":"IFERROR(MID($V189,FIND(CHAR(160),SUBSTITUTE($V189,\"{\",CHAR(160),GK$1)),FIND(CHAR(160),SUBSTITUTE($V189,\"}\",CHAR(160),GK$1))-FIND(CHAR(160),SUBSTITUTE($V189,\"{\",CHAR(160),GK$1))+1),\"\")","v":""},{"$f":"IFERROR(MID($V189,FIND(CHAR(160),SUBSTITUTE($V189,\"{\",CHAR(160),GL$1)),FIND(CHAR(160),SUBSTITUTE($V189,\"}\",CHAR(160),GL$1))-FIND(CHAR(160),SUBSTITUTE($V189,\"{\",CHAR(160),GL$1))+1),\"\")","v":""},{"$f":"IFERROR(MID($V189,FIND(CHAR(160),SUBSTITUTE($V189,\"{\",CHAR(160),GM$1)),FIND(CHAR(160),SUBSTITUTE($V189,\"}\",CHAR(160),GM$1))-FIND(CHAR(160),SUBSTITUTE($V189,\"{\",CHAR(160),GM$1))+1),\"\")","v":""},{"$f":"IFERROR(MID($V189,FIND(CHAR(160),SUBSTITUTE($V189,\"{\",CHAR(160),GN$1)),FIND(CHAR(160),SUBSTITUTE($V189,\"}\",CHAR(160),GN$1))-FIND(CHAR(160),SUBSTITUTE($V189,\"{\",CHAR(160),GN$1))+1),\"\")","v":""},{"$f":"IFERROR(MID($V189,FIND(CHAR(160),SUBSTITUTE($V189,\"{\",CHAR(160),GO$1)),FIND(CHAR(160),SUBSTITUTE($V189,\"}\",CHAR(160),GO$1))-FIND(CHAR(160),SUBSTITUTE($V189,\"{\",CHAR(160),GO$1))+1),\"\")","v":"{Measure:Quantity}"},{"$f":"IFERROR(MID($V189,FIND(CHAR(160),SUBSTITUTE($V189,\"{\",CHAR(160),GP$1)),FIND(CHAR(160),SUBSTITUTE($V189,\"}\",CHAR(160),GP$1))-FIND(CHAR(160),SUBSTITUTE($V189,\"{\",CHAR(160),GP$1))+1),\"\")","v":"{Package Size}"},{"$f":"IFERROR(MID($W189,FIND(CHAR(160),SUBSTITUTE($W189,\"{\",CHAR(160),GQ$1)),FIND(CHAR(160),SUBSTITUTE($W189,\"}\",CHAR(160),GQ$1))-FIND(CHAR(160),SUBSTITUTE($W189,\"{\",CHAR(160),GQ$1))+1),\"\")","v":""},{"$f":"IFERROR(MID($W189,FIND(CHAR(160),SUBSTITUTE($W189,\"{\",CHAR(160),GR$1)),FIND(CHAR(160),SUBSTITUTE($W189,\"}\",CHAR(160),GR$1))-FIND(CHAR(160),SUBSTITUTE($W189,\"{\",CHAR(160),GR$1))+1),\"\")","v":""},{"$f":"IFERROR(MID($W189,FIND(CHAR(160),SUBSTITUTE($W189,\"{\",CHAR(160),GS$1)),FIND(CHAR(160),SUBSTITUTE($W189,\"}\",CHAR(160),GS$1))-FIND(CHAR(160),SUBSTITUTE($W189,\"{\",CHAR(160),GS$1))+1),\"\")","v":""},{"$f":"IFERROR(MID($W189,FIND(CHAR(160),SUBSTITUTE($W189,\"{\",CHAR(160),GT$1)),FIND(CHAR(160),SUBSTITUTE($W189,\"}\",CHAR(160),GT$1))-FIND(CHAR(160),SUBSTITUTE($W189,\"{\",CHAR(160),GT$1))+1),\"\")","v":""},{"$f":"IFERROR(MID($W189,FIND(CHAR(160),SUBSTITUTE($W189,\"{\",CHAR(160),GU$1)),FIND(CHAR(160),SUBSTITUTE($W189,\"}\",CHAR(160),GU$1))-FIND(CHAR(160),SUBSTITUTE($W189,\"{\",CHAR(160),GU$1))+1),\"\")","v":""},{"$f":"IFERROR(MID($W189,FIND(CHAR(160),SUBSTITUTE($W189,\"{\",CHAR(160),GV$1)),FIND(CHAR(160),SUBSTITUTE($W189,\"}\",CHAR(160),GV$1))-FIND(CHAR(160),SUBSTITUTE($W189,\"{\",CHAR(160),GV$1))+1),\"\")","v":""},{"$f":"IFERROR(MID($W189,FIND(CHAR(160),SUBSTITUTE($W189,\"{\",CHAR(160),GW$1)),FIND(CHAR(160),SUBSTITUTE($W189,\"}\",CHAR(160),GW$1))-FIND(CHAR(160),SUBSTITUTE($W189,\"{\",CHAR(160),GW$1))+1),\"\")","v":""},{"$f":"IFERROR(MID($W189,FIND(CHAR(160),SUBSTITUTE($W189,\"{\",CHAR(160),GX$1)),FIND(CHAR(160),SUBSTITUTE($W189,\"}\",CHAR(160),GX$1))-FIND(CHAR(160),SUBSTITUTE($W189,\"{\",CHAR(160),GX$1))+1),\"\")","v":""},{"$f":"IFERROR(MID($W189,FIND(CHAR(160),SUBSTITUTE($W189,\"{\",CHAR(160),GY$1)),FIND(CHAR(160),SUBSTITUTE($W189,\"}\",CHAR(160),GY$1))-FIND(CHAR(160),SUBSTITUTE($W189,\"{\",CHAR(160),GY$1))+1),\"\")","v":"{Measure:Quantity}"},{"$f":"IFERROR(MID($W189,FIND(CHAR(160),SUBSTITUTE($W189,\"{\",CHAR(160),GZ$1)),FIND(CHAR(160),SUBSTITUTE($W189,\"}\",CHAR(160),GZ$1))-FIND(CHAR(160),SUBSTITUTE($W189,\"{\",CHAR(160),GZ$1))+1),\"\")","v":"{Package Size}"},{"$f":"IFERROR(MID($X189,FIND(CHAR(160),SUBSTITUTE($X189,\"{\",CHAR(160),HA$1)),FIND(CHAR(160),SUBSTITUTE($X189,\"}\",CHAR(160),HA$1))-FIND(CHAR(160),SUBSTITUTE($X189,\"{\",CHAR(160),HA$1))+1),\"\")","v":""},{"$f":"IFERROR(MID($X189,FIND(CHAR(160),SUBSTITUTE($X189,\"{\",CHAR(160),HB$1)),FIND(CHAR(160),SUBSTITUTE($X189,\"}\",CHAR(160),HB$1))-FIND(CHAR(160),SUBSTITUTE($X189,\"{\",CHAR(160),HB$1))+1),\"\")","v":""},{"$f":"IFERROR(MID($X189,FIND(CHAR(160),SUBSTITUTE($X189,\"{\",CHAR(160),HC$1)),FIND(CHAR(160),SUBSTITUTE($X189,\"}\",CHAR(160),HC$1))-FIND(CHAR(160),SUBSTITUTE($X189,\"{\",CHAR(160),HC$1))+1),\"\")","v":""},{"$f":"IFERROR(MID($X189,FIND(CHAR(160),SUBSTITUTE($X189,\"{\",CHAR(160),HD$1)),FIND(CHAR(160),SUBSTITUTE($X189,\"}\",CHAR(160),HD$1))-FIND(CHAR(160),SUBSTITUTE($X189,\"{\",CHAR(160),HD$1))+1),\"\")","v":""},{"$f":"IFERROR(MID($X189,FIND(CHAR(160),SUBSTITUTE($X189,\"{\",CHAR(160),HE$1)),FIND(CHAR(160),SUBSTITUTE($X189,\"}\",CHAR(160),HE$1))-FIND(CHAR(160),SUBSTITUTE($X189,\"{\",CHAR(160),HE$1))+1),\"\")","v":""},{"$f":"IFERROR(MID($X189,FIND(CHAR(160),SUBSTITUTE($X189,\"{\",CHAR(160),HF$1)),FIND(CHAR(160),SUBSTITUTE($X189,\"}\",CHAR(160),HF$1))-FIND(CHAR(160),SUBSTITUTE($X189,\"{\",CHAR(160),HF$1))+1),\"\")","v":""},{"$f":"IFERROR(MID($X189,FIND(CHAR(160),SUBSTITUTE($X189,\"{\",CHAR(160),HG$1)),FIND(CHAR(160),SUBSTITUTE($X189,\"}\",CHAR(160),HG$1))-FIND(CHAR(160),SUBSTITUTE($X189,\"{\",CHAR(160),HG$1))+1),\"\")","v":""},{"$f":"IFERROR(MID($X189,FIND(CHAR(160),SUBSTITUTE($X189,\"{\",CHAR(160),HH$1)),FIND(CHAR(160),SUBSTITUTE($X189,\"}\",CHAR(160),HH$1))-FIND(CHAR(160),SUBSTITUTE($X189,\"{\",CHAR(160),HH$1))+1),\"\")","v":""},{"$f":"IFERROR(MID($X189,FIND(CHAR(160),SUBSTITUTE($X189,\"{\",CHAR(160),HI$1)),FIND(CHAR(160),SUBSTITUTE($X189,\"}\",CHAR(160),HI$1))-FIND(CHAR(160),SUBSTITUTE($X189,\"{\",CHAR(160),HI$1))+1),\"\")","v":"{Measure:Quantity}"},{"$f":"IFERROR(MID($X189,FIND(CHAR(160),SUBSTITUTE($X189,\"{\",CHAR(160),HJ$1)),FIND(CHAR(160),SUBSTITUTE($X189,\"}\",CHAR(160),HJ$1))-FIND(CHAR(160),SUBSTITUTE($X189,\"{\",CHAR(160),HJ$1))+1),\"\")","v":"{Package Size}"},{"$f":"IFERROR(MID($Y189,FIND(CHAR(160),SUBSTITUTE($Y189,\"{\",CHAR(160),HK$1)),FIND(CHAR(160),SUBSTITUTE($Y189,\"}\",CHAR(160),HK$1))-FIND(CHAR(160),SUBSTITUTE($Y189,\"{\",CHAR(160),HK$1))+1),\"\")","v":""},{"$f":"IFERROR(MID($Y189,FIND(CHAR(160),SUBSTITUTE($Y189,\"{\",CHAR(160),HL$1)),FIND(CHAR(160),SUBSTITUTE($Y189,\"}\",CHAR(160),HL$1))-FIND(CHAR(160),SUBSTITUTE($Y189,\"{\",CHAR(160),HL$1))+1),\"\")","v":""},{"$f":"IFERROR(MID($Y189,FIND(CHAR(160),SUBSTITUTE($Y189,\"{\",CHAR(160),HM$1)),FIND(CHAR(160),SUBSTITUTE($Y189,\"}\",CHAR(160),HM$1))-FIND(CHAR(160),SUBSTITUTE($Y189,\"{\",CHAR(160),HM$1))+1),\"\")","v":""},{"$f":"IFERROR(MID($Y189,FIND(CHAR(160),SUBSTITUTE($Y189,\"{\",CHAR(160),HN$1)),FIND(CHAR(160),SUBSTITUTE($Y189,\"}\",CHAR(160),HN$1))-FIND(CHAR(160),SUBSTITUTE($Y189,\"{\",CHAR(160),HN$1))+1),\"\")","v":""},{"$f":"IFERROR(MID($Y189,FIND(CHAR(160),SUBSTITUTE($Y189,\"{\",CHAR(160),HO$1)),FIND(CHAR(160),SUBSTITUTE($Y189,\"}\",CHAR(160),HO$1))-FIND(CHAR(160),SUBSTITUTE($Y189,\"{\",CHAR(160),HO$1))+1),\"\")","v":""},{"$f":"IFERROR(MID($Y189,FIND(CHAR(160),SUBSTITUTE($Y189,\"{\",CHAR(160),HP$1)),FIND(CHAR(160),SUBSTITUTE($Y189,\"}\",CHAR(160),HP$1))-FIND(CHAR(160),SUBSTITUTE($Y189,\"{\",CHAR(160),HP$1))+1),\"\")","v":""},{"$f":"IFERROR(MID($Y189,FIND(CHAR(160),SUBSTITUTE($Y189,\"{\",CHAR(160),HQ$1)),FIND(CHAR(160),SUBSTITUTE($Y189,\"}\",CHAR(160),HQ$1))-FIND(CHAR(160),SUBSTITUTE($Y189,\"{\",CHAR(160),HQ$1))+1),\"\")","v":""},{"$f":"IFERROR(MID($Y189,FIND(CHAR(160),SUBSTITUTE($Y189,\"{\",CHAR(160),HR$1)),FIND(CHAR(160),SUBSTITUTE($Y189,\"}\",CHAR(160),HR$1))-FIND(CHAR(160),SUBSTITUTE($Y189,\"{\",CHAR(160),HR$1))+1),\"\")","v":""},{"$f":"IFERROR(MID($Y189,FIND(CHAR(160),SUBSTITUTE($Y189,\"{\",CHAR(160),HS$1)),FIND(CHAR(160),SUBSTITUTE($Y189,\"}\",CHAR(160),HS$1))-FIND(CHAR(160),SUBSTITUTE($Y189,\"{\",CHAR(160),HS$1))+1),\"\")","v":"{Measure:Quantity}"},{"$f":"IFERROR(MID($Y189,FIND(CHAR(160),SUBSTITUTE($Y189,\"{\",CHAR(160),HT$1)),FIND(CHAR(160),SUBSTITUTE($Y189,\"}\",CHAR(160),HT$1))-FIND(CHAR(160),SUBSTITUTE($Y189,\"{\",CHAR(160),HT$1))+1),\"\")","v":"{Package Size}"},{"$f":"IFERROR(MID($Z189,FIND(CHAR(160),SUBSTITUTE($Z189,\"{\",CHAR(160),HU$1)),FIND(CHAR(160),SUBSTITUTE($Z189,\"}\",CHAR(160),HU$1))-FIND(CHAR(160),SUBSTITUTE($Z189,\"{\",CHAR(160),HU$1))+1),\"\")","v":""},{"$f":"IFERROR(MID($Z189,FIND(CHAR(160),SUBSTITUTE($Z189,\"{\",CHAR(160),HV$1)),FIND(CHAR(160),SUBSTITUTE($Z189,\"}\",CHAR(160),HV$1))-FIND(CHAR(160),SUBSTITUTE($Z189,\"{\",CHAR(160),HV$1))+1),\"\")","v":""},{"$f":"IFERROR(MID($Z189,FIND(CHAR(160),SUBSTITUTE($Z189,\"{\",CHAR(160),HW$1)),FIND(CHAR(160),SUBSTITUTE($Z189,\"}\",CHAR(160),HW$1))-FIND(CHAR(160),SUBSTITUTE($Z189,\"{\",CHAR(160),HW$1))+1),\"\")","v":""},{"$f":"IFERROR(MID($Z189,FIND(CHAR(160),SUBSTITUTE($Z189,\"{\",CHAR(160),HX$1)),FIND(CHAR(160),SUBSTITUTE($Z189,\"}\",CHAR(160),HX$1))-FIND(CHAR(160),SUBSTITUTE($Z189,\"{\",CHAR(160),HX$1))+1),\"\")","v":""},{"$f":"IFERROR(MID($Z189,FIND(CHAR(160),SUBSTITUTE($Z189,\"{\",CHAR(160),HY$1)),FIND(CHAR(160),SUBSTITUTE($Z189,\"}\",CHAR(160),HY$1))-FIND(CHAR(160),SUBSTITUTE($Z189,\"{\",CHAR(160),HY$1))+1),\"\")","v":""},{"$f":"IFERROR(MID($Z189,FIND(CHAR(160),SUBSTITUTE($Z189,\"{\",CHAR(160),HZ$1)),FIND(CHAR(160),SUBSTITUTE($Z189,\"}\",CHAR(160),HZ$1))-FIND(CHAR(160),SUBSTITUTE($Z189,\"{\",CHAR(160),HZ$1))+1),\"\")","v":""},{"$f":"IFERROR(MID($Z189,FIND(CHAR(160),SUBSTITUTE($Z189,\"{\",CHAR(160),IA$1)),FIND(CHAR(160),SUBSTITUTE($Z189,\"}\",CHAR(160),IA$1))-FIND(CHAR(160),SUBSTITUTE($Z189,\"{\",CHAR(160),IA$1))+1),\"\")","v":""},{"$f":"IFERROR(MID($Z189,FIND(CHAR(160),SUBSTITUTE($Z189,\"{\",CHAR(160),IB$1)),FIND(CHAR(160),SUBSTITUTE($Z189,\"}\",CHAR(160),IB$1))-FIND(CHAR(160),SUBSTITUTE($Z189,\"{\",CHAR(160),IB$1))+1),\"\")","v":""},{"$f":"IFERROR(MID($Z189,FIND(CHAR(160),SUBSTITUTE($Z189,\"{\",CHAR(160),IC$1)),FIND(CHAR(160),SUBSTITUTE($Z189,\"}\",CHAR(160),IC$1))-FIND(CHAR(160),SUBSTITUTE($Z189,\"{\",CHAR(160),IC$1))+1),\"\")","v":"{Measure:Quantity}"},{"$f":"IFERROR(MID($Z189,FIND(CHAR(160),SUBSTITUTE($Z189,\"{\",CHAR(160),ID$1)),FIND(CHAR(160),SUBSTITUTE($Z189,\"}\",CHAR(160),ID$1))-FIND(CHAR(160),SUBSTITUTE($Z189,\"{\",CHAR(160),ID$1))+1),\"\")","v":"{Package Size}"},{"$f":"IFERROR(MID($AA189,FIND(CHAR(160),SUBSTITUTE($AA189,\"{\",CHAR(160),IE$1)),FIND(CHAR(160),SUBSTITUTE($AA189,\"}\",CHAR(160),IE$1))-FIND(CHAR(160),SUBSTITUTE($AA189,\"{\",CHAR(160),IE$1))+1),\"\")","v":""},{"$f":"IFERROR(MID($AA189,FIND(CHAR(160),SUBSTITUTE($AA189,\"{\",CHAR(160),IF$1)),FIND(CHAR(160),SUBSTITUTE($AA189,\"}\",CHAR(160),IF$1))-FIND(CHAR(160),SUBSTITUTE($AA189,\"{\",CHAR(160),IF$1))+1),\"\")","v":""},{"$f":"IFERROR(MID($AA189,FIND(CHAR(160),SUBSTITUTE($AA189,\"{\",CHAR(160),IG$1)),FIND(CHAR(160),SUBSTITUTE($AA189,\"}\",CHAR(160),IG$1))-FIND(CHAR(160),SUBSTITUTE($AA189,\"{\",CHAR(160),IG$1))+1),\"\")","v":""},{"$f":"IFERROR(MID($AA189,FIND(CHAR(160),SUBSTITUTE($AA189,\"{\",CHAR(160),IH$1)),FIND(CHAR(160),SUBSTITUTE($AA189,\"}\",CHAR(160),IH$1))-FIND(CHAR(160),SUBSTITUTE($AA189,\"{\",CHAR(160),IH$1))+1),\"\")","v":""},{"$f":"IFERROR(MID($AA189,FIND(CHAR(160),SUBSTITUTE($AA189,\"{\",CHAR(160),II$1)),FIND(CHAR(160),SUBSTITUTE($AA189,\"}\",CHAR(160),II$1))-FIND(CHAR(160),SUBSTITUTE($AA189,\"{\",CHAR(160),II$1))+1),\"\")","v":""},{"$f":"IFERROR(MID($AA189,FIND(CHAR(160),SUBSTITUTE($AA189,\"{\",CHAR(160),IJ$1)),FIND(CHAR(160),SUBSTITUTE($AA189,\"}\",CHAR(160),IJ$1))-FIND(CHAR(160),SUBSTITUTE($AA189,\"{\",CHAR(160),IJ$1))+1),\"\")","v":""},{"$f":"IFERROR(MID($AA189,FIND(CHAR(160),SUBSTITUTE($AA189,\"{\",CHAR(160),IK$1)),FIND(CHAR(160),SUBSTITUTE($AA189,\"}\",CHAR(160),IK$1))-FIND(CHAR(160),SUBSTITUTE($AA189,\"{\",CHAR(160),IK$1))+1),\"\")","v":""},{"$f":"IFERROR(MID($AA189,FIND(CHAR(160),SUBSTITUTE($AA189,\"{\",CHAR(160),IL$1)),FIND(CHAR(160),SUBSTITUTE($AA189,\"}\",CHAR(160),IL$1))-FIND(CHAR(160),SUBSTITUTE($AA189,\"{\",CHAR(160),IL$1))+1),\"\")","v":""},{"$f":"IFERROR(MID($AA189,FIND(CHAR(160),SUBSTITUTE($AA189,\"{\",CHAR(160),IM$1)),FIND(CHAR(160),SUBSTITUTE($AA189,\"}\",CHAR(160),IM$1))-FIND(CHAR(160),SUBSTITUTE($AA189,\"{\",CHAR(160),IM$1))+1),\"\")","v":"{Measure:Quantity}"},{"$f":"IFERROR(MID($AA189,FIND(CHAR(160),SUBSTITUTE($AA189,\"{\",CHAR(160),IN$1)),FIND(CHAR(160),SUBSTITUTE($AA189,\"}\",CHAR(160),IN$1))-FIND(CHAR(160),SUBSTITUTE($AA189,\"{\",CHAR(160),IN$1))+1),\"\")","v":"{Package Size}"},{"$f":"IFERROR(MID($AB189,FIND(CHAR(160),SUBSTITUTE($AB189,\"{\",CHAR(160),IO$1)),FIND(CHAR(160),SUBSTITUTE($AB189,\"}\",CHAR(160),IO$1))-FIND(CHAR(160),SUBSTITUTE($AB189,\"{\",CHAR(160),IO$1))+1),\"\")","v":""},{"$f":"IFERROR(MID($AB189,FIND(CHAR(160),SUBSTITUTE($AB189,\"{\",CHAR(160),IP$1)),FIND(CHAR(160),SUBSTITUTE($AB189,\"}\",CHAR(160),IP$1))-FIND(CHAR(160),SUBSTITUTE($AB189,\"{\",CHAR(160),IP$1))+1),\"\")","v":""},{"$f":"IFERROR(MID($AB189,FIND(CHAR(160),SUBSTITUTE($AB189,\"{\",CHAR(160),IQ$1)),FIND(CHAR(160),SUBSTITUTE($AB189,\"}\",CHAR(160),IQ$1))-FIND(CHAR(160),SUBSTITUTE($AB189,\"{\",CHAR(160),IQ$1))+1),\"\")","v":""},{"$f":"IFERROR(MID($AB189,FIND(CHAR(160),SUBSTITUTE($AB189,\"{\",CHAR(160),IR$1)),FIND(CHAR(160),SUBSTITUTE($AB189,\"}\",CHAR(160),IR$1))-FIND(CHAR(160),SUBSTITUTE($AB189,\"{\",CHAR(160),IR$1))+1),\"\")","v":""},{"$f":"IFERROR(MID($AB189,FIND(CHAR(160),SUBSTITUTE($AB189,\"{\",CHAR(160),IS$1)),FIND(CHAR(160),SUBSTITUTE($AB189,\"}\",CHAR(160),IS$1))-FIND(CHAR(160),SUBSTITUTE($AB189,\"{\",CHAR(160),IS$1))+1),\"\")","v":""},{"$f":"IFERROR(MID($AB189,FIND(CHAR(160),SUBSTITUTE($AB189,\"{\",CHAR(160),IT$1)),FIND(CHAR(160),SUBSTITUTE($AB189,\"}\",CHAR(160),IT$1))-FIND(CHAR(160),SUBSTITUTE($AB189,\"{\",CHAR(160),IT$1))+1),\"\")","v":""},{"$f":"IFERROR(MID($AB189,FIND(CHAR(160),SUBSTITUTE($AB189,\"{\",CHAR(160),IU$1)),FIND(CHAR(160),SUBSTITUTE($AB189,\"}\",CHAR(160),IU$1))-FIND(CHAR(160),SUBSTITUTE($AB189,\"{\",CHAR(160),IU$1))+1),\"\")","v":""},{"$f":"IFERROR(MID($AB189,FIND(CHAR(160),SUBSTITUTE($AB189,\"{\",CHAR(160),IV$1)),FIND(CHAR(160),SUBSTITUTE($AB189,\"}\",CHAR(160),IV$1))-FIND(CHAR(160),SUBSTITUTE($AB189,\"{\",CHAR(160),IV$1))+1),\"\")","v":""},{"$f":"IFERROR(MID($AB189,FIND(CHAR(160),SUBSTITUTE($AB189,\"{\",CHAR(160),IW$1)),FIND(CHAR(160),SUBSTITUTE($AB189,\"}\",CHAR(160),IW$1))-FIND(CHAR(160),SUBSTITUTE($AB189,\"{\",CHAR(160),IW$1))+1),\"\")","v":""},{"$f":"IFERROR(MID($AB189,FIND(CHAR(160),SUBSTITUTE($AB189,\"{\",CHAR(160),IX$1)),FIND(CHAR(160),SUBSTITUTE($AB189,\"}\",CHAR(160),IX$1))-FIND(CHAR(160),SUBSTITUTE($AB189,\"{\",CHAR(160),IX$1))+1),\"\")","v":""},null,{"$f":"10-COUNTIF(DU189:ED189,\"\")","v":3}]
["Distributor Lighting","Outdoor_Type_C 5k_10k lm - long life","S6CML","2021-07-01","2022-06-30","Calculated","{Measure:Quantity}*{Package Size}*35.99",0,"Calculated","{Measure:Quantity}*{Rebate per Package}",0,"2021-07-01","2022-06-30","Calculated","{Measure:Quantity}*{Package Size}*1037",null,null,"{Measure:Quantity}*{Package Size}*1*0.244",null,null,"{Measure:Quantity}*{Package Size}*{Factor:WinterCF}*0.244","{Measure:Quantity}*{Package Size}*{Factor:SummerCF}*1*0.244","{Measure:Quantity}*{Package Size}*10*0","{Measure:Quantity}*{Package Size}*0","{Measure:Quantity}*{Package Size}*0","{Measure:Quantity}*{Package Size}*0","{Measure:Quantity}*{Package Size}*0",null,"2021-07-01","2022-06-30",12,0.82399999999999995,6.6000000000000003E-2,0.27300000000000002,0.45,9.5000000000000001E-2,0.182,0.99,1,1,0.51,0,null,{"$f":"DU190","v":"{Measure:Quantity}"},1,{"$f":"DV190","v":"{Package Size}"},1,{"$f":"DW190","v":"{Rebate per Package}"},{"$f":"CW190*CO190","v":26.9925},{"$f":"DX190","v":""},null,{"$f":"DY190","v":""},null,{"$f":"DZ190","v":""},null,{"$f":"EA190","v":""},null,{"$f":"EB190","v":""},null,{"$f":"EC190","v":""},null,{"$f":"ED190","v":""},null,{"$f":"AS190*AU190*1037","v":1037},0,0,{"$f":"AS190*AU190*1*0.244","v":0.24399999999999999},0,0,{"$f":"AS190*AU190*AF190*0.244","v":0.20105599999999998},{"$f":"AS190*AU190*AG190*1*0.244","v":1.6104E-2},{"$f":"AS190*AU190*10*0","v":0},{"$f":"AS190*AU190*0","v":0},{"$f":"AS190*AU190*0","v":0},{"$f":"AS190*AU190*0","v":0},{"$f":"AS190*AU190*0","v":0},0,null,"Res","Default DR",{"$f":"Benefits(BL190,BR190,BS190,BT190,BU190,BV190,BW190,BX190,BY190,BZ190,AE190,AH190,AI190,AJ190,AK190,AL190,AM190,AN190,AO190,AP190,CA190,CB190)","v":1179.1200002833064},646.54640550109798,0,0,0,0,0,0,0,{"$f":"SUMPRODUCT(CC190:CK190,--(CC190:CK190>0))","v":1825.6664057844043},{"$f":"-SUMPRODUCT(CC190:CK190,--(CC190:CK190<0))","v":0},null,{"$f":"AS190*AU190*35.99","v":35.99},null,null,{"$f":"CM190+CO190","v":35.99},{"$f":"IF(NetOrGross=\"Net\",(1-AO190+AP190),1)","v":1},{"$f":"(SUMPRODUCT(CC190:CJ190,--(CC190:CJ190>0))+CN190)*CS190/((-SUMPRODUCT(CC190:CJ190,--(CC190:CJ190<0))+MAX(CO190,CV190)+CP190+CQ190)*CS190+IF(FRIncentives=\"Yes\",CV190*(1-CS190),0))","v":50.72704656250081},1,{"$f":"AS190*AW190","v":26.9925},{"$f":"CW189","v":0.75},"Electric","y",null,{"$f":"IF(F190=\"Manual Entry\",\"Manual\",IF(G190=\"\",0,\"X=\"&SUBSTITUTE(SUBSTITUTE(SUBSTITUTE(SUBSTITUTE(SUBSTITUTE(SUBSTITUTE(SUBSTITUTE(SUBSTITUTE(SUBSTITUTE(SUBSTITUTE(SUBSTITUTE(SUBSTITUTE(G190,$ED190,$ED$2&ROW($ED190)),$EC190,$EC$2&ROW($EC190)),$EB190,$EB$2&ROW($EB190)),$EA190,$EA$2&ROW($EA190)),$DZ190,$DZ$2&ROW($DZ190)),$DY190,$DY$2&ROW($DY190)),$DX190,$DX$2&ROW($DX190)),$DW190,$DW$2&ROW($DW190)),$DV190,$DV$2&ROW($DV190)),$DU190,$DU$2&ROW($DU190)),$DT190,$DT$2&ROW($DT190)),$DS190,$DS$2&ROW($DS190))))","v":"X=AS190*AU190*35.99"},{"$f":"IF(I190=\"Manual Entry\",\"Manual\",IF(J190=\"\",0,\"X=\"&SUBSTITUTE(SUBSTITUTE(SUBSTITUTE(SUBSTITUTE(SUBSTITUTE(SUBSTITUTE(SUBSTITUTE(SUBSTITUTE(SUBSTITUTE(SUBSTITUTE(SUBSTITUTE(SUBSTITUTE(J190,$ED190,$ED$2&ROW($ED190)),$EC190,$EC$2&ROW($EC190)),$EB190,$EB$2&ROW($EB190)),$EA190,$EA$2&ROW($EA190)),$DZ190,$DZ$2&ROW($DZ190)),$DY190,$DY$2&ROW($DY190)),$DX190,$DX$2&ROW($DX190)),$DW190,$DW$2&ROW($DW190)),$DV190,$DV$2&ROW($DV190)),$DU190,$DU$2&ROW($DU190)),$DT190,$DT$2&ROW($DT190)),$DS190,$DS$2&ROW($DS190))))","v":"X=AS190*AW190"},{"$f":"IF(O190=\"\",0,\"X=\"&SUBSTITUTE(SUBSTITUTE(SUBSTITUTE(SUBSTITUTE(SUBSTITUTE(SUBSTITUTE(SUBSTITUTE(SUBSTITUTE(SUBSTITUTE(SUBSTITUTE(SUBSTITUTE(SUBSTITUTE(O190,$ED190,$ED$2&ROW($ED190)),$EC190,$EC$2&ROW($EC190)),$EB190,$EB$2&ROW($EB190)),$EA190,$EA$2&ROW($EA190)),$DZ190,$DZ$2&ROW($DZ190)),$DY190,$DY$2&ROW($DY190)),$DX190,$DX$2&ROW($DX190)),$DW190,$DW$2&ROW($DW190)),$DV190,$DV$2&ROW($DV190)),$DU190,$DU$2&ROW($DU190)),$DT190,$DT$2&ROW($DT190)),$DS190,$DS$2&ROW($DS190)))","v":"X=AS190*AU190*1037"},{"$f":"IF(P190=\"\",0,\"X=\"&SUBSTITUTE(SUBSTITUTE(SUBSTITUTE(SUBSTITUTE(SUBSTITUTE(SUBSTITUTE(SUBSTITUTE(SUBSTITUTE(SUBSTITUTE(SUBSTITUTE(SUBSTITUTE(SUBSTITUTE(P190,$ED190,$ED$2&ROW($ED190)),$EC190,$EC$2&ROW($EC190)),$EB190,$EB$2&ROW($EB190)),$EA190,$EA$2&ROW($EA190)),$DZ190,$DZ$2&ROW($DZ190)),$DY190,$DY$2&ROW($DY190)),$DX190,$DX$2&ROW($DX190)),$DW190,$DW$2&ROW($DW190)),$DV190,$DV$2&ROW($DV190)),$DU190,$DU$2&ROW($DU190)),$DT190,$DT$2&ROW($DT190)),$DS190,$DS$2&ROW($DS190)))","v":0},{"$f":"IF(Q190=\"\",0,\"X=\"&SUBSTITUTE(SUBSTITUTE(SUBSTITUTE(SUBSTITUTE(SUBSTITUTE(SUBSTITUTE(SUBSTITUTE(SUBSTITUTE(SUBSTITUTE(SUBSTITUTE(SUBSTITUTE(SUBSTITUTE(Q190,$ED190,$ED$2&ROW($ED190)),$EC190,$EC$2&ROW($EC190)),$EB190,$EB$2&ROW($EB190)),$EA190,$EA$2&ROW($EA190)),$DZ190,$DZ$2&ROW($DZ190)),$DY190,$DY$2&ROW($DY190)),$DX190,$DX$2&ROW($DX190)),$DW190,$DW$2&ROW($DW190)),$DV190,$DV$2&ROW($DV190)),$DU190,$DU$2&ROW($DU190)),$DT190,$DT$2&ROW($DT190)),$DS190,$DS$2&ROW($DS190)))","v":0},{"$f":"IF(R190=\"\",0,\"X=\"&SUBSTITUTE(SUBSTITUTE(SUBSTITUTE(SUBSTITUTE(SUBSTITUTE(SUBSTITUTE(SUBSTITUTE(SUBSTITUTE(SUBSTITUTE(SUBSTITUTE(SUBSTITUTE(SUBSTITUTE(R190,$ED190,$ED$2&ROW($ED190)),$EC190,$EC$2&ROW($EC190)),$EB190,$EB$2&ROW($EB190)),$EA190,$EA$2&ROW($EA190)),$DZ190,$DZ$2&ROW($DZ190)),$DY190,$DY$2&ROW($DY190)),$DX190,$DX$2&ROW($DX190)),$DW190,$DW$2&ROW($DW190)),$DV190,$DV$2&ROW($DV190)),$DU190,$DU$2&ROW($DU190)),$DT190,$DT$2&ROW($DT190)),$DS190,$DS$2&ROW($DS190)))","v":"X=AS190*AU190*1*0.244"},{"$f":"IF(S190=\"\",0,\"X=\"&SUBSTITUTE(SUBSTITUTE(SUBSTITUTE(SUBSTITUTE(SUBSTITUTE(SUBSTITUTE(SUBSTITUTE(SUBSTITUTE(SUBSTITUTE(SUBSTITUTE(SUBSTITUTE(SUBSTITUTE(S190,$ED190,$ED$2&ROW($ED190)),$EC190,$EC$2&ROW($EC190)),$EB190,$EB$2&ROW($EB190)),$EA190,$EA$2&ROW($EA190)),$DZ190,$DZ$2&ROW($DZ190)),$DY190,$DY$2&ROW($DY190)),$DX190,$DX$2&ROW($DX190)),$DW190,$DW$2&ROW($DW190)),$DV190,$DV$2&ROW($DV190)),$DU190,$DU$2&ROW($DU190)),$DT190,$DT$2&ROW($DT190)),$DS190,$DS$2&ROW($DS190)))","v":0},{"$f":"IF(T190=\"\",0,\"X=\"&SUBSTITUTE(SUBSTITUTE(SUBSTITUTE(SUBSTITUTE(SUBSTITUTE(SUBSTITUTE(SUBSTITUTE(SUBSTITUTE(SUBSTITUTE(SUBSTITUTE(SUBSTITUTE(SUBSTITUTE(T190,$ED190,$ED$2&ROW($ED190)),$EC190,$EC$2&ROW($EC190)),$EB190,$EB$2&ROW($EB190)),$EA190,$EA$2&ROW($EA190)),$DZ190,$DZ$2&ROW($DZ190)),$DY190,$DY$2&ROW($DY190)),$DX190,$DX$2&ROW($DX190)),$DW190,$DW$2&ROW($DW190)),$DV190,$DV$2&ROW($DV190)),$DU190,$DU$2&ROW($DU190)),$DT190,$DT$2&ROW($DT190)),$DS190,$DS$2&ROW($DS190)))","v":0},{"$f":"IF(U190=\"\",0,\"X=\"&SUBSTITUTE(SUBSTITUTE(SUBSTITUTE(SUBSTITUTE(SUBSTITUTE(SUBSTITUTE(SUBSTITUTE(SUBSTITUTE(SUBSTITUTE(SUBSTITUTE(SUBSTITUTE(SUBSTITUTE(U190,$ED190,$ED$2&ROW($ED190)),$EC190,$EC$2&ROW($EC190)),$EB190,$EB$2&ROW($EB190)),$EA190,$EA$2&ROW($EA190)),$DZ190,$DZ$2&ROW($DZ190)),$DY190,$DY$2&ROW($DY190)),$DX190,$DX$2&ROW($DX190)),$DW190,$DW$2&ROW($DW190)),$DV190,$DV$2&ROW($DV190)),$DU190,$DU$2&ROW($DU190)),$DT190,$DT$2&ROW($DT190)),$DS190,$DS$2&ROW($DS190)))","v":"X=AS190*AU190*AF190*0.244"},{"$f":"IF(V190=\"\",0,\"X=\"&SUBSTITUTE(SUBSTITUTE(SUBSTITUTE(SUBSTITUTE(SUBSTITUTE(SUBSTITUTE(SUBSTITUTE(SUBSTITUTE(SUBSTITUTE(SUBSTITUTE(SUBSTITUTE(SUBSTITUTE(V190,$ED190,$ED$2&ROW($ED190)),$EC190,$EC$2&ROW($EC190)),$EB190,$EB$2&ROW($EB190)),$EA190,$EA$2&ROW($EA190)),$DZ190,$DZ$2&ROW($DZ190)),$DY190,$DY$2&ROW($DY190)),$DX190,$DX$2&ROW($DX190)),$DW190,$DW$2&ROW($DW190)),$DV190,$DV$2&ROW($DV190)),$DU190,$DU$2&ROW($DU190)),$DT190,$DT$2&ROW($DT190)),$DS190,$DS$2&ROW($DS190)))","v":"X=AS190*AU190*AG190*1*0.244"},{"$f":"IF(W190=\"\",0,\"X=\"&SUBSTITUTE(SUBSTITUTE(SUBSTITUTE(SUBSTITUTE(SUBSTITUTE(SUBSTITUTE(SUBSTITUTE(SUBSTITUTE(SUBSTITUTE(SUBSTITUTE(SUBSTITUTE(SUBSTITUTE(W190,$ED190,$ED$2&ROW($ED190)),$EC190,$EC$2&ROW($EC190)),$EB190,$EB$2&ROW($EB190)),$EA190,$EA$2&ROW($EA190)),$DZ190,$DZ$2&ROW($DZ190)),$DY190,$DY$2&ROW($DY190)),$DX190,$DX$2&ROW($DX190)),$DW190,$DW$2&ROW($DW190)),$DV190,$DV$2&ROW($DV190)),$DU190,$DU$2&ROW($DU190)),$DT190,$DT$2&ROW($DT190)),$DS190,$DS$2&ROW($DS190)))","v":"X=AS190*AU190*10*0"},{"$f":"IF(X190=\"\",0,\"X=\"&SUBSTITUTE(SUBSTITUTE(SUBSTITUTE(SUBSTITUTE(SUBSTITUTE(SUBSTITUTE(SUBSTITUTE(SUBSTITUTE(SUBSTITUTE(SUBSTITUTE(SUBSTITUTE(SUBSTITUTE(X190,$ED190,$ED$2&ROW($ED190)),$EC190,$EC$2&ROW($EC190)),$EB190,$EB$2&ROW($EB190)),$EA190,$EA$2&ROW($EA190)),$DZ190,$DZ$2&ROW($DZ190)),$DY190,$DY$2&ROW($DY190)),$DX190,$DX$2&ROW($DX190)),$DW190,$DW$2&ROW($DW190)),$DV190,$DV$2&ROW($DV190)),$DU190,$DU$2&ROW($DU190)),$DT190,$DT$2&ROW($DT190)),$DS190,$DS$2&ROW($DS190)))","v":"X=AS190*AU190*0"},{"$f":"IF(Y190=\"\",0,\"X=\"&SUBSTITUTE(SUBSTITUTE(SUBSTITUTE(SUBSTITUTE(SUBSTITUTE(SUBSTITUTE(SUBSTITUTE(SUBSTITUTE(SUBSTITUTE(SUBSTITUTE(SUBSTITUTE(SUBSTITUTE(Y190,$ED190,$ED$2&ROW($ED190)),$EC190,$EC$2&ROW($EC190)),$EB190,$EB$2&ROW($EB190)),$EA190,$EA$2&ROW($EA190)),$DZ190,$DZ$2&ROW($DZ190)),$DY190,$DY$2&ROW($DY190)),$DX190,$DX$2&ROW($DX190)),$DW190,$DW$2&ROW($DW190)),$DV190,$DV$2&ROW($DV190)),$DU190,$DU$2&ROW($DU190)),$DT190,$DT$2&ROW($DT190)),$DS190,$DS$2&ROW($DS190)))","v":"X=AS190*AU190*0"},{"$f":"IF(Z190=\"\",0,\"X=\"&SUBSTITUTE(SUBSTITUTE(SUBSTITUTE(SUBSTITUTE(SUBSTITUTE(SUBSTITUTE(SUBSTITUTE(SUBSTITUTE(SUBSTITUTE(SUBSTITUTE(SUBSTITUTE(SUBSTITUTE(Z190,$ED190,$ED$2&ROW($ED190)),$EC190,$EC$2&ROW($EC190)),$EB190,$EB$2&ROW($EB190)),$EA190,$EA$2&ROW($EA190)),$DZ190,$DZ$2&ROW($DZ190)),$DY190,$DY$2&ROW($DY190)),$DX190,$DX$2&ROW($DX190)),$DW190,$DW$2&ROW($DW190)),$DV190,$DV$2&ROW($DV190)),$DU190,$DU$2&ROW($DU190)),$DT190,$DT$2&ROW($DT190)),$DS190,$DS$2&ROW($DS190)))","v":"X=AS190*AU190*0"},{"$f":"IF(AA190=\"\",0,\"X=\"&SUBSTITUTE(SUBSTITUTE(SUBSTITUTE(SUBSTITUTE(SUBSTITUTE(SUBSTITUTE(SUBSTITUTE(SUBSTITUTE(SUBSTITUTE(SUBSTITUTE(SUBSTITUTE(SUBSTITUTE(AA190,$ED190,$ED$2&ROW($ED190)),$EC190,$EC$2&ROW($EC190)),$EB190,$EB$2&ROW($EB190)),$EA190,$EA$2&ROW($EA190)),$DZ190,$DZ$2&ROW($DZ190)),$DY190,$DY$2&ROW($DY190)),$DX190,$DX$2&ROW($DX190)),$DW190,$DW$2&ROW($DW190)),$DV190,$DV$2&ROW($DV190)),$DU190,$DU$2&ROW($DU190)),$DT190,$DT$2&ROW($DT190)),$DS190,$DS$2&ROW($DS190)))","v":"X=AS190*AU190*0"},{"$f":"IF(AB190=\"\",0,\"X=\"&SUBSTITUTE(SUBSTITUTE(SUBSTITUTE(SUBSTITUTE(SUBSTITUTE(SUBSTITUTE(SUBSTITUTE(SUBSTITUTE(SUBSTITUTE(SUBSTITUTE(SUBSTITUTE(SUBSTITUTE(AB190,$ED190,$ED$2&ROW($ED190)),$EC190,$EC$2&ROW($EC190)),$EB190,$EB$2&ROW($EB190)),$EA190,$EA$2&ROW($EA190)),$DZ190,$DZ$2&ROW($DZ190)),$DY190,$DY$2&ROW($DY190)),$DX190,$DX$2&ROW($DX190)),$DW190,$DW$2&ROW($DW190)),$DV190,$DV$2&ROW($DV190)),$DU190,$DU$2&ROW($DU190)),$DT190,$DT$2&ROW($DT190)),$DS190,$DS$2&ROW($DS190)))","v":0},null,null,"{Factor:WinterCF}","{Factor:SummerCF}",{"$f":"IFERROR(INDEX($EG190:$IV190,MATCH(0,COUNTIF($DR190:DT190,$EG190:$IV190),0)),\"\")","v":"{Measure:Quantity}"},{"$f":"IFERROR(INDEX($EG190:$IV190,MATCH(0,COUNTIF($DR190:DU190,$EG190:$IV190),0)),\"\")","v":"{Package Size}"},{"$f":"IFERROR(INDEX($EG190:$IV190,MATCH(0,COUNTIF($DR190:DV190,$EG190:$IV190),0)),\"\")","v":"{Rebate per Package}"},{"$f":"IFERROR(INDEX($EG190:$IV190,MATCH(0,COUNTIF($DR190:DW190,$EG190:$IV190),0)),\"\")","v":""},{"$f":"IFERROR(INDEX($EG190:$IV190,MATCH(0,COUNTIF($DR190:DX190,$EG190:$IV190),0)),\"\")","v":""},{"$f":"IFERROR(INDEX($EG190:$IV190,MATCH(0,COUNTIF($DR190:DY190,$EG190:$IV190),0)),\"\")","v":""},{"$f":"IFERROR(INDEX($EG190:$IV190,MATCH(0,COUNTIF($DR190:DZ190,$EG190:$IV190),0)),\"\")","v":""},{"$f":"IFERROR(INDEX($EG190:$IV190,MATCH(0,COUNTIF($DR190:EA190,$EG190:$IV190),0)),\"\")","v":""},{"$f":"IFERROR(INDEX($EG190:$IV190,MATCH(0,COUNTIF($DR190:EB190,$EG190:$IV190),0)),\"\")","v":""},{"$f":"IFERROR(INDEX($EG190:$IV190,MATCH(0,COUNTIF($DR190:EC190,$EG190:$IV190),0)),\"\")","v":""},null,null,{"$f":"IFERROR(MID($G190,FIND(CHAR(160),SUBSTITUTE($G190,\"{\",CHAR(160),EG$1)),FIND(CHAR(160),SUBSTITUTE($G190,\"}\",CHAR(160),EG$1))-FIND(CHAR(160),SUBSTITUTE($G190,\"{\",CHAR(160),EG$1))+1),\"\")","v":"{Measure:Quantity}"},{"$f":"IFERROR(MID($G190,FIND(CHAR(160),SUBSTITUTE($G190,\"{\",CHAR(160),EH$1)),FIND(CHAR(160),SUBSTITUTE($G190,\"}\",CHAR(160),EH$1))-FIND(CHAR(160),SUBSTITUTE($G190,\"{\",CHAR(160),EH$1))+1),\"\")","v":"{Package Size}"},{"$f":"IFERROR(MID($G190,FIND(CHAR(160),SUBSTITUTE($G190,\"{\",CHAR(160),EI$1)),FIND(CHAR(160),SUBSTITUTE($G190,\"}\",CHAR(160),EI$1))-FIND(CHAR(160),SUBSTITUTE($G190,\"{\",CHAR(160),EI$1))+1),\"\")","v":""},{"$f":"IFERROR(MID($G190,FIND(CHAR(160),SUBSTITUTE($G190,\"{\",CHAR(160),EJ$1)),FIND(CHAR(160),SUBSTITUTE($G190,\"}\",CHAR(160),EJ$1))-FIND(CHAR(160),SUBSTITUTE($G190,\"{\",CHAR(160),EJ$1))+1),\"\")","v":""},{"$f":"IFERROR(MID($G190,FIND(CHAR(160),SUBSTITUTE($G190,\"{\",CHAR(160),EK$1)),FIND(CHAR(160),SUBSTITUTE($G190,\"}\",CHAR(160),EK$1))-FIND(CHAR(160),SUBSTITUTE($G190,\"{\",CHAR(160),EK$1))+1),\"\")","v":""},{"$f":"IFERROR(MID($G190,FIND(CHAR(160),SUBSTITUTE($G190,\"{\",CHAR(160),EL$1)),FIND(CHAR(160),SUBSTITUTE($G190,\"}\",CHAR(160),EL$1))-FIND(CHAR(160),SUBSTITUTE($G190,\"{\",CHAR(160),EL$1))+1),\"\")","v":""},{"$f":"IFERROR(MID($G190,FIND(CHAR(160),SUBSTITUTE($G190,\"{\",CHAR(160),EM$1)),FIND(CHAR(160),SUBSTITUTE($G190,\"}\",CHAR(160),EM$1))-FIND(CHAR(160),SUBSTITUTE($G190,\"{\",CHAR(160),EM$1))+1),\"\")","v":""},{"$f":"IFERROR(MID($G190,FIND(CHAR(160),SUBSTITUTE($G190,\"{\",CHAR(160),EN$1)),FIND(CHAR(160),SUBSTITUTE($G190,\"}\",CHAR(160),EN$1))-FIND(CHAR(160),SUBSTITUTE($G190,\"{\",CHAR(160),EN$1))+1),\"\")","v":""},{"$f":"IFERROR(MID($G190,FIND(CHAR(160),SUBSTITUTE($G190,\"{\",CHAR(160),EO$1)),FIND(CHAR(160),SUBSTITUTE($G190,\"}\",CHAR(160),EO$1))-FIND(CHAR(160),SUBSTITUTE($G190,\"{\",CHAR(160),EO$1))+1),\"\")","v":""},{"$f":"IFERROR(MID($G190,FIND(CHAR(160),SUBSTITUTE($G190,\"{\",CHAR(160),EP$1)),FIND(CHAR(160),SUBSTITUTE($G190,\"}\",CHAR(160),EP$1))-FIND(CHAR(160),SUBSTITUTE($G190,\"{\",CHAR(160),EP$1))+1),\"\")","v":""},{"$f":"IFERROR(MID($J190,FIND(CHAR(160),SUBSTITUTE($J190,\"{\",CHAR(160),EQ$1)),FIND(CHAR(160),SUBSTITUTE($J190,\"}\",CHAR(160),EQ$1))-FIND(CHAR(160),SUBSTITUTE($J190,\"{\",CHAR(160),EQ$1))+1),\"\")","v":"{Measure:Quantity}"},{"$f":"IFERROR(MID($J190,FIND(CHAR(160),SUBSTITUTE($J190,\"{\",CHAR(160),ER$1)),FIND(CHAR(160),SUBSTITUTE($J190,\"}\",CHAR(160),ER$1))-FIND(CHAR(160),SUBSTITUTE($J190,\"{\",CHAR(160),ER$1))+1),\"\")","v":"{Rebate per Package}"},{"$f":"IFERROR(MID($J190,FIND(CHAR(160),SUBSTITUTE($J190,\"{\",CHAR(160),ES$1)),FIND(CHAR(160),SUBSTITUTE($J190,\"}\",CHAR(160),ES$1))-FIND(CHAR(160),SUBSTITUTE($J190,\"{\",CHAR(160),ES$1))+1),\"\")","v":""},{"$f":"IFERROR(MID($J190,FIND(CHAR(160),SUBSTITUTE($J190,\"{\",CHAR(160),ET$1)),FIND(CHAR(160),SUBSTITUTE($J190,\"}\",CHAR(160),ET$1))-FIND(CHAR(160),SUBSTITUTE($J190,\"{\",CHAR(160),ET$1))+1),\"\")","v":""},{"$f":"IFERROR(MID($J190,FIND(CHAR(160),SUBSTITUTE($J190,\"{\",CHAR(160),EU$1)),FIND(CHAR(160),SUBSTITUTE($J190,\"}\",CHAR(160),EU$1))-FIND(CHAR(160),SUBSTITUTE($J190,\"{\",CHAR(160),EU$1))+1),\"\")","v":""},{"$f":"IFERROR(MID($J190,FIND(CHAR(160),SUBSTITUTE($J190,\"{\",CHAR(160),EV$1)),FIND(CHAR(160),SUBSTITUTE($J190,\"}\",CHAR(160),EV$1))-FIND(CHAR(160),SUBSTITUTE($J190,\"{\",CHAR(160),EV$1))+1),\"\")","v":""},{"$f":"IFERROR(MID($J190,FIND(CHAR(160),SUBSTITUTE($J190,\"{\",CHAR(160),EW$1)),FIND(CHAR(160),SUBSTITUTE($J190,\"}\",CHAR(160),EW$1))-FIND(CHAR(160),SUBSTITUTE($J190,\"{\",CHAR(160),EW$1))+1),\"\")","v":""},{"$f":"IFERROR(MID($J190,FIND(CHAR(160),SUBSTITUTE($J190,\"{\",CHAR(160),EX$1)),FIND(CHAR(160),SUBSTITUTE($J190,\"}\",CHAR(160),EX$1))-FIND(CHAR(160),SUBSTITUTE($J190,\"{\",CHAR(160),EX$1))+1),\"\")","v":""},{"$f":"IFERROR(MID($J190,FIND(CHAR(160),SUBSTITUTE($J190,\"{\",CHAR(160),EY$1)),FIND(CHAR(160),SUBSTITUTE($J190,\"}\",CHAR(160),EY$1))-FIND(CHAR(160),SUBSTITUTE($J190,\"{\",CHAR(160),EY$1))+1),\"\")","v":""},{"$f":"IFERROR(MID($J190,FIND(CHAR(160),SUBSTITUTE($J190,\"{\",CHAR(160),EZ$1)),FIND(CHAR(160),SUBSTITUTE($J190,\"}\",CHAR(160),EZ$1))-FIND(CHAR(160),SUBSTITUTE($J190,\"{\",CHAR(160),EZ$1))+1),\"\")","v":""},{"$f":"IFERROR(MID($J190,FIND(CHAR(160),SUBSTITUTE($J190,\"{\",CHAR(160),FA$1)),FIND(CHAR(160),SUBSTITUTE($J190,\"}\",CHAR(160),FA$1))-FIND(CHAR(160),SUBSTITUTE($J190,\"{\",CHAR(160),FA$1))+1),\"\")","v":"{Measure:Quantity}"},{"$f":"IFERROR(MID($J190,FIND(CHAR(160),SUBSTITUTE($J190,\"{\",CHAR(160),FB$1)),FIND(CHAR(160),SUBSTITUTE($J190,\"}\",CHAR(160),FB$1))-FIND(CHAR(160),SUBSTITUTE($J190,\"{\",CHAR(160),FB$1))+1),\"\")","v":"{Rebate per Package}"},{"$f":"IFERROR(MID($O190,FIND(CHAR(160),SUBSTITUTE($O190,\"{\",CHAR(160),FC$1)),FIND(CHAR(160),SUBSTITUTE($O190,\"}\",CHAR(160),FC$1))-FIND(CHAR(160),SUBSTITUTE($O190,\"{\",CHAR(160),FC$1))+1),\"\")","v":""},{"$f":"IFERROR(MID($O190,FIND(CHAR(160),SUBSTITUTE($O190,\"{\",CHAR(160),FD$1)),FIND(CHAR(160),SUBSTITUTE($O190,\"}\",CHAR(160),FD$1))-FIND(CHAR(160),SUBSTITUTE($O190,\"{\",CHAR(160),FD$1))+1),\"\")","v":""},{"$f":"IFERROR(MID($O190,FIND(CHAR(160),SUBSTITUTE($O190,\"{\",CHAR(160),FE$1)),FIND(CHAR(160),SUBSTITUTE($O190,\"}\",CHAR(160),FE$1))-FIND(CHAR(160),SUBSTITUTE($O190,\"{\",CHAR(160),FE$1))+1),\"\")","v":""},{"$f":"IFERROR(MID($O190,FIND(CHAR(160),SUBSTITUTE($O190,\"{\",CHAR(160),FF$1)),FIND(CHAR(160),SUBSTITUTE($O190,\"}\",CHAR(160),FF$1))-FIND(CHAR(160),SUBSTITUTE($O190,\"{\",CHAR(160),FF$1))+1),\"\")","v":""},{"$f":"IFERROR(MID($O190,FIND(CHAR(160),SUBSTITUTE($O190,\"{\",CHAR(160),FG$1)),FIND(CHAR(160),SUBSTITUTE($O190,\"}\",CHAR(160),FG$1))-FIND(CHAR(160),SUBSTITUTE($O190,\"{\",CHAR(160),FG$1))+1),\"\")","v":""},{"$f":"IFERROR(MID($O190,FIND(CHAR(160),SUBSTITUTE($O190,\"{\",CHAR(160),FH$1)),FIND(CHAR(160),SUBSTITUTE($O190,\"}\",CHAR(160),FH$1))-FIND(CHAR(160),SUBSTITUTE($O190,\"{\",CHAR(160),FH$1))+1),\"\")","v":""},{"$f":"IFERROR(MID($O190,FIND(CHAR(160),SUBSTITUTE($O190,\"{\",CHAR(160),FI$1)),FIND(CHAR(160),SUBSTITUTE($O190,\"}\",CHAR(160),FI$1))-FIND(CHAR(160),SUBSTITUTE($O190,\"{\",CHAR(160),FI$1))+1),\"\")","v":""},{"$f":"IFERROR(MID($O190,FIND(CHAR(160),SUBSTITUTE($O190,\"{\",CHAR(160),FJ$1)),FIND(CHAR(160),SUBSTITUTE($O190,\"}\",CHAR(160),FJ$1))-FIND(CHAR(160),SUBSTITUTE($O190,\"{\",CHAR(160),FJ$1))+1),\"\")","v":""},{"$f":"IFERROR(MID($O190,FIND(CHAR(160),SUBSTITUTE($O190,\"{\",CHAR(160),FK$1)),FIND(CHAR(160),SUBSTITUTE($O190,\"}\",CHAR(160),FK$1))-FIND(CHAR(160),SUBSTITUTE($O190,\"{\",CHAR(160),FK$1))+1),\"\")","v":"{Measure:Quantity}"},{"$f":"IFERROR(MID($O190,FIND(CHAR(160),SUBSTITUTE($O190,\"{\",CHAR(160),FL$1)),FIND(CHAR(160),SUBSTITUTE($O190,\"}\",CHAR(160),FL$1))-FIND(CHAR(160),SUBSTITUTE($O190,\"{\",CHAR(160),FL$1))+1),\"\")","v":"{Package Size}"},{"$f":"IFERROR(MID($R190,FIND(CHAR(160),SUBSTITUTE($R190,\"{\",CHAR(160),FM$1)),FIND(CHAR(160),SUBSTITUTE($R190,\"}\",CHAR(160),FM$1))-FIND(CHAR(160),SUBSTITUTE($R190,\"{\",CHAR(160),FM$1))+1),\"\")","v":""},{"$f":"IFERROR(MID($R190,FIND(CHAR(160),SUBSTITUTE($R190,\"{\",CHAR(160),FN$1)),FIND(CHAR(160),SUBSTITUTE($R190,\"}\",CHAR(160),FN$1))-FIND(CHAR(160),SUBSTITUTE($R190,\"{\",CHAR(160),FN$1))+1),\"\")","v":""},{"$f":"IFERROR(MID($R190,FIND(CHAR(160),SUBSTITUTE($R190,\"{\",CHAR(160),FO$1)),FIND(CHAR(160),SUBSTITUTE($R190,\"}\",CHAR(160),FO$1))-FIND(CHAR(160),SUBSTITUTE($R190,\"{\",CHAR(160),FO$1))+1),\"\")","v":""},{"$f":"IFERROR(MID($R190,FIND(CHAR(160),SUBSTITUTE($R190,\"{\",CHAR(160),FP$1)),FIND(CHAR(160),SUBSTITUTE($R190,\"}\",CHAR(160),FP$1))-FIND(CHAR(160),SUBSTITUTE($R190,\"{\",CHAR(160),FP$1))+1),\"\")","v":""},{"$f":"IFERROR(MID($R190,FIND(CHAR(160),SUBSTITUTE($R190,\"{\",CHAR(160),FQ$1)),FIND(CHAR(160),SUBSTITUTE($R190,\"}\",CHAR(160),FQ$1))-FIND(CHAR(160),SUBSTITUTE($R190,\"{\",CHAR(160),FQ$1))+1),\"\")","v":""},{"$f":"IFERROR(MID($R190,FIND(CHAR(160),SUBSTITUTE($R190,\"{\",CHAR(160),FR$1)),FIND(CHAR(160),SUBSTITUTE($R190,\"}\",CHAR(160),FR$1))-FIND(CHAR(160),SUBSTITUTE($R190,\"{\",CHAR(160),FR$1))+1),\"\")","v":""},{"$f":"IFERROR(MID($R190,FIND(CHAR(160),SUBSTITUTE($R190,\"{\",CHAR(160),FS$1)),FIND(CHAR(160),SUBSTITUTE($R190,\"}\",CHAR(160),FS$1))-FIND(CHAR(160),SUBSTITUTE($R190,\"{\",CHAR(160),FS$1))+1),\"\")","v":""},{"$f":"IFERROR(MID($R190,FIND(CHAR(160),SUBSTITUTE($R190,\"{\",CHAR(160),FT$1)),FIND(CHAR(160),SUBSTITUTE($R190,\"}\",CHAR(160),FT$1))-FIND(CHAR(160),SUBSTITUTE($R190,\"{\",CHAR(160),FT$1))+1),\"\")","v":""},{"$f":"IFERROR(MID($R190,FIND(CHAR(160),SUBSTITUTE($R190,\"{\",CHAR(160),FU$1)),FIND(CHAR(160),SUBSTITUTE($R190,\"}\",CHAR(160),FU$1))-FIND(CHAR(160),SUBSTITUTE($R190,\"{\",CHAR(160),FU$1))+1),\"\")","v":"{Measure:Quantity}"},{"$f":"IFERROR(MID($R190,FIND(CHAR(160),SUBSTITUTE($R190,\"{\",CHAR(160),FV$1)),FIND(CHAR(160),SUBSTITUTE($R190,\"}\",CHAR(160),FV$1))-FIND(CHAR(160),SUBSTITUTE($R190,\"{\",CHAR(160),FV$1))+1),\"\")","v":"{Package Size}"},{"$f":"IFERROR(MID($U190,FIND(CHAR(160),SUBSTITUTE($U190,\"{\",CHAR(160),FW$1)),FIND(CHAR(160),SUBSTITUTE($U190,\"}\",CHAR(160),FW$1))-FIND(CHAR(160),SUBSTITUTE($U190,\"{\",CHAR(160),FW$1))+1),\"\")","v":"{Factor:WinterCF}"},{"$f":"IFERROR(MID($U190,FIND(CHAR(160),SUBSTITUTE($U190,\"{\",CHAR(160),FX$1)),FIND(CHAR(160),SUBSTITUTE($U190,\"}\",CHAR(160),FX$1))-FIND(CHAR(160),SUBSTITUTE($U190,\"{\",CHAR(160),FX$1))+1),\"\")","v":""},{"$f":"IFERROR(MID($U190,FIND(CHAR(160),SUBSTITUTE($U190,\"{\",CHAR(160),FY$1)),FIND(CHAR(160),SUBSTITUTE($U190,\"}\",CHAR(160),FY$1))-FIND(CHAR(160),SUBSTITUTE($U190,\"{\",CHAR(160),FY$1))+1),\"\")","v":""},{"$f":"IFERROR(MID($U190,FIND(CHAR(160),SUBSTITUTE($U190,\"{\",CHAR(160),FZ$1)),FIND(CHAR(160),SUBSTITUTE($U190,\"}\",CHAR(160),FZ$1))-FIND(CHAR(160),SUBSTITUTE($U190,\"{\",CHAR(160),FZ$1))+1),\"\")","v":""},{"$f":"IFERROR(MID($U190,FIND(CHAR(160),SUBSTITUTE($U190,\"{\",CHAR(160),GA$1)),FIND(CHAR(160),SUBSTITUTE($U190,\"}\",CHAR(160),GA$1))-FIND(CHAR(160),SUBSTITUTE($U190,\"{\",CHAR(160),GA$1))+1),\"\")","v":""},{"$f":"IFERROR(MID($U190,FIND(CHAR(160),SUBSTITUTE($U190,\"{\",CHAR(160),GB$1)),FIND(CHAR(160),SUBSTITUTE($U190,\"}\",CHAR(160),GB$1))-FIND(CHAR(160),SUBSTITUTE($U190,\"{\",CHAR(160),GB$1))+1),\"\")","v":""},{"$f":"IFERROR(MID($U190,FIND(CHAR(160),SUBSTITUTE($U190,\"{\",CHAR(160),GC$1)),FIND(CHAR(160),SUBSTITUTE($U190,\"}\",CHAR(160),GC$1))-FIND(CHAR(160),SUBSTITUTE($U190,\"{\",CHAR(160),GC$1))+1),\"\")","v":""},{"$f":"IFERROR(MID($U190,FIND(CHAR(160),SUBSTITUTE($U190,\"{\",CHAR(160),GD$1)),FIND(CHAR(160),SUBSTITUTE($U190,\"}\",CHAR(160),GD$1))-FIND(CHAR(160),SUBSTITUTE($U190,\"{\",CHAR(160),GD$1))+1),\"\")","v":""},{"$f":"IFERROR(MID($U190,FIND(CHAR(160),SUBSTITUTE($U190,\"{\",CHAR(160),GE$1)),FIND(CHAR(160),SUBSTITUTE($U190,\"}\",CHAR(160),GE$1))-FIND(CHAR(160),SUBSTITUTE($U190,\"{\",CHAR(160),GE$1))+1),\"\")","v":"{Measure:Quantity}"},{"$f":"IFERROR(MID($U190,FIND(CHAR(160),SUBSTITUTE($U190,\"{\",CHAR(160),GF$1)),FIND(CHAR(160),SUBSTITUTE($U190,\"}\",CHAR(160),GF$1))-FIND(CHAR(160),SUBSTITUTE($U190,\"{\",CHAR(160),GF$1))+1),\"\")","v":"{Package Size}"},{"$f":"IFERROR(MID($V190,FIND(CHAR(160),SUBSTITUTE($V190,\"{\",CHAR(160),GG$1)),FIND(CHAR(160),SUBSTITUTE($V190,\"}\",CHAR(160),GG$1))-FIND(CHAR(160),SUBSTITUTE($V190,\"{\",CHAR(160),GG$1))+1),\"\")","v":"{Factor:SummerCF}"},{"$f":"IFERROR(MID($V190,FIND(CHAR(160),SUBSTITUTE($V190,\"{\",CHAR(160),GH$1)),FIND(CHAR(160),SUBSTITUTE($V190,\"}\",CHAR(160),GH$1))-FIND(CHAR(160),SUBSTITUTE($V190,\"{\",CHAR(160),GH$1))+1),\"\")","v":""},{"$f":"IFERROR(MID($V190,FIND(CHAR(160),SUBSTITUTE($V190,\"{\",CHAR(160),GI$1)),FIND(CHAR(160),SUBSTITUTE($V190,\"}\",CHAR(160),GI$1))-FIND(CHAR(160),SUBSTITUTE($V190,\"{\",CHAR(160),GI$1))+1),\"\")","v":""},{"$f":"IFERROR(MID($V190,FIND(CHAR(160),SUBSTITUTE($V190,\"{\",CHAR(160),GJ$1)),FIND(CHAR(160),SUBSTITUTE($V190,\"}\",CHAR(160),GJ$1))-FIND(CHAR(160),SUBSTITUTE($V190,\"{\",CHAR(160),GJ$1))+1),\"\")","v":""},{"$f":"IFERROR(MID($V190,FIND(CHAR(160),SUBSTITUTE($V190,\"{\",CHAR(160),GK$1)),FIND(CHAR(160),SUBSTITUTE($V190,\"}\",CHAR(160),GK$1))-FIND(CHAR(160),SUBSTITUTE($V190,\"{\",CHAR(160),GK$1))+1),\"\")","v":""},{"$f":"IFERROR(MID($V190,FIND(CHAR(160),SUBSTITUTE($V190,\"{\",CHAR(160),GL$1)),FIND(CHAR(160),SUBSTITUTE($V190,\"}\",CHAR(160),GL$1))-FIND(CHAR(160),SUBSTITUTE($V190,\"{\",CHAR(160),GL$1))+1),\"\")","v":""},{"$f":"IFERROR(MID($V190,FIND(CHAR(160),SUBSTITUTE($V190,\"{\",CHAR(160),GM$1)),FIND(CHAR(160),SUBSTITUTE($V190,\"}\",CHAR(160),GM$1))-FIND(CHAR(160),SUBSTITUTE($V190,\"{\",CHAR(160),GM$1))+1),\"\")","v":""},{"$f":"IFERROR(MID($V190,FIND(CHAR(160),SUBSTITUTE($V190,\"{\",CHAR(160),GN$1)),FIND(CHAR(160),SUBSTITUTE($V190,\"}\",CHAR(160),GN$1))-FIND(CHAR(160),SUBSTITUTE($V190,\"{\",CHAR(160),GN$1))+1),\"\")","v":""},{"$f":"IFERROR(MID($V190,FIND(CHAR(160),SUBSTITUTE($V190,\"{\",CHAR(160),GO$1)),FIND(CHAR(160),SUBSTITUTE($V190,\"}\",CHAR(160),GO$1))-FIND(CHAR(160),SUBSTITUTE($V190,\"{\",CHAR(160),GO$1))+1),\"\")","v":"{Measure:Quantity}"},{"$f":"IFERROR(MID($V190,FIND(CHAR(160),SUBSTITUTE($V190,\"{\",CHAR(160),GP$1)),FIND(CHAR(160),SUBSTITUTE($V190,\"}\",CHAR(160),GP$1))-FIND(CHAR(160),SUBSTITUTE($V190,\"{\",CHAR(160),GP$1))+1),\"\")","v":"{Package Size}"},{"$f":"IFERROR(MID($W190,FIND(CHAR(160),SUBSTITUTE($W190,\"{\",CHAR(160),GQ$1)),FIND(CHAR(160),SUBSTITUTE($W190,\"}\",CHAR(160),GQ$1))-FIND(CHAR(160),SUBSTITUTE($W190,\"{\",CHAR(160),GQ$1))+1),\"\")","v":""},{"$f":"IFERROR(MID($W190,FIND(CHAR(160),SUBSTITUTE($W190,\"{\",CHAR(160),GR$1)),FIND(CHAR(160),SUBSTITUTE($W190,\"}\",CHAR(160),GR$1))-FIND(CHAR(160),SUBSTITUTE($W190,\"{\",CHAR(160),GR$1))+1),\"\")","v":""},{"$f":"IFERROR(MID($W190,FIND(CHAR(160),SUBSTITUTE($W190,\"{\",CHAR(160),GS$1)),FIND(CHAR(160),SUBSTITUTE($W190,\"}\",CHAR(160),GS$1))-FIND(CHAR(160),SUBSTITUTE($W190,\"{\",CHAR(160),GS$1))+1),\"\")","v":""},{"$f":"IFERROR(MID($W190,FIND(CHAR(160),SUBSTITUTE($W190,\"{\",CHAR(160),GT$1)),FIND(CHAR(160),SUBSTITUTE($W190,\"}\",CHAR(160),GT$1))-FIND(CHAR(160),SUBSTITUTE($W190,\"{\",CHAR(160),GT$1))+1),\"\")","v":""},{"$f":"IFERROR(MID($W190,FIND(CHAR(160),SUBSTITUTE($W190,\"{\",CHAR(160),GU$1)),FIND(CHAR(160),SUBSTITUTE($W190,\"}\",CHAR(160),GU$1))-FIND(CHAR(160),SUBSTITUTE($W190,\"{\",CHAR(160),GU$1))+1),\"\")","v":""},{"$f":"IFERROR(MID($W190,FIND(CHAR(160),SUBSTITUTE($W190,\"{\",CHAR(160),GV$1)),FIND(CHAR(160),SUBSTITUTE($W190,\"}\",CHAR(160),GV$1))-FIND(CHAR(160),SUBSTITUTE($W190,\"{\",CHAR(160),GV$1))+1),\"\")","v":""},{"$f":"IFERROR(MID($W190,FIND(CHAR(160),SUBSTITUTE($W190,\"{\",CHAR(160),GW$1)),FIND(CHAR(160),SUBSTITUTE($W190,\"}\",CHAR(160),GW$1))-FIND(CHAR(160),SUBSTITUTE($W190,\"{\",CHAR(160),GW$1))+1),\"\")","v":""},{"$f":"IFERROR(MID($W190,FIND(CHAR(160),SUBSTITUTE($W190,\"{\",CHAR(160),GX$1)),FIND(CHAR(160),SUBSTITUTE($W190,\"}\",CHAR(160),GX$1))-FIND(CHAR(160),SUBSTITUTE($W190,\"{\",CHAR(160),GX$1))+1),\"\")","v":""},{"$f":"IFERROR(MID($W190,FIND(CHAR(160),SUBSTITUTE($W190,\"{\",CHAR(160),GY$1)),FIND(CHAR(160),SUBSTITUTE($W190,\"}\",CHAR(160),GY$1))-FIND(CHAR(160),SUBSTITUTE($W190,\"{\",CHAR(160),GY$1))+1),\"\")","v":"{Measure:Quantity}"},{"$f":"IFERROR(MID($W190,FIND(CHAR(160),SUBSTITUTE($W190,\"{\",CHAR(160),GZ$1)),FIND(CHAR(160),SUBSTITUTE($W190,\"}\",CHAR(160),GZ$1))-FIND(CHAR(160),SUBSTITUTE($W190,\"{\",CHAR(160),GZ$1))+1),\"\")","v":"{Package Size}"},{"$f":"IFERROR(MID($X190,FIND(CHAR(160),SUBSTITUTE($X190,\"{\",CHAR(160),HA$1)),FIND(CHAR(160),SUBSTITUTE($X190,\"}\",CHAR(160),HA$1))-FIND(CHAR(160),SUBSTITUTE($X190,\"{\",CHAR(160),HA$1))+1),\"\")","v":""},{"$f":"IFERROR(MID($X190,FIND(CHAR(160),SUBSTITUTE($X190,\"{\",CHAR(160),HB$1)),FIND(CHAR(160),SUBSTITUTE($X190,\"}\",CHAR(160),HB$1))-FIND(CHAR(160),SUBSTITUTE($X190,\"{\",CHAR(160),HB$1))+1),\"\")","v":""},{"$f":"IFERROR(MID($X190,FIND(CHAR(160),SUBSTITUTE($X190,\"{\",CHAR(160),HC$1)),FIND(CHAR(160),SUBSTITUTE($X190,\"}\",CHAR(160),HC$1))-FIND(CHAR(160),SUBSTITUTE($X190,\"{\",CHAR(160),HC$1))+1),\"\")","v":""},{"$f":"IFERROR(MID($X190,FIND(CHAR(160),SUBSTITUTE($X190,\"{\",CHAR(160),HD$1)),FIND(CHAR(160),SUBSTITUTE($X190,\"}\",CHAR(160),HD$1))-FIND(CHAR(160),SUBSTITUTE($X190,\"{\",CHAR(160),HD$1))+1),\"\")","v":""},{"$f":"IFERROR(MID($X190,FIND(CHAR(160),SUBSTITUTE($X190,\"{\",CHAR(160),HE$1)),FIND(CHAR(160),SUBSTITUTE($X190,\"}\",CHAR(160),HE$1))-FIND(CHAR(160),SUBSTITUTE($X190,\"{\",CHAR(160),HE$1))+1),\"\")","v":""},{"$f":"IFERROR(MID($X190,FIND(CHAR(160),SUBSTITUTE($X190,\"{\",CHAR(160),HF$1)),FIND(CHAR(160),SUBSTITUTE($X190,\"}\",CHAR(160),HF$1))-FIND(CHAR(160),SUBSTITUTE($X190,\"{\",CHAR(160),HF$1))+1),\"\")","v":""},{"$f":"IFERROR(MID($X190,FIND(CHAR(160),SUBSTITUTE($X190,\"{\",CHAR(160),HG$1)),FIND(CHAR(160),SUBSTITUTE($X190,\"}\",CHAR(160),HG$1))-FIND(CHAR(160),SUBSTITUTE($X190,\"{\",CHAR(160),HG$1))+1),\"\")","v":""},{"$f":"IFERROR(MID($X190,FIND(CHAR(160),SUBSTITUTE($X190,\"{\",CHAR(160),HH$1)),FIND(CHAR(160),SUBSTITUTE($X190,\"}\",CHAR(160),HH$1))-FIND(CHAR(160),SUBSTITUTE($X190,\"{\",CHAR(160),HH$1))+1),\"\")","v":""},{"$f":"IFERROR(MID($X190,FIND(CHAR(160),SUBSTITUTE($X190,\"{\",CHAR(160),HI$1)),FIND(CHAR(160),SUBSTITUTE($X190,\"}\",CHAR(160),HI$1))-FIND(CHAR(160),SUBSTITUTE($X190,\"{\",CHAR(160),HI$1))+1),\"\")","v":"{Measure:Quantity}"},{"$f":"IFERROR(MID($X190,FIND(CHAR(160),SUBSTITUTE($X190,\"{\",CHAR(160),HJ$1)),FIND(CHAR(160),SUBSTITUTE($X190,\"}\",CHAR(160),HJ$1))-FIND(CHAR(160),SUBSTITUTE($X190,\"{\",CHAR(160),HJ$1))+1),\"\")","v":"{Package Size}"},{"$f":"IFERROR(MID($Y190,FIND(CHAR(160),SUBSTITUTE($Y190,\"{\",CHAR(160),HK$1)),FIND(CHAR(160),SUBSTITUTE($Y190,\"}\",CHAR(160),HK$1))-FIND(CHAR(160),SUBSTITUTE($Y190,\"{\",CHAR(160),HK$1))+1),\"\")","v":""},{"$f":"IFERROR(MID($Y190,FIND(CHAR(160),SUBSTITUTE($Y190,\"{\",CHAR(160),HL$1)),FIND(CHAR(160),SUBSTITUTE($Y190,\"}\",CHAR(160),HL$1))-FIND(CHAR(160),SUBSTITUTE($Y190,\"{\",CHAR(160),HL$1))+1),\"\")","v":""},{"$f":"IFERROR(MID($Y190,FIND(CHAR(160),SUBSTITUTE($Y190,\"{\",CHAR(160),HM$1)),FIND(CHAR(160),SUBSTITUTE($Y190,\"}\",CHAR(160),HM$1))-FIND(CHAR(160),SUBSTITUTE($Y190,\"{\",CHAR(160),HM$1))+1),\"\")","v":""},{"$f":"IFERROR(MID($Y190,FIND(CHAR(160),SUBSTITUTE($Y190,\"{\",CHAR(160),HN$1)),FIND(CHAR(160),SUBSTITUTE($Y190,\"}\",CHAR(160),HN$1))-FIND(CHAR(160),SUBSTITUTE($Y190,\"{\",CHAR(160),HN$1))+1),\"\")","v":""},{"$f":"IFERROR(MID($Y190,FIND(CHAR(160),SUBSTITUTE($Y190,\"{\",CHAR(160),HO$1)),FIND(CHAR(160),SUBSTITUTE($Y190,\"}\",CHAR(160),HO$1))-FIND(CHAR(160),SUBSTITUTE($Y190,\"{\",CHAR(160),HO$1))+1),\"\")","v":""},{"$f":"IFERROR(MID($Y190,FIND(CHAR(160),SUBSTITUTE($Y190,\"{\",CHAR(160),HP$1)),FIND(CHAR(160),SUBSTITUTE($Y190,\"}\",CHAR(160),HP$1))-FIND(CHAR(160),SUBSTITUTE($Y190,\"{\",CHAR(160),HP$1))+1),\"\")","v":""},{"$f":"IFERROR(MID($Y190,FIND(CHAR(160),SUBSTITUTE($Y190,\"{\",CHAR(160),HQ$1)),FIND(CHAR(160),SUBSTITUTE($Y190,\"}\",CHAR(160),HQ$1))-FIND(CHAR(160),SUBSTITUTE($Y190,\"{\",CHAR(160),HQ$1))+1),\"\")","v":""},{"$f":"IFERROR(MID($Y190,FIND(CHAR(160),SUBSTITUTE($Y190,\"{\",CHAR(160),HR$1)),FIND(CHAR(160),SUBSTITUTE($Y190,\"}\",CHAR(160),HR$1))-FIND(CHAR(160),SUBSTITUTE($Y190,\"{\",CHAR(160),HR$1))+1),\"\")","v":""},{"$f":"IFERROR(MID($Y190,FIND(CHAR(160),SUBSTITUTE($Y190,\"{\",CHAR(160),HS$1)),FIND(CHAR(160),SUBSTITUTE($Y190,\"}\",CHAR(160),HS$1))-FIND(CHAR(160),SUBSTITUTE($Y190,\"{\",CHAR(160),HS$1))+1),\"\")","v":"{Measure:Quantity}"},{"$f":"IFERROR(MID($Y190,FIND(CHAR(160),SUBSTITUTE($Y190,\"{\",CHAR(160),HT$1)),FIND(CHAR(160),SUBSTITUTE($Y190,\"}\",CHAR(160),HT$1))-FIND(CHAR(160),SUBSTITUTE($Y190,\"{\",CHAR(160),HT$1))+1),\"\")","v":"{Package Size}"},{"$f":"IFERROR(MID($Z190,FIND(CHAR(160),SUBSTITUTE($Z190,\"{\",CHAR(160),HU$1)),FIND(CHAR(160),SUBSTITUTE($Z190,\"}\",CHAR(160),HU$1))-FIND(CHAR(160),SUBSTITUTE($Z190,\"{\",CHAR(160),HU$1))+1),\"\")","v":""},{"$f":"IFERROR(MID($Z190,FIND(CHAR(160),SUBSTITUTE($Z190,\"{\",CHAR(160),HV$1)),FIND(CHAR(160),SUBSTITUTE($Z190,\"}\",CHAR(160),HV$1))-FIND(CHAR(160),SUBSTITUTE($Z190,\"{\",CHAR(160),HV$1))+1),\"\")","v":""},{"$f":"IFERROR(MID($Z190,FIND(CHAR(160),SUBSTITUTE($Z190,\"{\",CHAR(160),HW$1)),FIND(CHAR(160),SUBSTITUTE($Z190,\"}\",CHAR(160),HW$1))-FIND(CHAR(160),SUBSTITUTE($Z190,\"{\",CHAR(160),HW$1))+1),\"\")","v":""},{"$f":"IFERROR(MID($Z190,FIND(CHAR(160),SUBSTITUTE($Z190,\"{\",CHAR(160),HX$1)),FIND(CHAR(160),SUBSTITUTE($Z190,\"}\",CHAR(160),HX$1))-FIND(CHAR(160),SUBSTITUTE($Z190,\"{\",CHAR(160),HX$1))+1),\"\")","v":""},{"$f":"IFERROR(MID($Z190,FIND(CHAR(160),SUBSTITUTE($Z190,\"{\",CHAR(160),HY$1)),FIND(CHAR(160),SUBSTITUTE($Z190,\"}\",CHAR(160),HY$1))-FIND(CHAR(160),SUBSTITUTE($Z190,\"{\",CHAR(160),HY$1))+1),\"\")","v":""},{"$f":"IFERROR(MID($Z190,FIND(CHAR(160),SUBSTITUTE($Z190,\"{\",CHAR(160),HZ$1)),FIND(CHAR(160),SUBSTITUTE($Z190,\"}\",CHAR(160),HZ$1))-FIND(CHAR(160),SUBSTITUTE($Z190,\"{\",CHAR(160),HZ$1))+1),\"\")","v":""},{"$f":"IFERROR(MID($Z190,FIND(CHAR(160),SUBSTITUTE($Z190,\"{\",CHAR(160),IA$1)),FIND(CHAR(160),SUBSTITUTE($Z190,\"}\",CHAR(160),IA$1))-FIND(CHAR(160),SUBSTITUTE($Z190,\"{\",CHAR(160),IA$1))+1),\"\")","v":""},{"$f":"IFERROR(MID($Z190,FIND(CHAR(160),SUBSTITUTE($Z190,\"{\",CHAR(160),IB$1)),FIND(CHAR(160),SUBSTITUTE($Z190,\"}\",CHAR(160),IB$1))-FIND(CHAR(160),SUBSTITUTE($Z190,\"{\",CHAR(160),IB$1))+1),\"\")","v":""},{"$f":"IFERROR(MID($Z190,FIND(CHAR(160),SUBSTITUTE($Z190,\"{\",CHAR(160),IC$1)),FIND(CHAR(160),SUBSTITUTE($Z190,\"}\",CHAR(160),IC$1))-FIND(CHAR(160),SUBSTITUTE($Z190,\"{\",CHAR(160),IC$1))+1),\"\")","v":"{Measure:Quantity}"},{"$f":"IFERROR(MID($Z190,FIND(CHAR(160),SUBSTITUTE($Z190,\"{\",CHAR(160),ID$1)),FIND(CHAR(160),SUBSTITUTE($Z190,\"}\",CHAR(160),ID$1))-FIND(CHAR(160),SUBSTITUTE($Z190,\"{\",CHAR(160),ID$1))+1),\"\")","v":"{Package Size}"},{"$f":"IFERROR(MID($AA190,FIND(CHAR(160),SUBSTITUTE($AA190,\"{\",CHAR(160),IE$1)),FIND(CHAR(160),SUBSTITUTE($AA190,\"}\",CHAR(160),IE$1))-FIND(CHAR(160),SUBSTITUTE($AA190,\"{\",CHAR(160),IE$1))+1),\"\")","v":""},{"$f":"IFERROR(MID($AA190,FIND(CHAR(160),SUBSTITUTE($AA190,\"{\",CHAR(160),IF$1)),FIND(CHAR(160),SUBSTITUTE($AA190,\"}\",CHAR(160),IF$1))-FIND(CHAR(160),SUBSTITUTE($AA190,\"{\",CHAR(160),IF$1))+1),\"\")","v":""},{"$f":"IFERROR(MID($AA190,FIND(CHAR(160),SUBSTITUTE($AA190,\"{\",CHAR(160),IG$1)),FIND(CHAR(160),SUBSTITUTE($AA190,\"}\",CHAR(160),IG$1))-FIND(CHAR(160),SUBSTITUTE($AA190,\"{\",CHAR(160),IG$1))+1),\"\")","v":""},{"$f":"IFERROR(MID($AA190,FIND(CHAR(160),SUBSTITUTE($AA190,\"{\",CHAR(160),IH$1)),FIND(CHAR(160),SUBSTITUTE($AA190,\"}\",CHAR(160),IH$1))-FIND(CHAR(160),SUBSTITUTE($AA190,\"{\",CHAR(160),IH$1))+1),\"\")","v":""},{"$f":"IFERROR(MID($AA190,FIND(CHAR(160),SUBSTITUTE($AA190,\"{\",CHAR(160),II$1)),FIND(CHAR(160),SUBSTITUTE($AA190,\"}\",CHAR(160),II$1))-FIND(CHAR(160),SUBSTITUTE($AA190,\"{\",CHAR(160),II$1))+1),\"\")","v":""},{"$f":"IFERROR(MID($AA190,FIND(CHAR(160),SUBSTITUTE($AA190,\"{\",CHAR(160),IJ$1)),FIND(CHAR(160),SUBSTITUTE($AA190,\"}\",CHAR(160),IJ$1))-FIND(CHAR(160),SUBSTITUTE($AA190,\"{\",CHAR(160),IJ$1))+1),\"\")","v":""},{"$f":"IFERROR(MID($AA190,FIND(CHAR(160),SUBSTITUTE($AA190,\"{\",CHAR(160),IK$1)),FIND(CHAR(160),SUBSTITUTE($AA190,\"}\",CHAR(160),IK$1))-FIND(CHAR(160),SUBSTITUTE($AA190,\"{\",CHAR(160),IK$1))+1),\"\")","v":""},{"$f":"IFERROR(MID($AA190,FIND(CHAR(160),SUBSTITUTE($AA190,\"{\",CHAR(160),IL$1)),FIND(CHAR(160),SUBSTITUTE($AA190,\"}\",CHAR(160),IL$1))-FIND(CHAR(160),SUBSTITUTE($AA190,\"{\",CHAR(160),IL$1))+1),\"\")","v":""},{"$f":"IFERROR(MID($AA190,FIND(CHAR(160),SUBSTITUTE($AA190,\"{\",CHAR(160),IM$1)),FIND(CHAR(160),SUBSTITUTE($AA190,\"}\",CHAR(160),IM$1))-FIND(CHAR(160),SUBSTITUTE($AA190,\"{\",CHAR(160),IM$1))+1),\"\")","v":"{Measure:Quantity}"},{"$f":"IFERROR(MID($AA190,FIND(CHAR(160),SUBSTITUTE($AA190,\"{\",CHAR(160),IN$1)),FIND(CHAR(160),SUBSTITUTE($AA190,\"}\",CHAR(160),IN$1))-FIND(CHAR(160),SUBSTITUTE($AA190,\"{\",CHAR(160),IN$1))+1),\"\")","v":"{Package Size}"},{"$f":"IFERROR(MID($AB190,FIND(CHAR(160),SUBSTITUTE($AB190,\"{\",CHAR(160),IO$1)),FIND(CHAR(160),SUBSTITUTE($AB190,\"}\",CHAR(160),IO$1))-FIND(CHAR(160),SUBSTITUTE($AB190,\"{\",CHAR(160),IO$1))+1),\"\")","v":""},{"$f":"IFERROR(MID($AB190,FIND(CHAR(160),SUBSTITUTE($AB190,\"{\",CHAR(160),IP$1)),FIND(CHAR(160),SUBSTITUTE($AB190,\"}\",CHAR(160),IP$1))-FIND(CHAR(160),SUBSTITUTE($AB190,\"{\",CHAR(160),IP$1))+1),\"\")","v":""},{"$f":"IFERROR(MID($AB190,FIND(CHAR(160),SUBSTITUTE($AB190,\"{\",CHAR(160),IQ$1)),FIND(CHAR(160),SUBSTITUTE($AB190,\"}\",CHAR(160),IQ$1))-FIND(CHAR(160),SUBSTITUTE($AB190,\"{\",CHAR(160),IQ$1))+1),\"\")","v":""},{"$f":"IFERROR(MID($AB190,FIND(CHAR(160),SUBSTITUTE($AB190,\"{\",CHAR(160),IR$1)),FIND(CHAR(160),SUBSTITUTE($AB190,\"}\",CHAR(160),IR$1))-FIND(CHAR(160),SUBSTITUTE($AB190,\"{\",CHAR(160),IR$1))+1),\"\")","v":""},{"$f":"IFERROR(MID($AB190,FIND(CHAR(160),SUBSTITUTE($AB190,\"{\",CHAR(160),IS$1)),FIND(CHAR(160),SUBSTITUTE($AB190,\"}\",CHAR(160),IS$1))-FIND(CHAR(160),SUBSTITUTE($AB190,\"{\",CHAR(160),IS$1))+1),\"\")","v":""},{"$f":"IFERROR(MID($AB190,FIND(CHAR(160),SUBSTITUTE($AB190,\"{\",CHAR(160),IT$1)),FIND(CHAR(160),SUBSTITUTE($AB190,\"}\",CHAR(160),IT$1))-FIND(CHAR(160),SUBSTITUTE($AB190,\"{\",CHAR(160),IT$1))+1),\"\")","v":""},{"$f":"IFERROR(MID($AB190,FIND(CHAR(160),SUBSTITUTE($AB190,\"{\",CHAR(160),IU$1)),FIND(CHAR(160),SUBSTITUTE($AB190,\"}\",CHAR(160),IU$1))-FIND(CHAR(160),SUBSTITUTE($AB190,\"{\",CHAR(160),IU$1))+1),\"\")","v":""},{"$f":"IFERROR(MID($AB190,FIND(CHAR(160),SUBSTITUTE($AB190,\"{\",CHAR(160),IV$1)),FIND(CHAR(160),SUBSTITUTE($AB190,\"}\",CHAR(160),IV$1))-FIND(CHAR(160),SUBSTITUTE($AB190,\"{\",CHAR(160),IV$1))+1),\"\")","v":""},{"$f":"IFERROR(MID($AB190,FIND(CHAR(160),SUBSTITUTE($AB190,\"{\",CHAR(160),IW$1)),FIND(CHAR(160),SUBSTITUTE($AB190,\"}\",CHAR(160),IW$1))-FIND(CHAR(160),SUBSTITUTE($AB190,\"{\",CHAR(160),IW$1))+1),\"\")","v":""},{"$f":"IFERROR(MID($AB190,FIND(CHAR(160),SUBSTITUTE($AB190,\"{\",CHAR(160),IX$1)),FIND(CHAR(160),SUBSTITUTE($AB190,\"}\",CHAR(160),IX$1))-FIND(CHAR(160),SUBSTITUTE($AB190,\"{\",CHAR(160),IX$1))+1),\"\")","v":""},null,{"$f":"10-COUNTIF(DU190:ED190,\"\")","v":3}]
["E.V. Accelerator ","Battery Electric Vehicle","BEV","2021-07-01","2022-06-30","Per Measure",16517,0,"Manual Entry",0,0,"2020-07-01","2022-06-30","Per Measure",-3450,null,null,-0.25,null,null,-0.184,0,0,0,0,0,0,65.040000000000006,"2020-07-01","2022-06-30",14,1,1,0.1,0.32,0.1,0.48,1,1,1,0.25,0,null,"Annual ME VMT",11895,"kWh/100 miles BEV",29,"Gas MPG",22,null,null,null,null,null,null,null,null,null,null,null,null,null,null,{"$f":"-3450","v":-3450},0,0,{"$f":"-0.25","v":-0.25},0,0,{"$f":"-0.184","v":-0.184},{"$f":"0","v":0},{"$f":"0","v":0},{"$f":"0","v":0},{"$f":"0","v":0},{"$f":"0","v":0},{"$f":"0","v":0},0,{"$f":"$AS191/$AW191*120286/1000000","v":65.036453181818175},"Res","Default DR",{"$f":"Benefits(BL191,BR191,BS191,BT191,BU191,BV191,BW191,BX191,BY191,BZ191,AE191,AH191,AI191,AJ191,AK191,AL191,AM191,AN191,AO191,AP191,CA191,CB191)","v":-4247.7609797965315},-655.03837058890406,0,0,0,0,0,0,24223.608835311537,{"$f":"SUMPRODUCT(CC191:CK191,--(CC191:CK191>0))","v":24223.608835311537},{"$f":"-SUMPRODUCT(CC191:CK191,--(CC191:CK191<0))","v":4902.7993503854359},null,{"$f":"16517","v":16517},{"$f":"PV(0.028,AE191,330)","v":-3779.0373878024116},null,{"$f":"CM191+CO191","v":21419.799350385438},{"$f":"IF(NetOrGross=\"Net\",(1-AO191+AP191),1)","v":1},{"$f":"(SUMPRODUCT(CC191:CK191,--(CC191:CK191>0))+CN191)*CS191/((-SUMPRODUCT(CC191:CK191,--(CC191:CK191<0))+MAX(CO191,CV191)+CP191+CQ191)*CS191+IF(FRIncentives=\"Yes\",CV191*(1-CS191),0))","v":1.3731611416043747},null,null,null,null,"y",{"$f":"CL191-CP191-CQ191-CR191","v":6582.8468727285108},{"$f":"IF(F191=\"Manual Entry\",\"Manual\",IF(G191=\"\",0,\"X=\"&SUBSTITUTE(SUBSTITUTE(SUBSTITUTE(SUBSTITUTE(SUBSTITUTE(SUBSTITUTE(SUBSTITUTE(SUBSTITUTE(SUBSTITUTE(SUBSTITUTE(SUBSTITUTE(SUBSTITUTE(G191,$ED191,$ED$2&ROW($ED191)),$EC191,$EC$2&ROW($EC191)),$EB191,$EB$2&ROW($EB191)),$EA191,$EA$2&ROW($EA191)),$DZ191,$DZ$2&ROW($DZ191)),$DY191,$DY$2&ROW($DY191)),$DX191,$DX$2&ROW($DX191)),$DW191,$DW$2&ROW($DW191)),$DV191,$DV$2&ROW($DV191)),$DU191,$DU$2&ROW($DU191)),$DT191,$DT$2&ROW($DT191)),$DS191,$DS$2&ROW($DS191))))","v":"X=16517"},{"$f":"IF(I191=\"Manual Entry\",\"Manual\",IF(J191=\"\",0,\"X=\"&SUBSTITUTE(SUBSTITUTE(SUBSTITUTE(SUBSTITUTE(SUBSTITUTE(SUBSTITUTE(SUBSTITUTE(SUBSTITUTE(SUBSTITUTE(SUBSTITUTE(SUBSTITUTE(SUBSTITUTE(J191,$ED191,$ED$2&ROW($ED191)),$EC191,$EC$2&ROW($EC191)),$EB191,$EB$2&ROW($EB191)),$EA191,$EA$2&ROW($EA191)),$DZ191,$DZ$2&ROW($DZ191)),$DY191,$DY$2&ROW($DY191)),$DX191,$DX$2&ROW($DX191)),$DW191,$DW$2&ROW($DW191)),$DV191,$DV$2&ROW($DV191)),$DU191,$DU$2&ROW($DU191)),$DT191,$DT$2&ROW($DT191)),$DS191,$DS$2&ROW($DS191))))","v":"Manual"},{"$f":"IF(O191=\"\",0,\"X=\"&SUBSTITUTE(SUBSTITUTE(SUBSTITUTE(SUBSTITUTE(SUBSTITUTE(SUBSTITUTE(SUBSTITUTE(SUBSTITUTE(SUBSTITUTE(SUBSTITUTE(SUBSTITUTE(SUBSTITUTE(O191,$ED191,$ED$2&ROW($ED191)),$EC191,$EC$2&ROW($EC191)),$EB191,$EB$2&ROW($EB191)),$EA191,$EA$2&ROW($EA191)),$DZ191,$DZ$2&ROW($DZ191)),$DY191,$DY$2&ROW($DY191)),$DX191,$DX$2&ROW($DX191)),$DW191,$DW$2&ROW($DW191)),$DV191,$DV$2&ROW($DV191)),$DU191,$DU$2&ROW($DU191)),$DT191,$DT$2&ROW($DT191)),$DS191,$DS$2&ROW($DS191)))","v":"X=-3450"},{"$f":"IF(P191=\"\",0,\"X=\"&SUBSTITUTE(SUBSTITUTE(SUBSTITUTE(SUBSTITUTE(SUBSTITUTE(SUBSTITUTE(SUBSTITUTE(SUBSTITUTE(SUBSTITUTE(SUBSTITUTE(SUBSTITUTE(SUBSTITUTE(P191,$ED191,$ED$2&ROW($ED191)),$EC191,$EC$2&ROW($EC191)),$EB191,$EB$2&ROW($EB191)),$EA191,$EA$2&ROW($EA191)),$DZ191,$DZ$2&ROW($DZ191)),$DY191,$DY$2&ROW($DY191)),$DX191,$DX$2&ROW($DX191)),$DW191,$DW$2&ROW($DW191)),$DV191,$DV$2&ROW($DV191)),$DU191,$DU$2&ROW($DU191)),$DT191,$DT$2&ROW($DT191)),$DS191,$DS$2&ROW($DS191)))","v":0},{"$f":"IF(Q191=\"\",0,\"X=\"&SUBSTITUTE(SUBSTITUTE(SUBSTITUTE(SUBSTITUTE(SUBSTITUTE(SUBSTITUTE(SUBSTITUTE(SUBSTITUTE(SUBSTITUTE(SUBSTITUTE(SUBSTITUTE(SUBSTITUTE(Q191,$ED191,$ED$2&ROW($ED191)),$EC191,$EC$2&ROW($EC191)),$EB191,$EB$2&ROW($EB191)),$EA191,$EA$2&ROW($EA191)),$DZ191,$DZ$2&ROW($DZ191)),$DY191,$DY$2&ROW($DY191)),$DX191,$DX$2&ROW($DX191)),$DW191,$DW$2&ROW($DW191)),$DV191,$DV$2&ROW($DV191)),$DU191,$DU$2&ROW($DU191)),$DT191,$DT$2&ROW($DT191)),$DS191,$DS$2&ROW($DS191)))","v":0},{"$f":"IF(R191=\"\",0,\"X=\"&SUBSTITUTE(SUBSTITUTE(SUBSTITUTE(SUBSTITUTE(SUBSTITUTE(SUBSTITUTE(SUBSTITUTE(SUBSTITUTE(SUBSTITUTE(SUBSTITUTE(SUBSTITUTE(SUBSTITUTE(R191,$ED191,$ED$2&ROW($ED191)),$EC191,$EC$2&ROW($EC191)),$EB191,$EB$2&ROW($EB191)),$EA191,$EA$2&ROW($EA191)),$DZ191,$DZ$2&ROW($DZ191)),$DY191,$DY$2&ROW($DY191)),$DX191,$DX$2&ROW($DX191)),$DW191,$DW$2&ROW($DW191)),$DV191,$DV$2&ROW($DV191)),$DU191,$DU$2&ROW($DU191)),$DT191,$DT$2&ROW($DT191)),$DS191,$DS$2&ROW($DS191)))","v":"X=-0.25"},{"$f":"IF(S191=\"\",0,\"X=\"&SUBSTITUTE(SUBSTITUTE(SUBSTITUTE(SUBSTITUTE(SUBSTITUTE(SUBSTITUTE(SUBSTITUTE(SUBSTITUTE(SUBSTITUTE(SUBSTITUTE(SUBSTITUTE(SUBSTITUTE(S191,$ED191,$ED$2&ROW($ED191)),$EC191,$EC$2&ROW($EC191)),$EB191,$EB$2&ROW($EB191)),$EA191,$EA$2&ROW($EA191)),$DZ191,$DZ$2&ROW($DZ191)),$DY191,$DY$2&ROW($DY191)),$DX191,$DX$2&ROW($DX191)),$DW191,$DW$2&ROW($DW191)),$DV191,$DV$2&ROW($DV191)),$DU191,$DU$2&ROW($DU191)),$DT191,$DT$2&ROW($DT191)),$DS191,$DS$2&ROW($DS191)))","v":0},{"$f":"IF(T191=\"\",0,\"X=\"&SUBSTITUTE(SUBSTITUTE(SUBSTITUTE(SUBSTITUTE(SUBSTITUTE(SUBSTITUTE(SUBSTITUTE(SUBSTITUTE(SUBSTITUTE(SUBSTITUTE(SUBSTITUTE(SUBSTITUTE(T191,$ED191,$ED$2&ROW($ED191)),$EC191,$EC$2&ROW($EC191)),$EB191,$EB$2&ROW($EB191)),$EA191,$EA$2&ROW($EA191)),$DZ191,$DZ$2&ROW($DZ191)),$DY191,$DY$2&ROW($DY191)),$DX191,$DX$2&ROW($DX191)),$DW191,$DW$2&ROW($DW191)),$DV191,$DV$2&ROW($DV191)),$DU191,$DU$2&ROW($DU191)),$DT191,$DT$2&ROW($DT191)),$DS191,$DS$2&ROW($DS191)))","v":0},{"$f":"IF(U191=\"\",0,\"X=\"&SUBSTITUTE(SUBSTITUTE(SUBSTITUTE(SUBSTITUTE(SUBSTITUTE(SUBSTITUTE(SUBSTITUTE(SUBSTITUTE(SUBSTITUTE(SUBSTITUTE(SUBSTITUTE(SUBSTITUTE(U191,$ED191,$ED$2&ROW($ED191)),$EC191,$EC$2&ROW($EC191)),$EB191,$EB$2&ROW($EB191)),$EA191,$EA$2&ROW($EA191)),$DZ191,$DZ$2&ROW($DZ191)),$DY191,$DY$2&ROW($DY191)),$DX191,$DX$2&ROW($DX191)),$DW191,$DW$2&ROW($DW191)),$DV191,$DV$2&ROW($DV191)),$DU191,$DU$2&ROW($DU191)),$DT191,$DT$2&ROW($DT191)),$DS191,$DS$2&ROW($DS191)))","v":"X=-0.184"},{"$f":"IF(V191=\"\",0,\"X=\"&SUBSTITUTE(SUBSTITUTE(SUBSTITUTE(SUBSTITUTE(SUBSTITUTE(SUBSTITUTE(SUBSTITUTE(SUBSTITUTE(SUBSTITUTE(SUBSTITUTE(SUBSTITUTE(SUBSTITUTE(V191,$ED191,$ED$2&ROW($ED191)),$EC191,$EC$2&ROW($EC191)),$EB191,$EB$2&ROW($EB191)),$EA191,$EA$2&ROW($EA191)),$DZ191,$DZ$2&ROW($DZ191)),$DY191,$DY$2&ROW($DY191)),$DX191,$DX$2&ROW($DX191)),$DW191,$DW$2&ROW($DW191)),$DV191,$DV$2&ROW($DV191)),$DU191,$DU$2&ROW($DU191)),$DT191,$DT$2&ROW($DT191)),$DS191,$DS$2&ROW($DS191)))","v":"X=0"},{"$f":"IF(W191=\"\",0,\"X=\"&SUBSTITUTE(SUBSTITUTE(SUBSTITUTE(SUBSTITUTE(SUBSTITUTE(SUBSTITUTE(SUBSTITUTE(SUBSTITUTE(SUBSTITUTE(SUBSTITUTE(SUBSTITUTE(SUBSTITUTE(W191,$ED191,$ED$2&ROW($ED191)),$EC191,$EC$2&ROW($EC191)),$EB191,$EB$2&ROW($EB191)),$EA191,$EA$2&ROW($EA191)),$DZ191,$DZ$2&ROW($DZ191)),$DY191,$DY$2&ROW($DY191)),$DX191,$DX$2&ROW($DX191)),$DW191,$DW$2&ROW($DW191)),$DV191,$DV$2&ROW($DV191)),$DU191,$DU$2&ROW($DU191)),$DT191,$DT$2&ROW($DT191)),$DS191,$DS$2&ROW($DS191)))","v":"X=0"},{"$f":"IF(X191=\"\",0,\"X=\"&SUBSTITUTE(SUBSTITUTE(SUBSTITUTE(SUBSTITUTE(SUBSTITUTE(SUBSTITUTE(SUBSTITUTE(SUBSTITUTE(SUBSTITUTE(SUBSTITUTE(SUBSTITUTE(SUBSTITUTE(X191,$ED191,$ED$2&ROW($ED191)),$EC191,$EC$2&ROW($EC191)),$EB191,$EB$2&ROW($EB191)),$EA191,$EA$2&ROW($EA191)),$DZ191,$DZ$2&ROW($DZ191)),$DY191,$DY$2&ROW($DY191)),$DX191,$DX$2&ROW($DX191)),$DW191,$DW$2&ROW($DW191)),$DV191,$DV$2&ROW($DV191)),$DU191,$DU$2&ROW($DU191)),$DT191,$DT$2&ROW($DT191)),$DS191,$DS$2&ROW($DS191)))","v":"X=0"},{"$f":"IF(Y191=\"\",0,\"X=\"&SUBSTITUTE(SUBSTITUTE(SUBSTITUTE(SUBSTITUTE(SUBSTITUTE(SUBSTITUTE(SUBSTITUTE(SUBSTITUTE(SUBSTITUTE(SUBSTITUTE(SUBSTITUTE(SUBSTITUTE(Y191,$ED191,$ED$2&ROW($ED191)),$EC191,$EC$2&ROW($EC191)),$EB191,$EB$2&ROW($EB191)),$EA191,$EA$2&ROW($EA191)),$DZ191,$DZ$2&ROW($DZ191)),$DY191,$DY$2&ROW($DY191)),$DX191,$DX$2&ROW($DX191)),$DW191,$DW$2&ROW($DW191)),$DV191,$DV$2&ROW($DV191)),$DU191,$DU$2&ROW($DU191)),$DT191,$DT$2&ROW($DT191)),$DS191,$DS$2&ROW($DS191)))","v":"X=0"},{"$f":"IF(Z191=\"\",0,\"X=\"&SUBSTITUTE(SUBSTITUTE(SUBSTITUTE(SUBSTITUTE(SUBSTITUTE(SUBSTITUTE(SUBSTITUTE(SUBSTITUTE(SUBSTITUTE(SUBSTITUTE(SUBSTITUTE(SUBSTITUTE(Z191,$ED191,$ED$2&ROW($ED191)),$EC191,$EC$2&ROW($EC191)),$EB191,$EB$2&ROW($EB191)),$EA191,$EA$2&ROW($EA191)),$DZ191,$DZ$2&ROW($DZ191)),$DY191,$DY$2&ROW($DY191)),$DX191,$DX$2&ROW($DX191)),$DW191,$DW$2&ROW($DW191)),$DV191,$DV$2&ROW($DV191)),$DU191,$DU$2&ROW($DU191)),$DT191,$DT$2&ROW($DT191)),$DS191,$DS$2&ROW($DS191)))","v":"X=0"},{"$f":"IF(AA191=\"\",0,\"X=\"&SUBSTITUTE(SUBSTITUTE(SUBSTITUTE(SUBSTITUTE(SUBSTITUTE(SUBSTITUTE(SUBSTITUTE(SUBSTITUTE(SUBSTITUTE(SUBSTITUTE(SUBSTITUTE(SUBSTITUTE(AA191,$ED191,$ED$2&ROW($ED191)),$EC191,$EC$2&ROW($EC191)),$EB191,$EB$2&ROW($EB191)),$EA191,$EA$2&ROW($EA191)),$DZ191,$DZ$2&ROW($DZ191)),$DY191,$DY$2&ROW($DY191)),$DX191,$DX$2&ROW($DX191)),$DW191,$DW$2&ROW($DW191)),$DV191,$DV$2&ROW($DV191)),$DU191,$DU$2&ROW($DU191)),$DT191,$DT$2&ROW($DT191)),$DS191,$DS$2&ROW($DS191)))","v":"X=0"},{"$f":"IF(AB191=\"\",0,\"X=\"&SUBSTITUTE(SUBSTITUTE(SUBSTITUTE(SUBSTITUTE(SUBSTITUTE(SUBSTITUTE(SUBSTITUTE(SUBSTITUTE(SUBSTITUTE(SUBSTITUTE(SUBSTITUTE(SUBSTITUTE(AB191,$ED191,$ED$2&ROW($ED191)),$EC191,$EC$2&ROW($EC191)),$EB191,$EB$2&ROW($EB191)),$EA191,$EA$2&ROW($EA191)),$DZ191,$DZ$2&ROW($DZ191)),$DY191,$DY$2&ROW($DY191)),$DX191,$DX$2&ROW($DX191)),$DW191,$DW$2&ROW($DW191)),$DV191,$DV$2&ROW($DV191)),$DU191,$DU$2&ROW($DU191)),$DT191,$DT$2&ROW($DT191)),$DS191,$DS$2&ROW($DS191)))","v":"X=65.04"},null,null,"{Factor:WinterCF}","{Factor:SummerCF}",{"$f":"IFERROR(INDEX($EG191:$IV191,MATCH(0,COUNTIF($DR191:DT191,$EG191:$IV191),0)),\"\")","v":""},{"$f":"IFERROR(INDEX($EG191:$IV191,MATCH(0,COUNTIF($DR191:DU191,$EG191:$IV191),0)),\"\")","v":""},{"$f":"IFERROR(INDEX($EG191:$IV191,MATCH(0,COUNTIF($DR191:DV191,$EG191:$IV191),0)),\"\")","v":""},{"$f":"IFERROR(INDEX($EG191:$IV191,MATCH(0,COUNTIF($DR191:DW191,$EG191:$IV191),0)),\"\")","v":""},{"$f":"IFERROR(INDEX($EG191:$IV191,MATCH(0,COUNTIF($DR191:DX191,$EG191:$IV191),0)),\"\")","v":""},{"$f":"IFERROR(INDEX($EG191:$IV191,MATCH(0,COUNTIF($DR191:DY191,$EG191:$IV191),0)),\"\")","v":""},{"$f":"IFERROR(INDEX($EG191:$IV191,MATCH(0,COUNTIF($DR191:DZ191,$EG191:$IV191),0)),\"\")","v":""},{"$f":"IFERROR(INDEX($EG191:$IV191,MATCH(0,COUNTIF($DR191:EA191,$EG191:$IV191),0)),\"\")","v":""},{"$f":"IFERROR(INDEX($EG191:$IV191,MATCH(0,COUNTIF($DR191:EB191,$EG191:$IV191),0)),\"\")","v":""},{"$f":"IFERROR(INDEX($EG191:$IV191,MATCH(0,COUNTIF($DR191:EC191,$EG191:$IV191),0)),\"\")","v":""},null,null,{"$f":"IFERROR(MID($G191,FIND(CHAR(160),SUBSTITUTE($G191,\"{\",CHAR(160),EG$1)),FIND(CHAR(160),SUBSTITUTE($G191,\"}\",CHAR(160),EG$1))-FIND(CHAR(160),SUBSTITUTE($G191,\"{\",CHAR(160),EG$1))+1),\"\")","v":""},{"$f":"IFERROR(MID($G191,FIND(CHAR(160),SUBSTITUTE($G191,\"{\",CHAR(160),EH$1)),FIND(CHAR(160),SUBSTITUTE($G191,\"}\",CHAR(160),EH$1))-FIND(CHAR(160),SUBSTITUTE($G191,\"{\",CHAR(160),EH$1))+1),\"\")","v":""},{"$f":"IFERROR(MID($G191,FIND(CHAR(160),SUBSTITUTE($G191,\"{\",CHAR(160),EI$1)),FIND(CHAR(160),SUBSTITUTE($G191,\"}\",CHAR(160),EI$1))-FIND(CHAR(160),SUBSTITUTE($G191,\"{\",CHAR(160),EI$1))+1),\"\")","v":""},{"$f":"IFERROR(MID($G191,FIND(CHAR(160),SUBSTITUTE($G191,\"{\",CHAR(160),EJ$1)),FIND(CHAR(160),SUBSTITUTE($G191,\"}\",CHAR(160),EJ$1))-FIND(CHAR(160),SUBSTITUTE($G191,\"{\",CHAR(160),EJ$1))+1),\"\")","v":""},{"$f":"IFERROR(MID($G191,FIND(CHAR(160),SUBSTITUTE($G191,\"{\",CHAR(160),EK$1)),FIND(CHAR(160),SUBSTITUTE($G191,\"}\",CHAR(160),EK$1))-FIND(CHAR(160),SUBSTITUTE($G191,\"{\",CHAR(160),EK$1))+1),\"\")","v":""},{"$f":"IFERROR(MID($G191,FIND(CHAR(160),SUBSTITUTE($G191,\"{\",CHAR(160),EL$1)),FIND(CHAR(160),SUBSTITUTE($G191,\"}\",CHAR(160),EL$1))-FIND(CHAR(160),SUBSTITUTE($G191,\"{\",CHAR(160),EL$1))+1),\"\")","v":""},{"$f":"IFERROR(MID($G191,FIND(CHAR(160),SUBSTITUTE($G191,\"{\",CHAR(160),EM$1)),FIND(CHAR(160),SUBSTITUTE($G191,\"}\",CHAR(160),EM$1))-FIND(CHAR(160),SUBSTITUTE($G191,\"{\",CHAR(160),EM$1))+1),\"\")","v":""},{"$f":"IFERROR(MID($G191,FIND(CHAR(160),SUBSTITUTE($G191,\"{\",CHAR(160),EN$1)),FIND(CHAR(160),SUBSTITUTE($G191,\"}\",CHAR(160),EN$1))-FIND(CHAR(160),SUBSTITUTE($G191,\"{\",CHAR(160),EN$1))+1),\"\")","v":""},{"$f":"IFERROR(MID($G191,FIND(CHAR(160),SUBSTITUTE($G191,\"{\",CHAR(160),EO$1)),FIND(CHAR(160),SUBSTITUTE($G191,\"}\",CHAR(160),EO$1))-FIND(CHAR(160),SUBSTITUTE($G191,\"{\",CHAR(160),EO$1))+1),\"\")","v":""},{"$f":"IFERROR(MID($G191,FIND(CHAR(160),SUBSTITUTE($G191,\"{\",CHAR(160),EP$1)),FIND(CHAR(160),SUBSTITUTE($G191,\"}\",CHAR(160),EP$1))-FIND(CHAR(160),SUBSTITUTE($G191,\"{\",CHAR(160),EP$1))+1),\"\")","v":""},{"$f":"IFERROR(MID($J191,FIND(CHAR(160),SUBSTITUTE($J191,\"{\",CHAR(160),EQ$1)),FIND(CHAR(160),SUBSTITUTE($J191,\"}\",CHAR(160),EQ$1))-FIND(CHAR(160),SUBSTITUTE($J191,\"{\",CHAR(160),EQ$1))+1),\"\")","v":""},{"$f":"IFERROR(MID($J191,FIND(CHAR(160),SUBSTITUTE($J191,\"{\",CHAR(160),ER$1)),FIND(CHAR(160),SUBSTITUTE($J191,\"}\",CHAR(160),ER$1))-FIND(CHAR(160),SUBSTITUTE($J191,\"{\",CHAR(160),ER$1))+1),\"\")","v":""},{"$f":"IFERROR(MID($J191,FIND(CHAR(160),SUBSTITUTE($J191,\"{\",CHAR(160),ES$1)),FIND(CHAR(160),SUBSTITUTE($J191,\"}\",CHAR(160),ES$1))-FIND(CHAR(160),SUBSTITUTE($J191,\"{\",CHAR(160),ES$1))+1),\"\")","v":""},{"$f":"IFERROR(MID($J191,FIND(CHAR(160),SUBSTITUTE($J191,\"{\",CHAR(160),ET$1)),FIND(CHAR(160),SUBSTITUTE($J191,\"}\",CHAR(160),ET$1))-FIND(CHAR(160),SUBSTITUTE($J191,\"{\",CHAR(160),ET$1))+1),\"\")","v":""},{"$f":"IFERROR(MID($J191,FIND(CHAR(160),SUBSTITUTE($J191,\"{\",CHAR(160),EU$1)),FIND(CHAR(160),SUBSTITUTE($J191,\"}\",CHAR(160),EU$1))-FIND(CHAR(160),SUBSTITUTE($J191,\"{\",CHAR(160),EU$1))+1),\"\")","v":""},{"$f":"IFERROR(MID($J191,FIND(CHAR(160),SUBSTITUTE($J191,\"{\",CHAR(160),EV$1)),FIND(CHAR(160),SUBSTITUTE($J191,\"}\",CHAR(160),EV$1))-FIND(CHAR(160),SUBSTITUTE($J191,\"{\",CHAR(160),EV$1))+1),\"\")","v":""},{"$f":"IFERROR(MID($J191,FIND(CHAR(160),SUBSTITUTE($J191,\"{\",CHAR(160),EW$1)),FIND(CHAR(160),SUBSTITUTE($J191,\"}\",CHAR(160),EW$1))-FIND(CHAR(160),SUBSTITUTE($J191,\"{\",CHAR(160),EW$1))+1),\"\")","v":""},{"$f":"IFERROR(MID($J191,FIND(CHAR(160),SUBSTITUTE($J191,\"{\",CHAR(160),EX$1)),FIND(CHAR(160),SUBSTITUTE($J191,\"}\",CHAR(160),EX$1))-FIND(CHAR(160),SUBSTITUTE($J191,\"{\",CHAR(160),EX$1))+1),\"\")","v":""},{"$f":"IFERROR(MID($J191,FIND(CHAR(160),SUBSTITUTE($J191,\"{\",CHAR(160),EY$1)),FIND(CHAR(160),SUBSTITUTE($J191,\"}\",CHAR(160),EY$1))-FIND(CHAR(160),SUBSTITUTE($J191,\"{\",CHAR(160),EY$1))+1),\"\")","v":""},{"$f":"IFERROR(MID($J191,FIND(CHAR(160),SUBSTITUTE($J191,\"{\",CHAR(160),EZ$1)),FIND(CHAR(160),SUBSTITUTE($J191,\"}\",CHAR(160),EZ$1))-FIND(CHAR(160),SUBSTITUTE($J191,\"{\",CHAR(160),EZ$1))+1),\"\")","v":""},{"$f":"IFERROR(MID($J191,FIND(CHAR(160),SUBSTITUTE($J191,\"{\",CHAR(160),FA$1)),FIND(CHAR(160),SUBSTITUTE($J191,\"}\",CHAR(160),FA$1))-FIND(CHAR(160),SUBSTITUTE($J191,\"{\",CHAR(160),FA$1))+1),\"\")","v":""},{"$f":"IFERROR(MID($J191,FIND(CHAR(160),SUBSTITUTE($J191,\"{\",CHAR(160),FB$1)),FIND(CHAR(160),SUBSTITUTE($J191,\"}\",CHAR(160),FB$1))-FIND(CHAR(160),SUBSTITUTE($J191,\"{\",CHAR(160),FB$1))+1),\"\")","v":""},{"$f":"IFERROR(MID($O191,FIND(CHAR(160),SUBSTITUTE($O191,\"{\",CHAR(160),FC$1)),FIND(CHAR(160),SUBSTITUTE($O191,\"}\",CHAR(160),FC$1))-FIND(CHAR(160),SUBSTITUTE($O191,\"{\",CHAR(160),FC$1))+1),\"\")","v":""},{"$f":"IFERROR(MID($O191,FIND(CHAR(160),SUBSTITUTE($O191,\"{\",CHAR(160),FD$1)),FIND(CHAR(160),SUBSTITUTE($O191,\"}\",CHAR(160),FD$1))-FIND(CHAR(160),SUBSTITUTE($O191,\"{\",CHAR(160),FD$1))+1),\"\")","v":""},{"$f":"IFERROR(MID($O191,FIND(CHAR(160),SUBSTITUTE($O191,\"{\",CHAR(160),FE$1)),FIND(CHAR(160),SUBSTITUTE($O191,\"}\",CHAR(160),FE$1))-FIND(CHAR(160),SUBSTITUTE($O191,\"{\",CHAR(160),FE$1))+1),\"\")","v":""},{"$f":"IFERROR(MID($O191,FIND(CHAR(160),SUBSTITUTE($O191,\"{\",CHAR(160),FF$1)),FIND(CHAR(160),SUBSTITUTE($O191,\"}\",CHAR(160),FF$1))-FIND(CHAR(160),SUBSTITUTE($O191,\"{\",CHAR(160),FF$1))+1),\"\")","v":""},{"$f":"IFERROR(MID($O191,FIND(CHAR(160),SUBSTITUTE($O191,\"{\",CHAR(160),FG$1)),FIND(CHAR(160),SUBSTITUTE($O191,\"}\",CHAR(160),FG$1))-FIND(CHAR(160),SUBSTITUTE($O191,\"{\",CHAR(160),FG$1))+1),\"\")","v":""},{"$f":"IFERROR(MID($O191,FIND(CHAR(160),SUBSTITUTE($O191,\"{\",CHAR(160),FH$1)),FIND(CHAR(160),SUBSTITUTE($O191,\"}\",CHAR(160),FH$1))-FIND(CHAR(160),SUBSTITUTE($O191,\"{\",CHAR(160),FH$1))+1),\"\")","v":""},{"$f":"IFERROR(MID($O191,FIND(CHAR(160),SUBSTITUTE($O191,\"{\",CHAR(160),FI$1)),FIND(CHAR(160),SUBSTITUTE($O191,\"}\",CHAR(160),FI$1))-FIND(CHAR(160),SUBSTITUTE($O191,\"{\",CHAR(160),FI$1))+1),\"\")","v":""},{"$f":"IFERROR(MID($O191,FIND(CHAR(160),SUBSTITUTE($O191,\"{\",CHAR(160),FJ$1)),FIND(CHAR(160),SUBSTITUTE($O191,\"}\",CHAR(160),FJ$1))-FIND(CHAR(160),SUBSTITUTE($O191,\"{\",CHAR(160),FJ$1))+1),\"\")","v":""},{"$f":"IFERROR(MID($O191,FIND(CHAR(160),SUBSTITUTE($O191,\"{\",CHAR(160),FK$1)),FIND(CHAR(160),SUBSTITUTE($O191,\"}\",CHAR(160),FK$1))-FIND(CHAR(160),SUBSTITUTE($O191,\"{\",CHAR(160),FK$1))+1),\"\")","v":""},{"$f":"IFERROR(MID($O191,FIND(CHAR(160),SUBSTITUTE($O191,\"{\",CHAR(160),FL$1)),FIND(CHAR(160),SUBSTITUTE($O191,\"}\",CHAR(160),FL$1))-FIND(CHAR(160),SUBSTITUTE($O191,\"{\",CHAR(160),FL$1))+1),\"\")","v":""},{"$f":"IFERROR(MID($R191,FIND(CHAR(160),SUBSTITUTE($R191,\"{\",CHAR(160),FM$1)),FIND(CHAR(160),SUBSTITUTE($R191,\"}\",CHAR(160),FM$1))-FIND(CHAR(160),SUBSTITUTE($R191,\"{\",CHAR(160),FM$1))+1),\"\")","v":""},{"$f":"IFERROR(MID($R191,FIND(CHAR(160),SUBSTITUTE($R191,\"{\",CHAR(160),FN$1)),FIND(CHAR(160),SUBSTITUTE($R191,\"}\",CHAR(160),FN$1))-FIND(CHAR(160),SUBSTITUTE($R191,\"{\",CHAR(160),FN$1))+1),\"\")","v":""},{"$f":"IFERROR(MID($R191,FIND(CHAR(160),SUBSTITUTE($R191,\"{\",CHAR(160),FO$1)),FIND(CHAR(160),SUBSTITUTE($R191,\"}\",CHAR(160),FO$1))-FIND(CHAR(160),SUBSTITUTE($R191,\"{\",CHAR(160),FO$1))+1),\"\")","v":""},{"$f":"IFERROR(MID($R191,FIND(CHAR(160),SUBSTITUTE($R191,\"{\",CHAR(160),FP$1)),FIND(CHAR(160),SUBSTITUTE($R191,\"}\",CHAR(160),FP$1))-FIND(CHAR(160),SUBSTITUTE($R191,\"{\",CHAR(160),FP$1))+1),\"\")","v":""},{"$f":"IFERROR(MID($R191,FIND(CHAR(160),SUBSTITUTE($R191,\"{\",CHAR(160),FQ$1)),FIND(CHAR(160),SUBSTITUTE($R191,\"}\",CHAR(160),FQ$1))-FIND(CHAR(160),SUBSTITUTE($R191,\"{\",CHAR(160),FQ$1))+1),\"\")","v":""},{"$f":"IFERROR(MID($R191,FIND(CHAR(160),SUBSTITUTE($R191,\"{\",CHAR(160),FR$1)),FIND(CHAR(160),SUBSTITUTE($R191,\"}\",CHAR(160),FR$1))-FIND(CHAR(160),SUBSTITUTE($R191,\"{\",CHAR(160),FR$1))+1),\"\")","v":""},{"$f":"IFERROR(MID($R191,FIND(CHAR(160),SUBSTITUTE($R191,\"{\",CHAR(160),FS$1)),FIND(CHAR(160),SUBSTITUTE($R191,\"}\",CHAR(160),FS$1))-FIND(CHAR(160),SUBSTITUTE($R191,\"{\",CHAR(160),FS$1))+1),\"\")","v":""},{"$f":"IFERROR(MID($R191,FIND(CHAR(160),SUBSTITUTE($R191,\"{\",CHAR(160),FT$1)),FIND(CHAR(160),SUBSTITUTE($R191,\"}\",CHAR(160),FT$1))-FIND(CHAR(160),SUBSTITUTE($R191,\"{\",CHAR(160),FT$1))+1),\"\")","v":""},{"$f":"IFERROR(MID($R191,FIND(CHAR(160),SUBSTITUTE($R191,\"{\",CHAR(160),FU$1)),FIND(CHAR(160),SUBSTITUTE($R191,\"}\",CHAR(160),FU$1))-FIND(CHAR(160),SUBSTITUTE($R191,\"{\",CHAR(160),FU$1))+1),\"\")","v":""},{"$f":"IFERROR(MID($R191,FIND(CHAR(160),SUBSTITUTE($R191,\"{\",CHAR(160),FV$1)),FIND(CHAR(160),SUBSTITUTE($R191,\"}\",CHAR(160),FV$1))-FIND(CHAR(160),SUBSTITUTE($R191,\"{\",CHAR(160),FV$1))+1),\"\")","v":""},{"$f":"IFERROR(MID($U191,FIND(CHAR(160),SUBSTITUTE($U191,\"{\",CHAR(160),FW$1)),FIND(CHAR(160),SUBSTITUTE($U191,\"}\",CHAR(160),FW$1))-FIND(CHAR(160),SUBSTITUTE($U191,\"{\",CHAR(160),FW$1))+1),\"\")","v":""},{"$f":"IFERROR(MID($U191,FIND(CHAR(160),SUBSTITUTE($U191,\"{\",CHAR(160),FX$1)),FIND(CHAR(160),SUBSTITUTE($U191,\"}\",CHAR(160),FX$1))-FIND(CHAR(160),SUBSTITUTE($U191,\"{\",CHAR(160),FX$1))+1),\"\")","v":""},{"$f":"IFERROR(MID($U191,FIND(CHAR(160),SUBSTITUTE($U191,\"{\",CHAR(160),FY$1)),FIND(CHAR(160),SUBSTITUTE($U191,\"}\",CHAR(160),FY$1))-FIND(CHAR(160),SUBSTITUTE($U191,\"{\",CHAR(160),FY$1))+1),\"\")","v":""},{"$f":"IFERROR(MID($U191,FIND(CHAR(160),SUBSTITUTE($U191,\"{\",CHAR(160),FZ$1)),FIND(CHAR(160),SUBSTITUTE($U191,\"}\",CHAR(160),FZ$1))-FIND(CHAR(160),SUBSTITUTE($U191,\"{\",CHAR(160),FZ$1))+1),\"\")","v":""},{"$f":"IFERROR(MID($U191,FIND(CHAR(160),SUBSTITUTE($U191,\"{\",CHAR(160),GA$1)),FIND(CHAR(160),SUBSTITUTE($U191,\"}\",CHAR(160),GA$1))-FIND(CHAR(160),SUBSTITUTE($U191,\"{\",CHAR(160),GA$1))+1),\"\")","v":""},{"$f":"IFERROR(MID($U191,FIND(CHAR(160),SUBSTITUTE($U191,\"{\",CHAR(160),GB$1)),FIND(CHAR(160),SUBSTITUTE($U191,\"}\",CHAR(160),GB$1))-FIND(CHAR(160),SUBSTITUTE($U191,\"{\",CHAR(160),GB$1))+1),\"\")","v":""},{"$f":"IFERROR(MID($U191,FIND(CHAR(160),SUBSTITUTE($U191,\"{\",CHAR(160),GC$1)),FIND(CHAR(160),SUBSTITUTE($U191,\"}\",CHAR(160),GC$1))-FIND(CHAR(160),SUBSTITUTE($U191,\"{\",CHAR(160),GC$1))+1),\"\")","v":""},{"$f":"IFERROR(MID($U191,FIND(CHAR(160),SUBSTITUTE($U191,\"{\",CHAR(160),GD$1)),FIND(CHAR(160),SUBSTITUTE($U191,\"}\",CHAR(160),GD$1))-FIND(CHAR(160),SUBSTITUTE($U191,\"{\",CHAR(160),GD$1))+1),\"\")","v":""},{"$f":"IFERROR(MID($U191,FIND(CHAR(160),SUBSTITUTE($U191,\"{\",CHAR(160),GE$1)),FIND(CHAR(160),SUBSTITUTE($U191,\"}\",CHAR(160),GE$1))-FIND(CHAR(160),SUBSTITUTE($U191,\"{\",CHAR(160),GE$1))+1),\"\")","v":""},{"$f":"IFERROR(MID($U191,FIND(CHAR(160),SUBSTITUTE($U191,\"{\",CHAR(160),GF$1)),FIND(CHAR(160),SUBSTITUTE($U191,\"}\",CHAR(160),GF$1))-FIND(CHAR(160),SUBSTITUTE($U191,\"{\",CHAR(160),GF$1))+1),\"\")","v":""},{"$f":"IFERROR(MID($V191,FIND(CHAR(160),SUBSTITUTE($V191,\"{\",CHAR(160),GG$1)),FIND(CHAR(160),SUBSTITUTE($V191,\"}\",CHAR(160),GG$1))-FIND(CHAR(160),SUBSTITUTE($V191,\"{\",CHAR(160),GG$1))+1),\"\")","v":""},{"$f":"IFERROR(MID($V191,FIND(CHAR(160),SUBSTITUTE($V191,\"{\",CHAR(160),GH$1)),FIND(CHAR(160),SUBSTITUTE($V191,\"}\",CHAR(160),GH$1))-FIND(CHAR(160),SUBSTITUTE($V191,\"{\",CHAR(160),GH$1))+1),\"\")","v":""},{"$f":"IFERROR(MID($V191,FIND(CHAR(160),SUBSTITUTE($V191,\"{\",CHAR(160),GI$1)),FIND(CHAR(160),SUBSTITUTE($V191,\"}\",CHAR(160),GI$1))-FIND(CHAR(160),SUBSTITUTE($V191,\"{\",CHAR(160),GI$1))+1),\"\")","v":""},{"$f":"IFERROR(MID($V191,FIND(CHAR(160),SUBSTITUTE($V191,\"{\",CHAR(160),GJ$1)),FIND(CHAR(160),SUBSTITUTE($V191,\"}\",CHAR(160),GJ$1))-FIND(CHAR(160),SUBSTITUTE($V191,\"{\",CHAR(160),GJ$1))+1),\"\")","v":""},{"$f":"IFERROR(MID($V191,FIND(CHAR(160),SUBSTITUTE($V191,\"{\",CHAR(160),GK$1)),FIND(CHAR(160),SUBSTITUTE($V191,\"}\",CHAR(160),GK$1))-FIND(CHAR(160),SUBSTITUTE($V191,\"{\",CHAR(160),GK$1))+1),\"\")","v":""},{"$f":"IFERROR(MID($V191,FIND(CHAR(160),SUBSTITUTE($V191,\"{\",CHAR(160),GL$1)),FIND(CHAR(160),SUBSTITUTE($V191,\"}\",CHAR(160),GL$1))-FIND(CHAR(160),SUBSTITUTE($V191,\"{\",CHAR(160),GL$1))+1),\"\")","v":""},{"$f":"IFERROR(MID($V191,FIND(CHAR(160),SUBSTITUTE($V191,\"{\",CHAR(160),GM$1)),FIND(CHAR(160),SUBSTITUTE($V191,\"}\",CHAR(160),GM$1))-FIND(CHAR(160),SUBSTITUTE($V191,\"{\",CHAR(160),GM$1))+1),\"\")","v":""},{"$f":"IFERROR(MID($V191,FIND(CHAR(160),SUBSTITUTE($V191,\"{\",CHAR(160),GN$1)),FIND(CHAR(160),SUBSTITUTE($V191,\"}\",CHAR(160),GN$1))-FIND(CHAR(160),SUBSTITUTE($V191,\"{\",CHAR(160),GN$1))+1),\"\")","v":""},{"$f":"IFERROR(MID($V191,FIND(CHAR(160),SUBSTITUTE($V191,\"{\",CHAR(160),GO$1)),FIND(CHAR(160),SUBSTITUTE($V191,\"}\",CHAR(160),GO$1))-FIND(CHAR(160),SUBSTITUTE($V191,\"{\",CHAR(160),GO$1))+1),\"\")","v":""},{"$f":"IFERROR(MID($V191,FIND(CHAR(160),SUBSTITUTE($V191,\"{\",CHAR(160),GP$1)),FIND(CHAR(160),SUBSTITUTE($V191,\"}\",CHAR(160),GP$1))-FIND(CHAR(160),SUBSTITUTE($V191,\"{\",CHAR(160),GP$1))+1),\"\")","v":""},{"$f":"IFERROR(MID($W191,FIND(CHAR(160),SUBSTITUTE($W191,\"{\",CHAR(160),GQ$1)),FIND(CHAR(160),SUBSTITUTE($W191,\"}\",CHAR(160),GQ$1))-FIND(CHAR(160),SUBSTITUTE($W191,\"{\",CHAR(160),GQ$1))+1),\"\")","v":""},{"$f":"IFERROR(MID($W191,FIND(CHAR(160),SUBSTITUTE($W191,\"{\",CHAR(160),GR$1)),FIND(CHAR(160),SUBSTITUTE($W191,\"}\",CHAR(160),GR$1))-FIND(CHAR(160),SUBSTITUTE($W191,\"{\",CHAR(160),GR$1))+1),\"\")","v":""},{"$f":"IFERROR(MID($W191,FIND(CHAR(160),SUBSTITUTE($W191,\"{\",CHAR(160),GS$1)),FIND(CHAR(160),SUBSTITUTE($W191,\"}\",CHAR(160),GS$1))-FIND(CHAR(160),SUBSTITUTE($W191,\"{\",CHAR(160),GS$1))+1),\"\")","v":""},{"$f":"IFERROR(MID($W191,FIND(CHAR(160),SUBSTITUTE($W191,\"{\",CHAR(160),GT$1)),FIND(CHAR(160),SUBSTITUTE($W191,\"}\",CHAR(160),GT$1))-FIND(CHAR(160),SUBSTITUTE($W191,\"{\",CHAR(160),GT$1))+1),\"\")","v":""},{"$f":"IFERROR(MID($W191,FIND(CHAR(160),SUBSTITUTE($W191,\"{\",CHAR(160),GU$1)),FIND(CHAR(160),SUBSTITUTE($W191,\"}\",CHAR(160),GU$1))-FIND(CHAR(160),SUBSTITUTE($W191,\"{\",CHAR(160),GU$1))+1),\"\")","v":""},{"$f":"IFERROR(MID($W191,FIND(CHAR(160),SUBSTITUTE($W191,\"{\",CHAR(160),GV$1)),FIND(CHAR(160),SUBSTITUTE($W191,\"}\",CHAR(160),GV$1))-FIND(CHAR(160),SUBSTITUTE($W191,\"{\",CHAR(160),GV$1))+1),\"\")","v":""},{"$f":"IFERROR(MID($W191,FIND(CHAR(160),SUBSTITUTE($W191,\"{\",CHAR(160),GW$1)),FIND(CHAR(160),SUBSTITUTE($W191,\"}\",CHAR(160),GW$1))-FIND(CHAR(160),SUBSTITUTE($W191,\"{\",CHAR(160),GW$1))+1),\"\")","v":""},{"$f":"IFERROR(MID($W191,FIND(CHAR(160),SUBSTITUTE($W191,\"{\",CHAR(160),GX$1)),FIND(CHAR(160),SUBSTITUTE($W191,\"}\",CHAR(160),GX$1))-FIND(CHAR(160),SUBSTITUTE($W191,\"{\",CHAR(160),GX$1))+1),\"\")","v":""},{"$f":"IFERROR(MID($W191,FIND(CHAR(160),SUBSTITUTE($W191,\"{\",CHAR(160),GY$1)),FIND(CHAR(160),SUBSTITUTE($W191,\"}\",CHAR(160),GY$1))-FIND(CHAR(160),SUBSTITUTE($W191,\"{\",CHAR(160),GY$1))+1),\"\")","v":""},{"$f":"IFERROR(MID($W191,FIND(CHAR(160),SUBSTITUTE($W191,\"{\",CHAR(160),GZ$1)),FIND(CHAR(160),SUBSTITUTE($W191,\"}\",CHAR(160),GZ$1))-FIND(CHAR(160),SUBSTITUTE($W191,\"{\",CHAR(160),GZ$1))+1),\"\")","v":""},{"$f":"IFERROR(MID($X191,FIND(CHAR(160),SUBSTITUTE($X191,\"{\",CHAR(160),HA$1)),FIND(CHAR(160),SUBSTITUTE($X191,\"}\",CHAR(160),HA$1))-FIND(CHAR(160),SUBSTITUTE($X191,\"{\",CHAR(160),HA$1))+1),\"\")","v":""},{"$f":"IFERROR(MID($X191,FIND(CHAR(160),SUBSTITUTE($X191,\"{\",CHAR(160),HB$1)),FIND(CHAR(160),SUBSTITUTE($X191,\"}\",CHAR(160),HB$1))-FIND(CHAR(160),SUBSTITUTE($X191,\"{\",CHAR(160),HB$1))+1),\"\")","v":""},{"$f":"IFERROR(MID($X191,FIND(CHAR(160),SUBSTITUTE($X191,\"{\",CHAR(160),HC$1)),FIND(CHAR(160),SUBSTITUTE($X191,\"}\",CHAR(160),HC$1))-FIND(CHAR(160),SUBSTITUTE($X191,\"{\",CHAR(160),HC$1))+1),\"\")","v":""},{"$f":"IFERROR(MID($X191,FIND(CHAR(160),SUBSTITUTE($X191,\"{\",CHAR(160),HD$1)),FIND(CHAR(160),SUBSTITUTE($X191,\"}\",CHAR(160),HD$1))-FIND(CHAR(160),SUBSTITUTE($X191,\"{\",CHAR(160),HD$1))+1),\"\")","v":""},{"$f":"IFERROR(MID($X191,FIND(CHAR(160),SUBSTITUTE($X191,\"{\",CHAR(160),HE$1)),FIND(CHAR(160),SUBSTITUTE($X191,\"}\",CHAR(160),HE$1))-FIND(CHAR(160),SUBSTITUTE($X191,\"{\",CHAR(160),HE$1))+1),\"\")","v":""},{"$f":"IFERROR(MID($X191,FIND(CHAR(160),SUBSTITUTE($X191,\"{\",CHAR(160),HF$1)),FIND(CHAR(160),SUBSTITUTE($X191,\"}\",CHAR(160),HF$1))-FIND(CHAR(160),SUBSTITUTE($X191,\"{\",CHAR(160),HF$1))+1),\"\")","v":""},{"$f":"IFERROR(MID($X191,FIND(CHAR(160),SUBSTITUTE($X191,\"{\",CHAR(160),HG$1)),FIND(CHAR(160),SUBSTITUTE($X191,\"}\",CHAR(160),HG$1))-FIND(CHAR(160),SUBSTITUTE($X191,\"{\",CHAR(160),HG$1))+1),\"\")","v":""},{"$f":"IFERROR(MID($X191,FIND(CHAR(160),SUBSTITUTE($X191,\"{\",CHAR(160),HH$1)),FIND(CHAR(160),SUBSTITUTE($X191,\"}\",CHAR(160),HH$1))-FIND(CHAR(160),SUBSTITUTE($X191,\"{\",CHAR(160),HH$1))+1),\"\")","v":""},{"$f":"IFERROR(MID($X191,FIND(CHAR(160),SUBSTITUTE($X191,\"{\",CHAR(160),HI$1)),FIND(CHAR(160),SUBSTITUTE($X191,\"}\",CHAR(160),HI$1))-FIND(CHAR(160),SUBSTITUTE($X191,\"{\",CHAR(160),HI$1))+1),\"\")","v":""},{"$f":"IFERROR(MID($X191,FIND(CHAR(160),SUBSTITUTE($X191,\"{\",CHAR(160),HJ$1)),FIND(CHAR(160),SUBSTITUTE($X191,\"}\",CHAR(160),HJ$1))-FIND(CHAR(160),SUBSTITUTE($X191,\"{\",CHAR(160),HJ$1))+1),\"\")","v":""},{"$f":"IFERROR(MID($Y191,FIND(CHAR(160),SUBSTITUTE($Y191,\"{\",CHAR(160),HK$1)),FIND(CHAR(160),SUBSTITUTE($Y191,\"}\",CHAR(160),HK$1))-FIND(CHAR(160),SUBSTITUTE($Y191,\"{\",CHAR(160),HK$1))+1),\"\")","v":""},{"$f":"IFERROR(MID($Y191,FIND(CHAR(160),SUBSTITUTE($Y191,\"{\",CHAR(160),HL$1)),FIND(CHAR(160),SUBSTITUTE($Y191,\"}\",CHAR(160),HL$1))-FIND(CHAR(160),SUBSTITUTE($Y191,\"{\",CHAR(160),HL$1))+1),\"\")","v":""},{"$f":"IFERROR(MID($Y191,FIND(CHAR(160),SUBSTITUTE($Y191,\"{\",CHAR(160),HM$1)),FIND(CHAR(160),SUBSTITUTE($Y191,\"}\",CHAR(160),HM$1))-FIND(CHAR(160),SUBSTITUTE($Y191,\"{\",CHAR(160),HM$1))+1),\"\")","v":""},{"$f":"IFERROR(MID($Y191,FIND(CHAR(160),SUBSTITUTE($Y191,\"{\",CHAR(160),HN$1)),FIND(CHAR(160),SUBSTITUTE($Y191,\"}\",CHAR(160),HN$1))-FIND(CHAR(160),SUBSTITUTE($Y191,\"{\",CHAR(160),HN$1))+1),\"\")","v":""},{"$f":"IFERROR(MID($Y191,FIND(CHAR(160),SUBSTITUTE($Y191,\"{\",CHAR(160),HO$1)),FIND(CHAR(160),SUBSTITUTE($Y191,\"}\",CHAR(160),HO$1))-FIND(CHAR(160),SUBSTITUTE($Y191,\"{\",CHAR(160),HO$1))+1),\"\")","v":""},{"$f":"IFERROR(MID($Y191,FIND(CHAR(160),SUBSTITUTE($Y191,\"{\",CHAR(160),HP$1)),FIND(CHAR(160),SUBSTITUTE($Y191,\"}\",CHAR(160),HP$1))-FIND(CHAR(160),SUBSTITUTE($Y191,\"{\",CHAR(160),HP$1))+1),\"\")","v":""},{"$f":"IFERROR(MID($Y191,FIND(CHAR(160),SUBSTITUTE($Y191,\"{\",CHAR(160),HQ$1)),FIND(CHAR(160),SUBSTITUTE($Y191,\"}\",CHAR(160),HQ$1))-FIND(CHAR(160),SUBSTITUTE($Y191,\"{\",CHAR(160),HQ$1))+1),\"\")","v":""},{"$f":"IFERROR(MID($Y191,FIND(CHAR(160),SUBSTITUTE($Y191,\"{\",CHAR(160),HR$1)),FIND(CHAR(160),SUBSTITUTE($Y191,\"}\",CHAR(160),HR$1))-FIND(CHAR(160),SUBSTITUTE($Y191,\"{\",CHAR(160),HR$1))+1),\"\")","v":""},{"$f":"IFERROR(MID($Y191,FIND(CHAR(160),SUBSTITUTE($Y191,\"{\",CHAR(160),HS$1)),FIND(CHAR(160),SUBSTITUTE($Y191,\"}\",CHAR(160),HS$1))-FIND(CHAR(160),SUBSTITUTE($Y191,\"{\",CHAR(160),HS$1))+1),\"\")","v":""},{"$f":"IFERROR(MID($Y191,FIND(CHAR(160),SUBSTITUTE($Y191,\"{\",CHAR(160),HT$1)),FIND(CHAR(160),SUBSTITUTE($Y191,\"}\",CHAR(160),HT$1))-FIND(CHAR(160),SUBSTITUTE($Y191,\"{\",CHAR(160),HT$1))+1),\"\")","v":""},{"$f":"IFERROR(MID($Z191,FIND(CHAR(160),SUBSTITUTE($Z191,\"{\",CHAR(160),HU$1)),FIND(CHAR(160),SUBSTITUTE($Z191,\"}\",CHAR(160),HU$1))-FIND(CHAR(160),SUBSTITUTE($Z191,\"{\",CHAR(160),HU$1))+1),\"\")","v":""},{"$f":"IFERROR(MID($Z191,FIND(CHAR(160),SUBSTITUTE($Z191,\"{\",CHAR(160),HV$1)),FIND(CHAR(160),SUBSTITUTE($Z191,\"}\",CHAR(160),HV$1))-FIND(CHAR(160),SUBSTITUTE($Z191,\"{\",CHAR(160),HV$1))+1),\"\")","v":""},{"$f":"IFERROR(MID($Z191,FIND(CHAR(160),SUBSTITUTE($Z191,\"{\",CHAR(160),HW$1)),FIND(CHAR(160),SUBSTITUTE($Z191,\"}\",CHAR(160),HW$1))-FIND(CHAR(160),SUBSTITUTE($Z191,\"{\",CHAR(160),HW$1))+1),\"\")","v":""},{"$f":"IFERROR(MID($Z191,FIND(CHAR(160),SUBSTITUTE($Z191,\"{\",CHAR(160),HX$1)),FIND(CHAR(160),SUBSTITUTE($Z191,\"}\",CHAR(160),HX$1))-FIND(CHAR(160),SUBSTITUTE($Z191,\"{\",CHAR(160),HX$1))+1),\"\")","v":""},{"$f":"IFERROR(MID($Z191,FIND(CHAR(160),SUBSTITUTE($Z191,\"{\",CHAR(160),HY$1)),FIND(CHAR(160),SUBSTITUTE($Z191,\"}\",CHAR(160),HY$1))-FIND(CHAR(160),SUBSTITUTE($Z191,\"{\",CHAR(160),HY$1))+1),\"\")","v":""},{"$f":"IFERROR(MID($Z191,FIND(CHAR(160),SUBSTITUTE($Z191,\"{\",CHAR(160),HZ$1)),FIND(CHAR(160),SUBSTITUTE($Z191,\"}\",CHAR(160),HZ$1))-FIND(CHAR(160),SUBSTITUTE($Z191,\"{\",CHAR(160),HZ$1))+1),\"\")","v":""},{"$f":"IFERROR(MID($Z191,FIND(CHAR(160),SUBSTITUTE($Z191,\"{\",CHAR(160),IA$1)),FIND(CHAR(160),SUBSTITUTE($Z191,\"}\",CHAR(160),IA$1))-FIND(CHAR(160),SUBSTITUTE($Z191,\"{\",CHAR(160),IA$1))+1),\"\")","v":""},{"$f":"IFERROR(MID($Z191,FIND(CHAR(160),SUBSTITUTE($Z191,\"{\",CHAR(160),IB$1)),FIND(CHAR(160),SUBSTITUTE($Z191,\"}\",CHAR(160),IB$1))-FIND(CHAR(160),SUBSTITUTE($Z191,\"{\",CHAR(160),IB$1))+1),\"\")","v":""},{"$f":"IFERROR(MID($Z191,FIND(CHAR(160),SUBSTITUTE($Z191,\"{\",CHAR(160),IC$1)),FIND(CHAR(160),SUBSTITUTE($Z191,\"}\",CHAR(160),IC$1))-FIND(CHAR(160),SUBSTITUTE($Z191,\"{\",CHAR(160),IC$1))+1),\"\")","v":""},{"$f":"IFERROR(MID($Z191,FIND(CHAR(160),SUBSTITUTE($Z191,\"{\",CHAR(160),ID$1)),FIND(CHAR(160),SUBSTITUTE($Z191,\"}\",CHAR(160),ID$1))-FIND(CHAR(160),SUBSTITUTE($Z191,\"{\",CHAR(160),ID$1))+1),\"\")","v":""},{"$f":"IFERROR(MID($AA191,FIND(CHAR(160),SUBSTITUTE($AA191,\"{\",CHAR(160),IE$1)),FIND(CHAR(160),SUBSTITUTE($AA191,\"}\",CHAR(160),IE$1))-FIND(CHAR(160),SUBSTITUTE($AA191,\"{\",CHAR(160),IE$1))+1),\"\")","v":""},{"$f":"IFERROR(MID($AA191,FIND(CHAR(160),SUBSTITUTE($AA191,\"{\",CHAR(160),IF$1)),FIND(CHAR(160),SUBSTITUTE($AA191,\"}\",CHAR(160),IF$1))-FIND(CHAR(160),SUBSTITUTE($AA191,\"{\",CHAR(160),IF$1))+1),\"\")","v":""},{"$f":"IFERROR(MID($AA191,FIND(CHAR(160),SUBSTITUTE($AA191,\"{\",CHAR(160),IG$1)),FIND(CHAR(160),SUBSTITUTE($AA191,\"}\",CHAR(160),IG$1))-FIND(CHAR(160),SUBSTITUTE($AA191,\"{\",CHAR(160),IG$1))+1),\"\")","v":""},{"$f":"IFERROR(MID($AA191,FIND(CHAR(160),SUBSTITUTE($AA191,\"{\",CHAR(160),IH$1)),FIND(CHAR(160),SUBSTITUTE($AA191,\"}\",CHAR(160),IH$1))-FIND(CHAR(160),SUBSTITUTE($AA191,\"{\",CHAR(160),IH$1))+1),\"\")","v":""},{"$f":"IFERROR(MID($AA191,FIND(CHAR(160),SUBSTITUTE($AA191,\"{\",CHAR(160),II$1)),FIND(CHAR(160),SUBSTITUTE($AA191,\"}\",CHAR(160),II$1))-FIND(CHAR(160),SUBSTITUTE($AA191,\"{\",CHAR(160),II$1))+1),\"\")","v":""},{"$f":"IFERROR(MID($AA191,FIND(CHAR(160),SUBSTITUTE($AA191,\"{\",CHAR(160),IJ$1)),FIND(CHAR(160),SUBSTITUTE($AA191,\"}\",CHAR(160),IJ$1))-FIND(CHAR(160),SUBSTITUTE($AA191,\"{\",CHAR(160),IJ$1))+1),\"\")","v":""},{"$f":"IFERROR(MID($AA191,FIND(CHAR(160),SUBSTITUTE($AA191,\"{\",CHAR(160),IK$1)),FIND(CHAR(160),SUBSTITUTE($AA191,\"}\",CHAR(160),IK$1))-FIND(CHAR(160),SUBSTITUTE($AA191,\"{\",CHAR(160),IK$1))+1),\"\")","v":""},{"$f":"IFERROR(MID($AA191,FIND(CHAR(160),SUBSTITUTE($AA191,\"{\",CHAR(160),IL$1)),FIND(CHAR(160),SUBSTITUTE($AA191,\"}\",CHAR(160),IL$1))-FIND(CHAR(160),SUBSTITUTE($AA191,\"{\",CHAR(160),IL$1))+1),\"\")","v":""},{"$f":"IFERROR(MID($AA191,FIND(CHAR(160),SUBSTITUTE($AA191,\"{\",CHAR(160),IM$1)),FIND(CHAR(160),SUBSTITUTE($AA191,\"}\",CHAR(160),IM$1))-FIND(CHAR(160),SUBSTITUTE($AA191,\"{\",CHAR(160),IM$1))+1),\"\")","v":""},{"$f":"IFERROR(MID($AA191,FIND(CHAR(160),SUBSTITUTE($AA191,\"{\",CHAR(160),IN$1)),FIND(CHAR(160),SUBSTITUTE($AA191,\"}\",CHAR(160),IN$1))-FIND(CHAR(160),SUBSTITUTE($AA191,\"{\",CHAR(160),IN$1))+1),\"\")","v":""},{"$f":"IFERROR(MID($AB191,FIND(CHAR(160),SUBSTITUTE($AB191,\"{\",CHAR(160),IO$1)),FIND(CHAR(160),SUBSTITUTE($AB191,\"}\",CHAR(160),IO$1))-FIND(CHAR(160),SUBSTITUTE($AB191,\"{\",CHAR(160),IO$1))+1),\"\")","v":""},{"$f":"IFERROR(MID($AB191,FIND(CHAR(160),SUBSTITUTE($AB191,\"{\",CHAR(160),IP$1)),FIND(CHAR(160),SUBSTITUTE($AB191,\"}\",CHAR(160),IP$1))-FIND(CHAR(160),SUBSTITUTE($AB191,\"{\",CHAR(160),IP$1))+1),\"\")","v":""},{"$f":"IFERROR(MID($AB191,FIND(CHAR(160),SUBSTITUTE($AB191,\"{\",CHAR(160),IQ$1)),FIND(CHAR(160),SUBSTITUTE($AB191,\"}\",CHAR(160),IQ$1))-FIND(CHAR(160),SUBSTITUTE($AB191,\"{\",CHAR(160),IQ$1))+1),\"\")","v":""},{"$f":"IFERROR(MID($AB191,FIND(CHAR(160),SUBSTITUTE($AB191,\"{\",CHAR(160),IR$1)),FIND(CHAR(160),SUBSTITUTE($AB191,\"}\",CHAR(160),IR$1))-FIND(CHAR(160),SUBSTITUTE($AB191,\"{\",CHAR(160),IR$1))+1),\"\")","v":""},{"$f":"IFERROR(MID($AB191,FIND(CHAR(160),SUBSTITUTE($AB191,\"{\",CHAR(160),IS$1)),FIND(CHAR(160),SUBSTITUTE($AB191,\"}\",CHAR(160),IS$1))-FIND(CHAR(160),SUBSTITUTE($AB191,\"{\",CHAR(160),IS$1))+1),\"\")","v":""},{"$f":"IFERROR(MID($AB191,FIND(CHAR(160),SUBSTITUTE($AB191,\"{\",CHAR(160),IT$1)),FIND(CHAR(160),SUBSTITUTE($AB191,\"}\",CHAR(160),IT$1))-FIND(CHAR(160),SUBSTITUTE($AB191,\"{\",CHAR(160),IT$1))+1),\"\")","v":""},{"$f":"IFERROR(MID($AB191,FIND(CHAR(160),SUBSTITUTE($AB191,\"{\",CHAR(160),IU$1)),FIND(CHAR(160),SUBSTITUTE($AB191,\"}\",CHAR(160),IU$1))-FIND(CHAR(160),SUBSTITUTE($AB191,\"{\",CHAR(160),IU$1))+1),\"\")","v":""},{"$f":"IFERROR(MID($AB191,FIND(CHAR(160),SUBSTITUTE($AB191,\"{\",CHAR(160),IV$1)),FIND(CHAR(160),SUBSTITUTE($AB191,\"}\",CHAR(160),IV$1))-FIND(CHAR(160),SUBSTITUTE($AB191,\"{\",CHAR(160),IV$1))+1),\"\")","v":""},{"$f":"IFERROR(MID($AB191,FIND(CHAR(160),SUBSTITUTE($AB191,\"{\",CHAR(160),IW$1)),FIND(CHAR(160),SUBSTITUTE($AB191,\"}\",CHAR(160),IW$1))-FIND(CHAR(160),SUBSTITUTE($AB191,\"{\",CHAR(160),IW$1))+1),\"\")","v":""},{"$f":"IFERROR(MID($AB191,FIND(CHAR(160),SUBSTITUTE($AB191,\"{\",CHAR(160),IX$1)),FIND(CHAR(160),SUBSTITUTE($AB191,\"}\",CHAR(160),IX$1))-FIND(CHAR(160),SUBSTITUTE($AB191,\"{\",CHAR(160),IX$1))+1),\"\")","v":""},null,{"$f":"10-COUNTIF(DU191:ED191,\"\")","v":0}]
["E.V. Accelerator ","Plug-In Hybrid Electric Vehicle","PHEV","2021-07-01","2022-06-30","Per Measure",8817,0,"Manual Entry",0,0,"2020-07-01","2022-06-30","Per Measure",-2224,null,null,-0.12,null,null,-3.2000000000000001E-2,-8.2000000000000003E-2,0,0,0,0,0,48.09,"2020-07-01","2022-06-30",14,1,1,0.03,7.0000000000000007E-2,0.24,0.66,1,1,1,0.25,0,null,"Annual ME VMT",11895,"kWh/100 miles PHEV",34,"Gas MPG",22,"% Battery",0.55000000000000004,"PHEV MPG",38,null,null,null,null,null,null,null,null,null,null,{"$f":"-2224","v":-2224},0,0,{"$f":"-0.12","v":-0.12},0,0,{"$f":"-0.032","v":-3.2000000000000001E-2},{"$f":"-0.082","v":-8.2000000000000003E-2},{"$f":"0","v":0},{"$f":"0","v":0},{"$f":"0","v":0},{"$f":"0","v":0},{"$f":"0","v":0},0,{"$f":"$AS192/$AW192*120286/1000000-$AS192/$BA192*120286/1000000*(1-$AY192)","v":48.092745642344489},"Res","Default DR",{"$f":"Benefits(BL192,BR192,BS192,BT192,BU192,BV192,BW192,BX192,BY192,BZ192,AE192,AH192,AI192,AJ192,AK192,AL192,AM192,AN192,AO192,AP192,CA192,CB192)","v":-2595.3667283697409},-259.87935354885872,0,0,0,0,0,0,17912.72127032248,{"$f":"SUMPRODUCT(CC192:CK192,--(CC192:CK192>0))","v":17912.72127032248},{"$f":"-SUMPRODUCT(CC192:CK192,--(CC192:CK192<0))","v":2855.2460819185999},null,{"$f":"8817","v":8817},null,null,{"$f":"CM192+CO192","v":11672.2460819186},{"$f":"IF(NetOrGross=\"Net\",(1-AO192+AP192),1)","v":1},{"$f":"(SUMPRODUCT(CC192:CK192,--(CC192:CK192>0))+CN192)*CS192/((-SUMPRODUCT(CC192:CK192,--(CC192:CK192<0))+MAX(CO192,CV192)+CP192+CQ192)*CS192+IF(FRIncentives=\"Yes\",CV192*(1-CS192),0))","v":1.5346421883677521},null,null,null,null,"y",null,{"$f":"IF(F192=\"Manual Entry\",\"Manual\",IF(G192=\"\",0,\"X=\"&SUBSTITUTE(SUBSTITUTE(SUBSTITUTE(SUBSTITUTE(SUBSTITUTE(SUBSTITUTE(SUBSTITUTE(SUBSTITUTE(SUBSTITUTE(SUBSTITUTE(SUBSTITUTE(SUBSTITUTE(G192,$ED192,$ED$2&ROW($ED192)),$EC192,$EC$2&ROW($EC192)),$EB192,$EB$2&ROW($EB192)),$EA192,$EA$2&ROW($EA192)),$DZ192,$DZ$2&ROW($DZ192)),$DY192,$DY$2&ROW($DY192)),$DX192,$DX$2&ROW($DX192)),$DW192,$DW$2&ROW($DW192)),$DV192,$DV$2&ROW($DV192)),$DU192,$DU$2&ROW($DU192)),$DT192,$DT$2&ROW($DT192)),$DS192,$DS$2&ROW($DS192))))","v":"X=8817"},{"$f":"IF(I192=\"Manual Entry\",\"Manual\",IF(J192=\"\",0,\"X=\"&SUBSTITUTE(SUBSTITUTE(SUBSTITUTE(SUBSTITUTE(SUBSTITUTE(SUBSTITUTE(SUBSTITUTE(SUBSTITUTE(SUBSTITUTE(SUBSTITUTE(SUBSTITUTE(SUBSTITUTE(J192,$ED192,$ED$2&ROW($ED192)),$EC192,$EC$2&ROW($EC192)),$EB192,$EB$2&ROW($EB192)),$EA192,$EA$2&ROW($EA192)),$DZ192,$DZ$2&ROW($DZ192)),$DY192,$DY$2&ROW($DY192)),$DX192,$DX$2&ROW($DX192)),$DW192,$DW$2&ROW($DW192)),$DV192,$DV$2&ROW($DV192)),$DU192,$DU$2&ROW($DU192)),$DT192,$DT$2&ROW($DT192)),$DS192,$DS$2&ROW($DS192))))","v":"Manual"},{"$f":"IF(O192=\"\",0,\"X=\"&SUBSTITUTE(SUBSTITUTE(SUBSTITUTE(SUBSTITUTE(SUBSTITUTE(SUBSTITUTE(SUBSTITUTE(SUBSTITUTE(SUBSTITUTE(SUBSTITUTE(SUBSTITUTE(SUBSTITUTE(O192,$ED192,$ED$2&ROW($ED192)),$EC192,$EC$2&ROW($EC192)),$EB192,$EB$2&ROW($EB192)),$EA192,$EA$2&ROW($EA192)),$DZ192,$DZ$2&ROW($DZ192)),$DY192,$DY$2&ROW($DY192)),$DX192,$DX$2&ROW($DX192)),$DW192,$DW$2&ROW($DW192)),$DV192,$DV$2&ROW($DV192)),$DU192,$DU$2&ROW($DU192)),$DT192,$DT$2&ROW($DT192)),$DS192,$DS$2&ROW($DS192)))","v":"X=-2224"},{"$f":"IF(P192=\"\",0,\"X=\"&SUBSTITUTE(SUBSTITUTE(SUBSTITUTE(SUBSTITUTE(SUBSTITUTE(SUBSTITUTE(SUBSTITUTE(SUBSTITUTE(SUBSTITUTE(SUBSTITUTE(SUBSTITUTE(SUBSTITUTE(P192,$ED192,$ED$2&ROW($ED192)),$EC192,$EC$2&ROW($EC192)),$EB192,$EB$2&ROW($EB192)),$EA192,$EA$2&ROW($EA192)),$DZ192,$DZ$2&ROW($DZ192)),$DY192,$DY$2&ROW($DY192)),$DX192,$DX$2&ROW($DX192)),$DW192,$DW$2&ROW($DW192)),$DV192,$DV$2&ROW($DV192)),$DU192,$DU$2&ROW($DU192)),$DT192,$DT$2&ROW($DT192)),$DS192,$DS$2&ROW($DS192)))","v":0},{"$f":"IF(Q192=\"\",0,\"X=\"&SUBSTITUTE(SUBSTITUTE(SUBSTITUTE(SUBSTITUTE(SUBSTITUTE(SUBSTITUTE(SUBSTITUTE(SUBSTITUTE(SUBSTITUTE(SUBSTITUTE(SUBSTITUTE(SUBSTITUTE(Q192,$ED192,$ED$2&ROW($ED192)),$EC192,$EC$2&ROW($EC192)),$EB192,$EB$2&ROW($EB192)),$EA192,$EA$2&ROW($EA192)),$DZ192,$DZ$2&ROW($DZ192)),$DY192,$DY$2&ROW($DY192)),$DX192,$DX$2&ROW($DX192)),$DW192,$DW$2&ROW($DW192)),$DV192,$DV$2&ROW($DV192)),$DU192,$DU$2&ROW($DU192)),$DT192,$DT$2&ROW($DT192)),$DS192,$DS$2&ROW($DS192)))","v":0},{"$f":"IF(R192=\"\",0,\"X=\"&SUBSTITUTE(SUBSTITUTE(SUBSTITUTE(SUBSTITUTE(SUBSTITUTE(SUBSTITUTE(SUBSTITUTE(SUBSTITUTE(SUBSTITUTE(SUBSTITUTE(SUBSTITUTE(SUBSTITUTE(R192,$ED192,$ED$2&ROW($ED192)),$EC192,$EC$2&ROW($EC192)),$EB192,$EB$2&ROW($EB192)),$EA192,$EA$2&ROW($EA192)),$DZ192,$DZ$2&ROW($DZ192)),$DY192,$DY$2&ROW($DY192)),$DX192,$DX$2&ROW($DX192)),$DW192,$DW$2&ROW($DW192)),$DV192,$DV$2&ROW($DV192)),$DU192,$DU$2&ROW($DU192)),$DT192,$DT$2&ROW($DT192)),$DS192,$DS$2&ROW($DS192)))","v":"X=-0.12"},{"$f":"IF(S192=\"\",0,\"X=\"&SUBSTITUTE(SUBSTITUTE(SUBSTITUTE(SUBSTITUTE(SUBSTITUTE(SUBSTITUTE(SUBSTITUTE(SUBSTITUTE(SUBSTITUTE(SUBSTITUTE(SUBSTITUTE(SUBSTITUTE(S192,$ED192,$ED$2&ROW($ED192)),$EC192,$EC$2&ROW($EC192)),$EB192,$EB$2&ROW($EB192)),$EA192,$EA$2&ROW($EA192)),$DZ192,$DZ$2&ROW($DZ192)),$DY192,$DY$2&ROW($DY192)),$DX192,$DX$2&ROW($DX192)),$DW192,$DW$2&ROW($DW192)),$DV192,$DV$2&ROW($DV192)),$DU192,$DU$2&ROW($DU192)),$DT192,$DT$2&ROW($DT192)),$DS192,$DS$2&ROW($DS192)))","v":0},{"$f":"IF(T192=\"\",0,\"X=\"&SUBSTITUTE(SUBSTITUTE(SUBSTITUTE(SUBSTITUTE(SUBSTITUTE(SUBSTITUTE(SUBSTITUTE(SUBSTITUTE(SUBSTITUTE(SUBSTITUTE(SUBSTITUTE(SUBSTITUTE(T192,$ED192,$ED$2&ROW($ED192)),$EC192,$EC$2&ROW($EC192)),$EB192,$EB$2&ROW($EB192)),$EA192,$EA$2&ROW($EA192)),$DZ192,$DZ$2&ROW($DZ192)),$DY192,$DY$2&ROW($DY192)),$DX192,$DX$2&ROW($DX192)),$DW192,$DW$2&ROW($DW192)),$DV192,$DV$2&ROW($DV192)),$DU192,$DU$2&ROW($DU192)),$DT192,$DT$2&ROW($DT192)),$DS192,$DS$2&ROW($DS192)))","v":0},{"$f":"IF(U192=\"\",0,\"X=\"&SUBSTITUTE(SUBSTITUTE(SUBSTITUTE(SUBSTITUTE(SUBSTITUTE(SUBSTITUTE(SUBSTITUTE(SUBSTITUTE(SUBSTITUTE(SUBSTITUTE(SUBSTITUTE(SUBSTITUTE(U192,$ED192,$ED$2&ROW($ED192)),$EC192,$EC$2&ROW($EC192)),$EB192,$EB$2&ROW($EB192)),$EA192,$EA$2&ROW($EA192)),$DZ192,$DZ$2&ROW($DZ192)),$DY192,$DY$2&ROW($DY192)),$DX192,$DX$2&ROW($DX192)),$DW192,$DW$2&ROW($DW192)),$DV192,$DV$2&ROW($DV192)),$DU192,$DU$2&ROW($DU192)),$DT192,$DT$2&ROW($DT192)),$DS192,$DS$2&ROW($DS192)))","v":"X=-0.032"},{"$f":"IF(V192=\"\",0,\"X=\"&SUBSTITUTE(SUBSTITUTE(SUBSTITUTE(SUBSTITUTE(SUBSTITUTE(SUBSTITUTE(SUBSTITUTE(SUBSTITUTE(SUBSTITUTE(SUBSTITUTE(SUBSTITUTE(SUBSTITUTE(V192,$ED192,$ED$2&ROW($ED192)),$EC192,$EC$2&ROW($EC192)),$EB192,$EB$2&ROW($EB192)),$EA192,$EA$2&ROW($EA192)),$DZ192,$DZ$2&ROW($DZ192)),$DY192,$DY$2&ROW($DY192)),$DX192,$DX$2&ROW($DX192)),$DW192,$DW$2&ROW($DW192)),$DV192,$DV$2&ROW($DV192)),$DU192,$DU$2&ROW($DU192)),$DT192,$DT$2&ROW($DT192)),$DS192,$DS$2&ROW($DS192)))","v":"X=-0.082"},{"$f":"IF(W192=\"\",0,\"X=\"&SUBSTITUTE(SUBSTITUTE(SUBSTITUTE(SUBSTITUTE(SUBSTITUTE(SUBSTITUTE(SUBSTITUTE(SUBSTITUTE(SUBSTITUTE(SUBSTITUTE(SUBSTITUTE(SUBSTITUTE(W192,$ED192,$ED$2&ROW($ED192)),$EC192,$EC$2&ROW($EC192)),$EB192,$EB$2&ROW($EB192)),$EA192,$EA$2&ROW($EA192)),$DZ192,$DZ$2&ROW($DZ192)),$DY192,$DY$2&ROW($DY192)),$DX192,$DX$2&ROW($DX192)),$DW192,$DW$2&ROW($DW192)),$DV192,$DV$2&ROW($DV192)),$DU192,$DU$2&ROW($DU192)),$DT192,$DT$2&ROW($DT192)),$DS192,$DS$2&ROW($DS192)))","v":"X=0"},{"$f":"IF(X192=\"\",0,\"X=\"&SUBSTITUTE(SUBSTITUTE(SUBSTITUTE(SUBSTITUTE(SUBSTITUTE(SUBSTITUTE(SUBSTITUTE(SUBSTITUTE(SUBSTITUTE(SUBSTITUTE(SUBSTITUTE(SUBSTITUTE(X192,$ED192,$ED$2&ROW($ED192)),$EC192,$EC$2&ROW($EC192)),$EB192,$EB$2&ROW($EB192)),$EA192,$EA$2&ROW($EA192)),$DZ192,$DZ$2&ROW($DZ192)),$DY192,$DY$2&ROW($DY192)),$DX192,$DX$2&ROW($DX192)),$DW192,$DW$2&ROW($DW192)),$DV192,$DV$2&ROW($DV192)),$DU192,$DU$2&ROW($DU192)),$DT192,$DT$2&ROW($DT192)),$DS192,$DS$2&ROW($DS192)))","v":"X=0"},{"$f":"IF(Y192=\"\",0,\"X=\"&SUBSTITUTE(SUBSTITUTE(SUBSTITUTE(SUBSTITUTE(SUBSTITUTE(SUBSTITUTE(SUBSTITUTE(SUBSTITUTE(SUBSTITUTE(SUBSTITUTE(SUBSTITUTE(SUBSTITUTE(Y192,$ED192,$ED$2&ROW($ED192)),$EC192,$EC$2&ROW($EC192)),$EB192,$EB$2&ROW($EB192)),$EA192,$EA$2&ROW($EA192)),$DZ192,$DZ$2&ROW($DZ192)),$DY192,$DY$2&ROW($DY192)),$DX192,$DX$2&ROW($DX192)),$DW192,$DW$2&ROW($DW192)),$DV192,$DV$2&ROW($DV192)),$DU192,$DU$2&ROW($DU192)),$DT192,$DT$2&ROW($DT192)),$DS192,$DS$2&ROW($DS192)))","v":"X=0"},{"$f":"IF(Z192=\"\",0,\"X=\"&SUBSTITUTE(SUBSTITUTE(SUBSTITUTE(SUBSTITUTE(SUBSTITUTE(SUBSTITUTE(SUBSTITUTE(SUBSTITUTE(SUBSTITUTE(SUBSTITUTE(SUBSTITUTE(SUBSTITUTE(Z192,$ED192,$ED$2&ROW($ED192)),$EC192,$EC$2&ROW($EC192)),$EB192,$EB$2&ROW($EB192)),$EA192,$EA$2&ROW($EA192)),$DZ192,$DZ$2&ROW($DZ192)),$DY192,$DY$2&ROW($DY192)),$DX192,$DX$2&ROW($DX192)),$DW192,$DW$2&ROW($DW192)),$DV192,$DV$2&ROW($DV192)),$DU192,$DU$2&ROW($DU192)),$DT192,$DT$2&ROW($DT192)),$DS192,$DS$2&ROW($DS192)))","v":"X=0"},{"$f":"IF(AA192=\"\",0,\"X=\"&SUBSTITUTE(SUBSTITUTE(SUBSTITUTE(SUBSTITUTE(SUBSTITUTE(SUBSTITUTE(SUBSTITUTE(SUBSTITUTE(SUBSTITUTE(SUBSTITUTE(SUBSTITUTE(SUBSTITUTE(AA192,$ED192,$ED$2&ROW($ED192)),$EC192,$EC$2&ROW($EC192)),$EB192,$EB$2&ROW($EB192)),$EA192,$EA$2&ROW($EA192)),$DZ192,$DZ$2&ROW($DZ192)),$DY192,$DY$2&ROW($DY192)),$DX192,$DX$2&ROW($DX192)),$DW192,$DW$2&ROW($DW192)),$DV192,$DV$2&ROW($DV192)),$DU192,$DU$2&ROW($DU192)),$DT192,$DT$2&ROW($DT192)),$DS192,$DS$2&ROW($DS192)))","v":"X=0"},{"$f":"IF(AB192=\"\",0,\"X=\"&SUBSTITUTE(SUBSTITUTE(SUBSTITUTE(SUBSTITUTE(SUBSTITUTE(SUBSTITUTE(SUBSTITUTE(SUBSTITUTE(SUBSTITUTE(SUBSTITUTE(SUBSTITUTE(SUBSTITUTE(AB192,$ED192,$ED$2&ROW($ED192)),$EC192,$EC$2&ROW($EC192)),$EB192,$EB$2&ROW($EB192)),$EA192,$EA$2&ROW($EA192)),$DZ192,$DZ$2&ROW($DZ192)),$DY192,$DY$2&ROW($DY192)),$DX192,$DX$2&ROW($DX192)),$DW192,$DW$2&ROW($DW192)),$DV192,$DV$2&ROW($DV192)),$DU192,$DU$2&ROW($DU192)),$DT192,$DT$2&ROW($DT192)),$DS192,$DS$2&ROW($DS192)))","v":"X=48.09"},null,null,"{Factor:WinterCF}","{Factor:SummerCF}",{"$f":"IFERROR(INDEX($EG192:$IV192,MATCH(0,COUNTIF($DR192:DT192,$EG192:$IV192),0)),\"\")","v":""},{"$f":"IFERROR(INDEX($EG192:$IV192,MATCH(0,COUNTIF($DR192:DU192,$EG192:$IV192),0)),\"\")","v":""},{"$f":"IFERROR(INDEX($EG192:$IV192,MATCH(0,COUNTIF($DR192:DV192,$EG192:$IV192),0)),\"\")","v":""},{"$f":"IFERROR(INDEX($EG192:$IV192,MATCH(0,COUNTIF($DR192:DW192,$EG192:$IV192),0)),\"\")","v":""},{"$f":"IFERROR(INDEX($EG192:$IV192,MATCH(0,COUNTIF($DR192:DX192,$EG192:$IV192),0)),\"\")","v":""},{"$f":"IFERROR(INDEX($EG192:$IV192,MATCH(0,COUNTIF($DR192:DY192,$EG192:$IV192),0)),\"\")","v":""},{"$f":"IFERROR(INDEX($EG192:$IV192,MATCH(0,COUNTIF($DR192:DZ192,$EG192:$IV192),0)),\"\")","v":""},{"$f":"IFERROR(INDEX($EG192:$IV192,MATCH(0,COUNTIF($DR192:EA192,$EG192:$IV192),0)),\"\")","v":""},{"$f":"IFERROR(INDEX($EG192:$IV192,MATCH(0,COUNTIF($DR192:EB192,$EG192:$IV192),0)),\"\")","v":""},{"$f":"IFERROR(INDEX($EG192:$IV192,MATCH(0,COUNTIF($DR192:EC192,$EG192:$IV192),0)),\"\")","v":""},null,null,{"$f":"IFERROR(MID($G192,FIND(CHAR(160),SUBSTITUTE($G192,\"{\",CHAR(160),EG$1)),FIND(CHAR(160),SUBSTITUTE($G192,\"}\",CHAR(160),EG$1))-FIND(CHAR(160),SUBSTITUTE($G192,\"{\",CHAR(160),EG$1))+1),\"\")","v":""},{"$f":"IFERROR(MID($G192,FIND(CHAR(160),SUBSTITUTE($G192,\"{\",CHAR(160),EH$1)),FIND(CHAR(160),SUBSTITUTE($G192,\"}\",CHAR(160),EH$1))-FIND(CHAR(160),SUBSTITUTE($G192,\"{\",CHAR(160),EH$1))+1),\"\")","v":""},{"$f":"IFERROR(MID($G192,FIND(CHAR(160),SUBSTITUTE($G192,\"{\",CHAR(160),EI$1)),FIND(CHAR(160),SUBSTITUTE($G192,\"}\",CHAR(160),EI$1))-FIND(CHAR(160),SUBSTITUTE($G192,\"{\",CHAR(160),EI$1))+1),\"\")","v":""},{"$f":"IFERROR(MID($G192,FIND(CHAR(160),SUBSTITUTE($G192,\"{\",CHAR(160),EJ$1)),FIND(CHAR(160),SUBSTITUTE($G192,\"}\",CHAR(160),EJ$1))-FIND(CHAR(160),SUBSTITUTE($G192,\"{\",CHAR(160),EJ$1))+1),\"\")","v":""},{"$f":"IFERROR(MID($G192,FIND(CHAR(160),SUBSTITUTE($G192,\"{\",CHAR(160),EK$1)),FIND(CHAR(160),SUBSTITUTE($G192,\"}\",CHAR(160),EK$1))-FIND(CHAR(160),SUBSTITUTE($G192,\"{\",CHAR(160),EK$1))+1),\"\")","v":""},{"$f":"IFERROR(MID($G192,FIND(CHAR(160),SUBSTITUTE($G192,\"{\",CHAR(160),EL$1)),FIND(CHAR(160),SUBSTITUTE($G192,\"}\",CHAR(160),EL$1))-FIND(CHAR(160),SUBSTITUTE($G192,\"{\",CHAR(160),EL$1))+1),\"\")","v":""},{"$f":"IFERROR(MID($G192,FIND(CHAR(160),SUBSTITUTE($G192,\"{\",CHAR(160),EM$1)),FIND(CHAR(160),SUBSTITUTE($G192,\"}\",CHAR(160),EM$1))-FIND(CHAR(160),SUBSTITUTE($G192,\"{\",CHAR(160),EM$1))+1),\"\")","v":""},{"$f":"IFERROR(MID($G192,FIND(CHAR(160),SUBSTITUTE($G192,\"{\",CHAR(160),EN$1)),FIND(CHAR(160),SUBSTITUTE($G192,\"}\",CHAR(160),EN$1))-FIND(CHAR(160),SUBSTITUTE($G192,\"{\",CHAR(160),EN$1))+1),\"\")","v":""},{"$f":"IFERROR(MID($G192,FIND(CHAR(160),SUBSTITUTE($G192,\"{\",CHAR(160),EO$1)),FIND(CHAR(160),SUBSTITUTE($G192,\"}\",CHAR(160),EO$1))-FIND(CHAR(160),SUBSTITUTE($G192,\"{\",CHAR(160),EO$1))+1),\"\")","v":""},{"$f":"IFERROR(MID($G192,FIND(CHAR(160),SUBSTITUTE($G192,\"{\",CHAR(160),EP$1)),FIND(CHAR(160),SUBSTITUTE($G192,\"}\",CHAR(160),EP$1))-FIND(CHAR(160),SUBSTITUTE($G192,\"{\",CHAR(160),EP$1))+1),\"\")","v":""},{"$f":"IFERROR(MID($J192,FIND(CHAR(160),SUBSTITUTE($J192,\"{\",CHAR(160),EQ$1)),FIND(CHAR(160),SUBSTITUTE($J192,\"}\",CHAR(160),EQ$1))-FIND(CHAR(160),SUBSTITUTE($J192,\"{\",CHAR(160),EQ$1))+1),\"\")","v":""},{"$f":"IFERROR(MID($J192,FIND(CHAR(160),SUBSTITUTE($J192,\"{\",CHAR(160),ER$1)),FIND(CHAR(160),SUBSTITUTE($J192,\"}\",CHAR(160),ER$1))-FIND(CHAR(160),SUBSTITUTE($J192,\"{\",CHAR(160),ER$1))+1),\"\")","v":""},{"$f":"IFERROR(MID($J192,FIND(CHAR(160),SUBSTITUTE($J192,\"{\",CHAR(160),ES$1)),FIND(CHAR(160),SUBSTITUTE($J192,\"}\",CHAR(160),ES$1))-FIND(CHAR(160),SUBSTITUTE($J192,\"{\",CHAR(160),ES$1))+1),\"\")","v":""},{"$f":"IFERROR(MID($J192,FIND(CHAR(160),SUBSTITUTE($J192,\"{\",CHAR(160),ET$1)),FIND(CHAR(160),SUBSTITUTE($J192,\"}\",CHAR(160),ET$1))-FIND(CHAR(160),SUBSTITUTE($J192,\"{\",CHAR(160),ET$1))+1),\"\")","v":""},{"$f":"IFERROR(MID($J192,FIND(CHAR(160),SUBSTITUTE($J192,\"{\",CHAR(160),EU$1)),FIND(CHAR(160),SUBSTITUTE($J192,\"}\",CHAR(160),EU$1))-FIND(CHAR(160),SUBSTITUTE($J192,\"{\",CHAR(160),EU$1))+1),\"\")","v":""},{"$f":"IFERROR(MID($J192,FIND(CHAR(160),SUBSTITUTE($J192,\"{\",CHAR(160),EV$1)),FIND(CHAR(160),SUBSTITUTE($J192,\"}\",CHAR(160),EV$1))-FIND(CHAR(160),SUBSTITUTE($J192,\"{\",CHAR(160),EV$1))+1),\"\")","v":""},{"$f":"IFERROR(MID($J192,FIND(CHAR(160),SUBSTITUTE($J192,\"{\",CHAR(160),EW$1)),FIND(CHAR(160),SUBSTITUTE($J192,\"}\",CHAR(160),EW$1))-FIND(CHAR(160),SUBSTITUTE($J192,\"{\",CHAR(160),EW$1))+1),\"\")","v":""},{"$f":"IFERROR(MID($J192,FIND(CHAR(160),SUBSTITUTE($J192,\"{\",CHAR(160),EX$1)),FIND(CHAR(160),SUBSTITUTE($J192,\"}\",CHAR(160),EX$1))-FIND(CHAR(160),SUBSTITUTE($J192,\"{\",CHAR(160),EX$1))+1),\"\")","v":""},{"$f":"IFERROR(MID($J192,FIND(CHAR(160),SUBSTITUTE($J192,\"{\",CHAR(160),EY$1)),FIND(CHAR(160),SUBSTITUTE($J192,\"}\",CHAR(160),EY$1))-FIND(CHAR(160),SUBSTITUTE($J192,\"{\",CHAR(160),EY$1))+1),\"\")","v":""},{"$f":"IFERROR(MID($J192,FIND(CHAR(160),SUBSTITUTE($J192,\"{\",CHAR(160),EZ$1)),FIND(CHAR(160),SUBSTITUTE($J192,\"}\",CHAR(160),EZ$1))-FIND(CHAR(160),SUBSTITUTE($J192,\"{\",CHAR(160),EZ$1))+1),\"\")","v":""},{"$f":"IFERROR(MID($J192,FIND(CHAR(160),SUBSTITUTE($J192,\"{\",CHAR(160),FA$1)),FIND(CHAR(160),SUBSTITUTE($J192,\"}\",CHAR(160),FA$1))-FIND(CHAR(160),SUBSTITUTE($J192,\"{\",CHAR(160),FA$1))+1),\"\")","v":""},{"$f":"IFERROR(MID($J192,FIND(CHAR(160),SUBSTITUTE($J192,\"{\",CHAR(160),FB$1)),FIND(CHAR(160),SUBSTITUTE($J192,\"}\",CHAR(160),FB$1))-FIND(CHAR(160),SUBSTITUTE($J192,\"{\",CHAR(160),FB$1))+1),\"\")","v":""},{"$f":"IFERROR(MID($O192,FIND(CHAR(160),SUBSTITUTE($O192,\"{\",CHAR(160),FC$1)),FIND(CHAR(160),SUBSTITUTE($O192,\"}\",CHAR(160),FC$1))-FIND(CHAR(160),SUBSTITUTE($O192,\"{\",CHAR(160),FC$1))+1),\"\")","v":""},{"$f":"IFERROR(MID($O192,FIND(CHAR(160),SUBSTITUTE($O192,\"{\",CHAR(160),FD$1)),FIND(CHAR(160),SUBSTITUTE($O192,\"}\",CHAR(160),FD$1))-FIND(CHAR(160),SUBSTITUTE($O192,\"{\",CHAR(160),FD$1))+1),\"\")","v":""},{"$f":"IFERROR(MID($O192,FIND(CHAR(160),SUBSTITUTE($O192,\"{\",CHAR(160),FE$1)),FIND(CHAR(160),SUBSTITUTE($O192,\"}\",CHAR(160),FE$1))-FIND(CHAR(160),SUBSTITUTE($O192,\"{\",CHAR(160),FE$1))+1),\"\")","v":""},{"$f":"IFERROR(MID($O192,FIND(CHAR(160),SUBSTITUTE($O192,\"{\",CHAR(160),FF$1)),FIND(CHAR(160),SUBSTITUTE($O192,\"}\",CHAR(160),FF$1))-FIND(CHAR(160),SUBSTITUTE($O192,\"{\",CHAR(160),FF$1))+1),\"\")","v":""},{"$f":"IFERROR(MID($O192,FIND(CHAR(160),SUBSTITUTE($O192,\"{\",CHAR(160),FG$1)),FIND(CHAR(160),SUBSTITUTE($O192,\"}\",CHAR(160),FG$1))-FIND(CHAR(160),SUBSTITUTE($O192,\"{\",CHAR(160),FG$1))+1),\"\")","v":""},{"$f":"IFERROR(MID($O192,FIND(CHAR(160),SUBSTITUTE($O192,\"{\",CHAR(160),FH$1)),FIND(CHAR(160),SUBSTITUTE($O192,\"}\",CHAR(160),FH$1))-FIND(CHAR(160),SUBSTITUTE($O192,\"{\",CHAR(160),FH$1))+1),\"\")","v":""},{"$f":"IFERROR(MID($O192,FIND(CHAR(160),SUBSTITUTE($O192,\"{\",CHAR(160),FI$1)),FIND(CHAR(160),SUBSTITUTE($O192,\"}\",CHAR(160),FI$1))-FIND(CHAR(160),SUBSTITUTE($O192,\"{\",CHAR(160),FI$1))+1),\"\")","v":""},{"$f":"IFERROR(MID($O192,FIND(CHAR(160),SUBSTITUTE($O192,\"{\",CHAR(160),FJ$1)),FIND(CHAR(160),SUBSTITUTE($O192,\"}\",CHAR(160),FJ$1))-FIND(CHAR(160),SUBSTITUTE($O192,\"{\",CHAR(160),FJ$1))+1),\"\")","v":""},{"$f":"IFERROR(MID($O192,FIND(CHAR(160),SUBSTITUTE($O192,\"{\",CHAR(160),FK$1)),FIND(CHAR(160),SUBSTITUTE($O192,\"}\",CHAR(160),FK$1))-FIND(CHAR(160),SUBSTITUTE($O192,\"{\",CHAR(160),FK$1))+1),\"\")","v":""},{"$f":"IFERROR(MID($O192,FIND(CHAR(160),SUBSTITUTE($O192,\"{\",CHAR(160),FL$1)),FIND(CHAR(160),SUBSTITUTE($O192,\"}\",CHAR(160),FL$1))-FIND(CHAR(160),SUBSTITUTE($O192,\"{\",CHAR(160),FL$1))+1),\"\")","v":""},{"$f":"IFERROR(MID($R192,FIND(CHAR(160),SUBSTITUTE($R192,\"{\",CHAR(160),FM$1)),FIND(CHAR(160),SUBSTITUTE($R192,\"}\",CHAR(160),FM$1))-FIND(CHAR(160),SUBSTITUTE($R192,\"{\",CHAR(160),FM$1))+1),\"\")","v":""},{"$f":"IFERROR(MID($R192,FIND(CHAR(160),SUBSTITUTE($R192,\"{\",CHAR(160),FN$1)),FIND(CHAR(160),SUBSTITUTE($R192,\"}\",CHAR(160),FN$1))-FIND(CHAR(160),SUBSTITUTE($R192,\"{\",CHAR(160),FN$1))+1),\"\")","v":""},{"$f":"IFERROR(MID($R192,FIND(CHAR(160),SUBSTITUTE($R192,\"{\",CHAR(160),FO$1)),FIND(CHAR(160),SUBSTITUTE($R192,\"}\",CHAR(160),FO$1))-FIND(CHAR(160),SUBSTITUTE($R192,\"{\",CHAR(160),FO$1))+1),\"\")","v":""},{"$f":"IFERROR(MID($R192,FIND(CHAR(160),SUBSTITUTE($R192,\"{\",CHAR(160),FP$1)),FIND(CHAR(160),SUBSTITUTE($R192,\"}\",CHAR(160),FP$1))-FIND(CHAR(160),SUBSTITUTE($R192,\"{\",CHAR(160),FP$1))+1),\"\")","v":""},{"$f":"IFERROR(MID($R192,FIND(CHAR(160),SUBSTITUTE($R192,\"{\",CHAR(160),FQ$1)),FIND(CHAR(160),SUBSTITUTE($R192,\"}\",CHAR(160),FQ$1))-FIND(CHAR(160),SUBSTITUTE($R192,\"{\",CHAR(160),FQ$1))+1),\"\")","v":""},{"$f":"IFERROR(MID($R192,FIND(CHAR(160),SUBSTITUTE($R192,\"{\",CHAR(160),FR$1)),FIND(CHAR(160),SUBSTITUTE($R192,\"}\",CHAR(160),FR$1))-FIND(CHAR(160),SUBSTITUTE($R192,\"{\",CHAR(160),FR$1))+1),\"\")","v":""},{"$f":"IFERROR(MID($R192,FIND(CHAR(160),SUBSTITUTE($R192,\"{\",CHAR(160),FS$1)),FIND(CHAR(160),SUBSTITUTE($R192,\"}\",CHAR(160),FS$1))-FIND(CHAR(160),SUBSTITUTE($R192,\"{\",CHAR(160),FS$1))+1),\"\")","v":""},{"$f":"IFERROR(MID($R192,FIND(CHAR(160),SUBSTITUTE($R192,\"{\",CHAR(160),FT$1)),FIND(CHAR(160),SUBSTITUTE($R192,\"}\",CHAR(160),FT$1))-FIND(CHAR(160),SUBSTITUTE($R192,\"{\",CHAR(160),FT$1))+1),\"\")","v":""},{"$f":"IFERROR(MID($R192,FIND(CHAR(160),SUBSTITUTE($R192,\"{\",CHAR(160),FU$1)),FIND(CHAR(160),SUBSTITUTE($R192,\"}\",CHAR(160),FU$1))-FIND(CHAR(160),SUBSTITUTE($R192,\"{\",CHAR(160),FU$1))+1),\"\")","v":""},{"$f":"IFERROR(MID($R192,FIND(CHAR(160),SUBSTITUTE($R192,\"{\",CHAR(160),FV$1)),FIND(CHAR(160),SUBSTITUTE($R192,\"}\",CHAR(160),FV$1))-FIND(CHAR(160),SUBSTITUTE($R192,\"{\",CHAR(160),FV$1))+1),\"\")","v":""},{"$f":"IFERROR(MID($U192,FIND(CHAR(160),SUBSTITUTE($U192,\"{\",CHAR(160),FW$1)),FIND(CHAR(160),SUBSTITUTE($U192,\"}\",CHAR(160),FW$1))-FIND(CHAR(160),SUBSTITUTE($U192,\"{\",CHAR(160),FW$1))+1),\"\")","v":""},{"$f":"IFERROR(MID($U192,FIND(CHAR(160),SUBSTITUTE($U192,\"{\",CHAR(160),FX$1)),FIND(CHAR(160),SUBSTITUTE($U192,\"}\",CHAR(160),FX$1))-FIND(CHAR(160),SUBSTITUTE($U192,\"{\",CHAR(160),FX$1))+1),\"\")","v":""},{"$f":"IFERROR(MID($U192,FIND(CHAR(160),SUBSTITUTE($U192,\"{\",CHAR(160),FY$1)),FIND(CHAR(160),SUBSTITUTE($U192,\"}\",CHAR(160),FY$1))-FIND(CHAR(160),SUBSTITUTE($U192,\"{\",CHAR(160),FY$1))+1),\"\")","v":""},{"$f":"IFERROR(MID($U192,FIND(CHAR(160),SUBSTITUTE($U192,\"{\",CHAR(160),FZ$1)),FIND(CHAR(160),SUBSTITUTE($U192,\"}\",CHAR(160),FZ$1))-FIND(CHAR(160),SUBSTITUTE($U192,\"{\",CHAR(160),FZ$1))+1),\"\")","v":""},{"$f":"IFERROR(MID($U192,FIND(CHAR(160),SUBSTITUTE($U192,\"{\",CHAR(160),GA$1)),FIND(CHAR(160),SUBSTITUTE($U192,\"}\",CHAR(160),GA$1))-FIND(CHAR(160),SUBSTITUTE($U192,\"{\",CHAR(160),GA$1))+1),\"\")","v":""},{"$f":"IFERROR(MID($U192,FIND(CHAR(160),SUBSTITUTE($U192,\"{\",CHAR(160),GB$1)),FIND(CHAR(160),SUBSTITUTE($U192,\"}\",CHAR(160),GB$1))-FIND(CHAR(160),SUBSTITUTE($U192,\"{\",CHAR(160),GB$1))+1),\"\")","v":""},{"$f":"IFERROR(MID($U192,FIND(CHAR(160),SUBSTITUTE($U192,\"{\",CHAR(160),GC$1)),FIND(CHAR(160),SUBSTITUTE($U192,\"}\",CHAR(160),GC$1))-FIND(CHAR(160),SUBSTITUTE($U192,\"{\",CHAR(160),GC$1))+1),\"\")","v":""},{"$f":"IFERROR(MID($U192,FIND(CHAR(160),SUBSTITUTE($U192,\"{\",CHAR(160),GD$1)),FIND(CHAR(160),SUBSTITUTE($U192,\"}\",CHAR(160),GD$1))-FIND(CHAR(160),SUBSTITUTE($U192,\"{\",CHAR(160),GD$1))+1),\"\")","v":""},{"$f":"IFERROR(MID($U192,FIND(CHAR(160),SUBSTITUTE($U192,\"{\",CHAR(160),GE$1)),FIND(CHAR(160),SUBSTITUTE($U192,\"}\",CHAR(160),GE$1))-FIND(CHAR(160),SUBSTITUTE($U192,\"{\",CHAR(160),GE$1))+1),\"\")","v":""},{"$f":"IFERROR(MID($U192,FIND(CHAR(160),SUBSTITUTE($U192,\"{\",CHAR(160),GF$1)),FIND(CHAR(160),SUBSTITUTE($U192,\"}\",CHAR(160),GF$1))-FIND(CHAR(160),SUBSTITUTE($U192,\"{\",CHAR(160),GF$1))+1),\"\")","v":""},{"$f":"IFERROR(MID($V192,FIND(CHAR(160),SUBSTITUTE($V192,\"{\",CHAR(160),GG$1)),FIND(CHAR(160),SUBSTITUTE($V192,\"}\",CHAR(160),GG$1))-FIND(CHAR(160),SUBSTITUTE($V192,\"{\",CHAR(160),GG$1))+1),\"\")","v":""},{"$f":"IFERROR(MID($V192,FIND(CHAR(160),SUBSTITUTE($V192,\"{\",CHAR(160),GH$1)),FIND(CHAR(160),SUBSTITUTE($V192,\"}\",CHAR(160),GH$1))-FIND(CHAR(160),SUBSTITUTE($V192,\"{\",CHAR(160),GH$1))+1),\"\")","v":""},{"$f":"IFERROR(MID($V192,FIND(CHAR(160),SUBSTITUTE($V192,\"{\",CHAR(160),GI$1)),FIND(CHAR(160),SUBSTITUTE($V192,\"}\",CHAR(160),GI$1))-FIND(CHAR(160),SUBSTITUTE($V192,\"{\",CHAR(160),GI$1))+1),\"\")","v":""},{"$f":"IFERROR(MID($V192,FIND(CHAR(160),SUBSTITUTE($V192,\"{\",CHAR(160),GJ$1)),FIND(CHAR(160),SUBSTITUTE($V192,\"}\",CHAR(160),GJ$1))-FIND(CHAR(160),SUBSTITUTE($V192,\"{\",CHAR(160),GJ$1))+1),\"\")","v":""},{"$f":"IFERROR(MID($V192,FIND(CHAR(160),SUBSTITUTE($V192,\"{\",CHAR(160),GK$1)),FIND(CHAR(160),SUBSTITUTE($V192,\"}\",CHAR(160),GK$1))-FIND(CHAR(160),SUBSTITUTE($V192,\"{\",CHAR(160),GK$1))+1),\"\")","v":""},{"$f":"IFERROR(MID($V192,FIND(CHAR(160),SUBSTITUTE($V192,\"{\",CHAR(160),GL$1)),FIND(CHAR(160),SUBSTITUTE($V192,\"}\",CHAR(160),GL$1))-FIND(CHAR(160),SUBSTITUTE($V192,\"{\",CHAR(160),GL$1))+1),\"\")","v":""},{"$f":"IFERROR(MID($V192,FIND(CHAR(160),SUBSTITUTE($V192,\"{\",CHAR(160),GM$1)),FIND(CHAR(160),SUBSTITUTE($V192,\"}\",CHAR(160),GM$1))-FIND(CHAR(160),SUBSTITUTE($V192,\"{\",CHAR(160),GM$1))+1),\"\")","v":""},{"$f":"IFERROR(MID($V192,FIND(CHAR(160),SUBSTITUTE($V192,\"{\",CHAR(160),GN$1)),FIND(CHAR(160),SUBSTITUTE($V192,\"}\",CHAR(160),GN$1))-FIND(CHAR(160),SUBSTITUTE($V192,\"{\",CHAR(160),GN$1))+1),\"\")","v":""},{"$f":"IFERROR(MID($V192,FIND(CHAR(160),SUBSTITUTE($V192,\"{\",CHAR(160),GO$1)),FIND(CHAR(160),SUBSTITUTE($V192,\"}\",CHAR(160),GO$1))-FIND(CHAR(160),SUBSTITUTE($V192,\"{\",CHAR(160),GO$1))+1),\"\")","v":""},{"$f":"IFERROR(MID($V192,FIND(CHAR(160),SUBSTITUTE($V192,\"{\",CHAR(160),GP$1)),FIND(CHAR(160),SUBSTITUTE($V192,\"}\",CHAR(160),GP$1))-FIND(CHAR(160),SUBSTITUTE($V192,\"{\",CHAR(160),GP$1))+1),\"\")","v":""},{"$f":"IFERROR(MID($W192,FIND(CHAR(160),SUBSTITUTE($W192,\"{\",CHAR(160),GQ$1)),FIND(CHAR(160),SUBSTITUTE($W192,\"}\",CHAR(160),GQ$1))-FIND(CHAR(160),SUBSTITUTE($W192,\"{\",CHAR(160),GQ$1))+1),\"\")","v":""},{"$f":"IFERROR(MID($W192,FIND(CHAR(160),SUBSTITUTE($W192,\"{\",CHAR(160),GR$1)),FIND(CHAR(160),SUBSTITUTE($W192,\"}\",CHAR(160),GR$1))-FIND(CHAR(160),SUBSTITUTE($W192,\"{\",CHAR(160),GR$1))+1),\"\")","v":""},{"$f":"IFERROR(MID($W192,FIND(CHAR(160),SUBSTITUTE($W192,\"{\",CHAR(160),GS$1)),FIND(CHAR(160),SUBSTITUTE($W192,\"}\",CHAR(160),GS$1))-FIND(CHAR(160),SUBSTITUTE($W192,\"{\",CHAR(160),GS$1))+1),\"\")","v":""},{"$f":"IFERROR(MID($W192,FIND(CHAR(160),SUBSTITUTE($W192,\"{\",CHAR(160),GT$1)),FIND(CHAR(160),SUBSTITUTE($W192,\"}\",CHAR(160),GT$1))-FIND(CHAR(160),SUBSTITUTE($W192,\"{\",CHAR(160),GT$1))+1),\"\")","v":""},{"$f":"IFERROR(MID($W192,FIND(CHAR(160),SUBSTITUTE($W192,\"{\",CHAR(160),GU$1)),FIND(CHAR(160),SUBSTITUTE($W192,\"}\",CHAR(160),GU$1))-FIND(CHAR(160),SUBSTITUTE($W192,\"{\",CHAR(160),GU$1))+1),\"\")","v":""},{"$f":"IFERROR(MID($W192,FIND(CHAR(160),SUBSTITUTE($W192,\"{\",CHAR(160),GV$1)),FIND(CHAR(160),SUBSTITUTE($W192,\"}\",CHAR(160),GV$1))-FIND(CHAR(160),SUBSTITUTE($W192,\"{\",CHAR(160),GV$1))+1),\"\")","v":""},{"$f":"IFERROR(MID($W192,FIND(CHAR(160),SUBSTITUTE($W192,\"{\",CHAR(160),GW$1)),FIND(CHAR(160),SUBSTITUTE($W192,\"}\",CHAR(160),GW$1))-FIND(CHAR(160),SUBSTITUTE($W192,\"{\",CHAR(160),GW$1))+1),\"\")","v":""},{"$f":"IFERROR(MID($W192,FIND(CHAR(160),SUBSTITUTE($W192,\"{\",CHAR(160),GX$1)),FIND(CHAR(160),SUBSTITUTE($W192,\"}\",CHAR(160),GX$1))-FIND(CHAR(160),SUBSTITUTE($W192,\"{\",CHAR(160),GX$1))+1),\"\")","v":""},{"$f":"IFERROR(MID($W192,FIND(CHAR(160),SUBSTITUTE($W192,\"{\",CHAR(160),GY$1)),FIND(CHAR(160),SUBSTITUTE($W192,\"}\",CHAR(160),GY$1))-FIND(CHAR(160),SUBSTITUTE($W192,\"{\",CHAR(160),GY$1))+1),\"\")","v":""},{"$f":"IFERROR(MID($W192,FIND(CHAR(160),SUBSTITUTE($W192,\"{\",CHAR(160),GZ$1)),FIND(CHAR(160),SUBSTITUTE($W192,\"}\",CHAR(160),GZ$1))-FIND(CHAR(160),SUBSTITUTE($W192,\"{\",CHAR(160),GZ$1))+1),\"\")","v":""},{"$f":"IFERROR(MID($X192,FIND(CHAR(160),SUBSTITUTE($X192,\"{\",CHAR(160),HA$1)),FIND(CHAR(160),SUBSTITUTE($X192,\"}\",CHAR(160),HA$1))-FIND(CHAR(160),SUBSTITUTE($X192,\"{\",CHAR(160),HA$1))+1),\"\")","v":""},{"$f":"IFERROR(MID($X192,FIND(CHAR(160),SUBSTITUTE($X192,\"{\",CHAR(160),HB$1)),FIND(CHAR(160),SUBSTITUTE($X192,\"}\",CHAR(160),HB$1))-FIND(CHAR(160),SUBSTITUTE($X192,\"{\",CHAR(160),HB$1))+1),\"\")","v":""},{"$f":"IFERROR(MID($X192,FIND(CHAR(160),SUBSTITUTE($X192,\"{\",CHAR(160),HC$1)),FIND(CHAR(160),SUBSTITUTE($X192,\"}\",CHAR(160),HC$1))-FIND(CHAR(160),SUBSTITUTE($X192,\"{\",CHAR(160),HC$1))+1),\"\")","v":""},{"$f":"IFERROR(MID($X192,FIND(CHAR(160),SUBSTITUTE($X192,\"{\",CHAR(160),HD$1)),FIND(CHAR(160),SUBSTITUTE($X192,\"}\",CHAR(160),HD$1))-FIND(CHAR(160),SUBSTITUTE($X192,\"{\",CHAR(160),HD$1))+1),\"\")","v":""},{"$f":"IFERROR(MID($X192,FIND(CHAR(160),SUBSTITUTE($X192,\"{\",CHAR(160),HE$1)),FIND(CHAR(160),SUBSTITUTE($X192,\"}\",CHAR(160),HE$1))-FIND(CHAR(160),SUBSTITUTE($X192,\"{\",CHAR(160),HE$1))+1),\"\")","v":""},{"$f":"IFERROR(MID($X192,FIND(CHAR(160),SUBSTITUTE($X192,\"{\",CHAR(160),HF$1)),FIND(CHAR(160),SUBSTITUTE($X192,\"}\",CHAR(160),HF$1))-FIND(CHAR(160),SUBSTITUTE($X192,\"{\",CHAR(160),HF$1))+1),\"\")","v":""},{"$f":"IFERROR(MID($X192,FIND(CHAR(160),SUBSTITUTE($X192,\"{\",CHAR(160),HG$1)),FIND(CHAR(160),SUBSTITUTE($X192,\"}\",CHAR(160),HG$1))-FIND(CHAR(160),SUBSTITUTE($X192,\"{\",CHAR(160),HG$1))+1),\"\")","v":""},{"$f":"IFERROR(MID($X192,FIND(CHAR(160),SUBSTITUTE($X192,\"{\",CHAR(160),HH$1)),FIND(CHAR(160),SUBSTITUTE($X192,\"}\",CHAR(160),HH$1))-FIND(CHAR(160),SUBSTITUTE($X192,\"{\",CHAR(160),HH$1))+1),\"\")","v":""},{"$f":"IFERROR(MID($X192,FIND(CHAR(160),SUBSTITUTE($X192,\"{\",CHAR(160),HI$1)),FIND(CHAR(160),SUBSTITUTE($X192,\"}\",CHAR(160),HI$1))-FIND(CHAR(160),SUBSTITUTE($X192,\"{\",CHAR(160),HI$1))+1),\"\")","v":""},{"$f":"IFERROR(MID($X192,FIND(CHAR(160),SUBSTITUTE($X192,\"{\",CHAR(160),HJ$1)),FIND(CHAR(160),SUBSTITUTE($X192,\"}\",CHAR(160),HJ$1))-FIND(CHAR(160),SUBSTITUTE($X192,\"{\",CHAR(160),HJ$1))+1),\"\")","v":""},{"$f":"IFERROR(MID($Y192,FIND(CHAR(160),SUBSTITUTE($Y192,\"{\",CHAR(160),HK$1)),FIND(CHAR(160),SUBSTITUTE($Y192,\"}\",CHAR(160),HK$1))-FIND(CHAR(160),SUBSTITUTE($Y192,\"{\",CHAR(160),HK$1))+1),\"\")","v":""},{"$f":"IFERROR(MID($Y192,FIND(CHAR(160),SUBSTITUTE($Y192,\"{\",CHAR(160),HL$1)),FIND(CHAR(160),SUBSTITUTE($Y192,\"}\",CHAR(160),HL$1))-FIND(CHAR(160),SUBSTITUTE($Y192,\"{\",CHAR(160),HL$1))+1),\"\")","v":""},{"$f":"IFERROR(MID($Y192,FIND(CHAR(160),SUBSTITUTE($Y192,\"{\",CHAR(160),HM$1)),FIND(CHAR(160),SUBSTITUTE($Y192,\"}\",CHAR(160),HM$1))-FIND(CHAR(160),SUBSTITUTE($Y192,\"{\",CHAR(160),HM$1))+1),\"\")","v":""},{"$f":"IFERROR(MID($Y192,FIND(CHAR(160),SUBSTITUTE($Y192,\"{\",CHAR(160),HN$1)),FIND(CHAR(160),SUBSTITUTE($Y192,\"}\",CHAR(160),HN$1))-FIND(CHAR(160),SUBSTITUTE($Y192,\"{\",CHAR(160),HN$1))+1),\"\")","v":""},{"$f":"IFERROR(MID($Y192,FIND(CHAR(160),SUBSTITUTE($Y192,\"{\",CHAR(160),HO$1)),FIND(CHAR(160),SUBSTITUTE($Y192,\"}\",CHAR(160),HO$1))-FIND(CHAR(160),SUBSTITUTE($Y192,\"{\",CHAR(160),HO$1))+1),\"\")","v":""},{"$f":"IFERROR(MID($Y192,FIND(CHAR(160),SUBSTITUTE($Y192,\"{\",CHAR(160),HP$1)),FIND(CHAR(160),SUBSTITUTE($Y192,\"}\",CHAR(160),HP$1))-FIND(CHAR(160),SUBSTITUTE($Y192,\"{\",CHAR(160),HP$1))+1),\"\")","v":""},{"$f":"IFERROR(MID($Y192,FIND(CHAR(160),SUBSTITUTE($Y192,\"{\",CHAR(160),HQ$1)),FIND(CHAR(160),SUBSTITUTE($Y192,\"}\",CHAR(160),HQ$1))-FIND(CHAR(160),SUBSTITUTE($Y192,\"{\",CHAR(160),HQ$1))+1),\"\")","v":""},{"$f":"IFERROR(MID($Y192,FIND(CHAR(160),SUBSTITUTE($Y192,\"{\",CHAR(160),HR$1)),FIND(CHAR(160),SUBSTITUTE($Y192,\"}\",CHAR(160),HR$1))-FIND(CHAR(160),SUBSTITUTE($Y192,\"{\",CHAR(160),HR$1))+1),\"\")","v":""},{"$f":"IFERROR(MID($Y192,FIND(CHAR(160),SUBSTITUTE($Y192,\"{\",CHAR(160),HS$1)),FIND(CHAR(160),SUBSTITUTE($Y192,\"}\",CHAR(160),HS$1))-FIND(CHAR(160),SUBSTITUTE($Y192,\"{\",CHAR(160),HS$1))+1),\"\")","v":""},{"$f":"IFERROR(MID($Y192,FIND(CHAR(160),SUBSTITUTE($Y192,\"{\",CHAR(160),HT$1)),FIND(CHAR(160),SUBSTITUTE($Y192,\"}\",CHAR(160),HT$1))-FIND(CHAR(160),SUBSTITUTE($Y192,\"{\",CHAR(160),HT$1))+1),\"\")","v":""},{"$f":"IFERROR(MID($Z192,FIND(CHAR(160),SUBSTITUTE($Z192,\"{\",CHAR(160),HU$1)),FIND(CHAR(160),SUBSTITUTE($Z192,\"}\",CHAR(160),HU$1))-FIND(CHAR(160),SUBSTITUTE($Z192,\"{\",CHAR(160),HU$1))+1),\"\")","v":""},{"$f":"IFERROR(MID($Z192,FIND(CHAR(160),SUBSTITUTE($Z192,\"{\",CHAR(160),HV$1)),FIND(CHAR(160),SUBSTITUTE($Z192,\"}\",CHAR(160),HV$1))-FIND(CHAR(160),SUBSTITUTE($Z192,\"{\",CHAR(160),HV$1))+1),\"\")","v":""},{"$f":"IFERROR(MID($Z192,FIND(CHAR(160),SUBSTITUTE($Z192,\"{\",CHAR(160),HW$1)),FIND(CHAR(160),SUBSTITUTE($Z192,\"}\",CHAR(160),HW$1))-FIND(CHAR(160),SUBSTITUTE($Z192,\"{\",CHAR(160),HW$1))+1),\"\")","v":""},{"$f":"IFERROR(MID($Z192,FIND(CHAR(160),SUBSTITUTE($Z192,\"{\",CHAR(160),HX$1)),FIND(CHAR(160),SUBSTITUTE($Z192,\"}\",CHAR(160),HX$1))-FIND(CHAR(160),SUBSTITUTE($Z192,\"{\",CHAR(160),HX$1))+1),\"\")","v":""},{"$f":"IFERROR(MID($Z192,FIND(CHAR(160),SUBSTITUTE($Z192,\"{\",CHAR(160),HY$1)),FIND(CHAR(160),SUBSTITUTE($Z192,\"}\",CHAR(160),HY$1))-FIND(CHAR(160),SUBSTITUTE($Z192,\"{\",CHAR(160),HY$1))+1),\"\")","v":""},{"$f":"IFERROR(MID($Z192,FIND(CHAR(160),SUBSTITUTE($Z192,\"{\",CHAR(160),HZ$1)),FIND(CHAR(160),SUBSTITUTE($Z192,\"}\",CHAR(160),HZ$1))-FIND(CHAR(160),SUBSTITUTE($Z192,\"{\",CHAR(160),HZ$1))+1),\"\")","v":""},{"$f":"IFERROR(MID($Z192,FIND(CHAR(160),SUBSTITUTE($Z192,\"{\",CHAR(160),IA$1)),FIND(CHAR(160),SUBSTITUTE($Z192,\"}\",CHAR(160),IA$1))-FIND(CHAR(160),SUBSTITUTE($Z192,\"{\",CHAR(160),IA$1))+1),\"\")","v":""},{"$f":"IFERROR(MID($Z192,FIND(CHAR(160),SUBSTITUTE($Z192,\"{\",CHAR(160),IB$1)),FIND(CHAR(160),SUBSTITUTE($Z192,\"}\",CHAR(160),IB$1))-FIND(CHAR(160),SUBSTITUTE($Z192,\"{\",CHAR(160),IB$1))+1),\"\")","v":""},{"$f":"IFERROR(MID($Z192,FIND(CHAR(160),SUBSTITUTE($Z192,\"{\",CHAR(160),IC$1)),FIND(CHAR(160),SUBSTITUTE($Z192,\"}\",CHAR(160),IC$1))-FIND(CHAR(160),SUBSTITUTE($Z192,\"{\",CHAR(160),IC$1))+1),\"\")","v":""},{"$f":"IFERROR(MID($Z192,FIND(CHAR(160),SUBSTITUTE($Z192,\"{\",CHAR(160),ID$1)),FIND(CHAR(160),SUBSTITUTE($Z192,\"}\",CHAR(160),ID$1))-FIND(CHAR(160),SUBSTITUTE($Z192,\"{\",CHAR(160),ID$1))+1),\"\")","v":""},{"$f":"IFERROR(MID($AA192,FIND(CHAR(160),SUBSTITUTE($AA192,\"{\",CHAR(160),IE$1)),FIND(CHAR(160),SUBSTITUTE($AA192,\"}\",CHAR(160),IE$1))-FIND(CHAR(160),SUBSTITUTE($AA192,\"{\",CHAR(160),IE$1))+1),\"\")","v":""},{"$f":"IFERROR(MID($AA192,FIND(CHAR(160),SUBSTITUTE($AA192,\"{\",CHAR(160),IF$1)),FIND(CHAR(160),SUBSTITUTE($AA192,\"}\",CHAR(160),IF$1))-FIND(CHAR(160),SUBSTITUTE($AA192,\"{\",CHAR(160),IF$1))+1),\"\")","v":""},{"$f":"IFERROR(MID($AA192,FIND(CHAR(160),SUBSTITUTE($AA192,\"{\",CHAR(160),IG$1)),FIND(CHAR(160),SUBSTITUTE($AA192,\"}\",CHAR(160),IG$1))-FIND(CHAR(160),SUBSTITUTE($AA192,\"{\",CHAR(160),IG$1))+1),\"\")","v":""},{"$f":"IFERROR(MID($AA192,FIND(CHAR(160),SUBSTITUTE($AA192,\"{\",CHAR(160),IH$1)),FIND(CHAR(160),SUBSTITUTE($AA192,\"}\",CHAR(160),IH$1))-FIND(CHAR(160),SUBSTITUTE($AA192,\"{\",CHAR(160),IH$1))+1),\"\")","v":""},{"$f":"IFERROR(MID($AA192,FIND(CHAR(160),SUBSTITUTE($AA192,\"{\",CHAR(160),II$1)),FIND(CHAR(160),SUBSTITUTE($AA192,\"}\",CHAR(160),II$1))-FIND(CHAR(160),SUBSTITUTE($AA192,\"{\",CHAR(160),II$1))+1),\"\")","v":""},{"$f":"IFERROR(MID($AA192,FIND(CHAR(160),SUBSTITUTE($AA192,\"{\",CHAR(160),IJ$1)),FIND(CHAR(160),SUBSTITUTE($AA192,\"}\",CHAR(160),IJ$1))-FIND(CHAR(160),SUBSTITUTE($AA192,\"{\",CHAR(160),IJ$1))+1),\"\")","v":""},{"$f":"IFERROR(MID($AA192,FIND(CHAR(160),SUBSTITUTE($AA192,\"{\",CHAR(160),IK$1)),FIND(CHAR(160),SUBSTITUTE($AA192,\"}\",CHAR(160),IK$1))-FIND(CHAR(160),SUBSTITUTE($AA192,\"{\",CHAR(160),IK$1))+1),\"\")","v":""},{"$f":"IFERROR(MID($AA192,FIND(CHAR(160),SUBSTITUTE($AA192,\"{\",CHAR(160),IL$1)),FIND(CHAR(160),SUBSTITUTE($AA192,\"}\",CHAR(160),IL$1))-FIND(CHAR(160),SUBSTITUTE($AA192,\"{\",CHAR(160),IL$1))+1),\"\")","v":""},{"$f":"IFERROR(MID($AA192,FIND(CHAR(160),SUBSTITUTE($AA192,\"{\",CHAR(160),IM$1)),FIND(CHAR(160),SUBSTITUTE($AA192,\"}\",CHAR(160),IM$1))-FIND(CHAR(160),SUBSTITUTE($AA192,\"{\",CHAR(160),IM$1))+1),\"\")","v":""},{"$f":"IFERROR(MID($AA192,FIND(CHAR(160),SUBSTITUTE($AA192,\"{\",CHAR(160),IN$1)),FIND(CHAR(160),SUBSTITUTE($AA192,\"}\",CHAR(160),IN$1))-FIND(CHAR(160),SUBSTITUTE($AA192,\"{\",CHAR(160),IN$1))+1),\"\")","v":""},{"$f":"IFERROR(MID($AB192,FIND(CHAR(160),SUBSTITUTE($AB192,\"{\",CHAR(160),IO$1)),FIND(CHAR(160),SUBSTITUTE($AB192,\"}\",CHAR(160),IO$1))-FIND(CHAR(160),SUBSTITUTE($AB192,\"{\",CHAR(160),IO$1))+1),\"\")","v":""},{"$f":"IFERROR(MID($AB192,FIND(CHAR(160),SUBSTITUTE($AB192,\"{\",CHAR(160),IP$1)),FIND(CHAR(160),SUBSTITUTE($AB192,\"}\",CHAR(160),IP$1))-FIND(CHAR(160),SUBSTITUTE($AB192,\"{\",CHAR(160),IP$1))+1),\"\")","v":""},{"$f":"IFERROR(MID($AB192,FIND(CHAR(160),SUBSTITUTE($AB192,\"{\",CHAR(160),IQ$1)),FIND(CHAR(160),SUBSTITUTE($AB192,\"}\",CHAR(160),IQ$1))-FIND(CHAR(160),SUBSTITUTE($AB192,\"{\",CHAR(160),IQ$1))+1),\"\")","v":""},{"$f":"IFERROR(MID($AB192,FIND(CHAR(160),SUBSTITUTE($AB192,\"{\",CHAR(160),IR$1)),FIND(CHAR(160),SUBSTITUTE($AB192,\"}\",CHAR(160),IR$1))-FIND(CHAR(160),SUBSTITUTE($AB192,\"{\",CHAR(160),IR$1))+1),\"\")","v":""},{"$f":"IFERROR(MID($AB192,FIND(CHAR(160),SUBSTITUTE($AB192,\"{\",CHAR(160),IS$1)),FIND(CHAR(160),SUBSTITUTE($AB192,\"}\",CHAR(160),IS$1))-FIND(CHAR(160),SUBSTITUTE($AB192,\"{\",CHAR(160),IS$1))+1),\"\")","v":""},{"$f":"IFERROR(MID($AB192,FIND(CHAR(160),SUBSTITUTE($AB192,\"{\",CHAR(160),IT$1)),FIND(CHAR(160),SUBSTITUTE($AB192,\"}\",CHAR(160),IT$1))-FIND(CHAR(160),SUBSTITUTE($AB192,\"{\",CHAR(160),IT$1))+1),\"\")","v":""},{"$f":"IFERROR(MID($AB192,FIND(CHAR(160),SUBSTITUTE($AB192,\"{\",CHAR(160),IU$1)),FIND(CHAR(160),SUBSTITUTE($AB192,\"}\",CHAR(160),IU$1))-FIND(CHAR(160),SUBSTITUTE($AB192,\"{\",CHAR(160),IU$1))+1),\"\")","v":""},{"$f":"IFERROR(MID($AB192,FIND(CHAR(160),SUBSTITUTE($AB192,\"{\",CHAR(160),IV$1)),FIND(CHAR(160),SUBSTITUTE($AB192,\"}\",CHAR(160),IV$1))-FIND(CHAR(160),SUBSTITUTE($AB192,\"{\",CHAR(160),IV$1))+1),\"\")","v":""},{"$f":"IFERROR(MID($AB192,FIND(CHAR(160),SUBSTITUTE($AB192,\"{\",CHAR(160),IW$1)),FIND(CHAR(160),SUBSTITUTE($AB192,\"}\",CHAR(160),IW$1))-FIND(CHAR(160),SUBSTITUTE($AB192,\"{\",CHAR(160),IW$1))+1),\"\")","v":""},{"$f":"IFERROR(MID($AB192,FIND(CHAR(160),SUBSTITUTE($AB192,\"{\",CHAR(160),IX$1)),FIND(CHAR(160),SUBSTITUTE($AB192,\"}\",CHAR(160),IX$1))-FIND(CHAR(160),SUBSTITUTE($AB192,\"{\",CHAR(160),IX$1))+1),\"\")","v":""},null,{"$f":"10-COUNTIF(DU192:ED192,\"\")","v":0}]
["Home Energy Savings Program - Electric","Heat Pump Multi-zone add on","HPMULT1T1","2021-07-01","2022-06-30","Per Measure",682,0,"Calculated","if({HSPF}<10,0,if({Rebate Level}=1,$250.00,$200.00))*{Measure:Quantity}",0,"2021-07-01","2022-06-30","Per Measure",153,null,null,null,null,null,1.4999999999999999E-2,6.4000000000000001E-2,0.67,0.22,0.48,0.02,0.28000000000000003,0,null,null,18,1,1,0.38100000000000001,0.52500000000000002,5.0999999999999997E-2,4.2000000000000003E-2,1,1,1,0.42,0.11,null,{"$f":"DU193","v":"{HSPF}"},10,{"$f":"DV193","v":"{Rebate Level}"},1,{"$f":"DW193","v":"{Measure:Quantity}"},1,{"$f":"DX193","v":""},null,{"$f":"DY193","v":""},null,{"$f":"DZ193","v":""},null,{"$f":"EA193","v":""},null,{"$f":"EB193","v":""},null,{"$f":"EC193","v":""},null,{"$f":"ED193","v":""},null,{"$f":"153","v":153},0,0,0,0,0,{"$f":"0.015","v":1.4999999999999999E-2},{"$f":"0.064","v":6.4000000000000001E-2},{"$f":"0.67","v":0.67},{"$f":"0.22","v":0.22},{"$f":"0.48","v":0.48},{"$f":"0.02","v":0.02},{"$f":"0.28","v":0.28000000000000003},{"$f":"0","v":0},null,"Res","Default DR",{"$f":"Benefits(BL193,BR193,BS193,BT193,BU193,BV193,BW193,BX193,BY193,BZ193,AE193,AH193,AI193,AJ193,AK193,AL193,AM193,AN193,AO193,AP193,CA193,CB193)","v":240.58292936095847},204.54814753777265,14.879749603648403,231.89899080700468,11.270569506001637,149.07755639785557,86.356058025946979,0,0,{"$f":"SUMPRODUCT(CC193:CK193,--(CC193:CK193>0))","v":938.61400123918827},{"$f":"-SUMPRODUCT(CC193:CK193,--(CC193:CK193<0))","v":0},null,{"$f":"682","v":682},null,null,{"$f":"CM193+CO193","v":682},{"$f":"IF(NetOrGross=\"Net\",(1-AO193+AP193),1)","v":1},{"$f":"(SUMPRODUCT(CC193:CJ193,--(CC193:CJ193>0))+CN193)*CS193/((-SUMPRODUCT(CC193:CJ193,--(CC193:CJ193<0))+MAX(CO193,CV193)+CP193+CQ193)*CS193+IF(FRIncentives=\"Yes\",CV193*(1-CS193),0))","v":1.3762668639870796},1,{"$f":"IF(AS193<10,0,IF(AU193=1,250,200))*AW193","v":250},null,"Electric","y",1,{"$f":"IF(F193=\"Manual Entry\",\"Manual\",IF(G193=\"\",0,\"X=\"&SUBSTITUTE(SUBSTITUTE(SUBSTITUTE(SUBSTITUTE(SUBSTITUTE(SUBSTITUTE(SUBSTITUTE(SUBSTITUTE(SUBSTITUTE(SUBSTITUTE(SUBSTITUTE(SUBSTITUTE(G193,$ED193,$ED$2&ROW($ED193)),$EC193,$EC$2&ROW($EC193)),$EB193,$EB$2&ROW($EB193)),$EA193,$EA$2&ROW($EA193)),$DZ193,$DZ$2&ROW($DZ193)),$DY193,$DY$2&ROW($DY193)),$DX193,$DX$2&ROW($DX193)),$DW193,$DW$2&ROW($DW193)),$DV193,$DV$2&ROW($DV193)),$DU193,$DU$2&ROW($DU193)),$DT193,$DT$2&ROW($DT193)),$DS193,$DS$2&ROW($DS193))))","v":"X=682"},{"$f":"IF(I193=\"Manual Entry\",\"Manual\",IF(J193=\"\",0,\"X=\"&SUBSTITUTE(SUBSTITUTE(SUBSTITUTE(SUBSTITUTE(SUBSTITUTE(SUBSTITUTE(SUBSTITUTE(SUBSTITUTE(SUBSTITUTE(SUBSTITUTE(SUBSTITUTE(SUBSTITUTE(J193,$ED193,$ED$2&ROW($ED193)),$EC193,$EC$2&ROW($EC193)),$EB193,$EB$2&ROW($EB193)),$EA193,$EA$2&ROW($EA193)),$DZ193,$DZ$2&ROW($DZ193)),$DY193,$DY$2&ROW($DY193)),$DX193,$DX$2&ROW($DX193)),$DW193,$DW$2&ROW($DW193)),$DV193,$DV$2&ROW($DV193)),$DU193,$DU$2&ROW($DU193)),$DT193,$DT$2&ROW($DT193)),$DS193,$DS$2&ROW($DS193))))","v":"X=if(AS193<10,0,if(AU193=1,$250.00,$200.00))*AW193"},{"$f":"IF(O193=\"\",0,\"X=\"&SUBSTITUTE(SUBSTITUTE(SUBSTITUTE(SUBSTITUTE(SUBSTITUTE(SUBSTITUTE(SUBSTITUTE(SUBSTITUTE(SUBSTITUTE(SUBSTITUTE(SUBSTITUTE(SUBSTITUTE(O193,$ED193,$ED$2&ROW($ED193)),$EC193,$EC$2&ROW($EC193)),$EB193,$EB$2&ROW($EB193)),$EA193,$EA$2&ROW($EA193)),$DZ193,$DZ$2&ROW($DZ193)),$DY193,$DY$2&ROW($DY193)),$DX193,$DX$2&ROW($DX193)),$DW193,$DW$2&ROW($DW193)),$DV193,$DV$2&ROW($DV193)),$DU193,$DU$2&ROW($DU193)),$DT193,$DT$2&ROW($DT193)),$DS193,$DS$2&ROW($DS193)))","v":"X=153"},{"$f":"IF(P193=\"\",0,\"X=\"&SUBSTITUTE(SUBSTITUTE(SUBSTITUTE(SUBSTITUTE(SUBSTITUTE(SUBSTITUTE(SUBSTITUTE(SUBSTITUTE(SUBSTITUTE(SUBSTITUTE(SUBSTITUTE(SUBSTITUTE(P193,$ED193,$ED$2&ROW($ED193)),$EC193,$EC$2&ROW($EC193)),$EB193,$EB$2&ROW($EB193)),$EA193,$EA$2&ROW($EA193)),$DZ193,$DZ$2&ROW($DZ193)),$DY193,$DY$2&ROW($DY193)),$DX193,$DX$2&ROW($DX193)),$DW193,$DW$2&ROW($DW193)),$DV193,$DV$2&ROW($DV193)),$DU193,$DU$2&ROW($DU193)),$DT193,$DT$2&ROW($DT193)),$DS193,$DS$2&ROW($DS193)))","v":0},{"$f":"IF(Q193=\"\",0,\"X=\"&SUBSTITUTE(SUBSTITUTE(SUBSTITUTE(SUBSTITUTE(SUBSTITUTE(SUBSTITUTE(SUBSTITUTE(SUBSTITUTE(SUBSTITUTE(SUBSTITUTE(SUBSTITUTE(SUBSTITUTE(Q193,$ED193,$ED$2&ROW($ED193)),$EC193,$EC$2&ROW($EC193)),$EB193,$EB$2&ROW($EB193)),$EA193,$EA$2&ROW($EA193)),$DZ193,$DZ$2&ROW($DZ193)),$DY193,$DY$2&ROW($DY193)),$DX193,$DX$2&ROW($DX193)),$DW193,$DW$2&ROW($DW193)),$DV193,$DV$2&ROW($DV193)),$DU193,$DU$2&ROW($DU193)),$DT193,$DT$2&ROW($DT193)),$DS193,$DS$2&ROW($DS193)))","v":0},{"$f":"IF(R193=\"\",0,\"X=\"&SUBSTITUTE(SUBSTITUTE(SUBSTITUTE(SUBSTITUTE(SUBSTITUTE(SUBSTITUTE(SUBSTITUTE(SUBSTITUTE(SUBSTITUTE(SUBSTITUTE(SUBSTITUTE(SUBSTITUTE(R193,$ED193,$ED$2&ROW($ED193)),$EC193,$EC$2&ROW($EC193)),$EB193,$EB$2&ROW($EB193)),$EA193,$EA$2&ROW($EA193)),$DZ193,$DZ$2&ROW($DZ193)),$DY193,$DY$2&ROW($DY193)),$DX193,$DX$2&ROW($DX193)),$DW193,$DW$2&ROW($DW193)),$DV193,$DV$2&ROW($DV193)),$DU193,$DU$2&ROW($DU193)),$DT193,$DT$2&ROW($DT193)),$DS193,$DS$2&ROW($DS193)))","v":0},{"$f":"IF(S193=\"\",0,\"X=\"&SUBSTITUTE(SUBSTITUTE(SUBSTITUTE(SUBSTITUTE(SUBSTITUTE(SUBSTITUTE(SUBSTITUTE(SUBSTITUTE(SUBSTITUTE(SUBSTITUTE(SUBSTITUTE(SUBSTITUTE(S193,$ED193,$ED$2&ROW($ED193)),$EC193,$EC$2&ROW($EC193)),$EB193,$EB$2&ROW($EB193)),$EA193,$EA$2&ROW($EA193)),$DZ193,$DZ$2&ROW($DZ193)),$DY193,$DY$2&ROW($DY193)),$DX193,$DX$2&ROW($DX193)),$DW193,$DW$2&ROW($DW193)),$DV193,$DV$2&ROW($DV193)),$DU193,$DU$2&ROW($DU193)),$DT193,$DT$2&ROW($DT193)),$DS193,$DS$2&ROW($DS193)))","v":0},{"$f":"IF(T193=\"\",0,\"X=\"&SUBSTITUTE(SUBSTITUTE(SUBSTITUTE(SUBSTITUTE(SUBSTITUTE(SUBSTITUTE(SUBSTITUTE(SUBSTITUTE(SUBSTITUTE(SUBSTITUTE(SUBSTITUTE(SUBSTITUTE(T193,$ED193,$ED$2&ROW($ED193)),$EC193,$EC$2&ROW($EC193)),$EB193,$EB$2&ROW($EB193)),$EA193,$EA$2&ROW($EA193)),$DZ193,$DZ$2&ROW($DZ193)),$DY193,$DY$2&ROW($DY193)),$DX193,$DX$2&ROW($DX193)),$DW193,$DW$2&ROW($DW193)),$DV193,$DV$2&ROW($DV193)),$DU193,$DU$2&ROW($DU193)),$DT193,$DT$2&ROW($DT193)),$DS193,$DS$2&ROW($DS193)))","v":0},{"$f":"IF(U193=\"\",0,\"X=\"&SUBSTITUTE(SUBSTITUTE(SUBSTITUTE(SUBSTITUTE(SUBSTITUTE(SUBSTITUTE(SUBSTITUTE(SUBSTITUTE(SUBSTITUTE(SUBSTITUTE(SUBSTITUTE(SUBSTITUTE(U193,$ED193,$ED$2&ROW($ED193)),$EC193,$EC$2&ROW($EC193)),$EB193,$EB$2&ROW($EB193)),$EA193,$EA$2&ROW($EA193)),$DZ193,$DZ$2&ROW($DZ193)),$DY193,$DY$2&ROW($DY193)),$DX193,$DX$2&ROW($DX193)),$DW193,$DW$2&ROW($DW193)),$DV193,$DV$2&ROW($DV193)),$DU193,$DU$2&ROW($DU193)),$DT193,$DT$2&ROW($DT193)),$DS193,$DS$2&ROW($DS193)))","v":"X=0.015"},{"$f":"IF(V193=\"\",0,\"X=\"&SUBSTITUTE(SUBSTITUTE(SUBSTITUTE(SUBSTITUTE(SUBSTITUTE(SUBSTITUTE(SUBSTITUTE(SUBSTITUTE(SUBSTITUTE(SUBSTITUTE(SUBSTITUTE(SUBSTITUTE(V193,$ED193,$ED$2&ROW($ED193)),$EC193,$EC$2&ROW($EC193)),$EB193,$EB$2&ROW($EB193)),$EA193,$EA$2&ROW($EA193)),$DZ193,$DZ$2&ROW($DZ193)),$DY193,$DY$2&ROW($DY193)),$DX193,$DX$2&ROW($DX193)),$DW193,$DW$2&ROW($DW193)),$DV193,$DV$2&ROW($DV193)),$DU193,$DU$2&ROW($DU193)),$DT193,$DT$2&ROW($DT193)),$DS193,$DS$2&ROW($DS193)))","v":"X=0.064"},{"$f":"IF(W193=\"\",0,\"X=\"&SUBSTITUTE(SUBSTITUTE(SUBSTITUTE(SUBSTITUTE(SUBSTITUTE(SUBSTITUTE(SUBSTITUTE(SUBSTITUTE(SUBSTITUTE(SUBSTITUTE(SUBSTITUTE(SUBSTITUTE(W193,$ED193,$ED$2&ROW($ED193)),$EC193,$EC$2&ROW($EC193)),$EB193,$EB$2&ROW($EB193)),$EA193,$EA$2&ROW($EA193)),$DZ193,$DZ$2&ROW($DZ193)),$DY193,$DY$2&ROW($DY193)),$DX193,$DX$2&ROW($DX193)),$DW193,$DW$2&ROW($DW193)),$DV193,$DV$2&ROW($DV193)),$DU193,$DU$2&ROW($DU193)),$DT193,$DT$2&ROW($DT193)),$DS193,$DS$2&ROW($DS193)))","v":"X=0.67"},{"$f":"IF(X193=\"\",0,\"X=\"&SUBSTITUTE(SUBSTITUTE(SUBSTITUTE(SUBSTITUTE(SUBSTITUTE(SUBSTITUTE(SUBSTITUTE(SUBSTITUTE(SUBSTITUTE(SUBSTITUTE(SUBSTITUTE(SUBSTITUTE(X193,$ED193,$ED$2&ROW($ED193)),$EC193,$EC$2&ROW($EC193)),$EB193,$EB$2&ROW($EB193)),$EA193,$EA$2&ROW($EA193)),$DZ193,$DZ$2&ROW($DZ193)),$DY193,$DY$2&ROW($DY193)),$DX193,$DX$2&ROW($DX193)),$DW193,$DW$2&ROW($DW193)),$DV193,$DV$2&ROW($DV193)),$DU193,$DU$2&ROW($DU193)),$DT193,$DT$2&ROW($DT193)),$DS193,$DS$2&ROW($DS193)))","v":"X=0.22"},{"$f":"IF(Y193=\"\",0,\"X=\"&SUBSTITUTE(SUBSTITUTE(SUBSTITUTE(SUBSTITUTE(SUBSTITUTE(SUBSTITUTE(SUBSTITUTE(SUBSTITUTE(SUBSTITUTE(SUBSTITUTE(SUBSTITUTE(SUBSTITUTE(Y193,$ED193,$ED$2&ROW($ED193)),$EC193,$EC$2&ROW($EC193)),$EB193,$EB$2&ROW($EB193)),$EA193,$EA$2&ROW($EA193)),$DZ193,$DZ$2&ROW($DZ193)),$DY193,$DY$2&ROW($DY193)),$DX193,$DX$2&ROW($DX193)),$DW193,$DW$2&ROW($DW193)),$DV193,$DV$2&ROW($DV193)),$DU193,$DU$2&ROW($DU193)),$DT193,$DT$2&ROW($DT193)),$DS193,$DS$2&ROW($DS193)))","v":"X=0.48"},{"$f":"IF(Z193=\"\",0,\"X=\"&SUBSTITUTE(SUBSTITUTE(SUBSTITUTE(SUBSTITUTE(SUBSTITUTE(SUBSTITUTE(SUBSTITUTE(SUBSTITUTE(SUBSTITUTE(SUBSTITUTE(SUBSTITUTE(SUBSTITUTE(Z193,$ED193,$ED$2&ROW($ED193)),$EC193,$EC$2&ROW($EC193)),$EB193,$EB$2&ROW($EB193)),$EA193,$EA$2&ROW($EA193)),$DZ193,$DZ$2&ROW($DZ193)),$DY193,$DY$2&ROW($DY193)),$DX193,$DX$2&ROW($DX193)),$DW193,$DW$2&ROW($DW193)),$DV193,$DV$2&ROW($DV193)),$DU193,$DU$2&ROW($DU193)),$DT193,$DT$2&ROW($DT193)),$DS193,$DS$2&ROW($DS193)))","v":"X=0.02"},{"$f":"IF(AA193=\"\",0,\"X=\"&SUBSTITUTE(SUBSTITUTE(SUBSTITUTE(SUBSTITUTE(SUBSTITUTE(SUBSTITUTE(SUBSTITUTE(SUBSTITUTE(SUBSTITUTE(SUBSTITUTE(SUBSTITUTE(SUBSTITUTE(AA193,$ED193,$ED$2&ROW($ED193)),$EC193,$EC$2&ROW($EC193)),$EB193,$EB$2&ROW($EB193)),$EA193,$EA$2&ROW($EA193)),$DZ193,$DZ$2&ROW($DZ193)),$DY193,$DY$2&ROW($DY193)),$DX193,$DX$2&ROW($DX193)),$DW193,$DW$2&ROW($DW193)),$DV193,$DV$2&ROW($DV193)),$DU193,$DU$2&ROW($DU193)),$DT193,$DT$2&ROW($DT193)),$DS193,$DS$2&ROW($DS193)))","v":"X=0.28"},{"$f":"IF(AB193=\"\",0,\"X=\"&SUBSTITUTE(SUBSTITUTE(SUBSTITUTE(SUBSTITUTE(SUBSTITUTE(SUBSTITUTE(SUBSTITUTE(SUBSTITUTE(SUBSTITUTE(SUBSTITUTE(SUBSTITUTE(SUBSTITUTE(AB193,$ED193,$ED$2&ROW($ED193)),$EC193,$EC$2&ROW($EC193)),$EB193,$EB$2&ROW($EB193)),$EA193,$EA$2&ROW($EA193)),$DZ193,$DZ$2&ROW($DZ193)),$DY193,$DY$2&ROW($DY193)),$DX193,$DX$2&ROW($DX193)),$DW193,$DW$2&ROW($DW193)),$DV193,$DV$2&ROW($DV193)),$DU193,$DU$2&ROW($DU193)),$DT193,$DT$2&ROW($DT193)),$DS193,$DS$2&ROW($DS193)))","v":"X=0"},null,null,"{Factor:WinterCF}","{Factor:SummerCF}",{"$f":"IFERROR(INDEX($EG193:$IV193,MATCH(0,COUNTIF($DR193:DT193,$EG193:$IV193),0)),\"\")","v":"{HSPF}"},{"$f":"IFERROR(INDEX($EG193:$IV193,MATCH(0,COUNTIF($DR193:DU193,$EG193:$IV193),0)),\"\")","v":"{Rebate Level}"},{"$f":"IFERROR(INDEX($EG193:$IV193,MATCH(0,COUNTIF($DR193:DV193,$EG193:$IV193),0)),\"\")","v":"{Measure:Quantity}"},{"$f":"IFERROR(INDEX($EG193:$IV193,MATCH(0,COUNTIF($DR193:DW193,$EG193:$IV193),0)),\"\")","v":""},{"$f":"IFERROR(INDEX($EG193:$IV193,MATCH(0,COUNTIF($DR193:DX193,$EG193:$IV193),0)),\"\")","v":""},{"$f":"IFERROR(INDEX($EG193:$IV193,MATCH(0,COUNTIF($DR193:DY193,$EG193:$IV193),0)),\"\")","v":""},{"$f":"IFERROR(INDEX($EG193:$IV193,MATCH(0,COUNTIF($DR193:DZ193,$EG193:$IV193),0)),\"\")","v":""},{"$f":"IFERROR(INDEX($EG193:$IV193,MATCH(0,COUNTIF($DR193:EA193,$EG193:$IV193),0)),\"\")","v":""},{"$f":"IFERROR(INDEX($EG193:$IV193,MATCH(0,COUNTIF($DR193:EB193,$EG193:$IV193),0)),\"\")","v":""},{"$f":"IFERROR(INDEX($EG193:$IV193,MATCH(0,COUNTIF($DR193:EC193,$EG193:$IV193),0)),\"\")","v":""},null,null,{"$f":"IFERROR(MID($G193,FIND(CHAR(160),SUBSTITUTE($G193,\"{\",CHAR(160),EG$1)),FIND(CHAR(160),SUBSTITUTE($G193,\"}\",CHAR(160),EG$1))-FIND(CHAR(160),SUBSTITUTE($G193,\"{\",CHAR(160),EG$1))+1),\"\")","v":""},{"$f":"IFERROR(MID($G193,FIND(CHAR(160),SUBSTITUTE($G193,\"{\",CHAR(160),EH$1)),FIND(CHAR(160),SUBSTITUTE($G193,\"}\",CHAR(160),EH$1))-FIND(CHAR(160),SUBSTITUTE($G193,\"{\",CHAR(160),EH$1))+1),\"\")","v":""},{"$f":"IFERROR(MID($G193,FIND(CHAR(160),SUBSTITUTE($G193,\"{\",CHAR(160),EI$1)),FIND(CHAR(160),SUBSTITUTE($G193,\"}\",CHAR(160),EI$1))-FIND(CHAR(160),SUBSTITUTE($G193,\"{\",CHAR(160),EI$1))+1),\"\")","v":""},{"$f":"IFERROR(MID($G193,FIND(CHAR(160),SUBSTITUTE($G193,\"{\",CHAR(160),EJ$1)),FIND(CHAR(160),SUBSTITUTE($G193,\"}\",CHAR(160),EJ$1))-FIND(CHAR(160),SUBSTITUTE($G193,\"{\",CHAR(160),EJ$1))+1),\"\")","v":""},{"$f":"IFERROR(MID($G193,FIND(CHAR(160),SUBSTITUTE($G193,\"{\",CHAR(160),EK$1)),FIND(CHAR(160),SUBSTITUTE($G193,\"}\",CHAR(160),EK$1))-FIND(CHAR(160),SUBSTITUTE($G193,\"{\",CHAR(160),EK$1))+1),\"\")","v":""},{"$f":"IFERROR(MID($G193,FIND(CHAR(160),SUBSTITUTE($G193,\"{\",CHAR(160),EL$1)),FIND(CHAR(160),SUBSTITUTE($G193,\"}\",CHAR(160),EL$1))-FIND(CHAR(160),SUBSTITUTE($G193,\"{\",CHAR(160),EL$1))+1),\"\")","v":""},{"$f":"IFERROR(MID($G193,FIND(CHAR(160),SUBSTITUTE($G193,\"{\",CHAR(160),EM$1)),FIND(CHAR(160),SUBSTITUTE($G193,\"}\",CHAR(160),EM$1))-FIND(CHAR(160),SUBSTITUTE($G193,\"{\",CHAR(160),EM$1))+1),\"\")","v":""},{"$f":"IFERROR(MID($G193,FIND(CHAR(160),SUBSTITUTE($G193,\"{\",CHAR(160),EN$1)),FIND(CHAR(160),SUBSTITUTE($G193,\"}\",CHAR(160),EN$1))-FIND(CHAR(160),SUBSTITUTE($G193,\"{\",CHAR(160),EN$1))+1),\"\")","v":""},{"$f":"IFERROR(MID($G193,FIND(CHAR(160),SUBSTITUTE($G193,\"{\",CHAR(160),EO$1)),FIND(CHAR(160),SUBSTITUTE($G193,\"}\",CHAR(160),EO$1))-FIND(CHAR(160),SUBSTITUTE($G193,\"{\",CHAR(160),EO$1))+1),\"\")","v":""},{"$f":"IFERROR(MID($G193,FIND(CHAR(160),SUBSTITUTE($G193,\"{\",CHAR(160),EP$1)),FIND(CHAR(160),SUBSTITUTE($G193,\"}\",CHAR(160),EP$1))-FIND(CHAR(160),SUBSTITUTE($G193,\"{\",CHAR(160),EP$1))+1),\"\")","v":""},{"$f":"IFERROR(MID($J193,FIND(CHAR(160),SUBSTITUTE($J193,\"{\",CHAR(160),EQ$1)),FIND(CHAR(160),SUBSTITUTE($J193,\"}\",CHAR(160),EQ$1))-FIND(CHAR(160),SUBSTITUTE($J193,\"{\",CHAR(160),EQ$1))+1),\"\")","v":"{HSPF}"},{"$f":"IFERROR(MID($J193,FIND(CHAR(160),SUBSTITUTE($J193,\"{\",CHAR(160),ER$1)),FIND(CHAR(160),SUBSTITUTE($J193,\"}\",CHAR(160),ER$1))-FIND(CHAR(160),SUBSTITUTE($J193,\"{\",CHAR(160),ER$1))+1),\"\")","v":"{Rebate Level}"},{"$f":"IFERROR(MID($J193,FIND(CHAR(160),SUBSTITUTE($J193,\"{\",CHAR(160),ES$1)),FIND(CHAR(160),SUBSTITUTE($J193,\"}\",CHAR(160),ES$1))-FIND(CHAR(160),SUBSTITUTE($J193,\"{\",CHAR(160),ES$1))+1),\"\")","v":"{Measure:Quantity}"},{"$f":"IFERROR(MID($J193,FIND(CHAR(160),SUBSTITUTE($J193,\"{\",CHAR(160),ET$1)),FIND(CHAR(160),SUBSTITUTE($J193,\"}\",CHAR(160),ET$1))-FIND(CHAR(160),SUBSTITUTE($J193,\"{\",CHAR(160),ET$1))+1),\"\")","v":""},{"$f":"IFERROR(MID($J193,FIND(CHAR(160),SUBSTITUTE($J193,\"{\",CHAR(160),EU$1)),FIND(CHAR(160),SUBSTITUTE($J193,\"}\",CHAR(160),EU$1))-FIND(CHAR(160),SUBSTITUTE($J193,\"{\",CHAR(160),EU$1))+1),\"\")","v":""},{"$f":"IFERROR(MID($J193,FIND(CHAR(160),SUBSTITUTE($J193,\"{\",CHAR(160),EV$1)),FIND(CHAR(160),SUBSTITUTE($J193,\"}\",CHAR(160),EV$1))-FIND(CHAR(160),SUBSTITUTE($J193,\"{\",CHAR(160),EV$1))+1),\"\")","v":""},{"$f":"IFERROR(MID($J193,FIND(CHAR(160),SUBSTITUTE($J193,\"{\",CHAR(160),EW$1)),FIND(CHAR(160),SUBSTITUTE($J193,\"}\",CHAR(160),EW$1))-FIND(CHAR(160),SUBSTITUTE($J193,\"{\",CHAR(160),EW$1))+1),\"\")","v":""},{"$f":"IFERROR(MID($J193,FIND(CHAR(160),SUBSTITUTE($J193,\"{\",CHAR(160),EX$1)),FIND(CHAR(160),SUBSTITUTE($J193,\"}\",CHAR(160),EX$1))-FIND(CHAR(160),SUBSTITUTE($J193,\"{\",CHAR(160),EX$1))+1),\"\")","v":""},{"$f":"IFERROR(MID($J193,FIND(CHAR(160),SUBSTITUTE($J193,\"{\",CHAR(160),EY$1)),FIND(CHAR(160),SUBSTITUTE($J193,\"}\",CHAR(160),EY$1))-FIND(CHAR(160),SUBSTITUTE($J193,\"{\",CHAR(160),EY$1))+1),\"\")","v":""},{"$f":"IFERROR(MID($J193,FIND(CHAR(160),SUBSTITUTE($J193,\"{\",CHAR(160),EZ$1)),FIND(CHAR(160),SUBSTITUTE($J193,\"}\",CHAR(160),EZ$1))-FIND(CHAR(160),SUBSTITUTE($J193,\"{\",CHAR(160),EZ$1))+1),\"\")","v":""},{"$f":"IFERROR(MID($J193,FIND(CHAR(160),SUBSTITUTE($J193,\"{\",CHAR(160),FA$1)),FIND(CHAR(160),SUBSTITUTE($J193,\"}\",CHAR(160),FA$1))-FIND(CHAR(160),SUBSTITUTE($J193,\"{\",CHAR(160),FA$1))+1),\"\")","v":"{HSPF}"},{"$f":"IFERROR(MID($J193,FIND(CHAR(160),SUBSTITUTE($J193,\"{\",CHAR(160),FB$1)),FIND(CHAR(160),SUBSTITUTE($J193,\"}\",CHAR(160),FB$1))-FIND(CHAR(160),SUBSTITUTE($J193,\"{\",CHAR(160),FB$1))+1),\"\")","v":"{Rebate Level}"},{"$f":"IFERROR(MID($O193,FIND(CHAR(160),SUBSTITUTE($O193,\"{\",CHAR(160),FC$1)),FIND(CHAR(160),SUBSTITUTE($O193,\"}\",CHAR(160),FC$1))-FIND(CHAR(160),SUBSTITUTE($O193,\"{\",CHAR(160),FC$1))+1),\"\")","v":""},{"$f":"IFERROR(MID($O193,FIND(CHAR(160),SUBSTITUTE($O193,\"{\",CHAR(160),FD$1)),FIND(CHAR(160),SUBSTITUTE($O193,\"}\",CHAR(160),FD$1))-FIND(CHAR(160),SUBSTITUTE($O193,\"{\",CHAR(160),FD$1))+1),\"\")","v":""},{"$f":"IFERROR(MID($O193,FIND(CHAR(160),SUBSTITUTE($O193,\"{\",CHAR(160),FE$1)),FIND(CHAR(160),SUBSTITUTE($O193,\"}\",CHAR(160),FE$1))-FIND(CHAR(160),SUBSTITUTE($O193,\"{\",CHAR(160),FE$1))+1),\"\")","v":""},{"$f":"IFERROR(MID($O193,FIND(CHAR(160),SUBSTITUTE($O193,\"{\",CHAR(160),FF$1)),FIND(CHAR(160),SUBSTITUTE($O193,\"}\",CHAR(160),FF$1))-FIND(CHAR(160),SUBSTITUTE($O193,\"{\",CHAR(160),FF$1))+1),\"\")","v":""},{"$f":"IFERROR(MID($O193,FIND(CHAR(160),SUBSTITUTE($O193,\"{\",CHAR(160),FG$1)),FIND(CHAR(160),SUBSTITUTE($O193,\"}\",CHAR(160),FG$1))-FIND(CHAR(160),SUBSTITUTE($O193,\"{\",CHAR(160),FG$1))+1),\"\")","v":""},{"$f":"IFERROR(MID($O193,FIND(CHAR(160),SUBSTITUTE($O193,\"{\",CHAR(160),FH$1)),FIND(CHAR(160),SUBSTITUTE($O193,\"}\",CHAR(160),FH$1))-FIND(CHAR(160),SUBSTITUTE($O193,\"{\",CHAR(160),FH$1))+1),\"\")","v":""},{"$f":"IFERROR(MID($O193,FIND(CHAR(160),SUBSTITUTE($O193,\"{\",CHAR(160),FI$1)),FIND(CHAR(160),SUBSTITUTE($O193,\"}\",CHAR(160),FI$1))-FIND(CHAR(160),SUBSTITUTE($O193,\"{\",CHAR(160),FI$1))+1),\"\")","v":""},{"$f":"IFERROR(MID($O193,FIND(CHAR(160),SUBSTITUTE($O193,\"{\",CHAR(160),FJ$1)),FIND(CHAR(160),SUBSTITUTE($O193,\"}\",CHAR(160),FJ$1))-FIND(CHAR(160),SUBSTITUTE($O193,\"{\",CHAR(160),FJ$1))+1),\"\")","v":""},{"$f":"IFERROR(MID($O193,FIND(CHAR(160),SUBSTITUTE($O193,\"{\",CHAR(160),FK$1)),FIND(CHAR(160),SUBSTITUTE($O193,\"}\",CHAR(160),FK$1))-FIND(CHAR(160),SUBSTITUTE($O193,\"{\",CHAR(160),FK$1))+1),\"\")","v":""},{"$f":"IFERROR(MID($O193,FIND(CHAR(160),SUBSTITUTE($O193,\"{\",CHAR(160),FL$1)),FIND(CHAR(160),SUBSTITUTE($O193,\"}\",CHAR(160),FL$1))-FIND(CHAR(160),SUBSTITUTE($O193,\"{\",CHAR(160),FL$1))+1),\"\")","v":""},{"$f":"IFERROR(MID($R193,FIND(CHAR(160),SUBSTITUTE($R193,\"{\",CHAR(160),FM$1)),FIND(CHAR(160),SUBSTITUTE($R193,\"}\",CHAR(160),FM$1))-FIND(CHAR(160),SUBSTITUTE($R193,\"{\",CHAR(160),FM$1))+1),\"\")","v":""},{"$f":"IFERROR(MID($R193,FIND(CHAR(160),SUBSTITUTE($R193,\"{\",CHAR(160),FN$1)),FIND(CHAR(160),SUBSTITUTE($R193,\"}\",CHAR(160),FN$1))-FIND(CHAR(160),SUBSTITUTE($R193,\"{\",CHAR(160),FN$1))+1),\"\")","v":""},{"$f":"IFERROR(MID($R193,FIND(CHAR(160),SUBSTITUTE($R193,\"{\",CHAR(160),FO$1)),FIND(CHAR(160),SUBSTITUTE($R193,\"}\",CHAR(160),FO$1))-FIND(CHAR(160),SUBSTITUTE($R193,\"{\",CHAR(160),FO$1))+1),\"\")","v":""},{"$f":"IFERROR(MID($R193,FIND(CHAR(160),SUBSTITUTE($R193,\"{\",CHAR(160),FP$1)),FIND(CHAR(160),SUBSTITUTE($R193,\"}\",CHAR(160),FP$1))-FIND(CHAR(160),SUBSTITUTE($R193,\"{\",CHAR(160),FP$1))+1),\"\")","v":""},{"$f":"IFERROR(MID($R193,FIND(CHAR(160),SUBSTITUTE($R193,\"{\",CHAR(160),FQ$1)),FIND(CHAR(160),SUBSTITUTE($R193,\"}\",CHAR(160),FQ$1))-FIND(CHAR(160),SUBSTITUTE($R193,\"{\",CHAR(160),FQ$1))+1),\"\")","v":""},{"$f":"IFERROR(MID($R193,FIND(CHAR(160),SUBSTITUTE($R193,\"{\",CHAR(160),FR$1)),FIND(CHAR(160),SUBSTITUTE($R193,\"}\",CHAR(160),FR$1))-FIND(CHAR(160),SUBSTITUTE($R193,\"{\",CHAR(160),FR$1))+1),\"\")","v":""},{"$f":"IFERROR(MID($R193,FIND(CHAR(160),SUBSTITUTE($R193,\"{\",CHAR(160),FS$1)),FIND(CHAR(160),SUBSTITUTE($R193,\"}\",CHAR(160),FS$1))-FIND(CHAR(160),SUBSTITUTE($R193,\"{\",CHAR(160),FS$1))+1),\"\")","v":""},{"$f":"IFERROR(MID($R193,FIND(CHAR(160),SUBSTITUTE($R193,\"{\",CHAR(160),FT$1)),FIND(CHAR(160),SUBSTITUTE($R193,\"}\",CHAR(160),FT$1))-FIND(CHAR(160),SUBSTITUTE($R193,\"{\",CHAR(160),FT$1))+1),\"\")","v":""},{"$f":"IFERROR(MID($R193,FIND(CHAR(160),SUBSTITUTE($R193,\"{\",CHAR(160),FU$1)),FIND(CHAR(160),SUBSTITUTE($R193,\"}\",CHAR(160),FU$1))-FIND(CHAR(160),SUBSTITUTE($R193,\"{\",CHAR(160),FU$1))+1),\"\")","v":""},{"$f":"IFERROR(MID($R193,FIND(CHAR(160),SUBSTITUTE($R193,\"{\",CHAR(160),FV$1)),FIND(CHAR(160),SUBSTITUTE($R193,\"}\",CHAR(160),FV$1))-FIND(CHAR(160),SUBSTITUTE($R193,\"{\",CHAR(160),FV$1))+1),\"\")","v":""},{"$f":"IFERROR(MID($U193,FIND(CHAR(160),SUBSTITUTE($U193,\"{\",CHAR(160),FW$1)),FIND(CHAR(160),SUBSTITUTE($U193,\"}\",CHAR(160),FW$1))-FIND(CHAR(160),SUBSTITUTE($U193,\"{\",CHAR(160),FW$1))+1),\"\")","v":""},{"$f":"IFERROR(MID($U193,FIND(CHAR(160),SUBSTITUTE($U193,\"{\",CHAR(160),FX$1)),FIND(CHAR(160),SUBSTITUTE($U193,\"}\",CHAR(160),FX$1))-FIND(CHAR(160),SUBSTITUTE($U193,\"{\",CHAR(160),FX$1))+1),\"\")","v":""},{"$f":"IFERROR(MID($U193,FIND(CHAR(160),SUBSTITUTE($U193,\"{\",CHAR(160),FY$1)),FIND(CHAR(160),SUBSTITUTE($U193,\"}\",CHAR(160),FY$1))-FIND(CHAR(160),SUBSTITUTE($U193,\"{\",CHAR(160),FY$1))+1),\"\")","v":""},{"$f":"IFERROR(MID($U193,FIND(CHAR(160),SUBSTITUTE($U193,\"{\",CHAR(160),FZ$1)),FIND(CHAR(160),SUBSTITUTE($U193,\"}\",CHAR(160),FZ$1))-FIND(CHAR(160),SUBSTITUTE($U193,\"{\",CHAR(160),FZ$1))+1),\"\")","v":""},{"$f":"IFERROR(MID($U193,FIND(CHAR(160),SUBSTITUTE($U193,\"{\",CHAR(160),GA$1)),FIND(CHAR(160),SUBSTITUTE($U193,\"}\",CHAR(160),GA$1))-FIND(CHAR(160),SUBSTITUTE($U193,\"{\",CHAR(160),GA$1))+1),\"\")","v":""},{"$f":"IFERROR(MID($U193,FIND(CHAR(160),SUBSTITUTE($U193,\"{\",CHAR(160),GB$1)),FIND(CHAR(160),SUBSTITUTE($U193,\"}\",CHAR(160),GB$1))-FIND(CHAR(160),SUBSTITUTE($U193,\"{\",CHAR(160),GB$1))+1),\"\")","v":""},{"$f":"IFERROR(MID($U193,FIND(CHAR(160),SUBSTITUTE($U193,\"{\",CHAR(160),GC$1)),FIND(CHAR(160),SUBSTITUTE($U193,\"}\",CHAR(160),GC$1))-FIND(CHAR(160),SUBSTITUTE($U193,\"{\",CHAR(160),GC$1))+1),\"\")","v":""},{"$f":"IFERROR(MID($U193,FIND(CHAR(160),SUBSTITUTE($U193,\"{\",CHAR(160),GD$1)),FIND(CHAR(160),SUBSTITUTE($U193,\"}\",CHAR(160),GD$1))-FIND(CHAR(160),SUBSTITUTE($U193,\"{\",CHAR(160),GD$1))+1),\"\")","v":""},{"$f":"IFERROR(MID($U193,FIND(CHAR(160),SUBSTITUTE($U193,\"{\",CHAR(160),GE$1)),FIND(CHAR(160),SUBSTITUTE($U193,\"}\",CHAR(160),GE$1))-FIND(CHAR(160),SUBSTITUTE($U193,\"{\",CHAR(160),GE$1))+1),\"\")","v":""},{"$f":"IFERROR(MID($U193,FIND(CHAR(160),SUBSTITUTE($U193,\"{\",CHAR(160),GF$1)),FIND(CHAR(160),SUBSTITUTE($U193,\"}\",CHAR(160),GF$1))-FIND(CHAR(160),SUBSTITUTE($U193,\"{\",CHAR(160),GF$1))+1),\"\")","v":""},{"$f":"IFERROR(MID($V193,FIND(CHAR(160),SUBSTITUTE($V193,\"{\",CHAR(160),GG$1)),FIND(CHAR(160),SUBSTITUTE($V193,\"}\",CHAR(160),GG$1))-FIND(CHAR(160),SUBSTITUTE($V193,\"{\",CHAR(160),GG$1))+1),\"\")","v":""},{"$f":"IFERROR(MID($V193,FIND(CHAR(160),SUBSTITUTE($V193,\"{\",CHAR(160),GH$1)),FIND(CHAR(160),SUBSTITUTE($V193,\"}\",CHAR(160),GH$1))-FIND(CHAR(160),SUBSTITUTE($V193,\"{\",CHAR(160),GH$1))+1),\"\")","v":""},{"$f":"IFERROR(MID($V193,FIND(CHAR(160),SUBSTITUTE($V193,\"{\",CHAR(160),GI$1)),FIND(CHAR(160),SUBSTITUTE($V193,\"}\",CHAR(160),GI$1))-FIND(CHAR(160),SUBSTITUTE($V193,\"{\",CHAR(160),GI$1))+1),\"\")","v":""},{"$f":"IFERROR(MID($V193,FIND(CHAR(160),SUBSTITUTE($V193,\"{\",CHAR(160),GJ$1)),FIND(CHAR(160),SUBSTITUTE($V193,\"}\",CHAR(160),GJ$1))-FIND(CHAR(160),SUBSTITUTE($V193,\"{\",CHAR(160),GJ$1))+1),\"\")","v":""},{"$f":"IFERROR(MID($V193,FIND(CHAR(160),SUBSTITUTE($V193,\"{\",CHAR(160),GK$1)),FIND(CHAR(160),SUBSTITUTE($V193,\"}\",CHAR(160),GK$1))-FIND(CHAR(160),SUBSTITUTE($V193,\"{\",CHAR(160),GK$1))+1),\"\")","v":""},{"$f":"IFERROR(MID($V193,FIND(CHAR(160),SUBSTITUTE($V193,\"{\",CHAR(160),GL$1)),FIND(CHAR(160),SUBSTITUTE($V193,\"}\",CHAR(160),GL$1))-FIND(CHAR(160),SUBSTITUTE($V193,\"{\",CHAR(160),GL$1))+1),\"\")","v":""},{"$f":"IFERROR(MID($V193,FIND(CHAR(160),SUBSTITUTE($V193,\"{\",CHAR(160),GM$1)),FIND(CHAR(160),SUBSTITUTE($V193,\"}\",CHAR(160),GM$1))-FIND(CHAR(160),SUBSTITUTE($V193,\"{\",CHAR(160),GM$1))+1),\"\")","v":""},{"$f":"IFERROR(MID($V193,FIND(CHAR(160),SUBSTITUTE($V193,\"{\",CHAR(160),GN$1)),FIND(CHAR(160),SUBSTITUTE($V193,\"}\",CHAR(160),GN$1))-FIND(CHAR(160),SUBSTITUTE($V193,\"{\",CHAR(160),GN$1))+1),\"\")","v":""},{"$f":"IFERROR(MID($V193,FIND(CHAR(160),SUBSTITUTE($V193,\"{\",CHAR(160),GO$1)),FIND(CHAR(160),SUBSTITUTE($V193,\"}\",CHAR(160),GO$1))-FIND(CHAR(160),SUBSTITUTE($V193,\"{\",CHAR(160),GO$1))+1),\"\")","v":""},{"$f":"IFERROR(MID($V193,FIND(CHAR(160),SUBSTITUTE($V193,\"{\",CHAR(160),GP$1)),FIND(CHAR(160),SUBSTITUTE($V193,\"}\",CHAR(160),GP$1))-FIND(CHAR(160),SUBSTITUTE($V193,\"{\",CHAR(160),GP$1))+1),\"\")","v":""},{"$f":"IFERROR(MID($W193,FIND(CHAR(160),SUBSTITUTE($W193,\"{\",CHAR(160),GQ$1)),FIND(CHAR(160),SUBSTITUTE($W193,\"}\",CHAR(160),GQ$1))-FIND(CHAR(160),SUBSTITUTE($W193,\"{\",CHAR(160),GQ$1))+1),\"\")","v":""},{"$f":"IFERROR(MID($W193,FIND(CHAR(160),SUBSTITUTE($W193,\"{\",CHAR(160),GR$1)),FIND(CHAR(160),SUBSTITUTE($W193,\"}\",CHAR(160),GR$1))-FIND(CHAR(160),SUBSTITUTE($W193,\"{\",CHAR(160),GR$1))+1),\"\")","v":""},{"$f":"IFERROR(MID($W193,FIND(CHAR(160),SUBSTITUTE($W193,\"{\",CHAR(160),GS$1)),FIND(CHAR(160),SUBSTITUTE($W193,\"}\",CHAR(160),GS$1))-FIND(CHAR(160),SUBSTITUTE($W193,\"{\",CHAR(160),GS$1))+1),\"\")","v":""},{"$f":"IFERROR(MID($W193,FIND(CHAR(160),SUBSTITUTE($W193,\"{\",CHAR(160),GT$1)),FIND(CHAR(160),SUBSTITUTE($W193,\"}\",CHAR(160),GT$1))-FIND(CHAR(160),SUBSTITUTE($W193,\"{\",CHAR(160),GT$1))+1),\"\")","v":""},{"$f":"IFERROR(MID($W193,FIND(CHAR(160),SUBSTITUTE($W193,\"{\",CHAR(160),GU$1)),FIND(CHAR(160),SUBSTITUTE($W193,\"}\",CHAR(160),GU$1))-FIND(CHAR(160),SUBSTITUTE($W193,\"{\",CHAR(160),GU$1))+1),\"\")","v":""},{"$f":"IFERROR(MID($W193,FIND(CHAR(160),SUBSTITUTE($W193,\"{\",CHAR(160),GV$1)),FIND(CHAR(160),SUBSTITUTE($W193,\"}\",CHAR(160),GV$1))-FIND(CHAR(160),SUBSTITUTE($W193,\"{\",CHAR(160),GV$1))+1),\"\")","v":""},{"$f":"IFERROR(MID($W193,FIND(CHAR(160),SUBSTITUTE($W193,\"{\",CHAR(160),GW$1)),FIND(CHAR(160),SUBSTITUTE($W193,\"}\",CHAR(160),GW$1))-FIND(CHAR(160),SUBSTITUTE($W193,\"{\",CHAR(160),GW$1))+1),\"\")","v":""},{"$f":"IFERROR(MID($W193,FIND(CHAR(160),SUBSTITUTE($W193,\"{\",CHAR(160),GX$1)),FIND(CHAR(160),SUBSTITUTE($W193,\"}\",CHAR(160),GX$1))-FIND(CHAR(160),SUBSTITUTE($W193,\"{\",CHAR(160),GX$1))+1),\"\")","v":""},{"$f":"IFERROR(MID($W193,FIND(CHAR(160),SUBSTITUTE($W193,\"{\",CHAR(160),GY$1)),FIND(CHAR(160),SUBSTITUTE($W193,\"}\",CHAR(160),GY$1))-FIND(CHAR(160),SUBSTITUTE($W193,\"{\",CHAR(160),GY$1))+1),\"\")","v":""},{"$f":"IFERROR(MID($W193,FIND(CHAR(160),SUBSTITUTE($W193,\"{\",CHAR(160),GZ$1)),FIND(CHAR(160),SUBSTITUTE($W193,\"}\",CHAR(160),GZ$1))-FIND(CHAR(160),SUBSTITUTE($W193,\"{\",CHAR(160),GZ$1))+1),\"\")","v":""},{"$f":"IFERROR(MID($X193,FIND(CHAR(160),SUBSTITUTE($X193,\"{\",CHAR(160),HA$1)),FIND(CHAR(160),SUBSTITUTE($X193,\"}\",CHAR(160),HA$1))-FIND(CHAR(160),SUBSTITUTE($X193,\"{\",CHAR(160),HA$1))+1),\"\")","v":""},{"$f":"IFERROR(MID($X193,FIND(CHAR(160),SUBSTITUTE($X193,\"{\",CHAR(160),HB$1)),FIND(CHAR(160),SUBSTITUTE($X193,\"}\",CHAR(160),HB$1))-FIND(CHAR(160),SUBSTITUTE($X193,\"{\",CHAR(160),HB$1))+1),\"\")","v":""},{"$f":"IFERROR(MID($X193,FIND(CHAR(160),SUBSTITUTE($X193,\"{\",CHAR(160),HC$1)),FIND(CHAR(160),SUBSTITUTE($X193,\"}\",CHAR(160),HC$1))-FIND(CHAR(160),SUBSTITUTE($X193,\"{\",CHAR(160),HC$1))+1),\"\")","v":""},{"$f":"IFERROR(MID($X193,FIND(CHAR(160),SUBSTITUTE($X193,\"{\",CHAR(160),HD$1)),FIND(CHAR(160),SUBSTITUTE($X193,\"}\",CHAR(160),HD$1))-FIND(CHAR(160),SUBSTITUTE($X193,\"{\",CHAR(160),HD$1))+1),\"\")","v":""},{"$f":"IFERROR(MID($X193,FIND(CHAR(160),SUBSTITUTE($X193,\"{\",CHAR(160),HE$1)),FIND(CHAR(160),SUBSTITUTE($X193,\"}\",CHAR(160),HE$1))-FIND(CHAR(160),SUBSTITUTE($X193,\"{\",CHAR(160),HE$1))+1),\"\")","v":""},{"$f":"IFERROR(MID($X193,FIND(CHAR(160),SUBSTITUTE($X193,\"{\",CHAR(160),HF$1)),FIND(CHAR(160),SUBSTITUTE($X193,\"}\",CHAR(160),HF$1))-FIND(CHAR(160),SUBSTITUTE($X193,\"{\",CHAR(160),HF$1))+1),\"\")","v":""},{"$f":"IFERROR(MID($X193,FIND(CHAR(160),SUBSTITUTE($X193,\"{\",CHAR(160),HG$1)),FIND(CHAR(160),SUBSTITUTE($X193,\"}\",CHAR(160),HG$1))-FIND(CHAR(160),SUBSTITUTE($X193,\"{\",CHAR(160),HG$1))+1),\"\")","v":""},{"$f":"IFERROR(MID($X193,FIND(CHAR(160),SUBSTITUTE($X193,\"{\",CHAR(160),HH$1)),FIND(CHAR(160),SUBSTITUTE($X193,\"}\",CHAR(160),HH$1))-FIND(CHAR(160),SUBSTITUTE($X193,\"{\",CHAR(160),HH$1))+1),\"\")","v":""},{"$f":"IFERROR(MID($X193,FIND(CHAR(160),SUBSTITUTE($X193,\"{\",CHAR(160),HI$1)),FIND(CHAR(160),SUBSTITUTE($X193,\"}\",CHAR(160),HI$1))-FIND(CHAR(160),SUBSTITUTE($X193,\"{\",CHAR(160),HI$1))+1),\"\")","v":""},{"$f":"IFERROR(MID($X193,FIND(CHAR(160),SUBSTITUTE($X193,\"{\",CHAR(160),HJ$1)),FIND(CHAR(160),SUBSTITUTE($X193,\"}\",CHAR(160),HJ$1))-FIND(CHAR(160),SUBSTITUTE($X193,\"{\",CHAR(160),HJ$1))+1),\"\")","v":""},{"$f":"IFERROR(MID($Y193,FIND(CHAR(160),SUBSTITUTE($Y193,\"{\",CHAR(160),HK$1)),FIND(CHAR(160),SUBSTITUTE($Y193,\"}\",CHAR(160),HK$1))-FIND(CHAR(160),SUBSTITUTE($Y193,\"{\",CHAR(160),HK$1))+1),\"\")","v":""},{"$f":"IFERROR(MID($Y193,FIND(CHAR(160),SUBSTITUTE($Y193,\"{\",CHAR(160),HL$1)),FIND(CHAR(160),SUBSTITUTE($Y193,\"}\",CHAR(160),HL$1))-FIND(CHAR(160),SUBSTITUTE($Y193,\"{\",CHAR(160),HL$1))+1),\"\")","v":""},{"$f":"IFERROR(MID($Y193,FIND(CHAR(160),SUBSTITUTE($Y193,\"{\",CHAR(160),HM$1)),FIND(CHAR(160),SUBSTITUTE($Y193,\"}\",CHAR(160),HM$1))-FIND(CHAR(160),SUBSTITUTE($Y193,\"{\",CHAR(160),HM$1))+1),\"\")","v":""},{"$f":"IFERROR(MID($Y193,FIND(CHAR(160),SUBSTITUTE($Y193,\"{\",CHAR(160),HN$1)),FIND(CHAR(160),SUBSTITUTE($Y193,\"}\",CHAR(160),HN$1))-FIND(CHAR(160),SUBSTITUTE($Y193,\"{\",CHAR(160),HN$1))+1),\"\")","v":""},{"$f":"IFERROR(MID($Y193,FIND(CHAR(160),SUBSTITUTE($Y193,\"{\",CHAR(160),HO$1)),FIND(CHAR(160),SUBSTITUTE($Y193,\"}\",CHAR(160),HO$1))-FIND(CHAR(160),SUBSTITUTE($Y193,\"{\",CHAR(160),HO$1))+1),\"\")","v":""},{"$f":"IFERROR(MID($Y193,FIND(CHAR(160),SUBSTITUTE($Y193,\"{\",CHAR(160),HP$1)),FIND(CHAR(160),SUBSTITUTE($Y193,\"}\",CHAR(160),HP$1))-FIND(CHAR(160),SUBSTITUTE($Y193,\"{\",CHAR(160),HP$1))+1),\"\")","v":""},{"$f":"IFERROR(MID($Y193,FIND(CHAR(160),SUBSTITUTE($Y193,\"{\",CHAR(160),HQ$1)),FIND(CHAR(160),SUBSTITUTE($Y193,\"}\",CHAR(160),HQ$1))-FIND(CHAR(160),SUBSTITUTE($Y193,\"{\",CHAR(160),HQ$1))+1),\"\")","v":""},{"$f":"IFERROR(MID($Y193,FIND(CHAR(160),SUBSTITUTE($Y193,\"{\",CHAR(160),HR$1)),FIND(CHAR(160),SUBSTITUTE($Y193,\"}\",CHAR(160),HR$1))-FIND(CHAR(160),SUBSTITUTE($Y193,\"{\",CHAR(160),HR$1))+1),\"\")","v":""},{"$f":"IFERROR(MID($Y193,FIND(CHAR(160),SUBSTITUTE($Y193,\"{\",CHAR(160),HS$1)),FIND(CHAR(160),SUBSTITUTE($Y193,\"}\",CHAR(160),HS$1))-FIND(CHAR(160),SUBSTITUTE($Y193,\"{\",CHAR(160),HS$1))+1),\"\")","v":""},{"$f":"IFERROR(MID($Y193,FIND(CHAR(160),SUBSTITUTE($Y193,\"{\",CHAR(160),HT$1)),FIND(CHAR(160),SUBSTITUTE($Y193,\"}\",CHAR(160),HT$1))-FIND(CHAR(160),SUBSTITUTE($Y193,\"{\",CHAR(160),HT$1))+1),\"\")","v":""},{"$f":"IFERROR(MID($Z193,FIND(CHAR(160),SUBSTITUTE($Z193,\"{\",CHAR(160),HU$1)),FIND(CHAR(160),SUBSTITUTE($Z193,\"}\",CHAR(160),HU$1))-FIND(CHAR(160),SUBSTITUTE($Z193,\"{\",CHAR(160),HU$1))+1),\"\")","v":""},{"$f":"IFERROR(MID($Z193,FIND(CHAR(160),SUBSTITUTE($Z193,\"{\",CHAR(160),HV$1)),FIND(CHAR(160),SUBSTITUTE($Z193,\"}\",CHAR(160),HV$1))-FIND(CHAR(160),SUBSTITUTE($Z193,\"{\",CHAR(160),HV$1))+1),\"\")","v":""},{"$f":"IFERROR(MID($Z193,FIND(CHAR(160),SUBSTITUTE($Z193,\"{\",CHAR(160),HW$1)),FIND(CHAR(160),SUBSTITUTE($Z193,\"}\",CHAR(160),HW$1))-FIND(CHAR(160),SUBSTITUTE($Z193,\"{\",CHAR(160),HW$1))+1),\"\")","v":""},{"$f":"IFERROR(MID($Z193,FIND(CHAR(160),SUBSTITUTE($Z193,\"{\",CHAR(160),HX$1)),FIND(CHAR(160),SUBSTITUTE($Z193,\"}\",CHAR(160),HX$1))-FIND(CHAR(160),SUBSTITUTE($Z193,\"{\",CHAR(160),HX$1))+1),\"\")","v":""},{"$f":"IFERROR(MID($Z193,FIND(CHAR(160),SUBSTITUTE($Z193,\"{\",CHAR(160),HY$1)),FIND(CHAR(160),SUBSTITUTE($Z193,\"}\",CHAR(160),HY$1))-FIND(CHAR(160),SUBSTITUTE($Z193,\"{\",CHAR(160),HY$1))+1),\"\")","v":""},{"$f":"IFERROR(MID($Z193,FIND(CHAR(160),SUBSTITUTE($Z193,\"{\",CHAR(160),HZ$1)),FIND(CHAR(160),SUBSTITUTE($Z193,\"}\",CHAR(160),HZ$1))-FIND(CHAR(160),SUBSTITUTE($Z193,\"{\",CHAR(160),HZ$1))+1),\"\")","v":""},{"$f":"IFERROR(MID($Z193,FIND(CHAR(160),SUBSTITUTE($Z193,\"{\",CHAR(160),IA$1)),FIND(CHAR(160),SUBSTITUTE($Z193,\"}\",CHAR(160),IA$1))-FIND(CHAR(160),SUBSTITUTE($Z193,\"{\",CHAR(160),IA$1))+1),\"\")","v":""},{"$f":"IFERROR(MID($Z193,FIND(CHAR(160),SUBSTITUTE($Z193,\"{\",CHAR(160),IB$1)),FIND(CHAR(160),SUBSTITUTE($Z193,\"}\",CHAR(160),IB$1))-FIND(CHAR(160),SUBSTITUTE($Z193,\"{\",CHAR(160),IB$1))+1),\"\")","v":""},{"$f":"IFERROR(MID($Z193,FIND(CHAR(160),SUBSTITUTE($Z193,\"{\",CHAR(160),IC$1)),FIND(CHAR(160),SUBSTITUTE($Z193,\"}\",CHAR(160),IC$1))-FIND(CHAR(160),SUBSTITUTE($Z193,\"{\",CHAR(160),IC$1))+1),\"\")","v":""},{"$f":"IFERROR(MID($Z193,FIND(CHAR(160),SUBSTITUTE($Z193,\"{\",CHAR(160),ID$1)),FIND(CHAR(160),SUBSTITUTE($Z193,\"}\",CHAR(160),ID$1))-FIND(CHAR(160),SUBSTITUTE($Z193,\"{\",CHAR(160),ID$1))+1),\"\")","v":""},{"$f":"IFERROR(MID($AA193,FIND(CHAR(160),SUBSTITUTE($AA193,\"{\",CHAR(160),IE$1)),FIND(CHAR(160),SUBSTITUTE($AA193,\"}\",CHAR(160),IE$1))-FIND(CHAR(160),SUBSTITUTE($AA193,\"{\",CHAR(160),IE$1))+1),\"\")","v":""},{"$f":"IFERROR(MID($AA193,FIND(CHAR(160),SUBSTITUTE($AA193,\"{\",CHAR(160),IF$1)),FIND(CHAR(160),SUBSTITUTE($AA193,\"}\",CHAR(160),IF$1))-FIND(CHAR(160),SUBSTITUTE($AA193,\"{\",CHAR(160),IF$1))+1),\"\")","v":""},{"$f":"IFERROR(MID($AA193,FIND(CHAR(160),SUBSTITUTE($AA193,\"{\",CHAR(160),IG$1)),FIND(CHAR(160),SUBSTITUTE($AA193,\"}\",CHAR(160),IG$1))-FIND(CHAR(160),SUBSTITUTE($AA193,\"{\",CHAR(160),IG$1))+1),\"\")","v":""},{"$f":"IFERROR(MID($AA193,FIND(CHAR(160),SUBSTITUTE($AA193,\"{\",CHAR(160),IH$1)),FIND(CHAR(160),SUBSTITUTE($AA193,\"}\",CHAR(160),IH$1))-FIND(CHAR(160),SUBSTITUTE($AA193,\"{\",CHAR(160),IH$1))+1),\"\")","v":""},{"$f":"IFERROR(MID($AA193,FIND(CHAR(160),SUBSTITUTE($AA193,\"{\",CHAR(160),II$1)),FIND(CHAR(160),SUBSTITUTE($AA193,\"}\",CHAR(160),II$1))-FIND(CHAR(160),SUBSTITUTE($AA193,\"{\",CHAR(160),II$1))+1),\"\")","v":""},{"$f":"IFERROR(MID($AA193,FIND(CHAR(160),SUBSTITUTE($AA193,\"{\",CHAR(160),IJ$1)),FIND(CHAR(160),SUBSTITUTE($AA193,\"}\",CHAR(160),IJ$1))-FIND(CHAR(160),SUBSTITUTE($AA193,\"{\",CHAR(160),IJ$1))+1),\"\")","v":""},{"$f":"IFERROR(MID($AA193,FIND(CHAR(160),SUBSTITUTE($AA193,\"{\",CHAR(160),IK$1)),FIND(CHAR(160),SUBSTITUTE($AA193,\"}\",CHAR(160),IK$1))-FIND(CHAR(160),SUBSTITUTE($AA193,\"{\",CHAR(160),IK$1))+1),\"\")","v":""},{"$f":"IFERROR(MID($AA193,FIND(CHAR(160),SUBSTITUTE($AA193,\"{\",CHAR(160),IL$1)),FIND(CHAR(160),SUBSTITUTE($AA193,\"}\",CHAR(160),IL$1))-FIND(CHAR(160),SUBSTITUTE($AA193,\"{\",CHAR(160),IL$1))+1),\"\")","v":""},{"$f":"IFERROR(MID($AA193,FIND(CHAR(160),SUBSTITUTE($AA193,\"{\",CHAR(160),IM$1)),FIND(CHAR(160),SUBSTITUTE($AA193,\"}\",CHAR(160),IM$1))-FIND(CHAR(160),SUBSTITUTE($AA193,\"{\",CHAR(160),IM$1))+1),\"\")","v":""},{"$f":"IFERROR(MID($AA193,FIND(CHAR(160),SUBSTITUTE($AA193,\"{\",CHAR(160),IN$1)),FIND(CHAR(160),SUBSTITUTE($AA193,\"}\",CHAR(160),IN$1))-FIND(CHAR(160),SUBSTITUTE($AA193,\"{\",CHAR(160),IN$1))+1),\"\")","v":""},{"$f":"IFERROR(MID($AB193,FIND(CHAR(160),SUBSTITUTE($AB193,\"{\",CHAR(160),IO$1)),FIND(CHAR(160),SUBSTITUTE($AB193,\"}\",CHAR(160),IO$1))-FIND(CHAR(160),SUBSTITUTE($AB193,\"{\",CHAR(160),IO$1))+1),\"\")","v":""},{"$f":"IFERROR(MID($AB193,FIND(CHAR(160),SUBSTITUTE($AB193,\"{\",CHAR(160),IP$1)),FIND(CHAR(160),SUBSTITUTE($AB193,\"}\",CHAR(160),IP$1))-FIND(CHAR(160),SUBSTITUTE($AB193,\"{\",CHAR(160),IP$1))+1),\"\")","v":""},{"$f":"IFERROR(MID($AB193,FIND(CHAR(160),SUBSTITUTE($AB193,\"{\",CHAR(160),IQ$1)),FIND(CHAR(160),SUBSTITUTE($AB193,\"}\",CHAR(160),IQ$1))-FIND(CHAR(160),SUBSTITUTE($AB193,\"{\",CHAR(160),IQ$1))+1),\"\")","v":""},{"$f":"IFERROR(MID($AB193,FIND(CHAR(160),SUBSTITUTE($AB193,\"{\",CHAR(160),IR$1)),FIND(CHAR(160),SUBSTITUTE($AB193,\"}\",CHAR(160),IR$1))-FIND(CHAR(160),SUBSTITUTE($AB193,\"{\",CHAR(160),IR$1))+1),\"\")","v":""},{"$f":"IFERROR(MID($AB193,FIND(CHAR(160),SUBSTITUTE($AB193,\"{\",CHAR(160),IS$1)),FIND(CHAR(160),SUBSTITUTE($AB193,\"}\",CHAR(160),IS$1))-FIND(CHAR(160),SUBSTITUTE($AB193,\"{\",CHAR(160),IS$1))+1),\"\")","v":""},{"$f":"IFERROR(MID($AB193,FIND(CHAR(160),SUBSTITUTE($AB193,\"{\",CHAR(160),IT$1)),FIND(CHAR(160),SUBSTITUTE($AB193,\"}\",CHAR(160),IT$1))-FIND(CHAR(160),SUBSTITUTE($AB193,\"{\",CHAR(160),IT$1))+1),\"\")","v":""},{"$f":"IFERROR(MID($AB193,FIND(CHAR(160),SUBSTITUTE($AB193,\"{\",CHAR(160),IU$1)),FIND(CHAR(160),SUBSTITUTE($AB193,\"}\",CHAR(160),IU$1))-FIND(CHAR(160),SUBSTITUTE($AB193,\"{\",CHAR(160),IU$1))+1),\"\")","v":""},{"$f":"IFERROR(MID($AB193,FIND(CHAR(160),SUBSTITUTE($AB193,\"{\",CHAR(160),IV$1)),FIND(CHAR(160),SUBSTITUTE($AB193,\"}\",CHAR(160),IV$1))-FIND(CHAR(160),SUBSTITUTE($AB193,\"{\",CHAR(160),IV$1))+1),\"\")","v":""},{"$f":"IFERROR(MID($AB193,FIND(CHAR(160),SUBSTITUTE($AB193,\"{\",CHAR(160),IW$1)),FIND(CHAR(160),SUBSTITUTE($AB193,\"}\",CHAR(160),IW$1))-FIND(CHAR(160),SUBSTITUTE($AB193,\"{\",CHAR(160),IW$1))+1),\"\")","v":""},{"$f":"IFERROR(MID($AB193,FIND(CHAR(160),SUBSTITUTE($AB193,\"{\",CHAR(160),IX$1)),FIND(CHAR(160),SUBSTITUTE($AB193,\"}\",CHAR(160),IX$1))-FIND(CHAR(160),SUBSTITUTE($AB193,\"{\",CHAR(160),IX$1))+1),\"\")","v":""},null,{"$f":"10-COUNTIF(DU193:ED193,\"\")","v":3}]
["Home Energy Savings Program - Electric","Heat Pump Single Zone 2nd Unit Tier 1","HPSING2T1","2021-07-01","2022-06-30","Per Measure",682,0,"Calculated","if({Type of indoor unit}=4 and {HSPF}<10.0,0,if({Type of indoor unit}<>4 and {HSPF}<12.0,0,if({Rebate Level}=1,$250.00,$200.00)))*{Measure:Quantity}",0,"2021-07-01","2022-06-30","Per Measure",153,null,null,null,null,null,1.4999999999999999E-2,6.4000000000000001E-2,0.67,0.22,0.48,0.02,0.28000000000000003,0,"2021-07-01","2022-06-30",18,1,1,0.38100000000000001,0.52500000000000002,5.0999999999999997E-2,4.2000000000000003E-2,1,1,1,0.42,0.11,null,{"$f":"DU194","v":"{Type of indoor unit}"},1,{"$f":"DV194","v":"{HSPF}"},12,{"$f":"DW194","v":"{Rebate Level}"},1,{"$f":"DX194","v":"{Measure:Quantity}"},1,{"$f":"DY194","v":""},null,{"$f":"DZ194","v":""},null,{"$f":"EA194","v":""},null,{"$f":"EB194","v":""},null,{"$f":"EC194","v":""},null,{"$f":"ED194","v":""},null,{"$f":"153","v":153},0,0,0,0,0,{"$f":"0.015","v":1.4999999999999999E-2},{"$f":"0.064","v":6.4000000000000001E-2},{"$f":"0.67","v":0.67},{"$f":"0.22","v":0.22},{"$f":"0.48","v":0.48},{"$f":"0.02","v":0.02},{"$f":"0.28","v":0.28000000000000003},{"$f":"0","v":0},null,"Res","Default DR",{"$f":"Benefits(BL194,BR194,BS194,BT194,BU194,BV194,BW194,BX194,BY194,BZ194,AE194,AH194,AI194,AJ194,AK194,AL194,AM194,AN194,AO194,AP194,CA194,CB194)","v":240.58292936095847},204.54814753777265,14.879749603648403,231.89899080700468,11.270569506001637,149.07755639785557,86.356058025946979,0,0,{"$f":"SUMPRODUCT(CC194:CK194,--(CC194:CK194>0))","v":938.61400123918827},{"$f":"-SUMPRODUCT(CC194:CK194,--(CC194:CK194<0))","v":0},null,{"$f":"682","v":682},null,null,{"$f":"CM194+CO194","v":682},{"$f":"IF(NetOrGross=\"Net\",(1-AO194+AP194),1)","v":1},{"$f":"(SUMPRODUCT(CC194:CJ194,--(CC194:CJ194>0))+CN194)*CS194/((-SUMPRODUCT(CC194:CJ194,--(CC194:CJ194<0))+MAX(CO194,CV194)+CP194+CQ194)*CS194+IF(FRIncentives=\"Yes\",CV194*(1-CS194),0))","v":1.3762668639870796},1,{"$f":"IF(AND(AS194=4,AU194<10),0,IF(AND(AS194<>4,AU194<12),0,IF(AW194=1,250,200)))*AY194","v":250},null,"Electric","y",1,{"$f":"IF(F194=\"Manual Entry\",\"Manual\",IF(G194=\"\",0,\"X=\"&SUBSTITUTE(SUBSTITUTE(SUBSTITUTE(SUBSTITUTE(SUBSTITUTE(SUBSTITUTE(SUBSTITUTE(SUBSTITUTE(SUBSTITUTE(SUBSTITUTE(SUBSTITUTE(SUBSTITUTE(G194,$ED194,$ED$2&ROW($ED194)),$EC194,$EC$2&ROW($EC194)),$EB194,$EB$2&ROW($EB194)),$EA194,$EA$2&ROW($EA194)),$DZ194,$DZ$2&ROW($DZ194)),$DY194,$DY$2&ROW($DY194)),$DX194,$DX$2&ROW($DX194)),$DW194,$DW$2&ROW($DW194)),$DV194,$DV$2&ROW($DV194)),$DU194,$DU$2&ROW($DU194)),$DT194,$DT$2&ROW($DT194)),$DS194,$DS$2&ROW($DS194))))","v":"X=682"},{"$f":"IF(I194=\"Manual Entry\",\"Manual\",IF(J194=\"\",0,\"X=\"&SUBSTITUTE(SUBSTITUTE(SUBSTITUTE(SUBSTITUTE(SUBSTITUTE(SUBSTITUTE(SUBSTITUTE(SUBSTITUTE(SUBSTITUTE(SUBSTITUTE(SUBSTITUTE(SUBSTITUTE(J194,$ED194,$ED$2&ROW($ED194)),$EC194,$EC$2&ROW($EC194)),$EB194,$EB$2&ROW($EB194)),$EA194,$EA$2&ROW($EA194)),$DZ194,$DZ$2&ROW($DZ194)),$DY194,$DY$2&ROW($DY194)),$DX194,$DX$2&ROW($DX194)),$DW194,$DW$2&ROW($DW194)),$DV194,$DV$2&ROW($DV194)),$DU194,$DU$2&ROW($DU194)),$DT194,$DT$2&ROW($DT194)),$DS194,$DS$2&ROW($DS194))))","v":"X=if(AS194=4 and AU194<10.0,0,if(AS194<>4 and AU194<12.0,0,if(AW194=1,$250.00,$200.00)))*AY194"},{"$f":"IF(O194=\"\",0,\"X=\"&SUBSTITUTE(SUBSTITUTE(SUBSTITUTE(SUBSTITUTE(SUBSTITUTE(SUBSTITUTE(SUBSTITUTE(SUBSTITUTE(SUBSTITUTE(SUBSTITUTE(SUBSTITUTE(SUBSTITUTE(O194,$ED194,$ED$2&ROW($ED194)),$EC194,$EC$2&ROW($EC194)),$EB194,$EB$2&ROW($EB194)),$EA194,$EA$2&ROW($EA194)),$DZ194,$DZ$2&ROW($DZ194)),$DY194,$DY$2&ROW($DY194)),$DX194,$DX$2&ROW($DX194)),$DW194,$DW$2&ROW($DW194)),$DV194,$DV$2&ROW($DV194)),$DU194,$DU$2&ROW($DU194)),$DT194,$DT$2&ROW($DT194)),$DS194,$DS$2&ROW($DS194)))","v":"X=153"},{"$f":"IF(P194=\"\",0,\"X=\"&SUBSTITUTE(SUBSTITUTE(SUBSTITUTE(SUBSTITUTE(SUBSTITUTE(SUBSTITUTE(SUBSTITUTE(SUBSTITUTE(SUBSTITUTE(SUBSTITUTE(SUBSTITUTE(SUBSTITUTE(P194,$ED194,$ED$2&ROW($ED194)),$EC194,$EC$2&ROW($EC194)),$EB194,$EB$2&ROW($EB194)),$EA194,$EA$2&ROW($EA194)),$DZ194,$DZ$2&ROW($DZ194)),$DY194,$DY$2&ROW($DY194)),$DX194,$DX$2&ROW($DX194)),$DW194,$DW$2&ROW($DW194)),$DV194,$DV$2&ROW($DV194)),$DU194,$DU$2&ROW($DU194)),$DT194,$DT$2&ROW($DT194)),$DS194,$DS$2&ROW($DS194)))","v":0},{"$f":"IF(Q194=\"\",0,\"X=\"&SUBSTITUTE(SUBSTITUTE(SUBSTITUTE(SUBSTITUTE(SUBSTITUTE(SUBSTITUTE(SUBSTITUTE(SUBSTITUTE(SUBSTITUTE(SUBSTITUTE(SUBSTITUTE(SUBSTITUTE(Q194,$ED194,$ED$2&ROW($ED194)),$EC194,$EC$2&ROW($EC194)),$EB194,$EB$2&ROW($EB194)),$EA194,$EA$2&ROW($EA194)),$DZ194,$DZ$2&ROW($DZ194)),$DY194,$DY$2&ROW($DY194)),$DX194,$DX$2&ROW($DX194)),$DW194,$DW$2&ROW($DW194)),$DV194,$DV$2&ROW($DV194)),$DU194,$DU$2&ROW($DU194)),$DT194,$DT$2&ROW($DT194)),$DS194,$DS$2&ROW($DS194)))","v":0},{"$f":"IF(R194=\"\",0,\"X=\"&SUBSTITUTE(SUBSTITUTE(SUBSTITUTE(SUBSTITUTE(SUBSTITUTE(SUBSTITUTE(SUBSTITUTE(SUBSTITUTE(SUBSTITUTE(SUBSTITUTE(SUBSTITUTE(SUBSTITUTE(R194,$ED194,$ED$2&ROW($ED194)),$EC194,$EC$2&ROW($EC194)),$EB194,$EB$2&ROW($EB194)),$EA194,$EA$2&ROW($EA194)),$DZ194,$DZ$2&ROW($DZ194)),$DY194,$DY$2&ROW($DY194)),$DX194,$DX$2&ROW($DX194)),$DW194,$DW$2&ROW($DW194)),$DV194,$DV$2&ROW($DV194)),$DU194,$DU$2&ROW($DU194)),$DT194,$DT$2&ROW($DT194)),$DS194,$DS$2&ROW($DS194)))","v":0},{"$f":"IF(S194=\"\",0,\"X=\"&SUBSTITUTE(SUBSTITUTE(SUBSTITUTE(SUBSTITUTE(SUBSTITUTE(SUBSTITUTE(SUBSTITUTE(SUBSTITUTE(SUBSTITUTE(SUBSTITUTE(SUBSTITUTE(SUBSTITUTE(S194,$ED194,$ED$2&ROW($ED194)),$EC194,$EC$2&ROW($EC194)),$EB194,$EB$2&ROW($EB194)),$EA194,$EA$2&ROW($EA194)),$DZ194,$DZ$2&ROW($DZ194)),$DY194,$DY$2&ROW($DY194)),$DX194,$DX$2&ROW($DX194)),$DW194,$DW$2&ROW($DW194)),$DV194,$DV$2&ROW($DV194)),$DU194,$DU$2&ROW($DU194)),$DT194,$DT$2&ROW($DT194)),$DS194,$DS$2&ROW($DS194)))","v":0},{"$f":"IF(T194=\"\",0,\"X=\"&SUBSTITUTE(SUBSTITUTE(SUBSTITUTE(SUBSTITUTE(SUBSTITUTE(SUBSTITUTE(SUBSTITUTE(SUBSTITUTE(SUBSTITUTE(SUBSTITUTE(SUBSTITUTE(SUBSTITUTE(T194,$ED194,$ED$2&ROW($ED194)),$EC194,$EC$2&ROW($EC194)),$EB194,$EB$2&ROW($EB194)),$EA194,$EA$2&ROW($EA194)),$DZ194,$DZ$2&ROW($DZ194)),$DY194,$DY$2&ROW($DY194)),$DX194,$DX$2&ROW($DX194)),$DW194,$DW$2&ROW($DW194)),$DV194,$DV$2&ROW($DV194)),$DU194,$DU$2&ROW($DU194)),$DT194,$DT$2&ROW($DT194)),$DS194,$DS$2&ROW($DS194)))","v":0},{"$f":"IF(U194=\"\",0,\"X=\"&SUBSTITUTE(SUBSTITUTE(SUBSTITUTE(SUBSTITUTE(SUBSTITUTE(SUBSTITUTE(SUBSTITUTE(SUBSTITUTE(SUBSTITUTE(SUBSTITUTE(SUBSTITUTE(SUBSTITUTE(U194,$ED194,$ED$2&ROW($ED194)),$EC194,$EC$2&ROW($EC194)),$EB194,$EB$2&ROW($EB194)),$EA194,$EA$2&ROW($EA194)),$DZ194,$DZ$2&ROW($DZ194)),$DY194,$DY$2&ROW($DY194)),$DX194,$DX$2&ROW($DX194)),$DW194,$DW$2&ROW($DW194)),$DV194,$DV$2&ROW($DV194)),$DU194,$DU$2&ROW($DU194)),$DT194,$DT$2&ROW($DT194)),$DS194,$DS$2&ROW($DS194)))","v":"X=0.015"},{"$f":"IF(V194=\"\",0,\"X=\"&SUBSTITUTE(SUBSTITUTE(SUBSTITUTE(SUBSTITUTE(SUBSTITUTE(SUBSTITUTE(SUBSTITUTE(SUBSTITUTE(SUBSTITUTE(SUBSTITUTE(SUBSTITUTE(SUBSTITUTE(V194,$ED194,$ED$2&ROW($ED194)),$EC194,$EC$2&ROW($EC194)),$EB194,$EB$2&ROW($EB194)),$EA194,$EA$2&ROW($EA194)),$DZ194,$DZ$2&ROW($DZ194)),$DY194,$DY$2&ROW($DY194)),$DX194,$DX$2&ROW($DX194)),$DW194,$DW$2&ROW($DW194)),$DV194,$DV$2&ROW($DV194)),$DU194,$DU$2&ROW($DU194)),$DT194,$DT$2&ROW($DT194)),$DS194,$DS$2&ROW($DS194)))","v":"X=0.064"},{"$f":"IF(W194=\"\",0,\"X=\"&SUBSTITUTE(SUBSTITUTE(SUBSTITUTE(SUBSTITUTE(SUBSTITUTE(SUBSTITUTE(SUBSTITUTE(SUBSTITUTE(SUBSTITUTE(SUBSTITUTE(SUBSTITUTE(SUBSTITUTE(W194,$ED194,$ED$2&ROW($ED194)),$EC194,$EC$2&ROW($EC194)),$EB194,$EB$2&ROW($EB194)),$EA194,$EA$2&ROW($EA194)),$DZ194,$DZ$2&ROW($DZ194)),$DY194,$DY$2&ROW($DY194)),$DX194,$DX$2&ROW($DX194)),$DW194,$DW$2&ROW($DW194)),$DV194,$DV$2&ROW($DV194)),$DU194,$DU$2&ROW($DU194)),$DT194,$DT$2&ROW($DT194)),$DS194,$DS$2&ROW($DS194)))","v":"X=0.67"},{"$f":"IF(X194=\"\",0,\"X=\"&SUBSTITUTE(SUBSTITUTE(SUBSTITUTE(SUBSTITUTE(SUBSTITUTE(SUBSTITUTE(SUBSTITUTE(SUBSTITUTE(SUBSTITUTE(SUBSTITUTE(SUBSTITUTE(SUBSTITUTE(X194,$ED194,$ED$2&ROW($ED194)),$EC194,$EC$2&ROW($EC194)),$EB194,$EB$2&ROW($EB194)),$EA194,$EA$2&ROW($EA194)),$DZ194,$DZ$2&ROW($DZ194)),$DY194,$DY$2&ROW($DY194)),$DX194,$DX$2&ROW($DX194)),$DW194,$DW$2&ROW($DW194)),$DV194,$DV$2&ROW($DV194)),$DU194,$DU$2&ROW($DU194)),$DT194,$DT$2&ROW($DT194)),$DS194,$DS$2&ROW($DS194)))","v":"X=0.22"},{"$f":"IF(Y194=\"\",0,\"X=\"&SUBSTITUTE(SUBSTITUTE(SUBSTITUTE(SUBSTITUTE(SUBSTITUTE(SUBSTITUTE(SUBSTITUTE(SUBSTITUTE(SUBSTITUTE(SUBSTITUTE(SUBSTITUTE(SUBSTITUTE(Y194,$ED194,$ED$2&ROW($ED194)),$EC194,$EC$2&ROW($EC194)),$EB194,$EB$2&ROW($EB194)),$EA194,$EA$2&ROW($EA194)),$DZ194,$DZ$2&ROW($DZ194)),$DY194,$DY$2&ROW($DY194)),$DX194,$DX$2&ROW($DX194)),$DW194,$DW$2&ROW($DW194)),$DV194,$DV$2&ROW($DV194)),$DU194,$DU$2&ROW($DU194)),$DT194,$DT$2&ROW($DT194)),$DS194,$DS$2&ROW($DS194)))","v":"X=0.48"},{"$f":"IF(Z194=\"\",0,\"X=\"&SUBSTITUTE(SUBSTITUTE(SUBSTITUTE(SUBSTITUTE(SUBSTITUTE(SUBSTITUTE(SUBSTITUTE(SUBSTITUTE(SUBSTITUTE(SUBSTITUTE(SUBSTITUTE(SUBSTITUTE(Z194,$ED194,$ED$2&ROW($ED194)),$EC194,$EC$2&ROW($EC194)),$EB194,$EB$2&ROW($EB194)),$EA194,$EA$2&ROW($EA194)),$DZ194,$DZ$2&ROW($DZ194)),$DY194,$DY$2&ROW($DY194)),$DX194,$DX$2&ROW($DX194)),$DW194,$DW$2&ROW($DW194)),$DV194,$DV$2&ROW($DV194)),$DU194,$DU$2&ROW($DU194)),$DT194,$DT$2&ROW($DT194)),$DS194,$DS$2&ROW($DS194)))","v":"X=0.02"},{"$f":"IF(AA194=\"\",0,\"X=\"&SUBSTITUTE(SUBSTITUTE(SUBSTITUTE(SUBSTITUTE(SUBSTITUTE(SUBSTITUTE(SUBSTITUTE(SUBSTITUTE(SUBSTITUTE(SUBSTITUTE(SUBSTITUTE(SUBSTITUTE(AA194,$ED194,$ED$2&ROW($ED194)),$EC194,$EC$2&ROW($EC194)),$EB194,$EB$2&ROW($EB194)),$EA194,$EA$2&ROW($EA194)),$DZ194,$DZ$2&ROW($DZ194)),$DY194,$DY$2&ROW($DY194)),$DX194,$DX$2&ROW($DX194)),$DW194,$DW$2&ROW($DW194)),$DV194,$DV$2&ROW($DV194)),$DU194,$DU$2&ROW($DU194)),$DT194,$DT$2&ROW($DT194)),$DS194,$DS$2&ROW($DS194)))","v":"X=0.28"},{"$f":"IF(AB194=\"\",0,\"X=\"&SUBSTITUTE(SUBSTITUTE(SUBSTITUTE(SUBSTITUTE(SUBSTITUTE(SUBSTITUTE(SUBSTITUTE(SUBSTITUTE(SUBSTITUTE(SUBSTITUTE(SUBSTITUTE(SUBSTITUTE(AB194,$ED194,$ED$2&ROW($ED194)),$EC194,$EC$2&ROW($EC194)),$EB194,$EB$2&ROW($EB194)),$EA194,$EA$2&ROW($EA194)),$DZ194,$DZ$2&ROW($DZ194)),$DY194,$DY$2&ROW($DY194)),$DX194,$DX$2&ROW($DX194)),$DW194,$DW$2&ROW($DW194)),$DV194,$DV$2&ROW($DV194)),$DU194,$DU$2&ROW($DU194)),$DT194,$DT$2&ROW($DT194)),$DS194,$DS$2&ROW($DS194)))","v":"X=0"},null,null,"{Factor:WinterCF}","{Factor:SummerCF}",{"$f":"IFERROR(INDEX($EG194:$IV194,MATCH(0,COUNTIF($DR194:DT194,$EG194:$IV194),0)),\"\")","v":"{Type of indoor unit}"},{"$f":"IFERROR(INDEX($EG194:$IV194,MATCH(0,COUNTIF($DR194:DU194,$EG194:$IV194),0)),\"\")","v":"{HSPF}"},{"$f":"IFERROR(INDEX($EG194:$IV194,MATCH(0,COUNTIF($DR194:DV194,$EG194:$IV194),0)),\"\")","v":"{Rebate Level}"},{"$f":"IFERROR(INDEX($EG194:$IV194,MATCH(0,COUNTIF($DR194:DW194,$EG194:$IV194),0)),\"\")","v":"{Measure:Quantity}"},{"$f":"IFERROR(INDEX($EG194:$IV194,MATCH(0,COUNTIF($DR194:DX194,$EG194:$IV194),0)),\"\")","v":""},{"$f":"IFERROR(INDEX($EG194:$IV194,MATCH(0,COUNTIF($DR194:DY194,$EG194:$IV194),0)),\"\")","v":""},{"$f":"IFERROR(INDEX($EG194:$IV194,MATCH(0,COUNTIF($DR194:DZ194,$EG194:$IV194),0)),\"\")","v":""},{"$f":"IFERROR(INDEX($EG194:$IV194,MATCH(0,COUNTIF($DR194:EA194,$EG194:$IV194),0)),\"\")","v":""},{"$f":"IFERROR(INDEX($EG194:$IV194,MATCH(0,COUNTIF($DR194:EB194,$EG194:$IV194),0)),\"\")","v":""},{"$f":"IFERROR(INDEX($EG194:$IV194,MATCH(0,COUNTIF($DR194:EC194,$EG194:$IV194),0)),\"\")","v":""},null,null,{"$f":"IFERROR(MID($G194,FIND(CHAR(160),SUBSTITUTE($G194,\"{\",CHAR(160),EG$1)),FIND(CHAR(160),SUBSTITUTE($G194,\"}\",CHAR(160),EG$1))-FIND(CHAR(160),SUBSTITUTE($G194,\"{\",CHAR(160),EG$1))+1),\"\")","v":""},{"$f":"IFERROR(MID($G194,FIND(CHAR(160),SUBSTITUTE($G194,\"{\",CHAR(160),EH$1)),FIND(CHAR(160),SUBSTITUTE($G194,\"}\",CHAR(160),EH$1))-FIND(CHAR(160),SUBSTITUTE($G194,\"{\",CHAR(160),EH$1))+1),\"\")","v":""},{"$f":"IFERROR(MID($G194,FIND(CHAR(160),SUBSTITUTE($G194,\"{\",CHAR(160),EI$1)),FIND(CHAR(160),SUBSTITUTE($G194,\"}\",CHAR(160),EI$1))-FIND(CHAR(160),SUBSTITUTE($G194,\"{\",CHAR(160),EI$1))+1),\"\")","v":""},{"$f":"IFERROR(MID($G194,FIND(CHAR(160),SUBSTITUTE($G194,\"{\",CHAR(160),EJ$1)),FIND(CHAR(160),SUBSTITUTE($G194,\"}\",CHAR(160),EJ$1))-FIND(CHAR(160),SUBSTITUTE($G194,\"{\",CHAR(160),EJ$1))+1),\"\")","v":""},{"$f":"IFERROR(MID($G194,FIND(CHAR(160),SUBSTITUTE($G194,\"{\",CHAR(160),EK$1)),FIND(CHAR(160),SUBSTITUTE($G194,\"}\",CHAR(160),EK$1))-FIND(CHAR(160),SUBSTITUTE($G194,\"{\",CHAR(160),EK$1))+1),\"\")","v":""},{"$f":"IFERROR(MID($G194,FIND(CHAR(160),SUBSTITUTE($G194,\"{\",CHAR(160),EL$1)),FIND(CHAR(160),SUBSTITUTE($G194,\"}\",CHAR(160),EL$1))-FIND(CHAR(160),SUBSTITUTE($G194,\"{\",CHAR(160),EL$1))+1),\"\")","v":""},{"$f":"IFERROR(MID($G194,FIND(CHAR(160),SUBSTITUTE($G194,\"{\",CHAR(160),EM$1)),FIND(CHAR(160),SUBSTITUTE($G194,\"}\",CHAR(160),EM$1))-FIND(CHAR(160),SUBSTITUTE($G194,\"{\",CHAR(160),EM$1))+1),\"\")","v":""},{"$f":"IFERROR(MID($G194,FIND(CHAR(160),SUBSTITUTE($G194,\"{\",CHAR(160),EN$1)),FIND(CHAR(160),SUBSTITUTE($G194,\"}\",CHAR(160),EN$1))-FIND(CHAR(160),SUBSTITUTE($G194,\"{\",CHAR(160),EN$1))+1),\"\")","v":""},{"$f":"IFERROR(MID($G194,FIND(CHAR(160),SUBSTITUTE($G194,\"{\",CHAR(160),EO$1)),FIND(CHAR(160),SUBSTITUTE($G194,\"}\",CHAR(160),EO$1))-FIND(CHAR(160),SUBSTITUTE($G194,\"{\",CHAR(160),EO$1))+1),\"\")","v":""},{"$f":"IFERROR(MID($G194,FIND(CHAR(160),SUBSTITUTE($G194,\"{\",CHAR(160),EP$1)),FIND(CHAR(160),SUBSTITUTE($G194,\"}\",CHAR(160),EP$1))-FIND(CHAR(160),SUBSTITUTE($G194,\"{\",CHAR(160),EP$1))+1),\"\")","v":""},{"$f":"IFERROR(MID($J194,FIND(CHAR(160),SUBSTITUTE($J194,\"{\",CHAR(160),EQ$1)),FIND(CHAR(160),SUBSTITUTE($J194,\"}\",CHAR(160),EQ$1))-FIND(CHAR(160),SUBSTITUTE($J194,\"{\",CHAR(160),EQ$1))+1),\"\")","v":"{Type of indoor unit}"},{"$f":"IFERROR(MID($J194,FIND(CHAR(160),SUBSTITUTE($J194,\"{\",CHAR(160),ER$1)),FIND(CHAR(160),SUBSTITUTE($J194,\"}\",CHAR(160),ER$1))-FIND(CHAR(160),SUBSTITUTE($J194,\"{\",CHAR(160),ER$1))+1),\"\")","v":"{HSPF}"},{"$f":"IFERROR(MID($J194,FIND(CHAR(160),SUBSTITUTE($J194,\"{\",CHAR(160),ES$1)),FIND(CHAR(160),SUBSTITUTE($J194,\"}\",CHAR(160),ES$1))-FIND(CHAR(160),SUBSTITUTE($J194,\"{\",CHAR(160),ES$1))+1),\"\")","v":"{Type of indoor unit}"},{"$f":"IFERROR(MID($J194,FIND(CHAR(160),SUBSTITUTE($J194,\"{\",CHAR(160),ET$1)),FIND(CHAR(160),SUBSTITUTE($J194,\"}\",CHAR(160),ET$1))-FIND(CHAR(160),SUBSTITUTE($J194,\"{\",CHAR(160),ET$1))+1),\"\")","v":"{HSPF}"},{"$f":"IFERROR(MID($J194,FIND(CHAR(160),SUBSTITUTE($J194,\"{\",CHAR(160),EU$1)),FIND(CHAR(160),SUBSTITUTE($J194,\"}\",CHAR(160),EU$1))-FIND(CHAR(160),SUBSTITUTE($J194,\"{\",CHAR(160),EU$1))+1),\"\")","v":"{Rebate Level}"},{"$f":"IFERROR(MID($J194,FIND(CHAR(160),SUBSTITUTE($J194,\"{\",CHAR(160),EV$1)),FIND(CHAR(160),SUBSTITUTE($J194,\"}\",CHAR(160),EV$1))-FIND(CHAR(160),SUBSTITUTE($J194,\"{\",CHAR(160),EV$1))+1),\"\")","v":"{Measure:Quantity}"},{"$f":"IFERROR(MID($J194,FIND(CHAR(160),SUBSTITUTE($J194,\"{\",CHAR(160),EW$1)),FIND(CHAR(160),SUBSTITUTE($J194,\"}\",CHAR(160),EW$1))-FIND(CHAR(160),SUBSTITUTE($J194,\"{\",CHAR(160),EW$1))+1),\"\")","v":""},{"$f":"IFERROR(MID($J194,FIND(CHAR(160),SUBSTITUTE($J194,\"{\",CHAR(160),EX$1)),FIND(CHAR(160),SUBSTITUTE($J194,\"}\",CHAR(160),EX$1))-FIND(CHAR(160),SUBSTITUTE($J194,\"{\",CHAR(160),EX$1))+1),\"\")","v":""},{"$f":"IFERROR(MID($J194,FIND(CHAR(160),SUBSTITUTE($J194,\"{\",CHAR(160),EY$1)),FIND(CHAR(160),SUBSTITUTE($J194,\"}\",CHAR(160),EY$1))-FIND(CHAR(160),SUBSTITUTE($J194,\"{\",CHAR(160),EY$1))+1),\"\")","v":""},{"$f":"IFERROR(MID($J194,FIND(CHAR(160),SUBSTITUTE($J194,\"{\",CHAR(160),EZ$1)),FIND(CHAR(160),SUBSTITUTE($J194,\"}\",CHAR(160),EZ$1))-FIND(CHAR(160),SUBSTITUTE($J194,\"{\",CHAR(160),EZ$1))+1),\"\")","v":""},{"$f":"IFERROR(MID($J194,FIND(CHAR(160),SUBSTITUTE($J194,\"{\",CHAR(160),FA$1)),FIND(CHAR(160),SUBSTITUTE($J194,\"}\",CHAR(160),FA$1))-FIND(CHAR(160),SUBSTITUTE($J194,\"{\",CHAR(160),FA$1))+1),\"\")","v":"{Type of indoor unit}"},{"$f":"IFERROR(MID($J194,FIND(CHAR(160),SUBSTITUTE($J194,\"{\",CHAR(160),FB$1)),FIND(CHAR(160),SUBSTITUTE($J194,\"}\",CHAR(160),FB$1))-FIND(CHAR(160),SUBSTITUTE($J194,\"{\",CHAR(160),FB$1))+1),\"\")","v":"{HSPF}"},{"$f":"IFERROR(MID($O194,FIND(CHAR(160),SUBSTITUTE($O194,\"{\",CHAR(160),FC$1)),FIND(CHAR(160),SUBSTITUTE($O194,\"}\",CHAR(160),FC$1))-FIND(CHAR(160),SUBSTITUTE($O194,\"{\",CHAR(160),FC$1))+1),\"\")","v":""},{"$f":"IFERROR(MID($O194,FIND(CHAR(160),SUBSTITUTE($O194,\"{\",CHAR(160),FD$1)),FIND(CHAR(160),SUBSTITUTE($O194,\"}\",CHAR(160),FD$1))-FIND(CHAR(160),SUBSTITUTE($O194,\"{\",CHAR(160),FD$1))+1),\"\")","v":""},{"$f":"IFERROR(MID($O194,FIND(CHAR(160),SUBSTITUTE($O194,\"{\",CHAR(160),FE$1)),FIND(CHAR(160),SUBSTITUTE($O194,\"}\",CHAR(160),FE$1))-FIND(CHAR(160),SUBSTITUTE($O194,\"{\",CHAR(160),FE$1))+1),\"\")","v":""},{"$f":"IFERROR(MID($O194,FIND(CHAR(160),SUBSTITUTE($O194,\"{\",CHAR(160),FF$1)),FIND(CHAR(160),SUBSTITUTE($O194,\"}\",CHAR(160),FF$1))-FIND(CHAR(160),SUBSTITUTE($O194,\"{\",CHAR(160),FF$1))+1),\"\")","v":""},{"$f":"IFERROR(MID($O194,FIND(CHAR(160),SUBSTITUTE($O194,\"{\",CHAR(160),FG$1)),FIND(CHAR(160),SUBSTITUTE($O194,\"}\",CHAR(160),FG$1))-FIND(CHAR(160),SUBSTITUTE($O194,\"{\",CHAR(160),FG$1))+1),\"\")","v":""},{"$f":"IFERROR(MID($O194,FIND(CHAR(160),SUBSTITUTE($O194,\"{\",CHAR(160),FH$1)),FIND(CHAR(160),SUBSTITUTE($O194,\"}\",CHAR(160),FH$1))-FIND(CHAR(160),SUBSTITUTE($O194,\"{\",CHAR(160),FH$1))+1),\"\")","v":""},{"$f":"IFERROR(MID($O194,FIND(CHAR(160),SUBSTITUTE($O194,\"{\",CHAR(160),FI$1)),FIND(CHAR(160),SUBSTITUTE($O194,\"}\",CHAR(160),FI$1))-FIND(CHAR(160),SUBSTITUTE($O194,\"{\",CHAR(160),FI$1))+1),\"\")","v":""},{"$f":"IFERROR(MID($O194,FIND(CHAR(160),SUBSTITUTE($O194,\"{\",CHAR(160),FJ$1)),FIND(CHAR(160),SUBSTITUTE($O194,\"}\",CHAR(160),FJ$1))-FIND(CHAR(160),SUBSTITUTE($O194,\"{\",CHAR(160),FJ$1))+1),\"\")","v":""},{"$f":"IFERROR(MID($O194,FIND(CHAR(160),SUBSTITUTE($O194,\"{\",CHAR(160),FK$1)),FIND(CHAR(160),SUBSTITUTE($O194,\"}\",CHAR(160),FK$1))-FIND(CHAR(160),SUBSTITUTE($O194,\"{\",CHAR(160),FK$1))+1),\"\")","v":""},{"$f":"IFERROR(MID($O194,FIND(CHAR(160),SUBSTITUTE($O194,\"{\",CHAR(160),FL$1)),FIND(CHAR(160),SUBSTITUTE($O194,\"}\",CHAR(160),FL$1))-FIND(CHAR(160),SUBSTITUTE($O194,\"{\",CHAR(160),FL$1))+1),\"\")","v":""},{"$f":"IFERROR(MID($R194,FIND(CHAR(160),SUBSTITUTE($R194,\"{\",CHAR(160),FM$1)),FIND(CHAR(160),SUBSTITUTE($R194,\"}\",CHAR(160),FM$1))-FIND(CHAR(160),SUBSTITUTE($R194,\"{\",CHAR(160),FM$1))+1),\"\")","v":""},{"$f":"IFERROR(MID($R194,FIND(CHAR(160),SUBSTITUTE($R194,\"{\",CHAR(160),FN$1)),FIND(CHAR(160),SUBSTITUTE($R194,\"}\",CHAR(160),FN$1))-FIND(CHAR(160),SUBSTITUTE($R194,\"{\",CHAR(160),FN$1))+1),\"\")","v":""},{"$f":"IFERROR(MID($R194,FIND(CHAR(160),SUBSTITUTE($R194,\"{\",CHAR(160),FO$1)),FIND(CHAR(160),SUBSTITUTE($R194,\"}\",CHAR(160),FO$1))-FIND(CHAR(160),SUBSTITUTE($R194,\"{\",CHAR(160),FO$1))+1),\"\")","v":""},{"$f":"IFERROR(MID($R194,FIND(CHAR(160),SUBSTITUTE($R194,\"{\",CHAR(160),FP$1)),FIND(CHAR(160),SUBSTITUTE($R194,\"}\",CHAR(160),FP$1))-FIND(CHAR(160),SUBSTITUTE($R194,\"{\",CHAR(160),FP$1))+1),\"\")","v":""},{"$f":"IFERROR(MID($R194,FIND(CHAR(160),SUBSTITUTE($R194,\"{\",CHAR(160),FQ$1)),FIND(CHAR(160),SUBSTITUTE($R194,\"}\",CHAR(160),FQ$1))-FIND(CHAR(160),SUBSTITUTE($R194,\"{\",CHAR(160),FQ$1))+1),\"\")","v":""},{"$f":"IFERROR(MID($R194,FIND(CHAR(160),SUBSTITUTE($R194,\"{\",CHAR(160),FR$1)),FIND(CHAR(160),SUBSTITUTE($R194,\"}\",CHAR(160),FR$1))-FIND(CHAR(160),SUBSTITUTE($R194,\"{\",CHAR(160),FR$1))+1),\"\")","v":""},{"$f":"IFERROR(MID($R194,FIND(CHAR(160),SUBSTITUTE($R194,\"{\",CHAR(160),FS$1)),FIND(CHAR(160),SUBSTITUTE($R194,\"}\",CHAR(160),FS$1))-FIND(CHAR(160),SUBSTITUTE($R194,\"{\",CHAR(160),FS$1))+1),\"\")","v":""},{"$f":"IFERROR(MID($R194,FIND(CHAR(160),SUBSTITUTE($R194,\"{\",CHAR(160),FT$1)),FIND(CHAR(160),SUBSTITUTE($R194,\"}\",CHAR(160),FT$1))-FIND(CHAR(160),SUBSTITUTE($R194,\"{\",CHAR(160),FT$1))+1),\"\")","v":""},{"$f":"IFERROR(MID($R194,FIND(CHAR(160),SUBSTITUTE($R194,\"{\",CHAR(160),FU$1)),FIND(CHAR(160),SUBSTITUTE($R194,\"}\",CHAR(160),FU$1))-FIND(CHAR(160),SUBSTITUTE($R194,\"{\",CHAR(160),FU$1))+1),\"\")","v":""},{"$f":"IFERROR(MID($R194,FIND(CHAR(160),SUBSTITUTE($R194,\"{\",CHAR(160),FV$1)),FIND(CHAR(160),SUBSTITUTE($R194,\"}\",CHAR(160),FV$1))-FIND(CHAR(160),SUBSTITUTE($R194,\"{\",CHAR(160),FV$1))+1),\"\")","v":""},{"$f":"IFERROR(MID($U194,FIND(CHAR(160),SUBSTITUTE($U194,\"{\",CHAR(160),FW$1)),FIND(CHAR(160),SUBSTITUTE($U194,\"}\",CHAR(160),FW$1))-FIND(CHAR(160),SUBSTITUTE($U194,\"{\",CHAR(160),FW$1))+1),\"\")","v":""},{"$f":"IFERROR(MID($U194,FIND(CHAR(160),SUBSTITUTE($U194,\"{\",CHAR(160),FX$1)),FIND(CHAR(160),SUBSTITUTE($U194,\"}\",CHAR(160),FX$1))-FIND(CHAR(160),SUBSTITUTE($U194,\"{\",CHAR(160),FX$1))+1),\"\")","v":""},{"$f":"IFERROR(MID($U194,FIND(CHAR(160),SUBSTITUTE($U194,\"{\",CHAR(160),FY$1)),FIND(CHAR(160),SUBSTITUTE($U194,\"}\",CHAR(160),FY$1))-FIND(CHAR(160),SUBSTITUTE($U194,\"{\",CHAR(160),FY$1))+1),\"\")","v":""},{"$f":"IFERROR(MID($U194,FIND(CHAR(160),SUBSTITUTE($U194,\"{\",CHAR(160),FZ$1)),FIND(CHAR(160),SUBSTITUTE($U194,\"}\",CHAR(160),FZ$1))-FIND(CHAR(160),SUBSTITUTE($U194,\"{\",CHAR(160),FZ$1))+1),\"\")","v":""},{"$f":"IFERROR(MID($U194,FIND(CHAR(160),SUBSTITUTE($U194,\"{\",CHAR(160),GA$1)),FIND(CHAR(160),SUBSTITUTE($U194,\"}\",CHAR(160),GA$1))-FIND(CHAR(160),SUBSTITUTE($U194,\"{\",CHAR(160),GA$1))+1),\"\")","v":""},{"$f":"IFERROR(MID($U194,FIND(CHAR(160),SUBSTITUTE($U194,\"{\",CHAR(160),GB$1)),FIND(CHAR(160),SUBSTITUTE($U194,\"}\",CHAR(160),GB$1))-FIND(CHAR(160),SUBSTITUTE($U194,\"{\",CHAR(160),GB$1))+1),\"\")","v":""},{"$f":"IFERROR(MID($U194,FIND(CHAR(160),SUBSTITUTE($U194,\"{\",CHAR(160),GC$1)),FIND(CHAR(160),SUBSTITUTE($U194,\"}\",CHAR(160),GC$1))-FIND(CHAR(160),SUBSTITUTE($U194,\"{\",CHAR(160),GC$1))+1),\"\")","v":""},{"$f":"IFERROR(MID($U194,FIND(CHAR(160),SUBSTITUTE($U194,\"{\",CHAR(160),GD$1)),FIND(CHAR(160),SUBSTITUTE($U194,\"}\",CHAR(160),GD$1))-FIND(CHAR(160),SUBSTITUTE($U194,\"{\",CHAR(160),GD$1))+1),\"\")","v":""},{"$f":"IFERROR(MID($U194,FIND(CHAR(160),SUBSTITUTE($U194,\"{\",CHAR(160),GE$1)),FIND(CHAR(160),SUBSTITUTE($U194,\"}\",CHAR(160),GE$1))-FIND(CHAR(160),SUBSTITUTE($U194,\"{\",CHAR(160),GE$1))+1),\"\")","v":""},{"$f":"IFERROR(MID($U194,FIND(CHAR(160),SUBSTITUTE($U194,\"{\",CHAR(160),GF$1)),FIND(CHAR(160),SUBSTITUTE($U194,\"}\",CHAR(160),GF$1))-FIND(CHAR(160),SUBSTITUTE($U194,\"{\",CHAR(160),GF$1))+1),\"\")","v":""},{"$f":"IFERROR(MID($V194,FIND(CHAR(160),SUBSTITUTE($V194,\"{\",CHAR(160),GG$1)),FIND(CHAR(160),SUBSTITUTE($V194,\"}\",CHAR(160),GG$1))-FIND(CHAR(160),SUBSTITUTE($V194,\"{\",CHAR(160),GG$1))+1),\"\")","v":""},{"$f":"IFERROR(MID($V194,FIND(CHAR(160),SUBSTITUTE($V194,\"{\",CHAR(160),GH$1)),FIND(CHAR(160),SUBSTITUTE($V194,\"}\",CHAR(160),GH$1))-FIND(CHAR(160),SUBSTITUTE($V194,\"{\",CHAR(160),GH$1))+1),\"\")","v":""},{"$f":"IFERROR(MID($V194,FIND(CHAR(160),SUBSTITUTE($V194,\"{\",CHAR(160),GI$1)),FIND(CHAR(160),SUBSTITUTE($V194,\"}\",CHAR(160),GI$1))-FIND(CHAR(160),SUBSTITUTE($V194,\"{\",CHAR(160),GI$1))+1),\"\")","v":""},{"$f":"IFERROR(MID($V194,FIND(CHAR(160),SUBSTITUTE($V194,\"{\",CHAR(160),GJ$1)),FIND(CHAR(160),SUBSTITUTE($V194,\"}\",CHAR(160),GJ$1))-FIND(CHAR(160),SUBSTITUTE($V194,\"{\",CHAR(160),GJ$1))+1),\"\")","v":""},{"$f":"IFERROR(MID($V194,FIND(CHAR(160),SUBSTITUTE($V194,\"{\",CHAR(160),GK$1)),FIND(CHAR(160),SUBSTITUTE($V194,\"}\",CHAR(160),GK$1))-FIND(CHAR(160),SUBSTITUTE($V194,\"{\",CHAR(160),GK$1))+1),\"\")","v":""},{"$f":"IFERROR(MID($V194,FIND(CHAR(160),SUBSTITUTE($V194,\"{\",CHAR(160),GL$1)),FIND(CHAR(160),SUBSTITUTE($V194,\"}\",CHAR(160),GL$1))-FIND(CHAR(160),SUBSTITUTE($V194,\"{\",CHAR(160),GL$1))+1),\"\")","v":""},{"$f":"IFERROR(MID($V194,FIND(CHAR(160),SUBSTITUTE($V194,\"{\",CHAR(160),GM$1)),FIND(CHAR(160),SUBSTITUTE($V194,\"}\",CHAR(160),GM$1))-FIND(CHAR(160),SUBSTITUTE($V194,\"{\",CHAR(160),GM$1))+1),\"\")","v":""},{"$f":"IFERROR(MID($V194,FIND(CHAR(160),SUBSTITUTE($V194,\"{\",CHAR(160),GN$1)),FIND(CHAR(160),SUBSTITUTE($V194,\"}\",CHAR(160),GN$1))-FIND(CHAR(160),SUBSTITUTE($V194,\"{\",CHAR(160),GN$1))+1),\"\")","v":""},{"$f":"IFERROR(MID($V194,FIND(CHAR(160),SUBSTITUTE($V194,\"{\",CHAR(160),GO$1)),FIND(CHAR(160),SUBSTITUTE($V194,\"}\",CHAR(160),GO$1))-FIND(CHAR(160),SUBSTITUTE($V194,\"{\",CHAR(160),GO$1))+1),\"\")","v":""},{"$f":"IFERROR(MID($V194,FIND(CHAR(160),SUBSTITUTE($V194,\"{\",CHAR(160),GP$1)),FIND(CHAR(160),SUBSTITUTE($V194,\"}\",CHAR(160),GP$1))-FIND(CHAR(160),SUBSTITUTE($V194,\"{\",CHAR(160),GP$1))+1),\"\")","v":""},{"$f":"IFERROR(MID($W194,FIND(CHAR(160),SUBSTITUTE($W194,\"{\",CHAR(160),GQ$1)),FIND(CHAR(160),SUBSTITUTE($W194,\"}\",CHAR(160),GQ$1))-FIND(CHAR(160),SUBSTITUTE($W194,\"{\",CHAR(160),GQ$1))+1),\"\")","v":""},{"$f":"IFERROR(MID($W194,FIND(CHAR(160),SUBSTITUTE($W194,\"{\",CHAR(160),GR$1)),FIND(CHAR(160),SUBSTITUTE($W194,\"}\",CHAR(160),GR$1))-FIND(CHAR(160),SUBSTITUTE($W194,\"{\",CHAR(160),GR$1))+1),\"\")","v":""},{"$f":"IFERROR(MID($W194,FIND(CHAR(160),SUBSTITUTE($W194,\"{\",CHAR(160),GS$1)),FIND(CHAR(160),SUBSTITUTE($W194,\"}\",CHAR(160),GS$1))-FIND(CHAR(160),SUBSTITUTE($W194,\"{\",CHAR(160),GS$1))+1),\"\")","v":""},{"$f":"IFERROR(MID($W194,FIND(CHAR(160),SUBSTITUTE($W194,\"{\",CHAR(160),GT$1)),FIND(CHAR(160),SUBSTITUTE($W194,\"}\",CHAR(160),GT$1))-FIND(CHAR(160),SUBSTITUTE($W194,\"{\",CHAR(160),GT$1))+1),\"\")","v":""},{"$f":"IFERROR(MID($W194,FIND(CHAR(160),SUBSTITUTE($W194,\"{\",CHAR(160),GU$1)),FIND(CHAR(160),SUBSTITUTE($W194,\"}\",CHAR(160),GU$1))-FIND(CHAR(160),SUBSTITUTE($W194,\"{\",CHAR(160),GU$1))+1),\"\")","v":""},{"$f":"IFERROR(MID($W194,FIND(CHAR(160),SUBSTITUTE($W194,\"{\",CHAR(160),GV$1)),FIND(CHAR(160),SUBSTITUTE($W194,\"}\",CHAR(160),GV$1))-FIND(CHAR(160),SUBSTITUTE($W194,\"{\",CHAR(160),GV$1))+1),\"\")","v":""},{"$f":"IFERROR(MID($W194,FIND(CHAR(160),SUBSTITUTE($W194,\"{\",CHAR(160),GW$1)),FIND(CHAR(160),SUBSTITUTE($W194,\"}\",CHAR(160),GW$1))-FIND(CHAR(160),SUBSTITUTE($W194,\"{\",CHAR(160),GW$1))+1),\"\")","v":""},{"$f":"IFERROR(MID($W194,FIND(CHAR(160),SUBSTITUTE($W194,\"{\",CHAR(160),GX$1)),FIND(CHAR(160),SUBSTITUTE($W194,\"}\",CHAR(160),GX$1))-FIND(CHAR(160),SUBSTITUTE($W194,\"{\",CHAR(160),GX$1))+1),\"\")","v":""},{"$f":"IFERROR(MID($W194,FIND(CHAR(160),SUBSTITUTE($W194,\"{\",CHAR(160),GY$1)),FIND(CHAR(160),SUBSTITUTE($W194,\"}\",CHAR(160),GY$1))-FIND(CHAR(160),SUBSTITUTE($W194,\"{\",CHAR(160),GY$1))+1),\"\")","v":""},{"$f":"IFERROR(MID($W194,FIND(CHAR(160),SUBSTITUTE($W194,\"{\",CHAR(160),GZ$1)),FIND(CHAR(160),SUBSTITUTE($W194,\"}\",CHAR(160),GZ$1))-FIND(CHAR(160),SUBSTITUTE($W194,\"{\",CHAR(160),GZ$1))+1),\"\")","v":""},{"$f":"IFERROR(MID($X194,FIND(CHAR(160),SUBSTITUTE($X194,\"{\",CHAR(160),HA$1)),FIND(CHAR(160),SUBSTITUTE($X194,\"}\",CHAR(160),HA$1))-FIND(CHAR(160),SUBSTITUTE($X194,\"{\",CHAR(160),HA$1))+1),\"\")","v":""},{"$f":"IFERROR(MID($X194,FIND(CHAR(160),SUBSTITUTE($X194,\"{\",CHAR(160),HB$1)),FIND(CHAR(160),SUBSTITUTE($X194,\"}\",CHAR(160),HB$1))-FIND(CHAR(160),SUBSTITUTE($X194,\"{\",CHAR(160),HB$1))+1),\"\")","v":""},{"$f":"IFERROR(MID($X194,FIND(CHAR(160),SUBSTITUTE($X194,\"{\",CHAR(160),HC$1)),FIND(CHAR(160),SUBSTITUTE($X194,\"}\",CHAR(160),HC$1))-FIND(CHAR(160),SUBSTITUTE($X194,\"{\",CHAR(160),HC$1))+1),\"\")","v":""},{"$f":"IFERROR(MID($X194,FIND(CHAR(160),SUBSTITUTE($X194,\"{\",CHAR(160),HD$1)),FIND(CHAR(160),SUBSTITUTE($X194,\"}\",CHAR(160),HD$1))-FIND(CHAR(160),SUBSTITUTE($X194,\"{\",CHAR(160),HD$1))+1),\"\")","v":""},{"$f":"IFERROR(MID($X194,FIND(CHAR(160),SUBSTITUTE($X194,\"{\",CHAR(160),HE$1)),FIND(CHAR(160),SUBSTITUTE($X194,\"}\",CHAR(160),HE$1))-FIND(CHAR(160),SUBSTITUTE($X194,\"{\",CHAR(160),HE$1))+1),\"\")","v":""},{"$f":"IFERROR(MID($X194,FIND(CHAR(160),SUBSTITUTE($X194,\"{\",CHAR(160),HF$1)),FIND(CHAR(160),SUBSTITUTE($X194,\"}\",CHAR(160),HF$1))-FIND(CHAR(160),SUBSTITUTE($X194,\"{\",CHAR(160),HF$1))+1),\"\")","v":""},{"$f":"IFERROR(MID($X194,FIND(CHAR(160),SUBSTITUTE($X194,\"{\",CHAR(160),HG$1)),FIND(CHAR(160),SUBSTITUTE($X194,\"}\",CHAR(160),HG$1))-FIND(CHAR(160),SUBSTITUTE($X194,\"{\",CHAR(160),HG$1))+1),\"\")","v":""},{"$f":"IFERROR(MID($X194,FIND(CHAR(160),SUBSTITUTE($X194,\"{\",CHAR(160),HH$1)),FIND(CHAR(160),SUBSTITUTE($X194,\"}\",CHAR(160),HH$1))-FIND(CHAR(160),SUBSTITUTE($X194,\"{\",CHAR(160),HH$1))+1),\"\")","v":""},{"$f":"IFERROR(MID($X194,FIND(CHAR(160),SUBSTITUTE($X194,\"{\",CHAR(160),HI$1)),FIND(CHAR(160),SUBSTITUTE($X194,\"}\",CHAR(160),HI$1))-FIND(CHAR(160),SUBSTITUTE($X194,\"{\",CHAR(160),HI$1))+1),\"\")","v":""},{"$f":"IFERROR(MID($X194,FIND(CHAR(160),SUBSTITUTE($X194,\"{\",CHAR(160),HJ$1)),FIND(CHAR(160),SUBSTITUTE($X194,\"}\",CHAR(160),HJ$1))-FIND(CHAR(160),SUBSTITUTE($X194,\"{\",CHAR(160),HJ$1))+1),\"\")","v":""},{"$f":"IFERROR(MID($Y194,FIND(CHAR(160),SUBSTITUTE($Y194,\"{\",CHAR(160),HK$1)),FIND(CHAR(160),SUBSTITUTE($Y194,\"}\",CHAR(160),HK$1))-FIND(CHAR(160),SUBSTITUTE($Y194,\"{\",CHAR(160),HK$1))+1),\"\")","v":""},{"$f":"IFERROR(MID($Y194,FIND(CHAR(160),SUBSTITUTE($Y194,\"{\",CHAR(160),HL$1)),FIND(CHAR(160),SUBSTITUTE($Y194,\"}\",CHAR(160),HL$1))-FIND(CHAR(160),SUBSTITUTE($Y194,\"{\",CHAR(160),HL$1))+1),\"\")","v":""},{"$f":"IFERROR(MID($Y194,FIND(CHAR(160),SUBSTITUTE($Y194,\"{\",CHAR(160),HM$1)),FIND(CHAR(160),SUBSTITUTE($Y194,\"}\",CHAR(160),HM$1))-FIND(CHAR(160),SUBSTITUTE($Y194,\"{\",CHAR(160),HM$1))+1),\"\")","v":""},{"$f":"IFERROR(MID($Y194,FIND(CHAR(160),SUBSTITUTE($Y194,\"{\",CHAR(160),HN$1)),FIND(CHAR(160),SUBSTITUTE($Y194,\"}\",CHAR(160),HN$1))-FIND(CHAR(160),SUBSTITUTE($Y194,\"{\",CHAR(160),HN$1))+1),\"\")","v":""},{"$f":"IFERROR(MID($Y194,FIND(CHAR(160),SUBSTITUTE($Y194,\"{\",CHAR(160),HO$1)),FIND(CHAR(160),SUBSTITUTE($Y194,\"}\",CHAR(160),HO$1))-FIND(CHAR(160),SUBSTITUTE($Y194,\"{\",CHAR(160),HO$1))+1),\"\")","v":""},{"$f":"IFERROR(MID($Y194,FIND(CHAR(160),SUBSTITUTE($Y194,\"{\",CHAR(160),HP$1)),FIND(CHAR(160),SUBSTITUTE($Y194,\"}\",CHAR(160),HP$1))-FIND(CHAR(160),SUBSTITUTE($Y194,\"{\",CHAR(160),HP$1))+1),\"\")","v":""},{"$f":"IFERROR(MID($Y194,FIND(CHAR(160),SUBSTITUTE($Y194,\"{\",CHAR(160),HQ$1)),FIND(CHAR(160),SUBSTITUTE($Y194,\"}\",CHAR(160),HQ$1))-FIND(CHAR(160),SUBSTITUTE($Y194,\"{\",CHAR(160),HQ$1))+1),\"\")","v":""},{"$f":"IFERROR(MID($Y194,FIND(CHAR(160),SUBSTITUTE($Y194,\"{\",CHAR(160),HR$1)),FIND(CHAR(160),SUBSTITUTE($Y194,\"}\",CHAR(160),HR$1))-FIND(CHAR(160),SUBSTITUTE($Y194,\"{\",CHAR(160),HR$1))+1),\"\")","v":""},{"$f":"IFERROR(MID($Y194,FIND(CHAR(160),SUBSTITUTE($Y194,\"{\",CHAR(160),HS$1)),FIND(CHAR(160),SUBSTITUTE($Y194,\"}\",CHAR(160),HS$1))-FIND(CHAR(160),SUBSTITUTE($Y194,\"{\",CHAR(160),HS$1))+1),\"\")","v":""},{"$f":"IFERROR(MID($Y194,FIND(CHAR(160),SUBSTITUTE($Y194,\"{\",CHAR(160),HT$1)),FIND(CHAR(160),SUBSTITUTE($Y194,\"}\",CHAR(160),HT$1))-FIND(CHAR(160),SUBSTITUTE($Y194,\"{\",CHAR(160),HT$1))+1),\"\")","v":""},{"$f":"IFERROR(MID($Z194,FIND(CHAR(160),SUBSTITUTE($Z194,\"{\",CHAR(160),HU$1)),FIND(CHAR(160),SUBSTITUTE($Z194,\"}\",CHAR(160),HU$1))-FIND(CHAR(160),SUBSTITUTE($Z194,\"{\",CHAR(160),HU$1))+1),\"\")","v":""},{"$f":"IFERROR(MID($Z194,FIND(CHAR(160),SUBSTITUTE($Z194,\"{\",CHAR(160),HV$1)),FIND(CHAR(160),SUBSTITUTE($Z194,\"}\",CHAR(160),HV$1))-FIND(CHAR(160),SUBSTITUTE($Z194,\"{\",CHAR(160),HV$1))+1),\"\")","v":""},{"$f":"IFERROR(MID($Z194,FIND(CHAR(160),SUBSTITUTE($Z194,\"{\",CHAR(160),HW$1)),FIND(CHAR(160),SUBSTITUTE($Z194,\"}\",CHAR(160),HW$1))-FIND(CHAR(160),SUBSTITUTE($Z194,\"{\",CHAR(160),HW$1))+1),\"\")","v":""},{"$f":"IFERROR(MID($Z194,FIND(CHAR(160),SUBSTITUTE($Z194,\"{\",CHAR(160),HX$1)),FIND(CHAR(160),SUBSTITUTE($Z194,\"}\",CHAR(160),HX$1))-FIND(CHAR(160),SUBSTITUTE($Z194,\"{\",CHAR(160),HX$1))+1),\"\")","v":""},{"$f":"IFERROR(MID($Z194,FIND(CHAR(160),SUBSTITUTE($Z194,\"{\",CHAR(160),HY$1)),FIND(CHAR(160),SUBSTITUTE($Z194,\"}\",CHAR(160),HY$1))-FIND(CHAR(160),SUBSTITUTE($Z194,\"{\",CHAR(160),HY$1))+1),\"\")","v":""},{"$f":"IFERROR(MID($Z194,FIND(CHAR(160),SUBSTITUTE($Z194,\"{\",CHAR(160),HZ$1)),FIND(CHAR(160),SUBSTITUTE($Z194,\"}\",CHAR(160),HZ$1))-FIND(CHAR(160),SUBSTITUTE($Z194,\"{\",CHAR(160),HZ$1))+1),\"\")","v":""},{"$f":"IFERROR(MID($Z194,FIND(CHAR(160),SUBSTITUTE($Z194,\"{\",CHAR(160),IA$1)),FIND(CHAR(160),SUBSTITUTE($Z194,\"}\",CHAR(160),IA$1))-FIND(CHAR(160),SUBSTITUTE($Z194,\"{\",CHAR(160),IA$1))+1),\"\")","v":""},{"$f":"IFERROR(MID($Z194,FIND(CHAR(160),SUBSTITUTE($Z194,\"{\",CHAR(160),IB$1)),FIND(CHAR(160),SUBSTITUTE($Z194,\"}\",CHAR(160),IB$1))-FIND(CHAR(160),SUBSTITUTE($Z194,\"{\",CHAR(160),IB$1))+1),\"\")","v":""},{"$f":"IFERROR(MID($Z194,FIND(CHAR(160),SUBSTITUTE($Z194,\"{\",CHAR(160),IC$1)),FIND(CHAR(160),SUBSTITUTE($Z194,\"}\",CHAR(160),IC$1))-FIND(CHAR(160),SUBSTITUTE($Z194,\"{\",CHAR(160),IC$1))+1),\"\")","v":""},{"$f":"IFERROR(MID($Z194,FIND(CHAR(160),SUBSTITUTE($Z194,\"{\",CHAR(160),ID$1)),FIND(CHAR(160),SUBSTITUTE($Z194,\"}\",CHAR(160),ID$1))-FIND(CHAR(160),SUBSTITUTE($Z194,\"{\",CHAR(160),ID$1))+1),\"\")","v":""},{"$f":"IFERROR(MID($AA194,FIND(CHAR(160),SUBSTITUTE($AA194,\"{\",CHAR(160),IE$1)),FIND(CHAR(160),SUBSTITUTE($AA194,\"}\",CHAR(160),IE$1))-FIND(CHAR(160),SUBSTITUTE($AA194,\"{\",CHAR(160),IE$1))+1),\"\")","v":""},{"$f":"IFERROR(MID($AA194,FIND(CHAR(160),SUBSTITUTE($AA194,\"{\",CHAR(160),IF$1)),FIND(CHAR(160),SUBSTITUTE($AA194,\"}\",CHAR(160),IF$1))-FIND(CHAR(160),SUBSTITUTE($AA194,\"{\",CHAR(160),IF$1))+1),\"\")","v":""},{"$f":"IFERROR(MID($AA194,FIND(CHAR(160),SUBSTITUTE($AA194,\"{\",CHAR(160),IG$1)),FIND(CHAR(160),SUBSTITUTE($AA194,\"}\",CHAR(160),IG$1))-FIND(CHAR(160),SUBSTITUTE($AA194,\"{\",CHAR(160),IG$1))+1),\"\")","v":""},{"$f":"IFERROR(MID($AA194,FIND(CHAR(160),SUBSTITUTE($AA194,\"{\",CHAR(160),IH$1)),FIND(CHAR(160),SUBSTITUTE($AA194,\"}\",CHAR(160),IH$1))-FIND(CHAR(160),SUBSTITUTE($AA194,\"{\",CHAR(160),IH$1))+1),\"\")","v":""},{"$f":"IFERROR(MID($AA194,FIND(CHAR(160),SUBSTITUTE($AA194,\"{\",CHAR(160),II$1)),FIND(CHAR(160),SUBSTITUTE($AA194,\"}\",CHAR(160),II$1))-FIND(CHAR(160),SUBSTITUTE($AA194,\"{\",CHAR(160),II$1))+1),\"\")","v":""},{"$f":"IFERROR(MID($AA194,FIND(CHAR(160),SUBSTITUTE($AA194,\"{\",CHAR(160),IJ$1)),FIND(CHAR(160),SUBSTITUTE($AA194,\"}\",CHAR(160),IJ$1))-FIND(CHAR(160),SUBSTITUTE($AA194,\"{\",CHAR(160),IJ$1))+1),\"\")","v":""},{"$f":"IFERROR(MID($AA194,FIND(CHAR(160),SUBSTITUTE($AA194,\"{\",CHAR(160),IK$1)),FIND(CHAR(160),SUBSTITUTE($AA194,\"}\",CHAR(160),IK$1))-FIND(CHAR(160),SUBSTITUTE($AA194,\"{\",CHAR(160),IK$1))+1),\"\")","v":""},{"$f":"IFERROR(MID($AA194,FIND(CHAR(160),SUBSTITUTE($AA194,\"{\",CHAR(160),IL$1)),FIND(CHAR(160),SUBSTITUTE($AA194,\"}\",CHAR(160),IL$1))-FIND(CHAR(160),SUBSTITUTE($AA194,\"{\",CHAR(160),IL$1))+1),\"\")","v":""},{"$f":"IFERROR(MID($AA194,FIND(CHAR(160),SUBSTITUTE($AA194,\"{\",CHAR(160),IM$1)),FIND(CHAR(160),SUBSTITUTE($AA194,\"}\",CHAR(160),IM$1))-FIND(CHAR(160),SUBSTITUTE($AA194,\"{\",CHAR(160),IM$1))+1),\"\")","v":""},{"$f":"IFERROR(MID($AA194,FIND(CHAR(160),SUBSTITUTE($AA194,\"{\",CHAR(160),IN$1)),FIND(CHAR(160),SUBSTITUTE($AA194,\"}\",CHAR(160),IN$1))-FIND(CHAR(160),SUBSTITUTE($AA194,\"{\",CHAR(160),IN$1))+1),\"\")","v":""},{"$f":"IFERROR(MID($AB194,FIND(CHAR(160),SUBSTITUTE($AB194,\"{\",CHAR(160),IO$1)),FIND(CHAR(160),SUBSTITUTE($AB194,\"}\",CHAR(160),IO$1))-FIND(CHAR(160),SUBSTITUTE($AB194,\"{\",CHAR(160),IO$1))+1),\"\")","v":""},{"$f":"IFERROR(MID($AB194,FIND(CHAR(160),SUBSTITUTE($AB194,\"{\",CHAR(160),IP$1)),FIND(CHAR(160),SUBSTITUTE($AB194,\"}\",CHAR(160),IP$1))-FIND(CHAR(160),SUBSTITUTE($AB194,\"{\",CHAR(160),IP$1))+1),\"\")","v":""},{"$f":"IFERROR(MID($AB194,FIND(CHAR(160),SUBSTITUTE($AB194,\"{\",CHAR(160),IQ$1)),FIND(CHAR(160),SUBSTITUTE($AB194,\"}\",CHAR(160),IQ$1))-FIND(CHAR(160),SUBSTITUTE($AB194,\"{\",CHAR(160),IQ$1))+1),\"\")","v":""},{"$f":"IFERROR(MID($AB194,FIND(CHAR(160),SUBSTITUTE($AB194,\"{\",CHAR(160),IR$1)),FIND(CHAR(160),SUBSTITUTE($AB194,\"}\",CHAR(160),IR$1))-FIND(CHAR(160),SUBSTITUTE($AB194,\"{\",CHAR(160),IR$1))+1),\"\")","v":""},{"$f":"IFERROR(MID($AB194,FIND(CHAR(160),SUBSTITUTE($AB194,\"{\",CHAR(160),IS$1)),FIND(CHAR(160),SUBSTITUTE($AB194,\"}\",CHAR(160),IS$1))-FIND(CHAR(160),SUBSTITUTE($AB194,\"{\",CHAR(160),IS$1))+1),\"\")","v":""},{"$f":"IFERROR(MID($AB194,FIND(CHAR(160),SUBSTITUTE($AB194,\"{\",CHAR(160),IT$1)),FIND(CHAR(160),SUBSTITUTE($AB194,\"}\",CHAR(160),IT$1))-FIND(CHAR(160),SUBSTITUTE($AB194,\"{\",CHAR(160),IT$1))+1),\"\")","v":""},{"$f":"IFERROR(MID($AB194,FIND(CHAR(160),SUBSTITUTE($AB194,\"{\",CHAR(160),IU$1)),FIND(CHAR(160),SUBSTITUTE($AB194,\"}\",CHAR(160),IU$1))-FIND(CHAR(160),SUBSTITUTE($AB194,\"{\",CHAR(160),IU$1))+1),\"\")","v":""},{"$f":"IFERROR(MID($AB194,FIND(CHAR(160),SUBSTITUTE($AB194,\"{\",CHAR(160),IV$1)),FIND(CHAR(160),SUBSTITUTE($AB194,\"}\",CHAR(160),IV$1))-FIND(CHAR(160),SUBSTITUTE($AB194,\"{\",CHAR(160),IV$1))+1),\"\")","v":""},{"$f":"IFERROR(MID($AB194,FIND(CHAR(160),SUBSTITUTE($AB194,\"{\",CHAR(160),IW$1)),FIND(CHAR(160),SUBSTITUTE($AB194,\"}\",CHAR(160),IW$1))-FIND(CHAR(160),SUBSTITUTE($AB194,\"{\",CHAR(160),IW$1))+1),\"\")","v":""},{"$f":"IFERROR(MID($AB194,FIND(CHAR(160),SUBSTITUTE($AB194,\"{\",CHAR(160),IX$1)),FIND(CHAR(160),SUBSTITUTE($AB194,\"}\",CHAR(160),IX$1))-FIND(CHAR(160),SUBSTITUTE($AB194,\"{\",CHAR(160),IX$1))+1),\"\")","v":""},null,{"$f":"10-COUNTIF(DU194:ED194,\"\")","v":4}]
["Home Energy Savings Program - Electric","Heat Pump Multi-zone 2 or more zones","HPMULT2T1","2021-07-01","2022-06-30","Per Measure",1364,0,"Calculated","if({HSPF}<10,0,if({Rebate Level}=1,$750.00,$600.00))*{Measure:Quantity}",0,"2021-07-01","2022-06-30","Per Measure",454,null,null,null,null,null,5.2999999999999999E-2,0.18,1.1300000000000001,0.37,0.81,0.04,0.47000000000000003,0,null,null,18,1,1,0.36699999999999999,0.51200000000000001,6.7000000000000004E-2,5.2999999999999999E-2,1,1,1,0.42,0.11,null,{"$f":"DU195","v":"{HSPF}"},10,{"$f":"DV195","v":"{Rebate Level}"},1,{"$f":"DW195","v":"{Measure:Quantity}"},1,{"$f":"DX195","v":""},null,{"$f":"DY195","v":""},null,{"$f":"DZ195","v":""},null,{"$f":"EA195","v":""},null,{"$f":"EB195","v":""},null,{"$f":"EC195","v":""},null,{"$f":"ED195","v":""},null,{"$f":"454","v":454},0,0,0,0,0,{"$f":"0.053","v":5.2999999999999999E-2},{"$f":"0.18","v":0.18},{"$f":"1.13","v":1.1299999999999999},{"$f":"0.37","v":0.37},{"$f":"0.81","v":0.81},{"$f":"0.04","v":0.04},{"$f":"0.47","v":0.47},{"$f":"0","v":0},null,"Res","Default DR",{"$f":"Benefits(BL195,BR195,BS195,BT195,BU195,BV195,BW195,BX195,BY195,BZ195,AE195,AH195,AI195,AJ195,AK195,AL195,AM195,AN195,AO195,AP195,CA195,CB195)","v":710.98083355847814},622.34861910428685,25.095697092720435,391.32954698682039,22.541139012003274,250.72134485093889,144.95481168641098,0,0,{"$f":"SUMPRODUCT(CC195:CK195,--(CC195:CK195>0))","v":2167.9719922916593},{"$f":"-SUMPRODUCT(CC195:CK195,--(CC195:CK195<0))","v":0},null,{"$f":"1364","v":1364},null,null,{"$f":"CM195+CO195","v":1364},{"$f":"IF(NetOrGross=\"Net\",(1-AO195+AP195),1)","v":1},{"$f":"(SUMPRODUCT(CC195:CJ195,--(CC195:CJ195>0))+CN195)*CS195/((-SUMPRODUCT(CC195:CJ195,--(CC195:CJ195<0))+MAX(CO195,CV195)+CP195+CQ195)*CS195+IF(FRIncentives=\"Yes\",CV195*(1-CS195),0))","v":1.5894222817387531},1,{"$f":"IF(AS195<10,0,IF(AU195=1,750,600))*AW195","v":750},null,"Electric","y",1,{"$f":"IF(F195=\"Manual Entry\",\"Manual\",IF(G195=\"\",0,\"X=\"&SUBSTITUTE(SUBSTITUTE(SUBSTITUTE(SUBSTITUTE(SUBSTITUTE(SUBSTITUTE(SUBSTITUTE(SUBSTITUTE(SUBSTITUTE(SUBSTITUTE(SUBSTITUTE(SUBSTITUTE(G195,$ED195,$ED$2&ROW($ED195)),$EC195,$EC$2&ROW($EC195)),$EB195,$EB$2&ROW($EB195)),$EA195,$EA$2&ROW($EA195)),$DZ195,$DZ$2&ROW($DZ195)),$DY195,$DY$2&ROW($DY195)),$DX195,$DX$2&ROW($DX195)),$DW195,$DW$2&ROW($DW195)),$DV195,$DV$2&ROW($DV195)),$DU195,$DU$2&ROW($DU195)),$DT195,$DT$2&ROW($DT195)),$DS195,$DS$2&ROW($DS195))))","v":"X=1364"},{"$f":"IF(I195=\"Manual Entry\",\"Manual\",IF(J195=\"\",0,\"X=\"&SUBSTITUTE(SUBSTITUTE(SUBSTITUTE(SUBSTITUTE(SUBSTITUTE(SUBSTITUTE(SUBSTITUTE(SUBSTITUTE(SUBSTITUTE(SUBSTITUTE(SUBSTITUTE(SUBSTITUTE(J195,$ED195,$ED$2&ROW($ED195)),$EC195,$EC$2&ROW($EC195)),$EB195,$EB$2&ROW($EB195)),$EA195,$EA$2&ROW($EA195)),$DZ195,$DZ$2&ROW($DZ195)),$DY195,$DY$2&ROW($DY195)),$DX195,$DX$2&ROW($DX195)),$DW195,$DW$2&ROW($DW195)),$DV195,$DV$2&ROW($DV195)),$DU195,$DU$2&ROW($DU195)),$DT195,$DT$2&ROW($DT195)),$DS195,$DS$2&ROW($DS195))))","v":"X=if(AS195<10,0,if(AU195=1,$750.00,$600.00))*AW195"},{"$f":"IF(O195=\"\",0,\"X=\"&SUBSTITUTE(SUBSTITUTE(SUBSTITUTE(SUBSTITUTE(SUBSTITUTE(SUBSTITUTE(SUBSTITUTE(SUBSTITUTE(SUBSTITUTE(SUBSTITUTE(SUBSTITUTE(SUBSTITUTE(O195,$ED195,$ED$2&ROW($ED195)),$EC195,$EC$2&ROW($EC195)),$EB195,$EB$2&ROW($EB195)),$EA195,$EA$2&ROW($EA195)),$DZ195,$DZ$2&ROW($DZ195)),$DY195,$DY$2&ROW($DY195)),$DX195,$DX$2&ROW($DX195)),$DW195,$DW$2&ROW($DW195)),$DV195,$DV$2&ROW($DV195)),$DU195,$DU$2&ROW($DU195)),$DT195,$DT$2&ROW($DT195)),$DS195,$DS$2&ROW($DS195)))","v":"X=454"},{"$f":"IF(P195=\"\",0,\"X=\"&SUBSTITUTE(SUBSTITUTE(SUBSTITUTE(SUBSTITUTE(SUBSTITUTE(SUBSTITUTE(SUBSTITUTE(SUBSTITUTE(SUBSTITUTE(SUBSTITUTE(SUBSTITUTE(SUBSTITUTE(P195,$ED195,$ED$2&ROW($ED195)),$EC195,$EC$2&ROW($EC195)),$EB195,$EB$2&ROW($EB195)),$EA195,$EA$2&ROW($EA195)),$DZ195,$DZ$2&ROW($DZ195)),$DY195,$DY$2&ROW($DY195)),$DX195,$DX$2&ROW($DX195)),$DW195,$DW$2&ROW($DW195)),$DV195,$DV$2&ROW($DV195)),$DU195,$DU$2&ROW($DU195)),$DT195,$DT$2&ROW($DT195)),$DS195,$DS$2&ROW($DS195)))","v":0},{"$f":"IF(Q195=\"\",0,\"X=\"&SUBSTITUTE(SUBSTITUTE(SUBSTITUTE(SUBSTITUTE(SUBSTITUTE(SUBSTITUTE(SUBSTITUTE(SUBSTITUTE(SUBSTITUTE(SUBSTITUTE(SUBSTITUTE(SUBSTITUTE(Q195,$ED195,$ED$2&ROW($ED195)),$EC195,$EC$2&ROW($EC195)),$EB195,$EB$2&ROW($EB195)),$EA195,$EA$2&ROW($EA195)),$DZ195,$DZ$2&ROW($DZ195)),$DY195,$DY$2&ROW($DY195)),$DX195,$DX$2&ROW($DX195)),$DW195,$DW$2&ROW($DW195)),$DV195,$DV$2&ROW($DV195)),$DU195,$DU$2&ROW($DU195)),$DT195,$DT$2&ROW($DT195)),$DS195,$DS$2&ROW($DS195)))","v":0},{"$f":"IF(R195=\"\",0,\"X=\"&SUBSTITUTE(SUBSTITUTE(SUBSTITUTE(SUBSTITUTE(SUBSTITUTE(SUBSTITUTE(SUBSTITUTE(SUBSTITUTE(SUBSTITUTE(SUBSTITUTE(SUBSTITUTE(SUBSTITUTE(R195,$ED195,$ED$2&ROW($ED195)),$EC195,$EC$2&ROW($EC195)),$EB195,$EB$2&ROW($EB195)),$EA195,$EA$2&ROW($EA195)),$DZ195,$DZ$2&ROW($DZ195)),$DY195,$DY$2&ROW($DY195)),$DX195,$DX$2&ROW($DX195)),$DW195,$DW$2&ROW($DW195)),$DV195,$DV$2&ROW($DV195)),$DU195,$DU$2&ROW($DU195)),$DT195,$DT$2&ROW($DT195)),$DS195,$DS$2&ROW($DS195)))","v":0},{"$f":"IF(S195=\"\",0,\"X=\"&SUBSTITUTE(SUBSTITUTE(SUBSTITUTE(SUBSTITUTE(SUBSTITUTE(SUBSTITUTE(SUBSTITUTE(SUBSTITUTE(SUBSTITUTE(SUBSTITUTE(SUBSTITUTE(SUBSTITUTE(S195,$ED195,$ED$2&ROW($ED195)),$EC195,$EC$2&ROW($EC195)),$EB195,$EB$2&ROW($EB195)),$EA195,$EA$2&ROW($EA195)),$DZ195,$DZ$2&ROW($DZ195)),$DY195,$DY$2&ROW($DY195)),$DX195,$DX$2&ROW($DX195)),$DW195,$DW$2&ROW($DW195)),$DV195,$DV$2&ROW($DV195)),$DU195,$DU$2&ROW($DU195)),$DT195,$DT$2&ROW($DT195)),$DS195,$DS$2&ROW($DS195)))","v":0},{"$f":"IF(T195=\"\",0,\"X=\"&SUBSTITUTE(SUBSTITUTE(SUBSTITUTE(SUBSTITUTE(SUBSTITUTE(SUBSTITUTE(SUBSTITUTE(SUBSTITUTE(SUBSTITUTE(SUBSTITUTE(SUBSTITUTE(SUBSTITUTE(T195,$ED195,$ED$2&ROW($ED195)),$EC195,$EC$2&ROW($EC195)),$EB195,$EB$2&ROW($EB195)),$EA195,$EA$2&ROW($EA195)),$DZ195,$DZ$2&ROW($DZ195)),$DY195,$DY$2&ROW($DY195)),$DX195,$DX$2&ROW($DX195)),$DW195,$DW$2&ROW($DW195)),$DV195,$DV$2&ROW($DV195)),$DU195,$DU$2&ROW($DU195)),$DT195,$DT$2&ROW($DT195)),$DS195,$DS$2&ROW($DS195)))","v":0},{"$f":"IF(U195=\"\",0,\"X=\"&SUBSTITUTE(SUBSTITUTE(SUBSTITUTE(SUBSTITUTE(SUBSTITUTE(SUBSTITUTE(SUBSTITUTE(SUBSTITUTE(SUBSTITUTE(SUBSTITUTE(SUBSTITUTE(SUBSTITUTE(U195,$ED195,$ED$2&ROW($ED195)),$EC195,$EC$2&ROW($EC195)),$EB195,$EB$2&ROW($EB195)),$EA195,$EA$2&ROW($EA195)),$DZ195,$DZ$2&ROW($DZ195)),$DY195,$DY$2&ROW($DY195)),$DX195,$DX$2&ROW($DX195)),$DW195,$DW$2&ROW($DW195)),$DV195,$DV$2&ROW($DV195)),$DU195,$DU$2&ROW($DU195)),$DT195,$DT$2&ROW($DT195)),$DS195,$DS$2&ROW($DS195)))","v":"X=0.053"},{"$f":"IF(V195=\"\",0,\"X=\"&SUBSTITUTE(SUBSTITUTE(SUBSTITUTE(SUBSTITUTE(SUBSTITUTE(SUBSTITUTE(SUBSTITUTE(SUBSTITUTE(SUBSTITUTE(SUBSTITUTE(SUBSTITUTE(SUBSTITUTE(V195,$ED195,$ED$2&ROW($ED195)),$EC195,$EC$2&ROW($EC195)),$EB195,$EB$2&ROW($EB195)),$EA195,$EA$2&ROW($EA195)),$DZ195,$DZ$2&ROW($DZ195)),$DY195,$DY$2&ROW($DY195)),$DX195,$DX$2&ROW($DX195)),$DW195,$DW$2&ROW($DW195)),$DV195,$DV$2&ROW($DV195)),$DU195,$DU$2&ROW($DU195)),$DT195,$DT$2&ROW($DT195)),$DS195,$DS$2&ROW($DS195)))","v":"X=0.18"},{"$f":"IF(W195=\"\",0,\"X=\"&SUBSTITUTE(SUBSTITUTE(SUBSTITUTE(SUBSTITUTE(SUBSTITUTE(SUBSTITUTE(SUBSTITUTE(SUBSTITUTE(SUBSTITUTE(SUBSTITUTE(SUBSTITUTE(SUBSTITUTE(W195,$ED195,$ED$2&ROW($ED195)),$EC195,$EC$2&ROW($EC195)),$EB195,$EB$2&ROW($EB195)),$EA195,$EA$2&ROW($EA195)),$DZ195,$DZ$2&ROW($DZ195)),$DY195,$DY$2&ROW($DY195)),$DX195,$DX$2&ROW($DX195)),$DW195,$DW$2&ROW($DW195)),$DV195,$DV$2&ROW($DV195)),$DU195,$DU$2&ROW($DU195)),$DT195,$DT$2&ROW($DT195)),$DS195,$DS$2&ROW($DS195)))","v":"X=1.13"},{"$f":"IF(X195=\"\",0,\"X=\"&SUBSTITUTE(SUBSTITUTE(SUBSTITUTE(SUBSTITUTE(SUBSTITUTE(SUBSTITUTE(SUBSTITUTE(SUBSTITUTE(SUBSTITUTE(SUBSTITUTE(SUBSTITUTE(SUBSTITUTE(X195,$ED195,$ED$2&ROW($ED195)),$EC195,$EC$2&ROW($EC195)),$EB195,$EB$2&ROW($EB195)),$EA195,$EA$2&ROW($EA195)),$DZ195,$DZ$2&ROW($DZ195)),$DY195,$DY$2&ROW($DY195)),$DX195,$DX$2&ROW($DX195)),$DW195,$DW$2&ROW($DW195)),$DV195,$DV$2&ROW($DV195)),$DU195,$DU$2&ROW($DU195)),$DT195,$DT$2&ROW($DT195)),$DS195,$DS$2&ROW($DS195)))","v":"X=0.37"},{"$f":"IF(Y195=\"\",0,\"X=\"&SUBSTITUTE(SUBSTITUTE(SUBSTITUTE(SUBSTITUTE(SUBSTITUTE(SUBSTITUTE(SUBSTITUTE(SUBSTITUTE(SUBSTITUTE(SUBSTITUTE(SUBSTITUTE(SUBSTITUTE(Y195,$ED195,$ED$2&ROW($ED195)),$EC195,$EC$2&ROW($EC195)),$EB195,$EB$2&ROW($EB195)),$EA195,$EA$2&ROW($EA195)),$DZ195,$DZ$2&ROW($DZ195)),$DY195,$DY$2&ROW($DY195)),$DX195,$DX$2&ROW($DX195)),$DW195,$DW$2&ROW($DW195)),$DV195,$DV$2&ROW($DV195)),$DU195,$DU$2&ROW($DU195)),$DT195,$DT$2&ROW($DT195)),$DS195,$DS$2&ROW($DS195)))","v":"X=0.81"},{"$f":"IF(Z195=\"\",0,\"X=\"&SUBSTITUTE(SUBSTITUTE(SUBSTITUTE(SUBSTITUTE(SUBSTITUTE(SUBSTITUTE(SUBSTITUTE(SUBSTITUTE(SUBSTITUTE(SUBSTITUTE(SUBSTITUTE(SUBSTITUTE(Z195,$ED195,$ED$2&ROW($ED195)),$EC195,$EC$2&ROW($EC195)),$EB195,$EB$2&ROW($EB195)),$EA195,$EA$2&ROW($EA195)),$DZ195,$DZ$2&ROW($DZ195)),$DY195,$DY$2&ROW($DY195)),$DX195,$DX$2&ROW($DX195)),$DW195,$DW$2&ROW($DW195)),$DV195,$DV$2&ROW($DV195)),$DU195,$DU$2&ROW($DU195)),$DT195,$DT$2&ROW($DT195)),$DS195,$DS$2&ROW($DS195)))","v":"X=0.04"},{"$f":"IF(AA195=\"\",0,\"X=\"&SUBSTITUTE(SUBSTITUTE(SUBSTITUTE(SUBSTITUTE(SUBSTITUTE(SUBSTITUTE(SUBSTITUTE(SUBSTITUTE(SUBSTITUTE(SUBSTITUTE(SUBSTITUTE(SUBSTITUTE(AA195,$ED195,$ED$2&ROW($ED195)),$EC195,$EC$2&ROW($EC195)),$EB195,$EB$2&ROW($EB195)),$EA195,$EA$2&ROW($EA195)),$DZ195,$DZ$2&ROW($DZ195)),$DY195,$DY$2&ROW($DY195)),$DX195,$DX$2&ROW($DX195)),$DW195,$DW$2&ROW($DW195)),$DV195,$DV$2&ROW($DV195)),$DU195,$DU$2&ROW($DU195)),$DT195,$DT$2&ROW($DT195)),$DS195,$DS$2&ROW($DS195)))","v":"X=0.47"},{"$f":"IF(AB195=\"\",0,\"X=\"&SUBSTITUTE(SUBSTITUTE(SUBSTITUTE(SUBSTITUTE(SUBSTITUTE(SUBSTITUTE(SUBSTITUTE(SUBSTITUTE(SUBSTITUTE(SUBSTITUTE(SUBSTITUTE(SUBSTITUTE(AB195,$ED195,$ED$2&ROW($ED195)),$EC195,$EC$2&ROW($EC195)),$EB195,$EB$2&ROW($EB195)),$EA195,$EA$2&ROW($EA195)),$DZ195,$DZ$2&ROW($DZ195)),$DY195,$DY$2&ROW($DY195)),$DX195,$DX$2&ROW($DX195)),$DW195,$DW$2&ROW($DW195)),$DV195,$DV$2&ROW($DV195)),$DU195,$DU$2&ROW($DU195)),$DT195,$DT$2&ROW($DT195)),$DS195,$DS$2&ROW($DS195)))","v":"X=0"},null,null,"{Factor:WinterCF}","{Factor:SummerCF}",{"$f":"IFERROR(INDEX($EG195:$IV195,MATCH(0,COUNTIF($DR195:DT195,$EG195:$IV195),0)),\"\")","v":"{HSPF}"},{"$f":"IFERROR(INDEX($EG195:$IV195,MATCH(0,COUNTIF($DR195:DU195,$EG195:$IV195),0)),\"\")","v":"{Rebate Level}"},{"$f":"IFERROR(INDEX($EG195:$IV195,MATCH(0,COUNTIF($DR195:DV195,$EG195:$IV195),0)),\"\")","v":"{Measure:Quantity}"},{"$f":"IFERROR(INDEX($EG195:$IV195,MATCH(0,COUNTIF($DR195:DW195,$EG195:$IV195),0)),\"\")","v":""},{"$f":"IFERROR(INDEX($EG195:$IV195,MATCH(0,COUNTIF($DR195:DX195,$EG195:$IV195),0)),\"\")","v":""},{"$f":"IFERROR(INDEX($EG195:$IV195,MATCH(0,COUNTIF($DR195:DY195,$EG195:$IV195),0)),\"\")","v":""},{"$f":"IFERROR(INDEX($EG195:$IV195,MATCH(0,COUNTIF($DR195:DZ195,$EG195:$IV195),0)),\"\")","v":""},{"$f":"IFERROR(INDEX($EG195:$IV195,MATCH(0,COUNTIF($DR195:EA195,$EG195:$IV195),0)),\"\")","v":""},{"$f":"IFERROR(INDEX($EG195:$IV195,MATCH(0,COUNTIF($DR195:EB195,$EG195:$IV195),0)),\"\")","v":""},{"$f":"IFERROR(INDEX($EG195:$IV195,MATCH(0,COUNTIF($DR195:EC195,$EG195:$IV195),0)),\"\")","v":""},null,null,{"$f":"IFERROR(MID($G195,FIND(CHAR(160),SUBSTITUTE($G195,\"{\",CHAR(160),EG$1)),FIND(CHAR(160),SUBSTITUTE($G195,\"}\",CHAR(160),EG$1))-FIND(CHAR(160),SUBSTITUTE($G195,\"{\",CHAR(160),EG$1))+1),\"\")","v":""},{"$f":"IFERROR(MID($G195,FIND(CHAR(160),SUBSTITUTE($G195,\"{\",CHAR(160),EH$1)),FIND(CHAR(160),SUBSTITUTE($G195,\"}\",CHAR(160),EH$1))-FIND(CHAR(160),SUBSTITUTE($G195,\"{\",CHAR(160),EH$1))+1),\"\")","v":""},{"$f":"IFERROR(MID($G195,FIND(CHAR(160),SUBSTITUTE($G195,\"{\",CHAR(160),EI$1)),FIND(CHAR(160),SUBSTITUTE($G195,\"}\",CHAR(160),EI$1))-FIND(CHAR(160),SUBSTITUTE($G195,\"{\",CHAR(160),EI$1))+1),\"\")","v":""},{"$f":"IFERROR(MID($G195,FIND(CHAR(160),SUBSTITUTE($G195,\"{\",CHAR(160),EJ$1)),FIND(CHAR(160),SUBSTITUTE($G195,\"}\",CHAR(160),EJ$1))-FIND(CHAR(160),SUBSTITUTE($G195,\"{\",CHAR(160),EJ$1))+1),\"\")","v":""},{"$f":"IFERROR(MID($G195,FIND(CHAR(160),SUBSTITUTE($G195,\"{\",CHAR(160),EK$1)),FIND(CHAR(160),SUBSTITUTE($G195,\"}\",CHAR(160),EK$1))-FIND(CHAR(160),SUBSTITUTE($G195,\"{\",CHAR(160),EK$1))+1),\"\")","v":""},{"$f":"IFERROR(MID($G195,FIND(CHAR(160),SUBSTITUTE($G195,\"{\",CHAR(160),EL$1)),FIND(CHAR(160),SUBSTITUTE($G195,\"}\",CHAR(160),EL$1))-FIND(CHAR(160),SUBSTITUTE($G195,\"{\",CHAR(160),EL$1))+1),\"\")","v":""},{"$f":"IFERROR(MID($G195,FIND(CHAR(160),SUBSTITUTE($G195,\"{\",CHAR(160),EM$1)),FIND(CHAR(160),SUBSTITUTE($G195,\"}\",CHAR(160),EM$1))-FIND(CHAR(160),SUBSTITUTE($G195,\"{\",CHAR(160),EM$1))+1),\"\")","v":""},{"$f":"IFERROR(MID($G195,FIND(CHAR(160),SUBSTITUTE($G195,\"{\",CHAR(160),EN$1)),FIND(CHAR(160),SUBSTITUTE($G195,\"}\",CHAR(160),EN$1))-FIND(CHAR(160),SUBSTITUTE($G195,\"{\",CHAR(160),EN$1))+1),\"\")","v":""},{"$f":"IFERROR(MID($G195,FIND(CHAR(160),SUBSTITUTE($G195,\"{\",CHAR(160),EO$1)),FIND(CHAR(160),SUBSTITUTE($G195,\"}\",CHAR(160),EO$1))-FIND(CHAR(160),SUBSTITUTE($G195,\"{\",CHAR(160),EO$1))+1),\"\")","v":""},{"$f":"IFERROR(MID($G195,FIND(CHAR(160),SUBSTITUTE($G195,\"{\",CHAR(160),EP$1)),FIND(CHAR(160),SUBSTITUTE($G195,\"}\",CHAR(160),EP$1))-FIND(CHAR(160),SUBSTITUTE($G195,\"{\",CHAR(160),EP$1))+1),\"\")","v":""},{"$f":"IFERROR(MID($J195,FIND(CHAR(160),SUBSTITUTE($J195,\"{\",CHAR(160),EQ$1)),FIND(CHAR(160),SUBSTITUTE($J195,\"}\",CHAR(160),EQ$1))-FIND(CHAR(160),SUBSTITUTE($J195,\"{\",CHAR(160),EQ$1))+1),\"\")","v":"{HSPF}"},{"$f":"IFERROR(MID($J195,FIND(CHAR(160),SUBSTITUTE($J195,\"{\",CHAR(160),ER$1)),FIND(CHAR(160),SUBSTITUTE($J195,\"}\",CHAR(160),ER$1))-FIND(CHAR(160),SUBSTITUTE($J195,\"{\",CHAR(160),ER$1))+1),\"\")","v":"{Rebate Level}"},{"$f":"IFERROR(MID($J195,FIND(CHAR(160),SUBSTITUTE($J195,\"{\",CHAR(160),ES$1)),FIND(CHAR(160),SUBSTITUTE($J195,\"}\",CHAR(160),ES$1))-FIND(CHAR(160),SUBSTITUTE($J195,\"{\",CHAR(160),ES$1))+1),\"\")","v":"{Measure:Quantity}"},{"$f":"IFERROR(MID($J195,FIND(CHAR(160),SUBSTITUTE($J195,\"{\",CHAR(160),ET$1)),FIND(CHAR(160),SUBSTITUTE($J195,\"}\",CHAR(160),ET$1))-FIND(CHAR(160),SUBSTITUTE($J195,\"{\",CHAR(160),ET$1))+1),\"\")","v":""},{"$f":"IFERROR(MID($J195,FIND(CHAR(160),SUBSTITUTE($J195,\"{\",CHAR(160),EU$1)),FIND(CHAR(160),SUBSTITUTE($J195,\"}\",CHAR(160),EU$1))-FIND(CHAR(160),SUBSTITUTE($J195,\"{\",CHAR(160),EU$1))+1),\"\")","v":""},{"$f":"IFERROR(MID($J195,FIND(CHAR(160),SUBSTITUTE($J195,\"{\",CHAR(160),EV$1)),FIND(CHAR(160),SUBSTITUTE($J195,\"}\",CHAR(160),EV$1))-FIND(CHAR(160),SUBSTITUTE($J195,\"{\",CHAR(160),EV$1))+1),\"\")","v":""},{"$f":"IFERROR(MID($J195,FIND(CHAR(160),SUBSTITUTE($J195,\"{\",CHAR(160),EW$1)),FIND(CHAR(160),SUBSTITUTE($J195,\"}\",CHAR(160),EW$1))-FIND(CHAR(160),SUBSTITUTE($J195,\"{\",CHAR(160),EW$1))+1),\"\")","v":""},{"$f":"IFERROR(MID($J195,FIND(CHAR(160),SUBSTITUTE($J195,\"{\",CHAR(160),EX$1)),FIND(CHAR(160),SUBSTITUTE($J195,\"}\",CHAR(160),EX$1))-FIND(CHAR(160),SUBSTITUTE($J195,\"{\",CHAR(160),EX$1))+1),\"\")","v":""},{"$f":"IFERROR(MID($J195,FIND(CHAR(160),SUBSTITUTE($J195,\"{\",CHAR(160),EY$1)),FIND(CHAR(160),SUBSTITUTE($J195,\"}\",CHAR(160),EY$1))-FIND(CHAR(160),SUBSTITUTE($J195,\"{\",CHAR(160),EY$1))+1),\"\")","v":""},{"$f":"IFERROR(MID($J195,FIND(CHAR(160),SUBSTITUTE($J195,\"{\",CHAR(160),EZ$1)),FIND(CHAR(160),SUBSTITUTE($J195,\"}\",CHAR(160),EZ$1))-FIND(CHAR(160),SUBSTITUTE($J195,\"{\",CHAR(160),EZ$1))+1),\"\")","v":""},{"$f":"IFERROR(MID($J195,FIND(CHAR(160),SUBSTITUTE($J195,\"{\",CHAR(160),FA$1)),FIND(CHAR(160),SUBSTITUTE($J195,\"}\",CHAR(160),FA$1))-FIND(CHAR(160),SUBSTITUTE($J195,\"{\",CHAR(160),FA$1))+1),\"\")","v":"{HSPF}"},{"$f":"IFERROR(MID($J195,FIND(CHAR(160),SUBSTITUTE($J195,\"{\",CHAR(160),FB$1)),FIND(CHAR(160),SUBSTITUTE($J195,\"}\",CHAR(160),FB$1))-FIND(CHAR(160),SUBSTITUTE($J195,\"{\",CHAR(160),FB$1))+1),\"\")","v":"{Rebate Level}"},{"$f":"IFERROR(MID($O195,FIND(CHAR(160),SUBSTITUTE($O195,\"{\",CHAR(160),FC$1)),FIND(CHAR(160),SUBSTITUTE($O195,\"}\",CHAR(160),FC$1))-FIND(CHAR(160),SUBSTITUTE($O195,\"{\",CHAR(160),FC$1))+1),\"\")","v":""},{"$f":"IFERROR(MID($O195,FIND(CHAR(160),SUBSTITUTE($O195,\"{\",CHAR(160),FD$1)),FIND(CHAR(160),SUBSTITUTE($O195,\"}\",CHAR(160),FD$1))-FIND(CHAR(160),SUBSTITUTE($O195,\"{\",CHAR(160),FD$1))+1),\"\")","v":""},{"$f":"IFERROR(MID($O195,FIND(CHAR(160),SUBSTITUTE($O195,\"{\",CHAR(160),FE$1)),FIND(CHAR(160),SUBSTITUTE($O195,\"}\",CHAR(160),FE$1))-FIND(CHAR(160),SUBSTITUTE($O195,\"{\",CHAR(160),FE$1))+1),\"\")","v":""},{"$f":"IFERROR(MID($O195,FIND(CHAR(160),SUBSTITUTE($O195,\"{\",CHAR(160),FF$1)),FIND(CHAR(160),SUBSTITUTE($O195,\"}\",CHAR(160),FF$1))-FIND(CHAR(160),SUBSTITUTE($O195,\"{\",CHAR(160),FF$1))+1),\"\")","v":""},{"$f":"IFERROR(MID($O195,FIND(CHAR(160),SUBSTITUTE($O195,\"{\",CHAR(160),FG$1)),FIND(CHAR(160),SUBSTITUTE($O195,\"}\",CHAR(160),FG$1))-FIND(CHAR(160),SUBSTITUTE($O195,\"{\",CHAR(160),FG$1))+1),\"\")","v":""},{"$f":"IFERROR(MID($O195,FIND(CHAR(160),SUBSTITUTE($O195,\"{\",CHAR(160),FH$1)),FIND(CHAR(160),SUBSTITUTE($O195,\"}\",CHAR(160),FH$1))-FIND(CHAR(160),SUBSTITUTE($O195,\"{\",CHAR(160),FH$1))+1),\"\")","v":""},{"$f":"IFERROR(MID($O195,FIND(CHAR(160),SUBSTITUTE($O195,\"{\",CHAR(160),FI$1)),FIND(CHAR(160),SUBSTITUTE($O195,\"}\",CHAR(160),FI$1))-FIND(CHAR(160),SUBSTITUTE($O195,\"{\",CHAR(160),FI$1))+1),\"\")","v":""},{"$f":"IFERROR(MID($O195,FIND(CHAR(160),SUBSTITUTE($O195,\"{\",CHAR(160),FJ$1)),FIND(CHAR(160),SUBSTITUTE($O195,\"}\",CHAR(160),FJ$1))-FIND(CHAR(160),SUBSTITUTE($O195,\"{\",CHAR(160),FJ$1))+1),\"\")","v":""},{"$f":"IFERROR(MID($O195,FIND(CHAR(160),SUBSTITUTE($O195,\"{\",CHAR(160),FK$1)),FIND(CHAR(160),SUBSTITUTE($O195,\"}\",CHAR(160),FK$1))-FIND(CHAR(160),SUBSTITUTE($O195,\"{\",CHAR(160),FK$1))+1),\"\")","v":""},{"$f":"IFERROR(MID($O195,FIND(CHAR(160),SUBSTITUTE($O195,\"{\",CHAR(160),FL$1)),FIND(CHAR(160),SUBSTITUTE($O195,\"}\",CHAR(160),FL$1))-FIND(CHAR(160),SUBSTITUTE($O195,\"{\",CHAR(160),FL$1))+1),\"\")","v":""},{"$f":"IFERROR(MID($R195,FIND(CHAR(160),SUBSTITUTE($R195,\"{\",CHAR(160),FM$1)),FIND(CHAR(160),SUBSTITUTE($R195,\"}\",CHAR(160),FM$1))-FIND(CHAR(160),SUBSTITUTE($R195,\"{\",CHAR(160),FM$1))+1),\"\")","v":""},{"$f":"IFERROR(MID($R195,FIND(CHAR(160),SUBSTITUTE($R195,\"{\",CHAR(160),FN$1)),FIND(CHAR(160),SUBSTITUTE($R195,\"}\",CHAR(160),FN$1))-FIND(CHAR(160),SUBSTITUTE($R195,\"{\",CHAR(160),FN$1))+1),\"\")","v":""},{"$f":"IFERROR(MID($R195,FIND(CHAR(160),SUBSTITUTE($R195,\"{\",CHAR(160),FO$1)),FIND(CHAR(160),SUBSTITUTE($R195,\"}\",CHAR(160),FO$1))-FIND(CHAR(160),SUBSTITUTE($R195,\"{\",CHAR(160),FO$1))+1),\"\")","v":""},{"$f":"IFERROR(MID($R195,FIND(CHAR(160),SUBSTITUTE($R195,\"{\",CHAR(160),FP$1)),FIND(CHAR(160),SUBSTITUTE($R195,\"}\",CHAR(160),FP$1))-FIND(CHAR(160),SUBSTITUTE($R195,\"{\",CHAR(160),FP$1))+1),\"\")","v":""},{"$f":"IFERROR(MID($R195,FIND(CHAR(160),SUBSTITUTE($R195,\"{\",CHAR(160),FQ$1)),FIND(CHAR(160),SUBSTITUTE($R195,\"}\",CHAR(160),FQ$1))-FIND(CHAR(160),SUBSTITUTE($R195,\"{\",CHAR(160),FQ$1))+1),\"\")","v":""},{"$f":"IFERROR(MID($R195,FIND(CHAR(160),SUBSTITUTE($R195,\"{\",CHAR(160),FR$1)),FIND(CHAR(160),SUBSTITUTE($R195,\"}\",CHAR(160),FR$1))-FIND(CHAR(160),SUBSTITUTE($R195,\"{\",CHAR(160),FR$1))+1),\"\")","v":""},{"$f":"IFERROR(MID($R195,FIND(CHAR(160),SUBSTITUTE($R195,\"{\",CHAR(160),FS$1)),FIND(CHAR(160),SUBSTITUTE($R195,\"}\",CHAR(160),FS$1))-FIND(CHAR(160),SUBSTITUTE($R195,\"{\",CHAR(160),FS$1))+1),\"\")","v":""},{"$f":"IFERROR(MID($R195,FIND(CHAR(160),SUBSTITUTE($R195,\"{\",CHAR(160),FT$1)),FIND(CHAR(160),SUBSTITUTE($R195,\"}\",CHAR(160),FT$1))-FIND(CHAR(160),SUBSTITUTE($R195,\"{\",CHAR(160),FT$1))+1),\"\")","v":""},{"$f":"IFERROR(MID($R195,FIND(CHAR(160),SUBSTITUTE($R195,\"{\",CHAR(160),FU$1)),FIND(CHAR(160),SUBSTITUTE($R195,\"}\",CHAR(160),FU$1))-FIND(CHAR(160),SUBSTITUTE($R195,\"{\",CHAR(160),FU$1))+1),\"\")","v":""},{"$f":"IFERROR(MID($R195,FIND(CHAR(160),SUBSTITUTE($R195,\"{\",CHAR(160),FV$1)),FIND(CHAR(160),SUBSTITUTE($R195,\"}\",CHAR(160),FV$1))-FIND(CHAR(160),SUBSTITUTE($R195,\"{\",CHAR(160),FV$1))+1),\"\")","v":""},{"$f":"IFERROR(MID($U195,FIND(CHAR(160),SUBSTITUTE($U195,\"{\",CHAR(160),FW$1)),FIND(CHAR(160),SUBSTITUTE($U195,\"}\",CHAR(160),FW$1))-FIND(CHAR(160),SUBSTITUTE($U195,\"{\",CHAR(160),FW$1))+1),\"\")","v":""},{"$f":"IFERROR(MID($U195,FIND(CHAR(160),SUBSTITUTE($U195,\"{\",CHAR(160),FX$1)),FIND(CHAR(160),SUBSTITUTE($U195,\"}\",CHAR(160),FX$1))-FIND(CHAR(160),SUBSTITUTE($U195,\"{\",CHAR(160),FX$1))+1),\"\")","v":""},{"$f":"IFERROR(MID($U195,FIND(CHAR(160),SUBSTITUTE($U195,\"{\",CHAR(160),FY$1)),FIND(CHAR(160),SUBSTITUTE($U195,\"}\",CHAR(160),FY$1))-FIND(CHAR(160),SUBSTITUTE($U195,\"{\",CHAR(160),FY$1))+1),\"\")","v":""},{"$f":"IFERROR(MID($U195,FIND(CHAR(160),SUBSTITUTE($U195,\"{\",CHAR(160),FZ$1)),FIND(CHAR(160),SUBSTITUTE($U195,\"}\",CHAR(160),FZ$1))-FIND(CHAR(160),SUBSTITUTE($U195,\"{\",CHAR(160),FZ$1))+1),\"\")","v":""},{"$f":"IFERROR(MID($U195,FIND(CHAR(160),SUBSTITUTE($U195,\"{\",CHAR(160),GA$1)),FIND(CHAR(160),SUBSTITUTE($U195,\"}\",CHAR(160),GA$1))-FIND(CHAR(160),SUBSTITUTE($U195,\"{\",CHAR(160),GA$1))+1),\"\")","v":""},{"$f":"IFERROR(MID($U195,FIND(CHAR(160),SUBSTITUTE($U195,\"{\",CHAR(160),GB$1)),FIND(CHAR(160),SUBSTITUTE($U195,\"}\",CHAR(160),GB$1))-FIND(CHAR(160),SUBSTITUTE($U195,\"{\",CHAR(160),GB$1))+1),\"\")","v":""},{"$f":"IFERROR(MID($U195,FIND(CHAR(160),SUBSTITUTE($U195,\"{\",CHAR(160),GC$1)),FIND(CHAR(160),SUBSTITUTE($U195,\"}\",CHAR(160),GC$1))-FIND(CHAR(160),SUBSTITUTE($U195,\"{\",CHAR(160),GC$1))+1),\"\")","v":""},{"$f":"IFERROR(MID($U195,FIND(CHAR(160),SUBSTITUTE($U195,\"{\",CHAR(160),GD$1)),FIND(CHAR(160),SUBSTITUTE($U195,\"}\",CHAR(160),GD$1))-FIND(CHAR(160),SUBSTITUTE($U195,\"{\",CHAR(160),GD$1))+1),\"\")","v":""},{"$f":"IFERROR(MID($U195,FIND(CHAR(160),SUBSTITUTE($U195,\"{\",CHAR(160),GE$1)),FIND(CHAR(160),SUBSTITUTE($U195,\"}\",CHAR(160),GE$1))-FIND(CHAR(160),SUBSTITUTE($U195,\"{\",CHAR(160),GE$1))+1),\"\")","v":""},{"$f":"IFERROR(MID($U195,FIND(CHAR(160),SUBSTITUTE($U195,\"{\",CHAR(160),GF$1)),FIND(CHAR(160),SUBSTITUTE($U195,\"}\",CHAR(160),GF$1))-FIND(CHAR(160),SUBSTITUTE($U195,\"{\",CHAR(160),GF$1))+1),\"\")","v":""},{"$f":"IFERROR(MID($V195,FIND(CHAR(160),SUBSTITUTE($V195,\"{\",CHAR(160),GG$1)),FIND(CHAR(160),SUBSTITUTE($V195,\"}\",CHAR(160),GG$1))-FIND(CHAR(160),SUBSTITUTE($V195,\"{\",CHAR(160),GG$1))+1),\"\")","v":""},{"$f":"IFERROR(MID($V195,FIND(CHAR(160),SUBSTITUTE($V195,\"{\",CHAR(160),GH$1)),FIND(CHAR(160),SUBSTITUTE($V195,\"}\",CHAR(160),GH$1))-FIND(CHAR(160),SUBSTITUTE($V195,\"{\",CHAR(160),GH$1))+1),\"\")","v":""},{"$f":"IFERROR(MID($V195,FIND(CHAR(160),SUBSTITUTE($V195,\"{\",CHAR(160),GI$1)),FIND(CHAR(160),SUBSTITUTE($V195,\"}\",CHAR(160),GI$1))-FIND(CHAR(160),SUBSTITUTE($V195,\"{\",CHAR(160),GI$1))+1),\"\")","v":""},{"$f":"IFERROR(MID($V195,FIND(CHAR(160),SUBSTITUTE($V195,\"{\",CHAR(160),GJ$1)),FIND(CHAR(160),SUBSTITUTE($V195,\"}\",CHAR(160),GJ$1))-FIND(CHAR(160),SUBSTITUTE($V195,\"{\",CHAR(160),GJ$1))+1),\"\")","v":""},{"$f":"IFERROR(MID($V195,FIND(CHAR(160),SUBSTITUTE($V195,\"{\",CHAR(160),GK$1)),FIND(CHAR(160),SUBSTITUTE($V195,\"}\",CHAR(160),GK$1))-FIND(CHAR(160),SUBSTITUTE($V195,\"{\",CHAR(160),GK$1))+1),\"\")","v":""},{"$f":"IFERROR(MID($V195,FIND(CHAR(160),SUBSTITUTE($V195,\"{\",CHAR(160),GL$1)),FIND(CHAR(160),SUBSTITUTE($V195,\"}\",CHAR(160),GL$1))-FIND(CHAR(160),SUBSTITUTE($V195,\"{\",CHAR(160),GL$1))+1),\"\")","v":""},{"$f":"IFERROR(MID($V195,FIND(CHAR(160),SUBSTITUTE($V195,\"{\",CHAR(160),GM$1)),FIND(CHAR(160),SUBSTITUTE($V195,\"}\",CHAR(160),GM$1))-FIND(CHAR(160),SUBSTITUTE($V195,\"{\",CHAR(160),GM$1))+1),\"\")","v":""},{"$f":"IFERROR(MID($V195,FIND(CHAR(160),SUBSTITUTE($V195,\"{\",CHAR(160),GN$1)),FIND(CHAR(160),SUBSTITUTE($V195,\"}\",CHAR(160),GN$1))-FIND(CHAR(160),SUBSTITUTE($V195,\"{\",CHAR(160),GN$1))+1),\"\")","v":""},{"$f":"IFERROR(MID($V195,FIND(CHAR(160),SUBSTITUTE($V195,\"{\",CHAR(160),GO$1)),FIND(CHAR(160),SUBSTITUTE($V195,\"}\",CHAR(160),GO$1))-FIND(CHAR(160),SUBSTITUTE($V195,\"{\",CHAR(160),GO$1))+1),\"\")","v":""},{"$f":"IFERROR(MID($V195,FIND(CHAR(160),SUBSTITUTE($V195,\"{\",CHAR(160),GP$1)),FIND(CHAR(160),SUBSTITUTE($V195,\"}\",CHAR(160),GP$1))-FIND(CHAR(160),SUBSTITUTE($V195,\"{\",CHAR(160),GP$1))+1),\"\")","v":""},{"$f":"IFERROR(MID($W195,FIND(CHAR(160),SUBSTITUTE($W195,\"{\",CHAR(160),GQ$1)),FIND(CHAR(160),SUBSTITUTE($W195,\"}\",CHAR(160),GQ$1))-FIND(CHAR(160),SUBSTITUTE($W195,\"{\",CHAR(160),GQ$1))+1),\"\")","v":""},{"$f":"IFERROR(MID($W195,FIND(CHAR(160),SUBSTITUTE($W195,\"{\",CHAR(160),GR$1)),FIND(CHAR(160),SUBSTITUTE($W195,\"}\",CHAR(160),GR$1))-FIND(CHAR(160),SUBSTITUTE($W195,\"{\",CHAR(160),GR$1))+1),\"\")","v":""},{"$f":"IFERROR(MID($W195,FIND(CHAR(160),SUBSTITUTE($W195,\"{\",CHAR(160),GS$1)),FIND(CHAR(160),SUBSTITUTE($W195,\"}\",CHAR(160),GS$1))-FIND(CHAR(160),SUBSTITUTE($W195,\"{\",CHAR(160),GS$1))+1),\"\")","v":""},{"$f":"IFERROR(MID($W195,FIND(CHAR(160),SUBSTITUTE($W195,\"{\",CHAR(160),GT$1)),FIND(CHAR(160),SUBSTITUTE($W195,\"}\",CHAR(160),GT$1))-FIND(CHAR(160),SUBSTITUTE($W195,\"{\",CHAR(160),GT$1))+1),\"\")","v":""},{"$f":"IFERROR(MID($W195,FIND(CHAR(160),SUBSTITUTE($W195,\"{\",CHAR(160),GU$1)),FIND(CHAR(160),SUBSTITUTE($W195,\"}\",CHAR(160),GU$1))-FIND(CHAR(160),SUBSTITUTE($W195,\"{\",CHAR(160),GU$1))+1),\"\")","v":""},{"$f":"IFERROR(MID($W195,FIND(CHAR(160),SUBSTITUTE($W195,\"{\",CHAR(160),GV$1)),FIND(CHAR(160),SUBSTITUTE($W195,\"}\",CHAR(160),GV$1))-FIND(CHAR(160),SUBSTITUTE($W195,\"{\",CHAR(160),GV$1))+1),\"\")","v":""},{"$f":"IFERROR(MID($W195,FIND(CHAR(160),SUBSTITUTE($W195,\"{\",CHAR(160),GW$1)),FIND(CHAR(160),SUBSTITUTE($W195,\"}\",CHAR(160),GW$1))-FIND(CHAR(160),SUBSTITUTE($W195,\"{\",CHAR(160),GW$1))+1),\"\")","v":""},{"$f":"IFERROR(MID($W195,FIND(CHAR(160),SUBSTITUTE($W195,\"{\",CHAR(160),GX$1)),FIND(CHAR(160),SUBSTITUTE($W195,\"}\",CHAR(160),GX$1))-FIND(CHAR(160),SUBSTITUTE($W195,\"{\",CHAR(160),GX$1))+1),\"\")","v":""},{"$f":"IFERROR(MID($W195,FIND(CHAR(160),SUBSTITUTE($W195,\"{\",CHAR(160),GY$1)),FIND(CHAR(160),SUBSTITUTE($W195,\"}\",CHAR(160),GY$1))-FIND(CHAR(160),SUBSTITUTE($W195,\"{\",CHAR(160),GY$1))+1),\"\")","v":""},{"$f":"IFERROR(MID($W195,FIND(CHAR(160),SUBSTITUTE($W195,\"{\",CHAR(160),GZ$1)),FIND(CHAR(160),SUBSTITUTE($W195,\"}\",CHAR(160),GZ$1))-FIND(CHAR(160),SUBSTITUTE($W195,\"{\",CHAR(160),GZ$1))+1),\"\")","v":""},{"$f":"IFERROR(MID($X195,FIND(CHAR(160),SUBSTITUTE($X195,\"{\",CHAR(160),HA$1)),FIND(CHAR(160),SUBSTITUTE($X195,\"}\",CHAR(160),HA$1))-FIND(CHAR(160),SUBSTITUTE($X195,\"{\",CHAR(160),HA$1))+1),\"\")","v":""},{"$f":"IFERROR(MID($X195,FIND(CHAR(160),SUBSTITUTE($X195,\"{\",CHAR(160),HB$1)),FIND(CHAR(160),SUBSTITUTE($X195,\"}\",CHAR(160),HB$1))-FIND(CHAR(160),SUBSTITUTE($X195,\"{\",CHAR(160),HB$1))+1),\"\")","v":""},{"$f":"IFERROR(MID($X195,FIND(CHAR(160),SUBSTITUTE($X195,\"{\",CHAR(160),HC$1)),FIND(CHAR(160),SUBSTITUTE($X195,\"}\",CHAR(160),HC$1))-FIND(CHAR(160),SUBSTITUTE($X195,\"{\",CHAR(160),HC$1))+1),\"\")","v":""},{"$f":"IFERROR(MID($X195,FIND(CHAR(160),SUBSTITUTE($X195,\"{\",CHAR(160),HD$1)),FIND(CHAR(160),SUBSTITUTE($X195,\"}\",CHAR(160),HD$1))-FIND(CHAR(160),SUBSTITUTE($X195,\"{\",CHAR(160),HD$1))+1),\"\")","v":""},{"$f":"IFERROR(MID($X195,FIND(CHAR(160),SUBSTITUTE($X195,\"{\",CHAR(160),HE$1)),FIND(CHAR(160),SUBSTITUTE($X195,\"}\",CHAR(160),HE$1))-FIND(CHAR(160),SUBSTITUTE($X195,\"{\",CHAR(160),HE$1))+1),\"\")","v":""},{"$f":"IFERROR(MID($X195,FIND(CHAR(160),SUBSTITUTE($X195,\"{\",CHAR(160),HF$1)),FIND(CHAR(160),SUBSTITUTE($X195,\"}\",CHAR(160),HF$1))-FIND(CHAR(160),SUBSTITUTE($X195,\"{\",CHAR(160),HF$1))+1),\"\")","v":""},{"$f":"IFERROR(MID($X195,FIND(CHAR(160),SUBSTITUTE($X195,\"{\",CHAR(160),HG$1)),FIND(CHAR(160),SUBSTITUTE($X195,\"}\",CHAR(160),HG$1))-FIND(CHAR(160),SUBSTITUTE($X195,\"{\",CHAR(160),HG$1))+1),\"\")","v":""},{"$f":"IFERROR(MID($X195,FIND(CHAR(160),SUBSTITUTE($X195,\"{\",CHAR(160),HH$1)),FIND(CHAR(160),SUBSTITUTE($X195,\"}\",CHAR(160),HH$1))-FIND(CHAR(160),SUBSTITUTE($X195,\"{\",CHAR(160),HH$1))+1),\"\")","v":""},{"$f":"IFERROR(MID($X195,FIND(CHAR(160),SUBSTITUTE($X195,\"{\",CHAR(160),HI$1)),FIND(CHAR(160),SUBSTITUTE($X195,\"}\",CHAR(160),HI$1))-FIND(CHAR(160),SUBSTITUTE($X195,\"{\",CHAR(160),HI$1))+1),\"\")","v":""},{"$f":"IFERROR(MID($X195,FIND(CHAR(160),SUBSTITUTE($X195,\"{\",CHAR(160),HJ$1)),FIND(CHAR(160),SUBSTITUTE($X195,\"}\",CHAR(160),HJ$1))-FIND(CHAR(160),SUBSTITUTE($X195,\"{\",CHAR(160),HJ$1))+1),\"\")","v":""},{"$f":"IFERROR(MID($Y195,FIND(CHAR(160),SUBSTITUTE($Y195,\"{\",CHAR(160),HK$1)),FIND(CHAR(160),SUBSTITUTE($Y195,\"}\",CHAR(160),HK$1))-FIND(CHAR(160),SUBSTITUTE($Y195,\"{\",CHAR(160),HK$1))+1),\"\")","v":""},{"$f":"IFERROR(MID($Y195,FIND(CHAR(160),SUBSTITUTE($Y195,\"{\",CHAR(160),HL$1)),FIND(CHAR(160),SUBSTITUTE($Y195,\"}\",CHAR(160),HL$1))-FIND(CHAR(160),SUBSTITUTE($Y195,\"{\",CHAR(160),HL$1))+1),\"\")","v":""},{"$f":"IFERROR(MID($Y195,FIND(CHAR(160),SUBSTITUTE($Y195,\"{\",CHAR(160),HM$1)),FIND(CHAR(160),SUBSTITUTE($Y195,\"}\",CHAR(160),HM$1))-FIND(CHAR(160),SUBSTITUTE($Y195,\"{\",CHAR(160),HM$1))+1),\"\")","v":""},{"$f":"IFERROR(MID($Y195,FIND(CHAR(160),SUBSTITUTE($Y195,\"{\",CHAR(160),HN$1)),FIND(CHAR(160),SUBSTITUTE($Y195,\"}\",CHAR(160),HN$1))-FIND(CHAR(160),SUBSTITUTE($Y195,\"{\",CHAR(160),HN$1))+1),\"\")","v":""},{"$f":"IFERROR(MID($Y195,FIND(CHAR(160),SUBSTITUTE($Y195,\"{\",CHAR(160),HO$1)),FIND(CHAR(160),SUBSTITUTE($Y195,\"}\",CHAR(160),HO$1))-FIND(CHAR(160),SUBSTITUTE($Y195,\"{\",CHAR(160),HO$1))+1),\"\")","v":""},{"$f":"IFERROR(MID($Y195,FIND(CHAR(160),SUBSTITUTE($Y195,\"{\",CHAR(160),HP$1)),FIND(CHAR(160),SUBSTITUTE($Y195,\"}\",CHAR(160),HP$1))-FIND(CHAR(160),SUBSTITUTE($Y195,\"{\",CHAR(160),HP$1))+1),\"\")","v":""},{"$f":"IFERROR(MID($Y195,FIND(CHAR(160),SUBSTITUTE($Y195,\"{\",CHAR(160),HQ$1)),FIND(CHAR(160),SUBSTITUTE($Y195,\"}\",CHAR(160),HQ$1))-FIND(CHAR(160),SUBSTITUTE($Y195,\"{\",CHAR(160),HQ$1))+1),\"\")","v":""},{"$f":"IFERROR(MID($Y195,FIND(CHAR(160),SUBSTITUTE($Y195,\"{\",CHAR(160),HR$1)),FIND(CHAR(160),SUBSTITUTE($Y195,\"}\",CHAR(160),HR$1))-FIND(CHAR(160),SUBSTITUTE($Y195,\"{\",CHAR(160),HR$1))+1),\"\")","v":""},{"$f":"IFERROR(MID($Y195,FIND(CHAR(160),SUBSTITUTE($Y195,\"{\",CHAR(160),HS$1)),FIND(CHAR(160),SUBSTITUTE($Y195,\"}\",CHAR(160),HS$1))-FIND(CHAR(160),SUBSTITUTE($Y195,\"{\",CHAR(160),HS$1))+1),\"\")","v":""},{"$f":"IFERROR(MID($Y195,FIND(CHAR(160),SUBSTITUTE($Y195,\"{\",CHAR(160),HT$1)),FIND(CHAR(160),SUBSTITUTE($Y195,\"}\",CHAR(160),HT$1))-FIND(CHAR(160),SUBSTITUTE($Y195,\"{\",CHAR(160),HT$1))+1),\"\")","v":""},{"$f":"IFERROR(MID($Z195,FIND(CHAR(160),SUBSTITUTE($Z195,\"{\",CHAR(160),HU$1)),FIND(CHAR(160),SUBSTITUTE($Z195,\"}\",CHAR(160),HU$1))-FIND(CHAR(160),SUBSTITUTE($Z195,\"{\",CHAR(160),HU$1))+1),\"\")","v":""},{"$f":"IFERROR(MID($Z195,FIND(CHAR(160),SUBSTITUTE($Z195,\"{\",CHAR(160),HV$1)),FIND(CHAR(160),SUBSTITUTE($Z195,\"}\",CHAR(160),HV$1))-FIND(CHAR(160),SUBSTITUTE($Z195,\"{\",CHAR(160),HV$1))+1),\"\")","v":""},{"$f":"IFERROR(MID($Z195,FIND(CHAR(160),SUBSTITUTE($Z195,\"{\",CHAR(160),HW$1)),FIND(CHAR(160),SUBSTITUTE($Z195,\"}\",CHAR(160),HW$1))-FIND(CHAR(160),SUBSTITUTE($Z195,\"{\",CHAR(160),HW$1))+1),\"\")","v":""},{"$f":"IFERROR(MID($Z195,FIND(CHAR(160),SUBSTITUTE($Z195,\"{\",CHAR(160),HX$1)),FIND(CHAR(160),SUBSTITUTE($Z195,\"}\",CHAR(160),HX$1))-FIND(CHAR(160),SUBSTITUTE($Z195,\"{\",CHAR(160),HX$1))+1),\"\")","v":""},{"$f":"IFERROR(MID($Z195,FIND(CHAR(160),SUBSTITUTE($Z195,\"{\",CHAR(160),HY$1)),FIND(CHAR(160),SUBSTITUTE($Z195,\"}\",CHAR(160),HY$1))-FIND(CHAR(160),SUBSTITUTE($Z195,\"{\",CHAR(160),HY$1))+1),\"\")","v":""},{"$f":"IFERROR(MID($Z195,FIND(CHAR(160),SUBSTITUTE($Z195,\"{\",CHAR(160),HZ$1)),FIND(CHAR(160),SUBSTITUTE($Z195,\"}\",CHAR(160),HZ$1))-FIND(CHAR(160),SUBSTITUTE($Z195,\"{\",CHAR(160),HZ$1))+1),\"\")","v":""},{"$f":"IFERROR(MID($Z195,FIND(CHAR(160),SUBSTITUTE($Z195,\"{\",CHAR(160),IA$1)),FIND(CHAR(160),SUBSTITUTE($Z195,\"}\",CHAR(160),IA$1))-FIND(CHAR(160),SUBSTITUTE($Z195,\"{\",CHAR(160),IA$1))+1),\"\")","v":""},{"$f":"IFERROR(MID($Z195,FIND(CHAR(160),SUBSTITUTE($Z195,\"{\",CHAR(160),IB$1)),FIND(CHAR(160),SUBSTITUTE($Z195,\"}\",CHAR(160),IB$1))-FIND(CHAR(160),SUBSTITUTE($Z195,\"{\",CHAR(160),IB$1))+1),\"\")","v":""},{"$f":"IFERROR(MID($Z195,FIND(CHAR(160),SUBSTITUTE($Z195,\"{\",CHAR(160),IC$1)),FIND(CHAR(160),SUBSTITUTE($Z195,\"}\",CHAR(160),IC$1))-FIND(CHAR(160),SUBSTITUTE($Z195,\"{\",CHAR(160),IC$1))+1),\"\")","v":""},{"$f":"IFERROR(MID($Z195,FIND(CHAR(160),SUBSTITUTE($Z195,\"{\",CHAR(160),ID$1)),FIND(CHAR(160),SUBSTITUTE($Z195,\"}\",CHAR(160),ID$1))-FIND(CHAR(160),SUBSTITUTE($Z195,\"{\",CHAR(160),ID$1))+1),\"\")","v":""},{"$f":"IFERROR(MID($AA195,FIND(CHAR(160),SUBSTITUTE($AA195,\"{\",CHAR(160),IE$1)),FIND(CHAR(160),SUBSTITUTE($AA195,\"}\",CHAR(160),IE$1))-FIND(CHAR(160),SUBSTITUTE($AA195,\"{\",CHAR(160),IE$1))+1),\"\")","v":""},{"$f":"IFERROR(MID($AA195,FIND(CHAR(160),SUBSTITUTE($AA195,\"{\",CHAR(160),IF$1)),FIND(CHAR(160),SUBSTITUTE($AA195,\"}\",CHAR(160),IF$1))-FIND(CHAR(160),SUBSTITUTE($AA195,\"{\",CHAR(160),IF$1))+1),\"\")","v":""},{"$f":"IFERROR(MID($AA195,FIND(CHAR(160),SUBSTITUTE($AA195,\"{\",CHAR(160),IG$1)),FIND(CHAR(160),SUBSTITUTE($AA195,\"}\",CHAR(160),IG$1))-FIND(CHAR(160),SUBSTITUTE($AA195,\"{\",CHAR(160),IG$1))+1),\"\")","v":""},{"$f":"IFERROR(MID($AA195,FIND(CHAR(160),SUBSTITUTE($AA195,\"{\",CHAR(160),IH$1)),FIND(CHAR(160),SUBSTITUTE($AA195,\"}\",CHAR(160),IH$1))-FIND(CHAR(160),SUBSTITUTE($AA195,\"{\",CHAR(160),IH$1))+1),\"\")","v":""},{"$f":"IFERROR(MID($AA195,FIND(CHAR(160),SUBSTITUTE($AA195,\"{\",CHAR(160),II$1)),FIND(CHAR(160),SUBSTITUTE($AA195,\"}\",CHAR(160),II$1))-FIND(CHAR(160),SUBSTITUTE($AA195,\"{\",CHAR(160),II$1))+1),\"\")","v":""},{"$f":"IFERROR(MID($AA195,FIND(CHAR(160),SUBSTITUTE($AA195,\"{\",CHAR(160),IJ$1)),FIND(CHAR(160),SUBSTITUTE($AA195,\"}\",CHAR(160),IJ$1))-FIND(CHAR(160),SUBSTITUTE($AA195,\"{\",CHAR(160),IJ$1))+1),\"\")","v":""},{"$f":"IFERROR(MID($AA195,FIND(CHAR(160),SUBSTITUTE($AA195,\"{\",CHAR(160),IK$1)),FIND(CHAR(160),SUBSTITUTE($AA195,\"}\",CHAR(160),IK$1))-FIND(CHAR(160),SUBSTITUTE($AA195,\"{\",CHAR(160),IK$1))+1),\"\")","v":""},{"$f":"IFERROR(MID($AA195,FIND(CHAR(160),SUBSTITUTE($AA195,\"{\",CHAR(160),IL$1)),FIND(CHAR(160),SUBSTITUTE($AA195,\"}\",CHAR(160),IL$1))-FIND(CHAR(160),SUBSTITUTE($AA195,\"{\",CHAR(160),IL$1))+1),\"\")","v":""},{"$f":"IFERROR(MID($AA195,FIND(CHAR(160),SUBSTITUTE($AA195,\"{\",CHAR(160),IM$1)),FIND(CHAR(160),SUBSTITUTE($AA195,\"}\",CHAR(160),IM$1))-FIND(CHAR(160),SUBSTITUTE($AA195,\"{\",CHAR(160),IM$1))+1),\"\")","v":""},{"$f":"IFERROR(MID($AA195,FIND(CHAR(160),SUBSTITUTE($AA195,\"{\",CHAR(160),IN$1)),FIND(CHAR(160),SUBSTITUTE($AA195,\"}\",CHAR(160),IN$1))-FIND(CHAR(160),SUBSTITUTE($AA195,\"{\",CHAR(160),IN$1))+1),\"\")","v":""},{"$f":"IFERROR(MID($AB195,FIND(CHAR(160),SUBSTITUTE($AB195,\"{\",CHAR(160),IO$1)),FIND(CHAR(160),SUBSTITUTE($AB195,\"}\",CHAR(160),IO$1))-FIND(CHAR(160),SUBSTITUTE($AB195,\"{\",CHAR(160),IO$1))+1),\"\")","v":""},{"$f":"IFERROR(MID($AB195,FIND(CHAR(160),SUBSTITUTE($AB195,\"{\",CHAR(160),IP$1)),FIND(CHAR(160),SUBSTITUTE($AB195,\"}\",CHAR(160),IP$1))-FIND(CHAR(160),SUBSTITUTE($AB195,\"{\",CHAR(160),IP$1))+1),\"\")","v":""},{"$f":"IFERROR(MID($AB195,FIND(CHAR(160),SUBSTITUTE($AB195,\"{\",CHAR(160),IQ$1)),FIND(CHAR(160),SUBSTITUTE($AB195,\"}\",CHAR(160),IQ$1))-FIND(CHAR(160),SUBSTITUTE($AB195,\"{\",CHAR(160),IQ$1))+1),\"\")","v":""},{"$f":"IFERROR(MID($AB195,FIND(CHAR(160),SUBSTITUTE($AB195,\"{\",CHAR(160),IR$1)),FIND(CHAR(160),SUBSTITUTE($AB195,\"}\",CHAR(160),IR$1))-FIND(CHAR(160),SUBSTITUTE($AB195,\"{\",CHAR(160),IR$1))+1),\"\")","v":""},{"$f":"IFERROR(MID($AB195,FIND(CHAR(160),SUBSTITUTE($AB195,\"{\",CHAR(160),IS$1)),FIND(CHAR(160),SUBSTITUTE($AB195,\"}\",CHAR(160),IS$1))-FIND(CHAR(160),SUBSTITUTE($AB195,\"{\",CHAR(160),IS$1))+1),\"\")","v":""},{"$f":"IFERROR(MID($AB195,FIND(CHAR(160),SUBSTITUTE($AB195,\"{\",CHAR(160),IT$1)),FIND(CHAR(160),SUBSTITUTE($AB195,\"}\",CHAR(160),IT$1))-FIND(CHAR(160),SUBSTITUTE($AB195,\"{\",CHAR(160),IT$1))+1),\"\")","v":""},{"$f":"IFERROR(MID($AB195,FIND(CHAR(160),SUBSTITUTE($AB195,\"{\",CHAR(160),IU$1)),FIND(CHAR(160),SUBSTITUTE($AB195,\"}\",CHAR(160),IU$1))-FIND(CHAR(160),SUBSTITUTE($AB195,\"{\",CHAR(160),IU$1))+1),\"\")","v":""},{"$f":"IFERROR(MID($AB195,FIND(CHAR(160),SUBSTITUTE($AB195,\"{\",CHAR(160),IV$1)),FIND(CHAR(160),SUBSTITUTE($AB195,\"}\",CHAR(160),IV$1))-FIND(CHAR(160),SUBSTITUTE($AB195,\"{\",CHAR(160),IV$1))+1),\"\")","v":""},{"$f":"IFERROR(MID($AB195,FIND(CHAR(160),SUBSTITUTE($AB195,\"{\",CHAR(160),IW$1)),FIND(CHAR(160),SUBSTITUTE($AB195,\"}\",CHAR(160),IW$1))-FIND(CHAR(160),SUBSTITUTE($AB195,\"{\",CHAR(160),IW$1))+1),\"\")","v":""},{"$f":"IFERROR(MID($AB195,FIND(CHAR(160),SUBSTITUTE($AB195,\"{\",CHAR(160),IX$1)),FIND(CHAR(160),SUBSTITUTE($AB195,\"}\",CHAR(160),IX$1))-FIND(CHAR(160),SUBSTITUTE($AB195,\"{\",CHAR(160),IX$1))+1),\"\")","v":""},null,{"$f":"10-COUNTIF(DU195:ED195,\"\")","v":3}]
["Home Energy Savings Program - Electric","Heat Pump Single Zone 2nd Unit Tier 2","HPSING2T2","2021-07-01","2022-06-30","Per Measure",1471.04,0,"Calculated","if({HSPF}<12.5,0,if({Rebate Level}=1,$500.00,$400.00))*{Measure:Quantity}",0,"2021-07-01","2022-06-30","Per Measure",-442,null,null,null,null,null,-0.126,5.0999999999999997E-2,5.74,1.91,4.1100000000000003,0.19,2.39,0,"2021-07-01","2022-06-30",18,1,1,0.38200000000000001,0.52900000000000003,4.8000000000000001E-2,4.1000000000000002E-2,1,1,1,0.42,0.11,null,{"$f":"DU196","v":"{HSPF}"},12.5,{"$f":"DV196","v":"{Rebate Level}"},1,{"$f":"DW196","v":"{Measure:Quantity}"},1,{"$f":"DX196","v":""},null,{"$f":"DY196","v":""},null,{"$f":"DZ196","v":""},null,{"$f":"EA196","v":""},null,{"$f":"EB196","v":""},null,{"$f":"EC196","v":""},null,{"$f":"ED196","v":""},null,{"$f":"-442","v":-442},0,0,0,0,0,{"$f":"-0.126","v":-0.126},{"$f":"0.051","v":5.0999999999999997E-2},{"$f":"5.74","v":5.74},{"$f":"1.91","v":1.91},{"$f":"4.11","v":4.1100000000000003},{"$f":"0.19","v":0.19},{"$f":"2.39","v":2.39},{"$f":"0","v":0},null,"Res","Default DR",{"$f":"Benefits(BL196,BR196,BS196,BT196,BU196,BV196,BW196,BX196,BY196,BZ196,AE196,AH196,AI196,AJ196,AK196,AL196,AM196,AN196,AO196,AP196,CA196,CB196)","v":-696.16142782358577},-437.38486867119479,127.47725779842065,1985.6351087849778,107.07041030701555,1294.2642396359279,737.11063815004741,0,0,{"$f":"SUMPRODUCT(CC196:CK196,--(CC196:CK196>0))","v":4251.5576546763896},{"$f":"-SUMPRODUCT(CC196:CK196,--(CC196:CK196<0))","v":1133.5462964947806},null,{"$f":"1471.04","v":1471.04},null,null,{"$f":"CM196+CO196","v":2604.5862964947805},{"$f":"IF(NetOrGross=\"Net\",(1-AO196+AP196),1)","v":1},{"$f":"(SUMPRODUCT(CC196:CJ196,--(CC196:CJ196>0))+CN196)*CS196/((-SUMPRODUCT(CC196:CJ196,--(CC196:CJ196<0))+MAX(CO196,CV196)+CP196+CQ196)*CS196+IF(FRIncentives=\"Yes\",CV196*(1-CS196),0))","v":1.6323351084193611},1,{"$f":"IF(AS196<12.5,0,IF(AU196=1,500,400))*AW196","v":500},null,"Electric","y",1,{"$f":"IF(F196=\"Manual Entry\",\"Manual\",IF(G196=\"\",0,\"X=\"&SUBSTITUTE(SUBSTITUTE(SUBSTITUTE(SUBSTITUTE(SUBSTITUTE(SUBSTITUTE(SUBSTITUTE(SUBSTITUTE(SUBSTITUTE(SUBSTITUTE(SUBSTITUTE(SUBSTITUTE(G196,$ED196,$ED$2&ROW($ED196)),$EC196,$EC$2&ROW($EC196)),$EB196,$EB$2&ROW($EB196)),$EA196,$EA$2&ROW($EA196)),$DZ196,$DZ$2&ROW($DZ196)),$DY196,$DY$2&ROW($DY196)),$DX196,$DX$2&ROW($DX196)),$DW196,$DW$2&ROW($DW196)),$DV196,$DV$2&ROW($DV196)),$DU196,$DU$2&ROW($DU196)),$DT196,$DT$2&ROW($DT196)),$DS196,$DS$2&ROW($DS196))))","v":"X=1471.04"},{"$f":"IF(I196=\"Manual Entry\",\"Manual\",IF(J196=\"\",0,\"X=\"&SUBSTITUTE(SUBSTITUTE(SUBSTITUTE(SUBSTITUTE(SUBSTITUTE(SUBSTITUTE(SUBSTITUTE(SUBSTITUTE(SUBSTITUTE(SUBSTITUTE(SUBSTITUTE(SUBSTITUTE(J196,$ED196,$ED$2&ROW($ED196)),$EC196,$EC$2&ROW($EC196)),$EB196,$EB$2&ROW($EB196)),$EA196,$EA$2&ROW($EA196)),$DZ196,$DZ$2&ROW($DZ196)),$DY196,$DY$2&ROW($DY196)),$DX196,$DX$2&ROW($DX196)),$DW196,$DW$2&ROW($DW196)),$DV196,$DV$2&ROW($DV196)),$DU196,$DU$2&ROW($DU196)),$DT196,$DT$2&ROW($DT196)),$DS196,$DS$2&ROW($DS196))))","v":"X=if(AS196<12.5,0,if(AU196=1,$500.00,$400.00))*AW196"},{"$f":"IF(O196=\"\",0,\"X=\"&SUBSTITUTE(SUBSTITUTE(SUBSTITUTE(SUBSTITUTE(SUBSTITUTE(SUBSTITUTE(SUBSTITUTE(SUBSTITUTE(SUBSTITUTE(SUBSTITUTE(SUBSTITUTE(SUBSTITUTE(O196,$ED196,$ED$2&ROW($ED196)),$EC196,$EC$2&ROW($EC196)),$EB196,$EB$2&ROW($EB196)),$EA196,$EA$2&ROW($EA196)),$DZ196,$DZ$2&ROW($DZ196)),$DY196,$DY$2&ROW($DY196)),$DX196,$DX$2&ROW($DX196)),$DW196,$DW$2&ROW($DW196)),$DV196,$DV$2&ROW($DV196)),$DU196,$DU$2&ROW($DU196)),$DT196,$DT$2&ROW($DT196)),$DS196,$DS$2&ROW($DS196)))","v":"X=-442"},{"$f":"IF(P196=\"\",0,\"X=\"&SUBSTITUTE(SUBSTITUTE(SUBSTITUTE(SUBSTITUTE(SUBSTITUTE(SUBSTITUTE(SUBSTITUTE(SUBSTITUTE(SUBSTITUTE(SUBSTITUTE(SUBSTITUTE(SUBSTITUTE(P196,$ED196,$ED$2&ROW($ED196)),$EC196,$EC$2&ROW($EC196)),$EB196,$EB$2&ROW($EB196)),$EA196,$EA$2&ROW($EA196)),$DZ196,$DZ$2&ROW($DZ196)),$DY196,$DY$2&ROW($DY196)),$DX196,$DX$2&ROW($DX196)),$DW196,$DW$2&ROW($DW196)),$DV196,$DV$2&ROW($DV196)),$DU196,$DU$2&ROW($DU196)),$DT196,$DT$2&ROW($DT196)),$DS196,$DS$2&ROW($DS196)))","v":0},{"$f":"IF(Q196=\"\",0,\"X=\"&SUBSTITUTE(SUBSTITUTE(SUBSTITUTE(SUBSTITUTE(SUBSTITUTE(SUBSTITUTE(SUBSTITUTE(SUBSTITUTE(SUBSTITUTE(SUBSTITUTE(SUBSTITUTE(SUBSTITUTE(Q196,$ED196,$ED$2&ROW($ED196)),$EC196,$EC$2&ROW($EC196)),$EB196,$EB$2&ROW($EB196)),$EA196,$EA$2&ROW($EA196)),$DZ196,$DZ$2&ROW($DZ196)),$DY196,$DY$2&ROW($DY196)),$DX196,$DX$2&ROW($DX196)),$DW196,$DW$2&ROW($DW196)),$DV196,$DV$2&ROW($DV196)),$DU196,$DU$2&ROW($DU196)),$DT196,$DT$2&ROW($DT196)),$DS196,$DS$2&ROW($DS196)))","v":0},{"$f":"IF(R196=\"\",0,\"X=\"&SUBSTITUTE(SUBSTITUTE(SUBSTITUTE(SUBSTITUTE(SUBSTITUTE(SUBSTITUTE(SUBSTITUTE(SUBSTITUTE(SUBSTITUTE(SUBSTITUTE(SUBSTITUTE(SUBSTITUTE(R196,$ED196,$ED$2&ROW($ED196)),$EC196,$EC$2&ROW($EC196)),$EB196,$EB$2&ROW($EB196)),$EA196,$EA$2&ROW($EA196)),$DZ196,$DZ$2&ROW($DZ196)),$DY196,$DY$2&ROW($DY196)),$DX196,$DX$2&ROW($DX196)),$DW196,$DW$2&ROW($DW196)),$DV196,$DV$2&ROW($DV196)),$DU196,$DU$2&ROW($DU196)),$DT196,$DT$2&ROW($DT196)),$DS196,$DS$2&ROW($DS196)))","v":0},{"$f":"IF(S196=\"\",0,\"X=\"&SUBSTITUTE(SUBSTITUTE(SUBSTITUTE(SUBSTITUTE(SUBSTITUTE(SUBSTITUTE(SUBSTITUTE(SUBSTITUTE(SUBSTITUTE(SUBSTITUTE(SUBSTITUTE(SUBSTITUTE(S196,$ED196,$ED$2&ROW($ED196)),$EC196,$EC$2&ROW($EC196)),$EB196,$EB$2&ROW($EB196)),$EA196,$EA$2&ROW($EA196)),$DZ196,$DZ$2&ROW($DZ196)),$DY196,$DY$2&ROW($DY196)),$DX196,$DX$2&ROW($DX196)),$DW196,$DW$2&ROW($DW196)),$DV196,$DV$2&ROW($DV196)),$DU196,$DU$2&ROW($DU196)),$DT196,$DT$2&ROW($DT196)),$DS196,$DS$2&ROW($DS196)))","v":0},{"$f":"IF(T196=\"\",0,\"X=\"&SUBSTITUTE(SUBSTITUTE(SUBSTITUTE(SUBSTITUTE(SUBSTITUTE(SUBSTITUTE(SUBSTITUTE(SUBSTITUTE(SUBSTITUTE(SUBSTITUTE(SUBSTITUTE(SUBSTITUTE(T196,$ED196,$ED$2&ROW($ED196)),$EC196,$EC$2&ROW($EC196)),$EB196,$EB$2&ROW($EB196)),$EA196,$EA$2&ROW($EA196)),$DZ196,$DZ$2&ROW($DZ196)),$DY196,$DY$2&ROW($DY196)),$DX196,$DX$2&ROW($DX196)),$DW196,$DW$2&ROW($DW196)),$DV196,$DV$2&ROW($DV196)),$DU196,$DU$2&ROW($DU196)),$DT196,$DT$2&ROW($DT196)),$DS196,$DS$2&ROW($DS196)))","v":0},{"$f":"IF(U196=\"\",0,\"X=\"&SUBSTITUTE(SUBSTITUTE(SUBSTITUTE(SUBSTITUTE(SUBSTITUTE(SUBSTITUTE(SUBSTITUTE(SUBSTITUTE(SUBSTITUTE(SUBSTITUTE(SUBSTITUTE(SUBSTITUTE(U196,$ED196,$ED$2&ROW($ED196)),$EC196,$EC$2&ROW($EC196)),$EB196,$EB$2&ROW($EB196)),$EA196,$EA$2&ROW($EA196)),$DZ196,$DZ$2&ROW($DZ196)),$DY196,$DY$2&ROW($DY196)),$DX196,$DX$2&ROW($DX196)),$DW196,$DW$2&ROW($DW196)),$DV196,$DV$2&ROW($DV196)),$DU196,$DU$2&ROW($DU196)),$DT196,$DT$2&ROW($DT196)),$DS196,$DS$2&ROW($DS196)))","v":"X=-0.126"},{"$f":"IF(V196=\"\",0,\"X=\"&SUBSTITUTE(SUBSTITUTE(SUBSTITUTE(SUBSTITUTE(SUBSTITUTE(SUBSTITUTE(SUBSTITUTE(SUBSTITUTE(SUBSTITUTE(SUBSTITUTE(SUBSTITUTE(SUBSTITUTE(V196,$ED196,$ED$2&ROW($ED196)),$EC196,$EC$2&ROW($EC196)),$EB196,$EB$2&ROW($EB196)),$EA196,$EA$2&ROW($EA196)),$DZ196,$DZ$2&ROW($DZ196)),$DY196,$DY$2&ROW($DY196)),$DX196,$DX$2&ROW($DX196)),$DW196,$DW$2&ROW($DW196)),$DV196,$DV$2&ROW($DV196)),$DU196,$DU$2&ROW($DU196)),$DT196,$DT$2&ROW($DT196)),$DS196,$DS$2&ROW($DS196)))","v":"X=0.051"},{"$f":"IF(W196=\"\",0,\"X=\"&SUBSTITUTE(SUBSTITUTE(SUBSTITUTE(SUBSTITUTE(SUBSTITUTE(SUBSTITUTE(SUBSTITUTE(SUBSTITUTE(SUBSTITUTE(SUBSTITUTE(SUBSTITUTE(SUBSTITUTE(W196,$ED196,$ED$2&ROW($ED196)),$EC196,$EC$2&ROW($EC196)),$EB196,$EB$2&ROW($EB196)),$EA196,$EA$2&ROW($EA196)),$DZ196,$DZ$2&ROW($DZ196)),$DY196,$DY$2&ROW($DY196)),$DX196,$DX$2&ROW($DX196)),$DW196,$DW$2&ROW($DW196)),$DV196,$DV$2&ROW($DV196)),$DU196,$DU$2&ROW($DU196)),$DT196,$DT$2&ROW($DT196)),$DS196,$DS$2&ROW($DS196)))","v":"X=5.74"},{"$f":"IF(X196=\"\",0,\"X=\"&SUBSTITUTE(SUBSTITUTE(SUBSTITUTE(SUBSTITUTE(SUBSTITUTE(SUBSTITUTE(SUBSTITUTE(SUBSTITUTE(SUBSTITUTE(SUBSTITUTE(SUBSTITUTE(SUBSTITUTE(X196,$ED196,$ED$2&ROW($ED196)),$EC196,$EC$2&ROW($EC196)),$EB196,$EB$2&ROW($EB196)),$EA196,$EA$2&ROW($EA196)),$DZ196,$DZ$2&ROW($DZ196)),$DY196,$DY$2&ROW($DY196)),$DX196,$DX$2&ROW($DX196)),$DW196,$DW$2&ROW($DW196)),$DV196,$DV$2&ROW($DV196)),$DU196,$DU$2&ROW($DU196)),$DT196,$DT$2&ROW($DT196)),$DS196,$DS$2&ROW($DS196)))","v":"X=1.91"},{"$f":"IF(Y196=\"\",0,\"X=\"&SUBSTITUTE(SUBSTITUTE(SUBSTITUTE(SUBSTITUTE(SUBSTITUTE(SUBSTITUTE(SUBSTITUTE(SUBSTITUTE(SUBSTITUTE(SUBSTITUTE(SUBSTITUTE(SUBSTITUTE(Y196,$ED196,$ED$2&ROW($ED196)),$EC196,$EC$2&ROW($EC196)),$EB196,$EB$2&ROW($EB196)),$EA196,$EA$2&ROW($EA196)),$DZ196,$DZ$2&ROW($DZ196)),$DY196,$DY$2&ROW($DY196)),$DX196,$DX$2&ROW($DX196)),$DW196,$DW$2&ROW($DW196)),$DV196,$DV$2&ROW($DV196)),$DU196,$DU$2&ROW($DU196)),$DT196,$DT$2&ROW($DT196)),$DS196,$DS$2&ROW($DS196)))","v":"X=4.11"},{"$f":"IF(Z196=\"\",0,\"X=\"&SUBSTITUTE(SUBSTITUTE(SUBSTITUTE(SUBSTITUTE(SUBSTITUTE(SUBSTITUTE(SUBSTITUTE(SUBSTITUTE(SUBSTITUTE(SUBSTITUTE(SUBSTITUTE(SUBSTITUTE(Z196,$ED196,$ED$2&ROW($ED196)),$EC196,$EC$2&ROW($EC196)),$EB196,$EB$2&ROW($EB196)),$EA196,$EA$2&ROW($EA196)),$DZ196,$DZ$2&ROW($DZ196)),$DY196,$DY$2&ROW($DY196)),$DX196,$DX$2&ROW($DX196)),$DW196,$DW$2&ROW($DW196)),$DV196,$DV$2&ROW($DV196)),$DU196,$DU$2&ROW($DU196)),$DT196,$DT$2&ROW($DT196)),$DS196,$DS$2&ROW($DS196)))","v":"X=0.19"},{"$f":"IF(AA196=\"\",0,\"X=\"&SUBSTITUTE(SUBSTITUTE(SUBSTITUTE(SUBSTITUTE(SUBSTITUTE(SUBSTITUTE(SUBSTITUTE(SUBSTITUTE(SUBSTITUTE(SUBSTITUTE(SUBSTITUTE(SUBSTITUTE(AA196,$ED196,$ED$2&ROW($ED196)),$EC196,$EC$2&ROW($EC196)),$EB196,$EB$2&ROW($EB196)),$EA196,$EA$2&ROW($EA196)),$DZ196,$DZ$2&ROW($DZ196)),$DY196,$DY$2&ROW($DY196)),$DX196,$DX$2&ROW($DX196)),$DW196,$DW$2&ROW($DW196)),$DV196,$DV$2&ROW($DV196)),$DU196,$DU$2&ROW($DU196)),$DT196,$DT$2&ROW($DT196)),$DS196,$DS$2&ROW($DS196)))","v":"X=2.39"},{"$f":"IF(AB196=\"\",0,\"X=\"&SUBSTITUTE(SUBSTITUTE(SUBSTITUTE(SUBSTITUTE(SUBSTITUTE(SUBSTITUTE(SUBSTITUTE(SUBSTITUTE(SUBSTITUTE(SUBSTITUTE(SUBSTITUTE(SUBSTITUTE(AB196,$ED196,$ED$2&ROW($ED196)),$EC196,$EC$2&ROW($EC196)),$EB196,$EB$2&ROW($EB196)),$EA196,$EA$2&ROW($EA196)),$DZ196,$DZ$2&ROW($DZ196)),$DY196,$DY$2&ROW($DY196)),$DX196,$DX$2&ROW($DX196)),$DW196,$DW$2&ROW($DW196)),$DV196,$DV$2&ROW($DV196)),$DU196,$DU$2&ROW($DU196)),$DT196,$DT$2&ROW($DT196)),$DS196,$DS$2&ROW($DS196)))","v":"X=0"},null,null,"{Factor:WinterCF}","{Factor:SummerCF}",{"$f":"IFERROR(INDEX($EG196:$IV196,MATCH(0,COUNTIF($DR196:DT196,$EG196:$IV196),0)),\"\")","v":"{HSPF}"},{"$f":"IFERROR(INDEX($EG196:$IV196,MATCH(0,COUNTIF($DR196:DU196,$EG196:$IV196),0)),\"\")","v":"{Rebate Level}"},{"$f":"IFERROR(INDEX($EG196:$IV196,MATCH(0,COUNTIF($DR196:DV196,$EG196:$IV196),0)),\"\")","v":"{Measure:Quantity}"},{"$f":"IFERROR(INDEX($EG196:$IV196,MATCH(0,COUNTIF($DR196:DW196,$EG196:$IV196),0)),\"\")","v":""},{"$f":"IFERROR(INDEX($EG196:$IV196,MATCH(0,COUNTIF($DR196:DX196,$EG196:$IV196),0)),\"\")","v":""},{"$f":"IFERROR(INDEX($EG196:$IV196,MATCH(0,COUNTIF($DR196:DY196,$EG196:$IV196),0)),\"\")","v":""},{"$f":"IFERROR(INDEX($EG196:$IV196,MATCH(0,COUNTIF($DR196:DZ196,$EG196:$IV196),0)),\"\")","v":""},{"$f":"IFERROR(INDEX($EG196:$IV196,MATCH(0,COUNTIF($DR196:EA196,$EG196:$IV196),0)),\"\")","v":""},{"$f":"IFERROR(INDEX($EG196:$IV196,MATCH(0,COUNTIF($DR196:EB196,$EG196:$IV196),0)),\"\")","v":""},{"$f":"IFERROR(INDEX($EG196:$IV196,MATCH(0,COUNTIF($DR196:EC196,$EG196:$IV196),0)),\"\")","v":""},null,null,{"$f":"IFERROR(MID($G196,FIND(CHAR(160),SUBSTITUTE($G196,\"{\",CHAR(160),EG$1)),FIND(CHAR(160),SUBSTITUTE($G196,\"}\",CHAR(160),EG$1))-FIND(CHAR(160),SUBSTITUTE($G196,\"{\",CHAR(160),EG$1))+1),\"\")","v":""},{"$f":"IFERROR(MID($G196,FIND(CHAR(160),SUBSTITUTE($G196,\"{\",CHAR(160),EH$1)),FIND(CHAR(160),SUBSTITUTE($G196,\"}\",CHAR(160),EH$1))-FIND(CHAR(160),SUBSTITUTE($G196,\"{\",CHAR(160),EH$1))+1),\"\")","v":""},{"$f":"IFERROR(MID($G196,FIND(CHAR(160),SUBSTITUTE($G196,\"{\",CHAR(160),EI$1)),FIND(CHAR(160),SUBSTITUTE($G196,\"}\",CHAR(160),EI$1))-FIND(CHAR(160),SUBSTITUTE($G196,\"{\",CHAR(160),EI$1))+1),\"\")","v":""},{"$f":"IFERROR(MID($G196,FIND(CHAR(160),SUBSTITUTE($G196,\"{\",CHAR(160),EJ$1)),FIND(CHAR(160),SUBSTITUTE($G196,\"}\",CHAR(160),EJ$1))-FIND(CHAR(160),SUBSTITUTE($G196,\"{\",CHAR(160),EJ$1))+1),\"\")","v":""},{"$f":"IFERROR(MID($G196,FIND(CHAR(160),SUBSTITUTE($G196,\"{\",CHAR(160),EK$1)),FIND(CHAR(160),SUBSTITUTE($G196,\"}\",CHAR(160),EK$1))-FIND(CHAR(160),SUBSTITUTE($G196,\"{\",CHAR(160),EK$1))+1),\"\")","v":""},{"$f":"IFERROR(MID($G196,FIND(CHAR(160),SUBSTITUTE($G196,\"{\",CHAR(160),EL$1)),FIND(CHAR(160),SUBSTITUTE($G196,\"}\",CHAR(160),EL$1))-FIND(CHAR(160),SUBSTITUTE($G196,\"{\",CHAR(160),EL$1))+1),\"\")","v":""},{"$f":"IFERROR(MID($G196,FIND(CHAR(160),SUBSTITUTE($G196,\"{\",CHAR(160),EM$1)),FIND(CHAR(160),SUBSTITUTE($G196,\"}\",CHAR(160),EM$1))-FIND(CHAR(160),SUBSTITUTE($G196,\"{\",CHAR(160),EM$1))+1),\"\")","v":""},{"$f":"IFERROR(MID($G196,FIND(CHAR(160),SUBSTITUTE($G196,\"{\",CHAR(160),EN$1)),FIND(CHAR(160),SUBSTITUTE($G196,\"}\",CHAR(160),EN$1))-FIND(CHAR(160),SUBSTITUTE($G196,\"{\",CHAR(160),EN$1))+1),\"\")","v":""},{"$f":"IFERROR(MID($G196,FIND(CHAR(160),SUBSTITUTE($G196,\"{\",CHAR(160),EO$1)),FIND(CHAR(160),SUBSTITUTE($G196,\"}\",CHAR(160),EO$1))-FIND(CHAR(160),SUBSTITUTE($G196,\"{\",CHAR(160),EO$1))+1),\"\")","v":""},{"$f":"IFERROR(MID($G196,FIND(CHAR(160),SUBSTITUTE($G196,\"{\",CHAR(160),EP$1)),FIND(CHAR(160),SUBSTITUTE($G196,\"}\",CHAR(160),EP$1))-FIND(CHAR(160),SUBSTITUTE($G196,\"{\",CHAR(160),EP$1))+1),\"\")","v":""},{"$f":"IFERROR(MID($J196,FIND(CHAR(160),SUBSTITUTE($J196,\"{\",CHAR(160),EQ$1)),FIND(CHAR(160),SUBSTITUTE($J196,\"}\",CHAR(160),EQ$1))-FIND(CHAR(160),SUBSTITUTE($J196,\"{\",CHAR(160),EQ$1))+1),\"\")","v":"{HSPF}"},{"$f":"IFERROR(MID($J196,FIND(CHAR(160),SUBSTITUTE($J196,\"{\",CHAR(160),ER$1)),FIND(CHAR(160),SUBSTITUTE($J196,\"}\",CHAR(160),ER$1))-FIND(CHAR(160),SUBSTITUTE($J196,\"{\",CHAR(160),ER$1))+1),\"\")","v":"{Rebate Level}"},{"$f":"IFERROR(MID($J196,FIND(CHAR(160),SUBSTITUTE($J196,\"{\",CHAR(160),ES$1)),FIND(CHAR(160),SUBSTITUTE($J196,\"}\",CHAR(160),ES$1))-FIND(CHAR(160),SUBSTITUTE($J196,\"{\",CHAR(160),ES$1))+1),\"\")","v":"{Measure:Quantity}"},{"$f":"IFERROR(MID($J196,FIND(CHAR(160),SUBSTITUTE($J196,\"{\",CHAR(160),ET$1)),FIND(CHAR(160),SUBSTITUTE($J196,\"}\",CHAR(160),ET$1))-FIND(CHAR(160),SUBSTITUTE($J196,\"{\",CHAR(160),ET$1))+1),\"\")","v":""},{"$f":"IFERROR(MID($J196,FIND(CHAR(160),SUBSTITUTE($J196,\"{\",CHAR(160),EU$1)),FIND(CHAR(160),SUBSTITUTE($J196,\"}\",CHAR(160),EU$1))-FIND(CHAR(160),SUBSTITUTE($J196,\"{\",CHAR(160),EU$1))+1),\"\")","v":""},{"$f":"IFERROR(MID($J196,FIND(CHAR(160),SUBSTITUTE($J196,\"{\",CHAR(160),EV$1)),FIND(CHAR(160),SUBSTITUTE($J196,\"}\",CHAR(160),EV$1))-FIND(CHAR(160),SUBSTITUTE($J196,\"{\",CHAR(160),EV$1))+1),\"\")","v":""},{"$f":"IFERROR(MID($J196,FIND(CHAR(160),SUBSTITUTE($J196,\"{\",CHAR(160),EW$1)),FIND(CHAR(160),SUBSTITUTE($J196,\"}\",CHAR(160),EW$1))-FIND(CHAR(160),SUBSTITUTE($J196,\"{\",CHAR(160),EW$1))+1),\"\")","v":""},{"$f":"IFERROR(MID($J196,FIND(CHAR(160),SUBSTITUTE($J196,\"{\",CHAR(160),EX$1)),FIND(CHAR(160),SUBSTITUTE($J196,\"}\",CHAR(160),EX$1))-FIND(CHAR(160),SUBSTITUTE($J196,\"{\",CHAR(160),EX$1))+1),\"\")","v":""},{"$f":"IFERROR(MID($J196,FIND(CHAR(160),SUBSTITUTE($J196,\"{\",CHAR(160),EY$1)),FIND(CHAR(160),SUBSTITUTE($J196,\"}\",CHAR(160),EY$1))-FIND(CHAR(160),SUBSTITUTE($J196,\"{\",CHAR(160),EY$1))+1),\"\")","v":""},{"$f":"IFERROR(MID($J196,FIND(CHAR(160),SUBSTITUTE($J196,\"{\",CHAR(160),EZ$1)),FIND(CHAR(160),SUBSTITUTE($J196,\"}\",CHAR(160),EZ$1))-FIND(CHAR(160),SUBSTITUTE($J196,\"{\",CHAR(160),EZ$1))+1),\"\")","v":""},{"$f":"IFERROR(MID($J196,FIND(CHAR(160),SUBSTITUTE($J196,\"{\",CHAR(160),FA$1)),FIND(CHAR(160),SUBSTITUTE($J196,\"}\",CHAR(160),FA$1))-FIND(CHAR(160),SUBSTITUTE($J196,\"{\",CHAR(160),FA$1))+1),\"\")","v":"{HSPF}"},{"$f":"IFERROR(MID($J196,FIND(CHAR(160),SUBSTITUTE($J196,\"{\",CHAR(160),FB$1)),FIND(CHAR(160),SUBSTITUTE($J196,\"}\",CHAR(160),FB$1))-FIND(CHAR(160),SUBSTITUTE($J196,\"{\",CHAR(160),FB$1))+1),\"\")","v":"{Rebate Level}"},{"$f":"IFERROR(MID($O196,FIND(CHAR(160),SUBSTITUTE($O196,\"{\",CHAR(160),FC$1)),FIND(CHAR(160),SUBSTITUTE($O196,\"}\",CHAR(160),FC$1))-FIND(CHAR(160),SUBSTITUTE($O196,\"{\",CHAR(160),FC$1))+1),\"\")","v":""},{"$f":"IFERROR(MID($O196,FIND(CHAR(160),SUBSTITUTE($O196,\"{\",CHAR(160),FD$1)),FIND(CHAR(160),SUBSTITUTE($O196,\"}\",CHAR(160),FD$1))-FIND(CHAR(160),SUBSTITUTE($O196,\"{\",CHAR(160),FD$1))+1),\"\")","v":""},{"$f":"IFERROR(MID($O196,FIND(CHAR(160),SUBSTITUTE($O196,\"{\",CHAR(160),FE$1)),FIND(CHAR(160),SUBSTITUTE($O196,\"}\",CHAR(160),FE$1))-FIND(CHAR(160),SUBSTITUTE($O196,\"{\",CHAR(160),FE$1))+1),\"\")","v":""},{"$f":"IFERROR(MID($O196,FIND(CHAR(160),SUBSTITUTE($O196,\"{\",CHAR(160),FF$1)),FIND(CHAR(160),SUBSTITUTE($O196,\"}\",CHAR(160),FF$1))-FIND(CHAR(160),SUBSTITUTE($O196,\"{\",CHAR(160),FF$1))+1),\"\")","v":""},{"$f":"IFERROR(MID($O196,FIND(CHAR(160),SUBSTITUTE($O196,\"{\",CHAR(160),FG$1)),FIND(CHAR(160),SUBSTITUTE($O196,\"}\",CHAR(160),FG$1))-FIND(CHAR(160),SUBSTITUTE($O196,\"{\",CHAR(160),FG$1))+1),\"\")","v":""},{"$f":"IFERROR(MID($O196,FIND(CHAR(160),SUBSTITUTE($O196,\"{\",CHAR(160),FH$1)),FIND(CHAR(160),SUBSTITUTE($O196,\"}\",CHAR(160),FH$1))-FIND(CHAR(160),SUBSTITUTE($O196,\"{\",CHAR(160),FH$1))+1),\"\")","v":""},{"$f":"IFERROR(MID($O196,FIND(CHAR(160),SUBSTITUTE($O196,\"{\",CHAR(160),FI$1)),FIND(CHAR(160),SUBSTITUTE($O196,\"}\",CHAR(160),FI$1))-FIND(CHAR(160),SUBSTITUTE($O196,\"{\",CHAR(160),FI$1))+1),\"\")","v":""},{"$f":"IFERROR(MID($O196,FIND(CHAR(160),SUBSTITUTE($O196,\"{\",CHAR(160),FJ$1)),FIND(CHAR(160),SUBSTITUTE($O196,\"}\",CHAR(160),FJ$1))-FIND(CHAR(160),SUBSTITUTE($O196,\"{\",CHAR(160),FJ$1))+1),\"\")","v":""},{"$f":"IFERROR(MID($O196,FIND(CHAR(160),SUBSTITUTE($O196,\"{\",CHAR(160),FK$1)),FIND(CHAR(160),SUBSTITUTE($O196,\"}\",CHAR(160),FK$1))-FIND(CHAR(160),SUBSTITUTE($O196,\"{\",CHAR(160),FK$1))+1),\"\")","v":""},{"$f":"IFERROR(MID($O196,FIND(CHAR(160),SUBSTITUTE($O196,\"{\",CHAR(160),FL$1)),FIND(CHAR(160),SUBSTITUTE($O196,\"}\",CHAR(160),FL$1))-FIND(CHAR(160),SUBSTITUTE($O196,\"{\",CHAR(160),FL$1))+1),\"\")","v":""},{"$f":"IFERROR(MID($R196,FIND(CHAR(160),SUBSTITUTE($R196,\"{\",CHAR(160),FM$1)),FIND(CHAR(160),SUBSTITUTE($R196,\"}\",CHAR(160),FM$1))-FIND(CHAR(160),SUBSTITUTE($R196,\"{\",CHAR(160),FM$1))+1),\"\")","v":""},{"$f":"IFERROR(MID($R196,FIND(CHAR(160),SUBSTITUTE($R196,\"{\",CHAR(160),FN$1)),FIND(CHAR(160),SUBSTITUTE($R196,\"}\",CHAR(160),FN$1))-FIND(CHAR(160),SUBSTITUTE($R196,\"{\",CHAR(160),FN$1))+1),\"\")","v":""},{"$f":"IFERROR(MID($R196,FIND(CHAR(160),SUBSTITUTE($R196,\"{\",CHAR(160),FO$1)),FIND(CHAR(160),SUBSTITUTE($R196,\"}\",CHAR(160),FO$1))-FIND(CHAR(160),SUBSTITUTE($R196,\"{\",CHAR(160),FO$1))+1),\"\")","v":""},{"$f":"IFERROR(MID($R196,FIND(CHAR(160),SUBSTITUTE($R196,\"{\",CHAR(160),FP$1)),FIND(CHAR(160),SUBSTITUTE($R196,\"}\",CHAR(160),FP$1))-FIND(CHAR(160),SUBSTITUTE($R196,\"{\",CHAR(160),FP$1))+1),\"\")","v":""},{"$f":"IFERROR(MID($R196,FIND(CHAR(160),SUBSTITUTE($R196,\"{\",CHAR(160),FQ$1)),FIND(CHAR(160),SUBSTITUTE($R196,\"}\",CHAR(160),FQ$1))-FIND(CHAR(160),SUBSTITUTE($R196,\"{\",CHAR(160),FQ$1))+1),\"\")","v":""},{"$f":"IFERROR(MID($R196,FIND(CHAR(160),SUBSTITUTE($R196,\"{\",CHAR(160),FR$1)),FIND(CHAR(160),SUBSTITUTE($R196,\"}\",CHAR(160),FR$1))-FIND(CHAR(160),SUBSTITUTE($R196,\"{\",CHAR(160),FR$1))+1),\"\")","v":""},{"$f":"IFERROR(MID($R196,FIND(CHAR(160),SUBSTITUTE($R196,\"{\",CHAR(160),FS$1)),FIND(CHAR(160),SUBSTITUTE($R196,\"}\",CHAR(160),FS$1))-FIND(CHAR(160),SUBSTITUTE($R196,\"{\",CHAR(160),FS$1))+1),\"\")","v":""},{"$f":"IFERROR(MID($R196,FIND(CHAR(160),SUBSTITUTE($R196,\"{\",CHAR(160),FT$1)),FIND(CHAR(160),SUBSTITUTE($R196,\"}\",CHAR(160),FT$1))-FIND(CHAR(160),SUBSTITUTE($R196,\"{\",CHAR(160),FT$1))+1),\"\")","v":""},{"$f":"IFERROR(MID($R196,FIND(CHAR(160),SUBSTITUTE($R196,\"{\",CHAR(160),FU$1)),FIND(CHAR(160),SUBSTITUTE($R196,\"}\",CHAR(160),FU$1))-FIND(CHAR(160),SUBSTITUTE($R196,\"{\",CHAR(160),FU$1))+1),\"\")","v":""},{"$f":"IFERROR(MID($R196,FIND(CHAR(160),SUBSTITUTE($R196,\"{\",CHAR(160),FV$1)),FIND(CHAR(160),SUBSTITUTE($R196,\"}\",CHAR(160),FV$1))-FIND(CHAR(160),SUBSTITUTE($R196,\"{\",CHAR(160),FV$1))+1),\"\")","v":""},{"$f":"IFERROR(MID($U196,FIND(CHAR(160),SUBSTITUTE($U196,\"{\",CHAR(160),FW$1)),FIND(CHAR(160),SUBSTITUTE($U196,\"}\",CHAR(160),FW$1))-FIND(CHAR(160),SUBSTITUTE($U196,\"{\",CHAR(160),FW$1))+1),\"\")","v":""},{"$f":"IFERROR(MID($U196,FIND(CHAR(160),SUBSTITUTE($U196,\"{\",CHAR(160),FX$1)),FIND(CHAR(160),SUBSTITUTE($U196,\"}\",CHAR(160),FX$1))-FIND(CHAR(160),SUBSTITUTE($U196,\"{\",CHAR(160),FX$1))+1),\"\")","v":""},{"$f":"IFERROR(MID($U196,FIND(CHAR(160),SUBSTITUTE($U196,\"{\",CHAR(160),FY$1)),FIND(CHAR(160),SUBSTITUTE($U196,\"}\",CHAR(160),FY$1))-FIND(CHAR(160),SUBSTITUTE($U196,\"{\",CHAR(160),FY$1))+1),\"\")","v":""},{"$f":"IFERROR(MID($U196,FIND(CHAR(160),SUBSTITUTE($U196,\"{\",CHAR(160),FZ$1)),FIND(CHAR(160),SUBSTITUTE($U196,\"}\",CHAR(160),FZ$1))-FIND(CHAR(160),SUBSTITUTE($U196,\"{\",CHAR(160),FZ$1))+1),\"\")","v":""},{"$f":"IFERROR(MID($U196,FIND(CHAR(160),SUBSTITUTE($U196,\"{\",CHAR(160),GA$1)),FIND(CHAR(160),SUBSTITUTE($U196,\"}\",CHAR(160),GA$1))-FIND(CHAR(160),SUBSTITUTE($U196,\"{\",CHAR(160),GA$1))+1),\"\")","v":""},{"$f":"IFERROR(MID($U196,FIND(CHAR(160),SUBSTITUTE($U196,\"{\",CHAR(160),GB$1)),FIND(CHAR(160),SUBSTITUTE($U196,\"}\",CHAR(160),GB$1))-FIND(CHAR(160),SUBSTITUTE($U196,\"{\",CHAR(160),GB$1))+1),\"\")","v":""},{"$f":"IFERROR(MID($U196,FIND(CHAR(160),SUBSTITUTE($U196,\"{\",CHAR(160),GC$1)),FIND(CHAR(160),SUBSTITUTE($U196,\"}\",CHAR(160),GC$1))-FIND(CHAR(160),SUBSTITUTE($U196,\"{\",CHAR(160),GC$1))+1),\"\")","v":""},{"$f":"IFERROR(MID($U196,FIND(CHAR(160),SUBSTITUTE($U196,\"{\",CHAR(160),GD$1)),FIND(CHAR(160),SUBSTITUTE($U196,\"}\",CHAR(160),GD$1))-FIND(CHAR(160),SUBSTITUTE($U196,\"{\",CHAR(160),GD$1))+1),\"\")","v":""},{"$f":"IFERROR(MID($U196,FIND(CHAR(160),SUBSTITUTE($U196,\"{\",CHAR(160),GE$1)),FIND(CHAR(160),SUBSTITUTE($U196,\"}\",CHAR(160),GE$1))-FIND(CHAR(160),SUBSTITUTE($U196,\"{\",CHAR(160),GE$1))+1),\"\")","v":""},{"$f":"IFERROR(MID($U196,FIND(CHAR(160),SUBSTITUTE($U196,\"{\",CHAR(160),GF$1)),FIND(CHAR(160),SUBSTITUTE($U196,\"}\",CHAR(160),GF$1))-FIND(CHAR(160),SUBSTITUTE($U196,\"{\",CHAR(160),GF$1))+1),\"\")","v":""},{"$f":"IFERROR(MID($V196,FIND(CHAR(160),SUBSTITUTE($V196,\"{\",CHAR(160),GG$1)),FIND(CHAR(160),SUBSTITUTE($V196,\"}\",CHAR(160),GG$1))-FIND(CHAR(160),SUBSTITUTE($V196,\"{\",CHAR(160),GG$1))+1),\"\")","v":""},{"$f":"IFERROR(MID($V196,FIND(CHAR(160),SUBSTITUTE($V196,\"{\",CHAR(160),GH$1)),FIND(CHAR(160),SUBSTITUTE($V196,\"}\",CHAR(160),GH$1))-FIND(CHAR(160),SUBSTITUTE($V196,\"{\",CHAR(160),GH$1))+1),\"\")","v":""},{"$f":"IFERROR(MID($V196,FIND(CHAR(160),SUBSTITUTE($V196,\"{\",CHAR(160),GI$1)),FIND(CHAR(160),SUBSTITUTE($V196,\"}\",CHAR(160),GI$1))-FIND(CHAR(160),SUBSTITUTE($V196,\"{\",CHAR(160),GI$1))+1),\"\")","v":""},{"$f":"IFERROR(MID($V196,FIND(CHAR(160),SUBSTITUTE($V196,\"{\",CHAR(160),GJ$1)),FIND(CHAR(160),SUBSTITUTE($V196,\"}\",CHAR(160),GJ$1))-FIND(CHAR(160),SUBSTITUTE($V196,\"{\",CHAR(160),GJ$1))+1),\"\")","v":""},{"$f":"IFERROR(MID($V196,FIND(CHAR(160),SUBSTITUTE($V196,\"{\",CHAR(160),GK$1)),FIND(CHAR(160),SUBSTITUTE($V196,\"}\",CHAR(160),GK$1))-FIND(CHAR(160),SUBSTITUTE($V196,\"{\",CHAR(160),GK$1))+1),\"\")","v":""},{"$f":"IFERROR(MID($V196,FIND(CHAR(160),SUBSTITUTE($V196,\"{\",CHAR(160),GL$1)),FIND(CHAR(160),SUBSTITUTE($V196,\"}\",CHAR(160),GL$1))-FIND(CHAR(160),SUBSTITUTE($V196,\"{\",CHAR(160),GL$1))+1),\"\")","v":""},{"$f":"IFERROR(MID($V196,FIND(CHAR(160),SUBSTITUTE($V196,\"{\",CHAR(160),GM$1)),FIND(CHAR(160),SUBSTITUTE($V196,\"}\",CHAR(160),GM$1))-FIND(CHAR(160),SUBSTITUTE($V196,\"{\",CHAR(160),GM$1))+1),\"\")","v":""},{"$f":"IFERROR(MID($V196,FIND(CHAR(160),SUBSTITUTE($V196,\"{\",CHAR(160),GN$1)),FIND(CHAR(160),SUBSTITUTE($V196,\"}\",CHAR(160),GN$1))-FIND(CHAR(160),SUBSTITUTE($V196,\"{\",CHAR(160),GN$1))+1),\"\")","v":""},{"$f":"IFERROR(MID($V196,FIND(CHAR(160),SUBSTITUTE($V196,\"{\",CHAR(160),GO$1)),FIND(CHAR(160),SUBSTITUTE($V196,\"}\",CHAR(160),GO$1))-FIND(CHAR(160),SUBSTITUTE($V196,\"{\",CHAR(160),GO$1))+1),\"\")","v":""},{"$f":"IFERROR(MID($V196,FIND(CHAR(160),SUBSTITUTE($V196,\"{\",CHAR(160),GP$1)),FIND(CHAR(160),SUBSTITUTE($V196,\"}\",CHAR(160),GP$1))-FIND(CHAR(160),SUBSTITUTE($V196,\"{\",CHAR(160),GP$1))+1),\"\")","v":""},{"$f":"IFERROR(MID($W196,FIND(CHAR(160),SUBSTITUTE($W196,\"{\",CHAR(160),GQ$1)),FIND(CHAR(160),SUBSTITUTE($W196,\"}\",CHAR(160),GQ$1))-FIND(CHAR(160),SUBSTITUTE($W196,\"{\",CHAR(160),GQ$1))+1),\"\")","v":""},{"$f":"IFERROR(MID($W196,FIND(CHAR(160),SUBSTITUTE($W196,\"{\",CHAR(160),GR$1)),FIND(CHAR(160),SUBSTITUTE($W196,\"}\",CHAR(160),GR$1))-FIND(CHAR(160),SUBSTITUTE($W196,\"{\",CHAR(160),GR$1))+1),\"\")","v":""},{"$f":"IFERROR(MID($W196,FIND(CHAR(160),SUBSTITUTE($W196,\"{\",CHAR(160),GS$1)),FIND(CHAR(160),SUBSTITUTE($W196,\"}\",CHAR(160),GS$1))-FIND(CHAR(160),SUBSTITUTE($W196,\"{\",CHAR(160),GS$1))+1),\"\")","v":""},{"$f":"IFERROR(MID($W196,FIND(CHAR(160),SUBSTITUTE($W196,\"{\",CHAR(160),GT$1)),FIND(CHAR(160),SUBSTITUTE($W196,\"}\",CHAR(160),GT$1))-FIND(CHAR(160),SUBSTITUTE($W196,\"{\",CHAR(160),GT$1))+1),\"\")","v":""},{"$f":"IFERROR(MID($W196,FIND(CHAR(160),SUBSTITUTE($W196,\"{\",CHAR(160),GU$1)),FIND(CHAR(160),SUBSTITUTE($W196,\"}\",CHAR(160),GU$1))-FIND(CHAR(160),SUBSTITUTE($W196,\"{\",CHAR(160),GU$1))+1),\"\")","v":""},{"$f":"IFERROR(MID($W196,FIND(CHAR(160),SUBSTITUTE($W196,\"{\",CHAR(160),GV$1)),FIND(CHAR(160),SUBSTITUTE($W196,\"}\",CHAR(160),GV$1))-FIND(CHAR(160),SUBSTITUTE($W196,\"{\",CHAR(160),GV$1))+1),\"\")","v":""},{"$f":"IFERROR(MID($W196,FIND(CHAR(160),SUBSTITUTE($W196,\"{\",CHAR(160),GW$1)),FIND(CHAR(160),SUBSTITUTE($W196,\"}\",CHAR(160),GW$1))-FIND(CHAR(160),SUBSTITUTE($W196,\"{\",CHAR(160),GW$1))+1),\"\")","v":""},{"$f":"IFERROR(MID($W196,FIND(CHAR(160),SUBSTITUTE($W196,\"{\",CHAR(160),GX$1)),FIND(CHAR(160),SUBSTITUTE($W196,\"}\",CHAR(160),GX$1))-FIND(CHAR(160),SUBSTITUTE($W196,\"{\",CHAR(160),GX$1))+1),\"\")","v":""},{"$f":"IFERROR(MID($W196,FIND(CHAR(160),SUBSTITUTE($W196,\"{\",CHAR(160),GY$1)),FIND(CHAR(160),SUBSTITUTE($W196,\"}\",CHAR(160),GY$1))-FIND(CHAR(160),SUBSTITUTE($W196,\"{\",CHAR(160),GY$1))+1),\"\")","v":""},{"$f":"IFERROR(MID($W196,FIND(CHAR(160),SUBSTITUTE($W196,\"{\",CHAR(160),GZ$1)),FIND(CHAR(160),SUBSTITUTE($W196,\"}\",CHAR(160),GZ$1))-FIND(CHAR(160),SUBSTITUTE($W196,\"{\",CHAR(160),GZ$1))+1),\"\")","v":""},{"$f":"IFERROR(MID($X196,FIND(CHAR(160),SUBSTITUTE($X196,\"{\",CHAR(160),HA$1)),FIND(CHAR(160),SUBSTITUTE($X196,\"}\",CHAR(160),HA$1))-FIND(CHAR(160),SUBSTITUTE($X196,\"{\",CHAR(160),HA$1))+1),\"\")","v":""},{"$f":"IFERROR(MID($X196,FIND(CHAR(160),SUBSTITUTE($X196,\"{\",CHAR(160),HB$1)),FIND(CHAR(160),SUBSTITUTE($X196,\"}\",CHAR(160),HB$1))-FIND(CHAR(160),SUBSTITUTE($X196,\"{\",CHAR(160),HB$1))+1),\"\")","v":""},{"$f":"IFERROR(MID($X196,FIND(CHAR(160),SUBSTITUTE($X196,\"{\",CHAR(160),HC$1)),FIND(CHAR(160),SUBSTITUTE($X196,\"}\",CHAR(160),HC$1))-FIND(CHAR(160),SUBSTITUTE($X196,\"{\",CHAR(160),HC$1))+1),\"\")","v":""},{"$f":"IFERROR(MID($X196,FIND(CHAR(160),SUBSTITUTE($X196,\"{\",CHAR(160),HD$1)),FIND(CHAR(160),SUBSTITUTE($X196,\"}\",CHAR(160),HD$1))-FIND(CHAR(160),SUBSTITUTE($X196,\"{\",CHAR(160),HD$1))+1),\"\")","v":""},{"$f":"IFERROR(MID($X196,FIND(CHAR(160),SUBSTITUTE($X196,\"{\",CHAR(160),HE$1)),FIND(CHAR(160),SUBSTITUTE($X196,\"}\",CHAR(160),HE$1))-FIND(CHAR(160),SUBSTITUTE($X196,\"{\",CHAR(160),HE$1))+1),\"\")","v":""},{"$f":"IFERROR(MID($X196,FIND(CHAR(160),SUBSTITUTE($X196,\"{\",CHAR(160),HF$1)),FIND(CHAR(160),SUBSTITUTE($X196,\"}\",CHAR(160),HF$1))-FIND(CHAR(160),SUBSTITUTE($X196,\"{\",CHAR(160),HF$1))+1),\"\")","v":""},{"$f":"IFERROR(MID($X196,FIND(CHAR(160),SUBSTITUTE($X196,\"{\",CHAR(160),HG$1)),FIND(CHAR(160),SUBSTITUTE($X196,\"}\",CHAR(160),HG$1))-FIND(CHAR(160),SUBSTITUTE($X196,\"{\",CHAR(160),HG$1))+1),\"\")","v":""},{"$f":"IFERROR(MID($X196,FIND(CHAR(160),SUBSTITUTE($X196,\"{\",CHAR(160),HH$1)),FIND(CHAR(160),SUBSTITUTE($X196,\"}\",CHAR(160),HH$1))-FIND(CHAR(160),SUBSTITUTE($X196,\"{\",CHAR(160),HH$1))+1),\"\")","v":""},{"$f":"IFERROR(MID($X196,FIND(CHAR(160),SUBSTITUTE($X196,\"{\",CHAR(160),HI$1)),FIND(CHAR(160),SUBSTITUTE($X196,\"}\",CHAR(160),HI$1))-FIND(CHAR(160),SUBSTITUTE($X196,\"{\",CHAR(160),HI$1))+1),\"\")","v":""},{"$f":"IFERROR(MID($X196,FIND(CHAR(160),SUBSTITUTE($X196,\"{\",CHAR(160),HJ$1)),FIND(CHAR(160),SUBSTITUTE($X196,\"}\",CHAR(160),HJ$1))-FIND(CHAR(160),SUBSTITUTE($X196,\"{\",CHAR(160),HJ$1))+1),\"\")","v":""},{"$f":"IFERROR(MID($Y196,FIND(CHAR(160),SUBSTITUTE($Y196,\"{\",CHAR(160),HK$1)),FIND(CHAR(160),SUBSTITUTE($Y196,\"}\",CHAR(160),HK$1))-FIND(CHAR(160),SUBSTITUTE($Y196,\"{\",CHAR(160),HK$1))+1),\"\")","v":""},{"$f":"IFERROR(MID($Y196,FIND(CHAR(160),SUBSTITUTE($Y196,\"{\",CHAR(160),HL$1)),FIND(CHAR(160),SUBSTITUTE($Y196,\"}\",CHAR(160),HL$1))-FIND(CHAR(160),SUBSTITUTE($Y196,\"{\",CHAR(160),HL$1))+1),\"\")","v":""},{"$f":"IFERROR(MID($Y196,FIND(CHAR(160),SUBSTITUTE($Y196,\"{\",CHAR(160),HM$1)),FIND(CHAR(160),SUBSTITUTE($Y196,\"}\",CHAR(160),HM$1))-FIND(CHAR(160),SUBSTITUTE($Y196,\"{\",CHAR(160),HM$1))+1),\"\")","v":""},{"$f":"IFERROR(MID($Y196,FIND(CHAR(160),SUBSTITUTE($Y196,\"{\",CHAR(160),HN$1)),FIND(CHAR(160),SUBSTITUTE($Y196,\"}\",CHAR(160),HN$1))-FIND(CHAR(160),SUBSTITUTE($Y196,\"{\",CHAR(160),HN$1))+1),\"\")","v":""},{"$f":"IFERROR(MID($Y196,FIND(CHAR(160),SUBSTITUTE($Y196,\"{\",CHAR(160),HO$1)),FIND(CHAR(160),SUBSTITUTE($Y196,\"}\",CHAR(160),HO$1))-FIND(CHAR(160),SUBSTITUTE($Y196,\"{\",CHAR(160),HO$1))+1),\"\")","v":""},{"$f":"IFERROR(MID($Y196,FIND(CHAR(160),SUBSTITUTE($Y196,\"{\",CHAR(160),HP$1)),FIND(CHAR(160),SUBSTITUTE($Y196,\"}\",CHAR(160),HP$1))-FIND(CHAR(160),SUBSTITUTE($Y196,\"{\",CHAR(160),HP$1))+1),\"\")","v":""},{"$f":"IFERROR(MID($Y196,FIND(CHAR(160),SUBSTITUTE($Y196,\"{\",CHAR(160),HQ$1)),FIND(CHAR(160),SUBSTITUTE($Y196,\"}\",CHAR(160),HQ$1))-FIND(CHAR(160),SUBSTITUTE($Y196,\"{\",CHAR(160),HQ$1))+1),\"\")","v":""},{"$f":"IFERROR(MID($Y196,FIND(CHAR(160),SUBSTITUTE($Y196,\"{\",CHAR(160),HR$1)),FIND(CHAR(160),SUBSTITUTE($Y196,\"}\",CHAR(160),HR$1))-FIND(CHAR(160),SUBSTITUTE($Y196,\"{\",CHAR(160),HR$1))+1),\"\")","v":""},{"$f":"IFERROR(MID($Y196,FIND(CHAR(160),SUBSTITUTE($Y196,\"{\",CHAR(160),HS$1)),FIND(CHAR(160),SUBSTITUTE($Y196,\"}\",CHAR(160),HS$1))-FIND(CHAR(160),SUBSTITUTE($Y196,\"{\",CHAR(160),HS$1))+1),\"\")","v":""},{"$f":"IFERROR(MID($Y196,FIND(CHAR(160),SUBSTITUTE($Y196,\"{\",CHAR(160),HT$1)),FIND(CHAR(160),SUBSTITUTE($Y196,\"}\",CHAR(160),HT$1))-FIND(CHAR(160),SUBSTITUTE($Y196,\"{\",CHAR(160),HT$1))+1),\"\")","v":""},{"$f":"IFERROR(MID($Z196,FIND(CHAR(160),SUBSTITUTE($Z196,\"{\",CHAR(160),HU$1)),FIND(CHAR(160),SUBSTITUTE($Z196,\"}\",CHAR(160),HU$1))-FIND(CHAR(160),SUBSTITUTE($Z196,\"{\",CHAR(160),HU$1))+1),\"\")","v":""},{"$f":"IFERROR(MID($Z196,FIND(CHAR(160),SUBSTITUTE($Z196,\"{\",CHAR(160),HV$1)),FIND(CHAR(160),SUBSTITUTE($Z196,\"}\",CHAR(160),HV$1))-FIND(CHAR(160),SUBSTITUTE($Z196,\"{\",CHAR(160),HV$1))+1),\"\")","v":""},{"$f":"IFERROR(MID($Z196,FIND(CHAR(160),SUBSTITUTE($Z196,\"{\",CHAR(160),HW$1)),FIND(CHAR(160),SUBSTITUTE($Z196,\"}\",CHAR(160),HW$1))-FIND(CHAR(160),SUBSTITUTE($Z196,\"{\",CHAR(160),HW$1))+1),\"\")","v":""},{"$f":"IFERROR(MID($Z196,FIND(CHAR(160),SUBSTITUTE($Z196,\"{\",CHAR(160),HX$1)),FIND(CHAR(160),SUBSTITUTE($Z196,\"}\",CHAR(160),HX$1))-FIND(CHAR(160),SUBSTITUTE($Z196,\"{\",CHAR(160),HX$1))+1),\"\")","v":""},{"$f":"IFERROR(MID($Z196,FIND(CHAR(160),SUBSTITUTE($Z196,\"{\",CHAR(160),HY$1)),FIND(CHAR(160),SUBSTITUTE($Z196,\"}\",CHAR(160),HY$1))-FIND(CHAR(160),SUBSTITUTE($Z196,\"{\",CHAR(160),HY$1))+1),\"\")","v":""},{"$f":"IFERROR(MID($Z196,FIND(CHAR(160),SUBSTITUTE($Z196,\"{\",CHAR(160),HZ$1)),FIND(CHAR(160),SUBSTITUTE($Z196,\"}\",CHAR(160),HZ$1))-FIND(CHAR(160),SUBSTITUTE($Z196,\"{\",CHAR(160),HZ$1))+1),\"\")","v":""},{"$f":"IFERROR(MID($Z196,FIND(CHAR(160),SUBSTITUTE($Z196,\"{\",CHAR(160),IA$1)),FIND(CHAR(160),SUBSTITUTE($Z196,\"}\",CHAR(160),IA$1))-FIND(CHAR(160),SUBSTITUTE($Z196,\"{\",CHAR(160),IA$1))+1),\"\")","v":""},{"$f":"IFERROR(MID($Z196,FIND(CHAR(160),SUBSTITUTE($Z196,\"{\",CHAR(160),IB$1)),FIND(CHAR(160),SUBSTITUTE($Z196,\"}\",CHAR(160),IB$1))-FIND(CHAR(160),SUBSTITUTE($Z196,\"{\",CHAR(160),IB$1))+1),\"\")","v":""},{"$f":"IFERROR(MID($Z196,FIND(CHAR(160),SUBSTITUTE($Z196,\"{\",CHAR(160),IC$1)),FIND(CHAR(160),SUBSTITUTE($Z196,\"}\",CHAR(160),IC$1))-FIND(CHAR(160),SUBSTITUTE($Z196,\"{\",CHAR(160),IC$1))+1),\"\")","v":""},{"$f":"IFERROR(MID($Z196,FIND(CHAR(160),SUBSTITUTE($Z196,\"{\",CHAR(160),ID$1)),FIND(CHAR(160),SUBSTITUTE($Z196,\"}\",CHAR(160),ID$1))-FIND(CHAR(160),SUBSTITUTE($Z196,\"{\",CHAR(160),ID$1))+1),\"\")","v":""},{"$f":"IFERROR(MID($AA196,FIND(CHAR(160),SUBSTITUTE($AA196,\"{\",CHAR(160),IE$1)),FIND(CHAR(160),SUBSTITUTE($AA196,\"}\",CHAR(160),IE$1))-FIND(CHAR(160),SUBSTITUTE($AA196,\"{\",CHAR(160),IE$1))+1),\"\")","v":""},{"$f":"IFERROR(MID($AA196,FIND(CHAR(160),SUBSTITUTE($AA196,\"{\",CHAR(160),IF$1)),FIND(CHAR(160),SUBSTITUTE($AA196,\"}\",CHAR(160),IF$1))-FIND(CHAR(160),SUBSTITUTE($AA196,\"{\",CHAR(160),IF$1))+1),\"\")","v":""},{"$f":"IFERROR(MID($AA196,FIND(CHAR(160),SUBSTITUTE($AA196,\"{\",CHAR(160),IG$1)),FIND(CHAR(160),SUBSTITUTE($AA196,\"}\",CHAR(160),IG$1))-FIND(CHAR(160),SUBSTITUTE($AA196,\"{\",CHAR(160),IG$1))+1),\"\")","v":""},{"$f":"IFERROR(MID($AA196,FIND(CHAR(160),SUBSTITUTE($AA196,\"{\",CHAR(160),IH$1)),FIND(CHAR(160),SUBSTITUTE($AA196,\"}\",CHAR(160),IH$1))-FIND(CHAR(160),SUBSTITUTE($AA196,\"{\",CHAR(160),IH$1))+1),\"\")","v":""},{"$f":"IFERROR(MID($AA196,FIND(CHAR(160),SUBSTITUTE($AA196,\"{\",CHAR(160),II$1)),FIND(CHAR(160),SUBSTITUTE($AA196,\"}\",CHAR(160),II$1))-FIND(CHAR(160),SUBSTITUTE($AA196,\"{\",CHAR(160),II$1))+1),\"\")","v":""},{"$f":"IFERROR(MID($AA196,FIND(CHAR(160),SUBSTITUTE($AA196,\"{\",CHAR(160),IJ$1)),FIND(CHAR(160),SUBSTITUTE($AA196,\"}\",CHAR(160),IJ$1))-FIND(CHAR(160),SUBSTITUTE($AA196,\"{\",CHAR(160),IJ$1))+1),\"\")","v":""},{"$f":"IFERROR(MID($AA196,FIND(CHAR(160),SUBSTITUTE($AA196,\"{\",CHAR(160),IK$1)),FIND(CHAR(160),SUBSTITUTE($AA196,\"}\",CHAR(160),IK$1))-FIND(CHAR(160),SUBSTITUTE($AA196,\"{\",CHAR(160),IK$1))+1),\"\")","v":""},{"$f":"IFERROR(MID($AA196,FIND(CHAR(160),SUBSTITUTE($AA196,\"{\",CHAR(160),IL$1)),FIND(CHAR(160),SUBSTITUTE($AA196,\"}\",CHAR(160),IL$1))-FIND(CHAR(160),SUBSTITUTE($AA196,\"{\",CHAR(160),IL$1))+1),\"\")","v":""},{"$f":"IFERROR(MID($AA196,FIND(CHAR(160),SUBSTITUTE($AA196,\"{\",CHAR(160),IM$1)),FIND(CHAR(160),SUBSTITUTE($AA196,\"}\",CHAR(160),IM$1))-FIND(CHAR(160),SUBSTITUTE($AA196,\"{\",CHAR(160),IM$1))+1),\"\")","v":""},{"$f":"IFERROR(MID($AA196,FIND(CHAR(160),SUBSTITUTE($AA196,\"{\",CHAR(160),IN$1)),FIND(CHAR(160),SUBSTITUTE($AA196,\"}\",CHAR(160),IN$1))-FIND(CHAR(160),SUBSTITUTE($AA196,\"{\",CHAR(160),IN$1))+1),\"\")","v":""},{"$f":"IFERROR(MID($AB196,FIND(CHAR(160),SUBSTITUTE($AB196,\"{\",CHAR(160),IO$1)),FIND(CHAR(160),SUBSTITUTE($AB196,\"}\",CHAR(160),IO$1))-FIND(CHAR(160),SUBSTITUTE($AB196,\"{\",CHAR(160),IO$1))+1),\"\")","v":""},{"$f":"IFERROR(MID($AB196,FIND(CHAR(160),SUBSTITUTE($AB196,\"{\",CHAR(160),IP$1)),FIND(CHAR(160),SUBSTITUTE($AB196,\"}\",CHAR(160),IP$1))-FIND(CHAR(160),SUBSTITUTE($AB196,\"{\",CHAR(160),IP$1))+1),\"\")","v":""},{"$f":"IFERROR(MID($AB196,FIND(CHAR(160),SUBSTITUTE($AB196,\"{\",CHAR(160),IQ$1)),FIND(CHAR(160),SUBSTITUTE($AB196,\"}\",CHAR(160),IQ$1))-FIND(CHAR(160),SUBSTITUTE($AB196,\"{\",CHAR(160),IQ$1))+1),\"\")","v":""},{"$f":"IFERROR(MID($AB196,FIND(CHAR(160),SUBSTITUTE($AB196,\"{\",CHAR(160),IR$1)),FIND(CHAR(160),SUBSTITUTE($AB196,\"}\",CHAR(160),IR$1))-FIND(CHAR(160),SUBSTITUTE($AB196,\"{\",CHAR(160),IR$1))+1),\"\")","v":""},{"$f":"IFERROR(MID($AB196,FIND(CHAR(160),SUBSTITUTE($AB196,\"{\",CHAR(160),IS$1)),FIND(CHAR(160),SUBSTITUTE($AB196,\"}\",CHAR(160),IS$1))-FIND(CHAR(160),SUBSTITUTE($AB196,\"{\",CHAR(160),IS$1))+1),\"\")","v":""},{"$f":"IFERROR(MID($AB196,FIND(CHAR(160),SUBSTITUTE($AB196,\"{\",CHAR(160),IT$1)),FIND(CHAR(160),SUBSTITUTE($AB196,\"}\",CHAR(160),IT$1))-FIND(CHAR(160),SUBSTITUTE($AB196,\"{\",CHAR(160),IT$1))+1),\"\")","v":""},{"$f":"IFERROR(MID($AB196,FIND(CHAR(160),SUBSTITUTE($AB196,\"{\",CHAR(160),IU$1)),FIND(CHAR(160),SUBSTITUTE($AB196,\"}\",CHAR(160),IU$1))-FIND(CHAR(160),SUBSTITUTE($AB196,\"{\",CHAR(160),IU$1))+1),\"\")","v":""},{"$f":"IFERROR(MID($AB196,FIND(CHAR(160),SUBSTITUTE($AB196,\"{\",CHAR(160),IV$1)),FIND(CHAR(160),SUBSTITUTE($AB196,\"}\",CHAR(160),IV$1))-FIND(CHAR(160),SUBSTITUTE($AB196,\"{\",CHAR(160),IV$1))+1),\"\")","v":""},{"$f":"IFERROR(MID($AB196,FIND(CHAR(160),SUBSTITUTE($AB196,\"{\",CHAR(160),IW$1)),FIND(CHAR(160),SUBSTITUTE($AB196,\"}\",CHAR(160),IW$1))-FIND(CHAR(160),SUBSTITUTE($AB196,\"{\",CHAR(160),IW$1))+1),\"\")","v":""},{"$f":"IFERROR(MID($AB196,FIND(CHAR(160),SUBSTITUTE($AB196,\"{\",CHAR(160),IX$1)),FIND(CHAR(160),SUBSTITUTE($AB196,\"}\",CHAR(160),IX$1))-FIND(CHAR(160),SUBSTITUTE($AB196,\"{\",CHAR(160),IX$1))+1),\"\")","v":""},null,{"$f":"10-COUNTIF(DU196:ED196,\"\")","v":3}]
["Home Energy Savings Program - Electric","Heat Pump Single Zone 1st Unit Tier 1","HPSING1T1","2021-07-01","2022-06-30","Per Measure",682,0,"Calculated","if({Type of indoor unit}=4 and {HSPF}<10.0,0,if({Type of indoor unit}<>4 and {HSPF}<12.0,0,if({Rebate Level}=1,$500.00,$400.00)))*{Measure:Quantity}",0,"2021-07-01","2022-06-30","Per Measure",301,null,null,null,null,null,3.7999999999999999E-2,0.11600000000000001,0.46,0.15,0.33,0.02,0.19,0,"2021-07-01","2022-06-30",18,1,1,0.36699999999999999,0.51200000000000001,6.7000000000000004E-2,5.2999999999999999E-2,1,1,1,0.42,0.11,null,{"$f":"DU197","v":"{Type of indoor unit}"},1,{"$f":"DV197","v":"{HSPF}"},12,{"$f":"DW197","v":"{Rebate Level}"},1,{"$f":"DX197","v":"{Measure:Quantity}"},1,{"$f":"DY197","v":""},null,{"$f":"DZ197","v":""},null,{"$f":"EA197","v":""},null,{"$f":"EB197","v":""},null,{"$f":"EC197","v":""},null,{"$f":"ED197","v":""},null,{"$f":"301","v":301},0,0,0,0,0,{"$f":"0.038","v":3.7999999999999999E-2},{"$f":"0.116","v":0.11600000000000001},{"$f":"0.46","v":0.46},{"$f":"0.15","v":0.15},{"$f":"0.33","v":0.33},{"$f":"0.02","v":0.02},{"$f":"0.19","v":0.19},{"$f":"0","v":0},null,"Res","Default DR",{"$f":"Benefits(BL197,BR197,BS197,BT197,BU197,BV197,BW197,BX197,BY197,BZ197,AE197,AH197,AI197,AJ197,AK197,AL197,AM197,AN197,AO197,AP197,CA197,CB197)","v":471.37716057511437},417.80047156651443,10.215947489072036,159.43055617981574,11.270569506001637,101.64378845308332,58.59875366046402,0,0,{"$f":"SUMPRODUCT(CC197:CK197,--(CC197:CK197>0))","v":1230.3372474300656},{"$f":"-SUMPRODUCT(CC197:CK197,--(CC197:CK197<0))","v":0},null,{"$f":"682","v":682},null,null,{"$f":"CM197+CO197","v":682},{"$f":"IF(NetOrGross=\"Net\",(1-AO197+AP197),1)","v":1},{"$f":"(SUMPRODUCT(CC197:CJ197,--(CC197:CJ197>0))+CN197)*CS197/((-SUMPRODUCT(CC197:CJ197,--(CC197:CJ197<0))+MAX(CO197,CV197)+CP197+CQ197)*CS197+IF(FRIncentives=\"Yes\",CV197*(1-CS197),0))","v":1.8040135592816211},1,{"$f":"IF(AND(S197=4,AU197<10),0,IF(AND(AS197<>4,AU197<12),0,IF(AW197=1,500,400)))*AY197","v":500},null,"Electric","y",1,{"$f":"IF(F197=\"Manual Entry\",\"Manual\",IF(G197=\"\",0,\"X=\"&SUBSTITUTE(SUBSTITUTE(SUBSTITUTE(SUBSTITUTE(SUBSTITUTE(SUBSTITUTE(SUBSTITUTE(SUBSTITUTE(SUBSTITUTE(SUBSTITUTE(SUBSTITUTE(SUBSTITUTE(G197,$ED197,$ED$2&ROW($ED197)),$EC197,$EC$2&ROW($EC197)),$EB197,$EB$2&ROW($EB197)),$EA197,$EA$2&ROW($EA197)),$DZ197,$DZ$2&ROW($DZ197)),$DY197,$DY$2&ROW($DY197)),$DX197,$DX$2&ROW($DX197)),$DW197,$DW$2&ROW($DW197)),$DV197,$DV$2&ROW($DV197)),$DU197,$DU$2&ROW($DU197)),$DT197,$DT$2&ROW($DT197)),$DS197,$DS$2&ROW($DS197))))","v":"X=682"},{"$f":"IF(I197=\"Manual Entry\",\"Manual\",IF(J197=\"\",0,\"X=\"&SUBSTITUTE(SUBSTITUTE(SUBSTITUTE(SUBSTITUTE(SUBSTITUTE(SUBSTITUTE(SUBSTITUTE(SUBSTITUTE(SUBSTITUTE(SUBSTITUTE(SUBSTITUTE(SUBSTITUTE(J197,$ED197,$ED$2&ROW($ED197)),$EC197,$EC$2&ROW($EC197)),$EB197,$EB$2&ROW($EB197)),$EA197,$EA$2&ROW($EA197)),$DZ197,$DZ$2&ROW($DZ197)),$DY197,$DY$2&ROW($DY197)),$DX197,$DX$2&ROW($DX197)),$DW197,$DW$2&ROW($DW197)),$DV197,$DV$2&ROW($DV197)),$DU197,$DU$2&ROW($DU197)),$DT197,$DT$2&ROW($DT197)),$DS197,$DS$2&ROW($DS197))))","v":"X=if(AS197=4 and AU197<10.0,0,if(AS197<>4 and AU197<12.0,0,if(AW197=1,$500.00,$400.00)))*AY197"},{"$f":"IF(O197=\"\",0,\"X=\"&SUBSTITUTE(SUBSTITUTE(SUBSTITUTE(SUBSTITUTE(SUBSTITUTE(SUBSTITUTE(SUBSTITUTE(SUBSTITUTE(SUBSTITUTE(SUBSTITUTE(SUBSTITUTE(SUBSTITUTE(O197,$ED197,$ED$2&ROW($ED197)),$EC197,$EC$2&ROW($EC197)),$EB197,$EB$2&ROW($EB197)),$EA197,$EA$2&ROW($EA197)),$DZ197,$DZ$2&ROW($DZ197)),$DY197,$DY$2&ROW($DY197)),$DX197,$DX$2&ROW($DX197)),$DW197,$DW$2&ROW($DW197)),$DV197,$DV$2&ROW($DV197)),$DU197,$DU$2&ROW($DU197)),$DT197,$DT$2&ROW($DT197)),$DS197,$DS$2&ROW($DS197)))","v":"X=301"},{"$f":"IF(P197=\"\",0,\"X=\"&SUBSTITUTE(SUBSTITUTE(SUBSTITUTE(SUBSTITUTE(SUBSTITUTE(SUBSTITUTE(SUBSTITUTE(SUBSTITUTE(SUBSTITUTE(SUBSTITUTE(SUBSTITUTE(SUBSTITUTE(P197,$ED197,$ED$2&ROW($ED197)),$EC197,$EC$2&ROW($EC197)),$EB197,$EB$2&ROW($EB197)),$EA197,$EA$2&ROW($EA197)),$DZ197,$DZ$2&ROW($DZ197)),$DY197,$DY$2&ROW($DY197)),$DX197,$DX$2&ROW($DX197)),$DW197,$DW$2&ROW($DW197)),$DV197,$DV$2&ROW($DV197)),$DU197,$DU$2&ROW($DU197)),$DT197,$DT$2&ROW($DT197)),$DS197,$DS$2&ROW($DS197)))","v":0},{"$f":"IF(Q197=\"\",0,\"X=\"&SUBSTITUTE(SUBSTITUTE(SUBSTITUTE(SUBSTITUTE(SUBSTITUTE(SUBSTITUTE(SUBSTITUTE(SUBSTITUTE(SUBSTITUTE(SUBSTITUTE(SUBSTITUTE(SUBSTITUTE(Q197,$ED197,$ED$2&ROW($ED197)),$EC197,$EC$2&ROW($EC197)),$EB197,$EB$2&ROW($EB197)),$EA197,$EA$2&ROW($EA197)),$DZ197,$DZ$2&ROW($DZ197)),$DY197,$DY$2&ROW($DY197)),$DX197,$DX$2&ROW($DX197)),$DW197,$DW$2&ROW($DW197)),$DV197,$DV$2&ROW($DV197)),$DU197,$DU$2&ROW($DU197)),$DT197,$DT$2&ROW($DT197)),$DS197,$DS$2&ROW($DS197)))","v":0},{"$f":"IF(R197=\"\",0,\"X=\"&SUBSTITUTE(SUBSTITUTE(SUBSTITUTE(SUBSTITUTE(SUBSTITUTE(SUBSTITUTE(SUBSTITUTE(SUBSTITUTE(SUBSTITUTE(SUBSTITUTE(SUBSTITUTE(SUBSTITUTE(R197,$ED197,$ED$2&ROW($ED197)),$EC197,$EC$2&ROW($EC197)),$EB197,$EB$2&ROW($EB197)),$EA197,$EA$2&ROW($EA197)),$DZ197,$DZ$2&ROW($DZ197)),$DY197,$DY$2&ROW($DY197)),$DX197,$DX$2&ROW($DX197)),$DW197,$DW$2&ROW($DW197)),$DV197,$DV$2&ROW($DV197)),$DU197,$DU$2&ROW($DU197)),$DT197,$DT$2&ROW($DT197)),$DS197,$DS$2&ROW($DS197)))","v":0},{"$f":"IF(S197=\"\",0,\"X=\"&SUBSTITUTE(SUBSTITUTE(SUBSTITUTE(SUBSTITUTE(SUBSTITUTE(SUBSTITUTE(SUBSTITUTE(SUBSTITUTE(SUBSTITUTE(SUBSTITUTE(SUBSTITUTE(SUBSTITUTE(S197,$ED197,$ED$2&ROW($ED197)),$EC197,$EC$2&ROW($EC197)),$EB197,$EB$2&ROW($EB197)),$EA197,$EA$2&ROW($EA197)),$DZ197,$DZ$2&ROW($DZ197)),$DY197,$DY$2&ROW($DY197)),$DX197,$DX$2&ROW($DX197)),$DW197,$DW$2&ROW($DW197)),$DV197,$DV$2&ROW($DV197)),$DU197,$DU$2&ROW($DU197)),$DT197,$DT$2&ROW($DT197)),$DS197,$DS$2&ROW($DS197)))","v":0},{"$f":"IF(T197=\"\",0,\"X=\"&SUBSTITUTE(SUBSTITUTE(SUBSTITUTE(SUBSTITUTE(SUBSTITUTE(SUBSTITUTE(SUBSTITUTE(SUBSTITUTE(SUBSTITUTE(SUBSTITUTE(SUBSTITUTE(SUBSTITUTE(T197,$ED197,$ED$2&ROW($ED197)),$EC197,$EC$2&ROW($EC197)),$EB197,$EB$2&ROW($EB197)),$EA197,$EA$2&ROW($EA197)),$DZ197,$DZ$2&ROW($DZ197)),$DY197,$DY$2&ROW($DY197)),$DX197,$DX$2&ROW($DX197)),$DW197,$DW$2&ROW($DW197)),$DV197,$DV$2&ROW($DV197)),$DU197,$DU$2&ROW($DU197)),$DT197,$DT$2&ROW($DT197)),$DS197,$DS$2&ROW($DS197)))","v":0},{"$f":"IF(U197=\"\",0,\"X=\"&SUBSTITUTE(SUBSTITUTE(SUBSTITUTE(SUBSTITUTE(SUBSTITUTE(SUBSTITUTE(SUBSTITUTE(SUBSTITUTE(SUBSTITUTE(SUBSTITUTE(SUBSTITUTE(SUBSTITUTE(U197,$ED197,$ED$2&ROW($ED197)),$EC197,$EC$2&ROW($EC197)),$EB197,$EB$2&ROW($EB197)),$EA197,$EA$2&ROW($EA197)),$DZ197,$DZ$2&ROW($DZ197)),$DY197,$DY$2&ROW($DY197)),$DX197,$DX$2&ROW($DX197)),$DW197,$DW$2&ROW($DW197)),$DV197,$DV$2&ROW($DV197)),$DU197,$DU$2&ROW($DU197)),$DT197,$DT$2&ROW($DT197)),$DS197,$DS$2&ROW($DS197)))","v":"X=0.038"},{"$f":"IF(V197=\"\",0,\"X=\"&SUBSTITUTE(SUBSTITUTE(SUBSTITUTE(SUBSTITUTE(SUBSTITUTE(SUBSTITUTE(SUBSTITUTE(SUBSTITUTE(SUBSTITUTE(SUBSTITUTE(SUBSTITUTE(SUBSTITUTE(V197,$ED197,$ED$2&ROW($ED197)),$EC197,$EC$2&ROW($EC197)),$EB197,$EB$2&ROW($EB197)),$EA197,$EA$2&ROW($EA197)),$DZ197,$DZ$2&ROW($DZ197)),$DY197,$DY$2&ROW($DY197)),$DX197,$DX$2&ROW($DX197)),$DW197,$DW$2&ROW($DW197)),$DV197,$DV$2&ROW($DV197)),$DU197,$DU$2&ROW($DU197)),$DT197,$DT$2&ROW($DT197)),$DS197,$DS$2&ROW($DS197)))","v":"X=0.116"},{"$f":"IF(W197=\"\",0,\"X=\"&SUBSTITUTE(SUBSTITUTE(SUBSTITUTE(SUBSTITUTE(SUBSTITUTE(SUBSTITUTE(SUBSTITUTE(SUBSTITUTE(SUBSTITUTE(SUBSTITUTE(SUBSTITUTE(SUBSTITUTE(W197,$ED197,$ED$2&ROW($ED197)),$EC197,$EC$2&ROW($EC197)),$EB197,$EB$2&ROW($EB197)),$EA197,$EA$2&ROW($EA197)),$DZ197,$DZ$2&ROW($DZ197)),$DY197,$DY$2&ROW($DY197)),$DX197,$DX$2&ROW($DX197)),$DW197,$DW$2&ROW($DW197)),$DV197,$DV$2&ROW($DV197)),$DU197,$DU$2&ROW($DU197)),$DT197,$DT$2&ROW($DT197)),$DS197,$DS$2&ROW($DS197)))","v":"X=0.46"},{"$f":"IF(X197=\"\",0,\"X=\"&SUBSTITUTE(SUBSTITUTE(SUBSTITUTE(SUBSTITUTE(SUBSTITUTE(SUBSTITUTE(SUBSTITUTE(SUBSTITUTE(SUBSTITUTE(SUBSTITUTE(SUBSTITUTE(SUBSTITUTE(X197,$ED197,$ED$2&ROW($ED197)),$EC197,$EC$2&ROW($EC197)),$EB197,$EB$2&ROW($EB197)),$EA197,$EA$2&ROW($EA197)),$DZ197,$DZ$2&ROW($DZ197)),$DY197,$DY$2&ROW($DY197)),$DX197,$DX$2&ROW($DX197)),$DW197,$DW$2&ROW($DW197)),$DV197,$DV$2&ROW($DV197)),$DU197,$DU$2&ROW($DU197)),$DT197,$DT$2&ROW($DT197)),$DS197,$DS$2&ROW($DS197)))","v":"X=0.15"},{"$f":"IF(Y197=\"\",0,\"X=\"&SUBSTITUTE(SUBSTITUTE(SUBSTITUTE(SUBSTITUTE(SUBSTITUTE(SUBSTITUTE(SUBSTITUTE(SUBSTITUTE(SUBSTITUTE(SUBSTITUTE(SUBSTITUTE(SUBSTITUTE(Y197,$ED197,$ED$2&ROW($ED197)),$EC197,$EC$2&ROW($EC197)),$EB197,$EB$2&ROW($EB197)),$EA197,$EA$2&ROW($EA197)),$DZ197,$DZ$2&ROW($DZ197)),$DY197,$DY$2&ROW($DY197)),$DX197,$DX$2&ROW($DX197)),$DW197,$DW$2&ROW($DW197)),$DV197,$DV$2&ROW($DV197)),$DU197,$DU$2&ROW($DU197)),$DT197,$DT$2&ROW($DT197)),$DS197,$DS$2&ROW($DS197)))","v":"X=0.33"},{"$f":"IF(Z197=\"\",0,\"X=\"&SUBSTITUTE(SUBSTITUTE(SUBSTITUTE(SUBSTITUTE(SUBSTITUTE(SUBSTITUTE(SUBSTITUTE(SUBSTITUTE(SUBSTITUTE(SUBSTITUTE(SUBSTITUTE(SUBSTITUTE(Z197,$ED197,$ED$2&ROW($ED197)),$EC197,$EC$2&ROW($EC197)),$EB197,$EB$2&ROW($EB197)),$EA197,$EA$2&ROW($EA197)),$DZ197,$DZ$2&ROW($DZ197)),$DY197,$DY$2&ROW($DY197)),$DX197,$DX$2&ROW($DX197)),$DW197,$DW$2&ROW($DW197)),$DV197,$DV$2&ROW($DV197)),$DU197,$DU$2&ROW($DU197)),$DT197,$DT$2&ROW($DT197)),$DS197,$DS$2&ROW($DS197)))","v":"X=0.02"},{"$f":"IF(AA197=\"\",0,\"X=\"&SUBSTITUTE(SUBSTITUTE(SUBSTITUTE(SUBSTITUTE(SUBSTITUTE(SUBSTITUTE(SUBSTITUTE(SUBSTITUTE(SUBSTITUTE(SUBSTITUTE(SUBSTITUTE(SUBSTITUTE(AA197,$ED197,$ED$2&ROW($ED197)),$EC197,$EC$2&ROW($EC197)),$EB197,$EB$2&ROW($EB197)),$EA197,$EA$2&ROW($EA197)),$DZ197,$DZ$2&ROW($DZ197)),$DY197,$DY$2&ROW($DY197)),$DX197,$DX$2&ROW($DX197)),$DW197,$DW$2&ROW($DW197)),$DV197,$DV$2&ROW($DV197)),$DU197,$DU$2&ROW($DU197)),$DT197,$DT$2&ROW($DT197)),$DS197,$DS$2&ROW($DS197)))","v":"X=0.19"},{"$f":"IF(AB197=\"\",0,\"X=\"&SUBSTITUTE(SUBSTITUTE(SUBSTITUTE(SUBSTITUTE(SUBSTITUTE(SUBSTITUTE(SUBSTITUTE(SUBSTITUTE(SUBSTITUTE(SUBSTITUTE(SUBSTITUTE(SUBSTITUTE(AB197,$ED197,$ED$2&ROW($ED197)),$EC197,$EC$2&ROW($EC197)),$EB197,$EB$2&ROW($EB197)),$EA197,$EA$2&ROW($EA197)),$DZ197,$DZ$2&ROW($DZ197)),$DY197,$DY$2&ROW($DY197)),$DX197,$DX$2&ROW($DX197)),$DW197,$DW$2&ROW($DW197)),$DV197,$DV$2&ROW($DV197)),$DU197,$DU$2&ROW($DU197)),$DT197,$DT$2&ROW($DT197)),$DS197,$DS$2&ROW($DS197)))","v":"X=0"},null,null,"{Factor:WinterCF}","{Factor:SummerCF}",{"$f":"IFERROR(INDEX($EG197:$IV197,MATCH(0,COUNTIF($DR197:DT197,$EG197:$IV197),0)),\"\")","v":"{Type of indoor unit}"},{"$f":"IFERROR(INDEX($EG197:$IV197,MATCH(0,COUNTIF($DR197:DU197,$EG197:$IV197),0)),\"\")","v":"{HSPF}"},{"$f":"IFERROR(INDEX($EG197:$IV197,MATCH(0,COUNTIF($DR197:DV197,$EG197:$IV197),0)),\"\")","v":"{Rebate Level}"},{"$f":"IFERROR(INDEX($EG197:$IV197,MATCH(0,COUNTIF($DR197:DW197,$EG197:$IV197),0)),\"\")","v":"{Measure:Quantity}"},{"$f":"IFERROR(INDEX($EG197:$IV197,MATCH(0,COUNTIF($DR197:DX197,$EG197:$IV197),0)),\"\")","v":""},{"$f":"IFERROR(INDEX($EG197:$IV197,MATCH(0,COUNTIF($DR197:DY197,$EG197:$IV197),0)),\"\")","v":""},{"$f":"IFERROR(INDEX($EG197:$IV197,MATCH(0,COUNTIF($DR197:DZ197,$EG197:$IV197),0)),\"\")","v":""},{"$f":"IFERROR(INDEX($EG197:$IV197,MATCH(0,COUNTIF($DR197:EA197,$EG197:$IV197),0)),\"\")","v":""},{"$f":"IFERROR(INDEX($EG197:$IV197,MATCH(0,COUNTIF($DR197:EB197,$EG197:$IV197),0)),\"\")","v":""},{"$f":"IFERROR(INDEX($EG197:$IV197,MATCH(0,COUNTIF($DR197:EC197,$EG197:$IV197),0)),\"\")","v":""},null,null,{"$f":"IFERROR(MID($G197,FIND(CHAR(160),SUBSTITUTE($G197,\"{\",CHAR(160),EG$1)),FIND(CHAR(160),SUBSTITUTE($G197,\"}\",CHAR(160),EG$1))-FIND(CHAR(160),SUBSTITUTE($G197,\"{\",CHAR(160),EG$1))+1),\"\")","v":""},{"$f":"IFERROR(MID($G197,FIND(CHAR(160),SUBSTITUTE($G197,\"{\",CHAR(160),EH$1)),FIND(CHAR(160),SUBSTITUTE($G197,\"}\",CHAR(160),EH$1))-FIND(CHAR(160),SUBSTITUTE($G197,\"{\",CHAR(160),EH$1))+1),\"\")","v":""},{"$f":"IFERROR(MID($G197,FIND(CHAR(160),SUBSTITUTE($G197,\"{\",CHAR(160),EI$1)),FIND(CHAR(160),SUBSTITUTE($G197,\"}\",CHAR(160),EI$1))-FIND(CHAR(160),SUBSTITUTE($G197,\"{\",CHAR(160),EI$1))+1),\"\")","v":""},{"$f":"IFERROR(MID($G197,FIND(CHAR(160),SUBSTITUTE($G197,\"{\",CHAR(160),EJ$1)),FIND(CHAR(160),SUBSTITUTE($G197,\"}\",CHAR(160),EJ$1))-FIND(CHAR(160),SUBSTITUTE($G197,\"{\",CHAR(160),EJ$1))+1),\"\")","v":""},{"$f":"IFERROR(MID($G197,FIND(CHAR(160),SUBSTITUTE($G197,\"{\",CHAR(160),EK$1)),FIND(CHAR(160),SUBSTITUTE($G197,\"}\",CHAR(160),EK$1))-FIND(CHAR(160),SUBSTITUTE($G197,\"{\",CHAR(160),EK$1))+1),\"\")","v":""},{"$f":"IFERROR(MID($G197,FIND(CHAR(160),SUBSTITUTE($G197,\"{\",CHAR(160),EL$1)),FIND(CHAR(160),SUBSTITUTE($G197,\"}\",CHAR(160),EL$1))-FIND(CHAR(160),SUBSTITUTE($G197,\"{\",CHAR(160),EL$1))+1),\"\")","v":""},{"$f":"IFERROR(MID($G197,FIND(CHAR(160),SUBSTITUTE($G197,\"{\",CHAR(160),EM$1)),FIND(CHAR(160),SUBSTITUTE($G197,\"}\",CHAR(160),EM$1))-FIND(CHAR(160),SUBSTITUTE($G197,\"{\",CHAR(160),EM$1))+1),\"\")","v":""},{"$f":"IFERROR(MID($G197,FIND(CHAR(160),SUBSTITUTE($G197,\"{\",CHAR(160),EN$1)),FIND(CHAR(160),SUBSTITUTE($G197,\"}\",CHAR(160),EN$1))-FIND(CHAR(160),SUBSTITUTE($G197,\"{\",CHAR(160),EN$1))+1),\"\")","v":""},{"$f":"IFERROR(MID($G197,FIND(CHAR(160),SUBSTITUTE($G197,\"{\",CHAR(160),EO$1)),FIND(CHAR(160),SUBSTITUTE($G197,\"}\",CHAR(160),EO$1))-FIND(CHAR(160),SUBSTITUTE($G197,\"{\",CHAR(160),EO$1))+1),\"\")","v":""},{"$f":"IFERROR(MID($G197,FIND(CHAR(160),SUBSTITUTE($G197,\"{\",CHAR(160),EP$1)),FIND(CHAR(160),SUBSTITUTE($G197,\"}\",CHAR(160),EP$1))-FIND(CHAR(160),SUBSTITUTE($G197,\"{\",CHAR(160),EP$1))+1),\"\")","v":""},{"$f":"IFERROR(MID($J197,FIND(CHAR(160),SUBSTITUTE($J197,\"{\",CHAR(160),EQ$1)),FIND(CHAR(160),SUBSTITUTE($J197,\"}\",CHAR(160),EQ$1))-FIND(CHAR(160),SUBSTITUTE($J197,\"{\",CHAR(160),EQ$1))+1),\"\")","v":"{Type of indoor unit}"},{"$f":"IFERROR(MID($J197,FIND(CHAR(160),SUBSTITUTE($J197,\"{\",CHAR(160),ER$1)),FIND(CHAR(160),SUBSTITUTE($J197,\"}\",CHAR(160),ER$1))-FIND(CHAR(160),SUBSTITUTE($J197,\"{\",CHAR(160),ER$1))+1),\"\")","v":"{HSPF}"},{"$f":"IFERROR(MID($J197,FIND(CHAR(160),SUBSTITUTE($J197,\"{\",CHAR(160),ES$1)),FIND(CHAR(160),SUBSTITUTE($J197,\"}\",CHAR(160),ES$1))-FIND(CHAR(160),SUBSTITUTE($J197,\"{\",CHAR(160),ES$1))+1),\"\")","v":"{Type of indoor unit}"},{"$f":"IFERROR(MID($J197,FIND(CHAR(160),SUBSTITUTE($J197,\"{\",CHAR(160),ET$1)),FIND(CHAR(160),SUBSTITUTE($J197,\"}\",CHAR(160),ET$1))-FIND(CHAR(160),SUBSTITUTE($J197,\"{\",CHAR(160),ET$1))+1),\"\")","v":"{HSPF}"},{"$f":"IFERROR(MID($J197,FIND(CHAR(160),SUBSTITUTE($J197,\"{\",CHAR(160),EU$1)),FIND(CHAR(160),SUBSTITUTE($J197,\"}\",CHAR(160),EU$1))-FIND(CHAR(160),SUBSTITUTE($J197,\"{\",CHAR(160),EU$1))+1),\"\")","v":"{Rebate Level}"},{"$f":"IFERROR(MID($J197,FIND(CHAR(160),SUBSTITUTE($J197,\"{\",CHAR(160),EV$1)),FIND(CHAR(160),SUBSTITUTE($J197,\"}\",CHAR(160),EV$1))-FIND(CHAR(160),SUBSTITUTE($J197,\"{\",CHAR(160),EV$1))+1),\"\")","v":"{Measure:Quantity}"},{"$f":"IFERROR(MID($J197,FIND(CHAR(160),SUBSTITUTE($J197,\"{\",CHAR(160),EW$1)),FIND(CHAR(160),SUBSTITUTE($J197,\"}\",CHAR(160),EW$1))-FIND(CHAR(160),SUBSTITUTE($J197,\"{\",CHAR(160),EW$1))+1),\"\")","v":""},{"$f":"IFERROR(MID($J197,FIND(CHAR(160),SUBSTITUTE($J197,\"{\",CHAR(160),EX$1)),FIND(CHAR(160),SUBSTITUTE($J197,\"}\",CHAR(160),EX$1))-FIND(CHAR(160),SUBSTITUTE($J197,\"{\",CHAR(160),EX$1))+1),\"\")","v":""},{"$f":"IFERROR(MID($J197,FIND(CHAR(160),SUBSTITUTE($J197,\"{\",CHAR(160),EY$1)),FIND(CHAR(160),SUBSTITUTE($J197,\"}\",CHAR(160),EY$1))-FIND(CHAR(160),SUBSTITUTE($J197,\"{\",CHAR(160),EY$1))+1),\"\")","v":""},{"$f":"IFERROR(MID($J197,FIND(CHAR(160),SUBSTITUTE($J197,\"{\",CHAR(160),EZ$1)),FIND(CHAR(160),SUBSTITUTE($J197,\"}\",CHAR(160),EZ$1))-FIND(CHAR(160),SUBSTITUTE($J197,\"{\",CHAR(160),EZ$1))+1),\"\")","v":""},{"$f":"IFERROR(MID($J197,FIND(CHAR(160),SUBSTITUTE($J197,\"{\",CHAR(160),FA$1)),FIND(CHAR(160),SUBSTITUTE($J197,\"}\",CHAR(160),FA$1))-FIND(CHAR(160),SUBSTITUTE($J197,\"{\",CHAR(160),FA$1))+1),\"\")","v":"{Type of indoor unit}"},{"$f":"IFERROR(MID($J197,FIND(CHAR(160),SUBSTITUTE($J197,\"{\",CHAR(160),FB$1)),FIND(CHAR(160),SUBSTITUTE($J197,\"}\",CHAR(160),FB$1))-FIND(CHAR(160),SUBSTITUTE($J197,\"{\",CHAR(160),FB$1))+1),\"\")","v":"{HSPF}"},{"$f":"IFERROR(MID($O197,FIND(CHAR(160),SUBSTITUTE($O197,\"{\",CHAR(160),FC$1)),FIND(CHAR(160),SUBSTITUTE($O197,\"}\",CHAR(160),FC$1))-FIND(CHAR(160),SUBSTITUTE($O197,\"{\",CHAR(160),FC$1))+1),\"\")","v":""},{"$f":"IFERROR(MID($O197,FIND(CHAR(160),SUBSTITUTE($O197,\"{\",CHAR(160),FD$1)),FIND(CHAR(160),SUBSTITUTE($O197,\"}\",CHAR(160),FD$1))-FIND(CHAR(160),SUBSTITUTE($O197,\"{\",CHAR(160),FD$1))+1),\"\")","v":""},{"$f":"IFERROR(MID($O197,FIND(CHAR(160),SUBSTITUTE($O197,\"{\",CHAR(160),FE$1)),FIND(CHAR(160),SUBSTITUTE($O197,\"}\",CHAR(160),FE$1))-FIND(CHAR(160),SUBSTITUTE($O197,\"{\",CHAR(160),FE$1))+1),\"\")","v":""},{"$f":"IFERROR(MID($O197,FIND(CHAR(160),SUBSTITUTE($O197,\"{\",CHAR(160),FF$1)),FIND(CHAR(160),SUBSTITUTE($O197,\"}\",CHAR(160),FF$1))-FIND(CHAR(160),SUBSTITUTE($O197,\"{\",CHAR(160),FF$1))+1),\"\")","v":""},{"$f":"IFERROR(MID($O197,FIND(CHAR(160),SUBSTITUTE($O197,\"{\",CHAR(160),FG$1)),FIND(CHAR(160),SUBSTITUTE($O197,\"}\",CHAR(160),FG$1))-FIND(CHAR(160),SUBSTITUTE($O197,\"{\",CHAR(160),FG$1))+1),\"\")","v":""},{"$f":"IFERROR(MID($O197,FIND(CHAR(160),SUBSTITUTE($O197,\"{\",CHAR(160),FH$1)),FIND(CHAR(160),SUBSTITUTE($O197,\"}\",CHAR(160),FH$1))-FIND(CHAR(160),SUBSTITUTE($O197,\"{\",CHAR(160),FH$1))+1),\"\")","v":""},{"$f":"IFERROR(MID($O197,FIND(CHAR(160),SUBSTITUTE($O197,\"{\",CHAR(160),FI$1)),FIND(CHAR(160),SUBSTITUTE($O197,\"}\",CHAR(160),FI$1))-FIND(CHAR(160),SUBSTITUTE($O197,\"{\",CHAR(160),FI$1))+1),\"\")","v":""},{"$f":"IFERROR(MID($O197,FIND(CHAR(160),SUBSTITUTE($O197,\"{\",CHAR(160),FJ$1)),FIND(CHAR(160),SUBSTITUTE($O197,\"}\",CHAR(160),FJ$1))-FIND(CHAR(160),SUBSTITUTE($O197,\"{\",CHAR(160),FJ$1))+1),\"\")","v":""},{"$f":"IFERROR(MID($O197,FIND(CHAR(160),SUBSTITUTE($O197,\"{\",CHAR(160),FK$1)),FIND(CHAR(160),SUBSTITUTE($O197,\"}\",CHAR(160),FK$1))-FIND(CHAR(160),SUBSTITUTE($O197,\"{\",CHAR(160),FK$1))+1),\"\")","v":""},{"$f":"IFERROR(MID($O197,FIND(CHAR(160),SUBSTITUTE($O197,\"{\",CHAR(160),FL$1)),FIND(CHAR(160),SUBSTITUTE($O197,\"}\",CHAR(160),FL$1))-FIND(CHAR(160),SUBSTITUTE($O197,\"{\",CHAR(160),FL$1))+1),\"\")","v":""},{"$f":"IFERROR(MID($R197,FIND(CHAR(160),SUBSTITUTE($R197,\"{\",CHAR(160),FM$1)),FIND(CHAR(160),SUBSTITUTE($R197,\"}\",CHAR(160),FM$1))-FIND(CHAR(160),SUBSTITUTE($R197,\"{\",CHAR(160),FM$1))+1),\"\")","v":""},{"$f":"IFERROR(MID($R197,FIND(CHAR(160),SUBSTITUTE($R197,\"{\",CHAR(160),FN$1)),FIND(CHAR(160),SUBSTITUTE($R197,\"}\",CHAR(160),FN$1))-FIND(CHAR(160),SUBSTITUTE($R197,\"{\",CHAR(160),FN$1))+1),\"\")","v":""},{"$f":"IFERROR(MID($R197,FIND(CHAR(160),SUBSTITUTE($R197,\"{\",CHAR(160),FO$1)),FIND(CHAR(160),SUBSTITUTE($R197,\"}\",CHAR(160),FO$1))-FIND(CHAR(160),SUBSTITUTE($R197,\"{\",CHAR(160),FO$1))+1),\"\")","v":""},{"$f":"IFERROR(MID($R197,FIND(CHAR(160),SUBSTITUTE($R197,\"{\",CHAR(160),FP$1)),FIND(CHAR(160),SUBSTITUTE($R197,\"}\",CHAR(160),FP$1))-FIND(CHAR(160),SUBSTITUTE($R197,\"{\",CHAR(160),FP$1))+1),\"\")","v":""},{"$f":"IFERROR(MID($R197,FIND(CHAR(160),SUBSTITUTE($R197,\"{\",CHAR(160),FQ$1)),FIND(CHAR(160),SUBSTITUTE($R197,\"}\",CHAR(160),FQ$1))-FIND(CHAR(160),SUBSTITUTE($R197,\"{\",CHAR(160),FQ$1))+1),\"\")","v":""},{"$f":"IFERROR(MID($R197,FIND(CHAR(160),SUBSTITUTE($R197,\"{\",CHAR(160),FR$1)),FIND(CHAR(160),SUBSTITUTE($R197,\"}\",CHAR(160),FR$1))-FIND(CHAR(160),SUBSTITUTE($R197,\"{\",CHAR(160),FR$1))+1),\"\")","v":""},{"$f":"IFERROR(MID($R197,FIND(CHAR(160),SUBSTITUTE($R197,\"{\",CHAR(160),FS$1)),FIND(CHAR(160),SUBSTITUTE($R197,\"}\",CHAR(160),FS$1))-FIND(CHAR(160),SUBSTITUTE($R197,\"{\",CHAR(160),FS$1))+1),\"\")","v":""},{"$f":"IFERROR(MID($R197,FIND(CHAR(160),SUBSTITUTE($R197,\"{\",CHAR(160),FT$1)),FIND(CHAR(160),SUBSTITUTE($R197,\"}\",CHAR(160),FT$1))-FIND(CHAR(160),SUBSTITUTE($R197,\"{\",CHAR(160),FT$1))+1),\"\")","v":""},{"$f":"IFERROR(MID($R197,FIND(CHAR(160),SUBSTITUTE($R197,\"{\",CHAR(160),FU$1)),FIND(CHAR(160),SUBSTITUTE($R197,\"}\",CHAR(160),FU$1))-FIND(CHAR(160),SUBSTITUTE($R197,\"{\",CHAR(160),FU$1))+1),\"\")","v":""},{"$f":"IFERROR(MID($R197,FIND(CHAR(160),SUBSTITUTE($R197,\"{\",CHAR(160),FV$1)),FIND(CHAR(160),SUBSTITUTE($R197,\"}\",CHAR(160),FV$1))-FIND(CHAR(160),SUBSTITUTE($R197,\"{\",CHAR(160),FV$1))+1),\"\")","v":""},{"$f":"IFERROR(MID($U197,FIND(CHAR(160),SUBSTITUTE($U197,\"{\",CHAR(160),FW$1)),FIND(CHAR(160),SUBSTITUTE($U197,\"}\",CHAR(160),FW$1))-FIND(CHAR(160),SUBSTITUTE($U197,\"{\",CHAR(160),FW$1))+1),\"\")","v":""},{"$f":"IFERROR(MID($U197,FIND(CHAR(160),SUBSTITUTE($U197,\"{\",CHAR(160),FX$1)),FIND(CHAR(160),SUBSTITUTE($U197,\"}\",CHAR(160),FX$1))-FIND(CHAR(160),SUBSTITUTE($U197,\"{\",CHAR(160),FX$1))+1),\"\")","v":""},{"$f":"IFERROR(MID($U197,FIND(CHAR(160),SUBSTITUTE($U197,\"{\",CHAR(160),FY$1)),FIND(CHAR(160),SUBSTITUTE($U197,\"}\",CHAR(160),FY$1))-FIND(CHAR(160),SUBSTITUTE($U197,\"{\",CHAR(160),FY$1))+1),\"\")","v":""},{"$f":"IFERROR(MID($U197,FIND(CHAR(160),SUBSTITUTE($U197,\"{\",CHAR(160),FZ$1)),FIND(CHAR(160),SUBSTITUTE($U197,\"}\",CHAR(160),FZ$1))-FIND(CHAR(160),SUBSTITUTE($U197,\"{\",CHAR(160),FZ$1))+1),\"\")","v":""},{"$f":"IFERROR(MID($U197,FIND(CHAR(160),SUBSTITUTE($U197,\"{\",CHAR(160),GA$1)),FIND(CHAR(160),SUBSTITUTE($U197,\"}\",CHAR(160),GA$1))-FIND(CHAR(160),SUBSTITUTE($U197,\"{\",CHAR(160),GA$1))+1),\"\")","v":""},{"$f":"IFERROR(MID($U197,FIND(CHAR(160),SUBSTITUTE($U197,\"{\",CHAR(160),GB$1)),FIND(CHAR(160),SUBSTITUTE($U197,\"}\",CHAR(160),GB$1))-FIND(CHAR(160),SUBSTITUTE($U197,\"{\",CHAR(160),GB$1))+1),\"\")","v":""},{"$f":"IFERROR(MID($U197,FIND(CHAR(160),SUBSTITUTE($U197,\"{\",CHAR(160),GC$1)),FIND(CHAR(160),SUBSTITUTE($U197,\"}\",CHAR(160),GC$1))-FIND(CHAR(160),SUBSTITUTE($U197,\"{\",CHAR(160),GC$1))+1),\"\")","v":""},{"$f":"IFERROR(MID($U197,FIND(CHAR(160),SUBSTITUTE($U197,\"{\",CHAR(160),GD$1)),FIND(CHAR(160),SUBSTITUTE($U197,\"}\",CHAR(160),GD$1))-FIND(CHAR(160),SUBSTITUTE($U197,\"{\",CHAR(160),GD$1))+1),\"\")","v":""},{"$f":"IFERROR(MID($U197,FIND(CHAR(160),SUBSTITUTE($U197,\"{\",CHAR(160),GE$1)),FIND(CHAR(160),SUBSTITUTE($U197,\"}\",CHAR(160),GE$1))-FIND(CHAR(160),SUBSTITUTE($U197,\"{\",CHAR(160),GE$1))+1),\"\")","v":""},{"$f":"IFERROR(MID($U197,FIND(CHAR(160),SUBSTITUTE($U197,\"{\",CHAR(160),GF$1)),FIND(CHAR(160),SUBSTITUTE($U197,\"}\",CHAR(160),GF$1))-FIND(CHAR(160),SUBSTITUTE($U197,\"{\",CHAR(160),GF$1))+1),\"\")","v":""},{"$f":"IFERROR(MID($V197,FIND(CHAR(160),SUBSTITUTE($V197,\"{\",CHAR(160),GG$1)),FIND(CHAR(160),SUBSTITUTE($V197,\"}\",CHAR(160),GG$1))-FIND(CHAR(160),SUBSTITUTE($V197,\"{\",CHAR(160),GG$1))+1),\"\")","v":""},{"$f":"IFERROR(MID($V197,FIND(CHAR(160),SUBSTITUTE($V197,\"{\",CHAR(160),GH$1)),FIND(CHAR(160),SUBSTITUTE($V197,\"}\",CHAR(160),GH$1))-FIND(CHAR(160),SUBSTITUTE($V197,\"{\",CHAR(160),GH$1))+1),\"\")","v":""},{"$f":"IFERROR(MID($V197,FIND(CHAR(160),SUBSTITUTE($V197,\"{\",CHAR(160),GI$1)),FIND(CHAR(160),SUBSTITUTE($V197,\"}\",CHAR(160),GI$1))-FIND(CHAR(160),SUBSTITUTE($V197,\"{\",CHAR(160),GI$1))+1),\"\")","v":""},{"$f":"IFERROR(MID($V197,FIND(CHAR(160),SUBSTITUTE($V197,\"{\",CHAR(160),GJ$1)),FIND(CHAR(160),SUBSTITUTE($V197,\"}\",CHAR(160),GJ$1))-FIND(CHAR(160),SUBSTITUTE($V197,\"{\",CHAR(160),GJ$1))+1),\"\")","v":""},{"$f":"IFERROR(MID($V197,FIND(CHAR(160),SUBSTITUTE($V197,\"{\",CHAR(160),GK$1)),FIND(CHAR(160),SUBSTITUTE($V197,\"}\",CHAR(160),GK$1))-FIND(CHAR(160),SUBSTITUTE($V197,\"{\",CHAR(160),GK$1))+1),\"\")","v":""},{"$f":"IFERROR(MID($V197,FIND(CHAR(160),SUBSTITUTE($V197,\"{\",CHAR(160),GL$1)),FIND(CHAR(160),SUBSTITUTE($V197,\"}\",CHAR(160),GL$1))-FIND(CHAR(160),SUBSTITUTE($V197,\"{\",CHAR(160),GL$1))+1),\"\")","v":""},{"$f":"IFERROR(MID($V197,FIND(CHAR(160),SUBSTITUTE($V197,\"{\",CHAR(160),GM$1)),FIND(CHAR(160),SUBSTITUTE($V197,\"}\",CHAR(160),GM$1))-FIND(CHAR(160),SUBSTITUTE($V197,\"{\",CHAR(160),GM$1))+1),\"\")","v":""},{"$f":"IFERROR(MID($V197,FIND(CHAR(160),SUBSTITUTE($V197,\"{\",CHAR(160),GN$1)),FIND(CHAR(160),SUBSTITUTE($V197,\"}\",CHAR(160),GN$1))-FIND(CHAR(160),SUBSTITUTE($V197,\"{\",CHAR(160),GN$1))+1),\"\")","v":""},{"$f":"IFERROR(MID($V197,FIND(CHAR(160),SUBSTITUTE($V197,\"{\",CHAR(160),GO$1)),FIND(CHAR(160),SUBSTITUTE($V197,\"}\",CHAR(160),GO$1))-FIND(CHAR(160),SUBSTITUTE($V197,\"{\",CHAR(160),GO$1))+1),\"\")","v":""},{"$f":"IFERROR(MID($V197,FIND(CHAR(160),SUBSTITUTE($V197,\"{\",CHAR(160),GP$1)),FIND(CHAR(160),SUBSTITUTE($V197,\"}\",CHAR(160),GP$1))-FIND(CHAR(160),SUBSTITUTE($V197,\"{\",CHAR(160),GP$1))+1),\"\")","v":""},{"$f":"IFERROR(MID($W197,FIND(CHAR(160),SUBSTITUTE($W197,\"{\",CHAR(160),GQ$1)),FIND(CHAR(160),SUBSTITUTE($W197,\"}\",CHAR(160),GQ$1))-FIND(CHAR(160),SUBSTITUTE($W197,\"{\",CHAR(160),GQ$1))+1),\"\")","v":""},{"$f":"IFERROR(MID($W197,FIND(CHAR(160),SUBSTITUTE($W197,\"{\",CHAR(160),GR$1)),FIND(CHAR(160),SUBSTITUTE($W197,\"}\",CHAR(160),GR$1))-FIND(CHAR(160),SUBSTITUTE($W197,\"{\",CHAR(160),GR$1))+1),\"\")","v":""},{"$f":"IFERROR(MID($W197,FIND(CHAR(160),SUBSTITUTE($W197,\"{\",CHAR(160),GS$1)),FIND(CHAR(160),SUBSTITUTE($W197,\"}\",CHAR(160),GS$1))-FIND(CHAR(160),SUBSTITUTE($W197,\"{\",CHAR(160),GS$1))+1),\"\")","v":""},{"$f":"IFERROR(MID($W197,FIND(CHAR(160),SUBSTITUTE($W197,\"{\",CHAR(160),GT$1)),FIND(CHAR(160),SUBSTITUTE($W197,\"}\",CHAR(160),GT$1))-FIND(CHAR(160),SUBSTITUTE($W197,\"{\",CHAR(160),GT$1))+1),\"\")","v":""},{"$f":"IFERROR(MID($W197,FIND(CHAR(160),SUBSTITUTE($W197,\"{\",CHAR(160),GU$1)),FIND(CHAR(160),SUBSTITUTE($W197,\"}\",CHAR(160),GU$1))-FIND(CHAR(160),SUBSTITUTE($W197,\"{\",CHAR(160),GU$1))+1),\"\")","v":""},{"$f":"IFERROR(MID($W197,FIND(CHAR(160),SUBSTITUTE($W197,\"{\",CHAR(160),GV$1)),FIND(CHAR(160),SUBSTITUTE($W197,\"}\",CHAR(160),GV$1))-FIND(CHAR(160),SUBSTITUTE($W197,\"{\",CHAR(160),GV$1))+1),\"\")","v":""},{"$f":"IFERROR(MID($W197,FIND(CHAR(160),SUBSTITUTE($W197,\"{\",CHAR(160),GW$1)),FIND(CHAR(160),SUBSTITUTE($W197,\"}\",CHAR(160),GW$1))-FIND(CHAR(160),SUBSTITUTE($W197,\"{\",CHAR(160),GW$1))+1),\"\")","v":""},{"$f":"IFERROR(MID($W197,FIND(CHAR(160),SUBSTITUTE($W197,\"{\",CHAR(160),GX$1)),FIND(CHAR(160),SUBSTITUTE($W197,\"}\",CHAR(160),GX$1))-FIND(CHAR(160),SUBSTITUTE($W197,\"{\",CHAR(160),GX$1))+1),\"\")","v":""},{"$f":"IFERROR(MID($W197,FIND(CHAR(160),SUBSTITUTE($W197,\"{\",CHAR(160),GY$1)),FIND(CHAR(160),SUBSTITUTE($W197,\"}\",CHAR(160),GY$1))-FIND(CHAR(160),SUBSTITUTE($W197,\"{\",CHAR(160),GY$1))+1),\"\")","v":""},{"$f":"IFERROR(MID($W197,FIND(CHAR(160),SUBSTITUTE($W197,\"{\",CHAR(160),GZ$1)),FIND(CHAR(160),SUBSTITUTE($W197,\"}\",CHAR(160),GZ$1))-FIND(CHAR(160),SUBSTITUTE($W197,\"{\",CHAR(160),GZ$1))+1),\"\")","v":""},{"$f":"IFERROR(MID($X197,FIND(CHAR(160),SUBSTITUTE($X197,\"{\",CHAR(160),HA$1)),FIND(CHAR(160),SUBSTITUTE($X197,\"}\",CHAR(160),HA$1))-FIND(CHAR(160),SUBSTITUTE($X197,\"{\",CHAR(160),HA$1))+1),\"\")","v":""},{"$f":"IFERROR(MID($X197,FIND(CHAR(160),SUBSTITUTE($X197,\"{\",CHAR(160),HB$1)),FIND(CHAR(160),SUBSTITUTE($X197,\"}\",CHAR(160),HB$1))-FIND(CHAR(160),SUBSTITUTE($X197,\"{\",CHAR(160),HB$1))+1),\"\")","v":""},{"$f":"IFERROR(MID($X197,FIND(CHAR(160),SUBSTITUTE($X197,\"{\",CHAR(160),HC$1)),FIND(CHAR(160),SUBSTITUTE($X197,\"}\",CHAR(160),HC$1))-FIND(CHAR(160),SUBSTITUTE($X197,\"{\",CHAR(160),HC$1))+1),\"\")","v":""},{"$f":"IFERROR(MID($X197,FIND(CHAR(160),SUBSTITUTE($X197,\"{\",CHAR(160),HD$1)),FIND(CHAR(160),SUBSTITUTE($X197,\"}\",CHAR(160),HD$1))-FIND(CHAR(160),SUBSTITUTE($X197,\"{\",CHAR(160),HD$1))+1),\"\")","v":""},{"$f":"IFERROR(MID($X197,FIND(CHAR(160),SUBSTITUTE($X197,\"{\",CHAR(160),HE$1)),FIND(CHAR(160),SUBSTITUTE($X197,\"}\",CHAR(160),HE$1))-FIND(CHAR(160),SUBSTITUTE($X197,\"{\",CHAR(160),HE$1))+1),\"\")","v":""},{"$f":"IFERROR(MID($X197,FIND(CHAR(160),SUBSTITUTE($X197,\"{\",CHAR(160),HF$1)),FIND(CHAR(160),SUBSTITUTE($X197,\"}\",CHAR(160),HF$1))-FIND(CHAR(160),SUBSTITUTE($X197,\"{\",CHAR(160),HF$1))+1),\"\")","v":""},{"$f":"IFERROR(MID($X197,FIND(CHAR(160),SUBSTITUTE($X197,\"{\",CHAR(160),HG$1)),FIND(CHAR(160),SUBSTITUTE($X197,\"}\",CHAR(160),HG$1))-FIND(CHAR(160),SUBSTITUTE($X197,\"{\",CHAR(160),HG$1))+1),\"\")","v":""},{"$f":"IFERROR(MID($X197,FIND(CHAR(160),SUBSTITUTE($X197,\"{\",CHAR(160),HH$1)),FIND(CHAR(160),SUBSTITUTE($X197,\"}\",CHAR(160),HH$1))-FIND(CHAR(160),SUBSTITUTE($X197,\"{\",CHAR(160),HH$1))+1),\"\")","v":""},{"$f":"IFERROR(MID($X197,FIND(CHAR(160),SUBSTITUTE($X197,\"{\",CHAR(160),HI$1)),FIND(CHAR(160),SUBSTITUTE($X197,\"}\",CHAR(160),HI$1))-FIND(CHAR(160),SUBSTITUTE($X197,\"{\",CHAR(160),HI$1))+1),\"\")","v":""},{"$f":"IFERROR(MID($X197,FIND(CHAR(160),SUBSTITUTE($X197,\"{\",CHAR(160),HJ$1)),FIND(CHAR(160),SUBSTITUTE($X197,\"}\",CHAR(160),HJ$1))-FIND(CHAR(160),SUBSTITUTE($X197,\"{\",CHAR(160),HJ$1))+1),\"\")","v":""},{"$f":"IFERROR(MID($Y197,FIND(CHAR(160),SUBSTITUTE($Y197,\"{\",CHAR(160),HK$1)),FIND(CHAR(160),SUBSTITUTE($Y197,\"}\",CHAR(160),HK$1))-FIND(CHAR(160),SUBSTITUTE($Y197,\"{\",CHAR(160),HK$1))+1),\"\")","v":""},{"$f":"IFERROR(MID($Y197,FIND(CHAR(160),SUBSTITUTE($Y197,\"{\",CHAR(160),HL$1)),FIND(CHAR(160),SUBSTITUTE($Y197,\"}\",CHAR(160),HL$1))-FIND(CHAR(160),SUBSTITUTE($Y197,\"{\",CHAR(160),HL$1))+1),\"\")","v":""},{"$f":"IFERROR(MID($Y197,FIND(CHAR(160),SUBSTITUTE($Y197,\"{\",CHAR(160),HM$1)),FIND(CHAR(160),SUBSTITUTE($Y197,\"}\",CHAR(160),HM$1))-FIND(CHAR(160),SUBSTITUTE($Y197,\"{\",CHAR(160),HM$1))+1),\"\")","v":""},{"$f":"IFERROR(MID($Y197,FIND(CHAR(160),SUBSTITUTE($Y197,\"{\",CHAR(160),HN$1)),FIND(CHAR(160),SUBSTITUTE($Y197,\"}\",CHAR(160),HN$1))-FIND(CHAR(160),SUBSTITUTE($Y197,\"{\",CHAR(160),HN$1))+1),\"\")","v":""},{"$f":"IFERROR(MID($Y197,FIND(CHAR(160),SUBSTITUTE($Y197,\"{\",CHAR(160),HO$1)),FIND(CHAR(160),SUBSTITUTE($Y197,\"}\",CHAR(160),HO$1))-FIND(CHAR(160),SUBSTITUTE($Y197,\"{\",CHAR(160),HO$1))+1),\"\")","v":""},{"$f":"IFERROR(MID($Y197,FIND(CHAR(160),SUBSTITUTE($Y197,\"{\",CHAR(160),HP$1)),FIND(CHAR(160),SUBSTITUTE($Y197,\"}\",CHAR(160),HP$1))-FIND(CHAR(160),SUBSTITUTE($Y197,\"{\",CHAR(160),HP$1))+1),\"\")","v":""},{"$f":"IFERROR(MID($Y197,FIND(CHAR(160),SUBSTITUTE($Y197,\"{\",CHAR(160),HQ$1)),FIND(CHAR(160),SUBSTITUTE($Y197,\"}\",CHAR(160),HQ$1))-FIND(CHAR(160),SUBSTITUTE($Y197,\"{\",CHAR(160),HQ$1))+1),\"\")","v":""},{"$f":"IFERROR(MID($Y197,FIND(CHAR(160),SUBSTITUTE($Y197,\"{\",CHAR(160),HR$1)),FIND(CHAR(160),SUBSTITUTE($Y197,\"}\",CHAR(160),HR$1))-FIND(CHAR(160),SUBSTITUTE($Y197,\"{\",CHAR(160),HR$1))+1),\"\")","v":""},{"$f":"IFERROR(MID($Y197,FIND(CHAR(160),SUBSTITUTE($Y197,\"{\",CHAR(160),HS$1)),FIND(CHAR(160),SUBSTITUTE($Y197,\"}\",CHAR(160),HS$1))-FIND(CHAR(160),SUBSTITUTE($Y197,\"{\",CHAR(160),HS$1))+1),\"\")","v":""},{"$f":"IFERROR(MID($Y197,FIND(CHAR(160),SUBSTITUTE($Y197,\"{\",CHAR(160),HT$1)),FIND(CHAR(160),SUBSTITUTE($Y197,\"}\",CHAR(160),HT$1))-FIND(CHAR(160),SUBSTITUTE($Y197,\"{\",CHAR(160),HT$1))+1),\"\")","v":""},{"$f":"IFERROR(MID($Z197,FIND(CHAR(160),SUBSTITUTE($Z197,\"{\",CHAR(160),HU$1)),FIND(CHAR(160),SUBSTITUTE($Z197,\"}\",CHAR(160),HU$1))-FIND(CHAR(160),SUBSTITUTE($Z197,\"{\",CHAR(160),HU$1))+1),\"\")","v":""},{"$f":"IFERROR(MID($Z197,FIND(CHAR(160),SUBSTITUTE($Z197,\"{\",CHAR(160),HV$1)),FIND(CHAR(160),SUBSTITUTE($Z197,\"}\",CHAR(160),HV$1))-FIND(CHAR(160),SUBSTITUTE($Z197,\"{\",CHAR(160),HV$1))+1),\"\")","v":""},{"$f":"IFERROR(MID($Z197,FIND(CHAR(160),SUBSTITUTE($Z197,\"{\",CHAR(160),HW$1)),FIND(CHAR(160),SUBSTITUTE($Z197,\"}\",CHAR(160),HW$1))-FIND(CHAR(160),SUBSTITUTE($Z197,\"{\",CHAR(160),HW$1))+1),\"\")","v":""},{"$f":"IFERROR(MID($Z197,FIND(CHAR(160),SUBSTITUTE($Z197,\"{\",CHAR(160),HX$1)),FIND(CHAR(160),SUBSTITUTE($Z197,\"}\",CHAR(160),HX$1))-FIND(CHAR(160),SUBSTITUTE($Z197,\"{\",CHAR(160),HX$1))+1),\"\")","v":""},{"$f":"IFERROR(MID($Z197,FIND(CHAR(160),SUBSTITUTE($Z197,\"{\",CHAR(160),HY$1)),FIND(CHAR(160),SUBSTITUTE($Z197,\"}\",CHAR(160),HY$1))-FIND(CHAR(160),SUBSTITUTE($Z197,\"{\",CHAR(160),HY$1))+1),\"\")","v":""},{"$f":"IFERROR(MID($Z197,FIND(CHAR(160),SUBSTITUTE($Z197,\"{\",CHAR(160),HZ$1)),FIND(CHAR(160),SUBSTITUTE($Z197,\"}\",CHAR(160),HZ$1))-FIND(CHAR(160),SUBSTITUTE($Z197,\"{\",CHAR(160),HZ$1))+1),\"\")","v":""},{"$f":"IFERROR(MID($Z197,FIND(CHAR(160),SUBSTITUTE($Z197,\"{\",CHAR(160),IA$1)),FIND(CHAR(160),SUBSTITUTE($Z197,\"}\",CHAR(160),IA$1))-FIND(CHAR(160),SUBSTITUTE($Z197,\"{\",CHAR(160),IA$1))+1),\"\")","v":""},{"$f":"IFERROR(MID($Z197,FIND(CHAR(160),SUBSTITUTE($Z197,\"{\",CHAR(160),IB$1)),FIND(CHAR(160),SUBSTITUTE($Z197,\"}\",CHAR(160),IB$1))-FIND(CHAR(160),SUBSTITUTE($Z197,\"{\",CHAR(160),IB$1))+1),\"\")","v":""},{"$f":"IFERROR(MID($Z197,FIND(CHAR(160),SUBSTITUTE($Z197,\"{\",CHAR(160),IC$1)),FIND(CHAR(160),SUBSTITUTE($Z197,\"}\",CHAR(160),IC$1))-FIND(CHAR(160),SUBSTITUTE($Z197,\"{\",CHAR(160),IC$1))+1),\"\")","v":""},{"$f":"IFERROR(MID($Z197,FIND(CHAR(160),SUBSTITUTE($Z197,\"{\",CHAR(160),ID$1)),FIND(CHAR(160),SUBSTITUTE($Z197,\"}\",CHAR(160),ID$1))-FIND(CHAR(160),SUBSTITUTE($Z197,\"{\",CHAR(160),ID$1))+1),\"\")","v":""},{"$f":"IFERROR(MID($AA197,FIND(CHAR(160),SUBSTITUTE($AA197,\"{\",CHAR(160),IE$1)),FIND(CHAR(160),SUBSTITUTE($AA197,\"}\",CHAR(160),IE$1))-FIND(CHAR(160),SUBSTITUTE($AA197,\"{\",CHAR(160),IE$1))+1),\"\")","v":""},{"$f":"IFERROR(MID($AA197,FIND(CHAR(160),SUBSTITUTE($AA197,\"{\",CHAR(160),IF$1)),FIND(CHAR(160),SUBSTITUTE($AA197,\"}\",CHAR(160),IF$1))-FIND(CHAR(160),SUBSTITUTE($AA197,\"{\",CHAR(160),IF$1))+1),\"\")","v":""},{"$f":"IFERROR(MID($AA197,FIND(CHAR(160),SUBSTITUTE($AA197,\"{\",CHAR(160),IG$1)),FIND(CHAR(160),SUBSTITUTE($AA197,\"}\",CHAR(160),IG$1))-FIND(CHAR(160),SUBSTITUTE($AA197,\"{\",CHAR(160),IG$1))+1),\"\")","v":""},{"$f":"IFERROR(MID($AA197,FIND(CHAR(160),SUBSTITUTE($AA197,\"{\",CHAR(160),IH$1)),FIND(CHAR(160),SUBSTITUTE($AA197,\"}\",CHAR(160),IH$1))-FIND(CHAR(160),SUBSTITUTE($AA197,\"{\",CHAR(160),IH$1))+1),\"\")","v":""},{"$f":"IFERROR(MID($AA197,FIND(CHAR(160),SUBSTITUTE($AA197,\"{\",CHAR(160),II$1)),FIND(CHAR(160),SUBSTITUTE($AA197,\"}\",CHAR(160),II$1))-FIND(CHAR(160),SUBSTITUTE($AA197,\"{\",CHAR(160),II$1))+1),\"\")","v":""},{"$f":"IFERROR(MID($AA197,FIND(CHAR(160),SUBSTITUTE($AA197,\"{\",CHAR(160),IJ$1)),FIND(CHAR(160),SUBSTITUTE($AA197,\"}\",CHAR(160),IJ$1))-FIND(CHAR(160),SUBSTITUTE($AA197,\"{\",CHAR(160),IJ$1))+1),\"\")","v":""},{"$f":"IFERROR(MID($AA197,FIND(CHAR(160),SUBSTITUTE($AA197,\"{\",CHAR(160),IK$1)),FIND(CHAR(160),SUBSTITUTE($AA197,\"}\",CHAR(160),IK$1))-FIND(CHAR(160),SUBSTITUTE($AA197,\"{\",CHAR(160),IK$1))+1),\"\")","v":""},{"$f":"IFERROR(MID($AA197,FIND(CHAR(160),SUBSTITUTE($AA197,\"{\",CHAR(160),IL$1)),FIND(CHAR(160),SUBSTITUTE($AA197,\"}\",CHAR(160),IL$1))-FIND(CHAR(160),SUBSTITUTE($AA197,\"{\",CHAR(160),IL$1))+1),\"\")","v":""},{"$f":"IFERROR(MID($AA197,FIND(CHAR(160),SUBSTITUTE($AA197,\"{\",CHAR(160),IM$1)),FIND(CHAR(160),SUBSTITUTE($AA197,\"}\",CHAR(160),IM$1))-FIND(CHAR(160),SUBSTITUTE($AA197,\"{\",CHAR(160),IM$1))+1),\"\")","v":""},{"$f":"IFERROR(MID($AA197,FIND(CHAR(160),SUBSTITUTE($AA197,\"{\",CHAR(160),IN$1)),FIND(CHAR(160),SUBSTITUTE($AA197,\"}\",CHAR(160),IN$1))-FIND(CHAR(160),SUBSTITUTE($AA197,\"{\",CHAR(160),IN$1))+1),\"\")","v":""},{"$f":"IFERROR(MID($AB197,FIND(CHAR(160),SUBSTITUTE($AB197,\"{\",CHAR(160),IO$1)),FIND(CHAR(160),SUBSTITUTE($AB197,\"}\",CHAR(160),IO$1))-FIND(CHAR(160),SUBSTITUTE($AB197,\"{\",CHAR(160),IO$1))+1),\"\")","v":""},{"$f":"IFERROR(MID($AB197,FIND(CHAR(160),SUBSTITUTE($AB197,\"{\",CHAR(160),IP$1)),FIND(CHAR(160),SUBSTITUTE($AB197,\"}\",CHAR(160),IP$1))-FIND(CHAR(160),SUBSTITUTE($AB197,\"{\",CHAR(160),IP$1))+1),\"\")","v":""},{"$f":"IFERROR(MID($AB197,FIND(CHAR(160),SUBSTITUTE($AB197,\"{\",CHAR(160),IQ$1)),FIND(CHAR(160),SUBSTITUTE($AB197,\"}\",CHAR(160),IQ$1))-FIND(CHAR(160),SUBSTITUTE($AB197,\"{\",CHAR(160),IQ$1))+1),\"\")","v":""},{"$f":"IFERROR(MID($AB197,FIND(CHAR(160),SUBSTITUTE($AB197,\"{\",CHAR(160),IR$1)),FIND(CHAR(160),SUBSTITUTE($AB197,\"}\",CHAR(160),IR$1))-FIND(CHAR(160),SUBSTITUTE($AB197,\"{\",CHAR(160),IR$1))+1),\"\")","v":""},{"$f":"IFERROR(MID($AB197,FIND(CHAR(160),SUBSTITUTE($AB197,\"{\",CHAR(160),IS$1)),FIND(CHAR(160),SUBSTITUTE($AB197,\"}\",CHAR(160),IS$1))-FIND(CHAR(160),SUBSTITUTE($AB197,\"{\",CHAR(160),IS$1))+1),\"\")","v":""},{"$f":"IFERROR(MID($AB197,FIND(CHAR(160),SUBSTITUTE($AB197,\"{\",CHAR(160),IT$1)),FIND(CHAR(160),SUBSTITUTE($AB197,\"}\",CHAR(160),IT$1))-FIND(CHAR(160),SUBSTITUTE($AB197,\"{\",CHAR(160),IT$1))+1),\"\")","v":""},{"$f":"IFERROR(MID($AB197,FIND(CHAR(160),SUBSTITUTE($AB197,\"{\",CHAR(160),IU$1)),FIND(CHAR(160),SUBSTITUTE($AB197,\"}\",CHAR(160),IU$1))-FIND(CHAR(160),SUBSTITUTE($AB197,\"{\",CHAR(160),IU$1))+1),\"\")","v":""},{"$f":"IFERROR(MID($AB197,FIND(CHAR(160),SUBSTITUTE($AB197,\"{\",CHAR(160),IV$1)),FIND(CHAR(160),SUBSTITUTE($AB197,\"}\",CHAR(160),IV$1))-FIND(CHAR(160),SUBSTITUTE($AB197,\"{\",CHAR(160),IV$1))+1),\"\")","v":""},{"$f":"IFERROR(MID($AB197,FIND(CHAR(160),SUBSTITUTE($AB197,\"{\",CHAR(160),IW$1)),FIND(CHAR(160),SUBSTITUTE($AB197,\"}\",CHAR(160),IW$1))-FIND(CHAR(160),SUBSTITUTE($AB197,\"{\",CHAR(160),IW$1))+1),\"\")","v":""},{"$f":"IFERROR(MID($AB197,FIND(CHAR(160),SUBSTITUTE($AB197,\"{\",CHAR(160),IX$1)),FIND(CHAR(160),SUBSTITUTE($AB197,\"}\",CHAR(160),IX$1))-FIND(CHAR(160),SUBSTITUTE($AB197,\"{\",CHAR(160),IX$1))+1),\"\")","v":""},null,{"$f":"10-COUNTIF(DU197:ED197,\"\")","v":4}]
["Home Energy Savings Program - Electric","Heat Pump Single Zone 1st Unit Tier 2","HPSING1T2","2021-07-01","2022-06-30","Per Measure",1696.48,0,"Calculated","if({HSPF}<12.5,0,if({Rebate Level}=1,$1000.00,$800.00))*{Measure:Quantity}",0,"2021-07-01","2022-06-30","Per Measure",-2641,null,null,null,null,null,-0.55300000000000005,3.1E-2,20.93,6.98,15,0.7,8.7200000000000006,0,"2021-07-01","2022-06-30",18,1,1,0.378,0.52900000000000003,4.8000000000000001E-2,4.3999999999999997E-2,1,1,1,0.42,0.11,null,{"$f":"DU198","v":"{HSPF}"},12.5,{"$f":"DV198","v":"{Rebate Level}"},1,{"$f":"DW198","v":"{Measure:Quantity}"},1,{"$f":"DX198","v":""},null,{"$f":"DY198","v":""},null,{"$f":"DZ198","v":""},null,{"$f":"EA198","v":""},null,{"$f":"EB198","v":""},null,{"$f":"EC198","v":""},null,{"$f":"ED198","v":""},null,{"$f":"-2641","v":-2641},0,0,0,0,0,{"$f":"-0.553","v":-0.55300000000000005},{"$f":"0.031","v":3.1E-2},{"$f":"20.93","v":20.93},{"$f":"6.98","v":6.98},{"$f":"15","v":15},{"$f":"0.7","v":0.7},{"$f":"8.72","v":8.7200000000000006},{"$f":"0","v":0},null,"Res","Default DR",{"$f":"Benefits(BL198,BR198,BS198,BT198,BU198,BV198,BW198,BX198,BY198,BZ198,AE198,AH198,AI198,AJ198,AK198,AL198,AM198,AN198,AO198,AP198,CA198,CB198)","v":-4153.7732214607586},-2339.247431947932,464.82561075277766,7246.8434627188963,394.46993271005726,4729.8242893501456,2689.3743785223492,0,0,{"$f":"SUMPRODUCT(CC198:CK198,--(CC198:CK198>0))","v":15525.337674054226},{"$f":"-SUMPRODUCT(CC198:CK198,--(CC198:CK198<0))","v":6493.0206534086901},null,{"$f":"1696.48","v":1696.48},null,null,{"$f":"CM198+CO198","v":8189.5006534086897},{"$f":"IF(NetOrGross=\"Net\",(1-AO198+AP198),1)","v":1},{"$f":"(SUMPRODUCT(CC198:CJ198,--(CC198:CJ198>0))+CN198)*CS198/((-SUMPRODUCT(CC198:CJ198,--(CC198:CJ198<0))+MAX(CO198,CV198)+CP198+CQ198)*CS198+IF(FRIncentives=\"Yes\",CV198*(1-CS198),0))","v":1.8957612107390411},1,{"$f":"IF(AS198<12.5,0,IF(AU198=1,1000,800))*AW198","v":1000},null,"Electric","y",1,{"$f":"IF(F198=\"Manual Entry\",\"Manual\",IF(G198=\"\",0,\"X=\"&SUBSTITUTE(SUBSTITUTE(SUBSTITUTE(SUBSTITUTE(SUBSTITUTE(SUBSTITUTE(SUBSTITUTE(SUBSTITUTE(SUBSTITUTE(SUBSTITUTE(SUBSTITUTE(SUBSTITUTE(G198,$ED198,$ED$2&ROW($ED198)),$EC198,$EC$2&ROW($EC198)),$EB198,$EB$2&ROW($EB198)),$EA198,$EA$2&ROW($EA198)),$DZ198,$DZ$2&ROW($DZ198)),$DY198,$DY$2&ROW($DY198)),$DX198,$DX$2&ROW($DX198)),$DW198,$DW$2&ROW($DW198)),$DV198,$DV$2&ROW($DV198)),$DU198,$DU$2&ROW($DU198)),$DT198,$DT$2&ROW($DT198)),$DS198,$DS$2&ROW($DS198))))","v":"X=1696.48"},{"$f":"IF(I198=\"Manual Entry\",\"Manual\",IF(J198=\"\",0,\"X=\"&SUBSTITUTE(SUBSTITUTE(SUBSTITUTE(SUBSTITUTE(SUBSTITUTE(SUBSTITUTE(SUBSTITUTE(SUBSTITUTE(SUBSTITUTE(SUBSTITUTE(SUBSTITUTE(SUBSTITUTE(J198,$ED198,$ED$2&ROW($ED198)),$EC198,$EC$2&ROW($EC198)),$EB198,$EB$2&ROW($EB198)),$EA198,$EA$2&ROW($EA198)),$DZ198,$DZ$2&ROW($DZ198)),$DY198,$DY$2&ROW($DY198)),$DX198,$DX$2&ROW($DX198)),$DW198,$DW$2&ROW($DW198)),$DV198,$DV$2&ROW($DV198)),$DU198,$DU$2&ROW($DU198)),$DT198,$DT$2&ROW($DT198)),$DS198,$DS$2&ROW($DS198))))","v":"X=if(AS198<12.5,0,if(AU198=1,$1000.00,$800.00))*AW198"},{"$f":"IF(O198=\"\",0,\"X=\"&SUBSTITUTE(SUBSTITUTE(SUBSTITUTE(SUBSTITUTE(SUBSTITUTE(SUBSTITUTE(SUBSTITUTE(SUBSTITUTE(SUBSTITUTE(SUBSTITUTE(SUBSTITUTE(SUBSTITUTE(O198,$ED198,$ED$2&ROW($ED198)),$EC198,$EC$2&ROW($EC198)),$EB198,$EB$2&ROW($EB198)),$EA198,$EA$2&ROW($EA198)),$DZ198,$DZ$2&ROW($DZ198)),$DY198,$DY$2&ROW($DY198)),$DX198,$DX$2&ROW($DX198)),$DW198,$DW$2&ROW($DW198)),$DV198,$DV$2&ROW($DV198)),$DU198,$DU$2&ROW($DU198)),$DT198,$DT$2&ROW($DT198)),$DS198,$DS$2&ROW($DS198)))","v":"X=-2641"},{"$f":"IF(P198=\"\",0,\"X=\"&SUBSTITUTE(SUBSTITUTE(SUBSTITUTE(SUBSTITUTE(SUBSTITUTE(SUBSTITUTE(SUBSTITUTE(SUBSTITUTE(SUBSTITUTE(SUBSTITUTE(SUBSTITUTE(SUBSTITUTE(P198,$ED198,$ED$2&ROW($ED198)),$EC198,$EC$2&ROW($EC198)),$EB198,$EB$2&ROW($EB198)),$EA198,$EA$2&ROW($EA198)),$DZ198,$DZ$2&ROW($DZ198)),$DY198,$DY$2&ROW($DY198)),$DX198,$DX$2&ROW($DX198)),$DW198,$DW$2&ROW($DW198)),$DV198,$DV$2&ROW($DV198)),$DU198,$DU$2&ROW($DU198)),$DT198,$DT$2&ROW($DT198)),$DS198,$DS$2&ROW($DS198)))","v":0},{"$f":"IF(Q198=\"\",0,\"X=\"&SUBSTITUTE(SUBSTITUTE(SUBSTITUTE(SUBSTITUTE(SUBSTITUTE(SUBSTITUTE(SUBSTITUTE(SUBSTITUTE(SUBSTITUTE(SUBSTITUTE(SUBSTITUTE(SUBSTITUTE(Q198,$ED198,$ED$2&ROW($ED198)),$EC198,$EC$2&ROW($EC198)),$EB198,$EB$2&ROW($EB198)),$EA198,$EA$2&ROW($EA198)),$DZ198,$DZ$2&ROW($DZ198)),$DY198,$DY$2&ROW($DY198)),$DX198,$DX$2&ROW($DX198)),$DW198,$DW$2&ROW($DW198)),$DV198,$DV$2&ROW($DV198)),$DU198,$DU$2&ROW($DU198)),$DT198,$DT$2&ROW($DT198)),$DS198,$DS$2&ROW($DS198)))","v":0},{"$f":"IF(R198=\"\",0,\"X=\"&SUBSTITUTE(SUBSTITUTE(SUBSTITUTE(SUBSTITUTE(SUBSTITUTE(SUBSTITUTE(SUBSTITUTE(SUBSTITUTE(SUBSTITUTE(SUBSTITUTE(SUBSTITUTE(SUBSTITUTE(R198,$ED198,$ED$2&ROW($ED198)),$EC198,$EC$2&ROW($EC198)),$EB198,$EB$2&ROW($EB198)),$EA198,$EA$2&ROW($EA198)),$DZ198,$DZ$2&ROW($DZ198)),$DY198,$DY$2&ROW($DY198)),$DX198,$DX$2&ROW($DX198)),$DW198,$DW$2&ROW($DW198)),$DV198,$DV$2&ROW($DV198)),$DU198,$DU$2&ROW($DU198)),$DT198,$DT$2&ROW($DT198)),$DS198,$DS$2&ROW($DS198)))","v":0},{"$f":"IF(S198=\"\",0,\"X=\"&SUBSTITUTE(SUBSTITUTE(SUBSTITUTE(SUBSTITUTE(SUBSTITUTE(SUBSTITUTE(SUBSTITUTE(SUBSTITUTE(SUBSTITUTE(SUBSTITUTE(SUBSTITUTE(SUBSTITUTE(S198,$ED198,$ED$2&ROW($ED198)),$EC198,$EC$2&ROW($EC198)),$EB198,$EB$2&ROW($EB198)),$EA198,$EA$2&ROW($EA198)),$DZ198,$DZ$2&ROW($DZ198)),$DY198,$DY$2&ROW($DY198)),$DX198,$DX$2&ROW($DX198)),$DW198,$DW$2&ROW($DW198)),$DV198,$DV$2&ROW($DV198)),$DU198,$DU$2&ROW($DU198)),$DT198,$DT$2&ROW($DT198)),$DS198,$DS$2&ROW($DS198)))","v":0},{"$f":"IF(T198=\"\",0,\"X=\"&SUBSTITUTE(SUBSTITUTE(SUBSTITUTE(SUBSTITUTE(SUBSTITUTE(SUBSTITUTE(SUBSTITUTE(SUBSTITUTE(SUBSTITUTE(SUBSTITUTE(SUBSTITUTE(SUBSTITUTE(T198,$ED198,$ED$2&ROW($ED198)),$EC198,$EC$2&ROW($EC198)),$EB198,$EB$2&ROW($EB198)),$EA198,$EA$2&ROW($EA198)),$DZ198,$DZ$2&ROW($DZ198)),$DY198,$DY$2&ROW($DY198)),$DX198,$DX$2&ROW($DX198)),$DW198,$DW$2&ROW($DW198)),$DV198,$DV$2&ROW($DV198)),$DU198,$DU$2&ROW($DU198)),$DT198,$DT$2&ROW($DT198)),$DS198,$DS$2&ROW($DS198)))","v":0},{"$f":"IF(U198=\"\",0,\"X=\"&SUBSTITUTE(SUBSTITUTE(SUBSTITUTE(SUBSTITUTE(SUBSTITUTE(SUBSTITUTE(SUBSTITUTE(SUBSTITUTE(SUBSTITUTE(SUBSTITUTE(SUBSTITUTE(SUBSTITUTE(U198,$ED198,$ED$2&ROW($ED198)),$EC198,$EC$2&ROW($EC198)),$EB198,$EB$2&ROW($EB198)),$EA198,$EA$2&ROW($EA198)),$DZ198,$DZ$2&ROW($DZ198)),$DY198,$DY$2&ROW($DY198)),$DX198,$DX$2&ROW($DX198)),$DW198,$DW$2&ROW($DW198)),$DV198,$DV$2&ROW($DV198)),$DU198,$DU$2&ROW($DU198)),$DT198,$DT$2&ROW($DT198)),$DS198,$DS$2&ROW($DS198)))","v":"X=-0.553"},{"$f":"IF(V198=\"\",0,\"X=\"&SUBSTITUTE(SUBSTITUTE(SUBSTITUTE(SUBSTITUTE(SUBSTITUTE(SUBSTITUTE(SUBSTITUTE(SUBSTITUTE(SUBSTITUTE(SUBSTITUTE(SUBSTITUTE(SUBSTITUTE(V198,$ED198,$ED$2&ROW($ED198)),$EC198,$EC$2&ROW($EC198)),$EB198,$EB$2&ROW($EB198)),$EA198,$EA$2&ROW($EA198)),$DZ198,$DZ$2&ROW($DZ198)),$DY198,$DY$2&ROW($DY198)),$DX198,$DX$2&ROW($DX198)),$DW198,$DW$2&ROW($DW198)),$DV198,$DV$2&ROW($DV198)),$DU198,$DU$2&ROW($DU198)),$DT198,$DT$2&ROW($DT198)),$DS198,$DS$2&ROW($DS198)))","v":"X=0.031"},{"$f":"IF(W198=\"\",0,\"X=\"&SUBSTITUTE(SUBSTITUTE(SUBSTITUTE(SUBSTITUTE(SUBSTITUTE(SUBSTITUTE(SUBSTITUTE(SUBSTITUTE(SUBSTITUTE(SUBSTITUTE(SUBSTITUTE(SUBSTITUTE(W198,$ED198,$ED$2&ROW($ED198)),$EC198,$EC$2&ROW($EC198)),$EB198,$EB$2&ROW($EB198)),$EA198,$EA$2&ROW($EA198)),$DZ198,$DZ$2&ROW($DZ198)),$DY198,$DY$2&ROW($DY198)),$DX198,$DX$2&ROW($DX198)),$DW198,$DW$2&ROW($DW198)),$DV198,$DV$2&ROW($DV198)),$DU198,$DU$2&ROW($DU198)),$DT198,$DT$2&ROW($DT198)),$DS198,$DS$2&ROW($DS198)))","v":"X=20.93"},{"$f":"IF(X198=\"\",0,\"X=\"&SUBSTITUTE(SUBSTITUTE(SUBSTITUTE(SUBSTITUTE(SUBSTITUTE(SUBSTITUTE(SUBSTITUTE(SUBSTITUTE(SUBSTITUTE(SUBSTITUTE(SUBSTITUTE(SUBSTITUTE(X198,$ED198,$ED$2&ROW($ED198)),$EC198,$EC$2&ROW($EC198)),$EB198,$EB$2&ROW($EB198)),$EA198,$EA$2&ROW($EA198)),$DZ198,$DZ$2&ROW($DZ198)),$DY198,$DY$2&ROW($DY198)),$DX198,$DX$2&ROW($DX198)),$DW198,$DW$2&ROW($DW198)),$DV198,$DV$2&ROW($DV198)),$DU198,$DU$2&ROW($DU198)),$DT198,$DT$2&ROW($DT198)),$DS198,$DS$2&ROW($DS198)))","v":"X=6.98"},{"$f":"IF(Y198=\"\",0,\"X=\"&SUBSTITUTE(SUBSTITUTE(SUBSTITUTE(SUBSTITUTE(SUBSTITUTE(SUBSTITUTE(SUBSTITUTE(SUBSTITUTE(SUBSTITUTE(SUBSTITUTE(SUBSTITUTE(SUBSTITUTE(Y198,$ED198,$ED$2&ROW($ED198)),$EC198,$EC$2&ROW($EC198)),$EB198,$EB$2&ROW($EB198)),$EA198,$EA$2&ROW($EA198)),$DZ198,$DZ$2&ROW($DZ198)),$DY198,$DY$2&ROW($DY198)),$DX198,$DX$2&ROW($DX198)),$DW198,$DW$2&ROW($DW198)),$DV198,$DV$2&ROW($DV198)),$DU198,$DU$2&ROW($DU198)),$DT198,$DT$2&ROW($DT198)),$DS198,$DS$2&ROW($DS198)))","v":"X=15"},{"$f":"IF(Z198=\"\",0,\"X=\"&SUBSTITUTE(SUBSTITUTE(SUBSTITUTE(SUBSTITUTE(SUBSTITUTE(SUBSTITUTE(SUBSTITUTE(SUBSTITUTE(SUBSTITUTE(SUBSTITUTE(SUBSTITUTE(SUBSTITUTE(Z198,$ED198,$ED$2&ROW($ED198)),$EC198,$EC$2&ROW($EC198)),$EB198,$EB$2&ROW($EB198)),$EA198,$EA$2&ROW($EA198)),$DZ198,$DZ$2&ROW($DZ198)),$DY198,$DY$2&ROW($DY198)),$DX198,$DX$2&ROW($DX198)),$DW198,$DW$2&ROW($DW198)),$DV198,$DV$2&ROW($DV198)),$DU198,$DU$2&ROW($DU198)),$DT198,$DT$2&ROW($DT198)),$DS198,$DS$2&ROW($DS198)))","v":"X=0.7"},{"$f":"IF(AA198=\"\",0,\"X=\"&SUBSTITUTE(SUBSTITUTE(SUBSTITUTE(SUBSTITUTE(SUBSTITUTE(SUBSTITUTE(SUBSTITUTE(SUBSTITUTE(SUBSTITUTE(SUBSTITUTE(SUBSTITUTE(SUBSTITUTE(AA198,$ED198,$ED$2&ROW($ED198)),$EC198,$EC$2&ROW($EC198)),$EB198,$EB$2&ROW($EB198)),$EA198,$EA$2&ROW($EA198)),$DZ198,$DZ$2&ROW($DZ198)),$DY198,$DY$2&ROW($DY198)),$DX198,$DX$2&ROW($DX198)),$DW198,$DW$2&ROW($DW198)),$DV198,$DV$2&ROW($DV198)),$DU198,$DU$2&ROW($DU198)),$DT198,$DT$2&ROW($DT198)),$DS198,$DS$2&ROW($DS198)))","v":"X=8.72"},{"$f":"IF(AB198=\"\",0,\"X=\"&SUBSTITUTE(SUBSTITUTE(SUBSTITUTE(SUBSTITUTE(SUBSTITUTE(SUBSTITUTE(SUBSTITUTE(SUBSTITUTE(SUBSTITUTE(SUBSTITUTE(SUBSTITUTE(SUBSTITUTE(AB198,$ED198,$ED$2&ROW($ED198)),$EC198,$EC$2&ROW($EC198)),$EB198,$EB$2&ROW($EB198)),$EA198,$EA$2&ROW($EA198)),$DZ198,$DZ$2&ROW($DZ198)),$DY198,$DY$2&ROW($DY198)),$DX198,$DX$2&ROW($DX198)),$DW198,$DW$2&ROW($DW198)),$DV198,$DV$2&ROW($DV198)),$DU198,$DU$2&ROW($DU198)),$DT198,$DT$2&ROW($DT198)),$DS198,$DS$2&ROW($DS198)))","v":"X=0"},null,null,"{Factor:WinterCF}","{Factor:SummerCF}",{"$f":"IFERROR(INDEX($EG198:$IV198,MATCH(0,COUNTIF($DR198:DT198,$EG198:$IV198),0)),\"\")","v":"{HSPF}"},{"$f":"IFERROR(INDEX($EG198:$IV198,MATCH(0,COUNTIF($DR198:DU198,$EG198:$IV198),0)),\"\")","v":"{Rebate Level}"},{"$f":"IFERROR(INDEX($EG198:$IV198,MATCH(0,COUNTIF($DR198:DV198,$EG198:$IV198),0)),\"\")","v":"{Measure:Quantity}"},{"$f":"IFERROR(INDEX($EG198:$IV198,MATCH(0,COUNTIF($DR198:DW198,$EG198:$IV198),0)),\"\")","v":""},{"$f":"IFERROR(INDEX($EG198:$IV198,MATCH(0,COUNTIF($DR198:DX198,$EG198:$IV198),0)),\"\")","v":""},{"$f":"IFERROR(INDEX($EG198:$IV198,MATCH(0,COUNTIF($DR198:DY198,$EG198:$IV198),0)),\"\")","v":""},{"$f":"IFERROR(INDEX($EG198:$IV198,MATCH(0,COUNTIF($DR198:DZ198,$EG198:$IV198),0)),\"\")","v":""},{"$f":"IFERROR(INDEX($EG198:$IV198,MATCH(0,COUNTIF($DR198:EA198,$EG198:$IV198),0)),\"\")","v":""},{"$f":"IFERROR(INDEX($EG198:$IV198,MATCH(0,COUNTIF($DR198:EB198,$EG198:$IV198),0)),\"\")","v":""},{"$f":"IFERROR(INDEX($EG198:$IV198,MATCH(0,COUNTIF($DR198:EC198,$EG198:$IV198),0)),\"\")","v":""},null,null,{"$f":"IFERROR(MID($G198,FIND(CHAR(160),SUBSTITUTE($G198,\"{\",CHAR(160),EG$1)),FIND(CHAR(160),SUBSTITUTE($G198,\"}\",CHAR(160),EG$1))-FIND(CHAR(160),SUBSTITUTE($G198,\"{\",CHAR(160),EG$1))+1),\"\")","v":""},{"$f":"IFERROR(MID($G198,FIND(CHAR(160),SUBSTITUTE($G198,\"{\",CHAR(160),EH$1)),FIND(CHAR(160),SUBSTITUTE($G198,\"}\",CHAR(160),EH$1))-FIND(CHAR(160),SUBSTITUTE($G198,\"{\",CHAR(160),EH$1))+1),\"\")","v":""},{"$f":"IFERROR(MID($G198,FIND(CHAR(160),SUBSTITUTE($G198,\"{\",CHAR(160),EI$1)),FIND(CHAR(160),SUBSTITUTE($G198,\"}\",CHAR(160),EI$1))-FIND(CHAR(160),SUBSTITUTE($G198,\"{\",CHAR(160),EI$1))+1),\"\")","v":""},{"$f":"IFERROR(MID($G198,FIND(CHAR(160),SUBSTITUTE($G198,\"{\",CHAR(160),EJ$1)),FIND(CHAR(160),SUBSTITUTE($G198,\"}\",CHAR(160),EJ$1))-FIND(CHAR(160),SUBSTITUTE($G198,\"{\",CHAR(160),EJ$1))+1),\"\")","v":""},{"$f":"IFERROR(MID($G198,FIND(CHAR(160),SUBSTITUTE($G198,\"{\",CHAR(160),EK$1)),FIND(CHAR(160),SUBSTITUTE($G198,\"}\",CHAR(160),EK$1))-FIND(CHAR(160),SUBSTITUTE($G198,\"{\",CHAR(160),EK$1))+1),\"\")","v":""},{"$f":"IFERROR(MID($G198,FIND(CHAR(160),SUBSTITUTE($G198,\"{\",CHAR(160),EL$1)),FIND(CHAR(160),SUBSTITUTE($G198,\"}\",CHAR(160),EL$1))-FIND(CHAR(160),SUBSTITUTE($G198,\"{\",CHAR(160),EL$1))+1),\"\")","v":""},{"$f":"IFERROR(MID($G198,FIND(CHAR(160),SUBSTITUTE($G198,\"{\",CHAR(160),EM$1)),FIND(CHAR(160),SUBSTITUTE($G198,\"}\",CHAR(160),EM$1))-FIND(CHAR(160),SUBSTITUTE($G198,\"{\",CHAR(160),EM$1))+1),\"\")","v":""},{"$f":"IFERROR(MID($G198,FIND(CHAR(160),SUBSTITUTE($G198,\"{\",CHAR(160),EN$1)),FIND(CHAR(160),SUBSTITUTE($G198,\"}\",CHAR(160),EN$1))-FIND(CHAR(160),SUBSTITUTE($G198,\"{\",CHAR(160),EN$1))+1),\"\")","v":""},{"$f":"IFERROR(MID($G198,FIND(CHAR(160),SUBSTITUTE($G198,\"{\",CHAR(160),EO$1)),FIND(CHAR(160),SUBSTITUTE($G198,\"}\",CHAR(160),EO$1))-FIND(CHAR(160),SUBSTITUTE($G198,\"{\",CHAR(160),EO$1))+1),\"\")","v":""},{"$f":"IFERROR(MID($G198,FIND(CHAR(160),SUBSTITUTE($G198,\"{\",CHAR(160),EP$1)),FIND(CHAR(160),SUBSTITUTE($G198,\"}\",CHAR(160),EP$1))-FIND(CHAR(160),SUBSTITUTE($G198,\"{\",CHAR(160),EP$1))+1),\"\")","v":""},{"$f":"IFERROR(MID($J198,FIND(CHAR(160),SUBSTITUTE($J198,\"{\",CHAR(160),EQ$1)),FIND(CHAR(160),SUBSTITUTE($J198,\"}\",CHAR(160),EQ$1))-FIND(CHAR(160),SUBSTITUTE($J198,\"{\",CHAR(160),EQ$1))+1),\"\")","v":"{HSPF}"},{"$f":"IFERROR(MID($J198,FIND(CHAR(160),SUBSTITUTE($J198,\"{\",CHAR(160),ER$1)),FIND(CHAR(160),SUBSTITUTE($J198,\"}\",CHAR(160),ER$1))-FIND(CHAR(160),SUBSTITUTE($J198,\"{\",CHAR(160),ER$1))+1),\"\")","v":"{Rebate Level}"},{"$f":"IFERROR(MID($J198,FIND(CHAR(160),SUBSTITUTE($J198,\"{\",CHAR(160),ES$1)),FIND(CHAR(160),SUBSTITUTE($J198,\"}\",CHAR(160),ES$1))-FIND(CHAR(160),SUBSTITUTE($J198,\"{\",CHAR(160),ES$1))+1),\"\")","v":"{Measure:Quantity}"},{"$f":"IFERROR(MID($J198,FIND(CHAR(160),SUBSTITUTE($J198,\"{\",CHAR(160),ET$1)),FIND(CHAR(160),SUBSTITUTE($J198,\"}\",CHAR(160),ET$1))-FIND(CHAR(160),SUBSTITUTE($J198,\"{\",CHAR(160),ET$1))+1),\"\")","v":""},{"$f":"IFERROR(MID($J198,FIND(CHAR(160),SUBSTITUTE($J198,\"{\",CHAR(160),EU$1)),FIND(CHAR(160),SUBSTITUTE($J198,\"}\",CHAR(160),EU$1))-FIND(CHAR(160),SUBSTITUTE($J198,\"{\",CHAR(160),EU$1))+1),\"\")","v":""},{"$f":"IFERROR(MID($J198,FIND(CHAR(160),SUBSTITUTE($J198,\"{\",CHAR(160),EV$1)),FIND(CHAR(160),SUBSTITUTE($J198,\"}\",CHAR(160),EV$1))-FIND(CHAR(160),SUBSTITUTE($J198,\"{\",CHAR(160),EV$1))+1),\"\")","v":""},{"$f":"IFERROR(MID($J198,FIND(CHAR(160),SUBSTITUTE($J198,\"{\",CHAR(160),EW$1)),FIND(CHAR(160),SUBSTITUTE($J198,\"}\",CHAR(160),EW$1))-FIND(CHAR(160),SUBSTITUTE($J198,\"{\",CHAR(160),EW$1))+1),\"\")","v":""},{"$f":"IFERROR(MID($J198,FIND(CHAR(160),SUBSTITUTE($J198,\"{\",CHAR(160),EX$1)),FIND(CHAR(160),SUBSTITUTE($J198,\"}\",CHAR(160),EX$1))-FIND(CHAR(160),SUBSTITUTE($J198,\"{\",CHAR(160),EX$1))+1),\"\")","v":""},{"$f":"IFERROR(MID($J198,FIND(CHAR(160),SUBSTITUTE($J198,\"{\",CHAR(160),EY$1)),FIND(CHAR(160),SUBSTITUTE($J198,\"}\",CHAR(160),EY$1))-FIND(CHAR(160),SUBSTITUTE($J198,\"{\",CHAR(160),EY$1))+1),\"\")","v":""},{"$f":"IFERROR(MID($J198,FIND(CHAR(160),SUBSTITUTE($J198,\"{\",CHAR(160),EZ$1)),FIND(CHAR(160),SUBSTITUTE($J198,\"}\",CHAR(160),EZ$1))-FIND(CHAR(160),SUBSTITUTE($J198,\"{\",CHAR(160),EZ$1))+1),\"\")","v":""},{"$f":"IFERROR(MID($J198,FIND(CHAR(160),SUBSTITUTE($J198,\"{\",CHAR(160),FA$1)),FIND(CHAR(160),SUBSTITUTE($J198,\"}\",CHAR(160),FA$1))-FIND(CHAR(160),SUBSTITUTE($J198,\"{\",CHAR(160),FA$1))+1),\"\")","v":"{HSPF}"},{"$f":"IFERROR(MID($J198,FIND(CHAR(160),SUBSTITUTE($J198,\"{\",CHAR(160),FB$1)),FIND(CHAR(160),SUBSTITUTE($J198,\"}\",CHAR(160),FB$1))-FIND(CHAR(160),SUBSTITUTE($J198,\"{\",CHAR(160),FB$1))+1),\"\")","v":"{Rebate Level}"},{"$f":"IFERROR(MID($O198,FIND(CHAR(160),SUBSTITUTE($O198,\"{\",CHAR(160),FC$1)),FIND(CHAR(160),SUBSTITUTE($O198,\"}\",CHAR(160),FC$1))-FIND(CHAR(160),SUBSTITUTE($O198,\"{\",CHAR(160),FC$1))+1),\"\")","v":""},{"$f":"IFERROR(MID($O198,FIND(CHAR(160),SUBSTITUTE($O198,\"{\",CHAR(160),FD$1)),FIND(CHAR(160),SUBSTITUTE($O198,\"}\",CHAR(160),FD$1))-FIND(CHAR(160),SUBSTITUTE($O198,\"{\",CHAR(160),FD$1))+1),\"\")","v":""},{"$f":"IFERROR(MID($O198,FIND(CHAR(160),SUBSTITUTE($O198,\"{\",CHAR(160),FE$1)),FIND(CHAR(160),SUBSTITUTE($O198,\"}\",CHAR(160),FE$1))-FIND(CHAR(160),SUBSTITUTE($O198,\"{\",CHAR(160),FE$1))+1),\"\")","v":""},{"$f":"IFERROR(MID($O198,FIND(CHAR(160),SUBSTITUTE($O198,\"{\",CHAR(160),FF$1)),FIND(CHAR(160),SUBSTITUTE($O198,\"}\",CHAR(160),FF$1))-FIND(CHAR(160),SUBSTITUTE($O198,\"{\",CHAR(160),FF$1))+1),\"\")","v":""},{"$f":"IFERROR(MID($O198,FIND(CHAR(160),SUBSTITUTE($O198,\"{\",CHAR(160),FG$1)),FIND(CHAR(160),SUBSTITUTE($O198,\"}\",CHAR(160),FG$1))-FIND(CHAR(160),SUBSTITUTE($O198,\"{\",CHAR(160),FG$1))+1),\"\")","v":""},{"$f":"IFERROR(MID($O198,FIND(CHAR(160),SUBSTITUTE($O198,\"{\",CHAR(160),FH$1)),FIND(CHAR(160),SUBSTITUTE($O198,\"}\",CHAR(160),FH$1))-FIND(CHAR(160),SUBSTITUTE($O198,\"{\",CHAR(160),FH$1))+1),\"\")","v":""},{"$f":"IFERROR(MID($O198,FIND(CHAR(160),SUBSTITUTE($O198,\"{\",CHAR(160),FI$1)),FIND(CHAR(160),SUBSTITUTE($O198,\"}\",CHAR(160),FI$1))-FIND(CHAR(160),SUBSTITUTE($O198,\"{\",CHAR(160),FI$1))+1),\"\")","v":""},{"$f":"IFERROR(MID($O198,FIND(CHAR(160),SUBSTITUTE($O198,\"{\",CHAR(160),FJ$1)),FIND(CHAR(160),SUBSTITUTE($O198,\"}\",CHAR(160),FJ$1))-FIND(CHAR(160),SUBSTITUTE($O198,\"{\",CHAR(160),FJ$1))+1),\"\")","v":""},{"$f":"IFERROR(MID($O198,FIND(CHAR(160),SUBSTITUTE($O198,\"{\",CHAR(160),FK$1)),FIND(CHAR(160),SUBSTITUTE($O198,\"}\",CHAR(160),FK$1))-FIND(CHAR(160),SUBSTITUTE($O198,\"{\",CHAR(160),FK$1))+1),\"\")","v":""},{"$f":"IFERROR(MID($O198,FIND(CHAR(160),SUBSTITUTE($O198,\"{\",CHAR(160),FL$1)),FIND(CHAR(160),SUBSTITUTE($O198,\"}\",CHAR(160),FL$1))-FIND(CHAR(160),SUBSTITUTE($O198,\"{\",CHAR(160),FL$1))+1),\"\")","v":""},{"$f":"IFERROR(MID($R198,FIND(CHAR(160),SUBSTITUTE($R198,\"{\",CHAR(160),FM$1)),FIND(CHAR(160),SUBSTITUTE($R198,\"}\",CHAR(160),FM$1))-FIND(CHAR(160),SUBSTITUTE($R198,\"{\",CHAR(160),FM$1))+1),\"\")","v":""},{"$f":"IFERROR(MID($R198,FIND(CHAR(160),SUBSTITUTE($R198,\"{\",CHAR(160),FN$1)),FIND(CHAR(160),SUBSTITUTE($R198,\"}\",CHAR(160),FN$1))-FIND(CHAR(160),SUBSTITUTE($R198,\"{\",CHAR(160),FN$1))+1),\"\")","v":""},{"$f":"IFERROR(MID($R198,FIND(CHAR(160),SUBSTITUTE($R198,\"{\",CHAR(160),FO$1)),FIND(CHAR(160),SUBSTITUTE($R198,\"}\",CHAR(160),FO$1))-FIND(CHAR(160),SUBSTITUTE($R198,\"{\",CHAR(160),FO$1))+1),\"\")","v":""},{"$f":"IFERROR(MID($R198,FIND(CHAR(160),SUBSTITUTE($R198,\"{\",CHAR(160),FP$1)),FIND(CHAR(160),SUBSTITUTE($R198,\"}\",CHAR(160),FP$1))-FIND(CHAR(160),SUBSTITUTE($R198,\"{\",CHAR(160),FP$1))+1),\"\")","v":""},{"$f":"IFERROR(MID($R198,FIND(CHAR(160),SUBSTITUTE($R198,\"{\",CHAR(160),FQ$1)),FIND(CHAR(160),SUBSTITUTE($R198,\"}\",CHAR(160),FQ$1))-FIND(CHAR(160),SUBSTITUTE($R198,\"{\",CHAR(160),FQ$1))+1),\"\")","v":""},{"$f":"IFERROR(MID($R198,FIND(CHAR(160),SUBSTITUTE($R198,\"{\",CHAR(160),FR$1)),FIND(CHAR(160),SUBSTITUTE($R198,\"}\",CHAR(160),FR$1))-FIND(CHAR(160),SUBSTITUTE($R198,\"{\",CHAR(160),FR$1))+1),\"\")","v":""},{"$f":"IFERROR(MID($R198,FIND(CHAR(160),SUBSTITUTE($R198,\"{\",CHAR(160),FS$1)),FIND(CHAR(160),SUBSTITUTE($R198,\"}\",CHAR(160),FS$1))-FIND(CHAR(160),SUBSTITUTE($R198,\"{\",CHAR(160),FS$1))+1),\"\")","v":""},{"$f":"IFERROR(MID($R198,FIND(CHAR(160),SUBSTITUTE($R198,\"{\",CHAR(160),FT$1)),FIND(CHAR(160),SUBSTITUTE($R198,\"}\",CHAR(160),FT$1))-FIND(CHAR(160),SUBSTITUTE($R198,\"{\",CHAR(160),FT$1))+1),\"\")","v":""},{"$f":"IFERROR(MID($R198,FIND(CHAR(160),SUBSTITUTE($R198,\"{\",CHAR(160),FU$1)),FIND(CHAR(160),SUBSTITUTE($R198,\"}\",CHAR(160),FU$1))-FIND(CHAR(160),SUBSTITUTE($R198,\"{\",CHAR(160),FU$1))+1),\"\")","v":""},{"$f":"IFERROR(MID($R198,FIND(CHAR(160),SUBSTITUTE($R198,\"{\",CHAR(160),FV$1)),FIND(CHAR(160),SUBSTITUTE($R198,\"}\",CHAR(160),FV$1))-FIND(CHAR(160),SUBSTITUTE($R198,\"{\",CHAR(160),FV$1))+1),\"\")","v":""},{"$f":"IFERROR(MID($U198,FIND(CHAR(160),SUBSTITUTE($U198,\"{\",CHAR(160),FW$1)),FIND(CHAR(160),SUBSTITUTE($U198,\"}\",CHAR(160),FW$1))-FIND(CHAR(160),SUBSTITUTE($U198,\"{\",CHAR(160),FW$1))+1),\"\")","v":""},{"$f":"IFERROR(MID($U198,FIND(CHAR(160),SUBSTITUTE($U198,\"{\",CHAR(160),FX$1)),FIND(CHAR(160),SUBSTITUTE($U198,\"}\",CHAR(160),FX$1))-FIND(CHAR(160),SUBSTITUTE($U198,\"{\",CHAR(160),FX$1))+1),\"\")","v":""},{"$f":"IFERROR(MID($U198,FIND(CHAR(160),SUBSTITUTE($U198,\"{\",CHAR(160),FY$1)),FIND(CHAR(160),SUBSTITUTE($U198,\"}\",CHAR(160),FY$1))-FIND(CHAR(160),SUBSTITUTE($U198,\"{\",CHAR(160),FY$1))+1),\"\")","v":""},{"$f":"IFERROR(MID($U198,FIND(CHAR(160),SUBSTITUTE($U198,\"{\",CHAR(160),FZ$1)),FIND(CHAR(160),SUBSTITUTE($U198,\"}\",CHAR(160),FZ$1))-FIND(CHAR(160),SUBSTITUTE($U198,\"{\",CHAR(160),FZ$1))+1),\"\")","v":""},{"$f":"IFERROR(MID($U198,FIND(CHAR(160),SUBSTITUTE($U198,\"{\",CHAR(160),GA$1)),FIND(CHAR(160),SUBSTITUTE($U198,\"}\",CHAR(160),GA$1))-FIND(CHAR(160),SUBSTITUTE($U198,\"{\",CHAR(160),GA$1))+1),\"\")","v":""},{"$f":"IFERROR(MID($U198,FIND(CHAR(160),SUBSTITUTE($U198,\"{\",CHAR(160),GB$1)),FIND(CHAR(160),SUBSTITUTE($U198,\"}\",CHAR(160),GB$1))-FIND(CHAR(160),SUBSTITUTE($U198,\"{\",CHAR(160),GB$1))+1),\"\")","v":""},{"$f":"IFERROR(MID($U198,FIND(CHAR(160),SUBSTITUTE($U198,\"{\",CHAR(160),GC$1)),FIND(CHAR(160),SUBSTITUTE($U198,\"}\",CHAR(160),GC$1))-FIND(CHAR(160),SUBSTITUTE($U198,\"{\",CHAR(160),GC$1))+1),\"\")","v":""},{"$f":"IFERROR(MID($U198,FIND(CHAR(160),SUBSTITUTE($U198,\"{\",CHAR(160),GD$1)),FIND(CHAR(160),SUBSTITUTE($U198,\"}\",CHAR(160),GD$1))-FIND(CHAR(160),SUBSTITUTE($U198,\"{\",CHAR(160),GD$1))+1),\"\")","v":""},{"$f":"IFERROR(MID($U198,FIND(CHAR(160),SUBSTITUTE($U198,\"{\",CHAR(160),GE$1)),FIND(CHAR(160),SUBSTITUTE($U198,\"}\",CHAR(160),GE$1))-FIND(CHAR(160),SUBSTITUTE($U198,\"{\",CHAR(160),GE$1))+1),\"\")","v":""},{"$f":"IFERROR(MID($U198,FIND(CHAR(160),SUBSTITUTE($U198,\"{\",CHAR(160),GF$1)),FIND(CHAR(160),SUBSTITUTE($U198,\"}\",CHAR(160),GF$1))-FIND(CHAR(160),SUBSTITUTE($U198,\"{\",CHAR(160),GF$1))+1),\"\")","v":""},{"$f":"IFERROR(MID($V198,FIND(CHAR(160),SUBSTITUTE($V198,\"{\",CHAR(160),GG$1)),FIND(CHAR(160),SUBSTITUTE($V198,\"}\",CHAR(160),GG$1))-FIND(CHAR(160),SUBSTITUTE($V198,\"{\",CHAR(160),GG$1))+1),\"\")","v":""},{"$f":"IFERROR(MID($V198,FIND(CHAR(160),SUBSTITUTE($V198,\"{\",CHAR(160),GH$1)),FIND(CHAR(160),SUBSTITUTE($V198,\"}\",CHAR(160),GH$1))-FIND(CHAR(160),SUBSTITUTE($V198,\"{\",CHAR(160),GH$1))+1),\"\")","v":""},{"$f":"IFERROR(MID($V198,FIND(CHAR(160),SUBSTITUTE($V198,\"{\",CHAR(160),GI$1)),FIND(CHAR(160),SUBSTITUTE($V198,\"}\",CHAR(160),GI$1))-FIND(CHAR(160),SUBSTITUTE($V198,\"{\",CHAR(160),GI$1))+1),\"\")","v":""},{"$f":"IFERROR(MID($V198,FIND(CHAR(160),SUBSTITUTE($V198,\"{\",CHAR(160),GJ$1)),FIND(CHAR(160),SUBSTITUTE($V198,\"}\",CHAR(160),GJ$1))-FIND(CHAR(160),SUBSTITUTE($V198,\"{\",CHAR(160),GJ$1))+1),\"\")","v":""},{"$f":"IFERROR(MID($V198,FIND(CHAR(160),SUBSTITUTE($V198,\"{\",CHAR(160),GK$1)),FIND(CHAR(160),SUBSTITUTE($V198,\"}\",CHAR(160),GK$1))-FIND(CHAR(160),SUBSTITUTE($V198,\"{\",CHAR(160),GK$1))+1),\"\")","v":""},{"$f":"IFERROR(MID($V198,FIND(CHAR(160),SUBSTITUTE($V198,\"{\",CHAR(160),GL$1)),FIND(CHAR(160),SUBSTITUTE($V198,\"}\",CHAR(160),GL$1))-FIND(CHAR(160),SUBSTITUTE($V198,\"{\",CHAR(160),GL$1))+1),\"\")","v":""},{"$f":"IFERROR(MID($V198,FIND(CHAR(160),SUBSTITUTE($V198,\"{\",CHAR(160),GM$1)),FIND(CHAR(160),SUBSTITUTE($V198,\"}\",CHAR(160),GM$1))-FIND(CHAR(160),SUBSTITUTE($V198,\"{\",CHAR(160),GM$1))+1),\"\")","v":""},{"$f":"IFERROR(MID($V198,FIND(CHAR(160),SUBSTITUTE($V198,\"{\",CHAR(160),GN$1)),FIND(CHAR(160),SUBSTITUTE($V198,\"}\",CHAR(160),GN$1))-FIND(CHAR(160),SUBSTITUTE($V198,\"{\",CHAR(160),GN$1))+1),\"\")","v":""},{"$f":"IFERROR(MID($V198,FIND(CHAR(160),SUBSTITUTE($V198,\"{\",CHAR(160),GO$1)),FIND(CHAR(160),SUBSTITUTE($V198,\"}\",CHAR(160),GO$1))-FIND(CHAR(160),SUBSTITUTE($V198,\"{\",CHAR(160),GO$1))+1),\"\")","v":""},{"$f":"IFERROR(MID($V198,FIND(CHAR(160),SUBSTITUTE($V198,\"{\",CHAR(160),GP$1)),FIND(CHAR(160),SUBSTITUTE($V198,\"}\",CHAR(160),GP$1))-FIND(CHAR(160),SUBSTITUTE($V198,\"{\",CHAR(160),GP$1))+1),\"\")","v":""},{"$f":"IFERROR(MID($W198,FIND(CHAR(160),SUBSTITUTE($W198,\"{\",CHAR(160),GQ$1)),FIND(CHAR(160),SUBSTITUTE($W198,\"}\",CHAR(160),GQ$1))-FIND(CHAR(160),SUBSTITUTE($W198,\"{\",CHAR(160),GQ$1))+1),\"\")","v":""},{"$f":"IFERROR(MID($W198,FIND(CHAR(160),SUBSTITUTE($W198,\"{\",CHAR(160),GR$1)),FIND(CHAR(160),SUBSTITUTE($W198,\"}\",CHAR(160),GR$1))-FIND(CHAR(160),SUBSTITUTE($W198,\"{\",CHAR(160),GR$1))+1),\"\")","v":""},{"$f":"IFERROR(MID($W198,FIND(CHAR(160),SUBSTITUTE($W198,\"{\",CHAR(160),GS$1)),FIND(CHAR(160),SUBSTITUTE($W198,\"}\",CHAR(160),GS$1))-FIND(CHAR(160),SUBSTITUTE($W198,\"{\",CHAR(160),GS$1))+1),\"\")","v":""},{"$f":"IFERROR(MID($W198,FIND(CHAR(160),SUBSTITUTE($W198,\"{\",CHAR(160),GT$1)),FIND(CHAR(160),SUBSTITUTE($W198,\"}\",CHAR(160),GT$1))-FIND(CHAR(160),SUBSTITUTE($W198,\"{\",CHAR(160),GT$1))+1),\"\")","v":""},{"$f":"IFERROR(MID($W198,FIND(CHAR(160),SUBSTITUTE($W198,\"{\",CHAR(160),GU$1)),FIND(CHAR(160),SUBSTITUTE($W198,\"}\",CHAR(160),GU$1))-FIND(CHAR(160),SUBSTITUTE($W198,\"{\",CHAR(160),GU$1))+1),\"\")","v":""},{"$f":"IFERROR(MID($W198,FIND(CHAR(160),SUBSTITUTE($W198,\"{\",CHAR(160),GV$1)),FIND(CHAR(160),SUBSTITUTE($W198,\"}\",CHAR(160),GV$1))-FIND(CHAR(160),SUBSTITUTE($W198,\"{\",CHAR(160),GV$1))+1),\"\")","v":""},{"$f":"IFERROR(MID($W198,FIND(CHAR(160),SUBSTITUTE($W198,\"{\",CHAR(160),GW$1)),FIND(CHAR(160),SUBSTITUTE($W198,\"}\",CHAR(160),GW$1))-FIND(CHAR(160),SUBSTITUTE($W198,\"{\",CHAR(160),GW$1))+1),\"\")","v":""},{"$f":"IFERROR(MID($W198,FIND(CHAR(160),SUBSTITUTE($W198,\"{\",CHAR(160),GX$1)),FIND(CHAR(160),SUBSTITUTE($W198,\"}\",CHAR(160),GX$1))-FIND(CHAR(160),SUBSTITUTE($W198,\"{\",CHAR(160),GX$1))+1),\"\")","v":""},{"$f":"IFERROR(MID($W198,FIND(CHAR(160),SUBSTITUTE($W198,\"{\",CHAR(160),GY$1)),FIND(CHAR(160),SUBSTITUTE($W198,\"}\",CHAR(160),GY$1))-FIND(CHAR(160),SUBSTITUTE($W198,\"{\",CHAR(160),GY$1))+1),\"\")","v":""},{"$f":"IFERROR(MID($W198,FIND(CHAR(160),SUBSTITUTE($W198,\"{\",CHAR(160),GZ$1)),FIND(CHAR(160),SUBSTITUTE($W198,\"}\",CHAR(160),GZ$1))-FIND(CHAR(160),SUBSTITUTE($W198,\"{\",CHAR(160),GZ$1))+1),\"\")","v":""},{"$f":"IFERROR(MID($X198,FIND(CHAR(160),SUBSTITUTE($X198,\"{\",CHAR(160),HA$1)),FIND(CHAR(160),SUBSTITUTE($X198,\"}\",CHAR(160),HA$1))-FIND(CHAR(160),SUBSTITUTE($X198,\"{\",CHAR(160),HA$1))+1),\"\")","v":""},{"$f":"IFERROR(MID($X198,FIND(CHAR(160),SUBSTITUTE($X198,\"{\",CHAR(160),HB$1)),FIND(CHAR(160),SUBSTITUTE($X198,\"}\",CHAR(160),HB$1))-FIND(CHAR(160),SUBSTITUTE($X198,\"{\",CHAR(160),HB$1))+1),\"\")","v":""},{"$f":"IFERROR(MID($X198,FIND(CHAR(160),SUBSTITUTE($X198,\"{\",CHAR(160),HC$1)),FIND(CHAR(160),SUBSTITUTE($X198,\"}\",CHAR(160),HC$1))-FIND(CHAR(160),SUBSTITUTE($X198,\"{\",CHAR(160),HC$1))+1),\"\")","v":""},{"$f":"IFERROR(MID($X198,FIND(CHAR(160),SUBSTITUTE($X198,\"{\",CHAR(160),HD$1)),FIND(CHAR(160),SUBSTITUTE($X198,\"}\",CHAR(160),HD$1))-FIND(CHAR(160),SUBSTITUTE($X198,\"{\",CHAR(160),HD$1))+1),\"\")","v":""},{"$f":"IFERROR(MID($X198,FIND(CHAR(160),SUBSTITUTE($X198,\"{\",CHAR(160),HE$1)),FIND(CHAR(160),SUBSTITUTE($X198,\"}\",CHAR(160),HE$1))-FIND(CHAR(160),SUBSTITUTE($X198,\"{\",CHAR(160),HE$1))+1),\"\")","v":""},{"$f":"IFERROR(MID($X198,FIND(CHAR(160),SUBSTITUTE($X198,\"{\",CHAR(160),HF$1)),FIND(CHAR(160),SUBSTITUTE($X198,\"}\",CHAR(160),HF$1))-FIND(CHAR(160),SUBSTITUTE($X198,\"{\",CHAR(160),HF$1))+1),\"\")","v":""},{"$f":"IFERROR(MID($X198,FIND(CHAR(160),SUBSTITUTE($X198,\"{\",CHAR(160),HG$1)),FIND(CHAR(160),SUBSTITUTE($X198,\"}\",CHAR(160),HG$1))-FIND(CHAR(160),SUBSTITUTE($X198,\"{\",CHAR(160),HG$1))+1),\"\")","v":""},{"$f":"IFERROR(MID($X198,FIND(CHAR(160),SUBSTITUTE($X198,\"{\",CHAR(160),HH$1)),FIND(CHAR(160),SUBSTITUTE($X198,\"}\",CHAR(160),HH$1))-FIND(CHAR(160),SUBSTITUTE($X198,\"{\",CHAR(160),HH$1))+1),\"\")","v":""},{"$f":"IFERROR(MID($X198,FIND(CHAR(160),SUBSTITUTE($X198,\"{\",CHAR(160),HI$1)),FIND(CHAR(160),SUBSTITUTE($X198,\"}\",CHAR(160),HI$1))-FIND(CHAR(160),SUBSTITUTE($X198,\"{\",CHAR(160),HI$1))+1),\"\")","v":""},{"$f":"IFERROR(MID($X198,FIND(CHAR(160),SUBSTITUTE($X198,\"{\",CHAR(160),HJ$1)),FIND(CHAR(160),SUBSTITUTE($X198,\"}\",CHAR(160),HJ$1))-FIND(CHAR(160),SUBSTITUTE($X198,\"{\",CHAR(160),HJ$1))+1),\"\")","v":""},{"$f":"IFERROR(MID($Y198,FIND(CHAR(160),SUBSTITUTE($Y198,\"{\",CHAR(160),HK$1)),FIND(CHAR(160),SUBSTITUTE($Y198,\"}\",CHAR(160),HK$1))-FIND(CHAR(160),SUBSTITUTE($Y198,\"{\",CHAR(160),HK$1))+1),\"\")","v":""},{"$f":"IFERROR(MID($Y198,FIND(CHAR(160),SUBSTITUTE($Y198,\"{\",CHAR(160),HL$1)),FIND(CHAR(160),SUBSTITUTE($Y198,\"}\",CHAR(160),HL$1))-FIND(CHAR(160),SUBSTITUTE($Y198,\"{\",CHAR(160),HL$1))+1),\"\")","v":""},{"$f":"IFERROR(MID($Y198,FIND(CHAR(160),SUBSTITUTE($Y198,\"{\",CHAR(160),HM$1)),FIND(CHAR(160),SUBSTITUTE($Y198,\"}\",CHAR(160),HM$1))-FIND(CHAR(160),SUBSTITUTE($Y198,\"{\",CHAR(160),HM$1))+1),\"\")","v":""},{"$f":"IFERROR(MID($Y198,FIND(CHAR(160),SUBSTITUTE($Y198,\"{\",CHAR(160),HN$1)),FIND(CHAR(160),SUBSTITUTE($Y198,\"}\",CHAR(160),HN$1))-FIND(CHAR(160),SUBSTITUTE($Y198,\"{\",CHAR(160),HN$1))+1),\"\")","v":""},{"$f":"IFERROR(MID($Y198,FIND(CHAR(160),SUBSTITUTE($Y198,\"{\",CHAR(160),HO$1)),FIND(CHAR(160),SUBSTITUTE($Y198,\"}\",CHAR(160),HO$1))-FIND(CHAR(160),SUBSTITUTE($Y198,\"{\",CHAR(160),HO$1))+1),\"\")","v":""},{"$f":"IFERROR(MID($Y198,FIND(CHAR(160),SUBSTITUTE($Y198,\"{\",CHAR(160),HP$1)),FIND(CHAR(160),SUBSTITUTE($Y198,\"}\",CHAR(160),HP$1))-FIND(CHAR(160),SUBSTITUTE($Y198,\"{\",CHAR(160),HP$1))+1),\"\")","v":""},{"$f":"IFERROR(MID($Y198,FIND(CHAR(160),SUBSTITUTE($Y198,\"{\",CHAR(160),HQ$1)),FIND(CHAR(160),SUBSTITUTE($Y198,\"}\",CHAR(160),HQ$1))-FIND(CHAR(160),SUBSTITUTE($Y198,\"{\",CHAR(160),HQ$1))+1),\"\")","v":""},{"$f":"IFERROR(MID($Y198,FIND(CHAR(160),SUBSTITUTE($Y198,\"{\",CHAR(160),HR$1)),FIND(CHAR(160),SUBSTITUTE($Y198,\"}\",CHAR(160),HR$1))-FIND(CHAR(160),SUBSTITUTE($Y198,\"{\",CHAR(160),HR$1))+1),\"\")","v":""},{"$f":"IFERROR(MID($Y198,FIND(CHAR(160),SUBSTITUTE($Y198,\"{\",CHAR(160),HS$1)),FIND(CHAR(160),SUBSTITUTE($Y198,\"}\",CHAR(160),HS$1))-FIND(CHAR(160),SUBSTITUTE($Y198,\"{\",CHAR(160),HS$1))+1),\"\")","v":""},{"$f":"IFERROR(MID($Y198,FIND(CHAR(160),SUBSTITUTE($Y198,\"{\",CHAR(160),HT$1)),FIND(CHAR(160),SUBSTITUTE($Y198,\"}\",CHAR(160),HT$1))-FIND(CHAR(160),SUBSTITUTE($Y198,\"{\",CHAR(160),HT$1))+1),\"\")","v":""},{"$f":"IFERROR(MID($Z198,FIND(CHAR(160),SUBSTITUTE($Z198,\"{\",CHAR(160),HU$1)),FIND(CHAR(160),SUBSTITUTE($Z198,\"}\",CHAR(160),HU$1))-FIND(CHAR(160),SUBSTITUTE($Z198,\"{\",CHAR(160),HU$1))+1),\"\")","v":""},{"$f":"IFERROR(MID($Z198,FIND(CHAR(160),SUBSTITUTE($Z198,\"{\",CHAR(160),HV$1)),FIND(CHAR(160),SUBSTITUTE($Z198,\"}\",CHAR(160),HV$1))-FIND(CHAR(160),SUBSTITUTE($Z198,\"{\",CHAR(160),HV$1))+1),\"\")","v":""},{"$f":"IFERROR(MID($Z198,FIND(CHAR(160),SUBSTITUTE($Z198,\"{\",CHAR(160),HW$1)),FIND(CHAR(160),SUBSTITUTE($Z198,\"}\",CHAR(160),HW$1))-FIND(CHAR(160),SUBSTITUTE($Z198,\"{\",CHAR(160),HW$1))+1),\"\")","v":""},{"$f":"IFERROR(MID($Z198,FIND(CHAR(160),SUBSTITUTE($Z198,\"{\",CHAR(160),HX$1)),FIND(CHAR(160),SUBSTITUTE($Z198,\"}\",CHAR(160),HX$1))-FIND(CHAR(160),SUBSTITUTE($Z198,\"{\",CHAR(160),HX$1))+1),\"\")","v":""},{"$f":"IFERROR(MID($Z198,FIND(CHAR(160),SUBSTITUTE($Z198,\"{\",CHAR(160),HY$1)),FIND(CHAR(160),SUBSTITUTE($Z198,\"}\",CHAR(160),HY$1))-FIND(CHAR(160),SUBSTITUTE($Z198,\"{\",CHAR(160),HY$1))+1),\"\")","v":""},{"$f":"IFERROR(MID($Z198,FIND(CHAR(160),SUBSTITUTE($Z198,\"{\",CHAR(160),HZ$1)),FIND(CHAR(160),SUBSTITUTE($Z198,\"}\",CHAR(160),HZ$1))-FIND(CHAR(160),SUBSTITUTE($Z198,\"{\",CHAR(160),HZ$1))+1),\"\")","v":""},{"$f":"IFERROR(MID($Z198,FIND(CHAR(160),SUBSTITUTE($Z198,\"{\",CHAR(160),IA$1)),FIND(CHAR(160),SUBSTITUTE($Z198,\"}\",CHAR(160),IA$1))-FIND(CHAR(160),SUBSTITUTE($Z198,\"{\",CHAR(160),IA$1))+1),\"\")","v":""},{"$f":"IFERROR(MID($Z198,FIND(CHAR(160),SUBSTITUTE($Z198,\"{\",CHAR(160),IB$1)),FIND(CHAR(160),SUBSTITUTE($Z198,\"}\",CHAR(160),IB$1))-FIND(CHAR(160),SUBSTITUTE($Z198,\"{\",CHAR(160),IB$1))+1),\"\")","v":""},{"$f":"IFERROR(MID($Z198,FIND(CHAR(160),SUBSTITUTE($Z198,\"{\",CHAR(160),IC$1)),FIND(CHAR(160),SUBSTITUTE($Z198,\"}\",CHAR(160),IC$1))-FIND(CHAR(160),SUBSTITUTE($Z198,\"{\",CHAR(160),IC$1))+1),\"\")","v":""},{"$f":"IFERROR(MID($Z198,FIND(CHAR(160),SUBSTITUTE($Z198,\"{\",CHAR(160),ID$1)),FIND(CHAR(160),SUBSTITUTE($Z198,\"}\",CHAR(160),ID$1))-FIND(CHAR(160),SUBSTITUTE($Z198,\"{\",CHAR(160),ID$1))+1),\"\")","v":""},{"$f":"IFERROR(MID($AA198,FIND(CHAR(160),SUBSTITUTE($AA198,\"{\",CHAR(160),IE$1)),FIND(CHAR(160),SUBSTITUTE($AA198,\"}\",CHAR(160),IE$1))-FIND(CHAR(160),SUBSTITUTE($AA198,\"{\",CHAR(160),IE$1))+1),\"\")","v":""},{"$f":"IFERROR(MID($AA198,FIND(CHAR(160),SUBSTITUTE($AA198,\"{\",CHAR(160),IF$1)),FIND(CHAR(160),SUBSTITUTE($AA198,\"}\",CHAR(160),IF$1))-FIND(CHAR(160),SUBSTITUTE($AA198,\"{\",CHAR(160),IF$1))+1),\"\")","v":""},{"$f":"IFERROR(MID($AA198,FIND(CHAR(160),SUBSTITUTE($AA198,\"{\",CHAR(160),IG$1)),FIND(CHAR(160),SUBSTITUTE($AA198,\"}\",CHAR(160),IG$1))-FIND(CHAR(160),SUBSTITUTE($AA198,\"{\",CHAR(160),IG$1))+1),\"\")","v":""},{"$f":"IFERROR(MID($AA198,FIND(CHAR(160),SUBSTITUTE($AA198,\"{\",CHAR(160),IH$1)),FIND(CHAR(160),SUBSTITUTE($AA198,\"}\",CHAR(160),IH$1))-FIND(CHAR(160),SUBSTITUTE($AA198,\"{\",CHAR(160),IH$1))+1),\"\")","v":""},{"$f":"IFERROR(MID($AA198,FIND(CHAR(160),SUBSTITUTE($AA198,\"{\",CHAR(160),II$1)),FIND(CHAR(160),SUBSTITUTE($AA198,\"}\",CHAR(160),II$1))-FIND(CHAR(160),SUBSTITUTE($AA198,\"{\",CHAR(160),II$1))+1),\"\")","v":""},{"$f":"IFERROR(MID($AA198,FIND(CHAR(160),SUBSTITUTE($AA198,\"{\",CHAR(160),IJ$1)),FIND(CHAR(160),SUBSTITUTE($AA198,\"}\",CHAR(160),IJ$1))-FIND(CHAR(160),SUBSTITUTE($AA198,\"{\",CHAR(160),IJ$1))+1),\"\")","v":""},{"$f":"IFERROR(MID($AA198,FIND(CHAR(160),SUBSTITUTE($AA198,\"{\",CHAR(160),IK$1)),FIND(CHAR(160),SUBSTITUTE($AA198,\"}\",CHAR(160),IK$1))-FIND(CHAR(160),SUBSTITUTE($AA198,\"{\",CHAR(160),IK$1))+1),\"\")","v":""},{"$f":"IFERROR(MID($AA198,FIND(CHAR(160),SUBSTITUTE($AA198,\"{\",CHAR(160),IL$1)),FIND(CHAR(160),SUBSTITUTE($AA198,\"}\",CHAR(160),IL$1))-FIND(CHAR(160),SUBSTITUTE($AA198,\"{\",CHAR(160),IL$1))+1),\"\")","v":""},{"$f":"IFERROR(MID($AA198,FIND(CHAR(160),SUBSTITUTE($AA198,\"{\",CHAR(160),IM$1)),FIND(CHAR(160),SUBSTITUTE($AA198,\"}\",CHAR(160),IM$1))-FIND(CHAR(160),SUBSTITUTE($AA198,\"{\",CHAR(160),IM$1))+1),\"\")","v":""},{"$f":"IFERROR(MID($AA198,FIND(CHAR(160),SUBSTITUTE($AA198,\"{\",CHAR(160),IN$1)),FIND(CHAR(160),SUBSTITUTE($AA198,\"}\",CHAR(160),IN$1))-FIND(CHAR(160),SUBSTITUTE($AA198,\"{\",CHAR(160),IN$1))+1),\"\")","v":""},{"$f":"IFERROR(MID($AB198,FIND(CHAR(160),SUBSTITUTE($AB198,\"{\",CHAR(160),IO$1)),FIND(CHAR(160),SUBSTITUTE($AB198,\"}\",CHAR(160),IO$1))-FIND(CHAR(160),SUBSTITUTE($AB198,\"{\",CHAR(160),IO$1))+1),\"\")","v":""},{"$f":"IFERROR(MID($AB198,FIND(CHAR(160),SUBSTITUTE($AB198,\"{\",CHAR(160),IP$1)),FIND(CHAR(160),SUBSTITUTE($AB198,\"}\",CHAR(160),IP$1))-FIND(CHAR(160),SUBSTITUTE($AB198,\"{\",CHAR(160),IP$1))+1),\"\")","v":""},{"$f":"IFERROR(MID($AB198,FIND(CHAR(160),SUBSTITUTE($AB198,\"{\",CHAR(160),IQ$1)),FIND(CHAR(160),SUBSTITUTE($AB198,\"}\",CHAR(160),IQ$1))-FIND(CHAR(160),SUBSTITUTE($AB198,\"{\",CHAR(160),IQ$1))+1),\"\")","v":""},{"$f":"IFERROR(MID($AB198,FIND(CHAR(160),SUBSTITUTE($AB198,\"{\",CHAR(160),IR$1)),FIND(CHAR(160),SUBSTITUTE($AB198,\"}\",CHAR(160),IR$1))-FIND(CHAR(160),SUBSTITUTE($AB198,\"{\",CHAR(160),IR$1))+1),\"\")","v":""},{"$f":"IFERROR(MID($AB198,FIND(CHAR(160),SUBSTITUTE($AB198,\"{\",CHAR(160),IS$1)),FIND(CHAR(160),SUBSTITUTE($AB198,\"}\",CHAR(160),IS$1))-FIND(CHAR(160),SUBSTITUTE($AB198,\"{\",CHAR(160),IS$1))+1),\"\")","v":""},{"$f":"IFERROR(MID($AB198,FIND(CHAR(160),SUBSTITUTE($AB198,\"{\",CHAR(160),IT$1)),FIND(CHAR(160),SUBSTITUTE($AB198,\"}\",CHAR(160),IT$1))-FIND(CHAR(160),SUBSTITUTE($AB198,\"{\",CHAR(160),IT$1))+1),\"\")","v":""},{"$f":"IFERROR(MID($AB198,FIND(CHAR(160),SUBSTITUTE($AB198,\"{\",CHAR(160),IU$1)),FIND(CHAR(160),SUBSTITUTE($AB198,\"}\",CHAR(160),IU$1))-FIND(CHAR(160),SUBSTITUTE($AB198,\"{\",CHAR(160),IU$1))+1),\"\")","v":""},{"$f":"IFERROR(MID($AB198,FIND(CHAR(160),SUBSTITUTE($AB198,\"{\",CHAR(160),IV$1)),FIND(CHAR(160),SUBSTITUTE($AB198,\"}\",CHAR(160),IV$1))-FIND(CHAR(160),SUBSTITUTE($AB198,\"{\",CHAR(160),IV$1))+1),\"\")","v":""},{"$f":"IFERROR(MID($AB198,FIND(CHAR(160),SUBSTITUTE($AB198,\"{\",CHAR(160),IW$1)),FIND(CHAR(160),SUBSTITUTE($AB198,\"}\",CHAR(160),IW$1))-FIND(CHAR(160),SUBSTITUTE($AB198,\"{\",CHAR(160),IW$1))+1),\"\")","v":""},{"$f":"IFERROR(MID($AB198,FIND(CHAR(160),SUBSTITUTE($AB198,\"{\",CHAR(160),IX$1)),FIND(CHAR(160),SUBSTITUTE($AB198,\"}\",CHAR(160),IX$1))-FIND(CHAR(160),SUBSTITUTE($AB198,\"{\",CHAR(160),IX$1))+1),\"\")","v":""},null,{"$f":"10-COUNTIF(DU198:ED198,\"\")","v":3}]
["Home Energy Savings Program - Natural Gas","Basement Insulation","BB","2021-07-01","2022-06-30","Per Measure",3763,0,"Calculated","if({Cost}*.3>1000,1000,Round({Cost}*.3,2))*{Measure:Quantity}",0,"2020-04-02","2022-06-30","Calculated","if({Primary heating type}=6,2672,if({Primary heating type}=0,102,0))",null,null,0,null,null,"if({Primary heating type}=6,0.663,if({Primary heating type}=0,0.025,0))",0,"if({Primary heating type}=1,10.986,if({Primary heating type}=0,0.989,0))*10","if({Primary heating type}=2,10.986,if({Primary heating type} = 0,1.439,0))","if({Primary heating type}=3,10.986,if({Primary heating type} = 0,7.514,0))","if({Primary heating type}=4,10.986,if({Primary heating type} = 0,0.154,0))","if({Primary heating type}=5,10.986,if({Primary heating type} = 0,0.472,0))",0,"2020-04-02","2022-06-30",25,1,0,0,0,0,0,1,1,1,0.3,2.9000000000000001E-2,null,"{Cost}",3763,"{Measure:Quantity}",1,"{Primary heating type}",1,"",null,"",null,"",null,"",null,"",null,"",null,"",null,{"$f":"IF(AW199=6,2672,IF(AW199=0,102,0))","v":0},0,0,{"$f":"0","v":0},0,0,{"$f":"IF(AW199=6,0.663,IF(AW199=0,0.025,0))","v":0},{"$f":"0","v":0},{"$f":"IF(AW199=1,10.986,IF(AW199=0,0.989,0))*10","v":109.86000000000001},{"$f":"IF(AW199=2,10.986,IF(AW199 = 0,1.439,0))","v":0},{"$f":"IF(AW199=3,10.986,IF(AW199 = 0,7.514,0))","v":0},{"$f":"IF(AW199=4,10.986,IF(AW199 = 0,0.154,0))","v":0},{"$f":"IF(AW199=5,10.986,IF(AW199 = 0,0.472,0))","v":0},{"$f":"0","v":0},null,"Res","RGGI DR",{"$f":"Benefits(BL199,BR199,BS199,BT199,BU199,BV199,BW199,BX199,BY199,BZ199,AE199,AH199,AI199,AJ199,AK199,AL199,AM199,AN199,AO199,AP199,CA199,CB199)","v":0},0,2939.7680855847125,0,0,0,0,0,0,{"$f":"SUMPRODUCT(CC199:CK199,--(CC199:CK199>0))","v":2939.7680855847125},{"$f":"-SUMPRODUCT(CC199:CK199,--(CC199:CK199<0))","v":0},null,{"$f":"3763","v":3763},null,null,{"$f":"CM199+CO199","v":3763},{"$f":"IF(NetOrGross=\"Net\",(1-AO199+AP199),1)","v":1},{"$f":"(SUMPRODUCT(CC199:CJ199,--(CC199:CJ199>0))+CN199)*CS199/((-SUMPRODUCT(CC199:CJ199,--(CC199:CJ199<0))+MAX(CO199,CV199)+CP199+CQ199)*CS199+IF(FRIncentives=\"Yes\",CV199*(1-CS199),0))","v":0.78122989252849118},1,{"$f":"IF(AS199*0.3>1000,1000,ROUND(AS199*0.3,2))*AU199","v":1000},null,"RGGI","y",null,{"$f":"IF(F199=\"Manual Entry\",\"Manual\",IF(G199=\"\",0,\"X=\"&SUBSTITUTE(SUBSTITUTE(SUBSTITUTE(SUBSTITUTE(SUBSTITUTE(SUBSTITUTE(SUBSTITUTE(SUBSTITUTE(SUBSTITUTE(SUBSTITUTE(SUBSTITUTE(SUBSTITUTE(G199,$ED199,$ED$2&ROW($ED199)),$EC199,$EC$2&ROW($EC199)),$EB199,$EB$2&ROW($EB199)),$EA199,$EA$2&ROW($EA199)),$DZ199,$DZ$2&ROW($DZ199)),$DY199,$DY$2&ROW($DY199)),$DX199,$DX$2&ROW($DX199)),$DW199,$DW$2&ROW($DW199)),$DV199,$DV$2&ROW($DV199)),$DU199,$DU$2&ROW($DU199)),$DT199,$DT$2&ROW($DT199)),$DS199,$DS$2&ROW($DS199))))","v":"X=3763"},{"$f":"IF(I199=\"Manual Entry\",\"Manual\",IF(J199=\"\",0,\"X=\"&SUBSTITUTE(SUBSTITUTE(SUBSTITUTE(SUBSTITUTE(SUBSTITUTE(SUBSTITUTE(SUBSTITUTE(SUBSTITUTE(SUBSTITUTE(SUBSTITUTE(SUBSTITUTE(SUBSTITUTE(J199,$ED199,$ED$2&ROW($ED199)),$EC199,$EC$2&ROW($EC199)),$EB199,$EB$2&ROW($EB199)),$EA199,$EA$2&ROW($EA199)),$DZ199,$DZ$2&ROW($DZ199)),$DY199,$DY$2&ROW($DY199)),$DX199,$DX$2&ROW($DX199)),$DW199,$DW$2&ROW($DW199)),$DV199,$DV$2&ROW($DV199)),$DU199,$DU$2&ROW($DU199)),$DT199,$DT$2&ROW($DT199)),$DS199,$DS$2&ROW($DS199))))","v":"X=if(AS199*.3>1000,1000,Round(AS199*.3,2))*AU199"},{"$f":"IF(O199=\"\",0,\"X=\"&SUBSTITUTE(SUBSTITUTE(SUBSTITUTE(SUBSTITUTE(SUBSTITUTE(SUBSTITUTE(SUBSTITUTE(SUBSTITUTE(SUBSTITUTE(SUBSTITUTE(SUBSTITUTE(SUBSTITUTE(O199,$ED199,$ED$2&ROW($ED199)),$EC199,$EC$2&ROW($EC199)),$EB199,$EB$2&ROW($EB199)),$EA199,$EA$2&ROW($EA199)),$DZ199,$DZ$2&ROW($DZ199)),$DY199,$DY$2&ROW($DY199)),$DX199,$DX$2&ROW($DX199)),$DW199,$DW$2&ROW($DW199)),$DV199,$DV$2&ROW($DV199)),$DU199,$DU$2&ROW($DU199)),$DT199,$DT$2&ROW($DT199)),$DS199,$DS$2&ROW($DS199)))","v":"X=if(AW199=6,2672,if(AW199=0,102,0))"},{"$f":"IF(P199=\"\",0,\"X=\"&SUBSTITUTE(SUBSTITUTE(SUBSTITUTE(SUBSTITUTE(SUBSTITUTE(SUBSTITUTE(SUBSTITUTE(SUBSTITUTE(SUBSTITUTE(SUBSTITUTE(SUBSTITUTE(SUBSTITUTE(P199,$ED199,$ED$2&ROW($ED199)),$EC199,$EC$2&ROW($EC199)),$EB199,$EB$2&ROW($EB199)),$EA199,$EA$2&ROW($EA199)),$DZ199,$DZ$2&ROW($DZ199)),$DY199,$DY$2&ROW($DY199)),$DX199,$DX$2&ROW($DX199)),$DW199,$DW$2&ROW($DW199)),$DV199,$DV$2&ROW($DV199)),$DU199,$DU$2&ROW($DU199)),$DT199,$DT$2&ROW($DT199)),$DS199,$DS$2&ROW($DS199)))","v":0},{"$f":"IF(Q199=\"\",0,\"X=\"&SUBSTITUTE(SUBSTITUTE(SUBSTITUTE(SUBSTITUTE(SUBSTITUTE(SUBSTITUTE(SUBSTITUTE(SUBSTITUTE(SUBSTITUTE(SUBSTITUTE(SUBSTITUTE(SUBSTITUTE(Q199,$ED199,$ED$2&ROW($ED199)),$EC199,$EC$2&ROW($EC199)),$EB199,$EB$2&ROW($EB199)),$EA199,$EA$2&ROW($EA199)),$DZ199,$DZ$2&ROW($DZ199)),$DY199,$DY$2&ROW($DY199)),$DX199,$DX$2&ROW($DX199)),$DW199,$DW$2&ROW($DW199)),$DV199,$DV$2&ROW($DV199)),$DU199,$DU$2&ROW($DU199)),$DT199,$DT$2&ROW($DT199)),$DS199,$DS$2&ROW($DS199)))","v":0},{"$f":"IF(R199=\"\",0,\"X=\"&SUBSTITUTE(SUBSTITUTE(SUBSTITUTE(SUBSTITUTE(SUBSTITUTE(SUBSTITUTE(SUBSTITUTE(SUBSTITUTE(SUBSTITUTE(SUBSTITUTE(SUBSTITUTE(SUBSTITUTE(R199,$ED199,$ED$2&ROW($ED199)),$EC199,$EC$2&ROW($EC199)),$EB199,$EB$2&ROW($EB199)),$EA199,$EA$2&ROW($EA199)),$DZ199,$DZ$2&ROW($DZ199)),$DY199,$DY$2&ROW($DY199)),$DX199,$DX$2&ROW($DX199)),$DW199,$DW$2&ROW($DW199)),$DV199,$DV$2&ROW($DV199)),$DU199,$DU$2&ROW($DU199)),$DT199,$DT$2&ROW($DT199)),$DS199,$DS$2&ROW($DS199)))","v":"X=0"},{"$f":"IF(S199=\"\",0,\"X=\"&SUBSTITUTE(SUBSTITUTE(SUBSTITUTE(SUBSTITUTE(SUBSTITUTE(SUBSTITUTE(SUBSTITUTE(SUBSTITUTE(SUBSTITUTE(SUBSTITUTE(SUBSTITUTE(SUBSTITUTE(S199,$ED199,$ED$2&ROW($ED199)),$EC199,$EC$2&ROW($EC199)),$EB199,$EB$2&ROW($EB199)),$EA199,$EA$2&ROW($EA199)),$DZ199,$DZ$2&ROW($DZ199)),$DY199,$DY$2&ROW($DY199)),$DX199,$DX$2&ROW($DX199)),$DW199,$DW$2&ROW($DW199)),$DV199,$DV$2&ROW($DV199)),$DU199,$DU$2&ROW($DU199)),$DT199,$DT$2&ROW($DT199)),$DS199,$DS$2&ROW($DS199)))","v":0},{"$f":"IF(T199=\"\",0,\"X=\"&SUBSTITUTE(SUBSTITUTE(SUBSTITUTE(SUBSTITUTE(SUBSTITUTE(SUBSTITUTE(SUBSTITUTE(SUBSTITUTE(SUBSTITUTE(SUBSTITUTE(SUBSTITUTE(SUBSTITUTE(T199,$ED199,$ED$2&ROW($ED199)),$EC199,$EC$2&ROW($EC199)),$EB199,$EB$2&ROW($EB199)),$EA199,$EA$2&ROW($EA199)),$DZ199,$DZ$2&ROW($DZ199)),$DY199,$DY$2&ROW($DY199)),$DX199,$DX$2&ROW($DX199)),$DW199,$DW$2&ROW($DW199)),$DV199,$DV$2&ROW($DV199)),$DU199,$DU$2&ROW($DU199)),$DT199,$DT$2&ROW($DT199)),$DS199,$DS$2&ROW($DS199)))","v":0},{"$f":"IF(U199=\"\",0,\"X=\"&SUBSTITUTE(SUBSTITUTE(SUBSTITUTE(SUBSTITUTE(SUBSTITUTE(SUBSTITUTE(SUBSTITUTE(SUBSTITUTE(SUBSTITUTE(SUBSTITUTE(SUBSTITUTE(SUBSTITUTE(U199,$ED199,$ED$2&ROW($ED199)),$EC199,$EC$2&ROW($EC199)),$EB199,$EB$2&ROW($EB199)),$EA199,$EA$2&ROW($EA199)),$DZ199,$DZ$2&ROW($DZ199)),$DY199,$DY$2&ROW($DY199)),$DX199,$DX$2&ROW($DX199)),$DW199,$DW$2&ROW($DW199)),$DV199,$DV$2&ROW($DV199)),$DU199,$DU$2&ROW($DU199)),$DT199,$DT$2&ROW($DT199)),$DS199,$DS$2&ROW($DS199)))","v":"X=if(AW199=6,0.663,if(AW199=0,0.025,0))"},{"$f":"IF(V199=\"\",0,\"X=\"&SUBSTITUTE(SUBSTITUTE(SUBSTITUTE(SUBSTITUTE(SUBSTITUTE(SUBSTITUTE(SUBSTITUTE(SUBSTITUTE(SUBSTITUTE(SUBSTITUTE(SUBSTITUTE(SUBSTITUTE(V199,$ED199,$ED$2&ROW($ED199)),$EC199,$EC$2&ROW($EC199)),$EB199,$EB$2&ROW($EB199)),$EA199,$EA$2&ROW($EA199)),$DZ199,$DZ$2&ROW($DZ199)),$DY199,$DY$2&ROW($DY199)),$DX199,$DX$2&ROW($DX199)),$DW199,$DW$2&ROW($DW199)),$DV199,$DV$2&ROW($DV199)),$DU199,$DU$2&ROW($DU199)),$DT199,$DT$2&ROW($DT199)),$DS199,$DS$2&ROW($DS199)))","v":"X=0"},{"$f":"IF(W199=\"\",0,\"X=\"&SUBSTITUTE(SUBSTITUTE(SUBSTITUTE(SUBSTITUTE(SUBSTITUTE(SUBSTITUTE(SUBSTITUTE(SUBSTITUTE(SUBSTITUTE(SUBSTITUTE(SUBSTITUTE(SUBSTITUTE(W199,$ED199,$ED$2&ROW($ED199)),$EC199,$EC$2&ROW($EC199)),$EB199,$EB$2&ROW($EB199)),$EA199,$EA$2&ROW($EA199)),$DZ199,$DZ$2&ROW($DZ199)),$DY199,$DY$2&ROW($DY199)),$DX199,$DX$2&ROW($DX199)),$DW199,$DW$2&ROW($DW199)),$DV199,$DV$2&ROW($DV199)),$DU199,$DU$2&ROW($DU199)),$DT199,$DT$2&ROW($DT199)),$DS199,$DS$2&ROW($DS199)))","v":"X=if(AW199=1,10.986,if(AW199=0,0.989,0))*10"},{"$f":"IF(X199=\"\",0,\"X=\"&SUBSTITUTE(SUBSTITUTE(SUBSTITUTE(SUBSTITUTE(SUBSTITUTE(SUBSTITUTE(SUBSTITUTE(SUBSTITUTE(SUBSTITUTE(SUBSTITUTE(SUBSTITUTE(SUBSTITUTE(X199,$ED199,$ED$2&ROW($ED199)),$EC199,$EC$2&ROW($EC199)),$EB199,$EB$2&ROW($EB199)),$EA199,$EA$2&ROW($EA199)),$DZ199,$DZ$2&ROW($DZ199)),$DY199,$DY$2&ROW($DY199)),$DX199,$DX$2&ROW($DX199)),$DW199,$DW$2&ROW($DW199)),$DV199,$DV$2&ROW($DV199)),$DU199,$DU$2&ROW($DU199)),$DT199,$DT$2&ROW($DT199)),$DS199,$DS$2&ROW($DS199)))","v":"X=if(AW199=2,10.986,if(AW199 = 0,1.439,0))"},{"$f":"IF(Y199=\"\",0,\"X=\"&SUBSTITUTE(SUBSTITUTE(SUBSTITUTE(SUBSTITUTE(SUBSTITUTE(SUBSTITUTE(SUBSTITUTE(SUBSTITUTE(SUBSTITUTE(SUBSTITUTE(SUBSTITUTE(SUBSTITUTE(Y199,$ED199,$ED$2&ROW($ED199)),$EC199,$EC$2&ROW($EC199)),$EB199,$EB$2&ROW($EB199)),$EA199,$EA$2&ROW($EA199)),$DZ199,$DZ$2&ROW($DZ199)),$DY199,$DY$2&ROW($DY199)),$DX199,$DX$2&ROW($DX199)),$DW199,$DW$2&ROW($DW199)),$DV199,$DV$2&ROW($DV199)),$DU199,$DU$2&ROW($DU199)),$DT199,$DT$2&ROW($DT199)),$DS199,$DS$2&ROW($DS199)))","v":"X=if(AW199=3,10.986,if(AW199 = 0,7.514,0))"},{"$f":"IF(Z199=\"\",0,\"X=\"&SUBSTITUTE(SUBSTITUTE(SUBSTITUTE(SUBSTITUTE(SUBSTITUTE(SUBSTITUTE(SUBSTITUTE(SUBSTITUTE(SUBSTITUTE(SUBSTITUTE(SUBSTITUTE(SUBSTITUTE(Z199,$ED199,$ED$2&ROW($ED199)),$EC199,$EC$2&ROW($EC199)),$EB199,$EB$2&ROW($EB199)),$EA199,$EA$2&ROW($EA199)),$DZ199,$DZ$2&ROW($DZ199)),$DY199,$DY$2&ROW($DY199)),$DX199,$DX$2&ROW($DX199)),$DW199,$DW$2&ROW($DW199)),$DV199,$DV$2&ROW($DV199)),$DU199,$DU$2&ROW($DU199)),$DT199,$DT$2&ROW($DT199)),$DS199,$DS$2&ROW($DS199)))","v":"X=if(AW199=4,10.986,if(AW199 = 0,0.154,0))"},{"$f":"IF(AA199=\"\",0,\"X=\"&SUBSTITUTE(SUBSTITUTE(SUBSTITUTE(SUBSTITUTE(SUBSTITUTE(SUBSTITUTE(SUBSTITUTE(SUBSTITUTE(SUBSTITUTE(SUBSTITUTE(SUBSTITUTE(SUBSTITUTE(AA199,$ED199,$ED$2&ROW($ED199)),$EC199,$EC$2&ROW($EC199)),$EB199,$EB$2&ROW($EB199)),$EA199,$EA$2&ROW($EA199)),$DZ199,$DZ$2&ROW($DZ199)),$DY199,$DY$2&ROW($DY199)),$DX199,$DX$2&ROW($DX199)),$DW199,$DW$2&ROW($DW199)),$DV199,$DV$2&ROW($DV199)),$DU199,$DU$2&ROW($DU199)),$DT199,$DT$2&ROW($DT199)),$DS199,$DS$2&ROW($DS199)))","v":"X=if(AW199=5,10.986,if(AW199 = 0,0.472,0))"},{"$f":"IF(AB199=\"\",0,\"X=\"&SUBSTITUTE(SUBSTITUTE(SUBSTITUTE(SUBSTITUTE(SUBSTITUTE(SUBSTITUTE(SUBSTITUTE(SUBSTITUTE(SUBSTITUTE(SUBSTITUTE(SUBSTITUTE(SUBSTITUTE(AB199,$ED199,$ED$2&ROW($ED199)),$EC199,$EC$2&ROW($EC199)),$EB199,$EB$2&ROW($EB199)),$EA199,$EA$2&ROW($EA199)),$DZ199,$DZ$2&ROW($DZ199)),$DY199,$DY$2&ROW($DY199)),$DX199,$DX$2&ROW($DX199)),$DW199,$DW$2&ROW($DW199)),$DV199,$DV$2&ROW($DV199)),$DU199,$DU$2&ROW($DU199)),$DT199,$DT$2&ROW($DT199)),$DS199,$DS$2&ROW($DS199)))","v":"X=0"},null,null,"{Factor:WinterCF}","{Factor:SummerCF}",{"$f":"IFERROR(INDEX($EG199:$IV199,MATCH(0,COUNTIF($DR199:DT199,$EG199:$IV199),0)),\"\")","v":"{Cost}"},{"$f":"IFERROR(INDEX($EG199:$IV199,MATCH(0,COUNTIF($DR199:DU199,$EG199:$IV199),0)),\"\")","v":"{Measure:Quantity}"},{"$f":"IFERROR(INDEX($EG199:$IV199,MATCH(0,COUNTIF($DR199:DV199,$EG199:$IV199),0)),\"\")","v":"{Primary heating type}"},{"$f":"IFERROR(INDEX($EG199:$IV199,MATCH(0,COUNTIF($DR199:DW199,$EG199:$IV199),0)),\"\")","v":""},{"$f":"IFERROR(INDEX($EG199:$IV199,MATCH(0,COUNTIF($DR199:DX199,$EG199:$IV199),0)),\"\")","v":""},{"$f":"IFERROR(INDEX($EG199:$IV199,MATCH(0,COUNTIF($DR199:DY199,$EG199:$IV199),0)),\"\")","v":""},{"$f":"IFERROR(INDEX($EG199:$IV199,MATCH(0,COUNTIF($DR199:DZ199,$EG199:$IV199),0)),\"\")","v":""},{"$f":"IFERROR(INDEX($EG199:$IV199,MATCH(0,COUNTIF($DR199:EA199,$EG199:$IV199),0)),\"\")","v":""},{"$f":"IFERROR(INDEX($EG199:$IV199,MATCH(0,COUNTIF($DR199:EB199,$EG199:$IV199),0)),\"\")","v":""},{"$f":"IFERROR(INDEX($EG199:$IV199,MATCH(0,COUNTIF($DR199:EC199,$EG199:$IV199),0)),\"\")","v":""},null,null,"","","","","","","","","","","{Cost}","{Cost}","{Measure:Quantity}","","","","","","","","{Cost}","{Cost}","","","","","","","","","{Primary heating type}","{Primary heating type}","","","","","","","","","","","","","","","","","","","{Primary heating type}","{Primary heating type}","","","","","","","","","","","","","","","","","","","{Primary heating type}","{Primary heating type}","","","","","","","","","{Primary heating type}","{Primary heating type}","","","","","","","","","{Primary heating type}","{Primary heating type}","","","","","","","","","{Primary heating type}","{Primary heating type}","","","","","","","","","{Primary heating type}","{Primary heating type}","","","","","","","","","","",null,3]
["Home Energy Savings Program - Natural Gas","Attic Insulation","BA","2021-07-01","2022-06-30","Per Measure",4087,0,"Calculated","if({Cost}*.3>1000,1000,Round({Cost}*.3,2))*{Measure:Quantity}",0,"2020-04-02","2022-06-30","Calculated","if({Primary heating type}=6,3101,if({Primary heating type}=0,117,20))",null,null,"if({Primary heating type}=6,0.053,if({Primary heating type}=0,0.053,0.053))",null,null,"if({Primary heating type}=6,0.678,if({Primary heating type}=0,0.026,0))","if({Primary heating type}=6,0.053,if({Primary heating type}=0,0.053,0.053))","if({Primary heating type}=1,12.663,if({Primary heating type}=0,1.140,0))*10","if({Primary heating type}=2,12.663,if({Primary heating type}=0,1.659,0))","if({Primary heating type}=3,12.663,if({Primary heating type} = 0,8.661,0))","if({Primary heating type}=4,12.663,if({Primary heating type} = 0,0.177,0))","if({Primary heating type}=5,12.663,if({Primary heating type} = 0,0.545,0))",0,"2020-04-02","2022-06-30",25,1,1,0,0,0.66600000000000004,0.30099999999999999,1,1,1,0.3,2.9000000000000001E-2,null,"{Cost}",4087,"{Measure:Quantity}",1,"{Primary heating type}",1,"",null,"",null,"",null,"",null,"",null,"",null,"",null,{"$f":"IF(AW200=6,3101,IF(AW200=0,117,IF(AW200=1,33,20)))","v":33},0,0,{"$f":"IF(AW200=6,0.053,IF(AW200=0,0.053,0.053))","v":5.2999999999999999E-2},0,0,{"$f":"IF(AW200=6,0.678,IF(AW200=0,0.026,0))","v":0},{"$f":"IF(AW200=6,0.053,IF(AW200=1,0.086,0.053))","v":8.5999999999999993E-2},{"$f":"IF(AW200=1,20.634,IF(AW200=0,1.14,0))*10","v":206.34},{"$f":"IF(AW200=2,12.663,IF(AW200=0,1.659,0))","v":0},{"$f":"IF(AW200=3,12.663,IF(AW200 = 0,8.661,0))","v":0},{"$f":"IF(AW200=4,12.663,IF(AW200 = 0,0.177,0))","v":0},{"$f":"IF(AW200=5,12.663,IF(AW200 = 0,0.545,0))","v":0},{"$f":"0","v":0},null,"Res","RGGI DR",{"$f":"Benefits(BL200,BR200,BS200,BT200,BU200,BV200,BW200,BX200,BY200,BZ200,AE200,AH200,AI200,AJ200,AK200,AL200,AM200,AN200,AO200,AP200,CA200,CB200)","v":53.793847789332133},239.04107955126278,5521.4977860872905,0,0,0,0,0,0,{"$f":"SUMPRODUCT(CC200:CK200,--(CC200:CK200>0))","v":5814.3327134278852},{"$f":"-SUMPRODUCT(CC200:CK200,--(CC200:CK200<0))","v":0},null,{"$f":"4087","v":4087},null,null,{"$f":"CM200+CO200","v":4087},{"$f":"IF(NetOrGross=\"Net\",(1-AO200+AP200),1)","v":1},{"$f":"(SUMPRODUCT(CC200:CJ200,--(CC200:CJ200>0))+CN200)*CS200/((-SUMPRODUCT(CC200:CJ200,--(CC200:CJ200<0))+MAX(CO200,CV200)+CP200+CQ200)*CS200+IF(FRIncentives=\"Yes\",CV200*(1-CS200),0))","v":1.4226407422138208},1,{"$f":"IF(AS200*0.3>1000,1000,ROUND(AS200*0.3,2))*AU200","v":1000},null,"RGGI","y",null,{"$f":"IF(F200=\"Manual Entry\",\"Manual\",IF(G200=\"\",0,\"X=\"&SUBSTITUTE(SUBSTITUTE(SUBSTITUTE(SUBSTITUTE(SUBSTITUTE(SUBSTITUTE(SUBSTITUTE(SUBSTITUTE(SUBSTITUTE(SUBSTITUTE(SUBSTITUTE(SUBSTITUTE(G200,$ED200,$ED$2&ROW($ED200)),$EC200,$EC$2&ROW($EC200)),$EB200,$EB$2&ROW($EB200)),$EA200,$EA$2&ROW($EA200)),$DZ200,$DZ$2&ROW($DZ200)),$DY200,$DY$2&ROW($DY200)),$DX200,$DX$2&ROW($DX200)),$DW200,$DW$2&ROW($DW200)),$DV200,$DV$2&ROW($DV200)),$DU200,$DU$2&ROW($DU200)),$DT200,$DT$2&ROW($DT200)),$DS200,$DS$2&ROW($DS200))))","v":"X=4087"},{"$f":"IF(I200=\"Manual Entry\",\"Manual\",IF(J200=\"\",0,\"X=\"&SUBSTITUTE(SUBSTITUTE(SUBSTITUTE(SUBSTITUTE(SUBSTITUTE(SUBSTITUTE(SUBSTITUTE(SUBSTITUTE(SUBSTITUTE(SUBSTITUTE(SUBSTITUTE(SUBSTITUTE(J200,$ED200,$ED$2&ROW($ED200)),$EC200,$EC$2&ROW($EC200)),$EB200,$EB$2&ROW($EB200)),$EA200,$EA$2&ROW($EA200)),$DZ200,$DZ$2&ROW($DZ200)),$DY200,$DY$2&ROW($DY200)),$DX200,$DX$2&ROW($DX200)),$DW200,$DW$2&ROW($DW200)),$DV200,$DV$2&ROW($DV200)),$DU200,$DU$2&ROW($DU200)),$DT200,$DT$2&ROW($DT200)),$DS200,$DS$2&ROW($DS200))))","v":"X=if(AS200*.3>1000,1000,Round(AS200*.3,2))*AU200"},{"$f":"IF(O200=\"\",0,\"X=\"&SUBSTITUTE(SUBSTITUTE(SUBSTITUTE(SUBSTITUTE(SUBSTITUTE(SUBSTITUTE(SUBSTITUTE(SUBSTITUTE(SUBSTITUTE(SUBSTITUTE(SUBSTITUTE(SUBSTITUTE(O200,$ED200,$ED$2&ROW($ED200)),$EC200,$EC$2&ROW($EC200)),$EB200,$EB$2&ROW($EB200)),$EA200,$EA$2&ROW($EA200)),$DZ200,$DZ$2&ROW($DZ200)),$DY200,$DY$2&ROW($DY200)),$DX200,$DX$2&ROW($DX200)),$DW200,$DW$2&ROW($DW200)),$DV200,$DV$2&ROW($DV200)),$DU200,$DU$2&ROW($DU200)),$DT200,$DT$2&ROW($DT200)),$DS200,$DS$2&ROW($DS200)))","v":"X=if(AW200=6,3101,if(AW200=0,117,20))"},{"$f":"IF(P200=\"\",0,\"X=\"&SUBSTITUTE(SUBSTITUTE(SUBSTITUTE(SUBSTITUTE(SUBSTITUTE(SUBSTITUTE(SUBSTITUTE(SUBSTITUTE(SUBSTITUTE(SUBSTITUTE(SUBSTITUTE(SUBSTITUTE(P200,$ED200,$ED$2&ROW($ED200)),$EC200,$EC$2&ROW($EC200)),$EB200,$EB$2&ROW($EB200)),$EA200,$EA$2&ROW($EA200)),$DZ200,$DZ$2&ROW($DZ200)),$DY200,$DY$2&ROW($DY200)),$DX200,$DX$2&ROW($DX200)),$DW200,$DW$2&ROW($DW200)),$DV200,$DV$2&ROW($DV200)),$DU200,$DU$2&ROW($DU200)),$DT200,$DT$2&ROW($DT200)),$DS200,$DS$2&ROW($DS200)))","v":0},{"$f":"IF(Q200=\"\",0,\"X=\"&SUBSTITUTE(SUBSTITUTE(SUBSTITUTE(SUBSTITUTE(SUBSTITUTE(SUBSTITUTE(SUBSTITUTE(SUBSTITUTE(SUBSTITUTE(SUBSTITUTE(SUBSTITUTE(SUBSTITUTE(Q200,$ED200,$ED$2&ROW($ED200)),$EC200,$EC$2&ROW($EC200)),$EB200,$EB$2&ROW($EB200)),$EA200,$EA$2&ROW($EA200)),$DZ200,$DZ$2&ROW($DZ200)),$DY200,$DY$2&ROW($DY200)),$DX200,$DX$2&ROW($DX200)),$DW200,$DW$2&ROW($DW200)),$DV200,$DV$2&ROW($DV200)),$DU200,$DU$2&ROW($DU200)),$DT200,$DT$2&ROW($DT200)),$DS200,$DS$2&ROW($DS200)))","v":0},{"$f":"IF(R200=\"\",0,\"X=\"&SUBSTITUTE(SUBSTITUTE(SUBSTITUTE(SUBSTITUTE(SUBSTITUTE(SUBSTITUTE(SUBSTITUTE(SUBSTITUTE(SUBSTITUTE(SUBSTITUTE(SUBSTITUTE(SUBSTITUTE(R200,$ED200,$ED$2&ROW($ED200)),$EC200,$EC$2&ROW($EC200)),$EB200,$EB$2&ROW($EB200)),$EA200,$EA$2&ROW($EA200)),$DZ200,$DZ$2&ROW($DZ200)),$DY200,$DY$2&ROW($DY200)),$DX200,$DX$2&ROW($DX200)),$DW200,$DW$2&ROW($DW200)),$DV200,$DV$2&ROW($DV200)),$DU200,$DU$2&ROW($DU200)),$DT200,$DT$2&ROW($DT200)),$DS200,$DS$2&ROW($DS200)))","v":"X=if(AW200=6,0.053,if(AW200=0,0.053,0.053))"},{"$f":"IF(S200=\"\",0,\"X=\"&SUBSTITUTE(SUBSTITUTE(SUBSTITUTE(SUBSTITUTE(SUBSTITUTE(SUBSTITUTE(SUBSTITUTE(SUBSTITUTE(SUBSTITUTE(SUBSTITUTE(SUBSTITUTE(SUBSTITUTE(S200,$ED200,$ED$2&ROW($ED200)),$EC200,$EC$2&ROW($EC200)),$EB200,$EB$2&ROW($EB200)),$EA200,$EA$2&ROW($EA200)),$DZ200,$DZ$2&ROW($DZ200)),$DY200,$DY$2&ROW($DY200)),$DX200,$DX$2&ROW($DX200)),$DW200,$DW$2&ROW($DW200)),$DV200,$DV$2&ROW($DV200)),$DU200,$DU$2&ROW($DU200)),$DT200,$DT$2&ROW($DT200)),$DS200,$DS$2&ROW($DS200)))","v":0},{"$f":"IF(T200=\"\",0,\"X=\"&SUBSTITUTE(SUBSTITUTE(SUBSTITUTE(SUBSTITUTE(SUBSTITUTE(SUBSTITUTE(SUBSTITUTE(SUBSTITUTE(SUBSTITUTE(SUBSTITUTE(SUBSTITUTE(SUBSTITUTE(T200,$ED200,$ED$2&ROW($ED200)),$EC200,$EC$2&ROW($EC200)),$EB200,$EB$2&ROW($EB200)),$EA200,$EA$2&ROW($EA200)),$DZ200,$DZ$2&ROW($DZ200)),$DY200,$DY$2&ROW($DY200)),$DX200,$DX$2&ROW($DX200)),$DW200,$DW$2&ROW($DW200)),$DV200,$DV$2&ROW($DV200)),$DU200,$DU$2&ROW($DU200)),$DT200,$DT$2&ROW($DT200)),$DS200,$DS$2&ROW($DS200)))","v":0},{"$f":"IF(U200=\"\",0,\"X=\"&SUBSTITUTE(SUBSTITUTE(SUBSTITUTE(SUBSTITUTE(SUBSTITUTE(SUBSTITUTE(SUBSTITUTE(SUBSTITUTE(SUBSTITUTE(SUBSTITUTE(SUBSTITUTE(SUBSTITUTE(U200,$ED200,$ED$2&ROW($ED200)),$EC200,$EC$2&ROW($EC200)),$EB200,$EB$2&ROW($EB200)),$EA200,$EA$2&ROW($EA200)),$DZ200,$DZ$2&ROW($DZ200)),$DY200,$DY$2&ROW($DY200)),$DX200,$DX$2&ROW($DX200)),$DW200,$DW$2&ROW($DW200)),$DV200,$DV$2&ROW($DV200)),$DU200,$DU$2&ROW($DU200)),$DT200,$DT$2&ROW($DT200)),$DS200,$DS$2&ROW($DS200)))","v":"X=if(AW200=6,0.678,if(AW200=0,0.026,0))"},{"$f":"IF(V200=\"\",0,\"X=\"&SUBSTITUTE(SUBSTITUTE(SUBSTITUTE(SUBSTITUTE(SUBSTITUTE(SUBSTITUTE(SUBSTITUTE(SUBSTITUTE(SUBSTITUTE(SUBSTITUTE(SUBSTITUTE(SUBSTITUTE(V200,$ED200,$ED$2&ROW($ED200)),$EC200,$EC$2&ROW($EC200)),$EB200,$EB$2&ROW($EB200)),$EA200,$EA$2&ROW($EA200)),$DZ200,$DZ$2&ROW($DZ200)),$DY200,$DY$2&ROW($DY200)),$DX200,$DX$2&ROW($DX200)),$DW200,$DW$2&ROW($DW200)),$DV200,$DV$2&ROW($DV200)),$DU200,$DU$2&ROW($DU200)),$DT200,$DT$2&ROW($DT200)),$DS200,$DS$2&ROW($DS200)))","v":"X=if(AW200=6,0.053,if(AW200=0,0.053,0.053))"},{"$f":"IF(W200=\"\",0,\"X=\"&SUBSTITUTE(SUBSTITUTE(SUBSTITUTE(SUBSTITUTE(SUBSTITUTE(SUBSTITUTE(SUBSTITUTE(SUBSTITUTE(SUBSTITUTE(SUBSTITUTE(SUBSTITUTE(SUBSTITUTE(W200,$ED200,$ED$2&ROW($ED200)),$EC200,$EC$2&ROW($EC200)),$EB200,$EB$2&ROW($EB200)),$EA200,$EA$2&ROW($EA200)),$DZ200,$DZ$2&ROW($DZ200)),$DY200,$DY$2&ROW($DY200)),$DX200,$DX$2&ROW($DX200)),$DW200,$DW$2&ROW($DW200)),$DV200,$DV$2&ROW($DV200)),$DU200,$DU$2&ROW($DU200)),$DT200,$DT$2&ROW($DT200)),$DS200,$DS$2&ROW($DS200)))","v":"X=if(AW200=1,12.663,if(AW200=0,1.140,0))*10"},{"$f":"IF(X200=\"\",0,\"X=\"&SUBSTITUTE(SUBSTITUTE(SUBSTITUTE(SUBSTITUTE(SUBSTITUTE(SUBSTITUTE(SUBSTITUTE(SUBSTITUTE(SUBSTITUTE(SUBSTITUTE(SUBSTITUTE(SUBSTITUTE(X200,$ED200,$ED$2&ROW($ED200)),$EC200,$EC$2&ROW($EC200)),$EB200,$EB$2&ROW($EB200)),$EA200,$EA$2&ROW($EA200)),$DZ200,$DZ$2&ROW($DZ200)),$DY200,$DY$2&ROW($DY200)),$DX200,$DX$2&ROW($DX200)),$DW200,$DW$2&ROW($DW200)),$DV200,$DV$2&ROW($DV200)),$DU200,$DU$2&ROW($DU200)),$DT200,$DT$2&ROW($DT200)),$DS200,$DS$2&ROW($DS200)))","v":"X=if(AW200=2,12.663,if(AW200=0,1.659,0))"},{"$f":"IF(Y200=\"\",0,\"X=\"&SUBSTITUTE(SUBSTITUTE(SUBSTITUTE(SUBSTITUTE(SUBSTITUTE(SUBSTITUTE(SUBSTITUTE(SUBSTITUTE(SUBSTITUTE(SUBSTITUTE(SUBSTITUTE(SUBSTITUTE(Y200,$ED200,$ED$2&ROW($ED200)),$EC200,$EC$2&ROW($EC200)),$EB200,$EB$2&ROW($EB200)),$EA200,$EA$2&ROW($EA200)),$DZ200,$DZ$2&ROW($DZ200)),$DY200,$DY$2&ROW($DY200)),$DX200,$DX$2&ROW($DX200)),$DW200,$DW$2&ROW($DW200)),$DV200,$DV$2&ROW($DV200)),$DU200,$DU$2&ROW($DU200)),$DT200,$DT$2&ROW($DT200)),$DS200,$DS$2&ROW($DS200)))","v":"X=if(AW200=3,12.663,if(AW200 = 0,8.661,0))"},{"$f":"IF(Z200=\"\",0,\"X=\"&SUBSTITUTE(SUBSTITUTE(SUBSTITUTE(SUBSTITUTE(SUBSTITUTE(SUBSTITUTE(SUBSTITUTE(SUBSTITUTE(SUBSTITUTE(SUBSTITUTE(SUBSTITUTE(SUBSTITUTE(Z200,$ED200,$ED$2&ROW($ED200)),$EC200,$EC$2&ROW($EC200)),$EB200,$EB$2&ROW($EB200)),$EA200,$EA$2&ROW($EA200)),$DZ200,$DZ$2&ROW($DZ200)),$DY200,$DY$2&ROW($DY200)),$DX200,$DX$2&ROW($DX200)),$DW200,$DW$2&ROW($DW200)),$DV200,$DV$2&ROW($DV200)),$DU200,$DU$2&ROW($DU200)),$DT200,$DT$2&ROW($DT200)),$DS200,$DS$2&ROW($DS200)))","v":"X=if(AW200=4,12.663,if(AW200 = 0,0.177,0))"},{"$f":"IF(AA200=\"\",0,\"X=\"&SUBSTITUTE(SUBSTITUTE(SUBSTITUTE(SUBSTITUTE(SUBSTITUTE(SUBSTITUTE(SUBSTITUTE(SUBSTITUTE(SUBSTITUTE(SUBSTITUTE(SUBSTITUTE(SUBSTITUTE(AA200,$ED200,$ED$2&ROW($ED200)),$EC200,$EC$2&ROW($EC200)),$EB200,$EB$2&ROW($EB200)),$EA200,$EA$2&ROW($EA200)),$DZ200,$DZ$2&ROW($DZ200)),$DY200,$DY$2&ROW($DY200)),$DX200,$DX$2&ROW($DX200)),$DW200,$DW$2&ROW($DW200)),$DV200,$DV$2&ROW($DV200)),$DU200,$DU$2&ROW($DU200)),$DT200,$DT$2&ROW($DT200)),$DS200,$DS$2&ROW($DS200)))","v":"X=if(AW200=5,12.663,if(AW200 = 0,0.545,0))"},{"$f":"IF(AB200=\"\",0,\"X=\"&SUBSTITUTE(SUBSTITUTE(SUBSTITUTE(SUBSTITUTE(SUBSTITUTE(SUBSTITUTE(SUBSTITUTE(SUBSTITUTE(SUBSTITUTE(SUBSTITUTE(SUBSTITUTE(SUBSTITUTE(AB200,$ED200,$ED$2&ROW($ED200)),$EC200,$EC$2&ROW($EC200)),$EB200,$EB$2&ROW($EB200)),$EA200,$EA$2&ROW($EA200)),$DZ200,$DZ$2&ROW($DZ200)),$DY200,$DY$2&ROW($DY200)),$DX200,$DX$2&ROW($DX200)),$DW200,$DW$2&ROW($DW200)),$DV200,$DV$2&ROW($DV200)),$DU200,$DU$2&ROW($DU200)),$DT200,$DT$2&ROW($DT200)),$DS200,$DS$2&ROW($DS200)))","v":"X=0"},null,null,"{Factor:WinterCF}","{Factor:SummerCF}",{"$f":"IFERROR(INDEX($EG200:$IV200,MATCH(0,COUNTIF($DR200:DT200,$EG200:$IV200),0)),\"\")","v":"{Cost}"},{"$f":"IFERROR(INDEX($EG200:$IV200,MATCH(0,COUNTIF($DR200:DU200,$EG200:$IV200),0)),\"\")","v":"{Measure:Quantity}"},{"$f":"IFERROR(INDEX($EG200:$IV200,MATCH(0,COUNTIF($DR200:DV200,$EG200:$IV200),0)),\"\")","v":"{Primary heating type}"},{"$f":"IFERROR(INDEX($EG200:$IV200,MATCH(0,COUNTIF($DR200:DW200,$EG200:$IV200),0)),\"\")","v":""},{"$f":"IFERROR(INDEX($EG200:$IV200,MATCH(0,COUNTIF($DR200:DX200,$EG200:$IV200),0)),\"\")","v":""},{"$f":"IFERROR(INDEX($EG200:$IV200,MATCH(0,COUNTIF($DR200:DY200,$EG200:$IV200),0)),\"\")","v":""},{"$f":"IFERROR(INDEX($EG200:$IV200,MATCH(0,COUNTIF($DR200:DZ200,$EG200:$IV200),0)),\"\")","v":""},{"$f":"IFERROR(INDEX($EG200:$IV200,MATCH(0,COUNTIF($DR200:EA200,$EG200:$IV200),0)),\"\")","v":""},{"$f":"IFERROR(INDEX($EG200:$IV200,MATCH(0,COUNTIF($DR200:EB200,$EG200:$IV200),0)),\"\")","v":""},{"$f":"IFERROR(INDEX($EG200:$IV200,MATCH(0,COUNTIF($DR200:EC200,$EG200:$IV200),0)),\"\")","v":""},null,null,"","","","","","","","","","","{Cost}","{Cost}","{Measure:Quantity}","","","","","","","","{Cost}","{Cost}","","","","","","","","","{Primary heating type}","{Primary heating type}","","","","","","","","","{Primary heating type}","{Primary heating type}","","","","","","","","","{Primary heating type}","{Primary heating type}","","","","","","","","","{Primary heating type}","{Primary heating type}","","","","","","","","","{Primary heating type}","{Primary heating type}","","","","","","","","","{Primary heating type}","{Primary heating type}","","","","","","","","","{Primary heating type}","{Primary heating type}","","","","","","","","","{Primary heating type}","{Primary heating type}","","","","","","","","","{Primary heating type}","{Primary heating type}","","","","","","","","","","",null,3]
["Home Energy Savings Program - Natural Gas","Wall Insulation","BW","2021-07-01","2022-06-30","Per Measure",3752,0,"Calculated","if({Cost}*.3>1000,1000,Round({Cost}*.3,2))*{Measure:Quantity}",0,"2020-04-02","2022-06-30","Calculated","if({Primary heating type}=6,4879,if({Primary heating type}=0,216,32))",null,null,"if({Primary heating type}=6,0.068,if({Primary heating type}=0,0.068,0.068))",null,null,"if({Primary heating type}=6,1.202,if({Primary heating type}=0,0.046,0))","if({Primary heating type}=6,0.068,if({Primary heating type}=0,0.068,0.068))","if({Primary heating type}=1,20.034,if({Primary heating type}=0,1.793,0))*10","if({Primary heating type}=2,20.034,if({Primary heating type} = 0,2.610,0))","if({Primary heating type}=3,20.034,if({Primary heating type} = 0,13.628,0))","if({Primary heating type}=4,20.034,if({Primary heating type} = 0,0.279,0))","if({Primary heating type}=5,20.034,if({Primary heating type} = 0,0.857,0))",0,"2020-04-02","2022-06-30",25,1,1,0,0,0.66600000000000004,0.30099999999999999,1,1,1,0.3,2.9000000000000001E-2,null,"{Cost}",3752,"{Measure:Quantity}",1,"{Primary heating type}",1,"",null,"",null,"",null,"",null,"",null,"",null,"",null,{"$f":"IF(AW201=6,4879,IF(AW201=0,216,32))","v":32},0,0,{"$f":"IF(AW201=6,0.068,IF(AW201=0,0.068,0.068))","v":6.8000000000000005E-2},0,0,{"$f":"IF(AW201=6,1.202,IF(AW201=0,0.046,0))","v":0},{"$f":"IF(AW201=6,0.068,IF(AW201=0,0.068,0.068))","v":6.8000000000000005E-2},{"$f":"IF(AW201=1,20.034,IF(AW201=0,1.793,0))*10","v":200.33999999999997},{"$f":"IF(AW201=2,20.034,IF(AW201 = 0,2.61,0))","v":0},{"$f":"IF(AW201=3,20.034,IF(AW201 = 0,13.628,0))","v":0},{"$f":"IF(AW201=4,20.034,IF(AW201 = 0,0.279,0))","v":0},{"$f":"IF(AW201=5,20.034,IF(AW201 = 0,0.857,0))","v":0},{"$f":"0","v":0},null,"Res","RGGI DR",{"$f":"Benefits(BL201,BR201,BS201,BT201,BU201,BV201,BW201,BX201,BY201,BZ201,AE201,AH201,AI201,AJ201,AK201,AL201,AM201,AN201,AO201,AP201,CA201,CB201)","v":52.163731189655394},189.00922569169614,5360.9424564540441,0,0,0,0,0,0,{"$f":"SUMPRODUCT(CC201:CK201,--(CC201:CK201>0))","v":5602.1154133353957},{"$f":"-SUMPRODUCT(CC201:CK201,--(CC201:CK201<0))","v":0},null,{"$f":"3752","v":3752},null,null,{"$f":"CM201+CO201","v":3752},{"$f":"IF(NetOrGross=\"Net\",(1-AO201+AP201),1)","v":1},{"$f":"(SUMPRODUCT(CC201:CJ201,--(CC201:CJ201>0))+CN201)*CS201/((-SUMPRODUCT(CC201:CJ201,--(CC201:CJ201<0))+MAX(CO201,CV201)+CP201+CQ201)*CS201+IF(FRIncentives=\"Yes\",CV201*(1-CS201),0))","v":1.4931011229571951},1,{"$f":"IF(AS201*0.3>1000,1000,ROUND(AS201*0.3,2))*AU201","v":1000},null,"RGGI","y",null,{"$f":"IF(F201=\"Manual Entry\",\"Manual\",IF(G201=\"\",0,\"X=\"&SUBSTITUTE(SUBSTITUTE(SUBSTITUTE(SUBSTITUTE(SUBSTITUTE(SUBSTITUTE(SUBSTITUTE(SUBSTITUTE(SUBSTITUTE(SUBSTITUTE(SUBSTITUTE(SUBSTITUTE(G201,$ED201,$ED$2&ROW($ED201)),$EC201,$EC$2&ROW($EC201)),$EB201,$EB$2&ROW($EB201)),$EA201,$EA$2&ROW($EA201)),$DZ201,$DZ$2&ROW($DZ201)),$DY201,$DY$2&ROW($DY201)),$DX201,$DX$2&ROW($DX201)),$DW201,$DW$2&ROW($DW201)),$DV201,$DV$2&ROW($DV201)),$DU201,$DU$2&ROW($DU201)),$DT201,$DT$2&ROW($DT201)),$DS201,$DS$2&ROW($DS201))))","v":"X=3752"},{"$f":"IF(I201=\"Manual Entry\",\"Manual\",IF(J201=\"\",0,\"X=\"&SUBSTITUTE(SUBSTITUTE(SUBSTITUTE(SUBSTITUTE(SUBSTITUTE(SUBSTITUTE(SUBSTITUTE(SUBSTITUTE(SUBSTITUTE(SUBSTITUTE(SUBSTITUTE(SUBSTITUTE(J201,$ED201,$ED$2&ROW($ED201)),$EC201,$EC$2&ROW($EC201)),$EB201,$EB$2&ROW($EB201)),$EA201,$EA$2&ROW($EA201)),$DZ201,$DZ$2&ROW($DZ201)),$DY201,$DY$2&ROW($DY201)),$DX201,$DX$2&ROW($DX201)),$DW201,$DW$2&ROW($DW201)),$DV201,$DV$2&ROW($DV201)),$DU201,$DU$2&ROW($DU201)),$DT201,$DT$2&ROW($DT201)),$DS201,$DS$2&ROW($DS201))))","v":"X=if(AS201*.3>1000,1000,Round(AS201*.3,2))*AU201"},{"$f":"IF(O201=\"\",0,\"X=\"&SUBSTITUTE(SUBSTITUTE(SUBSTITUTE(SUBSTITUTE(SUBSTITUTE(SUBSTITUTE(SUBSTITUTE(SUBSTITUTE(SUBSTITUTE(SUBSTITUTE(SUBSTITUTE(SUBSTITUTE(O201,$ED201,$ED$2&ROW($ED201)),$EC201,$EC$2&ROW($EC201)),$EB201,$EB$2&ROW($EB201)),$EA201,$EA$2&ROW($EA201)),$DZ201,$DZ$2&ROW($DZ201)),$DY201,$DY$2&ROW($DY201)),$DX201,$DX$2&ROW($DX201)),$DW201,$DW$2&ROW($DW201)),$DV201,$DV$2&ROW($DV201)),$DU201,$DU$2&ROW($DU201)),$DT201,$DT$2&ROW($DT201)),$DS201,$DS$2&ROW($DS201)))","v":"X=if(AW201=6,4879,if(AW201=0,216,32))"},{"$f":"IF(P201=\"\",0,\"X=\"&SUBSTITUTE(SUBSTITUTE(SUBSTITUTE(SUBSTITUTE(SUBSTITUTE(SUBSTITUTE(SUBSTITUTE(SUBSTITUTE(SUBSTITUTE(SUBSTITUTE(SUBSTITUTE(SUBSTITUTE(P201,$ED201,$ED$2&ROW($ED201)),$EC201,$EC$2&ROW($EC201)),$EB201,$EB$2&ROW($EB201)),$EA201,$EA$2&ROW($EA201)),$DZ201,$DZ$2&ROW($DZ201)),$DY201,$DY$2&ROW($DY201)),$DX201,$DX$2&ROW($DX201)),$DW201,$DW$2&ROW($DW201)),$DV201,$DV$2&ROW($DV201)),$DU201,$DU$2&ROW($DU201)),$DT201,$DT$2&ROW($DT201)),$DS201,$DS$2&ROW($DS201)))","v":0},{"$f":"IF(Q201=\"\",0,\"X=\"&SUBSTITUTE(SUBSTITUTE(SUBSTITUTE(SUBSTITUTE(SUBSTITUTE(SUBSTITUTE(SUBSTITUTE(SUBSTITUTE(SUBSTITUTE(SUBSTITUTE(SUBSTITUTE(SUBSTITUTE(Q201,$ED201,$ED$2&ROW($ED201)),$EC201,$EC$2&ROW($EC201)),$EB201,$EB$2&ROW($EB201)),$EA201,$EA$2&ROW($EA201)),$DZ201,$DZ$2&ROW($DZ201)),$DY201,$DY$2&ROW($DY201)),$DX201,$DX$2&ROW($DX201)),$DW201,$DW$2&ROW($DW201)),$DV201,$DV$2&ROW($DV201)),$DU201,$DU$2&ROW($DU201)),$DT201,$DT$2&ROW($DT201)),$DS201,$DS$2&ROW($DS201)))","v":0},{"$f":"IF(R201=\"\",0,\"X=\"&SUBSTITUTE(SUBSTITUTE(SUBSTITUTE(SUBSTITUTE(SUBSTITUTE(SUBSTITUTE(SUBSTITUTE(SUBSTITUTE(SUBSTITUTE(SUBSTITUTE(SUBSTITUTE(SUBSTITUTE(R201,$ED201,$ED$2&ROW($ED201)),$EC201,$EC$2&ROW($EC201)),$EB201,$EB$2&ROW($EB201)),$EA201,$EA$2&ROW($EA201)),$DZ201,$DZ$2&ROW($DZ201)),$DY201,$DY$2&ROW($DY201)),$DX201,$DX$2&ROW($DX201)),$DW201,$DW$2&ROW($DW201)),$DV201,$DV$2&ROW($DV201)),$DU201,$DU$2&ROW($DU201)),$DT201,$DT$2&ROW($DT201)),$DS201,$DS$2&ROW($DS201)))","v":"X=if(AW201=6,0.068,if(AW201=0,0.068,0.068))"},{"$f":"IF(S201=\"\",0,\"X=\"&SUBSTITUTE(SUBSTITUTE(SUBSTITUTE(SUBSTITUTE(SUBSTITUTE(SUBSTITUTE(SUBSTITUTE(SUBSTITUTE(SUBSTITUTE(SUBSTITUTE(SUBSTITUTE(SUBSTITUTE(S201,$ED201,$ED$2&ROW($ED201)),$EC201,$EC$2&ROW($EC201)),$EB201,$EB$2&ROW($EB201)),$EA201,$EA$2&ROW($EA201)),$DZ201,$DZ$2&ROW($DZ201)),$DY201,$DY$2&ROW($DY201)),$DX201,$DX$2&ROW($DX201)),$DW201,$DW$2&ROW($DW201)),$DV201,$DV$2&ROW($DV201)),$DU201,$DU$2&ROW($DU201)),$DT201,$DT$2&ROW($DT201)),$DS201,$DS$2&ROW($DS201)))","v":0},{"$f":"IF(T201=\"\",0,\"X=\"&SUBSTITUTE(SUBSTITUTE(SUBSTITUTE(SUBSTITUTE(SUBSTITUTE(SUBSTITUTE(SUBSTITUTE(SUBSTITUTE(SUBSTITUTE(SUBSTITUTE(SUBSTITUTE(SUBSTITUTE(T201,$ED201,$ED$2&ROW($ED201)),$EC201,$EC$2&ROW($EC201)),$EB201,$EB$2&ROW($EB201)),$EA201,$EA$2&ROW($EA201)),$DZ201,$DZ$2&ROW($DZ201)),$DY201,$DY$2&ROW($DY201)),$DX201,$DX$2&ROW($DX201)),$DW201,$DW$2&ROW($DW201)),$DV201,$DV$2&ROW($DV201)),$DU201,$DU$2&ROW($DU201)),$DT201,$DT$2&ROW($DT201)),$DS201,$DS$2&ROW($DS201)))","v":0},{"$f":"IF(U201=\"\",0,\"X=\"&SUBSTITUTE(SUBSTITUTE(SUBSTITUTE(SUBSTITUTE(SUBSTITUTE(SUBSTITUTE(SUBSTITUTE(SUBSTITUTE(SUBSTITUTE(SUBSTITUTE(SUBSTITUTE(SUBSTITUTE(U201,$ED201,$ED$2&ROW($ED201)),$EC201,$EC$2&ROW($EC201)),$EB201,$EB$2&ROW($EB201)),$EA201,$EA$2&ROW($EA201)),$DZ201,$DZ$2&ROW($DZ201)),$DY201,$DY$2&ROW($DY201)),$DX201,$DX$2&ROW($DX201)),$DW201,$DW$2&ROW($DW201)),$DV201,$DV$2&ROW($DV201)),$DU201,$DU$2&ROW($DU201)),$DT201,$DT$2&ROW($DT201)),$DS201,$DS$2&ROW($DS201)))","v":"X=if(AW201=6,1.202,if(AW201=0,0.046,0))"},{"$f":"IF(V201=\"\",0,\"X=\"&SUBSTITUTE(SUBSTITUTE(SUBSTITUTE(SUBSTITUTE(SUBSTITUTE(SUBSTITUTE(SUBSTITUTE(SUBSTITUTE(SUBSTITUTE(SUBSTITUTE(SUBSTITUTE(SUBSTITUTE(V201,$ED201,$ED$2&ROW($ED201)),$EC201,$EC$2&ROW($EC201)),$EB201,$EB$2&ROW($EB201)),$EA201,$EA$2&ROW($EA201)),$DZ201,$DZ$2&ROW($DZ201)),$DY201,$DY$2&ROW($DY201)),$DX201,$DX$2&ROW($DX201)),$DW201,$DW$2&ROW($DW201)),$DV201,$DV$2&ROW($DV201)),$DU201,$DU$2&ROW($DU201)),$DT201,$DT$2&ROW($DT201)),$DS201,$DS$2&ROW($DS201)))","v":"X=if(AW201=6,0.068,if(AW201=0,0.068,0.068))"},{"$f":"IF(W201=\"\",0,\"X=\"&SUBSTITUTE(SUBSTITUTE(SUBSTITUTE(SUBSTITUTE(SUBSTITUTE(SUBSTITUTE(SUBSTITUTE(SUBSTITUTE(SUBSTITUTE(SUBSTITUTE(SUBSTITUTE(SUBSTITUTE(W201,$ED201,$ED$2&ROW($ED201)),$EC201,$EC$2&ROW($EC201)),$EB201,$EB$2&ROW($EB201)),$EA201,$EA$2&ROW($EA201)),$DZ201,$DZ$2&ROW($DZ201)),$DY201,$DY$2&ROW($DY201)),$DX201,$DX$2&ROW($DX201)),$DW201,$DW$2&ROW($DW201)),$DV201,$DV$2&ROW($DV201)),$DU201,$DU$2&ROW($DU201)),$DT201,$DT$2&ROW($DT201)),$DS201,$DS$2&ROW($DS201)))","v":"X=if(AW201=1,20.034,if(AW201=0,1.793,0))*10"},{"$f":"IF(X201=\"\",0,\"X=\"&SUBSTITUTE(SUBSTITUTE(SUBSTITUTE(SUBSTITUTE(SUBSTITUTE(SUBSTITUTE(SUBSTITUTE(SUBSTITUTE(SUBSTITUTE(SUBSTITUTE(SUBSTITUTE(SUBSTITUTE(X201,$ED201,$ED$2&ROW($ED201)),$EC201,$EC$2&ROW($EC201)),$EB201,$EB$2&ROW($EB201)),$EA201,$EA$2&ROW($EA201)),$DZ201,$DZ$2&ROW($DZ201)),$DY201,$DY$2&ROW($DY201)),$DX201,$DX$2&ROW($DX201)),$DW201,$DW$2&ROW($DW201)),$DV201,$DV$2&ROW($DV201)),$DU201,$DU$2&ROW($DU201)),$DT201,$DT$2&ROW($DT201)),$DS201,$DS$2&ROW($DS201)))","v":"X=if(AW201=2,20.034,if(AW201 = 0,2.610,0))"},{"$f":"IF(Y201=\"\",0,\"X=\"&SUBSTITUTE(SUBSTITUTE(SUBSTITUTE(SUBSTITUTE(SUBSTITUTE(SUBSTITUTE(SUBSTITUTE(SUBSTITUTE(SUBSTITUTE(SUBSTITUTE(SUBSTITUTE(SUBSTITUTE(Y201,$ED201,$ED$2&ROW($ED201)),$EC201,$EC$2&ROW($EC201)),$EB201,$EB$2&ROW($EB201)),$EA201,$EA$2&ROW($EA201)),$DZ201,$DZ$2&ROW($DZ201)),$DY201,$DY$2&ROW($DY201)),$DX201,$DX$2&ROW($DX201)),$DW201,$DW$2&ROW($DW201)),$DV201,$DV$2&ROW($DV201)),$DU201,$DU$2&ROW($DU201)),$DT201,$DT$2&ROW($DT201)),$DS201,$DS$2&ROW($DS201)))","v":"X=if(AW201=3,20.034,if(AW201 = 0,13.628,0))"},{"$f":"IF(Z201=\"\",0,\"X=\"&SUBSTITUTE(SUBSTITUTE(SUBSTITUTE(SUBSTITUTE(SUBSTITUTE(SUBSTITUTE(SUBSTITUTE(SUBSTITUTE(SUBSTITUTE(SUBSTITUTE(SUBSTITUTE(SUBSTITUTE(Z201,$ED201,$ED$2&ROW($ED201)),$EC201,$EC$2&ROW($EC201)),$EB201,$EB$2&ROW($EB201)),$EA201,$EA$2&ROW($EA201)),$DZ201,$DZ$2&ROW($DZ201)),$DY201,$DY$2&ROW($DY201)),$DX201,$DX$2&ROW($DX201)),$DW201,$DW$2&ROW($DW201)),$DV201,$DV$2&ROW($DV201)),$DU201,$DU$2&ROW($DU201)),$DT201,$DT$2&ROW($DT201)),$DS201,$DS$2&ROW($DS201)))","v":"X=if(AW201=4,20.034,if(AW201 = 0,0.279,0))"},{"$f":"IF(AA201=\"\",0,\"X=\"&SUBSTITUTE(SUBSTITUTE(SUBSTITUTE(SUBSTITUTE(SUBSTITUTE(SUBSTITUTE(SUBSTITUTE(SUBSTITUTE(SUBSTITUTE(SUBSTITUTE(SUBSTITUTE(SUBSTITUTE(AA201,$ED201,$ED$2&ROW($ED201)),$EC201,$EC$2&ROW($EC201)),$EB201,$EB$2&ROW($EB201)),$EA201,$EA$2&ROW($EA201)),$DZ201,$DZ$2&ROW($DZ201)),$DY201,$DY$2&ROW($DY201)),$DX201,$DX$2&ROW($DX201)),$DW201,$DW$2&ROW($DW201)),$DV201,$DV$2&ROW($DV201)),$DU201,$DU$2&ROW($DU201)),$DT201,$DT$2&ROW($DT201)),$DS201,$DS$2&ROW($DS201)))","v":"X=if(AW201=5,20.034,if(AW201 = 0,0.857,0))"},{"$f":"IF(AB201=\"\",0,\"X=\"&SUBSTITUTE(SUBSTITUTE(SUBSTITUTE(SUBSTITUTE(SUBSTITUTE(SUBSTITUTE(SUBSTITUTE(SUBSTITUTE(SUBSTITUTE(SUBSTITUTE(SUBSTITUTE(SUBSTITUTE(AB201,$ED201,$ED$2&ROW($ED201)),$EC201,$EC$2&ROW($EC201)),$EB201,$EB$2&ROW($EB201)),$EA201,$EA$2&ROW($EA201)),$DZ201,$DZ$2&ROW($DZ201)),$DY201,$DY$2&ROW($DY201)),$DX201,$DX$2&ROW($DX201)),$DW201,$DW$2&ROW($DW201)),$DV201,$DV$2&ROW($DV201)),$DU201,$DU$2&ROW($DU201)),$DT201,$DT$2&ROW($DT201)),$DS201,$DS$2&ROW($DS201)))","v":"X=0"},null,null,"{Factor:WinterCF}","{Factor:SummerCF}",{"$f":"IFERROR(INDEX($EG201:$IV201,MATCH(0,COUNTIF($DR201:DT201,$EG201:$IV201),0)),\"\")","v":"{Cost}"},{"$f":"IFERROR(INDEX($EG201:$IV201,MATCH(0,COUNTIF($DR201:DU201,$EG201:$IV201),0)),\"\")","v":"{Measure:Quantity}"},{"$f":"IFERROR(INDEX($EG201:$IV201,MATCH(0,COUNTIF($DR201:DV201,$EG201:$IV201),0)),\"\")","v":"{Primary heating type}"},{"$f":"IFERROR(INDEX($EG201:$IV201,MATCH(0,COUNTIF($DR201:DW201,$EG201:$IV201),0)),\"\")","v":""},{"$f":"IFERROR(INDEX($EG201:$IV201,MATCH(0,COUNTIF($DR201:DX201,$EG201:$IV201),0)),\"\")","v":""},{"$f":"IFERROR(INDEX($EG201:$IV201,MATCH(0,COUNTIF($DR201:DY201,$EG201:$IV201),0)),\"\")","v":""},{"$f":"IFERROR(INDEX($EG201:$IV201,MATCH(0,COUNTIF($DR201:DZ201,$EG201:$IV201),0)),\"\")","v":""},{"$f":"IFERROR(INDEX($EG201:$IV201,MATCH(0,COUNTIF($DR201:EA201,$EG201:$IV201),0)),\"\")","v":""},{"$f":"IFERROR(INDEX($EG201:$IV201,MATCH(0,COUNTIF($DR201:EB201,$EG201:$IV201),0)),\"\")","v":""},{"$f":"IFERROR(INDEX($EG201:$IV201,MATCH(0,COUNTIF($DR201:EC201,$EG201:$IV201),0)),\"\")","v":""},null,null,"","","","","","","","","","","{Cost}","{Cost}","{Measure:Quantity}","","","","","","","","{Cost}","{Cost}","","","","","","","","","{Primary heating type}","{Primary heating type}","","","","","","","","","{Primary heating type}","{Primary heating type}","","","","","","","","","{Primary heating type}","{Primary heating type}","","","","","","","","","{Primary heating type}","{Primary heating type}","","","","","","","","","{Primary heating type}","{Primary heating type}","","","","","","","","","{Primary heating type}","{Primary heating type}","","","","","","","","","{Primary heating type}","{Primary heating type}","","","","","","","","","{Primary heating type}","{Primary heating type}","","","","","","","","","{Primary heating type}","{Primary heating type}","","","","","","","","","","",null,3]
["Home Energy Savings Program - Natural Gas","Air Sealing","AA","2021-07-01","2022-06-30","Per Measure",848,0,"Calculated","$400.00*{Measure:Quantity}",400,"2020-04-02","2022-06-30","Calculated","if({Primary heating type}=6,1514,if({Primary heating type}=0,67,10))",null,null,"if({Primary heating type}=6,0.026,if({Primary heating type}=0,0.026,0.026))",null,null,"if({Primary heating type}=6,0.331,if({Primary heating type}=0,0.013,0))","if({Primary heating type}=6,0.026,if({Primary heating type}=0,0.026,0.026))","if({Primary heating type}=1,6.184,if({Primary heating type}=0,0.557,0))*10","if({Primary heating type}=2,6.184,if({Primary heating type} = 0,0.810,0))","if({Primary heating type}=3,6.184,if({Primary heating type} = 0,4.230,0))","if({Primary heating type}=4,6.184,if({Primary heating type} = 0,0.087,0))","if({Primary heating type}=5,6.184,if({Primary heating type} = 0,0.266,0))",0,"2020-04-02","2022-06-30",15,1,1,0,0,0.66600000000000004,0.30099999999999999,1,1,1,0.3,2.9000000000000001E-2,null,"{Measure:Quantity}",1,"{Primary heating type}",1,"",null,"",null,"",null,"",null,"",null,"",null,"",null,"",null,{"$f":"IF(AU202=6,1514,IF(AU202=0,67,10))","v":10},0,0,{"$f":"IF(AU202=6,0.026,IF(AU202=0,0.026,0.026))","v":2.5999999999999999E-2},0,0,{"$f":"IF(AU202=6,0.331,IF(AU202=0,0.013,0))","v":0},{"$f":"IF(AU202=6,0.026,IF(AU202=0,0.026,0.026))","v":2.5999999999999999E-2},{"$f":"IF(AU202=1,6.184,IF(AU202=0,0.557,0))*10","v":61.84},{"$f":"IF(AU202=2,6.184,IF(AU202 = 0,0.81,0))","v":0},{"$f":"IF(AU202=3,6.184,IF(AU202 = 0,4.23,0))","v":0},{"$f":"IF(AU202=4,6.184,IF(AU202 = 0,0.087,0))","v":0},{"$f":"IF(AU202=5,6.184,IF(AU202 = 0,0.266,0))","v":0},{"$f":"0","v":0},null,"Res","RGGI DR",{"$f":"Benefits(BL202,BR202,BS202,BT202,BU202,BV202,BW202,BX202,BY202,BZ202,AE202,AH202,AI202,AJ202,AK202,AL202,AM202,AN202,AO202,AP202,CA202,CB202)","v":11.517280873528332},48.953263455880382,1222.9002451057875,0,0,0,0,0,0,{"$f":"SUMPRODUCT(CC202:CK202,--(CC202:CK202>0))","v":1283.3707894351962},{"$f":"-SUMPRODUCT(CC202:CK202,--(CC202:CK202<0))","v":0},null,{"$f":"848","v":848},null,null,{"$f":"CM202+CO202","v":848},{"$f":"IF(NetOrGross=\"Net\",(1-AO202+AP202),1)","v":1},{"$f":"(SUMPRODUCT(CC202:CJ202,--(CC202:CJ202>0))+CN202)*CS202/((-SUMPRODUCT(CC202:CJ202,--(CC202:CJ202<0))+MAX(CO202,CV202)+CP202+CQ202)*CS202+IF(FRIncentives=\"Yes\",CV202*(1-CS202),0))","v":1.513408949805656},1,{"$f":"400*AS202","v":400},null,"RGGI","y",null,{"$f":"IF(F202=\"Manual Entry\",\"Manual\",IF(G202=\"\",0,\"X=\"&SUBSTITUTE(SUBSTITUTE(SUBSTITUTE(SUBSTITUTE(SUBSTITUTE(SUBSTITUTE(SUBSTITUTE(SUBSTITUTE(SUBSTITUTE(SUBSTITUTE(SUBSTITUTE(SUBSTITUTE(G202,$ED202,$ED$2&ROW($ED202)),$EC202,$EC$2&ROW($EC202)),$EB202,$EB$2&ROW($EB202)),$EA202,$EA$2&ROW($EA202)),$DZ202,$DZ$2&ROW($DZ202)),$DY202,$DY$2&ROW($DY202)),$DX202,$DX$2&ROW($DX202)),$DW202,$DW$2&ROW($DW202)),$DV202,$DV$2&ROW($DV202)),$DU202,$DU$2&ROW($DU202)),$DT202,$DT$2&ROW($DT202)),$DS202,$DS$2&ROW($DS202))))","v":"X=848"},{"$f":"IF(I202=\"Manual Entry\",\"Manual\",IF(J202=\"\",0,\"X=\"&SUBSTITUTE(SUBSTITUTE(SUBSTITUTE(SUBSTITUTE(SUBSTITUTE(SUBSTITUTE(SUBSTITUTE(SUBSTITUTE(SUBSTITUTE(SUBSTITUTE(SUBSTITUTE(SUBSTITUTE(J202,$ED202,$ED$2&ROW($ED202)),$EC202,$EC$2&ROW($EC202)),$EB202,$EB$2&ROW($EB202)),$EA202,$EA$2&ROW($EA202)),$DZ202,$DZ$2&ROW($DZ202)),$DY202,$DY$2&ROW($DY202)),$DX202,$DX$2&ROW($DX202)),$DW202,$DW$2&ROW($DW202)),$DV202,$DV$2&ROW($DV202)),$DU202,$DU$2&ROW($DU202)),$DT202,$DT$2&ROW($DT202)),$DS202,$DS$2&ROW($DS202))))","v":"X=$400.00*AS202"},{"$f":"IF(O202=\"\",0,\"X=\"&SUBSTITUTE(SUBSTITUTE(SUBSTITUTE(SUBSTITUTE(SUBSTITUTE(SUBSTITUTE(SUBSTITUTE(SUBSTITUTE(SUBSTITUTE(SUBSTITUTE(SUBSTITUTE(SUBSTITUTE(O202,$ED202,$ED$2&ROW($ED202)),$EC202,$EC$2&ROW($EC202)),$EB202,$EB$2&ROW($EB202)),$EA202,$EA$2&ROW($EA202)),$DZ202,$DZ$2&ROW($DZ202)),$DY202,$DY$2&ROW($DY202)),$DX202,$DX$2&ROW($DX202)),$DW202,$DW$2&ROW($DW202)),$DV202,$DV$2&ROW($DV202)),$DU202,$DU$2&ROW($DU202)),$DT202,$DT$2&ROW($DT202)),$DS202,$DS$2&ROW($DS202)))","v":"X=if(AU202=6,1514,if(AU202=0,67,10))"},{"$f":"IF(P202=\"\",0,\"X=\"&SUBSTITUTE(SUBSTITUTE(SUBSTITUTE(SUBSTITUTE(SUBSTITUTE(SUBSTITUTE(SUBSTITUTE(SUBSTITUTE(SUBSTITUTE(SUBSTITUTE(SUBSTITUTE(SUBSTITUTE(P202,$ED202,$ED$2&ROW($ED202)),$EC202,$EC$2&ROW($EC202)),$EB202,$EB$2&ROW($EB202)),$EA202,$EA$2&ROW($EA202)),$DZ202,$DZ$2&ROW($DZ202)),$DY202,$DY$2&ROW($DY202)),$DX202,$DX$2&ROW($DX202)),$DW202,$DW$2&ROW($DW202)),$DV202,$DV$2&ROW($DV202)),$DU202,$DU$2&ROW($DU202)),$DT202,$DT$2&ROW($DT202)),$DS202,$DS$2&ROW($DS202)))","v":0},{"$f":"IF(Q202=\"\",0,\"X=\"&SUBSTITUTE(SUBSTITUTE(SUBSTITUTE(SUBSTITUTE(SUBSTITUTE(SUBSTITUTE(SUBSTITUTE(SUBSTITUTE(SUBSTITUTE(SUBSTITUTE(SUBSTITUTE(SUBSTITUTE(Q202,$ED202,$ED$2&ROW($ED202)),$EC202,$EC$2&ROW($EC202)),$EB202,$EB$2&ROW($EB202)),$EA202,$EA$2&ROW($EA202)),$DZ202,$DZ$2&ROW($DZ202)),$DY202,$DY$2&ROW($DY202)),$DX202,$DX$2&ROW($DX202)),$DW202,$DW$2&ROW($DW202)),$DV202,$DV$2&ROW($DV202)),$DU202,$DU$2&ROW($DU202)),$DT202,$DT$2&ROW($DT202)),$DS202,$DS$2&ROW($DS202)))","v":0},{"$f":"IF(R202=\"\",0,\"X=\"&SUBSTITUTE(SUBSTITUTE(SUBSTITUTE(SUBSTITUTE(SUBSTITUTE(SUBSTITUTE(SUBSTITUTE(SUBSTITUTE(SUBSTITUTE(SUBSTITUTE(SUBSTITUTE(SUBSTITUTE(R202,$ED202,$ED$2&ROW($ED202)),$EC202,$EC$2&ROW($EC202)),$EB202,$EB$2&ROW($EB202)),$EA202,$EA$2&ROW($EA202)),$DZ202,$DZ$2&ROW($DZ202)),$DY202,$DY$2&ROW($DY202)),$DX202,$DX$2&ROW($DX202)),$DW202,$DW$2&ROW($DW202)),$DV202,$DV$2&ROW($DV202)),$DU202,$DU$2&ROW($DU202)),$DT202,$DT$2&ROW($DT202)),$DS202,$DS$2&ROW($DS202)))","v":"X=if(AU202=6,0.026,if(AU202=0,0.026,0.026))"},{"$f":"IF(S202=\"\",0,\"X=\"&SUBSTITUTE(SUBSTITUTE(SUBSTITUTE(SUBSTITUTE(SUBSTITUTE(SUBSTITUTE(SUBSTITUTE(SUBSTITUTE(SUBSTITUTE(SUBSTITUTE(SUBSTITUTE(SUBSTITUTE(S202,$ED202,$ED$2&ROW($ED202)),$EC202,$EC$2&ROW($EC202)),$EB202,$EB$2&ROW($EB202)),$EA202,$EA$2&ROW($EA202)),$DZ202,$DZ$2&ROW($DZ202)),$DY202,$DY$2&ROW($DY202)),$DX202,$DX$2&ROW($DX202)),$DW202,$DW$2&ROW($DW202)),$DV202,$DV$2&ROW($DV202)),$DU202,$DU$2&ROW($DU202)),$DT202,$DT$2&ROW($DT202)),$DS202,$DS$2&ROW($DS202)))","v":0},{"$f":"IF(T202=\"\",0,\"X=\"&SUBSTITUTE(SUBSTITUTE(SUBSTITUTE(SUBSTITUTE(SUBSTITUTE(SUBSTITUTE(SUBSTITUTE(SUBSTITUTE(SUBSTITUTE(SUBSTITUTE(SUBSTITUTE(SUBSTITUTE(T202,$ED202,$ED$2&ROW($ED202)),$EC202,$EC$2&ROW($EC202)),$EB202,$EB$2&ROW($EB202)),$EA202,$EA$2&ROW($EA202)),$DZ202,$DZ$2&ROW($DZ202)),$DY202,$DY$2&ROW($DY202)),$DX202,$DX$2&ROW($DX202)),$DW202,$DW$2&ROW($DW202)),$DV202,$DV$2&ROW($DV202)),$DU202,$DU$2&ROW($DU202)),$DT202,$DT$2&ROW($DT202)),$DS202,$DS$2&ROW($DS202)))","v":0},{"$f":"IF(U202=\"\",0,\"X=\"&SUBSTITUTE(SUBSTITUTE(SUBSTITUTE(SUBSTITUTE(SUBSTITUTE(SUBSTITUTE(SUBSTITUTE(SUBSTITUTE(SUBSTITUTE(SUBSTITUTE(SUBSTITUTE(SUBSTITUTE(U202,$ED202,$ED$2&ROW($ED202)),$EC202,$EC$2&ROW($EC202)),$EB202,$EB$2&ROW($EB202)),$EA202,$EA$2&ROW($EA202)),$DZ202,$DZ$2&ROW($DZ202)),$DY202,$DY$2&ROW($DY202)),$DX202,$DX$2&ROW($DX202)),$DW202,$DW$2&ROW($DW202)),$DV202,$DV$2&ROW($DV202)),$DU202,$DU$2&ROW($DU202)),$DT202,$DT$2&ROW($DT202)),$DS202,$DS$2&ROW($DS202)))","v":"X=if(AU202=6,0.331,if(AU202=0,0.013,0))"},{"$f":"IF(V202=\"\",0,\"X=\"&SUBSTITUTE(SUBSTITUTE(SUBSTITUTE(SUBSTITUTE(SUBSTITUTE(SUBSTITUTE(SUBSTITUTE(SUBSTITUTE(SUBSTITUTE(SUBSTITUTE(SUBSTITUTE(SUBSTITUTE(V202,$ED202,$ED$2&ROW($ED202)),$EC202,$EC$2&ROW($EC202)),$EB202,$EB$2&ROW($EB202)),$EA202,$EA$2&ROW($EA202)),$DZ202,$DZ$2&ROW($DZ202)),$DY202,$DY$2&ROW($DY202)),$DX202,$DX$2&ROW($DX202)),$DW202,$DW$2&ROW($DW202)),$DV202,$DV$2&ROW($DV202)),$DU202,$DU$2&ROW($DU202)),$DT202,$DT$2&ROW($DT202)),$DS202,$DS$2&ROW($DS202)))","v":"X=if(AU202=6,0.026,if(AU202=0,0.026,0.026))"},{"$f":"IF(W202=\"\",0,\"X=\"&SUBSTITUTE(SUBSTITUTE(SUBSTITUTE(SUBSTITUTE(SUBSTITUTE(SUBSTITUTE(SUBSTITUTE(SUBSTITUTE(SUBSTITUTE(SUBSTITUTE(SUBSTITUTE(SUBSTITUTE(W202,$ED202,$ED$2&ROW($ED202)),$EC202,$EC$2&ROW($EC202)),$EB202,$EB$2&ROW($EB202)),$EA202,$EA$2&ROW($EA202)),$DZ202,$DZ$2&ROW($DZ202)),$DY202,$DY$2&ROW($DY202)),$DX202,$DX$2&ROW($DX202)),$DW202,$DW$2&ROW($DW202)),$DV202,$DV$2&ROW($DV202)),$DU202,$DU$2&ROW($DU202)),$DT202,$DT$2&ROW($DT202)),$DS202,$DS$2&ROW($DS202)))","v":"X=if(AU202=1,6.184,if(AU202=0,0.557,0))*10"},{"$f":"IF(X202=\"\",0,\"X=\"&SUBSTITUTE(SUBSTITUTE(SUBSTITUTE(SUBSTITUTE(SUBSTITUTE(SUBSTITUTE(SUBSTITUTE(SUBSTITUTE(SUBSTITUTE(SUBSTITUTE(SUBSTITUTE(SUBSTITUTE(X202,$ED202,$ED$2&ROW($ED202)),$EC202,$EC$2&ROW($EC202)),$EB202,$EB$2&ROW($EB202)),$EA202,$EA$2&ROW($EA202)),$DZ202,$DZ$2&ROW($DZ202)),$DY202,$DY$2&ROW($DY202)),$DX202,$DX$2&ROW($DX202)),$DW202,$DW$2&ROW($DW202)),$DV202,$DV$2&ROW($DV202)),$DU202,$DU$2&ROW($DU202)),$DT202,$DT$2&ROW($DT202)),$DS202,$DS$2&ROW($DS202)))","v":"X=if(AU202=2,6.184,if(AU202 = 0,0.810,0))"},{"$f":"IF(Y202=\"\",0,\"X=\"&SUBSTITUTE(SUBSTITUTE(SUBSTITUTE(SUBSTITUTE(SUBSTITUTE(SUBSTITUTE(SUBSTITUTE(SUBSTITUTE(SUBSTITUTE(SUBSTITUTE(SUBSTITUTE(SUBSTITUTE(Y202,$ED202,$ED$2&ROW($ED202)),$EC202,$EC$2&ROW($EC202)),$EB202,$EB$2&ROW($EB202)),$EA202,$EA$2&ROW($EA202)),$DZ202,$DZ$2&ROW($DZ202)),$DY202,$DY$2&ROW($DY202)),$DX202,$DX$2&ROW($DX202)),$DW202,$DW$2&ROW($DW202)),$DV202,$DV$2&ROW($DV202)),$DU202,$DU$2&ROW($DU202)),$DT202,$DT$2&ROW($DT202)),$DS202,$DS$2&ROW($DS202)))","v":"X=if(AU202=3,6.184,if(AU202 = 0,4.230,0))"},{"$f":"IF(Z202=\"\",0,\"X=\"&SUBSTITUTE(SUBSTITUTE(SUBSTITUTE(SUBSTITUTE(SUBSTITUTE(SUBSTITUTE(SUBSTITUTE(SUBSTITUTE(SUBSTITUTE(SUBSTITUTE(SUBSTITUTE(SUBSTITUTE(Z202,$ED202,$ED$2&ROW($ED202)),$EC202,$EC$2&ROW($EC202)),$EB202,$EB$2&ROW($EB202)),$EA202,$EA$2&ROW($EA202)),$DZ202,$DZ$2&ROW($DZ202)),$DY202,$DY$2&ROW($DY202)),$DX202,$DX$2&ROW($DX202)),$DW202,$DW$2&ROW($DW202)),$DV202,$DV$2&ROW($DV202)),$DU202,$DU$2&ROW($DU202)),$DT202,$DT$2&ROW($DT202)),$DS202,$DS$2&ROW($DS202)))","v":"X=if(AU202=4,6.184,if(AU202 = 0,0.087,0))"},{"$f":"IF(AA202=\"\",0,\"X=\"&SUBSTITUTE(SUBSTITUTE(SUBSTITUTE(SUBSTITUTE(SUBSTITUTE(SUBSTITUTE(SUBSTITUTE(SUBSTITUTE(SUBSTITUTE(SUBSTITUTE(SUBSTITUTE(SUBSTITUTE(AA202,$ED202,$ED$2&ROW($ED202)),$EC202,$EC$2&ROW($EC202)),$EB202,$EB$2&ROW($EB202)),$EA202,$EA$2&ROW($EA202)),$DZ202,$DZ$2&ROW($DZ202)),$DY202,$DY$2&ROW($DY202)),$DX202,$DX$2&ROW($DX202)),$DW202,$DW$2&ROW($DW202)),$DV202,$DV$2&ROW($DV202)),$DU202,$DU$2&ROW($DU202)),$DT202,$DT$2&ROW($DT202)),$DS202,$DS$2&ROW($DS202)))","v":"X=if(AU202=5,6.184,if(AU202 = 0,0.266,0))"},{"$f":"IF(AB202=\"\",0,\"X=\"&SUBSTITUTE(SUBSTITUTE(SUBSTITUTE(SUBSTITUTE(SUBSTITUTE(SUBSTITUTE(SUBSTITUTE(SUBSTITUTE(SUBSTITUTE(SUBSTITUTE(SUBSTITUTE(SUBSTITUTE(AB202,$ED202,$ED$2&ROW($ED202)),$EC202,$EC$2&ROW($EC202)),$EB202,$EB$2&ROW($EB202)),$EA202,$EA$2&ROW($EA202)),$DZ202,$DZ$2&ROW($DZ202)),$DY202,$DY$2&ROW($DY202)),$DX202,$DX$2&ROW($DX202)),$DW202,$DW$2&ROW($DW202)),$DV202,$DV$2&ROW($DV202)),$DU202,$DU$2&ROW($DU202)),$DT202,$DT$2&ROW($DT202)),$DS202,$DS$2&ROW($DS202)))","v":"X=0"},null,null,"{Factor:WinterCF}","{Factor:SummerCF}",{"$f":"IFERROR(INDEX($EG202:$IV202,MATCH(0,COUNTIF($DR202:DT202,$EG202:$IV202),0)),\"\")","v":"{Measure:Quantity}"},{"$f":"IFERROR(INDEX($EG202:$IV202,MATCH(0,COUNTIF($DR202:DU202,$EG202:$IV202),0)),\"\")","v":"{Primary heating type}"},{"$f":"IFERROR(INDEX($EG202:$IV202,MATCH(0,COUNTIF($DR202:DV202,$EG202:$IV202),0)),\"\")","v":""},{"$f":"IFERROR(INDEX($EG202:$IV202,MATCH(0,COUNTIF($DR202:DW202,$EG202:$IV202),0)),\"\")","v":""},{"$f":"IFERROR(INDEX($EG202:$IV202,MATCH(0,COUNTIF($DR202:DX202,$EG202:$IV202),0)),\"\")","v":""},{"$f":"IFERROR(INDEX($EG202:$IV202,MATCH(0,COUNTIF($DR202:DY202,$EG202:$IV202),0)),\"\")","v":""},{"$f":"IFERROR(INDEX($EG202:$IV202,MATCH(0,COUNTIF($DR202:DZ202,$EG202:$IV202),0)),\"\")","v":""},{"$f":"IFERROR(INDEX($EG202:$IV202,MATCH(0,COUNTIF($DR202:EA202,$EG202:$IV202),0)),\"\")","v":""},{"$f":"IFERROR(INDEX($EG202:$IV202,MATCH(0,COUNTIF($DR202:EB202,$EG202:$IV202),0)),\"\")","v":""},{"$f":"IFERROR(INDEX($EG202:$IV202,MATCH(0,COUNTIF($DR202:EC202,$EG202:$IV202),0)),\"\")","v":""},null,null,"","","","","","","","","","","{Measure:Quantity}","","","","","","","","","","{Measure:Quantity}","","","","","","","","","","{Primary heating type}","{Primary heating type}","","","","","","","","","{Primary heating type}","{Primary heating type}","","","","","","","","","{Primary heating type}","{Primary heating type}","","","","","","","","","{Primary heating type}","{Primary heating type}","","","","","","","","","{Primary heating type}","{Primary heating type}","","","","","","","","","{Primary heating type}","{Primary heating type}","","","","","","","","","{Primary heating type}","{Primary heating type}","","","","","","","","","{Primary heating type}","{Primary heating type}","","","","","","","","","{Primary heating type}","{Primary heating type}","","","","","","","","","","",null,2]
["Home Energy Savings Program - Other Fuels","Geothermal Heat Pump","GHP","2021-07-01","2022-06-30","Per Measure",31000,0,"Calculated","if({Cost}/3>3000,3000,Round({Cost}/3,2))*{Measure:Quantity}",0,"2020-04-02","2022-06-30","Per Measure",-6588,null,null,-2.573,null,null,-2.048,-1.4999999999999999E-2,0,0,109.524,0,0,0,"2020-04-02","2022-06-30",25,0.79600000000000004,0.10199999999999999,0.38500000000000001,0.54100000000000004,3.3000000000000002E-2,0.04,1,1,1,0.35,0.06,null,{"$f":"DU203","v":"{Cost}"},31000,{"$f":"DV203","v":"{Measure:Quantity}"},1,{"$f":"DW203","v":""},null,{"$f":"DX203","v":""},null,{"$f":"DY203","v":""},null,{"$f":"DZ203","v":""},null,{"$f":"EA203","v":""},null,{"$f":"EB203","v":""},null,{"$f":"EC203","v":""},null,{"$f":"ED203","v":""},null,{"$f":"-6588","v":-6588},0,0,{"$f":"-2.573","v":-2.573},0,0,{"$f":"-2.048","v":-2.048},{"$f":"-0.015","v":-1.4999999999999999E-2},{"$f":"0","v":0},{"$f":"0","v":0},{"$f":"109.524","v":109.524},{"$f":"0","v":0},{"$f":"0","v":0},{"$f":"0","v":0},null,"Res","RGGI DR",{"$f":"Benefits(BL203,BR203,BS203,BT203,BU203,BV203,BW203,BX203,BY203,BZ203,AE203,AH203,AI203,AJ203,AK203,AL203,AM203,AN203,AO203,AP203,CA203,CB203)","v":-12900.974663832832},-11426.719512037689,0,66236.331102525204,0,0,0,0,0,{"$f":"SUMPRODUCT(CC203:CK203,--(CC203:CK203>0))","v":66236.331102525204},{"$f":"-SUMPRODUCT(CC203:CK203,--(CC203:CK203<0))","v":24327.694175870522},null,{"$f":"31000","v":31000},null,null,{"$f":"CM203+CO203","v":55327.694175870522},{"$f":"IF(NetOrGross=\"Net\",(1-AO203+AP203),1)","v":1},{"$f":"(SUMPRODUCT(CC203:CJ203,--(CC203:CJ203>0))+CN203)*CS203/((-SUMPRODUCT(CC203:CJ203,--(CC203:CJ203<0))+MAX(CO203,CV203)+CP203+CQ203)*CS203+IF(FRIncentives=\"Yes\",CV203*(1-CS203),0))","v":1.1971641343298949},1,{"$f":"IF(AS203/3>3000,3000,ROUND(AS203/3,2))*AU203","v":3000},null,"RGGI","y",null,{"$f":"IF(F203=\"Manual Entry\",\"Manual\",IF(G203=\"\",0,\"X=\"&SUBSTITUTE(SUBSTITUTE(SUBSTITUTE(SUBSTITUTE(SUBSTITUTE(SUBSTITUTE(SUBSTITUTE(SUBSTITUTE(SUBSTITUTE(SUBSTITUTE(SUBSTITUTE(SUBSTITUTE(G203,$ED203,$ED$2&ROW($ED203)),$EC203,$EC$2&ROW($EC203)),$EB203,$EB$2&ROW($EB203)),$EA203,$EA$2&ROW($EA203)),$DZ203,$DZ$2&ROW($DZ203)),$DY203,$DY$2&ROW($DY203)),$DX203,$DX$2&ROW($DX203)),$DW203,$DW$2&ROW($DW203)),$DV203,$DV$2&ROW($DV203)),$DU203,$DU$2&ROW($DU203)),$DT203,$DT$2&ROW($DT203)),$DS203,$DS$2&ROW($DS203))))","v":"X=31000"},{"$f":"IF(I203=\"Manual Entry\",\"Manual\",IF(J203=\"\",0,\"X=\"&SUBSTITUTE(SUBSTITUTE(SUBSTITUTE(SUBSTITUTE(SUBSTITUTE(SUBSTITUTE(SUBSTITUTE(SUBSTITUTE(SUBSTITUTE(SUBSTITUTE(SUBSTITUTE(SUBSTITUTE(J203,$ED203,$ED$2&ROW($ED203)),$EC203,$EC$2&ROW($EC203)),$EB203,$EB$2&ROW($EB203)),$EA203,$EA$2&ROW($EA203)),$DZ203,$DZ$2&ROW($DZ203)),$DY203,$DY$2&ROW($DY203)),$DX203,$DX$2&ROW($DX203)),$DW203,$DW$2&ROW($DW203)),$DV203,$DV$2&ROW($DV203)),$DU203,$DU$2&ROW($DU203)),$DT203,$DT$2&ROW($DT203)),$DS203,$DS$2&ROW($DS203))))","v":"X=if(AS203/3>3000,3000,Round(AS203/3,2))*AU203"},{"$f":"IF(O203=\"\",0,\"X=\"&SUBSTITUTE(SUBSTITUTE(SUBSTITUTE(SUBSTITUTE(SUBSTITUTE(SUBSTITUTE(SUBSTITUTE(SUBSTITUTE(SUBSTITUTE(SUBSTITUTE(SUBSTITUTE(SUBSTITUTE(O203,$ED203,$ED$2&ROW($ED203)),$EC203,$EC$2&ROW($EC203)),$EB203,$EB$2&ROW($EB203)),$EA203,$EA$2&ROW($EA203)),$DZ203,$DZ$2&ROW($DZ203)),$DY203,$DY$2&ROW($DY203)),$DX203,$DX$2&ROW($DX203)),$DW203,$DW$2&ROW($DW203)),$DV203,$DV$2&ROW($DV203)),$DU203,$DU$2&ROW($DU203)),$DT203,$DT$2&ROW($DT203)),$DS203,$DS$2&ROW($DS203)))","v":"X=-6588"},{"$f":"IF(P203=\"\",0,\"X=\"&SUBSTITUTE(SUBSTITUTE(SUBSTITUTE(SUBSTITUTE(SUBSTITUTE(SUBSTITUTE(SUBSTITUTE(SUBSTITUTE(SUBSTITUTE(SUBSTITUTE(SUBSTITUTE(SUBSTITUTE(P203,$ED203,$ED$2&ROW($ED203)),$EC203,$EC$2&ROW($EC203)),$EB203,$EB$2&ROW($EB203)),$EA203,$EA$2&ROW($EA203)),$DZ203,$DZ$2&ROW($DZ203)),$DY203,$DY$2&ROW($DY203)),$DX203,$DX$2&ROW($DX203)),$DW203,$DW$2&ROW($DW203)),$DV203,$DV$2&ROW($DV203)),$DU203,$DU$2&ROW($DU203)),$DT203,$DT$2&ROW($DT203)),$DS203,$DS$2&ROW($DS203)))","v":0},{"$f":"IF(Q203=\"\",0,\"X=\"&SUBSTITUTE(SUBSTITUTE(SUBSTITUTE(SUBSTITUTE(SUBSTITUTE(SUBSTITUTE(SUBSTITUTE(SUBSTITUTE(SUBSTITUTE(SUBSTITUTE(SUBSTITUTE(SUBSTITUTE(Q203,$ED203,$ED$2&ROW($ED203)),$EC203,$EC$2&ROW($EC203)),$EB203,$EB$2&ROW($EB203)),$EA203,$EA$2&ROW($EA203)),$DZ203,$DZ$2&ROW($DZ203)),$DY203,$DY$2&ROW($DY203)),$DX203,$DX$2&ROW($DX203)),$DW203,$DW$2&ROW($DW203)),$DV203,$DV$2&ROW($DV203)),$DU203,$DU$2&ROW($DU203)),$DT203,$DT$2&ROW($DT203)),$DS203,$DS$2&ROW($DS203)))","v":0},{"$f":"IF(R203=\"\",0,\"X=\"&SUBSTITUTE(SUBSTITUTE(SUBSTITUTE(SUBSTITUTE(SUBSTITUTE(SUBSTITUTE(SUBSTITUTE(SUBSTITUTE(SUBSTITUTE(SUBSTITUTE(SUBSTITUTE(SUBSTITUTE(R203,$ED203,$ED$2&ROW($ED203)),$EC203,$EC$2&ROW($EC203)),$EB203,$EB$2&ROW($EB203)),$EA203,$EA$2&ROW($EA203)),$DZ203,$DZ$2&ROW($DZ203)),$DY203,$DY$2&ROW($DY203)),$DX203,$DX$2&ROW($DX203)),$DW203,$DW$2&ROW($DW203)),$DV203,$DV$2&ROW($DV203)),$DU203,$DU$2&ROW($DU203)),$DT203,$DT$2&ROW($DT203)),$DS203,$DS$2&ROW($DS203)))","v":"X=-2.573"},{"$f":"IF(S203=\"\",0,\"X=\"&SUBSTITUTE(SUBSTITUTE(SUBSTITUTE(SUBSTITUTE(SUBSTITUTE(SUBSTITUTE(SUBSTITUTE(SUBSTITUTE(SUBSTITUTE(SUBSTITUTE(SUBSTITUTE(SUBSTITUTE(S203,$ED203,$ED$2&ROW($ED203)),$EC203,$EC$2&ROW($EC203)),$EB203,$EB$2&ROW($EB203)),$EA203,$EA$2&ROW($EA203)),$DZ203,$DZ$2&ROW($DZ203)),$DY203,$DY$2&ROW($DY203)),$DX203,$DX$2&ROW($DX203)),$DW203,$DW$2&ROW($DW203)),$DV203,$DV$2&ROW($DV203)),$DU203,$DU$2&ROW($DU203)),$DT203,$DT$2&ROW($DT203)),$DS203,$DS$2&ROW($DS203)))","v":0},{"$f":"IF(T203=\"\",0,\"X=\"&SUBSTITUTE(SUBSTITUTE(SUBSTITUTE(SUBSTITUTE(SUBSTITUTE(SUBSTITUTE(SUBSTITUTE(SUBSTITUTE(SUBSTITUTE(SUBSTITUTE(SUBSTITUTE(SUBSTITUTE(T203,$ED203,$ED$2&ROW($ED203)),$EC203,$EC$2&ROW($EC203)),$EB203,$EB$2&ROW($EB203)),$EA203,$EA$2&ROW($EA203)),$DZ203,$DZ$2&ROW($DZ203)),$DY203,$DY$2&ROW($DY203)),$DX203,$DX$2&ROW($DX203)),$DW203,$DW$2&ROW($DW203)),$DV203,$DV$2&ROW($DV203)),$DU203,$DU$2&ROW($DU203)),$DT203,$DT$2&ROW($DT203)),$DS203,$DS$2&ROW($DS203)))","v":0},{"$f":"IF(U203=\"\",0,\"X=\"&SUBSTITUTE(SUBSTITUTE(SUBSTITUTE(SUBSTITUTE(SUBSTITUTE(SUBSTITUTE(SUBSTITUTE(SUBSTITUTE(SUBSTITUTE(SUBSTITUTE(SUBSTITUTE(SUBSTITUTE(U203,$ED203,$ED$2&ROW($ED203)),$EC203,$EC$2&ROW($EC203)),$EB203,$EB$2&ROW($EB203)),$EA203,$EA$2&ROW($EA203)),$DZ203,$DZ$2&ROW($DZ203)),$DY203,$DY$2&ROW($DY203)),$DX203,$DX$2&ROW($DX203)),$DW203,$DW$2&ROW($DW203)),$DV203,$DV$2&ROW($DV203)),$DU203,$DU$2&ROW($DU203)),$DT203,$DT$2&ROW($DT203)),$DS203,$DS$2&ROW($DS203)))","v":"X=-2.048"},{"$f":"IF(V203=\"\",0,\"X=\"&SUBSTITUTE(SUBSTITUTE(SUBSTITUTE(SUBSTITUTE(SUBSTITUTE(SUBSTITUTE(SUBSTITUTE(SUBSTITUTE(SUBSTITUTE(SUBSTITUTE(SUBSTITUTE(SUBSTITUTE(V203,$ED203,$ED$2&ROW($ED203)),$EC203,$EC$2&ROW($EC203)),$EB203,$EB$2&ROW($EB203)),$EA203,$EA$2&ROW($EA203)),$DZ203,$DZ$2&ROW($DZ203)),$DY203,$DY$2&ROW($DY203)),$DX203,$DX$2&ROW($DX203)),$DW203,$DW$2&ROW($DW203)),$DV203,$DV$2&ROW($DV203)),$DU203,$DU$2&ROW($DU203)),$DT203,$DT$2&ROW($DT203)),$DS203,$DS$2&ROW($DS203)))","v":"X=-0.015"},{"$f":"IF(W203=\"\",0,\"X=\"&SUBSTITUTE(SUBSTITUTE(SUBSTITUTE(SUBSTITUTE(SUBSTITUTE(SUBSTITUTE(SUBSTITUTE(SUBSTITUTE(SUBSTITUTE(SUBSTITUTE(SUBSTITUTE(SUBSTITUTE(W203,$ED203,$ED$2&ROW($ED203)),$EC203,$EC$2&ROW($EC203)),$EB203,$EB$2&ROW($EB203)),$EA203,$EA$2&ROW($EA203)),$DZ203,$DZ$2&ROW($DZ203)),$DY203,$DY$2&ROW($DY203)),$DX203,$DX$2&ROW($DX203)),$DW203,$DW$2&ROW($DW203)),$DV203,$DV$2&ROW($DV203)),$DU203,$DU$2&ROW($DU203)),$DT203,$DT$2&ROW($DT203)),$DS203,$DS$2&ROW($DS203)))","v":"X=0"},{"$f":"IF(X203=\"\",0,\"X=\"&SUBSTITUTE(SUBSTITUTE(SUBSTITUTE(SUBSTITUTE(SUBSTITUTE(SUBSTITUTE(SUBSTITUTE(SUBSTITUTE(SUBSTITUTE(SUBSTITUTE(SUBSTITUTE(SUBSTITUTE(X203,$ED203,$ED$2&ROW($ED203)),$EC203,$EC$2&ROW($EC203)),$EB203,$EB$2&ROW($EB203)),$EA203,$EA$2&ROW($EA203)),$DZ203,$DZ$2&ROW($DZ203)),$DY203,$DY$2&ROW($DY203)),$DX203,$DX$2&ROW($DX203)),$DW203,$DW$2&ROW($DW203)),$DV203,$DV$2&ROW($DV203)),$DU203,$DU$2&ROW($DU203)),$DT203,$DT$2&ROW($DT203)),$DS203,$DS$2&ROW($DS203)))","v":"X=0"},{"$f":"IF(Y203=\"\",0,\"X=\"&SUBSTITUTE(SUBSTITUTE(SUBSTITUTE(SUBSTITUTE(SUBSTITUTE(SUBSTITUTE(SUBSTITUTE(SUBSTITUTE(SUBSTITUTE(SUBSTITUTE(SUBSTITUTE(SUBSTITUTE(Y203,$ED203,$ED$2&ROW($ED203)),$EC203,$EC$2&ROW($EC203)),$EB203,$EB$2&ROW($EB203)),$EA203,$EA$2&ROW($EA203)),$DZ203,$DZ$2&ROW($DZ203)),$DY203,$DY$2&ROW($DY203)),$DX203,$DX$2&ROW($DX203)),$DW203,$DW$2&ROW($DW203)),$DV203,$DV$2&ROW($DV203)),$DU203,$DU$2&ROW($DU203)),$DT203,$DT$2&ROW($DT203)),$DS203,$DS$2&ROW($DS203)))","v":"X=109.524"},{"$f":"IF(Z203=\"\",0,\"X=\"&SUBSTITUTE(SUBSTITUTE(SUBSTITUTE(SUBSTITUTE(SUBSTITUTE(SUBSTITUTE(SUBSTITUTE(SUBSTITUTE(SUBSTITUTE(SUBSTITUTE(SUBSTITUTE(SUBSTITUTE(Z203,$ED203,$ED$2&ROW($ED203)),$EC203,$EC$2&ROW($EC203)),$EB203,$EB$2&ROW($EB203)),$EA203,$EA$2&ROW($EA203)),$DZ203,$DZ$2&ROW($DZ203)),$DY203,$DY$2&ROW($DY203)),$DX203,$DX$2&ROW($DX203)),$DW203,$DW$2&ROW($DW203)),$DV203,$DV$2&ROW($DV203)),$DU203,$DU$2&ROW($DU203)),$DT203,$DT$2&ROW($DT203)),$DS203,$DS$2&ROW($DS203)))","v":"X=0"},{"$f":"IF(AA203=\"\",0,\"X=\"&SUBSTITUTE(SUBSTITUTE(SUBSTITUTE(SUBSTITUTE(SUBSTITUTE(SUBSTITUTE(SUBSTITUTE(SUBSTITUTE(SUBSTITUTE(SUBSTITUTE(SUBSTITUTE(SUBSTITUTE(AA203,$ED203,$ED$2&ROW($ED203)),$EC203,$EC$2&ROW($EC203)),$EB203,$EB$2&ROW($EB203)),$EA203,$EA$2&ROW($EA203)),$DZ203,$DZ$2&ROW($DZ203)),$DY203,$DY$2&ROW($DY203)),$DX203,$DX$2&ROW($DX203)),$DW203,$DW$2&ROW($DW203)),$DV203,$DV$2&ROW($DV203)),$DU203,$DU$2&ROW($DU203)),$DT203,$DT$2&ROW($DT203)),$DS203,$DS$2&ROW($DS203)))","v":"X=0"},{"$f":"IF(AB203=\"\",0,\"X=\"&SUBSTITUTE(SUBSTITUTE(SUBSTITUTE(SUBSTITUTE(SUBSTITUTE(SUBSTITUTE(SUBSTITUTE(SUBSTITUTE(SUBSTITUTE(SUBSTITUTE(SUBSTITUTE(SUBSTITUTE(AB203,$ED203,$ED$2&ROW($ED203)),$EC203,$EC$2&ROW($EC203)),$EB203,$EB$2&ROW($EB203)),$EA203,$EA$2&ROW($EA203)),$DZ203,$DZ$2&ROW($DZ203)),$DY203,$DY$2&ROW($DY203)),$DX203,$DX$2&ROW($DX203)),$DW203,$DW$2&ROW($DW203)),$DV203,$DV$2&ROW($DV203)),$DU203,$DU$2&ROW($DU203)),$DT203,$DT$2&ROW($DT203)),$DS203,$DS$2&ROW($DS203)))","v":"X=0"},null,null,"{Factor:WinterCF}","{Factor:SummerCF}",{"$f":"IFERROR(INDEX($EG203:$IV203,MATCH(0,COUNTIF($DR203:DT203,$EG203:$IV203),0)),\"\")","v":"{Cost}"},{"$f":"IFERROR(INDEX($EG203:$IV203,MATCH(0,COUNTIF($DR203:DU203,$EG203:$IV203),0)),\"\")","v":"{Measure:Quantity}"},{"$f":"IFERROR(INDEX($EG203:$IV203,MATCH(0,COUNTIF($DR203:DV203,$EG203:$IV203),0)),\"\")","v":""},{"$f":"IFERROR(INDEX($EG203:$IV203,MATCH(0,COUNTIF($DR203:DW203,$EG203:$IV203),0)),\"\")","v":""},{"$f":"IFERROR(INDEX($EG203:$IV203,MATCH(0,COUNTIF($DR203:DX203,$EG203:$IV203),0)),\"\")","v":""},{"$f":"IFERROR(INDEX($EG203:$IV203,MATCH(0,COUNTIF($DR203:DY203,$EG203:$IV203),0)),\"\")","v":""},{"$f":"IFERROR(INDEX($EG203:$IV203,MATCH(0,COUNTIF($DR203:DZ203,$EG203:$IV203),0)),\"\")","v":""},{"$f":"IFERROR(INDEX($EG203:$IV203,MATCH(0,COUNTIF($DR203:EA203,$EG203:$IV203),0)),\"\")","v":""},{"$f":"IFERROR(INDEX($EG203:$IV203,MATCH(0,COUNTIF($DR203:EB203,$EG203:$IV203),0)),\"\")","v":""},{"$f":"IFERROR(INDEX($EG203:$IV203,MATCH(0,COUNTIF($DR203:EC203,$EG203:$IV203),0)),\"\")","v":""},null,null,{"$f":"IFERROR(MID($G203,FIND(CHAR(160),SUBSTITUTE($G203,\"{\",CHAR(160),EG$1)),FIND(CHAR(160),SUBSTITUTE($G203,\"}\",CHAR(160),EG$1))-FIND(CHAR(160),SUBSTITUTE($G203,\"{\",CHAR(160),EG$1))+1),\"\")","v":""},{"$f":"IFERROR(MID($G203,FIND(CHAR(160),SUBSTITUTE($G203,\"{\",CHAR(160),EH$1)),FIND(CHAR(160),SUBSTITUTE($G203,\"}\",CHAR(160),EH$1))-FIND(CHAR(160),SUBSTITUTE($G203,\"{\",CHAR(160),EH$1))+1),\"\")","v":""},{"$f":"IFERROR(MID($G203,FIND(CHAR(160),SUBSTITUTE($G203,\"{\",CHAR(160),EI$1)),FIND(CHAR(160),SUBSTITUTE($G203,\"}\",CHAR(160),EI$1))-FIND(CHAR(160),SUBSTITUTE($G203,\"{\",CHAR(160),EI$1))+1),\"\")","v":""},{"$f":"IFERROR(MID($G203,FIND(CHAR(160),SUBSTITUTE($G203,\"{\",CHAR(160),EJ$1)),FIND(CHAR(160),SUBSTITUTE($G203,\"}\",CHAR(160),EJ$1))-FIND(CHAR(160),SUBSTITUTE($G203,\"{\",CHAR(160),EJ$1))+1),\"\")","v":""},{"$f":"IFERROR(MID($G203,FIND(CHAR(160),SUBSTITUTE($G203,\"{\",CHAR(160),EK$1)),FIND(CHAR(160),SUBSTITUTE($G203,\"}\",CHAR(160),EK$1))-FIND(CHAR(160),SUBSTITUTE($G203,\"{\",CHAR(160),EK$1))+1),\"\")","v":""},{"$f":"IFERROR(MID($G203,FIND(CHAR(160),SUBSTITUTE($G203,\"{\",CHAR(160),EL$1)),FIND(CHAR(160),SUBSTITUTE($G203,\"}\",CHAR(160),EL$1))-FIND(CHAR(160),SUBSTITUTE($G203,\"{\",CHAR(160),EL$1))+1),\"\")","v":""},{"$f":"IFERROR(MID($G203,FIND(CHAR(160),SUBSTITUTE($G203,\"{\",CHAR(160),EM$1)),FIND(CHAR(160),SUBSTITUTE($G203,\"}\",CHAR(160),EM$1))-FIND(CHAR(160),SUBSTITUTE($G203,\"{\",CHAR(160),EM$1))+1),\"\")","v":""},{"$f":"IFERROR(MID($G203,FIND(CHAR(160),SUBSTITUTE($G203,\"{\",CHAR(160),EN$1)),FIND(CHAR(160),SUBSTITUTE($G203,\"}\",CHAR(160),EN$1))-FIND(CHAR(160),SUBSTITUTE($G203,\"{\",CHAR(160),EN$1))+1),\"\")","v":""},{"$f":"IFERROR(MID($G203,FIND(CHAR(160),SUBSTITUTE($G203,\"{\",CHAR(160),EO$1)),FIND(CHAR(160),SUBSTITUTE($G203,\"}\",CHAR(160),EO$1))-FIND(CHAR(160),SUBSTITUTE($G203,\"{\",CHAR(160),EO$1))+1),\"\")","v":""},{"$f":"IFERROR(MID($G203,FIND(CHAR(160),SUBSTITUTE($G203,\"{\",CHAR(160),EP$1)),FIND(CHAR(160),SUBSTITUTE($G203,\"}\",CHAR(160),EP$1))-FIND(CHAR(160),SUBSTITUTE($G203,\"{\",CHAR(160),EP$1))+1),\"\")","v":""},{"$f":"IFERROR(MID($J203,FIND(CHAR(160),SUBSTITUTE($J203,\"{\",CHAR(160),EQ$1)),FIND(CHAR(160),SUBSTITUTE($J203,\"}\",CHAR(160),EQ$1))-FIND(CHAR(160),SUBSTITUTE($J203,\"{\",CHAR(160),EQ$1))+1),\"\")","v":"{Cost}"},{"$f":"IFERROR(MID($J203,FIND(CHAR(160),SUBSTITUTE($J203,\"{\",CHAR(160),ER$1)),FIND(CHAR(160),SUBSTITUTE($J203,\"}\",CHAR(160),ER$1))-FIND(CHAR(160),SUBSTITUTE($J203,\"{\",CHAR(160),ER$1))+1),\"\")","v":"{Cost}"},{"$f":"IFERROR(MID($J203,FIND(CHAR(160),SUBSTITUTE($J203,\"{\",CHAR(160),ES$1)),FIND(CHAR(160),SUBSTITUTE($J203,\"}\",CHAR(160),ES$1))-FIND(CHAR(160),SUBSTITUTE($J203,\"{\",CHAR(160),ES$1))+1),\"\")","v":"{Measure:Quantity}"},{"$f":"IFERROR(MID($J203,FIND(CHAR(160),SUBSTITUTE($J203,\"{\",CHAR(160),ET$1)),FIND(CHAR(160),SUBSTITUTE($J203,\"}\",CHAR(160),ET$1))-FIND(CHAR(160),SUBSTITUTE($J203,\"{\",CHAR(160),ET$1))+1),\"\")","v":""},{"$f":"IFERROR(MID($J203,FIND(CHAR(160),SUBSTITUTE($J203,\"{\",CHAR(160),EU$1)),FIND(CHAR(160),SUBSTITUTE($J203,\"}\",CHAR(160),EU$1))-FIND(CHAR(160),SUBSTITUTE($J203,\"{\",CHAR(160),EU$1))+1),\"\")","v":""},{"$f":"IFERROR(MID($J203,FIND(CHAR(160),SUBSTITUTE($J203,\"{\",CHAR(160),EV$1)),FIND(CHAR(160),SUBSTITUTE($J203,\"}\",CHAR(160),EV$1))-FIND(CHAR(160),SUBSTITUTE($J203,\"{\",CHAR(160),EV$1))+1),\"\")","v":""},{"$f":"IFERROR(MID($J203,FIND(CHAR(160),SUBSTITUTE($J203,\"{\",CHAR(160),EW$1)),FIND(CHAR(160),SUBSTITUTE($J203,\"}\",CHAR(160),EW$1))-FIND(CHAR(160),SUBSTITUTE($J203,\"{\",CHAR(160),EW$1))+1),\"\")","v":""},{"$f":"IFERROR(MID($J203,FIND(CHAR(160),SUBSTITUTE($J203,\"{\",CHAR(160),EX$1)),FIND(CHAR(160),SUBSTITUTE($J203,\"}\",CHAR(160),EX$1))-FIND(CHAR(160),SUBSTITUTE($J203,\"{\",CHAR(160),EX$1))+1),\"\")","v":""},{"$f":"IFERROR(MID($J203,FIND(CHAR(160),SUBSTITUTE($J203,\"{\",CHAR(160),EY$1)),FIND(CHAR(160),SUBSTITUTE($J203,\"}\",CHAR(160),EY$1))-FIND(CHAR(160),SUBSTITUTE($J203,\"{\",CHAR(160),EY$1))+1),\"\")","v":""},{"$f":"IFERROR(MID($J203,FIND(CHAR(160),SUBSTITUTE($J203,\"{\",CHAR(160),EZ$1)),FIND(CHAR(160),SUBSTITUTE($J203,\"}\",CHAR(160),EZ$1))-FIND(CHAR(160),SUBSTITUTE($J203,\"{\",CHAR(160),EZ$1))+1),\"\")","v":""},{"$f":"IFERROR(MID($J203,FIND(CHAR(160),SUBSTITUTE($J203,\"{\",CHAR(160),FA$1)),FIND(CHAR(160),SUBSTITUTE($J203,\"}\",CHAR(160),FA$1))-FIND(CHAR(160),SUBSTITUTE($J203,\"{\",CHAR(160),FA$1))+1),\"\")","v":"{Cost}"},{"$f":"IFERROR(MID($J203,FIND(CHAR(160),SUBSTITUTE($J203,\"{\",CHAR(160),FB$1)),FIND(CHAR(160),SUBSTITUTE($J203,\"}\",CHAR(160),FB$1))-FIND(CHAR(160),SUBSTITUTE($J203,\"{\",CHAR(160),FB$1))+1),\"\")","v":"{Cost}"},{"$f":"IFERROR(MID($O203,FIND(CHAR(160),SUBSTITUTE($O203,\"{\",CHAR(160),FC$1)),FIND(CHAR(160),SUBSTITUTE($O203,\"}\",CHAR(160),FC$1))-FIND(CHAR(160),SUBSTITUTE($O203,\"{\",CHAR(160),FC$1))+1),\"\")","v":""},{"$f":"IFERROR(MID($O203,FIND(CHAR(160),SUBSTITUTE($O203,\"{\",CHAR(160),FD$1)),FIND(CHAR(160),SUBSTITUTE($O203,\"}\",CHAR(160),FD$1))-FIND(CHAR(160),SUBSTITUTE($O203,\"{\",CHAR(160),FD$1))+1),\"\")","v":""},{"$f":"IFERROR(MID($O203,FIND(CHAR(160),SUBSTITUTE($O203,\"{\",CHAR(160),FE$1)),FIND(CHAR(160),SUBSTITUTE($O203,\"}\",CHAR(160),FE$1))-FIND(CHAR(160),SUBSTITUTE($O203,\"{\",CHAR(160),FE$1))+1),\"\")","v":""},{"$f":"IFERROR(MID($O203,FIND(CHAR(160),SUBSTITUTE($O203,\"{\",CHAR(160),FF$1)),FIND(CHAR(160),SUBSTITUTE($O203,\"}\",CHAR(160),FF$1))-FIND(CHAR(160),SUBSTITUTE($O203,\"{\",CHAR(160),FF$1))+1),\"\")","v":""},{"$f":"IFERROR(MID($O203,FIND(CHAR(160),SUBSTITUTE($O203,\"{\",CHAR(160),FG$1)),FIND(CHAR(160),SUBSTITUTE($O203,\"}\",CHAR(160),FG$1))-FIND(CHAR(160),SUBSTITUTE($O203,\"{\",CHAR(160),FG$1))+1),\"\")","v":""},{"$f":"IFERROR(MID($O203,FIND(CHAR(160),SUBSTITUTE($O203,\"{\",CHAR(160),FH$1)),FIND(CHAR(160),SUBSTITUTE($O203,\"}\",CHAR(160),FH$1))-FIND(CHAR(160),SUBSTITUTE($O203,\"{\",CHAR(160),FH$1))+1),\"\")","v":""},{"$f":"IFERROR(MID($O203,FIND(CHAR(160),SUBSTITUTE($O203,\"{\",CHAR(160),FI$1)),FIND(CHAR(160),SUBSTITUTE($O203,\"}\",CHAR(160),FI$1))-FIND(CHAR(160),SUBSTITUTE($O203,\"{\",CHAR(160),FI$1))+1),\"\")","v":""},{"$f":"IFERROR(MID($O203,FIND(CHAR(160),SUBSTITUTE($O203,\"{\",CHAR(160),FJ$1)),FIND(CHAR(160),SUBSTITUTE($O203,\"}\",CHAR(160),FJ$1))-FIND(CHAR(160),SUBSTITUTE($O203,\"{\",CHAR(160),FJ$1))+1),\"\")","v":""},{"$f":"IFERROR(MID($O203,FIND(CHAR(160),SUBSTITUTE($O203,\"{\",CHAR(160),FK$1)),FIND(CHAR(160),SUBSTITUTE($O203,\"}\",CHAR(160),FK$1))-FIND(CHAR(160),SUBSTITUTE($O203,\"{\",CHAR(160),FK$1))+1),\"\")","v":""},{"$f":"IFERROR(MID($O203,FIND(CHAR(160),SUBSTITUTE($O203,\"{\",CHAR(160),FL$1)),FIND(CHAR(160),SUBSTITUTE($O203,\"}\",CHAR(160),FL$1))-FIND(CHAR(160),SUBSTITUTE($O203,\"{\",CHAR(160),FL$1))+1),\"\")","v":""},{"$f":"IFERROR(MID($R203,FIND(CHAR(160),SUBSTITUTE($R203,\"{\",CHAR(160),FM$1)),FIND(CHAR(160),SUBSTITUTE($R203,\"}\",CHAR(160),FM$1))-FIND(CHAR(160),SUBSTITUTE($R203,\"{\",CHAR(160),FM$1))+1),\"\")","v":""},{"$f":"IFERROR(MID($R203,FIND(CHAR(160),SUBSTITUTE($R203,\"{\",CHAR(160),FN$1)),FIND(CHAR(160),SUBSTITUTE($R203,\"}\",CHAR(160),FN$1))-FIND(CHAR(160),SUBSTITUTE($R203,\"{\",CHAR(160),FN$1))+1),\"\")","v":""},{"$f":"IFERROR(MID($R203,FIND(CHAR(160),SUBSTITUTE($R203,\"{\",CHAR(160),FO$1)),FIND(CHAR(160),SUBSTITUTE($R203,\"}\",CHAR(160),FO$1))-FIND(CHAR(160),SUBSTITUTE($R203,\"{\",CHAR(160),FO$1))+1),\"\")","v":""},{"$f":"IFERROR(MID($R203,FIND(CHAR(160),SUBSTITUTE($R203,\"{\",CHAR(160),FP$1)),FIND(CHAR(160),SUBSTITUTE($R203,\"}\",CHAR(160),FP$1))-FIND(CHAR(160),SUBSTITUTE($R203,\"{\",CHAR(160),FP$1))+1),\"\")","v":""},{"$f":"IFERROR(MID($R203,FIND(CHAR(160),SUBSTITUTE($R203,\"{\",CHAR(160),FQ$1)),FIND(CHAR(160),SUBSTITUTE($R203,\"}\",CHAR(160),FQ$1))-FIND(CHAR(160),SUBSTITUTE($R203,\"{\",CHAR(160),FQ$1))+1),\"\")","v":""},{"$f":"IFERROR(MID($R203,FIND(CHAR(160),SUBSTITUTE($R203,\"{\",CHAR(160),FR$1)),FIND(CHAR(160),SUBSTITUTE($R203,\"}\",CHAR(160),FR$1))-FIND(CHAR(160),SUBSTITUTE($R203,\"{\",CHAR(160),FR$1))+1),\"\")","v":""},{"$f":"IFERROR(MID($R203,FIND(CHAR(160),SUBSTITUTE($R203,\"{\",CHAR(160),FS$1)),FIND(CHAR(160),SUBSTITUTE($R203,\"}\",CHAR(160),FS$1))-FIND(CHAR(160),SUBSTITUTE($R203,\"{\",CHAR(160),FS$1))+1),\"\")","v":""},{"$f":"IFERROR(MID($R203,FIND(CHAR(160),SUBSTITUTE($R203,\"{\",CHAR(160),FT$1)),FIND(CHAR(160),SUBSTITUTE($R203,\"}\",CHAR(160),FT$1))-FIND(CHAR(160),SUBSTITUTE($R203,\"{\",CHAR(160),FT$1))+1),\"\")","v":""},{"$f":"IFERROR(MID($R203,FIND(CHAR(160),SUBSTITUTE($R203,\"{\",CHAR(160),FU$1)),FIND(CHAR(160),SUBSTITUTE($R203,\"}\",CHAR(160),FU$1))-FIND(CHAR(160),SUBSTITUTE($R203,\"{\",CHAR(160),FU$1))+1),\"\")","v":""},{"$f":"IFERROR(MID($R203,FIND(CHAR(160),SUBSTITUTE($R203,\"{\",CHAR(160),FV$1)),FIND(CHAR(160),SUBSTITUTE($R203,\"}\",CHAR(160),FV$1))-FIND(CHAR(160),SUBSTITUTE($R203,\"{\",CHAR(160),FV$1))+1),\"\")","v":""},{"$f":"IFERROR(MID($U203,FIND(CHAR(160),SUBSTITUTE($U203,\"{\",CHAR(160),FW$1)),FIND(CHAR(160),SUBSTITUTE($U203,\"}\",CHAR(160),FW$1))-FIND(CHAR(160),SUBSTITUTE($U203,\"{\",CHAR(160),FW$1))+1),\"\")","v":""},{"$f":"IFERROR(MID($U203,FIND(CHAR(160),SUBSTITUTE($U203,\"{\",CHAR(160),FX$1)),FIND(CHAR(160),SUBSTITUTE($U203,\"}\",CHAR(160),FX$1))-FIND(CHAR(160),SUBSTITUTE($U203,\"{\",CHAR(160),FX$1))+1),\"\")","v":""},{"$f":"IFERROR(MID($U203,FIND(CHAR(160),SUBSTITUTE($U203,\"{\",CHAR(160),FY$1)),FIND(CHAR(160),SUBSTITUTE($U203,\"}\",CHAR(160),FY$1))-FIND(CHAR(160),SUBSTITUTE($U203,\"{\",CHAR(160),FY$1))+1),\"\")","v":""},{"$f":"IFERROR(MID($U203,FIND(CHAR(160),SUBSTITUTE($U203,\"{\",CHAR(160),FZ$1)),FIND(CHAR(160),SUBSTITUTE($U203,\"}\",CHAR(160),FZ$1))-FIND(CHAR(160),SUBSTITUTE($U203,\"{\",CHAR(160),FZ$1))+1),\"\")","v":""},{"$f":"IFERROR(MID($U203,FIND(CHAR(160),SUBSTITUTE($U203,\"{\",CHAR(160),GA$1)),FIND(CHAR(160),SUBSTITUTE($U203,\"}\",CHAR(160),GA$1))-FIND(CHAR(160),SUBSTITUTE($U203,\"{\",CHAR(160),GA$1))+1),\"\")","v":""},{"$f":"IFERROR(MID($U203,FIND(CHAR(160),SUBSTITUTE($U203,\"{\",CHAR(160),GB$1)),FIND(CHAR(160),SUBSTITUTE($U203,\"}\",CHAR(160),GB$1))-FIND(CHAR(160),SUBSTITUTE($U203,\"{\",CHAR(160),GB$1))+1),\"\")","v":""},{"$f":"IFERROR(MID($U203,FIND(CHAR(160),SUBSTITUTE($U203,\"{\",CHAR(160),GC$1)),FIND(CHAR(160),SUBSTITUTE($U203,\"}\",CHAR(160),GC$1))-FIND(CHAR(160),SUBSTITUTE($U203,\"{\",CHAR(160),GC$1))+1),\"\")","v":""},{"$f":"IFERROR(MID($U203,FIND(CHAR(160),SUBSTITUTE($U203,\"{\",CHAR(160),GD$1)),FIND(CHAR(160),SUBSTITUTE($U203,\"}\",CHAR(160),GD$1))-FIND(CHAR(160),SUBSTITUTE($U203,\"{\",CHAR(160),GD$1))+1),\"\")","v":""},{"$f":"IFERROR(MID($U203,FIND(CHAR(160),SUBSTITUTE($U203,\"{\",CHAR(160),GE$1)),FIND(CHAR(160),SUBSTITUTE($U203,\"}\",CHAR(160),GE$1))-FIND(CHAR(160),SUBSTITUTE($U203,\"{\",CHAR(160),GE$1))+1),\"\")","v":""},{"$f":"IFERROR(MID($U203,FIND(CHAR(160),SUBSTITUTE($U203,\"{\",CHAR(160),GF$1)),FIND(CHAR(160),SUBSTITUTE($U203,\"}\",CHAR(160),GF$1))-FIND(CHAR(160),SUBSTITUTE($U203,\"{\",CHAR(160),GF$1))+1),\"\")","v":""},{"$f":"IFERROR(MID($V203,FIND(CHAR(160),SUBSTITUTE($V203,\"{\",CHAR(160),GG$1)),FIND(CHAR(160),SUBSTITUTE($V203,\"}\",CHAR(160),GG$1))-FIND(CHAR(160),SUBSTITUTE($V203,\"{\",CHAR(160),GG$1))+1),\"\")","v":""},{"$f":"IFERROR(MID($V203,FIND(CHAR(160),SUBSTITUTE($V203,\"{\",CHAR(160),GH$1)),FIND(CHAR(160),SUBSTITUTE($V203,\"}\",CHAR(160),GH$1))-FIND(CHAR(160),SUBSTITUTE($V203,\"{\",CHAR(160),GH$1))+1),\"\")","v":""},{"$f":"IFERROR(MID($V203,FIND(CHAR(160),SUBSTITUTE($V203,\"{\",CHAR(160),GI$1)),FIND(CHAR(160),SUBSTITUTE($V203,\"}\",CHAR(160),GI$1))-FIND(CHAR(160),SUBSTITUTE($V203,\"{\",CHAR(160),GI$1))+1),\"\")","v":""},{"$f":"IFERROR(MID($V203,FIND(CHAR(160),SUBSTITUTE($V203,\"{\",CHAR(160),GJ$1)),FIND(CHAR(160),SUBSTITUTE($V203,\"}\",CHAR(160),GJ$1))-FIND(CHAR(160),SUBSTITUTE($V203,\"{\",CHAR(160),GJ$1))+1),\"\")","v":""},{"$f":"IFERROR(MID($V203,FIND(CHAR(160),SUBSTITUTE($V203,\"{\",CHAR(160),GK$1)),FIND(CHAR(160),SUBSTITUTE($V203,\"}\",CHAR(160),GK$1))-FIND(CHAR(160),SUBSTITUTE($V203,\"{\",CHAR(160),GK$1))+1),\"\")","v":""},{"$f":"IFERROR(MID($V203,FIND(CHAR(160),SUBSTITUTE($V203,\"{\",CHAR(160),GL$1)),FIND(CHAR(160),SUBSTITUTE($V203,\"}\",CHAR(160),GL$1))-FIND(CHAR(160),SUBSTITUTE($V203,\"{\",CHAR(160),GL$1))+1),\"\")","v":""},{"$f":"IFERROR(MID($V203,FIND(CHAR(160),SUBSTITUTE($V203,\"{\",CHAR(160),GM$1)),FIND(CHAR(160),SUBSTITUTE($V203,\"}\",CHAR(160),GM$1))-FIND(CHAR(160),SUBSTITUTE($V203,\"{\",CHAR(160),GM$1))+1),\"\")","v":""},{"$f":"IFERROR(MID($V203,FIND(CHAR(160),SUBSTITUTE($V203,\"{\",CHAR(160),GN$1)),FIND(CHAR(160),SUBSTITUTE($V203,\"}\",CHAR(160),GN$1))-FIND(CHAR(160),SUBSTITUTE($V203,\"{\",CHAR(160),GN$1))+1),\"\")","v":""},{"$f":"IFERROR(MID($V203,FIND(CHAR(160),SUBSTITUTE($V203,\"{\",CHAR(160),GO$1)),FIND(CHAR(160),SUBSTITUTE($V203,\"}\",CHAR(160),GO$1))-FIND(CHAR(160),SUBSTITUTE($V203,\"{\",CHAR(160),GO$1))+1),\"\")","v":""},{"$f":"IFERROR(MID($V203,FIND(CHAR(160),SUBSTITUTE($V203,\"{\",CHAR(160),GP$1)),FIND(CHAR(160),SUBSTITUTE($V203,\"}\",CHAR(160),GP$1))-FIND(CHAR(160),SUBSTITUTE($V203,\"{\",CHAR(160),GP$1))+1),\"\")","v":""},{"$f":"IFERROR(MID($W203,FIND(CHAR(160),SUBSTITUTE($W203,\"{\",CHAR(160),GQ$1)),FIND(CHAR(160),SUBSTITUTE($W203,\"}\",CHAR(160),GQ$1))-FIND(CHAR(160),SUBSTITUTE($W203,\"{\",CHAR(160),GQ$1))+1),\"\")","v":""},{"$f":"IFERROR(MID($W203,FIND(CHAR(160),SUBSTITUTE($W203,\"{\",CHAR(160),GR$1)),FIND(CHAR(160),SUBSTITUTE($W203,\"}\",CHAR(160),GR$1))-FIND(CHAR(160),SUBSTITUTE($W203,\"{\",CHAR(160),GR$1))+1),\"\")","v":""},{"$f":"IFERROR(MID($W203,FIND(CHAR(160),SUBSTITUTE($W203,\"{\",CHAR(160),GS$1)),FIND(CHAR(160),SUBSTITUTE($W203,\"}\",CHAR(160),GS$1))-FIND(CHAR(160),SUBSTITUTE($W203,\"{\",CHAR(160),GS$1))+1),\"\")","v":""},{"$f":"IFERROR(MID($W203,FIND(CHAR(160),SUBSTITUTE($W203,\"{\",CHAR(160),GT$1)),FIND(CHAR(160),SUBSTITUTE($W203,\"}\",CHAR(160),GT$1))-FIND(CHAR(160),SUBSTITUTE($W203,\"{\",CHAR(160),GT$1))+1),\"\")","v":""},{"$f":"IFERROR(MID($W203,FIND(CHAR(160),SUBSTITUTE($W203,\"{\",CHAR(160),GU$1)),FIND(CHAR(160),SUBSTITUTE($W203,\"}\",CHAR(160),GU$1))-FIND(CHAR(160),SUBSTITUTE($W203,\"{\",CHAR(160),GU$1))+1),\"\")","v":""},{"$f":"IFERROR(MID($W203,FIND(CHAR(160),SUBSTITUTE($W203,\"{\",CHAR(160),GV$1)),FIND(CHAR(160),SUBSTITUTE($W203,\"}\",CHAR(160),GV$1))-FIND(CHAR(160),SUBSTITUTE($W203,\"{\",CHAR(160),GV$1))+1),\"\")","v":""},{"$f":"IFERROR(MID($W203,FIND(CHAR(160),SUBSTITUTE($W203,\"{\",CHAR(160),GW$1)),FIND(CHAR(160),SUBSTITUTE($W203,\"}\",CHAR(160),GW$1))-FIND(CHAR(160),SUBSTITUTE($W203,\"{\",CHAR(160),GW$1))+1),\"\")","v":""},{"$f":"IFERROR(MID($W203,FIND(CHAR(160),SUBSTITUTE($W203,\"{\",CHAR(160),GX$1)),FIND(CHAR(160),SUBSTITUTE($W203,\"}\",CHAR(160),GX$1))-FIND(CHAR(160),SUBSTITUTE($W203,\"{\",CHAR(160),GX$1))+1),\"\")","v":""},{"$f":"IFERROR(MID($W203,FIND(CHAR(160),SUBSTITUTE($W203,\"{\",CHAR(160),GY$1)),FIND(CHAR(160),SUBSTITUTE($W203,\"}\",CHAR(160),GY$1))-FIND(CHAR(160),SUBSTITUTE($W203,\"{\",CHAR(160),GY$1))+1),\"\")","v":""},{"$f":"IFERROR(MID($W203,FIND(CHAR(160),SUBSTITUTE($W203,\"{\",CHAR(160),GZ$1)),FIND(CHAR(160),SUBSTITUTE($W203,\"}\",CHAR(160),GZ$1))-FIND(CHAR(160),SUBSTITUTE($W203,\"{\",CHAR(160),GZ$1))+1),\"\")","v":""},{"$f":"IFERROR(MID($X203,FIND(CHAR(160),SUBSTITUTE($X203,\"{\",CHAR(160),HA$1)),FIND(CHAR(160),SUBSTITUTE($X203,\"}\",CHAR(160),HA$1))-FIND(CHAR(160),SUBSTITUTE($X203,\"{\",CHAR(160),HA$1))+1),\"\")","v":""},{"$f":"IFERROR(MID($X203,FIND(CHAR(160),SUBSTITUTE($X203,\"{\",CHAR(160),HB$1)),FIND(CHAR(160),SUBSTITUTE($X203,\"}\",CHAR(160),HB$1))-FIND(CHAR(160),SUBSTITUTE($X203,\"{\",CHAR(160),HB$1))+1),\"\")","v":""},{"$f":"IFERROR(MID($X203,FIND(CHAR(160),SUBSTITUTE($X203,\"{\",CHAR(160),HC$1)),FIND(CHAR(160),SUBSTITUTE($X203,\"}\",CHAR(160),HC$1))-FIND(CHAR(160),SUBSTITUTE($X203,\"{\",CHAR(160),HC$1))+1),\"\")","v":""},{"$f":"IFERROR(MID($X203,FIND(CHAR(160),SUBSTITUTE($X203,\"{\",CHAR(160),HD$1)),FIND(CHAR(160),SUBSTITUTE($X203,\"}\",CHAR(160),HD$1))-FIND(CHAR(160),SUBSTITUTE($X203,\"{\",CHAR(160),HD$1))+1),\"\")","v":""},{"$f":"IFERROR(MID($X203,FIND(CHAR(160),SUBSTITUTE($X203,\"{\",CHAR(160),HE$1)),FIND(CHAR(160),SUBSTITUTE($X203,\"}\",CHAR(160),HE$1))-FIND(CHAR(160),SUBSTITUTE($X203,\"{\",CHAR(160),HE$1))+1),\"\")","v":""},{"$f":"IFERROR(MID($X203,FIND(CHAR(160),SUBSTITUTE($X203,\"{\",CHAR(160),HF$1)),FIND(CHAR(160),SUBSTITUTE($X203,\"}\",CHAR(160),HF$1))-FIND(CHAR(160),SUBSTITUTE($X203,\"{\",CHAR(160),HF$1))+1),\"\")","v":""},{"$f":"IFERROR(MID($X203,FIND(CHAR(160),SUBSTITUTE($X203,\"{\",CHAR(160),HG$1)),FIND(CHAR(160),SUBSTITUTE($X203,\"}\",CHAR(160),HG$1))-FIND(CHAR(160),SUBSTITUTE($X203,\"{\",CHAR(160),HG$1))+1),\"\")","v":""},{"$f":"IFERROR(MID($X203,FIND(CHAR(160),SUBSTITUTE($X203,\"{\",CHAR(160),HH$1)),FIND(CHAR(160),SUBSTITUTE($X203,\"}\",CHAR(160),HH$1))-FIND(CHAR(160),SUBSTITUTE($X203,\"{\",CHAR(160),HH$1))+1),\"\")","v":""},{"$f":"IFERROR(MID($X203,FIND(CHAR(160),SUBSTITUTE($X203,\"{\",CHAR(160),HI$1)),FIND(CHAR(160),SUBSTITUTE($X203,\"}\",CHAR(160),HI$1))-FIND(CHAR(160),SUBSTITUTE($X203,\"{\",CHAR(160),HI$1))+1),\"\")","v":""},{"$f":"IFERROR(MID($X203,FIND(CHAR(160),SUBSTITUTE($X203,\"{\",CHAR(160),HJ$1)),FIND(CHAR(160),SUBSTITUTE($X203,\"}\",CHAR(160),HJ$1))-FIND(CHAR(160),SUBSTITUTE($X203,\"{\",CHAR(160),HJ$1))+1),\"\")","v":""},{"$f":"IFERROR(MID($Y203,FIND(CHAR(160),SUBSTITUTE($Y203,\"{\",CHAR(160),HK$1)),FIND(CHAR(160),SUBSTITUTE($Y203,\"}\",CHAR(160),HK$1))-FIND(CHAR(160),SUBSTITUTE($Y203,\"{\",CHAR(160),HK$1))+1),\"\")","v":""},{"$f":"IFERROR(MID($Y203,FIND(CHAR(160),SUBSTITUTE($Y203,\"{\",CHAR(160),HL$1)),FIND(CHAR(160),SUBSTITUTE($Y203,\"}\",CHAR(160),HL$1))-FIND(CHAR(160),SUBSTITUTE($Y203,\"{\",CHAR(160),HL$1))+1),\"\")","v":""},{"$f":"IFERROR(MID($Y203,FIND(CHAR(160),SUBSTITUTE($Y203,\"{\",CHAR(160),HM$1)),FIND(CHAR(160),SUBSTITUTE($Y203,\"}\",CHAR(160),HM$1))-FIND(CHAR(160),SUBSTITUTE($Y203,\"{\",CHAR(160),HM$1))+1),\"\")","v":""},{"$f":"IFERROR(MID($Y203,FIND(CHAR(160),SUBSTITUTE($Y203,\"{\",CHAR(160),HN$1)),FIND(CHAR(160),SUBSTITUTE($Y203,\"}\",CHAR(160),HN$1))-FIND(CHAR(160),SUBSTITUTE($Y203,\"{\",CHAR(160),HN$1))+1),\"\")","v":""},{"$f":"IFERROR(MID($Y203,FIND(CHAR(160),SUBSTITUTE($Y203,\"{\",CHAR(160),HO$1)),FIND(CHAR(160),SUBSTITUTE($Y203,\"}\",CHAR(160),HO$1))-FIND(CHAR(160),SUBSTITUTE($Y203,\"{\",CHAR(160),HO$1))+1),\"\")","v":""},{"$f":"IFERROR(MID($Y203,FIND(CHAR(160),SUBSTITUTE($Y203,\"{\",CHAR(160),HP$1)),FIND(CHAR(160),SUBSTITUTE($Y203,\"}\",CHAR(160),HP$1))-FIND(CHAR(160),SUBSTITUTE($Y203,\"{\",CHAR(160),HP$1))+1),\"\")","v":""},{"$f":"IFERROR(MID($Y203,FIND(CHAR(160),SUBSTITUTE($Y203,\"{\",CHAR(160),HQ$1)),FIND(CHAR(160),SUBSTITUTE($Y203,\"}\",CHAR(160),HQ$1))-FIND(CHAR(160),SUBSTITUTE($Y203,\"{\",CHAR(160),HQ$1))+1),\"\")","v":""},{"$f":"IFERROR(MID($Y203,FIND(CHAR(160),SUBSTITUTE($Y203,\"{\",CHAR(160),HR$1)),FIND(CHAR(160),SUBSTITUTE($Y203,\"}\",CHAR(160),HR$1))-FIND(CHAR(160),SUBSTITUTE($Y203,\"{\",CHAR(160),HR$1))+1),\"\")","v":""},{"$f":"IFERROR(MID($Y203,FIND(CHAR(160),SUBSTITUTE($Y203,\"{\",CHAR(160),HS$1)),FIND(CHAR(160),SUBSTITUTE($Y203,\"}\",CHAR(160),HS$1))-FIND(CHAR(160),SUBSTITUTE($Y203,\"{\",CHAR(160),HS$1))+1),\"\")","v":""},{"$f":"IFERROR(MID($Y203,FIND(CHAR(160),SUBSTITUTE($Y203,\"{\",CHAR(160),HT$1)),FIND(CHAR(160),SUBSTITUTE($Y203,\"}\",CHAR(160),HT$1))-FIND(CHAR(160),SUBSTITUTE($Y203,\"{\",CHAR(160),HT$1))+1),\"\")","v":""},{"$f":"IFERROR(MID($Z203,FIND(CHAR(160),SUBSTITUTE($Z203,\"{\",CHAR(160),HU$1)),FIND(CHAR(160),SUBSTITUTE($Z203,\"}\",CHAR(160),HU$1))-FIND(CHAR(160),SUBSTITUTE($Z203,\"{\",CHAR(160),HU$1))+1),\"\")","v":""},{"$f":"IFERROR(MID($Z203,FIND(CHAR(160),SUBSTITUTE($Z203,\"{\",CHAR(160),HV$1)),FIND(CHAR(160),SUBSTITUTE($Z203,\"}\",CHAR(160),HV$1))-FIND(CHAR(160),SUBSTITUTE($Z203,\"{\",CHAR(160),HV$1))+1),\"\")","v":""},{"$f":"IFERROR(MID($Z203,FIND(CHAR(160),SUBSTITUTE($Z203,\"{\",CHAR(160),HW$1)),FIND(CHAR(160),SUBSTITUTE($Z203,\"}\",CHAR(160),HW$1))-FIND(CHAR(160),SUBSTITUTE($Z203,\"{\",CHAR(160),HW$1))+1),\"\")","v":""},{"$f":"IFERROR(MID($Z203,FIND(CHAR(160),SUBSTITUTE($Z203,\"{\",CHAR(160),HX$1)),FIND(CHAR(160),SUBSTITUTE($Z203,\"}\",CHAR(160),HX$1))-FIND(CHAR(160),SUBSTITUTE($Z203,\"{\",CHAR(160),HX$1))+1),\"\")","v":""},{"$f":"IFERROR(MID($Z203,FIND(CHAR(160),SUBSTITUTE($Z203,\"{\",CHAR(160),HY$1)),FIND(CHAR(160),SUBSTITUTE($Z203,\"}\",CHAR(160),HY$1))-FIND(CHAR(160),SUBSTITUTE($Z203,\"{\",CHAR(160),HY$1))+1),\"\")","v":""},{"$f":"IFERROR(MID($Z203,FIND(CHAR(160),SUBSTITUTE($Z203,\"{\",CHAR(160),HZ$1)),FIND(CHAR(160),SUBSTITUTE($Z203,\"}\",CHAR(160),HZ$1))-FIND(CHAR(160),SUBSTITUTE($Z203,\"{\",CHAR(160),HZ$1))+1),\"\")","v":""},{"$f":"IFERROR(MID($Z203,FIND(CHAR(160),SUBSTITUTE($Z203,\"{\",CHAR(160),IA$1)),FIND(CHAR(160),SUBSTITUTE($Z203,\"}\",CHAR(160),IA$1))-FIND(CHAR(160),SUBSTITUTE($Z203,\"{\",CHAR(160),IA$1))+1),\"\")","v":""},{"$f":"IFERROR(MID($Z203,FIND(CHAR(160),SUBSTITUTE($Z203,\"{\",CHAR(160),IB$1)),FIND(CHAR(160),SUBSTITUTE($Z203,\"}\",CHAR(160),IB$1))-FIND(CHAR(160),SUBSTITUTE($Z203,\"{\",CHAR(160),IB$1))+1),\"\")","v":""},{"$f":"IFERROR(MID($Z203,FIND(CHAR(160),SUBSTITUTE($Z203,\"{\",CHAR(160),IC$1)),FIND(CHAR(160),SUBSTITUTE($Z203,\"}\",CHAR(160),IC$1))-FIND(CHAR(160),SUBSTITUTE($Z203,\"{\",CHAR(160),IC$1))+1),\"\")","v":""},{"$f":"IFERROR(MID($Z203,FIND(CHAR(160),SUBSTITUTE($Z203,\"{\",CHAR(160),ID$1)),FIND(CHAR(160),SUBSTITUTE($Z203,\"}\",CHAR(160),ID$1))-FIND(CHAR(160),SUBSTITUTE($Z203,\"{\",CHAR(160),ID$1))+1),\"\")","v":""},{"$f":"IFERROR(MID($AA203,FIND(CHAR(160),SUBSTITUTE($AA203,\"{\",CHAR(160),IE$1)),FIND(CHAR(160),SUBSTITUTE($AA203,\"}\",CHAR(160),IE$1))-FIND(CHAR(160),SUBSTITUTE($AA203,\"{\",CHAR(160),IE$1))+1),\"\")","v":""},{"$f":"IFERROR(MID($AA203,FIND(CHAR(160),SUBSTITUTE($AA203,\"{\",CHAR(160),IF$1)),FIND(CHAR(160),SUBSTITUTE($AA203,\"}\",CHAR(160),IF$1))-FIND(CHAR(160),SUBSTITUTE($AA203,\"{\",CHAR(160),IF$1))+1),\"\")","v":""},{"$f":"IFERROR(MID($AA203,FIND(CHAR(160),SUBSTITUTE($AA203,\"{\",CHAR(160),IG$1)),FIND(CHAR(160),SUBSTITUTE($AA203,\"}\",CHAR(160),IG$1))-FIND(CHAR(160),SUBSTITUTE($AA203,\"{\",CHAR(160),IG$1))+1),\"\")","v":""},{"$f":"IFERROR(MID($AA203,FIND(CHAR(160),SUBSTITUTE($AA203,\"{\",CHAR(160),IH$1)),FIND(CHAR(160),SUBSTITUTE($AA203,\"}\",CHAR(160),IH$1))-FIND(CHAR(160),SUBSTITUTE($AA203,\"{\",CHAR(160),IH$1))+1),\"\")","v":""},{"$f":"IFERROR(MID($AA203,FIND(CHAR(160),SUBSTITUTE($AA203,\"{\",CHAR(160),II$1)),FIND(CHAR(160),SUBSTITUTE($AA203,\"}\",CHAR(160),II$1))-FIND(CHAR(160),SUBSTITUTE($AA203,\"{\",CHAR(160),II$1))+1),\"\")","v":""},{"$f":"IFERROR(MID($AA203,FIND(CHAR(160),SUBSTITUTE($AA203,\"{\",CHAR(160),IJ$1)),FIND(CHAR(160),SUBSTITUTE($AA203,\"}\",CHAR(160),IJ$1))-FIND(CHAR(160),SUBSTITUTE($AA203,\"{\",CHAR(160),IJ$1))+1),\"\")","v":""},{"$f":"IFERROR(MID($AA203,FIND(CHAR(160),SUBSTITUTE($AA203,\"{\",CHAR(160),IK$1)),FIND(CHAR(160),SUBSTITUTE($AA203,\"}\",CHAR(160),IK$1))-FIND(CHAR(160),SUBSTITUTE($AA203,\"{\",CHAR(160),IK$1))+1),\"\")","v":""},{"$f":"IFERROR(MID($AA203,FIND(CHAR(160),SUBSTITUTE($AA203,\"{\",CHAR(160),IL$1)),FIND(CHAR(160),SUBSTITUTE($AA203,\"}\",CHAR(160),IL$1))-FIND(CHAR(160),SUBSTITUTE($AA203,\"{\",CHAR(160),IL$1))+1),\"\")","v":""},{"$f":"IFERROR(MID($AA203,FIND(CHAR(160),SUBSTITUTE($AA203,\"{\",CHAR(160),IM$1)),FIND(CHAR(160),SUBSTITUTE($AA203,\"}\",CHAR(160),IM$1))-FIND(CHAR(160),SUBSTITUTE($AA203,\"{\",CHAR(160),IM$1))+1),\"\")","v":""},{"$f":"IFERROR(MID($AA203,FIND(CHAR(160),SUBSTITUTE($AA203,\"{\",CHAR(160),IN$1)),FIND(CHAR(160),SUBSTITUTE($AA203,\"}\",CHAR(160),IN$1))-FIND(CHAR(160),SUBSTITUTE($AA203,\"{\",CHAR(160),IN$1))+1),\"\")","v":""},{"$f":"IFERROR(MID($AB203,FIND(CHAR(160),SUBSTITUTE($AB203,\"{\",CHAR(160),IO$1)),FIND(CHAR(160),SUBSTITUTE($AB203,\"}\",CHAR(160),IO$1))-FIND(CHAR(160),SUBSTITUTE($AB203,\"{\",CHAR(160),IO$1))+1),\"\")","v":""},{"$f":"IFERROR(MID($AB203,FIND(CHAR(160),SUBSTITUTE($AB203,\"{\",CHAR(160),IP$1)),FIND(CHAR(160),SUBSTITUTE($AB203,\"}\",CHAR(160),IP$1))-FIND(CHAR(160),SUBSTITUTE($AB203,\"{\",CHAR(160),IP$1))+1),\"\")","v":""},{"$f":"IFERROR(MID($AB203,FIND(CHAR(160),SUBSTITUTE($AB203,\"{\",CHAR(160),IQ$1)),FIND(CHAR(160),SUBSTITUTE($AB203,\"}\",CHAR(160),IQ$1))-FIND(CHAR(160),SUBSTITUTE($AB203,\"{\",CHAR(160),IQ$1))+1),\"\")","v":""},{"$f":"IFERROR(MID($AB203,FIND(CHAR(160),SUBSTITUTE($AB203,\"{\",CHAR(160),IR$1)),FIND(CHAR(160),SUBSTITUTE($AB203,\"}\",CHAR(160),IR$1))-FIND(CHAR(160),SUBSTITUTE($AB203,\"{\",CHAR(160),IR$1))+1),\"\")","v":""},{"$f":"IFERROR(MID($AB203,FIND(CHAR(160),SUBSTITUTE($AB203,\"{\",CHAR(160),IS$1)),FIND(CHAR(160),SUBSTITUTE($AB203,\"}\",CHAR(160),IS$1))-FIND(CHAR(160),SUBSTITUTE($AB203,\"{\",CHAR(160),IS$1))+1),\"\")","v":""},{"$f":"IFERROR(MID($AB203,FIND(CHAR(160),SUBSTITUTE($AB203,\"{\",CHAR(160),IT$1)),FIND(CHAR(160),SUBSTITUTE($AB203,\"}\",CHAR(160),IT$1))-FIND(CHAR(160),SUBSTITUTE($AB203,\"{\",CHAR(160),IT$1))+1),\"\")","v":""},{"$f":"IFERROR(MID($AB203,FIND(CHAR(160),SUBSTITUTE($AB203,\"{\",CHAR(160),IU$1)),FIND(CHAR(160),SUBSTITUTE($AB203,\"}\",CHAR(160),IU$1))-FIND(CHAR(160),SUBSTITUTE($AB203,\"{\",CHAR(160),IU$1))+1),\"\")","v":""},{"$f":"IFERROR(MID($AB203,FIND(CHAR(160),SUBSTITUTE($AB203,\"{\",CHAR(160),IV$1)),FIND(CHAR(160),SUBSTITUTE($AB203,\"}\",CHAR(160),IV$1))-FIND(CHAR(160),SUBSTITUTE($AB203,\"{\",CHAR(160),IV$1))+1),\"\")","v":""},{"$f":"IFERROR(MID($AB203,FIND(CHAR(160),SUBSTITUTE($AB203,\"{\",CHAR(160),IW$1)),FIND(CHAR(160),SUBSTITUTE($AB203,\"}\",CHAR(160),IW$1))-FIND(CHAR(160),SUBSTITUTE($AB203,\"{\",CHAR(160),IW$1))+1),\"\")","v":""},{"$f":"IFERROR(MID($AB203,FIND(CHAR(160),SUBSTITUTE($AB203,\"{\",CHAR(160),IX$1)),FIND(CHAR(160),SUBSTITUTE($AB203,\"}\",CHAR(160),IX$1))-FIND(CHAR(160),SUBSTITUTE($AB203,\"{\",CHAR(160),IX$1))+1),\"\")","v":""},null,{"$f":"10-COUNTIF(DU203:ED203,\"\")","v":2}]
["Home Energy Savings Program - Other Fuels","Pellet Boiler","APB","2021-07-01","2022-06-30","Per Measure",12942,0,"Calculated","if({Cost}/3>6000,6000,Round({Cost}/3,2))*{Measure:Quantity}",0,"2020-04-02","2022-06-30","Per Measure",0,null,null,0,null,null,0,0,0,37.024000000000001,36.143000000000001,0,-67.016999999999996,0,"2020-04-02","2022-06-30",25,0,0,0,0,0,0,1,1,1,0.35,0.06,null,{"$f":"DU204","v":"{Cost}"},16000,{"$f":"DV204","v":"{Measure:Quantity}"},1,{"$f":"DW204","v":""},null,{"$f":"DX204","v":""},null,{"$f":"DY204","v":""},null,{"$f":"DZ204","v":""},null,{"$f":"EA204","v":""},null,{"$f":"EB204","v":""},null,{"$f":"EC204","v":""},null,{"$f":"ED204","v":""},null,{"$f":"0","v":0},0,0,{"$f":"0","v":0},0,0,{"$f":"0","v":0},{"$f":"0","v":0},{"$f":"0","v":0},{"$f":"37.024","v":37.024000000000001},{"$f":"36.143","v":36.143000000000001},{"$f":"0","v":0},{"$f":"-67.017","v":-67.016999999999996},{"$f":"0","v":0},null,"Res","RGGI DR",{"$f":"Benefits(BL204,BR204,BS204,BT204,BU204,BV204,BW204,BX204,BY204,BZ204,AE204,AH204,AI204,AJ204,AK204,AL204,AM204,AN204,AO204,AP204,CA204,CB204)","v":0},0,0,21858.037645069282,0,31669.013049894333,-27028.243275194836,0,0,{"$f":"SUMPRODUCT(CC204:CK204,--(CC204:CK204>0))","v":53527.050694963618},{"$f":"-SUMPRODUCT(CC204:CK204,--(CC204:CK204<0))","v":27028.243275194836},null,{"$f":"12942","v":12942},null,null,{"$f":"CM204+CO204","v":39970.243275194836},{"$f":"IF(NetOrGross=\"Net\",(1-AO204+AP204),1)","v":1},{"$f":"(SUMPRODUCT(CC204:CJ204,--(CC204:CJ204>0))+CN204)*CS204/((-SUMPRODUCT(CC204:CJ204,--(CC204:CJ204<0))+MAX(CO204,CV204)+CP204+CQ204)*CS204+IF(FRIncentives=\"Yes\",CV204*(1-CS204),0))","v":1.3391725020643548},1,{"$f":"IF(AS204/3>6000,6000,ROUND(AS204/3,2))*AU204","v":5333.33},null,"RGGI","y",null,{"$f":"IF(F204=\"Manual Entry\",\"Manual\",IF(G204=\"\",0,\"X=\"&SUBSTITUTE(SUBSTITUTE(SUBSTITUTE(SUBSTITUTE(SUBSTITUTE(SUBSTITUTE(SUBSTITUTE(SUBSTITUTE(SUBSTITUTE(SUBSTITUTE(SUBSTITUTE(SUBSTITUTE(G204,$ED204,$ED$2&ROW($ED204)),$EC204,$EC$2&ROW($EC204)),$EB204,$EB$2&ROW($EB204)),$EA204,$EA$2&ROW($EA204)),$DZ204,$DZ$2&ROW($DZ204)),$DY204,$DY$2&ROW($DY204)),$DX204,$DX$2&ROW($DX204)),$DW204,$DW$2&ROW($DW204)),$DV204,$DV$2&ROW($DV204)),$DU204,$DU$2&ROW($DU204)),$DT204,$DT$2&ROW($DT204)),$DS204,$DS$2&ROW($DS204))))","v":"X=12942"},{"$f":"IF(I204=\"Manual Entry\",\"Manual\",IF(J204=\"\",0,\"X=\"&SUBSTITUTE(SUBSTITUTE(SUBSTITUTE(SUBSTITUTE(SUBSTITUTE(SUBSTITUTE(SUBSTITUTE(SUBSTITUTE(SUBSTITUTE(SUBSTITUTE(SUBSTITUTE(SUBSTITUTE(J204,$ED204,$ED$2&ROW($ED204)),$EC204,$EC$2&ROW($EC204)),$EB204,$EB$2&ROW($EB204)),$EA204,$EA$2&ROW($EA204)),$DZ204,$DZ$2&ROW($DZ204)),$DY204,$DY$2&ROW($DY204)),$DX204,$DX$2&ROW($DX204)),$DW204,$DW$2&ROW($DW204)),$DV204,$DV$2&ROW($DV204)),$DU204,$DU$2&ROW($DU204)),$DT204,$DT$2&ROW($DT204)),$DS204,$DS$2&ROW($DS204))))","v":"X=if(AS204/3>6000,6000,Round(AS204/3,2))*AU204"},{"$f":"IF(O204=\"\",0,\"X=\"&SUBSTITUTE(SUBSTITUTE(SUBSTITUTE(SUBSTITUTE(SUBSTITUTE(SUBSTITUTE(SUBSTITUTE(SUBSTITUTE(SUBSTITUTE(SUBSTITUTE(SUBSTITUTE(SUBSTITUTE(O204,$ED204,$ED$2&ROW($ED204)),$EC204,$EC$2&ROW($EC204)),$EB204,$EB$2&ROW($EB204)),$EA204,$EA$2&ROW($EA204)),$DZ204,$DZ$2&ROW($DZ204)),$DY204,$DY$2&ROW($DY204)),$DX204,$DX$2&ROW($DX204)),$DW204,$DW$2&ROW($DW204)),$DV204,$DV$2&ROW($DV204)),$DU204,$DU$2&ROW($DU204)),$DT204,$DT$2&ROW($DT204)),$DS204,$DS$2&ROW($DS204)))","v":"X=0"},{"$f":"IF(P204=\"\",0,\"X=\"&SUBSTITUTE(SUBSTITUTE(SUBSTITUTE(SUBSTITUTE(SUBSTITUTE(SUBSTITUTE(SUBSTITUTE(SUBSTITUTE(SUBSTITUTE(SUBSTITUTE(SUBSTITUTE(SUBSTITUTE(P204,$ED204,$ED$2&ROW($ED204)),$EC204,$EC$2&ROW($EC204)),$EB204,$EB$2&ROW($EB204)),$EA204,$EA$2&ROW($EA204)),$DZ204,$DZ$2&ROW($DZ204)),$DY204,$DY$2&ROW($DY204)),$DX204,$DX$2&ROW($DX204)),$DW204,$DW$2&ROW($DW204)),$DV204,$DV$2&ROW($DV204)),$DU204,$DU$2&ROW($DU204)),$DT204,$DT$2&ROW($DT204)),$DS204,$DS$2&ROW($DS204)))","v":0},{"$f":"IF(Q204=\"\",0,\"X=\"&SUBSTITUTE(SUBSTITUTE(SUBSTITUTE(SUBSTITUTE(SUBSTITUTE(SUBSTITUTE(SUBSTITUTE(SUBSTITUTE(SUBSTITUTE(SUBSTITUTE(SUBSTITUTE(SUBSTITUTE(Q204,$ED204,$ED$2&ROW($ED204)),$EC204,$EC$2&ROW($EC204)),$EB204,$EB$2&ROW($EB204)),$EA204,$EA$2&ROW($EA204)),$DZ204,$DZ$2&ROW($DZ204)),$DY204,$DY$2&ROW($DY204)),$DX204,$DX$2&ROW($DX204)),$DW204,$DW$2&ROW($DW204)),$DV204,$DV$2&ROW($DV204)),$DU204,$DU$2&ROW($DU204)),$DT204,$DT$2&ROW($DT204)),$DS204,$DS$2&ROW($DS204)))","v":0},{"$f":"IF(R204=\"\",0,\"X=\"&SUBSTITUTE(SUBSTITUTE(SUBSTITUTE(SUBSTITUTE(SUBSTITUTE(SUBSTITUTE(SUBSTITUTE(SUBSTITUTE(SUBSTITUTE(SUBSTITUTE(SUBSTITUTE(SUBSTITUTE(R204,$ED204,$ED$2&ROW($ED204)),$EC204,$EC$2&ROW($EC204)),$EB204,$EB$2&ROW($EB204)),$EA204,$EA$2&ROW($EA204)),$DZ204,$DZ$2&ROW($DZ204)),$DY204,$DY$2&ROW($DY204)),$DX204,$DX$2&ROW($DX204)),$DW204,$DW$2&ROW($DW204)),$DV204,$DV$2&ROW($DV204)),$DU204,$DU$2&ROW($DU204)),$DT204,$DT$2&ROW($DT204)),$DS204,$DS$2&ROW($DS204)))","v":"X=0"},{"$f":"IF(S204=\"\",0,\"X=\"&SUBSTITUTE(SUBSTITUTE(SUBSTITUTE(SUBSTITUTE(SUBSTITUTE(SUBSTITUTE(SUBSTITUTE(SUBSTITUTE(SUBSTITUTE(SUBSTITUTE(SUBSTITUTE(SUBSTITUTE(S204,$ED204,$ED$2&ROW($ED204)),$EC204,$EC$2&ROW($EC204)),$EB204,$EB$2&ROW($EB204)),$EA204,$EA$2&ROW($EA204)),$DZ204,$DZ$2&ROW($DZ204)),$DY204,$DY$2&ROW($DY204)),$DX204,$DX$2&ROW($DX204)),$DW204,$DW$2&ROW($DW204)),$DV204,$DV$2&ROW($DV204)),$DU204,$DU$2&ROW($DU204)),$DT204,$DT$2&ROW($DT204)),$DS204,$DS$2&ROW($DS204)))","v":0},{"$f":"IF(T204=\"\",0,\"X=\"&SUBSTITUTE(SUBSTITUTE(SUBSTITUTE(SUBSTITUTE(SUBSTITUTE(SUBSTITUTE(SUBSTITUTE(SUBSTITUTE(SUBSTITUTE(SUBSTITUTE(SUBSTITUTE(SUBSTITUTE(T204,$ED204,$ED$2&ROW($ED204)),$EC204,$EC$2&ROW($EC204)),$EB204,$EB$2&ROW($EB204)),$EA204,$EA$2&ROW($EA204)),$DZ204,$DZ$2&ROW($DZ204)),$DY204,$DY$2&ROW($DY204)),$DX204,$DX$2&ROW($DX204)),$DW204,$DW$2&ROW($DW204)),$DV204,$DV$2&ROW($DV204)),$DU204,$DU$2&ROW($DU204)),$DT204,$DT$2&ROW($DT204)),$DS204,$DS$2&ROW($DS204)))","v":0},{"$f":"IF(U204=\"\",0,\"X=\"&SUBSTITUTE(SUBSTITUTE(SUBSTITUTE(SUBSTITUTE(SUBSTITUTE(SUBSTITUTE(SUBSTITUTE(SUBSTITUTE(SUBSTITUTE(SUBSTITUTE(SUBSTITUTE(SUBSTITUTE(U204,$ED204,$ED$2&ROW($ED204)),$EC204,$EC$2&ROW($EC204)),$EB204,$EB$2&ROW($EB204)),$EA204,$EA$2&ROW($EA204)),$DZ204,$DZ$2&ROW($DZ204)),$DY204,$DY$2&ROW($DY204)),$DX204,$DX$2&ROW($DX204)),$DW204,$DW$2&ROW($DW204)),$DV204,$DV$2&ROW($DV204)),$DU204,$DU$2&ROW($DU204)),$DT204,$DT$2&ROW($DT204)),$DS204,$DS$2&ROW($DS204)))","v":"X=0"},{"$f":"IF(V204=\"\",0,\"X=\"&SUBSTITUTE(SUBSTITUTE(SUBSTITUTE(SUBSTITUTE(SUBSTITUTE(SUBSTITUTE(SUBSTITUTE(SUBSTITUTE(SUBSTITUTE(SUBSTITUTE(SUBSTITUTE(SUBSTITUTE(V204,$ED204,$ED$2&ROW($ED204)),$EC204,$EC$2&ROW($EC204)),$EB204,$EB$2&ROW($EB204)),$EA204,$EA$2&ROW($EA204)),$DZ204,$DZ$2&ROW($DZ204)),$DY204,$DY$2&ROW($DY204)),$DX204,$DX$2&ROW($DX204)),$DW204,$DW$2&ROW($DW204)),$DV204,$DV$2&ROW($DV204)),$DU204,$DU$2&ROW($DU204)),$DT204,$DT$2&ROW($DT204)),$DS204,$DS$2&ROW($DS204)))","v":"X=0"},{"$f":"IF(W204=\"\",0,\"X=\"&SUBSTITUTE(SUBSTITUTE(SUBSTITUTE(SUBSTITUTE(SUBSTITUTE(SUBSTITUTE(SUBSTITUTE(SUBSTITUTE(SUBSTITUTE(SUBSTITUTE(SUBSTITUTE(SUBSTITUTE(W204,$ED204,$ED$2&ROW($ED204)),$EC204,$EC$2&ROW($EC204)),$EB204,$EB$2&ROW($EB204)),$EA204,$EA$2&ROW($EA204)),$DZ204,$DZ$2&ROW($DZ204)),$DY204,$DY$2&ROW($DY204)),$DX204,$DX$2&ROW($DX204)),$DW204,$DW$2&ROW($DW204)),$DV204,$DV$2&ROW($DV204)),$DU204,$DU$2&ROW($DU204)),$DT204,$DT$2&ROW($DT204)),$DS204,$DS$2&ROW($DS204)))","v":"X=0"},{"$f":"IF(X204=\"\",0,\"X=\"&SUBSTITUTE(SUBSTITUTE(SUBSTITUTE(SUBSTITUTE(SUBSTITUTE(SUBSTITUTE(SUBSTITUTE(SUBSTITUTE(SUBSTITUTE(SUBSTITUTE(SUBSTITUTE(SUBSTITUTE(X204,$ED204,$ED$2&ROW($ED204)),$EC204,$EC$2&ROW($EC204)),$EB204,$EB$2&ROW($EB204)),$EA204,$EA$2&ROW($EA204)),$DZ204,$DZ$2&ROW($DZ204)),$DY204,$DY$2&ROW($DY204)),$DX204,$DX$2&ROW($DX204)),$DW204,$DW$2&ROW($DW204)),$DV204,$DV$2&ROW($DV204)),$DU204,$DU$2&ROW($DU204)),$DT204,$DT$2&ROW($DT204)),$DS204,$DS$2&ROW($DS204)))","v":"X=37.024"},{"$f":"IF(Y204=\"\",0,\"X=\"&SUBSTITUTE(SUBSTITUTE(SUBSTITUTE(SUBSTITUTE(SUBSTITUTE(SUBSTITUTE(SUBSTITUTE(SUBSTITUTE(SUBSTITUTE(SUBSTITUTE(SUBSTITUTE(SUBSTITUTE(Y204,$ED204,$ED$2&ROW($ED204)),$EC204,$EC$2&ROW($EC204)),$EB204,$EB$2&ROW($EB204)),$EA204,$EA$2&ROW($EA204)),$DZ204,$DZ$2&ROW($DZ204)),$DY204,$DY$2&ROW($DY204)),$DX204,$DX$2&ROW($DX204)),$DW204,$DW$2&ROW($DW204)),$DV204,$DV$2&ROW($DV204)),$DU204,$DU$2&ROW($DU204)),$DT204,$DT$2&ROW($DT204)),$DS204,$DS$2&ROW($DS204)))","v":"X=36.143"},{"$f":"IF(Z204=\"\",0,\"X=\"&SUBSTITUTE(SUBSTITUTE(SUBSTITUTE(SUBSTITUTE(SUBSTITUTE(SUBSTITUTE(SUBSTITUTE(SUBSTITUTE(SUBSTITUTE(SUBSTITUTE(SUBSTITUTE(SUBSTITUTE(Z204,$ED204,$ED$2&ROW($ED204)),$EC204,$EC$2&ROW($EC204)),$EB204,$EB$2&ROW($EB204)),$EA204,$EA$2&ROW($EA204)),$DZ204,$DZ$2&ROW($DZ204)),$DY204,$DY$2&ROW($DY204)),$DX204,$DX$2&ROW($DX204)),$DW204,$DW$2&ROW($DW204)),$DV204,$DV$2&ROW($DV204)),$DU204,$DU$2&ROW($DU204)),$DT204,$DT$2&ROW($DT204)),$DS204,$DS$2&ROW($DS204)))","v":"X=0"},{"$f":"IF(AA204=\"\",0,\"X=\"&SUBSTITUTE(SUBSTITUTE(SUBSTITUTE(SUBSTITUTE(SUBSTITUTE(SUBSTITUTE(SUBSTITUTE(SUBSTITUTE(SUBSTITUTE(SUBSTITUTE(SUBSTITUTE(SUBSTITUTE(AA204,$ED204,$ED$2&ROW($ED204)),$EC204,$EC$2&ROW($EC204)),$EB204,$EB$2&ROW($EB204)),$EA204,$EA$2&ROW($EA204)),$DZ204,$DZ$2&ROW($DZ204)),$DY204,$DY$2&ROW($DY204)),$DX204,$DX$2&ROW($DX204)),$DW204,$DW$2&ROW($DW204)),$DV204,$DV$2&ROW($DV204)),$DU204,$DU$2&ROW($DU204)),$DT204,$DT$2&ROW($DT204)),$DS204,$DS$2&ROW($DS204)))","v":"X=-67.017"},{"$f":"IF(AB204=\"\",0,\"X=\"&SUBSTITUTE(SUBSTITUTE(SUBSTITUTE(SUBSTITUTE(SUBSTITUTE(SUBSTITUTE(SUBSTITUTE(SUBSTITUTE(SUBSTITUTE(SUBSTITUTE(SUBSTITUTE(SUBSTITUTE(AB204,$ED204,$ED$2&ROW($ED204)),$EC204,$EC$2&ROW($EC204)),$EB204,$EB$2&ROW($EB204)),$EA204,$EA$2&ROW($EA204)),$DZ204,$DZ$2&ROW($DZ204)),$DY204,$DY$2&ROW($DY204)),$DX204,$DX$2&ROW($DX204)),$DW204,$DW$2&ROW($DW204)),$DV204,$DV$2&ROW($DV204)),$DU204,$DU$2&ROW($DU204)),$DT204,$DT$2&ROW($DT204)),$DS204,$DS$2&ROW($DS204)))","v":"X=0"},null,null,"{Factor:WinterCF}","{Factor:SummerCF}",{"$f":"IFERROR(INDEX($EG204:$IV204,MATCH(0,COUNTIF($DR204:DT204,$EG204:$IV204),0)),\"\")","v":"{Cost}"},{"$f":"IFERROR(INDEX($EG204:$IV204,MATCH(0,COUNTIF($DR204:DU204,$EG204:$IV204),0)),\"\")","v":"{Measure:Quantity}"},{"$f":"IFERROR(INDEX($EG204:$IV204,MATCH(0,COUNTIF($DR204:DV204,$EG204:$IV204),0)),\"\")","v":""},{"$f":"IFERROR(INDEX($EG204:$IV204,MATCH(0,COUNTIF($DR204:DW204,$EG204:$IV204),0)),\"\")","v":""},{"$f":"IFERROR(INDEX($EG204:$IV204,MATCH(0,COUNTIF($DR204:DX204,$EG204:$IV204),0)),\"\")","v":""},{"$f":"IFERROR(INDEX($EG204:$IV204,MATCH(0,COUNTIF($DR204:DY204,$EG204:$IV204),0)),\"\")","v":""},{"$f":"IFERROR(INDEX($EG204:$IV204,MATCH(0,COUNTIF($DR204:DZ204,$EG204:$IV204),0)),\"\")","v":""},{"$f":"IFERROR(INDEX($EG204:$IV204,MATCH(0,COUNTIF($DR204:EA204,$EG204:$IV204),0)),\"\")","v":""},{"$f":"IFERROR(INDEX($EG204:$IV204,MATCH(0,COUNTIF($DR204:EB204,$EG204:$IV204),0)),\"\")","v":""},{"$f":"IFERROR(INDEX($EG204:$IV204,MATCH(0,COUNTIF($DR204:EC204,$EG204:$IV204),0)),\"\")","v":""},null,null,{"$f":"IFERROR(MID($G204,FIND(CHAR(160),SUBSTITUTE($G204,\"{\",CHAR(160),EG$1)),FIND(CHAR(160),SUBSTITUTE($G204,\"}\",CHAR(160),EG$1))-FIND(CHAR(160),SUBSTITUTE($G204,\"{\",CHAR(160),EG$1))+1),\"\")","v":""},{"$f":"IFERROR(MID($G204,FIND(CHAR(160),SUBSTITUTE($G204,\"{\",CHAR(160),EH$1)),FIND(CHAR(160),SUBSTITUTE($G204,\"}\",CHAR(160),EH$1))-FIND(CHAR(160),SUBSTITUTE($G204,\"{\",CHAR(160),EH$1))+1),\"\")","v":""},{"$f":"IFERROR(MID($G204,FIND(CHAR(160),SUBSTITUTE($G204,\"{\",CHAR(160),EI$1)),FIND(CHAR(160),SUBSTITUTE($G204,\"}\",CHAR(160),EI$1))-FIND(CHAR(160),SUBSTITUTE($G204,\"{\",CHAR(160),EI$1))+1),\"\")","v":""},{"$f":"IFERROR(MID($G204,FIND(CHAR(160),SUBSTITUTE($G204,\"{\",CHAR(160),EJ$1)),FIND(CHAR(160),SUBSTITUTE($G204,\"}\",CHAR(160),EJ$1))-FIND(CHAR(160),SUBSTITUTE($G204,\"{\",CHAR(160),EJ$1))+1),\"\")","v":""},{"$f":"IFERROR(MID($G204,FIND(CHAR(160),SUBSTITUTE($G204,\"{\",CHAR(160),EK$1)),FIND(CHAR(160),SUBSTITUTE($G204,\"}\",CHAR(160),EK$1))-FIND(CHAR(160),SUBSTITUTE($G204,\"{\",CHAR(160),EK$1))+1),\"\")","v":""},{"$f":"IFERROR(MID($G204,FIND(CHAR(160),SUBSTITUTE($G204,\"{\",CHAR(160),EL$1)),FIND(CHAR(160),SUBSTITUTE($G204,\"}\",CHAR(160),EL$1))-FIND(CHAR(160),SUBSTITUTE($G204,\"{\",CHAR(160),EL$1))+1),\"\")","v":""},{"$f":"IFERROR(MID($G204,FIND(CHAR(160),SUBSTITUTE($G204,\"{\",CHAR(160),EM$1)),FIND(CHAR(160),SUBSTITUTE($G204,\"}\",CHAR(160),EM$1))-FIND(CHAR(160),SUBSTITUTE($G204,\"{\",CHAR(160),EM$1))+1),\"\")","v":""},{"$f":"IFERROR(MID($G204,FIND(CHAR(160),SUBSTITUTE($G204,\"{\",CHAR(160),EN$1)),FIND(CHAR(160),SUBSTITUTE($G204,\"}\",CHAR(160),EN$1))-FIND(CHAR(160),SUBSTITUTE($G204,\"{\",CHAR(160),EN$1))+1),\"\")","v":""},{"$f":"IFERROR(MID($G204,FIND(CHAR(160),SUBSTITUTE($G204,\"{\",CHAR(160),EO$1)),FIND(CHAR(160),SUBSTITUTE($G204,\"}\",CHAR(160),EO$1))-FIND(CHAR(160),SUBSTITUTE($G204,\"{\",CHAR(160),EO$1))+1),\"\")","v":""},{"$f":"IFERROR(MID($G204,FIND(CHAR(160),SUBSTITUTE($G204,\"{\",CHAR(160),EP$1)),FIND(CHAR(160),SUBSTITUTE($G204,\"}\",CHAR(160),EP$1))-FIND(CHAR(160),SUBSTITUTE($G204,\"{\",CHAR(160),EP$1))+1),\"\")","v":""},{"$f":"IFERROR(MID($J204,FIND(CHAR(160),SUBSTITUTE($J204,\"{\",CHAR(160),EQ$1)),FIND(CHAR(160),SUBSTITUTE($J204,\"}\",CHAR(160),EQ$1))-FIND(CHAR(160),SUBSTITUTE($J204,\"{\",CHAR(160),EQ$1))+1),\"\")","v":"{Cost}"},{"$f":"IFERROR(MID($J204,FIND(CHAR(160),SUBSTITUTE($J204,\"{\",CHAR(160),ER$1)),FIND(CHAR(160),SUBSTITUTE($J204,\"}\",CHAR(160),ER$1))-FIND(CHAR(160),SUBSTITUTE($J204,\"{\",CHAR(160),ER$1))+1),\"\")","v":"{Cost}"},{"$f":"IFERROR(MID($J204,FIND(CHAR(160),SUBSTITUTE($J204,\"{\",CHAR(160),ES$1)),FIND(CHAR(160),SUBSTITUTE($J204,\"}\",CHAR(160),ES$1))-FIND(CHAR(160),SUBSTITUTE($J204,\"{\",CHAR(160),ES$1))+1),\"\")","v":"{Measure:Quantity}"},{"$f":"IFERROR(MID($J204,FIND(CHAR(160),SUBSTITUTE($J204,\"{\",CHAR(160),ET$1)),FIND(CHAR(160),SUBSTITUTE($J204,\"}\",CHAR(160),ET$1))-FIND(CHAR(160),SUBSTITUTE($J204,\"{\",CHAR(160),ET$1))+1),\"\")","v":""},{"$f":"IFERROR(MID($J204,FIND(CHAR(160),SUBSTITUTE($J204,\"{\",CHAR(160),EU$1)),FIND(CHAR(160),SUBSTITUTE($J204,\"}\",CHAR(160),EU$1))-FIND(CHAR(160),SUBSTITUTE($J204,\"{\",CHAR(160),EU$1))+1),\"\")","v":""},{"$f":"IFERROR(MID($J204,FIND(CHAR(160),SUBSTITUTE($J204,\"{\",CHAR(160),EV$1)),FIND(CHAR(160),SUBSTITUTE($J204,\"}\",CHAR(160),EV$1))-FIND(CHAR(160),SUBSTITUTE($J204,\"{\",CHAR(160),EV$1))+1),\"\")","v":""},{"$f":"IFERROR(MID($J204,FIND(CHAR(160),SUBSTITUTE($J204,\"{\",CHAR(160),EW$1)),FIND(CHAR(160),SUBSTITUTE($J204,\"}\",CHAR(160),EW$1))-FIND(CHAR(160),SUBSTITUTE($J204,\"{\",CHAR(160),EW$1))+1),\"\")","v":""},{"$f":"IFERROR(MID($J204,FIND(CHAR(160),SUBSTITUTE($J204,\"{\",CHAR(160),EX$1)),FIND(CHAR(160),SUBSTITUTE($J204,\"}\",CHAR(160),EX$1))-FIND(CHAR(160),SUBSTITUTE($J204,\"{\",CHAR(160),EX$1))+1),\"\")","v":""},{"$f":"IFERROR(MID($J204,FIND(CHAR(160),SUBSTITUTE($J204,\"{\",CHAR(160),EY$1)),FIND(CHAR(160),SUBSTITUTE($J204,\"}\",CHAR(160),EY$1))-FIND(CHAR(160),SUBSTITUTE($J204,\"{\",CHAR(160),EY$1))+1),\"\")","v":""},{"$f":"IFERROR(MID($J204,FIND(CHAR(160),SUBSTITUTE($J204,\"{\",CHAR(160),EZ$1)),FIND(CHAR(160),SUBSTITUTE($J204,\"}\",CHAR(160),EZ$1))-FIND(CHAR(160),SUBSTITUTE($J204,\"{\",CHAR(160),EZ$1))+1),\"\")","v":""},{"$f":"IFERROR(MID($J204,FIND(CHAR(160),SUBSTITUTE($J204,\"{\",CHAR(160),FA$1)),FIND(CHAR(160),SUBSTITUTE($J204,\"}\",CHAR(160),FA$1))-FIND(CHAR(160),SUBSTITUTE($J204,\"{\",CHAR(160),FA$1))+1),\"\")","v":"{Cost}"},{"$f":"IFERROR(MID($J204,FIND(CHAR(160),SUBSTITUTE($J204,\"{\",CHAR(160),FB$1)),FIND(CHAR(160),SUBSTITUTE($J204,\"}\",CHAR(160),FB$1))-FIND(CHAR(160),SUBSTITUTE($J204,\"{\",CHAR(160),FB$1))+1),\"\")","v":"{Cost}"},{"$f":"IFERROR(MID($O204,FIND(CHAR(160),SUBSTITUTE($O204,\"{\",CHAR(160),FC$1)),FIND(CHAR(160),SUBSTITUTE($O204,\"}\",CHAR(160),FC$1))-FIND(CHAR(160),SUBSTITUTE($O204,\"{\",CHAR(160),FC$1))+1),\"\")","v":""},{"$f":"IFERROR(MID($O204,FIND(CHAR(160),SUBSTITUTE($O204,\"{\",CHAR(160),FD$1)),FIND(CHAR(160),SUBSTITUTE($O204,\"}\",CHAR(160),FD$1))-FIND(CHAR(160),SUBSTITUTE($O204,\"{\",CHAR(160),FD$1))+1),\"\")","v":""},{"$f":"IFERROR(MID($O204,FIND(CHAR(160),SUBSTITUTE($O204,\"{\",CHAR(160),FE$1)),FIND(CHAR(160),SUBSTITUTE($O204,\"}\",CHAR(160),FE$1))-FIND(CHAR(160),SUBSTITUTE($O204,\"{\",CHAR(160),FE$1))+1),\"\")","v":""},{"$f":"IFERROR(MID($O204,FIND(CHAR(160),SUBSTITUTE($O204,\"{\",CHAR(160),FF$1)),FIND(CHAR(160),SUBSTITUTE($O204,\"}\",CHAR(160),FF$1))-FIND(CHAR(160),SUBSTITUTE($O204,\"{\",CHAR(160),FF$1))+1),\"\")","v":""},{"$f":"IFERROR(MID($O204,FIND(CHAR(160),SUBSTITUTE($O204,\"{\",CHAR(160),FG$1)),FIND(CHAR(160),SUBSTITUTE($O204,\"}\",CHAR(160),FG$1))-FIND(CHAR(160),SUBSTITUTE($O204,\"{\",CHAR(160),FG$1))+1),\"\")","v":""},{"$f":"IFERROR(MID($O204,FIND(CHAR(160),SUBSTITUTE($O204,\"{\",CHAR(160),FH$1)),FIND(CHAR(160),SUBSTITUTE($O204,\"}\",CHAR(160),FH$1))-FIND(CHAR(160),SUBSTITUTE($O204,\"{\",CHAR(160),FH$1))+1),\"\")","v":""},{"$f":"IFERROR(MID($O204,FIND(CHAR(160),SUBSTITUTE($O204,\"{\",CHAR(160),FI$1)),FIND(CHAR(160),SUBSTITUTE($O204,\"}\",CHAR(160),FI$1))-FIND(CHAR(160),SUBSTITUTE($O204,\"{\",CHAR(160),FI$1))+1),\"\")","v":""},{"$f":"IFERROR(MID($O204,FIND(CHAR(160),SUBSTITUTE($O204,\"{\",CHAR(160),FJ$1)),FIND(CHAR(160),SUBSTITUTE($O204,\"}\",CHAR(160),FJ$1))-FIND(CHAR(160),SUBSTITUTE($O204,\"{\",CHAR(160),FJ$1))+1),\"\")","v":""},{"$f":"IFERROR(MID($O204,FIND(CHAR(160),SUBSTITUTE($O204,\"{\",CHAR(160),FK$1)),FIND(CHAR(160),SUBSTITUTE($O204,\"}\",CHAR(160),FK$1))-FIND(CHAR(160),SUBSTITUTE($O204,\"{\",CHAR(160),FK$1))+1),\"\")","v":""},{"$f":"IFERROR(MID($O204,FIND(CHAR(160),SUBSTITUTE($O204,\"{\",CHAR(160),FL$1)),FIND(CHAR(160),SUBSTITUTE($O204,\"}\",CHAR(160),FL$1))-FIND(CHAR(160),SUBSTITUTE($O204,\"{\",CHAR(160),FL$1))+1),\"\")","v":""},{"$f":"IFERROR(MID($R204,FIND(CHAR(160),SUBSTITUTE($R204,\"{\",CHAR(160),FM$1)),FIND(CHAR(160),SUBSTITUTE($R204,\"}\",CHAR(160),FM$1))-FIND(CHAR(160),SUBSTITUTE($R204,\"{\",CHAR(160),FM$1))+1),\"\")","v":""},{"$f":"IFERROR(MID($R204,FIND(CHAR(160),SUBSTITUTE($R204,\"{\",CHAR(160),FN$1)),FIND(CHAR(160),SUBSTITUTE($R204,\"}\",CHAR(160),FN$1))-FIND(CHAR(160),SUBSTITUTE($R204,\"{\",CHAR(160),FN$1))+1),\"\")","v":""},{"$f":"IFERROR(MID($R204,FIND(CHAR(160),SUBSTITUTE($R204,\"{\",CHAR(160),FO$1)),FIND(CHAR(160),SUBSTITUTE($R204,\"}\",CHAR(160),FO$1))-FIND(CHAR(160),SUBSTITUTE($R204,\"{\",CHAR(160),FO$1))+1),\"\")","v":""},{"$f":"IFERROR(MID($R204,FIND(CHAR(160),SUBSTITUTE($R204,\"{\",CHAR(160),FP$1)),FIND(CHAR(160),SUBSTITUTE($R204,\"}\",CHAR(160),FP$1))-FIND(CHAR(160),SUBSTITUTE($R204,\"{\",CHAR(160),FP$1))+1),\"\")","v":""},{"$f":"IFERROR(MID($R204,FIND(CHAR(160),SUBSTITUTE($R204,\"{\",CHAR(160),FQ$1)),FIND(CHAR(160),SUBSTITUTE($R204,\"}\",CHAR(160),FQ$1))-FIND(CHAR(160),SUBSTITUTE($R204,\"{\",CHAR(160),FQ$1))+1),\"\")","v":""},{"$f":"IFERROR(MID($R204,FIND(CHAR(160),SUBSTITUTE($R204,\"{\",CHAR(160),FR$1)),FIND(CHAR(160),SUBSTITUTE($R204,\"}\",CHAR(160),FR$1))-FIND(CHAR(160),SUBSTITUTE($R204,\"{\",CHAR(160),FR$1))+1),\"\")","v":""},{"$f":"IFERROR(MID($R204,FIND(CHAR(160),SUBSTITUTE($R204,\"{\",CHAR(160),FS$1)),FIND(CHAR(160),SUBSTITUTE($R204,\"}\",CHAR(160),FS$1))-FIND(CHAR(160),SUBSTITUTE($R204,\"{\",CHAR(160),FS$1))+1),\"\")","v":""},{"$f":"IFERROR(MID($R204,FIND(CHAR(160),SUBSTITUTE($R204,\"{\",CHAR(160),FT$1)),FIND(CHAR(160),SUBSTITUTE($R204,\"}\",CHAR(160),FT$1))-FIND(CHAR(160),SUBSTITUTE($R204,\"{\",CHAR(160),FT$1))+1),\"\")","v":""},{"$f":"IFERROR(MID($R204,FIND(CHAR(160),SUBSTITUTE($R204,\"{\",CHAR(160),FU$1)),FIND(CHAR(160),SUBSTITUTE($R204,\"}\",CHAR(160),FU$1))-FIND(CHAR(160),SUBSTITUTE($R204,\"{\",CHAR(160),FU$1))+1),\"\")","v":""},{"$f":"IFERROR(MID($R204,FIND(CHAR(160),SUBSTITUTE($R204,\"{\",CHAR(160),FV$1)),FIND(CHAR(160),SUBSTITUTE($R204,\"}\",CHAR(160),FV$1))-FIND(CHAR(160),SUBSTITUTE($R204,\"{\",CHAR(160),FV$1))+1),\"\")","v":""},{"$f":"IFERROR(MID($U204,FIND(CHAR(160),SUBSTITUTE($U204,\"{\",CHAR(160),FW$1)),FIND(CHAR(160),SUBSTITUTE($U204,\"}\",CHAR(160),FW$1))-FIND(CHAR(160),SUBSTITUTE($U204,\"{\",CHAR(160),FW$1))+1),\"\")","v":""},{"$f":"IFERROR(MID($U204,FIND(CHAR(160),SUBSTITUTE($U204,\"{\",CHAR(160),FX$1)),FIND(CHAR(160),SUBSTITUTE($U204,\"}\",CHAR(160),FX$1))-FIND(CHAR(160),SUBSTITUTE($U204,\"{\",CHAR(160),FX$1))+1),\"\")","v":""},{"$f":"IFERROR(MID($U204,FIND(CHAR(160),SUBSTITUTE($U204,\"{\",CHAR(160),FY$1)),FIND(CHAR(160),SUBSTITUTE($U204,\"}\",CHAR(160),FY$1))-FIND(CHAR(160),SUBSTITUTE($U204,\"{\",CHAR(160),FY$1))+1),\"\")","v":""},{"$f":"IFERROR(MID($U204,FIND(CHAR(160),SUBSTITUTE($U204,\"{\",CHAR(160),FZ$1)),FIND(CHAR(160),SUBSTITUTE($U204,\"}\",CHAR(160),FZ$1))-FIND(CHAR(160),SUBSTITUTE($U204,\"{\",CHAR(160),FZ$1))+1),\"\")","v":""},{"$f":"IFERROR(MID($U204,FIND(CHAR(160),SUBSTITUTE($U204,\"{\",CHAR(160),GA$1)),FIND(CHAR(160),SUBSTITUTE($U204,\"}\",CHAR(160),GA$1))-FIND(CHAR(160),SUBSTITUTE($U204,\"{\",CHAR(160),GA$1))+1),\"\")","v":""},{"$f":"IFERROR(MID($U204,FIND(CHAR(160),SUBSTITUTE($U204,\"{\",CHAR(160),GB$1)),FIND(CHAR(160),SUBSTITUTE($U204,\"}\",CHAR(160),GB$1))-FIND(CHAR(160),SUBSTITUTE($U204,\"{\",CHAR(160),GB$1))+1),\"\")","v":""},{"$f":"IFERROR(MID($U204,FIND(CHAR(160),SUBSTITUTE($U204,\"{\",CHAR(160),GC$1)),FIND(CHAR(160),SUBSTITUTE($U204,\"}\",CHAR(160),GC$1))-FIND(CHAR(160),SUBSTITUTE($U204,\"{\",CHAR(160),GC$1))+1),\"\")","v":""},{"$f":"IFERROR(MID($U204,FIND(CHAR(160),SUBSTITUTE($U204,\"{\",CHAR(160),GD$1)),FIND(CHAR(160),SUBSTITUTE($U204,\"}\",CHAR(160),GD$1))-FIND(CHAR(160),SUBSTITUTE($U204,\"{\",CHAR(160),GD$1))+1),\"\")","v":""},{"$f":"IFERROR(MID($U204,FIND(CHAR(160),SUBSTITUTE($U204,\"{\",CHAR(160),GE$1)),FIND(CHAR(160),SUBSTITUTE($U204,\"}\",CHAR(160),GE$1))-FIND(CHAR(160),SUBSTITUTE($U204,\"{\",CHAR(160),GE$1))+1),\"\")","v":""},{"$f":"IFERROR(MID($U204,FIND(CHAR(160),SUBSTITUTE($U204,\"{\",CHAR(160),GF$1)),FIND(CHAR(160),SUBSTITUTE($U204,\"}\",CHAR(160),GF$1))-FIND(CHAR(160),SUBSTITUTE($U204,\"{\",CHAR(160),GF$1))+1),\"\")","v":""},{"$f":"IFERROR(MID($V204,FIND(CHAR(160),SUBSTITUTE($V204,\"{\",CHAR(160),GG$1)),FIND(CHAR(160),SUBSTITUTE($V204,\"}\",CHAR(160),GG$1))-FIND(CHAR(160),SUBSTITUTE($V204,\"{\",CHAR(160),GG$1))+1),\"\")","v":""},{"$f":"IFERROR(MID($V204,FIND(CHAR(160),SUBSTITUTE($V204,\"{\",CHAR(160),GH$1)),FIND(CHAR(160),SUBSTITUTE($V204,\"}\",CHAR(160),GH$1))-FIND(CHAR(160),SUBSTITUTE($V204,\"{\",CHAR(160),GH$1))+1),\"\")","v":""},{"$f":"IFERROR(MID($V204,FIND(CHAR(160),SUBSTITUTE($V204,\"{\",CHAR(160),GI$1)),FIND(CHAR(160),SUBSTITUTE($V204,\"}\",CHAR(160),GI$1))-FIND(CHAR(160),SUBSTITUTE($V204,\"{\",CHAR(160),GI$1))+1),\"\")","v":""},{"$f":"IFERROR(MID($V204,FIND(CHAR(160),SUBSTITUTE($V204,\"{\",CHAR(160),GJ$1)),FIND(CHAR(160),SUBSTITUTE($V204,\"}\",CHAR(160),GJ$1))-FIND(CHAR(160),SUBSTITUTE($V204,\"{\",CHAR(160),GJ$1))+1),\"\")","v":""},{"$f":"IFERROR(MID($V204,FIND(CHAR(160),SUBSTITUTE($V204,\"{\",CHAR(160),GK$1)),FIND(CHAR(160),SUBSTITUTE($V204,\"}\",CHAR(160),GK$1))-FIND(CHAR(160),SUBSTITUTE($V204,\"{\",CHAR(160),GK$1))+1),\"\")","v":""},{"$f":"IFERROR(MID($V204,FIND(CHAR(160),SUBSTITUTE($V204,\"{\",CHAR(160),GL$1)),FIND(CHAR(160),SUBSTITUTE($V204,\"}\",CHAR(160),GL$1))-FIND(CHAR(160),SUBSTITUTE($V204,\"{\",CHAR(160),GL$1))+1),\"\")","v":""},{"$f":"IFERROR(MID($V204,FIND(CHAR(160),SUBSTITUTE($V204,\"{\",CHAR(160),GM$1)),FIND(CHAR(160),SUBSTITUTE($V204,\"}\",CHAR(160),GM$1))-FIND(CHAR(160),SUBSTITUTE($V204,\"{\",CHAR(160),GM$1))+1),\"\")","v":""},{"$f":"IFERROR(MID($V204,FIND(CHAR(160),SUBSTITUTE($V204,\"{\",CHAR(160),GN$1)),FIND(CHAR(160),SUBSTITUTE($V204,\"}\",CHAR(160),GN$1))-FIND(CHAR(160),SUBSTITUTE($V204,\"{\",CHAR(160),GN$1))+1),\"\")","v":""},{"$f":"IFERROR(MID($V204,FIND(CHAR(160),SUBSTITUTE($V204,\"{\",CHAR(160),GO$1)),FIND(CHAR(160),SUBSTITUTE($V204,\"}\",CHAR(160),GO$1))-FIND(CHAR(160),SUBSTITUTE($V204,\"{\",CHAR(160),GO$1))+1),\"\")","v":""},{"$f":"IFERROR(MID($V204,FIND(CHAR(160),SUBSTITUTE($V204,\"{\",CHAR(160),GP$1)),FIND(CHAR(160),SUBSTITUTE($V204,\"}\",CHAR(160),GP$1))-FIND(CHAR(160),SUBSTITUTE($V204,\"{\",CHAR(160),GP$1))+1),\"\")","v":""},{"$f":"IFERROR(MID($W204,FIND(CHAR(160),SUBSTITUTE($W204,\"{\",CHAR(160),GQ$1)),FIND(CHAR(160),SUBSTITUTE($W204,\"}\",CHAR(160),GQ$1))-FIND(CHAR(160),SUBSTITUTE($W204,\"{\",CHAR(160),GQ$1))+1),\"\")","v":""},{"$f":"IFERROR(MID($W204,FIND(CHAR(160),SUBSTITUTE($W204,\"{\",CHAR(160),GR$1)),FIND(CHAR(160),SUBSTITUTE($W204,\"}\",CHAR(160),GR$1))-FIND(CHAR(160),SUBSTITUTE($W204,\"{\",CHAR(160),GR$1))+1),\"\")","v":""},{"$f":"IFERROR(MID($W204,FIND(CHAR(160),SUBSTITUTE($W204,\"{\",CHAR(160),GS$1)),FIND(CHAR(160),SUBSTITUTE($W204,\"}\",CHAR(160),GS$1))-FIND(CHAR(160),SUBSTITUTE($W204,\"{\",CHAR(160),GS$1))+1),\"\")","v":""},{"$f":"IFERROR(MID($W204,FIND(CHAR(160),SUBSTITUTE($W204,\"{\",CHAR(160),GT$1)),FIND(CHAR(160),SUBSTITUTE($W204,\"}\",CHAR(160),GT$1))-FIND(CHAR(160),SUBSTITUTE($W204,\"{\",CHAR(160),GT$1))+1),\"\")","v":""},{"$f":"IFERROR(MID($W204,FIND(CHAR(160),SUBSTITUTE($W204,\"{\",CHAR(160),GU$1)),FIND(CHAR(160),SUBSTITUTE($W204,\"}\",CHAR(160),GU$1))-FIND(CHAR(160),SUBSTITUTE($W204,\"{\",CHAR(160),GU$1))+1),\"\")","v":""},{"$f":"IFERROR(MID($W204,FIND(CHAR(160),SUBSTITUTE($W204,\"{\",CHAR(160),GV$1)),FIND(CHAR(160),SUBSTITUTE($W204,\"}\",CHAR(160),GV$1))-FIND(CHAR(160),SUBSTITUTE($W204,\"{\",CHAR(160),GV$1))+1),\"\")","v":""},{"$f":"IFERROR(MID($W204,FIND(CHAR(160),SUBSTITUTE($W204,\"{\",CHAR(160),GW$1)),FIND(CHAR(160),SUBSTITUTE($W204,\"}\",CHAR(160),GW$1))-FIND(CHAR(160),SUBSTITUTE($W204,\"{\",CHAR(160),GW$1))+1),\"\")","v":""},{"$f":"IFERROR(MID($W204,FIND(CHAR(160),SUBSTITUTE($W204,\"{\",CHAR(160),GX$1)),FIND(CHAR(160),SUBSTITUTE($W204,\"}\",CHAR(160),GX$1))-FIND(CHAR(160),SUBSTITUTE($W204,\"{\",CHAR(160),GX$1))+1),\"\")","v":""},{"$f":"IFERROR(MID($W204,FIND(CHAR(160),SUBSTITUTE($W204,\"{\",CHAR(160),GY$1)),FIND(CHAR(160),SUBSTITUTE($W204,\"}\",CHAR(160),GY$1))-FIND(CHAR(160),SUBSTITUTE($W204,\"{\",CHAR(160),GY$1))+1),\"\")","v":""},{"$f":"IFERROR(MID($W204,FIND(CHAR(160),SUBSTITUTE($W204,\"{\",CHAR(160),GZ$1)),FIND(CHAR(160),SUBSTITUTE($W204,\"}\",CHAR(160),GZ$1))-FIND(CHAR(160),SUBSTITUTE($W204,\"{\",CHAR(160),GZ$1))+1),\"\")","v":""},{"$f":"IFERROR(MID($X204,FIND(CHAR(160),SUBSTITUTE($X204,\"{\",CHAR(160),HA$1)),FIND(CHAR(160),SUBSTITUTE($X204,\"}\",CHAR(160),HA$1))-FIND(CHAR(160),SUBSTITUTE($X204,\"{\",CHAR(160),HA$1))+1),\"\")","v":""},{"$f":"IFERROR(MID($X204,FIND(CHAR(160),SUBSTITUTE($X204,\"{\",CHAR(160),HB$1)),FIND(CHAR(160),SUBSTITUTE($X204,\"}\",CHAR(160),HB$1))-FIND(CHAR(160),SUBSTITUTE($X204,\"{\",CHAR(160),HB$1))+1),\"\")","v":""},{"$f":"IFERROR(MID($X204,FIND(CHAR(160),SUBSTITUTE($X204,\"{\",CHAR(160),HC$1)),FIND(CHAR(160),SUBSTITUTE($X204,\"}\",CHAR(160),HC$1))-FIND(CHAR(160),SUBSTITUTE($X204,\"{\",CHAR(160),HC$1))+1),\"\")","v":""},{"$f":"IFERROR(MID($X204,FIND(CHAR(160),SUBSTITUTE($X204,\"{\",CHAR(160),HD$1)),FIND(CHAR(160),SUBSTITUTE($X204,\"}\",CHAR(160),HD$1))-FIND(CHAR(160),SUBSTITUTE($X204,\"{\",CHAR(160),HD$1))+1),\"\")","v":""},{"$f":"IFERROR(MID($X204,FIND(CHAR(160),SUBSTITUTE($X204,\"{\",CHAR(160),HE$1)),FIND(CHAR(160),SUBSTITUTE($X204,\"}\",CHAR(160),HE$1))-FIND(CHAR(160),SUBSTITUTE($X204,\"{\",CHAR(160),HE$1))+1),\"\")","v":""},{"$f":"IFERROR(MID($X204,FIND(CHAR(160),SUBSTITUTE($X204,\"{\",CHAR(160),HF$1)),FIND(CHAR(160),SUBSTITUTE($X204,\"}\",CHAR(160),HF$1))-FIND(CHAR(160),SUBSTITUTE($X204,\"{\",CHAR(160),HF$1))+1),\"\")","v":""},{"$f":"IFERROR(MID($X204,FIND(CHAR(160),SUBSTITUTE($X204,\"{\",CHAR(160),HG$1)),FIND(CHAR(160),SUBSTITUTE($X204,\"}\",CHAR(160),HG$1))-FIND(CHAR(160),SUBSTITUTE($X204,\"{\",CHAR(160),HG$1))+1),\"\")","v":""},{"$f":"IFERROR(MID($X204,FIND(CHAR(160),SUBSTITUTE($X204,\"{\",CHAR(160),HH$1)),FIND(CHAR(160),SUBSTITUTE($X204,\"}\",CHAR(160),HH$1))-FIND(CHAR(160),SUBSTITUTE($X204,\"{\",CHAR(160),HH$1))+1),\"\")","v":""},{"$f":"IFERROR(MID($X204,FIND(CHAR(160),SUBSTITUTE($X204,\"{\",CHAR(160),HI$1)),FIND(CHAR(160),SUBSTITUTE($X204,\"}\",CHAR(160),HI$1))-FIND(CHAR(160),SUBSTITUTE($X204,\"{\",CHAR(160),HI$1))+1),\"\")","v":""},{"$f":"IFERROR(MID($X204,FIND(CHAR(160),SUBSTITUTE($X204,\"{\",CHAR(160),HJ$1)),FIND(CHAR(160),SUBSTITUTE($X204,\"}\",CHAR(160),HJ$1))-FIND(CHAR(160),SUBSTITUTE($X204,\"{\",CHAR(160),HJ$1))+1),\"\")","v":""},{"$f":"IFERROR(MID($Y204,FIND(CHAR(160),SUBSTITUTE($Y204,\"{\",CHAR(160),HK$1)),FIND(CHAR(160),SUBSTITUTE($Y204,\"}\",CHAR(160),HK$1))-FIND(CHAR(160),SUBSTITUTE($Y204,\"{\",CHAR(160),HK$1))+1),\"\")","v":""},{"$f":"IFERROR(MID($Y204,FIND(CHAR(160),SUBSTITUTE($Y204,\"{\",CHAR(160),HL$1)),FIND(CHAR(160),SUBSTITUTE($Y204,\"}\",CHAR(160),HL$1))-FIND(CHAR(160),SUBSTITUTE($Y204,\"{\",CHAR(160),HL$1))+1),\"\")","v":""},{"$f":"IFERROR(MID($Y204,FIND(CHAR(160),SUBSTITUTE($Y204,\"{\",CHAR(160),HM$1)),FIND(CHAR(160),SUBSTITUTE($Y204,\"}\",CHAR(160),HM$1))-FIND(CHAR(160),SUBSTITUTE($Y204,\"{\",CHAR(160),HM$1))+1),\"\")","v":""},{"$f":"IFERROR(MID($Y204,FIND(CHAR(160),SUBSTITUTE($Y204,\"{\",CHAR(160),HN$1)),FIND(CHAR(160),SUBSTITUTE($Y204,\"}\",CHAR(160),HN$1))-FIND(CHAR(160),SUBSTITUTE($Y204,\"{\",CHAR(160),HN$1))+1),\"\")","v":""},{"$f":"IFERROR(MID($Y204,FIND(CHAR(160),SUBSTITUTE($Y204,\"{\",CHAR(160),HO$1)),FIND(CHAR(160),SUBSTITUTE($Y204,\"}\",CHAR(160),HO$1))-FIND(CHAR(160),SUBSTITUTE($Y204,\"{\",CHAR(160),HO$1))+1),\"\")","v":""},{"$f":"IFERROR(MID($Y204,FIND(CHAR(160),SUBSTITUTE($Y204,\"{\",CHAR(160),HP$1)),FIND(CHAR(160),SUBSTITUTE($Y204,\"}\",CHAR(160),HP$1))-FIND(CHAR(160),SUBSTITUTE($Y204,\"{\",CHAR(160),HP$1))+1),\"\")","v":""},{"$f":"IFERROR(MID($Y204,FIND(CHAR(160),SUBSTITUTE($Y204,\"{\",CHAR(160),HQ$1)),FIND(CHAR(160),SUBSTITUTE($Y204,\"}\",CHAR(160),HQ$1))-FIND(CHAR(160),SUBSTITUTE($Y204,\"{\",CHAR(160),HQ$1))+1),\"\")","v":""},{"$f":"IFERROR(MID($Y204,FIND(CHAR(160),SUBSTITUTE($Y204,\"{\",CHAR(160),HR$1)),FIND(CHAR(160),SUBSTITUTE($Y204,\"}\",CHAR(160),HR$1))-FIND(CHAR(160),SUBSTITUTE($Y204,\"{\",CHAR(160),HR$1))+1),\"\")","v":""},{"$f":"IFERROR(MID($Y204,FIND(CHAR(160),SUBSTITUTE($Y204,\"{\",CHAR(160),HS$1)),FIND(CHAR(160),SUBSTITUTE($Y204,\"}\",CHAR(160),HS$1))-FIND(CHAR(160),SUBSTITUTE($Y204,\"{\",CHAR(160),HS$1))+1),\"\")","v":""},{"$f":"IFERROR(MID($Y204,FIND(CHAR(160),SUBSTITUTE($Y204,\"{\",CHAR(160),HT$1)),FIND(CHAR(160),SUBSTITUTE($Y204,\"}\",CHAR(160),HT$1))-FIND(CHAR(160),SUBSTITUTE($Y204,\"{\",CHAR(160),HT$1))+1),\"\")","v":""},{"$f":"IFERROR(MID($Z204,FIND(CHAR(160),SUBSTITUTE($Z204,\"{\",CHAR(160),HU$1)),FIND(CHAR(160),SUBSTITUTE($Z204,\"}\",CHAR(160),HU$1))-FIND(CHAR(160),SUBSTITUTE($Z204,\"{\",CHAR(160),HU$1))+1),\"\")","v":""},{"$f":"IFERROR(MID($Z204,FIND(CHAR(160),SUBSTITUTE($Z204,\"{\",CHAR(160),HV$1)),FIND(CHAR(160),SUBSTITUTE($Z204,\"}\",CHAR(160),HV$1))-FIND(CHAR(160),SUBSTITUTE($Z204,\"{\",CHAR(160),HV$1))+1),\"\")","v":""},{"$f":"IFERROR(MID($Z204,FIND(CHAR(160),SUBSTITUTE($Z204,\"{\",CHAR(160),HW$1)),FIND(CHAR(160),SUBSTITUTE($Z204,\"}\",CHAR(160),HW$1))-FIND(CHAR(160),SUBSTITUTE($Z204,\"{\",CHAR(160),HW$1))+1),\"\")","v":""},{"$f":"IFERROR(MID($Z204,FIND(CHAR(160),SUBSTITUTE($Z204,\"{\",CHAR(160),HX$1)),FIND(CHAR(160),SUBSTITUTE($Z204,\"}\",CHAR(160),HX$1))-FIND(CHAR(160),SUBSTITUTE($Z204,\"{\",CHAR(160),HX$1))+1),\"\")","v":""},{"$f":"IFERROR(MID($Z204,FIND(CHAR(160),SUBSTITUTE($Z204,\"{\",CHAR(160),HY$1)),FIND(CHAR(160),SUBSTITUTE($Z204,\"}\",CHAR(160),HY$1))-FIND(CHAR(160),SUBSTITUTE($Z204,\"{\",CHAR(160),HY$1))+1),\"\")","v":""},{"$f":"IFERROR(MID($Z204,FIND(CHAR(160),SUBSTITUTE($Z204,\"{\",CHAR(160),HZ$1)),FIND(CHAR(160),SUBSTITUTE($Z204,\"}\",CHAR(160),HZ$1))-FIND(CHAR(160),SUBSTITUTE($Z204,\"{\",CHAR(160),HZ$1))+1),\"\")","v":""},{"$f":"IFERROR(MID($Z204,FIND(CHAR(160),SUBSTITUTE($Z204,\"{\",CHAR(160),IA$1)),FIND(CHAR(160),SUBSTITUTE($Z204,\"}\",CHAR(160),IA$1))-FIND(CHAR(160),SUBSTITUTE($Z204,\"{\",CHAR(160),IA$1))+1),\"\")","v":""},{"$f":"IFERROR(MID($Z204,FIND(CHAR(160),SUBSTITUTE($Z204,\"{\",CHAR(160),IB$1)),FIND(CHAR(160),SUBSTITUTE($Z204,\"}\",CHAR(160),IB$1))-FIND(CHAR(160),SUBSTITUTE($Z204,\"{\",CHAR(160),IB$1))+1),\"\")","v":""},{"$f":"IFERROR(MID($Z204,FIND(CHAR(160),SUBSTITUTE($Z204,\"{\",CHAR(160),IC$1)),FIND(CHAR(160),SUBSTITUTE($Z204,\"}\",CHAR(160),IC$1))-FIND(CHAR(160),SUBSTITUTE($Z204,\"{\",CHAR(160),IC$1))+1),\"\")","v":""},{"$f":"IFERROR(MID($Z204,FIND(CHAR(160),SUBSTITUTE($Z204,\"{\",CHAR(160),ID$1)),FIND(CHAR(160),SUBSTITUTE($Z204,\"}\",CHAR(160),ID$1))-FIND(CHAR(160),SUBSTITUTE($Z204,\"{\",CHAR(160),ID$1))+1),\"\")","v":""},{"$f":"IFERROR(MID($AA204,FIND(CHAR(160),SUBSTITUTE($AA204,\"{\",CHAR(160),IE$1)),FIND(CHAR(160),SUBSTITUTE($AA204,\"}\",CHAR(160),IE$1))-FIND(CHAR(160),SUBSTITUTE($AA204,\"{\",CHAR(160),IE$1))+1),\"\")","v":""},{"$f":"IFERROR(MID($AA204,FIND(CHAR(160),SUBSTITUTE($AA204,\"{\",CHAR(160),IF$1)),FIND(CHAR(160),SUBSTITUTE($AA204,\"}\",CHAR(160),IF$1))-FIND(CHAR(160),SUBSTITUTE($AA204,\"{\",CHAR(160),IF$1))+1),\"\")","v":""},{"$f":"IFERROR(MID($AA204,FIND(CHAR(160),SUBSTITUTE($AA204,\"{\",CHAR(160),IG$1)),FIND(CHAR(160),SUBSTITUTE($AA204,\"}\",CHAR(160),IG$1))-FIND(CHAR(160),SUBSTITUTE($AA204,\"{\",CHAR(160),IG$1))+1),\"\")","v":""},{"$f":"IFERROR(MID($AA204,FIND(CHAR(160),SUBSTITUTE($AA204,\"{\",CHAR(160),IH$1)),FIND(CHAR(160),SUBSTITUTE($AA204,\"}\",CHAR(160),IH$1))-FIND(CHAR(160),SUBSTITUTE($AA204,\"{\",CHAR(160),IH$1))+1),\"\")","v":""},{"$f":"IFERROR(MID($AA204,FIND(CHAR(160),SUBSTITUTE($AA204,\"{\",CHAR(160),II$1)),FIND(CHAR(160),SUBSTITUTE($AA204,\"}\",CHAR(160),II$1))-FIND(CHAR(160),SUBSTITUTE($AA204,\"{\",CHAR(160),II$1))+1),\"\")","v":""},{"$f":"IFERROR(MID($AA204,FIND(CHAR(160),SUBSTITUTE($AA204,\"{\",CHAR(160),IJ$1)),FIND(CHAR(160),SUBSTITUTE($AA204,\"}\",CHAR(160),IJ$1))-FIND(CHAR(160),SUBSTITUTE($AA204,\"{\",CHAR(160),IJ$1))+1),\"\")","v":""},{"$f":"IFERROR(MID($AA204,FIND(CHAR(160),SUBSTITUTE($AA204,\"{\",CHAR(160),IK$1)),FIND(CHAR(160),SUBSTITUTE($AA204,\"}\",CHAR(160),IK$1))-FIND(CHAR(160),SUBSTITUTE($AA204,\"{\",CHAR(160),IK$1))+1),\"\")","v":""},{"$f":"IFERROR(MID($AA204,FIND(CHAR(160),SUBSTITUTE($AA204,\"{\",CHAR(160),IL$1)),FIND(CHAR(160),SUBSTITUTE($AA204,\"}\",CHAR(160),IL$1))-FIND(CHAR(160),SUBSTITUTE($AA204,\"{\",CHAR(160),IL$1))+1),\"\")","v":""},{"$f":"IFERROR(MID($AA204,FIND(CHAR(160),SUBSTITUTE($AA204,\"{\",CHAR(160),IM$1)),FIND(CHAR(160),SUBSTITUTE($AA204,\"}\",CHAR(160),IM$1))-FIND(CHAR(160),SUBSTITUTE($AA204,\"{\",CHAR(160),IM$1))+1),\"\")","v":""},{"$f":"IFERROR(MID($AA204,FIND(CHAR(160),SUBSTITUTE($AA204,\"{\",CHAR(160),IN$1)),FIND(CHAR(160),SUBSTITUTE($AA204,\"}\",CHAR(160),IN$1))-FIND(CHAR(160),SUBSTITUTE($AA204,\"{\",CHAR(160),IN$1))+1),\"\")","v":""},{"$f":"IFERROR(MID($AB204,FIND(CHAR(160),SUBSTITUTE($AB204,\"{\",CHAR(160),IO$1)),FIND(CHAR(160),SUBSTITUTE($AB204,\"}\",CHAR(160),IO$1))-FIND(CHAR(160),SUBSTITUTE($AB204,\"{\",CHAR(160),IO$1))+1),\"\")","v":""},{"$f":"IFERROR(MID($AB204,FIND(CHAR(160),SUBSTITUTE($AB204,\"{\",CHAR(160),IP$1)),FIND(CHAR(160),SUBSTITUTE($AB204,\"}\",CHAR(160),IP$1))-FIND(CHAR(160),SUBSTITUTE($AB204,\"{\",CHAR(160),IP$1))+1),\"\")","v":""},{"$f":"IFERROR(MID($AB204,FIND(CHAR(160),SUBSTITUTE($AB204,\"{\",CHAR(160),IQ$1)),FIND(CHAR(160),SUBSTITUTE($AB204,\"}\",CHAR(160),IQ$1))-FIND(CHAR(160),SUBSTITUTE($AB204,\"{\",CHAR(160),IQ$1))+1),\"\")","v":""},{"$f":"IFERROR(MID($AB204,FIND(CHAR(160),SUBSTITUTE($AB204,\"{\",CHAR(160),IR$1)),FIND(CHAR(160),SUBSTITUTE($AB204,\"}\",CHAR(160),IR$1))-FIND(CHAR(160),SUBSTITUTE($AB204,\"{\",CHAR(160),IR$1))+1),\"\")","v":""},{"$f":"IFERROR(MID($AB204,FIND(CHAR(160),SUBSTITUTE($AB204,\"{\",CHAR(160),IS$1)),FIND(CHAR(160),SUBSTITUTE($AB204,\"}\",CHAR(160),IS$1))-FIND(CHAR(160),SUBSTITUTE($AB204,\"{\",CHAR(160),IS$1))+1),\"\")","v":""},{"$f":"IFERROR(MID($AB204,FIND(CHAR(160),SUBSTITUTE($AB204,\"{\",CHAR(160),IT$1)),FIND(CHAR(160),SUBSTITUTE($AB204,\"}\",CHAR(160),IT$1))-FIND(CHAR(160),SUBSTITUTE($AB204,\"{\",CHAR(160),IT$1))+1),\"\")","v":""},{"$f":"IFERROR(MID($AB204,FIND(CHAR(160),SUBSTITUTE($AB204,\"{\",CHAR(160),IU$1)),FIND(CHAR(160),SUBSTITUTE($AB204,\"}\",CHAR(160),IU$1))-FIND(CHAR(160),SUBSTITUTE($AB204,\"{\",CHAR(160),IU$1))+1),\"\")","v":""},{"$f":"IFERROR(MID($AB204,FIND(CHAR(160),SUBSTITUTE($AB204,\"{\",CHAR(160),IV$1)),FIND(CHAR(160),SUBSTITUTE($AB204,\"}\",CHAR(160),IV$1))-FIND(CHAR(160),SUBSTITUTE($AB204,\"{\",CHAR(160),IV$1))+1),\"\")","v":""},{"$f":"IFERROR(MID($AB204,FIND(CHAR(160),SUBSTITUTE($AB204,\"{\",CHAR(160),IW$1)),FIND(CHAR(160),SUBSTITUTE($AB204,\"}\",CHAR(160),IW$1))-FIND(CHAR(160),SUBSTITUTE($AB204,\"{\",CHAR(160),IW$1))+1),\"\")","v":""},{"$f":"IFERROR(MID($AB204,FIND(CHAR(160),SUBSTITUTE($AB204,\"{\",CHAR(160),IX$1)),FIND(CHAR(160),SUBSTITUTE($AB204,\"}\",CHAR(160),IX$1))-FIND(CHAR(160),SUBSTITUTE($AB204,\"{\",CHAR(160),IX$1))+1),\"\")","v":""},null,{"$f":"10-COUNTIF(DU204:ED204,\"\")","v":2}]
["Home Energy Savings Program - Other Fuels","Basement Insulation","BB","2021-07-01","2022-06-30","Per Measure",3763,0,"Calculated","if({Cost}*.3>1000,1000,Round({Cost}*.3,2))*{Measure:Quantity}",0,"2020-04-02","2022-06-30","Calculated","if({Primary heating type}=6,2672,if({Primary heating type}=0,102,0))",null,null,0,null,null,"if({Primary heating type}=6,0.663,if({Primary heating type}=0,0.025,0))",0,"if({Primary heating type}=1,10.986,if({Primary heating type}=0,0.989,0))*10","if({Primary heating type}=2,10.986,if({Primary heating type} = 0,1.439,0))","if({Primary heating type}=3,10.986,if({Primary heating type} = 0,7.514,0))","if({Primary heating type}=4,10.986,if({Primary heating type} = 0,0.154,0))","if({Primary heating type}=5,10.986,if({Primary heating type} = 0,0.472,0))",0,"2020-04-02","2022-06-30",25,1,0,0,0,0,0,1,1,1,0.3,2.9000000000000001E-2,null,{"$f":"DU205","v":"{Cost}"},3763,{"$f":"DV205","v":"{Measure:Quantity}"},1,{"$f":"DW205","v":"{Primary heating type}"},0,{"$f":"DX205","v":""},null,{"$f":"DY205","v":""},null,{"$f":"DZ205","v":""},null,{"$f":"EA205","v":""},null,{"$f":"EB205","v":""},null,{"$f":"EC205","v":""},null,{"$f":"ED205","v":""},null,{"$f":"IF(AW205=6,2672,IF(AW205=0,102,0))","v":102},0,0,{"$f":"0","v":0},0,0,{"$f":"IF(AW205=6,0.663,IF(AW205=0,0.025,0))","v":2.5000000000000001E-2},{"$f":"0","v":0},{"$f":"IF(AW205=1,10.986,IF(AW205=0,0.989,0))*10","v":9.89},{"$f":"IF(AW205=2,10.986,IF(AW205 = 0,1.439,0))","v":1.4390000000000001},{"$f":"IF(AW205=3,10.986,IF(AW205 = 0,7.514,0))","v":7.5140000000000002},{"$f":"IF(AW205=4,10.986,IF(AW205 = 0,0.154,0))","v":0.154},{"$f":"IF(AW205=5,10.986,IF(AW205 = 0,0.472,0))","v":0.47199999999999998},{"$f":"0","v":0},null,"Res","RGGI DR",{"$f":"Benefits(BL205,BR205,BS205,BT205,BU205,BV205,BW205,BX205,BY205,BZ205,AE205,AH205,AI205,AJ205,AK205,AL205,AM205,AN205,AO205,AP205,CA205,CB205)","v":0},138.97737183212951,264.6487016787986,4544.2075883310908,109.37766713862811,1230.8694300669279,190.3596225717649,0,0,{"$f":"SUMPRODUCT(CC205:CK205,--(CC205:CK205>0))","v":6478.4403816193399},{"$f":"-SUMPRODUCT(CC205:CK205,--(CC205:CK205<0))","v":0},null,{"$f":"3763","v":3763},null,null,{"$f":"CM205+CO205","v":3763},{"$f":"IF(NetOrGross=\"Net\",(1-AO205+AP205),1)","v":1},{"$f":"(SUMPRODUCT(CC205:CJ205,--(CC205:CJ205>0))+CN205)*CS205/((-SUMPRODUCT(CC205:CJ205,--(CC205:CJ205<0))+MAX(CO205,CV205)+CP205+CQ205)*CS205+IF(FRIncentives=\"Yes\",CV205*(1-CS205),0))","v":1.7216158335422109},1,{"$f":"IF(AS205*0.3>1000,1000,ROUND(AS205*0.3,2))*AU205","v":1000},null,"RGGI","y",null,{"$f":"IF(F205=\"Manual Entry\",\"Manual\",IF(G205=\"\",0,\"X=\"&SUBSTITUTE(SUBSTITUTE(SUBSTITUTE(SUBSTITUTE(SUBSTITUTE(SUBSTITUTE(SUBSTITUTE(SUBSTITUTE(SUBSTITUTE(SUBSTITUTE(SUBSTITUTE(SUBSTITUTE(G205,$ED205,$ED$2&ROW($ED205)),$EC205,$EC$2&ROW($EC205)),$EB205,$EB$2&ROW($EB205)),$EA205,$EA$2&ROW($EA205)),$DZ205,$DZ$2&ROW($DZ205)),$DY205,$DY$2&ROW($DY205)),$DX205,$DX$2&ROW($DX205)),$DW205,$DW$2&ROW($DW205)),$DV205,$DV$2&ROW($DV205)),$DU205,$DU$2&ROW($DU205)),$DT205,$DT$2&ROW($DT205)),$DS205,$DS$2&ROW($DS205))))","v":"X=3763"},{"$f":"IF(I205=\"Manual Entry\",\"Manual\",IF(J205=\"\",0,\"X=\"&SUBSTITUTE(SUBSTITUTE(SUBSTITUTE(SUBSTITUTE(SUBSTITUTE(SUBSTITUTE(SUBSTITUTE(SUBSTITUTE(SUBSTITUTE(SUBSTITUTE(SUBSTITUTE(SUBSTITUTE(J205,$ED205,$ED$2&ROW($ED205)),$EC205,$EC$2&ROW($EC205)),$EB205,$EB$2&ROW($EB205)),$EA205,$EA$2&ROW($EA205)),$DZ205,$DZ$2&ROW($DZ205)),$DY205,$DY$2&ROW($DY205)),$DX205,$DX$2&ROW($DX205)),$DW205,$DW$2&ROW($DW205)),$DV205,$DV$2&ROW($DV205)),$DU205,$DU$2&ROW($DU205)),$DT205,$DT$2&ROW($DT205)),$DS205,$DS$2&ROW($DS205))))","v":"X=if(AS205*.3>1000,1000,Round(AS205*.3,2))*AU205"},{"$f":"IF(O205=\"\",0,\"X=\"&SUBSTITUTE(SUBSTITUTE(SUBSTITUTE(SUBSTITUTE(SUBSTITUTE(SUBSTITUTE(SUBSTITUTE(SUBSTITUTE(SUBSTITUTE(SUBSTITUTE(SUBSTITUTE(SUBSTITUTE(O205,$ED205,$ED$2&ROW($ED205)),$EC205,$EC$2&ROW($EC205)),$EB205,$EB$2&ROW($EB205)),$EA205,$EA$2&ROW($EA205)),$DZ205,$DZ$2&ROW($DZ205)),$DY205,$DY$2&ROW($DY205)),$DX205,$DX$2&ROW($DX205)),$DW205,$DW$2&ROW($DW205)),$DV205,$DV$2&ROW($DV205)),$DU205,$DU$2&ROW($DU205)),$DT205,$DT$2&ROW($DT205)),$DS205,$DS$2&ROW($DS205)))","v":"X=if(AW205=6,2672,if(AW205=0,102,0))"},{"$f":"IF(P205=\"\",0,\"X=\"&SUBSTITUTE(SUBSTITUTE(SUBSTITUTE(SUBSTITUTE(SUBSTITUTE(SUBSTITUTE(SUBSTITUTE(SUBSTITUTE(SUBSTITUTE(SUBSTITUTE(SUBSTITUTE(SUBSTITUTE(P205,$ED205,$ED$2&ROW($ED205)),$EC205,$EC$2&ROW($EC205)),$EB205,$EB$2&ROW($EB205)),$EA205,$EA$2&ROW($EA205)),$DZ205,$DZ$2&ROW($DZ205)),$DY205,$DY$2&ROW($DY205)),$DX205,$DX$2&ROW($DX205)),$DW205,$DW$2&ROW($DW205)),$DV205,$DV$2&ROW($DV205)),$DU205,$DU$2&ROW($DU205)),$DT205,$DT$2&ROW($DT205)),$DS205,$DS$2&ROW($DS205)))","v":0},{"$f":"IF(Q205=\"\",0,\"X=\"&SUBSTITUTE(SUBSTITUTE(SUBSTITUTE(SUBSTITUTE(SUBSTITUTE(SUBSTITUTE(SUBSTITUTE(SUBSTITUTE(SUBSTITUTE(SUBSTITUTE(SUBSTITUTE(SUBSTITUTE(Q205,$ED205,$ED$2&ROW($ED205)),$EC205,$EC$2&ROW($EC205)),$EB205,$EB$2&ROW($EB205)),$EA205,$EA$2&ROW($EA205)),$DZ205,$DZ$2&ROW($DZ205)),$DY205,$DY$2&ROW($DY205)),$DX205,$DX$2&ROW($DX205)),$DW205,$DW$2&ROW($DW205)),$DV205,$DV$2&ROW($DV205)),$DU205,$DU$2&ROW($DU205)),$DT205,$DT$2&ROW($DT205)),$DS205,$DS$2&ROW($DS205)))","v":0},{"$f":"IF(R205=\"\",0,\"X=\"&SUBSTITUTE(SUBSTITUTE(SUBSTITUTE(SUBSTITUTE(SUBSTITUTE(SUBSTITUTE(SUBSTITUTE(SUBSTITUTE(SUBSTITUTE(SUBSTITUTE(SUBSTITUTE(SUBSTITUTE(R205,$ED205,$ED$2&ROW($ED205)),$EC205,$EC$2&ROW($EC205)),$EB205,$EB$2&ROW($EB205)),$EA205,$EA$2&ROW($EA205)),$DZ205,$DZ$2&ROW($DZ205)),$DY205,$DY$2&ROW($DY205)),$DX205,$DX$2&ROW($DX205)),$DW205,$DW$2&ROW($DW205)),$DV205,$DV$2&ROW($DV205)),$DU205,$DU$2&ROW($DU205)),$DT205,$DT$2&ROW($DT205)),$DS205,$DS$2&ROW($DS205)))","v":"X=0"},{"$f":"IF(S205=\"\",0,\"X=\"&SUBSTITUTE(SUBSTITUTE(SUBSTITUTE(SUBSTITUTE(SUBSTITUTE(SUBSTITUTE(SUBSTITUTE(SUBSTITUTE(SUBSTITUTE(SUBSTITUTE(SUBSTITUTE(SUBSTITUTE(S205,$ED205,$ED$2&ROW($ED205)),$EC205,$EC$2&ROW($EC205)),$EB205,$EB$2&ROW($EB205)),$EA205,$EA$2&ROW($EA205)),$DZ205,$DZ$2&ROW($DZ205)),$DY205,$DY$2&ROW($DY205)),$DX205,$DX$2&ROW($DX205)),$DW205,$DW$2&ROW($DW205)),$DV205,$DV$2&ROW($DV205)),$DU205,$DU$2&ROW($DU205)),$DT205,$DT$2&ROW($DT205)),$DS205,$DS$2&ROW($DS205)))","v":0},{"$f":"IF(T205=\"\",0,\"X=\"&SUBSTITUTE(SUBSTITUTE(SUBSTITUTE(SUBSTITUTE(SUBSTITUTE(SUBSTITUTE(SUBSTITUTE(SUBSTITUTE(SUBSTITUTE(SUBSTITUTE(SUBSTITUTE(SUBSTITUTE(T205,$ED205,$ED$2&ROW($ED205)),$EC205,$EC$2&ROW($EC205)),$EB205,$EB$2&ROW($EB205)),$EA205,$EA$2&ROW($EA205)),$DZ205,$DZ$2&ROW($DZ205)),$DY205,$DY$2&ROW($DY205)),$DX205,$DX$2&ROW($DX205)),$DW205,$DW$2&ROW($DW205)),$DV205,$DV$2&ROW($DV205)),$DU205,$DU$2&ROW($DU205)),$DT205,$DT$2&ROW($DT205)),$DS205,$DS$2&ROW($DS205)))","v":0},{"$f":"IF(U205=\"\",0,\"X=\"&SUBSTITUTE(SUBSTITUTE(SUBSTITUTE(SUBSTITUTE(SUBSTITUTE(SUBSTITUTE(SUBSTITUTE(SUBSTITUTE(SUBSTITUTE(SUBSTITUTE(SUBSTITUTE(SUBSTITUTE(U205,$ED205,$ED$2&ROW($ED205)),$EC205,$EC$2&ROW($EC205)),$EB205,$EB$2&ROW($EB205)),$EA205,$EA$2&ROW($EA205)),$DZ205,$DZ$2&ROW($DZ205)),$DY205,$DY$2&ROW($DY205)),$DX205,$DX$2&ROW($DX205)),$DW205,$DW$2&ROW($DW205)),$DV205,$DV$2&ROW($DV205)),$DU205,$DU$2&ROW($DU205)),$DT205,$DT$2&ROW($DT205)),$DS205,$DS$2&ROW($DS205)))","v":"X=if(AW205=6,0.663,if(AW205=0,0.025,0))"},{"$f":"IF(V205=\"\",0,\"X=\"&SUBSTITUTE(SUBSTITUTE(SUBSTITUTE(SUBSTITUTE(SUBSTITUTE(SUBSTITUTE(SUBSTITUTE(SUBSTITUTE(SUBSTITUTE(SUBSTITUTE(SUBSTITUTE(SUBSTITUTE(V205,$ED205,$ED$2&ROW($ED205)),$EC205,$EC$2&ROW($EC205)),$EB205,$EB$2&ROW($EB205)),$EA205,$EA$2&ROW($EA205)),$DZ205,$DZ$2&ROW($DZ205)),$DY205,$DY$2&ROW($DY205)),$DX205,$DX$2&ROW($DX205)),$DW205,$DW$2&ROW($DW205)),$DV205,$DV$2&ROW($DV205)),$DU205,$DU$2&ROW($DU205)),$DT205,$DT$2&ROW($DT205)),$DS205,$DS$2&ROW($DS205)))","v":"X=0"},{"$f":"IF(W205=\"\",0,\"X=\"&SUBSTITUTE(SUBSTITUTE(SUBSTITUTE(SUBSTITUTE(SUBSTITUTE(SUBSTITUTE(SUBSTITUTE(SUBSTITUTE(SUBSTITUTE(SUBSTITUTE(SUBSTITUTE(SUBSTITUTE(W205,$ED205,$ED$2&ROW($ED205)),$EC205,$EC$2&ROW($EC205)),$EB205,$EB$2&ROW($EB205)),$EA205,$EA$2&ROW($EA205)),$DZ205,$DZ$2&ROW($DZ205)),$DY205,$DY$2&ROW($DY205)),$DX205,$DX$2&ROW($DX205)),$DW205,$DW$2&ROW($DW205)),$DV205,$DV$2&ROW($DV205)),$DU205,$DU$2&ROW($DU205)),$DT205,$DT$2&ROW($DT205)),$DS205,$DS$2&ROW($DS205)))","v":"X=if(AW205=1,10.986,if(AW205=0,0.989,0))*10"},{"$f":"IF(X205=\"\",0,\"X=\"&SUBSTITUTE(SUBSTITUTE(SUBSTITUTE(SUBSTITUTE(SUBSTITUTE(SUBSTITUTE(SUBSTITUTE(SUBSTITUTE(SUBSTITUTE(SUBSTITUTE(SUBSTITUTE(SUBSTITUTE(X205,$ED205,$ED$2&ROW($ED205)),$EC205,$EC$2&ROW($EC205)),$EB205,$EB$2&ROW($EB205)),$EA205,$EA$2&ROW($EA205)),$DZ205,$DZ$2&ROW($DZ205)),$DY205,$DY$2&ROW($DY205)),$DX205,$DX$2&ROW($DX205)),$DW205,$DW$2&ROW($DW205)),$DV205,$DV$2&ROW($DV205)),$DU205,$DU$2&ROW($DU205)),$DT205,$DT$2&ROW($DT205)),$DS205,$DS$2&ROW($DS205)))","v":"X=if(AW205=2,10.986,if(AW205 = 0,1.439,0))"},{"$f":"IF(Y205=\"\",0,\"X=\"&SUBSTITUTE(SUBSTITUTE(SUBSTITUTE(SUBSTITUTE(SUBSTITUTE(SUBSTITUTE(SUBSTITUTE(SUBSTITUTE(SUBSTITUTE(SUBSTITUTE(SUBSTITUTE(SUBSTITUTE(Y205,$ED205,$ED$2&ROW($ED205)),$EC205,$EC$2&ROW($EC205)),$EB205,$EB$2&ROW($EB205)),$EA205,$EA$2&ROW($EA205)),$DZ205,$DZ$2&ROW($DZ205)),$DY205,$DY$2&ROW($DY205)),$DX205,$DX$2&ROW($DX205)),$DW205,$DW$2&ROW($DW205)),$DV205,$DV$2&ROW($DV205)),$DU205,$DU$2&ROW($DU205)),$DT205,$DT$2&ROW($DT205)),$DS205,$DS$2&ROW($DS205)))","v":"X=if(AW205=3,10.986,if(AW205 = 0,7.514,0))"},{"$f":"IF(Z205=\"\",0,\"X=\"&SUBSTITUTE(SUBSTITUTE(SUBSTITUTE(SUBSTITUTE(SUBSTITUTE(SUBSTITUTE(SUBSTITUTE(SUBSTITUTE(SUBSTITUTE(SUBSTITUTE(SUBSTITUTE(SUBSTITUTE(Z205,$ED205,$ED$2&ROW($ED205)),$EC205,$EC$2&ROW($EC205)),$EB205,$EB$2&ROW($EB205)),$EA205,$EA$2&ROW($EA205)),$DZ205,$DZ$2&ROW($DZ205)),$DY205,$DY$2&ROW($DY205)),$DX205,$DX$2&ROW($DX205)),$DW205,$DW$2&ROW($DW205)),$DV205,$DV$2&ROW($DV205)),$DU205,$DU$2&ROW($DU205)),$DT205,$DT$2&ROW($DT205)),$DS205,$DS$2&ROW($DS205)))","v":"X=if(AW205=4,10.986,if(AW205 = 0,0.154,0))"},{"$f":"IF(AA205=\"\",0,\"X=\"&SUBSTITUTE(SUBSTITUTE(SUBSTITUTE(SUBSTITUTE(SUBSTITUTE(SUBSTITUTE(SUBSTITUTE(SUBSTITUTE(SUBSTITUTE(SUBSTITUTE(SUBSTITUTE(SUBSTITUTE(AA205,$ED205,$ED$2&ROW($ED205)),$EC205,$EC$2&ROW($EC205)),$EB205,$EB$2&ROW($EB205)),$EA205,$EA$2&ROW($EA205)),$DZ205,$DZ$2&ROW($DZ205)),$DY205,$DY$2&ROW($DY205)),$DX205,$DX$2&ROW($DX205)),$DW205,$DW$2&ROW($DW205)),$DV205,$DV$2&ROW($DV205)),$DU205,$DU$2&ROW($DU205)),$DT205,$DT$2&ROW($DT205)),$DS205,$DS$2&ROW($DS205)))","v":"X=if(AW205=5,10.986,if(AW205 = 0,0.472,0))"},{"$f":"IF(AB205=\"\",0,\"X=\"&SUBSTITUTE(SUBSTITUTE(SUBSTITUTE(SUBSTITUTE(SUBSTITUTE(SUBSTITUTE(SUBSTITUTE(SUBSTITUTE(SUBSTITUTE(SUBSTITUTE(SUBSTITUTE(SUBSTITUTE(AB205,$ED205,$ED$2&ROW($ED205)),$EC205,$EC$2&ROW($EC205)),$EB205,$EB$2&ROW($EB205)),$EA205,$EA$2&ROW($EA205)),$DZ205,$DZ$2&ROW($DZ205)),$DY205,$DY$2&ROW($DY205)),$DX205,$DX$2&ROW($DX205)),$DW205,$DW$2&ROW($DW205)),$DV205,$DV$2&ROW($DV205)),$DU205,$DU$2&ROW($DU205)),$DT205,$DT$2&ROW($DT205)),$DS205,$DS$2&ROW($DS205)))","v":"X=0"},null,null,"{Factor:WinterCF}","{Factor:SummerCF}",{"$f":"IFERROR(INDEX($EG205:$IV205,MATCH(0,COUNTIF($DR205:DT205,$EG205:$IV205),0)),\"\")","v":"{Cost}"},{"$f":"IFERROR(INDEX($EG205:$IV205,MATCH(0,COUNTIF($DR205:DU205,$EG205:$IV205),0)),\"\")","v":"{Measure:Quantity}"},{"$f":"IFERROR(INDEX($EG205:$IV205,MATCH(0,COUNTIF($DR205:DV205,$EG205:$IV205),0)),\"\")","v":"{Primary heating type}"},{"$f":"IFERROR(INDEX($EG205:$IV205,MATCH(0,COUNTIF($DR205:DW205,$EG205:$IV205),0)),\"\")","v":""},{"$f":"IFERROR(INDEX($EG205:$IV205,MATCH(0,COUNTIF($DR205:DX205,$EG205:$IV205),0)),\"\")","v":""},{"$f":"IFERROR(INDEX($EG205:$IV205,MATCH(0,COUNTIF($DR205:DY205,$EG205:$IV205),0)),\"\")","v":""},{"$f":"IFERROR(INDEX($EG205:$IV205,MATCH(0,COUNTIF($DR205:DZ205,$EG205:$IV205),0)),\"\")","v":""},{"$f":"IFERROR(INDEX($EG205:$IV205,MATCH(0,COUNTIF($DR205:EA205,$EG205:$IV205),0)),\"\")","v":""},{"$f":"IFERROR(INDEX($EG205:$IV205,MATCH(0,COUNTIF($DR205:EB205,$EG205:$IV205),0)),\"\")","v":""},{"$f":"IFERROR(INDEX($EG205:$IV205,MATCH(0,COUNTIF($DR205:EC205,$EG205:$IV205),0)),\"\")","v":""},null,null,{"$f":"IFERROR(MID($G205,FIND(CHAR(160),SUBSTITUTE($G205,\"{\",CHAR(160),EG$1)),FIND(CHAR(160),SUBSTITUTE($G205,\"}\",CHAR(160),EG$1))-FIND(CHAR(160),SUBSTITUTE($G205,\"{\",CHAR(160),EG$1))+1),\"\")","v":""},{"$f":"IFERROR(MID($G205,FIND(CHAR(160),SUBSTITUTE($G205,\"{\",CHAR(160),EH$1)),FIND(CHAR(160),SUBSTITUTE($G205,\"}\",CHAR(160),EH$1))-FIND(CHAR(160),SUBSTITUTE($G205,\"{\",CHAR(160),EH$1))+1),\"\")","v":""},{"$f":"IFERROR(MID($G205,FIND(CHAR(160),SUBSTITUTE($G205,\"{\",CHAR(160),EI$1)),FIND(CHAR(160),SUBSTITUTE($G205,\"}\",CHAR(160),EI$1))-FIND(CHAR(160),SUBSTITUTE($G205,\"{\",CHAR(160),EI$1))+1),\"\")","v":""},{"$f":"IFERROR(MID($G205,FIND(CHAR(160),SUBSTITUTE($G205,\"{\",CHAR(160),EJ$1)),FIND(CHAR(160),SUBSTITUTE($G205,\"}\",CHAR(160),EJ$1))-FIND(CHAR(160),SUBSTITUTE($G205,\"{\",CHAR(160),EJ$1))+1),\"\")","v":""},{"$f":"IFERROR(MID($G205,FIND(CHAR(160),SUBSTITUTE($G205,\"{\",CHAR(160),EK$1)),FIND(CHAR(160),SUBSTITUTE($G205,\"}\",CHAR(160),EK$1))-FIND(CHAR(160),SUBSTITUTE($G205,\"{\",CHAR(160),EK$1))+1),\"\")","v":""},{"$f":"IFERROR(MID($G205,FIND(CHAR(160),SUBSTITUTE($G205,\"{\",CHAR(160),EL$1)),FIND(CHAR(160),SUBSTITUTE($G205,\"}\",CHAR(160),EL$1))-FIND(CHAR(160),SUBSTITUTE($G205,\"{\",CHAR(160),EL$1))+1),\"\")","v":""},{"$f":"IFERROR(MID($G205,FIND(CHAR(160),SUBSTITUTE($G205,\"{\",CHAR(160),EM$1)),FIND(CHAR(160),SUBSTITUTE($G205,\"}\",CHAR(160),EM$1))-FIND(CHAR(160),SUBSTITUTE($G205,\"{\",CHAR(160),EM$1))+1),\"\")","v":""},{"$f":"IFERROR(MID($G205,FIND(CHAR(160),SUBSTITUTE($G205,\"{\",CHAR(160),EN$1)),FIND(CHAR(160),SUBSTITUTE($G205,\"}\",CHAR(160),EN$1))-FIND(CHAR(160),SUBSTITUTE($G205,\"{\",CHAR(160),EN$1))+1),\"\")","v":""},{"$f":"IFERROR(MID($G205,FIND(CHAR(160),SUBSTITUTE($G205,\"{\",CHAR(160),EO$1)),FIND(CHAR(160),SUBSTITUTE($G205,\"}\",CHAR(160),EO$1))-FIND(CHAR(160),SUBSTITUTE($G205,\"{\",CHAR(160),EO$1))+1),\"\")","v":""},{"$f":"IFERROR(MID($G205,FIND(CHAR(160),SUBSTITUTE($G205,\"{\",CHAR(160),EP$1)),FIND(CHAR(160),SUBSTITUTE($G205,\"}\",CHAR(160),EP$1))-FIND(CHAR(160),SUBSTITUTE($G205,\"{\",CHAR(160),EP$1))+1),\"\")","v":""},{"$f":"IFERROR(MID($J205,FIND(CHAR(160),SUBSTITUTE($J205,\"{\",CHAR(160),EQ$1)),FIND(CHAR(160),SUBSTITUTE($J205,\"}\",CHAR(160),EQ$1))-FIND(CHAR(160),SUBSTITUTE($J205,\"{\",CHAR(160),EQ$1))+1),\"\")","v":"{Cost}"},{"$f":"IFERROR(MID($J205,FIND(CHAR(160),SUBSTITUTE($J205,\"{\",CHAR(160),ER$1)),FIND(CHAR(160),SUBSTITUTE($J205,\"}\",CHAR(160),ER$1))-FIND(CHAR(160),SUBSTITUTE($J205,\"{\",CHAR(160),ER$1))+1),\"\")","v":"{Cost}"},{"$f":"IFERROR(MID($J205,FIND(CHAR(160),SUBSTITUTE($J205,\"{\",CHAR(160),ES$1)),FIND(CHAR(160),SUBSTITUTE($J205,\"}\",CHAR(160),ES$1))-FIND(CHAR(160),SUBSTITUTE($J205,\"{\",CHAR(160),ES$1))+1),\"\")","v":"{Measure:Quantity}"},{"$f":"IFERROR(MID($J205,FIND(CHAR(160),SUBSTITUTE($J205,\"{\",CHAR(160),ET$1)),FIND(CHAR(160),SUBSTITUTE($J205,\"}\",CHAR(160),ET$1))-FIND(CHAR(160),SUBSTITUTE($J205,\"{\",CHAR(160),ET$1))+1),\"\")","v":""},{"$f":"IFERROR(MID($J205,FIND(CHAR(160),SUBSTITUTE($J205,\"{\",CHAR(160),EU$1)),FIND(CHAR(160),SUBSTITUTE($J205,\"}\",CHAR(160),EU$1))-FIND(CHAR(160),SUBSTITUTE($J205,\"{\",CHAR(160),EU$1))+1),\"\")","v":""},{"$f":"IFERROR(MID($J205,FIND(CHAR(160),SUBSTITUTE($J205,\"{\",CHAR(160),EV$1)),FIND(CHAR(160),SUBSTITUTE($J205,\"}\",CHAR(160),EV$1))-FIND(CHAR(160),SUBSTITUTE($J205,\"{\",CHAR(160),EV$1))+1),\"\")","v":""},{"$f":"IFERROR(MID($J205,FIND(CHAR(160),SUBSTITUTE($J205,\"{\",CHAR(160),EW$1)),FIND(CHAR(160),SUBSTITUTE($J205,\"}\",CHAR(160),EW$1))-FIND(CHAR(160),SUBSTITUTE($J205,\"{\",CHAR(160),EW$1))+1),\"\")","v":""},{"$f":"IFERROR(MID($J205,FIND(CHAR(160),SUBSTITUTE($J205,\"{\",CHAR(160),EX$1)),FIND(CHAR(160),SUBSTITUTE($J205,\"}\",CHAR(160),EX$1))-FIND(CHAR(160),SUBSTITUTE($J205,\"{\",CHAR(160),EX$1))+1),\"\")","v":""},{"$f":"IFERROR(MID($J205,FIND(CHAR(160),SUBSTITUTE($J205,\"{\",CHAR(160),EY$1)),FIND(CHAR(160),SUBSTITUTE($J205,\"}\",CHAR(160),EY$1))-FIND(CHAR(160),SUBSTITUTE($J205,\"{\",CHAR(160),EY$1))+1),\"\")","v":""},{"$f":"IFERROR(MID($J205,FIND(CHAR(160),SUBSTITUTE($J205,\"{\",CHAR(160),EZ$1)),FIND(CHAR(160),SUBSTITUTE($J205,\"}\",CHAR(160),EZ$1))-FIND(CHAR(160),SUBSTITUTE($J205,\"{\",CHAR(160),EZ$1))+1),\"\")","v":""},{"$f":"IFERROR(MID($J205,FIND(CHAR(160),SUBSTITUTE($J205,\"{\",CHAR(160),FA$1)),FIND(CHAR(160),SUBSTITUTE($J205,\"}\",CHAR(160),FA$1))-FIND(CHAR(160),SUBSTITUTE($J205,\"{\",CHAR(160),FA$1))+1),\"\")","v":"{Cost}"},{"$f":"IFERROR(MID($J205,FIND(CHAR(160),SUBSTITUTE($J205,\"{\",CHAR(160),FB$1)),FIND(CHAR(160),SUBSTITUTE($J205,\"}\",CHAR(160),FB$1))-FIND(CHAR(160),SUBSTITUTE($J205,\"{\",CHAR(160),FB$1))+1),\"\")","v":"{Cost}"},{"$f":"IFERROR(MID($O205,FIND(CHAR(160),SUBSTITUTE($O205,\"{\",CHAR(160),FC$1)),FIND(CHAR(160),SUBSTITUTE($O205,\"}\",CHAR(160),FC$1))-FIND(CHAR(160),SUBSTITUTE($O205,\"{\",CHAR(160),FC$1))+1),\"\")","v":""},{"$f":"IFERROR(MID($O205,FIND(CHAR(160),SUBSTITUTE($O205,\"{\",CHAR(160),FD$1)),FIND(CHAR(160),SUBSTITUTE($O205,\"}\",CHAR(160),FD$1))-FIND(CHAR(160),SUBSTITUTE($O205,\"{\",CHAR(160),FD$1))+1),\"\")","v":""},{"$f":"IFERROR(MID($O205,FIND(CHAR(160),SUBSTITUTE($O205,\"{\",CHAR(160),FE$1)),FIND(CHAR(160),SUBSTITUTE($O205,\"}\",CHAR(160),FE$1))-FIND(CHAR(160),SUBSTITUTE($O205,\"{\",CHAR(160),FE$1))+1),\"\")","v":""},{"$f":"IFERROR(MID($O205,FIND(CHAR(160),SUBSTITUTE($O205,\"{\",CHAR(160),FF$1)),FIND(CHAR(160),SUBSTITUTE($O205,\"}\",CHAR(160),FF$1))-FIND(CHAR(160),SUBSTITUTE($O205,\"{\",CHAR(160),FF$1))+1),\"\")","v":""},{"$f":"IFERROR(MID($O205,FIND(CHAR(160),SUBSTITUTE($O205,\"{\",CHAR(160),FG$1)),FIND(CHAR(160),SUBSTITUTE($O205,\"}\",CHAR(160),FG$1))-FIND(CHAR(160),SUBSTITUTE($O205,\"{\",CHAR(160),FG$1))+1),\"\")","v":""},{"$f":"IFERROR(MID($O205,FIND(CHAR(160),SUBSTITUTE($O205,\"{\",CHAR(160),FH$1)),FIND(CHAR(160),SUBSTITUTE($O205,\"}\",CHAR(160),FH$1))-FIND(CHAR(160),SUBSTITUTE($O205,\"{\",CHAR(160),FH$1))+1),\"\")","v":""},{"$f":"IFERROR(MID($O205,FIND(CHAR(160),SUBSTITUTE($O205,\"{\",CHAR(160),FI$1)),FIND(CHAR(160),SUBSTITUTE($O205,\"}\",CHAR(160),FI$1))-FIND(CHAR(160),SUBSTITUTE($O205,\"{\",CHAR(160),FI$1))+1),\"\")","v":""},{"$f":"IFERROR(MID($O205,FIND(CHAR(160),SUBSTITUTE($O205,\"{\",CHAR(160),FJ$1)),FIND(CHAR(160),SUBSTITUTE($O205,\"}\",CHAR(160),FJ$1))-FIND(CHAR(160),SUBSTITUTE($O205,\"{\",CHAR(160),FJ$1))+1),\"\")","v":""},{"$f":"IFERROR(MID($O205,FIND(CHAR(160),SUBSTITUTE($O205,\"{\",CHAR(160),FK$1)),FIND(CHAR(160),SUBSTITUTE($O205,\"}\",CHAR(160),FK$1))-FIND(CHAR(160),SUBSTITUTE($O205,\"{\",CHAR(160),FK$1))+1),\"\")","v":"{Primary heating type}"},{"$f":"IFERROR(MID($O205,FIND(CHAR(160),SUBSTITUTE($O205,\"{\",CHAR(160),FL$1)),FIND(CHAR(160),SUBSTITUTE($O205,\"}\",CHAR(160),FL$1))-FIND(CHAR(160),SUBSTITUTE($O205,\"{\",CHAR(160),FL$1))+1),\"\")","v":"{Primary heating type}"},{"$f":"IFERROR(MID($R205,FIND(CHAR(160),SUBSTITUTE($R205,\"{\",CHAR(160),FM$1)),FIND(CHAR(160),SUBSTITUTE($R205,\"}\",CHAR(160),FM$1))-FIND(CHAR(160),SUBSTITUTE($R205,\"{\",CHAR(160),FM$1))+1),\"\")","v":""},{"$f":"IFERROR(MID($R205,FIND(CHAR(160),SUBSTITUTE($R205,\"{\",CHAR(160),FN$1)),FIND(CHAR(160),SUBSTITUTE($R205,\"}\",CHAR(160),FN$1))-FIND(CHAR(160),SUBSTITUTE($R205,\"{\",CHAR(160),FN$1))+1),\"\")","v":""},{"$f":"IFERROR(MID($R205,FIND(CHAR(160),SUBSTITUTE($R205,\"{\",CHAR(160),FO$1)),FIND(CHAR(160),SUBSTITUTE($R205,\"}\",CHAR(160),FO$1))-FIND(CHAR(160),SUBSTITUTE($R205,\"{\",CHAR(160),FO$1))+1),\"\")","v":""},{"$f":"IFERROR(MID($R205,FIND(CHAR(160),SUBSTITUTE($R205,\"{\",CHAR(160),FP$1)),FIND(CHAR(160),SUBSTITUTE($R205,\"}\",CHAR(160),FP$1))-FIND(CHAR(160),SUBSTITUTE($R205,\"{\",CHAR(160),FP$1))+1),\"\")","v":""},{"$f":"IFERROR(MID($R205,FIND(CHAR(160),SUBSTITUTE($R205,\"{\",CHAR(160),FQ$1)),FIND(CHAR(160),SUBSTITUTE($R205,\"}\",CHAR(160),FQ$1))-FIND(CHAR(160),SUBSTITUTE($R205,\"{\",CHAR(160),FQ$1))+1),\"\")","v":""},{"$f":"IFERROR(MID($R205,FIND(CHAR(160),SUBSTITUTE($R205,\"{\",CHAR(160),FR$1)),FIND(CHAR(160),SUBSTITUTE($R205,\"}\",CHAR(160),FR$1))-FIND(CHAR(160),SUBSTITUTE($R205,\"{\",CHAR(160),FR$1))+1),\"\")","v":""},{"$f":"IFERROR(MID($R205,FIND(CHAR(160),SUBSTITUTE($R205,\"{\",CHAR(160),FS$1)),FIND(CHAR(160),SUBSTITUTE($R205,\"}\",CHAR(160),FS$1))-FIND(CHAR(160),SUBSTITUTE($R205,\"{\",CHAR(160),FS$1))+1),\"\")","v":""},{"$f":"IFERROR(MID($R205,FIND(CHAR(160),SUBSTITUTE($R205,\"{\",CHAR(160),FT$1)),FIND(CHAR(160),SUBSTITUTE($R205,\"}\",CHAR(160),FT$1))-FIND(CHAR(160),SUBSTITUTE($R205,\"{\",CHAR(160),FT$1))+1),\"\")","v":""},{"$f":"IFERROR(MID($R205,FIND(CHAR(160),SUBSTITUTE($R205,\"{\",CHAR(160),FU$1)),FIND(CHAR(160),SUBSTITUTE($R205,\"}\",CHAR(160),FU$1))-FIND(CHAR(160),SUBSTITUTE($R205,\"{\",CHAR(160),FU$1))+1),\"\")","v":""},{"$f":"IFERROR(MID($R205,FIND(CHAR(160),SUBSTITUTE($R205,\"{\",CHAR(160),FV$1)),FIND(CHAR(160),SUBSTITUTE($R205,\"}\",CHAR(160),FV$1))-FIND(CHAR(160),SUBSTITUTE($R205,\"{\",CHAR(160),FV$1))+1),\"\")","v":""},{"$f":"IFERROR(MID($U205,FIND(CHAR(160),SUBSTITUTE($U205,\"{\",CHAR(160),FW$1)),FIND(CHAR(160),SUBSTITUTE($U205,\"}\",CHAR(160),FW$1))-FIND(CHAR(160),SUBSTITUTE($U205,\"{\",CHAR(160),FW$1))+1),\"\")","v":""},{"$f":"IFERROR(MID($U205,FIND(CHAR(160),SUBSTITUTE($U205,\"{\",CHAR(160),FX$1)),FIND(CHAR(160),SUBSTITUTE($U205,\"}\",CHAR(160),FX$1))-FIND(CHAR(160),SUBSTITUTE($U205,\"{\",CHAR(160),FX$1))+1),\"\")","v":""},{"$f":"IFERROR(MID($U205,FIND(CHAR(160),SUBSTITUTE($U205,\"{\",CHAR(160),FY$1)),FIND(CHAR(160),SUBSTITUTE($U205,\"}\",CHAR(160),FY$1))-FIND(CHAR(160),SUBSTITUTE($U205,\"{\",CHAR(160),FY$1))+1),\"\")","v":""},{"$f":"IFERROR(MID($U205,FIND(CHAR(160),SUBSTITUTE($U205,\"{\",CHAR(160),FZ$1)),FIND(CHAR(160),SUBSTITUTE($U205,\"}\",CHAR(160),FZ$1))-FIND(CHAR(160),SUBSTITUTE($U205,\"{\",CHAR(160),FZ$1))+1),\"\")","v":""},{"$f":"IFERROR(MID($U205,FIND(CHAR(160),SUBSTITUTE($U205,\"{\",CHAR(160),GA$1)),FIND(CHAR(160),SUBSTITUTE($U205,\"}\",CHAR(160),GA$1))-FIND(CHAR(160),SUBSTITUTE($U205,\"{\",CHAR(160),GA$1))+1),\"\")","v":""},{"$f":"IFERROR(MID($U205,FIND(CHAR(160),SUBSTITUTE($U205,\"{\",CHAR(160),GB$1)),FIND(CHAR(160),SUBSTITUTE($U205,\"}\",CHAR(160),GB$1))-FIND(CHAR(160),SUBSTITUTE($U205,\"{\",CHAR(160),GB$1))+1),\"\")","v":""},{"$f":"IFERROR(MID($U205,FIND(CHAR(160),SUBSTITUTE($U205,\"{\",CHAR(160),GC$1)),FIND(CHAR(160),SUBSTITUTE($U205,\"}\",CHAR(160),GC$1))-FIND(CHAR(160),SUBSTITUTE($U205,\"{\",CHAR(160),GC$1))+1),\"\")","v":""},{"$f":"IFERROR(MID($U205,FIND(CHAR(160),SUBSTITUTE($U205,\"{\",CHAR(160),GD$1)),FIND(CHAR(160),SUBSTITUTE($U205,\"}\",CHAR(160),GD$1))-FIND(CHAR(160),SUBSTITUTE($U205,\"{\",CHAR(160),GD$1))+1),\"\")","v":""},{"$f":"IFERROR(MID($U205,FIND(CHAR(160),SUBSTITUTE($U205,\"{\",CHAR(160),GE$1)),FIND(CHAR(160),SUBSTITUTE($U205,\"}\",CHAR(160),GE$1))-FIND(CHAR(160),SUBSTITUTE($U205,\"{\",CHAR(160),GE$1))+1),\"\")","v":"{Primary heating type}"},{"$f":"IFERROR(MID($U205,FIND(CHAR(160),SUBSTITUTE($U205,\"{\",CHAR(160),GF$1)),FIND(CHAR(160),SUBSTITUTE($U205,\"}\",CHAR(160),GF$1))-FIND(CHAR(160),SUBSTITUTE($U205,\"{\",CHAR(160),GF$1))+1),\"\")","v":"{Primary heating type}"},{"$f":"IFERROR(MID($V205,FIND(CHAR(160),SUBSTITUTE($V205,\"{\",CHAR(160),GG$1)),FIND(CHAR(160),SUBSTITUTE($V205,\"}\",CHAR(160),GG$1))-FIND(CHAR(160),SUBSTITUTE($V205,\"{\",CHAR(160),GG$1))+1),\"\")","v":""},{"$f":"IFERROR(MID($V205,FIND(CHAR(160),SUBSTITUTE($V205,\"{\",CHAR(160),GH$1)),FIND(CHAR(160),SUBSTITUTE($V205,\"}\",CHAR(160),GH$1))-FIND(CHAR(160),SUBSTITUTE($V205,\"{\",CHAR(160),GH$1))+1),\"\")","v":""},{"$f":"IFERROR(MID($V205,FIND(CHAR(160),SUBSTITUTE($V205,\"{\",CHAR(160),GI$1)),FIND(CHAR(160),SUBSTITUTE($V205,\"}\",CHAR(160),GI$1))-FIND(CHAR(160),SUBSTITUTE($V205,\"{\",CHAR(160),GI$1))+1),\"\")","v":""},{"$f":"IFERROR(MID($V205,FIND(CHAR(160),SUBSTITUTE($V205,\"{\",CHAR(160),GJ$1)),FIND(CHAR(160),SUBSTITUTE($V205,\"}\",CHAR(160),GJ$1))-FIND(CHAR(160),SUBSTITUTE($V205,\"{\",CHAR(160),GJ$1))+1),\"\")","v":""},{"$f":"IFERROR(MID($V205,FIND(CHAR(160),SUBSTITUTE($V205,\"{\",CHAR(160),GK$1)),FIND(CHAR(160),SUBSTITUTE($V205,\"}\",CHAR(160),GK$1))-FIND(CHAR(160),SUBSTITUTE($V205,\"{\",CHAR(160),GK$1))+1),\"\")","v":""},{"$f":"IFERROR(MID($V205,FIND(CHAR(160),SUBSTITUTE($V205,\"{\",CHAR(160),GL$1)),FIND(CHAR(160),SUBSTITUTE($V205,\"}\",CHAR(160),GL$1))-FIND(CHAR(160),SUBSTITUTE($V205,\"{\",CHAR(160),GL$1))+1),\"\")","v":""},{"$f":"IFERROR(MID($V205,FIND(CHAR(160),SUBSTITUTE($V205,\"{\",CHAR(160),GM$1)),FIND(CHAR(160),SUBSTITUTE($V205,\"}\",CHAR(160),GM$1))-FIND(CHAR(160),SUBSTITUTE($V205,\"{\",CHAR(160),GM$1))+1),\"\")","v":""},{"$f":"IFERROR(MID($V205,FIND(CHAR(160),SUBSTITUTE($V205,\"{\",CHAR(160),GN$1)),FIND(CHAR(160),SUBSTITUTE($V205,\"}\",CHAR(160),GN$1))-FIND(CHAR(160),SUBSTITUTE($V205,\"{\",CHAR(160),GN$1))+1),\"\")","v":""},{"$f":"IFERROR(MID($V205,FIND(CHAR(160),SUBSTITUTE($V205,\"{\",CHAR(160),GO$1)),FIND(CHAR(160),SUBSTITUTE($V205,\"}\",CHAR(160),GO$1))-FIND(CHAR(160),SUBSTITUTE($V205,\"{\",CHAR(160),GO$1))+1),\"\")","v":""},{"$f":"IFERROR(MID($V205,FIND(CHAR(160),SUBSTITUTE($V205,\"{\",CHAR(160),GP$1)),FIND(CHAR(160),SUBSTITUTE($V205,\"}\",CHAR(160),GP$1))-FIND(CHAR(160),SUBSTITUTE($V205,\"{\",CHAR(160),GP$1))+1),\"\")","v":""},{"$f":"IFERROR(MID($W205,FIND(CHAR(160),SUBSTITUTE($W205,\"{\",CHAR(160),GQ$1)),FIND(CHAR(160),SUBSTITUTE($W205,\"}\",CHAR(160),GQ$1))-FIND(CHAR(160),SUBSTITUTE($W205,\"{\",CHAR(160),GQ$1))+1),\"\")","v":""},{"$f":"IFERROR(MID($W205,FIND(CHAR(160),SUBSTITUTE($W205,\"{\",CHAR(160),GR$1)),FIND(CHAR(160),SUBSTITUTE($W205,\"}\",CHAR(160),GR$1))-FIND(CHAR(160),SUBSTITUTE($W205,\"{\",CHAR(160),GR$1))+1),\"\")","v":""},{"$f":"IFERROR(MID($W205,FIND(CHAR(160),SUBSTITUTE($W205,\"{\",CHAR(160),GS$1)),FIND(CHAR(160),SUBSTITUTE($W205,\"}\",CHAR(160),GS$1))-FIND(CHAR(160),SUBSTITUTE($W205,\"{\",CHAR(160),GS$1))+1),\"\")","v":""},{"$f":"IFERROR(MID($W205,FIND(CHAR(160),SUBSTITUTE($W205,\"{\",CHAR(160),GT$1)),FIND(CHAR(160),SUBSTITUTE($W205,\"}\",CHAR(160),GT$1))-FIND(CHAR(160),SUBSTITUTE($W205,\"{\",CHAR(160),GT$1))+1),\"\")","v":""},{"$f":"IFERROR(MID($W205,FIND(CHAR(160),SUBSTITUTE($W205,\"{\",CHAR(160),GU$1)),FIND(CHAR(160),SUBSTITUTE($W205,\"}\",CHAR(160),GU$1))-FIND(CHAR(160),SUBSTITUTE($W205,\"{\",CHAR(160),GU$1))+1),\"\")","v":""},{"$f":"IFERROR(MID($W205,FIND(CHAR(160),SUBSTITUTE($W205,\"{\",CHAR(160),GV$1)),FIND(CHAR(160),SUBSTITUTE($W205,\"}\",CHAR(160),GV$1))-FIND(CHAR(160),SUBSTITUTE($W205,\"{\",CHAR(160),GV$1))+1),\"\")","v":""},{"$f":"IFERROR(MID($W205,FIND(CHAR(160),SUBSTITUTE($W205,\"{\",CHAR(160),GW$1)),FIND(CHAR(160),SUBSTITUTE($W205,\"}\",CHAR(160),GW$1))-FIND(CHAR(160),SUBSTITUTE($W205,\"{\",CHAR(160),GW$1))+1),\"\")","v":""},{"$f":"IFERROR(MID($W205,FIND(CHAR(160),SUBSTITUTE($W205,\"{\",CHAR(160),GX$1)),FIND(CHAR(160),SUBSTITUTE($W205,\"}\",CHAR(160),GX$1))-FIND(CHAR(160),SUBSTITUTE($W205,\"{\",CHAR(160),GX$1))+1),\"\")","v":""},{"$f":"IFERROR(MID($W205,FIND(CHAR(160),SUBSTITUTE($W205,\"{\",CHAR(160),GY$1)),FIND(CHAR(160),SUBSTITUTE($W205,\"}\",CHAR(160),GY$1))-FIND(CHAR(160),SUBSTITUTE($W205,\"{\",CHAR(160),GY$1))+1),\"\")","v":"{Primary heating type}"},{"$f":"IFERROR(MID($W205,FIND(CHAR(160),SUBSTITUTE($W205,\"{\",CHAR(160),GZ$1)),FIND(CHAR(160),SUBSTITUTE($W205,\"}\",CHAR(160),GZ$1))-FIND(CHAR(160),SUBSTITUTE($W205,\"{\",CHAR(160),GZ$1))+1),\"\")","v":"{Primary heating type}"},{"$f":"IFERROR(MID($X205,FIND(CHAR(160),SUBSTITUTE($X205,\"{\",CHAR(160),HA$1)),FIND(CHAR(160),SUBSTITUTE($X205,\"}\",CHAR(160),HA$1))-FIND(CHAR(160),SUBSTITUTE($X205,\"{\",CHAR(160),HA$1))+1),\"\")","v":""},{"$f":"IFERROR(MID($X205,FIND(CHAR(160),SUBSTITUTE($X205,\"{\",CHAR(160),HB$1)),FIND(CHAR(160),SUBSTITUTE($X205,\"}\",CHAR(160),HB$1))-FIND(CHAR(160),SUBSTITUTE($X205,\"{\",CHAR(160),HB$1))+1),\"\")","v":""},{"$f":"IFERROR(MID($X205,FIND(CHAR(160),SUBSTITUTE($X205,\"{\",CHAR(160),HC$1)),FIND(CHAR(160),SUBSTITUTE($X205,\"}\",CHAR(160),HC$1))-FIND(CHAR(160),SUBSTITUTE($X205,\"{\",CHAR(160),HC$1))+1),\"\")","v":""},{"$f":"IFERROR(MID($X205,FIND(CHAR(160),SUBSTITUTE($X205,\"{\",CHAR(160),HD$1)),FIND(CHAR(160),SUBSTITUTE($X205,\"}\",CHAR(160),HD$1))-FIND(CHAR(160),SUBSTITUTE($X205,\"{\",CHAR(160),HD$1))+1),\"\")","v":""},{"$f":"IFERROR(MID($X205,FIND(CHAR(160),SUBSTITUTE($X205,\"{\",CHAR(160),HE$1)),FIND(CHAR(160),SUBSTITUTE($X205,\"}\",CHAR(160),HE$1))-FIND(CHAR(160),SUBSTITUTE($X205,\"{\",CHAR(160),HE$1))+1),\"\")","v":""},{"$f":"IFERROR(MID($X205,FIND(CHAR(160),SUBSTITUTE($X205,\"{\",CHAR(160),HF$1)),FIND(CHAR(160),SUBSTITUTE($X205,\"}\",CHAR(160),HF$1))-FIND(CHAR(160),SUBSTITUTE($X205,\"{\",CHAR(160),HF$1))+1),\"\")","v":""},{"$f":"IFERROR(MID($X205,FIND(CHAR(160),SUBSTITUTE($X205,\"{\",CHAR(160),HG$1)),FIND(CHAR(160),SUBSTITUTE($X205,\"}\",CHAR(160),HG$1))-FIND(CHAR(160),SUBSTITUTE($X205,\"{\",CHAR(160),HG$1))+1),\"\")","v":""},{"$f":"IFERROR(MID($X205,FIND(CHAR(160),SUBSTITUTE($X205,\"{\",CHAR(160),HH$1)),FIND(CHAR(160),SUBSTITUTE($X205,\"}\",CHAR(160),HH$1))-FIND(CHAR(160),SUBSTITUTE($X205,\"{\",CHAR(160),HH$1))+1),\"\")","v":""},{"$f":"IFERROR(MID($X205,FIND(CHAR(160),SUBSTITUTE($X205,\"{\",CHAR(160),HI$1)),FIND(CHAR(160),SUBSTITUTE($X205,\"}\",CHAR(160),HI$1))-FIND(CHAR(160),SUBSTITUTE($X205,\"{\",CHAR(160),HI$1))+1),\"\")","v":"{Primary heating type}"},{"$f":"IFERROR(MID($X205,FIND(CHAR(160),SUBSTITUTE($X205,\"{\",CHAR(160),HJ$1)),FIND(CHAR(160),SUBSTITUTE($X205,\"}\",CHAR(160),HJ$1))-FIND(CHAR(160),SUBSTITUTE($X205,\"{\",CHAR(160),HJ$1))+1),\"\")","v":"{Primary heating type}"},{"$f":"IFERROR(MID($Y205,FIND(CHAR(160),SUBSTITUTE($Y205,\"{\",CHAR(160),HK$1)),FIND(CHAR(160),SUBSTITUTE($Y205,\"}\",CHAR(160),HK$1))-FIND(CHAR(160),SUBSTITUTE($Y205,\"{\",CHAR(160),HK$1))+1),\"\")","v":""},{"$f":"IFERROR(MID($Y205,FIND(CHAR(160),SUBSTITUTE($Y205,\"{\",CHAR(160),HL$1)),FIND(CHAR(160),SUBSTITUTE($Y205,\"}\",CHAR(160),HL$1))-FIND(CHAR(160),SUBSTITUTE($Y205,\"{\",CHAR(160),HL$1))+1),\"\")","v":""},{"$f":"IFERROR(MID($Y205,FIND(CHAR(160),SUBSTITUTE($Y205,\"{\",CHAR(160),HM$1)),FIND(CHAR(160),SUBSTITUTE($Y205,\"}\",CHAR(160),HM$1))-FIND(CHAR(160),SUBSTITUTE($Y205,\"{\",CHAR(160),HM$1))+1),\"\")","v":""},{"$f":"IFERROR(MID($Y205,FIND(CHAR(160),SUBSTITUTE($Y205,\"{\",CHAR(160),HN$1)),FIND(CHAR(160),SUBSTITUTE($Y205,\"}\",CHAR(160),HN$1))-FIND(CHAR(160),SUBSTITUTE($Y205,\"{\",CHAR(160),HN$1))+1),\"\")","v":""},{"$f":"IFERROR(MID($Y205,FIND(CHAR(160),SUBSTITUTE($Y205,\"{\",CHAR(160),HO$1)),FIND(CHAR(160),SUBSTITUTE($Y205,\"}\",CHAR(160),HO$1))-FIND(CHAR(160),SUBSTITUTE($Y205,\"{\",CHAR(160),HO$1))+1),\"\")","v":""},{"$f":"IFERROR(MID($Y205,FIND(CHAR(160),SUBSTITUTE($Y205,\"{\",CHAR(160),HP$1)),FIND(CHAR(160),SUBSTITUTE($Y205,\"}\",CHAR(160),HP$1))-FIND(CHAR(160),SUBSTITUTE($Y205,\"{\",CHAR(160),HP$1))+1),\"\")","v":""},{"$f":"IFERROR(MID($Y205,FIND(CHAR(160),SUBSTITUTE($Y205,\"{\",CHAR(160),HQ$1)),FIND(CHAR(160),SUBSTITUTE($Y205,\"}\",CHAR(160),HQ$1))-FIND(CHAR(160),SUBSTITUTE($Y205,\"{\",CHAR(160),HQ$1))+1),\"\")","v":""},{"$f":"IFERROR(MID($Y205,FIND(CHAR(160),SUBSTITUTE($Y205,\"{\",CHAR(160),HR$1)),FIND(CHAR(160),SUBSTITUTE($Y205,\"}\",CHAR(160),HR$1))-FIND(CHAR(160),SUBSTITUTE($Y205,\"{\",CHAR(160),HR$1))+1),\"\")","v":""},{"$f":"IFERROR(MID($Y205,FIND(CHAR(160),SUBSTITUTE($Y205,\"{\",CHAR(160),HS$1)),FIND(CHAR(160),SUBSTITUTE($Y205,\"}\",CHAR(160),HS$1))-FIND(CHAR(160),SUBSTITUTE($Y205,\"{\",CHAR(160),HS$1))+1),\"\")","v":"{Primary heating type}"},{"$f":"IFERROR(MID($Y205,FIND(CHAR(160),SUBSTITUTE($Y205,\"{\",CHAR(160),HT$1)),FIND(CHAR(160),SUBSTITUTE($Y205,\"}\",CHAR(160),HT$1))-FIND(CHAR(160),SUBSTITUTE($Y205,\"{\",CHAR(160),HT$1))+1),\"\")","v":"{Primary heating type}"},{"$f":"IFERROR(MID($Z205,FIND(CHAR(160),SUBSTITUTE($Z205,\"{\",CHAR(160),HU$1)),FIND(CHAR(160),SUBSTITUTE($Z205,\"}\",CHAR(160),HU$1))-FIND(CHAR(160),SUBSTITUTE($Z205,\"{\",CHAR(160),HU$1))+1),\"\")","v":""},{"$f":"IFERROR(MID($Z205,FIND(CHAR(160),SUBSTITUTE($Z205,\"{\",CHAR(160),HV$1)),FIND(CHAR(160),SUBSTITUTE($Z205,\"}\",CHAR(160),HV$1))-FIND(CHAR(160),SUBSTITUTE($Z205,\"{\",CHAR(160),HV$1))+1),\"\")","v":""},{"$f":"IFERROR(MID($Z205,FIND(CHAR(160),SUBSTITUTE($Z205,\"{\",CHAR(160),HW$1)),FIND(CHAR(160),SUBSTITUTE($Z205,\"}\",CHAR(160),HW$1))-FIND(CHAR(160),SUBSTITUTE($Z205,\"{\",CHAR(160),HW$1))+1),\"\")","v":""},{"$f":"IFERROR(MID($Z205,FIND(CHAR(160),SUBSTITUTE($Z205,\"{\",CHAR(160),HX$1)),FIND(CHAR(160),SUBSTITUTE($Z205,\"}\",CHAR(160),HX$1))-FIND(CHAR(160),SUBSTITUTE($Z205,\"{\",CHAR(160),HX$1))+1),\"\")","v":""},{"$f":"IFERROR(MID($Z205,FIND(CHAR(160),SUBSTITUTE($Z205,\"{\",CHAR(160),HY$1)),FIND(CHAR(160),SUBSTITUTE($Z205,\"}\",CHAR(160),HY$1))-FIND(CHAR(160),SUBSTITUTE($Z205,\"{\",CHAR(160),HY$1))+1),\"\")","v":""},{"$f":"IFERROR(MID($Z205,FIND(CHAR(160),SUBSTITUTE($Z205,\"{\",CHAR(160),HZ$1)),FIND(CHAR(160),SUBSTITUTE($Z205,\"}\",CHAR(160),HZ$1))-FIND(CHAR(160),SUBSTITUTE($Z205,\"{\",CHAR(160),HZ$1))+1),\"\")","v":""},{"$f":"IFERROR(MID($Z205,FIND(CHAR(160),SUBSTITUTE($Z205,\"{\",CHAR(160),IA$1)),FIND(CHAR(160),SUBSTITUTE($Z205,\"}\",CHAR(160),IA$1))-FIND(CHAR(160),SUBSTITUTE($Z205,\"{\",CHAR(160),IA$1))+1),\"\")","v":""},{"$f":"IFERROR(MID($Z205,FIND(CHAR(160),SUBSTITUTE($Z205,\"{\",CHAR(160),IB$1)),FIND(CHAR(160),SUBSTITUTE($Z205,\"}\",CHAR(160),IB$1))-FIND(CHAR(160),SUBSTITUTE($Z205,\"{\",CHAR(160),IB$1))+1),\"\")","v":""},{"$f":"IFERROR(MID($Z205,FIND(CHAR(160),SUBSTITUTE($Z205,\"{\",CHAR(160),IC$1)),FIND(CHAR(160),SUBSTITUTE($Z205,\"}\",CHAR(160),IC$1))-FIND(CHAR(160),SUBSTITUTE($Z205,\"{\",CHAR(160),IC$1))+1),\"\")","v":"{Primary heating type}"},{"$f":"IFERROR(MID($Z205,FIND(CHAR(160),SUBSTITUTE($Z205,\"{\",CHAR(160),ID$1)),FIND(CHAR(160),SUBSTITUTE($Z205,\"}\",CHAR(160),ID$1))-FIND(CHAR(160),SUBSTITUTE($Z205,\"{\",CHAR(160),ID$1))+1),\"\")","v":"{Primary heating type}"},{"$f":"IFERROR(MID($AA205,FIND(CHAR(160),SUBSTITUTE($AA205,\"{\",CHAR(160),IE$1)),FIND(CHAR(160),SUBSTITUTE($AA205,\"}\",CHAR(160),IE$1))-FIND(CHAR(160),SUBSTITUTE($AA205,\"{\",CHAR(160),IE$1))+1),\"\")","v":""},{"$f":"IFERROR(MID($AA205,FIND(CHAR(160),SUBSTITUTE($AA205,\"{\",CHAR(160),IF$1)),FIND(CHAR(160),SUBSTITUTE($AA205,\"}\",CHAR(160),IF$1))-FIND(CHAR(160),SUBSTITUTE($AA205,\"{\",CHAR(160),IF$1))+1),\"\")","v":""},{"$f":"IFERROR(MID($AA205,FIND(CHAR(160),SUBSTITUTE($AA205,\"{\",CHAR(160),IG$1)),FIND(CHAR(160),SUBSTITUTE($AA205,\"}\",CHAR(160),IG$1))-FIND(CHAR(160),SUBSTITUTE($AA205,\"{\",CHAR(160),IG$1))+1),\"\")","v":""},{"$f":"IFERROR(MID($AA205,FIND(CHAR(160),SUBSTITUTE($AA205,\"{\",CHAR(160),IH$1)),FIND(CHAR(160),SUBSTITUTE($AA205,\"}\",CHAR(160),IH$1))-FIND(CHAR(160),SUBSTITUTE($AA205,\"{\",CHAR(160),IH$1))+1),\"\")","v":""},{"$f":"IFERROR(MID($AA205,FIND(CHAR(160),SUBSTITUTE($AA205,\"{\",CHAR(160),II$1)),FIND(CHAR(160),SUBSTITUTE($AA205,\"}\",CHAR(160),II$1))-FIND(CHAR(160),SUBSTITUTE($AA205,\"{\",CHAR(160),II$1))+1),\"\")","v":""},{"$f":"IFERROR(MID($AA205,FIND(CHAR(160),SUBSTITUTE($AA205,\"{\",CHAR(160),IJ$1)),FIND(CHAR(160),SUBSTITUTE($AA205,\"}\",CHAR(160),IJ$1))-FIND(CHAR(160),SUBSTITUTE($AA205,\"{\",CHAR(160),IJ$1))+1),\"\")","v":""},{"$f":"IFERROR(MID($AA205,FIND(CHAR(160),SUBSTITUTE($AA205,\"{\",CHAR(160),IK$1)),FIND(CHAR(160),SUBSTITUTE($AA205,\"}\",CHAR(160),IK$1))-FIND(CHAR(160),SUBSTITUTE($AA205,\"{\",CHAR(160),IK$1))+1),\"\")","v":""},{"$f":"IFERROR(MID($AA205,FIND(CHAR(160),SUBSTITUTE($AA205,\"{\",CHAR(160),IL$1)),FIND(CHAR(160),SUBSTITUTE($AA205,\"}\",CHAR(160),IL$1))-FIND(CHAR(160),SUBSTITUTE($AA205,\"{\",CHAR(160),IL$1))+1),\"\")","v":""},{"$f":"IFERROR(MID($AA205,FIND(CHAR(160),SUBSTITUTE($AA205,\"{\",CHAR(160),IM$1)),FIND(CHAR(160),SUBSTITUTE($AA205,\"}\",CHAR(160),IM$1))-FIND(CHAR(160),SUBSTITUTE($AA205,\"{\",CHAR(160),IM$1))+1),\"\")","v":"{Primary heating type}"},{"$f":"IFERROR(MID($AA205,FIND(CHAR(160),SUBSTITUTE($AA205,\"{\",CHAR(160),IN$1)),FIND(CHAR(160),SUBSTITUTE($AA205,\"}\",CHAR(160),IN$1))-FIND(CHAR(160),SUBSTITUTE($AA205,\"{\",CHAR(160),IN$1))+1),\"\")","v":"{Primary heating type}"},{"$f":"IFERROR(MID($AB205,FIND(CHAR(160),SUBSTITUTE($AB205,\"{\",CHAR(160),IO$1)),FIND(CHAR(160),SUBSTITUTE($AB205,\"}\",CHAR(160),IO$1))-FIND(CHAR(160),SUBSTITUTE($AB205,\"{\",CHAR(160),IO$1))+1),\"\")","v":""},{"$f":"IFERROR(MID($AB205,FIND(CHAR(160),SUBSTITUTE($AB205,\"{\",CHAR(160),IP$1)),FIND(CHAR(160),SUBSTITUTE($AB205,\"}\",CHAR(160),IP$1))-FIND(CHAR(160),SUBSTITUTE($AB205,\"{\",CHAR(160),IP$1))+1),\"\")","v":""},{"$f":"IFERROR(MID($AB205,FIND(CHAR(160),SUBSTITUTE($AB205,\"{\",CHAR(160),IQ$1)),FIND(CHAR(160),SUBSTITUTE($AB205,\"}\",CHAR(160),IQ$1))-FIND(CHAR(160),SUBSTITUTE($AB205,\"{\",CHAR(160),IQ$1))+1),\"\")","v":""},{"$f":"IFERROR(MID($AB205,FIND(CHAR(160),SUBSTITUTE($AB205,\"{\",CHAR(160),IR$1)),FIND(CHAR(160),SUBSTITUTE($AB205,\"}\",CHAR(160),IR$1))-FIND(CHAR(160),SUBSTITUTE($AB205,\"{\",CHAR(160),IR$1))+1),\"\")","v":""},{"$f":"IFERROR(MID($AB205,FIND(CHAR(160),SUBSTITUTE($AB205,\"{\",CHAR(160),IS$1)),FIND(CHAR(160),SUBSTITUTE($AB205,\"}\",CHAR(160),IS$1))-FIND(CHAR(160),SUBSTITUTE($AB205,\"{\",CHAR(160),IS$1))+1),\"\")","v":""},{"$f":"IFERROR(MID($AB205,FIND(CHAR(160),SUBSTITUTE($AB205,\"{\",CHAR(160),IT$1)),FIND(CHAR(160),SUBSTITUTE($AB205,\"}\",CHAR(160),IT$1))-FIND(CHAR(160),SUBSTITUTE($AB205,\"{\",CHAR(160),IT$1))+1),\"\")","v":""},{"$f":"IFERROR(MID($AB205,FIND(CHAR(160),SUBSTITUTE($AB205,\"{\",CHAR(160),IU$1)),FIND(CHAR(160),SUBSTITUTE($AB205,\"}\",CHAR(160),IU$1))-FIND(CHAR(160),SUBSTITUTE($AB205,\"{\",CHAR(160),IU$1))+1),\"\")","v":""},{"$f":"IFERROR(MID($AB205,FIND(CHAR(160),SUBSTITUTE($AB205,\"{\",CHAR(160),IV$1)),FIND(CHAR(160),SUBSTITUTE($AB205,\"}\",CHAR(160),IV$1))-FIND(CHAR(160),SUBSTITUTE($AB205,\"{\",CHAR(160),IV$1))+1),\"\")","v":""},{"$f":"IFERROR(MID($AB205,FIND(CHAR(160),SUBSTITUTE($AB205,\"{\",CHAR(160),IW$1)),FIND(CHAR(160),SUBSTITUTE($AB205,\"}\",CHAR(160),IW$1))-FIND(CHAR(160),SUBSTITUTE($AB205,\"{\",CHAR(160),IW$1))+1),\"\")","v":""},{"$f":"IFERROR(MID($AB205,FIND(CHAR(160),SUBSTITUTE($AB205,\"{\",CHAR(160),IX$1)),FIND(CHAR(160),SUBSTITUTE($AB205,\"}\",CHAR(160),IX$1))-FIND(CHAR(160),SUBSTITUTE($AB205,\"{\",CHAR(160),IX$1))+1),\"\")","v":""},null,{"$f":"10-COUNTIF(DU205:ED205,\"\")","v":3}]
["Home Energy Savings Program - Other Fuels","Attic Insulation","BA","2021-07-01","2022-06-30","Per Measure",4087,0,"Calculated","if({Cost}*.3>1000,1000,Round({Cost}*.3,2))*{Measure:Quantity}",0,"2020-04-02","2022-06-30","Calculated","if({Primary heating type}=6,3101,if({Primary heating type}=0,117,20))",null,null,"if({Primary heating type}=6,0.053,if({Primary heating type}=0,0.053,0.053))",null,null,"if({Primary heating type}=6,0.678,if({Primary heating type}=0,0.026,0))","if({Primary heating type}=6,0.053,if({Primary heating type}=0,0.053,0.053))","if({Primary heating type}=1,12.663,if({Primary heating type}=0,1.140,0))*10","if({Primary heating type}=2,12.663,if({Primary heating type}=0,1.659,0))","if({Primary heating type}=3,12.663,if({Primary heating type} = 0,8.661,0))","if({Primary heating type}=4,12.663,if({Primary heating type} = 0,0.177,0))","if({Primary heating type}=5,12.663,if({Primary heating type} = 0,0.545,0))",0,"2020-04-02","2022-06-30",25,1,1,0,0,0.66600000000000004,0.30099999999999999,1,1,1,0.3,2.9000000000000001E-2,null,{"$f":"DU206","v":"{Cost}"},4087,{"$f":"DV206","v":"{Measure:Quantity}"},1,{"$f":"DW206","v":"{Primary heating type}"},0,{"$f":"DX206","v":""},null,{"$f":"DY206","v":""},null,{"$f":"DZ206","v":""},null,{"$f":"EA206","v":""},null,{"$f":"EB206","v":""},null,{"$f":"EC206","v":""},null,{"$f":"ED206","v":""},null,{"$f":"IF(AW206=6,3101,IF(AW206=0,117,20))","v":117},0,0,{"$f":"IF(AW206=6,0.053,IF(AW206=0,0.053,0.053))","v":5.2999999999999999E-2},0,0,{"$f":"IF(AW206=6,0.678,IF(AW206=0,0.026,0))","v":2.5999999999999999E-2},{"$f":"IF(AW206=6,0.053,IF(AW206=0,0.053,0.053))","v":5.2999999999999999E-2},{"$f":"IF(AW206=1,12.663,IF(AW206=0,1.14,0))*10","v":11.399999999999999},{"$f":"IF(AW206=2,12.663,IF(AW206=0,1.659,0))","v":1.659},{"$f":"IF(AW206=3,12.663,IF(AW206 = 0,8.661,0))","v":8.6609999999999996},{"$f":"IF(AW206=4,12.663,IF(AW206 = 0,0.177,0))","v":0.17699999999999999},{"$f":"IF(AW206=5,12.663,IF(AW206 = 0,0.545,0))","v":0.54500000000000004},{"$f":"0","v":0},null,"Res","RGGI DR",{"$f":"Benefits(BL206,BR206,BS206,BT206,BU206,BV206,BW206,BX206,BY206,BZ206,AE206,AH206,AI206,AJ206,AK206,AL206,AM206,AN206,AO206,AP206,CA206,CB206)","v":190.72364216217761},291.85248084747201,305.05512630316508,5237.8735590278902,125.71329275024139,1419.0496070055824,219.80083538477092,0,0,{"$f":"SUMPRODUCT(CC206:CK206,--(CC206:CK206>0))","v":7790.0685434812995},{"$f":"-SUMPRODUCT(CC206:CK206,--(CC206:CK206<0))","v":0},null,{"$f":"4087","v":4087},null,null,{"$f":"CM206+CO206","v":4087},{"$f":"IF(NetOrGross=\"Net\",(1-AO206+AP206),1)","v":1},{"$f":"(SUMPRODUCT(CC206:CJ206,--(CC206:CJ206>0))+CN206)*CS206/((-SUMPRODUCT(CC206:CJ206,--(CC206:CJ206<0))+MAX(CO206,CV206)+CP206+CQ206)*CS206+IF(FRIncentives=\"Yes\",CV206*(1-CS206),0))","v":1.9060603238270857},1,{"$f":"IF(AS206*0.3>1000,1000,ROUND(AS206*0.3,2))*AU206","v":1000},null,"RGGI","y",null,{"$f":"IF(F206=\"Manual Entry\",\"Manual\",IF(G206=\"\",0,\"X=\"&SUBSTITUTE(SUBSTITUTE(SUBSTITUTE(SUBSTITUTE(SUBSTITUTE(SUBSTITUTE(SUBSTITUTE(SUBSTITUTE(SUBSTITUTE(SUBSTITUTE(SUBSTITUTE(SUBSTITUTE(G206,$ED206,$ED$2&ROW($ED206)),$EC206,$EC$2&ROW($EC206)),$EB206,$EB$2&ROW($EB206)),$EA206,$EA$2&ROW($EA206)),$DZ206,$DZ$2&ROW($DZ206)),$DY206,$DY$2&ROW($DY206)),$DX206,$DX$2&ROW($DX206)),$DW206,$DW$2&ROW($DW206)),$DV206,$DV$2&ROW($DV206)),$DU206,$DU$2&ROW($DU206)),$DT206,$DT$2&ROW($DT206)),$DS206,$DS$2&ROW($DS206))))","v":"X=4087"},{"$f":"IF(I206=\"Manual Entry\",\"Manual\",IF(J206=\"\",0,\"X=\"&SUBSTITUTE(SUBSTITUTE(SUBSTITUTE(SUBSTITUTE(SUBSTITUTE(SUBSTITUTE(SUBSTITUTE(SUBSTITUTE(SUBSTITUTE(SUBSTITUTE(SUBSTITUTE(SUBSTITUTE(J206,$ED206,$ED$2&ROW($ED206)),$EC206,$EC$2&ROW($EC206)),$EB206,$EB$2&ROW($EB206)),$EA206,$EA$2&ROW($EA206)),$DZ206,$DZ$2&ROW($DZ206)),$DY206,$DY$2&ROW($DY206)),$DX206,$DX$2&ROW($DX206)),$DW206,$DW$2&ROW($DW206)),$DV206,$DV$2&ROW($DV206)),$DU206,$DU$2&ROW($DU206)),$DT206,$DT$2&ROW($DT206)),$DS206,$DS$2&ROW($DS206))))","v":"X=if(AS206*.3>1000,1000,Round(AS206*.3,2))*AU206"},{"$f":"IF(O206=\"\",0,\"X=\"&SUBSTITUTE(SUBSTITUTE(SUBSTITUTE(SUBSTITUTE(SUBSTITUTE(SUBSTITUTE(SUBSTITUTE(SUBSTITUTE(SUBSTITUTE(SUBSTITUTE(SUBSTITUTE(SUBSTITUTE(O206,$ED206,$ED$2&ROW($ED206)),$EC206,$EC$2&ROW($EC206)),$EB206,$EB$2&ROW($EB206)),$EA206,$EA$2&ROW($EA206)),$DZ206,$DZ$2&ROW($DZ206)),$DY206,$DY$2&ROW($DY206)),$DX206,$DX$2&ROW($DX206)),$DW206,$DW$2&ROW($DW206)),$DV206,$DV$2&ROW($DV206)),$DU206,$DU$2&ROW($DU206)),$DT206,$DT$2&ROW($DT206)),$DS206,$DS$2&ROW($DS206)))","v":"X=if(AW206=6,3101,if(AW206=0,117,20))"},{"$f":"IF(P206=\"\",0,\"X=\"&SUBSTITUTE(SUBSTITUTE(SUBSTITUTE(SUBSTITUTE(SUBSTITUTE(SUBSTITUTE(SUBSTITUTE(SUBSTITUTE(SUBSTITUTE(SUBSTITUTE(SUBSTITUTE(SUBSTITUTE(P206,$ED206,$ED$2&ROW($ED206)),$EC206,$EC$2&ROW($EC206)),$EB206,$EB$2&ROW($EB206)),$EA206,$EA$2&ROW($EA206)),$DZ206,$DZ$2&ROW($DZ206)),$DY206,$DY$2&ROW($DY206)),$DX206,$DX$2&ROW($DX206)),$DW206,$DW$2&ROW($DW206)),$DV206,$DV$2&ROW($DV206)),$DU206,$DU$2&ROW($DU206)),$DT206,$DT$2&ROW($DT206)),$DS206,$DS$2&ROW($DS206)))","v":0},{"$f":"IF(Q206=\"\",0,\"X=\"&SUBSTITUTE(SUBSTITUTE(SUBSTITUTE(SUBSTITUTE(SUBSTITUTE(SUBSTITUTE(SUBSTITUTE(SUBSTITUTE(SUBSTITUTE(SUBSTITUTE(SUBSTITUTE(SUBSTITUTE(Q206,$ED206,$ED$2&ROW($ED206)),$EC206,$EC$2&ROW($EC206)),$EB206,$EB$2&ROW($EB206)),$EA206,$EA$2&ROW($EA206)),$DZ206,$DZ$2&ROW($DZ206)),$DY206,$DY$2&ROW($DY206)),$DX206,$DX$2&ROW($DX206)),$DW206,$DW$2&ROW($DW206)),$DV206,$DV$2&ROW($DV206)),$DU206,$DU$2&ROW($DU206)),$DT206,$DT$2&ROW($DT206)),$DS206,$DS$2&ROW($DS206)))","v":0},{"$f":"IF(R206=\"\",0,\"X=\"&SUBSTITUTE(SUBSTITUTE(SUBSTITUTE(SUBSTITUTE(SUBSTITUTE(SUBSTITUTE(SUBSTITUTE(SUBSTITUTE(SUBSTITUTE(SUBSTITUTE(SUBSTITUTE(SUBSTITUTE(R206,$ED206,$ED$2&ROW($ED206)),$EC206,$EC$2&ROW($EC206)),$EB206,$EB$2&ROW($EB206)),$EA206,$EA$2&ROW($EA206)),$DZ206,$DZ$2&ROW($DZ206)),$DY206,$DY$2&ROW($DY206)),$DX206,$DX$2&ROW($DX206)),$DW206,$DW$2&ROW($DW206)),$DV206,$DV$2&ROW($DV206)),$DU206,$DU$2&ROW($DU206)),$DT206,$DT$2&ROW($DT206)),$DS206,$DS$2&ROW($DS206)))","v":"X=if(AW206=6,0.053,if(AW206=0,0.053,0.053))"},{"$f":"IF(S206=\"\",0,\"X=\"&SUBSTITUTE(SUBSTITUTE(SUBSTITUTE(SUBSTITUTE(SUBSTITUTE(SUBSTITUTE(SUBSTITUTE(SUBSTITUTE(SUBSTITUTE(SUBSTITUTE(SUBSTITUTE(SUBSTITUTE(S206,$ED206,$ED$2&ROW($ED206)),$EC206,$EC$2&ROW($EC206)),$EB206,$EB$2&ROW($EB206)),$EA206,$EA$2&ROW($EA206)),$DZ206,$DZ$2&ROW($DZ206)),$DY206,$DY$2&ROW($DY206)),$DX206,$DX$2&ROW($DX206)),$DW206,$DW$2&ROW($DW206)),$DV206,$DV$2&ROW($DV206)),$DU206,$DU$2&ROW($DU206)),$DT206,$DT$2&ROW($DT206)),$DS206,$DS$2&ROW($DS206)))","v":0},{"$f":"IF(T206=\"\",0,\"X=\"&SUBSTITUTE(SUBSTITUTE(SUBSTITUTE(SUBSTITUTE(SUBSTITUTE(SUBSTITUTE(SUBSTITUTE(SUBSTITUTE(SUBSTITUTE(SUBSTITUTE(SUBSTITUTE(SUBSTITUTE(T206,$ED206,$ED$2&ROW($ED206)),$EC206,$EC$2&ROW($EC206)),$EB206,$EB$2&ROW($EB206)),$EA206,$EA$2&ROW($EA206)),$DZ206,$DZ$2&ROW($DZ206)),$DY206,$DY$2&ROW($DY206)),$DX206,$DX$2&ROW($DX206)),$DW206,$DW$2&ROW($DW206)),$DV206,$DV$2&ROW($DV206)),$DU206,$DU$2&ROW($DU206)),$DT206,$DT$2&ROW($DT206)),$DS206,$DS$2&ROW($DS206)))","v":0},{"$f":"IF(U206=\"\",0,\"X=\"&SUBSTITUTE(SUBSTITUTE(SUBSTITUTE(SUBSTITUTE(SUBSTITUTE(SUBSTITUTE(SUBSTITUTE(SUBSTITUTE(SUBSTITUTE(SUBSTITUTE(SUBSTITUTE(SUBSTITUTE(U206,$ED206,$ED$2&ROW($ED206)),$EC206,$EC$2&ROW($EC206)),$EB206,$EB$2&ROW($EB206)),$EA206,$EA$2&ROW($EA206)),$DZ206,$DZ$2&ROW($DZ206)),$DY206,$DY$2&ROW($DY206)),$DX206,$DX$2&ROW($DX206)),$DW206,$DW$2&ROW($DW206)),$DV206,$DV$2&ROW($DV206)),$DU206,$DU$2&ROW($DU206)),$DT206,$DT$2&ROW($DT206)),$DS206,$DS$2&ROW($DS206)))","v":"X=if(AW206=6,0.678,if(AW206=0,0.026,0))"},{"$f":"IF(V206=\"\",0,\"X=\"&SUBSTITUTE(SUBSTITUTE(SUBSTITUTE(SUBSTITUTE(SUBSTITUTE(SUBSTITUTE(SUBSTITUTE(SUBSTITUTE(SUBSTITUTE(SUBSTITUTE(SUBSTITUTE(SUBSTITUTE(V206,$ED206,$ED$2&ROW($ED206)),$EC206,$EC$2&ROW($EC206)),$EB206,$EB$2&ROW($EB206)),$EA206,$EA$2&ROW($EA206)),$DZ206,$DZ$2&ROW($DZ206)),$DY206,$DY$2&ROW($DY206)),$DX206,$DX$2&ROW($DX206)),$DW206,$DW$2&ROW($DW206)),$DV206,$DV$2&ROW($DV206)),$DU206,$DU$2&ROW($DU206)),$DT206,$DT$2&ROW($DT206)),$DS206,$DS$2&ROW($DS206)))","v":"X=if(AW206=6,0.053,if(AW206=0,0.053,0.053))"},{"$f":"IF(W206=\"\",0,\"X=\"&SUBSTITUTE(SUBSTITUTE(SUBSTITUTE(SUBSTITUTE(SUBSTITUTE(SUBSTITUTE(SUBSTITUTE(SUBSTITUTE(SUBSTITUTE(SUBSTITUTE(SUBSTITUTE(SUBSTITUTE(W206,$ED206,$ED$2&ROW($ED206)),$EC206,$EC$2&ROW($EC206)),$EB206,$EB$2&ROW($EB206)),$EA206,$EA$2&ROW($EA206)),$DZ206,$DZ$2&ROW($DZ206)),$DY206,$DY$2&ROW($DY206)),$DX206,$DX$2&ROW($DX206)),$DW206,$DW$2&ROW($DW206)),$DV206,$DV$2&ROW($DV206)),$DU206,$DU$2&ROW($DU206)),$DT206,$DT$2&ROW($DT206)),$DS206,$DS$2&ROW($DS206)))","v":"X=if(AW206=1,12.663,if(AW206=0,1.140,0))*10"},{"$f":"IF(X206=\"\",0,\"X=\"&SUBSTITUTE(SUBSTITUTE(SUBSTITUTE(SUBSTITUTE(SUBSTITUTE(SUBSTITUTE(SUBSTITUTE(SUBSTITUTE(SUBSTITUTE(SUBSTITUTE(SUBSTITUTE(SUBSTITUTE(X206,$ED206,$ED$2&ROW($ED206)),$EC206,$EC$2&ROW($EC206)),$EB206,$EB$2&ROW($EB206)),$EA206,$EA$2&ROW($EA206)),$DZ206,$DZ$2&ROW($DZ206)),$DY206,$DY$2&ROW($DY206)),$DX206,$DX$2&ROW($DX206)),$DW206,$DW$2&ROW($DW206)),$DV206,$DV$2&ROW($DV206)),$DU206,$DU$2&ROW($DU206)),$DT206,$DT$2&ROW($DT206)),$DS206,$DS$2&ROW($DS206)))","v":"X=if(AW206=2,12.663,if(AW206=0,1.659,0))"},{"$f":"IF(Y206=\"\",0,\"X=\"&SUBSTITUTE(SUBSTITUTE(SUBSTITUTE(SUBSTITUTE(SUBSTITUTE(SUBSTITUTE(SUBSTITUTE(SUBSTITUTE(SUBSTITUTE(SUBSTITUTE(SUBSTITUTE(SUBSTITUTE(Y206,$ED206,$ED$2&ROW($ED206)),$EC206,$EC$2&ROW($EC206)),$EB206,$EB$2&ROW($EB206)),$EA206,$EA$2&ROW($EA206)),$DZ206,$DZ$2&ROW($DZ206)),$DY206,$DY$2&ROW($DY206)),$DX206,$DX$2&ROW($DX206)),$DW206,$DW$2&ROW($DW206)),$DV206,$DV$2&ROW($DV206)),$DU206,$DU$2&ROW($DU206)),$DT206,$DT$2&ROW($DT206)),$DS206,$DS$2&ROW($DS206)))","v":"X=if(AW206=3,12.663,if(AW206 = 0,8.661,0))"},{"$f":"IF(Z206=\"\",0,\"X=\"&SUBSTITUTE(SUBSTITUTE(SUBSTITUTE(SUBSTITUTE(SUBSTITUTE(SUBSTITUTE(SUBSTITUTE(SUBSTITUTE(SUBSTITUTE(SUBSTITUTE(SUBSTITUTE(SUBSTITUTE(Z206,$ED206,$ED$2&ROW($ED206)),$EC206,$EC$2&ROW($EC206)),$EB206,$EB$2&ROW($EB206)),$EA206,$EA$2&ROW($EA206)),$DZ206,$DZ$2&ROW($DZ206)),$DY206,$DY$2&ROW($DY206)),$DX206,$DX$2&ROW($DX206)),$DW206,$DW$2&ROW($DW206)),$DV206,$DV$2&ROW($DV206)),$DU206,$DU$2&ROW($DU206)),$DT206,$DT$2&ROW($DT206)),$DS206,$DS$2&ROW($DS206)))","v":"X=if(AW206=4,12.663,if(AW206 = 0,0.177,0))"},{"$f":"IF(AA206=\"\",0,\"X=\"&SUBSTITUTE(SUBSTITUTE(SUBSTITUTE(SUBSTITUTE(SUBSTITUTE(SUBSTITUTE(SUBSTITUTE(SUBSTITUTE(SUBSTITUTE(SUBSTITUTE(SUBSTITUTE(SUBSTITUTE(AA206,$ED206,$ED$2&ROW($ED206)),$EC206,$EC$2&ROW($EC206)),$EB206,$EB$2&ROW($EB206)),$EA206,$EA$2&ROW($EA206)),$DZ206,$DZ$2&ROW($DZ206)),$DY206,$DY$2&ROW($DY206)),$DX206,$DX$2&ROW($DX206)),$DW206,$DW$2&ROW($DW206)),$DV206,$DV$2&ROW($DV206)),$DU206,$DU$2&ROW($DU206)),$DT206,$DT$2&ROW($DT206)),$DS206,$DS$2&ROW($DS206)))","v":"X=if(AW206=5,12.663,if(AW206 = 0,0.545,0))"},{"$f":"IF(AB206=\"\",0,\"X=\"&SUBSTITUTE(SUBSTITUTE(SUBSTITUTE(SUBSTITUTE(SUBSTITUTE(SUBSTITUTE(SUBSTITUTE(SUBSTITUTE(SUBSTITUTE(SUBSTITUTE(SUBSTITUTE(SUBSTITUTE(AB206,$ED206,$ED$2&ROW($ED206)),$EC206,$EC$2&ROW($EC206)),$EB206,$EB$2&ROW($EB206)),$EA206,$EA$2&ROW($EA206)),$DZ206,$DZ$2&ROW($DZ206)),$DY206,$DY$2&ROW($DY206)),$DX206,$DX$2&ROW($DX206)),$DW206,$DW$2&ROW($DW206)),$DV206,$DV$2&ROW($DV206)),$DU206,$DU$2&ROW($DU206)),$DT206,$DT$2&ROW($DT206)),$DS206,$DS$2&ROW($DS206)))","v":"X=0"},null,null,"{Factor:WinterCF}","{Factor:SummerCF}",{"$f":"IFERROR(INDEX($EG206:$IV206,MATCH(0,COUNTIF($DR206:DT206,$EG206:$IV206),0)),\"\")","v":"{Cost}"},{"$f":"IFERROR(INDEX($EG206:$IV206,MATCH(0,COUNTIF($DR206:DU206,$EG206:$IV206),0)),\"\")","v":"{Measure:Quantity}"},{"$f":"IFERROR(INDEX($EG206:$IV206,MATCH(0,COUNTIF($DR206:DV206,$EG206:$IV206),0)),\"\")","v":"{Primary heating type}"},{"$f":"IFERROR(INDEX($EG206:$IV206,MATCH(0,COUNTIF($DR206:DW206,$EG206:$IV206),0)),\"\")","v":""},{"$f":"IFERROR(INDEX($EG206:$IV206,MATCH(0,COUNTIF($DR206:DX206,$EG206:$IV206),0)),\"\")","v":""},{"$f":"IFERROR(INDEX($EG206:$IV206,MATCH(0,COUNTIF($DR206:DY206,$EG206:$IV206),0)),\"\")","v":""},{"$f":"IFERROR(INDEX($EG206:$IV206,MATCH(0,COUNTIF($DR206:DZ206,$EG206:$IV206),0)),\"\")","v":""},{"$f":"IFERROR(INDEX($EG206:$IV206,MATCH(0,COUNTIF($DR206:EA206,$EG206:$IV206),0)),\"\")","v":""},{"$f":"IFERROR(INDEX($EG206:$IV206,MATCH(0,COUNTIF($DR206:EB206,$EG206:$IV206),0)),\"\")","v":""},{"$f":"IFERROR(INDEX($EG206:$IV206,MATCH(0,COUNTIF($DR206:EC206,$EG206:$IV206),0)),\"\")","v":""},null,null,{"$f":"IFERROR(MID($G206,FIND(CHAR(160),SUBSTITUTE($G206,\"{\",CHAR(160),EG$1)),FIND(CHAR(160),SUBSTITUTE($G206,\"}\",CHAR(160),EG$1))-FIND(CHAR(160),SUBSTITUTE($G206,\"{\",CHAR(160),EG$1))+1),\"\")","v":""},{"$f":"IFERROR(MID($G206,FIND(CHAR(160),SUBSTITUTE($G206,\"{\",CHAR(160),EH$1)),FIND(CHAR(160),SUBSTITUTE($G206,\"}\",CHAR(160),EH$1))-FIND(CHAR(160),SUBSTITUTE($G206,\"{\",CHAR(160),EH$1))+1),\"\")","v":""},{"$f":"IFERROR(MID($G206,FIND(CHAR(160),SUBSTITUTE($G206,\"{\",CHAR(160),EI$1)),FIND(CHAR(160),SUBSTITUTE($G206,\"}\",CHAR(160),EI$1))-FIND(CHAR(160),SUBSTITUTE($G206,\"{\",CHAR(160),EI$1))+1),\"\")","v":""},{"$f":"IFERROR(MID($G206,FIND(CHAR(160),SUBSTITUTE($G206,\"{\",CHAR(160),EJ$1)),FIND(CHAR(160),SUBSTITUTE($G206,\"}\",CHAR(160),EJ$1))-FIND(CHAR(160),SUBSTITUTE($G206,\"{\",CHAR(160),EJ$1))+1),\"\")","v":""},{"$f":"IFERROR(MID($G206,FIND(CHAR(160),SUBSTITUTE($G206,\"{\",CHAR(160),EK$1)),FIND(CHAR(160),SUBSTITUTE($G206,\"}\",CHAR(160),EK$1))-FIND(CHAR(160),SUBSTITUTE($G206,\"{\",CHAR(160),EK$1))+1),\"\")","v":""},{"$f":"IFERROR(MID($G206,FIND(CHAR(160),SUBSTITUTE($G206,\"{\",CHAR(160),EL$1)),FIND(CHAR(160),SUBSTITUTE($G206,\"}\",CHAR(160),EL$1))-FIND(CHAR(160),SUBSTITUTE($G206,\"{\",CHAR(160),EL$1))+1),\"\")","v":""},{"$f":"IFERROR(MID($G206,FIND(CHAR(160),SUBSTITUTE($G206,\"{\",CHAR(160),EM$1)),FIND(CHAR(160),SUBSTITUTE($G206,\"}\",CHAR(160),EM$1))-FIND(CHAR(160),SUBSTITUTE($G206,\"{\",CHAR(160),EM$1))+1),\"\")","v":""},{"$f":"IFERROR(MID($G206,FIND(CHAR(160),SUBSTITUTE($G206,\"{\",CHAR(160),EN$1)),FIND(CHAR(160),SUBSTITUTE($G206,\"}\",CHAR(160),EN$1))-FIND(CHAR(160),SUBSTITUTE($G206,\"{\",CHAR(160),EN$1))+1),\"\")","v":""},{"$f":"IFERROR(MID($G206,FIND(CHAR(160),SUBSTITUTE($G206,\"{\",CHAR(160),EO$1)),FIND(CHAR(160),SUBSTITUTE($G206,\"}\",CHAR(160),EO$1))-FIND(CHAR(160),SUBSTITUTE($G206,\"{\",CHAR(160),EO$1))+1),\"\")","v":""},{"$f":"IFERROR(MID($G206,FIND(CHAR(160),SUBSTITUTE($G206,\"{\",CHAR(160),EP$1)),FIND(CHAR(160),SUBSTITUTE($G206,\"}\",CHAR(160),EP$1))-FIND(CHAR(160),SUBSTITUTE($G206,\"{\",CHAR(160),EP$1))+1),\"\")","v":""},{"$f":"IFERROR(MID($J206,FIND(CHAR(160),SUBSTITUTE($J206,\"{\",CHAR(160),EQ$1)),FIND(CHAR(160),SUBSTITUTE($J206,\"}\",CHAR(160),EQ$1))-FIND(CHAR(160),SUBSTITUTE($J206,\"{\",CHAR(160),EQ$1))+1),\"\")","v":"{Cost}"},{"$f":"IFERROR(MID($J206,FIND(CHAR(160),SUBSTITUTE($J206,\"{\",CHAR(160),ER$1)),FIND(CHAR(160),SUBSTITUTE($J206,\"}\",CHAR(160),ER$1))-FIND(CHAR(160),SUBSTITUTE($J206,\"{\",CHAR(160),ER$1))+1),\"\")","v":"{Cost}"},{"$f":"IFERROR(MID($J206,FIND(CHAR(160),SUBSTITUTE($J206,\"{\",CHAR(160),ES$1)),FIND(CHAR(160),SUBSTITUTE($J206,\"}\",CHAR(160),ES$1))-FIND(CHAR(160),SUBSTITUTE($J206,\"{\",CHAR(160),ES$1))+1),\"\")","v":"{Measure:Quantity}"},{"$f":"IFERROR(MID($J206,FIND(CHAR(160),SUBSTITUTE($J206,\"{\",CHAR(160),ET$1)),FIND(CHAR(160),SUBSTITUTE($J206,\"}\",CHAR(160),ET$1))-FIND(CHAR(160),SUBSTITUTE($J206,\"{\",CHAR(160),ET$1))+1),\"\")","v":""},{"$f":"IFERROR(MID($J206,FIND(CHAR(160),SUBSTITUTE($J206,\"{\",CHAR(160),EU$1)),FIND(CHAR(160),SUBSTITUTE($J206,\"}\",CHAR(160),EU$1))-FIND(CHAR(160),SUBSTITUTE($J206,\"{\",CHAR(160),EU$1))+1),\"\")","v":""},{"$f":"IFERROR(MID($J206,FIND(CHAR(160),SUBSTITUTE($J206,\"{\",CHAR(160),EV$1)),FIND(CHAR(160),SUBSTITUTE($J206,\"}\",CHAR(160),EV$1))-FIND(CHAR(160),SUBSTITUTE($J206,\"{\",CHAR(160),EV$1))+1),\"\")","v":""},{"$f":"IFERROR(MID($J206,FIND(CHAR(160),SUBSTITUTE($J206,\"{\",CHAR(160),EW$1)),FIND(CHAR(160),SUBSTITUTE($J206,\"}\",CHAR(160),EW$1))-FIND(CHAR(160),SUBSTITUTE($J206,\"{\",CHAR(160),EW$1))+1),\"\")","v":""},{"$f":"IFERROR(MID($J206,FIND(CHAR(160),SUBSTITUTE($J206,\"{\",CHAR(160),EX$1)),FIND(CHAR(160),SUBSTITUTE($J206,\"}\",CHAR(160),EX$1))-FIND(CHAR(160),SUBSTITUTE($J206,\"{\",CHAR(160),EX$1))+1),\"\")","v":""},{"$f":"IFERROR(MID($J206,FIND(CHAR(160),SUBSTITUTE($J206,\"{\",CHAR(160),EY$1)),FIND(CHAR(160),SUBSTITUTE($J206,\"}\",CHAR(160),EY$1))-FIND(CHAR(160),SUBSTITUTE($J206,\"{\",CHAR(160),EY$1))+1),\"\")","v":""},{"$f":"IFERROR(MID($J206,FIND(CHAR(160),SUBSTITUTE($J206,\"{\",CHAR(160),EZ$1)),FIND(CHAR(160),SUBSTITUTE($J206,\"}\",CHAR(160),EZ$1))-FIND(CHAR(160),SUBSTITUTE($J206,\"{\",CHAR(160),EZ$1))+1),\"\")","v":""},{"$f":"IFERROR(MID($J206,FIND(CHAR(160),SUBSTITUTE($J206,\"{\",CHAR(160),FA$1)),FIND(CHAR(160),SUBSTITUTE($J206,\"}\",CHAR(160),FA$1))-FIND(CHAR(160),SUBSTITUTE($J206,\"{\",CHAR(160),FA$1))+1),\"\")","v":"{Cost}"},{"$f":"IFERROR(MID($J206,FIND(CHAR(160),SUBSTITUTE($J206,\"{\",CHAR(160),FB$1)),FIND(CHAR(160),SUBSTITUTE($J206,\"}\",CHAR(160),FB$1))-FIND(CHAR(160),SUBSTITUTE($J206,\"{\",CHAR(160),FB$1))+1),\"\")","v":"{Cost}"},{"$f":"IFERROR(MID($O206,FIND(CHAR(160),SUBSTITUTE($O206,\"{\",CHAR(160),FC$1)),FIND(CHAR(160),SUBSTITUTE($O206,\"}\",CHAR(160),FC$1))-FIND(CHAR(160),SUBSTITUTE($O206,\"{\",CHAR(160),FC$1))+1),\"\")","v":""},{"$f":"IFERROR(MID($O206,FIND(CHAR(160),SUBSTITUTE($O206,\"{\",CHAR(160),FD$1)),FIND(CHAR(160),SUBSTITUTE($O206,\"}\",CHAR(160),FD$1))-FIND(CHAR(160),SUBSTITUTE($O206,\"{\",CHAR(160),FD$1))+1),\"\")","v":""},{"$f":"IFERROR(MID($O206,FIND(CHAR(160),SUBSTITUTE($O206,\"{\",CHAR(160),FE$1)),FIND(CHAR(160),SUBSTITUTE($O206,\"}\",CHAR(160),FE$1))-FIND(CHAR(160),SUBSTITUTE($O206,\"{\",CHAR(160),FE$1))+1),\"\")","v":""},{"$f":"IFERROR(MID($O206,FIND(CHAR(160),SUBSTITUTE($O206,\"{\",CHAR(160),FF$1)),FIND(CHAR(160),SUBSTITUTE($O206,\"}\",CHAR(160),FF$1))-FIND(CHAR(160),SUBSTITUTE($O206,\"{\",CHAR(160),FF$1))+1),\"\")","v":""},{"$f":"IFERROR(MID($O206,FIND(CHAR(160),SUBSTITUTE($O206,\"{\",CHAR(160),FG$1)),FIND(CHAR(160),SUBSTITUTE($O206,\"}\",CHAR(160),FG$1))-FIND(CHAR(160),SUBSTITUTE($O206,\"{\",CHAR(160),FG$1))+1),\"\")","v":""},{"$f":"IFERROR(MID($O206,FIND(CHAR(160),SUBSTITUTE($O206,\"{\",CHAR(160),FH$1)),FIND(CHAR(160),SUBSTITUTE($O206,\"}\",CHAR(160),FH$1))-FIND(CHAR(160),SUBSTITUTE($O206,\"{\",CHAR(160),FH$1))+1),\"\")","v":""},{"$f":"IFERROR(MID($O206,FIND(CHAR(160),SUBSTITUTE($O206,\"{\",CHAR(160),FI$1)),FIND(CHAR(160),SUBSTITUTE($O206,\"}\",CHAR(160),FI$1))-FIND(CHAR(160),SUBSTITUTE($O206,\"{\",CHAR(160),FI$1))+1),\"\")","v":""},{"$f":"IFERROR(MID($O206,FIND(CHAR(160),SUBSTITUTE($O206,\"{\",CHAR(160),FJ$1)),FIND(CHAR(160),SUBSTITUTE($O206,\"}\",CHAR(160),FJ$1))-FIND(CHAR(160),SUBSTITUTE($O206,\"{\",CHAR(160),FJ$1))+1),\"\")","v":""},{"$f":"IFERROR(MID($O206,FIND(CHAR(160),SUBSTITUTE($O206,\"{\",CHAR(160),FK$1)),FIND(CHAR(160),SUBSTITUTE($O206,\"}\",CHAR(160),FK$1))-FIND(CHAR(160),SUBSTITUTE($O206,\"{\",CHAR(160),FK$1))+1),\"\")","v":"{Primary heating type}"},{"$f":"IFERROR(MID($O206,FIND(CHAR(160),SUBSTITUTE($O206,\"{\",CHAR(160),FL$1)),FIND(CHAR(160),SUBSTITUTE($O206,\"}\",CHAR(160),FL$1))-FIND(CHAR(160),SUBSTITUTE($O206,\"{\",CHAR(160),FL$1))+1),\"\")","v":"{Primary heating type}"},{"$f":"IFERROR(MID($R206,FIND(CHAR(160),SUBSTITUTE($R206,\"{\",CHAR(160),FM$1)),FIND(CHAR(160),SUBSTITUTE($R206,\"}\",CHAR(160),FM$1))-FIND(CHAR(160),SUBSTITUTE($R206,\"{\",CHAR(160),FM$1))+1),\"\")","v":""},{"$f":"IFERROR(MID($R206,FIND(CHAR(160),SUBSTITUTE($R206,\"{\",CHAR(160),FN$1)),FIND(CHAR(160),SUBSTITUTE($R206,\"}\",CHAR(160),FN$1))-FIND(CHAR(160),SUBSTITUTE($R206,\"{\",CHAR(160),FN$1))+1),\"\")","v":""},{"$f":"IFERROR(MID($R206,FIND(CHAR(160),SUBSTITUTE($R206,\"{\",CHAR(160),FO$1)),FIND(CHAR(160),SUBSTITUTE($R206,\"}\",CHAR(160),FO$1))-FIND(CHAR(160),SUBSTITUTE($R206,\"{\",CHAR(160),FO$1))+1),\"\")","v":""},{"$f":"IFERROR(MID($R206,FIND(CHAR(160),SUBSTITUTE($R206,\"{\",CHAR(160),FP$1)),FIND(CHAR(160),SUBSTITUTE($R206,\"}\",CHAR(160),FP$1))-FIND(CHAR(160),SUBSTITUTE($R206,\"{\",CHAR(160),FP$1))+1),\"\")","v":""},{"$f":"IFERROR(MID($R206,FIND(CHAR(160),SUBSTITUTE($R206,\"{\",CHAR(160),FQ$1)),FIND(CHAR(160),SUBSTITUTE($R206,\"}\",CHAR(160),FQ$1))-FIND(CHAR(160),SUBSTITUTE($R206,\"{\",CHAR(160),FQ$1))+1),\"\")","v":""},{"$f":"IFERROR(MID($R206,FIND(CHAR(160),SUBSTITUTE($R206,\"{\",CHAR(160),FR$1)),FIND(CHAR(160),SUBSTITUTE($R206,\"}\",CHAR(160),FR$1))-FIND(CHAR(160),SUBSTITUTE($R206,\"{\",CHAR(160),FR$1))+1),\"\")","v":""},{"$f":"IFERROR(MID($R206,FIND(CHAR(160),SUBSTITUTE($R206,\"{\",CHAR(160),FS$1)),FIND(CHAR(160),SUBSTITUTE($R206,\"}\",CHAR(160),FS$1))-FIND(CHAR(160),SUBSTITUTE($R206,\"{\",CHAR(160),FS$1))+1),\"\")","v":""},{"$f":"IFERROR(MID($R206,FIND(CHAR(160),SUBSTITUTE($R206,\"{\",CHAR(160),FT$1)),FIND(CHAR(160),SUBSTITUTE($R206,\"}\",CHAR(160),FT$1))-FIND(CHAR(160),SUBSTITUTE($R206,\"{\",CHAR(160),FT$1))+1),\"\")","v":""},{"$f":"IFERROR(MID($R206,FIND(CHAR(160),SUBSTITUTE($R206,\"{\",CHAR(160),FU$1)),FIND(CHAR(160),SUBSTITUTE($R206,\"}\",CHAR(160),FU$1))-FIND(CHAR(160),SUBSTITUTE($R206,\"{\",CHAR(160),FU$1))+1),\"\")","v":"{Primary heating type}"},{"$f":"IFERROR(MID($R206,FIND(CHAR(160),SUBSTITUTE($R206,\"{\",CHAR(160),FV$1)),FIND(CHAR(160),SUBSTITUTE($R206,\"}\",CHAR(160),FV$1))-FIND(CHAR(160),SUBSTITUTE($R206,\"{\",CHAR(160),FV$1))+1),\"\")","v":"{Primary heating type}"},{"$f":"IFERROR(MID($U206,FIND(CHAR(160),SUBSTITUTE($U206,\"{\",CHAR(160),FW$1)),FIND(CHAR(160),SUBSTITUTE($U206,\"}\",CHAR(160),FW$1))-FIND(CHAR(160),SUBSTITUTE($U206,\"{\",CHAR(160),FW$1))+1),\"\")","v":""},{"$f":"IFERROR(MID($U206,FIND(CHAR(160),SUBSTITUTE($U206,\"{\",CHAR(160),FX$1)),FIND(CHAR(160),SUBSTITUTE($U206,\"}\",CHAR(160),FX$1))-FIND(CHAR(160),SUBSTITUTE($U206,\"{\",CHAR(160),FX$1))+1),\"\")","v":""},{"$f":"IFERROR(MID($U206,FIND(CHAR(160),SUBSTITUTE($U206,\"{\",CHAR(160),FY$1)),FIND(CHAR(160),SUBSTITUTE($U206,\"}\",CHAR(160),FY$1))-FIND(CHAR(160),SUBSTITUTE($U206,\"{\",CHAR(160),FY$1))+1),\"\")","v":""},{"$f":"IFERROR(MID($U206,FIND(CHAR(160),SUBSTITUTE($U206,\"{\",CHAR(160),FZ$1)),FIND(CHAR(160),SUBSTITUTE($U206,\"}\",CHAR(160),FZ$1))-FIND(CHAR(160),SUBSTITUTE($U206,\"{\",CHAR(160),FZ$1))+1),\"\")","v":""},{"$f":"IFERROR(MID($U206,FIND(CHAR(160),SUBSTITUTE($U206,\"{\",CHAR(160),GA$1)),FIND(CHAR(160),SUBSTITUTE($U206,\"}\",CHAR(160),GA$1))-FIND(CHAR(160),SUBSTITUTE($U206,\"{\",CHAR(160),GA$1))+1),\"\")","v":""},{"$f":"IFERROR(MID($U206,FIND(CHAR(160),SUBSTITUTE($U206,\"{\",CHAR(160),GB$1)),FIND(CHAR(160),SUBSTITUTE($U206,\"}\",CHAR(160),GB$1))-FIND(CHAR(160),SUBSTITUTE($U206,\"{\",CHAR(160),GB$1))+1),\"\")","v":""},{"$f":"IFERROR(MID($U206,FIND(CHAR(160),SUBSTITUTE($U206,\"{\",CHAR(160),GC$1)),FIND(CHAR(160),SUBSTITUTE($U206,\"}\",CHAR(160),GC$1))-FIND(CHAR(160),SUBSTITUTE($U206,\"{\",CHAR(160),GC$1))+1),\"\")","v":""},{"$f":"IFERROR(MID($U206,FIND(CHAR(160),SUBSTITUTE($U206,\"{\",CHAR(160),GD$1)),FIND(CHAR(160),SUBSTITUTE($U206,\"}\",CHAR(160),GD$1))-FIND(CHAR(160),SUBSTITUTE($U206,\"{\",CHAR(160),GD$1))+1),\"\")","v":""},{"$f":"IFERROR(MID($U206,FIND(CHAR(160),SUBSTITUTE($U206,\"{\",CHAR(160),GE$1)),FIND(CHAR(160),SUBSTITUTE($U206,\"}\",CHAR(160),GE$1))-FIND(CHAR(160),SUBSTITUTE($U206,\"{\",CHAR(160),GE$1))+1),\"\")","v":"{Primary heating type}"},{"$f":"IFERROR(MID($U206,FIND(CHAR(160),SUBSTITUTE($U206,\"{\",CHAR(160),GF$1)),FIND(CHAR(160),SUBSTITUTE($U206,\"}\",CHAR(160),GF$1))-FIND(CHAR(160),SUBSTITUTE($U206,\"{\",CHAR(160),GF$1))+1),\"\")","v":"{Primary heating type}"},{"$f":"IFERROR(MID($V206,FIND(CHAR(160),SUBSTITUTE($V206,\"{\",CHAR(160),GG$1)),FIND(CHAR(160),SUBSTITUTE($V206,\"}\",CHAR(160),GG$1))-FIND(CHAR(160),SUBSTITUTE($V206,\"{\",CHAR(160),GG$1))+1),\"\")","v":""},{"$f":"IFERROR(MID($V206,FIND(CHAR(160),SUBSTITUTE($V206,\"{\",CHAR(160),GH$1)),FIND(CHAR(160),SUBSTITUTE($V206,\"}\",CHAR(160),GH$1))-FIND(CHAR(160),SUBSTITUTE($V206,\"{\",CHAR(160),GH$1))+1),\"\")","v":""},{"$f":"IFERROR(MID($V206,FIND(CHAR(160),SUBSTITUTE($V206,\"{\",CHAR(160),GI$1)),FIND(CHAR(160),SUBSTITUTE($V206,\"}\",CHAR(160),GI$1))-FIND(CHAR(160),SUBSTITUTE($V206,\"{\",CHAR(160),GI$1))+1),\"\")","v":""},{"$f":"IFERROR(MID($V206,FIND(CHAR(160),SUBSTITUTE($V206,\"{\",CHAR(160),GJ$1)),FIND(CHAR(160),SUBSTITUTE($V206,\"}\",CHAR(160),GJ$1))-FIND(CHAR(160),SUBSTITUTE($V206,\"{\",CHAR(160),GJ$1))+1),\"\")","v":""},{"$f":"IFERROR(MID($V206,FIND(CHAR(160),SUBSTITUTE($V206,\"{\",CHAR(160),GK$1)),FIND(CHAR(160),SUBSTITUTE($V206,\"}\",CHAR(160),GK$1))-FIND(CHAR(160),SUBSTITUTE($V206,\"{\",CHAR(160),GK$1))+1),\"\")","v":""},{"$f":"IFERROR(MID($V206,FIND(CHAR(160),SUBSTITUTE($V206,\"{\",CHAR(160),GL$1)),FIND(CHAR(160),SUBSTITUTE($V206,\"}\",CHAR(160),GL$1))-FIND(CHAR(160),SUBSTITUTE($V206,\"{\",CHAR(160),GL$1))+1),\"\")","v":""},{"$f":"IFERROR(MID($V206,FIND(CHAR(160),SUBSTITUTE($V206,\"{\",CHAR(160),GM$1)),FIND(CHAR(160),SUBSTITUTE($V206,\"}\",CHAR(160),GM$1))-FIND(CHAR(160),SUBSTITUTE($V206,\"{\",CHAR(160),GM$1))+1),\"\")","v":""},{"$f":"IFERROR(MID($V206,FIND(CHAR(160),SUBSTITUTE($V206,\"{\",CHAR(160),GN$1)),FIND(CHAR(160),SUBSTITUTE($V206,\"}\",CHAR(160),GN$1))-FIND(CHAR(160),SUBSTITUTE($V206,\"{\",CHAR(160),GN$1))+1),\"\")","v":""},{"$f":"IFERROR(MID($V206,FIND(CHAR(160),SUBSTITUTE($V206,\"{\",CHAR(160),GO$1)),FIND(CHAR(160),SUBSTITUTE($V206,\"}\",CHAR(160),GO$1))-FIND(CHAR(160),SUBSTITUTE($V206,\"{\",CHAR(160),GO$1))+1),\"\")","v":"{Primary heating type}"},{"$f":"IFERROR(MID($V206,FIND(CHAR(160),SUBSTITUTE($V206,\"{\",CHAR(160),GP$1)),FIND(CHAR(160),SUBSTITUTE($V206,\"}\",CHAR(160),GP$1))-FIND(CHAR(160),SUBSTITUTE($V206,\"{\",CHAR(160),GP$1))+1),\"\")","v":"{Primary heating type}"},{"$f":"IFERROR(MID($W206,FIND(CHAR(160),SUBSTITUTE($W206,\"{\",CHAR(160),GQ$1)),FIND(CHAR(160),SUBSTITUTE($W206,\"}\",CHAR(160),GQ$1))-FIND(CHAR(160),SUBSTITUTE($W206,\"{\",CHAR(160),GQ$1))+1),\"\")","v":""},{"$f":"IFERROR(MID($W206,FIND(CHAR(160),SUBSTITUTE($W206,\"{\",CHAR(160),GR$1)),FIND(CHAR(160),SUBSTITUTE($W206,\"}\",CHAR(160),GR$1))-FIND(CHAR(160),SUBSTITUTE($W206,\"{\",CHAR(160),GR$1))+1),\"\")","v":""},{"$f":"IFERROR(MID($W206,FIND(CHAR(160),SUBSTITUTE($W206,\"{\",CHAR(160),GS$1)),FIND(CHAR(160),SUBSTITUTE($W206,\"}\",CHAR(160),GS$1))-FIND(CHAR(160),SUBSTITUTE($W206,\"{\",CHAR(160),GS$1))+1),\"\")","v":""},{"$f":"IFERROR(MID($W206,FIND(CHAR(160),SUBSTITUTE($W206,\"{\",CHAR(160),GT$1)),FIND(CHAR(160),SUBSTITUTE($W206,\"}\",CHAR(160),GT$1))-FIND(CHAR(160),SUBSTITUTE($W206,\"{\",CHAR(160),GT$1))+1),\"\")","v":""},{"$f":"IFERROR(MID($W206,FIND(CHAR(160),SUBSTITUTE($W206,\"{\",CHAR(160),GU$1)),FIND(CHAR(160),SUBSTITUTE($W206,\"}\",CHAR(160),GU$1))-FIND(CHAR(160),SUBSTITUTE($W206,\"{\",CHAR(160),GU$1))+1),\"\")","v":""},{"$f":"IFERROR(MID($W206,FIND(CHAR(160),SUBSTITUTE($W206,\"{\",CHAR(160),GV$1)),FIND(CHAR(160),SUBSTITUTE($W206,\"}\",CHAR(160),GV$1))-FIND(CHAR(160),SUBSTITUTE($W206,\"{\",CHAR(160),GV$1))+1),\"\")","v":""},{"$f":"IFERROR(MID($W206,FIND(CHAR(160),SUBSTITUTE($W206,\"{\",CHAR(160),GW$1)),FIND(CHAR(160),SUBSTITUTE($W206,\"}\",CHAR(160),GW$1))-FIND(CHAR(160),SUBSTITUTE($W206,\"{\",CHAR(160),GW$1))+1),\"\")","v":""},{"$f":"IFERROR(MID($W206,FIND(CHAR(160),SUBSTITUTE($W206,\"{\",CHAR(160),GX$1)),FIND(CHAR(160),SUBSTITUTE($W206,\"}\",CHAR(160),GX$1))-FIND(CHAR(160),SUBSTITUTE($W206,\"{\",CHAR(160),GX$1))+1),\"\")","v":""},{"$f":"IFERROR(MID($W206,FIND(CHAR(160),SUBSTITUTE($W206,\"{\",CHAR(160),GY$1)),FIND(CHAR(160),SUBSTITUTE($W206,\"}\",CHAR(160),GY$1))-FIND(CHAR(160),SUBSTITUTE($W206,\"{\",CHAR(160),GY$1))+1),\"\")","v":"{Primary heating type}"},{"$f":"IFERROR(MID($W206,FIND(CHAR(160),SUBSTITUTE($W206,\"{\",CHAR(160),GZ$1)),FIND(CHAR(160),SUBSTITUTE($W206,\"}\",CHAR(160),GZ$1))-FIND(CHAR(160),SUBSTITUTE($W206,\"{\",CHAR(160),GZ$1))+1),\"\")","v":"{Primary heating type}"},{"$f":"IFERROR(MID($X206,FIND(CHAR(160),SUBSTITUTE($X206,\"{\",CHAR(160),HA$1)),FIND(CHAR(160),SUBSTITUTE($X206,\"}\",CHAR(160),HA$1))-FIND(CHAR(160),SUBSTITUTE($X206,\"{\",CHAR(160),HA$1))+1),\"\")","v":""},{"$f":"IFERROR(MID($X206,FIND(CHAR(160),SUBSTITUTE($X206,\"{\",CHAR(160),HB$1)),FIND(CHAR(160),SUBSTITUTE($X206,\"}\",CHAR(160),HB$1))-FIND(CHAR(160),SUBSTITUTE($X206,\"{\",CHAR(160),HB$1))+1),\"\")","v":""},{"$f":"IFERROR(MID($X206,FIND(CHAR(160),SUBSTITUTE($X206,\"{\",CHAR(160),HC$1)),FIND(CHAR(160),SUBSTITUTE($X206,\"}\",CHAR(160),HC$1))-FIND(CHAR(160),SUBSTITUTE($X206,\"{\",CHAR(160),HC$1))+1),\"\")","v":""},{"$f":"IFERROR(MID($X206,FIND(CHAR(160),SUBSTITUTE($X206,\"{\",CHAR(160),HD$1)),FIND(CHAR(160),SUBSTITUTE($X206,\"}\",CHAR(160),HD$1))-FIND(CHAR(160),SUBSTITUTE($X206,\"{\",CHAR(160),HD$1))+1),\"\")","v":""},{"$f":"IFERROR(MID($X206,FIND(CHAR(160),SUBSTITUTE($X206,\"{\",CHAR(160),HE$1)),FIND(CHAR(160),SUBSTITUTE($X206,\"}\",CHAR(160),HE$1))-FIND(CHAR(160),SUBSTITUTE($X206,\"{\",CHAR(160),HE$1))+1),\"\")","v":""},{"$f":"IFERROR(MID($X206,FIND(CHAR(160),SUBSTITUTE($X206,\"{\",CHAR(160),HF$1)),FIND(CHAR(160),SUBSTITUTE($X206,\"}\",CHAR(160),HF$1))-FIND(CHAR(160),SUBSTITUTE($X206,\"{\",CHAR(160),HF$1))+1),\"\")","v":""},{"$f":"IFERROR(MID($X206,FIND(CHAR(160),SUBSTITUTE($X206,\"{\",CHAR(160),HG$1)),FIND(CHAR(160),SUBSTITUTE($X206,\"}\",CHAR(160),HG$1))-FIND(CHAR(160),SUBSTITUTE($X206,\"{\",CHAR(160),HG$1))+1),\"\")","v":""},{"$f":"IFERROR(MID($X206,FIND(CHAR(160),SUBSTITUTE($X206,\"{\",CHAR(160),HH$1)),FIND(CHAR(160),SUBSTITUTE($X206,\"}\",CHAR(160),HH$1))-FIND(CHAR(160),SUBSTITUTE($X206,\"{\",CHAR(160),HH$1))+1),\"\")","v":""},{"$f":"IFERROR(MID($X206,FIND(CHAR(160),SUBSTITUTE($X206,\"{\",CHAR(160),HI$1)),FIND(CHAR(160),SUBSTITUTE($X206,\"}\",CHAR(160),HI$1))-FIND(CHAR(160),SUBSTITUTE($X206,\"{\",CHAR(160),HI$1))+1),\"\")","v":"{Primary heating type}"},{"$f":"IFERROR(MID($X206,FIND(CHAR(160),SUBSTITUTE($X206,\"{\",CHAR(160),HJ$1)),FIND(CHAR(160),SUBSTITUTE($X206,\"}\",CHAR(160),HJ$1))-FIND(CHAR(160),SUBSTITUTE($X206,\"{\",CHAR(160),HJ$1))+1),\"\")","v":"{Primary heating type}"},{"$f":"IFERROR(MID($Y206,FIND(CHAR(160),SUBSTITUTE($Y206,\"{\",CHAR(160),HK$1)),FIND(CHAR(160),SUBSTITUTE($Y206,\"}\",CHAR(160),HK$1))-FIND(CHAR(160),SUBSTITUTE($Y206,\"{\",CHAR(160),HK$1))+1),\"\")","v":""},{"$f":"IFERROR(MID($Y206,FIND(CHAR(160),SUBSTITUTE($Y206,\"{\",CHAR(160),HL$1)),FIND(CHAR(160),SUBSTITUTE($Y206,\"}\",CHAR(160),HL$1))-FIND(CHAR(160),SUBSTITUTE($Y206,\"{\",CHAR(160),HL$1))+1),\"\")","v":""},{"$f":"IFERROR(MID($Y206,FIND(CHAR(160),SUBSTITUTE($Y206,\"{\",CHAR(160),HM$1)),FIND(CHAR(160),SUBSTITUTE($Y206,\"}\",CHAR(160),HM$1))-FIND(CHAR(160),SUBSTITUTE($Y206,\"{\",CHAR(160),HM$1))+1),\"\")","v":""},{"$f":"IFERROR(MID($Y206,FIND(CHAR(160),SUBSTITUTE($Y206,\"{\",CHAR(160),HN$1)),FIND(CHAR(160),SUBSTITUTE($Y206,\"}\",CHAR(160),HN$1))-FIND(CHAR(160),SUBSTITUTE($Y206,\"{\",CHAR(160),HN$1))+1),\"\")","v":""},{"$f":"IFERROR(MID($Y206,FIND(CHAR(160),SUBSTITUTE($Y206,\"{\",CHAR(160),HO$1)),FIND(CHAR(160),SUBSTITUTE($Y206,\"}\",CHAR(160),HO$1))-FIND(CHAR(160),SUBSTITUTE($Y206,\"{\",CHAR(160),HO$1))+1),\"\")","v":""},{"$f":"IFERROR(MID($Y206,FIND(CHAR(160),SUBSTITUTE($Y206,\"{\",CHAR(160),HP$1)),FIND(CHAR(160),SUBSTITUTE($Y206,\"}\",CHAR(160),HP$1))-FIND(CHAR(160),SUBSTITUTE($Y206,\"{\",CHAR(160),HP$1))+1),\"\")","v":""},{"$f":"IFERROR(MID($Y206,FIND(CHAR(160),SUBSTITUTE($Y206,\"{\",CHAR(160),HQ$1)),FIND(CHAR(160),SUBSTITUTE($Y206,\"}\",CHAR(160),HQ$1))-FIND(CHAR(160),SUBSTITUTE($Y206,\"{\",CHAR(160),HQ$1))+1),\"\")","v":""},{"$f":"IFERROR(MID($Y206,FIND(CHAR(160),SUBSTITUTE($Y206,\"{\",CHAR(160),HR$1)),FIND(CHAR(160),SUBSTITUTE($Y206,\"}\",CHAR(160),HR$1))-FIND(CHAR(160),SUBSTITUTE($Y206,\"{\",CHAR(160),HR$1))+1),\"\")","v":""},{"$f":"IFERROR(MID($Y206,FIND(CHAR(160),SUBSTITUTE($Y206,\"{\",CHAR(160),HS$1)),FIND(CHAR(160),SUBSTITUTE($Y206,\"}\",CHAR(160),HS$1))-FIND(CHAR(160),SUBSTITUTE($Y206,\"{\",CHAR(160),HS$1))+1),\"\")","v":"{Primary heating type}"},{"$f":"IFERROR(MID($Y206,FIND(CHAR(160),SUBSTITUTE($Y206,\"{\",CHAR(160),HT$1)),FIND(CHAR(160),SUBSTITUTE($Y206,\"}\",CHAR(160),HT$1))-FIND(CHAR(160),SUBSTITUTE($Y206,\"{\",CHAR(160),HT$1))+1),\"\")","v":"{Primary heating type}"},{"$f":"IFERROR(MID($Z206,FIND(CHAR(160),SUBSTITUTE($Z206,\"{\",CHAR(160),HU$1)),FIND(CHAR(160),SUBSTITUTE($Z206,\"}\",CHAR(160),HU$1))-FIND(CHAR(160),SUBSTITUTE($Z206,\"{\",CHAR(160),HU$1))+1),\"\")","v":""},{"$f":"IFERROR(MID($Z206,FIND(CHAR(160),SUBSTITUTE($Z206,\"{\",CHAR(160),HV$1)),FIND(CHAR(160),SUBSTITUTE($Z206,\"}\",CHAR(160),HV$1))-FIND(CHAR(160),SUBSTITUTE($Z206,\"{\",CHAR(160),HV$1))+1),\"\")","v":""},{"$f":"IFERROR(MID($Z206,FIND(CHAR(160),SUBSTITUTE($Z206,\"{\",CHAR(160),HW$1)),FIND(CHAR(160),SUBSTITUTE($Z206,\"}\",CHAR(160),HW$1))-FIND(CHAR(160),SUBSTITUTE($Z206,\"{\",CHAR(160),HW$1))+1),\"\")","v":""},{"$f":"IFERROR(MID($Z206,FIND(CHAR(160),SUBSTITUTE($Z206,\"{\",CHAR(160),HX$1)),FIND(CHAR(160),SUBSTITUTE($Z206,\"}\",CHAR(160),HX$1))-FIND(CHAR(160),SUBSTITUTE($Z206,\"{\",CHAR(160),HX$1))+1),\"\")","v":""},{"$f":"IFERROR(MID($Z206,FIND(CHAR(160),SUBSTITUTE($Z206,\"{\",CHAR(160),HY$1)),FIND(CHAR(160),SUBSTITUTE($Z206,\"}\",CHAR(160),HY$1))-FIND(CHAR(160),SUBSTITUTE($Z206,\"{\",CHAR(160),HY$1))+1),\"\")","v":""},{"$f":"IFERROR(MID($Z206,FIND(CHAR(160),SUBSTITUTE($Z206,\"{\",CHAR(160),HZ$1)),FIND(CHAR(160),SUBSTITUTE($Z206,\"}\",CHAR(160),HZ$1))-FIND(CHAR(160),SUBSTITUTE($Z206,\"{\",CHAR(160),HZ$1))+1),\"\")","v":""},{"$f":"IFERROR(MID($Z206,FIND(CHAR(160),SUBSTITUTE($Z206,\"{\",CHAR(160),IA$1)),FIND(CHAR(160),SUBSTITUTE($Z206,\"}\",CHAR(160),IA$1))-FIND(CHAR(160),SUBSTITUTE($Z206,\"{\",CHAR(160),IA$1))+1),\"\")","v":""},{"$f":"IFERROR(MID($Z206,FIND(CHAR(160),SUBSTITUTE($Z206,\"{\",CHAR(160),IB$1)),FIND(CHAR(160),SUBSTITUTE($Z206,\"}\",CHAR(160),IB$1))-FIND(CHAR(160),SUBSTITUTE($Z206,\"{\",CHAR(160),IB$1))+1),\"\")","v":""},{"$f":"IFERROR(MID($Z206,FIND(CHAR(160),SUBSTITUTE($Z206,\"{\",CHAR(160),IC$1)),FIND(CHAR(160),SUBSTITUTE($Z206,\"}\",CHAR(160),IC$1))-FIND(CHAR(160),SUBSTITUTE($Z206,\"{\",CHAR(160),IC$1))+1),\"\")","v":"{Primary heating type}"},{"$f":"IFERROR(MID($Z206,FIND(CHAR(160),SUBSTITUTE($Z206,\"{\",CHAR(160),ID$1)),FIND(CHAR(160),SUBSTITUTE($Z206,\"}\",CHAR(160),ID$1))-FIND(CHAR(160),SUBSTITUTE($Z206,\"{\",CHAR(160),ID$1))+1),\"\")","v":"{Primary heating type}"},{"$f":"IFERROR(MID($AA206,FIND(CHAR(160),SUBSTITUTE($AA206,\"{\",CHAR(160),IE$1)),FIND(CHAR(160),SUBSTITUTE($AA206,\"}\",CHAR(160),IE$1))-FIND(CHAR(160),SUBSTITUTE($AA206,\"{\",CHAR(160),IE$1))+1),\"\")","v":""},{"$f":"IFERROR(MID($AA206,FIND(CHAR(160),SUBSTITUTE($AA206,\"{\",CHAR(160),IF$1)),FIND(CHAR(160),SUBSTITUTE($AA206,\"}\",CHAR(160),IF$1))-FIND(CHAR(160),SUBSTITUTE($AA206,\"{\",CHAR(160),IF$1))+1),\"\")","v":""},{"$f":"IFERROR(MID($AA206,FIND(CHAR(160),SUBSTITUTE($AA206,\"{\",CHAR(160),IG$1)),FIND(CHAR(160),SUBSTITUTE($AA206,\"}\",CHAR(160),IG$1))-FIND(CHAR(160),SUBSTITUTE($AA206,\"{\",CHAR(160),IG$1))+1),\"\")","v":""},{"$f":"IFERROR(MID($AA206,FIND(CHAR(160),SUBSTITUTE($AA206,\"{\",CHAR(160),IH$1)),FIND(CHAR(160),SUBSTITUTE($AA206,\"}\",CHAR(160),IH$1))-FIND(CHAR(160),SUBSTITUTE($AA206,\"{\",CHAR(160),IH$1))+1),\"\")","v":""},{"$f":"IFERROR(MID($AA206,FIND(CHAR(160),SUBSTITUTE($AA206,\"{\",CHAR(160),II$1)),FIND(CHAR(160),SUBSTITUTE($AA206,\"}\",CHAR(160),II$1))-FIND(CHAR(160),SUBSTITUTE($AA206,\"{\",CHAR(160),II$1))+1),\"\")","v":""},{"$f":"IFERROR(MID($AA206,FIND(CHAR(160),SUBSTITUTE($AA206,\"{\",CHAR(160),IJ$1)),FIND(CHAR(160),SUBSTITUTE($AA206,\"}\",CHAR(160),IJ$1))-FIND(CHAR(160),SUBSTITUTE($AA206,\"{\",CHAR(160),IJ$1))+1),\"\")","v":""},{"$f":"IFERROR(MID($AA206,FIND(CHAR(160),SUBSTITUTE($AA206,\"{\",CHAR(160),IK$1)),FIND(CHAR(160),SUBSTITUTE($AA206,\"}\",CHAR(160),IK$1))-FIND(CHAR(160),SUBSTITUTE($AA206,\"{\",CHAR(160),IK$1))+1),\"\")","v":""},{"$f":"IFERROR(MID($AA206,FIND(CHAR(160),SUBSTITUTE($AA206,\"{\",CHAR(160),IL$1)),FIND(CHAR(160),SUBSTITUTE($AA206,\"}\",CHAR(160),IL$1))-FIND(CHAR(160),SUBSTITUTE($AA206,\"{\",CHAR(160),IL$1))+1),\"\")","v":""},{"$f":"IFERROR(MID($AA206,FIND(CHAR(160),SUBSTITUTE($AA206,\"{\",CHAR(160),IM$1)),FIND(CHAR(160),SUBSTITUTE($AA206,\"}\",CHAR(160),IM$1))-FIND(CHAR(160),SUBSTITUTE($AA206,\"{\",CHAR(160),IM$1))+1),\"\")","v":"{Primary heating type}"},{"$f":"IFERROR(MID($AA206,FIND(CHAR(160),SUBSTITUTE($AA206,\"{\",CHAR(160),IN$1)),FIND(CHAR(160),SUBSTITUTE($AA206,\"}\",CHAR(160),IN$1))-FIND(CHAR(160),SUBSTITUTE($AA206,\"{\",CHAR(160),IN$1))+1),\"\")","v":"{Primary heating type}"},{"$f":"IFERROR(MID($AB206,FIND(CHAR(160),SUBSTITUTE($AB206,\"{\",CHAR(160),IO$1)),FIND(CHAR(160),SUBSTITUTE($AB206,\"}\",CHAR(160),IO$1))-FIND(CHAR(160),SUBSTITUTE($AB206,\"{\",CHAR(160),IO$1))+1),\"\")","v":""},{"$f":"IFERROR(MID($AB206,FIND(CHAR(160),SUBSTITUTE($AB206,\"{\",CHAR(160),IP$1)),FIND(CHAR(160),SUBSTITUTE($AB206,\"}\",CHAR(160),IP$1))-FIND(CHAR(160),SUBSTITUTE($AB206,\"{\",CHAR(160),IP$1))+1),\"\")","v":""},{"$f":"IFERROR(MID($AB206,FIND(CHAR(160),SUBSTITUTE($AB206,\"{\",CHAR(160),IQ$1)),FIND(CHAR(160),SUBSTITUTE($AB206,\"}\",CHAR(160),IQ$1))-FIND(CHAR(160),SUBSTITUTE($AB206,\"{\",CHAR(160),IQ$1))+1),\"\")","v":""},{"$f":"IFERROR(MID($AB206,FIND(CHAR(160),SUBSTITUTE($AB206,\"{\",CHAR(160),IR$1)),FIND(CHAR(160),SUBSTITUTE($AB206,\"}\",CHAR(160),IR$1))-FIND(CHAR(160),SUBSTITUTE($AB206,\"{\",CHAR(160),IR$1))+1),\"\")","v":""},{"$f":"IFERROR(MID($AB206,FIND(CHAR(160),SUBSTITUTE($AB206,\"{\",CHAR(160),IS$1)),FIND(CHAR(160),SUBSTITUTE($AB206,\"}\",CHAR(160),IS$1))-FIND(CHAR(160),SUBSTITUTE($AB206,\"{\",CHAR(160),IS$1))+1),\"\")","v":""},{"$f":"IFERROR(MID($AB206,FIND(CHAR(160),SUBSTITUTE($AB206,\"{\",CHAR(160),IT$1)),FIND(CHAR(160),SUBSTITUTE($AB206,\"}\",CHAR(160),IT$1))-FIND(CHAR(160),SUBSTITUTE($AB206,\"{\",CHAR(160),IT$1))+1),\"\")","v":""},{"$f":"IFERROR(MID($AB206,FIND(CHAR(160),SUBSTITUTE($AB206,\"{\",CHAR(160),IU$1)),FIND(CHAR(160),SUBSTITUTE($AB206,\"}\",CHAR(160),IU$1))-FIND(CHAR(160),SUBSTITUTE($AB206,\"{\",CHAR(160),IU$1))+1),\"\")","v":""},{"$f":"IFERROR(MID($AB206,FIND(CHAR(160),SUBSTITUTE($AB206,\"{\",CHAR(160),IV$1)),FIND(CHAR(160),SUBSTITUTE($AB206,\"}\",CHAR(160),IV$1))-FIND(CHAR(160),SUBSTITUTE($AB206,\"{\",CHAR(160),IV$1))+1),\"\")","v":""},{"$f":"IFERROR(MID($AB206,FIND(CHAR(160),SUBSTITUTE($AB206,\"{\",CHAR(160),IW$1)),FIND(CHAR(160),SUBSTITUTE($AB206,\"}\",CHAR(160),IW$1))-FIND(CHAR(160),SUBSTITUTE($AB206,\"{\",CHAR(160),IW$1))+1),\"\")","v":""},{"$f":"IFERROR(MID($AB206,FIND(CHAR(160),SUBSTITUTE($AB206,\"{\",CHAR(160),IX$1)),FIND(CHAR(160),SUBSTITUTE($AB206,\"}\",CHAR(160),IX$1))-FIND(CHAR(160),SUBSTITUTE($AB206,\"{\",CHAR(160),IX$1))+1),\"\")","v":""},null,{"$f":"10-COUNTIF(DU206:ED206,\"\")","v":3}]
["Home Energy Savings Program - Other Fuels","Air Sealing","AA","2021-07-01","2022-06-30","Per Measure",848,0,"Calculated","$400.00*{Measure:Quantity}",400,"2020-04-02","2022-06-30","Calculated","if({Primary heating type}=6,1514,if({Primary heating type}=0,67,10))",null,null,"if({Primary heating type}=6,0.026,if({Primary heating type}=0,0.026,0.026))",null,null,"if({Primary heating type}=6,0.331,if({Primary heating type}=0,0.013,0))","if({Primary heating type}=6,0.026,if({Primary heating type}=0,0.026,0.026))","if({Primary heating type}=1,6.184,if({Primary heating type}=0,0.557,0))*10","if({Primary heating type}=2,6.184,if({Primary heating type} = 0,0.810,0))","if({Primary heating type}=3,6.184,if({Primary heating type} = 0,4.230,0))","if({Primary heating type}=4,6.184,if({Primary heating type} = 0,0.087,0))","if({Primary heating type}=5,6.184,if({Primary heating type} = 0,0.266,0))",0,"2020-04-02","2022-06-30",15,1,1,0,0,0.66600000000000004,0.30099999999999999,1,1,1,0.3,2.9000000000000001E-2,null,{"$f":"DU207","v":"{Measure:Quantity}"},1,{"$f":"DV207","v":"{Primary heating type}"},0,{"$f":"DW207","v":""},null,{"$f":"DX207","v":""},null,{"$f":"DY207","v":""},null,{"$f":"DZ207","v":""},null,{"$f":"EA207","v":""},null,{"$f":"EB207","v":""},null,{"$f":"EC207","v":""},null,{"$f":"ED207","v":""},null,{"$f":"IF(AU207=6,1514,IF(AU207=0,67,10))","v":67},0,0,{"$f":"IF(AU207=6,0.026,IF(AU207=0,0.026,0.026))","v":2.5999999999999999E-2},0,0,{"$f":"IF(AU207=6,0.331,IF(AU207=0,0.013,0))","v":1.2999999999999999E-2},{"$f":"IF(AU207=6,0.026,IF(AU207=0,0.026,0.026))","v":2.5999999999999999E-2},{"$f":"IF(AU207=1,6.184,IF(AU207=0,0.557,0))*10","v":5.57},{"$f":"IF(AU207=2,6.184,IF(AU207 = 0,0.81,0))","v":0.81},{"$f":"IF(AU207=3,6.184,IF(AU207 = 0,4.23,0))","v":4.2300000000000004},{"$f":"IF(AU207=4,6.184,IF(AU207 = 0,0.087,0))","v":8.6999999999999994E-2},{"$f":"IF(AU207=5,6.184,IF(AU207 = 0,0.266,0))","v":0.26600000000000001},{"$f":"0","v":0},null,"Res","RGGI DR",{"$f":"Benefits(BL207,BR207,BS207,BT207,BU207,BV207,BW207,BX207,BY207,BZ207,AE207,AH207,AI207,AJ207,AK207,AL207,AM207,AN207,AO207,AP207,CA207,CB207)","v":77.165781852639839},97.906526911760764,110.14803307307949,1784.6840484314644,42.666554401781305,477.28541099151329,70.021102837021118,0,0,{"$f":"SUMPRODUCT(CC207:CK207,--(CC207:CK207>0))","v":2659.8774584992607},{"$f":"-SUMPRODUCT(CC207:CK207,--(CC207:CK207<0))","v":0},null,{"$f":"848","v":848},null,null,{"$f":"CM207+CO207","v":848},{"$f":"IF(NetOrGross=\"Net\",(1-AO207+AP207),1)","v":1},{"$f":"(SUMPRODUCT(CC207:CJ207,--(CC207:CJ207>0))+CN207)*CS207/((-SUMPRODUCT(CC207:CJ207,--(CC207:CJ207<0))+MAX(CO207,CV207)+CP207+CQ207)*CS207+IF(FRIncentives=\"Yes\",CV207*(1-CS207),0))","v":3.136647946343468},1,{"$f":"400*AS207","v":400},null,"RGGI","y",null,{"$f":"IF(F207=\"Manual Entry\",\"Manual\",IF(G207=\"\",0,\"X=\"&SUBSTITUTE(SUBSTITUTE(SUBSTITUTE(SUBSTITUTE(SUBSTITUTE(SUBSTITUTE(SUBSTITUTE(SUBSTITUTE(SUBSTITUTE(SUBSTITUTE(SUBSTITUTE(SUBSTITUTE(G207,$ED207,$ED$2&ROW($ED207)),$EC207,$EC$2&ROW($EC207)),$EB207,$EB$2&ROW($EB207)),$EA207,$EA$2&ROW($EA207)),$DZ207,$DZ$2&ROW($DZ207)),$DY207,$DY$2&ROW($DY207)),$DX207,$DX$2&ROW($DX207)),$DW207,$DW$2&ROW($DW207)),$DV207,$DV$2&ROW($DV207)),$DU207,$DU$2&ROW($DU207)),$DT207,$DT$2&ROW($DT207)),$DS207,$DS$2&ROW($DS207))))","v":"X=848"},{"$f":"IF(I207=\"Manual Entry\",\"Manual\",IF(J207=\"\",0,\"X=\"&SUBSTITUTE(SUBSTITUTE(SUBSTITUTE(SUBSTITUTE(SUBSTITUTE(SUBSTITUTE(SUBSTITUTE(SUBSTITUTE(SUBSTITUTE(SUBSTITUTE(SUBSTITUTE(SUBSTITUTE(J207,$ED207,$ED$2&ROW($ED207)),$EC207,$EC$2&ROW($EC207)),$EB207,$EB$2&ROW($EB207)),$EA207,$EA$2&ROW($EA207)),$DZ207,$DZ$2&ROW($DZ207)),$DY207,$DY$2&ROW($DY207)),$DX207,$DX$2&ROW($DX207)),$DW207,$DW$2&ROW($DW207)),$DV207,$DV$2&ROW($DV207)),$DU207,$DU$2&ROW($DU207)),$DT207,$DT$2&ROW($DT207)),$DS207,$DS$2&ROW($DS207))))","v":"X=$400.00*AS207"},{"$f":"IF(O207=\"\",0,\"X=\"&SUBSTITUTE(SUBSTITUTE(SUBSTITUTE(SUBSTITUTE(SUBSTITUTE(SUBSTITUTE(SUBSTITUTE(SUBSTITUTE(SUBSTITUTE(SUBSTITUTE(SUBSTITUTE(SUBSTITUTE(O207,$ED207,$ED$2&ROW($ED207)),$EC207,$EC$2&ROW($EC207)),$EB207,$EB$2&ROW($EB207)),$EA207,$EA$2&ROW($EA207)),$DZ207,$DZ$2&ROW($DZ207)),$DY207,$DY$2&ROW($DY207)),$DX207,$DX$2&ROW($DX207)),$DW207,$DW$2&ROW($DW207)),$DV207,$DV$2&ROW($DV207)),$DU207,$DU$2&ROW($DU207)),$DT207,$DT$2&ROW($DT207)),$DS207,$DS$2&ROW($DS207)))","v":"X=if(AU207=6,1514,if(AU207=0,67,10))"},{"$f":"IF(P207=\"\",0,\"X=\"&SUBSTITUTE(SUBSTITUTE(SUBSTITUTE(SUBSTITUTE(SUBSTITUTE(SUBSTITUTE(SUBSTITUTE(SUBSTITUTE(SUBSTITUTE(SUBSTITUTE(SUBSTITUTE(SUBSTITUTE(P207,$ED207,$ED$2&ROW($ED207)),$EC207,$EC$2&ROW($EC207)),$EB207,$EB$2&ROW($EB207)),$EA207,$EA$2&ROW($EA207)),$DZ207,$DZ$2&ROW($DZ207)),$DY207,$DY$2&ROW($DY207)),$DX207,$DX$2&ROW($DX207)),$DW207,$DW$2&ROW($DW207)),$DV207,$DV$2&ROW($DV207)),$DU207,$DU$2&ROW($DU207)),$DT207,$DT$2&ROW($DT207)),$DS207,$DS$2&ROW($DS207)))","v":0},{"$f":"IF(Q207=\"\",0,\"X=\"&SUBSTITUTE(SUBSTITUTE(SUBSTITUTE(SUBSTITUTE(SUBSTITUTE(SUBSTITUTE(SUBSTITUTE(SUBSTITUTE(SUBSTITUTE(SUBSTITUTE(SUBSTITUTE(SUBSTITUTE(Q207,$ED207,$ED$2&ROW($ED207)),$EC207,$EC$2&ROW($EC207)),$EB207,$EB$2&ROW($EB207)),$EA207,$EA$2&ROW($EA207)),$DZ207,$DZ$2&ROW($DZ207)),$DY207,$DY$2&ROW($DY207)),$DX207,$DX$2&ROW($DX207)),$DW207,$DW$2&ROW($DW207)),$DV207,$DV$2&ROW($DV207)),$DU207,$DU$2&ROW($DU207)),$DT207,$DT$2&ROW($DT207)),$DS207,$DS$2&ROW($DS207)))","v":0},{"$f":"IF(R207=\"\",0,\"X=\"&SUBSTITUTE(SUBSTITUTE(SUBSTITUTE(SUBSTITUTE(SUBSTITUTE(SUBSTITUTE(SUBSTITUTE(SUBSTITUTE(SUBSTITUTE(SUBSTITUTE(SUBSTITUTE(SUBSTITUTE(R207,$ED207,$ED$2&ROW($ED207)),$EC207,$EC$2&ROW($EC207)),$EB207,$EB$2&ROW($EB207)),$EA207,$EA$2&ROW($EA207)),$DZ207,$DZ$2&ROW($DZ207)),$DY207,$DY$2&ROW($DY207)),$DX207,$DX$2&ROW($DX207)),$DW207,$DW$2&ROW($DW207)),$DV207,$DV$2&ROW($DV207)),$DU207,$DU$2&ROW($DU207)),$DT207,$DT$2&ROW($DT207)),$DS207,$DS$2&ROW($DS207)))","v":"X=if(AU207=6,0.026,if(AU207=0,0.026,0.026))"},{"$f":"IF(S207=\"\",0,\"X=\"&SUBSTITUTE(SUBSTITUTE(SUBSTITUTE(SUBSTITUTE(SUBSTITUTE(SUBSTITUTE(SUBSTITUTE(SUBSTITUTE(SUBSTITUTE(SUBSTITUTE(SUBSTITUTE(SUBSTITUTE(S207,$ED207,$ED$2&ROW($ED207)),$EC207,$EC$2&ROW($EC207)),$EB207,$EB$2&ROW($EB207)),$EA207,$EA$2&ROW($EA207)),$DZ207,$DZ$2&ROW($DZ207)),$DY207,$DY$2&ROW($DY207)),$DX207,$DX$2&ROW($DX207)),$DW207,$DW$2&ROW($DW207)),$DV207,$DV$2&ROW($DV207)),$DU207,$DU$2&ROW($DU207)),$DT207,$DT$2&ROW($DT207)),$DS207,$DS$2&ROW($DS207)))","v":0},{"$f":"IF(T207=\"\",0,\"X=\"&SUBSTITUTE(SUBSTITUTE(SUBSTITUTE(SUBSTITUTE(SUBSTITUTE(SUBSTITUTE(SUBSTITUTE(SUBSTITUTE(SUBSTITUTE(SUBSTITUTE(SUBSTITUTE(SUBSTITUTE(T207,$ED207,$ED$2&ROW($ED207)),$EC207,$EC$2&ROW($EC207)),$EB207,$EB$2&ROW($EB207)),$EA207,$EA$2&ROW($EA207)),$DZ207,$DZ$2&ROW($DZ207)),$DY207,$DY$2&ROW($DY207)),$DX207,$DX$2&ROW($DX207)),$DW207,$DW$2&ROW($DW207)),$DV207,$DV$2&ROW($DV207)),$DU207,$DU$2&ROW($DU207)),$DT207,$DT$2&ROW($DT207)),$DS207,$DS$2&ROW($DS207)))","v":0},{"$f":"IF(U207=\"\",0,\"X=\"&SUBSTITUTE(SUBSTITUTE(SUBSTITUTE(SUBSTITUTE(SUBSTITUTE(SUBSTITUTE(SUBSTITUTE(SUBSTITUTE(SUBSTITUTE(SUBSTITUTE(SUBSTITUTE(SUBSTITUTE(U207,$ED207,$ED$2&ROW($ED207)),$EC207,$EC$2&ROW($EC207)),$EB207,$EB$2&ROW($EB207)),$EA207,$EA$2&ROW($EA207)),$DZ207,$DZ$2&ROW($DZ207)),$DY207,$DY$2&ROW($DY207)),$DX207,$DX$2&ROW($DX207)),$DW207,$DW$2&ROW($DW207)),$DV207,$DV$2&ROW($DV207)),$DU207,$DU$2&ROW($DU207)),$DT207,$DT$2&ROW($DT207)),$DS207,$DS$2&ROW($DS207)))","v":"X=if(AU207=6,0.331,if(AU207=0,0.013,0))"},{"$f":"IF(V207=\"\",0,\"X=\"&SUBSTITUTE(SUBSTITUTE(SUBSTITUTE(SUBSTITUTE(SUBSTITUTE(SUBSTITUTE(SUBSTITUTE(SUBSTITUTE(SUBSTITUTE(SUBSTITUTE(SUBSTITUTE(SUBSTITUTE(V207,$ED207,$ED$2&ROW($ED207)),$EC207,$EC$2&ROW($EC207)),$EB207,$EB$2&ROW($EB207)),$EA207,$EA$2&ROW($EA207)),$DZ207,$DZ$2&ROW($DZ207)),$DY207,$DY$2&ROW($DY207)),$DX207,$DX$2&ROW($DX207)),$DW207,$DW$2&ROW($DW207)),$DV207,$DV$2&ROW($DV207)),$DU207,$DU$2&ROW($DU207)),$DT207,$DT$2&ROW($DT207)),$DS207,$DS$2&ROW($DS207)))","v":"X=if(AU207=6,0.026,if(AU207=0,0.026,0.026))"},{"$f":"IF(W207=\"\",0,\"X=\"&SUBSTITUTE(SUBSTITUTE(SUBSTITUTE(SUBSTITUTE(SUBSTITUTE(SUBSTITUTE(SUBSTITUTE(SUBSTITUTE(SUBSTITUTE(SUBSTITUTE(SUBSTITUTE(SUBSTITUTE(W207,$ED207,$ED$2&ROW($ED207)),$EC207,$EC$2&ROW($EC207)),$EB207,$EB$2&ROW($EB207)),$EA207,$EA$2&ROW($EA207)),$DZ207,$DZ$2&ROW($DZ207)),$DY207,$DY$2&ROW($DY207)),$DX207,$DX$2&ROW($DX207)),$DW207,$DW$2&ROW($DW207)),$DV207,$DV$2&ROW($DV207)),$DU207,$DU$2&ROW($DU207)),$DT207,$DT$2&ROW($DT207)),$DS207,$DS$2&ROW($DS207)))","v":"X=if(AU207=1,6.184,if(AU207=0,0.557,0))*10"},{"$f":"IF(X207=\"\",0,\"X=\"&SUBSTITUTE(SUBSTITUTE(SUBSTITUTE(SUBSTITUTE(SUBSTITUTE(SUBSTITUTE(SUBSTITUTE(SUBSTITUTE(SUBSTITUTE(SUBSTITUTE(SUBSTITUTE(SUBSTITUTE(X207,$ED207,$ED$2&ROW($ED207)),$EC207,$EC$2&ROW($EC207)),$EB207,$EB$2&ROW($EB207)),$EA207,$EA$2&ROW($EA207)),$DZ207,$DZ$2&ROW($DZ207)),$DY207,$DY$2&ROW($DY207)),$DX207,$DX$2&ROW($DX207)),$DW207,$DW$2&ROW($DW207)),$DV207,$DV$2&ROW($DV207)),$DU207,$DU$2&ROW($DU207)),$DT207,$DT$2&ROW($DT207)),$DS207,$DS$2&ROW($DS207)))","v":"X=if(AU207=2,6.184,if(AU207 = 0,0.810,0))"},{"$f":"IF(Y207=\"\",0,\"X=\"&SUBSTITUTE(SUBSTITUTE(SUBSTITUTE(SUBSTITUTE(SUBSTITUTE(SUBSTITUTE(SUBSTITUTE(SUBSTITUTE(SUBSTITUTE(SUBSTITUTE(SUBSTITUTE(SUBSTITUTE(Y207,$ED207,$ED$2&ROW($ED207)),$EC207,$EC$2&ROW($EC207)),$EB207,$EB$2&ROW($EB207)),$EA207,$EA$2&ROW($EA207)),$DZ207,$DZ$2&ROW($DZ207)),$DY207,$DY$2&ROW($DY207)),$DX207,$DX$2&ROW($DX207)),$DW207,$DW$2&ROW($DW207)),$DV207,$DV$2&ROW($DV207)),$DU207,$DU$2&ROW($DU207)),$DT207,$DT$2&ROW($DT207)),$DS207,$DS$2&ROW($DS207)))","v":"X=if(AU207=3,6.184,if(AU207 = 0,4.230,0))"},{"$f":"IF(Z207=\"\",0,\"X=\"&SUBSTITUTE(SUBSTITUTE(SUBSTITUTE(SUBSTITUTE(SUBSTITUTE(SUBSTITUTE(SUBSTITUTE(SUBSTITUTE(SUBSTITUTE(SUBSTITUTE(SUBSTITUTE(SUBSTITUTE(Z207,$ED207,$ED$2&ROW($ED207)),$EC207,$EC$2&ROW($EC207)),$EB207,$EB$2&ROW($EB207)),$EA207,$EA$2&ROW($EA207)),$DZ207,$DZ$2&ROW($DZ207)),$DY207,$DY$2&ROW($DY207)),$DX207,$DX$2&ROW($DX207)),$DW207,$DW$2&ROW($DW207)),$DV207,$DV$2&ROW($DV207)),$DU207,$DU$2&ROW($DU207)),$DT207,$DT$2&ROW($DT207)),$DS207,$DS$2&ROW($DS207)))","v":"X=if(AU207=4,6.184,if(AU207 = 0,0.087,0))"},{"$f":"IF(AA207=\"\",0,\"X=\"&SUBSTITUTE(SUBSTITUTE(SUBSTITUTE(SUBSTITUTE(SUBSTITUTE(SUBSTITUTE(SUBSTITUTE(SUBSTITUTE(SUBSTITUTE(SUBSTITUTE(SUBSTITUTE(SUBSTITUTE(AA207,$ED207,$ED$2&ROW($ED207)),$EC207,$EC$2&ROW($EC207)),$EB207,$EB$2&ROW($EB207)),$EA207,$EA$2&ROW($EA207)),$DZ207,$DZ$2&ROW($DZ207)),$DY207,$DY$2&ROW($DY207)),$DX207,$DX$2&ROW($DX207)),$DW207,$DW$2&ROW($DW207)),$DV207,$DV$2&ROW($DV207)),$DU207,$DU$2&ROW($DU207)),$DT207,$DT$2&ROW($DT207)),$DS207,$DS$2&ROW($DS207)))","v":"X=if(AU207=5,6.184,if(AU207 = 0,0.266,0))"},{"$f":"IF(AB207=\"\",0,\"X=\"&SUBSTITUTE(SUBSTITUTE(SUBSTITUTE(SUBSTITUTE(SUBSTITUTE(SUBSTITUTE(SUBSTITUTE(SUBSTITUTE(SUBSTITUTE(SUBSTITUTE(SUBSTITUTE(SUBSTITUTE(AB207,$ED207,$ED$2&ROW($ED207)),$EC207,$EC$2&ROW($EC207)),$EB207,$EB$2&ROW($EB207)),$EA207,$EA$2&ROW($EA207)),$DZ207,$DZ$2&ROW($DZ207)),$DY207,$DY$2&ROW($DY207)),$DX207,$DX$2&ROW($DX207)),$DW207,$DW$2&ROW($DW207)),$DV207,$DV$2&ROW($DV207)),$DU207,$DU$2&ROW($DU207)),$DT207,$DT$2&ROW($DT207)),$DS207,$DS$2&ROW($DS207)))","v":"X=0"},null,null,"{Factor:WinterCF}","{Factor:SummerCF}",{"$f":"IFERROR(INDEX($EG207:$IV207,MATCH(0,COUNTIF($DR207:DT207,$EG207:$IV207),0)),\"\")","v":"{Measure:Quantity}"},{"$f":"IFERROR(INDEX($EG207:$IV207,MATCH(0,COUNTIF($DR207:DU207,$EG207:$IV207),0)),\"\")","v":"{Primary heating type}"},{"$f":"IFERROR(INDEX($EG207:$IV207,MATCH(0,COUNTIF($DR207:DV207,$EG207:$IV207),0)),\"\")","v":""},{"$f":"IFERROR(INDEX($EG207:$IV207,MATCH(0,COUNTIF($DR207:DW207,$EG207:$IV207),0)),\"\")","v":""},{"$f":"IFERROR(INDEX($EG207:$IV207,MATCH(0,COUNTIF($DR207:DX207,$EG207:$IV207),0)),\"\")","v":""},{"$f":"IFERROR(INDEX($EG207:$IV207,MATCH(0,COUNTIF($DR207:DY207,$EG207:$IV207),0)),\"\")","v":""},{"$f":"IFERROR(INDEX($EG207:$IV207,MATCH(0,COUNTIF($DR207:DZ207,$EG207:$IV207),0)),\"\")","v":""},{"$f":"IFERROR(INDEX($EG207:$IV207,MATCH(0,COUNTIF($DR207:EA207,$EG207:$IV207),0)),\"\")","v":""},{"$f":"IFERROR(INDEX($EG207:$IV207,MATCH(0,COUNTIF($DR207:EB207,$EG207:$IV207),0)),\"\")","v":""},{"$f":"IFERROR(INDEX($EG207:$IV207,MATCH(0,COUNTIF($DR207:EC207,$EG207:$IV207),0)),\"\")","v":""},null,null,{"$f":"IFERROR(MID($G207,FIND(CHAR(160),SUBSTITUTE($G207,\"{\",CHAR(160),EG$1)),FIND(CHAR(160),SUBSTITUTE($G207,\"}\",CHAR(160),EG$1))-FIND(CHAR(160),SUBSTITUTE($G207,\"{\",CHAR(160),EG$1))+1),\"\")","v":""},{"$f":"IFERROR(MID($G207,FIND(CHAR(160),SUBSTITUTE($G207,\"{\",CHAR(160),EH$1)),FIND(CHAR(160),SUBSTITUTE($G207,\"}\",CHAR(160),EH$1))-FIND(CHAR(160),SUBSTITUTE($G207,\"{\",CHAR(160),EH$1))+1),\"\")","v":""},{"$f":"IFERROR(MID($G207,FIND(CHAR(160),SUBSTITUTE($G207,\"{\",CHAR(160),EI$1)),FIND(CHAR(160),SUBSTITUTE($G207,\"}\",CHAR(160),EI$1))-FIND(CHAR(160),SUBSTITUTE($G207,\"{\",CHAR(160),EI$1))+1),\"\")","v":""},{"$f":"IFERROR(MID($G207,FIND(CHAR(160),SUBSTITUTE($G207,\"{\",CHAR(160),EJ$1)),FIND(CHAR(160),SUBSTITUTE($G207,\"}\",CHAR(160),EJ$1))-FIND(CHAR(160),SUBSTITUTE($G207,\"{\",CHAR(160),EJ$1))+1),\"\")","v":""},{"$f":"IFERROR(MID($G207,FIND(CHAR(160),SUBSTITUTE($G207,\"{\",CHAR(160),EK$1)),FIND(CHAR(160),SUBSTITUTE($G207,\"}\",CHAR(160),EK$1))-FIND(CHAR(160),SUBSTITUTE($G207,\"{\",CHAR(160),EK$1))+1),\"\")","v":""},{"$f":"IFERROR(MID($G207,FIND(CHAR(160),SUBSTITUTE($G207,\"{\",CHAR(160),EL$1)),FIND(CHAR(160),SUBSTITUTE($G207,\"}\",CHAR(160),EL$1))-FIND(CHAR(160),SUBSTITUTE($G207,\"{\",CHAR(160),EL$1))+1),\"\")","v":""},{"$f":"IFERROR(MID($G207,FIND(CHAR(160),SUBSTITUTE($G207,\"{\",CHAR(160),EM$1)),FIND(CHAR(160),SUBSTITUTE($G207,\"}\",CHAR(160),EM$1))-FIND(CHAR(160),SUBSTITUTE($G207,\"{\",CHAR(160),EM$1))+1),\"\")","v":""},{"$f":"IFERROR(MID($G207,FIND(CHAR(160),SUBSTITUTE($G207,\"{\",CHAR(160),EN$1)),FIND(CHAR(160),SUBSTITUTE($G207,\"}\",CHAR(160),EN$1))-FIND(CHAR(160),SUBSTITUTE($G207,\"{\",CHAR(160),EN$1))+1),\"\")","v":""},{"$f":"IFERROR(MID($G207,FIND(CHAR(160),SUBSTITUTE($G207,\"{\",CHAR(160),EO$1)),FIND(CHAR(160),SUBSTITUTE($G207,\"}\",CHAR(160),EO$1))-FIND(CHAR(160),SUBSTITUTE($G207,\"{\",CHAR(160),EO$1))+1),\"\")","v":""},{"$f":"IFERROR(MID($G207,FIND(CHAR(160),SUBSTITUTE($G207,\"{\",CHAR(160),EP$1)),FIND(CHAR(160),SUBSTITUTE($G207,\"}\",CHAR(160),EP$1))-FIND(CHAR(160),SUBSTITUTE($G207,\"{\",CHAR(160),EP$1))+1),\"\")","v":""},{"$f":"IFERROR(MID($J207,FIND(CHAR(160),SUBSTITUTE($J207,\"{\",CHAR(160),EQ$1)),FIND(CHAR(160),SUBSTITUTE($J207,\"}\",CHAR(160),EQ$1))-FIND(CHAR(160),SUBSTITUTE($J207,\"{\",CHAR(160),EQ$1))+1),\"\")","v":"{Measure:Quantity}"},{"$f":"IFERROR(MID($J207,FIND(CHAR(160),SUBSTITUTE($J207,\"{\",CHAR(160),ER$1)),FIND(CHAR(160),SUBSTITUTE($J207,\"}\",CHAR(160),ER$1))-FIND(CHAR(160),SUBSTITUTE($J207,\"{\",CHAR(160),ER$1))+1),\"\")","v":""},{"$f":"IFERROR(MID($J207,FIND(CHAR(160),SUBSTITUTE($J207,\"{\",CHAR(160),ES$1)),FIND(CHAR(160),SUBSTITUTE($J207,\"}\",CHAR(160),ES$1))-FIND(CHAR(160),SUBSTITUTE($J207,\"{\",CHAR(160),ES$1))+1),\"\")","v":""},{"$f":"IFERROR(MID($J207,FIND(CHAR(160),SUBSTITUTE($J207,\"{\",CHAR(160),ET$1)),FIND(CHAR(160),SUBSTITUTE($J207,\"}\",CHAR(160),ET$1))-FIND(CHAR(160),SUBSTITUTE($J207,\"{\",CHAR(160),ET$1))+1),\"\")","v":""},{"$f":"IFERROR(MID($J207,FIND(CHAR(160),SUBSTITUTE($J207,\"{\",CHAR(160),EU$1)),FIND(CHAR(160),SUBSTITUTE($J207,\"}\",CHAR(160),EU$1))-FIND(CHAR(160),SUBSTITUTE($J207,\"{\",CHAR(160),EU$1))+1),\"\")","v":""},{"$f":"IFERROR(MID($J207,FIND(CHAR(160),SUBSTITUTE($J207,\"{\",CHAR(160),EV$1)),FIND(CHAR(160),SUBSTITUTE($J207,\"}\",CHAR(160),EV$1))-FIND(CHAR(160),SUBSTITUTE($J207,\"{\",CHAR(160),EV$1))+1),\"\")","v":""},{"$f":"IFERROR(MID($J207,FIND(CHAR(160),SUBSTITUTE($J207,\"{\",CHAR(160),EW$1)),FIND(CHAR(160),SUBSTITUTE($J207,\"}\",CHAR(160),EW$1))-FIND(CHAR(160),SUBSTITUTE($J207,\"{\",CHAR(160),EW$1))+1),\"\")","v":""},{"$f":"IFERROR(MID($J207,FIND(CHAR(160),SUBSTITUTE($J207,\"{\",CHAR(160),EX$1)),FIND(CHAR(160),SUBSTITUTE($J207,\"}\",CHAR(160),EX$1))-FIND(CHAR(160),SUBSTITUTE($J207,\"{\",CHAR(160),EX$1))+1),\"\")","v":""},{"$f":"IFERROR(MID($J207,FIND(CHAR(160),SUBSTITUTE($J207,\"{\",CHAR(160),EY$1)),FIND(CHAR(160),SUBSTITUTE($J207,\"}\",CHAR(160),EY$1))-FIND(CHAR(160),SUBSTITUTE($J207,\"{\",CHAR(160),EY$1))+1),\"\")","v":""},{"$f":"IFERROR(MID($J207,FIND(CHAR(160),SUBSTITUTE($J207,\"{\",CHAR(160),EZ$1)),FIND(CHAR(160),SUBSTITUTE($J207,\"}\",CHAR(160),EZ$1))-FIND(CHAR(160),SUBSTITUTE($J207,\"{\",CHAR(160),EZ$1))+1),\"\")","v":""},{"$f":"IFERROR(MID($J207,FIND(CHAR(160),SUBSTITUTE($J207,\"{\",CHAR(160),FA$1)),FIND(CHAR(160),SUBSTITUTE($J207,\"}\",CHAR(160),FA$1))-FIND(CHAR(160),SUBSTITUTE($J207,\"{\",CHAR(160),FA$1))+1),\"\")","v":"{Measure:Quantity}"},{"$f":"IFERROR(MID($J207,FIND(CHAR(160),SUBSTITUTE($J207,\"{\",CHAR(160),FB$1)),FIND(CHAR(160),SUBSTITUTE($J207,\"}\",CHAR(160),FB$1))-FIND(CHAR(160),SUBSTITUTE($J207,\"{\",CHAR(160),FB$1))+1),\"\")","v":""},{"$f":"IFERROR(MID($O207,FIND(CHAR(160),SUBSTITUTE($O207,\"{\",CHAR(160),FC$1)),FIND(CHAR(160),SUBSTITUTE($O207,\"}\",CHAR(160),FC$1))-FIND(CHAR(160),SUBSTITUTE($O207,\"{\",CHAR(160),FC$1))+1),\"\")","v":""},{"$f":"IFERROR(MID($O207,FIND(CHAR(160),SUBSTITUTE($O207,\"{\",CHAR(160),FD$1)),FIND(CHAR(160),SUBSTITUTE($O207,\"}\",CHAR(160),FD$1))-FIND(CHAR(160),SUBSTITUTE($O207,\"{\",CHAR(160),FD$1))+1),\"\")","v":""},{"$f":"IFERROR(MID($O207,FIND(CHAR(160),SUBSTITUTE($O207,\"{\",CHAR(160),FE$1)),FIND(CHAR(160),SUBSTITUTE($O207,\"}\",CHAR(160),FE$1))-FIND(CHAR(160),SUBSTITUTE($O207,\"{\",CHAR(160),FE$1))+1),\"\")","v":""},{"$f":"IFERROR(MID($O207,FIND(CHAR(160),SUBSTITUTE($O207,\"{\",CHAR(160),FF$1)),FIND(CHAR(160),SUBSTITUTE($O207,\"}\",CHAR(160),FF$1))-FIND(CHAR(160),SUBSTITUTE($O207,\"{\",CHAR(160),FF$1))+1),\"\")","v":""},{"$f":"IFERROR(MID($O207,FIND(CHAR(160),SUBSTITUTE($O207,\"{\",CHAR(160),FG$1)),FIND(CHAR(160),SUBSTITUTE($O207,\"}\",CHAR(160),FG$1))-FIND(CHAR(160),SUBSTITUTE($O207,\"{\",CHAR(160),FG$1))+1),\"\")","v":""},{"$f":"IFERROR(MID($O207,FIND(CHAR(160),SUBSTITUTE($O207,\"{\",CHAR(160),FH$1)),FIND(CHAR(160),SUBSTITUTE($O207,\"}\",CHAR(160),FH$1))-FIND(CHAR(160),SUBSTITUTE($O207,\"{\",CHAR(160),FH$1))+1),\"\")","v":""},{"$f":"IFERROR(MID($O207,FIND(CHAR(160),SUBSTITUTE($O207,\"{\",CHAR(160),FI$1)),FIND(CHAR(160),SUBSTITUTE($O207,\"}\",CHAR(160),FI$1))-FIND(CHAR(160),SUBSTITUTE($O207,\"{\",CHAR(160),FI$1))+1),\"\")","v":""},{"$f":"IFERROR(MID($O207,FIND(CHAR(160),SUBSTITUTE($O207,\"{\",CHAR(160),FJ$1)),FIND(CHAR(160),SUBSTITUTE($O207,\"}\",CHAR(160),FJ$1))-FIND(CHAR(160),SUBSTITUTE($O207,\"{\",CHAR(160),FJ$1))+1),\"\")","v":""},{"$f":"IFERROR(MID($O207,FIND(CHAR(160),SUBSTITUTE($O207,\"{\",CHAR(160),FK$1)),FIND(CHAR(160),SUBSTITUTE($O207,\"}\",CHAR(160),FK$1))-FIND(CHAR(160),SUBSTITUTE($O207,\"{\",CHAR(160),FK$1))+1),\"\")","v":"{Primary heating type}"},{"$f":"IFERROR(MID($O207,FIND(CHAR(160),SUBSTITUTE($O207,\"{\",CHAR(160),FL$1)),FIND(CHAR(160),SUBSTITUTE($O207,\"}\",CHAR(160),FL$1))-FIND(CHAR(160),SUBSTITUTE($O207,\"{\",CHAR(160),FL$1))+1),\"\")","v":"{Primary heating type}"},{"$f":"IFERROR(MID($R207,FIND(CHAR(160),SUBSTITUTE($R207,\"{\",CHAR(160),FM$1)),FIND(CHAR(160),SUBSTITUTE($R207,\"}\",CHAR(160),FM$1))-FIND(CHAR(160),SUBSTITUTE($R207,\"{\",CHAR(160),FM$1))+1),\"\")","v":""},{"$f":"IFERROR(MID($R207,FIND(CHAR(160),SUBSTITUTE($R207,\"{\",CHAR(160),FN$1)),FIND(CHAR(160),SUBSTITUTE($R207,\"}\",CHAR(160),FN$1))-FIND(CHAR(160),SUBSTITUTE($R207,\"{\",CHAR(160),FN$1))+1),\"\")","v":""},{"$f":"IFERROR(MID($R207,FIND(CHAR(160),SUBSTITUTE($R207,\"{\",CHAR(160),FO$1)),FIND(CHAR(160),SUBSTITUTE($R207,\"}\",CHAR(160),FO$1))-FIND(CHAR(160),SUBSTITUTE($R207,\"{\",CHAR(160),FO$1))+1),\"\")","v":""},{"$f":"IFERROR(MID($R207,FIND(CHAR(160),SUBSTITUTE($R207,\"{\",CHAR(160),FP$1)),FIND(CHAR(160),SUBSTITUTE($R207,\"}\",CHAR(160),FP$1))-FIND(CHAR(160),SUBSTITUTE($R207,\"{\",CHAR(160),FP$1))+1),\"\")","v":""},{"$f":"IFERROR(MID($R207,FIND(CHAR(160),SUBSTITUTE($R207,\"{\",CHAR(160),FQ$1)),FIND(CHAR(160),SUBSTITUTE($R207,\"}\",CHAR(160),FQ$1))-FIND(CHAR(160),SUBSTITUTE($R207,\"{\",CHAR(160),FQ$1))+1),\"\")","v":""},{"$f":"IFERROR(MID($R207,FIND(CHAR(160),SUBSTITUTE($R207,\"{\",CHAR(160),FR$1)),FIND(CHAR(160),SUBSTITUTE($R207,\"}\",CHAR(160),FR$1))-FIND(CHAR(160),SUBSTITUTE($R207,\"{\",CHAR(160),FR$1))+1),\"\")","v":""},{"$f":"IFERROR(MID($R207,FIND(CHAR(160),SUBSTITUTE($R207,\"{\",CHAR(160),FS$1)),FIND(CHAR(160),SUBSTITUTE($R207,\"}\",CHAR(160),FS$1))-FIND(CHAR(160),SUBSTITUTE($R207,\"{\",CHAR(160),FS$1))+1),\"\")","v":""},{"$f":"IFERROR(MID($R207,FIND(CHAR(160),SUBSTITUTE($R207,\"{\",CHAR(160),FT$1)),FIND(CHAR(160),SUBSTITUTE($R207,\"}\",CHAR(160),FT$1))-FIND(CHAR(160),SUBSTITUTE($R207,\"{\",CHAR(160),FT$1))+1),\"\")","v":""},{"$f":"IFERROR(MID($R207,FIND(CHAR(160),SUBSTITUTE($R207,\"{\",CHAR(160),FU$1)),FIND(CHAR(160),SUBSTITUTE($R207,\"}\",CHAR(160),FU$1))-FIND(CHAR(160),SUBSTITUTE($R207,\"{\",CHAR(160),FU$1))+1),\"\")","v":"{Primary heating type}"},{"$f":"IFERROR(MID($R207,FIND(CHAR(160),SUBSTITUTE($R207,\"{\",CHAR(160),FV$1)),FIND(CHAR(160),SUBSTITUTE($R207,\"}\",CHAR(160),FV$1))-FIND(CHAR(160),SUBSTITUTE($R207,\"{\",CHAR(160),FV$1))+1),\"\")","v":"{Primary heating type}"},{"$f":"IFERROR(MID($U207,FIND(CHAR(160),SUBSTITUTE($U207,\"{\",CHAR(160),FW$1)),FIND(CHAR(160),SUBSTITUTE($U207,\"}\",CHAR(160),FW$1))-FIND(CHAR(160),SUBSTITUTE($U207,\"{\",CHAR(160),FW$1))+1),\"\")","v":""},{"$f":"IFERROR(MID($U207,FIND(CHAR(160),SUBSTITUTE($U207,\"{\",CHAR(160),FX$1)),FIND(CHAR(160),SUBSTITUTE($U207,\"}\",CHAR(160),FX$1))-FIND(CHAR(160),SUBSTITUTE($U207,\"{\",CHAR(160),FX$1))+1),\"\")","v":""},{"$f":"IFERROR(MID($U207,FIND(CHAR(160),SUBSTITUTE($U207,\"{\",CHAR(160),FY$1)),FIND(CHAR(160),SUBSTITUTE($U207,\"}\",CHAR(160),FY$1))-FIND(CHAR(160),SUBSTITUTE($U207,\"{\",CHAR(160),FY$1))+1),\"\")","v":""},{"$f":"IFERROR(MID($U207,FIND(CHAR(160),SUBSTITUTE($U207,\"{\",CHAR(160),FZ$1)),FIND(CHAR(160),SUBSTITUTE($U207,\"}\",CHAR(160),FZ$1))-FIND(CHAR(160),SUBSTITUTE($U207,\"{\",CHAR(160),FZ$1))+1),\"\")","v":""},{"$f":"IFERROR(MID($U207,FIND(CHAR(160),SUBSTITUTE($U207,\"{\",CHAR(160),GA$1)),FIND(CHAR(160),SUBSTITUTE($U207,\"}\",CHAR(160),GA$1))-FIND(CHAR(160),SUBSTITUTE($U207,\"{\",CHAR(160),GA$1))+1),\"\")","v":""},{"$f":"IFERROR(MID($U207,FIND(CHAR(160),SUBSTITUTE($U207,\"{\",CHAR(160),GB$1)),FIND(CHAR(160),SUBSTITUTE($U207,\"}\",CHAR(160),GB$1))-FIND(CHAR(160),SUBSTITUTE($U207,\"{\",CHAR(160),GB$1))+1),\"\")","v":""},{"$f":"IFERROR(MID($U207,FIND(CHAR(160),SUBSTITUTE($U207,\"{\",CHAR(160),GC$1)),FIND(CHAR(160),SUBSTITUTE($U207,\"}\",CHAR(160),GC$1))-FIND(CHAR(160),SUBSTITUTE($U207,\"{\",CHAR(160),GC$1))+1),\"\")","v":""},{"$f":"IFERROR(MID($U207,FIND(CHAR(160),SUBSTITUTE($U207,\"{\",CHAR(160),GD$1)),FIND(CHAR(160),SUBSTITUTE($U207,\"}\",CHAR(160),GD$1))-FIND(CHAR(160),SUBSTITUTE($U207,\"{\",CHAR(160),GD$1))+1),\"\")","v":""},{"$f":"IFERROR(MID($U207,FIND(CHAR(160),SUBSTITUTE($U207,\"{\",CHAR(160),GE$1)),FIND(CHAR(160),SUBSTITUTE($U207,\"}\",CHAR(160),GE$1))-FIND(CHAR(160),SUBSTITUTE($U207,\"{\",CHAR(160),GE$1))+1),\"\")","v":"{Primary heating type}"},{"$f":"IFERROR(MID($U207,FIND(CHAR(160),SUBSTITUTE($U207,\"{\",CHAR(160),GF$1)),FIND(CHAR(160),SUBSTITUTE($U207,\"}\",CHAR(160),GF$1))-FIND(CHAR(160),SUBSTITUTE($U207,\"{\",CHAR(160),GF$1))+1),\"\")","v":"{Primary heating type}"},{"$f":"IFERROR(MID($V207,FIND(CHAR(160),SUBSTITUTE($V207,\"{\",CHAR(160),GG$1)),FIND(CHAR(160),SUBSTITUTE($V207,\"}\",CHAR(160),GG$1))-FIND(CHAR(160),SUBSTITUTE($V207,\"{\",CHAR(160),GG$1))+1),\"\")","v":""},{"$f":"IFERROR(MID($V207,FIND(CHAR(160),SUBSTITUTE($V207,\"{\",CHAR(160),GH$1)),FIND(CHAR(160),SUBSTITUTE($V207,\"}\",CHAR(160),GH$1))-FIND(CHAR(160),SUBSTITUTE($V207,\"{\",CHAR(160),GH$1))+1),\"\")","v":""},{"$f":"IFERROR(MID($V207,FIND(CHAR(160),SUBSTITUTE($V207,\"{\",CHAR(160),GI$1)),FIND(CHAR(160),SUBSTITUTE($V207,\"}\",CHAR(160),GI$1))-FIND(CHAR(160),SUBSTITUTE($V207,\"{\",CHAR(160),GI$1))+1),\"\")","v":""},{"$f":"IFERROR(MID($V207,FIND(CHAR(160),SUBSTITUTE($V207,\"{\",CHAR(160),GJ$1)),FIND(CHAR(160),SUBSTITUTE($V207,\"}\",CHAR(160),GJ$1))-FIND(CHAR(160),SUBSTITUTE($V207,\"{\",CHAR(160),GJ$1))+1),\"\")","v":""},{"$f":"IFERROR(MID($V207,FIND(CHAR(160),SUBSTITUTE($V207,\"{\",CHAR(160),GK$1)),FIND(CHAR(160),SUBSTITUTE($V207,\"}\",CHAR(160),GK$1))-FIND(CHAR(160),SUBSTITUTE($V207,\"{\",CHAR(160),GK$1))+1),\"\")","v":""},{"$f":"IFERROR(MID($V207,FIND(CHAR(160),SUBSTITUTE($V207,\"{\",CHAR(160),GL$1)),FIND(CHAR(160),SUBSTITUTE($V207,\"}\",CHAR(160),GL$1))-FIND(CHAR(160),SUBSTITUTE($V207,\"{\",CHAR(160),GL$1))+1),\"\")","v":""},{"$f":"IFERROR(MID($V207,FIND(CHAR(160),SUBSTITUTE($V207,\"{\",CHAR(160),GM$1)),FIND(CHAR(160),SUBSTITUTE($V207,\"}\",CHAR(160),GM$1))-FIND(CHAR(160),SUBSTITUTE($V207,\"{\",CHAR(160),GM$1))+1),\"\")","v":""},{"$f":"IFERROR(MID($V207,FIND(CHAR(160),SUBSTITUTE($V207,\"{\",CHAR(160),GN$1)),FIND(CHAR(160),SUBSTITUTE($V207,\"}\",CHAR(160),GN$1))-FIND(CHAR(160),SUBSTITUTE($V207,\"{\",CHAR(160),GN$1))+1),\"\")","v":""},{"$f":"IFERROR(MID($V207,FIND(CHAR(160),SUBSTITUTE($V207,\"{\",CHAR(160),GO$1)),FIND(CHAR(160),SUBSTITUTE($V207,\"}\",CHAR(160),GO$1))-FIND(CHAR(160),SUBSTITUTE($V207,\"{\",CHAR(160),GO$1))+1),\"\")","v":"{Primary heating type}"},{"$f":"IFERROR(MID($V207,FIND(CHAR(160),SUBSTITUTE($V207,\"{\",CHAR(160),GP$1)),FIND(CHAR(160),SUBSTITUTE($V207,\"}\",CHAR(160),GP$1))-FIND(CHAR(160),SUBSTITUTE($V207,\"{\",CHAR(160),GP$1))+1),\"\")","v":"{Primary heating type}"},{"$f":"IFERROR(MID($W207,FIND(CHAR(160),SUBSTITUTE($W207,\"{\",CHAR(160),GQ$1)),FIND(CHAR(160),SUBSTITUTE($W207,\"}\",CHAR(160),GQ$1))-FIND(CHAR(160),SUBSTITUTE($W207,\"{\",CHAR(160),GQ$1))+1),\"\")","v":""},{"$f":"IFERROR(MID($W207,FIND(CHAR(160),SUBSTITUTE($W207,\"{\",CHAR(160),GR$1)),FIND(CHAR(160),SUBSTITUTE($W207,\"}\",CHAR(160),GR$1))-FIND(CHAR(160),SUBSTITUTE($W207,\"{\",CHAR(160),GR$1))+1),\"\")","v":""},{"$f":"IFERROR(MID($W207,FIND(CHAR(160),SUBSTITUTE($W207,\"{\",CHAR(160),GS$1)),FIND(CHAR(160),SUBSTITUTE($W207,\"}\",CHAR(160),GS$1))-FIND(CHAR(160),SUBSTITUTE($W207,\"{\",CHAR(160),GS$1))+1),\"\")","v":""},{"$f":"IFERROR(MID($W207,FIND(CHAR(160),SUBSTITUTE($W207,\"{\",CHAR(160),GT$1)),FIND(CHAR(160),SUBSTITUTE($W207,\"}\",CHAR(160),GT$1))-FIND(CHAR(160),SUBSTITUTE($W207,\"{\",CHAR(160),GT$1))+1),\"\")","v":""},{"$f":"IFERROR(MID($W207,FIND(CHAR(160),SUBSTITUTE($W207,\"{\",CHAR(160),GU$1)),FIND(CHAR(160),SUBSTITUTE($W207,\"}\",CHAR(160),GU$1))-FIND(CHAR(160),SUBSTITUTE($W207,\"{\",CHAR(160),GU$1))+1),\"\")","v":""},{"$f":"IFERROR(MID($W207,FIND(CHAR(160),SUBSTITUTE($W207,\"{\",CHAR(160),GV$1)),FIND(CHAR(160),SUBSTITUTE($W207,\"}\",CHAR(160),GV$1))-FIND(CHAR(160),SUBSTITUTE($W207,\"{\",CHAR(160),GV$1))+1),\"\")","v":""},{"$f":"IFERROR(MID($W207,FIND(CHAR(160),SUBSTITUTE($W207,\"{\",CHAR(160),GW$1)),FIND(CHAR(160),SUBSTITUTE($W207,\"}\",CHAR(160),GW$1))-FIND(CHAR(160),SUBSTITUTE($W207,\"{\",CHAR(160),GW$1))+1),\"\")","v":""},{"$f":"IFERROR(MID($W207,FIND(CHAR(160),SUBSTITUTE($W207,\"{\",CHAR(160),GX$1)),FIND(CHAR(160),SUBSTITUTE($W207,\"}\",CHAR(160),GX$1))-FIND(CHAR(160),SUBSTITUTE($W207,\"{\",CHAR(160),GX$1))+1),\"\")","v":""},{"$f":"IFERROR(MID($W207,FIND(CHAR(160),SUBSTITUTE($W207,\"{\",CHAR(160),GY$1)),FIND(CHAR(160),SUBSTITUTE($W207,\"}\",CHAR(160),GY$1))-FIND(CHAR(160),SUBSTITUTE($W207,\"{\",CHAR(160),GY$1))+1),\"\")","v":"{Primary heating type}"},{"$f":"IFERROR(MID($W207,FIND(CHAR(160),SUBSTITUTE($W207,\"{\",CHAR(160),GZ$1)),FIND(CHAR(160),SUBSTITUTE($W207,\"}\",CHAR(160),GZ$1))-FIND(CHAR(160),SUBSTITUTE($W207,\"{\",CHAR(160),GZ$1))+1),\"\")","v":"{Primary heating type}"},{"$f":"IFERROR(MID($X207,FIND(CHAR(160),SUBSTITUTE($X207,\"{\",CHAR(160),HA$1)),FIND(CHAR(160),SUBSTITUTE($X207,\"}\",CHAR(160),HA$1))-FIND(CHAR(160),SUBSTITUTE($X207,\"{\",CHAR(160),HA$1))+1),\"\")","v":""},{"$f":"IFERROR(MID($X207,FIND(CHAR(160),SUBSTITUTE($X207,\"{\",CHAR(160),HB$1)),FIND(CHAR(160),SUBSTITUTE($X207,\"}\",CHAR(160),HB$1))-FIND(CHAR(160),SUBSTITUTE($X207,\"{\",CHAR(160),HB$1))+1),\"\")","v":""},{"$f":"IFERROR(MID($X207,FIND(CHAR(160),SUBSTITUTE($X207,\"{\",CHAR(160),HC$1)),FIND(CHAR(160),SUBSTITUTE($X207,\"}\",CHAR(160),HC$1))-FIND(CHAR(160),SUBSTITUTE($X207,\"{\",CHAR(160),HC$1))+1),\"\")","v":""},{"$f":"IFERROR(MID($X207,FIND(CHAR(160),SUBSTITUTE($X207,\"{\",CHAR(160),HD$1)),FIND(CHAR(160),SUBSTITUTE($X207,\"}\",CHAR(160),HD$1))-FIND(CHAR(160),SUBSTITUTE($X207,\"{\",CHAR(160),HD$1))+1),\"\")","v":""},{"$f":"IFERROR(MID($X207,FIND(CHAR(160),SUBSTITUTE($X207,\"{\",CHAR(160),HE$1)),FIND(CHAR(160),SUBSTITUTE($X207,\"}\",CHAR(160),HE$1))-FIND(CHAR(160),SUBSTITUTE($X207,\"{\",CHAR(160),HE$1))+1),\"\")","v":""},{"$f":"IFERROR(MID($X207,FIND(CHAR(160),SUBSTITUTE($X207,\"{\",CHAR(160),HF$1)),FIND(CHAR(160),SUBSTITUTE($X207,\"}\",CHAR(160),HF$1))-FIND(CHAR(160),SUBSTITUTE($X207,\"{\",CHAR(160),HF$1))+1),\"\")","v":""},{"$f":"IFERROR(MID($X207,FIND(CHAR(160),SUBSTITUTE($X207,\"{\",CHAR(160),HG$1)),FIND(CHAR(160),SUBSTITUTE($X207,\"}\",CHAR(160),HG$1))-FIND(CHAR(160),SUBSTITUTE($X207,\"{\",CHAR(160),HG$1))+1),\"\")","v":""},{"$f":"IFERROR(MID($X207,FIND(CHAR(160),SUBSTITUTE($X207,\"{\",CHAR(160),HH$1)),FIND(CHAR(160),SUBSTITUTE($X207,\"}\",CHAR(160),HH$1))-FIND(CHAR(160),SUBSTITUTE($X207,\"{\",CHAR(160),HH$1))+1),\"\")","v":""},{"$f":"IFERROR(MID($X207,FIND(CHAR(160),SUBSTITUTE($X207,\"{\",CHAR(160),HI$1)),FIND(CHAR(160),SUBSTITUTE($X207,\"}\",CHAR(160),HI$1))-FIND(CHAR(160),SUBSTITUTE($X207,\"{\",CHAR(160),HI$1))+1),\"\")","v":"{Primary heating type}"},{"$f":"IFERROR(MID($X207,FIND(CHAR(160),SUBSTITUTE($X207,\"{\",CHAR(160),HJ$1)),FIND(CHAR(160),SUBSTITUTE($X207,\"}\",CHAR(160),HJ$1))-FIND(CHAR(160),SUBSTITUTE($X207,\"{\",CHAR(160),HJ$1))+1),\"\")","v":"{Primary heating type}"},{"$f":"IFERROR(MID($Y207,FIND(CHAR(160),SUBSTITUTE($Y207,\"{\",CHAR(160),HK$1)),FIND(CHAR(160),SUBSTITUTE($Y207,\"}\",CHAR(160),HK$1))-FIND(CHAR(160),SUBSTITUTE($Y207,\"{\",CHAR(160),HK$1))+1),\"\")","v":""},{"$f":"IFERROR(MID($Y207,FIND(CHAR(160),SUBSTITUTE($Y207,\"{\",CHAR(160),HL$1)),FIND(CHAR(160),SUBSTITUTE($Y207,\"}\",CHAR(160),HL$1))-FIND(CHAR(160),SUBSTITUTE($Y207,\"{\",CHAR(160),HL$1))+1),\"\")","v":""},{"$f":"IFERROR(MID($Y207,FIND(CHAR(160),SUBSTITUTE($Y207,\"{\",CHAR(160),HM$1)),FIND(CHAR(160),SUBSTITUTE($Y207,\"}\",CHAR(160),HM$1))-FIND(CHAR(160),SUBSTITUTE($Y207,\"{\",CHAR(160),HM$1))+1),\"\")","v":""},{"$f":"IFERROR(MID($Y207,FIND(CHAR(160),SUBSTITUTE($Y207,\"{\",CHAR(160),HN$1)),FIND(CHAR(160),SUBSTITUTE($Y207,\"}\",CHAR(160),HN$1))-FIND(CHAR(160),SUBSTITUTE($Y207,\"{\",CHAR(160),HN$1))+1),\"\")","v":""},{"$f":"IFERROR(MID($Y207,FIND(CHAR(160),SUBSTITUTE($Y207,\"{\",CHAR(160),HO$1)),FIND(CHAR(160),SUBSTITUTE($Y207,\"}\",CHAR(160),HO$1))-FIND(CHAR(160),SUBSTITUTE($Y207,\"{\",CHAR(160),HO$1))+1),\"\")","v":""},{"$f":"IFERROR(MID($Y207,FIND(CHAR(160),SUBSTITUTE($Y207,\"{\",CHAR(160),HP$1)),FIND(CHAR(160),SUBSTITUTE($Y207,\"}\",CHAR(160),HP$1))-FIND(CHAR(160),SUBSTITUTE($Y207,\"{\",CHAR(160),HP$1))+1),\"\")","v":""},{"$f":"IFERROR(MID($Y207,FIND(CHAR(160),SUBSTITUTE($Y207,\"{\",CHAR(160),HQ$1)),FIND(CHAR(160),SUBSTITUTE($Y207,\"}\",CHAR(160),HQ$1))-FIND(CHAR(160),SUBSTITUTE($Y207,\"{\",CHAR(160),HQ$1))+1),\"\")","v":""},{"$f":"IFERROR(MID($Y207,FIND(CHAR(160),SUBSTITUTE($Y207,\"{\",CHAR(160),HR$1)),FIND(CHAR(160),SUBSTITUTE($Y207,\"}\",CHAR(160),HR$1))-FIND(CHAR(160),SUBSTITUTE($Y207,\"{\",CHAR(160),HR$1))+1),\"\")","v":""},{"$f":"IFERROR(MID($Y207,FIND(CHAR(160),SUBSTITUTE($Y207,\"{\",CHAR(160),HS$1)),FIND(CHAR(160),SUBSTITUTE($Y207,\"}\",CHAR(160),HS$1))-FIND(CHAR(160),SUBSTITUTE($Y207,\"{\",CHAR(160),HS$1))+1),\"\")","v":"{Primary heating type}"},{"$f":"IFERROR(MID($Y207,FIND(CHAR(160),SUBSTITUTE($Y207,\"{\",CHAR(160),HT$1)),FIND(CHAR(160),SUBSTITUTE($Y207,\"}\",CHAR(160),HT$1))-FIND(CHAR(160),SUBSTITUTE($Y207,\"{\",CHAR(160),HT$1))+1),\"\")","v":"{Primary heating type}"},{"$f":"IFERROR(MID($Z207,FIND(CHAR(160),SUBSTITUTE($Z207,\"{\",CHAR(160),HU$1)),FIND(CHAR(160),SUBSTITUTE($Z207,\"}\",CHAR(160),HU$1))-FIND(CHAR(160),SUBSTITUTE($Z207,\"{\",CHAR(160),HU$1))+1),\"\")","v":""},{"$f":"IFERROR(MID($Z207,FIND(CHAR(160),SUBSTITUTE($Z207,\"{\",CHAR(160),HV$1)),FIND(CHAR(160),SUBSTITUTE($Z207,\"}\",CHAR(160),HV$1))-FIND(CHAR(160),SUBSTITUTE($Z207,\"{\",CHAR(160),HV$1))+1),\"\")","v":""},{"$f":"IFERROR(MID($Z207,FIND(CHAR(160),SUBSTITUTE($Z207,\"{\",CHAR(160),HW$1)),FIND(CHAR(160),SUBSTITUTE($Z207,\"}\",CHAR(160),HW$1))-FIND(CHAR(160),SUBSTITUTE($Z207,\"{\",CHAR(160),HW$1))+1),\"\")","v":""},{"$f":"IFERROR(MID($Z207,FIND(CHAR(160),SUBSTITUTE($Z207,\"{\",CHAR(160),HX$1)),FIND(CHAR(160),SUBSTITUTE($Z207,\"}\",CHAR(160),HX$1))-FIND(CHAR(160),SUBSTITUTE($Z207,\"{\",CHAR(160),HX$1))+1),\"\")","v":""},{"$f":"IFERROR(MID($Z207,FIND(CHAR(160),SUBSTITUTE($Z207,\"{\",CHAR(160),HY$1)),FIND(CHAR(160),SUBSTITUTE($Z207,\"}\",CHAR(160),HY$1))-FIND(CHAR(160),SUBSTITUTE($Z207,\"{\",CHAR(160),HY$1))+1),\"\")","v":""},{"$f":"IFERROR(MID($Z207,FIND(CHAR(160),SUBSTITUTE($Z207,\"{\",CHAR(160),HZ$1)),FIND(CHAR(160),SUBSTITUTE($Z207,\"}\",CHAR(160),HZ$1))-FIND(CHAR(160),SUBSTITUTE($Z207,\"{\",CHAR(160),HZ$1))+1),\"\")","v":""},{"$f":"IFERROR(MID($Z207,FIND(CHAR(160),SUBSTITUTE($Z207,\"{\",CHAR(160),IA$1)),FIND(CHAR(160),SUBSTITUTE($Z207,\"}\",CHAR(160),IA$1))-FIND(CHAR(160),SUBSTITUTE($Z207,\"{\",CHAR(160),IA$1))+1),\"\")","v":""},{"$f":"IFERROR(MID($Z207,FIND(CHAR(160),SUBSTITUTE($Z207,\"{\",CHAR(160),IB$1)),FIND(CHAR(160),SUBSTITUTE($Z207,\"}\",CHAR(160),IB$1))-FIND(CHAR(160),SUBSTITUTE($Z207,\"{\",CHAR(160),IB$1))+1),\"\")","v":""},{"$f":"IFERROR(MID($Z207,FIND(CHAR(160),SUBSTITUTE($Z207,\"{\",CHAR(160),IC$1)),FIND(CHAR(160),SUBSTITUTE($Z207,\"}\",CHAR(160),IC$1))-FIND(CHAR(160),SUBSTITUTE($Z207,\"{\",CHAR(160),IC$1))+1),\"\")","v":"{Primary heating type}"},{"$f":"IFERROR(MID($Z207,FIND(CHAR(160),SUBSTITUTE($Z207,\"{\",CHAR(160),ID$1)),FIND(CHAR(160),SUBSTITUTE($Z207,\"}\",CHAR(160),ID$1))-FIND(CHAR(160),SUBSTITUTE($Z207,\"{\",CHAR(160),ID$1))+1),\"\")","v":"{Primary heating type}"},{"$f":"IFERROR(MID($AA207,FIND(CHAR(160),SUBSTITUTE($AA207,\"{\",CHAR(160),IE$1)),FIND(CHAR(160),SUBSTITUTE($AA207,\"}\",CHAR(160),IE$1))-FIND(CHAR(160),SUBSTITUTE($AA207,\"{\",CHAR(160),IE$1))+1),\"\")","v":""},{"$f":"IFERROR(MID($AA207,FIND(CHAR(160),SUBSTITUTE($AA207,\"{\",CHAR(160),IF$1)),FIND(CHAR(160),SUBSTITUTE($AA207,\"}\",CHAR(160),IF$1))-FIND(CHAR(160),SUBSTITUTE($AA207,\"{\",CHAR(160),IF$1))+1),\"\")","v":""},{"$f":"IFERROR(MID($AA207,FIND(CHAR(160),SUBSTITUTE($AA207,\"{\",CHAR(160),IG$1)),FIND(CHAR(160),SUBSTITUTE($AA207,\"}\",CHAR(160),IG$1))-FIND(CHAR(160),SUBSTITUTE($AA207,\"{\",CHAR(160),IG$1))+1),\"\")","v":""},{"$f":"IFERROR(MID($AA207,FIND(CHAR(160),SUBSTITUTE($AA207,\"{\",CHAR(160),IH$1)),FIND(CHAR(160),SUBSTITUTE($AA207,\"}\",CHAR(160),IH$1))-FIND(CHAR(160),SUBSTITUTE($AA207,\"{\",CHAR(160),IH$1))+1),\"\")","v":""},{"$f":"IFERROR(MID($AA207,FIND(CHAR(160),SUBSTITUTE($AA207,\"{\",CHAR(160),II$1)),FIND(CHAR(160),SUBSTITUTE($AA207,\"}\",CHAR(160),II$1))-FIND(CHAR(160),SUBSTITUTE($AA207,\"{\",CHAR(160),II$1))+1),\"\")","v":""},{"$f":"IFERROR(MID($AA207,FIND(CHAR(160),SUBSTITUTE($AA207,\"{\",CHAR(160),IJ$1)),FIND(CHAR(160),SUBSTITUTE($AA207,\"}\",CHAR(160),IJ$1))-FIND(CHAR(160),SUBSTITUTE($AA207,\"{\",CHAR(160),IJ$1))+1),\"\")","v":""},{"$f":"IFERROR(MID($AA207,FIND(CHAR(160),SUBSTITUTE($AA207,\"{\",CHAR(160),IK$1)),FIND(CHAR(160),SUBSTITUTE($AA207,\"}\",CHAR(160),IK$1))-FIND(CHAR(160),SUBSTITUTE($AA207,\"{\",CHAR(160),IK$1))+1),\"\")","v":""},{"$f":"IFERROR(MID($AA207,FIND(CHAR(160),SUBSTITUTE($AA207,\"{\",CHAR(160),IL$1)),FIND(CHAR(160),SUBSTITUTE($AA207,\"}\",CHAR(160),IL$1))-FIND(CHAR(160),SUBSTITUTE($AA207,\"{\",CHAR(160),IL$1))+1),\"\")","v":""},{"$f":"IFERROR(MID($AA207,FIND(CHAR(160),SUBSTITUTE($AA207,\"{\",CHAR(160),IM$1)),FIND(CHAR(160),SUBSTITUTE($AA207,\"}\",CHAR(160),IM$1))-FIND(CHAR(160),SUBSTITUTE($AA207,\"{\",CHAR(160),IM$1))+1),\"\")","v":"{Primary heating type}"},{"$f":"IFERROR(MID($AA207,FIND(CHAR(160),SUBSTITUTE($AA207,\"{\",CHAR(160),IN$1)),FIND(CHAR(160),SUBSTITUTE($AA207,\"}\",CHAR(160),IN$1))-FIND(CHAR(160),SUBSTITUTE($AA207,\"{\",CHAR(160),IN$1))+1),\"\")","v":"{Primary heating type}"},{"$f":"IFERROR(MID($AB207,FIND(CHAR(160),SUBSTITUTE($AB207,\"{\",CHAR(160),IO$1)),FIND(CHAR(160),SUBSTITUTE($AB207,\"}\",CHAR(160),IO$1))-FIND(CHAR(160),SUBSTITUTE($AB207,\"{\",CHAR(160),IO$1))+1),\"\")","v":""},{"$f":"IFERROR(MID($AB207,FIND(CHAR(160),SUBSTITUTE($AB207,\"{\",CHAR(160),IP$1)),FIND(CHAR(160),SUBSTITUTE($AB207,\"}\",CHAR(160),IP$1))-FIND(CHAR(160),SUBSTITUTE($AB207,\"{\",CHAR(160),IP$1))+1),\"\")","v":""},{"$f":"IFERROR(MID($AB207,FIND(CHAR(160),SUBSTITUTE($AB207,\"{\",CHAR(160),IQ$1)),FIND(CHAR(160),SUBSTITUTE($AB207,\"}\",CHAR(160),IQ$1))-FIND(CHAR(160),SUBSTITUTE($AB207,\"{\",CHAR(160),IQ$1))+1),\"\")","v":""},{"$f":"IFERROR(MID($AB207,FIND(CHAR(160),SUBSTITUTE($AB207,\"{\",CHAR(160),IR$1)),FIND(CHAR(160),SUBSTITUTE($AB207,\"}\",CHAR(160),IR$1))-FIND(CHAR(160),SUBSTITUTE($AB207,\"{\",CHAR(160),IR$1))+1),\"\")","v":""},{"$f":"IFERROR(MID($AB207,FIND(CHAR(160),SUBSTITUTE($AB207,\"{\",CHAR(160),IS$1)),FIND(CHAR(160),SUBSTITUTE($AB207,\"}\",CHAR(160),IS$1))-FIND(CHAR(160),SUBSTITUTE($AB207,\"{\",CHAR(160),IS$1))+1),\"\")","v":""},{"$f":"IFERROR(MID($AB207,FIND(CHAR(160),SUBSTITUTE($AB207,\"{\",CHAR(160),IT$1)),FIND(CHAR(160),SUBSTITUTE($AB207,\"}\",CHAR(160),IT$1))-FIND(CHAR(160),SUBSTITUTE($AB207,\"{\",CHAR(160),IT$1))+1),\"\")","v":""},{"$f":"IFERROR(MID($AB207,FIND(CHAR(160),SUBSTITUTE($AB207,\"{\",CHAR(160),IU$1)),FIND(CHAR(160),SUBSTITUTE($AB207,\"}\",CHAR(160),IU$1))-FIND(CHAR(160),SUBSTITUTE($AB207,\"{\",CHAR(160),IU$1))+1),\"\")","v":""},{"$f":"IFERROR(MID($AB207,FIND(CHAR(160),SUBSTITUTE($AB207,\"{\",CHAR(160),IV$1)),FIND(CHAR(160),SUBSTITUTE($AB207,\"}\",CHAR(160),IV$1))-FIND(CHAR(160),SUBSTITUTE($AB207,\"{\",CHAR(160),IV$1))+1),\"\")","v":""},{"$f":"IFERROR(MID($AB207,FIND(CHAR(160),SUBSTITUTE($AB207,\"{\",CHAR(160),IW$1)),FIND(CHAR(160),SUBSTITUTE($AB207,\"}\",CHAR(160),IW$1))-FIND(CHAR(160),SUBSTITUTE($AB207,\"{\",CHAR(160),IW$1))+1),\"\")","v":""},{"$f":"IFERROR(MID($AB207,FIND(CHAR(160),SUBSTITUTE($AB207,\"{\",CHAR(160),IX$1)),FIND(CHAR(160),SUBSTITUTE($AB207,\"}\",CHAR(160),IX$1))-FIND(CHAR(160),SUBSTITUTE($AB207,\"{\",CHAR(160),IX$1))+1),\"\")","v":""},null,{"$f":"10-COUNTIF(DU207:ED207,\"\")","v":2}]
["Home Energy Savings Program - Other Fuels","Wall Insulation","BW","2021-07-01","2022-06-30","Per Measure",3752,0,"Calculated","if({Cost}*.3>1000,1000,Round({Cost}*.3,2))*{Measure:Quantity}",0,"2020-04-02","2022-06-30","Calculated","if({Primary heating type}=6,4879,if({Primary heating type}=0,216,32))",null,null,"if({Primary heating type}=6,0.068,if({Primary heating type}=0,0.068,0.068))",null,null,"if({Primary heating type}=6,1.202,if({Primary heating type}=0,0.046,0))","if({Primary heating type}=6,0.068,if({Primary heating type}=0,0.068,0.068))","if({Primary heating type}=1,20.034,if({Primary heating type}=0,1.793,0))*10","if({Primary heating type}=2,20.034,if({Primary heating type} = 0,2.610,0))","if({Primary heating type}=3,20.034,if({Primary heating type} = 0,13.628,0))","if({Primary heating type}=4,20.034,if({Primary heating type} = 0,0.279,0))","if({Primary heating type}=5,20.034,if({Primary heating type} = 0,0.857,0))",0,"2020-04-02","2022-06-30",25,1,1,0,0,0.66600000000000004,0.30099999999999999,1,1,1,0.3,2.9000000000000001E-2,null,{"$f":"DU208","v":"{Cost}"},3752,{"$f":"DV208","v":"{Measure:Quantity}"},1,{"$f":"DW208","v":"{Primary heating type}"},0,{"$f":"DX208","v":""},null,{"$f":"DY208","v":""},null,{"$f":"DZ208","v":""},null,{"$f":"EA208","v":""},null,{"$f":"EB208","v":""},null,{"$f":"EC208","v":""},null,{"$f":"ED208","v":""},null,{"$f":"IF(AW208=6,4879,IF(AW208=0,216,32))","v":216},0,0,{"$f":"IF(AW208=6,0.068,IF(AW208=0,0.068,0.068))","v":6.8000000000000005E-2},0,0,{"$f":"IF(AW208=6,1.202,IF(AW208=0,0.046,0))","v":4.5999999999999999E-2},{"$f":"IF(AW208=6,0.068,IF(AW208=0,0.068,0.068))","v":6.8000000000000005E-2},{"$f":"IF(AW208=1,20.034,IF(AW208=0,1.793,0))*10","v":17.93},{"$f":"IF(AW208=2,20.034,IF(AW208 = 0,2.61,0))","v":2.61},{"$f":"IF(AW208=3,20.034,IF(AW208 = 0,13.628,0))","v":13.628},{"$f":"IF(AW208=4,20.034,IF(AW208 = 0,0.279,0))","v":0.27900000000000003},{"$f":"IF(AW208=5,20.034,IF(AW208 = 0,0.857,0))","v":0.85699999999999998},{"$f":"0","v":0},null,"Res","RGGI DR",{"$f":"Benefits(BL208,BR208,BS208,BT208,BU208,BV208,BW208,BX208,BY208,BZ208,AE208,AH208,AI208,AJ208,AK208,AL208,AM208,AN208,AO208,AP208,CA208,CB208)","v":352.10518553017397},444.72758986281451,479.79284338734652,8241.7435472153447,198.15824111478724,2232.501190044949,345.63177233898824,0,0,{"$f":"SUMPRODUCT(CC208:CK208,--(CC208:CK208>0))","v":12294.660369494402},{"$f":"-SUMPRODUCT(CC208:CK208,--(CC208:CK208<0))","v":0},null,{"$f":"3752","v":3752},null,null,{"$f":"CM208+CO208","v":3752},{"$f":"IF(NetOrGross=\"Net\",(1-AO208+AP208),1)","v":1},{"$f":"(SUMPRODUCT(CC208:CJ208,--(CC208:CJ208>0))+CN208)*CS208/((-SUMPRODUCT(CC208:CJ208,--(CC208:CJ208<0))+MAX(CO208,CV208)+CP208+CQ208)*CS208+IF(FRIncentives=\"Yes\",CV208*(1-CS208),0))","v":3.2768284566882735},1,{"$f":"IF(AS208*0.3>1000,1000,ROUND(AS208*0.3,2))*AU208","v":1000},null,"RGGI","y",null,{"$f":"IF(F208=\"Manual Entry\",\"Manual\",IF(G208=\"\",0,\"X=\"&SUBSTITUTE(SUBSTITUTE(SUBSTITUTE(SUBSTITUTE(SUBSTITUTE(SUBSTITUTE(SUBSTITUTE(SUBSTITUTE(SUBSTITUTE(SUBSTITUTE(SUBSTITUTE(SUBSTITUTE(G208,$ED208,$ED$2&ROW($ED208)),$EC208,$EC$2&ROW($EC208)),$EB208,$EB$2&ROW($EB208)),$EA208,$EA$2&ROW($EA208)),$DZ208,$DZ$2&ROW($DZ208)),$DY208,$DY$2&ROW($DY208)),$DX208,$DX$2&ROW($DX208)),$DW208,$DW$2&ROW($DW208)),$DV208,$DV$2&ROW($DV208)),$DU208,$DU$2&ROW($DU208)),$DT208,$DT$2&ROW($DT208)),$DS208,$DS$2&ROW($DS208))))","v":"X=3752"},{"$f":"IF(I208=\"Manual Entry\",\"Manual\",IF(J208=\"\",0,\"X=\"&SUBSTITUTE(SUBSTITUTE(SUBSTITUTE(SUBSTITUTE(SUBSTITUTE(SUBSTITUTE(SUBSTITUTE(SUBSTITUTE(SUBSTITUTE(SUBSTITUTE(SUBSTITUTE(SUBSTITUTE(J208,$ED208,$ED$2&ROW($ED208)),$EC208,$EC$2&ROW($EC208)),$EB208,$EB$2&ROW($EB208)),$EA208,$EA$2&ROW($EA208)),$DZ208,$DZ$2&ROW($DZ208)),$DY208,$DY$2&ROW($DY208)),$DX208,$DX$2&ROW($DX208)),$DW208,$DW$2&ROW($DW208)),$DV208,$DV$2&ROW($DV208)),$DU208,$DU$2&ROW($DU208)),$DT208,$DT$2&ROW($DT208)),$DS208,$DS$2&ROW($DS208))))","v":"X=if(AS208*.3>1000,1000,Round(AS208*.3,2))*AU208"},{"$f":"IF(O208=\"\",0,\"X=\"&SUBSTITUTE(SUBSTITUTE(SUBSTITUTE(SUBSTITUTE(SUBSTITUTE(SUBSTITUTE(SUBSTITUTE(SUBSTITUTE(SUBSTITUTE(SUBSTITUTE(SUBSTITUTE(SUBSTITUTE(O208,$ED208,$ED$2&ROW($ED208)),$EC208,$EC$2&ROW($EC208)),$EB208,$EB$2&ROW($EB208)),$EA208,$EA$2&ROW($EA208)),$DZ208,$DZ$2&ROW($DZ208)),$DY208,$DY$2&ROW($DY208)),$DX208,$DX$2&ROW($DX208)),$DW208,$DW$2&ROW($DW208)),$DV208,$DV$2&ROW($DV208)),$DU208,$DU$2&ROW($DU208)),$DT208,$DT$2&ROW($DT208)),$DS208,$DS$2&ROW($DS208)))","v":"X=if(AW208=6,4879,if(AW208=0,216,32))"},{"$f":"IF(P208=\"\",0,\"X=\"&SUBSTITUTE(SUBSTITUTE(SUBSTITUTE(SUBSTITUTE(SUBSTITUTE(SUBSTITUTE(SUBSTITUTE(SUBSTITUTE(SUBSTITUTE(SUBSTITUTE(SUBSTITUTE(SUBSTITUTE(P208,$ED208,$ED$2&ROW($ED208)),$EC208,$EC$2&ROW($EC208)),$EB208,$EB$2&ROW($EB208)),$EA208,$EA$2&ROW($EA208)),$DZ208,$DZ$2&ROW($DZ208)),$DY208,$DY$2&ROW($DY208)),$DX208,$DX$2&ROW($DX208)),$DW208,$DW$2&ROW($DW208)),$DV208,$DV$2&ROW($DV208)),$DU208,$DU$2&ROW($DU208)),$DT208,$DT$2&ROW($DT208)),$DS208,$DS$2&ROW($DS208)))","v":0},{"$f":"IF(Q208=\"\",0,\"X=\"&SUBSTITUTE(SUBSTITUTE(SUBSTITUTE(SUBSTITUTE(SUBSTITUTE(SUBSTITUTE(SUBSTITUTE(SUBSTITUTE(SUBSTITUTE(SUBSTITUTE(SUBSTITUTE(SUBSTITUTE(Q208,$ED208,$ED$2&ROW($ED208)),$EC208,$EC$2&ROW($EC208)),$EB208,$EB$2&ROW($EB208)),$EA208,$EA$2&ROW($EA208)),$DZ208,$DZ$2&ROW($DZ208)),$DY208,$DY$2&ROW($DY208)),$DX208,$DX$2&ROW($DX208)),$DW208,$DW$2&ROW($DW208)),$DV208,$DV$2&ROW($DV208)),$DU208,$DU$2&ROW($DU208)),$DT208,$DT$2&ROW($DT208)),$DS208,$DS$2&ROW($DS208)))","v":0},{"$f":"IF(R208=\"\",0,\"X=\"&SUBSTITUTE(SUBSTITUTE(SUBSTITUTE(SUBSTITUTE(SUBSTITUTE(SUBSTITUTE(SUBSTITUTE(SUBSTITUTE(SUBSTITUTE(SUBSTITUTE(SUBSTITUTE(SUBSTITUTE(R208,$ED208,$ED$2&ROW($ED208)),$EC208,$EC$2&ROW($EC208)),$EB208,$EB$2&ROW($EB208)),$EA208,$EA$2&ROW($EA208)),$DZ208,$DZ$2&ROW($DZ208)),$DY208,$DY$2&ROW($DY208)),$DX208,$DX$2&ROW($DX208)),$DW208,$DW$2&ROW($DW208)),$DV208,$DV$2&ROW($DV208)),$DU208,$DU$2&ROW($DU208)),$DT208,$DT$2&ROW($DT208)),$DS208,$DS$2&ROW($DS208)))","v":"X=if(AW208=6,0.068,if(AW208=0,0.068,0.068))"},{"$f":"IF(S208=\"\",0,\"X=\"&SUBSTITUTE(SUBSTITUTE(SUBSTITUTE(SUBSTITUTE(SUBSTITUTE(SUBSTITUTE(SUBSTITUTE(SUBSTITUTE(SUBSTITUTE(SUBSTITUTE(SUBSTITUTE(SUBSTITUTE(S208,$ED208,$ED$2&ROW($ED208)),$EC208,$EC$2&ROW($EC208)),$EB208,$EB$2&ROW($EB208)),$EA208,$EA$2&ROW($EA208)),$DZ208,$DZ$2&ROW($DZ208)),$DY208,$DY$2&ROW($DY208)),$DX208,$DX$2&ROW($DX208)),$DW208,$DW$2&ROW($DW208)),$DV208,$DV$2&ROW($DV208)),$DU208,$DU$2&ROW($DU208)),$DT208,$DT$2&ROW($DT208)),$DS208,$DS$2&ROW($DS208)))","v":0},{"$f":"IF(T208=\"\",0,\"X=\"&SUBSTITUTE(SUBSTITUTE(SUBSTITUTE(SUBSTITUTE(SUBSTITUTE(SUBSTITUTE(SUBSTITUTE(SUBSTITUTE(SUBSTITUTE(SUBSTITUTE(SUBSTITUTE(SUBSTITUTE(T208,$ED208,$ED$2&ROW($ED208)),$EC208,$EC$2&ROW($EC208)),$EB208,$EB$2&ROW($EB208)),$EA208,$EA$2&ROW($EA208)),$DZ208,$DZ$2&ROW($DZ208)),$DY208,$DY$2&ROW($DY208)),$DX208,$DX$2&ROW($DX208)),$DW208,$DW$2&ROW($DW208)),$DV208,$DV$2&ROW($DV208)),$DU208,$DU$2&ROW($DU208)),$DT208,$DT$2&ROW($DT208)),$DS208,$DS$2&ROW($DS208)))","v":0},{"$f":"IF(U208=\"\",0,\"X=\"&SUBSTITUTE(SUBSTITUTE(SUBSTITUTE(SUBSTITUTE(SUBSTITUTE(SUBSTITUTE(SUBSTITUTE(SUBSTITUTE(SUBSTITUTE(SUBSTITUTE(SUBSTITUTE(SUBSTITUTE(U208,$ED208,$ED$2&ROW($ED208)),$EC208,$EC$2&ROW($EC208)),$EB208,$EB$2&ROW($EB208)),$EA208,$EA$2&ROW($EA208)),$DZ208,$DZ$2&ROW($DZ208)),$DY208,$DY$2&ROW($DY208)),$DX208,$DX$2&ROW($DX208)),$DW208,$DW$2&ROW($DW208)),$DV208,$DV$2&ROW($DV208)),$DU208,$DU$2&ROW($DU208)),$DT208,$DT$2&ROW($DT208)),$DS208,$DS$2&ROW($DS208)))","v":"X=if(AW208=6,1.202,if(AW208=0,0.046,0))"},{"$f":"IF(V208=\"\",0,\"X=\"&SUBSTITUTE(SUBSTITUTE(SUBSTITUTE(SUBSTITUTE(SUBSTITUTE(SUBSTITUTE(SUBSTITUTE(SUBSTITUTE(SUBSTITUTE(SUBSTITUTE(SUBSTITUTE(SUBSTITUTE(V208,$ED208,$ED$2&ROW($ED208)),$EC208,$EC$2&ROW($EC208)),$EB208,$EB$2&ROW($EB208)),$EA208,$EA$2&ROW($EA208)),$DZ208,$DZ$2&ROW($DZ208)),$DY208,$DY$2&ROW($DY208)),$DX208,$DX$2&ROW($DX208)),$DW208,$DW$2&ROW($DW208)),$DV208,$DV$2&ROW($DV208)),$DU208,$DU$2&ROW($DU208)),$DT208,$DT$2&ROW($DT208)),$DS208,$DS$2&ROW($DS208)))","v":"X=if(AW208=6,0.068,if(AW208=0,0.068,0.068))"},{"$f":"IF(W208=\"\",0,\"X=\"&SUBSTITUTE(SUBSTITUTE(SUBSTITUTE(SUBSTITUTE(SUBSTITUTE(SUBSTITUTE(SUBSTITUTE(SUBSTITUTE(SUBSTITUTE(SUBSTITUTE(SUBSTITUTE(SUBSTITUTE(W208,$ED208,$ED$2&ROW($ED208)),$EC208,$EC$2&ROW($EC208)),$EB208,$EB$2&ROW($EB208)),$EA208,$EA$2&ROW($EA208)),$DZ208,$DZ$2&ROW($DZ208)),$DY208,$DY$2&ROW($DY208)),$DX208,$DX$2&ROW($DX208)),$DW208,$DW$2&ROW($DW208)),$DV208,$DV$2&ROW($DV208)),$DU208,$DU$2&ROW($DU208)),$DT208,$DT$2&ROW($DT208)),$DS208,$DS$2&ROW($DS208)))","v":"X=if(AW208=1,20.034,if(AW208=0,1.793,0))*10"},{"$f":"IF(X208=\"\",0,\"X=\"&SUBSTITUTE(SUBSTITUTE(SUBSTITUTE(SUBSTITUTE(SUBSTITUTE(SUBSTITUTE(SUBSTITUTE(SUBSTITUTE(SUBSTITUTE(SUBSTITUTE(SUBSTITUTE(SUBSTITUTE(X208,$ED208,$ED$2&ROW($ED208)),$EC208,$EC$2&ROW($EC208)),$EB208,$EB$2&ROW($EB208)),$EA208,$EA$2&ROW($EA208)),$DZ208,$DZ$2&ROW($DZ208)),$DY208,$DY$2&ROW($DY208)),$DX208,$DX$2&ROW($DX208)),$DW208,$DW$2&ROW($DW208)),$DV208,$DV$2&ROW($DV208)),$DU208,$DU$2&ROW($DU208)),$DT208,$DT$2&ROW($DT208)),$DS208,$DS$2&ROW($DS208)))","v":"X=if(AW208=2,20.034,if(AW208 = 0,2.610,0))"},{"$f":"IF(Y208=\"\",0,\"X=\"&SUBSTITUTE(SUBSTITUTE(SUBSTITUTE(SUBSTITUTE(SUBSTITUTE(SUBSTITUTE(SUBSTITUTE(SUBSTITUTE(SUBSTITUTE(SUBSTITUTE(SUBSTITUTE(SUBSTITUTE(Y208,$ED208,$ED$2&ROW($ED208)),$EC208,$EC$2&ROW($EC208)),$EB208,$EB$2&ROW($EB208)),$EA208,$EA$2&ROW($EA208)),$DZ208,$DZ$2&ROW($DZ208)),$DY208,$DY$2&ROW($DY208)),$DX208,$DX$2&ROW($DX208)),$DW208,$DW$2&ROW($DW208)),$DV208,$DV$2&ROW($DV208)),$DU208,$DU$2&ROW($DU208)),$DT208,$DT$2&ROW($DT208)),$DS208,$DS$2&ROW($DS208)))","v":"X=if(AW208=3,20.034,if(AW208 = 0,13.628,0))"},{"$f":"IF(Z208=\"\",0,\"X=\"&SUBSTITUTE(SUBSTITUTE(SUBSTITUTE(SUBSTITUTE(SUBSTITUTE(SUBSTITUTE(SUBSTITUTE(SUBSTITUTE(SUBSTITUTE(SUBSTITUTE(SUBSTITUTE(SUBSTITUTE(Z208,$ED208,$ED$2&ROW($ED208)),$EC208,$EC$2&ROW($EC208)),$EB208,$EB$2&ROW($EB208)),$EA208,$EA$2&ROW($EA208)),$DZ208,$DZ$2&ROW($DZ208)),$DY208,$DY$2&ROW($DY208)),$DX208,$DX$2&ROW($DX208)),$DW208,$DW$2&ROW($DW208)),$DV208,$DV$2&ROW($DV208)),$DU208,$DU$2&ROW($DU208)),$DT208,$DT$2&ROW($DT208)),$DS208,$DS$2&ROW($DS208)))","v":"X=if(AW208=4,20.034,if(AW208 = 0,0.279,0))"},{"$f":"IF(AA208=\"\",0,\"X=\"&SUBSTITUTE(SUBSTITUTE(SUBSTITUTE(SUBSTITUTE(SUBSTITUTE(SUBSTITUTE(SUBSTITUTE(SUBSTITUTE(SUBSTITUTE(SUBSTITUTE(SUBSTITUTE(SUBSTITUTE(AA208,$ED208,$ED$2&ROW($ED208)),$EC208,$EC$2&ROW($EC208)),$EB208,$EB$2&ROW($EB208)),$EA208,$EA$2&ROW($EA208)),$DZ208,$DZ$2&ROW($DZ208)),$DY208,$DY$2&ROW($DY208)),$DX208,$DX$2&ROW($DX208)),$DW208,$DW$2&ROW($DW208)),$DV208,$DV$2&ROW($DV208)),$DU208,$DU$2&ROW($DU208)),$DT208,$DT$2&ROW($DT208)),$DS208,$DS$2&ROW($DS208)))","v":"X=if(AW208=5,20.034,if(AW208 = 0,0.857,0))"},{"$f":"IF(AB208=\"\",0,\"X=\"&SUBSTITUTE(SUBSTITUTE(SUBSTITUTE(SUBSTITUTE(SUBSTITUTE(SUBSTITUTE(SUBSTITUTE(SUBSTITUTE(SUBSTITUTE(SUBSTITUTE(SUBSTITUTE(SUBSTITUTE(AB208,$ED208,$ED$2&ROW($ED208)),$EC208,$EC$2&ROW($EC208)),$EB208,$EB$2&ROW($EB208)),$EA208,$EA$2&ROW($EA208)),$DZ208,$DZ$2&ROW($DZ208)),$DY208,$DY$2&ROW($DY208)),$DX208,$DX$2&ROW($DX208)),$DW208,$DW$2&ROW($DW208)),$DV208,$DV$2&ROW($DV208)),$DU208,$DU$2&ROW($DU208)),$DT208,$DT$2&ROW($DT208)),$DS208,$DS$2&ROW($DS208)))","v":"X=0"},null,null,"{Factor:WinterCF}","{Factor:SummerCF}",{"$f":"IFERROR(INDEX($EG208:$IV208,MATCH(0,COUNTIF($DR208:DT208,$EG208:$IV208),0)),\"\")","v":"{Cost}"},{"$f":"IFERROR(INDEX($EG208:$IV208,MATCH(0,COUNTIF($DR208:DU208,$EG208:$IV208),0)),\"\")","v":"{Measure:Quantity}"},{"$f":"IFERROR(INDEX($EG208:$IV208,MATCH(0,COUNTIF($DR208:DV208,$EG208:$IV208),0)),\"\")","v":"{Primary heating type}"},{"$f":"IFERROR(INDEX($EG208:$IV208,MATCH(0,COUNTIF($DR208:DW208,$EG208:$IV208),0)),\"\")","v":""},{"$f":"IFERROR(INDEX($EG208:$IV208,MATCH(0,COUNTIF($DR208:DX208,$EG208:$IV208),0)),\"\")","v":""},{"$f":"IFERROR(INDEX($EG208:$IV208,MATCH(0,COUNTIF($DR208:DY208,$EG208:$IV208),0)),\"\")","v":""},{"$f":"IFERROR(INDEX($EG208:$IV208,MATCH(0,COUNTIF($DR208:DZ208,$EG208:$IV208),0)),\"\")","v":""},{"$f":"IFERROR(INDEX($EG208:$IV208,MATCH(0,COUNTIF($DR208:EA208,$EG208:$IV208),0)),\"\")","v":""},{"$f":"IFERROR(INDEX($EG208:$IV208,MATCH(0,COUNTIF($DR208:EB208,$EG208:$IV208),0)),\"\")","v":""},{"$f":"IFERROR(INDEX($EG208:$IV208,MATCH(0,COUNTIF($DR208:EC208,$EG208:$IV208),0)),\"\")","v":""},null,null,{"$f":"IFERROR(MID($G208,FIND(CHAR(160),SUBSTITUTE($G208,\"{\",CHAR(160),EG$1)),FIND(CHAR(160),SUBSTITUTE($G208,\"}\",CHAR(160),EG$1))-FIND(CHAR(160),SUBSTITUTE($G208,\"{\",CHAR(160),EG$1))+1),\"\")","v":""},{"$f":"IFERROR(MID($G208,FIND(CHAR(160),SUBSTITUTE($G208,\"{\",CHAR(160),EH$1)),FIND(CHAR(160),SUBSTITUTE($G208,\"}\",CHAR(160),EH$1))-FIND(CHAR(160),SUBSTITUTE($G208,\"{\",CHAR(160),EH$1))+1),\"\")","v":""},{"$f":"IFERROR(MID($G208,FIND(CHAR(160),SUBSTITUTE($G208,\"{\",CHAR(160),EI$1)),FIND(CHAR(160),SUBSTITUTE($G208,\"}\",CHAR(160),EI$1))-FIND(CHAR(160),SUBSTITUTE($G208,\"{\",CHAR(160),EI$1))+1),\"\")","v":""},{"$f":"IFERROR(MID($G208,FIND(CHAR(160),SUBSTITUTE($G208,\"{\",CHAR(160),EJ$1)),FIND(CHAR(160),SUBSTITUTE($G208,\"}\",CHAR(160),EJ$1))-FIND(CHAR(160),SUBSTITUTE($G208,\"{\",CHAR(160),EJ$1))+1),\"\")","v":""},{"$f":"IFERROR(MID($G208,FIND(CHAR(160),SUBSTITUTE($G208,\"{\",CHAR(160),EK$1)),FIND(CHAR(160),SUBSTITUTE($G208,\"}\",CHAR(160),EK$1))-FIND(CHAR(160),SUBSTITUTE($G208,\"{\",CHAR(160),EK$1))+1),\"\")","v":""},{"$f":"IFERROR(MID($G208,FIND(CHAR(160),SUBSTITUTE($G208,\"{\",CHAR(160),EL$1)),FIND(CHAR(160),SUBSTITUTE($G208,\"}\",CHAR(160),EL$1))-FIND(CHAR(160),SUBSTITUTE($G208,\"{\",CHAR(160),EL$1))+1),\"\")","v":""},{"$f":"IFERROR(MID($G208,FIND(CHAR(160),SUBSTITUTE($G208,\"{\",CHAR(160),EM$1)),FIND(CHAR(160),SUBSTITUTE($G208,\"}\",CHAR(160),EM$1))-FIND(CHAR(160),SUBSTITUTE($G208,\"{\",CHAR(160),EM$1))+1),\"\")","v":""},{"$f":"IFERROR(MID($G208,FIND(CHAR(160),SUBSTITUTE($G208,\"{\",CHAR(160),EN$1)),FIND(CHAR(160),SUBSTITUTE($G208,\"}\",CHAR(160),EN$1))-FIND(CHAR(160),SUBSTITUTE($G208,\"{\",CHAR(160),EN$1))+1),\"\")","v":""},{"$f":"IFERROR(MID($G208,FIND(CHAR(160),SUBSTITUTE($G208,\"{\",CHAR(160),EO$1)),FIND(CHAR(160),SUBSTITUTE($G208,\"}\",CHAR(160),EO$1))-FIND(CHAR(160),SUBSTITUTE($G208,\"{\",CHAR(160),EO$1))+1),\"\")","v":""},{"$f":"IFERROR(MID($G208,FIND(CHAR(160),SUBSTITUTE($G208,\"{\",CHAR(160),EP$1)),FIND(CHAR(160),SUBSTITUTE($G208,\"}\",CHAR(160),EP$1))-FIND(CHAR(160),SUBSTITUTE($G208,\"{\",CHAR(160),EP$1))+1),\"\")","v":""},{"$f":"IFERROR(MID($J208,FIND(CHAR(160),SUBSTITUTE($J208,\"{\",CHAR(160),EQ$1)),FIND(CHAR(160),SUBSTITUTE($J208,\"}\",CHAR(160),EQ$1))-FIND(CHAR(160),SUBSTITUTE($J208,\"{\",CHAR(160),EQ$1))+1),\"\")","v":"{Cost}"},{"$f":"IFERROR(MID($J208,FIND(CHAR(160),SUBSTITUTE($J208,\"{\",CHAR(160),ER$1)),FIND(CHAR(160),SUBSTITUTE($J208,\"}\",CHAR(160),ER$1))-FIND(CHAR(160),SUBSTITUTE($J208,\"{\",CHAR(160),ER$1))+1),\"\")","v":"{Cost}"},{"$f":"IFERROR(MID($J208,FIND(CHAR(160),SUBSTITUTE($J208,\"{\",CHAR(160),ES$1)),FIND(CHAR(160),SUBSTITUTE($J208,\"}\",CHAR(160),ES$1))-FIND(CHAR(160),SUBSTITUTE($J208,\"{\",CHAR(160),ES$1))+1),\"\")","v":"{Measure:Quantity}"},{"$f":"IFERROR(MID($J208,FIND(CHAR(160),SUBSTITUTE($J208,\"{\",CHAR(160),ET$1)),FIND(CHAR(160),SUBSTITUTE($J208,\"}\",CHAR(160),ET$1))-FIND(CHAR(160),SUBSTITUTE($J208,\"{\",CHAR(160),ET$1))+1),\"\")","v":""},{"$f":"IFERROR(MID($J208,FIND(CHAR(160),SUBSTITUTE($J208,\"{\",CHAR(160),EU$1)),FIND(CHAR(160),SUBSTITUTE($J208,\"}\",CHAR(160),EU$1))-FIND(CHAR(160),SUBSTITUTE($J208,\"{\",CHAR(160),EU$1))+1),\"\")","v":""},{"$f":"IFERROR(MID($J208,FIND(CHAR(160),SUBSTITUTE($J208,\"{\",CHAR(160),EV$1)),FIND(CHAR(160),SUBSTITUTE($J208,\"}\",CHAR(160),EV$1))-FIND(CHAR(160),SUBSTITUTE($J208,\"{\",CHAR(160),EV$1))+1),\"\")","v":""},{"$f":"IFERROR(MID($J208,FIND(CHAR(160),SUBSTITUTE($J208,\"{\",CHAR(160),EW$1)),FIND(CHAR(160),SUBSTITUTE($J208,\"}\",CHAR(160),EW$1))-FIND(CHAR(160),SUBSTITUTE($J208,\"{\",CHAR(160),EW$1))+1),\"\")","v":""},{"$f":"IFERROR(MID($J208,FIND(CHAR(160),SUBSTITUTE($J208,\"{\",CHAR(160),EX$1)),FIND(CHAR(160),SUBSTITUTE($J208,\"}\",CHAR(160),EX$1))-FIND(CHAR(160),SUBSTITUTE($J208,\"{\",CHAR(160),EX$1))+1),\"\")","v":""},{"$f":"IFERROR(MID($J208,FIND(CHAR(160),SUBSTITUTE($J208,\"{\",CHAR(160),EY$1)),FIND(CHAR(160),SUBSTITUTE($J208,\"}\",CHAR(160),EY$1))-FIND(CHAR(160),SUBSTITUTE($J208,\"{\",CHAR(160),EY$1))+1),\"\")","v":""},{"$f":"IFERROR(MID($J208,FIND(CHAR(160),SUBSTITUTE($J208,\"{\",CHAR(160),EZ$1)),FIND(CHAR(160),SUBSTITUTE($J208,\"}\",CHAR(160),EZ$1))-FIND(CHAR(160),SUBSTITUTE($J208,\"{\",CHAR(160),EZ$1))+1),\"\")","v":""},{"$f":"IFERROR(MID($J208,FIND(CHAR(160),SUBSTITUTE($J208,\"{\",CHAR(160),FA$1)),FIND(CHAR(160),SUBSTITUTE($J208,\"}\",CHAR(160),FA$1))-FIND(CHAR(160),SUBSTITUTE($J208,\"{\",CHAR(160),FA$1))+1),\"\")","v":"{Cost}"},{"$f":"IFERROR(MID($J208,FIND(CHAR(160),SUBSTITUTE($J208,\"{\",CHAR(160),FB$1)),FIND(CHAR(160),SUBSTITUTE($J208,\"}\",CHAR(160),FB$1))-FIND(CHAR(160),SUBSTITUTE($J208,\"{\",CHAR(160),FB$1))+1),\"\")","v":"{Cost}"},{"$f":"IFERROR(MID($O208,FIND(CHAR(160),SUBSTITUTE($O208,\"{\",CHAR(160),FC$1)),FIND(CHAR(160),SUBSTITUTE($O208,\"}\",CHAR(160),FC$1))-FIND(CHAR(160),SUBSTITUTE($O208,\"{\",CHAR(160),FC$1))+1),\"\")","v":""},{"$f":"IFERROR(MID($O208,FIND(CHAR(160),SUBSTITUTE($O208,\"{\",CHAR(160),FD$1)),FIND(CHAR(160),SUBSTITUTE($O208,\"}\",CHAR(160),FD$1))-FIND(CHAR(160),SUBSTITUTE($O208,\"{\",CHAR(160),FD$1))+1),\"\")","v":""},{"$f":"IFERROR(MID($O208,FIND(CHAR(160),SUBSTITUTE($O208,\"{\",CHAR(160),FE$1)),FIND(CHAR(160),SUBSTITUTE($O208,\"}\",CHAR(160),FE$1))-FIND(CHAR(160),SUBSTITUTE($O208,\"{\",CHAR(160),FE$1))+1),\"\")","v":""},{"$f":"IFERROR(MID($O208,FIND(CHAR(160),SUBSTITUTE($O208,\"{\",CHAR(160),FF$1)),FIND(CHAR(160),SUBSTITUTE($O208,\"}\",CHAR(160),FF$1))-FIND(CHAR(160),SUBSTITUTE($O208,\"{\",CHAR(160),FF$1))+1),\"\")","v":""},{"$f":"IFERROR(MID($O208,FIND(CHAR(160),SUBSTITUTE($O208,\"{\",CHAR(160),FG$1)),FIND(CHAR(160),SUBSTITUTE($O208,\"}\",CHAR(160),FG$1))-FIND(CHAR(160),SUBSTITUTE($O208,\"{\",CHAR(160),FG$1))+1),\"\")","v":""},{"$f":"IFERROR(MID($O208,FIND(CHAR(160),SUBSTITUTE($O208,\"{\",CHAR(160),FH$1)),FIND(CHAR(160),SUBSTITUTE($O208,\"}\",CHAR(160),FH$1))-FIND(CHAR(160),SUBSTITUTE($O208,\"{\",CHAR(160),FH$1))+1),\"\")","v":""},{"$f":"IFERROR(MID($O208,FIND(CHAR(160),SUBSTITUTE($O208,\"{\",CHAR(160),FI$1)),FIND(CHAR(160),SUBSTITUTE($O208,\"}\",CHAR(160),FI$1))-FIND(CHAR(160),SUBSTITUTE($O208,\"{\",CHAR(160),FI$1))+1),\"\")","v":""},{"$f":"IFERROR(MID($O208,FIND(CHAR(160),SUBSTITUTE($O208,\"{\",CHAR(160),FJ$1)),FIND(CHAR(160),SUBSTITUTE($O208,\"}\",CHAR(160),FJ$1))-FIND(CHAR(160),SUBSTITUTE($O208,\"{\",CHAR(160),FJ$1))+1),\"\")","v":""},{"$f":"IFERROR(MID($O208,FIND(CHAR(160),SUBSTITUTE($O208,\"{\",CHAR(160),FK$1)),FIND(CHAR(160),SUBSTITUTE($O208,\"}\",CHAR(160),FK$1))-FIND(CHAR(160),SUBSTITUTE($O208,\"{\",CHAR(160),FK$1))+1),\"\")","v":"{Primary heating type}"},{"$f":"IFERROR(MID($O208,FIND(CHAR(160),SUBSTITUTE($O208,\"{\",CHAR(160),FL$1)),FIND(CHAR(160),SUBSTITUTE($O208,\"}\",CHAR(160),FL$1))-FIND(CHAR(160),SUBSTITUTE($O208,\"{\",CHAR(160),FL$1))+1),\"\")","v":"{Primary heating type}"},{"$f":"IFERROR(MID($R208,FIND(CHAR(160),SUBSTITUTE($R208,\"{\",CHAR(160),FM$1)),FIND(CHAR(160),SUBSTITUTE($R208,\"}\",CHAR(160),FM$1))-FIND(CHAR(160),SUBSTITUTE($R208,\"{\",CHAR(160),FM$1))+1),\"\")","v":""},{"$f":"IFERROR(MID($R208,FIND(CHAR(160),SUBSTITUTE($R208,\"{\",CHAR(160),FN$1)),FIND(CHAR(160),SUBSTITUTE($R208,\"}\",CHAR(160),FN$1))-FIND(CHAR(160),SUBSTITUTE($R208,\"{\",CHAR(160),FN$1))+1),\"\")","v":""},{"$f":"IFERROR(MID($R208,FIND(CHAR(160),SUBSTITUTE($R208,\"{\",CHAR(160),FO$1)),FIND(CHAR(160),SUBSTITUTE($R208,\"}\",CHAR(160),FO$1))-FIND(CHAR(160),SUBSTITUTE($R208,\"{\",CHAR(160),FO$1))+1),\"\")","v":""},{"$f":"IFERROR(MID($R208,FIND(CHAR(160),SUBSTITUTE($R208,\"{\",CHAR(160),FP$1)),FIND(CHAR(160),SUBSTITUTE($R208,\"}\",CHAR(160),FP$1))-FIND(CHAR(160),SUBSTITUTE($R208,\"{\",CHAR(160),FP$1))+1),\"\")","v":""},{"$f":"IFERROR(MID($R208,FIND(CHAR(160),SUBSTITUTE($R208,\"{\",CHAR(160),FQ$1)),FIND(CHAR(160),SUBSTITUTE($R208,\"}\",CHAR(160),FQ$1))-FIND(CHAR(160),SUBSTITUTE($R208,\"{\",CHAR(160),FQ$1))+1),\"\")","v":""},{"$f":"IFERROR(MID($R208,FIND(CHAR(160),SUBSTITUTE($R208,\"{\",CHAR(160),FR$1)),FIND(CHAR(160),SUBSTITUTE($R208,\"}\",CHAR(160),FR$1))-FIND(CHAR(160),SUBSTITUTE($R208,\"{\",CHAR(160),FR$1))+1),\"\")","v":""},{"$f":"IFERROR(MID($R208,FIND(CHAR(160),SUBSTITUTE($R208,\"{\",CHAR(160),FS$1)),FIND(CHAR(160),SUBSTITUTE($R208,\"}\",CHAR(160),FS$1))-FIND(CHAR(160),SUBSTITUTE($R208,\"{\",CHAR(160),FS$1))+1),\"\")","v":""},{"$f":"IFERROR(MID($R208,FIND(CHAR(160),SUBSTITUTE($R208,\"{\",CHAR(160),FT$1)),FIND(CHAR(160),SUBSTITUTE($R208,\"}\",CHAR(160),FT$1))-FIND(CHAR(160),SUBSTITUTE($R208,\"{\",CHAR(160),FT$1))+1),\"\")","v":""},{"$f":"IFERROR(MID($R208,FIND(CHAR(160),SUBSTITUTE($R208,\"{\",CHAR(160),FU$1)),FIND(CHAR(160),SUBSTITUTE($R208,\"}\",CHAR(160),FU$1))-FIND(CHAR(160),SUBSTITUTE($R208,\"{\",CHAR(160),FU$1))+1),\"\")","v":"{Primary heating type}"},{"$f":"IFERROR(MID($R208,FIND(CHAR(160),SUBSTITUTE($R208,\"{\",CHAR(160),FV$1)),FIND(CHAR(160),SUBSTITUTE($R208,\"}\",CHAR(160),FV$1))-FIND(CHAR(160),SUBSTITUTE($R208,\"{\",CHAR(160),FV$1))+1),\"\")","v":"{Primary heating type}"},{"$f":"IFERROR(MID($U208,FIND(CHAR(160),SUBSTITUTE($U208,\"{\",CHAR(160),FW$1)),FIND(CHAR(160),SUBSTITUTE($U208,\"}\",CHAR(160),FW$1))-FIND(CHAR(160),SUBSTITUTE($U208,\"{\",CHAR(160),FW$1))+1),\"\")","v":""},{"$f":"IFERROR(MID($U208,FIND(CHAR(160),SUBSTITUTE($U208,\"{\",CHAR(160),FX$1)),FIND(CHAR(160),SUBSTITUTE($U208,\"}\",CHAR(160),FX$1))-FIND(CHAR(160),SUBSTITUTE($U208,\"{\",CHAR(160),FX$1))+1),\"\")","v":""},{"$f":"IFERROR(MID($U208,FIND(CHAR(160),SUBSTITUTE($U208,\"{\",CHAR(160),FY$1)),FIND(CHAR(160),SUBSTITUTE($U208,\"}\",CHAR(160),FY$1))-FIND(CHAR(160),SUBSTITUTE($U208,\"{\",CHAR(160),FY$1))+1),\"\")","v":""},{"$f":"IFERROR(MID($U208,FIND(CHAR(160),SUBSTITUTE($U208,\"{\",CHAR(160),FZ$1)),FIND(CHAR(160),SUBSTITUTE($U208,\"}\",CHAR(160),FZ$1))-FIND(CHAR(160),SUBSTITUTE($U208,\"{\",CHAR(160),FZ$1))+1),\"\")","v":""},{"$f":"IFERROR(MID($U208,FIND(CHAR(160),SUBSTITUTE($U208,\"{\",CHAR(160),GA$1)),FIND(CHAR(160),SUBSTITUTE($U208,\"}\",CHAR(160),GA$1))-FIND(CHAR(160),SUBSTITUTE($U208,\"{\",CHAR(160),GA$1))+1),\"\")","v":""},{"$f":"IFERROR(MID($U208,FIND(CHAR(160),SUBSTITUTE($U208,\"{\",CHAR(160),GB$1)),FIND(CHAR(160),SUBSTITUTE($U208,\"}\",CHAR(160),GB$1))-FIND(CHAR(160),SUBSTITUTE($U208,\"{\",CHAR(160),GB$1))+1),\"\")","v":""},{"$f":"IFERROR(MID($U208,FIND(CHAR(160),SUBSTITUTE($U208,\"{\",CHAR(160),GC$1)),FIND(CHAR(160),SUBSTITUTE($U208,\"}\",CHAR(160),GC$1))-FIND(CHAR(160),SUBSTITUTE($U208,\"{\",CHAR(160),GC$1))+1),\"\")","v":""},{"$f":"IFERROR(MID($U208,FIND(CHAR(160),SUBSTITUTE($U208,\"{\",CHAR(160),GD$1)),FIND(CHAR(160),SUBSTITUTE($U208,\"}\",CHAR(160),GD$1))-FIND(CHAR(160),SUBSTITUTE($U208,\"{\",CHAR(160),GD$1))+1),\"\")","v":""},{"$f":"IFERROR(MID($U208,FIND(CHAR(160),SUBSTITUTE($U208,\"{\",CHAR(160),GE$1)),FIND(CHAR(160),SUBSTITUTE($U208,\"}\",CHAR(160),GE$1))-FIND(CHAR(160),SUBSTITUTE($U208,\"{\",CHAR(160),GE$1))+1),\"\")","v":"{Primary heating type}"},{"$f":"IFERROR(MID($U208,FIND(CHAR(160),SUBSTITUTE($U208,\"{\",CHAR(160),GF$1)),FIND(CHAR(160),SUBSTITUTE($U208,\"}\",CHAR(160),GF$1))-FIND(CHAR(160),SUBSTITUTE($U208,\"{\",CHAR(160),GF$1))+1),\"\")","v":"{Primary heating type}"},{"$f":"IFERROR(MID($V208,FIND(CHAR(160),SUBSTITUTE($V208,\"{\",CHAR(160),GG$1)),FIND(CHAR(160),SUBSTITUTE($V208,\"}\",CHAR(160),GG$1))-FIND(CHAR(160),SUBSTITUTE($V208,\"{\",CHAR(160),GG$1))+1),\"\")","v":""},{"$f":"IFERROR(MID($V208,FIND(CHAR(160),SUBSTITUTE($V208,\"{\",CHAR(160),GH$1)),FIND(CHAR(160),SUBSTITUTE($V208,\"}\",CHAR(160),GH$1))-FIND(CHAR(160),SUBSTITUTE($V208,\"{\",CHAR(160),GH$1))+1),\"\")","v":""},{"$f":"IFERROR(MID($V208,FIND(CHAR(160),SUBSTITUTE($V208,\"{\",CHAR(160),GI$1)),FIND(CHAR(160),SUBSTITUTE($V208,\"}\",CHAR(160),GI$1))-FIND(CHAR(160),SUBSTITUTE($V208,\"{\",CHAR(160),GI$1))+1),\"\")","v":""},{"$f":"IFERROR(MID($V208,FIND(CHAR(160),SUBSTITUTE($V208,\"{\",CHAR(160),GJ$1)),FIND(CHAR(160),SUBSTITUTE($V208,\"}\",CHAR(160),GJ$1))-FIND(CHAR(160),SUBSTITUTE($V208,\"{\",CHAR(160),GJ$1))+1),\"\")","v":""},{"$f":"IFERROR(MID($V208,FIND(CHAR(160),SUBSTITUTE($V208,\"{\",CHAR(160),GK$1)),FIND(CHAR(160),SUBSTITUTE($V208,\"}\",CHAR(160),GK$1))-FIND(CHAR(160),SUBSTITUTE($V208,\"{\",CHAR(160),GK$1))+1),\"\")","v":""},{"$f":"IFERROR(MID($V208,FIND(CHAR(160),SUBSTITUTE($V208,\"{\",CHAR(160),GL$1)),FIND(CHAR(160),SUBSTITUTE($V208,\"}\",CHAR(160),GL$1))-FIND(CHAR(160),SUBSTITUTE($V208,\"{\",CHAR(160),GL$1))+1),\"\")","v":""},{"$f":"IFERROR(MID($V208,FIND(CHAR(160),SUBSTITUTE($V208,\"{\",CHAR(160),GM$1)),FIND(CHAR(160),SUBSTITUTE($V208,\"}\",CHAR(160),GM$1))-FIND(CHAR(160),SUBSTITUTE($V208,\"{\",CHAR(160),GM$1))+1),\"\")","v":""},{"$f":"IFERROR(MID($V208,FIND(CHAR(160),SUBSTITUTE($V208,\"{\",CHAR(160),GN$1)),FIND(CHAR(160),SUBSTITUTE($V208,\"}\",CHAR(160),GN$1))-FIND(CHAR(160),SUBSTITUTE($V208,\"{\",CHAR(160),GN$1))+1),\"\")","v":""},{"$f":"IFERROR(MID($V208,FIND(CHAR(160),SUBSTITUTE($V208,\"{\",CHAR(160),GO$1)),FIND(CHAR(160),SUBSTITUTE($V208,\"}\",CHAR(160),GO$1))-FIND(CHAR(160),SUBSTITUTE($V208,\"{\",CHAR(160),GO$1))+1),\"\")","v":"{Primary heating type}"},{"$f":"IFERROR(MID($V208,FIND(CHAR(160),SUBSTITUTE($V208,\"{\",CHAR(160),GP$1)),FIND(CHAR(160),SUBSTITUTE($V208,\"}\",CHAR(160),GP$1))-FIND(CHAR(160),SUBSTITUTE($V208,\"{\",CHAR(160),GP$1))+1),\"\")","v":"{Primary heating type}"},{"$f":"IFERROR(MID($W208,FIND(CHAR(160),SUBSTITUTE($W208,\"{\",CHAR(160),GQ$1)),FIND(CHAR(160),SUBSTITUTE($W208,\"}\",CHAR(160),GQ$1))-FIND(CHAR(160),SUBSTITUTE($W208,\"{\",CHAR(160),GQ$1))+1),\"\")","v":""},{"$f":"IFERROR(MID($W208,FIND(CHAR(160),SUBSTITUTE($W208,\"{\",CHAR(160),GR$1)),FIND(CHAR(160),SUBSTITUTE($W208,\"}\",CHAR(160),GR$1))-FIND(CHAR(160),SUBSTITUTE($W208,\"{\",CHAR(160),GR$1))+1),\"\")","v":""},{"$f":"IFERROR(MID($W208,FIND(CHAR(160),SUBSTITUTE($W208,\"{\",CHAR(160),GS$1)),FIND(CHAR(160),SUBSTITUTE($W208,\"}\",CHAR(160),GS$1))-FIND(CHAR(160),SUBSTITUTE($W208,\"{\",CHAR(160),GS$1))+1),\"\")","v":""},{"$f":"IFERROR(MID($W208,FIND(CHAR(160),SUBSTITUTE($W208,\"{\",CHAR(160),GT$1)),FIND(CHAR(160),SUBSTITUTE($W208,\"}\",CHAR(160),GT$1))-FIND(CHAR(160),SUBSTITUTE($W208,\"{\",CHAR(160),GT$1))+1),\"\")","v":""},{"$f":"IFERROR(MID($W208,FIND(CHAR(160),SUBSTITUTE($W208,\"{\",CHAR(160),GU$1)),FIND(CHAR(160),SUBSTITUTE($W208,\"}\",CHAR(160),GU$1))-FIND(CHAR(160),SUBSTITUTE($W208,\"{\",CHAR(160),GU$1))+1),\"\")","v":""},{"$f":"IFERROR(MID($W208,FIND(CHAR(160),SUBSTITUTE($W208,\"{\",CHAR(160),GV$1)),FIND(CHAR(160),SUBSTITUTE($W208,\"}\",CHAR(160),GV$1))-FIND(CHAR(160),SUBSTITUTE($W208,\"{\",CHAR(160),GV$1))+1),\"\")","v":""},{"$f":"IFERROR(MID($W208,FIND(CHAR(160),SUBSTITUTE($W208,\"{\",CHAR(160),GW$1)),FIND(CHAR(160),SUBSTITUTE($W208,\"}\",CHAR(160),GW$1))-FIND(CHAR(160),SUBSTITUTE($W208,\"{\",CHAR(160),GW$1))+1),\"\")","v":""},{"$f":"IFERROR(MID($W208,FIND(CHAR(160),SUBSTITUTE($W208,\"{\",CHAR(160),GX$1)),FIND(CHAR(160),SUBSTITUTE($W208,\"}\",CHAR(160),GX$1))-FIND(CHAR(160),SUBSTITUTE($W208,\"{\",CHAR(160),GX$1))+1),\"\")","v":""},{"$f":"IFERROR(MID($W208,FIND(CHAR(160),SUBSTITUTE($W208,\"{\",CHAR(160),GY$1)),FIND(CHAR(160),SUBSTITUTE($W208,\"}\",CHAR(160),GY$1))-FIND(CHAR(160),SUBSTITUTE($W208,\"{\",CHAR(160),GY$1))+1),\"\")","v":"{Primary heating type}"},{"$f":"IFERROR(MID($W208,FIND(CHAR(160),SUBSTITUTE($W208,\"{\",CHAR(160),GZ$1)),FIND(CHAR(160),SUBSTITUTE($W208,\"}\",CHAR(160),GZ$1))-FIND(CHAR(160),SUBSTITUTE($W208,\"{\",CHAR(160),GZ$1))+1),\"\")","v":"{Primary heating type}"},{"$f":"IFERROR(MID($X208,FIND(CHAR(160),SUBSTITUTE($X208,\"{\",CHAR(160),HA$1)),FIND(CHAR(160),SUBSTITUTE($X208,\"}\",CHAR(160),HA$1))-FIND(CHAR(160),SUBSTITUTE($X208,\"{\",CHAR(160),HA$1))+1),\"\")","v":""},{"$f":"IFERROR(MID($X208,FIND(CHAR(160),SUBSTITUTE($X208,\"{\",CHAR(160),HB$1)),FIND(CHAR(160),SUBSTITUTE($X208,\"}\",CHAR(160),HB$1))-FIND(CHAR(160),SUBSTITUTE($X208,\"{\",CHAR(160),HB$1))+1),\"\")","v":""},{"$f":"IFERROR(MID($X208,FIND(CHAR(160),SUBSTITUTE($X208,\"{\",CHAR(160),HC$1)),FIND(CHAR(160),SUBSTITUTE($X208,\"}\",CHAR(160),HC$1))-FIND(CHAR(160),SUBSTITUTE($X208,\"{\",CHAR(160),HC$1))+1),\"\")","v":""},{"$f":"IFERROR(MID($X208,FIND(CHAR(160),SUBSTITUTE($X208,\"{\",CHAR(160),HD$1)),FIND(CHAR(160),SUBSTITUTE($X208,\"}\",CHAR(160),HD$1))-FIND(CHAR(160),SUBSTITUTE($X208,\"{\",CHAR(160),HD$1))+1),\"\")","v":""},{"$f":"IFERROR(MID($X208,FIND(CHAR(160),SUBSTITUTE($X208,\"{\",CHAR(160),HE$1)),FIND(CHAR(160),SUBSTITUTE($X208,\"}\",CHAR(160),HE$1))-FIND(CHAR(160),SUBSTITUTE($X208,\"{\",CHAR(160),HE$1))+1),\"\")","v":""},{"$f":"IFERROR(MID($X208,FIND(CHAR(160),SUBSTITUTE($X208,\"{\",CHAR(160),HF$1)),FIND(CHAR(160),SUBSTITUTE($X208,\"}\",CHAR(160),HF$1))-FIND(CHAR(160),SUBSTITUTE($X208,\"{\",CHAR(160),HF$1))+1),\"\")","v":""},{"$f":"IFERROR(MID($X208,FIND(CHAR(160),SUBSTITUTE($X208,\"{\",CHAR(160),HG$1)),FIND(CHAR(160),SUBSTITUTE($X208,\"}\",CHAR(160),HG$1))-FIND(CHAR(160),SUBSTITUTE($X208,\"{\",CHAR(160),HG$1))+1),\"\")","v":""},{"$f":"IFERROR(MID($X208,FIND(CHAR(160),SUBSTITUTE($X208,\"{\",CHAR(160),HH$1)),FIND(CHAR(160),SUBSTITUTE($X208,\"}\",CHAR(160),HH$1))-FIND(CHAR(160),SUBSTITUTE($X208,\"{\",CHAR(160),HH$1))+1),\"\")","v":""},{"$f":"IFERROR(MID($X208,FIND(CHAR(160),SUBSTITUTE($X208,\"{\",CHAR(160),HI$1)),FIND(CHAR(160),SUBSTITUTE($X208,\"}\",CHAR(160),HI$1))-FIND(CHAR(160),SUBSTITUTE($X208,\"{\",CHAR(160),HI$1))+1),\"\")","v":"{Primary heating type}"},{"$f":"IFERROR(MID($X208,FIND(CHAR(160),SUBSTITUTE($X208,\"{\",CHAR(160),HJ$1)),FIND(CHAR(160),SUBSTITUTE($X208,\"}\",CHAR(160),HJ$1))-FIND(CHAR(160),SUBSTITUTE($X208,\"{\",CHAR(160),HJ$1))+1),\"\")","v":"{Primary heating type}"},{"$f":"IFERROR(MID($Y208,FIND(CHAR(160),SUBSTITUTE($Y208,\"{\",CHAR(160),HK$1)),FIND(CHAR(160),SUBSTITUTE($Y208,\"}\",CHAR(160),HK$1))-FIND(CHAR(160),SUBSTITUTE($Y208,\"{\",CHAR(160),HK$1))+1),\"\")","v":""},{"$f":"IFERROR(MID($Y208,FIND(CHAR(160),SUBSTITUTE($Y208,\"{\",CHAR(160),HL$1)),FIND(CHAR(160),SUBSTITUTE($Y208,\"}\",CHAR(160),HL$1))-FIND(CHAR(160),SUBSTITUTE($Y208,\"{\",CHAR(160),HL$1))+1),\"\")","v":""},{"$f":"IFERROR(MID($Y208,FIND(CHAR(160),SUBSTITUTE($Y208,\"{\",CHAR(160),HM$1)),FIND(CHAR(160),SUBSTITUTE($Y208,\"}\",CHAR(160),HM$1))-FIND(CHAR(160),SUBSTITUTE($Y208,\"{\",CHAR(160),HM$1))+1),\"\")","v":""},{"$f":"IFERROR(MID($Y208,FIND(CHAR(160),SUBSTITUTE($Y208,\"{\",CHAR(160),HN$1)),FIND(CHAR(160),SUBSTITUTE($Y208,\"}\",CHAR(160),HN$1))-FIND(CHAR(160),SUBSTITUTE($Y208,\"{\",CHAR(160),HN$1))+1),\"\")","v":""},{"$f":"IFERROR(MID($Y208,FIND(CHAR(160),SUBSTITUTE($Y208,\"{\",CHAR(160),HO$1)),FIND(CHAR(160),SUBSTITUTE($Y208,\"}\",CHAR(160),HO$1))-FIND(CHAR(160),SUBSTITUTE($Y208,\"{\",CHAR(160),HO$1))+1),\"\")","v":""},{"$f":"IFERROR(MID($Y208,FIND(CHAR(160),SUBSTITUTE($Y208,\"{\",CHAR(160),HP$1)),FIND(CHAR(160),SUBSTITUTE($Y208,\"}\",CHAR(160),HP$1))-FIND(CHAR(160),SUBSTITUTE($Y208,\"{\",CHAR(160),HP$1))+1),\"\")","v":""},{"$f":"IFERROR(MID($Y208,FIND(CHAR(160),SUBSTITUTE($Y208,\"{\",CHAR(160),HQ$1)),FIND(CHAR(160),SUBSTITUTE($Y208,\"}\",CHAR(160),HQ$1))-FIND(CHAR(160),SUBSTITUTE($Y208,\"{\",CHAR(160),HQ$1))+1),\"\")","v":""},{"$f":"IFERROR(MID($Y208,FIND(CHAR(160),SUBSTITUTE($Y208,\"{\",CHAR(160),HR$1)),FIND(CHAR(160),SUBSTITUTE($Y208,\"}\",CHAR(160),HR$1))-FIND(CHAR(160),SUBSTITUTE($Y208,\"{\",CHAR(160),HR$1))+1),\"\")","v":""},{"$f":"IFERROR(MID($Y208,FIND(CHAR(160),SUBSTITUTE($Y208,\"{\",CHAR(160),HS$1)),FIND(CHAR(160),SUBSTITUTE($Y208,\"}\",CHAR(160),HS$1))-FIND(CHAR(160),SUBSTITUTE($Y208,\"{\",CHAR(160),HS$1))+1),\"\")","v":"{Primary heating type}"},{"$f":"IFERROR(MID($Y208,FIND(CHAR(160),SUBSTITUTE($Y208,\"{\",CHAR(160),HT$1)),FIND(CHAR(160),SUBSTITUTE($Y208,\"}\",CHAR(160),HT$1))-FIND(CHAR(160),SUBSTITUTE($Y208,\"{\",CHAR(160),HT$1))+1),\"\")","v":"{Primary heating type}"},{"$f":"IFERROR(MID($Z208,FIND(CHAR(160),SUBSTITUTE($Z208,\"{\",CHAR(160),HU$1)),FIND(CHAR(160),SUBSTITUTE($Z208,\"}\",CHAR(160),HU$1))-FIND(CHAR(160),SUBSTITUTE($Z208,\"{\",CHAR(160),HU$1))+1),\"\")","v":""},{"$f":"IFERROR(MID($Z208,FIND(CHAR(160),SUBSTITUTE($Z208,\"{\",CHAR(160),HV$1)),FIND(CHAR(160),SUBSTITUTE($Z208,\"}\",CHAR(160),HV$1))-FIND(CHAR(160),SUBSTITUTE($Z208,\"{\",CHAR(160),HV$1))+1),\"\")","v":""},{"$f":"IFERROR(MID($Z208,FIND(CHAR(160),SUBSTITUTE($Z208,\"{\",CHAR(160),HW$1)),FIND(CHAR(160),SUBSTITUTE($Z208,\"}\",CHAR(160),HW$1))-FIND(CHAR(160),SUBSTITUTE($Z208,\"{\",CHAR(160),HW$1))+1),\"\")","v":""},{"$f":"IFERROR(MID($Z208,FIND(CHAR(160),SUBSTITUTE($Z208,\"{\",CHAR(160),HX$1)),FIND(CHAR(160),SUBSTITUTE($Z208,\"}\",CHAR(160),HX$1))-FIND(CHAR(160),SUBSTITUTE($Z208,\"{\",CHAR(160),HX$1))+1),\"\")","v":""},{"$f":"IFERROR(MID($Z208,FIND(CHAR(160),SUBSTITUTE($Z208,\"{\",CHAR(160),HY$1)),FIND(CHAR(160),SUBSTITUTE($Z208,\"}\",CHAR(160),HY$1))-FIND(CHAR(160),SUBSTITUTE($Z208,\"{\",CHAR(160),HY$1))+1),\"\")","v":""},{"$f":"IFERROR(MID($Z208,FIND(CHAR(160),SUBSTITUTE($Z208,\"{\",CHAR(160),HZ$1)),FIND(CHAR(160),SUBSTITUTE($Z208,\"}\",CHAR(160),HZ$1))-FIND(CHAR(160),SUBSTITUTE($Z208,\"{\",CHAR(160),HZ$1))+1),\"\")","v":""},{"$f":"IFERROR(MID($Z208,FIND(CHAR(160),SUBSTITUTE($Z208,\"{\",CHAR(160),IA$1)),FIND(CHAR(160),SUBSTITUTE($Z208,\"}\",CHAR(160),IA$1))-FIND(CHAR(160),SUBSTITUTE($Z208,\"{\",CHAR(160),IA$1))+1),\"\")","v":""},{"$f":"IFERROR(MID($Z208,FIND(CHAR(160),SUBSTITUTE($Z208,\"{\",CHAR(160),IB$1)),FIND(CHAR(160),SUBSTITUTE($Z208,\"}\",CHAR(160),IB$1))-FIND(CHAR(160),SUBSTITUTE($Z208,\"{\",CHAR(160),IB$1))+1),\"\")","v":""},{"$f":"IFERROR(MID($Z208,FIND(CHAR(160),SUBSTITUTE($Z208,\"{\",CHAR(160),IC$1)),FIND(CHAR(160),SUBSTITUTE($Z208,\"}\",CHAR(160),IC$1))-FIND(CHAR(160),SUBSTITUTE($Z208,\"{\",CHAR(160),IC$1))+1),\"\")","v":"{Primary heating type}"},{"$f":"IFERROR(MID($Z208,FIND(CHAR(160),SUBSTITUTE($Z208,\"{\",CHAR(160),ID$1)),FIND(CHAR(160),SUBSTITUTE($Z208,\"}\",CHAR(160),ID$1))-FIND(CHAR(160),SUBSTITUTE($Z208,\"{\",CHAR(160),ID$1))+1),\"\")","v":"{Primary heating type}"},{"$f":"IFERROR(MID($AA208,FIND(CHAR(160),SUBSTITUTE($AA208,\"{\",CHAR(160),IE$1)),FIND(CHAR(160),SUBSTITUTE($AA208,\"}\",CHAR(160),IE$1))-FIND(CHAR(160),SUBSTITUTE($AA208,\"{\",CHAR(160),IE$1))+1),\"\")","v":""},{"$f":"IFERROR(MID($AA208,FIND(CHAR(160),SUBSTITUTE($AA208,\"{\",CHAR(160),IF$1)),FIND(CHAR(160),SUBSTITUTE($AA208,\"}\",CHAR(160),IF$1))-FIND(CHAR(160),SUBSTITUTE($AA208,\"{\",CHAR(160),IF$1))+1),\"\")","v":""},{"$f":"IFERROR(MID($AA208,FIND(CHAR(160),SUBSTITUTE($AA208,\"{\",CHAR(160),IG$1)),FIND(CHAR(160),SUBSTITUTE($AA208,\"}\",CHAR(160),IG$1))-FIND(CHAR(160),SUBSTITUTE($AA208,\"{\",CHAR(160),IG$1))+1),\"\")","v":""},{"$f":"IFERROR(MID($AA208,FIND(CHAR(160),SUBSTITUTE($AA208,\"{\",CHAR(160),IH$1)),FIND(CHAR(160),SUBSTITUTE($AA208,\"}\",CHAR(160),IH$1))-FIND(CHAR(160),SUBSTITUTE($AA208,\"{\",CHAR(160),IH$1))+1),\"\")","v":""},{"$f":"IFERROR(MID($AA208,FIND(CHAR(160),SUBSTITUTE($AA208,\"{\",CHAR(160),II$1)),FIND(CHAR(160),SUBSTITUTE($AA208,\"}\",CHAR(160),II$1))-FIND(CHAR(160),SUBSTITUTE($AA208,\"{\",CHAR(160),II$1))+1),\"\")","v":""},{"$f":"IFERROR(MID($AA208,FIND(CHAR(160),SUBSTITUTE($AA208,\"{\",CHAR(160),IJ$1)),FIND(CHAR(160),SUBSTITUTE($AA208,\"}\",CHAR(160),IJ$1))-FIND(CHAR(160),SUBSTITUTE($AA208,\"{\",CHAR(160),IJ$1))+1),\"\")","v":""},{"$f":"IFERROR(MID($AA208,FIND(CHAR(160),SUBSTITUTE($AA208,\"{\",CHAR(160),IK$1)),FIND(CHAR(160),SUBSTITUTE($AA208,\"}\",CHAR(160),IK$1))-FIND(CHAR(160),SUBSTITUTE($AA208,\"{\",CHAR(160),IK$1))+1),\"\")","v":""},{"$f":"IFERROR(MID($AA208,FIND(CHAR(160),SUBSTITUTE($AA208,\"{\",CHAR(160),IL$1)),FIND(CHAR(160),SUBSTITUTE($AA208,\"}\",CHAR(160),IL$1))-FIND(CHAR(160),SUBSTITUTE($AA208,\"{\",CHAR(160),IL$1))+1),\"\")","v":""},{"$f":"IFERROR(MID($AA208,FIND(CHAR(160),SUBSTITUTE($AA208,\"{\",CHAR(160),IM$1)),FIND(CHAR(160),SUBSTITUTE($AA208,\"}\",CHAR(160),IM$1))-FIND(CHAR(160),SUBSTITUTE($AA208,\"{\",CHAR(160),IM$1))+1),\"\")","v":"{Primary heating type}"},{"$f":"IFERROR(MID($AA208,FIND(CHAR(160),SUBSTITUTE($AA208,\"{\",CHAR(160),IN$1)),FIND(CHAR(160),SUBSTITUTE($AA208,\"}\",CHAR(160),IN$1))-FIND(CHAR(160),SUBSTITUTE($AA208,\"{\",CHAR(160),IN$1))+1),\"\")","v":"{Primary heating type}"},{"$f":"IFERROR(MID($AB208,FIND(CHAR(160),SUBSTITUTE($AB208,\"{\",CHAR(160),IO$1)),FIND(CHAR(160),SUBSTITUTE($AB208,\"}\",CHAR(160),IO$1))-FIND(CHAR(160),SUBSTITUTE($AB208,\"{\",CHAR(160),IO$1))+1),\"\")","v":""},{"$f":"IFERROR(MID($AB208,FIND(CHAR(160),SUBSTITUTE($AB208,\"{\",CHAR(160),IP$1)),FIND(CHAR(160),SUBSTITUTE($AB208,\"}\",CHAR(160),IP$1))-FIND(CHAR(160),SUBSTITUTE($AB208,\"{\",CHAR(160),IP$1))+1),\"\")","v":""},{"$f":"IFERROR(MID($AB208,FIND(CHAR(160),SUBSTITUTE($AB208,\"{\",CHAR(160),IQ$1)),FIND(CHAR(160),SUBSTITUTE($AB208,\"}\",CHAR(160),IQ$1))-FIND(CHAR(160),SUBSTITUTE($AB208,\"{\",CHAR(160),IQ$1))+1),\"\")","v":""},{"$f":"IFERROR(MID($AB208,FIND(CHAR(160),SUBSTITUTE($AB208,\"{\",CHAR(160),IR$1)),FIND(CHAR(160),SUBSTITUTE($AB208,\"}\",CHAR(160),IR$1))-FIND(CHAR(160),SUBSTITUTE($AB208,\"{\",CHAR(160),IR$1))+1),\"\")","v":""},{"$f":"IFERROR(MID($AB208,FIND(CHAR(160),SUBSTITUTE($AB208,\"{\",CHAR(160),IS$1)),FIND(CHAR(160),SUBSTITUTE($AB208,\"}\",CHAR(160),IS$1))-FIND(CHAR(160),SUBSTITUTE($AB208,\"{\",CHAR(160),IS$1))+1),\"\")","v":""},{"$f":"IFERROR(MID($AB208,FIND(CHAR(160),SUBSTITUTE($AB208,\"{\",CHAR(160),IT$1)),FIND(CHAR(160),SUBSTITUTE($AB208,\"}\",CHAR(160),IT$1))-FIND(CHAR(160),SUBSTITUTE($AB208,\"{\",CHAR(160),IT$1))+1),\"\")","v":""},{"$f":"IFERROR(MID($AB208,FIND(CHAR(160),SUBSTITUTE($AB208,\"{\",CHAR(160),IU$1)),FIND(CHAR(160),SUBSTITUTE($AB208,\"}\",CHAR(160),IU$1))-FIND(CHAR(160),SUBSTITUTE($AB208,\"{\",CHAR(160),IU$1))+1),\"\")","v":""},{"$f":"IFERROR(MID($AB208,FIND(CHAR(160),SUBSTITUTE($AB208,\"{\",CHAR(160),IV$1)),FIND(CHAR(160),SUBSTITUTE($AB208,\"}\",CHAR(160),IV$1))-FIND(CHAR(160),SUBSTITUTE($AB208,\"{\",CHAR(160),IV$1))+1),\"\")","v":""},{"$f":"IFERROR(MID($AB208,FIND(CHAR(160),SUBSTITUTE($AB208,\"{\",CHAR(160),IW$1)),FIND(CHAR(160),SUBSTITUTE($AB208,\"}\",CHAR(160),IW$1))-FIND(CHAR(160),SUBSTITUTE($AB208,\"{\",CHAR(160),IW$1))+1),\"\")","v":""},{"$f":"IFERROR(MID($AB208,FIND(CHAR(160),SUBSTITUTE($AB208,\"{\",CHAR(160),IX$1)),FIND(CHAR(160),SUBSTITUTE($AB208,\"}\",CHAR(160),IX$1))-FIND(CHAR(160),SUBSTITUTE($AB208,\"{\",CHAR(160),IX$1))+1),\"\")","v":""},null,{"$f":"10-COUNTIF(DU208:ED208,\"\")","v":3}]
["Home Energy Savings Program Commercial - Other","Pellet Boiler","APB","2021-07-01","2022-06-30","Per Measure",12942,0,"Calculated","if({Cost}/3>6000,6000,Round({Cost}/3,2))*{Measure:Quantity}",0,"2020-04-02","2022-06-30","Per Measure",0,null,null,0,null,null,0,0,0,37.024000000000001,36.143000000000001,0,-67.016999999999996,0,"2020-04-02","2022-06-30",25,0,0,0,0,0,0,1,1,1,0.35,0.06,null,{"$f":"DU209","v":"{Cost}"},16000,{"$f":"DV209","v":"{Measure:Quantity}"},1,{"$f":"DW209","v":""},null,{"$f":"DX209","v":""},null,{"$f":"DY209","v":""},null,{"$f":"DZ209","v":""},null,{"$f":"EA209","v":""},null,{"$f":"EB209","v":""},null,{"$f":"EC209","v":""},null,{"$f":"ED209","v":""},null,{"$f":"0","v":0},0,0,{"$f":"0","v":0},0,0,{"$f":"0","v":0},{"$f":"0","v":0},{"$f":"0","v":0},{"$f":"37.024","v":37.024000000000001},{"$f":"36.143","v":36.143000000000001},{"$f":"0","v":0},{"$f":"-67.017","v":-67.016999999999996},{"$f":"0","v":0},null,"Res","RGGI DR",{"$f":"Benefits(BL209,BR209,BS209,BT209,BU209,BV209,BW209,BX209,BY209,BZ209,AE209,AH209,AI209,AJ209,AK209,AL209,AM209,AN209,AO209,AP209,CA209,CB209)","v":0},0,0,21858.037645069282,0,31669.013049894333,-27028.243275194836,0,0,{"$f":"SUMPRODUCT(CC209:CK209,--(CC209:CK209>0))","v":53527.050694963618},{"$f":"-SUMPRODUCT(CC209:CK209,--(CC209:CK209<0))","v":27028.243275194836},null,{"$f":"12942","v":12942},null,null,{"$f":"CM209+CO209","v":39970.243275194836},{"$f":"IF(NetOrGross=\"Net\",(1-AO209+AP209),1)","v":1},{"$f":"(SUMPRODUCT(CC209:CJ209,--(CC209:CJ209>0))+CN209)*CS209/((-SUMPRODUCT(CC209:CJ209,--(CC209:CJ209<0))+MAX(CO209,CV209)+CP209+CQ209)*CS209+IF(FRIncentives=\"Yes\",CV209*(1-CS209),0))","v":1.3391725020643548},1,{"$f":"IF(AS209/3>6000,6000,ROUND(AS209/3,2))*AU209","v":5333.33},null,"RGGI","y",null,{"$f":"IF(F209=\"Manual Entry\",\"Manual\",IF(G209=\"\",0,\"X=\"&SUBSTITUTE(SUBSTITUTE(SUBSTITUTE(SUBSTITUTE(SUBSTITUTE(SUBSTITUTE(SUBSTITUTE(SUBSTITUTE(SUBSTITUTE(SUBSTITUTE(SUBSTITUTE(SUBSTITUTE(G209,$ED209,$ED$2&ROW($ED209)),$EC209,$EC$2&ROW($EC209)),$EB209,$EB$2&ROW($EB209)),$EA209,$EA$2&ROW($EA209)),$DZ209,$DZ$2&ROW($DZ209)),$DY209,$DY$2&ROW($DY209)),$DX209,$DX$2&ROW($DX209)),$DW209,$DW$2&ROW($DW209)),$DV209,$DV$2&ROW($DV209)),$DU209,$DU$2&ROW($DU209)),$DT209,$DT$2&ROW($DT209)),$DS209,$DS$2&ROW($DS209))))","v":"X=12942"},{"$f":"IF(I209=\"Manual Entry\",\"Manual\",IF(J209=\"\",0,\"X=\"&SUBSTITUTE(SUBSTITUTE(SUBSTITUTE(SUBSTITUTE(SUBSTITUTE(SUBSTITUTE(SUBSTITUTE(SUBSTITUTE(SUBSTITUTE(SUBSTITUTE(SUBSTITUTE(SUBSTITUTE(J209,$ED209,$ED$2&ROW($ED209)),$EC209,$EC$2&ROW($EC209)),$EB209,$EB$2&ROW($EB209)),$EA209,$EA$2&ROW($EA209)),$DZ209,$DZ$2&ROW($DZ209)),$DY209,$DY$2&ROW($DY209)),$DX209,$DX$2&ROW($DX209)),$DW209,$DW$2&ROW($DW209)),$DV209,$DV$2&ROW($DV209)),$DU209,$DU$2&ROW($DU209)),$DT209,$DT$2&ROW($DT209)),$DS209,$DS$2&ROW($DS209))))","v":"X=if(AS209/3>6000,6000,Round(AS209/3,2))*AU209"},{"$f":"IF(O209=\"\",0,\"X=\"&SUBSTITUTE(SUBSTITUTE(SUBSTITUTE(SUBSTITUTE(SUBSTITUTE(SUBSTITUTE(SUBSTITUTE(SUBSTITUTE(SUBSTITUTE(SUBSTITUTE(SUBSTITUTE(SUBSTITUTE(O209,$ED209,$ED$2&ROW($ED209)),$EC209,$EC$2&ROW($EC209)),$EB209,$EB$2&ROW($EB209)),$EA209,$EA$2&ROW($EA209)),$DZ209,$DZ$2&ROW($DZ209)),$DY209,$DY$2&ROW($DY209)),$DX209,$DX$2&ROW($DX209)),$DW209,$DW$2&ROW($DW209)),$DV209,$DV$2&ROW($DV209)),$DU209,$DU$2&ROW($DU209)),$DT209,$DT$2&ROW($DT209)),$DS209,$DS$2&ROW($DS209)))","v":"X=0"},{"$f":"IF(P209=\"\",0,\"X=\"&SUBSTITUTE(SUBSTITUTE(SUBSTITUTE(SUBSTITUTE(SUBSTITUTE(SUBSTITUTE(SUBSTITUTE(SUBSTITUTE(SUBSTITUTE(SUBSTITUTE(SUBSTITUTE(SUBSTITUTE(P209,$ED209,$ED$2&ROW($ED209)),$EC209,$EC$2&ROW($EC209)),$EB209,$EB$2&ROW($EB209)),$EA209,$EA$2&ROW($EA209)),$DZ209,$DZ$2&ROW($DZ209)),$DY209,$DY$2&ROW($DY209)),$DX209,$DX$2&ROW($DX209)),$DW209,$DW$2&ROW($DW209)),$DV209,$DV$2&ROW($DV209)),$DU209,$DU$2&ROW($DU209)),$DT209,$DT$2&ROW($DT209)),$DS209,$DS$2&ROW($DS209)))","v":0},{"$f":"IF(Q209=\"\",0,\"X=\"&SUBSTITUTE(SUBSTITUTE(SUBSTITUTE(SUBSTITUTE(SUBSTITUTE(SUBSTITUTE(SUBSTITUTE(SUBSTITUTE(SUBSTITUTE(SUBSTITUTE(SUBSTITUTE(SUBSTITUTE(Q209,$ED209,$ED$2&ROW($ED209)),$EC209,$EC$2&ROW($EC209)),$EB209,$EB$2&ROW($EB209)),$EA209,$EA$2&ROW($EA209)),$DZ209,$DZ$2&ROW($DZ209)),$DY209,$DY$2&ROW($DY209)),$DX209,$DX$2&ROW($DX209)),$DW209,$DW$2&ROW($DW209)),$DV209,$DV$2&ROW($DV209)),$DU209,$DU$2&ROW($DU209)),$DT209,$DT$2&ROW($DT209)),$DS209,$DS$2&ROW($DS209)))","v":0},{"$f":"IF(R209=\"\",0,\"X=\"&SUBSTITUTE(SUBSTITUTE(SUBSTITUTE(SUBSTITUTE(SUBSTITUTE(SUBSTITUTE(SUBSTITUTE(SUBSTITUTE(SUBSTITUTE(SUBSTITUTE(SUBSTITUTE(SUBSTITUTE(R209,$ED209,$ED$2&ROW($ED209)),$EC209,$EC$2&ROW($EC209)),$EB209,$EB$2&ROW($EB209)),$EA209,$EA$2&ROW($EA209)),$DZ209,$DZ$2&ROW($DZ209)),$DY209,$DY$2&ROW($DY209)),$DX209,$DX$2&ROW($DX209)),$DW209,$DW$2&ROW($DW209)),$DV209,$DV$2&ROW($DV209)),$DU209,$DU$2&ROW($DU209)),$DT209,$DT$2&ROW($DT209)),$DS209,$DS$2&ROW($DS209)))","v":"X=0"},{"$f":"IF(S209=\"\",0,\"X=\"&SUBSTITUTE(SUBSTITUTE(SUBSTITUTE(SUBSTITUTE(SUBSTITUTE(SUBSTITUTE(SUBSTITUTE(SUBSTITUTE(SUBSTITUTE(SUBSTITUTE(SUBSTITUTE(SUBSTITUTE(S209,$ED209,$ED$2&ROW($ED209)),$EC209,$EC$2&ROW($EC209)),$EB209,$EB$2&ROW($EB209)),$EA209,$EA$2&ROW($EA209)),$DZ209,$DZ$2&ROW($DZ209)),$DY209,$DY$2&ROW($DY209)),$DX209,$DX$2&ROW($DX209)),$DW209,$DW$2&ROW($DW209)),$DV209,$DV$2&ROW($DV209)),$DU209,$DU$2&ROW($DU209)),$DT209,$DT$2&ROW($DT209)),$DS209,$DS$2&ROW($DS209)))","v":0},{"$f":"IF(T209=\"\",0,\"X=\"&SUBSTITUTE(SUBSTITUTE(SUBSTITUTE(SUBSTITUTE(SUBSTITUTE(SUBSTITUTE(SUBSTITUTE(SUBSTITUTE(SUBSTITUTE(SUBSTITUTE(SUBSTITUTE(SUBSTITUTE(T209,$ED209,$ED$2&ROW($ED209)),$EC209,$EC$2&ROW($EC209)),$EB209,$EB$2&ROW($EB209)),$EA209,$EA$2&ROW($EA209)),$DZ209,$DZ$2&ROW($DZ209)),$DY209,$DY$2&ROW($DY209)),$DX209,$DX$2&ROW($DX209)),$DW209,$DW$2&ROW($DW209)),$DV209,$DV$2&ROW($DV209)),$DU209,$DU$2&ROW($DU209)),$DT209,$DT$2&ROW($DT209)),$DS209,$DS$2&ROW($DS209)))","v":0},{"$f":"IF(U209=\"\",0,\"X=\"&SUBSTITUTE(SUBSTITUTE(SUBSTITUTE(SUBSTITUTE(SUBSTITUTE(SUBSTITUTE(SUBSTITUTE(SUBSTITUTE(SUBSTITUTE(SUBSTITUTE(SUBSTITUTE(SUBSTITUTE(U209,$ED209,$ED$2&ROW($ED209)),$EC209,$EC$2&ROW($EC209)),$EB209,$EB$2&ROW($EB209)),$EA209,$EA$2&ROW($EA209)),$DZ209,$DZ$2&ROW($DZ209)),$DY209,$DY$2&ROW($DY209)),$DX209,$DX$2&ROW($DX209)),$DW209,$DW$2&ROW($DW209)),$DV209,$DV$2&ROW($DV209)),$DU209,$DU$2&ROW($DU209)),$DT209,$DT$2&ROW($DT209)),$DS209,$DS$2&ROW($DS209)))","v":"X=0"},{"$f":"IF(V209=\"\",0,\"X=\"&SUBSTITUTE(SUBSTITUTE(SUBSTITUTE(SUBSTITUTE(SUBSTITUTE(SUBSTITUTE(SUBSTITUTE(SUBSTITUTE(SUBSTITUTE(SUBSTITUTE(SUBSTITUTE(SUBSTITUTE(V209,$ED209,$ED$2&ROW($ED209)),$EC209,$EC$2&ROW($EC209)),$EB209,$EB$2&ROW($EB209)),$EA209,$EA$2&ROW($EA209)),$DZ209,$DZ$2&ROW($DZ209)),$DY209,$DY$2&ROW($DY209)),$DX209,$DX$2&ROW($DX209)),$DW209,$DW$2&ROW($DW209)),$DV209,$DV$2&ROW($DV209)),$DU209,$DU$2&ROW($DU209)),$DT209,$DT$2&ROW($DT209)),$DS209,$DS$2&ROW($DS209)))","v":"X=0"},{"$f":"IF(W209=\"\",0,\"X=\"&SUBSTITUTE(SUBSTITUTE(SUBSTITUTE(SUBSTITUTE(SUBSTITUTE(SUBSTITUTE(SUBSTITUTE(SUBSTITUTE(SUBSTITUTE(SUBSTITUTE(SUBSTITUTE(SUBSTITUTE(W209,$ED209,$ED$2&ROW($ED209)),$EC209,$EC$2&ROW($EC209)),$EB209,$EB$2&ROW($EB209)),$EA209,$EA$2&ROW($EA209)),$DZ209,$DZ$2&ROW($DZ209)),$DY209,$DY$2&ROW($DY209)),$DX209,$DX$2&ROW($DX209)),$DW209,$DW$2&ROW($DW209)),$DV209,$DV$2&ROW($DV209)),$DU209,$DU$2&ROW($DU209)),$DT209,$DT$2&ROW($DT209)),$DS209,$DS$2&ROW($DS209)))","v":"X=0"},{"$f":"IF(X209=\"\",0,\"X=\"&SUBSTITUTE(SUBSTITUTE(SUBSTITUTE(SUBSTITUTE(SUBSTITUTE(SUBSTITUTE(SUBSTITUTE(SUBSTITUTE(SUBSTITUTE(SUBSTITUTE(SUBSTITUTE(SUBSTITUTE(X209,$ED209,$ED$2&ROW($ED209)),$EC209,$EC$2&ROW($EC209)),$EB209,$EB$2&ROW($EB209)),$EA209,$EA$2&ROW($EA209)),$DZ209,$DZ$2&ROW($DZ209)),$DY209,$DY$2&ROW($DY209)),$DX209,$DX$2&ROW($DX209)),$DW209,$DW$2&ROW($DW209)),$DV209,$DV$2&ROW($DV209)),$DU209,$DU$2&ROW($DU209)),$DT209,$DT$2&ROW($DT209)),$DS209,$DS$2&ROW($DS209)))","v":"X=37.024"},{"$f":"IF(Y209=\"\",0,\"X=\"&SUBSTITUTE(SUBSTITUTE(SUBSTITUTE(SUBSTITUTE(SUBSTITUTE(SUBSTITUTE(SUBSTITUTE(SUBSTITUTE(SUBSTITUTE(SUBSTITUTE(SUBSTITUTE(SUBSTITUTE(Y209,$ED209,$ED$2&ROW($ED209)),$EC209,$EC$2&ROW($EC209)),$EB209,$EB$2&ROW($EB209)),$EA209,$EA$2&ROW($EA209)),$DZ209,$DZ$2&ROW($DZ209)),$DY209,$DY$2&ROW($DY209)),$DX209,$DX$2&ROW($DX209)),$DW209,$DW$2&ROW($DW209)),$DV209,$DV$2&ROW($DV209)),$DU209,$DU$2&ROW($DU209)),$DT209,$DT$2&ROW($DT209)),$DS209,$DS$2&ROW($DS209)))","v":"X=36.143"},{"$f":"IF(Z209=\"\",0,\"X=\"&SUBSTITUTE(SUBSTITUTE(SUBSTITUTE(SUBSTITUTE(SUBSTITUTE(SUBSTITUTE(SUBSTITUTE(SUBSTITUTE(SUBSTITUTE(SUBSTITUTE(SUBSTITUTE(SUBSTITUTE(Z209,$ED209,$ED$2&ROW($ED209)),$EC209,$EC$2&ROW($EC209)),$EB209,$EB$2&ROW($EB209)),$EA209,$EA$2&ROW($EA209)),$DZ209,$DZ$2&ROW($DZ209)),$DY209,$DY$2&ROW($DY209)),$DX209,$DX$2&ROW($DX209)),$DW209,$DW$2&ROW($DW209)),$DV209,$DV$2&ROW($DV209)),$DU209,$DU$2&ROW($DU209)),$DT209,$DT$2&ROW($DT209)),$DS209,$DS$2&ROW($DS209)))","v":"X=0"},{"$f":"IF(AA209=\"\",0,\"X=\"&SUBSTITUTE(SUBSTITUTE(SUBSTITUTE(SUBSTITUTE(SUBSTITUTE(SUBSTITUTE(SUBSTITUTE(SUBSTITUTE(SUBSTITUTE(SUBSTITUTE(SUBSTITUTE(SUBSTITUTE(AA209,$ED209,$ED$2&ROW($ED209)),$EC209,$EC$2&ROW($EC209)),$EB209,$EB$2&ROW($EB209)),$EA209,$EA$2&ROW($EA209)),$DZ209,$DZ$2&ROW($DZ209)),$DY209,$DY$2&ROW($DY209)),$DX209,$DX$2&ROW($DX209)),$DW209,$DW$2&ROW($DW209)),$DV209,$DV$2&ROW($DV209)),$DU209,$DU$2&ROW($DU209)),$DT209,$DT$2&ROW($DT209)),$DS209,$DS$2&ROW($DS209)))","v":"X=-67.017"},{"$f":"IF(AB209=\"\",0,\"X=\"&SUBSTITUTE(SUBSTITUTE(SUBSTITUTE(SUBSTITUTE(SUBSTITUTE(SUBSTITUTE(SUBSTITUTE(SUBSTITUTE(SUBSTITUTE(SUBSTITUTE(SUBSTITUTE(SUBSTITUTE(AB209,$ED209,$ED$2&ROW($ED209)),$EC209,$EC$2&ROW($EC209)),$EB209,$EB$2&ROW($EB209)),$EA209,$EA$2&ROW($EA209)),$DZ209,$DZ$2&ROW($DZ209)),$DY209,$DY$2&ROW($DY209)),$DX209,$DX$2&ROW($DX209)),$DW209,$DW$2&ROW($DW209)),$DV209,$DV$2&ROW($DV209)),$DU209,$DU$2&ROW($DU209)),$DT209,$DT$2&ROW($DT209)),$DS209,$DS$2&ROW($DS209)))","v":"X=0"},null,null,"{Factor:WinterCF}","{Factor:SummerCF}",{"$f":"IFERROR(INDEX($EG209:$IV209,MATCH(0,COUNTIF($DR209:DT209,$EG209:$IV209),0)),\"\")","v":"{Cost}"},{"$f":"IFERROR(INDEX($EG209:$IV209,MATCH(0,COUNTIF($DR209:DU209,$EG209:$IV209),0)),\"\")","v":"{Measure:Quantity}"},{"$f":"IFERROR(INDEX($EG209:$IV209,MATCH(0,COUNTIF($DR209:DV209,$EG209:$IV209),0)),\"\")","v":""},{"$f":"IFERROR(INDEX($EG209:$IV209,MATCH(0,COUNTIF($DR209:DW209,$EG209:$IV209),0)),\"\")","v":""},{"$f":"IFERROR(INDEX($EG209:$IV209,MATCH(0,COUNTIF($DR209:DX209,$EG209:$IV209),0)),\"\")","v":""},{"$f":"IFERROR(INDEX($EG209:$IV209,MATCH(0,COUNTIF($DR209:DY209,$EG209:$IV209),0)),\"\")","v":""},{"$f":"IFERROR(INDEX($EG209:$IV209,MATCH(0,COUNTIF($DR209:DZ209,$EG209:$IV209),0)),\"\")","v":""},{"$f":"IFERROR(INDEX($EG209:$IV209,MATCH(0,COUNTIF($DR209:EA209,$EG209:$IV209),0)),\"\")","v":""},{"$f":"IFERROR(INDEX($EG209:$IV209,MATCH(0,COUNTIF($DR209:EB209,$EG209:$IV209),0)),\"\")","v":""},{"$f":"IFERROR(INDEX($EG209:$IV209,MATCH(0,COUNTIF($DR209:EC209,$EG209:$IV209),0)),\"\")","v":""},null,null,{"$f":"IFERROR(MID($G209,FIND(CHAR(160),SUBSTITUTE($G209,\"{\",CHAR(160),EG$1)),FIND(CHAR(160),SUBSTITUTE($G209,\"}\",CHAR(160),EG$1))-FIND(CHAR(160),SUBSTITUTE($G209,\"{\",CHAR(160),EG$1))+1),\"\")","v":""},{"$f":"IFERROR(MID($G209,FIND(CHAR(160),SUBSTITUTE($G209,\"{\",CHAR(160),EH$1)),FIND(CHAR(160),SUBSTITUTE($G209,\"}\",CHAR(160),EH$1))-FIND(CHAR(160),SUBSTITUTE($G209,\"{\",CHAR(160),EH$1))+1),\"\")","v":""},{"$f":"IFERROR(MID($G209,FIND(CHAR(160),SUBSTITUTE($G209,\"{\",CHAR(160),EI$1)),FIND(CHAR(160),SUBSTITUTE($G209,\"}\",CHAR(160),EI$1))-FIND(CHAR(160),SUBSTITUTE($G209,\"{\",CHAR(160),EI$1))+1),\"\")","v":""},{"$f":"IFERROR(MID($G209,FIND(CHAR(160),SUBSTITUTE($G209,\"{\",CHAR(160),EJ$1)),FIND(CHAR(160),SUBSTITUTE($G209,\"}\",CHAR(160),EJ$1))-FIND(CHAR(160),SUBSTITUTE($G209,\"{\",CHAR(160),EJ$1))+1),\"\")","v":""},{"$f":"IFERROR(MID($G209,FIND(CHAR(160),SUBSTITUTE($G209,\"{\",CHAR(160),EK$1)),FIND(CHAR(160),SUBSTITUTE($G209,\"}\",CHAR(160),EK$1))-FIND(CHAR(160),SUBSTITUTE($G209,\"{\",CHAR(160),EK$1))+1),\"\")","v":""},{"$f":"IFERROR(MID($G209,FIND(CHAR(160),SUBSTITUTE($G209,\"{\",CHAR(160),EL$1)),FIND(CHAR(160),SUBSTITUTE($G209,\"}\",CHAR(160),EL$1))-FIND(CHAR(160),SUBSTITUTE($G209,\"{\",CHAR(160),EL$1))+1),\"\")","v":""},{"$f":"IFERROR(MID($G209,FIND(CHAR(160),SUBSTITUTE($G209,\"{\",CHAR(160),EM$1)),FIND(CHAR(160),SUBSTITUTE($G209,\"}\",CHAR(160),EM$1))-FIND(CHAR(160),SUBSTITUTE($G209,\"{\",CHAR(160),EM$1))+1),\"\")","v":""},{"$f":"IFERROR(MID($G209,FIND(CHAR(160),SUBSTITUTE($G209,\"{\",CHAR(160),EN$1)),FIND(CHAR(160),SUBSTITUTE($G209,\"}\",CHAR(160),EN$1))-FIND(CHAR(160),SUBSTITUTE($G209,\"{\",CHAR(160),EN$1))+1),\"\")","v":""},{"$f":"IFERROR(MID($G209,FIND(CHAR(160),SUBSTITUTE($G209,\"{\",CHAR(160),EO$1)),FIND(CHAR(160),SUBSTITUTE($G209,\"}\",CHAR(160),EO$1))-FIND(CHAR(160),SUBSTITUTE($G209,\"{\",CHAR(160),EO$1))+1),\"\")","v":""},{"$f":"IFERROR(MID($G209,FIND(CHAR(160),SUBSTITUTE($G209,\"{\",CHAR(160),EP$1)),FIND(CHAR(160),SUBSTITUTE($G209,\"}\",CHAR(160),EP$1))-FIND(CHAR(160),SUBSTITUTE($G209,\"{\",CHAR(160),EP$1))+1),\"\")","v":""},{"$f":"IFERROR(MID($J209,FIND(CHAR(160),SUBSTITUTE($J209,\"{\",CHAR(160),EQ$1)),FIND(CHAR(160),SUBSTITUTE($J209,\"}\",CHAR(160),EQ$1))-FIND(CHAR(160),SUBSTITUTE($J209,\"{\",CHAR(160),EQ$1))+1),\"\")","v":"{Cost}"},{"$f":"IFERROR(MID($J209,FIND(CHAR(160),SUBSTITUTE($J209,\"{\",CHAR(160),ER$1)),FIND(CHAR(160),SUBSTITUTE($J209,\"}\",CHAR(160),ER$1))-FIND(CHAR(160),SUBSTITUTE($J209,\"{\",CHAR(160),ER$1))+1),\"\")","v":"{Cost}"},{"$f":"IFERROR(MID($J209,FIND(CHAR(160),SUBSTITUTE($J209,\"{\",CHAR(160),ES$1)),FIND(CHAR(160),SUBSTITUTE($J209,\"}\",CHAR(160),ES$1))-FIND(CHAR(160),SUBSTITUTE($J209,\"{\",CHAR(160),ES$1))+1),\"\")","v":"{Measure:Quantity}"},{"$f":"IFERROR(MID($J209,FIND(CHAR(160),SUBSTITUTE($J209,\"{\",CHAR(160),ET$1)),FIND(CHAR(160),SUBSTITUTE($J209,\"}\",CHAR(160),ET$1))-FIND(CHAR(160),SUBSTITUTE($J209,\"{\",CHAR(160),ET$1))+1),\"\")","v":""},{"$f":"IFERROR(MID($J209,FIND(CHAR(160),SUBSTITUTE($J209,\"{\",CHAR(160),EU$1)),FIND(CHAR(160),SUBSTITUTE($J209,\"}\",CHAR(160),EU$1))-FIND(CHAR(160),SUBSTITUTE($J209,\"{\",CHAR(160),EU$1))+1),\"\")","v":""},{"$f":"IFERROR(MID($J209,FIND(CHAR(160),SUBSTITUTE($J209,\"{\",CHAR(160),EV$1)),FIND(CHAR(160),SUBSTITUTE($J209,\"}\",CHAR(160),EV$1))-FIND(CHAR(160),SUBSTITUTE($J209,\"{\",CHAR(160),EV$1))+1),\"\")","v":""},{"$f":"IFERROR(MID($J209,FIND(CHAR(160),SUBSTITUTE($J209,\"{\",CHAR(160),EW$1)),FIND(CHAR(160),SUBSTITUTE($J209,\"}\",CHAR(160),EW$1))-FIND(CHAR(160),SUBSTITUTE($J209,\"{\",CHAR(160),EW$1))+1),\"\")","v":""},{"$f":"IFERROR(MID($J209,FIND(CHAR(160),SUBSTITUTE($J209,\"{\",CHAR(160),EX$1)),FIND(CHAR(160),SUBSTITUTE($J209,\"}\",CHAR(160),EX$1))-FIND(CHAR(160),SUBSTITUTE($J209,\"{\",CHAR(160),EX$1))+1),\"\")","v":""},{"$f":"IFERROR(MID($J209,FIND(CHAR(160),SUBSTITUTE($J209,\"{\",CHAR(160),EY$1)),FIND(CHAR(160),SUBSTITUTE($J209,\"}\",CHAR(160),EY$1))-FIND(CHAR(160),SUBSTITUTE($J209,\"{\",CHAR(160),EY$1))+1),\"\")","v":""},{"$f":"IFERROR(MID($J209,FIND(CHAR(160),SUBSTITUTE($J209,\"{\",CHAR(160),EZ$1)),FIND(CHAR(160),SUBSTITUTE($J209,\"}\",CHAR(160),EZ$1))-FIND(CHAR(160),SUBSTITUTE($J209,\"{\",CHAR(160),EZ$1))+1),\"\")","v":""},{"$f":"IFERROR(MID($J209,FIND(CHAR(160),SUBSTITUTE($J209,\"{\",CHAR(160),FA$1)),FIND(CHAR(160),SUBSTITUTE($J209,\"}\",CHAR(160),FA$1))-FIND(CHAR(160),SUBSTITUTE($J209,\"{\",CHAR(160),FA$1))+1),\"\")","v":"{Cost}"},{"$f":"IFERROR(MID($J209,FIND(CHAR(160),SUBSTITUTE($J209,\"{\",CHAR(160),FB$1)),FIND(CHAR(160),SUBSTITUTE($J209,\"}\",CHAR(160),FB$1))-FIND(CHAR(160),SUBSTITUTE($J209,\"{\",CHAR(160),FB$1))+1),\"\")","v":"{Cost}"},{"$f":"IFERROR(MID($O209,FIND(CHAR(160),SUBSTITUTE($O209,\"{\",CHAR(160),FC$1)),FIND(CHAR(160),SUBSTITUTE($O209,\"}\",CHAR(160),FC$1))-FIND(CHAR(160),SUBSTITUTE($O209,\"{\",CHAR(160),FC$1))+1),\"\")","v":""},{"$f":"IFERROR(MID($O209,FIND(CHAR(160),SUBSTITUTE($O209,\"{\",CHAR(160),FD$1)),FIND(CHAR(160),SUBSTITUTE($O209,\"}\",CHAR(160),FD$1))-FIND(CHAR(160),SUBSTITUTE($O209,\"{\",CHAR(160),FD$1))+1),\"\")","v":""},{"$f":"IFERROR(MID($O209,FIND(CHAR(160),SUBSTITUTE($O209,\"{\",CHAR(160),FE$1)),FIND(CHAR(160),SUBSTITUTE($O209,\"}\",CHAR(160),FE$1))-FIND(CHAR(160),SUBSTITUTE($O209,\"{\",CHAR(160),FE$1))+1),\"\")","v":""},{"$f":"IFERROR(MID($O209,FIND(CHAR(160),SUBSTITUTE($O209,\"{\",CHAR(160),FF$1)),FIND(CHAR(160),SUBSTITUTE($O209,\"}\",CHAR(160),FF$1))-FIND(CHAR(160),SUBSTITUTE($O209,\"{\",CHAR(160),FF$1))+1),\"\")","v":""},{"$f":"IFERROR(MID($O209,FIND(CHAR(160),SUBSTITUTE($O209,\"{\",CHAR(160),FG$1)),FIND(CHAR(160),SUBSTITUTE($O209,\"}\",CHAR(160),FG$1))-FIND(CHAR(160),SUBSTITUTE($O209,\"{\",CHAR(160),FG$1))+1),\"\")","v":""},{"$f":"IFERROR(MID($O209,FIND(CHAR(160),SUBSTITUTE($O209,\"{\",CHAR(160),FH$1)),FIND(CHAR(160),SUBSTITUTE($O209,\"}\",CHAR(160),FH$1))-FIND(CHAR(160),SUBSTITUTE($O209,\"{\",CHAR(160),FH$1))+1),\"\")","v":""},{"$f":"IFERROR(MID($O209,FIND(CHAR(160),SUBSTITUTE($O209,\"{\",CHAR(160),FI$1)),FIND(CHAR(160),SUBSTITUTE($O209,\"}\",CHAR(160),FI$1))-FIND(CHAR(160),SUBSTITUTE($O209,\"{\",CHAR(160),FI$1))+1),\"\")","v":""},{"$f":"IFERROR(MID($O209,FIND(CHAR(160),SUBSTITUTE($O209,\"{\",CHAR(160),FJ$1)),FIND(CHAR(160),SUBSTITUTE($O209,\"}\",CHAR(160),FJ$1))-FIND(CHAR(160),SUBSTITUTE($O209,\"{\",CHAR(160),FJ$1))+1),\"\")","v":""},{"$f":"IFERROR(MID($O209,FIND(CHAR(160),SUBSTITUTE($O209,\"{\",CHAR(160),FK$1)),FIND(CHAR(160),SUBSTITUTE($O209,\"}\",CHAR(160),FK$1))-FIND(CHAR(160),SUBSTITUTE($O209,\"{\",CHAR(160),FK$1))+1),\"\")","v":""},{"$f":"IFERROR(MID($O209,FIND(CHAR(160),SUBSTITUTE($O209,\"{\",CHAR(160),FL$1)),FIND(CHAR(160),SUBSTITUTE($O209,\"}\",CHAR(160),FL$1))-FIND(CHAR(160),SUBSTITUTE($O209,\"{\",CHAR(160),FL$1))+1),\"\")","v":""},{"$f":"IFERROR(MID($R209,FIND(CHAR(160),SUBSTITUTE($R209,\"{\",CHAR(160),FM$1)),FIND(CHAR(160),SUBSTITUTE($R209,\"}\",CHAR(160),FM$1))-FIND(CHAR(160),SUBSTITUTE($R209,\"{\",CHAR(160),FM$1))+1),\"\")","v":""},{"$f":"IFERROR(MID($R209,FIND(CHAR(160),SUBSTITUTE($R209,\"{\",CHAR(160),FN$1)),FIND(CHAR(160),SUBSTITUTE($R209,\"}\",CHAR(160),FN$1))-FIND(CHAR(160),SUBSTITUTE($R209,\"{\",CHAR(160),FN$1))+1),\"\")","v":""},{"$f":"IFERROR(MID($R209,FIND(CHAR(160),SUBSTITUTE($R209,\"{\",CHAR(160),FO$1)),FIND(CHAR(160),SUBSTITUTE($R209,\"}\",CHAR(160),FO$1))-FIND(CHAR(160),SUBSTITUTE($R209,\"{\",CHAR(160),FO$1))+1),\"\")","v":""},{"$f":"IFERROR(MID($R209,FIND(CHAR(160),SUBSTITUTE($R209,\"{\",CHAR(160),FP$1)),FIND(CHAR(160),SUBSTITUTE($R209,\"}\",CHAR(160),FP$1))-FIND(CHAR(160),SUBSTITUTE($R209,\"{\",CHAR(160),FP$1))+1),\"\")","v":""},{"$f":"IFERROR(MID($R209,FIND(CHAR(160),SUBSTITUTE($R209,\"{\",CHAR(160),FQ$1)),FIND(CHAR(160),SUBSTITUTE($R209,\"}\",CHAR(160),FQ$1))-FIND(CHAR(160),SUBSTITUTE($R209,\"{\",CHAR(160),FQ$1))+1),\"\")","v":""},{"$f":"IFERROR(MID($R209,FIND(CHAR(160),SUBSTITUTE($R209,\"{\",CHAR(160),FR$1)),FIND(CHAR(160),SUBSTITUTE($R209,\"}\",CHAR(160),FR$1))-FIND(CHAR(160),SUBSTITUTE($R209,\"{\",CHAR(160),FR$1))+1),\"\")","v":""},{"$f":"IFERROR(MID($R209,FIND(CHAR(160),SUBSTITUTE($R209,\"{\",CHAR(160),FS$1)),FIND(CHAR(160),SUBSTITUTE($R209,\"}\",CHAR(160),FS$1))-FIND(CHAR(160),SUBSTITUTE($R209,\"{\",CHAR(160),FS$1))+1),\"\")","v":""},{"$f":"IFERROR(MID($R209,FIND(CHAR(160),SUBSTITUTE($R209,\"{\",CHAR(160),FT$1)),FIND(CHAR(160),SUBSTITUTE($R209,\"}\",CHAR(160),FT$1))-FIND(CHAR(160),SUBSTITUTE($R209,\"{\",CHAR(160),FT$1))+1),\"\")","v":""},{"$f":"IFERROR(MID($R209,FIND(CHAR(160),SUBSTITUTE($R209,\"{\",CHAR(160),FU$1)),FIND(CHAR(160),SUBSTITUTE($R209,\"}\",CHAR(160),FU$1))-FIND(CHAR(160),SUBSTITUTE($R209,\"{\",CHAR(160),FU$1))+1),\"\")","v":""},{"$f":"IFERROR(MID($R209,FIND(CHAR(160),SUBSTITUTE($R209,\"{\",CHAR(160),FV$1)),FIND(CHAR(160),SUBSTITUTE($R209,\"}\",CHAR(160),FV$1))-FIND(CHAR(160),SUBSTITUTE($R209,\"{\",CHAR(160),FV$1))+1),\"\")","v":""},{"$f":"IFERROR(MID($U209,FIND(CHAR(160),SUBSTITUTE($U209,\"{\",CHAR(160),FW$1)),FIND(CHAR(160),SUBSTITUTE($U209,\"}\",CHAR(160),FW$1))-FIND(CHAR(160),SUBSTITUTE($U209,\"{\",CHAR(160),FW$1))+1),\"\")","v":""},{"$f":"IFERROR(MID($U209,FIND(CHAR(160),SUBSTITUTE($U209,\"{\",CHAR(160),FX$1)),FIND(CHAR(160),SUBSTITUTE($U209,\"}\",CHAR(160),FX$1))-FIND(CHAR(160),SUBSTITUTE($U209,\"{\",CHAR(160),FX$1))+1),\"\")","v":""},{"$f":"IFERROR(MID($U209,FIND(CHAR(160),SUBSTITUTE($U209,\"{\",CHAR(160),FY$1)),FIND(CHAR(160),SUBSTITUTE($U209,\"}\",CHAR(160),FY$1))-FIND(CHAR(160),SUBSTITUTE($U209,\"{\",CHAR(160),FY$1))+1),\"\")","v":""},{"$f":"IFERROR(MID($U209,FIND(CHAR(160),SUBSTITUTE($U209,\"{\",CHAR(160),FZ$1)),FIND(CHAR(160),SUBSTITUTE($U209,\"}\",CHAR(160),FZ$1))-FIND(CHAR(160),SUBSTITUTE($U209,\"{\",CHAR(160),FZ$1))+1),\"\")","v":""},{"$f":"IFERROR(MID($U209,FIND(CHAR(160),SUBSTITUTE($U209,\"{\",CHAR(160),GA$1)),FIND(CHAR(160),SUBSTITUTE($U209,\"}\",CHAR(160),GA$1))-FIND(CHAR(160),SUBSTITUTE($U209,\"{\",CHAR(160),GA$1))+1),\"\")","v":""},{"$f":"IFERROR(MID($U209,FIND(CHAR(160),SUBSTITUTE($U209,\"{\",CHAR(160),GB$1)),FIND(CHAR(160),SUBSTITUTE($U209,\"}\",CHAR(160),GB$1))-FIND(CHAR(160),SUBSTITUTE($U209,\"{\",CHAR(160),GB$1))+1),\"\")","v":""},{"$f":"IFERROR(MID($U209,FIND(CHAR(160),SUBSTITUTE($U209,\"{\",CHAR(160),GC$1)),FIND(CHAR(160),SUBSTITUTE($U209,\"}\",CHAR(160),GC$1))-FIND(CHAR(160),SUBSTITUTE($U209,\"{\",CHAR(160),GC$1))+1),\"\")","v":""},{"$f":"IFERROR(MID($U209,FIND(CHAR(160),SUBSTITUTE($U209,\"{\",CHAR(160),GD$1)),FIND(CHAR(160),SUBSTITUTE($U209,\"}\",CHAR(160),GD$1))-FIND(CHAR(160),SUBSTITUTE($U209,\"{\",CHAR(160),GD$1))+1),\"\")","v":""},{"$f":"IFERROR(MID($U209,FIND(CHAR(160),SUBSTITUTE($U209,\"{\",CHAR(160),GE$1)),FIND(CHAR(160),SUBSTITUTE($U209,\"}\",CHAR(160),GE$1))-FIND(CHAR(160),SUBSTITUTE($U209,\"{\",CHAR(160),GE$1))+1),\"\")","v":""},{"$f":"IFERROR(MID($U209,FIND(CHAR(160),SUBSTITUTE($U209,\"{\",CHAR(160),GF$1)),FIND(CHAR(160),SUBSTITUTE($U209,\"}\",CHAR(160),GF$1))-FIND(CHAR(160),SUBSTITUTE($U209,\"{\",CHAR(160),GF$1))+1),\"\")","v":""},{"$f":"IFERROR(MID($V209,FIND(CHAR(160),SUBSTITUTE($V209,\"{\",CHAR(160),GG$1)),FIND(CHAR(160),SUBSTITUTE($V209,\"}\",CHAR(160),GG$1))-FIND(CHAR(160),SUBSTITUTE($V209,\"{\",CHAR(160),GG$1))+1),\"\")","v":""},{"$f":"IFERROR(MID($V209,FIND(CHAR(160),SUBSTITUTE($V209,\"{\",CHAR(160),GH$1)),FIND(CHAR(160),SUBSTITUTE($V209,\"}\",CHAR(160),GH$1))-FIND(CHAR(160),SUBSTITUTE($V209,\"{\",CHAR(160),GH$1))+1),\"\")","v":""},{"$f":"IFERROR(MID($V209,FIND(CHAR(160),SUBSTITUTE($V209,\"{\",CHAR(160),GI$1)),FIND(CHAR(160),SUBSTITUTE($V209,\"}\",CHAR(160),GI$1))-FIND(CHAR(160),SUBSTITUTE($V209,\"{\",CHAR(160),GI$1))+1),\"\")","v":""},{"$f":"IFERROR(MID($V209,FIND(CHAR(160),SUBSTITUTE($V209,\"{\",CHAR(160),GJ$1)),FIND(CHAR(160),SUBSTITUTE($V209,\"}\",CHAR(160),GJ$1))-FIND(CHAR(160),SUBSTITUTE($V209,\"{\",CHAR(160),GJ$1))+1),\"\")","v":""},{"$f":"IFERROR(MID($V209,FIND(CHAR(160),SUBSTITUTE($V209,\"{\",CHAR(160),GK$1)),FIND(CHAR(160),SUBSTITUTE($V209,\"}\",CHAR(160),GK$1))-FIND(CHAR(160),SUBSTITUTE($V209,\"{\",CHAR(160),GK$1))+1),\"\")","v":""},{"$f":"IFERROR(MID($V209,FIND(CHAR(160),SUBSTITUTE($V209,\"{\",CHAR(160),GL$1)),FIND(CHAR(160),SUBSTITUTE($V209,\"}\",CHAR(160),GL$1))-FIND(CHAR(160),SUBSTITUTE($V209,\"{\",CHAR(160),GL$1))+1),\"\")","v":""},{"$f":"IFERROR(MID($V209,FIND(CHAR(160),SUBSTITUTE($V209,\"{\",CHAR(160),GM$1)),FIND(CHAR(160),SUBSTITUTE($V209,\"}\",CHAR(160),GM$1))-FIND(CHAR(160),SUBSTITUTE($V209,\"{\",CHAR(160),GM$1))+1),\"\")","v":""},{"$f":"IFERROR(MID($V209,FIND(CHAR(160),SUBSTITUTE($V209,\"{\",CHAR(160),GN$1)),FIND(CHAR(160),SUBSTITUTE($V209,\"}\",CHAR(160),GN$1))-FIND(CHAR(160),SUBSTITUTE($V209,\"{\",CHAR(160),GN$1))+1),\"\")","v":""},{"$f":"IFERROR(MID($V209,FIND(CHAR(160),SUBSTITUTE($V209,\"{\",CHAR(160),GO$1)),FIND(CHAR(160),SUBSTITUTE($V209,\"}\",CHAR(160),GO$1))-FIND(CHAR(160),SUBSTITUTE($V209,\"{\",CHAR(160),GO$1))+1),\"\")","v":""},{"$f":"IFERROR(MID($V209,FIND(CHAR(160),SUBSTITUTE($V209,\"{\",CHAR(160),GP$1)),FIND(CHAR(160),SUBSTITUTE($V209,\"}\",CHAR(160),GP$1))-FIND(CHAR(160),SUBSTITUTE($V209,\"{\",CHAR(160),GP$1))+1),\"\")","v":""},{"$f":"IFERROR(MID($W209,FIND(CHAR(160),SUBSTITUTE($W209,\"{\",CHAR(160),GQ$1)),FIND(CHAR(160),SUBSTITUTE($W209,\"}\",CHAR(160),GQ$1))-FIND(CHAR(160),SUBSTITUTE($W209,\"{\",CHAR(160),GQ$1))+1),\"\")","v":""},{"$f":"IFERROR(MID($W209,FIND(CHAR(160),SUBSTITUTE($W209,\"{\",CHAR(160),GR$1)),FIND(CHAR(160),SUBSTITUTE($W209,\"}\",CHAR(160),GR$1))-FIND(CHAR(160),SUBSTITUTE($W209,\"{\",CHAR(160),GR$1))+1),\"\")","v":""},{"$f":"IFERROR(MID($W209,FIND(CHAR(160),SUBSTITUTE($W209,\"{\",CHAR(160),GS$1)),FIND(CHAR(160),SUBSTITUTE($W209,\"}\",CHAR(160),GS$1))-FIND(CHAR(160),SUBSTITUTE($W209,\"{\",CHAR(160),GS$1))+1),\"\")","v":""},{"$f":"IFERROR(MID($W209,FIND(CHAR(160),SUBSTITUTE($W209,\"{\",CHAR(160),GT$1)),FIND(CHAR(160),SUBSTITUTE($W209,\"}\",CHAR(160),GT$1))-FIND(CHAR(160),SUBSTITUTE($W209,\"{\",CHAR(160),GT$1))+1),\"\")","v":""},{"$f":"IFERROR(MID($W209,FIND(CHAR(160),SUBSTITUTE($W209,\"{\",CHAR(160),GU$1)),FIND(CHAR(160),SUBSTITUTE($W209,\"}\",CHAR(160),GU$1))-FIND(CHAR(160),SUBSTITUTE($W209,\"{\",CHAR(160),GU$1))+1),\"\")","v":""},{"$f":"IFERROR(MID($W209,FIND(CHAR(160),SUBSTITUTE($W209,\"{\",CHAR(160),GV$1)),FIND(CHAR(160),SUBSTITUTE($W209,\"}\",CHAR(160),GV$1))-FIND(CHAR(160),SUBSTITUTE($W209,\"{\",CHAR(160),GV$1))+1),\"\")","v":""},{"$f":"IFERROR(MID($W209,FIND(CHAR(160),SUBSTITUTE($W209,\"{\",CHAR(160),GW$1)),FIND(CHAR(160),SUBSTITUTE($W209,\"}\",CHAR(160),GW$1))-FIND(CHAR(160),SUBSTITUTE($W209,\"{\",CHAR(160),GW$1))+1),\"\")","v":""},{"$f":"IFERROR(MID($W209,FIND(CHAR(160),SUBSTITUTE($W209,\"{\",CHAR(160),GX$1)),FIND(CHAR(160),SUBSTITUTE($W209,\"}\",CHAR(160),GX$1))-FIND(CHAR(160),SUBSTITUTE($W209,\"{\",CHAR(160),GX$1))+1),\"\")","v":""},{"$f":"IFERROR(MID($W209,FIND(CHAR(160),SUBSTITUTE($W209,\"{\",CHAR(160),GY$1)),FIND(CHAR(160),SUBSTITUTE($W209,\"}\",CHAR(160),GY$1))-FIND(CHAR(160),SUBSTITUTE($W209,\"{\",CHAR(160),GY$1))+1),\"\")","v":""},{"$f":"IFERROR(MID($W209,FIND(CHAR(160),SUBSTITUTE($W209,\"{\",CHAR(160),GZ$1)),FIND(CHAR(160),SUBSTITUTE($W209,\"}\",CHAR(160),GZ$1))-FIND(CHAR(160),SUBSTITUTE($W209,\"{\",CHAR(160),GZ$1))+1),\"\")","v":""},{"$f":"IFERROR(MID($X209,FIND(CHAR(160),SUBSTITUTE($X209,\"{\",CHAR(160),HA$1)),FIND(CHAR(160),SUBSTITUTE($X209,\"}\",CHAR(160),HA$1))-FIND(CHAR(160),SUBSTITUTE($X209,\"{\",CHAR(160),HA$1))+1),\"\")","v":""},{"$f":"IFERROR(MID($X209,FIND(CHAR(160),SUBSTITUTE($X209,\"{\",CHAR(160),HB$1)),FIND(CHAR(160),SUBSTITUTE($X209,\"}\",CHAR(160),HB$1))-FIND(CHAR(160),SUBSTITUTE($X209,\"{\",CHAR(160),HB$1))+1),\"\")","v":""},{"$f":"IFERROR(MID($X209,FIND(CHAR(160),SUBSTITUTE($X209,\"{\",CHAR(160),HC$1)),FIND(CHAR(160),SUBSTITUTE($X209,\"}\",CHAR(160),HC$1))-FIND(CHAR(160),SUBSTITUTE($X209,\"{\",CHAR(160),HC$1))+1),\"\")","v":""},{"$f":"IFERROR(MID($X209,FIND(CHAR(160),SUBSTITUTE($X209,\"{\",CHAR(160),HD$1)),FIND(CHAR(160),SUBSTITUTE($X209,\"}\",CHAR(160),HD$1))-FIND(CHAR(160),SUBSTITUTE($X209,\"{\",CHAR(160),HD$1))+1),\"\")","v":""},{"$f":"IFERROR(MID($X209,FIND(CHAR(160),SUBSTITUTE($X209,\"{\",CHAR(160),HE$1)),FIND(CHAR(160),SUBSTITUTE($X209,\"}\",CHAR(160),HE$1))-FIND(CHAR(160),SUBSTITUTE($X209,\"{\",CHAR(160),HE$1))+1),\"\")","v":""},{"$f":"IFERROR(MID($X209,FIND(CHAR(160),SUBSTITUTE($X209,\"{\",CHAR(160),HF$1)),FIND(CHAR(160),SUBSTITUTE($X209,\"}\",CHAR(160),HF$1))-FIND(CHAR(160),SUBSTITUTE($X209,\"{\",CHAR(160),HF$1))+1),\"\")","v":""},{"$f":"IFERROR(MID($X209,FIND(CHAR(160),SUBSTITUTE($X209,\"{\",CHAR(160),HG$1)),FIND(CHAR(160),SUBSTITUTE($X209,\"}\",CHAR(160),HG$1))-FIND(CHAR(160),SUBSTITUTE($X209,\"{\",CHAR(160),HG$1))+1),\"\")","v":""},{"$f":"IFERROR(MID($X209,FIND(CHAR(160),SUBSTITUTE($X209,\"{\",CHAR(160),HH$1)),FIND(CHAR(160),SUBSTITUTE($X209,\"}\",CHAR(160),HH$1))-FIND(CHAR(160),SUBSTITUTE($X209,\"{\",CHAR(160),HH$1))+1),\"\")","v":""},{"$f":"IFERROR(MID($X209,FIND(CHAR(160),SUBSTITUTE($X209,\"{\",CHAR(160),HI$1)),FIND(CHAR(160),SUBSTITUTE($X209,\"}\",CHAR(160),HI$1))-FIND(CHAR(160),SUBSTITUTE($X209,\"{\",CHAR(160),HI$1))+1),\"\")","v":""},{"$f":"IFERROR(MID($X209,FIND(CHAR(160),SUBSTITUTE($X209,\"{\",CHAR(160),HJ$1)),FIND(CHAR(160),SUBSTITUTE($X209,\"}\",CHAR(160),HJ$1))-FIND(CHAR(160),SUBSTITUTE($X209,\"{\",CHAR(160),HJ$1))+1),\"\")","v":""},{"$f":"IFERROR(MID($Y209,FIND(CHAR(160),SUBSTITUTE($Y209,\"{\",CHAR(160),HK$1)),FIND(CHAR(160),SUBSTITUTE($Y209,\"}\",CHAR(160),HK$1))-FIND(CHAR(160),SUBSTITUTE($Y209,\"{\",CHAR(160),HK$1))+1),\"\")","v":""},{"$f":"IFERROR(MID($Y209,FIND(CHAR(160),SUBSTITUTE($Y209,\"{\",CHAR(160),HL$1)),FIND(CHAR(160),SUBSTITUTE($Y209,\"}\",CHAR(160),HL$1))-FIND(CHAR(160),SUBSTITUTE($Y209,\"{\",CHAR(160),HL$1))+1),\"\")","v":""},{"$f":"IFERROR(MID($Y209,FIND(CHAR(160),SUBSTITUTE($Y209,\"{\",CHAR(160),HM$1)),FIND(CHAR(160),SUBSTITUTE($Y209,\"}\",CHAR(160),HM$1))-FIND(CHAR(160),SUBSTITUTE($Y209,\"{\",CHAR(160),HM$1))+1),\"\")","v":""},{"$f":"IFERROR(MID($Y209,FIND(CHAR(160),SUBSTITUTE($Y209,\"{\",CHAR(160),HN$1)),FIND(CHAR(160),SUBSTITUTE($Y209,\"}\",CHAR(160),HN$1))-FIND(CHAR(160),SUBSTITUTE($Y209,\"{\",CHAR(160),HN$1))+1),\"\")","v":""},{"$f":"IFERROR(MID($Y209,FIND(CHAR(160),SUBSTITUTE($Y209,\"{\",CHAR(160),HO$1)),FIND(CHAR(160),SUBSTITUTE($Y209,\"}\",CHAR(160),HO$1))-FIND(CHAR(160),SUBSTITUTE($Y209,\"{\",CHAR(160),HO$1))+1),\"\")","v":""},{"$f":"IFERROR(MID($Y209,FIND(CHAR(160),SUBSTITUTE($Y209,\"{\",CHAR(160),HP$1)),FIND(CHAR(160),SUBSTITUTE($Y209,\"}\",CHAR(160),HP$1))-FIND(CHAR(160),SUBSTITUTE($Y209,\"{\",CHAR(160),HP$1))+1),\"\")","v":""},{"$f":"IFERROR(MID($Y209,FIND(CHAR(160),SUBSTITUTE($Y209,\"{\",CHAR(160),HQ$1)),FIND(CHAR(160),SUBSTITUTE($Y209,\"}\",CHAR(160),HQ$1))-FIND(CHAR(160),SUBSTITUTE($Y209,\"{\",CHAR(160),HQ$1))+1),\"\")","v":""},{"$f":"IFERROR(MID($Y209,FIND(CHAR(160),SUBSTITUTE($Y209,\"{\",CHAR(160),HR$1)),FIND(CHAR(160),SUBSTITUTE($Y209,\"}\",CHAR(160),HR$1))-FIND(CHAR(160),SUBSTITUTE($Y209,\"{\",CHAR(160),HR$1))+1),\"\")","v":""},{"$f":"IFERROR(MID($Y209,FIND(CHAR(160),SUBSTITUTE($Y209,\"{\",CHAR(160),HS$1)),FIND(CHAR(160),SUBSTITUTE($Y209,\"}\",CHAR(160),HS$1))-FIND(CHAR(160),SUBSTITUTE($Y209,\"{\",CHAR(160),HS$1))+1),\"\")","v":""},{"$f":"IFERROR(MID($Y209,FIND(CHAR(160),SUBSTITUTE($Y209,\"{\",CHAR(160),HT$1)),FIND(CHAR(160),SUBSTITUTE($Y209,\"}\",CHAR(160),HT$1))-FIND(CHAR(160),SUBSTITUTE($Y209,\"{\",CHAR(160),HT$1))+1),\"\")","v":""},{"$f":"IFERROR(MID($Z209,FIND(CHAR(160),SUBSTITUTE($Z209,\"{\",CHAR(160),HU$1)),FIND(CHAR(160),SUBSTITUTE($Z209,\"}\",CHAR(160),HU$1))-FIND(CHAR(160),SUBSTITUTE($Z209,\"{\",CHAR(160),HU$1))+1),\"\")","v":""},{"$f":"IFERROR(MID($Z209,FIND(CHAR(160),SUBSTITUTE($Z209,\"{\",CHAR(160),HV$1)),FIND(CHAR(160),SUBSTITUTE($Z209,\"}\",CHAR(160),HV$1))-FIND(CHAR(160),SUBSTITUTE($Z209,\"{\",CHAR(160),HV$1))+1),\"\")","v":""},{"$f":"IFERROR(MID($Z209,FIND(CHAR(160),SUBSTITUTE($Z209,\"{\",CHAR(160),HW$1)),FIND(CHAR(160),SUBSTITUTE($Z209,\"}\",CHAR(160),HW$1))-FIND(CHAR(160),SUBSTITUTE($Z209,\"{\",CHAR(160),HW$1))+1),\"\")","v":""},{"$f":"IFERROR(MID($Z209,FIND(CHAR(160),SUBSTITUTE($Z209,\"{\",CHAR(160),HX$1)),FIND(CHAR(160),SUBSTITUTE($Z209,\"}\",CHAR(160),HX$1))-FIND(CHAR(160),SUBSTITUTE($Z209,\"{\",CHAR(160),HX$1))+1),\"\")","v":""},{"$f":"IFERROR(MID($Z209,FIND(CHAR(160),SUBSTITUTE($Z209,\"{\",CHAR(160),HY$1)),FIND(CHAR(160),SUBSTITUTE($Z209,\"}\",CHAR(160),HY$1))-FIND(CHAR(160),SUBSTITUTE($Z209,\"{\",CHAR(160),HY$1))+1),\"\")","v":""},{"$f":"IFERROR(MID($Z209,FIND(CHAR(160),SUBSTITUTE($Z209,\"{\",CHAR(160),HZ$1)),FIND(CHAR(160),SUBSTITUTE($Z209,\"}\",CHAR(160),HZ$1))-FIND(CHAR(160),SUBSTITUTE($Z209,\"{\",CHAR(160),HZ$1))+1),\"\")","v":""},{"$f":"IFERROR(MID($Z209,FIND(CHAR(160),SUBSTITUTE($Z209,\"{\",CHAR(160),IA$1)),FIND(CHAR(160),SUBSTITUTE($Z209,\"}\",CHAR(160),IA$1))-FIND(CHAR(160),SUBSTITUTE($Z209,\"{\",CHAR(160),IA$1))+1),\"\")","v":""},{"$f":"IFERROR(MID($Z209,FIND(CHAR(160),SUBSTITUTE($Z209,\"{\",CHAR(160),IB$1)),FIND(CHAR(160),SUBSTITUTE($Z209,\"}\",CHAR(160),IB$1))-FIND(CHAR(160),SUBSTITUTE($Z209,\"{\",CHAR(160),IB$1))+1),\"\")","v":""},{"$f":"IFERROR(MID($Z209,FIND(CHAR(160),SUBSTITUTE($Z209,\"{\",CHAR(160),IC$1)),FIND(CHAR(160),SUBSTITUTE($Z209,\"}\",CHAR(160),IC$1))-FIND(CHAR(160),SUBSTITUTE($Z209,\"{\",CHAR(160),IC$1))+1),\"\")","v":""},{"$f":"IFERROR(MID($Z209,FIND(CHAR(160),SUBSTITUTE($Z209,\"{\",CHAR(160),ID$1)),FIND(CHAR(160),SUBSTITUTE($Z209,\"}\",CHAR(160),ID$1))-FIND(CHAR(160),SUBSTITUTE($Z209,\"{\",CHAR(160),ID$1))+1),\"\")","v":""},{"$f":"IFERROR(MID($AA209,FIND(CHAR(160),SUBSTITUTE($AA209,\"{\",CHAR(160),IE$1)),FIND(CHAR(160),SUBSTITUTE($AA209,\"}\",CHAR(160),IE$1))-FIND(CHAR(160),SUBSTITUTE($AA209,\"{\",CHAR(160),IE$1))+1),\"\")","v":""},{"$f":"IFERROR(MID($AA209,FIND(CHAR(160),SUBSTITUTE($AA209,\"{\",CHAR(160),IF$1)),FIND(CHAR(160),SUBSTITUTE($AA209,\"}\",CHAR(160),IF$1))-FIND(CHAR(160),SUBSTITUTE($AA209,\"{\",CHAR(160),IF$1))+1),\"\")","v":""},{"$f":"IFERROR(MID($AA209,FIND(CHAR(160),SUBSTITUTE($AA209,\"{\",CHAR(160),IG$1)),FIND(CHAR(160),SUBSTITUTE($AA209,\"}\",CHAR(160),IG$1))-FIND(CHAR(160),SUBSTITUTE($AA209,\"{\",CHAR(160),IG$1))+1),\"\")","v":""},{"$f":"IFERROR(MID($AA209,FIND(CHAR(160),SUBSTITUTE($AA209,\"{\",CHAR(160),IH$1)),FIND(CHAR(160),SUBSTITUTE($AA209,\"}\",CHAR(160),IH$1))-FIND(CHAR(160),SUBSTITUTE($AA209,\"{\",CHAR(160),IH$1))+1),\"\")","v":""},{"$f":"IFERROR(MID($AA209,FIND(CHAR(160),SUBSTITUTE($AA209,\"{\",CHAR(160),II$1)),FIND(CHAR(160),SUBSTITUTE($AA209,\"}\",CHAR(160),II$1))-FIND(CHAR(160),SUBSTITUTE($AA209,\"{\",CHAR(160),II$1))+1),\"\")","v":""},{"$f":"IFERROR(MID($AA209,FIND(CHAR(160),SUBSTITUTE($AA209,\"{\",CHAR(160),IJ$1)),FIND(CHAR(160),SUBSTITUTE($AA209,\"}\",CHAR(160),IJ$1))-FIND(CHAR(160),SUBSTITUTE($AA209,\"{\",CHAR(160),IJ$1))+1),\"\")","v":""},{"$f":"IFERROR(MID($AA209,FIND(CHAR(160),SUBSTITUTE($AA209,\"{\",CHAR(160),IK$1)),FIND(CHAR(160),SUBSTITUTE($AA209,\"}\",CHAR(160),IK$1))-FIND(CHAR(160),SUBSTITUTE($AA209,\"{\",CHAR(160),IK$1))+1),\"\")","v":""},{"$f":"IFERROR(MID($AA209,FIND(CHAR(160),SUBSTITUTE($AA209,\"{\",CHAR(160),IL$1)),FIND(CHAR(160),SUBSTITUTE($AA209,\"}\",CHAR(160),IL$1))-FIND(CHAR(160),SUBSTITUTE($AA209,\"{\",CHAR(160),IL$1))+1),\"\")","v":""},{"$f":"IFERROR(MID($AA209,FIND(CHAR(160),SUBSTITUTE($AA209,\"{\",CHAR(160),IM$1)),FIND(CHAR(160),SUBSTITUTE($AA209,\"}\",CHAR(160),IM$1))-FIND(CHAR(160),SUBSTITUTE($AA209,\"{\",CHAR(160),IM$1))+1),\"\")","v":""},{"$f":"IFERROR(MID($AA209,FIND(CHAR(160),SUBSTITUTE($AA209,\"{\",CHAR(160),IN$1)),FIND(CHAR(160),SUBSTITUTE($AA209,\"}\",CHAR(160),IN$1))-FIND(CHAR(160),SUBSTITUTE($AA209,\"{\",CHAR(160),IN$1))+1),\"\")","v":""},{"$f":"IFERROR(MID($AB209,FIND(CHAR(160),SUBSTITUTE($AB209,\"{\",CHAR(160),IO$1)),FIND(CHAR(160),SUBSTITUTE($AB209,\"}\",CHAR(160),IO$1))-FIND(CHAR(160),SUBSTITUTE($AB209,\"{\",CHAR(160),IO$1))+1),\"\")","v":""},{"$f":"IFERROR(MID($AB209,FIND(CHAR(160),SUBSTITUTE($AB209,\"{\",CHAR(160),IP$1)),FIND(CHAR(160),SUBSTITUTE($AB209,\"}\",CHAR(160),IP$1))-FIND(CHAR(160),SUBSTITUTE($AB209,\"{\",CHAR(160),IP$1))+1),\"\")","v":""},{"$f":"IFERROR(MID($AB209,FIND(CHAR(160),SUBSTITUTE($AB209,\"{\",CHAR(160),IQ$1)),FIND(CHAR(160),SUBSTITUTE($AB209,\"}\",CHAR(160),IQ$1))-FIND(CHAR(160),SUBSTITUTE($AB209,\"{\",CHAR(160),IQ$1))+1),\"\")","v":""},{"$f":"IFERROR(MID($AB209,FIND(CHAR(160),SUBSTITUTE($AB209,\"{\",CHAR(160),IR$1)),FIND(CHAR(160),SUBSTITUTE($AB209,\"}\",CHAR(160),IR$1))-FIND(CHAR(160),SUBSTITUTE($AB209,\"{\",CHAR(160),IR$1))+1),\"\")","v":""},{"$f":"IFERROR(MID($AB209,FIND(CHAR(160),SUBSTITUTE($AB209,\"{\",CHAR(160),IS$1)),FIND(CHAR(160),SUBSTITUTE($AB209,\"}\",CHAR(160),IS$1))-FIND(CHAR(160),SUBSTITUTE($AB209,\"{\",CHAR(160),IS$1))+1),\"\")","v":""},{"$f":"IFERROR(MID($AB209,FIND(CHAR(160),SUBSTITUTE($AB209,\"{\",CHAR(160),IT$1)),FIND(CHAR(160),SUBSTITUTE($AB209,\"}\",CHAR(160),IT$1))-FIND(CHAR(160),SUBSTITUTE($AB209,\"{\",CHAR(160),IT$1))+1),\"\")","v":""},{"$f":"IFERROR(MID($AB209,FIND(CHAR(160),SUBSTITUTE($AB209,\"{\",CHAR(160),IU$1)),FIND(CHAR(160),SUBSTITUTE($AB209,\"}\",CHAR(160),IU$1))-FIND(CHAR(160),SUBSTITUTE($AB209,\"{\",CHAR(160),IU$1))+1),\"\")","v":""},{"$f":"IFERROR(MID($AB209,FIND(CHAR(160),SUBSTITUTE($AB209,\"{\",CHAR(160),IV$1)),FIND(CHAR(160),SUBSTITUTE($AB209,\"}\",CHAR(160),IV$1))-FIND(CHAR(160),SUBSTITUTE($AB209,\"{\",CHAR(160),IV$1))+1),\"\")","v":""},{"$f":"IFERROR(MID($AB209,FIND(CHAR(160),SUBSTITUTE($AB209,\"{\",CHAR(160),IW$1)),FIND(CHAR(160),SUBSTITUTE($AB209,\"}\",CHAR(160),IW$1))-FIND(CHAR(160),SUBSTITUTE($AB209,\"{\",CHAR(160),IW$1))+1),\"\")","v":""},{"$f":"IFERROR(MID($AB209,FIND(CHAR(160),SUBSTITUTE($AB209,\"{\",CHAR(160),IX$1)),FIND(CHAR(160),SUBSTITUTE($AB209,\"}\",CHAR(160),IX$1))-FIND(CHAR(160),SUBSTITUTE($AB209,\"{\",CHAR(160),IX$1))+1),\"\")","v":""},null,{"$f":"10-COUNTIF(DU209:ED209,\"\")","v":2}]
["Low Income - NECEC Funds","Heat Pump Water Heater Direct Install","LIHPWH","2021-07-01","2022-06-30","Calculated","2300*{Measure:Quantity}+{Bulb Qty Installed}*5+{Kitchen Aerator Qty Installed}*25+{Bathroom Aerator Qty Installed}*10+{Showerhead Qty Installed}*35",0,"Calculated","2300*{Measure:Quantity}+{Bulb Qty Installed}*5+{Kitchen Aerator Qty Installed}*25+{Bathroom Aerator Qty Installed}*10+{Showerhead Qty Installed}*35",0,"2021-07-01","2022-06-30","Calculated","if({Measure:Quantity}=0,0,{Measure:Quantity}*-946)",null,null,"if({Measure:Quantity}=0,0,{Measure:Quantity}*-0.119)",null,null,"if({Measure:Quantity}=0,0,{Measure:Quantity}*-0.119)","if({Measure:Quantity}=0,0,{Measure:Quantity}*-0.103)",null,null,"if({Measure:Quantity}=0,0,{Measure:Quantity}*20.37)",null,null,null,"2021-07-01","2022-06-30",13,1,1,0.35799999999999998,0.308,0.17899999999999999,0.155,1,1,1,0,0,null,{"$f":"DU210","v":"{Measure:Quantity}"},1,{"$f":"DV210","v":"{Bulb Qty Installed}"},9.5,{"$f":"DW210","v":"{Kitchen Aerator Qty Installed}"},0.5,{"$f":"DX210","v":"{Bathroom Aerator Qty Installed}"},0.5,{"$f":"DY210","v":"{Showerhead Qty Installed}"},0.5,{"$f":"DZ210","v":""},null,{"$f":"EA210","v":""},null,{"$f":"EB210","v":""},null,{"$f":"EC210","v":""},null,"LIDI Bundle Qty",1,{"$f":"IF(AS210=0,0,AS210*-946)","v":-946},0,0,{"$f":"IF(AS210=0,0,AS210*-0.119)","v":-0.11899999999999999},0,0,{"$f":"IF(AS210=0,0,AS210*-0.119)","v":-0.11899999999999999},{"$f":"IF(AS210=0,0,AS210*-0.103)","v":-0.10299999999999999},0,0,{"$f":"IF(AS210=0,0,AS210*20.37)","v":20.37},0,0,0,0,"Res","Default DR",{"$f":"Benefits(BL210,BR210,BS210,BT210,BU210,BV210,BW210,BX210,BY210,BZ210,AE210,AH210,AI210,AJ210,AK210,AL210,AM210,AN210,AO210,AP210,CA210,CB210)","v":-1137.1757657809696},-571.01050759198733,0,7683.6888616134356,0,0,0,0,0,{"$f":"SUMPRODUCT(CC210:CK210,--(CC210:CK210>0))","v":7683.6888616134356},{"$f":"-SUMPRODUCT(CC210:CK210,--(CC210:CK210<0))","v":1708.186273372957},null,{"$f":"2300*AS210+AU210*5+AW210*25+AY210*10+BA210*35","v":2382.5},null,null,{"$f":"CM210+CO210","v":4090.6862733729567},{"$f":"IF(NetOrGross=\"Net\",(1-AO210+AP210),1)","v":1},{"$f":"(SUMPRODUCT(CC210:CJ210,--(CC210:CJ210>0))+CN210)*CS210/((-SUMPRODUCT(CC210:CJ210,--(CC210:CJ210<0))+MAX(CO210,CV210)+CP210+CQ210)*CS210+IF(FRIncentives=\"Yes\",CV210*(1-CS210),0))","v":1.8783373615395553},1,{"$f":"2300*AS210+AU210*5+AW210*25+AY210*10+BA210*35","v":2382.5},null,"Electric","y",{"$f":"CL210-CR210","v":3593.0025882404789},{"$f":"IF(F210=\"Manual Entry\",\"Manual\",IF(G210=\"\",0,\"X=\"&SUBSTITUTE(SUBSTITUTE(SUBSTITUTE(SUBSTITUTE(SUBSTITUTE(SUBSTITUTE(SUBSTITUTE(SUBSTITUTE(SUBSTITUTE(SUBSTITUTE(SUBSTITUTE(SUBSTITUTE(G210,$ED210,$ED$2&ROW($ED210)),$EC210,$EC$2&ROW($EC210)),$EB210,$EB$2&ROW($EB210)),$EA210,$EA$2&ROW($EA210)),$DZ210,$DZ$2&ROW($DZ210)),$DY210,$DY$2&ROW($DY210)),$DX210,$DX$2&ROW($DX210)),$DW210,$DW$2&ROW($DW210)),$DV210,$DV$2&ROW($DV210)),$DU210,$DU$2&ROW($DU210)),$DT210,$DT$2&ROW($DT210)),$DS210,$DS$2&ROW($DS210))))","v":"X=2300*AS210+AU210*5+AW210*25+AY210*10+BA210*35"},{"$f":"IF(I210=\"Manual Entry\",\"Manual\",IF(J210=\"\",0,\"X=\"&SUBSTITUTE(SUBSTITUTE(SUBSTITUTE(SUBSTITUTE(SUBSTITUTE(SUBSTITUTE(SUBSTITUTE(SUBSTITUTE(SUBSTITUTE(SUBSTITUTE(SUBSTITUTE(SUBSTITUTE(J210,$ED210,$ED$2&ROW($ED210)),$EC210,$EC$2&ROW($EC210)),$EB210,$EB$2&ROW($EB210)),$EA210,$EA$2&ROW($EA210)),$DZ210,$DZ$2&ROW($DZ210)),$DY210,$DY$2&ROW($DY210)),$DX210,$DX$2&ROW($DX210)),$DW210,$DW$2&ROW($DW210)),$DV210,$DV$2&ROW($DV210)),$DU210,$DU$2&ROW($DU210)),$DT210,$DT$2&ROW($DT210)),$DS210,$DS$2&ROW($DS210))))","v":"X=2300*AS210+AU210*5+AW210*25+AY210*10+BA210*35"},{"$f":"IF(O210=\"\",0,\"X=\"&SUBSTITUTE(SUBSTITUTE(SUBSTITUTE(SUBSTITUTE(SUBSTITUTE(SUBSTITUTE(SUBSTITUTE(SUBSTITUTE(SUBSTITUTE(SUBSTITUTE(SUBSTITUTE(SUBSTITUTE(O210,$ED210,$ED$2&ROW($ED210)),$EC210,$EC$2&ROW($EC210)),$EB210,$EB$2&ROW($EB210)),$EA210,$EA$2&ROW($EA210)),$DZ210,$DZ$2&ROW($DZ210)),$DY210,$DY$2&ROW($DY210)),$DX210,$DX$2&ROW($DX210)),$DW210,$DW$2&ROW($DW210)),$DV210,$DV$2&ROW($DV210)),$DU210,$DU$2&ROW($DU210)),$DT210,$DT$2&ROW($DT210)),$DS210,$DS$2&ROW($DS210)))","v":"X=if(AS210=0,0,AS210*-946)"},{"$f":"IF(P210=\"\",0,\"X=\"&SUBSTITUTE(SUBSTITUTE(SUBSTITUTE(SUBSTITUTE(SUBSTITUTE(SUBSTITUTE(SUBSTITUTE(SUBSTITUTE(SUBSTITUTE(SUBSTITUTE(SUBSTITUTE(SUBSTITUTE(P210,$ED210,$ED$2&ROW($ED210)),$EC210,$EC$2&ROW($EC210)),$EB210,$EB$2&ROW($EB210)),$EA210,$EA$2&ROW($EA210)),$DZ210,$DZ$2&ROW($DZ210)),$DY210,$DY$2&ROW($DY210)),$DX210,$DX$2&ROW($DX210)),$DW210,$DW$2&ROW($DW210)),$DV210,$DV$2&ROW($DV210)),$DU210,$DU$2&ROW($DU210)),$DT210,$DT$2&ROW($DT210)),$DS210,$DS$2&ROW($DS210)))","v":0},{"$f":"IF(Q210=\"\",0,\"X=\"&SUBSTITUTE(SUBSTITUTE(SUBSTITUTE(SUBSTITUTE(SUBSTITUTE(SUBSTITUTE(SUBSTITUTE(SUBSTITUTE(SUBSTITUTE(SUBSTITUTE(SUBSTITUTE(SUBSTITUTE(Q210,$ED210,$ED$2&ROW($ED210)),$EC210,$EC$2&ROW($EC210)),$EB210,$EB$2&ROW($EB210)),$EA210,$EA$2&ROW($EA210)),$DZ210,$DZ$2&ROW($DZ210)),$DY210,$DY$2&ROW($DY210)),$DX210,$DX$2&ROW($DX210)),$DW210,$DW$2&ROW($DW210)),$DV210,$DV$2&ROW($DV210)),$DU210,$DU$2&ROW($DU210)),$DT210,$DT$2&ROW($DT210)),$DS210,$DS$2&ROW($DS210)))","v":0},{"$f":"IF(R210=\"\",0,\"X=\"&SUBSTITUTE(SUBSTITUTE(SUBSTITUTE(SUBSTITUTE(SUBSTITUTE(SUBSTITUTE(SUBSTITUTE(SUBSTITUTE(SUBSTITUTE(SUBSTITUTE(SUBSTITUTE(SUBSTITUTE(R210,$ED210,$ED$2&ROW($ED210)),$EC210,$EC$2&ROW($EC210)),$EB210,$EB$2&ROW($EB210)),$EA210,$EA$2&ROW($EA210)),$DZ210,$DZ$2&ROW($DZ210)),$DY210,$DY$2&ROW($DY210)),$DX210,$DX$2&ROW($DX210)),$DW210,$DW$2&ROW($DW210)),$DV210,$DV$2&ROW($DV210)),$DU210,$DU$2&ROW($DU210)),$DT210,$DT$2&ROW($DT210)),$DS210,$DS$2&ROW($DS210)))","v":"X=if(AS210=0,0,AS210*-0.119)"},{"$f":"IF(S210=\"\",0,\"X=\"&SUBSTITUTE(SUBSTITUTE(SUBSTITUTE(SUBSTITUTE(SUBSTITUTE(SUBSTITUTE(SUBSTITUTE(SUBSTITUTE(SUBSTITUTE(SUBSTITUTE(SUBSTITUTE(SUBSTITUTE(S210,$ED210,$ED$2&ROW($ED210)),$EC210,$EC$2&ROW($EC210)),$EB210,$EB$2&ROW($EB210)),$EA210,$EA$2&ROW($EA210)),$DZ210,$DZ$2&ROW($DZ210)),$DY210,$DY$2&ROW($DY210)),$DX210,$DX$2&ROW($DX210)),$DW210,$DW$2&ROW($DW210)),$DV210,$DV$2&ROW($DV210)),$DU210,$DU$2&ROW($DU210)),$DT210,$DT$2&ROW($DT210)),$DS210,$DS$2&ROW($DS210)))","v":0},{"$f":"IF(T210=\"\",0,\"X=\"&SUBSTITUTE(SUBSTITUTE(SUBSTITUTE(SUBSTITUTE(SUBSTITUTE(SUBSTITUTE(SUBSTITUTE(SUBSTITUTE(SUBSTITUTE(SUBSTITUTE(SUBSTITUTE(SUBSTITUTE(T210,$ED210,$ED$2&ROW($ED210)),$EC210,$EC$2&ROW($EC210)),$EB210,$EB$2&ROW($EB210)),$EA210,$EA$2&ROW($EA210)),$DZ210,$DZ$2&ROW($DZ210)),$DY210,$DY$2&ROW($DY210)),$DX210,$DX$2&ROW($DX210)),$DW210,$DW$2&ROW($DW210)),$DV210,$DV$2&ROW($DV210)),$DU210,$DU$2&ROW($DU210)),$DT210,$DT$2&ROW($DT210)),$DS210,$DS$2&ROW($DS210)))","v":0},{"$f":"IF(U210=\"\",0,\"X=\"&SUBSTITUTE(SUBSTITUTE(SUBSTITUTE(SUBSTITUTE(SUBSTITUTE(SUBSTITUTE(SUBSTITUTE(SUBSTITUTE(SUBSTITUTE(SUBSTITUTE(SUBSTITUTE(SUBSTITUTE(U210,$ED210,$ED$2&ROW($ED210)),$EC210,$EC$2&ROW($EC210)),$EB210,$EB$2&ROW($EB210)),$EA210,$EA$2&ROW($EA210)),$DZ210,$DZ$2&ROW($DZ210)),$DY210,$DY$2&ROW($DY210)),$DX210,$DX$2&ROW($DX210)),$DW210,$DW$2&ROW($DW210)),$DV210,$DV$2&ROW($DV210)),$DU210,$DU$2&ROW($DU210)),$DT210,$DT$2&ROW($DT210)),$DS210,$DS$2&ROW($DS210)))","v":"X=if(AS210=0,0,AS210*-0.119)"},{"$f":"IF(V210=\"\",0,\"X=\"&SUBSTITUTE(SUBSTITUTE(SUBSTITUTE(SUBSTITUTE(SUBSTITUTE(SUBSTITUTE(SUBSTITUTE(SUBSTITUTE(SUBSTITUTE(SUBSTITUTE(SUBSTITUTE(SUBSTITUTE(V210,$ED210,$ED$2&ROW($ED210)),$EC210,$EC$2&ROW($EC210)),$EB210,$EB$2&ROW($EB210)),$EA210,$EA$2&ROW($EA210)),$DZ210,$DZ$2&ROW($DZ210)),$DY210,$DY$2&ROW($DY210)),$DX210,$DX$2&ROW($DX210)),$DW210,$DW$2&ROW($DW210)),$DV210,$DV$2&ROW($DV210)),$DU210,$DU$2&ROW($DU210)),$DT210,$DT$2&ROW($DT210)),$DS210,$DS$2&ROW($DS210)))","v":"X=if(AS210=0,0,AS210*-0.103)"},{"$f":"IF(W210=\"\",0,\"X=\"&SUBSTITUTE(SUBSTITUTE(SUBSTITUTE(SUBSTITUTE(SUBSTITUTE(SUBSTITUTE(SUBSTITUTE(SUBSTITUTE(SUBSTITUTE(SUBSTITUTE(SUBSTITUTE(SUBSTITUTE(W210,$ED210,$ED$2&ROW($ED210)),$EC210,$EC$2&ROW($EC210)),$EB210,$EB$2&ROW($EB210)),$EA210,$EA$2&ROW($EA210)),$DZ210,$DZ$2&ROW($DZ210)),$DY210,$DY$2&ROW($DY210)),$DX210,$DX$2&ROW($DX210)),$DW210,$DW$2&ROW($DW210)),$DV210,$DV$2&ROW($DV210)),$DU210,$DU$2&ROW($DU210)),$DT210,$DT$2&ROW($DT210)),$DS210,$DS$2&ROW($DS210)))","v":0},{"$f":"IF(X210=\"\",0,\"X=\"&SUBSTITUTE(SUBSTITUTE(SUBSTITUTE(SUBSTITUTE(SUBSTITUTE(SUBSTITUTE(SUBSTITUTE(SUBSTITUTE(SUBSTITUTE(SUBSTITUTE(SUBSTITUTE(SUBSTITUTE(X210,$ED210,$ED$2&ROW($ED210)),$EC210,$EC$2&ROW($EC210)),$EB210,$EB$2&ROW($EB210)),$EA210,$EA$2&ROW($EA210)),$DZ210,$DZ$2&ROW($DZ210)),$DY210,$DY$2&ROW($DY210)),$DX210,$DX$2&ROW($DX210)),$DW210,$DW$2&ROW($DW210)),$DV210,$DV$2&ROW($DV210)),$DU210,$DU$2&ROW($DU210)),$DT210,$DT$2&ROW($DT210)),$DS210,$DS$2&ROW($DS210)))","v":0},{"$f":"IF(Y210=\"\",0,\"X=\"&SUBSTITUTE(SUBSTITUTE(SUBSTITUTE(SUBSTITUTE(SUBSTITUTE(SUBSTITUTE(SUBSTITUTE(SUBSTITUTE(SUBSTITUTE(SUBSTITUTE(SUBSTITUTE(SUBSTITUTE(Y210,$ED210,$ED$2&ROW($ED210)),$EC210,$EC$2&ROW($EC210)),$EB210,$EB$2&ROW($EB210)),$EA210,$EA$2&ROW($EA210)),$DZ210,$DZ$2&ROW($DZ210)),$DY210,$DY$2&ROW($DY210)),$DX210,$DX$2&ROW($DX210)),$DW210,$DW$2&ROW($DW210)),$DV210,$DV$2&ROW($DV210)),$DU210,$DU$2&ROW($DU210)),$DT210,$DT$2&ROW($DT210)),$DS210,$DS$2&ROW($DS210)))","v":"X=if(AS210=0,0,AS210*20.37)"},{"$f":"IF(Z210=\"\",0,\"X=\"&SUBSTITUTE(SUBSTITUTE(SUBSTITUTE(SUBSTITUTE(SUBSTITUTE(SUBSTITUTE(SUBSTITUTE(SUBSTITUTE(SUBSTITUTE(SUBSTITUTE(SUBSTITUTE(SUBSTITUTE(Z210,$ED210,$ED$2&ROW($ED210)),$EC210,$EC$2&ROW($EC210)),$EB210,$EB$2&ROW($EB210)),$EA210,$EA$2&ROW($EA210)),$DZ210,$DZ$2&ROW($DZ210)),$DY210,$DY$2&ROW($DY210)),$DX210,$DX$2&ROW($DX210)),$DW210,$DW$2&ROW($DW210)),$DV210,$DV$2&ROW($DV210)),$DU210,$DU$2&ROW($DU210)),$DT210,$DT$2&ROW($DT210)),$DS210,$DS$2&ROW($DS210)))","v":0},{"$f":"IF(AA210=\"\",0,\"X=\"&SUBSTITUTE(SUBSTITUTE(SUBSTITUTE(SUBSTITUTE(SUBSTITUTE(SUBSTITUTE(SUBSTITUTE(SUBSTITUTE(SUBSTITUTE(SUBSTITUTE(SUBSTITUTE(SUBSTITUTE(AA210,$ED210,$ED$2&ROW($ED210)),$EC210,$EC$2&ROW($EC210)),$EB210,$EB$2&ROW($EB210)),$EA210,$EA$2&ROW($EA210)),$DZ210,$DZ$2&ROW($DZ210)),$DY210,$DY$2&ROW($DY210)),$DX210,$DX$2&ROW($DX210)),$DW210,$DW$2&ROW($DW210)),$DV210,$DV$2&ROW($DV210)),$DU210,$DU$2&ROW($DU210)),$DT210,$DT$2&ROW($DT210)),$DS210,$DS$2&ROW($DS210)))","v":0},{"$f":"IF(AB210=\"\",0,\"X=\"&SUBSTITUTE(SUBSTITUTE(SUBSTITUTE(SUBSTITUTE(SUBSTITUTE(SUBSTITUTE(SUBSTITUTE(SUBSTITUTE(SUBSTITUTE(SUBSTITUTE(SUBSTITUTE(SUBSTITUTE(AB210,$ED210,$ED$2&ROW($ED210)),$EC210,$EC$2&ROW($EC210)),$EB210,$EB$2&ROW($EB210)),$EA210,$EA$2&ROW($EA210)),$DZ210,$DZ$2&ROW($DZ210)),$DY210,$DY$2&ROW($DY210)),$DX210,$DX$2&ROW($DX210)),$DW210,$DW$2&ROW($DW210)),$DV210,$DV$2&ROW($DV210)),$DU210,$DU$2&ROW($DU210)),$DT210,$DT$2&ROW($DT210)),$DS210,$DS$2&ROW($DS210)))","v":0},null,null,"{Factor:WinterCF}","{Factor:SummerCF}",{"$f":"IFERROR(INDEX($EG210:$IV210,MATCH(0,COUNTIF($DR210:DT210,$EG210:$IV210),0)),\"\")","v":"{Measure:Quantity}"},{"$f":"IFERROR(INDEX($EG210:$IV210,MATCH(0,COUNTIF($DR210:DU210,$EG210:$IV210),0)),\"\")","v":"{Bulb Qty Installed}"},{"$f":"IFERROR(INDEX($EG210:$IV210,MATCH(0,COUNTIF($DR210:DV210,$EG210:$IV210),0)),\"\")","v":"{Kitchen Aerator Qty Installed}"},{"$f":"IFERROR(INDEX($EG210:$IV210,MATCH(0,COUNTIF($DR210:DW210,$EG210:$IV210),0)),\"\")","v":"{Bathroom Aerator Qty Installed}"},{"$f":"IFERROR(INDEX($EG210:$IV210,MATCH(0,COUNTIF($DR210:DX210,$EG210:$IV210),0)),\"\")","v":"{Showerhead Qty Installed}"},{"$f":"IFERROR(INDEX($EG210:$IV210,MATCH(0,COUNTIF($DR210:DY210,$EG210:$IV210),0)),\"\")","v":""},{"$f":"IFERROR(INDEX($EG210:$IV210,MATCH(0,COUNTIF($DR210:DZ210,$EG210:$IV210),0)),\"\")","v":""},{"$f":"IFERROR(INDEX($EG210:$IV210,MATCH(0,COUNTIF($DR210:EA210,$EG210:$IV210),0)),\"\")","v":""},{"$f":"IFERROR(INDEX($EG210:$IV210,MATCH(0,COUNTIF($DR210:EB210,$EG210:$IV210),0)),\"\")","v":""},{"$f":"IFERROR(INDEX($EG210:$IV210,MATCH(0,COUNTIF($DR210:EC210,$EG210:$IV210),0)),\"\")","v":""},null,null,{"$f":"IFERROR(MID($G210,FIND(CHAR(160),SUBSTITUTE($G210,\"{\",CHAR(160),EG$1)),FIND(CHAR(160),SUBSTITUTE($G210,\"}\",CHAR(160),EG$1))-FIND(CHAR(160),SUBSTITUTE($G210,\"{\",CHAR(160),EG$1))+1),\"\")","v":"{Measure:Quantity}"},{"$f":"IFERROR(MID($G210,FIND(CHAR(160),SUBSTITUTE($G210,\"{\",CHAR(160),EH$1)),FIND(CHAR(160),SUBSTITUTE($G210,\"}\",CHAR(160),EH$1))-FIND(CHAR(160),SUBSTITUTE($G210,\"{\",CHAR(160),EH$1))+1),\"\")","v":"{Bulb Qty Installed}"},{"$f":"IFERROR(MID($G210,FIND(CHAR(160),SUBSTITUTE($G210,\"{\",CHAR(160),EI$1)),FIND(CHAR(160),SUBSTITUTE($G210,\"}\",CHAR(160),EI$1))-FIND(CHAR(160),SUBSTITUTE($G210,\"{\",CHAR(160),EI$1))+1),\"\")","v":"{Kitchen Aerator Qty Installed}"},{"$f":"IFERROR(MID($G210,FIND(CHAR(160),SUBSTITUTE($G210,\"{\",CHAR(160),EJ$1)),FIND(CHAR(160),SUBSTITUTE($G210,\"}\",CHAR(160),EJ$1))-FIND(CHAR(160),SUBSTITUTE($G210,\"{\",CHAR(160),EJ$1))+1),\"\")","v":"{Bathroom Aerator Qty Installed}"},{"$f":"IFERROR(MID($G210,FIND(CHAR(160),SUBSTITUTE($G210,\"{\",CHAR(160),EK$1)),FIND(CHAR(160),SUBSTITUTE($G210,\"}\",CHAR(160),EK$1))-FIND(CHAR(160),SUBSTITUTE($G210,\"{\",CHAR(160),EK$1))+1),\"\")","v":"{Showerhead Qty Installed}"},{"$f":"IFERROR(MID($G210,FIND(CHAR(160),SUBSTITUTE($G210,\"{\",CHAR(160),EL$1)),FIND(CHAR(160),SUBSTITUTE($G210,\"}\",CHAR(160),EL$1))-FIND(CHAR(160),SUBSTITUTE($G210,\"{\",CHAR(160),EL$1))+1),\"\")","v":""},{"$f":"IFERROR(MID($G210,FIND(CHAR(160),SUBSTITUTE($G210,\"{\",CHAR(160),EM$1)),FIND(CHAR(160),SUBSTITUTE($G210,\"}\",CHAR(160),EM$1))-FIND(CHAR(160),SUBSTITUTE($G210,\"{\",CHAR(160),EM$1))+1),\"\")","v":""},{"$f":"IFERROR(MID($G210,FIND(CHAR(160),SUBSTITUTE($G210,\"{\",CHAR(160),EN$1)),FIND(CHAR(160),SUBSTITUTE($G210,\"}\",CHAR(160),EN$1))-FIND(CHAR(160),SUBSTITUTE($G210,\"{\",CHAR(160),EN$1))+1),\"\")","v":""},{"$f":"IFERROR(MID($G210,FIND(CHAR(160),SUBSTITUTE($G210,\"{\",CHAR(160),EO$1)),FIND(CHAR(160),SUBSTITUTE($G210,\"}\",CHAR(160),EO$1))-FIND(CHAR(160),SUBSTITUTE($G210,\"{\",CHAR(160),EO$1))+1),\"\")","v":""},{"$f":"IFERROR(MID($G210,FIND(CHAR(160),SUBSTITUTE($G210,\"{\",CHAR(160),EP$1)),FIND(CHAR(160),SUBSTITUTE($G210,\"}\",CHAR(160),EP$1))-FIND(CHAR(160),SUBSTITUTE($G210,\"{\",CHAR(160),EP$1))+1),\"\")","v":""},{"$f":"IFERROR(MID($J210,FIND(CHAR(160),SUBSTITUTE($J210,\"{\",CHAR(160),EQ$1)),FIND(CHAR(160),SUBSTITUTE($J210,\"}\",CHAR(160),EQ$1))-FIND(CHAR(160),SUBSTITUTE($J210,\"{\",CHAR(160),EQ$1))+1),\"\")","v":"{Measure:Quantity}"},{"$f":"IFERROR(MID($J210,FIND(CHAR(160),SUBSTITUTE($J210,\"{\",CHAR(160),ER$1)),FIND(CHAR(160),SUBSTITUTE($J210,\"}\",CHAR(160),ER$1))-FIND(CHAR(160),SUBSTITUTE($J210,\"{\",CHAR(160),ER$1))+1),\"\")","v":"{Bulb Qty Installed}"},{"$f":"IFERROR(MID($J210,FIND(CHAR(160),SUBSTITUTE($J210,\"{\",CHAR(160),ES$1)),FIND(CHAR(160),SUBSTITUTE($J210,\"}\",CHAR(160),ES$1))-FIND(CHAR(160),SUBSTITUTE($J210,\"{\",CHAR(160),ES$1))+1),\"\")","v":"{Kitchen Aerator Qty Installed}"},{"$f":"IFERROR(MID($J210,FIND(CHAR(160),SUBSTITUTE($J210,\"{\",CHAR(160),ET$1)),FIND(CHAR(160),SUBSTITUTE($J210,\"}\",CHAR(160),ET$1))-FIND(CHAR(160),SUBSTITUTE($J210,\"{\",CHAR(160),ET$1))+1),\"\")","v":"{Bathroom Aerator Qty Installed}"},{"$f":"IFERROR(MID($J210,FIND(CHAR(160),SUBSTITUTE($J210,\"{\",CHAR(160),EU$1)),FIND(CHAR(160),SUBSTITUTE($J210,\"}\",CHAR(160),EU$1))-FIND(CHAR(160),SUBSTITUTE($J210,\"{\",CHAR(160),EU$1))+1),\"\")","v":"{Showerhead Qty Installed}"},{"$f":"IFERROR(MID($J210,FIND(CHAR(160),SUBSTITUTE($J210,\"{\",CHAR(160),EV$1)),FIND(CHAR(160),SUBSTITUTE($J210,\"}\",CHAR(160),EV$1))-FIND(CHAR(160),SUBSTITUTE($J210,\"{\",CHAR(160),EV$1))+1),\"\")","v":""},{"$f":"IFERROR(MID($J210,FIND(CHAR(160),SUBSTITUTE($J210,\"{\",CHAR(160),EW$1)),FIND(CHAR(160),SUBSTITUTE($J210,\"}\",CHAR(160),EW$1))-FIND(CHAR(160),SUBSTITUTE($J210,\"{\",CHAR(160),EW$1))+1),\"\")","v":""},{"$f":"IFERROR(MID($J210,FIND(CHAR(160),SUBSTITUTE($J210,\"{\",CHAR(160),EX$1)),FIND(CHAR(160),SUBSTITUTE($J210,\"}\",CHAR(160),EX$1))-FIND(CHAR(160),SUBSTITUTE($J210,\"{\",CHAR(160),EX$1))+1),\"\")","v":""},{"$f":"IFERROR(MID($J210,FIND(CHAR(160),SUBSTITUTE($J210,\"{\",CHAR(160),EY$1)),FIND(CHAR(160),SUBSTITUTE($J210,\"}\",CHAR(160),EY$1))-FIND(CHAR(160),SUBSTITUTE($J210,\"{\",CHAR(160),EY$1))+1),\"\")","v":""},{"$f":"IFERROR(MID($J210,FIND(CHAR(160),SUBSTITUTE($J210,\"{\",CHAR(160),EZ$1)),FIND(CHAR(160),SUBSTITUTE($J210,\"}\",CHAR(160),EZ$1))-FIND(CHAR(160),SUBSTITUTE($J210,\"{\",CHAR(160),EZ$1))+1),\"\")","v":""},{"$f":"IFERROR(MID($J210,FIND(CHAR(160),SUBSTITUTE($J210,\"{\",CHAR(160),FA$1)),FIND(CHAR(160),SUBSTITUTE($J210,\"}\",CHAR(160),FA$1))-FIND(CHAR(160),SUBSTITUTE($J210,\"{\",CHAR(160),FA$1))+1),\"\")","v":"{Measure:Quantity}"},{"$f":"IFERROR(MID($J210,FIND(CHAR(160),SUBSTITUTE($J210,\"{\",CHAR(160),FB$1)),FIND(CHAR(160),SUBSTITUTE($J210,\"}\",CHAR(160),FB$1))-FIND(CHAR(160),SUBSTITUTE($J210,\"{\",CHAR(160),FB$1))+1),\"\")","v":"{Bulb Qty Installed}"},{"$f":"IFERROR(MID($O210,FIND(CHAR(160),SUBSTITUTE($O210,\"{\",CHAR(160),FC$1)),FIND(CHAR(160),SUBSTITUTE($O210,\"}\",CHAR(160),FC$1))-FIND(CHAR(160),SUBSTITUTE($O210,\"{\",CHAR(160),FC$1))+1),\"\")","v":""},{"$f":"IFERROR(MID($O210,FIND(CHAR(160),SUBSTITUTE($O210,\"{\",CHAR(160),FD$1)),FIND(CHAR(160),SUBSTITUTE($O210,\"}\",CHAR(160),FD$1))-FIND(CHAR(160),SUBSTITUTE($O210,\"{\",CHAR(160),FD$1))+1),\"\")","v":""},{"$f":"IFERROR(MID($O210,FIND(CHAR(160),SUBSTITUTE($O210,\"{\",CHAR(160),FE$1)),FIND(CHAR(160),SUBSTITUTE($O210,\"}\",CHAR(160),FE$1))-FIND(CHAR(160),SUBSTITUTE($O210,\"{\",CHAR(160),FE$1))+1),\"\")","v":""},{"$f":"IFERROR(MID($O210,FIND(CHAR(160),SUBSTITUTE($O210,\"{\",CHAR(160),FF$1)),FIND(CHAR(160),SUBSTITUTE($O210,\"}\",CHAR(160),FF$1))-FIND(CHAR(160),SUBSTITUTE($O210,\"{\",CHAR(160),FF$1))+1),\"\")","v":""},{"$f":"IFERROR(MID($O210,FIND(CHAR(160),SUBSTITUTE($O210,\"{\",CHAR(160),FG$1)),FIND(CHAR(160),SUBSTITUTE($O210,\"}\",CHAR(160),FG$1))-FIND(CHAR(160),SUBSTITUTE($O210,\"{\",CHAR(160),FG$1))+1),\"\")","v":""},{"$f":"IFERROR(MID($O210,FIND(CHAR(160),SUBSTITUTE($O210,\"{\",CHAR(160),FH$1)),FIND(CHAR(160),SUBSTITUTE($O210,\"}\",CHAR(160),FH$1))-FIND(CHAR(160),SUBSTITUTE($O210,\"{\",CHAR(160),FH$1))+1),\"\")","v":""},{"$f":"IFERROR(MID($O210,FIND(CHAR(160),SUBSTITUTE($O210,\"{\",CHAR(160),FI$1)),FIND(CHAR(160),SUBSTITUTE($O210,\"}\",CHAR(160),FI$1))-FIND(CHAR(160),SUBSTITUTE($O210,\"{\",CHAR(160),FI$1))+1),\"\")","v":""},{"$f":"IFERROR(MID($O210,FIND(CHAR(160),SUBSTITUTE($O210,\"{\",CHAR(160),FJ$1)),FIND(CHAR(160),SUBSTITUTE($O210,\"}\",CHAR(160),FJ$1))-FIND(CHAR(160),SUBSTITUTE($O210,\"{\",CHAR(160),FJ$1))+1),\"\")","v":""},{"$f":"IFERROR(MID($O210,FIND(CHAR(160),SUBSTITUTE($O210,\"{\",CHAR(160),FK$1)),FIND(CHAR(160),SUBSTITUTE($O210,\"}\",CHAR(160),FK$1))-FIND(CHAR(160),SUBSTITUTE($O210,\"{\",CHAR(160),FK$1))+1),\"\")","v":"{Measure:Quantity}"},{"$f":"IFERROR(MID($O210,FIND(CHAR(160),SUBSTITUTE($O210,\"{\",CHAR(160),FL$1)),FIND(CHAR(160),SUBSTITUTE($O210,\"}\",CHAR(160),FL$1))-FIND(CHAR(160),SUBSTITUTE($O210,\"{\",CHAR(160),FL$1))+1),\"\")","v":"{Measure:Quantity}"},{"$f":"IFERROR(MID($R210,FIND(CHAR(160),SUBSTITUTE($R210,\"{\",CHAR(160),FM$1)),FIND(CHAR(160),SUBSTITUTE($R210,\"}\",CHAR(160),FM$1))-FIND(CHAR(160),SUBSTITUTE($R210,\"{\",CHAR(160),FM$1))+1),\"\")","v":""},{"$f":"IFERROR(MID($R210,FIND(CHAR(160),SUBSTITUTE($R210,\"{\",CHAR(160),FN$1)),FIND(CHAR(160),SUBSTITUTE($R210,\"}\",CHAR(160),FN$1))-FIND(CHAR(160),SUBSTITUTE($R210,\"{\",CHAR(160),FN$1))+1),\"\")","v":""},{"$f":"IFERROR(MID($R210,FIND(CHAR(160),SUBSTITUTE($R210,\"{\",CHAR(160),FO$1)),FIND(CHAR(160),SUBSTITUTE($R210,\"}\",CHAR(160),FO$1))-FIND(CHAR(160),SUBSTITUTE($R210,\"{\",CHAR(160),FO$1))+1),\"\")","v":""},{"$f":"IFERROR(MID($R210,FIND(CHAR(160),SUBSTITUTE($R210,\"{\",CHAR(160),FP$1)),FIND(CHAR(160),SUBSTITUTE($R210,\"}\",CHAR(160),FP$1))-FIND(CHAR(160),SUBSTITUTE($R210,\"{\",CHAR(160),FP$1))+1),\"\")","v":""},{"$f":"IFERROR(MID($R210,FIND(CHAR(160),SUBSTITUTE($R210,\"{\",CHAR(160),FQ$1)),FIND(CHAR(160),SUBSTITUTE($R210,\"}\",CHAR(160),FQ$1))-FIND(CHAR(160),SUBSTITUTE($R210,\"{\",CHAR(160),FQ$1))+1),\"\")","v":""},{"$f":"IFERROR(MID($R210,FIND(CHAR(160),SUBSTITUTE($R210,\"{\",CHAR(160),FR$1)),FIND(CHAR(160),SUBSTITUTE($R210,\"}\",CHAR(160),FR$1))-FIND(CHAR(160),SUBSTITUTE($R210,\"{\",CHAR(160),FR$1))+1),\"\")","v":""},{"$f":"IFERROR(MID($R210,FIND(CHAR(160),SUBSTITUTE($R210,\"{\",CHAR(160),FS$1)),FIND(CHAR(160),SUBSTITUTE($R210,\"}\",CHAR(160),FS$1))-FIND(CHAR(160),SUBSTITUTE($R210,\"{\",CHAR(160),FS$1))+1),\"\")","v":""},{"$f":"IFERROR(MID($R210,FIND(CHAR(160),SUBSTITUTE($R210,\"{\",CHAR(160),FT$1)),FIND(CHAR(160),SUBSTITUTE($R210,\"}\",CHAR(160),FT$1))-FIND(CHAR(160),SUBSTITUTE($R210,\"{\",CHAR(160),FT$1))+1),\"\")","v":""},{"$f":"IFERROR(MID($R210,FIND(CHAR(160),SUBSTITUTE($R210,\"{\",CHAR(160),FU$1)),FIND(CHAR(160),SUBSTITUTE($R210,\"}\",CHAR(160),FU$1))-FIND(CHAR(160),SUBSTITUTE($R210,\"{\",CHAR(160),FU$1))+1),\"\")","v":"{Measure:Quantity}"},{"$f":"IFERROR(MID($R210,FIND(CHAR(160),SUBSTITUTE($R210,\"{\",CHAR(160),FV$1)),FIND(CHAR(160),SUBSTITUTE($R210,\"}\",CHAR(160),FV$1))-FIND(CHAR(160),SUBSTITUTE($R210,\"{\",CHAR(160),FV$1))+1),\"\")","v":"{Measure:Quantity}"},{"$f":"IFERROR(MID($U210,FIND(CHAR(160),SUBSTITUTE($U210,\"{\",CHAR(160),FW$1)),FIND(CHAR(160),SUBSTITUTE($U210,\"}\",CHAR(160),FW$1))-FIND(CHAR(160),SUBSTITUTE($U210,\"{\",CHAR(160),FW$1))+1),\"\")","v":""},{"$f":"IFERROR(MID($U210,FIND(CHAR(160),SUBSTITUTE($U210,\"{\",CHAR(160),FX$1)),FIND(CHAR(160),SUBSTITUTE($U210,\"}\",CHAR(160),FX$1))-FIND(CHAR(160),SUBSTITUTE($U210,\"{\",CHAR(160),FX$1))+1),\"\")","v":""},{"$f":"IFERROR(MID($U210,FIND(CHAR(160),SUBSTITUTE($U210,\"{\",CHAR(160),FY$1)),FIND(CHAR(160),SUBSTITUTE($U210,\"}\",CHAR(160),FY$1))-FIND(CHAR(160),SUBSTITUTE($U210,\"{\",CHAR(160),FY$1))+1),\"\")","v":""},{"$f":"IFERROR(MID($U210,FIND(CHAR(160),SUBSTITUTE($U210,\"{\",CHAR(160),FZ$1)),FIND(CHAR(160),SUBSTITUTE($U210,\"}\",CHAR(160),FZ$1))-FIND(CHAR(160),SUBSTITUTE($U210,\"{\",CHAR(160),FZ$1))+1),\"\")","v":""},{"$f":"IFERROR(MID($U210,FIND(CHAR(160),SUBSTITUTE($U210,\"{\",CHAR(160),GA$1)),FIND(CHAR(160),SUBSTITUTE($U210,\"}\",CHAR(160),GA$1))-FIND(CHAR(160),SUBSTITUTE($U210,\"{\",CHAR(160),GA$1))+1),\"\")","v":""},{"$f":"IFERROR(MID($U210,FIND(CHAR(160),SUBSTITUTE($U210,\"{\",CHAR(160),GB$1)),FIND(CHAR(160),SUBSTITUTE($U210,\"}\",CHAR(160),GB$1))-FIND(CHAR(160),SUBSTITUTE($U210,\"{\",CHAR(160),GB$1))+1),\"\")","v":""},{"$f":"IFERROR(MID($U210,FIND(CHAR(160),SUBSTITUTE($U210,\"{\",CHAR(160),GC$1)),FIND(CHAR(160),SUBSTITUTE($U210,\"}\",CHAR(160),GC$1))-FIND(CHAR(160),SUBSTITUTE($U210,\"{\",CHAR(160),GC$1))+1),\"\")","v":""},{"$f":"IFERROR(MID($U210,FIND(CHAR(160),SUBSTITUTE($U210,\"{\",CHAR(160),GD$1)),FIND(CHAR(160),SUBSTITUTE($U210,\"}\",CHAR(160),GD$1))-FIND(CHAR(160),SUBSTITUTE($U210,\"{\",CHAR(160),GD$1))+1),\"\")","v":""},{"$f":"IFERROR(MID($U210,FIND(CHAR(160),SUBSTITUTE($U210,\"{\",CHAR(160),GE$1)),FIND(CHAR(160),SUBSTITUTE($U210,\"}\",CHAR(160),GE$1))-FIND(CHAR(160),SUBSTITUTE($U210,\"{\",CHAR(160),GE$1))+1),\"\")","v":"{Measure:Quantity}"},{"$f":"IFERROR(MID($U210,FIND(CHAR(160),SUBSTITUTE($U210,\"{\",CHAR(160),GF$1)),FIND(CHAR(160),SUBSTITUTE($U210,\"}\",CHAR(160),GF$1))-FIND(CHAR(160),SUBSTITUTE($U210,\"{\",CHAR(160),GF$1))+1),\"\")","v":"{Measure:Quantity}"},{"$f":"IFERROR(MID($V210,FIND(CHAR(160),SUBSTITUTE($V210,\"{\",CHAR(160),GG$1)),FIND(CHAR(160),SUBSTITUTE($V210,\"}\",CHAR(160),GG$1))-FIND(CHAR(160),SUBSTITUTE($V210,\"{\",CHAR(160),GG$1))+1),\"\")","v":""},{"$f":"IFERROR(MID($V210,FIND(CHAR(160),SUBSTITUTE($V210,\"{\",CHAR(160),GH$1)),FIND(CHAR(160),SUBSTITUTE($V210,\"}\",CHAR(160),GH$1))-FIND(CHAR(160),SUBSTITUTE($V210,\"{\",CHAR(160),GH$1))+1),\"\")","v":""},{"$f":"IFERROR(MID($V210,FIND(CHAR(160),SUBSTITUTE($V210,\"{\",CHAR(160),GI$1)),FIND(CHAR(160),SUBSTITUTE($V210,\"}\",CHAR(160),GI$1))-FIND(CHAR(160),SUBSTITUTE($V210,\"{\",CHAR(160),GI$1))+1),\"\")","v":""},{"$f":"IFERROR(MID($V210,FIND(CHAR(160),SUBSTITUTE($V210,\"{\",CHAR(160),GJ$1)),FIND(CHAR(160),SUBSTITUTE($V210,\"}\",CHAR(160),GJ$1))-FIND(CHAR(160),SUBSTITUTE($V210,\"{\",CHAR(160),GJ$1))+1),\"\")","v":""},{"$f":"IFERROR(MID($V210,FIND(CHAR(160),SUBSTITUTE($V210,\"{\",CHAR(160),GK$1)),FIND(CHAR(160),SUBSTITUTE($V210,\"}\",CHAR(160),GK$1))-FIND(CHAR(160),SUBSTITUTE($V210,\"{\",CHAR(160),GK$1))+1),\"\")","v":""},{"$f":"IFERROR(MID($V210,FIND(CHAR(160),SUBSTITUTE($V210,\"{\",CHAR(160),GL$1)),FIND(CHAR(160),SUBSTITUTE($V210,\"}\",CHAR(160),GL$1))-FIND(CHAR(160),SUBSTITUTE($V210,\"{\",CHAR(160),GL$1))+1),\"\")","v":""},{"$f":"IFERROR(MID($V210,FIND(CHAR(160),SUBSTITUTE($V210,\"{\",CHAR(160),GM$1)),FIND(CHAR(160),SUBSTITUTE($V210,\"}\",CHAR(160),GM$1))-FIND(CHAR(160),SUBSTITUTE($V210,\"{\",CHAR(160),GM$1))+1),\"\")","v":""},{"$f":"IFERROR(MID($V210,FIND(CHAR(160),SUBSTITUTE($V210,\"{\",CHAR(160),GN$1)),FIND(CHAR(160),SUBSTITUTE($V210,\"}\",CHAR(160),GN$1))-FIND(CHAR(160),SUBSTITUTE($V210,\"{\",CHAR(160),GN$1))+1),\"\")","v":""},{"$f":"IFERROR(MID($V210,FIND(CHAR(160),SUBSTITUTE($V210,\"{\",CHAR(160),GO$1)),FIND(CHAR(160),SUBSTITUTE($V210,\"}\",CHAR(160),GO$1))-FIND(CHAR(160),SUBSTITUTE($V210,\"{\",CHAR(160),GO$1))+1),\"\")","v":"{Measure:Quantity}"},{"$f":"IFERROR(MID($V210,FIND(CHAR(160),SUBSTITUTE($V210,\"{\",CHAR(160),GP$1)),FIND(CHAR(160),SUBSTITUTE($V210,\"}\",CHAR(160),GP$1))-FIND(CHAR(160),SUBSTITUTE($V210,\"{\",CHAR(160),GP$1))+1),\"\")","v":"{Measure:Quantity}"},{"$f":"IFERROR(MID($W210,FIND(CHAR(160),SUBSTITUTE($W210,\"{\",CHAR(160),GQ$1)),FIND(CHAR(160),SUBSTITUTE($W210,\"}\",CHAR(160),GQ$1))-FIND(CHAR(160),SUBSTITUTE($W210,\"{\",CHAR(160),GQ$1))+1),\"\")","v":""},{"$f":"IFERROR(MID($W210,FIND(CHAR(160),SUBSTITUTE($W210,\"{\",CHAR(160),GR$1)),FIND(CHAR(160),SUBSTITUTE($W210,\"}\",CHAR(160),GR$1))-FIND(CHAR(160),SUBSTITUTE($W210,\"{\",CHAR(160),GR$1))+1),\"\")","v":""},{"$f":"IFERROR(MID($W210,FIND(CHAR(160),SUBSTITUTE($W210,\"{\",CHAR(160),GS$1)),FIND(CHAR(160),SUBSTITUTE($W210,\"}\",CHAR(160),GS$1))-FIND(CHAR(160),SUBSTITUTE($W210,\"{\",CHAR(160),GS$1))+1),\"\")","v":""},{"$f":"IFERROR(MID($W210,FIND(CHAR(160),SUBSTITUTE($W210,\"{\",CHAR(160),GT$1)),FIND(CHAR(160),SUBSTITUTE($W210,\"}\",CHAR(160),GT$1))-FIND(CHAR(160),SUBSTITUTE($W210,\"{\",CHAR(160),GT$1))+1),\"\")","v":""},{"$f":"IFERROR(MID($W210,FIND(CHAR(160),SUBSTITUTE($W210,\"{\",CHAR(160),GU$1)),FIND(CHAR(160),SUBSTITUTE($W210,\"}\",CHAR(160),GU$1))-FIND(CHAR(160),SUBSTITUTE($W210,\"{\",CHAR(160),GU$1))+1),\"\")","v":""},{"$f":"IFERROR(MID($W210,FIND(CHAR(160),SUBSTITUTE($W210,\"{\",CHAR(160),GV$1)),FIND(CHAR(160),SUBSTITUTE($W210,\"}\",CHAR(160),GV$1))-FIND(CHAR(160),SUBSTITUTE($W210,\"{\",CHAR(160),GV$1))+1),\"\")","v":""},{"$f":"IFERROR(MID($W210,FIND(CHAR(160),SUBSTITUTE($W210,\"{\",CHAR(160),GW$1)),FIND(CHAR(160),SUBSTITUTE($W210,\"}\",CHAR(160),GW$1))-FIND(CHAR(160),SUBSTITUTE($W210,\"{\",CHAR(160),GW$1))+1),\"\")","v":""},{"$f":"IFERROR(MID($W210,FIND(CHAR(160),SUBSTITUTE($W210,\"{\",CHAR(160),GX$1)),FIND(CHAR(160),SUBSTITUTE($W210,\"}\",CHAR(160),GX$1))-FIND(CHAR(160),SUBSTITUTE($W210,\"{\",CHAR(160),GX$1))+1),\"\")","v":""},{"$f":"IFERROR(MID($W210,FIND(CHAR(160),SUBSTITUTE($W210,\"{\",CHAR(160),GY$1)),FIND(CHAR(160),SUBSTITUTE($W210,\"}\",CHAR(160),GY$1))-FIND(CHAR(160),SUBSTITUTE($W210,\"{\",CHAR(160),GY$1))+1),\"\")","v":""},{"$f":"IFERROR(MID($W210,FIND(CHAR(160),SUBSTITUTE($W210,\"{\",CHAR(160),GZ$1)),FIND(CHAR(160),SUBSTITUTE($W210,\"}\",CHAR(160),GZ$1))-FIND(CHAR(160),SUBSTITUTE($W210,\"{\",CHAR(160),GZ$1))+1),\"\")","v":""},{"$f":"IFERROR(MID($X210,FIND(CHAR(160),SUBSTITUTE($X210,\"{\",CHAR(160),HA$1)),FIND(CHAR(160),SUBSTITUTE($X210,\"}\",CHAR(160),HA$1))-FIND(CHAR(160),SUBSTITUTE($X210,\"{\",CHAR(160),HA$1))+1),\"\")","v":""},{"$f":"IFERROR(MID($X210,FIND(CHAR(160),SUBSTITUTE($X210,\"{\",CHAR(160),HB$1)),FIND(CHAR(160),SUBSTITUTE($X210,\"}\",CHAR(160),HB$1))-FIND(CHAR(160),SUBSTITUTE($X210,\"{\",CHAR(160),HB$1))+1),\"\")","v":""},{"$f":"IFERROR(MID($X210,FIND(CHAR(160),SUBSTITUTE($X210,\"{\",CHAR(160),HC$1)),FIND(CHAR(160),SUBSTITUTE($X210,\"}\",CHAR(160),HC$1))-FIND(CHAR(160),SUBSTITUTE($X210,\"{\",CHAR(160),HC$1))+1),\"\")","v":""},{"$f":"IFERROR(MID($X210,FIND(CHAR(160),SUBSTITUTE($X210,\"{\",CHAR(160),HD$1)),FIND(CHAR(160),SUBSTITUTE($X210,\"}\",CHAR(160),HD$1))-FIND(CHAR(160),SUBSTITUTE($X210,\"{\",CHAR(160),HD$1))+1),\"\")","v":""},{"$f":"IFERROR(MID($X210,FIND(CHAR(160),SUBSTITUTE($X210,\"{\",CHAR(160),HE$1)),FIND(CHAR(160),SUBSTITUTE($X210,\"}\",CHAR(160),HE$1))-FIND(CHAR(160),SUBSTITUTE($X210,\"{\",CHAR(160),HE$1))+1),\"\")","v":""},{"$f":"IFERROR(MID($X210,FIND(CHAR(160),SUBSTITUTE($X210,\"{\",CHAR(160),HF$1)),FIND(CHAR(160),SUBSTITUTE($X210,\"}\",CHAR(160),HF$1))-FIND(CHAR(160),SUBSTITUTE($X210,\"{\",CHAR(160),HF$1))+1),\"\")","v":""},{"$f":"IFERROR(MID($X210,FIND(CHAR(160),SUBSTITUTE($X210,\"{\",CHAR(160),HG$1)),FIND(CHAR(160),SUBSTITUTE($X210,\"}\",CHAR(160),HG$1))-FIND(CHAR(160),SUBSTITUTE($X210,\"{\",CHAR(160),HG$1))+1),\"\")","v":""},{"$f":"IFERROR(MID($X210,FIND(CHAR(160),SUBSTITUTE($X210,\"{\",CHAR(160),HH$1)),FIND(CHAR(160),SUBSTITUTE($X210,\"}\",CHAR(160),HH$1))-FIND(CHAR(160),SUBSTITUTE($X210,\"{\",CHAR(160),HH$1))+1),\"\")","v":""},{"$f":"IFERROR(MID($X210,FIND(CHAR(160),SUBSTITUTE($X210,\"{\",CHAR(160),HI$1)),FIND(CHAR(160),SUBSTITUTE($X210,\"}\",CHAR(160),HI$1))-FIND(CHAR(160),SUBSTITUTE($X210,\"{\",CHAR(160),HI$1))+1),\"\")","v":""},{"$f":"IFERROR(MID($X210,FIND(CHAR(160),SUBSTITUTE($X210,\"{\",CHAR(160),HJ$1)),FIND(CHAR(160),SUBSTITUTE($X210,\"}\",CHAR(160),HJ$1))-FIND(CHAR(160),SUBSTITUTE($X210,\"{\",CHAR(160),HJ$1))+1),\"\")","v":""},{"$f":"IFERROR(MID($Y210,FIND(CHAR(160),SUBSTITUTE($Y210,\"{\",CHAR(160),HK$1)),FIND(CHAR(160),SUBSTITUTE($Y210,\"}\",CHAR(160),HK$1))-FIND(CHAR(160),SUBSTITUTE($Y210,\"{\",CHAR(160),HK$1))+1),\"\")","v":""},{"$f":"IFERROR(MID($Y210,FIND(CHAR(160),SUBSTITUTE($Y210,\"{\",CHAR(160),HL$1)),FIND(CHAR(160),SUBSTITUTE($Y210,\"}\",CHAR(160),HL$1))-FIND(CHAR(160),SUBSTITUTE($Y210,\"{\",CHAR(160),HL$1))+1),\"\")","v":""},{"$f":"IFERROR(MID($Y210,FIND(CHAR(160),SUBSTITUTE($Y210,\"{\",CHAR(160),HM$1)),FIND(CHAR(160),SUBSTITUTE($Y210,\"}\",CHAR(160),HM$1))-FIND(CHAR(160),SUBSTITUTE($Y210,\"{\",CHAR(160),HM$1))+1),\"\")","v":""},{"$f":"IFERROR(MID($Y210,FIND(CHAR(160),SUBSTITUTE($Y210,\"{\",CHAR(160),HN$1)),FIND(CHAR(160),SUBSTITUTE($Y210,\"}\",CHAR(160),HN$1))-FIND(CHAR(160),SUBSTITUTE($Y210,\"{\",CHAR(160),HN$1))+1),\"\")","v":""},{"$f":"IFERROR(MID($Y210,FIND(CHAR(160),SUBSTITUTE($Y210,\"{\",CHAR(160),HO$1)),FIND(CHAR(160),SUBSTITUTE($Y210,\"}\",CHAR(160),HO$1))-FIND(CHAR(160),SUBSTITUTE($Y210,\"{\",CHAR(160),HO$1))+1),\"\")","v":""},{"$f":"IFERROR(MID($Y210,FIND(CHAR(160),SUBSTITUTE($Y210,\"{\",CHAR(160),HP$1)),FIND(CHAR(160),SUBSTITUTE($Y210,\"}\",CHAR(160),HP$1))-FIND(CHAR(160),SUBSTITUTE($Y210,\"{\",CHAR(160),HP$1))+1),\"\")","v":""},{"$f":"IFERROR(MID($Y210,FIND(CHAR(160),SUBSTITUTE($Y210,\"{\",CHAR(160),HQ$1)),FIND(CHAR(160),SUBSTITUTE($Y210,\"}\",CHAR(160),HQ$1))-FIND(CHAR(160),SUBSTITUTE($Y210,\"{\",CHAR(160),HQ$1))+1),\"\")","v":""},{"$f":"IFERROR(MID($Y210,FIND(CHAR(160),SUBSTITUTE($Y210,\"{\",CHAR(160),HR$1)),FIND(CHAR(160),SUBSTITUTE($Y210,\"}\",CHAR(160),HR$1))-FIND(CHAR(160),SUBSTITUTE($Y210,\"{\",CHAR(160),HR$1))+1),\"\")","v":""},{"$f":"IFERROR(MID($Y210,FIND(CHAR(160),SUBSTITUTE($Y210,\"{\",CHAR(160),HS$1)),FIND(CHAR(160),SUBSTITUTE($Y210,\"}\",CHAR(160),HS$1))-FIND(CHAR(160),SUBSTITUTE($Y210,\"{\",CHAR(160),HS$1))+1),\"\")","v":"{Measure:Quantity}"},{"$f":"IFERROR(MID($Y210,FIND(CHAR(160),SUBSTITUTE($Y210,\"{\",CHAR(160),HT$1)),FIND(CHAR(160),SUBSTITUTE($Y210,\"}\",CHAR(160),HT$1))-FIND(CHAR(160),SUBSTITUTE($Y210,\"{\",CHAR(160),HT$1))+1),\"\")","v":"{Measure:Quantity}"},{"$f":"IFERROR(MID($Z210,FIND(CHAR(160),SUBSTITUTE($Z210,\"{\",CHAR(160),HU$1)),FIND(CHAR(160),SUBSTITUTE($Z210,\"}\",CHAR(160),HU$1))-FIND(CHAR(160),SUBSTITUTE($Z210,\"{\",CHAR(160),HU$1))+1),\"\")","v":""},{"$f":"IFERROR(MID($Z210,FIND(CHAR(160),SUBSTITUTE($Z210,\"{\",CHAR(160),HV$1)),FIND(CHAR(160),SUBSTITUTE($Z210,\"}\",CHAR(160),HV$1))-FIND(CHAR(160),SUBSTITUTE($Z210,\"{\",CHAR(160),HV$1))+1),\"\")","v":""},{"$f":"IFERROR(MID($Z210,FIND(CHAR(160),SUBSTITUTE($Z210,\"{\",CHAR(160),HW$1)),FIND(CHAR(160),SUBSTITUTE($Z210,\"}\",CHAR(160),HW$1))-FIND(CHAR(160),SUBSTITUTE($Z210,\"{\",CHAR(160),HW$1))+1),\"\")","v":""},{"$f":"IFERROR(MID($Z210,FIND(CHAR(160),SUBSTITUTE($Z210,\"{\",CHAR(160),HX$1)),FIND(CHAR(160),SUBSTITUTE($Z210,\"}\",CHAR(160),HX$1))-FIND(CHAR(160),SUBSTITUTE($Z210,\"{\",CHAR(160),HX$1))+1),\"\")","v":""},{"$f":"IFERROR(MID($Z210,FIND(CHAR(160),SUBSTITUTE($Z210,\"{\",CHAR(160),HY$1)),FIND(CHAR(160),SUBSTITUTE($Z210,\"}\",CHAR(160),HY$1))-FIND(CHAR(160),SUBSTITUTE($Z210,\"{\",CHAR(160),HY$1))+1),\"\")","v":""},{"$f":"IFERROR(MID($Z210,FIND(CHAR(160),SUBSTITUTE($Z210,\"{\",CHAR(160),HZ$1)),FIND(CHAR(160),SUBSTITUTE($Z210,\"}\",CHAR(160),HZ$1))-FIND(CHAR(160),SUBSTITUTE($Z210,\"{\",CHAR(160),HZ$1))+1),\"\")","v":""},{"$f":"IFERROR(MID($Z210,FIND(CHAR(160),SUBSTITUTE($Z210,\"{\",CHAR(160),IA$1)),FIND(CHAR(160),SUBSTITUTE($Z210,\"}\",CHAR(160),IA$1))-FIND(CHAR(160),SUBSTITUTE($Z210,\"{\",CHAR(160),IA$1))+1),\"\")","v":""},{"$f":"IFERROR(MID($Z210,FIND(CHAR(160),SUBSTITUTE($Z210,\"{\",CHAR(160),IB$1)),FIND(CHAR(160),SUBSTITUTE($Z210,\"}\",CHAR(160),IB$1))-FIND(CHAR(160),SUBSTITUTE($Z210,\"{\",CHAR(160),IB$1))+1),\"\")","v":""},{"$f":"IFERROR(MID($Z210,FIND(CHAR(160),SUBSTITUTE($Z210,\"{\",CHAR(160),IC$1)),FIND(CHAR(160),SUBSTITUTE($Z210,\"}\",CHAR(160),IC$1))-FIND(CHAR(160),SUBSTITUTE($Z210,\"{\",CHAR(160),IC$1))+1),\"\")","v":""},{"$f":"IFERROR(MID($Z210,FIND(CHAR(160),SUBSTITUTE($Z210,\"{\",CHAR(160),ID$1)),FIND(CHAR(160),SUBSTITUTE($Z210,\"}\",CHAR(160),ID$1))-FIND(CHAR(160),SUBSTITUTE($Z210,\"{\",CHAR(160),ID$1))+1),\"\")","v":""},{"$f":"IFERROR(MID($AA210,FIND(CHAR(160),SUBSTITUTE($AA210,\"{\",CHAR(160),IE$1)),FIND(CHAR(160),SUBSTITUTE($AA210,\"}\",CHAR(160),IE$1))-FIND(CHAR(160),SUBSTITUTE($AA210,\"{\",CHAR(160),IE$1))+1),\"\")","v":""},{"$f":"IFERROR(MID($AA210,FIND(CHAR(160),SUBSTITUTE($AA210,\"{\",CHAR(160),IF$1)),FIND(CHAR(160),SUBSTITUTE($AA210,\"}\",CHAR(160),IF$1))-FIND(CHAR(160),SUBSTITUTE($AA210,\"{\",CHAR(160),IF$1))+1),\"\")","v":""},{"$f":"IFERROR(MID($AA210,FIND(CHAR(160),SUBSTITUTE($AA210,\"{\",CHAR(160),IG$1)),FIND(CHAR(160),SUBSTITUTE($AA210,\"}\",CHAR(160),IG$1))-FIND(CHAR(160),SUBSTITUTE($AA210,\"{\",CHAR(160),IG$1))+1),\"\")","v":""},{"$f":"IFERROR(MID($AA210,FIND(CHAR(160),SUBSTITUTE($AA210,\"{\",CHAR(160),IH$1)),FIND(CHAR(160),SUBSTITUTE($AA210,\"}\",CHAR(160),IH$1))-FIND(CHAR(160),SUBSTITUTE($AA210,\"{\",CHAR(160),IH$1))+1),\"\")","v":""},{"$f":"IFERROR(MID($AA210,FIND(CHAR(160),SUBSTITUTE($AA210,\"{\",CHAR(160),II$1)),FIND(CHAR(160),SUBSTITUTE($AA210,\"}\",CHAR(160),II$1))-FIND(CHAR(160),SUBSTITUTE($AA210,\"{\",CHAR(160),II$1))+1),\"\")","v":""},{"$f":"IFERROR(MID($AA210,FIND(CHAR(160),SUBSTITUTE($AA210,\"{\",CHAR(160),IJ$1)),FIND(CHAR(160),SUBSTITUTE($AA210,\"}\",CHAR(160),IJ$1))-FIND(CHAR(160),SUBSTITUTE($AA210,\"{\",CHAR(160),IJ$1))+1),\"\")","v":""},{"$f":"IFERROR(MID($AA210,FIND(CHAR(160),SUBSTITUTE($AA210,\"{\",CHAR(160),IK$1)),FIND(CHAR(160),SUBSTITUTE($AA210,\"}\",CHAR(160),IK$1))-FIND(CHAR(160),SUBSTITUTE($AA210,\"{\",CHAR(160),IK$1))+1),\"\")","v":""},{"$f":"IFERROR(MID($AA210,FIND(CHAR(160),SUBSTITUTE($AA210,\"{\",CHAR(160),IL$1)),FIND(CHAR(160),SUBSTITUTE($AA210,\"}\",CHAR(160),IL$1))-FIND(CHAR(160),SUBSTITUTE($AA210,\"{\",CHAR(160),IL$1))+1),\"\")","v":""},{"$f":"IFERROR(MID($AA210,FIND(CHAR(160),SUBSTITUTE($AA210,\"{\",CHAR(160),IM$1)),FIND(CHAR(160),SUBSTITUTE($AA210,\"}\",CHAR(160),IM$1))-FIND(CHAR(160),SUBSTITUTE($AA210,\"{\",CHAR(160),IM$1))+1),\"\")","v":""},{"$f":"IFERROR(MID($AA210,FIND(CHAR(160),SUBSTITUTE($AA210,\"{\",CHAR(160),IN$1)),FIND(CHAR(160),SUBSTITUTE($AA210,\"}\",CHAR(160),IN$1))-FIND(CHAR(160),SUBSTITUTE($AA210,\"{\",CHAR(160),IN$1))+1),\"\")","v":""},{"$f":"IFERROR(MID($AB210,FIND(CHAR(160),SUBSTITUTE($AB210,\"{\",CHAR(160),IO$1)),FIND(CHAR(160),SUBSTITUTE($AB210,\"}\",CHAR(160),IO$1))-FIND(CHAR(160),SUBSTITUTE($AB210,\"{\",CHAR(160),IO$1))+1),\"\")","v":""},{"$f":"IFERROR(MID($AB210,FIND(CHAR(160),SUBSTITUTE($AB210,\"{\",CHAR(160),IP$1)),FIND(CHAR(160),SUBSTITUTE($AB210,\"}\",CHAR(160),IP$1))-FIND(CHAR(160),SUBSTITUTE($AB210,\"{\",CHAR(160),IP$1))+1),\"\")","v":""},{"$f":"IFERROR(MID($AB210,FIND(CHAR(160),SUBSTITUTE($AB210,\"{\",CHAR(160),IQ$1)),FIND(CHAR(160),SUBSTITUTE($AB210,\"}\",CHAR(160),IQ$1))-FIND(CHAR(160),SUBSTITUTE($AB210,\"{\",CHAR(160),IQ$1))+1),\"\")","v":""},{"$f":"IFERROR(MID($AB210,FIND(CHAR(160),SUBSTITUTE($AB210,\"{\",CHAR(160),IR$1)),FIND(CHAR(160),SUBSTITUTE($AB210,\"}\",CHAR(160),IR$1))-FIND(CHAR(160),SUBSTITUTE($AB210,\"{\",CHAR(160),IR$1))+1),\"\")","v":""},{"$f":"IFERROR(MID($AB210,FIND(CHAR(160),SUBSTITUTE($AB210,\"{\",CHAR(160),IS$1)),FIND(CHAR(160),SUBSTITUTE($AB210,\"}\",CHAR(160),IS$1))-FIND(CHAR(160),SUBSTITUTE($AB210,\"{\",CHAR(160),IS$1))+1),\"\")","v":""},{"$f":"IFERROR(MID($AB210,FIND(CHAR(160),SUBSTITUTE($AB210,\"{\",CHAR(160),IT$1)),FIND(CHAR(160),SUBSTITUTE($AB210,\"}\",CHAR(160),IT$1))-FIND(CHAR(160),SUBSTITUTE($AB210,\"{\",CHAR(160),IT$1))+1),\"\")","v":""},{"$f":"IFERROR(MID($AB210,FIND(CHAR(160),SUBSTITUTE($AB210,\"{\",CHAR(160),IU$1)),FIND(CHAR(160),SUBSTITUTE($AB210,\"}\",CHAR(160),IU$1))-FIND(CHAR(160),SUBSTITUTE($AB210,\"{\",CHAR(160),IU$1))+1),\"\")","v":""},{"$f":"IFERROR(MID($AB210,FIND(CHAR(160),SUBSTITUTE($AB210,\"{\",CHAR(160),IV$1)),FIND(CHAR(160),SUBSTITUTE($AB210,\"}\",CHAR(160),IV$1))-FIND(CHAR(160),SUBSTITUTE($AB210,\"{\",CHAR(160),IV$1))+1),\"\")","v":""},{"$f":"IFERROR(MID($AB210,FIND(CHAR(160),SUBSTITUTE($AB210,\"{\",CHAR(160),IW$1)),FIND(CHAR(160),SUBSTITUTE($AB210,\"}\",CHAR(160),IW$1))-FIND(CHAR(160),SUBSTITUTE($AB210,\"{\",CHAR(160),IW$1))+1),\"\")","v":""},{"$f":"IFERROR(MID($AB210,FIND(CHAR(160),SUBSTITUTE($AB210,\"{\",CHAR(160),IX$1)),FIND(CHAR(160),SUBSTITUTE($AB210,\"}\",CHAR(160),IX$1))-FIND(CHAR(160),SUBSTITUTE($AB210,\"{\",CHAR(160),IX$1))+1),\"\")","v":""},null,{"$f":"10-COUNTIF(DU210:ED210,\"\")","v":5}]
["Low Income - NECEC Funds","LED Low Income Standard Bulb Short Life","LILEDSTANS","2021-07-01","2022-06-30","Calculated","{Measure:Quantity}*2.50",0,"Calculated","{Measure:Quantity}*2.50",0,"2021-07-01","2022-06-30","Calculated","{Measure:Quantity}*if({Wattage}>13,42,26)",null,null,"{Measure:Quantity}*if({Wattage}>13,0.058,0.036)",null,null,"{Measure:Quantity}*if({Wattage}>13,0.009,0.006)","{Measure:Quantity}*if({Wattage}>13,0.004,0.003)","{Measure:Quantity}*if({Wattage}>13,-0.005,-0.003)","{Measure:Quantity}*if({Wattage}>13,-0.004,-0.003)","{Measure:Quantity}*if({Wattage}>13,-0.035,-0.022)","{Measure:Quantity}*if({Wattage}>13,-0.001,-0.001)","{Measure:Quantity}*if({Wattage}>13,-0.007,-0.005)",null,"2021-07-01","2022-06-30",3,0.17199999999999999,7.2999999999999995E-2,0.34899999999999998,0.33500000000000002,0.155,0.161,0.77,1,1,0,0,null,{"$f":"DU211","v":"{Measure:Quantity}"},1,{"$f":"DV211","v":"{Wattage}"},1,{"$f":"DW211","v":""},9,{"$f":"DX211","v":""},null,{"$f":"DY211","v":""},null,{"$f":"DZ211","v":""},null,{"$f":"EA211","v":""},null,{"$f":"EB211","v":""},null,{"$f":"EC211","v":""},null,"LIDI Bundle Qty",9.5,{"$f":"AS211*IF(AU211>13,42,26)","v":26},0,0,{"$f":"AS211*IF(AU211>13,0.058,0.036)","v":3.5999999999999997E-2},0,0,{"$f":"AS211*IF(AU211>13,0.009,0.006)","v":6.0000000000000001E-3},{"$f":"AS211*IF(AU211>13,0.004,0.003)","v":3.0000000000000001E-3},{"$f":"AS211*IF(AU211>13,-0.005,-0.003)","v":-3.0000000000000001E-3},{"$f":"AS211*IF(AU211>13,-0.004,-0.003)","v":-3.0000000000000001E-3},{"$f":"AS211*IF(AU211>13,-0.035,-0.022)","v":-2.1999999999999999E-2},{"$f":"AS211*IF(AU211>13,-0.001,-0.001)","v":-1E-3},{"$f":"AS211*IF(AU211>13,-0.007,-0.005)","v":-5.0000000000000001E-3},0,null,"Res","Default DR",{"$f":"Benefits(BL211,BR211,BS211,BT211,BU211,BV211,BW211,BX211,BY211,BZ211,AE211,AH211,AI211,AJ211,AK211,AL211,AM211,AN211,AO211,AP211,CA211,CB211)","v":7.0137108153147958},5.1047136842770087,-1.1997321744538107E-2,-1.6468106038623445,-8.5413391341473771E-2,-0.31264763381232114,-0.20501871264757987,0,0,{"$f":"SUMPRODUCT(CC211:CK211,--(CC211:CK211>0))","v":12.118424499591804},{"$f":"-SUMPRODUCT(CC211:CK211,--(CC211:CK211<0))","v":2.2618876634082574},null,{"$f":"AS211*2.5","v":2.5},null,null,{"$f":"CM211+CO211","v":4.7618876634082579},{"$f":"IF(NetOrGross=\"Net\",(1-AO211+AP211),1)","v":1},{"$f":"(SUMPRODUCT(CC211:CJ211,--(CC211:CJ211>0))+CN211)*CS211/((-SUMPRODUCT(CC211:CJ211,--(CC211:CJ211<0))+MAX(CO211,CV211)+CP211+CQ211)*CS211+IF(FRIncentives=\"Yes\",CV211*(1-CS211),0))","v":2.5448782827686873},1,{"$f":"AS211*2.5","v":2.5},null,"Electric","y",{"$f":"CL211-CR211","v":7.3565368361835457},{"$f":"IF(F211=\"Manual Entry\",\"Manual\",IF(G211=\"\",0,\"X=\"&SUBSTITUTE(SUBSTITUTE(SUBSTITUTE(SUBSTITUTE(SUBSTITUTE(SUBSTITUTE(SUBSTITUTE(SUBSTITUTE(SUBSTITUTE(SUBSTITUTE(SUBSTITUTE(SUBSTITUTE(G211,$ED211,$ED$2&ROW($ED211)),$EC211,$EC$2&ROW($EC211)),$EB211,$EB$2&ROW($EB211)),$EA211,$EA$2&ROW($EA211)),$DZ211,$DZ$2&ROW($DZ211)),$DY211,$DY$2&ROW($DY211)),$DX211,$DX$2&ROW($DX211)),$DW211,$DW$2&ROW($DW211)),$DV211,$DV$2&ROW($DV211)),$DU211,$DU$2&ROW($DU211)),$DT211,$DT$2&ROW($DT211)),$DS211,$DS$2&ROW($DS211))))","v":"X=AS211*2.50"},{"$f":"IF(I211=\"Manual Entry\",\"Manual\",IF(J211=\"\",0,\"X=\"&SUBSTITUTE(SUBSTITUTE(SUBSTITUTE(SUBSTITUTE(SUBSTITUTE(SUBSTITUTE(SUBSTITUTE(SUBSTITUTE(SUBSTITUTE(SUBSTITUTE(SUBSTITUTE(SUBSTITUTE(J211,$ED211,$ED$2&ROW($ED211)),$EC211,$EC$2&ROW($EC211)),$EB211,$EB$2&ROW($EB211)),$EA211,$EA$2&ROW($EA211)),$DZ211,$DZ$2&ROW($DZ211)),$DY211,$DY$2&ROW($DY211)),$DX211,$DX$2&ROW($DX211)),$DW211,$DW$2&ROW($DW211)),$DV211,$DV$2&ROW($DV211)),$DU211,$DU$2&ROW($DU211)),$DT211,$DT$2&ROW($DT211)),$DS211,$DS$2&ROW($DS211))))","v":"X=AS211*2.50"},{"$f":"IF(O211=\"\",0,\"X=\"&SUBSTITUTE(SUBSTITUTE(SUBSTITUTE(SUBSTITUTE(SUBSTITUTE(SUBSTITUTE(SUBSTITUTE(SUBSTITUTE(SUBSTITUTE(SUBSTITUTE(SUBSTITUTE(SUBSTITUTE(O211,$ED211,$ED$2&ROW($ED211)),$EC211,$EC$2&ROW($EC211)),$EB211,$EB$2&ROW($EB211)),$EA211,$EA$2&ROW($EA211)),$DZ211,$DZ$2&ROW($DZ211)),$DY211,$DY$2&ROW($DY211)),$DX211,$DX$2&ROW($DX211)),$DW211,$DW$2&ROW($DW211)),$DV211,$DV$2&ROW($DV211)),$DU211,$DU$2&ROW($DU211)),$DT211,$DT$2&ROW($DT211)),$DS211,$DS$2&ROW($DS211)))","v":"X=AS211*if(AU211>13,42,26)"},{"$f":"IF(P211=\"\",0,\"X=\"&SUBSTITUTE(SUBSTITUTE(SUBSTITUTE(SUBSTITUTE(SUBSTITUTE(SUBSTITUTE(SUBSTITUTE(SUBSTITUTE(SUBSTITUTE(SUBSTITUTE(SUBSTITUTE(SUBSTITUTE(P211,$ED211,$ED$2&ROW($ED211)),$EC211,$EC$2&ROW($EC211)),$EB211,$EB$2&ROW($EB211)),$EA211,$EA$2&ROW($EA211)),$DZ211,$DZ$2&ROW($DZ211)),$DY211,$DY$2&ROW($DY211)),$DX211,$DX$2&ROW($DX211)),$DW211,$DW$2&ROW($DW211)),$DV211,$DV$2&ROW($DV211)),$DU211,$DU$2&ROW($DU211)),$DT211,$DT$2&ROW($DT211)),$DS211,$DS$2&ROW($DS211)))","v":0},{"$f":"IF(Q211=\"\",0,\"X=\"&SUBSTITUTE(SUBSTITUTE(SUBSTITUTE(SUBSTITUTE(SUBSTITUTE(SUBSTITUTE(SUBSTITUTE(SUBSTITUTE(SUBSTITUTE(SUBSTITUTE(SUBSTITUTE(SUBSTITUTE(Q211,$ED211,$ED$2&ROW($ED211)),$EC211,$EC$2&ROW($EC211)),$EB211,$EB$2&ROW($EB211)),$EA211,$EA$2&ROW($EA211)),$DZ211,$DZ$2&ROW($DZ211)),$DY211,$DY$2&ROW($DY211)),$DX211,$DX$2&ROW($DX211)),$DW211,$DW$2&ROW($DW211)),$DV211,$DV$2&ROW($DV211)),$DU211,$DU$2&ROW($DU211)),$DT211,$DT$2&ROW($DT211)),$DS211,$DS$2&ROW($DS211)))","v":0},{"$f":"IF(R211=\"\",0,\"X=\"&SUBSTITUTE(SUBSTITUTE(SUBSTITUTE(SUBSTITUTE(SUBSTITUTE(SUBSTITUTE(SUBSTITUTE(SUBSTITUTE(SUBSTITUTE(SUBSTITUTE(SUBSTITUTE(SUBSTITUTE(R211,$ED211,$ED$2&ROW($ED211)),$EC211,$EC$2&ROW($EC211)),$EB211,$EB$2&ROW($EB211)),$EA211,$EA$2&ROW($EA211)),$DZ211,$DZ$2&ROW($DZ211)),$DY211,$DY$2&ROW($DY211)),$DX211,$DX$2&ROW($DX211)),$DW211,$DW$2&ROW($DW211)),$DV211,$DV$2&ROW($DV211)),$DU211,$DU$2&ROW($DU211)),$DT211,$DT$2&ROW($DT211)),$DS211,$DS$2&ROW($DS211)))","v":"X=AS211*if(AU211>13,0.058,0.036)"},{"$f":"IF(S211=\"\",0,\"X=\"&SUBSTITUTE(SUBSTITUTE(SUBSTITUTE(SUBSTITUTE(SUBSTITUTE(SUBSTITUTE(SUBSTITUTE(SUBSTITUTE(SUBSTITUTE(SUBSTITUTE(SUBSTITUTE(SUBSTITUTE(S211,$ED211,$ED$2&ROW($ED211)),$EC211,$EC$2&ROW($EC211)),$EB211,$EB$2&ROW($EB211)),$EA211,$EA$2&ROW($EA211)),$DZ211,$DZ$2&ROW($DZ211)),$DY211,$DY$2&ROW($DY211)),$DX211,$DX$2&ROW($DX211)),$DW211,$DW$2&ROW($DW211)),$DV211,$DV$2&ROW($DV211)),$DU211,$DU$2&ROW($DU211)),$DT211,$DT$2&ROW($DT211)),$DS211,$DS$2&ROW($DS211)))","v":0},{"$f":"IF(T211=\"\",0,\"X=\"&SUBSTITUTE(SUBSTITUTE(SUBSTITUTE(SUBSTITUTE(SUBSTITUTE(SUBSTITUTE(SUBSTITUTE(SUBSTITUTE(SUBSTITUTE(SUBSTITUTE(SUBSTITUTE(SUBSTITUTE(T211,$ED211,$ED$2&ROW($ED211)),$EC211,$EC$2&ROW($EC211)),$EB211,$EB$2&ROW($EB211)),$EA211,$EA$2&ROW($EA211)),$DZ211,$DZ$2&ROW($DZ211)),$DY211,$DY$2&ROW($DY211)),$DX211,$DX$2&ROW($DX211)),$DW211,$DW$2&ROW($DW211)),$DV211,$DV$2&ROW($DV211)),$DU211,$DU$2&ROW($DU211)),$DT211,$DT$2&ROW($DT211)),$DS211,$DS$2&ROW($DS211)))","v":0},{"$f":"IF(U211=\"\",0,\"X=\"&SUBSTITUTE(SUBSTITUTE(SUBSTITUTE(SUBSTITUTE(SUBSTITUTE(SUBSTITUTE(SUBSTITUTE(SUBSTITUTE(SUBSTITUTE(SUBSTITUTE(SUBSTITUTE(SUBSTITUTE(U211,$ED211,$ED$2&ROW($ED211)),$EC211,$EC$2&ROW($EC211)),$EB211,$EB$2&ROW($EB211)),$EA211,$EA$2&ROW($EA211)),$DZ211,$DZ$2&ROW($DZ211)),$DY211,$DY$2&ROW($DY211)),$DX211,$DX$2&ROW($DX211)),$DW211,$DW$2&ROW($DW211)),$DV211,$DV$2&ROW($DV211)),$DU211,$DU$2&ROW($DU211)),$DT211,$DT$2&ROW($DT211)),$DS211,$DS$2&ROW($DS211)))","v":"X=AS211*if(AU211>13,0.009,0.006)"},{"$f":"IF(V211=\"\",0,\"X=\"&SUBSTITUTE(SUBSTITUTE(SUBSTITUTE(SUBSTITUTE(SUBSTITUTE(SUBSTITUTE(SUBSTITUTE(SUBSTITUTE(SUBSTITUTE(SUBSTITUTE(SUBSTITUTE(SUBSTITUTE(V211,$ED211,$ED$2&ROW($ED211)),$EC211,$EC$2&ROW($EC211)),$EB211,$EB$2&ROW($EB211)),$EA211,$EA$2&ROW($EA211)),$DZ211,$DZ$2&ROW($DZ211)),$DY211,$DY$2&ROW($DY211)),$DX211,$DX$2&ROW($DX211)),$DW211,$DW$2&ROW($DW211)),$DV211,$DV$2&ROW($DV211)),$DU211,$DU$2&ROW($DU211)),$DT211,$DT$2&ROW($DT211)),$DS211,$DS$2&ROW($DS211)))","v":"X=AS211*if(AU211>13,0.004,0.003)"},{"$f":"IF(W211=\"\",0,\"X=\"&SUBSTITUTE(SUBSTITUTE(SUBSTITUTE(SUBSTITUTE(SUBSTITUTE(SUBSTITUTE(SUBSTITUTE(SUBSTITUTE(SUBSTITUTE(SUBSTITUTE(SUBSTITUTE(SUBSTITUTE(W211,$ED211,$ED$2&ROW($ED211)),$EC211,$EC$2&ROW($EC211)),$EB211,$EB$2&ROW($EB211)),$EA211,$EA$2&ROW($EA211)),$DZ211,$DZ$2&ROW($DZ211)),$DY211,$DY$2&ROW($DY211)),$DX211,$DX$2&ROW($DX211)),$DW211,$DW$2&ROW($DW211)),$DV211,$DV$2&ROW($DV211)),$DU211,$DU$2&ROW($DU211)),$DT211,$DT$2&ROW($DT211)),$DS211,$DS$2&ROW($DS211)))","v":"X=AS211*if(AU211>13,-0.005,-0.003)"},{"$f":"IF(X211=\"\",0,\"X=\"&SUBSTITUTE(SUBSTITUTE(SUBSTITUTE(SUBSTITUTE(SUBSTITUTE(SUBSTITUTE(SUBSTITUTE(SUBSTITUTE(SUBSTITUTE(SUBSTITUTE(SUBSTITUTE(SUBSTITUTE(X211,$ED211,$ED$2&ROW($ED211)),$EC211,$EC$2&ROW($EC211)),$EB211,$EB$2&ROW($EB211)),$EA211,$EA$2&ROW($EA211)),$DZ211,$DZ$2&ROW($DZ211)),$DY211,$DY$2&ROW($DY211)),$DX211,$DX$2&ROW($DX211)),$DW211,$DW$2&ROW($DW211)),$DV211,$DV$2&ROW($DV211)),$DU211,$DU$2&ROW($DU211)),$DT211,$DT$2&ROW($DT211)),$DS211,$DS$2&ROW($DS211)))","v":"X=AS211*if(AU211>13,-0.004,-0.003)"},{"$f":"IF(Y211=\"\",0,\"X=\"&SUBSTITUTE(SUBSTITUTE(SUBSTITUTE(SUBSTITUTE(SUBSTITUTE(SUBSTITUTE(SUBSTITUTE(SUBSTITUTE(SUBSTITUTE(SUBSTITUTE(SUBSTITUTE(SUBSTITUTE(Y211,$ED211,$ED$2&ROW($ED211)),$EC211,$EC$2&ROW($EC211)),$EB211,$EB$2&ROW($EB211)),$EA211,$EA$2&ROW($EA211)),$DZ211,$DZ$2&ROW($DZ211)),$DY211,$DY$2&ROW($DY211)),$DX211,$DX$2&ROW($DX211)),$DW211,$DW$2&ROW($DW211)),$DV211,$DV$2&ROW($DV211)),$DU211,$DU$2&ROW($DU211)),$DT211,$DT$2&ROW($DT211)),$DS211,$DS$2&ROW($DS211)))","v":"X=AS211*if(AU211>13,-0.035,-0.022)"},{"$f":"IF(Z211=\"\",0,\"X=\"&SUBSTITUTE(SUBSTITUTE(SUBSTITUTE(SUBSTITUTE(SUBSTITUTE(SUBSTITUTE(SUBSTITUTE(SUBSTITUTE(SUBSTITUTE(SUBSTITUTE(SUBSTITUTE(SUBSTITUTE(Z211,$ED211,$ED$2&ROW($ED211)),$EC211,$EC$2&ROW($EC211)),$EB211,$EB$2&ROW($EB211)),$EA211,$EA$2&ROW($EA211)),$DZ211,$DZ$2&ROW($DZ211)),$DY211,$DY$2&ROW($DY211)),$DX211,$DX$2&ROW($DX211)),$DW211,$DW$2&ROW($DW211)),$DV211,$DV$2&ROW($DV211)),$DU211,$DU$2&ROW($DU211)),$DT211,$DT$2&ROW($DT211)),$DS211,$DS$2&ROW($DS211)))","v":"X=AS211*if(AU211>13,-0.001,-0.001)"},{"$f":"IF(AA211=\"\",0,\"X=\"&SUBSTITUTE(SUBSTITUTE(SUBSTITUTE(SUBSTITUTE(SUBSTITUTE(SUBSTITUTE(SUBSTITUTE(SUBSTITUTE(SUBSTITUTE(SUBSTITUTE(SUBSTITUTE(SUBSTITUTE(AA211,$ED211,$ED$2&ROW($ED211)),$EC211,$EC$2&ROW($EC211)),$EB211,$EB$2&ROW($EB211)),$EA211,$EA$2&ROW($EA211)),$DZ211,$DZ$2&ROW($DZ211)),$DY211,$DY$2&ROW($DY211)),$DX211,$DX$2&ROW($DX211)),$DW211,$DW$2&ROW($DW211)),$DV211,$DV$2&ROW($DV211)),$DU211,$DU$2&ROW($DU211)),$DT211,$DT$2&ROW($DT211)),$DS211,$DS$2&ROW($DS211)))","v":"X=AS211*if(AU211>13,-0.007,-0.005)"},{"$f":"IF(AB211=\"\",0,\"X=\"&SUBSTITUTE(SUBSTITUTE(SUBSTITUTE(SUBSTITUTE(SUBSTITUTE(SUBSTITUTE(SUBSTITUTE(SUBSTITUTE(SUBSTITUTE(SUBSTITUTE(SUBSTITUTE(SUBSTITUTE(AB211,$ED211,$ED$2&ROW($ED211)),$EC211,$EC$2&ROW($EC211)),$EB211,$EB$2&ROW($EB211)),$EA211,$EA$2&ROW($EA211)),$DZ211,$DZ$2&ROW($DZ211)),$DY211,$DY$2&ROW($DY211)),$DX211,$DX$2&ROW($DX211)),$DW211,$DW$2&ROW($DW211)),$DV211,$DV$2&ROW($DV211)),$DU211,$DU$2&ROW($DU211)),$DT211,$DT$2&ROW($DT211)),$DS211,$DS$2&ROW($DS211)))","v":0},null,null,"{Factor:WinterCF}","{Factor:SummerCF}",{"$f":"IFERROR(INDEX($EG211:$IV211,MATCH(0,COUNTIF($DR211:DT211,$EG211:$IV211),0)),\"\")","v":"{Measure:Quantity}"},{"$f":"IFERROR(INDEX($EG211:$IV211,MATCH(0,COUNTIF($DR211:DU211,$EG211:$IV211),0)),\"\")","v":"{Wattage}"},{"$f":"IFERROR(INDEX($EG211:$IV211,MATCH(0,COUNTIF($DR211:DV211,$EG211:$IV211),0)),\"\")","v":""},{"$f":"IFERROR(INDEX($EG211:$IV211,MATCH(0,COUNTIF($DR211:DW211,$EG211:$IV211),0)),\"\")","v":""},{"$f":"IFERROR(INDEX($EG211:$IV211,MATCH(0,COUNTIF($DR211:DX211,$EG211:$IV211),0)),\"\")","v":""},{"$f":"IFERROR(INDEX($EG211:$IV211,MATCH(0,COUNTIF($DR211:DY211,$EG211:$IV211),0)),\"\")","v":""},{"$f":"IFERROR(INDEX($EG211:$IV211,MATCH(0,COUNTIF($DR211:DZ211,$EG211:$IV211),0)),\"\")","v":""},{"$f":"IFERROR(INDEX($EG211:$IV211,MATCH(0,COUNTIF($DR211:EA211,$EG211:$IV211),0)),\"\")","v":""},{"$f":"IFERROR(INDEX($EG211:$IV211,MATCH(0,COUNTIF($DR211:EB211,$EG211:$IV211),0)),\"\")","v":""},{"$f":"IFERROR(INDEX($EG211:$IV211,MATCH(0,COUNTIF($DR211:EC211,$EG211:$IV211),0)),\"\")","v":""},null,null,{"$f":"IFERROR(MID($G211,FIND(CHAR(160),SUBSTITUTE($G211,\"{\",CHAR(160),EG$1)),FIND(CHAR(160),SUBSTITUTE($G211,\"}\",CHAR(160),EG$1))-FIND(CHAR(160),SUBSTITUTE($G211,\"{\",CHAR(160),EG$1))+1),\"\")","v":"{Measure:Quantity}"},{"$f":"IFERROR(MID($G211,FIND(CHAR(160),SUBSTITUTE($G211,\"{\",CHAR(160),EH$1)),FIND(CHAR(160),SUBSTITUTE($G211,\"}\",CHAR(160),EH$1))-FIND(CHAR(160),SUBSTITUTE($G211,\"{\",CHAR(160),EH$1))+1),\"\")","v":""},{"$f":"IFERROR(MID($G211,FIND(CHAR(160),SUBSTITUTE($G211,\"{\",CHAR(160),EI$1)),FIND(CHAR(160),SUBSTITUTE($G211,\"}\",CHAR(160),EI$1))-FIND(CHAR(160),SUBSTITUTE($G211,\"{\",CHAR(160),EI$1))+1),\"\")","v":""},{"$f":"IFERROR(MID($G211,FIND(CHAR(160),SUBSTITUTE($G211,\"{\",CHAR(160),EJ$1)),FIND(CHAR(160),SUBSTITUTE($G211,\"}\",CHAR(160),EJ$1))-FIND(CHAR(160),SUBSTITUTE($G211,\"{\",CHAR(160),EJ$1))+1),\"\")","v":""},{"$f":"IFERROR(MID($G211,FIND(CHAR(160),SUBSTITUTE($G211,\"{\",CHAR(160),EK$1)),FIND(CHAR(160),SUBSTITUTE($G211,\"}\",CHAR(160),EK$1))-FIND(CHAR(160),SUBSTITUTE($G211,\"{\",CHAR(160),EK$1))+1),\"\")","v":""},{"$f":"IFERROR(MID($G211,FIND(CHAR(160),SUBSTITUTE($G211,\"{\",CHAR(160),EL$1)),FIND(CHAR(160),SUBSTITUTE($G211,\"}\",CHAR(160),EL$1))-FIND(CHAR(160),SUBSTITUTE($G211,\"{\",CHAR(160),EL$1))+1),\"\")","v":""},{"$f":"IFERROR(MID($G211,FIND(CHAR(160),SUBSTITUTE($G211,\"{\",CHAR(160),EM$1)),FIND(CHAR(160),SUBSTITUTE($G211,\"}\",CHAR(160),EM$1))-FIND(CHAR(160),SUBSTITUTE($G211,\"{\",CHAR(160),EM$1))+1),\"\")","v":""},{"$f":"IFERROR(MID($G211,FIND(CHAR(160),SUBSTITUTE($G211,\"{\",CHAR(160),EN$1)),FIND(CHAR(160),SUBSTITUTE($G211,\"}\",CHAR(160),EN$1))-FIND(CHAR(160),SUBSTITUTE($G211,\"{\",CHAR(160),EN$1))+1),\"\")","v":""},{"$f":"IFERROR(MID($G211,FIND(CHAR(160),SUBSTITUTE($G211,\"{\",CHAR(160),EO$1)),FIND(CHAR(160),SUBSTITUTE($G211,\"}\",CHAR(160),EO$1))-FIND(CHAR(160),SUBSTITUTE($G211,\"{\",CHAR(160),EO$1))+1),\"\")","v":""},{"$f":"IFERROR(MID($G211,FIND(CHAR(160),SUBSTITUTE($G211,\"{\",CHAR(160),EP$1)),FIND(CHAR(160),SUBSTITUTE($G211,\"}\",CHAR(160),EP$1))-FIND(CHAR(160),SUBSTITUTE($G211,\"{\",CHAR(160),EP$1))+1),\"\")","v":""},{"$f":"IFERROR(MID($J211,FIND(CHAR(160),SUBSTITUTE($J211,\"{\",CHAR(160),EQ$1)),FIND(CHAR(160),SUBSTITUTE($J211,\"}\",CHAR(160),EQ$1))-FIND(CHAR(160),SUBSTITUTE($J211,\"{\",CHAR(160),EQ$1))+1),\"\")","v":"{Measure:Quantity}"},{"$f":"IFERROR(MID($J211,FIND(CHAR(160),SUBSTITUTE($J211,\"{\",CHAR(160),ER$1)),FIND(CHAR(160),SUBSTITUTE($J211,\"}\",CHAR(160),ER$1))-FIND(CHAR(160),SUBSTITUTE($J211,\"{\",CHAR(160),ER$1))+1),\"\")","v":""},{"$f":"IFERROR(MID($J211,FIND(CHAR(160),SUBSTITUTE($J211,\"{\",CHAR(160),ES$1)),FIND(CHAR(160),SUBSTITUTE($J211,\"}\",CHAR(160),ES$1))-FIND(CHAR(160),SUBSTITUTE($J211,\"{\",CHAR(160),ES$1))+1),\"\")","v":""},{"$f":"IFERROR(MID($J211,FIND(CHAR(160),SUBSTITUTE($J211,\"{\",CHAR(160),ET$1)),FIND(CHAR(160),SUBSTITUTE($J211,\"}\",CHAR(160),ET$1))-FIND(CHAR(160),SUBSTITUTE($J211,\"{\",CHAR(160),ET$1))+1),\"\")","v":""},{"$f":"IFERROR(MID($J211,FIND(CHAR(160),SUBSTITUTE($J211,\"{\",CHAR(160),EU$1)),FIND(CHAR(160),SUBSTITUTE($J211,\"}\",CHAR(160),EU$1))-FIND(CHAR(160),SUBSTITUTE($J211,\"{\",CHAR(160),EU$1))+1),\"\")","v":""},{"$f":"IFERROR(MID($J211,FIND(CHAR(160),SUBSTITUTE($J211,\"{\",CHAR(160),EV$1)),FIND(CHAR(160),SUBSTITUTE($J211,\"}\",CHAR(160),EV$1))-FIND(CHAR(160),SUBSTITUTE($J211,\"{\",CHAR(160),EV$1))+1),\"\")","v":""},{"$f":"IFERROR(MID($J211,FIND(CHAR(160),SUBSTITUTE($J211,\"{\",CHAR(160),EW$1)),FIND(CHAR(160),SUBSTITUTE($J211,\"}\",CHAR(160),EW$1))-FIND(CHAR(160),SUBSTITUTE($J211,\"{\",CHAR(160),EW$1))+1),\"\")","v":""},{"$f":"IFERROR(MID($J211,FIND(CHAR(160),SUBSTITUTE($J211,\"{\",CHAR(160),EX$1)),FIND(CHAR(160),SUBSTITUTE($J211,\"}\",CHAR(160),EX$1))-FIND(CHAR(160),SUBSTITUTE($J211,\"{\",CHAR(160),EX$1))+1),\"\")","v":""},{"$f":"IFERROR(MID($J211,FIND(CHAR(160),SUBSTITUTE($J211,\"{\",CHAR(160),EY$1)),FIND(CHAR(160),SUBSTITUTE($J211,\"}\",CHAR(160),EY$1))-FIND(CHAR(160),SUBSTITUTE($J211,\"{\",CHAR(160),EY$1))+1),\"\")","v":""},{"$f":"IFERROR(MID($J211,FIND(CHAR(160),SUBSTITUTE($J211,\"{\",CHAR(160),EZ$1)),FIND(CHAR(160),SUBSTITUTE($J211,\"}\",CHAR(160),EZ$1))-FIND(CHAR(160),SUBSTITUTE($J211,\"{\",CHAR(160),EZ$1))+1),\"\")","v":""},{"$f":"IFERROR(MID($J211,FIND(CHAR(160),SUBSTITUTE($J211,\"{\",CHAR(160),FA$1)),FIND(CHAR(160),SUBSTITUTE($J211,\"}\",CHAR(160),FA$1))-FIND(CHAR(160),SUBSTITUTE($J211,\"{\",CHAR(160),FA$1))+1),\"\")","v":"{Measure:Quantity}"},{"$f":"IFERROR(MID($J211,FIND(CHAR(160),SUBSTITUTE($J211,\"{\",CHAR(160),FB$1)),FIND(CHAR(160),SUBSTITUTE($J211,\"}\",CHAR(160),FB$1))-FIND(CHAR(160),SUBSTITUTE($J211,\"{\",CHAR(160),FB$1))+1),\"\")","v":""},{"$f":"IFERROR(MID($O211,FIND(CHAR(160),SUBSTITUTE($O211,\"{\",CHAR(160),FC$1)),FIND(CHAR(160),SUBSTITUTE($O211,\"}\",CHAR(160),FC$1))-FIND(CHAR(160),SUBSTITUTE($O211,\"{\",CHAR(160),FC$1))+1),\"\")","v":""},{"$f":"IFERROR(MID($O211,FIND(CHAR(160),SUBSTITUTE($O211,\"{\",CHAR(160),FD$1)),FIND(CHAR(160),SUBSTITUTE($O211,\"}\",CHAR(160),FD$1))-FIND(CHAR(160),SUBSTITUTE($O211,\"{\",CHAR(160),FD$1))+1),\"\")","v":""},{"$f":"IFERROR(MID($O211,FIND(CHAR(160),SUBSTITUTE($O211,\"{\",CHAR(160),FE$1)),FIND(CHAR(160),SUBSTITUTE($O211,\"}\",CHAR(160),FE$1))-FIND(CHAR(160),SUBSTITUTE($O211,\"{\",CHAR(160),FE$1))+1),\"\")","v":""},{"$f":"IFERROR(MID($O211,FIND(CHAR(160),SUBSTITUTE($O211,\"{\",CHAR(160),FF$1)),FIND(CHAR(160),SUBSTITUTE($O211,\"}\",CHAR(160),FF$1))-FIND(CHAR(160),SUBSTITUTE($O211,\"{\",CHAR(160),FF$1))+1),\"\")","v":""},{"$f":"IFERROR(MID($O211,FIND(CHAR(160),SUBSTITUTE($O211,\"{\",CHAR(160),FG$1)),FIND(CHAR(160),SUBSTITUTE($O211,\"}\",CHAR(160),FG$1))-FIND(CHAR(160),SUBSTITUTE($O211,\"{\",CHAR(160),FG$1))+1),\"\")","v":""},{"$f":"IFERROR(MID($O211,FIND(CHAR(160),SUBSTITUTE($O211,\"{\",CHAR(160),FH$1)),FIND(CHAR(160),SUBSTITUTE($O211,\"}\",CHAR(160),FH$1))-FIND(CHAR(160),SUBSTITUTE($O211,\"{\",CHAR(160),FH$1))+1),\"\")","v":""},{"$f":"IFERROR(MID($O211,FIND(CHAR(160),SUBSTITUTE($O211,\"{\",CHAR(160),FI$1)),FIND(CHAR(160),SUBSTITUTE($O211,\"}\",CHAR(160),FI$1))-FIND(CHAR(160),SUBSTITUTE($O211,\"{\",CHAR(160),FI$1))+1),\"\")","v":""},{"$f":"IFERROR(MID($O211,FIND(CHAR(160),SUBSTITUTE($O211,\"{\",CHAR(160),FJ$1)),FIND(CHAR(160),SUBSTITUTE($O211,\"}\",CHAR(160),FJ$1))-FIND(CHAR(160),SUBSTITUTE($O211,\"{\",CHAR(160),FJ$1))+1),\"\")","v":""},{"$f":"IFERROR(MID($O211,FIND(CHAR(160),SUBSTITUTE($O211,\"{\",CHAR(160),FK$1)),FIND(CHAR(160),SUBSTITUTE($O211,\"}\",CHAR(160),FK$1))-FIND(CHAR(160),SUBSTITUTE($O211,\"{\",CHAR(160),FK$1))+1),\"\")","v":"{Measure:Quantity}"},{"$f":"IFERROR(MID($O211,FIND(CHAR(160),SUBSTITUTE($O211,\"{\",CHAR(160),FL$1)),FIND(CHAR(160),SUBSTITUTE($O211,\"}\",CHAR(160),FL$1))-FIND(CHAR(160),SUBSTITUTE($O211,\"{\",CHAR(160),FL$1))+1),\"\")","v":"{Wattage}"},{"$f":"IFERROR(MID($R211,FIND(CHAR(160),SUBSTITUTE($R211,\"{\",CHAR(160),FM$1)),FIND(CHAR(160),SUBSTITUTE($R211,\"}\",CHAR(160),FM$1))-FIND(CHAR(160),SUBSTITUTE($R211,\"{\",CHAR(160),FM$1))+1),\"\")","v":""},{"$f":"IFERROR(MID($R211,FIND(CHAR(160),SUBSTITUTE($R211,\"{\",CHAR(160),FN$1)),FIND(CHAR(160),SUBSTITUTE($R211,\"}\",CHAR(160),FN$1))-FIND(CHAR(160),SUBSTITUTE($R211,\"{\",CHAR(160),FN$1))+1),\"\")","v":""},{"$f":"IFERROR(MID($R211,FIND(CHAR(160),SUBSTITUTE($R211,\"{\",CHAR(160),FO$1)),FIND(CHAR(160),SUBSTITUTE($R211,\"}\",CHAR(160),FO$1))-FIND(CHAR(160),SUBSTITUTE($R211,\"{\",CHAR(160),FO$1))+1),\"\")","v":""},{"$f":"IFERROR(MID($R211,FIND(CHAR(160),SUBSTITUTE($R211,\"{\",CHAR(160),FP$1)),FIND(CHAR(160),SUBSTITUTE($R211,\"}\",CHAR(160),FP$1))-FIND(CHAR(160),SUBSTITUTE($R211,\"{\",CHAR(160),FP$1))+1),\"\")","v":""},{"$f":"IFERROR(MID($R211,FIND(CHAR(160),SUBSTITUTE($R211,\"{\",CHAR(160),FQ$1)),FIND(CHAR(160),SUBSTITUTE($R211,\"}\",CHAR(160),FQ$1))-FIND(CHAR(160),SUBSTITUTE($R211,\"{\",CHAR(160),FQ$1))+1),\"\")","v":""},{"$f":"IFERROR(MID($R211,FIND(CHAR(160),SUBSTITUTE($R211,\"{\",CHAR(160),FR$1)),FIND(CHAR(160),SUBSTITUTE($R211,\"}\",CHAR(160),FR$1))-FIND(CHAR(160),SUBSTITUTE($R211,\"{\",CHAR(160),FR$1))+1),\"\")","v":""},{"$f":"IFERROR(MID($R211,FIND(CHAR(160),SUBSTITUTE($R211,\"{\",CHAR(160),FS$1)),FIND(CHAR(160),SUBSTITUTE($R211,\"}\",CHAR(160),FS$1))-FIND(CHAR(160),SUBSTITUTE($R211,\"{\",CHAR(160),FS$1))+1),\"\")","v":""},{"$f":"IFERROR(MID($R211,FIND(CHAR(160),SUBSTITUTE($R211,\"{\",CHAR(160),FT$1)),FIND(CHAR(160),SUBSTITUTE($R211,\"}\",CHAR(160),FT$1))-FIND(CHAR(160),SUBSTITUTE($R211,\"{\",CHAR(160),FT$1))+1),\"\")","v":""},{"$f":"IFERROR(MID($R211,FIND(CHAR(160),SUBSTITUTE($R211,\"{\",CHAR(160),FU$1)),FIND(CHAR(160),SUBSTITUTE($R211,\"}\",CHAR(160),FU$1))-FIND(CHAR(160),SUBSTITUTE($R211,\"{\",CHAR(160),FU$1))+1),\"\")","v":"{Measure:Quantity}"},{"$f":"IFERROR(MID($R211,FIND(CHAR(160),SUBSTITUTE($R211,\"{\",CHAR(160),FV$1)),FIND(CHAR(160),SUBSTITUTE($R211,\"}\",CHAR(160),FV$1))-FIND(CHAR(160),SUBSTITUTE($R211,\"{\",CHAR(160),FV$1))+1),\"\")","v":"{Wattage}"},{"$f":"IFERROR(MID($U211,FIND(CHAR(160),SUBSTITUTE($U211,\"{\",CHAR(160),FW$1)),FIND(CHAR(160),SUBSTITUTE($U211,\"}\",CHAR(160),FW$1))-FIND(CHAR(160),SUBSTITUTE($U211,\"{\",CHAR(160),FW$1))+1),\"\")","v":""},{"$f":"IFERROR(MID($U211,FIND(CHAR(160),SUBSTITUTE($U211,\"{\",CHAR(160),FX$1)),FIND(CHAR(160),SUBSTITUTE($U211,\"}\",CHAR(160),FX$1))-FIND(CHAR(160),SUBSTITUTE($U211,\"{\",CHAR(160),FX$1))+1),\"\")","v":""},{"$f":"IFERROR(MID($U211,FIND(CHAR(160),SUBSTITUTE($U211,\"{\",CHAR(160),FY$1)),FIND(CHAR(160),SUBSTITUTE($U211,\"}\",CHAR(160),FY$1))-FIND(CHAR(160),SUBSTITUTE($U211,\"{\",CHAR(160),FY$1))+1),\"\")","v":""},{"$f":"IFERROR(MID($U211,FIND(CHAR(160),SUBSTITUTE($U211,\"{\",CHAR(160),FZ$1)),FIND(CHAR(160),SUBSTITUTE($U211,\"}\",CHAR(160),FZ$1))-FIND(CHAR(160),SUBSTITUTE($U211,\"{\",CHAR(160),FZ$1))+1),\"\")","v":""},{"$f":"IFERROR(MID($U211,FIND(CHAR(160),SUBSTITUTE($U211,\"{\",CHAR(160),GA$1)),FIND(CHAR(160),SUBSTITUTE($U211,\"}\",CHAR(160),GA$1))-FIND(CHAR(160),SUBSTITUTE($U211,\"{\",CHAR(160),GA$1))+1),\"\")","v":""},{"$f":"IFERROR(MID($U211,FIND(CHAR(160),SUBSTITUTE($U211,\"{\",CHAR(160),GB$1)),FIND(CHAR(160),SUBSTITUTE($U211,\"}\",CHAR(160),GB$1))-FIND(CHAR(160),SUBSTITUTE($U211,\"{\",CHAR(160),GB$1))+1),\"\")","v":""},{"$f":"IFERROR(MID($U211,FIND(CHAR(160),SUBSTITUTE($U211,\"{\",CHAR(160),GC$1)),FIND(CHAR(160),SUBSTITUTE($U211,\"}\",CHAR(160),GC$1))-FIND(CHAR(160),SUBSTITUTE($U211,\"{\",CHAR(160),GC$1))+1),\"\")","v":""},{"$f":"IFERROR(MID($U211,FIND(CHAR(160),SUBSTITUTE($U211,\"{\",CHAR(160),GD$1)),FIND(CHAR(160),SUBSTITUTE($U211,\"}\",CHAR(160),GD$1))-FIND(CHAR(160),SUBSTITUTE($U211,\"{\",CHAR(160),GD$1))+1),\"\")","v":""},{"$f":"IFERROR(MID($U211,FIND(CHAR(160),SUBSTITUTE($U211,\"{\",CHAR(160),GE$1)),FIND(CHAR(160),SUBSTITUTE($U211,\"}\",CHAR(160),GE$1))-FIND(CHAR(160),SUBSTITUTE($U211,\"{\",CHAR(160),GE$1))+1),\"\")","v":"{Measure:Quantity}"},{"$f":"IFERROR(MID($U211,FIND(CHAR(160),SUBSTITUTE($U211,\"{\",CHAR(160),GF$1)),FIND(CHAR(160),SUBSTITUTE($U211,\"}\",CHAR(160),GF$1))-FIND(CHAR(160),SUBSTITUTE($U211,\"{\",CHAR(160),GF$1))+1),\"\")","v":"{Wattage}"},{"$f":"IFERROR(MID($V211,FIND(CHAR(160),SUBSTITUTE($V211,\"{\",CHAR(160),GG$1)),FIND(CHAR(160),SUBSTITUTE($V211,\"}\",CHAR(160),GG$1))-FIND(CHAR(160),SUBSTITUTE($V211,\"{\",CHAR(160),GG$1))+1),\"\")","v":""},{"$f":"IFERROR(MID($V211,FIND(CHAR(160),SUBSTITUTE($V211,\"{\",CHAR(160),GH$1)),FIND(CHAR(160),SUBSTITUTE($V211,\"}\",CHAR(160),GH$1))-FIND(CHAR(160),SUBSTITUTE($V211,\"{\",CHAR(160),GH$1))+1),\"\")","v":""},{"$f":"IFERROR(MID($V211,FIND(CHAR(160),SUBSTITUTE($V211,\"{\",CHAR(160),GI$1)),FIND(CHAR(160),SUBSTITUTE($V211,\"}\",CHAR(160),GI$1))-FIND(CHAR(160),SUBSTITUTE($V211,\"{\",CHAR(160),GI$1))+1),\"\")","v":""},{"$f":"IFERROR(MID($V211,FIND(CHAR(160),SUBSTITUTE($V211,\"{\",CHAR(160),GJ$1)),FIND(CHAR(160),SUBSTITUTE($V211,\"}\",CHAR(160),GJ$1))-FIND(CHAR(160),SUBSTITUTE($V211,\"{\",CHAR(160),GJ$1))+1),\"\")","v":""},{"$f":"IFERROR(MID($V211,FIND(CHAR(160),SUBSTITUTE($V211,\"{\",CHAR(160),GK$1)),FIND(CHAR(160),SUBSTITUTE($V211,\"}\",CHAR(160),GK$1))-FIND(CHAR(160),SUBSTITUTE($V211,\"{\",CHAR(160),GK$1))+1),\"\")","v":""},{"$f":"IFERROR(MID($V211,FIND(CHAR(160),SUBSTITUTE($V211,\"{\",CHAR(160),GL$1)),FIND(CHAR(160),SUBSTITUTE($V211,\"}\",CHAR(160),GL$1))-FIND(CHAR(160),SUBSTITUTE($V211,\"{\",CHAR(160),GL$1))+1),\"\")","v":""},{"$f":"IFERROR(MID($V211,FIND(CHAR(160),SUBSTITUTE($V211,\"{\",CHAR(160),GM$1)),FIND(CHAR(160),SUBSTITUTE($V211,\"}\",CHAR(160),GM$1))-FIND(CHAR(160),SUBSTITUTE($V211,\"{\",CHAR(160),GM$1))+1),\"\")","v":""},{"$f":"IFERROR(MID($V211,FIND(CHAR(160),SUBSTITUTE($V211,\"{\",CHAR(160),GN$1)),FIND(CHAR(160),SUBSTITUTE($V211,\"}\",CHAR(160),GN$1))-FIND(CHAR(160),SUBSTITUTE($V211,\"{\",CHAR(160),GN$1))+1),\"\")","v":""},{"$f":"IFERROR(MID($V211,FIND(CHAR(160),SUBSTITUTE($V211,\"{\",CHAR(160),GO$1)),FIND(CHAR(160),SUBSTITUTE($V211,\"}\",CHAR(160),GO$1))-FIND(CHAR(160),SUBSTITUTE($V211,\"{\",CHAR(160),GO$1))+1),\"\")","v":"{Measure:Quantity}"},{"$f":"IFERROR(MID($V211,FIND(CHAR(160),SUBSTITUTE($V211,\"{\",CHAR(160),GP$1)),FIND(CHAR(160),SUBSTITUTE($V211,\"}\",CHAR(160),GP$1))-FIND(CHAR(160),SUBSTITUTE($V211,\"{\",CHAR(160),GP$1))+1),\"\")","v":"{Wattage}"},{"$f":"IFERROR(MID($W211,FIND(CHAR(160),SUBSTITUTE($W211,\"{\",CHAR(160),GQ$1)),FIND(CHAR(160),SUBSTITUTE($W211,\"}\",CHAR(160),GQ$1))-FIND(CHAR(160),SUBSTITUTE($W211,\"{\",CHAR(160),GQ$1))+1),\"\")","v":""},{"$f":"IFERROR(MID($W211,FIND(CHAR(160),SUBSTITUTE($W211,\"{\",CHAR(160),GR$1)),FIND(CHAR(160),SUBSTITUTE($W211,\"}\",CHAR(160),GR$1))-FIND(CHAR(160),SUBSTITUTE($W211,\"{\",CHAR(160),GR$1))+1),\"\")","v":""},{"$f":"IFERROR(MID($W211,FIND(CHAR(160),SUBSTITUTE($W211,\"{\",CHAR(160),GS$1)),FIND(CHAR(160),SUBSTITUTE($W211,\"}\",CHAR(160),GS$1))-FIND(CHAR(160),SUBSTITUTE($W211,\"{\",CHAR(160),GS$1))+1),\"\")","v":""},{"$f":"IFERROR(MID($W211,FIND(CHAR(160),SUBSTITUTE($W211,\"{\",CHAR(160),GT$1)),FIND(CHAR(160),SUBSTITUTE($W211,\"}\",CHAR(160),GT$1))-FIND(CHAR(160),SUBSTITUTE($W211,\"{\",CHAR(160),GT$1))+1),\"\")","v":""},{"$f":"IFERROR(MID($W211,FIND(CHAR(160),SUBSTITUTE($W211,\"{\",CHAR(160),GU$1)),FIND(CHAR(160),SUBSTITUTE($W211,\"}\",CHAR(160),GU$1))-FIND(CHAR(160),SUBSTITUTE($W211,\"{\",CHAR(160),GU$1))+1),\"\")","v":""},{"$f":"IFERROR(MID($W211,FIND(CHAR(160),SUBSTITUTE($W211,\"{\",CHAR(160),GV$1)),FIND(CHAR(160),SUBSTITUTE($W211,\"}\",CHAR(160),GV$1))-FIND(CHAR(160),SUBSTITUTE($W211,\"{\",CHAR(160),GV$1))+1),\"\")","v":""},{"$f":"IFERROR(MID($W211,FIND(CHAR(160),SUBSTITUTE($W211,\"{\",CHAR(160),GW$1)),FIND(CHAR(160),SUBSTITUTE($W211,\"}\",CHAR(160),GW$1))-FIND(CHAR(160),SUBSTITUTE($W211,\"{\",CHAR(160),GW$1))+1),\"\")","v":""},{"$f":"IFERROR(MID($W211,FIND(CHAR(160),SUBSTITUTE($W211,\"{\",CHAR(160),GX$1)),FIND(CHAR(160),SUBSTITUTE($W211,\"}\",CHAR(160),GX$1))-FIND(CHAR(160),SUBSTITUTE($W211,\"{\",CHAR(160),GX$1))+1),\"\")","v":""},{"$f":"IFERROR(MID($W211,FIND(CHAR(160),SUBSTITUTE($W211,\"{\",CHAR(160),GY$1)),FIND(CHAR(160),SUBSTITUTE($W211,\"}\",CHAR(160),GY$1))-FIND(CHAR(160),SUBSTITUTE($W211,\"{\",CHAR(160),GY$1))+1),\"\")","v":"{Measure:Quantity}"},{"$f":"IFERROR(MID($W211,FIND(CHAR(160),SUBSTITUTE($W211,\"{\",CHAR(160),GZ$1)),FIND(CHAR(160),SUBSTITUTE($W211,\"}\",CHAR(160),GZ$1))-FIND(CHAR(160),SUBSTITUTE($W211,\"{\",CHAR(160),GZ$1))+1),\"\")","v":"{Wattage}"},{"$f":"IFERROR(MID($X211,FIND(CHAR(160),SUBSTITUTE($X211,\"{\",CHAR(160),HA$1)),FIND(CHAR(160),SUBSTITUTE($X211,\"}\",CHAR(160),HA$1))-FIND(CHAR(160),SUBSTITUTE($X211,\"{\",CHAR(160),HA$1))+1),\"\")","v":""},{"$f":"IFERROR(MID($X211,FIND(CHAR(160),SUBSTITUTE($X211,\"{\",CHAR(160),HB$1)),FIND(CHAR(160),SUBSTITUTE($X211,\"}\",CHAR(160),HB$1))-FIND(CHAR(160),SUBSTITUTE($X211,\"{\",CHAR(160),HB$1))+1),\"\")","v":""},{"$f":"IFERROR(MID($X211,FIND(CHAR(160),SUBSTITUTE($X211,\"{\",CHAR(160),HC$1)),FIND(CHAR(160),SUBSTITUTE($X211,\"}\",CHAR(160),HC$1))-FIND(CHAR(160),SUBSTITUTE($X211,\"{\",CHAR(160),HC$1))+1),\"\")","v":""},{"$f":"IFERROR(MID($X211,FIND(CHAR(160),SUBSTITUTE($X211,\"{\",CHAR(160),HD$1)),FIND(CHAR(160),SUBSTITUTE($X211,\"}\",CHAR(160),HD$1))-FIND(CHAR(160),SUBSTITUTE($X211,\"{\",CHAR(160),HD$1))+1),\"\")","v":""},{"$f":"IFERROR(MID($X211,FIND(CHAR(160),SUBSTITUTE($X211,\"{\",CHAR(160),HE$1)),FIND(CHAR(160),SUBSTITUTE($X211,\"}\",CHAR(160),HE$1))-FIND(CHAR(160),SUBSTITUTE($X211,\"{\",CHAR(160),HE$1))+1),\"\")","v":""},{"$f":"IFERROR(MID($X211,FIND(CHAR(160),SUBSTITUTE($X211,\"{\",CHAR(160),HF$1)),FIND(CHAR(160),SUBSTITUTE($X211,\"}\",CHAR(160),HF$1))-FIND(CHAR(160),SUBSTITUTE($X211,\"{\",CHAR(160),HF$1))+1),\"\")","v":""},{"$f":"IFERROR(MID($X211,FIND(CHAR(160),SUBSTITUTE($X211,\"{\",CHAR(160),HG$1)),FIND(CHAR(160),SUBSTITUTE($X211,\"}\",CHAR(160),HG$1))-FIND(CHAR(160),SUBSTITUTE($X211,\"{\",CHAR(160),HG$1))+1),\"\")","v":""},{"$f":"IFERROR(MID($X211,FIND(CHAR(160),SUBSTITUTE($X211,\"{\",CHAR(160),HH$1)),FIND(CHAR(160),SUBSTITUTE($X211,\"}\",CHAR(160),HH$1))-FIND(CHAR(160),SUBSTITUTE($X211,\"{\",CHAR(160),HH$1))+1),\"\")","v":""},{"$f":"IFERROR(MID($X211,FIND(CHAR(160),SUBSTITUTE($X211,\"{\",CHAR(160),HI$1)),FIND(CHAR(160),SUBSTITUTE($X211,\"}\",CHAR(160),HI$1))-FIND(CHAR(160),SUBSTITUTE($X211,\"{\",CHAR(160),HI$1))+1),\"\")","v":"{Measure:Quantity}"},{"$f":"IFERROR(MID($X211,FIND(CHAR(160),SUBSTITUTE($X211,\"{\",CHAR(160),HJ$1)),FIND(CHAR(160),SUBSTITUTE($X211,\"}\",CHAR(160),HJ$1))-FIND(CHAR(160),SUBSTITUTE($X211,\"{\",CHAR(160),HJ$1))+1),\"\")","v":"{Wattage}"},{"$f":"IFERROR(MID($Y211,FIND(CHAR(160),SUBSTITUTE($Y211,\"{\",CHAR(160),HK$1)),FIND(CHAR(160),SUBSTITUTE($Y211,\"}\",CHAR(160),HK$1))-FIND(CHAR(160),SUBSTITUTE($Y211,\"{\",CHAR(160),HK$1))+1),\"\")","v":""},{"$f":"IFERROR(MID($Y211,FIND(CHAR(160),SUBSTITUTE($Y211,\"{\",CHAR(160),HL$1)),FIND(CHAR(160),SUBSTITUTE($Y211,\"}\",CHAR(160),HL$1))-FIND(CHAR(160),SUBSTITUTE($Y211,\"{\",CHAR(160),HL$1))+1),\"\")","v":""},{"$f":"IFERROR(MID($Y211,FIND(CHAR(160),SUBSTITUTE($Y211,\"{\",CHAR(160),HM$1)),FIND(CHAR(160),SUBSTITUTE($Y211,\"}\",CHAR(160),HM$1))-FIND(CHAR(160),SUBSTITUTE($Y211,\"{\",CHAR(160),HM$1))+1),\"\")","v":""},{"$f":"IFERROR(MID($Y211,FIND(CHAR(160),SUBSTITUTE($Y211,\"{\",CHAR(160),HN$1)),FIND(CHAR(160),SUBSTITUTE($Y211,\"}\",CHAR(160),HN$1))-FIND(CHAR(160),SUBSTITUTE($Y211,\"{\",CHAR(160),HN$1))+1),\"\")","v":""},{"$f":"IFERROR(MID($Y211,FIND(CHAR(160),SUBSTITUTE($Y211,\"{\",CHAR(160),HO$1)),FIND(CHAR(160),SUBSTITUTE($Y211,\"}\",CHAR(160),HO$1))-FIND(CHAR(160),SUBSTITUTE($Y211,\"{\",CHAR(160),HO$1))+1),\"\")","v":""},{"$f":"IFERROR(MID($Y211,FIND(CHAR(160),SUBSTITUTE($Y211,\"{\",CHAR(160),HP$1)),FIND(CHAR(160),SUBSTITUTE($Y211,\"}\",CHAR(160),HP$1))-FIND(CHAR(160),SUBSTITUTE($Y211,\"{\",CHAR(160),HP$1))+1),\"\")","v":""},{"$f":"IFERROR(MID($Y211,FIND(CHAR(160),SUBSTITUTE($Y211,\"{\",CHAR(160),HQ$1)),FIND(CHAR(160),SUBSTITUTE($Y211,\"}\",CHAR(160),HQ$1))-FIND(CHAR(160),SUBSTITUTE($Y211,\"{\",CHAR(160),HQ$1))+1),\"\")","v":""},{"$f":"IFERROR(MID($Y211,FIND(CHAR(160),SUBSTITUTE($Y211,\"{\",CHAR(160),HR$1)),FIND(CHAR(160),SUBSTITUTE($Y211,\"}\",CHAR(160),HR$1))-FIND(CHAR(160),SUBSTITUTE($Y211,\"{\",CHAR(160),HR$1))+1),\"\")","v":""},{"$f":"IFERROR(MID($Y211,FIND(CHAR(160),SUBSTITUTE($Y211,\"{\",CHAR(160),HS$1)),FIND(CHAR(160),SUBSTITUTE($Y211,\"}\",CHAR(160),HS$1))-FIND(CHAR(160),SUBSTITUTE($Y211,\"{\",CHAR(160),HS$1))+1),\"\")","v":"{Measure:Quantity}"},{"$f":"IFERROR(MID($Y211,FIND(CHAR(160),SUBSTITUTE($Y211,\"{\",CHAR(160),HT$1)),FIND(CHAR(160),SUBSTITUTE($Y211,\"}\",CHAR(160),HT$1))-FIND(CHAR(160),SUBSTITUTE($Y211,\"{\",CHAR(160),HT$1))+1),\"\")","v":"{Wattage}"},{"$f":"IFERROR(MID($Z211,FIND(CHAR(160),SUBSTITUTE($Z211,\"{\",CHAR(160),HU$1)),FIND(CHAR(160),SUBSTITUTE($Z211,\"}\",CHAR(160),HU$1))-FIND(CHAR(160),SUBSTITUTE($Z211,\"{\",CHAR(160),HU$1))+1),\"\")","v":""},{"$f":"IFERROR(MID($Z211,FIND(CHAR(160),SUBSTITUTE($Z211,\"{\",CHAR(160),HV$1)),FIND(CHAR(160),SUBSTITUTE($Z211,\"}\",CHAR(160),HV$1))-FIND(CHAR(160),SUBSTITUTE($Z211,\"{\",CHAR(160),HV$1))+1),\"\")","v":""},{"$f":"IFERROR(MID($Z211,FIND(CHAR(160),SUBSTITUTE($Z211,\"{\",CHAR(160),HW$1)),FIND(CHAR(160),SUBSTITUTE($Z211,\"}\",CHAR(160),HW$1))-FIND(CHAR(160),SUBSTITUTE($Z211,\"{\",CHAR(160),HW$1))+1),\"\")","v":""},{"$f":"IFERROR(MID($Z211,FIND(CHAR(160),SUBSTITUTE($Z211,\"{\",CHAR(160),HX$1)),FIND(CHAR(160),SUBSTITUTE($Z211,\"}\",CHAR(160),HX$1))-FIND(CHAR(160),SUBSTITUTE($Z211,\"{\",CHAR(160),HX$1))+1),\"\")","v":""},{"$f":"IFERROR(MID($Z211,FIND(CHAR(160),SUBSTITUTE($Z211,\"{\",CHAR(160),HY$1)),FIND(CHAR(160),SUBSTITUTE($Z211,\"}\",CHAR(160),HY$1))-FIND(CHAR(160),SUBSTITUTE($Z211,\"{\",CHAR(160),HY$1))+1),\"\")","v":""},{"$f":"IFERROR(MID($Z211,FIND(CHAR(160),SUBSTITUTE($Z211,\"{\",CHAR(160),HZ$1)),FIND(CHAR(160),SUBSTITUTE($Z211,\"}\",CHAR(160),HZ$1))-FIND(CHAR(160),SUBSTITUTE($Z211,\"{\",CHAR(160),HZ$1))+1),\"\")","v":""},{"$f":"IFERROR(MID($Z211,FIND(CHAR(160),SUBSTITUTE($Z211,\"{\",CHAR(160),IA$1)),FIND(CHAR(160),SUBSTITUTE($Z211,\"}\",CHAR(160),IA$1))-FIND(CHAR(160),SUBSTITUTE($Z211,\"{\",CHAR(160),IA$1))+1),\"\")","v":""},{"$f":"IFERROR(MID($Z211,FIND(CHAR(160),SUBSTITUTE($Z211,\"{\",CHAR(160),IB$1)),FIND(CHAR(160),SUBSTITUTE($Z211,\"}\",CHAR(160),IB$1))-FIND(CHAR(160),SUBSTITUTE($Z211,\"{\",CHAR(160),IB$1))+1),\"\")","v":""},{"$f":"IFERROR(MID($Z211,FIND(CHAR(160),SUBSTITUTE($Z211,\"{\",CHAR(160),IC$1)),FIND(CHAR(160),SUBSTITUTE($Z211,\"}\",CHAR(160),IC$1))-FIND(CHAR(160),SUBSTITUTE($Z211,\"{\",CHAR(160),IC$1))+1),\"\")","v":"{Measure:Quantity}"},{"$f":"IFERROR(MID($Z211,FIND(CHAR(160),SUBSTITUTE($Z211,\"{\",CHAR(160),ID$1)),FIND(CHAR(160),SUBSTITUTE($Z211,\"}\",CHAR(160),ID$1))-FIND(CHAR(160),SUBSTITUTE($Z211,\"{\",CHAR(160),ID$1))+1),\"\")","v":"{Wattage}"},{"$f":"IFERROR(MID($AA211,FIND(CHAR(160),SUBSTITUTE($AA211,\"{\",CHAR(160),IE$1)),FIND(CHAR(160),SUBSTITUTE($AA211,\"}\",CHAR(160),IE$1))-FIND(CHAR(160),SUBSTITUTE($AA211,\"{\",CHAR(160),IE$1))+1),\"\")","v":""},{"$f":"IFERROR(MID($AA211,FIND(CHAR(160),SUBSTITUTE($AA211,\"{\",CHAR(160),IF$1)),FIND(CHAR(160),SUBSTITUTE($AA211,\"}\",CHAR(160),IF$1))-FIND(CHAR(160),SUBSTITUTE($AA211,\"{\",CHAR(160),IF$1))+1),\"\")","v":""},{"$f":"IFERROR(MID($AA211,FIND(CHAR(160),SUBSTITUTE($AA211,\"{\",CHAR(160),IG$1)),FIND(CHAR(160),SUBSTITUTE($AA211,\"}\",CHAR(160),IG$1))-FIND(CHAR(160),SUBSTITUTE($AA211,\"{\",CHAR(160),IG$1))+1),\"\")","v":""},{"$f":"IFERROR(MID($AA211,FIND(CHAR(160),SUBSTITUTE($AA211,\"{\",CHAR(160),IH$1)),FIND(CHAR(160),SUBSTITUTE($AA211,\"}\",CHAR(160),IH$1))-FIND(CHAR(160),SUBSTITUTE($AA211,\"{\",CHAR(160),IH$1))+1),\"\")","v":""},{"$f":"IFERROR(MID($AA211,FIND(CHAR(160),SUBSTITUTE($AA211,\"{\",CHAR(160),II$1)),FIND(CHAR(160),SUBSTITUTE($AA211,\"}\",CHAR(160),II$1))-FIND(CHAR(160),SUBSTITUTE($AA211,\"{\",CHAR(160),II$1))+1),\"\")","v":""},{"$f":"IFERROR(MID($AA211,FIND(CHAR(160),SUBSTITUTE($AA211,\"{\",CHAR(160),IJ$1)),FIND(CHAR(160),SUBSTITUTE($AA211,\"}\",CHAR(160),IJ$1))-FIND(CHAR(160),SUBSTITUTE($AA211,\"{\",CHAR(160),IJ$1))+1),\"\")","v":""},{"$f":"IFERROR(MID($AA211,FIND(CHAR(160),SUBSTITUTE($AA211,\"{\",CHAR(160),IK$1)),FIND(CHAR(160),SUBSTITUTE($AA211,\"}\",CHAR(160),IK$1))-FIND(CHAR(160),SUBSTITUTE($AA211,\"{\",CHAR(160),IK$1))+1),\"\")","v":""},{"$f":"IFERROR(MID($AA211,FIND(CHAR(160),SUBSTITUTE($AA211,\"{\",CHAR(160),IL$1)),FIND(CHAR(160),SUBSTITUTE($AA211,\"}\",CHAR(160),IL$1))-FIND(CHAR(160),SUBSTITUTE($AA211,\"{\",CHAR(160),IL$1))+1),\"\")","v":""},{"$f":"IFERROR(MID($AA211,FIND(CHAR(160),SUBSTITUTE($AA211,\"{\",CHAR(160),IM$1)),FIND(CHAR(160),SUBSTITUTE($AA211,\"}\",CHAR(160),IM$1))-FIND(CHAR(160),SUBSTITUTE($AA211,\"{\",CHAR(160),IM$1))+1),\"\")","v":"{Measure:Quantity}"},{"$f":"IFERROR(MID($AA211,FIND(CHAR(160),SUBSTITUTE($AA211,\"{\",CHAR(160),IN$1)),FIND(CHAR(160),SUBSTITUTE($AA211,\"}\",CHAR(160),IN$1))-FIND(CHAR(160),SUBSTITUTE($AA211,\"{\",CHAR(160),IN$1))+1),\"\")","v":"{Wattage}"},{"$f":"IFERROR(MID($AB211,FIND(CHAR(160),SUBSTITUTE($AB211,\"{\",CHAR(160),IO$1)),FIND(CHAR(160),SUBSTITUTE($AB211,\"}\",CHAR(160),IO$1))-FIND(CHAR(160),SUBSTITUTE($AB211,\"{\",CHAR(160),IO$1))+1),\"\")","v":""},{"$f":"IFERROR(MID($AB211,FIND(CHAR(160),SUBSTITUTE($AB211,\"{\",CHAR(160),IP$1)),FIND(CHAR(160),SUBSTITUTE($AB211,\"}\",CHAR(160),IP$1))-FIND(CHAR(160),SUBSTITUTE($AB211,\"{\",CHAR(160),IP$1))+1),\"\")","v":""},{"$f":"IFERROR(MID($AB211,FIND(CHAR(160),SUBSTITUTE($AB211,\"{\",CHAR(160),IQ$1)),FIND(CHAR(160),SUBSTITUTE($AB211,\"}\",CHAR(160),IQ$1))-FIND(CHAR(160),SUBSTITUTE($AB211,\"{\",CHAR(160),IQ$1))+1),\"\")","v":""},{"$f":"IFERROR(MID($AB211,FIND(CHAR(160),SUBSTITUTE($AB211,\"{\",CHAR(160),IR$1)),FIND(CHAR(160),SUBSTITUTE($AB211,\"}\",CHAR(160),IR$1))-FIND(CHAR(160),SUBSTITUTE($AB211,\"{\",CHAR(160),IR$1))+1),\"\")","v":""},{"$f":"IFERROR(MID($AB211,FIND(CHAR(160),SUBSTITUTE($AB211,\"{\",CHAR(160),IS$1)),FIND(CHAR(160),SUBSTITUTE($AB211,\"}\",CHAR(160),IS$1))-FIND(CHAR(160),SUBSTITUTE($AB211,\"{\",CHAR(160),IS$1))+1),\"\")","v":""},{"$f":"IFERROR(MID($AB211,FIND(CHAR(160),SUBSTITUTE($AB211,\"{\",CHAR(160),IT$1)),FIND(CHAR(160),SUBSTITUTE($AB211,\"}\",CHAR(160),IT$1))-FIND(CHAR(160),SUBSTITUTE($AB211,\"{\",CHAR(160),IT$1))+1),\"\")","v":""},{"$f":"IFERROR(MID($AB211,FIND(CHAR(160),SUBSTITUTE($AB211,\"{\",CHAR(160),IU$1)),FIND(CHAR(160),SUBSTITUTE($AB211,\"}\",CHAR(160),IU$1))-FIND(CHAR(160),SUBSTITUTE($AB211,\"{\",CHAR(160),IU$1))+1),\"\")","v":""},{"$f":"IFERROR(MID($AB211,FIND(CHAR(160),SUBSTITUTE($AB211,\"{\",CHAR(160),IV$1)),FIND(CHAR(160),SUBSTITUTE($AB211,\"}\",CHAR(160),IV$1))-FIND(CHAR(160),SUBSTITUTE($AB211,\"{\",CHAR(160),IV$1))+1),\"\")","v":""},{"$f":"IFERROR(MID($AB211,FIND(CHAR(160),SUBSTITUTE($AB211,\"{\",CHAR(160),IW$1)),FIND(CHAR(160),SUBSTITUTE($AB211,\"}\",CHAR(160),IW$1))-FIND(CHAR(160),SUBSTITUTE($AB211,\"{\",CHAR(160),IW$1))+1),\"\")","v":""},{"$f":"IFERROR(MID($AB211,FIND(CHAR(160),SUBSTITUTE($AB211,\"{\",CHAR(160),IX$1)),FIND(CHAR(160),SUBSTITUTE($AB211,\"}\",CHAR(160),IX$1))-FIND(CHAR(160),SUBSTITUTE($AB211,\"{\",CHAR(160),IX$1))+1),\"\")","v":""},null,{"$f":"10-COUNTIF(DU211:ED211,\"\")","v":2}]
["Low Income - NECEC Funds","LED Low Income Specialty Bulb Short Life","LILEDSPECS","2021-07-01","2022-06-30","Calculated","{Measure:Quantity}*2.95",0,"Calculated","{Measure:Quantity}*2.95",0,"2021-07-01","2022-06-30","Calculated","{Measure:Quantity}*41",null,null,"{Measure:Quantity}*0.057",null,null,"{Measure:Quantity}*0.009","{Measure:Quantity}*0.004","{Measure:Quantity}*-0.005","{Measure:Quantity}*-0.004","{Measure:Quantity}*-0.035","{Measure:Quantity}*-0.001","{Measure:Quantity}*-0.007",null,"2021-07-01","2022-06-30",4,0.17199999999999999,7.2999999999999995E-2,0.34899999999999998,0.33500000000000002,0.155,0.161,0.77,1,1,0,0,null,{"$f":"DU212","v":"{Measure:Quantity}"},1,{"$f":"DV212","v":""},1,{"$f":"DW212","v":""},null,{"$f":"DX212","v":""},null,{"$f":"DY212","v":""},null,{"$f":"DZ212","v":""},null,{"$f":"EA212","v":""},null,{"$f":"EB212","v":""},null,{"$f":"EC212","v":""},null,"LIDI Bundle Qty",0,{"$f":"AS212*41","v":41},0,0,{"$f":"AS212*0.057","v":5.7000000000000002E-2},0,0,{"$f":"AS212*0.009","v":8.9999999999999993E-3},{"$f":"AS212*0.004","v":4.0000000000000001E-3},{"$f":"AS212*-0.005","v":-5.0000000000000001E-3},{"$f":"AS212*-0.004","v":-4.0000000000000001E-3},{"$f":"AS212*-0.035","v":-3.5000000000000003E-2},{"$f":"AS212*-0.001","v":-1E-3},{"$f":"AS212*-0.007","v":-7.0000000000000001E-3},0,null,"Res","Default DR",{"$f":"Benefits(BL212,BR212,BS212,BT212,BU212,BV212,BW212,BX212,BY212,BZ212,AE212,AH212,AI212,AJ212,AK212,AL212,AM212,AN212,AO212,AP212,CA212,CB212)","v":14.364119477561875},9.7947972705671784,-2.5858250316384574E-2,-3.4588814173466984,-0.11311640736518638,-0.55049375180912552,-0.3877324073856892,0,0,{"$f":"SUMPRODUCT(CC212:CK212,--(CC212:CK212>0))","v":24.158916748129052},{"$f":"-SUMPRODUCT(CC212:CK212,--(CC212:CK212<0))","v":4.536082234223084},null,{"$f":"AS212*2.95","v":2.95},null,null,{"$f":"CM212+CO212","v":7.4860822342230842},{"$f":"IF(NetOrGross=\"Net\",(1-AO212+AP212),1)","v":1},{"$f":"(SUMPRODUCT(CC212:CJ212,--(CC212:CJ212>0))+CN212)*CS212/((-SUMPRODUCT(CC212:CJ212,--(CC212:CJ212<0))+MAX(CO212,CV212)+CP212+CQ212)*CS212+IF(FRIncentives=\"Yes\",CV212*(1-CS212),0))","v":3.2271775799743532},1,{"$f":"AS212*2.95","v":2.95},null,"Electric","y",{"$f":"CL212-CR212","v":16.672834513905968},{"$f":"IF(F212=\"Manual Entry\",\"Manual\",IF(G212=\"\",0,\"X=\"&SUBSTITUTE(SUBSTITUTE(SUBSTITUTE(SUBSTITUTE(SUBSTITUTE(SUBSTITUTE(SUBSTITUTE(SUBSTITUTE(SUBSTITUTE(SUBSTITUTE(SUBSTITUTE(SUBSTITUTE(G212,$ED212,$ED$2&ROW($ED212)),$EC212,$EC$2&ROW($EC212)),$EB212,$EB$2&ROW($EB212)),$EA212,$EA$2&ROW($EA212)),$DZ212,$DZ$2&ROW($DZ212)),$DY212,$DY$2&ROW($DY212)),$DX212,$DX$2&ROW($DX212)),$DW212,$DW$2&ROW($DW212)),$DV212,$DV$2&ROW($DV212)),$DU212,$DU$2&ROW($DU212)),$DT212,$DT$2&ROW($DT212)),$DS212,$DS$2&ROW($DS212))))","v":"X=AS212*2.95"},{"$f":"IF(I212=\"Manual Entry\",\"Manual\",IF(J212=\"\",0,\"X=\"&SUBSTITUTE(SUBSTITUTE(SUBSTITUTE(SUBSTITUTE(SUBSTITUTE(SUBSTITUTE(SUBSTITUTE(SUBSTITUTE(SUBSTITUTE(SUBSTITUTE(SUBSTITUTE(SUBSTITUTE(J212,$ED212,$ED$2&ROW($ED212)),$EC212,$EC$2&ROW($EC212)),$EB212,$EB$2&ROW($EB212)),$EA212,$EA$2&ROW($EA212)),$DZ212,$DZ$2&ROW($DZ212)),$DY212,$DY$2&ROW($DY212)),$DX212,$DX$2&ROW($DX212)),$DW212,$DW$2&ROW($DW212)),$DV212,$DV$2&ROW($DV212)),$DU212,$DU$2&ROW($DU212)),$DT212,$DT$2&ROW($DT212)),$DS212,$DS$2&ROW($DS212))))","v":"X=AS212*2.95"},{"$f":"IF(O212=\"\",0,\"X=\"&SUBSTITUTE(SUBSTITUTE(SUBSTITUTE(SUBSTITUTE(SUBSTITUTE(SUBSTITUTE(SUBSTITUTE(SUBSTITUTE(SUBSTITUTE(SUBSTITUTE(SUBSTITUTE(SUBSTITUTE(O212,$ED212,$ED$2&ROW($ED212)),$EC212,$EC$2&ROW($EC212)),$EB212,$EB$2&ROW($EB212)),$EA212,$EA$2&ROW($EA212)),$DZ212,$DZ$2&ROW($DZ212)),$DY212,$DY$2&ROW($DY212)),$DX212,$DX$2&ROW($DX212)),$DW212,$DW$2&ROW($DW212)),$DV212,$DV$2&ROW($DV212)),$DU212,$DU$2&ROW($DU212)),$DT212,$DT$2&ROW($DT212)),$DS212,$DS$2&ROW($DS212)))","v":"X=AS212*41"},{"$f":"IF(P212=\"\",0,\"X=\"&SUBSTITUTE(SUBSTITUTE(SUBSTITUTE(SUBSTITUTE(SUBSTITUTE(SUBSTITUTE(SUBSTITUTE(SUBSTITUTE(SUBSTITUTE(SUBSTITUTE(SUBSTITUTE(SUBSTITUTE(P212,$ED212,$ED$2&ROW($ED212)),$EC212,$EC$2&ROW($EC212)),$EB212,$EB$2&ROW($EB212)),$EA212,$EA$2&ROW($EA212)),$DZ212,$DZ$2&ROW($DZ212)),$DY212,$DY$2&ROW($DY212)),$DX212,$DX$2&ROW($DX212)),$DW212,$DW$2&ROW($DW212)),$DV212,$DV$2&ROW($DV212)),$DU212,$DU$2&ROW($DU212)),$DT212,$DT$2&ROW($DT212)),$DS212,$DS$2&ROW($DS212)))","v":0},{"$f":"IF(Q212=\"\",0,\"X=\"&SUBSTITUTE(SUBSTITUTE(SUBSTITUTE(SUBSTITUTE(SUBSTITUTE(SUBSTITUTE(SUBSTITUTE(SUBSTITUTE(SUBSTITUTE(SUBSTITUTE(SUBSTITUTE(SUBSTITUTE(Q212,$ED212,$ED$2&ROW($ED212)),$EC212,$EC$2&ROW($EC212)),$EB212,$EB$2&ROW($EB212)),$EA212,$EA$2&ROW($EA212)),$DZ212,$DZ$2&ROW($DZ212)),$DY212,$DY$2&ROW($DY212)),$DX212,$DX$2&ROW($DX212)),$DW212,$DW$2&ROW($DW212)),$DV212,$DV$2&ROW($DV212)),$DU212,$DU$2&ROW($DU212)),$DT212,$DT$2&ROW($DT212)),$DS212,$DS$2&ROW($DS212)))","v":0},{"$f":"IF(R212=\"\",0,\"X=\"&SUBSTITUTE(SUBSTITUTE(SUBSTITUTE(SUBSTITUTE(SUBSTITUTE(SUBSTITUTE(SUBSTITUTE(SUBSTITUTE(SUBSTITUTE(SUBSTITUTE(SUBSTITUTE(SUBSTITUTE(R212,$ED212,$ED$2&ROW($ED212)),$EC212,$EC$2&ROW($EC212)),$EB212,$EB$2&ROW($EB212)),$EA212,$EA$2&ROW($EA212)),$DZ212,$DZ$2&ROW($DZ212)),$DY212,$DY$2&ROW($DY212)),$DX212,$DX$2&ROW($DX212)),$DW212,$DW$2&ROW($DW212)),$DV212,$DV$2&ROW($DV212)),$DU212,$DU$2&ROW($DU212)),$DT212,$DT$2&ROW($DT212)),$DS212,$DS$2&ROW($DS212)))","v":"X=AS212*0.057"},{"$f":"IF(S212=\"\",0,\"X=\"&SUBSTITUTE(SUBSTITUTE(SUBSTITUTE(SUBSTITUTE(SUBSTITUTE(SUBSTITUTE(SUBSTITUTE(SUBSTITUTE(SUBSTITUTE(SUBSTITUTE(SUBSTITUTE(SUBSTITUTE(S212,$ED212,$ED$2&ROW($ED212)),$EC212,$EC$2&ROW($EC212)),$EB212,$EB$2&ROW($EB212)),$EA212,$EA$2&ROW($EA212)),$DZ212,$DZ$2&ROW($DZ212)),$DY212,$DY$2&ROW($DY212)),$DX212,$DX$2&ROW($DX212)),$DW212,$DW$2&ROW($DW212)),$DV212,$DV$2&ROW($DV212)),$DU212,$DU$2&ROW($DU212)),$DT212,$DT$2&ROW($DT212)),$DS212,$DS$2&ROW($DS212)))","v":0},{"$f":"IF(T212=\"\",0,\"X=\"&SUBSTITUTE(SUBSTITUTE(SUBSTITUTE(SUBSTITUTE(SUBSTITUTE(SUBSTITUTE(SUBSTITUTE(SUBSTITUTE(SUBSTITUTE(SUBSTITUTE(SUBSTITUTE(SUBSTITUTE(T212,$ED212,$ED$2&ROW($ED212)),$EC212,$EC$2&ROW($EC212)),$EB212,$EB$2&ROW($EB212)),$EA212,$EA$2&ROW($EA212)),$DZ212,$DZ$2&ROW($DZ212)),$DY212,$DY$2&ROW($DY212)),$DX212,$DX$2&ROW($DX212)),$DW212,$DW$2&ROW($DW212)),$DV212,$DV$2&ROW($DV212)),$DU212,$DU$2&ROW($DU212)),$DT212,$DT$2&ROW($DT212)),$DS212,$DS$2&ROW($DS212)))","v":0},{"$f":"IF(U212=\"\",0,\"X=\"&SUBSTITUTE(SUBSTITUTE(SUBSTITUTE(SUBSTITUTE(SUBSTITUTE(SUBSTITUTE(SUBSTITUTE(SUBSTITUTE(SUBSTITUTE(SUBSTITUTE(SUBSTITUTE(SUBSTITUTE(U212,$ED212,$ED$2&ROW($ED212)),$EC212,$EC$2&ROW($EC212)),$EB212,$EB$2&ROW($EB212)),$EA212,$EA$2&ROW($EA212)),$DZ212,$DZ$2&ROW($DZ212)),$DY212,$DY$2&ROW($DY212)),$DX212,$DX$2&ROW($DX212)),$DW212,$DW$2&ROW($DW212)),$DV212,$DV$2&ROW($DV212)),$DU212,$DU$2&ROW($DU212)),$DT212,$DT$2&ROW($DT212)),$DS212,$DS$2&ROW($DS212)))","v":"X=AS212*0.009"},{"$f":"IF(V212=\"\",0,\"X=\"&SUBSTITUTE(SUBSTITUTE(SUBSTITUTE(SUBSTITUTE(SUBSTITUTE(SUBSTITUTE(SUBSTITUTE(SUBSTITUTE(SUBSTITUTE(SUBSTITUTE(SUBSTITUTE(SUBSTITUTE(V212,$ED212,$ED$2&ROW($ED212)),$EC212,$EC$2&ROW($EC212)),$EB212,$EB$2&ROW($EB212)),$EA212,$EA$2&ROW($EA212)),$DZ212,$DZ$2&ROW($DZ212)),$DY212,$DY$2&ROW($DY212)),$DX212,$DX$2&ROW($DX212)),$DW212,$DW$2&ROW($DW212)),$DV212,$DV$2&ROW($DV212)),$DU212,$DU$2&ROW($DU212)),$DT212,$DT$2&ROW($DT212)),$DS212,$DS$2&ROW($DS212)))","v":"X=AS212*0.004"},{"$f":"IF(W212=\"\",0,\"X=\"&SUBSTITUTE(SUBSTITUTE(SUBSTITUTE(SUBSTITUTE(SUBSTITUTE(SUBSTITUTE(SUBSTITUTE(SUBSTITUTE(SUBSTITUTE(SUBSTITUTE(SUBSTITUTE(SUBSTITUTE(W212,$ED212,$ED$2&ROW($ED212)),$EC212,$EC$2&ROW($EC212)),$EB212,$EB$2&ROW($EB212)),$EA212,$EA$2&ROW($EA212)),$DZ212,$DZ$2&ROW($DZ212)),$DY212,$DY$2&ROW($DY212)),$DX212,$DX$2&ROW($DX212)),$DW212,$DW$2&ROW($DW212)),$DV212,$DV$2&ROW($DV212)),$DU212,$DU$2&ROW($DU212)),$DT212,$DT$2&ROW($DT212)),$DS212,$DS$2&ROW($DS212)))","v":"X=AS212*-0.005"},{"$f":"IF(X212=\"\",0,\"X=\"&SUBSTITUTE(SUBSTITUTE(SUBSTITUTE(SUBSTITUTE(SUBSTITUTE(SUBSTITUTE(SUBSTITUTE(SUBSTITUTE(SUBSTITUTE(SUBSTITUTE(SUBSTITUTE(SUBSTITUTE(X212,$ED212,$ED$2&ROW($ED212)),$EC212,$EC$2&ROW($EC212)),$EB212,$EB$2&ROW($EB212)),$EA212,$EA$2&ROW($EA212)),$DZ212,$DZ$2&ROW($DZ212)),$DY212,$DY$2&ROW($DY212)),$DX212,$DX$2&ROW($DX212)),$DW212,$DW$2&ROW($DW212)),$DV212,$DV$2&ROW($DV212)),$DU212,$DU$2&ROW($DU212)),$DT212,$DT$2&ROW($DT212)),$DS212,$DS$2&ROW($DS212)))","v":"X=AS212*-0.004"},{"$f":"IF(Y212=\"\",0,\"X=\"&SUBSTITUTE(SUBSTITUTE(SUBSTITUTE(SUBSTITUTE(SUBSTITUTE(SUBSTITUTE(SUBSTITUTE(SUBSTITUTE(SUBSTITUTE(SUBSTITUTE(SUBSTITUTE(SUBSTITUTE(Y212,$ED212,$ED$2&ROW($ED212)),$EC212,$EC$2&ROW($EC212)),$EB212,$EB$2&ROW($EB212)),$EA212,$EA$2&ROW($EA212)),$DZ212,$DZ$2&ROW($DZ212)),$DY212,$DY$2&ROW($DY212)),$DX212,$DX$2&ROW($DX212)),$DW212,$DW$2&ROW($DW212)),$DV212,$DV$2&ROW($DV212)),$DU212,$DU$2&ROW($DU212)),$DT212,$DT$2&ROW($DT212)),$DS212,$DS$2&ROW($DS212)))","v":"X=AS212*-0.035"},{"$f":"IF(Z212=\"\",0,\"X=\"&SUBSTITUTE(SUBSTITUTE(SUBSTITUTE(SUBSTITUTE(SUBSTITUTE(SUBSTITUTE(SUBSTITUTE(SUBSTITUTE(SUBSTITUTE(SUBSTITUTE(SUBSTITUTE(SUBSTITUTE(Z212,$ED212,$ED$2&ROW($ED212)),$EC212,$EC$2&ROW($EC212)),$EB212,$EB$2&ROW($EB212)),$EA212,$EA$2&ROW($EA212)),$DZ212,$DZ$2&ROW($DZ212)),$DY212,$DY$2&ROW($DY212)),$DX212,$DX$2&ROW($DX212)),$DW212,$DW$2&ROW($DW212)),$DV212,$DV$2&ROW($DV212)),$DU212,$DU$2&ROW($DU212)),$DT212,$DT$2&ROW($DT212)),$DS212,$DS$2&ROW($DS212)))","v":"X=AS212*-0.001"},{"$f":"IF(AA212=\"\",0,\"X=\"&SUBSTITUTE(SUBSTITUTE(SUBSTITUTE(SUBSTITUTE(SUBSTITUTE(SUBSTITUTE(SUBSTITUTE(SUBSTITUTE(SUBSTITUTE(SUBSTITUTE(SUBSTITUTE(SUBSTITUTE(AA212,$ED212,$ED$2&ROW($ED212)),$EC212,$EC$2&ROW($EC212)),$EB212,$EB$2&ROW($EB212)),$EA212,$EA$2&ROW($EA212)),$DZ212,$DZ$2&ROW($DZ212)),$DY212,$DY$2&ROW($DY212)),$DX212,$DX$2&ROW($DX212)),$DW212,$DW$2&ROW($DW212)),$DV212,$DV$2&ROW($DV212)),$DU212,$DU$2&ROW($DU212)),$DT212,$DT$2&ROW($DT212)),$DS212,$DS$2&ROW($DS212)))","v":"X=AS212*-0.007"},{"$f":"IF(AB212=\"\",0,\"X=\"&SUBSTITUTE(SUBSTITUTE(SUBSTITUTE(SUBSTITUTE(SUBSTITUTE(SUBSTITUTE(SUBSTITUTE(SUBSTITUTE(SUBSTITUTE(SUBSTITUTE(SUBSTITUTE(SUBSTITUTE(AB212,$ED212,$ED$2&ROW($ED212)),$EC212,$EC$2&ROW($EC212)),$EB212,$EB$2&ROW($EB212)),$EA212,$EA$2&ROW($EA212)),$DZ212,$DZ$2&ROW($DZ212)),$DY212,$DY$2&ROW($DY212)),$DX212,$DX$2&ROW($DX212)),$DW212,$DW$2&ROW($DW212)),$DV212,$DV$2&ROW($DV212)),$DU212,$DU$2&ROW($DU212)),$DT212,$DT$2&ROW($DT212)),$DS212,$DS$2&ROW($DS212)))","v":0},null,null,"{Factor:WinterCF}","{Factor:SummerCF}",{"$f":"IFERROR(INDEX($EG212:$IV212,MATCH(0,COUNTIF($DR212:DT212,$EG212:$IV212),0)),\"\")","v":"{Measure:Quantity}"},{"$f":"IFERROR(INDEX($EG212:$IV212,MATCH(0,COUNTIF($DR212:DU212,$EG212:$IV212),0)),\"\")","v":""},{"$f":"IFERROR(INDEX($EG212:$IV212,MATCH(0,COUNTIF($DR212:DV212,$EG212:$IV212),0)),\"\")","v":""},{"$f":"IFERROR(INDEX($EG212:$IV212,MATCH(0,COUNTIF($DR212:DW212,$EG212:$IV212),0)),\"\")","v":""},{"$f":"IFERROR(INDEX($EG212:$IV212,MATCH(0,COUNTIF($DR212:DX212,$EG212:$IV212),0)),\"\")","v":""},{"$f":"IFERROR(INDEX($EG212:$IV212,MATCH(0,COUNTIF($DR212:DY212,$EG212:$IV212),0)),\"\")","v":""},{"$f":"IFERROR(INDEX($EG212:$IV212,MATCH(0,COUNTIF($DR212:DZ212,$EG212:$IV212),0)),\"\")","v":""},{"$f":"IFERROR(INDEX($EG212:$IV212,MATCH(0,COUNTIF($DR212:EA212,$EG212:$IV212),0)),\"\")","v":""},{"$f":"IFERROR(INDEX($EG212:$IV212,MATCH(0,COUNTIF($DR212:EB212,$EG212:$IV212),0)),\"\")","v":""},{"$f":"IFERROR(INDEX($EG212:$IV212,MATCH(0,COUNTIF($DR212:EC212,$EG212:$IV212),0)),\"\")","v":""},null,null,{"$f":"IFERROR(MID($G212,FIND(CHAR(160),SUBSTITUTE($G212,\"{\",CHAR(160),EG$1)),FIND(CHAR(160),SUBSTITUTE($G212,\"}\",CHAR(160),EG$1))-FIND(CHAR(160),SUBSTITUTE($G212,\"{\",CHAR(160),EG$1))+1),\"\")","v":"{Measure:Quantity}"},{"$f":"IFERROR(MID($G212,FIND(CHAR(160),SUBSTITUTE($G212,\"{\",CHAR(160),EH$1)),FIND(CHAR(160),SUBSTITUTE($G212,\"}\",CHAR(160),EH$1))-FIND(CHAR(160),SUBSTITUTE($G212,\"{\",CHAR(160),EH$1))+1),\"\")","v":""},{"$f":"IFERROR(MID($G212,FIND(CHAR(160),SUBSTITUTE($G212,\"{\",CHAR(160),EI$1)),FIND(CHAR(160),SUBSTITUTE($G212,\"}\",CHAR(160),EI$1))-FIND(CHAR(160),SUBSTITUTE($G212,\"{\",CHAR(160),EI$1))+1),\"\")","v":""},{"$f":"IFERROR(MID($G212,FIND(CHAR(160),SUBSTITUTE($G212,\"{\",CHAR(160),EJ$1)),FIND(CHAR(160),SUBSTITUTE($G212,\"}\",CHAR(160),EJ$1))-FIND(CHAR(160),SUBSTITUTE($G212,\"{\",CHAR(160),EJ$1))+1),\"\")","v":""},{"$f":"IFERROR(MID($G212,FIND(CHAR(160),SUBSTITUTE($G212,\"{\",CHAR(160),EK$1)),FIND(CHAR(160),SUBSTITUTE($G212,\"}\",CHAR(160),EK$1))-FIND(CHAR(160),SUBSTITUTE($G212,\"{\",CHAR(160),EK$1))+1),\"\")","v":""},{"$f":"IFERROR(MID($G212,FIND(CHAR(160),SUBSTITUTE($G212,\"{\",CHAR(160),EL$1)),FIND(CHAR(160),SUBSTITUTE($G212,\"}\",CHAR(160),EL$1))-FIND(CHAR(160),SUBSTITUTE($G212,\"{\",CHAR(160),EL$1))+1),\"\")","v":""},{"$f":"IFERROR(MID($G212,FIND(CHAR(160),SUBSTITUTE($G212,\"{\",CHAR(160),EM$1)),FIND(CHAR(160),SUBSTITUTE($G212,\"}\",CHAR(160),EM$1))-FIND(CHAR(160),SUBSTITUTE($G212,\"{\",CHAR(160),EM$1))+1),\"\")","v":""},{"$f":"IFERROR(MID($G212,FIND(CHAR(160),SUBSTITUTE($G212,\"{\",CHAR(160),EN$1)),FIND(CHAR(160),SUBSTITUTE($G212,\"}\",CHAR(160),EN$1))-FIND(CHAR(160),SUBSTITUTE($G212,\"{\",CHAR(160),EN$1))+1),\"\")","v":""},{"$f":"IFERROR(MID($G212,FIND(CHAR(160),SUBSTITUTE($G212,\"{\",CHAR(160),EO$1)),FIND(CHAR(160),SUBSTITUTE($G212,\"}\",CHAR(160),EO$1))-FIND(CHAR(160),SUBSTITUTE($G212,\"{\",CHAR(160),EO$1))+1),\"\")","v":""},{"$f":"IFERROR(MID($G212,FIND(CHAR(160),SUBSTITUTE($G212,\"{\",CHAR(160),EP$1)),FIND(CHAR(160),SUBSTITUTE($G212,\"}\",CHAR(160),EP$1))-FIND(CHAR(160),SUBSTITUTE($G212,\"{\",CHAR(160),EP$1))+1),\"\")","v":""},{"$f":"IFERROR(MID($J212,FIND(CHAR(160),SUBSTITUTE($J212,\"{\",CHAR(160),EQ$1)),FIND(CHAR(160),SUBSTITUTE($J212,\"}\",CHAR(160),EQ$1))-FIND(CHAR(160),SUBSTITUTE($J212,\"{\",CHAR(160),EQ$1))+1),\"\")","v":"{Measure:Quantity}"},{"$f":"IFERROR(MID($J212,FIND(CHAR(160),SUBSTITUTE($J212,\"{\",CHAR(160),ER$1)),FIND(CHAR(160),SUBSTITUTE($J212,\"}\",CHAR(160),ER$1))-FIND(CHAR(160),SUBSTITUTE($J212,\"{\",CHAR(160),ER$1))+1),\"\")","v":""},{"$f":"IFERROR(MID($J212,FIND(CHAR(160),SUBSTITUTE($J212,\"{\",CHAR(160),ES$1)),FIND(CHAR(160),SUBSTITUTE($J212,\"}\",CHAR(160),ES$1))-FIND(CHAR(160),SUBSTITUTE($J212,\"{\",CHAR(160),ES$1))+1),\"\")","v":""},{"$f":"IFERROR(MID($J212,FIND(CHAR(160),SUBSTITUTE($J212,\"{\",CHAR(160),ET$1)),FIND(CHAR(160),SUBSTITUTE($J212,\"}\",CHAR(160),ET$1))-FIND(CHAR(160),SUBSTITUTE($J212,\"{\",CHAR(160),ET$1))+1),\"\")","v":""},{"$f":"IFERROR(MID($J212,FIND(CHAR(160),SUBSTITUTE($J212,\"{\",CHAR(160),EU$1)),FIND(CHAR(160),SUBSTITUTE($J212,\"}\",CHAR(160),EU$1))-FIND(CHAR(160),SUBSTITUTE($J212,\"{\",CHAR(160),EU$1))+1),\"\")","v":""},{"$f":"IFERROR(MID($J212,FIND(CHAR(160),SUBSTITUTE($J212,\"{\",CHAR(160),EV$1)),FIND(CHAR(160),SUBSTITUTE($J212,\"}\",CHAR(160),EV$1))-FIND(CHAR(160),SUBSTITUTE($J212,\"{\",CHAR(160),EV$1))+1),\"\")","v":""},{"$f":"IFERROR(MID($J212,FIND(CHAR(160),SUBSTITUTE($J212,\"{\",CHAR(160),EW$1)),FIND(CHAR(160),SUBSTITUTE($J212,\"}\",CHAR(160),EW$1))-FIND(CHAR(160),SUBSTITUTE($J212,\"{\",CHAR(160),EW$1))+1),\"\")","v":""},{"$f":"IFERROR(MID($J212,FIND(CHAR(160),SUBSTITUTE($J212,\"{\",CHAR(160),EX$1)),FIND(CHAR(160),SUBSTITUTE($J212,\"}\",CHAR(160),EX$1))-FIND(CHAR(160),SUBSTITUTE($J212,\"{\",CHAR(160),EX$1))+1),\"\")","v":""},{"$f":"IFERROR(MID($J212,FIND(CHAR(160),SUBSTITUTE($J212,\"{\",CHAR(160),EY$1)),FIND(CHAR(160),SUBSTITUTE($J212,\"}\",CHAR(160),EY$1))-FIND(CHAR(160),SUBSTITUTE($J212,\"{\",CHAR(160),EY$1))+1),\"\")","v":""},{"$f":"IFERROR(MID($J212,FIND(CHAR(160),SUBSTITUTE($J212,\"{\",CHAR(160),EZ$1)),FIND(CHAR(160),SUBSTITUTE($J212,\"}\",CHAR(160),EZ$1))-FIND(CHAR(160),SUBSTITUTE($J212,\"{\",CHAR(160),EZ$1))+1),\"\")","v":""},{"$f":"IFERROR(MID($J212,FIND(CHAR(160),SUBSTITUTE($J212,\"{\",CHAR(160),FA$1)),FIND(CHAR(160),SUBSTITUTE($J212,\"}\",CHAR(160),FA$1))-FIND(CHAR(160),SUBSTITUTE($J212,\"{\",CHAR(160),FA$1))+1),\"\")","v":"{Measure:Quantity}"},{"$f":"IFERROR(MID($J212,FIND(CHAR(160),SUBSTITUTE($J212,\"{\",CHAR(160),FB$1)),FIND(CHAR(160),SUBSTITUTE($J212,\"}\",CHAR(160),FB$1))-FIND(CHAR(160),SUBSTITUTE($J212,\"{\",CHAR(160),FB$1))+1),\"\")","v":""},{"$f":"IFERROR(MID($O212,FIND(CHAR(160),SUBSTITUTE($O212,\"{\",CHAR(160),FC$1)),FIND(CHAR(160),SUBSTITUTE($O212,\"}\",CHAR(160),FC$1))-FIND(CHAR(160),SUBSTITUTE($O212,\"{\",CHAR(160),FC$1))+1),\"\")","v":""},{"$f":"IFERROR(MID($O212,FIND(CHAR(160),SUBSTITUTE($O212,\"{\",CHAR(160),FD$1)),FIND(CHAR(160),SUBSTITUTE($O212,\"}\",CHAR(160),FD$1))-FIND(CHAR(160),SUBSTITUTE($O212,\"{\",CHAR(160),FD$1))+1),\"\")","v":""},{"$f":"IFERROR(MID($O212,FIND(CHAR(160),SUBSTITUTE($O212,\"{\",CHAR(160),FE$1)),FIND(CHAR(160),SUBSTITUTE($O212,\"}\",CHAR(160),FE$1))-FIND(CHAR(160),SUBSTITUTE($O212,\"{\",CHAR(160),FE$1))+1),\"\")","v":""},{"$f":"IFERROR(MID($O212,FIND(CHAR(160),SUBSTITUTE($O212,\"{\",CHAR(160),FF$1)),FIND(CHAR(160),SUBSTITUTE($O212,\"}\",CHAR(160),FF$1))-FIND(CHAR(160),SUBSTITUTE($O212,\"{\",CHAR(160),FF$1))+1),\"\")","v":""},{"$f":"IFERROR(MID($O212,FIND(CHAR(160),SUBSTITUTE($O212,\"{\",CHAR(160),FG$1)),FIND(CHAR(160),SUBSTITUTE($O212,\"}\",CHAR(160),FG$1))-FIND(CHAR(160),SUBSTITUTE($O212,\"{\",CHAR(160),FG$1))+1),\"\")","v":""},{"$f":"IFERROR(MID($O212,FIND(CHAR(160),SUBSTITUTE($O212,\"{\",CHAR(160),FH$1)),FIND(CHAR(160),SUBSTITUTE($O212,\"}\",CHAR(160),FH$1))-FIND(CHAR(160),SUBSTITUTE($O212,\"{\",CHAR(160),FH$1))+1),\"\")","v":""},{"$f":"IFERROR(MID($O212,FIND(CHAR(160),SUBSTITUTE($O212,\"{\",CHAR(160),FI$1)),FIND(CHAR(160),SUBSTITUTE($O212,\"}\",CHAR(160),FI$1))-FIND(CHAR(160),SUBSTITUTE($O212,\"{\",CHAR(160),FI$1))+1),\"\")","v":""},{"$f":"IFERROR(MID($O212,FIND(CHAR(160),SUBSTITUTE($O212,\"{\",CHAR(160),FJ$1)),FIND(CHAR(160),SUBSTITUTE($O212,\"}\",CHAR(160),FJ$1))-FIND(CHAR(160),SUBSTITUTE($O212,\"{\",CHAR(160),FJ$1))+1),\"\")","v":""},{"$f":"IFERROR(MID($O212,FIND(CHAR(160),SUBSTITUTE($O212,\"{\",CHAR(160),FK$1)),FIND(CHAR(160),SUBSTITUTE($O212,\"}\",CHAR(160),FK$1))-FIND(CHAR(160),SUBSTITUTE($O212,\"{\",CHAR(160),FK$1))+1),\"\")","v":"{Measure:Quantity}"},{"$f":"IFERROR(MID($O212,FIND(CHAR(160),SUBSTITUTE($O212,\"{\",CHAR(160),FL$1)),FIND(CHAR(160),SUBSTITUTE($O212,\"}\",CHAR(160),FL$1))-FIND(CHAR(160),SUBSTITUTE($O212,\"{\",CHAR(160),FL$1))+1),\"\")","v":""},{"$f":"IFERROR(MID($R212,FIND(CHAR(160),SUBSTITUTE($R212,\"{\",CHAR(160),FM$1)),FIND(CHAR(160),SUBSTITUTE($R212,\"}\",CHAR(160),FM$1))-FIND(CHAR(160),SUBSTITUTE($R212,\"{\",CHAR(160),FM$1))+1),\"\")","v":""},{"$f":"IFERROR(MID($R212,FIND(CHAR(160),SUBSTITUTE($R212,\"{\",CHAR(160),FN$1)),FIND(CHAR(160),SUBSTITUTE($R212,\"}\",CHAR(160),FN$1))-FIND(CHAR(160),SUBSTITUTE($R212,\"{\",CHAR(160),FN$1))+1),\"\")","v":""},{"$f":"IFERROR(MID($R212,FIND(CHAR(160),SUBSTITUTE($R212,\"{\",CHAR(160),FO$1)),FIND(CHAR(160),SUBSTITUTE($R212,\"}\",CHAR(160),FO$1))-FIND(CHAR(160),SUBSTITUTE($R212,\"{\",CHAR(160),FO$1))+1),\"\")","v":""},{"$f":"IFERROR(MID($R212,FIND(CHAR(160),SUBSTITUTE($R212,\"{\",CHAR(160),FP$1)),FIND(CHAR(160),SUBSTITUTE($R212,\"}\",CHAR(160),FP$1))-FIND(CHAR(160),SUBSTITUTE($R212,\"{\",CHAR(160),FP$1))+1),\"\")","v":""},{"$f":"IFERROR(MID($R212,FIND(CHAR(160),SUBSTITUTE($R212,\"{\",CHAR(160),FQ$1)),FIND(CHAR(160),SUBSTITUTE($R212,\"}\",CHAR(160),FQ$1))-FIND(CHAR(160),SUBSTITUTE($R212,\"{\",CHAR(160),FQ$1))+1),\"\")","v":""},{"$f":"IFERROR(MID($R212,FIND(CHAR(160),SUBSTITUTE($R212,\"{\",CHAR(160),FR$1)),FIND(CHAR(160),SUBSTITUTE($R212,\"}\",CHAR(160),FR$1))-FIND(CHAR(160),SUBSTITUTE($R212,\"{\",CHAR(160),FR$1))+1),\"\")","v":""},{"$f":"IFERROR(MID($R212,FIND(CHAR(160),SUBSTITUTE($R212,\"{\",CHAR(160),FS$1)),FIND(CHAR(160),SUBSTITUTE($R212,\"}\",CHAR(160),FS$1))-FIND(CHAR(160),SUBSTITUTE($R212,\"{\",CHAR(160),FS$1))+1),\"\")","v":""},{"$f":"IFERROR(MID($R212,FIND(CHAR(160),SUBSTITUTE($R212,\"{\",CHAR(160),FT$1)),FIND(CHAR(160),SUBSTITUTE($R212,\"}\",CHAR(160),FT$1))-FIND(CHAR(160),SUBSTITUTE($R212,\"{\",CHAR(160),FT$1))+1),\"\")","v":""},{"$f":"IFERROR(MID($R212,FIND(CHAR(160),SUBSTITUTE($R212,\"{\",CHAR(160),FU$1)),FIND(CHAR(160),SUBSTITUTE($R212,\"}\",CHAR(160),FU$1))-FIND(CHAR(160),SUBSTITUTE($R212,\"{\",CHAR(160),FU$1))+1),\"\")","v":"{Measure:Quantity}"},{"$f":"IFERROR(MID($R212,FIND(CHAR(160),SUBSTITUTE($R212,\"{\",CHAR(160),FV$1)),FIND(CHAR(160),SUBSTITUTE($R212,\"}\",CHAR(160),FV$1))-FIND(CHAR(160),SUBSTITUTE($R212,\"{\",CHAR(160),FV$1))+1),\"\")","v":""},{"$f":"IFERROR(MID($U212,FIND(CHAR(160),SUBSTITUTE($U212,\"{\",CHAR(160),FW$1)),FIND(CHAR(160),SUBSTITUTE($U212,\"}\",CHAR(160),FW$1))-FIND(CHAR(160),SUBSTITUTE($U212,\"{\",CHAR(160),FW$1))+1),\"\")","v":""},{"$f":"IFERROR(MID($U212,FIND(CHAR(160),SUBSTITUTE($U212,\"{\",CHAR(160),FX$1)),FIND(CHAR(160),SUBSTITUTE($U212,\"}\",CHAR(160),FX$1))-FIND(CHAR(160),SUBSTITUTE($U212,\"{\",CHAR(160),FX$1))+1),\"\")","v":""},{"$f":"IFERROR(MID($U212,FIND(CHAR(160),SUBSTITUTE($U212,\"{\",CHAR(160),FY$1)),FIND(CHAR(160),SUBSTITUTE($U212,\"}\",CHAR(160),FY$1))-FIND(CHAR(160),SUBSTITUTE($U212,\"{\",CHAR(160),FY$1))+1),\"\")","v":""},{"$f":"IFERROR(MID($U212,FIND(CHAR(160),SUBSTITUTE($U212,\"{\",CHAR(160),FZ$1)),FIND(CHAR(160),SUBSTITUTE($U212,\"}\",CHAR(160),FZ$1))-FIND(CHAR(160),SUBSTITUTE($U212,\"{\",CHAR(160),FZ$1))+1),\"\")","v":""},{"$f":"IFERROR(MID($U212,FIND(CHAR(160),SUBSTITUTE($U212,\"{\",CHAR(160),GA$1)),FIND(CHAR(160),SUBSTITUTE($U212,\"}\",CHAR(160),GA$1))-FIND(CHAR(160),SUBSTITUTE($U212,\"{\",CHAR(160),GA$1))+1),\"\")","v":""},{"$f":"IFERROR(MID($U212,FIND(CHAR(160),SUBSTITUTE($U212,\"{\",CHAR(160),GB$1)),FIND(CHAR(160),SUBSTITUTE($U212,\"}\",CHAR(160),GB$1))-FIND(CHAR(160),SUBSTITUTE($U212,\"{\",CHAR(160),GB$1))+1),\"\")","v":""},{"$f":"IFERROR(MID($U212,FIND(CHAR(160),SUBSTITUTE($U212,\"{\",CHAR(160),GC$1)),FIND(CHAR(160),SUBSTITUTE($U212,\"}\",CHAR(160),GC$1))-FIND(CHAR(160),SUBSTITUTE($U212,\"{\",CHAR(160),GC$1))+1),\"\")","v":""},{"$f":"IFERROR(MID($U212,FIND(CHAR(160),SUBSTITUTE($U212,\"{\",CHAR(160),GD$1)),FIND(CHAR(160),SUBSTITUTE($U212,\"}\",CHAR(160),GD$1))-FIND(CHAR(160),SUBSTITUTE($U212,\"{\",CHAR(160),GD$1))+1),\"\")","v":""},{"$f":"IFERROR(MID($U212,FIND(CHAR(160),SUBSTITUTE($U212,\"{\",CHAR(160),GE$1)),FIND(CHAR(160),SUBSTITUTE($U212,\"}\",CHAR(160),GE$1))-FIND(CHAR(160),SUBSTITUTE($U212,\"{\",CHAR(160),GE$1))+1),\"\")","v":"{Measure:Quantity}"},{"$f":"IFERROR(MID($U212,FIND(CHAR(160),SUBSTITUTE($U212,\"{\",CHAR(160),GF$1)),FIND(CHAR(160),SUBSTITUTE($U212,\"}\",CHAR(160),GF$1))-FIND(CHAR(160),SUBSTITUTE($U212,\"{\",CHAR(160),GF$1))+1),\"\")","v":""},{"$f":"IFERROR(MID($V212,FIND(CHAR(160),SUBSTITUTE($V212,\"{\",CHAR(160),GG$1)),FIND(CHAR(160),SUBSTITUTE($V212,\"}\",CHAR(160),GG$1))-FIND(CHAR(160),SUBSTITUTE($V212,\"{\",CHAR(160),GG$1))+1),\"\")","v":""},{"$f":"IFERROR(MID($V212,FIND(CHAR(160),SUBSTITUTE($V212,\"{\",CHAR(160),GH$1)),FIND(CHAR(160),SUBSTITUTE($V212,\"}\",CHAR(160),GH$1))-FIND(CHAR(160),SUBSTITUTE($V212,\"{\",CHAR(160),GH$1))+1),\"\")","v":""},{"$f":"IFERROR(MID($V212,FIND(CHAR(160),SUBSTITUTE($V212,\"{\",CHAR(160),GI$1)),FIND(CHAR(160),SUBSTITUTE($V212,\"}\",CHAR(160),GI$1))-FIND(CHAR(160),SUBSTITUTE($V212,\"{\",CHAR(160),GI$1))+1),\"\")","v":""},{"$f":"IFERROR(MID($V212,FIND(CHAR(160),SUBSTITUTE($V212,\"{\",CHAR(160),GJ$1)),FIND(CHAR(160),SUBSTITUTE($V212,\"}\",CHAR(160),GJ$1))-FIND(CHAR(160),SUBSTITUTE($V212,\"{\",CHAR(160),GJ$1))+1),\"\")","v":""},{"$f":"IFERROR(MID($V212,FIND(CHAR(160),SUBSTITUTE($V212,\"{\",CHAR(160),GK$1)),FIND(CHAR(160),SUBSTITUTE($V212,\"}\",CHAR(160),GK$1))-FIND(CHAR(160),SUBSTITUTE($V212,\"{\",CHAR(160),GK$1))+1),\"\")","v":""},{"$f":"IFERROR(MID($V212,FIND(CHAR(160),SUBSTITUTE($V212,\"{\",CHAR(160),GL$1)),FIND(CHAR(160),SUBSTITUTE($V212,\"}\",CHAR(160),GL$1))-FIND(CHAR(160),SUBSTITUTE($V212,\"{\",CHAR(160),GL$1))+1),\"\")","v":""},{"$f":"IFERROR(MID($V212,FIND(CHAR(160),SUBSTITUTE($V212,\"{\",CHAR(160),GM$1)),FIND(CHAR(160),SUBSTITUTE($V212,\"}\",CHAR(160),GM$1))-FIND(CHAR(160),SUBSTITUTE($V212,\"{\",CHAR(160),GM$1))+1),\"\")","v":""},{"$f":"IFERROR(MID($V212,FIND(CHAR(160),SUBSTITUTE($V212,\"{\",CHAR(160),GN$1)),FIND(CHAR(160),SUBSTITUTE($V212,\"}\",CHAR(160),GN$1))-FIND(CHAR(160),SUBSTITUTE($V212,\"{\",CHAR(160),GN$1))+1),\"\")","v":""},{"$f":"IFERROR(MID($V212,FIND(CHAR(160),SUBSTITUTE($V212,\"{\",CHAR(160),GO$1)),FIND(CHAR(160),SUBSTITUTE($V212,\"}\",CHAR(160),GO$1))-FIND(CHAR(160),SUBSTITUTE($V212,\"{\",CHAR(160),GO$1))+1),\"\")","v":"{Measure:Quantity}"},{"$f":"IFERROR(MID($V212,FIND(CHAR(160),SUBSTITUTE($V212,\"{\",CHAR(160),GP$1)),FIND(CHAR(160),SUBSTITUTE($V212,\"}\",CHAR(160),GP$1))-FIND(CHAR(160),SUBSTITUTE($V212,\"{\",CHAR(160),GP$1))+1),\"\")","v":""},{"$f":"IFERROR(MID($W212,FIND(CHAR(160),SUBSTITUTE($W212,\"{\",CHAR(160),GQ$1)),FIND(CHAR(160),SUBSTITUTE($W212,\"}\",CHAR(160),GQ$1))-FIND(CHAR(160),SUBSTITUTE($W212,\"{\",CHAR(160),GQ$1))+1),\"\")","v":""},{"$f":"IFERROR(MID($W212,FIND(CHAR(160),SUBSTITUTE($W212,\"{\",CHAR(160),GR$1)),FIND(CHAR(160),SUBSTITUTE($W212,\"}\",CHAR(160),GR$1))-FIND(CHAR(160),SUBSTITUTE($W212,\"{\",CHAR(160),GR$1))+1),\"\")","v":""},{"$f":"IFERROR(MID($W212,FIND(CHAR(160),SUBSTITUTE($W212,\"{\",CHAR(160),GS$1)),FIND(CHAR(160),SUBSTITUTE($W212,\"}\",CHAR(160),GS$1))-FIND(CHAR(160),SUBSTITUTE($W212,\"{\",CHAR(160),GS$1))+1),\"\")","v":""},{"$f":"IFERROR(MID($W212,FIND(CHAR(160),SUBSTITUTE($W212,\"{\",CHAR(160),GT$1)),FIND(CHAR(160),SUBSTITUTE($W212,\"}\",CHAR(160),GT$1))-FIND(CHAR(160),SUBSTITUTE($W212,\"{\",CHAR(160),GT$1))+1),\"\")","v":""},{"$f":"IFERROR(MID($W212,FIND(CHAR(160),SUBSTITUTE($W212,\"{\",CHAR(160),GU$1)),FIND(CHAR(160),SUBSTITUTE($W212,\"}\",CHAR(160),GU$1))-FIND(CHAR(160),SUBSTITUTE($W212,\"{\",CHAR(160),GU$1))+1),\"\")","v":""},{"$f":"IFERROR(MID($W212,FIND(CHAR(160),SUBSTITUTE($W212,\"{\",CHAR(160),GV$1)),FIND(CHAR(160),SUBSTITUTE($W212,\"}\",CHAR(160),GV$1))-FIND(CHAR(160),SUBSTITUTE($W212,\"{\",CHAR(160),GV$1))+1),\"\")","v":""},{"$f":"IFERROR(MID($W212,FIND(CHAR(160),SUBSTITUTE($W212,\"{\",CHAR(160),GW$1)),FIND(CHAR(160),SUBSTITUTE($W212,\"}\",CHAR(160),GW$1))-FIND(CHAR(160),SUBSTITUTE($W212,\"{\",CHAR(160),GW$1))+1),\"\")","v":""},{"$f":"IFERROR(MID($W212,FIND(CHAR(160),SUBSTITUTE($W212,\"{\",CHAR(160),GX$1)),FIND(CHAR(160),SUBSTITUTE($W212,\"}\",CHAR(160),GX$1))-FIND(CHAR(160),SUBSTITUTE($W212,\"{\",CHAR(160),GX$1))+1),\"\")","v":""},{"$f":"IFERROR(MID($W212,FIND(CHAR(160),SUBSTITUTE($W212,\"{\",CHAR(160),GY$1)),FIND(CHAR(160),SUBSTITUTE($W212,\"}\",CHAR(160),GY$1))-FIND(CHAR(160),SUBSTITUTE($W212,\"{\",CHAR(160),GY$1))+1),\"\")","v":"{Measure:Quantity}"},{"$f":"IFERROR(MID($W212,FIND(CHAR(160),SUBSTITUTE($W212,\"{\",CHAR(160),GZ$1)),FIND(CHAR(160),SUBSTITUTE($W212,\"}\",CHAR(160),GZ$1))-FIND(CHAR(160),SUBSTITUTE($W212,\"{\",CHAR(160),GZ$1))+1),\"\")","v":""},{"$f":"IFERROR(MID($X212,FIND(CHAR(160),SUBSTITUTE($X212,\"{\",CHAR(160),HA$1)),FIND(CHAR(160),SUBSTITUTE($X212,\"}\",CHAR(160),HA$1))-FIND(CHAR(160),SUBSTITUTE($X212,\"{\",CHAR(160),HA$1))+1),\"\")","v":""},{"$f":"IFERROR(MID($X212,FIND(CHAR(160),SUBSTITUTE($X212,\"{\",CHAR(160),HB$1)),FIND(CHAR(160),SUBSTITUTE($X212,\"}\",CHAR(160),HB$1))-FIND(CHAR(160),SUBSTITUTE($X212,\"{\",CHAR(160),HB$1))+1),\"\")","v":""},{"$f":"IFERROR(MID($X212,FIND(CHAR(160),SUBSTITUTE($X212,\"{\",CHAR(160),HC$1)),FIND(CHAR(160),SUBSTITUTE($X212,\"}\",CHAR(160),HC$1))-FIND(CHAR(160),SUBSTITUTE($X212,\"{\",CHAR(160),HC$1))+1),\"\")","v":""},{"$f":"IFERROR(MID($X212,FIND(CHAR(160),SUBSTITUTE($X212,\"{\",CHAR(160),HD$1)),FIND(CHAR(160),SUBSTITUTE($X212,\"}\",CHAR(160),HD$1))-FIND(CHAR(160),SUBSTITUTE($X212,\"{\",CHAR(160),HD$1))+1),\"\")","v":""},{"$f":"IFERROR(MID($X212,FIND(CHAR(160),SUBSTITUTE($X212,\"{\",CHAR(160),HE$1)),FIND(CHAR(160),SUBSTITUTE($X212,\"}\",CHAR(160),HE$1))-FIND(CHAR(160),SUBSTITUTE($X212,\"{\",CHAR(160),HE$1))+1),\"\")","v":""},{"$f":"IFERROR(MID($X212,FIND(CHAR(160),SUBSTITUTE($X212,\"{\",CHAR(160),HF$1)),FIND(CHAR(160),SUBSTITUTE($X212,\"}\",CHAR(160),HF$1))-FIND(CHAR(160),SUBSTITUTE($X212,\"{\",CHAR(160),HF$1))+1),\"\")","v":""},{"$f":"IFERROR(MID($X212,FIND(CHAR(160),SUBSTITUTE($X212,\"{\",CHAR(160),HG$1)),FIND(CHAR(160),SUBSTITUTE($X212,\"}\",CHAR(160),HG$1))-FIND(CHAR(160),SUBSTITUTE($X212,\"{\",CHAR(160),HG$1))+1),\"\")","v":""},{"$f":"IFERROR(MID($X212,FIND(CHAR(160),SUBSTITUTE($X212,\"{\",CHAR(160),HH$1)),FIND(CHAR(160),SUBSTITUTE($X212,\"}\",CHAR(160),HH$1))-FIND(CHAR(160),SUBSTITUTE($X212,\"{\",CHAR(160),HH$1))+1),\"\")","v":""},{"$f":"IFERROR(MID($X212,FIND(CHAR(160),SUBSTITUTE($X212,\"{\",CHAR(160),HI$1)),FIND(CHAR(160),SUBSTITUTE($X212,\"}\",CHAR(160),HI$1))-FIND(CHAR(160),SUBSTITUTE($X212,\"{\",CHAR(160),HI$1))+1),\"\")","v":"{Measure:Quantity}"},{"$f":"IFERROR(MID($X212,FIND(CHAR(160),SUBSTITUTE($X212,\"{\",CHAR(160),HJ$1)),FIND(CHAR(160),SUBSTITUTE($X212,\"}\",CHAR(160),HJ$1))-FIND(CHAR(160),SUBSTITUTE($X212,\"{\",CHAR(160),HJ$1))+1),\"\")","v":""},{"$f":"IFERROR(MID($Y212,FIND(CHAR(160),SUBSTITUTE($Y212,\"{\",CHAR(160),HK$1)),FIND(CHAR(160),SUBSTITUTE($Y212,\"}\",CHAR(160),HK$1))-FIND(CHAR(160),SUBSTITUTE($Y212,\"{\",CHAR(160),HK$1))+1),\"\")","v":""},{"$f":"IFERROR(MID($Y212,FIND(CHAR(160),SUBSTITUTE($Y212,\"{\",CHAR(160),HL$1)),FIND(CHAR(160),SUBSTITUTE($Y212,\"}\",CHAR(160),HL$1))-FIND(CHAR(160),SUBSTITUTE($Y212,\"{\",CHAR(160),HL$1))+1),\"\")","v":""},{"$f":"IFERROR(MID($Y212,FIND(CHAR(160),SUBSTITUTE($Y212,\"{\",CHAR(160),HM$1)),FIND(CHAR(160),SUBSTITUTE($Y212,\"}\",CHAR(160),HM$1))-FIND(CHAR(160),SUBSTITUTE($Y212,\"{\",CHAR(160),HM$1))+1),\"\")","v":""},{"$f":"IFERROR(MID($Y212,FIND(CHAR(160),SUBSTITUTE($Y212,\"{\",CHAR(160),HN$1)),FIND(CHAR(160),SUBSTITUTE($Y212,\"}\",CHAR(160),HN$1))-FIND(CHAR(160),SUBSTITUTE($Y212,\"{\",CHAR(160),HN$1))+1),\"\")","v":""},{"$f":"IFERROR(MID($Y212,FIND(CHAR(160),SUBSTITUTE($Y212,\"{\",CHAR(160),HO$1)),FIND(CHAR(160),SUBSTITUTE($Y212,\"}\",CHAR(160),HO$1))-FIND(CHAR(160),SUBSTITUTE($Y212,\"{\",CHAR(160),HO$1))+1),\"\")","v":""},{"$f":"IFERROR(MID($Y212,FIND(CHAR(160),SUBSTITUTE($Y212,\"{\",CHAR(160),HP$1)),FIND(CHAR(160),SUBSTITUTE($Y212,\"}\",CHAR(160),HP$1))-FIND(CHAR(160),SUBSTITUTE($Y212,\"{\",CHAR(160),HP$1))+1),\"\")","v":""},{"$f":"IFERROR(MID($Y212,FIND(CHAR(160),SUBSTITUTE($Y212,\"{\",CHAR(160),HQ$1)),FIND(CHAR(160),SUBSTITUTE($Y212,\"}\",CHAR(160),HQ$1))-FIND(CHAR(160),SUBSTITUTE($Y212,\"{\",CHAR(160),HQ$1))+1),\"\")","v":""},{"$f":"IFERROR(MID($Y212,FIND(CHAR(160),SUBSTITUTE($Y212,\"{\",CHAR(160),HR$1)),FIND(CHAR(160),SUBSTITUTE($Y212,\"}\",CHAR(160),HR$1))-FIND(CHAR(160),SUBSTITUTE($Y212,\"{\",CHAR(160),HR$1))+1),\"\")","v":""},{"$f":"IFERROR(MID($Y212,FIND(CHAR(160),SUBSTITUTE($Y212,\"{\",CHAR(160),HS$1)),FIND(CHAR(160),SUBSTITUTE($Y212,\"}\",CHAR(160),HS$1))-FIND(CHAR(160),SUBSTITUTE($Y212,\"{\",CHAR(160),HS$1))+1),\"\")","v":"{Measure:Quantity}"},{"$f":"IFERROR(MID($Y212,FIND(CHAR(160),SUBSTITUTE($Y212,\"{\",CHAR(160),HT$1)),FIND(CHAR(160),SUBSTITUTE($Y212,\"}\",CHAR(160),HT$1))-FIND(CHAR(160),SUBSTITUTE($Y212,\"{\",CHAR(160),HT$1))+1),\"\")","v":""},{"$f":"IFERROR(MID($Z212,FIND(CHAR(160),SUBSTITUTE($Z212,\"{\",CHAR(160),HU$1)),FIND(CHAR(160),SUBSTITUTE($Z212,\"}\",CHAR(160),HU$1))-FIND(CHAR(160),SUBSTITUTE($Z212,\"{\",CHAR(160),HU$1))+1),\"\")","v":""},{"$f":"IFERROR(MID($Z212,FIND(CHAR(160),SUBSTITUTE($Z212,\"{\",CHAR(160),HV$1)),FIND(CHAR(160),SUBSTITUTE($Z212,\"}\",CHAR(160),HV$1))-FIND(CHAR(160),SUBSTITUTE($Z212,\"{\",CHAR(160),HV$1))+1),\"\")","v":""},{"$f":"IFERROR(MID($Z212,FIND(CHAR(160),SUBSTITUTE($Z212,\"{\",CHAR(160),HW$1)),FIND(CHAR(160),SUBSTITUTE($Z212,\"}\",CHAR(160),HW$1))-FIND(CHAR(160),SUBSTITUTE($Z212,\"{\",CHAR(160),HW$1))+1),\"\")","v":""},{"$f":"IFERROR(MID($Z212,FIND(CHAR(160),SUBSTITUTE($Z212,\"{\",CHAR(160),HX$1)),FIND(CHAR(160),SUBSTITUTE($Z212,\"}\",CHAR(160),HX$1))-FIND(CHAR(160),SUBSTITUTE($Z212,\"{\",CHAR(160),HX$1))+1),\"\")","v":""},{"$f":"IFERROR(MID($Z212,FIND(CHAR(160),SUBSTITUTE($Z212,\"{\",CHAR(160),HY$1)),FIND(CHAR(160),SUBSTITUTE($Z212,\"}\",CHAR(160),HY$1))-FIND(CHAR(160),SUBSTITUTE($Z212,\"{\",CHAR(160),HY$1))+1),\"\")","v":""},{"$f":"IFERROR(MID($Z212,FIND(CHAR(160),SUBSTITUTE($Z212,\"{\",CHAR(160),HZ$1)),FIND(CHAR(160),SUBSTITUTE($Z212,\"}\",CHAR(160),HZ$1))-FIND(CHAR(160),SUBSTITUTE($Z212,\"{\",CHAR(160),HZ$1))+1),\"\")","v":""},{"$f":"IFERROR(MID($Z212,FIND(CHAR(160),SUBSTITUTE($Z212,\"{\",CHAR(160),IA$1)),FIND(CHAR(160),SUBSTITUTE($Z212,\"}\",CHAR(160),IA$1))-FIND(CHAR(160),SUBSTITUTE($Z212,\"{\",CHAR(160),IA$1))+1),\"\")","v":""},{"$f":"IFERROR(MID($Z212,FIND(CHAR(160),SUBSTITUTE($Z212,\"{\",CHAR(160),IB$1)),FIND(CHAR(160),SUBSTITUTE($Z212,\"}\",CHAR(160),IB$1))-FIND(CHAR(160),SUBSTITUTE($Z212,\"{\",CHAR(160),IB$1))+1),\"\")","v":""},{"$f":"IFERROR(MID($Z212,FIND(CHAR(160),SUBSTITUTE($Z212,\"{\",CHAR(160),IC$1)),FIND(CHAR(160),SUBSTITUTE($Z212,\"}\",CHAR(160),IC$1))-FIND(CHAR(160),SUBSTITUTE($Z212,\"{\",CHAR(160),IC$1))+1),\"\")","v":"{Measure:Quantity}"},{"$f":"IFERROR(MID($Z212,FIND(CHAR(160),SUBSTITUTE($Z212,\"{\",CHAR(160),ID$1)),FIND(CHAR(160),SUBSTITUTE($Z212,\"}\",CHAR(160),ID$1))-FIND(CHAR(160),SUBSTITUTE($Z212,\"{\",CHAR(160),ID$1))+1),\"\")","v":""},{"$f":"IFERROR(MID($AA212,FIND(CHAR(160),SUBSTITUTE($AA212,\"{\",CHAR(160),IE$1)),FIND(CHAR(160),SUBSTITUTE($AA212,\"}\",CHAR(160),IE$1))-FIND(CHAR(160),SUBSTITUTE($AA212,\"{\",CHAR(160),IE$1))+1),\"\")","v":""},{"$f":"IFERROR(MID($AA212,FIND(CHAR(160),SUBSTITUTE($AA212,\"{\",CHAR(160),IF$1)),FIND(CHAR(160),SUBSTITUTE($AA212,\"}\",CHAR(160),IF$1))-FIND(CHAR(160),SUBSTITUTE($AA212,\"{\",CHAR(160),IF$1))+1),\"\")","v":""},{"$f":"IFERROR(MID($AA212,FIND(CHAR(160),SUBSTITUTE($AA212,\"{\",CHAR(160),IG$1)),FIND(CHAR(160),SUBSTITUTE($AA212,\"}\",CHAR(160),IG$1))-FIND(CHAR(160),SUBSTITUTE($AA212,\"{\",CHAR(160),IG$1))+1),\"\")","v":""},{"$f":"IFERROR(MID($AA212,FIND(CHAR(160),SUBSTITUTE($AA212,\"{\",CHAR(160),IH$1)),FIND(CHAR(160),SUBSTITUTE($AA212,\"}\",CHAR(160),IH$1))-FIND(CHAR(160),SUBSTITUTE($AA212,\"{\",CHAR(160),IH$1))+1),\"\")","v":""},{"$f":"IFERROR(MID($AA212,FIND(CHAR(160),SUBSTITUTE($AA212,\"{\",CHAR(160),II$1)),FIND(CHAR(160),SUBSTITUTE($AA212,\"}\",CHAR(160),II$1))-FIND(CHAR(160),SUBSTITUTE($AA212,\"{\",CHAR(160),II$1))+1),\"\")","v":""},{"$f":"IFERROR(MID($AA212,FIND(CHAR(160),SUBSTITUTE($AA212,\"{\",CHAR(160),IJ$1)),FIND(CHAR(160),SUBSTITUTE($AA212,\"}\",CHAR(160),IJ$1))-FIND(CHAR(160),SUBSTITUTE($AA212,\"{\",CHAR(160),IJ$1))+1),\"\")","v":""},{"$f":"IFERROR(MID($AA212,FIND(CHAR(160),SUBSTITUTE($AA212,\"{\",CHAR(160),IK$1)),FIND(CHAR(160),SUBSTITUTE($AA212,\"}\",CHAR(160),IK$1))-FIND(CHAR(160),SUBSTITUTE($AA212,\"{\",CHAR(160),IK$1))+1),\"\")","v":""},{"$f":"IFERROR(MID($AA212,FIND(CHAR(160),SUBSTITUTE($AA212,\"{\",CHAR(160),IL$1)),FIND(CHAR(160),SUBSTITUTE($AA212,\"}\",CHAR(160),IL$1))-FIND(CHAR(160),SUBSTITUTE($AA212,\"{\",CHAR(160),IL$1))+1),\"\")","v":""},{"$f":"IFERROR(MID($AA212,FIND(CHAR(160),SUBSTITUTE($AA212,\"{\",CHAR(160),IM$1)),FIND(CHAR(160),SUBSTITUTE($AA212,\"}\",CHAR(160),IM$1))-FIND(CHAR(160),SUBSTITUTE($AA212,\"{\",CHAR(160),IM$1))+1),\"\")","v":"{Measure:Quantity}"},{"$f":"IFERROR(MID($AA212,FIND(CHAR(160),SUBSTITUTE($AA212,\"{\",CHAR(160),IN$1)),FIND(CHAR(160),SUBSTITUTE($AA212,\"}\",CHAR(160),IN$1))-FIND(CHAR(160),SUBSTITUTE($AA212,\"{\",CHAR(160),IN$1))+1),\"\")","v":""},{"$f":"IFERROR(MID($AB212,FIND(CHAR(160),SUBSTITUTE($AB212,\"{\",CHAR(160),IO$1)),FIND(CHAR(160),SUBSTITUTE($AB212,\"}\",CHAR(160),IO$1))-FIND(CHAR(160),SUBSTITUTE($AB212,\"{\",CHAR(160),IO$1))+1),\"\")","v":""},{"$f":"IFERROR(MID($AB212,FIND(CHAR(160),SUBSTITUTE($AB212,\"{\",CHAR(160),IP$1)),FIND(CHAR(160),SUBSTITUTE($AB212,\"}\",CHAR(160),IP$1))-FIND(CHAR(160),SUBSTITUTE($AB212,\"{\",CHAR(160),IP$1))+1),\"\")","v":""},{"$f":"IFERROR(MID($AB212,FIND(CHAR(160),SUBSTITUTE($AB212,\"{\",CHAR(160),IQ$1)),FIND(CHAR(160),SUBSTITUTE($AB212,\"}\",CHAR(160),IQ$1))-FIND(CHAR(160),SUBSTITUTE($AB212,\"{\",CHAR(160),IQ$1))+1),\"\")","v":""},{"$f":"IFERROR(MID($AB212,FIND(CHAR(160),SUBSTITUTE($AB212,\"{\",CHAR(160),IR$1)),FIND(CHAR(160),SUBSTITUTE($AB212,\"}\",CHAR(160),IR$1))-FIND(CHAR(160),SUBSTITUTE($AB212,\"{\",CHAR(160),IR$1))+1),\"\")","v":""},{"$f":"IFERROR(MID($AB212,FIND(CHAR(160),SUBSTITUTE($AB212,\"{\",CHAR(160),IS$1)),FIND(CHAR(160),SUBSTITUTE($AB212,\"}\",CHAR(160),IS$1))-FIND(CHAR(160),SUBSTITUTE($AB212,\"{\",CHAR(160),IS$1))+1),\"\")","v":""},{"$f":"IFERROR(MID($AB212,FIND(CHAR(160),SUBSTITUTE($AB212,\"{\",CHAR(160),IT$1)),FIND(CHAR(160),SUBSTITUTE($AB212,\"}\",CHAR(160),IT$1))-FIND(CHAR(160),SUBSTITUTE($AB212,\"{\",CHAR(160),IT$1))+1),\"\")","v":""},{"$f":"IFERROR(MID($AB212,FIND(CHAR(160),SUBSTITUTE($AB212,\"{\",CHAR(160),IU$1)),FIND(CHAR(160),SUBSTITUTE($AB212,\"}\",CHAR(160),IU$1))-FIND(CHAR(160),SUBSTITUTE($AB212,\"{\",CHAR(160),IU$1))+1),\"\")","v":""},{"$f":"IFERROR(MID($AB212,FIND(CHAR(160),SUBSTITUTE($AB212,\"{\",CHAR(160),IV$1)),FIND(CHAR(160),SUBSTITUTE($AB212,\"}\",CHAR(160),IV$1))-FIND(CHAR(160),SUBSTITUTE($AB212,\"{\",CHAR(160),IV$1))+1),\"\")","v":""},{"$f":"IFERROR(MID($AB212,FIND(CHAR(160),SUBSTITUTE($AB212,\"{\",CHAR(160),IW$1)),FIND(CHAR(160),SUBSTITUTE($AB212,\"}\",CHAR(160),IW$1))-FIND(CHAR(160),SUBSTITUTE($AB212,\"{\",CHAR(160),IW$1))+1),\"\")","v":""},{"$f":"IFERROR(MID($AB212,FIND(CHAR(160),SUBSTITUTE($AB212,\"{\",CHAR(160),IX$1)),FIND(CHAR(160),SUBSTITUTE($AB212,\"}\",CHAR(160),IX$1))-FIND(CHAR(160),SUBSTITUTE($AB212,\"{\",CHAR(160),IX$1))+1),\"\")","v":""},null,{"$f":"10-COUNTIF(DU212:ED212,\"\")","v":1}]
["Low Income - NECEC Funds","Low Flow Handheld Shower Head Direct Install","LILHSH","2021-07-01","2022-06-30","Calculated","{Measure:Quantity}*32.44",0,"Calculated","{Measure:Quantity}*32.44",0,"2021-07-01","2022-06-30","Calculated","{Measure:Quantity}*if({Measure:Quantity}=0,0,123)",null,null,null,null,null,"{Measure:Quantity}*if({Measure:Quantity}=0,0,0.012)","{Measure:Quantity}*if({Measure:Quantity}=0,0,0.010)",null,null,null,null,null,"if({Measure:Quantity}=0,0,{Measure:Quantity}*3153)","2021-07-01","2022-06-30",10,8.0000000000000002E-3,5.0000000000000001E-3,0.35499999999999998,0.311,0.18099999999999999,0.153,0.88,1,1,0,0,null,{"$f":"DU213","v":"{Measure:Quantity}"},1,{"$f":"DV213","v":""},1,{"$f":"DW213","v":""},null,{"$f":"DX213","v":""},null,{"$f":"DY213","v":""},null,{"$f":"DZ213","v":""},null,{"$f":"EA213","v":""},null,{"$f":"EB213","v":""},null,{"$f":"EC213","v":""},null,"LIDI Bundle Qty",0.5,{"$f":"AS213*IF(AS213=0,0,123)","v":123},0,0,0,0,0,{"$f":"AS213*IF(AS213=0,0,0.012)","v":1.2E-2},{"$f":"AS213*IF(AS213=0,0,0.01)","v":0.01},0,0,0,0,0,{"$f":"IF(AS213=0,0,AS213*3153)","v":3153},null,"Res","Default DR",{"$f":"Benefits(BL213,BR213,BS213,BT213,BU213,BV213,BW213,BX213,BY213,BZ213,AE213,AH213,AI213,AJ213,AK213,AL213,AM213,AN213,AO213,AP213,CA213,CB213)","v":106.94270202354217},39.906340814102037,0,0,0,0,0,187.20144922985645,0,{"$f":"SUMPRODUCT(CC213:CK213,--(CC213:CK213>0))","v":334.05049206750067},{"$f":"-SUMPRODUCT(CC213:CK213,--(CC213:CK213<0))","v":0},null,{"$f":"AS213*32.44","v":32.44},null,null,{"$f":"CM213+CO213","v":32.44},{"$f":"IF(NetOrGross=\"Net\",(1-AO213+AP213),1)","v":1},{"$f":"(SUMPRODUCT(CC213:CJ213,--(CC213:CJ213>0))+CN213)*CS213/((-SUMPRODUCT(CC213:CJ213,--(CC213:CJ213<0))+MAX(CO213,CV213)+CP213+CQ213)*CS213+IF(FRIncentives=\"Yes\",CV213*(1-CS213),0))","v":10.297487425015435},1,{"$f":"AS213*32.44","v":32.44},null,"Electric","y",{"$f":"CL213-CR213","v":301.61049206750067},{"$f":"IF(F213=\"Manual Entry\",\"Manual\",IF(G213=\"\",0,\"X=\"&SUBSTITUTE(SUBSTITUTE(SUBSTITUTE(SUBSTITUTE(SUBSTITUTE(SUBSTITUTE(SUBSTITUTE(SUBSTITUTE(SUBSTITUTE(SUBSTITUTE(SUBSTITUTE(SUBSTITUTE(G213,$ED213,$ED$2&ROW($ED213)),$EC213,$EC$2&ROW($EC213)),$EB213,$EB$2&ROW($EB213)),$EA213,$EA$2&ROW($EA213)),$DZ213,$DZ$2&ROW($DZ213)),$DY213,$DY$2&ROW($DY213)),$DX213,$DX$2&ROW($DX213)),$DW213,$DW$2&ROW($DW213)),$DV213,$DV$2&ROW($DV213)),$DU213,$DU$2&ROW($DU213)),$DT213,$DT$2&ROW($DT213)),$DS213,$DS$2&ROW($DS213))))","v":"X=AS213*32.44"},{"$f":"IF(I213=\"Manual Entry\",\"Manual\",IF(J213=\"\",0,\"X=\"&SUBSTITUTE(SUBSTITUTE(SUBSTITUTE(SUBSTITUTE(SUBSTITUTE(SUBSTITUTE(SUBSTITUTE(SUBSTITUTE(SUBSTITUTE(SUBSTITUTE(SUBSTITUTE(SUBSTITUTE(J213,$ED213,$ED$2&ROW($ED213)),$EC213,$EC$2&ROW($EC213)),$EB213,$EB$2&ROW($EB213)),$EA213,$EA$2&ROW($EA213)),$DZ213,$DZ$2&ROW($DZ213)),$DY213,$DY$2&ROW($DY213)),$DX213,$DX$2&ROW($DX213)),$DW213,$DW$2&ROW($DW213)),$DV213,$DV$2&ROW($DV213)),$DU213,$DU$2&ROW($DU213)),$DT213,$DT$2&ROW($DT213)),$DS213,$DS$2&ROW($DS213))))","v":"X=AS213*32.44"},{"$f":"IF(O213=\"\",0,\"X=\"&SUBSTITUTE(SUBSTITUTE(SUBSTITUTE(SUBSTITUTE(SUBSTITUTE(SUBSTITUTE(SUBSTITUTE(SUBSTITUTE(SUBSTITUTE(SUBSTITUTE(SUBSTITUTE(SUBSTITUTE(O213,$ED213,$ED$2&ROW($ED213)),$EC213,$EC$2&ROW($EC213)),$EB213,$EB$2&ROW($EB213)),$EA213,$EA$2&ROW($EA213)),$DZ213,$DZ$2&ROW($DZ213)),$DY213,$DY$2&ROW($DY213)),$DX213,$DX$2&ROW($DX213)),$DW213,$DW$2&ROW($DW213)),$DV213,$DV$2&ROW($DV213)),$DU213,$DU$2&ROW($DU213)),$DT213,$DT$2&ROW($DT213)),$DS213,$DS$2&ROW($DS213)))","v":"X=AS213*if(AS213=0,0,123)"},{"$f":"IF(P213=\"\",0,\"X=\"&SUBSTITUTE(SUBSTITUTE(SUBSTITUTE(SUBSTITUTE(SUBSTITUTE(SUBSTITUTE(SUBSTITUTE(SUBSTITUTE(SUBSTITUTE(SUBSTITUTE(SUBSTITUTE(SUBSTITUTE(P213,$ED213,$ED$2&ROW($ED213)),$EC213,$EC$2&ROW($EC213)),$EB213,$EB$2&ROW($EB213)),$EA213,$EA$2&ROW($EA213)),$DZ213,$DZ$2&ROW($DZ213)),$DY213,$DY$2&ROW($DY213)),$DX213,$DX$2&ROW($DX213)),$DW213,$DW$2&ROW($DW213)),$DV213,$DV$2&ROW($DV213)),$DU213,$DU$2&ROW($DU213)),$DT213,$DT$2&ROW($DT213)),$DS213,$DS$2&ROW($DS213)))","v":0},{"$f":"IF(Q213=\"\",0,\"X=\"&SUBSTITUTE(SUBSTITUTE(SUBSTITUTE(SUBSTITUTE(SUBSTITUTE(SUBSTITUTE(SUBSTITUTE(SUBSTITUTE(SUBSTITUTE(SUBSTITUTE(SUBSTITUTE(SUBSTITUTE(Q213,$ED213,$ED$2&ROW($ED213)),$EC213,$EC$2&ROW($EC213)),$EB213,$EB$2&ROW($EB213)),$EA213,$EA$2&ROW($EA213)),$DZ213,$DZ$2&ROW($DZ213)),$DY213,$DY$2&ROW($DY213)),$DX213,$DX$2&ROW($DX213)),$DW213,$DW$2&ROW($DW213)),$DV213,$DV$2&ROW($DV213)),$DU213,$DU$2&ROW($DU213)),$DT213,$DT$2&ROW($DT213)),$DS213,$DS$2&ROW($DS213)))","v":0},{"$f":"IF(R213=\"\",0,\"X=\"&SUBSTITUTE(SUBSTITUTE(SUBSTITUTE(SUBSTITUTE(SUBSTITUTE(SUBSTITUTE(SUBSTITUTE(SUBSTITUTE(SUBSTITUTE(SUBSTITUTE(SUBSTITUTE(SUBSTITUTE(R213,$ED213,$ED$2&ROW($ED213)),$EC213,$EC$2&ROW($EC213)),$EB213,$EB$2&ROW($EB213)),$EA213,$EA$2&ROW($EA213)),$DZ213,$DZ$2&ROW($DZ213)),$DY213,$DY$2&ROW($DY213)),$DX213,$DX$2&ROW($DX213)),$DW213,$DW$2&ROW($DW213)),$DV213,$DV$2&ROW($DV213)),$DU213,$DU$2&ROW($DU213)),$DT213,$DT$2&ROW($DT213)),$DS213,$DS$2&ROW($DS213)))","v":0},{"$f":"IF(S213=\"\",0,\"X=\"&SUBSTITUTE(SUBSTITUTE(SUBSTITUTE(SUBSTITUTE(SUBSTITUTE(SUBSTITUTE(SUBSTITUTE(SUBSTITUTE(SUBSTITUTE(SUBSTITUTE(SUBSTITUTE(SUBSTITUTE(S213,$ED213,$ED$2&ROW($ED213)),$EC213,$EC$2&ROW($EC213)),$EB213,$EB$2&ROW($EB213)),$EA213,$EA$2&ROW($EA213)),$DZ213,$DZ$2&ROW($DZ213)),$DY213,$DY$2&ROW($DY213)),$DX213,$DX$2&ROW($DX213)),$DW213,$DW$2&ROW($DW213)),$DV213,$DV$2&ROW($DV213)),$DU213,$DU$2&ROW($DU213)),$DT213,$DT$2&ROW($DT213)),$DS213,$DS$2&ROW($DS213)))","v":0},{"$f":"IF(T213=\"\",0,\"X=\"&SUBSTITUTE(SUBSTITUTE(SUBSTITUTE(SUBSTITUTE(SUBSTITUTE(SUBSTITUTE(SUBSTITUTE(SUBSTITUTE(SUBSTITUTE(SUBSTITUTE(SUBSTITUTE(SUBSTITUTE(T213,$ED213,$ED$2&ROW($ED213)),$EC213,$EC$2&ROW($EC213)),$EB213,$EB$2&ROW($EB213)),$EA213,$EA$2&ROW($EA213)),$DZ213,$DZ$2&ROW($DZ213)),$DY213,$DY$2&ROW($DY213)),$DX213,$DX$2&ROW($DX213)),$DW213,$DW$2&ROW($DW213)),$DV213,$DV$2&ROW($DV213)),$DU213,$DU$2&ROW($DU213)),$DT213,$DT$2&ROW($DT213)),$DS213,$DS$2&ROW($DS213)))","v":0},{"$f":"IF(U213=\"\",0,\"X=\"&SUBSTITUTE(SUBSTITUTE(SUBSTITUTE(SUBSTITUTE(SUBSTITUTE(SUBSTITUTE(SUBSTITUTE(SUBSTITUTE(SUBSTITUTE(SUBSTITUTE(SUBSTITUTE(SUBSTITUTE(U213,$ED213,$ED$2&ROW($ED213)),$EC213,$EC$2&ROW($EC213)),$EB213,$EB$2&ROW($EB213)),$EA213,$EA$2&ROW($EA213)),$DZ213,$DZ$2&ROW($DZ213)),$DY213,$DY$2&ROW($DY213)),$DX213,$DX$2&ROW($DX213)),$DW213,$DW$2&ROW($DW213)),$DV213,$DV$2&ROW($DV213)),$DU213,$DU$2&ROW($DU213)),$DT213,$DT$2&ROW($DT213)),$DS213,$DS$2&ROW($DS213)))","v":"X=AS213*if(AS213=0,0,0.012)"},{"$f":"IF(V213=\"\",0,\"X=\"&SUBSTITUTE(SUBSTITUTE(SUBSTITUTE(SUBSTITUTE(SUBSTITUTE(SUBSTITUTE(SUBSTITUTE(SUBSTITUTE(SUBSTITUTE(SUBSTITUTE(SUBSTITUTE(SUBSTITUTE(V213,$ED213,$ED$2&ROW($ED213)),$EC213,$EC$2&ROW($EC213)),$EB213,$EB$2&ROW($EB213)),$EA213,$EA$2&ROW($EA213)),$DZ213,$DZ$2&ROW($DZ213)),$DY213,$DY$2&ROW($DY213)),$DX213,$DX$2&ROW($DX213)),$DW213,$DW$2&ROW($DW213)),$DV213,$DV$2&ROW($DV213)),$DU213,$DU$2&ROW($DU213)),$DT213,$DT$2&ROW($DT213)),$DS213,$DS$2&ROW($DS213)))","v":"X=AS213*if(AS213=0,0,0.010)"},{"$f":"IF(W213=\"\",0,\"X=\"&SUBSTITUTE(SUBSTITUTE(SUBSTITUTE(SUBSTITUTE(SUBSTITUTE(SUBSTITUTE(SUBSTITUTE(SUBSTITUTE(SUBSTITUTE(SUBSTITUTE(SUBSTITUTE(SUBSTITUTE(W213,$ED213,$ED$2&ROW($ED213)),$EC213,$EC$2&ROW($EC213)),$EB213,$EB$2&ROW($EB213)),$EA213,$EA$2&ROW($EA213)),$DZ213,$DZ$2&ROW($DZ213)),$DY213,$DY$2&ROW($DY213)),$DX213,$DX$2&ROW($DX213)),$DW213,$DW$2&ROW($DW213)),$DV213,$DV$2&ROW($DV213)),$DU213,$DU$2&ROW($DU213)),$DT213,$DT$2&ROW($DT213)),$DS213,$DS$2&ROW($DS213)))","v":0},{"$f":"IF(X213=\"\",0,\"X=\"&SUBSTITUTE(SUBSTITUTE(SUBSTITUTE(SUBSTITUTE(SUBSTITUTE(SUBSTITUTE(SUBSTITUTE(SUBSTITUTE(SUBSTITUTE(SUBSTITUTE(SUBSTITUTE(SUBSTITUTE(X213,$ED213,$ED$2&ROW($ED213)),$EC213,$EC$2&ROW($EC213)),$EB213,$EB$2&ROW($EB213)),$EA213,$EA$2&ROW($EA213)),$DZ213,$DZ$2&ROW($DZ213)),$DY213,$DY$2&ROW($DY213)),$DX213,$DX$2&ROW($DX213)),$DW213,$DW$2&ROW($DW213)),$DV213,$DV$2&ROW($DV213)),$DU213,$DU$2&ROW($DU213)),$DT213,$DT$2&ROW($DT213)),$DS213,$DS$2&ROW($DS213)))","v":0},{"$f":"IF(Y213=\"\",0,\"X=\"&SUBSTITUTE(SUBSTITUTE(SUBSTITUTE(SUBSTITUTE(SUBSTITUTE(SUBSTITUTE(SUBSTITUTE(SUBSTITUTE(SUBSTITUTE(SUBSTITUTE(SUBSTITUTE(SUBSTITUTE(Y213,$ED213,$ED$2&ROW($ED213)),$EC213,$EC$2&ROW($EC213)),$EB213,$EB$2&ROW($EB213)),$EA213,$EA$2&ROW($EA213)),$DZ213,$DZ$2&ROW($DZ213)),$DY213,$DY$2&ROW($DY213)),$DX213,$DX$2&ROW($DX213)),$DW213,$DW$2&ROW($DW213)),$DV213,$DV$2&ROW($DV213)),$DU213,$DU$2&ROW($DU213)),$DT213,$DT$2&ROW($DT213)),$DS213,$DS$2&ROW($DS213)))","v":0},{"$f":"IF(Z213=\"\",0,\"X=\"&SUBSTITUTE(SUBSTITUTE(SUBSTITUTE(SUBSTITUTE(SUBSTITUTE(SUBSTITUTE(SUBSTITUTE(SUBSTITUTE(SUBSTITUTE(SUBSTITUTE(SUBSTITUTE(SUBSTITUTE(Z213,$ED213,$ED$2&ROW($ED213)),$EC213,$EC$2&ROW($EC213)),$EB213,$EB$2&ROW($EB213)),$EA213,$EA$2&ROW($EA213)),$DZ213,$DZ$2&ROW($DZ213)),$DY213,$DY$2&ROW($DY213)),$DX213,$DX$2&ROW($DX213)),$DW213,$DW$2&ROW($DW213)),$DV213,$DV$2&ROW($DV213)),$DU213,$DU$2&ROW($DU213)),$DT213,$DT$2&ROW($DT213)),$DS213,$DS$2&ROW($DS213)))","v":0},{"$f":"IF(AA213=\"\",0,\"X=\"&SUBSTITUTE(SUBSTITUTE(SUBSTITUTE(SUBSTITUTE(SUBSTITUTE(SUBSTITUTE(SUBSTITUTE(SUBSTITUTE(SUBSTITUTE(SUBSTITUTE(SUBSTITUTE(SUBSTITUTE(AA213,$ED213,$ED$2&ROW($ED213)),$EC213,$EC$2&ROW($EC213)),$EB213,$EB$2&ROW($EB213)),$EA213,$EA$2&ROW($EA213)),$DZ213,$DZ$2&ROW($DZ213)),$DY213,$DY$2&ROW($DY213)),$DX213,$DX$2&ROW($DX213)),$DW213,$DW$2&ROW($DW213)),$DV213,$DV$2&ROW($DV213)),$DU213,$DU$2&ROW($DU213)),$DT213,$DT$2&ROW($DT213)),$DS213,$DS$2&ROW($DS213)))","v":0},{"$f":"IF(AB213=\"\",0,\"X=\"&SUBSTITUTE(SUBSTITUTE(SUBSTITUTE(SUBSTITUTE(SUBSTITUTE(SUBSTITUTE(SUBSTITUTE(SUBSTITUTE(SUBSTITUTE(SUBSTITUTE(SUBSTITUTE(SUBSTITUTE(AB213,$ED213,$ED$2&ROW($ED213)),$EC213,$EC$2&ROW($EC213)),$EB213,$EB$2&ROW($EB213)),$EA213,$EA$2&ROW($EA213)),$DZ213,$DZ$2&ROW($DZ213)),$DY213,$DY$2&ROW($DY213)),$DX213,$DX$2&ROW($DX213)),$DW213,$DW$2&ROW($DW213)),$DV213,$DV$2&ROW($DV213)),$DU213,$DU$2&ROW($DU213)),$DT213,$DT$2&ROW($DT213)),$DS213,$DS$2&ROW($DS213)))","v":"X=if(AS213=0,0,AS213*3153)"},null,null,"{Factor:WinterCF}","{Factor:SummerCF}",{"$f":"IFERROR(INDEX($EG213:$IV213,MATCH(0,COUNTIF($DR213:DT213,$EG213:$IV213),0)),\"\")","v":"{Measure:Quantity}"},{"$f":"IFERROR(INDEX($EG213:$IV213,MATCH(0,COUNTIF($DR213:DU213,$EG213:$IV213),0)),\"\")","v":""},{"$f":"IFERROR(INDEX($EG213:$IV213,MATCH(0,COUNTIF($DR213:DV213,$EG213:$IV213),0)),\"\")","v":""},{"$f":"IFERROR(INDEX($EG213:$IV213,MATCH(0,COUNTIF($DR213:DW213,$EG213:$IV213),0)),\"\")","v":""},{"$f":"IFERROR(INDEX($EG213:$IV213,MATCH(0,COUNTIF($DR213:DX213,$EG213:$IV213),0)),\"\")","v":""},{"$f":"IFERROR(INDEX($EG213:$IV213,MATCH(0,COUNTIF($DR213:DY213,$EG213:$IV213),0)),\"\")","v":""},{"$f":"IFERROR(INDEX($EG213:$IV213,MATCH(0,COUNTIF($DR213:DZ213,$EG213:$IV213),0)),\"\")","v":""},{"$f":"IFERROR(INDEX($EG213:$IV213,MATCH(0,COUNTIF($DR213:EA213,$EG213:$IV213),0)),\"\")","v":""},{"$f":"IFERROR(INDEX($EG213:$IV213,MATCH(0,COUNTIF($DR213:EB213,$EG213:$IV213),0)),\"\")","v":""},{"$f":"IFERROR(INDEX($EG213:$IV213,MATCH(0,COUNTIF($DR213:EC213,$EG213:$IV213),0)),\"\")","v":""},null,null,{"$f":"IFERROR(MID($G213,FIND(CHAR(160),SUBSTITUTE($G213,\"{\",CHAR(160),EG$1)),FIND(CHAR(160),SUBSTITUTE($G213,\"}\",CHAR(160),EG$1))-FIND(CHAR(160),SUBSTITUTE($G213,\"{\",CHAR(160),EG$1))+1),\"\")","v":"{Measure:Quantity}"},{"$f":"IFERROR(MID($G213,FIND(CHAR(160),SUBSTITUTE($G213,\"{\",CHAR(160),EH$1)),FIND(CHAR(160),SUBSTITUTE($G213,\"}\",CHAR(160),EH$1))-FIND(CHAR(160),SUBSTITUTE($G213,\"{\",CHAR(160),EH$1))+1),\"\")","v":""},{"$f":"IFERROR(MID($G213,FIND(CHAR(160),SUBSTITUTE($G213,\"{\",CHAR(160),EI$1)),FIND(CHAR(160),SUBSTITUTE($G213,\"}\",CHAR(160),EI$1))-FIND(CHAR(160),SUBSTITUTE($G213,\"{\",CHAR(160),EI$1))+1),\"\")","v":""},{"$f":"IFERROR(MID($G213,FIND(CHAR(160),SUBSTITUTE($G213,\"{\",CHAR(160),EJ$1)),FIND(CHAR(160),SUBSTITUTE($G213,\"}\",CHAR(160),EJ$1))-FIND(CHAR(160),SUBSTITUTE($G213,\"{\",CHAR(160),EJ$1))+1),\"\")","v":""},{"$f":"IFERROR(MID($G213,FIND(CHAR(160),SUBSTITUTE($G213,\"{\",CHAR(160),EK$1)),FIND(CHAR(160),SUBSTITUTE($G213,\"}\",CHAR(160),EK$1))-FIND(CHAR(160),SUBSTITUTE($G213,\"{\",CHAR(160),EK$1))+1),\"\")","v":""},{"$f":"IFERROR(MID($G213,FIND(CHAR(160),SUBSTITUTE($G213,\"{\",CHAR(160),EL$1)),FIND(CHAR(160),SUBSTITUTE($G213,\"}\",CHAR(160),EL$1))-FIND(CHAR(160),SUBSTITUTE($G213,\"{\",CHAR(160),EL$1))+1),\"\")","v":""},{"$f":"IFERROR(MID($G213,FIND(CHAR(160),SUBSTITUTE($G213,\"{\",CHAR(160),EM$1)),FIND(CHAR(160),SUBSTITUTE($G213,\"}\",CHAR(160),EM$1))-FIND(CHAR(160),SUBSTITUTE($G213,\"{\",CHAR(160),EM$1))+1),\"\")","v":""},{"$f":"IFERROR(MID($G213,FIND(CHAR(160),SUBSTITUTE($G213,\"{\",CHAR(160),EN$1)),FIND(CHAR(160),SUBSTITUTE($G213,\"}\",CHAR(160),EN$1))-FIND(CHAR(160),SUBSTITUTE($G213,\"{\",CHAR(160),EN$1))+1),\"\")","v":""},{"$f":"IFERROR(MID($G213,FIND(CHAR(160),SUBSTITUTE($G213,\"{\",CHAR(160),EO$1)),FIND(CHAR(160),SUBSTITUTE($G213,\"}\",CHAR(160),EO$1))-FIND(CHAR(160),SUBSTITUTE($G213,\"{\",CHAR(160),EO$1))+1),\"\")","v":""},{"$f":"IFERROR(MID($G213,FIND(CHAR(160),SUBSTITUTE($G213,\"{\",CHAR(160),EP$1)),FIND(CHAR(160),SUBSTITUTE($G213,\"}\",CHAR(160),EP$1))-FIND(CHAR(160),SUBSTITUTE($G213,\"{\",CHAR(160),EP$1))+1),\"\")","v":""},{"$f":"IFERROR(MID($J213,FIND(CHAR(160),SUBSTITUTE($J213,\"{\",CHAR(160),EQ$1)),FIND(CHAR(160),SUBSTITUTE($J213,\"}\",CHAR(160),EQ$1))-FIND(CHAR(160),SUBSTITUTE($J213,\"{\",CHAR(160),EQ$1))+1),\"\")","v":"{Measure:Quantity}"},{"$f":"IFERROR(MID($J213,FIND(CHAR(160),SUBSTITUTE($J213,\"{\",CHAR(160),ER$1)),FIND(CHAR(160),SUBSTITUTE($J213,\"}\",CHAR(160),ER$1))-FIND(CHAR(160),SUBSTITUTE($J213,\"{\",CHAR(160),ER$1))+1),\"\")","v":""},{"$f":"IFERROR(MID($J213,FIND(CHAR(160),SUBSTITUTE($J213,\"{\",CHAR(160),ES$1)),FIND(CHAR(160),SUBSTITUTE($J213,\"}\",CHAR(160),ES$1))-FIND(CHAR(160),SUBSTITUTE($J213,\"{\",CHAR(160),ES$1))+1),\"\")","v":""},{"$f":"IFERROR(MID($J213,FIND(CHAR(160),SUBSTITUTE($J213,\"{\",CHAR(160),ET$1)),FIND(CHAR(160),SUBSTITUTE($J213,\"}\",CHAR(160),ET$1))-FIND(CHAR(160),SUBSTITUTE($J213,\"{\",CHAR(160),ET$1))+1),\"\")","v":""},{"$f":"IFERROR(MID($J213,FIND(CHAR(160),SUBSTITUTE($J213,\"{\",CHAR(160),EU$1)),FIND(CHAR(160),SUBSTITUTE($J213,\"}\",CHAR(160),EU$1))-FIND(CHAR(160),SUBSTITUTE($J213,\"{\",CHAR(160),EU$1))+1),\"\")","v":""},{"$f":"IFERROR(MID($J213,FIND(CHAR(160),SUBSTITUTE($J213,\"{\",CHAR(160),EV$1)),FIND(CHAR(160),SUBSTITUTE($J213,\"}\",CHAR(160),EV$1))-FIND(CHAR(160),SUBSTITUTE($J213,\"{\",CHAR(160),EV$1))+1),\"\")","v":""},{"$f":"IFERROR(MID($J213,FIND(CHAR(160),SUBSTITUTE($J213,\"{\",CHAR(160),EW$1)),FIND(CHAR(160),SUBSTITUTE($J213,\"}\",CHAR(160),EW$1))-FIND(CHAR(160),SUBSTITUTE($J213,\"{\",CHAR(160),EW$1))+1),\"\")","v":""},{"$f":"IFERROR(MID($J213,FIND(CHAR(160),SUBSTITUTE($J213,\"{\",CHAR(160),EX$1)),FIND(CHAR(160),SUBSTITUTE($J213,\"}\",CHAR(160),EX$1))-FIND(CHAR(160),SUBSTITUTE($J213,\"{\",CHAR(160),EX$1))+1),\"\")","v":""},{"$f":"IFERROR(MID($J213,FIND(CHAR(160),SUBSTITUTE($J213,\"{\",CHAR(160),EY$1)),FIND(CHAR(160),SUBSTITUTE($J213,\"}\",CHAR(160),EY$1))-FIND(CHAR(160),SUBSTITUTE($J213,\"{\",CHAR(160),EY$1))+1),\"\")","v":""},{"$f":"IFERROR(MID($J213,FIND(CHAR(160),SUBSTITUTE($J213,\"{\",CHAR(160),EZ$1)),FIND(CHAR(160),SUBSTITUTE($J213,\"}\",CHAR(160),EZ$1))-FIND(CHAR(160),SUBSTITUTE($J213,\"{\",CHAR(160),EZ$1))+1),\"\")","v":""},{"$f":"IFERROR(MID($J213,FIND(CHAR(160),SUBSTITUTE($J213,\"{\",CHAR(160),FA$1)),FIND(CHAR(160),SUBSTITUTE($J213,\"}\",CHAR(160),FA$1))-FIND(CHAR(160),SUBSTITUTE($J213,\"{\",CHAR(160),FA$1))+1),\"\")","v":"{Measure:Quantity}"},{"$f":"IFERROR(MID($J213,FIND(CHAR(160),SUBSTITUTE($J213,\"{\",CHAR(160),FB$1)),FIND(CHAR(160),SUBSTITUTE($J213,\"}\",CHAR(160),FB$1))-FIND(CHAR(160),SUBSTITUTE($J213,\"{\",CHAR(160),FB$1))+1),\"\")","v":""},{"$f":"IFERROR(MID($O213,FIND(CHAR(160),SUBSTITUTE($O213,\"{\",CHAR(160),FC$1)),FIND(CHAR(160),SUBSTITUTE($O213,\"}\",CHAR(160),FC$1))-FIND(CHAR(160),SUBSTITUTE($O213,\"{\",CHAR(160),FC$1))+1),\"\")","v":""},{"$f":"IFERROR(MID($O213,FIND(CHAR(160),SUBSTITUTE($O213,\"{\",CHAR(160),FD$1)),FIND(CHAR(160),SUBSTITUTE($O213,\"}\",CHAR(160),FD$1))-FIND(CHAR(160),SUBSTITUTE($O213,\"{\",CHAR(160),FD$1))+1),\"\")","v":""},{"$f":"IFERROR(MID($O213,FIND(CHAR(160),SUBSTITUTE($O213,\"{\",CHAR(160),FE$1)),FIND(CHAR(160),SUBSTITUTE($O213,\"}\",CHAR(160),FE$1))-FIND(CHAR(160),SUBSTITUTE($O213,\"{\",CHAR(160),FE$1))+1),\"\")","v":""},{"$f":"IFERROR(MID($O213,FIND(CHAR(160),SUBSTITUTE($O213,\"{\",CHAR(160),FF$1)),FIND(CHAR(160),SUBSTITUTE($O213,\"}\",CHAR(160),FF$1))-FIND(CHAR(160),SUBSTITUTE($O213,\"{\",CHAR(160),FF$1))+1),\"\")","v":""},{"$f":"IFERROR(MID($O213,FIND(CHAR(160),SUBSTITUTE($O213,\"{\",CHAR(160),FG$1)),FIND(CHAR(160),SUBSTITUTE($O213,\"}\",CHAR(160),FG$1))-FIND(CHAR(160),SUBSTITUTE($O213,\"{\",CHAR(160),FG$1))+1),\"\")","v":""},{"$f":"IFERROR(MID($O213,FIND(CHAR(160),SUBSTITUTE($O213,\"{\",CHAR(160),FH$1)),FIND(CHAR(160),SUBSTITUTE($O213,\"}\",CHAR(160),FH$1))-FIND(CHAR(160),SUBSTITUTE($O213,\"{\",CHAR(160),FH$1))+1),\"\")","v":""},{"$f":"IFERROR(MID($O213,FIND(CHAR(160),SUBSTITUTE($O213,\"{\",CHAR(160),FI$1)),FIND(CHAR(160),SUBSTITUTE($O213,\"}\",CHAR(160),FI$1))-FIND(CHAR(160),SUBSTITUTE($O213,\"{\",CHAR(160),FI$1))+1),\"\")","v":""},{"$f":"IFERROR(MID($O213,FIND(CHAR(160),SUBSTITUTE($O213,\"{\",CHAR(160),FJ$1)),FIND(CHAR(160),SUBSTITUTE($O213,\"}\",CHAR(160),FJ$1))-FIND(CHAR(160),SUBSTITUTE($O213,\"{\",CHAR(160),FJ$1))+1),\"\")","v":""},{"$f":"IFERROR(MID($O213,FIND(CHAR(160),SUBSTITUTE($O213,\"{\",CHAR(160),FK$1)),FIND(CHAR(160),SUBSTITUTE($O213,\"}\",CHAR(160),FK$1))-FIND(CHAR(160),SUBSTITUTE($O213,\"{\",CHAR(160),FK$1))+1),\"\")","v":"{Measure:Quantity}"},{"$f":"IFERROR(MID($O213,FIND(CHAR(160),SUBSTITUTE($O213,\"{\",CHAR(160),FL$1)),FIND(CHAR(160),SUBSTITUTE($O213,\"}\",CHAR(160),FL$1))-FIND(CHAR(160),SUBSTITUTE($O213,\"{\",CHAR(160),FL$1))+1),\"\")","v":"{Measure:Quantity}"},{"$f":"IFERROR(MID($R213,FIND(CHAR(160),SUBSTITUTE($R213,\"{\",CHAR(160),FM$1)),FIND(CHAR(160),SUBSTITUTE($R213,\"}\",CHAR(160),FM$1))-FIND(CHAR(160),SUBSTITUTE($R213,\"{\",CHAR(160),FM$1))+1),\"\")","v":""},{"$f":"IFERROR(MID($R213,FIND(CHAR(160),SUBSTITUTE($R213,\"{\",CHAR(160),FN$1)),FIND(CHAR(160),SUBSTITUTE($R213,\"}\",CHAR(160),FN$1))-FIND(CHAR(160),SUBSTITUTE($R213,\"{\",CHAR(160),FN$1))+1),\"\")","v":""},{"$f":"IFERROR(MID($R213,FIND(CHAR(160),SUBSTITUTE($R213,\"{\",CHAR(160),FO$1)),FIND(CHAR(160),SUBSTITUTE($R213,\"}\",CHAR(160),FO$1))-FIND(CHAR(160),SUBSTITUTE($R213,\"{\",CHAR(160),FO$1))+1),\"\")","v":""},{"$f":"IFERROR(MID($R213,FIND(CHAR(160),SUBSTITUTE($R213,\"{\",CHAR(160),FP$1)),FIND(CHAR(160),SUBSTITUTE($R213,\"}\",CHAR(160),FP$1))-FIND(CHAR(160),SUBSTITUTE($R213,\"{\",CHAR(160),FP$1))+1),\"\")","v":""},{"$f":"IFERROR(MID($R213,FIND(CHAR(160),SUBSTITUTE($R213,\"{\",CHAR(160),FQ$1)),FIND(CHAR(160),SUBSTITUTE($R213,\"}\",CHAR(160),FQ$1))-FIND(CHAR(160),SUBSTITUTE($R213,\"{\",CHAR(160),FQ$1))+1),\"\")","v":""},{"$f":"IFERROR(MID($R213,FIND(CHAR(160),SUBSTITUTE($R213,\"{\",CHAR(160),FR$1)),FIND(CHAR(160),SUBSTITUTE($R213,\"}\",CHAR(160),FR$1))-FIND(CHAR(160),SUBSTITUTE($R213,\"{\",CHAR(160),FR$1))+1),\"\")","v":""},{"$f":"IFERROR(MID($R213,FIND(CHAR(160),SUBSTITUTE($R213,\"{\",CHAR(160),FS$1)),FIND(CHAR(160),SUBSTITUTE($R213,\"}\",CHAR(160),FS$1))-FIND(CHAR(160),SUBSTITUTE($R213,\"{\",CHAR(160),FS$1))+1),\"\")","v":""},{"$f":"IFERROR(MID($R213,FIND(CHAR(160),SUBSTITUTE($R213,\"{\",CHAR(160),FT$1)),FIND(CHAR(160),SUBSTITUTE($R213,\"}\",CHAR(160),FT$1))-FIND(CHAR(160),SUBSTITUTE($R213,\"{\",CHAR(160),FT$1))+1),\"\")","v":""},{"$f":"IFERROR(MID($R213,FIND(CHAR(160),SUBSTITUTE($R213,\"{\",CHAR(160),FU$1)),FIND(CHAR(160),SUBSTITUTE($R213,\"}\",CHAR(160),FU$1))-FIND(CHAR(160),SUBSTITUTE($R213,\"{\",CHAR(160),FU$1))+1),\"\")","v":""},{"$f":"IFERROR(MID($R213,FIND(CHAR(160),SUBSTITUTE($R213,\"{\",CHAR(160),FV$1)),FIND(CHAR(160),SUBSTITUTE($R213,\"}\",CHAR(160),FV$1))-FIND(CHAR(160),SUBSTITUTE($R213,\"{\",CHAR(160),FV$1))+1),\"\")","v":""},{"$f":"IFERROR(MID($U213,FIND(CHAR(160),SUBSTITUTE($U213,\"{\",CHAR(160),FW$1)),FIND(CHAR(160),SUBSTITUTE($U213,\"}\",CHAR(160),FW$1))-FIND(CHAR(160),SUBSTITUTE($U213,\"{\",CHAR(160),FW$1))+1),\"\")","v":""},{"$f":"IFERROR(MID($U213,FIND(CHAR(160),SUBSTITUTE($U213,\"{\",CHAR(160),FX$1)),FIND(CHAR(160),SUBSTITUTE($U213,\"}\",CHAR(160),FX$1))-FIND(CHAR(160),SUBSTITUTE($U213,\"{\",CHAR(160),FX$1))+1),\"\")","v":""},{"$f":"IFERROR(MID($U213,FIND(CHAR(160),SUBSTITUTE($U213,\"{\",CHAR(160),FY$1)),FIND(CHAR(160),SUBSTITUTE($U213,\"}\",CHAR(160),FY$1))-FIND(CHAR(160),SUBSTITUTE($U213,\"{\",CHAR(160),FY$1))+1),\"\")","v":""},{"$f":"IFERROR(MID($U213,FIND(CHAR(160),SUBSTITUTE($U213,\"{\",CHAR(160),FZ$1)),FIND(CHAR(160),SUBSTITUTE($U213,\"}\",CHAR(160),FZ$1))-FIND(CHAR(160),SUBSTITUTE($U213,\"{\",CHAR(160),FZ$1))+1),\"\")","v":""},{"$f":"IFERROR(MID($U213,FIND(CHAR(160),SUBSTITUTE($U213,\"{\",CHAR(160),GA$1)),FIND(CHAR(160),SUBSTITUTE($U213,\"}\",CHAR(160),GA$1))-FIND(CHAR(160),SUBSTITUTE($U213,\"{\",CHAR(160),GA$1))+1),\"\")","v":""},{"$f":"IFERROR(MID($U213,FIND(CHAR(160),SUBSTITUTE($U213,\"{\",CHAR(160),GB$1)),FIND(CHAR(160),SUBSTITUTE($U213,\"}\",CHAR(160),GB$1))-FIND(CHAR(160),SUBSTITUTE($U213,\"{\",CHAR(160),GB$1))+1),\"\")","v":""},{"$f":"IFERROR(MID($U213,FIND(CHAR(160),SUBSTITUTE($U213,\"{\",CHAR(160),GC$1)),FIND(CHAR(160),SUBSTITUTE($U213,\"}\",CHAR(160),GC$1))-FIND(CHAR(160),SUBSTITUTE($U213,\"{\",CHAR(160),GC$1))+1),\"\")","v":""},{"$f":"IFERROR(MID($U213,FIND(CHAR(160),SUBSTITUTE($U213,\"{\",CHAR(160),GD$1)),FIND(CHAR(160),SUBSTITUTE($U213,\"}\",CHAR(160),GD$1))-FIND(CHAR(160),SUBSTITUTE($U213,\"{\",CHAR(160),GD$1))+1),\"\")","v":""},{"$f":"IFERROR(MID($U213,FIND(CHAR(160),SUBSTITUTE($U213,\"{\",CHAR(160),GE$1)),FIND(CHAR(160),SUBSTITUTE($U213,\"}\",CHAR(160),GE$1))-FIND(CHAR(160),SUBSTITUTE($U213,\"{\",CHAR(160),GE$1))+1),\"\")","v":"{Measure:Quantity}"},{"$f":"IFERROR(MID($U213,FIND(CHAR(160),SUBSTITUTE($U213,\"{\",CHAR(160),GF$1)),FIND(CHAR(160),SUBSTITUTE($U213,\"}\",CHAR(160),GF$1))-FIND(CHAR(160),SUBSTITUTE($U213,\"{\",CHAR(160),GF$1))+1),\"\")","v":"{Measure:Quantity}"},{"$f":"IFERROR(MID($V213,FIND(CHAR(160),SUBSTITUTE($V213,\"{\",CHAR(160),GG$1)),FIND(CHAR(160),SUBSTITUTE($V213,\"}\",CHAR(160),GG$1))-FIND(CHAR(160),SUBSTITUTE($V213,\"{\",CHAR(160),GG$1))+1),\"\")","v":""},{"$f":"IFERROR(MID($V213,FIND(CHAR(160),SUBSTITUTE($V213,\"{\",CHAR(160),GH$1)),FIND(CHAR(160),SUBSTITUTE($V213,\"}\",CHAR(160),GH$1))-FIND(CHAR(160),SUBSTITUTE($V213,\"{\",CHAR(160),GH$1))+1),\"\")","v":""},{"$f":"IFERROR(MID($V213,FIND(CHAR(160),SUBSTITUTE($V213,\"{\",CHAR(160),GI$1)),FIND(CHAR(160),SUBSTITUTE($V213,\"}\",CHAR(160),GI$1))-FIND(CHAR(160),SUBSTITUTE($V213,\"{\",CHAR(160),GI$1))+1),\"\")","v":""},{"$f":"IFERROR(MID($V213,FIND(CHAR(160),SUBSTITUTE($V213,\"{\",CHAR(160),GJ$1)),FIND(CHAR(160),SUBSTITUTE($V213,\"}\",CHAR(160),GJ$1))-FIND(CHAR(160),SUBSTITUTE($V213,\"{\",CHAR(160),GJ$1))+1),\"\")","v":""},{"$f":"IFERROR(MID($V213,FIND(CHAR(160),SUBSTITUTE($V213,\"{\",CHAR(160),GK$1)),FIND(CHAR(160),SUBSTITUTE($V213,\"}\",CHAR(160),GK$1))-FIND(CHAR(160),SUBSTITUTE($V213,\"{\",CHAR(160),GK$1))+1),\"\")","v":""},{"$f":"IFERROR(MID($V213,FIND(CHAR(160),SUBSTITUTE($V213,\"{\",CHAR(160),GL$1)),FIND(CHAR(160),SUBSTITUTE($V213,\"}\",CHAR(160),GL$1))-FIND(CHAR(160),SUBSTITUTE($V213,\"{\",CHAR(160),GL$1))+1),\"\")","v":""},{"$f":"IFERROR(MID($V213,FIND(CHAR(160),SUBSTITUTE($V213,\"{\",CHAR(160),GM$1)),FIND(CHAR(160),SUBSTITUTE($V213,\"}\",CHAR(160),GM$1))-FIND(CHAR(160),SUBSTITUTE($V213,\"{\",CHAR(160),GM$1))+1),\"\")","v":""},{"$f":"IFERROR(MID($V213,FIND(CHAR(160),SUBSTITUTE($V213,\"{\",CHAR(160),GN$1)),FIND(CHAR(160),SUBSTITUTE($V213,\"}\",CHAR(160),GN$1))-FIND(CHAR(160),SUBSTITUTE($V213,\"{\",CHAR(160),GN$1))+1),\"\")","v":""},{"$f":"IFERROR(MID($V213,FIND(CHAR(160),SUBSTITUTE($V213,\"{\",CHAR(160),GO$1)),FIND(CHAR(160),SUBSTITUTE($V213,\"}\",CHAR(160),GO$1))-FIND(CHAR(160),SUBSTITUTE($V213,\"{\",CHAR(160),GO$1))+1),\"\")","v":"{Measure:Quantity}"},{"$f":"IFERROR(MID($V213,FIND(CHAR(160),SUBSTITUTE($V213,\"{\",CHAR(160),GP$1)),FIND(CHAR(160),SUBSTITUTE($V213,\"}\",CHAR(160),GP$1))-FIND(CHAR(160),SUBSTITUTE($V213,\"{\",CHAR(160),GP$1))+1),\"\")","v":"{Measure:Quantity}"},{"$f":"IFERROR(MID($W213,FIND(CHAR(160),SUBSTITUTE($W213,\"{\",CHAR(160),GQ$1)),FIND(CHAR(160),SUBSTITUTE($W213,\"}\",CHAR(160),GQ$1))-FIND(CHAR(160),SUBSTITUTE($W213,\"{\",CHAR(160),GQ$1))+1),\"\")","v":""},{"$f":"IFERROR(MID($W213,FIND(CHAR(160),SUBSTITUTE($W213,\"{\",CHAR(160),GR$1)),FIND(CHAR(160),SUBSTITUTE($W213,\"}\",CHAR(160),GR$1))-FIND(CHAR(160),SUBSTITUTE($W213,\"{\",CHAR(160),GR$1))+1),\"\")","v":""},{"$f":"IFERROR(MID($W213,FIND(CHAR(160),SUBSTITUTE($W213,\"{\",CHAR(160),GS$1)),FIND(CHAR(160),SUBSTITUTE($W213,\"}\",CHAR(160),GS$1))-FIND(CHAR(160),SUBSTITUTE($W213,\"{\",CHAR(160),GS$1))+1),\"\")","v":""},{"$f":"IFERROR(MID($W213,FIND(CHAR(160),SUBSTITUTE($W213,\"{\",CHAR(160),GT$1)),FIND(CHAR(160),SUBSTITUTE($W213,\"}\",CHAR(160),GT$1))-FIND(CHAR(160),SUBSTITUTE($W213,\"{\",CHAR(160),GT$1))+1),\"\")","v":""},{"$f":"IFERROR(MID($W213,FIND(CHAR(160),SUBSTITUTE($W213,\"{\",CHAR(160),GU$1)),FIND(CHAR(160),SUBSTITUTE($W213,\"}\",CHAR(160),GU$1))-FIND(CHAR(160),SUBSTITUTE($W213,\"{\",CHAR(160),GU$1))+1),\"\")","v":""},{"$f":"IFERROR(MID($W213,FIND(CHAR(160),SUBSTITUTE($W213,\"{\",CHAR(160),GV$1)),FIND(CHAR(160),SUBSTITUTE($W213,\"}\",CHAR(160),GV$1))-FIND(CHAR(160),SUBSTITUTE($W213,\"{\",CHAR(160),GV$1))+1),\"\")","v":""},{"$f":"IFERROR(MID($W213,FIND(CHAR(160),SUBSTITUTE($W213,\"{\",CHAR(160),GW$1)),FIND(CHAR(160),SUBSTITUTE($W213,\"}\",CHAR(160),GW$1))-FIND(CHAR(160),SUBSTITUTE($W213,\"{\",CHAR(160),GW$1))+1),\"\")","v":""},{"$f":"IFERROR(MID($W213,FIND(CHAR(160),SUBSTITUTE($W213,\"{\",CHAR(160),GX$1)),FIND(CHAR(160),SUBSTITUTE($W213,\"}\",CHAR(160),GX$1))-FIND(CHAR(160),SUBSTITUTE($W213,\"{\",CHAR(160),GX$1))+1),\"\")","v":""},{"$f":"IFERROR(MID($W213,FIND(CHAR(160),SUBSTITUTE($W213,\"{\",CHAR(160),GY$1)),FIND(CHAR(160),SUBSTITUTE($W213,\"}\",CHAR(160),GY$1))-FIND(CHAR(160),SUBSTITUTE($W213,\"{\",CHAR(160),GY$1))+1),\"\")","v":""},{"$f":"IFERROR(MID($W213,FIND(CHAR(160),SUBSTITUTE($W213,\"{\",CHAR(160),GZ$1)),FIND(CHAR(160),SUBSTITUTE($W213,\"}\",CHAR(160),GZ$1))-FIND(CHAR(160),SUBSTITUTE($W213,\"{\",CHAR(160),GZ$1))+1),\"\")","v":""},{"$f":"IFERROR(MID($X213,FIND(CHAR(160),SUBSTITUTE($X213,\"{\",CHAR(160),HA$1)),FIND(CHAR(160),SUBSTITUTE($X213,\"}\",CHAR(160),HA$1))-FIND(CHAR(160),SUBSTITUTE($X213,\"{\",CHAR(160),HA$1))+1),\"\")","v":""},{"$f":"IFERROR(MID($X213,FIND(CHAR(160),SUBSTITUTE($X213,\"{\",CHAR(160),HB$1)),FIND(CHAR(160),SUBSTITUTE($X213,\"}\",CHAR(160),HB$1))-FIND(CHAR(160),SUBSTITUTE($X213,\"{\",CHAR(160),HB$1))+1),\"\")","v":""},{"$f":"IFERROR(MID($X213,FIND(CHAR(160),SUBSTITUTE($X213,\"{\",CHAR(160),HC$1)),FIND(CHAR(160),SUBSTITUTE($X213,\"}\",CHAR(160),HC$1))-FIND(CHAR(160),SUBSTITUTE($X213,\"{\",CHAR(160),HC$1))+1),\"\")","v":""},{"$f":"IFERROR(MID($X213,FIND(CHAR(160),SUBSTITUTE($X213,\"{\",CHAR(160),HD$1)),FIND(CHAR(160),SUBSTITUTE($X213,\"}\",CHAR(160),HD$1))-FIND(CHAR(160),SUBSTITUTE($X213,\"{\",CHAR(160),HD$1))+1),\"\")","v":""},{"$f":"IFERROR(MID($X213,FIND(CHAR(160),SUBSTITUTE($X213,\"{\",CHAR(160),HE$1)),FIND(CHAR(160),SUBSTITUTE($X213,\"}\",CHAR(160),HE$1))-FIND(CHAR(160),SUBSTITUTE($X213,\"{\",CHAR(160),HE$1))+1),\"\")","v":""},{"$f":"IFERROR(MID($X213,FIND(CHAR(160),SUBSTITUTE($X213,\"{\",CHAR(160),HF$1)),FIND(CHAR(160),SUBSTITUTE($X213,\"}\",CHAR(160),HF$1))-FIND(CHAR(160),SUBSTITUTE($X213,\"{\",CHAR(160),HF$1))+1),\"\")","v":""},{"$f":"IFERROR(MID($X213,FIND(CHAR(160),SUBSTITUTE($X213,\"{\",CHAR(160),HG$1)),FIND(CHAR(160),SUBSTITUTE($X213,\"}\",CHAR(160),HG$1))-FIND(CHAR(160),SUBSTITUTE($X213,\"{\",CHAR(160),HG$1))+1),\"\")","v":""},{"$f":"IFERROR(MID($X213,FIND(CHAR(160),SUBSTITUTE($X213,\"{\",CHAR(160),HH$1)),FIND(CHAR(160),SUBSTITUTE($X213,\"}\",CHAR(160),HH$1))-FIND(CHAR(160),SUBSTITUTE($X213,\"{\",CHAR(160),HH$1))+1),\"\")","v":""},{"$f":"IFERROR(MID($X213,FIND(CHAR(160),SUBSTITUTE($X213,\"{\",CHAR(160),HI$1)),FIND(CHAR(160),SUBSTITUTE($X213,\"}\",CHAR(160),HI$1))-FIND(CHAR(160),SUBSTITUTE($X213,\"{\",CHAR(160),HI$1))+1),\"\")","v":""},{"$f":"IFERROR(MID($X213,FIND(CHAR(160),SUBSTITUTE($X213,\"{\",CHAR(160),HJ$1)),FIND(CHAR(160),SUBSTITUTE($X213,\"}\",CHAR(160),HJ$1))-FIND(CHAR(160),SUBSTITUTE($X213,\"{\",CHAR(160),HJ$1))+1),\"\")","v":""},{"$f":"IFERROR(MID($Y213,FIND(CHAR(160),SUBSTITUTE($Y213,\"{\",CHAR(160),HK$1)),FIND(CHAR(160),SUBSTITUTE($Y213,\"}\",CHAR(160),HK$1))-FIND(CHAR(160),SUBSTITUTE($Y213,\"{\",CHAR(160),HK$1))+1),\"\")","v":""},{"$f":"IFERROR(MID($Y213,FIND(CHAR(160),SUBSTITUTE($Y213,\"{\",CHAR(160),HL$1)),FIND(CHAR(160),SUBSTITUTE($Y213,\"}\",CHAR(160),HL$1))-FIND(CHAR(160),SUBSTITUTE($Y213,\"{\",CHAR(160),HL$1))+1),\"\")","v":""},{"$f":"IFERROR(MID($Y213,FIND(CHAR(160),SUBSTITUTE($Y213,\"{\",CHAR(160),HM$1)),FIND(CHAR(160),SUBSTITUTE($Y213,\"}\",CHAR(160),HM$1))-FIND(CHAR(160),SUBSTITUTE($Y213,\"{\",CHAR(160),HM$1))+1),\"\")","v":""},{"$f":"IFERROR(MID($Y213,FIND(CHAR(160),SUBSTITUTE($Y213,\"{\",CHAR(160),HN$1)),FIND(CHAR(160),SUBSTITUTE($Y213,\"}\",CHAR(160),HN$1))-FIND(CHAR(160),SUBSTITUTE($Y213,\"{\",CHAR(160),HN$1))+1),\"\")","v":""},{"$f":"IFERROR(MID($Y213,FIND(CHAR(160),SUBSTITUTE($Y213,\"{\",CHAR(160),HO$1)),FIND(CHAR(160),SUBSTITUTE($Y213,\"}\",CHAR(160),HO$1))-FIND(CHAR(160),SUBSTITUTE($Y213,\"{\",CHAR(160),HO$1))+1),\"\")","v":""},{"$f":"IFERROR(MID($Y213,FIND(CHAR(160),SUBSTITUTE($Y213,\"{\",CHAR(160),HP$1)),FIND(CHAR(160),SUBSTITUTE($Y213,\"}\",CHAR(160),HP$1))-FIND(CHAR(160),SUBSTITUTE($Y213,\"{\",CHAR(160),HP$1))+1),\"\")","v":""},{"$f":"IFERROR(MID($Y213,FIND(CHAR(160),SUBSTITUTE($Y213,\"{\",CHAR(160),HQ$1)),FIND(CHAR(160),SUBSTITUTE($Y213,\"}\",CHAR(160),HQ$1))-FIND(CHAR(160),SUBSTITUTE($Y213,\"{\",CHAR(160),HQ$1))+1),\"\")","v":""},{"$f":"IFERROR(MID($Y213,FIND(CHAR(160),SUBSTITUTE($Y213,\"{\",CHAR(160),HR$1)),FIND(CHAR(160),SUBSTITUTE($Y213,\"}\",CHAR(160),HR$1))-FIND(CHAR(160),SUBSTITUTE($Y213,\"{\",CHAR(160),HR$1))+1),\"\")","v":""},{"$f":"IFERROR(MID($Y213,FIND(CHAR(160),SUBSTITUTE($Y213,\"{\",CHAR(160),HS$1)),FIND(CHAR(160),SUBSTITUTE($Y213,\"}\",CHAR(160),HS$1))-FIND(CHAR(160),SUBSTITUTE($Y213,\"{\",CHAR(160),HS$1))+1),\"\")","v":""},{"$f":"IFERROR(MID($Y213,FIND(CHAR(160),SUBSTITUTE($Y213,\"{\",CHAR(160),HT$1)),FIND(CHAR(160),SUBSTITUTE($Y213,\"}\",CHAR(160),HT$1))-FIND(CHAR(160),SUBSTITUTE($Y213,\"{\",CHAR(160),HT$1))+1),\"\")","v":""},{"$f":"IFERROR(MID($Z213,FIND(CHAR(160),SUBSTITUTE($Z213,\"{\",CHAR(160),HU$1)),FIND(CHAR(160),SUBSTITUTE($Z213,\"}\",CHAR(160),HU$1))-FIND(CHAR(160),SUBSTITUTE($Z213,\"{\",CHAR(160),HU$1))+1),\"\")","v":""},{"$f":"IFERROR(MID($Z213,FIND(CHAR(160),SUBSTITUTE($Z213,\"{\",CHAR(160),HV$1)),FIND(CHAR(160),SUBSTITUTE($Z213,\"}\",CHAR(160),HV$1))-FIND(CHAR(160),SUBSTITUTE($Z213,\"{\",CHAR(160),HV$1))+1),\"\")","v":""},{"$f":"IFERROR(MID($Z213,FIND(CHAR(160),SUBSTITUTE($Z213,\"{\",CHAR(160),HW$1)),FIND(CHAR(160),SUBSTITUTE($Z213,\"}\",CHAR(160),HW$1))-FIND(CHAR(160),SUBSTITUTE($Z213,\"{\",CHAR(160),HW$1))+1),\"\")","v":""},{"$f":"IFERROR(MID($Z213,FIND(CHAR(160),SUBSTITUTE($Z213,\"{\",CHAR(160),HX$1)),FIND(CHAR(160),SUBSTITUTE($Z213,\"}\",CHAR(160),HX$1))-FIND(CHAR(160),SUBSTITUTE($Z213,\"{\",CHAR(160),HX$1))+1),\"\")","v":""},{"$f":"IFERROR(MID($Z213,FIND(CHAR(160),SUBSTITUTE($Z213,\"{\",CHAR(160),HY$1)),FIND(CHAR(160),SUBSTITUTE($Z213,\"}\",CHAR(160),HY$1))-FIND(CHAR(160),SUBSTITUTE($Z213,\"{\",CHAR(160),HY$1))+1),\"\")","v":""},{"$f":"IFERROR(MID($Z213,FIND(CHAR(160),SUBSTITUTE($Z213,\"{\",CHAR(160),HZ$1)),FIND(CHAR(160),SUBSTITUTE($Z213,\"}\",CHAR(160),HZ$1))-FIND(CHAR(160),SUBSTITUTE($Z213,\"{\",CHAR(160),HZ$1))+1),\"\")","v":""},{"$f":"IFERROR(MID($Z213,FIND(CHAR(160),SUBSTITUTE($Z213,\"{\",CHAR(160),IA$1)),FIND(CHAR(160),SUBSTITUTE($Z213,\"}\",CHAR(160),IA$1))-FIND(CHAR(160),SUBSTITUTE($Z213,\"{\",CHAR(160),IA$1))+1),\"\")","v":""},{"$f":"IFERROR(MID($Z213,FIND(CHAR(160),SUBSTITUTE($Z213,\"{\",CHAR(160),IB$1)),FIND(CHAR(160),SUBSTITUTE($Z213,\"}\",CHAR(160),IB$1))-FIND(CHAR(160),SUBSTITUTE($Z213,\"{\",CHAR(160),IB$1))+1),\"\")","v":""},{"$f":"IFERROR(MID($Z213,FIND(CHAR(160),SUBSTITUTE($Z213,\"{\",CHAR(160),IC$1)),FIND(CHAR(160),SUBSTITUTE($Z213,\"}\",CHAR(160),IC$1))-FIND(CHAR(160),SUBSTITUTE($Z213,\"{\",CHAR(160),IC$1))+1),\"\")","v":""},{"$f":"IFERROR(MID($Z213,FIND(CHAR(160),SUBSTITUTE($Z213,\"{\",CHAR(160),ID$1)),FIND(CHAR(160),SUBSTITUTE($Z213,\"}\",CHAR(160),ID$1))-FIND(CHAR(160),SUBSTITUTE($Z213,\"{\",CHAR(160),ID$1))+1),\"\")","v":""},{"$f":"IFERROR(MID($AA213,FIND(CHAR(160),SUBSTITUTE($AA213,\"{\",CHAR(160),IE$1)),FIND(CHAR(160),SUBSTITUTE($AA213,\"}\",CHAR(160),IE$1))-FIND(CHAR(160),SUBSTITUTE($AA213,\"{\",CHAR(160),IE$1))+1),\"\")","v":""},{"$f":"IFERROR(MID($AA213,FIND(CHAR(160),SUBSTITUTE($AA213,\"{\",CHAR(160),IF$1)),FIND(CHAR(160),SUBSTITUTE($AA213,\"}\",CHAR(160),IF$1))-FIND(CHAR(160),SUBSTITUTE($AA213,\"{\",CHAR(160),IF$1))+1),\"\")","v":""},{"$f":"IFERROR(MID($AA213,FIND(CHAR(160),SUBSTITUTE($AA213,\"{\",CHAR(160),IG$1)),FIND(CHAR(160),SUBSTITUTE($AA213,\"}\",CHAR(160),IG$1))-FIND(CHAR(160),SUBSTITUTE($AA213,\"{\",CHAR(160),IG$1))+1),\"\")","v":""},{"$f":"IFERROR(MID($AA213,FIND(CHAR(160),SUBSTITUTE($AA213,\"{\",CHAR(160),IH$1)),FIND(CHAR(160),SUBSTITUTE($AA213,\"}\",CHAR(160),IH$1))-FIND(CHAR(160),SUBSTITUTE($AA213,\"{\",CHAR(160),IH$1))+1),\"\")","v":""},{"$f":"IFERROR(MID($AA213,FIND(CHAR(160),SUBSTITUTE($AA213,\"{\",CHAR(160),II$1)),FIND(CHAR(160),SUBSTITUTE($AA213,\"}\",CHAR(160),II$1))-FIND(CHAR(160),SUBSTITUTE($AA213,\"{\",CHAR(160),II$1))+1),\"\")","v":""},{"$f":"IFERROR(MID($AA213,FIND(CHAR(160),SUBSTITUTE($AA213,\"{\",CHAR(160),IJ$1)),FIND(CHAR(160),SUBSTITUTE($AA213,\"}\",CHAR(160),IJ$1))-FIND(CHAR(160),SUBSTITUTE($AA213,\"{\",CHAR(160),IJ$1))+1),\"\")","v":""},{"$f":"IFERROR(MID($AA213,FIND(CHAR(160),SUBSTITUTE($AA213,\"{\",CHAR(160),IK$1)),FIND(CHAR(160),SUBSTITUTE($AA213,\"}\",CHAR(160),IK$1))-FIND(CHAR(160),SUBSTITUTE($AA213,\"{\",CHAR(160),IK$1))+1),\"\")","v":""},{"$f":"IFERROR(MID($AA213,FIND(CHAR(160),SUBSTITUTE($AA213,\"{\",CHAR(160),IL$1)),FIND(CHAR(160),SUBSTITUTE($AA213,\"}\",CHAR(160),IL$1))-FIND(CHAR(160),SUBSTITUTE($AA213,\"{\",CHAR(160),IL$1))+1),\"\")","v":""},{"$f":"IFERROR(MID($AA213,FIND(CHAR(160),SUBSTITUTE($AA213,\"{\",CHAR(160),IM$1)),FIND(CHAR(160),SUBSTITUTE($AA213,\"}\",CHAR(160),IM$1))-FIND(CHAR(160),SUBSTITUTE($AA213,\"{\",CHAR(160),IM$1))+1),\"\")","v":""},{"$f":"IFERROR(MID($AA213,FIND(CHAR(160),SUBSTITUTE($AA213,\"{\",CHAR(160),IN$1)),FIND(CHAR(160),SUBSTITUTE($AA213,\"}\",CHAR(160),IN$1))-FIND(CHAR(160),SUBSTITUTE($AA213,\"{\",CHAR(160),IN$1))+1),\"\")","v":""},{"$f":"IFERROR(MID($AB213,FIND(CHAR(160),SUBSTITUTE($AB213,\"{\",CHAR(160),IO$1)),FIND(CHAR(160),SUBSTITUTE($AB213,\"}\",CHAR(160),IO$1))-FIND(CHAR(160),SUBSTITUTE($AB213,\"{\",CHAR(160),IO$1))+1),\"\")","v":""},{"$f":"IFERROR(MID($AB213,FIND(CHAR(160),SUBSTITUTE($AB213,\"{\",CHAR(160),IP$1)),FIND(CHAR(160),SUBSTITUTE($AB213,\"}\",CHAR(160),IP$1))-FIND(CHAR(160),SUBSTITUTE($AB213,\"{\",CHAR(160),IP$1))+1),\"\")","v":""},{"$f":"IFERROR(MID($AB213,FIND(CHAR(160),SUBSTITUTE($AB213,\"{\",CHAR(160),IQ$1)),FIND(CHAR(160),SUBSTITUTE($AB213,\"}\",CHAR(160),IQ$1))-FIND(CHAR(160),SUBSTITUTE($AB213,\"{\",CHAR(160),IQ$1))+1),\"\")","v":""},{"$f":"IFERROR(MID($AB213,FIND(CHAR(160),SUBSTITUTE($AB213,\"{\",CHAR(160),IR$1)),FIND(CHAR(160),SUBSTITUTE($AB213,\"}\",CHAR(160),IR$1))-FIND(CHAR(160),SUBSTITUTE($AB213,\"{\",CHAR(160),IR$1))+1),\"\")","v":""},{"$f":"IFERROR(MID($AB213,FIND(CHAR(160),SUBSTITUTE($AB213,\"{\",CHAR(160),IS$1)),FIND(CHAR(160),SUBSTITUTE($AB213,\"}\",CHAR(160),IS$1))-FIND(CHAR(160),SUBSTITUTE($AB213,\"{\",CHAR(160),IS$1))+1),\"\")","v":""},{"$f":"IFERROR(MID($AB213,FIND(CHAR(160),SUBSTITUTE($AB213,\"{\",CHAR(160),IT$1)),FIND(CHAR(160),SUBSTITUTE($AB213,\"}\",CHAR(160),IT$1))-FIND(CHAR(160),SUBSTITUTE($AB213,\"{\",CHAR(160),IT$1))+1),\"\")","v":""},{"$f":"IFERROR(MID($AB213,FIND(CHAR(160),SUBSTITUTE($AB213,\"{\",CHAR(160),IU$1)),FIND(CHAR(160),SUBSTITUTE($AB213,\"}\",CHAR(160),IU$1))-FIND(CHAR(160),SUBSTITUTE($AB213,\"{\",CHAR(160),IU$1))+1),\"\")","v":""},{"$f":"IFERROR(MID($AB213,FIND(CHAR(160),SUBSTITUTE($AB213,\"{\",CHAR(160),IV$1)),FIND(CHAR(160),SUBSTITUTE($AB213,\"}\",CHAR(160),IV$1))-FIND(CHAR(160),SUBSTITUTE($AB213,\"{\",CHAR(160),IV$1))+1),\"\")","v":""},{"$f":"IFERROR(MID($AB213,FIND(CHAR(160),SUBSTITUTE($AB213,\"{\",CHAR(160),IW$1)),FIND(CHAR(160),SUBSTITUTE($AB213,\"}\",CHAR(160),IW$1))-FIND(CHAR(160),SUBSTITUTE($AB213,\"{\",CHAR(160),IW$1))+1),\"\")","v":""},{"$f":"IFERROR(MID($AB213,FIND(CHAR(160),SUBSTITUTE($AB213,\"{\",CHAR(160),IX$1)),FIND(CHAR(160),SUBSTITUTE($AB213,\"}\",CHAR(160),IX$1))-FIND(CHAR(160),SUBSTITUTE($AB213,\"{\",CHAR(160),IX$1))+1),\"\")","v":""},null,{"$f":"10-COUNTIF(DU213:ED213,\"\")","v":1}]
["Low Income - NECEC Funds","Low Flow Wall Mounted Shower Head Direct Install","LILWSH","2021-07-01","2022-06-30","Calculated","{Measure:Quantity}*26.50",0,"Calculated","{Measure:Quantity}*26.50",0,"2021-07-01","2022-06-30","Calculated","{Measure:Quantity}*if({Measure:Quantity}=0,0,123)",null,null,null,null,null,"{Measure:Quantity}*if({Measure:Quantity}=0,0,0.012)","{Measure:Quantity}*if({Measure:Quantity}=0,0,0.010)",null,null,null,null,null,"if({Measure:Quantity}=0,0,{Measure:Quantity}*3153)","2021-07-01","2022-06-30",10,8.0000000000000002E-3,5.0000000000000001E-3,0.35499999999999998,0.311,0.18099999999999999,0.153,0.88,1,1,0,0,null,{"$f":"DU214","v":"{Measure:Quantity}"},1,{"$f":"DV214","v":""},1,{"$f":"DW214","v":""},null,{"$f":"DX214","v":""},null,{"$f":"DY214","v":""},null,{"$f":"DZ214","v":""},null,{"$f":"EA214","v":""},null,{"$f":"EB214","v":""},null,{"$f":"EC214","v":""},null,"LIDI Bundle Qty",0,{"$f":"AS214*IF(AS214=0,0,123)","v":123},0,0,0,0,0,{"$f":"AS214*IF(AS214=0,0,0.012)","v":1.2E-2},{"$f":"AS214*IF(AS214=0,0,0.01)","v":0.01},0,0,0,0,0,{"$f":"IF(AS214=0,0,AS214*3153)","v":3153},null,"Res","Default DR",{"$f":"Benefits(BL214,BR214,BS214,BT214,BU214,BV214,BW214,BX214,BY214,BZ214,AE214,AH214,AI214,AJ214,AK214,AL214,AM214,AN214,AO214,AP214,CA214,CB214)","v":106.94270202354217},39.906340814102037,0,0,0,0,0,187.20144922985645,0,{"$f":"SUMPRODUCT(CC214:CK214,--(CC214:CK214>0))","v":334.05049206750067},{"$f":"-SUMPRODUCT(CC214:CK214,--(CC214:CK214<0))","v":0},null,{"$f":"AS214*26.5","v":26.5},null,null,{"$f":"CM214+CO214","v":26.5},{"$f":"IF(NetOrGross=\"Net\",(1-AO214+AP214),1)","v":1},{"$f":"(SUMPRODUCT(CC214:CJ214,--(CC214:CJ214>0))+CN214)*CS214/((-SUMPRODUCT(CC214:CJ214,--(CC214:CJ214<0))+MAX(CO214,CV214)+CP214+CQ214)*CS214+IF(FRIncentives=\"Yes\",CV214*(1-CS214),0))","v":12.605678945943421},1,{"$f":"AS214*26.5","v":26.5},null,"Electric","y",{"$f":"CL214-CR214","v":307.55049206750067},{"$f":"IF(F214=\"Manual Entry\",\"Manual\",IF(G214=\"\",0,\"X=\"&SUBSTITUTE(SUBSTITUTE(SUBSTITUTE(SUBSTITUTE(SUBSTITUTE(SUBSTITUTE(SUBSTITUTE(SUBSTITUTE(SUBSTITUTE(SUBSTITUTE(SUBSTITUTE(SUBSTITUTE(G214,$ED214,$ED$2&ROW($ED214)),$EC214,$EC$2&ROW($EC214)),$EB214,$EB$2&ROW($EB214)),$EA214,$EA$2&ROW($EA214)),$DZ214,$DZ$2&ROW($DZ214)),$DY214,$DY$2&ROW($DY214)),$DX214,$DX$2&ROW($DX214)),$DW214,$DW$2&ROW($DW214)),$DV214,$DV$2&ROW($DV214)),$DU214,$DU$2&ROW($DU214)),$DT214,$DT$2&ROW($DT214)),$DS214,$DS$2&ROW($DS214))))","v":"X=AS214*26.50"},{"$f":"IF(I214=\"Manual Entry\",\"Manual\",IF(J214=\"\",0,\"X=\"&SUBSTITUTE(SUBSTITUTE(SUBSTITUTE(SUBSTITUTE(SUBSTITUTE(SUBSTITUTE(SUBSTITUTE(SUBSTITUTE(SUBSTITUTE(SUBSTITUTE(SUBSTITUTE(SUBSTITUTE(J214,$ED214,$ED$2&ROW($ED214)),$EC214,$EC$2&ROW($EC214)),$EB214,$EB$2&ROW($EB214)),$EA214,$EA$2&ROW($EA214)),$DZ214,$DZ$2&ROW($DZ214)),$DY214,$DY$2&ROW($DY214)),$DX214,$DX$2&ROW($DX214)),$DW214,$DW$2&ROW($DW214)),$DV214,$DV$2&ROW($DV214)),$DU214,$DU$2&ROW($DU214)),$DT214,$DT$2&ROW($DT214)),$DS214,$DS$2&ROW($DS214))))","v":"X=AS214*26.50"},{"$f":"IF(O214=\"\",0,\"X=\"&SUBSTITUTE(SUBSTITUTE(SUBSTITUTE(SUBSTITUTE(SUBSTITUTE(SUBSTITUTE(SUBSTITUTE(SUBSTITUTE(SUBSTITUTE(SUBSTITUTE(SUBSTITUTE(SUBSTITUTE(O214,$ED214,$ED$2&ROW($ED214)),$EC214,$EC$2&ROW($EC214)),$EB214,$EB$2&ROW($EB214)),$EA214,$EA$2&ROW($EA214)),$DZ214,$DZ$2&ROW($DZ214)),$DY214,$DY$2&ROW($DY214)),$DX214,$DX$2&ROW($DX214)),$DW214,$DW$2&ROW($DW214)),$DV214,$DV$2&ROW($DV214)),$DU214,$DU$2&ROW($DU214)),$DT214,$DT$2&ROW($DT214)),$DS214,$DS$2&ROW($DS214)))","v":"X=AS214*if(AS214=0,0,123)"},{"$f":"IF(P214=\"\",0,\"X=\"&SUBSTITUTE(SUBSTITUTE(SUBSTITUTE(SUBSTITUTE(SUBSTITUTE(SUBSTITUTE(SUBSTITUTE(SUBSTITUTE(SUBSTITUTE(SUBSTITUTE(SUBSTITUTE(SUBSTITUTE(P214,$ED214,$ED$2&ROW($ED214)),$EC214,$EC$2&ROW($EC214)),$EB214,$EB$2&ROW($EB214)),$EA214,$EA$2&ROW($EA214)),$DZ214,$DZ$2&ROW($DZ214)),$DY214,$DY$2&ROW($DY214)),$DX214,$DX$2&ROW($DX214)),$DW214,$DW$2&ROW($DW214)),$DV214,$DV$2&ROW($DV214)),$DU214,$DU$2&ROW($DU214)),$DT214,$DT$2&ROW($DT214)),$DS214,$DS$2&ROW($DS214)))","v":0},{"$f":"IF(Q214=\"\",0,\"X=\"&SUBSTITUTE(SUBSTITUTE(SUBSTITUTE(SUBSTITUTE(SUBSTITUTE(SUBSTITUTE(SUBSTITUTE(SUBSTITUTE(SUBSTITUTE(SUBSTITUTE(SUBSTITUTE(SUBSTITUTE(Q214,$ED214,$ED$2&ROW($ED214)),$EC214,$EC$2&ROW($EC214)),$EB214,$EB$2&ROW($EB214)),$EA214,$EA$2&ROW($EA214)),$DZ214,$DZ$2&ROW($DZ214)),$DY214,$DY$2&ROW($DY214)),$DX214,$DX$2&ROW($DX214)),$DW214,$DW$2&ROW($DW214)),$DV214,$DV$2&ROW($DV214)),$DU214,$DU$2&ROW($DU214)),$DT214,$DT$2&ROW($DT214)),$DS214,$DS$2&ROW($DS214)))","v":0},{"$f":"IF(R214=\"\",0,\"X=\"&SUBSTITUTE(SUBSTITUTE(SUBSTITUTE(SUBSTITUTE(SUBSTITUTE(SUBSTITUTE(SUBSTITUTE(SUBSTITUTE(SUBSTITUTE(SUBSTITUTE(SUBSTITUTE(SUBSTITUTE(R214,$ED214,$ED$2&ROW($ED214)),$EC214,$EC$2&ROW($EC214)),$EB214,$EB$2&ROW($EB214)),$EA214,$EA$2&ROW($EA214)),$DZ214,$DZ$2&ROW($DZ214)),$DY214,$DY$2&ROW($DY214)),$DX214,$DX$2&ROW($DX214)),$DW214,$DW$2&ROW($DW214)),$DV214,$DV$2&ROW($DV214)),$DU214,$DU$2&ROW($DU214)),$DT214,$DT$2&ROW($DT214)),$DS214,$DS$2&ROW($DS214)))","v":0},{"$f":"IF(S214=\"\",0,\"X=\"&SUBSTITUTE(SUBSTITUTE(SUBSTITUTE(SUBSTITUTE(SUBSTITUTE(SUBSTITUTE(SUBSTITUTE(SUBSTITUTE(SUBSTITUTE(SUBSTITUTE(SUBSTITUTE(SUBSTITUTE(S214,$ED214,$ED$2&ROW($ED214)),$EC214,$EC$2&ROW($EC214)),$EB214,$EB$2&ROW($EB214)),$EA214,$EA$2&ROW($EA214)),$DZ214,$DZ$2&ROW($DZ214)),$DY214,$DY$2&ROW($DY214)),$DX214,$DX$2&ROW($DX214)),$DW214,$DW$2&ROW($DW214)),$DV214,$DV$2&ROW($DV214)),$DU214,$DU$2&ROW($DU214)),$DT214,$DT$2&ROW($DT214)),$DS214,$DS$2&ROW($DS214)))","v":0},{"$f":"IF(T214=\"\",0,\"X=\"&SUBSTITUTE(SUBSTITUTE(SUBSTITUTE(SUBSTITUTE(SUBSTITUTE(SUBSTITUTE(SUBSTITUTE(SUBSTITUTE(SUBSTITUTE(SUBSTITUTE(SUBSTITUTE(SUBSTITUTE(T214,$ED214,$ED$2&ROW($ED214)),$EC214,$EC$2&ROW($EC214)),$EB214,$EB$2&ROW($EB214)),$EA214,$EA$2&ROW($EA214)),$DZ214,$DZ$2&ROW($DZ214)),$DY214,$DY$2&ROW($DY214)),$DX214,$DX$2&ROW($DX214)),$DW214,$DW$2&ROW($DW214)),$DV214,$DV$2&ROW($DV214)),$DU214,$DU$2&ROW($DU214)),$DT214,$DT$2&ROW($DT214)),$DS214,$DS$2&ROW($DS214)))","v":0},{"$f":"IF(U214=\"\",0,\"X=\"&SUBSTITUTE(SUBSTITUTE(SUBSTITUTE(SUBSTITUTE(SUBSTITUTE(SUBSTITUTE(SUBSTITUTE(SUBSTITUTE(SUBSTITUTE(SUBSTITUTE(SUBSTITUTE(SUBSTITUTE(U214,$ED214,$ED$2&ROW($ED214)),$EC214,$EC$2&ROW($EC214)),$EB214,$EB$2&ROW($EB214)),$EA214,$EA$2&ROW($EA214)),$DZ214,$DZ$2&ROW($DZ214)),$DY214,$DY$2&ROW($DY214)),$DX214,$DX$2&ROW($DX214)),$DW214,$DW$2&ROW($DW214)),$DV214,$DV$2&ROW($DV214)),$DU214,$DU$2&ROW($DU214)),$DT214,$DT$2&ROW($DT214)),$DS214,$DS$2&ROW($DS214)))","v":"X=AS214*if(AS214=0,0,0.012)"},{"$f":"IF(V214=\"\",0,\"X=\"&SUBSTITUTE(SUBSTITUTE(SUBSTITUTE(SUBSTITUTE(SUBSTITUTE(SUBSTITUTE(SUBSTITUTE(SUBSTITUTE(SUBSTITUTE(SUBSTITUTE(SUBSTITUTE(SUBSTITUTE(V214,$ED214,$ED$2&ROW($ED214)),$EC214,$EC$2&ROW($EC214)),$EB214,$EB$2&ROW($EB214)),$EA214,$EA$2&ROW($EA214)),$DZ214,$DZ$2&ROW($DZ214)),$DY214,$DY$2&ROW($DY214)),$DX214,$DX$2&ROW($DX214)),$DW214,$DW$2&ROW($DW214)),$DV214,$DV$2&ROW($DV214)),$DU214,$DU$2&ROW($DU214)),$DT214,$DT$2&ROW($DT214)),$DS214,$DS$2&ROW($DS214)))","v":"X=AS214*if(AS214=0,0,0.010)"},{"$f":"IF(W214=\"\",0,\"X=\"&SUBSTITUTE(SUBSTITUTE(SUBSTITUTE(SUBSTITUTE(SUBSTITUTE(SUBSTITUTE(SUBSTITUTE(SUBSTITUTE(SUBSTITUTE(SUBSTITUTE(SUBSTITUTE(SUBSTITUTE(W214,$ED214,$ED$2&ROW($ED214)),$EC214,$EC$2&ROW($EC214)),$EB214,$EB$2&ROW($EB214)),$EA214,$EA$2&ROW($EA214)),$DZ214,$DZ$2&ROW($DZ214)),$DY214,$DY$2&ROW($DY214)),$DX214,$DX$2&ROW($DX214)),$DW214,$DW$2&ROW($DW214)),$DV214,$DV$2&ROW($DV214)),$DU214,$DU$2&ROW($DU214)),$DT214,$DT$2&ROW($DT214)),$DS214,$DS$2&ROW($DS214)))","v":0},{"$f":"IF(X214=\"\",0,\"X=\"&SUBSTITUTE(SUBSTITUTE(SUBSTITUTE(SUBSTITUTE(SUBSTITUTE(SUBSTITUTE(SUBSTITUTE(SUBSTITUTE(SUBSTITUTE(SUBSTITUTE(SUBSTITUTE(SUBSTITUTE(X214,$ED214,$ED$2&ROW($ED214)),$EC214,$EC$2&ROW($EC214)),$EB214,$EB$2&ROW($EB214)),$EA214,$EA$2&ROW($EA214)),$DZ214,$DZ$2&ROW($DZ214)),$DY214,$DY$2&ROW($DY214)),$DX214,$DX$2&ROW($DX214)),$DW214,$DW$2&ROW($DW214)),$DV214,$DV$2&ROW($DV214)),$DU214,$DU$2&ROW($DU214)),$DT214,$DT$2&ROW($DT214)),$DS214,$DS$2&ROW($DS214)))","v":0},{"$f":"IF(Y214=\"\",0,\"X=\"&SUBSTITUTE(SUBSTITUTE(SUBSTITUTE(SUBSTITUTE(SUBSTITUTE(SUBSTITUTE(SUBSTITUTE(SUBSTITUTE(SUBSTITUTE(SUBSTITUTE(SUBSTITUTE(SUBSTITUTE(Y214,$ED214,$ED$2&ROW($ED214)),$EC214,$EC$2&ROW($EC214)),$EB214,$EB$2&ROW($EB214)),$EA214,$EA$2&ROW($EA214)),$DZ214,$DZ$2&ROW($DZ214)),$DY214,$DY$2&ROW($DY214)),$DX214,$DX$2&ROW($DX214)),$DW214,$DW$2&ROW($DW214)),$DV214,$DV$2&ROW($DV214)),$DU214,$DU$2&ROW($DU214)),$DT214,$DT$2&ROW($DT214)),$DS214,$DS$2&ROW($DS214)))","v":0},{"$f":"IF(Z214=\"\",0,\"X=\"&SUBSTITUTE(SUBSTITUTE(SUBSTITUTE(SUBSTITUTE(SUBSTITUTE(SUBSTITUTE(SUBSTITUTE(SUBSTITUTE(SUBSTITUTE(SUBSTITUTE(SUBSTITUTE(SUBSTITUTE(Z214,$ED214,$ED$2&ROW($ED214)),$EC214,$EC$2&ROW($EC214)),$EB214,$EB$2&ROW($EB214)),$EA214,$EA$2&ROW($EA214)),$DZ214,$DZ$2&ROW($DZ214)),$DY214,$DY$2&ROW($DY214)),$DX214,$DX$2&ROW($DX214)),$DW214,$DW$2&ROW($DW214)),$DV214,$DV$2&ROW($DV214)),$DU214,$DU$2&ROW($DU214)),$DT214,$DT$2&ROW($DT214)),$DS214,$DS$2&ROW($DS214)))","v":0},{"$f":"IF(AA214=\"\",0,\"X=\"&SUBSTITUTE(SUBSTITUTE(SUBSTITUTE(SUBSTITUTE(SUBSTITUTE(SUBSTITUTE(SUBSTITUTE(SUBSTITUTE(SUBSTITUTE(SUBSTITUTE(SUBSTITUTE(SUBSTITUTE(AA214,$ED214,$ED$2&ROW($ED214)),$EC214,$EC$2&ROW($EC214)),$EB214,$EB$2&ROW($EB214)),$EA214,$EA$2&ROW($EA214)),$DZ214,$DZ$2&ROW($DZ214)),$DY214,$DY$2&ROW($DY214)),$DX214,$DX$2&ROW($DX214)),$DW214,$DW$2&ROW($DW214)),$DV214,$DV$2&ROW($DV214)),$DU214,$DU$2&ROW($DU214)),$DT214,$DT$2&ROW($DT214)),$DS214,$DS$2&ROW($DS214)))","v":0},{"$f":"IF(AB214=\"\",0,\"X=\"&SUBSTITUTE(SUBSTITUTE(SUBSTITUTE(SUBSTITUTE(SUBSTITUTE(SUBSTITUTE(SUBSTITUTE(SUBSTITUTE(SUBSTITUTE(SUBSTITUTE(SUBSTITUTE(SUBSTITUTE(AB214,$ED214,$ED$2&ROW($ED214)),$EC214,$EC$2&ROW($EC214)),$EB214,$EB$2&ROW($EB214)),$EA214,$EA$2&ROW($EA214)),$DZ214,$DZ$2&ROW($DZ214)),$DY214,$DY$2&ROW($DY214)),$DX214,$DX$2&ROW($DX214)),$DW214,$DW$2&ROW($DW214)),$DV214,$DV$2&ROW($DV214)),$DU214,$DU$2&ROW($DU214)),$DT214,$DT$2&ROW($DT214)),$DS214,$DS$2&ROW($DS214)))","v":"X=if(AS214=0,0,AS214*3153)"},null,null,"{Factor:WinterCF}","{Factor:SummerCF}",{"$f":"IFERROR(INDEX($EG214:$IV214,MATCH(0,COUNTIF($DR214:DT214,$EG214:$IV214),0)),\"\")","v":"{Measure:Quantity}"},{"$f":"IFERROR(INDEX($EG214:$IV214,MATCH(0,COUNTIF($DR214:DU214,$EG214:$IV214),0)),\"\")","v":""},{"$f":"IFERROR(INDEX($EG214:$IV214,MATCH(0,COUNTIF($DR214:DV214,$EG214:$IV214),0)),\"\")","v":""},{"$f":"IFERROR(INDEX($EG214:$IV214,MATCH(0,COUNTIF($DR214:DW214,$EG214:$IV214),0)),\"\")","v":""},{"$f":"IFERROR(INDEX($EG214:$IV214,MATCH(0,COUNTIF($DR214:DX214,$EG214:$IV214),0)),\"\")","v":""},{"$f":"IFERROR(INDEX($EG214:$IV214,MATCH(0,COUNTIF($DR214:DY214,$EG214:$IV214),0)),\"\")","v":""},{"$f":"IFERROR(INDEX($EG214:$IV214,MATCH(0,COUNTIF($DR214:DZ214,$EG214:$IV214),0)),\"\")","v":""},{"$f":"IFERROR(INDEX($EG214:$IV214,MATCH(0,COUNTIF($DR214:EA214,$EG214:$IV214),0)),\"\")","v":""},{"$f":"IFERROR(INDEX($EG214:$IV214,MATCH(0,COUNTIF($DR214:EB214,$EG214:$IV214),0)),\"\")","v":""},{"$f":"IFERROR(INDEX($EG214:$IV214,MATCH(0,COUNTIF($DR214:EC214,$EG214:$IV214),0)),\"\")","v":""},null,null,{"$f":"IFERROR(MID($G214,FIND(CHAR(160),SUBSTITUTE($G214,\"{\",CHAR(160),EG$1)),FIND(CHAR(160),SUBSTITUTE($G214,\"}\",CHAR(160),EG$1))-FIND(CHAR(160),SUBSTITUTE($G214,\"{\",CHAR(160),EG$1))+1),\"\")","v":"{Measure:Quantity}"},{"$f":"IFERROR(MID($G214,FIND(CHAR(160),SUBSTITUTE($G214,\"{\",CHAR(160),EH$1)),FIND(CHAR(160),SUBSTITUTE($G214,\"}\",CHAR(160),EH$1))-FIND(CHAR(160),SUBSTITUTE($G214,\"{\",CHAR(160),EH$1))+1),\"\")","v":""},{"$f":"IFERROR(MID($G214,FIND(CHAR(160),SUBSTITUTE($G214,\"{\",CHAR(160),EI$1)),FIND(CHAR(160),SUBSTITUTE($G214,\"}\",CHAR(160),EI$1))-FIND(CHAR(160),SUBSTITUTE($G214,\"{\",CHAR(160),EI$1))+1),\"\")","v":""},{"$f":"IFERROR(MID($G214,FIND(CHAR(160),SUBSTITUTE($G214,\"{\",CHAR(160),EJ$1)),FIND(CHAR(160),SUBSTITUTE($G214,\"}\",CHAR(160),EJ$1))-FIND(CHAR(160),SUBSTITUTE($G214,\"{\",CHAR(160),EJ$1))+1),\"\")","v":""},{"$f":"IFERROR(MID($G214,FIND(CHAR(160),SUBSTITUTE($G214,\"{\",CHAR(160),EK$1)),FIND(CHAR(160),SUBSTITUTE($G214,\"}\",CHAR(160),EK$1))-FIND(CHAR(160),SUBSTITUTE($G214,\"{\",CHAR(160),EK$1))+1),\"\")","v":""},{"$f":"IFERROR(MID($G214,FIND(CHAR(160),SUBSTITUTE($G214,\"{\",CHAR(160),EL$1)),FIND(CHAR(160),SUBSTITUTE($G214,\"}\",CHAR(160),EL$1))-FIND(CHAR(160),SUBSTITUTE($G214,\"{\",CHAR(160),EL$1))+1),\"\")","v":""},{"$f":"IFERROR(MID($G214,FIND(CHAR(160),SUBSTITUTE($G214,\"{\",CHAR(160),EM$1)),FIND(CHAR(160),SUBSTITUTE($G214,\"}\",CHAR(160),EM$1))-FIND(CHAR(160),SUBSTITUTE($G214,\"{\",CHAR(160),EM$1))+1),\"\")","v":""},{"$f":"IFERROR(MID($G214,FIND(CHAR(160),SUBSTITUTE($G214,\"{\",CHAR(160),EN$1)),FIND(CHAR(160),SUBSTITUTE($G214,\"}\",CHAR(160),EN$1))-FIND(CHAR(160),SUBSTITUTE($G214,\"{\",CHAR(160),EN$1))+1),\"\")","v":""},{"$f":"IFERROR(MID($G214,FIND(CHAR(160),SUBSTITUTE($G214,\"{\",CHAR(160),EO$1)),FIND(CHAR(160),SUBSTITUTE($G214,\"}\",CHAR(160),EO$1))-FIND(CHAR(160),SUBSTITUTE($G214,\"{\",CHAR(160),EO$1))+1),\"\")","v":""},{"$f":"IFERROR(MID($G214,FIND(CHAR(160),SUBSTITUTE($G214,\"{\",CHAR(160),EP$1)),FIND(CHAR(160),SUBSTITUTE($G214,\"}\",CHAR(160),EP$1))-FIND(CHAR(160),SUBSTITUTE($G214,\"{\",CHAR(160),EP$1))+1),\"\")","v":""},{"$f":"IFERROR(MID($J214,FIND(CHAR(160),SUBSTITUTE($J214,\"{\",CHAR(160),EQ$1)),FIND(CHAR(160),SUBSTITUTE($J214,\"}\",CHAR(160),EQ$1))-FIND(CHAR(160),SUBSTITUTE($J214,\"{\",CHAR(160),EQ$1))+1),\"\")","v":"{Measure:Quantity}"},{"$f":"IFERROR(MID($J214,FIND(CHAR(160),SUBSTITUTE($J214,\"{\",CHAR(160),ER$1)),FIND(CHAR(160),SUBSTITUTE($J214,\"}\",CHAR(160),ER$1))-FIND(CHAR(160),SUBSTITUTE($J214,\"{\",CHAR(160),ER$1))+1),\"\")","v":""},{"$f":"IFERROR(MID($J214,FIND(CHAR(160),SUBSTITUTE($J214,\"{\",CHAR(160),ES$1)),FIND(CHAR(160),SUBSTITUTE($J214,\"}\",CHAR(160),ES$1))-FIND(CHAR(160),SUBSTITUTE($J214,\"{\",CHAR(160),ES$1))+1),\"\")","v":""},{"$f":"IFERROR(MID($J214,FIND(CHAR(160),SUBSTITUTE($J214,\"{\",CHAR(160),ET$1)),FIND(CHAR(160),SUBSTITUTE($J214,\"}\",CHAR(160),ET$1))-FIND(CHAR(160),SUBSTITUTE($J214,\"{\",CHAR(160),ET$1))+1),\"\")","v":""},{"$f":"IFERROR(MID($J214,FIND(CHAR(160),SUBSTITUTE($J214,\"{\",CHAR(160),EU$1)),FIND(CHAR(160),SUBSTITUTE($J214,\"}\",CHAR(160),EU$1))-FIND(CHAR(160),SUBSTITUTE($J214,\"{\",CHAR(160),EU$1))+1),\"\")","v":""},{"$f":"IFERROR(MID($J214,FIND(CHAR(160),SUBSTITUTE($J214,\"{\",CHAR(160),EV$1)),FIND(CHAR(160),SUBSTITUTE($J214,\"}\",CHAR(160),EV$1))-FIND(CHAR(160),SUBSTITUTE($J214,\"{\",CHAR(160),EV$1))+1),\"\")","v":""},{"$f":"IFERROR(MID($J214,FIND(CHAR(160),SUBSTITUTE($J214,\"{\",CHAR(160),EW$1)),FIND(CHAR(160),SUBSTITUTE($J214,\"}\",CHAR(160),EW$1))-FIND(CHAR(160),SUBSTITUTE($J214,\"{\",CHAR(160),EW$1))+1),\"\")","v":""},{"$f":"IFERROR(MID($J214,FIND(CHAR(160),SUBSTITUTE($J214,\"{\",CHAR(160),EX$1)),FIND(CHAR(160),SUBSTITUTE($J214,\"}\",CHAR(160),EX$1))-FIND(CHAR(160),SUBSTITUTE($J214,\"{\",CHAR(160),EX$1))+1),\"\")","v":""},{"$f":"IFERROR(MID($J214,FIND(CHAR(160),SUBSTITUTE($J214,\"{\",CHAR(160),EY$1)),FIND(CHAR(160),SUBSTITUTE($J214,\"}\",CHAR(160),EY$1))-FIND(CHAR(160),SUBSTITUTE($J214,\"{\",CHAR(160),EY$1))+1),\"\")","v":""},{"$f":"IFERROR(MID($J214,FIND(CHAR(160),SUBSTITUTE($J214,\"{\",CHAR(160),EZ$1)),FIND(CHAR(160),SUBSTITUTE($J214,\"}\",CHAR(160),EZ$1))-FIND(CHAR(160),SUBSTITUTE($J214,\"{\",CHAR(160),EZ$1))+1),\"\")","v":""},{"$f":"IFERROR(MID($J214,FIND(CHAR(160),SUBSTITUTE($J214,\"{\",CHAR(160),FA$1)),FIND(CHAR(160),SUBSTITUTE($J214,\"}\",CHAR(160),FA$1))-FIND(CHAR(160),SUBSTITUTE($J214,\"{\",CHAR(160),FA$1))+1),\"\")","v":"{Measure:Quantity}"},{"$f":"IFERROR(MID($J214,FIND(CHAR(160),SUBSTITUTE($J214,\"{\",CHAR(160),FB$1)),FIND(CHAR(160),SUBSTITUTE($J214,\"}\",CHAR(160),FB$1))-FIND(CHAR(160),SUBSTITUTE($J214,\"{\",CHAR(160),FB$1))+1),\"\")","v":""},{"$f":"IFERROR(MID($O214,FIND(CHAR(160),SUBSTITUTE($O214,\"{\",CHAR(160),FC$1)),FIND(CHAR(160),SUBSTITUTE($O214,\"}\",CHAR(160),FC$1))-FIND(CHAR(160),SUBSTITUTE($O214,\"{\",CHAR(160),FC$1))+1),\"\")","v":""},{"$f":"IFERROR(MID($O214,FIND(CHAR(160),SUBSTITUTE($O214,\"{\",CHAR(160),FD$1)),FIND(CHAR(160),SUBSTITUTE($O214,\"}\",CHAR(160),FD$1))-FIND(CHAR(160),SUBSTITUTE($O214,\"{\",CHAR(160),FD$1))+1),\"\")","v":""},{"$f":"IFERROR(MID($O214,FIND(CHAR(160),SUBSTITUTE($O214,\"{\",CHAR(160),FE$1)),FIND(CHAR(160),SUBSTITUTE($O214,\"}\",CHAR(160),FE$1))-FIND(CHAR(160),SUBSTITUTE($O214,\"{\",CHAR(160),FE$1))+1),\"\")","v":""},{"$f":"IFERROR(MID($O214,FIND(CHAR(160),SUBSTITUTE($O214,\"{\",CHAR(160),FF$1)),FIND(CHAR(160),SUBSTITUTE($O214,\"}\",CHAR(160),FF$1))-FIND(CHAR(160),SUBSTITUTE($O214,\"{\",CHAR(160),FF$1))+1),\"\")","v":""},{"$f":"IFERROR(MID($O214,FIND(CHAR(160),SUBSTITUTE($O214,\"{\",CHAR(160),FG$1)),FIND(CHAR(160),SUBSTITUTE($O214,\"}\",CHAR(160),FG$1))-FIND(CHAR(160),SUBSTITUTE($O214,\"{\",CHAR(160),FG$1))+1),\"\")","v":""},{"$f":"IFERROR(MID($O214,FIND(CHAR(160),SUBSTITUTE($O214,\"{\",CHAR(160),FH$1)),FIND(CHAR(160),SUBSTITUTE($O214,\"}\",CHAR(160),FH$1))-FIND(CHAR(160),SUBSTITUTE($O214,\"{\",CHAR(160),FH$1))+1),\"\")","v":""},{"$f":"IFERROR(MID($O214,FIND(CHAR(160),SUBSTITUTE($O214,\"{\",CHAR(160),FI$1)),FIND(CHAR(160),SUBSTITUTE($O214,\"}\",CHAR(160),FI$1))-FIND(CHAR(160),SUBSTITUTE($O214,\"{\",CHAR(160),FI$1))+1),\"\")","v":""},{"$f":"IFERROR(MID($O214,FIND(CHAR(160),SUBSTITUTE($O214,\"{\",CHAR(160),FJ$1)),FIND(CHAR(160),SUBSTITUTE($O214,\"}\",CHAR(160),FJ$1))-FIND(CHAR(160),SUBSTITUTE($O214,\"{\",CHAR(160),FJ$1))+1),\"\")","v":""},{"$f":"IFERROR(MID($O214,FIND(CHAR(160),SUBSTITUTE($O214,\"{\",CHAR(160),FK$1)),FIND(CHAR(160),SUBSTITUTE($O214,\"}\",CHAR(160),FK$1))-FIND(CHAR(160),SUBSTITUTE($O214,\"{\",CHAR(160),FK$1))+1),\"\")","v":"{Measure:Quantity}"},{"$f":"IFERROR(MID($O214,FIND(CHAR(160),SUBSTITUTE($O214,\"{\",CHAR(160),FL$1)),FIND(CHAR(160),SUBSTITUTE($O214,\"}\",CHAR(160),FL$1))-FIND(CHAR(160),SUBSTITUTE($O214,\"{\",CHAR(160),FL$1))+1),\"\")","v":"{Measure:Quantity}"},{"$f":"IFERROR(MID($R214,FIND(CHAR(160),SUBSTITUTE($R214,\"{\",CHAR(160),FM$1)),FIND(CHAR(160),SUBSTITUTE($R214,\"}\",CHAR(160),FM$1))-FIND(CHAR(160),SUBSTITUTE($R214,\"{\",CHAR(160),FM$1))+1),\"\")","v":""},{"$f":"IFERROR(MID($R214,FIND(CHAR(160),SUBSTITUTE($R214,\"{\",CHAR(160),FN$1)),FIND(CHAR(160),SUBSTITUTE($R214,\"}\",CHAR(160),FN$1))-FIND(CHAR(160),SUBSTITUTE($R214,\"{\",CHAR(160),FN$1))+1),\"\")","v":""},{"$f":"IFERROR(MID($R214,FIND(CHAR(160),SUBSTITUTE($R214,\"{\",CHAR(160),FO$1)),FIND(CHAR(160),SUBSTITUTE($R214,\"}\",CHAR(160),FO$1))-FIND(CHAR(160),SUBSTITUTE($R214,\"{\",CHAR(160),FO$1))+1),\"\")","v":""},{"$f":"IFERROR(MID($R214,FIND(CHAR(160),SUBSTITUTE($R214,\"{\",CHAR(160),FP$1)),FIND(CHAR(160),SUBSTITUTE($R214,\"}\",CHAR(160),FP$1))-FIND(CHAR(160),SUBSTITUTE($R214,\"{\",CHAR(160),FP$1))+1),\"\")","v":""},{"$f":"IFERROR(MID($R214,FIND(CHAR(160),SUBSTITUTE($R214,\"{\",CHAR(160),FQ$1)),FIND(CHAR(160),SUBSTITUTE($R214,\"}\",CHAR(160),FQ$1))-FIND(CHAR(160),SUBSTITUTE($R214,\"{\",CHAR(160),FQ$1))+1),\"\")","v":""},{"$f":"IFERROR(MID($R214,FIND(CHAR(160),SUBSTITUTE($R214,\"{\",CHAR(160),FR$1)),FIND(CHAR(160),SUBSTITUTE($R214,\"}\",CHAR(160),FR$1))-FIND(CHAR(160),SUBSTITUTE($R214,\"{\",CHAR(160),FR$1))+1),\"\")","v":""},{"$f":"IFERROR(MID($R214,FIND(CHAR(160),SUBSTITUTE($R214,\"{\",CHAR(160),FS$1)),FIND(CHAR(160),SUBSTITUTE($R214,\"}\",CHAR(160),FS$1))-FIND(CHAR(160),SUBSTITUTE($R214,\"{\",CHAR(160),FS$1))+1),\"\")","v":""},{"$f":"IFERROR(MID($R214,FIND(CHAR(160),SUBSTITUTE($R214,\"{\",CHAR(160),FT$1)),FIND(CHAR(160),SUBSTITUTE($R214,\"}\",CHAR(160),FT$1))-FIND(CHAR(160),SUBSTITUTE($R214,\"{\",CHAR(160),FT$1))+1),\"\")","v":""},{"$f":"IFERROR(MID($R214,FIND(CHAR(160),SUBSTITUTE($R214,\"{\",CHAR(160),FU$1)),FIND(CHAR(160),SUBSTITUTE($R214,\"}\",CHAR(160),FU$1))-FIND(CHAR(160),SUBSTITUTE($R214,\"{\",CHAR(160),FU$1))+1),\"\")","v":""},{"$f":"IFERROR(MID($R214,FIND(CHAR(160),SUBSTITUTE($R214,\"{\",CHAR(160),FV$1)),FIND(CHAR(160),SUBSTITUTE($R214,\"}\",CHAR(160),FV$1))-FIND(CHAR(160),SUBSTITUTE($R214,\"{\",CHAR(160),FV$1))+1),\"\")","v":""},{"$f":"IFERROR(MID($U214,FIND(CHAR(160),SUBSTITUTE($U214,\"{\",CHAR(160),FW$1)),FIND(CHAR(160),SUBSTITUTE($U214,\"}\",CHAR(160),FW$1))-FIND(CHAR(160),SUBSTITUTE($U214,\"{\",CHAR(160),FW$1))+1),\"\")","v":""},{"$f":"IFERROR(MID($U214,FIND(CHAR(160),SUBSTITUTE($U214,\"{\",CHAR(160),FX$1)),FIND(CHAR(160),SUBSTITUTE($U214,\"}\",CHAR(160),FX$1))-FIND(CHAR(160),SUBSTITUTE($U214,\"{\",CHAR(160),FX$1))+1),\"\")","v":""},{"$f":"IFERROR(MID($U214,FIND(CHAR(160),SUBSTITUTE($U214,\"{\",CHAR(160),FY$1)),FIND(CHAR(160),SUBSTITUTE($U214,\"}\",CHAR(160),FY$1))-FIND(CHAR(160),SUBSTITUTE($U214,\"{\",CHAR(160),FY$1))+1),\"\")","v":""},{"$f":"IFERROR(MID($U214,FIND(CHAR(160),SUBSTITUTE($U214,\"{\",CHAR(160),FZ$1)),FIND(CHAR(160),SUBSTITUTE($U214,\"}\",CHAR(160),FZ$1))-FIND(CHAR(160),SUBSTITUTE($U214,\"{\",CHAR(160),FZ$1))+1),\"\")","v":""},{"$f":"IFERROR(MID($U214,FIND(CHAR(160),SUBSTITUTE($U214,\"{\",CHAR(160),GA$1)),FIND(CHAR(160),SUBSTITUTE($U214,\"}\",CHAR(160),GA$1))-FIND(CHAR(160),SUBSTITUTE($U214,\"{\",CHAR(160),GA$1))+1),\"\")","v":""},{"$f":"IFERROR(MID($U214,FIND(CHAR(160),SUBSTITUTE($U214,\"{\",CHAR(160),GB$1)),FIND(CHAR(160),SUBSTITUTE($U214,\"}\",CHAR(160),GB$1))-FIND(CHAR(160),SUBSTITUTE($U214,\"{\",CHAR(160),GB$1))+1),\"\")","v":""},{"$f":"IFERROR(MID($U214,FIND(CHAR(160),SUBSTITUTE($U214,\"{\",CHAR(160),GC$1)),FIND(CHAR(160),SUBSTITUTE($U214,\"}\",CHAR(160),GC$1))-FIND(CHAR(160),SUBSTITUTE($U214,\"{\",CHAR(160),GC$1))+1),\"\")","v":""},{"$f":"IFERROR(MID($U214,FIND(CHAR(160),SUBSTITUTE($U214,\"{\",CHAR(160),GD$1)),FIND(CHAR(160),SUBSTITUTE($U214,\"}\",CHAR(160),GD$1))-FIND(CHAR(160),SUBSTITUTE($U214,\"{\",CHAR(160),GD$1))+1),\"\")","v":""},{"$f":"IFERROR(MID($U214,FIND(CHAR(160),SUBSTITUTE($U214,\"{\",CHAR(160),GE$1)),FIND(CHAR(160),SUBSTITUTE($U214,\"}\",CHAR(160),GE$1))-FIND(CHAR(160),SUBSTITUTE($U214,\"{\",CHAR(160),GE$1))+1),\"\")","v":"{Measure:Quantity}"},{"$f":"IFERROR(MID($U214,FIND(CHAR(160),SUBSTITUTE($U214,\"{\",CHAR(160),GF$1)),FIND(CHAR(160),SUBSTITUTE($U214,\"}\",CHAR(160),GF$1))-FIND(CHAR(160),SUBSTITUTE($U214,\"{\",CHAR(160),GF$1))+1),\"\")","v":"{Measure:Quantity}"},{"$f":"IFERROR(MID($V214,FIND(CHAR(160),SUBSTITUTE($V214,\"{\",CHAR(160),GG$1)),FIND(CHAR(160),SUBSTITUTE($V214,\"}\",CHAR(160),GG$1))-FIND(CHAR(160),SUBSTITUTE($V214,\"{\",CHAR(160),GG$1))+1),\"\")","v":""},{"$f":"IFERROR(MID($V214,FIND(CHAR(160),SUBSTITUTE($V214,\"{\",CHAR(160),GH$1)),FIND(CHAR(160),SUBSTITUTE($V214,\"}\",CHAR(160),GH$1))-FIND(CHAR(160),SUBSTITUTE($V214,\"{\",CHAR(160),GH$1))+1),\"\")","v":""},{"$f":"IFERROR(MID($V214,FIND(CHAR(160),SUBSTITUTE($V214,\"{\",CHAR(160),GI$1)),FIND(CHAR(160),SUBSTITUTE($V214,\"}\",CHAR(160),GI$1))-FIND(CHAR(160),SUBSTITUTE($V214,\"{\",CHAR(160),GI$1))+1),\"\")","v":""},{"$f":"IFERROR(MID($V214,FIND(CHAR(160),SUBSTITUTE($V214,\"{\",CHAR(160),GJ$1)),FIND(CHAR(160),SUBSTITUTE($V214,\"}\",CHAR(160),GJ$1))-FIND(CHAR(160),SUBSTITUTE($V214,\"{\",CHAR(160),GJ$1))+1),\"\")","v":""},{"$f":"IFERROR(MID($V214,FIND(CHAR(160),SUBSTITUTE($V214,\"{\",CHAR(160),GK$1)),FIND(CHAR(160),SUBSTITUTE($V214,\"}\",CHAR(160),GK$1))-FIND(CHAR(160),SUBSTITUTE($V214,\"{\",CHAR(160),GK$1))+1),\"\")","v":""},{"$f":"IFERROR(MID($V214,FIND(CHAR(160),SUBSTITUTE($V214,\"{\",CHAR(160),GL$1)),FIND(CHAR(160),SUBSTITUTE($V214,\"}\",CHAR(160),GL$1))-FIND(CHAR(160),SUBSTITUTE($V214,\"{\",CHAR(160),GL$1))+1),\"\")","v":""},{"$f":"IFERROR(MID($V214,FIND(CHAR(160),SUBSTITUTE($V214,\"{\",CHAR(160),GM$1)),FIND(CHAR(160),SUBSTITUTE($V214,\"}\",CHAR(160),GM$1))-FIND(CHAR(160),SUBSTITUTE($V214,\"{\",CHAR(160),GM$1))+1),\"\")","v":""},{"$f":"IFERROR(MID($V214,FIND(CHAR(160),SUBSTITUTE($V214,\"{\",CHAR(160),GN$1)),FIND(CHAR(160),SUBSTITUTE($V214,\"}\",CHAR(160),GN$1))-FIND(CHAR(160),SUBSTITUTE($V214,\"{\",CHAR(160),GN$1))+1),\"\")","v":""},{"$f":"IFERROR(MID($V214,FIND(CHAR(160),SUBSTITUTE($V214,\"{\",CHAR(160),GO$1)),FIND(CHAR(160),SUBSTITUTE($V214,\"}\",CHAR(160),GO$1))-FIND(CHAR(160),SUBSTITUTE($V214,\"{\",CHAR(160),GO$1))+1),\"\")","v":"{Measure:Quantity}"},{"$f":"IFERROR(MID($V214,FIND(CHAR(160),SUBSTITUTE($V214,\"{\",CHAR(160),GP$1)),FIND(CHAR(160),SUBSTITUTE($V214,\"}\",CHAR(160),GP$1))-FIND(CHAR(160),SUBSTITUTE($V214,\"{\",CHAR(160),GP$1))+1),\"\")","v":"{Measure:Quantity}"},{"$f":"IFERROR(MID($W214,FIND(CHAR(160),SUBSTITUTE($W214,\"{\",CHAR(160),GQ$1)),FIND(CHAR(160),SUBSTITUTE($W214,\"}\",CHAR(160),GQ$1))-FIND(CHAR(160),SUBSTITUTE($W214,\"{\",CHAR(160),GQ$1))+1),\"\")","v":""},{"$f":"IFERROR(MID($W214,FIND(CHAR(160),SUBSTITUTE($W214,\"{\",CHAR(160),GR$1)),FIND(CHAR(160),SUBSTITUTE($W214,\"}\",CHAR(160),GR$1))-FIND(CHAR(160),SUBSTITUTE($W214,\"{\",CHAR(160),GR$1))+1),\"\")","v":""},{"$f":"IFERROR(MID($W214,FIND(CHAR(160),SUBSTITUTE($W214,\"{\",CHAR(160),GS$1)),FIND(CHAR(160),SUBSTITUTE($W214,\"}\",CHAR(160),GS$1))-FIND(CHAR(160),SUBSTITUTE($W214,\"{\",CHAR(160),GS$1))+1),\"\")","v":""},{"$f":"IFERROR(MID($W214,FIND(CHAR(160),SUBSTITUTE($W214,\"{\",CHAR(160),GT$1)),FIND(CHAR(160),SUBSTITUTE($W214,\"}\",CHAR(160),GT$1))-FIND(CHAR(160),SUBSTITUTE($W214,\"{\",CHAR(160),GT$1))+1),\"\")","v":""},{"$f":"IFERROR(MID($W214,FIND(CHAR(160),SUBSTITUTE($W214,\"{\",CHAR(160),GU$1)),FIND(CHAR(160),SUBSTITUTE($W214,\"}\",CHAR(160),GU$1))-FIND(CHAR(160),SUBSTITUTE($W214,\"{\",CHAR(160),GU$1))+1),\"\")","v":""},{"$f":"IFERROR(MID($W214,FIND(CHAR(160),SUBSTITUTE($W214,\"{\",CHAR(160),GV$1)),FIND(CHAR(160),SUBSTITUTE($W214,\"}\",CHAR(160),GV$1))-FIND(CHAR(160),SUBSTITUTE($W214,\"{\",CHAR(160),GV$1))+1),\"\")","v":""},{"$f":"IFERROR(MID($W214,FIND(CHAR(160),SUBSTITUTE($W214,\"{\",CHAR(160),GW$1)),FIND(CHAR(160),SUBSTITUTE($W214,\"}\",CHAR(160),GW$1))-FIND(CHAR(160),SUBSTITUTE($W214,\"{\",CHAR(160),GW$1))+1),\"\")","v":""},{"$f":"IFERROR(MID($W214,FIND(CHAR(160),SUBSTITUTE($W214,\"{\",CHAR(160),GX$1)),FIND(CHAR(160),SUBSTITUTE($W214,\"}\",CHAR(160),GX$1))-FIND(CHAR(160),SUBSTITUTE($W214,\"{\",CHAR(160),GX$1))+1),\"\")","v":""},{"$f":"IFERROR(MID($W214,FIND(CHAR(160),SUBSTITUTE($W214,\"{\",CHAR(160),GY$1)),FIND(CHAR(160),SUBSTITUTE($W214,\"}\",CHAR(160),GY$1))-FIND(CHAR(160),SUBSTITUTE($W214,\"{\",CHAR(160),GY$1))+1),\"\")","v":""},{"$f":"IFERROR(MID($W214,FIND(CHAR(160),SUBSTITUTE($W214,\"{\",CHAR(160),GZ$1)),FIND(CHAR(160),SUBSTITUTE($W214,\"}\",CHAR(160),GZ$1))-FIND(CHAR(160),SUBSTITUTE($W214,\"{\",CHAR(160),GZ$1))+1),\"\")","v":""},{"$f":"IFERROR(MID($X214,FIND(CHAR(160),SUBSTITUTE($X214,\"{\",CHAR(160),HA$1)),FIND(CHAR(160),SUBSTITUTE($X214,\"}\",CHAR(160),HA$1))-FIND(CHAR(160),SUBSTITUTE($X214,\"{\",CHAR(160),HA$1))+1),\"\")","v":""},{"$f":"IFERROR(MID($X214,FIND(CHAR(160),SUBSTITUTE($X214,\"{\",CHAR(160),HB$1)),FIND(CHAR(160),SUBSTITUTE($X214,\"}\",CHAR(160),HB$1))-FIND(CHAR(160),SUBSTITUTE($X214,\"{\",CHAR(160),HB$1))+1),\"\")","v":""},{"$f":"IFERROR(MID($X214,FIND(CHAR(160),SUBSTITUTE($X214,\"{\",CHAR(160),HC$1)),FIND(CHAR(160),SUBSTITUTE($X214,\"}\",CHAR(160),HC$1))-FIND(CHAR(160),SUBSTITUTE($X214,\"{\",CHAR(160),HC$1))+1),\"\")","v":""},{"$f":"IFERROR(MID($X214,FIND(CHAR(160),SUBSTITUTE($X214,\"{\",CHAR(160),HD$1)),FIND(CHAR(160),SUBSTITUTE($X214,\"}\",CHAR(160),HD$1))-FIND(CHAR(160),SUBSTITUTE($X214,\"{\",CHAR(160),HD$1))+1),\"\")","v":""},{"$f":"IFERROR(MID($X214,FIND(CHAR(160),SUBSTITUTE($X214,\"{\",CHAR(160),HE$1)),FIND(CHAR(160),SUBSTITUTE($X214,\"}\",CHAR(160),HE$1))-FIND(CHAR(160),SUBSTITUTE($X214,\"{\",CHAR(160),HE$1))+1),\"\")","v":""},{"$f":"IFERROR(MID($X214,FIND(CHAR(160),SUBSTITUTE($X214,\"{\",CHAR(160),HF$1)),FIND(CHAR(160),SUBSTITUTE($X214,\"}\",CHAR(160),HF$1))-FIND(CHAR(160),SUBSTITUTE($X214,\"{\",CHAR(160),HF$1))+1),\"\")","v":""},{"$f":"IFERROR(MID($X214,FIND(CHAR(160),SUBSTITUTE($X214,\"{\",CHAR(160),HG$1)),FIND(CHAR(160),SUBSTITUTE($X214,\"}\",CHAR(160),HG$1))-FIND(CHAR(160),SUBSTITUTE($X214,\"{\",CHAR(160),HG$1))+1),\"\")","v":""},{"$f":"IFERROR(MID($X214,FIND(CHAR(160),SUBSTITUTE($X214,\"{\",CHAR(160),HH$1)),FIND(CHAR(160),SUBSTITUTE($X214,\"}\",CHAR(160),HH$1))-FIND(CHAR(160),SUBSTITUTE($X214,\"{\",CHAR(160),HH$1))+1),\"\")","v":""},{"$f":"IFERROR(MID($X214,FIND(CHAR(160),SUBSTITUTE($X214,\"{\",CHAR(160),HI$1)),FIND(CHAR(160),SUBSTITUTE($X214,\"}\",CHAR(160),HI$1))-FIND(CHAR(160),SUBSTITUTE($X214,\"{\",CHAR(160),HI$1))+1),\"\")","v":""},{"$f":"IFERROR(MID($X214,FIND(CHAR(160),SUBSTITUTE($X214,\"{\",CHAR(160),HJ$1)),FIND(CHAR(160),SUBSTITUTE($X214,\"}\",CHAR(160),HJ$1))-FIND(CHAR(160),SUBSTITUTE($X214,\"{\",CHAR(160),HJ$1))+1),\"\")","v":""},{"$f":"IFERROR(MID($Y214,FIND(CHAR(160),SUBSTITUTE($Y214,\"{\",CHAR(160),HK$1)),FIND(CHAR(160),SUBSTITUTE($Y214,\"}\",CHAR(160),HK$1))-FIND(CHAR(160),SUBSTITUTE($Y214,\"{\",CHAR(160),HK$1))+1),\"\")","v":""},{"$f":"IFERROR(MID($Y214,FIND(CHAR(160),SUBSTITUTE($Y214,\"{\",CHAR(160),HL$1)),FIND(CHAR(160),SUBSTITUTE($Y214,\"}\",CHAR(160),HL$1))-FIND(CHAR(160),SUBSTITUTE($Y214,\"{\",CHAR(160),HL$1))+1),\"\")","v":""},{"$f":"IFERROR(MID($Y214,FIND(CHAR(160),SUBSTITUTE($Y214,\"{\",CHAR(160),HM$1)),FIND(CHAR(160),SUBSTITUTE($Y214,\"}\",CHAR(160),HM$1))-FIND(CHAR(160),SUBSTITUTE($Y214,\"{\",CHAR(160),HM$1))+1),\"\")","v":""},{"$f":"IFERROR(MID($Y214,FIND(CHAR(160),SUBSTITUTE($Y214,\"{\",CHAR(160),HN$1)),FIND(CHAR(160),SUBSTITUTE($Y214,\"}\",CHAR(160),HN$1))-FIND(CHAR(160),SUBSTITUTE($Y214,\"{\",CHAR(160),HN$1))+1),\"\")","v":""},{"$f":"IFERROR(MID($Y214,FIND(CHAR(160),SUBSTITUTE($Y214,\"{\",CHAR(160),HO$1)),FIND(CHAR(160),SUBSTITUTE($Y214,\"}\",CHAR(160),HO$1))-FIND(CHAR(160),SUBSTITUTE($Y214,\"{\",CHAR(160),HO$1))+1),\"\")","v":""},{"$f":"IFERROR(MID($Y214,FIND(CHAR(160),SUBSTITUTE($Y214,\"{\",CHAR(160),HP$1)),FIND(CHAR(160),SUBSTITUTE($Y214,\"}\",CHAR(160),HP$1))-FIND(CHAR(160),SUBSTITUTE($Y214,\"{\",CHAR(160),HP$1))+1),\"\")","v":""},{"$f":"IFERROR(MID($Y214,FIND(CHAR(160),SUBSTITUTE($Y214,\"{\",CHAR(160),HQ$1)),FIND(CHAR(160),SUBSTITUTE($Y214,\"}\",CHAR(160),HQ$1))-FIND(CHAR(160),SUBSTITUTE($Y214,\"{\",CHAR(160),HQ$1))+1),\"\")","v":""},{"$f":"IFERROR(MID($Y214,FIND(CHAR(160),SUBSTITUTE($Y214,\"{\",CHAR(160),HR$1)),FIND(CHAR(160),SUBSTITUTE($Y214,\"}\",CHAR(160),HR$1))-FIND(CHAR(160),SUBSTITUTE($Y214,\"{\",CHAR(160),HR$1))+1),\"\")","v":""},{"$f":"IFERROR(MID($Y214,FIND(CHAR(160),SUBSTITUTE($Y214,\"{\",CHAR(160),HS$1)),FIND(CHAR(160),SUBSTITUTE($Y214,\"}\",CHAR(160),HS$1))-FIND(CHAR(160),SUBSTITUTE($Y214,\"{\",CHAR(160),HS$1))+1),\"\")","v":""},{"$f":"IFERROR(MID($Y214,FIND(CHAR(160),SUBSTITUTE($Y214,\"{\",CHAR(160),HT$1)),FIND(CHAR(160),SUBSTITUTE($Y214,\"}\",CHAR(160),HT$1))-FIND(CHAR(160),SUBSTITUTE($Y214,\"{\",CHAR(160),HT$1))+1),\"\")","v":""},{"$f":"IFERROR(MID($Z214,FIND(CHAR(160),SUBSTITUTE($Z214,\"{\",CHAR(160),HU$1)),FIND(CHAR(160),SUBSTITUTE($Z214,\"}\",CHAR(160),HU$1))-FIND(CHAR(160),SUBSTITUTE($Z214,\"{\",CHAR(160),HU$1))+1),\"\")","v":""},{"$f":"IFERROR(MID($Z214,FIND(CHAR(160),SUBSTITUTE($Z214,\"{\",CHAR(160),HV$1)),FIND(CHAR(160),SUBSTITUTE($Z214,\"}\",CHAR(160),HV$1))-FIND(CHAR(160),SUBSTITUTE($Z214,\"{\",CHAR(160),HV$1))+1),\"\")","v":""},{"$f":"IFERROR(MID($Z214,FIND(CHAR(160),SUBSTITUTE($Z214,\"{\",CHAR(160),HW$1)),FIND(CHAR(160),SUBSTITUTE($Z214,\"}\",CHAR(160),HW$1))-FIND(CHAR(160),SUBSTITUTE($Z214,\"{\",CHAR(160),HW$1))+1),\"\")","v":""},{"$f":"IFERROR(MID($Z214,FIND(CHAR(160),SUBSTITUTE($Z214,\"{\",CHAR(160),HX$1)),FIND(CHAR(160),SUBSTITUTE($Z214,\"}\",CHAR(160),HX$1))-FIND(CHAR(160),SUBSTITUTE($Z214,\"{\",CHAR(160),HX$1))+1),\"\")","v":""},{"$f":"IFERROR(MID($Z214,FIND(CHAR(160),SUBSTITUTE($Z214,\"{\",CHAR(160),HY$1)),FIND(CHAR(160),SUBSTITUTE($Z214,\"}\",CHAR(160),HY$1))-FIND(CHAR(160),SUBSTITUTE($Z214,\"{\",CHAR(160),HY$1))+1),\"\")","v":""},{"$f":"IFERROR(MID($Z214,FIND(CHAR(160),SUBSTITUTE($Z214,\"{\",CHAR(160),HZ$1)),FIND(CHAR(160),SUBSTITUTE($Z214,\"}\",CHAR(160),HZ$1))-FIND(CHAR(160),SUBSTITUTE($Z214,\"{\",CHAR(160),HZ$1))+1),\"\")","v":""},{"$f":"IFERROR(MID($Z214,FIND(CHAR(160),SUBSTITUTE($Z214,\"{\",CHAR(160),IA$1)),FIND(CHAR(160),SUBSTITUTE($Z214,\"}\",CHAR(160),IA$1))-FIND(CHAR(160),SUBSTITUTE($Z214,\"{\",CHAR(160),IA$1))+1),\"\")","v":""},{"$f":"IFERROR(MID($Z214,FIND(CHAR(160),SUBSTITUTE($Z214,\"{\",CHAR(160),IB$1)),FIND(CHAR(160),SUBSTITUTE($Z214,\"}\",CHAR(160),IB$1))-FIND(CHAR(160),SUBSTITUTE($Z214,\"{\",CHAR(160),IB$1))+1),\"\")","v":""},{"$f":"IFERROR(MID($Z214,FIND(CHAR(160),SUBSTITUTE($Z214,\"{\",CHAR(160),IC$1)),FIND(CHAR(160),SUBSTITUTE($Z214,\"}\",CHAR(160),IC$1))-FIND(CHAR(160),SUBSTITUTE($Z214,\"{\",CHAR(160),IC$1))+1),\"\")","v":""},{"$f":"IFERROR(MID($Z214,FIND(CHAR(160),SUBSTITUTE($Z214,\"{\",CHAR(160),ID$1)),FIND(CHAR(160),SUBSTITUTE($Z214,\"}\",CHAR(160),ID$1))-FIND(CHAR(160),SUBSTITUTE($Z214,\"{\",CHAR(160),ID$1))+1),\"\")","v":""},{"$f":"IFERROR(MID($AA214,FIND(CHAR(160),SUBSTITUTE($AA214,\"{\",CHAR(160),IE$1)),FIND(CHAR(160),SUBSTITUTE($AA214,\"}\",CHAR(160),IE$1))-FIND(CHAR(160),SUBSTITUTE($AA214,\"{\",CHAR(160),IE$1))+1),\"\")","v":""},{"$f":"IFERROR(MID($AA214,FIND(CHAR(160),SUBSTITUTE($AA214,\"{\",CHAR(160),IF$1)),FIND(CHAR(160),SUBSTITUTE($AA214,\"}\",CHAR(160),IF$1))-FIND(CHAR(160),SUBSTITUTE($AA214,\"{\",CHAR(160),IF$1))+1),\"\")","v":""},{"$f":"IFERROR(MID($AA214,FIND(CHAR(160),SUBSTITUTE($AA214,\"{\",CHAR(160),IG$1)),FIND(CHAR(160),SUBSTITUTE($AA214,\"}\",CHAR(160),IG$1))-FIND(CHAR(160),SUBSTITUTE($AA214,\"{\",CHAR(160),IG$1))+1),\"\")","v":""},{"$f":"IFERROR(MID($AA214,FIND(CHAR(160),SUBSTITUTE($AA214,\"{\",CHAR(160),IH$1)),FIND(CHAR(160),SUBSTITUTE($AA214,\"}\",CHAR(160),IH$1))-FIND(CHAR(160),SUBSTITUTE($AA214,\"{\",CHAR(160),IH$1))+1),\"\")","v":""},{"$f":"IFERROR(MID($AA214,FIND(CHAR(160),SUBSTITUTE($AA214,\"{\",CHAR(160),II$1)),FIND(CHAR(160),SUBSTITUTE($AA214,\"}\",CHAR(160),II$1))-FIND(CHAR(160),SUBSTITUTE($AA214,\"{\",CHAR(160),II$1))+1),\"\")","v":""},{"$f":"IFERROR(MID($AA214,FIND(CHAR(160),SUBSTITUTE($AA214,\"{\",CHAR(160),IJ$1)),FIND(CHAR(160),SUBSTITUTE($AA214,\"}\",CHAR(160),IJ$1))-FIND(CHAR(160),SUBSTITUTE($AA214,\"{\",CHAR(160),IJ$1))+1),\"\")","v":""},{"$f":"IFERROR(MID($AA214,FIND(CHAR(160),SUBSTITUTE($AA214,\"{\",CHAR(160),IK$1)),FIND(CHAR(160),SUBSTITUTE($AA214,\"}\",CHAR(160),IK$1))-FIND(CHAR(160),SUBSTITUTE($AA214,\"{\",CHAR(160),IK$1))+1),\"\")","v":""},{"$f":"IFERROR(MID($AA214,FIND(CHAR(160),SUBSTITUTE($AA214,\"{\",CHAR(160),IL$1)),FIND(CHAR(160),SUBSTITUTE($AA214,\"}\",CHAR(160),IL$1))-FIND(CHAR(160),SUBSTITUTE($AA214,\"{\",CHAR(160),IL$1))+1),\"\")","v":""},{"$f":"IFERROR(MID($AA214,FIND(CHAR(160),SUBSTITUTE($AA214,\"{\",CHAR(160),IM$1)),FIND(CHAR(160),SUBSTITUTE($AA214,\"}\",CHAR(160),IM$1))-FIND(CHAR(160),SUBSTITUTE($AA214,\"{\",CHAR(160),IM$1))+1),\"\")","v":""},{"$f":"IFERROR(MID($AA214,FIND(CHAR(160),SUBSTITUTE($AA214,\"{\",CHAR(160),IN$1)),FIND(CHAR(160),SUBSTITUTE($AA214,\"}\",CHAR(160),IN$1))-FIND(CHAR(160),SUBSTITUTE($AA214,\"{\",CHAR(160),IN$1))+1),\"\")","v":""},{"$f":"IFERROR(MID($AB214,FIND(CHAR(160),SUBSTITUTE($AB214,\"{\",CHAR(160),IO$1)),FIND(CHAR(160),SUBSTITUTE($AB214,\"}\",CHAR(160),IO$1))-FIND(CHAR(160),SUBSTITUTE($AB214,\"{\",CHAR(160),IO$1))+1),\"\")","v":""},{"$f":"IFERROR(MID($AB214,FIND(CHAR(160),SUBSTITUTE($AB214,\"{\",CHAR(160),IP$1)),FIND(CHAR(160),SUBSTITUTE($AB214,\"}\",CHAR(160),IP$1))-FIND(CHAR(160),SUBSTITUTE($AB214,\"{\",CHAR(160),IP$1))+1),\"\")","v":""},{"$f":"IFERROR(MID($AB214,FIND(CHAR(160),SUBSTITUTE($AB214,\"{\",CHAR(160),IQ$1)),FIND(CHAR(160),SUBSTITUTE($AB214,\"}\",CHAR(160),IQ$1))-FIND(CHAR(160),SUBSTITUTE($AB214,\"{\",CHAR(160),IQ$1))+1),\"\")","v":""},{"$f":"IFERROR(MID($AB214,FIND(CHAR(160),SUBSTITUTE($AB214,\"{\",CHAR(160),IR$1)),FIND(CHAR(160),SUBSTITUTE($AB214,\"}\",CHAR(160),IR$1))-FIND(CHAR(160),SUBSTITUTE($AB214,\"{\",CHAR(160),IR$1))+1),\"\")","v":""},{"$f":"IFERROR(MID($AB214,FIND(CHAR(160),SUBSTITUTE($AB214,\"{\",CHAR(160),IS$1)),FIND(CHAR(160),SUBSTITUTE($AB214,\"}\",CHAR(160),IS$1))-FIND(CHAR(160),SUBSTITUTE($AB214,\"{\",CHAR(160),IS$1))+1),\"\")","v":""},{"$f":"IFERROR(MID($AB214,FIND(CHAR(160),SUBSTITUTE($AB214,\"{\",CHAR(160),IT$1)),FIND(CHAR(160),SUBSTITUTE($AB214,\"}\",CHAR(160),IT$1))-FIND(CHAR(160),SUBSTITUTE($AB214,\"{\",CHAR(160),IT$1))+1),\"\")","v":""},{"$f":"IFERROR(MID($AB214,FIND(CHAR(160),SUBSTITUTE($AB214,\"{\",CHAR(160),IU$1)),FIND(CHAR(160),SUBSTITUTE($AB214,\"}\",CHAR(160),IU$1))-FIND(CHAR(160),SUBSTITUTE($AB214,\"{\",CHAR(160),IU$1))+1),\"\")","v":""},{"$f":"IFERROR(MID($AB214,FIND(CHAR(160),SUBSTITUTE($AB214,\"{\",CHAR(160),IV$1)),FIND(CHAR(160),SUBSTITUTE($AB214,\"}\",CHAR(160),IV$1))-FIND(CHAR(160),SUBSTITUTE($AB214,\"{\",CHAR(160),IV$1))+1),\"\")","v":""},{"$f":"IFERROR(MID($AB214,FIND(CHAR(160),SUBSTITUTE($AB214,\"{\",CHAR(160),IW$1)),FIND(CHAR(160),SUBSTITUTE($AB214,\"}\",CHAR(160),IW$1))-FIND(CHAR(160),SUBSTITUTE($AB214,\"{\",CHAR(160),IW$1))+1),\"\")","v":""},{"$f":"IFERROR(MID($AB214,FIND(CHAR(160),SUBSTITUTE($AB214,\"{\",CHAR(160),IX$1)),FIND(CHAR(160),SUBSTITUTE($AB214,\"}\",CHAR(160),IX$1))-FIND(CHAR(160),SUBSTITUTE($AB214,\"{\",CHAR(160),IX$1))+1),\"\")","v":""},null,{"$f":"10-COUNTIF(DU214:ED214,\"\")","v":1}]
["Low Income - NECEC Funds","Low Flow Bathroom Aerator Direct Install","LILFBA","2021-07-01","2022-06-30","Calculated","{Measure:Quantity}*0.49",0,"Calculated","{Measure:Quantity}*0.49",0,"2021-07-01","2022-06-30","Calculated","{Measure:Quantity}*if({Measure:Quantity}=0,0,8)",null,null,null,null,null,"{Measure:Quantity}*if({Measure:Quantity}=0,0,0.0012)","{Measure:Quantity}*if({Measure:Quantity}=0,0,0.00098)",null,null,null,null,null,"if({Measure:Quantity}=0,0,{Measure:Quantity}*333)","2021-07-01","2022-06-30",10,4.0000000000000001E-3,3.0000000000000001E-3,0.39700000000000002,0.26800000000000002,0.20300000000000001,0.13100000000000001,0.77,1,1,0,0,null,{"$f":"DU215","v":"{Measure:Quantity}"},1,{"$f":"DV215","v":""},1,{"$f":"DW215","v":""},null,{"$f":"DX215","v":""},null,{"$f":"DY215","v":""},null,{"$f":"DZ215","v":""},null,{"$f":"EA215","v":""},null,{"$f":"EB215","v":""},null,{"$f":"EC215","v":""},null,"LIDI Bundle Qty",0.5,{"$f":"AS215*IF(AS215=0,0,8)","v":8},0,0,0,0,0,{"$f":"AS215*IF(AS215=0,0,0.0012)","v":1.1999999999999999E-3},{"$f":"AS215*IF(AS215=0,0,0.00098)","v":9.7999999999999997E-4},0,0,0,0,0,{"$f":"IF(AS215=0,0,AS215*333)","v":333},null,"Res","Default DR",{"$f":"Benefits(BL215,BR215,BS215,BT215,BU215,BV215,BW215,BX215,BY215,BZ215,AE215,AH215,AI215,AJ215,AK215,AL215,AM215,AN215,AO215,AP215,CA215,CB215)","v":6.0679395582204858},3.4712647928737272,0,0,0,0,0,19.771037930079988,0,{"$f":"SUMPRODUCT(CC215:CK215,--(CC215:CK215>0))","v":29.310242281174201},{"$f":"-SUMPRODUCT(CC215:CK215,--(CC215:CK215<0))","v":0},null,{"$f":"AS215*0.49","v":0.49},null,null,{"$f":"CM215+CO215","v":0.49},{"$f":"IF(NetOrGross=\"Net\",(1-AO215+AP215),1)","v":1},{"$f":"(SUMPRODUCT(CC215:CJ215,--(CC215:CJ215>0))+CN215)*CS215/((-SUMPRODUCT(CC215:CJ215,--(CC215:CJ215<0))+MAX(CO215,CV215)+CP215+CQ215)*CS215+IF(FRIncentives=\"Yes\",CV215*(1-CS215),0))","v":59.816820981988165},1,{"$f":"AS215*0.49","v":0.49},null,"Electric","y",{"$f":"CL215-CR215","v":28.820242281174203},{"$f":"IF(F215=\"Manual Entry\",\"Manual\",IF(G215=\"\",0,\"X=\"&SUBSTITUTE(SUBSTITUTE(SUBSTITUTE(SUBSTITUTE(SUBSTITUTE(SUBSTITUTE(SUBSTITUTE(SUBSTITUTE(SUBSTITUTE(SUBSTITUTE(SUBSTITUTE(SUBSTITUTE(G215,$ED215,$ED$2&ROW($ED215)),$EC215,$EC$2&ROW($EC215)),$EB215,$EB$2&ROW($EB215)),$EA215,$EA$2&ROW($EA215)),$DZ215,$DZ$2&ROW($DZ215)),$DY215,$DY$2&ROW($DY215)),$DX215,$DX$2&ROW($DX215)),$DW215,$DW$2&ROW($DW215)),$DV215,$DV$2&ROW($DV215)),$DU215,$DU$2&ROW($DU215)),$DT215,$DT$2&ROW($DT215)),$DS215,$DS$2&ROW($DS215))))","v":"X=AS215*0.49"},{"$f":"IF(I215=\"Manual Entry\",\"Manual\",IF(J215=\"\",0,\"X=\"&SUBSTITUTE(SUBSTITUTE(SUBSTITUTE(SUBSTITUTE(SUBSTITUTE(SUBSTITUTE(SUBSTITUTE(SUBSTITUTE(SUBSTITUTE(SUBSTITUTE(SUBSTITUTE(SUBSTITUTE(J215,$ED215,$ED$2&ROW($ED215)),$EC215,$EC$2&ROW($EC215)),$EB215,$EB$2&ROW($EB215)),$EA215,$EA$2&ROW($EA215)),$DZ215,$DZ$2&ROW($DZ215)),$DY215,$DY$2&ROW($DY215)),$DX215,$DX$2&ROW($DX215)),$DW215,$DW$2&ROW($DW215)),$DV215,$DV$2&ROW($DV215)),$DU215,$DU$2&ROW($DU215)),$DT215,$DT$2&ROW($DT215)),$DS215,$DS$2&ROW($DS215))))","v":"X=AS215*0.49"},{"$f":"IF(O215=\"\",0,\"X=\"&SUBSTITUTE(SUBSTITUTE(SUBSTITUTE(SUBSTITUTE(SUBSTITUTE(SUBSTITUTE(SUBSTITUTE(SUBSTITUTE(SUBSTITUTE(SUBSTITUTE(SUBSTITUTE(SUBSTITUTE(O215,$ED215,$ED$2&ROW($ED215)),$EC215,$EC$2&ROW($EC215)),$EB215,$EB$2&ROW($EB215)),$EA215,$EA$2&ROW($EA215)),$DZ215,$DZ$2&ROW($DZ215)),$DY215,$DY$2&ROW($DY215)),$DX215,$DX$2&ROW($DX215)),$DW215,$DW$2&ROW($DW215)),$DV215,$DV$2&ROW($DV215)),$DU215,$DU$2&ROW($DU215)),$DT215,$DT$2&ROW($DT215)),$DS215,$DS$2&ROW($DS215)))","v":"X=AS215*if(AS215=0,0,8)"},{"$f":"IF(P215=\"\",0,\"X=\"&SUBSTITUTE(SUBSTITUTE(SUBSTITUTE(SUBSTITUTE(SUBSTITUTE(SUBSTITUTE(SUBSTITUTE(SUBSTITUTE(SUBSTITUTE(SUBSTITUTE(SUBSTITUTE(SUBSTITUTE(P215,$ED215,$ED$2&ROW($ED215)),$EC215,$EC$2&ROW($EC215)),$EB215,$EB$2&ROW($EB215)),$EA215,$EA$2&ROW($EA215)),$DZ215,$DZ$2&ROW($DZ215)),$DY215,$DY$2&ROW($DY215)),$DX215,$DX$2&ROW($DX215)),$DW215,$DW$2&ROW($DW215)),$DV215,$DV$2&ROW($DV215)),$DU215,$DU$2&ROW($DU215)),$DT215,$DT$2&ROW($DT215)),$DS215,$DS$2&ROW($DS215)))","v":0},{"$f":"IF(Q215=\"\",0,\"X=\"&SUBSTITUTE(SUBSTITUTE(SUBSTITUTE(SUBSTITUTE(SUBSTITUTE(SUBSTITUTE(SUBSTITUTE(SUBSTITUTE(SUBSTITUTE(SUBSTITUTE(SUBSTITUTE(SUBSTITUTE(Q215,$ED215,$ED$2&ROW($ED215)),$EC215,$EC$2&ROW($EC215)),$EB215,$EB$2&ROW($EB215)),$EA215,$EA$2&ROW($EA215)),$DZ215,$DZ$2&ROW($DZ215)),$DY215,$DY$2&ROW($DY215)),$DX215,$DX$2&ROW($DX215)),$DW215,$DW$2&ROW($DW215)),$DV215,$DV$2&ROW($DV215)),$DU215,$DU$2&ROW($DU215)),$DT215,$DT$2&ROW($DT215)),$DS215,$DS$2&ROW($DS215)))","v":0},{"$f":"IF(R215=\"\",0,\"X=\"&SUBSTITUTE(SUBSTITUTE(SUBSTITUTE(SUBSTITUTE(SUBSTITUTE(SUBSTITUTE(SUBSTITUTE(SUBSTITUTE(SUBSTITUTE(SUBSTITUTE(SUBSTITUTE(SUBSTITUTE(R215,$ED215,$ED$2&ROW($ED215)),$EC215,$EC$2&ROW($EC215)),$EB215,$EB$2&ROW($EB215)),$EA215,$EA$2&ROW($EA215)),$DZ215,$DZ$2&ROW($DZ215)),$DY215,$DY$2&ROW($DY215)),$DX215,$DX$2&ROW($DX215)),$DW215,$DW$2&ROW($DW215)),$DV215,$DV$2&ROW($DV215)),$DU215,$DU$2&ROW($DU215)),$DT215,$DT$2&ROW($DT215)),$DS215,$DS$2&ROW($DS215)))","v":0},{"$f":"IF(S215=\"\",0,\"X=\"&SUBSTITUTE(SUBSTITUTE(SUBSTITUTE(SUBSTITUTE(SUBSTITUTE(SUBSTITUTE(SUBSTITUTE(SUBSTITUTE(SUBSTITUTE(SUBSTITUTE(SUBSTITUTE(SUBSTITUTE(S215,$ED215,$ED$2&ROW($ED215)),$EC215,$EC$2&ROW($EC215)),$EB215,$EB$2&ROW($EB215)),$EA215,$EA$2&ROW($EA215)),$DZ215,$DZ$2&ROW($DZ215)),$DY215,$DY$2&ROW($DY215)),$DX215,$DX$2&ROW($DX215)),$DW215,$DW$2&ROW($DW215)),$DV215,$DV$2&ROW($DV215)),$DU215,$DU$2&ROW($DU215)),$DT215,$DT$2&ROW($DT215)),$DS215,$DS$2&ROW($DS215)))","v":0},{"$f":"IF(T215=\"\",0,\"X=\"&SUBSTITUTE(SUBSTITUTE(SUBSTITUTE(SUBSTITUTE(SUBSTITUTE(SUBSTITUTE(SUBSTITUTE(SUBSTITUTE(SUBSTITUTE(SUBSTITUTE(SUBSTITUTE(SUBSTITUTE(T215,$ED215,$ED$2&ROW($ED215)),$EC215,$EC$2&ROW($EC215)),$EB215,$EB$2&ROW($EB215)),$EA215,$EA$2&ROW($EA215)),$DZ215,$DZ$2&ROW($DZ215)),$DY215,$DY$2&ROW($DY215)),$DX215,$DX$2&ROW($DX215)),$DW215,$DW$2&ROW($DW215)),$DV215,$DV$2&ROW($DV215)),$DU215,$DU$2&ROW($DU215)),$DT215,$DT$2&ROW($DT215)),$DS215,$DS$2&ROW($DS215)))","v":0},{"$f":"IF(U215=\"\",0,\"X=\"&SUBSTITUTE(SUBSTITUTE(SUBSTITUTE(SUBSTITUTE(SUBSTITUTE(SUBSTITUTE(SUBSTITUTE(SUBSTITUTE(SUBSTITUTE(SUBSTITUTE(SUBSTITUTE(SUBSTITUTE(U215,$ED215,$ED$2&ROW($ED215)),$EC215,$EC$2&ROW($EC215)),$EB215,$EB$2&ROW($EB215)),$EA215,$EA$2&ROW($EA215)),$DZ215,$DZ$2&ROW($DZ215)),$DY215,$DY$2&ROW($DY215)),$DX215,$DX$2&ROW($DX215)),$DW215,$DW$2&ROW($DW215)),$DV215,$DV$2&ROW($DV215)),$DU215,$DU$2&ROW($DU215)),$DT215,$DT$2&ROW($DT215)),$DS215,$DS$2&ROW($DS215)))","v":"X=AS215*if(AS215=0,0,0.0012)"},{"$f":"IF(V215=\"\",0,\"X=\"&SUBSTITUTE(SUBSTITUTE(SUBSTITUTE(SUBSTITUTE(SUBSTITUTE(SUBSTITUTE(SUBSTITUTE(SUBSTITUTE(SUBSTITUTE(SUBSTITUTE(SUBSTITUTE(SUBSTITUTE(V215,$ED215,$ED$2&ROW($ED215)),$EC215,$EC$2&ROW($EC215)),$EB215,$EB$2&ROW($EB215)),$EA215,$EA$2&ROW($EA215)),$DZ215,$DZ$2&ROW($DZ215)),$DY215,$DY$2&ROW($DY215)),$DX215,$DX$2&ROW($DX215)),$DW215,$DW$2&ROW($DW215)),$DV215,$DV$2&ROW($DV215)),$DU215,$DU$2&ROW($DU215)),$DT215,$DT$2&ROW($DT215)),$DS215,$DS$2&ROW($DS215)))","v":"X=AS215*if(AS215=0,0,0.00098)"},{"$f":"IF(W215=\"\",0,\"X=\"&SUBSTITUTE(SUBSTITUTE(SUBSTITUTE(SUBSTITUTE(SUBSTITUTE(SUBSTITUTE(SUBSTITUTE(SUBSTITUTE(SUBSTITUTE(SUBSTITUTE(SUBSTITUTE(SUBSTITUTE(W215,$ED215,$ED$2&ROW($ED215)),$EC215,$EC$2&ROW($EC215)),$EB215,$EB$2&ROW($EB215)),$EA215,$EA$2&ROW($EA215)),$DZ215,$DZ$2&ROW($DZ215)),$DY215,$DY$2&ROW($DY215)),$DX215,$DX$2&ROW($DX215)),$DW215,$DW$2&ROW($DW215)),$DV215,$DV$2&ROW($DV215)),$DU215,$DU$2&ROW($DU215)),$DT215,$DT$2&ROW($DT215)),$DS215,$DS$2&ROW($DS215)))","v":0},{"$f":"IF(X215=\"\",0,\"X=\"&SUBSTITUTE(SUBSTITUTE(SUBSTITUTE(SUBSTITUTE(SUBSTITUTE(SUBSTITUTE(SUBSTITUTE(SUBSTITUTE(SUBSTITUTE(SUBSTITUTE(SUBSTITUTE(SUBSTITUTE(X215,$ED215,$ED$2&ROW($ED215)),$EC215,$EC$2&ROW($EC215)),$EB215,$EB$2&ROW($EB215)),$EA215,$EA$2&ROW($EA215)),$DZ215,$DZ$2&ROW($DZ215)),$DY215,$DY$2&ROW($DY215)),$DX215,$DX$2&ROW($DX215)),$DW215,$DW$2&ROW($DW215)),$DV215,$DV$2&ROW($DV215)),$DU215,$DU$2&ROW($DU215)),$DT215,$DT$2&ROW($DT215)),$DS215,$DS$2&ROW($DS215)))","v":0},{"$f":"IF(Y215=\"\",0,\"X=\"&SUBSTITUTE(SUBSTITUTE(SUBSTITUTE(SUBSTITUTE(SUBSTITUTE(SUBSTITUTE(SUBSTITUTE(SUBSTITUTE(SUBSTITUTE(SUBSTITUTE(SUBSTITUTE(SUBSTITUTE(Y215,$ED215,$ED$2&ROW($ED215)),$EC215,$EC$2&ROW($EC215)),$EB215,$EB$2&ROW($EB215)),$EA215,$EA$2&ROW($EA215)),$DZ215,$DZ$2&ROW($DZ215)),$DY215,$DY$2&ROW($DY215)),$DX215,$DX$2&ROW($DX215)),$DW215,$DW$2&ROW($DW215)),$DV215,$DV$2&ROW($DV215)),$DU215,$DU$2&ROW($DU215)),$DT215,$DT$2&ROW($DT215)),$DS215,$DS$2&ROW($DS215)))","v":0},{"$f":"IF(Z215=\"\",0,\"X=\"&SUBSTITUTE(SUBSTITUTE(SUBSTITUTE(SUBSTITUTE(SUBSTITUTE(SUBSTITUTE(SUBSTITUTE(SUBSTITUTE(SUBSTITUTE(SUBSTITUTE(SUBSTITUTE(SUBSTITUTE(Z215,$ED215,$ED$2&ROW($ED215)),$EC215,$EC$2&ROW($EC215)),$EB215,$EB$2&ROW($EB215)),$EA215,$EA$2&ROW($EA215)),$DZ215,$DZ$2&ROW($DZ215)),$DY215,$DY$2&ROW($DY215)),$DX215,$DX$2&ROW($DX215)),$DW215,$DW$2&ROW($DW215)),$DV215,$DV$2&ROW($DV215)),$DU215,$DU$2&ROW($DU215)),$DT215,$DT$2&ROW($DT215)),$DS215,$DS$2&ROW($DS215)))","v":0},{"$f":"IF(AA215=\"\",0,\"X=\"&SUBSTITUTE(SUBSTITUTE(SUBSTITUTE(SUBSTITUTE(SUBSTITUTE(SUBSTITUTE(SUBSTITUTE(SUBSTITUTE(SUBSTITUTE(SUBSTITUTE(SUBSTITUTE(SUBSTITUTE(AA215,$ED215,$ED$2&ROW($ED215)),$EC215,$EC$2&ROW($EC215)),$EB215,$EB$2&ROW($EB215)),$EA215,$EA$2&ROW($EA215)),$DZ215,$DZ$2&ROW($DZ215)),$DY215,$DY$2&ROW($DY215)),$DX215,$DX$2&ROW($DX215)),$DW215,$DW$2&ROW($DW215)),$DV215,$DV$2&ROW($DV215)),$DU215,$DU$2&ROW($DU215)),$DT215,$DT$2&ROW($DT215)),$DS215,$DS$2&ROW($DS215)))","v":0},{"$f":"IF(AB215=\"\",0,\"X=\"&SUBSTITUTE(SUBSTITUTE(SUBSTITUTE(SUBSTITUTE(SUBSTITUTE(SUBSTITUTE(SUBSTITUTE(SUBSTITUTE(SUBSTITUTE(SUBSTITUTE(SUBSTITUTE(SUBSTITUTE(AB215,$ED215,$ED$2&ROW($ED215)),$EC215,$EC$2&ROW($EC215)),$EB215,$EB$2&ROW($EB215)),$EA215,$EA$2&ROW($EA215)),$DZ215,$DZ$2&ROW($DZ215)),$DY215,$DY$2&ROW($DY215)),$DX215,$DX$2&ROW($DX215)),$DW215,$DW$2&ROW($DW215)),$DV215,$DV$2&ROW($DV215)),$DU215,$DU$2&ROW($DU215)),$DT215,$DT$2&ROW($DT215)),$DS215,$DS$2&ROW($DS215)))","v":"X=if(AS215=0,0,AS215*333)"},null,null,"{Factor:WinterCF}","{Factor:SummerCF}",{"$f":"IFERROR(INDEX($EG215:$IV215,MATCH(0,COUNTIF($DR215:DT215,$EG215:$IV215),0)),\"\")","v":"{Measure:Quantity}"},{"$f":"IFERROR(INDEX($EG215:$IV215,MATCH(0,COUNTIF($DR215:DU215,$EG215:$IV215),0)),\"\")","v":""},{"$f":"IFERROR(INDEX($EG215:$IV215,MATCH(0,COUNTIF($DR215:DV215,$EG215:$IV215),0)),\"\")","v":""},{"$f":"IFERROR(INDEX($EG215:$IV215,MATCH(0,COUNTIF($DR215:DW215,$EG215:$IV215),0)),\"\")","v":""},{"$f":"IFERROR(INDEX($EG215:$IV215,MATCH(0,COUNTIF($DR215:DX215,$EG215:$IV215),0)),\"\")","v":""},{"$f":"IFERROR(INDEX($EG215:$IV215,MATCH(0,COUNTIF($DR215:DY215,$EG215:$IV215),0)),\"\")","v":""},{"$f":"IFERROR(INDEX($EG215:$IV215,MATCH(0,COUNTIF($DR215:DZ215,$EG215:$IV215),0)),\"\")","v":""},{"$f":"IFERROR(INDEX($EG215:$IV215,MATCH(0,COUNTIF($DR215:EA215,$EG215:$IV215),0)),\"\")","v":""},{"$f":"IFERROR(INDEX($EG215:$IV215,MATCH(0,COUNTIF($DR215:EB215,$EG215:$IV215),0)),\"\")","v":""},{"$f":"IFERROR(INDEX($EG215:$IV215,MATCH(0,COUNTIF($DR215:EC215,$EG215:$IV215),0)),\"\")","v":""},null,null,{"$f":"IFERROR(MID($G215,FIND(CHAR(160),SUBSTITUTE($G215,\"{\",CHAR(160),EG$1)),FIND(CHAR(160),SUBSTITUTE($G215,\"}\",CHAR(160),EG$1))-FIND(CHAR(160),SUBSTITUTE($G215,\"{\",CHAR(160),EG$1))+1),\"\")","v":"{Measure:Quantity}"},{"$f":"IFERROR(MID($G215,FIND(CHAR(160),SUBSTITUTE($G215,\"{\",CHAR(160),EH$1)),FIND(CHAR(160),SUBSTITUTE($G215,\"}\",CHAR(160),EH$1))-FIND(CHAR(160),SUBSTITUTE($G215,\"{\",CHAR(160),EH$1))+1),\"\")","v":""},{"$f":"IFERROR(MID($G215,FIND(CHAR(160),SUBSTITUTE($G215,\"{\",CHAR(160),EI$1)),FIND(CHAR(160),SUBSTITUTE($G215,\"}\",CHAR(160),EI$1))-FIND(CHAR(160),SUBSTITUTE($G215,\"{\",CHAR(160),EI$1))+1),\"\")","v":""},{"$f":"IFERROR(MID($G215,FIND(CHAR(160),SUBSTITUTE($G215,\"{\",CHAR(160),EJ$1)),FIND(CHAR(160),SUBSTITUTE($G215,\"}\",CHAR(160),EJ$1))-FIND(CHAR(160),SUBSTITUTE($G215,\"{\",CHAR(160),EJ$1))+1),\"\")","v":""},{"$f":"IFERROR(MID($G215,FIND(CHAR(160),SUBSTITUTE($G215,\"{\",CHAR(160),EK$1)),FIND(CHAR(160),SUBSTITUTE($G215,\"}\",CHAR(160),EK$1))-FIND(CHAR(160),SUBSTITUTE($G215,\"{\",CHAR(160),EK$1))+1),\"\")","v":""},{"$f":"IFERROR(MID($G215,FIND(CHAR(160),SUBSTITUTE($G215,\"{\",CHAR(160),EL$1)),FIND(CHAR(160),SUBSTITUTE($G215,\"}\",CHAR(160),EL$1))-FIND(CHAR(160),SUBSTITUTE($G215,\"{\",CHAR(160),EL$1))+1),\"\")","v":""},{"$f":"IFERROR(MID($G215,FIND(CHAR(160),SUBSTITUTE($G215,\"{\",CHAR(160),EM$1)),FIND(CHAR(160),SUBSTITUTE($G215,\"}\",CHAR(160),EM$1))-FIND(CHAR(160),SUBSTITUTE($G215,\"{\",CHAR(160),EM$1))+1),\"\")","v":""},{"$f":"IFERROR(MID($G215,FIND(CHAR(160),SUBSTITUTE($G215,\"{\",CHAR(160),EN$1)),FIND(CHAR(160),SUBSTITUTE($G215,\"}\",CHAR(160),EN$1))-FIND(CHAR(160),SUBSTITUTE($G215,\"{\",CHAR(160),EN$1))+1),\"\")","v":""},{"$f":"IFERROR(MID($G215,FIND(CHAR(160),SUBSTITUTE($G215,\"{\",CHAR(160),EO$1)),FIND(CHAR(160),SUBSTITUTE($G215,\"}\",CHAR(160),EO$1))-FIND(CHAR(160),SUBSTITUTE($G215,\"{\",CHAR(160),EO$1))+1),\"\")","v":""},{"$f":"IFERROR(MID($G215,FIND(CHAR(160),SUBSTITUTE($G215,\"{\",CHAR(160),EP$1)),FIND(CHAR(160),SUBSTITUTE($G215,\"}\",CHAR(160),EP$1))-FIND(CHAR(160),SUBSTITUTE($G215,\"{\",CHAR(160),EP$1))+1),\"\")","v":""},{"$f":"IFERROR(MID($J215,FIND(CHAR(160),SUBSTITUTE($J215,\"{\",CHAR(160),EQ$1)),FIND(CHAR(160),SUBSTITUTE($J215,\"}\",CHAR(160),EQ$1))-FIND(CHAR(160),SUBSTITUTE($J215,\"{\",CHAR(160),EQ$1))+1),\"\")","v":"{Measure:Quantity}"},{"$f":"IFERROR(MID($J215,FIND(CHAR(160),SUBSTITUTE($J215,\"{\",CHAR(160),ER$1)),FIND(CHAR(160),SUBSTITUTE($J215,\"}\",CHAR(160),ER$1))-FIND(CHAR(160),SUBSTITUTE($J215,\"{\",CHAR(160),ER$1))+1),\"\")","v":""},{"$f":"IFERROR(MID($J215,FIND(CHAR(160),SUBSTITUTE($J215,\"{\",CHAR(160),ES$1)),FIND(CHAR(160),SUBSTITUTE($J215,\"}\",CHAR(160),ES$1))-FIND(CHAR(160),SUBSTITUTE($J215,\"{\",CHAR(160),ES$1))+1),\"\")","v":""},{"$f":"IFERROR(MID($J215,FIND(CHAR(160),SUBSTITUTE($J215,\"{\",CHAR(160),ET$1)),FIND(CHAR(160),SUBSTITUTE($J215,\"}\",CHAR(160),ET$1))-FIND(CHAR(160),SUBSTITUTE($J215,\"{\",CHAR(160),ET$1))+1),\"\")","v":""},{"$f":"IFERROR(MID($J215,FIND(CHAR(160),SUBSTITUTE($J215,\"{\",CHAR(160),EU$1)),FIND(CHAR(160),SUBSTITUTE($J215,\"}\",CHAR(160),EU$1))-FIND(CHAR(160),SUBSTITUTE($J215,\"{\",CHAR(160),EU$1))+1),\"\")","v":""},{"$f":"IFERROR(MID($J215,FIND(CHAR(160),SUBSTITUTE($J215,\"{\",CHAR(160),EV$1)),FIND(CHAR(160),SUBSTITUTE($J215,\"}\",CHAR(160),EV$1))-FIND(CHAR(160),SUBSTITUTE($J215,\"{\",CHAR(160),EV$1))+1),\"\")","v":""},{"$f":"IFERROR(MID($J215,FIND(CHAR(160),SUBSTITUTE($J215,\"{\",CHAR(160),EW$1)),FIND(CHAR(160),SUBSTITUTE($J215,\"}\",CHAR(160),EW$1))-FIND(CHAR(160),SUBSTITUTE($J215,\"{\",CHAR(160),EW$1))+1),\"\")","v":""},{"$f":"IFERROR(MID($J215,FIND(CHAR(160),SUBSTITUTE($J215,\"{\",CHAR(160),EX$1)),FIND(CHAR(160),SUBSTITUTE($J215,\"}\",CHAR(160),EX$1))-FIND(CHAR(160),SUBSTITUTE($J215,\"{\",CHAR(160),EX$1))+1),\"\")","v":""},{"$f":"IFERROR(MID($J215,FIND(CHAR(160),SUBSTITUTE($J215,\"{\",CHAR(160),EY$1)),FIND(CHAR(160),SUBSTITUTE($J215,\"}\",CHAR(160),EY$1))-FIND(CHAR(160),SUBSTITUTE($J215,\"{\",CHAR(160),EY$1))+1),\"\")","v":""},{"$f":"IFERROR(MID($J215,FIND(CHAR(160),SUBSTITUTE($J215,\"{\",CHAR(160),EZ$1)),FIND(CHAR(160),SUBSTITUTE($J215,\"}\",CHAR(160),EZ$1))-FIND(CHAR(160),SUBSTITUTE($J215,\"{\",CHAR(160),EZ$1))+1),\"\")","v":""},{"$f":"IFERROR(MID($J215,FIND(CHAR(160),SUBSTITUTE($J215,\"{\",CHAR(160),FA$1)),FIND(CHAR(160),SUBSTITUTE($J215,\"}\",CHAR(160),FA$1))-FIND(CHAR(160),SUBSTITUTE($J215,\"{\",CHAR(160),FA$1))+1),\"\")","v":"{Measure:Quantity}"},{"$f":"IFERROR(MID($J215,FIND(CHAR(160),SUBSTITUTE($J215,\"{\",CHAR(160),FB$1)),FIND(CHAR(160),SUBSTITUTE($J215,\"}\",CHAR(160),FB$1))-FIND(CHAR(160),SUBSTITUTE($J215,\"{\",CHAR(160),FB$1))+1),\"\")","v":""},{"$f":"IFERROR(MID($O215,FIND(CHAR(160),SUBSTITUTE($O215,\"{\",CHAR(160),FC$1)),FIND(CHAR(160),SUBSTITUTE($O215,\"}\",CHAR(160),FC$1))-FIND(CHAR(160),SUBSTITUTE($O215,\"{\",CHAR(160),FC$1))+1),\"\")","v":""},{"$f":"IFERROR(MID($O215,FIND(CHAR(160),SUBSTITUTE($O215,\"{\",CHAR(160),FD$1)),FIND(CHAR(160),SUBSTITUTE($O215,\"}\",CHAR(160),FD$1))-FIND(CHAR(160),SUBSTITUTE($O215,\"{\",CHAR(160),FD$1))+1),\"\")","v":""},{"$f":"IFERROR(MID($O215,FIND(CHAR(160),SUBSTITUTE($O215,\"{\",CHAR(160),FE$1)),FIND(CHAR(160),SUBSTITUTE($O215,\"}\",CHAR(160),FE$1))-FIND(CHAR(160),SUBSTITUTE($O215,\"{\",CHAR(160),FE$1))+1),\"\")","v":""},{"$f":"IFERROR(MID($O215,FIND(CHAR(160),SUBSTITUTE($O215,\"{\",CHAR(160),FF$1)),FIND(CHAR(160),SUBSTITUTE($O215,\"}\",CHAR(160),FF$1))-FIND(CHAR(160),SUBSTITUTE($O215,\"{\",CHAR(160),FF$1))+1),\"\")","v":""},{"$f":"IFERROR(MID($O215,FIND(CHAR(160),SUBSTITUTE($O215,\"{\",CHAR(160),FG$1)),FIND(CHAR(160),SUBSTITUTE($O215,\"}\",CHAR(160),FG$1))-FIND(CHAR(160),SUBSTITUTE($O215,\"{\",CHAR(160),FG$1))+1),\"\")","v":""},{"$f":"IFERROR(MID($O215,FIND(CHAR(160),SUBSTITUTE($O215,\"{\",CHAR(160),FH$1)),FIND(CHAR(160),SUBSTITUTE($O215,\"}\",CHAR(160),FH$1))-FIND(CHAR(160),SUBSTITUTE($O215,\"{\",CHAR(160),FH$1))+1),\"\")","v":""},{"$f":"IFERROR(MID($O215,FIND(CHAR(160),SUBSTITUTE($O215,\"{\",CHAR(160),FI$1)),FIND(CHAR(160),SUBSTITUTE($O215,\"}\",CHAR(160),FI$1))-FIND(CHAR(160),SUBSTITUTE($O215,\"{\",CHAR(160),FI$1))+1),\"\")","v":""},{"$f":"IFERROR(MID($O215,FIND(CHAR(160),SUBSTITUTE($O215,\"{\",CHAR(160),FJ$1)),FIND(CHAR(160),SUBSTITUTE($O215,\"}\",CHAR(160),FJ$1))-FIND(CHAR(160),SUBSTITUTE($O215,\"{\",CHAR(160),FJ$1))+1),\"\")","v":""},{"$f":"IFERROR(MID($O215,FIND(CHAR(160),SUBSTITUTE($O215,\"{\",CHAR(160),FK$1)),FIND(CHAR(160),SUBSTITUTE($O215,\"}\",CHAR(160),FK$1))-FIND(CHAR(160),SUBSTITUTE($O215,\"{\",CHAR(160),FK$1))+1),\"\")","v":"{Measure:Quantity}"},{"$f":"IFERROR(MID($O215,FIND(CHAR(160),SUBSTITUTE($O215,\"{\",CHAR(160),FL$1)),FIND(CHAR(160),SUBSTITUTE($O215,\"}\",CHAR(160),FL$1))-FIND(CHAR(160),SUBSTITUTE($O215,\"{\",CHAR(160),FL$1))+1),\"\")","v":"{Measure:Quantity}"},{"$f":"IFERROR(MID($R215,FIND(CHAR(160),SUBSTITUTE($R215,\"{\",CHAR(160),FM$1)),FIND(CHAR(160),SUBSTITUTE($R215,\"}\",CHAR(160),FM$1))-FIND(CHAR(160),SUBSTITUTE($R215,\"{\",CHAR(160),FM$1))+1),\"\")","v":""},{"$f":"IFERROR(MID($R215,FIND(CHAR(160),SUBSTITUTE($R215,\"{\",CHAR(160),FN$1)),FIND(CHAR(160),SUBSTITUTE($R215,\"}\",CHAR(160),FN$1))-FIND(CHAR(160),SUBSTITUTE($R215,\"{\",CHAR(160),FN$1))+1),\"\")","v":""},{"$f":"IFERROR(MID($R215,FIND(CHAR(160),SUBSTITUTE($R215,\"{\",CHAR(160),FO$1)),FIND(CHAR(160),SUBSTITUTE($R215,\"}\",CHAR(160),FO$1))-FIND(CHAR(160),SUBSTITUTE($R215,\"{\",CHAR(160),FO$1))+1),\"\")","v":""},{"$f":"IFERROR(MID($R215,FIND(CHAR(160),SUBSTITUTE($R215,\"{\",CHAR(160),FP$1)),FIND(CHAR(160),SUBSTITUTE($R215,\"}\",CHAR(160),FP$1))-FIND(CHAR(160),SUBSTITUTE($R215,\"{\",CHAR(160),FP$1))+1),\"\")","v":""},{"$f":"IFERROR(MID($R215,FIND(CHAR(160),SUBSTITUTE($R215,\"{\",CHAR(160),FQ$1)),FIND(CHAR(160),SUBSTITUTE($R215,\"}\",CHAR(160),FQ$1))-FIND(CHAR(160),SUBSTITUTE($R215,\"{\",CHAR(160),FQ$1))+1),\"\")","v":""},{"$f":"IFERROR(MID($R215,FIND(CHAR(160),SUBSTITUTE($R215,\"{\",CHAR(160),FR$1)),FIND(CHAR(160),SUBSTITUTE($R215,\"}\",CHAR(160),FR$1))-FIND(CHAR(160),SUBSTITUTE($R215,\"{\",CHAR(160),FR$1))+1),\"\")","v":""},{"$f":"IFERROR(MID($R215,FIND(CHAR(160),SUBSTITUTE($R215,\"{\",CHAR(160),FS$1)),FIND(CHAR(160),SUBSTITUTE($R215,\"}\",CHAR(160),FS$1))-FIND(CHAR(160),SUBSTITUTE($R215,\"{\",CHAR(160),FS$1))+1),\"\")","v":""},{"$f":"IFERROR(MID($R215,FIND(CHAR(160),SUBSTITUTE($R215,\"{\",CHAR(160),FT$1)),FIND(CHAR(160),SUBSTITUTE($R215,\"}\",CHAR(160),FT$1))-FIND(CHAR(160),SUBSTITUTE($R215,\"{\",CHAR(160),FT$1))+1),\"\")","v":""},{"$f":"IFERROR(MID($R215,FIND(CHAR(160),SUBSTITUTE($R215,\"{\",CHAR(160),FU$1)),FIND(CHAR(160),SUBSTITUTE($R215,\"}\",CHAR(160),FU$1))-FIND(CHAR(160),SUBSTITUTE($R215,\"{\",CHAR(160),FU$1))+1),\"\")","v":""},{"$f":"IFERROR(MID($R215,FIND(CHAR(160),SUBSTITUTE($R215,\"{\",CHAR(160),FV$1)),FIND(CHAR(160),SUBSTITUTE($R215,\"}\",CHAR(160),FV$1))-FIND(CHAR(160),SUBSTITUTE($R215,\"{\",CHAR(160),FV$1))+1),\"\")","v":""},{"$f":"IFERROR(MID($U215,FIND(CHAR(160),SUBSTITUTE($U215,\"{\",CHAR(160),FW$1)),FIND(CHAR(160),SUBSTITUTE($U215,\"}\",CHAR(160),FW$1))-FIND(CHAR(160),SUBSTITUTE($U215,\"{\",CHAR(160),FW$1))+1),\"\")","v":""},{"$f":"IFERROR(MID($U215,FIND(CHAR(160),SUBSTITUTE($U215,\"{\",CHAR(160),FX$1)),FIND(CHAR(160),SUBSTITUTE($U215,\"}\",CHAR(160),FX$1))-FIND(CHAR(160),SUBSTITUTE($U215,\"{\",CHAR(160),FX$1))+1),\"\")","v":""},{"$f":"IFERROR(MID($U215,FIND(CHAR(160),SUBSTITUTE($U215,\"{\",CHAR(160),FY$1)),FIND(CHAR(160),SUBSTITUTE($U215,\"}\",CHAR(160),FY$1))-FIND(CHAR(160),SUBSTITUTE($U215,\"{\",CHAR(160),FY$1))+1),\"\")","v":""},{"$f":"IFERROR(MID($U215,FIND(CHAR(160),SUBSTITUTE($U215,\"{\",CHAR(160),FZ$1)),FIND(CHAR(160),SUBSTITUTE($U215,\"}\",CHAR(160),FZ$1))-FIND(CHAR(160),SUBSTITUTE($U215,\"{\",CHAR(160),FZ$1))+1),\"\")","v":""},{"$f":"IFERROR(MID($U215,FIND(CHAR(160),SUBSTITUTE($U215,\"{\",CHAR(160),GA$1)),FIND(CHAR(160),SUBSTITUTE($U215,\"}\",CHAR(160),GA$1))-FIND(CHAR(160),SUBSTITUTE($U215,\"{\",CHAR(160),GA$1))+1),\"\")","v":""},{"$f":"IFERROR(MID($U215,FIND(CHAR(160),SUBSTITUTE($U215,\"{\",CHAR(160),GB$1)),FIND(CHAR(160),SUBSTITUTE($U215,\"}\",CHAR(160),GB$1))-FIND(CHAR(160),SUBSTITUTE($U215,\"{\",CHAR(160),GB$1))+1),\"\")","v":""},{"$f":"IFERROR(MID($U215,FIND(CHAR(160),SUBSTITUTE($U215,\"{\",CHAR(160),GC$1)),FIND(CHAR(160),SUBSTITUTE($U215,\"}\",CHAR(160),GC$1))-FIND(CHAR(160),SUBSTITUTE($U215,\"{\",CHAR(160),GC$1))+1),\"\")","v":""},{"$f":"IFERROR(MID($U215,FIND(CHAR(160),SUBSTITUTE($U215,\"{\",CHAR(160),GD$1)),FIND(CHAR(160),SUBSTITUTE($U215,\"}\",CHAR(160),GD$1))-FIND(CHAR(160),SUBSTITUTE($U215,\"{\",CHAR(160),GD$1))+1),\"\")","v":""},{"$f":"IFERROR(MID($U215,FIND(CHAR(160),SUBSTITUTE($U215,\"{\",CHAR(160),GE$1)),FIND(CHAR(160),SUBSTITUTE($U215,\"}\",CHAR(160),GE$1))-FIND(CHAR(160),SUBSTITUTE($U215,\"{\",CHAR(160),GE$1))+1),\"\")","v":"{Measure:Quantity}"},{"$f":"IFERROR(MID($U215,FIND(CHAR(160),SUBSTITUTE($U215,\"{\",CHAR(160),GF$1)),FIND(CHAR(160),SUBSTITUTE($U215,\"}\",CHAR(160),GF$1))-FIND(CHAR(160),SUBSTITUTE($U215,\"{\",CHAR(160),GF$1))+1),\"\")","v":"{Measure:Quantity}"},{"$f":"IFERROR(MID($V215,FIND(CHAR(160),SUBSTITUTE($V215,\"{\",CHAR(160),GG$1)),FIND(CHAR(160),SUBSTITUTE($V215,\"}\",CHAR(160),GG$1))-FIND(CHAR(160),SUBSTITUTE($V215,\"{\",CHAR(160),GG$1))+1),\"\")","v":""},{"$f":"IFERROR(MID($V215,FIND(CHAR(160),SUBSTITUTE($V215,\"{\",CHAR(160),GH$1)),FIND(CHAR(160),SUBSTITUTE($V215,\"}\",CHAR(160),GH$1))-FIND(CHAR(160),SUBSTITUTE($V215,\"{\",CHAR(160),GH$1))+1),\"\")","v":""},{"$f":"IFERROR(MID($V215,FIND(CHAR(160),SUBSTITUTE($V215,\"{\",CHAR(160),GI$1)),FIND(CHAR(160),SUBSTITUTE($V215,\"}\",CHAR(160),GI$1))-FIND(CHAR(160),SUBSTITUTE($V215,\"{\",CHAR(160),GI$1))+1),\"\")","v":""},{"$f":"IFERROR(MID($V215,FIND(CHAR(160),SUBSTITUTE($V215,\"{\",CHAR(160),GJ$1)),FIND(CHAR(160),SUBSTITUTE($V215,\"}\",CHAR(160),GJ$1))-FIND(CHAR(160),SUBSTITUTE($V215,\"{\",CHAR(160),GJ$1))+1),\"\")","v":""},{"$f":"IFERROR(MID($V215,FIND(CHAR(160),SUBSTITUTE($V215,\"{\",CHAR(160),GK$1)),FIND(CHAR(160),SUBSTITUTE($V215,\"}\",CHAR(160),GK$1))-FIND(CHAR(160),SUBSTITUTE($V215,\"{\",CHAR(160),GK$1))+1),\"\")","v":""},{"$f":"IFERROR(MID($V215,FIND(CHAR(160),SUBSTITUTE($V215,\"{\",CHAR(160),GL$1)),FIND(CHAR(160),SUBSTITUTE($V215,\"}\",CHAR(160),GL$1))-FIND(CHAR(160),SUBSTITUTE($V215,\"{\",CHAR(160),GL$1))+1),\"\")","v":""},{"$f":"IFERROR(MID($V215,FIND(CHAR(160),SUBSTITUTE($V215,\"{\",CHAR(160),GM$1)),FIND(CHAR(160),SUBSTITUTE($V215,\"}\",CHAR(160),GM$1))-FIND(CHAR(160),SUBSTITUTE($V215,\"{\",CHAR(160),GM$1))+1),\"\")","v":""},{"$f":"IFERROR(MID($V215,FIND(CHAR(160),SUBSTITUTE($V215,\"{\",CHAR(160),GN$1)),FIND(CHAR(160),SUBSTITUTE($V215,\"}\",CHAR(160),GN$1))-FIND(CHAR(160),SUBSTITUTE($V215,\"{\",CHAR(160),GN$1))+1),\"\")","v":""},{"$f":"IFERROR(MID($V215,FIND(CHAR(160),SUBSTITUTE($V215,\"{\",CHAR(160),GO$1)),FIND(CHAR(160),SUBSTITUTE($V215,\"}\",CHAR(160),GO$1))-FIND(CHAR(160),SUBSTITUTE($V215,\"{\",CHAR(160),GO$1))+1),\"\")","v":"{Measure:Quantity}"},{"$f":"IFERROR(MID($V215,FIND(CHAR(160),SUBSTITUTE($V215,\"{\",CHAR(160),GP$1)),FIND(CHAR(160),SUBSTITUTE($V215,\"}\",CHAR(160),GP$1))-FIND(CHAR(160),SUBSTITUTE($V215,\"{\",CHAR(160),GP$1))+1),\"\")","v":"{Measure:Quantity}"},{"$f":"IFERROR(MID($W215,FIND(CHAR(160),SUBSTITUTE($W215,\"{\",CHAR(160),GQ$1)),FIND(CHAR(160),SUBSTITUTE($W215,\"}\",CHAR(160),GQ$1))-FIND(CHAR(160),SUBSTITUTE($W215,\"{\",CHAR(160),GQ$1))+1),\"\")","v":""},{"$f":"IFERROR(MID($W215,FIND(CHAR(160),SUBSTITUTE($W215,\"{\",CHAR(160),GR$1)),FIND(CHAR(160),SUBSTITUTE($W215,\"}\",CHAR(160),GR$1))-FIND(CHAR(160),SUBSTITUTE($W215,\"{\",CHAR(160),GR$1))+1),\"\")","v":""},{"$f":"IFERROR(MID($W215,FIND(CHAR(160),SUBSTITUTE($W215,\"{\",CHAR(160),GS$1)),FIND(CHAR(160),SUBSTITUTE($W215,\"}\",CHAR(160),GS$1))-FIND(CHAR(160),SUBSTITUTE($W215,\"{\",CHAR(160),GS$1))+1),\"\")","v":""},{"$f":"IFERROR(MID($W215,FIND(CHAR(160),SUBSTITUTE($W215,\"{\",CHAR(160),GT$1)),FIND(CHAR(160),SUBSTITUTE($W215,\"}\",CHAR(160),GT$1))-FIND(CHAR(160),SUBSTITUTE($W215,\"{\",CHAR(160),GT$1))+1),\"\")","v":""},{"$f":"IFERROR(MID($W215,FIND(CHAR(160),SUBSTITUTE($W215,\"{\",CHAR(160),GU$1)),FIND(CHAR(160),SUBSTITUTE($W215,\"}\",CHAR(160),GU$1))-FIND(CHAR(160),SUBSTITUTE($W215,\"{\",CHAR(160),GU$1))+1),\"\")","v":""},{"$f":"IFERROR(MID($W215,FIND(CHAR(160),SUBSTITUTE($W215,\"{\",CHAR(160),GV$1)),FIND(CHAR(160),SUBSTITUTE($W215,\"}\",CHAR(160),GV$1))-FIND(CHAR(160),SUBSTITUTE($W215,\"{\",CHAR(160),GV$1))+1),\"\")","v":""},{"$f":"IFERROR(MID($W215,FIND(CHAR(160),SUBSTITUTE($W215,\"{\",CHAR(160),GW$1)),FIND(CHAR(160),SUBSTITUTE($W215,\"}\",CHAR(160),GW$1))-FIND(CHAR(160),SUBSTITUTE($W215,\"{\",CHAR(160),GW$1))+1),\"\")","v":""},{"$f":"IFERROR(MID($W215,FIND(CHAR(160),SUBSTITUTE($W215,\"{\",CHAR(160),GX$1)),FIND(CHAR(160),SUBSTITUTE($W215,\"}\",CHAR(160),GX$1))-FIND(CHAR(160),SUBSTITUTE($W215,\"{\",CHAR(160),GX$1))+1),\"\")","v":""},{"$f":"IFERROR(MID($W215,FIND(CHAR(160),SUBSTITUTE($W215,\"{\",CHAR(160),GY$1)),FIND(CHAR(160),SUBSTITUTE($W215,\"}\",CHAR(160),GY$1))-FIND(CHAR(160),SUBSTITUTE($W215,\"{\",CHAR(160),GY$1))+1),\"\")","v":""},{"$f":"IFERROR(MID($W215,FIND(CHAR(160),SUBSTITUTE($W215,\"{\",CHAR(160),GZ$1)),FIND(CHAR(160),SUBSTITUTE($W215,\"}\",CHAR(160),GZ$1))-FIND(CHAR(160),SUBSTITUTE($W215,\"{\",CHAR(160),GZ$1))+1),\"\")","v":""},{"$f":"IFERROR(MID($X215,FIND(CHAR(160),SUBSTITUTE($X215,\"{\",CHAR(160),HA$1)),FIND(CHAR(160),SUBSTITUTE($X215,\"}\",CHAR(160),HA$1))-FIND(CHAR(160),SUBSTITUTE($X215,\"{\",CHAR(160),HA$1))+1),\"\")","v":""},{"$f":"IFERROR(MID($X215,FIND(CHAR(160),SUBSTITUTE($X215,\"{\",CHAR(160),HB$1)),FIND(CHAR(160),SUBSTITUTE($X215,\"}\",CHAR(160),HB$1))-FIND(CHAR(160),SUBSTITUTE($X215,\"{\",CHAR(160),HB$1))+1),\"\")","v":""},{"$f":"IFERROR(MID($X215,FIND(CHAR(160),SUBSTITUTE($X215,\"{\",CHAR(160),HC$1)),FIND(CHAR(160),SUBSTITUTE($X215,\"}\",CHAR(160),HC$1))-FIND(CHAR(160),SUBSTITUTE($X215,\"{\",CHAR(160),HC$1))+1),\"\")","v":""},{"$f":"IFERROR(MID($X215,FIND(CHAR(160),SUBSTITUTE($X215,\"{\",CHAR(160),HD$1)),FIND(CHAR(160),SUBSTITUTE($X215,\"}\",CHAR(160),HD$1))-FIND(CHAR(160),SUBSTITUTE($X215,\"{\",CHAR(160),HD$1))+1),\"\")","v":""},{"$f":"IFERROR(MID($X215,FIND(CHAR(160),SUBSTITUTE($X215,\"{\",CHAR(160),HE$1)),FIND(CHAR(160),SUBSTITUTE($X215,\"}\",CHAR(160),HE$1))-FIND(CHAR(160),SUBSTITUTE($X215,\"{\",CHAR(160),HE$1))+1),\"\")","v":""},{"$f":"IFERROR(MID($X215,FIND(CHAR(160),SUBSTITUTE($X215,\"{\",CHAR(160),HF$1)),FIND(CHAR(160),SUBSTITUTE($X215,\"}\",CHAR(160),HF$1))-FIND(CHAR(160),SUBSTITUTE($X215,\"{\",CHAR(160),HF$1))+1),\"\")","v":""},{"$f":"IFERROR(MID($X215,FIND(CHAR(160),SUBSTITUTE($X215,\"{\",CHAR(160),HG$1)),FIND(CHAR(160),SUBSTITUTE($X215,\"}\",CHAR(160),HG$1))-FIND(CHAR(160),SUBSTITUTE($X215,\"{\",CHAR(160),HG$1))+1),\"\")","v":""},{"$f":"IFERROR(MID($X215,FIND(CHAR(160),SUBSTITUTE($X215,\"{\",CHAR(160),HH$1)),FIND(CHAR(160),SUBSTITUTE($X215,\"}\",CHAR(160),HH$1))-FIND(CHAR(160),SUBSTITUTE($X215,\"{\",CHAR(160),HH$1))+1),\"\")","v":""},{"$f":"IFERROR(MID($X215,FIND(CHAR(160),SUBSTITUTE($X215,\"{\",CHAR(160),HI$1)),FIND(CHAR(160),SUBSTITUTE($X215,\"}\",CHAR(160),HI$1))-FIND(CHAR(160),SUBSTITUTE($X215,\"{\",CHAR(160),HI$1))+1),\"\")","v":""},{"$f":"IFERROR(MID($X215,FIND(CHAR(160),SUBSTITUTE($X215,\"{\",CHAR(160),HJ$1)),FIND(CHAR(160),SUBSTITUTE($X215,\"}\",CHAR(160),HJ$1))-FIND(CHAR(160),SUBSTITUTE($X215,\"{\",CHAR(160),HJ$1))+1),\"\")","v":""},{"$f":"IFERROR(MID($Y215,FIND(CHAR(160),SUBSTITUTE($Y215,\"{\",CHAR(160),HK$1)),FIND(CHAR(160),SUBSTITUTE($Y215,\"}\",CHAR(160),HK$1))-FIND(CHAR(160),SUBSTITUTE($Y215,\"{\",CHAR(160),HK$1))+1),\"\")","v":""},{"$f":"IFERROR(MID($Y215,FIND(CHAR(160),SUBSTITUTE($Y215,\"{\",CHAR(160),HL$1)),FIND(CHAR(160),SUBSTITUTE($Y215,\"}\",CHAR(160),HL$1))-FIND(CHAR(160),SUBSTITUTE($Y215,\"{\",CHAR(160),HL$1))+1),\"\")","v":""},{"$f":"IFERROR(MID($Y215,FIND(CHAR(160),SUBSTITUTE($Y215,\"{\",CHAR(160),HM$1)),FIND(CHAR(160),SUBSTITUTE($Y215,\"}\",CHAR(160),HM$1))-FIND(CHAR(160),SUBSTITUTE($Y215,\"{\",CHAR(160),HM$1))+1),\"\")","v":""},{"$f":"IFERROR(MID($Y215,FIND(CHAR(160),SUBSTITUTE($Y215,\"{\",CHAR(160),HN$1)),FIND(CHAR(160),SUBSTITUTE($Y215,\"}\",CHAR(160),HN$1))-FIND(CHAR(160),SUBSTITUTE($Y215,\"{\",CHAR(160),HN$1))+1),\"\")","v":""},{"$f":"IFERROR(MID($Y215,FIND(CHAR(160),SUBSTITUTE($Y215,\"{\",CHAR(160),HO$1)),FIND(CHAR(160),SUBSTITUTE($Y215,\"}\",CHAR(160),HO$1))-FIND(CHAR(160),SUBSTITUTE($Y215,\"{\",CHAR(160),HO$1))+1),\"\")","v":""},{"$f":"IFERROR(MID($Y215,FIND(CHAR(160),SUBSTITUTE($Y215,\"{\",CHAR(160),HP$1)),FIND(CHAR(160),SUBSTITUTE($Y215,\"}\",CHAR(160),HP$1))-FIND(CHAR(160),SUBSTITUTE($Y215,\"{\",CHAR(160),HP$1))+1),\"\")","v":""},{"$f":"IFERROR(MID($Y215,FIND(CHAR(160),SUBSTITUTE($Y215,\"{\",CHAR(160),HQ$1)),FIND(CHAR(160),SUBSTITUTE($Y215,\"}\",CHAR(160),HQ$1))-FIND(CHAR(160),SUBSTITUTE($Y215,\"{\",CHAR(160),HQ$1))+1),\"\")","v":""},{"$f":"IFERROR(MID($Y215,FIND(CHAR(160),SUBSTITUTE($Y215,\"{\",CHAR(160),HR$1)),FIND(CHAR(160),SUBSTITUTE($Y215,\"}\",CHAR(160),HR$1))-FIND(CHAR(160),SUBSTITUTE($Y215,\"{\",CHAR(160),HR$1))+1),\"\")","v":""},{"$f":"IFERROR(MID($Y215,FIND(CHAR(160),SUBSTITUTE($Y215,\"{\",CHAR(160),HS$1)),FIND(CHAR(160),SUBSTITUTE($Y215,\"}\",CHAR(160),HS$1))-FIND(CHAR(160),SUBSTITUTE($Y215,\"{\",CHAR(160),HS$1))+1),\"\")","v":""},{"$f":"IFERROR(MID($Y215,FIND(CHAR(160),SUBSTITUTE($Y215,\"{\",CHAR(160),HT$1)),FIND(CHAR(160),SUBSTITUTE($Y215,\"}\",CHAR(160),HT$1))-FIND(CHAR(160),SUBSTITUTE($Y215,\"{\",CHAR(160),HT$1))+1),\"\")","v":""},{"$f":"IFERROR(MID($Z215,FIND(CHAR(160),SUBSTITUTE($Z215,\"{\",CHAR(160),HU$1)),FIND(CHAR(160),SUBSTITUTE($Z215,\"}\",CHAR(160),HU$1))-FIND(CHAR(160),SUBSTITUTE($Z215,\"{\",CHAR(160),HU$1))+1),\"\")","v":""},{"$f":"IFERROR(MID($Z215,FIND(CHAR(160),SUBSTITUTE($Z215,\"{\",CHAR(160),HV$1)),FIND(CHAR(160),SUBSTITUTE($Z215,\"}\",CHAR(160),HV$1))-FIND(CHAR(160),SUBSTITUTE($Z215,\"{\",CHAR(160),HV$1))+1),\"\")","v":""},{"$f":"IFERROR(MID($Z215,FIND(CHAR(160),SUBSTITUTE($Z215,\"{\",CHAR(160),HW$1)),FIND(CHAR(160),SUBSTITUTE($Z215,\"}\",CHAR(160),HW$1))-FIND(CHAR(160),SUBSTITUTE($Z215,\"{\",CHAR(160),HW$1))+1),\"\")","v":""},{"$f":"IFERROR(MID($Z215,FIND(CHAR(160),SUBSTITUTE($Z215,\"{\",CHAR(160),HX$1)),FIND(CHAR(160),SUBSTITUTE($Z215,\"}\",CHAR(160),HX$1))-FIND(CHAR(160),SUBSTITUTE($Z215,\"{\",CHAR(160),HX$1))+1),\"\")","v":""},{"$f":"IFERROR(MID($Z215,FIND(CHAR(160),SUBSTITUTE($Z215,\"{\",CHAR(160),HY$1)),FIND(CHAR(160),SUBSTITUTE($Z215,\"}\",CHAR(160),HY$1))-FIND(CHAR(160),SUBSTITUTE($Z215,\"{\",CHAR(160),HY$1))+1),\"\")","v":""},{"$f":"IFERROR(MID($Z215,FIND(CHAR(160),SUBSTITUTE($Z215,\"{\",CHAR(160),HZ$1)),FIND(CHAR(160),SUBSTITUTE($Z215,\"}\",CHAR(160),HZ$1))-FIND(CHAR(160),SUBSTITUTE($Z215,\"{\",CHAR(160),HZ$1))+1),\"\")","v":""},{"$f":"IFERROR(MID($Z215,FIND(CHAR(160),SUBSTITUTE($Z215,\"{\",CHAR(160),IA$1)),FIND(CHAR(160),SUBSTITUTE($Z215,\"}\",CHAR(160),IA$1))-FIND(CHAR(160),SUBSTITUTE($Z215,\"{\",CHAR(160),IA$1))+1),\"\")","v":""},{"$f":"IFERROR(MID($Z215,FIND(CHAR(160),SUBSTITUTE($Z215,\"{\",CHAR(160),IB$1)),FIND(CHAR(160),SUBSTITUTE($Z215,\"}\",CHAR(160),IB$1))-FIND(CHAR(160),SUBSTITUTE($Z215,\"{\",CHAR(160),IB$1))+1),\"\")","v":""},{"$f":"IFERROR(MID($Z215,FIND(CHAR(160),SUBSTITUTE($Z215,\"{\",CHAR(160),IC$1)),FIND(CHAR(160),SUBSTITUTE($Z215,\"}\",CHAR(160),IC$1))-FIND(CHAR(160),SUBSTITUTE($Z215,\"{\",CHAR(160),IC$1))+1),\"\")","v":""},{"$f":"IFERROR(MID($Z215,FIND(CHAR(160),SUBSTITUTE($Z215,\"{\",CHAR(160),ID$1)),FIND(CHAR(160),SUBSTITUTE($Z215,\"}\",CHAR(160),ID$1))-FIND(CHAR(160),SUBSTITUTE($Z215,\"{\",CHAR(160),ID$1))+1),\"\")","v":""},{"$f":"IFERROR(MID($AA215,FIND(CHAR(160),SUBSTITUTE($AA215,\"{\",CHAR(160),IE$1)),FIND(CHAR(160),SUBSTITUTE($AA215,\"}\",CHAR(160),IE$1))-FIND(CHAR(160),SUBSTITUTE($AA215,\"{\",CHAR(160),IE$1))+1),\"\")","v":""},{"$f":"IFERROR(MID($AA215,FIND(CHAR(160),SUBSTITUTE($AA215,\"{\",CHAR(160),IF$1)),FIND(CHAR(160),SUBSTITUTE($AA215,\"}\",CHAR(160),IF$1))-FIND(CHAR(160),SUBSTITUTE($AA215,\"{\",CHAR(160),IF$1))+1),\"\")","v":""},{"$f":"IFERROR(MID($AA215,FIND(CHAR(160),SUBSTITUTE($AA215,\"{\",CHAR(160),IG$1)),FIND(CHAR(160),SUBSTITUTE($AA215,\"}\",CHAR(160),IG$1))-FIND(CHAR(160),SUBSTITUTE($AA215,\"{\",CHAR(160),IG$1))+1),\"\")","v":""},{"$f":"IFERROR(MID($AA215,FIND(CHAR(160),SUBSTITUTE($AA215,\"{\",CHAR(160),IH$1)),FIND(CHAR(160),SUBSTITUTE($AA215,\"}\",CHAR(160),IH$1))-FIND(CHAR(160),SUBSTITUTE($AA215,\"{\",CHAR(160),IH$1))+1),\"\")","v":""},{"$f":"IFERROR(MID($AA215,FIND(CHAR(160),SUBSTITUTE($AA215,\"{\",CHAR(160),II$1)),FIND(CHAR(160),SUBSTITUTE($AA215,\"}\",CHAR(160),II$1))-FIND(CHAR(160),SUBSTITUTE($AA215,\"{\",CHAR(160),II$1))+1),\"\")","v":""},{"$f":"IFERROR(MID($AA215,FIND(CHAR(160),SUBSTITUTE($AA215,\"{\",CHAR(160),IJ$1)),FIND(CHAR(160),SUBSTITUTE($AA215,\"}\",CHAR(160),IJ$1))-FIND(CHAR(160),SUBSTITUTE($AA215,\"{\",CHAR(160),IJ$1))+1),\"\")","v":""},{"$f":"IFERROR(MID($AA215,FIND(CHAR(160),SUBSTITUTE($AA215,\"{\",CHAR(160),IK$1)),FIND(CHAR(160),SUBSTITUTE($AA215,\"}\",CHAR(160),IK$1))-FIND(CHAR(160),SUBSTITUTE($AA215,\"{\",CHAR(160),IK$1))+1),\"\")","v":""},{"$f":"IFERROR(MID($AA215,FIND(CHAR(160),SUBSTITUTE($AA215,\"{\",CHAR(160),IL$1)),FIND(CHAR(160),SUBSTITUTE($AA215,\"}\",CHAR(160),IL$1))-FIND(CHAR(160),SUBSTITUTE($AA215,\"{\",CHAR(160),IL$1))+1),\"\")","v":""},{"$f":"IFERROR(MID($AA215,FIND(CHAR(160),SUBSTITUTE($AA215,\"{\",CHAR(160),IM$1)),FIND(CHAR(160),SUBSTITUTE($AA215,\"}\",CHAR(160),IM$1))-FIND(CHAR(160),SUBSTITUTE($AA215,\"{\",CHAR(160),IM$1))+1),\"\")","v":""},{"$f":"IFERROR(MID($AA215,FIND(CHAR(160),SUBSTITUTE($AA215,\"{\",CHAR(160),IN$1)),FIND(CHAR(160),SUBSTITUTE($AA215,\"}\",CHAR(160),IN$1))-FIND(CHAR(160),SUBSTITUTE($AA215,\"{\",CHAR(160),IN$1))+1),\"\")","v":""},{"$f":"IFERROR(MID($AB215,FIND(CHAR(160),SUBSTITUTE($AB215,\"{\",CHAR(160),IO$1)),FIND(CHAR(160),SUBSTITUTE($AB215,\"}\",CHAR(160),IO$1))-FIND(CHAR(160),SUBSTITUTE($AB215,\"{\",CHAR(160),IO$1))+1),\"\")","v":""},{"$f":"IFERROR(MID($AB215,FIND(CHAR(160),SUBSTITUTE($AB215,\"{\",CHAR(160),IP$1)),FIND(CHAR(160),SUBSTITUTE($AB215,\"}\",CHAR(160),IP$1))-FIND(CHAR(160),SUBSTITUTE($AB215,\"{\",CHAR(160),IP$1))+1),\"\")","v":""},{"$f":"IFERROR(MID($AB215,FIND(CHAR(160),SUBSTITUTE($AB215,\"{\",CHAR(160),IQ$1)),FIND(CHAR(160),SUBSTITUTE($AB215,\"}\",CHAR(160),IQ$1))-FIND(CHAR(160),SUBSTITUTE($AB215,\"{\",CHAR(160),IQ$1))+1),\"\")","v":""},{"$f":"IFERROR(MID($AB215,FIND(CHAR(160),SUBSTITUTE($AB215,\"{\",CHAR(160),IR$1)),FIND(CHAR(160),SUBSTITUTE($AB215,\"}\",CHAR(160),IR$1))-FIND(CHAR(160),SUBSTITUTE($AB215,\"{\",CHAR(160),IR$1))+1),\"\")","v":""},{"$f":"IFERROR(MID($AB215,FIND(CHAR(160),SUBSTITUTE($AB215,\"{\",CHAR(160),IS$1)),FIND(CHAR(160),SUBSTITUTE($AB215,\"}\",CHAR(160),IS$1))-FIND(CHAR(160),SUBSTITUTE($AB215,\"{\",CHAR(160),IS$1))+1),\"\")","v":""},{"$f":"IFERROR(MID($AB215,FIND(CHAR(160),SUBSTITUTE($AB215,\"{\",CHAR(160),IT$1)),FIND(CHAR(160),SUBSTITUTE($AB215,\"}\",CHAR(160),IT$1))-FIND(CHAR(160),SUBSTITUTE($AB215,\"{\",CHAR(160),IT$1))+1),\"\")","v":""},{"$f":"IFERROR(MID($AB215,FIND(CHAR(160),SUBSTITUTE($AB215,\"{\",CHAR(160),IU$1)),FIND(CHAR(160),SUBSTITUTE($AB215,\"}\",CHAR(160),IU$1))-FIND(CHAR(160),SUBSTITUTE($AB215,\"{\",CHAR(160),IU$1))+1),\"\")","v":""},{"$f":"IFERROR(MID($AB215,FIND(CHAR(160),SUBSTITUTE($AB215,\"{\",CHAR(160),IV$1)),FIND(CHAR(160),SUBSTITUTE($AB215,\"}\",CHAR(160),IV$1))-FIND(CHAR(160),SUBSTITUTE($AB215,\"{\",CHAR(160),IV$1))+1),\"\")","v":""},{"$f":"IFERROR(MID($AB215,FIND(CHAR(160),SUBSTITUTE($AB215,\"{\",CHAR(160),IW$1)),FIND(CHAR(160),SUBSTITUTE($AB215,\"}\",CHAR(160),IW$1))-FIND(CHAR(160),SUBSTITUTE($AB215,\"{\",CHAR(160),IW$1))+1),\"\")","v":""},{"$f":"IFERROR(MID($AB215,FIND(CHAR(160),SUBSTITUTE($AB215,\"{\",CHAR(160),IX$1)),FIND(CHAR(160),SUBSTITUTE($AB215,\"}\",CHAR(160),IX$1))-FIND(CHAR(160),SUBSTITUTE($AB215,\"{\",CHAR(160),IX$1))+1),\"\")","v":""},null,{"$f":"10-COUNTIF(DU215:ED215,\"\")","v":1}]
["Low Income - NECEC Funds","Low Flow Kitchen Aerator Direct Install","LILFKA","2021-07-01","2022-06-30","Calculated","{Measure:Quantity}*1.77",0,"Calculated","{Measure:Quantity}*1.77",0,"2021-07-01","2022-06-30","Calculated","{Measure:Quantity}*if({Measure:Quantity}=0,0,79)",null,null,null,null,null,"{Measure:Quantity}*if({Measure:Quantity}=0,0,0.012)","{Measure:Quantity}*if({Measure:Quantity}=0,0,0.010)",null,null,null,null,null,"if({Measure:Quantity}=0,0,{Measure:Quantity}*2696)","2021-07-01","2022-06-30",10,1.2E-2,8.0000000000000002E-3,0.39700000000000002,0.26800000000000002,0.20300000000000001,0.13100000000000001,0.85,1,1,0,0,null,{"$f":"DU216","v":"{Measure:Quantity}"},1,{"$f":"DV216","v":""},1,{"$f":"DW216","v":""},null,{"$f":"DX216","v":""},null,{"$f":"DY216","v":""},null,{"$f":"DZ216","v":""},null,{"$f":"EA216","v":""},null,{"$f":"EB216","v":""},null,{"$f":"EC216","v":""},null,"LIDI Bundle Qty",0.5,{"$f":"AS216*IF(AS216=0,0,79)","v":79},0,0,0,0,0,{"$f":"AS216*IF(AS216=0,0,0.012)","v":1.2E-2},{"$f":"AS216*IF(AS216=0,0,0.01)","v":0.01},0,0,0,0,0,{"$f":"IF(AS216=0,0,AS216*2696)","v":2696},null,"Res","Default DR",{"$f":"Benefits(BL216,BR216,BS216,BT216,BU216,BV216,BW216,BX216,BY216,BZ216,AE216,AH216,AI216,AJ216,AK216,AL216,AM216,AN216,AO216,AP216,CA216,CB216)","v":66.146451515341823},38.545897377257639,0,0,0,0,0,160.06822300148838,0,{"$f":"SUMPRODUCT(CC216:CK216,--(CC216:CK216>0))","v":264.76057189408783},{"$f":"-SUMPRODUCT(CC216:CK216,--(CC216:CK216<0))","v":0},null,{"$f":"AS216*1.77","v":1.77},null,null,{"$f":"CM216+CO216","v":1.77},{"$f":"IF(NetOrGross=\"Net\",(1-AO216+AP216),1)","v":1},{"$f":"(SUMPRODUCT(CC216:CJ216,--(CC216:CJ216>0))+CN216)*CS216/((-SUMPRODUCT(CC216:CJ216,--(CC216:CJ216<0))+MAX(CO216,CV216)+CP216+CQ216)*CS216+IF(FRIncentives=\"Yes\",CV216*(1-CS216),0))","v":149.58224400795922},1,{"$f":"AS216*1.77","v":1.77},null,"Electric","y",{"$f":"CL216-CR216","v":262.99057189408785},{"$f":"IF(F216=\"Manual Entry\",\"Manual\",IF(G216=\"\",0,\"X=\"&SUBSTITUTE(SUBSTITUTE(SUBSTITUTE(SUBSTITUTE(SUBSTITUTE(SUBSTITUTE(SUBSTITUTE(SUBSTITUTE(SUBSTITUTE(SUBSTITUTE(SUBSTITUTE(SUBSTITUTE(G216,$ED216,$ED$2&ROW($ED216)),$EC216,$EC$2&ROW($EC216)),$EB216,$EB$2&ROW($EB216)),$EA216,$EA$2&ROW($EA216)),$DZ216,$DZ$2&ROW($DZ216)),$DY216,$DY$2&ROW($DY216)),$DX216,$DX$2&ROW($DX216)),$DW216,$DW$2&ROW($DW216)),$DV216,$DV$2&ROW($DV216)),$DU216,$DU$2&ROW($DU216)),$DT216,$DT$2&ROW($DT216)),$DS216,$DS$2&ROW($DS216))))","v":"X=AS216*1.77"},{"$f":"IF(I216=\"Manual Entry\",\"Manual\",IF(J216=\"\",0,\"X=\"&SUBSTITUTE(SUBSTITUTE(SUBSTITUTE(SUBSTITUTE(SUBSTITUTE(SUBSTITUTE(SUBSTITUTE(SUBSTITUTE(SUBSTITUTE(SUBSTITUTE(SUBSTITUTE(SUBSTITUTE(J216,$ED216,$ED$2&ROW($ED216)),$EC216,$EC$2&ROW($EC216)),$EB216,$EB$2&ROW($EB216)),$EA216,$EA$2&ROW($EA216)),$DZ216,$DZ$2&ROW($DZ216)),$DY216,$DY$2&ROW($DY216)),$DX216,$DX$2&ROW($DX216)),$DW216,$DW$2&ROW($DW216)),$DV216,$DV$2&ROW($DV216)),$DU216,$DU$2&ROW($DU216)),$DT216,$DT$2&ROW($DT216)),$DS216,$DS$2&ROW($DS216))))","v":"X=AS216*1.77"},{"$f":"IF(O216=\"\",0,\"X=\"&SUBSTITUTE(SUBSTITUTE(SUBSTITUTE(SUBSTITUTE(SUBSTITUTE(SUBSTITUTE(SUBSTITUTE(SUBSTITUTE(SUBSTITUTE(SUBSTITUTE(SUBSTITUTE(SUBSTITUTE(O216,$ED216,$ED$2&ROW($ED216)),$EC216,$EC$2&ROW($EC216)),$EB216,$EB$2&ROW($EB216)),$EA216,$EA$2&ROW($EA216)),$DZ216,$DZ$2&ROW($DZ216)),$DY216,$DY$2&ROW($DY216)),$DX216,$DX$2&ROW($DX216)),$DW216,$DW$2&ROW($DW216)),$DV216,$DV$2&ROW($DV216)),$DU216,$DU$2&ROW($DU216)),$DT216,$DT$2&ROW($DT216)),$DS216,$DS$2&ROW($DS216)))","v":"X=AS216*if(AS216=0,0,79)"},{"$f":"IF(P216=\"\",0,\"X=\"&SUBSTITUTE(SUBSTITUTE(SUBSTITUTE(SUBSTITUTE(SUBSTITUTE(SUBSTITUTE(SUBSTITUTE(SUBSTITUTE(SUBSTITUTE(SUBSTITUTE(SUBSTITUTE(SUBSTITUTE(P216,$ED216,$ED$2&ROW($ED216)),$EC216,$EC$2&ROW($EC216)),$EB216,$EB$2&ROW($EB216)),$EA216,$EA$2&ROW($EA216)),$DZ216,$DZ$2&ROW($DZ216)),$DY216,$DY$2&ROW($DY216)),$DX216,$DX$2&ROW($DX216)),$DW216,$DW$2&ROW($DW216)),$DV216,$DV$2&ROW($DV216)),$DU216,$DU$2&ROW($DU216)),$DT216,$DT$2&ROW($DT216)),$DS216,$DS$2&ROW($DS216)))","v":0},{"$f":"IF(Q216=\"\",0,\"X=\"&SUBSTITUTE(SUBSTITUTE(SUBSTITUTE(SUBSTITUTE(SUBSTITUTE(SUBSTITUTE(SUBSTITUTE(SUBSTITUTE(SUBSTITUTE(SUBSTITUTE(SUBSTITUTE(SUBSTITUTE(Q216,$ED216,$ED$2&ROW($ED216)),$EC216,$EC$2&ROW($EC216)),$EB216,$EB$2&ROW($EB216)),$EA216,$EA$2&ROW($EA216)),$DZ216,$DZ$2&ROW($DZ216)),$DY216,$DY$2&ROW($DY216)),$DX216,$DX$2&ROW($DX216)),$DW216,$DW$2&ROW($DW216)),$DV216,$DV$2&ROW($DV216)),$DU216,$DU$2&ROW($DU216)),$DT216,$DT$2&ROW($DT216)),$DS216,$DS$2&ROW($DS216)))","v":0},{"$f":"IF(R216=\"\",0,\"X=\"&SUBSTITUTE(SUBSTITUTE(SUBSTITUTE(SUBSTITUTE(SUBSTITUTE(SUBSTITUTE(SUBSTITUTE(SUBSTITUTE(SUBSTITUTE(SUBSTITUTE(SUBSTITUTE(SUBSTITUTE(R216,$ED216,$ED$2&ROW($ED216)),$EC216,$EC$2&ROW($EC216)),$EB216,$EB$2&ROW($EB216)),$EA216,$EA$2&ROW($EA216)),$DZ216,$DZ$2&ROW($DZ216)),$DY216,$DY$2&ROW($DY216)),$DX216,$DX$2&ROW($DX216)),$DW216,$DW$2&ROW($DW216)),$DV216,$DV$2&ROW($DV216)),$DU216,$DU$2&ROW($DU216)),$DT216,$DT$2&ROW($DT216)),$DS216,$DS$2&ROW($DS216)))","v":0},{"$f":"IF(S216=\"\",0,\"X=\"&SUBSTITUTE(SUBSTITUTE(SUBSTITUTE(SUBSTITUTE(SUBSTITUTE(SUBSTITUTE(SUBSTITUTE(SUBSTITUTE(SUBSTITUTE(SUBSTITUTE(SUBSTITUTE(SUBSTITUTE(S216,$ED216,$ED$2&ROW($ED216)),$EC216,$EC$2&ROW($EC216)),$EB216,$EB$2&ROW($EB216)),$EA216,$EA$2&ROW($EA216)),$DZ216,$DZ$2&ROW($DZ216)),$DY216,$DY$2&ROW($DY216)),$DX216,$DX$2&ROW($DX216)),$DW216,$DW$2&ROW($DW216)),$DV216,$DV$2&ROW($DV216)),$DU216,$DU$2&ROW($DU216)),$DT216,$DT$2&ROW($DT216)),$DS216,$DS$2&ROW($DS216)))","v":0},{"$f":"IF(T216=\"\",0,\"X=\"&SUBSTITUTE(SUBSTITUTE(SUBSTITUTE(SUBSTITUTE(SUBSTITUTE(SUBSTITUTE(SUBSTITUTE(SUBSTITUTE(SUBSTITUTE(SUBSTITUTE(SUBSTITUTE(SUBSTITUTE(T216,$ED216,$ED$2&ROW($ED216)),$EC216,$EC$2&ROW($EC216)),$EB216,$EB$2&ROW($EB216)),$EA216,$EA$2&ROW($EA216)),$DZ216,$DZ$2&ROW($DZ216)),$DY216,$DY$2&ROW($DY216)),$DX216,$DX$2&ROW($DX216)),$DW216,$DW$2&ROW($DW216)),$DV216,$DV$2&ROW($DV216)),$DU216,$DU$2&ROW($DU216)),$DT216,$DT$2&ROW($DT216)),$DS216,$DS$2&ROW($DS216)))","v":0},{"$f":"IF(U216=\"\",0,\"X=\"&SUBSTITUTE(SUBSTITUTE(SUBSTITUTE(SUBSTITUTE(SUBSTITUTE(SUBSTITUTE(SUBSTITUTE(SUBSTITUTE(SUBSTITUTE(SUBSTITUTE(SUBSTITUTE(SUBSTITUTE(U216,$ED216,$ED$2&ROW($ED216)),$EC216,$EC$2&ROW($EC216)),$EB216,$EB$2&ROW($EB216)),$EA216,$EA$2&ROW($EA216)),$DZ216,$DZ$2&ROW($DZ216)),$DY216,$DY$2&ROW($DY216)),$DX216,$DX$2&ROW($DX216)),$DW216,$DW$2&ROW($DW216)),$DV216,$DV$2&ROW($DV216)),$DU216,$DU$2&ROW($DU216)),$DT216,$DT$2&ROW($DT216)),$DS216,$DS$2&ROW($DS216)))","v":"X=AS216*if(AS216=0,0,0.012)"},{"$f":"IF(V216=\"\",0,\"X=\"&SUBSTITUTE(SUBSTITUTE(SUBSTITUTE(SUBSTITUTE(SUBSTITUTE(SUBSTITUTE(SUBSTITUTE(SUBSTITUTE(SUBSTITUTE(SUBSTITUTE(SUBSTITUTE(SUBSTITUTE(V216,$ED216,$ED$2&ROW($ED216)),$EC216,$EC$2&ROW($EC216)),$EB216,$EB$2&ROW($EB216)),$EA216,$EA$2&ROW($EA216)),$DZ216,$DZ$2&ROW($DZ216)),$DY216,$DY$2&ROW($DY216)),$DX216,$DX$2&ROW($DX216)),$DW216,$DW$2&ROW($DW216)),$DV216,$DV$2&ROW($DV216)),$DU216,$DU$2&ROW($DU216)),$DT216,$DT$2&ROW($DT216)),$DS216,$DS$2&ROW($DS216)))","v":"X=AS216*if(AS216=0,0,0.010)"},{"$f":"IF(W216=\"\",0,\"X=\"&SUBSTITUTE(SUBSTITUTE(SUBSTITUTE(SUBSTITUTE(SUBSTITUTE(SUBSTITUTE(SUBSTITUTE(SUBSTITUTE(SUBSTITUTE(SUBSTITUTE(SUBSTITUTE(SUBSTITUTE(W216,$ED216,$ED$2&ROW($ED216)),$EC216,$EC$2&ROW($EC216)),$EB216,$EB$2&ROW($EB216)),$EA216,$EA$2&ROW($EA216)),$DZ216,$DZ$2&ROW($DZ216)),$DY216,$DY$2&ROW($DY216)),$DX216,$DX$2&ROW($DX216)),$DW216,$DW$2&ROW($DW216)),$DV216,$DV$2&ROW($DV216)),$DU216,$DU$2&ROW($DU216)),$DT216,$DT$2&ROW($DT216)),$DS216,$DS$2&ROW($DS216)))","v":0},{"$f":"IF(X216=\"\",0,\"X=\"&SUBSTITUTE(SUBSTITUTE(SUBSTITUTE(SUBSTITUTE(SUBSTITUTE(SUBSTITUTE(SUBSTITUTE(SUBSTITUTE(SUBSTITUTE(SUBSTITUTE(SUBSTITUTE(SUBSTITUTE(X216,$ED216,$ED$2&ROW($ED216)),$EC216,$EC$2&ROW($EC216)),$EB216,$EB$2&ROW($EB216)),$EA216,$EA$2&ROW($EA216)),$DZ216,$DZ$2&ROW($DZ216)),$DY216,$DY$2&ROW($DY216)),$DX216,$DX$2&ROW($DX216)),$DW216,$DW$2&ROW($DW216)),$DV216,$DV$2&ROW($DV216)),$DU216,$DU$2&ROW($DU216)),$DT216,$DT$2&ROW($DT216)),$DS216,$DS$2&ROW($DS216)))","v":0},{"$f":"IF(Y216=\"\",0,\"X=\"&SUBSTITUTE(SUBSTITUTE(SUBSTITUTE(SUBSTITUTE(SUBSTITUTE(SUBSTITUTE(SUBSTITUTE(SUBSTITUTE(SUBSTITUTE(SUBSTITUTE(SUBSTITUTE(SUBSTITUTE(Y216,$ED216,$ED$2&ROW($ED216)),$EC216,$EC$2&ROW($EC216)),$EB216,$EB$2&ROW($EB216)),$EA216,$EA$2&ROW($EA216)),$DZ216,$DZ$2&ROW($DZ216)),$DY216,$DY$2&ROW($DY216)),$DX216,$DX$2&ROW($DX216)),$DW216,$DW$2&ROW($DW216)),$DV216,$DV$2&ROW($DV216)),$DU216,$DU$2&ROW($DU216)),$DT216,$DT$2&ROW($DT216)),$DS216,$DS$2&ROW($DS216)))","v":0},{"$f":"IF(Z216=\"\",0,\"X=\"&SUBSTITUTE(SUBSTITUTE(SUBSTITUTE(SUBSTITUTE(SUBSTITUTE(SUBSTITUTE(SUBSTITUTE(SUBSTITUTE(SUBSTITUTE(SUBSTITUTE(SUBSTITUTE(SUBSTITUTE(Z216,$ED216,$ED$2&ROW($ED216)),$EC216,$EC$2&ROW($EC216)),$EB216,$EB$2&ROW($EB216)),$EA216,$EA$2&ROW($EA216)),$DZ216,$DZ$2&ROW($DZ216)),$DY216,$DY$2&ROW($DY216)),$DX216,$DX$2&ROW($DX216)),$DW216,$DW$2&ROW($DW216)),$DV216,$DV$2&ROW($DV216)),$DU216,$DU$2&ROW($DU216)),$DT216,$DT$2&ROW($DT216)),$DS216,$DS$2&ROW($DS216)))","v":0},{"$f":"IF(AA216=\"\",0,\"X=\"&SUBSTITUTE(SUBSTITUTE(SUBSTITUTE(SUBSTITUTE(SUBSTITUTE(SUBSTITUTE(SUBSTITUTE(SUBSTITUTE(SUBSTITUTE(SUBSTITUTE(SUBSTITUTE(SUBSTITUTE(AA216,$ED216,$ED$2&ROW($ED216)),$EC216,$EC$2&ROW($EC216)),$EB216,$EB$2&ROW($EB216)),$EA216,$EA$2&ROW($EA216)),$DZ216,$DZ$2&ROW($DZ216)),$DY216,$DY$2&ROW($DY216)),$DX216,$DX$2&ROW($DX216)),$DW216,$DW$2&ROW($DW216)),$DV216,$DV$2&ROW($DV216)),$DU216,$DU$2&ROW($DU216)),$DT216,$DT$2&ROW($DT216)),$DS216,$DS$2&ROW($DS216)))","v":0},{"$f":"IF(AB216=\"\",0,\"X=\"&SUBSTITUTE(SUBSTITUTE(SUBSTITUTE(SUBSTITUTE(SUBSTITUTE(SUBSTITUTE(SUBSTITUTE(SUBSTITUTE(SUBSTITUTE(SUBSTITUTE(SUBSTITUTE(SUBSTITUTE(AB216,$ED216,$ED$2&ROW($ED216)),$EC216,$EC$2&ROW($EC216)),$EB216,$EB$2&ROW($EB216)),$EA216,$EA$2&ROW($EA216)),$DZ216,$DZ$2&ROW($DZ216)),$DY216,$DY$2&ROW($DY216)),$DX216,$DX$2&ROW($DX216)),$DW216,$DW$2&ROW($DW216)),$DV216,$DV$2&ROW($DV216)),$DU216,$DU$2&ROW($DU216)),$DT216,$DT$2&ROW($DT216)),$DS216,$DS$2&ROW($DS216)))","v":"X=if(AS216=0,0,AS216*2696)"},null,null,"{Factor:WinterCF}","{Factor:SummerCF}",{"$f":"IFERROR(INDEX($EG216:$IV216,MATCH(0,COUNTIF($DR216:DT216,$EG216:$IV216),0)),\"\")","v":"{Measure:Quantity}"},{"$f":"IFERROR(INDEX($EG216:$IV216,MATCH(0,COUNTIF($DR216:DU216,$EG216:$IV216),0)),\"\")","v":""},{"$f":"IFERROR(INDEX($EG216:$IV216,MATCH(0,COUNTIF($DR216:DV216,$EG216:$IV216),0)),\"\")","v":""},{"$f":"IFERROR(INDEX($EG216:$IV216,MATCH(0,COUNTIF($DR216:DW216,$EG216:$IV216),0)),\"\")","v":""},{"$f":"IFERROR(INDEX($EG216:$IV216,MATCH(0,COUNTIF($DR216:DX216,$EG216:$IV216),0)),\"\")","v":""},{"$f":"IFERROR(INDEX($EG216:$IV216,MATCH(0,COUNTIF($DR216:DY216,$EG216:$IV216),0)),\"\")","v":""},{"$f":"IFERROR(INDEX($EG216:$IV216,MATCH(0,COUNTIF($DR216:DZ216,$EG216:$IV216),0)),\"\")","v":""},{"$f":"IFERROR(INDEX($EG216:$IV216,MATCH(0,COUNTIF($DR216:EA216,$EG216:$IV216),0)),\"\")","v":""},{"$f":"IFERROR(INDEX($EG216:$IV216,MATCH(0,COUNTIF($DR216:EB216,$EG216:$IV216),0)),\"\")","v":""},{"$f":"IFERROR(INDEX($EG216:$IV216,MATCH(0,COUNTIF($DR216:EC216,$EG216:$IV216),0)),\"\")","v":""},null,null,{"$f":"IFERROR(MID($G216,FIND(CHAR(160),SUBSTITUTE($G216,\"{\",CHAR(160),EG$1)),FIND(CHAR(160),SUBSTITUTE($G216,\"}\",CHAR(160),EG$1))-FIND(CHAR(160),SUBSTITUTE($G216,\"{\",CHAR(160),EG$1))+1),\"\")","v":"{Measure:Quantity}"},{"$f":"IFERROR(MID($G216,FIND(CHAR(160),SUBSTITUTE($G216,\"{\",CHAR(160),EH$1)),FIND(CHAR(160),SUBSTITUTE($G216,\"}\",CHAR(160),EH$1))-FIND(CHAR(160),SUBSTITUTE($G216,\"{\",CHAR(160),EH$1))+1),\"\")","v":""},{"$f":"IFERROR(MID($G216,FIND(CHAR(160),SUBSTITUTE($G216,\"{\",CHAR(160),EI$1)),FIND(CHAR(160),SUBSTITUTE($G216,\"}\",CHAR(160),EI$1))-FIND(CHAR(160),SUBSTITUTE($G216,\"{\",CHAR(160),EI$1))+1),\"\")","v":""},{"$f":"IFERROR(MID($G216,FIND(CHAR(160),SUBSTITUTE($G216,\"{\",CHAR(160),EJ$1)),FIND(CHAR(160),SUBSTITUTE($G216,\"}\",CHAR(160),EJ$1))-FIND(CHAR(160),SUBSTITUTE($G216,\"{\",CHAR(160),EJ$1))+1),\"\")","v":""},{"$f":"IFERROR(MID($G216,FIND(CHAR(160),SUBSTITUTE($G216,\"{\",CHAR(160),EK$1)),FIND(CHAR(160),SUBSTITUTE($G216,\"}\",CHAR(160),EK$1))-FIND(CHAR(160),SUBSTITUTE($G216,\"{\",CHAR(160),EK$1))+1),\"\")","v":""},{"$f":"IFERROR(MID($G216,FIND(CHAR(160),SUBSTITUTE($G216,\"{\",CHAR(160),EL$1)),FIND(CHAR(160),SUBSTITUTE($G216,\"}\",CHAR(160),EL$1))-FIND(CHAR(160),SUBSTITUTE($G216,\"{\",CHAR(160),EL$1))+1),\"\")","v":""},{"$f":"IFERROR(MID($G216,FIND(CHAR(160),SUBSTITUTE($G216,\"{\",CHAR(160),EM$1)),FIND(CHAR(160),SUBSTITUTE($G216,\"}\",CHAR(160),EM$1))-FIND(CHAR(160),SUBSTITUTE($G216,\"{\",CHAR(160),EM$1))+1),\"\")","v":""},{"$f":"IFERROR(MID($G216,FIND(CHAR(160),SUBSTITUTE($G216,\"{\",CHAR(160),EN$1)),FIND(CHAR(160),SUBSTITUTE($G216,\"}\",CHAR(160),EN$1))-FIND(CHAR(160),SUBSTITUTE($G216,\"{\",CHAR(160),EN$1))+1),\"\")","v":""},{"$f":"IFERROR(MID($G216,FIND(CHAR(160),SUBSTITUTE($G216,\"{\",CHAR(160),EO$1)),FIND(CHAR(160),SUBSTITUTE($G216,\"}\",CHAR(160),EO$1))-FIND(CHAR(160),SUBSTITUTE($G216,\"{\",CHAR(160),EO$1))+1),\"\")","v":""},{"$f":"IFERROR(MID($G216,FIND(CHAR(160),SUBSTITUTE($G216,\"{\",CHAR(160),EP$1)),FIND(CHAR(160),SUBSTITUTE($G216,\"}\",CHAR(160),EP$1))-FIND(CHAR(160),SUBSTITUTE($G216,\"{\",CHAR(160),EP$1))+1),\"\")","v":""},{"$f":"IFERROR(MID($J216,FIND(CHAR(160),SUBSTITUTE($J216,\"{\",CHAR(160),EQ$1)),FIND(CHAR(160),SUBSTITUTE($J216,\"}\",CHAR(160),EQ$1))-FIND(CHAR(160),SUBSTITUTE($J216,\"{\",CHAR(160),EQ$1))+1),\"\")","v":"{Measure:Quantity}"},{"$f":"IFERROR(MID($J216,FIND(CHAR(160),SUBSTITUTE($J216,\"{\",CHAR(160),ER$1)),FIND(CHAR(160),SUBSTITUTE($J216,\"}\",CHAR(160),ER$1))-FIND(CHAR(160),SUBSTITUTE($J216,\"{\",CHAR(160),ER$1))+1),\"\")","v":""},{"$f":"IFERROR(MID($J216,FIND(CHAR(160),SUBSTITUTE($J216,\"{\",CHAR(160),ES$1)),FIND(CHAR(160),SUBSTITUTE($J216,\"}\",CHAR(160),ES$1))-FIND(CHAR(160),SUBSTITUTE($J216,\"{\",CHAR(160),ES$1))+1),\"\")","v":""},{"$f":"IFERROR(MID($J216,FIND(CHAR(160),SUBSTITUTE($J216,\"{\",CHAR(160),ET$1)),FIND(CHAR(160),SUBSTITUTE($J216,\"}\",CHAR(160),ET$1))-FIND(CHAR(160),SUBSTITUTE($J216,\"{\",CHAR(160),ET$1))+1),\"\")","v":""},{"$f":"IFERROR(MID($J216,FIND(CHAR(160),SUBSTITUTE($J216,\"{\",CHAR(160),EU$1)),FIND(CHAR(160),SUBSTITUTE($J216,\"}\",CHAR(160),EU$1))-FIND(CHAR(160),SUBSTITUTE($J216,\"{\",CHAR(160),EU$1))+1),\"\")","v":""},{"$f":"IFERROR(MID($J216,FIND(CHAR(160),SUBSTITUTE($J216,\"{\",CHAR(160),EV$1)),FIND(CHAR(160),SUBSTITUTE($J216,\"}\",CHAR(160),EV$1))-FIND(CHAR(160),SUBSTITUTE($J216,\"{\",CHAR(160),EV$1))+1),\"\")","v":""},{"$f":"IFERROR(MID($J216,FIND(CHAR(160),SUBSTITUTE($J216,\"{\",CHAR(160),EW$1)),FIND(CHAR(160),SUBSTITUTE($J216,\"}\",CHAR(160),EW$1))-FIND(CHAR(160),SUBSTITUTE($J216,\"{\",CHAR(160),EW$1))+1),\"\")","v":""},{"$f":"IFERROR(MID($J216,FIND(CHAR(160),SUBSTITUTE($J216,\"{\",CHAR(160),EX$1)),FIND(CHAR(160),SUBSTITUTE($J216,\"}\",CHAR(160),EX$1))-FIND(CHAR(160),SUBSTITUTE($J216,\"{\",CHAR(160),EX$1))+1),\"\")","v":""},{"$f":"IFERROR(MID($J216,FIND(CHAR(160),SUBSTITUTE($J216,\"{\",CHAR(160),EY$1)),FIND(CHAR(160),SUBSTITUTE($J216,\"}\",CHAR(160),EY$1))-FIND(CHAR(160),SUBSTITUTE($J216,\"{\",CHAR(160),EY$1))+1),\"\")","v":""},{"$f":"IFERROR(MID($J216,FIND(CHAR(160),SUBSTITUTE($J216,\"{\",CHAR(160),EZ$1)),FIND(CHAR(160),SUBSTITUTE($J216,\"}\",CHAR(160),EZ$1))-FIND(CHAR(160),SUBSTITUTE($J216,\"{\",CHAR(160),EZ$1))+1),\"\")","v":""},{"$f":"IFERROR(MID($J216,FIND(CHAR(160),SUBSTITUTE($J216,\"{\",CHAR(160),FA$1)),FIND(CHAR(160),SUBSTITUTE($J216,\"}\",CHAR(160),FA$1))-FIND(CHAR(160),SUBSTITUTE($J216,\"{\",CHAR(160),FA$1))+1),\"\")","v":"{Measure:Quantity}"},{"$f":"IFERROR(MID($J216,FIND(CHAR(160),SUBSTITUTE($J216,\"{\",CHAR(160),FB$1)),FIND(CHAR(160),SUBSTITUTE($J216,\"}\",CHAR(160),FB$1))-FIND(CHAR(160),SUBSTITUTE($J216,\"{\",CHAR(160),FB$1))+1),\"\")","v":""},{"$f":"IFERROR(MID($O216,FIND(CHAR(160),SUBSTITUTE($O216,\"{\",CHAR(160),FC$1)),FIND(CHAR(160),SUBSTITUTE($O216,\"}\",CHAR(160),FC$1))-FIND(CHAR(160),SUBSTITUTE($O216,\"{\",CHAR(160),FC$1))+1),\"\")","v":""},{"$f":"IFERROR(MID($O216,FIND(CHAR(160),SUBSTITUTE($O216,\"{\",CHAR(160),FD$1)),FIND(CHAR(160),SUBSTITUTE($O216,\"}\",CHAR(160),FD$1))-FIND(CHAR(160),SUBSTITUTE($O216,\"{\",CHAR(160),FD$1))+1),\"\")","v":""},{"$f":"IFERROR(MID($O216,FIND(CHAR(160),SUBSTITUTE($O216,\"{\",CHAR(160),FE$1)),FIND(CHAR(160),SUBSTITUTE($O216,\"}\",CHAR(160),FE$1))-FIND(CHAR(160),SUBSTITUTE($O216,\"{\",CHAR(160),FE$1))+1),\"\")","v":""},{"$f":"IFERROR(MID($O216,FIND(CHAR(160),SUBSTITUTE($O216,\"{\",CHAR(160),FF$1)),FIND(CHAR(160),SUBSTITUTE($O216,\"}\",CHAR(160),FF$1))-FIND(CHAR(160),SUBSTITUTE($O216,\"{\",CHAR(160),FF$1))+1),\"\")","v":""},{"$f":"IFERROR(MID($O216,FIND(CHAR(160),SUBSTITUTE($O216,\"{\",CHAR(160),FG$1)),FIND(CHAR(160),SUBSTITUTE($O216,\"}\",CHAR(160),FG$1))-FIND(CHAR(160),SUBSTITUTE($O216,\"{\",CHAR(160),FG$1))+1),\"\")","v":""},{"$f":"IFERROR(MID($O216,FIND(CHAR(160),SUBSTITUTE($O216,\"{\",CHAR(160),FH$1)),FIND(CHAR(160),SUBSTITUTE($O216,\"}\",CHAR(160),FH$1))-FIND(CHAR(160),SUBSTITUTE($O216,\"{\",CHAR(160),FH$1))+1),\"\")","v":""},{"$f":"IFERROR(MID($O216,FIND(CHAR(160),SUBSTITUTE($O216,\"{\",CHAR(160),FI$1)),FIND(CHAR(160),SUBSTITUTE($O216,\"}\",CHAR(160),FI$1))-FIND(CHAR(160),SUBSTITUTE($O216,\"{\",CHAR(160),FI$1))+1),\"\")","v":""},{"$f":"IFERROR(MID($O216,FIND(CHAR(160),SUBSTITUTE($O216,\"{\",CHAR(160),FJ$1)),FIND(CHAR(160),SUBSTITUTE($O216,\"}\",CHAR(160),FJ$1))-FIND(CHAR(160),SUBSTITUTE($O216,\"{\",CHAR(160),FJ$1))+1),\"\")","v":""},{"$f":"IFERROR(MID($O216,FIND(CHAR(160),SUBSTITUTE($O216,\"{\",CHAR(160),FK$1)),FIND(CHAR(160),SUBSTITUTE($O216,\"}\",CHAR(160),FK$1))-FIND(CHAR(160),SUBSTITUTE($O216,\"{\",CHAR(160),FK$1))+1),\"\")","v":"{Measure:Quantity}"},{"$f":"IFERROR(MID($O216,FIND(CHAR(160),SUBSTITUTE($O216,\"{\",CHAR(160),FL$1)),FIND(CHAR(160),SUBSTITUTE($O216,\"}\",CHAR(160),FL$1))-FIND(CHAR(160),SUBSTITUTE($O216,\"{\",CHAR(160),FL$1))+1),\"\")","v":"{Measure:Quantity}"},{"$f":"IFERROR(MID($R216,FIND(CHAR(160),SUBSTITUTE($R216,\"{\",CHAR(160),FM$1)),FIND(CHAR(160),SUBSTITUTE($R216,\"}\",CHAR(160),FM$1))-FIND(CHAR(160),SUBSTITUTE($R216,\"{\",CHAR(160),FM$1))+1),\"\")","v":""},{"$f":"IFERROR(MID($R216,FIND(CHAR(160),SUBSTITUTE($R216,\"{\",CHAR(160),FN$1)),FIND(CHAR(160),SUBSTITUTE($R216,\"}\",CHAR(160),FN$1))-FIND(CHAR(160),SUBSTITUTE($R216,\"{\",CHAR(160),FN$1))+1),\"\")","v":""},{"$f":"IFERROR(MID($R216,FIND(CHAR(160),SUBSTITUTE($R216,\"{\",CHAR(160),FO$1)),FIND(CHAR(160),SUBSTITUTE($R216,\"}\",CHAR(160),FO$1))-FIND(CHAR(160),SUBSTITUTE($R216,\"{\",CHAR(160),FO$1))+1),\"\")","v":""},{"$f":"IFERROR(MID($R216,FIND(CHAR(160),SUBSTITUTE($R216,\"{\",CHAR(160),FP$1)),FIND(CHAR(160),SUBSTITUTE($R216,\"}\",CHAR(160),FP$1))-FIND(CHAR(160),SUBSTITUTE($R216,\"{\",CHAR(160),FP$1))+1),\"\")","v":""},{"$f":"IFERROR(MID($R216,FIND(CHAR(160),SUBSTITUTE($R216,\"{\",CHAR(160),FQ$1)),FIND(CHAR(160),SUBSTITUTE($R216,\"}\",CHAR(160),FQ$1))-FIND(CHAR(160),SUBSTITUTE($R216,\"{\",CHAR(160),FQ$1))+1),\"\")","v":""},{"$f":"IFERROR(MID($R216,FIND(CHAR(160),SUBSTITUTE($R216,\"{\",CHAR(160),FR$1)),FIND(CHAR(160),SUBSTITUTE($R216,\"}\",CHAR(160),FR$1))-FIND(CHAR(160),SUBSTITUTE($R216,\"{\",CHAR(160),FR$1))+1),\"\")","v":""},{"$f":"IFERROR(MID($R216,FIND(CHAR(160),SUBSTITUTE($R216,\"{\",CHAR(160),FS$1)),FIND(CHAR(160),SUBSTITUTE($R216,\"}\",CHAR(160),FS$1))-FIND(CHAR(160),SUBSTITUTE($R216,\"{\",CHAR(160),FS$1))+1),\"\")","v":""},{"$f":"IFERROR(MID($R216,FIND(CHAR(160),SUBSTITUTE($R216,\"{\",CHAR(160),FT$1)),FIND(CHAR(160),SUBSTITUTE($R216,\"}\",CHAR(160),FT$1))-FIND(CHAR(160),SUBSTITUTE($R216,\"{\",CHAR(160),FT$1))+1),\"\")","v":""},{"$f":"IFERROR(MID($R216,FIND(CHAR(160),SUBSTITUTE($R216,\"{\",CHAR(160),FU$1)),FIND(CHAR(160),SUBSTITUTE($R216,\"}\",CHAR(160),FU$1))-FIND(CHAR(160),SUBSTITUTE($R216,\"{\",CHAR(160),FU$1))+1),\"\")","v":""},{"$f":"IFERROR(MID($R216,FIND(CHAR(160),SUBSTITUTE($R216,\"{\",CHAR(160),FV$1)),FIND(CHAR(160),SUBSTITUTE($R216,\"}\",CHAR(160),FV$1))-FIND(CHAR(160),SUBSTITUTE($R216,\"{\",CHAR(160),FV$1))+1),\"\")","v":""},{"$f":"IFERROR(MID($U216,FIND(CHAR(160),SUBSTITUTE($U216,\"{\",CHAR(160),FW$1)),FIND(CHAR(160),SUBSTITUTE($U216,\"}\",CHAR(160),FW$1))-FIND(CHAR(160),SUBSTITUTE($U216,\"{\",CHAR(160),FW$1))+1),\"\")","v":""},{"$f":"IFERROR(MID($U216,FIND(CHAR(160),SUBSTITUTE($U216,\"{\",CHAR(160),FX$1)),FIND(CHAR(160),SUBSTITUTE($U216,\"}\",CHAR(160),FX$1))-FIND(CHAR(160),SUBSTITUTE($U216,\"{\",CHAR(160),FX$1))+1),\"\")","v":""},{"$f":"IFERROR(MID($U216,FIND(CHAR(160),SUBSTITUTE($U216,\"{\",CHAR(160),FY$1)),FIND(CHAR(160),SUBSTITUTE($U216,\"}\",CHAR(160),FY$1))-FIND(CHAR(160),SUBSTITUTE($U216,\"{\",CHAR(160),FY$1))+1),\"\")","v":""},{"$f":"IFERROR(MID($U216,FIND(CHAR(160),SUBSTITUTE($U216,\"{\",CHAR(160),FZ$1)),FIND(CHAR(160),SUBSTITUTE($U216,\"}\",CHAR(160),FZ$1))-FIND(CHAR(160),SUBSTITUTE($U216,\"{\",CHAR(160),FZ$1))+1),\"\")","v":""},{"$f":"IFERROR(MID($U216,FIND(CHAR(160),SUBSTITUTE($U216,\"{\",CHAR(160),GA$1)),FIND(CHAR(160),SUBSTITUTE($U216,\"}\",CHAR(160),GA$1))-FIND(CHAR(160),SUBSTITUTE($U216,\"{\",CHAR(160),GA$1))+1),\"\")","v":""},{"$f":"IFERROR(MID($U216,FIND(CHAR(160),SUBSTITUTE($U216,\"{\",CHAR(160),GB$1)),FIND(CHAR(160),SUBSTITUTE($U216,\"}\",CHAR(160),GB$1))-FIND(CHAR(160),SUBSTITUTE($U216,\"{\",CHAR(160),GB$1))+1),\"\")","v":""},{"$f":"IFERROR(MID($U216,FIND(CHAR(160),SUBSTITUTE($U216,\"{\",CHAR(160),GC$1)),FIND(CHAR(160),SUBSTITUTE($U216,\"}\",CHAR(160),GC$1))-FIND(CHAR(160),SUBSTITUTE($U216,\"{\",CHAR(160),GC$1))+1),\"\")","v":""},{"$f":"IFERROR(MID($U216,FIND(CHAR(160),SUBSTITUTE($U216,\"{\",CHAR(160),GD$1)),FIND(CHAR(160),SUBSTITUTE($U216,\"}\",CHAR(160),GD$1))-FIND(CHAR(160),SUBSTITUTE($U216,\"{\",CHAR(160),GD$1))+1),\"\")","v":""},{"$f":"IFERROR(MID($U216,FIND(CHAR(160),SUBSTITUTE($U216,\"{\",CHAR(160),GE$1)),FIND(CHAR(160),SUBSTITUTE($U216,\"}\",CHAR(160),GE$1))-FIND(CHAR(160),SUBSTITUTE($U216,\"{\",CHAR(160),GE$1))+1),\"\")","v":"{Measure:Quantity}"},{"$f":"IFERROR(MID($U216,FIND(CHAR(160),SUBSTITUTE($U216,\"{\",CHAR(160),GF$1)),FIND(CHAR(160),SUBSTITUTE($U216,\"}\",CHAR(160),GF$1))-FIND(CHAR(160),SUBSTITUTE($U216,\"{\",CHAR(160),GF$1))+1),\"\")","v":"{Measure:Quantity}"},{"$f":"IFERROR(MID($V216,FIND(CHAR(160),SUBSTITUTE($V216,\"{\",CHAR(160),GG$1)),FIND(CHAR(160),SUBSTITUTE($V216,\"}\",CHAR(160),GG$1))-FIND(CHAR(160),SUBSTITUTE($V216,\"{\",CHAR(160),GG$1))+1),\"\")","v":""},{"$f":"IFERROR(MID($V216,FIND(CHAR(160),SUBSTITUTE($V216,\"{\",CHAR(160),GH$1)),FIND(CHAR(160),SUBSTITUTE($V216,\"}\",CHAR(160),GH$1))-FIND(CHAR(160),SUBSTITUTE($V216,\"{\",CHAR(160),GH$1))+1),\"\")","v":""},{"$f":"IFERROR(MID($V216,FIND(CHAR(160),SUBSTITUTE($V216,\"{\",CHAR(160),GI$1)),FIND(CHAR(160),SUBSTITUTE($V216,\"}\",CHAR(160),GI$1))-FIND(CHAR(160),SUBSTITUTE($V216,\"{\",CHAR(160),GI$1))+1),\"\")","v":""},{"$f":"IFERROR(MID($V216,FIND(CHAR(160),SUBSTITUTE($V216,\"{\",CHAR(160),GJ$1)),FIND(CHAR(160),SUBSTITUTE($V216,\"}\",CHAR(160),GJ$1))-FIND(CHAR(160),SUBSTITUTE($V216,\"{\",CHAR(160),GJ$1))+1),\"\")","v":""},{"$f":"IFERROR(MID($V216,FIND(CHAR(160),SUBSTITUTE($V216,\"{\",CHAR(160),GK$1)),FIND(CHAR(160),SUBSTITUTE($V216,\"}\",CHAR(160),GK$1))-FIND(CHAR(160),SUBSTITUTE($V216,\"{\",CHAR(160),GK$1))+1),\"\")","v":""},{"$f":"IFERROR(MID($V216,FIND(CHAR(160),SUBSTITUTE($V216,\"{\",CHAR(160),GL$1)),FIND(CHAR(160),SUBSTITUTE($V216,\"}\",CHAR(160),GL$1))-FIND(CHAR(160),SUBSTITUTE($V216,\"{\",CHAR(160),GL$1))+1),\"\")","v":""},{"$f":"IFERROR(MID($V216,FIND(CHAR(160),SUBSTITUTE($V216,\"{\",CHAR(160),GM$1)),FIND(CHAR(160),SUBSTITUTE($V216,\"}\",CHAR(160),GM$1))-FIND(CHAR(160),SUBSTITUTE($V216,\"{\",CHAR(160),GM$1))+1),\"\")","v":""},{"$f":"IFERROR(MID($V216,FIND(CHAR(160),SUBSTITUTE($V216,\"{\",CHAR(160),GN$1)),FIND(CHAR(160),SUBSTITUTE($V216,\"}\",CHAR(160),GN$1))-FIND(CHAR(160),SUBSTITUTE($V216,\"{\",CHAR(160),GN$1))+1),\"\")","v":""},{"$f":"IFERROR(MID($V216,FIND(CHAR(160),SUBSTITUTE($V216,\"{\",CHAR(160),GO$1)),FIND(CHAR(160),SUBSTITUTE($V216,\"}\",CHAR(160),GO$1))-FIND(CHAR(160),SUBSTITUTE($V216,\"{\",CHAR(160),GO$1))+1),\"\")","v":"{Measure:Quantity}"},{"$f":"IFERROR(MID($V216,FIND(CHAR(160),SUBSTITUTE($V216,\"{\",CHAR(160),GP$1)),FIND(CHAR(160),SUBSTITUTE($V216,\"}\",CHAR(160),GP$1))-FIND(CHAR(160),SUBSTITUTE($V216,\"{\",CHAR(160),GP$1))+1),\"\")","v":"{Measure:Quantity}"},{"$f":"IFERROR(MID($W216,FIND(CHAR(160),SUBSTITUTE($W216,\"{\",CHAR(160),GQ$1)),FIND(CHAR(160),SUBSTITUTE($W216,\"}\",CHAR(160),GQ$1))-FIND(CHAR(160),SUBSTITUTE($W216,\"{\",CHAR(160),GQ$1))+1),\"\")","v":""},{"$f":"IFERROR(MID($W216,FIND(CHAR(160),SUBSTITUTE($W216,\"{\",CHAR(160),GR$1)),FIND(CHAR(160),SUBSTITUTE($W216,\"}\",CHAR(160),GR$1))-FIND(CHAR(160),SUBSTITUTE($W216,\"{\",CHAR(160),GR$1))+1),\"\")","v":""},{"$f":"IFERROR(MID($W216,FIND(CHAR(160),SUBSTITUTE($W216,\"{\",CHAR(160),GS$1)),FIND(CHAR(160),SUBSTITUTE($W216,\"}\",CHAR(160),GS$1))-FIND(CHAR(160),SUBSTITUTE($W216,\"{\",CHAR(160),GS$1))+1),\"\")","v":""},{"$f":"IFERROR(MID($W216,FIND(CHAR(160),SUBSTITUTE($W216,\"{\",CHAR(160),GT$1)),FIND(CHAR(160),SUBSTITUTE($W216,\"}\",CHAR(160),GT$1))-FIND(CHAR(160),SUBSTITUTE($W216,\"{\",CHAR(160),GT$1))+1),\"\")","v":""},{"$f":"IFERROR(MID($W216,FIND(CHAR(160),SUBSTITUTE($W216,\"{\",CHAR(160),GU$1)),FIND(CHAR(160),SUBSTITUTE($W216,\"}\",CHAR(160),GU$1))-FIND(CHAR(160),SUBSTITUTE($W216,\"{\",CHAR(160),GU$1))+1),\"\")","v":""},{"$f":"IFERROR(MID($W216,FIND(CHAR(160),SUBSTITUTE($W216,\"{\",CHAR(160),GV$1)),FIND(CHAR(160),SUBSTITUTE($W216,\"}\",CHAR(160),GV$1))-FIND(CHAR(160),SUBSTITUTE($W216,\"{\",CHAR(160),GV$1))+1),\"\")","v":""},{"$f":"IFERROR(MID($W216,FIND(CHAR(160),SUBSTITUTE($W216,\"{\",CHAR(160),GW$1)),FIND(CHAR(160),SUBSTITUTE($W216,\"}\",CHAR(160),GW$1))-FIND(CHAR(160),SUBSTITUTE($W216,\"{\",CHAR(160),GW$1))+1),\"\")","v":""},{"$f":"IFERROR(MID($W216,FIND(CHAR(160),SUBSTITUTE($W216,\"{\",CHAR(160),GX$1)),FIND(CHAR(160),SUBSTITUTE($W216,\"}\",CHAR(160),GX$1))-FIND(CHAR(160),SUBSTITUTE($W216,\"{\",CHAR(160),GX$1))+1),\"\")","v":""},{"$f":"IFERROR(MID($W216,FIND(CHAR(160),SUBSTITUTE($W216,\"{\",CHAR(160),GY$1)),FIND(CHAR(160),SUBSTITUTE($W216,\"}\",CHAR(160),GY$1))-FIND(CHAR(160),SUBSTITUTE($W216,\"{\",CHAR(160),GY$1))+1),\"\")","v":""},{"$f":"IFERROR(MID($W216,FIND(CHAR(160),SUBSTITUTE($W216,\"{\",CHAR(160),GZ$1)),FIND(CHAR(160),SUBSTITUTE($W216,\"}\",CHAR(160),GZ$1))-FIND(CHAR(160),SUBSTITUTE($W216,\"{\",CHAR(160),GZ$1))+1),\"\")","v":""},{"$f":"IFERROR(MID($X216,FIND(CHAR(160),SUBSTITUTE($X216,\"{\",CHAR(160),HA$1)),FIND(CHAR(160),SUBSTITUTE($X216,\"}\",CHAR(160),HA$1))-FIND(CHAR(160),SUBSTITUTE($X216,\"{\",CHAR(160),HA$1))+1),\"\")","v":""},{"$f":"IFERROR(MID($X216,FIND(CHAR(160),SUBSTITUTE($X216,\"{\",CHAR(160),HB$1)),FIND(CHAR(160),SUBSTITUTE($X216,\"}\",CHAR(160),HB$1))-FIND(CHAR(160),SUBSTITUTE($X216,\"{\",CHAR(160),HB$1))+1),\"\")","v":""},{"$f":"IFERROR(MID($X216,FIND(CHAR(160),SUBSTITUTE($X216,\"{\",CHAR(160),HC$1)),FIND(CHAR(160),SUBSTITUTE($X216,\"}\",CHAR(160),HC$1))-FIND(CHAR(160),SUBSTITUTE($X216,\"{\",CHAR(160),HC$1))+1),\"\")","v":""},{"$f":"IFERROR(MID($X216,FIND(CHAR(160),SUBSTITUTE($X216,\"{\",CHAR(160),HD$1)),FIND(CHAR(160),SUBSTITUTE($X216,\"}\",CHAR(160),HD$1))-FIND(CHAR(160),SUBSTITUTE($X216,\"{\",CHAR(160),HD$1))+1),\"\")","v":""},{"$f":"IFERROR(MID($X216,FIND(CHAR(160),SUBSTITUTE($X216,\"{\",CHAR(160),HE$1)),FIND(CHAR(160),SUBSTITUTE($X216,\"}\",CHAR(160),HE$1))-FIND(CHAR(160),SUBSTITUTE($X216,\"{\",CHAR(160),HE$1))+1),\"\")","v":""},{"$f":"IFERROR(MID($X216,FIND(CHAR(160),SUBSTITUTE($X216,\"{\",CHAR(160),HF$1)),FIND(CHAR(160),SUBSTITUTE($X216,\"}\",CHAR(160),HF$1))-FIND(CHAR(160),SUBSTITUTE($X216,\"{\",CHAR(160),HF$1))+1),\"\")","v":""},{"$f":"IFERROR(MID($X216,FIND(CHAR(160),SUBSTITUTE($X216,\"{\",CHAR(160),HG$1)),FIND(CHAR(160),SUBSTITUTE($X216,\"}\",CHAR(160),HG$1))-FIND(CHAR(160),SUBSTITUTE($X216,\"{\",CHAR(160),HG$1))+1),\"\")","v":""},{"$f":"IFERROR(MID($X216,FIND(CHAR(160),SUBSTITUTE($X216,\"{\",CHAR(160),HH$1)),FIND(CHAR(160),SUBSTITUTE($X216,\"}\",CHAR(160),HH$1))-FIND(CHAR(160),SUBSTITUTE($X216,\"{\",CHAR(160),HH$1))+1),\"\")","v":""},{"$f":"IFERROR(MID($X216,FIND(CHAR(160),SUBSTITUTE($X216,\"{\",CHAR(160),HI$1)),FIND(CHAR(160),SUBSTITUTE($X216,\"}\",CHAR(160),HI$1))-FIND(CHAR(160),SUBSTITUTE($X216,\"{\",CHAR(160),HI$1))+1),\"\")","v":""},{"$f":"IFERROR(MID($X216,FIND(CHAR(160),SUBSTITUTE($X216,\"{\",CHAR(160),HJ$1)),FIND(CHAR(160),SUBSTITUTE($X216,\"}\",CHAR(160),HJ$1))-FIND(CHAR(160),SUBSTITUTE($X216,\"{\",CHAR(160),HJ$1))+1),\"\")","v":""},{"$f":"IFERROR(MID($Y216,FIND(CHAR(160),SUBSTITUTE($Y216,\"{\",CHAR(160),HK$1)),FIND(CHAR(160),SUBSTITUTE($Y216,\"}\",CHAR(160),HK$1))-FIND(CHAR(160),SUBSTITUTE($Y216,\"{\",CHAR(160),HK$1))+1),\"\")","v":""},{"$f":"IFERROR(MID($Y216,FIND(CHAR(160),SUBSTITUTE($Y216,\"{\",CHAR(160),HL$1)),FIND(CHAR(160),SUBSTITUTE($Y216,\"}\",CHAR(160),HL$1))-FIND(CHAR(160),SUBSTITUTE($Y216,\"{\",CHAR(160),HL$1))+1),\"\")","v":""},{"$f":"IFERROR(MID($Y216,FIND(CHAR(160),SUBSTITUTE($Y216,\"{\",CHAR(160),HM$1)),FIND(CHAR(160),SUBSTITUTE($Y216,\"}\",CHAR(160),HM$1))-FIND(CHAR(160),SUBSTITUTE($Y216,\"{\",CHAR(160),HM$1))+1),\"\")","v":""},{"$f":"IFERROR(MID($Y216,FIND(CHAR(160),SUBSTITUTE($Y216,\"{\",CHAR(160),HN$1)),FIND(CHAR(160),SUBSTITUTE($Y216,\"}\",CHAR(160),HN$1))-FIND(CHAR(160),SUBSTITUTE($Y216,\"{\",CHAR(160),HN$1))+1),\"\")","v":""},{"$f":"IFERROR(MID($Y216,FIND(CHAR(160),SUBSTITUTE($Y216,\"{\",CHAR(160),HO$1)),FIND(CHAR(160),SUBSTITUTE($Y216,\"}\",CHAR(160),HO$1))-FIND(CHAR(160),SUBSTITUTE($Y216,\"{\",CHAR(160),HO$1))+1),\"\")","v":""},{"$f":"IFERROR(MID($Y216,FIND(CHAR(160),SUBSTITUTE($Y216,\"{\",CHAR(160),HP$1)),FIND(CHAR(160),SUBSTITUTE($Y216,\"}\",CHAR(160),HP$1))-FIND(CHAR(160),SUBSTITUTE($Y216,\"{\",CHAR(160),HP$1))+1),\"\")","v":""},{"$f":"IFERROR(MID($Y216,FIND(CHAR(160),SUBSTITUTE($Y216,\"{\",CHAR(160),HQ$1)),FIND(CHAR(160),SUBSTITUTE($Y216,\"}\",CHAR(160),HQ$1))-FIND(CHAR(160),SUBSTITUTE($Y216,\"{\",CHAR(160),HQ$1))+1),\"\")","v":""},{"$f":"IFERROR(MID($Y216,FIND(CHAR(160),SUBSTITUTE($Y216,\"{\",CHAR(160),HR$1)),FIND(CHAR(160),SUBSTITUTE($Y216,\"}\",CHAR(160),HR$1))-FIND(CHAR(160),SUBSTITUTE($Y216,\"{\",CHAR(160),HR$1))+1),\"\")","v":""},{"$f":"IFERROR(MID($Y216,FIND(CHAR(160),SUBSTITUTE($Y216,\"{\",CHAR(160),HS$1)),FIND(CHAR(160),SUBSTITUTE($Y216,\"}\",CHAR(160),HS$1))-FIND(CHAR(160),SUBSTITUTE($Y216,\"{\",CHAR(160),HS$1))+1),\"\")","v":""},{"$f":"IFERROR(MID($Y216,FIND(CHAR(160),SUBSTITUTE($Y216,\"{\",CHAR(160),HT$1)),FIND(CHAR(160),SUBSTITUTE($Y216,\"}\",CHAR(160),HT$1))-FIND(CHAR(160),SUBSTITUTE($Y216,\"{\",CHAR(160),HT$1))+1),\"\")","v":""},{"$f":"IFERROR(MID($Z216,FIND(CHAR(160),SUBSTITUTE($Z216,\"{\",CHAR(160),HU$1)),FIND(CHAR(160),SUBSTITUTE($Z216,\"}\",CHAR(160),HU$1))-FIND(CHAR(160),SUBSTITUTE($Z216,\"{\",CHAR(160),HU$1))+1),\"\")","v":""},{"$f":"IFERROR(MID($Z216,FIND(CHAR(160),SUBSTITUTE($Z216,\"{\",CHAR(160),HV$1)),FIND(CHAR(160),SUBSTITUTE($Z216,\"}\",CHAR(160),HV$1))-FIND(CHAR(160),SUBSTITUTE($Z216,\"{\",CHAR(160),HV$1))+1),\"\")","v":""},{"$f":"IFERROR(MID($Z216,FIND(CHAR(160),SUBSTITUTE($Z216,\"{\",CHAR(160),HW$1)),FIND(CHAR(160),SUBSTITUTE($Z216,\"}\",CHAR(160),HW$1))-FIND(CHAR(160),SUBSTITUTE($Z216,\"{\",CHAR(160),HW$1))+1),\"\")","v":""},{"$f":"IFERROR(MID($Z216,FIND(CHAR(160),SUBSTITUTE($Z216,\"{\",CHAR(160),HX$1)),FIND(CHAR(160),SUBSTITUTE($Z216,\"}\",CHAR(160),HX$1))-FIND(CHAR(160),SUBSTITUTE($Z216,\"{\",CHAR(160),HX$1))+1),\"\")","v":""},{"$f":"IFERROR(MID($Z216,FIND(CHAR(160),SUBSTITUTE($Z216,\"{\",CHAR(160),HY$1)),FIND(CHAR(160),SUBSTITUTE($Z216,\"}\",CHAR(160),HY$1))-FIND(CHAR(160),SUBSTITUTE($Z216,\"{\",CHAR(160),HY$1))+1),\"\")","v":""},{"$f":"IFERROR(MID($Z216,FIND(CHAR(160),SUBSTITUTE($Z216,\"{\",CHAR(160),HZ$1)),FIND(CHAR(160),SUBSTITUTE($Z216,\"}\",CHAR(160),HZ$1))-FIND(CHAR(160),SUBSTITUTE($Z216,\"{\",CHAR(160),HZ$1))+1),\"\")","v":""},{"$f":"IFERROR(MID($Z216,FIND(CHAR(160),SUBSTITUTE($Z216,\"{\",CHAR(160),IA$1)),FIND(CHAR(160),SUBSTITUTE($Z216,\"}\",CHAR(160),IA$1))-FIND(CHAR(160),SUBSTITUTE($Z216,\"{\",CHAR(160),IA$1))+1),\"\")","v":""},{"$f":"IFERROR(MID($Z216,FIND(CHAR(160),SUBSTITUTE($Z216,\"{\",CHAR(160),IB$1)),FIND(CHAR(160),SUBSTITUTE($Z216,\"}\",CHAR(160),IB$1))-FIND(CHAR(160),SUBSTITUTE($Z216,\"{\",CHAR(160),IB$1))+1),\"\")","v":""},{"$f":"IFERROR(MID($Z216,FIND(CHAR(160),SUBSTITUTE($Z216,\"{\",CHAR(160),IC$1)),FIND(CHAR(160),SUBSTITUTE($Z216,\"}\",CHAR(160),IC$1))-FIND(CHAR(160),SUBSTITUTE($Z216,\"{\",CHAR(160),IC$1))+1),\"\")","v":""},{"$f":"IFERROR(MID($Z216,FIND(CHAR(160),SUBSTITUTE($Z216,\"{\",CHAR(160),ID$1)),FIND(CHAR(160),SUBSTITUTE($Z216,\"}\",CHAR(160),ID$1))-FIND(CHAR(160),SUBSTITUTE($Z216,\"{\",CHAR(160),ID$1))+1),\"\")","v":""},{"$f":"IFERROR(MID($AA216,FIND(CHAR(160),SUBSTITUTE($AA216,\"{\",CHAR(160),IE$1)),FIND(CHAR(160),SUBSTITUTE($AA216,\"}\",CHAR(160),IE$1))-FIND(CHAR(160),SUBSTITUTE($AA216,\"{\",CHAR(160),IE$1))+1),\"\")","v":""},{"$f":"IFERROR(MID($AA216,FIND(CHAR(160),SUBSTITUTE($AA216,\"{\",CHAR(160),IF$1)),FIND(CHAR(160),SUBSTITUTE($AA216,\"}\",CHAR(160),IF$1))-FIND(CHAR(160),SUBSTITUTE($AA216,\"{\",CHAR(160),IF$1))+1),\"\")","v":""},{"$f":"IFERROR(MID($AA216,FIND(CHAR(160),SUBSTITUTE($AA216,\"{\",CHAR(160),IG$1)),FIND(CHAR(160),SUBSTITUTE($AA216,\"}\",CHAR(160),IG$1))-FIND(CHAR(160),SUBSTITUTE($AA216,\"{\",CHAR(160),IG$1))+1),\"\")","v":""},{"$f":"IFERROR(MID($AA216,FIND(CHAR(160),SUBSTITUTE($AA216,\"{\",CHAR(160),IH$1)),FIND(CHAR(160),SUBSTITUTE($AA216,\"}\",CHAR(160),IH$1))-FIND(CHAR(160),SUBSTITUTE($AA216,\"{\",CHAR(160),IH$1))+1),\"\")","v":""},{"$f":"IFERROR(MID($AA216,FIND(CHAR(160),SUBSTITUTE($AA216,\"{\",CHAR(160),II$1)),FIND(CHAR(160),SUBSTITUTE($AA216,\"}\",CHAR(160),II$1))-FIND(CHAR(160),SUBSTITUTE($AA216,\"{\",CHAR(160),II$1))+1),\"\")","v":""},{"$f":"IFERROR(MID($AA216,FIND(CHAR(160),SUBSTITUTE($AA216,\"{\",CHAR(160),IJ$1)),FIND(CHAR(160),SUBSTITUTE($AA216,\"}\",CHAR(160),IJ$1))-FIND(CHAR(160),SUBSTITUTE($AA216,\"{\",CHAR(160),IJ$1))+1),\"\")","v":""},{"$f":"IFERROR(MID($AA216,FIND(CHAR(160),SUBSTITUTE($AA216,\"{\",CHAR(160),IK$1)),FIND(CHAR(160),SUBSTITUTE($AA216,\"}\",CHAR(160),IK$1))-FIND(CHAR(160),SUBSTITUTE($AA216,\"{\",CHAR(160),IK$1))+1),\"\")","v":""},{"$f":"IFERROR(MID($AA216,FIND(CHAR(160),SUBSTITUTE($AA216,\"{\",CHAR(160),IL$1)),FIND(CHAR(160),SUBSTITUTE($AA216,\"}\",CHAR(160),IL$1))-FIND(CHAR(160),SUBSTITUTE($AA216,\"{\",CHAR(160),IL$1))+1),\"\")","v":""},{"$f":"IFERROR(MID($AA216,FIND(CHAR(160),SUBSTITUTE($AA216,\"{\",CHAR(160),IM$1)),FIND(CHAR(160),SUBSTITUTE($AA216,\"}\",CHAR(160),IM$1))-FIND(CHAR(160),SUBSTITUTE($AA216,\"{\",CHAR(160),IM$1))+1),\"\")","v":""},{"$f":"IFERROR(MID($AA216,FIND(CHAR(160),SUBSTITUTE($AA216,\"{\",CHAR(160),IN$1)),FIND(CHAR(160),SUBSTITUTE($AA216,\"}\",CHAR(160),IN$1))-FIND(CHAR(160),SUBSTITUTE($AA216,\"{\",CHAR(160),IN$1))+1),\"\")","v":""},{"$f":"IFERROR(MID($AB216,FIND(CHAR(160),SUBSTITUTE($AB216,\"{\",CHAR(160),IO$1)),FIND(CHAR(160),SUBSTITUTE($AB216,\"}\",CHAR(160),IO$1))-FIND(CHAR(160),SUBSTITUTE($AB216,\"{\",CHAR(160),IO$1))+1),\"\")","v":""},{"$f":"IFERROR(MID($AB216,FIND(CHAR(160),SUBSTITUTE($AB216,\"{\",CHAR(160),IP$1)),FIND(CHAR(160),SUBSTITUTE($AB216,\"}\",CHAR(160),IP$1))-FIND(CHAR(160),SUBSTITUTE($AB216,\"{\",CHAR(160),IP$1))+1),\"\")","v":""},{"$f":"IFERROR(MID($AB216,FIND(CHAR(160),SUBSTITUTE($AB216,\"{\",CHAR(160),IQ$1)),FIND(CHAR(160),SUBSTITUTE($AB216,\"}\",CHAR(160),IQ$1))-FIND(CHAR(160),SUBSTITUTE($AB216,\"{\",CHAR(160),IQ$1))+1),\"\")","v":""},{"$f":"IFERROR(MID($AB216,FIND(CHAR(160),SUBSTITUTE($AB216,\"{\",CHAR(160),IR$1)),FIND(CHAR(160),SUBSTITUTE($AB216,\"}\",CHAR(160),IR$1))-FIND(CHAR(160),SUBSTITUTE($AB216,\"{\",CHAR(160),IR$1))+1),\"\")","v":""},{"$f":"IFERROR(MID($AB216,FIND(CHAR(160),SUBSTITUTE($AB216,\"{\",CHAR(160),IS$1)),FIND(CHAR(160),SUBSTITUTE($AB216,\"}\",CHAR(160),IS$1))-FIND(CHAR(160),SUBSTITUTE($AB216,\"{\",CHAR(160),IS$1))+1),\"\")","v":""},{"$f":"IFERROR(MID($AB216,FIND(CHAR(160),SUBSTITUTE($AB216,\"{\",CHAR(160),IT$1)),FIND(CHAR(160),SUBSTITUTE($AB216,\"}\",CHAR(160),IT$1))-FIND(CHAR(160),SUBSTITUTE($AB216,\"{\",CHAR(160),IT$1))+1),\"\")","v":""},{"$f":"IFERROR(MID($AB216,FIND(CHAR(160),SUBSTITUTE($AB216,\"{\",CHAR(160),IU$1)),FIND(CHAR(160),SUBSTITUTE($AB216,\"}\",CHAR(160),IU$1))-FIND(CHAR(160),SUBSTITUTE($AB216,\"{\",CHAR(160),IU$1))+1),\"\")","v":""},{"$f":"IFERROR(MID($AB216,FIND(CHAR(160),SUBSTITUTE($AB216,\"{\",CHAR(160),IV$1)),FIND(CHAR(160),SUBSTITUTE($AB216,\"}\",CHAR(160),IV$1))-FIND(CHAR(160),SUBSTITUTE($AB216,\"{\",CHAR(160),IV$1))+1),\"\")","v":""},{"$f":"IFERROR(MID($AB216,FIND(CHAR(160),SUBSTITUTE($AB216,\"{\",CHAR(160),IW$1)),FIND(CHAR(160),SUBSTITUTE($AB216,\"}\",CHAR(160),IW$1))-FIND(CHAR(160),SUBSTITUTE($AB216,\"{\",CHAR(160),IW$1))+1),\"\")","v":""},{"$f":"IFERROR(MID($AB216,FIND(CHAR(160),SUBSTITUTE($AB216,\"{\",CHAR(160),IX$1)),FIND(CHAR(160),SUBSTITUTE($AB216,\"}\",CHAR(160),IX$1))-FIND(CHAR(160),SUBSTITUTE($AB216,\"{\",CHAR(160),IX$1))+1),\"\")","v":""},null,{"$f":"10-COUNTIF(DU216:ED216,\"\")","v":1}]
["Low Income Direct Install - Electric","Heat Pump Water Heater Direct Install","LIHPWH","2021-07-01","2022-06-30","Calculated","1800*{Measure:Quantity}+{Bulb Qty Installed}*5+{Kitchen Aerator Qty Installed}*25+{Bathroom Aerator Qty Installed}*10+{Showerhead Qty Installed}*35",0,"Calculated","1800*{Measure:Quantity}+{Bulb Qty Installed}*5+{Kitchen Aerator Qty Installed}*25+{Bathroom Aerator Qty Installed}*10+{Showerhead Qty Installed}*35",0,"2021-07-01","2022-06-30","Calculated","if({Measure:Quantity}=0,0,{Measure:Quantity}*1688)",null,null,"if({Measure:Quantity}=0,0,{Measure:Quantity}*0.265)",null,null,"if({Measure:Quantity}=0,0,{Measure:Quantity}*0.265)","if({Measure:Quantity}=0,0,{Measure:Quantity}*0.184)",null,null,null,null,null,null,"2021-07-01","2022-06-30",13,1,1,0.35799999999999998,0.308,0.17899999999999999,0.155,1,1,1,0,0,null,{"$f":"DU217","v":"{Measure:Quantity}"},1,{"$f":"DV217","v":"{Bulb Qty Installed}"},9.5,{"$f":"DW217","v":"{Kitchen Aerator Qty Installed}"},0.5,{"$f":"DX217","v":"{Bathroom Aerator Qty Installed}"},0.5,{"$f":"DY217","v":"{Showerhead Qty Installed}"},0.5,{"$f":"DZ217","v":""},null,{"$f":"EA217","v":""},null,{"$f":"EB217","v":""},null,{"$f":"EC217","v":""},null,"LIDI Bundle Qty",1,{"$f":"IF(AS217=0,0,AS217*1688)","v":1688},0,0,{"$f":"IF(AS217=0,0,AS217*0.265)","v":0.26500000000000001},0,0,{"$f":"IF(AS217=0,0,AS217*0.265)","v":0.26500000000000001},{"$f":"IF(AS217=0,0,AS217*0.184)","v":0.184},0,0,0,0,0,0,0,"Res","Default DR",{"$f":"Benefits(BL217,BR217,BS217,BT217,BU217,BV217,BW217,BX217,BY217,BZ217,AE217,AH217,AI217,AJ217,AK217,AL217,AM217,AN217,AO217,AP217,CA217,CB217)","v":2029.1254679051544},1195.6055789462725,0,0,0,0,0,0,0,{"$f":"SUMPRODUCT(CC217:CK217,--(CC217:CK217>0))","v":3224.731046851427},{"$f":"-SUMPRODUCT(CC217:CK217,--(CC217:CK217<0))","v":0},null,{"$f":"1800*AS217+AU217*5+AW217*25+AY217*10+BA217*35","v":1882.5},null,null,{"$f":"CM217+CO217","v":1882.5},{"$f":"IF(NetOrGross=\"Net\",(1-AO217+AP217),1)","v":1},{"$f":"(SUMPRODUCT(CC217:CJ217,--(CC217:CJ217>0))+CN217)*CS217/((-SUMPRODUCT(CC217:CJ217,--(CC217:CJ217<0))+MAX(CO217,CV217)+CP217+CQ217)*CS217+IF(FRIncentives=\"Yes\",CV217*(1-CS217),0))","v":1.7130045401601206},1,{"$f":"1800*AS217+AU217*5+AW217*25+AY217*10+BA217*35","v":1882.5},null,"Electric","y",{"$f":"CL217-CR217","v":1342.231046851427},{"$f":"IF(F217=\"Manual Entry\",\"Manual\",IF(G217=\"\",0,\"X=\"&SUBSTITUTE(SUBSTITUTE(SUBSTITUTE(SUBSTITUTE(SUBSTITUTE(SUBSTITUTE(SUBSTITUTE(SUBSTITUTE(SUBSTITUTE(SUBSTITUTE(SUBSTITUTE(SUBSTITUTE(G217,$ED217,$ED$2&ROW($ED217)),$EC217,$EC$2&ROW($EC217)),$EB217,$EB$2&ROW($EB217)),$EA217,$EA$2&ROW($EA217)),$DZ217,$DZ$2&ROW($DZ217)),$DY217,$DY$2&ROW($DY217)),$DX217,$DX$2&ROW($DX217)),$DW217,$DW$2&ROW($DW217)),$DV217,$DV$2&ROW($DV217)),$DU217,$DU$2&ROW($DU217)),$DT217,$DT$2&ROW($DT217)),$DS217,$DS$2&ROW($DS217))))","v":"X=1800*AS217+AU217*5+AW217*25+AY217*10+BA217*35"},{"$f":"IF(I217=\"Manual Entry\",\"Manual\",IF(J217=\"\",0,\"X=\"&SUBSTITUTE(SUBSTITUTE(SUBSTITUTE(SUBSTITUTE(SUBSTITUTE(SUBSTITUTE(SUBSTITUTE(SUBSTITUTE(SUBSTITUTE(SUBSTITUTE(SUBSTITUTE(SUBSTITUTE(J217,$ED217,$ED$2&ROW($ED217)),$EC217,$EC$2&ROW($EC217)),$EB217,$EB$2&ROW($EB217)),$EA217,$EA$2&ROW($EA217)),$DZ217,$DZ$2&ROW($DZ217)),$DY217,$DY$2&ROW($DY217)),$DX217,$DX$2&ROW($DX217)),$DW217,$DW$2&ROW($DW217)),$DV217,$DV$2&ROW($DV217)),$DU217,$DU$2&ROW($DU217)),$DT217,$DT$2&ROW($DT217)),$DS217,$DS$2&ROW($DS217))))","v":"X=1800*AS217+AU217*5+AW217*25+AY217*10+BA217*35"},{"$f":"IF(O217=\"\",0,\"X=\"&SUBSTITUTE(SUBSTITUTE(SUBSTITUTE(SUBSTITUTE(SUBSTITUTE(SUBSTITUTE(SUBSTITUTE(SUBSTITUTE(SUBSTITUTE(SUBSTITUTE(SUBSTITUTE(SUBSTITUTE(O217,$ED217,$ED$2&ROW($ED217)),$EC217,$EC$2&ROW($EC217)),$EB217,$EB$2&ROW($EB217)),$EA217,$EA$2&ROW($EA217)),$DZ217,$DZ$2&ROW($DZ217)),$DY217,$DY$2&ROW($DY217)),$DX217,$DX$2&ROW($DX217)),$DW217,$DW$2&ROW($DW217)),$DV217,$DV$2&ROW($DV217)),$DU217,$DU$2&ROW($DU217)),$DT217,$DT$2&ROW($DT217)),$DS217,$DS$2&ROW($DS217)))","v":"X=if(AS217=0,0,AS217*1688)"},{"$f":"IF(P217=\"\",0,\"X=\"&SUBSTITUTE(SUBSTITUTE(SUBSTITUTE(SUBSTITUTE(SUBSTITUTE(SUBSTITUTE(SUBSTITUTE(SUBSTITUTE(SUBSTITUTE(SUBSTITUTE(SUBSTITUTE(SUBSTITUTE(P217,$ED217,$ED$2&ROW($ED217)),$EC217,$EC$2&ROW($EC217)),$EB217,$EB$2&ROW($EB217)),$EA217,$EA$2&ROW($EA217)),$DZ217,$DZ$2&ROW($DZ217)),$DY217,$DY$2&ROW($DY217)),$DX217,$DX$2&ROW($DX217)),$DW217,$DW$2&ROW($DW217)),$DV217,$DV$2&ROW($DV217)),$DU217,$DU$2&ROW($DU217)),$DT217,$DT$2&ROW($DT217)),$DS217,$DS$2&ROW($DS217)))","v":0},{"$f":"IF(Q217=\"\",0,\"X=\"&SUBSTITUTE(SUBSTITUTE(SUBSTITUTE(SUBSTITUTE(SUBSTITUTE(SUBSTITUTE(SUBSTITUTE(SUBSTITUTE(SUBSTITUTE(SUBSTITUTE(SUBSTITUTE(SUBSTITUTE(Q217,$ED217,$ED$2&ROW($ED217)),$EC217,$EC$2&ROW($EC217)),$EB217,$EB$2&ROW($EB217)),$EA217,$EA$2&ROW($EA217)),$DZ217,$DZ$2&ROW($DZ217)),$DY217,$DY$2&ROW($DY217)),$DX217,$DX$2&ROW($DX217)),$DW217,$DW$2&ROW($DW217)),$DV217,$DV$2&ROW($DV217)),$DU217,$DU$2&ROW($DU217)),$DT217,$DT$2&ROW($DT217)),$DS217,$DS$2&ROW($DS217)))","v":0},{"$f":"IF(R217=\"\",0,\"X=\"&SUBSTITUTE(SUBSTITUTE(SUBSTITUTE(SUBSTITUTE(SUBSTITUTE(SUBSTITUTE(SUBSTITUTE(SUBSTITUTE(SUBSTITUTE(SUBSTITUTE(SUBSTITUTE(SUBSTITUTE(R217,$ED217,$ED$2&ROW($ED217)),$EC217,$EC$2&ROW($EC217)),$EB217,$EB$2&ROW($EB217)),$EA217,$EA$2&ROW($EA217)),$DZ217,$DZ$2&ROW($DZ217)),$DY217,$DY$2&ROW($DY217)),$DX217,$DX$2&ROW($DX217)),$DW217,$DW$2&ROW($DW217)),$DV217,$DV$2&ROW($DV217)),$DU217,$DU$2&ROW($DU217)),$DT217,$DT$2&ROW($DT217)),$DS217,$DS$2&ROW($DS217)))","v":"X=if(AS217=0,0,AS217*0.265)"},{"$f":"IF(S217=\"\",0,\"X=\"&SUBSTITUTE(SUBSTITUTE(SUBSTITUTE(SUBSTITUTE(SUBSTITUTE(SUBSTITUTE(SUBSTITUTE(SUBSTITUTE(SUBSTITUTE(SUBSTITUTE(SUBSTITUTE(SUBSTITUTE(S217,$ED217,$ED$2&ROW($ED217)),$EC217,$EC$2&ROW($EC217)),$EB217,$EB$2&ROW($EB217)),$EA217,$EA$2&ROW($EA217)),$DZ217,$DZ$2&ROW($DZ217)),$DY217,$DY$2&ROW($DY217)),$DX217,$DX$2&ROW($DX217)),$DW217,$DW$2&ROW($DW217)),$DV217,$DV$2&ROW($DV217)),$DU217,$DU$2&ROW($DU217)),$DT217,$DT$2&ROW($DT217)),$DS217,$DS$2&ROW($DS217)))","v":0},{"$f":"IF(T217=\"\",0,\"X=\"&SUBSTITUTE(SUBSTITUTE(SUBSTITUTE(SUBSTITUTE(SUBSTITUTE(SUBSTITUTE(SUBSTITUTE(SUBSTITUTE(SUBSTITUTE(SUBSTITUTE(SUBSTITUTE(SUBSTITUTE(T217,$ED217,$ED$2&ROW($ED217)),$EC217,$EC$2&ROW($EC217)),$EB217,$EB$2&ROW($EB217)),$EA217,$EA$2&ROW($EA217)),$DZ217,$DZ$2&ROW($DZ217)),$DY217,$DY$2&ROW($DY217)),$DX217,$DX$2&ROW($DX217)),$DW217,$DW$2&ROW($DW217)),$DV217,$DV$2&ROW($DV217)),$DU217,$DU$2&ROW($DU217)),$DT217,$DT$2&ROW($DT217)),$DS217,$DS$2&ROW($DS217)))","v":0},{"$f":"IF(U217=\"\",0,\"X=\"&SUBSTITUTE(SUBSTITUTE(SUBSTITUTE(SUBSTITUTE(SUBSTITUTE(SUBSTITUTE(SUBSTITUTE(SUBSTITUTE(SUBSTITUTE(SUBSTITUTE(SUBSTITUTE(SUBSTITUTE(U217,$ED217,$ED$2&ROW($ED217)),$EC217,$EC$2&ROW($EC217)),$EB217,$EB$2&ROW($EB217)),$EA217,$EA$2&ROW($EA217)),$DZ217,$DZ$2&ROW($DZ217)),$DY217,$DY$2&ROW($DY217)),$DX217,$DX$2&ROW($DX217)),$DW217,$DW$2&ROW($DW217)),$DV217,$DV$2&ROW($DV217)),$DU217,$DU$2&ROW($DU217)),$DT217,$DT$2&ROW($DT217)),$DS217,$DS$2&ROW($DS217)))","v":"X=if(AS217=0,0,AS217*0.265)"},{"$f":"IF(V217=\"\",0,\"X=\"&SUBSTITUTE(SUBSTITUTE(SUBSTITUTE(SUBSTITUTE(SUBSTITUTE(SUBSTITUTE(SUBSTITUTE(SUBSTITUTE(SUBSTITUTE(SUBSTITUTE(SUBSTITUTE(SUBSTITUTE(V217,$ED217,$ED$2&ROW($ED217)),$EC217,$EC$2&ROW($EC217)),$EB217,$EB$2&ROW($EB217)),$EA217,$EA$2&ROW($EA217)),$DZ217,$DZ$2&ROW($DZ217)),$DY217,$DY$2&ROW($DY217)),$DX217,$DX$2&ROW($DX217)),$DW217,$DW$2&ROW($DW217)),$DV217,$DV$2&ROW($DV217)),$DU217,$DU$2&ROW($DU217)),$DT217,$DT$2&ROW($DT217)),$DS217,$DS$2&ROW($DS217)))","v":"X=if(AS217=0,0,AS217*0.184)"},{"$f":"IF(W217=\"\",0,\"X=\"&SUBSTITUTE(SUBSTITUTE(SUBSTITUTE(SUBSTITUTE(SUBSTITUTE(SUBSTITUTE(SUBSTITUTE(SUBSTITUTE(SUBSTITUTE(SUBSTITUTE(SUBSTITUTE(SUBSTITUTE(W217,$ED217,$ED$2&ROW($ED217)),$EC217,$EC$2&ROW($EC217)),$EB217,$EB$2&ROW($EB217)),$EA217,$EA$2&ROW($EA217)),$DZ217,$DZ$2&ROW($DZ217)),$DY217,$DY$2&ROW($DY217)),$DX217,$DX$2&ROW($DX217)),$DW217,$DW$2&ROW($DW217)),$DV217,$DV$2&ROW($DV217)),$DU217,$DU$2&ROW($DU217)),$DT217,$DT$2&ROW($DT217)),$DS217,$DS$2&ROW($DS217)))","v":0},{"$f":"IF(X217=\"\",0,\"X=\"&SUBSTITUTE(SUBSTITUTE(SUBSTITUTE(SUBSTITUTE(SUBSTITUTE(SUBSTITUTE(SUBSTITUTE(SUBSTITUTE(SUBSTITUTE(SUBSTITUTE(SUBSTITUTE(SUBSTITUTE(X217,$ED217,$ED$2&ROW($ED217)),$EC217,$EC$2&ROW($EC217)),$EB217,$EB$2&ROW($EB217)),$EA217,$EA$2&ROW($EA217)),$DZ217,$DZ$2&ROW($DZ217)),$DY217,$DY$2&ROW($DY217)),$DX217,$DX$2&ROW($DX217)),$DW217,$DW$2&ROW($DW217)),$DV217,$DV$2&ROW($DV217)),$DU217,$DU$2&ROW($DU217)),$DT217,$DT$2&ROW($DT217)),$DS217,$DS$2&ROW($DS217)))","v":0},{"$f":"IF(Y217=\"\",0,\"X=\"&SUBSTITUTE(SUBSTITUTE(SUBSTITUTE(SUBSTITUTE(SUBSTITUTE(SUBSTITUTE(SUBSTITUTE(SUBSTITUTE(SUBSTITUTE(SUBSTITUTE(SUBSTITUTE(SUBSTITUTE(Y217,$ED217,$ED$2&ROW($ED217)),$EC217,$EC$2&ROW($EC217)),$EB217,$EB$2&ROW($EB217)),$EA217,$EA$2&ROW($EA217)),$DZ217,$DZ$2&ROW($DZ217)),$DY217,$DY$2&ROW($DY217)),$DX217,$DX$2&ROW($DX217)),$DW217,$DW$2&ROW($DW217)),$DV217,$DV$2&ROW($DV217)),$DU217,$DU$2&ROW($DU217)),$DT217,$DT$2&ROW($DT217)),$DS217,$DS$2&ROW($DS217)))","v":0},{"$f":"IF(Z217=\"\",0,\"X=\"&SUBSTITUTE(SUBSTITUTE(SUBSTITUTE(SUBSTITUTE(SUBSTITUTE(SUBSTITUTE(SUBSTITUTE(SUBSTITUTE(SUBSTITUTE(SUBSTITUTE(SUBSTITUTE(SUBSTITUTE(Z217,$ED217,$ED$2&ROW($ED217)),$EC217,$EC$2&ROW($EC217)),$EB217,$EB$2&ROW($EB217)),$EA217,$EA$2&ROW($EA217)),$DZ217,$DZ$2&ROW($DZ217)),$DY217,$DY$2&ROW($DY217)),$DX217,$DX$2&ROW($DX217)),$DW217,$DW$2&ROW($DW217)),$DV217,$DV$2&ROW($DV217)),$DU217,$DU$2&ROW($DU217)),$DT217,$DT$2&ROW($DT217)),$DS217,$DS$2&ROW($DS217)))","v":0},{"$f":"IF(AA217=\"\",0,\"X=\"&SUBSTITUTE(SUBSTITUTE(SUBSTITUTE(SUBSTITUTE(SUBSTITUTE(SUBSTITUTE(SUBSTITUTE(SUBSTITUTE(SUBSTITUTE(SUBSTITUTE(SUBSTITUTE(SUBSTITUTE(AA217,$ED217,$ED$2&ROW($ED217)),$EC217,$EC$2&ROW($EC217)),$EB217,$EB$2&ROW($EB217)),$EA217,$EA$2&ROW($EA217)),$DZ217,$DZ$2&ROW($DZ217)),$DY217,$DY$2&ROW($DY217)),$DX217,$DX$2&ROW($DX217)),$DW217,$DW$2&ROW($DW217)),$DV217,$DV$2&ROW($DV217)),$DU217,$DU$2&ROW($DU217)),$DT217,$DT$2&ROW($DT217)),$DS217,$DS$2&ROW($DS217)))","v":0},{"$f":"IF(AB217=\"\",0,\"X=\"&SUBSTITUTE(SUBSTITUTE(SUBSTITUTE(SUBSTITUTE(SUBSTITUTE(SUBSTITUTE(SUBSTITUTE(SUBSTITUTE(SUBSTITUTE(SUBSTITUTE(SUBSTITUTE(SUBSTITUTE(AB217,$ED217,$ED$2&ROW($ED217)),$EC217,$EC$2&ROW($EC217)),$EB217,$EB$2&ROW($EB217)),$EA217,$EA$2&ROW($EA217)),$DZ217,$DZ$2&ROW($DZ217)),$DY217,$DY$2&ROW($DY217)),$DX217,$DX$2&ROW($DX217)),$DW217,$DW$2&ROW($DW217)),$DV217,$DV$2&ROW($DV217)),$DU217,$DU$2&ROW($DU217)),$DT217,$DT$2&ROW($DT217)),$DS217,$DS$2&ROW($DS217)))","v":0},null,null,"{Factor:WinterCF}","{Factor:SummerCF}",{"$f":"IFERROR(INDEX($EG217:$IV217,MATCH(0,COUNTIF($DR217:DT217,$EG217:$IV217),0)),\"\")","v":"{Measure:Quantity}"},{"$f":"IFERROR(INDEX($EG217:$IV217,MATCH(0,COUNTIF($DR217:DU217,$EG217:$IV217),0)),\"\")","v":"{Bulb Qty Installed}"},{"$f":"IFERROR(INDEX($EG217:$IV217,MATCH(0,COUNTIF($DR217:DV217,$EG217:$IV217),0)),\"\")","v":"{Kitchen Aerator Qty Installed}"},{"$f":"IFERROR(INDEX($EG217:$IV217,MATCH(0,COUNTIF($DR217:DW217,$EG217:$IV217),0)),\"\")","v":"{Bathroom Aerator Qty Installed}"},{"$f":"IFERROR(INDEX($EG217:$IV217,MATCH(0,COUNTIF($DR217:DX217,$EG217:$IV217),0)),\"\")","v":"{Showerhead Qty Installed}"},{"$f":"IFERROR(INDEX($EG217:$IV217,MATCH(0,COUNTIF($DR217:DY217,$EG217:$IV217),0)),\"\")","v":""},{"$f":"IFERROR(INDEX($EG217:$IV217,MATCH(0,COUNTIF($DR217:DZ217,$EG217:$IV217),0)),\"\")","v":""},{"$f":"IFERROR(INDEX($EG217:$IV217,MATCH(0,COUNTIF($DR217:EA217,$EG217:$IV217),0)),\"\")","v":""},{"$f":"IFERROR(INDEX($EG217:$IV217,MATCH(0,COUNTIF($DR217:EB217,$EG217:$IV217),0)),\"\")","v":""},{"$f":"IFERROR(INDEX($EG217:$IV217,MATCH(0,COUNTIF($DR217:EC217,$EG217:$IV217),0)),\"\")","v":""},null,null,{"$f":"IFERROR(MID($G217,FIND(CHAR(160),SUBSTITUTE($G217,\"{\",CHAR(160),EG$1)),FIND(CHAR(160),SUBSTITUTE($G217,\"}\",CHAR(160),EG$1))-FIND(CHAR(160),SUBSTITUTE($G217,\"{\",CHAR(160),EG$1))+1),\"\")","v":"{Measure:Quantity}"},{"$f":"IFERROR(MID($G217,FIND(CHAR(160),SUBSTITUTE($G217,\"{\",CHAR(160),EH$1)),FIND(CHAR(160),SUBSTITUTE($G217,\"}\",CHAR(160),EH$1))-FIND(CHAR(160),SUBSTITUTE($G217,\"{\",CHAR(160),EH$1))+1),\"\")","v":"{Bulb Qty Installed}"},{"$f":"IFERROR(MID($G217,FIND(CHAR(160),SUBSTITUTE($G217,\"{\",CHAR(160),EI$1)),FIND(CHAR(160),SUBSTITUTE($G217,\"}\",CHAR(160),EI$1))-FIND(CHAR(160),SUBSTITUTE($G217,\"{\",CHAR(160),EI$1))+1),\"\")","v":"{Kitchen Aerator Qty Installed}"},{"$f":"IFERROR(MID($G217,FIND(CHAR(160),SUBSTITUTE($G217,\"{\",CHAR(160),EJ$1)),FIND(CHAR(160),SUBSTITUTE($G217,\"}\",CHAR(160),EJ$1))-FIND(CHAR(160),SUBSTITUTE($G217,\"{\",CHAR(160),EJ$1))+1),\"\")","v":"{Bathroom Aerator Qty Installed}"},{"$f":"IFERROR(MID($G217,FIND(CHAR(160),SUBSTITUTE($G217,\"{\",CHAR(160),EK$1)),FIND(CHAR(160),SUBSTITUTE($G217,\"}\",CHAR(160),EK$1))-FIND(CHAR(160),SUBSTITUTE($G217,\"{\",CHAR(160),EK$1))+1),\"\")","v":"{Showerhead Qty Installed}"},{"$f":"IFERROR(MID($G217,FIND(CHAR(160),SUBSTITUTE($G217,\"{\",CHAR(160),EL$1)),FIND(CHAR(160),SUBSTITUTE($G217,\"}\",CHAR(160),EL$1))-FIND(CHAR(160),SUBSTITUTE($G217,\"{\",CHAR(160),EL$1))+1),\"\")","v":""},{"$f":"IFERROR(MID($G217,FIND(CHAR(160),SUBSTITUTE($G217,\"{\",CHAR(160),EM$1)),FIND(CHAR(160),SUBSTITUTE($G217,\"}\",CHAR(160),EM$1))-FIND(CHAR(160),SUBSTITUTE($G217,\"{\",CHAR(160),EM$1))+1),\"\")","v":""},{"$f":"IFERROR(MID($G217,FIND(CHAR(160),SUBSTITUTE($G217,\"{\",CHAR(160),EN$1)),FIND(CHAR(160),SUBSTITUTE($G217,\"}\",CHAR(160),EN$1))-FIND(CHAR(160),SUBSTITUTE($G217,\"{\",CHAR(160),EN$1))+1),\"\")","v":""},{"$f":"IFERROR(MID($G217,FIND(CHAR(160),SUBSTITUTE($G217,\"{\",CHAR(160),EO$1)),FIND(CHAR(160),SUBSTITUTE($G217,\"}\",CHAR(160),EO$1))-FIND(CHAR(160),SUBSTITUTE($G217,\"{\",CHAR(160),EO$1))+1),\"\")","v":""},{"$f":"IFERROR(MID($G217,FIND(CHAR(160),SUBSTITUTE($G217,\"{\",CHAR(160),EP$1)),FIND(CHAR(160),SUBSTITUTE($G217,\"}\",CHAR(160),EP$1))-FIND(CHAR(160),SUBSTITUTE($G217,\"{\",CHAR(160),EP$1))+1),\"\")","v":""},{"$f":"IFERROR(MID($J217,FIND(CHAR(160),SUBSTITUTE($J217,\"{\",CHAR(160),EQ$1)),FIND(CHAR(160),SUBSTITUTE($J217,\"}\",CHAR(160),EQ$1))-FIND(CHAR(160),SUBSTITUTE($J217,\"{\",CHAR(160),EQ$1))+1),\"\")","v":"{Measure:Quantity}"},{"$f":"IFERROR(MID($J217,FIND(CHAR(160),SUBSTITUTE($J217,\"{\",CHAR(160),ER$1)),FIND(CHAR(160),SUBSTITUTE($J217,\"}\",CHAR(160),ER$1))-FIND(CHAR(160),SUBSTITUTE($J217,\"{\",CHAR(160),ER$1))+1),\"\")","v":"{Bulb Qty Installed}"},{"$f":"IFERROR(MID($J217,FIND(CHAR(160),SUBSTITUTE($J217,\"{\",CHAR(160),ES$1)),FIND(CHAR(160),SUBSTITUTE($J217,\"}\",CHAR(160),ES$1))-FIND(CHAR(160),SUBSTITUTE($J217,\"{\",CHAR(160),ES$1))+1),\"\")","v":"{Kitchen Aerator Qty Installed}"},{"$f":"IFERROR(MID($J217,FIND(CHAR(160),SUBSTITUTE($J217,\"{\",CHAR(160),ET$1)),FIND(CHAR(160),SUBSTITUTE($J217,\"}\",CHAR(160),ET$1))-FIND(CHAR(160),SUBSTITUTE($J217,\"{\",CHAR(160),ET$1))+1),\"\")","v":"{Bathroom Aerator Qty Installed}"},{"$f":"IFERROR(MID($J217,FIND(CHAR(160),SUBSTITUTE($J217,\"{\",CHAR(160),EU$1)),FIND(CHAR(160),SUBSTITUTE($J217,\"}\",CHAR(160),EU$1))-FIND(CHAR(160),SUBSTITUTE($J217,\"{\",CHAR(160),EU$1))+1),\"\")","v":"{Showerhead Qty Installed}"},{"$f":"IFERROR(MID($J217,FIND(CHAR(160),SUBSTITUTE($J217,\"{\",CHAR(160),EV$1)),FIND(CHAR(160),SUBSTITUTE($J217,\"}\",CHAR(160),EV$1))-FIND(CHAR(160),SUBSTITUTE($J217,\"{\",CHAR(160),EV$1))+1),\"\")","v":""},{"$f":"IFERROR(MID($J217,FIND(CHAR(160),SUBSTITUTE($J217,\"{\",CHAR(160),EW$1)),FIND(CHAR(160),SUBSTITUTE($J217,\"}\",CHAR(160),EW$1))-FIND(CHAR(160),SUBSTITUTE($J217,\"{\",CHAR(160),EW$1))+1),\"\")","v":""},{"$f":"IFERROR(MID($J217,FIND(CHAR(160),SUBSTITUTE($J217,\"{\",CHAR(160),EX$1)),FIND(CHAR(160),SUBSTITUTE($J217,\"}\",CHAR(160),EX$1))-FIND(CHAR(160),SUBSTITUTE($J217,\"{\",CHAR(160),EX$1))+1),\"\")","v":""},{"$f":"IFERROR(MID($J217,FIND(CHAR(160),SUBSTITUTE($J217,\"{\",CHAR(160),EY$1)),FIND(CHAR(160),SUBSTITUTE($J217,\"}\",CHAR(160),EY$1))-FIND(CHAR(160),SUBSTITUTE($J217,\"{\",CHAR(160),EY$1))+1),\"\")","v":""},{"$f":"IFERROR(MID($J217,FIND(CHAR(160),SUBSTITUTE($J217,\"{\",CHAR(160),EZ$1)),FIND(CHAR(160),SUBSTITUTE($J217,\"}\",CHAR(160),EZ$1))-FIND(CHAR(160),SUBSTITUTE($J217,\"{\",CHAR(160),EZ$1))+1),\"\")","v":""},{"$f":"IFERROR(MID($J217,FIND(CHAR(160),SUBSTITUTE($J217,\"{\",CHAR(160),FA$1)),FIND(CHAR(160),SUBSTITUTE($J217,\"}\",CHAR(160),FA$1))-FIND(CHAR(160),SUBSTITUTE($J217,\"{\",CHAR(160),FA$1))+1),\"\")","v":"{Measure:Quantity}"},{"$f":"IFERROR(MID($J217,FIND(CHAR(160),SUBSTITUTE($J217,\"{\",CHAR(160),FB$1)),FIND(CHAR(160),SUBSTITUTE($J217,\"}\",CHAR(160),FB$1))-FIND(CHAR(160),SUBSTITUTE($J217,\"{\",CHAR(160),FB$1))+1),\"\")","v":"{Bulb Qty Installed}"},{"$f":"IFERROR(MID($O217,FIND(CHAR(160),SUBSTITUTE($O217,\"{\",CHAR(160),FC$1)),FIND(CHAR(160),SUBSTITUTE($O217,\"}\",CHAR(160),FC$1))-FIND(CHAR(160),SUBSTITUTE($O217,\"{\",CHAR(160),FC$1))+1),\"\")","v":""},{"$f":"IFERROR(MID($O217,FIND(CHAR(160),SUBSTITUTE($O217,\"{\",CHAR(160),FD$1)),FIND(CHAR(160),SUBSTITUTE($O217,\"}\",CHAR(160),FD$1))-FIND(CHAR(160),SUBSTITUTE($O217,\"{\",CHAR(160),FD$1))+1),\"\")","v":""},{"$f":"IFERROR(MID($O217,FIND(CHAR(160),SUBSTITUTE($O217,\"{\",CHAR(160),FE$1)),FIND(CHAR(160),SUBSTITUTE($O217,\"}\",CHAR(160),FE$1))-FIND(CHAR(160),SUBSTITUTE($O217,\"{\",CHAR(160),FE$1))+1),\"\")","v":""},{"$f":"IFERROR(MID($O217,FIND(CHAR(160),SUBSTITUTE($O217,\"{\",CHAR(160),FF$1)),FIND(CHAR(160),SUBSTITUTE($O217,\"}\",CHAR(160),FF$1))-FIND(CHAR(160),SUBSTITUTE($O217,\"{\",CHAR(160),FF$1))+1),\"\")","v":""},{"$f":"IFERROR(MID($O217,FIND(CHAR(160),SUBSTITUTE($O217,\"{\",CHAR(160),FG$1)),FIND(CHAR(160),SUBSTITUTE($O217,\"}\",CHAR(160),FG$1))-FIND(CHAR(160),SUBSTITUTE($O217,\"{\",CHAR(160),FG$1))+1),\"\")","v":""},{"$f":"IFERROR(MID($O217,FIND(CHAR(160),SUBSTITUTE($O217,\"{\",CHAR(160),FH$1)),FIND(CHAR(160),SUBSTITUTE($O217,\"}\",CHAR(160),FH$1))-FIND(CHAR(160),SUBSTITUTE($O217,\"{\",CHAR(160),FH$1))+1),\"\")","v":""},{"$f":"IFERROR(MID($O217,FIND(CHAR(160),SUBSTITUTE($O217,\"{\",CHAR(160),FI$1)),FIND(CHAR(160),SUBSTITUTE($O217,\"}\",CHAR(160),FI$1))-FIND(CHAR(160),SUBSTITUTE($O217,\"{\",CHAR(160),FI$1))+1),\"\")","v":""},{"$f":"IFERROR(MID($O217,FIND(CHAR(160),SUBSTITUTE($O217,\"{\",CHAR(160),FJ$1)),FIND(CHAR(160),SUBSTITUTE($O217,\"}\",CHAR(160),FJ$1))-FIND(CHAR(160),SUBSTITUTE($O217,\"{\",CHAR(160),FJ$1))+1),\"\")","v":""},{"$f":"IFERROR(MID($O217,FIND(CHAR(160),SUBSTITUTE($O217,\"{\",CHAR(160),FK$1)),FIND(CHAR(160),SUBSTITUTE($O217,\"}\",CHAR(160),FK$1))-FIND(CHAR(160),SUBSTITUTE($O217,\"{\",CHAR(160),FK$1))+1),\"\")","v":"{Measure:Quantity}"},{"$f":"IFERROR(MID($O217,FIND(CHAR(160),SUBSTITUTE($O217,\"{\",CHAR(160),FL$1)),FIND(CHAR(160),SUBSTITUTE($O217,\"}\",CHAR(160),FL$1))-FIND(CHAR(160),SUBSTITUTE($O217,\"{\",CHAR(160),FL$1))+1),\"\")","v":"{Measure:Quantity}"},{"$f":"IFERROR(MID($R217,FIND(CHAR(160),SUBSTITUTE($R217,\"{\",CHAR(160),FM$1)),FIND(CHAR(160),SUBSTITUTE($R217,\"}\",CHAR(160),FM$1))-FIND(CHAR(160),SUBSTITUTE($R217,\"{\",CHAR(160),FM$1))+1),\"\")","v":""},{"$f":"IFERROR(MID($R217,FIND(CHAR(160),SUBSTITUTE($R217,\"{\",CHAR(160),FN$1)),FIND(CHAR(160),SUBSTITUTE($R217,\"}\",CHAR(160),FN$1))-FIND(CHAR(160),SUBSTITUTE($R217,\"{\",CHAR(160),FN$1))+1),\"\")","v":""},{"$f":"IFERROR(MID($R217,FIND(CHAR(160),SUBSTITUTE($R217,\"{\",CHAR(160),FO$1)),FIND(CHAR(160),SUBSTITUTE($R217,\"}\",CHAR(160),FO$1))-FIND(CHAR(160),SUBSTITUTE($R217,\"{\",CHAR(160),FO$1))+1),\"\")","v":""},{"$f":"IFERROR(MID($R217,FIND(CHAR(160),SUBSTITUTE($R217,\"{\",CHAR(160),FP$1)),FIND(CHAR(160),SUBSTITUTE($R217,\"}\",CHAR(160),FP$1))-FIND(CHAR(160),SUBSTITUTE($R217,\"{\",CHAR(160),FP$1))+1),\"\")","v":""},{"$f":"IFERROR(MID($R217,FIND(CHAR(160),SUBSTITUTE($R217,\"{\",CHAR(160),FQ$1)),FIND(CHAR(160),SUBSTITUTE($R217,\"}\",CHAR(160),FQ$1))-FIND(CHAR(160),SUBSTITUTE($R217,\"{\",CHAR(160),FQ$1))+1),\"\")","v":""},{"$f":"IFERROR(MID($R217,FIND(CHAR(160),SUBSTITUTE($R217,\"{\",CHAR(160),FR$1)),FIND(CHAR(160),SUBSTITUTE($R217,\"}\",CHAR(160),FR$1))-FIND(CHAR(160),SUBSTITUTE($R217,\"{\",CHAR(160),FR$1))+1),\"\")","v":""},{"$f":"IFERROR(MID($R217,FIND(CHAR(160),SUBSTITUTE($R217,\"{\",CHAR(160),FS$1)),FIND(CHAR(160),SUBSTITUTE($R217,\"}\",CHAR(160),FS$1))-FIND(CHAR(160),SUBSTITUTE($R217,\"{\",CHAR(160),FS$1))+1),\"\")","v":""},{"$f":"IFERROR(MID($R217,FIND(CHAR(160),SUBSTITUTE($R217,\"{\",CHAR(160),FT$1)),FIND(CHAR(160),SUBSTITUTE($R217,\"}\",CHAR(160),FT$1))-FIND(CHAR(160),SUBSTITUTE($R217,\"{\",CHAR(160),FT$1))+1),\"\")","v":""},{"$f":"IFERROR(MID($R217,FIND(CHAR(160),SUBSTITUTE($R217,\"{\",CHAR(160),FU$1)),FIND(CHAR(160),SUBSTITUTE($R217,\"}\",CHAR(160),FU$1))-FIND(CHAR(160),SUBSTITUTE($R217,\"{\",CHAR(160),FU$1))+1),\"\")","v":"{Measure:Quantity}"},{"$f":"IFERROR(MID($R217,FIND(CHAR(160),SUBSTITUTE($R217,\"{\",CHAR(160),FV$1)),FIND(CHAR(160),SUBSTITUTE($R217,\"}\",CHAR(160),FV$1))-FIND(CHAR(160),SUBSTITUTE($R217,\"{\",CHAR(160),FV$1))+1),\"\")","v":"{Measure:Quantity}"},{"$f":"IFERROR(MID($U217,FIND(CHAR(160),SUBSTITUTE($U217,\"{\",CHAR(160),FW$1)),FIND(CHAR(160),SUBSTITUTE($U217,\"}\",CHAR(160),FW$1))-FIND(CHAR(160),SUBSTITUTE($U217,\"{\",CHAR(160),FW$1))+1),\"\")","v":""},{"$f":"IFERROR(MID($U217,FIND(CHAR(160),SUBSTITUTE($U217,\"{\",CHAR(160),FX$1)),FIND(CHAR(160),SUBSTITUTE($U217,\"}\",CHAR(160),FX$1))-FIND(CHAR(160),SUBSTITUTE($U217,\"{\",CHAR(160),FX$1))+1),\"\")","v":""},{"$f":"IFERROR(MID($U217,FIND(CHAR(160),SUBSTITUTE($U217,\"{\",CHAR(160),FY$1)),FIND(CHAR(160),SUBSTITUTE($U217,\"}\",CHAR(160),FY$1))-FIND(CHAR(160),SUBSTITUTE($U217,\"{\",CHAR(160),FY$1))+1),\"\")","v":""},{"$f":"IFERROR(MID($U217,FIND(CHAR(160),SUBSTITUTE($U217,\"{\",CHAR(160),FZ$1)),FIND(CHAR(160),SUBSTITUTE($U217,\"}\",CHAR(160),FZ$1))-FIND(CHAR(160),SUBSTITUTE($U217,\"{\",CHAR(160),FZ$1))+1),\"\")","v":""},{"$f":"IFERROR(MID($U217,FIND(CHAR(160),SUBSTITUTE($U217,\"{\",CHAR(160),GA$1)),FIND(CHAR(160),SUBSTITUTE($U217,\"}\",CHAR(160),GA$1))-FIND(CHAR(160),SUBSTITUTE($U217,\"{\",CHAR(160),GA$1))+1),\"\")","v":""},{"$f":"IFERROR(MID($U217,FIND(CHAR(160),SUBSTITUTE($U217,\"{\",CHAR(160),GB$1)),FIND(CHAR(160),SUBSTITUTE($U217,\"}\",CHAR(160),GB$1))-FIND(CHAR(160),SUBSTITUTE($U217,\"{\",CHAR(160),GB$1))+1),\"\")","v":""},{"$f":"IFERROR(MID($U217,FIND(CHAR(160),SUBSTITUTE($U217,\"{\",CHAR(160),GC$1)),FIND(CHAR(160),SUBSTITUTE($U217,\"}\",CHAR(160),GC$1))-FIND(CHAR(160),SUBSTITUTE($U217,\"{\",CHAR(160),GC$1))+1),\"\")","v":""},{"$f":"IFERROR(MID($U217,FIND(CHAR(160),SUBSTITUTE($U217,\"{\",CHAR(160),GD$1)),FIND(CHAR(160),SUBSTITUTE($U217,\"}\",CHAR(160),GD$1))-FIND(CHAR(160),SUBSTITUTE($U217,\"{\",CHAR(160),GD$1))+1),\"\")","v":""},{"$f":"IFERROR(MID($U217,FIND(CHAR(160),SUBSTITUTE($U217,\"{\",CHAR(160),GE$1)),FIND(CHAR(160),SUBSTITUTE($U217,\"}\",CHAR(160),GE$1))-FIND(CHAR(160),SUBSTITUTE($U217,\"{\",CHAR(160),GE$1))+1),\"\")","v":"{Measure:Quantity}"},{"$f":"IFERROR(MID($U217,FIND(CHAR(160),SUBSTITUTE($U217,\"{\",CHAR(160),GF$1)),FIND(CHAR(160),SUBSTITUTE($U217,\"}\",CHAR(160),GF$1))-FIND(CHAR(160),SUBSTITUTE($U217,\"{\",CHAR(160),GF$1))+1),\"\")","v":"{Measure:Quantity}"},{"$f":"IFERROR(MID($V217,FIND(CHAR(160),SUBSTITUTE($V217,\"{\",CHAR(160),GG$1)),FIND(CHAR(160),SUBSTITUTE($V217,\"}\",CHAR(160),GG$1))-FIND(CHAR(160),SUBSTITUTE($V217,\"{\",CHAR(160),GG$1))+1),\"\")","v":""},{"$f":"IFERROR(MID($V217,FIND(CHAR(160),SUBSTITUTE($V217,\"{\",CHAR(160),GH$1)),FIND(CHAR(160),SUBSTITUTE($V217,\"}\",CHAR(160),GH$1))-FIND(CHAR(160),SUBSTITUTE($V217,\"{\",CHAR(160),GH$1))+1),\"\")","v":""},{"$f":"IFERROR(MID($V217,FIND(CHAR(160),SUBSTITUTE($V217,\"{\",CHAR(160),GI$1)),FIND(CHAR(160),SUBSTITUTE($V217,\"}\",CHAR(160),GI$1))-FIND(CHAR(160),SUBSTITUTE($V217,\"{\",CHAR(160),GI$1))+1),\"\")","v":""},{"$f":"IFERROR(MID($V217,FIND(CHAR(160),SUBSTITUTE($V217,\"{\",CHAR(160),GJ$1)),FIND(CHAR(160),SUBSTITUTE($V217,\"}\",CHAR(160),GJ$1))-FIND(CHAR(160),SUBSTITUTE($V217,\"{\",CHAR(160),GJ$1))+1),\"\")","v":""},{"$f":"IFERROR(MID($V217,FIND(CHAR(160),SUBSTITUTE($V217,\"{\",CHAR(160),GK$1)),FIND(CHAR(160),SUBSTITUTE($V217,\"}\",CHAR(160),GK$1))-FIND(CHAR(160),SUBSTITUTE($V217,\"{\",CHAR(160),GK$1))+1),\"\")","v":""},{"$f":"IFERROR(MID($V217,FIND(CHAR(160),SUBSTITUTE($V217,\"{\",CHAR(160),GL$1)),FIND(CHAR(160),SUBSTITUTE($V217,\"}\",CHAR(160),GL$1))-FIND(CHAR(160),SUBSTITUTE($V217,\"{\",CHAR(160),GL$1))+1),\"\")","v":""},{"$f":"IFERROR(MID($V217,FIND(CHAR(160),SUBSTITUTE($V217,\"{\",CHAR(160),GM$1)),FIND(CHAR(160),SUBSTITUTE($V217,\"}\",CHAR(160),GM$1))-FIND(CHAR(160),SUBSTITUTE($V217,\"{\",CHAR(160),GM$1))+1),\"\")","v":""},{"$f":"IFERROR(MID($V217,FIND(CHAR(160),SUBSTITUTE($V217,\"{\",CHAR(160),GN$1)),FIND(CHAR(160),SUBSTITUTE($V217,\"}\",CHAR(160),GN$1))-FIND(CHAR(160),SUBSTITUTE($V217,\"{\",CHAR(160),GN$1))+1),\"\")","v":""},{"$f":"IFERROR(MID($V217,FIND(CHAR(160),SUBSTITUTE($V217,\"{\",CHAR(160),GO$1)),FIND(CHAR(160),SUBSTITUTE($V217,\"}\",CHAR(160),GO$1))-FIND(CHAR(160),SUBSTITUTE($V217,\"{\",CHAR(160),GO$1))+1),\"\")","v":"{Measure:Quantity}"},{"$f":"IFERROR(MID($V217,FIND(CHAR(160),SUBSTITUTE($V217,\"{\",CHAR(160),GP$1)),FIND(CHAR(160),SUBSTITUTE($V217,\"}\",CHAR(160),GP$1))-FIND(CHAR(160),SUBSTITUTE($V217,\"{\",CHAR(160),GP$1))+1),\"\")","v":"{Measure:Quantity}"},{"$f":"IFERROR(MID($W217,FIND(CHAR(160),SUBSTITUTE($W217,\"{\",CHAR(160),GQ$1)),FIND(CHAR(160),SUBSTITUTE($W217,\"}\",CHAR(160),GQ$1))-FIND(CHAR(160),SUBSTITUTE($W217,\"{\",CHAR(160),GQ$1))+1),\"\")","v":""},{"$f":"IFERROR(MID($W217,FIND(CHAR(160),SUBSTITUTE($W217,\"{\",CHAR(160),GR$1)),FIND(CHAR(160),SUBSTITUTE($W217,\"}\",CHAR(160),GR$1))-FIND(CHAR(160),SUBSTITUTE($W217,\"{\",CHAR(160),GR$1))+1),\"\")","v":""},{"$f":"IFERROR(MID($W217,FIND(CHAR(160),SUBSTITUTE($W217,\"{\",CHAR(160),GS$1)),FIND(CHAR(160),SUBSTITUTE($W217,\"}\",CHAR(160),GS$1))-FIND(CHAR(160),SUBSTITUTE($W217,\"{\",CHAR(160),GS$1))+1),\"\")","v":""},{"$f":"IFERROR(MID($W217,FIND(CHAR(160),SUBSTITUTE($W217,\"{\",CHAR(160),GT$1)),FIND(CHAR(160),SUBSTITUTE($W217,\"}\",CHAR(160),GT$1))-FIND(CHAR(160),SUBSTITUTE($W217,\"{\",CHAR(160),GT$1))+1),\"\")","v":""},{"$f":"IFERROR(MID($W217,FIND(CHAR(160),SUBSTITUTE($W217,\"{\",CHAR(160),GU$1)),FIND(CHAR(160),SUBSTITUTE($W217,\"}\",CHAR(160),GU$1))-FIND(CHAR(160),SUBSTITUTE($W217,\"{\",CHAR(160),GU$1))+1),\"\")","v":""},{"$f":"IFERROR(MID($W217,FIND(CHAR(160),SUBSTITUTE($W217,\"{\",CHAR(160),GV$1)),FIND(CHAR(160),SUBSTITUTE($W217,\"}\",CHAR(160),GV$1))-FIND(CHAR(160),SUBSTITUTE($W217,\"{\",CHAR(160),GV$1))+1),\"\")","v":""},{"$f":"IFERROR(MID($W217,FIND(CHAR(160),SUBSTITUTE($W217,\"{\",CHAR(160),GW$1)),FIND(CHAR(160),SUBSTITUTE($W217,\"}\",CHAR(160),GW$1))-FIND(CHAR(160),SUBSTITUTE($W217,\"{\",CHAR(160),GW$1))+1),\"\")","v":""},{"$f":"IFERROR(MID($W217,FIND(CHAR(160),SUBSTITUTE($W217,\"{\",CHAR(160),GX$1)),FIND(CHAR(160),SUBSTITUTE($W217,\"}\",CHAR(160),GX$1))-FIND(CHAR(160),SUBSTITUTE($W217,\"{\",CHAR(160),GX$1))+1),\"\")","v":""},{"$f":"IFERROR(MID($W217,FIND(CHAR(160),SUBSTITUTE($W217,\"{\",CHAR(160),GY$1)),FIND(CHAR(160),SUBSTITUTE($W217,\"}\",CHAR(160),GY$1))-FIND(CHAR(160),SUBSTITUTE($W217,\"{\",CHAR(160),GY$1))+1),\"\")","v":""},{"$f":"IFERROR(MID($W217,FIND(CHAR(160),SUBSTITUTE($W217,\"{\",CHAR(160),GZ$1)),FIND(CHAR(160),SUBSTITUTE($W217,\"}\",CHAR(160),GZ$1))-FIND(CHAR(160),SUBSTITUTE($W217,\"{\",CHAR(160),GZ$1))+1),\"\")","v":""},{"$f":"IFERROR(MID($X217,FIND(CHAR(160),SUBSTITUTE($X217,\"{\",CHAR(160),HA$1)),FIND(CHAR(160),SUBSTITUTE($X217,\"}\",CHAR(160),HA$1))-FIND(CHAR(160),SUBSTITUTE($X217,\"{\",CHAR(160),HA$1))+1),\"\")","v":""},{"$f":"IFERROR(MID($X217,FIND(CHAR(160),SUBSTITUTE($X217,\"{\",CHAR(160),HB$1)),FIND(CHAR(160),SUBSTITUTE($X217,\"}\",CHAR(160),HB$1))-FIND(CHAR(160),SUBSTITUTE($X217,\"{\",CHAR(160),HB$1))+1),\"\")","v":""},{"$f":"IFERROR(MID($X217,FIND(CHAR(160),SUBSTITUTE($X217,\"{\",CHAR(160),HC$1)),FIND(CHAR(160),SUBSTITUTE($X217,\"}\",CHAR(160),HC$1))-FIND(CHAR(160),SUBSTITUTE($X217,\"{\",CHAR(160),HC$1))+1),\"\")","v":""},{"$f":"IFERROR(MID($X217,FIND(CHAR(160),SUBSTITUTE($X217,\"{\",CHAR(160),HD$1)),FIND(CHAR(160),SUBSTITUTE($X217,\"}\",CHAR(160),HD$1))-FIND(CHAR(160),SUBSTITUTE($X217,\"{\",CHAR(160),HD$1))+1),\"\")","v":""},{"$f":"IFERROR(MID($X217,FIND(CHAR(160),SUBSTITUTE($X217,\"{\",CHAR(160),HE$1)),FIND(CHAR(160),SUBSTITUTE($X217,\"}\",CHAR(160),HE$1))-FIND(CHAR(160),SUBSTITUTE($X217,\"{\",CHAR(160),HE$1))+1),\"\")","v":""},{"$f":"IFERROR(MID($X217,FIND(CHAR(160),SUBSTITUTE($X217,\"{\",CHAR(160),HF$1)),FIND(CHAR(160),SUBSTITUTE($X217,\"}\",CHAR(160),HF$1))-FIND(CHAR(160),SUBSTITUTE($X217,\"{\",CHAR(160),HF$1))+1),\"\")","v":""},{"$f":"IFERROR(MID($X217,FIND(CHAR(160),SUBSTITUTE($X217,\"{\",CHAR(160),HG$1)),FIND(CHAR(160),SUBSTITUTE($X217,\"}\",CHAR(160),HG$1))-FIND(CHAR(160),SUBSTITUTE($X217,\"{\",CHAR(160),HG$1))+1),\"\")","v":""},{"$f":"IFERROR(MID($X217,FIND(CHAR(160),SUBSTITUTE($X217,\"{\",CHAR(160),HH$1)),FIND(CHAR(160),SUBSTITUTE($X217,\"}\",CHAR(160),HH$1))-FIND(CHAR(160),SUBSTITUTE($X217,\"{\",CHAR(160),HH$1))+1),\"\")","v":""},{"$f":"IFERROR(MID($X217,FIND(CHAR(160),SUBSTITUTE($X217,\"{\",CHAR(160),HI$1)),FIND(CHAR(160),SUBSTITUTE($X217,\"}\",CHAR(160),HI$1))-FIND(CHAR(160),SUBSTITUTE($X217,\"{\",CHAR(160),HI$1))+1),\"\")","v":""},{"$f":"IFERROR(MID($X217,FIND(CHAR(160),SUBSTITUTE($X217,\"{\",CHAR(160),HJ$1)),FIND(CHAR(160),SUBSTITUTE($X217,\"}\",CHAR(160),HJ$1))-FIND(CHAR(160),SUBSTITUTE($X217,\"{\",CHAR(160),HJ$1))+1),\"\")","v":""},{"$f":"IFERROR(MID($Y217,FIND(CHAR(160),SUBSTITUTE($Y217,\"{\",CHAR(160),HK$1)),FIND(CHAR(160),SUBSTITUTE($Y217,\"}\",CHAR(160),HK$1))-FIND(CHAR(160),SUBSTITUTE($Y217,\"{\",CHAR(160),HK$1))+1),\"\")","v":""},{"$f":"IFERROR(MID($Y217,FIND(CHAR(160),SUBSTITUTE($Y217,\"{\",CHAR(160),HL$1)),FIND(CHAR(160),SUBSTITUTE($Y217,\"}\",CHAR(160),HL$1))-FIND(CHAR(160),SUBSTITUTE($Y217,\"{\",CHAR(160),HL$1))+1),\"\")","v":""},{"$f":"IFERROR(MID($Y217,FIND(CHAR(160),SUBSTITUTE($Y217,\"{\",CHAR(160),HM$1)),FIND(CHAR(160),SUBSTITUTE($Y217,\"}\",CHAR(160),HM$1))-FIND(CHAR(160),SUBSTITUTE($Y217,\"{\",CHAR(160),HM$1))+1),\"\")","v":""},{"$f":"IFERROR(MID($Y217,FIND(CHAR(160),SUBSTITUTE($Y217,\"{\",CHAR(160),HN$1)),FIND(CHAR(160),SUBSTITUTE($Y217,\"}\",CHAR(160),HN$1))-FIND(CHAR(160),SUBSTITUTE($Y217,\"{\",CHAR(160),HN$1))+1),\"\")","v":""},{"$f":"IFERROR(MID($Y217,FIND(CHAR(160),SUBSTITUTE($Y217,\"{\",CHAR(160),HO$1)),FIND(CHAR(160),SUBSTITUTE($Y217,\"}\",CHAR(160),HO$1))-FIND(CHAR(160),SUBSTITUTE($Y217,\"{\",CHAR(160),HO$1))+1),\"\")","v":""},{"$f":"IFERROR(MID($Y217,FIND(CHAR(160),SUBSTITUTE($Y217,\"{\",CHAR(160),HP$1)),FIND(CHAR(160),SUBSTITUTE($Y217,\"}\",CHAR(160),HP$1))-FIND(CHAR(160),SUBSTITUTE($Y217,\"{\",CHAR(160),HP$1))+1),\"\")","v":""},{"$f":"IFERROR(MID($Y217,FIND(CHAR(160),SUBSTITUTE($Y217,\"{\",CHAR(160),HQ$1)),FIND(CHAR(160),SUBSTITUTE($Y217,\"}\",CHAR(160),HQ$1))-FIND(CHAR(160),SUBSTITUTE($Y217,\"{\",CHAR(160),HQ$1))+1),\"\")","v":""},{"$f":"IFERROR(MID($Y217,FIND(CHAR(160),SUBSTITUTE($Y217,\"{\",CHAR(160),HR$1)),FIND(CHAR(160),SUBSTITUTE($Y217,\"}\",CHAR(160),HR$1))-FIND(CHAR(160),SUBSTITUTE($Y217,\"{\",CHAR(160),HR$1))+1),\"\")","v":""},{"$f":"IFERROR(MID($Y217,FIND(CHAR(160),SUBSTITUTE($Y217,\"{\",CHAR(160),HS$1)),FIND(CHAR(160),SUBSTITUTE($Y217,\"}\",CHAR(160),HS$1))-FIND(CHAR(160),SUBSTITUTE($Y217,\"{\",CHAR(160),HS$1))+1),\"\")","v":""},{"$f":"IFERROR(MID($Y217,FIND(CHAR(160),SUBSTITUTE($Y217,\"{\",CHAR(160),HT$1)),FIND(CHAR(160),SUBSTITUTE($Y217,\"}\",CHAR(160),HT$1))-FIND(CHAR(160),SUBSTITUTE($Y217,\"{\",CHAR(160),HT$1))+1),\"\")","v":""},{"$f":"IFERROR(MID($Z217,FIND(CHAR(160),SUBSTITUTE($Z217,\"{\",CHAR(160),HU$1)),FIND(CHAR(160),SUBSTITUTE($Z217,\"}\",CHAR(160),HU$1))-FIND(CHAR(160),SUBSTITUTE($Z217,\"{\",CHAR(160),HU$1))+1),\"\")","v":""},{"$f":"IFERROR(MID($Z217,FIND(CHAR(160),SUBSTITUTE($Z217,\"{\",CHAR(160),HV$1)),FIND(CHAR(160),SUBSTITUTE($Z217,\"}\",CHAR(160),HV$1))-FIND(CHAR(160),SUBSTITUTE($Z217,\"{\",CHAR(160),HV$1))+1),\"\")","v":""},{"$f":"IFERROR(MID($Z217,FIND(CHAR(160),SUBSTITUTE($Z217,\"{\",CHAR(160),HW$1)),FIND(CHAR(160),SUBSTITUTE($Z217,\"}\",CHAR(160),HW$1))-FIND(CHAR(160),SUBSTITUTE($Z217,\"{\",CHAR(160),HW$1))+1),\"\")","v":""},{"$f":"IFERROR(MID($Z217,FIND(CHAR(160),SUBSTITUTE($Z217,\"{\",CHAR(160),HX$1)),FIND(CHAR(160),SUBSTITUTE($Z217,\"}\",CHAR(160),HX$1))-FIND(CHAR(160),SUBSTITUTE($Z217,\"{\",CHAR(160),HX$1))+1),\"\")","v":""},{"$f":"IFERROR(MID($Z217,FIND(CHAR(160),SUBSTITUTE($Z217,\"{\",CHAR(160),HY$1)),FIND(CHAR(160),SUBSTITUTE($Z217,\"}\",CHAR(160),HY$1))-FIND(CHAR(160),SUBSTITUTE($Z217,\"{\",CHAR(160),HY$1))+1),\"\")","v":""},{"$f":"IFERROR(MID($Z217,FIND(CHAR(160),SUBSTITUTE($Z217,\"{\",CHAR(160),HZ$1)),FIND(CHAR(160),SUBSTITUTE($Z217,\"}\",CHAR(160),HZ$1))-FIND(CHAR(160),SUBSTITUTE($Z217,\"{\",CHAR(160),HZ$1))+1),\"\")","v":""},{"$f":"IFERROR(MID($Z217,FIND(CHAR(160),SUBSTITUTE($Z217,\"{\",CHAR(160),IA$1)),FIND(CHAR(160),SUBSTITUTE($Z217,\"}\",CHAR(160),IA$1))-FIND(CHAR(160),SUBSTITUTE($Z217,\"{\",CHAR(160),IA$1))+1),\"\")","v":""},{"$f":"IFERROR(MID($Z217,FIND(CHAR(160),SUBSTITUTE($Z217,\"{\",CHAR(160),IB$1)),FIND(CHAR(160),SUBSTITUTE($Z217,\"}\",CHAR(160),IB$1))-FIND(CHAR(160),SUBSTITUTE($Z217,\"{\",CHAR(160),IB$1))+1),\"\")","v":""},{"$f":"IFERROR(MID($Z217,FIND(CHAR(160),SUBSTITUTE($Z217,\"{\",CHAR(160),IC$1)),FIND(CHAR(160),SUBSTITUTE($Z217,\"}\",CHAR(160),IC$1))-FIND(CHAR(160),SUBSTITUTE($Z217,\"{\",CHAR(160),IC$1))+1),\"\")","v":""},{"$f":"IFERROR(MID($Z217,FIND(CHAR(160),SUBSTITUTE($Z217,\"{\",CHAR(160),ID$1)),FIND(CHAR(160),SUBSTITUTE($Z217,\"}\",CHAR(160),ID$1))-FIND(CHAR(160),SUBSTITUTE($Z217,\"{\",CHAR(160),ID$1))+1),\"\")","v":""},{"$f":"IFERROR(MID($AA217,FIND(CHAR(160),SUBSTITUTE($AA217,\"{\",CHAR(160),IE$1)),FIND(CHAR(160),SUBSTITUTE($AA217,\"}\",CHAR(160),IE$1))-FIND(CHAR(160),SUBSTITUTE($AA217,\"{\",CHAR(160),IE$1))+1),\"\")","v":""},{"$f":"IFERROR(MID($AA217,FIND(CHAR(160),SUBSTITUTE($AA217,\"{\",CHAR(160),IF$1)),FIND(CHAR(160),SUBSTITUTE($AA217,\"}\",CHAR(160),IF$1))-FIND(CHAR(160),SUBSTITUTE($AA217,\"{\",CHAR(160),IF$1))+1),\"\")","v":""},{"$f":"IFERROR(MID($AA217,FIND(CHAR(160),SUBSTITUTE($AA217,\"{\",CHAR(160),IG$1)),FIND(CHAR(160),SUBSTITUTE($AA217,\"}\",CHAR(160),IG$1))-FIND(CHAR(160),SUBSTITUTE($AA217,\"{\",CHAR(160),IG$1))+1),\"\")","v":""},{"$f":"IFERROR(MID($AA217,FIND(CHAR(160),SUBSTITUTE($AA217,\"{\",CHAR(160),IH$1)),FIND(CHAR(160),SUBSTITUTE($AA217,\"}\",CHAR(160),IH$1))-FIND(CHAR(160),SUBSTITUTE($AA217,\"{\",CHAR(160),IH$1))+1),\"\")","v":""},{"$f":"IFERROR(MID($AA217,FIND(CHAR(160),SUBSTITUTE($AA217,\"{\",CHAR(160),II$1)),FIND(CHAR(160),SUBSTITUTE($AA217,\"}\",CHAR(160),II$1))-FIND(CHAR(160),SUBSTITUTE($AA217,\"{\",CHAR(160),II$1))+1),\"\")","v":""},{"$f":"IFERROR(MID($AA217,FIND(CHAR(160),SUBSTITUTE($AA217,\"{\",CHAR(160),IJ$1)),FIND(CHAR(160),SUBSTITUTE($AA217,\"}\",CHAR(160),IJ$1))-FIND(CHAR(160),SUBSTITUTE($AA217,\"{\",CHAR(160),IJ$1))+1),\"\")","v":""},{"$f":"IFERROR(MID($AA217,FIND(CHAR(160),SUBSTITUTE($AA217,\"{\",CHAR(160),IK$1)),FIND(CHAR(160),SUBSTITUTE($AA217,\"}\",CHAR(160),IK$1))-FIND(CHAR(160),SUBSTITUTE($AA217,\"{\",CHAR(160),IK$1))+1),\"\")","v":""},{"$f":"IFERROR(MID($AA217,FIND(CHAR(160),SUBSTITUTE($AA217,\"{\",CHAR(160),IL$1)),FIND(CHAR(160),SUBSTITUTE($AA217,\"}\",CHAR(160),IL$1))-FIND(CHAR(160),SUBSTITUTE($AA217,\"{\",CHAR(160),IL$1))+1),\"\")","v":""},{"$f":"IFERROR(MID($AA217,FIND(CHAR(160),SUBSTITUTE($AA217,\"{\",CHAR(160),IM$1)),FIND(CHAR(160),SUBSTITUTE($AA217,\"}\",CHAR(160),IM$1))-FIND(CHAR(160),SUBSTITUTE($AA217,\"{\",CHAR(160),IM$1))+1),\"\")","v":""},{"$f":"IFERROR(MID($AA217,FIND(CHAR(160),SUBSTITUTE($AA217,\"{\",CHAR(160),IN$1)),FIND(CHAR(160),SUBSTITUTE($AA217,\"}\",CHAR(160),IN$1))-FIND(CHAR(160),SUBSTITUTE($AA217,\"{\",CHAR(160),IN$1))+1),\"\")","v":""},{"$f":"IFERROR(MID($AB217,FIND(CHAR(160),SUBSTITUTE($AB217,\"{\",CHAR(160),IO$1)),FIND(CHAR(160),SUBSTITUTE($AB217,\"}\",CHAR(160),IO$1))-FIND(CHAR(160),SUBSTITUTE($AB217,\"{\",CHAR(160),IO$1))+1),\"\")","v":""},{"$f":"IFERROR(MID($AB217,FIND(CHAR(160),SUBSTITUTE($AB217,\"{\",CHAR(160),IP$1)),FIND(CHAR(160),SUBSTITUTE($AB217,\"}\",CHAR(160),IP$1))-FIND(CHAR(160),SUBSTITUTE($AB217,\"{\",CHAR(160),IP$1))+1),\"\")","v":""},{"$f":"IFERROR(MID($AB217,FIND(CHAR(160),SUBSTITUTE($AB217,\"{\",CHAR(160),IQ$1)),FIND(CHAR(160),SUBSTITUTE($AB217,\"}\",CHAR(160),IQ$1))-FIND(CHAR(160),SUBSTITUTE($AB217,\"{\",CHAR(160),IQ$1))+1),\"\")","v":""},{"$f":"IFERROR(MID($AB217,FIND(CHAR(160),SUBSTITUTE($AB217,\"{\",CHAR(160),IR$1)),FIND(CHAR(160),SUBSTITUTE($AB217,\"}\",CHAR(160),IR$1))-FIND(CHAR(160),SUBSTITUTE($AB217,\"{\",CHAR(160),IR$1))+1),\"\")","v":""},{"$f":"IFERROR(MID($AB217,FIND(CHAR(160),SUBSTITUTE($AB217,\"{\",CHAR(160),IS$1)),FIND(CHAR(160),SUBSTITUTE($AB217,\"}\",CHAR(160),IS$1))-FIND(CHAR(160),SUBSTITUTE($AB217,\"{\",CHAR(160),IS$1))+1),\"\")","v":""},{"$f":"IFERROR(MID($AB217,FIND(CHAR(160),SUBSTITUTE($AB217,\"{\",CHAR(160),IT$1)),FIND(CHAR(160),SUBSTITUTE($AB217,\"}\",CHAR(160),IT$1))-FIND(CHAR(160),SUBSTITUTE($AB217,\"{\",CHAR(160),IT$1))+1),\"\")","v":""},{"$f":"IFERROR(MID($AB217,FIND(CHAR(160),SUBSTITUTE($AB217,\"{\",CHAR(160),IU$1)),FIND(CHAR(160),SUBSTITUTE($AB217,\"}\",CHAR(160),IU$1))-FIND(CHAR(160),SUBSTITUTE($AB217,\"{\",CHAR(160),IU$1))+1),\"\")","v":""},{"$f":"IFERROR(MID($AB217,FIND(CHAR(160),SUBSTITUTE($AB217,\"{\",CHAR(160),IV$1)),FIND(CHAR(160),SUBSTITUTE($AB217,\"}\",CHAR(160),IV$1))-FIND(CHAR(160),SUBSTITUTE($AB217,\"{\",CHAR(160),IV$1))+1),\"\")","v":""},{"$f":"IFERROR(MID($AB217,FIND(CHAR(160),SUBSTITUTE($AB217,\"{\",CHAR(160),IW$1)),FIND(CHAR(160),SUBSTITUTE($AB217,\"}\",CHAR(160),IW$1))-FIND(CHAR(160),SUBSTITUTE($AB217,\"{\",CHAR(160),IW$1))+1),\"\")","v":""},{"$f":"IFERROR(MID($AB217,FIND(CHAR(160),SUBSTITUTE($AB217,\"{\",CHAR(160),IX$1)),FIND(CHAR(160),SUBSTITUTE($AB217,\"}\",CHAR(160),IX$1))-FIND(CHAR(160),SUBSTITUTE($AB217,\"{\",CHAR(160),IX$1))+1),\"\")","v":""},null,{"$f":"10-COUNTIF(DU217:ED217,\"\")","v":5}]
["Low Income Direct Install - Electric","LED Low Income Standard Bulb Short Life","LILEDSTANS","2021-07-01","2022-06-30","Per Measure",2.5,0,"Per Measure",2.5,0,"2021-07-01","2022-06-30","Calculated","{Measure:Quantity}*if({Wattage}>13,42,26)",null,null,"{Measure:Quantity}*if({Wattage}>13,0.058,0.036)",null,null,"{Measure:Quantity}*if({Wattage}>13,0.009,0.006)","{Measure:Quantity}*if({Wattage}>13,0.004,0.003)","{Measure:Quantity}*if({Wattage}>13,-0.005,-0.003)","{Measure:Quantity}*if({Wattage}>13,-0.004,-0.003)","{Measure:Quantity}*if({Wattage}>13,-0.035,-0.022)","{Measure:Quantity}*if({Wattage}>13,-0.001,-0.001)","{Measure:Quantity}*if({Wattage}>13,-0.007,-0.005)",null,"2021-07-01","2022-06-30",3,0.17199999999999999,7.2999999999999995E-2,0.34899999999999998,0.33500000000000002,0.155,0.161,0.77,1,1,0,0,null,{"$f":"DU218","v":"{Measure:Quantity}"},1,{"$f":"DV218","v":"{Wattage}"},1,{"$f":"DW218","v":""},9,{"$f":"DX218","v":""},null,{"$f":"DY218","v":""},null,{"$f":"DZ218","v":""},null,{"$f":"EA218","v":""},null,{"$f":"EB218","v":""},null,{"$f":"EC218","v":""},null,"LIDI Bundle Qty",9.5,{"$f":"AS218*IF(AU218>13,42,26)","v":26},0,0,{"$f":"AS218*IF(AU218>13,0.058,0.036)","v":3.5999999999999997E-2},0,0,{"$f":"AS218*IF(AU218>13,0.009,0.006)","v":6.0000000000000001E-3},{"$f":"AS218*IF(AU218>13,0.004,0.003)","v":3.0000000000000001E-3},{"$f":"AS218*IF(AU218>13,-0.005,-0.003)","v":-3.0000000000000001E-3},{"$f":"AS218*IF(AU218>13,-0.004,-0.003)","v":-3.0000000000000001E-3},{"$f":"AS218*IF(AU218>13,-0.035,-0.022)","v":-2.1999999999999999E-2},{"$f":"AS218*IF(AU218>13,-0.001,-0.001)","v":-1E-3},{"$f":"AS218*IF(AU218>13,-0.007,-0.005)","v":-5.0000000000000001E-3},0,null,"Res","Default DR",{"$f":"Benefits(BL218,BR218,BS218,BT218,BU218,BV218,BW218,BX218,BY218,BZ218,AE218,AH218,AI218,AJ218,AK218,AL218,AM218,AN218,AO218,AP218,CA218,CB218)","v":7.0137108153147958},5.1047136842770087,-1.1997321744538107E-2,-1.6468106038623445,-8.5413391341473771E-2,-0.31264763381232114,-0.20501871264757987,0,0,{"$f":"SUMPRODUCT(CC218:CK218,--(CC218:CK218>0))","v":12.118424499591804},{"$f":"-SUMPRODUCT(CC218:CK218,--(CC218:CK218<0))","v":2.2618876634082574},null,{"$f":"2.5","v":2.5},null,null,{"$f":"CM218+CO218","v":4.7618876634082579},{"$f":"IF(NetOrGross=\"Net\",(1-AO218+AP218),1)","v":1},{"$f":"(SUMPRODUCT(CC218:CJ218,--(CC218:CJ218>0))+CN218)*CS218/((-SUMPRODUCT(CC218:CJ218,--(CC218:CJ218<0))+MAX(CO218,CV218)+CP218+CQ218)*CS218+IF(FRIncentives=\"Yes\",CV218*(1-CS218),0))","v":2.5448782827686873},1,{"$f":"2.5","v":2.5},null,"Electric","y",{"$f":"CL218-CR218","v":7.3565368361835457},{"$f":"IF(F218=\"Manual Entry\",\"Manual\",IF(G218=\"\",0,\"X=\"&SUBSTITUTE(SUBSTITUTE(SUBSTITUTE(SUBSTITUTE(SUBSTITUTE(SUBSTITUTE(SUBSTITUTE(SUBSTITUTE(SUBSTITUTE(SUBSTITUTE(SUBSTITUTE(SUBSTITUTE(G218,$ED218,$ED$2&ROW($ED218)),$EC218,$EC$2&ROW($EC218)),$EB218,$EB$2&ROW($EB218)),$EA218,$EA$2&ROW($EA218)),$DZ218,$DZ$2&ROW($DZ218)),$DY218,$DY$2&ROW($DY218)),$DX218,$DX$2&ROW($DX218)),$DW218,$DW$2&ROW($DW218)),$DV218,$DV$2&ROW($DV218)),$DU218,$DU$2&ROW($DU218)),$DT218,$DT$2&ROW($DT218)),$DS218,$DS$2&ROW($DS218))))","v":"X=2.5"},{"$f":"IF(I218=\"Manual Entry\",\"Manual\",IF(J218=\"\",0,\"X=\"&SUBSTITUTE(SUBSTITUTE(SUBSTITUTE(SUBSTITUTE(SUBSTITUTE(SUBSTITUTE(SUBSTITUTE(SUBSTITUTE(SUBSTITUTE(SUBSTITUTE(SUBSTITUTE(SUBSTITUTE(J218,$ED218,$ED$2&ROW($ED218)),$EC218,$EC$2&ROW($EC218)),$EB218,$EB$2&ROW($EB218)),$EA218,$EA$2&ROW($EA218)),$DZ218,$DZ$2&ROW($DZ218)),$DY218,$DY$2&ROW($DY218)),$DX218,$DX$2&ROW($DX218)),$DW218,$DW$2&ROW($DW218)),$DV218,$DV$2&ROW($DV218)),$DU218,$DU$2&ROW($DU218)),$DT218,$DT$2&ROW($DT218)),$DS218,$DS$2&ROW($DS218))))","v":"X=2.5"},{"$f":"IF(O218=\"\",0,\"X=\"&SUBSTITUTE(SUBSTITUTE(SUBSTITUTE(SUBSTITUTE(SUBSTITUTE(SUBSTITUTE(SUBSTITUTE(SUBSTITUTE(SUBSTITUTE(SUBSTITUTE(SUBSTITUTE(SUBSTITUTE(O218,$ED218,$ED$2&ROW($ED218)),$EC218,$EC$2&ROW($EC218)),$EB218,$EB$2&ROW($EB218)),$EA218,$EA$2&ROW($EA218)),$DZ218,$DZ$2&ROW($DZ218)),$DY218,$DY$2&ROW($DY218)),$DX218,$DX$2&ROW($DX218)),$DW218,$DW$2&ROW($DW218)),$DV218,$DV$2&ROW($DV218)),$DU218,$DU$2&ROW($DU218)),$DT218,$DT$2&ROW($DT218)),$DS218,$DS$2&ROW($DS218)))","v":"X=AS218*if(AU218>13,42,26)"},{"$f":"IF(P218=\"\",0,\"X=\"&SUBSTITUTE(SUBSTITUTE(SUBSTITUTE(SUBSTITUTE(SUBSTITUTE(SUBSTITUTE(SUBSTITUTE(SUBSTITUTE(SUBSTITUTE(SUBSTITUTE(SUBSTITUTE(SUBSTITUTE(P218,$ED218,$ED$2&ROW($ED218)),$EC218,$EC$2&ROW($EC218)),$EB218,$EB$2&ROW($EB218)),$EA218,$EA$2&ROW($EA218)),$DZ218,$DZ$2&ROW($DZ218)),$DY218,$DY$2&ROW($DY218)),$DX218,$DX$2&ROW($DX218)),$DW218,$DW$2&ROW($DW218)),$DV218,$DV$2&ROW($DV218)),$DU218,$DU$2&ROW($DU218)),$DT218,$DT$2&ROW($DT218)),$DS218,$DS$2&ROW($DS218)))","v":0},{"$f":"IF(Q218=\"\",0,\"X=\"&SUBSTITUTE(SUBSTITUTE(SUBSTITUTE(SUBSTITUTE(SUBSTITUTE(SUBSTITUTE(SUBSTITUTE(SUBSTITUTE(SUBSTITUTE(SUBSTITUTE(SUBSTITUTE(SUBSTITUTE(Q218,$ED218,$ED$2&ROW($ED218)),$EC218,$EC$2&ROW($EC218)),$EB218,$EB$2&ROW($EB218)),$EA218,$EA$2&ROW($EA218)),$DZ218,$DZ$2&ROW($DZ218)),$DY218,$DY$2&ROW($DY218)),$DX218,$DX$2&ROW($DX218)),$DW218,$DW$2&ROW($DW218)),$DV218,$DV$2&ROW($DV218)),$DU218,$DU$2&ROW($DU218)),$DT218,$DT$2&ROW($DT218)),$DS218,$DS$2&ROW($DS218)))","v":0},{"$f":"IF(R218=\"\",0,\"X=\"&SUBSTITUTE(SUBSTITUTE(SUBSTITUTE(SUBSTITUTE(SUBSTITUTE(SUBSTITUTE(SUBSTITUTE(SUBSTITUTE(SUBSTITUTE(SUBSTITUTE(SUBSTITUTE(SUBSTITUTE(R218,$ED218,$ED$2&ROW($ED218)),$EC218,$EC$2&ROW($EC218)),$EB218,$EB$2&ROW($EB218)),$EA218,$EA$2&ROW($EA218)),$DZ218,$DZ$2&ROW($DZ218)),$DY218,$DY$2&ROW($DY218)),$DX218,$DX$2&ROW($DX218)),$DW218,$DW$2&ROW($DW218)),$DV218,$DV$2&ROW($DV218)),$DU218,$DU$2&ROW($DU218)),$DT218,$DT$2&ROW($DT218)),$DS218,$DS$2&ROW($DS218)))","v":"X=AS218*if(AU218>13,0.058,0.036)"},{"$f":"IF(S218=\"\",0,\"X=\"&SUBSTITUTE(SUBSTITUTE(SUBSTITUTE(SUBSTITUTE(SUBSTITUTE(SUBSTITUTE(SUBSTITUTE(SUBSTITUTE(SUBSTITUTE(SUBSTITUTE(SUBSTITUTE(SUBSTITUTE(S218,$ED218,$ED$2&ROW($ED218)),$EC218,$EC$2&ROW($EC218)),$EB218,$EB$2&ROW($EB218)),$EA218,$EA$2&ROW($EA218)),$DZ218,$DZ$2&ROW($DZ218)),$DY218,$DY$2&ROW($DY218)),$DX218,$DX$2&ROW($DX218)),$DW218,$DW$2&ROW($DW218)),$DV218,$DV$2&ROW($DV218)),$DU218,$DU$2&ROW($DU218)),$DT218,$DT$2&ROW($DT218)),$DS218,$DS$2&ROW($DS218)))","v":0},{"$f":"IF(T218=\"\",0,\"X=\"&SUBSTITUTE(SUBSTITUTE(SUBSTITUTE(SUBSTITUTE(SUBSTITUTE(SUBSTITUTE(SUBSTITUTE(SUBSTITUTE(SUBSTITUTE(SUBSTITUTE(SUBSTITUTE(SUBSTITUTE(T218,$ED218,$ED$2&ROW($ED218)),$EC218,$EC$2&ROW($EC218)),$EB218,$EB$2&ROW($EB218)),$EA218,$EA$2&ROW($EA218)),$DZ218,$DZ$2&ROW($DZ218)),$DY218,$DY$2&ROW($DY218)),$DX218,$DX$2&ROW($DX218)),$DW218,$DW$2&ROW($DW218)),$DV218,$DV$2&ROW($DV218)),$DU218,$DU$2&ROW($DU218)),$DT218,$DT$2&ROW($DT218)),$DS218,$DS$2&ROW($DS218)))","v":0},{"$f":"IF(U218=\"\",0,\"X=\"&SUBSTITUTE(SUBSTITUTE(SUBSTITUTE(SUBSTITUTE(SUBSTITUTE(SUBSTITUTE(SUBSTITUTE(SUBSTITUTE(SUBSTITUTE(SUBSTITUTE(SUBSTITUTE(SUBSTITUTE(U218,$ED218,$ED$2&ROW($ED218)),$EC218,$EC$2&ROW($EC218)),$EB218,$EB$2&ROW($EB218)),$EA218,$EA$2&ROW($EA218)),$DZ218,$DZ$2&ROW($DZ218)),$DY218,$DY$2&ROW($DY218)),$DX218,$DX$2&ROW($DX218)),$DW218,$DW$2&ROW($DW218)),$DV218,$DV$2&ROW($DV218)),$DU218,$DU$2&ROW($DU218)),$DT218,$DT$2&ROW($DT218)),$DS218,$DS$2&ROW($DS218)))","v":"X=AS218*if(AU218>13,0.009,0.006)"},{"$f":"IF(V218=\"\",0,\"X=\"&SUBSTITUTE(SUBSTITUTE(SUBSTITUTE(SUBSTITUTE(SUBSTITUTE(SUBSTITUTE(SUBSTITUTE(SUBSTITUTE(SUBSTITUTE(SUBSTITUTE(SUBSTITUTE(SUBSTITUTE(V218,$ED218,$ED$2&ROW($ED218)),$EC218,$EC$2&ROW($EC218)),$EB218,$EB$2&ROW($EB218)),$EA218,$EA$2&ROW($EA218)),$DZ218,$DZ$2&ROW($DZ218)),$DY218,$DY$2&ROW($DY218)),$DX218,$DX$2&ROW($DX218)),$DW218,$DW$2&ROW($DW218)),$DV218,$DV$2&ROW($DV218)),$DU218,$DU$2&ROW($DU218)),$DT218,$DT$2&ROW($DT218)),$DS218,$DS$2&ROW($DS218)))","v":"X=AS218*if(AU218>13,0.004,0.003)"},{"$f":"IF(W218=\"\",0,\"X=\"&SUBSTITUTE(SUBSTITUTE(SUBSTITUTE(SUBSTITUTE(SUBSTITUTE(SUBSTITUTE(SUBSTITUTE(SUBSTITUTE(SUBSTITUTE(SUBSTITUTE(SUBSTITUTE(SUBSTITUTE(W218,$ED218,$ED$2&ROW($ED218)),$EC218,$EC$2&ROW($EC218)),$EB218,$EB$2&ROW($EB218)),$EA218,$EA$2&ROW($EA218)),$DZ218,$DZ$2&ROW($DZ218)),$DY218,$DY$2&ROW($DY218)),$DX218,$DX$2&ROW($DX218)),$DW218,$DW$2&ROW($DW218)),$DV218,$DV$2&ROW($DV218)),$DU218,$DU$2&ROW($DU218)),$DT218,$DT$2&ROW($DT218)),$DS218,$DS$2&ROW($DS218)))","v":"X=AS218*if(AU218>13,-0.005,-0.003)"},{"$f":"IF(X218=\"\",0,\"X=\"&SUBSTITUTE(SUBSTITUTE(SUBSTITUTE(SUBSTITUTE(SUBSTITUTE(SUBSTITUTE(SUBSTITUTE(SUBSTITUTE(SUBSTITUTE(SUBSTITUTE(SUBSTITUTE(SUBSTITUTE(X218,$ED218,$ED$2&ROW($ED218)),$EC218,$EC$2&ROW($EC218)),$EB218,$EB$2&ROW($EB218)),$EA218,$EA$2&ROW($EA218)),$DZ218,$DZ$2&ROW($DZ218)),$DY218,$DY$2&ROW($DY218)),$DX218,$DX$2&ROW($DX218)),$DW218,$DW$2&ROW($DW218)),$DV218,$DV$2&ROW($DV218)),$DU218,$DU$2&ROW($DU218)),$DT218,$DT$2&ROW($DT218)),$DS218,$DS$2&ROW($DS218)))","v":"X=AS218*if(AU218>13,-0.004,-0.003)"},{"$f":"IF(Y218=\"\",0,\"X=\"&SUBSTITUTE(SUBSTITUTE(SUBSTITUTE(SUBSTITUTE(SUBSTITUTE(SUBSTITUTE(SUBSTITUTE(SUBSTITUTE(SUBSTITUTE(SUBSTITUTE(SUBSTITUTE(SUBSTITUTE(Y218,$ED218,$ED$2&ROW($ED218)),$EC218,$EC$2&ROW($EC218)),$EB218,$EB$2&ROW($EB218)),$EA218,$EA$2&ROW($EA218)),$DZ218,$DZ$2&ROW($DZ218)),$DY218,$DY$2&ROW($DY218)),$DX218,$DX$2&ROW($DX218)),$DW218,$DW$2&ROW($DW218)),$DV218,$DV$2&ROW($DV218)),$DU218,$DU$2&ROW($DU218)),$DT218,$DT$2&ROW($DT218)),$DS218,$DS$2&ROW($DS218)))","v":"X=AS218*if(AU218>13,-0.035,-0.022)"},{"$f":"IF(Z218=\"\",0,\"X=\"&SUBSTITUTE(SUBSTITUTE(SUBSTITUTE(SUBSTITUTE(SUBSTITUTE(SUBSTITUTE(SUBSTITUTE(SUBSTITUTE(SUBSTITUTE(SUBSTITUTE(SUBSTITUTE(SUBSTITUTE(Z218,$ED218,$ED$2&ROW($ED218)),$EC218,$EC$2&ROW($EC218)),$EB218,$EB$2&ROW($EB218)),$EA218,$EA$2&ROW($EA218)),$DZ218,$DZ$2&ROW($DZ218)),$DY218,$DY$2&ROW($DY218)),$DX218,$DX$2&ROW($DX218)),$DW218,$DW$2&ROW($DW218)),$DV218,$DV$2&ROW($DV218)),$DU218,$DU$2&ROW($DU218)),$DT218,$DT$2&ROW($DT218)),$DS218,$DS$2&ROW($DS218)))","v":"X=AS218*if(AU218>13,-0.001,-0.001)"},{"$f":"IF(AA218=\"\",0,\"X=\"&SUBSTITUTE(SUBSTITUTE(SUBSTITUTE(SUBSTITUTE(SUBSTITUTE(SUBSTITUTE(SUBSTITUTE(SUBSTITUTE(SUBSTITUTE(SUBSTITUTE(SUBSTITUTE(SUBSTITUTE(AA218,$ED218,$ED$2&ROW($ED218)),$EC218,$EC$2&ROW($EC218)),$EB218,$EB$2&ROW($EB218)),$EA218,$EA$2&ROW($EA218)),$DZ218,$DZ$2&ROW($DZ218)),$DY218,$DY$2&ROW($DY218)),$DX218,$DX$2&ROW($DX218)),$DW218,$DW$2&ROW($DW218)),$DV218,$DV$2&ROW($DV218)),$DU218,$DU$2&ROW($DU218)),$DT218,$DT$2&ROW($DT218)),$DS218,$DS$2&ROW($DS218)))","v":"X=AS218*if(AU218>13,-0.007,-0.005)"},{"$f":"IF(AB218=\"\",0,\"X=\"&SUBSTITUTE(SUBSTITUTE(SUBSTITUTE(SUBSTITUTE(SUBSTITUTE(SUBSTITUTE(SUBSTITUTE(SUBSTITUTE(SUBSTITUTE(SUBSTITUTE(SUBSTITUTE(SUBSTITUTE(AB218,$ED218,$ED$2&ROW($ED218)),$EC218,$EC$2&ROW($EC218)),$EB218,$EB$2&ROW($EB218)),$EA218,$EA$2&ROW($EA218)),$DZ218,$DZ$2&ROW($DZ218)),$DY218,$DY$2&ROW($DY218)),$DX218,$DX$2&ROW($DX218)),$DW218,$DW$2&ROW($DW218)),$DV218,$DV$2&ROW($DV218)),$DU218,$DU$2&ROW($DU218)),$DT218,$DT$2&ROW($DT218)),$DS218,$DS$2&ROW($DS218)))","v":0},null,null,"{Factor:WinterCF}","{Factor:SummerCF}",{"$f":"IFERROR(INDEX($EG218:$IV218,MATCH(0,COUNTIF($DR218:DT218,$EG218:$IV218),0)),\"\")","v":"{Measure:Quantity}"},{"$f":"IFERROR(INDEX($EG218:$IV218,MATCH(0,COUNTIF($DR218:DU218,$EG218:$IV218),0)),\"\")","v":"{Wattage}"},{"$f":"IFERROR(INDEX($EG218:$IV218,MATCH(0,COUNTIF($DR218:DV218,$EG218:$IV218),0)),\"\")","v":""},{"$f":"IFERROR(INDEX($EG218:$IV218,MATCH(0,COUNTIF($DR218:DW218,$EG218:$IV218),0)),\"\")","v":""},{"$f":"IFERROR(INDEX($EG218:$IV218,MATCH(0,COUNTIF($DR218:DX218,$EG218:$IV218),0)),\"\")","v":""},{"$f":"IFERROR(INDEX($EG218:$IV218,MATCH(0,COUNTIF($DR218:DY218,$EG218:$IV218),0)),\"\")","v":""},{"$f":"IFERROR(INDEX($EG218:$IV218,MATCH(0,COUNTIF($DR218:DZ218,$EG218:$IV218),0)),\"\")","v":""},{"$f":"IFERROR(INDEX($EG218:$IV218,MATCH(0,COUNTIF($DR218:EA218,$EG218:$IV218),0)),\"\")","v":""},{"$f":"IFERROR(INDEX($EG218:$IV218,MATCH(0,COUNTIF($DR218:EB218,$EG218:$IV218),0)),\"\")","v":""},{"$f":"IFERROR(INDEX($EG218:$IV218,MATCH(0,COUNTIF($DR218:EC218,$EG218:$IV218),0)),\"\")","v":""},null,null,{"$f":"IFERROR(MID($G218,FIND(CHAR(160),SUBSTITUTE($G218,\"{\",CHAR(160),EG$1)),FIND(CHAR(160),SUBSTITUTE($G218,\"}\",CHAR(160),EG$1))-FIND(CHAR(160),SUBSTITUTE($G218,\"{\",CHAR(160),EG$1))+1),\"\")","v":""},{"$f":"IFERROR(MID($G218,FIND(CHAR(160),SUBSTITUTE($G218,\"{\",CHAR(160),EH$1)),FIND(CHAR(160),SUBSTITUTE($G218,\"}\",CHAR(160),EH$1))-FIND(CHAR(160),SUBSTITUTE($G218,\"{\",CHAR(160),EH$1))+1),\"\")","v":""},{"$f":"IFERROR(MID($G218,FIND(CHAR(160),SUBSTITUTE($G218,\"{\",CHAR(160),EI$1)),FIND(CHAR(160),SUBSTITUTE($G218,\"}\",CHAR(160),EI$1))-FIND(CHAR(160),SUBSTITUTE($G218,\"{\",CHAR(160),EI$1))+1),\"\")","v":""},{"$f":"IFERROR(MID($G218,FIND(CHAR(160),SUBSTITUTE($G218,\"{\",CHAR(160),EJ$1)),FIND(CHAR(160),SUBSTITUTE($G218,\"}\",CHAR(160),EJ$1))-FIND(CHAR(160),SUBSTITUTE($G218,\"{\",CHAR(160),EJ$1))+1),\"\")","v":""},{"$f":"IFERROR(MID($G218,FIND(CHAR(160),SUBSTITUTE($G218,\"{\",CHAR(160),EK$1)),FIND(CHAR(160),SUBSTITUTE($G218,\"}\",CHAR(160),EK$1))-FIND(CHAR(160),SUBSTITUTE($G218,\"{\",CHAR(160),EK$1))+1),\"\")","v":""},{"$f":"IFERROR(MID($G218,FIND(CHAR(160),SUBSTITUTE($G218,\"{\",CHAR(160),EL$1)),FIND(CHAR(160),SUBSTITUTE($G218,\"}\",CHAR(160),EL$1))-FIND(CHAR(160),SUBSTITUTE($G218,\"{\",CHAR(160),EL$1))+1),\"\")","v":""},{"$f":"IFERROR(MID($G218,FIND(CHAR(160),SUBSTITUTE($G218,\"{\",CHAR(160),EM$1)),FIND(CHAR(160),SUBSTITUTE($G218,\"}\",CHAR(160),EM$1))-FIND(CHAR(160),SUBSTITUTE($G218,\"{\",CHAR(160),EM$1))+1),\"\")","v":""},{"$f":"IFERROR(MID($G218,FIND(CHAR(160),SUBSTITUTE($G218,\"{\",CHAR(160),EN$1)),FIND(CHAR(160),SUBSTITUTE($G218,\"}\",CHAR(160),EN$1))-FIND(CHAR(160),SUBSTITUTE($G218,\"{\",CHAR(160),EN$1))+1),\"\")","v":""},{"$f":"IFERROR(MID($G218,FIND(CHAR(160),SUBSTITUTE($G218,\"{\",CHAR(160),EO$1)),FIND(CHAR(160),SUBSTITUTE($G218,\"}\",CHAR(160),EO$1))-FIND(CHAR(160),SUBSTITUTE($G218,\"{\",CHAR(160),EO$1))+1),\"\")","v":""},{"$f":"IFERROR(MID($G218,FIND(CHAR(160),SUBSTITUTE($G218,\"{\",CHAR(160),EP$1)),FIND(CHAR(160),SUBSTITUTE($G218,\"}\",CHAR(160),EP$1))-FIND(CHAR(160),SUBSTITUTE($G218,\"{\",CHAR(160),EP$1))+1),\"\")","v":""},{"$f":"IFERROR(MID($J218,FIND(CHAR(160),SUBSTITUTE($J218,\"{\",CHAR(160),EQ$1)),FIND(CHAR(160),SUBSTITUTE($J218,\"}\",CHAR(160),EQ$1))-FIND(CHAR(160),SUBSTITUTE($J218,\"{\",CHAR(160),EQ$1))+1),\"\")","v":""},{"$f":"IFERROR(MID($J218,FIND(CHAR(160),SUBSTITUTE($J218,\"{\",CHAR(160),ER$1)),FIND(CHAR(160),SUBSTITUTE($J218,\"}\",CHAR(160),ER$1))-FIND(CHAR(160),SUBSTITUTE($J218,\"{\",CHAR(160),ER$1))+1),\"\")","v":""},{"$f":"IFERROR(MID($J218,FIND(CHAR(160),SUBSTITUTE($J218,\"{\",CHAR(160),ES$1)),FIND(CHAR(160),SUBSTITUTE($J218,\"}\",CHAR(160),ES$1))-FIND(CHAR(160),SUBSTITUTE($J218,\"{\",CHAR(160),ES$1))+1),\"\")","v":""},{"$f":"IFERROR(MID($J218,FIND(CHAR(160),SUBSTITUTE($J218,\"{\",CHAR(160),ET$1)),FIND(CHAR(160),SUBSTITUTE($J218,\"}\",CHAR(160),ET$1))-FIND(CHAR(160),SUBSTITUTE($J218,\"{\",CHAR(160),ET$1))+1),\"\")","v":""},{"$f":"IFERROR(MID($J218,FIND(CHAR(160),SUBSTITUTE($J218,\"{\",CHAR(160),EU$1)),FIND(CHAR(160),SUBSTITUTE($J218,\"}\",CHAR(160),EU$1))-FIND(CHAR(160),SUBSTITUTE($J218,\"{\",CHAR(160),EU$1))+1),\"\")","v":""},{"$f":"IFERROR(MID($J218,FIND(CHAR(160),SUBSTITUTE($J218,\"{\",CHAR(160),EV$1)),FIND(CHAR(160),SUBSTITUTE($J218,\"}\",CHAR(160),EV$1))-FIND(CHAR(160),SUBSTITUTE($J218,\"{\",CHAR(160),EV$1))+1),\"\")","v":""},{"$f":"IFERROR(MID($J218,FIND(CHAR(160),SUBSTITUTE($J218,\"{\",CHAR(160),EW$1)),FIND(CHAR(160),SUBSTITUTE($J218,\"}\",CHAR(160),EW$1))-FIND(CHAR(160),SUBSTITUTE($J218,\"{\",CHAR(160),EW$1))+1),\"\")","v":""},{"$f":"IFERROR(MID($J218,FIND(CHAR(160),SUBSTITUTE($J218,\"{\",CHAR(160),EX$1)),FIND(CHAR(160),SUBSTITUTE($J218,\"}\",CHAR(160),EX$1))-FIND(CHAR(160),SUBSTITUTE($J218,\"{\",CHAR(160),EX$1))+1),\"\")","v":""},{"$f":"IFERROR(MID($J218,FIND(CHAR(160),SUBSTITUTE($J218,\"{\",CHAR(160),EY$1)),FIND(CHAR(160),SUBSTITUTE($J218,\"}\",CHAR(160),EY$1))-FIND(CHAR(160),SUBSTITUTE($J218,\"{\",CHAR(160),EY$1))+1),\"\")","v":""},{"$f":"IFERROR(MID($J218,FIND(CHAR(160),SUBSTITUTE($J218,\"{\",CHAR(160),EZ$1)),FIND(CHAR(160),SUBSTITUTE($J218,\"}\",CHAR(160),EZ$1))-FIND(CHAR(160),SUBSTITUTE($J218,\"{\",CHAR(160),EZ$1))+1),\"\")","v":""},{"$f":"IFERROR(MID($J218,FIND(CHAR(160),SUBSTITUTE($J218,\"{\",CHAR(160),FA$1)),FIND(CHAR(160),SUBSTITUTE($J218,\"}\",CHAR(160),FA$1))-FIND(CHAR(160),SUBSTITUTE($J218,\"{\",CHAR(160),FA$1))+1),\"\")","v":""},{"$f":"IFERROR(MID($J218,FIND(CHAR(160),SUBSTITUTE($J218,\"{\",CHAR(160),FB$1)),FIND(CHAR(160),SUBSTITUTE($J218,\"}\",CHAR(160),FB$1))-FIND(CHAR(160),SUBSTITUTE($J218,\"{\",CHAR(160),FB$1))+1),\"\")","v":""},{"$f":"IFERROR(MID($O218,FIND(CHAR(160),SUBSTITUTE($O218,\"{\",CHAR(160),FC$1)),FIND(CHAR(160),SUBSTITUTE($O218,\"}\",CHAR(160),FC$1))-FIND(CHAR(160),SUBSTITUTE($O218,\"{\",CHAR(160),FC$1))+1),\"\")","v":""},{"$f":"IFERROR(MID($O218,FIND(CHAR(160),SUBSTITUTE($O218,\"{\",CHAR(160),FD$1)),FIND(CHAR(160),SUBSTITUTE($O218,\"}\",CHAR(160),FD$1))-FIND(CHAR(160),SUBSTITUTE($O218,\"{\",CHAR(160),FD$1))+1),\"\")","v":""},{"$f":"IFERROR(MID($O218,FIND(CHAR(160),SUBSTITUTE($O218,\"{\",CHAR(160),FE$1)),FIND(CHAR(160),SUBSTITUTE($O218,\"}\",CHAR(160),FE$1))-FIND(CHAR(160),SUBSTITUTE($O218,\"{\",CHAR(160),FE$1))+1),\"\")","v":""},{"$f":"IFERROR(MID($O218,FIND(CHAR(160),SUBSTITUTE($O218,\"{\",CHAR(160),FF$1)),FIND(CHAR(160),SUBSTITUTE($O218,\"}\",CHAR(160),FF$1))-FIND(CHAR(160),SUBSTITUTE($O218,\"{\",CHAR(160),FF$1))+1),\"\")","v":""},{"$f":"IFERROR(MID($O218,FIND(CHAR(160),SUBSTITUTE($O218,\"{\",CHAR(160),FG$1)),FIND(CHAR(160),SUBSTITUTE($O218,\"}\",CHAR(160),FG$1))-FIND(CHAR(160),SUBSTITUTE($O218,\"{\",CHAR(160),FG$1))+1),\"\")","v":""},{"$f":"IFERROR(MID($O218,FIND(CHAR(160),SUBSTITUTE($O218,\"{\",CHAR(160),FH$1)),FIND(CHAR(160),SUBSTITUTE($O218,\"}\",CHAR(160),FH$1))-FIND(CHAR(160),SUBSTITUTE($O218,\"{\",CHAR(160),FH$1))+1),\"\")","v":""},{"$f":"IFERROR(MID($O218,FIND(CHAR(160),SUBSTITUTE($O218,\"{\",CHAR(160),FI$1)),FIND(CHAR(160),SUBSTITUTE($O218,\"}\",CHAR(160),FI$1))-FIND(CHAR(160),SUBSTITUTE($O218,\"{\",CHAR(160),FI$1))+1),\"\")","v":""},{"$f":"IFERROR(MID($O218,FIND(CHAR(160),SUBSTITUTE($O218,\"{\",CHAR(160),FJ$1)),FIND(CHAR(160),SUBSTITUTE($O218,\"}\",CHAR(160),FJ$1))-FIND(CHAR(160),SUBSTITUTE($O218,\"{\",CHAR(160),FJ$1))+1),\"\")","v":""},{"$f":"IFERROR(MID($O218,FIND(CHAR(160),SUBSTITUTE($O218,\"{\",CHAR(160),FK$1)),FIND(CHAR(160),SUBSTITUTE($O218,\"}\",CHAR(160),FK$1))-FIND(CHAR(160),SUBSTITUTE($O218,\"{\",CHAR(160),FK$1))+1),\"\")","v":"{Measure:Quantity}"},{"$f":"IFERROR(MID($O218,FIND(CHAR(160),SUBSTITUTE($O218,\"{\",CHAR(160),FL$1)),FIND(CHAR(160),SUBSTITUTE($O218,\"}\",CHAR(160),FL$1))-FIND(CHAR(160),SUBSTITUTE($O218,\"{\",CHAR(160),FL$1))+1),\"\")","v":"{Wattage}"},{"$f":"IFERROR(MID($R218,FIND(CHAR(160),SUBSTITUTE($R218,\"{\",CHAR(160),FM$1)),FIND(CHAR(160),SUBSTITUTE($R218,\"}\",CHAR(160),FM$1))-FIND(CHAR(160),SUBSTITUTE($R218,\"{\",CHAR(160),FM$1))+1),\"\")","v":""},{"$f":"IFERROR(MID($R218,FIND(CHAR(160),SUBSTITUTE($R218,\"{\",CHAR(160),FN$1)),FIND(CHAR(160),SUBSTITUTE($R218,\"}\",CHAR(160),FN$1))-FIND(CHAR(160),SUBSTITUTE($R218,\"{\",CHAR(160),FN$1))+1),\"\")","v":""},{"$f":"IFERROR(MID($R218,FIND(CHAR(160),SUBSTITUTE($R218,\"{\",CHAR(160),FO$1)),FIND(CHAR(160),SUBSTITUTE($R218,\"}\",CHAR(160),FO$1))-FIND(CHAR(160),SUBSTITUTE($R218,\"{\",CHAR(160),FO$1))+1),\"\")","v":""},{"$f":"IFERROR(MID($R218,FIND(CHAR(160),SUBSTITUTE($R218,\"{\",CHAR(160),FP$1)),FIND(CHAR(160),SUBSTITUTE($R218,\"}\",CHAR(160),FP$1))-FIND(CHAR(160),SUBSTITUTE($R218,\"{\",CHAR(160),FP$1))+1),\"\")","v":""},{"$f":"IFERROR(MID($R218,FIND(CHAR(160),SUBSTITUTE($R218,\"{\",CHAR(160),FQ$1)),FIND(CHAR(160),SUBSTITUTE($R218,\"}\",CHAR(160),FQ$1))-FIND(CHAR(160),SUBSTITUTE($R218,\"{\",CHAR(160),FQ$1))+1),\"\")","v":""},{"$f":"IFERROR(MID($R218,FIND(CHAR(160),SUBSTITUTE($R218,\"{\",CHAR(160),FR$1)),FIND(CHAR(160),SUBSTITUTE($R218,\"}\",CHAR(160),FR$1))-FIND(CHAR(160),SUBSTITUTE($R218,\"{\",CHAR(160),FR$1))+1),\"\")","v":""},{"$f":"IFERROR(MID($R218,FIND(CHAR(160),SUBSTITUTE($R218,\"{\",CHAR(160),FS$1)),FIND(CHAR(160),SUBSTITUTE($R218,\"}\",CHAR(160),FS$1))-FIND(CHAR(160),SUBSTITUTE($R218,\"{\",CHAR(160),FS$1))+1),\"\")","v":""},{"$f":"IFERROR(MID($R218,FIND(CHAR(160),SUBSTITUTE($R218,\"{\",CHAR(160),FT$1)),FIND(CHAR(160),SUBSTITUTE($R218,\"}\",CHAR(160),FT$1))-FIND(CHAR(160),SUBSTITUTE($R218,\"{\",CHAR(160),FT$1))+1),\"\")","v":""},{"$f":"IFERROR(MID($R218,FIND(CHAR(160),SUBSTITUTE($R218,\"{\",CHAR(160),FU$1)),FIND(CHAR(160),SUBSTITUTE($R218,\"}\",CHAR(160),FU$1))-FIND(CHAR(160),SUBSTITUTE($R218,\"{\",CHAR(160),FU$1))+1),\"\")","v":"{Measure:Quantity}"},{"$f":"IFERROR(MID($R218,FIND(CHAR(160),SUBSTITUTE($R218,\"{\",CHAR(160),FV$1)),FIND(CHAR(160),SUBSTITUTE($R218,\"}\",CHAR(160),FV$1))-FIND(CHAR(160),SUBSTITUTE($R218,\"{\",CHAR(160),FV$1))+1),\"\")","v":"{Wattage}"},{"$f":"IFERROR(MID($U218,FIND(CHAR(160),SUBSTITUTE($U218,\"{\",CHAR(160),FW$1)),FIND(CHAR(160),SUBSTITUTE($U218,\"}\",CHAR(160),FW$1))-FIND(CHAR(160),SUBSTITUTE($U218,\"{\",CHAR(160),FW$1))+1),\"\")","v":""},{"$f":"IFERROR(MID($U218,FIND(CHAR(160),SUBSTITUTE($U218,\"{\",CHAR(160),FX$1)),FIND(CHAR(160),SUBSTITUTE($U218,\"}\",CHAR(160),FX$1))-FIND(CHAR(160),SUBSTITUTE($U218,\"{\",CHAR(160),FX$1))+1),\"\")","v":""},{"$f":"IFERROR(MID($U218,FIND(CHAR(160),SUBSTITUTE($U218,\"{\",CHAR(160),FY$1)),FIND(CHAR(160),SUBSTITUTE($U218,\"}\",CHAR(160),FY$1))-FIND(CHAR(160),SUBSTITUTE($U218,\"{\",CHAR(160),FY$1))+1),\"\")","v":""},{"$f":"IFERROR(MID($U218,FIND(CHAR(160),SUBSTITUTE($U218,\"{\",CHAR(160),FZ$1)),FIND(CHAR(160),SUBSTITUTE($U218,\"}\",CHAR(160),FZ$1))-FIND(CHAR(160),SUBSTITUTE($U218,\"{\",CHAR(160),FZ$1))+1),\"\")","v":""},{"$f":"IFERROR(MID($U218,FIND(CHAR(160),SUBSTITUTE($U218,\"{\",CHAR(160),GA$1)),FIND(CHAR(160),SUBSTITUTE($U218,\"}\",CHAR(160),GA$1))-FIND(CHAR(160),SUBSTITUTE($U218,\"{\",CHAR(160),GA$1))+1),\"\")","v":""},{"$f":"IFERROR(MID($U218,FIND(CHAR(160),SUBSTITUTE($U218,\"{\",CHAR(160),GB$1)),FIND(CHAR(160),SUBSTITUTE($U218,\"}\",CHAR(160),GB$1))-FIND(CHAR(160),SUBSTITUTE($U218,\"{\",CHAR(160),GB$1))+1),\"\")","v":""},{"$f":"IFERROR(MID($U218,FIND(CHAR(160),SUBSTITUTE($U218,\"{\",CHAR(160),GC$1)),FIND(CHAR(160),SUBSTITUTE($U218,\"}\",CHAR(160),GC$1))-FIND(CHAR(160),SUBSTITUTE($U218,\"{\",CHAR(160),GC$1))+1),\"\")","v":""},{"$f":"IFERROR(MID($U218,FIND(CHAR(160),SUBSTITUTE($U218,\"{\",CHAR(160),GD$1)),FIND(CHAR(160),SUBSTITUTE($U218,\"}\",CHAR(160),GD$1))-FIND(CHAR(160),SUBSTITUTE($U218,\"{\",CHAR(160),GD$1))+1),\"\")","v":""},{"$f":"IFERROR(MID($U218,FIND(CHAR(160),SUBSTITUTE($U218,\"{\",CHAR(160),GE$1)),FIND(CHAR(160),SUBSTITUTE($U218,\"}\",CHAR(160),GE$1))-FIND(CHAR(160),SUBSTITUTE($U218,\"{\",CHAR(160),GE$1))+1),\"\")","v":"{Measure:Quantity}"},{"$f":"IFERROR(MID($U218,FIND(CHAR(160),SUBSTITUTE($U218,\"{\",CHAR(160),GF$1)),FIND(CHAR(160),SUBSTITUTE($U218,\"}\",CHAR(160),GF$1))-FIND(CHAR(160),SUBSTITUTE($U218,\"{\",CHAR(160),GF$1))+1),\"\")","v":"{Wattage}"},{"$f":"IFERROR(MID($V218,FIND(CHAR(160),SUBSTITUTE($V218,\"{\",CHAR(160),GG$1)),FIND(CHAR(160),SUBSTITUTE($V218,\"}\",CHAR(160),GG$1))-FIND(CHAR(160),SUBSTITUTE($V218,\"{\",CHAR(160),GG$1))+1),\"\")","v":""},{"$f":"IFERROR(MID($V218,FIND(CHAR(160),SUBSTITUTE($V218,\"{\",CHAR(160),GH$1)),FIND(CHAR(160),SUBSTITUTE($V218,\"}\",CHAR(160),GH$1))-FIND(CHAR(160),SUBSTITUTE($V218,\"{\",CHAR(160),GH$1))+1),\"\")","v":""},{"$f":"IFERROR(MID($V218,FIND(CHAR(160),SUBSTITUTE($V218,\"{\",CHAR(160),GI$1)),FIND(CHAR(160),SUBSTITUTE($V218,\"}\",CHAR(160),GI$1))-FIND(CHAR(160),SUBSTITUTE($V218,\"{\",CHAR(160),GI$1))+1),\"\")","v":""},{"$f":"IFERROR(MID($V218,FIND(CHAR(160),SUBSTITUTE($V218,\"{\",CHAR(160),GJ$1)),FIND(CHAR(160),SUBSTITUTE($V218,\"}\",CHAR(160),GJ$1))-FIND(CHAR(160),SUBSTITUTE($V218,\"{\",CHAR(160),GJ$1))+1),\"\")","v":""},{"$f":"IFERROR(MID($V218,FIND(CHAR(160),SUBSTITUTE($V218,\"{\",CHAR(160),GK$1)),FIND(CHAR(160),SUBSTITUTE($V218,\"}\",CHAR(160),GK$1))-FIND(CHAR(160),SUBSTITUTE($V218,\"{\",CHAR(160),GK$1))+1),\"\")","v":""},{"$f":"IFERROR(MID($V218,FIND(CHAR(160),SUBSTITUTE($V218,\"{\",CHAR(160),GL$1)),FIND(CHAR(160),SUBSTITUTE($V218,\"}\",CHAR(160),GL$1))-FIND(CHAR(160),SUBSTITUTE($V218,\"{\",CHAR(160),GL$1))+1),\"\")","v":""},{"$f":"IFERROR(MID($V218,FIND(CHAR(160),SUBSTITUTE($V218,\"{\",CHAR(160),GM$1)),FIND(CHAR(160),SUBSTITUTE($V218,\"}\",CHAR(160),GM$1))-FIND(CHAR(160),SUBSTITUTE($V218,\"{\",CHAR(160),GM$1))+1),\"\")","v":""},{"$f":"IFERROR(MID($V218,FIND(CHAR(160),SUBSTITUTE($V218,\"{\",CHAR(160),GN$1)),FIND(CHAR(160),SUBSTITUTE($V218,\"}\",CHAR(160),GN$1))-FIND(CHAR(160),SUBSTITUTE($V218,\"{\",CHAR(160),GN$1))+1),\"\")","v":""},{"$f":"IFERROR(MID($V218,FIND(CHAR(160),SUBSTITUTE($V218,\"{\",CHAR(160),GO$1)),FIND(CHAR(160),SUBSTITUTE($V218,\"}\",CHAR(160),GO$1))-FIND(CHAR(160),SUBSTITUTE($V218,\"{\",CHAR(160),GO$1))+1),\"\")","v":"{Measure:Quantity}"},{"$f":"IFERROR(MID($V218,FIND(CHAR(160),SUBSTITUTE($V218,\"{\",CHAR(160),GP$1)),FIND(CHAR(160),SUBSTITUTE($V218,\"}\",CHAR(160),GP$1))-FIND(CHAR(160),SUBSTITUTE($V218,\"{\",CHAR(160),GP$1))+1),\"\")","v":"{Wattage}"},{"$f":"IFERROR(MID($W218,FIND(CHAR(160),SUBSTITUTE($W218,\"{\",CHAR(160),GQ$1)),FIND(CHAR(160),SUBSTITUTE($W218,\"}\",CHAR(160),GQ$1))-FIND(CHAR(160),SUBSTITUTE($W218,\"{\",CHAR(160),GQ$1))+1),\"\")","v":""},{"$f":"IFERROR(MID($W218,FIND(CHAR(160),SUBSTITUTE($W218,\"{\",CHAR(160),GR$1)),FIND(CHAR(160),SUBSTITUTE($W218,\"}\",CHAR(160),GR$1))-FIND(CHAR(160),SUBSTITUTE($W218,\"{\",CHAR(160),GR$1))+1),\"\")","v":""},{"$f":"IFERROR(MID($W218,FIND(CHAR(160),SUBSTITUTE($W218,\"{\",CHAR(160),GS$1)),FIND(CHAR(160),SUBSTITUTE($W218,\"}\",CHAR(160),GS$1))-FIND(CHAR(160),SUBSTITUTE($W218,\"{\",CHAR(160),GS$1))+1),\"\")","v":""},{"$f":"IFERROR(MID($W218,FIND(CHAR(160),SUBSTITUTE($W218,\"{\",CHAR(160),GT$1)),FIND(CHAR(160),SUBSTITUTE($W218,\"}\",CHAR(160),GT$1))-FIND(CHAR(160),SUBSTITUTE($W218,\"{\",CHAR(160),GT$1))+1),\"\")","v":""},{"$f":"IFERROR(MID($W218,FIND(CHAR(160),SUBSTITUTE($W218,\"{\",CHAR(160),GU$1)),FIND(CHAR(160),SUBSTITUTE($W218,\"}\",CHAR(160),GU$1))-FIND(CHAR(160),SUBSTITUTE($W218,\"{\",CHAR(160),GU$1))+1),\"\")","v":""},{"$f":"IFERROR(MID($W218,FIND(CHAR(160),SUBSTITUTE($W218,\"{\",CHAR(160),GV$1)),FIND(CHAR(160),SUBSTITUTE($W218,\"}\",CHAR(160),GV$1))-FIND(CHAR(160),SUBSTITUTE($W218,\"{\",CHAR(160),GV$1))+1),\"\")","v":""},{"$f":"IFERROR(MID($W218,FIND(CHAR(160),SUBSTITUTE($W218,\"{\",CHAR(160),GW$1)),FIND(CHAR(160),SUBSTITUTE($W218,\"}\",CHAR(160),GW$1))-FIND(CHAR(160),SUBSTITUTE($W218,\"{\",CHAR(160),GW$1))+1),\"\")","v":""},{"$f":"IFERROR(MID($W218,FIND(CHAR(160),SUBSTITUTE($W218,\"{\",CHAR(160),GX$1)),FIND(CHAR(160),SUBSTITUTE($W218,\"}\",CHAR(160),GX$1))-FIND(CHAR(160),SUBSTITUTE($W218,\"{\",CHAR(160),GX$1))+1),\"\")","v":""},{"$f":"IFERROR(MID($W218,FIND(CHAR(160),SUBSTITUTE($W218,\"{\",CHAR(160),GY$1)),FIND(CHAR(160),SUBSTITUTE($W218,\"}\",CHAR(160),GY$1))-FIND(CHAR(160),SUBSTITUTE($W218,\"{\",CHAR(160),GY$1))+1),\"\")","v":"{Measure:Quantity}"},{"$f":"IFERROR(MID($W218,FIND(CHAR(160),SUBSTITUTE($W218,\"{\",CHAR(160),GZ$1)),FIND(CHAR(160),SUBSTITUTE($W218,\"}\",CHAR(160),GZ$1))-FIND(CHAR(160),SUBSTITUTE($W218,\"{\",CHAR(160),GZ$1))+1),\"\")","v":"{Wattage}"},{"$f":"IFERROR(MID($X218,FIND(CHAR(160),SUBSTITUTE($X218,\"{\",CHAR(160),HA$1)),FIND(CHAR(160),SUBSTITUTE($X218,\"}\",CHAR(160),HA$1))-FIND(CHAR(160),SUBSTITUTE($X218,\"{\",CHAR(160),HA$1))+1),\"\")","v":""},{"$f":"IFERROR(MID($X218,FIND(CHAR(160),SUBSTITUTE($X218,\"{\",CHAR(160),HB$1)),FIND(CHAR(160),SUBSTITUTE($X218,\"}\",CHAR(160),HB$1))-FIND(CHAR(160),SUBSTITUTE($X218,\"{\",CHAR(160),HB$1))+1),\"\")","v":""},{"$f":"IFERROR(MID($X218,FIND(CHAR(160),SUBSTITUTE($X218,\"{\",CHAR(160),HC$1)),FIND(CHAR(160),SUBSTITUTE($X218,\"}\",CHAR(160),HC$1))-FIND(CHAR(160),SUBSTITUTE($X218,\"{\",CHAR(160),HC$1))+1),\"\")","v":""},{"$f":"IFERROR(MID($X218,FIND(CHAR(160),SUBSTITUTE($X218,\"{\",CHAR(160),HD$1)),FIND(CHAR(160),SUBSTITUTE($X218,\"}\",CHAR(160),HD$1))-FIND(CHAR(160),SUBSTITUTE($X218,\"{\",CHAR(160),HD$1))+1),\"\")","v":""},{"$f":"IFERROR(MID($X218,FIND(CHAR(160),SUBSTITUTE($X218,\"{\",CHAR(160),HE$1)),FIND(CHAR(160),SUBSTITUTE($X218,\"}\",CHAR(160),HE$1))-FIND(CHAR(160),SUBSTITUTE($X218,\"{\",CHAR(160),HE$1))+1),\"\")","v":""},{"$f":"IFERROR(MID($X218,FIND(CHAR(160),SUBSTITUTE($X218,\"{\",CHAR(160),HF$1)),FIND(CHAR(160),SUBSTITUTE($X218,\"}\",CHAR(160),HF$1))-FIND(CHAR(160),SUBSTITUTE($X218,\"{\",CHAR(160),HF$1))+1),\"\")","v":""},{"$f":"IFERROR(MID($X218,FIND(CHAR(160),SUBSTITUTE($X218,\"{\",CHAR(160),HG$1)),FIND(CHAR(160),SUBSTITUTE($X218,\"}\",CHAR(160),HG$1))-FIND(CHAR(160),SUBSTITUTE($X218,\"{\",CHAR(160),HG$1))+1),\"\")","v":""},{"$f":"IFERROR(MID($X218,FIND(CHAR(160),SUBSTITUTE($X218,\"{\",CHAR(160),HH$1)),FIND(CHAR(160),SUBSTITUTE($X218,\"}\",CHAR(160),HH$1))-FIND(CHAR(160),SUBSTITUTE($X218,\"{\",CHAR(160),HH$1))+1),\"\")","v":""},{"$f":"IFERROR(MID($X218,FIND(CHAR(160),SUBSTITUTE($X218,\"{\",CHAR(160),HI$1)),FIND(CHAR(160),SUBSTITUTE($X218,\"}\",CHAR(160),HI$1))-FIND(CHAR(160),SUBSTITUTE($X218,\"{\",CHAR(160),HI$1))+1),\"\")","v":"{Measure:Quantity}"},{"$f":"IFERROR(MID($X218,FIND(CHAR(160),SUBSTITUTE($X218,\"{\",CHAR(160),HJ$1)),FIND(CHAR(160),SUBSTITUTE($X218,\"}\",CHAR(160),HJ$1))-FIND(CHAR(160),SUBSTITUTE($X218,\"{\",CHAR(160),HJ$1))+1),\"\")","v":"{Wattage}"},{"$f":"IFERROR(MID($Y218,FIND(CHAR(160),SUBSTITUTE($Y218,\"{\",CHAR(160),HK$1)),FIND(CHAR(160),SUBSTITUTE($Y218,\"}\",CHAR(160),HK$1))-FIND(CHAR(160),SUBSTITUTE($Y218,\"{\",CHAR(160),HK$1))+1),\"\")","v":""},{"$f":"IFERROR(MID($Y218,FIND(CHAR(160),SUBSTITUTE($Y218,\"{\",CHAR(160),HL$1)),FIND(CHAR(160),SUBSTITUTE($Y218,\"}\",CHAR(160),HL$1))-FIND(CHAR(160),SUBSTITUTE($Y218,\"{\",CHAR(160),HL$1))+1),\"\")","v":""},{"$f":"IFERROR(MID($Y218,FIND(CHAR(160),SUBSTITUTE($Y218,\"{\",CHAR(160),HM$1)),FIND(CHAR(160),SUBSTITUTE($Y218,\"}\",CHAR(160),HM$1))-FIND(CHAR(160),SUBSTITUTE($Y218,\"{\",CHAR(160),HM$1))+1),\"\")","v":""},{"$f":"IFERROR(MID($Y218,FIND(CHAR(160),SUBSTITUTE($Y218,\"{\",CHAR(160),HN$1)),FIND(CHAR(160),SUBSTITUTE($Y218,\"}\",CHAR(160),HN$1))-FIND(CHAR(160),SUBSTITUTE($Y218,\"{\",CHAR(160),HN$1))+1),\"\")","v":""},{"$f":"IFERROR(MID($Y218,FIND(CHAR(160),SUBSTITUTE($Y218,\"{\",CHAR(160),HO$1)),FIND(CHAR(160),SUBSTITUTE($Y218,\"}\",CHAR(160),HO$1))-FIND(CHAR(160),SUBSTITUTE($Y218,\"{\",CHAR(160),HO$1))+1),\"\")","v":""},{"$f":"IFERROR(MID($Y218,FIND(CHAR(160),SUBSTITUTE($Y218,\"{\",CHAR(160),HP$1)),FIND(CHAR(160),SUBSTITUTE($Y218,\"}\",CHAR(160),HP$1))-FIND(CHAR(160),SUBSTITUTE($Y218,\"{\",CHAR(160),HP$1))+1),\"\")","v":""},{"$f":"IFERROR(MID($Y218,FIND(CHAR(160),SUBSTITUTE($Y218,\"{\",CHAR(160),HQ$1)),FIND(CHAR(160),SUBSTITUTE($Y218,\"}\",CHAR(160),HQ$1))-FIND(CHAR(160),SUBSTITUTE($Y218,\"{\",CHAR(160),HQ$1))+1),\"\")","v":""},{"$f":"IFERROR(MID($Y218,FIND(CHAR(160),SUBSTITUTE($Y218,\"{\",CHAR(160),HR$1)),FIND(CHAR(160),SUBSTITUTE($Y218,\"}\",CHAR(160),HR$1))-FIND(CHAR(160),SUBSTITUTE($Y218,\"{\",CHAR(160),HR$1))+1),\"\")","v":""},{"$f":"IFERROR(MID($Y218,FIND(CHAR(160),SUBSTITUTE($Y218,\"{\",CHAR(160),HS$1)),FIND(CHAR(160),SUBSTITUTE($Y218,\"}\",CHAR(160),HS$1))-FIND(CHAR(160),SUBSTITUTE($Y218,\"{\",CHAR(160),HS$1))+1),\"\")","v":"{Measure:Quantity}"},{"$f":"IFERROR(MID($Y218,FIND(CHAR(160),SUBSTITUTE($Y218,\"{\",CHAR(160),HT$1)),FIND(CHAR(160),SUBSTITUTE($Y218,\"}\",CHAR(160),HT$1))-FIND(CHAR(160),SUBSTITUTE($Y218,\"{\",CHAR(160),HT$1))+1),\"\")","v":"{Wattage}"},{"$f":"IFERROR(MID($Z218,FIND(CHAR(160),SUBSTITUTE($Z218,\"{\",CHAR(160),HU$1)),FIND(CHAR(160),SUBSTITUTE($Z218,\"}\",CHAR(160),HU$1))-FIND(CHAR(160),SUBSTITUTE($Z218,\"{\",CHAR(160),HU$1))+1),\"\")","v":""},{"$f":"IFERROR(MID($Z218,FIND(CHAR(160),SUBSTITUTE($Z218,\"{\",CHAR(160),HV$1)),FIND(CHAR(160),SUBSTITUTE($Z218,\"}\",CHAR(160),HV$1))-FIND(CHAR(160),SUBSTITUTE($Z218,\"{\",CHAR(160),HV$1))+1),\"\")","v":""},{"$f":"IFERROR(MID($Z218,FIND(CHAR(160),SUBSTITUTE($Z218,\"{\",CHAR(160),HW$1)),FIND(CHAR(160),SUBSTITUTE($Z218,\"}\",CHAR(160),HW$1))-FIND(CHAR(160),SUBSTITUTE($Z218,\"{\",CHAR(160),HW$1))+1),\"\")","v":""},{"$f":"IFERROR(MID($Z218,FIND(CHAR(160),SUBSTITUTE($Z218,\"{\",CHAR(160),HX$1)),FIND(CHAR(160),SUBSTITUTE($Z218,\"}\",CHAR(160),HX$1))-FIND(CHAR(160),SUBSTITUTE($Z218,\"{\",CHAR(160),HX$1))+1),\"\")","v":""},{"$f":"IFERROR(MID($Z218,FIND(CHAR(160),SUBSTITUTE($Z218,\"{\",CHAR(160),HY$1)),FIND(CHAR(160),SUBSTITUTE($Z218,\"}\",CHAR(160),HY$1))-FIND(CHAR(160),SUBSTITUTE($Z218,\"{\",CHAR(160),HY$1))+1),\"\")","v":""},{"$f":"IFERROR(MID($Z218,FIND(CHAR(160),SUBSTITUTE($Z218,\"{\",CHAR(160),HZ$1)),FIND(CHAR(160),SUBSTITUTE($Z218,\"}\",CHAR(160),HZ$1))-FIND(CHAR(160),SUBSTITUTE($Z218,\"{\",CHAR(160),HZ$1))+1),\"\")","v":""},{"$f":"IFERROR(MID($Z218,FIND(CHAR(160),SUBSTITUTE($Z218,\"{\",CHAR(160),IA$1)),FIND(CHAR(160),SUBSTITUTE($Z218,\"}\",CHAR(160),IA$1))-FIND(CHAR(160),SUBSTITUTE($Z218,\"{\",CHAR(160),IA$1))+1),\"\")","v":""},{"$f":"IFERROR(MID($Z218,FIND(CHAR(160),SUBSTITUTE($Z218,\"{\",CHAR(160),IB$1)),FIND(CHAR(160),SUBSTITUTE($Z218,\"}\",CHAR(160),IB$1))-FIND(CHAR(160),SUBSTITUTE($Z218,\"{\",CHAR(160),IB$1))+1),\"\")","v":""},{"$f":"IFERROR(MID($Z218,FIND(CHAR(160),SUBSTITUTE($Z218,\"{\",CHAR(160),IC$1)),FIND(CHAR(160),SUBSTITUTE($Z218,\"}\",CHAR(160),IC$1))-FIND(CHAR(160),SUBSTITUTE($Z218,\"{\",CHAR(160),IC$1))+1),\"\")","v":"{Measure:Quantity}"},{"$f":"IFERROR(MID($Z218,FIND(CHAR(160),SUBSTITUTE($Z218,\"{\",CHAR(160),ID$1)),FIND(CHAR(160),SUBSTITUTE($Z218,\"}\",CHAR(160),ID$1))-FIND(CHAR(160),SUBSTITUTE($Z218,\"{\",CHAR(160),ID$1))+1),\"\")","v":"{Wattage}"},{"$f":"IFERROR(MID($AA218,FIND(CHAR(160),SUBSTITUTE($AA218,\"{\",CHAR(160),IE$1)),FIND(CHAR(160),SUBSTITUTE($AA218,\"}\",CHAR(160),IE$1))-FIND(CHAR(160),SUBSTITUTE($AA218,\"{\",CHAR(160),IE$1))+1),\"\")","v":""},{"$f":"IFERROR(MID($AA218,FIND(CHAR(160),SUBSTITUTE($AA218,\"{\",CHAR(160),IF$1)),FIND(CHAR(160),SUBSTITUTE($AA218,\"}\",CHAR(160),IF$1))-FIND(CHAR(160),SUBSTITUTE($AA218,\"{\",CHAR(160),IF$1))+1),\"\")","v":""},{"$f":"IFERROR(MID($AA218,FIND(CHAR(160),SUBSTITUTE($AA218,\"{\",CHAR(160),IG$1)),FIND(CHAR(160),SUBSTITUTE($AA218,\"}\",CHAR(160),IG$1))-FIND(CHAR(160),SUBSTITUTE($AA218,\"{\",CHAR(160),IG$1))+1),\"\")","v":""},{"$f":"IFERROR(MID($AA218,FIND(CHAR(160),SUBSTITUTE($AA218,\"{\",CHAR(160),IH$1)),FIND(CHAR(160),SUBSTITUTE($AA218,\"}\",CHAR(160),IH$1))-FIND(CHAR(160),SUBSTITUTE($AA218,\"{\",CHAR(160),IH$1))+1),\"\")","v":""},{"$f":"IFERROR(MID($AA218,FIND(CHAR(160),SUBSTITUTE($AA218,\"{\",CHAR(160),II$1)),FIND(CHAR(160),SUBSTITUTE($AA218,\"}\",CHAR(160),II$1))-FIND(CHAR(160),SUBSTITUTE($AA218,\"{\",CHAR(160),II$1))+1),\"\")","v":""},{"$f":"IFERROR(MID($AA218,FIND(CHAR(160),SUBSTITUTE($AA218,\"{\",CHAR(160),IJ$1)),FIND(CHAR(160),SUBSTITUTE($AA218,\"}\",CHAR(160),IJ$1))-FIND(CHAR(160),SUBSTITUTE($AA218,\"{\",CHAR(160),IJ$1))+1),\"\")","v":""},{"$f":"IFERROR(MID($AA218,FIND(CHAR(160),SUBSTITUTE($AA218,\"{\",CHAR(160),IK$1)),FIND(CHAR(160),SUBSTITUTE($AA218,\"}\",CHAR(160),IK$1))-FIND(CHAR(160),SUBSTITUTE($AA218,\"{\",CHAR(160),IK$1))+1),\"\")","v":""},{"$f":"IFERROR(MID($AA218,FIND(CHAR(160),SUBSTITUTE($AA218,\"{\",CHAR(160),IL$1)),FIND(CHAR(160),SUBSTITUTE($AA218,\"}\",CHAR(160),IL$1))-FIND(CHAR(160),SUBSTITUTE($AA218,\"{\",CHAR(160),IL$1))+1),\"\")","v":""},{"$f":"IFERROR(MID($AA218,FIND(CHAR(160),SUBSTITUTE($AA218,\"{\",CHAR(160),IM$1)),FIND(CHAR(160),SUBSTITUTE($AA218,\"}\",CHAR(160),IM$1))-FIND(CHAR(160),SUBSTITUTE($AA218,\"{\",CHAR(160),IM$1))+1),\"\")","v":"{Measure:Quantity}"},{"$f":"IFERROR(MID($AA218,FIND(CHAR(160),SUBSTITUTE($AA218,\"{\",CHAR(160),IN$1)),FIND(CHAR(160),SUBSTITUTE($AA218,\"}\",CHAR(160),IN$1))-FIND(CHAR(160),SUBSTITUTE($AA218,\"{\",CHAR(160),IN$1))+1),\"\")","v":"{Wattage}"},{"$f":"IFERROR(MID($AB218,FIND(CHAR(160),SUBSTITUTE($AB218,\"{\",CHAR(160),IO$1)),FIND(CHAR(160),SUBSTITUTE($AB218,\"}\",CHAR(160),IO$1))-FIND(CHAR(160),SUBSTITUTE($AB218,\"{\",CHAR(160),IO$1))+1),\"\")","v":""},{"$f":"IFERROR(MID($AB218,FIND(CHAR(160),SUBSTITUTE($AB218,\"{\",CHAR(160),IP$1)),FIND(CHAR(160),SUBSTITUTE($AB218,\"}\",CHAR(160),IP$1))-FIND(CHAR(160),SUBSTITUTE($AB218,\"{\",CHAR(160),IP$1))+1),\"\")","v":""},{"$f":"IFERROR(MID($AB218,FIND(CHAR(160),SUBSTITUTE($AB218,\"{\",CHAR(160),IQ$1)),FIND(CHAR(160),SUBSTITUTE($AB218,\"}\",CHAR(160),IQ$1))-FIND(CHAR(160),SUBSTITUTE($AB218,\"{\",CHAR(160),IQ$1))+1),\"\")","v":""},{"$f":"IFERROR(MID($AB218,FIND(CHAR(160),SUBSTITUTE($AB218,\"{\",CHAR(160),IR$1)),FIND(CHAR(160),SUBSTITUTE($AB218,\"}\",CHAR(160),IR$1))-FIND(CHAR(160),SUBSTITUTE($AB218,\"{\",CHAR(160),IR$1))+1),\"\")","v":""},{"$f":"IFERROR(MID($AB218,FIND(CHAR(160),SUBSTITUTE($AB218,\"{\",CHAR(160),IS$1)),FIND(CHAR(160),SUBSTITUTE($AB218,\"}\",CHAR(160),IS$1))-FIND(CHAR(160),SUBSTITUTE($AB218,\"{\",CHAR(160),IS$1))+1),\"\")","v":""},{"$f":"IFERROR(MID($AB218,FIND(CHAR(160),SUBSTITUTE($AB218,\"{\",CHAR(160),IT$1)),FIND(CHAR(160),SUBSTITUTE($AB218,\"}\",CHAR(160),IT$1))-FIND(CHAR(160),SUBSTITUTE($AB218,\"{\",CHAR(160),IT$1))+1),\"\")","v":""},{"$f":"IFERROR(MID($AB218,FIND(CHAR(160),SUBSTITUTE($AB218,\"{\",CHAR(160),IU$1)),FIND(CHAR(160),SUBSTITUTE($AB218,\"}\",CHAR(160),IU$1))-FIND(CHAR(160),SUBSTITUTE($AB218,\"{\",CHAR(160),IU$1))+1),\"\")","v":""},{"$f":"IFERROR(MID($AB218,FIND(CHAR(160),SUBSTITUTE($AB218,\"{\",CHAR(160),IV$1)),FIND(CHAR(160),SUBSTITUTE($AB218,\"}\",CHAR(160),IV$1))-FIND(CHAR(160),SUBSTITUTE($AB218,\"{\",CHAR(160),IV$1))+1),\"\")","v":""},{"$f":"IFERROR(MID($AB218,FIND(CHAR(160),SUBSTITUTE($AB218,\"{\",CHAR(160),IW$1)),FIND(CHAR(160),SUBSTITUTE($AB218,\"}\",CHAR(160),IW$1))-FIND(CHAR(160),SUBSTITUTE($AB218,\"{\",CHAR(160),IW$1))+1),\"\")","v":""},{"$f":"IFERROR(MID($AB218,FIND(CHAR(160),SUBSTITUTE($AB218,\"{\",CHAR(160),IX$1)),FIND(CHAR(160),SUBSTITUTE($AB218,\"}\",CHAR(160),IX$1))-FIND(CHAR(160),SUBSTITUTE($AB218,\"{\",CHAR(160),IX$1))+1),\"\")","v":""},null,{"$f":"10-COUNTIF(DU218:ED218,\"\")","v":2}]
["Low Income Direct Install - Electric","LED Low Income Specialty Bulb Short Life","LILEDSPECS","2021-07-01","2022-06-30","Per Measure",2.95,0,"Per Measure",2.95,0,"2021-07-01","2022-06-30","Calculated","{Measure:Quantity}*41",null,null,"{Measure:Quantity}*0.057",null,null,"{Measure:Quantity}*0.009","{Measure:Quantity}*0.004","{Measure:Quantity}*-0.005","{Measure:Quantity}*-0.004","{Measure:Quantity}*-0.035","{Measure:Quantity}*-0.001","{Measure:Quantity}*-0.007",null,"2021-07-01","2022-06-30",4,0.17199999999999999,7.2999999999999995E-2,0.34899999999999998,0.33500000000000002,0.155,0.161,0.77,1,1,0,0,null,{"$f":"DU219","v":"{Measure:Quantity}"},1,{"$f":"DV219","v":""},1,{"$f":"DW219","v":""},null,{"$f":"DX219","v":""},null,{"$f":"DY219","v":""},null,{"$f":"DZ219","v":""},null,{"$f":"EA219","v":""},null,{"$f":"EB219","v":""},null,{"$f":"EC219","v":""},null,"LIDI Bundle Qty",0,{"$f":"AS219*41","v":41},0,0,{"$f":"AS219*0.057","v":5.7000000000000002E-2},0,0,{"$f":"AS219*0.009","v":8.9999999999999993E-3},{"$f":"AS219*0.004","v":4.0000000000000001E-3},{"$f":"AS219*-0.005","v":-5.0000000000000001E-3},{"$f":"AS219*-0.004","v":-4.0000000000000001E-3},{"$f":"AS219*-0.035","v":-3.5000000000000003E-2},{"$f":"AS219*-0.001","v":-1E-3},{"$f":"AS219*-0.007","v":-7.0000000000000001E-3},0,null,"Res","Default DR",{"$f":"Benefits(BL219,BR219,BS219,BT219,BU219,BV219,BW219,BX219,BY219,BZ219,AE219,AH219,AI219,AJ219,AK219,AL219,AM219,AN219,AO219,AP219,CA219,CB219)","v":14.364119477561875},9.7947972705671784,-2.5858250316384574E-2,-3.4588814173466984,-0.11311640736518638,-0.55049375180912552,-0.3877324073856892,0,0,{"$f":"SUMPRODUCT(CC219:CK219,--(CC219:CK219>0))","v":24.158916748129052},{"$f":"-SUMPRODUCT(CC219:CK219,--(CC219:CK219<0))","v":4.536082234223084},null,{"$f":"2.95","v":2.95},null,null,{"$f":"CM219+CO219","v":7.4860822342230842},{"$f":"IF(NetOrGross=\"Net\",(1-AO219+AP219),1)","v":1},{"$f":"(SUMPRODUCT(CC219:CJ219,--(CC219:CJ219>0))+CN219)*CS219/((-SUMPRODUCT(CC219:CJ219,--(CC219:CJ219<0))+MAX(CO219,CV219)+CP219+CQ219)*CS219+IF(FRIncentives=\"Yes\",CV219*(1-CS219),0))","v":3.2271775799743532},1,{"$f":"2.95","v":2.95},null,"Electric","y",{"$f":"CL219-CR219","v":16.672834513905968},{"$f":"IF(F219=\"Manual Entry\",\"Manual\",IF(G219=\"\",0,\"X=\"&SUBSTITUTE(SUBSTITUTE(SUBSTITUTE(SUBSTITUTE(SUBSTITUTE(SUBSTITUTE(SUBSTITUTE(SUBSTITUTE(SUBSTITUTE(SUBSTITUTE(SUBSTITUTE(SUBSTITUTE(G219,$ED219,$ED$2&ROW($ED219)),$EC219,$EC$2&ROW($EC219)),$EB219,$EB$2&ROW($EB219)),$EA219,$EA$2&ROW($EA219)),$DZ219,$DZ$2&ROW($DZ219)),$DY219,$DY$2&ROW($DY219)),$DX219,$DX$2&ROW($DX219)),$DW219,$DW$2&ROW($DW219)),$DV219,$DV$2&ROW($DV219)),$DU219,$DU$2&ROW($DU219)),$DT219,$DT$2&ROW($DT219)),$DS219,$DS$2&ROW($DS219))))","v":"X=2.95"},{"$f":"IF(I219=\"Manual Entry\",\"Manual\",IF(J219=\"\",0,\"X=\"&SUBSTITUTE(SUBSTITUTE(SUBSTITUTE(SUBSTITUTE(SUBSTITUTE(SUBSTITUTE(SUBSTITUTE(SUBSTITUTE(SUBSTITUTE(SUBSTITUTE(SUBSTITUTE(SUBSTITUTE(J219,$ED219,$ED$2&ROW($ED219)),$EC219,$EC$2&ROW($EC219)),$EB219,$EB$2&ROW($EB219)),$EA219,$EA$2&ROW($EA219)),$DZ219,$DZ$2&ROW($DZ219)),$DY219,$DY$2&ROW($DY219)),$DX219,$DX$2&ROW($DX219)),$DW219,$DW$2&ROW($DW219)),$DV219,$DV$2&ROW($DV219)),$DU219,$DU$2&ROW($DU219)),$DT219,$DT$2&ROW($DT219)),$DS219,$DS$2&ROW($DS219))))","v":"X=2.95"},{"$f":"IF(O219=\"\",0,\"X=\"&SUBSTITUTE(SUBSTITUTE(SUBSTITUTE(SUBSTITUTE(SUBSTITUTE(SUBSTITUTE(SUBSTITUTE(SUBSTITUTE(SUBSTITUTE(SUBSTITUTE(SUBSTITUTE(SUBSTITUTE(O219,$ED219,$ED$2&ROW($ED219)),$EC219,$EC$2&ROW($EC219)),$EB219,$EB$2&ROW($EB219)),$EA219,$EA$2&ROW($EA219)),$DZ219,$DZ$2&ROW($DZ219)),$DY219,$DY$2&ROW($DY219)),$DX219,$DX$2&ROW($DX219)),$DW219,$DW$2&ROW($DW219)),$DV219,$DV$2&ROW($DV219)),$DU219,$DU$2&ROW($DU219)),$DT219,$DT$2&ROW($DT219)),$DS219,$DS$2&ROW($DS219)))","v":"X=AS219*41"},{"$f":"IF(P219=\"\",0,\"X=\"&SUBSTITUTE(SUBSTITUTE(SUBSTITUTE(SUBSTITUTE(SUBSTITUTE(SUBSTITUTE(SUBSTITUTE(SUBSTITUTE(SUBSTITUTE(SUBSTITUTE(SUBSTITUTE(SUBSTITUTE(P219,$ED219,$ED$2&ROW($ED219)),$EC219,$EC$2&ROW($EC219)),$EB219,$EB$2&ROW($EB219)),$EA219,$EA$2&ROW($EA219)),$DZ219,$DZ$2&ROW($DZ219)),$DY219,$DY$2&ROW($DY219)),$DX219,$DX$2&ROW($DX219)),$DW219,$DW$2&ROW($DW219)),$DV219,$DV$2&ROW($DV219)),$DU219,$DU$2&ROW($DU219)),$DT219,$DT$2&ROW($DT219)),$DS219,$DS$2&ROW($DS219)))","v":0},{"$f":"IF(Q219=\"\",0,\"X=\"&SUBSTITUTE(SUBSTITUTE(SUBSTITUTE(SUBSTITUTE(SUBSTITUTE(SUBSTITUTE(SUBSTITUTE(SUBSTITUTE(SUBSTITUTE(SUBSTITUTE(SUBSTITUTE(SUBSTITUTE(Q219,$ED219,$ED$2&ROW($ED219)),$EC219,$EC$2&ROW($EC219)),$EB219,$EB$2&ROW($EB219)),$EA219,$EA$2&ROW($EA219)),$DZ219,$DZ$2&ROW($DZ219)),$DY219,$DY$2&ROW($DY219)),$DX219,$DX$2&ROW($DX219)),$DW219,$DW$2&ROW($DW219)),$DV219,$DV$2&ROW($DV219)),$DU219,$DU$2&ROW($DU219)),$DT219,$DT$2&ROW($DT219)),$DS219,$DS$2&ROW($DS219)))","v":0},{"$f":"IF(R219=\"\",0,\"X=\"&SUBSTITUTE(SUBSTITUTE(SUBSTITUTE(SUBSTITUTE(SUBSTITUTE(SUBSTITUTE(SUBSTITUTE(SUBSTITUTE(SUBSTITUTE(SUBSTITUTE(SUBSTITUTE(SUBSTITUTE(R219,$ED219,$ED$2&ROW($ED219)),$EC219,$EC$2&ROW($EC219)),$EB219,$EB$2&ROW($EB219)),$EA219,$EA$2&ROW($EA219)),$DZ219,$DZ$2&ROW($DZ219)),$DY219,$DY$2&ROW($DY219)),$DX219,$DX$2&ROW($DX219)),$DW219,$DW$2&ROW($DW219)),$DV219,$DV$2&ROW($DV219)),$DU219,$DU$2&ROW($DU219)),$DT219,$DT$2&ROW($DT219)),$DS219,$DS$2&ROW($DS219)))","v":"X=AS219*0.057"},{"$f":"IF(S219=\"\",0,\"X=\"&SUBSTITUTE(SUBSTITUTE(SUBSTITUTE(SUBSTITUTE(SUBSTITUTE(SUBSTITUTE(SUBSTITUTE(SUBSTITUTE(SUBSTITUTE(SUBSTITUTE(SUBSTITUTE(SUBSTITUTE(S219,$ED219,$ED$2&ROW($ED219)),$EC219,$EC$2&ROW($EC219)),$EB219,$EB$2&ROW($EB219)),$EA219,$EA$2&ROW($EA219)),$DZ219,$DZ$2&ROW($DZ219)),$DY219,$DY$2&ROW($DY219)),$DX219,$DX$2&ROW($DX219)),$DW219,$DW$2&ROW($DW219)),$DV219,$DV$2&ROW($DV219)),$DU219,$DU$2&ROW($DU219)),$DT219,$DT$2&ROW($DT219)),$DS219,$DS$2&ROW($DS219)))","v":0},{"$f":"IF(T219=\"\",0,\"X=\"&SUBSTITUTE(SUBSTITUTE(SUBSTITUTE(SUBSTITUTE(SUBSTITUTE(SUBSTITUTE(SUBSTITUTE(SUBSTITUTE(SUBSTITUTE(SUBSTITUTE(SUBSTITUTE(SUBSTITUTE(T219,$ED219,$ED$2&ROW($ED219)),$EC219,$EC$2&ROW($EC219)),$EB219,$EB$2&ROW($EB219)),$EA219,$EA$2&ROW($EA219)),$DZ219,$DZ$2&ROW($DZ219)),$DY219,$DY$2&ROW($DY219)),$DX219,$DX$2&ROW($DX219)),$DW219,$DW$2&ROW($DW219)),$DV219,$DV$2&ROW($DV219)),$DU219,$DU$2&ROW($DU219)),$DT219,$DT$2&ROW($DT219)),$DS219,$DS$2&ROW($DS219)))","v":0},{"$f":"IF(U219=\"\",0,\"X=\"&SUBSTITUTE(SUBSTITUTE(SUBSTITUTE(SUBSTITUTE(SUBSTITUTE(SUBSTITUTE(SUBSTITUTE(SUBSTITUTE(SUBSTITUTE(SUBSTITUTE(SUBSTITUTE(SUBSTITUTE(U219,$ED219,$ED$2&ROW($ED219)),$EC219,$EC$2&ROW($EC219)),$EB219,$EB$2&ROW($EB219)),$EA219,$EA$2&ROW($EA219)),$DZ219,$DZ$2&ROW($DZ219)),$DY219,$DY$2&ROW($DY219)),$DX219,$DX$2&ROW($DX219)),$DW219,$DW$2&ROW($DW219)),$DV219,$DV$2&ROW($DV219)),$DU219,$DU$2&ROW($DU219)),$DT219,$DT$2&ROW($DT219)),$DS219,$DS$2&ROW($DS219)))","v":"X=AS219*0.009"},{"$f":"IF(V219=\"\",0,\"X=\"&SUBSTITUTE(SUBSTITUTE(SUBSTITUTE(SUBSTITUTE(SUBSTITUTE(SUBSTITUTE(SUBSTITUTE(SUBSTITUTE(SUBSTITUTE(SUBSTITUTE(SUBSTITUTE(SUBSTITUTE(V219,$ED219,$ED$2&ROW($ED219)),$EC219,$EC$2&ROW($EC219)),$EB219,$EB$2&ROW($EB219)),$EA219,$EA$2&ROW($EA219)),$DZ219,$DZ$2&ROW($DZ219)),$DY219,$DY$2&ROW($DY219)),$DX219,$DX$2&ROW($DX219)),$DW219,$DW$2&ROW($DW219)),$DV219,$DV$2&ROW($DV219)),$DU219,$DU$2&ROW($DU219)),$DT219,$DT$2&ROW($DT219)),$DS219,$DS$2&ROW($DS219)))","v":"X=AS219*0.004"},{"$f":"IF(W219=\"\",0,\"X=\"&SUBSTITUTE(SUBSTITUTE(SUBSTITUTE(SUBSTITUTE(SUBSTITUTE(SUBSTITUTE(SUBSTITUTE(SUBSTITUTE(SUBSTITUTE(SUBSTITUTE(SUBSTITUTE(SUBSTITUTE(W219,$ED219,$ED$2&ROW($ED219)),$EC219,$EC$2&ROW($EC219)),$EB219,$EB$2&ROW($EB219)),$EA219,$EA$2&ROW($EA219)),$DZ219,$DZ$2&ROW($DZ219)),$DY219,$DY$2&ROW($DY219)),$DX219,$DX$2&ROW($DX219)),$DW219,$DW$2&ROW($DW219)),$DV219,$DV$2&ROW($DV219)),$DU219,$DU$2&ROW($DU219)),$DT219,$DT$2&ROW($DT219)),$DS219,$DS$2&ROW($DS219)))","v":"X=AS219*-0.005"},{"$f":"IF(X219=\"\",0,\"X=\"&SUBSTITUTE(SUBSTITUTE(SUBSTITUTE(SUBSTITUTE(SUBSTITUTE(SUBSTITUTE(SUBSTITUTE(SUBSTITUTE(SUBSTITUTE(SUBSTITUTE(SUBSTITUTE(SUBSTITUTE(X219,$ED219,$ED$2&ROW($ED219)),$EC219,$EC$2&ROW($EC219)),$EB219,$EB$2&ROW($EB219)),$EA219,$EA$2&ROW($EA219)),$DZ219,$DZ$2&ROW($DZ219)),$DY219,$DY$2&ROW($DY219)),$DX219,$DX$2&ROW($DX219)),$DW219,$DW$2&ROW($DW219)),$DV219,$DV$2&ROW($DV219)),$DU219,$DU$2&ROW($DU219)),$DT219,$DT$2&ROW($DT219)),$DS219,$DS$2&ROW($DS219)))","v":"X=AS219*-0.004"},{"$f":"IF(Y219=\"\",0,\"X=\"&SUBSTITUTE(SUBSTITUTE(SUBSTITUTE(SUBSTITUTE(SUBSTITUTE(SUBSTITUTE(SUBSTITUTE(SUBSTITUTE(SUBSTITUTE(SUBSTITUTE(SUBSTITUTE(SUBSTITUTE(Y219,$ED219,$ED$2&ROW($ED219)),$EC219,$EC$2&ROW($EC219)),$EB219,$EB$2&ROW($EB219)),$EA219,$EA$2&ROW($EA219)),$DZ219,$DZ$2&ROW($DZ219)),$DY219,$DY$2&ROW($DY219)),$DX219,$DX$2&ROW($DX219)),$DW219,$DW$2&ROW($DW219)),$DV219,$DV$2&ROW($DV219)),$DU219,$DU$2&ROW($DU219)),$DT219,$DT$2&ROW($DT219)),$DS219,$DS$2&ROW($DS219)))","v":"X=AS219*-0.035"},{"$f":"IF(Z219=\"\",0,\"X=\"&SUBSTITUTE(SUBSTITUTE(SUBSTITUTE(SUBSTITUTE(SUBSTITUTE(SUBSTITUTE(SUBSTITUTE(SUBSTITUTE(SUBSTITUTE(SUBSTITUTE(SUBSTITUTE(SUBSTITUTE(Z219,$ED219,$ED$2&ROW($ED219)),$EC219,$EC$2&ROW($EC219)),$EB219,$EB$2&ROW($EB219)),$EA219,$EA$2&ROW($EA219)),$DZ219,$DZ$2&ROW($DZ219)),$DY219,$DY$2&ROW($DY219)),$DX219,$DX$2&ROW($DX219)),$DW219,$DW$2&ROW($DW219)),$DV219,$DV$2&ROW($DV219)),$DU219,$DU$2&ROW($DU219)),$DT219,$DT$2&ROW($DT219)),$DS219,$DS$2&ROW($DS219)))","v":"X=AS219*-0.001"},{"$f":"IF(AA219=\"\",0,\"X=\"&SUBSTITUTE(SUBSTITUTE(SUBSTITUTE(SUBSTITUTE(SUBSTITUTE(SUBSTITUTE(SUBSTITUTE(SUBSTITUTE(SUBSTITUTE(SUBSTITUTE(SUBSTITUTE(SUBSTITUTE(AA219,$ED219,$ED$2&ROW($ED219)),$EC219,$EC$2&ROW($EC219)),$EB219,$EB$2&ROW($EB219)),$EA219,$EA$2&ROW($EA219)),$DZ219,$DZ$2&ROW($DZ219)),$DY219,$DY$2&ROW($DY219)),$DX219,$DX$2&ROW($DX219)),$DW219,$DW$2&ROW($DW219)),$DV219,$DV$2&ROW($DV219)),$DU219,$DU$2&ROW($DU219)),$DT219,$DT$2&ROW($DT219)),$DS219,$DS$2&ROW($DS219)))","v":"X=AS219*-0.007"},{"$f":"IF(AB219=\"\",0,\"X=\"&SUBSTITUTE(SUBSTITUTE(SUBSTITUTE(SUBSTITUTE(SUBSTITUTE(SUBSTITUTE(SUBSTITUTE(SUBSTITUTE(SUBSTITUTE(SUBSTITUTE(SUBSTITUTE(SUBSTITUTE(AB219,$ED219,$ED$2&ROW($ED219)),$EC219,$EC$2&ROW($EC219)),$EB219,$EB$2&ROW($EB219)),$EA219,$EA$2&ROW($EA219)),$DZ219,$DZ$2&ROW($DZ219)),$DY219,$DY$2&ROW($DY219)),$DX219,$DX$2&ROW($DX219)),$DW219,$DW$2&ROW($DW219)),$DV219,$DV$2&ROW($DV219)),$DU219,$DU$2&ROW($DU219)),$DT219,$DT$2&ROW($DT219)),$DS219,$DS$2&ROW($DS219)))","v":0},null,null,"{Factor:WinterCF}","{Factor:SummerCF}",{"$f":"IFERROR(INDEX($EG219:$IV219,MATCH(0,COUNTIF($DR219:DT219,$EG219:$IV219),0)),\"\")","v":"{Measure:Quantity}"},{"$f":"IFERROR(INDEX($EG219:$IV219,MATCH(0,COUNTIF($DR219:DU219,$EG219:$IV219),0)),\"\")","v":""},{"$f":"IFERROR(INDEX($EG219:$IV219,MATCH(0,COUNTIF($DR219:DV219,$EG219:$IV219),0)),\"\")","v":""},{"$f":"IFERROR(INDEX($EG219:$IV219,MATCH(0,COUNTIF($DR219:DW219,$EG219:$IV219),0)),\"\")","v":""},{"$f":"IFERROR(INDEX($EG219:$IV219,MATCH(0,COUNTIF($DR219:DX219,$EG219:$IV219),0)),\"\")","v":""},{"$f":"IFERROR(INDEX($EG219:$IV219,MATCH(0,COUNTIF($DR219:DY219,$EG219:$IV219),0)),\"\")","v":""},{"$f":"IFERROR(INDEX($EG219:$IV219,MATCH(0,COUNTIF($DR219:DZ219,$EG219:$IV219),0)),\"\")","v":""},{"$f":"IFERROR(INDEX($EG219:$IV219,MATCH(0,COUNTIF($DR219:EA219,$EG219:$IV219),0)),\"\")","v":""},{"$f":"IFERROR(INDEX($EG219:$IV219,MATCH(0,COUNTIF($DR219:EB219,$EG219:$IV219),0)),\"\")","v":""},{"$f":"IFERROR(INDEX($EG219:$IV219,MATCH(0,COUNTIF($DR219:EC219,$EG219:$IV219),0)),\"\")","v":""},null,null,{"$f":"IFERROR(MID($G219,FIND(CHAR(160),SUBSTITUTE($G219,\"{\",CHAR(160),EG$1)),FIND(CHAR(160),SUBSTITUTE($G219,\"}\",CHAR(160),EG$1))-FIND(CHAR(160),SUBSTITUTE($G219,\"{\",CHAR(160),EG$1))+1),\"\")","v":""},{"$f":"IFERROR(MID($G219,FIND(CHAR(160),SUBSTITUTE($G219,\"{\",CHAR(160),EH$1)),FIND(CHAR(160),SUBSTITUTE($G219,\"}\",CHAR(160),EH$1))-FIND(CHAR(160),SUBSTITUTE($G219,\"{\",CHAR(160),EH$1))+1),\"\")","v":""},{"$f":"IFERROR(MID($G219,FIND(CHAR(160),SUBSTITUTE($G219,\"{\",CHAR(160),EI$1)),FIND(CHAR(160),SUBSTITUTE($G219,\"}\",CHAR(160),EI$1))-FIND(CHAR(160),SUBSTITUTE($G219,\"{\",CHAR(160),EI$1))+1),\"\")","v":""},{"$f":"IFERROR(MID($G219,FIND(CHAR(160),SUBSTITUTE($G219,\"{\",CHAR(160),EJ$1)),FIND(CHAR(160),SUBSTITUTE($G219,\"}\",CHAR(160),EJ$1))-FIND(CHAR(160),SUBSTITUTE($G219,\"{\",CHAR(160),EJ$1))+1),\"\")","v":""},{"$f":"IFERROR(MID($G219,FIND(CHAR(160),SUBSTITUTE($G219,\"{\",CHAR(160),EK$1)),FIND(CHAR(160),SUBSTITUTE($G219,\"}\",CHAR(160),EK$1))-FIND(CHAR(160),SUBSTITUTE($G219,\"{\",CHAR(160),EK$1))+1),\"\")","v":""},{"$f":"IFERROR(MID($G219,FIND(CHAR(160),SUBSTITUTE($G219,\"{\",CHAR(160),EL$1)),FIND(CHAR(160),SUBSTITUTE($G219,\"}\",CHAR(160),EL$1))-FIND(CHAR(160),SUBSTITUTE($G219,\"{\",CHAR(160),EL$1))+1),\"\")","v":""},{"$f":"IFERROR(MID($G219,FIND(CHAR(160),SUBSTITUTE($G219,\"{\",CHAR(160),EM$1)),FIND(CHAR(160),SUBSTITUTE($G219,\"}\",CHAR(160),EM$1))-FIND(CHAR(160),SUBSTITUTE($G219,\"{\",CHAR(160),EM$1))+1),\"\")","v":""},{"$f":"IFERROR(MID($G219,FIND(CHAR(160),SUBSTITUTE($G219,\"{\",CHAR(160),EN$1)),FIND(CHAR(160),SUBSTITUTE($G219,\"}\",CHAR(160),EN$1))-FIND(CHAR(160),SUBSTITUTE($G219,\"{\",CHAR(160),EN$1))+1),\"\")","v":""},{"$f":"IFERROR(MID($G219,FIND(CHAR(160),SUBSTITUTE($G219,\"{\",CHAR(160),EO$1)),FIND(CHAR(160),SUBSTITUTE($G219,\"}\",CHAR(160),EO$1))-FIND(CHAR(160),SUBSTITUTE($G219,\"{\",CHAR(160),EO$1))+1),\"\")","v":""},{"$f":"IFERROR(MID($G219,FIND(CHAR(160),SUBSTITUTE($G219,\"{\",CHAR(160),EP$1)),FIND(CHAR(160),SUBSTITUTE($G219,\"}\",CHAR(160),EP$1))-FIND(CHAR(160),SUBSTITUTE($G219,\"{\",CHAR(160),EP$1))+1),\"\")","v":""},{"$f":"IFERROR(MID($J219,FIND(CHAR(160),SUBSTITUTE($J219,\"{\",CHAR(160),EQ$1)),FIND(CHAR(160),SUBSTITUTE($J219,\"}\",CHAR(160),EQ$1))-FIND(CHAR(160),SUBSTITUTE($J219,\"{\",CHAR(160),EQ$1))+1),\"\")","v":""},{"$f":"IFERROR(MID($J219,FIND(CHAR(160),SUBSTITUTE($J219,\"{\",CHAR(160),ER$1)),FIND(CHAR(160),SUBSTITUTE($J219,\"}\",CHAR(160),ER$1))-FIND(CHAR(160),SUBSTITUTE($J219,\"{\",CHAR(160),ER$1))+1),\"\")","v":""},{"$f":"IFERROR(MID($J219,FIND(CHAR(160),SUBSTITUTE($J219,\"{\",CHAR(160),ES$1)),FIND(CHAR(160),SUBSTITUTE($J219,\"}\",CHAR(160),ES$1))-FIND(CHAR(160),SUBSTITUTE($J219,\"{\",CHAR(160),ES$1))+1),\"\")","v":""},{"$f":"IFERROR(MID($J219,FIND(CHAR(160),SUBSTITUTE($J219,\"{\",CHAR(160),ET$1)),FIND(CHAR(160),SUBSTITUTE($J219,\"}\",CHAR(160),ET$1))-FIND(CHAR(160),SUBSTITUTE($J219,\"{\",CHAR(160),ET$1))+1),\"\")","v":""},{"$f":"IFERROR(MID($J219,FIND(CHAR(160),SUBSTITUTE($J219,\"{\",CHAR(160),EU$1)),FIND(CHAR(160),SUBSTITUTE($J219,\"}\",CHAR(160),EU$1))-FIND(CHAR(160),SUBSTITUTE($J219,\"{\",CHAR(160),EU$1))+1),\"\")","v":""},{"$f":"IFERROR(MID($J219,FIND(CHAR(160),SUBSTITUTE($J219,\"{\",CHAR(160),EV$1)),FIND(CHAR(160),SUBSTITUTE($J219,\"}\",CHAR(160),EV$1))-FIND(CHAR(160),SUBSTITUTE($J219,\"{\",CHAR(160),EV$1))+1),\"\")","v":""},{"$f":"IFERROR(MID($J219,FIND(CHAR(160),SUBSTITUTE($J219,\"{\",CHAR(160),EW$1)),FIND(CHAR(160),SUBSTITUTE($J219,\"}\",CHAR(160),EW$1))-FIND(CHAR(160),SUBSTITUTE($J219,\"{\",CHAR(160),EW$1))+1),\"\")","v":""},{"$f":"IFERROR(MID($J219,FIND(CHAR(160),SUBSTITUTE($J219,\"{\",CHAR(160),EX$1)),FIND(CHAR(160),SUBSTITUTE($J219,\"}\",CHAR(160),EX$1))-FIND(CHAR(160),SUBSTITUTE($J219,\"{\",CHAR(160),EX$1))+1),\"\")","v":""},{"$f":"IFERROR(MID($J219,FIND(CHAR(160),SUBSTITUTE($J219,\"{\",CHAR(160),EY$1)),FIND(CHAR(160),SUBSTITUTE($J219,\"}\",CHAR(160),EY$1))-FIND(CHAR(160),SUBSTITUTE($J219,\"{\",CHAR(160),EY$1))+1),\"\")","v":""},{"$f":"IFERROR(MID($J219,FIND(CHAR(160),SUBSTITUTE($J219,\"{\",CHAR(160),EZ$1)),FIND(CHAR(160),SUBSTITUTE($J219,\"}\",CHAR(160),EZ$1))-FIND(CHAR(160),SUBSTITUTE($J219,\"{\",CHAR(160),EZ$1))+1),\"\")","v":""},{"$f":"IFERROR(MID($J219,FIND(CHAR(160),SUBSTITUTE($J219,\"{\",CHAR(160),FA$1)),FIND(CHAR(160),SUBSTITUTE($J219,\"}\",CHAR(160),FA$1))-FIND(CHAR(160),SUBSTITUTE($J219,\"{\",CHAR(160),FA$1))+1),\"\")","v":""},{"$f":"IFERROR(MID($J219,FIND(CHAR(160),SUBSTITUTE($J219,\"{\",CHAR(160),FB$1)),FIND(CHAR(160),SUBSTITUTE($J219,\"}\",CHAR(160),FB$1))-FIND(CHAR(160),SUBSTITUTE($J219,\"{\",CHAR(160),FB$1))+1),\"\")","v":""},{"$f":"IFERROR(MID($O219,FIND(CHAR(160),SUBSTITUTE($O219,\"{\",CHAR(160),FC$1)),FIND(CHAR(160),SUBSTITUTE($O219,\"}\",CHAR(160),FC$1))-FIND(CHAR(160),SUBSTITUTE($O219,\"{\",CHAR(160),FC$1))+1),\"\")","v":""},{"$f":"IFERROR(MID($O219,FIND(CHAR(160),SUBSTITUTE($O219,\"{\",CHAR(160),FD$1)),FIND(CHAR(160),SUBSTITUTE($O219,\"}\",CHAR(160),FD$1))-FIND(CHAR(160),SUBSTITUTE($O219,\"{\",CHAR(160),FD$1))+1),\"\")","v":""},{"$f":"IFERROR(MID($O219,FIND(CHAR(160),SUBSTITUTE($O219,\"{\",CHAR(160),FE$1)),FIND(CHAR(160),SUBSTITUTE($O219,\"}\",CHAR(160),FE$1))-FIND(CHAR(160),SUBSTITUTE($O219,\"{\",CHAR(160),FE$1))+1),\"\")","v":""},{"$f":"IFERROR(MID($O219,FIND(CHAR(160),SUBSTITUTE($O219,\"{\",CHAR(160),FF$1)),FIND(CHAR(160),SUBSTITUTE($O219,\"}\",CHAR(160),FF$1))-FIND(CHAR(160),SUBSTITUTE($O219,\"{\",CHAR(160),FF$1))+1),\"\")","v":""},{"$f":"IFERROR(MID($O219,FIND(CHAR(160),SUBSTITUTE($O219,\"{\",CHAR(160),FG$1)),FIND(CHAR(160),SUBSTITUTE($O219,\"}\",CHAR(160),FG$1))-FIND(CHAR(160),SUBSTITUTE($O219,\"{\",CHAR(160),FG$1))+1),\"\")","v":""},{"$f":"IFERROR(MID($O219,FIND(CHAR(160),SUBSTITUTE($O219,\"{\",CHAR(160),FH$1)),FIND(CHAR(160),SUBSTITUTE($O219,\"}\",CHAR(160),FH$1))-FIND(CHAR(160),SUBSTITUTE($O219,\"{\",CHAR(160),FH$1))+1),\"\")","v":""},{"$f":"IFERROR(MID($O219,FIND(CHAR(160),SUBSTITUTE($O219,\"{\",CHAR(160),FI$1)),FIND(CHAR(160),SUBSTITUTE($O219,\"}\",CHAR(160),FI$1))-FIND(CHAR(160),SUBSTITUTE($O219,\"{\",CHAR(160),FI$1))+1),\"\")","v":""},{"$f":"IFERROR(MID($O219,FIND(CHAR(160),SUBSTITUTE($O219,\"{\",CHAR(160),FJ$1)),FIND(CHAR(160),SUBSTITUTE($O219,\"}\",CHAR(160),FJ$1))-FIND(CHAR(160),SUBSTITUTE($O219,\"{\",CHAR(160),FJ$1))+1),\"\")","v":""},{"$f":"IFERROR(MID($O219,FIND(CHAR(160),SUBSTITUTE($O219,\"{\",CHAR(160),FK$1)),FIND(CHAR(160),SUBSTITUTE($O219,\"}\",CHAR(160),FK$1))-FIND(CHAR(160),SUBSTITUTE($O219,\"{\",CHAR(160),FK$1))+1),\"\")","v":"{Measure:Quantity}"},{"$f":"IFERROR(MID($O219,FIND(CHAR(160),SUBSTITUTE($O219,\"{\",CHAR(160),FL$1)),FIND(CHAR(160),SUBSTITUTE($O219,\"}\",CHAR(160),FL$1))-FIND(CHAR(160),SUBSTITUTE($O219,\"{\",CHAR(160),FL$1))+1),\"\")","v":""},{"$f":"IFERROR(MID($R219,FIND(CHAR(160),SUBSTITUTE($R219,\"{\",CHAR(160),FM$1)),FIND(CHAR(160),SUBSTITUTE($R219,\"}\",CHAR(160),FM$1))-FIND(CHAR(160),SUBSTITUTE($R219,\"{\",CHAR(160),FM$1))+1),\"\")","v":""},{"$f":"IFERROR(MID($R219,FIND(CHAR(160),SUBSTITUTE($R219,\"{\",CHAR(160),FN$1)),FIND(CHAR(160),SUBSTITUTE($R219,\"}\",CHAR(160),FN$1))-FIND(CHAR(160),SUBSTITUTE($R219,\"{\",CHAR(160),FN$1))+1),\"\")","v":""},{"$f":"IFERROR(MID($R219,FIND(CHAR(160),SUBSTITUTE($R219,\"{\",CHAR(160),FO$1)),FIND(CHAR(160),SUBSTITUTE($R219,\"}\",CHAR(160),FO$1))-FIND(CHAR(160),SUBSTITUTE($R219,\"{\",CHAR(160),FO$1))+1),\"\")","v":""},{"$f":"IFERROR(MID($R219,FIND(CHAR(160),SUBSTITUTE($R219,\"{\",CHAR(160),FP$1)),FIND(CHAR(160),SUBSTITUTE($R219,\"}\",CHAR(160),FP$1))-FIND(CHAR(160),SUBSTITUTE($R219,\"{\",CHAR(160),FP$1))+1),\"\")","v":""},{"$f":"IFERROR(MID($R219,FIND(CHAR(160),SUBSTITUTE($R219,\"{\",CHAR(160),FQ$1)),FIND(CHAR(160),SUBSTITUTE($R219,\"}\",CHAR(160),FQ$1))-FIND(CHAR(160),SUBSTITUTE($R219,\"{\",CHAR(160),FQ$1))+1),\"\")","v":""},{"$f":"IFERROR(MID($R219,FIND(CHAR(160),SUBSTITUTE($R219,\"{\",CHAR(160),FR$1)),FIND(CHAR(160),SUBSTITUTE($R219,\"}\",CHAR(160),FR$1))-FIND(CHAR(160),SUBSTITUTE($R219,\"{\",CHAR(160),FR$1))+1),\"\")","v":""},{"$f":"IFERROR(MID($R219,FIND(CHAR(160),SUBSTITUTE($R219,\"{\",CHAR(160),FS$1)),FIND(CHAR(160),SUBSTITUTE($R219,\"}\",CHAR(160),FS$1))-FIND(CHAR(160),SUBSTITUTE($R219,\"{\",CHAR(160),FS$1))+1),\"\")","v":""},{"$f":"IFERROR(MID($R219,FIND(CHAR(160),SUBSTITUTE($R219,\"{\",CHAR(160),FT$1)),FIND(CHAR(160),SUBSTITUTE($R219,\"}\",CHAR(160),FT$1))-FIND(CHAR(160),SUBSTITUTE($R219,\"{\",CHAR(160),FT$1))+1),\"\")","v":""},{"$f":"IFERROR(MID($R219,FIND(CHAR(160),SUBSTITUTE($R219,\"{\",CHAR(160),FU$1)),FIND(CHAR(160),SUBSTITUTE($R219,\"}\",CHAR(160),FU$1))-FIND(CHAR(160),SUBSTITUTE($R219,\"{\",CHAR(160),FU$1))+1),\"\")","v":"{Measure:Quantity}"},{"$f":"IFERROR(MID($R219,FIND(CHAR(160),SUBSTITUTE($R219,\"{\",CHAR(160),FV$1)),FIND(CHAR(160),SUBSTITUTE($R219,\"}\",CHAR(160),FV$1))-FIND(CHAR(160),SUBSTITUTE($R219,\"{\",CHAR(160),FV$1))+1),\"\")","v":""},{"$f":"IFERROR(MID($U219,FIND(CHAR(160),SUBSTITUTE($U219,\"{\",CHAR(160),FW$1)),FIND(CHAR(160),SUBSTITUTE($U219,\"}\",CHAR(160),FW$1))-FIND(CHAR(160),SUBSTITUTE($U219,\"{\",CHAR(160),FW$1))+1),\"\")","v":""},{"$f":"IFERROR(MID($U219,FIND(CHAR(160),SUBSTITUTE($U219,\"{\",CHAR(160),FX$1)),FIND(CHAR(160),SUBSTITUTE($U219,\"}\",CHAR(160),FX$1))-FIND(CHAR(160),SUBSTITUTE($U219,\"{\",CHAR(160),FX$1))+1),\"\")","v":""},{"$f":"IFERROR(MID($U219,FIND(CHAR(160),SUBSTITUTE($U219,\"{\",CHAR(160),FY$1)),FIND(CHAR(160),SUBSTITUTE($U219,\"}\",CHAR(160),FY$1))-FIND(CHAR(160),SUBSTITUTE($U219,\"{\",CHAR(160),FY$1))+1),\"\")","v":""},{"$f":"IFERROR(MID($U219,FIND(CHAR(160),SUBSTITUTE($U219,\"{\",CHAR(160),FZ$1)),FIND(CHAR(160),SUBSTITUTE($U219,\"}\",CHAR(160),FZ$1))-FIND(CHAR(160),SUBSTITUTE($U219,\"{\",CHAR(160),FZ$1))+1),\"\")","v":""},{"$f":"IFERROR(MID($U219,FIND(CHAR(160),SUBSTITUTE($U219,\"{\",CHAR(160),GA$1)),FIND(CHAR(160),SUBSTITUTE($U219,\"}\",CHAR(160),GA$1))-FIND(CHAR(160),SUBSTITUTE($U219,\"{\",CHAR(160),GA$1))+1),\"\")","v":""},{"$f":"IFERROR(MID($U219,FIND(CHAR(160),SUBSTITUTE($U219,\"{\",CHAR(160),GB$1)),FIND(CHAR(160),SUBSTITUTE($U219,\"}\",CHAR(160),GB$1))-FIND(CHAR(160),SUBSTITUTE($U219,\"{\",CHAR(160),GB$1))+1),\"\")","v":""},{"$f":"IFERROR(MID($U219,FIND(CHAR(160),SUBSTITUTE($U219,\"{\",CHAR(160),GC$1)),FIND(CHAR(160),SUBSTITUTE($U219,\"}\",CHAR(160),GC$1))-FIND(CHAR(160),SUBSTITUTE($U219,\"{\",CHAR(160),GC$1))+1),\"\")","v":""},{"$f":"IFERROR(MID($U219,FIND(CHAR(160),SUBSTITUTE($U219,\"{\",CHAR(160),GD$1)),FIND(CHAR(160),SUBSTITUTE($U219,\"}\",CHAR(160),GD$1))-FIND(CHAR(160),SUBSTITUTE($U219,\"{\",CHAR(160),GD$1))+1),\"\")","v":""},{"$f":"IFERROR(MID($U219,FIND(CHAR(160),SUBSTITUTE($U219,\"{\",CHAR(160),GE$1)),FIND(CHAR(160),SUBSTITUTE($U219,\"}\",CHAR(160),GE$1))-FIND(CHAR(160),SUBSTITUTE($U219,\"{\",CHAR(160),GE$1))+1),\"\")","v":"{Measure:Quantity}"},{"$f":"IFERROR(MID($U219,FIND(CHAR(160),SUBSTITUTE($U219,\"{\",CHAR(160),GF$1)),FIND(CHAR(160),SUBSTITUTE($U219,\"}\",CHAR(160),GF$1))-FIND(CHAR(160),SUBSTITUTE($U219,\"{\",CHAR(160),GF$1))+1),\"\")","v":""},{"$f":"IFERROR(MID($V219,FIND(CHAR(160),SUBSTITUTE($V219,\"{\",CHAR(160),GG$1)),FIND(CHAR(160),SUBSTITUTE($V219,\"}\",CHAR(160),GG$1))-FIND(CHAR(160),SUBSTITUTE($V219,\"{\",CHAR(160),GG$1))+1),\"\")","v":""},{"$f":"IFERROR(MID($V219,FIND(CHAR(160),SUBSTITUTE($V219,\"{\",CHAR(160),GH$1)),FIND(CHAR(160),SUBSTITUTE($V219,\"}\",CHAR(160),GH$1))-FIND(CHAR(160),SUBSTITUTE($V219,\"{\",CHAR(160),GH$1))+1),\"\")","v":""},{"$f":"IFERROR(MID($V219,FIND(CHAR(160),SUBSTITUTE($V219,\"{\",CHAR(160),GI$1)),FIND(CHAR(160),SUBSTITUTE($V219,\"}\",CHAR(160),GI$1))-FIND(CHAR(160),SUBSTITUTE($V219,\"{\",CHAR(160),GI$1))+1),\"\")","v":""},{"$f":"IFERROR(MID($V219,FIND(CHAR(160),SUBSTITUTE($V219,\"{\",CHAR(160),GJ$1)),FIND(CHAR(160),SUBSTITUTE($V219,\"}\",CHAR(160),GJ$1))-FIND(CHAR(160),SUBSTITUTE($V219,\"{\",CHAR(160),GJ$1))+1),\"\")","v":""},{"$f":"IFERROR(MID($V219,FIND(CHAR(160),SUBSTITUTE($V219,\"{\",CHAR(160),GK$1)),FIND(CHAR(160),SUBSTITUTE($V219,\"}\",CHAR(160),GK$1))-FIND(CHAR(160),SUBSTITUTE($V219,\"{\",CHAR(160),GK$1))+1),\"\")","v":""},{"$f":"IFERROR(MID($V219,FIND(CHAR(160),SUBSTITUTE($V219,\"{\",CHAR(160),GL$1)),FIND(CHAR(160),SUBSTITUTE($V219,\"}\",CHAR(160),GL$1))-FIND(CHAR(160),SUBSTITUTE($V219,\"{\",CHAR(160),GL$1))+1),\"\")","v":""},{"$f":"IFERROR(MID($V219,FIND(CHAR(160),SUBSTITUTE($V219,\"{\",CHAR(160),GM$1)),FIND(CHAR(160),SUBSTITUTE($V219,\"}\",CHAR(160),GM$1))-FIND(CHAR(160),SUBSTITUTE($V219,\"{\",CHAR(160),GM$1))+1),\"\")","v":""},{"$f":"IFERROR(MID($V219,FIND(CHAR(160),SUBSTITUTE($V219,\"{\",CHAR(160),GN$1)),FIND(CHAR(160),SUBSTITUTE($V219,\"}\",CHAR(160),GN$1))-FIND(CHAR(160),SUBSTITUTE($V219,\"{\",CHAR(160),GN$1))+1),\"\")","v":""},{"$f":"IFERROR(MID($V219,FIND(CHAR(160),SUBSTITUTE($V219,\"{\",CHAR(160),GO$1)),FIND(CHAR(160),SUBSTITUTE($V219,\"}\",CHAR(160),GO$1))-FIND(CHAR(160),SUBSTITUTE($V219,\"{\",CHAR(160),GO$1))+1),\"\")","v":"{Measure:Quantity}"},{"$f":"IFERROR(MID($V219,FIND(CHAR(160),SUBSTITUTE($V219,\"{\",CHAR(160),GP$1)),FIND(CHAR(160),SUBSTITUTE($V219,\"}\",CHAR(160),GP$1))-FIND(CHAR(160),SUBSTITUTE($V219,\"{\",CHAR(160),GP$1))+1),\"\")","v":""},{"$f":"IFERROR(MID($W219,FIND(CHAR(160),SUBSTITUTE($W219,\"{\",CHAR(160),GQ$1)),FIND(CHAR(160),SUBSTITUTE($W219,\"}\",CHAR(160),GQ$1))-FIND(CHAR(160),SUBSTITUTE($W219,\"{\",CHAR(160),GQ$1))+1),\"\")","v":""},{"$f":"IFERROR(MID($W219,FIND(CHAR(160),SUBSTITUTE($W219,\"{\",CHAR(160),GR$1)),FIND(CHAR(160),SUBSTITUTE($W219,\"}\",CHAR(160),GR$1))-FIND(CHAR(160),SUBSTITUTE($W219,\"{\",CHAR(160),GR$1))+1),\"\")","v":""},{"$f":"IFERROR(MID($W219,FIND(CHAR(160),SUBSTITUTE($W219,\"{\",CHAR(160),GS$1)),FIND(CHAR(160),SUBSTITUTE($W219,\"}\",CHAR(160),GS$1))-FIND(CHAR(160),SUBSTITUTE($W219,\"{\",CHAR(160),GS$1))+1),\"\")","v":""},{"$f":"IFERROR(MID($W219,FIND(CHAR(160),SUBSTITUTE($W219,\"{\",CHAR(160),GT$1)),FIND(CHAR(160),SUBSTITUTE($W219,\"}\",CHAR(160),GT$1))-FIND(CHAR(160),SUBSTITUTE($W219,\"{\",CHAR(160),GT$1))+1),\"\")","v":""},{"$f":"IFERROR(MID($W219,FIND(CHAR(160),SUBSTITUTE($W219,\"{\",CHAR(160),GU$1)),FIND(CHAR(160),SUBSTITUTE($W219,\"}\",CHAR(160),GU$1))-FIND(CHAR(160),SUBSTITUTE($W219,\"{\",CHAR(160),GU$1))+1),\"\")","v":""},{"$f":"IFERROR(MID($W219,FIND(CHAR(160),SUBSTITUTE($W219,\"{\",CHAR(160),GV$1)),FIND(CHAR(160),SUBSTITUTE($W219,\"}\",CHAR(160),GV$1))-FIND(CHAR(160),SUBSTITUTE($W219,\"{\",CHAR(160),GV$1))+1),\"\")","v":""},{"$f":"IFERROR(MID($W219,FIND(CHAR(160),SUBSTITUTE($W219,\"{\",CHAR(160),GW$1)),FIND(CHAR(160),SUBSTITUTE($W219,\"}\",CHAR(160),GW$1))-FIND(CHAR(160),SUBSTITUTE($W219,\"{\",CHAR(160),GW$1))+1),\"\")","v":""},{"$f":"IFERROR(MID($W219,FIND(CHAR(160),SUBSTITUTE($W219,\"{\",CHAR(160),GX$1)),FIND(CHAR(160),SUBSTITUTE($W219,\"}\",CHAR(160),GX$1))-FIND(CHAR(160),SUBSTITUTE($W219,\"{\",CHAR(160),GX$1))+1),\"\")","v":""},{"$f":"IFERROR(MID($W219,FIND(CHAR(160),SUBSTITUTE($W219,\"{\",CHAR(160),GY$1)),FIND(CHAR(160),SUBSTITUTE($W219,\"}\",CHAR(160),GY$1))-FIND(CHAR(160),SUBSTITUTE($W219,\"{\",CHAR(160),GY$1))+1),\"\")","v":"{Measure:Quantity}"},{"$f":"IFERROR(MID($W219,FIND(CHAR(160),SUBSTITUTE($W219,\"{\",CHAR(160),GZ$1)),FIND(CHAR(160),SUBSTITUTE($W219,\"}\",CHAR(160),GZ$1))-FIND(CHAR(160),SUBSTITUTE($W219,\"{\",CHAR(160),GZ$1))+1),\"\")","v":""},{"$f":"IFERROR(MID($X219,FIND(CHAR(160),SUBSTITUTE($X219,\"{\",CHAR(160),HA$1)),FIND(CHAR(160),SUBSTITUTE($X219,\"}\",CHAR(160),HA$1))-FIND(CHAR(160),SUBSTITUTE($X219,\"{\",CHAR(160),HA$1))+1),\"\")","v":""},{"$f":"IFERROR(MID($X219,FIND(CHAR(160),SUBSTITUTE($X219,\"{\",CHAR(160),HB$1)),FIND(CHAR(160),SUBSTITUTE($X219,\"}\",CHAR(160),HB$1))-FIND(CHAR(160),SUBSTITUTE($X219,\"{\",CHAR(160),HB$1))+1),\"\")","v":""},{"$f":"IFERROR(MID($X219,FIND(CHAR(160),SUBSTITUTE($X219,\"{\",CHAR(160),HC$1)),FIND(CHAR(160),SUBSTITUTE($X219,\"}\",CHAR(160),HC$1))-FIND(CHAR(160),SUBSTITUTE($X219,\"{\",CHAR(160),HC$1))+1),\"\")","v":""},{"$f":"IFERROR(MID($X219,FIND(CHAR(160),SUBSTITUTE($X219,\"{\",CHAR(160),HD$1)),FIND(CHAR(160),SUBSTITUTE($X219,\"}\",CHAR(160),HD$1))-FIND(CHAR(160),SUBSTITUTE($X219,\"{\",CHAR(160),HD$1))+1),\"\")","v":""},{"$f":"IFERROR(MID($X219,FIND(CHAR(160),SUBSTITUTE($X219,\"{\",CHAR(160),HE$1)),FIND(CHAR(160),SUBSTITUTE($X219,\"}\",CHAR(160),HE$1))-FIND(CHAR(160),SUBSTITUTE($X219,\"{\",CHAR(160),HE$1))+1),\"\")","v":""},{"$f":"IFERROR(MID($X219,FIND(CHAR(160),SUBSTITUTE($X219,\"{\",CHAR(160),HF$1)),FIND(CHAR(160),SUBSTITUTE($X219,\"}\",CHAR(160),HF$1))-FIND(CHAR(160),SUBSTITUTE($X219,\"{\",CHAR(160),HF$1))+1),\"\")","v":""},{"$f":"IFERROR(MID($X219,FIND(CHAR(160),SUBSTITUTE($X219,\"{\",CHAR(160),HG$1)),FIND(CHAR(160),SUBSTITUTE($X219,\"}\",CHAR(160),HG$1))-FIND(CHAR(160),SUBSTITUTE($X219,\"{\",CHAR(160),HG$1))+1),\"\")","v":""},{"$f":"IFERROR(MID($X219,FIND(CHAR(160),SUBSTITUTE($X219,\"{\",CHAR(160),HH$1)),FIND(CHAR(160),SUBSTITUTE($X219,\"}\",CHAR(160),HH$1))-FIND(CHAR(160),SUBSTITUTE($X219,\"{\",CHAR(160),HH$1))+1),\"\")","v":""},{"$f":"IFERROR(MID($X219,FIND(CHAR(160),SUBSTITUTE($X219,\"{\",CHAR(160),HI$1)),FIND(CHAR(160),SUBSTITUTE($X219,\"}\",CHAR(160),HI$1))-FIND(CHAR(160),SUBSTITUTE($X219,\"{\",CHAR(160),HI$1))+1),\"\")","v":"{Measure:Quantity}"},{"$f":"IFERROR(MID($X219,FIND(CHAR(160),SUBSTITUTE($X219,\"{\",CHAR(160),HJ$1)),FIND(CHAR(160),SUBSTITUTE($X219,\"}\",CHAR(160),HJ$1))-FIND(CHAR(160),SUBSTITUTE($X219,\"{\",CHAR(160),HJ$1))+1),\"\")","v":""},{"$f":"IFERROR(MID($Y219,FIND(CHAR(160),SUBSTITUTE($Y219,\"{\",CHAR(160),HK$1)),FIND(CHAR(160),SUBSTITUTE($Y219,\"}\",CHAR(160),HK$1))-FIND(CHAR(160),SUBSTITUTE($Y219,\"{\",CHAR(160),HK$1))+1),\"\")","v":""},{"$f":"IFERROR(MID($Y219,FIND(CHAR(160),SUBSTITUTE($Y219,\"{\",CHAR(160),HL$1)),FIND(CHAR(160),SUBSTITUTE($Y219,\"}\",CHAR(160),HL$1))-FIND(CHAR(160),SUBSTITUTE($Y219,\"{\",CHAR(160),HL$1))+1),\"\")","v":""},{"$f":"IFERROR(MID($Y219,FIND(CHAR(160),SUBSTITUTE($Y219,\"{\",CHAR(160),HM$1)),FIND(CHAR(160),SUBSTITUTE($Y219,\"}\",CHAR(160),HM$1))-FIND(CHAR(160),SUBSTITUTE($Y219,\"{\",CHAR(160),HM$1))+1),\"\")","v":""},{"$f":"IFERROR(MID($Y219,FIND(CHAR(160),SUBSTITUTE($Y219,\"{\",CHAR(160),HN$1)),FIND(CHAR(160),SUBSTITUTE($Y219,\"}\",CHAR(160),HN$1))-FIND(CHAR(160),SUBSTITUTE($Y219,\"{\",CHAR(160),HN$1))+1),\"\")","v":""},{"$f":"IFERROR(MID($Y219,FIND(CHAR(160),SUBSTITUTE($Y219,\"{\",CHAR(160),HO$1)),FIND(CHAR(160),SUBSTITUTE($Y219,\"}\",CHAR(160),HO$1))-FIND(CHAR(160),SUBSTITUTE($Y219,\"{\",CHAR(160),HO$1))+1),\"\")","v":""},{"$f":"IFERROR(MID($Y219,FIND(CHAR(160),SUBSTITUTE($Y219,\"{\",CHAR(160),HP$1)),FIND(CHAR(160),SUBSTITUTE($Y219,\"}\",CHAR(160),HP$1))-FIND(CHAR(160),SUBSTITUTE($Y219,\"{\",CHAR(160),HP$1))+1),\"\")","v":""},{"$f":"IFERROR(MID($Y219,FIND(CHAR(160),SUBSTITUTE($Y219,\"{\",CHAR(160),HQ$1)),FIND(CHAR(160),SUBSTITUTE($Y219,\"}\",CHAR(160),HQ$1))-FIND(CHAR(160),SUBSTITUTE($Y219,\"{\",CHAR(160),HQ$1))+1),\"\")","v":""},{"$f":"IFERROR(MID($Y219,FIND(CHAR(160),SUBSTITUTE($Y219,\"{\",CHAR(160),HR$1)),FIND(CHAR(160),SUBSTITUTE($Y219,\"}\",CHAR(160),HR$1))-FIND(CHAR(160),SUBSTITUTE($Y219,\"{\",CHAR(160),HR$1))+1),\"\")","v":""},{"$f":"IFERROR(MID($Y219,FIND(CHAR(160),SUBSTITUTE($Y219,\"{\",CHAR(160),HS$1)),FIND(CHAR(160),SUBSTITUTE($Y219,\"}\",CHAR(160),HS$1))-FIND(CHAR(160),SUBSTITUTE($Y219,\"{\",CHAR(160),HS$1))+1),\"\")","v":"{Measure:Quantity}"},{"$f":"IFERROR(MID($Y219,FIND(CHAR(160),SUBSTITUTE($Y219,\"{\",CHAR(160),HT$1)),FIND(CHAR(160),SUBSTITUTE($Y219,\"}\",CHAR(160),HT$1))-FIND(CHAR(160),SUBSTITUTE($Y219,\"{\",CHAR(160),HT$1))+1),\"\")","v":""},{"$f":"IFERROR(MID($Z219,FIND(CHAR(160),SUBSTITUTE($Z219,\"{\",CHAR(160),HU$1)),FIND(CHAR(160),SUBSTITUTE($Z219,\"}\",CHAR(160),HU$1))-FIND(CHAR(160),SUBSTITUTE($Z219,\"{\",CHAR(160),HU$1))+1),\"\")","v":""},{"$f":"IFERROR(MID($Z219,FIND(CHAR(160),SUBSTITUTE($Z219,\"{\",CHAR(160),HV$1)),FIND(CHAR(160),SUBSTITUTE($Z219,\"}\",CHAR(160),HV$1))-FIND(CHAR(160),SUBSTITUTE($Z219,\"{\",CHAR(160),HV$1))+1),\"\")","v":""},{"$f":"IFERROR(MID($Z219,FIND(CHAR(160),SUBSTITUTE($Z219,\"{\",CHAR(160),HW$1)),FIND(CHAR(160),SUBSTITUTE($Z219,\"}\",CHAR(160),HW$1))-FIND(CHAR(160),SUBSTITUTE($Z219,\"{\",CHAR(160),HW$1))+1),\"\")","v":""},{"$f":"IFERROR(MID($Z219,FIND(CHAR(160),SUBSTITUTE($Z219,\"{\",CHAR(160),HX$1)),FIND(CHAR(160),SUBSTITUTE($Z219,\"}\",CHAR(160),HX$1))-FIND(CHAR(160),SUBSTITUTE($Z219,\"{\",CHAR(160),HX$1))+1),\"\")","v":""},{"$f":"IFERROR(MID($Z219,FIND(CHAR(160),SUBSTITUTE($Z219,\"{\",CHAR(160),HY$1)),FIND(CHAR(160),SUBSTITUTE($Z219,\"}\",CHAR(160),HY$1))-FIND(CHAR(160),SUBSTITUTE($Z219,\"{\",CHAR(160),HY$1))+1),\"\")","v":""},{"$f":"IFERROR(MID($Z219,FIND(CHAR(160),SUBSTITUTE($Z219,\"{\",CHAR(160),HZ$1)),FIND(CHAR(160),SUBSTITUTE($Z219,\"}\",CHAR(160),HZ$1))-FIND(CHAR(160),SUBSTITUTE($Z219,\"{\",CHAR(160),HZ$1))+1),\"\")","v":""},{"$f":"IFERROR(MID($Z219,FIND(CHAR(160),SUBSTITUTE($Z219,\"{\",CHAR(160),IA$1)),FIND(CHAR(160),SUBSTITUTE($Z219,\"}\",CHAR(160),IA$1))-FIND(CHAR(160),SUBSTITUTE($Z219,\"{\",CHAR(160),IA$1))+1),\"\")","v":""},{"$f":"IFERROR(MID($Z219,FIND(CHAR(160),SUBSTITUTE($Z219,\"{\",CHAR(160),IB$1)),FIND(CHAR(160),SUBSTITUTE($Z219,\"}\",CHAR(160),IB$1))-FIND(CHAR(160),SUBSTITUTE($Z219,\"{\",CHAR(160),IB$1))+1),\"\")","v":""},{"$f":"IFERROR(MID($Z219,FIND(CHAR(160),SUBSTITUTE($Z219,\"{\",CHAR(160),IC$1)),FIND(CHAR(160),SUBSTITUTE($Z219,\"}\",CHAR(160),IC$1))-FIND(CHAR(160),SUBSTITUTE($Z219,\"{\",CHAR(160),IC$1))+1),\"\")","v":"{Measure:Quantity}"},{"$f":"IFERROR(MID($Z219,FIND(CHAR(160),SUBSTITUTE($Z219,\"{\",CHAR(160),ID$1)),FIND(CHAR(160),SUBSTITUTE($Z219,\"}\",CHAR(160),ID$1))-FIND(CHAR(160),SUBSTITUTE($Z219,\"{\",CHAR(160),ID$1))+1),\"\")","v":""},{"$f":"IFERROR(MID($AA219,FIND(CHAR(160),SUBSTITUTE($AA219,\"{\",CHAR(160),IE$1)),FIND(CHAR(160),SUBSTITUTE($AA219,\"}\",CHAR(160),IE$1))-FIND(CHAR(160),SUBSTITUTE($AA219,\"{\",CHAR(160),IE$1))+1),\"\")","v":""},{"$f":"IFERROR(MID($AA219,FIND(CHAR(160),SUBSTITUTE($AA219,\"{\",CHAR(160),IF$1)),FIND(CHAR(160),SUBSTITUTE($AA219,\"}\",CHAR(160),IF$1))-FIND(CHAR(160),SUBSTITUTE($AA219,\"{\",CHAR(160),IF$1))+1),\"\")","v":""},{"$f":"IFERROR(MID($AA219,FIND(CHAR(160),SUBSTITUTE($AA219,\"{\",CHAR(160),IG$1)),FIND(CHAR(160),SUBSTITUTE($AA219,\"}\",CHAR(160),IG$1))-FIND(CHAR(160),SUBSTITUTE($AA219,\"{\",CHAR(160),IG$1))+1),\"\")","v":""},{"$f":"IFERROR(MID($AA219,FIND(CHAR(160),SUBSTITUTE($AA219,\"{\",CHAR(160),IH$1)),FIND(CHAR(160),SUBSTITUTE($AA219,\"}\",CHAR(160),IH$1))-FIND(CHAR(160),SUBSTITUTE($AA219,\"{\",CHAR(160),IH$1))+1),\"\")","v":""},{"$f":"IFERROR(MID($AA219,FIND(CHAR(160),SUBSTITUTE($AA219,\"{\",CHAR(160),II$1)),FIND(CHAR(160),SUBSTITUTE($AA219,\"}\",CHAR(160),II$1))-FIND(CHAR(160),SUBSTITUTE($AA219,\"{\",CHAR(160),II$1))+1),\"\")","v":""},{"$f":"IFERROR(MID($AA219,FIND(CHAR(160),SUBSTITUTE($AA219,\"{\",CHAR(160),IJ$1)),FIND(CHAR(160),SUBSTITUTE($AA219,\"}\",CHAR(160),IJ$1))-FIND(CHAR(160),SUBSTITUTE($AA219,\"{\",CHAR(160),IJ$1))+1),\"\")","v":""},{"$f":"IFERROR(MID($AA219,FIND(CHAR(160),SUBSTITUTE($AA219,\"{\",CHAR(160),IK$1)),FIND(CHAR(160),SUBSTITUTE($AA219,\"}\",CHAR(160),IK$1))-FIND(CHAR(160),SUBSTITUTE($AA219,\"{\",CHAR(160),IK$1))+1),\"\")","v":""},{"$f":"IFERROR(MID($AA219,FIND(CHAR(160),SUBSTITUTE($AA219,\"{\",CHAR(160),IL$1)),FIND(CHAR(160),SUBSTITUTE($AA219,\"}\",CHAR(160),IL$1))-FIND(CHAR(160),SUBSTITUTE($AA219,\"{\",CHAR(160),IL$1))+1),\"\")","v":""},{"$f":"IFERROR(MID($AA219,FIND(CHAR(160),SUBSTITUTE($AA219,\"{\",CHAR(160),IM$1)),FIND(CHAR(160),SUBSTITUTE($AA219,\"}\",CHAR(160),IM$1))-FIND(CHAR(160),SUBSTITUTE($AA219,\"{\",CHAR(160),IM$1))+1),\"\")","v":"{Measure:Quantity}"},{"$f":"IFERROR(MID($AA219,FIND(CHAR(160),SUBSTITUTE($AA219,\"{\",CHAR(160),IN$1)),FIND(CHAR(160),SUBSTITUTE($AA219,\"}\",CHAR(160),IN$1))-FIND(CHAR(160),SUBSTITUTE($AA219,\"{\",CHAR(160),IN$1))+1),\"\")","v":""},{"$f":"IFERROR(MID($AB219,FIND(CHAR(160),SUBSTITUTE($AB219,\"{\",CHAR(160),IO$1)),FIND(CHAR(160),SUBSTITUTE($AB219,\"}\",CHAR(160),IO$1))-FIND(CHAR(160),SUBSTITUTE($AB219,\"{\",CHAR(160),IO$1))+1),\"\")","v":""},{"$f":"IFERROR(MID($AB219,FIND(CHAR(160),SUBSTITUTE($AB219,\"{\",CHAR(160),IP$1)),FIND(CHAR(160),SUBSTITUTE($AB219,\"}\",CHAR(160),IP$1))-FIND(CHAR(160),SUBSTITUTE($AB219,\"{\",CHAR(160),IP$1))+1),\"\")","v":""},{"$f":"IFERROR(MID($AB219,FIND(CHAR(160),SUBSTITUTE($AB219,\"{\",CHAR(160),IQ$1)),FIND(CHAR(160),SUBSTITUTE($AB219,\"}\",CHAR(160),IQ$1))-FIND(CHAR(160),SUBSTITUTE($AB219,\"{\",CHAR(160),IQ$1))+1),\"\")","v":""},{"$f":"IFERROR(MID($AB219,FIND(CHAR(160),SUBSTITUTE($AB219,\"{\",CHAR(160),IR$1)),FIND(CHAR(160),SUBSTITUTE($AB219,\"}\",CHAR(160),IR$1))-FIND(CHAR(160),SUBSTITUTE($AB219,\"{\",CHAR(160),IR$1))+1),\"\")","v":""},{"$f":"IFERROR(MID($AB219,FIND(CHAR(160),SUBSTITUTE($AB219,\"{\",CHAR(160),IS$1)),FIND(CHAR(160),SUBSTITUTE($AB219,\"}\",CHAR(160),IS$1))-FIND(CHAR(160),SUBSTITUTE($AB219,\"{\",CHAR(160),IS$1))+1),\"\")","v":""},{"$f":"IFERROR(MID($AB219,FIND(CHAR(160),SUBSTITUTE($AB219,\"{\",CHAR(160),IT$1)),FIND(CHAR(160),SUBSTITUTE($AB219,\"}\",CHAR(160),IT$1))-FIND(CHAR(160),SUBSTITUTE($AB219,\"{\",CHAR(160),IT$1))+1),\"\")","v":""},{"$f":"IFERROR(MID($AB219,FIND(CHAR(160),SUBSTITUTE($AB219,\"{\",CHAR(160),IU$1)),FIND(CHAR(160),SUBSTITUTE($AB219,\"}\",CHAR(160),IU$1))-FIND(CHAR(160),SUBSTITUTE($AB219,\"{\",CHAR(160),IU$1))+1),\"\")","v":""},{"$f":"IFERROR(MID($AB219,FIND(CHAR(160),SUBSTITUTE($AB219,\"{\",CHAR(160),IV$1)),FIND(CHAR(160),SUBSTITUTE($AB219,\"}\",CHAR(160),IV$1))-FIND(CHAR(160),SUBSTITUTE($AB219,\"{\",CHAR(160),IV$1))+1),\"\")","v":""},{"$f":"IFERROR(MID($AB219,FIND(CHAR(160),SUBSTITUTE($AB219,\"{\",CHAR(160),IW$1)),FIND(CHAR(160),SUBSTITUTE($AB219,\"}\",CHAR(160),IW$1))-FIND(CHAR(160),SUBSTITUTE($AB219,\"{\",CHAR(160),IW$1))+1),\"\")","v":""},{"$f":"IFERROR(MID($AB219,FIND(CHAR(160),SUBSTITUTE($AB219,\"{\",CHAR(160),IX$1)),FIND(CHAR(160),SUBSTITUTE($AB219,\"}\",CHAR(160),IX$1))-FIND(CHAR(160),SUBSTITUTE($AB219,\"{\",CHAR(160),IX$1))+1),\"\")","v":""},null,{"$f":"10-COUNTIF(DU219:ED219,\"\")","v":1}]
["Low Income Direct Install - Electric","Low Flow Handheld Shower Head Direct Install","LILHSH","2021-07-01","2022-06-30","Per Measure",32.44,0,"Per Measure",32.44,0,"2021-07-01","2022-06-30","Calculated","{Measure:Quantity}*if({Measure:Quantity}=0,0,123)",null,null,null,null,null,"{Measure:Quantity}*if({Measure:Quantity}=0,0,0.012)","{Measure:Quantity}*if({Measure:Quantity}=0,0,0.010)",null,null,null,null,null,"if({Measure:Quantity}=0,0,{Measure:Quantity}*3153)","2021-07-01","2022-06-30",10,8.0000000000000002E-3,5.0000000000000001E-3,0.35499999999999998,0.311,0.18099999999999999,0.153,0.88,1,1,0,0,null,{"$f":"DU220","v":"{Measure:Quantity}"},1,{"$f":"DV220","v":""},1,{"$f":"DW220","v":""},null,{"$f":"DX220","v":""},null,{"$f":"DY220","v":""},null,{"$f":"DZ220","v":""},null,{"$f":"EA220","v":""},null,{"$f":"EB220","v":""},null,{"$f":"EC220","v":""},null,"LIDI Bundle Qty",0.5,{"$f":"AS220*IF(AS220=0,0,123)","v":123},0,0,0,0,0,{"$f":"AS220*IF(AS220=0,0,0.012)","v":1.2E-2},{"$f":"AS220*IF(AS220=0,0,0.01)","v":0.01},0,0,0,0,0,{"$f":"IF(AS220=0,0,AS220*3153)","v":3153},null,"Res","Default DR",{"$f":"Benefits(BL220,BR220,BS220,BT220,BU220,BV220,BW220,BX220,BY220,BZ220,AE220,AH220,AI220,AJ220,AK220,AL220,AM220,AN220,AO220,AP220,CA220,CB220)","v":106.94270202354217},39.906340814102037,0,0,0,0,0,187.20144922985645,0,{"$f":"SUMPRODUCT(CC220:CK220,--(CC220:CK220>0))","v":334.05049206750067},{"$f":"-SUMPRODUCT(CC220:CK220,--(CC220:CK220<0))","v":0},null,{"$f":"32.44","v":32.44},null,null,{"$f":"CM220+CO220","v":32.44},{"$f":"IF(NetOrGross=\"Net\",(1-AO220+AP220),1)","v":1},{"$f":"(SUMPRODUCT(CC220:CJ220,--(CC220:CJ220>0))+CN220)*CS220/((-SUMPRODUCT(CC220:CJ220,--(CC220:CJ220<0))+MAX(CO220,CV220)+CP220+CQ220)*CS220+IF(FRIncentives=\"Yes\",CV220*(1-CS220),0))","v":10.297487425015435},1,{"$f":"32.44","v":32.44},null,"Electric","y",{"$f":"CL220-CR220","v":301.61049206750067},{"$f":"IF(F220=\"Manual Entry\",\"Manual\",IF(G220=\"\",0,\"X=\"&SUBSTITUTE(SUBSTITUTE(SUBSTITUTE(SUBSTITUTE(SUBSTITUTE(SUBSTITUTE(SUBSTITUTE(SUBSTITUTE(SUBSTITUTE(SUBSTITUTE(SUBSTITUTE(SUBSTITUTE(G220,$ED220,$ED$2&ROW($ED220)),$EC220,$EC$2&ROW($EC220)),$EB220,$EB$2&ROW($EB220)),$EA220,$EA$2&ROW($EA220)),$DZ220,$DZ$2&ROW($DZ220)),$DY220,$DY$2&ROW($DY220)),$DX220,$DX$2&ROW($DX220)),$DW220,$DW$2&ROW($DW220)),$DV220,$DV$2&ROW($DV220)),$DU220,$DU$2&ROW($DU220)),$DT220,$DT$2&ROW($DT220)),$DS220,$DS$2&ROW($DS220))))","v":"X=32.44"},{"$f":"IF(I220=\"Manual Entry\",\"Manual\",IF(J220=\"\",0,\"X=\"&SUBSTITUTE(SUBSTITUTE(SUBSTITUTE(SUBSTITUTE(SUBSTITUTE(SUBSTITUTE(SUBSTITUTE(SUBSTITUTE(SUBSTITUTE(SUBSTITUTE(SUBSTITUTE(SUBSTITUTE(J220,$ED220,$ED$2&ROW($ED220)),$EC220,$EC$2&ROW($EC220)),$EB220,$EB$2&ROW($EB220)),$EA220,$EA$2&ROW($EA220)),$DZ220,$DZ$2&ROW($DZ220)),$DY220,$DY$2&ROW($DY220)),$DX220,$DX$2&ROW($DX220)),$DW220,$DW$2&ROW($DW220)),$DV220,$DV$2&ROW($DV220)),$DU220,$DU$2&ROW($DU220)),$DT220,$DT$2&ROW($DT220)),$DS220,$DS$2&ROW($DS220))))","v":"X=32.44"},{"$f":"IF(O220=\"\",0,\"X=\"&SUBSTITUTE(SUBSTITUTE(SUBSTITUTE(SUBSTITUTE(SUBSTITUTE(SUBSTITUTE(SUBSTITUTE(SUBSTITUTE(SUBSTITUTE(SUBSTITUTE(SUBSTITUTE(SUBSTITUTE(O220,$ED220,$ED$2&ROW($ED220)),$EC220,$EC$2&ROW($EC220)),$EB220,$EB$2&ROW($EB220)),$EA220,$EA$2&ROW($EA220)),$DZ220,$DZ$2&ROW($DZ220)),$DY220,$DY$2&ROW($DY220)),$DX220,$DX$2&ROW($DX220)),$DW220,$DW$2&ROW($DW220)),$DV220,$DV$2&ROW($DV220)),$DU220,$DU$2&ROW($DU220)),$DT220,$DT$2&ROW($DT220)),$DS220,$DS$2&ROW($DS220)))","v":"X=AS220*if(AS220=0,0,123)"},{"$f":"IF(P220=\"\",0,\"X=\"&SUBSTITUTE(SUBSTITUTE(SUBSTITUTE(SUBSTITUTE(SUBSTITUTE(SUBSTITUTE(SUBSTITUTE(SUBSTITUTE(SUBSTITUTE(SUBSTITUTE(SUBSTITUTE(SUBSTITUTE(P220,$ED220,$ED$2&ROW($ED220)),$EC220,$EC$2&ROW($EC220)),$EB220,$EB$2&ROW($EB220)),$EA220,$EA$2&ROW($EA220)),$DZ220,$DZ$2&ROW($DZ220)),$DY220,$DY$2&ROW($DY220)),$DX220,$DX$2&ROW($DX220)),$DW220,$DW$2&ROW($DW220)),$DV220,$DV$2&ROW($DV220)),$DU220,$DU$2&ROW($DU220)),$DT220,$DT$2&ROW($DT220)),$DS220,$DS$2&ROW($DS220)))","v":0},{"$f":"IF(Q220=\"\",0,\"X=\"&SUBSTITUTE(SUBSTITUTE(SUBSTITUTE(SUBSTITUTE(SUBSTITUTE(SUBSTITUTE(SUBSTITUTE(SUBSTITUTE(SUBSTITUTE(SUBSTITUTE(SUBSTITUTE(SUBSTITUTE(Q220,$ED220,$ED$2&ROW($ED220)),$EC220,$EC$2&ROW($EC220)),$EB220,$EB$2&ROW($EB220)),$EA220,$EA$2&ROW($EA220)),$DZ220,$DZ$2&ROW($DZ220)),$DY220,$DY$2&ROW($DY220)),$DX220,$DX$2&ROW($DX220)),$DW220,$DW$2&ROW($DW220)),$DV220,$DV$2&ROW($DV220)),$DU220,$DU$2&ROW($DU220)),$DT220,$DT$2&ROW($DT220)),$DS220,$DS$2&ROW($DS220)))","v":0},{"$f":"IF(R220=\"\",0,\"X=\"&SUBSTITUTE(SUBSTITUTE(SUBSTITUTE(SUBSTITUTE(SUBSTITUTE(SUBSTITUTE(SUBSTITUTE(SUBSTITUTE(SUBSTITUTE(SUBSTITUTE(SUBSTITUTE(SUBSTITUTE(R220,$ED220,$ED$2&ROW($ED220)),$EC220,$EC$2&ROW($EC220)),$EB220,$EB$2&ROW($EB220)),$EA220,$EA$2&ROW($EA220)),$DZ220,$DZ$2&ROW($DZ220)),$DY220,$DY$2&ROW($DY220)),$DX220,$DX$2&ROW($DX220)),$DW220,$DW$2&ROW($DW220)),$DV220,$DV$2&ROW($DV220)),$DU220,$DU$2&ROW($DU220)),$DT220,$DT$2&ROW($DT220)),$DS220,$DS$2&ROW($DS220)))","v":0},{"$f":"IF(S220=\"\",0,\"X=\"&SUBSTITUTE(SUBSTITUTE(SUBSTITUTE(SUBSTITUTE(SUBSTITUTE(SUBSTITUTE(SUBSTITUTE(SUBSTITUTE(SUBSTITUTE(SUBSTITUTE(SUBSTITUTE(SUBSTITUTE(S220,$ED220,$ED$2&ROW($ED220)),$EC220,$EC$2&ROW($EC220)),$EB220,$EB$2&ROW($EB220)),$EA220,$EA$2&ROW($EA220)),$DZ220,$DZ$2&ROW($DZ220)),$DY220,$DY$2&ROW($DY220)),$DX220,$DX$2&ROW($DX220)),$DW220,$DW$2&ROW($DW220)),$DV220,$DV$2&ROW($DV220)),$DU220,$DU$2&ROW($DU220)),$DT220,$DT$2&ROW($DT220)),$DS220,$DS$2&ROW($DS220)))","v":0},{"$f":"IF(T220=\"\",0,\"X=\"&SUBSTITUTE(SUBSTITUTE(SUBSTITUTE(SUBSTITUTE(SUBSTITUTE(SUBSTITUTE(SUBSTITUTE(SUBSTITUTE(SUBSTITUTE(SUBSTITUTE(SUBSTITUTE(SUBSTITUTE(T220,$ED220,$ED$2&ROW($ED220)),$EC220,$EC$2&ROW($EC220)),$EB220,$EB$2&ROW($EB220)),$EA220,$EA$2&ROW($EA220)),$DZ220,$DZ$2&ROW($DZ220)),$DY220,$DY$2&ROW($DY220)),$DX220,$DX$2&ROW($DX220)),$DW220,$DW$2&ROW($DW220)),$DV220,$DV$2&ROW($DV220)),$DU220,$DU$2&ROW($DU220)),$DT220,$DT$2&ROW($DT220)),$DS220,$DS$2&ROW($DS220)))","v":0},{"$f":"IF(U220=\"\",0,\"X=\"&SUBSTITUTE(SUBSTITUTE(SUBSTITUTE(SUBSTITUTE(SUBSTITUTE(SUBSTITUTE(SUBSTITUTE(SUBSTITUTE(SUBSTITUTE(SUBSTITUTE(SUBSTITUTE(SUBSTITUTE(U220,$ED220,$ED$2&ROW($ED220)),$EC220,$EC$2&ROW($EC220)),$EB220,$EB$2&ROW($EB220)),$EA220,$EA$2&ROW($EA220)),$DZ220,$DZ$2&ROW($DZ220)),$DY220,$DY$2&ROW($DY220)),$DX220,$DX$2&ROW($DX220)),$DW220,$DW$2&ROW($DW220)),$DV220,$DV$2&ROW($DV220)),$DU220,$DU$2&ROW($DU220)),$DT220,$DT$2&ROW($DT220)),$DS220,$DS$2&ROW($DS220)))","v":"X=AS220*if(AS220=0,0,0.012)"},{"$f":"IF(V220=\"\",0,\"X=\"&SUBSTITUTE(SUBSTITUTE(SUBSTITUTE(SUBSTITUTE(SUBSTITUTE(SUBSTITUTE(SUBSTITUTE(SUBSTITUTE(SUBSTITUTE(SUBSTITUTE(SUBSTITUTE(SUBSTITUTE(V220,$ED220,$ED$2&ROW($ED220)),$EC220,$EC$2&ROW($EC220)),$EB220,$EB$2&ROW($EB220)),$EA220,$EA$2&ROW($EA220)),$DZ220,$DZ$2&ROW($DZ220)),$DY220,$DY$2&ROW($DY220)),$DX220,$DX$2&ROW($DX220)),$DW220,$DW$2&ROW($DW220)),$DV220,$DV$2&ROW($DV220)),$DU220,$DU$2&ROW($DU220)),$DT220,$DT$2&ROW($DT220)),$DS220,$DS$2&ROW($DS220)))","v":"X=AS220*if(AS220=0,0,0.010)"},{"$f":"IF(W220=\"\",0,\"X=\"&SUBSTITUTE(SUBSTITUTE(SUBSTITUTE(SUBSTITUTE(SUBSTITUTE(SUBSTITUTE(SUBSTITUTE(SUBSTITUTE(SUBSTITUTE(SUBSTITUTE(SUBSTITUTE(SUBSTITUTE(W220,$ED220,$ED$2&ROW($ED220)),$EC220,$EC$2&ROW($EC220)),$EB220,$EB$2&ROW($EB220)),$EA220,$EA$2&ROW($EA220)),$DZ220,$DZ$2&ROW($DZ220)),$DY220,$DY$2&ROW($DY220)),$DX220,$DX$2&ROW($DX220)),$DW220,$DW$2&ROW($DW220)),$DV220,$DV$2&ROW($DV220)),$DU220,$DU$2&ROW($DU220)),$DT220,$DT$2&ROW($DT220)),$DS220,$DS$2&ROW($DS220)))","v":0},{"$f":"IF(X220=\"\",0,\"X=\"&SUBSTITUTE(SUBSTITUTE(SUBSTITUTE(SUBSTITUTE(SUBSTITUTE(SUBSTITUTE(SUBSTITUTE(SUBSTITUTE(SUBSTITUTE(SUBSTITUTE(SUBSTITUTE(SUBSTITUTE(X220,$ED220,$ED$2&ROW($ED220)),$EC220,$EC$2&ROW($EC220)),$EB220,$EB$2&ROW($EB220)),$EA220,$EA$2&ROW($EA220)),$DZ220,$DZ$2&ROW($DZ220)),$DY220,$DY$2&ROW($DY220)),$DX220,$DX$2&ROW($DX220)),$DW220,$DW$2&ROW($DW220)),$DV220,$DV$2&ROW($DV220)),$DU220,$DU$2&ROW($DU220)),$DT220,$DT$2&ROW($DT220)),$DS220,$DS$2&ROW($DS220)))","v":0},{"$f":"IF(Y220=\"\",0,\"X=\"&SUBSTITUTE(SUBSTITUTE(SUBSTITUTE(SUBSTITUTE(SUBSTITUTE(SUBSTITUTE(SUBSTITUTE(SUBSTITUTE(SUBSTITUTE(SUBSTITUTE(SUBSTITUTE(SUBSTITUTE(Y220,$ED220,$ED$2&ROW($ED220)),$EC220,$EC$2&ROW($EC220)),$EB220,$EB$2&ROW($EB220)),$EA220,$EA$2&ROW($EA220)),$DZ220,$DZ$2&ROW($DZ220)),$DY220,$DY$2&ROW($DY220)),$DX220,$DX$2&ROW($DX220)),$DW220,$DW$2&ROW($DW220)),$DV220,$DV$2&ROW($DV220)),$DU220,$DU$2&ROW($DU220)),$DT220,$DT$2&ROW($DT220)),$DS220,$DS$2&ROW($DS220)))","v":0},{"$f":"IF(Z220=\"\",0,\"X=\"&SUBSTITUTE(SUBSTITUTE(SUBSTITUTE(SUBSTITUTE(SUBSTITUTE(SUBSTITUTE(SUBSTITUTE(SUBSTITUTE(SUBSTITUTE(SUBSTITUTE(SUBSTITUTE(SUBSTITUTE(Z220,$ED220,$ED$2&ROW($ED220)),$EC220,$EC$2&ROW($EC220)),$EB220,$EB$2&ROW($EB220)),$EA220,$EA$2&ROW($EA220)),$DZ220,$DZ$2&ROW($DZ220)),$DY220,$DY$2&ROW($DY220)),$DX220,$DX$2&ROW($DX220)),$DW220,$DW$2&ROW($DW220)),$DV220,$DV$2&ROW($DV220)),$DU220,$DU$2&ROW($DU220)),$DT220,$DT$2&ROW($DT220)),$DS220,$DS$2&ROW($DS220)))","v":0},{"$f":"IF(AA220=\"\",0,\"X=\"&SUBSTITUTE(SUBSTITUTE(SUBSTITUTE(SUBSTITUTE(SUBSTITUTE(SUBSTITUTE(SUBSTITUTE(SUBSTITUTE(SUBSTITUTE(SUBSTITUTE(SUBSTITUTE(SUBSTITUTE(AA220,$ED220,$ED$2&ROW($ED220)),$EC220,$EC$2&ROW($EC220)),$EB220,$EB$2&ROW($EB220)),$EA220,$EA$2&ROW($EA220)),$DZ220,$DZ$2&ROW($DZ220)),$DY220,$DY$2&ROW($DY220)),$DX220,$DX$2&ROW($DX220)),$DW220,$DW$2&ROW($DW220)),$DV220,$DV$2&ROW($DV220)),$DU220,$DU$2&ROW($DU220)),$DT220,$DT$2&ROW($DT220)),$DS220,$DS$2&ROW($DS220)))","v":0},{"$f":"IF(AB220=\"\",0,\"X=\"&SUBSTITUTE(SUBSTITUTE(SUBSTITUTE(SUBSTITUTE(SUBSTITUTE(SUBSTITUTE(SUBSTITUTE(SUBSTITUTE(SUBSTITUTE(SUBSTITUTE(SUBSTITUTE(SUBSTITUTE(AB220,$ED220,$ED$2&ROW($ED220)),$EC220,$EC$2&ROW($EC220)),$EB220,$EB$2&ROW($EB220)),$EA220,$EA$2&ROW($EA220)),$DZ220,$DZ$2&ROW($DZ220)),$DY220,$DY$2&ROW($DY220)),$DX220,$DX$2&ROW($DX220)),$DW220,$DW$2&ROW($DW220)),$DV220,$DV$2&ROW($DV220)),$DU220,$DU$2&ROW($DU220)),$DT220,$DT$2&ROW($DT220)),$DS220,$DS$2&ROW($DS220)))","v":"X=if(AS220=0,0,AS220*3153)"},null,null,"{Factor:WinterCF}","{Factor:SummerCF}",{"$f":"IFERROR(INDEX($EG220:$IV220,MATCH(0,COUNTIF($DR220:DT220,$EG220:$IV220),0)),\"\")","v":"{Measure:Quantity}"},{"$f":"IFERROR(INDEX($EG220:$IV220,MATCH(0,COUNTIF($DR220:DU220,$EG220:$IV220),0)),\"\")","v":""},{"$f":"IFERROR(INDEX($EG220:$IV220,MATCH(0,COUNTIF($DR220:DV220,$EG220:$IV220),0)),\"\")","v":""},{"$f":"IFERROR(INDEX($EG220:$IV220,MATCH(0,COUNTIF($DR220:DW220,$EG220:$IV220),0)),\"\")","v":""},{"$f":"IFERROR(INDEX($EG220:$IV220,MATCH(0,COUNTIF($DR220:DX220,$EG220:$IV220),0)),\"\")","v":""},{"$f":"IFERROR(INDEX($EG220:$IV220,MATCH(0,COUNTIF($DR220:DY220,$EG220:$IV220),0)),\"\")","v":""},{"$f":"IFERROR(INDEX($EG220:$IV220,MATCH(0,COUNTIF($DR220:DZ220,$EG220:$IV220),0)),\"\")","v":""},{"$f":"IFERROR(INDEX($EG220:$IV220,MATCH(0,COUNTIF($DR220:EA220,$EG220:$IV220),0)),\"\")","v":""},{"$f":"IFERROR(INDEX($EG220:$IV220,MATCH(0,COUNTIF($DR220:EB220,$EG220:$IV220),0)),\"\")","v":""},{"$f":"IFERROR(INDEX($EG220:$IV220,MATCH(0,COUNTIF($DR220:EC220,$EG220:$IV220),0)),\"\")","v":""},null,null,{"$f":"IFERROR(MID($G220,FIND(CHAR(160),SUBSTITUTE($G220,\"{\",CHAR(160),EG$1)),FIND(CHAR(160),SUBSTITUTE($G220,\"}\",CHAR(160),EG$1))-FIND(CHAR(160),SUBSTITUTE($G220,\"{\",CHAR(160),EG$1))+1),\"\")","v":""},{"$f":"IFERROR(MID($G220,FIND(CHAR(160),SUBSTITUTE($G220,\"{\",CHAR(160),EH$1)),FIND(CHAR(160),SUBSTITUTE($G220,\"}\",CHAR(160),EH$1))-FIND(CHAR(160),SUBSTITUTE($G220,\"{\",CHAR(160),EH$1))+1),\"\")","v":""},{"$f":"IFERROR(MID($G220,FIND(CHAR(160),SUBSTITUTE($G220,\"{\",CHAR(160),EI$1)),FIND(CHAR(160),SUBSTITUTE($G220,\"}\",CHAR(160),EI$1))-FIND(CHAR(160),SUBSTITUTE($G220,\"{\",CHAR(160),EI$1))+1),\"\")","v":""},{"$f":"IFERROR(MID($G220,FIND(CHAR(160),SUBSTITUTE($G220,\"{\",CHAR(160),EJ$1)),FIND(CHAR(160),SUBSTITUTE($G220,\"}\",CHAR(160),EJ$1))-FIND(CHAR(160),SUBSTITUTE($G220,\"{\",CHAR(160),EJ$1))+1),\"\")","v":""},{"$f":"IFERROR(MID($G220,FIND(CHAR(160),SUBSTITUTE($G220,\"{\",CHAR(160),EK$1)),FIND(CHAR(160),SUBSTITUTE($G220,\"}\",CHAR(160),EK$1))-FIND(CHAR(160),SUBSTITUTE($G220,\"{\",CHAR(160),EK$1))+1),\"\")","v":""},{"$f":"IFERROR(MID($G220,FIND(CHAR(160),SUBSTITUTE($G220,\"{\",CHAR(160),EL$1)),FIND(CHAR(160),SUBSTITUTE($G220,\"}\",CHAR(160),EL$1))-FIND(CHAR(160),SUBSTITUTE($G220,\"{\",CHAR(160),EL$1))+1),\"\")","v":""},{"$f":"IFERROR(MID($G220,FIND(CHAR(160),SUBSTITUTE($G220,\"{\",CHAR(160),EM$1)),FIND(CHAR(160),SUBSTITUTE($G220,\"}\",CHAR(160),EM$1))-FIND(CHAR(160),SUBSTITUTE($G220,\"{\",CHAR(160),EM$1))+1),\"\")","v":""},{"$f":"IFERROR(MID($G220,FIND(CHAR(160),SUBSTITUTE($G220,\"{\",CHAR(160),EN$1)),FIND(CHAR(160),SUBSTITUTE($G220,\"}\",CHAR(160),EN$1))-FIND(CHAR(160),SUBSTITUTE($G220,\"{\",CHAR(160),EN$1))+1),\"\")","v":""},{"$f":"IFERROR(MID($G220,FIND(CHAR(160),SUBSTITUTE($G220,\"{\",CHAR(160),EO$1)),FIND(CHAR(160),SUBSTITUTE($G220,\"}\",CHAR(160),EO$1))-FIND(CHAR(160),SUBSTITUTE($G220,\"{\",CHAR(160),EO$1))+1),\"\")","v":""},{"$f":"IFERROR(MID($G220,FIND(CHAR(160),SUBSTITUTE($G220,\"{\",CHAR(160),EP$1)),FIND(CHAR(160),SUBSTITUTE($G220,\"}\",CHAR(160),EP$1))-FIND(CHAR(160),SUBSTITUTE($G220,\"{\",CHAR(160),EP$1))+1),\"\")","v":""},{"$f":"IFERROR(MID($J220,FIND(CHAR(160),SUBSTITUTE($J220,\"{\",CHAR(160),EQ$1)),FIND(CHAR(160),SUBSTITUTE($J220,\"}\",CHAR(160),EQ$1))-FIND(CHAR(160),SUBSTITUTE($J220,\"{\",CHAR(160),EQ$1))+1),\"\")","v":""},{"$f":"IFERROR(MID($J220,FIND(CHAR(160),SUBSTITUTE($J220,\"{\",CHAR(160),ER$1)),FIND(CHAR(160),SUBSTITUTE($J220,\"}\",CHAR(160),ER$1))-FIND(CHAR(160),SUBSTITUTE($J220,\"{\",CHAR(160),ER$1))+1),\"\")","v":""},{"$f":"IFERROR(MID($J220,FIND(CHAR(160),SUBSTITUTE($J220,\"{\",CHAR(160),ES$1)),FIND(CHAR(160),SUBSTITUTE($J220,\"}\",CHAR(160),ES$1))-FIND(CHAR(160),SUBSTITUTE($J220,\"{\",CHAR(160),ES$1))+1),\"\")","v":""},{"$f":"IFERROR(MID($J220,FIND(CHAR(160),SUBSTITUTE($J220,\"{\",CHAR(160),ET$1)),FIND(CHAR(160),SUBSTITUTE($J220,\"}\",CHAR(160),ET$1))-FIND(CHAR(160),SUBSTITUTE($J220,\"{\",CHAR(160),ET$1))+1),\"\")","v":""},{"$f":"IFERROR(MID($J220,FIND(CHAR(160),SUBSTITUTE($J220,\"{\",CHAR(160),EU$1)),FIND(CHAR(160),SUBSTITUTE($J220,\"}\",CHAR(160),EU$1))-FIND(CHAR(160),SUBSTITUTE($J220,\"{\",CHAR(160),EU$1))+1),\"\")","v":""},{"$f":"IFERROR(MID($J220,FIND(CHAR(160),SUBSTITUTE($J220,\"{\",CHAR(160),EV$1)),FIND(CHAR(160),SUBSTITUTE($J220,\"}\",CHAR(160),EV$1))-FIND(CHAR(160),SUBSTITUTE($J220,\"{\",CHAR(160),EV$1))+1),\"\")","v":""},{"$f":"IFERROR(MID($J220,FIND(CHAR(160),SUBSTITUTE($J220,\"{\",CHAR(160),EW$1)),FIND(CHAR(160),SUBSTITUTE($J220,\"}\",CHAR(160),EW$1))-FIND(CHAR(160),SUBSTITUTE($J220,\"{\",CHAR(160),EW$1))+1),\"\")","v":""},{"$f":"IFERROR(MID($J220,FIND(CHAR(160),SUBSTITUTE($J220,\"{\",CHAR(160),EX$1)),FIND(CHAR(160),SUBSTITUTE($J220,\"}\",CHAR(160),EX$1))-FIND(CHAR(160),SUBSTITUTE($J220,\"{\",CHAR(160),EX$1))+1),\"\")","v":""},{"$f":"IFERROR(MID($J220,FIND(CHAR(160),SUBSTITUTE($J220,\"{\",CHAR(160),EY$1)),FIND(CHAR(160),SUBSTITUTE($J220,\"}\",CHAR(160),EY$1))-FIND(CHAR(160),SUBSTITUTE($J220,\"{\",CHAR(160),EY$1))+1),\"\")","v":""},{"$f":"IFERROR(MID($J220,FIND(CHAR(160),SUBSTITUTE($J220,\"{\",CHAR(160),EZ$1)),FIND(CHAR(160),SUBSTITUTE($J220,\"}\",CHAR(160),EZ$1))-FIND(CHAR(160),SUBSTITUTE($J220,\"{\",CHAR(160),EZ$1))+1),\"\")","v":""},{"$f":"IFERROR(MID($J220,FIND(CHAR(160),SUBSTITUTE($J220,\"{\",CHAR(160),FA$1)),FIND(CHAR(160),SUBSTITUTE($J220,\"}\",CHAR(160),FA$1))-FIND(CHAR(160),SUBSTITUTE($J220,\"{\",CHAR(160),FA$1))+1),\"\")","v":""},{"$f":"IFERROR(MID($J220,FIND(CHAR(160),SUBSTITUTE($J220,\"{\",CHAR(160),FB$1)),FIND(CHAR(160),SUBSTITUTE($J220,\"}\",CHAR(160),FB$1))-FIND(CHAR(160),SUBSTITUTE($J220,\"{\",CHAR(160),FB$1))+1),\"\")","v":""},{"$f":"IFERROR(MID($O220,FIND(CHAR(160),SUBSTITUTE($O220,\"{\",CHAR(160),FC$1)),FIND(CHAR(160),SUBSTITUTE($O220,\"}\",CHAR(160),FC$1))-FIND(CHAR(160),SUBSTITUTE($O220,\"{\",CHAR(160),FC$1))+1),\"\")","v":""},{"$f":"IFERROR(MID($O220,FIND(CHAR(160),SUBSTITUTE($O220,\"{\",CHAR(160),FD$1)),FIND(CHAR(160),SUBSTITUTE($O220,\"}\",CHAR(160),FD$1))-FIND(CHAR(160),SUBSTITUTE($O220,\"{\",CHAR(160),FD$1))+1),\"\")","v":""},{"$f":"IFERROR(MID($O220,FIND(CHAR(160),SUBSTITUTE($O220,\"{\",CHAR(160),FE$1)),FIND(CHAR(160),SUBSTITUTE($O220,\"}\",CHAR(160),FE$1))-FIND(CHAR(160),SUBSTITUTE($O220,\"{\",CHAR(160),FE$1))+1),\"\")","v":""},{"$f":"IFERROR(MID($O220,FIND(CHAR(160),SUBSTITUTE($O220,\"{\",CHAR(160),FF$1)),FIND(CHAR(160),SUBSTITUTE($O220,\"}\",CHAR(160),FF$1))-FIND(CHAR(160),SUBSTITUTE($O220,\"{\",CHAR(160),FF$1))+1),\"\")","v":""},{"$f":"IFERROR(MID($O220,FIND(CHAR(160),SUBSTITUTE($O220,\"{\",CHAR(160),FG$1)),FIND(CHAR(160),SUBSTITUTE($O220,\"}\",CHAR(160),FG$1))-FIND(CHAR(160),SUBSTITUTE($O220,\"{\",CHAR(160),FG$1))+1),\"\")","v":""},{"$f":"IFERROR(MID($O220,FIND(CHAR(160),SUBSTITUTE($O220,\"{\",CHAR(160),FH$1)),FIND(CHAR(160),SUBSTITUTE($O220,\"}\",CHAR(160),FH$1))-FIND(CHAR(160),SUBSTITUTE($O220,\"{\",CHAR(160),FH$1))+1),\"\")","v":""},{"$f":"IFERROR(MID($O220,FIND(CHAR(160),SUBSTITUTE($O220,\"{\",CHAR(160),FI$1)),FIND(CHAR(160),SUBSTITUTE($O220,\"}\",CHAR(160),FI$1))-FIND(CHAR(160),SUBSTITUTE($O220,\"{\",CHAR(160),FI$1))+1),\"\")","v":""},{"$f":"IFERROR(MID($O220,FIND(CHAR(160),SUBSTITUTE($O220,\"{\",CHAR(160),FJ$1)),FIND(CHAR(160),SUBSTITUTE($O220,\"}\",CHAR(160),FJ$1))-FIND(CHAR(160),SUBSTITUTE($O220,\"{\",CHAR(160),FJ$1))+1),\"\")","v":""},{"$f":"IFERROR(MID($O220,FIND(CHAR(160),SUBSTITUTE($O220,\"{\",CHAR(160),FK$1)),FIND(CHAR(160),SUBSTITUTE($O220,\"}\",CHAR(160),FK$1))-FIND(CHAR(160),SUBSTITUTE($O220,\"{\",CHAR(160),FK$1))+1),\"\")","v":"{Measure:Quantity}"},{"$f":"IFERROR(MID($O220,FIND(CHAR(160),SUBSTITUTE($O220,\"{\",CHAR(160),FL$1)),FIND(CHAR(160),SUBSTITUTE($O220,\"}\",CHAR(160),FL$1))-FIND(CHAR(160),SUBSTITUTE($O220,\"{\",CHAR(160),FL$1))+1),\"\")","v":"{Measure:Quantity}"},{"$f":"IFERROR(MID($R220,FIND(CHAR(160),SUBSTITUTE($R220,\"{\",CHAR(160),FM$1)),FIND(CHAR(160),SUBSTITUTE($R220,\"}\",CHAR(160),FM$1))-FIND(CHAR(160),SUBSTITUTE($R220,\"{\",CHAR(160),FM$1))+1),\"\")","v":""},{"$f":"IFERROR(MID($R220,FIND(CHAR(160),SUBSTITUTE($R220,\"{\",CHAR(160),FN$1)),FIND(CHAR(160),SUBSTITUTE($R220,\"}\",CHAR(160),FN$1))-FIND(CHAR(160),SUBSTITUTE($R220,\"{\",CHAR(160),FN$1))+1),\"\")","v":""},{"$f":"IFERROR(MID($R220,FIND(CHAR(160),SUBSTITUTE($R220,\"{\",CHAR(160),FO$1)),FIND(CHAR(160),SUBSTITUTE($R220,\"}\",CHAR(160),FO$1))-FIND(CHAR(160),SUBSTITUTE($R220,\"{\",CHAR(160),FO$1))+1),\"\")","v":""},{"$f":"IFERROR(MID($R220,FIND(CHAR(160),SUBSTITUTE($R220,\"{\",CHAR(160),FP$1)),FIND(CHAR(160),SUBSTITUTE($R220,\"}\",CHAR(160),FP$1))-FIND(CHAR(160),SUBSTITUTE($R220,\"{\",CHAR(160),FP$1))+1),\"\")","v":""},{"$f":"IFERROR(MID($R220,FIND(CHAR(160),SUBSTITUTE($R220,\"{\",CHAR(160),FQ$1)),FIND(CHAR(160),SUBSTITUTE($R220,\"}\",CHAR(160),FQ$1))-FIND(CHAR(160),SUBSTITUTE($R220,\"{\",CHAR(160),FQ$1))+1),\"\")","v":""},{"$f":"IFERROR(MID($R220,FIND(CHAR(160),SUBSTITUTE($R220,\"{\",CHAR(160),FR$1)),FIND(CHAR(160),SUBSTITUTE($R220,\"}\",CHAR(160),FR$1))-FIND(CHAR(160),SUBSTITUTE($R220,\"{\",CHAR(160),FR$1))+1),\"\")","v":""},{"$f":"IFERROR(MID($R220,FIND(CHAR(160),SUBSTITUTE($R220,\"{\",CHAR(160),FS$1)),FIND(CHAR(160),SUBSTITUTE($R220,\"}\",CHAR(160),FS$1))-FIND(CHAR(160),SUBSTITUTE($R220,\"{\",CHAR(160),FS$1))+1),\"\")","v":""},{"$f":"IFERROR(MID($R220,FIND(CHAR(160),SUBSTITUTE($R220,\"{\",CHAR(160),FT$1)),FIND(CHAR(160),SUBSTITUTE($R220,\"}\",CHAR(160),FT$1))-FIND(CHAR(160),SUBSTITUTE($R220,\"{\",CHAR(160),FT$1))+1),\"\")","v":""},{"$f":"IFERROR(MID($R220,FIND(CHAR(160),SUBSTITUTE($R220,\"{\",CHAR(160),FU$1)),FIND(CHAR(160),SUBSTITUTE($R220,\"}\",CHAR(160),FU$1))-FIND(CHAR(160),SUBSTITUTE($R220,\"{\",CHAR(160),FU$1))+1),\"\")","v":""},{"$f":"IFERROR(MID($R220,FIND(CHAR(160),SUBSTITUTE($R220,\"{\",CHAR(160),FV$1)),FIND(CHAR(160),SUBSTITUTE($R220,\"}\",CHAR(160),FV$1))-FIND(CHAR(160),SUBSTITUTE($R220,\"{\",CHAR(160),FV$1))+1),\"\")","v":""},{"$f":"IFERROR(MID($U220,FIND(CHAR(160),SUBSTITUTE($U220,\"{\",CHAR(160),FW$1)),FIND(CHAR(160),SUBSTITUTE($U220,\"}\",CHAR(160),FW$1))-FIND(CHAR(160),SUBSTITUTE($U220,\"{\",CHAR(160),FW$1))+1),\"\")","v":""},{"$f":"IFERROR(MID($U220,FIND(CHAR(160),SUBSTITUTE($U220,\"{\",CHAR(160),FX$1)),FIND(CHAR(160),SUBSTITUTE($U220,\"}\",CHAR(160),FX$1))-FIND(CHAR(160),SUBSTITUTE($U220,\"{\",CHAR(160),FX$1))+1),\"\")","v":""},{"$f":"IFERROR(MID($U220,FIND(CHAR(160),SUBSTITUTE($U220,\"{\",CHAR(160),FY$1)),FIND(CHAR(160),SUBSTITUTE($U220,\"}\",CHAR(160),FY$1))-FIND(CHAR(160),SUBSTITUTE($U220,\"{\",CHAR(160),FY$1))+1),\"\")","v":""},{"$f":"IFERROR(MID($U220,FIND(CHAR(160),SUBSTITUTE($U220,\"{\",CHAR(160),FZ$1)),FIND(CHAR(160),SUBSTITUTE($U220,\"}\",CHAR(160),FZ$1))-FIND(CHAR(160),SUBSTITUTE($U220,\"{\",CHAR(160),FZ$1))+1),\"\")","v":""},{"$f":"IFERROR(MID($U220,FIND(CHAR(160),SUBSTITUTE($U220,\"{\",CHAR(160),GA$1)),FIND(CHAR(160),SUBSTITUTE($U220,\"}\",CHAR(160),GA$1))-FIND(CHAR(160),SUBSTITUTE($U220,\"{\",CHAR(160),GA$1))+1),\"\")","v":""},{"$f":"IFERROR(MID($U220,FIND(CHAR(160),SUBSTITUTE($U220,\"{\",CHAR(160),GB$1)),FIND(CHAR(160),SUBSTITUTE($U220,\"}\",CHAR(160),GB$1))-FIND(CHAR(160),SUBSTITUTE($U220,\"{\",CHAR(160),GB$1))+1),\"\")","v":""},{"$f":"IFERROR(MID($U220,FIND(CHAR(160),SUBSTITUTE($U220,\"{\",CHAR(160),GC$1)),FIND(CHAR(160),SUBSTITUTE($U220,\"}\",CHAR(160),GC$1))-FIND(CHAR(160),SUBSTITUTE($U220,\"{\",CHAR(160),GC$1))+1),\"\")","v":""},{"$f":"IFERROR(MID($U220,FIND(CHAR(160),SUBSTITUTE($U220,\"{\",CHAR(160),GD$1)),FIND(CHAR(160),SUBSTITUTE($U220,\"}\",CHAR(160),GD$1))-FIND(CHAR(160),SUBSTITUTE($U220,\"{\",CHAR(160),GD$1))+1),\"\")","v":""},{"$f":"IFERROR(MID($U220,FIND(CHAR(160),SUBSTITUTE($U220,\"{\",CHAR(160),GE$1)),FIND(CHAR(160),SUBSTITUTE($U220,\"}\",CHAR(160),GE$1))-FIND(CHAR(160),SUBSTITUTE($U220,\"{\",CHAR(160),GE$1))+1),\"\")","v":"{Measure:Quantity}"},{"$f":"IFERROR(MID($U220,FIND(CHAR(160),SUBSTITUTE($U220,\"{\",CHAR(160),GF$1)),FIND(CHAR(160),SUBSTITUTE($U220,\"}\",CHAR(160),GF$1))-FIND(CHAR(160),SUBSTITUTE($U220,\"{\",CHAR(160),GF$1))+1),\"\")","v":"{Measure:Quantity}"},{"$f":"IFERROR(MID($V220,FIND(CHAR(160),SUBSTITUTE($V220,\"{\",CHAR(160),GG$1)),FIND(CHAR(160),SUBSTITUTE($V220,\"}\",CHAR(160),GG$1))-FIND(CHAR(160),SUBSTITUTE($V220,\"{\",CHAR(160),GG$1))+1),\"\")","v":""},{"$f":"IFERROR(MID($V220,FIND(CHAR(160),SUBSTITUTE($V220,\"{\",CHAR(160),GH$1)),FIND(CHAR(160),SUBSTITUTE($V220,\"}\",CHAR(160),GH$1))-FIND(CHAR(160),SUBSTITUTE($V220,\"{\",CHAR(160),GH$1))+1),\"\")","v":""},{"$f":"IFERROR(MID($V220,FIND(CHAR(160),SUBSTITUTE($V220,\"{\",CHAR(160),GI$1)),FIND(CHAR(160),SUBSTITUTE($V220,\"}\",CHAR(160),GI$1))-FIND(CHAR(160),SUBSTITUTE($V220,\"{\",CHAR(160),GI$1))+1),\"\")","v":""},{"$f":"IFERROR(MID($V220,FIND(CHAR(160),SUBSTITUTE($V220,\"{\",CHAR(160),GJ$1)),FIND(CHAR(160),SUBSTITUTE($V220,\"}\",CHAR(160),GJ$1))-FIND(CHAR(160),SUBSTITUTE($V220,\"{\",CHAR(160),GJ$1))+1),\"\")","v":""},{"$f":"IFERROR(MID($V220,FIND(CHAR(160),SUBSTITUTE($V220,\"{\",CHAR(160),GK$1)),FIND(CHAR(160),SUBSTITUTE($V220,\"}\",CHAR(160),GK$1))-FIND(CHAR(160),SUBSTITUTE($V220,\"{\",CHAR(160),GK$1))+1),\"\")","v":""},{"$f":"IFERROR(MID($V220,FIND(CHAR(160),SUBSTITUTE($V220,\"{\",CHAR(160),GL$1)),FIND(CHAR(160),SUBSTITUTE($V220,\"}\",CHAR(160),GL$1))-FIND(CHAR(160),SUBSTITUTE($V220,\"{\",CHAR(160),GL$1))+1),\"\")","v":""},{"$f":"IFERROR(MID($V220,FIND(CHAR(160),SUBSTITUTE($V220,\"{\",CHAR(160),GM$1)),FIND(CHAR(160),SUBSTITUTE($V220,\"}\",CHAR(160),GM$1))-FIND(CHAR(160),SUBSTITUTE($V220,\"{\",CHAR(160),GM$1))+1),\"\")","v":""},{"$f":"IFERROR(MID($V220,FIND(CHAR(160),SUBSTITUTE($V220,\"{\",CHAR(160),GN$1)),FIND(CHAR(160),SUBSTITUTE($V220,\"}\",CHAR(160),GN$1))-FIND(CHAR(160),SUBSTITUTE($V220,\"{\",CHAR(160),GN$1))+1),\"\")","v":""},{"$f":"IFERROR(MID($V220,FIND(CHAR(160),SUBSTITUTE($V220,\"{\",CHAR(160),GO$1)),FIND(CHAR(160),SUBSTITUTE($V220,\"}\",CHAR(160),GO$1))-FIND(CHAR(160),SUBSTITUTE($V220,\"{\",CHAR(160),GO$1))+1),\"\")","v":"{Measure:Quantity}"},{"$f":"IFERROR(MID($V220,FIND(CHAR(160),SUBSTITUTE($V220,\"{\",CHAR(160),GP$1)),FIND(CHAR(160),SUBSTITUTE($V220,\"}\",CHAR(160),GP$1))-FIND(CHAR(160),SUBSTITUTE($V220,\"{\",CHAR(160),GP$1))+1),\"\")","v":"{Measure:Quantity}"},{"$f":"IFERROR(MID($W220,FIND(CHAR(160),SUBSTITUTE($W220,\"{\",CHAR(160),GQ$1)),FIND(CHAR(160),SUBSTITUTE($W220,\"}\",CHAR(160),GQ$1))-FIND(CHAR(160),SUBSTITUTE($W220,\"{\",CHAR(160),GQ$1))+1),\"\")","v":""},{"$f":"IFERROR(MID($W220,FIND(CHAR(160),SUBSTITUTE($W220,\"{\",CHAR(160),GR$1)),FIND(CHAR(160),SUBSTITUTE($W220,\"}\",CHAR(160),GR$1))-FIND(CHAR(160),SUBSTITUTE($W220,\"{\",CHAR(160),GR$1))+1),\"\")","v":""},{"$f":"IFERROR(MID($W220,FIND(CHAR(160),SUBSTITUTE($W220,\"{\",CHAR(160),GS$1)),FIND(CHAR(160),SUBSTITUTE($W220,\"}\",CHAR(160),GS$1))-FIND(CHAR(160),SUBSTITUTE($W220,\"{\",CHAR(160),GS$1))+1),\"\")","v":""},{"$f":"IFERROR(MID($W220,FIND(CHAR(160),SUBSTITUTE($W220,\"{\",CHAR(160),GT$1)),FIND(CHAR(160),SUBSTITUTE($W220,\"}\",CHAR(160),GT$1))-FIND(CHAR(160),SUBSTITUTE($W220,\"{\",CHAR(160),GT$1))+1),\"\")","v":""},{"$f":"IFERROR(MID($W220,FIND(CHAR(160),SUBSTITUTE($W220,\"{\",CHAR(160),GU$1)),FIND(CHAR(160),SUBSTITUTE($W220,\"}\",CHAR(160),GU$1))-FIND(CHAR(160),SUBSTITUTE($W220,\"{\",CHAR(160),GU$1))+1),\"\")","v":""},{"$f":"IFERROR(MID($W220,FIND(CHAR(160),SUBSTITUTE($W220,\"{\",CHAR(160),GV$1)),FIND(CHAR(160),SUBSTITUTE($W220,\"}\",CHAR(160),GV$1))-FIND(CHAR(160),SUBSTITUTE($W220,\"{\",CHAR(160),GV$1))+1),\"\")","v":""},{"$f":"IFERROR(MID($W220,FIND(CHAR(160),SUBSTITUTE($W220,\"{\",CHAR(160),GW$1)),FIND(CHAR(160),SUBSTITUTE($W220,\"}\",CHAR(160),GW$1))-FIND(CHAR(160),SUBSTITUTE($W220,\"{\",CHAR(160),GW$1))+1),\"\")","v":""},{"$f":"IFERROR(MID($W220,FIND(CHAR(160),SUBSTITUTE($W220,\"{\",CHAR(160),GX$1)),FIND(CHAR(160),SUBSTITUTE($W220,\"}\",CHAR(160),GX$1))-FIND(CHAR(160),SUBSTITUTE($W220,\"{\",CHAR(160),GX$1))+1),\"\")","v":""},{"$f":"IFERROR(MID($W220,FIND(CHAR(160),SUBSTITUTE($W220,\"{\",CHAR(160),GY$1)),FIND(CHAR(160),SUBSTITUTE($W220,\"}\",CHAR(160),GY$1))-FIND(CHAR(160),SUBSTITUTE($W220,\"{\",CHAR(160),GY$1))+1),\"\")","v":""},{"$f":"IFERROR(MID($W220,FIND(CHAR(160),SUBSTITUTE($W220,\"{\",CHAR(160),GZ$1)),FIND(CHAR(160),SUBSTITUTE($W220,\"}\",CHAR(160),GZ$1))-FIND(CHAR(160),SUBSTITUTE($W220,\"{\",CHAR(160),GZ$1))+1),\"\")","v":""},{"$f":"IFERROR(MID($X220,FIND(CHAR(160),SUBSTITUTE($X220,\"{\",CHAR(160),HA$1)),FIND(CHAR(160),SUBSTITUTE($X220,\"}\",CHAR(160),HA$1))-FIND(CHAR(160),SUBSTITUTE($X220,\"{\",CHAR(160),HA$1))+1),\"\")","v":""},{"$f":"IFERROR(MID($X220,FIND(CHAR(160),SUBSTITUTE($X220,\"{\",CHAR(160),HB$1)),FIND(CHAR(160),SUBSTITUTE($X220,\"}\",CHAR(160),HB$1))-FIND(CHAR(160),SUBSTITUTE($X220,\"{\",CHAR(160),HB$1))+1),\"\")","v":""},{"$f":"IFERROR(MID($X220,FIND(CHAR(160),SUBSTITUTE($X220,\"{\",CHAR(160),HC$1)),FIND(CHAR(160),SUBSTITUTE($X220,\"}\",CHAR(160),HC$1))-FIND(CHAR(160),SUBSTITUTE($X220,\"{\",CHAR(160),HC$1))+1),\"\")","v":""},{"$f":"IFERROR(MID($X220,FIND(CHAR(160),SUBSTITUTE($X220,\"{\",CHAR(160),HD$1)),FIND(CHAR(160),SUBSTITUTE($X220,\"}\",CHAR(160),HD$1))-FIND(CHAR(160),SUBSTITUTE($X220,\"{\",CHAR(160),HD$1))+1),\"\")","v":""},{"$f":"IFERROR(MID($X220,FIND(CHAR(160),SUBSTITUTE($X220,\"{\",CHAR(160),HE$1)),FIND(CHAR(160),SUBSTITUTE($X220,\"}\",CHAR(160),HE$1))-FIND(CHAR(160),SUBSTITUTE($X220,\"{\",CHAR(160),HE$1))+1),\"\")","v":""},{"$f":"IFERROR(MID($X220,FIND(CHAR(160),SUBSTITUTE($X220,\"{\",CHAR(160),HF$1)),FIND(CHAR(160),SUBSTITUTE($X220,\"}\",CHAR(160),HF$1))-FIND(CHAR(160),SUBSTITUTE($X220,\"{\",CHAR(160),HF$1))+1),\"\")","v":""},{"$f":"IFERROR(MID($X220,FIND(CHAR(160),SUBSTITUTE($X220,\"{\",CHAR(160),HG$1)),FIND(CHAR(160),SUBSTITUTE($X220,\"}\",CHAR(160),HG$1))-FIND(CHAR(160),SUBSTITUTE($X220,\"{\",CHAR(160),HG$1))+1),\"\")","v":""},{"$f":"IFERROR(MID($X220,FIND(CHAR(160),SUBSTITUTE($X220,\"{\",CHAR(160),HH$1)),FIND(CHAR(160),SUBSTITUTE($X220,\"}\",CHAR(160),HH$1))-FIND(CHAR(160),SUBSTITUTE($X220,\"{\",CHAR(160),HH$1))+1),\"\")","v":""},{"$f":"IFERROR(MID($X220,FIND(CHAR(160),SUBSTITUTE($X220,\"{\",CHAR(160),HI$1)),FIND(CHAR(160),SUBSTITUTE($X220,\"}\",CHAR(160),HI$1))-FIND(CHAR(160),SUBSTITUTE($X220,\"{\",CHAR(160),HI$1))+1),\"\")","v":""},{"$f":"IFERROR(MID($X220,FIND(CHAR(160),SUBSTITUTE($X220,\"{\",CHAR(160),HJ$1)),FIND(CHAR(160),SUBSTITUTE($X220,\"}\",CHAR(160),HJ$1))-FIND(CHAR(160),SUBSTITUTE($X220,\"{\",CHAR(160),HJ$1))+1),\"\")","v":""},{"$f":"IFERROR(MID($Y220,FIND(CHAR(160),SUBSTITUTE($Y220,\"{\",CHAR(160),HK$1)),FIND(CHAR(160),SUBSTITUTE($Y220,\"}\",CHAR(160),HK$1))-FIND(CHAR(160),SUBSTITUTE($Y220,\"{\",CHAR(160),HK$1))+1),\"\")","v":""},{"$f":"IFERROR(MID($Y220,FIND(CHAR(160),SUBSTITUTE($Y220,\"{\",CHAR(160),HL$1)),FIND(CHAR(160),SUBSTITUTE($Y220,\"}\",CHAR(160),HL$1))-FIND(CHAR(160),SUBSTITUTE($Y220,\"{\",CHAR(160),HL$1))+1),\"\")","v":""},{"$f":"IFERROR(MID($Y220,FIND(CHAR(160),SUBSTITUTE($Y220,\"{\",CHAR(160),HM$1)),FIND(CHAR(160),SUBSTITUTE($Y220,\"}\",CHAR(160),HM$1))-FIND(CHAR(160),SUBSTITUTE($Y220,\"{\",CHAR(160),HM$1))+1),\"\")","v":""},{"$f":"IFERROR(MID($Y220,FIND(CHAR(160),SUBSTITUTE($Y220,\"{\",CHAR(160),HN$1)),FIND(CHAR(160),SUBSTITUTE($Y220,\"}\",CHAR(160),HN$1))-FIND(CHAR(160),SUBSTITUTE($Y220,\"{\",CHAR(160),HN$1))+1),\"\")","v":""},{"$f":"IFERROR(MID($Y220,FIND(CHAR(160),SUBSTITUTE($Y220,\"{\",CHAR(160),HO$1)),FIND(CHAR(160),SUBSTITUTE($Y220,\"}\",CHAR(160),HO$1))-FIND(CHAR(160),SUBSTITUTE($Y220,\"{\",CHAR(160),HO$1))+1),\"\")","v":""},{"$f":"IFERROR(MID($Y220,FIND(CHAR(160),SUBSTITUTE($Y220,\"{\",CHAR(160),HP$1)),FIND(CHAR(160),SUBSTITUTE($Y220,\"}\",CHAR(160),HP$1))-FIND(CHAR(160),SUBSTITUTE($Y220,\"{\",CHAR(160),HP$1))+1),\"\")","v":""},{"$f":"IFERROR(MID($Y220,FIND(CHAR(160),SUBSTITUTE($Y220,\"{\",CHAR(160),HQ$1)),FIND(CHAR(160),SUBSTITUTE($Y220,\"}\",CHAR(160),HQ$1))-FIND(CHAR(160),SUBSTITUTE($Y220,\"{\",CHAR(160),HQ$1))+1),\"\")","v":""},{"$f":"IFERROR(MID($Y220,FIND(CHAR(160),SUBSTITUTE($Y220,\"{\",CHAR(160),HR$1)),FIND(CHAR(160),SUBSTITUTE($Y220,\"}\",CHAR(160),HR$1))-FIND(CHAR(160),SUBSTITUTE($Y220,\"{\",CHAR(160),HR$1))+1),\"\")","v":""},{"$f":"IFERROR(MID($Y220,FIND(CHAR(160),SUBSTITUTE($Y220,\"{\",CHAR(160),HS$1)),FIND(CHAR(160),SUBSTITUTE($Y220,\"}\",CHAR(160),HS$1))-FIND(CHAR(160),SUBSTITUTE($Y220,\"{\",CHAR(160),HS$1))+1),\"\")","v":""},{"$f":"IFERROR(MID($Y220,FIND(CHAR(160),SUBSTITUTE($Y220,\"{\",CHAR(160),HT$1)),FIND(CHAR(160),SUBSTITUTE($Y220,\"}\",CHAR(160),HT$1))-FIND(CHAR(160),SUBSTITUTE($Y220,\"{\",CHAR(160),HT$1))+1),\"\")","v":""},{"$f":"IFERROR(MID($Z220,FIND(CHAR(160),SUBSTITUTE($Z220,\"{\",CHAR(160),HU$1)),FIND(CHAR(160),SUBSTITUTE($Z220,\"}\",CHAR(160),HU$1))-FIND(CHAR(160),SUBSTITUTE($Z220,\"{\",CHAR(160),HU$1))+1),\"\")","v":""},{"$f":"IFERROR(MID($Z220,FIND(CHAR(160),SUBSTITUTE($Z220,\"{\",CHAR(160),HV$1)),FIND(CHAR(160),SUBSTITUTE($Z220,\"}\",CHAR(160),HV$1))-FIND(CHAR(160),SUBSTITUTE($Z220,\"{\",CHAR(160),HV$1))+1),\"\")","v":""},{"$f":"IFERROR(MID($Z220,FIND(CHAR(160),SUBSTITUTE($Z220,\"{\",CHAR(160),HW$1)),FIND(CHAR(160),SUBSTITUTE($Z220,\"}\",CHAR(160),HW$1))-FIND(CHAR(160),SUBSTITUTE($Z220,\"{\",CHAR(160),HW$1))+1),\"\")","v":""},{"$f":"IFERROR(MID($Z220,FIND(CHAR(160),SUBSTITUTE($Z220,\"{\",CHAR(160),HX$1)),FIND(CHAR(160),SUBSTITUTE($Z220,\"}\",CHAR(160),HX$1))-FIND(CHAR(160),SUBSTITUTE($Z220,\"{\",CHAR(160),HX$1))+1),\"\")","v":""},{"$f":"IFERROR(MID($Z220,FIND(CHAR(160),SUBSTITUTE($Z220,\"{\",CHAR(160),HY$1)),FIND(CHAR(160),SUBSTITUTE($Z220,\"}\",CHAR(160),HY$1))-FIND(CHAR(160),SUBSTITUTE($Z220,\"{\",CHAR(160),HY$1))+1),\"\")","v":""},{"$f":"IFERROR(MID($Z220,FIND(CHAR(160),SUBSTITUTE($Z220,\"{\",CHAR(160),HZ$1)),FIND(CHAR(160),SUBSTITUTE($Z220,\"}\",CHAR(160),HZ$1))-FIND(CHAR(160),SUBSTITUTE($Z220,\"{\",CHAR(160),HZ$1))+1),\"\")","v":""},{"$f":"IFERROR(MID($Z220,FIND(CHAR(160),SUBSTITUTE($Z220,\"{\",CHAR(160),IA$1)),FIND(CHAR(160),SUBSTITUTE($Z220,\"}\",CHAR(160),IA$1))-FIND(CHAR(160),SUBSTITUTE($Z220,\"{\",CHAR(160),IA$1))+1),\"\")","v":""},{"$f":"IFERROR(MID($Z220,FIND(CHAR(160),SUBSTITUTE($Z220,\"{\",CHAR(160),IB$1)),FIND(CHAR(160),SUBSTITUTE($Z220,\"}\",CHAR(160),IB$1))-FIND(CHAR(160),SUBSTITUTE($Z220,\"{\",CHAR(160),IB$1))+1),\"\")","v":""},{"$f":"IFERROR(MID($Z220,FIND(CHAR(160),SUBSTITUTE($Z220,\"{\",CHAR(160),IC$1)),FIND(CHAR(160),SUBSTITUTE($Z220,\"}\",CHAR(160),IC$1))-FIND(CHAR(160),SUBSTITUTE($Z220,\"{\",CHAR(160),IC$1))+1),\"\")","v":""},{"$f":"IFERROR(MID($Z220,FIND(CHAR(160),SUBSTITUTE($Z220,\"{\",CHAR(160),ID$1)),FIND(CHAR(160),SUBSTITUTE($Z220,\"}\",CHAR(160),ID$1))-FIND(CHAR(160),SUBSTITUTE($Z220,\"{\",CHAR(160),ID$1))+1),\"\")","v":""},{"$f":"IFERROR(MID($AA220,FIND(CHAR(160),SUBSTITUTE($AA220,\"{\",CHAR(160),IE$1)),FIND(CHAR(160),SUBSTITUTE($AA220,\"}\",CHAR(160),IE$1))-FIND(CHAR(160),SUBSTITUTE($AA220,\"{\",CHAR(160),IE$1))+1),\"\")","v":""},{"$f":"IFERROR(MID($AA220,FIND(CHAR(160),SUBSTITUTE($AA220,\"{\",CHAR(160),IF$1)),FIND(CHAR(160),SUBSTITUTE($AA220,\"}\",CHAR(160),IF$1))-FIND(CHAR(160),SUBSTITUTE($AA220,\"{\",CHAR(160),IF$1))+1),\"\")","v":""},{"$f":"IFERROR(MID($AA220,FIND(CHAR(160),SUBSTITUTE($AA220,\"{\",CHAR(160),IG$1)),FIND(CHAR(160),SUBSTITUTE($AA220,\"}\",CHAR(160),IG$1))-FIND(CHAR(160),SUBSTITUTE($AA220,\"{\",CHAR(160),IG$1))+1),\"\")","v":""},{"$f":"IFERROR(MID($AA220,FIND(CHAR(160),SUBSTITUTE($AA220,\"{\",CHAR(160),IH$1)),FIND(CHAR(160),SUBSTITUTE($AA220,\"}\",CHAR(160),IH$1))-FIND(CHAR(160),SUBSTITUTE($AA220,\"{\",CHAR(160),IH$1))+1),\"\")","v":""},{"$f":"IFERROR(MID($AA220,FIND(CHAR(160),SUBSTITUTE($AA220,\"{\",CHAR(160),II$1)),FIND(CHAR(160),SUBSTITUTE($AA220,\"}\",CHAR(160),II$1))-FIND(CHAR(160),SUBSTITUTE($AA220,\"{\",CHAR(160),II$1))+1),\"\")","v":""},{"$f":"IFERROR(MID($AA220,FIND(CHAR(160),SUBSTITUTE($AA220,\"{\",CHAR(160),IJ$1)),FIND(CHAR(160),SUBSTITUTE($AA220,\"}\",CHAR(160),IJ$1))-FIND(CHAR(160),SUBSTITUTE($AA220,\"{\",CHAR(160),IJ$1))+1),\"\")","v":""},{"$f":"IFERROR(MID($AA220,FIND(CHAR(160),SUBSTITUTE($AA220,\"{\",CHAR(160),IK$1)),FIND(CHAR(160),SUBSTITUTE($AA220,\"}\",CHAR(160),IK$1))-FIND(CHAR(160),SUBSTITUTE($AA220,\"{\",CHAR(160),IK$1))+1),\"\")","v":""},{"$f":"IFERROR(MID($AA220,FIND(CHAR(160),SUBSTITUTE($AA220,\"{\",CHAR(160),IL$1)),FIND(CHAR(160),SUBSTITUTE($AA220,\"}\",CHAR(160),IL$1))-FIND(CHAR(160),SUBSTITUTE($AA220,\"{\",CHAR(160),IL$1))+1),\"\")","v":""},{"$f":"IFERROR(MID($AA220,FIND(CHAR(160),SUBSTITUTE($AA220,\"{\",CHAR(160),IM$1)),FIND(CHAR(160),SUBSTITUTE($AA220,\"}\",CHAR(160),IM$1))-FIND(CHAR(160),SUBSTITUTE($AA220,\"{\",CHAR(160),IM$1))+1),\"\")","v":""},{"$f":"IFERROR(MID($AA220,FIND(CHAR(160),SUBSTITUTE($AA220,\"{\",CHAR(160),IN$1)),FIND(CHAR(160),SUBSTITUTE($AA220,\"}\",CHAR(160),IN$1))-FIND(CHAR(160),SUBSTITUTE($AA220,\"{\",CHAR(160),IN$1))+1),\"\")","v":""},{"$f":"IFERROR(MID($AB220,FIND(CHAR(160),SUBSTITUTE($AB220,\"{\",CHAR(160),IO$1)),FIND(CHAR(160),SUBSTITUTE($AB220,\"}\",CHAR(160),IO$1))-FIND(CHAR(160),SUBSTITUTE($AB220,\"{\",CHAR(160),IO$1))+1),\"\")","v":""},{"$f":"IFERROR(MID($AB220,FIND(CHAR(160),SUBSTITUTE($AB220,\"{\",CHAR(160),IP$1)),FIND(CHAR(160),SUBSTITUTE($AB220,\"}\",CHAR(160),IP$1))-FIND(CHAR(160),SUBSTITUTE($AB220,\"{\",CHAR(160),IP$1))+1),\"\")","v":""},{"$f":"IFERROR(MID($AB220,FIND(CHAR(160),SUBSTITUTE($AB220,\"{\",CHAR(160),IQ$1)),FIND(CHAR(160),SUBSTITUTE($AB220,\"}\",CHAR(160),IQ$1))-FIND(CHAR(160),SUBSTITUTE($AB220,\"{\",CHAR(160),IQ$1))+1),\"\")","v":""},{"$f":"IFERROR(MID($AB220,FIND(CHAR(160),SUBSTITUTE($AB220,\"{\",CHAR(160),IR$1)),FIND(CHAR(160),SUBSTITUTE($AB220,\"}\",CHAR(160),IR$1))-FIND(CHAR(160),SUBSTITUTE($AB220,\"{\",CHAR(160),IR$1))+1),\"\")","v":""},{"$f":"IFERROR(MID($AB220,FIND(CHAR(160),SUBSTITUTE($AB220,\"{\",CHAR(160),IS$1)),FIND(CHAR(160),SUBSTITUTE($AB220,\"}\",CHAR(160),IS$1))-FIND(CHAR(160),SUBSTITUTE($AB220,\"{\",CHAR(160),IS$1))+1),\"\")","v":""},{"$f":"IFERROR(MID($AB220,FIND(CHAR(160),SUBSTITUTE($AB220,\"{\",CHAR(160),IT$1)),FIND(CHAR(160),SUBSTITUTE($AB220,\"}\",CHAR(160),IT$1))-FIND(CHAR(160),SUBSTITUTE($AB220,\"{\",CHAR(160),IT$1))+1),\"\")","v":""},{"$f":"IFERROR(MID($AB220,FIND(CHAR(160),SUBSTITUTE($AB220,\"{\",CHAR(160),IU$1)),FIND(CHAR(160),SUBSTITUTE($AB220,\"}\",CHAR(160),IU$1))-FIND(CHAR(160),SUBSTITUTE($AB220,\"{\",CHAR(160),IU$1))+1),\"\")","v":""},{"$f":"IFERROR(MID($AB220,FIND(CHAR(160),SUBSTITUTE($AB220,\"{\",CHAR(160),IV$1)),FIND(CHAR(160),SUBSTITUTE($AB220,\"}\",CHAR(160),IV$1))-FIND(CHAR(160),SUBSTITUTE($AB220,\"{\",CHAR(160),IV$1))+1),\"\")","v":""},{"$f":"IFERROR(MID($AB220,FIND(CHAR(160),SUBSTITUTE($AB220,\"{\",CHAR(160),IW$1)),FIND(CHAR(160),SUBSTITUTE($AB220,\"}\",CHAR(160),IW$1))-FIND(CHAR(160),SUBSTITUTE($AB220,\"{\",CHAR(160),IW$1))+1),\"\")","v":""},{"$f":"IFERROR(MID($AB220,FIND(CHAR(160),SUBSTITUTE($AB220,\"{\",CHAR(160),IX$1)),FIND(CHAR(160),SUBSTITUTE($AB220,\"}\",CHAR(160),IX$1))-FIND(CHAR(160),SUBSTITUTE($AB220,\"{\",CHAR(160),IX$1))+1),\"\")","v":""},null,{"$f":"10-COUNTIF(DU220:ED220,\"\")","v":1}]
["Low Income Direct Install - Electric","Low Flow Wall Mounted Shower Head Direct Install","LILWSH","2021-07-01","2022-06-30","Per Measure",26.5,0,"Per Measure",26.5,0,"2021-07-01","2022-06-30","Calculated","{Measure:Quantity}*if({Measure:Quantity}=0,0,123)",null,null,null,null,null,"{Measure:Quantity}*if({Measure:Quantity}=0,0,0.012)","{Measure:Quantity}*if({Measure:Quantity}=0,0,0.010)",null,null,null,null,null,"if({Measure:Quantity}=0,0,{Measure:Quantity}*3153)","2021-07-01","2022-06-30",10,8.0000000000000002E-3,5.0000000000000001E-3,0.35499999999999998,0.311,0.18099999999999999,0.153,0.88,1,1,0,0,null,{"$f":"DU221","v":"{Measure:Quantity}"},1,{"$f":"DV221","v":""},1,{"$f":"DW221","v":""},null,{"$f":"DX221","v":""},null,{"$f":"DY221","v":""},null,{"$f":"DZ221","v":""},null,{"$f":"EA221","v":""},null,{"$f":"EB221","v":""},null,{"$f":"EC221","v":""},null,"LIDI Bundle Qty",0,{"$f":"AS221*IF(AS221=0,0,123)","v":123},0,0,0,0,0,{"$f":"AS221*IF(AS221=0,0,0.012)","v":1.2E-2},{"$f":"AS221*IF(AS221=0,0,0.01)","v":0.01},0,0,0,0,0,{"$f":"IF(AS221=0,0,AS221*3153)","v":3153},null,"Res","Default DR",{"$f":"Benefits(BL221,BR221,BS221,BT221,BU221,BV221,BW221,BX221,BY221,BZ221,AE221,AH221,AI221,AJ221,AK221,AL221,AM221,AN221,AO221,AP221,CA221,CB221)","v":106.94270202354217},39.906340814102037,0,0,0,0,0,187.20144922985645,0,{"$f":"SUMPRODUCT(CC221:CK221,--(CC221:CK221>0))","v":334.05049206750067},{"$f":"-SUMPRODUCT(CC221:CK221,--(CC221:CK221<0))","v":0},null,{"$f":"26.5","v":26.5},null,null,{"$f":"CM221+CO221","v":26.5},{"$f":"IF(NetOrGross=\"Net\",(1-AO221+AP221),1)","v":1},{"$f":"(SUMPRODUCT(CC221:CJ221,--(CC221:CJ221>0))+CN221)*CS221/((-SUMPRODUCT(CC221:CJ221,--(CC221:CJ221<0))+MAX(CO221,CV221)+CP221+CQ221)*CS221+IF(FRIncentives=\"Yes\",CV221*(1-CS221),0))","v":12.605678945943421},1,{"$f":"26.5","v":26.5},null,"Electric","y",{"$f":"CL221-CR221","v":307.55049206750067},{"$f":"IF(F221=\"Manual Entry\",\"Manual\",IF(G221=\"\",0,\"X=\"&SUBSTITUTE(SUBSTITUTE(SUBSTITUTE(SUBSTITUTE(SUBSTITUTE(SUBSTITUTE(SUBSTITUTE(SUBSTITUTE(SUBSTITUTE(SUBSTITUTE(SUBSTITUTE(SUBSTITUTE(G221,$ED221,$ED$2&ROW($ED221)),$EC221,$EC$2&ROW($EC221)),$EB221,$EB$2&ROW($EB221)),$EA221,$EA$2&ROW($EA221)),$DZ221,$DZ$2&ROW($DZ221)),$DY221,$DY$2&ROW($DY221)),$DX221,$DX$2&ROW($DX221)),$DW221,$DW$2&ROW($DW221)),$DV221,$DV$2&ROW($DV221)),$DU221,$DU$2&ROW($DU221)),$DT221,$DT$2&ROW($DT221)),$DS221,$DS$2&ROW($DS221))))","v":"X=26.5"},{"$f":"IF(I221=\"Manual Entry\",\"Manual\",IF(J221=\"\",0,\"X=\"&SUBSTITUTE(SUBSTITUTE(SUBSTITUTE(SUBSTITUTE(SUBSTITUTE(SUBSTITUTE(SUBSTITUTE(SUBSTITUTE(SUBSTITUTE(SUBSTITUTE(SUBSTITUTE(SUBSTITUTE(J221,$ED221,$ED$2&ROW($ED221)),$EC221,$EC$2&ROW($EC221)),$EB221,$EB$2&ROW($EB221)),$EA221,$EA$2&ROW($EA221)),$DZ221,$DZ$2&ROW($DZ221)),$DY221,$DY$2&ROW($DY221)),$DX221,$DX$2&ROW($DX221)),$DW221,$DW$2&ROW($DW221)),$DV221,$DV$2&ROW($DV221)),$DU221,$DU$2&ROW($DU221)),$DT221,$DT$2&ROW($DT221)),$DS221,$DS$2&ROW($DS221))))","v":"X=26.5"},{"$f":"IF(O221=\"\",0,\"X=\"&SUBSTITUTE(SUBSTITUTE(SUBSTITUTE(SUBSTITUTE(SUBSTITUTE(SUBSTITUTE(SUBSTITUTE(SUBSTITUTE(SUBSTITUTE(SUBSTITUTE(SUBSTITUTE(SUBSTITUTE(O221,$ED221,$ED$2&ROW($ED221)),$EC221,$EC$2&ROW($EC221)),$EB221,$EB$2&ROW($EB221)),$EA221,$EA$2&ROW($EA221)),$DZ221,$DZ$2&ROW($DZ221)),$DY221,$DY$2&ROW($DY221)),$DX221,$DX$2&ROW($DX221)),$DW221,$DW$2&ROW($DW221)),$DV221,$DV$2&ROW($DV221)),$DU221,$DU$2&ROW($DU221)),$DT221,$DT$2&ROW($DT221)),$DS221,$DS$2&ROW($DS221)))","v":"X=AS221*if(AS221=0,0,123)"},{"$f":"IF(P221=\"\",0,\"X=\"&SUBSTITUTE(SUBSTITUTE(SUBSTITUTE(SUBSTITUTE(SUBSTITUTE(SUBSTITUTE(SUBSTITUTE(SUBSTITUTE(SUBSTITUTE(SUBSTITUTE(SUBSTITUTE(SUBSTITUTE(P221,$ED221,$ED$2&ROW($ED221)),$EC221,$EC$2&ROW($EC221)),$EB221,$EB$2&ROW($EB221)),$EA221,$EA$2&ROW($EA221)),$DZ221,$DZ$2&ROW($DZ221)),$DY221,$DY$2&ROW($DY221)),$DX221,$DX$2&ROW($DX221)),$DW221,$DW$2&ROW($DW221)),$DV221,$DV$2&ROW($DV221)),$DU221,$DU$2&ROW($DU221)),$DT221,$DT$2&ROW($DT221)),$DS221,$DS$2&ROW($DS221)))","v":0},{"$f":"IF(Q221=\"\",0,\"X=\"&SUBSTITUTE(SUBSTITUTE(SUBSTITUTE(SUBSTITUTE(SUBSTITUTE(SUBSTITUTE(SUBSTITUTE(SUBSTITUTE(SUBSTITUTE(SUBSTITUTE(SUBSTITUTE(SUBSTITUTE(Q221,$ED221,$ED$2&ROW($ED221)),$EC221,$EC$2&ROW($EC221)),$EB221,$EB$2&ROW($EB221)),$EA221,$EA$2&ROW($EA221)),$DZ221,$DZ$2&ROW($DZ221)),$DY221,$DY$2&ROW($DY221)),$DX221,$DX$2&ROW($DX221)),$DW221,$DW$2&ROW($DW221)),$DV221,$DV$2&ROW($DV221)),$DU221,$DU$2&ROW($DU221)),$DT221,$DT$2&ROW($DT221)),$DS221,$DS$2&ROW($DS221)))","v":0},{"$f":"IF(R221=\"\",0,\"X=\"&SUBSTITUTE(SUBSTITUTE(SUBSTITUTE(SUBSTITUTE(SUBSTITUTE(SUBSTITUTE(SUBSTITUTE(SUBSTITUTE(SUBSTITUTE(SUBSTITUTE(SUBSTITUTE(SUBSTITUTE(R221,$ED221,$ED$2&ROW($ED221)),$EC221,$EC$2&ROW($EC221)),$EB221,$EB$2&ROW($EB221)),$EA221,$EA$2&ROW($EA221)),$DZ221,$DZ$2&ROW($DZ221)),$DY221,$DY$2&ROW($DY221)),$DX221,$DX$2&ROW($DX221)),$DW221,$DW$2&ROW($DW221)),$DV221,$DV$2&ROW($DV221)),$DU221,$DU$2&ROW($DU221)),$DT221,$DT$2&ROW($DT221)),$DS221,$DS$2&ROW($DS221)))","v":0},{"$f":"IF(S221=\"\",0,\"X=\"&SUBSTITUTE(SUBSTITUTE(SUBSTITUTE(SUBSTITUTE(SUBSTITUTE(SUBSTITUTE(SUBSTITUTE(SUBSTITUTE(SUBSTITUTE(SUBSTITUTE(SUBSTITUTE(SUBSTITUTE(S221,$ED221,$ED$2&ROW($ED221)),$EC221,$EC$2&ROW($EC221)),$EB221,$EB$2&ROW($EB221)),$EA221,$EA$2&ROW($EA221)),$DZ221,$DZ$2&ROW($DZ221)),$DY221,$DY$2&ROW($DY221)),$DX221,$DX$2&ROW($DX221)),$DW221,$DW$2&ROW($DW221)),$DV221,$DV$2&ROW($DV221)),$DU221,$DU$2&ROW($DU221)),$DT221,$DT$2&ROW($DT221)),$DS221,$DS$2&ROW($DS221)))","v":0},{"$f":"IF(T221=\"\",0,\"X=\"&SUBSTITUTE(SUBSTITUTE(SUBSTITUTE(SUBSTITUTE(SUBSTITUTE(SUBSTITUTE(SUBSTITUTE(SUBSTITUTE(SUBSTITUTE(SUBSTITUTE(SUBSTITUTE(SUBSTITUTE(T221,$ED221,$ED$2&ROW($ED221)),$EC221,$EC$2&ROW($EC221)),$EB221,$EB$2&ROW($EB221)),$EA221,$EA$2&ROW($EA221)),$DZ221,$DZ$2&ROW($DZ221)),$DY221,$DY$2&ROW($DY221)),$DX221,$DX$2&ROW($DX221)),$DW221,$DW$2&ROW($DW221)),$DV221,$DV$2&ROW($DV221)),$DU221,$DU$2&ROW($DU221)),$DT221,$DT$2&ROW($DT221)),$DS221,$DS$2&ROW($DS221)))","v":0},{"$f":"IF(U221=\"\",0,\"X=\"&SUBSTITUTE(SUBSTITUTE(SUBSTITUTE(SUBSTITUTE(SUBSTITUTE(SUBSTITUTE(SUBSTITUTE(SUBSTITUTE(SUBSTITUTE(SUBSTITUTE(SUBSTITUTE(SUBSTITUTE(U221,$ED221,$ED$2&ROW($ED221)),$EC221,$EC$2&ROW($EC221)),$EB221,$EB$2&ROW($EB221)),$EA221,$EA$2&ROW($EA221)),$DZ221,$DZ$2&ROW($DZ221)),$DY221,$DY$2&ROW($DY221)),$DX221,$DX$2&ROW($DX221)),$DW221,$DW$2&ROW($DW221)),$DV221,$DV$2&ROW($DV221)),$DU221,$DU$2&ROW($DU221)),$DT221,$DT$2&ROW($DT221)),$DS221,$DS$2&ROW($DS221)))","v":"X=AS221*if(AS221=0,0,0.012)"},{"$f":"IF(V221=\"\",0,\"X=\"&SUBSTITUTE(SUBSTITUTE(SUBSTITUTE(SUBSTITUTE(SUBSTITUTE(SUBSTITUTE(SUBSTITUTE(SUBSTITUTE(SUBSTITUTE(SUBSTITUTE(SUBSTITUTE(SUBSTITUTE(V221,$ED221,$ED$2&ROW($ED221)),$EC221,$EC$2&ROW($EC221)),$EB221,$EB$2&ROW($EB221)),$EA221,$EA$2&ROW($EA221)),$DZ221,$DZ$2&ROW($DZ221)),$DY221,$DY$2&ROW($DY221)),$DX221,$DX$2&ROW($DX221)),$DW221,$DW$2&ROW($DW221)),$DV221,$DV$2&ROW($DV221)),$DU221,$DU$2&ROW($DU221)),$DT221,$DT$2&ROW($DT221)),$DS221,$DS$2&ROW($DS221)))","v":"X=AS221*if(AS221=0,0,0.010)"},{"$f":"IF(W221=\"\",0,\"X=\"&SUBSTITUTE(SUBSTITUTE(SUBSTITUTE(SUBSTITUTE(SUBSTITUTE(SUBSTITUTE(SUBSTITUTE(SUBSTITUTE(SUBSTITUTE(SUBSTITUTE(SUBSTITUTE(SUBSTITUTE(W221,$ED221,$ED$2&ROW($ED221)),$EC221,$EC$2&ROW($EC221)),$EB221,$EB$2&ROW($EB221)),$EA221,$EA$2&ROW($EA221)),$DZ221,$DZ$2&ROW($DZ221)),$DY221,$DY$2&ROW($DY221)),$DX221,$DX$2&ROW($DX221)),$DW221,$DW$2&ROW($DW221)),$DV221,$DV$2&ROW($DV221)),$DU221,$DU$2&ROW($DU221)),$DT221,$DT$2&ROW($DT221)),$DS221,$DS$2&ROW($DS221)))","v":0},{"$f":"IF(X221=\"\",0,\"X=\"&SUBSTITUTE(SUBSTITUTE(SUBSTITUTE(SUBSTITUTE(SUBSTITUTE(SUBSTITUTE(SUBSTITUTE(SUBSTITUTE(SUBSTITUTE(SUBSTITUTE(SUBSTITUTE(SUBSTITUTE(X221,$ED221,$ED$2&ROW($ED221)),$EC221,$EC$2&ROW($EC221)),$EB221,$EB$2&ROW($EB221)),$EA221,$EA$2&ROW($EA221)),$DZ221,$DZ$2&ROW($DZ221)),$DY221,$DY$2&ROW($DY221)),$DX221,$DX$2&ROW($DX221)),$DW221,$DW$2&ROW($DW221)),$DV221,$DV$2&ROW($DV221)),$DU221,$DU$2&ROW($DU221)),$DT221,$DT$2&ROW($DT221)),$DS221,$DS$2&ROW($DS221)))","v":0},{"$f":"IF(Y221=\"\",0,\"X=\"&SUBSTITUTE(SUBSTITUTE(SUBSTITUTE(SUBSTITUTE(SUBSTITUTE(SUBSTITUTE(SUBSTITUTE(SUBSTITUTE(SUBSTITUTE(SUBSTITUTE(SUBSTITUTE(SUBSTITUTE(Y221,$ED221,$ED$2&ROW($ED221)),$EC221,$EC$2&ROW($EC221)),$EB221,$EB$2&ROW($EB221)),$EA221,$EA$2&ROW($EA221)),$DZ221,$DZ$2&ROW($DZ221)),$DY221,$DY$2&ROW($DY221)),$DX221,$DX$2&ROW($DX221)),$DW221,$DW$2&ROW($DW221)),$DV221,$DV$2&ROW($DV221)),$DU221,$DU$2&ROW($DU221)),$DT221,$DT$2&ROW($DT221)),$DS221,$DS$2&ROW($DS221)))","v":0},{"$f":"IF(Z221=\"\",0,\"X=\"&SUBSTITUTE(SUBSTITUTE(SUBSTITUTE(SUBSTITUTE(SUBSTITUTE(SUBSTITUTE(SUBSTITUTE(SUBSTITUTE(SUBSTITUTE(SUBSTITUTE(SUBSTITUTE(SUBSTITUTE(Z221,$ED221,$ED$2&ROW($ED221)),$EC221,$EC$2&ROW($EC221)),$EB221,$EB$2&ROW($EB221)),$EA221,$EA$2&ROW($EA221)),$DZ221,$DZ$2&ROW($DZ221)),$DY221,$DY$2&ROW($DY221)),$DX221,$DX$2&ROW($DX221)),$DW221,$DW$2&ROW($DW221)),$DV221,$DV$2&ROW($DV221)),$DU221,$DU$2&ROW($DU221)),$DT221,$DT$2&ROW($DT221)),$DS221,$DS$2&ROW($DS221)))","v":0},{"$f":"IF(AA221=\"\",0,\"X=\"&SUBSTITUTE(SUBSTITUTE(SUBSTITUTE(SUBSTITUTE(SUBSTITUTE(SUBSTITUTE(SUBSTITUTE(SUBSTITUTE(SUBSTITUTE(SUBSTITUTE(SUBSTITUTE(SUBSTITUTE(AA221,$ED221,$ED$2&ROW($ED221)),$EC221,$EC$2&ROW($EC221)),$EB221,$EB$2&ROW($EB221)),$EA221,$EA$2&ROW($EA221)),$DZ221,$DZ$2&ROW($DZ221)),$DY221,$DY$2&ROW($DY221)),$DX221,$DX$2&ROW($DX221)),$DW221,$DW$2&ROW($DW221)),$DV221,$DV$2&ROW($DV221)),$DU221,$DU$2&ROW($DU221)),$DT221,$DT$2&ROW($DT221)),$DS221,$DS$2&ROW($DS221)))","v":0},{"$f":"IF(AB221=\"\",0,\"X=\"&SUBSTITUTE(SUBSTITUTE(SUBSTITUTE(SUBSTITUTE(SUBSTITUTE(SUBSTITUTE(SUBSTITUTE(SUBSTITUTE(SUBSTITUTE(SUBSTITUTE(SUBSTITUTE(SUBSTITUTE(AB221,$ED221,$ED$2&ROW($ED221)),$EC221,$EC$2&ROW($EC221)),$EB221,$EB$2&ROW($EB221)),$EA221,$EA$2&ROW($EA221)),$DZ221,$DZ$2&ROW($DZ221)),$DY221,$DY$2&ROW($DY221)),$DX221,$DX$2&ROW($DX221)),$DW221,$DW$2&ROW($DW221)),$DV221,$DV$2&ROW($DV221)),$DU221,$DU$2&ROW($DU221)),$DT221,$DT$2&ROW($DT221)),$DS221,$DS$2&ROW($DS221)))","v":"X=if(AS221=0,0,AS221*3153)"},null,null,"{Factor:WinterCF}","{Factor:SummerCF}",{"$f":"IFERROR(INDEX($EG221:$IV221,MATCH(0,COUNTIF($DR221:DT221,$EG221:$IV221),0)),\"\")","v":"{Measure:Quantity}"},{"$f":"IFERROR(INDEX($EG221:$IV221,MATCH(0,COUNTIF($DR221:DU221,$EG221:$IV221),0)),\"\")","v":""},{"$f":"IFERROR(INDEX($EG221:$IV221,MATCH(0,COUNTIF($DR221:DV221,$EG221:$IV221),0)),\"\")","v":""},{"$f":"IFERROR(INDEX($EG221:$IV221,MATCH(0,COUNTIF($DR221:DW221,$EG221:$IV221),0)),\"\")","v":""},{"$f":"IFERROR(INDEX($EG221:$IV221,MATCH(0,COUNTIF($DR221:DX221,$EG221:$IV221),0)),\"\")","v":""},{"$f":"IFERROR(INDEX($EG221:$IV221,MATCH(0,COUNTIF($DR221:DY221,$EG221:$IV221),0)),\"\")","v":""},{"$f":"IFERROR(INDEX($EG221:$IV221,MATCH(0,COUNTIF($DR221:DZ221,$EG221:$IV221),0)),\"\")","v":""},{"$f":"IFERROR(INDEX($EG221:$IV221,MATCH(0,COUNTIF($DR221:EA221,$EG221:$IV221),0)),\"\")","v":""},{"$f":"IFERROR(INDEX($EG221:$IV221,MATCH(0,COUNTIF($DR221:EB221,$EG221:$IV221),0)),\"\")","v":""},{"$f":"IFERROR(INDEX($EG221:$IV221,MATCH(0,COUNTIF($DR221:EC221,$EG221:$IV221),0)),\"\")","v":""},null,null,{"$f":"IFERROR(MID($G221,FIND(CHAR(160),SUBSTITUTE($G221,\"{\",CHAR(160),EG$1)),FIND(CHAR(160),SUBSTITUTE($G221,\"}\",CHAR(160),EG$1))-FIND(CHAR(160),SUBSTITUTE($G221,\"{\",CHAR(160),EG$1))+1),\"\")","v":""},{"$f":"IFERROR(MID($G221,FIND(CHAR(160),SUBSTITUTE($G221,\"{\",CHAR(160),EH$1)),FIND(CHAR(160),SUBSTITUTE($G221,\"}\",CHAR(160),EH$1))-FIND(CHAR(160),SUBSTITUTE($G221,\"{\",CHAR(160),EH$1))+1),\"\")","v":""},{"$f":"IFERROR(MID($G221,FIND(CHAR(160),SUBSTITUTE($G221,\"{\",CHAR(160),EI$1)),FIND(CHAR(160),SUBSTITUTE($G221,\"}\",CHAR(160),EI$1))-FIND(CHAR(160),SUBSTITUTE($G221,\"{\",CHAR(160),EI$1))+1),\"\")","v":""},{"$f":"IFERROR(MID($G221,FIND(CHAR(160),SUBSTITUTE($G221,\"{\",CHAR(160),EJ$1)),FIND(CHAR(160),SUBSTITUTE($G221,\"}\",CHAR(160),EJ$1))-FIND(CHAR(160),SUBSTITUTE($G221,\"{\",CHAR(160),EJ$1))+1),\"\")","v":""},{"$f":"IFERROR(MID($G221,FIND(CHAR(160),SUBSTITUTE($G221,\"{\",CHAR(160),EK$1)),FIND(CHAR(160),SUBSTITUTE($G221,\"}\",CHAR(160),EK$1))-FIND(CHAR(160),SUBSTITUTE($G221,\"{\",CHAR(160),EK$1))+1),\"\")","v":""},{"$f":"IFERROR(MID($G221,FIND(CHAR(160),SUBSTITUTE($G221,\"{\",CHAR(160),EL$1)),FIND(CHAR(160),SUBSTITUTE($G221,\"}\",CHAR(160),EL$1))-FIND(CHAR(160),SUBSTITUTE($G221,\"{\",CHAR(160),EL$1))+1),\"\")","v":""},{"$f":"IFERROR(MID($G221,FIND(CHAR(160),SUBSTITUTE($G221,\"{\",CHAR(160),EM$1)),FIND(CHAR(160),SUBSTITUTE($G221,\"}\",CHAR(160),EM$1))-FIND(CHAR(160),SUBSTITUTE($G221,\"{\",CHAR(160),EM$1))+1),\"\")","v":""},{"$f":"IFERROR(MID($G221,FIND(CHAR(160),SUBSTITUTE($G221,\"{\",CHAR(160),EN$1)),FIND(CHAR(160),SUBSTITUTE($G221,\"}\",CHAR(160),EN$1))-FIND(CHAR(160),SUBSTITUTE($G221,\"{\",CHAR(160),EN$1))+1),\"\")","v":""},{"$f":"IFERROR(MID($G221,FIND(CHAR(160),SUBSTITUTE($G221,\"{\",CHAR(160),EO$1)),FIND(CHAR(160),SUBSTITUTE($G221,\"}\",CHAR(160),EO$1))-FIND(CHAR(160),SUBSTITUTE($G221,\"{\",CHAR(160),EO$1))+1),\"\")","v":""},{"$f":"IFERROR(MID($G221,FIND(CHAR(160),SUBSTITUTE($G221,\"{\",CHAR(160),EP$1)),FIND(CHAR(160),SUBSTITUTE($G221,\"}\",CHAR(160),EP$1))-FIND(CHAR(160),SUBSTITUTE($G221,\"{\",CHAR(160),EP$1))+1),\"\")","v":""},{"$f":"IFERROR(MID($J221,FIND(CHAR(160),SUBSTITUTE($J221,\"{\",CHAR(160),EQ$1)),FIND(CHAR(160),SUBSTITUTE($J221,\"}\",CHAR(160),EQ$1))-FIND(CHAR(160),SUBSTITUTE($J221,\"{\",CHAR(160),EQ$1))+1),\"\")","v":""},{"$f":"IFERROR(MID($J221,FIND(CHAR(160),SUBSTITUTE($J221,\"{\",CHAR(160),ER$1)),FIND(CHAR(160),SUBSTITUTE($J221,\"}\",CHAR(160),ER$1))-FIND(CHAR(160),SUBSTITUTE($J221,\"{\",CHAR(160),ER$1))+1),\"\")","v":""},{"$f":"IFERROR(MID($J221,FIND(CHAR(160),SUBSTITUTE($J221,\"{\",CHAR(160),ES$1)),FIND(CHAR(160),SUBSTITUTE($J221,\"}\",CHAR(160),ES$1))-FIND(CHAR(160),SUBSTITUTE($J221,\"{\",CHAR(160),ES$1))+1),\"\")","v":""},{"$f":"IFERROR(MID($J221,FIND(CHAR(160),SUBSTITUTE($J221,\"{\",CHAR(160),ET$1)),FIND(CHAR(160),SUBSTITUTE($J221,\"}\",CHAR(160),ET$1))-FIND(CHAR(160),SUBSTITUTE($J221,\"{\",CHAR(160),ET$1))+1),\"\")","v":""},{"$f":"IFERROR(MID($J221,FIND(CHAR(160),SUBSTITUTE($J221,\"{\",CHAR(160),EU$1)),FIND(CHAR(160),SUBSTITUTE($J221,\"}\",CHAR(160),EU$1))-FIND(CHAR(160),SUBSTITUTE($J221,\"{\",CHAR(160),EU$1))+1),\"\")","v":""},{"$f":"IFERROR(MID($J221,FIND(CHAR(160),SUBSTITUTE($J221,\"{\",CHAR(160),EV$1)),FIND(CHAR(160),SUBSTITUTE($J221,\"}\",CHAR(160),EV$1))-FIND(CHAR(160),SUBSTITUTE($J221,\"{\",CHAR(160),EV$1))+1),\"\")","v":""},{"$f":"IFERROR(MID($J221,FIND(CHAR(160),SUBSTITUTE($J221,\"{\",CHAR(160),EW$1)),FIND(CHAR(160),SUBSTITUTE($J221,\"}\",CHAR(160),EW$1))-FIND(CHAR(160),SUBSTITUTE($J221,\"{\",CHAR(160),EW$1))+1),\"\")","v":""},{"$f":"IFERROR(MID($J221,FIND(CHAR(160),SUBSTITUTE($J221,\"{\",CHAR(160),EX$1)),FIND(CHAR(160),SUBSTITUTE($J221,\"}\",CHAR(160),EX$1))-FIND(CHAR(160),SUBSTITUTE($J221,\"{\",CHAR(160),EX$1))+1),\"\")","v":""},{"$f":"IFERROR(MID($J221,FIND(CHAR(160),SUBSTITUTE($J221,\"{\",CHAR(160),EY$1)),FIND(CHAR(160),SUBSTITUTE($J221,\"}\",CHAR(160),EY$1))-FIND(CHAR(160),SUBSTITUTE($J221,\"{\",CHAR(160),EY$1))+1),\"\")","v":""},{"$f":"IFERROR(MID($J221,FIND(CHAR(160),SUBSTITUTE($J221,\"{\",CHAR(160),EZ$1)),FIND(CHAR(160),SUBSTITUTE($J221,\"}\",CHAR(160),EZ$1))-FIND(CHAR(160),SUBSTITUTE($J221,\"{\",CHAR(160),EZ$1))+1),\"\")","v":""},{"$f":"IFERROR(MID($J221,FIND(CHAR(160),SUBSTITUTE($J221,\"{\",CHAR(160),FA$1)),FIND(CHAR(160),SUBSTITUTE($J221,\"}\",CHAR(160),FA$1))-FIND(CHAR(160),SUBSTITUTE($J221,\"{\",CHAR(160),FA$1))+1),\"\")","v":""},{"$f":"IFERROR(MID($J221,FIND(CHAR(160),SUBSTITUTE($J221,\"{\",CHAR(160),FB$1)),FIND(CHAR(160),SUBSTITUTE($J221,\"}\",CHAR(160),FB$1))-FIND(CHAR(160),SUBSTITUTE($J221,\"{\",CHAR(160),FB$1))+1),\"\")","v":""},{"$f":"IFERROR(MID($O221,FIND(CHAR(160),SUBSTITUTE($O221,\"{\",CHAR(160),FC$1)),FIND(CHAR(160),SUBSTITUTE($O221,\"}\",CHAR(160),FC$1))-FIND(CHAR(160),SUBSTITUTE($O221,\"{\",CHAR(160),FC$1))+1),\"\")","v":""},{"$f":"IFERROR(MID($O221,FIND(CHAR(160),SUBSTITUTE($O221,\"{\",CHAR(160),FD$1)),FIND(CHAR(160),SUBSTITUTE($O221,\"}\",CHAR(160),FD$1))-FIND(CHAR(160),SUBSTITUTE($O221,\"{\",CHAR(160),FD$1))+1),\"\")","v":""},{"$f":"IFERROR(MID($O221,FIND(CHAR(160),SUBSTITUTE($O221,\"{\",CHAR(160),FE$1)),FIND(CHAR(160),SUBSTITUTE($O221,\"}\",CHAR(160),FE$1))-FIND(CHAR(160),SUBSTITUTE($O221,\"{\",CHAR(160),FE$1))+1),\"\")","v":""},{"$f":"IFERROR(MID($O221,FIND(CHAR(160),SUBSTITUTE($O221,\"{\",CHAR(160),FF$1)),FIND(CHAR(160),SUBSTITUTE($O221,\"}\",CHAR(160),FF$1))-FIND(CHAR(160),SUBSTITUTE($O221,\"{\",CHAR(160),FF$1))+1),\"\")","v":""},{"$f":"IFERROR(MID($O221,FIND(CHAR(160),SUBSTITUTE($O221,\"{\",CHAR(160),FG$1)),FIND(CHAR(160),SUBSTITUTE($O221,\"}\",CHAR(160),FG$1))-FIND(CHAR(160),SUBSTITUTE($O221,\"{\",CHAR(160),FG$1))+1),\"\")","v":""},{"$f":"IFERROR(MID($O221,FIND(CHAR(160),SUBSTITUTE($O221,\"{\",CHAR(160),FH$1)),FIND(CHAR(160),SUBSTITUTE($O221,\"}\",CHAR(160),FH$1))-FIND(CHAR(160),SUBSTITUTE($O221,\"{\",CHAR(160),FH$1))+1),\"\")","v":""},{"$f":"IFERROR(MID($O221,FIND(CHAR(160),SUBSTITUTE($O221,\"{\",CHAR(160),FI$1)),FIND(CHAR(160),SUBSTITUTE($O221,\"}\",CHAR(160),FI$1))-FIND(CHAR(160),SUBSTITUTE($O221,\"{\",CHAR(160),FI$1))+1),\"\")","v":""},{"$f":"IFERROR(MID($O221,FIND(CHAR(160),SUBSTITUTE($O221,\"{\",CHAR(160),FJ$1)),FIND(CHAR(160),SUBSTITUTE($O221,\"}\",CHAR(160),FJ$1))-FIND(CHAR(160),SUBSTITUTE($O221,\"{\",CHAR(160),FJ$1))+1),\"\")","v":""},{"$f":"IFERROR(MID($O221,FIND(CHAR(160),SUBSTITUTE($O221,\"{\",CHAR(160),FK$1)),FIND(CHAR(160),SUBSTITUTE($O221,\"}\",CHAR(160),FK$1))-FIND(CHAR(160),SUBSTITUTE($O221,\"{\",CHAR(160),FK$1))+1),\"\")","v":"{Measure:Quantity}"},{"$f":"IFERROR(MID($O221,FIND(CHAR(160),SUBSTITUTE($O221,\"{\",CHAR(160),FL$1)),FIND(CHAR(160),SUBSTITUTE($O221,\"}\",CHAR(160),FL$1))-FIND(CHAR(160),SUBSTITUTE($O221,\"{\",CHAR(160),FL$1))+1),\"\")","v":"{Measure:Quantity}"},{"$f":"IFERROR(MID($R221,FIND(CHAR(160),SUBSTITUTE($R221,\"{\",CHAR(160),FM$1)),FIND(CHAR(160),SUBSTITUTE($R221,\"}\",CHAR(160),FM$1))-FIND(CHAR(160),SUBSTITUTE($R221,\"{\",CHAR(160),FM$1))+1),\"\")","v":""},{"$f":"IFERROR(MID($R221,FIND(CHAR(160),SUBSTITUTE($R221,\"{\",CHAR(160),FN$1)),FIND(CHAR(160),SUBSTITUTE($R221,\"}\",CHAR(160),FN$1))-FIND(CHAR(160),SUBSTITUTE($R221,\"{\",CHAR(160),FN$1))+1),\"\")","v":""},{"$f":"IFERROR(MID($R221,FIND(CHAR(160),SUBSTITUTE($R221,\"{\",CHAR(160),FO$1)),FIND(CHAR(160),SUBSTITUTE($R221,\"}\",CHAR(160),FO$1))-FIND(CHAR(160),SUBSTITUTE($R221,\"{\",CHAR(160),FO$1))+1),\"\")","v":""},{"$f":"IFERROR(MID($R221,FIND(CHAR(160),SUBSTITUTE($R221,\"{\",CHAR(160),FP$1)),FIND(CHAR(160),SUBSTITUTE($R221,\"}\",CHAR(160),FP$1))-FIND(CHAR(160),SUBSTITUTE($R221,\"{\",CHAR(160),FP$1))+1),\"\")","v":""},{"$f":"IFERROR(MID($R221,FIND(CHAR(160),SUBSTITUTE($R221,\"{\",CHAR(160),FQ$1)),FIND(CHAR(160),SUBSTITUTE($R221,\"}\",CHAR(160),FQ$1))-FIND(CHAR(160),SUBSTITUTE($R221,\"{\",CHAR(160),FQ$1))+1),\"\")","v":""},{"$f":"IFERROR(MID($R221,FIND(CHAR(160),SUBSTITUTE($R221,\"{\",CHAR(160),FR$1)),FIND(CHAR(160),SUBSTITUTE($R221,\"}\",CHAR(160),FR$1))-FIND(CHAR(160),SUBSTITUTE($R221,\"{\",CHAR(160),FR$1))+1),\"\")","v":""},{"$f":"IFERROR(MID($R221,FIND(CHAR(160),SUBSTITUTE($R221,\"{\",CHAR(160),FS$1)),FIND(CHAR(160),SUBSTITUTE($R221,\"}\",CHAR(160),FS$1))-FIND(CHAR(160),SUBSTITUTE($R221,\"{\",CHAR(160),FS$1))+1),\"\")","v":""},{"$f":"IFERROR(MID($R221,FIND(CHAR(160),SUBSTITUTE($R221,\"{\",CHAR(160),FT$1)),FIND(CHAR(160),SUBSTITUTE($R221,\"}\",CHAR(160),FT$1))-FIND(CHAR(160),SUBSTITUTE($R221,\"{\",CHAR(160),FT$1))+1),\"\")","v":""},{"$f":"IFERROR(MID($R221,FIND(CHAR(160),SUBSTITUTE($R221,\"{\",CHAR(160),FU$1)),FIND(CHAR(160),SUBSTITUTE($R221,\"}\",CHAR(160),FU$1))-FIND(CHAR(160),SUBSTITUTE($R221,\"{\",CHAR(160),FU$1))+1),\"\")","v":""},{"$f":"IFERROR(MID($R221,FIND(CHAR(160),SUBSTITUTE($R221,\"{\",CHAR(160),FV$1)),FIND(CHAR(160),SUBSTITUTE($R221,\"}\",CHAR(160),FV$1))-FIND(CHAR(160),SUBSTITUTE($R221,\"{\",CHAR(160),FV$1))+1),\"\")","v":""},{"$f":"IFERROR(MID($U221,FIND(CHAR(160),SUBSTITUTE($U221,\"{\",CHAR(160),FW$1)),FIND(CHAR(160),SUBSTITUTE($U221,\"}\",CHAR(160),FW$1))-FIND(CHAR(160),SUBSTITUTE($U221,\"{\",CHAR(160),FW$1))+1),\"\")","v":""},{"$f":"IFERROR(MID($U221,FIND(CHAR(160),SUBSTITUTE($U221,\"{\",CHAR(160),FX$1)),FIND(CHAR(160),SUBSTITUTE($U221,\"}\",CHAR(160),FX$1))-FIND(CHAR(160),SUBSTITUTE($U221,\"{\",CHAR(160),FX$1))+1),\"\")","v":""},{"$f":"IFERROR(MID($U221,FIND(CHAR(160),SUBSTITUTE($U221,\"{\",CHAR(160),FY$1)),FIND(CHAR(160),SUBSTITUTE($U221,\"}\",CHAR(160),FY$1))-FIND(CHAR(160),SUBSTITUTE($U221,\"{\",CHAR(160),FY$1))+1),\"\")","v":""},{"$f":"IFERROR(MID($U221,FIND(CHAR(160),SUBSTITUTE($U221,\"{\",CHAR(160),FZ$1)),FIND(CHAR(160),SUBSTITUTE($U221,\"}\",CHAR(160),FZ$1))-FIND(CHAR(160),SUBSTITUTE($U221,\"{\",CHAR(160),FZ$1))+1),\"\")","v":""},{"$f":"IFERROR(MID($U221,FIND(CHAR(160),SUBSTITUTE($U221,\"{\",CHAR(160),GA$1)),FIND(CHAR(160),SUBSTITUTE($U221,\"}\",CHAR(160),GA$1))-FIND(CHAR(160),SUBSTITUTE($U221,\"{\",CHAR(160),GA$1))+1),\"\")","v":""},{"$f":"IFERROR(MID($U221,FIND(CHAR(160),SUBSTITUTE($U221,\"{\",CHAR(160),GB$1)),FIND(CHAR(160),SUBSTITUTE($U221,\"}\",CHAR(160),GB$1))-FIND(CHAR(160),SUBSTITUTE($U221,\"{\",CHAR(160),GB$1))+1),\"\")","v":""},{"$f":"IFERROR(MID($U221,FIND(CHAR(160),SUBSTITUTE($U221,\"{\",CHAR(160),GC$1)),FIND(CHAR(160),SUBSTITUTE($U221,\"}\",CHAR(160),GC$1))-FIND(CHAR(160),SUBSTITUTE($U221,\"{\",CHAR(160),GC$1))+1),\"\")","v":""},{"$f":"IFERROR(MID($U221,FIND(CHAR(160),SUBSTITUTE($U221,\"{\",CHAR(160),GD$1)),FIND(CHAR(160),SUBSTITUTE($U221,\"}\",CHAR(160),GD$1))-FIND(CHAR(160),SUBSTITUTE($U221,\"{\",CHAR(160),GD$1))+1),\"\")","v":""},{"$f":"IFERROR(MID($U221,FIND(CHAR(160),SUBSTITUTE($U221,\"{\",CHAR(160),GE$1)),FIND(CHAR(160),SUBSTITUTE($U221,\"}\",CHAR(160),GE$1))-FIND(CHAR(160),SUBSTITUTE($U221,\"{\",CHAR(160),GE$1))+1),\"\")","v":"{Measure:Quantity}"},{"$f":"IFERROR(MID($U221,FIND(CHAR(160),SUBSTITUTE($U221,\"{\",CHAR(160),GF$1)),FIND(CHAR(160),SUBSTITUTE($U221,\"}\",CHAR(160),GF$1))-FIND(CHAR(160),SUBSTITUTE($U221,\"{\",CHAR(160),GF$1))+1),\"\")","v":"{Measure:Quantity}"},{"$f":"IFERROR(MID($V221,FIND(CHAR(160),SUBSTITUTE($V221,\"{\",CHAR(160),GG$1)),FIND(CHAR(160),SUBSTITUTE($V221,\"}\",CHAR(160),GG$1))-FIND(CHAR(160),SUBSTITUTE($V221,\"{\",CHAR(160),GG$1))+1),\"\")","v":""},{"$f":"IFERROR(MID($V221,FIND(CHAR(160),SUBSTITUTE($V221,\"{\",CHAR(160),GH$1)),FIND(CHAR(160),SUBSTITUTE($V221,\"}\",CHAR(160),GH$1))-FIND(CHAR(160),SUBSTITUTE($V221,\"{\",CHAR(160),GH$1))+1),\"\")","v":""},{"$f":"IFERROR(MID($V221,FIND(CHAR(160),SUBSTITUTE($V221,\"{\",CHAR(160),GI$1)),FIND(CHAR(160),SUBSTITUTE($V221,\"}\",CHAR(160),GI$1))-FIND(CHAR(160),SUBSTITUTE($V221,\"{\",CHAR(160),GI$1))+1),\"\")","v":""},{"$f":"IFERROR(MID($V221,FIND(CHAR(160),SUBSTITUTE($V221,\"{\",CHAR(160),GJ$1)),FIND(CHAR(160),SUBSTITUTE($V221,\"}\",CHAR(160),GJ$1))-FIND(CHAR(160),SUBSTITUTE($V221,\"{\",CHAR(160),GJ$1))+1),\"\")","v":""},{"$f":"IFERROR(MID($V221,FIND(CHAR(160),SUBSTITUTE($V221,\"{\",CHAR(160),GK$1)),FIND(CHAR(160),SUBSTITUTE($V221,\"}\",CHAR(160),GK$1))-FIND(CHAR(160),SUBSTITUTE($V221,\"{\",CHAR(160),GK$1))+1),\"\")","v":""},{"$f":"IFERROR(MID($V221,FIND(CHAR(160),SUBSTITUTE($V221,\"{\",CHAR(160),GL$1)),FIND(CHAR(160),SUBSTITUTE($V221,\"}\",CHAR(160),GL$1))-FIND(CHAR(160),SUBSTITUTE($V221,\"{\",CHAR(160),GL$1))+1),\"\")","v":""},{"$f":"IFERROR(MID($V221,FIND(CHAR(160),SUBSTITUTE($V221,\"{\",CHAR(160),GM$1)),FIND(CHAR(160),SUBSTITUTE($V221,\"}\",CHAR(160),GM$1))-FIND(CHAR(160),SUBSTITUTE($V221,\"{\",CHAR(160),GM$1))+1),\"\")","v":""},{"$f":"IFERROR(MID($V221,FIND(CHAR(160),SUBSTITUTE($V221,\"{\",CHAR(160),GN$1)),FIND(CHAR(160),SUBSTITUTE($V221,\"}\",CHAR(160),GN$1))-FIND(CHAR(160),SUBSTITUTE($V221,\"{\",CHAR(160),GN$1))+1),\"\")","v":""},{"$f":"IFERROR(MID($V221,FIND(CHAR(160),SUBSTITUTE($V221,\"{\",CHAR(160),GO$1)),FIND(CHAR(160),SUBSTITUTE($V221,\"}\",CHAR(160),GO$1))-FIND(CHAR(160),SUBSTITUTE($V221,\"{\",CHAR(160),GO$1))+1),\"\")","v":"{Measure:Quantity}"},{"$f":"IFERROR(MID($V221,FIND(CHAR(160),SUBSTITUTE($V221,\"{\",CHAR(160),GP$1)),FIND(CHAR(160),SUBSTITUTE($V221,\"}\",CHAR(160),GP$1))-FIND(CHAR(160),SUBSTITUTE($V221,\"{\",CHAR(160),GP$1))+1),\"\")","v":"{Measure:Quantity}"},{"$f":"IFERROR(MID($W221,FIND(CHAR(160),SUBSTITUTE($W221,\"{\",CHAR(160),GQ$1)),FIND(CHAR(160),SUBSTITUTE($W221,\"}\",CHAR(160),GQ$1))-FIND(CHAR(160),SUBSTITUTE($W221,\"{\",CHAR(160),GQ$1))+1),\"\")","v":""},{"$f":"IFERROR(MID($W221,FIND(CHAR(160),SUBSTITUTE($W221,\"{\",CHAR(160),GR$1)),FIND(CHAR(160),SUBSTITUTE($W221,\"}\",CHAR(160),GR$1))-FIND(CHAR(160),SUBSTITUTE($W221,\"{\",CHAR(160),GR$1))+1),\"\")","v":""},{"$f":"IFERROR(MID($W221,FIND(CHAR(160),SUBSTITUTE($W221,\"{\",CHAR(160),GS$1)),FIND(CHAR(160),SUBSTITUTE($W221,\"}\",CHAR(160),GS$1))-FIND(CHAR(160),SUBSTITUTE($W221,\"{\",CHAR(160),GS$1))+1),\"\")","v":""},{"$f":"IFERROR(MID($W221,FIND(CHAR(160),SUBSTITUTE($W221,\"{\",CHAR(160),GT$1)),FIND(CHAR(160),SUBSTITUTE($W221,\"}\",CHAR(160),GT$1))-FIND(CHAR(160),SUBSTITUTE($W221,\"{\",CHAR(160),GT$1))+1),\"\")","v":""},{"$f":"IFERROR(MID($W221,FIND(CHAR(160),SUBSTITUTE($W221,\"{\",CHAR(160),GU$1)),FIND(CHAR(160),SUBSTITUTE($W221,\"}\",CHAR(160),GU$1))-FIND(CHAR(160),SUBSTITUTE($W221,\"{\",CHAR(160),GU$1))+1),\"\")","v":""},{"$f":"IFERROR(MID($W221,FIND(CHAR(160),SUBSTITUTE($W221,\"{\",CHAR(160),GV$1)),FIND(CHAR(160),SUBSTITUTE($W221,\"}\",CHAR(160),GV$1))-FIND(CHAR(160),SUBSTITUTE($W221,\"{\",CHAR(160),GV$1))+1),\"\")","v":""},{"$f":"IFERROR(MID($W221,FIND(CHAR(160),SUBSTITUTE($W221,\"{\",CHAR(160),GW$1)),FIND(CHAR(160),SUBSTITUTE($W221,\"}\",CHAR(160),GW$1))-FIND(CHAR(160),SUBSTITUTE($W221,\"{\",CHAR(160),GW$1))+1),\"\")","v":""},{"$f":"IFERROR(MID($W221,FIND(CHAR(160),SUBSTITUTE($W221,\"{\",CHAR(160),GX$1)),FIND(CHAR(160),SUBSTITUTE($W221,\"}\",CHAR(160),GX$1))-FIND(CHAR(160),SUBSTITUTE($W221,\"{\",CHAR(160),GX$1))+1),\"\")","v":""},{"$f":"IFERROR(MID($W221,FIND(CHAR(160),SUBSTITUTE($W221,\"{\",CHAR(160),GY$1)),FIND(CHAR(160),SUBSTITUTE($W221,\"}\",CHAR(160),GY$1))-FIND(CHAR(160),SUBSTITUTE($W221,\"{\",CHAR(160),GY$1))+1),\"\")","v":""},{"$f":"IFERROR(MID($W221,FIND(CHAR(160),SUBSTITUTE($W221,\"{\",CHAR(160),GZ$1)),FIND(CHAR(160),SUBSTITUTE($W221,\"}\",CHAR(160),GZ$1))-FIND(CHAR(160),SUBSTITUTE($W221,\"{\",CHAR(160),GZ$1))+1),\"\")","v":""},{"$f":"IFERROR(MID($X221,FIND(CHAR(160),SUBSTITUTE($X221,\"{\",CHAR(160),HA$1)),FIND(CHAR(160),SUBSTITUTE($X221,\"}\",CHAR(160),HA$1))-FIND(CHAR(160),SUBSTITUTE($X221,\"{\",CHAR(160),HA$1))+1),\"\")","v":""},{"$f":"IFERROR(MID($X221,FIND(CHAR(160),SUBSTITUTE($X221,\"{\",CHAR(160),HB$1)),FIND(CHAR(160),SUBSTITUTE($X221,\"}\",CHAR(160),HB$1))-FIND(CHAR(160),SUBSTITUTE($X221,\"{\",CHAR(160),HB$1))+1),\"\")","v":""},{"$f":"IFERROR(MID($X221,FIND(CHAR(160),SUBSTITUTE($X221,\"{\",CHAR(160),HC$1)),FIND(CHAR(160),SUBSTITUTE($X221,\"}\",CHAR(160),HC$1))-FIND(CHAR(160),SUBSTITUTE($X221,\"{\",CHAR(160),HC$1))+1),\"\")","v":""},{"$f":"IFERROR(MID($X221,FIND(CHAR(160),SUBSTITUTE($X221,\"{\",CHAR(160),HD$1)),FIND(CHAR(160),SUBSTITUTE($X221,\"}\",CHAR(160),HD$1))-FIND(CHAR(160),SUBSTITUTE($X221,\"{\",CHAR(160),HD$1))+1),\"\")","v":""},{"$f":"IFERROR(MID($X221,FIND(CHAR(160),SUBSTITUTE($X221,\"{\",CHAR(160),HE$1)),FIND(CHAR(160),SUBSTITUTE($X221,\"}\",CHAR(160),HE$1))-FIND(CHAR(160),SUBSTITUTE($X221,\"{\",CHAR(160),HE$1))+1),\"\")","v":""},{"$f":"IFERROR(MID($X221,FIND(CHAR(160),SUBSTITUTE($X221,\"{\",CHAR(160),HF$1)),FIND(CHAR(160),SUBSTITUTE($X221,\"}\",CHAR(160),HF$1))-FIND(CHAR(160),SUBSTITUTE($X221,\"{\",CHAR(160),HF$1))+1),\"\")","v":""},{"$f":"IFERROR(MID($X221,FIND(CHAR(160),SUBSTITUTE($X221,\"{\",CHAR(160),HG$1)),FIND(CHAR(160),SUBSTITUTE($X221,\"}\",CHAR(160),HG$1))-FIND(CHAR(160),SUBSTITUTE($X221,\"{\",CHAR(160),HG$1))+1),\"\")","v":""},{"$f":"IFERROR(MID($X221,FIND(CHAR(160),SUBSTITUTE($X221,\"{\",CHAR(160),HH$1)),FIND(CHAR(160),SUBSTITUTE($X221,\"}\",CHAR(160),HH$1))-FIND(CHAR(160),SUBSTITUTE($X221,\"{\",CHAR(160),HH$1))+1),\"\")","v":""},{"$f":"IFERROR(MID($X221,FIND(CHAR(160),SUBSTITUTE($X221,\"{\",CHAR(160),HI$1)),FIND(CHAR(160),SUBSTITUTE($X221,\"}\",CHAR(160),HI$1))-FIND(CHAR(160),SUBSTITUTE($X221,\"{\",CHAR(160),HI$1))+1),\"\")","v":""},{"$f":"IFERROR(MID($X221,FIND(CHAR(160),SUBSTITUTE($X221,\"{\",CHAR(160),HJ$1)),FIND(CHAR(160),SUBSTITUTE($X221,\"}\",CHAR(160),HJ$1))-FIND(CHAR(160),SUBSTITUTE($X221,\"{\",CHAR(160),HJ$1))+1),\"\")","v":""},{"$f":"IFERROR(MID($Y221,FIND(CHAR(160),SUBSTITUTE($Y221,\"{\",CHAR(160),HK$1)),FIND(CHAR(160),SUBSTITUTE($Y221,\"}\",CHAR(160),HK$1))-FIND(CHAR(160),SUBSTITUTE($Y221,\"{\",CHAR(160),HK$1))+1),\"\")","v":""},{"$f":"IFERROR(MID($Y221,FIND(CHAR(160),SUBSTITUTE($Y221,\"{\",CHAR(160),HL$1)),FIND(CHAR(160),SUBSTITUTE($Y221,\"}\",CHAR(160),HL$1))-FIND(CHAR(160),SUBSTITUTE($Y221,\"{\",CHAR(160),HL$1))+1),\"\")","v":""},{"$f":"IFERROR(MID($Y221,FIND(CHAR(160),SUBSTITUTE($Y221,\"{\",CHAR(160),HM$1)),FIND(CHAR(160),SUBSTITUTE($Y221,\"}\",CHAR(160),HM$1))-FIND(CHAR(160),SUBSTITUTE($Y221,\"{\",CHAR(160),HM$1))+1),\"\")","v":""},{"$f":"IFERROR(MID($Y221,FIND(CHAR(160),SUBSTITUTE($Y221,\"{\",CHAR(160),HN$1)),FIND(CHAR(160),SUBSTITUTE($Y221,\"}\",CHAR(160),HN$1))-FIND(CHAR(160),SUBSTITUTE($Y221,\"{\",CHAR(160),HN$1))+1),\"\")","v":""},{"$f":"IFERROR(MID($Y221,FIND(CHAR(160),SUBSTITUTE($Y221,\"{\",CHAR(160),HO$1)),FIND(CHAR(160),SUBSTITUTE($Y221,\"}\",CHAR(160),HO$1))-FIND(CHAR(160),SUBSTITUTE($Y221,\"{\",CHAR(160),HO$1))+1),\"\")","v":""},{"$f":"IFERROR(MID($Y221,FIND(CHAR(160),SUBSTITUTE($Y221,\"{\",CHAR(160),HP$1)),FIND(CHAR(160),SUBSTITUTE($Y221,\"}\",CHAR(160),HP$1))-FIND(CHAR(160),SUBSTITUTE($Y221,\"{\",CHAR(160),HP$1))+1),\"\")","v":""},{"$f":"IFERROR(MID($Y221,FIND(CHAR(160),SUBSTITUTE($Y221,\"{\",CHAR(160),HQ$1)),FIND(CHAR(160),SUBSTITUTE($Y221,\"}\",CHAR(160),HQ$1))-FIND(CHAR(160),SUBSTITUTE($Y221,\"{\",CHAR(160),HQ$1))+1),\"\")","v":""},{"$f":"IFERROR(MID($Y221,FIND(CHAR(160),SUBSTITUTE($Y221,\"{\",CHAR(160),HR$1)),FIND(CHAR(160),SUBSTITUTE($Y221,\"}\",CHAR(160),HR$1))-FIND(CHAR(160),SUBSTITUTE($Y221,\"{\",CHAR(160),HR$1))+1),\"\")","v":""},{"$f":"IFERROR(MID($Y221,FIND(CHAR(160),SUBSTITUTE($Y221,\"{\",CHAR(160),HS$1)),FIND(CHAR(160),SUBSTITUTE($Y221,\"}\",CHAR(160),HS$1))-FIND(CHAR(160),SUBSTITUTE($Y221,\"{\",CHAR(160),HS$1))+1),\"\")","v":""},{"$f":"IFERROR(MID($Y221,FIND(CHAR(160),SUBSTITUTE($Y221,\"{\",CHAR(160),HT$1)),FIND(CHAR(160),SUBSTITUTE($Y221,\"}\",CHAR(160),HT$1))-FIND(CHAR(160),SUBSTITUTE($Y221,\"{\",CHAR(160),HT$1))+1),\"\")","v":""},{"$f":"IFERROR(MID($Z221,FIND(CHAR(160),SUBSTITUTE($Z221,\"{\",CHAR(160),HU$1)),FIND(CHAR(160),SUBSTITUTE($Z221,\"}\",CHAR(160),HU$1))-FIND(CHAR(160),SUBSTITUTE($Z221,\"{\",CHAR(160),HU$1))+1),\"\")","v":""},{"$f":"IFERROR(MID($Z221,FIND(CHAR(160),SUBSTITUTE($Z221,\"{\",CHAR(160),HV$1)),FIND(CHAR(160),SUBSTITUTE($Z221,\"}\",CHAR(160),HV$1))-FIND(CHAR(160),SUBSTITUTE($Z221,\"{\",CHAR(160),HV$1))+1),\"\")","v":""},{"$f":"IFERROR(MID($Z221,FIND(CHAR(160),SUBSTITUTE($Z221,\"{\",CHAR(160),HW$1)),FIND(CHAR(160),SUBSTITUTE($Z221,\"}\",CHAR(160),HW$1))-FIND(CHAR(160),SUBSTITUTE($Z221,\"{\",CHAR(160),HW$1))+1),\"\")","v":""},{"$f":"IFERROR(MID($Z221,FIND(CHAR(160),SUBSTITUTE($Z221,\"{\",CHAR(160),HX$1)),FIND(CHAR(160),SUBSTITUTE($Z221,\"}\",CHAR(160),HX$1))-FIND(CHAR(160),SUBSTITUTE($Z221,\"{\",CHAR(160),HX$1))+1),\"\")","v":""},{"$f":"IFERROR(MID($Z221,FIND(CHAR(160),SUBSTITUTE($Z221,\"{\",CHAR(160),HY$1)),FIND(CHAR(160),SUBSTITUTE($Z221,\"}\",CHAR(160),HY$1))-FIND(CHAR(160),SUBSTITUTE($Z221,\"{\",CHAR(160),HY$1))+1),\"\")","v":""},{"$f":"IFERROR(MID($Z221,FIND(CHAR(160),SUBSTITUTE($Z221,\"{\",CHAR(160),HZ$1)),FIND(CHAR(160),SUBSTITUTE($Z221,\"}\",CHAR(160),HZ$1))-FIND(CHAR(160),SUBSTITUTE($Z221,\"{\",CHAR(160),HZ$1))+1),\"\")","v":""},{"$f":"IFERROR(MID($Z221,FIND(CHAR(160),SUBSTITUTE($Z221,\"{\",CHAR(160),IA$1)),FIND(CHAR(160),SUBSTITUTE($Z221,\"}\",CHAR(160),IA$1))-FIND(CHAR(160),SUBSTITUTE($Z221,\"{\",CHAR(160),IA$1))+1),\"\")","v":""},{"$f":"IFERROR(MID($Z221,FIND(CHAR(160),SUBSTITUTE($Z221,\"{\",CHAR(160),IB$1)),FIND(CHAR(160),SUBSTITUTE($Z221,\"}\",CHAR(160),IB$1))-FIND(CHAR(160),SUBSTITUTE($Z221,\"{\",CHAR(160),IB$1))+1),\"\")","v":""},{"$f":"IFERROR(MID($Z221,FIND(CHAR(160),SUBSTITUTE($Z221,\"{\",CHAR(160),IC$1)),FIND(CHAR(160),SUBSTITUTE($Z221,\"}\",CHAR(160),IC$1))-FIND(CHAR(160),SUBSTITUTE($Z221,\"{\",CHAR(160),IC$1))+1),\"\")","v":""},{"$f":"IFERROR(MID($Z221,FIND(CHAR(160),SUBSTITUTE($Z221,\"{\",CHAR(160),ID$1)),FIND(CHAR(160),SUBSTITUTE($Z221,\"}\",CHAR(160),ID$1))-FIND(CHAR(160),SUBSTITUTE($Z221,\"{\",CHAR(160),ID$1))+1),\"\")","v":""},{"$f":"IFERROR(MID($AA221,FIND(CHAR(160),SUBSTITUTE($AA221,\"{\",CHAR(160),IE$1)),FIND(CHAR(160),SUBSTITUTE($AA221,\"}\",CHAR(160),IE$1))-FIND(CHAR(160),SUBSTITUTE($AA221,\"{\",CHAR(160),IE$1))+1),\"\")","v":""},{"$f":"IFERROR(MID($AA221,FIND(CHAR(160),SUBSTITUTE($AA221,\"{\",CHAR(160),IF$1)),FIND(CHAR(160),SUBSTITUTE($AA221,\"}\",CHAR(160),IF$1))-FIND(CHAR(160),SUBSTITUTE($AA221,\"{\",CHAR(160),IF$1))+1),\"\")","v":""},{"$f":"IFERROR(MID($AA221,FIND(CHAR(160),SUBSTITUTE($AA221,\"{\",CHAR(160),IG$1)),FIND(CHAR(160),SUBSTITUTE($AA221,\"}\",CHAR(160),IG$1))-FIND(CHAR(160),SUBSTITUTE($AA221,\"{\",CHAR(160),IG$1))+1),\"\")","v":""},{"$f":"IFERROR(MID($AA221,FIND(CHAR(160),SUBSTITUTE($AA221,\"{\",CHAR(160),IH$1)),FIND(CHAR(160),SUBSTITUTE($AA221,\"}\",CHAR(160),IH$1))-FIND(CHAR(160),SUBSTITUTE($AA221,\"{\",CHAR(160),IH$1))+1),\"\")","v":""},{"$f":"IFERROR(MID($AA221,FIND(CHAR(160),SUBSTITUTE($AA221,\"{\",CHAR(160),II$1)),FIND(CHAR(160),SUBSTITUTE($AA221,\"}\",CHAR(160),II$1))-FIND(CHAR(160),SUBSTITUTE($AA221,\"{\",CHAR(160),II$1))+1),\"\")","v":""},{"$f":"IFERROR(MID($AA221,FIND(CHAR(160),SUBSTITUTE($AA221,\"{\",CHAR(160),IJ$1)),FIND(CHAR(160),SUBSTITUTE($AA221,\"}\",CHAR(160),IJ$1))-FIND(CHAR(160),SUBSTITUTE($AA221,\"{\",CHAR(160),IJ$1))+1),\"\")","v":""},{"$f":"IFERROR(MID($AA221,FIND(CHAR(160),SUBSTITUTE($AA221,\"{\",CHAR(160),IK$1)),FIND(CHAR(160),SUBSTITUTE($AA221,\"}\",CHAR(160),IK$1))-FIND(CHAR(160),SUBSTITUTE($AA221,\"{\",CHAR(160),IK$1))+1),\"\")","v":""},{"$f":"IFERROR(MID($AA221,FIND(CHAR(160),SUBSTITUTE($AA221,\"{\",CHAR(160),IL$1)),FIND(CHAR(160),SUBSTITUTE($AA221,\"}\",CHAR(160),IL$1))-FIND(CHAR(160),SUBSTITUTE($AA221,\"{\",CHAR(160),IL$1))+1),\"\")","v":""},{"$f":"IFERROR(MID($AA221,FIND(CHAR(160),SUBSTITUTE($AA221,\"{\",CHAR(160),IM$1)),FIND(CHAR(160),SUBSTITUTE($AA221,\"}\",CHAR(160),IM$1))-FIND(CHAR(160),SUBSTITUTE($AA221,\"{\",CHAR(160),IM$1))+1),\"\")","v":""},{"$f":"IFERROR(MID($AA221,FIND(CHAR(160),SUBSTITUTE($AA221,\"{\",CHAR(160),IN$1)),FIND(CHAR(160),SUBSTITUTE($AA221,\"}\",CHAR(160),IN$1))-FIND(CHAR(160),SUBSTITUTE($AA221,\"{\",CHAR(160),IN$1))+1),\"\")","v":""},{"$f":"IFERROR(MID($AB221,FIND(CHAR(160),SUBSTITUTE($AB221,\"{\",CHAR(160),IO$1)),FIND(CHAR(160),SUBSTITUTE($AB221,\"}\",CHAR(160),IO$1))-FIND(CHAR(160),SUBSTITUTE($AB221,\"{\",CHAR(160),IO$1))+1),\"\")","v":""},{"$f":"IFERROR(MID($AB221,FIND(CHAR(160),SUBSTITUTE($AB221,\"{\",CHAR(160),IP$1)),FIND(CHAR(160),SUBSTITUTE($AB221,\"}\",CHAR(160),IP$1))-FIND(CHAR(160),SUBSTITUTE($AB221,\"{\",CHAR(160),IP$1))+1),\"\")","v":""},{"$f":"IFERROR(MID($AB221,FIND(CHAR(160),SUBSTITUTE($AB221,\"{\",CHAR(160),IQ$1)),FIND(CHAR(160),SUBSTITUTE($AB221,\"}\",CHAR(160),IQ$1))-FIND(CHAR(160),SUBSTITUTE($AB221,\"{\",CHAR(160),IQ$1))+1),\"\")","v":""},{"$f":"IFERROR(MID($AB221,FIND(CHAR(160),SUBSTITUTE($AB221,\"{\",CHAR(160),IR$1)),FIND(CHAR(160),SUBSTITUTE($AB221,\"}\",CHAR(160),IR$1))-FIND(CHAR(160),SUBSTITUTE($AB221,\"{\",CHAR(160),IR$1))+1),\"\")","v":""},{"$f":"IFERROR(MID($AB221,FIND(CHAR(160),SUBSTITUTE($AB221,\"{\",CHAR(160),IS$1)),FIND(CHAR(160),SUBSTITUTE($AB221,\"}\",CHAR(160),IS$1))-FIND(CHAR(160),SUBSTITUTE($AB221,\"{\",CHAR(160),IS$1))+1),\"\")","v":""},{"$f":"IFERROR(MID($AB221,FIND(CHAR(160),SUBSTITUTE($AB221,\"{\",CHAR(160),IT$1)),FIND(CHAR(160),SUBSTITUTE($AB221,\"}\",CHAR(160),IT$1))-FIND(CHAR(160),SUBSTITUTE($AB221,\"{\",CHAR(160),IT$1))+1),\"\")","v":""},{"$f":"IFERROR(MID($AB221,FIND(CHAR(160),SUBSTITUTE($AB221,\"{\",CHAR(160),IU$1)),FIND(CHAR(160),SUBSTITUTE($AB221,\"}\",CHAR(160),IU$1))-FIND(CHAR(160),SUBSTITUTE($AB221,\"{\",CHAR(160),IU$1))+1),\"\")","v":""},{"$f":"IFERROR(MID($AB221,FIND(CHAR(160),SUBSTITUTE($AB221,\"{\",CHAR(160),IV$1)),FIND(CHAR(160),SUBSTITUTE($AB221,\"}\",CHAR(160),IV$1))-FIND(CHAR(160),SUBSTITUTE($AB221,\"{\",CHAR(160),IV$1))+1),\"\")","v":""},{"$f":"IFERROR(MID($AB221,FIND(CHAR(160),SUBSTITUTE($AB221,\"{\",CHAR(160),IW$1)),FIND(CHAR(160),SUBSTITUTE($AB221,\"}\",CHAR(160),IW$1))-FIND(CHAR(160),SUBSTITUTE($AB221,\"{\",CHAR(160),IW$1))+1),\"\")","v":""},{"$f":"IFERROR(MID($AB221,FIND(CHAR(160),SUBSTITUTE($AB221,\"{\",CHAR(160),IX$1)),FIND(CHAR(160),SUBSTITUTE($AB221,\"}\",CHAR(160),IX$1))-FIND(CHAR(160),SUBSTITUTE($AB221,\"{\",CHAR(160),IX$1))+1),\"\")","v":""},null,{"$f":"10-COUNTIF(DU221:ED221,\"\")","v":1}]
["Low Income Direct Install - Electric","Low Flow Bathroom Aerator Direct Install","LILFBA","2021-07-01","2022-06-30","Per Measure",0.49,0,"Per Measure",0.49,0,"2021-07-01","2022-06-30","Calculated","{Measure:Quantity}*if({Measure:Quantity}=0,0,8)",null,null,null,null,null,"{Measure:Quantity}*if({Measure:Quantity}=0,0,0.0012)","{Measure:Quantity}*if({Measure:Quantity}=0,0,0.00098)",null,null,null,null,null,"if({Measure:Quantity}=0,0,{Measure:Quantity}*333)","2021-07-01","2022-06-30",10,4.0000000000000001E-3,3.0000000000000001E-3,0.39700000000000002,0.26800000000000002,0.20300000000000001,0.13100000000000001,0.77,1,1,0,0,null,{"$f":"DU222","v":"{Measure:Quantity}"},1,{"$f":"DV222","v":""},1,{"$f":"DW222","v":""},null,{"$f":"DX222","v":""},null,{"$f":"DY222","v":""},null,{"$f":"DZ222","v":""},null,{"$f":"EA222","v":""},null,{"$f":"EB222","v":""},null,{"$f":"EC222","v":""},null,"LIDI Bundle Qty",0.5,{"$f":"AS222*IF(AS222=0,0,8)","v":8},0,0,0,0,0,{"$f":"AS222*IF(AS222=0,0,0.0012)","v":1.1999999999999999E-3},{"$f":"AS222*IF(AS222=0,0,0.00098)","v":9.7999999999999997E-4},0,0,0,0,0,{"$f":"IF(AS222=0,0,AS222*333)","v":333},null,"Res","Default DR",{"$f":"Benefits(BL222,BR222,BS222,BT222,BU222,BV222,BW222,BX222,BY222,BZ222,AE222,AH222,AI222,AJ222,AK222,AL222,AM222,AN222,AO222,AP222,CA222,CB222)","v":6.0679395582204858},3.4712647928737272,0,0,0,0,0,19.771037930079988,0,{"$f":"SUMPRODUCT(CC222:CK222,--(CC222:CK222>0))","v":29.310242281174201},{"$f":"-SUMPRODUCT(CC222:CK222,--(CC222:CK222<0))","v":0},null,{"$f":"0.49","v":0.49},null,null,{"$f":"CM222+CO222","v":0.49},{"$f":"IF(NetOrGross=\"Net\",(1-AO222+AP222),1)","v":1},{"$f":"(SUMPRODUCT(CC222:CJ222,--(CC222:CJ222>0))+CN222)*CS222/((-SUMPRODUCT(CC222:CJ222,--(CC222:CJ222<0))+MAX(CO222,CV222)+CP222+CQ222)*CS222+IF(FRIncentives=\"Yes\",CV222*(1-CS222),0))","v":59.816820981988165},1,{"$f":"0.49","v":0.49},null,"Electric","y",{"$f":"CL222-CR222","v":28.820242281174203},{"$f":"IF(F222=\"Manual Entry\",\"Manual\",IF(G222=\"\",0,\"X=\"&SUBSTITUTE(SUBSTITUTE(SUBSTITUTE(SUBSTITUTE(SUBSTITUTE(SUBSTITUTE(SUBSTITUTE(SUBSTITUTE(SUBSTITUTE(SUBSTITUTE(SUBSTITUTE(SUBSTITUTE(G222,$ED222,$ED$2&ROW($ED222)),$EC222,$EC$2&ROW($EC222)),$EB222,$EB$2&ROW($EB222)),$EA222,$EA$2&ROW($EA222)),$DZ222,$DZ$2&ROW($DZ222)),$DY222,$DY$2&ROW($DY222)),$DX222,$DX$2&ROW($DX222)),$DW222,$DW$2&ROW($DW222)),$DV222,$DV$2&ROW($DV222)),$DU222,$DU$2&ROW($DU222)),$DT222,$DT$2&ROW($DT222)),$DS222,$DS$2&ROW($DS222))))","v":"X=0.49"},{"$f":"IF(I222=\"Manual Entry\",\"Manual\",IF(J222=\"\",0,\"X=\"&SUBSTITUTE(SUBSTITUTE(SUBSTITUTE(SUBSTITUTE(SUBSTITUTE(SUBSTITUTE(SUBSTITUTE(SUBSTITUTE(SUBSTITUTE(SUBSTITUTE(SUBSTITUTE(SUBSTITUTE(J222,$ED222,$ED$2&ROW($ED222)),$EC222,$EC$2&ROW($EC222)),$EB222,$EB$2&ROW($EB222)),$EA222,$EA$2&ROW($EA222)),$DZ222,$DZ$2&ROW($DZ222)),$DY222,$DY$2&ROW($DY222)),$DX222,$DX$2&ROW($DX222)),$DW222,$DW$2&ROW($DW222)),$DV222,$DV$2&ROW($DV222)),$DU222,$DU$2&ROW($DU222)),$DT222,$DT$2&ROW($DT222)),$DS222,$DS$2&ROW($DS222))))","v":"X=0.49"},{"$f":"IF(O222=\"\",0,\"X=\"&SUBSTITUTE(SUBSTITUTE(SUBSTITUTE(SUBSTITUTE(SUBSTITUTE(SUBSTITUTE(SUBSTITUTE(SUBSTITUTE(SUBSTITUTE(SUBSTITUTE(SUBSTITUTE(SUBSTITUTE(O222,$ED222,$ED$2&ROW($ED222)),$EC222,$EC$2&ROW($EC222)),$EB222,$EB$2&ROW($EB222)),$EA222,$EA$2&ROW($EA222)),$DZ222,$DZ$2&ROW($DZ222)),$DY222,$DY$2&ROW($DY222)),$DX222,$DX$2&ROW($DX222)),$DW222,$DW$2&ROW($DW222)),$DV222,$DV$2&ROW($DV222)),$DU222,$DU$2&ROW($DU222)),$DT222,$DT$2&ROW($DT222)),$DS222,$DS$2&ROW($DS222)))","v":"X=AS222*if(AS222=0,0,8)"},{"$f":"IF(P222=\"\",0,\"X=\"&SUBSTITUTE(SUBSTITUTE(SUBSTITUTE(SUBSTITUTE(SUBSTITUTE(SUBSTITUTE(SUBSTITUTE(SUBSTITUTE(SUBSTITUTE(SUBSTITUTE(SUBSTITUTE(SUBSTITUTE(P222,$ED222,$ED$2&ROW($ED222)),$EC222,$EC$2&ROW($EC222)),$EB222,$EB$2&ROW($EB222)),$EA222,$EA$2&ROW($EA222)),$DZ222,$DZ$2&ROW($DZ222)),$DY222,$DY$2&ROW($DY222)),$DX222,$DX$2&ROW($DX222)),$DW222,$DW$2&ROW($DW222)),$DV222,$DV$2&ROW($DV222)),$DU222,$DU$2&ROW($DU222)),$DT222,$DT$2&ROW($DT222)),$DS222,$DS$2&ROW($DS222)))","v":0},{"$f":"IF(Q222=\"\",0,\"X=\"&SUBSTITUTE(SUBSTITUTE(SUBSTITUTE(SUBSTITUTE(SUBSTITUTE(SUBSTITUTE(SUBSTITUTE(SUBSTITUTE(SUBSTITUTE(SUBSTITUTE(SUBSTITUTE(SUBSTITUTE(Q222,$ED222,$ED$2&ROW($ED222)),$EC222,$EC$2&ROW($EC222)),$EB222,$EB$2&ROW($EB222)),$EA222,$EA$2&ROW($EA222)),$DZ222,$DZ$2&ROW($DZ222)),$DY222,$DY$2&ROW($DY222)),$DX222,$DX$2&ROW($DX222)),$DW222,$DW$2&ROW($DW222)),$DV222,$DV$2&ROW($DV222)),$DU222,$DU$2&ROW($DU222)),$DT222,$DT$2&ROW($DT222)),$DS222,$DS$2&ROW($DS222)))","v":0},{"$f":"IF(R222=\"\",0,\"X=\"&SUBSTITUTE(SUBSTITUTE(SUBSTITUTE(SUBSTITUTE(SUBSTITUTE(SUBSTITUTE(SUBSTITUTE(SUBSTITUTE(SUBSTITUTE(SUBSTITUTE(SUBSTITUTE(SUBSTITUTE(R222,$ED222,$ED$2&ROW($ED222)),$EC222,$EC$2&ROW($EC222)),$EB222,$EB$2&ROW($EB222)),$EA222,$EA$2&ROW($EA222)),$DZ222,$DZ$2&ROW($DZ222)),$DY222,$DY$2&ROW($DY222)),$DX222,$DX$2&ROW($DX222)),$DW222,$DW$2&ROW($DW222)),$DV222,$DV$2&ROW($DV222)),$DU222,$DU$2&ROW($DU222)),$DT222,$DT$2&ROW($DT222)),$DS222,$DS$2&ROW($DS222)))","v":0},{"$f":"IF(S222=\"\",0,\"X=\"&SUBSTITUTE(SUBSTITUTE(SUBSTITUTE(SUBSTITUTE(SUBSTITUTE(SUBSTITUTE(SUBSTITUTE(SUBSTITUTE(SUBSTITUTE(SUBSTITUTE(SUBSTITUTE(SUBSTITUTE(S222,$ED222,$ED$2&ROW($ED222)),$EC222,$EC$2&ROW($EC222)),$EB222,$EB$2&ROW($EB222)),$EA222,$EA$2&ROW($EA222)),$DZ222,$DZ$2&ROW($DZ222)),$DY222,$DY$2&ROW($DY222)),$DX222,$DX$2&ROW($DX222)),$DW222,$DW$2&ROW($DW222)),$DV222,$DV$2&ROW($DV222)),$DU222,$DU$2&ROW($DU222)),$DT222,$DT$2&ROW($DT222)),$DS222,$DS$2&ROW($DS222)))","v":0},{"$f":"IF(T222=\"\",0,\"X=\"&SUBSTITUTE(SUBSTITUTE(SUBSTITUTE(SUBSTITUTE(SUBSTITUTE(SUBSTITUTE(SUBSTITUTE(SUBSTITUTE(SUBSTITUTE(SUBSTITUTE(SUBSTITUTE(SUBSTITUTE(T222,$ED222,$ED$2&ROW($ED222)),$EC222,$EC$2&ROW($EC222)),$EB222,$EB$2&ROW($EB222)),$EA222,$EA$2&ROW($EA222)),$DZ222,$DZ$2&ROW($DZ222)),$DY222,$DY$2&ROW($DY222)),$DX222,$DX$2&ROW($DX222)),$DW222,$DW$2&ROW($DW222)),$DV222,$DV$2&ROW($DV222)),$DU222,$DU$2&ROW($DU222)),$DT222,$DT$2&ROW($DT222)),$DS222,$DS$2&ROW($DS222)))","v":0},{"$f":"IF(U222=\"\",0,\"X=\"&SUBSTITUTE(SUBSTITUTE(SUBSTITUTE(SUBSTITUTE(SUBSTITUTE(SUBSTITUTE(SUBSTITUTE(SUBSTITUTE(SUBSTITUTE(SUBSTITUTE(SUBSTITUTE(SUBSTITUTE(U222,$ED222,$ED$2&ROW($ED222)),$EC222,$EC$2&ROW($EC222)),$EB222,$EB$2&ROW($EB222)),$EA222,$EA$2&ROW($EA222)),$DZ222,$DZ$2&ROW($DZ222)),$DY222,$DY$2&ROW($DY222)),$DX222,$DX$2&ROW($DX222)),$DW222,$DW$2&ROW($DW222)),$DV222,$DV$2&ROW($DV222)),$DU222,$DU$2&ROW($DU222)),$DT222,$DT$2&ROW($DT222)),$DS222,$DS$2&ROW($DS222)))","v":"X=AS222*if(AS222=0,0,0.0012)"},{"$f":"IF(V222=\"\",0,\"X=\"&SUBSTITUTE(SUBSTITUTE(SUBSTITUTE(SUBSTITUTE(SUBSTITUTE(SUBSTITUTE(SUBSTITUTE(SUBSTITUTE(SUBSTITUTE(SUBSTITUTE(SUBSTITUTE(SUBSTITUTE(V222,$ED222,$ED$2&ROW($ED222)),$EC222,$EC$2&ROW($EC222)),$EB222,$EB$2&ROW($EB222)),$EA222,$EA$2&ROW($EA222)),$DZ222,$DZ$2&ROW($DZ222)),$DY222,$DY$2&ROW($DY222)),$DX222,$DX$2&ROW($DX222)),$DW222,$DW$2&ROW($DW222)),$DV222,$DV$2&ROW($DV222)),$DU222,$DU$2&ROW($DU222)),$DT222,$DT$2&ROW($DT222)),$DS222,$DS$2&ROW($DS222)))","v":"X=AS222*if(AS222=0,0,0.00098)"},{"$f":"IF(W222=\"\",0,\"X=\"&SUBSTITUTE(SUBSTITUTE(SUBSTITUTE(SUBSTITUTE(SUBSTITUTE(SUBSTITUTE(SUBSTITUTE(SUBSTITUTE(SUBSTITUTE(SUBSTITUTE(SUBSTITUTE(SUBSTITUTE(W222,$ED222,$ED$2&ROW($ED222)),$EC222,$EC$2&ROW($EC222)),$EB222,$EB$2&ROW($EB222)),$EA222,$EA$2&ROW($EA222)),$DZ222,$DZ$2&ROW($DZ222)),$DY222,$DY$2&ROW($DY222)),$DX222,$DX$2&ROW($DX222)),$DW222,$DW$2&ROW($DW222)),$DV222,$DV$2&ROW($DV222)),$DU222,$DU$2&ROW($DU222)),$DT222,$DT$2&ROW($DT222)),$DS222,$DS$2&ROW($DS222)))","v":0},{"$f":"IF(X222=\"\",0,\"X=\"&SUBSTITUTE(SUBSTITUTE(SUBSTITUTE(SUBSTITUTE(SUBSTITUTE(SUBSTITUTE(SUBSTITUTE(SUBSTITUTE(SUBSTITUTE(SUBSTITUTE(SUBSTITUTE(SUBSTITUTE(X222,$ED222,$ED$2&ROW($ED222)),$EC222,$EC$2&ROW($EC222)),$EB222,$EB$2&ROW($EB222)),$EA222,$EA$2&ROW($EA222)),$DZ222,$DZ$2&ROW($DZ222)),$DY222,$DY$2&ROW($DY222)),$DX222,$DX$2&ROW($DX222)),$DW222,$DW$2&ROW($DW222)),$DV222,$DV$2&ROW($DV222)),$DU222,$DU$2&ROW($DU222)),$DT222,$DT$2&ROW($DT222)),$DS222,$DS$2&ROW($DS222)))","v":0},{"$f":"IF(Y222=\"\",0,\"X=\"&SUBSTITUTE(SUBSTITUTE(SUBSTITUTE(SUBSTITUTE(SUBSTITUTE(SUBSTITUTE(SUBSTITUTE(SUBSTITUTE(SUBSTITUTE(SUBSTITUTE(SUBSTITUTE(SUBSTITUTE(Y222,$ED222,$ED$2&ROW($ED222)),$EC222,$EC$2&ROW($EC222)),$EB222,$EB$2&ROW($EB222)),$EA222,$EA$2&ROW($EA222)),$DZ222,$DZ$2&ROW($DZ222)),$DY222,$DY$2&ROW($DY222)),$DX222,$DX$2&ROW($DX222)),$DW222,$DW$2&ROW($DW222)),$DV222,$DV$2&ROW($DV222)),$DU222,$DU$2&ROW($DU222)),$DT222,$DT$2&ROW($DT222)),$DS222,$DS$2&ROW($DS222)))","v":0},{"$f":"IF(Z222=\"\",0,\"X=\"&SUBSTITUTE(SUBSTITUTE(SUBSTITUTE(SUBSTITUTE(SUBSTITUTE(SUBSTITUTE(SUBSTITUTE(SUBSTITUTE(SUBSTITUTE(SUBSTITUTE(SUBSTITUTE(SUBSTITUTE(Z222,$ED222,$ED$2&ROW($ED222)),$EC222,$EC$2&ROW($EC222)),$EB222,$EB$2&ROW($EB222)),$EA222,$EA$2&ROW($EA222)),$DZ222,$DZ$2&ROW($DZ222)),$DY222,$DY$2&ROW($DY222)),$DX222,$DX$2&ROW($DX222)),$DW222,$DW$2&ROW($DW222)),$DV222,$DV$2&ROW($DV222)),$DU222,$DU$2&ROW($DU222)),$DT222,$DT$2&ROW($DT222)),$DS222,$DS$2&ROW($DS222)))","v":0},{"$f":"IF(AA222=\"\",0,\"X=\"&SUBSTITUTE(SUBSTITUTE(SUBSTITUTE(SUBSTITUTE(SUBSTITUTE(SUBSTITUTE(SUBSTITUTE(SUBSTITUTE(SUBSTITUTE(SUBSTITUTE(SUBSTITUTE(SUBSTITUTE(AA222,$ED222,$ED$2&ROW($ED222)),$EC222,$EC$2&ROW($EC222)),$EB222,$EB$2&ROW($EB222)),$EA222,$EA$2&ROW($EA222)),$DZ222,$DZ$2&ROW($DZ222)),$DY222,$DY$2&ROW($DY222)),$DX222,$DX$2&ROW($DX222)),$DW222,$DW$2&ROW($DW222)),$DV222,$DV$2&ROW($DV222)),$DU222,$DU$2&ROW($DU222)),$DT222,$DT$2&ROW($DT222)),$DS222,$DS$2&ROW($DS222)))","v":0},{"$f":"IF(AB222=\"\",0,\"X=\"&SUBSTITUTE(SUBSTITUTE(SUBSTITUTE(SUBSTITUTE(SUBSTITUTE(SUBSTITUTE(SUBSTITUTE(SUBSTITUTE(SUBSTITUTE(SUBSTITUTE(SUBSTITUTE(SUBSTITUTE(AB222,$ED222,$ED$2&ROW($ED222)),$EC222,$EC$2&ROW($EC222)),$EB222,$EB$2&ROW($EB222)),$EA222,$EA$2&ROW($EA222)),$DZ222,$DZ$2&ROW($DZ222)),$DY222,$DY$2&ROW($DY222)),$DX222,$DX$2&ROW($DX222)),$DW222,$DW$2&ROW($DW222)),$DV222,$DV$2&ROW($DV222)),$DU222,$DU$2&ROW($DU222)),$DT222,$DT$2&ROW($DT222)),$DS222,$DS$2&ROW($DS222)))","v":"X=if(AS222=0,0,AS222*333)"},null,null,"{Factor:WinterCF}","{Factor:SummerCF}",{"$f":"IFERROR(INDEX($EG222:$IV222,MATCH(0,COUNTIF($DR222:DT222,$EG222:$IV222),0)),\"\")","v":"{Measure:Quantity}"},{"$f":"IFERROR(INDEX($EG222:$IV222,MATCH(0,COUNTIF($DR222:DU222,$EG222:$IV222),0)),\"\")","v":""},{"$f":"IFERROR(INDEX($EG222:$IV222,MATCH(0,COUNTIF($DR222:DV222,$EG222:$IV222),0)),\"\")","v":""},{"$f":"IFERROR(INDEX($EG222:$IV222,MATCH(0,COUNTIF($DR222:DW222,$EG222:$IV222),0)),\"\")","v":""},{"$f":"IFERROR(INDEX($EG222:$IV222,MATCH(0,COUNTIF($DR222:DX222,$EG222:$IV222),0)),\"\")","v":""},{"$f":"IFERROR(INDEX($EG222:$IV222,MATCH(0,COUNTIF($DR222:DY222,$EG222:$IV222),0)),\"\")","v":""},{"$f":"IFERROR(INDEX($EG222:$IV222,MATCH(0,COUNTIF($DR222:DZ222,$EG222:$IV222),0)),\"\")","v":""},{"$f":"IFERROR(INDEX($EG222:$IV222,MATCH(0,COUNTIF($DR222:EA222,$EG222:$IV222),0)),\"\")","v":""},{"$f":"IFERROR(INDEX($EG222:$IV222,MATCH(0,COUNTIF($DR222:EB222,$EG222:$IV222),0)),\"\")","v":""},{"$f":"IFERROR(INDEX($EG222:$IV222,MATCH(0,COUNTIF($DR222:EC222,$EG222:$IV222),0)),\"\")","v":""},null,null,{"$f":"IFERROR(MID($G222,FIND(CHAR(160),SUBSTITUTE($G222,\"{\",CHAR(160),EG$1)),FIND(CHAR(160),SUBSTITUTE($G222,\"}\",CHAR(160),EG$1))-FIND(CHAR(160),SUBSTITUTE($G222,\"{\",CHAR(160),EG$1))+1),\"\")","v":""},{"$f":"IFERROR(MID($G222,FIND(CHAR(160),SUBSTITUTE($G222,\"{\",CHAR(160),EH$1)),FIND(CHAR(160),SUBSTITUTE($G222,\"}\",CHAR(160),EH$1))-FIND(CHAR(160),SUBSTITUTE($G222,\"{\",CHAR(160),EH$1))+1),\"\")","v":""},{"$f":"IFERROR(MID($G222,FIND(CHAR(160),SUBSTITUTE($G222,\"{\",CHAR(160),EI$1)),FIND(CHAR(160),SUBSTITUTE($G222,\"}\",CHAR(160),EI$1))-FIND(CHAR(160),SUBSTITUTE($G222,\"{\",CHAR(160),EI$1))+1),\"\")","v":""},{"$f":"IFERROR(MID($G222,FIND(CHAR(160),SUBSTITUTE($G222,\"{\",CHAR(160),EJ$1)),FIND(CHAR(160),SUBSTITUTE($G222,\"}\",CHAR(160),EJ$1))-FIND(CHAR(160),SUBSTITUTE($G222,\"{\",CHAR(160),EJ$1))+1),\"\")","v":""},{"$f":"IFERROR(MID($G222,FIND(CHAR(160),SUBSTITUTE($G222,\"{\",CHAR(160),EK$1)),FIND(CHAR(160),SUBSTITUTE($G222,\"}\",CHAR(160),EK$1))-FIND(CHAR(160),SUBSTITUTE($G222,\"{\",CHAR(160),EK$1))+1),\"\")","v":""},{"$f":"IFERROR(MID($G222,FIND(CHAR(160),SUBSTITUTE($G222,\"{\",CHAR(160),EL$1)),FIND(CHAR(160),SUBSTITUTE($G222,\"}\",CHAR(160),EL$1))-FIND(CHAR(160),SUBSTITUTE($G222,\"{\",CHAR(160),EL$1))+1),\"\")","v":""},{"$f":"IFERROR(MID($G222,FIND(CHAR(160),SUBSTITUTE($G222,\"{\",CHAR(160),EM$1)),FIND(CHAR(160),SUBSTITUTE($G222,\"}\",CHAR(160),EM$1))-FIND(CHAR(160),SUBSTITUTE($G222,\"{\",CHAR(160),EM$1))+1),\"\")","v":""},{"$f":"IFERROR(MID($G222,FIND(CHAR(160),SUBSTITUTE($G222,\"{\",CHAR(160),EN$1)),FIND(CHAR(160),SUBSTITUTE($G222,\"}\",CHAR(160),EN$1))-FIND(CHAR(160),SUBSTITUTE($G222,\"{\",CHAR(160),EN$1))+1),\"\")","v":""},{"$f":"IFERROR(MID($G222,FIND(CHAR(160),SUBSTITUTE($G222,\"{\",CHAR(160),EO$1)),FIND(CHAR(160),SUBSTITUTE($G222,\"}\",CHAR(160),EO$1))-FIND(CHAR(160),SUBSTITUTE($G222,\"{\",CHAR(160),EO$1))+1),\"\")","v":""},{"$f":"IFERROR(MID($G222,FIND(CHAR(160),SUBSTITUTE($G222,\"{\",CHAR(160),EP$1)),FIND(CHAR(160),SUBSTITUTE($G222,\"}\",CHAR(160),EP$1))-FIND(CHAR(160),SUBSTITUTE($G222,\"{\",CHAR(160),EP$1))+1),\"\")","v":""},{"$f":"IFERROR(MID($J222,FIND(CHAR(160),SUBSTITUTE($J222,\"{\",CHAR(160),EQ$1)),FIND(CHAR(160),SUBSTITUTE($J222,\"}\",CHAR(160),EQ$1))-FIND(CHAR(160),SUBSTITUTE($J222,\"{\",CHAR(160),EQ$1))+1),\"\")","v":""},{"$f":"IFERROR(MID($J222,FIND(CHAR(160),SUBSTITUTE($J222,\"{\",CHAR(160),ER$1)),FIND(CHAR(160),SUBSTITUTE($J222,\"}\",CHAR(160),ER$1))-FIND(CHAR(160),SUBSTITUTE($J222,\"{\",CHAR(160),ER$1))+1),\"\")","v":""},{"$f":"IFERROR(MID($J222,FIND(CHAR(160),SUBSTITUTE($J222,\"{\",CHAR(160),ES$1)),FIND(CHAR(160),SUBSTITUTE($J222,\"}\",CHAR(160),ES$1))-FIND(CHAR(160),SUBSTITUTE($J222,\"{\",CHAR(160),ES$1))+1),\"\")","v":""},{"$f":"IFERROR(MID($J222,FIND(CHAR(160),SUBSTITUTE($J222,\"{\",CHAR(160),ET$1)),FIND(CHAR(160),SUBSTITUTE($J222,\"}\",CHAR(160),ET$1))-FIND(CHAR(160),SUBSTITUTE($J222,\"{\",CHAR(160),ET$1))+1),\"\")","v":""},{"$f":"IFERROR(MID($J222,FIND(CHAR(160),SUBSTITUTE($J222,\"{\",CHAR(160),EU$1)),FIND(CHAR(160),SUBSTITUTE($J222,\"}\",CHAR(160),EU$1))-FIND(CHAR(160),SUBSTITUTE($J222,\"{\",CHAR(160),EU$1))+1),\"\")","v":""},{"$f":"IFERROR(MID($J222,FIND(CHAR(160),SUBSTITUTE($J222,\"{\",CHAR(160),EV$1)),FIND(CHAR(160),SUBSTITUTE($J222,\"}\",CHAR(160),EV$1))-FIND(CHAR(160),SUBSTITUTE($J222,\"{\",CHAR(160),EV$1))+1),\"\")","v":""},{"$f":"IFERROR(MID($J222,FIND(CHAR(160),SUBSTITUTE($J222,\"{\",CHAR(160),EW$1)),FIND(CHAR(160),SUBSTITUTE($J222,\"}\",CHAR(160),EW$1))-FIND(CHAR(160),SUBSTITUTE($J222,\"{\",CHAR(160),EW$1))+1),\"\")","v":""},{"$f":"IFERROR(MID($J222,FIND(CHAR(160),SUBSTITUTE($J222,\"{\",CHAR(160),EX$1)),FIND(CHAR(160),SUBSTITUTE($J222,\"}\",CHAR(160),EX$1))-FIND(CHAR(160),SUBSTITUTE($J222,\"{\",CHAR(160),EX$1))+1),\"\")","v":""},{"$f":"IFERROR(MID($J222,FIND(CHAR(160),SUBSTITUTE($J222,\"{\",CHAR(160),EY$1)),FIND(CHAR(160),SUBSTITUTE($J222,\"}\",CHAR(160),EY$1))-FIND(CHAR(160),SUBSTITUTE($J222,\"{\",CHAR(160),EY$1))+1),\"\")","v":""},{"$f":"IFERROR(MID($J222,FIND(CHAR(160),SUBSTITUTE($J222,\"{\",CHAR(160),EZ$1)),FIND(CHAR(160),SUBSTITUTE($J222,\"}\",CHAR(160),EZ$1))-FIND(CHAR(160),SUBSTITUTE($J222,\"{\",CHAR(160),EZ$1))+1),\"\")","v":""},{"$f":"IFERROR(MID($J222,FIND(CHAR(160),SUBSTITUTE($J222,\"{\",CHAR(160),FA$1)),FIND(CHAR(160),SUBSTITUTE($J222,\"}\",CHAR(160),FA$1))-FIND(CHAR(160),SUBSTITUTE($J222,\"{\",CHAR(160),FA$1))+1),\"\")","v":""},{"$f":"IFERROR(MID($J222,FIND(CHAR(160),SUBSTITUTE($J222,\"{\",CHAR(160),FB$1)),FIND(CHAR(160),SUBSTITUTE($J222,\"}\",CHAR(160),FB$1))-FIND(CHAR(160),SUBSTITUTE($J222,\"{\",CHAR(160),FB$1))+1),\"\")","v":""},{"$f":"IFERROR(MID($O222,FIND(CHAR(160),SUBSTITUTE($O222,\"{\",CHAR(160),FC$1)),FIND(CHAR(160),SUBSTITUTE($O222,\"}\",CHAR(160),FC$1))-FIND(CHAR(160),SUBSTITUTE($O222,\"{\",CHAR(160),FC$1))+1),\"\")","v":""},{"$f":"IFERROR(MID($O222,FIND(CHAR(160),SUBSTITUTE($O222,\"{\",CHAR(160),FD$1)),FIND(CHAR(160),SUBSTITUTE($O222,\"}\",CHAR(160),FD$1))-FIND(CHAR(160),SUBSTITUTE($O222,\"{\",CHAR(160),FD$1))+1),\"\")","v":""},{"$f":"IFERROR(MID($O222,FIND(CHAR(160),SUBSTITUTE($O222,\"{\",CHAR(160),FE$1)),FIND(CHAR(160),SUBSTITUTE($O222,\"}\",CHAR(160),FE$1))-FIND(CHAR(160),SUBSTITUTE($O222,\"{\",CHAR(160),FE$1))+1),\"\")","v":""},{"$f":"IFERROR(MID($O222,FIND(CHAR(160),SUBSTITUTE($O222,\"{\",CHAR(160),FF$1)),FIND(CHAR(160),SUBSTITUTE($O222,\"}\",CHAR(160),FF$1))-FIND(CHAR(160),SUBSTITUTE($O222,\"{\",CHAR(160),FF$1))+1),\"\")","v":""},{"$f":"IFERROR(MID($O222,FIND(CHAR(160),SUBSTITUTE($O222,\"{\",CHAR(160),FG$1)),FIND(CHAR(160),SUBSTITUTE($O222,\"}\",CHAR(160),FG$1))-FIND(CHAR(160),SUBSTITUTE($O222,\"{\",CHAR(160),FG$1))+1),\"\")","v":""},{"$f":"IFERROR(MID($O222,FIND(CHAR(160),SUBSTITUTE($O222,\"{\",CHAR(160),FH$1)),FIND(CHAR(160),SUBSTITUTE($O222,\"}\",CHAR(160),FH$1))-FIND(CHAR(160),SUBSTITUTE($O222,\"{\",CHAR(160),FH$1))+1),\"\")","v":""},{"$f":"IFERROR(MID($O222,FIND(CHAR(160),SUBSTITUTE($O222,\"{\",CHAR(160),FI$1)),FIND(CHAR(160),SUBSTITUTE($O222,\"}\",CHAR(160),FI$1))-FIND(CHAR(160),SUBSTITUTE($O222,\"{\",CHAR(160),FI$1))+1),\"\")","v":""},{"$f":"IFERROR(MID($O222,FIND(CHAR(160),SUBSTITUTE($O222,\"{\",CHAR(160),FJ$1)),FIND(CHAR(160),SUBSTITUTE($O222,\"}\",CHAR(160),FJ$1))-FIND(CHAR(160),SUBSTITUTE($O222,\"{\",CHAR(160),FJ$1))+1),\"\")","v":""},{"$f":"IFERROR(MID($O222,FIND(CHAR(160),SUBSTITUTE($O222,\"{\",CHAR(160),FK$1)),FIND(CHAR(160),SUBSTITUTE($O222,\"}\",CHAR(160),FK$1))-FIND(CHAR(160),SUBSTITUTE($O222,\"{\",CHAR(160),FK$1))+1),\"\")","v":"{Measure:Quantity}"},{"$f":"IFERROR(MID($O222,FIND(CHAR(160),SUBSTITUTE($O222,\"{\",CHAR(160),FL$1)),FIND(CHAR(160),SUBSTITUTE($O222,\"}\",CHAR(160),FL$1))-FIND(CHAR(160),SUBSTITUTE($O222,\"{\",CHAR(160),FL$1))+1),\"\")","v":"{Measure:Quantity}"},{"$f":"IFERROR(MID($R222,FIND(CHAR(160),SUBSTITUTE($R222,\"{\",CHAR(160),FM$1)),FIND(CHAR(160),SUBSTITUTE($R222,\"}\",CHAR(160),FM$1))-FIND(CHAR(160),SUBSTITUTE($R222,\"{\",CHAR(160),FM$1))+1),\"\")","v":""},{"$f":"IFERROR(MID($R222,FIND(CHAR(160),SUBSTITUTE($R222,\"{\",CHAR(160),FN$1)),FIND(CHAR(160),SUBSTITUTE($R222,\"}\",CHAR(160),FN$1))-FIND(CHAR(160),SUBSTITUTE($R222,\"{\",CHAR(160),FN$1))+1),\"\")","v":""},{"$f":"IFERROR(MID($R222,FIND(CHAR(160),SUBSTITUTE($R222,\"{\",CHAR(160),FO$1)),FIND(CHAR(160),SUBSTITUTE($R222,\"}\",CHAR(160),FO$1))-FIND(CHAR(160),SUBSTITUTE($R222,\"{\",CHAR(160),FO$1))+1),\"\")","v":""},{"$f":"IFERROR(MID($R222,FIND(CHAR(160),SUBSTITUTE($R222,\"{\",CHAR(160),FP$1)),FIND(CHAR(160),SUBSTITUTE($R222,\"}\",CHAR(160),FP$1))-FIND(CHAR(160),SUBSTITUTE($R222,\"{\",CHAR(160),FP$1))+1),\"\")","v":""},{"$f":"IFERROR(MID($R222,FIND(CHAR(160),SUBSTITUTE($R222,\"{\",CHAR(160),FQ$1)),FIND(CHAR(160),SUBSTITUTE($R222,\"}\",CHAR(160),FQ$1))-FIND(CHAR(160),SUBSTITUTE($R222,\"{\",CHAR(160),FQ$1))+1),\"\")","v":""},{"$f":"IFERROR(MID($R222,FIND(CHAR(160),SUBSTITUTE($R222,\"{\",CHAR(160),FR$1)),FIND(CHAR(160),SUBSTITUTE($R222,\"}\",CHAR(160),FR$1))-FIND(CHAR(160),SUBSTITUTE($R222,\"{\",CHAR(160),FR$1))+1),\"\")","v":""},{"$f":"IFERROR(MID($R222,FIND(CHAR(160),SUBSTITUTE($R222,\"{\",CHAR(160),FS$1)),FIND(CHAR(160),SUBSTITUTE($R222,\"}\",CHAR(160),FS$1))-FIND(CHAR(160),SUBSTITUTE($R222,\"{\",CHAR(160),FS$1))+1),\"\")","v":""},{"$f":"IFERROR(MID($R222,FIND(CHAR(160),SUBSTITUTE($R222,\"{\",CHAR(160),FT$1)),FIND(CHAR(160),SUBSTITUTE($R222,\"}\",CHAR(160),FT$1))-FIND(CHAR(160),SUBSTITUTE($R222,\"{\",CHAR(160),FT$1))+1),\"\")","v":""},{"$f":"IFERROR(MID($R222,FIND(CHAR(160),SUBSTITUTE($R222,\"{\",CHAR(160),FU$1)),FIND(CHAR(160),SUBSTITUTE($R222,\"}\",CHAR(160),FU$1))-FIND(CHAR(160),SUBSTITUTE($R222,\"{\",CHAR(160),FU$1))+1),\"\")","v":""},{"$f":"IFERROR(MID($R222,FIND(CHAR(160),SUBSTITUTE($R222,\"{\",CHAR(160),FV$1)),FIND(CHAR(160),SUBSTITUTE($R222,\"}\",CHAR(160),FV$1))-FIND(CHAR(160),SUBSTITUTE($R222,\"{\",CHAR(160),FV$1))+1),\"\")","v":""},{"$f":"IFERROR(MID($U222,FIND(CHAR(160),SUBSTITUTE($U222,\"{\",CHAR(160),FW$1)),FIND(CHAR(160),SUBSTITUTE($U222,\"}\",CHAR(160),FW$1))-FIND(CHAR(160),SUBSTITUTE($U222,\"{\",CHAR(160),FW$1))+1),\"\")","v":""},{"$f":"IFERROR(MID($U222,FIND(CHAR(160),SUBSTITUTE($U222,\"{\",CHAR(160),FX$1)),FIND(CHAR(160),SUBSTITUTE($U222,\"}\",CHAR(160),FX$1))-FIND(CHAR(160),SUBSTITUTE($U222,\"{\",CHAR(160),FX$1))+1),\"\")","v":""},{"$f":"IFERROR(MID($U222,FIND(CHAR(160),SUBSTITUTE($U222,\"{\",CHAR(160),FY$1)),FIND(CHAR(160),SUBSTITUTE($U222,\"}\",CHAR(160),FY$1))-FIND(CHAR(160),SUBSTITUTE($U222,\"{\",CHAR(160),FY$1))+1),\"\")","v":""},{"$f":"IFERROR(MID($U222,FIND(CHAR(160),SUBSTITUTE($U222,\"{\",CHAR(160),FZ$1)),FIND(CHAR(160),SUBSTITUTE($U222,\"}\",CHAR(160),FZ$1))-FIND(CHAR(160),SUBSTITUTE($U222,\"{\",CHAR(160),FZ$1))+1),\"\")","v":""},{"$f":"IFERROR(MID($U222,FIND(CHAR(160),SUBSTITUTE($U222,\"{\",CHAR(160),GA$1)),FIND(CHAR(160),SUBSTITUTE($U222,\"}\",CHAR(160),GA$1))-FIND(CHAR(160),SUBSTITUTE($U222,\"{\",CHAR(160),GA$1))+1),\"\")","v":""},{"$f":"IFERROR(MID($U222,FIND(CHAR(160),SUBSTITUTE($U222,\"{\",CHAR(160),GB$1)),FIND(CHAR(160),SUBSTITUTE($U222,\"}\",CHAR(160),GB$1))-FIND(CHAR(160),SUBSTITUTE($U222,\"{\",CHAR(160),GB$1))+1),\"\")","v":""},{"$f":"IFERROR(MID($U222,FIND(CHAR(160),SUBSTITUTE($U222,\"{\",CHAR(160),GC$1)),FIND(CHAR(160),SUBSTITUTE($U222,\"}\",CHAR(160),GC$1))-FIND(CHAR(160),SUBSTITUTE($U222,\"{\",CHAR(160),GC$1))+1),\"\")","v":""},{"$f":"IFERROR(MID($U222,FIND(CHAR(160),SUBSTITUTE($U222,\"{\",CHAR(160),GD$1)),FIND(CHAR(160),SUBSTITUTE($U222,\"}\",CHAR(160),GD$1))-FIND(CHAR(160),SUBSTITUTE($U222,\"{\",CHAR(160),GD$1))+1),\"\")","v":""},{"$f":"IFERROR(MID($U222,FIND(CHAR(160),SUBSTITUTE($U222,\"{\",CHAR(160),GE$1)),FIND(CHAR(160),SUBSTITUTE($U222,\"}\",CHAR(160),GE$1))-FIND(CHAR(160),SUBSTITUTE($U222,\"{\",CHAR(160),GE$1))+1),\"\")","v":"{Measure:Quantity}"},{"$f":"IFERROR(MID($U222,FIND(CHAR(160),SUBSTITUTE($U222,\"{\",CHAR(160),GF$1)),FIND(CHAR(160),SUBSTITUTE($U222,\"}\",CHAR(160),GF$1))-FIND(CHAR(160),SUBSTITUTE($U222,\"{\",CHAR(160),GF$1))+1),\"\")","v":"{Measure:Quantity}"},{"$f":"IFERROR(MID($V222,FIND(CHAR(160),SUBSTITUTE($V222,\"{\",CHAR(160),GG$1)),FIND(CHAR(160),SUBSTITUTE($V222,\"}\",CHAR(160),GG$1))-FIND(CHAR(160),SUBSTITUTE($V222,\"{\",CHAR(160),GG$1))+1),\"\")","v":""},{"$f":"IFERROR(MID($V222,FIND(CHAR(160),SUBSTITUTE($V222,\"{\",CHAR(160),GH$1)),FIND(CHAR(160),SUBSTITUTE($V222,\"}\",CHAR(160),GH$1))-FIND(CHAR(160),SUBSTITUTE($V222,\"{\",CHAR(160),GH$1))+1),\"\")","v":""},{"$f":"IFERROR(MID($V222,FIND(CHAR(160),SUBSTITUTE($V222,\"{\",CHAR(160),GI$1)),FIND(CHAR(160),SUBSTITUTE($V222,\"}\",CHAR(160),GI$1))-FIND(CHAR(160),SUBSTITUTE($V222,\"{\",CHAR(160),GI$1))+1),\"\")","v":""},{"$f":"IFERROR(MID($V222,FIND(CHAR(160),SUBSTITUTE($V222,\"{\",CHAR(160),GJ$1)),FIND(CHAR(160),SUBSTITUTE($V222,\"}\",CHAR(160),GJ$1))-FIND(CHAR(160),SUBSTITUTE($V222,\"{\",CHAR(160),GJ$1))+1),\"\")","v":""},{"$f":"IFERROR(MID($V222,FIND(CHAR(160),SUBSTITUTE($V222,\"{\",CHAR(160),GK$1)),FIND(CHAR(160),SUBSTITUTE($V222,\"}\",CHAR(160),GK$1))-FIND(CHAR(160),SUBSTITUTE($V222,\"{\",CHAR(160),GK$1))+1),\"\")","v":""},{"$f":"IFERROR(MID($V222,FIND(CHAR(160),SUBSTITUTE($V222,\"{\",CHAR(160),GL$1)),FIND(CHAR(160),SUBSTITUTE($V222,\"}\",CHAR(160),GL$1))-FIND(CHAR(160),SUBSTITUTE($V222,\"{\",CHAR(160),GL$1))+1),\"\")","v":""},{"$f":"IFERROR(MID($V222,FIND(CHAR(160),SUBSTITUTE($V222,\"{\",CHAR(160),GM$1)),FIND(CHAR(160),SUBSTITUTE($V222,\"}\",CHAR(160),GM$1))-FIND(CHAR(160),SUBSTITUTE($V222,\"{\",CHAR(160),GM$1))+1),\"\")","v":""},{"$f":"IFERROR(MID($V222,FIND(CHAR(160),SUBSTITUTE($V222,\"{\",CHAR(160),GN$1)),FIND(CHAR(160),SUBSTITUTE($V222,\"}\",CHAR(160),GN$1))-FIND(CHAR(160),SUBSTITUTE($V222,\"{\",CHAR(160),GN$1))+1),\"\")","v":""},{"$f":"IFERROR(MID($V222,FIND(CHAR(160),SUBSTITUTE($V222,\"{\",CHAR(160),GO$1)),FIND(CHAR(160),SUBSTITUTE($V222,\"}\",CHAR(160),GO$1))-FIND(CHAR(160),SUBSTITUTE($V222,\"{\",CHAR(160),GO$1))+1),\"\")","v":"{Measure:Quantity}"},{"$f":"IFERROR(MID($V222,FIND(CHAR(160),SUBSTITUTE($V222,\"{\",CHAR(160),GP$1)),FIND(CHAR(160),SUBSTITUTE($V222,\"}\",CHAR(160),GP$1))-FIND(CHAR(160),SUBSTITUTE($V222,\"{\",CHAR(160),GP$1))+1),\"\")","v":"{Measure:Quantity}"},{"$f":"IFERROR(MID($W222,FIND(CHAR(160),SUBSTITUTE($W222,\"{\",CHAR(160),GQ$1)),FIND(CHAR(160),SUBSTITUTE($W222,\"}\",CHAR(160),GQ$1))-FIND(CHAR(160),SUBSTITUTE($W222,\"{\",CHAR(160),GQ$1))+1),\"\")","v":""},{"$f":"IFERROR(MID($W222,FIND(CHAR(160),SUBSTITUTE($W222,\"{\",CHAR(160),GR$1)),FIND(CHAR(160),SUBSTITUTE($W222,\"}\",CHAR(160),GR$1))-FIND(CHAR(160),SUBSTITUTE($W222,\"{\",CHAR(160),GR$1))+1),\"\")","v":""},{"$f":"IFERROR(MID($W222,FIND(CHAR(160),SUBSTITUTE($W222,\"{\",CHAR(160),GS$1)),FIND(CHAR(160),SUBSTITUTE($W222,\"}\",CHAR(160),GS$1))-FIND(CHAR(160),SUBSTITUTE($W222,\"{\",CHAR(160),GS$1))+1),\"\")","v":""},{"$f":"IFERROR(MID($W222,FIND(CHAR(160),SUBSTITUTE($W222,\"{\",CHAR(160),GT$1)),FIND(CHAR(160),SUBSTITUTE($W222,\"}\",CHAR(160),GT$1))-FIND(CHAR(160),SUBSTITUTE($W222,\"{\",CHAR(160),GT$1))+1),\"\")","v":""},{"$f":"IFERROR(MID($W222,FIND(CHAR(160),SUBSTITUTE($W222,\"{\",CHAR(160),GU$1)),FIND(CHAR(160),SUBSTITUTE($W222,\"}\",CHAR(160),GU$1))-FIND(CHAR(160),SUBSTITUTE($W222,\"{\",CHAR(160),GU$1))+1),\"\")","v":""},{"$f":"IFERROR(MID($W222,FIND(CHAR(160),SUBSTITUTE($W222,\"{\",CHAR(160),GV$1)),FIND(CHAR(160),SUBSTITUTE($W222,\"}\",CHAR(160),GV$1))-FIND(CHAR(160),SUBSTITUTE($W222,\"{\",CHAR(160),GV$1))+1),\"\")","v":""},{"$f":"IFERROR(MID($W222,FIND(CHAR(160),SUBSTITUTE($W222,\"{\",CHAR(160),GW$1)),FIND(CHAR(160),SUBSTITUTE($W222,\"}\",CHAR(160),GW$1))-FIND(CHAR(160),SUBSTITUTE($W222,\"{\",CHAR(160),GW$1))+1),\"\")","v":""},{"$f":"IFERROR(MID($W222,FIND(CHAR(160),SUBSTITUTE($W222,\"{\",CHAR(160),GX$1)),FIND(CHAR(160),SUBSTITUTE($W222,\"}\",CHAR(160),GX$1))-FIND(CHAR(160),SUBSTITUTE($W222,\"{\",CHAR(160),GX$1))+1),\"\")","v":""},{"$f":"IFERROR(MID($W222,FIND(CHAR(160),SUBSTITUTE($W222,\"{\",CHAR(160),GY$1)),FIND(CHAR(160),SUBSTITUTE($W222,\"}\",CHAR(160),GY$1))-FIND(CHAR(160),SUBSTITUTE($W222,\"{\",CHAR(160),GY$1))+1),\"\")","v":""},{"$f":"IFERROR(MID($W222,FIND(CHAR(160),SUBSTITUTE($W222,\"{\",CHAR(160),GZ$1)),FIND(CHAR(160),SUBSTITUTE($W222,\"}\",CHAR(160),GZ$1))-FIND(CHAR(160),SUBSTITUTE($W222,\"{\",CHAR(160),GZ$1))+1),\"\")","v":""},{"$f":"IFERROR(MID($X222,FIND(CHAR(160),SUBSTITUTE($X222,\"{\",CHAR(160),HA$1)),FIND(CHAR(160),SUBSTITUTE($X222,\"}\",CHAR(160),HA$1))-FIND(CHAR(160),SUBSTITUTE($X222,\"{\",CHAR(160),HA$1))+1),\"\")","v":""},{"$f":"IFERROR(MID($X222,FIND(CHAR(160),SUBSTITUTE($X222,\"{\",CHAR(160),HB$1)),FIND(CHAR(160),SUBSTITUTE($X222,\"}\",CHAR(160),HB$1))-FIND(CHAR(160),SUBSTITUTE($X222,\"{\",CHAR(160),HB$1))+1),\"\")","v":""},{"$f":"IFERROR(MID($X222,FIND(CHAR(160),SUBSTITUTE($X222,\"{\",CHAR(160),HC$1)),FIND(CHAR(160),SUBSTITUTE($X222,\"}\",CHAR(160),HC$1))-FIND(CHAR(160),SUBSTITUTE($X222,\"{\",CHAR(160),HC$1))+1),\"\")","v":""},{"$f":"IFERROR(MID($X222,FIND(CHAR(160),SUBSTITUTE($X222,\"{\",CHAR(160),HD$1)),FIND(CHAR(160),SUBSTITUTE($X222,\"}\",CHAR(160),HD$1))-FIND(CHAR(160),SUBSTITUTE($X222,\"{\",CHAR(160),HD$1))+1),\"\")","v":""},{"$f":"IFERROR(MID($X222,FIND(CHAR(160),SUBSTITUTE($X222,\"{\",CHAR(160),HE$1)),FIND(CHAR(160),SUBSTITUTE($X222,\"}\",CHAR(160),HE$1))-FIND(CHAR(160),SUBSTITUTE($X222,\"{\",CHAR(160),HE$1))+1),\"\")","v":""},{"$f":"IFERROR(MID($X222,FIND(CHAR(160),SUBSTITUTE($X222,\"{\",CHAR(160),HF$1)),FIND(CHAR(160),SUBSTITUTE($X222,\"}\",CHAR(160),HF$1))-FIND(CHAR(160),SUBSTITUTE($X222,\"{\",CHAR(160),HF$1))+1),\"\")","v":""},{"$f":"IFERROR(MID($X222,FIND(CHAR(160),SUBSTITUTE($X222,\"{\",CHAR(160),HG$1)),FIND(CHAR(160),SUBSTITUTE($X222,\"}\",CHAR(160),HG$1))-FIND(CHAR(160),SUBSTITUTE($X222,\"{\",CHAR(160),HG$1))+1),\"\")","v":""},{"$f":"IFERROR(MID($X222,FIND(CHAR(160),SUBSTITUTE($X222,\"{\",CHAR(160),HH$1)),FIND(CHAR(160),SUBSTITUTE($X222,\"}\",CHAR(160),HH$1))-FIND(CHAR(160),SUBSTITUTE($X222,\"{\",CHAR(160),HH$1))+1),\"\")","v":""},{"$f":"IFERROR(MID($X222,FIND(CHAR(160),SUBSTITUTE($X222,\"{\",CHAR(160),HI$1)),FIND(CHAR(160),SUBSTITUTE($X222,\"}\",CHAR(160),HI$1))-FIND(CHAR(160),SUBSTITUTE($X222,\"{\",CHAR(160),HI$1))+1),\"\")","v":""},{"$f":"IFERROR(MID($X222,FIND(CHAR(160),SUBSTITUTE($X222,\"{\",CHAR(160),HJ$1)),FIND(CHAR(160),SUBSTITUTE($X222,\"}\",CHAR(160),HJ$1))-FIND(CHAR(160),SUBSTITUTE($X222,\"{\",CHAR(160),HJ$1))+1),\"\")","v":""},{"$f":"IFERROR(MID($Y222,FIND(CHAR(160),SUBSTITUTE($Y222,\"{\",CHAR(160),HK$1)),FIND(CHAR(160),SUBSTITUTE($Y222,\"}\",CHAR(160),HK$1))-FIND(CHAR(160),SUBSTITUTE($Y222,\"{\",CHAR(160),HK$1))+1),\"\")","v":""},{"$f":"IFERROR(MID($Y222,FIND(CHAR(160),SUBSTITUTE($Y222,\"{\",CHAR(160),HL$1)),FIND(CHAR(160),SUBSTITUTE($Y222,\"}\",CHAR(160),HL$1))-FIND(CHAR(160),SUBSTITUTE($Y222,\"{\",CHAR(160),HL$1))+1),\"\")","v":""},{"$f":"IFERROR(MID($Y222,FIND(CHAR(160),SUBSTITUTE($Y222,\"{\",CHAR(160),HM$1)),FIND(CHAR(160),SUBSTITUTE($Y222,\"}\",CHAR(160),HM$1))-FIND(CHAR(160),SUBSTITUTE($Y222,\"{\",CHAR(160),HM$1))+1),\"\")","v":""},{"$f":"IFERROR(MID($Y222,FIND(CHAR(160),SUBSTITUTE($Y222,\"{\",CHAR(160),HN$1)),FIND(CHAR(160),SUBSTITUTE($Y222,\"}\",CHAR(160),HN$1))-FIND(CHAR(160),SUBSTITUTE($Y222,\"{\",CHAR(160),HN$1))+1),\"\")","v":""},{"$f":"IFERROR(MID($Y222,FIND(CHAR(160),SUBSTITUTE($Y222,\"{\",CHAR(160),HO$1)),FIND(CHAR(160),SUBSTITUTE($Y222,\"}\",CHAR(160),HO$1))-FIND(CHAR(160),SUBSTITUTE($Y222,\"{\",CHAR(160),HO$1))+1),\"\")","v":""},{"$f":"IFERROR(MID($Y222,FIND(CHAR(160),SUBSTITUTE($Y222,\"{\",CHAR(160),HP$1)),FIND(CHAR(160),SUBSTITUTE($Y222,\"}\",CHAR(160),HP$1))-FIND(CHAR(160),SUBSTITUTE($Y222,\"{\",CHAR(160),HP$1))+1),\"\")","v":""},{"$f":"IFERROR(MID($Y222,FIND(CHAR(160),SUBSTITUTE($Y222,\"{\",CHAR(160),HQ$1)),FIND(CHAR(160),SUBSTITUTE($Y222,\"}\",CHAR(160),HQ$1))-FIND(CHAR(160),SUBSTITUTE($Y222,\"{\",CHAR(160),HQ$1))+1),\"\")","v":""},{"$f":"IFERROR(MID($Y222,FIND(CHAR(160),SUBSTITUTE($Y222,\"{\",CHAR(160),HR$1)),FIND(CHAR(160),SUBSTITUTE($Y222,\"}\",CHAR(160),HR$1))-FIND(CHAR(160),SUBSTITUTE($Y222,\"{\",CHAR(160),HR$1))+1),\"\")","v":""},{"$f":"IFERROR(MID($Y222,FIND(CHAR(160),SUBSTITUTE($Y222,\"{\",CHAR(160),HS$1)),FIND(CHAR(160),SUBSTITUTE($Y222,\"}\",CHAR(160),HS$1))-FIND(CHAR(160),SUBSTITUTE($Y222,\"{\",CHAR(160),HS$1))+1),\"\")","v":""},{"$f":"IFERROR(MID($Y222,FIND(CHAR(160),SUBSTITUTE($Y222,\"{\",CHAR(160),HT$1)),FIND(CHAR(160),SUBSTITUTE($Y222,\"}\",CHAR(160),HT$1))-FIND(CHAR(160),SUBSTITUTE($Y222,\"{\",CHAR(160),HT$1))+1),\"\")","v":""},{"$f":"IFERROR(MID($Z222,FIND(CHAR(160),SUBSTITUTE($Z222,\"{\",CHAR(160),HU$1)),FIND(CHAR(160),SUBSTITUTE($Z222,\"}\",CHAR(160),HU$1))-FIND(CHAR(160),SUBSTITUTE($Z222,\"{\",CHAR(160),HU$1))+1),\"\")","v":""},{"$f":"IFERROR(MID($Z222,FIND(CHAR(160),SUBSTITUTE($Z222,\"{\",CHAR(160),HV$1)),FIND(CHAR(160),SUBSTITUTE($Z222,\"}\",CHAR(160),HV$1))-FIND(CHAR(160),SUBSTITUTE($Z222,\"{\",CHAR(160),HV$1))+1),\"\")","v":""},{"$f":"IFERROR(MID($Z222,FIND(CHAR(160),SUBSTITUTE($Z222,\"{\",CHAR(160),HW$1)),FIND(CHAR(160),SUBSTITUTE($Z222,\"}\",CHAR(160),HW$1))-FIND(CHAR(160),SUBSTITUTE($Z222,\"{\",CHAR(160),HW$1))+1),\"\")","v":""},{"$f":"IFERROR(MID($Z222,FIND(CHAR(160),SUBSTITUTE($Z222,\"{\",CHAR(160),HX$1)),FIND(CHAR(160),SUBSTITUTE($Z222,\"}\",CHAR(160),HX$1))-FIND(CHAR(160),SUBSTITUTE($Z222,\"{\",CHAR(160),HX$1))+1),\"\")","v":""},{"$f":"IFERROR(MID($Z222,FIND(CHAR(160),SUBSTITUTE($Z222,\"{\",CHAR(160),HY$1)),FIND(CHAR(160),SUBSTITUTE($Z222,\"}\",CHAR(160),HY$1))-FIND(CHAR(160),SUBSTITUTE($Z222,\"{\",CHAR(160),HY$1))+1),\"\")","v":""},{"$f":"IFERROR(MID($Z222,FIND(CHAR(160),SUBSTITUTE($Z222,\"{\",CHAR(160),HZ$1)),FIND(CHAR(160),SUBSTITUTE($Z222,\"}\",CHAR(160),HZ$1))-FIND(CHAR(160),SUBSTITUTE($Z222,\"{\",CHAR(160),HZ$1))+1),\"\")","v":""},{"$f":"IFERROR(MID($Z222,FIND(CHAR(160),SUBSTITUTE($Z222,\"{\",CHAR(160),IA$1)),FIND(CHAR(160),SUBSTITUTE($Z222,\"}\",CHAR(160),IA$1))-FIND(CHAR(160),SUBSTITUTE($Z222,\"{\",CHAR(160),IA$1))+1),\"\")","v":""},{"$f":"IFERROR(MID($Z222,FIND(CHAR(160),SUBSTITUTE($Z222,\"{\",CHAR(160),IB$1)),FIND(CHAR(160),SUBSTITUTE($Z222,\"}\",CHAR(160),IB$1))-FIND(CHAR(160),SUBSTITUTE($Z222,\"{\",CHAR(160),IB$1))+1),\"\")","v":""},{"$f":"IFERROR(MID($Z222,FIND(CHAR(160),SUBSTITUTE($Z222,\"{\",CHAR(160),IC$1)),FIND(CHAR(160),SUBSTITUTE($Z222,\"}\",CHAR(160),IC$1))-FIND(CHAR(160),SUBSTITUTE($Z222,\"{\",CHAR(160),IC$1))+1),\"\")","v":""},{"$f":"IFERROR(MID($Z222,FIND(CHAR(160),SUBSTITUTE($Z222,\"{\",CHAR(160),ID$1)),FIND(CHAR(160),SUBSTITUTE($Z222,\"}\",CHAR(160),ID$1))-FIND(CHAR(160),SUBSTITUTE($Z222,\"{\",CHAR(160),ID$1))+1),\"\")","v":""},{"$f":"IFERROR(MID($AA222,FIND(CHAR(160),SUBSTITUTE($AA222,\"{\",CHAR(160),IE$1)),FIND(CHAR(160),SUBSTITUTE($AA222,\"}\",CHAR(160),IE$1))-FIND(CHAR(160),SUBSTITUTE($AA222,\"{\",CHAR(160),IE$1))+1),\"\")","v":""},{"$f":"IFERROR(MID($AA222,FIND(CHAR(160),SUBSTITUTE($AA222,\"{\",CHAR(160),IF$1)),FIND(CHAR(160),SUBSTITUTE($AA222,\"}\",CHAR(160),IF$1))-FIND(CHAR(160),SUBSTITUTE($AA222,\"{\",CHAR(160),IF$1))+1),\"\")","v":""},{"$f":"IFERROR(MID($AA222,FIND(CHAR(160),SUBSTITUTE($AA222,\"{\",CHAR(160),IG$1)),FIND(CHAR(160),SUBSTITUTE($AA222,\"}\",CHAR(160),IG$1))-FIND(CHAR(160),SUBSTITUTE($AA222,\"{\",CHAR(160),IG$1))+1),\"\")","v":""},{"$f":"IFERROR(MID($AA222,FIND(CHAR(160),SUBSTITUTE($AA222,\"{\",CHAR(160),IH$1)),FIND(CHAR(160),SUBSTITUTE($AA222,\"}\",CHAR(160),IH$1))-FIND(CHAR(160),SUBSTITUTE($AA222,\"{\",CHAR(160),IH$1))+1),\"\")","v":""},{"$f":"IFERROR(MID($AA222,FIND(CHAR(160),SUBSTITUTE($AA222,\"{\",CHAR(160),II$1)),FIND(CHAR(160),SUBSTITUTE($AA222,\"}\",CHAR(160),II$1))-FIND(CHAR(160),SUBSTITUTE($AA222,\"{\",CHAR(160),II$1))+1),\"\")","v":""},{"$f":"IFERROR(MID($AA222,FIND(CHAR(160),SUBSTITUTE($AA222,\"{\",CHAR(160),IJ$1)),FIND(CHAR(160),SUBSTITUTE($AA222,\"}\",CHAR(160),IJ$1))-FIND(CHAR(160),SUBSTITUTE($AA222,\"{\",CHAR(160),IJ$1))+1),\"\")","v":""},{"$f":"IFERROR(MID($AA222,FIND(CHAR(160),SUBSTITUTE($AA222,\"{\",CHAR(160),IK$1)),FIND(CHAR(160),SUBSTITUTE($AA222,\"}\",CHAR(160),IK$1))-FIND(CHAR(160),SUBSTITUTE($AA222,\"{\",CHAR(160),IK$1))+1),\"\")","v":""},{"$f":"IFERROR(MID($AA222,FIND(CHAR(160),SUBSTITUTE($AA222,\"{\",CHAR(160),IL$1)),FIND(CHAR(160),SUBSTITUTE($AA222,\"}\",CHAR(160),IL$1))-FIND(CHAR(160),SUBSTITUTE($AA222,\"{\",CHAR(160),IL$1))+1),\"\")","v":""},{"$f":"IFERROR(MID($AA222,FIND(CHAR(160),SUBSTITUTE($AA222,\"{\",CHAR(160),IM$1)),FIND(CHAR(160),SUBSTITUTE($AA222,\"}\",CHAR(160),IM$1))-FIND(CHAR(160),SUBSTITUTE($AA222,\"{\",CHAR(160),IM$1))+1),\"\")","v":""},{"$f":"IFERROR(MID($AA222,FIND(CHAR(160),SUBSTITUTE($AA222,\"{\",CHAR(160),IN$1)),FIND(CHAR(160),SUBSTITUTE($AA222,\"}\",CHAR(160),IN$1))-FIND(CHAR(160),SUBSTITUTE($AA222,\"{\",CHAR(160),IN$1))+1),\"\")","v":""},{"$f":"IFERROR(MID($AB222,FIND(CHAR(160),SUBSTITUTE($AB222,\"{\",CHAR(160),IO$1)),FIND(CHAR(160),SUBSTITUTE($AB222,\"}\",CHAR(160),IO$1))-FIND(CHAR(160),SUBSTITUTE($AB222,\"{\",CHAR(160),IO$1))+1),\"\")","v":""},{"$f":"IFERROR(MID($AB222,FIND(CHAR(160),SUBSTITUTE($AB222,\"{\",CHAR(160),IP$1)),FIND(CHAR(160),SUBSTITUTE($AB222,\"}\",CHAR(160),IP$1))-FIND(CHAR(160),SUBSTITUTE($AB222,\"{\",CHAR(160),IP$1))+1),\"\")","v":""},{"$f":"IFERROR(MID($AB222,FIND(CHAR(160),SUBSTITUTE($AB222,\"{\",CHAR(160),IQ$1)),FIND(CHAR(160),SUBSTITUTE($AB222,\"}\",CHAR(160),IQ$1))-FIND(CHAR(160),SUBSTITUTE($AB222,\"{\",CHAR(160),IQ$1))+1),\"\")","v":""},{"$f":"IFERROR(MID($AB222,FIND(CHAR(160),SUBSTITUTE($AB222,\"{\",CHAR(160),IR$1)),FIND(CHAR(160),SUBSTITUTE($AB222,\"}\",CHAR(160),IR$1))-FIND(CHAR(160),SUBSTITUTE($AB222,\"{\",CHAR(160),IR$1))+1),\"\")","v":""},{"$f":"IFERROR(MID($AB222,FIND(CHAR(160),SUBSTITUTE($AB222,\"{\",CHAR(160),IS$1)),FIND(CHAR(160),SUBSTITUTE($AB222,\"}\",CHAR(160),IS$1))-FIND(CHAR(160),SUBSTITUTE($AB222,\"{\",CHAR(160),IS$1))+1),\"\")","v":""},{"$f":"IFERROR(MID($AB222,FIND(CHAR(160),SUBSTITUTE($AB222,\"{\",CHAR(160),IT$1)),FIND(CHAR(160),SUBSTITUTE($AB222,\"}\",CHAR(160),IT$1))-FIND(CHAR(160),SUBSTITUTE($AB222,\"{\",CHAR(160),IT$1))+1),\"\")","v":""},{"$f":"IFERROR(MID($AB222,FIND(CHAR(160),SUBSTITUTE($AB222,\"{\",CHAR(160),IU$1)),FIND(CHAR(160),SUBSTITUTE($AB222,\"}\",CHAR(160),IU$1))-FIND(CHAR(160),SUBSTITUTE($AB222,\"{\",CHAR(160),IU$1))+1),\"\")","v":""},{"$f":"IFERROR(MID($AB222,FIND(CHAR(160),SUBSTITUTE($AB222,\"{\",CHAR(160),IV$1)),FIND(CHAR(160),SUBSTITUTE($AB222,\"}\",CHAR(160),IV$1))-FIND(CHAR(160),SUBSTITUTE($AB222,\"{\",CHAR(160),IV$1))+1),\"\")","v":""},{"$f":"IFERROR(MID($AB222,FIND(CHAR(160),SUBSTITUTE($AB222,\"{\",CHAR(160),IW$1)),FIND(CHAR(160),SUBSTITUTE($AB222,\"}\",CHAR(160),IW$1))-FIND(CHAR(160),SUBSTITUTE($AB222,\"{\",CHAR(160),IW$1))+1),\"\")","v":""},{"$f":"IFERROR(MID($AB222,FIND(CHAR(160),SUBSTITUTE($AB222,\"{\",CHAR(160),IX$1)),FIND(CHAR(160),SUBSTITUTE($AB222,\"}\",CHAR(160),IX$1))-FIND(CHAR(160),SUBSTITUTE($AB222,\"{\",CHAR(160),IX$1))+1),\"\")","v":""},null,{"$f":"10-COUNTIF(DU222:ED222,\"\")","v":1}]
["Low Income Direct Install - Electric","Low Flow Kitchen Aerator Direct Install","LILFKA","2021-07-01","2022-06-30","Per Measure",1.77,0,"Per Measure",1.77,0,"2021-07-01","2022-06-30","Calculated","{Measure:Quantity}*if({Measure:Quantity}=0,0,79)",null,null,null,null,null,"{Measure:Quantity}*if({Measure:Quantity}=0,0,0.012)","{Measure:Quantity}*if({Measure:Quantity}=0,0,0.010)",null,null,null,null,null,"if({Measure:Quantity}=0,0,{Measure:Quantity}*2696)","2021-07-01","2022-06-30",10,1.2E-2,8.0000000000000002E-3,0.39700000000000002,0.26800000000000002,0.20300000000000001,0.13100000000000001,0.85,1,1,0,0,null,{"$f":"DU223","v":"{Measure:Quantity}"},1,{"$f":"DV223","v":""},1,{"$f":"DW223","v":""},null,{"$f":"DX223","v":""},null,{"$f":"DY223","v":""},null,{"$f":"DZ223","v":""},null,{"$f":"EA223","v":""},null,{"$f":"EB223","v":""},null,{"$f":"EC223","v":""},null,"LIDI Bundle Qty",0.5,{"$f":"AS223*IF(AS223=0,0,79)","v":79},0,0,0,0,0,{"$f":"AS223*IF(AS223=0,0,0.012)","v":1.2E-2},{"$f":"AS223*IF(AS223=0,0,0.01)","v":0.01},0,0,0,0,0,{"$f":"IF(AS223=0,0,AS223*2696)","v":2696},null,"Res","Default DR",{"$f":"Benefits(BL223,BR223,BS223,BT223,BU223,BV223,BW223,BX223,BY223,BZ223,AE223,AH223,AI223,AJ223,AK223,AL223,AM223,AN223,AO223,AP223,CA223,CB223)","v":66.146451515341823},38.545897377257639,0,0,0,0,0,160.06822300148838,0,{"$f":"SUMPRODUCT(CC223:CK223,--(CC223:CK223>0))","v":264.76057189408783},{"$f":"-SUMPRODUCT(CC223:CK223,--(CC223:CK223<0))","v":0},null,{"$f":"1.77","v":1.77},null,null,{"$f":"CM223+CO223","v":1.77},{"$f":"IF(NetOrGross=\"Net\",(1-AO223+AP223),1)","v":1},{"$f":"(SUMPRODUCT(CC223:CJ223,--(CC223:CJ223>0))+CN223)*CS223/((-SUMPRODUCT(CC223:CJ223,--(CC223:CJ223<0))+MAX(CO223,CV223)+CP223+CQ223)*CS223+IF(FRIncentives=\"Yes\",CV223*(1-CS223),0))","v":149.58224400795922},1,{"$f":"1.77","v":1.77},null,"Electric","y",{"$f":"CL223-CR223","v":262.99057189408785},{"$f":"IF(F223=\"Manual Entry\",\"Manual\",IF(G223=\"\",0,\"X=\"&SUBSTITUTE(SUBSTITUTE(SUBSTITUTE(SUBSTITUTE(SUBSTITUTE(SUBSTITUTE(SUBSTITUTE(SUBSTITUTE(SUBSTITUTE(SUBSTITUTE(SUBSTITUTE(SUBSTITUTE(G223,$ED223,$ED$2&ROW($ED223)),$EC223,$EC$2&ROW($EC223)),$EB223,$EB$2&ROW($EB223)),$EA223,$EA$2&ROW($EA223)),$DZ223,$DZ$2&ROW($DZ223)),$DY223,$DY$2&ROW($DY223)),$DX223,$DX$2&ROW($DX223)),$DW223,$DW$2&ROW($DW223)),$DV223,$DV$2&ROW($DV223)),$DU223,$DU$2&ROW($DU223)),$DT223,$DT$2&ROW($DT223)),$DS223,$DS$2&ROW($DS223))))","v":"X=1.77"},{"$f":"IF(I223=\"Manual Entry\",\"Manual\",IF(J223=\"\",0,\"X=\"&SUBSTITUTE(SUBSTITUTE(SUBSTITUTE(SUBSTITUTE(SUBSTITUTE(SUBSTITUTE(SUBSTITUTE(SUBSTITUTE(SUBSTITUTE(SUBSTITUTE(SUBSTITUTE(SUBSTITUTE(J223,$ED223,$ED$2&ROW($ED223)),$EC223,$EC$2&ROW($EC223)),$EB223,$EB$2&ROW($EB223)),$EA223,$EA$2&ROW($EA223)),$DZ223,$DZ$2&ROW($DZ223)),$DY223,$DY$2&ROW($DY223)),$DX223,$DX$2&ROW($DX223)),$DW223,$DW$2&ROW($DW223)),$DV223,$DV$2&ROW($DV223)),$DU223,$DU$2&ROW($DU223)),$DT223,$DT$2&ROW($DT223)),$DS223,$DS$2&ROW($DS223))))","v":"X=1.77"},{"$f":"IF(O223=\"\",0,\"X=\"&SUBSTITUTE(SUBSTITUTE(SUBSTITUTE(SUBSTITUTE(SUBSTITUTE(SUBSTITUTE(SUBSTITUTE(SUBSTITUTE(SUBSTITUTE(SUBSTITUTE(SUBSTITUTE(SUBSTITUTE(O223,$ED223,$ED$2&ROW($ED223)),$EC223,$EC$2&ROW($EC223)),$EB223,$EB$2&ROW($EB223)),$EA223,$EA$2&ROW($EA223)),$DZ223,$DZ$2&ROW($DZ223)),$DY223,$DY$2&ROW($DY223)),$DX223,$DX$2&ROW($DX223)),$DW223,$DW$2&ROW($DW223)),$DV223,$DV$2&ROW($DV223)),$DU223,$DU$2&ROW($DU223)),$DT223,$DT$2&ROW($DT223)),$DS223,$DS$2&ROW($DS223)))","v":"X=AS223*if(AS223=0,0,79)"},{"$f":"IF(P223=\"\",0,\"X=\"&SUBSTITUTE(SUBSTITUTE(SUBSTITUTE(SUBSTITUTE(SUBSTITUTE(SUBSTITUTE(SUBSTITUTE(SUBSTITUTE(SUBSTITUTE(SUBSTITUTE(SUBSTITUTE(SUBSTITUTE(P223,$ED223,$ED$2&ROW($ED223)),$EC223,$EC$2&ROW($EC223)),$EB223,$EB$2&ROW($EB223)),$EA223,$EA$2&ROW($EA223)),$DZ223,$DZ$2&ROW($DZ223)),$DY223,$DY$2&ROW($DY223)),$DX223,$DX$2&ROW($DX223)),$DW223,$DW$2&ROW($DW223)),$DV223,$DV$2&ROW($DV223)),$DU223,$DU$2&ROW($DU223)),$DT223,$DT$2&ROW($DT223)),$DS223,$DS$2&ROW($DS223)))","v":0},{"$f":"IF(Q223=\"\",0,\"X=\"&SUBSTITUTE(SUBSTITUTE(SUBSTITUTE(SUBSTITUTE(SUBSTITUTE(SUBSTITUTE(SUBSTITUTE(SUBSTITUTE(SUBSTITUTE(SUBSTITUTE(SUBSTITUTE(SUBSTITUTE(Q223,$ED223,$ED$2&ROW($ED223)),$EC223,$EC$2&ROW($EC223)),$EB223,$EB$2&ROW($EB223)),$EA223,$EA$2&ROW($EA223)),$DZ223,$DZ$2&ROW($DZ223)),$DY223,$DY$2&ROW($DY223)),$DX223,$DX$2&ROW($DX223)),$DW223,$DW$2&ROW($DW223)),$DV223,$DV$2&ROW($DV223)),$DU223,$DU$2&ROW($DU223)),$DT223,$DT$2&ROW($DT223)),$DS223,$DS$2&ROW($DS223)))","v":0},{"$f":"IF(R223=\"\",0,\"X=\"&SUBSTITUTE(SUBSTITUTE(SUBSTITUTE(SUBSTITUTE(SUBSTITUTE(SUBSTITUTE(SUBSTITUTE(SUBSTITUTE(SUBSTITUTE(SUBSTITUTE(SUBSTITUTE(SUBSTITUTE(R223,$ED223,$ED$2&ROW($ED223)),$EC223,$EC$2&ROW($EC223)),$EB223,$EB$2&ROW($EB223)),$EA223,$EA$2&ROW($EA223)),$DZ223,$DZ$2&ROW($DZ223)),$DY223,$DY$2&ROW($DY223)),$DX223,$DX$2&ROW($DX223)),$DW223,$DW$2&ROW($DW223)),$DV223,$DV$2&ROW($DV223)),$DU223,$DU$2&ROW($DU223)),$DT223,$DT$2&ROW($DT223)),$DS223,$DS$2&ROW($DS223)))","v":0},{"$f":"IF(S223=\"\",0,\"X=\"&SUBSTITUTE(SUBSTITUTE(SUBSTITUTE(SUBSTITUTE(SUBSTITUTE(SUBSTITUTE(SUBSTITUTE(SUBSTITUTE(SUBSTITUTE(SUBSTITUTE(SUBSTITUTE(SUBSTITUTE(S223,$ED223,$ED$2&ROW($ED223)),$EC223,$EC$2&ROW($EC223)),$EB223,$EB$2&ROW($EB223)),$EA223,$EA$2&ROW($EA223)),$DZ223,$DZ$2&ROW($DZ223)),$DY223,$DY$2&ROW($DY223)),$DX223,$DX$2&ROW($DX223)),$DW223,$DW$2&ROW($DW223)),$DV223,$DV$2&ROW($DV223)),$DU223,$DU$2&ROW($DU223)),$DT223,$DT$2&ROW($DT223)),$DS223,$DS$2&ROW($DS223)))","v":0},{"$f":"IF(T223=\"\",0,\"X=\"&SUBSTITUTE(SUBSTITUTE(SUBSTITUTE(SUBSTITUTE(SUBSTITUTE(SUBSTITUTE(SUBSTITUTE(SUBSTITUTE(SUBSTITUTE(SUBSTITUTE(SUBSTITUTE(SUBSTITUTE(T223,$ED223,$ED$2&ROW($ED223)),$EC223,$EC$2&ROW($EC223)),$EB223,$EB$2&ROW($EB223)),$EA223,$EA$2&ROW($EA223)),$DZ223,$DZ$2&ROW($DZ223)),$DY223,$DY$2&ROW($DY223)),$DX223,$DX$2&ROW($DX223)),$DW223,$DW$2&ROW($DW223)),$DV223,$DV$2&ROW($DV223)),$DU223,$DU$2&ROW($DU223)),$DT223,$DT$2&ROW($DT223)),$DS223,$DS$2&ROW($DS223)))","v":0},{"$f":"IF(U223=\"\",0,\"X=\"&SUBSTITUTE(SUBSTITUTE(SUBSTITUTE(SUBSTITUTE(SUBSTITUTE(SUBSTITUTE(SUBSTITUTE(SUBSTITUTE(SUBSTITUTE(SUBSTITUTE(SUBSTITUTE(SUBSTITUTE(U223,$ED223,$ED$2&ROW($ED223)),$EC223,$EC$2&ROW($EC223)),$EB223,$EB$2&ROW($EB223)),$EA223,$EA$2&ROW($EA223)),$DZ223,$DZ$2&ROW($DZ223)),$DY223,$DY$2&ROW($DY223)),$DX223,$DX$2&ROW($DX223)),$DW223,$DW$2&ROW($DW223)),$DV223,$DV$2&ROW($DV223)),$DU223,$DU$2&ROW($DU223)),$DT223,$DT$2&ROW($DT223)),$DS223,$DS$2&ROW($DS223)))","v":"X=AS223*if(AS223=0,0,0.012)"},{"$f":"IF(V223=\"\",0,\"X=\"&SUBSTITUTE(SUBSTITUTE(SUBSTITUTE(SUBSTITUTE(SUBSTITUTE(SUBSTITUTE(SUBSTITUTE(SUBSTITUTE(SUBSTITUTE(SUBSTITUTE(SUBSTITUTE(SUBSTITUTE(V223,$ED223,$ED$2&ROW($ED223)),$EC223,$EC$2&ROW($EC223)),$EB223,$EB$2&ROW($EB223)),$EA223,$EA$2&ROW($EA223)),$DZ223,$DZ$2&ROW($DZ223)),$DY223,$DY$2&ROW($DY223)),$DX223,$DX$2&ROW($DX223)),$DW223,$DW$2&ROW($DW223)),$DV223,$DV$2&ROW($DV223)),$DU223,$DU$2&ROW($DU223)),$DT223,$DT$2&ROW($DT223)),$DS223,$DS$2&ROW($DS223)))","v":"X=AS223*if(AS223=0,0,0.010)"},{"$f":"IF(W223=\"\",0,\"X=\"&SUBSTITUTE(SUBSTITUTE(SUBSTITUTE(SUBSTITUTE(SUBSTITUTE(SUBSTITUTE(SUBSTITUTE(SUBSTITUTE(SUBSTITUTE(SUBSTITUTE(SUBSTITUTE(SUBSTITUTE(W223,$ED223,$ED$2&ROW($ED223)),$EC223,$EC$2&ROW($EC223)),$EB223,$EB$2&ROW($EB223)),$EA223,$EA$2&ROW($EA223)),$DZ223,$DZ$2&ROW($DZ223)),$DY223,$DY$2&ROW($DY223)),$DX223,$DX$2&ROW($DX223)),$DW223,$DW$2&ROW($DW223)),$DV223,$DV$2&ROW($DV223)),$DU223,$DU$2&ROW($DU223)),$DT223,$DT$2&ROW($DT223)),$DS223,$DS$2&ROW($DS223)))","v":0},{"$f":"IF(X223=\"\",0,\"X=\"&SUBSTITUTE(SUBSTITUTE(SUBSTITUTE(SUBSTITUTE(SUBSTITUTE(SUBSTITUTE(SUBSTITUTE(SUBSTITUTE(SUBSTITUTE(SUBSTITUTE(SUBSTITUTE(SUBSTITUTE(X223,$ED223,$ED$2&ROW($ED223)),$EC223,$EC$2&ROW($EC223)),$EB223,$EB$2&ROW($EB223)),$EA223,$EA$2&ROW($EA223)),$DZ223,$DZ$2&ROW($DZ223)),$DY223,$DY$2&ROW($DY223)),$DX223,$DX$2&ROW($DX223)),$DW223,$DW$2&ROW($DW223)),$DV223,$DV$2&ROW($DV223)),$DU223,$DU$2&ROW($DU223)),$DT223,$DT$2&ROW($DT223)),$DS223,$DS$2&ROW($DS223)))","v":0},{"$f":"IF(Y223=\"\",0,\"X=\"&SUBSTITUTE(SUBSTITUTE(SUBSTITUTE(SUBSTITUTE(SUBSTITUTE(SUBSTITUTE(SUBSTITUTE(SUBSTITUTE(SUBSTITUTE(SUBSTITUTE(SUBSTITUTE(SUBSTITUTE(Y223,$ED223,$ED$2&ROW($ED223)),$EC223,$EC$2&ROW($EC223)),$EB223,$EB$2&ROW($EB223)),$EA223,$EA$2&ROW($EA223)),$DZ223,$DZ$2&ROW($DZ223)),$DY223,$DY$2&ROW($DY223)),$DX223,$DX$2&ROW($DX223)),$DW223,$DW$2&ROW($DW223)),$DV223,$DV$2&ROW($DV223)),$DU223,$DU$2&ROW($DU223)),$DT223,$DT$2&ROW($DT223)),$DS223,$DS$2&ROW($DS223)))","v":0},{"$f":"IF(Z223=\"\",0,\"X=\"&SUBSTITUTE(SUBSTITUTE(SUBSTITUTE(SUBSTITUTE(SUBSTITUTE(SUBSTITUTE(SUBSTITUTE(SUBSTITUTE(SUBSTITUTE(SUBSTITUTE(SUBSTITUTE(SUBSTITUTE(Z223,$ED223,$ED$2&ROW($ED223)),$EC223,$EC$2&ROW($EC223)),$EB223,$EB$2&ROW($EB223)),$EA223,$EA$2&ROW($EA223)),$DZ223,$DZ$2&ROW($DZ223)),$DY223,$DY$2&ROW($DY223)),$DX223,$DX$2&ROW($DX223)),$DW223,$DW$2&ROW($DW223)),$DV223,$DV$2&ROW($DV223)),$DU223,$DU$2&ROW($DU223)),$DT223,$DT$2&ROW($DT223)),$DS223,$DS$2&ROW($DS223)))","v":0},{"$f":"IF(AA223=\"\",0,\"X=\"&SUBSTITUTE(SUBSTITUTE(SUBSTITUTE(SUBSTITUTE(SUBSTITUTE(SUBSTITUTE(SUBSTITUTE(SUBSTITUTE(SUBSTITUTE(SUBSTITUTE(SUBSTITUTE(SUBSTITUTE(AA223,$ED223,$ED$2&ROW($ED223)),$EC223,$EC$2&ROW($EC223)),$EB223,$EB$2&ROW($EB223)),$EA223,$EA$2&ROW($EA223)),$DZ223,$DZ$2&ROW($DZ223)),$DY223,$DY$2&ROW($DY223)),$DX223,$DX$2&ROW($DX223)),$DW223,$DW$2&ROW($DW223)),$DV223,$DV$2&ROW($DV223)),$DU223,$DU$2&ROW($DU223)),$DT223,$DT$2&ROW($DT223)),$DS223,$DS$2&ROW($DS223)))","v":0},{"$f":"IF(AB223=\"\",0,\"X=\"&SUBSTITUTE(SUBSTITUTE(SUBSTITUTE(SUBSTITUTE(SUBSTITUTE(SUBSTITUTE(SUBSTITUTE(SUBSTITUTE(SUBSTITUTE(SUBSTITUTE(SUBSTITUTE(SUBSTITUTE(AB223,$ED223,$ED$2&ROW($ED223)),$EC223,$EC$2&ROW($EC223)),$EB223,$EB$2&ROW($EB223)),$EA223,$EA$2&ROW($EA223)),$DZ223,$DZ$2&ROW($DZ223)),$DY223,$DY$2&ROW($DY223)),$DX223,$DX$2&ROW($DX223)),$DW223,$DW$2&ROW($DW223)),$DV223,$DV$2&ROW($DV223)),$DU223,$DU$2&ROW($DU223)),$DT223,$DT$2&ROW($DT223)),$DS223,$DS$2&ROW($DS223)))","v":"X=if(AS223=0,0,AS223*2696)"},null,null,"{Factor:WinterCF}","{Factor:SummerCF}",{"$f":"IFERROR(INDEX($EG223:$IV223,MATCH(0,COUNTIF($DR223:DT223,$EG223:$IV223),0)),\"\")","v":"{Measure:Quantity}"},{"$f":"IFERROR(INDEX($EG223:$IV223,MATCH(0,COUNTIF($DR223:DU223,$EG223:$IV223),0)),\"\")","v":""},{"$f":"IFERROR(INDEX($EG223:$IV223,MATCH(0,COUNTIF($DR223:DV223,$EG223:$IV223),0)),\"\")","v":""},{"$f":"IFERROR(INDEX($EG223:$IV223,MATCH(0,COUNTIF($DR223:DW223,$EG223:$IV223),0)),\"\")","v":""},{"$f":"IFERROR(INDEX($EG223:$IV223,MATCH(0,COUNTIF($DR223:DX223,$EG223:$IV223),0)),\"\")","v":""},{"$f":"IFERROR(INDEX($EG223:$IV223,MATCH(0,COUNTIF($DR223:DY223,$EG223:$IV223),0)),\"\")","v":""},{"$f":"IFERROR(INDEX($EG223:$IV223,MATCH(0,COUNTIF($DR223:DZ223,$EG223:$IV223),0)),\"\")","v":""},{"$f":"IFERROR(INDEX($EG223:$IV223,MATCH(0,COUNTIF($DR223:EA223,$EG223:$IV223),0)),\"\")","v":""},{"$f":"IFERROR(INDEX($EG223:$IV223,MATCH(0,COUNTIF($DR223:EB223,$EG223:$IV223),0)),\"\")","v":""},{"$f":"IFERROR(INDEX($EG223:$IV223,MATCH(0,COUNTIF($DR223:EC223,$EG223:$IV223),0)),\"\")","v":""},null,null,{"$f":"IFERROR(MID($G223,FIND(CHAR(160),SUBSTITUTE($G223,\"{\",CHAR(160),EG$1)),FIND(CHAR(160),SUBSTITUTE($G223,\"}\",CHAR(160),EG$1))-FIND(CHAR(160),SUBSTITUTE($G223,\"{\",CHAR(160),EG$1))+1),\"\")","v":""},{"$f":"IFERROR(MID($G223,FIND(CHAR(160),SUBSTITUTE($G223,\"{\",CHAR(160),EH$1)),FIND(CHAR(160),SUBSTITUTE($G223,\"}\",CHAR(160),EH$1))-FIND(CHAR(160),SUBSTITUTE($G223,\"{\",CHAR(160),EH$1))+1),\"\")","v":""},{"$f":"IFERROR(MID($G223,FIND(CHAR(160),SUBSTITUTE($G223,\"{\",CHAR(160),EI$1)),FIND(CHAR(160),SUBSTITUTE($G223,\"}\",CHAR(160),EI$1))-FIND(CHAR(160),SUBSTITUTE($G223,\"{\",CHAR(160),EI$1))+1),\"\")","v":""},{"$f":"IFERROR(MID($G223,FIND(CHAR(160),SUBSTITUTE($G223,\"{\",CHAR(160),EJ$1)),FIND(CHAR(160),SUBSTITUTE($G223,\"}\",CHAR(160),EJ$1))-FIND(CHAR(160),SUBSTITUTE($G223,\"{\",CHAR(160),EJ$1))+1),\"\")","v":""},{"$f":"IFERROR(MID($G223,FIND(CHAR(160),SUBSTITUTE($G223,\"{\",CHAR(160),EK$1)),FIND(CHAR(160),SUBSTITUTE($G223,\"}\",CHAR(160),EK$1))-FIND(CHAR(160),SUBSTITUTE($G223,\"{\",CHAR(160),EK$1))+1),\"\")","v":""},{"$f":"IFERROR(MID($G223,FIND(CHAR(160),SUBSTITUTE($G223,\"{\",CHAR(160),EL$1)),FIND(CHAR(160),SUBSTITUTE($G223,\"}\",CHAR(160),EL$1))-FIND(CHAR(160),SUBSTITUTE($G223,\"{\",CHAR(160),EL$1))+1),\"\")","v":""},{"$f":"IFERROR(MID($G223,FIND(CHAR(160),SUBSTITUTE($G223,\"{\",CHAR(160),EM$1)),FIND(CHAR(160),SUBSTITUTE($G223,\"}\",CHAR(160),EM$1))-FIND(CHAR(160),SUBSTITUTE($G223,\"{\",CHAR(160),EM$1))+1),\"\")","v":""},{"$f":"IFERROR(MID($G223,FIND(CHAR(160),SUBSTITUTE($G223,\"{\",CHAR(160),EN$1)),FIND(CHAR(160),SUBSTITUTE($G223,\"}\",CHAR(160),EN$1))-FIND(CHAR(160),SUBSTITUTE($G223,\"{\",CHAR(160),EN$1))+1),\"\")","v":""},{"$f":"IFERROR(MID($G223,FIND(CHAR(160),SUBSTITUTE($G223,\"{\",CHAR(160),EO$1)),FIND(CHAR(160),SUBSTITUTE($G223,\"}\",CHAR(160),EO$1))-FIND(CHAR(160),SUBSTITUTE($G223,\"{\",CHAR(160),EO$1))+1),\"\")","v":""},{"$f":"IFERROR(MID($G223,FIND(CHAR(160),SUBSTITUTE($G223,\"{\",CHAR(160),EP$1)),FIND(CHAR(160),SUBSTITUTE($G223,\"}\",CHAR(160),EP$1))-FIND(CHAR(160),SUBSTITUTE($G223,\"{\",CHAR(160),EP$1))+1),\"\")","v":""},{"$f":"IFERROR(MID($J223,FIND(CHAR(160),SUBSTITUTE($J223,\"{\",CHAR(160),EQ$1)),FIND(CHAR(160),SUBSTITUTE($J223,\"}\",CHAR(160),EQ$1))-FIND(CHAR(160),SUBSTITUTE($J223,\"{\",CHAR(160),EQ$1))+1),\"\")","v":""},{"$f":"IFERROR(MID($J223,FIND(CHAR(160),SUBSTITUTE($J223,\"{\",CHAR(160),ER$1)),FIND(CHAR(160),SUBSTITUTE($J223,\"}\",CHAR(160),ER$1))-FIND(CHAR(160),SUBSTITUTE($J223,\"{\",CHAR(160),ER$1))+1),\"\")","v":""},{"$f":"IFERROR(MID($J223,FIND(CHAR(160),SUBSTITUTE($J223,\"{\",CHAR(160),ES$1)),FIND(CHAR(160),SUBSTITUTE($J223,\"}\",CHAR(160),ES$1))-FIND(CHAR(160),SUBSTITUTE($J223,\"{\",CHAR(160),ES$1))+1),\"\")","v":""},{"$f":"IFERROR(MID($J223,FIND(CHAR(160),SUBSTITUTE($J223,\"{\",CHAR(160),ET$1)),FIND(CHAR(160),SUBSTITUTE($J223,\"}\",CHAR(160),ET$1))-FIND(CHAR(160),SUBSTITUTE($J223,\"{\",CHAR(160),ET$1))+1),\"\")","v":""},{"$f":"IFERROR(MID($J223,FIND(CHAR(160),SUBSTITUTE($J223,\"{\",CHAR(160),EU$1)),FIND(CHAR(160),SUBSTITUTE($J223,\"}\",CHAR(160),EU$1))-FIND(CHAR(160),SUBSTITUTE($J223,\"{\",CHAR(160),EU$1))+1),\"\")","v":""},{"$f":"IFERROR(MID($J223,FIND(CHAR(160),SUBSTITUTE($J223,\"{\",CHAR(160),EV$1)),FIND(CHAR(160),SUBSTITUTE($J223,\"}\",CHAR(160),EV$1))-FIND(CHAR(160),SUBSTITUTE($J223,\"{\",CHAR(160),EV$1))+1),\"\")","v":""},{"$f":"IFERROR(MID($J223,FIND(CHAR(160),SUBSTITUTE($J223,\"{\",CHAR(160),EW$1)),FIND(CHAR(160),SUBSTITUTE($J223,\"}\",CHAR(160),EW$1))-FIND(CHAR(160),SUBSTITUTE($J223,\"{\",CHAR(160),EW$1))+1),\"\")","v":""},{"$f":"IFERROR(MID($J223,FIND(CHAR(160),SUBSTITUTE($J223,\"{\",CHAR(160),EX$1)),FIND(CHAR(160),SUBSTITUTE($J223,\"}\",CHAR(160),EX$1))-FIND(CHAR(160),SUBSTITUTE($J223,\"{\",CHAR(160),EX$1))+1),\"\")","v":""},{"$f":"IFERROR(MID($J223,FIND(CHAR(160),SUBSTITUTE($J223,\"{\",CHAR(160),EY$1)),FIND(CHAR(160),SUBSTITUTE($J223,\"}\",CHAR(160),EY$1))-FIND(CHAR(160),SUBSTITUTE($J223,\"{\",CHAR(160),EY$1))+1),\"\")","v":""},{"$f":"IFERROR(MID($J223,FIND(CHAR(160),SUBSTITUTE($J223,\"{\",CHAR(160),EZ$1)),FIND(CHAR(160),SUBSTITUTE($J223,\"}\",CHAR(160),EZ$1))-FIND(CHAR(160),SUBSTITUTE($J223,\"{\",CHAR(160),EZ$1))+1),\"\")","v":""},{"$f":"IFERROR(MID($J223,FIND(CHAR(160),SUBSTITUTE($J223,\"{\",CHAR(160),FA$1)),FIND(CHAR(160),SUBSTITUTE($J223,\"}\",CHAR(160),FA$1))-FIND(CHAR(160),SUBSTITUTE($J223,\"{\",CHAR(160),FA$1))+1),\"\")","v":""},{"$f":"IFERROR(MID($J223,FIND(CHAR(160),SUBSTITUTE($J223,\"{\",CHAR(160),FB$1)),FIND(CHAR(160),SUBSTITUTE($J223,\"}\",CHAR(160),FB$1))-FIND(CHAR(160),SUBSTITUTE($J223,\"{\",CHAR(160),FB$1))+1),\"\")","v":""},{"$f":"IFERROR(MID($O223,FIND(CHAR(160),SUBSTITUTE($O223,\"{\",CHAR(160),FC$1)),FIND(CHAR(160),SUBSTITUTE($O223,\"}\",CHAR(160),FC$1))-FIND(CHAR(160),SUBSTITUTE($O223,\"{\",CHAR(160),FC$1))+1),\"\")","v":""},{"$f":"IFERROR(MID($O223,FIND(CHAR(160),SUBSTITUTE($O223,\"{\",CHAR(160),FD$1)),FIND(CHAR(160),SUBSTITUTE($O223,\"}\",CHAR(160),FD$1))-FIND(CHAR(160),SUBSTITUTE($O223,\"{\",CHAR(160),FD$1))+1),\"\")","v":""},{"$f":"IFERROR(MID($O223,FIND(CHAR(160),SUBSTITUTE($O223,\"{\",CHAR(160),FE$1)),FIND(CHAR(160),SUBSTITUTE($O223,\"}\",CHAR(160),FE$1))-FIND(CHAR(160),SUBSTITUTE($O223,\"{\",CHAR(160),FE$1))+1),\"\")","v":""},{"$f":"IFERROR(MID($O223,FIND(CHAR(160),SUBSTITUTE($O223,\"{\",CHAR(160),FF$1)),FIND(CHAR(160),SUBSTITUTE($O223,\"}\",CHAR(160),FF$1))-FIND(CHAR(160),SUBSTITUTE($O223,\"{\",CHAR(160),FF$1))+1),\"\")","v":""},{"$f":"IFERROR(MID($O223,FIND(CHAR(160),SUBSTITUTE($O223,\"{\",CHAR(160),FG$1)),FIND(CHAR(160),SUBSTITUTE($O223,\"}\",CHAR(160),FG$1))-FIND(CHAR(160),SUBSTITUTE($O223,\"{\",CHAR(160),FG$1))+1),\"\")","v":""},{"$f":"IFERROR(MID($O223,FIND(CHAR(160),SUBSTITUTE($O223,\"{\",CHAR(160),FH$1)),FIND(CHAR(160),SUBSTITUTE($O223,\"}\",CHAR(160),FH$1))-FIND(CHAR(160),SUBSTITUTE($O223,\"{\",CHAR(160),FH$1))+1),\"\")","v":""},{"$f":"IFERROR(MID($O223,FIND(CHAR(160),SUBSTITUTE($O223,\"{\",CHAR(160),FI$1)),FIND(CHAR(160),SUBSTITUTE($O223,\"}\",CHAR(160),FI$1))-FIND(CHAR(160),SUBSTITUTE($O223,\"{\",CHAR(160),FI$1))+1),\"\")","v":""},{"$f":"IFERROR(MID($O223,FIND(CHAR(160),SUBSTITUTE($O223,\"{\",CHAR(160),FJ$1)),FIND(CHAR(160),SUBSTITUTE($O223,\"}\",CHAR(160),FJ$1))-FIND(CHAR(160),SUBSTITUTE($O223,\"{\",CHAR(160),FJ$1))+1),\"\")","v":""},{"$f":"IFERROR(MID($O223,FIND(CHAR(160),SUBSTITUTE($O223,\"{\",CHAR(160),FK$1)),FIND(CHAR(160),SUBSTITUTE($O223,\"}\",CHAR(160),FK$1))-FIND(CHAR(160),SUBSTITUTE($O223,\"{\",CHAR(160),FK$1))+1),\"\")","v":"{Measure:Quantity}"},{"$f":"IFERROR(MID($O223,FIND(CHAR(160),SUBSTITUTE($O223,\"{\",CHAR(160),FL$1)),FIND(CHAR(160),SUBSTITUTE($O223,\"}\",CHAR(160),FL$1))-FIND(CHAR(160),SUBSTITUTE($O223,\"{\",CHAR(160),FL$1))+1),\"\")","v":"{Measure:Quantity}"},{"$f":"IFERROR(MID($R223,FIND(CHAR(160),SUBSTITUTE($R223,\"{\",CHAR(160),FM$1)),FIND(CHAR(160),SUBSTITUTE($R223,\"}\",CHAR(160),FM$1))-FIND(CHAR(160),SUBSTITUTE($R223,\"{\",CHAR(160),FM$1))+1),\"\")","v":""},{"$f":"IFERROR(MID($R223,FIND(CHAR(160),SUBSTITUTE($R223,\"{\",CHAR(160),FN$1)),FIND(CHAR(160),SUBSTITUTE($R223,\"}\",CHAR(160),FN$1))-FIND(CHAR(160),SUBSTITUTE($R223,\"{\",CHAR(160),FN$1))+1),\"\")","v":""},{"$f":"IFERROR(MID($R223,FIND(CHAR(160),SUBSTITUTE($R223,\"{\",CHAR(160),FO$1)),FIND(CHAR(160),SUBSTITUTE($R223,\"}\",CHAR(160),FO$1))-FIND(CHAR(160),SUBSTITUTE($R223,\"{\",CHAR(160),FO$1))+1),\"\")","v":""},{"$f":"IFERROR(MID($R223,FIND(CHAR(160),SUBSTITUTE($R223,\"{\",CHAR(160),FP$1)),FIND(CHAR(160),SUBSTITUTE($R223,\"}\",CHAR(160),FP$1))-FIND(CHAR(160),SUBSTITUTE($R223,\"{\",CHAR(160),FP$1))+1),\"\")","v":""},{"$f":"IFERROR(MID($R223,FIND(CHAR(160),SUBSTITUTE($R223,\"{\",CHAR(160),FQ$1)),FIND(CHAR(160),SUBSTITUTE($R223,\"}\",CHAR(160),FQ$1))-FIND(CHAR(160),SUBSTITUTE($R223,\"{\",CHAR(160),FQ$1))+1),\"\")","v":""},{"$f":"IFERROR(MID($R223,FIND(CHAR(160),SUBSTITUTE($R223,\"{\",CHAR(160),FR$1)),FIND(CHAR(160),SUBSTITUTE($R223,\"}\",CHAR(160),FR$1))-FIND(CHAR(160),SUBSTITUTE($R223,\"{\",CHAR(160),FR$1))+1),\"\")","v":""},{"$f":"IFERROR(MID($R223,FIND(CHAR(160),SUBSTITUTE($R223,\"{\",CHAR(160),FS$1)),FIND(CHAR(160),SUBSTITUTE($R223,\"}\",CHAR(160),FS$1))-FIND(CHAR(160),SUBSTITUTE($R223,\"{\",CHAR(160),FS$1))+1),\"\")","v":""},{"$f":"IFERROR(MID($R223,FIND(CHAR(160),SUBSTITUTE($R223,\"{\",CHAR(160),FT$1)),FIND(CHAR(160),SUBSTITUTE($R223,\"}\",CHAR(160),FT$1))-FIND(CHAR(160),SUBSTITUTE($R223,\"{\",CHAR(160),FT$1))+1),\"\")","v":""},{"$f":"IFERROR(MID($R223,FIND(CHAR(160),SUBSTITUTE($R223,\"{\",CHAR(160),FU$1)),FIND(CHAR(160),SUBSTITUTE($R223,\"}\",CHAR(160),FU$1))-FIND(CHAR(160),SUBSTITUTE($R223,\"{\",CHAR(160),FU$1))+1),\"\")","v":""},{"$f":"IFERROR(MID($R223,FIND(CHAR(160),SUBSTITUTE($R223,\"{\",CHAR(160),FV$1)),FIND(CHAR(160),SUBSTITUTE($R223,\"}\",CHAR(160),FV$1))-FIND(CHAR(160),SUBSTITUTE($R223,\"{\",CHAR(160),FV$1))+1),\"\")","v":""},{"$f":"IFERROR(MID($U223,FIND(CHAR(160),SUBSTITUTE($U223,\"{\",CHAR(160),FW$1)),FIND(CHAR(160),SUBSTITUTE($U223,\"}\",CHAR(160),FW$1))-FIND(CHAR(160),SUBSTITUTE($U223,\"{\",CHAR(160),FW$1))+1),\"\")","v":""},{"$f":"IFERROR(MID($U223,FIND(CHAR(160),SUBSTITUTE($U223,\"{\",CHAR(160),FX$1)),FIND(CHAR(160),SUBSTITUTE($U223,\"}\",CHAR(160),FX$1))-FIND(CHAR(160),SUBSTITUTE($U223,\"{\",CHAR(160),FX$1))+1),\"\")","v":""},{"$f":"IFERROR(MID($U223,FIND(CHAR(160),SUBSTITUTE($U223,\"{\",CHAR(160),FY$1)),FIND(CHAR(160),SUBSTITUTE($U223,\"}\",CHAR(160),FY$1))-FIND(CHAR(160),SUBSTITUTE($U223,\"{\",CHAR(160),FY$1))+1),\"\")","v":""},{"$f":"IFERROR(MID($U223,FIND(CHAR(160),SUBSTITUTE($U223,\"{\",CHAR(160),FZ$1)),FIND(CHAR(160),SUBSTITUTE($U223,\"}\",CHAR(160),FZ$1))-FIND(CHAR(160),SUBSTITUTE($U223,\"{\",CHAR(160),FZ$1))+1),\"\")","v":""},{"$f":"IFERROR(MID($U223,FIND(CHAR(160),SUBSTITUTE($U223,\"{\",CHAR(160),GA$1)),FIND(CHAR(160),SUBSTITUTE($U223,\"}\",CHAR(160),GA$1))-FIND(CHAR(160),SUBSTITUTE($U223,\"{\",CHAR(160),GA$1))+1),\"\")","v":""},{"$f":"IFERROR(MID($U223,FIND(CHAR(160),SUBSTITUTE($U223,\"{\",CHAR(160),GB$1)),FIND(CHAR(160),SUBSTITUTE($U223,\"}\",CHAR(160),GB$1))-FIND(CHAR(160),SUBSTITUTE($U223,\"{\",CHAR(160),GB$1))+1),\"\")","v":""},{"$f":"IFERROR(MID($U223,FIND(CHAR(160),SUBSTITUTE($U223,\"{\",CHAR(160),GC$1)),FIND(CHAR(160),SUBSTITUTE($U223,\"}\",CHAR(160),GC$1))-FIND(CHAR(160),SUBSTITUTE($U223,\"{\",CHAR(160),GC$1))+1),\"\")","v":""},{"$f":"IFERROR(MID($U223,FIND(CHAR(160),SUBSTITUTE($U223,\"{\",CHAR(160),GD$1)),FIND(CHAR(160),SUBSTITUTE($U223,\"}\",CHAR(160),GD$1))-FIND(CHAR(160),SUBSTITUTE($U223,\"{\",CHAR(160),GD$1))+1),\"\")","v":""},{"$f":"IFERROR(MID($U223,FIND(CHAR(160),SUBSTITUTE($U223,\"{\",CHAR(160),GE$1)),FIND(CHAR(160),SUBSTITUTE($U223,\"}\",CHAR(160),GE$1))-FIND(CHAR(160),SUBSTITUTE($U223,\"{\",CHAR(160),GE$1))+1),\"\")","v":"{Measure:Quantity}"},{"$f":"IFERROR(MID($U223,FIND(CHAR(160),SUBSTITUTE($U223,\"{\",CHAR(160),GF$1)),FIND(CHAR(160),SUBSTITUTE($U223,\"}\",CHAR(160),GF$1))-FIND(CHAR(160),SUBSTITUTE($U223,\"{\",CHAR(160),GF$1))+1),\"\")","v":"{Measure:Quantity}"},{"$f":"IFERROR(MID($V223,FIND(CHAR(160),SUBSTITUTE($V223,\"{\",CHAR(160),GG$1)),FIND(CHAR(160),SUBSTITUTE($V223,\"}\",CHAR(160),GG$1))-FIND(CHAR(160),SUBSTITUTE($V223,\"{\",CHAR(160),GG$1))+1),\"\")","v":""},{"$f":"IFERROR(MID($V223,FIND(CHAR(160),SUBSTITUTE($V223,\"{\",CHAR(160),GH$1)),FIND(CHAR(160),SUBSTITUTE($V223,\"}\",CHAR(160),GH$1))-FIND(CHAR(160),SUBSTITUTE($V223,\"{\",CHAR(160),GH$1))+1),\"\")","v":""},{"$f":"IFERROR(MID($V223,FIND(CHAR(160),SUBSTITUTE($V223,\"{\",CHAR(160),GI$1)),FIND(CHAR(160),SUBSTITUTE($V223,\"}\",CHAR(160),GI$1))-FIND(CHAR(160),SUBSTITUTE($V223,\"{\",CHAR(160),GI$1))+1),\"\")","v":""},{"$f":"IFERROR(MID($V223,FIND(CHAR(160),SUBSTITUTE($V223,\"{\",CHAR(160),GJ$1)),FIND(CHAR(160),SUBSTITUTE($V223,\"}\",CHAR(160),GJ$1))-FIND(CHAR(160),SUBSTITUTE($V223,\"{\",CHAR(160),GJ$1))+1),\"\")","v":""},{"$f":"IFERROR(MID($V223,FIND(CHAR(160),SUBSTITUTE($V223,\"{\",CHAR(160),GK$1)),FIND(CHAR(160),SUBSTITUTE($V223,\"}\",CHAR(160),GK$1))-FIND(CHAR(160),SUBSTITUTE($V223,\"{\",CHAR(160),GK$1))+1),\"\")","v":""},{"$f":"IFERROR(MID($V223,FIND(CHAR(160),SUBSTITUTE($V223,\"{\",CHAR(160),GL$1)),FIND(CHAR(160),SUBSTITUTE($V223,\"}\",CHAR(160),GL$1))-FIND(CHAR(160),SUBSTITUTE($V223,\"{\",CHAR(160),GL$1))+1),\"\")","v":""},{"$f":"IFERROR(MID($V223,FIND(CHAR(160),SUBSTITUTE($V223,\"{\",CHAR(160),GM$1)),FIND(CHAR(160),SUBSTITUTE($V223,\"}\",CHAR(160),GM$1))-FIND(CHAR(160),SUBSTITUTE($V223,\"{\",CHAR(160),GM$1))+1),\"\")","v":""},{"$f":"IFERROR(MID($V223,FIND(CHAR(160),SUBSTITUTE($V223,\"{\",CHAR(160),GN$1)),FIND(CHAR(160),SUBSTITUTE($V223,\"}\",CHAR(160),GN$1))-FIND(CHAR(160),SUBSTITUTE($V223,\"{\",CHAR(160),GN$1))+1),\"\")","v":""},{"$f":"IFERROR(MID($V223,FIND(CHAR(160),SUBSTITUTE($V223,\"{\",CHAR(160),GO$1)),FIND(CHAR(160),SUBSTITUTE($V223,\"}\",CHAR(160),GO$1))-FIND(CHAR(160),SUBSTITUTE($V223,\"{\",CHAR(160),GO$1))+1),\"\")","v":"{Measure:Quantity}"},{"$f":"IFERROR(MID($V223,FIND(CHAR(160),SUBSTITUTE($V223,\"{\",CHAR(160),GP$1)),FIND(CHAR(160),SUBSTITUTE($V223,\"}\",CHAR(160),GP$1))-FIND(CHAR(160),SUBSTITUTE($V223,\"{\",CHAR(160),GP$1))+1),\"\")","v":"{Measure:Quantity}"},{"$f":"IFERROR(MID($W223,FIND(CHAR(160),SUBSTITUTE($W223,\"{\",CHAR(160),GQ$1)),FIND(CHAR(160),SUBSTITUTE($W223,\"}\",CHAR(160),GQ$1))-FIND(CHAR(160),SUBSTITUTE($W223,\"{\",CHAR(160),GQ$1))+1),\"\")","v":""},{"$f":"IFERROR(MID($W223,FIND(CHAR(160),SUBSTITUTE($W223,\"{\",CHAR(160),GR$1)),FIND(CHAR(160),SUBSTITUTE($W223,\"}\",CHAR(160),GR$1))-FIND(CHAR(160),SUBSTITUTE($W223,\"{\",CHAR(160),GR$1))+1),\"\")","v":""},{"$f":"IFERROR(MID($W223,FIND(CHAR(160),SUBSTITUTE($W223,\"{\",CHAR(160),GS$1)),FIND(CHAR(160),SUBSTITUTE($W223,\"}\",CHAR(160),GS$1))-FIND(CHAR(160),SUBSTITUTE($W223,\"{\",CHAR(160),GS$1))+1),\"\")","v":""},{"$f":"IFERROR(MID($W223,FIND(CHAR(160),SUBSTITUTE($W223,\"{\",CHAR(160),GT$1)),FIND(CHAR(160),SUBSTITUTE($W223,\"}\",CHAR(160),GT$1))-FIND(CHAR(160),SUBSTITUTE($W223,\"{\",CHAR(160),GT$1))+1),\"\")","v":""},{"$f":"IFERROR(MID($W223,FIND(CHAR(160),SUBSTITUTE($W223,\"{\",CHAR(160),GU$1)),FIND(CHAR(160),SUBSTITUTE($W223,\"}\",CHAR(160),GU$1))-FIND(CHAR(160),SUBSTITUTE($W223,\"{\",CHAR(160),GU$1))+1),\"\")","v":""},{"$f":"IFERROR(MID($W223,FIND(CHAR(160),SUBSTITUTE($W223,\"{\",CHAR(160),GV$1)),FIND(CHAR(160),SUBSTITUTE($W223,\"}\",CHAR(160),GV$1))-FIND(CHAR(160),SUBSTITUTE($W223,\"{\",CHAR(160),GV$1))+1),\"\")","v":""},{"$f":"IFERROR(MID($W223,FIND(CHAR(160),SUBSTITUTE($W223,\"{\",CHAR(160),GW$1)),FIND(CHAR(160),SUBSTITUTE($W223,\"}\",CHAR(160),GW$1))-FIND(CHAR(160),SUBSTITUTE($W223,\"{\",CHAR(160),GW$1))+1),\"\")","v":""},{"$f":"IFERROR(MID($W223,FIND(CHAR(160),SUBSTITUTE($W223,\"{\",CHAR(160),GX$1)),FIND(CHAR(160),SUBSTITUTE($W223,\"}\",CHAR(160),GX$1))-FIND(CHAR(160),SUBSTITUTE($W223,\"{\",CHAR(160),GX$1))+1),\"\")","v":""},{"$f":"IFERROR(MID($W223,FIND(CHAR(160),SUBSTITUTE($W223,\"{\",CHAR(160),GY$1)),FIND(CHAR(160),SUBSTITUTE($W223,\"}\",CHAR(160),GY$1))-FIND(CHAR(160),SUBSTITUTE($W223,\"{\",CHAR(160),GY$1))+1),\"\")","v":""},{"$f":"IFERROR(MID($W223,FIND(CHAR(160),SUBSTITUTE($W223,\"{\",CHAR(160),GZ$1)),FIND(CHAR(160),SUBSTITUTE($W223,\"}\",CHAR(160),GZ$1))-FIND(CHAR(160),SUBSTITUTE($W223,\"{\",CHAR(160),GZ$1))+1),\"\")","v":""},{"$f":"IFERROR(MID($X223,FIND(CHAR(160),SUBSTITUTE($X223,\"{\",CHAR(160),HA$1)),FIND(CHAR(160),SUBSTITUTE($X223,\"}\",CHAR(160),HA$1))-FIND(CHAR(160),SUBSTITUTE($X223,\"{\",CHAR(160),HA$1))+1),\"\")","v":""},{"$f":"IFERROR(MID($X223,FIND(CHAR(160),SUBSTITUTE($X223,\"{\",CHAR(160),HB$1)),FIND(CHAR(160),SUBSTITUTE($X223,\"}\",CHAR(160),HB$1))-FIND(CHAR(160),SUBSTITUTE($X223,\"{\",CHAR(160),HB$1))+1),\"\")","v":""},{"$f":"IFERROR(MID($X223,FIND(CHAR(160),SUBSTITUTE($X223,\"{\",CHAR(160),HC$1)),FIND(CHAR(160),SUBSTITUTE($X223,\"}\",CHAR(160),HC$1))-FIND(CHAR(160),SUBSTITUTE($X223,\"{\",CHAR(160),HC$1))+1),\"\")","v":""},{"$f":"IFERROR(MID($X223,FIND(CHAR(160),SUBSTITUTE($X223,\"{\",CHAR(160),HD$1)),FIND(CHAR(160),SUBSTITUTE($X223,\"}\",CHAR(160),HD$1))-FIND(CHAR(160),SUBSTITUTE($X223,\"{\",CHAR(160),HD$1))+1),\"\")","v":""},{"$f":"IFERROR(MID($X223,FIND(CHAR(160),SUBSTITUTE($X223,\"{\",CHAR(160),HE$1)),FIND(CHAR(160),SUBSTITUTE($X223,\"}\",CHAR(160),HE$1))-FIND(CHAR(160),SUBSTITUTE($X223,\"{\",CHAR(160),HE$1))+1),\"\")","v":""},{"$f":"IFERROR(MID($X223,FIND(CHAR(160),SUBSTITUTE($X223,\"{\",CHAR(160),HF$1)),FIND(CHAR(160),SUBSTITUTE($X223,\"}\",CHAR(160),HF$1))-FIND(CHAR(160),SUBSTITUTE($X223,\"{\",CHAR(160),HF$1))+1),\"\")","v":""},{"$f":"IFERROR(MID($X223,FIND(CHAR(160),SUBSTITUTE($X223,\"{\",CHAR(160),HG$1)),FIND(CHAR(160),SUBSTITUTE($X223,\"}\",CHAR(160),HG$1))-FIND(CHAR(160),SUBSTITUTE($X223,\"{\",CHAR(160),HG$1))+1),\"\")","v":""},{"$f":"IFERROR(MID($X223,FIND(CHAR(160),SUBSTITUTE($X223,\"{\",CHAR(160),HH$1)),FIND(CHAR(160),SUBSTITUTE($X223,\"}\",CHAR(160),HH$1))-FIND(CHAR(160),SUBSTITUTE($X223,\"{\",CHAR(160),HH$1))+1),\"\")","v":""},{"$f":"IFERROR(MID($X223,FIND(CHAR(160),SUBSTITUTE($X223,\"{\",CHAR(160),HI$1)),FIND(CHAR(160),SUBSTITUTE($X223,\"}\",CHAR(160),HI$1))-FIND(CHAR(160),SUBSTITUTE($X223,\"{\",CHAR(160),HI$1))+1),\"\")","v":""},{"$f":"IFERROR(MID($X223,FIND(CHAR(160),SUBSTITUTE($X223,\"{\",CHAR(160),HJ$1)),FIND(CHAR(160),SUBSTITUTE($X223,\"}\",CHAR(160),HJ$1))-FIND(CHAR(160),SUBSTITUTE($X223,\"{\",CHAR(160),HJ$1))+1),\"\")","v":""},{"$f":"IFERROR(MID($Y223,FIND(CHAR(160),SUBSTITUTE($Y223,\"{\",CHAR(160),HK$1)),FIND(CHAR(160),SUBSTITUTE($Y223,\"}\",CHAR(160),HK$1))-FIND(CHAR(160),SUBSTITUTE($Y223,\"{\",CHAR(160),HK$1))+1),\"\")","v":""},{"$f":"IFERROR(MID($Y223,FIND(CHAR(160),SUBSTITUTE($Y223,\"{\",CHAR(160),HL$1)),FIND(CHAR(160),SUBSTITUTE($Y223,\"}\",CHAR(160),HL$1))-FIND(CHAR(160),SUBSTITUTE($Y223,\"{\",CHAR(160),HL$1))+1),\"\")","v":""},{"$f":"IFERROR(MID($Y223,FIND(CHAR(160),SUBSTITUTE($Y223,\"{\",CHAR(160),HM$1)),FIND(CHAR(160),SUBSTITUTE($Y223,\"}\",CHAR(160),HM$1))-FIND(CHAR(160),SUBSTITUTE($Y223,\"{\",CHAR(160),HM$1))+1),\"\")","v":""},{"$f":"IFERROR(MID($Y223,FIND(CHAR(160),SUBSTITUTE($Y223,\"{\",CHAR(160),HN$1)),FIND(CHAR(160),SUBSTITUTE($Y223,\"}\",CHAR(160),HN$1))-FIND(CHAR(160),SUBSTITUTE($Y223,\"{\",CHAR(160),HN$1))+1),\"\")","v":""},{"$f":"IFERROR(MID($Y223,FIND(CHAR(160),SUBSTITUTE($Y223,\"{\",CHAR(160),HO$1)),FIND(CHAR(160),SUBSTITUTE($Y223,\"}\",CHAR(160),HO$1))-FIND(CHAR(160),SUBSTITUTE($Y223,\"{\",CHAR(160),HO$1))+1),\"\")","v":""},{"$f":"IFERROR(MID($Y223,FIND(CHAR(160),SUBSTITUTE($Y223,\"{\",CHAR(160),HP$1)),FIND(CHAR(160),SUBSTITUTE($Y223,\"}\",CHAR(160),HP$1))-FIND(CHAR(160),SUBSTITUTE($Y223,\"{\",CHAR(160),HP$1))+1),\"\")","v":""},{"$f":"IFERROR(MID($Y223,FIND(CHAR(160),SUBSTITUTE($Y223,\"{\",CHAR(160),HQ$1)),FIND(CHAR(160),SUBSTITUTE($Y223,\"}\",CHAR(160),HQ$1))-FIND(CHAR(160),SUBSTITUTE($Y223,\"{\",CHAR(160),HQ$1))+1),\"\")","v":""},{"$f":"IFERROR(MID($Y223,FIND(CHAR(160),SUBSTITUTE($Y223,\"{\",CHAR(160),HR$1)),FIND(CHAR(160),SUBSTITUTE($Y223,\"}\",CHAR(160),HR$1))-FIND(CHAR(160),SUBSTITUTE($Y223,\"{\",CHAR(160),HR$1))+1),\"\")","v":""},{"$f":"IFERROR(MID($Y223,FIND(CHAR(160),SUBSTITUTE($Y223,\"{\",CHAR(160),HS$1)),FIND(CHAR(160),SUBSTITUTE($Y223,\"}\",CHAR(160),HS$1))-FIND(CHAR(160),SUBSTITUTE($Y223,\"{\",CHAR(160),HS$1))+1),\"\")","v":""},{"$f":"IFERROR(MID($Y223,FIND(CHAR(160),SUBSTITUTE($Y223,\"{\",CHAR(160),HT$1)),FIND(CHAR(160),SUBSTITUTE($Y223,\"}\",CHAR(160),HT$1))-FIND(CHAR(160),SUBSTITUTE($Y223,\"{\",CHAR(160),HT$1))+1),\"\")","v":""},{"$f":"IFERROR(MID($Z223,FIND(CHAR(160),SUBSTITUTE($Z223,\"{\",CHAR(160),HU$1)),FIND(CHAR(160),SUBSTITUTE($Z223,\"}\",CHAR(160),HU$1))-FIND(CHAR(160),SUBSTITUTE($Z223,\"{\",CHAR(160),HU$1))+1),\"\")","v":""},{"$f":"IFERROR(MID($Z223,FIND(CHAR(160),SUBSTITUTE($Z223,\"{\",CHAR(160),HV$1)),FIND(CHAR(160),SUBSTITUTE($Z223,\"}\",CHAR(160),HV$1))-FIND(CHAR(160),SUBSTITUTE($Z223,\"{\",CHAR(160),HV$1))+1),\"\")","v":""},{"$f":"IFERROR(MID($Z223,FIND(CHAR(160),SUBSTITUTE($Z223,\"{\",CHAR(160),HW$1)),FIND(CHAR(160),SUBSTITUTE($Z223,\"}\",CHAR(160),HW$1))-FIND(CHAR(160),SUBSTITUTE($Z223,\"{\",CHAR(160),HW$1))+1),\"\")","v":""},{"$f":"IFERROR(MID($Z223,FIND(CHAR(160),SUBSTITUTE($Z223,\"{\",CHAR(160),HX$1)),FIND(CHAR(160),SUBSTITUTE($Z223,\"}\",CHAR(160),HX$1))-FIND(CHAR(160),SUBSTITUTE($Z223,\"{\",CHAR(160),HX$1))+1),\"\")","v":""},{"$f":"IFERROR(MID($Z223,FIND(CHAR(160),SUBSTITUTE($Z223,\"{\",CHAR(160),HY$1)),FIND(CHAR(160),SUBSTITUTE($Z223,\"}\",CHAR(160),HY$1))-FIND(CHAR(160),SUBSTITUTE($Z223,\"{\",CHAR(160),HY$1))+1),\"\")","v":""},{"$f":"IFERROR(MID($Z223,FIND(CHAR(160),SUBSTITUTE($Z223,\"{\",CHAR(160),HZ$1)),FIND(CHAR(160),SUBSTITUTE($Z223,\"}\",CHAR(160),HZ$1))-FIND(CHAR(160),SUBSTITUTE($Z223,\"{\",CHAR(160),HZ$1))+1),\"\")","v":""},{"$f":"IFERROR(MID($Z223,FIND(CHAR(160),SUBSTITUTE($Z223,\"{\",CHAR(160),IA$1)),FIND(CHAR(160),SUBSTITUTE($Z223,\"}\",CHAR(160),IA$1))-FIND(CHAR(160),SUBSTITUTE($Z223,\"{\",CHAR(160),IA$1))+1),\"\")","v":""},{"$f":"IFERROR(MID($Z223,FIND(CHAR(160),SUBSTITUTE($Z223,\"{\",CHAR(160),IB$1)),FIND(CHAR(160),SUBSTITUTE($Z223,\"}\",CHAR(160),IB$1))-FIND(CHAR(160),SUBSTITUTE($Z223,\"{\",CHAR(160),IB$1))+1),\"\")","v":""},{"$f":"IFERROR(MID($Z223,FIND(CHAR(160),SUBSTITUTE($Z223,\"{\",CHAR(160),IC$1)),FIND(CHAR(160),SUBSTITUTE($Z223,\"}\",CHAR(160),IC$1))-FIND(CHAR(160),SUBSTITUTE($Z223,\"{\",CHAR(160),IC$1))+1),\"\")","v":""},{"$f":"IFERROR(MID($Z223,FIND(CHAR(160),SUBSTITUTE($Z223,\"{\",CHAR(160),ID$1)),FIND(CHAR(160),SUBSTITUTE($Z223,\"}\",CHAR(160),ID$1))-FIND(CHAR(160),SUBSTITUTE($Z223,\"{\",CHAR(160),ID$1))+1),\"\")","v":""},{"$f":"IFERROR(MID($AA223,FIND(CHAR(160),SUBSTITUTE($AA223,\"{\",CHAR(160),IE$1)),FIND(CHAR(160),SUBSTITUTE($AA223,\"}\",CHAR(160),IE$1))-FIND(CHAR(160),SUBSTITUTE($AA223,\"{\",CHAR(160),IE$1))+1),\"\")","v":""},{"$f":"IFERROR(MID($AA223,FIND(CHAR(160),SUBSTITUTE($AA223,\"{\",CHAR(160),IF$1)),FIND(CHAR(160),SUBSTITUTE($AA223,\"}\",CHAR(160),IF$1))-FIND(CHAR(160),SUBSTITUTE($AA223,\"{\",CHAR(160),IF$1))+1),\"\")","v":""},{"$f":"IFERROR(MID($AA223,FIND(CHAR(160),SUBSTITUTE($AA223,\"{\",CHAR(160),IG$1)),FIND(CHAR(160),SUBSTITUTE($AA223,\"}\",CHAR(160),IG$1))-FIND(CHAR(160),SUBSTITUTE($AA223,\"{\",CHAR(160),IG$1))+1),\"\")","v":""},{"$f":"IFERROR(MID($AA223,FIND(CHAR(160),SUBSTITUTE($AA223,\"{\",CHAR(160),IH$1)),FIND(CHAR(160),SUBSTITUTE($AA223,\"}\",CHAR(160),IH$1))-FIND(CHAR(160),SUBSTITUTE($AA223,\"{\",CHAR(160),IH$1))+1),\"\")","v":""},{"$f":"IFERROR(MID($AA223,FIND(CHAR(160),SUBSTITUTE($AA223,\"{\",CHAR(160),II$1)),FIND(CHAR(160),SUBSTITUTE($AA223,\"}\",CHAR(160),II$1))-FIND(CHAR(160),SUBSTITUTE($AA223,\"{\",CHAR(160),II$1))+1),\"\")","v":""},{"$f":"IFERROR(MID($AA223,FIND(CHAR(160),SUBSTITUTE($AA223,\"{\",CHAR(160),IJ$1)),FIND(CHAR(160),SUBSTITUTE($AA223,\"}\",CHAR(160),IJ$1))-FIND(CHAR(160),SUBSTITUTE($AA223,\"{\",CHAR(160),IJ$1))+1),\"\")","v":""},{"$f":"IFERROR(MID($AA223,FIND(CHAR(160),SUBSTITUTE($AA223,\"{\",CHAR(160),IK$1)),FIND(CHAR(160),SUBSTITUTE($AA223,\"}\",CHAR(160),IK$1))-FIND(CHAR(160),SUBSTITUTE($AA223,\"{\",CHAR(160),IK$1))+1),\"\")","v":""},{"$f":"IFERROR(MID($AA223,FIND(CHAR(160),SUBSTITUTE($AA223,\"{\",CHAR(160),IL$1)),FIND(CHAR(160),SUBSTITUTE($AA223,\"}\",CHAR(160),IL$1))-FIND(CHAR(160),SUBSTITUTE($AA223,\"{\",CHAR(160),IL$1))+1),\"\")","v":""},{"$f":"IFERROR(MID($AA223,FIND(CHAR(160),SUBSTITUTE($AA223,\"{\",CHAR(160),IM$1)),FIND(CHAR(160),SUBSTITUTE($AA223,\"}\",CHAR(160),IM$1))-FIND(CHAR(160),SUBSTITUTE($AA223,\"{\",CHAR(160),IM$1))+1),\"\")","v":""},{"$f":"IFERROR(MID($AA223,FIND(CHAR(160),SUBSTITUTE($AA223,\"{\",CHAR(160),IN$1)),FIND(CHAR(160),SUBSTITUTE($AA223,\"}\",CHAR(160),IN$1))-FIND(CHAR(160),SUBSTITUTE($AA223,\"{\",CHAR(160),IN$1))+1),\"\")","v":""},{"$f":"IFERROR(MID($AB223,FIND(CHAR(160),SUBSTITUTE($AB223,\"{\",CHAR(160),IO$1)),FIND(CHAR(160),SUBSTITUTE($AB223,\"}\",CHAR(160),IO$1))-FIND(CHAR(160),SUBSTITUTE($AB223,\"{\",CHAR(160),IO$1))+1),\"\")","v":""},{"$f":"IFERROR(MID($AB223,FIND(CHAR(160),SUBSTITUTE($AB223,\"{\",CHAR(160),IP$1)),FIND(CHAR(160),SUBSTITUTE($AB223,\"}\",CHAR(160),IP$1))-FIND(CHAR(160),SUBSTITUTE($AB223,\"{\",CHAR(160),IP$1))+1),\"\")","v":""},{"$f":"IFERROR(MID($AB223,FIND(CHAR(160),SUBSTITUTE($AB223,\"{\",CHAR(160),IQ$1)),FIND(CHAR(160),SUBSTITUTE($AB223,\"}\",CHAR(160),IQ$1))-FIND(CHAR(160),SUBSTITUTE($AB223,\"{\",CHAR(160),IQ$1))+1),\"\")","v":""},{"$f":"IFERROR(MID($AB223,FIND(CHAR(160),SUBSTITUTE($AB223,\"{\",CHAR(160),IR$1)),FIND(CHAR(160),SUBSTITUTE($AB223,\"}\",CHAR(160),IR$1))-FIND(CHAR(160),SUBSTITUTE($AB223,\"{\",CHAR(160),IR$1))+1),\"\")","v":""},{"$f":"IFERROR(MID($AB223,FIND(CHAR(160),SUBSTITUTE($AB223,\"{\",CHAR(160),IS$1)),FIND(CHAR(160),SUBSTITUTE($AB223,\"}\",CHAR(160),IS$1))-FIND(CHAR(160),SUBSTITUTE($AB223,\"{\",CHAR(160),IS$1))+1),\"\")","v":""},{"$f":"IFERROR(MID($AB223,FIND(CHAR(160),SUBSTITUTE($AB223,\"{\",CHAR(160),IT$1)),FIND(CHAR(160),SUBSTITUTE($AB223,\"}\",CHAR(160),IT$1))-FIND(CHAR(160),SUBSTITUTE($AB223,\"{\",CHAR(160),IT$1))+1),\"\")","v":""},{"$f":"IFERROR(MID($AB223,FIND(CHAR(160),SUBSTITUTE($AB223,\"{\",CHAR(160),IU$1)),FIND(CHAR(160),SUBSTITUTE($AB223,\"}\",CHAR(160),IU$1))-FIND(CHAR(160),SUBSTITUTE($AB223,\"{\",CHAR(160),IU$1))+1),\"\")","v":""},{"$f":"IFERROR(MID($AB223,FIND(CHAR(160),SUBSTITUTE($AB223,\"{\",CHAR(160),IV$1)),FIND(CHAR(160),SUBSTITUTE($AB223,\"}\",CHAR(160),IV$1))-FIND(CHAR(160),SUBSTITUTE($AB223,\"{\",CHAR(160),IV$1))+1),\"\")","v":""},{"$f":"IFERROR(MID($AB223,FIND(CHAR(160),SUBSTITUTE($AB223,\"{\",CHAR(160),IW$1)),FIND(CHAR(160),SUBSTITUTE($AB223,\"}\",CHAR(160),IW$1))-FIND(CHAR(160),SUBSTITUTE($AB223,\"{\",CHAR(160),IW$1))+1),\"\")","v":""},{"$f":"IFERROR(MID($AB223,FIND(CHAR(160),SUBSTITUTE($AB223,\"{\",CHAR(160),IX$1)),FIND(CHAR(160),SUBSTITUTE($AB223,\"}\",CHAR(160),IX$1))-FIND(CHAR(160),SUBSTITUTE($AB223,\"{\",CHAR(160),IX$1))+1),\"\")","v":""},null,{"$f":"10-COUNTIF(DU223:ED223,\"\")","v":1}]
["Low Income Direct Install - Other Fuels","Basement Insulation LIHESP","LBB","2021-07-01","2022-06-30","Calculated","{Cost}*{Measure:Quantity}",0,"Calculated","if({Cost}>3500,3500,{Cost})*{Measure:Quantity}",3500,"2020-07-01","2022-06-30","Calculated","if({Primary heating type}=6,2672,if({Primary heating type}=0,102,0))",null,null,0,null,null,"if({Primary heating type}=6,0.663,if({Primary heating type}=0,0.025,0))",0,"if({Primary heating type}=1,10.986,if({Primary heating type}=0,0.989,0))*10","if({Primary heating type}=2,10.986,if({Primary heating type} = 0,1.439,0))","if({Primary heating type}=3,10.986,if({Primary heating type} = 0,7.514,0))","if({Primary heating type}=4,10.986,if({Primary heating type} = 0,0.154,0))","if({Primary heating type}=5,10.986,if({Primary heating type} = 0,0.472,0))",0,"2020-07-01","2022-06-30",25,1,1,0,0,0,0,1,1,1,0,0,null,{"$f":"DU224","v":"{Cost}"},2000,{"$f":"DV224","v":"{Measure:Quantity}"},1,{"$f":"DW224","v":"{Primary heating type}"},3,{"$f":"DX224","v":""},null,{"$f":"DY224","v":""},null,{"$f":"DZ224","v":""},null,{"$f":"EA224","v":""},null,{"$f":"EB224","v":""},null,{"$f":"EC224","v":""},null,{"$f":"ED224","v":""},null,{"$f":"IF(AW224=6,2672,IF(AW224=0,102,0))","v":0},0,0,{"$f":"0","v":0},0,0,{"$f":"IF(AW224=6,0.663,IF(AW224=0,0.025,0))","v":0},{"$f":"0","v":0},{"$f":"IF(AW224=1,10.986,IF(AW224=0,0.989,0))*10","v":0},{"$f":"IF(AW224=2,10.986,IF(AW224 = 0,1.439,0))","v":0},{"$f":"IF(AW224=3,10.986,IF(AW224 = 0,7.514,0))","v":10.986000000000001},{"$f":"IF(AW224=4,10.986,IF(AW224 = 0,0.154,0))","v":0},{"$f":"IF(AW224=5,10.986,IF(AW224 = 0,0.472,0))","v":0},{"$f":"0","v":0},null,"Res","Default DR",{"$f":"Benefits(BL224,BR224,BS224,BT224,BU224,BV224,BW224,BX224,BY224,BZ224,AE224,AH224,AI224,AJ224,AK224,AL224,AM224,AN224,AO224,AP224,CA224,CB224)","v":0},0,0,6643.9532293592456,0,0,0,0,0,{"$f":"SUMPRODUCT(CC224:CK224,--(CC224:CK224>0))","v":6643.9532293592456},{"$f":"-SUMPRODUCT(CC224:CK224,--(CC224:CK224<0))","v":0},null,{"$f":"AS224*AU224","v":2000},null,null,{"$f":"CM224+CO224","v":2000},{"$f":"IF(NetOrGross=\"Net\",(1-AO224+AP224),1)","v":1},{"$f":"(SUMPRODUCT(CC224:CJ224,--(CC224:CJ224>0))+CN224)*CS224/((-SUMPRODUCT(CC224:CJ224,--(CC224:CJ224<0))+MAX(CO224,CV224)+CP224+CQ224)*CS224+IF(FRIncentives=\"Yes\",CV224*(1-CS224),0))","v":3.321976614679623},1,{"$f":"IF(AS224>3500,3500,AS224)*AU224","v":2000},null,"RGGI","y",null,{"$f":"IF(F224=\"Manual Entry\",\"Manual\",IF(G224=\"\",0,\"X=\"&SUBSTITUTE(SUBSTITUTE(SUBSTITUTE(SUBSTITUTE(SUBSTITUTE(SUBSTITUTE(SUBSTITUTE(SUBSTITUTE(SUBSTITUTE(SUBSTITUTE(SUBSTITUTE(SUBSTITUTE(G224,$ED224,$ED$2&ROW($ED224)),$EC224,$EC$2&ROW($EC224)),$EB224,$EB$2&ROW($EB224)),$EA224,$EA$2&ROW($EA224)),$DZ224,$DZ$2&ROW($DZ224)),$DY224,$DY$2&ROW($DY224)),$DX224,$DX$2&ROW($DX224)),$DW224,$DW$2&ROW($DW224)),$DV224,$DV$2&ROW($DV224)),$DU224,$DU$2&ROW($DU224)),$DT224,$DT$2&ROW($DT224)),$DS224,$DS$2&ROW($DS224))))","v":"X=AS224*AU224"},{"$f":"IF(I224=\"Manual Entry\",\"Manual\",IF(J224=\"\",0,\"X=\"&SUBSTITUTE(SUBSTITUTE(SUBSTITUTE(SUBSTITUTE(SUBSTITUTE(SUBSTITUTE(SUBSTITUTE(SUBSTITUTE(SUBSTITUTE(SUBSTITUTE(SUBSTITUTE(SUBSTITUTE(J224,$ED224,$ED$2&ROW($ED224)),$EC224,$EC$2&ROW($EC224)),$EB224,$EB$2&ROW($EB224)),$EA224,$EA$2&ROW($EA224)),$DZ224,$DZ$2&ROW($DZ224)),$DY224,$DY$2&ROW($DY224)),$DX224,$DX$2&ROW($DX224)),$DW224,$DW$2&ROW($DW224)),$DV224,$DV$2&ROW($DV224)),$DU224,$DU$2&ROW($DU224)),$DT224,$DT$2&ROW($DT224)),$DS224,$DS$2&ROW($DS224))))","v":"X=if(AS224>3500,3500,AS224)*AU224"},{"$f":"IF(O224=\"\",0,\"X=\"&SUBSTITUTE(SUBSTITUTE(SUBSTITUTE(SUBSTITUTE(SUBSTITUTE(SUBSTITUTE(SUBSTITUTE(SUBSTITUTE(SUBSTITUTE(SUBSTITUTE(SUBSTITUTE(SUBSTITUTE(O224,$ED224,$ED$2&ROW($ED224)),$EC224,$EC$2&ROW($EC224)),$EB224,$EB$2&ROW($EB224)),$EA224,$EA$2&ROW($EA224)),$DZ224,$DZ$2&ROW($DZ224)),$DY224,$DY$2&ROW($DY224)),$DX224,$DX$2&ROW($DX224)),$DW224,$DW$2&ROW($DW224)),$DV224,$DV$2&ROW($DV224)),$DU224,$DU$2&ROW($DU224)),$DT224,$DT$2&ROW($DT224)),$DS224,$DS$2&ROW($DS224)))","v":"X=if(AW224=6,2672,if(AW224=0,102,0))"},{"$f":"IF(P224=\"\",0,\"X=\"&SUBSTITUTE(SUBSTITUTE(SUBSTITUTE(SUBSTITUTE(SUBSTITUTE(SUBSTITUTE(SUBSTITUTE(SUBSTITUTE(SUBSTITUTE(SUBSTITUTE(SUBSTITUTE(SUBSTITUTE(P224,$ED224,$ED$2&ROW($ED224)),$EC224,$EC$2&ROW($EC224)),$EB224,$EB$2&ROW($EB224)),$EA224,$EA$2&ROW($EA224)),$DZ224,$DZ$2&ROW($DZ224)),$DY224,$DY$2&ROW($DY224)),$DX224,$DX$2&ROW($DX224)),$DW224,$DW$2&ROW($DW224)),$DV224,$DV$2&ROW($DV224)),$DU224,$DU$2&ROW($DU224)),$DT224,$DT$2&ROW($DT224)),$DS224,$DS$2&ROW($DS224)))","v":0},{"$f":"IF(Q224=\"\",0,\"X=\"&SUBSTITUTE(SUBSTITUTE(SUBSTITUTE(SUBSTITUTE(SUBSTITUTE(SUBSTITUTE(SUBSTITUTE(SUBSTITUTE(SUBSTITUTE(SUBSTITUTE(SUBSTITUTE(SUBSTITUTE(Q224,$ED224,$ED$2&ROW($ED224)),$EC224,$EC$2&ROW($EC224)),$EB224,$EB$2&ROW($EB224)),$EA224,$EA$2&ROW($EA224)),$DZ224,$DZ$2&ROW($DZ224)),$DY224,$DY$2&ROW($DY224)),$DX224,$DX$2&ROW($DX224)),$DW224,$DW$2&ROW($DW224)),$DV224,$DV$2&ROW($DV224)),$DU224,$DU$2&ROW($DU224)),$DT224,$DT$2&ROW($DT224)),$DS224,$DS$2&ROW($DS224)))","v":0},{"$f":"IF(R224=\"\",0,\"X=\"&SUBSTITUTE(SUBSTITUTE(SUBSTITUTE(SUBSTITUTE(SUBSTITUTE(SUBSTITUTE(SUBSTITUTE(SUBSTITUTE(SUBSTITUTE(SUBSTITUTE(SUBSTITUTE(SUBSTITUTE(R224,$ED224,$ED$2&ROW($ED224)),$EC224,$EC$2&ROW($EC224)),$EB224,$EB$2&ROW($EB224)),$EA224,$EA$2&ROW($EA224)),$DZ224,$DZ$2&ROW($DZ224)),$DY224,$DY$2&ROW($DY224)),$DX224,$DX$2&ROW($DX224)),$DW224,$DW$2&ROW($DW224)),$DV224,$DV$2&ROW($DV224)),$DU224,$DU$2&ROW($DU224)),$DT224,$DT$2&ROW($DT224)),$DS224,$DS$2&ROW($DS224)))","v":"X=0"},{"$f":"IF(S224=\"\",0,\"X=\"&SUBSTITUTE(SUBSTITUTE(SUBSTITUTE(SUBSTITUTE(SUBSTITUTE(SUBSTITUTE(SUBSTITUTE(SUBSTITUTE(SUBSTITUTE(SUBSTITUTE(SUBSTITUTE(SUBSTITUTE(S224,$ED224,$ED$2&ROW($ED224)),$EC224,$EC$2&ROW($EC224)),$EB224,$EB$2&ROW($EB224)),$EA224,$EA$2&ROW($EA224)),$DZ224,$DZ$2&ROW($DZ224)),$DY224,$DY$2&ROW($DY224)),$DX224,$DX$2&ROW($DX224)),$DW224,$DW$2&ROW($DW224)),$DV224,$DV$2&ROW($DV224)),$DU224,$DU$2&ROW($DU224)),$DT224,$DT$2&ROW($DT224)),$DS224,$DS$2&ROW($DS224)))","v":0},{"$f":"IF(T224=\"\",0,\"X=\"&SUBSTITUTE(SUBSTITUTE(SUBSTITUTE(SUBSTITUTE(SUBSTITUTE(SUBSTITUTE(SUBSTITUTE(SUBSTITUTE(SUBSTITUTE(SUBSTITUTE(SUBSTITUTE(SUBSTITUTE(T224,$ED224,$ED$2&ROW($ED224)),$EC224,$EC$2&ROW($EC224)),$EB224,$EB$2&ROW($EB224)),$EA224,$EA$2&ROW($EA224)),$DZ224,$DZ$2&ROW($DZ224)),$DY224,$DY$2&ROW($DY224)),$DX224,$DX$2&ROW($DX224)),$DW224,$DW$2&ROW($DW224)),$DV224,$DV$2&ROW($DV224)),$DU224,$DU$2&ROW($DU224)),$DT224,$DT$2&ROW($DT224)),$DS224,$DS$2&ROW($DS224)))","v":0},{"$f":"IF(U224=\"\",0,\"X=\"&SUBSTITUTE(SUBSTITUTE(SUBSTITUTE(SUBSTITUTE(SUBSTITUTE(SUBSTITUTE(SUBSTITUTE(SUBSTITUTE(SUBSTITUTE(SUBSTITUTE(SUBSTITUTE(SUBSTITUTE(U224,$ED224,$ED$2&ROW($ED224)),$EC224,$EC$2&ROW($EC224)),$EB224,$EB$2&ROW($EB224)),$EA224,$EA$2&ROW($EA224)),$DZ224,$DZ$2&ROW($DZ224)),$DY224,$DY$2&ROW($DY224)),$DX224,$DX$2&ROW($DX224)),$DW224,$DW$2&ROW($DW224)),$DV224,$DV$2&ROW($DV224)),$DU224,$DU$2&ROW($DU224)),$DT224,$DT$2&ROW($DT224)),$DS224,$DS$2&ROW($DS224)))","v":"X=if(AW224=6,0.663,if(AW224=0,0.025,0))"},{"$f":"IF(V224=\"\",0,\"X=\"&SUBSTITUTE(SUBSTITUTE(SUBSTITUTE(SUBSTITUTE(SUBSTITUTE(SUBSTITUTE(SUBSTITUTE(SUBSTITUTE(SUBSTITUTE(SUBSTITUTE(SUBSTITUTE(SUBSTITUTE(V224,$ED224,$ED$2&ROW($ED224)),$EC224,$EC$2&ROW($EC224)),$EB224,$EB$2&ROW($EB224)),$EA224,$EA$2&ROW($EA224)),$DZ224,$DZ$2&ROW($DZ224)),$DY224,$DY$2&ROW($DY224)),$DX224,$DX$2&ROW($DX224)),$DW224,$DW$2&ROW($DW224)),$DV224,$DV$2&ROW($DV224)),$DU224,$DU$2&ROW($DU224)),$DT224,$DT$2&ROW($DT224)),$DS224,$DS$2&ROW($DS224)))","v":"X=0"},{"$f":"IF(W224=\"\",0,\"X=\"&SUBSTITUTE(SUBSTITUTE(SUBSTITUTE(SUBSTITUTE(SUBSTITUTE(SUBSTITUTE(SUBSTITUTE(SUBSTITUTE(SUBSTITUTE(SUBSTITUTE(SUBSTITUTE(SUBSTITUTE(W224,$ED224,$ED$2&ROW($ED224)),$EC224,$EC$2&ROW($EC224)),$EB224,$EB$2&ROW($EB224)),$EA224,$EA$2&ROW($EA224)),$DZ224,$DZ$2&ROW($DZ224)),$DY224,$DY$2&ROW($DY224)),$DX224,$DX$2&ROW($DX224)),$DW224,$DW$2&ROW($DW224)),$DV224,$DV$2&ROW($DV224)),$DU224,$DU$2&ROW($DU224)),$DT224,$DT$2&ROW($DT224)),$DS224,$DS$2&ROW($DS224)))","v":"X=if(AW224=1,10.986,if(AW224=0,0.989,0))*10"},{"$f":"IF(X224=\"\",0,\"X=\"&SUBSTITUTE(SUBSTITUTE(SUBSTITUTE(SUBSTITUTE(SUBSTITUTE(SUBSTITUTE(SUBSTITUTE(SUBSTITUTE(SUBSTITUTE(SUBSTITUTE(SUBSTITUTE(SUBSTITUTE(X224,$ED224,$ED$2&ROW($ED224)),$EC224,$EC$2&ROW($EC224)),$EB224,$EB$2&ROW($EB224)),$EA224,$EA$2&ROW($EA224)),$DZ224,$DZ$2&ROW($DZ224)),$DY224,$DY$2&ROW($DY224)),$DX224,$DX$2&ROW($DX224)),$DW224,$DW$2&ROW($DW224)),$DV224,$DV$2&ROW($DV224)),$DU224,$DU$2&ROW($DU224)),$DT224,$DT$2&ROW($DT224)),$DS224,$DS$2&ROW($DS224)))","v":"X=if(AW224=2,10.986,if(AW224 = 0,1.439,0))"},{"$f":"IF(Y224=\"\",0,\"X=\"&SUBSTITUTE(SUBSTITUTE(SUBSTITUTE(SUBSTITUTE(SUBSTITUTE(SUBSTITUTE(SUBSTITUTE(SUBSTITUTE(SUBSTITUTE(SUBSTITUTE(SUBSTITUTE(SUBSTITUTE(Y224,$ED224,$ED$2&ROW($ED224)),$EC224,$EC$2&ROW($EC224)),$EB224,$EB$2&ROW($EB224)),$EA224,$EA$2&ROW($EA224)),$DZ224,$DZ$2&ROW($DZ224)),$DY224,$DY$2&ROW($DY224)),$DX224,$DX$2&ROW($DX224)),$DW224,$DW$2&ROW($DW224)),$DV224,$DV$2&ROW($DV224)),$DU224,$DU$2&ROW($DU224)),$DT224,$DT$2&ROW($DT224)),$DS224,$DS$2&ROW($DS224)))","v":"X=if(AW224=3,10.986,if(AW224 = 0,7.514,0))"},{"$f":"IF(Z224=\"\",0,\"X=\"&SUBSTITUTE(SUBSTITUTE(SUBSTITUTE(SUBSTITUTE(SUBSTITUTE(SUBSTITUTE(SUBSTITUTE(SUBSTITUTE(SUBSTITUTE(SUBSTITUTE(SUBSTITUTE(SUBSTITUTE(Z224,$ED224,$ED$2&ROW($ED224)),$EC224,$EC$2&ROW($EC224)),$EB224,$EB$2&ROW($EB224)),$EA224,$EA$2&ROW($EA224)),$DZ224,$DZ$2&ROW($DZ224)),$DY224,$DY$2&ROW($DY224)),$DX224,$DX$2&ROW($DX224)),$DW224,$DW$2&ROW($DW224)),$DV224,$DV$2&ROW($DV224)),$DU224,$DU$2&ROW($DU224)),$DT224,$DT$2&ROW($DT224)),$DS224,$DS$2&ROW($DS224)))","v":"X=if(AW224=4,10.986,if(AW224 = 0,0.154,0))"},{"$f":"IF(AA224=\"\",0,\"X=\"&SUBSTITUTE(SUBSTITUTE(SUBSTITUTE(SUBSTITUTE(SUBSTITUTE(SUBSTITUTE(SUBSTITUTE(SUBSTITUTE(SUBSTITUTE(SUBSTITUTE(SUBSTITUTE(SUBSTITUTE(AA224,$ED224,$ED$2&ROW($ED224)),$EC224,$EC$2&ROW($EC224)),$EB224,$EB$2&ROW($EB224)),$EA224,$EA$2&ROW($EA224)),$DZ224,$DZ$2&ROW($DZ224)),$DY224,$DY$2&ROW($DY224)),$DX224,$DX$2&ROW($DX224)),$DW224,$DW$2&ROW($DW224)),$DV224,$DV$2&ROW($DV224)),$DU224,$DU$2&ROW($DU224)),$DT224,$DT$2&ROW($DT224)),$DS224,$DS$2&ROW($DS224)))","v":"X=if(AW224=5,10.986,if(AW224 = 0,0.472,0))"},{"$f":"IF(AB224=\"\",0,\"X=\"&SUBSTITUTE(SUBSTITUTE(SUBSTITUTE(SUBSTITUTE(SUBSTITUTE(SUBSTITUTE(SUBSTITUTE(SUBSTITUTE(SUBSTITUTE(SUBSTITUTE(SUBSTITUTE(SUBSTITUTE(AB224,$ED224,$ED$2&ROW($ED224)),$EC224,$EC$2&ROW($EC224)),$EB224,$EB$2&ROW($EB224)),$EA224,$EA$2&ROW($EA224)),$DZ224,$DZ$2&ROW($DZ224)),$DY224,$DY$2&ROW($DY224)),$DX224,$DX$2&ROW($DX224)),$DW224,$DW$2&ROW($DW224)),$DV224,$DV$2&ROW($DV224)),$DU224,$DU$2&ROW($DU224)),$DT224,$DT$2&ROW($DT224)),$DS224,$DS$2&ROW($DS224)))","v":"X=0"},null,null,"{Factor:WinterCF}","{Factor:SummerCF}",{"$f":"IFERROR(INDEX($EG224:$IV224,MATCH(0,COUNTIF($DR224:DT224,$EG224:$IV224),0)),\"\")","v":"{Cost}"},{"$f":"IFERROR(INDEX($EG224:$IV224,MATCH(0,COUNTIF($DR224:DU224,$EG224:$IV224),0)),\"\")","v":"{Measure:Quantity}"},{"$f":"IFERROR(INDEX($EG224:$IV224,MATCH(0,COUNTIF($DR224:DV224,$EG224:$IV224),0)),\"\")","v":"{Primary heating type}"},{"$f":"IFERROR(INDEX($EG224:$IV224,MATCH(0,COUNTIF($DR224:DW224,$EG224:$IV224),0)),\"\")","v":""},{"$f":"IFERROR(INDEX($EG224:$IV224,MATCH(0,COUNTIF($DR224:DX224,$EG224:$IV224),0)),\"\")","v":""},{"$f":"IFERROR(INDEX($EG224:$IV224,MATCH(0,COUNTIF($DR224:DY224,$EG224:$IV224),0)),\"\")","v":""},{"$f":"IFERROR(INDEX($EG224:$IV224,MATCH(0,COUNTIF($DR224:DZ224,$EG224:$IV224),0)),\"\")","v":""},{"$f":"IFERROR(INDEX($EG224:$IV224,MATCH(0,COUNTIF($DR224:EA224,$EG224:$IV224),0)),\"\")","v":""},{"$f":"IFERROR(INDEX($EG224:$IV224,MATCH(0,COUNTIF($DR224:EB224,$EG224:$IV224),0)),\"\")","v":""},{"$f":"IFERROR(INDEX($EG224:$IV224,MATCH(0,COUNTIF($DR224:EC224,$EG224:$IV224),0)),\"\")","v":""},null,null,{"$f":"IFERROR(MID($G224,FIND(CHAR(160),SUBSTITUTE($G224,\"{\",CHAR(160),EG$1)),FIND(CHAR(160),SUBSTITUTE($G224,\"}\",CHAR(160),EG$1))-FIND(CHAR(160),SUBSTITUTE($G224,\"{\",CHAR(160),EG$1))+1),\"\")","v":"{Cost}"},{"$f":"IFERROR(MID($G224,FIND(CHAR(160),SUBSTITUTE($G224,\"{\",CHAR(160),EH$1)),FIND(CHAR(160),SUBSTITUTE($G224,\"}\",CHAR(160),EH$1))-FIND(CHAR(160),SUBSTITUTE($G224,\"{\",CHAR(160),EH$1))+1),\"\")","v":"{Measure:Quantity}"},{"$f":"IFERROR(MID($G224,FIND(CHAR(160),SUBSTITUTE($G224,\"{\",CHAR(160),EI$1)),FIND(CHAR(160),SUBSTITUTE($G224,\"}\",CHAR(160),EI$1))-FIND(CHAR(160),SUBSTITUTE($G224,\"{\",CHAR(160),EI$1))+1),\"\")","v":""},{"$f":"IFERROR(MID($G224,FIND(CHAR(160),SUBSTITUTE($G224,\"{\",CHAR(160),EJ$1)),FIND(CHAR(160),SUBSTITUTE($G224,\"}\",CHAR(160),EJ$1))-FIND(CHAR(160),SUBSTITUTE($G224,\"{\",CHAR(160),EJ$1))+1),\"\")","v":""},{"$f":"IFERROR(MID($G224,FIND(CHAR(160),SUBSTITUTE($G224,\"{\",CHAR(160),EK$1)),FIND(CHAR(160),SUBSTITUTE($G224,\"}\",CHAR(160),EK$1))-FIND(CHAR(160),SUBSTITUTE($G224,\"{\",CHAR(160),EK$1))+1),\"\")","v":""},{"$f":"IFERROR(MID($G224,FIND(CHAR(160),SUBSTITUTE($G224,\"{\",CHAR(160),EL$1)),FIND(CHAR(160),SUBSTITUTE($G224,\"}\",CHAR(160),EL$1))-FIND(CHAR(160),SUBSTITUTE($G224,\"{\",CHAR(160),EL$1))+1),\"\")","v":""},{"$f":"IFERROR(MID($G224,FIND(CHAR(160),SUBSTITUTE($G224,\"{\",CHAR(160),EM$1)),FIND(CHAR(160),SUBSTITUTE($G224,\"}\",CHAR(160),EM$1))-FIND(CHAR(160),SUBSTITUTE($G224,\"{\",CHAR(160),EM$1))+1),\"\")","v":""},{"$f":"IFERROR(MID($G224,FIND(CHAR(160),SUBSTITUTE($G224,\"{\",CHAR(160),EN$1)),FIND(CHAR(160),SUBSTITUTE($G224,\"}\",CHAR(160),EN$1))-FIND(CHAR(160),SUBSTITUTE($G224,\"{\",CHAR(160),EN$1))+1),\"\")","v":""},{"$f":"IFERROR(MID($G224,FIND(CHAR(160),SUBSTITUTE($G224,\"{\",CHAR(160),EO$1)),FIND(CHAR(160),SUBSTITUTE($G224,\"}\",CHAR(160),EO$1))-FIND(CHAR(160),SUBSTITUTE($G224,\"{\",CHAR(160),EO$1))+1),\"\")","v":""},{"$f":"IFERROR(MID($G224,FIND(CHAR(160),SUBSTITUTE($G224,\"{\",CHAR(160),EP$1)),FIND(CHAR(160),SUBSTITUTE($G224,\"}\",CHAR(160),EP$1))-FIND(CHAR(160),SUBSTITUTE($G224,\"{\",CHAR(160),EP$1))+1),\"\")","v":""},{"$f":"IFERROR(MID($J224,FIND(CHAR(160),SUBSTITUTE($J224,\"{\",CHAR(160),EQ$1)),FIND(CHAR(160),SUBSTITUTE($J224,\"}\",CHAR(160),EQ$1))-FIND(CHAR(160),SUBSTITUTE($J224,\"{\",CHAR(160),EQ$1))+1),\"\")","v":"{Cost}"},{"$f":"IFERROR(MID($J224,FIND(CHAR(160),SUBSTITUTE($J224,\"{\",CHAR(160),ER$1)),FIND(CHAR(160),SUBSTITUTE($J224,\"}\",CHAR(160),ER$1))-FIND(CHAR(160),SUBSTITUTE($J224,\"{\",CHAR(160),ER$1))+1),\"\")","v":"{Cost}"},{"$f":"IFERROR(MID($J224,FIND(CHAR(160),SUBSTITUTE($J224,\"{\",CHAR(160),ES$1)),FIND(CHAR(160),SUBSTITUTE($J224,\"}\",CHAR(160),ES$1))-FIND(CHAR(160),SUBSTITUTE($J224,\"{\",CHAR(160),ES$1))+1),\"\")","v":"{Measure:Quantity}"},{"$f":"IFERROR(MID($J224,FIND(CHAR(160),SUBSTITUTE($J224,\"{\",CHAR(160),ET$1)),FIND(CHAR(160),SUBSTITUTE($J224,\"}\",CHAR(160),ET$1))-FIND(CHAR(160),SUBSTITUTE($J224,\"{\",CHAR(160),ET$1))+1),\"\")","v":""},{"$f":"IFERROR(MID($J224,FIND(CHAR(160),SUBSTITUTE($J224,\"{\",CHAR(160),EU$1)),FIND(CHAR(160),SUBSTITUTE($J224,\"}\",CHAR(160),EU$1))-FIND(CHAR(160),SUBSTITUTE($J224,\"{\",CHAR(160),EU$1))+1),\"\")","v":""},{"$f":"IFERROR(MID($J224,FIND(CHAR(160),SUBSTITUTE($J224,\"{\",CHAR(160),EV$1)),FIND(CHAR(160),SUBSTITUTE($J224,\"}\",CHAR(160),EV$1))-FIND(CHAR(160),SUBSTITUTE($J224,\"{\",CHAR(160),EV$1))+1),\"\")","v":""},{"$f":"IFERROR(MID($J224,FIND(CHAR(160),SUBSTITUTE($J224,\"{\",CHAR(160),EW$1)),FIND(CHAR(160),SUBSTITUTE($J224,\"}\",CHAR(160),EW$1))-FIND(CHAR(160),SUBSTITUTE($J224,\"{\",CHAR(160),EW$1))+1),\"\")","v":""},{"$f":"IFERROR(MID($J224,FIND(CHAR(160),SUBSTITUTE($J224,\"{\",CHAR(160),EX$1)),FIND(CHAR(160),SUBSTITUTE($J224,\"}\",CHAR(160),EX$1))-FIND(CHAR(160),SUBSTITUTE($J224,\"{\",CHAR(160),EX$1))+1),\"\")","v":""},{"$f":"IFERROR(MID($J224,FIND(CHAR(160),SUBSTITUTE($J224,\"{\",CHAR(160),EY$1)),FIND(CHAR(160),SUBSTITUTE($J224,\"}\",CHAR(160),EY$1))-FIND(CHAR(160),SUBSTITUTE($J224,\"{\",CHAR(160),EY$1))+1),\"\")","v":""},{"$f":"IFERROR(MID($J224,FIND(CHAR(160),SUBSTITUTE($J224,\"{\",CHAR(160),EZ$1)),FIND(CHAR(160),SUBSTITUTE($J224,\"}\",CHAR(160),EZ$1))-FIND(CHAR(160),SUBSTITUTE($J224,\"{\",CHAR(160),EZ$1))+1),\"\")","v":""},{"$f":"IFERROR(MID($J224,FIND(CHAR(160),SUBSTITUTE($J224,\"{\",CHAR(160),FA$1)),FIND(CHAR(160),SUBSTITUTE($J224,\"}\",CHAR(160),FA$1))-FIND(CHAR(160),SUBSTITUTE($J224,\"{\",CHAR(160),FA$1))+1),\"\")","v":"{Cost}"},{"$f":"IFERROR(MID($J224,FIND(CHAR(160),SUBSTITUTE($J224,\"{\",CHAR(160),FB$1)),FIND(CHAR(160),SUBSTITUTE($J224,\"}\",CHAR(160),FB$1))-FIND(CHAR(160),SUBSTITUTE($J224,\"{\",CHAR(160),FB$1))+1),\"\")","v":"{Cost}"},{"$f":"IFERROR(MID($O224,FIND(CHAR(160),SUBSTITUTE($O224,\"{\",CHAR(160),FC$1)),FIND(CHAR(160),SUBSTITUTE($O224,\"}\",CHAR(160),FC$1))-FIND(CHAR(160),SUBSTITUTE($O224,\"{\",CHAR(160),FC$1))+1),\"\")","v":""},{"$f":"IFERROR(MID($O224,FIND(CHAR(160),SUBSTITUTE($O224,\"{\",CHAR(160),FD$1)),FIND(CHAR(160),SUBSTITUTE($O224,\"}\",CHAR(160),FD$1))-FIND(CHAR(160),SUBSTITUTE($O224,\"{\",CHAR(160),FD$1))+1),\"\")","v":""},{"$f":"IFERROR(MID($O224,FIND(CHAR(160),SUBSTITUTE($O224,\"{\",CHAR(160),FE$1)),FIND(CHAR(160),SUBSTITUTE($O224,\"}\",CHAR(160),FE$1))-FIND(CHAR(160),SUBSTITUTE($O224,\"{\",CHAR(160),FE$1))+1),\"\")","v":""},{"$f":"IFERROR(MID($O224,FIND(CHAR(160),SUBSTITUTE($O224,\"{\",CHAR(160),FF$1)),FIND(CHAR(160),SUBSTITUTE($O224,\"}\",CHAR(160),FF$1))-FIND(CHAR(160),SUBSTITUTE($O224,\"{\",CHAR(160),FF$1))+1),\"\")","v":""},{"$f":"IFERROR(MID($O224,FIND(CHAR(160),SUBSTITUTE($O224,\"{\",CHAR(160),FG$1)),FIND(CHAR(160),SUBSTITUTE($O224,\"}\",CHAR(160),FG$1))-FIND(CHAR(160),SUBSTITUTE($O224,\"{\",CHAR(160),FG$1))+1),\"\")","v":""},{"$f":"IFERROR(MID($O224,FIND(CHAR(160),SUBSTITUTE($O224,\"{\",CHAR(160),FH$1)),FIND(CHAR(160),SUBSTITUTE($O224,\"}\",CHAR(160),FH$1))-FIND(CHAR(160),SUBSTITUTE($O224,\"{\",CHAR(160),FH$1))+1),\"\")","v":""},{"$f":"IFERROR(MID($O224,FIND(CHAR(160),SUBSTITUTE($O224,\"{\",CHAR(160),FI$1)),FIND(CHAR(160),SUBSTITUTE($O224,\"}\",CHAR(160),FI$1))-FIND(CHAR(160),SUBSTITUTE($O224,\"{\",CHAR(160),FI$1))+1),\"\")","v":""},{"$f":"IFERROR(MID($O224,FIND(CHAR(160),SUBSTITUTE($O224,\"{\",CHAR(160),FJ$1)),FIND(CHAR(160),SUBSTITUTE($O224,\"}\",CHAR(160),FJ$1))-FIND(CHAR(160),SUBSTITUTE($O224,\"{\",CHAR(160),FJ$1))+1),\"\")","v":""},{"$f":"IFERROR(MID($O224,FIND(CHAR(160),SUBSTITUTE($O224,\"{\",CHAR(160),FK$1)),FIND(CHAR(160),SUBSTITUTE($O224,\"}\",CHAR(160),FK$1))-FIND(CHAR(160),SUBSTITUTE($O224,\"{\",CHAR(160),FK$1))+1),\"\")","v":"{Primary heating type}"},{"$f":"IFERROR(MID($O224,FIND(CHAR(160),SUBSTITUTE($O224,\"{\",CHAR(160),FL$1)),FIND(CHAR(160),SUBSTITUTE($O224,\"}\",CHAR(160),FL$1))-FIND(CHAR(160),SUBSTITUTE($O224,\"{\",CHAR(160),FL$1))+1),\"\")","v":"{Primary heating type}"},{"$f":"IFERROR(MID($R224,FIND(CHAR(160),SUBSTITUTE($R224,\"{\",CHAR(160),FM$1)),FIND(CHAR(160),SUBSTITUTE($R224,\"}\",CHAR(160),FM$1))-FIND(CHAR(160),SUBSTITUTE($R224,\"{\",CHAR(160),FM$1))+1),\"\")","v":""},{"$f":"IFERROR(MID($R224,FIND(CHAR(160),SUBSTITUTE($R224,\"{\",CHAR(160),FN$1)),FIND(CHAR(160),SUBSTITUTE($R224,\"}\",CHAR(160),FN$1))-FIND(CHAR(160),SUBSTITUTE($R224,\"{\",CHAR(160),FN$1))+1),\"\")","v":""},{"$f":"IFERROR(MID($R224,FIND(CHAR(160),SUBSTITUTE($R224,\"{\",CHAR(160),FO$1)),FIND(CHAR(160),SUBSTITUTE($R224,\"}\",CHAR(160),FO$1))-FIND(CHAR(160),SUBSTITUTE($R224,\"{\",CHAR(160),FO$1))+1),\"\")","v":""},{"$f":"IFERROR(MID($R224,FIND(CHAR(160),SUBSTITUTE($R224,\"{\",CHAR(160),FP$1)),FIND(CHAR(160),SUBSTITUTE($R224,\"}\",CHAR(160),FP$1))-FIND(CHAR(160),SUBSTITUTE($R224,\"{\",CHAR(160),FP$1))+1),\"\")","v":""},{"$f":"IFERROR(MID($R224,FIND(CHAR(160),SUBSTITUTE($R224,\"{\",CHAR(160),FQ$1)),FIND(CHAR(160),SUBSTITUTE($R224,\"}\",CHAR(160),FQ$1))-FIND(CHAR(160),SUBSTITUTE($R224,\"{\",CHAR(160),FQ$1))+1),\"\")","v":""},{"$f":"IFERROR(MID($R224,FIND(CHAR(160),SUBSTITUTE($R224,\"{\",CHAR(160),FR$1)),FIND(CHAR(160),SUBSTITUTE($R224,\"}\",CHAR(160),FR$1))-FIND(CHAR(160),SUBSTITUTE($R224,\"{\",CHAR(160),FR$1))+1),\"\")","v":""},{"$f":"IFERROR(MID($R224,FIND(CHAR(160),SUBSTITUTE($R224,\"{\",CHAR(160),FS$1)),FIND(CHAR(160),SUBSTITUTE($R224,\"}\",CHAR(160),FS$1))-FIND(CHAR(160),SUBSTITUTE($R224,\"{\",CHAR(160),FS$1))+1),\"\")","v":""},{"$f":"IFERROR(MID($R224,FIND(CHAR(160),SUBSTITUTE($R224,\"{\",CHAR(160),FT$1)),FIND(CHAR(160),SUBSTITUTE($R224,\"}\",CHAR(160),FT$1))-FIND(CHAR(160),SUBSTITUTE($R224,\"{\",CHAR(160),FT$1))+1),\"\")","v":""},{"$f":"IFERROR(MID($R224,FIND(CHAR(160),SUBSTITUTE($R224,\"{\",CHAR(160),FU$1)),FIND(CHAR(160),SUBSTITUTE($R224,\"}\",CHAR(160),FU$1))-FIND(CHAR(160),SUBSTITUTE($R224,\"{\",CHAR(160),FU$1))+1),\"\")","v":""},{"$f":"IFERROR(MID($R224,FIND(CHAR(160),SUBSTITUTE($R224,\"{\",CHAR(160),FV$1)),FIND(CHAR(160),SUBSTITUTE($R224,\"}\",CHAR(160),FV$1))-FIND(CHAR(160),SUBSTITUTE($R224,\"{\",CHAR(160),FV$1))+1),\"\")","v":""},{"$f":"IFERROR(MID($U224,FIND(CHAR(160),SUBSTITUTE($U224,\"{\",CHAR(160),FW$1)),FIND(CHAR(160),SUBSTITUTE($U224,\"}\",CHAR(160),FW$1))-FIND(CHAR(160),SUBSTITUTE($U224,\"{\",CHAR(160),FW$1))+1),\"\")","v":""},{"$f":"IFERROR(MID($U224,FIND(CHAR(160),SUBSTITUTE($U224,\"{\",CHAR(160),FX$1)),FIND(CHAR(160),SUBSTITUTE($U224,\"}\",CHAR(160),FX$1))-FIND(CHAR(160),SUBSTITUTE($U224,\"{\",CHAR(160),FX$1))+1),\"\")","v":""},{"$f":"IFERROR(MID($U224,FIND(CHAR(160),SUBSTITUTE($U224,\"{\",CHAR(160),FY$1)),FIND(CHAR(160),SUBSTITUTE($U224,\"}\",CHAR(160),FY$1))-FIND(CHAR(160),SUBSTITUTE($U224,\"{\",CHAR(160),FY$1))+1),\"\")","v":""},{"$f":"IFERROR(MID($U224,FIND(CHAR(160),SUBSTITUTE($U224,\"{\",CHAR(160),FZ$1)),FIND(CHAR(160),SUBSTITUTE($U224,\"}\",CHAR(160),FZ$1))-FIND(CHAR(160),SUBSTITUTE($U224,\"{\",CHAR(160),FZ$1))+1),\"\")","v":""},{"$f":"IFERROR(MID($U224,FIND(CHAR(160),SUBSTITUTE($U224,\"{\",CHAR(160),GA$1)),FIND(CHAR(160),SUBSTITUTE($U224,\"}\",CHAR(160),GA$1))-FIND(CHAR(160),SUBSTITUTE($U224,\"{\",CHAR(160),GA$1))+1),\"\")","v":""},{"$f":"IFERROR(MID($U224,FIND(CHAR(160),SUBSTITUTE($U224,\"{\",CHAR(160),GB$1)),FIND(CHAR(160),SUBSTITUTE($U224,\"}\",CHAR(160),GB$1))-FIND(CHAR(160),SUBSTITUTE($U224,\"{\",CHAR(160),GB$1))+1),\"\")","v":""},{"$f":"IFERROR(MID($U224,FIND(CHAR(160),SUBSTITUTE($U224,\"{\",CHAR(160),GC$1)),FIND(CHAR(160),SUBSTITUTE($U224,\"}\",CHAR(160),GC$1))-FIND(CHAR(160),SUBSTITUTE($U224,\"{\",CHAR(160),GC$1))+1),\"\")","v":""},{"$f":"IFERROR(MID($U224,FIND(CHAR(160),SUBSTITUTE($U224,\"{\",CHAR(160),GD$1)),FIND(CHAR(160),SUBSTITUTE($U224,\"}\",CHAR(160),GD$1))-FIND(CHAR(160),SUBSTITUTE($U224,\"{\",CHAR(160),GD$1))+1),\"\")","v":""},{"$f":"IFERROR(MID($U224,FIND(CHAR(160),SUBSTITUTE($U224,\"{\",CHAR(160),GE$1)),FIND(CHAR(160),SUBSTITUTE($U224,\"}\",CHAR(160),GE$1))-FIND(CHAR(160),SUBSTITUTE($U224,\"{\",CHAR(160),GE$1))+1),\"\")","v":"{Primary heating type}"},{"$f":"IFERROR(MID($U224,FIND(CHAR(160),SUBSTITUTE($U224,\"{\",CHAR(160),GF$1)),FIND(CHAR(160),SUBSTITUTE($U224,\"}\",CHAR(160),GF$1))-FIND(CHAR(160),SUBSTITUTE($U224,\"{\",CHAR(160),GF$1))+1),\"\")","v":"{Primary heating type}"},{"$f":"IFERROR(MID($V224,FIND(CHAR(160),SUBSTITUTE($V224,\"{\",CHAR(160),GG$1)),FIND(CHAR(160),SUBSTITUTE($V224,\"}\",CHAR(160),GG$1))-FIND(CHAR(160),SUBSTITUTE($V224,\"{\",CHAR(160),GG$1))+1),\"\")","v":""},{"$f":"IFERROR(MID($V224,FIND(CHAR(160),SUBSTITUTE($V224,\"{\",CHAR(160),GH$1)),FIND(CHAR(160),SUBSTITUTE($V224,\"}\",CHAR(160),GH$1))-FIND(CHAR(160),SUBSTITUTE($V224,\"{\",CHAR(160),GH$1))+1),\"\")","v":""},{"$f":"IFERROR(MID($V224,FIND(CHAR(160),SUBSTITUTE($V224,\"{\",CHAR(160),GI$1)),FIND(CHAR(160),SUBSTITUTE($V224,\"}\",CHAR(160),GI$1))-FIND(CHAR(160),SUBSTITUTE($V224,\"{\",CHAR(160),GI$1))+1),\"\")","v":""},{"$f":"IFERROR(MID($V224,FIND(CHAR(160),SUBSTITUTE($V224,\"{\",CHAR(160),GJ$1)),FIND(CHAR(160),SUBSTITUTE($V224,\"}\",CHAR(160),GJ$1))-FIND(CHAR(160),SUBSTITUTE($V224,\"{\",CHAR(160),GJ$1))+1),\"\")","v":""},{"$f":"IFERROR(MID($V224,FIND(CHAR(160),SUBSTITUTE($V224,\"{\",CHAR(160),GK$1)),FIND(CHAR(160),SUBSTITUTE($V224,\"}\",CHAR(160),GK$1))-FIND(CHAR(160),SUBSTITUTE($V224,\"{\",CHAR(160),GK$1))+1),\"\")","v":""},{"$f":"IFERROR(MID($V224,FIND(CHAR(160),SUBSTITUTE($V224,\"{\",CHAR(160),GL$1)),FIND(CHAR(160),SUBSTITUTE($V224,\"}\",CHAR(160),GL$1))-FIND(CHAR(160),SUBSTITUTE($V224,\"{\",CHAR(160),GL$1))+1),\"\")","v":""},{"$f":"IFERROR(MID($V224,FIND(CHAR(160),SUBSTITUTE($V224,\"{\",CHAR(160),GM$1)),FIND(CHAR(160),SUBSTITUTE($V224,\"}\",CHAR(160),GM$1))-FIND(CHAR(160),SUBSTITUTE($V224,\"{\",CHAR(160),GM$1))+1),\"\")","v":""},{"$f":"IFERROR(MID($V224,FIND(CHAR(160),SUBSTITUTE($V224,\"{\",CHAR(160),GN$1)),FIND(CHAR(160),SUBSTITUTE($V224,\"}\",CHAR(160),GN$1))-FIND(CHAR(160),SUBSTITUTE($V224,\"{\",CHAR(160),GN$1))+1),\"\")","v":""},{"$f":"IFERROR(MID($V224,FIND(CHAR(160),SUBSTITUTE($V224,\"{\",CHAR(160),GO$1)),FIND(CHAR(160),SUBSTITUTE($V224,\"}\",CHAR(160),GO$1))-FIND(CHAR(160),SUBSTITUTE($V224,\"{\",CHAR(160),GO$1))+1),\"\")","v":""},{"$f":"IFERROR(MID($V224,FIND(CHAR(160),SUBSTITUTE($V224,\"{\",CHAR(160),GP$1)),FIND(CHAR(160),SUBSTITUTE($V224,\"}\",CHAR(160),GP$1))-FIND(CHAR(160),SUBSTITUTE($V224,\"{\",CHAR(160),GP$1))+1),\"\")","v":""},{"$f":"IFERROR(MID($W224,FIND(CHAR(160),SUBSTITUTE($W224,\"{\",CHAR(160),GQ$1)),FIND(CHAR(160),SUBSTITUTE($W224,\"}\",CHAR(160),GQ$1))-FIND(CHAR(160),SUBSTITUTE($W224,\"{\",CHAR(160),GQ$1))+1),\"\")","v":""},{"$f":"IFERROR(MID($W224,FIND(CHAR(160),SUBSTITUTE($W224,\"{\",CHAR(160),GR$1)),FIND(CHAR(160),SUBSTITUTE($W224,\"}\",CHAR(160),GR$1))-FIND(CHAR(160),SUBSTITUTE($W224,\"{\",CHAR(160),GR$1))+1),\"\")","v":""},{"$f":"IFERROR(MID($W224,FIND(CHAR(160),SUBSTITUTE($W224,\"{\",CHAR(160),GS$1)),FIND(CHAR(160),SUBSTITUTE($W224,\"}\",CHAR(160),GS$1))-FIND(CHAR(160),SUBSTITUTE($W224,\"{\",CHAR(160),GS$1))+1),\"\")","v":""},{"$f":"IFERROR(MID($W224,FIND(CHAR(160),SUBSTITUTE($W224,\"{\",CHAR(160),GT$1)),FIND(CHAR(160),SUBSTITUTE($W224,\"}\",CHAR(160),GT$1))-FIND(CHAR(160),SUBSTITUTE($W224,\"{\",CHAR(160),GT$1))+1),\"\")","v":""},{"$f":"IFERROR(MID($W224,FIND(CHAR(160),SUBSTITUTE($W224,\"{\",CHAR(160),GU$1)),FIND(CHAR(160),SUBSTITUTE($W224,\"}\",CHAR(160),GU$1))-FIND(CHAR(160),SUBSTITUTE($W224,\"{\",CHAR(160),GU$1))+1),\"\")","v":""},{"$f":"IFERROR(MID($W224,FIND(CHAR(160),SUBSTITUTE($W224,\"{\",CHAR(160),GV$1)),FIND(CHAR(160),SUBSTITUTE($W224,\"}\",CHAR(160),GV$1))-FIND(CHAR(160),SUBSTITUTE($W224,\"{\",CHAR(160),GV$1))+1),\"\")","v":""},{"$f":"IFERROR(MID($W224,FIND(CHAR(160),SUBSTITUTE($W224,\"{\",CHAR(160),GW$1)),FIND(CHAR(160),SUBSTITUTE($W224,\"}\",CHAR(160),GW$1))-FIND(CHAR(160),SUBSTITUTE($W224,\"{\",CHAR(160),GW$1))+1),\"\")","v":""},{"$f":"IFERROR(MID($W224,FIND(CHAR(160),SUBSTITUTE($W224,\"{\",CHAR(160),GX$1)),FIND(CHAR(160),SUBSTITUTE($W224,\"}\",CHAR(160),GX$1))-FIND(CHAR(160),SUBSTITUTE($W224,\"{\",CHAR(160),GX$1))+1),\"\")","v":""},{"$f":"IFERROR(MID($W224,FIND(CHAR(160),SUBSTITUTE($W224,\"{\",CHAR(160),GY$1)),FIND(CHAR(160),SUBSTITUTE($W224,\"}\",CHAR(160),GY$1))-FIND(CHAR(160),SUBSTITUTE($W224,\"{\",CHAR(160),GY$1))+1),\"\")","v":"{Primary heating type}"},{"$f":"IFERROR(MID($W224,FIND(CHAR(160),SUBSTITUTE($W224,\"{\",CHAR(160),GZ$1)),FIND(CHAR(160),SUBSTITUTE($W224,\"}\",CHAR(160),GZ$1))-FIND(CHAR(160),SUBSTITUTE($W224,\"{\",CHAR(160),GZ$1))+1),\"\")","v":"{Primary heating type}"},{"$f":"IFERROR(MID($X224,FIND(CHAR(160),SUBSTITUTE($X224,\"{\",CHAR(160),HA$1)),FIND(CHAR(160),SUBSTITUTE($X224,\"}\",CHAR(160),HA$1))-FIND(CHAR(160),SUBSTITUTE($X224,\"{\",CHAR(160),HA$1))+1),\"\")","v":""},{"$f":"IFERROR(MID($X224,FIND(CHAR(160),SUBSTITUTE($X224,\"{\",CHAR(160),HB$1)),FIND(CHAR(160),SUBSTITUTE($X224,\"}\",CHAR(160),HB$1))-FIND(CHAR(160),SUBSTITUTE($X224,\"{\",CHAR(160),HB$1))+1),\"\")","v":""},{"$f":"IFERROR(MID($X224,FIND(CHAR(160),SUBSTITUTE($X224,\"{\",CHAR(160),HC$1)),FIND(CHAR(160),SUBSTITUTE($X224,\"}\",CHAR(160),HC$1))-FIND(CHAR(160),SUBSTITUTE($X224,\"{\",CHAR(160),HC$1))+1),\"\")","v":""},{"$f":"IFERROR(MID($X224,FIND(CHAR(160),SUBSTITUTE($X224,\"{\",CHAR(160),HD$1)),FIND(CHAR(160),SUBSTITUTE($X224,\"}\",CHAR(160),HD$1))-FIND(CHAR(160),SUBSTITUTE($X224,\"{\",CHAR(160),HD$1))+1),\"\")","v":""},{"$f":"IFERROR(MID($X224,FIND(CHAR(160),SUBSTITUTE($X224,\"{\",CHAR(160),HE$1)),FIND(CHAR(160),SUBSTITUTE($X224,\"}\",CHAR(160),HE$1))-FIND(CHAR(160),SUBSTITUTE($X224,\"{\",CHAR(160),HE$1))+1),\"\")","v":""},{"$f":"IFERROR(MID($X224,FIND(CHAR(160),SUBSTITUTE($X224,\"{\",CHAR(160),HF$1)),FIND(CHAR(160),SUBSTITUTE($X224,\"}\",CHAR(160),HF$1))-FIND(CHAR(160),SUBSTITUTE($X224,\"{\",CHAR(160),HF$1))+1),\"\")","v":""},{"$f":"IFERROR(MID($X224,FIND(CHAR(160),SUBSTITUTE($X224,\"{\",CHAR(160),HG$1)),FIND(CHAR(160),SUBSTITUTE($X224,\"}\",CHAR(160),HG$1))-FIND(CHAR(160),SUBSTITUTE($X224,\"{\",CHAR(160),HG$1))+1),\"\")","v":""},{"$f":"IFERROR(MID($X224,FIND(CHAR(160),SUBSTITUTE($X224,\"{\",CHAR(160),HH$1)),FIND(CHAR(160),SUBSTITUTE($X224,\"}\",CHAR(160),HH$1))-FIND(CHAR(160),SUBSTITUTE($X224,\"{\",CHAR(160),HH$1))+1),\"\")","v":""},{"$f":"IFERROR(MID($X224,FIND(CHAR(160),SUBSTITUTE($X224,\"{\",CHAR(160),HI$1)),FIND(CHAR(160),SUBSTITUTE($X224,\"}\",CHAR(160),HI$1))-FIND(CHAR(160),SUBSTITUTE($X224,\"{\",CHAR(160),HI$1))+1),\"\")","v":"{Primary heating type}"},{"$f":"IFERROR(MID($X224,FIND(CHAR(160),SUBSTITUTE($X224,\"{\",CHAR(160),HJ$1)),FIND(CHAR(160),SUBSTITUTE($X224,\"}\",CHAR(160),HJ$1))-FIND(CHAR(160),SUBSTITUTE($X224,\"{\",CHAR(160),HJ$1))+1),\"\")","v":"{Primary heating type}"},{"$f":"IFERROR(MID($Y224,FIND(CHAR(160),SUBSTITUTE($Y224,\"{\",CHAR(160),HK$1)),FIND(CHAR(160),SUBSTITUTE($Y224,\"}\",CHAR(160),HK$1))-FIND(CHAR(160),SUBSTITUTE($Y224,\"{\",CHAR(160),HK$1))+1),\"\")","v":""},{"$f":"IFERROR(MID($Y224,FIND(CHAR(160),SUBSTITUTE($Y224,\"{\",CHAR(160),HL$1)),FIND(CHAR(160),SUBSTITUTE($Y224,\"}\",CHAR(160),HL$1))-FIND(CHAR(160),SUBSTITUTE($Y224,\"{\",CHAR(160),HL$1))+1),\"\")","v":""},{"$f":"IFERROR(MID($Y224,FIND(CHAR(160),SUBSTITUTE($Y224,\"{\",CHAR(160),HM$1)),FIND(CHAR(160),SUBSTITUTE($Y224,\"}\",CHAR(160),HM$1))-FIND(CHAR(160),SUBSTITUTE($Y224,\"{\",CHAR(160),HM$1))+1),\"\")","v":""},{"$f":"IFERROR(MID($Y224,FIND(CHAR(160),SUBSTITUTE($Y224,\"{\",CHAR(160),HN$1)),FIND(CHAR(160),SUBSTITUTE($Y224,\"}\",CHAR(160),HN$1))-FIND(CHAR(160),SUBSTITUTE($Y224,\"{\",CHAR(160),HN$1))+1),\"\")","v":""},{"$f":"IFERROR(MID($Y224,FIND(CHAR(160),SUBSTITUTE($Y224,\"{\",CHAR(160),HO$1)),FIND(CHAR(160),SUBSTITUTE($Y224,\"}\",CHAR(160),HO$1))-FIND(CHAR(160),SUBSTITUTE($Y224,\"{\",CHAR(160),HO$1))+1),\"\")","v":""},{"$f":"IFERROR(MID($Y224,FIND(CHAR(160),SUBSTITUTE($Y224,\"{\",CHAR(160),HP$1)),FIND(CHAR(160),SUBSTITUTE($Y224,\"}\",CHAR(160),HP$1))-FIND(CHAR(160),SUBSTITUTE($Y224,\"{\",CHAR(160),HP$1))+1),\"\")","v":""},{"$f":"IFERROR(MID($Y224,FIND(CHAR(160),SUBSTITUTE($Y224,\"{\",CHAR(160),HQ$1)),FIND(CHAR(160),SUBSTITUTE($Y224,\"}\",CHAR(160),HQ$1))-FIND(CHAR(160),SUBSTITUTE($Y224,\"{\",CHAR(160),HQ$1))+1),\"\")","v":""},{"$f":"IFERROR(MID($Y224,FIND(CHAR(160),SUBSTITUTE($Y224,\"{\",CHAR(160),HR$1)),FIND(CHAR(160),SUBSTITUTE($Y224,\"}\",CHAR(160),HR$1))-FIND(CHAR(160),SUBSTITUTE($Y224,\"{\",CHAR(160),HR$1))+1),\"\")","v":""},{"$f":"IFERROR(MID($Y224,FIND(CHAR(160),SUBSTITUTE($Y224,\"{\",CHAR(160),HS$1)),FIND(CHAR(160),SUBSTITUTE($Y224,\"}\",CHAR(160),HS$1))-FIND(CHAR(160),SUBSTITUTE($Y224,\"{\",CHAR(160),HS$1))+1),\"\")","v":"{Primary heating type}"},{"$f":"IFERROR(MID($Y224,FIND(CHAR(160),SUBSTITUTE($Y224,\"{\",CHAR(160),HT$1)),FIND(CHAR(160),SUBSTITUTE($Y224,\"}\",CHAR(160),HT$1))-FIND(CHAR(160),SUBSTITUTE($Y224,\"{\",CHAR(160),HT$1))+1),\"\")","v":"{Primary heating type}"},{"$f":"IFERROR(MID($Z224,FIND(CHAR(160),SUBSTITUTE($Z224,\"{\",CHAR(160),HU$1)),FIND(CHAR(160),SUBSTITUTE($Z224,\"}\",CHAR(160),HU$1))-FIND(CHAR(160),SUBSTITUTE($Z224,\"{\",CHAR(160),HU$1))+1),\"\")","v":""},{"$f":"IFERROR(MID($Z224,FIND(CHAR(160),SUBSTITUTE($Z224,\"{\",CHAR(160),HV$1)),FIND(CHAR(160),SUBSTITUTE($Z224,\"}\",CHAR(160),HV$1))-FIND(CHAR(160),SUBSTITUTE($Z224,\"{\",CHAR(160),HV$1))+1),\"\")","v":""},{"$f":"IFERROR(MID($Z224,FIND(CHAR(160),SUBSTITUTE($Z224,\"{\",CHAR(160),HW$1)),FIND(CHAR(160),SUBSTITUTE($Z224,\"}\",CHAR(160),HW$1))-FIND(CHAR(160),SUBSTITUTE($Z224,\"{\",CHAR(160),HW$1))+1),\"\")","v":""},{"$f":"IFERROR(MID($Z224,FIND(CHAR(160),SUBSTITUTE($Z224,\"{\",CHAR(160),HX$1)),FIND(CHAR(160),SUBSTITUTE($Z224,\"}\",CHAR(160),HX$1))-FIND(CHAR(160),SUBSTITUTE($Z224,\"{\",CHAR(160),HX$1))+1),\"\")","v":""},{"$f":"IFERROR(MID($Z224,FIND(CHAR(160),SUBSTITUTE($Z224,\"{\",CHAR(160),HY$1)),FIND(CHAR(160),SUBSTITUTE($Z224,\"}\",CHAR(160),HY$1))-FIND(CHAR(160),SUBSTITUTE($Z224,\"{\",CHAR(160),HY$1))+1),\"\")","v":""},{"$f":"IFERROR(MID($Z224,FIND(CHAR(160),SUBSTITUTE($Z224,\"{\",CHAR(160),HZ$1)),FIND(CHAR(160),SUBSTITUTE($Z224,\"}\",CHAR(160),HZ$1))-FIND(CHAR(160),SUBSTITUTE($Z224,\"{\",CHAR(160),HZ$1))+1),\"\")","v":""},{"$f":"IFERROR(MID($Z224,FIND(CHAR(160),SUBSTITUTE($Z224,\"{\",CHAR(160),IA$1)),FIND(CHAR(160),SUBSTITUTE($Z224,\"}\",CHAR(160),IA$1))-FIND(CHAR(160),SUBSTITUTE($Z224,\"{\",CHAR(160),IA$1))+1),\"\")","v":""},{"$f":"IFERROR(MID($Z224,FIND(CHAR(160),SUBSTITUTE($Z224,\"{\",CHAR(160),IB$1)),FIND(CHAR(160),SUBSTITUTE($Z224,\"}\",CHAR(160),IB$1))-FIND(CHAR(160),SUBSTITUTE($Z224,\"{\",CHAR(160),IB$1))+1),\"\")","v":""},{"$f":"IFERROR(MID($Z224,FIND(CHAR(160),SUBSTITUTE($Z224,\"{\",CHAR(160),IC$1)),FIND(CHAR(160),SUBSTITUTE($Z224,\"}\",CHAR(160),IC$1))-FIND(CHAR(160),SUBSTITUTE($Z224,\"{\",CHAR(160),IC$1))+1),\"\")","v":"{Primary heating type}"},{"$f":"IFERROR(MID($Z224,FIND(CHAR(160),SUBSTITUTE($Z224,\"{\",CHAR(160),ID$1)),FIND(CHAR(160),SUBSTITUTE($Z224,\"}\",CHAR(160),ID$1))-FIND(CHAR(160),SUBSTITUTE($Z224,\"{\",CHAR(160),ID$1))+1),\"\")","v":"{Primary heating type}"},{"$f":"IFERROR(MID($AA224,FIND(CHAR(160),SUBSTITUTE($AA224,\"{\",CHAR(160),IE$1)),FIND(CHAR(160),SUBSTITUTE($AA224,\"}\",CHAR(160),IE$1))-FIND(CHAR(160),SUBSTITUTE($AA224,\"{\",CHAR(160),IE$1))+1),\"\")","v":""},{"$f":"IFERROR(MID($AA224,FIND(CHAR(160),SUBSTITUTE($AA224,\"{\",CHAR(160),IF$1)),FIND(CHAR(160),SUBSTITUTE($AA224,\"}\",CHAR(160),IF$1))-FIND(CHAR(160),SUBSTITUTE($AA224,\"{\",CHAR(160),IF$1))+1),\"\")","v":""},{"$f":"IFERROR(MID($AA224,FIND(CHAR(160),SUBSTITUTE($AA224,\"{\",CHAR(160),IG$1)),FIND(CHAR(160),SUBSTITUTE($AA224,\"}\",CHAR(160),IG$1))-FIND(CHAR(160),SUBSTITUTE($AA224,\"{\",CHAR(160),IG$1))+1),\"\")","v":""},{"$f":"IFERROR(MID($AA224,FIND(CHAR(160),SUBSTITUTE($AA224,\"{\",CHAR(160),IH$1)),FIND(CHAR(160),SUBSTITUTE($AA224,\"}\",CHAR(160),IH$1))-FIND(CHAR(160),SUBSTITUTE($AA224,\"{\",CHAR(160),IH$1))+1),\"\")","v":""},{"$f":"IFERROR(MID($AA224,FIND(CHAR(160),SUBSTITUTE($AA224,\"{\",CHAR(160),II$1)),FIND(CHAR(160),SUBSTITUTE($AA224,\"}\",CHAR(160),II$1))-FIND(CHAR(160),SUBSTITUTE($AA224,\"{\",CHAR(160),II$1))+1),\"\")","v":""},{"$f":"IFERROR(MID($AA224,FIND(CHAR(160),SUBSTITUTE($AA224,\"{\",CHAR(160),IJ$1)),FIND(CHAR(160),SUBSTITUTE($AA224,\"}\",CHAR(160),IJ$1))-FIND(CHAR(160),SUBSTITUTE($AA224,\"{\",CHAR(160),IJ$1))+1),\"\")","v":""},{"$f":"IFERROR(MID($AA224,FIND(CHAR(160),SUBSTITUTE($AA224,\"{\",CHAR(160),IK$1)),FIND(CHAR(160),SUBSTITUTE($AA224,\"}\",CHAR(160),IK$1))-FIND(CHAR(160),SUBSTITUTE($AA224,\"{\",CHAR(160),IK$1))+1),\"\")","v":""},{"$f":"IFERROR(MID($AA224,FIND(CHAR(160),SUBSTITUTE($AA224,\"{\",CHAR(160),IL$1)),FIND(CHAR(160),SUBSTITUTE($AA224,\"}\",CHAR(160),IL$1))-FIND(CHAR(160),SUBSTITUTE($AA224,\"{\",CHAR(160),IL$1))+1),\"\")","v":""},{"$f":"IFERROR(MID($AA224,FIND(CHAR(160),SUBSTITUTE($AA224,\"{\",CHAR(160),IM$1)),FIND(CHAR(160),SUBSTITUTE($AA224,\"}\",CHAR(160),IM$1))-FIND(CHAR(160),SUBSTITUTE($AA224,\"{\",CHAR(160),IM$1))+1),\"\")","v":"{Primary heating type}"},{"$f":"IFERROR(MID($AA224,FIND(CHAR(160),SUBSTITUTE($AA224,\"{\",CHAR(160),IN$1)),FIND(CHAR(160),SUBSTITUTE($AA224,\"}\",CHAR(160),IN$1))-FIND(CHAR(160),SUBSTITUTE($AA224,\"{\",CHAR(160),IN$1))+1),\"\")","v":"{Primary heating type}"},{"$f":"IFERROR(MID($AB224,FIND(CHAR(160),SUBSTITUTE($AB224,\"{\",CHAR(160),IO$1)),FIND(CHAR(160),SUBSTITUTE($AB224,\"}\",CHAR(160),IO$1))-FIND(CHAR(160),SUBSTITUTE($AB224,\"{\",CHAR(160),IO$1))+1),\"\")","v":""},{"$f":"IFERROR(MID($AB224,FIND(CHAR(160),SUBSTITUTE($AB224,\"{\",CHAR(160),IP$1)),FIND(CHAR(160),SUBSTITUTE($AB224,\"}\",CHAR(160),IP$1))-FIND(CHAR(160),SUBSTITUTE($AB224,\"{\",CHAR(160),IP$1))+1),\"\")","v":""},{"$f":"IFERROR(MID($AB224,FIND(CHAR(160),SUBSTITUTE($AB224,\"{\",CHAR(160),IQ$1)),FIND(CHAR(160),SUBSTITUTE($AB224,\"}\",CHAR(160),IQ$1))-FIND(CHAR(160),SUBSTITUTE($AB224,\"{\",CHAR(160),IQ$1))+1),\"\")","v":""},{"$f":"IFERROR(MID($AB224,FIND(CHAR(160),SUBSTITUTE($AB224,\"{\",CHAR(160),IR$1)),FIND(CHAR(160),SUBSTITUTE($AB224,\"}\",CHAR(160),IR$1))-FIND(CHAR(160),SUBSTITUTE($AB224,\"{\",CHAR(160),IR$1))+1),\"\")","v":""},{"$f":"IFERROR(MID($AB224,FIND(CHAR(160),SUBSTITUTE($AB224,\"{\",CHAR(160),IS$1)),FIND(CHAR(160),SUBSTITUTE($AB224,\"}\",CHAR(160),IS$1))-FIND(CHAR(160),SUBSTITUTE($AB224,\"{\",CHAR(160),IS$1))+1),\"\")","v":""},{"$f":"IFERROR(MID($AB224,FIND(CHAR(160),SUBSTITUTE($AB224,\"{\",CHAR(160),IT$1)),FIND(CHAR(160),SUBSTITUTE($AB224,\"}\",CHAR(160),IT$1))-FIND(CHAR(160),SUBSTITUTE($AB224,\"{\",CHAR(160),IT$1))+1),\"\")","v":""},{"$f":"IFERROR(MID($AB224,FIND(CHAR(160),SUBSTITUTE($AB224,\"{\",CHAR(160),IU$1)),FIND(CHAR(160),SUBSTITUTE($AB224,\"}\",CHAR(160),IU$1))-FIND(CHAR(160),SUBSTITUTE($AB224,\"{\",CHAR(160),IU$1))+1),\"\")","v":""},{"$f":"IFERROR(MID($AB224,FIND(CHAR(160),SUBSTITUTE($AB224,\"{\",CHAR(160),IV$1)),FIND(CHAR(160),SUBSTITUTE($AB224,\"}\",CHAR(160),IV$1))-FIND(CHAR(160),SUBSTITUTE($AB224,\"{\",CHAR(160),IV$1))+1),\"\")","v":""},{"$f":"IFERROR(MID($AB224,FIND(CHAR(160),SUBSTITUTE($AB224,\"{\",CHAR(160),IW$1)),FIND(CHAR(160),SUBSTITUTE($AB224,\"}\",CHAR(160),IW$1))-FIND(CHAR(160),SUBSTITUTE($AB224,\"{\",CHAR(160),IW$1))+1),\"\")","v":""},{"$f":"IFERROR(MID($AB224,FIND(CHAR(160),SUBSTITUTE($AB224,\"{\",CHAR(160),IX$1)),FIND(CHAR(160),SUBSTITUTE($AB224,\"}\",CHAR(160),IX$1))-FIND(CHAR(160),SUBSTITUTE($AB224,\"{\",CHAR(160),IX$1))+1),\"\")","v":""},null,{"$f":"10-COUNTIF(DU224:ED224,\"\")","v":3}]
["Low Income Direct Install - Other Fuels","Attic Insulation LIHESP","LBA","2021-07-01","2022-06-30","Calculated","{Cost}*{Measure:Quantity}",0,"Calculated","if({Cost}>3500,3500,{Cost})*{Measure:Quantity}",3500,"2020-07-01","2022-06-30","Calculated","if({Primary heating type}=6,3101,if({Primary heating type}=0,117,20))",null,null,"if({Primary heating type}=6,0.053,if({Primary heating type}=0,0.053,0.053))",null,null,"if({Primary heating type}=6,0.678,if({Primary heating type}=0,0.026,0))","if({Primary heating type}=6,0.053,if({Primary heating type}=0,0.053,0.053))","if({Primary heating type}=1,12.663,if({Primary heating type}=0,1.140,0))*10","if({Primary heating type}=2,12.663,if({Primary heating type}=0,1.659,0))","if({Primary heating type}=3,12.663,if({Primary heating type} = 0,8.661,0))","if({Primary heating type}=4,12.663,if({Primary heating type} = 0,0.177,0))","if({Primary heating type}=5,12.663,if({Primary heating type} = 0,0.545,0))",0,"2020-07-01","2022-06-30",25,1,1,0,0,0.66600000000000004,0.30099999999999999,1,1,1,0,0,null,{"$f":"DU225","v":"{Cost}"},2000,{"$f":"DV225","v":"{Measure:Quantity}"},1,{"$f":"DW225","v":"{Primary heating type}"},3,{"$f":"DX225","v":""},null,{"$f":"DY225","v":""},null,{"$f":"DZ225","v":""},null,{"$f":"EA225","v":""},null,{"$f":"EB225","v":""},null,{"$f":"EC225","v":""},null,{"$f":"ED225","v":""},null,{"$f":"IF(AW225=6,3101,IF(AW225=0,117,20))","v":20},0,0,{"$f":"IF(AW225=6,0.053,IF(AW225=0,0.053,0.053))","v":5.2999999999999999E-2},0,0,{"$f":"IF(AW225=6,0.678,IF(AW225=0,0.026,0))","v":0},{"$f":"IF(AW225=6,0.053,IF(AW225=0,0.053,0.053))","v":5.2999999999999999E-2},{"$f":"IF(AW225=1,12.663,IF(AW225=0,1.14,0))*10","v":0},{"$f":"IF(AW225=2,12.663,IF(AW225=0,1.659,0))","v":0},{"$f":"IF(AW225=3,12.663,IF(AW225 = 0,8.661,0))","v":12.663},{"$f":"IF(AW225=4,12.663,IF(AW225 = 0,0.177,0))","v":0},{"$f":"IF(AW225=5,12.663,IF(AW225 = 0,0.545,0))","v":0},{"$f":"0","v":0},null,"Res","Default DR",{"$f":"Benefits(BL225,BR225,BS225,BT225,BU225,BV225,BW225,BX225,BY225,BZ225,AE225,AH225,AI225,AJ225,AK225,AL225,AM225,AN225,AO225,AP225,CA225,CB225)","v":32.602331993534627},147.31601414205733,0,7658.1448883466346,0,0,0,0,0,{"$f":"SUMPRODUCT(CC225:CK225,--(CC225:CK225>0))","v":7838.0632344822261},{"$f":"-SUMPRODUCT(CC225:CK225,--(CC225:CK225<0))","v":0},null,{"$f":"AS225*AU225","v":2000},null,null,{"$f":"CM225+CO225","v":2000},{"$f":"IF(NetOrGross=\"Net\",(1-AO225+AP225),1)","v":1},{"$f":"(SUMPRODUCT(CC225:CJ225,--(CC225:CJ225>0))+CN225)*CS225/((-SUMPRODUCT(CC225:CJ225,--(CC225:CJ225<0))+MAX(CO225,CV225)+CP225+CQ225)*CS225+IF(FRIncentives=\"Yes\",CV225*(1-CS225),0))","v":3.9190316172411133},1,{"$f":"IF(AS225>3500,3500,AS225)*AU225","v":2000},null,"RGGI","y",null,{"$f":"IF(F225=\"Manual Entry\",\"Manual\",IF(G225=\"\",0,\"X=\"&SUBSTITUTE(SUBSTITUTE(SUBSTITUTE(SUBSTITUTE(SUBSTITUTE(SUBSTITUTE(SUBSTITUTE(SUBSTITUTE(SUBSTITUTE(SUBSTITUTE(SUBSTITUTE(SUBSTITUTE(G225,$ED225,$ED$2&ROW($ED225)),$EC225,$EC$2&ROW($EC225)),$EB225,$EB$2&ROW($EB225)),$EA225,$EA$2&ROW($EA225)),$DZ225,$DZ$2&ROW($DZ225)),$DY225,$DY$2&ROW($DY225)),$DX225,$DX$2&ROW($DX225)),$DW225,$DW$2&ROW($DW225)),$DV225,$DV$2&ROW($DV225)),$DU225,$DU$2&ROW($DU225)),$DT225,$DT$2&ROW($DT225)),$DS225,$DS$2&ROW($DS225))))","v":"X=AS225*AU225"},{"$f":"IF(I225=\"Manual Entry\",\"Manual\",IF(J225=\"\",0,\"X=\"&SUBSTITUTE(SUBSTITUTE(SUBSTITUTE(SUBSTITUTE(SUBSTITUTE(SUBSTITUTE(SUBSTITUTE(SUBSTITUTE(SUBSTITUTE(SUBSTITUTE(SUBSTITUTE(SUBSTITUTE(J225,$ED225,$ED$2&ROW($ED225)),$EC225,$EC$2&ROW($EC225)),$EB225,$EB$2&ROW($EB225)),$EA225,$EA$2&ROW($EA225)),$DZ225,$DZ$2&ROW($DZ225)),$DY225,$DY$2&ROW($DY225)),$DX225,$DX$2&ROW($DX225)),$DW225,$DW$2&ROW($DW225)),$DV225,$DV$2&ROW($DV225)),$DU225,$DU$2&ROW($DU225)),$DT225,$DT$2&ROW($DT225)),$DS225,$DS$2&ROW($DS225))))","v":"X=if(AS225>3500,3500,AS225)*AU225"},{"$f":"IF(O225=\"\",0,\"X=\"&SUBSTITUTE(SUBSTITUTE(SUBSTITUTE(SUBSTITUTE(SUBSTITUTE(SUBSTITUTE(SUBSTITUTE(SUBSTITUTE(SUBSTITUTE(SUBSTITUTE(SUBSTITUTE(SUBSTITUTE(O225,$ED225,$ED$2&ROW($ED225)),$EC225,$EC$2&ROW($EC225)),$EB225,$EB$2&ROW($EB225)),$EA225,$EA$2&ROW($EA225)),$DZ225,$DZ$2&ROW($DZ225)),$DY225,$DY$2&ROW($DY225)),$DX225,$DX$2&ROW($DX225)),$DW225,$DW$2&ROW($DW225)),$DV225,$DV$2&ROW($DV225)),$DU225,$DU$2&ROW($DU225)),$DT225,$DT$2&ROW($DT225)),$DS225,$DS$2&ROW($DS225)))","v":"X=if(AW225=6,3101,if(AW225=0,117,20))"},{"$f":"IF(P225=\"\",0,\"X=\"&SUBSTITUTE(SUBSTITUTE(SUBSTITUTE(SUBSTITUTE(SUBSTITUTE(SUBSTITUTE(SUBSTITUTE(SUBSTITUTE(SUBSTITUTE(SUBSTITUTE(SUBSTITUTE(SUBSTITUTE(P225,$ED225,$ED$2&ROW($ED225)),$EC225,$EC$2&ROW($EC225)),$EB225,$EB$2&ROW($EB225)),$EA225,$EA$2&ROW($EA225)),$DZ225,$DZ$2&ROW($DZ225)),$DY225,$DY$2&ROW($DY225)),$DX225,$DX$2&ROW($DX225)),$DW225,$DW$2&ROW($DW225)),$DV225,$DV$2&ROW($DV225)),$DU225,$DU$2&ROW($DU225)),$DT225,$DT$2&ROW($DT225)),$DS225,$DS$2&ROW($DS225)))","v":0},{"$f":"IF(Q225=\"\",0,\"X=\"&SUBSTITUTE(SUBSTITUTE(SUBSTITUTE(SUBSTITUTE(SUBSTITUTE(SUBSTITUTE(SUBSTITUTE(SUBSTITUTE(SUBSTITUTE(SUBSTITUTE(SUBSTITUTE(SUBSTITUTE(Q225,$ED225,$ED$2&ROW($ED225)),$EC225,$EC$2&ROW($EC225)),$EB225,$EB$2&ROW($EB225)),$EA225,$EA$2&ROW($EA225)),$DZ225,$DZ$2&ROW($DZ225)),$DY225,$DY$2&ROW($DY225)),$DX225,$DX$2&ROW($DX225)),$DW225,$DW$2&ROW($DW225)),$DV225,$DV$2&ROW($DV225)),$DU225,$DU$2&ROW($DU225)),$DT225,$DT$2&ROW($DT225)),$DS225,$DS$2&ROW($DS225)))","v":0},{"$f":"IF(R225=\"\",0,\"X=\"&SUBSTITUTE(SUBSTITUTE(SUBSTITUTE(SUBSTITUTE(SUBSTITUTE(SUBSTITUTE(SUBSTITUTE(SUBSTITUTE(SUBSTITUTE(SUBSTITUTE(SUBSTITUTE(SUBSTITUTE(R225,$ED225,$ED$2&ROW($ED225)),$EC225,$EC$2&ROW($EC225)),$EB225,$EB$2&ROW($EB225)),$EA225,$EA$2&ROW($EA225)),$DZ225,$DZ$2&ROW($DZ225)),$DY225,$DY$2&ROW($DY225)),$DX225,$DX$2&ROW($DX225)),$DW225,$DW$2&ROW($DW225)),$DV225,$DV$2&ROW($DV225)),$DU225,$DU$2&ROW($DU225)),$DT225,$DT$2&ROW($DT225)),$DS225,$DS$2&ROW($DS225)))","v":"X=if(AW225=6,0.053,if(AW225=0,0.053,0.053))"},{"$f":"IF(S225=\"\",0,\"X=\"&SUBSTITUTE(SUBSTITUTE(SUBSTITUTE(SUBSTITUTE(SUBSTITUTE(SUBSTITUTE(SUBSTITUTE(SUBSTITUTE(SUBSTITUTE(SUBSTITUTE(SUBSTITUTE(SUBSTITUTE(S225,$ED225,$ED$2&ROW($ED225)),$EC225,$EC$2&ROW($EC225)),$EB225,$EB$2&ROW($EB225)),$EA225,$EA$2&ROW($EA225)),$DZ225,$DZ$2&ROW($DZ225)),$DY225,$DY$2&ROW($DY225)),$DX225,$DX$2&ROW($DX225)),$DW225,$DW$2&ROW($DW225)),$DV225,$DV$2&ROW($DV225)),$DU225,$DU$2&ROW($DU225)),$DT225,$DT$2&ROW($DT225)),$DS225,$DS$2&ROW($DS225)))","v":0},{"$f":"IF(T225=\"\",0,\"X=\"&SUBSTITUTE(SUBSTITUTE(SUBSTITUTE(SUBSTITUTE(SUBSTITUTE(SUBSTITUTE(SUBSTITUTE(SUBSTITUTE(SUBSTITUTE(SUBSTITUTE(SUBSTITUTE(SUBSTITUTE(T225,$ED225,$ED$2&ROW($ED225)),$EC225,$EC$2&ROW($EC225)),$EB225,$EB$2&ROW($EB225)),$EA225,$EA$2&ROW($EA225)),$DZ225,$DZ$2&ROW($DZ225)),$DY225,$DY$2&ROW($DY225)),$DX225,$DX$2&ROW($DX225)),$DW225,$DW$2&ROW($DW225)),$DV225,$DV$2&ROW($DV225)),$DU225,$DU$2&ROW($DU225)),$DT225,$DT$2&ROW($DT225)),$DS225,$DS$2&ROW($DS225)))","v":0},{"$f":"IF(U225=\"\",0,\"X=\"&SUBSTITUTE(SUBSTITUTE(SUBSTITUTE(SUBSTITUTE(SUBSTITUTE(SUBSTITUTE(SUBSTITUTE(SUBSTITUTE(SUBSTITUTE(SUBSTITUTE(SUBSTITUTE(SUBSTITUTE(U225,$ED225,$ED$2&ROW($ED225)),$EC225,$EC$2&ROW($EC225)),$EB225,$EB$2&ROW($EB225)),$EA225,$EA$2&ROW($EA225)),$DZ225,$DZ$2&ROW($DZ225)),$DY225,$DY$2&ROW($DY225)),$DX225,$DX$2&ROW($DX225)),$DW225,$DW$2&ROW($DW225)),$DV225,$DV$2&ROW($DV225)),$DU225,$DU$2&ROW($DU225)),$DT225,$DT$2&ROW($DT225)),$DS225,$DS$2&ROW($DS225)))","v":"X=if(AW225=6,0.678,if(AW225=0,0.026,0))"},{"$f":"IF(V225=\"\",0,\"X=\"&SUBSTITUTE(SUBSTITUTE(SUBSTITUTE(SUBSTITUTE(SUBSTITUTE(SUBSTITUTE(SUBSTITUTE(SUBSTITUTE(SUBSTITUTE(SUBSTITUTE(SUBSTITUTE(SUBSTITUTE(V225,$ED225,$ED$2&ROW($ED225)),$EC225,$EC$2&ROW($EC225)),$EB225,$EB$2&ROW($EB225)),$EA225,$EA$2&ROW($EA225)),$DZ225,$DZ$2&ROW($DZ225)),$DY225,$DY$2&ROW($DY225)),$DX225,$DX$2&ROW($DX225)),$DW225,$DW$2&ROW($DW225)),$DV225,$DV$2&ROW($DV225)),$DU225,$DU$2&ROW($DU225)),$DT225,$DT$2&ROW($DT225)),$DS225,$DS$2&ROW($DS225)))","v":"X=if(AW225=6,0.053,if(AW225=0,0.053,0.053))"},{"$f":"IF(W225=\"\",0,\"X=\"&SUBSTITUTE(SUBSTITUTE(SUBSTITUTE(SUBSTITUTE(SUBSTITUTE(SUBSTITUTE(SUBSTITUTE(SUBSTITUTE(SUBSTITUTE(SUBSTITUTE(SUBSTITUTE(SUBSTITUTE(W225,$ED225,$ED$2&ROW($ED225)),$EC225,$EC$2&ROW($EC225)),$EB225,$EB$2&ROW($EB225)),$EA225,$EA$2&ROW($EA225)),$DZ225,$DZ$2&ROW($DZ225)),$DY225,$DY$2&ROW($DY225)),$DX225,$DX$2&ROW($DX225)),$DW225,$DW$2&ROW($DW225)),$DV225,$DV$2&ROW($DV225)),$DU225,$DU$2&ROW($DU225)),$DT225,$DT$2&ROW($DT225)),$DS225,$DS$2&ROW($DS225)))","v":"X=if(AW225=1,12.663,if(AW225=0,1.140,0))*10"},{"$f":"IF(X225=\"\",0,\"X=\"&SUBSTITUTE(SUBSTITUTE(SUBSTITUTE(SUBSTITUTE(SUBSTITUTE(SUBSTITUTE(SUBSTITUTE(SUBSTITUTE(SUBSTITUTE(SUBSTITUTE(SUBSTITUTE(SUBSTITUTE(X225,$ED225,$ED$2&ROW($ED225)),$EC225,$EC$2&ROW($EC225)),$EB225,$EB$2&ROW($EB225)),$EA225,$EA$2&ROW($EA225)),$DZ225,$DZ$2&ROW($DZ225)),$DY225,$DY$2&ROW($DY225)),$DX225,$DX$2&ROW($DX225)),$DW225,$DW$2&ROW($DW225)),$DV225,$DV$2&ROW($DV225)),$DU225,$DU$2&ROW($DU225)),$DT225,$DT$2&ROW($DT225)),$DS225,$DS$2&ROW($DS225)))","v":"X=if(AW225=2,12.663,if(AW225=0,1.659,0))"},{"$f":"IF(Y225=\"\",0,\"X=\"&SUBSTITUTE(SUBSTITUTE(SUBSTITUTE(SUBSTITUTE(SUBSTITUTE(SUBSTITUTE(SUBSTITUTE(SUBSTITUTE(SUBSTITUTE(SUBSTITUTE(SUBSTITUTE(SUBSTITUTE(Y225,$ED225,$ED$2&ROW($ED225)),$EC225,$EC$2&ROW($EC225)),$EB225,$EB$2&ROW($EB225)),$EA225,$EA$2&ROW($EA225)),$DZ225,$DZ$2&ROW($DZ225)),$DY225,$DY$2&ROW($DY225)),$DX225,$DX$2&ROW($DX225)),$DW225,$DW$2&ROW($DW225)),$DV225,$DV$2&ROW($DV225)),$DU225,$DU$2&ROW($DU225)),$DT225,$DT$2&ROW($DT225)),$DS225,$DS$2&ROW($DS225)))","v":"X=if(AW225=3,12.663,if(AW225 = 0,8.661,0))"},{"$f":"IF(Z225=\"\",0,\"X=\"&SUBSTITUTE(SUBSTITUTE(SUBSTITUTE(SUBSTITUTE(SUBSTITUTE(SUBSTITUTE(SUBSTITUTE(SUBSTITUTE(SUBSTITUTE(SUBSTITUTE(SUBSTITUTE(SUBSTITUTE(Z225,$ED225,$ED$2&ROW($ED225)),$EC225,$EC$2&ROW($EC225)),$EB225,$EB$2&ROW($EB225)),$EA225,$EA$2&ROW($EA225)),$DZ225,$DZ$2&ROW($DZ225)),$DY225,$DY$2&ROW($DY225)),$DX225,$DX$2&ROW($DX225)),$DW225,$DW$2&ROW($DW225)),$DV225,$DV$2&ROW($DV225)),$DU225,$DU$2&ROW($DU225)),$DT225,$DT$2&ROW($DT225)),$DS225,$DS$2&ROW($DS225)))","v":"X=if(AW225=4,12.663,if(AW225 = 0,0.177,0))"},{"$f":"IF(AA225=\"\",0,\"X=\"&SUBSTITUTE(SUBSTITUTE(SUBSTITUTE(SUBSTITUTE(SUBSTITUTE(SUBSTITUTE(SUBSTITUTE(SUBSTITUTE(SUBSTITUTE(SUBSTITUTE(SUBSTITUTE(SUBSTITUTE(AA225,$ED225,$ED$2&ROW($ED225)),$EC225,$EC$2&ROW($EC225)),$EB225,$EB$2&ROW($EB225)),$EA225,$EA$2&ROW($EA225)),$DZ225,$DZ$2&ROW($DZ225)),$DY225,$DY$2&ROW($DY225)),$DX225,$DX$2&ROW($DX225)),$DW225,$DW$2&ROW($DW225)),$DV225,$DV$2&ROW($DV225)),$DU225,$DU$2&ROW($DU225)),$DT225,$DT$2&ROW($DT225)),$DS225,$DS$2&ROW($DS225)))","v":"X=if(AW225=5,12.663,if(AW225 = 0,0.545,0))"},{"$f":"IF(AB225=\"\",0,\"X=\"&SUBSTITUTE(SUBSTITUTE(SUBSTITUTE(SUBSTITUTE(SUBSTITUTE(SUBSTITUTE(SUBSTITUTE(SUBSTITUTE(SUBSTITUTE(SUBSTITUTE(SUBSTITUTE(SUBSTITUTE(AB225,$ED225,$ED$2&ROW($ED225)),$EC225,$EC$2&ROW($EC225)),$EB225,$EB$2&ROW($EB225)),$EA225,$EA$2&ROW($EA225)),$DZ225,$DZ$2&ROW($DZ225)),$DY225,$DY$2&ROW($DY225)),$DX225,$DX$2&ROW($DX225)),$DW225,$DW$2&ROW($DW225)),$DV225,$DV$2&ROW($DV225)),$DU225,$DU$2&ROW($DU225)),$DT225,$DT$2&ROW($DT225)),$DS225,$DS$2&ROW($DS225)))","v":"X=0"},null,null,"{Factor:WinterCF}","{Factor:SummerCF}",{"$f":"IFERROR(INDEX($EG225:$IV225,MATCH(0,COUNTIF($DR225:DT225,$EG225:$IV225),0)),\"\")","v":"{Cost}"},{"$f":"IFERROR(INDEX($EG225:$IV225,MATCH(0,COUNTIF($DR225:DU225,$EG225:$IV225),0)),\"\")","v":"{Measure:Quantity}"},{"$f":"IFERROR(INDEX($EG225:$IV225,MATCH(0,COUNTIF($DR225:DV225,$EG225:$IV225),0)),\"\")","v":"{Primary heating type}"},{"$f":"IFERROR(INDEX($EG225:$IV225,MATCH(0,COUNTIF($DR225:DW225,$EG225:$IV225),0)),\"\")","v":""},{"$f":"IFERROR(INDEX($EG225:$IV225,MATCH(0,COUNTIF($DR225:DX225,$EG225:$IV225),0)),\"\")","v":""},{"$f":"IFERROR(INDEX($EG225:$IV225,MATCH(0,COUNTIF($DR225:DY225,$EG225:$IV225),0)),\"\")","v":""},{"$f":"IFERROR(INDEX($EG225:$IV225,MATCH(0,COUNTIF($DR225:DZ225,$EG225:$IV225),0)),\"\")","v":""},{"$f":"IFERROR(INDEX($EG225:$IV225,MATCH(0,COUNTIF($DR225:EA225,$EG225:$IV225),0)),\"\")","v":""},{"$f":"IFERROR(INDEX($EG225:$IV225,MATCH(0,COUNTIF($DR225:EB225,$EG225:$IV225),0)),\"\")","v":""},{"$f":"IFERROR(INDEX($EG225:$IV225,MATCH(0,COUNTIF($DR225:EC225,$EG225:$IV225),0)),\"\")","v":""},null,null,{"$f":"IFERROR(MID($G225,FIND(CHAR(160),SUBSTITUTE($G225,\"{\",CHAR(160),EG$1)),FIND(CHAR(160),SUBSTITUTE($G225,\"}\",CHAR(160),EG$1))-FIND(CHAR(160),SUBSTITUTE($G225,\"{\",CHAR(160),EG$1))+1),\"\")","v":"{Cost}"},{"$f":"IFERROR(MID($G225,FIND(CHAR(160),SUBSTITUTE($G225,\"{\",CHAR(160),EH$1)),FIND(CHAR(160),SUBSTITUTE($G225,\"}\",CHAR(160),EH$1))-FIND(CHAR(160),SUBSTITUTE($G225,\"{\",CHAR(160),EH$1))+1),\"\")","v":"{Measure:Quantity}"},{"$f":"IFERROR(MID($G225,FIND(CHAR(160),SUBSTITUTE($G225,\"{\",CHAR(160),EI$1)),FIND(CHAR(160),SUBSTITUTE($G225,\"}\",CHAR(160),EI$1))-FIND(CHAR(160),SUBSTITUTE($G225,\"{\",CHAR(160),EI$1))+1),\"\")","v":""},{"$f":"IFERROR(MID($G225,FIND(CHAR(160),SUBSTITUTE($G225,\"{\",CHAR(160),EJ$1)),FIND(CHAR(160),SUBSTITUTE($G225,\"}\",CHAR(160),EJ$1))-FIND(CHAR(160),SUBSTITUTE($G225,\"{\",CHAR(160),EJ$1))+1),\"\")","v":""},{"$f":"IFERROR(MID($G225,FIND(CHAR(160),SUBSTITUTE($G225,\"{\",CHAR(160),EK$1)),FIND(CHAR(160),SUBSTITUTE($G225,\"}\",CHAR(160),EK$1))-FIND(CHAR(160),SUBSTITUTE($G225,\"{\",CHAR(160),EK$1))+1),\"\")","v":""},{"$f":"IFERROR(MID($G225,FIND(CHAR(160),SUBSTITUTE($G225,\"{\",CHAR(160),EL$1)),FIND(CHAR(160),SUBSTITUTE($G225,\"}\",CHAR(160),EL$1))-FIND(CHAR(160),SUBSTITUTE($G225,\"{\",CHAR(160),EL$1))+1),\"\")","v":""},{"$f":"IFERROR(MID($G225,FIND(CHAR(160),SUBSTITUTE($G225,\"{\",CHAR(160),EM$1)),FIND(CHAR(160),SUBSTITUTE($G225,\"}\",CHAR(160),EM$1))-FIND(CHAR(160),SUBSTITUTE($G225,\"{\",CHAR(160),EM$1))+1),\"\")","v":""},{"$f":"IFERROR(MID($G225,FIND(CHAR(160),SUBSTITUTE($G225,\"{\",CHAR(160),EN$1)),FIND(CHAR(160),SUBSTITUTE($G225,\"}\",CHAR(160),EN$1))-FIND(CHAR(160),SUBSTITUTE($G225,\"{\",CHAR(160),EN$1))+1),\"\")","v":""},{"$f":"IFERROR(MID($G225,FIND(CHAR(160),SUBSTITUTE($G225,\"{\",CHAR(160),EO$1)),FIND(CHAR(160),SUBSTITUTE($G225,\"}\",CHAR(160),EO$1))-FIND(CHAR(160),SUBSTITUTE($G225,\"{\",CHAR(160),EO$1))+1),\"\")","v":""},{"$f":"IFERROR(MID($G225,FIND(CHAR(160),SUBSTITUTE($G225,\"{\",CHAR(160),EP$1)),FIND(CHAR(160),SUBSTITUTE($G225,\"}\",CHAR(160),EP$1))-FIND(CHAR(160),SUBSTITUTE($G225,\"{\",CHAR(160),EP$1))+1),\"\")","v":""},{"$f":"IFERROR(MID($J225,FIND(CHAR(160),SUBSTITUTE($J225,\"{\",CHAR(160),EQ$1)),FIND(CHAR(160),SUBSTITUTE($J225,\"}\",CHAR(160),EQ$1))-FIND(CHAR(160),SUBSTITUTE($J225,\"{\",CHAR(160),EQ$1))+1),\"\")","v":"{Cost}"},{"$f":"IFERROR(MID($J225,FIND(CHAR(160),SUBSTITUTE($J225,\"{\",CHAR(160),ER$1)),FIND(CHAR(160),SUBSTITUTE($J225,\"}\",CHAR(160),ER$1))-FIND(CHAR(160),SUBSTITUTE($J225,\"{\",CHAR(160),ER$1))+1),\"\")","v":"{Cost}"},{"$f":"IFERROR(MID($J225,FIND(CHAR(160),SUBSTITUTE($J225,\"{\",CHAR(160),ES$1)),FIND(CHAR(160),SUBSTITUTE($J225,\"}\",CHAR(160),ES$1))-FIND(CHAR(160),SUBSTITUTE($J225,\"{\",CHAR(160),ES$1))+1),\"\")","v":"{Measure:Quantity}"},{"$f":"IFERROR(MID($J225,FIND(CHAR(160),SUBSTITUTE($J225,\"{\",CHAR(160),ET$1)),FIND(CHAR(160),SUBSTITUTE($J225,\"}\",CHAR(160),ET$1))-FIND(CHAR(160),SUBSTITUTE($J225,\"{\",CHAR(160),ET$1))+1),\"\")","v":""},{"$f":"IFERROR(MID($J225,FIND(CHAR(160),SUBSTITUTE($J225,\"{\",CHAR(160),EU$1)),FIND(CHAR(160),SUBSTITUTE($J225,\"}\",CHAR(160),EU$1))-FIND(CHAR(160),SUBSTITUTE($J225,\"{\",CHAR(160),EU$1))+1),\"\")","v":""},{"$f":"IFERROR(MID($J225,FIND(CHAR(160),SUBSTITUTE($J225,\"{\",CHAR(160),EV$1)),FIND(CHAR(160),SUBSTITUTE($J225,\"}\",CHAR(160),EV$1))-FIND(CHAR(160),SUBSTITUTE($J225,\"{\",CHAR(160),EV$1))+1),\"\")","v":""},{"$f":"IFERROR(MID($J225,FIND(CHAR(160),SUBSTITUTE($J225,\"{\",CHAR(160),EW$1)),FIND(CHAR(160),SUBSTITUTE($J225,\"}\",CHAR(160),EW$1))-FIND(CHAR(160),SUBSTITUTE($J225,\"{\",CHAR(160),EW$1))+1),\"\")","v":""},{"$f":"IFERROR(MID($J225,FIND(CHAR(160),SUBSTITUTE($J225,\"{\",CHAR(160),EX$1)),FIND(CHAR(160),SUBSTITUTE($J225,\"}\",CHAR(160),EX$1))-FIND(CHAR(160),SUBSTITUTE($J225,\"{\",CHAR(160),EX$1))+1),\"\")","v":""},{"$f":"IFERROR(MID($J225,FIND(CHAR(160),SUBSTITUTE($J225,\"{\",CHAR(160),EY$1)),FIND(CHAR(160),SUBSTITUTE($J225,\"}\",CHAR(160),EY$1))-FIND(CHAR(160),SUBSTITUTE($J225,\"{\",CHAR(160),EY$1))+1),\"\")","v":""},{"$f":"IFERROR(MID($J225,FIND(CHAR(160),SUBSTITUTE($J225,\"{\",CHAR(160),EZ$1)),FIND(CHAR(160),SUBSTITUTE($J225,\"}\",CHAR(160),EZ$1))-FIND(CHAR(160),SUBSTITUTE($J225,\"{\",CHAR(160),EZ$1))+1),\"\")","v":""},{"$f":"IFERROR(MID($J225,FIND(CHAR(160),SUBSTITUTE($J225,\"{\",CHAR(160),FA$1)),FIND(CHAR(160),SUBSTITUTE($J225,\"}\",CHAR(160),FA$1))-FIND(CHAR(160),SUBSTITUTE($J225,\"{\",CHAR(160),FA$1))+1),\"\")","v":"{Cost}"},{"$f":"IFERROR(MID($J225,FIND(CHAR(160),SUBSTITUTE($J225,\"{\",CHAR(160),FB$1)),FIND(CHAR(160),SUBSTITUTE($J225,\"}\",CHAR(160),FB$1))-FIND(CHAR(160),SUBSTITUTE($J225,\"{\",CHAR(160),FB$1))+1),\"\")","v":"{Cost}"},{"$f":"IFERROR(MID($O225,FIND(CHAR(160),SUBSTITUTE($O225,\"{\",CHAR(160),FC$1)),FIND(CHAR(160),SUBSTITUTE($O225,\"}\",CHAR(160),FC$1))-FIND(CHAR(160),SUBSTITUTE($O225,\"{\",CHAR(160),FC$1))+1),\"\")","v":""},{"$f":"IFERROR(MID($O225,FIND(CHAR(160),SUBSTITUTE($O225,\"{\",CHAR(160),FD$1)),FIND(CHAR(160),SUBSTITUTE($O225,\"}\",CHAR(160),FD$1))-FIND(CHAR(160),SUBSTITUTE($O225,\"{\",CHAR(160),FD$1))+1),\"\")","v":""},{"$f":"IFERROR(MID($O225,FIND(CHAR(160),SUBSTITUTE($O225,\"{\",CHAR(160),FE$1)),FIND(CHAR(160),SUBSTITUTE($O225,\"}\",CHAR(160),FE$1))-FIND(CHAR(160),SUBSTITUTE($O225,\"{\",CHAR(160),FE$1))+1),\"\")","v":""},{"$f":"IFERROR(MID($O225,FIND(CHAR(160),SUBSTITUTE($O225,\"{\",CHAR(160),FF$1)),FIND(CHAR(160),SUBSTITUTE($O225,\"}\",CHAR(160),FF$1))-FIND(CHAR(160),SUBSTITUTE($O225,\"{\",CHAR(160),FF$1))+1),\"\")","v":""},{"$f":"IFERROR(MID($O225,FIND(CHAR(160),SUBSTITUTE($O225,\"{\",CHAR(160),FG$1)),FIND(CHAR(160),SUBSTITUTE($O225,\"}\",CHAR(160),FG$1))-FIND(CHAR(160),SUBSTITUTE($O225,\"{\",CHAR(160),FG$1))+1),\"\")","v":""},{"$f":"IFERROR(MID($O225,FIND(CHAR(160),SUBSTITUTE($O225,\"{\",CHAR(160),FH$1)),FIND(CHAR(160),SUBSTITUTE($O225,\"}\",CHAR(160),FH$1))-FIND(CHAR(160),SUBSTITUTE($O225,\"{\",CHAR(160),FH$1))+1),\"\")","v":""},{"$f":"IFERROR(MID($O225,FIND(CHAR(160),SUBSTITUTE($O225,\"{\",CHAR(160),FI$1)),FIND(CHAR(160),SUBSTITUTE($O225,\"}\",CHAR(160),FI$1))-FIND(CHAR(160),SUBSTITUTE($O225,\"{\",CHAR(160),FI$1))+1),\"\")","v":""},{"$f":"IFERROR(MID($O225,FIND(CHAR(160),SUBSTITUTE($O225,\"{\",CHAR(160),FJ$1)),FIND(CHAR(160),SUBSTITUTE($O225,\"}\",CHAR(160),FJ$1))-FIND(CHAR(160),SUBSTITUTE($O225,\"{\",CHAR(160),FJ$1))+1),\"\")","v":""},{"$f":"IFERROR(MID($O225,FIND(CHAR(160),SUBSTITUTE($O225,\"{\",CHAR(160),FK$1)),FIND(CHAR(160),SUBSTITUTE($O225,\"}\",CHAR(160),FK$1))-FIND(CHAR(160),SUBSTITUTE($O225,\"{\",CHAR(160),FK$1))+1),\"\")","v":"{Primary heating type}"},{"$f":"IFERROR(MID($O225,FIND(CHAR(160),SUBSTITUTE($O225,\"{\",CHAR(160),FL$1)),FIND(CHAR(160),SUBSTITUTE($O225,\"}\",CHAR(160),FL$1))-FIND(CHAR(160),SUBSTITUTE($O225,\"{\",CHAR(160),FL$1))+1),\"\")","v":"{Primary heating type}"},{"$f":"IFERROR(MID($R225,FIND(CHAR(160),SUBSTITUTE($R225,\"{\",CHAR(160),FM$1)),FIND(CHAR(160),SUBSTITUTE($R225,\"}\",CHAR(160),FM$1))-FIND(CHAR(160),SUBSTITUTE($R225,\"{\",CHAR(160),FM$1))+1),\"\")","v":""},{"$f":"IFERROR(MID($R225,FIND(CHAR(160),SUBSTITUTE($R225,\"{\",CHAR(160),FN$1)),FIND(CHAR(160),SUBSTITUTE($R225,\"}\",CHAR(160),FN$1))-FIND(CHAR(160),SUBSTITUTE($R225,\"{\",CHAR(160),FN$1))+1),\"\")","v":""},{"$f":"IFERROR(MID($R225,FIND(CHAR(160),SUBSTITUTE($R225,\"{\",CHAR(160),FO$1)),FIND(CHAR(160),SUBSTITUTE($R225,\"}\",CHAR(160),FO$1))-FIND(CHAR(160),SUBSTITUTE($R225,\"{\",CHAR(160),FO$1))+1),\"\")","v":""},{"$f":"IFERROR(MID($R225,FIND(CHAR(160),SUBSTITUTE($R225,\"{\",CHAR(160),FP$1)),FIND(CHAR(160),SUBSTITUTE($R225,\"}\",CHAR(160),FP$1))-FIND(CHAR(160),SUBSTITUTE($R225,\"{\",CHAR(160),FP$1))+1),\"\")","v":""},{"$f":"IFERROR(MID($R225,FIND(CHAR(160),SUBSTITUTE($R225,\"{\",CHAR(160),FQ$1)),FIND(CHAR(160),SUBSTITUTE($R225,\"}\",CHAR(160),FQ$1))-FIND(CHAR(160),SUBSTITUTE($R225,\"{\",CHAR(160),FQ$1))+1),\"\")","v":""},{"$f":"IFERROR(MID($R225,FIND(CHAR(160),SUBSTITUTE($R225,\"{\",CHAR(160),FR$1)),FIND(CHAR(160),SUBSTITUTE($R225,\"}\",CHAR(160),FR$1))-FIND(CHAR(160),SUBSTITUTE($R225,\"{\",CHAR(160),FR$1))+1),\"\")","v":""},{"$f":"IFERROR(MID($R225,FIND(CHAR(160),SUBSTITUTE($R225,\"{\",CHAR(160),FS$1)),FIND(CHAR(160),SUBSTITUTE($R225,\"}\",CHAR(160),FS$1))-FIND(CHAR(160),SUBSTITUTE($R225,\"{\",CHAR(160),FS$1))+1),\"\")","v":""},{"$f":"IFERROR(MID($R225,FIND(CHAR(160),SUBSTITUTE($R225,\"{\",CHAR(160),FT$1)),FIND(CHAR(160),SUBSTITUTE($R225,\"}\",CHAR(160),FT$1))-FIND(CHAR(160),SUBSTITUTE($R225,\"{\",CHAR(160),FT$1))+1),\"\")","v":""},{"$f":"IFERROR(MID($R225,FIND(CHAR(160),SUBSTITUTE($R225,\"{\",CHAR(160),FU$1)),FIND(CHAR(160),SUBSTITUTE($R225,\"}\",CHAR(160),FU$1))-FIND(CHAR(160),SUBSTITUTE($R225,\"{\",CHAR(160),FU$1))+1),\"\")","v":"{Primary heating type}"},{"$f":"IFERROR(MID($R225,FIND(CHAR(160),SUBSTITUTE($R225,\"{\",CHAR(160),FV$1)),FIND(CHAR(160),SUBSTITUTE($R225,\"}\",CHAR(160),FV$1))-FIND(CHAR(160),SUBSTITUTE($R225,\"{\",CHAR(160),FV$1))+1),\"\")","v":"{Primary heating type}"},{"$f":"IFERROR(MID($U225,FIND(CHAR(160),SUBSTITUTE($U225,\"{\",CHAR(160),FW$1)),FIND(CHAR(160),SUBSTITUTE($U225,\"}\",CHAR(160),FW$1))-FIND(CHAR(160),SUBSTITUTE($U225,\"{\",CHAR(160),FW$1))+1),\"\")","v":""},{"$f":"IFERROR(MID($U225,FIND(CHAR(160),SUBSTITUTE($U225,\"{\",CHAR(160),FX$1)),FIND(CHAR(160),SUBSTITUTE($U225,\"}\",CHAR(160),FX$1))-FIND(CHAR(160),SUBSTITUTE($U225,\"{\",CHAR(160),FX$1))+1),\"\")","v":""},{"$f":"IFERROR(MID($U225,FIND(CHAR(160),SUBSTITUTE($U225,\"{\",CHAR(160),FY$1)),FIND(CHAR(160),SUBSTITUTE($U225,\"}\",CHAR(160),FY$1))-FIND(CHAR(160),SUBSTITUTE($U225,\"{\",CHAR(160),FY$1))+1),\"\")","v":""},{"$f":"IFERROR(MID($U225,FIND(CHAR(160),SUBSTITUTE($U225,\"{\",CHAR(160),FZ$1)),FIND(CHAR(160),SUBSTITUTE($U225,\"}\",CHAR(160),FZ$1))-FIND(CHAR(160),SUBSTITUTE($U225,\"{\",CHAR(160),FZ$1))+1),\"\")","v":""},{"$f":"IFERROR(MID($U225,FIND(CHAR(160),SUBSTITUTE($U225,\"{\",CHAR(160),GA$1)),FIND(CHAR(160),SUBSTITUTE($U225,\"}\",CHAR(160),GA$1))-FIND(CHAR(160),SUBSTITUTE($U225,\"{\",CHAR(160),GA$1))+1),\"\")","v":""},{"$f":"IFERROR(MID($U225,FIND(CHAR(160),SUBSTITUTE($U225,\"{\",CHAR(160),GB$1)),FIND(CHAR(160),SUBSTITUTE($U225,\"}\",CHAR(160),GB$1))-FIND(CHAR(160),SUBSTITUTE($U225,\"{\",CHAR(160),GB$1))+1),\"\")","v":""},{"$f":"IFERROR(MID($U225,FIND(CHAR(160),SUBSTITUTE($U225,\"{\",CHAR(160),GC$1)),FIND(CHAR(160),SUBSTITUTE($U225,\"}\",CHAR(160),GC$1))-FIND(CHAR(160),SUBSTITUTE($U225,\"{\",CHAR(160),GC$1))+1),\"\")","v":""},{"$f":"IFERROR(MID($U225,FIND(CHAR(160),SUBSTITUTE($U225,\"{\",CHAR(160),GD$1)),FIND(CHAR(160),SUBSTITUTE($U225,\"}\",CHAR(160),GD$1))-FIND(CHAR(160),SUBSTITUTE($U225,\"{\",CHAR(160),GD$1))+1),\"\")","v":""},{"$f":"IFERROR(MID($U225,FIND(CHAR(160),SUBSTITUTE($U225,\"{\",CHAR(160),GE$1)),FIND(CHAR(160),SUBSTITUTE($U225,\"}\",CHAR(160),GE$1))-FIND(CHAR(160),SUBSTITUTE($U225,\"{\",CHAR(160),GE$1))+1),\"\")","v":"{Primary heating type}"},{"$f":"IFERROR(MID($U225,FIND(CHAR(160),SUBSTITUTE($U225,\"{\",CHAR(160),GF$1)),FIND(CHAR(160),SUBSTITUTE($U225,\"}\",CHAR(160),GF$1))-FIND(CHAR(160),SUBSTITUTE($U225,\"{\",CHAR(160),GF$1))+1),\"\")","v":"{Primary heating type}"},{"$f":"IFERROR(MID($V225,FIND(CHAR(160),SUBSTITUTE($V225,\"{\",CHAR(160),GG$1)),FIND(CHAR(160),SUBSTITUTE($V225,\"}\",CHAR(160),GG$1))-FIND(CHAR(160),SUBSTITUTE($V225,\"{\",CHAR(160),GG$1))+1),\"\")","v":""},{"$f":"IFERROR(MID($V225,FIND(CHAR(160),SUBSTITUTE($V225,\"{\",CHAR(160),GH$1)),FIND(CHAR(160),SUBSTITUTE($V225,\"}\",CHAR(160),GH$1))-FIND(CHAR(160),SUBSTITUTE($V225,\"{\",CHAR(160),GH$1))+1),\"\")","v":""},{"$f":"IFERROR(MID($V225,FIND(CHAR(160),SUBSTITUTE($V225,\"{\",CHAR(160),GI$1)),FIND(CHAR(160),SUBSTITUTE($V225,\"}\",CHAR(160),GI$1))-FIND(CHAR(160),SUBSTITUTE($V225,\"{\",CHAR(160),GI$1))+1),\"\")","v":""},{"$f":"IFERROR(MID($V225,FIND(CHAR(160),SUBSTITUTE($V225,\"{\",CHAR(160),GJ$1)),FIND(CHAR(160),SUBSTITUTE($V225,\"}\",CHAR(160),GJ$1))-FIND(CHAR(160),SUBSTITUTE($V225,\"{\",CHAR(160),GJ$1))+1),\"\")","v":""},{"$f":"IFERROR(MID($V225,FIND(CHAR(160),SUBSTITUTE($V225,\"{\",CHAR(160),GK$1)),FIND(CHAR(160),SUBSTITUTE($V225,\"}\",CHAR(160),GK$1))-FIND(CHAR(160),SUBSTITUTE($V225,\"{\",CHAR(160),GK$1))+1),\"\")","v":""},{"$f":"IFERROR(MID($V225,FIND(CHAR(160),SUBSTITUTE($V225,\"{\",CHAR(160),GL$1)),FIND(CHAR(160),SUBSTITUTE($V225,\"}\",CHAR(160),GL$1))-FIND(CHAR(160),SUBSTITUTE($V225,\"{\",CHAR(160),GL$1))+1),\"\")","v":""},{"$f":"IFERROR(MID($V225,FIND(CHAR(160),SUBSTITUTE($V225,\"{\",CHAR(160),GM$1)),FIND(CHAR(160),SUBSTITUTE($V225,\"}\",CHAR(160),GM$1))-FIND(CHAR(160),SUBSTITUTE($V225,\"{\",CHAR(160),GM$1))+1),\"\")","v":""},{"$f":"IFERROR(MID($V225,FIND(CHAR(160),SUBSTITUTE($V225,\"{\",CHAR(160),GN$1)),FIND(CHAR(160),SUBSTITUTE($V225,\"}\",CHAR(160),GN$1))-FIND(CHAR(160),SUBSTITUTE($V225,\"{\",CHAR(160),GN$1))+1),\"\")","v":""},{"$f":"IFERROR(MID($V225,FIND(CHAR(160),SUBSTITUTE($V225,\"{\",CHAR(160),GO$1)),FIND(CHAR(160),SUBSTITUTE($V225,\"}\",CHAR(160),GO$1))-FIND(CHAR(160),SUBSTITUTE($V225,\"{\",CHAR(160),GO$1))+1),\"\")","v":"{Primary heating type}"},{"$f":"IFERROR(MID($V225,FIND(CHAR(160),SUBSTITUTE($V225,\"{\",CHAR(160),GP$1)),FIND(CHAR(160),SUBSTITUTE($V225,\"}\",CHAR(160),GP$1))-FIND(CHAR(160),SUBSTITUTE($V225,\"{\",CHAR(160),GP$1))+1),\"\")","v":"{Primary heating type}"},{"$f":"IFERROR(MID($W225,FIND(CHAR(160),SUBSTITUTE($W225,\"{\",CHAR(160),GQ$1)),FIND(CHAR(160),SUBSTITUTE($W225,\"}\",CHAR(160),GQ$1))-FIND(CHAR(160),SUBSTITUTE($W225,\"{\",CHAR(160),GQ$1))+1),\"\")","v":""},{"$f":"IFERROR(MID($W225,FIND(CHAR(160),SUBSTITUTE($W225,\"{\",CHAR(160),GR$1)),FIND(CHAR(160),SUBSTITUTE($W225,\"}\",CHAR(160),GR$1))-FIND(CHAR(160),SUBSTITUTE($W225,\"{\",CHAR(160),GR$1))+1),\"\")","v":""},{"$f":"IFERROR(MID($W225,FIND(CHAR(160),SUBSTITUTE($W225,\"{\",CHAR(160),GS$1)),FIND(CHAR(160),SUBSTITUTE($W225,\"}\",CHAR(160),GS$1))-FIND(CHAR(160),SUBSTITUTE($W225,\"{\",CHAR(160),GS$1))+1),\"\")","v":""},{"$f":"IFERROR(MID($W225,FIND(CHAR(160),SUBSTITUTE($W225,\"{\",CHAR(160),GT$1)),FIND(CHAR(160),SUBSTITUTE($W225,\"}\",CHAR(160),GT$1))-FIND(CHAR(160),SUBSTITUTE($W225,\"{\",CHAR(160),GT$1))+1),\"\")","v":""},{"$f":"IFERROR(MID($W225,FIND(CHAR(160),SUBSTITUTE($W225,\"{\",CHAR(160),GU$1)),FIND(CHAR(160),SUBSTITUTE($W225,\"}\",CHAR(160),GU$1))-FIND(CHAR(160),SUBSTITUTE($W225,\"{\",CHAR(160),GU$1))+1),\"\")","v":""},{"$f":"IFERROR(MID($W225,FIND(CHAR(160),SUBSTITUTE($W225,\"{\",CHAR(160),GV$1)),FIND(CHAR(160),SUBSTITUTE($W225,\"}\",CHAR(160),GV$1))-FIND(CHAR(160),SUBSTITUTE($W225,\"{\",CHAR(160),GV$1))+1),\"\")","v":""},{"$f":"IFERROR(MID($W225,FIND(CHAR(160),SUBSTITUTE($W225,\"{\",CHAR(160),GW$1)),FIND(CHAR(160),SUBSTITUTE($W225,\"}\",CHAR(160),GW$1))-FIND(CHAR(160),SUBSTITUTE($W225,\"{\",CHAR(160),GW$1))+1),\"\")","v":""},{"$f":"IFERROR(MID($W225,FIND(CHAR(160),SUBSTITUTE($W225,\"{\",CHAR(160),GX$1)),FIND(CHAR(160),SUBSTITUTE($W225,\"}\",CHAR(160),GX$1))-FIND(CHAR(160),SUBSTITUTE($W225,\"{\",CHAR(160),GX$1))+1),\"\")","v":""},{"$f":"IFERROR(MID($W225,FIND(CHAR(160),SUBSTITUTE($W225,\"{\",CHAR(160),GY$1)),FIND(CHAR(160),SUBSTITUTE($W225,\"}\",CHAR(160),GY$1))-FIND(CHAR(160),SUBSTITUTE($W225,\"{\",CHAR(160),GY$1))+1),\"\")","v":"{Primary heating type}"},{"$f":"IFERROR(MID($W225,FIND(CHAR(160),SUBSTITUTE($W225,\"{\",CHAR(160),GZ$1)),FIND(CHAR(160),SUBSTITUTE($W225,\"}\",CHAR(160),GZ$1))-FIND(CHAR(160),SUBSTITUTE($W225,\"{\",CHAR(160),GZ$1))+1),\"\")","v":"{Primary heating type}"},{"$f":"IFERROR(MID($X225,FIND(CHAR(160),SUBSTITUTE($X225,\"{\",CHAR(160),HA$1)),FIND(CHAR(160),SUBSTITUTE($X225,\"}\",CHAR(160),HA$1))-FIND(CHAR(160),SUBSTITUTE($X225,\"{\",CHAR(160),HA$1))+1),\"\")","v":""},{"$f":"IFERROR(MID($X225,FIND(CHAR(160),SUBSTITUTE($X225,\"{\",CHAR(160),HB$1)),FIND(CHAR(160),SUBSTITUTE($X225,\"}\",CHAR(160),HB$1))-FIND(CHAR(160),SUBSTITUTE($X225,\"{\",CHAR(160),HB$1))+1),\"\")","v":""},{"$f":"IFERROR(MID($X225,FIND(CHAR(160),SUBSTITUTE($X225,\"{\",CHAR(160),HC$1)),FIND(CHAR(160),SUBSTITUTE($X225,\"}\",CHAR(160),HC$1))-FIND(CHAR(160),SUBSTITUTE($X225,\"{\",CHAR(160),HC$1))+1),\"\")","v":""},{"$f":"IFERROR(MID($X225,FIND(CHAR(160),SUBSTITUTE($X225,\"{\",CHAR(160),HD$1)),FIND(CHAR(160),SUBSTITUTE($X225,\"}\",CHAR(160),HD$1))-FIND(CHAR(160),SUBSTITUTE($X225,\"{\",CHAR(160),HD$1))+1),\"\")","v":""},{"$f":"IFERROR(MID($X225,FIND(CHAR(160),SUBSTITUTE($X225,\"{\",CHAR(160),HE$1)),FIND(CHAR(160),SUBSTITUTE($X225,\"}\",CHAR(160),HE$1))-FIND(CHAR(160),SUBSTITUTE($X225,\"{\",CHAR(160),HE$1))+1),\"\")","v":""},{"$f":"IFERROR(MID($X225,FIND(CHAR(160),SUBSTITUTE($X225,\"{\",CHAR(160),HF$1)),FIND(CHAR(160),SUBSTITUTE($X225,\"}\",CHAR(160),HF$1))-FIND(CHAR(160),SUBSTITUTE($X225,\"{\",CHAR(160),HF$1))+1),\"\")","v":""},{"$f":"IFERROR(MID($X225,FIND(CHAR(160),SUBSTITUTE($X225,\"{\",CHAR(160),HG$1)),FIND(CHAR(160),SUBSTITUTE($X225,\"}\",CHAR(160),HG$1))-FIND(CHAR(160),SUBSTITUTE($X225,\"{\",CHAR(160),HG$1))+1),\"\")","v":""},{"$f":"IFERROR(MID($X225,FIND(CHAR(160),SUBSTITUTE($X225,\"{\",CHAR(160),HH$1)),FIND(CHAR(160),SUBSTITUTE($X225,\"}\",CHAR(160),HH$1))-FIND(CHAR(160),SUBSTITUTE($X225,\"{\",CHAR(160),HH$1))+1),\"\")","v":""},{"$f":"IFERROR(MID($X225,FIND(CHAR(160),SUBSTITUTE($X225,\"{\",CHAR(160),HI$1)),FIND(CHAR(160),SUBSTITUTE($X225,\"}\",CHAR(160),HI$1))-FIND(CHAR(160),SUBSTITUTE($X225,\"{\",CHAR(160),HI$1))+1),\"\")","v":"{Primary heating type}"},{"$f":"IFERROR(MID($X225,FIND(CHAR(160),SUBSTITUTE($X225,\"{\",CHAR(160),HJ$1)),FIND(CHAR(160),SUBSTITUTE($X225,\"}\",CHAR(160),HJ$1))-FIND(CHAR(160),SUBSTITUTE($X225,\"{\",CHAR(160),HJ$1))+1),\"\")","v":"{Primary heating type}"},{"$f":"IFERROR(MID($Y225,FIND(CHAR(160),SUBSTITUTE($Y225,\"{\",CHAR(160),HK$1)),FIND(CHAR(160),SUBSTITUTE($Y225,\"}\",CHAR(160),HK$1))-FIND(CHAR(160),SUBSTITUTE($Y225,\"{\",CHAR(160),HK$1))+1),\"\")","v":""},{"$f":"IFERROR(MID($Y225,FIND(CHAR(160),SUBSTITUTE($Y225,\"{\",CHAR(160),HL$1)),FIND(CHAR(160),SUBSTITUTE($Y225,\"}\",CHAR(160),HL$1))-FIND(CHAR(160),SUBSTITUTE($Y225,\"{\",CHAR(160),HL$1))+1),\"\")","v":""},{"$f":"IFERROR(MID($Y225,FIND(CHAR(160),SUBSTITUTE($Y225,\"{\",CHAR(160),HM$1)),FIND(CHAR(160),SUBSTITUTE($Y225,\"}\",CHAR(160),HM$1))-FIND(CHAR(160),SUBSTITUTE($Y225,\"{\",CHAR(160),HM$1))+1),\"\")","v":""},{"$f":"IFERROR(MID($Y225,FIND(CHAR(160),SUBSTITUTE($Y225,\"{\",CHAR(160),HN$1)),FIND(CHAR(160),SUBSTITUTE($Y225,\"}\",CHAR(160),HN$1))-FIND(CHAR(160),SUBSTITUTE($Y225,\"{\",CHAR(160),HN$1))+1),\"\")","v":""},{"$f":"IFERROR(MID($Y225,FIND(CHAR(160),SUBSTITUTE($Y225,\"{\",CHAR(160),HO$1)),FIND(CHAR(160),SUBSTITUTE($Y225,\"}\",CHAR(160),HO$1))-FIND(CHAR(160),SUBSTITUTE($Y225,\"{\",CHAR(160),HO$1))+1),\"\")","v":""},{"$f":"IFERROR(MID($Y225,FIND(CHAR(160),SUBSTITUTE($Y225,\"{\",CHAR(160),HP$1)),FIND(CHAR(160),SUBSTITUTE($Y225,\"}\",CHAR(160),HP$1))-FIND(CHAR(160),SUBSTITUTE($Y225,\"{\",CHAR(160),HP$1))+1),\"\")","v":""},{"$f":"IFERROR(MID($Y225,FIND(CHAR(160),SUBSTITUTE($Y225,\"{\",CHAR(160),HQ$1)),FIND(CHAR(160),SUBSTITUTE($Y225,\"}\",CHAR(160),HQ$1))-FIND(CHAR(160),SUBSTITUTE($Y225,\"{\",CHAR(160),HQ$1))+1),\"\")","v":""},{"$f":"IFERROR(MID($Y225,FIND(CHAR(160),SUBSTITUTE($Y225,\"{\",CHAR(160),HR$1)),FIND(CHAR(160),SUBSTITUTE($Y225,\"}\",CHAR(160),HR$1))-FIND(CHAR(160),SUBSTITUTE($Y225,\"{\",CHAR(160),HR$1))+1),\"\")","v":""},{"$f":"IFERROR(MID($Y225,FIND(CHAR(160),SUBSTITUTE($Y225,\"{\",CHAR(160),HS$1)),FIND(CHAR(160),SUBSTITUTE($Y225,\"}\",CHAR(160),HS$1))-FIND(CHAR(160),SUBSTITUTE($Y225,\"{\",CHAR(160),HS$1))+1),\"\")","v":"{Primary heating type}"},{"$f":"IFERROR(MID($Y225,FIND(CHAR(160),SUBSTITUTE($Y225,\"{\",CHAR(160),HT$1)),FIND(CHAR(160),SUBSTITUTE($Y225,\"}\",CHAR(160),HT$1))-FIND(CHAR(160),SUBSTITUTE($Y225,\"{\",CHAR(160),HT$1))+1),\"\")","v":"{Primary heating type}"},{"$f":"IFERROR(MID($Z225,FIND(CHAR(160),SUBSTITUTE($Z225,\"{\",CHAR(160),HU$1)),FIND(CHAR(160),SUBSTITUTE($Z225,\"}\",CHAR(160),HU$1))-FIND(CHAR(160),SUBSTITUTE($Z225,\"{\",CHAR(160),HU$1))+1),\"\")","v":""},{"$f":"IFERROR(MID($Z225,FIND(CHAR(160),SUBSTITUTE($Z225,\"{\",CHAR(160),HV$1)),FIND(CHAR(160),SUBSTITUTE($Z225,\"}\",CHAR(160),HV$1))-FIND(CHAR(160),SUBSTITUTE($Z225,\"{\",CHAR(160),HV$1))+1),\"\")","v":""},{"$f":"IFERROR(MID($Z225,FIND(CHAR(160),SUBSTITUTE($Z225,\"{\",CHAR(160),HW$1)),FIND(CHAR(160),SUBSTITUTE($Z225,\"}\",CHAR(160),HW$1))-FIND(CHAR(160),SUBSTITUTE($Z225,\"{\",CHAR(160),HW$1))+1),\"\")","v":""},{"$f":"IFERROR(MID($Z225,FIND(CHAR(160),SUBSTITUTE($Z225,\"{\",CHAR(160),HX$1)),FIND(CHAR(160),SUBSTITUTE($Z225,\"}\",CHAR(160),HX$1))-FIND(CHAR(160),SUBSTITUTE($Z225,\"{\",CHAR(160),HX$1))+1),\"\")","v":""},{"$f":"IFERROR(MID($Z225,FIND(CHAR(160),SUBSTITUTE($Z225,\"{\",CHAR(160),HY$1)),FIND(CHAR(160),SUBSTITUTE($Z225,\"}\",CHAR(160),HY$1))-FIND(CHAR(160),SUBSTITUTE($Z225,\"{\",CHAR(160),HY$1))+1),\"\")","v":""},{"$f":"IFERROR(MID($Z225,FIND(CHAR(160),SUBSTITUTE($Z225,\"{\",CHAR(160),HZ$1)),FIND(CHAR(160),SUBSTITUTE($Z225,\"}\",CHAR(160),HZ$1))-FIND(CHAR(160),SUBSTITUTE($Z225,\"{\",CHAR(160),HZ$1))+1),\"\")","v":""},{"$f":"IFERROR(MID($Z225,FIND(CHAR(160),SUBSTITUTE($Z225,\"{\",CHAR(160),IA$1)),FIND(CHAR(160),SUBSTITUTE($Z225,\"}\",CHAR(160),IA$1))-FIND(CHAR(160),SUBSTITUTE($Z225,\"{\",CHAR(160),IA$1))+1),\"\")","v":""},{"$f":"IFERROR(MID($Z225,FIND(CHAR(160),SUBSTITUTE($Z225,\"{\",CHAR(160),IB$1)),FIND(CHAR(160),SUBSTITUTE($Z225,\"}\",CHAR(160),IB$1))-FIND(CHAR(160),SUBSTITUTE($Z225,\"{\",CHAR(160),IB$1))+1),\"\")","v":""},{"$f":"IFERROR(MID($Z225,FIND(CHAR(160),SUBSTITUTE($Z225,\"{\",CHAR(160),IC$1)),FIND(CHAR(160),SUBSTITUTE($Z225,\"}\",CHAR(160),IC$1))-FIND(CHAR(160),SUBSTITUTE($Z225,\"{\",CHAR(160),IC$1))+1),\"\")","v":"{Primary heating type}"},{"$f":"IFERROR(MID($Z225,FIND(CHAR(160),SUBSTITUTE($Z225,\"{\",CHAR(160),ID$1)),FIND(CHAR(160),SUBSTITUTE($Z225,\"}\",CHAR(160),ID$1))-FIND(CHAR(160),SUBSTITUTE($Z225,\"{\",CHAR(160),ID$1))+1),\"\")","v":"{Primary heating type}"},{"$f":"IFERROR(MID($AA225,FIND(CHAR(160),SUBSTITUTE($AA225,\"{\",CHAR(160),IE$1)),FIND(CHAR(160),SUBSTITUTE($AA225,\"}\",CHAR(160),IE$1))-FIND(CHAR(160),SUBSTITUTE($AA225,\"{\",CHAR(160),IE$1))+1),\"\")","v":""},{"$f":"IFERROR(MID($AA225,FIND(CHAR(160),SUBSTITUTE($AA225,\"{\",CHAR(160),IF$1)),FIND(CHAR(160),SUBSTITUTE($AA225,\"}\",CHAR(160),IF$1))-FIND(CHAR(160),SUBSTITUTE($AA225,\"{\",CHAR(160),IF$1))+1),\"\")","v":""},{"$f":"IFERROR(MID($AA225,FIND(CHAR(160),SUBSTITUTE($AA225,\"{\",CHAR(160),IG$1)),FIND(CHAR(160),SUBSTITUTE($AA225,\"}\",CHAR(160),IG$1))-FIND(CHAR(160),SUBSTITUTE($AA225,\"{\",CHAR(160),IG$1))+1),\"\")","v":""},{"$f":"IFERROR(MID($AA225,FIND(CHAR(160),SUBSTITUTE($AA225,\"{\",CHAR(160),IH$1)),FIND(CHAR(160),SUBSTITUTE($AA225,\"}\",CHAR(160),IH$1))-FIND(CHAR(160),SUBSTITUTE($AA225,\"{\",CHAR(160),IH$1))+1),\"\")","v":""},{"$f":"IFERROR(MID($AA225,FIND(CHAR(160),SUBSTITUTE($AA225,\"{\",CHAR(160),II$1)),FIND(CHAR(160),SUBSTITUTE($AA225,\"}\",CHAR(160),II$1))-FIND(CHAR(160),SUBSTITUTE($AA225,\"{\",CHAR(160),II$1))+1),\"\")","v":""},{"$f":"IFERROR(MID($AA225,FIND(CHAR(160),SUBSTITUTE($AA225,\"{\",CHAR(160),IJ$1)),FIND(CHAR(160),SUBSTITUTE($AA225,\"}\",CHAR(160),IJ$1))-FIND(CHAR(160),SUBSTITUTE($AA225,\"{\",CHAR(160),IJ$1))+1),\"\")","v":""},{"$f":"IFERROR(MID($AA225,FIND(CHAR(160),SUBSTITUTE($AA225,\"{\",CHAR(160),IK$1)),FIND(CHAR(160),SUBSTITUTE($AA225,\"}\",CHAR(160),IK$1))-FIND(CHAR(160),SUBSTITUTE($AA225,\"{\",CHAR(160),IK$1))+1),\"\")","v":""},{"$f":"IFERROR(MID($AA225,FIND(CHAR(160),SUBSTITUTE($AA225,\"{\",CHAR(160),IL$1)),FIND(CHAR(160),SUBSTITUTE($AA225,\"}\",CHAR(160),IL$1))-FIND(CHAR(160),SUBSTITUTE($AA225,\"{\",CHAR(160),IL$1))+1),\"\")","v":""},{"$f":"IFERROR(MID($AA225,FIND(CHAR(160),SUBSTITUTE($AA225,\"{\",CHAR(160),IM$1)),FIND(CHAR(160),SUBSTITUTE($AA225,\"}\",CHAR(160),IM$1))-FIND(CHAR(160),SUBSTITUTE($AA225,\"{\",CHAR(160),IM$1))+1),\"\")","v":"{Primary heating type}"},{"$f":"IFERROR(MID($AA225,FIND(CHAR(160),SUBSTITUTE($AA225,\"{\",CHAR(160),IN$1)),FIND(CHAR(160),SUBSTITUTE($AA225,\"}\",CHAR(160),IN$1))-FIND(CHAR(160),SUBSTITUTE($AA225,\"{\",CHAR(160),IN$1))+1),\"\")","v":"{Primary heating type}"},{"$f":"IFERROR(MID($AB225,FIND(CHAR(160),SUBSTITUTE($AB225,\"{\",CHAR(160),IO$1)),FIND(CHAR(160),SUBSTITUTE($AB225,\"}\",CHAR(160),IO$1))-FIND(CHAR(160),SUBSTITUTE($AB225,\"{\",CHAR(160),IO$1))+1),\"\")","v":""},{"$f":"IFERROR(MID($AB225,FIND(CHAR(160),SUBSTITUTE($AB225,\"{\",CHAR(160),IP$1)),FIND(CHAR(160),SUBSTITUTE($AB225,\"}\",CHAR(160),IP$1))-FIND(CHAR(160),SUBSTITUTE($AB225,\"{\",CHAR(160),IP$1))+1),\"\")","v":""},{"$f":"IFERROR(MID($AB225,FIND(CHAR(160),SUBSTITUTE($AB225,\"{\",CHAR(160),IQ$1)),FIND(CHAR(160),SUBSTITUTE($AB225,\"}\",CHAR(160),IQ$1))-FIND(CHAR(160),SUBSTITUTE($AB225,\"{\",CHAR(160),IQ$1))+1),\"\")","v":""},{"$f":"IFERROR(MID($AB225,FIND(CHAR(160),SUBSTITUTE($AB225,\"{\",CHAR(160),IR$1)),FIND(CHAR(160),SUBSTITUTE($AB225,\"}\",CHAR(160),IR$1))-FIND(CHAR(160),SUBSTITUTE($AB225,\"{\",CHAR(160),IR$1))+1),\"\")","v":""},{"$f":"IFERROR(MID($AB225,FIND(CHAR(160),SUBSTITUTE($AB225,\"{\",CHAR(160),IS$1)),FIND(CHAR(160),SUBSTITUTE($AB225,\"}\",CHAR(160),IS$1))-FIND(CHAR(160),SUBSTITUTE($AB225,\"{\",CHAR(160),IS$1))+1),\"\")","v":""},{"$f":"IFERROR(MID($AB225,FIND(CHAR(160),SUBSTITUTE($AB225,\"{\",CHAR(160),IT$1)),FIND(CHAR(160),SUBSTITUTE($AB225,\"}\",CHAR(160),IT$1))-FIND(CHAR(160),SUBSTITUTE($AB225,\"{\",CHAR(160),IT$1))+1),\"\")","v":""},{"$f":"IFERROR(MID($AB225,FIND(CHAR(160),SUBSTITUTE($AB225,\"{\",CHAR(160),IU$1)),FIND(CHAR(160),SUBSTITUTE($AB225,\"}\",CHAR(160),IU$1))-FIND(CHAR(160),SUBSTITUTE($AB225,\"{\",CHAR(160),IU$1))+1),\"\")","v":""},{"$f":"IFERROR(MID($AB225,FIND(CHAR(160),SUBSTITUTE($AB225,\"{\",CHAR(160),IV$1)),FIND(CHAR(160),SUBSTITUTE($AB225,\"}\",CHAR(160),IV$1))-FIND(CHAR(160),SUBSTITUTE($AB225,\"{\",CHAR(160),IV$1))+1),\"\")","v":""},{"$f":"IFERROR(MID($AB225,FIND(CHAR(160),SUBSTITUTE($AB225,\"{\",CHAR(160),IW$1)),FIND(CHAR(160),SUBSTITUTE($AB225,\"}\",CHAR(160),IW$1))-FIND(CHAR(160),SUBSTITUTE($AB225,\"{\",CHAR(160),IW$1))+1),\"\")","v":""},{"$f":"IFERROR(MID($AB225,FIND(CHAR(160),SUBSTITUTE($AB225,\"{\",CHAR(160),IX$1)),FIND(CHAR(160),SUBSTITUTE($AB225,\"}\",CHAR(160),IX$1))-FIND(CHAR(160),SUBSTITUTE($AB225,\"{\",CHAR(160),IX$1))+1),\"\")","v":""},null,{"$f":"10-COUNTIF(DU225:ED225,\"\")","v":3}]
["Low Income Direct Install - Other Fuels","Air Sealing LIHESP","LAA","2021-07-01","2022-06-30","Calculated","{Cost}*{Measure:Quantity}",0,"Calculated","600*{Measure:Quantity}",600,"2020-07-01","2022-06-30","Calculated","if({Primary heating type}=6,1514,if({Primary heating type}=0,67,10))",null,null,"if({Primary heating type}=6,0.026,if({Primary heating type}=0,0.026,0.026))",null,null,"if({Primary heating type}=6,0.331,if({Primary heating type}=0,0.013,0))","if({Primary heating type}=6,0.026,if({Primary heating type}=0,0.026,0.026))","if({Primary heating type}=1,6.184,if({Primary heating type}=0,0.557,0))*10","if({Primary heating type}=2,6.184,if({Primary heating type} = 0,0.810,0))","if({Primary heating type}=3,6.184,if({Primary heating type} = 0,4.230,0))","if({Primary heating type}=4,6.184,if({Primary heating type} = 0,0.087,0))","if({Primary heating type}=5,6.184,if({Primary heating type} = 0,0.266,0))",0,"2020-07-01","2022-06-30",15,1,1,0,0,0.66600000000000004,0.30099999999999999,1,1,1,0,0,null,{"$f":"DU226","v":"{Cost}"},600,{"$f":"DV226","v":"{Measure:Quantity}"},1,{"$f":"DW226","v":"{Primary heating type}"},3,{"$f":"DX226","v":""},null,{"$f":"DY226","v":""},null,{"$f":"DZ226","v":""},null,{"$f":"EA226","v":""},null,{"$f":"EB226","v":""},null,{"$f":"EC226","v":""},null,{"$f":"ED226","v":""},null,{"$f":"IF(AW226=6,1514,IF(AW226=0,67,10))","v":10},0,0,{"$f":"IF(AW226=6,0.026,IF(AW226=0,0.026,0.026))","v":2.5999999999999999E-2},0,0,{"$f":"IF(AW226=6,0.331,IF(AW226=0,0.013,0))","v":0},{"$f":"IF(AW226=6,0.026,IF(AW226=0,0.026,0.026))","v":2.5999999999999999E-2},{"$f":"IF(AW226=1,6.184,IF(AW226=0,0.557,0))*10","v":0},{"$f":"IF(AW226=2,6.184,IF(AW226 = 0,0.81,0))","v":0},{"$f":"IF(AW226=3,6.184,IF(AW226 = 0,4.23,0))","v":6.1840000000000002},{"$f":"IF(AW226=4,6.184,IF(AW226 = 0,0.087,0))","v":0},{"$f":"IF(AW226=5,6.184,IF(AW226 = 0,0.266,0))","v":0},{"$f":"0","v":0},null,"Res","Default DR",{"$f":"Benefits(BL226,BR226,BS226,BT226,BU226,BV226,BW226,BX226,BY226,BZ226,AE226,AH226,AI226,AJ226,AK226,AL226,AM226,AN226,AO226,AP226,CA226,CB226)","v":11.517280873528332},48.953263455880382,0,2609.0983819149346,0,0,0,0,0,{"$f":"SUMPRODUCT(CC226:CK226,--(CC226:CK226>0))","v":2669.5689262443434},{"$f":"-SUMPRODUCT(CC226:CK226,--(CC226:CK226<0))","v":0},null,{"$f":"AS226*AU226","v":600},null,null,{"$f":"CM226+CO226","v":600},{"$f":"IF(NetOrGross=\"Net\",(1-AO226+AP226),1)","v":1},{"$f":"(SUMPRODUCT(CC226:CJ226,--(CC226:CJ226>0))+CN226)*CS226/((-SUMPRODUCT(CC226:CJ226,--(CC226:CJ226<0))+MAX(CO226,CV226)+CP226+CQ226)*CS226+IF(FRIncentives=\"Yes\",CV226*(1-CS226),0))","v":4.4492815437405726},1,{"$f":"600*AU226","v":600},null,"RGGI","y",null,{"$f":"IF(F226=\"Manual Entry\",\"Manual\",IF(G226=\"\",0,\"X=\"&SUBSTITUTE(SUBSTITUTE(SUBSTITUTE(SUBSTITUTE(SUBSTITUTE(SUBSTITUTE(SUBSTITUTE(SUBSTITUTE(SUBSTITUTE(SUBSTITUTE(SUBSTITUTE(SUBSTITUTE(G226,$ED226,$ED$2&ROW($ED226)),$EC226,$EC$2&ROW($EC226)),$EB226,$EB$2&ROW($EB226)),$EA226,$EA$2&ROW($EA226)),$DZ226,$DZ$2&ROW($DZ226)),$DY226,$DY$2&ROW($DY226)),$DX226,$DX$2&ROW($DX226)),$DW226,$DW$2&ROW($DW226)),$DV226,$DV$2&ROW($DV226)),$DU226,$DU$2&ROW($DU226)),$DT226,$DT$2&ROW($DT226)),$DS226,$DS$2&ROW($DS226))))","v":"X=AS226*AU226"},{"$f":"IF(I226=\"Manual Entry\",\"Manual\",IF(J226=\"\",0,\"X=\"&SUBSTITUTE(SUBSTITUTE(SUBSTITUTE(SUBSTITUTE(SUBSTITUTE(SUBSTITUTE(SUBSTITUTE(SUBSTITUTE(SUBSTITUTE(SUBSTITUTE(SUBSTITUTE(SUBSTITUTE(J226,$ED226,$ED$2&ROW($ED226)),$EC226,$EC$2&ROW($EC226)),$EB226,$EB$2&ROW($EB226)),$EA226,$EA$2&ROW($EA226)),$DZ226,$DZ$2&ROW($DZ226)),$DY226,$DY$2&ROW($DY226)),$DX226,$DX$2&ROW($DX226)),$DW226,$DW$2&ROW($DW226)),$DV226,$DV$2&ROW($DV226)),$DU226,$DU$2&ROW($DU226)),$DT226,$DT$2&ROW($DT226)),$DS226,$DS$2&ROW($DS226))))","v":"X=600*AU226"},{"$f":"IF(O226=\"\",0,\"X=\"&SUBSTITUTE(SUBSTITUTE(SUBSTITUTE(SUBSTITUTE(SUBSTITUTE(SUBSTITUTE(SUBSTITUTE(SUBSTITUTE(SUBSTITUTE(SUBSTITUTE(SUBSTITUTE(SUBSTITUTE(O226,$ED226,$ED$2&ROW($ED226)),$EC226,$EC$2&ROW($EC226)),$EB226,$EB$2&ROW($EB226)),$EA226,$EA$2&ROW($EA226)),$DZ226,$DZ$2&ROW($DZ226)),$DY226,$DY$2&ROW($DY226)),$DX226,$DX$2&ROW($DX226)),$DW226,$DW$2&ROW($DW226)),$DV226,$DV$2&ROW($DV226)),$DU226,$DU$2&ROW($DU226)),$DT226,$DT$2&ROW($DT226)),$DS226,$DS$2&ROW($DS226)))","v":"X=if(AW226=6,1514,if(AW226=0,67,10))"},{"$f":"IF(P226=\"\",0,\"X=\"&SUBSTITUTE(SUBSTITUTE(SUBSTITUTE(SUBSTITUTE(SUBSTITUTE(SUBSTITUTE(SUBSTITUTE(SUBSTITUTE(SUBSTITUTE(SUBSTITUTE(SUBSTITUTE(SUBSTITUTE(P226,$ED226,$ED$2&ROW($ED226)),$EC226,$EC$2&ROW($EC226)),$EB226,$EB$2&ROW($EB226)),$EA226,$EA$2&ROW($EA226)),$DZ226,$DZ$2&ROW($DZ226)),$DY226,$DY$2&ROW($DY226)),$DX226,$DX$2&ROW($DX226)),$DW226,$DW$2&ROW($DW226)),$DV226,$DV$2&ROW($DV226)),$DU226,$DU$2&ROW($DU226)),$DT226,$DT$2&ROW($DT226)),$DS226,$DS$2&ROW($DS226)))","v":0},{"$f":"IF(Q226=\"\",0,\"X=\"&SUBSTITUTE(SUBSTITUTE(SUBSTITUTE(SUBSTITUTE(SUBSTITUTE(SUBSTITUTE(SUBSTITUTE(SUBSTITUTE(SUBSTITUTE(SUBSTITUTE(SUBSTITUTE(SUBSTITUTE(Q226,$ED226,$ED$2&ROW($ED226)),$EC226,$EC$2&ROW($EC226)),$EB226,$EB$2&ROW($EB226)),$EA226,$EA$2&ROW($EA226)),$DZ226,$DZ$2&ROW($DZ226)),$DY226,$DY$2&ROW($DY226)),$DX226,$DX$2&ROW($DX226)),$DW226,$DW$2&ROW($DW226)),$DV226,$DV$2&ROW($DV226)),$DU226,$DU$2&ROW($DU226)),$DT226,$DT$2&ROW($DT226)),$DS226,$DS$2&ROW($DS226)))","v":0},{"$f":"IF(R226=\"\",0,\"X=\"&SUBSTITUTE(SUBSTITUTE(SUBSTITUTE(SUBSTITUTE(SUBSTITUTE(SUBSTITUTE(SUBSTITUTE(SUBSTITUTE(SUBSTITUTE(SUBSTITUTE(SUBSTITUTE(SUBSTITUTE(R226,$ED226,$ED$2&ROW($ED226)),$EC226,$EC$2&ROW($EC226)),$EB226,$EB$2&ROW($EB226)),$EA226,$EA$2&ROW($EA226)),$DZ226,$DZ$2&ROW($DZ226)),$DY226,$DY$2&ROW($DY226)),$DX226,$DX$2&ROW($DX226)),$DW226,$DW$2&ROW($DW226)),$DV226,$DV$2&ROW($DV226)),$DU226,$DU$2&ROW($DU226)),$DT226,$DT$2&ROW($DT226)),$DS226,$DS$2&ROW($DS226)))","v":"X=if(AW226=6,0.026,if(AW226=0,0.026,0.026))"},{"$f":"IF(S226=\"\",0,\"X=\"&SUBSTITUTE(SUBSTITUTE(SUBSTITUTE(SUBSTITUTE(SUBSTITUTE(SUBSTITUTE(SUBSTITUTE(SUBSTITUTE(SUBSTITUTE(SUBSTITUTE(SUBSTITUTE(SUBSTITUTE(S226,$ED226,$ED$2&ROW($ED226)),$EC226,$EC$2&ROW($EC226)),$EB226,$EB$2&ROW($EB226)),$EA226,$EA$2&ROW($EA226)),$DZ226,$DZ$2&ROW($DZ226)),$DY226,$DY$2&ROW($DY226)),$DX226,$DX$2&ROW($DX226)),$DW226,$DW$2&ROW($DW226)),$DV226,$DV$2&ROW($DV226)),$DU226,$DU$2&ROW($DU226)),$DT226,$DT$2&ROW($DT226)),$DS226,$DS$2&ROW($DS226)))","v":0},{"$f":"IF(T226=\"\",0,\"X=\"&SUBSTITUTE(SUBSTITUTE(SUBSTITUTE(SUBSTITUTE(SUBSTITUTE(SUBSTITUTE(SUBSTITUTE(SUBSTITUTE(SUBSTITUTE(SUBSTITUTE(SUBSTITUTE(SUBSTITUTE(T226,$ED226,$ED$2&ROW($ED226)),$EC226,$EC$2&ROW($EC226)),$EB226,$EB$2&ROW($EB226)),$EA226,$EA$2&ROW($EA226)),$DZ226,$DZ$2&ROW($DZ226)),$DY226,$DY$2&ROW($DY226)),$DX226,$DX$2&ROW($DX226)),$DW226,$DW$2&ROW($DW226)),$DV226,$DV$2&ROW($DV226)),$DU226,$DU$2&ROW($DU226)),$DT226,$DT$2&ROW($DT226)),$DS226,$DS$2&ROW($DS226)))","v":0},{"$f":"IF(U226=\"\",0,\"X=\"&SUBSTITUTE(SUBSTITUTE(SUBSTITUTE(SUBSTITUTE(SUBSTITUTE(SUBSTITUTE(SUBSTITUTE(SUBSTITUTE(SUBSTITUTE(SUBSTITUTE(SUBSTITUTE(SUBSTITUTE(U226,$ED226,$ED$2&ROW($ED226)),$EC226,$EC$2&ROW($EC226)),$EB226,$EB$2&ROW($EB226)),$EA226,$EA$2&ROW($EA226)),$DZ226,$DZ$2&ROW($DZ226)),$DY226,$DY$2&ROW($DY226)),$DX226,$DX$2&ROW($DX226)),$DW226,$DW$2&ROW($DW226)),$DV226,$DV$2&ROW($DV226)),$DU226,$DU$2&ROW($DU226)),$DT226,$DT$2&ROW($DT226)),$DS226,$DS$2&ROW($DS226)))","v":"X=if(AW226=6,0.331,if(AW226=0,0.013,0))"},{"$f":"IF(V226=\"\",0,\"X=\"&SUBSTITUTE(SUBSTITUTE(SUBSTITUTE(SUBSTITUTE(SUBSTITUTE(SUBSTITUTE(SUBSTITUTE(SUBSTITUTE(SUBSTITUTE(SUBSTITUTE(SUBSTITUTE(SUBSTITUTE(V226,$ED226,$ED$2&ROW($ED226)),$EC226,$EC$2&ROW($EC226)),$EB226,$EB$2&ROW($EB226)),$EA226,$EA$2&ROW($EA226)),$DZ226,$DZ$2&ROW($DZ226)),$DY226,$DY$2&ROW($DY226)),$DX226,$DX$2&ROW($DX226)),$DW226,$DW$2&ROW($DW226)),$DV226,$DV$2&ROW($DV226)),$DU226,$DU$2&ROW($DU226)),$DT226,$DT$2&ROW($DT226)),$DS226,$DS$2&ROW($DS226)))","v":"X=if(AW226=6,0.026,if(AW226=0,0.026,0.026))"},{"$f":"IF(W226=\"\",0,\"X=\"&SUBSTITUTE(SUBSTITUTE(SUBSTITUTE(SUBSTITUTE(SUBSTITUTE(SUBSTITUTE(SUBSTITUTE(SUBSTITUTE(SUBSTITUTE(SUBSTITUTE(SUBSTITUTE(SUBSTITUTE(W226,$ED226,$ED$2&ROW($ED226)),$EC226,$EC$2&ROW($EC226)),$EB226,$EB$2&ROW($EB226)),$EA226,$EA$2&ROW($EA226)),$DZ226,$DZ$2&ROW($DZ226)),$DY226,$DY$2&ROW($DY226)),$DX226,$DX$2&ROW($DX226)),$DW226,$DW$2&ROW($DW226)),$DV226,$DV$2&ROW($DV226)),$DU226,$DU$2&ROW($DU226)),$DT226,$DT$2&ROW($DT226)),$DS226,$DS$2&ROW($DS226)))","v":"X=if(AW226=1,6.184,if(AW226=0,0.557,0))*10"},{"$f":"IF(X226=\"\",0,\"X=\"&SUBSTITUTE(SUBSTITUTE(SUBSTITUTE(SUBSTITUTE(SUBSTITUTE(SUBSTITUTE(SUBSTITUTE(SUBSTITUTE(SUBSTITUTE(SUBSTITUTE(SUBSTITUTE(SUBSTITUTE(X226,$ED226,$ED$2&ROW($ED226)),$EC226,$EC$2&ROW($EC226)),$EB226,$EB$2&ROW($EB226)),$EA226,$EA$2&ROW($EA226)),$DZ226,$DZ$2&ROW($DZ226)),$DY226,$DY$2&ROW($DY226)),$DX226,$DX$2&ROW($DX226)),$DW226,$DW$2&ROW($DW226)),$DV226,$DV$2&ROW($DV226)),$DU226,$DU$2&ROW($DU226)),$DT226,$DT$2&ROW($DT226)),$DS226,$DS$2&ROW($DS226)))","v":"X=if(AW226=2,6.184,if(AW226 = 0,0.810,0))"},{"$f":"IF(Y226=\"\",0,\"X=\"&SUBSTITUTE(SUBSTITUTE(SUBSTITUTE(SUBSTITUTE(SUBSTITUTE(SUBSTITUTE(SUBSTITUTE(SUBSTITUTE(SUBSTITUTE(SUBSTITUTE(SUBSTITUTE(SUBSTITUTE(Y226,$ED226,$ED$2&ROW($ED226)),$EC226,$EC$2&ROW($EC226)),$EB226,$EB$2&ROW($EB226)),$EA226,$EA$2&ROW($EA226)),$DZ226,$DZ$2&ROW($DZ226)),$DY226,$DY$2&ROW($DY226)),$DX226,$DX$2&ROW($DX226)),$DW226,$DW$2&ROW($DW226)),$DV226,$DV$2&ROW($DV226)),$DU226,$DU$2&ROW($DU226)),$DT226,$DT$2&ROW($DT226)),$DS226,$DS$2&ROW($DS226)))","v":"X=if(AW226=3,6.184,if(AW226 = 0,4.230,0))"},{"$f":"IF(Z226=\"\",0,\"X=\"&SUBSTITUTE(SUBSTITUTE(SUBSTITUTE(SUBSTITUTE(SUBSTITUTE(SUBSTITUTE(SUBSTITUTE(SUBSTITUTE(SUBSTITUTE(SUBSTITUTE(SUBSTITUTE(SUBSTITUTE(Z226,$ED226,$ED$2&ROW($ED226)),$EC226,$EC$2&ROW($EC226)),$EB226,$EB$2&ROW($EB226)),$EA226,$EA$2&ROW($EA226)),$DZ226,$DZ$2&ROW($DZ226)),$DY226,$DY$2&ROW($DY226)),$DX226,$DX$2&ROW($DX226)),$DW226,$DW$2&ROW($DW226)),$DV226,$DV$2&ROW($DV226)),$DU226,$DU$2&ROW($DU226)),$DT226,$DT$2&ROW($DT226)),$DS226,$DS$2&ROW($DS226)))","v":"X=if(AW226=4,6.184,if(AW226 = 0,0.087,0))"},{"$f":"IF(AA226=\"\",0,\"X=\"&SUBSTITUTE(SUBSTITUTE(SUBSTITUTE(SUBSTITUTE(SUBSTITUTE(SUBSTITUTE(SUBSTITUTE(SUBSTITUTE(SUBSTITUTE(SUBSTITUTE(SUBSTITUTE(SUBSTITUTE(AA226,$ED226,$ED$2&ROW($ED226)),$EC226,$EC$2&ROW($EC226)),$EB226,$EB$2&ROW($EB226)),$EA226,$EA$2&ROW($EA226)),$DZ226,$DZ$2&ROW($DZ226)),$DY226,$DY$2&ROW($DY226)),$DX226,$DX$2&ROW($DX226)),$DW226,$DW$2&ROW($DW226)),$DV226,$DV$2&ROW($DV226)),$DU226,$DU$2&ROW($DU226)),$DT226,$DT$2&ROW($DT226)),$DS226,$DS$2&ROW($DS226)))","v":"X=if(AW226=5,6.184,if(AW226 = 0,0.266,0))"},{"$f":"IF(AB226=\"\",0,\"X=\"&SUBSTITUTE(SUBSTITUTE(SUBSTITUTE(SUBSTITUTE(SUBSTITUTE(SUBSTITUTE(SUBSTITUTE(SUBSTITUTE(SUBSTITUTE(SUBSTITUTE(SUBSTITUTE(SUBSTITUTE(AB226,$ED226,$ED$2&ROW($ED226)),$EC226,$EC$2&ROW($EC226)),$EB226,$EB$2&ROW($EB226)),$EA226,$EA$2&ROW($EA226)),$DZ226,$DZ$2&ROW($DZ226)),$DY226,$DY$2&ROW($DY226)),$DX226,$DX$2&ROW($DX226)),$DW226,$DW$2&ROW($DW226)),$DV226,$DV$2&ROW($DV226)),$DU226,$DU$2&ROW($DU226)),$DT226,$DT$2&ROW($DT226)),$DS226,$DS$2&ROW($DS226)))","v":"X=0"},null,null,"{Factor:WinterCF}","{Factor:SummerCF}",{"$f":"IFERROR(INDEX($EG226:$IV226,MATCH(0,COUNTIF($DR226:DT226,$EG226:$IV226),0)),\"\")","v":"{Cost}"},{"$f":"IFERROR(INDEX($EG226:$IV226,MATCH(0,COUNTIF($DR226:DU226,$EG226:$IV226),0)),\"\")","v":"{Measure:Quantity}"},{"$f":"IFERROR(INDEX($EG226:$IV226,MATCH(0,COUNTIF($DR226:DV226,$EG226:$IV226),0)),\"\")","v":"{Primary heating type}"},{"$f":"IFERROR(INDEX($EG226:$IV226,MATCH(0,COUNTIF($DR226:DW226,$EG226:$IV226),0)),\"\")","v":""},{"$f":"IFERROR(INDEX($EG226:$IV226,MATCH(0,COUNTIF($DR226:DX226,$EG226:$IV226),0)),\"\")","v":""},{"$f":"IFERROR(INDEX($EG226:$IV226,MATCH(0,COUNTIF($DR226:DY226,$EG226:$IV226),0)),\"\")","v":""},{"$f":"IFERROR(INDEX($EG226:$IV226,MATCH(0,COUNTIF($DR226:DZ226,$EG226:$IV226),0)),\"\")","v":""},{"$f":"IFERROR(INDEX($EG226:$IV226,MATCH(0,COUNTIF($DR226:EA226,$EG226:$IV226),0)),\"\")","v":""},{"$f":"IFERROR(INDEX($EG226:$IV226,MATCH(0,COUNTIF($DR226:EB226,$EG226:$IV226),0)),\"\")","v":""},{"$f":"IFERROR(INDEX($EG226:$IV226,MATCH(0,COUNTIF($DR226:EC226,$EG226:$IV226),0)),\"\")","v":""},null,null,{"$f":"IFERROR(MID($G226,FIND(CHAR(160),SUBSTITUTE($G226,\"{\",CHAR(160),EG$1)),FIND(CHAR(160),SUBSTITUTE($G226,\"}\",CHAR(160),EG$1))-FIND(CHAR(160),SUBSTITUTE($G226,\"{\",CHAR(160),EG$1))+1),\"\")","v":"{Cost}"},{"$f":"IFERROR(MID($G226,FIND(CHAR(160),SUBSTITUTE($G226,\"{\",CHAR(160),EH$1)),FIND(CHAR(160),SUBSTITUTE($G226,\"}\",CHAR(160),EH$1))-FIND(CHAR(160),SUBSTITUTE($G226,\"{\",CHAR(160),EH$1))+1),\"\")","v":"{Measure:Quantity}"},{"$f":"IFERROR(MID($G226,FIND(CHAR(160),SUBSTITUTE($G226,\"{\",CHAR(160),EI$1)),FIND(CHAR(160),SUBSTITUTE($G226,\"}\",CHAR(160),EI$1))-FIND(CHAR(160),SUBSTITUTE($G226,\"{\",CHAR(160),EI$1))+1),\"\")","v":""},{"$f":"IFERROR(MID($G226,FIND(CHAR(160),SUBSTITUTE($G226,\"{\",CHAR(160),EJ$1)),FIND(CHAR(160),SUBSTITUTE($G226,\"}\",CHAR(160),EJ$1))-FIND(CHAR(160),SUBSTITUTE($G226,\"{\",CHAR(160),EJ$1))+1),\"\")","v":""},{"$f":"IFERROR(MID($G226,FIND(CHAR(160),SUBSTITUTE($G226,\"{\",CHAR(160),EK$1)),FIND(CHAR(160),SUBSTITUTE($G226,\"}\",CHAR(160),EK$1))-FIND(CHAR(160),SUBSTITUTE($G226,\"{\",CHAR(160),EK$1))+1),\"\")","v":""},{"$f":"IFERROR(MID($G226,FIND(CHAR(160),SUBSTITUTE($G226,\"{\",CHAR(160),EL$1)),FIND(CHAR(160),SUBSTITUTE($G226,\"}\",CHAR(160),EL$1))-FIND(CHAR(160),SUBSTITUTE($G226,\"{\",CHAR(160),EL$1))+1),\"\")","v":""},{"$f":"IFERROR(MID($G226,FIND(CHAR(160),SUBSTITUTE($G226,\"{\",CHAR(160),EM$1)),FIND(CHAR(160),SUBSTITUTE($G226,\"}\",CHAR(160),EM$1))-FIND(CHAR(160),SUBSTITUTE($G226,\"{\",CHAR(160),EM$1))+1),\"\")","v":""},{"$f":"IFERROR(MID($G226,FIND(CHAR(160),SUBSTITUTE($G226,\"{\",CHAR(160),EN$1)),FIND(CHAR(160),SUBSTITUTE($G226,\"}\",CHAR(160),EN$1))-FIND(CHAR(160),SUBSTITUTE($G226,\"{\",CHAR(160),EN$1))+1),\"\")","v":""},{"$f":"IFERROR(MID($G226,FIND(CHAR(160),SUBSTITUTE($G226,\"{\",CHAR(160),EO$1)),FIND(CHAR(160),SUBSTITUTE($G226,\"}\",CHAR(160),EO$1))-FIND(CHAR(160),SUBSTITUTE($G226,\"{\",CHAR(160),EO$1))+1),\"\")","v":""},{"$f":"IFERROR(MID($G226,FIND(CHAR(160),SUBSTITUTE($G226,\"{\",CHAR(160),EP$1)),FIND(CHAR(160),SUBSTITUTE($G226,\"}\",CHAR(160),EP$1))-FIND(CHAR(160),SUBSTITUTE($G226,\"{\",CHAR(160),EP$1))+1),\"\")","v":""},{"$f":"IFERROR(MID($J226,FIND(CHAR(160),SUBSTITUTE($J226,\"{\",CHAR(160),EQ$1)),FIND(CHAR(160),SUBSTITUTE($J226,\"}\",CHAR(160),EQ$1))-FIND(CHAR(160),SUBSTITUTE($J226,\"{\",CHAR(160),EQ$1))+1),\"\")","v":"{Measure:Quantity}"},{"$f":"IFERROR(MID($J226,FIND(CHAR(160),SUBSTITUTE($J226,\"{\",CHAR(160),ER$1)),FIND(CHAR(160),SUBSTITUTE($J226,\"}\",CHAR(160),ER$1))-FIND(CHAR(160),SUBSTITUTE($J226,\"{\",CHAR(160),ER$1))+1),\"\")","v":""},{"$f":"IFERROR(MID($J226,FIND(CHAR(160),SUBSTITUTE($J226,\"{\",CHAR(160),ES$1)),FIND(CHAR(160),SUBSTITUTE($J226,\"}\",CHAR(160),ES$1))-FIND(CHAR(160),SUBSTITUTE($J226,\"{\",CHAR(160),ES$1))+1),\"\")","v":""},{"$f":"IFERROR(MID($J226,FIND(CHAR(160),SUBSTITUTE($J226,\"{\",CHAR(160),ET$1)),FIND(CHAR(160),SUBSTITUTE($J226,\"}\",CHAR(160),ET$1))-FIND(CHAR(160),SUBSTITUTE($J226,\"{\",CHAR(160),ET$1))+1),\"\")","v":""},{"$f":"IFERROR(MID($J226,FIND(CHAR(160),SUBSTITUTE($J226,\"{\",CHAR(160),EU$1)),FIND(CHAR(160),SUBSTITUTE($J226,\"}\",CHAR(160),EU$1))-FIND(CHAR(160),SUBSTITUTE($J226,\"{\",CHAR(160),EU$1))+1),\"\")","v":""},{"$f":"IFERROR(MID($J226,FIND(CHAR(160),SUBSTITUTE($J226,\"{\",CHAR(160),EV$1)),FIND(CHAR(160),SUBSTITUTE($J226,\"}\",CHAR(160),EV$1))-FIND(CHAR(160),SUBSTITUTE($J226,\"{\",CHAR(160),EV$1))+1),\"\")","v":""},{"$f":"IFERROR(MID($J226,FIND(CHAR(160),SUBSTITUTE($J226,\"{\",CHAR(160),EW$1)),FIND(CHAR(160),SUBSTITUTE($J226,\"}\",CHAR(160),EW$1))-FIND(CHAR(160),SUBSTITUTE($J226,\"{\",CHAR(160),EW$1))+1),\"\")","v":""},{"$f":"IFERROR(MID($J226,FIND(CHAR(160),SUBSTITUTE($J226,\"{\",CHAR(160),EX$1)),FIND(CHAR(160),SUBSTITUTE($J226,\"}\",CHAR(160),EX$1))-FIND(CHAR(160),SUBSTITUTE($J226,\"{\",CHAR(160),EX$1))+1),\"\")","v":""},{"$f":"IFERROR(MID($J226,FIND(CHAR(160),SUBSTITUTE($J226,\"{\",CHAR(160),EY$1)),FIND(CHAR(160),SUBSTITUTE($J226,\"}\",CHAR(160),EY$1))-FIND(CHAR(160),SUBSTITUTE($J226,\"{\",CHAR(160),EY$1))+1),\"\")","v":""},{"$f":"IFERROR(MID($J226,FIND(CHAR(160),SUBSTITUTE($J226,\"{\",CHAR(160),EZ$1)),FIND(CHAR(160),SUBSTITUTE($J226,\"}\",CHAR(160),EZ$1))-FIND(CHAR(160),SUBSTITUTE($J226,\"{\",CHAR(160),EZ$1))+1),\"\")","v":""},{"$f":"IFERROR(MID($J226,FIND(CHAR(160),SUBSTITUTE($J226,\"{\",CHAR(160),FA$1)),FIND(CHAR(160),SUBSTITUTE($J226,\"}\",CHAR(160),FA$1))-FIND(CHAR(160),SUBSTITUTE($J226,\"{\",CHAR(160),FA$1))+1),\"\")","v":"{Measure:Quantity}"},{"$f":"IFERROR(MID($J226,FIND(CHAR(160),SUBSTITUTE($J226,\"{\",CHAR(160),FB$1)),FIND(CHAR(160),SUBSTITUTE($J226,\"}\",CHAR(160),FB$1))-FIND(CHAR(160),SUBSTITUTE($J226,\"{\",CHAR(160),FB$1))+1),\"\")","v":""},{"$f":"IFERROR(MID($O226,FIND(CHAR(160),SUBSTITUTE($O226,\"{\",CHAR(160),FC$1)),FIND(CHAR(160),SUBSTITUTE($O226,\"}\",CHAR(160),FC$1))-FIND(CHAR(160),SUBSTITUTE($O226,\"{\",CHAR(160),FC$1))+1),\"\")","v":""},{"$f":"IFERROR(MID($O226,FIND(CHAR(160),SUBSTITUTE($O226,\"{\",CHAR(160),FD$1)),FIND(CHAR(160),SUBSTITUTE($O226,\"}\",CHAR(160),FD$1))-FIND(CHAR(160),SUBSTITUTE($O226,\"{\",CHAR(160),FD$1))+1),\"\")","v":""},{"$f":"IFERROR(MID($O226,FIND(CHAR(160),SUBSTITUTE($O226,\"{\",CHAR(160),FE$1)),FIND(CHAR(160),SUBSTITUTE($O226,\"}\",CHAR(160),FE$1))-FIND(CHAR(160),SUBSTITUTE($O226,\"{\",CHAR(160),FE$1))+1),\"\")","v":""},{"$f":"IFERROR(MID($O226,FIND(CHAR(160),SUBSTITUTE($O226,\"{\",CHAR(160),FF$1)),FIND(CHAR(160),SUBSTITUTE($O226,\"}\",CHAR(160),FF$1))-FIND(CHAR(160),SUBSTITUTE($O226,\"{\",CHAR(160),FF$1))+1),\"\")","v":""},{"$f":"IFERROR(MID($O226,FIND(CHAR(160),SUBSTITUTE($O226,\"{\",CHAR(160),FG$1)),FIND(CHAR(160),SUBSTITUTE($O226,\"}\",CHAR(160),FG$1))-FIND(CHAR(160),SUBSTITUTE($O226,\"{\",CHAR(160),FG$1))+1),\"\")","v":""},{"$f":"IFERROR(MID($O226,FIND(CHAR(160),SUBSTITUTE($O226,\"{\",CHAR(160),FH$1)),FIND(CHAR(160),SUBSTITUTE($O226,\"}\",CHAR(160),FH$1))-FIND(CHAR(160),SUBSTITUTE($O226,\"{\",CHAR(160),FH$1))+1),\"\")","v":""},{"$f":"IFERROR(MID($O226,FIND(CHAR(160),SUBSTITUTE($O226,\"{\",CHAR(160),FI$1)),FIND(CHAR(160),SUBSTITUTE($O226,\"}\",CHAR(160),FI$1))-FIND(CHAR(160),SUBSTITUTE($O226,\"{\",CHAR(160),FI$1))+1),\"\")","v":""},{"$f":"IFERROR(MID($O226,FIND(CHAR(160),SUBSTITUTE($O226,\"{\",CHAR(160),FJ$1)),FIND(CHAR(160),SUBSTITUTE($O226,\"}\",CHAR(160),FJ$1))-FIND(CHAR(160),SUBSTITUTE($O226,\"{\",CHAR(160),FJ$1))+1),\"\")","v":""},{"$f":"IFERROR(MID($O226,FIND(CHAR(160),SUBSTITUTE($O226,\"{\",CHAR(160),FK$1)),FIND(CHAR(160),SUBSTITUTE($O226,\"}\",CHAR(160),FK$1))-FIND(CHAR(160),SUBSTITUTE($O226,\"{\",CHAR(160),FK$1))+1),\"\")","v":"{Primary heating type}"},{"$f":"IFERROR(MID($O226,FIND(CHAR(160),SUBSTITUTE($O226,\"{\",CHAR(160),FL$1)),FIND(CHAR(160),SUBSTITUTE($O226,\"}\",CHAR(160),FL$1))-FIND(CHAR(160),SUBSTITUTE($O226,\"{\",CHAR(160),FL$1))+1),\"\")","v":"{Primary heating type}"},{"$f":"IFERROR(MID($R226,FIND(CHAR(160),SUBSTITUTE($R226,\"{\",CHAR(160),FM$1)),FIND(CHAR(160),SUBSTITUTE($R226,\"}\",CHAR(160),FM$1))-FIND(CHAR(160),SUBSTITUTE($R226,\"{\",CHAR(160),FM$1))+1),\"\")","v":""},{"$f":"IFERROR(MID($R226,FIND(CHAR(160),SUBSTITUTE($R226,\"{\",CHAR(160),FN$1)),FIND(CHAR(160),SUBSTITUTE($R226,\"}\",CHAR(160),FN$1))-FIND(CHAR(160),SUBSTITUTE($R226,\"{\",CHAR(160),FN$1))+1),\"\")","v":""},{"$f":"IFERROR(MID($R226,FIND(CHAR(160),SUBSTITUTE($R226,\"{\",CHAR(160),FO$1)),FIND(CHAR(160),SUBSTITUTE($R226,\"}\",CHAR(160),FO$1))-FIND(CHAR(160),SUBSTITUTE($R226,\"{\",CHAR(160),FO$1))+1),\"\")","v":""},{"$f":"IFERROR(MID($R226,FIND(CHAR(160),SUBSTITUTE($R226,\"{\",CHAR(160),FP$1)),FIND(CHAR(160),SUBSTITUTE($R226,\"}\",CHAR(160),FP$1))-FIND(CHAR(160),SUBSTITUTE($R226,\"{\",CHAR(160),FP$1))+1),\"\")","v":""},{"$f":"IFERROR(MID($R226,FIND(CHAR(160),SUBSTITUTE($R226,\"{\",CHAR(160),FQ$1)),FIND(CHAR(160),SUBSTITUTE($R226,\"}\",CHAR(160),FQ$1))-FIND(CHAR(160),SUBSTITUTE($R226,\"{\",CHAR(160),FQ$1))+1),\"\")","v":""},{"$f":"IFERROR(MID($R226,FIND(CHAR(160),SUBSTITUTE($R226,\"{\",CHAR(160),FR$1)),FIND(CHAR(160),SUBSTITUTE($R226,\"}\",CHAR(160),FR$1))-FIND(CHAR(160),SUBSTITUTE($R226,\"{\",CHAR(160),FR$1))+1),\"\")","v":""},{"$f":"IFERROR(MID($R226,FIND(CHAR(160),SUBSTITUTE($R226,\"{\",CHAR(160),FS$1)),FIND(CHAR(160),SUBSTITUTE($R226,\"}\",CHAR(160),FS$1))-FIND(CHAR(160),SUBSTITUTE($R226,\"{\",CHAR(160),FS$1))+1),\"\")","v":""},{"$f":"IFERROR(MID($R226,FIND(CHAR(160),SUBSTITUTE($R226,\"{\",CHAR(160),FT$1)),FIND(CHAR(160),SUBSTITUTE($R226,\"}\",CHAR(160),FT$1))-FIND(CHAR(160),SUBSTITUTE($R226,\"{\",CHAR(160),FT$1))+1),\"\")","v":""},{"$f":"IFERROR(MID($R226,FIND(CHAR(160),SUBSTITUTE($R226,\"{\",CHAR(160),FU$1)),FIND(CHAR(160),SUBSTITUTE($R226,\"}\",CHAR(160),FU$1))-FIND(CHAR(160),SUBSTITUTE($R226,\"{\",CHAR(160),FU$1))+1),\"\")","v":"{Primary heating type}"},{"$f":"IFERROR(MID($R226,FIND(CHAR(160),SUBSTITUTE($R226,\"{\",CHAR(160),FV$1)),FIND(CHAR(160),SUBSTITUTE($R226,\"}\",CHAR(160),FV$1))-FIND(CHAR(160),SUBSTITUTE($R226,\"{\",CHAR(160),FV$1))+1),\"\")","v":"{Primary heating type}"},{"$f":"IFERROR(MID($U226,FIND(CHAR(160),SUBSTITUTE($U226,\"{\",CHAR(160),FW$1)),FIND(CHAR(160),SUBSTITUTE($U226,\"}\",CHAR(160),FW$1))-FIND(CHAR(160),SUBSTITUTE($U226,\"{\",CHAR(160),FW$1))+1),\"\")","v":""},{"$f":"IFERROR(MID($U226,FIND(CHAR(160),SUBSTITUTE($U226,\"{\",CHAR(160),FX$1)),FIND(CHAR(160),SUBSTITUTE($U226,\"}\",CHAR(160),FX$1))-FIND(CHAR(160),SUBSTITUTE($U226,\"{\",CHAR(160),FX$1))+1),\"\")","v":""},{"$f":"IFERROR(MID($U226,FIND(CHAR(160),SUBSTITUTE($U226,\"{\",CHAR(160),FY$1)),FIND(CHAR(160),SUBSTITUTE($U226,\"}\",CHAR(160),FY$1))-FIND(CHAR(160),SUBSTITUTE($U226,\"{\",CHAR(160),FY$1))+1),\"\")","v":""},{"$f":"IFERROR(MID($U226,FIND(CHAR(160),SUBSTITUTE($U226,\"{\",CHAR(160),FZ$1)),FIND(CHAR(160),SUBSTITUTE($U226,\"}\",CHAR(160),FZ$1))-FIND(CHAR(160),SUBSTITUTE($U226,\"{\",CHAR(160),FZ$1))+1),\"\")","v":""},{"$f":"IFERROR(MID($U226,FIND(CHAR(160),SUBSTITUTE($U226,\"{\",CHAR(160),GA$1)),FIND(CHAR(160),SUBSTITUTE($U226,\"}\",CHAR(160),GA$1))-FIND(CHAR(160),SUBSTITUTE($U226,\"{\",CHAR(160),GA$1))+1),\"\")","v":""},{"$f":"IFERROR(MID($U226,FIND(CHAR(160),SUBSTITUTE($U226,\"{\",CHAR(160),GB$1)),FIND(CHAR(160),SUBSTITUTE($U226,\"}\",CHAR(160),GB$1))-FIND(CHAR(160),SUBSTITUTE($U226,\"{\",CHAR(160),GB$1))+1),\"\")","v":""},{"$f":"IFERROR(MID($U226,FIND(CHAR(160),SUBSTITUTE($U226,\"{\",CHAR(160),GC$1)),FIND(CHAR(160),SUBSTITUTE($U226,\"}\",CHAR(160),GC$1))-FIND(CHAR(160),SUBSTITUTE($U226,\"{\",CHAR(160),GC$1))+1),\"\")","v":""},{"$f":"IFERROR(MID($U226,FIND(CHAR(160),SUBSTITUTE($U226,\"{\",CHAR(160),GD$1)),FIND(CHAR(160),SUBSTITUTE($U226,\"}\",CHAR(160),GD$1))-FIND(CHAR(160),SUBSTITUTE($U226,\"{\",CHAR(160),GD$1))+1),\"\")","v":""},{"$f":"IFERROR(MID($U226,FIND(CHAR(160),SUBSTITUTE($U226,\"{\",CHAR(160),GE$1)),FIND(CHAR(160),SUBSTITUTE($U226,\"}\",CHAR(160),GE$1))-FIND(CHAR(160),SUBSTITUTE($U226,\"{\",CHAR(160),GE$1))+1),\"\")","v":"{Primary heating type}"},{"$f":"IFERROR(MID($U226,FIND(CHAR(160),SUBSTITUTE($U226,\"{\",CHAR(160),GF$1)),FIND(CHAR(160),SUBSTITUTE($U226,\"}\",CHAR(160),GF$1))-FIND(CHAR(160),SUBSTITUTE($U226,\"{\",CHAR(160),GF$1))+1),\"\")","v":"{Primary heating type}"},{"$f":"IFERROR(MID($V226,FIND(CHAR(160),SUBSTITUTE($V226,\"{\",CHAR(160),GG$1)),FIND(CHAR(160),SUBSTITUTE($V226,\"}\",CHAR(160),GG$1))-FIND(CHAR(160),SUBSTITUTE($V226,\"{\",CHAR(160),GG$1))+1),\"\")","v":""},{"$f":"IFERROR(MID($V226,FIND(CHAR(160),SUBSTITUTE($V226,\"{\",CHAR(160),GH$1)),FIND(CHAR(160),SUBSTITUTE($V226,\"}\",CHAR(160),GH$1))-FIND(CHAR(160),SUBSTITUTE($V226,\"{\",CHAR(160),GH$1))+1),\"\")","v":""},{"$f":"IFERROR(MID($V226,FIND(CHAR(160),SUBSTITUTE($V226,\"{\",CHAR(160),GI$1)),FIND(CHAR(160),SUBSTITUTE($V226,\"}\",CHAR(160),GI$1))-FIND(CHAR(160),SUBSTITUTE($V226,\"{\",CHAR(160),GI$1))+1),\"\")","v":""},{"$f":"IFERROR(MID($V226,FIND(CHAR(160),SUBSTITUTE($V226,\"{\",CHAR(160),GJ$1)),FIND(CHAR(160),SUBSTITUTE($V226,\"}\",CHAR(160),GJ$1))-FIND(CHAR(160),SUBSTITUTE($V226,\"{\",CHAR(160),GJ$1))+1),\"\")","v":""},{"$f":"IFERROR(MID($V226,FIND(CHAR(160),SUBSTITUTE($V226,\"{\",CHAR(160),GK$1)),FIND(CHAR(160),SUBSTITUTE($V226,\"}\",CHAR(160),GK$1))-FIND(CHAR(160),SUBSTITUTE($V226,\"{\",CHAR(160),GK$1))+1),\"\")","v":""},{"$f":"IFERROR(MID($V226,FIND(CHAR(160),SUBSTITUTE($V226,\"{\",CHAR(160),GL$1)),FIND(CHAR(160),SUBSTITUTE($V226,\"}\",CHAR(160),GL$1))-FIND(CHAR(160),SUBSTITUTE($V226,\"{\",CHAR(160),GL$1))+1),\"\")","v":""},{"$f":"IFERROR(MID($V226,FIND(CHAR(160),SUBSTITUTE($V226,\"{\",CHAR(160),GM$1)),FIND(CHAR(160),SUBSTITUTE($V226,\"}\",CHAR(160),GM$1))-FIND(CHAR(160),SUBSTITUTE($V226,\"{\",CHAR(160),GM$1))+1),\"\")","v":""},{"$f":"IFERROR(MID($V226,FIND(CHAR(160),SUBSTITUTE($V226,\"{\",CHAR(160),GN$1)),FIND(CHAR(160),SUBSTITUTE($V226,\"}\",CHAR(160),GN$1))-FIND(CHAR(160),SUBSTITUTE($V226,\"{\",CHAR(160),GN$1))+1),\"\")","v":""},{"$f":"IFERROR(MID($V226,FIND(CHAR(160),SUBSTITUTE($V226,\"{\",CHAR(160),GO$1)),FIND(CHAR(160),SUBSTITUTE($V226,\"}\",CHAR(160),GO$1))-FIND(CHAR(160),SUBSTITUTE($V226,\"{\",CHAR(160),GO$1))+1),\"\")","v":"{Primary heating type}"},{"$f":"IFERROR(MID($V226,FIND(CHAR(160),SUBSTITUTE($V226,\"{\",CHAR(160),GP$1)),FIND(CHAR(160),SUBSTITUTE($V226,\"}\",CHAR(160),GP$1))-FIND(CHAR(160),SUBSTITUTE($V226,\"{\",CHAR(160),GP$1))+1),\"\")","v":"{Primary heating type}"},{"$f":"IFERROR(MID($W226,FIND(CHAR(160),SUBSTITUTE($W226,\"{\",CHAR(160),GQ$1)),FIND(CHAR(160),SUBSTITUTE($W226,\"}\",CHAR(160),GQ$1))-FIND(CHAR(160),SUBSTITUTE($W226,\"{\",CHAR(160),GQ$1))+1),\"\")","v":""},{"$f":"IFERROR(MID($W226,FIND(CHAR(160),SUBSTITUTE($W226,\"{\",CHAR(160),GR$1)),FIND(CHAR(160),SUBSTITUTE($W226,\"}\",CHAR(160),GR$1))-FIND(CHAR(160),SUBSTITUTE($W226,\"{\",CHAR(160),GR$1))+1),\"\")","v":""},{"$f":"IFERROR(MID($W226,FIND(CHAR(160),SUBSTITUTE($W226,\"{\",CHAR(160),GS$1)),FIND(CHAR(160),SUBSTITUTE($W226,\"}\",CHAR(160),GS$1))-FIND(CHAR(160),SUBSTITUTE($W226,\"{\",CHAR(160),GS$1))+1),\"\")","v":""},{"$f":"IFERROR(MID($W226,FIND(CHAR(160),SUBSTITUTE($W226,\"{\",CHAR(160),GT$1)),FIND(CHAR(160),SUBSTITUTE($W226,\"}\",CHAR(160),GT$1))-FIND(CHAR(160),SUBSTITUTE($W226,\"{\",CHAR(160),GT$1))+1),\"\")","v":""},{"$f":"IFERROR(MID($W226,FIND(CHAR(160),SUBSTITUTE($W226,\"{\",CHAR(160),GU$1)),FIND(CHAR(160),SUBSTITUTE($W226,\"}\",CHAR(160),GU$1))-FIND(CHAR(160),SUBSTITUTE($W226,\"{\",CHAR(160),GU$1))+1),\"\")","v":""},{"$f":"IFERROR(MID($W226,FIND(CHAR(160),SUBSTITUTE($W226,\"{\",CHAR(160),GV$1)),FIND(CHAR(160),SUBSTITUTE($W226,\"}\",CHAR(160),GV$1))-FIND(CHAR(160),SUBSTITUTE($W226,\"{\",CHAR(160),GV$1))+1),\"\")","v":""},{"$f":"IFERROR(MID($W226,FIND(CHAR(160),SUBSTITUTE($W226,\"{\",CHAR(160),GW$1)),FIND(CHAR(160),SUBSTITUTE($W226,\"}\",CHAR(160),GW$1))-FIND(CHAR(160),SUBSTITUTE($W226,\"{\",CHAR(160),GW$1))+1),\"\")","v":""},{"$f":"IFERROR(MID($W226,FIND(CHAR(160),SUBSTITUTE($W226,\"{\",CHAR(160),GX$1)),FIND(CHAR(160),SUBSTITUTE($W226,\"}\",CHAR(160),GX$1))-FIND(CHAR(160),SUBSTITUTE($W226,\"{\",CHAR(160),GX$1))+1),\"\")","v":""},{"$f":"IFERROR(MID($W226,FIND(CHAR(160),SUBSTITUTE($W226,\"{\",CHAR(160),GY$1)),FIND(CHAR(160),SUBSTITUTE($W226,\"}\",CHAR(160),GY$1))-FIND(CHAR(160),SUBSTITUTE($W226,\"{\",CHAR(160),GY$1))+1),\"\")","v":"{Primary heating type}"},{"$f":"IFERROR(MID($W226,FIND(CHAR(160),SUBSTITUTE($W226,\"{\",CHAR(160),GZ$1)),FIND(CHAR(160),SUBSTITUTE($W226,\"}\",CHAR(160),GZ$1))-FIND(CHAR(160),SUBSTITUTE($W226,\"{\",CHAR(160),GZ$1))+1),\"\")","v":"{Primary heating type}"},{"$f":"IFERROR(MID($X226,FIND(CHAR(160),SUBSTITUTE($X226,\"{\",CHAR(160),HA$1)),FIND(CHAR(160),SUBSTITUTE($X226,\"}\",CHAR(160),HA$1))-FIND(CHAR(160),SUBSTITUTE($X226,\"{\",CHAR(160),HA$1))+1),\"\")","v":""},{"$f":"IFERROR(MID($X226,FIND(CHAR(160),SUBSTITUTE($X226,\"{\",CHAR(160),HB$1)),FIND(CHAR(160),SUBSTITUTE($X226,\"}\",CHAR(160),HB$1))-FIND(CHAR(160),SUBSTITUTE($X226,\"{\",CHAR(160),HB$1))+1),\"\")","v":""},{"$f":"IFERROR(MID($X226,FIND(CHAR(160),SUBSTITUTE($X226,\"{\",CHAR(160),HC$1)),FIND(CHAR(160),SUBSTITUTE($X226,\"}\",CHAR(160),HC$1))-FIND(CHAR(160),SUBSTITUTE($X226,\"{\",CHAR(160),HC$1))+1),\"\")","v":""},{"$f":"IFERROR(MID($X226,FIND(CHAR(160),SUBSTITUTE($X226,\"{\",CHAR(160),HD$1)),FIND(CHAR(160),SUBSTITUTE($X226,\"}\",CHAR(160),HD$1))-FIND(CHAR(160),SUBSTITUTE($X226,\"{\",CHAR(160),HD$1))+1),\"\")","v":""},{"$f":"IFERROR(MID($X226,FIND(CHAR(160),SUBSTITUTE($X226,\"{\",CHAR(160),HE$1)),FIND(CHAR(160),SUBSTITUTE($X226,\"}\",CHAR(160),HE$1))-FIND(CHAR(160),SUBSTITUTE($X226,\"{\",CHAR(160),HE$1))+1),\"\")","v":""},{"$f":"IFERROR(MID($X226,FIND(CHAR(160),SUBSTITUTE($X226,\"{\",CHAR(160),HF$1)),FIND(CHAR(160),SUBSTITUTE($X226,\"}\",CHAR(160),HF$1))-FIND(CHAR(160),SUBSTITUTE($X226,\"{\",CHAR(160),HF$1))+1),\"\")","v":""},{"$f":"IFERROR(MID($X226,FIND(CHAR(160),SUBSTITUTE($X226,\"{\",CHAR(160),HG$1)),FIND(CHAR(160),SUBSTITUTE($X226,\"}\",CHAR(160),HG$1))-FIND(CHAR(160),SUBSTITUTE($X226,\"{\",CHAR(160),HG$1))+1),\"\")","v":""},{"$f":"IFERROR(MID($X226,FIND(CHAR(160),SUBSTITUTE($X226,\"{\",CHAR(160),HH$1)),FIND(CHAR(160),SUBSTITUTE($X226,\"}\",CHAR(160),HH$1))-FIND(CHAR(160),SUBSTITUTE($X226,\"{\",CHAR(160),HH$1))+1),\"\")","v":""},{"$f":"IFERROR(MID($X226,FIND(CHAR(160),SUBSTITUTE($X226,\"{\",CHAR(160),HI$1)),FIND(CHAR(160),SUBSTITUTE($X226,\"}\",CHAR(160),HI$1))-FIND(CHAR(160),SUBSTITUTE($X226,\"{\",CHAR(160),HI$1))+1),\"\")","v":"{Primary heating type}"},{"$f":"IFERROR(MID($X226,FIND(CHAR(160),SUBSTITUTE($X226,\"{\",CHAR(160),HJ$1)),FIND(CHAR(160),SUBSTITUTE($X226,\"}\",CHAR(160),HJ$1))-FIND(CHAR(160),SUBSTITUTE($X226,\"{\",CHAR(160),HJ$1))+1),\"\")","v":"{Primary heating type}"},{"$f":"IFERROR(MID($Y226,FIND(CHAR(160),SUBSTITUTE($Y226,\"{\",CHAR(160),HK$1)),FIND(CHAR(160),SUBSTITUTE($Y226,\"}\",CHAR(160),HK$1))-FIND(CHAR(160),SUBSTITUTE($Y226,\"{\",CHAR(160),HK$1))+1),\"\")","v":""},{"$f":"IFERROR(MID($Y226,FIND(CHAR(160),SUBSTITUTE($Y226,\"{\",CHAR(160),HL$1)),FIND(CHAR(160),SUBSTITUTE($Y226,\"}\",CHAR(160),HL$1))-FIND(CHAR(160),SUBSTITUTE($Y226,\"{\",CHAR(160),HL$1))+1),\"\")","v":""},{"$f":"IFERROR(MID($Y226,FIND(CHAR(160),SUBSTITUTE($Y226,\"{\",CHAR(160),HM$1)),FIND(CHAR(160),SUBSTITUTE($Y226,\"}\",CHAR(160),HM$1))-FIND(CHAR(160),SUBSTITUTE($Y226,\"{\",CHAR(160),HM$1))+1),\"\")","v":""},{"$f":"IFERROR(MID($Y226,FIND(CHAR(160),SUBSTITUTE($Y226,\"{\",CHAR(160),HN$1)),FIND(CHAR(160),SUBSTITUTE($Y226,\"}\",CHAR(160),HN$1))-FIND(CHAR(160),SUBSTITUTE($Y226,\"{\",CHAR(160),HN$1))+1),\"\")","v":""},{"$f":"IFERROR(MID($Y226,FIND(CHAR(160),SUBSTITUTE($Y226,\"{\",CHAR(160),HO$1)),FIND(CHAR(160),SUBSTITUTE($Y226,\"}\",CHAR(160),HO$1))-FIND(CHAR(160),SUBSTITUTE($Y226,\"{\",CHAR(160),HO$1))+1),\"\")","v":""},{"$f":"IFERROR(MID($Y226,FIND(CHAR(160),SUBSTITUTE($Y226,\"{\",CHAR(160),HP$1)),FIND(CHAR(160),SUBSTITUTE($Y226,\"}\",CHAR(160),HP$1))-FIND(CHAR(160),SUBSTITUTE($Y226,\"{\",CHAR(160),HP$1))+1),\"\")","v":""},{"$f":"IFERROR(MID($Y226,FIND(CHAR(160),SUBSTITUTE($Y226,\"{\",CHAR(160),HQ$1)),FIND(CHAR(160),SUBSTITUTE($Y226,\"}\",CHAR(160),HQ$1))-FIND(CHAR(160),SUBSTITUTE($Y226,\"{\",CHAR(160),HQ$1))+1),\"\")","v":""},{"$f":"IFERROR(MID($Y226,FIND(CHAR(160),SUBSTITUTE($Y226,\"{\",CHAR(160),HR$1)),FIND(CHAR(160),SUBSTITUTE($Y226,\"}\",CHAR(160),HR$1))-FIND(CHAR(160),SUBSTITUTE($Y226,\"{\",CHAR(160),HR$1))+1),\"\")","v":""},{"$f":"IFERROR(MID($Y226,FIND(CHAR(160),SUBSTITUTE($Y226,\"{\",CHAR(160),HS$1)),FIND(CHAR(160),SUBSTITUTE($Y226,\"}\",CHAR(160),HS$1))-FIND(CHAR(160),SUBSTITUTE($Y226,\"{\",CHAR(160),HS$1))+1),\"\")","v":"{Primary heating type}"},{"$f":"IFERROR(MID($Y226,FIND(CHAR(160),SUBSTITUTE($Y226,\"{\",CHAR(160),HT$1)),FIND(CHAR(160),SUBSTITUTE($Y226,\"}\",CHAR(160),HT$1))-FIND(CHAR(160),SUBSTITUTE($Y226,\"{\",CHAR(160),HT$1))+1),\"\")","v":"{Primary heating type}"},{"$f":"IFERROR(MID($Z226,FIND(CHAR(160),SUBSTITUTE($Z226,\"{\",CHAR(160),HU$1)),FIND(CHAR(160),SUBSTITUTE($Z226,\"}\",CHAR(160),HU$1))-FIND(CHAR(160),SUBSTITUTE($Z226,\"{\",CHAR(160),HU$1))+1),\"\")","v":""},{"$f":"IFERROR(MID($Z226,FIND(CHAR(160),SUBSTITUTE($Z226,\"{\",CHAR(160),HV$1)),FIND(CHAR(160),SUBSTITUTE($Z226,\"}\",CHAR(160),HV$1))-FIND(CHAR(160),SUBSTITUTE($Z226,\"{\",CHAR(160),HV$1))+1),\"\")","v":""},{"$f":"IFERROR(MID($Z226,FIND(CHAR(160),SUBSTITUTE($Z226,\"{\",CHAR(160),HW$1)),FIND(CHAR(160),SUBSTITUTE($Z226,\"}\",CHAR(160),HW$1))-FIND(CHAR(160),SUBSTITUTE($Z226,\"{\",CHAR(160),HW$1))+1),\"\")","v":""},{"$f":"IFERROR(MID($Z226,FIND(CHAR(160),SUBSTITUTE($Z226,\"{\",CHAR(160),HX$1)),FIND(CHAR(160),SUBSTITUTE($Z226,\"}\",CHAR(160),HX$1))-FIND(CHAR(160),SUBSTITUTE($Z226,\"{\",CHAR(160),HX$1))+1),\"\")","v":""},{"$f":"IFERROR(MID($Z226,FIND(CHAR(160),SUBSTITUTE($Z226,\"{\",CHAR(160),HY$1)),FIND(CHAR(160),SUBSTITUTE($Z226,\"}\",CHAR(160),HY$1))-FIND(CHAR(160),SUBSTITUTE($Z226,\"{\",CHAR(160),HY$1))+1),\"\")","v":""},{"$f":"IFERROR(MID($Z226,FIND(CHAR(160),SUBSTITUTE($Z226,\"{\",CHAR(160),HZ$1)),FIND(CHAR(160),SUBSTITUTE($Z226,\"}\",CHAR(160),HZ$1))-FIND(CHAR(160),SUBSTITUTE($Z226,\"{\",CHAR(160),HZ$1))+1),\"\")","v":""},{"$f":"IFERROR(MID($Z226,FIND(CHAR(160),SUBSTITUTE($Z226,\"{\",CHAR(160),IA$1)),FIND(CHAR(160),SUBSTITUTE($Z226,\"}\",CHAR(160),IA$1))-FIND(CHAR(160),SUBSTITUTE($Z226,\"{\",CHAR(160),IA$1))+1),\"\")","v":""},{"$f":"IFERROR(MID($Z226,FIND(CHAR(160),SUBSTITUTE($Z226,\"{\",CHAR(160),IB$1)),FIND(CHAR(160),SUBSTITUTE($Z226,\"}\",CHAR(160),IB$1))-FIND(CHAR(160),SUBSTITUTE($Z226,\"{\",CHAR(160),IB$1))+1),\"\")","v":""},{"$f":"IFERROR(MID($Z226,FIND(CHAR(160),SUBSTITUTE($Z226,\"{\",CHAR(160),IC$1)),FIND(CHAR(160),SUBSTITUTE($Z226,\"}\",CHAR(160),IC$1))-FIND(CHAR(160),SUBSTITUTE($Z226,\"{\",CHAR(160),IC$1))+1),\"\")","v":"{Primary heating type}"},{"$f":"IFERROR(MID($Z226,FIND(CHAR(160),SUBSTITUTE($Z226,\"{\",CHAR(160),ID$1)),FIND(CHAR(160),SUBSTITUTE($Z226,\"}\",CHAR(160),ID$1))-FIND(CHAR(160),SUBSTITUTE($Z226,\"{\",CHAR(160),ID$1))+1),\"\")","v":"{Primary heating type}"},{"$f":"IFERROR(MID($AA226,FIND(CHAR(160),SUBSTITUTE($AA226,\"{\",CHAR(160),IE$1)),FIND(CHAR(160),SUBSTITUTE($AA226,\"}\",CHAR(160),IE$1))-FIND(CHAR(160),SUBSTITUTE($AA226,\"{\",CHAR(160),IE$1))+1),\"\")","v":""},{"$f":"IFERROR(MID($AA226,FIND(CHAR(160),SUBSTITUTE($AA226,\"{\",CHAR(160),IF$1)),FIND(CHAR(160),SUBSTITUTE($AA226,\"}\",CHAR(160),IF$1))-FIND(CHAR(160),SUBSTITUTE($AA226,\"{\",CHAR(160),IF$1))+1),\"\")","v":""},{"$f":"IFERROR(MID($AA226,FIND(CHAR(160),SUBSTITUTE($AA226,\"{\",CHAR(160),IG$1)),FIND(CHAR(160),SUBSTITUTE($AA226,\"}\",CHAR(160),IG$1))-FIND(CHAR(160),SUBSTITUTE($AA226,\"{\",CHAR(160),IG$1))+1),\"\")","v":""},{"$f":"IFERROR(MID($AA226,FIND(CHAR(160),SUBSTITUTE($AA226,\"{\",CHAR(160),IH$1)),FIND(CHAR(160),SUBSTITUTE($AA226,\"}\",CHAR(160),IH$1))-FIND(CHAR(160),SUBSTITUTE($AA226,\"{\",CHAR(160),IH$1))+1),\"\")","v":""},{"$f":"IFERROR(MID($AA226,FIND(CHAR(160),SUBSTITUTE($AA226,\"{\",CHAR(160),II$1)),FIND(CHAR(160),SUBSTITUTE($AA226,\"}\",CHAR(160),II$1))-FIND(CHAR(160),SUBSTITUTE($AA226,\"{\",CHAR(160),II$1))+1),\"\")","v":""},{"$f":"IFERROR(MID($AA226,FIND(CHAR(160),SUBSTITUTE($AA226,\"{\",CHAR(160),IJ$1)),FIND(CHAR(160),SUBSTITUTE($AA226,\"}\",CHAR(160),IJ$1))-FIND(CHAR(160),SUBSTITUTE($AA226,\"{\",CHAR(160),IJ$1))+1),\"\")","v":""},{"$f":"IFERROR(MID($AA226,FIND(CHAR(160),SUBSTITUTE($AA226,\"{\",CHAR(160),IK$1)),FIND(CHAR(160),SUBSTITUTE($AA226,\"}\",CHAR(160),IK$1))-FIND(CHAR(160),SUBSTITUTE($AA226,\"{\",CHAR(160),IK$1))+1),\"\")","v":""},{"$f":"IFERROR(MID($AA226,FIND(CHAR(160),SUBSTITUTE($AA226,\"{\",CHAR(160),IL$1)),FIND(CHAR(160),SUBSTITUTE($AA226,\"}\",CHAR(160),IL$1))-FIND(CHAR(160),SUBSTITUTE($AA226,\"{\",CHAR(160),IL$1))+1),\"\")","v":""},{"$f":"IFERROR(MID($AA226,FIND(CHAR(160),SUBSTITUTE($AA226,\"{\",CHAR(160),IM$1)),FIND(CHAR(160),SUBSTITUTE($AA226,\"}\",CHAR(160),IM$1))-FIND(CHAR(160),SUBSTITUTE($AA226,\"{\",CHAR(160),IM$1))+1),\"\")","v":"{Primary heating type}"},{"$f":"IFERROR(MID($AA226,FIND(CHAR(160),SUBSTITUTE($AA226,\"{\",CHAR(160),IN$1)),FIND(CHAR(160),SUBSTITUTE($AA226,\"}\",CHAR(160),IN$1))-FIND(CHAR(160),SUBSTITUTE($AA226,\"{\",CHAR(160),IN$1))+1),\"\")","v":"{Primary heating type}"},{"$f":"IFERROR(MID($AB226,FIND(CHAR(160),SUBSTITUTE($AB226,\"{\",CHAR(160),IO$1)),FIND(CHAR(160),SUBSTITUTE($AB226,\"}\",CHAR(160),IO$1))-FIND(CHAR(160),SUBSTITUTE($AB226,\"{\",CHAR(160),IO$1))+1),\"\")","v":""},{"$f":"IFERROR(MID($AB226,FIND(CHAR(160),SUBSTITUTE($AB226,\"{\",CHAR(160),IP$1)),FIND(CHAR(160),SUBSTITUTE($AB226,\"}\",CHAR(160),IP$1))-FIND(CHAR(160),SUBSTITUTE($AB226,\"{\",CHAR(160),IP$1))+1),\"\")","v":""},{"$f":"IFERROR(MID($AB226,FIND(CHAR(160),SUBSTITUTE($AB226,\"{\",CHAR(160),IQ$1)),FIND(CHAR(160),SUBSTITUTE($AB226,\"}\",CHAR(160),IQ$1))-FIND(CHAR(160),SUBSTITUTE($AB226,\"{\",CHAR(160),IQ$1))+1),\"\")","v":""},{"$f":"IFERROR(MID($AB226,FIND(CHAR(160),SUBSTITUTE($AB226,\"{\",CHAR(160),IR$1)),FIND(CHAR(160),SUBSTITUTE($AB226,\"}\",CHAR(160),IR$1))-FIND(CHAR(160),SUBSTITUTE($AB226,\"{\",CHAR(160),IR$1))+1),\"\")","v":""},{"$f":"IFERROR(MID($AB226,FIND(CHAR(160),SUBSTITUTE($AB226,\"{\",CHAR(160),IS$1)),FIND(CHAR(160),SUBSTITUTE($AB226,\"}\",CHAR(160),IS$1))-FIND(CHAR(160),SUBSTITUTE($AB226,\"{\",CHAR(160),IS$1))+1),\"\")","v":""},{"$f":"IFERROR(MID($AB226,FIND(CHAR(160),SUBSTITUTE($AB226,\"{\",CHAR(160),IT$1)),FIND(CHAR(160),SUBSTITUTE($AB226,\"}\",CHAR(160),IT$1))-FIND(CHAR(160),SUBSTITUTE($AB226,\"{\",CHAR(160),IT$1))+1),\"\")","v":""},{"$f":"IFERROR(MID($AB226,FIND(CHAR(160),SUBSTITUTE($AB226,\"{\",CHAR(160),IU$1)),FIND(CHAR(160),SUBSTITUTE($AB226,\"}\",CHAR(160),IU$1))-FIND(CHAR(160),SUBSTITUTE($AB226,\"{\",CHAR(160),IU$1))+1),\"\")","v":""},{"$f":"IFERROR(MID($AB226,FIND(CHAR(160),SUBSTITUTE($AB226,\"{\",CHAR(160),IV$1)),FIND(CHAR(160),SUBSTITUTE($AB226,\"}\",CHAR(160),IV$1))-FIND(CHAR(160),SUBSTITUTE($AB226,\"{\",CHAR(160),IV$1))+1),\"\")","v":""},{"$f":"IFERROR(MID($AB226,FIND(CHAR(160),SUBSTITUTE($AB226,\"{\",CHAR(160),IW$1)),FIND(CHAR(160),SUBSTITUTE($AB226,\"}\",CHAR(160),IW$1))-FIND(CHAR(160),SUBSTITUTE($AB226,\"{\",CHAR(160),IW$1))+1),\"\")","v":""},{"$f":"IFERROR(MID($AB226,FIND(CHAR(160),SUBSTITUTE($AB226,\"{\",CHAR(160),IX$1)),FIND(CHAR(160),SUBSTITUTE($AB226,\"}\",CHAR(160),IX$1))-FIND(CHAR(160),SUBSTITUTE($AB226,\"{\",CHAR(160),IX$1))+1),\"\")","v":""},null,{"$f":"10-COUNTIF(DU226:ED226,\"\")","v":3}]
["Low Income Direct Mailing","LED Low Income Standard Bulb Short Life","LILEDSTANS","2021-07-01","2022-06-30","Per Measure",2.5,0,"Per Measure",2.5,0,"2021-07-01","2022-06-30","Calculated","{Measure:Quantity}*if({Wattage}>13,42,26)",null,null,"{Measure:Quantity}*if({Wattage}>13,0.058,0.036)",null,null,"{Measure:Quantity}*if({Wattage}>13,0.009,0.006)","{Measure:Quantity}*if({Wattage}>13,0.004,0.003)","{Measure:Quantity}*if({Wattage}>13,-0.005,-0.003)","{Measure:Quantity}*if({Wattage}>13,-0.004,-0.003)","{Measure:Quantity}*if({Wattage}>13,-0.035,-0.022)","{Measure:Quantity}*if({Wattage}>13,-0.001,-0.001)","{Measure:Quantity}*if({Wattage}>13,-0.007,-0.005)",null,"2021-07-01","2022-06-30",3,0.17199999999999999,7.2999999999999995E-2,0.34899999999999998,0.33500000000000002,0.155,0.161,0.77,1,1,0,0,null,{"$f":"DU227","v":"{Measure:Quantity}"},1,{"$f":"DV227","v":"{Wattage}"},9,{"$f":"DW227","v":""},null,{"$f":"DX227","v":""},null,{"$f":"DY227","v":""},null,{"$f":"DZ227","v":""},null,{"$f":"EA227","v":""},null,{"$f":"EB227","v":""},null,{"$f":"EC227","v":""},null,{"$f":"ED227","v":""},null,{"$f":"AS227*IF(AU227>13,42,26)","v":26},0,0,{"$f":"AS227*IF(AU227>13,0.058,0.036)","v":3.5999999999999997E-2},0,0,{"$f":"AS227*IF(AU227>13,0.009,0.006)","v":6.0000000000000001E-3},{"$f":"AS227*IF(AU227>13,0.004,0.003)","v":3.0000000000000001E-3},{"$f":"AS227*IF(AU227>13,-0.005,-0.003)","v":-3.0000000000000001E-3},{"$f":"AS227*IF(AU227>13,-0.004,-0.003)","v":-3.0000000000000001E-3},{"$f":"AS227*IF(AU227>13,-0.035,-0.022)","v":-2.1999999999999999E-2},{"$f":"AS227*IF(AU227>13,-0.001,-0.001)","v":-1E-3},{"$f":"AS227*IF(AU227>13,-0.007,-0.005)","v":-5.0000000000000001E-3},0,null,"Res","Default DR",{"$f":"Benefits(BL227,BR227,BS227,BT227,BU227,BV227,BW227,BX227,BY227,BZ227,AE227,AH227,AI227,AJ227,AK227,AL227,AM227,AN227,AO227,AP227,CA227,CB227)","v":7.0137108153147958},5.1047136842770087,-1.1997321744538107E-2,-1.6468106038623445,-8.5413391341473771E-2,-0.31264763381232114,-0.20501871264757987,0,0,{"$f":"SUMPRODUCT(CC227:CK227,--(CC227:CK227>0))","v":12.118424499591804},{"$f":"-SUMPRODUCT(CC227:CK227,--(CC227:CK227<0))","v":2.2618876634082574},null,{"$f":"2.5","v":2.5},null,null,{"$f":"CM227+CO227","v":4.7618876634082579},{"$f":"IF(NetOrGross=\"Net\",(1-AO227+AP227),1)","v":1},{"$f":"(SUMPRODUCT(CC227:CJ227,--(CC227:CJ227>0))+CN227)*CS227/((-SUMPRODUCT(CC227:CJ227,--(CC227:CJ227<0))+MAX(CO227,CV227)+CP227+CQ227)*CS227+IF(FRIncentives=\"Yes\",CV227*(1-CS227),0))","v":2.5448782827686873},1,{"$f":"2.5","v":2.5},null,"Electric","y",null,{"$f":"IF(F227=\"Manual Entry\",\"Manual\",IF(G227=\"\",0,\"X=\"&SUBSTITUTE(SUBSTITUTE(SUBSTITUTE(SUBSTITUTE(SUBSTITUTE(SUBSTITUTE(SUBSTITUTE(SUBSTITUTE(SUBSTITUTE(SUBSTITUTE(SUBSTITUTE(SUBSTITUTE(G227,$ED227,$ED$2&ROW($ED227)),$EC227,$EC$2&ROW($EC227)),$EB227,$EB$2&ROW($EB227)),$EA227,$EA$2&ROW($EA227)),$DZ227,$DZ$2&ROW($DZ227)),$DY227,$DY$2&ROW($DY227)),$DX227,$DX$2&ROW($DX227)),$DW227,$DW$2&ROW($DW227)),$DV227,$DV$2&ROW($DV227)),$DU227,$DU$2&ROW($DU227)),$DT227,$DT$2&ROW($DT227)),$DS227,$DS$2&ROW($DS227))))","v":"X=2.5"},{"$f":"IF(I227=\"Manual Entry\",\"Manual\",IF(J227=\"\",0,\"X=\"&SUBSTITUTE(SUBSTITUTE(SUBSTITUTE(SUBSTITUTE(SUBSTITUTE(SUBSTITUTE(SUBSTITUTE(SUBSTITUTE(SUBSTITUTE(SUBSTITUTE(SUBSTITUTE(SUBSTITUTE(J227,$ED227,$ED$2&ROW($ED227)),$EC227,$EC$2&ROW($EC227)),$EB227,$EB$2&ROW($EB227)),$EA227,$EA$2&ROW($EA227)),$DZ227,$DZ$2&ROW($DZ227)),$DY227,$DY$2&ROW($DY227)),$DX227,$DX$2&ROW($DX227)),$DW227,$DW$2&ROW($DW227)),$DV227,$DV$2&ROW($DV227)),$DU227,$DU$2&ROW($DU227)),$DT227,$DT$2&ROW($DT227)),$DS227,$DS$2&ROW($DS227))))","v":"X=2.5"},{"$f":"IF(O227=\"\",0,\"X=\"&SUBSTITUTE(SUBSTITUTE(SUBSTITUTE(SUBSTITUTE(SUBSTITUTE(SUBSTITUTE(SUBSTITUTE(SUBSTITUTE(SUBSTITUTE(SUBSTITUTE(SUBSTITUTE(SUBSTITUTE(O227,$ED227,$ED$2&ROW($ED227)),$EC227,$EC$2&ROW($EC227)),$EB227,$EB$2&ROW($EB227)),$EA227,$EA$2&ROW($EA227)),$DZ227,$DZ$2&ROW($DZ227)),$DY227,$DY$2&ROW($DY227)),$DX227,$DX$2&ROW($DX227)),$DW227,$DW$2&ROW($DW227)),$DV227,$DV$2&ROW($DV227)),$DU227,$DU$2&ROW($DU227)),$DT227,$DT$2&ROW($DT227)),$DS227,$DS$2&ROW($DS227)))","v":"X=AS227*if(AU227>13,42,26)"},{"$f":"IF(P227=\"\",0,\"X=\"&SUBSTITUTE(SUBSTITUTE(SUBSTITUTE(SUBSTITUTE(SUBSTITUTE(SUBSTITUTE(SUBSTITUTE(SUBSTITUTE(SUBSTITUTE(SUBSTITUTE(SUBSTITUTE(SUBSTITUTE(P227,$ED227,$ED$2&ROW($ED227)),$EC227,$EC$2&ROW($EC227)),$EB227,$EB$2&ROW($EB227)),$EA227,$EA$2&ROW($EA227)),$DZ227,$DZ$2&ROW($DZ227)),$DY227,$DY$2&ROW($DY227)),$DX227,$DX$2&ROW($DX227)),$DW227,$DW$2&ROW($DW227)),$DV227,$DV$2&ROW($DV227)),$DU227,$DU$2&ROW($DU227)),$DT227,$DT$2&ROW($DT227)),$DS227,$DS$2&ROW($DS227)))","v":0},{"$f":"IF(Q227=\"\",0,\"X=\"&SUBSTITUTE(SUBSTITUTE(SUBSTITUTE(SUBSTITUTE(SUBSTITUTE(SUBSTITUTE(SUBSTITUTE(SUBSTITUTE(SUBSTITUTE(SUBSTITUTE(SUBSTITUTE(SUBSTITUTE(Q227,$ED227,$ED$2&ROW($ED227)),$EC227,$EC$2&ROW($EC227)),$EB227,$EB$2&ROW($EB227)),$EA227,$EA$2&ROW($EA227)),$DZ227,$DZ$2&ROW($DZ227)),$DY227,$DY$2&ROW($DY227)),$DX227,$DX$2&ROW($DX227)),$DW227,$DW$2&ROW($DW227)),$DV227,$DV$2&ROW($DV227)),$DU227,$DU$2&ROW($DU227)),$DT227,$DT$2&ROW($DT227)),$DS227,$DS$2&ROW($DS227)))","v":0},{"$f":"IF(R227=\"\",0,\"X=\"&SUBSTITUTE(SUBSTITUTE(SUBSTITUTE(SUBSTITUTE(SUBSTITUTE(SUBSTITUTE(SUBSTITUTE(SUBSTITUTE(SUBSTITUTE(SUBSTITUTE(SUBSTITUTE(SUBSTITUTE(R227,$ED227,$ED$2&ROW($ED227)),$EC227,$EC$2&ROW($EC227)),$EB227,$EB$2&ROW($EB227)),$EA227,$EA$2&ROW($EA227)),$DZ227,$DZ$2&ROW($DZ227)),$DY227,$DY$2&ROW($DY227)),$DX227,$DX$2&ROW($DX227)),$DW227,$DW$2&ROW($DW227)),$DV227,$DV$2&ROW($DV227)),$DU227,$DU$2&ROW($DU227)),$DT227,$DT$2&ROW($DT227)),$DS227,$DS$2&ROW($DS227)))","v":"X=AS227*if(AU227>13,0.058,0.036)"},{"$f":"IF(S227=\"\",0,\"X=\"&SUBSTITUTE(SUBSTITUTE(SUBSTITUTE(SUBSTITUTE(SUBSTITUTE(SUBSTITUTE(SUBSTITUTE(SUBSTITUTE(SUBSTITUTE(SUBSTITUTE(SUBSTITUTE(SUBSTITUTE(S227,$ED227,$ED$2&ROW($ED227)),$EC227,$EC$2&ROW($EC227)),$EB227,$EB$2&ROW($EB227)),$EA227,$EA$2&ROW($EA227)),$DZ227,$DZ$2&ROW($DZ227)),$DY227,$DY$2&ROW($DY227)),$DX227,$DX$2&ROW($DX227)),$DW227,$DW$2&ROW($DW227)),$DV227,$DV$2&ROW($DV227)),$DU227,$DU$2&ROW($DU227)),$DT227,$DT$2&ROW($DT227)),$DS227,$DS$2&ROW($DS227)))","v":0},{"$f":"IF(T227=\"\",0,\"X=\"&SUBSTITUTE(SUBSTITUTE(SUBSTITUTE(SUBSTITUTE(SUBSTITUTE(SUBSTITUTE(SUBSTITUTE(SUBSTITUTE(SUBSTITUTE(SUBSTITUTE(SUBSTITUTE(SUBSTITUTE(T227,$ED227,$ED$2&ROW($ED227)),$EC227,$EC$2&ROW($EC227)),$EB227,$EB$2&ROW($EB227)),$EA227,$EA$2&ROW($EA227)),$DZ227,$DZ$2&ROW($DZ227)),$DY227,$DY$2&ROW($DY227)),$DX227,$DX$2&ROW($DX227)),$DW227,$DW$2&ROW($DW227)),$DV227,$DV$2&ROW($DV227)),$DU227,$DU$2&ROW($DU227)),$DT227,$DT$2&ROW($DT227)),$DS227,$DS$2&ROW($DS227)))","v":0},{"$f":"IF(U227=\"\",0,\"X=\"&SUBSTITUTE(SUBSTITUTE(SUBSTITUTE(SUBSTITUTE(SUBSTITUTE(SUBSTITUTE(SUBSTITUTE(SUBSTITUTE(SUBSTITUTE(SUBSTITUTE(SUBSTITUTE(SUBSTITUTE(U227,$ED227,$ED$2&ROW($ED227)),$EC227,$EC$2&ROW($EC227)),$EB227,$EB$2&ROW($EB227)),$EA227,$EA$2&ROW($EA227)),$DZ227,$DZ$2&ROW($DZ227)),$DY227,$DY$2&ROW($DY227)),$DX227,$DX$2&ROW($DX227)),$DW227,$DW$2&ROW($DW227)),$DV227,$DV$2&ROW($DV227)),$DU227,$DU$2&ROW($DU227)),$DT227,$DT$2&ROW($DT227)),$DS227,$DS$2&ROW($DS227)))","v":"X=AS227*if(AU227>13,0.009,0.006)"},{"$f":"IF(V227=\"\",0,\"X=\"&SUBSTITUTE(SUBSTITUTE(SUBSTITUTE(SUBSTITUTE(SUBSTITUTE(SUBSTITUTE(SUBSTITUTE(SUBSTITUTE(SUBSTITUTE(SUBSTITUTE(SUBSTITUTE(SUBSTITUTE(V227,$ED227,$ED$2&ROW($ED227)),$EC227,$EC$2&ROW($EC227)),$EB227,$EB$2&ROW($EB227)),$EA227,$EA$2&ROW($EA227)),$DZ227,$DZ$2&ROW($DZ227)),$DY227,$DY$2&ROW($DY227)),$DX227,$DX$2&ROW($DX227)),$DW227,$DW$2&ROW($DW227)),$DV227,$DV$2&ROW($DV227)),$DU227,$DU$2&ROW($DU227)),$DT227,$DT$2&ROW($DT227)),$DS227,$DS$2&ROW($DS227)))","v":"X=AS227*if(AU227>13,0.004,0.003)"},{"$f":"IF(W227=\"\",0,\"X=\"&SUBSTITUTE(SUBSTITUTE(SUBSTITUTE(SUBSTITUTE(SUBSTITUTE(SUBSTITUTE(SUBSTITUTE(SUBSTITUTE(SUBSTITUTE(SUBSTITUTE(SUBSTITUTE(SUBSTITUTE(W227,$ED227,$ED$2&ROW($ED227)),$EC227,$EC$2&ROW($EC227)),$EB227,$EB$2&ROW($EB227)),$EA227,$EA$2&ROW($EA227)),$DZ227,$DZ$2&ROW($DZ227)),$DY227,$DY$2&ROW($DY227)),$DX227,$DX$2&ROW($DX227)),$DW227,$DW$2&ROW($DW227)),$DV227,$DV$2&ROW($DV227)),$DU227,$DU$2&ROW($DU227)),$DT227,$DT$2&ROW($DT227)),$DS227,$DS$2&ROW($DS227)))","v":"X=AS227*if(AU227>13,-0.005,-0.003)"},{"$f":"IF(X227=\"\",0,\"X=\"&SUBSTITUTE(SUBSTITUTE(SUBSTITUTE(SUBSTITUTE(SUBSTITUTE(SUBSTITUTE(SUBSTITUTE(SUBSTITUTE(SUBSTITUTE(SUBSTITUTE(SUBSTITUTE(SUBSTITUTE(X227,$ED227,$ED$2&ROW($ED227)),$EC227,$EC$2&ROW($EC227)),$EB227,$EB$2&ROW($EB227)),$EA227,$EA$2&ROW($EA227)),$DZ227,$DZ$2&ROW($DZ227)),$DY227,$DY$2&ROW($DY227)),$DX227,$DX$2&ROW($DX227)),$DW227,$DW$2&ROW($DW227)),$DV227,$DV$2&ROW($DV227)),$DU227,$DU$2&ROW($DU227)),$DT227,$DT$2&ROW($DT227)),$DS227,$DS$2&ROW($DS227)))","v":"X=AS227*if(AU227>13,-0.004,-0.003)"},{"$f":"IF(Y227=\"\",0,\"X=\"&SUBSTITUTE(SUBSTITUTE(SUBSTITUTE(SUBSTITUTE(SUBSTITUTE(SUBSTITUTE(SUBSTITUTE(SUBSTITUTE(SUBSTITUTE(SUBSTITUTE(SUBSTITUTE(SUBSTITUTE(Y227,$ED227,$ED$2&ROW($ED227)),$EC227,$EC$2&ROW($EC227)),$EB227,$EB$2&ROW($EB227)),$EA227,$EA$2&ROW($EA227)),$DZ227,$DZ$2&ROW($DZ227)),$DY227,$DY$2&ROW($DY227)),$DX227,$DX$2&ROW($DX227)),$DW227,$DW$2&ROW($DW227)),$DV227,$DV$2&ROW($DV227)),$DU227,$DU$2&ROW($DU227)),$DT227,$DT$2&ROW($DT227)),$DS227,$DS$2&ROW($DS227)))","v":"X=AS227*if(AU227>13,-0.035,-0.022)"},{"$f":"IF(Z227=\"\",0,\"X=\"&SUBSTITUTE(SUBSTITUTE(SUBSTITUTE(SUBSTITUTE(SUBSTITUTE(SUBSTITUTE(SUBSTITUTE(SUBSTITUTE(SUBSTITUTE(SUBSTITUTE(SUBSTITUTE(SUBSTITUTE(Z227,$ED227,$ED$2&ROW($ED227)),$EC227,$EC$2&ROW($EC227)),$EB227,$EB$2&ROW($EB227)),$EA227,$EA$2&ROW($EA227)),$DZ227,$DZ$2&ROW($DZ227)),$DY227,$DY$2&ROW($DY227)),$DX227,$DX$2&ROW($DX227)),$DW227,$DW$2&ROW($DW227)),$DV227,$DV$2&ROW($DV227)),$DU227,$DU$2&ROW($DU227)),$DT227,$DT$2&ROW($DT227)),$DS227,$DS$2&ROW($DS227)))","v":"X=AS227*if(AU227>13,-0.001,-0.001)"},{"$f":"IF(AA227=\"\",0,\"X=\"&SUBSTITUTE(SUBSTITUTE(SUBSTITUTE(SUBSTITUTE(SUBSTITUTE(SUBSTITUTE(SUBSTITUTE(SUBSTITUTE(SUBSTITUTE(SUBSTITUTE(SUBSTITUTE(SUBSTITUTE(AA227,$ED227,$ED$2&ROW($ED227)),$EC227,$EC$2&ROW($EC227)),$EB227,$EB$2&ROW($EB227)),$EA227,$EA$2&ROW($EA227)),$DZ227,$DZ$2&ROW($DZ227)),$DY227,$DY$2&ROW($DY227)),$DX227,$DX$2&ROW($DX227)),$DW227,$DW$2&ROW($DW227)),$DV227,$DV$2&ROW($DV227)),$DU227,$DU$2&ROW($DU227)),$DT227,$DT$2&ROW($DT227)),$DS227,$DS$2&ROW($DS227)))","v":"X=AS227*if(AU227>13,-0.007,-0.005)"},{"$f":"IF(AB227=\"\",0,\"X=\"&SUBSTITUTE(SUBSTITUTE(SUBSTITUTE(SUBSTITUTE(SUBSTITUTE(SUBSTITUTE(SUBSTITUTE(SUBSTITUTE(SUBSTITUTE(SUBSTITUTE(SUBSTITUTE(SUBSTITUTE(AB227,$ED227,$ED$2&ROW($ED227)),$EC227,$EC$2&ROW($EC227)),$EB227,$EB$2&ROW($EB227)),$EA227,$EA$2&ROW($EA227)),$DZ227,$DZ$2&ROW($DZ227)),$DY227,$DY$2&ROW($DY227)),$DX227,$DX$2&ROW($DX227)),$DW227,$DW$2&ROW($DW227)),$DV227,$DV$2&ROW($DV227)),$DU227,$DU$2&ROW($DU227)),$DT227,$DT$2&ROW($DT227)),$DS227,$DS$2&ROW($DS227)))","v":0},null,null,"{Factor:WinterCF}","{Factor:SummerCF}",{"$f":"IFERROR(INDEX($EG227:$IV227,MATCH(0,COUNTIF($DR227:DT227,$EG227:$IV227),0)),\"\")","v":"{Measure:Quantity}"},{"$f":"IFERROR(INDEX($EG227:$IV227,MATCH(0,COUNTIF($DR227:DU227,$EG227:$IV227),0)),\"\")","v":"{Wattage}"},{"$f":"IFERROR(INDEX($EG227:$IV227,MATCH(0,COUNTIF($DR227:DV227,$EG227:$IV227),0)),\"\")","v":""},{"$f":"IFERROR(INDEX($EG227:$IV227,MATCH(0,COUNTIF($DR227:DW227,$EG227:$IV227),0)),\"\")","v":""},{"$f":"IFERROR(INDEX($EG227:$IV227,MATCH(0,COUNTIF($DR227:DX227,$EG227:$IV227),0)),\"\")","v":""},{"$f":"IFERROR(INDEX($EG227:$IV227,MATCH(0,COUNTIF($DR227:DY227,$EG227:$IV227),0)),\"\")","v":""},{"$f":"IFERROR(INDEX($EG227:$IV227,MATCH(0,COUNTIF($DR227:DZ227,$EG227:$IV227),0)),\"\")","v":""},{"$f":"IFERROR(INDEX($EG227:$IV227,MATCH(0,COUNTIF($DR227:EA227,$EG227:$IV227),0)),\"\")","v":""},{"$f":"IFERROR(INDEX($EG227:$IV227,MATCH(0,COUNTIF($DR227:EB227,$EG227:$IV227),0)),\"\")","v":""},{"$f":"IFERROR(INDEX($EG227:$IV227,MATCH(0,COUNTIF($DR227:EC227,$EG227:$IV227),0)),\"\")","v":""},null,null,{"$f":"IFERROR(MID($G227,FIND(CHAR(160),SUBSTITUTE($G227,\"{\",CHAR(160),EG$1)),FIND(CHAR(160),SUBSTITUTE($G227,\"}\",CHAR(160),EG$1))-FIND(CHAR(160),SUBSTITUTE($G227,\"{\",CHAR(160),EG$1))+1),\"\")","v":""},{"$f":"IFERROR(MID($G227,FIND(CHAR(160),SUBSTITUTE($G227,\"{\",CHAR(160),EH$1)),FIND(CHAR(160),SUBSTITUTE($G227,\"}\",CHAR(160),EH$1))-FIND(CHAR(160),SUBSTITUTE($G227,\"{\",CHAR(160),EH$1))+1),\"\")","v":""},{"$f":"IFERROR(MID($G227,FIND(CHAR(160),SUBSTITUTE($G227,\"{\",CHAR(160),EI$1)),FIND(CHAR(160),SUBSTITUTE($G227,\"}\",CHAR(160),EI$1))-FIND(CHAR(160),SUBSTITUTE($G227,\"{\",CHAR(160),EI$1))+1),\"\")","v":""},{"$f":"IFERROR(MID($G227,FIND(CHAR(160),SUBSTITUTE($G227,\"{\",CHAR(160),EJ$1)),FIND(CHAR(160),SUBSTITUTE($G227,\"}\",CHAR(160),EJ$1))-FIND(CHAR(160),SUBSTITUTE($G227,\"{\",CHAR(160),EJ$1))+1),\"\")","v":""},{"$f":"IFERROR(MID($G227,FIND(CHAR(160),SUBSTITUTE($G227,\"{\",CHAR(160),EK$1)),FIND(CHAR(160),SUBSTITUTE($G227,\"}\",CHAR(160),EK$1))-FIND(CHAR(160),SUBSTITUTE($G227,\"{\",CHAR(160),EK$1))+1),\"\")","v":""},{"$f":"IFERROR(MID($G227,FIND(CHAR(160),SUBSTITUTE($G227,\"{\",CHAR(160),EL$1)),FIND(CHAR(160),SUBSTITUTE($G227,\"}\",CHAR(160),EL$1))-FIND(CHAR(160),SUBSTITUTE($G227,\"{\",CHAR(160),EL$1))+1),\"\")","v":""},{"$f":"IFERROR(MID($G227,FIND(CHAR(160),SUBSTITUTE($G227,\"{\",CHAR(160),EM$1)),FIND(CHAR(160),SUBSTITUTE($G227,\"}\",CHAR(160),EM$1))-FIND(CHAR(160),SUBSTITUTE($G227,\"{\",CHAR(160),EM$1))+1),\"\")","v":""},{"$f":"IFERROR(MID($G227,FIND(CHAR(160),SUBSTITUTE($G227,\"{\",CHAR(160),EN$1)),FIND(CHAR(160),SUBSTITUTE($G227,\"}\",CHAR(160),EN$1))-FIND(CHAR(160),SUBSTITUTE($G227,\"{\",CHAR(160),EN$1))+1),\"\")","v":""},{"$f":"IFERROR(MID($G227,FIND(CHAR(160),SUBSTITUTE($G227,\"{\",CHAR(160),EO$1)),FIND(CHAR(160),SUBSTITUTE($G227,\"}\",CHAR(160),EO$1))-FIND(CHAR(160),SUBSTITUTE($G227,\"{\",CHAR(160),EO$1))+1),\"\")","v":""},{"$f":"IFERROR(MID($G227,FIND(CHAR(160),SUBSTITUTE($G227,\"{\",CHAR(160),EP$1)),FIND(CHAR(160),SUBSTITUTE($G227,\"}\",CHAR(160),EP$1))-FIND(CHAR(160),SUBSTITUTE($G227,\"{\",CHAR(160),EP$1))+1),\"\")","v":""},{"$f":"IFERROR(MID($J227,FIND(CHAR(160),SUBSTITUTE($J227,\"{\",CHAR(160),EQ$1)),FIND(CHAR(160),SUBSTITUTE($J227,\"}\",CHAR(160),EQ$1))-FIND(CHAR(160),SUBSTITUTE($J227,\"{\",CHAR(160),EQ$1))+1),\"\")","v":""},{"$f":"IFERROR(MID($J227,FIND(CHAR(160),SUBSTITUTE($J227,\"{\",CHAR(160),ER$1)),FIND(CHAR(160),SUBSTITUTE($J227,\"}\",CHAR(160),ER$1))-FIND(CHAR(160),SUBSTITUTE($J227,\"{\",CHAR(160),ER$1))+1),\"\")","v":""},{"$f":"IFERROR(MID($J227,FIND(CHAR(160),SUBSTITUTE($J227,\"{\",CHAR(160),ES$1)),FIND(CHAR(160),SUBSTITUTE($J227,\"}\",CHAR(160),ES$1))-FIND(CHAR(160),SUBSTITUTE($J227,\"{\",CHAR(160),ES$1))+1),\"\")","v":""},{"$f":"IFERROR(MID($J227,FIND(CHAR(160),SUBSTITUTE($J227,\"{\",CHAR(160),ET$1)),FIND(CHAR(160),SUBSTITUTE($J227,\"}\",CHAR(160),ET$1))-FIND(CHAR(160),SUBSTITUTE($J227,\"{\",CHAR(160),ET$1))+1),\"\")","v":""},{"$f":"IFERROR(MID($J227,FIND(CHAR(160),SUBSTITUTE($J227,\"{\",CHAR(160),EU$1)),FIND(CHAR(160),SUBSTITUTE($J227,\"}\",CHAR(160),EU$1))-FIND(CHAR(160),SUBSTITUTE($J227,\"{\",CHAR(160),EU$1))+1),\"\")","v":""},{"$f":"IFERROR(MID($J227,FIND(CHAR(160),SUBSTITUTE($J227,\"{\",CHAR(160),EV$1)),FIND(CHAR(160),SUBSTITUTE($J227,\"}\",CHAR(160),EV$1))-FIND(CHAR(160),SUBSTITUTE($J227,\"{\",CHAR(160),EV$1))+1),\"\")","v":""},{"$f":"IFERROR(MID($J227,FIND(CHAR(160),SUBSTITUTE($J227,\"{\",CHAR(160),EW$1)),FIND(CHAR(160),SUBSTITUTE($J227,\"}\",CHAR(160),EW$1))-FIND(CHAR(160),SUBSTITUTE($J227,\"{\",CHAR(160),EW$1))+1),\"\")","v":""},{"$f":"IFERROR(MID($J227,FIND(CHAR(160),SUBSTITUTE($J227,\"{\",CHAR(160),EX$1)),FIND(CHAR(160),SUBSTITUTE($J227,\"}\",CHAR(160),EX$1))-FIND(CHAR(160),SUBSTITUTE($J227,\"{\",CHAR(160),EX$1))+1),\"\")","v":""},{"$f":"IFERROR(MID($J227,FIND(CHAR(160),SUBSTITUTE($J227,\"{\",CHAR(160),EY$1)),FIND(CHAR(160),SUBSTITUTE($J227,\"}\",CHAR(160),EY$1))-FIND(CHAR(160),SUBSTITUTE($J227,\"{\",CHAR(160),EY$1))+1),\"\")","v":""},{"$f":"IFERROR(MID($J227,FIND(CHAR(160),SUBSTITUTE($J227,\"{\",CHAR(160),EZ$1)),FIND(CHAR(160),SUBSTITUTE($J227,\"}\",CHAR(160),EZ$1))-FIND(CHAR(160),SUBSTITUTE($J227,\"{\",CHAR(160),EZ$1))+1),\"\")","v":""},{"$f":"IFERROR(MID($J227,FIND(CHAR(160),SUBSTITUTE($J227,\"{\",CHAR(160),FA$1)),FIND(CHAR(160),SUBSTITUTE($J227,\"}\",CHAR(160),FA$1))-FIND(CHAR(160),SUBSTITUTE($J227,\"{\",CHAR(160),FA$1))+1),\"\")","v":""},{"$f":"IFERROR(MID($J227,FIND(CHAR(160),SUBSTITUTE($J227,\"{\",CHAR(160),FB$1)),FIND(CHAR(160),SUBSTITUTE($J227,\"}\",CHAR(160),FB$1))-FIND(CHAR(160),SUBSTITUTE($J227,\"{\",CHAR(160),FB$1))+1),\"\")","v":""},{"$f":"IFERROR(MID($O227,FIND(CHAR(160),SUBSTITUTE($O227,\"{\",CHAR(160),FC$1)),FIND(CHAR(160),SUBSTITUTE($O227,\"}\",CHAR(160),FC$1))-FIND(CHAR(160),SUBSTITUTE($O227,\"{\",CHAR(160),FC$1))+1),\"\")","v":""},{"$f":"IFERROR(MID($O227,FIND(CHAR(160),SUBSTITUTE($O227,\"{\",CHAR(160),FD$1)),FIND(CHAR(160),SUBSTITUTE($O227,\"}\",CHAR(160),FD$1))-FIND(CHAR(160),SUBSTITUTE($O227,\"{\",CHAR(160),FD$1))+1),\"\")","v":""},{"$f":"IFERROR(MID($O227,FIND(CHAR(160),SUBSTITUTE($O227,\"{\",CHAR(160),FE$1)),FIND(CHAR(160),SUBSTITUTE($O227,\"}\",CHAR(160),FE$1))-FIND(CHAR(160),SUBSTITUTE($O227,\"{\",CHAR(160),FE$1))+1),\"\")","v":""},{"$f":"IFERROR(MID($O227,FIND(CHAR(160),SUBSTITUTE($O227,\"{\",CHAR(160),FF$1)),FIND(CHAR(160),SUBSTITUTE($O227,\"}\",CHAR(160),FF$1))-FIND(CHAR(160),SUBSTITUTE($O227,\"{\",CHAR(160),FF$1))+1),\"\")","v":""},{"$f":"IFERROR(MID($O227,FIND(CHAR(160),SUBSTITUTE($O227,\"{\",CHAR(160),FG$1)),FIND(CHAR(160),SUBSTITUTE($O227,\"}\",CHAR(160),FG$1))-FIND(CHAR(160),SUBSTITUTE($O227,\"{\",CHAR(160),FG$1))+1),\"\")","v":""},{"$f":"IFERROR(MID($O227,FIND(CHAR(160),SUBSTITUTE($O227,\"{\",CHAR(160),FH$1)),FIND(CHAR(160),SUBSTITUTE($O227,\"}\",CHAR(160),FH$1))-FIND(CHAR(160),SUBSTITUTE($O227,\"{\",CHAR(160),FH$1))+1),\"\")","v":""},{"$f":"IFERROR(MID($O227,FIND(CHAR(160),SUBSTITUTE($O227,\"{\",CHAR(160),FI$1)),FIND(CHAR(160),SUBSTITUTE($O227,\"}\",CHAR(160),FI$1))-FIND(CHAR(160),SUBSTITUTE($O227,\"{\",CHAR(160),FI$1))+1),\"\")","v":""},{"$f":"IFERROR(MID($O227,FIND(CHAR(160),SUBSTITUTE($O227,\"{\",CHAR(160),FJ$1)),FIND(CHAR(160),SUBSTITUTE($O227,\"}\",CHAR(160),FJ$1))-FIND(CHAR(160),SUBSTITUTE($O227,\"{\",CHAR(160),FJ$1))+1),\"\")","v":""},{"$f":"IFERROR(MID($O227,FIND(CHAR(160),SUBSTITUTE($O227,\"{\",CHAR(160),FK$1)),FIND(CHAR(160),SUBSTITUTE($O227,\"}\",CHAR(160),FK$1))-FIND(CHAR(160),SUBSTITUTE($O227,\"{\",CHAR(160),FK$1))+1),\"\")","v":"{Measure:Quantity}"},{"$f":"IFERROR(MID($O227,FIND(CHAR(160),SUBSTITUTE($O227,\"{\",CHAR(160),FL$1)),FIND(CHAR(160),SUBSTITUTE($O227,\"}\",CHAR(160),FL$1))-FIND(CHAR(160),SUBSTITUTE($O227,\"{\",CHAR(160),FL$1))+1),\"\")","v":"{Wattage}"},{"$f":"IFERROR(MID($R227,FIND(CHAR(160),SUBSTITUTE($R227,\"{\",CHAR(160),FM$1)),FIND(CHAR(160),SUBSTITUTE($R227,\"}\",CHAR(160),FM$1))-FIND(CHAR(160),SUBSTITUTE($R227,\"{\",CHAR(160),FM$1))+1),\"\")","v":""},{"$f":"IFERROR(MID($R227,FIND(CHAR(160),SUBSTITUTE($R227,\"{\",CHAR(160),FN$1)),FIND(CHAR(160),SUBSTITUTE($R227,\"}\",CHAR(160),FN$1))-FIND(CHAR(160),SUBSTITUTE($R227,\"{\",CHAR(160),FN$1))+1),\"\")","v":""},{"$f":"IFERROR(MID($R227,FIND(CHAR(160),SUBSTITUTE($R227,\"{\",CHAR(160),FO$1)),FIND(CHAR(160),SUBSTITUTE($R227,\"}\",CHAR(160),FO$1))-FIND(CHAR(160),SUBSTITUTE($R227,\"{\",CHAR(160),FO$1))+1),\"\")","v":""},{"$f":"IFERROR(MID($R227,FIND(CHAR(160),SUBSTITUTE($R227,\"{\",CHAR(160),FP$1)),FIND(CHAR(160),SUBSTITUTE($R227,\"}\",CHAR(160),FP$1))-FIND(CHAR(160),SUBSTITUTE($R227,\"{\",CHAR(160),FP$1))+1),\"\")","v":""},{"$f":"IFERROR(MID($R227,FIND(CHAR(160),SUBSTITUTE($R227,\"{\",CHAR(160),FQ$1)),FIND(CHAR(160),SUBSTITUTE($R227,\"}\",CHAR(160),FQ$1))-FIND(CHAR(160),SUBSTITUTE($R227,\"{\",CHAR(160),FQ$1))+1),\"\")","v":""},{"$f":"IFERROR(MID($R227,FIND(CHAR(160),SUBSTITUTE($R227,\"{\",CHAR(160),FR$1)),FIND(CHAR(160),SUBSTITUTE($R227,\"}\",CHAR(160),FR$1))-FIND(CHAR(160),SUBSTITUTE($R227,\"{\",CHAR(160),FR$1))+1),\"\")","v":""},{"$f":"IFERROR(MID($R227,FIND(CHAR(160),SUBSTITUTE($R227,\"{\",CHAR(160),FS$1)),FIND(CHAR(160),SUBSTITUTE($R227,\"}\",CHAR(160),FS$1))-FIND(CHAR(160),SUBSTITUTE($R227,\"{\",CHAR(160),FS$1))+1),\"\")","v":""},{"$f":"IFERROR(MID($R227,FIND(CHAR(160),SUBSTITUTE($R227,\"{\",CHAR(160),FT$1)),FIND(CHAR(160),SUBSTITUTE($R227,\"}\",CHAR(160),FT$1))-FIND(CHAR(160),SUBSTITUTE($R227,\"{\",CHAR(160),FT$1))+1),\"\")","v":""},{"$f":"IFERROR(MID($R227,FIND(CHAR(160),SUBSTITUTE($R227,\"{\",CHAR(160),FU$1)),FIND(CHAR(160),SUBSTITUTE($R227,\"}\",CHAR(160),FU$1))-FIND(CHAR(160),SUBSTITUTE($R227,\"{\",CHAR(160),FU$1))+1),\"\")","v":"{Measure:Quantity}"},{"$f":"IFERROR(MID($R227,FIND(CHAR(160),SUBSTITUTE($R227,\"{\",CHAR(160),FV$1)),FIND(CHAR(160),SUBSTITUTE($R227,\"}\",CHAR(160),FV$1))-FIND(CHAR(160),SUBSTITUTE($R227,\"{\",CHAR(160),FV$1))+1),\"\")","v":"{Wattage}"},{"$f":"IFERROR(MID($U227,FIND(CHAR(160),SUBSTITUTE($U227,\"{\",CHAR(160),FW$1)),FIND(CHAR(160),SUBSTITUTE($U227,\"}\",CHAR(160),FW$1))-FIND(CHAR(160),SUBSTITUTE($U227,\"{\",CHAR(160),FW$1))+1),\"\")","v":""},{"$f":"IFERROR(MID($U227,FIND(CHAR(160),SUBSTITUTE($U227,\"{\",CHAR(160),FX$1)),FIND(CHAR(160),SUBSTITUTE($U227,\"}\",CHAR(160),FX$1))-FIND(CHAR(160),SUBSTITUTE($U227,\"{\",CHAR(160),FX$1))+1),\"\")","v":""},{"$f":"IFERROR(MID($U227,FIND(CHAR(160),SUBSTITUTE($U227,\"{\",CHAR(160),FY$1)),FIND(CHAR(160),SUBSTITUTE($U227,\"}\",CHAR(160),FY$1))-FIND(CHAR(160),SUBSTITUTE($U227,\"{\",CHAR(160),FY$1))+1),\"\")","v":""},{"$f":"IFERROR(MID($U227,FIND(CHAR(160),SUBSTITUTE($U227,\"{\",CHAR(160),FZ$1)),FIND(CHAR(160),SUBSTITUTE($U227,\"}\",CHAR(160),FZ$1))-FIND(CHAR(160),SUBSTITUTE($U227,\"{\",CHAR(160),FZ$1))+1),\"\")","v":""},{"$f":"IFERROR(MID($U227,FIND(CHAR(160),SUBSTITUTE($U227,\"{\",CHAR(160),GA$1)),FIND(CHAR(160),SUBSTITUTE($U227,\"}\",CHAR(160),GA$1))-FIND(CHAR(160),SUBSTITUTE($U227,\"{\",CHAR(160),GA$1))+1),\"\")","v":""},{"$f":"IFERROR(MID($U227,FIND(CHAR(160),SUBSTITUTE($U227,\"{\",CHAR(160),GB$1)),FIND(CHAR(160),SUBSTITUTE($U227,\"}\",CHAR(160),GB$1))-FIND(CHAR(160),SUBSTITUTE($U227,\"{\",CHAR(160),GB$1))+1),\"\")","v":""},{"$f":"IFERROR(MID($U227,FIND(CHAR(160),SUBSTITUTE($U227,\"{\",CHAR(160),GC$1)),FIND(CHAR(160),SUBSTITUTE($U227,\"}\",CHAR(160),GC$1))-FIND(CHAR(160),SUBSTITUTE($U227,\"{\",CHAR(160),GC$1))+1),\"\")","v":""},{"$f":"IFERROR(MID($U227,FIND(CHAR(160),SUBSTITUTE($U227,\"{\",CHAR(160),GD$1)),FIND(CHAR(160),SUBSTITUTE($U227,\"}\",CHAR(160),GD$1))-FIND(CHAR(160),SUBSTITUTE($U227,\"{\",CHAR(160),GD$1))+1),\"\")","v":""},{"$f":"IFERROR(MID($U227,FIND(CHAR(160),SUBSTITUTE($U227,\"{\",CHAR(160),GE$1)),FIND(CHAR(160),SUBSTITUTE($U227,\"}\",CHAR(160),GE$1))-FIND(CHAR(160),SUBSTITUTE($U227,\"{\",CHAR(160),GE$1))+1),\"\")","v":"{Measure:Quantity}"},{"$f":"IFERROR(MID($U227,FIND(CHAR(160),SUBSTITUTE($U227,\"{\",CHAR(160),GF$1)),FIND(CHAR(160),SUBSTITUTE($U227,\"}\",CHAR(160),GF$1))-FIND(CHAR(160),SUBSTITUTE($U227,\"{\",CHAR(160),GF$1))+1),\"\")","v":"{Wattage}"},{"$f":"IFERROR(MID($V227,FIND(CHAR(160),SUBSTITUTE($V227,\"{\",CHAR(160),GG$1)),FIND(CHAR(160),SUBSTITUTE($V227,\"}\",CHAR(160),GG$1))-FIND(CHAR(160),SUBSTITUTE($V227,\"{\",CHAR(160),GG$1))+1),\"\")","v":""},{"$f":"IFERROR(MID($V227,FIND(CHAR(160),SUBSTITUTE($V227,\"{\",CHAR(160),GH$1)),FIND(CHAR(160),SUBSTITUTE($V227,\"}\",CHAR(160),GH$1))-FIND(CHAR(160),SUBSTITUTE($V227,\"{\",CHAR(160),GH$1))+1),\"\")","v":""},{"$f":"IFERROR(MID($V227,FIND(CHAR(160),SUBSTITUTE($V227,\"{\",CHAR(160),GI$1)),FIND(CHAR(160),SUBSTITUTE($V227,\"}\",CHAR(160),GI$1))-FIND(CHAR(160),SUBSTITUTE($V227,\"{\",CHAR(160),GI$1))+1),\"\")","v":""},{"$f":"IFERROR(MID($V227,FIND(CHAR(160),SUBSTITUTE($V227,\"{\",CHAR(160),GJ$1)),FIND(CHAR(160),SUBSTITUTE($V227,\"}\",CHAR(160),GJ$1))-FIND(CHAR(160),SUBSTITUTE($V227,\"{\",CHAR(160),GJ$1))+1),\"\")","v":""},{"$f":"IFERROR(MID($V227,FIND(CHAR(160),SUBSTITUTE($V227,\"{\",CHAR(160),GK$1)),FIND(CHAR(160),SUBSTITUTE($V227,\"}\",CHAR(160),GK$1))-FIND(CHAR(160),SUBSTITUTE($V227,\"{\",CHAR(160),GK$1))+1),\"\")","v":""},{"$f":"IFERROR(MID($V227,FIND(CHAR(160),SUBSTITUTE($V227,\"{\",CHAR(160),GL$1)),FIND(CHAR(160),SUBSTITUTE($V227,\"}\",CHAR(160),GL$1))-FIND(CHAR(160),SUBSTITUTE($V227,\"{\",CHAR(160),GL$1))+1),\"\")","v":""},{"$f":"IFERROR(MID($V227,FIND(CHAR(160),SUBSTITUTE($V227,\"{\",CHAR(160),GM$1)),FIND(CHAR(160),SUBSTITUTE($V227,\"}\",CHAR(160),GM$1))-FIND(CHAR(160),SUBSTITUTE($V227,\"{\",CHAR(160),GM$1))+1),\"\")","v":""},{"$f":"IFERROR(MID($V227,FIND(CHAR(160),SUBSTITUTE($V227,\"{\",CHAR(160),GN$1)),FIND(CHAR(160),SUBSTITUTE($V227,\"}\",CHAR(160),GN$1))-FIND(CHAR(160),SUBSTITUTE($V227,\"{\",CHAR(160),GN$1))+1),\"\")","v":""},{"$f":"IFERROR(MID($V227,FIND(CHAR(160),SUBSTITUTE($V227,\"{\",CHAR(160),GO$1)),FIND(CHAR(160),SUBSTITUTE($V227,\"}\",CHAR(160),GO$1))-FIND(CHAR(160),SUBSTITUTE($V227,\"{\",CHAR(160),GO$1))+1),\"\")","v":"{Measure:Quantity}"},{"$f":"IFERROR(MID($V227,FIND(CHAR(160),SUBSTITUTE($V227,\"{\",CHAR(160),GP$1)),FIND(CHAR(160),SUBSTITUTE($V227,\"}\",CHAR(160),GP$1))-FIND(CHAR(160),SUBSTITUTE($V227,\"{\",CHAR(160),GP$1))+1),\"\")","v":"{Wattage}"},{"$f":"IFERROR(MID($W227,FIND(CHAR(160),SUBSTITUTE($W227,\"{\",CHAR(160),GQ$1)),FIND(CHAR(160),SUBSTITUTE($W227,\"}\",CHAR(160),GQ$1))-FIND(CHAR(160),SUBSTITUTE($W227,\"{\",CHAR(160),GQ$1))+1),\"\")","v":""},{"$f":"IFERROR(MID($W227,FIND(CHAR(160),SUBSTITUTE($W227,\"{\",CHAR(160),GR$1)),FIND(CHAR(160),SUBSTITUTE($W227,\"}\",CHAR(160),GR$1))-FIND(CHAR(160),SUBSTITUTE($W227,\"{\",CHAR(160),GR$1))+1),\"\")","v":""},{"$f":"IFERROR(MID($W227,FIND(CHAR(160),SUBSTITUTE($W227,\"{\",CHAR(160),GS$1)),FIND(CHAR(160),SUBSTITUTE($W227,\"}\",CHAR(160),GS$1))-FIND(CHAR(160),SUBSTITUTE($W227,\"{\",CHAR(160),GS$1))+1),\"\")","v":""},{"$f":"IFERROR(MID($W227,FIND(CHAR(160),SUBSTITUTE($W227,\"{\",CHAR(160),GT$1)),FIND(CHAR(160),SUBSTITUTE($W227,\"}\",CHAR(160),GT$1))-FIND(CHAR(160),SUBSTITUTE($W227,\"{\",CHAR(160),GT$1))+1),\"\")","v":""},{"$f":"IFERROR(MID($W227,FIND(CHAR(160),SUBSTITUTE($W227,\"{\",CHAR(160),GU$1)),FIND(CHAR(160),SUBSTITUTE($W227,\"}\",CHAR(160),GU$1))-FIND(CHAR(160),SUBSTITUTE($W227,\"{\",CHAR(160),GU$1))+1),\"\")","v":""},{"$f":"IFERROR(MID($W227,FIND(CHAR(160),SUBSTITUTE($W227,\"{\",CHAR(160),GV$1)),FIND(CHAR(160),SUBSTITUTE($W227,\"}\",CHAR(160),GV$1))-FIND(CHAR(160),SUBSTITUTE($W227,\"{\",CHAR(160),GV$1))+1),\"\")","v":""},{"$f":"IFERROR(MID($W227,FIND(CHAR(160),SUBSTITUTE($W227,\"{\",CHAR(160),GW$1)),FIND(CHAR(160),SUBSTITUTE($W227,\"}\",CHAR(160),GW$1))-FIND(CHAR(160),SUBSTITUTE($W227,\"{\",CHAR(160),GW$1))+1),\"\")","v":""},{"$f":"IFERROR(MID($W227,FIND(CHAR(160),SUBSTITUTE($W227,\"{\",CHAR(160),GX$1)),FIND(CHAR(160),SUBSTITUTE($W227,\"}\",CHAR(160),GX$1))-FIND(CHAR(160),SUBSTITUTE($W227,\"{\",CHAR(160),GX$1))+1),\"\")","v":""},{"$f":"IFERROR(MID($W227,FIND(CHAR(160),SUBSTITUTE($W227,\"{\",CHAR(160),GY$1)),FIND(CHAR(160),SUBSTITUTE($W227,\"}\",CHAR(160),GY$1))-FIND(CHAR(160),SUBSTITUTE($W227,\"{\",CHAR(160),GY$1))+1),\"\")","v":"{Measure:Quantity}"},{"$f":"IFERROR(MID($W227,FIND(CHAR(160),SUBSTITUTE($W227,\"{\",CHAR(160),GZ$1)),FIND(CHAR(160),SUBSTITUTE($W227,\"}\",CHAR(160),GZ$1))-FIND(CHAR(160),SUBSTITUTE($W227,\"{\",CHAR(160),GZ$1))+1),\"\")","v":"{Wattage}"},{"$f":"IFERROR(MID($X227,FIND(CHAR(160),SUBSTITUTE($X227,\"{\",CHAR(160),HA$1)),FIND(CHAR(160),SUBSTITUTE($X227,\"}\",CHAR(160),HA$1))-FIND(CHAR(160),SUBSTITUTE($X227,\"{\",CHAR(160),HA$1))+1),\"\")","v":""},{"$f":"IFERROR(MID($X227,FIND(CHAR(160),SUBSTITUTE($X227,\"{\",CHAR(160),HB$1)),FIND(CHAR(160),SUBSTITUTE($X227,\"}\",CHAR(160),HB$1))-FIND(CHAR(160),SUBSTITUTE($X227,\"{\",CHAR(160),HB$1))+1),\"\")","v":""},{"$f":"IFERROR(MID($X227,FIND(CHAR(160),SUBSTITUTE($X227,\"{\",CHAR(160),HC$1)),FIND(CHAR(160),SUBSTITUTE($X227,\"}\",CHAR(160),HC$1))-FIND(CHAR(160),SUBSTITUTE($X227,\"{\",CHAR(160),HC$1))+1),\"\")","v":""},{"$f":"IFERROR(MID($X227,FIND(CHAR(160),SUBSTITUTE($X227,\"{\",CHAR(160),HD$1)),FIND(CHAR(160),SUBSTITUTE($X227,\"}\",CHAR(160),HD$1))-FIND(CHAR(160),SUBSTITUTE($X227,\"{\",CHAR(160),HD$1))+1),\"\")","v":""},{"$f":"IFERROR(MID($X227,FIND(CHAR(160),SUBSTITUTE($X227,\"{\",CHAR(160),HE$1)),FIND(CHAR(160),SUBSTITUTE($X227,\"}\",CHAR(160),HE$1))-FIND(CHAR(160),SUBSTITUTE($X227,\"{\",CHAR(160),HE$1))+1),\"\")","v":""},{"$f":"IFERROR(MID($X227,FIND(CHAR(160),SUBSTITUTE($X227,\"{\",CHAR(160),HF$1)),FIND(CHAR(160),SUBSTITUTE($X227,\"}\",CHAR(160),HF$1))-FIND(CHAR(160),SUBSTITUTE($X227,\"{\",CHAR(160),HF$1))+1),\"\")","v":""},{"$f":"IFERROR(MID($X227,FIND(CHAR(160),SUBSTITUTE($X227,\"{\",CHAR(160),HG$1)),FIND(CHAR(160),SUBSTITUTE($X227,\"}\",CHAR(160),HG$1))-FIND(CHAR(160),SUBSTITUTE($X227,\"{\",CHAR(160),HG$1))+1),\"\")","v":""},{"$f":"IFERROR(MID($X227,FIND(CHAR(160),SUBSTITUTE($X227,\"{\",CHAR(160),HH$1)),FIND(CHAR(160),SUBSTITUTE($X227,\"}\",CHAR(160),HH$1))-FIND(CHAR(160),SUBSTITUTE($X227,\"{\",CHAR(160),HH$1))+1),\"\")","v":""},{"$f":"IFERROR(MID($X227,FIND(CHAR(160),SUBSTITUTE($X227,\"{\",CHAR(160),HI$1)),FIND(CHAR(160),SUBSTITUTE($X227,\"}\",CHAR(160),HI$1))-FIND(CHAR(160),SUBSTITUTE($X227,\"{\",CHAR(160),HI$1))+1),\"\")","v":"{Measure:Quantity}"},{"$f":"IFERROR(MID($X227,FIND(CHAR(160),SUBSTITUTE($X227,\"{\",CHAR(160),HJ$1)),FIND(CHAR(160),SUBSTITUTE($X227,\"}\",CHAR(160),HJ$1))-FIND(CHAR(160),SUBSTITUTE($X227,\"{\",CHAR(160),HJ$1))+1),\"\")","v":"{Wattage}"},{"$f":"IFERROR(MID($Y227,FIND(CHAR(160),SUBSTITUTE($Y227,\"{\",CHAR(160),HK$1)),FIND(CHAR(160),SUBSTITUTE($Y227,\"}\",CHAR(160),HK$1))-FIND(CHAR(160),SUBSTITUTE($Y227,\"{\",CHAR(160),HK$1))+1),\"\")","v":""},{"$f":"IFERROR(MID($Y227,FIND(CHAR(160),SUBSTITUTE($Y227,\"{\",CHAR(160),HL$1)),FIND(CHAR(160),SUBSTITUTE($Y227,\"}\",CHAR(160),HL$1))-FIND(CHAR(160),SUBSTITUTE($Y227,\"{\",CHAR(160),HL$1))+1),\"\")","v":""},{"$f":"IFERROR(MID($Y227,FIND(CHAR(160),SUBSTITUTE($Y227,\"{\",CHAR(160),HM$1)),FIND(CHAR(160),SUBSTITUTE($Y227,\"}\",CHAR(160),HM$1))-FIND(CHAR(160),SUBSTITUTE($Y227,\"{\",CHAR(160),HM$1))+1),\"\")","v":""},{"$f":"IFERROR(MID($Y227,FIND(CHAR(160),SUBSTITUTE($Y227,\"{\",CHAR(160),HN$1)),FIND(CHAR(160),SUBSTITUTE($Y227,\"}\",CHAR(160),HN$1))-FIND(CHAR(160),SUBSTITUTE($Y227,\"{\",CHAR(160),HN$1))+1),\"\")","v":""},{"$f":"IFERROR(MID($Y227,FIND(CHAR(160),SUBSTITUTE($Y227,\"{\",CHAR(160),HO$1)),FIND(CHAR(160),SUBSTITUTE($Y227,\"}\",CHAR(160),HO$1))-FIND(CHAR(160),SUBSTITUTE($Y227,\"{\",CHAR(160),HO$1))+1),\"\")","v":""},{"$f":"IFERROR(MID($Y227,FIND(CHAR(160),SUBSTITUTE($Y227,\"{\",CHAR(160),HP$1)),FIND(CHAR(160),SUBSTITUTE($Y227,\"}\",CHAR(160),HP$1))-FIND(CHAR(160),SUBSTITUTE($Y227,\"{\",CHAR(160),HP$1))+1),\"\")","v":""},{"$f":"IFERROR(MID($Y227,FIND(CHAR(160),SUBSTITUTE($Y227,\"{\",CHAR(160),HQ$1)),FIND(CHAR(160),SUBSTITUTE($Y227,\"}\",CHAR(160),HQ$1))-FIND(CHAR(160),SUBSTITUTE($Y227,\"{\",CHAR(160),HQ$1))+1),\"\")","v":""},{"$f":"IFERROR(MID($Y227,FIND(CHAR(160),SUBSTITUTE($Y227,\"{\",CHAR(160),HR$1)),FIND(CHAR(160),SUBSTITUTE($Y227,\"}\",CHAR(160),HR$1))-FIND(CHAR(160),SUBSTITUTE($Y227,\"{\",CHAR(160),HR$1))+1),\"\")","v":""},{"$f":"IFERROR(MID($Y227,FIND(CHAR(160),SUBSTITUTE($Y227,\"{\",CHAR(160),HS$1)),FIND(CHAR(160),SUBSTITUTE($Y227,\"}\",CHAR(160),HS$1))-FIND(CHAR(160),SUBSTITUTE($Y227,\"{\",CHAR(160),HS$1))+1),\"\")","v":"{Measure:Quantity}"},{"$f":"IFERROR(MID($Y227,FIND(CHAR(160),SUBSTITUTE($Y227,\"{\",CHAR(160),HT$1)),FIND(CHAR(160),SUBSTITUTE($Y227,\"}\",CHAR(160),HT$1))-FIND(CHAR(160),SUBSTITUTE($Y227,\"{\",CHAR(160),HT$1))+1),\"\")","v":"{Wattage}"},{"$f":"IFERROR(MID($Z227,FIND(CHAR(160),SUBSTITUTE($Z227,\"{\",CHAR(160),HU$1)),FIND(CHAR(160),SUBSTITUTE($Z227,\"}\",CHAR(160),HU$1))-FIND(CHAR(160),SUBSTITUTE($Z227,\"{\",CHAR(160),HU$1))+1),\"\")","v":""},{"$f":"IFERROR(MID($Z227,FIND(CHAR(160),SUBSTITUTE($Z227,\"{\",CHAR(160),HV$1)),FIND(CHAR(160),SUBSTITUTE($Z227,\"}\",CHAR(160),HV$1))-FIND(CHAR(160),SUBSTITUTE($Z227,\"{\",CHAR(160),HV$1))+1),\"\")","v":""},{"$f":"IFERROR(MID($Z227,FIND(CHAR(160),SUBSTITUTE($Z227,\"{\",CHAR(160),HW$1)),FIND(CHAR(160),SUBSTITUTE($Z227,\"}\",CHAR(160),HW$1))-FIND(CHAR(160),SUBSTITUTE($Z227,\"{\",CHAR(160),HW$1))+1),\"\")","v":""},{"$f":"IFERROR(MID($Z227,FIND(CHAR(160),SUBSTITUTE($Z227,\"{\",CHAR(160),HX$1)),FIND(CHAR(160),SUBSTITUTE($Z227,\"}\",CHAR(160),HX$1))-FIND(CHAR(160),SUBSTITUTE($Z227,\"{\",CHAR(160),HX$1))+1),\"\")","v":""},{"$f":"IFERROR(MID($Z227,FIND(CHAR(160),SUBSTITUTE($Z227,\"{\",CHAR(160),HY$1)),FIND(CHAR(160),SUBSTITUTE($Z227,\"}\",CHAR(160),HY$1))-FIND(CHAR(160),SUBSTITUTE($Z227,\"{\",CHAR(160),HY$1))+1),\"\")","v":""},{"$f":"IFERROR(MID($Z227,FIND(CHAR(160),SUBSTITUTE($Z227,\"{\",CHAR(160),HZ$1)),FIND(CHAR(160),SUBSTITUTE($Z227,\"}\",CHAR(160),HZ$1))-FIND(CHAR(160),SUBSTITUTE($Z227,\"{\",CHAR(160),HZ$1))+1),\"\")","v":""},{"$f":"IFERROR(MID($Z227,FIND(CHAR(160),SUBSTITUTE($Z227,\"{\",CHAR(160),IA$1)),FIND(CHAR(160),SUBSTITUTE($Z227,\"}\",CHAR(160),IA$1))-FIND(CHAR(160),SUBSTITUTE($Z227,\"{\",CHAR(160),IA$1))+1),\"\")","v":""},{"$f":"IFERROR(MID($Z227,FIND(CHAR(160),SUBSTITUTE($Z227,\"{\",CHAR(160),IB$1)),FIND(CHAR(160),SUBSTITUTE($Z227,\"}\",CHAR(160),IB$1))-FIND(CHAR(160),SUBSTITUTE($Z227,\"{\",CHAR(160),IB$1))+1),\"\")","v":""},{"$f":"IFERROR(MID($Z227,FIND(CHAR(160),SUBSTITUTE($Z227,\"{\",CHAR(160),IC$1)),FIND(CHAR(160),SUBSTITUTE($Z227,\"}\",CHAR(160),IC$1))-FIND(CHAR(160),SUBSTITUTE($Z227,\"{\",CHAR(160),IC$1))+1),\"\")","v":"{Measure:Quantity}"},{"$f":"IFERROR(MID($Z227,FIND(CHAR(160),SUBSTITUTE($Z227,\"{\",CHAR(160),ID$1)),FIND(CHAR(160),SUBSTITUTE($Z227,\"}\",CHAR(160),ID$1))-FIND(CHAR(160),SUBSTITUTE($Z227,\"{\",CHAR(160),ID$1))+1),\"\")","v":"{Wattage}"},{"$f":"IFERROR(MID($AA227,FIND(CHAR(160),SUBSTITUTE($AA227,\"{\",CHAR(160),IE$1)),FIND(CHAR(160),SUBSTITUTE($AA227,\"}\",CHAR(160),IE$1))-FIND(CHAR(160),SUBSTITUTE($AA227,\"{\",CHAR(160),IE$1))+1),\"\")","v":""},{"$f":"IFERROR(MID($AA227,FIND(CHAR(160),SUBSTITUTE($AA227,\"{\",CHAR(160),IF$1)),FIND(CHAR(160),SUBSTITUTE($AA227,\"}\",CHAR(160),IF$1))-FIND(CHAR(160),SUBSTITUTE($AA227,\"{\",CHAR(160),IF$1))+1),\"\")","v":""},{"$f":"IFERROR(MID($AA227,FIND(CHAR(160),SUBSTITUTE($AA227,\"{\",CHAR(160),IG$1)),FIND(CHAR(160),SUBSTITUTE($AA227,\"}\",CHAR(160),IG$1))-FIND(CHAR(160),SUBSTITUTE($AA227,\"{\",CHAR(160),IG$1))+1),\"\")","v":""},{"$f":"IFERROR(MID($AA227,FIND(CHAR(160),SUBSTITUTE($AA227,\"{\",CHAR(160),IH$1)),FIND(CHAR(160),SUBSTITUTE($AA227,\"}\",CHAR(160),IH$1))-FIND(CHAR(160),SUBSTITUTE($AA227,\"{\",CHAR(160),IH$1))+1),\"\")","v":""},{"$f":"IFERROR(MID($AA227,FIND(CHAR(160),SUBSTITUTE($AA227,\"{\",CHAR(160),II$1)),FIND(CHAR(160),SUBSTITUTE($AA227,\"}\",CHAR(160),II$1))-FIND(CHAR(160),SUBSTITUTE($AA227,\"{\",CHAR(160),II$1))+1),\"\")","v":""},{"$f":"IFERROR(MID($AA227,FIND(CHAR(160),SUBSTITUTE($AA227,\"{\",CHAR(160),IJ$1)),FIND(CHAR(160),SUBSTITUTE($AA227,\"}\",CHAR(160),IJ$1))-FIND(CHAR(160),SUBSTITUTE($AA227,\"{\",CHAR(160),IJ$1))+1),\"\")","v":""},{"$f":"IFERROR(MID($AA227,FIND(CHAR(160),SUBSTITUTE($AA227,\"{\",CHAR(160),IK$1)),FIND(CHAR(160),SUBSTITUTE($AA227,\"}\",CHAR(160),IK$1))-FIND(CHAR(160),SUBSTITUTE($AA227,\"{\",CHAR(160),IK$1))+1),\"\")","v":""},{"$f":"IFERROR(MID($AA227,FIND(CHAR(160),SUBSTITUTE($AA227,\"{\",CHAR(160),IL$1)),FIND(CHAR(160),SUBSTITUTE($AA227,\"}\",CHAR(160),IL$1))-FIND(CHAR(160),SUBSTITUTE($AA227,\"{\",CHAR(160),IL$1))+1),\"\")","v":""},{"$f":"IFERROR(MID($AA227,FIND(CHAR(160),SUBSTITUTE($AA227,\"{\",CHAR(160),IM$1)),FIND(CHAR(160),SUBSTITUTE($AA227,\"}\",CHAR(160),IM$1))-FIND(CHAR(160),SUBSTITUTE($AA227,\"{\",CHAR(160),IM$1))+1),\"\")","v":"{Measure:Quantity}"},{"$f":"IFERROR(MID($AA227,FIND(CHAR(160),SUBSTITUTE($AA227,\"{\",CHAR(160),IN$1)),FIND(CHAR(160),SUBSTITUTE($AA227,\"}\",CHAR(160),IN$1))-FIND(CHAR(160),SUBSTITUTE($AA227,\"{\",CHAR(160),IN$1))+1),\"\")","v":"{Wattage}"},{"$f":"IFERROR(MID($AB227,FIND(CHAR(160),SUBSTITUTE($AB227,\"{\",CHAR(160),IO$1)),FIND(CHAR(160),SUBSTITUTE($AB227,\"}\",CHAR(160),IO$1))-FIND(CHAR(160),SUBSTITUTE($AB227,\"{\",CHAR(160),IO$1))+1),\"\")","v":""},{"$f":"IFERROR(MID($AB227,FIND(CHAR(160),SUBSTITUTE($AB227,\"{\",CHAR(160),IP$1)),FIND(CHAR(160),SUBSTITUTE($AB227,\"}\",CHAR(160),IP$1))-FIND(CHAR(160),SUBSTITUTE($AB227,\"{\",CHAR(160),IP$1))+1),\"\")","v":""},{"$f":"IFERROR(MID($AB227,FIND(CHAR(160),SUBSTITUTE($AB227,\"{\",CHAR(160),IQ$1)),FIND(CHAR(160),SUBSTITUTE($AB227,\"}\",CHAR(160),IQ$1))-FIND(CHAR(160),SUBSTITUTE($AB227,\"{\",CHAR(160),IQ$1))+1),\"\")","v":""},{"$f":"IFERROR(MID($AB227,FIND(CHAR(160),SUBSTITUTE($AB227,\"{\",CHAR(160),IR$1)),FIND(CHAR(160),SUBSTITUTE($AB227,\"}\",CHAR(160),IR$1))-FIND(CHAR(160),SUBSTITUTE($AB227,\"{\",CHAR(160),IR$1))+1),\"\")","v":""},{"$f":"IFERROR(MID($AB227,FIND(CHAR(160),SUBSTITUTE($AB227,\"{\",CHAR(160),IS$1)),FIND(CHAR(160),SUBSTITUTE($AB227,\"}\",CHAR(160),IS$1))-FIND(CHAR(160),SUBSTITUTE($AB227,\"{\",CHAR(160),IS$1))+1),\"\")","v":""},{"$f":"IFERROR(MID($AB227,FIND(CHAR(160),SUBSTITUTE($AB227,\"{\",CHAR(160),IT$1)),FIND(CHAR(160),SUBSTITUTE($AB227,\"}\",CHAR(160),IT$1))-FIND(CHAR(160),SUBSTITUTE($AB227,\"{\",CHAR(160),IT$1))+1),\"\")","v":""},{"$f":"IFERROR(MID($AB227,FIND(CHAR(160),SUBSTITUTE($AB227,\"{\",CHAR(160),IU$1)),FIND(CHAR(160),SUBSTITUTE($AB227,\"}\",CHAR(160),IU$1))-FIND(CHAR(160),SUBSTITUTE($AB227,\"{\",CHAR(160),IU$1))+1),\"\")","v":""},{"$f":"IFERROR(MID($AB227,FIND(CHAR(160),SUBSTITUTE($AB227,\"{\",CHAR(160),IV$1)),FIND(CHAR(160),SUBSTITUTE($AB227,\"}\",CHAR(160),IV$1))-FIND(CHAR(160),SUBSTITUTE($AB227,\"{\",CHAR(160),IV$1))+1),\"\")","v":""},{"$f":"IFERROR(MID($AB227,FIND(CHAR(160),SUBSTITUTE($AB227,\"{\",CHAR(160),IW$1)),FIND(CHAR(160),SUBSTITUTE($AB227,\"}\",CHAR(160),IW$1))-FIND(CHAR(160),SUBSTITUTE($AB227,\"{\",CHAR(160),IW$1))+1),\"\")","v":""},{"$f":"IFERROR(MID($AB227,FIND(CHAR(160),SUBSTITUTE($AB227,\"{\",CHAR(160),IX$1)),FIND(CHAR(160),SUBSTITUTE($AB227,\"}\",CHAR(160),IX$1))-FIND(CHAR(160),SUBSTITUTE($AB227,\"{\",CHAR(160),IX$1))+1),\"\")","v":""},null,{"$f":"10-COUNTIF(DU227:ED227,\"\")","v":2}]
["Low Income Direct Mailing","LED Low Income Specialty Bulb Short Life","LILEDSPECS","2021-07-01","2022-06-30","Per Measure",2.95,0,"Per Measure",2.95,0,"2021-07-01","2022-06-30","Calculated","{Measure:Quantity}*41",null,null,"{Measure:Quantity}*0.057",null,null,"{Measure:Quantity}*0.009","{Measure:Quantity}*0.004","{Measure:Quantity}*-0.005","{Measure:Quantity}*-0.004","{Measure:Quantity}*-0.035","{Measure:Quantity}*-0.001","{Measure:Quantity}*-0.007",null,"2021-07-01","2022-06-30",4,0.17199999999999999,7.2999999999999995E-2,0.34899999999999998,0.33500000000000002,0.155,0.161,0.77,1,1,0,0,null,{"$f":"DU228","v":"{Measure:Quantity}"},1,{"$f":"DV228","v":""},null,{"$f":"DW228","v":""},null,{"$f":"DX228","v":""},null,{"$f":"DY228","v":""},null,{"$f":"DZ228","v":""},null,{"$f":"EA228","v":""},null,{"$f":"EB228","v":""},null,{"$f":"EC228","v":""},null,{"$f":"ED228","v":""},null,{"$f":"AS228*41","v":41},0,0,{"$f":"AS228*0.057","v":5.7000000000000002E-2},0,0,{"$f":"AS228*0.009","v":8.9999999999999993E-3},{"$f":"AS228*0.004","v":4.0000000000000001E-3},{"$f":"AS228*-0.005","v":-5.0000000000000001E-3},{"$f":"AS228*-0.004","v":-4.0000000000000001E-3},{"$f":"AS228*-0.035","v":-3.5000000000000003E-2},{"$f":"AS228*-0.001","v":-1E-3},{"$f":"AS228*-0.007","v":-7.0000000000000001E-3},0,null,"Res","Default DR",{"$f":"Benefits(BL228,BR228,BS228,BT228,BU228,BV228,BW228,BX228,BY228,BZ228,AE228,AH228,AI228,AJ228,AK228,AL228,AM228,AN228,AO228,AP228,CA228,CB228)","v":14.364119477561875},9.7947972705671784,-2.5858250316384574E-2,-3.4588814173466984,-0.11311640736518638,-0.55049375180912552,-0.3877324073856892,0,0,{"$f":"SUMPRODUCT(CC228:CK228,--(CC228:CK228>0))","v":24.158916748129052},{"$f":"-SUMPRODUCT(CC228:CK228,--(CC228:CK228<0))","v":4.536082234223084},null,{"$f":"2.95","v":2.95},null,null,{"$f":"CM228+CO228","v":7.4860822342230842},{"$f":"IF(NetOrGross=\"Net\",(1-AO228+AP228),1)","v":1},{"$f":"(SUMPRODUCT(CC228:CJ228,--(CC228:CJ228>0))+CN228)*CS228/((-SUMPRODUCT(CC228:CJ228,--(CC228:CJ228<0))+MAX(CO228,CV228)+CP228+CQ228)*CS228+IF(FRIncentives=\"Yes\",CV228*(1-CS228),0))","v":3.2271775799743532},1,{"$f":"2.95","v":2.95},null,"Electric","y",null,{"$f":"IF(F228=\"Manual Entry\",\"Manual\",IF(G228=\"\",0,\"X=\"&SUBSTITUTE(SUBSTITUTE(SUBSTITUTE(SUBSTITUTE(SUBSTITUTE(SUBSTITUTE(SUBSTITUTE(SUBSTITUTE(SUBSTITUTE(SUBSTITUTE(SUBSTITUTE(SUBSTITUTE(G228,$ED228,$ED$2&ROW($ED228)),$EC228,$EC$2&ROW($EC228)),$EB228,$EB$2&ROW($EB228)),$EA228,$EA$2&ROW($EA228)),$DZ228,$DZ$2&ROW($DZ228)),$DY228,$DY$2&ROW($DY228)),$DX228,$DX$2&ROW($DX228)),$DW228,$DW$2&ROW($DW228)),$DV228,$DV$2&ROW($DV228)),$DU228,$DU$2&ROW($DU228)),$DT228,$DT$2&ROW($DT228)),$DS228,$DS$2&ROW($DS228))))","v":"X=2.95"},{"$f":"IF(I228=\"Manual Entry\",\"Manual\",IF(J228=\"\",0,\"X=\"&SUBSTITUTE(SUBSTITUTE(SUBSTITUTE(SUBSTITUTE(SUBSTITUTE(SUBSTITUTE(SUBSTITUTE(SUBSTITUTE(SUBSTITUTE(SUBSTITUTE(SUBSTITUTE(SUBSTITUTE(J228,$ED228,$ED$2&ROW($ED228)),$EC228,$EC$2&ROW($EC228)),$EB228,$EB$2&ROW($EB228)),$EA228,$EA$2&ROW($EA228)),$DZ228,$DZ$2&ROW($DZ228)),$DY228,$DY$2&ROW($DY228)),$DX228,$DX$2&ROW($DX228)),$DW228,$DW$2&ROW($DW228)),$DV228,$DV$2&ROW($DV228)),$DU228,$DU$2&ROW($DU228)),$DT228,$DT$2&ROW($DT228)),$DS228,$DS$2&ROW($DS228))))","v":"X=2.95"},{"$f":"IF(O228=\"\",0,\"X=\"&SUBSTITUTE(SUBSTITUTE(SUBSTITUTE(SUBSTITUTE(SUBSTITUTE(SUBSTITUTE(SUBSTITUTE(SUBSTITUTE(SUBSTITUTE(SUBSTITUTE(SUBSTITUTE(SUBSTITUTE(O228,$ED228,$ED$2&ROW($ED228)),$EC228,$EC$2&ROW($EC228)),$EB228,$EB$2&ROW($EB228)),$EA228,$EA$2&ROW($EA228)),$DZ228,$DZ$2&ROW($DZ228)),$DY228,$DY$2&ROW($DY228)),$DX228,$DX$2&ROW($DX228)),$DW228,$DW$2&ROW($DW228)),$DV228,$DV$2&ROW($DV228)),$DU228,$DU$2&ROW($DU228)),$DT228,$DT$2&ROW($DT228)),$DS228,$DS$2&ROW($DS228)))","v":"X=AS228*41"},{"$f":"IF(P228=\"\",0,\"X=\"&SUBSTITUTE(SUBSTITUTE(SUBSTITUTE(SUBSTITUTE(SUBSTITUTE(SUBSTITUTE(SUBSTITUTE(SUBSTITUTE(SUBSTITUTE(SUBSTITUTE(SUBSTITUTE(SUBSTITUTE(P228,$ED228,$ED$2&ROW($ED228)),$EC228,$EC$2&ROW($EC228)),$EB228,$EB$2&ROW($EB228)),$EA228,$EA$2&ROW($EA228)),$DZ228,$DZ$2&ROW($DZ228)),$DY228,$DY$2&ROW($DY228)),$DX228,$DX$2&ROW($DX228)),$DW228,$DW$2&ROW($DW228)),$DV228,$DV$2&ROW($DV228)),$DU228,$DU$2&ROW($DU228)),$DT228,$DT$2&ROW($DT228)),$DS228,$DS$2&ROW($DS228)))","v":0},{"$f":"IF(Q228=\"\",0,\"X=\"&SUBSTITUTE(SUBSTITUTE(SUBSTITUTE(SUBSTITUTE(SUBSTITUTE(SUBSTITUTE(SUBSTITUTE(SUBSTITUTE(SUBSTITUTE(SUBSTITUTE(SUBSTITUTE(SUBSTITUTE(Q228,$ED228,$ED$2&ROW($ED228)),$EC228,$EC$2&ROW($EC228)),$EB228,$EB$2&ROW($EB228)),$EA228,$EA$2&ROW($EA228)),$DZ228,$DZ$2&ROW($DZ228)),$DY228,$DY$2&ROW($DY228)),$DX228,$DX$2&ROW($DX228)),$DW228,$DW$2&ROW($DW228)),$DV228,$DV$2&ROW($DV228)),$DU228,$DU$2&ROW($DU228)),$DT228,$DT$2&ROW($DT228)),$DS228,$DS$2&ROW($DS228)))","v":0},{"$f":"IF(R228=\"\",0,\"X=\"&SUBSTITUTE(SUBSTITUTE(SUBSTITUTE(SUBSTITUTE(SUBSTITUTE(SUBSTITUTE(SUBSTITUTE(SUBSTITUTE(SUBSTITUTE(SUBSTITUTE(SUBSTITUTE(SUBSTITUTE(R228,$ED228,$ED$2&ROW($ED228)),$EC228,$EC$2&ROW($EC228)),$EB228,$EB$2&ROW($EB228)),$EA228,$EA$2&ROW($EA228)),$DZ228,$DZ$2&ROW($DZ228)),$DY228,$DY$2&ROW($DY228)),$DX228,$DX$2&ROW($DX228)),$DW228,$DW$2&ROW($DW228)),$DV228,$DV$2&ROW($DV228)),$DU228,$DU$2&ROW($DU228)),$DT228,$DT$2&ROW($DT228)),$DS228,$DS$2&ROW($DS228)))","v":"X=AS228*0.057"},{"$f":"IF(S228=\"\",0,\"X=\"&SUBSTITUTE(SUBSTITUTE(SUBSTITUTE(SUBSTITUTE(SUBSTITUTE(SUBSTITUTE(SUBSTITUTE(SUBSTITUTE(SUBSTITUTE(SUBSTITUTE(SUBSTITUTE(SUBSTITUTE(S228,$ED228,$ED$2&ROW($ED228)),$EC228,$EC$2&ROW($EC228)),$EB228,$EB$2&ROW($EB228)),$EA228,$EA$2&ROW($EA228)),$DZ228,$DZ$2&ROW($DZ228)),$DY228,$DY$2&ROW($DY228)),$DX228,$DX$2&ROW($DX228)),$DW228,$DW$2&ROW($DW228)),$DV228,$DV$2&ROW($DV228)),$DU228,$DU$2&ROW($DU228)),$DT228,$DT$2&ROW($DT228)),$DS228,$DS$2&ROW($DS228)))","v":0},{"$f":"IF(T228=\"\",0,\"X=\"&SUBSTITUTE(SUBSTITUTE(SUBSTITUTE(SUBSTITUTE(SUBSTITUTE(SUBSTITUTE(SUBSTITUTE(SUBSTITUTE(SUBSTITUTE(SUBSTITUTE(SUBSTITUTE(SUBSTITUTE(T228,$ED228,$ED$2&ROW($ED228)),$EC228,$EC$2&ROW($EC228)),$EB228,$EB$2&ROW($EB228)),$EA228,$EA$2&ROW($EA228)),$DZ228,$DZ$2&ROW($DZ228)),$DY228,$DY$2&ROW($DY228)),$DX228,$DX$2&ROW($DX228)),$DW228,$DW$2&ROW($DW228)),$DV228,$DV$2&ROW($DV228)),$DU228,$DU$2&ROW($DU228)),$DT228,$DT$2&ROW($DT228)),$DS228,$DS$2&ROW($DS228)))","v":0},{"$f":"IF(U228=\"\",0,\"X=\"&SUBSTITUTE(SUBSTITUTE(SUBSTITUTE(SUBSTITUTE(SUBSTITUTE(SUBSTITUTE(SUBSTITUTE(SUBSTITUTE(SUBSTITUTE(SUBSTITUTE(SUBSTITUTE(SUBSTITUTE(U228,$ED228,$ED$2&ROW($ED228)),$EC228,$EC$2&ROW($EC228)),$EB228,$EB$2&ROW($EB228)),$EA228,$EA$2&ROW($EA228)),$DZ228,$DZ$2&ROW($DZ228)),$DY228,$DY$2&ROW($DY228)),$DX228,$DX$2&ROW($DX228)),$DW228,$DW$2&ROW($DW228)),$DV228,$DV$2&ROW($DV228)),$DU228,$DU$2&ROW($DU228)),$DT228,$DT$2&ROW($DT228)),$DS228,$DS$2&ROW($DS228)))","v":"X=AS228*0.009"},{"$f":"IF(V228=\"\",0,\"X=\"&SUBSTITUTE(SUBSTITUTE(SUBSTITUTE(SUBSTITUTE(SUBSTITUTE(SUBSTITUTE(SUBSTITUTE(SUBSTITUTE(SUBSTITUTE(SUBSTITUTE(SUBSTITUTE(SUBSTITUTE(V228,$ED228,$ED$2&ROW($ED228)),$EC228,$EC$2&ROW($EC228)),$EB228,$EB$2&ROW($EB228)),$EA228,$EA$2&ROW($EA228)),$DZ228,$DZ$2&ROW($DZ228)),$DY228,$DY$2&ROW($DY228)),$DX228,$DX$2&ROW($DX228)),$DW228,$DW$2&ROW($DW228)),$DV228,$DV$2&ROW($DV228)),$DU228,$DU$2&ROW($DU228)),$DT228,$DT$2&ROW($DT228)),$DS228,$DS$2&ROW($DS228)))","v":"X=AS228*0.004"},{"$f":"IF(W228=\"\",0,\"X=\"&SUBSTITUTE(SUBSTITUTE(SUBSTITUTE(SUBSTITUTE(SUBSTITUTE(SUBSTITUTE(SUBSTITUTE(SUBSTITUTE(SUBSTITUTE(SUBSTITUTE(SUBSTITUTE(SUBSTITUTE(W228,$ED228,$ED$2&ROW($ED228)),$EC228,$EC$2&ROW($EC228)),$EB228,$EB$2&ROW($EB228)),$EA228,$EA$2&ROW($EA228)),$DZ228,$DZ$2&ROW($DZ228)),$DY228,$DY$2&ROW($DY228)),$DX228,$DX$2&ROW($DX228)),$DW228,$DW$2&ROW($DW228)),$DV228,$DV$2&ROW($DV228)),$DU228,$DU$2&ROW($DU228)),$DT228,$DT$2&ROW($DT228)),$DS228,$DS$2&ROW($DS228)))","v":"X=AS228*-0.005"},{"$f":"IF(X228=\"\",0,\"X=\"&SUBSTITUTE(SUBSTITUTE(SUBSTITUTE(SUBSTITUTE(SUBSTITUTE(SUBSTITUTE(SUBSTITUTE(SUBSTITUTE(SUBSTITUTE(SUBSTITUTE(SUBSTITUTE(SUBSTITUTE(X228,$ED228,$ED$2&ROW($ED228)),$EC228,$EC$2&ROW($EC228)),$EB228,$EB$2&ROW($EB228)),$EA228,$EA$2&ROW($EA228)),$DZ228,$DZ$2&ROW($DZ228)),$DY228,$DY$2&ROW($DY228)),$DX228,$DX$2&ROW($DX228)),$DW228,$DW$2&ROW($DW228)),$DV228,$DV$2&ROW($DV228)),$DU228,$DU$2&ROW($DU228)),$DT228,$DT$2&ROW($DT228)),$DS228,$DS$2&ROW($DS228)))","v":"X=AS228*-0.004"},{"$f":"IF(Y228=\"\",0,\"X=\"&SUBSTITUTE(SUBSTITUTE(SUBSTITUTE(SUBSTITUTE(SUBSTITUTE(SUBSTITUTE(SUBSTITUTE(SUBSTITUTE(SUBSTITUTE(SUBSTITUTE(SUBSTITUTE(SUBSTITUTE(Y228,$ED228,$ED$2&ROW($ED228)),$EC228,$EC$2&ROW($EC228)),$EB228,$EB$2&ROW($EB228)),$EA228,$EA$2&ROW($EA228)),$DZ228,$DZ$2&ROW($DZ228)),$DY228,$DY$2&ROW($DY228)),$DX228,$DX$2&ROW($DX228)),$DW228,$DW$2&ROW($DW228)),$DV228,$DV$2&ROW($DV228)),$DU228,$DU$2&ROW($DU228)),$DT228,$DT$2&ROW($DT228)),$DS228,$DS$2&ROW($DS228)))","v":"X=AS228*-0.035"},{"$f":"IF(Z228=\"\",0,\"X=\"&SUBSTITUTE(SUBSTITUTE(SUBSTITUTE(SUBSTITUTE(SUBSTITUTE(SUBSTITUTE(SUBSTITUTE(SUBSTITUTE(SUBSTITUTE(SUBSTITUTE(SUBSTITUTE(SUBSTITUTE(Z228,$ED228,$ED$2&ROW($ED228)),$EC228,$EC$2&ROW($EC228)),$EB228,$EB$2&ROW($EB228)),$EA228,$EA$2&ROW($EA228)),$DZ228,$DZ$2&ROW($DZ228)),$DY228,$DY$2&ROW($DY228)),$DX228,$DX$2&ROW($DX228)),$DW228,$DW$2&ROW($DW228)),$DV228,$DV$2&ROW($DV228)),$DU228,$DU$2&ROW($DU228)),$DT228,$DT$2&ROW($DT228)),$DS228,$DS$2&ROW($DS228)))","v":"X=AS228*-0.001"},{"$f":"IF(AA228=\"\",0,\"X=\"&SUBSTITUTE(SUBSTITUTE(SUBSTITUTE(SUBSTITUTE(SUBSTITUTE(SUBSTITUTE(SUBSTITUTE(SUBSTITUTE(SUBSTITUTE(SUBSTITUTE(SUBSTITUTE(SUBSTITUTE(AA228,$ED228,$ED$2&ROW($ED228)),$EC228,$EC$2&ROW($EC228)),$EB228,$EB$2&ROW($EB228)),$EA228,$EA$2&ROW($EA228)),$DZ228,$DZ$2&ROW($DZ228)),$DY228,$DY$2&ROW($DY228)),$DX228,$DX$2&ROW($DX228)),$DW228,$DW$2&ROW($DW228)),$DV228,$DV$2&ROW($DV228)),$DU228,$DU$2&ROW($DU228)),$DT228,$DT$2&ROW($DT228)),$DS228,$DS$2&ROW($DS228)))","v":"X=AS228*-0.007"},{"$f":"IF(AB228=\"\",0,\"X=\"&SUBSTITUTE(SUBSTITUTE(SUBSTITUTE(SUBSTITUTE(SUBSTITUTE(SUBSTITUTE(SUBSTITUTE(SUBSTITUTE(SUBSTITUTE(SUBSTITUTE(SUBSTITUTE(SUBSTITUTE(AB228,$ED228,$ED$2&ROW($ED228)),$EC228,$EC$2&ROW($EC228)),$EB228,$EB$2&ROW($EB228)),$EA228,$EA$2&ROW($EA228)),$DZ228,$DZ$2&ROW($DZ228)),$DY228,$DY$2&ROW($DY228)),$DX228,$DX$2&ROW($DX228)),$DW228,$DW$2&ROW($DW228)),$DV228,$DV$2&ROW($DV228)),$DU228,$DU$2&ROW($DU228)),$DT228,$DT$2&ROW($DT228)),$DS228,$DS$2&ROW($DS228)))","v":0},null,null,"{Factor:WinterCF}","{Factor:SummerCF}",{"$f":"IFERROR(INDEX($EG228:$IV228,MATCH(0,COUNTIF($DR228:DT228,$EG228:$IV228),0)),\"\")","v":"{Measure:Quantity}"},{"$f":"IFERROR(INDEX($EG228:$IV228,MATCH(0,COUNTIF($DR228:DU228,$EG228:$IV228),0)),\"\")","v":""},{"$f":"IFERROR(INDEX($EG228:$IV228,MATCH(0,COUNTIF($DR228:DV228,$EG228:$IV228),0)),\"\")","v":""},{"$f":"IFERROR(INDEX($EG228:$IV228,MATCH(0,COUNTIF($DR228:DW228,$EG228:$IV228),0)),\"\")","v":""},{"$f":"IFERROR(INDEX($EG228:$IV228,MATCH(0,COUNTIF($DR228:DX228,$EG228:$IV228),0)),\"\")","v":""},{"$f":"IFERROR(INDEX($EG228:$IV228,MATCH(0,COUNTIF($DR228:DY228,$EG228:$IV228),0)),\"\")","v":""},{"$f":"IFERROR(INDEX($EG228:$IV228,MATCH(0,COUNTIF($DR228:DZ228,$EG228:$IV228),0)),\"\")","v":""},{"$f":"IFERROR(INDEX($EG228:$IV228,MATCH(0,COUNTIF($DR228:EA228,$EG228:$IV228),0)),\"\")","v":""},{"$f":"IFERROR(INDEX($EG228:$IV228,MATCH(0,COUNTIF($DR228:EB228,$EG228:$IV228),0)),\"\")","v":""},{"$f":"IFERROR(INDEX($EG228:$IV228,MATCH(0,COUNTIF($DR228:EC228,$EG228:$IV228),0)),\"\")","v":""},null,null,{"$f":"IFERROR(MID($G228,FIND(CHAR(160),SUBSTITUTE($G228,\"{\",CHAR(160),EG$1)),FIND(CHAR(160),SUBSTITUTE($G228,\"}\",CHAR(160),EG$1))-FIND(CHAR(160),SUBSTITUTE($G228,\"{\",CHAR(160),EG$1))+1),\"\")","v":""},{"$f":"IFERROR(MID($G228,FIND(CHAR(160),SUBSTITUTE($G228,\"{\",CHAR(160),EH$1)),FIND(CHAR(160),SUBSTITUTE($G228,\"}\",CHAR(160),EH$1))-FIND(CHAR(160),SUBSTITUTE($G228,\"{\",CHAR(160),EH$1))+1),\"\")","v":""},{"$f":"IFERROR(MID($G228,FIND(CHAR(160),SUBSTITUTE($G228,\"{\",CHAR(160),EI$1)),FIND(CHAR(160),SUBSTITUTE($G228,\"}\",CHAR(160),EI$1))-FIND(CHAR(160),SUBSTITUTE($G228,\"{\",CHAR(160),EI$1))+1),\"\")","v":""},{"$f":"IFERROR(MID($G228,FIND(CHAR(160),SUBSTITUTE($G228,\"{\",CHAR(160),EJ$1)),FIND(CHAR(160),SUBSTITUTE($G228,\"}\",CHAR(160),EJ$1))-FIND(CHAR(160),SUBSTITUTE($G228,\"{\",CHAR(160),EJ$1))+1),\"\")","v":""},{"$f":"IFERROR(MID($G228,FIND(CHAR(160),SUBSTITUTE($G228,\"{\",CHAR(160),EK$1)),FIND(CHAR(160),SUBSTITUTE($G228,\"}\",CHAR(160),EK$1))-FIND(CHAR(160),SUBSTITUTE($G228,\"{\",CHAR(160),EK$1))+1),\"\")","v":""},{"$f":"IFERROR(MID($G228,FIND(CHAR(160),SUBSTITUTE($G228,\"{\",CHAR(160),EL$1)),FIND(CHAR(160),SUBSTITUTE($G228,\"}\",CHAR(160),EL$1))-FIND(CHAR(160),SUBSTITUTE($G228,\"{\",CHAR(160),EL$1))+1),\"\")","v":""},{"$f":"IFERROR(MID($G228,FIND(CHAR(160),SUBSTITUTE($G228,\"{\",CHAR(160),EM$1)),FIND(CHAR(160),SUBSTITUTE($G228,\"}\",CHAR(160),EM$1))-FIND(CHAR(160),SUBSTITUTE($G228,\"{\",CHAR(160),EM$1))+1),\"\")","v":""},{"$f":"IFERROR(MID($G228,FIND(CHAR(160),SUBSTITUTE($G228,\"{\",CHAR(160),EN$1)),FIND(CHAR(160),SUBSTITUTE($G228,\"}\",CHAR(160),EN$1))-FIND(CHAR(160),SUBSTITUTE($G228,\"{\",CHAR(160),EN$1))+1),\"\")","v":""},{"$f":"IFERROR(MID($G228,FIND(CHAR(160),SUBSTITUTE($G228,\"{\",CHAR(160),EO$1)),FIND(CHAR(160),SUBSTITUTE($G228,\"}\",CHAR(160),EO$1))-FIND(CHAR(160),SUBSTITUTE($G228,\"{\",CHAR(160),EO$1))+1),\"\")","v":""},{"$f":"IFERROR(MID($G228,FIND(CHAR(160),SUBSTITUTE($G228,\"{\",CHAR(160),EP$1)),FIND(CHAR(160),SUBSTITUTE($G228,\"}\",CHAR(160),EP$1))-FIND(CHAR(160),SUBSTITUTE($G228,\"{\",CHAR(160),EP$1))+1),\"\")","v":""},{"$f":"IFERROR(MID($J228,FIND(CHAR(160),SUBSTITUTE($J228,\"{\",CHAR(160),EQ$1)),FIND(CHAR(160),SUBSTITUTE($J228,\"}\",CHAR(160),EQ$1))-FIND(CHAR(160),SUBSTITUTE($J228,\"{\",CHAR(160),EQ$1))+1),\"\")","v":""},{"$f":"IFERROR(MID($J228,FIND(CHAR(160),SUBSTITUTE($J228,\"{\",CHAR(160),ER$1)),FIND(CHAR(160),SUBSTITUTE($J228,\"}\",CHAR(160),ER$1))-FIND(CHAR(160),SUBSTITUTE($J228,\"{\",CHAR(160),ER$1))+1),\"\")","v":""},{"$f":"IFERROR(MID($J228,FIND(CHAR(160),SUBSTITUTE($J228,\"{\",CHAR(160),ES$1)),FIND(CHAR(160),SUBSTITUTE($J228,\"}\",CHAR(160),ES$1))-FIND(CHAR(160),SUBSTITUTE($J228,\"{\",CHAR(160),ES$1))+1),\"\")","v":""},{"$f":"IFERROR(MID($J228,FIND(CHAR(160),SUBSTITUTE($J228,\"{\",CHAR(160),ET$1)),FIND(CHAR(160),SUBSTITUTE($J228,\"}\",CHAR(160),ET$1))-FIND(CHAR(160),SUBSTITUTE($J228,\"{\",CHAR(160),ET$1))+1),\"\")","v":""},{"$f":"IFERROR(MID($J228,FIND(CHAR(160),SUBSTITUTE($J228,\"{\",CHAR(160),EU$1)),FIND(CHAR(160),SUBSTITUTE($J228,\"}\",CHAR(160),EU$1))-FIND(CHAR(160),SUBSTITUTE($J228,\"{\",CHAR(160),EU$1))+1),\"\")","v":""},{"$f":"IFERROR(MID($J228,FIND(CHAR(160),SUBSTITUTE($J228,\"{\",CHAR(160),EV$1)),FIND(CHAR(160),SUBSTITUTE($J228,\"}\",CHAR(160),EV$1))-FIND(CHAR(160),SUBSTITUTE($J228,\"{\",CHAR(160),EV$1))+1),\"\")","v":""},{"$f":"IFERROR(MID($J228,FIND(CHAR(160),SUBSTITUTE($J228,\"{\",CHAR(160),EW$1)),FIND(CHAR(160),SUBSTITUTE($J228,\"}\",CHAR(160),EW$1))-FIND(CHAR(160),SUBSTITUTE($J228,\"{\",CHAR(160),EW$1))+1),\"\")","v":""},{"$f":"IFERROR(MID($J228,FIND(CHAR(160),SUBSTITUTE($J228,\"{\",CHAR(160),EX$1)),FIND(CHAR(160),SUBSTITUTE($J228,\"}\",CHAR(160),EX$1))-FIND(CHAR(160),SUBSTITUTE($J228,\"{\",CHAR(160),EX$1))+1),\"\")","v":""},{"$f":"IFERROR(MID($J228,FIND(CHAR(160),SUBSTITUTE($J228,\"{\",CHAR(160),EY$1)),FIND(CHAR(160),SUBSTITUTE($J228,\"}\",CHAR(160),EY$1))-FIND(CHAR(160),SUBSTITUTE($J228,\"{\",CHAR(160),EY$1))+1),\"\")","v":""},{"$f":"IFERROR(MID($J228,FIND(CHAR(160),SUBSTITUTE($J228,\"{\",CHAR(160),EZ$1)),FIND(CHAR(160),SUBSTITUTE($J228,\"}\",CHAR(160),EZ$1))-FIND(CHAR(160),SUBSTITUTE($J228,\"{\",CHAR(160),EZ$1))+1),\"\")","v":""},{"$f":"IFERROR(MID($J228,FIND(CHAR(160),SUBSTITUTE($J228,\"{\",CHAR(160),FA$1)),FIND(CHAR(160),SUBSTITUTE($J228,\"}\",CHAR(160),FA$1))-FIND(CHAR(160),SUBSTITUTE($J228,\"{\",CHAR(160),FA$1))+1),\"\")","v":""},{"$f":"IFERROR(MID($J228,FIND(CHAR(160),SUBSTITUTE($J228,\"{\",CHAR(160),FB$1)),FIND(CHAR(160),SUBSTITUTE($J228,\"}\",CHAR(160),FB$1))-FIND(CHAR(160),SUBSTITUTE($J228,\"{\",CHAR(160),FB$1))+1),\"\")","v":""},{"$f":"IFERROR(MID($O228,FIND(CHAR(160),SUBSTITUTE($O228,\"{\",CHAR(160),FC$1)),FIND(CHAR(160),SUBSTITUTE($O228,\"}\",CHAR(160),FC$1))-FIND(CHAR(160),SUBSTITUTE($O228,\"{\",CHAR(160),FC$1))+1),\"\")","v":""},{"$f":"IFERROR(MID($O228,FIND(CHAR(160),SUBSTITUTE($O228,\"{\",CHAR(160),FD$1)),FIND(CHAR(160),SUBSTITUTE($O228,\"}\",CHAR(160),FD$1))-FIND(CHAR(160),SUBSTITUTE($O228,\"{\",CHAR(160),FD$1))+1),\"\")","v":""},{"$f":"IFERROR(MID($O228,FIND(CHAR(160),SUBSTITUTE($O228,\"{\",CHAR(160),FE$1)),FIND(CHAR(160),SUBSTITUTE($O228,\"}\",CHAR(160),FE$1))-FIND(CHAR(160),SUBSTITUTE($O228,\"{\",CHAR(160),FE$1))+1),\"\")","v":""},{"$f":"IFERROR(MID($O228,FIND(CHAR(160),SUBSTITUTE($O228,\"{\",CHAR(160),FF$1)),FIND(CHAR(160),SUBSTITUTE($O228,\"}\",CHAR(160),FF$1))-FIND(CHAR(160),SUBSTITUTE($O228,\"{\",CHAR(160),FF$1))+1),\"\")","v":""},{"$f":"IFERROR(MID($O228,FIND(CHAR(160),SUBSTITUTE($O228,\"{\",CHAR(160),FG$1)),FIND(CHAR(160),SUBSTITUTE($O228,\"}\",CHAR(160),FG$1))-FIND(CHAR(160),SUBSTITUTE($O228,\"{\",CHAR(160),FG$1))+1),\"\")","v":""},{"$f":"IFERROR(MID($O228,FIND(CHAR(160),SUBSTITUTE($O228,\"{\",CHAR(160),FH$1)),FIND(CHAR(160),SUBSTITUTE($O228,\"}\",CHAR(160),FH$1))-FIND(CHAR(160),SUBSTITUTE($O228,\"{\",CHAR(160),FH$1))+1),\"\")","v":""},{"$f":"IFERROR(MID($O228,FIND(CHAR(160),SUBSTITUTE($O228,\"{\",CHAR(160),FI$1)),FIND(CHAR(160),SUBSTITUTE($O228,\"}\",CHAR(160),FI$1))-FIND(CHAR(160),SUBSTITUTE($O228,\"{\",CHAR(160),FI$1))+1),\"\")","v":""},{"$f":"IFERROR(MID($O228,FIND(CHAR(160),SUBSTITUTE($O228,\"{\",CHAR(160),FJ$1)),FIND(CHAR(160),SUBSTITUTE($O228,\"}\",CHAR(160),FJ$1))-FIND(CHAR(160),SUBSTITUTE($O228,\"{\",CHAR(160),FJ$1))+1),\"\")","v":""},{"$f":"IFERROR(MID($O228,FIND(CHAR(160),SUBSTITUTE($O228,\"{\",CHAR(160),FK$1)),FIND(CHAR(160),SUBSTITUTE($O228,\"}\",CHAR(160),FK$1))-FIND(CHAR(160),SUBSTITUTE($O228,\"{\",CHAR(160),FK$1))+1),\"\")","v":"{Measure:Quantity}"},{"$f":"IFERROR(MID($O228,FIND(CHAR(160),SUBSTITUTE($O228,\"{\",CHAR(160),FL$1)),FIND(CHAR(160),SUBSTITUTE($O228,\"}\",CHAR(160),FL$1))-FIND(CHAR(160),SUBSTITUTE($O228,\"{\",CHAR(160),FL$1))+1),\"\")","v":""},{"$f":"IFERROR(MID($R228,FIND(CHAR(160),SUBSTITUTE($R228,\"{\",CHAR(160),FM$1)),FIND(CHAR(160),SUBSTITUTE($R228,\"}\",CHAR(160),FM$1))-FIND(CHAR(160),SUBSTITUTE($R228,\"{\",CHAR(160),FM$1))+1),\"\")","v":""},{"$f":"IFERROR(MID($R228,FIND(CHAR(160),SUBSTITUTE($R228,\"{\",CHAR(160),FN$1)),FIND(CHAR(160),SUBSTITUTE($R228,\"}\",CHAR(160),FN$1))-FIND(CHAR(160),SUBSTITUTE($R228,\"{\",CHAR(160),FN$1))+1),\"\")","v":""},{"$f":"IFERROR(MID($R228,FIND(CHAR(160),SUBSTITUTE($R228,\"{\",CHAR(160),FO$1)),FIND(CHAR(160),SUBSTITUTE($R228,\"}\",CHAR(160),FO$1))-FIND(CHAR(160),SUBSTITUTE($R228,\"{\",CHAR(160),FO$1))+1),\"\")","v":""},{"$f":"IFERROR(MID($R228,FIND(CHAR(160),SUBSTITUTE($R228,\"{\",CHAR(160),FP$1)),FIND(CHAR(160),SUBSTITUTE($R228,\"}\",CHAR(160),FP$1))-FIND(CHAR(160),SUBSTITUTE($R228,\"{\",CHAR(160),FP$1))+1),\"\")","v":""},{"$f":"IFERROR(MID($R228,FIND(CHAR(160),SUBSTITUTE($R228,\"{\",CHAR(160),FQ$1)),FIND(CHAR(160),SUBSTITUTE($R228,\"}\",CHAR(160),FQ$1))-FIND(CHAR(160),SUBSTITUTE($R228,\"{\",CHAR(160),FQ$1))+1),\"\")","v":""},{"$f":"IFERROR(MID($R228,FIND(CHAR(160),SUBSTITUTE($R228,\"{\",CHAR(160),FR$1)),FIND(CHAR(160),SUBSTITUTE($R228,\"}\",CHAR(160),FR$1))-FIND(CHAR(160),SUBSTITUTE($R228,\"{\",CHAR(160),FR$1))+1),\"\")","v":""},{"$f":"IFERROR(MID($R228,FIND(CHAR(160),SUBSTITUTE($R228,\"{\",CHAR(160),FS$1)),FIND(CHAR(160),SUBSTITUTE($R228,\"}\",CHAR(160),FS$1))-FIND(CHAR(160),SUBSTITUTE($R228,\"{\",CHAR(160),FS$1))+1),\"\")","v":""},{"$f":"IFERROR(MID($R228,FIND(CHAR(160),SUBSTITUTE($R228,\"{\",CHAR(160),FT$1)),FIND(CHAR(160),SUBSTITUTE($R228,\"}\",CHAR(160),FT$1))-FIND(CHAR(160),SUBSTITUTE($R228,\"{\",CHAR(160),FT$1))+1),\"\")","v":""},{"$f":"IFERROR(MID($R228,FIND(CHAR(160),SUBSTITUTE($R228,\"{\",CHAR(160),FU$1)),FIND(CHAR(160),SUBSTITUTE($R228,\"}\",CHAR(160),FU$1))-FIND(CHAR(160),SUBSTITUTE($R228,\"{\",CHAR(160),FU$1))+1),\"\")","v":"{Measure:Quantity}"},{"$f":"IFERROR(MID($R228,FIND(CHAR(160),SUBSTITUTE($R228,\"{\",CHAR(160),FV$1)),FIND(CHAR(160),SUBSTITUTE($R228,\"}\",CHAR(160),FV$1))-FIND(CHAR(160),SUBSTITUTE($R228,\"{\",CHAR(160),FV$1))+1),\"\")","v":""},{"$f":"IFERROR(MID($U228,FIND(CHAR(160),SUBSTITUTE($U228,\"{\",CHAR(160),FW$1)),FIND(CHAR(160),SUBSTITUTE($U228,\"}\",CHAR(160),FW$1))-FIND(CHAR(160),SUBSTITUTE($U228,\"{\",CHAR(160),FW$1))+1),\"\")","v":""},{"$f":"IFERROR(MID($U228,FIND(CHAR(160),SUBSTITUTE($U228,\"{\",CHAR(160),FX$1)),FIND(CHAR(160),SUBSTITUTE($U228,\"}\",CHAR(160),FX$1))-FIND(CHAR(160),SUBSTITUTE($U228,\"{\",CHAR(160),FX$1))+1),\"\")","v":""},{"$f":"IFERROR(MID($U228,FIND(CHAR(160),SUBSTITUTE($U228,\"{\",CHAR(160),FY$1)),FIND(CHAR(160),SUBSTITUTE($U228,\"}\",CHAR(160),FY$1))-FIND(CHAR(160),SUBSTITUTE($U228,\"{\",CHAR(160),FY$1))+1),\"\")","v":""},{"$f":"IFERROR(MID($U228,FIND(CHAR(160),SUBSTITUTE($U228,\"{\",CHAR(160),FZ$1)),FIND(CHAR(160),SUBSTITUTE($U228,\"}\",CHAR(160),FZ$1))-FIND(CHAR(160),SUBSTITUTE($U228,\"{\",CHAR(160),FZ$1))+1),\"\")","v":""},{"$f":"IFERROR(MID($U228,FIND(CHAR(160),SUBSTITUTE($U228,\"{\",CHAR(160),GA$1)),FIND(CHAR(160),SUBSTITUTE($U228,\"}\",CHAR(160),GA$1))-FIND(CHAR(160),SUBSTITUTE($U228,\"{\",CHAR(160),GA$1))+1),\"\")","v":""},{"$f":"IFERROR(MID($U228,FIND(CHAR(160),SUBSTITUTE($U228,\"{\",CHAR(160),GB$1)),FIND(CHAR(160),SUBSTITUTE($U228,\"}\",CHAR(160),GB$1))-FIND(CHAR(160),SUBSTITUTE($U228,\"{\",CHAR(160),GB$1))+1),\"\")","v":""},{"$f":"IFERROR(MID($U228,FIND(CHAR(160),SUBSTITUTE($U228,\"{\",CHAR(160),GC$1)),FIND(CHAR(160),SUBSTITUTE($U228,\"}\",CHAR(160),GC$1))-FIND(CHAR(160),SUBSTITUTE($U228,\"{\",CHAR(160),GC$1))+1),\"\")","v":""},{"$f":"IFERROR(MID($U228,FIND(CHAR(160),SUBSTITUTE($U228,\"{\",CHAR(160),GD$1)),FIND(CHAR(160),SUBSTITUTE($U228,\"}\",CHAR(160),GD$1))-FIND(CHAR(160),SUBSTITUTE($U228,\"{\",CHAR(160),GD$1))+1),\"\")","v":""},{"$f":"IFERROR(MID($U228,FIND(CHAR(160),SUBSTITUTE($U228,\"{\",CHAR(160),GE$1)),FIND(CHAR(160),SUBSTITUTE($U228,\"}\",CHAR(160),GE$1))-FIND(CHAR(160),SUBSTITUTE($U228,\"{\",CHAR(160),GE$1))+1),\"\")","v":"{Measure:Quantity}"},{"$f":"IFERROR(MID($U228,FIND(CHAR(160),SUBSTITUTE($U228,\"{\",CHAR(160),GF$1)),FIND(CHAR(160),SUBSTITUTE($U228,\"}\",CHAR(160),GF$1))-FIND(CHAR(160),SUBSTITUTE($U228,\"{\",CHAR(160),GF$1))+1),\"\")","v":""},{"$f":"IFERROR(MID($V228,FIND(CHAR(160),SUBSTITUTE($V228,\"{\",CHAR(160),GG$1)),FIND(CHAR(160),SUBSTITUTE($V228,\"}\",CHAR(160),GG$1))-FIND(CHAR(160),SUBSTITUTE($V228,\"{\",CHAR(160),GG$1))+1),\"\")","v":""},{"$f":"IFERROR(MID($V228,FIND(CHAR(160),SUBSTITUTE($V228,\"{\",CHAR(160),GH$1)),FIND(CHAR(160),SUBSTITUTE($V228,\"}\",CHAR(160),GH$1))-FIND(CHAR(160),SUBSTITUTE($V228,\"{\",CHAR(160),GH$1))+1),\"\")","v":""},{"$f":"IFERROR(MID($V228,FIND(CHAR(160),SUBSTITUTE($V228,\"{\",CHAR(160),GI$1)),FIND(CHAR(160),SUBSTITUTE($V228,\"}\",CHAR(160),GI$1))-FIND(CHAR(160),SUBSTITUTE($V228,\"{\",CHAR(160),GI$1))+1),\"\")","v":""},{"$f":"IFERROR(MID($V228,FIND(CHAR(160),SUBSTITUTE($V228,\"{\",CHAR(160),GJ$1)),FIND(CHAR(160),SUBSTITUTE($V228,\"}\",CHAR(160),GJ$1))-FIND(CHAR(160),SUBSTITUTE($V228,\"{\",CHAR(160),GJ$1))+1),\"\")","v":""},{"$f":"IFERROR(MID($V228,FIND(CHAR(160),SUBSTITUTE($V228,\"{\",CHAR(160),GK$1)),FIND(CHAR(160),SUBSTITUTE($V228,\"}\",CHAR(160),GK$1))-FIND(CHAR(160),SUBSTITUTE($V228,\"{\",CHAR(160),GK$1))+1),\"\")","v":""},{"$f":"IFERROR(MID($V228,FIND(CHAR(160),SUBSTITUTE($V228,\"{\",CHAR(160),GL$1)),FIND(CHAR(160),SUBSTITUTE($V228,\"}\",CHAR(160),GL$1))-FIND(CHAR(160),SUBSTITUTE($V228,\"{\",CHAR(160),GL$1))+1),\"\")","v":""},{"$f":"IFERROR(MID($V228,FIND(CHAR(160),SUBSTITUTE($V228,\"{\",CHAR(160),GM$1)),FIND(CHAR(160),SUBSTITUTE($V228,\"}\",CHAR(160),GM$1))-FIND(CHAR(160),SUBSTITUTE($V228,\"{\",CHAR(160),GM$1))+1),\"\")","v":""},{"$f":"IFERROR(MID($V228,FIND(CHAR(160),SUBSTITUTE($V228,\"{\",CHAR(160),GN$1)),FIND(CHAR(160),SUBSTITUTE($V228,\"}\",CHAR(160),GN$1))-FIND(CHAR(160),SUBSTITUTE($V228,\"{\",CHAR(160),GN$1))+1),\"\")","v":""},{"$f":"IFERROR(MID($V228,FIND(CHAR(160),SUBSTITUTE($V228,\"{\",CHAR(160),GO$1)),FIND(CHAR(160),SUBSTITUTE($V228,\"}\",CHAR(160),GO$1))-FIND(CHAR(160),SUBSTITUTE($V228,\"{\",CHAR(160),GO$1))+1),\"\")","v":"{Measure:Quantity}"},{"$f":"IFERROR(MID($V228,FIND(CHAR(160),SUBSTITUTE($V228,\"{\",CHAR(160),GP$1)),FIND(CHAR(160),SUBSTITUTE($V228,\"}\",CHAR(160),GP$1))-FIND(CHAR(160),SUBSTITUTE($V228,\"{\",CHAR(160),GP$1))+1),\"\")","v":""},{"$f":"IFERROR(MID($W228,FIND(CHAR(160),SUBSTITUTE($W228,\"{\",CHAR(160),GQ$1)),FIND(CHAR(160),SUBSTITUTE($W228,\"}\",CHAR(160),GQ$1))-FIND(CHAR(160),SUBSTITUTE($W228,\"{\",CHAR(160),GQ$1))+1),\"\")","v":""},{"$f":"IFERROR(MID($W228,FIND(CHAR(160),SUBSTITUTE($W228,\"{\",CHAR(160),GR$1)),FIND(CHAR(160),SUBSTITUTE($W228,\"}\",CHAR(160),GR$1))-FIND(CHAR(160),SUBSTITUTE($W228,\"{\",CHAR(160),GR$1))+1),\"\")","v":""},{"$f":"IFERROR(MID($W228,FIND(CHAR(160),SUBSTITUTE($W228,\"{\",CHAR(160),GS$1)),FIND(CHAR(160),SUBSTITUTE($W228,\"}\",CHAR(160),GS$1))-FIND(CHAR(160),SUBSTITUTE($W228,\"{\",CHAR(160),GS$1))+1),\"\")","v":""},{"$f":"IFERROR(MID($W228,FIND(CHAR(160),SUBSTITUTE($W228,\"{\",CHAR(160),GT$1)),FIND(CHAR(160),SUBSTITUTE($W228,\"}\",CHAR(160),GT$1))-FIND(CHAR(160),SUBSTITUTE($W228,\"{\",CHAR(160),GT$1))+1),\"\")","v":""},{"$f":"IFERROR(MID($W228,FIND(CHAR(160),SUBSTITUTE($W228,\"{\",CHAR(160),GU$1)),FIND(CHAR(160),SUBSTITUTE($W228,\"}\",CHAR(160),GU$1))-FIND(CHAR(160),SUBSTITUTE($W228,\"{\",CHAR(160),GU$1))+1),\"\")","v":""},{"$f":"IFERROR(MID($W228,FIND(CHAR(160),SUBSTITUTE($W228,\"{\",CHAR(160),GV$1)),FIND(CHAR(160),SUBSTITUTE($W228,\"}\",CHAR(160),GV$1))-FIND(CHAR(160),SUBSTITUTE($W228,\"{\",CHAR(160),GV$1))+1),\"\")","v":""},{"$f":"IFERROR(MID($W228,FIND(CHAR(160),SUBSTITUTE($W228,\"{\",CHAR(160),GW$1)),FIND(CHAR(160),SUBSTITUTE($W228,\"}\",CHAR(160),GW$1))-FIND(CHAR(160),SUBSTITUTE($W228,\"{\",CHAR(160),GW$1))+1),\"\")","v":""},{"$f":"IFERROR(MID($W228,FIND(CHAR(160),SUBSTITUTE($W228,\"{\",CHAR(160),GX$1)),FIND(CHAR(160),SUBSTITUTE($W228,\"}\",CHAR(160),GX$1))-FIND(CHAR(160),SUBSTITUTE($W228,\"{\",CHAR(160),GX$1))+1),\"\")","v":""},{"$f":"IFERROR(MID($W228,FIND(CHAR(160),SUBSTITUTE($W228,\"{\",CHAR(160),GY$1)),FIND(CHAR(160),SUBSTITUTE($W228,\"}\",CHAR(160),GY$1))-FIND(CHAR(160),SUBSTITUTE($W228,\"{\",CHAR(160),GY$1))+1),\"\")","v":"{Measure:Quantity}"},{"$f":"IFERROR(MID($W228,FIND(CHAR(160),SUBSTITUTE($W228,\"{\",CHAR(160),GZ$1)),FIND(CHAR(160),SUBSTITUTE($W228,\"}\",CHAR(160),GZ$1))-FIND(CHAR(160),SUBSTITUTE($W228,\"{\",CHAR(160),GZ$1))+1),\"\")","v":""},{"$f":"IFERROR(MID($X228,FIND(CHAR(160),SUBSTITUTE($X228,\"{\",CHAR(160),HA$1)),FIND(CHAR(160),SUBSTITUTE($X228,\"}\",CHAR(160),HA$1))-FIND(CHAR(160),SUBSTITUTE($X228,\"{\",CHAR(160),HA$1))+1),\"\")","v":""},{"$f":"IFERROR(MID($X228,FIND(CHAR(160),SUBSTITUTE($X228,\"{\",CHAR(160),HB$1)),FIND(CHAR(160),SUBSTITUTE($X228,\"}\",CHAR(160),HB$1))-FIND(CHAR(160),SUBSTITUTE($X228,\"{\",CHAR(160),HB$1))+1),\"\")","v":""},{"$f":"IFERROR(MID($X228,FIND(CHAR(160),SUBSTITUTE($X228,\"{\",CHAR(160),HC$1)),FIND(CHAR(160),SUBSTITUTE($X228,\"}\",CHAR(160),HC$1))-FIND(CHAR(160),SUBSTITUTE($X228,\"{\",CHAR(160),HC$1))+1),\"\")","v":""},{"$f":"IFERROR(MID($X228,FIND(CHAR(160),SUBSTITUTE($X228,\"{\",CHAR(160),HD$1)),FIND(CHAR(160),SUBSTITUTE($X228,\"}\",CHAR(160),HD$1))-FIND(CHAR(160),SUBSTITUTE($X228,\"{\",CHAR(160),HD$1))+1),\"\")","v":""},{"$f":"IFERROR(MID($X228,FIND(CHAR(160),SUBSTITUTE($X228,\"{\",CHAR(160),HE$1)),FIND(CHAR(160),SUBSTITUTE($X228,\"}\",CHAR(160),HE$1))-FIND(CHAR(160),SUBSTITUTE($X228,\"{\",CHAR(160),HE$1))+1),\"\")","v":""},{"$f":"IFERROR(MID($X228,FIND(CHAR(160),SUBSTITUTE($X228,\"{\",CHAR(160),HF$1)),FIND(CHAR(160),SUBSTITUTE($X228,\"}\",CHAR(160),HF$1))-FIND(CHAR(160),SUBSTITUTE($X228,\"{\",CHAR(160),HF$1))+1),\"\")","v":""},{"$f":"IFERROR(MID($X228,FIND(CHAR(160),SUBSTITUTE($X228,\"{\",CHAR(160),HG$1)),FIND(CHAR(160),SUBSTITUTE($X228,\"}\",CHAR(160),HG$1))-FIND(CHAR(160),SUBSTITUTE($X228,\"{\",CHAR(160),HG$1))+1),\"\")","v":""},{"$f":"IFERROR(MID($X228,FIND(CHAR(160),SUBSTITUTE($X228,\"{\",CHAR(160),HH$1)),FIND(CHAR(160),SUBSTITUTE($X228,\"}\",CHAR(160),HH$1))-FIND(CHAR(160),SUBSTITUTE($X228,\"{\",CHAR(160),HH$1))+1),\"\")","v":""},{"$f":"IFERROR(MID($X228,FIND(CHAR(160),SUBSTITUTE($X228,\"{\",CHAR(160),HI$1)),FIND(CHAR(160),SUBSTITUTE($X228,\"}\",CHAR(160),HI$1))-FIND(CHAR(160),SUBSTITUTE($X228,\"{\",CHAR(160),HI$1))+1),\"\")","v":"{Measure:Quantity}"},{"$f":"IFERROR(MID($X228,FIND(CHAR(160),SUBSTITUTE($X228,\"{\",CHAR(160),HJ$1)),FIND(CHAR(160),SUBSTITUTE($X228,\"}\",CHAR(160),HJ$1))-FIND(CHAR(160),SUBSTITUTE($X228,\"{\",CHAR(160),HJ$1))+1),\"\")","v":""},{"$f":"IFERROR(MID($Y228,FIND(CHAR(160),SUBSTITUTE($Y228,\"{\",CHAR(160),HK$1)),FIND(CHAR(160),SUBSTITUTE($Y228,\"}\",CHAR(160),HK$1))-FIND(CHAR(160),SUBSTITUTE($Y228,\"{\",CHAR(160),HK$1))+1),\"\")","v":""},{"$f":"IFERROR(MID($Y228,FIND(CHAR(160),SUBSTITUTE($Y228,\"{\",CHAR(160),HL$1)),FIND(CHAR(160),SUBSTITUTE($Y228,\"}\",CHAR(160),HL$1))-FIND(CHAR(160),SUBSTITUTE($Y228,\"{\",CHAR(160),HL$1))+1),\"\")","v":""},{"$f":"IFERROR(MID($Y228,FIND(CHAR(160),SUBSTITUTE($Y228,\"{\",CHAR(160),HM$1)),FIND(CHAR(160),SUBSTITUTE($Y228,\"}\",CHAR(160),HM$1))-FIND(CHAR(160),SUBSTITUTE($Y228,\"{\",CHAR(160),HM$1))+1),\"\")","v":""},{"$f":"IFERROR(MID($Y228,FIND(CHAR(160),SUBSTITUTE($Y228,\"{\",CHAR(160),HN$1)),FIND(CHAR(160),SUBSTITUTE($Y228,\"}\",CHAR(160),HN$1))-FIND(CHAR(160),SUBSTITUTE($Y228,\"{\",CHAR(160),HN$1))+1),\"\")","v":""},{"$f":"IFERROR(MID($Y228,FIND(CHAR(160),SUBSTITUTE($Y228,\"{\",CHAR(160),HO$1)),FIND(CHAR(160),SUBSTITUTE($Y228,\"}\",CHAR(160),HO$1))-FIND(CHAR(160),SUBSTITUTE($Y228,\"{\",CHAR(160),HO$1))+1),\"\")","v":""},{"$f":"IFERROR(MID($Y228,FIND(CHAR(160),SUBSTITUTE($Y228,\"{\",CHAR(160),HP$1)),FIND(CHAR(160),SUBSTITUTE($Y228,\"}\",CHAR(160),HP$1))-FIND(CHAR(160),SUBSTITUTE($Y228,\"{\",CHAR(160),HP$1))+1),\"\")","v":""},{"$f":"IFERROR(MID($Y228,FIND(CHAR(160),SUBSTITUTE($Y228,\"{\",CHAR(160),HQ$1)),FIND(CHAR(160),SUBSTITUTE($Y228,\"}\",CHAR(160),HQ$1))-FIND(CHAR(160),SUBSTITUTE($Y228,\"{\",CHAR(160),HQ$1))+1),\"\")","v":""},{"$f":"IFERROR(MID($Y228,FIND(CHAR(160),SUBSTITUTE($Y228,\"{\",CHAR(160),HR$1)),FIND(CHAR(160),SUBSTITUTE($Y228,\"}\",CHAR(160),HR$1))-FIND(CHAR(160),SUBSTITUTE($Y228,\"{\",CHAR(160),HR$1))+1),\"\")","v":""},{"$f":"IFERROR(MID($Y228,FIND(CHAR(160),SUBSTITUTE($Y228,\"{\",CHAR(160),HS$1)),FIND(CHAR(160),SUBSTITUTE($Y228,\"}\",CHAR(160),HS$1))-FIND(CHAR(160),SUBSTITUTE($Y228,\"{\",CHAR(160),HS$1))+1),\"\")","v":"{Measure:Quantity}"},{"$f":"IFERROR(MID($Y228,FIND(CHAR(160),SUBSTITUTE($Y228,\"{\",CHAR(160),HT$1)),FIND(CHAR(160),SUBSTITUTE($Y228,\"}\",CHAR(160),HT$1))-FIND(CHAR(160),SUBSTITUTE($Y228,\"{\",CHAR(160),HT$1))+1),\"\")","v":""},{"$f":"IFERROR(MID($Z228,FIND(CHAR(160),SUBSTITUTE($Z228,\"{\",CHAR(160),HU$1)),FIND(CHAR(160),SUBSTITUTE($Z228,\"}\",CHAR(160),HU$1))-FIND(CHAR(160),SUBSTITUTE($Z228,\"{\",CHAR(160),HU$1))+1),\"\")","v":""},{"$f":"IFERROR(MID($Z228,FIND(CHAR(160),SUBSTITUTE($Z228,\"{\",CHAR(160),HV$1)),FIND(CHAR(160),SUBSTITUTE($Z228,\"}\",CHAR(160),HV$1))-FIND(CHAR(160),SUBSTITUTE($Z228,\"{\",CHAR(160),HV$1))+1),\"\")","v":""},{"$f":"IFERROR(MID($Z228,FIND(CHAR(160),SUBSTITUTE($Z228,\"{\",CHAR(160),HW$1)),FIND(CHAR(160),SUBSTITUTE($Z228,\"}\",CHAR(160),HW$1))-FIND(CHAR(160),SUBSTITUTE($Z228,\"{\",CHAR(160),HW$1))+1),\"\")","v":""},{"$f":"IFERROR(MID($Z228,FIND(CHAR(160),SUBSTITUTE($Z228,\"{\",CHAR(160),HX$1)),FIND(CHAR(160),SUBSTITUTE($Z228,\"}\",CHAR(160),HX$1))-FIND(CHAR(160),SUBSTITUTE($Z228,\"{\",CHAR(160),HX$1))+1),\"\")","v":""},{"$f":"IFERROR(MID($Z228,FIND(CHAR(160),SUBSTITUTE($Z228,\"{\",CHAR(160),HY$1)),FIND(CHAR(160),SUBSTITUTE($Z228,\"}\",CHAR(160),HY$1))-FIND(CHAR(160),SUBSTITUTE($Z228,\"{\",CHAR(160),HY$1))+1),\"\")","v":""},{"$f":"IFERROR(MID($Z228,FIND(CHAR(160),SUBSTITUTE($Z228,\"{\",CHAR(160),HZ$1)),FIND(CHAR(160),SUBSTITUTE($Z228,\"}\",CHAR(160),HZ$1))-FIND(CHAR(160),SUBSTITUTE($Z228,\"{\",CHAR(160),HZ$1))+1),\"\")","v":""},{"$f":"IFERROR(MID($Z228,FIND(CHAR(160),SUBSTITUTE($Z228,\"{\",CHAR(160),IA$1)),FIND(CHAR(160),SUBSTITUTE($Z228,\"}\",CHAR(160),IA$1))-FIND(CHAR(160),SUBSTITUTE($Z228,\"{\",CHAR(160),IA$1))+1),\"\")","v":""},{"$f":"IFERROR(MID($Z228,FIND(CHAR(160),SUBSTITUTE($Z228,\"{\",CHAR(160),IB$1)),FIND(CHAR(160),SUBSTITUTE($Z228,\"}\",CHAR(160),IB$1))-FIND(CHAR(160),SUBSTITUTE($Z228,\"{\",CHAR(160),IB$1))+1),\"\")","v":""},{"$f":"IFERROR(MID($Z228,FIND(CHAR(160),SUBSTITUTE($Z228,\"{\",CHAR(160),IC$1)),FIND(CHAR(160),SUBSTITUTE($Z228,\"}\",CHAR(160),IC$1))-FIND(CHAR(160),SUBSTITUTE($Z228,\"{\",CHAR(160),IC$1))+1),\"\")","v":"{Measure:Quantity}"},{"$f":"IFERROR(MID($Z228,FIND(CHAR(160),SUBSTITUTE($Z228,\"{\",CHAR(160),ID$1)),FIND(CHAR(160),SUBSTITUTE($Z228,\"}\",CHAR(160),ID$1))-FIND(CHAR(160),SUBSTITUTE($Z228,\"{\",CHAR(160),ID$1))+1),\"\")","v":""},{"$f":"IFERROR(MID($AA228,FIND(CHAR(160),SUBSTITUTE($AA228,\"{\",CHAR(160),IE$1)),FIND(CHAR(160),SUBSTITUTE($AA228,\"}\",CHAR(160),IE$1))-FIND(CHAR(160),SUBSTITUTE($AA228,\"{\",CHAR(160),IE$1))+1),\"\")","v":""},{"$f":"IFERROR(MID($AA228,FIND(CHAR(160),SUBSTITUTE($AA228,\"{\",CHAR(160),IF$1)),FIND(CHAR(160),SUBSTITUTE($AA228,\"}\",CHAR(160),IF$1))-FIND(CHAR(160),SUBSTITUTE($AA228,\"{\",CHAR(160),IF$1))+1),\"\")","v":""},{"$f":"IFERROR(MID($AA228,FIND(CHAR(160),SUBSTITUTE($AA228,\"{\",CHAR(160),IG$1)),FIND(CHAR(160),SUBSTITUTE($AA228,\"}\",CHAR(160),IG$1))-FIND(CHAR(160),SUBSTITUTE($AA228,\"{\",CHAR(160),IG$1))+1),\"\")","v":""},{"$f":"IFERROR(MID($AA228,FIND(CHAR(160),SUBSTITUTE($AA228,\"{\",CHAR(160),IH$1)),FIND(CHAR(160),SUBSTITUTE($AA228,\"}\",CHAR(160),IH$1))-FIND(CHAR(160),SUBSTITUTE($AA228,\"{\",CHAR(160),IH$1))+1),\"\")","v":""},{"$f":"IFERROR(MID($AA228,FIND(CHAR(160),SUBSTITUTE($AA228,\"{\",CHAR(160),II$1)),FIND(CHAR(160),SUBSTITUTE($AA228,\"}\",CHAR(160),II$1))-FIND(CHAR(160),SUBSTITUTE($AA228,\"{\",CHAR(160),II$1))+1),\"\")","v":""},{"$f":"IFERROR(MID($AA228,FIND(CHAR(160),SUBSTITUTE($AA228,\"{\",CHAR(160),IJ$1)),FIND(CHAR(160),SUBSTITUTE($AA228,\"}\",CHAR(160),IJ$1))-FIND(CHAR(160),SUBSTITUTE($AA228,\"{\",CHAR(160),IJ$1))+1),\"\")","v":""},{"$f":"IFERROR(MID($AA228,FIND(CHAR(160),SUBSTITUTE($AA228,\"{\",CHAR(160),IK$1)),FIND(CHAR(160),SUBSTITUTE($AA228,\"}\",CHAR(160),IK$1))-FIND(CHAR(160),SUBSTITUTE($AA228,\"{\",CHAR(160),IK$1))+1),\"\")","v":""},{"$f":"IFERROR(MID($AA228,FIND(CHAR(160),SUBSTITUTE($AA228,\"{\",CHAR(160),IL$1)),FIND(CHAR(160),SUBSTITUTE($AA228,\"}\",CHAR(160),IL$1))-FIND(CHAR(160),SUBSTITUTE($AA228,\"{\",CHAR(160),IL$1))+1),\"\")","v":""},{"$f":"IFERROR(MID($AA228,FIND(CHAR(160),SUBSTITUTE($AA228,\"{\",CHAR(160),IM$1)),FIND(CHAR(160),SUBSTITUTE($AA228,\"}\",CHAR(160),IM$1))-FIND(CHAR(160),SUBSTITUTE($AA228,\"{\",CHAR(160),IM$1))+1),\"\")","v":"{Measure:Quantity}"},{"$f":"IFERROR(MID($AA228,FIND(CHAR(160),SUBSTITUTE($AA228,\"{\",CHAR(160),IN$1)),FIND(CHAR(160),SUBSTITUTE($AA228,\"}\",CHAR(160),IN$1))-FIND(CHAR(160),SUBSTITUTE($AA228,\"{\",CHAR(160),IN$1))+1),\"\")","v":""},{"$f":"IFERROR(MID($AB228,FIND(CHAR(160),SUBSTITUTE($AB228,\"{\",CHAR(160),IO$1)),FIND(CHAR(160),SUBSTITUTE($AB228,\"}\",CHAR(160),IO$1))-FIND(CHAR(160),SUBSTITUTE($AB228,\"{\",CHAR(160),IO$1))+1),\"\")","v":""},{"$f":"IFERROR(MID($AB228,FIND(CHAR(160),SUBSTITUTE($AB228,\"{\",CHAR(160),IP$1)),FIND(CHAR(160),SUBSTITUTE($AB228,\"}\",CHAR(160),IP$1))-FIND(CHAR(160),SUBSTITUTE($AB228,\"{\",CHAR(160),IP$1))+1),\"\")","v":""},{"$f":"IFERROR(MID($AB228,FIND(CHAR(160),SUBSTITUTE($AB228,\"{\",CHAR(160),IQ$1)),FIND(CHAR(160),SUBSTITUTE($AB228,\"}\",CHAR(160),IQ$1))-FIND(CHAR(160),SUBSTITUTE($AB228,\"{\",CHAR(160),IQ$1))+1),\"\")","v":""},{"$f":"IFERROR(MID($AB228,FIND(CHAR(160),SUBSTITUTE($AB228,\"{\",CHAR(160),IR$1)),FIND(CHAR(160),SUBSTITUTE($AB228,\"}\",CHAR(160),IR$1))-FIND(CHAR(160),SUBSTITUTE($AB228,\"{\",CHAR(160),IR$1))+1),\"\")","v":""},{"$f":"IFERROR(MID($AB228,FIND(CHAR(160),SUBSTITUTE($AB228,\"{\",CHAR(160),IS$1)),FIND(CHAR(160),SUBSTITUTE($AB228,\"}\",CHAR(160),IS$1))-FIND(CHAR(160),SUBSTITUTE($AB228,\"{\",CHAR(160),IS$1))+1),\"\")","v":""},{"$f":"IFERROR(MID($AB228,FIND(CHAR(160),SUBSTITUTE($AB228,\"{\",CHAR(160),IT$1)),FIND(CHAR(160),SUBSTITUTE($AB228,\"}\",CHAR(160),IT$1))-FIND(CHAR(160),SUBSTITUTE($AB228,\"{\",CHAR(160),IT$1))+1),\"\")","v":""},{"$f":"IFERROR(MID($AB228,FIND(CHAR(160),SUBSTITUTE($AB228,\"{\",CHAR(160),IU$1)),FIND(CHAR(160),SUBSTITUTE($AB228,\"}\",CHAR(160),IU$1))-FIND(CHAR(160),SUBSTITUTE($AB228,\"{\",CHAR(160),IU$1))+1),\"\")","v":""},{"$f":"IFERROR(MID($AB228,FIND(CHAR(160),SUBSTITUTE($AB228,\"{\",CHAR(160),IV$1)),FIND(CHAR(160),SUBSTITUTE($AB228,\"}\",CHAR(160),IV$1))-FIND(CHAR(160),SUBSTITUTE($AB228,\"{\",CHAR(160),IV$1))+1),\"\")","v":""},{"$f":"IFERROR(MID($AB228,FIND(CHAR(160),SUBSTITUTE($AB228,\"{\",CHAR(160),IW$1)),FIND(CHAR(160),SUBSTITUTE($AB228,\"}\",CHAR(160),IW$1))-FIND(CHAR(160),SUBSTITUTE($AB228,\"{\",CHAR(160),IW$1))+1),\"\")","v":""},{"$f":"IFERROR(MID($AB228,FIND(CHAR(160),SUBSTITUTE($AB228,\"{\",CHAR(160),IX$1)),FIND(CHAR(160),SUBSTITUTE($AB228,\"}\",CHAR(160),IX$1))-FIND(CHAR(160),SUBSTITUTE($AB228,\"{\",CHAR(160),IX$1))+1),\"\")","v":""},null,{"$f":"10-COUNTIF(DU228:ED228,\"\")","v":1}]
["Low Income Direct Mailing","Low Flow Handheld Shower Head Direct Install","LILHSH","2021-07-01","2022-06-30","Per Measure",32.44,0,"Per Measure",32.44,0,"2021-07-01","2022-06-30","Calculated","{Measure:Quantity}*if({Measure:Quantity}=0,0,442)",null,null,null,null,null,"{Measure:Quantity}*if({Measure:Quantity}=0,0,0.044)","{Measure:Quantity}*if({Measure:Quantity}=0,0,0.035)",null,null,null,null,null,"if({Measure:Quantity}=0,0,{Measure:Quantity}*3153)","2021-07-01","2022-06-30",10,8.0000000000000002E-3,5.0000000000000001E-3,0.35499999999999998,0.311,0.18099999999999999,0.153,0.88,1,1,0,0,null,{"$f":"DU229","v":"{Measure:Quantity}"},1,{"$f":"DV229","v":""},null,{"$f":"DW229","v":""},null,{"$f":"DX229","v":""},null,{"$f":"DY229","v":""},null,{"$f":"DZ229","v":""},null,{"$f":"EA229","v":""},null,{"$f":"EB229","v":""},null,{"$f":"EC229","v":""},null,{"$f":"ED229","v":""},null,{"$f":"AS229*IF(AS229=0,0,442)","v":442},0,0,0,0,0,{"$f":"AS229*IF(AS229=0,0,0.044)","v":4.3999999999999997E-2},{"$f":"AS229*IF(AS229=0,0,0.035)","v":3.5000000000000003E-2},0,0,0,0,0,{"$f":"IF(AS229=0,0,AS229*3153)","v":3153},null,"Res","Default DR",{"$f":"Benefits(BL229,BR229,BS229,BT229,BU229,BV229,BW229,BX229,BY229,BZ229,AE229,AH229,AI229,AJ229,AK229,AL229,AM229,AN229,AO229,AP229,CA229,CB229)","v":384.29816499516784},144.36705647454559,0,0,0,0,0,187.20144922985645,0,{"$f":"SUMPRODUCT(CC229:CK229,--(CC229:CK229>0))","v":715.8666706995698},{"$f":"-SUMPRODUCT(CC229:CK229,--(CC229:CK229<0))","v":0},null,{"$f":"32.44","v":32.44},null,null,{"$f":"CM229+CO229","v":32.44},{"$f":"IF(NetOrGross=\"Net\",(1-AO229+AP229),1)","v":1},{"$f":"(SUMPRODUCT(CC229:CJ229,--(CC229:CJ229>0))+CN229)*CS229/((-SUMPRODUCT(CC229:CJ229,--(CC229:CJ229<0))+MAX(CO229,CV229)+CP229+CQ229)*CS229+IF(FRIncentives=\"Yes\",CV229*(1-CS229),0))","v":22.067406618359119},1,{"$f":"32.44","v":32.44},null,"Electric","y",null,{"$f":"IF(F229=\"Manual Entry\",\"Manual\",IF(G229=\"\",0,\"X=\"&SUBSTITUTE(SUBSTITUTE(SUBSTITUTE(SUBSTITUTE(SUBSTITUTE(SUBSTITUTE(SUBSTITUTE(SUBSTITUTE(SUBSTITUTE(SUBSTITUTE(SUBSTITUTE(SUBSTITUTE(G229,$ED229,$ED$2&ROW($ED229)),$EC229,$EC$2&ROW($EC229)),$EB229,$EB$2&ROW($EB229)),$EA229,$EA$2&ROW($EA229)),$DZ229,$DZ$2&ROW($DZ229)),$DY229,$DY$2&ROW($DY229)),$DX229,$DX$2&ROW($DX229)),$DW229,$DW$2&ROW($DW229)),$DV229,$DV$2&ROW($DV229)),$DU229,$DU$2&ROW($DU229)),$DT229,$DT$2&ROW($DT229)),$DS229,$DS$2&ROW($DS229))))","v":"X=32.44"},{"$f":"IF(I229=\"Manual Entry\",\"Manual\",IF(J229=\"\",0,\"X=\"&SUBSTITUTE(SUBSTITUTE(SUBSTITUTE(SUBSTITUTE(SUBSTITUTE(SUBSTITUTE(SUBSTITUTE(SUBSTITUTE(SUBSTITUTE(SUBSTITUTE(SUBSTITUTE(SUBSTITUTE(J229,$ED229,$ED$2&ROW($ED229)),$EC229,$EC$2&ROW($EC229)),$EB229,$EB$2&ROW($EB229)),$EA229,$EA$2&ROW($EA229)),$DZ229,$DZ$2&ROW($DZ229)),$DY229,$DY$2&ROW($DY229)),$DX229,$DX$2&ROW($DX229)),$DW229,$DW$2&ROW($DW229)),$DV229,$DV$2&ROW($DV229)),$DU229,$DU$2&ROW($DU229)),$DT229,$DT$2&ROW($DT229)),$DS229,$DS$2&ROW($DS229))))","v":"X=32.44"},{"$f":"IF(O229=\"\",0,\"X=\"&SUBSTITUTE(SUBSTITUTE(SUBSTITUTE(SUBSTITUTE(SUBSTITUTE(SUBSTITUTE(SUBSTITUTE(SUBSTITUTE(SUBSTITUTE(SUBSTITUTE(SUBSTITUTE(SUBSTITUTE(O229,$ED229,$ED$2&ROW($ED229)),$EC229,$EC$2&ROW($EC229)),$EB229,$EB$2&ROW($EB229)),$EA229,$EA$2&ROW($EA229)),$DZ229,$DZ$2&ROW($DZ229)),$DY229,$DY$2&ROW($DY229)),$DX229,$DX$2&ROW($DX229)),$DW229,$DW$2&ROW($DW229)),$DV229,$DV$2&ROW($DV229)),$DU229,$DU$2&ROW($DU229)),$DT229,$DT$2&ROW($DT229)),$DS229,$DS$2&ROW($DS229)))","v":"X=AS229*if(AS229=0,0,442)"},{"$f":"IF(P229=\"\",0,\"X=\"&SUBSTITUTE(SUBSTITUTE(SUBSTITUTE(SUBSTITUTE(SUBSTITUTE(SUBSTITUTE(SUBSTITUTE(SUBSTITUTE(SUBSTITUTE(SUBSTITUTE(SUBSTITUTE(SUBSTITUTE(P229,$ED229,$ED$2&ROW($ED229)),$EC229,$EC$2&ROW($EC229)),$EB229,$EB$2&ROW($EB229)),$EA229,$EA$2&ROW($EA229)),$DZ229,$DZ$2&ROW($DZ229)),$DY229,$DY$2&ROW($DY229)),$DX229,$DX$2&ROW($DX229)),$DW229,$DW$2&ROW($DW229)),$DV229,$DV$2&ROW($DV229)),$DU229,$DU$2&ROW($DU229)),$DT229,$DT$2&ROW($DT229)),$DS229,$DS$2&ROW($DS229)))","v":0},{"$f":"IF(Q229=\"\",0,\"X=\"&SUBSTITUTE(SUBSTITUTE(SUBSTITUTE(SUBSTITUTE(SUBSTITUTE(SUBSTITUTE(SUBSTITUTE(SUBSTITUTE(SUBSTITUTE(SUBSTITUTE(SUBSTITUTE(SUBSTITUTE(Q229,$ED229,$ED$2&ROW($ED229)),$EC229,$EC$2&ROW($EC229)),$EB229,$EB$2&ROW($EB229)),$EA229,$EA$2&ROW($EA229)),$DZ229,$DZ$2&ROW($DZ229)),$DY229,$DY$2&ROW($DY229)),$DX229,$DX$2&ROW($DX229)),$DW229,$DW$2&ROW($DW229)),$DV229,$DV$2&ROW($DV229)),$DU229,$DU$2&ROW($DU229)),$DT229,$DT$2&ROW($DT229)),$DS229,$DS$2&ROW($DS229)))","v":0},{"$f":"IF(R229=\"\",0,\"X=\"&SUBSTITUTE(SUBSTITUTE(SUBSTITUTE(SUBSTITUTE(SUBSTITUTE(SUBSTITUTE(SUBSTITUTE(SUBSTITUTE(SUBSTITUTE(SUBSTITUTE(SUBSTITUTE(SUBSTITUTE(R229,$ED229,$ED$2&ROW($ED229)),$EC229,$EC$2&ROW($EC229)),$EB229,$EB$2&ROW($EB229)),$EA229,$EA$2&ROW($EA229)),$DZ229,$DZ$2&ROW($DZ229)),$DY229,$DY$2&ROW($DY229)),$DX229,$DX$2&ROW($DX229)),$DW229,$DW$2&ROW($DW229)),$DV229,$DV$2&ROW($DV229)),$DU229,$DU$2&ROW($DU229)),$DT229,$DT$2&ROW($DT229)),$DS229,$DS$2&ROW($DS229)))","v":0},{"$f":"IF(S229=\"\",0,\"X=\"&SUBSTITUTE(SUBSTITUTE(SUBSTITUTE(SUBSTITUTE(SUBSTITUTE(SUBSTITUTE(SUBSTITUTE(SUBSTITUTE(SUBSTITUTE(SUBSTITUTE(SUBSTITUTE(SUBSTITUTE(S229,$ED229,$ED$2&ROW($ED229)),$EC229,$EC$2&ROW($EC229)),$EB229,$EB$2&ROW($EB229)),$EA229,$EA$2&ROW($EA229)),$DZ229,$DZ$2&ROW($DZ229)),$DY229,$DY$2&ROW($DY229)),$DX229,$DX$2&ROW($DX229)),$DW229,$DW$2&ROW($DW229)),$DV229,$DV$2&ROW($DV229)),$DU229,$DU$2&ROW($DU229)),$DT229,$DT$2&ROW($DT229)),$DS229,$DS$2&ROW($DS229)))","v":0},{"$f":"IF(T229=\"\",0,\"X=\"&SUBSTITUTE(SUBSTITUTE(SUBSTITUTE(SUBSTITUTE(SUBSTITUTE(SUBSTITUTE(SUBSTITUTE(SUBSTITUTE(SUBSTITUTE(SUBSTITUTE(SUBSTITUTE(SUBSTITUTE(T229,$ED229,$ED$2&ROW($ED229)),$EC229,$EC$2&ROW($EC229)),$EB229,$EB$2&ROW($EB229)),$EA229,$EA$2&ROW($EA229)),$DZ229,$DZ$2&ROW($DZ229)),$DY229,$DY$2&ROW($DY229)),$DX229,$DX$2&ROW($DX229)),$DW229,$DW$2&ROW($DW229)),$DV229,$DV$2&ROW($DV229)),$DU229,$DU$2&ROW($DU229)),$DT229,$DT$2&ROW($DT229)),$DS229,$DS$2&ROW($DS229)))","v":0},{"$f":"IF(U229=\"\",0,\"X=\"&SUBSTITUTE(SUBSTITUTE(SUBSTITUTE(SUBSTITUTE(SUBSTITUTE(SUBSTITUTE(SUBSTITUTE(SUBSTITUTE(SUBSTITUTE(SUBSTITUTE(SUBSTITUTE(SUBSTITUTE(U229,$ED229,$ED$2&ROW($ED229)),$EC229,$EC$2&ROW($EC229)),$EB229,$EB$2&ROW($EB229)),$EA229,$EA$2&ROW($EA229)),$DZ229,$DZ$2&ROW($DZ229)),$DY229,$DY$2&ROW($DY229)),$DX229,$DX$2&ROW($DX229)),$DW229,$DW$2&ROW($DW229)),$DV229,$DV$2&ROW($DV229)),$DU229,$DU$2&ROW($DU229)),$DT229,$DT$2&ROW($DT229)),$DS229,$DS$2&ROW($DS229)))","v":"X=AS229*if(AS229=0,0,0.044)"},{"$f":"IF(V229=\"\",0,\"X=\"&SUBSTITUTE(SUBSTITUTE(SUBSTITUTE(SUBSTITUTE(SUBSTITUTE(SUBSTITUTE(SUBSTITUTE(SUBSTITUTE(SUBSTITUTE(SUBSTITUTE(SUBSTITUTE(SUBSTITUTE(V229,$ED229,$ED$2&ROW($ED229)),$EC229,$EC$2&ROW($EC229)),$EB229,$EB$2&ROW($EB229)),$EA229,$EA$2&ROW($EA229)),$DZ229,$DZ$2&ROW($DZ229)),$DY229,$DY$2&ROW($DY229)),$DX229,$DX$2&ROW($DX229)),$DW229,$DW$2&ROW($DW229)),$DV229,$DV$2&ROW($DV229)),$DU229,$DU$2&ROW($DU229)),$DT229,$DT$2&ROW($DT229)),$DS229,$DS$2&ROW($DS229)))","v":"X=AS229*if(AS229=0,0,0.035)"},{"$f":"IF(W229=\"\",0,\"X=\"&SUBSTITUTE(SUBSTITUTE(SUBSTITUTE(SUBSTITUTE(SUBSTITUTE(SUBSTITUTE(SUBSTITUTE(SUBSTITUTE(SUBSTITUTE(SUBSTITUTE(SUBSTITUTE(SUBSTITUTE(W229,$ED229,$ED$2&ROW($ED229)),$EC229,$EC$2&ROW($EC229)),$EB229,$EB$2&ROW($EB229)),$EA229,$EA$2&ROW($EA229)),$DZ229,$DZ$2&ROW($DZ229)),$DY229,$DY$2&ROW($DY229)),$DX229,$DX$2&ROW($DX229)),$DW229,$DW$2&ROW($DW229)),$DV229,$DV$2&ROW($DV229)),$DU229,$DU$2&ROW($DU229)),$DT229,$DT$2&ROW($DT229)),$DS229,$DS$2&ROW($DS229)))","v":0},{"$f":"IF(X229=\"\",0,\"X=\"&SUBSTITUTE(SUBSTITUTE(SUBSTITUTE(SUBSTITUTE(SUBSTITUTE(SUBSTITUTE(SUBSTITUTE(SUBSTITUTE(SUBSTITUTE(SUBSTITUTE(SUBSTITUTE(SUBSTITUTE(X229,$ED229,$ED$2&ROW($ED229)),$EC229,$EC$2&ROW($EC229)),$EB229,$EB$2&ROW($EB229)),$EA229,$EA$2&ROW($EA229)),$DZ229,$DZ$2&ROW($DZ229)),$DY229,$DY$2&ROW($DY229)),$DX229,$DX$2&ROW($DX229)),$DW229,$DW$2&ROW($DW229)),$DV229,$DV$2&ROW($DV229)),$DU229,$DU$2&ROW($DU229)),$DT229,$DT$2&ROW($DT229)),$DS229,$DS$2&ROW($DS229)))","v":0},{"$f":"IF(Y229=\"\",0,\"X=\"&SUBSTITUTE(SUBSTITUTE(SUBSTITUTE(SUBSTITUTE(SUBSTITUTE(SUBSTITUTE(SUBSTITUTE(SUBSTITUTE(SUBSTITUTE(SUBSTITUTE(SUBSTITUTE(SUBSTITUTE(Y229,$ED229,$ED$2&ROW($ED229)),$EC229,$EC$2&ROW($EC229)),$EB229,$EB$2&ROW($EB229)),$EA229,$EA$2&ROW($EA229)),$DZ229,$DZ$2&ROW($DZ229)),$DY229,$DY$2&ROW($DY229)),$DX229,$DX$2&ROW($DX229)),$DW229,$DW$2&ROW($DW229)),$DV229,$DV$2&ROW($DV229)),$DU229,$DU$2&ROW($DU229)),$DT229,$DT$2&ROW($DT229)),$DS229,$DS$2&ROW($DS229)))","v":0},{"$f":"IF(Z229=\"\",0,\"X=\"&SUBSTITUTE(SUBSTITUTE(SUBSTITUTE(SUBSTITUTE(SUBSTITUTE(SUBSTITUTE(SUBSTITUTE(SUBSTITUTE(SUBSTITUTE(SUBSTITUTE(SUBSTITUTE(SUBSTITUTE(Z229,$ED229,$ED$2&ROW($ED229)),$EC229,$EC$2&ROW($EC229)),$EB229,$EB$2&ROW($EB229)),$EA229,$EA$2&ROW($EA229)),$DZ229,$DZ$2&ROW($DZ229)),$DY229,$DY$2&ROW($DY229)),$DX229,$DX$2&ROW($DX229)),$DW229,$DW$2&ROW($DW229)),$DV229,$DV$2&ROW($DV229)),$DU229,$DU$2&ROW($DU229)),$DT229,$DT$2&ROW($DT229)),$DS229,$DS$2&ROW($DS229)))","v":0},{"$f":"IF(AA229=\"\",0,\"X=\"&SUBSTITUTE(SUBSTITUTE(SUBSTITUTE(SUBSTITUTE(SUBSTITUTE(SUBSTITUTE(SUBSTITUTE(SUBSTITUTE(SUBSTITUTE(SUBSTITUTE(SUBSTITUTE(SUBSTITUTE(AA229,$ED229,$ED$2&ROW($ED229)),$EC229,$EC$2&ROW($EC229)),$EB229,$EB$2&ROW($EB229)),$EA229,$EA$2&ROW($EA229)),$DZ229,$DZ$2&ROW($DZ229)),$DY229,$DY$2&ROW($DY229)),$DX229,$DX$2&ROW($DX229)),$DW229,$DW$2&ROW($DW229)),$DV229,$DV$2&ROW($DV229)),$DU229,$DU$2&ROW($DU229)),$DT229,$DT$2&ROW($DT229)),$DS229,$DS$2&ROW($DS229)))","v":0},{"$f":"IF(AB229=\"\",0,\"X=\"&SUBSTITUTE(SUBSTITUTE(SUBSTITUTE(SUBSTITUTE(SUBSTITUTE(SUBSTITUTE(SUBSTITUTE(SUBSTITUTE(SUBSTITUTE(SUBSTITUTE(SUBSTITUTE(SUBSTITUTE(AB229,$ED229,$ED$2&ROW($ED229)),$EC229,$EC$2&ROW($EC229)),$EB229,$EB$2&ROW($EB229)),$EA229,$EA$2&ROW($EA229)),$DZ229,$DZ$2&ROW($DZ229)),$DY229,$DY$2&ROW($DY229)),$DX229,$DX$2&ROW($DX229)),$DW229,$DW$2&ROW($DW229)),$DV229,$DV$2&ROW($DV229)),$DU229,$DU$2&ROW($DU229)),$DT229,$DT$2&ROW($DT229)),$DS229,$DS$2&ROW($DS229)))","v":"X=if(AS229=0,0,AS229*3153)"},null,null,"{Factor:WinterCF}","{Factor:SummerCF}",{"$f":"IFERROR(INDEX($EG229:$IV229,MATCH(0,COUNTIF($DR229:DT229,$EG229:$IV229),0)),\"\")","v":"{Measure:Quantity}"},{"$f":"IFERROR(INDEX($EG229:$IV229,MATCH(0,COUNTIF($DR229:DU229,$EG229:$IV229),0)),\"\")","v":""},{"$f":"IFERROR(INDEX($EG229:$IV229,MATCH(0,COUNTIF($DR229:DV229,$EG229:$IV229),0)),\"\")","v":""},{"$f":"IFERROR(INDEX($EG229:$IV229,MATCH(0,COUNTIF($DR229:DW229,$EG229:$IV229),0)),\"\")","v":""},{"$f":"IFERROR(INDEX($EG229:$IV229,MATCH(0,COUNTIF($DR229:DX229,$EG229:$IV229),0)),\"\")","v":""},{"$f":"IFERROR(INDEX($EG229:$IV229,MATCH(0,COUNTIF($DR229:DY229,$EG229:$IV229),0)),\"\")","v":""},{"$f":"IFERROR(INDEX($EG229:$IV229,MATCH(0,COUNTIF($DR229:DZ229,$EG229:$IV229),0)),\"\")","v":""},{"$f":"IFERROR(INDEX($EG229:$IV229,MATCH(0,COUNTIF($DR229:EA229,$EG229:$IV229),0)),\"\")","v":""},{"$f":"IFERROR(INDEX($EG229:$IV229,MATCH(0,COUNTIF($DR229:EB229,$EG229:$IV229),0)),\"\")","v":""},{"$f":"IFERROR(INDEX($EG229:$IV229,MATCH(0,COUNTIF($DR229:EC229,$EG229:$IV229),0)),\"\")","v":""},null,null,{"$f":"IFERROR(MID($G229,FIND(CHAR(160),SUBSTITUTE($G229,\"{\",CHAR(160),EG$1)),FIND(CHAR(160),SUBSTITUTE($G229,\"}\",CHAR(160),EG$1))-FIND(CHAR(160),SUBSTITUTE($G229,\"{\",CHAR(160),EG$1))+1),\"\")","v":""},{"$f":"IFERROR(MID($G229,FIND(CHAR(160),SUBSTITUTE($G229,\"{\",CHAR(160),EH$1)),FIND(CHAR(160),SUBSTITUTE($G229,\"}\",CHAR(160),EH$1))-FIND(CHAR(160),SUBSTITUTE($G229,\"{\",CHAR(160),EH$1))+1),\"\")","v":""},{"$f":"IFERROR(MID($G229,FIND(CHAR(160),SUBSTITUTE($G229,\"{\",CHAR(160),EI$1)),FIND(CHAR(160),SUBSTITUTE($G229,\"}\",CHAR(160),EI$1))-FIND(CHAR(160),SUBSTITUTE($G229,\"{\",CHAR(160),EI$1))+1),\"\")","v":""},{"$f":"IFERROR(MID($G229,FIND(CHAR(160),SUBSTITUTE($G229,\"{\",CHAR(160),EJ$1)),FIND(CHAR(160),SUBSTITUTE($G229,\"}\",CHAR(160),EJ$1))-FIND(CHAR(160),SUBSTITUTE($G229,\"{\",CHAR(160),EJ$1))+1),\"\")","v":""},{"$f":"IFERROR(MID($G229,FIND(CHAR(160),SUBSTITUTE($G229,\"{\",CHAR(160),EK$1)),FIND(CHAR(160),SUBSTITUTE($G229,\"}\",CHAR(160),EK$1))-FIND(CHAR(160),SUBSTITUTE($G229,\"{\",CHAR(160),EK$1))+1),\"\")","v":""},{"$f":"IFERROR(MID($G229,FIND(CHAR(160),SUBSTITUTE($G229,\"{\",CHAR(160),EL$1)),FIND(CHAR(160),SUBSTITUTE($G229,\"}\",CHAR(160),EL$1))-FIND(CHAR(160),SUBSTITUTE($G229,\"{\",CHAR(160),EL$1))+1),\"\")","v":""},{"$f":"IFERROR(MID($G229,FIND(CHAR(160),SUBSTITUTE($G229,\"{\",CHAR(160),EM$1)),FIND(CHAR(160),SUBSTITUTE($G229,\"}\",CHAR(160),EM$1))-FIND(CHAR(160),SUBSTITUTE($G229,\"{\",CHAR(160),EM$1))+1),\"\")","v":""},{"$f":"IFERROR(MID($G229,FIND(CHAR(160),SUBSTITUTE($G229,\"{\",CHAR(160),EN$1)),FIND(CHAR(160),SUBSTITUTE($G229,\"}\",CHAR(160),EN$1))-FIND(CHAR(160),SUBSTITUTE($G229,\"{\",CHAR(160),EN$1))+1),\"\")","v":""},{"$f":"IFERROR(MID($G229,FIND(CHAR(160),SUBSTITUTE($G229,\"{\",CHAR(160),EO$1)),FIND(CHAR(160),SUBSTITUTE($G229,\"}\",CHAR(160),EO$1))-FIND(CHAR(160),SUBSTITUTE($G229,\"{\",CHAR(160),EO$1))+1),\"\")","v":""},{"$f":"IFERROR(MID($G229,FIND(CHAR(160),SUBSTITUTE($G229,\"{\",CHAR(160),EP$1)),FIND(CHAR(160),SUBSTITUTE($G229,\"}\",CHAR(160),EP$1))-FIND(CHAR(160),SUBSTITUTE($G229,\"{\",CHAR(160),EP$1))+1),\"\")","v":""},{"$f":"IFERROR(MID($J229,FIND(CHAR(160),SUBSTITUTE($J229,\"{\",CHAR(160),EQ$1)),FIND(CHAR(160),SUBSTITUTE($J229,\"}\",CHAR(160),EQ$1))-FIND(CHAR(160),SUBSTITUTE($J229,\"{\",CHAR(160),EQ$1))+1),\"\")","v":""},{"$f":"IFERROR(MID($J229,FIND(CHAR(160),SUBSTITUTE($J229,\"{\",CHAR(160),ER$1)),FIND(CHAR(160),SUBSTITUTE($J229,\"}\",CHAR(160),ER$1))-FIND(CHAR(160),SUBSTITUTE($J229,\"{\",CHAR(160),ER$1))+1),\"\")","v":""},{"$f":"IFERROR(MID($J229,FIND(CHAR(160),SUBSTITUTE($J229,\"{\",CHAR(160),ES$1)),FIND(CHAR(160),SUBSTITUTE($J229,\"}\",CHAR(160),ES$1))-FIND(CHAR(160),SUBSTITUTE($J229,\"{\",CHAR(160),ES$1))+1),\"\")","v":""},{"$f":"IFERROR(MID($J229,FIND(CHAR(160),SUBSTITUTE($J229,\"{\",CHAR(160),ET$1)),FIND(CHAR(160),SUBSTITUTE($J229,\"}\",CHAR(160),ET$1))-FIND(CHAR(160),SUBSTITUTE($J229,\"{\",CHAR(160),ET$1))+1),\"\")","v":""},{"$f":"IFERROR(MID($J229,FIND(CHAR(160),SUBSTITUTE($J229,\"{\",CHAR(160),EU$1)),FIND(CHAR(160),SUBSTITUTE($J229,\"}\",CHAR(160),EU$1))-FIND(CHAR(160),SUBSTITUTE($J229,\"{\",CHAR(160),EU$1))+1),\"\")","v":""},{"$f":"IFERROR(MID($J229,FIND(CHAR(160),SUBSTITUTE($J229,\"{\",CHAR(160),EV$1)),FIND(CHAR(160),SUBSTITUTE($J229,\"}\",CHAR(160),EV$1))-FIND(CHAR(160),SUBSTITUTE($J229,\"{\",CHAR(160),EV$1))+1),\"\")","v":""},{"$f":"IFERROR(MID($J229,FIND(CHAR(160),SUBSTITUTE($J229,\"{\",CHAR(160),EW$1)),FIND(CHAR(160),SUBSTITUTE($J229,\"}\",CHAR(160),EW$1))-FIND(CHAR(160),SUBSTITUTE($J229,\"{\",CHAR(160),EW$1))+1),\"\")","v":""},{"$f":"IFERROR(MID($J229,FIND(CHAR(160),SUBSTITUTE($J229,\"{\",CHAR(160),EX$1)),FIND(CHAR(160),SUBSTITUTE($J229,\"}\",CHAR(160),EX$1))-FIND(CHAR(160),SUBSTITUTE($J229,\"{\",CHAR(160),EX$1))+1),\"\")","v":""},{"$f":"IFERROR(MID($J229,FIND(CHAR(160),SUBSTITUTE($J229,\"{\",CHAR(160),EY$1)),FIND(CHAR(160),SUBSTITUTE($J229,\"}\",CHAR(160),EY$1))-FIND(CHAR(160),SUBSTITUTE($J229,\"{\",CHAR(160),EY$1))+1),\"\")","v":""},{"$f":"IFERROR(MID($J229,FIND(CHAR(160),SUBSTITUTE($J229,\"{\",CHAR(160),EZ$1)),FIND(CHAR(160),SUBSTITUTE($J229,\"}\",CHAR(160),EZ$1))-FIND(CHAR(160),SUBSTITUTE($J229,\"{\",CHAR(160),EZ$1))+1),\"\")","v":""},{"$f":"IFERROR(MID($J229,FIND(CHAR(160),SUBSTITUTE($J229,\"{\",CHAR(160),FA$1)),FIND(CHAR(160),SUBSTITUTE($J229,\"}\",CHAR(160),FA$1))-FIND(CHAR(160),SUBSTITUTE($J229,\"{\",CHAR(160),FA$1))+1),\"\")","v":""},{"$f":"IFERROR(MID($J229,FIND(CHAR(160),SUBSTITUTE($J229,\"{\",CHAR(160),FB$1)),FIND(CHAR(160),SUBSTITUTE($J229,\"}\",CHAR(160),FB$1))-FIND(CHAR(160),SUBSTITUTE($J229,\"{\",CHAR(160),FB$1))+1),\"\")","v":""},{"$f":"IFERROR(MID($O229,FIND(CHAR(160),SUBSTITUTE($O229,\"{\",CHAR(160),FC$1)),FIND(CHAR(160),SUBSTITUTE($O229,\"}\",CHAR(160),FC$1))-FIND(CHAR(160),SUBSTITUTE($O229,\"{\",CHAR(160),FC$1))+1),\"\")","v":""},{"$f":"IFERROR(MID($O229,FIND(CHAR(160),SUBSTITUTE($O229,\"{\",CHAR(160),FD$1)),FIND(CHAR(160),SUBSTITUTE($O229,\"}\",CHAR(160),FD$1))-FIND(CHAR(160),SUBSTITUTE($O229,\"{\",CHAR(160),FD$1))+1),\"\")","v":""},{"$f":"IFERROR(MID($O229,FIND(CHAR(160),SUBSTITUTE($O229,\"{\",CHAR(160),FE$1)),FIND(CHAR(160),SUBSTITUTE($O229,\"}\",CHAR(160),FE$1))-FIND(CHAR(160),SUBSTITUTE($O229,\"{\",CHAR(160),FE$1))+1),\"\")","v":""},{"$f":"IFERROR(MID($O229,FIND(CHAR(160),SUBSTITUTE($O229,\"{\",CHAR(160),FF$1)),FIND(CHAR(160),SUBSTITUTE($O229,\"}\",CHAR(160),FF$1))-FIND(CHAR(160),SUBSTITUTE($O229,\"{\",CHAR(160),FF$1))+1),\"\")","v":""},{"$f":"IFERROR(MID($O229,FIND(CHAR(160),SUBSTITUTE($O229,\"{\",CHAR(160),FG$1)),FIND(CHAR(160),SUBSTITUTE($O229,\"}\",CHAR(160),FG$1))-FIND(CHAR(160),SUBSTITUTE($O229,\"{\",CHAR(160),FG$1))+1),\"\")","v":""},{"$f":"IFERROR(MID($O229,FIND(CHAR(160),SUBSTITUTE($O229,\"{\",CHAR(160),FH$1)),FIND(CHAR(160),SUBSTITUTE($O229,\"}\",CHAR(160),FH$1))-FIND(CHAR(160),SUBSTITUTE($O229,\"{\",CHAR(160),FH$1))+1),\"\")","v":""},{"$f":"IFERROR(MID($O229,FIND(CHAR(160),SUBSTITUTE($O229,\"{\",CHAR(160),FI$1)),FIND(CHAR(160),SUBSTITUTE($O229,\"}\",CHAR(160),FI$1))-FIND(CHAR(160),SUBSTITUTE($O229,\"{\",CHAR(160),FI$1))+1),\"\")","v":""},{"$f":"IFERROR(MID($O229,FIND(CHAR(160),SUBSTITUTE($O229,\"{\",CHAR(160),FJ$1)),FIND(CHAR(160),SUBSTITUTE($O229,\"}\",CHAR(160),FJ$1))-FIND(CHAR(160),SUBSTITUTE($O229,\"{\",CHAR(160),FJ$1))+1),\"\")","v":""},{"$f":"IFERROR(MID($O229,FIND(CHAR(160),SUBSTITUTE($O229,\"{\",CHAR(160),FK$1)),FIND(CHAR(160),SUBSTITUTE($O229,\"}\",CHAR(160),FK$1))-FIND(CHAR(160),SUBSTITUTE($O229,\"{\",CHAR(160),FK$1))+1),\"\")","v":"{Measure:Quantity}"},{"$f":"IFERROR(MID($O229,FIND(CHAR(160),SUBSTITUTE($O229,\"{\",CHAR(160),FL$1)),FIND(CHAR(160),SUBSTITUTE($O229,\"}\",CHAR(160),FL$1))-FIND(CHAR(160),SUBSTITUTE($O229,\"{\",CHAR(160),FL$1))+1),\"\")","v":"{Measure:Quantity}"},{"$f":"IFERROR(MID($R229,FIND(CHAR(160),SUBSTITUTE($R229,\"{\",CHAR(160),FM$1)),FIND(CHAR(160),SUBSTITUTE($R229,\"}\",CHAR(160),FM$1))-FIND(CHAR(160),SUBSTITUTE($R229,\"{\",CHAR(160),FM$1))+1),\"\")","v":""},{"$f":"IFERROR(MID($R229,FIND(CHAR(160),SUBSTITUTE($R229,\"{\",CHAR(160),FN$1)),FIND(CHAR(160),SUBSTITUTE($R229,\"}\",CHAR(160),FN$1))-FIND(CHAR(160),SUBSTITUTE($R229,\"{\",CHAR(160),FN$1))+1),\"\")","v":""},{"$f":"IFERROR(MID($R229,FIND(CHAR(160),SUBSTITUTE($R229,\"{\",CHAR(160),FO$1)),FIND(CHAR(160),SUBSTITUTE($R229,\"}\",CHAR(160),FO$1))-FIND(CHAR(160),SUBSTITUTE($R229,\"{\",CHAR(160),FO$1))+1),\"\")","v":""},{"$f":"IFERROR(MID($R229,FIND(CHAR(160),SUBSTITUTE($R229,\"{\",CHAR(160),FP$1)),FIND(CHAR(160),SUBSTITUTE($R229,\"}\",CHAR(160),FP$1))-FIND(CHAR(160),SUBSTITUTE($R229,\"{\",CHAR(160),FP$1))+1),\"\")","v":""},{"$f":"IFERROR(MID($R229,FIND(CHAR(160),SUBSTITUTE($R229,\"{\",CHAR(160),FQ$1)),FIND(CHAR(160),SUBSTITUTE($R229,\"}\",CHAR(160),FQ$1))-FIND(CHAR(160),SUBSTITUTE($R229,\"{\",CHAR(160),FQ$1))+1),\"\")","v":""},{"$f":"IFERROR(MID($R229,FIND(CHAR(160),SUBSTITUTE($R229,\"{\",CHAR(160),FR$1)),FIND(CHAR(160),SUBSTITUTE($R229,\"}\",CHAR(160),FR$1))-FIND(CHAR(160),SUBSTITUTE($R229,\"{\",CHAR(160),FR$1))+1),\"\")","v":""},{"$f":"IFERROR(MID($R229,FIND(CHAR(160),SUBSTITUTE($R229,\"{\",CHAR(160),FS$1)),FIND(CHAR(160),SUBSTITUTE($R229,\"}\",CHAR(160),FS$1))-FIND(CHAR(160),SUBSTITUTE($R229,\"{\",CHAR(160),FS$1))+1),\"\")","v":""},{"$f":"IFERROR(MID($R229,FIND(CHAR(160),SUBSTITUTE($R229,\"{\",CHAR(160),FT$1)),FIND(CHAR(160),SUBSTITUTE($R229,\"}\",CHAR(160),FT$1))-FIND(CHAR(160),SUBSTITUTE($R229,\"{\",CHAR(160),FT$1))+1),\"\")","v":""},{"$f":"IFERROR(MID($R229,FIND(CHAR(160),SUBSTITUTE($R229,\"{\",CHAR(160),FU$1)),FIND(CHAR(160),SUBSTITUTE($R229,\"}\",CHAR(160),FU$1))-FIND(CHAR(160),SUBSTITUTE($R229,\"{\",CHAR(160),FU$1))+1),\"\")","v":""},{"$f":"IFERROR(MID($R229,FIND(CHAR(160),SUBSTITUTE($R229,\"{\",CHAR(160),FV$1)),FIND(CHAR(160),SUBSTITUTE($R229,\"}\",CHAR(160),FV$1))-FIND(CHAR(160),SUBSTITUTE($R229,\"{\",CHAR(160),FV$1))+1),\"\")","v":""},{"$f":"IFERROR(MID($U229,FIND(CHAR(160),SUBSTITUTE($U229,\"{\",CHAR(160),FW$1)),FIND(CHAR(160),SUBSTITUTE($U229,\"}\",CHAR(160),FW$1))-FIND(CHAR(160),SUBSTITUTE($U229,\"{\",CHAR(160),FW$1))+1),\"\")","v":""},{"$f":"IFERROR(MID($U229,FIND(CHAR(160),SUBSTITUTE($U229,\"{\",CHAR(160),FX$1)),FIND(CHAR(160),SUBSTITUTE($U229,\"}\",CHAR(160),FX$1))-FIND(CHAR(160),SUBSTITUTE($U229,\"{\",CHAR(160),FX$1))+1),\"\")","v":""},{"$f":"IFERROR(MID($U229,FIND(CHAR(160),SUBSTITUTE($U229,\"{\",CHAR(160),FY$1)),FIND(CHAR(160),SUBSTITUTE($U229,\"}\",CHAR(160),FY$1))-FIND(CHAR(160),SUBSTITUTE($U229,\"{\",CHAR(160),FY$1))+1),\"\")","v":""},{"$f":"IFERROR(MID($U229,FIND(CHAR(160),SUBSTITUTE($U229,\"{\",CHAR(160),FZ$1)),FIND(CHAR(160),SUBSTITUTE($U229,\"}\",CHAR(160),FZ$1))-FIND(CHAR(160),SUBSTITUTE($U229,\"{\",CHAR(160),FZ$1))+1),\"\")","v":""},{"$f":"IFERROR(MID($U229,FIND(CHAR(160),SUBSTITUTE($U229,\"{\",CHAR(160),GA$1)),FIND(CHAR(160),SUBSTITUTE($U229,\"}\",CHAR(160),GA$1))-FIND(CHAR(160),SUBSTITUTE($U229,\"{\",CHAR(160),GA$1))+1),\"\")","v":""},{"$f":"IFERROR(MID($U229,FIND(CHAR(160),SUBSTITUTE($U229,\"{\",CHAR(160),GB$1)),FIND(CHAR(160),SUBSTITUTE($U229,\"}\",CHAR(160),GB$1))-FIND(CHAR(160),SUBSTITUTE($U229,\"{\",CHAR(160),GB$1))+1),\"\")","v":""},{"$f":"IFERROR(MID($U229,FIND(CHAR(160),SUBSTITUTE($U229,\"{\",CHAR(160),GC$1)),FIND(CHAR(160),SUBSTITUTE($U229,\"}\",CHAR(160),GC$1))-FIND(CHAR(160),SUBSTITUTE($U229,\"{\",CHAR(160),GC$1))+1),\"\")","v":""},{"$f":"IFERROR(MID($U229,FIND(CHAR(160),SUBSTITUTE($U229,\"{\",CHAR(160),GD$1)),FIND(CHAR(160),SUBSTITUTE($U229,\"}\",CHAR(160),GD$1))-FIND(CHAR(160),SUBSTITUTE($U229,\"{\",CHAR(160),GD$1))+1),\"\")","v":""},{"$f":"IFERROR(MID($U229,FIND(CHAR(160),SUBSTITUTE($U229,\"{\",CHAR(160),GE$1)),FIND(CHAR(160),SUBSTITUTE($U229,\"}\",CHAR(160),GE$1))-FIND(CHAR(160),SUBSTITUTE($U229,\"{\",CHAR(160),GE$1))+1),\"\")","v":"{Measure:Quantity}"},{"$f":"IFERROR(MID($U229,FIND(CHAR(160),SUBSTITUTE($U229,\"{\",CHAR(160),GF$1)),FIND(CHAR(160),SUBSTITUTE($U229,\"}\",CHAR(160),GF$1))-FIND(CHAR(160),SUBSTITUTE($U229,\"{\",CHAR(160),GF$1))+1),\"\")","v":"{Measure:Quantity}"},{"$f":"IFERROR(MID($V229,FIND(CHAR(160),SUBSTITUTE($V229,\"{\",CHAR(160),GG$1)),FIND(CHAR(160),SUBSTITUTE($V229,\"}\",CHAR(160),GG$1))-FIND(CHAR(160),SUBSTITUTE($V229,\"{\",CHAR(160),GG$1))+1),\"\")","v":""},{"$f":"IFERROR(MID($V229,FIND(CHAR(160),SUBSTITUTE($V229,\"{\",CHAR(160),GH$1)),FIND(CHAR(160),SUBSTITUTE($V229,\"}\",CHAR(160),GH$1))-FIND(CHAR(160),SUBSTITUTE($V229,\"{\",CHAR(160),GH$1))+1),\"\")","v":""},{"$f":"IFERROR(MID($V229,FIND(CHAR(160),SUBSTITUTE($V229,\"{\",CHAR(160),GI$1)),FIND(CHAR(160),SUBSTITUTE($V229,\"}\",CHAR(160),GI$1))-FIND(CHAR(160),SUBSTITUTE($V229,\"{\",CHAR(160),GI$1))+1),\"\")","v":""},{"$f":"IFERROR(MID($V229,FIND(CHAR(160),SUBSTITUTE($V229,\"{\",CHAR(160),GJ$1)),FIND(CHAR(160),SUBSTITUTE($V229,\"}\",CHAR(160),GJ$1))-FIND(CHAR(160),SUBSTITUTE($V229,\"{\",CHAR(160),GJ$1))+1),\"\")","v":""},{"$f":"IFERROR(MID($V229,FIND(CHAR(160),SUBSTITUTE($V229,\"{\",CHAR(160),GK$1)),FIND(CHAR(160),SUBSTITUTE($V229,\"}\",CHAR(160),GK$1))-FIND(CHAR(160),SUBSTITUTE($V229,\"{\",CHAR(160),GK$1))+1),\"\")","v":""},{"$f":"IFERROR(MID($V229,FIND(CHAR(160),SUBSTITUTE($V229,\"{\",CHAR(160),GL$1)),FIND(CHAR(160),SUBSTITUTE($V229,\"}\",CHAR(160),GL$1))-FIND(CHAR(160),SUBSTITUTE($V229,\"{\",CHAR(160),GL$1))+1),\"\")","v":""},{"$f":"IFERROR(MID($V229,FIND(CHAR(160),SUBSTITUTE($V229,\"{\",CHAR(160),GM$1)),FIND(CHAR(160),SUBSTITUTE($V229,\"}\",CHAR(160),GM$1))-FIND(CHAR(160),SUBSTITUTE($V229,\"{\",CHAR(160),GM$1))+1),\"\")","v":""},{"$f":"IFERROR(MID($V229,FIND(CHAR(160),SUBSTITUTE($V229,\"{\",CHAR(160),GN$1)),FIND(CHAR(160),SUBSTITUTE($V229,\"}\",CHAR(160),GN$1))-FIND(CHAR(160),SUBSTITUTE($V229,\"{\",CHAR(160),GN$1))+1),\"\")","v":""},{"$f":"IFERROR(MID($V229,FIND(CHAR(160),SUBSTITUTE($V229,\"{\",CHAR(160),GO$1)),FIND(CHAR(160),SUBSTITUTE($V229,\"}\",CHAR(160),GO$1))-FIND(CHAR(160),SUBSTITUTE($V229,\"{\",CHAR(160),GO$1))+1),\"\")","v":"{Measure:Quantity}"},{"$f":"IFERROR(MID($V229,FIND(CHAR(160),SUBSTITUTE($V229,\"{\",CHAR(160),GP$1)),FIND(CHAR(160),SUBSTITUTE($V229,\"}\",CHAR(160),GP$1))-FIND(CHAR(160),SUBSTITUTE($V229,\"{\",CHAR(160),GP$1))+1),\"\")","v":"{Measure:Quantity}"},{"$f":"IFERROR(MID($W229,FIND(CHAR(160),SUBSTITUTE($W229,\"{\",CHAR(160),GQ$1)),FIND(CHAR(160),SUBSTITUTE($W229,\"}\",CHAR(160),GQ$1))-FIND(CHAR(160),SUBSTITUTE($W229,\"{\",CHAR(160),GQ$1))+1),\"\")","v":""},{"$f":"IFERROR(MID($W229,FIND(CHAR(160),SUBSTITUTE($W229,\"{\",CHAR(160),GR$1)),FIND(CHAR(160),SUBSTITUTE($W229,\"}\",CHAR(160),GR$1))-FIND(CHAR(160),SUBSTITUTE($W229,\"{\",CHAR(160),GR$1))+1),\"\")","v":""},{"$f":"IFERROR(MID($W229,FIND(CHAR(160),SUBSTITUTE($W229,\"{\",CHAR(160),GS$1)),FIND(CHAR(160),SUBSTITUTE($W229,\"}\",CHAR(160),GS$1))-FIND(CHAR(160),SUBSTITUTE($W229,\"{\",CHAR(160),GS$1))+1),\"\")","v":""},{"$f":"IFERROR(MID($W229,FIND(CHAR(160),SUBSTITUTE($W229,\"{\",CHAR(160),GT$1)),FIND(CHAR(160),SUBSTITUTE($W229,\"}\",CHAR(160),GT$1))-FIND(CHAR(160),SUBSTITUTE($W229,\"{\",CHAR(160),GT$1))+1),\"\")","v":""},{"$f":"IFERROR(MID($W229,FIND(CHAR(160),SUBSTITUTE($W229,\"{\",CHAR(160),GU$1)),FIND(CHAR(160),SUBSTITUTE($W229,\"}\",CHAR(160),GU$1))-FIND(CHAR(160),SUBSTITUTE($W229,\"{\",CHAR(160),GU$1))+1),\"\")","v":""},{"$f":"IFERROR(MID($W229,FIND(CHAR(160),SUBSTITUTE($W229,\"{\",CHAR(160),GV$1)),FIND(CHAR(160),SUBSTITUTE($W229,\"}\",CHAR(160),GV$1))-FIND(CHAR(160),SUBSTITUTE($W229,\"{\",CHAR(160),GV$1))+1),\"\")","v":""},{"$f":"IFERROR(MID($W229,FIND(CHAR(160),SUBSTITUTE($W229,\"{\",CHAR(160),GW$1)),FIND(CHAR(160),SUBSTITUTE($W229,\"}\",CHAR(160),GW$1))-FIND(CHAR(160),SUBSTITUTE($W229,\"{\",CHAR(160),GW$1))+1),\"\")","v":""},{"$f":"IFERROR(MID($W229,FIND(CHAR(160),SUBSTITUTE($W229,\"{\",CHAR(160),GX$1)),FIND(CHAR(160),SUBSTITUTE($W229,\"}\",CHAR(160),GX$1))-FIND(CHAR(160),SUBSTITUTE($W229,\"{\",CHAR(160),GX$1))+1),\"\")","v":""},{"$f":"IFERROR(MID($W229,FIND(CHAR(160),SUBSTITUTE($W229,\"{\",CHAR(160),GY$1)),FIND(CHAR(160),SUBSTITUTE($W229,\"}\",CHAR(160),GY$1))-FIND(CHAR(160),SUBSTITUTE($W229,\"{\",CHAR(160),GY$1))+1),\"\")","v":""},{"$f":"IFERROR(MID($W229,FIND(CHAR(160),SUBSTITUTE($W229,\"{\",CHAR(160),GZ$1)),FIND(CHAR(160),SUBSTITUTE($W229,\"}\",CHAR(160),GZ$1))-FIND(CHAR(160),SUBSTITUTE($W229,\"{\",CHAR(160),GZ$1))+1),\"\")","v":""},{"$f":"IFERROR(MID($X229,FIND(CHAR(160),SUBSTITUTE($X229,\"{\",CHAR(160),HA$1)),FIND(CHAR(160),SUBSTITUTE($X229,\"}\",CHAR(160),HA$1))-FIND(CHAR(160),SUBSTITUTE($X229,\"{\",CHAR(160),HA$1))+1),\"\")","v":""},{"$f":"IFERROR(MID($X229,FIND(CHAR(160),SUBSTITUTE($X229,\"{\",CHAR(160),HB$1)),FIND(CHAR(160),SUBSTITUTE($X229,\"}\",CHAR(160),HB$1))-FIND(CHAR(160),SUBSTITUTE($X229,\"{\",CHAR(160),HB$1))+1),\"\")","v":""},{"$f":"IFERROR(MID($X229,FIND(CHAR(160),SUBSTITUTE($X229,\"{\",CHAR(160),HC$1)),FIND(CHAR(160),SUBSTITUTE($X229,\"}\",CHAR(160),HC$1))-FIND(CHAR(160),SUBSTITUTE($X229,\"{\",CHAR(160),HC$1))+1),\"\")","v":""},{"$f":"IFERROR(MID($X229,FIND(CHAR(160),SUBSTITUTE($X229,\"{\",CHAR(160),HD$1)),FIND(CHAR(160),SUBSTITUTE($X229,\"}\",CHAR(160),HD$1))-FIND(CHAR(160),SUBSTITUTE($X229,\"{\",CHAR(160),HD$1))+1),\"\")","v":""},{"$f":"IFERROR(MID($X229,FIND(CHAR(160),SUBSTITUTE($X229,\"{\",CHAR(160),HE$1)),FIND(CHAR(160),SUBSTITUTE($X229,\"}\",CHAR(160),HE$1))-FIND(CHAR(160),SUBSTITUTE($X229,\"{\",CHAR(160),HE$1))+1),\"\")","v":""},{"$f":"IFERROR(MID($X229,FIND(CHAR(160),SUBSTITUTE($X229,\"{\",CHAR(160),HF$1)),FIND(CHAR(160),SUBSTITUTE($X229,\"}\",CHAR(160),HF$1))-FIND(CHAR(160),SUBSTITUTE($X229,\"{\",CHAR(160),HF$1))+1),\"\")","v":""},{"$f":"IFERROR(MID($X229,FIND(CHAR(160),SUBSTITUTE($X229,\"{\",CHAR(160),HG$1)),FIND(CHAR(160),SUBSTITUTE($X229,\"}\",CHAR(160),HG$1))-FIND(CHAR(160),SUBSTITUTE($X229,\"{\",CHAR(160),HG$1))+1),\"\")","v":""},{"$f":"IFERROR(MID($X229,FIND(CHAR(160),SUBSTITUTE($X229,\"{\",CHAR(160),HH$1)),FIND(CHAR(160),SUBSTITUTE($X229,\"}\",CHAR(160),HH$1))-FIND(CHAR(160),SUBSTITUTE($X229,\"{\",CHAR(160),HH$1))+1),\"\")","v":""},{"$f":"IFERROR(MID($X229,FIND(CHAR(160),SUBSTITUTE($X229,\"{\",CHAR(160),HI$1)),FIND(CHAR(160),SUBSTITUTE($X229,\"}\",CHAR(160),HI$1))-FIND(CHAR(160),SUBSTITUTE($X229,\"{\",CHAR(160),HI$1))+1),\"\")","v":""},{"$f":"IFERROR(MID($X229,FIND(CHAR(160),SUBSTITUTE($X229,\"{\",CHAR(160),HJ$1)),FIND(CHAR(160),SUBSTITUTE($X229,\"}\",CHAR(160),HJ$1))-FIND(CHAR(160),SUBSTITUTE($X229,\"{\",CHAR(160),HJ$1))+1),\"\")","v":""},{"$f":"IFERROR(MID($Y229,FIND(CHAR(160),SUBSTITUTE($Y229,\"{\",CHAR(160),HK$1)),FIND(CHAR(160),SUBSTITUTE($Y229,\"}\",CHAR(160),HK$1))-FIND(CHAR(160),SUBSTITUTE($Y229,\"{\",CHAR(160),HK$1))+1),\"\")","v":""},{"$f":"IFERROR(MID($Y229,FIND(CHAR(160),SUBSTITUTE($Y229,\"{\",CHAR(160),HL$1)),FIND(CHAR(160),SUBSTITUTE($Y229,\"}\",CHAR(160),HL$1))-FIND(CHAR(160),SUBSTITUTE($Y229,\"{\",CHAR(160),HL$1))+1),\"\")","v":""},{"$f":"IFERROR(MID($Y229,FIND(CHAR(160),SUBSTITUTE($Y229,\"{\",CHAR(160),HM$1)),FIND(CHAR(160),SUBSTITUTE($Y229,\"}\",CHAR(160),HM$1))-FIND(CHAR(160),SUBSTITUTE($Y229,\"{\",CHAR(160),HM$1))+1),\"\")","v":""},{"$f":"IFERROR(MID($Y229,FIND(CHAR(160),SUBSTITUTE($Y229,\"{\",CHAR(160),HN$1)),FIND(CHAR(160),SUBSTITUTE($Y229,\"}\",CHAR(160),HN$1))-FIND(CHAR(160),SUBSTITUTE($Y229,\"{\",CHAR(160),HN$1))+1),\"\")","v":""},{"$f":"IFERROR(MID($Y229,FIND(CHAR(160),SUBSTITUTE($Y229,\"{\",CHAR(160),HO$1)),FIND(CHAR(160),SUBSTITUTE($Y229,\"}\",CHAR(160),HO$1))-FIND(CHAR(160),SUBSTITUTE($Y229,\"{\",CHAR(160),HO$1))+1),\"\")","v":""},{"$f":"IFERROR(MID($Y229,FIND(CHAR(160),SUBSTITUTE($Y229,\"{\",CHAR(160),HP$1)),FIND(CHAR(160),SUBSTITUTE($Y229,\"}\",CHAR(160),HP$1))-FIND(CHAR(160),SUBSTITUTE($Y229,\"{\",CHAR(160),HP$1))+1),\"\")","v":""},{"$f":"IFERROR(MID($Y229,FIND(CHAR(160),SUBSTITUTE($Y229,\"{\",CHAR(160),HQ$1)),FIND(CHAR(160),SUBSTITUTE($Y229,\"}\",CHAR(160),HQ$1))-FIND(CHAR(160),SUBSTITUTE($Y229,\"{\",CHAR(160),HQ$1))+1),\"\")","v":""},{"$f":"IFERROR(MID($Y229,FIND(CHAR(160),SUBSTITUTE($Y229,\"{\",CHAR(160),HR$1)),FIND(CHAR(160),SUBSTITUTE($Y229,\"}\",CHAR(160),HR$1))-FIND(CHAR(160),SUBSTITUTE($Y229,\"{\",CHAR(160),HR$1))+1),\"\")","v":""},{"$f":"IFERROR(MID($Y229,FIND(CHAR(160),SUBSTITUTE($Y229,\"{\",CHAR(160),HS$1)),FIND(CHAR(160),SUBSTITUTE($Y229,\"}\",CHAR(160),HS$1))-FIND(CHAR(160),SUBSTITUTE($Y229,\"{\",CHAR(160),HS$1))+1),\"\")","v":""},{"$f":"IFERROR(MID($Y229,FIND(CHAR(160),SUBSTITUTE($Y229,\"{\",CHAR(160),HT$1)),FIND(CHAR(160),SUBSTITUTE($Y229,\"}\",CHAR(160),HT$1))-FIND(CHAR(160),SUBSTITUTE($Y229,\"{\",CHAR(160),HT$1))+1),\"\")","v":""},{"$f":"IFERROR(MID($Z229,FIND(CHAR(160),SUBSTITUTE($Z229,\"{\",CHAR(160),HU$1)),FIND(CHAR(160),SUBSTITUTE($Z229,\"}\",CHAR(160),HU$1))-FIND(CHAR(160),SUBSTITUTE($Z229,\"{\",CHAR(160),HU$1))+1),\"\")","v":""},{"$f":"IFERROR(MID($Z229,FIND(CHAR(160),SUBSTITUTE($Z229,\"{\",CHAR(160),HV$1)),FIND(CHAR(160),SUBSTITUTE($Z229,\"}\",CHAR(160),HV$1))-FIND(CHAR(160),SUBSTITUTE($Z229,\"{\",CHAR(160),HV$1))+1),\"\")","v":""},{"$f":"IFERROR(MID($Z229,FIND(CHAR(160),SUBSTITUTE($Z229,\"{\",CHAR(160),HW$1)),FIND(CHAR(160),SUBSTITUTE($Z229,\"}\",CHAR(160),HW$1))-FIND(CHAR(160),SUBSTITUTE($Z229,\"{\",CHAR(160),HW$1))+1),\"\")","v":""},{"$f":"IFERROR(MID($Z229,FIND(CHAR(160),SUBSTITUTE($Z229,\"{\",CHAR(160),HX$1)),FIND(CHAR(160),SUBSTITUTE($Z229,\"}\",CHAR(160),HX$1))-FIND(CHAR(160),SUBSTITUTE($Z229,\"{\",CHAR(160),HX$1))+1),\"\")","v":""},{"$f":"IFERROR(MID($Z229,FIND(CHAR(160),SUBSTITUTE($Z229,\"{\",CHAR(160),HY$1)),FIND(CHAR(160),SUBSTITUTE($Z229,\"}\",CHAR(160),HY$1))-FIND(CHAR(160),SUBSTITUTE($Z229,\"{\",CHAR(160),HY$1))+1),\"\")","v":""},{"$f":"IFERROR(MID($Z229,FIND(CHAR(160),SUBSTITUTE($Z229,\"{\",CHAR(160),HZ$1)),FIND(CHAR(160),SUBSTITUTE($Z229,\"}\",CHAR(160),HZ$1))-FIND(CHAR(160),SUBSTITUTE($Z229,\"{\",CHAR(160),HZ$1))+1),\"\")","v":""},{"$f":"IFERROR(MID($Z229,FIND(CHAR(160),SUBSTITUTE($Z229,\"{\",CHAR(160),IA$1)),FIND(CHAR(160),SUBSTITUTE($Z229,\"}\",CHAR(160),IA$1))-FIND(CHAR(160),SUBSTITUTE($Z229,\"{\",CHAR(160),IA$1))+1),\"\")","v":""},{"$f":"IFERROR(MID($Z229,FIND(CHAR(160),SUBSTITUTE($Z229,\"{\",CHAR(160),IB$1)),FIND(CHAR(160),SUBSTITUTE($Z229,\"}\",CHAR(160),IB$1))-FIND(CHAR(160),SUBSTITUTE($Z229,\"{\",CHAR(160),IB$1))+1),\"\")","v":""},{"$f":"IFERROR(MID($Z229,FIND(CHAR(160),SUBSTITUTE($Z229,\"{\",CHAR(160),IC$1)),FIND(CHAR(160),SUBSTITUTE($Z229,\"}\",CHAR(160),IC$1))-FIND(CHAR(160),SUBSTITUTE($Z229,\"{\",CHAR(160),IC$1))+1),\"\")","v":""},{"$f":"IFERROR(MID($Z229,FIND(CHAR(160),SUBSTITUTE($Z229,\"{\",CHAR(160),ID$1)),FIND(CHAR(160),SUBSTITUTE($Z229,\"}\",CHAR(160),ID$1))-FIND(CHAR(160),SUBSTITUTE($Z229,\"{\",CHAR(160),ID$1))+1),\"\")","v":""},{"$f":"IFERROR(MID($AA229,FIND(CHAR(160),SUBSTITUTE($AA229,\"{\",CHAR(160),IE$1)),FIND(CHAR(160),SUBSTITUTE($AA229,\"}\",CHAR(160),IE$1))-FIND(CHAR(160),SUBSTITUTE($AA229,\"{\",CHAR(160),IE$1))+1),\"\")","v":""},{"$f":"IFERROR(MID($AA229,FIND(CHAR(160),SUBSTITUTE($AA229,\"{\",CHAR(160),IF$1)),FIND(CHAR(160),SUBSTITUTE($AA229,\"}\",CHAR(160),IF$1))-FIND(CHAR(160),SUBSTITUTE($AA229,\"{\",CHAR(160),IF$1))+1),\"\")","v":""},{"$f":"IFERROR(MID($AA229,FIND(CHAR(160),SUBSTITUTE($AA229,\"{\",CHAR(160),IG$1)),FIND(CHAR(160),SUBSTITUTE($AA229,\"}\",CHAR(160),IG$1))-FIND(CHAR(160),SUBSTITUTE($AA229,\"{\",CHAR(160),IG$1))+1),\"\")","v":""},{"$f":"IFERROR(MID($AA229,FIND(CHAR(160),SUBSTITUTE($AA229,\"{\",CHAR(160),IH$1)),FIND(CHAR(160),SUBSTITUTE($AA229,\"}\",CHAR(160),IH$1))-FIND(CHAR(160),SUBSTITUTE($AA229,\"{\",CHAR(160),IH$1))+1),\"\")","v":""},{"$f":"IFERROR(MID($AA229,FIND(CHAR(160),SUBSTITUTE($AA229,\"{\",CHAR(160),II$1)),FIND(CHAR(160),SUBSTITUTE($AA229,\"}\",CHAR(160),II$1))-FIND(CHAR(160),SUBSTITUTE($AA229,\"{\",CHAR(160),II$1))+1),\"\")","v":""},{"$f":"IFERROR(MID($AA229,FIND(CHAR(160),SUBSTITUTE($AA229,\"{\",CHAR(160),IJ$1)),FIND(CHAR(160),SUBSTITUTE($AA229,\"}\",CHAR(160),IJ$1))-FIND(CHAR(160),SUBSTITUTE($AA229,\"{\",CHAR(160),IJ$1))+1),\"\")","v":""},{"$f":"IFERROR(MID($AA229,FIND(CHAR(160),SUBSTITUTE($AA229,\"{\",CHAR(160),IK$1)),FIND(CHAR(160),SUBSTITUTE($AA229,\"}\",CHAR(160),IK$1))-FIND(CHAR(160),SUBSTITUTE($AA229,\"{\",CHAR(160),IK$1))+1),\"\")","v":""},{"$f":"IFERROR(MID($AA229,FIND(CHAR(160),SUBSTITUTE($AA229,\"{\",CHAR(160),IL$1)),FIND(CHAR(160),SUBSTITUTE($AA229,\"}\",CHAR(160),IL$1))-FIND(CHAR(160),SUBSTITUTE($AA229,\"{\",CHAR(160),IL$1))+1),\"\")","v":""},{"$f":"IFERROR(MID($AA229,FIND(CHAR(160),SUBSTITUTE($AA229,\"{\",CHAR(160),IM$1)),FIND(CHAR(160),SUBSTITUTE($AA229,\"}\",CHAR(160),IM$1))-FIND(CHAR(160),SUBSTITUTE($AA229,\"{\",CHAR(160),IM$1))+1),\"\")","v":""},{"$f":"IFERROR(MID($AA229,FIND(CHAR(160),SUBSTITUTE($AA229,\"{\",CHAR(160),IN$1)),FIND(CHAR(160),SUBSTITUTE($AA229,\"}\",CHAR(160),IN$1))-FIND(CHAR(160),SUBSTITUTE($AA229,\"{\",CHAR(160),IN$1))+1),\"\")","v":""},{"$f":"IFERROR(MID($AB229,FIND(CHAR(160),SUBSTITUTE($AB229,\"{\",CHAR(160),IO$1)),FIND(CHAR(160),SUBSTITUTE($AB229,\"}\",CHAR(160),IO$1))-FIND(CHAR(160),SUBSTITUTE($AB229,\"{\",CHAR(160),IO$1))+1),\"\")","v":""},{"$f":"IFERROR(MID($AB229,FIND(CHAR(160),SUBSTITUTE($AB229,\"{\",CHAR(160),IP$1)),FIND(CHAR(160),SUBSTITUTE($AB229,\"}\",CHAR(160),IP$1))-FIND(CHAR(160),SUBSTITUTE($AB229,\"{\",CHAR(160),IP$1))+1),\"\")","v":""},{"$f":"IFERROR(MID($AB229,FIND(CHAR(160),SUBSTITUTE($AB229,\"{\",CHAR(160),IQ$1)),FIND(CHAR(160),SUBSTITUTE($AB229,\"}\",CHAR(160),IQ$1))-FIND(CHAR(160),SUBSTITUTE($AB229,\"{\",CHAR(160),IQ$1))+1),\"\")","v":""},{"$f":"IFERROR(MID($AB229,FIND(CHAR(160),SUBSTITUTE($AB229,\"{\",CHAR(160),IR$1)),FIND(CHAR(160),SUBSTITUTE($AB229,\"}\",CHAR(160),IR$1))-FIND(CHAR(160),SUBSTITUTE($AB229,\"{\",CHAR(160),IR$1))+1),\"\")","v":""},{"$f":"IFERROR(MID($AB229,FIND(CHAR(160),SUBSTITUTE($AB229,\"{\",CHAR(160),IS$1)),FIND(CHAR(160),SUBSTITUTE($AB229,\"}\",CHAR(160),IS$1))-FIND(CHAR(160),SUBSTITUTE($AB229,\"{\",CHAR(160),IS$1))+1),\"\")","v":""},{"$f":"IFERROR(MID($AB229,FIND(CHAR(160),SUBSTITUTE($AB229,\"{\",CHAR(160),IT$1)),FIND(CHAR(160),SUBSTITUTE($AB229,\"}\",CHAR(160),IT$1))-FIND(CHAR(160),SUBSTITUTE($AB229,\"{\",CHAR(160),IT$1))+1),\"\")","v":""},{"$f":"IFERROR(MID($AB229,FIND(CHAR(160),SUBSTITUTE($AB229,\"{\",CHAR(160),IU$1)),FIND(CHAR(160),SUBSTITUTE($AB229,\"}\",CHAR(160),IU$1))-FIND(CHAR(160),SUBSTITUTE($AB229,\"{\",CHAR(160),IU$1))+1),\"\")","v":""},{"$f":"IFERROR(MID($AB229,FIND(CHAR(160),SUBSTITUTE($AB229,\"{\",CHAR(160),IV$1)),FIND(CHAR(160),SUBSTITUTE($AB229,\"}\",CHAR(160),IV$1))-FIND(CHAR(160),SUBSTITUTE($AB229,\"{\",CHAR(160),IV$1))+1),\"\")","v":""},{"$f":"IFERROR(MID($AB229,FIND(CHAR(160),SUBSTITUTE($AB229,\"{\",CHAR(160),IW$1)),FIND(CHAR(160),SUBSTITUTE($AB229,\"}\",CHAR(160),IW$1))-FIND(CHAR(160),SUBSTITUTE($AB229,\"{\",CHAR(160),IW$1))+1),\"\")","v":""},{"$f":"IFERROR(MID($AB229,FIND(CHAR(160),SUBSTITUTE($AB229,\"{\",CHAR(160),IX$1)),FIND(CHAR(160),SUBSTITUTE($AB229,\"}\",CHAR(160),IX$1))-FIND(CHAR(160),SUBSTITUTE($AB229,\"{\",CHAR(160),IX$1))+1),\"\")","v":""},null,{"$f":"10-COUNTIF(DU229:ED229,\"\")","v":1}]
["Low Income Direct Mailing","Low Flow Wall Mounted Shower Head Direct Install","LILWSH","2021-07-01","2022-06-30","Per Measure",26.5,0,"Per Measure",26.5,0,"2021-07-01","2022-06-30","Calculated","{Measure:Quantity}*if({Measure:Quantity}=0,0,442)",null,null,null,null,null,"{Measure:Quantity}*if({Measure:Quantity}=0,0,0.044)","{Measure:Quantity}*if({Measure:Quantity}=0,0,0.035)",null,null,null,null,null,"if({Measure:Quantity}=0,0,{Measure:Quantity}*3153)","2021-07-01","2022-06-30",10,8.0000000000000002E-3,5.0000000000000001E-3,0.35499999999999998,0.311,0.18099999999999999,0.153,0.88,1,1,0,0,null,{"$f":"DU230","v":"{Measure:Quantity}"},1,{"$f":"DV230","v":""},null,{"$f":"DW230","v":""},null,{"$f":"DX230","v":""},null,{"$f":"DY230","v":""},null,{"$f":"DZ230","v":""},null,{"$f":"EA230","v":""},null,{"$f":"EB230","v":""},null,{"$f":"EC230","v":""},null,{"$f":"ED230","v":""},null,{"$f":"AS230*IF(AS230=0,0,442)","v":442},0,0,0,0,0,{"$f":"AS230*IF(AS230=0,0,0.044)","v":4.3999999999999997E-2},{"$f":"AS230*IF(AS230=0,0,0.035)","v":3.5000000000000003E-2},0,0,0,0,0,{"$f":"IF(AS230=0,0,AS230*3153)","v":3153},null,"Res","Default DR",{"$f":"Benefits(BL230,BR230,BS230,BT230,BU230,BV230,BW230,BX230,BY230,BZ230,AE230,AH230,AI230,AJ230,AK230,AL230,AM230,AN230,AO230,AP230,CA230,CB230)","v":384.29816499516784},144.36705647454559,0,0,0,0,0,187.20144922985645,0,{"$f":"SUMPRODUCT(CC230:CK230,--(CC230:CK230>0))","v":715.8666706995698},{"$f":"-SUMPRODUCT(CC230:CK230,--(CC230:CK230<0))","v":0},null,{"$f":"26.5","v":26.5},null,null,{"$f":"CM230+CO230","v":26.5},{"$f":"IF(NetOrGross=\"Net\",(1-AO230+AP230),1)","v":1},{"$f":"(SUMPRODUCT(CC230:CJ230,--(CC230:CJ230>0))+CN230)*CS230/((-SUMPRODUCT(CC230:CJ230,--(CC230:CJ230<0))+MAX(CO230,CV230)+CP230+CQ230)*CS230+IF(FRIncentives=\"Yes\",CV230*(1-CS230),0))","v":27.013836630172445},1,{"$f":"26.5","v":26.5},null,"Electric","y",null,{"$f":"IF(F230=\"Manual Entry\",\"Manual\",IF(G230=\"\",0,\"X=\"&SUBSTITUTE(SUBSTITUTE(SUBSTITUTE(SUBSTITUTE(SUBSTITUTE(SUBSTITUTE(SUBSTITUTE(SUBSTITUTE(SUBSTITUTE(SUBSTITUTE(SUBSTITUTE(SUBSTITUTE(G230,$ED230,$ED$2&ROW($ED230)),$EC230,$EC$2&ROW($EC230)),$EB230,$EB$2&ROW($EB230)),$EA230,$EA$2&ROW($EA230)),$DZ230,$DZ$2&ROW($DZ230)),$DY230,$DY$2&ROW($DY230)),$DX230,$DX$2&ROW($DX230)),$DW230,$DW$2&ROW($DW230)),$DV230,$DV$2&ROW($DV230)),$DU230,$DU$2&ROW($DU230)),$DT230,$DT$2&ROW($DT230)),$DS230,$DS$2&ROW($DS230))))","v":"X=26.5"},{"$f":"IF(I230=\"Manual Entry\",\"Manual\",IF(J230=\"\",0,\"X=\"&SUBSTITUTE(SUBSTITUTE(SUBSTITUTE(SUBSTITUTE(SUBSTITUTE(SUBSTITUTE(SUBSTITUTE(SUBSTITUTE(SUBSTITUTE(SUBSTITUTE(SUBSTITUTE(SUBSTITUTE(J230,$ED230,$ED$2&ROW($ED230)),$EC230,$EC$2&ROW($EC230)),$EB230,$EB$2&ROW($EB230)),$EA230,$EA$2&ROW($EA230)),$DZ230,$DZ$2&ROW($DZ230)),$DY230,$DY$2&ROW($DY230)),$DX230,$DX$2&ROW($DX230)),$DW230,$DW$2&ROW($DW230)),$DV230,$DV$2&ROW($DV230)),$DU230,$DU$2&ROW($DU230)),$DT230,$DT$2&ROW($DT230)),$DS230,$DS$2&ROW($DS230))))","v":"X=26.5"},{"$f":"IF(O230=\"\",0,\"X=\"&SUBSTITUTE(SUBSTITUTE(SUBSTITUTE(SUBSTITUTE(SUBSTITUTE(SUBSTITUTE(SUBSTITUTE(SUBSTITUTE(SUBSTITUTE(SUBSTITUTE(SUBSTITUTE(SUBSTITUTE(O230,$ED230,$ED$2&ROW($ED230)),$EC230,$EC$2&ROW($EC230)),$EB230,$EB$2&ROW($EB230)),$EA230,$EA$2&ROW($EA230)),$DZ230,$DZ$2&ROW($DZ230)),$DY230,$DY$2&ROW($DY230)),$DX230,$DX$2&ROW($DX230)),$DW230,$DW$2&ROW($DW230)),$DV230,$DV$2&ROW($DV230)),$DU230,$DU$2&ROW($DU230)),$DT230,$DT$2&ROW($DT230)),$DS230,$DS$2&ROW($DS230)))","v":"X=AS230*if(AS230=0,0,442)"},{"$f":"IF(P230=\"\",0,\"X=\"&SUBSTITUTE(SUBSTITUTE(SUBSTITUTE(SUBSTITUTE(SUBSTITUTE(SUBSTITUTE(SUBSTITUTE(SUBSTITUTE(SUBSTITUTE(SUBSTITUTE(SUBSTITUTE(SUBSTITUTE(P230,$ED230,$ED$2&ROW($ED230)),$EC230,$EC$2&ROW($EC230)),$EB230,$EB$2&ROW($EB230)),$EA230,$EA$2&ROW($EA230)),$DZ230,$DZ$2&ROW($DZ230)),$DY230,$DY$2&ROW($DY230)),$DX230,$DX$2&ROW($DX230)),$DW230,$DW$2&ROW($DW230)),$DV230,$DV$2&ROW($DV230)),$DU230,$DU$2&ROW($DU230)),$DT230,$DT$2&ROW($DT230)),$DS230,$DS$2&ROW($DS230)))","v":0},{"$f":"IF(Q230=\"\",0,\"X=\"&SUBSTITUTE(SUBSTITUTE(SUBSTITUTE(SUBSTITUTE(SUBSTITUTE(SUBSTITUTE(SUBSTITUTE(SUBSTITUTE(SUBSTITUTE(SUBSTITUTE(SUBSTITUTE(SUBSTITUTE(Q230,$ED230,$ED$2&ROW($ED230)),$EC230,$EC$2&ROW($EC230)),$EB230,$EB$2&ROW($EB230)),$EA230,$EA$2&ROW($EA230)),$DZ230,$DZ$2&ROW($DZ230)),$DY230,$DY$2&ROW($DY230)),$DX230,$DX$2&ROW($DX230)),$DW230,$DW$2&ROW($DW230)),$DV230,$DV$2&ROW($DV230)),$DU230,$DU$2&ROW($DU230)),$DT230,$DT$2&ROW($DT230)),$DS230,$DS$2&ROW($DS230)))","v":0},{"$f":"IF(R230=\"\",0,\"X=\"&SUBSTITUTE(SUBSTITUTE(SUBSTITUTE(SUBSTITUTE(SUBSTITUTE(SUBSTITUTE(SUBSTITUTE(SUBSTITUTE(SUBSTITUTE(SUBSTITUTE(SUBSTITUTE(SUBSTITUTE(R230,$ED230,$ED$2&ROW($ED230)),$EC230,$EC$2&ROW($EC230)),$EB230,$EB$2&ROW($EB230)),$EA230,$EA$2&ROW($EA230)),$DZ230,$DZ$2&ROW($DZ230)),$DY230,$DY$2&ROW($DY230)),$DX230,$DX$2&ROW($DX230)),$DW230,$DW$2&ROW($DW230)),$DV230,$DV$2&ROW($DV230)),$DU230,$DU$2&ROW($DU230)),$DT230,$DT$2&ROW($DT230)),$DS230,$DS$2&ROW($DS230)))","v":0},{"$f":"IF(S230=\"\",0,\"X=\"&SUBSTITUTE(SUBSTITUTE(SUBSTITUTE(SUBSTITUTE(SUBSTITUTE(SUBSTITUTE(SUBSTITUTE(SUBSTITUTE(SUBSTITUTE(SUBSTITUTE(SUBSTITUTE(SUBSTITUTE(S230,$ED230,$ED$2&ROW($ED230)),$EC230,$EC$2&ROW($EC230)),$EB230,$EB$2&ROW($EB230)),$EA230,$EA$2&ROW($EA230)),$DZ230,$DZ$2&ROW($DZ230)),$DY230,$DY$2&ROW($DY230)),$DX230,$DX$2&ROW($DX230)),$DW230,$DW$2&ROW($DW230)),$DV230,$DV$2&ROW($DV230)),$DU230,$DU$2&ROW($DU230)),$DT230,$DT$2&ROW($DT230)),$DS230,$DS$2&ROW($DS230)))","v":0},{"$f":"IF(T230=\"\",0,\"X=\"&SUBSTITUTE(SUBSTITUTE(SUBSTITUTE(SUBSTITUTE(SUBSTITUTE(SUBSTITUTE(SUBSTITUTE(SUBSTITUTE(SUBSTITUTE(SUBSTITUTE(SUBSTITUTE(SUBSTITUTE(T230,$ED230,$ED$2&ROW($ED230)),$EC230,$EC$2&ROW($EC230)),$EB230,$EB$2&ROW($EB230)),$EA230,$EA$2&ROW($EA230)),$DZ230,$DZ$2&ROW($DZ230)),$DY230,$DY$2&ROW($DY230)),$DX230,$DX$2&ROW($DX230)),$DW230,$DW$2&ROW($DW230)),$DV230,$DV$2&ROW($DV230)),$DU230,$DU$2&ROW($DU230)),$DT230,$DT$2&ROW($DT230)),$DS230,$DS$2&ROW($DS230)))","v":0},{"$f":"IF(U230=\"\",0,\"X=\"&SUBSTITUTE(SUBSTITUTE(SUBSTITUTE(SUBSTITUTE(SUBSTITUTE(SUBSTITUTE(SUBSTITUTE(SUBSTITUTE(SUBSTITUTE(SUBSTITUTE(SUBSTITUTE(SUBSTITUTE(U230,$ED230,$ED$2&ROW($ED230)),$EC230,$EC$2&ROW($EC230)),$EB230,$EB$2&ROW($EB230)),$EA230,$EA$2&ROW($EA230)),$DZ230,$DZ$2&ROW($DZ230)),$DY230,$DY$2&ROW($DY230)),$DX230,$DX$2&ROW($DX230)),$DW230,$DW$2&ROW($DW230)),$DV230,$DV$2&ROW($DV230)),$DU230,$DU$2&ROW($DU230)),$DT230,$DT$2&ROW($DT230)),$DS230,$DS$2&ROW($DS230)))","v":"X=AS230*if(AS230=0,0,0.044)"},{"$f":"IF(V230=\"\",0,\"X=\"&SUBSTITUTE(SUBSTITUTE(SUBSTITUTE(SUBSTITUTE(SUBSTITUTE(SUBSTITUTE(SUBSTITUTE(SUBSTITUTE(SUBSTITUTE(SUBSTITUTE(SUBSTITUTE(SUBSTITUTE(V230,$ED230,$ED$2&ROW($ED230)),$EC230,$EC$2&ROW($EC230)),$EB230,$EB$2&ROW($EB230)),$EA230,$EA$2&ROW($EA230)),$DZ230,$DZ$2&ROW($DZ230)),$DY230,$DY$2&ROW($DY230)),$DX230,$DX$2&ROW($DX230)),$DW230,$DW$2&ROW($DW230)),$DV230,$DV$2&ROW($DV230)),$DU230,$DU$2&ROW($DU230)),$DT230,$DT$2&ROW($DT230)),$DS230,$DS$2&ROW($DS230)))","v":"X=AS230*if(AS230=0,0,0.035)"},{"$f":"IF(W230=\"\",0,\"X=\"&SUBSTITUTE(SUBSTITUTE(SUBSTITUTE(SUBSTITUTE(SUBSTITUTE(SUBSTITUTE(SUBSTITUTE(SUBSTITUTE(SUBSTITUTE(SUBSTITUTE(SUBSTITUTE(SUBSTITUTE(W230,$ED230,$ED$2&ROW($ED230)),$EC230,$EC$2&ROW($EC230)),$EB230,$EB$2&ROW($EB230)),$EA230,$EA$2&ROW($EA230)),$DZ230,$DZ$2&ROW($DZ230)),$DY230,$DY$2&ROW($DY230)),$DX230,$DX$2&ROW($DX230)),$DW230,$DW$2&ROW($DW230)),$DV230,$DV$2&ROW($DV230)),$DU230,$DU$2&ROW($DU230)),$DT230,$DT$2&ROW($DT230)),$DS230,$DS$2&ROW($DS230)))","v":0},{"$f":"IF(X230=\"\",0,\"X=\"&SUBSTITUTE(SUBSTITUTE(SUBSTITUTE(SUBSTITUTE(SUBSTITUTE(SUBSTITUTE(SUBSTITUTE(SUBSTITUTE(SUBSTITUTE(SUBSTITUTE(SUBSTITUTE(SUBSTITUTE(X230,$ED230,$ED$2&ROW($ED230)),$EC230,$EC$2&ROW($EC230)),$EB230,$EB$2&ROW($EB230)),$EA230,$EA$2&ROW($EA230)),$DZ230,$DZ$2&ROW($DZ230)),$DY230,$DY$2&ROW($DY230)),$DX230,$DX$2&ROW($DX230)),$DW230,$DW$2&ROW($DW230)),$DV230,$DV$2&ROW($DV230)),$DU230,$DU$2&ROW($DU230)),$DT230,$DT$2&ROW($DT230)),$DS230,$DS$2&ROW($DS230)))","v":0},{"$f":"IF(Y230=\"\",0,\"X=\"&SUBSTITUTE(SUBSTITUTE(SUBSTITUTE(SUBSTITUTE(SUBSTITUTE(SUBSTITUTE(SUBSTITUTE(SUBSTITUTE(SUBSTITUTE(SUBSTITUTE(SUBSTITUTE(SUBSTITUTE(Y230,$ED230,$ED$2&ROW($ED230)),$EC230,$EC$2&ROW($EC230)),$EB230,$EB$2&ROW($EB230)),$EA230,$EA$2&ROW($EA230)),$DZ230,$DZ$2&ROW($DZ230)),$DY230,$DY$2&ROW($DY230)),$DX230,$DX$2&ROW($DX230)),$DW230,$DW$2&ROW($DW230)),$DV230,$DV$2&ROW($DV230)),$DU230,$DU$2&ROW($DU230)),$DT230,$DT$2&ROW($DT230)),$DS230,$DS$2&ROW($DS230)))","v":0},{"$f":"IF(Z230=\"\",0,\"X=\"&SUBSTITUTE(SUBSTITUTE(SUBSTITUTE(SUBSTITUTE(SUBSTITUTE(SUBSTITUTE(SUBSTITUTE(SUBSTITUTE(SUBSTITUTE(SUBSTITUTE(SUBSTITUTE(SUBSTITUTE(Z230,$ED230,$ED$2&ROW($ED230)),$EC230,$EC$2&ROW($EC230)),$EB230,$EB$2&ROW($EB230)),$EA230,$EA$2&ROW($EA230)),$DZ230,$DZ$2&ROW($DZ230)),$DY230,$DY$2&ROW($DY230)),$DX230,$DX$2&ROW($DX230)),$DW230,$DW$2&ROW($DW230)),$DV230,$DV$2&ROW($DV230)),$DU230,$DU$2&ROW($DU230)),$DT230,$DT$2&ROW($DT230)),$DS230,$DS$2&ROW($DS230)))","v":0},{"$f":"IF(AA230=\"\",0,\"X=\"&SUBSTITUTE(SUBSTITUTE(SUBSTITUTE(SUBSTITUTE(SUBSTITUTE(SUBSTITUTE(SUBSTITUTE(SUBSTITUTE(SUBSTITUTE(SUBSTITUTE(SUBSTITUTE(SUBSTITUTE(AA230,$ED230,$ED$2&ROW($ED230)),$EC230,$EC$2&ROW($EC230)),$EB230,$EB$2&ROW($EB230)),$EA230,$EA$2&ROW($EA230)),$DZ230,$DZ$2&ROW($DZ230)),$DY230,$DY$2&ROW($DY230)),$DX230,$DX$2&ROW($DX230)),$DW230,$DW$2&ROW($DW230)),$DV230,$DV$2&ROW($DV230)),$DU230,$DU$2&ROW($DU230)),$DT230,$DT$2&ROW($DT230)),$DS230,$DS$2&ROW($DS230)))","v":0},{"$f":"IF(AB230=\"\",0,\"X=\"&SUBSTITUTE(SUBSTITUTE(SUBSTITUTE(SUBSTITUTE(SUBSTITUTE(SUBSTITUTE(SUBSTITUTE(SUBSTITUTE(SUBSTITUTE(SUBSTITUTE(SUBSTITUTE(SUBSTITUTE(AB230,$ED230,$ED$2&ROW($ED230)),$EC230,$EC$2&ROW($EC230)),$EB230,$EB$2&ROW($EB230)),$EA230,$EA$2&ROW($EA230)),$DZ230,$DZ$2&ROW($DZ230)),$DY230,$DY$2&ROW($DY230)),$DX230,$DX$2&ROW($DX230)),$DW230,$DW$2&ROW($DW230)),$DV230,$DV$2&ROW($DV230)),$DU230,$DU$2&ROW($DU230)),$DT230,$DT$2&ROW($DT230)),$DS230,$DS$2&ROW($DS230)))","v":"X=if(AS230=0,0,AS230*3153)"},null,null,"{Factor:WinterCF}","{Factor:SummerCF}",{"$f":"IFERROR(INDEX($EG230:$IV230,MATCH(0,COUNTIF($DR230:DT230,$EG230:$IV230),0)),\"\")","v":"{Measure:Quantity}"},{"$f":"IFERROR(INDEX($EG230:$IV230,MATCH(0,COUNTIF($DR230:DU230,$EG230:$IV230),0)),\"\")","v":""},{"$f":"IFERROR(INDEX($EG230:$IV230,MATCH(0,COUNTIF($DR230:DV230,$EG230:$IV230),0)),\"\")","v":""},{"$f":"IFERROR(INDEX($EG230:$IV230,MATCH(0,COUNTIF($DR230:DW230,$EG230:$IV230),0)),\"\")","v":""},{"$f":"IFERROR(INDEX($EG230:$IV230,MATCH(0,COUNTIF($DR230:DX230,$EG230:$IV230),0)),\"\")","v":""},{"$f":"IFERROR(INDEX($EG230:$IV230,MATCH(0,COUNTIF($DR230:DY230,$EG230:$IV230),0)),\"\")","v":""},{"$f":"IFERROR(INDEX($EG230:$IV230,MATCH(0,COUNTIF($DR230:DZ230,$EG230:$IV230),0)),\"\")","v":""},{"$f":"IFERROR(INDEX($EG230:$IV230,MATCH(0,COUNTIF($DR230:EA230,$EG230:$IV230),0)),\"\")","v":""},{"$f":"IFERROR(INDEX($EG230:$IV230,MATCH(0,COUNTIF($DR230:EB230,$EG230:$IV230),0)),\"\")","v":""},{"$f":"IFERROR(INDEX($EG230:$IV230,MATCH(0,COUNTIF($DR230:EC230,$EG230:$IV230),0)),\"\")","v":""},null,null,{"$f":"IFERROR(MID($G230,FIND(CHAR(160),SUBSTITUTE($G230,\"{\",CHAR(160),EG$1)),FIND(CHAR(160),SUBSTITUTE($G230,\"}\",CHAR(160),EG$1))-FIND(CHAR(160),SUBSTITUTE($G230,\"{\",CHAR(160),EG$1))+1),\"\")","v":""},{"$f":"IFERROR(MID($G230,FIND(CHAR(160),SUBSTITUTE($G230,\"{\",CHAR(160),EH$1)),FIND(CHAR(160),SUBSTITUTE($G230,\"}\",CHAR(160),EH$1))-FIND(CHAR(160),SUBSTITUTE($G230,\"{\",CHAR(160),EH$1))+1),\"\")","v":""},{"$f":"IFERROR(MID($G230,FIND(CHAR(160),SUBSTITUTE($G230,\"{\",CHAR(160),EI$1)),FIND(CHAR(160),SUBSTITUTE($G230,\"}\",CHAR(160),EI$1))-FIND(CHAR(160),SUBSTITUTE($G230,\"{\",CHAR(160),EI$1))+1),\"\")","v":""},{"$f":"IFERROR(MID($G230,FIND(CHAR(160),SUBSTITUTE($G230,\"{\",CHAR(160),EJ$1)),FIND(CHAR(160),SUBSTITUTE($G230,\"}\",CHAR(160),EJ$1))-FIND(CHAR(160),SUBSTITUTE($G230,\"{\",CHAR(160),EJ$1))+1),\"\")","v":""},{"$f":"IFERROR(MID($G230,FIND(CHAR(160),SUBSTITUTE($G230,\"{\",CHAR(160),EK$1)),FIND(CHAR(160),SUBSTITUTE($G230,\"}\",CHAR(160),EK$1))-FIND(CHAR(160),SUBSTITUTE($G230,\"{\",CHAR(160),EK$1))+1),\"\")","v":""},{"$f":"IFERROR(MID($G230,FIND(CHAR(160),SUBSTITUTE($G230,\"{\",CHAR(160),EL$1)),FIND(CHAR(160),SUBSTITUTE($G230,\"}\",CHAR(160),EL$1))-FIND(CHAR(160),SUBSTITUTE($G230,\"{\",CHAR(160),EL$1))+1),\"\")","v":""},{"$f":"IFERROR(MID($G230,FIND(CHAR(160),SUBSTITUTE($G230,\"{\",CHAR(160),EM$1)),FIND(CHAR(160),SUBSTITUTE($G230,\"}\",CHAR(160),EM$1))-FIND(CHAR(160),SUBSTITUTE($G230,\"{\",CHAR(160),EM$1))+1),\"\")","v":""},{"$f":"IFERROR(MID($G230,FIND(CHAR(160),SUBSTITUTE($G230,\"{\",CHAR(160),EN$1)),FIND(CHAR(160),SUBSTITUTE($G230,\"}\",CHAR(160),EN$1))-FIND(CHAR(160),SUBSTITUTE($G230,\"{\",CHAR(160),EN$1))+1),\"\")","v":""},{"$f":"IFERROR(MID($G230,FIND(CHAR(160),SUBSTITUTE($G230,\"{\",CHAR(160),EO$1)),FIND(CHAR(160),SUBSTITUTE($G230,\"}\",CHAR(160),EO$1))-FIND(CHAR(160),SUBSTITUTE($G230,\"{\",CHAR(160),EO$1))+1),\"\")","v":""},{"$f":"IFERROR(MID($G230,FIND(CHAR(160),SUBSTITUTE($G230,\"{\",CHAR(160),EP$1)),FIND(CHAR(160),SUBSTITUTE($G230,\"}\",CHAR(160),EP$1))-FIND(CHAR(160),SUBSTITUTE($G230,\"{\",CHAR(160),EP$1))+1),\"\")","v":""},{"$f":"IFERROR(MID($J230,FIND(CHAR(160),SUBSTITUTE($J230,\"{\",CHAR(160),EQ$1)),FIND(CHAR(160),SUBSTITUTE($J230,\"}\",CHAR(160),EQ$1))-FIND(CHAR(160),SUBSTITUTE($J230,\"{\",CHAR(160),EQ$1))+1),\"\")","v":""},{"$f":"IFERROR(MID($J230,FIND(CHAR(160),SUBSTITUTE($J230,\"{\",CHAR(160),ER$1)),FIND(CHAR(160),SUBSTITUTE($J230,\"}\",CHAR(160),ER$1))-FIND(CHAR(160),SUBSTITUTE($J230,\"{\",CHAR(160),ER$1))+1),\"\")","v":""},{"$f":"IFERROR(MID($J230,FIND(CHAR(160),SUBSTITUTE($J230,\"{\",CHAR(160),ES$1)),FIND(CHAR(160),SUBSTITUTE($J230,\"}\",CHAR(160),ES$1))-FIND(CHAR(160),SUBSTITUTE($J230,\"{\",CHAR(160),ES$1))+1),\"\")","v":""},{"$f":"IFERROR(MID($J230,FIND(CHAR(160),SUBSTITUTE($J230,\"{\",CHAR(160),ET$1)),FIND(CHAR(160),SUBSTITUTE($J230,\"}\",CHAR(160),ET$1))-FIND(CHAR(160),SUBSTITUTE($J230,\"{\",CHAR(160),ET$1))+1),\"\")","v":""},{"$f":"IFERROR(MID($J230,FIND(CHAR(160),SUBSTITUTE($J230,\"{\",CHAR(160),EU$1)),FIND(CHAR(160),SUBSTITUTE($J230,\"}\",CHAR(160),EU$1))-FIND(CHAR(160),SUBSTITUTE($J230,\"{\",CHAR(160),EU$1))+1),\"\")","v":""},{"$f":"IFERROR(MID($J230,FIND(CHAR(160),SUBSTITUTE($J230,\"{\",CHAR(160),EV$1)),FIND(CHAR(160),SUBSTITUTE($J230,\"}\",CHAR(160),EV$1))-FIND(CHAR(160),SUBSTITUTE($J230,\"{\",CHAR(160),EV$1))+1),\"\")","v":""},{"$f":"IFERROR(MID($J230,FIND(CHAR(160),SUBSTITUTE($J230,\"{\",CHAR(160),EW$1)),FIND(CHAR(160),SUBSTITUTE($J230,\"}\",CHAR(160),EW$1))-FIND(CHAR(160),SUBSTITUTE($J230,\"{\",CHAR(160),EW$1))+1),\"\")","v":""},{"$f":"IFERROR(MID($J230,FIND(CHAR(160),SUBSTITUTE($J230,\"{\",CHAR(160),EX$1)),FIND(CHAR(160),SUBSTITUTE($J230,\"}\",CHAR(160),EX$1))-FIND(CHAR(160),SUBSTITUTE($J230,\"{\",CHAR(160),EX$1))+1),\"\")","v":""},{"$f":"IFERROR(MID($J230,FIND(CHAR(160),SUBSTITUTE($J230,\"{\",CHAR(160),EY$1)),FIND(CHAR(160),SUBSTITUTE($J230,\"}\",CHAR(160),EY$1))-FIND(CHAR(160),SUBSTITUTE($J230,\"{\",CHAR(160),EY$1))+1),\"\")","v":""},{"$f":"IFERROR(MID($J230,FIND(CHAR(160),SUBSTITUTE($J230,\"{\",CHAR(160),EZ$1)),FIND(CHAR(160),SUBSTITUTE($J230,\"}\",CHAR(160),EZ$1))-FIND(CHAR(160),SUBSTITUTE($J230,\"{\",CHAR(160),EZ$1))+1),\"\")","v":""},{"$f":"IFERROR(MID($J230,FIND(CHAR(160),SUBSTITUTE($J230,\"{\",CHAR(160),FA$1)),FIND(CHAR(160),SUBSTITUTE($J230,\"}\",CHAR(160),FA$1))-FIND(CHAR(160),SUBSTITUTE($J230,\"{\",CHAR(160),FA$1))+1),\"\")","v":""},{"$f":"IFERROR(MID($J230,FIND(CHAR(160),SUBSTITUTE($J230,\"{\",CHAR(160),FB$1)),FIND(CHAR(160),SUBSTITUTE($J230,\"}\",CHAR(160),FB$1))-FIND(CHAR(160),SUBSTITUTE($J230,\"{\",CHAR(160),FB$1))+1),\"\")","v":""},{"$f":"IFERROR(MID($O230,FIND(CHAR(160),SUBSTITUTE($O230,\"{\",CHAR(160),FC$1)),FIND(CHAR(160),SUBSTITUTE($O230,\"}\",CHAR(160),FC$1))-FIND(CHAR(160),SUBSTITUTE($O230,\"{\",CHAR(160),FC$1))+1),\"\")","v":""},{"$f":"IFERROR(MID($O230,FIND(CHAR(160),SUBSTITUTE($O230,\"{\",CHAR(160),FD$1)),FIND(CHAR(160),SUBSTITUTE($O230,\"}\",CHAR(160),FD$1))-FIND(CHAR(160),SUBSTITUTE($O230,\"{\",CHAR(160),FD$1))+1),\"\")","v":""},{"$f":"IFERROR(MID($O230,FIND(CHAR(160),SUBSTITUTE($O230,\"{\",CHAR(160),FE$1)),FIND(CHAR(160),SUBSTITUTE($O230,\"}\",CHAR(160),FE$1))-FIND(CHAR(160),SUBSTITUTE($O230,\"{\",CHAR(160),FE$1))+1),\"\")","v":""},{"$f":"IFERROR(MID($O230,FIND(CHAR(160),SUBSTITUTE($O230,\"{\",CHAR(160),FF$1)),FIND(CHAR(160),SUBSTITUTE($O230,\"}\",CHAR(160),FF$1))-FIND(CHAR(160),SUBSTITUTE($O230,\"{\",CHAR(160),FF$1))+1),\"\")","v":""},{"$f":"IFERROR(MID($O230,FIND(CHAR(160),SUBSTITUTE($O230,\"{\",CHAR(160),FG$1)),FIND(CHAR(160),SUBSTITUTE($O230,\"}\",CHAR(160),FG$1))-FIND(CHAR(160),SUBSTITUTE($O230,\"{\",CHAR(160),FG$1))+1),\"\")","v":""},{"$f":"IFERROR(MID($O230,FIND(CHAR(160),SUBSTITUTE($O230,\"{\",CHAR(160),FH$1)),FIND(CHAR(160),SUBSTITUTE($O230,\"}\",CHAR(160),FH$1))-FIND(CHAR(160),SUBSTITUTE($O230,\"{\",CHAR(160),FH$1))+1),\"\")","v":""},{"$f":"IFERROR(MID($O230,FIND(CHAR(160),SUBSTITUTE($O230,\"{\",CHAR(160),FI$1)),FIND(CHAR(160),SUBSTITUTE($O230,\"}\",CHAR(160),FI$1))-FIND(CHAR(160),SUBSTITUTE($O230,\"{\",CHAR(160),FI$1))+1),\"\")","v":""},{"$f":"IFERROR(MID($O230,FIND(CHAR(160),SUBSTITUTE($O230,\"{\",CHAR(160),FJ$1)),FIND(CHAR(160),SUBSTITUTE($O230,\"}\",CHAR(160),FJ$1))-FIND(CHAR(160),SUBSTITUTE($O230,\"{\",CHAR(160),FJ$1))+1),\"\")","v":""},{"$f":"IFERROR(MID($O230,FIND(CHAR(160),SUBSTITUTE($O230,\"{\",CHAR(160),FK$1)),FIND(CHAR(160),SUBSTITUTE($O230,\"}\",CHAR(160),FK$1))-FIND(CHAR(160),SUBSTITUTE($O230,\"{\",CHAR(160),FK$1))+1),\"\")","v":"{Measure:Quantity}"},{"$f":"IFERROR(MID($O230,FIND(CHAR(160),SUBSTITUTE($O230,\"{\",CHAR(160),FL$1)),FIND(CHAR(160),SUBSTITUTE($O230,\"}\",CHAR(160),FL$1))-FIND(CHAR(160),SUBSTITUTE($O230,\"{\",CHAR(160),FL$1))+1),\"\")","v":"{Measure:Quantity}"},{"$f":"IFERROR(MID($R230,FIND(CHAR(160),SUBSTITUTE($R230,\"{\",CHAR(160),FM$1)),FIND(CHAR(160),SUBSTITUTE($R230,\"}\",CHAR(160),FM$1))-FIND(CHAR(160),SUBSTITUTE($R230,\"{\",CHAR(160),FM$1))+1),\"\")","v":""},{"$f":"IFERROR(MID($R230,FIND(CHAR(160),SUBSTITUTE($R230,\"{\",CHAR(160),FN$1)),FIND(CHAR(160),SUBSTITUTE($R230,\"}\",CHAR(160),FN$1))-FIND(CHAR(160),SUBSTITUTE($R230,\"{\",CHAR(160),FN$1))+1),\"\")","v":""},{"$f":"IFERROR(MID($R230,FIND(CHAR(160),SUBSTITUTE($R230,\"{\",CHAR(160),FO$1)),FIND(CHAR(160),SUBSTITUTE($R230,\"}\",CHAR(160),FO$1))-FIND(CHAR(160),SUBSTITUTE($R230,\"{\",CHAR(160),FO$1))+1),\"\")","v":""},{"$f":"IFERROR(MID($R230,FIND(CHAR(160),SUBSTITUTE($R230,\"{\",CHAR(160),FP$1)),FIND(CHAR(160),SUBSTITUTE($R230,\"}\",CHAR(160),FP$1))-FIND(CHAR(160),SUBSTITUTE($R230,\"{\",CHAR(160),FP$1))+1),\"\")","v":""},{"$f":"IFERROR(MID($R230,FIND(CHAR(160),SUBSTITUTE($R230,\"{\",CHAR(160),FQ$1)),FIND(CHAR(160),SUBSTITUTE($R230,\"}\",CHAR(160),FQ$1))-FIND(CHAR(160),SUBSTITUTE($R230,\"{\",CHAR(160),FQ$1))+1),\"\")","v":""},{"$f":"IFERROR(MID($R230,FIND(CHAR(160),SUBSTITUTE($R230,\"{\",CHAR(160),FR$1)),FIND(CHAR(160),SUBSTITUTE($R230,\"}\",CHAR(160),FR$1))-FIND(CHAR(160),SUBSTITUTE($R230,\"{\",CHAR(160),FR$1))+1),\"\")","v":""},{"$f":"IFERROR(MID($R230,FIND(CHAR(160),SUBSTITUTE($R230,\"{\",CHAR(160),FS$1)),FIND(CHAR(160),SUBSTITUTE($R230,\"}\",CHAR(160),FS$1))-FIND(CHAR(160),SUBSTITUTE($R230,\"{\",CHAR(160),FS$1))+1),\"\")","v":""},{"$f":"IFERROR(MID($R230,FIND(CHAR(160),SUBSTITUTE($R230,\"{\",CHAR(160),FT$1)),FIND(CHAR(160),SUBSTITUTE($R230,\"}\",CHAR(160),FT$1))-FIND(CHAR(160),SUBSTITUTE($R230,\"{\",CHAR(160),FT$1))+1),\"\")","v":""},{"$f":"IFERROR(MID($R230,FIND(CHAR(160),SUBSTITUTE($R230,\"{\",CHAR(160),FU$1)),FIND(CHAR(160),SUBSTITUTE($R230,\"}\",CHAR(160),FU$1))-FIND(CHAR(160),SUBSTITUTE($R230,\"{\",CHAR(160),FU$1))+1),\"\")","v":""},{"$f":"IFERROR(MID($R230,FIND(CHAR(160),SUBSTITUTE($R230,\"{\",CHAR(160),FV$1)),FIND(CHAR(160),SUBSTITUTE($R230,\"}\",CHAR(160),FV$1))-FIND(CHAR(160),SUBSTITUTE($R230,\"{\",CHAR(160),FV$1))+1),\"\")","v":""},{"$f":"IFERROR(MID($U230,FIND(CHAR(160),SUBSTITUTE($U230,\"{\",CHAR(160),FW$1)),FIND(CHAR(160),SUBSTITUTE($U230,\"}\",CHAR(160),FW$1))-FIND(CHAR(160),SUBSTITUTE($U230,\"{\",CHAR(160),FW$1))+1),\"\")","v":""},{"$f":"IFERROR(MID($U230,FIND(CHAR(160),SUBSTITUTE($U230,\"{\",CHAR(160),FX$1)),FIND(CHAR(160),SUBSTITUTE($U230,\"}\",CHAR(160),FX$1))-FIND(CHAR(160),SUBSTITUTE($U230,\"{\",CHAR(160),FX$1))+1),\"\")","v":""},{"$f":"IFERROR(MID($U230,FIND(CHAR(160),SUBSTITUTE($U230,\"{\",CHAR(160),FY$1)),FIND(CHAR(160),SUBSTITUTE($U230,\"}\",CHAR(160),FY$1))-FIND(CHAR(160),SUBSTITUTE($U230,\"{\",CHAR(160),FY$1))+1),\"\")","v":""},{"$f":"IFERROR(MID($U230,FIND(CHAR(160),SUBSTITUTE($U230,\"{\",CHAR(160),FZ$1)),FIND(CHAR(160),SUBSTITUTE($U230,\"}\",CHAR(160),FZ$1))-FIND(CHAR(160),SUBSTITUTE($U230,\"{\",CHAR(160),FZ$1))+1),\"\")","v":""},{"$f":"IFERROR(MID($U230,FIND(CHAR(160),SUBSTITUTE($U230,\"{\",CHAR(160),GA$1)),FIND(CHAR(160),SUBSTITUTE($U230,\"}\",CHAR(160),GA$1))-FIND(CHAR(160),SUBSTITUTE($U230,\"{\",CHAR(160),GA$1))+1),\"\")","v":""},{"$f":"IFERROR(MID($U230,FIND(CHAR(160),SUBSTITUTE($U230,\"{\",CHAR(160),GB$1)),FIND(CHAR(160),SUBSTITUTE($U230,\"}\",CHAR(160),GB$1))-FIND(CHAR(160),SUBSTITUTE($U230,\"{\",CHAR(160),GB$1))+1),\"\")","v":""},{"$f":"IFERROR(MID($U230,FIND(CHAR(160),SUBSTITUTE($U230,\"{\",CHAR(160),GC$1)),FIND(CHAR(160),SUBSTITUTE($U230,\"}\",CHAR(160),GC$1))-FIND(CHAR(160),SUBSTITUTE($U230,\"{\",CHAR(160),GC$1))+1),\"\")","v":""},{"$f":"IFERROR(MID($U230,FIND(CHAR(160),SUBSTITUTE($U230,\"{\",CHAR(160),GD$1)),FIND(CHAR(160),SUBSTITUTE($U230,\"}\",CHAR(160),GD$1))-FIND(CHAR(160),SUBSTITUTE($U230,\"{\",CHAR(160),GD$1))+1),\"\")","v":""},{"$f":"IFERROR(MID($U230,FIND(CHAR(160),SUBSTITUTE($U230,\"{\",CHAR(160),GE$1)),FIND(CHAR(160),SUBSTITUTE($U230,\"}\",CHAR(160),GE$1))-FIND(CHAR(160),SUBSTITUTE($U230,\"{\",CHAR(160),GE$1))+1),\"\")","v":"{Measure:Quantity}"},{"$f":"IFERROR(MID($U230,FIND(CHAR(160),SUBSTITUTE($U230,\"{\",CHAR(160),GF$1)),FIND(CHAR(160),SUBSTITUTE($U230,\"}\",CHAR(160),GF$1))-FIND(CHAR(160),SUBSTITUTE($U230,\"{\",CHAR(160),GF$1))+1),\"\")","v":"{Measure:Quantity}"},{"$f":"IFERROR(MID($V230,FIND(CHAR(160),SUBSTITUTE($V230,\"{\",CHAR(160),GG$1)),FIND(CHAR(160),SUBSTITUTE($V230,\"}\",CHAR(160),GG$1))-FIND(CHAR(160),SUBSTITUTE($V230,\"{\",CHAR(160),GG$1))+1),\"\")","v":""},{"$f":"IFERROR(MID($V230,FIND(CHAR(160),SUBSTITUTE($V230,\"{\",CHAR(160),GH$1)),FIND(CHAR(160),SUBSTITUTE($V230,\"}\",CHAR(160),GH$1))-FIND(CHAR(160),SUBSTITUTE($V230,\"{\",CHAR(160),GH$1))+1),\"\")","v":""},{"$f":"IFERROR(MID($V230,FIND(CHAR(160),SUBSTITUTE($V230,\"{\",CHAR(160),GI$1)),FIND(CHAR(160),SUBSTITUTE($V230,\"}\",CHAR(160),GI$1))-FIND(CHAR(160),SUBSTITUTE($V230,\"{\",CHAR(160),GI$1))+1),\"\")","v":""},{"$f":"IFERROR(MID($V230,FIND(CHAR(160),SUBSTITUTE($V230,\"{\",CHAR(160),GJ$1)),FIND(CHAR(160),SUBSTITUTE($V230,\"}\",CHAR(160),GJ$1))-FIND(CHAR(160),SUBSTITUTE($V230,\"{\",CHAR(160),GJ$1))+1),\"\")","v":""},{"$f":"IFERROR(MID($V230,FIND(CHAR(160),SUBSTITUTE($V230,\"{\",CHAR(160),GK$1)),FIND(CHAR(160),SUBSTITUTE($V230,\"}\",CHAR(160),GK$1))-FIND(CHAR(160),SUBSTITUTE($V230,\"{\",CHAR(160),GK$1))+1),\"\")","v":""},{"$f":"IFERROR(MID($V230,FIND(CHAR(160),SUBSTITUTE($V230,\"{\",CHAR(160),GL$1)),FIND(CHAR(160),SUBSTITUTE($V230,\"}\",CHAR(160),GL$1))-FIND(CHAR(160),SUBSTITUTE($V230,\"{\",CHAR(160),GL$1))+1),\"\")","v":""},{"$f":"IFERROR(MID($V230,FIND(CHAR(160),SUBSTITUTE($V230,\"{\",CHAR(160),GM$1)),FIND(CHAR(160),SUBSTITUTE($V230,\"}\",CHAR(160),GM$1))-FIND(CHAR(160),SUBSTITUTE($V230,\"{\",CHAR(160),GM$1))+1),\"\")","v":""},{"$f":"IFERROR(MID($V230,FIND(CHAR(160),SUBSTITUTE($V230,\"{\",CHAR(160),GN$1)),FIND(CHAR(160),SUBSTITUTE($V230,\"}\",CHAR(160),GN$1))-FIND(CHAR(160),SUBSTITUTE($V230,\"{\",CHAR(160),GN$1))+1),\"\")","v":""},{"$f":"IFERROR(MID($V230,FIND(CHAR(160),SUBSTITUTE($V230,\"{\",CHAR(160),GO$1)),FIND(CHAR(160),SUBSTITUTE($V230,\"}\",CHAR(160),GO$1))-FIND(CHAR(160),SUBSTITUTE($V230,\"{\",CHAR(160),GO$1))+1),\"\")","v":"{Measure:Quantity}"},{"$f":"IFERROR(MID($V230,FIND(CHAR(160),SUBSTITUTE($V230,\"{\",CHAR(160),GP$1)),FIND(CHAR(160),SUBSTITUTE($V230,\"}\",CHAR(160),GP$1))-FIND(CHAR(160),SUBSTITUTE($V230,\"{\",CHAR(160),GP$1))+1),\"\")","v":"{Measure:Quantity}"},{"$f":"IFERROR(MID($W230,FIND(CHAR(160),SUBSTITUTE($W230,\"{\",CHAR(160),GQ$1)),FIND(CHAR(160),SUBSTITUTE($W230,\"}\",CHAR(160),GQ$1))-FIND(CHAR(160),SUBSTITUTE($W230,\"{\",CHAR(160),GQ$1))+1),\"\")","v":""},{"$f":"IFERROR(MID($W230,FIND(CHAR(160),SUBSTITUTE($W230,\"{\",CHAR(160),GR$1)),FIND(CHAR(160),SUBSTITUTE($W230,\"}\",CHAR(160),GR$1))-FIND(CHAR(160),SUBSTITUTE($W230,\"{\",CHAR(160),GR$1))+1),\"\")","v":""},{"$f":"IFERROR(MID($W230,FIND(CHAR(160),SUBSTITUTE($W230,\"{\",CHAR(160),GS$1)),FIND(CHAR(160),SUBSTITUTE($W230,\"}\",CHAR(160),GS$1))-FIND(CHAR(160),SUBSTITUTE($W230,\"{\",CHAR(160),GS$1))+1),\"\")","v":""},{"$f":"IFERROR(MID($W230,FIND(CHAR(160),SUBSTITUTE($W230,\"{\",CHAR(160),GT$1)),FIND(CHAR(160),SUBSTITUTE($W230,\"}\",CHAR(160),GT$1))-FIND(CHAR(160),SUBSTITUTE($W230,\"{\",CHAR(160),GT$1))+1),\"\")","v":""},{"$f":"IFERROR(MID($W230,FIND(CHAR(160),SUBSTITUTE($W230,\"{\",CHAR(160),GU$1)),FIND(CHAR(160),SUBSTITUTE($W230,\"}\",CHAR(160),GU$1))-FIND(CHAR(160),SUBSTITUTE($W230,\"{\",CHAR(160),GU$1))+1),\"\")","v":""},{"$f":"IFERROR(MID($W230,FIND(CHAR(160),SUBSTITUTE($W230,\"{\",CHAR(160),GV$1)),FIND(CHAR(160),SUBSTITUTE($W230,\"}\",CHAR(160),GV$1))-FIND(CHAR(160),SUBSTITUTE($W230,\"{\",CHAR(160),GV$1))+1),\"\")","v":""},{"$f":"IFERROR(MID($W230,FIND(CHAR(160),SUBSTITUTE($W230,\"{\",CHAR(160),GW$1)),FIND(CHAR(160),SUBSTITUTE($W230,\"}\",CHAR(160),GW$1))-FIND(CHAR(160),SUBSTITUTE($W230,\"{\",CHAR(160),GW$1))+1),\"\")","v":""},{"$f":"IFERROR(MID($W230,FIND(CHAR(160),SUBSTITUTE($W230,\"{\",CHAR(160),GX$1)),FIND(CHAR(160),SUBSTITUTE($W230,\"}\",CHAR(160),GX$1))-FIND(CHAR(160),SUBSTITUTE($W230,\"{\",CHAR(160),GX$1))+1),\"\")","v":""},{"$f":"IFERROR(MID($W230,FIND(CHAR(160),SUBSTITUTE($W230,\"{\",CHAR(160),GY$1)),FIND(CHAR(160),SUBSTITUTE($W230,\"}\",CHAR(160),GY$1))-FIND(CHAR(160),SUBSTITUTE($W230,\"{\",CHAR(160),GY$1))+1),\"\")","v":""},{"$f":"IFERROR(MID($W230,FIND(CHAR(160),SUBSTITUTE($W230,\"{\",CHAR(160),GZ$1)),FIND(CHAR(160),SUBSTITUTE($W230,\"}\",CHAR(160),GZ$1))-FIND(CHAR(160),SUBSTITUTE($W230,\"{\",CHAR(160),GZ$1))+1),\"\")","v":""},{"$f":"IFERROR(MID($X230,FIND(CHAR(160),SUBSTITUTE($X230,\"{\",CHAR(160),HA$1)),FIND(CHAR(160),SUBSTITUTE($X230,\"}\",CHAR(160),HA$1))-FIND(CHAR(160),SUBSTITUTE($X230,\"{\",CHAR(160),HA$1))+1),\"\")","v":""},{"$f":"IFERROR(MID($X230,FIND(CHAR(160),SUBSTITUTE($X230,\"{\",CHAR(160),HB$1)),FIND(CHAR(160),SUBSTITUTE($X230,\"}\",CHAR(160),HB$1))-FIND(CHAR(160),SUBSTITUTE($X230,\"{\",CHAR(160),HB$1))+1),\"\")","v":""},{"$f":"IFERROR(MID($X230,FIND(CHAR(160),SUBSTITUTE($X230,\"{\",CHAR(160),HC$1)),FIND(CHAR(160),SUBSTITUTE($X230,\"}\",CHAR(160),HC$1))-FIND(CHAR(160),SUBSTITUTE($X230,\"{\",CHAR(160),HC$1))+1),\"\")","v":""},{"$f":"IFERROR(MID($X230,FIND(CHAR(160),SUBSTITUTE($X230,\"{\",CHAR(160),HD$1)),FIND(CHAR(160),SUBSTITUTE($X230,\"}\",CHAR(160),HD$1))-FIND(CHAR(160),SUBSTITUTE($X230,\"{\",CHAR(160),HD$1))+1),\"\")","v":""},{"$f":"IFERROR(MID($X230,FIND(CHAR(160),SUBSTITUTE($X230,\"{\",CHAR(160),HE$1)),FIND(CHAR(160),SUBSTITUTE($X230,\"}\",CHAR(160),HE$1))-FIND(CHAR(160),SUBSTITUTE($X230,\"{\",CHAR(160),HE$1))+1),\"\")","v":""},{"$f":"IFERROR(MID($X230,FIND(CHAR(160),SUBSTITUTE($X230,\"{\",CHAR(160),HF$1)),FIND(CHAR(160),SUBSTITUTE($X230,\"}\",CHAR(160),HF$1))-FIND(CHAR(160),SUBSTITUTE($X230,\"{\",CHAR(160),HF$1))+1),\"\")","v":""},{"$f":"IFERROR(MID($X230,FIND(CHAR(160),SUBSTITUTE($X230,\"{\",CHAR(160),HG$1)),FIND(CHAR(160),SUBSTITUTE($X230,\"}\",CHAR(160),HG$1))-FIND(CHAR(160),SUBSTITUTE($X230,\"{\",CHAR(160),HG$1))+1),\"\")","v":""},{"$f":"IFERROR(MID($X230,FIND(CHAR(160),SUBSTITUTE($X230,\"{\",CHAR(160),HH$1)),FIND(CHAR(160),SUBSTITUTE($X230,\"}\",CHAR(160),HH$1))-FIND(CHAR(160),SUBSTITUTE($X230,\"{\",CHAR(160),HH$1))+1),\"\")","v":""},{"$f":"IFERROR(MID($X230,FIND(CHAR(160),SUBSTITUTE($X230,\"{\",CHAR(160),HI$1)),FIND(CHAR(160),SUBSTITUTE($X230,\"}\",CHAR(160),HI$1))-FIND(CHAR(160),SUBSTITUTE($X230,\"{\",CHAR(160),HI$1))+1),\"\")","v":""},{"$f":"IFERROR(MID($X230,FIND(CHAR(160),SUBSTITUTE($X230,\"{\",CHAR(160),HJ$1)),FIND(CHAR(160),SUBSTITUTE($X230,\"}\",CHAR(160),HJ$1))-FIND(CHAR(160),SUBSTITUTE($X230,\"{\",CHAR(160),HJ$1))+1),\"\")","v":""},{"$f":"IFERROR(MID($Y230,FIND(CHAR(160),SUBSTITUTE($Y230,\"{\",CHAR(160),HK$1)),FIND(CHAR(160),SUBSTITUTE($Y230,\"}\",CHAR(160),HK$1))-FIND(CHAR(160),SUBSTITUTE($Y230,\"{\",CHAR(160),HK$1))+1),\"\")","v":""},{"$f":"IFERROR(MID($Y230,FIND(CHAR(160),SUBSTITUTE($Y230,\"{\",CHAR(160),HL$1)),FIND(CHAR(160),SUBSTITUTE($Y230,\"}\",CHAR(160),HL$1))-FIND(CHAR(160),SUBSTITUTE($Y230,\"{\",CHAR(160),HL$1))+1),\"\")","v":""},{"$f":"IFERROR(MID($Y230,FIND(CHAR(160),SUBSTITUTE($Y230,\"{\",CHAR(160),HM$1)),FIND(CHAR(160),SUBSTITUTE($Y230,\"}\",CHAR(160),HM$1))-FIND(CHAR(160),SUBSTITUTE($Y230,\"{\",CHAR(160),HM$1))+1),\"\")","v":""},{"$f":"IFERROR(MID($Y230,FIND(CHAR(160),SUBSTITUTE($Y230,\"{\",CHAR(160),HN$1)),FIND(CHAR(160),SUBSTITUTE($Y230,\"}\",CHAR(160),HN$1))-FIND(CHAR(160),SUBSTITUTE($Y230,\"{\",CHAR(160),HN$1))+1),\"\")","v":""},{"$f":"IFERROR(MID($Y230,FIND(CHAR(160),SUBSTITUTE($Y230,\"{\",CHAR(160),HO$1)),FIND(CHAR(160),SUBSTITUTE($Y230,\"}\",CHAR(160),HO$1))-FIND(CHAR(160),SUBSTITUTE($Y230,\"{\",CHAR(160),HO$1))+1),\"\")","v":""},{"$f":"IFERROR(MID($Y230,FIND(CHAR(160),SUBSTITUTE($Y230,\"{\",CHAR(160),HP$1)),FIND(CHAR(160),SUBSTITUTE($Y230,\"}\",CHAR(160),HP$1))-FIND(CHAR(160),SUBSTITUTE($Y230,\"{\",CHAR(160),HP$1))+1),\"\")","v":""},{"$f":"IFERROR(MID($Y230,FIND(CHAR(160),SUBSTITUTE($Y230,\"{\",CHAR(160),HQ$1)),FIND(CHAR(160),SUBSTITUTE($Y230,\"}\",CHAR(160),HQ$1))-FIND(CHAR(160),SUBSTITUTE($Y230,\"{\",CHAR(160),HQ$1))+1),\"\")","v":""},{"$f":"IFERROR(MID($Y230,FIND(CHAR(160),SUBSTITUTE($Y230,\"{\",CHAR(160),HR$1)),FIND(CHAR(160),SUBSTITUTE($Y230,\"}\",CHAR(160),HR$1))-FIND(CHAR(160),SUBSTITUTE($Y230,\"{\",CHAR(160),HR$1))+1),\"\")","v":""},{"$f":"IFERROR(MID($Y230,FIND(CHAR(160),SUBSTITUTE($Y230,\"{\",CHAR(160),HS$1)),FIND(CHAR(160),SUBSTITUTE($Y230,\"}\",CHAR(160),HS$1))-FIND(CHAR(160),SUBSTITUTE($Y230,\"{\",CHAR(160),HS$1))+1),\"\")","v":""},{"$f":"IFERROR(MID($Y230,FIND(CHAR(160),SUBSTITUTE($Y230,\"{\",CHAR(160),HT$1)),FIND(CHAR(160),SUBSTITUTE($Y230,\"}\",CHAR(160),HT$1))-FIND(CHAR(160),SUBSTITUTE($Y230,\"{\",CHAR(160),HT$1))+1),\"\")","v":""},{"$f":"IFERROR(MID($Z230,FIND(CHAR(160),SUBSTITUTE($Z230,\"{\",CHAR(160),HU$1)),FIND(CHAR(160),SUBSTITUTE($Z230,\"}\",CHAR(160),HU$1))-FIND(CHAR(160),SUBSTITUTE($Z230,\"{\",CHAR(160),HU$1))+1),\"\")","v":""},{"$f":"IFERROR(MID($Z230,FIND(CHAR(160),SUBSTITUTE($Z230,\"{\",CHAR(160),HV$1)),FIND(CHAR(160),SUBSTITUTE($Z230,\"}\",CHAR(160),HV$1))-FIND(CHAR(160),SUBSTITUTE($Z230,\"{\",CHAR(160),HV$1))+1),\"\")","v":""},{"$f":"IFERROR(MID($Z230,FIND(CHAR(160),SUBSTITUTE($Z230,\"{\",CHAR(160),HW$1)),FIND(CHAR(160),SUBSTITUTE($Z230,\"}\",CHAR(160),HW$1))-FIND(CHAR(160),SUBSTITUTE($Z230,\"{\",CHAR(160),HW$1))+1),\"\")","v":""},{"$f":"IFERROR(MID($Z230,FIND(CHAR(160),SUBSTITUTE($Z230,\"{\",CHAR(160),HX$1)),FIND(CHAR(160),SUBSTITUTE($Z230,\"}\",CHAR(160),HX$1))-FIND(CHAR(160),SUBSTITUTE($Z230,\"{\",CHAR(160),HX$1))+1),\"\")","v":""},{"$f":"IFERROR(MID($Z230,FIND(CHAR(160),SUBSTITUTE($Z230,\"{\",CHAR(160),HY$1)),FIND(CHAR(160),SUBSTITUTE($Z230,\"}\",CHAR(160),HY$1))-FIND(CHAR(160),SUBSTITUTE($Z230,\"{\",CHAR(160),HY$1))+1),\"\")","v":""},{"$f":"IFERROR(MID($Z230,FIND(CHAR(160),SUBSTITUTE($Z230,\"{\",CHAR(160),HZ$1)),FIND(CHAR(160),SUBSTITUTE($Z230,\"}\",CHAR(160),HZ$1))-FIND(CHAR(160),SUBSTITUTE($Z230,\"{\",CHAR(160),HZ$1))+1),\"\")","v":""},{"$f":"IFERROR(MID($Z230,FIND(CHAR(160),SUBSTITUTE($Z230,\"{\",CHAR(160),IA$1)),FIND(CHAR(160),SUBSTITUTE($Z230,\"}\",CHAR(160),IA$1))-FIND(CHAR(160),SUBSTITUTE($Z230,\"{\",CHAR(160),IA$1))+1),\"\")","v":""},{"$f":"IFERROR(MID($Z230,FIND(CHAR(160),SUBSTITUTE($Z230,\"{\",CHAR(160),IB$1)),FIND(CHAR(160),SUBSTITUTE($Z230,\"}\",CHAR(160),IB$1))-FIND(CHAR(160),SUBSTITUTE($Z230,\"{\",CHAR(160),IB$1))+1),\"\")","v":""},{"$f":"IFERROR(MID($Z230,FIND(CHAR(160),SUBSTITUTE($Z230,\"{\",CHAR(160),IC$1)),FIND(CHAR(160),SUBSTITUTE($Z230,\"}\",CHAR(160),IC$1))-FIND(CHAR(160),SUBSTITUTE($Z230,\"{\",CHAR(160),IC$1))+1),\"\")","v":""},{"$f":"IFERROR(MID($Z230,FIND(CHAR(160),SUBSTITUTE($Z230,\"{\",CHAR(160),ID$1)),FIND(CHAR(160),SUBSTITUTE($Z230,\"}\",CHAR(160),ID$1))-FIND(CHAR(160),SUBSTITUTE($Z230,\"{\",CHAR(160),ID$1))+1),\"\")","v":""},{"$f":"IFERROR(MID($AA230,FIND(CHAR(160),SUBSTITUTE($AA230,\"{\",CHAR(160),IE$1)),FIND(CHAR(160),SUBSTITUTE($AA230,\"}\",CHAR(160),IE$1))-FIND(CHAR(160),SUBSTITUTE($AA230,\"{\",CHAR(160),IE$1))+1),\"\")","v":""},{"$f":"IFERROR(MID($AA230,FIND(CHAR(160),SUBSTITUTE($AA230,\"{\",CHAR(160),IF$1)),FIND(CHAR(160),SUBSTITUTE($AA230,\"}\",CHAR(160),IF$1))-FIND(CHAR(160),SUBSTITUTE($AA230,\"{\",CHAR(160),IF$1))+1),\"\")","v":""},{"$f":"IFERROR(MID($AA230,FIND(CHAR(160),SUBSTITUTE($AA230,\"{\",CHAR(160),IG$1)),FIND(CHAR(160),SUBSTITUTE($AA230,\"}\",CHAR(160),IG$1))-FIND(CHAR(160),SUBSTITUTE($AA230,\"{\",CHAR(160),IG$1))+1),\"\")","v":""},{"$f":"IFERROR(MID($AA230,FIND(CHAR(160),SUBSTITUTE($AA230,\"{\",CHAR(160),IH$1)),FIND(CHAR(160),SUBSTITUTE($AA230,\"}\",CHAR(160),IH$1))-FIND(CHAR(160),SUBSTITUTE($AA230,\"{\",CHAR(160),IH$1))+1),\"\")","v":""},{"$f":"IFERROR(MID($AA230,FIND(CHAR(160),SUBSTITUTE($AA230,\"{\",CHAR(160),II$1)),FIND(CHAR(160),SUBSTITUTE($AA230,\"}\",CHAR(160),II$1))-FIND(CHAR(160),SUBSTITUTE($AA230,\"{\",CHAR(160),II$1))+1),\"\")","v":""},{"$f":"IFERROR(MID($AA230,FIND(CHAR(160),SUBSTITUTE($AA230,\"{\",CHAR(160),IJ$1)),FIND(CHAR(160),SUBSTITUTE($AA230,\"}\",CHAR(160),IJ$1))-FIND(CHAR(160),SUBSTITUTE($AA230,\"{\",CHAR(160),IJ$1))+1),\"\")","v":""},{"$f":"IFERROR(MID($AA230,FIND(CHAR(160),SUBSTITUTE($AA230,\"{\",CHAR(160),IK$1)),FIND(CHAR(160),SUBSTITUTE($AA230,\"}\",CHAR(160),IK$1))-FIND(CHAR(160),SUBSTITUTE($AA230,\"{\",CHAR(160),IK$1))+1),\"\")","v":""},{"$f":"IFERROR(MID($AA230,FIND(CHAR(160),SUBSTITUTE($AA230,\"{\",CHAR(160),IL$1)),FIND(CHAR(160),SUBSTITUTE($AA230,\"}\",CHAR(160),IL$1))-FIND(CHAR(160),SUBSTITUTE($AA230,\"{\",CHAR(160),IL$1))+1),\"\")","v":""},{"$f":"IFERROR(MID($AA230,FIND(CHAR(160),SUBSTITUTE($AA230,\"{\",CHAR(160),IM$1)),FIND(CHAR(160),SUBSTITUTE($AA230,\"}\",CHAR(160),IM$1))-FIND(CHAR(160),SUBSTITUTE($AA230,\"{\",CHAR(160),IM$1))+1),\"\")","v":""},{"$f":"IFERROR(MID($AA230,FIND(CHAR(160),SUBSTITUTE($AA230,\"{\",CHAR(160),IN$1)),FIND(CHAR(160),SUBSTITUTE($AA230,\"}\",CHAR(160),IN$1))-FIND(CHAR(160),SUBSTITUTE($AA230,\"{\",CHAR(160),IN$1))+1),\"\")","v":""},{"$f":"IFERROR(MID($AB230,FIND(CHAR(160),SUBSTITUTE($AB230,\"{\",CHAR(160),IO$1)),FIND(CHAR(160),SUBSTITUTE($AB230,\"}\",CHAR(160),IO$1))-FIND(CHAR(160),SUBSTITUTE($AB230,\"{\",CHAR(160),IO$1))+1),\"\")","v":""},{"$f":"IFERROR(MID($AB230,FIND(CHAR(160),SUBSTITUTE($AB230,\"{\",CHAR(160),IP$1)),FIND(CHAR(160),SUBSTITUTE($AB230,\"}\",CHAR(160),IP$1))-FIND(CHAR(160),SUBSTITUTE($AB230,\"{\",CHAR(160),IP$1))+1),\"\")","v":""},{"$f":"IFERROR(MID($AB230,FIND(CHAR(160),SUBSTITUTE($AB230,\"{\",CHAR(160),IQ$1)),FIND(CHAR(160),SUBSTITUTE($AB230,\"}\",CHAR(160),IQ$1))-FIND(CHAR(160),SUBSTITUTE($AB230,\"{\",CHAR(160),IQ$1))+1),\"\")","v":""},{"$f":"IFERROR(MID($AB230,FIND(CHAR(160),SUBSTITUTE($AB230,\"{\",CHAR(160),IR$1)),FIND(CHAR(160),SUBSTITUTE($AB230,\"}\",CHAR(160),IR$1))-FIND(CHAR(160),SUBSTITUTE($AB230,\"{\",CHAR(160),IR$1))+1),\"\")","v":""},{"$f":"IFERROR(MID($AB230,FIND(CHAR(160),SUBSTITUTE($AB230,\"{\",CHAR(160),IS$1)),FIND(CHAR(160),SUBSTITUTE($AB230,\"}\",CHAR(160),IS$1))-FIND(CHAR(160),SUBSTITUTE($AB230,\"{\",CHAR(160),IS$1))+1),\"\")","v":""},{"$f":"IFERROR(MID($AB230,FIND(CHAR(160),SUBSTITUTE($AB230,\"{\",CHAR(160),IT$1)),FIND(CHAR(160),SUBSTITUTE($AB230,\"}\",CHAR(160),IT$1))-FIND(CHAR(160),SUBSTITUTE($AB230,\"{\",CHAR(160),IT$1))+1),\"\")","v":""},{"$f":"IFERROR(MID($AB230,FIND(CHAR(160),SUBSTITUTE($AB230,\"{\",CHAR(160),IU$1)),FIND(CHAR(160),SUBSTITUTE($AB230,\"}\",CHAR(160),IU$1))-FIND(CHAR(160),SUBSTITUTE($AB230,\"{\",CHAR(160),IU$1))+1),\"\")","v":""},{"$f":"IFERROR(MID($AB230,FIND(CHAR(160),SUBSTITUTE($AB230,\"{\",CHAR(160),IV$1)),FIND(CHAR(160),SUBSTITUTE($AB230,\"}\",CHAR(160),IV$1))-FIND(CHAR(160),SUBSTITUTE($AB230,\"{\",CHAR(160),IV$1))+1),\"\")","v":""},{"$f":"IFERROR(MID($AB230,FIND(CHAR(160),SUBSTITUTE($AB230,\"{\",CHAR(160),IW$1)),FIND(CHAR(160),SUBSTITUTE($AB230,\"}\",CHAR(160),IW$1))-FIND(CHAR(160),SUBSTITUTE($AB230,\"{\",CHAR(160),IW$1))+1),\"\")","v":""},{"$f":"IFERROR(MID($AB230,FIND(CHAR(160),SUBSTITUTE($AB230,\"{\",CHAR(160),IX$1)),FIND(CHAR(160),SUBSTITUTE($AB230,\"}\",CHAR(160),IX$1))-FIND(CHAR(160),SUBSTITUTE($AB230,\"{\",CHAR(160),IX$1))+1),\"\")","v":""},null,{"$f":"10-COUNTIF(DU230:ED230,\"\")","v":1}]
["Low Income Direct Mailing","Low Flow Bathroom Aerator Direct Install","LILFBA","2021-07-01","2022-06-30","Per Measure",0.49,0,"Per Measure",0.49,0,"2021-07-01","2022-06-30","Calculated","{Measure:Quantity}*if({Measure:Quantity}=0,0,29)",null,null,null,null,null,"{Measure:Quantity}*if({Measure:Quantity}=0,0,0.0044)","{Measure:Quantity}*if({Measure:Quantity}=0,0,0.0035)",null,null,null,null,null,"if({Measure:Quantity}=0,0,{Measure:Quantity}*333)","2021-07-01","2022-06-30",10,4.0000000000000001E-3,3.0000000000000001E-3,0.39700000000000002,0.26800000000000002,0.20300000000000001,0.13100000000000001,0.77,1,1,0,0,null,{"$f":"DU231","v":"{Measure:Quantity}"},1,{"$f":"DV231","v":""},null,{"$f":"DW231","v":""},null,{"$f":"DX231","v":""},null,{"$f":"DY231","v":""},null,{"$f":"DZ231","v":""},null,{"$f":"EA231","v":""},null,{"$f":"EB231","v":""},null,{"$f":"EC231","v":""},null,{"$f":"ED231","v":""},null,{"$f":"AS231*IF(AS231=0,0,29)","v":29},0,0,0,0,0,{"$f":"AS231*IF(AS231=0,0,0.0044)","v":4.4000000000000003E-3},{"$f":"AS231*IF(AS231=0,0,0.0035)","v":3.5000000000000001E-3},0,0,0,0,0,{"$f":"IF(AS231=0,0,AS231*333)","v":333},null,"Res","Default DR",{"$f":"Benefits(BL231,BR231,BS231,BT231,BU231,BV231,BW231,BX231,BY231,BZ231,AE231,AH231,AI231,AJ231,AK231,AL231,AM231,AN231,AO231,AP231,CA231,CB231)","v":21.996280898549266},12.632117441522738,0,0,0,0,0,19.771037930079988,0,{"$f":"SUMPRODUCT(CC231:CK231,--(CC231:CK231>0))","v":54.399436270151995},{"$f":"-SUMPRODUCT(CC231:CK231,--(CC231:CK231<0))","v":0},null,{"$f":"0.49","v":0.49},null,null,{"$f":"CM231+CO231","v":0.49},{"$f":"IF(NetOrGross=\"Net\",(1-AO231+AP231),1)","v":1},{"$f":"(SUMPRODUCT(CC231:CJ231,--(CC231:CJ231>0))+CN231)*CS231/((-SUMPRODUCT(CC231:CJ231,--(CC231:CJ231<0))+MAX(CO231,CV231)+CP231+CQ231)*CS231+IF(FRIncentives=\"Yes\",CV231*(1-CS231),0))","v":111.01925769418774},1,{"$f":"0.49","v":0.49},null,"Electric","y",null,{"$f":"IF(F231=\"Manual Entry\",\"Manual\",IF(G231=\"\",0,\"X=\"&SUBSTITUTE(SUBSTITUTE(SUBSTITUTE(SUBSTITUTE(SUBSTITUTE(SUBSTITUTE(SUBSTITUTE(SUBSTITUTE(SUBSTITUTE(SUBSTITUTE(SUBSTITUTE(SUBSTITUTE(G231,$ED231,$ED$2&ROW($ED231)),$EC231,$EC$2&ROW($EC231)),$EB231,$EB$2&ROW($EB231)),$EA231,$EA$2&ROW($EA231)),$DZ231,$DZ$2&ROW($DZ231)),$DY231,$DY$2&ROW($DY231)),$DX231,$DX$2&ROW($DX231)),$DW231,$DW$2&ROW($DW231)),$DV231,$DV$2&ROW($DV231)),$DU231,$DU$2&ROW($DU231)),$DT231,$DT$2&ROW($DT231)),$DS231,$DS$2&ROW($DS231))))","v":"X=0.49"},{"$f":"IF(I231=\"Manual Entry\",\"Manual\",IF(J231=\"\",0,\"X=\"&SUBSTITUTE(SUBSTITUTE(SUBSTITUTE(SUBSTITUTE(SUBSTITUTE(SUBSTITUTE(SUBSTITUTE(SUBSTITUTE(SUBSTITUTE(SUBSTITUTE(SUBSTITUTE(SUBSTITUTE(J231,$ED231,$ED$2&ROW($ED231)),$EC231,$EC$2&ROW($EC231)),$EB231,$EB$2&ROW($EB231)),$EA231,$EA$2&ROW($EA231)),$DZ231,$DZ$2&ROW($DZ231)),$DY231,$DY$2&ROW($DY231)),$DX231,$DX$2&ROW($DX231)),$DW231,$DW$2&ROW($DW231)),$DV231,$DV$2&ROW($DV231)),$DU231,$DU$2&ROW($DU231)),$DT231,$DT$2&ROW($DT231)),$DS231,$DS$2&ROW($DS231))))","v":"X=0.49"},{"$f":"IF(O231=\"\",0,\"X=\"&SUBSTITUTE(SUBSTITUTE(SUBSTITUTE(SUBSTITUTE(SUBSTITUTE(SUBSTITUTE(SUBSTITUTE(SUBSTITUTE(SUBSTITUTE(SUBSTITUTE(SUBSTITUTE(SUBSTITUTE(O231,$ED231,$ED$2&ROW($ED231)),$EC231,$EC$2&ROW($EC231)),$EB231,$EB$2&ROW($EB231)),$EA231,$EA$2&ROW($EA231)),$DZ231,$DZ$2&ROW($DZ231)),$DY231,$DY$2&ROW($DY231)),$DX231,$DX$2&ROW($DX231)),$DW231,$DW$2&ROW($DW231)),$DV231,$DV$2&ROW($DV231)),$DU231,$DU$2&ROW($DU231)),$DT231,$DT$2&ROW($DT231)),$DS231,$DS$2&ROW($DS231)))","v":"X=AS231*if(AS231=0,0,29)"},{"$f":"IF(P231=\"\",0,\"X=\"&SUBSTITUTE(SUBSTITUTE(SUBSTITUTE(SUBSTITUTE(SUBSTITUTE(SUBSTITUTE(SUBSTITUTE(SUBSTITUTE(SUBSTITUTE(SUBSTITUTE(SUBSTITUTE(SUBSTITUTE(P231,$ED231,$ED$2&ROW($ED231)),$EC231,$EC$2&ROW($EC231)),$EB231,$EB$2&ROW($EB231)),$EA231,$EA$2&ROW($EA231)),$DZ231,$DZ$2&ROW($DZ231)),$DY231,$DY$2&ROW($DY231)),$DX231,$DX$2&ROW($DX231)),$DW231,$DW$2&ROW($DW231)),$DV231,$DV$2&ROW($DV231)),$DU231,$DU$2&ROW($DU231)),$DT231,$DT$2&ROW($DT231)),$DS231,$DS$2&ROW($DS231)))","v":0},{"$f":"IF(Q231=\"\",0,\"X=\"&SUBSTITUTE(SUBSTITUTE(SUBSTITUTE(SUBSTITUTE(SUBSTITUTE(SUBSTITUTE(SUBSTITUTE(SUBSTITUTE(SUBSTITUTE(SUBSTITUTE(SUBSTITUTE(SUBSTITUTE(Q231,$ED231,$ED$2&ROW($ED231)),$EC231,$EC$2&ROW($EC231)),$EB231,$EB$2&ROW($EB231)),$EA231,$EA$2&ROW($EA231)),$DZ231,$DZ$2&ROW($DZ231)),$DY231,$DY$2&ROW($DY231)),$DX231,$DX$2&ROW($DX231)),$DW231,$DW$2&ROW($DW231)),$DV231,$DV$2&ROW($DV231)),$DU231,$DU$2&ROW($DU231)),$DT231,$DT$2&ROW($DT231)),$DS231,$DS$2&ROW($DS231)))","v":0},{"$f":"IF(R231=\"\",0,\"X=\"&SUBSTITUTE(SUBSTITUTE(SUBSTITUTE(SUBSTITUTE(SUBSTITUTE(SUBSTITUTE(SUBSTITUTE(SUBSTITUTE(SUBSTITUTE(SUBSTITUTE(SUBSTITUTE(SUBSTITUTE(R231,$ED231,$ED$2&ROW($ED231)),$EC231,$EC$2&ROW($EC231)),$EB231,$EB$2&ROW($EB231)),$EA231,$EA$2&ROW($EA231)),$DZ231,$DZ$2&ROW($DZ231)),$DY231,$DY$2&ROW($DY231)),$DX231,$DX$2&ROW($DX231)),$DW231,$DW$2&ROW($DW231)),$DV231,$DV$2&ROW($DV231)),$DU231,$DU$2&ROW($DU231)),$DT231,$DT$2&ROW($DT231)),$DS231,$DS$2&ROW($DS231)))","v":0},{"$f":"IF(S231=\"\",0,\"X=\"&SUBSTITUTE(SUBSTITUTE(SUBSTITUTE(SUBSTITUTE(SUBSTITUTE(SUBSTITUTE(SUBSTITUTE(SUBSTITUTE(SUBSTITUTE(SUBSTITUTE(SUBSTITUTE(SUBSTITUTE(S231,$ED231,$ED$2&ROW($ED231)),$EC231,$EC$2&ROW($EC231)),$EB231,$EB$2&ROW($EB231)),$EA231,$EA$2&ROW($EA231)),$DZ231,$DZ$2&ROW($DZ231)),$DY231,$DY$2&ROW($DY231)),$DX231,$DX$2&ROW($DX231)),$DW231,$DW$2&ROW($DW231)),$DV231,$DV$2&ROW($DV231)),$DU231,$DU$2&ROW($DU231)),$DT231,$DT$2&ROW($DT231)),$DS231,$DS$2&ROW($DS231)))","v":0},{"$f":"IF(T231=\"\",0,\"X=\"&SUBSTITUTE(SUBSTITUTE(SUBSTITUTE(SUBSTITUTE(SUBSTITUTE(SUBSTITUTE(SUBSTITUTE(SUBSTITUTE(SUBSTITUTE(SUBSTITUTE(SUBSTITUTE(SUBSTITUTE(T231,$ED231,$ED$2&ROW($ED231)),$EC231,$EC$2&ROW($EC231)),$EB231,$EB$2&ROW($EB231)),$EA231,$EA$2&ROW($EA231)),$DZ231,$DZ$2&ROW($DZ231)),$DY231,$DY$2&ROW($DY231)),$DX231,$DX$2&ROW($DX231)),$DW231,$DW$2&ROW($DW231)),$DV231,$DV$2&ROW($DV231)),$DU231,$DU$2&ROW($DU231)),$DT231,$DT$2&ROW($DT231)),$DS231,$DS$2&ROW($DS231)))","v":0},{"$f":"IF(U231=\"\",0,\"X=\"&SUBSTITUTE(SUBSTITUTE(SUBSTITUTE(SUBSTITUTE(SUBSTITUTE(SUBSTITUTE(SUBSTITUTE(SUBSTITUTE(SUBSTITUTE(SUBSTITUTE(SUBSTITUTE(SUBSTITUTE(U231,$ED231,$ED$2&ROW($ED231)),$EC231,$EC$2&ROW($EC231)),$EB231,$EB$2&ROW($EB231)),$EA231,$EA$2&ROW($EA231)),$DZ231,$DZ$2&ROW($DZ231)),$DY231,$DY$2&ROW($DY231)),$DX231,$DX$2&ROW($DX231)),$DW231,$DW$2&ROW($DW231)),$DV231,$DV$2&ROW($DV231)),$DU231,$DU$2&ROW($DU231)),$DT231,$DT$2&ROW($DT231)),$DS231,$DS$2&ROW($DS231)))","v":"X=AS231*if(AS231=0,0,0.0044)"},{"$f":"IF(V231=\"\",0,\"X=\"&SUBSTITUTE(SUBSTITUTE(SUBSTITUTE(SUBSTITUTE(SUBSTITUTE(SUBSTITUTE(SUBSTITUTE(SUBSTITUTE(SUBSTITUTE(SUBSTITUTE(SUBSTITUTE(SUBSTITUTE(V231,$ED231,$ED$2&ROW($ED231)),$EC231,$EC$2&ROW($EC231)),$EB231,$EB$2&ROW($EB231)),$EA231,$EA$2&ROW($EA231)),$DZ231,$DZ$2&ROW($DZ231)),$DY231,$DY$2&ROW($DY231)),$DX231,$DX$2&ROW($DX231)),$DW231,$DW$2&ROW($DW231)),$DV231,$DV$2&ROW($DV231)),$DU231,$DU$2&ROW($DU231)),$DT231,$DT$2&ROW($DT231)),$DS231,$DS$2&ROW($DS231)))","v":"X=AS231*if(AS231=0,0,0.0035)"},{"$f":"IF(W231=\"\",0,\"X=\"&SUBSTITUTE(SUBSTITUTE(SUBSTITUTE(SUBSTITUTE(SUBSTITUTE(SUBSTITUTE(SUBSTITUTE(SUBSTITUTE(SUBSTITUTE(SUBSTITUTE(SUBSTITUTE(SUBSTITUTE(W231,$ED231,$ED$2&ROW($ED231)),$EC231,$EC$2&ROW($EC231)),$EB231,$EB$2&ROW($EB231)),$EA231,$EA$2&ROW($EA231)),$DZ231,$DZ$2&ROW($DZ231)),$DY231,$DY$2&ROW($DY231)),$DX231,$DX$2&ROW($DX231)),$DW231,$DW$2&ROW($DW231)),$DV231,$DV$2&ROW($DV231)),$DU231,$DU$2&ROW($DU231)),$DT231,$DT$2&ROW($DT231)),$DS231,$DS$2&ROW($DS231)))","v":0},{"$f":"IF(X231=\"\",0,\"X=\"&SUBSTITUTE(SUBSTITUTE(SUBSTITUTE(SUBSTITUTE(SUBSTITUTE(SUBSTITUTE(SUBSTITUTE(SUBSTITUTE(SUBSTITUTE(SUBSTITUTE(SUBSTITUTE(SUBSTITUTE(X231,$ED231,$ED$2&ROW($ED231)),$EC231,$EC$2&ROW($EC231)),$EB231,$EB$2&ROW($EB231)),$EA231,$EA$2&ROW($EA231)),$DZ231,$DZ$2&ROW($DZ231)),$DY231,$DY$2&ROW($DY231)),$DX231,$DX$2&ROW($DX231)),$DW231,$DW$2&ROW($DW231)),$DV231,$DV$2&ROW($DV231)),$DU231,$DU$2&ROW($DU231)),$DT231,$DT$2&ROW($DT231)),$DS231,$DS$2&ROW($DS231)))","v":0},{"$f":"IF(Y231=\"\",0,\"X=\"&SUBSTITUTE(SUBSTITUTE(SUBSTITUTE(SUBSTITUTE(SUBSTITUTE(SUBSTITUTE(SUBSTITUTE(SUBSTITUTE(SUBSTITUTE(SUBSTITUTE(SUBSTITUTE(SUBSTITUTE(Y231,$ED231,$ED$2&ROW($ED231)),$EC231,$EC$2&ROW($EC231)),$EB231,$EB$2&ROW($EB231)),$EA231,$EA$2&ROW($EA231)),$DZ231,$DZ$2&ROW($DZ231)),$DY231,$DY$2&ROW($DY231)),$DX231,$DX$2&ROW($DX231)),$DW231,$DW$2&ROW($DW231)),$DV231,$DV$2&ROW($DV231)),$DU231,$DU$2&ROW($DU231)),$DT231,$DT$2&ROW($DT231)),$DS231,$DS$2&ROW($DS231)))","v":0},{"$f":"IF(Z231=\"\",0,\"X=\"&SUBSTITUTE(SUBSTITUTE(SUBSTITUTE(SUBSTITUTE(SUBSTITUTE(SUBSTITUTE(SUBSTITUTE(SUBSTITUTE(SUBSTITUTE(SUBSTITUTE(SUBSTITUTE(SUBSTITUTE(Z231,$ED231,$ED$2&ROW($ED231)),$EC231,$EC$2&ROW($EC231)),$EB231,$EB$2&ROW($EB231)),$EA231,$EA$2&ROW($EA231)),$DZ231,$DZ$2&ROW($DZ231)),$DY231,$DY$2&ROW($DY231)),$DX231,$DX$2&ROW($DX231)),$DW231,$DW$2&ROW($DW231)),$DV231,$DV$2&ROW($DV231)),$DU231,$DU$2&ROW($DU231)),$DT231,$DT$2&ROW($DT231)),$DS231,$DS$2&ROW($DS231)))","v":0},{"$f":"IF(AA231=\"\",0,\"X=\"&SUBSTITUTE(SUBSTITUTE(SUBSTITUTE(SUBSTITUTE(SUBSTITUTE(SUBSTITUTE(SUBSTITUTE(SUBSTITUTE(SUBSTITUTE(SUBSTITUTE(SUBSTITUTE(SUBSTITUTE(AA231,$ED231,$ED$2&ROW($ED231)),$EC231,$EC$2&ROW($EC231)),$EB231,$EB$2&ROW($EB231)),$EA231,$EA$2&ROW($EA231)),$DZ231,$DZ$2&ROW($DZ231)),$DY231,$DY$2&ROW($DY231)),$DX231,$DX$2&ROW($DX231)),$DW231,$DW$2&ROW($DW231)),$DV231,$DV$2&ROW($DV231)),$DU231,$DU$2&ROW($DU231)),$DT231,$DT$2&ROW($DT231)),$DS231,$DS$2&ROW($DS231)))","v":0},{"$f":"IF(AB231=\"\",0,\"X=\"&SUBSTITUTE(SUBSTITUTE(SUBSTITUTE(SUBSTITUTE(SUBSTITUTE(SUBSTITUTE(SUBSTITUTE(SUBSTITUTE(SUBSTITUTE(SUBSTITUTE(SUBSTITUTE(SUBSTITUTE(AB231,$ED231,$ED$2&ROW($ED231)),$EC231,$EC$2&ROW($EC231)),$EB231,$EB$2&ROW($EB231)),$EA231,$EA$2&ROW($EA231)),$DZ231,$DZ$2&ROW($DZ231)),$DY231,$DY$2&ROW($DY231)),$DX231,$DX$2&ROW($DX231)),$DW231,$DW$2&ROW($DW231)),$DV231,$DV$2&ROW($DV231)),$DU231,$DU$2&ROW($DU231)),$DT231,$DT$2&ROW($DT231)),$DS231,$DS$2&ROW($DS231)))","v":"X=if(AS231=0,0,AS231*333)"},null,null,"{Factor:WinterCF}","{Factor:SummerCF}",{"$f":"IFERROR(INDEX($EG231:$IV231,MATCH(0,COUNTIF($DR231:DT231,$EG231:$IV231),0)),\"\")","v":"{Measure:Quantity}"},{"$f":"IFERROR(INDEX($EG231:$IV231,MATCH(0,COUNTIF($DR231:DU231,$EG231:$IV231),0)),\"\")","v":""},{"$f":"IFERROR(INDEX($EG231:$IV231,MATCH(0,COUNTIF($DR231:DV231,$EG231:$IV231),0)),\"\")","v":""},{"$f":"IFERROR(INDEX($EG231:$IV231,MATCH(0,COUNTIF($DR231:DW231,$EG231:$IV231),0)),\"\")","v":""},{"$f":"IFERROR(INDEX($EG231:$IV231,MATCH(0,COUNTIF($DR231:DX231,$EG231:$IV231),0)),\"\")","v":""},{"$f":"IFERROR(INDEX($EG231:$IV231,MATCH(0,COUNTIF($DR231:DY231,$EG231:$IV231),0)),\"\")","v":""},{"$f":"IFERROR(INDEX($EG231:$IV231,MATCH(0,COUNTIF($DR231:DZ231,$EG231:$IV231),0)),\"\")","v":""},{"$f":"IFERROR(INDEX($EG231:$IV231,MATCH(0,COUNTIF($DR231:EA231,$EG231:$IV231),0)),\"\")","v":""},{"$f":"IFERROR(INDEX($EG231:$IV231,MATCH(0,COUNTIF($DR231:EB231,$EG231:$IV231),0)),\"\")","v":""},{"$f":"IFERROR(INDEX($EG231:$IV231,MATCH(0,COUNTIF($DR231:EC231,$EG231:$IV231),0)),\"\")","v":""},null,null,{"$f":"IFERROR(MID($G231,FIND(CHAR(160),SUBSTITUTE($G231,\"{\",CHAR(160),EG$1)),FIND(CHAR(160),SUBSTITUTE($G231,\"}\",CHAR(160),EG$1))-FIND(CHAR(160),SUBSTITUTE($G231,\"{\",CHAR(160),EG$1))+1),\"\")","v":""},{"$f":"IFERROR(MID($G231,FIND(CHAR(160),SUBSTITUTE($G231,\"{\",CHAR(160),EH$1)),FIND(CHAR(160),SUBSTITUTE($G231,\"}\",CHAR(160),EH$1))-FIND(CHAR(160),SUBSTITUTE($G231,\"{\",CHAR(160),EH$1))+1),\"\")","v":""},{"$f":"IFERROR(MID($G231,FIND(CHAR(160),SUBSTITUTE($G231,\"{\",CHAR(160),EI$1)),FIND(CHAR(160),SUBSTITUTE($G231,\"}\",CHAR(160),EI$1))-FIND(CHAR(160),SUBSTITUTE($G231,\"{\",CHAR(160),EI$1))+1),\"\")","v":""},{"$f":"IFERROR(MID($G231,FIND(CHAR(160),SUBSTITUTE($G231,\"{\",CHAR(160),EJ$1)),FIND(CHAR(160),SUBSTITUTE($G231,\"}\",CHAR(160),EJ$1))-FIND(CHAR(160),SUBSTITUTE($G231,\"{\",CHAR(160),EJ$1))+1),\"\")","v":""},{"$f":"IFERROR(MID($G231,FIND(CHAR(160),SUBSTITUTE($G231,\"{\",CHAR(160),EK$1)),FIND(CHAR(160),SUBSTITUTE($G231,\"}\",CHAR(160),EK$1))-FIND(CHAR(160),SUBSTITUTE($G231,\"{\",CHAR(160),EK$1))+1),\"\")","v":""},{"$f":"IFERROR(MID($G231,FIND(CHAR(160),SUBSTITUTE($G231,\"{\",CHAR(160),EL$1)),FIND(CHAR(160),SUBSTITUTE($G231,\"}\",CHAR(160),EL$1))-FIND(CHAR(160),SUBSTITUTE($G231,\"{\",CHAR(160),EL$1))+1),\"\")","v":""},{"$f":"IFERROR(MID($G231,FIND(CHAR(160),SUBSTITUTE($G231,\"{\",CHAR(160),EM$1)),FIND(CHAR(160),SUBSTITUTE($G231,\"}\",CHAR(160),EM$1))-FIND(CHAR(160),SUBSTITUTE($G231,\"{\",CHAR(160),EM$1))+1),\"\")","v":""},{"$f":"IFERROR(MID($G231,FIND(CHAR(160),SUBSTITUTE($G231,\"{\",CHAR(160),EN$1)),FIND(CHAR(160),SUBSTITUTE($G231,\"}\",CHAR(160),EN$1))-FIND(CHAR(160),SUBSTITUTE($G231,\"{\",CHAR(160),EN$1))+1),\"\")","v":""},{"$f":"IFERROR(MID($G231,FIND(CHAR(160),SUBSTITUTE($G231,\"{\",CHAR(160),EO$1)),FIND(CHAR(160),SUBSTITUTE($G231,\"}\",CHAR(160),EO$1))-FIND(CHAR(160),SUBSTITUTE($G231,\"{\",CHAR(160),EO$1))+1),\"\")","v":""},{"$f":"IFERROR(MID($G231,FIND(CHAR(160),SUBSTITUTE($G231,\"{\",CHAR(160),EP$1)),FIND(CHAR(160),SUBSTITUTE($G231,\"}\",CHAR(160),EP$1))-FIND(CHAR(160),SUBSTITUTE($G231,\"{\",CHAR(160),EP$1))+1),\"\")","v":""},{"$f":"IFERROR(MID($J231,FIND(CHAR(160),SUBSTITUTE($J231,\"{\",CHAR(160),EQ$1)),FIND(CHAR(160),SUBSTITUTE($J231,\"}\",CHAR(160),EQ$1))-FIND(CHAR(160),SUBSTITUTE($J231,\"{\",CHAR(160),EQ$1))+1),\"\")","v":""},{"$f":"IFERROR(MID($J231,FIND(CHAR(160),SUBSTITUTE($J231,\"{\",CHAR(160),ER$1)),FIND(CHAR(160),SUBSTITUTE($J231,\"}\",CHAR(160),ER$1))-FIND(CHAR(160),SUBSTITUTE($J231,\"{\",CHAR(160),ER$1))+1),\"\")","v":""},{"$f":"IFERROR(MID($J231,FIND(CHAR(160),SUBSTITUTE($J231,\"{\",CHAR(160),ES$1)),FIND(CHAR(160),SUBSTITUTE($J231,\"}\",CHAR(160),ES$1))-FIND(CHAR(160),SUBSTITUTE($J231,\"{\",CHAR(160),ES$1))+1),\"\")","v":""},{"$f":"IFERROR(MID($J231,FIND(CHAR(160),SUBSTITUTE($J231,\"{\",CHAR(160),ET$1)),FIND(CHAR(160),SUBSTITUTE($J231,\"}\",CHAR(160),ET$1))-FIND(CHAR(160),SUBSTITUTE($J231,\"{\",CHAR(160),ET$1))+1),\"\")","v":""},{"$f":"IFERROR(MID($J231,FIND(CHAR(160),SUBSTITUTE($J231,\"{\",CHAR(160),EU$1)),FIND(CHAR(160),SUBSTITUTE($J231,\"}\",CHAR(160),EU$1))-FIND(CHAR(160),SUBSTITUTE($J231,\"{\",CHAR(160),EU$1))+1),\"\")","v":""},{"$f":"IFERROR(MID($J231,FIND(CHAR(160),SUBSTITUTE($J231,\"{\",CHAR(160),EV$1)),FIND(CHAR(160),SUBSTITUTE($J231,\"}\",CHAR(160),EV$1))-FIND(CHAR(160),SUBSTITUTE($J231,\"{\",CHAR(160),EV$1))+1),\"\")","v":""},{"$f":"IFERROR(MID($J231,FIND(CHAR(160),SUBSTITUTE($J231,\"{\",CHAR(160),EW$1)),FIND(CHAR(160),SUBSTITUTE($J231,\"}\",CHAR(160),EW$1))-FIND(CHAR(160),SUBSTITUTE($J231,\"{\",CHAR(160),EW$1))+1),\"\")","v":""},{"$f":"IFERROR(MID($J231,FIND(CHAR(160),SUBSTITUTE($J231,\"{\",CHAR(160),EX$1)),FIND(CHAR(160),SUBSTITUTE($J231,\"}\",CHAR(160),EX$1))-FIND(CHAR(160),SUBSTITUTE($J231,\"{\",CHAR(160),EX$1))+1),\"\")","v":""},{"$f":"IFERROR(MID($J231,FIND(CHAR(160),SUBSTITUTE($J231,\"{\",CHAR(160),EY$1)),FIND(CHAR(160),SUBSTITUTE($J231,\"}\",CHAR(160),EY$1))-FIND(CHAR(160),SUBSTITUTE($J231,\"{\",CHAR(160),EY$1))+1),\"\")","v":""},{"$f":"IFERROR(MID($J231,FIND(CHAR(160),SUBSTITUTE($J231,\"{\",CHAR(160),EZ$1)),FIND(CHAR(160),SUBSTITUTE($J231,\"}\",CHAR(160),EZ$1))-FIND(CHAR(160),SUBSTITUTE($J231,\"{\",CHAR(160),EZ$1))+1),\"\")","v":""},{"$f":"IFERROR(MID($J231,FIND(CHAR(160),SUBSTITUTE($J231,\"{\",CHAR(160),FA$1)),FIND(CHAR(160),SUBSTITUTE($J231,\"}\",CHAR(160),FA$1))-FIND(CHAR(160),SUBSTITUTE($J231,\"{\",CHAR(160),FA$1))+1),\"\")","v":""},{"$f":"IFERROR(MID($J231,FIND(CHAR(160),SUBSTITUTE($J231,\"{\",CHAR(160),FB$1)),FIND(CHAR(160),SUBSTITUTE($J231,\"}\",CHAR(160),FB$1))-FIND(CHAR(160),SUBSTITUTE($J231,\"{\",CHAR(160),FB$1))+1),\"\")","v":""},{"$f":"IFERROR(MID($O231,FIND(CHAR(160),SUBSTITUTE($O231,\"{\",CHAR(160),FC$1)),FIND(CHAR(160),SUBSTITUTE($O231,\"}\",CHAR(160),FC$1))-FIND(CHAR(160),SUBSTITUTE($O231,\"{\",CHAR(160),FC$1))+1),\"\")","v":""},{"$f":"IFERROR(MID($O231,FIND(CHAR(160),SUBSTITUTE($O231,\"{\",CHAR(160),FD$1)),FIND(CHAR(160),SUBSTITUTE($O231,\"}\",CHAR(160),FD$1))-FIND(CHAR(160),SUBSTITUTE($O231,\"{\",CHAR(160),FD$1))+1),\"\")","v":""},{"$f":"IFERROR(MID($O231,FIND(CHAR(160),SUBSTITUTE($O231,\"{\",CHAR(160),FE$1)),FIND(CHAR(160),SUBSTITUTE($O231,\"}\",CHAR(160),FE$1))-FIND(CHAR(160),SUBSTITUTE($O231,\"{\",CHAR(160),FE$1))+1),\"\")","v":""},{"$f":"IFERROR(MID($O231,FIND(CHAR(160),SUBSTITUTE($O231,\"{\",CHAR(160),FF$1)),FIND(CHAR(160),SUBSTITUTE($O231,\"}\",CHAR(160),FF$1))-FIND(CHAR(160),SUBSTITUTE($O231,\"{\",CHAR(160),FF$1))+1),\"\")","v":""},{"$f":"IFERROR(MID($O231,FIND(CHAR(160),SUBSTITUTE($O231,\"{\",CHAR(160),FG$1)),FIND(CHAR(160),SUBSTITUTE($O231,\"}\",CHAR(160),FG$1))-FIND(CHAR(160),SUBSTITUTE($O231,\"{\",CHAR(160),FG$1))+1),\"\")","v":""},{"$f":"IFERROR(MID($O231,FIND(CHAR(160),SUBSTITUTE($O231,\"{\",CHAR(160),FH$1)),FIND(CHAR(160),SUBSTITUTE($O231,\"}\",CHAR(160),FH$1))-FIND(CHAR(160),SUBSTITUTE($O231,\"{\",CHAR(160),FH$1))+1),\"\")","v":""},{"$f":"IFERROR(MID($O231,FIND(CHAR(160),SUBSTITUTE($O231,\"{\",CHAR(160),FI$1)),FIND(CHAR(160),SUBSTITUTE($O231,\"}\",CHAR(160),FI$1))-FIND(CHAR(160),SUBSTITUTE($O231,\"{\",CHAR(160),FI$1))+1),\"\")","v":""},{"$f":"IFERROR(MID($O231,FIND(CHAR(160),SUBSTITUTE($O231,\"{\",CHAR(160),FJ$1)),FIND(CHAR(160),SUBSTITUTE($O231,\"}\",CHAR(160),FJ$1))-FIND(CHAR(160),SUBSTITUTE($O231,\"{\",CHAR(160),FJ$1))+1),\"\")","v":""},{"$f":"IFERROR(MID($O231,FIND(CHAR(160),SUBSTITUTE($O231,\"{\",CHAR(160),FK$1)),FIND(CHAR(160),SUBSTITUTE($O231,\"}\",CHAR(160),FK$1))-FIND(CHAR(160),SUBSTITUTE($O231,\"{\",CHAR(160),FK$1))+1),\"\")","v":"{Measure:Quantity}"},{"$f":"IFERROR(MID($O231,FIND(CHAR(160),SUBSTITUTE($O231,\"{\",CHAR(160),FL$1)),FIND(CHAR(160),SUBSTITUTE($O231,\"}\",CHAR(160),FL$1))-FIND(CHAR(160),SUBSTITUTE($O231,\"{\",CHAR(160),FL$1))+1),\"\")","v":"{Measure:Quantity}"},{"$f":"IFERROR(MID($R231,FIND(CHAR(160),SUBSTITUTE($R231,\"{\",CHAR(160),FM$1)),FIND(CHAR(160),SUBSTITUTE($R231,\"}\",CHAR(160),FM$1))-FIND(CHAR(160),SUBSTITUTE($R231,\"{\",CHAR(160),FM$1))+1),\"\")","v":""},{"$f":"IFERROR(MID($R231,FIND(CHAR(160),SUBSTITUTE($R231,\"{\",CHAR(160),FN$1)),FIND(CHAR(160),SUBSTITUTE($R231,\"}\",CHAR(160),FN$1))-FIND(CHAR(160),SUBSTITUTE($R231,\"{\",CHAR(160),FN$1))+1),\"\")","v":""},{"$f":"IFERROR(MID($R231,FIND(CHAR(160),SUBSTITUTE($R231,\"{\",CHAR(160),FO$1)),FIND(CHAR(160),SUBSTITUTE($R231,\"}\",CHAR(160),FO$1))-FIND(CHAR(160),SUBSTITUTE($R231,\"{\",CHAR(160),FO$1))+1),\"\")","v":""},{"$f":"IFERROR(MID($R231,FIND(CHAR(160),SUBSTITUTE($R231,\"{\",CHAR(160),FP$1)),FIND(CHAR(160),SUBSTITUTE($R231,\"}\",CHAR(160),FP$1))-FIND(CHAR(160),SUBSTITUTE($R231,\"{\",CHAR(160),FP$1))+1),\"\")","v":""},{"$f":"IFERROR(MID($R231,FIND(CHAR(160),SUBSTITUTE($R231,\"{\",CHAR(160),FQ$1)),FIND(CHAR(160),SUBSTITUTE($R231,\"}\",CHAR(160),FQ$1))-FIND(CHAR(160),SUBSTITUTE($R231,\"{\",CHAR(160),FQ$1))+1),\"\")","v":""},{"$f":"IFERROR(MID($R231,FIND(CHAR(160),SUBSTITUTE($R231,\"{\",CHAR(160),FR$1)),FIND(CHAR(160),SUBSTITUTE($R231,\"}\",CHAR(160),FR$1))-FIND(CHAR(160),SUBSTITUTE($R231,\"{\",CHAR(160),FR$1))+1),\"\")","v":""},{"$f":"IFERROR(MID($R231,FIND(CHAR(160),SUBSTITUTE($R231,\"{\",CHAR(160),FS$1)),FIND(CHAR(160),SUBSTITUTE($R231,\"}\",CHAR(160),FS$1))-FIND(CHAR(160),SUBSTITUTE($R231,\"{\",CHAR(160),FS$1))+1),\"\")","v":""},{"$f":"IFERROR(MID($R231,FIND(CHAR(160),SUBSTITUTE($R231,\"{\",CHAR(160),FT$1)),FIND(CHAR(160),SUBSTITUTE($R231,\"}\",CHAR(160),FT$1))-FIND(CHAR(160),SUBSTITUTE($R231,\"{\",CHAR(160),FT$1))+1),\"\")","v":""},{"$f":"IFERROR(MID($R231,FIND(CHAR(160),SUBSTITUTE($R231,\"{\",CHAR(160),FU$1)),FIND(CHAR(160),SUBSTITUTE($R231,\"}\",CHAR(160),FU$1))-FIND(CHAR(160),SUBSTITUTE($R231,\"{\",CHAR(160),FU$1))+1),\"\")","v":""},{"$f":"IFERROR(MID($R231,FIND(CHAR(160),SUBSTITUTE($R231,\"{\",CHAR(160),FV$1)),FIND(CHAR(160),SUBSTITUTE($R231,\"}\",CHAR(160),FV$1))-FIND(CHAR(160),SUBSTITUTE($R231,\"{\",CHAR(160),FV$1))+1),\"\")","v":""},{"$f":"IFERROR(MID($U231,FIND(CHAR(160),SUBSTITUTE($U231,\"{\",CHAR(160),FW$1)),FIND(CHAR(160),SUBSTITUTE($U231,\"}\",CHAR(160),FW$1))-FIND(CHAR(160),SUBSTITUTE($U231,\"{\",CHAR(160),FW$1))+1),\"\")","v":""},{"$f":"IFERROR(MID($U231,FIND(CHAR(160),SUBSTITUTE($U231,\"{\",CHAR(160),FX$1)),FIND(CHAR(160),SUBSTITUTE($U231,\"}\",CHAR(160),FX$1))-FIND(CHAR(160),SUBSTITUTE($U231,\"{\",CHAR(160),FX$1))+1),\"\")","v":""},{"$f":"IFERROR(MID($U231,FIND(CHAR(160),SUBSTITUTE($U231,\"{\",CHAR(160),FY$1)),FIND(CHAR(160),SUBSTITUTE($U231,\"}\",CHAR(160),FY$1))-FIND(CHAR(160),SUBSTITUTE($U231,\"{\",CHAR(160),FY$1))+1),\"\")","v":""},{"$f":"IFERROR(MID($U231,FIND(CHAR(160),SUBSTITUTE($U231,\"{\",CHAR(160),FZ$1)),FIND(CHAR(160),SUBSTITUTE($U231,\"}\",CHAR(160),FZ$1))-FIND(CHAR(160),SUBSTITUTE($U231,\"{\",CHAR(160),FZ$1))+1),\"\")","v":""},{"$f":"IFERROR(MID($U231,FIND(CHAR(160),SUBSTITUTE($U231,\"{\",CHAR(160),GA$1)),FIND(CHAR(160),SUBSTITUTE($U231,\"}\",CHAR(160),GA$1))-FIND(CHAR(160),SUBSTITUTE($U231,\"{\",CHAR(160),GA$1))+1),\"\")","v":""},{"$f":"IFERROR(MID($U231,FIND(CHAR(160),SUBSTITUTE($U231,\"{\",CHAR(160),GB$1)),FIND(CHAR(160),SUBSTITUTE($U231,\"}\",CHAR(160),GB$1))-FIND(CHAR(160),SUBSTITUTE($U231,\"{\",CHAR(160),GB$1))+1),\"\")","v":""},{"$f":"IFERROR(MID($U231,FIND(CHAR(160),SUBSTITUTE($U231,\"{\",CHAR(160),GC$1)),FIND(CHAR(160),SUBSTITUTE($U231,\"}\",CHAR(160),GC$1))-FIND(CHAR(160),SUBSTITUTE($U231,\"{\",CHAR(160),GC$1))+1),\"\")","v":""},{"$f":"IFERROR(MID($U231,FIND(CHAR(160),SUBSTITUTE($U231,\"{\",CHAR(160),GD$1)),FIND(CHAR(160),SUBSTITUTE($U231,\"}\",CHAR(160),GD$1))-FIND(CHAR(160),SUBSTITUTE($U231,\"{\",CHAR(160),GD$1))+1),\"\")","v":""},{"$f":"IFERROR(MID($U231,FIND(CHAR(160),SUBSTITUTE($U231,\"{\",CHAR(160),GE$1)),FIND(CHAR(160),SUBSTITUTE($U231,\"}\",CHAR(160),GE$1))-FIND(CHAR(160),SUBSTITUTE($U231,\"{\",CHAR(160),GE$1))+1),\"\")","v":"{Measure:Quantity}"},{"$f":"IFERROR(MID($U231,FIND(CHAR(160),SUBSTITUTE($U231,\"{\",CHAR(160),GF$1)),FIND(CHAR(160),SUBSTITUTE($U231,\"}\",CHAR(160),GF$1))-FIND(CHAR(160),SUBSTITUTE($U231,\"{\",CHAR(160),GF$1))+1),\"\")","v":"{Measure:Quantity}"},{"$f":"IFERROR(MID($V231,FIND(CHAR(160),SUBSTITUTE($V231,\"{\",CHAR(160),GG$1)),FIND(CHAR(160),SUBSTITUTE($V231,\"}\",CHAR(160),GG$1))-FIND(CHAR(160),SUBSTITUTE($V231,\"{\",CHAR(160),GG$1))+1),\"\")","v":""},{"$f":"IFERROR(MID($V231,FIND(CHAR(160),SUBSTITUTE($V231,\"{\",CHAR(160),GH$1)),FIND(CHAR(160),SUBSTITUTE($V231,\"}\",CHAR(160),GH$1))-FIND(CHAR(160),SUBSTITUTE($V231,\"{\",CHAR(160),GH$1))+1),\"\")","v":""},{"$f":"IFERROR(MID($V231,FIND(CHAR(160),SUBSTITUTE($V231,\"{\",CHAR(160),GI$1)),FIND(CHAR(160),SUBSTITUTE($V231,\"}\",CHAR(160),GI$1))-FIND(CHAR(160),SUBSTITUTE($V231,\"{\",CHAR(160),GI$1))+1),\"\")","v":""},{"$f":"IFERROR(MID($V231,FIND(CHAR(160),SUBSTITUTE($V231,\"{\",CHAR(160),GJ$1)),FIND(CHAR(160),SUBSTITUTE($V231,\"}\",CHAR(160),GJ$1))-FIND(CHAR(160),SUBSTITUTE($V231,\"{\",CHAR(160),GJ$1))+1),\"\")","v":""},{"$f":"IFERROR(MID($V231,FIND(CHAR(160),SUBSTITUTE($V231,\"{\",CHAR(160),GK$1)),FIND(CHAR(160),SUBSTITUTE($V231,\"}\",CHAR(160),GK$1))-FIND(CHAR(160),SUBSTITUTE($V231,\"{\",CHAR(160),GK$1))+1),\"\")","v":""},{"$f":"IFERROR(MID($V231,FIND(CHAR(160),SUBSTITUTE($V231,\"{\",CHAR(160),GL$1)),FIND(CHAR(160),SUBSTITUTE($V231,\"}\",CHAR(160),GL$1))-FIND(CHAR(160),SUBSTITUTE($V231,\"{\",CHAR(160),GL$1))+1),\"\")","v":""},{"$f":"IFERROR(MID($V231,FIND(CHAR(160),SUBSTITUTE($V231,\"{\",CHAR(160),GM$1)),FIND(CHAR(160),SUBSTITUTE($V231,\"}\",CHAR(160),GM$1))-FIND(CHAR(160),SUBSTITUTE($V231,\"{\",CHAR(160),GM$1))+1),\"\")","v":""},{"$f":"IFERROR(MID($V231,FIND(CHAR(160),SUBSTITUTE($V231,\"{\",CHAR(160),GN$1)),FIND(CHAR(160),SUBSTITUTE($V231,\"}\",CHAR(160),GN$1))-FIND(CHAR(160),SUBSTITUTE($V231,\"{\",CHAR(160),GN$1))+1),\"\")","v":""},{"$f":"IFERROR(MID($V231,FIND(CHAR(160),SUBSTITUTE($V231,\"{\",CHAR(160),GO$1)),FIND(CHAR(160),SUBSTITUTE($V231,\"}\",CHAR(160),GO$1))-FIND(CHAR(160),SUBSTITUTE($V231,\"{\",CHAR(160),GO$1))+1),\"\")","v":"{Measure:Quantity}"},{"$f":"IFERROR(MID($V231,FIND(CHAR(160),SUBSTITUTE($V231,\"{\",CHAR(160),GP$1)),FIND(CHAR(160),SUBSTITUTE($V231,\"}\",CHAR(160),GP$1))-FIND(CHAR(160),SUBSTITUTE($V231,\"{\",CHAR(160),GP$1))+1),\"\")","v":"{Measure:Quantity}"},{"$f":"IFERROR(MID($W231,FIND(CHAR(160),SUBSTITUTE($W231,\"{\",CHAR(160),GQ$1)),FIND(CHAR(160),SUBSTITUTE($W231,\"}\",CHAR(160),GQ$1))-FIND(CHAR(160),SUBSTITUTE($W231,\"{\",CHAR(160),GQ$1))+1),\"\")","v":""},{"$f":"IFERROR(MID($W231,FIND(CHAR(160),SUBSTITUTE($W231,\"{\",CHAR(160),GR$1)),FIND(CHAR(160),SUBSTITUTE($W231,\"}\",CHAR(160),GR$1))-FIND(CHAR(160),SUBSTITUTE($W231,\"{\",CHAR(160),GR$1))+1),\"\")","v":""},{"$f":"IFERROR(MID($W231,FIND(CHAR(160),SUBSTITUTE($W231,\"{\",CHAR(160),GS$1)),FIND(CHAR(160),SUBSTITUTE($W231,\"}\",CHAR(160),GS$1))-FIND(CHAR(160),SUBSTITUTE($W231,\"{\",CHAR(160),GS$1))+1),\"\")","v":""},{"$f":"IFERROR(MID($W231,FIND(CHAR(160),SUBSTITUTE($W231,\"{\",CHAR(160),GT$1)),FIND(CHAR(160),SUBSTITUTE($W231,\"}\",CHAR(160),GT$1))-FIND(CHAR(160),SUBSTITUTE($W231,\"{\",CHAR(160),GT$1))+1),\"\")","v":""},{"$f":"IFERROR(MID($W231,FIND(CHAR(160),SUBSTITUTE($W231,\"{\",CHAR(160),GU$1)),FIND(CHAR(160),SUBSTITUTE($W231,\"}\",CHAR(160),GU$1))-FIND(CHAR(160),SUBSTITUTE($W231,\"{\",CHAR(160),GU$1))+1),\"\")","v":""},{"$f":"IFERROR(MID($W231,FIND(CHAR(160),SUBSTITUTE($W231,\"{\",CHAR(160),GV$1)),FIND(CHAR(160),SUBSTITUTE($W231,\"}\",CHAR(160),GV$1))-FIND(CHAR(160),SUBSTITUTE($W231,\"{\",CHAR(160),GV$1))+1),\"\")","v":""},{"$f":"IFERROR(MID($W231,FIND(CHAR(160),SUBSTITUTE($W231,\"{\",CHAR(160),GW$1)),FIND(CHAR(160),SUBSTITUTE($W231,\"}\",CHAR(160),GW$1))-FIND(CHAR(160),SUBSTITUTE($W231,\"{\",CHAR(160),GW$1))+1),\"\")","v":""},{"$f":"IFERROR(MID($W231,FIND(CHAR(160),SUBSTITUTE($W231,\"{\",CHAR(160),GX$1)),FIND(CHAR(160),SUBSTITUTE($W231,\"}\",CHAR(160),GX$1))-FIND(CHAR(160),SUBSTITUTE($W231,\"{\",CHAR(160),GX$1))+1),\"\")","v":""},{"$f":"IFERROR(MID($W231,FIND(CHAR(160),SUBSTITUTE($W231,\"{\",CHAR(160),GY$1)),FIND(CHAR(160),SUBSTITUTE($W231,\"}\",CHAR(160),GY$1))-FIND(CHAR(160),SUBSTITUTE($W231,\"{\",CHAR(160),GY$1))+1),\"\")","v":""},{"$f":"IFERROR(MID($W231,FIND(CHAR(160),SUBSTITUTE($W231,\"{\",CHAR(160),GZ$1)),FIND(CHAR(160),SUBSTITUTE($W231,\"}\",CHAR(160),GZ$1))-FIND(CHAR(160),SUBSTITUTE($W231,\"{\",CHAR(160),GZ$1))+1),\"\")","v":""},{"$f":"IFERROR(MID($X231,FIND(CHAR(160),SUBSTITUTE($X231,\"{\",CHAR(160),HA$1)),FIND(CHAR(160),SUBSTITUTE($X231,\"}\",CHAR(160),HA$1))-FIND(CHAR(160),SUBSTITUTE($X231,\"{\",CHAR(160),HA$1))+1),\"\")","v":""},{"$f":"IFERROR(MID($X231,FIND(CHAR(160),SUBSTITUTE($X231,\"{\",CHAR(160),HB$1)),FIND(CHAR(160),SUBSTITUTE($X231,\"}\",CHAR(160),HB$1))-FIND(CHAR(160),SUBSTITUTE($X231,\"{\",CHAR(160),HB$1))+1),\"\")","v":""},{"$f":"IFERROR(MID($X231,FIND(CHAR(160),SUBSTITUTE($X231,\"{\",CHAR(160),HC$1)),FIND(CHAR(160),SUBSTITUTE($X231,\"}\",CHAR(160),HC$1))-FIND(CHAR(160),SUBSTITUTE($X231,\"{\",CHAR(160),HC$1))+1),\"\")","v":""},{"$f":"IFERROR(MID($X231,FIND(CHAR(160),SUBSTITUTE($X231,\"{\",CHAR(160),HD$1)),FIND(CHAR(160),SUBSTITUTE($X231,\"}\",CHAR(160),HD$1))-FIND(CHAR(160),SUBSTITUTE($X231,\"{\",CHAR(160),HD$1))+1),\"\")","v":""},{"$f":"IFERROR(MID($X231,FIND(CHAR(160),SUBSTITUTE($X231,\"{\",CHAR(160),HE$1)),FIND(CHAR(160),SUBSTITUTE($X231,\"}\",CHAR(160),HE$1))-FIND(CHAR(160),SUBSTITUTE($X231,\"{\",CHAR(160),HE$1))+1),\"\")","v":""},{"$f":"IFERROR(MID($X231,FIND(CHAR(160),SUBSTITUTE($X231,\"{\",CHAR(160),HF$1)),FIND(CHAR(160),SUBSTITUTE($X231,\"}\",CHAR(160),HF$1))-FIND(CHAR(160),SUBSTITUTE($X231,\"{\",CHAR(160),HF$1))+1),\"\")","v":""},{"$f":"IFERROR(MID($X231,FIND(CHAR(160),SUBSTITUTE($X231,\"{\",CHAR(160),HG$1)),FIND(CHAR(160),SUBSTITUTE($X231,\"}\",CHAR(160),HG$1))-FIND(CHAR(160),SUBSTITUTE($X231,\"{\",CHAR(160),HG$1))+1),\"\")","v":""},{"$f":"IFERROR(MID($X231,FIND(CHAR(160),SUBSTITUTE($X231,\"{\",CHAR(160),HH$1)),FIND(CHAR(160),SUBSTITUTE($X231,\"}\",CHAR(160),HH$1))-FIND(CHAR(160),SUBSTITUTE($X231,\"{\",CHAR(160),HH$1))+1),\"\")","v":""},{"$f":"IFERROR(MID($X231,FIND(CHAR(160),SUBSTITUTE($X231,\"{\",CHAR(160),HI$1)),FIND(CHAR(160),SUBSTITUTE($X231,\"}\",CHAR(160),HI$1))-FIND(CHAR(160),SUBSTITUTE($X231,\"{\",CHAR(160),HI$1))+1),\"\")","v":""},{"$f":"IFERROR(MID($X231,FIND(CHAR(160),SUBSTITUTE($X231,\"{\",CHAR(160),HJ$1)),FIND(CHAR(160),SUBSTITUTE($X231,\"}\",CHAR(160),HJ$1))-FIND(CHAR(160),SUBSTITUTE($X231,\"{\",CHAR(160),HJ$1))+1),\"\")","v":""},{"$f":"IFERROR(MID($Y231,FIND(CHAR(160),SUBSTITUTE($Y231,\"{\",CHAR(160),HK$1)),FIND(CHAR(160),SUBSTITUTE($Y231,\"}\",CHAR(160),HK$1))-FIND(CHAR(160),SUBSTITUTE($Y231,\"{\",CHAR(160),HK$1))+1),\"\")","v":""},{"$f":"IFERROR(MID($Y231,FIND(CHAR(160),SUBSTITUTE($Y231,\"{\",CHAR(160),HL$1)),FIND(CHAR(160),SUBSTITUTE($Y231,\"}\",CHAR(160),HL$1))-FIND(CHAR(160),SUBSTITUTE($Y231,\"{\",CHAR(160),HL$1))+1),\"\")","v":""},{"$f":"IFERROR(MID($Y231,FIND(CHAR(160),SUBSTITUTE($Y231,\"{\",CHAR(160),HM$1)),FIND(CHAR(160),SUBSTITUTE($Y231,\"}\",CHAR(160),HM$1))-FIND(CHAR(160),SUBSTITUTE($Y231,\"{\",CHAR(160),HM$1))+1),\"\")","v":""},{"$f":"IFERROR(MID($Y231,FIND(CHAR(160),SUBSTITUTE($Y231,\"{\",CHAR(160),HN$1)),FIND(CHAR(160),SUBSTITUTE($Y231,\"}\",CHAR(160),HN$1))-FIND(CHAR(160),SUBSTITUTE($Y231,\"{\",CHAR(160),HN$1))+1),\"\")","v":""},{"$f":"IFERROR(MID($Y231,FIND(CHAR(160),SUBSTITUTE($Y231,\"{\",CHAR(160),HO$1)),FIND(CHAR(160),SUBSTITUTE($Y231,\"}\",CHAR(160),HO$1))-FIND(CHAR(160),SUBSTITUTE($Y231,\"{\",CHAR(160),HO$1))+1),\"\")","v":""},{"$f":"IFERROR(MID($Y231,FIND(CHAR(160),SUBSTITUTE($Y231,\"{\",CHAR(160),HP$1)),FIND(CHAR(160),SUBSTITUTE($Y231,\"}\",CHAR(160),HP$1))-FIND(CHAR(160),SUBSTITUTE($Y231,\"{\",CHAR(160),HP$1))+1),\"\")","v":""},{"$f":"IFERROR(MID($Y231,FIND(CHAR(160),SUBSTITUTE($Y231,\"{\",CHAR(160),HQ$1)),FIND(CHAR(160),SUBSTITUTE($Y231,\"}\",CHAR(160),HQ$1))-FIND(CHAR(160),SUBSTITUTE($Y231,\"{\",CHAR(160),HQ$1))+1),\"\")","v":""},{"$f":"IFERROR(MID($Y231,FIND(CHAR(160),SUBSTITUTE($Y231,\"{\",CHAR(160),HR$1)),FIND(CHAR(160),SUBSTITUTE($Y231,\"}\",CHAR(160),HR$1))-FIND(CHAR(160),SUBSTITUTE($Y231,\"{\",CHAR(160),HR$1))+1),\"\")","v":""},{"$f":"IFERROR(MID($Y231,FIND(CHAR(160),SUBSTITUTE($Y231,\"{\",CHAR(160),HS$1)),FIND(CHAR(160),SUBSTITUTE($Y231,\"}\",CHAR(160),HS$1))-FIND(CHAR(160),SUBSTITUTE($Y231,\"{\",CHAR(160),HS$1))+1),\"\")","v":""},{"$f":"IFERROR(MID($Y231,FIND(CHAR(160),SUBSTITUTE($Y231,\"{\",CHAR(160),HT$1)),FIND(CHAR(160),SUBSTITUTE($Y231,\"}\",CHAR(160),HT$1))-FIND(CHAR(160),SUBSTITUTE($Y231,\"{\",CHAR(160),HT$1))+1),\"\")","v":""},{"$f":"IFERROR(MID($Z231,FIND(CHAR(160),SUBSTITUTE($Z231,\"{\",CHAR(160),HU$1)),FIND(CHAR(160),SUBSTITUTE($Z231,\"}\",CHAR(160),HU$1))-FIND(CHAR(160),SUBSTITUTE($Z231,\"{\",CHAR(160),HU$1))+1),\"\")","v":""},{"$f":"IFERROR(MID($Z231,FIND(CHAR(160),SUBSTITUTE($Z231,\"{\",CHAR(160),HV$1)),FIND(CHAR(160),SUBSTITUTE($Z231,\"}\",CHAR(160),HV$1))-FIND(CHAR(160),SUBSTITUTE($Z231,\"{\",CHAR(160),HV$1))+1),\"\")","v":""},{"$f":"IFERROR(MID($Z231,FIND(CHAR(160),SUBSTITUTE($Z231,\"{\",CHAR(160),HW$1)),FIND(CHAR(160),SUBSTITUTE($Z231,\"}\",CHAR(160),HW$1))-FIND(CHAR(160),SUBSTITUTE($Z231,\"{\",CHAR(160),HW$1))+1),\"\")","v":""},{"$f":"IFERROR(MID($Z231,FIND(CHAR(160),SUBSTITUTE($Z231,\"{\",CHAR(160),HX$1)),FIND(CHAR(160),SUBSTITUTE($Z231,\"}\",CHAR(160),HX$1))-FIND(CHAR(160),SUBSTITUTE($Z231,\"{\",CHAR(160),HX$1))+1),\"\")","v":""},{"$f":"IFERROR(MID($Z231,FIND(CHAR(160),SUBSTITUTE($Z231,\"{\",CHAR(160),HY$1)),FIND(CHAR(160),SUBSTITUTE($Z231,\"}\",CHAR(160),HY$1))-FIND(CHAR(160),SUBSTITUTE($Z231,\"{\",CHAR(160),HY$1))+1),\"\")","v":""},{"$f":"IFERROR(MID($Z231,FIND(CHAR(160),SUBSTITUTE($Z231,\"{\",CHAR(160),HZ$1)),FIND(CHAR(160),SUBSTITUTE($Z231,\"}\",CHAR(160),HZ$1))-FIND(CHAR(160),SUBSTITUTE($Z231,\"{\",CHAR(160),HZ$1))+1),\"\")","v":""},{"$f":"IFERROR(MID($Z231,FIND(CHAR(160),SUBSTITUTE($Z231,\"{\",CHAR(160),IA$1)),FIND(CHAR(160),SUBSTITUTE($Z231,\"}\",CHAR(160),IA$1))-FIND(CHAR(160),SUBSTITUTE($Z231,\"{\",CHAR(160),IA$1))+1),\"\")","v":""},{"$f":"IFERROR(MID($Z231,FIND(CHAR(160),SUBSTITUTE($Z231,\"{\",CHAR(160),IB$1)),FIND(CHAR(160),SUBSTITUTE($Z231,\"}\",CHAR(160),IB$1))-FIND(CHAR(160),SUBSTITUTE($Z231,\"{\",CHAR(160),IB$1))+1),\"\")","v":""},{"$f":"IFERROR(MID($Z231,FIND(CHAR(160),SUBSTITUTE($Z231,\"{\",CHAR(160),IC$1)),FIND(CHAR(160),SUBSTITUTE($Z231,\"}\",CHAR(160),IC$1))-FIND(CHAR(160),SUBSTITUTE($Z231,\"{\",CHAR(160),IC$1))+1),\"\")","v":""},{"$f":"IFERROR(MID($Z231,FIND(CHAR(160),SUBSTITUTE($Z231,\"{\",CHAR(160),ID$1)),FIND(CHAR(160),SUBSTITUTE($Z231,\"}\",CHAR(160),ID$1))-FIND(CHAR(160),SUBSTITUTE($Z231,\"{\",CHAR(160),ID$1))+1),\"\")","v":""},{"$f":"IFERROR(MID($AA231,FIND(CHAR(160),SUBSTITUTE($AA231,\"{\",CHAR(160),IE$1)),FIND(CHAR(160),SUBSTITUTE($AA231,\"}\",CHAR(160),IE$1))-FIND(CHAR(160),SUBSTITUTE($AA231,\"{\",CHAR(160),IE$1))+1),\"\")","v":""},{"$f":"IFERROR(MID($AA231,FIND(CHAR(160),SUBSTITUTE($AA231,\"{\",CHAR(160),IF$1)),FIND(CHAR(160),SUBSTITUTE($AA231,\"}\",CHAR(160),IF$1))-FIND(CHAR(160),SUBSTITUTE($AA231,\"{\",CHAR(160),IF$1))+1),\"\")","v":""},{"$f":"IFERROR(MID($AA231,FIND(CHAR(160),SUBSTITUTE($AA231,\"{\",CHAR(160),IG$1)),FIND(CHAR(160),SUBSTITUTE($AA231,\"}\",CHAR(160),IG$1))-FIND(CHAR(160),SUBSTITUTE($AA231,\"{\",CHAR(160),IG$1))+1),\"\")","v":""},{"$f":"IFERROR(MID($AA231,FIND(CHAR(160),SUBSTITUTE($AA231,\"{\",CHAR(160),IH$1)),FIND(CHAR(160),SUBSTITUTE($AA231,\"}\",CHAR(160),IH$1))-FIND(CHAR(160),SUBSTITUTE($AA231,\"{\",CHAR(160),IH$1))+1),\"\")","v":""},{"$f":"IFERROR(MID($AA231,FIND(CHAR(160),SUBSTITUTE($AA231,\"{\",CHAR(160),II$1)),FIND(CHAR(160),SUBSTITUTE($AA231,\"}\",CHAR(160),II$1))-FIND(CHAR(160),SUBSTITUTE($AA231,\"{\",CHAR(160),II$1))+1),\"\")","v":""},{"$f":"IFERROR(MID($AA231,FIND(CHAR(160),SUBSTITUTE($AA231,\"{\",CHAR(160),IJ$1)),FIND(CHAR(160),SUBSTITUTE($AA231,\"}\",CHAR(160),IJ$1))-FIND(CHAR(160),SUBSTITUTE($AA231,\"{\",CHAR(160),IJ$1))+1),\"\")","v":""},{"$f":"IFERROR(MID($AA231,FIND(CHAR(160),SUBSTITUTE($AA231,\"{\",CHAR(160),IK$1)),FIND(CHAR(160),SUBSTITUTE($AA231,\"}\",CHAR(160),IK$1))-FIND(CHAR(160),SUBSTITUTE($AA231,\"{\",CHAR(160),IK$1))+1),\"\")","v":""},{"$f":"IFERROR(MID($AA231,FIND(CHAR(160),SUBSTITUTE($AA231,\"{\",CHAR(160),IL$1)),FIND(CHAR(160),SUBSTITUTE($AA231,\"}\",CHAR(160),IL$1))-FIND(CHAR(160),SUBSTITUTE($AA231,\"{\",CHAR(160),IL$1))+1),\"\")","v":""},{"$f":"IFERROR(MID($AA231,FIND(CHAR(160),SUBSTITUTE($AA231,\"{\",CHAR(160),IM$1)),FIND(CHAR(160),SUBSTITUTE($AA231,\"}\",CHAR(160),IM$1))-FIND(CHAR(160),SUBSTITUTE($AA231,\"{\",CHAR(160),IM$1))+1),\"\")","v":""},{"$f":"IFERROR(MID($AA231,FIND(CHAR(160),SUBSTITUTE($AA231,\"{\",CHAR(160),IN$1)),FIND(CHAR(160),SUBSTITUTE($AA231,\"}\",CHAR(160),IN$1))-FIND(CHAR(160),SUBSTITUTE($AA231,\"{\",CHAR(160),IN$1))+1),\"\")","v":""},{"$f":"IFERROR(MID($AB231,FIND(CHAR(160),SUBSTITUTE($AB231,\"{\",CHAR(160),IO$1)),FIND(CHAR(160),SUBSTITUTE($AB231,\"}\",CHAR(160),IO$1))-FIND(CHAR(160),SUBSTITUTE($AB231,\"{\",CHAR(160),IO$1))+1),\"\")","v":""},{"$f":"IFERROR(MID($AB231,FIND(CHAR(160),SUBSTITUTE($AB231,\"{\",CHAR(160),IP$1)),FIND(CHAR(160),SUBSTITUTE($AB231,\"}\",CHAR(160),IP$1))-FIND(CHAR(160),SUBSTITUTE($AB231,\"{\",CHAR(160),IP$1))+1),\"\")","v":""},{"$f":"IFERROR(MID($AB231,FIND(CHAR(160),SUBSTITUTE($AB231,\"{\",CHAR(160),IQ$1)),FIND(CHAR(160),SUBSTITUTE($AB231,\"}\",CHAR(160),IQ$1))-FIND(CHAR(160),SUBSTITUTE($AB231,\"{\",CHAR(160),IQ$1))+1),\"\")","v":""},{"$f":"IFERROR(MID($AB231,FIND(CHAR(160),SUBSTITUTE($AB231,\"{\",CHAR(160),IR$1)),FIND(CHAR(160),SUBSTITUTE($AB231,\"}\",CHAR(160),IR$1))-FIND(CHAR(160),SUBSTITUTE($AB231,\"{\",CHAR(160),IR$1))+1),\"\")","v":""},{"$f":"IFERROR(MID($AB231,FIND(CHAR(160),SUBSTITUTE($AB231,\"{\",CHAR(160),IS$1)),FIND(CHAR(160),SUBSTITUTE($AB231,\"}\",CHAR(160),IS$1))-FIND(CHAR(160),SUBSTITUTE($AB231,\"{\",CHAR(160),IS$1))+1),\"\")","v":""},{"$f":"IFERROR(MID($AB231,FIND(CHAR(160),SUBSTITUTE($AB231,\"{\",CHAR(160),IT$1)),FIND(CHAR(160),SUBSTITUTE($AB231,\"}\",CHAR(160),IT$1))-FIND(CHAR(160),SUBSTITUTE($AB231,\"{\",CHAR(160),IT$1))+1),\"\")","v":""},{"$f":"IFERROR(MID($AB231,FIND(CHAR(160),SUBSTITUTE($AB231,\"{\",CHAR(160),IU$1)),FIND(CHAR(160),SUBSTITUTE($AB231,\"}\",CHAR(160),IU$1))-FIND(CHAR(160),SUBSTITUTE($AB231,\"{\",CHAR(160),IU$1))+1),\"\")","v":""},{"$f":"IFERROR(MID($AB231,FIND(CHAR(160),SUBSTITUTE($AB231,\"{\",CHAR(160),IV$1)),FIND(CHAR(160),SUBSTITUTE($AB231,\"}\",CHAR(160),IV$1))-FIND(CHAR(160),SUBSTITUTE($AB231,\"{\",CHAR(160),IV$1))+1),\"\")","v":""},{"$f":"IFERROR(MID($AB231,FIND(CHAR(160),SUBSTITUTE($AB231,\"{\",CHAR(160),IW$1)),FIND(CHAR(160),SUBSTITUTE($AB231,\"}\",CHAR(160),IW$1))-FIND(CHAR(160),SUBSTITUTE($AB231,\"{\",CHAR(160),IW$1))+1),\"\")","v":""},{"$f":"IFERROR(MID($AB231,FIND(CHAR(160),SUBSTITUTE($AB231,\"{\",CHAR(160),IX$1)),FIND(CHAR(160),SUBSTITUTE($AB231,\"}\",CHAR(160),IX$1))-FIND(CHAR(160),SUBSTITUTE($AB231,\"{\",CHAR(160),IX$1))+1),\"\")","v":""},null,{"$f":"10-COUNTIF(DU231:ED231,\"\")","v":1}]
["Low Income Direct Mailing","Low Flow Kitchen Aerator Direct Install","LILFKA","2021-07-01","2022-06-30","Per Measure",1.77,0,"Per Measure",1.77,0,"2021-07-01","2022-06-30","Calculated","{Measure:Quantity}*if({Measure:Quantity}=0,0,283)",null,null,null,null,null,"{Measure:Quantity}*if({Measure:Quantity}=0,0,0.043)","{Measure:Quantity}*if({Measure:Quantity}=0,0,0.034)",null,null,null,null,null,"if({Measure:Quantity}=0,0,{Measure:Quantity}*2696)","2021-07-01","2022-06-30",10,1.2E-2,8.0000000000000002E-3,0.39700000000000002,0.26800000000000002,0.20300000000000001,0.13100000000000001,0.85,1,1,0,0,null,{"$f":"DU232","v":"{Measure:Quantity}"},1,{"$f":"DV232","v":""},null,{"$f":"DW232","v":""},null,{"$f":"DX232","v":""},null,{"$f":"DY232","v":""},null,{"$f":"DZ232","v":""},null,{"$f":"EA232","v":""},null,{"$f":"EB232","v":""},null,{"$f":"EC232","v":""},null,{"$f":"ED232","v":""},null,{"$f":"AS232*IF(AS232=0,0,283)","v":283},0,0,0,0,0,{"$f":"AS232*IF(AS232=0,0,0.043)","v":4.2999999999999997E-2},{"$f":"AS232*IF(AS232=0,0,0.034)","v":3.4000000000000002E-2},0,0,0,0,0,{"$f":"IF(AS232=0,0,AS232*2696)","v":2696},null,"Res","Default DR",{"$f":"Benefits(BL232,BR232,BS232,BT232,BU232,BV232,BW232,BX232,BY232,BZ232,AE232,AH232,AI232,AJ232,AK232,AL232,AM232,AN232,AO232,AP232,CA232,CB232)","v":236.95500985875617},136.04434368443876,0,0,0,0,0,160.06822300148838,0,{"$f":"SUMPRODUCT(CC232:CK232,--(CC232:CK232>0))","v":533.06757654468333},{"$f":"-SUMPRODUCT(CC232:CK232,--(CC232:CK232<0))","v":0},null,{"$f":"1.77","v":1.77},null,null,{"$f":"CM232+CO232","v":1.77},{"$f":"IF(NetOrGross=\"Net\",(1-AO232+AP232),1)","v":1},{"$f":"(SUMPRODUCT(CC232:CJ232,--(CC232:CJ232>0))+CN232)*CS232/((-SUMPRODUCT(CC232:CJ232,--(CC232:CJ232<0))+MAX(CO232,CV232)+CP232+CQ232)*CS232+IF(FRIncentives=\"Yes\",CV232*(1-CS232),0))","v":301.16812234162899},1,{"$f":"1.77","v":1.77},null,"Electric","y",null,{"$f":"IF(F232=\"Manual Entry\",\"Manual\",IF(G232=\"\",0,\"X=\"&SUBSTITUTE(SUBSTITUTE(SUBSTITUTE(SUBSTITUTE(SUBSTITUTE(SUBSTITUTE(SUBSTITUTE(SUBSTITUTE(SUBSTITUTE(SUBSTITUTE(SUBSTITUTE(SUBSTITUTE(G232,$ED232,$ED$2&ROW($ED232)),$EC232,$EC$2&ROW($EC232)),$EB232,$EB$2&ROW($EB232)),$EA232,$EA$2&ROW($EA232)),$DZ232,$DZ$2&ROW($DZ232)),$DY232,$DY$2&ROW($DY232)),$DX232,$DX$2&ROW($DX232)),$DW232,$DW$2&ROW($DW232)),$DV232,$DV$2&ROW($DV232)),$DU232,$DU$2&ROW($DU232)),$DT232,$DT$2&ROW($DT232)),$DS232,$DS$2&ROW($DS232))))","v":"X=1.77"},{"$f":"IF(I232=\"Manual Entry\",\"Manual\",IF(J232=\"\",0,\"X=\"&SUBSTITUTE(SUBSTITUTE(SUBSTITUTE(SUBSTITUTE(SUBSTITUTE(SUBSTITUTE(SUBSTITUTE(SUBSTITUTE(SUBSTITUTE(SUBSTITUTE(SUBSTITUTE(SUBSTITUTE(J232,$ED232,$ED$2&ROW($ED232)),$EC232,$EC$2&ROW($EC232)),$EB232,$EB$2&ROW($EB232)),$EA232,$EA$2&ROW($EA232)),$DZ232,$DZ$2&ROW($DZ232)),$DY232,$DY$2&ROW($DY232)),$DX232,$DX$2&ROW($DX232)),$DW232,$DW$2&ROW($DW232)),$DV232,$DV$2&ROW($DV232)),$DU232,$DU$2&ROW($DU232)),$DT232,$DT$2&ROW($DT232)),$DS232,$DS$2&ROW($DS232))))","v":"X=1.77"},{"$f":"IF(O232=\"\",0,\"X=\"&SUBSTITUTE(SUBSTITUTE(SUBSTITUTE(SUBSTITUTE(SUBSTITUTE(SUBSTITUTE(SUBSTITUTE(SUBSTITUTE(SUBSTITUTE(SUBSTITUTE(SUBSTITUTE(SUBSTITUTE(O232,$ED232,$ED$2&ROW($ED232)),$EC232,$EC$2&ROW($EC232)),$EB232,$EB$2&ROW($EB232)),$EA232,$EA$2&ROW($EA232)),$DZ232,$DZ$2&ROW($DZ232)),$DY232,$DY$2&ROW($DY232)),$DX232,$DX$2&ROW($DX232)),$DW232,$DW$2&ROW($DW232)),$DV232,$DV$2&ROW($DV232)),$DU232,$DU$2&ROW($DU232)),$DT232,$DT$2&ROW($DT232)),$DS232,$DS$2&ROW($DS232)))","v":"X=AS232*if(AS232=0,0,283)"},{"$f":"IF(P232=\"\",0,\"X=\"&SUBSTITUTE(SUBSTITUTE(SUBSTITUTE(SUBSTITUTE(SUBSTITUTE(SUBSTITUTE(SUBSTITUTE(SUBSTITUTE(SUBSTITUTE(SUBSTITUTE(SUBSTITUTE(SUBSTITUTE(P232,$ED232,$ED$2&ROW($ED232)),$EC232,$EC$2&ROW($EC232)),$EB232,$EB$2&ROW($EB232)),$EA232,$EA$2&ROW($EA232)),$DZ232,$DZ$2&ROW($DZ232)),$DY232,$DY$2&ROW($DY232)),$DX232,$DX$2&ROW($DX232)),$DW232,$DW$2&ROW($DW232)),$DV232,$DV$2&ROW($DV232)),$DU232,$DU$2&ROW($DU232)),$DT232,$DT$2&ROW($DT232)),$DS232,$DS$2&ROW($DS232)))","v":0},{"$f":"IF(Q232=\"\",0,\"X=\"&SUBSTITUTE(SUBSTITUTE(SUBSTITUTE(SUBSTITUTE(SUBSTITUTE(SUBSTITUTE(SUBSTITUTE(SUBSTITUTE(SUBSTITUTE(SUBSTITUTE(SUBSTITUTE(SUBSTITUTE(Q232,$ED232,$ED$2&ROW($ED232)),$EC232,$EC$2&ROW($EC232)),$EB232,$EB$2&ROW($EB232)),$EA232,$EA$2&ROW($EA232)),$DZ232,$DZ$2&ROW($DZ232)),$DY232,$DY$2&ROW($DY232)),$DX232,$DX$2&ROW($DX232)),$DW232,$DW$2&ROW($DW232)),$DV232,$DV$2&ROW($DV232)),$DU232,$DU$2&ROW($DU232)),$DT232,$DT$2&ROW($DT232)),$DS232,$DS$2&ROW($DS232)))","v":0},{"$f":"IF(R232=\"\",0,\"X=\"&SUBSTITUTE(SUBSTITUTE(SUBSTITUTE(SUBSTITUTE(SUBSTITUTE(SUBSTITUTE(SUBSTITUTE(SUBSTITUTE(SUBSTITUTE(SUBSTITUTE(SUBSTITUTE(SUBSTITUTE(R232,$ED232,$ED$2&ROW($ED232)),$EC232,$EC$2&ROW($EC232)),$EB232,$EB$2&ROW($EB232)),$EA232,$EA$2&ROW($EA232)),$DZ232,$DZ$2&ROW($DZ232)),$DY232,$DY$2&ROW($DY232)),$DX232,$DX$2&ROW($DX232)),$DW232,$DW$2&ROW($DW232)),$DV232,$DV$2&ROW($DV232)),$DU232,$DU$2&ROW($DU232)),$DT232,$DT$2&ROW($DT232)),$DS232,$DS$2&ROW($DS232)))","v":0},{"$f":"IF(S232=\"\",0,\"X=\"&SUBSTITUTE(SUBSTITUTE(SUBSTITUTE(SUBSTITUTE(SUBSTITUTE(SUBSTITUTE(SUBSTITUTE(SUBSTITUTE(SUBSTITUTE(SUBSTITUTE(SUBSTITUTE(SUBSTITUTE(S232,$ED232,$ED$2&ROW($ED232)),$EC232,$EC$2&ROW($EC232)),$EB232,$EB$2&ROW($EB232)),$EA232,$EA$2&ROW($EA232)),$DZ232,$DZ$2&ROW($DZ232)),$DY232,$DY$2&ROW($DY232)),$DX232,$DX$2&ROW($DX232)),$DW232,$DW$2&ROW($DW232)),$DV232,$DV$2&ROW($DV232)),$DU232,$DU$2&ROW($DU232)),$DT232,$DT$2&ROW($DT232)),$DS232,$DS$2&ROW($DS232)))","v":0},{"$f":"IF(T232=\"\",0,\"X=\"&SUBSTITUTE(SUBSTITUTE(SUBSTITUTE(SUBSTITUTE(SUBSTITUTE(SUBSTITUTE(SUBSTITUTE(SUBSTITUTE(SUBSTITUTE(SUBSTITUTE(SUBSTITUTE(SUBSTITUTE(T232,$ED232,$ED$2&ROW($ED232)),$EC232,$EC$2&ROW($EC232)),$EB232,$EB$2&ROW($EB232)),$EA232,$EA$2&ROW($EA232)),$DZ232,$DZ$2&ROW($DZ232)),$DY232,$DY$2&ROW($DY232)),$DX232,$DX$2&ROW($DX232)),$DW232,$DW$2&ROW($DW232)),$DV232,$DV$2&ROW($DV232)),$DU232,$DU$2&ROW($DU232)),$DT232,$DT$2&ROW($DT232)),$DS232,$DS$2&ROW($DS232)))","v":0},{"$f":"IF(U232=\"\",0,\"X=\"&SUBSTITUTE(SUBSTITUTE(SUBSTITUTE(SUBSTITUTE(SUBSTITUTE(SUBSTITUTE(SUBSTITUTE(SUBSTITUTE(SUBSTITUTE(SUBSTITUTE(SUBSTITUTE(SUBSTITUTE(U232,$ED232,$ED$2&ROW($ED232)),$EC232,$EC$2&ROW($EC232)),$EB232,$EB$2&ROW($EB232)),$EA232,$EA$2&ROW($EA232)),$DZ232,$DZ$2&ROW($DZ232)),$DY232,$DY$2&ROW($DY232)),$DX232,$DX$2&ROW($DX232)),$DW232,$DW$2&ROW($DW232)),$DV232,$DV$2&ROW($DV232)),$DU232,$DU$2&ROW($DU232)),$DT232,$DT$2&ROW($DT232)),$DS232,$DS$2&ROW($DS232)))","v":"X=AS232*if(AS232=0,0,0.043)"},{"$f":"IF(V232=\"\",0,\"X=\"&SUBSTITUTE(SUBSTITUTE(SUBSTITUTE(SUBSTITUTE(SUBSTITUTE(SUBSTITUTE(SUBSTITUTE(SUBSTITUTE(SUBSTITUTE(SUBSTITUTE(SUBSTITUTE(SUBSTITUTE(V232,$ED232,$ED$2&ROW($ED232)),$EC232,$EC$2&ROW($EC232)),$EB232,$EB$2&ROW($EB232)),$EA232,$EA$2&ROW($EA232)),$DZ232,$DZ$2&ROW($DZ232)),$DY232,$DY$2&ROW($DY232)),$DX232,$DX$2&ROW($DX232)),$DW232,$DW$2&ROW($DW232)),$DV232,$DV$2&ROW($DV232)),$DU232,$DU$2&ROW($DU232)),$DT232,$DT$2&ROW($DT232)),$DS232,$DS$2&ROW($DS232)))","v":"X=AS232*if(AS232=0,0,0.034)"},{"$f":"IF(W232=\"\",0,\"X=\"&SUBSTITUTE(SUBSTITUTE(SUBSTITUTE(SUBSTITUTE(SUBSTITUTE(SUBSTITUTE(SUBSTITUTE(SUBSTITUTE(SUBSTITUTE(SUBSTITUTE(SUBSTITUTE(SUBSTITUTE(W232,$ED232,$ED$2&ROW($ED232)),$EC232,$EC$2&ROW($EC232)),$EB232,$EB$2&ROW($EB232)),$EA232,$EA$2&ROW($EA232)),$DZ232,$DZ$2&ROW($DZ232)),$DY232,$DY$2&ROW($DY232)),$DX232,$DX$2&ROW($DX232)),$DW232,$DW$2&ROW($DW232)),$DV232,$DV$2&ROW($DV232)),$DU232,$DU$2&ROW($DU232)),$DT232,$DT$2&ROW($DT232)),$DS232,$DS$2&ROW($DS232)))","v":0},{"$f":"IF(X232=\"\",0,\"X=\"&SUBSTITUTE(SUBSTITUTE(SUBSTITUTE(SUBSTITUTE(SUBSTITUTE(SUBSTITUTE(SUBSTITUTE(SUBSTITUTE(SUBSTITUTE(SUBSTITUTE(SUBSTITUTE(SUBSTITUTE(X232,$ED232,$ED$2&ROW($ED232)),$EC232,$EC$2&ROW($EC232)),$EB232,$EB$2&ROW($EB232)),$EA232,$EA$2&ROW($EA232)),$DZ232,$DZ$2&ROW($DZ232)),$DY232,$DY$2&ROW($DY232)),$DX232,$DX$2&ROW($DX232)),$DW232,$DW$2&ROW($DW232)),$DV232,$DV$2&ROW($DV232)),$DU232,$DU$2&ROW($DU232)),$DT232,$DT$2&ROW($DT232)),$DS232,$DS$2&ROW($DS232)))","v":0},{"$f":"IF(Y232=\"\",0,\"X=\"&SUBSTITUTE(SUBSTITUTE(SUBSTITUTE(SUBSTITUTE(SUBSTITUTE(SUBSTITUTE(SUBSTITUTE(SUBSTITUTE(SUBSTITUTE(SUBSTITUTE(SUBSTITUTE(SUBSTITUTE(Y232,$ED232,$ED$2&ROW($ED232)),$EC232,$EC$2&ROW($EC232)),$EB232,$EB$2&ROW($EB232)),$EA232,$EA$2&ROW($EA232)),$DZ232,$DZ$2&ROW($DZ232)),$DY232,$DY$2&ROW($DY232)),$DX232,$DX$2&ROW($DX232)),$DW232,$DW$2&ROW($DW232)),$DV232,$DV$2&ROW($DV232)),$DU232,$DU$2&ROW($DU232)),$DT232,$DT$2&ROW($DT232)),$DS232,$DS$2&ROW($DS232)))","v":0},{"$f":"IF(Z232=\"\",0,\"X=\"&SUBSTITUTE(SUBSTITUTE(SUBSTITUTE(SUBSTITUTE(SUBSTITUTE(SUBSTITUTE(SUBSTITUTE(SUBSTITUTE(SUBSTITUTE(SUBSTITUTE(SUBSTITUTE(SUBSTITUTE(Z232,$ED232,$ED$2&ROW($ED232)),$EC232,$EC$2&ROW($EC232)),$EB232,$EB$2&ROW($EB232)),$EA232,$EA$2&ROW($EA232)),$DZ232,$DZ$2&ROW($DZ232)),$DY232,$DY$2&ROW($DY232)),$DX232,$DX$2&ROW($DX232)),$DW232,$DW$2&ROW($DW232)),$DV232,$DV$2&ROW($DV232)),$DU232,$DU$2&ROW($DU232)),$DT232,$DT$2&ROW($DT232)),$DS232,$DS$2&ROW($DS232)))","v":0},{"$f":"IF(AA232=\"\",0,\"X=\"&SUBSTITUTE(SUBSTITUTE(SUBSTITUTE(SUBSTITUTE(SUBSTITUTE(SUBSTITUTE(SUBSTITUTE(SUBSTITUTE(SUBSTITUTE(SUBSTITUTE(SUBSTITUTE(SUBSTITUTE(AA232,$ED232,$ED$2&ROW($ED232)),$EC232,$EC$2&ROW($EC232)),$EB232,$EB$2&ROW($EB232)),$EA232,$EA$2&ROW($EA232)),$DZ232,$DZ$2&ROW($DZ232)),$DY232,$DY$2&ROW($DY232)),$DX232,$DX$2&ROW($DX232)),$DW232,$DW$2&ROW($DW232)),$DV232,$DV$2&ROW($DV232)),$DU232,$DU$2&ROW($DU232)),$DT232,$DT$2&ROW($DT232)),$DS232,$DS$2&ROW($DS232)))","v":0},{"$f":"IF(AB232=\"\",0,\"X=\"&SUBSTITUTE(SUBSTITUTE(SUBSTITUTE(SUBSTITUTE(SUBSTITUTE(SUBSTITUTE(SUBSTITUTE(SUBSTITUTE(SUBSTITUTE(SUBSTITUTE(SUBSTITUTE(SUBSTITUTE(AB232,$ED232,$ED$2&ROW($ED232)),$EC232,$EC$2&ROW($EC232)),$EB232,$EB$2&ROW($EB232)),$EA232,$EA$2&ROW($EA232)),$DZ232,$DZ$2&ROW($DZ232)),$DY232,$DY$2&ROW($DY232)),$DX232,$DX$2&ROW($DX232)),$DW232,$DW$2&ROW($DW232)),$DV232,$DV$2&ROW($DV232)),$DU232,$DU$2&ROW($DU232)),$DT232,$DT$2&ROW($DT232)),$DS232,$DS$2&ROW($DS232)))","v":"X=if(AS232=0,0,AS232*2696)"},null,null,"{Factor:WinterCF}","{Factor:SummerCF}",{"$f":"IFERROR(INDEX($EG232:$IV232,MATCH(0,COUNTIF($DR232:DT232,$EG232:$IV232),0)),\"\")","v":"{Measure:Quantity}"},{"$f":"IFERROR(INDEX($EG232:$IV232,MATCH(0,COUNTIF($DR232:DU232,$EG232:$IV232),0)),\"\")","v":""},{"$f":"IFERROR(INDEX($EG232:$IV232,MATCH(0,COUNTIF($DR232:DV232,$EG232:$IV232),0)),\"\")","v":""},{"$f":"IFERROR(INDEX($EG232:$IV232,MATCH(0,COUNTIF($DR232:DW232,$EG232:$IV232),0)),\"\")","v":""},{"$f":"IFERROR(INDEX($EG232:$IV232,MATCH(0,COUNTIF($DR232:DX232,$EG232:$IV232),0)),\"\")","v":""},{"$f":"IFERROR(INDEX($EG232:$IV232,MATCH(0,COUNTIF($DR232:DY232,$EG232:$IV232),0)),\"\")","v":""},{"$f":"IFERROR(INDEX($EG232:$IV232,MATCH(0,COUNTIF($DR232:DZ232,$EG232:$IV232),0)),\"\")","v":""},{"$f":"IFERROR(INDEX($EG232:$IV232,MATCH(0,COUNTIF($DR232:EA232,$EG232:$IV232),0)),\"\")","v":""},{"$f":"IFERROR(INDEX($EG232:$IV232,MATCH(0,COUNTIF($DR232:EB232,$EG232:$IV232),0)),\"\")","v":""},{"$f":"IFERROR(INDEX($EG232:$IV232,MATCH(0,COUNTIF($DR232:EC232,$EG232:$IV232),0)),\"\")","v":""},null,null,{"$f":"IFERROR(MID($G232,FIND(CHAR(160),SUBSTITUTE($G232,\"{\",CHAR(160),EG$1)),FIND(CHAR(160),SUBSTITUTE($G232,\"}\",CHAR(160),EG$1))-FIND(CHAR(160),SUBSTITUTE($G232,\"{\",CHAR(160),EG$1))+1),\"\")","v":""},{"$f":"IFERROR(MID($G232,FIND(CHAR(160),SUBSTITUTE($G232,\"{\",CHAR(160),EH$1)),FIND(CHAR(160),SUBSTITUTE($G232,\"}\",CHAR(160),EH$1))-FIND(CHAR(160),SUBSTITUTE($G232,\"{\",CHAR(160),EH$1))+1),\"\")","v":""},{"$f":"IFERROR(MID($G232,FIND(CHAR(160),SUBSTITUTE($G232,\"{\",CHAR(160),EI$1)),FIND(CHAR(160),SUBSTITUTE($G232,\"}\",CHAR(160),EI$1))-FIND(CHAR(160),SUBSTITUTE($G232,\"{\",CHAR(160),EI$1))+1),\"\")","v":""},{"$f":"IFERROR(MID($G232,FIND(CHAR(160),SUBSTITUTE($G232,\"{\",CHAR(160),EJ$1)),FIND(CHAR(160),SUBSTITUTE($G232,\"}\",CHAR(160),EJ$1))-FIND(CHAR(160),SUBSTITUTE($G232,\"{\",CHAR(160),EJ$1))+1),\"\")","v":""},{"$f":"IFERROR(MID($G232,FIND(CHAR(160),SUBSTITUTE($G232,\"{\",CHAR(160),EK$1)),FIND(CHAR(160),SUBSTITUTE($G232,\"}\",CHAR(160),EK$1))-FIND(CHAR(160),SUBSTITUTE($G232,\"{\",CHAR(160),EK$1))+1),\"\")","v":""},{"$f":"IFERROR(MID($G232,FIND(CHAR(160),SUBSTITUTE($G232,\"{\",CHAR(160),EL$1)),FIND(CHAR(160),SUBSTITUTE($G232,\"}\",CHAR(160),EL$1))-FIND(CHAR(160),SUBSTITUTE($G232,\"{\",CHAR(160),EL$1))+1),\"\")","v":""},{"$f":"IFERROR(MID($G232,FIND(CHAR(160),SUBSTITUTE($G232,\"{\",CHAR(160),EM$1)),FIND(CHAR(160),SUBSTITUTE($G232,\"}\",CHAR(160),EM$1))-FIND(CHAR(160),SUBSTITUTE($G232,\"{\",CHAR(160),EM$1))+1),\"\")","v":""},{"$f":"IFERROR(MID($G232,FIND(CHAR(160),SUBSTITUTE($G232,\"{\",CHAR(160),EN$1)),FIND(CHAR(160),SUBSTITUTE($G232,\"}\",CHAR(160),EN$1))-FIND(CHAR(160),SUBSTITUTE($G232,\"{\",CHAR(160),EN$1))+1),\"\")","v":""},{"$f":"IFERROR(MID($G232,FIND(CHAR(160),SUBSTITUTE($G232,\"{\",CHAR(160),EO$1)),FIND(CHAR(160),SUBSTITUTE($G232,\"}\",CHAR(160),EO$1))-FIND(CHAR(160),SUBSTITUTE($G232,\"{\",CHAR(160),EO$1))+1),\"\")","v":""},{"$f":"IFERROR(MID($G232,FIND(CHAR(160),SUBSTITUTE($G232,\"{\",CHAR(160),EP$1)),FIND(CHAR(160),SUBSTITUTE($G232,\"}\",CHAR(160),EP$1))-FIND(CHAR(160),SUBSTITUTE($G232,\"{\",CHAR(160),EP$1))+1),\"\")","v":""},{"$f":"IFERROR(MID($J232,FIND(CHAR(160),SUBSTITUTE($J232,\"{\",CHAR(160),EQ$1)),FIND(CHAR(160),SUBSTITUTE($J232,\"}\",CHAR(160),EQ$1))-FIND(CHAR(160),SUBSTITUTE($J232,\"{\",CHAR(160),EQ$1))+1),\"\")","v":""},{"$f":"IFERROR(MID($J232,FIND(CHAR(160),SUBSTITUTE($J232,\"{\",CHAR(160),ER$1)),FIND(CHAR(160),SUBSTITUTE($J232,\"}\",CHAR(160),ER$1))-FIND(CHAR(160),SUBSTITUTE($J232,\"{\",CHAR(160),ER$1))+1),\"\")","v":""},{"$f":"IFERROR(MID($J232,FIND(CHAR(160),SUBSTITUTE($J232,\"{\",CHAR(160),ES$1)),FIND(CHAR(160),SUBSTITUTE($J232,\"}\",CHAR(160),ES$1))-FIND(CHAR(160),SUBSTITUTE($J232,\"{\",CHAR(160),ES$1))+1),\"\")","v":""},{"$f":"IFERROR(MID($J232,FIND(CHAR(160),SUBSTITUTE($J232,\"{\",CHAR(160),ET$1)),FIND(CHAR(160),SUBSTITUTE($J232,\"}\",CHAR(160),ET$1))-FIND(CHAR(160),SUBSTITUTE($J232,\"{\",CHAR(160),ET$1))+1),\"\")","v":""},{"$f":"IFERROR(MID($J232,FIND(CHAR(160),SUBSTITUTE($J232,\"{\",CHAR(160),EU$1)),FIND(CHAR(160),SUBSTITUTE($J232,\"}\",CHAR(160),EU$1))-FIND(CHAR(160),SUBSTITUTE($J232,\"{\",CHAR(160),EU$1))+1),\"\")","v":""},{"$f":"IFERROR(MID($J232,FIND(CHAR(160),SUBSTITUTE($J232,\"{\",CHAR(160),EV$1)),FIND(CHAR(160),SUBSTITUTE($J232,\"}\",CHAR(160),EV$1))-FIND(CHAR(160),SUBSTITUTE($J232,\"{\",CHAR(160),EV$1))+1),\"\")","v":""},{"$f":"IFERROR(MID($J232,FIND(CHAR(160),SUBSTITUTE($J232,\"{\",CHAR(160),EW$1)),FIND(CHAR(160),SUBSTITUTE($J232,\"}\",CHAR(160),EW$1))-FIND(CHAR(160),SUBSTITUTE($J232,\"{\",CHAR(160),EW$1))+1),\"\")","v":""},{"$f":"IFERROR(MID($J232,FIND(CHAR(160),SUBSTITUTE($J232,\"{\",CHAR(160),EX$1)),FIND(CHAR(160),SUBSTITUTE($J232,\"}\",CHAR(160),EX$1))-FIND(CHAR(160),SUBSTITUTE($J232,\"{\",CHAR(160),EX$1))+1),\"\")","v":""},{"$f":"IFERROR(MID($J232,FIND(CHAR(160),SUBSTITUTE($J232,\"{\",CHAR(160),EY$1)),FIND(CHAR(160),SUBSTITUTE($J232,\"}\",CHAR(160),EY$1))-FIND(CHAR(160),SUBSTITUTE($J232,\"{\",CHAR(160),EY$1))+1),\"\")","v":""},{"$f":"IFERROR(MID($J232,FIND(CHAR(160),SUBSTITUTE($J232,\"{\",CHAR(160),EZ$1)),FIND(CHAR(160),SUBSTITUTE($J232,\"}\",CHAR(160),EZ$1))-FIND(CHAR(160),SUBSTITUTE($J232,\"{\",CHAR(160),EZ$1))+1),\"\")","v":""},{"$f":"IFERROR(MID($J232,FIND(CHAR(160),SUBSTITUTE($J232,\"{\",CHAR(160),FA$1)),FIND(CHAR(160),SUBSTITUTE($J232,\"}\",CHAR(160),FA$1))-FIND(CHAR(160),SUBSTITUTE($J232,\"{\",CHAR(160),FA$1))+1),\"\")","v":""},{"$f":"IFERROR(MID($J232,FIND(CHAR(160),SUBSTITUTE($J232,\"{\",CHAR(160),FB$1)),FIND(CHAR(160),SUBSTITUTE($J232,\"}\",CHAR(160),FB$1))-FIND(CHAR(160),SUBSTITUTE($J232,\"{\",CHAR(160),FB$1))+1),\"\")","v":""},{"$f":"IFERROR(MID($O232,FIND(CHAR(160),SUBSTITUTE($O232,\"{\",CHAR(160),FC$1)),FIND(CHAR(160),SUBSTITUTE($O232,\"}\",CHAR(160),FC$1))-FIND(CHAR(160),SUBSTITUTE($O232,\"{\",CHAR(160),FC$1))+1),\"\")","v":""},{"$f":"IFERROR(MID($O232,FIND(CHAR(160),SUBSTITUTE($O232,\"{\",CHAR(160),FD$1)),FIND(CHAR(160),SUBSTITUTE($O232,\"}\",CHAR(160),FD$1))-FIND(CHAR(160),SUBSTITUTE($O232,\"{\",CHAR(160),FD$1))+1),\"\")","v":""},{"$f":"IFERROR(MID($O232,FIND(CHAR(160),SUBSTITUTE($O232,\"{\",CHAR(160),FE$1)),FIND(CHAR(160),SUBSTITUTE($O232,\"}\",CHAR(160),FE$1))-FIND(CHAR(160),SUBSTITUTE($O232,\"{\",CHAR(160),FE$1))+1),\"\")","v":""},{"$f":"IFERROR(MID($O232,FIND(CHAR(160),SUBSTITUTE($O232,\"{\",CHAR(160),FF$1)),FIND(CHAR(160),SUBSTITUTE($O232,\"}\",CHAR(160),FF$1))-FIND(CHAR(160),SUBSTITUTE($O232,\"{\",CHAR(160),FF$1))+1),\"\")","v":""},{"$f":"IFERROR(MID($O232,FIND(CHAR(160),SUBSTITUTE($O232,\"{\",CHAR(160),FG$1)),FIND(CHAR(160),SUBSTITUTE($O232,\"}\",CHAR(160),FG$1))-FIND(CHAR(160),SUBSTITUTE($O232,\"{\",CHAR(160),FG$1))+1),\"\")","v":""},{"$f":"IFERROR(MID($O232,FIND(CHAR(160),SUBSTITUTE($O232,\"{\",CHAR(160),FH$1)),FIND(CHAR(160),SUBSTITUTE($O232,\"}\",CHAR(160),FH$1))-FIND(CHAR(160),SUBSTITUTE($O232,\"{\",CHAR(160),FH$1))+1),\"\")","v":""},{"$f":"IFERROR(MID($O232,FIND(CHAR(160),SUBSTITUTE($O232,\"{\",CHAR(160),FI$1)),FIND(CHAR(160),SUBSTITUTE($O232,\"}\",CHAR(160),FI$1))-FIND(CHAR(160),SUBSTITUTE($O232,\"{\",CHAR(160),FI$1))+1),\"\")","v":""},{"$f":"IFERROR(MID($O232,FIND(CHAR(160),SUBSTITUTE($O232,\"{\",CHAR(160),FJ$1)),FIND(CHAR(160),SUBSTITUTE($O232,\"}\",CHAR(160),FJ$1))-FIND(CHAR(160),SUBSTITUTE($O232,\"{\",CHAR(160),FJ$1))+1),\"\")","v":""},{"$f":"IFERROR(MID($O232,FIND(CHAR(160),SUBSTITUTE($O232,\"{\",CHAR(160),FK$1)),FIND(CHAR(160),SUBSTITUTE($O232,\"}\",CHAR(160),FK$1))-FIND(CHAR(160),SUBSTITUTE($O232,\"{\",CHAR(160),FK$1))+1),\"\")","v":"{Measure:Quantity}"},{"$f":"IFERROR(MID($O232,FIND(CHAR(160),SUBSTITUTE($O232,\"{\",CHAR(160),FL$1)),FIND(CHAR(160),SUBSTITUTE($O232,\"}\",CHAR(160),FL$1))-FIND(CHAR(160),SUBSTITUTE($O232,\"{\",CHAR(160),FL$1))+1),\"\")","v":"{Measure:Quantity}"},{"$f":"IFERROR(MID($R232,FIND(CHAR(160),SUBSTITUTE($R232,\"{\",CHAR(160),FM$1)),FIND(CHAR(160),SUBSTITUTE($R232,\"}\",CHAR(160),FM$1))-FIND(CHAR(160),SUBSTITUTE($R232,\"{\",CHAR(160),FM$1))+1),\"\")","v":""},{"$f":"IFERROR(MID($R232,FIND(CHAR(160),SUBSTITUTE($R232,\"{\",CHAR(160),FN$1)),FIND(CHAR(160),SUBSTITUTE($R232,\"}\",CHAR(160),FN$1))-FIND(CHAR(160),SUBSTITUTE($R232,\"{\",CHAR(160),FN$1))+1),\"\")","v":""},{"$f":"IFERROR(MID($R232,FIND(CHAR(160),SUBSTITUTE($R232,\"{\",CHAR(160),FO$1)),FIND(CHAR(160),SUBSTITUTE($R232,\"}\",CHAR(160),FO$1))-FIND(CHAR(160),SUBSTITUTE($R232,\"{\",CHAR(160),FO$1))+1),\"\")","v":""},{"$f":"IFERROR(MID($R232,FIND(CHAR(160),SUBSTITUTE($R232,\"{\",CHAR(160),FP$1)),FIND(CHAR(160),SUBSTITUTE($R232,\"}\",CHAR(160),FP$1))-FIND(CHAR(160),SUBSTITUTE($R232,\"{\",CHAR(160),FP$1))+1),\"\")","v":""},{"$f":"IFERROR(MID($R232,FIND(CHAR(160),SUBSTITUTE($R232,\"{\",CHAR(160),FQ$1)),FIND(CHAR(160),SUBSTITUTE($R232,\"}\",CHAR(160),FQ$1))-FIND(CHAR(160),SUBSTITUTE($R232,\"{\",CHAR(160),FQ$1))+1),\"\")","v":""},{"$f":"IFERROR(MID($R232,FIND(CHAR(160),SUBSTITUTE($R232,\"{\",CHAR(160),FR$1)),FIND(CHAR(160),SUBSTITUTE($R232,\"}\",CHAR(160),FR$1))-FIND(CHAR(160),SUBSTITUTE($R232,\"{\",CHAR(160),FR$1))+1),\"\")","v":""},{"$f":"IFERROR(MID($R232,FIND(CHAR(160),SUBSTITUTE($R232,\"{\",CHAR(160),FS$1)),FIND(CHAR(160),SUBSTITUTE($R232,\"}\",CHAR(160),FS$1))-FIND(CHAR(160),SUBSTITUTE($R232,\"{\",CHAR(160),FS$1))+1),\"\")","v":""},{"$f":"IFERROR(MID($R232,FIND(CHAR(160),SUBSTITUTE($R232,\"{\",CHAR(160),FT$1)),FIND(CHAR(160),SUBSTITUTE($R232,\"}\",CHAR(160),FT$1))-FIND(CHAR(160),SUBSTITUTE($R232,\"{\",CHAR(160),FT$1))+1),\"\")","v":""},{"$f":"IFERROR(MID($R232,FIND(CHAR(160),SUBSTITUTE($R232,\"{\",CHAR(160),FU$1)),FIND(CHAR(160),SUBSTITUTE($R232,\"}\",CHAR(160),FU$1))-FIND(CHAR(160),SUBSTITUTE($R232,\"{\",CHAR(160),FU$1))+1),\"\")","v":""},{"$f":"IFERROR(MID($R232,FIND(CHAR(160),SUBSTITUTE($R232,\"{\",CHAR(160),FV$1)),FIND(CHAR(160),SUBSTITUTE($R232,\"}\",CHAR(160),FV$1))-FIND(CHAR(160),SUBSTITUTE($R232,\"{\",CHAR(160),FV$1))+1),\"\")","v":""},{"$f":"IFERROR(MID($U232,FIND(CHAR(160),SUBSTITUTE($U232,\"{\",CHAR(160),FW$1)),FIND(CHAR(160),SUBSTITUTE($U232,\"}\",CHAR(160),FW$1))-FIND(CHAR(160),SUBSTITUTE($U232,\"{\",CHAR(160),FW$1))+1),\"\")","v":""},{"$f":"IFERROR(MID($U232,FIND(CHAR(160),SUBSTITUTE($U232,\"{\",CHAR(160),FX$1)),FIND(CHAR(160),SUBSTITUTE($U232,\"}\",CHAR(160),FX$1))-FIND(CHAR(160),SUBSTITUTE($U232,\"{\",CHAR(160),FX$1))+1),\"\")","v":""},{"$f":"IFERROR(MID($U232,FIND(CHAR(160),SUBSTITUTE($U232,\"{\",CHAR(160),FY$1)),FIND(CHAR(160),SUBSTITUTE($U232,\"}\",CHAR(160),FY$1))-FIND(CHAR(160),SUBSTITUTE($U232,\"{\",CHAR(160),FY$1))+1),\"\")","v":""},{"$f":"IFERROR(MID($U232,FIND(CHAR(160),SUBSTITUTE($U232,\"{\",CHAR(160),FZ$1)),FIND(CHAR(160),SUBSTITUTE($U232,\"}\",CHAR(160),FZ$1))-FIND(CHAR(160),SUBSTITUTE($U232,\"{\",CHAR(160),FZ$1))+1),\"\")","v":""},{"$f":"IFERROR(MID($U232,FIND(CHAR(160),SUBSTITUTE($U232,\"{\",CHAR(160),GA$1)),FIND(CHAR(160),SUBSTITUTE($U232,\"}\",CHAR(160),GA$1))-FIND(CHAR(160),SUBSTITUTE($U232,\"{\",CHAR(160),GA$1))+1),\"\")","v":""},{"$f":"IFERROR(MID($U232,FIND(CHAR(160),SUBSTITUTE($U232,\"{\",CHAR(160),GB$1)),FIND(CHAR(160),SUBSTITUTE($U232,\"}\",CHAR(160),GB$1))-FIND(CHAR(160),SUBSTITUTE($U232,\"{\",CHAR(160),GB$1))+1),\"\")","v":""},{"$f":"IFERROR(MID($U232,FIND(CHAR(160),SUBSTITUTE($U232,\"{\",CHAR(160),GC$1)),FIND(CHAR(160),SUBSTITUTE($U232,\"}\",CHAR(160),GC$1))-FIND(CHAR(160),SUBSTITUTE($U232,\"{\",CHAR(160),GC$1))+1),\"\")","v":""},{"$f":"IFERROR(MID($U232,FIND(CHAR(160),SUBSTITUTE($U232,\"{\",CHAR(160),GD$1)),FIND(CHAR(160),SUBSTITUTE($U232,\"}\",CHAR(160),GD$1))-FIND(CHAR(160),SUBSTITUTE($U232,\"{\",CHAR(160),GD$1))+1),\"\")","v":""},{"$f":"IFERROR(MID($U232,FIND(CHAR(160),SUBSTITUTE($U232,\"{\",CHAR(160),GE$1)),FIND(CHAR(160),SUBSTITUTE($U232,\"}\",CHAR(160),GE$1))-FIND(CHAR(160),SUBSTITUTE($U232,\"{\",CHAR(160),GE$1))+1),\"\")","v":"{Measure:Quantity}"},{"$f":"IFERROR(MID($U232,FIND(CHAR(160),SUBSTITUTE($U232,\"{\",CHAR(160),GF$1)),FIND(CHAR(160),SUBSTITUTE($U232,\"}\",CHAR(160),GF$1))-FIND(CHAR(160),SUBSTITUTE($U232,\"{\",CHAR(160),GF$1))+1),\"\")","v":"{Measure:Quantity}"},{"$f":"IFERROR(MID($V232,FIND(CHAR(160),SUBSTITUTE($V232,\"{\",CHAR(160),GG$1)),FIND(CHAR(160),SUBSTITUTE($V232,\"}\",CHAR(160),GG$1))-FIND(CHAR(160),SUBSTITUTE($V232,\"{\",CHAR(160),GG$1))+1),\"\")","v":""},{"$f":"IFERROR(MID($V232,FIND(CHAR(160),SUBSTITUTE($V232,\"{\",CHAR(160),GH$1)),FIND(CHAR(160),SUBSTITUTE($V232,\"}\",CHAR(160),GH$1))-FIND(CHAR(160),SUBSTITUTE($V232,\"{\",CHAR(160),GH$1))+1),\"\")","v":""},{"$f":"IFERROR(MID($V232,FIND(CHAR(160),SUBSTITUTE($V232,\"{\",CHAR(160),GI$1)),FIND(CHAR(160),SUBSTITUTE($V232,\"}\",CHAR(160),GI$1))-FIND(CHAR(160),SUBSTITUTE($V232,\"{\",CHAR(160),GI$1))+1),\"\")","v":""},{"$f":"IFERROR(MID($V232,FIND(CHAR(160),SUBSTITUTE($V232,\"{\",CHAR(160),GJ$1)),FIND(CHAR(160),SUBSTITUTE($V232,\"}\",CHAR(160),GJ$1))-FIND(CHAR(160),SUBSTITUTE($V232,\"{\",CHAR(160),GJ$1))+1),\"\")","v":""},{"$f":"IFERROR(MID($V232,FIND(CHAR(160),SUBSTITUTE($V232,\"{\",CHAR(160),GK$1)),FIND(CHAR(160),SUBSTITUTE($V232,\"}\",CHAR(160),GK$1))-FIND(CHAR(160),SUBSTITUTE($V232,\"{\",CHAR(160),GK$1))+1),\"\")","v":""},{"$f":"IFERROR(MID($V232,FIND(CHAR(160),SUBSTITUTE($V232,\"{\",CHAR(160),GL$1)),FIND(CHAR(160),SUBSTITUTE($V232,\"}\",CHAR(160),GL$1))-FIND(CHAR(160),SUBSTITUTE($V232,\"{\",CHAR(160),GL$1))+1),\"\")","v":""},{"$f":"IFERROR(MID($V232,FIND(CHAR(160),SUBSTITUTE($V232,\"{\",CHAR(160),GM$1)),FIND(CHAR(160),SUBSTITUTE($V232,\"}\",CHAR(160),GM$1))-FIND(CHAR(160),SUBSTITUTE($V232,\"{\",CHAR(160),GM$1))+1),\"\")","v":""},{"$f":"IFERROR(MID($V232,FIND(CHAR(160),SUBSTITUTE($V232,\"{\",CHAR(160),GN$1)),FIND(CHAR(160),SUBSTITUTE($V232,\"}\",CHAR(160),GN$1))-FIND(CHAR(160),SUBSTITUTE($V232,\"{\",CHAR(160),GN$1))+1),\"\")","v":""},{"$f":"IFERROR(MID($V232,FIND(CHAR(160),SUBSTITUTE($V232,\"{\",CHAR(160),GO$1)),FIND(CHAR(160),SUBSTITUTE($V232,\"}\",CHAR(160),GO$1))-FIND(CHAR(160),SUBSTITUTE($V232,\"{\",CHAR(160),GO$1))+1),\"\")","v":"{Measure:Quantity}"},{"$f":"IFERROR(MID($V232,FIND(CHAR(160),SUBSTITUTE($V232,\"{\",CHAR(160),GP$1)),FIND(CHAR(160),SUBSTITUTE($V232,\"}\",CHAR(160),GP$1))-FIND(CHAR(160),SUBSTITUTE($V232,\"{\",CHAR(160),GP$1))+1),\"\")","v":"{Measure:Quantity}"},{"$f":"IFERROR(MID($W232,FIND(CHAR(160),SUBSTITUTE($W232,\"{\",CHAR(160),GQ$1)),FIND(CHAR(160),SUBSTITUTE($W232,\"}\",CHAR(160),GQ$1))-FIND(CHAR(160),SUBSTITUTE($W232,\"{\",CHAR(160),GQ$1))+1),\"\")","v":""},{"$f":"IFERROR(MID($W232,FIND(CHAR(160),SUBSTITUTE($W232,\"{\",CHAR(160),GR$1)),FIND(CHAR(160),SUBSTITUTE($W232,\"}\",CHAR(160),GR$1))-FIND(CHAR(160),SUBSTITUTE($W232,\"{\",CHAR(160),GR$1))+1),\"\")","v":""},{"$f":"IFERROR(MID($W232,FIND(CHAR(160),SUBSTITUTE($W232,\"{\",CHAR(160),GS$1)),FIND(CHAR(160),SUBSTITUTE($W232,\"}\",CHAR(160),GS$1))-FIND(CHAR(160),SUBSTITUTE($W232,\"{\",CHAR(160),GS$1))+1),\"\")","v":""},{"$f":"IFERROR(MID($W232,FIND(CHAR(160),SUBSTITUTE($W232,\"{\",CHAR(160),GT$1)),FIND(CHAR(160),SUBSTITUTE($W232,\"}\",CHAR(160),GT$1))-FIND(CHAR(160),SUBSTITUTE($W232,\"{\",CHAR(160),GT$1))+1),\"\")","v":""},{"$f":"IFERROR(MID($W232,FIND(CHAR(160),SUBSTITUTE($W232,\"{\",CHAR(160),GU$1)),FIND(CHAR(160),SUBSTITUTE($W232,\"}\",CHAR(160),GU$1))-FIND(CHAR(160),SUBSTITUTE($W232,\"{\",CHAR(160),GU$1))+1),\"\")","v":""},{"$f":"IFERROR(MID($W232,FIND(CHAR(160),SUBSTITUTE($W232,\"{\",CHAR(160),GV$1)),FIND(CHAR(160),SUBSTITUTE($W232,\"}\",CHAR(160),GV$1))-FIND(CHAR(160),SUBSTITUTE($W232,\"{\",CHAR(160),GV$1))+1),\"\")","v":""},{"$f":"IFERROR(MID($W232,FIND(CHAR(160),SUBSTITUTE($W232,\"{\",CHAR(160),GW$1)),FIND(CHAR(160),SUBSTITUTE($W232,\"}\",CHAR(160),GW$1))-FIND(CHAR(160),SUBSTITUTE($W232,\"{\",CHAR(160),GW$1))+1),\"\")","v":""},{"$f":"IFERROR(MID($W232,FIND(CHAR(160),SUBSTITUTE($W232,\"{\",CHAR(160),GX$1)),FIND(CHAR(160),SUBSTITUTE($W232,\"}\",CHAR(160),GX$1))-FIND(CHAR(160),SUBSTITUTE($W232,\"{\",CHAR(160),GX$1))+1),\"\")","v":""},{"$f":"IFERROR(MID($W232,FIND(CHAR(160),SUBSTITUTE($W232,\"{\",CHAR(160),GY$1)),FIND(CHAR(160),SUBSTITUTE($W232,\"}\",CHAR(160),GY$1))-FIND(CHAR(160),SUBSTITUTE($W232,\"{\",CHAR(160),GY$1))+1),\"\")","v":""},{"$f":"IFERROR(MID($W232,FIND(CHAR(160),SUBSTITUTE($W232,\"{\",CHAR(160),GZ$1)),FIND(CHAR(160),SUBSTITUTE($W232,\"}\",CHAR(160),GZ$1))-FIND(CHAR(160),SUBSTITUTE($W232,\"{\",CHAR(160),GZ$1))+1),\"\")","v":""},{"$f":"IFERROR(MID($X232,FIND(CHAR(160),SUBSTITUTE($X232,\"{\",CHAR(160),HA$1)),FIND(CHAR(160),SUBSTITUTE($X232,\"}\",CHAR(160),HA$1))-FIND(CHAR(160),SUBSTITUTE($X232,\"{\",CHAR(160),HA$1))+1),\"\")","v":""},{"$f":"IFERROR(MID($X232,FIND(CHAR(160),SUBSTITUTE($X232,\"{\",CHAR(160),HB$1)),FIND(CHAR(160),SUBSTITUTE($X232,\"}\",CHAR(160),HB$1))-FIND(CHAR(160),SUBSTITUTE($X232,\"{\",CHAR(160),HB$1))+1),\"\")","v":""},{"$f":"IFERROR(MID($X232,FIND(CHAR(160),SUBSTITUTE($X232,\"{\",CHAR(160),HC$1)),FIND(CHAR(160),SUBSTITUTE($X232,\"}\",CHAR(160),HC$1))-FIND(CHAR(160),SUBSTITUTE($X232,\"{\",CHAR(160),HC$1))+1),\"\")","v":""},{"$f":"IFERROR(MID($X232,FIND(CHAR(160),SUBSTITUTE($X232,\"{\",CHAR(160),HD$1)),FIND(CHAR(160),SUBSTITUTE($X232,\"}\",CHAR(160),HD$1))-FIND(CHAR(160),SUBSTITUTE($X232,\"{\",CHAR(160),HD$1))+1),\"\")","v":""},{"$f":"IFERROR(MID($X232,FIND(CHAR(160),SUBSTITUTE($X232,\"{\",CHAR(160),HE$1)),FIND(CHAR(160),SUBSTITUTE($X232,\"}\",CHAR(160),HE$1))-FIND(CHAR(160),SUBSTITUTE($X232,\"{\",CHAR(160),HE$1))+1),\"\")","v":""},{"$f":"IFERROR(MID($X232,FIND(CHAR(160),SUBSTITUTE($X232,\"{\",CHAR(160),HF$1)),FIND(CHAR(160),SUBSTITUTE($X232,\"}\",CHAR(160),HF$1))-FIND(CHAR(160),SUBSTITUTE($X232,\"{\",CHAR(160),HF$1))+1),\"\")","v":""},{"$f":"IFERROR(MID($X232,FIND(CHAR(160),SUBSTITUTE($X232,\"{\",CHAR(160),HG$1)),FIND(CHAR(160),SUBSTITUTE($X232,\"}\",CHAR(160),HG$1))-FIND(CHAR(160),SUBSTITUTE($X232,\"{\",CHAR(160),HG$1))+1),\"\")","v":""},{"$f":"IFERROR(MID($X232,FIND(CHAR(160),SUBSTITUTE($X232,\"{\",CHAR(160),HH$1)),FIND(CHAR(160),SUBSTITUTE($X232,\"}\",CHAR(160),HH$1))-FIND(CHAR(160),SUBSTITUTE($X232,\"{\",CHAR(160),HH$1))+1),\"\")","v":""},{"$f":"IFERROR(MID($X232,FIND(CHAR(160),SUBSTITUTE($X232,\"{\",CHAR(160),HI$1)),FIND(CHAR(160),SUBSTITUTE($X232,\"}\",CHAR(160),HI$1))-FIND(CHAR(160),SUBSTITUTE($X232,\"{\",CHAR(160),HI$1))+1),\"\")","v":""},{"$f":"IFERROR(MID($X232,FIND(CHAR(160),SUBSTITUTE($X232,\"{\",CHAR(160),HJ$1)),FIND(CHAR(160),SUBSTITUTE($X232,\"}\",CHAR(160),HJ$1))-FIND(CHAR(160),SUBSTITUTE($X232,\"{\",CHAR(160),HJ$1))+1),\"\")","v":""},{"$f":"IFERROR(MID($Y232,FIND(CHAR(160),SUBSTITUTE($Y232,\"{\",CHAR(160),HK$1)),FIND(CHAR(160),SUBSTITUTE($Y232,\"}\",CHAR(160),HK$1))-FIND(CHAR(160),SUBSTITUTE($Y232,\"{\",CHAR(160),HK$1))+1),\"\")","v":""},{"$f":"IFERROR(MID($Y232,FIND(CHAR(160),SUBSTITUTE($Y232,\"{\",CHAR(160),HL$1)),FIND(CHAR(160),SUBSTITUTE($Y232,\"}\",CHAR(160),HL$1))-FIND(CHAR(160),SUBSTITUTE($Y232,\"{\",CHAR(160),HL$1))+1),\"\")","v":""},{"$f":"IFERROR(MID($Y232,FIND(CHAR(160),SUBSTITUTE($Y232,\"{\",CHAR(160),HM$1)),FIND(CHAR(160),SUBSTITUTE($Y232,\"}\",CHAR(160),HM$1))-FIND(CHAR(160),SUBSTITUTE($Y232,\"{\",CHAR(160),HM$1))+1),\"\")","v":""},{"$f":"IFERROR(MID($Y232,FIND(CHAR(160),SUBSTITUTE($Y232,\"{\",CHAR(160),HN$1)),FIND(CHAR(160),SUBSTITUTE($Y232,\"}\",CHAR(160),HN$1))-FIND(CHAR(160),SUBSTITUTE($Y232,\"{\",CHAR(160),HN$1))+1),\"\")","v":""},{"$f":"IFERROR(MID($Y232,FIND(CHAR(160),SUBSTITUTE($Y232,\"{\",CHAR(160),HO$1)),FIND(CHAR(160),SUBSTITUTE($Y232,\"}\",CHAR(160),HO$1))-FIND(CHAR(160),SUBSTITUTE($Y232,\"{\",CHAR(160),HO$1))+1),\"\")","v":""},{"$f":"IFERROR(MID($Y232,FIND(CHAR(160),SUBSTITUTE($Y232,\"{\",CHAR(160),HP$1)),FIND(CHAR(160),SUBSTITUTE($Y232,\"}\",CHAR(160),HP$1))-FIND(CHAR(160),SUBSTITUTE($Y232,\"{\",CHAR(160),HP$1))+1),\"\")","v":""},{"$f":"IFERROR(MID($Y232,FIND(CHAR(160),SUBSTITUTE($Y232,\"{\",CHAR(160),HQ$1)),FIND(CHAR(160),SUBSTITUTE($Y232,\"}\",CHAR(160),HQ$1))-FIND(CHAR(160),SUBSTITUTE($Y232,\"{\",CHAR(160),HQ$1))+1),\"\")","v":""},{"$f":"IFERROR(MID($Y232,FIND(CHAR(160),SUBSTITUTE($Y232,\"{\",CHAR(160),HR$1)),FIND(CHAR(160),SUBSTITUTE($Y232,\"}\",CHAR(160),HR$1))-FIND(CHAR(160),SUBSTITUTE($Y232,\"{\",CHAR(160),HR$1))+1),\"\")","v":""},{"$f":"IFERROR(MID($Y232,FIND(CHAR(160),SUBSTITUTE($Y232,\"{\",CHAR(160),HS$1)),FIND(CHAR(160),SUBSTITUTE($Y232,\"}\",CHAR(160),HS$1))-FIND(CHAR(160),SUBSTITUTE($Y232,\"{\",CHAR(160),HS$1))+1),\"\")","v":""},{"$f":"IFERROR(MID($Y232,FIND(CHAR(160),SUBSTITUTE($Y232,\"{\",CHAR(160),HT$1)),FIND(CHAR(160),SUBSTITUTE($Y232,\"}\",CHAR(160),HT$1))-FIND(CHAR(160),SUBSTITUTE($Y232,\"{\",CHAR(160),HT$1))+1),\"\")","v":""},{"$f":"IFERROR(MID($Z232,FIND(CHAR(160),SUBSTITUTE($Z232,\"{\",CHAR(160),HU$1)),FIND(CHAR(160),SUBSTITUTE($Z232,\"}\",CHAR(160),HU$1))-FIND(CHAR(160),SUBSTITUTE($Z232,\"{\",CHAR(160),HU$1))+1),\"\")","v":""},{"$f":"IFERROR(MID($Z232,FIND(CHAR(160),SUBSTITUTE($Z232,\"{\",CHAR(160),HV$1)),FIND(CHAR(160),SUBSTITUTE($Z232,\"}\",CHAR(160),HV$1))-FIND(CHAR(160),SUBSTITUTE($Z232,\"{\",CHAR(160),HV$1))+1),\"\")","v":""},{"$f":"IFERROR(MID($Z232,FIND(CHAR(160),SUBSTITUTE($Z232,\"{\",CHAR(160),HW$1)),FIND(CHAR(160),SUBSTITUTE($Z232,\"}\",CHAR(160),HW$1))-FIND(CHAR(160),SUBSTITUTE($Z232,\"{\",CHAR(160),HW$1))+1),\"\")","v":""},{"$f":"IFERROR(MID($Z232,FIND(CHAR(160),SUBSTITUTE($Z232,\"{\",CHAR(160),HX$1)),FIND(CHAR(160),SUBSTITUTE($Z232,\"}\",CHAR(160),HX$1))-FIND(CHAR(160),SUBSTITUTE($Z232,\"{\",CHAR(160),HX$1))+1),\"\")","v":""},{"$f":"IFERROR(MID($Z232,FIND(CHAR(160),SUBSTITUTE($Z232,\"{\",CHAR(160),HY$1)),FIND(CHAR(160),SUBSTITUTE($Z232,\"}\",CHAR(160),HY$1))-FIND(CHAR(160),SUBSTITUTE($Z232,\"{\",CHAR(160),HY$1))+1),\"\")","v":""},{"$f":"IFERROR(MID($Z232,FIND(CHAR(160),SUBSTITUTE($Z232,\"{\",CHAR(160),HZ$1)),FIND(CHAR(160),SUBSTITUTE($Z232,\"}\",CHAR(160),HZ$1))-FIND(CHAR(160),SUBSTITUTE($Z232,\"{\",CHAR(160),HZ$1))+1),\"\")","v":""},{"$f":"IFERROR(MID($Z232,FIND(CHAR(160),SUBSTITUTE($Z232,\"{\",CHAR(160),IA$1)),FIND(CHAR(160),SUBSTITUTE($Z232,\"}\",CHAR(160),IA$1))-FIND(CHAR(160),SUBSTITUTE($Z232,\"{\",CHAR(160),IA$1))+1),\"\")","v":""},{"$f":"IFERROR(MID($Z232,FIND(CHAR(160),SUBSTITUTE($Z232,\"{\",CHAR(160),IB$1)),FIND(CHAR(160),SUBSTITUTE($Z232,\"}\",CHAR(160),IB$1))-FIND(CHAR(160),SUBSTITUTE($Z232,\"{\",CHAR(160),IB$1))+1),\"\")","v":""},{"$f":"IFERROR(MID($Z232,FIND(CHAR(160),SUBSTITUTE($Z232,\"{\",CHAR(160),IC$1)),FIND(CHAR(160),SUBSTITUTE($Z232,\"}\",CHAR(160),IC$1))-FIND(CHAR(160),SUBSTITUTE($Z232,\"{\",CHAR(160),IC$1))+1),\"\")","v":""},{"$f":"IFERROR(MID($Z232,FIND(CHAR(160),SUBSTITUTE($Z232,\"{\",CHAR(160),ID$1)),FIND(CHAR(160),SUBSTITUTE($Z232,\"}\",CHAR(160),ID$1))-FIND(CHAR(160),SUBSTITUTE($Z232,\"{\",CHAR(160),ID$1))+1),\"\")","v":""},{"$f":"IFERROR(MID($AA232,FIND(CHAR(160),SUBSTITUTE($AA232,\"{\",CHAR(160),IE$1)),FIND(CHAR(160),SUBSTITUTE($AA232,\"}\",CHAR(160),IE$1))-FIND(CHAR(160),SUBSTITUTE($AA232,\"{\",CHAR(160),IE$1))+1),\"\")","v":""},{"$f":"IFERROR(MID($AA232,FIND(CHAR(160),SUBSTITUTE($AA232,\"{\",CHAR(160),IF$1)),FIND(CHAR(160),SUBSTITUTE($AA232,\"}\",CHAR(160),IF$1))-FIND(CHAR(160),SUBSTITUTE($AA232,\"{\",CHAR(160),IF$1))+1),\"\")","v":""},{"$f":"IFERROR(MID($AA232,FIND(CHAR(160),SUBSTITUTE($AA232,\"{\",CHAR(160),IG$1)),FIND(CHAR(160),SUBSTITUTE($AA232,\"}\",CHAR(160),IG$1))-FIND(CHAR(160),SUBSTITUTE($AA232,\"{\",CHAR(160),IG$1))+1),\"\")","v":""},{"$f":"IFERROR(MID($AA232,FIND(CHAR(160),SUBSTITUTE($AA232,\"{\",CHAR(160),IH$1)),FIND(CHAR(160),SUBSTITUTE($AA232,\"}\",CHAR(160),IH$1))-FIND(CHAR(160),SUBSTITUTE($AA232,\"{\",CHAR(160),IH$1))+1),\"\")","v":""},{"$f":"IFERROR(MID($AA232,FIND(CHAR(160),SUBSTITUTE($AA232,\"{\",CHAR(160),II$1)),FIND(CHAR(160),SUBSTITUTE($AA232,\"}\",CHAR(160),II$1))-FIND(CHAR(160),SUBSTITUTE($AA232,\"{\",CHAR(160),II$1))+1),\"\")","v":""},{"$f":"IFERROR(MID($AA232,FIND(CHAR(160),SUBSTITUTE($AA232,\"{\",CHAR(160),IJ$1)),FIND(CHAR(160),SUBSTITUTE($AA232,\"}\",CHAR(160),IJ$1))-FIND(CHAR(160),SUBSTITUTE($AA232,\"{\",CHAR(160),IJ$1))+1),\"\")","v":""},{"$f":"IFERROR(MID($AA232,FIND(CHAR(160),SUBSTITUTE($AA232,\"{\",CHAR(160),IK$1)),FIND(CHAR(160),SUBSTITUTE($AA232,\"}\",CHAR(160),IK$1))-FIND(CHAR(160),SUBSTITUTE($AA232,\"{\",CHAR(160),IK$1))+1),\"\")","v":""},{"$f":"IFERROR(MID($AA232,FIND(CHAR(160),SUBSTITUTE($AA232,\"{\",CHAR(160),IL$1)),FIND(CHAR(160),SUBSTITUTE($AA232,\"}\",CHAR(160),IL$1))-FIND(CHAR(160),SUBSTITUTE($AA232,\"{\",CHAR(160),IL$1))+1),\"\")","v":""},{"$f":"IFERROR(MID($AA232,FIND(CHAR(160),SUBSTITUTE($AA232,\"{\",CHAR(160),IM$1)),FIND(CHAR(160),SUBSTITUTE($AA232,\"}\",CHAR(160),IM$1))-FIND(CHAR(160),SUBSTITUTE($AA232,\"{\",CHAR(160),IM$1))+1),\"\")","v":""},{"$f":"IFERROR(MID($AA232,FIND(CHAR(160),SUBSTITUTE($AA232,\"{\",CHAR(160),IN$1)),FIND(CHAR(160),SUBSTITUTE($AA232,\"}\",CHAR(160),IN$1))-FIND(CHAR(160),SUBSTITUTE($AA232,\"{\",CHAR(160),IN$1))+1),\"\")","v":""},{"$f":"IFERROR(MID($AB232,FIND(CHAR(160),SUBSTITUTE($AB232,\"{\",CHAR(160),IO$1)),FIND(CHAR(160),SUBSTITUTE($AB232,\"}\",CHAR(160),IO$1))-FIND(CHAR(160),SUBSTITUTE($AB232,\"{\",CHAR(160),IO$1))+1),\"\")","v":""},{"$f":"IFERROR(MID($AB232,FIND(CHAR(160),SUBSTITUTE($AB232,\"{\",CHAR(160),IP$1)),FIND(CHAR(160),SUBSTITUTE($AB232,\"}\",CHAR(160),IP$1))-FIND(CHAR(160),SUBSTITUTE($AB232,\"{\",CHAR(160),IP$1))+1),\"\")","v":""},{"$f":"IFERROR(MID($AB232,FIND(CHAR(160),SUBSTITUTE($AB232,\"{\",CHAR(160),IQ$1)),FIND(CHAR(160),SUBSTITUTE($AB232,\"}\",CHAR(160),IQ$1))-FIND(CHAR(160),SUBSTITUTE($AB232,\"{\",CHAR(160),IQ$1))+1),\"\")","v":""},{"$f":"IFERROR(MID($AB232,FIND(CHAR(160),SUBSTITUTE($AB232,\"{\",CHAR(160),IR$1)),FIND(CHAR(160),SUBSTITUTE($AB232,\"}\",CHAR(160),IR$1))-FIND(CHAR(160),SUBSTITUTE($AB232,\"{\",CHAR(160),IR$1))+1),\"\")","v":""},{"$f":"IFERROR(MID($AB232,FIND(CHAR(160),SUBSTITUTE($AB232,\"{\",CHAR(160),IS$1)),FIND(CHAR(160),SUBSTITUTE($AB232,\"}\",CHAR(160),IS$1))-FIND(CHAR(160),SUBSTITUTE($AB232,\"{\",CHAR(160),IS$1))+1),\"\")","v":""},{"$f":"IFERROR(MID($AB232,FIND(CHAR(160),SUBSTITUTE($AB232,\"{\",CHAR(160),IT$1)),FIND(CHAR(160),SUBSTITUTE($AB232,\"}\",CHAR(160),IT$1))-FIND(CHAR(160),SUBSTITUTE($AB232,\"{\",CHAR(160),IT$1))+1),\"\")","v":""},{"$f":"IFERROR(MID($AB232,FIND(CHAR(160),SUBSTITUTE($AB232,\"{\",CHAR(160),IU$1)),FIND(CHAR(160),SUBSTITUTE($AB232,\"}\",CHAR(160),IU$1))-FIND(CHAR(160),SUBSTITUTE($AB232,\"{\",CHAR(160),IU$1))+1),\"\")","v":""},{"$f":"IFERROR(MID($AB232,FIND(CHAR(160),SUBSTITUTE($AB232,\"{\",CHAR(160),IV$1)),FIND(CHAR(160),SUBSTITUTE($AB232,\"}\",CHAR(160),IV$1))-FIND(CHAR(160),SUBSTITUTE($AB232,\"{\",CHAR(160),IV$1))+1),\"\")","v":""},{"$f":"IFERROR(MID($AB232,FIND(CHAR(160),SUBSTITUTE($AB232,\"{\",CHAR(160),IW$1)),FIND(CHAR(160),SUBSTITUTE($AB232,\"}\",CHAR(160),IW$1))-FIND(CHAR(160),SUBSTITUTE($AB232,\"{\",CHAR(160),IW$1))+1),\"\")","v":""},{"$f":"IFERROR(MID($AB232,FIND(CHAR(160),SUBSTITUTE($AB232,\"{\",CHAR(160),IX$1)),FIND(CHAR(160),SUBSTITUTE($AB232,\"}\",CHAR(160),IX$1))-FIND(CHAR(160),SUBSTITUTE($AB232,\"{\",CHAR(160),IX$1))+1),\"\")","v":""},null,{"$f":"10-COUNTIF(DU232:ED232,\"\")","v":1}]
["Retail Lighting","LED Specialty Bulb Other (Globe & 3-Way) Long Life","LEDSPCOL","2021-07-01","2022-06-30","Calculated","{Measure:Quantity}*{Package Size}*6.74",0,"Calculated","{Measure:Quantity}*({Rebate per Package}+{Marketing Fee})",0,"2021-07-01","2022-06-30","Calculated","{Measure:Quantity}*{Package Size}*38",null,null,"{Measure:Quantity}*{Package Size}*1.062*0.042",null,null,"{Measure:Quantity}*{Package Size}*0.008","{Measure:Quantity}*{Package Size}*0.005","{Measure:Quantity}*{Package Size}*10*-0.005","{Measure:Quantity}*{Package Size}*-0.004","{Measure:Quantity}*{Package Size}*-0.032","{Measure:Quantity}*{Package Size}*-0.001","{Measure:Quantity}*{Package Size}*-0.007",null,"2021-07-01","2022-06-30",4,0.185,0.109,0.37,0.31,0.17100000000000001,0.14899999999999999,0.99,1,1,0.76300000000000001,0,null,{"$f":"DU233","v":"{Measure:Quantity}"},1,{"$f":"DV233","v":"{Package Size}"},1,{"$f":"DW233","v":"{Rebate per Package}"},{"$f":"CO233","v":6.74},{"$f":"DX233","v":"{Marketing Fee}"},1,{"$f":"DY233","v":""},null,{"$f":"DZ233","v":""},null,{"$f":"EA233","v":""},null,{"$f":"EB233","v":""},null,{"$f":"EC233","v":""},null,{"$f":"ED233","v":""},null,{"$f":"AS233*AU233*38","v":38},0,0,{"$f":"AS233*AU233*1.062*0.042","v":4.4604000000000005E-2},0,0,{"$f":"AS233*AU233*0.008","v":8.0000000000000002E-3},{"$f":"AS233*AU233*0.005","v":5.0000000000000001E-3},{"$f":"AS233*AU233*10*-0.005","v":-0.05},{"$f":"AS233*AU233*-0.004","v":-4.0000000000000001E-3},{"$f":"AS233*AU233*-0.032","v":-3.2000000000000001E-2},{"$f":"AS233*AU233*-0.001","v":-1E-3},{"$f":"AS233*AU233*-0.007","v":-7.0000000000000001E-3},0,null,"Res","Default DR",{"$f":"Benefits(BL233,BR233,BS233,BT233,BU233,BV233,BW233,BX233,BY233,BZ233,AE233,AH233,AI233,AJ233,AK233,AL233,AM233,AN233,AO233,AP233,CA233,CB233)","v":17.076694980235601},12.020887559332447,-0.33246321835351589,-4.0659504007993839,-0.14543538089809677,-0.70777768089744719,-0.49851309521017184,0,0,{"$f":"SUMPRODUCT(CC233:CK233,--(CC233:CK233>0))","v":29.097582539568048},{"$f":"-SUMPRODUCT(CC233:CK233,--(CC233:CK233<0))","v":5.7501397761586155},null,{"$f":"AS233*AU233*6.74","v":6.74},null,null,{"$f":"CM233+CO233","v":12.490139776158616},{"$f":"IF(NetOrGross=\"Net\",(1-AO233+AP233),1)","v":1},{"$f":"(SUMPRODUCT(CC233:CJ233,--(CC233:CJ233>0))+CN233)*CS233/((-SUMPRODUCT(CC233:CJ233,--(CC233:CJ233<0))+MAX(CO233,CV233)+CP233+CQ233)*CS233+IF(FRIncentives=\"Yes\",CV233*(1-CS233),0))","v":2.1569518939301702},1,{"$f":"AS233*(AW233+AY233)","v":7.74},1,"Electric","y",null,{"$f":"IF(F233=\"Manual Entry\",\"Manual\",IF(G233=\"\",0,\"X=\"&SUBSTITUTE(SUBSTITUTE(SUBSTITUTE(SUBSTITUTE(SUBSTITUTE(SUBSTITUTE(SUBSTITUTE(SUBSTITUTE(SUBSTITUTE(SUBSTITUTE(SUBSTITUTE(SUBSTITUTE(G233,$ED233,$ED$2&ROW($ED233)),$EC233,$EC$2&ROW($EC233)),$EB233,$EB$2&ROW($EB233)),$EA233,$EA$2&ROW($EA233)),$DZ233,$DZ$2&ROW($DZ233)),$DY233,$DY$2&ROW($DY233)),$DX233,$DX$2&ROW($DX233)),$DW233,$DW$2&ROW($DW233)),$DV233,$DV$2&ROW($DV233)),$DU233,$DU$2&ROW($DU233)),$DT233,$DT$2&ROW($DT233)),$DS233,$DS$2&ROW($DS233))))","v":"X=AS233*AU233*6.74"},{"$f":"IF(I233=\"Manual Entry\",\"Manual\",IF(J233=\"\",0,\"X=\"&SUBSTITUTE(SUBSTITUTE(SUBSTITUTE(SUBSTITUTE(SUBSTITUTE(SUBSTITUTE(SUBSTITUTE(SUBSTITUTE(SUBSTITUTE(SUBSTITUTE(SUBSTITUTE(SUBSTITUTE(J233,$ED233,$ED$2&ROW($ED233)),$EC233,$EC$2&ROW($EC233)),$EB233,$EB$2&ROW($EB233)),$EA233,$EA$2&ROW($EA233)),$DZ233,$DZ$2&ROW($DZ233)),$DY233,$DY$2&ROW($DY233)),$DX233,$DX$2&ROW($DX233)),$DW233,$DW$2&ROW($DW233)),$DV233,$DV$2&ROW($DV233)),$DU233,$DU$2&ROW($DU233)),$DT233,$DT$2&ROW($DT233)),$DS233,$DS$2&ROW($DS233))))","v":"X=AS233*(AW233+AY233)"},{"$f":"IF(O233=\"\",0,\"X=\"&SUBSTITUTE(SUBSTITUTE(SUBSTITUTE(SUBSTITUTE(SUBSTITUTE(SUBSTITUTE(SUBSTITUTE(SUBSTITUTE(SUBSTITUTE(SUBSTITUTE(SUBSTITUTE(SUBSTITUTE(O233,$ED233,$ED$2&ROW($ED233)),$EC233,$EC$2&ROW($EC233)),$EB233,$EB$2&ROW($EB233)),$EA233,$EA$2&ROW($EA233)),$DZ233,$DZ$2&ROW($DZ233)),$DY233,$DY$2&ROW($DY233)),$DX233,$DX$2&ROW($DX233)),$DW233,$DW$2&ROW($DW233)),$DV233,$DV$2&ROW($DV233)),$DU233,$DU$2&ROW($DU233)),$DT233,$DT$2&ROW($DT233)),$DS233,$DS$2&ROW($DS233)))","v":"X=AS233*AU233*38"},{"$f":"IF(P233=\"\",0,\"X=\"&SUBSTITUTE(SUBSTITUTE(SUBSTITUTE(SUBSTITUTE(SUBSTITUTE(SUBSTITUTE(SUBSTITUTE(SUBSTITUTE(SUBSTITUTE(SUBSTITUTE(SUBSTITUTE(SUBSTITUTE(P233,$ED233,$ED$2&ROW($ED233)),$EC233,$EC$2&ROW($EC233)),$EB233,$EB$2&ROW($EB233)),$EA233,$EA$2&ROW($EA233)),$DZ233,$DZ$2&ROW($DZ233)),$DY233,$DY$2&ROW($DY233)),$DX233,$DX$2&ROW($DX233)),$DW233,$DW$2&ROW($DW233)),$DV233,$DV$2&ROW($DV233)),$DU233,$DU$2&ROW($DU233)),$DT233,$DT$2&ROW($DT233)),$DS233,$DS$2&ROW($DS233)))","v":0},{"$f":"IF(Q233=\"\",0,\"X=\"&SUBSTITUTE(SUBSTITUTE(SUBSTITUTE(SUBSTITUTE(SUBSTITUTE(SUBSTITUTE(SUBSTITUTE(SUBSTITUTE(SUBSTITUTE(SUBSTITUTE(SUBSTITUTE(SUBSTITUTE(Q233,$ED233,$ED$2&ROW($ED233)),$EC233,$EC$2&ROW($EC233)),$EB233,$EB$2&ROW($EB233)),$EA233,$EA$2&ROW($EA233)),$DZ233,$DZ$2&ROW($DZ233)),$DY233,$DY$2&ROW($DY233)),$DX233,$DX$2&ROW($DX233)),$DW233,$DW$2&ROW($DW233)),$DV233,$DV$2&ROW($DV233)),$DU233,$DU$2&ROW($DU233)),$DT233,$DT$2&ROW($DT233)),$DS233,$DS$2&ROW($DS233)))","v":0},{"$f":"IF(R233=\"\",0,\"X=\"&SUBSTITUTE(SUBSTITUTE(SUBSTITUTE(SUBSTITUTE(SUBSTITUTE(SUBSTITUTE(SUBSTITUTE(SUBSTITUTE(SUBSTITUTE(SUBSTITUTE(SUBSTITUTE(SUBSTITUTE(R233,$ED233,$ED$2&ROW($ED233)),$EC233,$EC$2&ROW($EC233)),$EB233,$EB$2&ROW($EB233)),$EA233,$EA$2&ROW($EA233)),$DZ233,$DZ$2&ROW($DZ233)),$DY233,$DY$2&ROW($DY233)),$DX233,$DX$2&ROW($DX233)),$DW233,$DW$2&ROW($DW233)),$DV233,$DV$2&ROW($DV233)),$DU233,$DU$2&ROW($DU233)),$DT233,$DT$2&ROW($DT233)),$DS233,$DS$2&ROW($DS233)))","v":"X=AS233*AU233*1.062*0.042"},{"$f":"IF(S233=\"\",0,\"X=\"&SUBSTITUTE(SUBSTITUTE(SUBSTITUTE(SUBSTITUTE(SUBSTITUTE(SUBSTITUTE(SUBSTITUTE(SUBSTITUTE(SUBSTITUTE(SUBSTITUTE(SUBSTITUTE(SUBSTITUTE(S233,$ED233,$ED$2&ROW($ED233)),$EC233,$EC$2&ROW($EC233)),$EB233,$EB$2&ROW($EB233)),$EA233,$EA$2&ROW($EA233)),$DZ233,$DZ$2&ROW($DZ233)),$DY233,$DY$2&ROW($DY233)),$DX233,$DX$2&ROW($DX233)),$DW233,$DW$2&ROW($DW233)),$DV233,$DV$2&ROW($DV233)),$DU233,$DU$2&ROW($DU233)),$DT233,$DT$2&ROW($DT233)),$DS233,$DS$2&ROW($DS233)))","v":0},{"$f":"IF(T233=\"\",0,\"X=\"&SUBSTITUTE(SUBSTITUTE(SUBSTITUTE(SUBSTITUTE(SUBSTITUTE(SUBSTITUTE(SUBSTITUTE(SUBSTITUTE(SUBSTITUTE(SUBSTITUTE(SUBSTITUTE(SUBSTITUTE(T233,$ED233,$ED$2&ROW($ED233)),$EC233,$EC$2&ROW($EC233)),$EB233,$EB$2&ROW($EB233)),$EA233,$EA$2&ROW($EA233)),$DZ233,$DZ$2&ROW($DZ233)),$DY233,$DY$2&ROW($DY233)),$DX233,$DX$2&ROW($DX233)),$DW233,$DW$2&ROW($DW233)),$DV233,$DV$2&ROW($DV233)),$DU233,$DU$2&ROW($DU233)),$DT233,$DT$2&ROW($DT233)),$DS233,$DS$2&ROW($DS233)))","v":0},{"$f":"IF(U233=\"\",0,\"X=\"&SUBSTITUTE(SUBSTITUTE(SUBSTITUTE(SUBSTITUTE(SUBSTITUTE(SUBSTITUTE(SUBSTITUTE(SUBSTITUTE(SUBSTITUTE(SUBSTITUTE(SUBSTITUTE(SUBSTITUTE(U233,$ED233,$ED$2&ROW($ED233)),$EC233,$EC$2&ROW($EC233)),$EB233,$EB$2&ROW($EB233)),$EA233,$EA$2&ROW($EA233)),$DZ233,$DZ$2&ROW($DZ233)),$DY233,$DY$2&ROW($DY233)),$DX233,$DX$2&ROW($DX233)),$DW233,$DW$2&ROW($DW233)),$DV233,$DV$2&ROW($DV233)),$DU233,$DU$2&ROW($DU233)),$DT233,$DT$2&ROW($DT233)),$DS233,$DS$2&ROW($DS233)))","v":"X=AS233*AU233*0.008"},{"$f":"IF(V233=\"\",0,\"X=\"&SUBSTITUTE(SUBSTITUTE(SUBSTITUTE(SUBSTITUTE(SUBSTITUTE(SUBSTITUTE(SUBSTITUTE(SUBSTITUTE(SUBSTITUTE(SUBSTITUTE(SUBSTITUTE(SUBSTITUTE(V233,$ED233,$ED$2&ROW($ED233)),$EC233,$EC$2&ROW($EC233)),$EB233,$EB$2&ROW($EB233)),$EA233,$EA$2&ROW($EA233)),$DZ233,$DZ$2&ROW($DZ233)),$DY233,$DY$2&ROW($DY233)),$DX233,$DX$2&ROW($DX233)),$DW233,$DW$2&ROW($DW233)),$DV233,$DV$2&ROW($DV233)),$DU233,$DU$2&ROW($DU233)),$DT233,$DT$2&ROW($DT233)),$DS233,$DS$2&ROW($DS233)))","v":"X=AS233*AU233*0.005"},{"$f":"IF(W233=\"\",0,\"X=\"&SUBSTITUTE(SUBSTITUTE(SUBSTITUTE(SUBSTITUTE(SUBSTITUTE(SUBSTITUTE(SUBSTITUTE(SUBSTITUTE(SUBSTITUTE(SUBSTITUTE(SUBSTITUTE(SUBSTITUTE(W233,$ED233,$ED$2&ROW($ED233)),$EC233,$EC$2&ROW($EC233)),$EB233,$EB$2&ROW($EB233)),$EA233,$EA$2&ROW($EA233)),$DZ233,$DZ$2&ROW($DZ233)),$DY233,$DY$2&ROW($DY233)),$DX233,$DX$2&ROW($DX233)),$DW233,$DW$2&ROW($DW233)),$DV233,$DV$2&ROW($DV233)),$DU233,$DU$2&ROW($DU233)),$DT233,$DT$2&ROW($DT233)),$DS233,$DS$2&ROW($DS233)))","v":"X=AS233*AU233*10*-0.005"},{"$f":"IF(X233=\"\",0,\"X=\"&SUBSTITUTE(SUBSTITUTE(SUBSTITUTE(SUBSTITUTE(SUBSTITUTE(SUBSTITUTE(SUBSTITUTE(SUBSTITUTE(SUBSTITUTE(SUBSTITUTE(SUBSTITUTE(SUBSTITUTE(X233,$ED233,$ED$2&ROW($ED233)),$EC233,$EC$2&ROW($EC233)),$EB233,$EB$2&ROW($EB233)),$EA233,$EA$2&ROW($EA233)),$DZ233,$DZ$2&ROW($DZ233)),$DY233,$DY$2&ROW($DY233)),$DX233,$DX$2&ROW($DX233)),$DW233,$DW$2&ROW($DW233)),$DV233,$DV$2&ROW($DV233)),$DU233,$DU$2&ROW($DU233)),$DT233,$DT$2&ROW($DT233)),$DS233,$DS$2&ROW($DS233)))","v":"X=AS233*AU233*-0.004"},{"$f":"IF(Y233=\"\",0,\"X=\"&SUBSTITUTE(SUBSTITUTE(SUBSTITUTE(SUBSTITUTE(SUBSTITUTE(SUBSTITUTE(SUBSTITUTE(SUBSTITUTE(SUBSTITUTE(SUBSTITUTE(SUBSTITUTE(SUBSTITUTE(Y233,$ED233,$ED$2&ROW($ED233)),$EC233,$EC$2&ROW($EC233)),$EB233,$EB$2&ROW($EB233)),$EA233,$EA$2&ROW($EA233)),$DZ233,$DZ$2&ROW($DZ233)),$DY233,$DY$2&ROW($DY233)),$DX233,$DX$2&ROW($DX233)),$DW233,$DW$2&ROW($DW233)),$DV233,$DV$2&ROW($DV233)),$DU233,$DU$2&ROW($DU233)),$DT233,$DT$2&ROW($DT233)),$DS233,$DS$2&ROW($DS233)))","v":"X=AS233*AU233*-0.032"},{"$f":"IF(Z233=\"\",0,\"X=\"&SUBSTITUTE(SUBSTITUTE(SUBSTITUTE(SUBSTITUTE(SUBSTITUTE(SUBSTITUTE(SUBSTITUTE(SUBSTITUTE(SUBSTITUTE(SUBSTITUTE(SUBSTITUTE(SUBSTITUTE(Z233,$ED233,$ED$2&ROW($ED233)),$EC233,$EC$2&ROW($EC233)),$EB233,$EB$2&ROW($EB233)),$EA233,$EA$2&ROW($EA233)),$DZ233,$DZ$2&ROW($DZ233)),$DY233,$DY$2&ROW($DY233)),$DX233,$DX$2&ROW($DX233)),$DW233,$DW$2&ROW($DW233)),$DV233,$DV$2&ROW($DV233)),$DU233,$DU$2&ROW($DU233)),$DT233,$DT$2&ROW($DT233)),$DS233,$DS$2&ROW($DS233)))","v":"X=AS233*AU233*-0.001"},{"$f":"IF(AA233=\"\",0,\"X=\"&SUBSTITUTE(SUBSTITUTE(SUBSTITUTE(SUBSTITUTE(SUBSTITUTE(SUBSTITUTE(SUBSTITUTE(SUBSTITUTE(SUBSTITUTE(SUBSTITUTE(SUBSTITUTE(SUBSTITUTE(AA233,$ED233,$ED$2&ROW($ED233)),$EC233,$EC$2&ROW($EC233)),$EB233,$EB$2&ROW($EB233)),$EA233,$EA$2&ROW($EA233)),$DZ233,$DZ$2&ROW($DZ233)),$DY233,$DY$2&ROW($DY233)),$DX233,$DX$2&ROW($DX233)),$DW233,$DW$2&ROW($DW233)),$DV233,$DV$2&ROW($DV233)),$DU233,$DU$2&ROW($DU233)),$DT233,$DT$2&ROW($DT233)),$DS233,$DS$2&ROW($DS233)))","v":"X=AS233*AU233*-0.007"},{"$f":"IF(AB233=\"\",0,\"X=\"&SUBSTITUTE(SUBSTITUTE(SUBSTITUTE(SUBSTITUTE(SUBSTITUTE(SUBSTITUTE(SUBSTITUTE(SUBSTITUTE(SUBSTITUTE(SUBSTITUTE(SUBSTITUTE(SUBSTITUTE(AB233,$ED233,$ED$2&ROW($ED233)),$EC233,$EC$2&ROW($EC233)),$EB233,$EB$2&ROW($EB233)),$EA233,$EA$2&ROW($EA233)),$DZ233,$DZ$2&ROW($DZ233)),$DY233,$DY$2&ROW($DY233)),$DX233,$DX$2&ROW($DX233)),$DW233,$DW$2&ROW($DW233)),$DV233,$DV$2&ROW($DV233)),$DU233,$DU$2&ROW($DU233)),$DT233,$DT$2&ROW($DT233)),$DS233,$DS$2&ROW($DS233)))","v":0},null,null,"{Factor:WinterCF}","{Factor:SummerCF}",{"$f":"IFERROR(INDEX($EG233:$IV233,MATCH(0,COUNTIF($DR233:DT233,$EG233:$IV233),0)),\"\")","v":"{Measure:Quantity}"},{"$f":"IFERROR(INDEX($EG233:$IV233,MATCH(0,COUNTIF($DR233:DU233,$EG233:$IV233),0)),\"\")","v":"{Package Size}"},{"$f":"IFERROR(INDEX($EG233:$IV233,MATCH(0,COUNTIF($DR233:DV233,$EG233:$IV233),0)),\"\")","v":"{Rebate per Package}"},{"$f":"IFERROR(INDEX($EG233:$IV233,MATCH(0,COUNTIF($DR233:DW233,$EG233:$IV233),0)),\"\")","v":"{Marketing Fee}"},{"$f":"IFERROR(INDEX($EG233:$IV233,MATCH(0,COUNTIF($DR233:DX233,$EG233:$IV233),0)),\"\")","v":""},{"$f":"IFERROR(INDEX($EG233:$IV233,MATCH(0,COUNTIF($DR233:DY233,$EG233:$IV233),0)),\"\")","v":""},{"$f":"IFERROR(INDEX($EG233:$IV233,MATCH(0,COUNTIF($DR233:DZ233,$EG233:$IV233),0)),\"\")","v":""},{"$f":"IFERROR(INDEX($EG233:$IV233,MATCH(0,COUNTIF($DR233:EA233,$EG233:$IV233),0)),\"\")","v":""},{"$f":"IFERROR(INDEX($EG233:$IV233,MATCH(0,COUNTIF($DR233:EB233,$EG233:$IV233),0)),\"\")","v":""},{"$f":"IFERROR(INDEX($EG233:$IV233,MATCH(0,COUNTIF($DR233:EC233,$EG233:$IV233),0)),\"\")","v":""},null,null,{"$f":"IFERROR(MID($G233,FIND(CHAR(160),SUBSTITUTE($G233,\"{\",CHAR(160),EG$1)),FIND(CHAR(160),SUBSTITUTE($G233,\"}\",CHAR(160),EG$1))-FIND(CHAR(160),SUBSTITUTE($G233,\"{\",CHAR(160),EG$1))+1),\"\")","v":"{Measure:Quantity}"},{"$f":"IFERROR(MID($G233,FIND(CHAR(160),SUBSTITUTE($G233,\"{\",CHAR(160),EH$1)),FIND(CHAR(160),SUBSTITUTE($G233,\"}\",CHAR(160),EH$1))-FIND(CHAR(160),SUBSTITUTE($G233,\"{\",CHAR(160),EH$1))+1),\"\")","v":"{Package Size}"},{"$f":"IFERROR(MID($G233,FIND(CHAR(160),SUBSTITUTE($G233,\"{\",CHAR(160),EI$1)),FIND(CHAR(160),SUBSTITUTE($G233,\"}\",CHAR(160),EI$1))-FIND(CHAR(160),SUBSTITUTE($G233,\"{\",CHAR(160),EI$1))+1),\"\")","v":""},{"$f":"IFERROR(MID($G233,FIND(CHAR(160),SUBSTITUTE($G233,\"{\",CHAR(160),EJ$1)),FIND(CHAR(160),SUBSTITUTE($G233,\"}\",CHAR(160),EJ$1))-FIND(CHAR(160),SUBSTITUTE($G233,\"{\",CHAR(160),EJ$1))+1),\"\")","v":""},{"$f":"IFERROR(MID($G233,FIND(CHAR(160),SUBSTITUTE($G233,\"{\",CHAR(160),EK$1)),FIND(CHAR(160),SUBSTITUTE($G233,\"}\",CHAR(160),EK$1))-FIND(CHAR(160),SUBSTITUTE($G233,\"{\",CHAR(160),EK$1))+1),\"\")","v":""},{"$f":"IFERROR(MID($G233,FIND(CHAR(160),SUBSTITUTE($G233,\"{\",CHAR(160),EL$1)),FIND(CHAR(160),SUBSTITUTE($G233,\"}\",CHAR(160),EL$1))-FIND(CHAR(160),SUBSTITUTE($G233,\"{\",CHAR(160),EL$1))+1),\"\")","v":""},{"$f":"IFERROR(MID($G233,FIND(CHAR(160),SUBSTITUTE($G233,\"{\",CHAR(160),EM$1)),FIND(CHAR(160),SUBSTITUTE($G233,\"}\",CHAR(160),EM$1))-FIND(CHAR(160),SUBSTITUTE($G233,\"{\",CHAR(160),EM$1))+1),\"\")","v":""},{"$f":"IFERROR(MID($G233,FIND(CHAR(160),SUBSTITUTE($G233,\"{\",CHAR(160),EN$1)),FIND(CHAR(160),SUBSTITUTE($G233,\"}\",CHAR(160),EN$1))-FIND(CHAR(160),SUBSTITUTE($G233,\"{\",CHAR(160),EN$1))+1),\"\")","v":""},{"$f":"IFERROR(MID($G233,FIND(CHAR(160),SUBSTITUTE($G233,\"{\",CHAR(160),EO$1)),FIND(CHAR(160),SUBSTITUTE($G233,\"}\",CHAR(160),EO$1))-FIND(CHAR(160),SUBSTITUTE($G233,\"{\",CHAR(160),EO$1))+1),\"\")","v":""},{"$f":"IFERROR(MID($G233,FIND(CHAR(160),SUBSTITUTE($G233,\"{\",CHAR(160),EP$1)),FIND(CHAR(160),SUBSTITUTE($G233,\"}\",CHAR(160),EP$1))-FIND(CHAR(160),SUBSTITUTE($G233,\"{\",CHAR(160),EP$1))+1),\"\")","v":""},{"$f":"IFERROR(MID($J233,FIND(CHAR(160),SUBSTITUTE($J233,\"{\",CHAR(160),EQ$1)),FIND(CHAR(160),SUBSTITUTE($J233,\"}\",CHAR(160),EQ$1))-FIND(CHAR(160),SUBSTITUTE($J233,\"{\",CHAR(160),EQ$1))+1),\"\")","v":"{Measure:Quantity}"},{"$f":"IFERROR(MID($J233,FIND(CHAR(160),SUBSTITUTE($J233,\"{\",CHAR(160),ER$1)),FIND(CHAR(160),SUBSTITUTE($J233,\"}\",CHAR(160),ER$1))-FIND(CHAR(160),SUBSTITUTE($J233,\"{\",CHAR(160),ER$1))+1),\"\")","v":"{Rebate per Package}"},{"$f":"IFERROR(MID($J233,FIND(CHAR(160),SUBSTITUTE($J233,\"{\",CHAR(160),ES$1)),FIND(CHAR(160),SUBSTITUTE($J233,\"}\",CHAR(160),ES$1))-FIND(CHAR(160),SUBSTITUTE($J233,\"{\",CHAR(160),ES$1))+1),\"\")","v":"{Marketing Fee}"},{"$f":"IFERROR(MID($J233,FIND(CHAR(160),SUBSTITUTE($J233,\"{\",CHAR(160),ET$1)),FIND(CHAR(160),SUBSTITUTE($J233,\"}\",CHAR(160),ET$1))-FIND(CHAR(160),SUBSTITUTE($J233,\"{\",CHAR(160),ET$1))+1),\"\")","v":""},{"$f":"IFERROR(MID($J233,FIND(CHAR(160),SUBSTITUTE($J233,\"{\",CHAR(160),EU$1)),FIND(CHAR(160),SUBSTITUTE($J233,\"}\",CHAR(160),EU$1))-FIND(CHAR(160),SUBSTITUTE($J233,\"{\",CHAR(160),EU$1))+1),\"\")","v":""},{"$f":"IFERROR(MID($J233,FIND(CHAR(160),SUBSTITUTE($J233,\"{\",CHAR(160),EV$1)),FIND(CHAR(160),SUBSTITUTE($J233,\"}\",CHAR(160),EV$1))-FIND(CHAR(160),SUBSTITUTE($J233,\"{\",CHAR(160),EV$1))+1),\"\")","v":""},{"$f":"IFERROR(MID($J233,FIND(CHAR(160),SUBSTITUTE($J233,\"{\",CHAR(160),EW$1)),FIND(CHAR(160),SUBSTITUTE($J233,\"}\",CHAR(160),EW$1))-FIND(CHAR(160),SUBSTITUTE($J233,\"{\",CHAR(160),EW$1))+1),\"\")","v":""},{"$f":"IFERROR(MID($J233,FIND(CHAR(160),SUBSTITUTE($J233,\"{\",CHAR(160),EX$1)),FIND(CHAR(160),SUBSTITUTE($J233,\"}\",CHAR(160),EX$1))-FIND(CHAR(160),SUBSTITUTE($J233,\"{\",CHAR(160),EX$1))+1),\"\")","v":""},{"$f":"IFERROR(MID($J233,FIND(CHAR(160),SUBSTITUTE($J233,\"{\",CHAR(160),EY$1)),FIND(CHAR(160),SUBSTITUTE($J233,\"}\",CHAR(160),EY$1))-FIND(CHAR(160),SUBSTITUTE($J233,\"{\",CHAR(160),EY$1))+1),\"\")","v":""},{"$f":"IFERROR(MID($J233,FIND(CHAR(160),SUBSTITUTE($J233,\"{\",CHAR(160),EZ$1)),FIND(CHAR(160),SUBSTITUTE($J233,\"}\",CHAR(160),EZ$1))-FIND(CHAR(160),SUBSTITUTE($J233,\"{\",CHAR(160),EZ$1))+1),\"\")","v":""},{"$f":"IFERROR(MID($J233,FIND(CHAR(160),SUBSTITUTE($J233,\"{\",CHAR(160),FA$1)),FIND(CHAR(160),SUBSTITUTE($J233,\"}\",CHAR(160),FA$1))-FIND(CHAR(160),SUBSTITUTE($J233,\"{\",CHAR(160),FA$1))+1),\"\")","v":"{Measure:Quantity}"},{"$f":"IFERROR(MID($J233,FIND(CHAR(160),SUBSTITUTE($J233,\"{\",CHAR(160),FB$1)),FIND(CHAR(160),SUBSTITUTE($J233,\"}\",CHAR(160),FB$1))-FIND(CHAR(160),SUBSTITUTE($J233,\"{\",CHAR(160),FB$1))+1),\"\")","v":"{Rebate per Package}"},{"$f":"IFERROR(MID($O233,FIND(CHAR(160),SUBSTITUTE($O233,\"{\",CHAR(160),FC$1)),FIND(CHAR(160),SUBSTITUTE($O233,\"}\",CHAR(160),FC$1))-FIND(CHAR(160),SUBSTITUTE($O233,\"{\",CHAR(160),FC$1))+1),\"\")","v":""},{"$f":"IFERROR(MID($O233,FIND(CHAR(160),SUBSTITUTE($O233,\"{\",CHAR(160),FD$1)),FIND(CHAR(160),SUBSTITUTE($O233,\"}\",CHAR(160),FD$1))-FIND(CHAR(160),SUBSTITUTE($O233,\"{\",CHAR(160),FD$1))+1),\"\")","v":""},{"$f":"IFERROR(MID($O233,FIND(CHAR(160),SUBSTITUTE($O233,\"{\",CHAR(160),FE$1)),FIND(CHAR(160),SUBSTITUTE($O233,\"}\",CHAR(160),FE$1))-FIND(CHAR(160),SUBSTITUTE($O233,\"{\",CHAR(160),FE$1))+1),\"\")","v":""},{"$f":"IFERROR(MID($O233,FIND(CHAR(160),SUBSTITUTE($O233,\"{\",CHAR(160),FF$1)),FIND(CHAR(160),SUBSTITUTE($O233,\"}\",CHAR(160),FF$1))-FIND(CHAR(160),SUBSTITUTE($O233,\"{\",CHAR(160),FF$1))+1),\"\")","v":""},{"$f":"IFERROR(MID($O233,FIND(CHAR(160),SUBSTITUTE($O233,\"{\",CHAR(160),FG$1)),FIND(CHAR(160),SUBSTITUTE($O233,\"}\",CHAR(160),FG$1))-FIND(CHAR(160),SUBSTITUTE($O233,\"{\",CHAR(160),FG$1))+1),\"\")","v":""},{"$f":"IFERROR(MID($O233,FIND(CHAR(160),SUBSTITUTE($O233,\"{\",CHAR(160),FH$1)),FIND(CHAR(160),SUBSTITUTE($O233,\"}\",CHAR(160),FH$1))-FIND(CHAR(160),SUBSTITUTE($O233,\"{\",CHAR(160),FH$1))+1),\"\")","v":""},{"$f":"IFERROR(MID($O233,FIND(CHAR(160),SUBSTITUTE($O233,\"{\",CHAR(160),FI$1)),FIND(CHAR(160),SUBSTITUTE($O233,\"}\",CHAR(160),FI$1))-FIND(CHAR(160),SUBSTITUTE($O233,\"{\",CHAR(160),FI$1))+1),\"\")","v":""},{"$f":"IFERROR(MID($O233,FIND(CHAR(160),SUBSTITUTE($O233,\"{\",CHAR(160),FJ$1)),FIND(CHAR(160),SUBSTITUTE($O233,\"}\",CHAR(160),FJ$1))-FIND(CHAR(160),SUBSTITUTE($O233,\"{\",CHAR(160),FJ$1))+1),\"\")","v":""},{"$f":"IFERROR(MID($O233,FIND(CHAR(160),SUBSTITUTE($O233,\"{\",CHAR(160),FK$1)),FIND(CHAR(160),SUBSTITUTE($O233,\"}\",CHAR(160),FK$1))-FIND(CHAR(160),SUBSTITUTE($O233,\"{\",CHAR(160),FK$1))+1),\"\")","v":"{Measure:Quantity}"},{"$f":"IFERROR(MID($O233,FIND(CHAR(160),SUBSTITUTE($O233,\"{\",CHAR(160),FL$1)),FIND(CHAR(160),SUBSTITUTE($O233,\"}\",CHAR(160),FL$1))-FIND(CHAR(160),SUBSTITUTE($O233,\"{\",CHAR(160),FL$1))+1),\"\")","v":"{Package Size}"},{"$f":"IFERROR(MID($R233,FIND(CHAR(160),SUBSTITUTE($R233,\"{\",CHAR(160),FM$1)),FIND(CHAR(160),SUBSTITUTE($R233,\"}\",CHAR(160),FM$1))-FIND(CHAR(160),SUBSTITUTE($R233,\"{\",CHAR(160),FM$1))+1),\"\")","v":""},{"$f":"IFERROR(MID($R233,FIND(CHAR(160),SUBSTITUTE($R233,\"{\",CHAR(160),FN$1)),FIND(CHAR(160),SUBSTITUTE($R233,\"}\",CHAR(160),FN$1))-FIND(CHAR(160),SUBSTITUTE($R233,\"{\",CHAR(160),FN$1))+1),\"\")","v":""},{"$f":"IFERROR(MID($R233,FIND(CHAR(160),SUBSTITUTE($R233,\"{\",CHAR(160),FO$1)),FIND(CHAR(160),SUBSTITUTE($R233,\"}\",CHAR(160),FO$1))-FIND(CHAR(160),SUBSTITUTE($R233,\"{\",CHAR(160),FO$1))+1),\"\")","v":""},{"$f":"IFERROR(MID($R233,FIND(CHAR(160),SUBSTITUTE($R233,\"{\",CHAR(160),FP$1)),FIND(CHAR(160),SUBSTITUTE($R233,\"}\",CHAR(160),FP$1))-FIND(CHAR(160),SUBSTITUTE($R233,\"{\",CHAR(160),FP$1))+1),\"\")","v":""},{"$f":"IFERROR(MID($R233,FIND(CHAR(160),SUBSTITUTE($R233,\"{\",CHAR(160),FQ$1)),FIND(CHAR(160),SUBSTITUTE($R233,\"}\",CHAR(160),FQ$1))-FIND(CHAR(160),SUBSTITUTE($R233,\"{\",CHAR(160),FQ$1))+1),\"\")","v":""},{"$f":"IFERROR(MID($R233,FIND(CHAR(160),SUBSTITUTE($R233,\"{\",CHAR(160),FR$1)),FIND(CHAR(160),SUBSTITUTE($R233,\"}\",CHAR(160),FR$1))-FIND(CHAR(160),SUBSTITUTE($R233,\"{\",CHAR(160),FR$1))+1),\"\")","v":""},{"$f":"IFERROR(MID($R233,FIND(CHAR(160),SUBSTITUTE($R233,\"{\",CHAR(160),FS$1)),FIND(CHAR(160),SUBSTITUTE($R233,\"}\",CHAR(160),FS$1))-FIND(CHAR(160),SUBSTITUTE($R233,\"{\",CHAR(160),FS$1))+1),\"\")","v":""},{"$f":"IFERROR(MID($R233,FIND(CHAR(160),SUBSTITUTE($R233,\"{\",CHAR(160),FT$1)),FIND(CHAR(160),SUBSTITUTE($R233,\"}\",CHAR(160),FT$1))-FIND(CHAR(160),SUBSTITUTE($R233,\"{\",CHAR(160),FT$1))+1),\"\")","v":""},{"$f":"IFERROR(MID($R233,FIND(CHAR(160),SUBSTITUTE($R233,\"{\",CHAR(160),FU$1)),FIND(CHAR(160),SUBSTITUTE($R233,\"}\",CHAR(160),FU$1))-FIND(CHAR(160),SUBSTITUTE($R233,\"{\",CHAR(160),FU$1))+1),\"\")","v":"{Measure:Quantity}"},{"$f":"IFERROR(MID($R233,FIND(CHAR(160),SUBSTITUTE($R233,\"{\",CHAR(160),FV$1)),FIND(CHAR(160),SUBSTITUTE($R233,\"}\",CHAR(160),FV$1))-FIND(CHAR(160),SUBSTITUTE($R233,\"{\",CHAR(160),FV$1))+1),\"\")","v":"{Package Size}"},{"$f":"IFERROR(MID($U233,FIND(CHAR(160),SUBSTITUTE($U233,\"{\",CHAR(160),FW$1)),FIND(CHAR(160),SUBSTITUTE($U233,\"}\",CHAR(160),FW$1))-FIND(CHAR(160),SUBSTITUTE($U233,\"{\",CHAR(160),FW$1))+1),\"\")","v":""},{"$f":"IFERROR(MID($U233,FIND(CHAR(160),SUBSTITUTE($U233,\"{\",CHAR(160),FX$1)),FIND(CHAR(160),SUBSTITUTE($U233,\"}\",CHAR(160),FX$1))-FIND(CHAR(160),SUBSTITUTE($U233,\"{\",CHAR(160),FX$1))+1),\"\")","v":""},{"$f":"IFERROR(MID($U233,FIND(CHAR(160),SUBSTITUTE($U233,\"{\",CHAR(160),FY$1)),FIND(CHAR(160),SUBSTITUTE($U233,\"}\",CHAR(160),FY$1))-FIND(CHAR(160),SUBSTITUTE($U233,\"{\",CHAR(160),FY$1))+1),\"\")","v":""},{"$f":"IFERROR(MID($U233,FIND(CHAR(160),SUBSTITUTE($U233,\"{\",CHAR(160),FZ$1)),FIND(CHAR(160),SUBSTITUTE($U233,\"}\",CHAR(160),FZ$1))-FIND(CHAR(160),SUBSTITUTE($U233,\"{\",CHAR(160),FZ$1))+1),\"\")","v":""},{"$f":"IFERROR(MID($U233,FIND(CHAR(160),SUBSTITUTE($U233,\"{\",CHAR(160),GA$1)),FIND(CHAR(160),SUBSTITUTE($U233,\"}\",CHAR(160),GA$1))-FIND(CHAR(160),SUBSTITUTE($U233,\"{\",CHAR(160),GA$1))+1),\"\")","v":""},{"$f":"IFERROR(MID($U233,FIND(CHAR(160),SUBSTITUTE($U233,\"{\",CHAR(160),GB$1)),FIND(CHAR(160),SUBSTITUTE($U233,\"}\",CHAR(160),GB$1))-FIND(CHAR(160),SUBSTITUTE($U233,\"{\",CHAR(160),GB$1))+1),\"\")","v":""},{"$f":"IFERROR(MID($U233,FIND(CHAR(160),SUBSTITUTE($U233,\"{\",CHAR(160),GC$1)),FIND(CHAR(160),SUBSTITUTE($U233,\"}\",CHAR(160),GC$1))-FIND(CHAR(160),SUBSTITUTE($U233,\"{\",CHAR(160),GC$1))+1),\"\")","v":""},{"$f":"IFERROR(MID($U233,FIND(CHAR(160),SUBSTITUTE($U233,\"{\",CHAR(160),GD$1)),FIND(CHAR(160),SUBSTITUTE($U233,\"}\",CHAR(160),GD$1))-FIND(CHAR(160),SUBSTITUTE($U233,\"{\",CHAR(160),GD$1))+1),\"\")","v":""},{"$f":"IFERROR(MID($U233,FIND(CHAR(160),SUBSTITUTE($U233,\"{\",CHAR(160),GE$1)),FIND(CHAR(160),SUBSTITUTE($U233,\"}\",CHAR(160),GE$1))-FIND(CHAR(160),SUBSTITUTE($U233,\"{\",CHAR(160),GE$1))+1),\"\")","v":"{Measure:Quantity}"},{"$f":"IFERROR(MID($U233,FIND(CHAR(160),SUBSTITUTE($U233,\"{\",CHAR(160),GF$1)),FIND(CHAR(160),SUBSTITUTE($U233,\"}\",CHAR(160),GF$1))-FIND(CHAR(160),SUBSTITUTE($U233,\"{\",CHAR(160),GF$1))+1),\"\")","v":"{Package Size}"},{"$f":"IFERROR(MID($V233,FIND(CHAR(160),SUBSTITUTE($V233,\"{\",CHAR(160),GG$1)),FIND(CHAR(160),SUBSTITUTE($V233,\"}\",CHAR(160),GG$1))-FIND(CHAR(160),SUBSTITUTE($V233,\"{\",CHAR(160),GG$1))+1),\"\")","v":""},{"$f":"IFERROR(MID($V233,FIND(CHAR(160),SUBSTITUTE($V233,\"{\",CHAR(160),GH$1)),FIND(CHAR(160),SUBSTITUTE($V233,\"}\",CHAR(160),GH$1))-FIND(CHAR(160),SUBSTITUTE($V233,\"{\",CHAR(160),GH$1))+1),\"\")","v":""},{"$f":"IFERROR(MID($V233,FIND(CHAR(160),SUBSTITUTE($V233,\"{\",CHAR(160),GI$1)),FIND(CHAR(160),SUBSTITUTE($V233,\"}\",CHAR(160),GI$1))-FIND(CHAR(160),SUBSTITUTE($V233,\"{\",CHAR(160),GI$1))+1),\"\")","v":""},{"$f":"IFERROR(MID($V233,FIND(CHAR(160),SUBSTITUTE($V233,\"{\",CHAR(160),GJ$1)),FIND(CHAR(160),SUBSTITUTE($V233,\"}\",CHAR(160),GJ$1))-FIND(CHAR(160),SUBSTITUTE($V233,\"{\",CHAR(160),GJ$1))+1),\"\")","v":""},{"$f":"IFERROR(MID($V233,FIND(CHAR(160),SUBSTITUTE($V233,\"{\",CHAR(160),GK$1)),FIND(CHAR(160),SUBSTITUTE($V233,\"}\",CHAR(160),GK$1))-FIND(CHAR(160),SUBSTITUTE($V233,\"{\",CHAR(160),GK$1))+1),\"\")","v":""},{"$f":"IFERROR(MID($V233,FIND(CHAR(160),SUBSTITUTE($V233,\"{\",CHAR(160),GL$1)),FIND(CHAR(160),SUBSTITUTE($V233,\"}\",CHAR(160),GL$1))-FIND(CHAR(160),SUBSTITUTE($V233,\"{\",CHAR(160),GL$1))+1),\"\")","v":""},{"$f":"IFERROR(MID($V233,FIND(CHAR(160),SUBSTITUTE($V233,\"{\",CHAR(160),GM$1)),FIND(CHAR(160),SUBSTITUTE($V233,\"}\",CHAR(160),GM$1))-FIND(CHAR(160),SUBSTITUTE($V233,\"{\",CHAR(160),GM$1))+1),\"\")","v":""},{"$f":"IFERROR(MID($V233,FIND(CHAR(160),SUBSTITUTE($V233,\"{\",CHAR(160),GN$1)),FIND(CHAR(160),SUBSTITUTE($V233,\"}\",CHAR(160),GN$1))-FIND(CHAR(160),SUBSTITUTE($V233,\"{\",CHAR(160),GN$1))+1),\"\")","v":""},{"$f":"IFERROR(MID($V233,FIND(CHAR(160),SUBSTITUTE($V233,\"{\",CHAR(160),GO$1)),FIND(CHAR(160),SUBSTITUTE($V233,\"}\",CHAR(160),GO$1))-FIND(CHAR(160),SUBSTITUTE($V233,\"{\",CHAR(160),GO$1))+1),\"\")","v":"{Measure:Quantity}"},{"$f":"IFERROR(MID($V233,FIND(CHAR(160),SUBSTITUTE($V233,\"{\",CHAR(160),GP$1)),FIND(CHAR(160),SUBSTITUTE($V233,\"}\",CHAR(160),GP$1))-FIND(CHAR(160),SUBSTITUTE($V233,\"{\",CHAR(160),GP$1))+1),\"\")","v":"{Package Size}"},{"$f":"IFERROR(MID($W233,FIND(CHAR(160),SUBSTITUTE($W233,\"{\",CHAR(160),GQ$1)),FIND(CHAR(160),SUBSTITUTE($W233,\"}\",CHAR(160),GQ$1))-FIND(CHAR(160),SUBSTITUTE($W233,\"{\",CHAR(160),GQ$1))+1),\"\")","v":""},{"$f":"IFERROR(MID($W233,FIND(CHAR(160),SUBSTITUTE($W233,\"{\",CHAR(160),GR$1)),FIND(CHAR(160),SUBSTITUTE($W233,\"}\",CHAR(160),GR$1))-FIND(CHAR(160),SUBSTITUTE($W233,\"{\",CHAR(160),GR$1))+1),\"\")","v":""},{"$f":"IFERROR(MID($W233,FIND(CHAR(160),SUBSTITUTE($W233,\"{\",CHAR(160),GS$1)),FIND(CHAR(160),SUBSTITUTE($W233,\"}\",CHAR(160),GS$1))-FIND(CHAR(160),SUBSTITUTE($W233,\"{\",CHAR(160),GS$1))+1),\"\")","v":""},{"$f":"IFERROR(MID($W233,FIND(CHAR(160),SUBSTITUTE($W233,\"{\",CHAR(160),GT$1)),FIND(CHAR(160),SUBSTITUTE($W233,\"}\",CHAR(160),GT$1))-FIND(CHAR(160),SUBSTITUTE($W233,\"{\",CHAR(160),GT$1))+1),\"\")","v":""},{"$f":"IFERROR(MID($W233,FIND(CHAR(160),SUBSTITUTE($W233,\"{\",CHAR(160),GU$1)),FIND(CHAR(160),SUBSTITUTE($W233,\"}\",CHAR(160),GU$1))-FIND(CHAR(160),SUBSTITUTE($W233,\"{\",CHAR(160),GU$1))+1),\"\")","v":""},{"$f":"IFERROR(MID($W233,FIND(CHAR(160),SUBSTITUTE($W233,\"{\",CHAR(160),GV$1)),FIND(CHAR(160),SUBSTITUTE($W233,\"}\",CHAR(160),GV$1))-FIND(CHAR(160),SUBSTITUTE($W233,\"{\",CHAR(160),GV$1))+1),\"\")","v":""},{"$f":"IFERROR(MID($W233,FIND(CHAR(160),SUBSTITUTE($W233,\"{\",CHAR(160),GW$1)),FIND(CHAR(160),SUBSTITUTE($W233,\"}\",CHAR(160),GW$1))-FIND(CHAR(160),SUBSTITUTE($W233,\"{\",CHAR(160),GW$1))+1),\"\")","v":""},{"$f":"IFERROR(MID($W233,FIND(CHAR(160),SUBSTITUTE($W233,\"{\",CHAR(160),GX$1)),FIND(CHAR(160),SUBSTITUTE($W233,\"}\",CHAR(160),GX$1))-FIND(CHAR(160),SUBSTITUTE($W233,\"{\",CHAR(160),GX$1))+1),\"\")","v":""},{"$f":"IFERROR(MID($W233,FIND(CHAR(160),SUBSTITUTE($W233,\"{\",CHAR(160),GY$1)),FIND(CHAR(160),SUBSTITUTE($W233,\"}\",CHAR(160),GY$1))-FIND(CHAR(160),SUBSTITUTE($W233,\"{\",CHAR(160),GY$1))+1),\"\")","v":"{Measure:Quantity}"},{"$f":"IFERROR(MID($W233,FIND(CHAR(160),SUBSTITUTE($W233,\"{\",CHAR(160),GZ$1)),FIND(CHAR(160),SUBSTITUTE($W233,\"}\",CHAR(160),GZ$1))-FIND(CHAR(160),SUBSTITUTE($W233,\"{\",CHAR(160),GZ$1))+1),\"\")","v":"{Package Size}"},{"$f":"IFERROR(MID($X233,FIND(CHAR(160),SUBSTITUTE($X233,\"{\",CHAR(160),HA$1)),FIND(CHAR(160),SUBSTITUTE($X233,\"}\",CHAR(160),HA$1))-FIND(CHAR(160),SUBSTITUTE($X233,\"{\",CHAR(160),HA$1))+1),\"\")","v":""},{"$f":"IFERROR(MID($X233,FIND(CHAR(160),SUBSTITUTE($X233,\"{\",CHAR(160),HB$1)),FIND(CHAR(160),SUBSTITUTE($X233,\"}\",CHAR(160),HB$1))-FIND(CHAR(160),SUBSTITUTE($X233,\"{\",CHAR(160),HB$1))+1),\"\")","v":""},{"$f":"IFERROR(MID($X233,FIND(CHAR(160),SUBSTITUTE($X233,\"{\",CHAR(160),HC$1)),FIND(CHAR(160),SUBSTITUTE($X233,\"}\",CHAR(160),HC$1))-FIND(CHAR(160),SUBSTITUTE($X233,\"{\",CHAR(160),HC$1))+1),\"\")","v":""},{"$f":"IFERROR(MID($X233,FIND(CHAR(160),SUBSTITUTE($X233,\"{\",CHAR(160),HD$1)),FIND(CHAR(160),SUBSTITUTE($X233,\"}\",CHAR(160),HD$1))-FIND(CHAR(160),SUBSTITUTE($X233,\"{\",CHAR(160),HD$1))+1),\"\")","v":""},{"$f":"IFERROR(MID($X233,FIND(CHAR(160),SUBSTITUTE($X233,\"{\",CHAR(160),HE$1)),FIND(CHAR(160),SUBSTITUTE($X233,\"}\",CHAR(160),HE$1))-FIND(CHAR(160),SUBSTITUTE($X233,\"{\",CHAR(160),HE$1))+1),\"\")","v":""},{"$f":"IFERROR(MID($X233,FIND(CHAR(160),SUBSTITUTE($X233,\"{\",CHAR(160),HF$1)),FIND(CHAR(160),SUBSTITUTE($X233,\"}\",CHAR(160),HF$1))-FIND(CHAR(160),SUBSTITUTE($X233,\"{\",CHAR(160),HF$1))+1),\"\")","v":""},{"$f":"IFERROR(MID($X233,FIND(CHAR(160),SUBSTITUTE($X233,\"{\",CHAR(160),HG$1)),FIND(CHAR(160),SUBSTITUTE($X233,\"}\",CHAR(160),HG$1))-FIND(CHAR(160),SUBSTITUTE($X233,\"{\",CHAR(160),HG$1))+1),\"\")","v":""},{"$f":"IFERROR(MID($X233,FIND(CHAR(160),SUBSTITUTE($X233,\"{\",CHAR(160),HH$1)),FIND(CHAR(160),SUBSTITUTE($X233,\"}\",CHAR(160),HH$1))-FIND(CHAR(160),SUBSTITUTE($X233,\"{\",CHAR(160),HH$1))+1),\"\")","v":""},{"$f":"IFERROR(MID($X233,FIND(CHAR(160),SUBSTITUTE($X233,\"{\",CHAR(160),HI$1)),FIND(CHAR(160),SUBSTITUTE($X233,\"}\",CHAR(160),HI$1))-FIND(CHAR(160),SUBSTITUTE($X233,\"{\",CHAR(160),HI$1))+1),\"\")","v":"{Measure:Quantity}"},{"$f":"IFERROR(MID($X233,FIND(CHAR(160),SUBSTITUTE($X233,\"{\",CHAR(160),HJ$1)),FIND(CHAR(160),SUBSTITUTE($X233,\"}\",CHAR(160),HJ$1))-FIND(CHAR(160),SUBSTITUTE($X233,\"{\",CHAR(160),HJ$1))+1),\"\")","v":"{Package Size}"},{"$f":"IFERROR(MID($Y233,FIND(CHAR(160),SUBSTITUTE($Y233,\"{\",CHAR(160),HK$1)),FIND(CHAR(160),SUBSTITUTE($Y233,\"}\",CHAR(160),HK$1))-FIND(CHAR(160),SUBSTITUTE($Y233,\"{\",CHAR(160),HK$1))+1),\"\")","v":""},{"$f":"IFERROR(MID($Y233,FIND(CHAR(160),SUBSTITUTE($Y233,\"{\",CHAR(160),HL$1)),FIND(CHAR(160),SUBSTITUTE($Y233,\"}\",CHAR(160),HL$1))-FIND(CHAR(160),SUBSTITUTE($Y233,\"{\",CHAR(160),HL$1))+1),\"\")","v":""},{"$f":"IFERROR(MID($Y233,FIND(CHAR(160),SUBSTITUTE($Y233,\"{\",CHAR(160),HM$1)),FIND(CHAR(160),SUBSTITUTE($Y233,\"}\",CHAR(160),HM$1))-FIND(CHAR(160),SUBSTITUTE($Y233,\"{\",CHAR(160),HM$1))+1),\"\")","v":""},{"$f":"IFERROR(MID($Y233,FIND(CHAR(160),SUBSTITUTE($Y233,\"{\",CHAR(160),HN$1)),FIND(CHAR(160),SUBSTITUTE($Y233,\"}\",CHAR(160),HN$1))-FIND(CHAR(160),SUBSTITUTE($Y233,\"{\",CHAR(160),HN$1))+1),\"\")","v":""},{"$f":"IFERROR(MID($Y233,FIND(CHAR(160),SUBSTITUTE($Y233,\"{\",CHAR(160),HO$1)),FIND(CHAR(160),SUBSTITUTE($Y233,\"}\",CHAR(160),HO$1))-FIND(CHAR(160),SUBSTITUTE($Y233,\"{\",CHAR(160),HO$1))+1),\"\")","v":""},{"$f":"IFERROR(MID($Y233,FIND(CHAR(160),SUBSTITUTE($Y233,\"{\",CHAR(160),HP$1)),FIND(CHAR(160),SUBSTITUTE($Y233,\"}\",CHAR(160),HP$1))-FIND(CHAR(160),SUBSTITUTE($Y233,\"{\",CHAR(160),HP$1))+1),\"\")","v":""},{"$f":"IFERROR(MID($Y233,FIND(CHAR(160),SUBSTITUTE($Y233,\"{\",CHAR(160),HQ$1)),FIND(CHAR(160),SUBSTITUTE($Y233,\"}\",CHAR(160),HQ$1))-FIND(CHAR(160),SUBSTITUTE($Y233,\"{\",CHAR(160),HQ$1))+1),\"\")","v":""},{"$f":"IFERROR(MID($Y233,FIND(CHAR(160),SUBSTITUTE($Y233,\"{\",CHAR(160),HR$1)),FIND(CHAR(160),SUBSTITUTE($Y233,\"}\",CHAR(160),HR$1))-FIND(CHAR(160),SUBSTITUTE($Y233,\"{\",CHAR(160),HR$1))+1),\"\")","v":""},{"$f":"IFERROR(MID($Y233,FIND(CHAR(160),SUBSTITUTE($Y233,\"{\",CHAR(160),HS$1)),FIND(CHAR(160),SUBSTITUTE($Y233,\"}\",CHAR(160),HS$1))-FIND(CHAR(160),SUBSTITUTE($Y233,\"{\",CHAR(160),HS$1))+1),\"\")","v":"{Measure:Quantity}"},{"$f":"IFERROR(MID($Y233,FIND(CHAR(160),SUBSTITUTE($Y233,\"{\",CHAR(160),HT$1)),FIND(CHAR(160),SUBSTITUTE($Y233,\"}\",CHAR(160),HT$1))-FIND(CHAR(160),SUBSTITUTE($Y233,\"{\",CHAR(160),HT$1))+1),\"\")","v":"{Package Size}"},{"$f":"IFERROR(MID($Z233,FIND(CHAR(160),SUBSTITUTE($Z233,\"{\",CHAR(160),HU$1)),FIND(CHAR(160),SUBSTITUTE($Z233,\"}\",CHAR(160),HU$1))-FIND(CHAR(160),SUBSTITUTE($Z233,\"{\",CHAR(160),HU$1))+1),\"\")","v":""},{"$f":"IFERROR(MID($Z233,FIND(CHAR(160),SUBSTITUTE($Z233,\"{\",CHAR(160),HV$1)),FIND(CHAR(160),SUBSTITUTE($Z233,\"}\",CHAR(160),HV$1))-FIND(CHAR(160),SUBSTITUTE($Z233,\"{\",CHAR(160),HV$1))+1),\"\")","v":""},{"$f":"IFERROR(MID($Z233,FIND(CHAR(160),SUBSTITUTE($Z233,\"{\",CHAR(160),HW$1)),FIND(CHAR(160),SUBSTITUTE($Z233,\"}\",CHAR(160),HW$1))-FIND(CHAR(160),SUBSTITUTE($Z233,\"{\",CHAR(160),HW$1))+1),\"\")","v":""},{"$f":"IFERROR(MID($Z233,FIND(CHAR(160),SUBSTITUTE($Z233,\"{\",CHAR(160),HX$1)),FIND(CHAR(160),SUBSTITUTE($Z233,\"}\",CHAR(160),HX$1))-FIND(CHAR(160),SUBSTITUTE($Z233,\"{\",CHAR(160),HX$1))+1),\"\")","v":""},{"$f":"IFERROR(MID($Z233,FIND(CHAR(160),SUBSTITUTE($Z233,\"{\",CHAR(160),HY$1)),FIND(CHAR(160),SUBSTITUTE($Z233,\"}\",CHAR(160),HY$1))-FIND(CHAR(160),SUBSTITUTE($Z233,\"{\",CHAR(160),HY$1))+1),\"\")","v":""},{"$f":"IFERROR(MID($Z233,FIND(CHAR(160),SUBSTITUTE($Z233,\"{\",CHAR(160),HZ$1)),FIND(CHAR(160),SUBSTITUTE($Z233,\"}\",CHAR(160),HZ$1))-FIND(CHAR(160),SUBSTITUTE($Z233,\"{\",CHAR(160),HZ$1))+1),\"\")","v":""},{"$f":"IFERROR(MID($Z233,FIND(CHAR(160),SUBSTITUTE($Z233,\"{\",CHAR(160),IA$1)),FIND(CHAR(160),SUBSTITUTE($Z233,\"}\",CHAR(160),IA$1))-FIND(CHAR(160),SUBSTITUTE($Z233,\"{\",CHAR(160),IA$1))+1),\"\")","v":""},{"$f":"IFERROR(MID($Z233,FIND(CHAR(160),SUBSTITUTE($Z233,\"{\",CHAR(160),IB$1)),FIND(CHAR(160),SUBSTITUTE($Z233,\"}\",CHAR(160),IB$1))-FIND(CHAR(160),SUBSTITUTE($Z233,\"{\",CHAR(160),IB$1))+1),\"\")","v":""},{"$f":"IFERROR(MID($Z233,FIND(CHAR(160),SUBSTITUTE($Z233,\"{\",CHAR(160),IC$1)),FIND(CHAR(160),SUBSTITUTE($Z233,\"}\",CHAR(160),IC$1))-FIND(CHAR(160),SUBSTITUTE($Z233,\"{\",CHAR(160),IC$1))+1),\"\")","v":"{Measure:Quantity}"},{"$f":"IFERROR(MID($Z233,FIND(CHAR(160),SUBSTITUTE($Z233,\"{\",CHAR(160),ID$1)),FIND(CHAR(160),SUBSTITUTE($Z233,\"}\",CHAR(160),ID$1))-FIND(CHAR(160),SUBSTITUTE($Z233,\"{\",CHAR(160),ID$1))+1),\"\")","v":"{Package Size}"},{"$f":"IFERROR(MID($AA233,FIND(CHAR(160),SUBSTITUTE($AA233,\"{\",CHAR(160),IE$1)),FIND(CHAR(160),SUBSTITUTE($AA233,\"}\",CHAR(160),IE$1))-FIND(CHAR(160),SUBSTITUTE($AA233,\"{\",CHAR(160),IE$1))+1),\"\")","v":""},{"$f":"IFERROR(MID($AA233,FIND(CHAR(160),SUBSTITUTE($AA233,\"{\",CHAR(160),IF$1)),FIND(CHAR(160),SUBSTITUTE($AA233,\"}\",CHAR(160),IF$1))-FIND(CHAR(160),SUBSTITUTE($AA233,\"{\",CHAR(160),IF$1))+1),\"\")","v":""},{"$f":"IFERROR(MID($AA233,FIND(CHAR(160),SUBSTITUTE($AA233,\"{\",CHAR(160),IG$1)),FIND(CHAR(160),SUBSTITUTE($AA233,\"}\",CHAR(160),IG$1))-FIND(CHAR(160),SUBSTITUTE($AA233,\"{\",CHAR(160),IG$1))+1),\"\")","v":""},{"$f":"IFERROR(MID($AA233,FIND(CHAR(160),SUBSTITUTE($AA233,\"{\",CHAR(160),IH$1)),FIND(CHAR(160),SUBSTITUTE($AA233,\"}\",CHAR(160),IH$1))-FIND(CHAR(160),SUBSTITUTE($AA233,\"{\",CHAR(160),IH$1))+1),\"\")","v":""},{"$f":"IFERROR(MID($AA233,FIND(CHAR(160),SUBSTITUTE($AA233,\"{\",CHAR(160),II$1)),FIND(CHAR(160),SUBSTITUTE($AA233,\"}\",CHAR(160),II$1))-FIND(CHAR(160),SUBSTITUTE($AA233,\"{\",CHAR(160),II$1))+1),\"\")","v":""},{"$f":"IFERROR(MID($AA233,FIND(CHAR(160),SUBSTITUTE($AA233,\"{\",CHAR(160),IJ$1)),FIND(CHAR(160),SUBSTITUTE($AA233,\"}\",CHAR(160),IJ$1))-FIND(CHAR(160),SUBSTITUTE($AA233,\"{\",CHAR(160),IJ$1))+1),\"\")","v":""},{"$f":"IFERROR(MID($AA233,FIND(CHAR(160),SUBSTITUTE($AA233,\"{\",CHAR(160),IK$1)),FIND(CHAR(160),SUBSTITUTE($AA233,\"}\",CHAR(160),IK$1))-FIND(CHAR(160),SUBSTITUTE($AA233,\"{\",CHAR(160),IK$1))+1),\"\")","v":""},{"$f":"IFERROR(MID($AA233,FIND(CHAR(160),SUBSTITUTE($AA233,\"{\",CHAR(160),IL$1)),FIND(CHAR(160),SUBSTITUTE($AA233,\"}\",CHAR(160),IL$1))-FIND(CHAR(160),SUBSTITUTE($AA233,\"{\",CHAR(160),IL$1))+1),\"\")","v":""},{"$f":"IFERROR(MID($AA233,FIND(CHAR(160),SUBSTITUTE($AA233,\"{\",CHAR(160),IM$1)),FIND(CHAR(160),SUBSTITUTE($AA233,\"}\",CHAR(160),IM$1))-FIND(CHAR(160),SUBSTITUTE($AA233,\"{\",CHAR(160),IM$1))+1),\"\")","v":"{Measure:Quantity}"},{"$f":"IFERROR(MID($AA233,FIND(CHAR(160),SUBSTITUTE($AA233,\"{\",CHAR(160),IN$1)),FIND(CHAR(160),SUBSTITUTE($AA233,\"}\",CHAR(160),IN$1))-FIND(CHAR(160),SUBSTITUTE($AA233,\"{\",CHAR(160),IN$1))+1),\"\")","v":"{Package Size}"},{"$f":"IFERROR(MID($AB233,FIND(CHAR(160),SUBSTITUTE($AB233,\"{\",CHAR(160),IO$1)),FIND(CHAR(160),SUBSTITUTE($AB233,\"}\",CHAR(160),IO$1))-FIND(CHAR(160),SUBSTITUTE($AB233,\"{\",CHAR(160),IO$1))+1),\"\")","v":""},{"$f":"IFERROR(MID($AB233,FIND(CHAR(160),SUBSTITUTE($AB233,\"{\",CHAR(160),IP$1)),FIND(CHAR(160),SUBSTITUTE($AB233,\"}\",CHAR(160),IP$1))-FIND(CHAR(160),SUBSTITUTE($AB233,\"{\",CHAR(160),IP$1))+1),\"\")","v":""},{"$f":"IFERROR(MID($AB233,FIND(CHAR(160),SUBSTITUTE($AB233,\"{\",CHAR(160),IQ$1)),FIND(CHAR(160),SUBSTITUTE($AB233,\"}\",CHAR(160),IQ$1))-FIND(CHAR(160),SUBSTITUTE($AB233,\"{\",CHAR(160),IQ$1))+1),\"\")","v":""},{"$f":"IFERROR(MID($AB233,FIND(CHAR(160),SUBSTITUTE($AB233,\"{\",CHAR(160),IR$1)),FIND(CHAR(160),SUBSTITUTE($AB233,\"}\",CHAR(160),IR$1))-FIND(CHAR(160),SUBSTITUTE($AB233,\"{\",CHAR(160),IR$1))+1),\"\")","v":""},{"$f":"IFERROR(MID($AB233,FIND(CHAR(160),SUBSTITUTE($AB233,\"{\",CHAR(160),IS$1)),FIND(CHAR(160),SUBSTITUTE($AB233,\"}\",CHAR(160),IS$1))-FIND(CHAR(160),SUBSTITUTE($AB233,\"{\",CHAR(160),IS$1))+1),\"\")","v":""},{"$f":"IFERROR(MID($AB233,FIND(CHAR(160),SUBSTITUTE($AB233,\"{\",CHAR(160),IT$1)),FIND(CHAR(160),SUBSTITUTE($AB233,\"}\",CHAR(160),IT$1))-FIND(CHAR(160),SUBSTITUTE($AB233,\"{\",CHAR(160),IT$1))+1),\"\")","v":""},{"$f":"IFERROR(MID($AB233,FIND(CHAR(160),SUBSTITUTE($AB233,\"{\",CHAR(160),IU$1)),FIND(CHAR(160),SUBSTITUTE($AB233,\"}\",CHAR(160),IU$1))-FIND(CHAR(160),SUBSTITUTE($AB233,\"{\",CHAR(160),IU$1))+1),\"\")","v":""},{"$f":"IFERROR(MID($AB233,FIND(CHAR(160),SUBSTITUTE($AB233,\"{\",CHAR(160),IV$1)),FIND(CHAR(160),SUBSTITUTE($AB233,\"}\",CHAR(160),IV$1))-FIND(CHAR(160),SUBSTITUTE($AB233,\"{\",CHAR(160),IV$1))+1),\"\")","v":""},{"$f":"IFERROR(MID($AB233,FIND(CHAR(160),SUBSTITUTE($AB233,\"{\",CHAR(160),IW$1)),FIND(CHAR(160),SUBSTITUTE($AB233,\"}\",CHAR(160),IW$1))-FIND(CHAR(160),SUBSTITUTE($AB233,\"{\",CHAR(160),IW$1))+1),\"\")","v":""},{"$f":"IFERROR(MID($AB233,FIND(CHAR(160),SUBSTITUTE($AB233,\"{\",CHAR(160),IX$1)),FIND(CHAR(160),SUBSTITUTE($AB233,\"}\",CHAR(160),IX$1))-FIND(CHAR(160),SUBSTITUTE($AB233,\"{\",CHAR(160),IX$1))+1),\"\")","v":""},null,{"$f":"10-COUNTIF(DU233:ED233,\"\")","v":4}]
["Retail Lighting","LED Specialty Bulb Reflector Short Life","LEDSPCRFS","2021-07-01","2022-06-30","Calculated","{Measure:Quantity}*{Package Size}*2.41",0,"Calculated","{Measure:Quantity}*({Rebate per Package}+{Marketing Fee})",0,"2021-07-01","2022-06-30","Calculated","{Measure:Quantity}*{Package Size}*45",null,null,"{Measure:Quantity}*{Package Size}*1.062*0.05",null,null,"{Measure:Quantity}*{Package Size}*0.009","{Measure:Quantity}*{Package Size}*0.006","{Measure:Quantity}*{Package Size}*10*-0.005","{Measure:Quantity}*{Package Size}*-0.005","{Measure:Quantity}*{Package Size}*-0.038","{Measure:Quantity}*{Package Size}*-0.001","{Measure:Quantity}*{Package Size}*-0.008",null,"2021-07-01","2022-06-30",2,0.185,0.109,0.37,0.31,0.17100000000000001,0.14899999999999999,0.99,1,1,0.76300000000000001,0,null,{"$f":"DU234","v":"{Measure:Quantity}"},1,{"$f":"DV234","v":"{Package Size}"},1,{"$f":"DW234","v":"{Rebate per Package}"},{"$f":"CO234","v":2.41},{"$f":"DX234","v":"{Marketing Fee}"},1,{"$f":"DY234","v":""},null,{"$f":"DZ234","v":""},null,{"$f":"EA234","v":""},null,{"$f":"EB234","v":""},null,{"$f":"EC234","v":""},null,{"$f":"ED234","v":""},null,{"$f":"AS234*AU234*45","v":45},0,0,{"$f":"AS234*AU234*1.062*0.05","v":5.3100000000000008E-2},0,0,{"$f":"AS234*AU234*0.009","v":8.9999999999999993E-3},{"$f":"AS234*AU234*0.006","v":6.0000000000000001E-3},{"$f":"AS234*AU234*10*-0.005","v":-0.05},{"$f":"AS234*AU234*-0.005","v":-5.0000000000000001E-3},{"$f":"AS234*AU234*-0.038","v":-3.7999999999999999E-2},{"$f":"AS234*AU234*-0.001","v":-1E-3},{"$f":"AS234*AU234*-0.008","v":-8.0000000000000002E-3},0,null,"Res","Default DR",{"$f":"Benefits(BL234,BR234,BS234,BT234,BU234,BV234,BW234,BX234,BY234,BZ234,AE234,AH234,AI234,AJ234,AK234,AL234,AM234,AN234,AO234,AP234,CA234,CB234)","v":10.782239872221769},7.1337601555913066,-0.17973982519086751,-2.488095867922179,-7.431345129571984E-2,-0.45371663404669266,-0.27555956768871592,0,0,{"$f":"SUMPRODUCT(CC234:CK234,--(CC234:CK234>0))","v":17.916000027813077},{"$f":"-SUMPRODUCT(CC234:CK234,--(CC234:CK234<0))","v":3.4714253461441746},null,{"$f":"AS234*AU234*2.41","v":2.41},null,null,{"$f":"CM234+CO234","v":5.8814253461441748},{"$f":"IF(NetOrGross=\"Net\",(1-AO234+AP234),1)","v":1},{"$f":"(SUMPRODUCT(CC234:CJ234,--(CC234:CJ234>0))+CN234)*CS234/((-SUMPRODUCT(CC234:CJ234,--(CC234:CJ234<0))+MAX(CO234,CV234)+CP234+CQ234)*CS234+IF(FRIncentives=\"Yes\",CV234*(1-CS234),0))","v":2.6035303918325345},1,{"$f":"AS234*(AW234+AY234)","v":3.41},1,"Electric","y",null,{"$f":"IF(F234=\"Manual Entry\",\"Manual\",IF(G234=\"\",0,\"X=\"&SUBSTITUTE(SUBSTITUTE(SUBSTITUTE(SUBSTITUTE(SUBSTITUTE(SUBSTITUTE(SUBSTITUTE(SUBSTITUTE(SUBSTITUTE(SUBSTITUTE(SUBSTITUTE(SUBSTITUTE(G234,$ED234,$ED$2&ROW($ED234)),$EC234,$EC$2&ROW($EC234)),$EB234,$EB$2&ROW($EB234)),$EA234,$EA$2&ROW($EA234)),$DZ234,$DZ$2&ROW($DZ234)),$DY234,$DY$2&ROW($DY234)),$DX234,$DX$2&ROW($DX234)),$DW234,$DW$2&ROW($DW234)),$DV234,$DV$2&ROW($DV234)),$DU234,$DU$2&ROW($DU234)),$DT234,$DT$2&ROW($DT234)),$DS234,$DS$2&ROW($DS234))))","v":"X=AS234*AU234*2.41"},{"$f":"IF(I234=\"Manual Entry\",\"Manual\",IF(J234=\"\",0,\"X=\"&SUBSTITUTE(SUBSTITUTE(SUBSTITUTE(SUBSTITUTE(SUBSTITUTE(SUBSTITUTE(SUBSTITUTE(SUBSTITUTE(SUBSTITUTE(SUBSTITUTE(SUBSTITUTE(SUBSTITUTE(J234,$ED234,$ED$2&ROW($ED234)),$EC234,$EC$2&ROW($EC234)),$EB234,$EB$2&ROW($EB234)),$EA234,$EA$2&ROW($EA234)),$DZ234,$DZ$2&ROW($DZ234)),$DY234,$DY$2&ROW($DY234)),$DX234,$DX$2&ROW($DX234)),$DW234,$DW$2&ROW($DW234)),$DV234,$DV$2&ROW($DV234)),$DU234,$DU$2&ROW($DU234)),$DT234,$DT$2&ROW($DT234)),$DS234,$DS$2&ROW($DS234))))","v":"X=AS234*(AW234+AY234)"},{"$f":"IF(O234=\"\",0,\"X=\"&SUBSTITUTE(SUBSTITUTE(SUBSTITUTE(SUBSTITUTE(SUBSTITUTE(SUBSTITUTE(SUBSTITUTE(SUBSTITUTE(SUBSTITUTE(SUBSTITUTE(SUBSTITUTE(SUBSTITUTE(O234,$ED234,$ED$2&ROW($ED234)),$EC234,$EC$2&ROW($EC234)),$EB234,$EB$2&ROW($EB234)),$EA234,$EA$2&ROW($EA234)),$DZ234,$DZ$2&ROW($DZ234)),$DY234,$DY$2&ROW($DY234)),$DX234,$DX$2&ROW($DX234)),$DW234,$DW$2&ROW($DW234)),$DV234,$DV$2&ROW($DV234)),$DU234,$DU$2&ROW($DU234)),$DT234,$DT$2&ROW($DT234)),$DS234,$DS$2&ROW($DS234)))","v":"X=AS234*AU234*45"},{"$f":"IF(P234=\"\",0,\"X=\"&SUBSTITUTE(SUBSTITUTE(SUBSTITUTE(SUBSTITUTE(SUBSTITUTE(SUBSTITUTE(SUBSTITUTE(SUBSTITUTE(SUBSTITUTE(SUBSTITUTE(SUBSTITUTE(SUBSTITUTE(P234,$ED234,$ED$2&ROW($ED234)),$EC234,$EC$2&ROW($EC234)),$EB234,$EB$2&ROW($EB234)),$EA234,$EA$2&ROW($EA234)),$DZ234,$DZ$2&ROW($DZ234)),$DY234,$DY$2&ROW($DY234)),$DX234,$DX$2&ROW($DX234)),$DW234,$DW$2&ROW($DW234)),$DV234,$DV$2&ROW($DV234)),$DU234,$DU$2&ROW($DU234)),$DT234,$DT$2&ROW($DT234)),$DS234,$DS$2&ROW($DS234)))","v":0},{"$f":"IF(Q234=\"\",0,\"X=\"&SUBSTITUTE(SUBSTITUTE(SUBSTITUTE(SUBSTITUTE(SUBSTITUTE(SUBSTITUTE(SUBSTITUTE(SUBSTITUTE(SUBSTITUTE(SUBSTITUTE(SUBSTITUTE(SUBSTITUTE(Q234,$ED234,$ED$2&ROW($ED234)),$EC234,$EC$2&ROW($EC234)),$EB234,$EB$2&ROW($EB234)),$EA234,$EA$2&ROW($EA234)),$DZ234,$DZ$2&ROW($DZ234)),$DY234,$DY$2&ROW($DY234)),$DX234,$DX$2&ROW($DX234)),$DW234,$DW$2&ROW($DW234)),$DV234,$DV$2&ROW($DV234)),$DU234,$DU$2&ROW($DU234)),$DT234,$DT$2&ROW($DT234)),$DS234,$DS$2&ROW($DS234)))","v":0},{"$f":"IF(R234=\"\",0,\"X=\"&SUBSTITUTE(SUBSTITUTE(SUBSTITUTE(SUBSTITUTE(SUBSTITUTE(SUBSTITUTE(SUBSTITUTE(SUBSTITUTE(SUBSTITUTE(SUBSTITUTE(SUBSTITUTE(SUBSTITUTE(R234,$ED234,$ED$2&ROW($ED234)),$EC234,$EC$2&ROW($EC234)),$EB234,$EB$2&ROW($EB234)),$EA234,$EA$2&ROW($EA234)),$DZ234,$DZ$2&ROW($DZ234)),$DY234,$DY$2&ROW($DY234)),$DX234,$DX$2&ROW($DX234)),$DW234,$DW$2&ROW($DW234)),$DV234,$DV$2&ROW($DV234)),$DU234,$DU$2&ROW($DU234)),$DT234,$DT$2&ROW($DT234)),$DS234,$DS$2&ROW($DS234)))","v":"X=AS234*AU234*1.062*0.05"},{"$f":"IF(S234=\"\",0,\"X=\"&SUBSTITUTE(SUBSTITUTE(SUBSTITUTE(SUBSTITUTE(SUBSTITUTE(SUBSTITUTE(SUBSTITUTE(SUBSTITUTE(SUBSTITUTE(SUBSTITUTE(SUBSTITUTE(SUBSTITUTE(S234,$ED234,$ED$2&ROW($ED234)),$EC234,$EC$2&ROW($EC234)),$EB234,$EB$2&ROW($EB234)),$EA234,$EA$2&ROW($EA234)),$DZ234,$DZ$2&ROW($DZ234)),$DY234,$DY$2&ROW($DY234)),$DX234,$DX$2&ROW($DX234)),$DW234,$DW$2&ROW($DW234)),$DV234,$DV$2&ROW($DV234)),$DU234,$DU$2&ROW($DU234)),$DT234,$DT$2&ROW($DT234)),$DS234,$DS$2&ROW($DS234)))","v":0},{"$f":"IF(T234=\"\",0,\"X=\"&SUBSTITUTE(SUBSTITUTE(SUBSTITUTE(SUBSTITUTE(SUBSTITUTE(SUBSTITUTE(SUBSTITUTE(SUBSTITUTE(SUBSTITUTE(SUBSTITUTE(SUBSTITUTE(SUBSTITUTE(T234,$ED234,$ED$2&ROW($ED234)),$EC234,$EC$2&ROW($EC234)),$EB234,$EB$2&ROW($EB234)),$EA234,$EA$2&ROW($EA234)),$DZ234,$DZ$2&ROW($DZ234)),$DY234,$DY$2&ROW($DY234)),$DX234,$DX$2&ROW($DX234)),$DW234,$DW$2&ROW($DW234)),$DV234,$DV$2&ROW($DV234)),$DU234,$DU$2&ROW($DU234)),$DT234,$DT$2&ROW($DT234)),$DS234,$DS$2&ROW($DS234)))","v":0},{"$f":"IF(U234=\"\",0,\"X=\"&SUBSTITUTE(SUBSTITUTE(SUBSTITUTE(SUBSTITUTE(SUBSTITUTE(SUBSTITUTE(SUBSTITUTE(SUBSTITUTE(SUBSTITUTE(SUBSTITUTE(SUBSTITUTE(SUBSTITUTE(U234,$ED234,$ED$2&ROW($ED234)),$EC234,$EC$2&ROW($EC234)),$EB234,$EB$2&ROW($EB234)),$EA234,$EA$2&ROW($EA234)),$DZ234,$DZ$2&ROW($DZ234)),$DY234,$DY$2&ROW($DY234)),$DX234,$DX$2&ROW($DX234)),$DW234,$DW$2&ROW($DW234)),$DV234,$DV$2&ROW($DV234)),$DU234,$DU$2&ROW($DU234)),$DT234,$DT$2&ROW($DT234)),$DS234,$DS$2&ROW($DS234)))","v":"X=AS234*AU234*0.009"},{"$f":"IF(V234=\"\",0,\"X=\"&SUBSTITUTE(SUBSTITUTE(SUBSTITUTE(SUBSTITUTE(SUBSTITUTE(SUBSTITUTE(SUBSTITUTE(SUBSTITUTE(SUBSTITUTE(SUBSTITUTE(SUBSTITUTE(SUBSTITUTE(V234,$ED234,$ED$2&ROW($ED234)),$EC234,$EC$2&ROW($EC234)),$EB234,$EB$2&ROW($EB234)),$EA234,$EA$2&ROW($EA234)),$DZ234,$DZ$2&ROW($DZ234)),$DY234,$DY$2&ROW($DY234)),$DX234,$DX$2&ROW($DX234)),$DW234,$DW$2&ROW($DW234)),$DV234,$DV$2&ROW($DV234)),$DU234,$DU$2&ROW($DU234)),$DT234,$DT$2&ROW($DT234)),$DS234,$DS$2&ROW($DS234)))","v":"X=AS234*AU234*0.006"},{"$f":"IF(W234=\"\",0,\"X=\"&SUBSTITUTE(SUBSTITUTE(SUBSTITUTE(SUBSTITUTE(SUBSTITUTE(SUBSTITUTE(SUBSTITUTE(SUBSTITUTE(SUBSTITUTE(SUBSTITUTE(SUBSTITUTE(SUBSTITUTE(W234,$ED234,$ED$2&ROW($ED234)),$EC234,$EC$2&ROW($EC234)),$EB234,$EB$2&ROW($EB234)),$EA234,$EA$2&ROW($EA234)),$DZ234,$DZ$2&ROW($DZ234)),$DY234,$DY$2&ROW($DY234)),$DX234,$DX$2&ROW($DX234)),$DW234,$DW$2&ROW($DW234)),$DV234,$DV$2&ROW($DV234)),$DU234,$DU$2&ROW($DU234)),$DT234,$DT$2&ROW($DT234)),$DS234,$DS$2&ROW($DS234)))","v":"X=AS234*AU234*10*-0.005"},{"$f":"IF(X234=\"\",0,\"X=\"&SUBSTITUTE(SUBSTITUTE(SUBSTITUTE(SUBSTITUTE(SUBSTITUTE(SUBSTITUTE(SUBSTITUTE(SUBSTITUTE(SUBSTITUTE(SUBSTITUTE(SUBSTITUTE(SUBSTITUTE(X234,$ED234,$ED$2&ROW($ED234)),$EC234,$EC$2&ROW($EC234)),$EB234,$EB$2&ROW($EB234)),$EA234,$EA$2&ROW($EA234)),$DZ234,$DZ$2&ROW($DZ234)),$DY234,$DY$2&ROW($DY234)),$DX234,$DX$2&ROW($DX234)),$DW234,$DW$2&ROW($DW234)),$DV234,$DV$2&ROW($DV234)),$DU234,$DU$2&ROW($DU234)),$DT234,$DT$2&ROW($DT234)),$DS234,$DS$2&ROW($DS234)))","v":"X=AS234*AU234*-0.005"},{"$f":"IF(Y234=\"\",0,\"X=\"&SUBSTITUTE(SUBSTITUTE(SUBSTITUTE(SUBSTITUTE(SUBSTITUTE(SUBSTITUTE(SUBSTITUTE(SUBSTITUTE(SUBSTITUTE(SUBSTITUTE(SUBSTITUTE(SUBSTITUTE(Y234,$ED234,$ED$2&ROW($ED234)),$EC234,$EC$2&ROW($EC234)),$EB234,$EB$2&ROW($EB234)),$EA234,$EA$2&ROW($EA234)),$DZ234,$DZ$2&ROW($DZ234)),$DY234,$DY$2&ROW($DY234)),$DX234,$DX$2&ROW($DX234)),$DW234,$DW$2&ROW($DW234)),$DV234,$DV$2&ROW($DV234)),$DU234,$DU$2&ROW($DU234)),$DT234,$DT$2&ROW($DT234)),$DS234,$DS$2&ROW($DS234)))","v":"X=AS234*AU234*-0.038"},{"$f":"IF(Z234=\"\",0,\"X=\"&SUBSTITUTE(SUBSTITUTE(SUBSTITUTE(SUBSTITUTE(SUBSTITUTE(SUBSTITUTE(SUBSTITUTE(SUBSTITUTE(SUBSTITUTE(SUBSTITUTE(SUBSTITUTE(SUBSTITUTE(Z234,$ED234,$ED$2&ROW($ED234)),$EC234,$EC$2&ROW($EC234)),$EB234,$EB$2&ROW($EB234)),$EA234,$EA$2&ROW($EA234)),$DZ234,$DZ$2&ROW($DZ234)),$DY234,$DY$2&ROW($DY234)),$DX234,$DX$2&ROW($DX234)),$DW234,$DW$2&ROW($DW234)),$DV234,$DV$2&ROW($DV234)),$DU234,$DU$2&ROW($DU234)),$DT234,$DT$2&ROW($DT234)),$DS234,$DS$2&ROW($DS234)))","v":"X=AS234*AU234*-0.001"},{"$f":"IF(AA234=\"\",0,\"X=\"&SUBSTITUTE(SUBSTITUTE(SUBSTITUTE(SUBSTITUTE(SUBSTITUTE(SUBSTITUTE(SUBSTITUTE(SUBSTITUTE(SUBSTITUTE(SUBSTITUTE(SUBSTITUTE(SUBSTITUTE(AA234,$ED234,$ED$2&ROW($ED234)),$EC234,$EC$2&ROW($EC234)),$EB234,$EB$2&ROW($EB234)),$EA234,$EA$2&ROW($EA234)),$DZ234,$DZ$2&ROW($DZ234)),$DY234,$DY$2&ROW($DY234)),$DX234,$DX$2&ROW($DX234)),$DW234,$DW$2&ROW($DW234)),$DV234,$DV$2&ROW($DV234)),$DU234,$DU$2&ROW($DU234)),$DT234,$DT$2&ROW($DT234)),$DS234,$DS$2&ROW($DS234)))","v":"X=AS234*AU234*-0.008"},{"$f":"IF(AB234=\"\",0,\"X=\"&SUBSTITUTE(SUBSTITUTE(SUBSTITUTE(SUBSTITUTE(SUBSTITUTE(SUBSTITUTE(SUBSTITUTE(SUBSTITUTE(SUBSTITUTE(SUBSTITUTE(SUBSTITUTE(SUBSTITUTE(AB234,$ED234,$ED$2&ROW($ED234)),$EC234,$EC$2&ROW($EC234)),$EB234,$EB$2&ROW($EB234)),$EA234,$EA$2&ROW($EA234)),$DZ234,$DZ$2&ROW($DZ234)),$DY234,$DY$2&ROW($DY234)),$DX234,$DX$2&ROW($DX234)),$DW234,$DW$2&ROW($DW234)),$DV234,$DV$2&ROW($DV234)),$DU234,$DU$2&ROW($DU234)),$DT234,$DT$2&ROW($DT234)),$DS234,$DS$2&ROW($DS234)))","v":0},null,null,"{Factor:WinterCF}","{Factor:SummerCF}",{"$f":"IFERROR(INDEX($EG234:$IV234,MATCH(0,COUNTIF($DR234:DT234,$EG234:$IV234),0)),\"\")","v":"{Measure:Quantity}"},{"$f":"IFERROR(INDEX($EG234:$IV234,MATCH(0,COUNTIF($DR234:DU234,$EG234:$IV234),0)),\"\")","v":"{Package Size}"},{"$f":"IFERROR(INDEX($EG234:$IV234,MATCH(0,COUNTIF($DR234:DV234,$EG234:$IV234),0)),\"\")","v":"{Rebate per Package}"},{"$f":"IFERROR(INDEX($EG234:$IV234,MATCH(0,COUNTIF($DR234:DW234,$EG234:$IV234),0)),\"\")","v":"{Marketing Fee}"},{"$f":"IFERROR(INDEX($EG234:$IV234,MATCH(0,COUNTIF($DR234:DX234,$EG234:$IV234),0)),\"\")","v":""},{"$f":"IFERROR(INDEX($EG234:$IV234,MATCH(0,COUNTIF($DR234:DY234,$EG234:$IV234),0)),\"\")","v":""},{"$f":"IFERROR(INDEX($EG234:$IV234,MATCH(0,COUNTIF($DR234:DZ234,$EG234:$IV234),0)),\"\")","v":""},{"$f":"IFERROR(INDEX($EG234:$IV234,MATCH(0,COUNTIF($DR234:EA234,$EG234:$IV234),0)),\"\")","v":""},{"$f":"IFERROR(INDEX($EG234:$IV234,MATCH(0,COUNTIF($DR234:EB234,$EG234:$IV234),0)),\"\")","v":""},{"$f":"IFERROR(INDEX($EG234:$IV234,MATCH(0,COUNTIF($DR234:EC234,$EG234:$IV234),0)),\"\")","v":""},null,null,{"$f":"IFERROR(MID($G234,FIND(CHAR(160),SUBSTITUTE($G234,\"{\",CHAR(160),EG$1)),FIND(CHAR(160),SUBSTITUTE($G234,\"}\",CHAR(160),EG$1))-FIND(CHAR(160),SUBSTITUTE($G234,\"{\",CHAR(160),EG$1))+1),\"\")","v":"{Measure:Quantity}"},{"$f":"IFERROR(MID($G234,FIND(CHAR(160),SUBSTITUTE($G234,\"{\",CHAR(160),EH$1)),FIND(CHAR(160),SUBSTITUTE($G234,\"}\",CHAR(160),EH$1))-FIND(CHAR(160),SUBSTITUTE($G234,\"{\",CHAR(160),EH$1))+1),\"\")","v":"{Package Size}"},{"$f":"IFERROR(MID($G234,FIND(CHAR(160),SUBSTITUTE($G234,\"{\",CHAR(160),EI$1)),FIND(CHAR(160),SUBSTITUTE($G234,\"}\",CHAR(160),EI$1))-FIND(CHAR(160),SUBSTITUTE($G234,\"{\",CHAR(160),EI$1))+1),\"\")","v":""},{"$f":"IFERROR(MID($G234,FIND(CHAR(160),SUBSTITUTE($G234,\"{\",CHAR(160),EJ$1)),FIND(CHAR(160),SUBSTITUTE($G234,\"}\",CHAR(160),EJ$1))-FIND(CHAR(160),SUBSTITUTE($G234,\"{\",CHAR(160),EJ$1))+1),\"\")","v":""},{"$f":"IFERROR(MID($G234,FIND(CHAR(160),SUBSTITUTE($G234,\"{\",CHAR(160),EK$1)),FIND(CHAR(160),SUBSTITUTE($G234,\"}\",CHAR(160),EK$1))-FIND(CHAR(160),SUBSTITUTE($G234,\"{\",CHAR(160),EK$1))+1),\"\")","v":""},{"$f":"IFERROR(MID($G234,FIND(CHAR(160),SUBSTITUTE($G234,\"{\",CHAR(160),EL$1)),FIND(CHAR(160),SUBSTITUTE($G234,\"}\",CHAR(160),EL$1))-FIND(CHAR(160),SUBSTITUTE($G234,\"{\",CHAR(160),EL$1))+1),\"\")","v":""},{"$f":"IFERROR(MID($G234,FIND(CHAR(160),SUBSTITUTE($G234,\"{\",CHAR(160),EM$1)),FIND(CHAR(160),SUBSTITUTE($G234,\"}\",CHAR(160),EM$1))-FIND(CHAR(160),SUBSTITUTE($G234,\"{\",CHAR(160),EM$1))+1),\"\")","v":""},{"$f":"IFERROR(MID($G234,FIND(CHAR(160),SUBSTITUTE($G234,\"{\",CHAR(160),EN$1)),FIND(CHAR(160),SUBSTITUTE($G234,\"}\",CHAR(160),EN$1))-FIND(CHAR(160),SUBSTITUTE($G234,\"{\",CHAR(160),EN$1))+1),\"\")","v":""},{"$f":"IFERROR(MID($G234,FIND(CHAR(160),SUBSTITUTE($G234,\"{\",CHAR(160),EO$1)),FIND(CHAR(160),SUBSTITUTE($G234,\"}\",CHAR(160),EO$1))-FIND(CHAR(160),SUBSTITUTE($G234,\"{\",CHAR(160),EO$1))+1),\"\")","v":""},{"$f":"IFERROR(MID($G234,FIND(CHAR(160),SUBSTITUTE($G234,\"{\",CHAR(160),EP$1)),FIND(CHAR(160),SUBSTITUTE($G234,\"}\",CHAR(160),EP$1))-FIND(CHAR(160),SUBSTITUTE($G234,\"{\",CHAR(160),EP$1))+1),\"\")","v":""},{"$f":"IFERROR(MID($J234,FIND(CHAR(160),SUBSTITUTE($J234,\"{\",CHAR(160),EQ$1)),FIND(CHAR(160),SUBSTITUTE($J234,\"}\",CHAR(160),EQ$1))-FIND(CHAR(160),SUBSTITUTE($J234,\"{\",CHAR(160),EQ$1))+1),\"\")","v":"{Measure:Quantity}"},{"$f":"IFERROR(MID($J234,FIND(CHAR(160),SUBSTITUTE($J234,\"{\",CHAR(160),ER$1)),FIND(CHAR(160),SUBSTITUTE($J234,\"}\",CHAR(160),ER$1))-FIND(CHAR(160),SUBSTITUTE($J234,\"{\",CHAR(160),ER$1))+1),\"\")","v":"{Rebate per Package}"},{"$f":"IFERROR(MID($J234,FIND(CHAR(160),SUBSTITUTE($J234,\"{\",CHAR(160),ES$1)),FIND(CHAR(160),SUBSTITUTE($J234,\"}\",CHAR(160),ES$1))-FIND(CHAR(160),SUBSTITUTE($J234,\"{\",CHAR(160),ES$1))+1),\"\")","v":"{Marketing Fee}"},{"$f":"IFERROR(MID($J234,FIND(CHAR(160),SUBSTITUTE($J234,\"{\",CHAR(160),ET$1)),FIND(CHAR(160),SUBSTITUTE($J234,\"}\",CHAR(160),ET$1))-FIND(CHAR(160),SUBSTITUTE($J234,\"{\",CHAR(160),ET$1))+1),\"\")","v":""},{"$f":"IFERROR(MID($J234,FIND(CHAR(160),SUBSTITUTE($J234,\"{\",CHAR(160),EU$1)),FIND(CHAR(160),SUBSTITUTE($J234,\"}\",CHAR(160),EU$1))-FIND(CHAR(160),SUBSTITUTE($J234,\"{\",CHAR(160),EU$1))+1),\"\")","v":""},{"$f":"IFERROR(MID($J234,FIND(CHAR(160),SUBSTITUTE($J234,\"{\",CHAR(160),EV$1)),FIND(CHAR(160),SUBSTITUTE($J234,\"}\",CHAR(160),EV$1))-FIND(CHAR(160),SUBSTITUTE($J234,\"{\",CHAR(160),EV$1))+1),\"\")","v":""},{"$f":"IFERROR(MID($J234,FIND(CHAR(160),SUBSTITUTE($J234,\"{\",CHAR(160),EW$1)),FIND(CHAR(160),SUBSTITUTE($J234,\"}\",CHAR(160),EW$1))-FIND(CHAR(160),SUBSTITUTE($J234,\"{\",CHAR(160),EW$1))+1),\"\")","v":""},{"$f":"IFERROR(MID($J234,FIND(CHAR(160),SUBSTITUTE($J234,\"{\",CHAR(160),EX$1)),FIND(CHAR(160),SUBSTITUTE($J234,\"}\",CHAR(160),EX$1))-FIND(CHAR(160),SUBSTITUTE($J234,\"{\",CHAR(160),EX$1))+1),\"\")","v":""},{"$f":"IFERROR(MID($J234,FIND(CHAR(160),SUBSTITUTE($J234,\"{\",CHAR(160),EY$1)),FIND(CHAR(160),SUBSTITUTE($J234,\"}\",CHAR(160),EY$1))-FIND(CHAR(160),SUBSTITUTE($J234,\"{\",CHAR(160),EY$1))+1),\"\")","v":""},{"$f":"IFERROR(MID($J234,FIND(CHAR(160),SUBSTITUTE($J234,\"{\",CHAR(160),EZ$1)),FIND(CHAR(160),SUBSTITUTE($J234,\"}\",CHAR(160),EZ$1))-FIND(CHAR(160),SUBSTITUTE($J234,\"{\",CHAR(160),EZ$1))+1),\"\")","v":""},{"$f":"IFERROR(MID($J234,FIND(CHAR(160),SUBSTITUTE($J234,\"{\",CHAR(160),FA$1)),FIND(CHAR(160),SUBSTITUTE($J234,\"}\",CHAR(160),FA$1))-FIND(CHAR(160),SUBSTITUTE($J234,\"{\",CHAR(160),FA$1))+1),\"\")","v":"{Measure:Quantity}"},{"$f":"IFERROR(MID($J234,FIND(CHAR(160),SUBSTITUTE($J234,\"{\",CHAR(160),FB$1)),FIND(CHAR(160),SUBSTITUTE($J234,\"}\",CHAR(160),FB$1))-FIND(CHAR(160),SUBSTITUTE($J234,\"{\",CHAR(160),FB$1))+1),\"\")","v":"{Rebate per Package}"},{"$f":"IFERROR(MID($O234,FIND(CHAR(160),SUBSTITUTE($O234,\"{\",CHAR(160),FC$1)),FIND(CHAR(160),SUBSTITUTE($O234,\"}\",CHAR(160),FC$1))-FIND(CHAR(160),SUBSTITUTE($O234,\"{\",CHAR(160),FC$1))+1),\"\")","v":""},{"$f":"IFERROR(MID($O234,FIND(CHAR(160),SUBSTITUTE($O234,\"{\",CHAR(160),FD$1)),FIND(CHAR(160),SUBSTITUTE($O234,\"}\",CHAR(160),FD$1))-FIND(CHAR(160),SUBSTITUTE($O234,\"{\",CHAR(160),FD$1))+1),\"\")","v":""},{"$f":"IFERROR(MID($O234,FIND(CHAR(160),SUBSTITUTE($O234,\"{\",CHAR(160),FE$1)),FIND(CHAR(160),SUBSTITUTE($O234,\"}\",CHAR(160),FE$1))-FIND(CHAR(160),SUBSTITUTE($O234,\"{\",CHAR(160),FE$1))+1),\"\")","v":""},{"$f":"IFERROR(MID($O234,FIND(CHAR(160),SUBSTITUTE($O234,\"{\",CHAR(160),FF$1)),FIND(CHAR(160),SUBSTITUTE($O234,\"}\",CHAR(160),FF$1))-FIND(CHAR(160),SUBSTITUTE($O234,\"{\",CHAR(160),FF$1))+1),\"\")","v":""},{"$f":"IFERROR(MID($O234,FIND(CHAR(160),SUBSTITUTE($O234,\"{\",CHAR(160),FG$1)),FIND(CHAR(160),SUBSTITUTE($O234,\"}\",CHAR(160),FG$1))-FIND(CHAR(160),SUBSTITUTE($O234,\"{\",CHAR(160),FG$1))+1),\"\")","v":""},{"$f":"IFERROR(MID($O234,FIND(CHAR(160),SUBSTITUTE($O234,\"{\",CHAR(160),FH$1)),FIND(CHAR(160),SUBSTITUTE($O234,\"}\",CHAR(160),FH$1))-FIND(CHAR(160),SUBSTITUTE($O234,\"{\",CHAR(160),FH$1))+1),\"\")","v":""},{"$f":"IFERROR(MID($O234,FIND(CHAR(160),SUBSTITUTE($O234,\"{\",CHAR(160),FI$1)),FIND(CHAR(160),SUBSTITUTE($O234,\"}\",CHAR(160),FI$1))-FIND(CHAR(160),SUBSTITUTE($O234,\"{\",CHAR(160),FI$1))+1),\"\")","v":""},{"$f":"IFERROR(MID($O234,FIND(CHAR(160),SUBSTITUTE($O234,\"{\",CHAR(160),FJ$1)),FIND(CHAR(160),SUBSTITUTE($O234,\"}\",CHAR(160),FJ$1))-FIND(CHAR(160),SUBSTITUTE($O234,\"{\",CHAR(160),FJ$1))+1),\"\")","v":""},{"$f":"IFERROR(MID($O234,FIND(CHAR(160),SUBSTITUTE($O234,\"{\",CHAR(160),FK$1)),FIND(CHAR(160),SUBSTITUTE($O234,\"}\",CHAR(160),FK$1))-FIND(CHAR(160),SUBSTITUTE($O234,\"{\",CHAR(160),FK$1))+1),\"\")","v":"{Measure:Quantity}"},{"$f":"IFERROR(MID($O234,FIND(CHAR(160),SUBSTITUTE($O234,\"{\",CHAR(160),FL$1)),FIND(CHAR(160),SUBSTITUTE($O234,\"}\",CHAR(160),FL$1))-FIND(CHAR(160),SUBSTITUTE($O234,\"{\",CHAR(160),FL$1))+1),\"\")","v":"{Package Size}"},{"$f":"IFERROR(MID($R234,FIND(CHAR(160),SUBSTITUTE($R234,\"{\",CHAR(160),FM$1)),FIND(CHAR(160),SUBSTITUTE($R234,\"}\",CHAR(160),FM$1))-FIND(CHAR(160),SUBSTITUTE($R234,\"{\",CHAR(160),FM$1))+1),\"\")","v":""},{"$f":"IFERROR(MID($R234,FIND(CHAR(160),SUBSTITUTE($R234,\"{\",CHAR(160),FN$1)),FIND(CHAR(160),SUBSTITUTE($R234,\"}\",CHAR(160),FN$1))-FIND(CHAR(160),SUBSTITUTE($R234,\"{\",CHAR(160),FN$1))+1),\"\")","v":""},{"$f":"IFERROR(MID($R234,FIND(CHAR(160),SUBSTITUTE($R234,\"{\",CHAR(160),FO$1)),FIND(CHAR(160),SUBSTITUTE($R234,\"}\",CHAR(160),FO$1))-FIND(CHAR(160),SUBSTITUTE($R234,\"{\",CHAR(160),FO$1))+1),\"\")","v":""},{"$f":"IFERROR(MID($R234,FIND(CHAR(160),SUBSTITUTE($R234,\"{\",CHAR(160),FP$1)),FIND(CHAR(160),SUBSTITUTE($R234,\"}\",CHAR(160),FP$1))-FIND(CHAR(160),SUBSTITUTE($R234,\"{\",CHAR(160),FP$1))+1),\"\")","v":""},{"$f":"IFERROR(MID($R234,FIND(CHAR(160),SUBSTITUTE($R234,\"{\",CHAR(160),FQ$1)),FIND(CHAR(160),SUBSTITUTE($R234,\"}\",CHAR(160),FQ$1))-FIND(CHAR(160),SUBSTITUTE($R234,\"{\",CHAR(160),FQ$1))+1),\"\")","v":""},{"$f":"IFERROR(MID($R234,FIND(CHAR(160),SUBSTITUTE($R234,\"{\",CHAR(160),FR$1)),FIND(CHAR(160),SUBSTITUTE($R234,\"}\",CHAR(160),FR$1))-FIND(CHAR(160),SUBSTITUTE($R234,\"{\",CHAR(160),FR$1))+1),\"\")","v":""},{"$f":"IFERROR(MID($R234,FIND(CHAR(160),SUBSTITUTE($R234,\"{\",CHAR(160),FS$1)),FIND(CHAR(160),SUBSTITUTE($R234,\"}\",CHAR(160),FS$1))-FIND(CHAR(160),SUBSTITUTE($R234,\"{\",CHAR(160),FS$1))+1),\"\")","v":""},{"$f":"IFERROR(MID($R234,FIND(CHAR(160),SUBSTITUTE($R234,\"{\",CHAR(160),FT$1)),FIND(CHAR(160),SUBSTITUTE($R234,\"}\",CHAR(160),FT$1))-FIND(CHAR(160),SUBSTITUTE($R234,\"{\",CHAR(160),FT$1))+1),\"\")","v":""},{"$f":"IFERROR(MID($R234,FIND(CHAR(160),SUBSTITUTE($R234,\"{\",CHAR(160),FU$1)),FIND(CHAR(160),SUBSTITUTE($R234,\"}\",CHAR(160),FU$1))-FIND(CHAR(160),SUBSTITUTE($R234,\"{\",CHAR(160),FU$1))+1),\"\")","v":"{Measure:Quantity}"},{"$f":"IFERROR(MID($R234,FIND(CHAR(160),SUBSTITUTE($R234,\"{\",CHAR(160),FV$1)),FIND(CHAR(160),SUBSTITUTE($R234,\"}\",CHAR(160),FV$1))-FIND(CHAR(160),SUBSTITUTE($R234,\"{\",CHAR(160),FV$1))+1),\"\")","v":"{Package Size}"},{"$f":"IFERROR(MID($U234,FIND(CHAR(160),SUBSTITUTE($U234,\"{\",CHAR(160),FW$1)),FIND(CHAR(160),SUBSTITUTE($U234,\"}\",CHAR(160),FW$1))-FIND(CHAR(160),SUBSTITUTE($U234,\"{\",CHAR(160),FW$1))+1),\"\")","v":""},{"$f":"IFERROR(MID($U234,FIND(CHAR(160),SUBSTITUTE($U234,\"{\",CHAR(160),FX$1)),FIND(CHAR(160),SUBSTITUTE($U234,\"}\",CHAR(160),FX$1))-FIND(CHAR(160),SUBSTITUTE($U234,\"{\",CHAR(160),FX$1))+1),\"\")","v":""},{"$f":"IFERROR(MID($U234,FIND(CHAR(160),SUBSTITUTE($U234,\"{\",CHAR(160),FY$1)),FIND(CHAR(160),SUBSTITUTE($U234,\"}\",CHAR(160),FY$1))-FIND(CHAR(160),SUBSTITUTE($U234,\"{\",CHAR(160),FY$1))+1),\"\")","v":""},{"$f":"IFERROR(MID($U234,FIND(CHAR(160),SUBSTITUTE($U234,\"{\",CHAR(160),FZ$1)),FIND(CHAR(160),SUBSTITUTE($U234,\"}\",CHAR(160),FZ$1))-FIND(CHAR(160),SUBSTITUTE($U234,\"{\",CHAR(160),FZ$1))+1),\"\")","v":""},{"$f":"IFERROR(MID($U234,FIND(CHAR(160),SUBSTITUTE($U234,\"{\",CHAR(160),GA$1)),FIND(CHAR(160),SUBSTITUTE($U234,\"}\",CHAR(160),GA$1))-FIND(CHAR(160),SUBSTITUTE($U234,\"{\",CHAR(160),GA$1))+1),\"\")","v":""},{"$f":"IFERROR(MID($U234,FIND(CHAR(160),SUBSTITUTE($U234,\"{\",CHAR(160),GB$1)),FIND(CHAR(160),SUBSTITUTE($U234,\"}\",CHAR(160),GB$1))-FIND(CHAR(160),SUBSTITUTE($U234,\"{\",CHAR(160),GB$1))+1),\"\")","v":""},{"$f":"IFERROR(MID($U234,FIND(CHAR(160),SUBSTITUTE($U234,\"{\",CHAR(160),GC$1)),FIND(CHAR(160),SUBSTITUTE($U234,\"}\",CHAR(160),GC$1))-FIND(CHAR(160),SUBSTITUTE($U234,\"{\",CHAR(160),GC$1))+1),\"\")","v":""},{"$f":"IFERROR(MID($U234,FIND(CHAR(160),SUBSTITUTE($U234,\"{\",CHAR(160),GD$1)),FIND(CHAR(160),SUBSTITUTE($U234,\"}\",CHAR(160),GD$1))-FIND(CHAR(160),SUBSTITUTE($U234,\"{\",CHAR(160),GD$1))+1),\"\")","v":""},{"$f":"IFERROR(MID($U234,FIND(CHAR(160),SUBSTITUTE($U234,\"{\",CHAR(160),GE$1)),FIND(CHAR(160),SUBSTITUTE($U234,\"}\",CHAR(160),GE$1))-FIND(CHAR(160),SUBSTITUTE($U234,\"{\",CHAR(160),GE$1))+1),\"\")","v":"{Measure:Quantity}"},{"$f":"IFERROR(MID($U234,FIND(CHAR(160),SUBSTITUTE($U234,\"{\",CHAR(160),GF$1)),FIND(CHAR(160),SUBSTITUTE($U234,\"}\",CHAR(160),GF$1))-FIND(CHAR(160),SUBSTITUTE($U234,\"{\",CHAR(160),GF$1))+1),\"\")","v":"{Package Size}"},{"$f":"IFERROR(MID($V234,FIND(CHAR(160),SUBSTITUTE($V234,\"{\",CHAR(160),GG$1)),FIND(CHAR(160),SUBSTITUTE($V234,\"}\",CHAR(160),GG$1))-FIND(CHAR(160),SUBSTITUTE($V234,\"{\",CHAR(160),GG$1))+1),\"\")","v":""},{"$f":"IFERROR(MID($V234,FIND(CHAR(160),SUBSTITUTE($V234,\"{\",CHAR(160),GH$1)),FIND(CHAR(160),SUBSTITUTE($V234,\"}\",CHAR(160),GH$1))-FIND(CHAR(160),SUBSTITUTE($V234,\"{\",CHAR(160),GH$1))+1),\"\")","v":""},{"$f":"IFERROR(MID($V234,FIND(CHAR(160),SUBSTITUTE($V234,\"{\",CHAR(160),GI$1)),FIND(CHAR(160),SUBSTITUTE($V234,\"}\",CHAR(160),GI$1))-FIND(CHAR(160),SUBSTITUTE($V234,\"{\",CHAR(160),GI$1))+1),\"\")","v":""},{"$f":"IFERROR(MID($V234,FIND(CHAR(160),SUBSTITUTE($V234,\"{\",CHAR(160),GJ$1)),FIND(CHAR(160),SUBSTITUTE($V234,\"}\",CHAR(160),GJ$1))-FIND(CHAR(160),SUBSTITUTE($V234,\"{\",CHAR(160),GJ$1))+1),\"\")","v":""},{"$f":"IFERROR(MID($V234,FIND(CHAR(160),SUBSTITUTE($V234,\"{\",CHAR(160),GK$1)),FIND(CHAR(160),SUBSTITUTE($V234,\"}\",CHAR(160),GK$1))-FIND(CHAR(160),SUBSTITUTE($V234,\"{\",CHAR(160),GK$1))+1),\"\")","v":""},{"$f":"IFERROR(MID($V234,FIND(CHAR(160),SUBSTITUTE($V234,\"{\",CHAR(160),GL$1)),FIND(CHAR(160),SUBSTITUTE($V234,\"}\",CHAR(160),GL$1))-FIND(CHAR(160),SUBSTITUTE($V234,\"{\",CHAR(160),GL$1))+1),\"\")","v":""},{"$f":"IFERROR(MID($V234,FIND(CHAR(160),SUBSTITUTE($V234,\"{\",CHAR(160),GM$1)),FIND(CHAR(160),SUBSTITUTE($V234,\"}\",CHAR(160),GM$1))-FIND(CHAR(160),SUBSTITUTE($V234,\"{\",CHAR(160),GM$1))+1),\"\")","v":""},{"$f":"IFERROR(MID($V234,FIND(CHAR(160),SUBSTITUTE($V234,\"{\",CHAR(160),GN$1)),FIND(CHAR(160),SUBSTITUTE($V234,\"}\",CHAR(160),GN$1))-FIND(CHAR(160),SUBSTITUTE($V234,\"{\",CHAR(160),GN$1))+1),\"\")","v":""},{"$f":"IFERROR(MID($V234,FIND(CHAR(160),SUBSTITUTE($V234,\"{\",CHAR(160),GO$1)),FIND(CHAR(160),SUBSTITUTE($V234,\"}\",CHAR(160),GO$1))-FIND(CHAR(160),SUBSTITUTE($V234,\"{\",CHAR(160),GO$1))+1),\"\")","v":"{Measure:Quantity}"},{"$f":"IFERROR(MID($V234,FIND(CHAR(160),SUBSTITUTE($V234,\"{\",CHAR(160),GP$1)),FIND(CHAR(160),SUBSTITUTE($V234,\"}\",CHAR(160),GP$1))-FIND(CHAR(160),SUBSTITUTE($V234,\"{\",CHAR(160),GP$1))+1),\"\")","v":"{Package Size}"},{"$f":"IFERROR(MID($W234,FIND(CHAR(160),SUBSTITUTE($W234,\"{\",CHAR(160),GQ$1)),FIND(CHAR(160),SUBSTITUTE($W234,\"}\",CHAR(160),GQ$1))-FIND(CHAR(160),SUBSTITUTE($W234,\"{\",CHAR(160),GQ$1))+1),\"\")","v":""},{"$f":"IFERROR(MID($W234,FIND(CHAR(160),SUBSTITUTE($W234,\"{\",CHAR(160),GR$1)),FIND(CHAR(160),SUBSTITUTE($W234,\"}\",CHAR(160),GR$1))-FIND(CHAR(160),SUBSTITUTE($W234,\"{\",CHAR(160),GR$1))+1),\"\")","v":""},{"$f":"IFERROR(MID($W234,FIND(CHAR(160),SUBSTITUTE($W234,\"{\",CHAR(160),GS$1)),FIND(CHAR(160),SUBSTITUTE($W234,\"}\",CHAR(160),GS$1))-FIND(CHAR(160),SUBSTITUTE($W234,\"{\",CHAR(160),GS$1))+1),\"\")","v":""},{"$f":"IFERROR(MID($W234,FIND(CHAR(160),SUBSTITUTE($W234,\"{\",CHAR(160),GT$1)),FIND(CHAR(160),SUBSTITUTE($W234,\"}\",CHAR(160),GT$1))-FIND(CHAR(160),SUBSTITUTE($W234,\"{\",CHAR(160),GT$1))+1),\"\")","v":""},{"$f":"IFERROR(MID($W234,FIND(CHAR(160),SUBSTITUTE($W234,\"{\",CHAR(160),GU$1)),FIND(CHAR(160),SUBSTITUTE($W234,\"}\",CHAR(160),GU$1))-FIND(CHAR(160),SUBSTITUTE($W234,\"{\",CHAR(160),GU$1))+1),\"\")","v":""},{"$f":"IFERROR(MID($W234,FIND(CHAR(160),SUBSTITUTE($W234,\"{\",CHAR(160),GV$1)),FIND(CHAR(160),SUBSTITUTE($W234,\"}\",CHAR(160),GV$1))-FIND(CHAR(160),SUBSTITUTE($W234,\"{\",CHAR(160),GV$1))+1),\"\")","v":""},{"$f":"IFERROR(MID($W234,FIND(CHAR(160),SUBSTITUTE($W234,\"{\",CHAR(160),GW$1)),FIND(CHAR(160),SUBSTITUTE($W234,\"}\",CHAR(160),GW$1))-FIND(CHAR(160),SUBSTITUTE($W234,\"{\",CHAR(160),GW$1))+1),\"\")","v":""},{"$f":"IFERROR(MID($W234,FIND(CHAR(160),SUBSTITUTE($W234,\"{\",CHAR(160),GX$1)),FIND(CHAR(160),SUBSTITUTE($W234,\"}\",CHAR(160),GX$1))-FIND(CHAR(160),SUBSTITUTE($W234,\"{\",CHAR(160),GX$1))+1),\"\")","v":""},{"$f":"IFERROR(MID($W234,FIND(CHAR(160),SUBSTITUTE($W234,\"{\",CHAR(160),GY$1)),FIND(CHAR(160),SUBSTITUTE($W234,\"}\",CHAR(160),GY$1))-FIND(CHAR(160),SUBSTITUTE($W234,\"{\",CHAR(160),GY$1))+1),\"\")","v":"{Measure:Quantity}"},{"$f":"IFERROR(MID($W234,FIND(CHAR(160),SUBSTITUTE($W234,\"{\",CHAR(160),GZ$1)),FIND(CHAR(160),SUBSTITUTE($W234,\"}\",CHAR(160),GZ$1))-FIND(CHAR(160),SUBSTITUTE($W234,\"{\",CHAR(160),GZ$1))+1),\"\")","v":"{Package Size}"},{"$f":"IFERROR(MID($X234,FIND(CHAR(160),SUBSTITUTE($X234,\"{\",CHAR(160),HA$1)),FIND(CHAR(160),SUBSTITUTE($X234,\"}\",CHAR(160),HA$1))-FIND(CHAR(160),SUBSTITUTE($X234,\"{\",CHAR(160),HA$1))+1),\"\")","v":""},{"$f":"IFERROR(MID($X234,FIND(CHAR(160),SUBSTITUTE($X234,\"{\",CHAR(160),HB$1)),FIND(CHAR(160),SUBSTITUTE($X234,\"}\",CHAR(160),HB$1))-FIND(CHAR(160),SUBSTITUTE($X234,\"{\",CHAR(160),HB$1))+1),\"\")","v":""},{"$f":"IFERROR(MID($X234,FIND(CHAR(160),SUBSTITUTE($X234,\"{\",CHAR(160),HC$1)),FIND(CHAR(160),SUBSTITUTE($X234,\"}\",CHAR(160),HC$1))-FIND(CHAR(160),SUBSTITUTE($X234,\"{\",CHAR(160),HC$1))+1),\"\")","v":""},{"$f":"IFERROR(MID($X234,FIND(CHAR(160),SUBSTITUTE($X234,\"{\",CHAR(160),HD$1)),FIND(CHAR(160),SUBSTITUTE($X234,\"}\",CHAR(160),HD$1))-FIND(CHAR(160),SUBSTITUTE($X234,\"{\",CHAR(160),HD$1))+1),\"\")","v":""},{"$f":"IFERROR(MID($X234,FIND(CHAR(160),SUBSTITUTE($X234,\"{\",CHAR(160),HE$1)),FIND(CHAR(160),SUBSTITUTE($X234,\"}\",CHAR(160),HE$1))-FIND(CHAR(160),SUBSTITUTE($X234,\"{\",CHAR(160),HE$1))+1),\"\")","v":""},{"$f":"IFERROR(MID($X234,FIND(CHAR(160),SUBSTITUTE($X234,\"{\",CHAR(160),HF$1)),FIND(CHAR(160),SUBSTITUTE($X234,\"}\",CHAR(160),HF$1))-FIND(CHAR(160),SUBSTITUTE($X234,\"{\",CHAR(160),HF$1))+1),\"\")","v":""},{"$f":"IFERROR(MID($X234,FIND(CHAR(160),SUBSTITUTE($X234,\"{\",CHAR(160),HG$1)),FIND(CHAR(160),SUBSTITUTE($X234,\"}\",CHAR(160),HG$1))-FIND(CHAR(160),SUBSTITUTE($X234,\"{\",CHAR(160),HG$1))+1),\"\")","v":""},{"$f":"IFERROR(MID($X234,FIND(CHAR(160),SUBSTITUTE($X234,\"{\",CHAR(160),HH$1)),FIND(CHAR(160),SUBSTITUTE($X234,\"}\",CHAR(160),HH$1))-FIND(CHAR(160),SUBSTITUTE($X234,\"{\",CHAR(160),HH$1))+1),\"\")","v":""},{"$f":"IFERROR(MID($X234,FIND(CHAR(160),SUBSTITUTE($X234,\"{\",CHAR(160),HI$1)),FIND(CHAR(160),SUBSTITUTE($X234,\"}\",CHAR(160),HI$1))-FIND(CHAR(160),SUBSTITUTE($X234,\"{\",CHAR(160),HI$1))+1),\"\")","v":"{Measure:Quantity}"},{"$f":"IFERROR(MID($X234,FIND(CHAR(160),SUBSTITUTE($X234,\"{\",CHAR(160),HJ$1)),FIND(CHAR(160),SUBSTITUTE($X234,\"}\",CHAR(160),HJ$1))-FIND(CHAR(160),SUBSTITUTE($X234,\"{\",CHAR(160),HJ$1))+1),\"\")","v":"{Package Size}"},{"$f":"IFERROR(MID($Y234,FIND(CHAR(160),SUBSTITUTE($Y234,\"{\",CHAR(160),HK$1)),FIND(CHAR(160),SUBSTITUTE($Y234,\"}\",CHAR(160),HK$1))-FIND(CHAR(160),SUBSTITUTE($Y234,\"{\",CHAR(160),HK$1))+1),\"\")","v":""},{"$f":"IFERROR(MID($Y234,FIND(CHAR(160),SUBSTITUTE($Y234,\"{\",CHAR(160),HL$1)),FIND(CHAR(160),SUBSTITUTE($Y234,\"}\",CHAR(160),HL$1))-FIND(CHAR(160),SUBSTITUTE($Y234,\"{\",CHAR(160),HL$1))+1),\"\")","v":""},{"$f":"IFERROR(MID($Y234,FIND(CHAR(160),SUBSTITUTE($Y234,\"{\",CHAR(160),HM$1)),FIND(CHAR(160),SUBSTITUTE($Y234,\"}\",CHAR(160),HM$1))-FIND(CHAR(160),SUBSTITUTE($Y234,\"{\",CHAR(160),HM$1))+1),\"\")","v":""},{"$f":"IFERROR(MID($Y234,FIND(CHAR(160),SUBSTITUTE($Y234,\"{\",CHAR(160),HN$1)),FIND(CHAR(160),SUBSTITUTE($Y234,\"}\",CHAR(160),HN$1))-FIND(CHAR(160),SUBSTITUTE($Y234,\"{\",CHAR(160),HN$1))+1),\"\")","v":""},{"$f":"IFERROR(MID($Y234,FIND(CHAR(160),SUBSTITUTE($Y234,\"{\",CHAR(160),HO$1)),FIND(CHAR(160),SUBSTITUTE($Y234,\"}\",CHAR(160),HO$1))-FIND(CHAR(160),SUBSTITUTE($Y234,\"{\",CHAR(160),HO$1))+1),\"\")","v":""},{"$f":"IFERROR(MID($Y234,FIND(CHAR(160),SUBSTITUTE($Y234,\"{\",CHAR(160),HP$1)),FIND(CHAR(160),SUBSTITUTE($Y234,\"}\",CHAR(160),HP$1))-FIND(CHAR(160),SUBSTITUTE($Y234,\"{\",CHAR(160),HP$1))+1),\"\")","v":""},{"$f":"IFERROR(MID($Y234,FIND(CHAR(160),SUBSTITUTE($Y234,\"{\",CHAR(160),HQ$1)),FIND(CHAR(160),SUBSTITUTE($Y234,\"}\",CHAR(160),HQ$1))-FIND(CHAR(160),SUBSTITUTE($Y234,\"{\",CHAR(160),HQ$1))+1),\"\")","v":""},{"$f":"IFERROR(MID($Y234,FIND(CHAR(160),SUBSTITUTE($Y234,\"{\",CHAR(160),HR$1)),FIND(CHAR(160),SUBSTITUTE($Y234,\"}\",CHAR(160),HR$1))-FIND(CHAR(160),SUBSTITUTE($Y234,\"{\",CHAR(160),HR$1))+1),\"\")","v":""},{"$f":"IFERROR(MID($Y234,FIND(CHAR(160),SUBSTITUTE($Y234,\"{\",CHAR(160),HS$1)),FIND(CHAR(160),SUBSTITUTE($Y234,\"}\",CHAR(160),HS$1))-FIND(CHAR(160),SUBSTITUTE($Y234,\"{\",CHAR(160),HS$1))+1),\"\")","v":"{Measure:Quantity}"},{"$f":"IFERROR(MID($Y234,FIND(CHAR(160),SUBSTITUTE($Y234,\"{\",CHAR(160),HT$1)),FIND(CHAR(160),SUBSTITUTE($Y234,\"}\",CHAR(160),HT$1))-FIND(CHAR(160),SUBSTITUTE($Y234,\"{\",CHAR(160),HT$1))+1),\"\")","v":"{Package Size}"},{"$f":"IFERROR(MID($Z234,FIND(CHAR(160),SUBSTITUTE($Z234,\"{\",CHAR(160),HU$1)),FIND(CHAR(160),SUBSTITUTE($Z234,\"}\",CHAR(160),HU$1))-FIND(CHAR(160),SUBSTITUTE($Z234,\"{\",CHAR(160),HU$1))+1),\"\")","v":""},{"$f":"IFERROR(MID($Z234,FIND(CHAR(160),SUBSTITUTE($Z234,\"{\",CHAR(160),HV$1)),FIND(CHAR(160),SUBSTITUTE($Z234,\"}\",CHAR(160),HV$1))-FIND(CHAR(160),SUBSTITUTE($Z234,\"{\",CHAR(160),HV$1))+1),\"\")","v":""},{"$f":"IFERROR(MID($Z234,FIND(CHAR(160),SUBSTITUTE($Z234,\"{\",CHAR(160),HW$1)),FIND(CHAR(160),SUBSTITUTE($Z234,\"}\",CHAR(160),HW$1))-FIND(CHAR(160),SUBSTITUTE($Z234,\"{\",CHAR(160),HW$1))+1),\"\")","v":""},{"$f":"IFERROR(MID($Z234,FIND(CHAR(160),SUBSTITUTE($Z234,\"{\",CHAR(160),HX$1)),FIND(CHAR(160),SUBSTITUTE($Z234,\"}\",CHAR(160),HX$1))-FIND(CHAR(160),SUBSTITUTE($Z234,\"{\",CHAR(160),HX$1))+1),\"\")","v":""},{"$f":"IFERROR(MID($Z234,FIND(CHAR(160),SUBSTITUTE($Z234,\"{\",CHAR(160),HY$1)),FIND(CHAR(160),SUBSTITUTE($Z234,\"}\",CHAR(160),HY$1))-FIND(CHAR(160),SUBSTITUTE($Z234,\"{\",CHAR(160),HY$1))+1),\"\")","v":""},{"$f":"IFERROR(MID($Z234,FIND(CHAR(160),SUBSTITUTE($Z234,\"{\",CHAR(160),HZ$1)),FIND(CHAR(160),SUBSTITUTE($Z234,\"}\",CHAR(160),HZ$1))-FIND(CHAR(160),SUBSTITUTE($Z234,\"{\",CHAR(160),HZ$1))+1),\"\")","v":""},{"$f":"IFERROR(MID($Z234,FIND(CHAR(160),SUBSTITUTE($Z234,\"{\",CHAR(160),IA$1)),FIND(CHAR(160),SUBSTITUTE($Z234,\"}\",CHAR(160),IA$1))-FIND(CHAR(160),SUBSTITUTE($Z234,\"{\",CHAR(160),IA$1))+1),\"\")","v":""},{"$f":"IFERROR(MID($Z234,FIND(CHAR(160),SUBSTITUTE($Z234,\"{\",CHAR(160),IB$1)),FIND(CHAR(160),SUBSTITUTE($Z234,\"}\",CHAR(160),IB$1))-FIND(CHAR(160),SUBSTITUTE($Z234,\"{\",CHAR(160),IB$1))+1),\"\")","v":""},{"$f":"IFERROR(MID($Z234,FIND(CHAR(160),SUBSTITUTE($Z234,\"{\",CHAR(160),IC$1)),FIND(CHAR(160),SUBSTITUTE($Z234,\"}\",CHAR(160),IC$1))-FIND(CHAR(160),SUBSTITUTE($Z234,\"{\",CHAR(160),IC$1))+1),\"\")","v":"{Measure:Quantity}"},{"$f":"IFERROR(MID($Z234,FIND(CHAR(160),SUBSTITUTE($Z234,\"{\",CHAR(160),ID$1)),FIND(CHAR(160),SUBSTITUTE($Z234,\"}\",CHAR(160),ID$1))-FIND(CHAR(160),SUBSTITUTE($Z234,\"{\",CHAR(160),ID$1))+1),\"\")","v":"{Package Size}"},{"$f":"IFERROR(MID($AA234,FIND(CHAR(160),SUBSTITUTE($AA234,\"{\",CHAR(160),IE$1)),FIND(CHAR(160),SUBSTITUTE($AA234,\"}\",CHAR(160),IE$1))-FIND(CHAR(160),SUBSTITUTE($AA234,\"{\",CHAR(160),IE$1))+1),\"\")","v":""},{"$f":"IFERROR(MID($AA234,FIND(CHAR(160),SUBSTITUTE($AA234,\"{\",CHAR(160),IF$1)),FIND(CHAR(160),SUBSTITUTE($AA234,\"}\",CHAR(160),IF$1))-FIND(CHAR(160),SUBSTITUTE($AA234,\"{\",CHAR(160),IF$1))+1),\"\")","v":""},{"$f":"IFERROR(MID($AA234,FIND(CHAR(160),SUBSTITUTE($AA234,\"{\",CHAR(160),IG$1)),FIND(CHAR(160),SUBSTITUTE($AA234,\"}\",CHAR(160),IG$1))-FIND(CHAR(160),SUBSTITUTE($AA234,\"{\",CHAR(160),IG$1))+1),\"\")","v":""},{"$f":"IFERROR(MID($AA234,FIND(CHAR(160),SUBSTITUTE($AA234,\"{\",CHAR(160),IH$1)),FIND(CHAR(160),SUBSTITUTE($AA234,\"}\",CHAR(160),IH$1))-FIND(CHAR(160),SUBSTITUTE($AA234,\"{\",CHAR(160),IH$1))+1),\"\")","v":""},{"$f":"IFERROR(MID($AA234,FIND(CHAR(160),SUBSTITUTE($AA234,\"{\",CHAR(160),II$1)),FIND(CHAR(160),SUBSTITUTE($AA234,\"}\",CHAR(160),II$1))-FIND(CHAR(160),SUBSTITUTE($AA234,\"{\",CHAR(160),II$1))+1),\"\")","v":""},{"$f":"IFERROR(MID($AA234,FIND(CHAR(160),SUBSTITUTE($AA234,\"{\",CHAR(160),IJ$1)),FIND(CHAR(160),SUBSTITUTE($AA234,\"}\",CHAR(160),IJ$1))-FIND(CHAR(160),SUBSTITUTE($AA234,\"{\",CHAR(160),IJ$1))+1),\"\")","v":""},{"$f":"IFERROR(MID($AA234,FIND(CHAR(160),SUBSTITUTE($AA234,\"{\",CHAR(160),IK$1)),FIND(CHAR(160),SUBSTITUTE($AA234,\"}\",CHAR(160),IK$1))-FIND(CHAR(160),SUBSTITUTE($AA234,\"{\",CHAR(160),IK$1))+1),\"\")","v":""},{"$f":"IFERROR(MID($AA234,FIND(CHAR(160),SUBSTITUTE($AA234,\"{\",CHAR(160),IL$1)),FIND(CHAR(160),SUBSTITUTE($AA234,\"}\",CHAR(160),IL$1))-FIND(CHAR(160),SUBSTITUTE($AA234,\"{\",CHAR(160),IL$1))+1),\"\")","v":""},{"$f":"IFERROR(MID($AA234,FIND(CHAR(160),SUBSTITUTE($AA234,\"{\",CHAR(160),IM$1)),FIND(CHAR(160),SUBSTITUTE($AA234,\"}\",CHAR(160),IM$1))-FIND(CHAR(160),SUBSTITUTE($AA234,\"{\",CHAR(160),IM$1))+1),\"\")","v":"{Measure:Quantity}"},{"$f":"IFERROR(MID($AA234,FIND(CHAR(160),SUBSTITUTE($AA234,\"{\",CHAR(160),IN$1)),FIND(CHAR(160),SUBSTITUTE($AA234,\"}\",CHAR(160),IN$1))-FIND(CHAR(160),SUBSTITUTE($AA234,\"{\",CHAR(160),IN$1))+1),\"\")","v":"{Package Size}"},{"$f":"IFERROR(MID($AB234,FIND(CHAR(160),SUBSTITUTE($AB234,\"{\",CHAR(160),IO$1)),FIND(CHAR(160),SUBSTITUTE($AB234,\"}\",CHAR(160),IO$1))-FIND(CHAR(160),SUBSTITUTE($AB234,\"{\",CHAR(160),IO$1))+1),\"\")","v":""},{"$f":"IFERROR(MID($AB234,FIND(CHAR(160),SUBSTITUTE($AB234,\"{\",CHAR(160),IP$1)),FIND(CHAR(160),SUBSTITUTE($AB234,\"}\",CHAR(160),IP$1))-FIND(CHAR(160),SUBSTITUTE($AB234,\"{\",CHAR(160),IP$1))+1),\"\")","v":""},{"$f":"IFERROR(MID($AB234,FIND(CHAR(160),SUBSTITUTE($AB234,\"{\",CHAR(160),IQ$1)),FIND(CHAR(160),SUBSTITUTE($AB234,\"}\",CHAR(160),IQ$1))-FIND(CHAR(160),SUBSTITUTE($AB234,\"{\",CHAR(160),IQ$1))+1),\"\")","v":""},{"$f":"IFERROR(MID($AB234,FIND(CHAR(160),SUBSTITUTE($AB234,\"{\",CHAR(160),IR$1)),FIND(CHAR(160),SUBSTITUTE($AB234,\"}\",CHAR(160),IR$1))-FIND(CHAR(160),SUBSTITUTE($AB234,\"{\",CHAR(160),IR$1))+1),\"\")","v":""},{"$f":"IFERROR(MID($AB234,FIND(CHAR(160),SUBSTITUTE($AB234,\"{\",CHAR(160),IS$1)),FIND(CHAR(160),SUBSTITUTE($AB234,\"}\",CHAR(160),IS$1))-FIND(CHAR(160),SUBSTITUTE($AB234,\"{\",CHAR(160),IS$1))+1),\"\")","v":""},{"$f":"IFERROR(MID($AB234,FIND(CHAR(160),SUBSTITUTE($AB234,\"{\",CHAR(160),IT$1)),FIND(CHAR(160),SUBSTITUTE($AB234,\"}\",CHAR(160),IT$1))-FIND(CHAR(160),SUBSTITUTE($AB234,\"{\",CHAR(160),IT$1))+1),\"\")","v":""},{"$f":"IFERROR(MID($AB234,FIND(CHAR(160),SUBSTITUTE($AB234,\"{\",CHAR(160),IU$1)),FIND(CHAR(160),SUBSTITUTE($AB234,\"}\",CHAR(160),IU$1))-FIND(CHAR(160),SUBSTITUTE($AB234,\"{\",CHAR(160),IU$1))+1),\"\")","v":""},{"$f":"IFERROR(MID($AB234,FIND(CHAR(160),SUBSTITUTE($AB234,\"{\",CHAR(160),IV$1)),FIND(CHAR(160),SUBSTITUTE($AB234,\"}\",CHAR(160),IV$1))-FIND(CHAR(160),SUBSTITUTE($AB234,\"{\",CHAR(160),IV$1))+1),\"\")","v":""},{"$f":"IFERROR(MID($AB234,FIND(CHAR(160),SUBSTITUTE($AB234,\"{\",CHAR(160),IW$1)),FIND(CHAR(160),SUBSTITUTE($AB234,\"}\",CHAR(160),IW$1))-FIND(CHAR(160),SUBSTITUTE($AB234,\"{\",CHAR(160),IW$1))+1),\"\")","v":""},{"$f":"IFERROR(MID($AB234,FIND(CHAR(160),SUBSTITUTE($AB234,\"{\",CHAR(160),IX$1)),FIND(CHAR(160),SUBSTITUTE($AB234,\"}\",CHAR(160),IX$1))-FIND(CHAR(160),SUBSTITUTE($AB234,\"{\",CHAR(160),IX$1))+1),\"\")","v":""},null,{"$f":"10-COUNTIF(DU234:ED234,\"\")","v":4}]
["Retail Lighting","LED Specialty Bulb Other (Globe & 3-Way) Short Life","LEDSPCOS","2021-07-01","2022-06-30","Calculated","{Measure:Quantity}*{Package Size}*4.32",0,"Calculated","{Measure:Quantity}*({Rebate per Package}+{Marketing Fee})",0,"2021-07-01","2022-06-30","Calculated","{Measure:Quantity}*{Package Size}*38",null,null,"{Measure:Quantity}*{Package Size}*1.062*0.042",null,null,"{Measure:Quantity}*{Package Size}*0.008","{Measure:Quantity}*{Package Size}*0.005","{Measure:Quantity}*{Package Size}*10*-0.005","{Measure:Quantity}*{Package Size}*-0.004","{Measure:Quantity}*{Package Size}*-0.032","{Measure:Quantity}*{Package Size}*-0.001","{Measure:Quantity}*{Package Size}*-0.007",null,"2021-07-01","2022-06-30",4,0.185,0.109,0.37,0.31,0.17100000000000001,0.14899999999999999,0.99,1,1,0.76300000000000001,0,null,{"$f":"DU235","v":"{Measure:Quantity}"},1,{"$f":"DV235","v":"{Package Size}"},1,{"$f":"DW235","v":"{Rebate per Package}"},{"$f":"CO235","v":4.32},{"$f":"DX235","v":"{Marketing Fee}"},1,{"$f":"DY235","v":""},null,{"$f":"DZ235","v":""},null,{"$f":"EA235","v":""},null,{"$f":"EB235","v":""},null,{"$f":"EC235","v":""},null,{"$f":"ED235","v":""},null,{"$f":"AS235*AU235*38","v":38},0,0,{"$f":"AS235*AU235*1.062*0.042","v":4.4604000000000005E-2},0,0,{"$f":"AS235*AU235*0.008","v":8.0000000000000002E-3},{"$f":"AS235*AU235*0.005","v":5.0000000000000001E-3},{"$f":"AS235*AU235*10*-0.005","v":-0.05},{"$f":"AS235*AU235*-0.004","v":-4.0000000000000001E-3},{"$f":"AS235*AU235*-0.032","v":-3.2000000000000001E-2},{"$f":"AS235*AU235*-0.001","v":-1E-3},{"$f":"AS235*AU235*-0.007","v":-7.0000000000000001E-3},0,null,"Res","Default DR",{"$f":"Benefits(BL235,BR235,BS235,BT235,BU235,BV235,BW235,BX235,BY235,BZ235,AE235,AH235,AI235,AJ235,AK235,AL235,AM235,AN235,AO235,AP235,CA235,CB235)","v":17.076694980235601},12.020887559332447,-0.33246321835351589,-4.0659504007993839,-0.14543538089809677,-0.70777768089744719,-0.49851309521017184,0,0,{"$f":"SUMPRODUCT(CC235:CK235,--(CC235:CK235>0))","v":29.097582539568048},{"$f":"-SUMPRODUCT(CC235:CK235,--(CC235:CK235<0))","v":5.7501397761586155},null,{"$f":"AS235*AU235*4.32","v":4.32},null,null,{"$f":"CM235+CO235","v":10.070139776158616},{"$f":"IF(NetOrGross=\"Net\",(1-AO235+AP235),1)","v":1},{"$f":"(SUMPRODUCT(CC235:CJ235,--(CC235:CJ235>0))+CN235)*CS235/((-SUMPRODUCT(CC235:CJ235,--(CC235:CJ235<0))+MAX(CO235,CV235)+CP235+CQ235)*CS235+IF(FRIncentives=\"Yes\",CV235*(1-CS235),0))","v":2.6284747191932052},1,{"$f":"AS235*(AW235+AY235)","v":5.32},1,"Electric","y",null,{"$f":"IF(F235=\"Manual Entry\",\"Manual\",IF(G235=\"\",0,\"X=\"&SUBSTITUTE(SUBSTITUTE(SUBSTITUTE(SUBSTITUTE(SUBSTITUTE(SUBSTITUTE(SUBSTITUTE(SUBSTITUTE(SUBSTITUTE(SUBSTITUTE(SUBSTITUTE(SUBSTITUTE(G235,$ED235,$ED$2&ROW($ED235)),$EC235,$EC$2&ROW($EC235)),$EB235,$EB$2&ROW($EB235)),$EA235,$EA$2&ROW($EA235)),$DZ235,$DZ$2&ROW($DZ235)),$DY235,$DY$2&ROW($DY235)),$DX235,$DX$2&ROW($DX235)),$DW235,$DW$2&ROW($DW235)),$DV235,$DV$2&ROW($DV235)),$DU235,$DU$2&ROW($DU235)),$DT235,$DT$2&ROW($DT235)),$DS235,$DS$2&ROW($DS235))))","v":"X=AS235*AU235*4.32"},{"$f":"IF(I235=\"Manual Entry\",\"Manual\",IF(J235=\"\",0,\"X=\"&SUBSTITUTE(SUBSTITUTE(SUBSTITUTE(SUBSTITUTE(SUBSTITUTE(SUBSTITUTE(SUBSTITUTE(SUBSTITUTE(SUBSTITUTE(SUBSTITUTE(SUBSTITUTE(SUBSTITUTE(J235,$ED235,$ED$2&ROW($ED235)),$EC235,$EC$2&ROW($EC235)),$EB235,$EB$2&ROW($EB235)),$EA235,$EA$2&ROW($EA235)),$DZ235,$DZ$2&ROW($DZ235)),$DY235,$DY$2&ROW($DY235)),$DX235,$DX$2&ROW($DX235)),$DW235,$DW$2&ROW($DW235)),$DV235,$DV$2&ROW($DV235)),$DU235,$DU$2&ROW($DU235)),$DT235,$DT$2&ROW($DT235)),$DS235,$DS$2&ROW($DS235))))","v":"X=AS235*(AW235+AY235)"},{"$f":"IF(O235=\"\",0,\"X=\"&SUBSTITUTE(SUBSTITUTE(SUBSTITUTE(SUBSTITUTE(SUBSTITUTE(SUBSTITUTE(SUBSTITUTE(SUBSTITUTE(SUBSTITUTE(SUBSTITUTE(SUBSTITUTE(SUBSTITUTE(O235,$ED235,$ED$2&ROW($ED235)),$EC235,$EC$2&ROW($EC235)),$EB235,$EB$2&ROW($EB235)),$EA235,$EA$2&ROW($EA235)),$DZ235,$DZ$2&ROW($DZ235)),$DY235,$DY$2&ROW($DY235)),$DX235,$DX$2&ROW($DX235)),$DW235,$DW$2&ROW($DW235)),$DV235,$DV$2&ROW($DV235)),$DU235,$DU$2&ROW($DU235)),$DT235,$DT$2&ROW($DT235)),$DS235,$DS$2&ROW($DS235)))","v":"X=AS235*AU235*38"},{"$f":"IF(P235=\"\",0,\"X=\"&SUBSTITUTE(SUBSTITUTE(SUBSTITUTE(SUBSTITUTE(SUBSTITUTE(SUBSTITUTE(SUBSTITUTE(SUBSTITUTE(SUBSTITUTE(SUBSTITUTE(SUBSTITUTE(SUBSTITUTE(P235,$ED235,$ED$2&ROW($ED235)),$EC235,$EC$2&ROW($EC235)),$EB235,$EB$2&ROW($EB235)),$EA235,$EA$2&ROW($EA235)),$DZ235,$DZ$2&ROW($DZ235)),$DY235,$DY$2&ROW($DY235)),$DX235,$DX$2&ROW($DX235)),$DW235,$DW$2&ROW($DW235)),$DV235,$DV$2&ROW($DV235)),$DU235,$DU$2&ROW($DU235)),$DT235,$DT$2&ROW($DT235)),$DS235,$DS$2&ROW($DS235)))","v":0},{"$f":"IF(Q235=\"\",0,\"X=\"&SUBSTITUTE(SUBSTITUTE(SUBSTITUTE(SUBSTITUTE(SUBSTITUTE(SUBSTITUTE(SUBSTITUTE(SUBSTITUTE(SUBSTITUTE(SUBSTITUTE(SUBSTITUTE(SUBSTITUTE(Q235,$ED235,$ED$2&ROW($ED235)),$EC235,$EC$2&ROW($EC235)),$EB235,$EB$2&ROW($EB235)),$EA235,$EA$2&ROW($EA235)),$DZ235,$DZ$2&ROW($DZ235)),$DY235,$DY$2&ROW($DY235)),$DX235,$DX$2&ROW($DX235)),$DW235,$DW$2&ROW($DW235)),$DV235,$DV$2&ROW($DV235)),$DU235,$DU$2&ROW($DU235)),$DT235,$DT$2&ROW($DT235)),$DS235,$DS$2&ROW($DS235)))","v":0},{"$f":"IF(R235=\"\",0,\"X=\"&SUBSTITUTE(SUBSTITUTE(SUBSTITUTE(SUBSTITUTE(SUBSTITUTE(SUBSTITUTE(SUBSTITUTE(SUBSTITUTE(SUBSTITUTE(SUBSTITUTE(SUBSTITUTE(SUBSTITUTE(R235,$ED235,$ED$2&ROW($ED235)),$EC235,$EC$2&ROW($EC235)),$EB235,$EB$2&ROW($EB235)),$EA235,$EA$2&ROW($EA235)),$DZ235,$DZ$2&ROW($DZ235)),$DY235,$DY$2&ROW($DY235)),$DX235,$DX$2&ROW($DX235)),$DW235,$DW$2&ROW($DW235)),$DV235,$DV$2&ROW($DV235)),$DU235,$DU$2&ROW($DU235)),$DT235,$DT$2&ROW($DT235)),$DS235,$DS$2&ROW($DS235)))","v":"X=AS235*AU235*1.062*0.042"},{"$f":"IF(S235=\"\",0,\"X=\"&SUBSTITUTE(SUBSTITUTE(SUBSTITUTE(SUBSTITUTE(SUBSTITUTE(SUBSTITUTE(SUBSTITUTE(SUBSTITUTE(SUBSTITUTE(SUBSTITUTE(SUBSTITUTE(SUBSTITUTE(S235,$ED235,$ED$2&ROW($ED235)),$EC235,$EC$2&ROW($EC235)),$EB235,$EB$2&ROW($EB235)),$EA235,$EA$2&ROW($EA235)),$DZ235,$DZ$2&ROW($DZ235)),$DY235,$DY$2&ROW($DY235)),$DX235,$DX$2&ROW($DX235)),$DW235,$DW$2&ROW($DW235)),$DV235,$DV$2&ROW($DV235)),$DU235,$DU$2&ROW($DU235)),$DT235,$DT$2&ROW($DT235)),$DS235,$DS$2&ROW($DS235)))","v":0},{"$f":"IF(T235=\"\",0,\"X=\"&SUBSTITUTE(SUBSTITUTE(SUBSTITUTE(SUBSTITUTE(SUBSTITUTE(SUBSTITUTE(SUBSTITUTE(SUBSTITUTE(SUBSTITUTE(SUBSTITUTE(SUBSTITUTE(SUBSTITUTE(T235,$ED235,$ED$2&ROW($ED235)),$EC235,$EC$2&ROW($EC235)),$EB235,$EB$2&ROW($EB235)),$EA235,$EA$2&ROW($EA235)),$DZ235,$DZ$2&ROW($DZ235)),$DY235,$DY$2&ROW($DY235)),$DX235,$DX$2&ROW($DX235)),$DW235,$DW$2&ROW($DW235)),$DV235,$DV$2&ROW($DV235)),$DU235,$DU$2&ROW($DU235)),$DT235,$DT$2&ROW($DT235)),$DS235,$DS$2&ROW($DS235)))","v":0},{"$f":"IF(U235=\"\",0,\"X=\"&SUBSTITUTE(SUBSTITUTE(SUBSTITUTE(SUBSTITUTE(SUBSTITUTE(SUBSTITUTE(SUBSTITUTE(SUBSTITUTE(SUBSTITUTE(SUBSTITUTE(SUBSTITUTE(SUBSTITUTE(U235,$ED235,$ED$2&ROW($ED235)),$EC235,$EC$2&ROW($EC235)),$EB235,$EB$2&ROW($EB235)),$EA235,$EA$2&ROW($EA235)),$DZ235,$DZ$2&ROW($DZ235)),$DY235,$DY$2&ROW($DY235)),$DX235,$DX$2&ROW($DX235)),$DW235,$DW$2&ROW($DW235)),$DV235,$DV$2&ROW($DV235)),$DU235,$DU$2&ROW($DU235)),$DT235,$DT$2&ROW($DT235)),$DS235,$DS$2&ROW($DS235)))","v":"X=AS235*AU235*0.008"},{"$f":"IF(V235=\"\",0,\"X=\"&SUBSTITUTE(SUBSTITUTE(SUBSTITUTE(SUBSTITUTE(SUBSTITUTE(SUBSTITUTE(SUBSTITUTE(SUBSTITUTE(SUBSTITUTE(SUBSTITUTE(SUBSTITUTE(SUBSTITUTE(V235,$ED235,$ED$2&ROW($ED235)),$EC235,$EC$2&ROW($EC235)),$EB235,$EB$2&ROW($EB235)),$EA235,$EA$2&ROW($EA235)),$DZ235,$DZ$2&ROW($DZ235)),$DY235,$DY$2&ROW($DY235)),$DX235,$DX$2&ROW($DX235)),$DW235,$DW$2&ROW($DW235)),$DV235,$DV$2&ROW($DV235)),$DU235,$DU$2&ROW($DU235)),$DT235,$DT$2&ROW($DT235)),$DS235,$DS$2&ROW($DS235)))","v":"X=AS235*AU235*0.005"},{"$f":"IF(W235=\"\",0,\"X=\"&SUBSTITUTE(SUBSTITUTE(SUBSTITUTE(SUBSTITUTE(SUBSTITUTE(SUBSTITUTE(SUBSTITUTE(SUBSTITUTE(SUBSTITUTE(SUBSTITUTE(SUBSTITUTE(SUBSTITUTE(W235,$ED235,$ED$2&ROW($ED235)),$EC235,$EC$2&ROW($EC235)),$EB235,$EB$2&ROW($EB235)),$EA235,$EA$2&ROW($EA235)),$DZ235,$DZ$2&ROW($DZ235)),$DY235,$DY$2&ROW($DY235)),$DX235,$DX$2&ROW($DX235)),$DW235,$DW$2&ROW($DW235)),$DV235,$DV$2&ROW($DV235)),$DU235,$DU$2&ROW($DU235)),$DT235,$DT$2&ROW($DT235)),$DS235,$DS$2&ROW($DS235)))","v":"X=AS235*AU235*10*-0.005"},{"$f":"IF(X235=\"\",0,\"X=\"&SUBSTITUTE(SUBSTITUTE(SUBSTITUTE(SUBSTITUTE(SUBSTITUTE(SUBSTITUTE(SUBSTITUTE(SUBSTITUTE(SUBSTITUTE(SUBSTITUTE(SUBSTITUTE(SUBSTITUTE(X235,$ED235,$ED$2&ROW($ED235)),$EC235,$EC$2&ROW($EC235)),$EB235,$EB$2&ROW($EB235)),$EA235,$EA$2&ROW($EA235)),$DZ235,$DZ$2&ROW($DZ235)),$DY235,$DY$2&ROW($DY235)),$DX235,$DX$2&ROW($DX235)),$DW235,$DW$2&ROW($DW235)),$DV235,$DV$2&ROW($DV235)),$DU235,$DU$2&ROW($DU235)),$DT235,$DT$2&ROW($DT235)),$DS235,$DS$2&ROW($DS235)))","v":"X=AS235*AU235*-0.004"},{"$f":"IF(Y235=\"\",0,\"X=\"&SUBSTITUTE(SUBSTITUTE(SUBSTITUTE(SUBSTITUTE(SUBSTITUTE(SUBSTITUTE(SUBSTITUTE(SUBSTITUTE(SUBSTITUTE(SUBSTITUTE(SUBSTITUTE(SUBSTITUTE(Y235,$ED235,$ED$2&ROW($ED235)),$EC235,$EC$2&ROW($EC235)),$EB235,$EB$2&ROW($EB235)),$EA235,$EA$2&ROW($EA235)),$DZ235,$DZ$2&ROW($DZ235)),$DY235,$DY$2&ROW($DY235)),$DX235,$DX$2&ROW($DX235)),$DW235,$DW$2&ROW($DW235)),$DV235,$DV$2&ROW($DV235)),$DU235,$DU$2&ROW($DU235)),$DT235,$DT$2&ROW($DT235)),$DS235,$DS$2&ROW($DS235)))","v":"X=AS235*AU235*-0.032"},{"$f":"IF(Z235=\"\",0,\"X=\"&SUBSTITUTE(SUBSTITUTE(SUBSTITUTE(SUBSTITUTE(SUBSTITUTE(SUBSTITUTE(SUBSTITUTE(SUBSTITUTE(SUBSTITUTE(SUBSTITUTE(SUBSTITUTE(SUBSTITUTE(Z235,$ED235,$ED$2&ROW($ED235)),$EC235,$EC$2&ROW($EC235)),$EB235,$EB$2&ROW($EB235)),$EA235,$EA$2&ROW($EA235)),$DZ235,$DZ$2&ROW($DZ235)),$DY235,$DY$2&ROW($DY235)),$DX235,$DX$2&ROW($DX235)),$DW235,$DW$2&ROW($DW235)),$DV235,$DV$2&ROW($DV235)),$DU235,$DU$2&ROW($DU235)),$DT235,$DT$2&ROW($DT235)),$DS235,$DS$2&ROW($DS235)))","v":"X=AS235*AU235*-0.001"},{"$f":"IF(AA235=\"\",0,\"X=\"&SUBSTITUTE(SUBSTITUTE(SUBSTITUTE(SUBSTITUTE(SUBSTITUTE(SUBSTITUTE(SUBSTITUTE(SUBSTITUTE(SUBSTITUTE(SUBSTITUTE(SUBSTITUTE(SUBSTITUTE(AA235,$ED235,$ED$2&ROW($ED235)),$EC235,$EC$2&ROW($EC235)),$EB235,$EB$2&ROW($EB235)),$EA235,$EA$2&ROW($EA235)),$DZ235,$DZ$2&ROW($DZ235)),$DY235,$DY$2&ROW($DY235)),$DX235,$DX$2&ROW($DX235)),$DW235,$DW$2&ROW($DW235)),$DV235,$DV$2&ROW($DV235)),$DU235,$DU$2&ROW($DU235)),$DT235,$DT$2&ROW($DT235)),$DS235,$DS$2&ROW($DS235)))","v":"X=AS235*AU235*-0.007"},{"$f":"IF(AB235=\"\",0,\"X=\"&SUBSTITUTE(SUBSTITUTE(SUBSTITUTE(SUBSTITUTE(SUBSTITUTE(SUBSTITUTE(SUBSTITUTE(SUBSTITUTE(SUBSTITUTE(SUBSTITUTE(SUBSTITUTE(SUBSTITUTE(AB235,$ED235,$ED$2&ROW($ED235)),$EC235,$EC$2&ROW($EC235)),$EB235,$EB$2&ROW($EB235)),$EA235,$EA$2&ROW($EA235)),$DZ235,$DZ$2&ROW($DZ235)),$DY235,$DY$2&ROW($DY235)),$DX235,$DX$2&ROW($DX235)),$DW235,$DW$2&ROW($DW235)),$DV235,$DV$2&ROW($DV235)),$DU235,$DU$2&ROW($DU235)),$DT235,$DT$2&ROW($DT235)),$DS235,$DS$2&ROW($DS235)))","v":0},null,null,"{Factor:WinterCF}","{Factor:SummerCF}",{"$f":"IFERROR(INDEX($EG235:$IV235,MATCH(0,COUNTIF($DR235:DT235,$EG235:$IV235),0)),\"\")","v":"{Measure:Quantity}"},{"$f":"IFERROR(INDEX($EG235:$IV235,MATCH(0,COUNTIF($DR235:DU235,$EG235:$IV235),0)),\"\")","v":"{Package Size}"},{"$f":"IFERROR(INDEX($EG235:$IV235,MATCH(0,COUNTIF($DR235:DV235,$EG235:$IV235),0)),\"\")","v":"{Rebate per Package}"},{"$f":"IFERROR(INDEX($EG235:$IV235,MATCH(0,COUNTIF($DR235:DW235,$EG235:$IV235),0)),\"\")","v":"{Marketing Fee}"},{"$f":"IFERROR(INDEX($EG235:$IV235,MATCH(0,COUNTIF($DR235:DX235,$EG235:$IV235),0)),\"\")","v":""},{"$f":"IFERROR(INDEX($EG235:$IV235,MATCH(0,COUNTIF($DR235:DY235,$EG235:$IV235),0)),\"\")","v":""},{"$f":"IFERROR(INDEX($EG235:$IV235,MATCH(0,COUNTIF($DR235:DZ235,$EG235:$IV235),0)),\"\")","v":""},{"$f":"IFERROR(INDEX($EG235:$IV235,MATCH(0,COUNTIF($DR235:EA235,$EG235:$IV235),0)),\"\")","v":""},{"$f":"IFERROR(INDEX($EG235:$IV235,MATCH(0,COUNTIF($DR235:EB235,$EG235:$IV235),0)),\"\")","v":""},{"$f":"IFERROR(INDEX($EG235:$IV235,MATCH(0,COUNTIF($DR235:EC235,$EG235:$IV235),0)),\"\")","v":""},null,null,{"$f":"IFERROR(MID($G235,FIND(CHAR(160),SUBSTITUTE($G235,\"{\",CHAR(160),EG$1)),FIND(CHAR(160),SUBSTITUTE($G235,\"}\",CHAR(160),EG$1))-FIND(CHAR(160),SUBSTITUTE($G235,\"{\",CHAR(160),EG$1))+1),\"\")","v":"{Measure:Quantity}"},{"$f":"IFERROR(MID($G235,FIND(CHAR(160),SUBSTITUTE($G235,\"{\",CHAR(160),EH$1)),FIND(CHAR(160),SUBSTITUTE($G235,\"}\",CHAR(160),EH$1))-FIND(CHAR(160),SUBSTITUTE($G235,\"{\",CHAR(160),EH$1))+1),\"\")","v":"{Package Size}"},{"$f":"IFERROR(MID($G235,FIND(CHAR(160),SUBSTITUTE($G235,\"{\",CHAR(160),EI$1)),FIND(CHAR(160),SUBSTITUTE($G235,\"}\",CHAR(160),EI$1))-FIND(CHAR(160),SUBSTITUTE($G235,\"{\",CHAR(160),EI$1))+1),\"\")","v":""},{"$f":"IFERROR(MID($G235,FIND(CHAR(160),SUBSTITUTE($G235,\"{\",CHAR(160),EJ$1)),FIND(CHAR(160),SUBSTITUTE($G235,\"}\",CHAR(160),EJ$1))-FIND(CHAR(160),SUBSTITUTE($G235,\"{\",CHAR(160),EJ$1))+1),\"\")","v":""},{"$f":"IFERROR(MID($G235,FIND(CHAR(160),SUBSTITUTE($G235,\"{\",CHAR(160),EK$1)),FIND(CHAR(160),SUBSTITUTE($G235,\"}\",CHAR(160),EK$1))-FIND(CHAR(160),SUBSTITUTE($G235,\"{\",CHAR(160),EK$1))+1),\"\")","v":""},{"$f":"IFERROR(MID($G235,FIND(CHAR(160),SUBSTITUTE($G235,\"{\",CHAR(160),EL$1)),FIND(CHAR(160),SUBSTITUTE($G235,\"}\",CHAR(160),EL$1))-FIND(CHAR(160),SUBSTITUTE($G235,\"{\",CHAR(160),EL$1))+1),\"\")","v":""},{"$f":"IFERROR(MID($G235,FIND(CHAR(160),SUBSTITUTE($G235,\"{\",CHAR(160),EM$1)),FIND(CHAR(160),SUBSTITUTE($G235,\"}\",CHAR(160),EM$1))-FIND(CHAR(160),SUBSTITUTE($G235,\"{\",CHAR(160),EM$1))+1),\"\")","v":""},{"$f":"IFERROR(MID($G235,FIND(CHAR(160),SUBSTITUTE($G235,\"{\",CHAR(160),EN$1)),FIND(CHAR(160),SUBSTITUTE($G235,\"}\",CHAR(160),EN$1))-FIND(CHAR(160),SUBSTITUTE($G235,\"{\",CHAR(160),EN$1))+1),\"\")","v":""},{"$f":"IFERROR(MID($G235,FIND(CHAR(160),SUBSTITUTE($G235,\"{\",CHAR(160),EO$1)),FIND(CHAR(160),SUBSTITUTE($G235,\"}\",CHAR(160),EO$1))-FIND(CHAR(160),SUBSTITUTE($G235,\"{\",CHAR(160),EO$1))+1),\"\")","v":""},{"$f":"IFERROR(MID($G235,FIND(CHAR(160),SUBSTITUTE($G235,\"{\",CHAR(160),EP$1)),FIND(CHAR(160),SUBSTITUTE($G235,\"}\",CHAR(160),EP$1))-FIND(CHAR(160),SUBSTITUTE($G235,\"{\",CHAR(160),EP$1))+1),\"\")","v":""},{"$f":"IFERROR(MID($J235,FIND(CHAR(160),SUBSTITUTE($J235,\"{\",CHAR(160),EQ$1)),FIND(CHAR(160),SUBSTITUTE($J235,\"}\",CHAR(160),EQ$1))-FIND(CHAR(160),SUBSTITUTE($J235,\"{\",CHAR(160),EQ$1))+1),\"\")","v":"{Measure:Quantity}"},{"$f":"IFERROR(MID($J235,FIND(CHAR(160),SUBSTITUTE($J235,\"{\",CHAR(160),ER$1)),FIND(CHAR(160),SUBSTITUTE($J235,\"}\",CHAR(160),ER$1))-FIND(CHAR(160),SUBSTITUTE($J235,\"{\",CHAR(160),ER$1))+1),\"\")","v":"{Rebate per Package}"},{"$f":"IFERROR(MID($J235,FIND(CHAR(160),SUBSTITUTE($J235,\"{\",CHAR(160),ES$1)),FIND(CHAR(160),SUBSTITUTE($J235,\"}\",CHAR(160),ES$1))-FIND(CHAR(160),SUBSTITUTE($J235,\"{\",CHAR(160),ES$1))+1),\"\")","v":"{Marketing Fee}"},{"$f":"IFERROR(MID($J235,FIND(CHAR(160),SUBSTITUTE($J235,\"{\",CHAR(160),ET$1)),FIND(CHAR(160),SUBSTITUTE($J235,\"}\",CHAR(160),ET$1))-FIND(CHAR(160),SUBSTITUTE($J235,\"{\",CHAR(160),ET$1))+1),\"\")","v":""},{"$f":"IFERROR(MID($J235,FIND(CHAR(160),SUBSTITUTE($J235,\"{\",CHAR(160),EU$1)),FIND(CHAR(160),SUBSTITUTE($J235,\"}\",CHAR(160),EU$1))-FIND(CHAR(160),SUBSTITUTE($J235,\"{\",CHAR(160),EU$1))+1),\"\")","v":""},{"$f":"IFERROR(MID($J235,FIND(CHAR(160),SUBSTITUTE($J235,\"{\",CHAR(160),EV$1)),FIND(CHAR(160),SUBSTITUTE($J235,\"}\",CHAR(160),EV$1))-FIND(CHAR(160),SUBSTITUTE($J235,\"{\",CHAR(160),EV$1))+1),\"\")","v":""},{"$f":"IFERROR(MID($J235,FIND(CHAR(160),SUBSTITUTE($J235,\"{\",CHAR(160),EW$1)),FIND(CHAR(160),SUBSTITUTE($J235,\"}\",CHAR(160),EW$1))-FIND(CHAR(160),SUBSTITUTE($J235,\"{\",CHAR(160),EW$1))+1),\"\")","v":""},{"$f":"IFERROR(MID($J235,FIND(CHAR(160),SUBSTITUTE($J235,\"{\",CHAR(160),EX$1)),FIND(CHAR(160),SUBSTITUTE($J235,\"}\",CHAR(160),EX$1))-FIND(CHAR(160),SUBSTITUTE($J235,\"{\",CHAR(160),EX$1))+1),\"\")","v":""},{"$f":"IFERROR(MID($J235,FIND(CHAR(160),SUBSTITUTE($J235,\"{\",CHAR(160),EY$1)),FIND(CHAR(160),SUBSTITUTE($J235,\"}\",CHAR(160),EY$1))-FIND(CHAR(160),SUBSTITUTE($J235,\"{\",CHAR(160),EY$1))+1),\"\")","v":""},{"$f":"IFERROR(MID($J235,FIND(CHAR(160),SUBSTITUTE($J235,\"{\",CHAR(160),EZ$1)),FIND(CHAR(160),SUBSTITUTE($J235,\"}\",CHAR(160),EZ$1))-FIND(CHAR(160),SUBSTITUTE($J235,\"{\",CHAR(160),EZ$1))+1),\"\")","v":""},{"$f":"IFERROR(MID($J235,FIND(CHAR(160),SUBSTITUTE($J235,\"{\",CHAR(160),FA$1)),FIND(CHAR(160),SUBSTITUTE($J235,\"}\",CHAR(160),FA$1))-FIND(CHAR(160),SUBSTITUTE($J235,\"{\",CHAR(160),FA$1))+1),\"\")","v":"{Measure:Quantity}"},{"$f":"IFERROR(MID($J235,FIND(CHAR(160),SUBSTITUTE($J235,\"{\",CHAR(160),FB$1)),FIND(CHAR(160),SUBSTITUTE($J235,\"}\",CHAR(160),FB$1))-FIND(CHAR(160),SUBSTITUTE($J235,\"{\",CHAR(160),FB$1))+1),\"\")","v":"{Rebate per Package}"},{"$f":"IFERROR(MID($O235,FIND(CHAR(160),SUBSTITUTE($O235,\"{\",CHAR(160),FC$1)),FIND(CHAR(160),SUBSTITUTE($O235,\"}\",CHAR(160),FC$1))-FIND(CHAR(160),SUBSTITUTE($O235,\"{\",CHAR(160),FC$1))+1),\"\")","v":""},{"$f":"IFERROR(MID($O235,FIND(CHAR(160),SUBSTITUTE($O235,\"{\",CHAR(160),FD$1)),FIND(CHAR(160),SUBSTITUTE($O235,\"}\",CHAR(160),FD$1))-FIND(CHAR(160),SUBSTITUTE($O235,\"{\",CHAR(160),FD$1))+1),\"\")","v":""},{"$f":"IFERROR(MID($O235,FIND(CHAR(160),SUBSTITUTE($O235,\"{\",CHAR(160),FE$1)),FIND(CHAR(160),SUBSTITUTE($O235,\"}\",CHAR(160),FE$1))-FIND(CHAR(160),SUBSTITUTE($O235,\"{\",CHAR(160),FE$1))+1),\"\")","v":""},{"$f":"IFERROR(MID($O235,FIND(CHAR(160),SUBSTITUTE($O235,\"{\",CHAR(160),FF$1)),FIND(CHAR(160),SUBSTITUTE($O235,\"}\",CHAR(160),FF$1))-FIND(CHAR(160),SUBSTITUTE($O235,\"{\",CHAR(160),FF$1))+1),\"\")","v":""},{"$f":"IFERROR(MID($O235,FIND(CHAR(160),SUBSTITUTE($O235,\"{\",CHAR(160),FG$1)),FIND(CHAR(160),SUBSTITUTE($O235,\"}\",CHAR(160),FG$1))-FIND(CHAR(160),SUBSTITUTE($O235,\"{\",CHAR(160),FG$1))+1),\"\")","v":""},{"$f":"IFERROR(MID($O235,FIND(CHAR(160),SUBSTITUTE($O235,\"{\",CHAR(160),FH$1)),FIND(CHAR(160),SUBSTITUTE($O235,\"}\",CHAR(160),FH$1))-FIND(CHAR(160),SUBSTITUTE($O235,\"{\",CHAR(160),FH$1))+1),\"\")","v":""},{"$f":"IFERROR(MID($O235,FIND(CHAR(160),SUBSTITUTE($O235,\"{\",CHAR(160),FI$1)),FIND(CHAR(160),SUBSTITUTE($O235,\"}\",CHAR(160),FI$1))-FIND(CHAR(160),SUBSTITUTE($O235,\"{\",CHAR(160),FI$1))+1),\"\")","v":""},{"$f":"IFERROR(MID($O235,FIND(CHAR(160),SUBSTITUTE($O235,\"{\",CHAR(160),FJ$1)),FIND(CHAR(160),SUBSTITUTE($O235,\"}\",CHAR(160),FJ$1))-FIND(CHAR(160),SUBSTITUTE($O235,\"{\",CHAR(160),FJ$1))+1),\"\")","v":""},{"$f":"IFERROR(MID($O235,FIND(CHAR(160),SUBSTITUTE($O235,\"{\",CHAR(160),FK$1)),FIND(CHAR(160),SUBSTITUTE($O235,\"}\",CHAR(160),FK$1))-FIND(CHAR(160),SUBSTITUTE($O235,\"{\",CHAR(160),FK$1))+1),\"\")","v":"{Measure:Quantity}"},{"$f":"IFERROR(MID($O235,FIND(CHAR(160),SUBSTITUTE($O235,\"{\",CHAR(160),FL$1)),FIND(CHAR(160),SUBSTITUTE($O235,\"}\",CHAR(160),FL$1))-FIND(CHAR(160),SUBSTITUTE($O235,\"{\",CHAR(160),FL$1))+1),\"\")","v":"{Package Size}"},{"$f":"IFERROR(MID($R235,FIND(CHAR(160),SUBSTITUTE($R235,\"{\",CHAR(160),FM$1)),FIND(CHAR(160),SUBSTITUTE($R235,\"}\",CHAR(160),FM$1))-FIND(CHAR(160),SUBSTITUTE($R235,\"{\",CHAR(160),FM$1))+1),\"\")","v":""},{"$f":"IFERROR(MID($R235,FIND(CHAR(160),SUBSTITUTE($R235,\"{\",CHAR(160),FN$1)),FIND(CHAR(160),SUBSTITUTE($R235,\"}\",CHAR(160),FN$1))-FIND(CHAR(160),SUBSTITUTE($R235,\"{\",CHAR(160),FN$1))+1),\"\")","v":""},{"$f":"IFERROR(MID($R235,FIND(CHAR(160),SUBSTITUTE($R235,\"{\",CHAR(160),FO$1)),FIND(CHAR(160),SUBSTITUTE($R235,\"}\",CHAR(160),FO$1))-FIND(CHAR(160),SUBSTITUTE($R235,\"{\",CHAR(160),FO$1))+1),\"\")","v":""},{"$f":"IFERROR(MID($R235,FIND(CHAR(160),SUBSTITUTE($R235,\"{\",CHAR(160),FP$1)),FIND(CHAR(160),SUBSTITUTE($R235,\"}\",CHAR(160),FP$1))-FIND(CHAR(160),SUBSTITUTE($R235,\"{\",CHAR(160),FP$1))+1),\"\")","v":""},{"$f":"IFERROR(MID($R235,FIND(CHAR(160),SUBSTITUTE($R235,\"{\",CHAR(160),FQ$1)),FIND(CHAR(160),SUBSTITUTE($R235,\"}\",CHAR(160),FQ$1))-FIND(CHAR(160),SUBSTITUTE($R235,\"{\",CHAR(160),FQ$1))+1),\"\")","v":""},{"$f":"IFERROR(MID($R235,FIND(CHAR(160),SUBSTITUTE($R235,\"{\",CHAR(160),FR$1)),FIND(CHAR(160),SUBSTITUTE($R235,\"}\",CHAR(160),FR$1))-FIND(CHAR(160),SUBSTITUTE($R235,\"{\",CHAR(160),FR$1))+1),\"\")","v":""},{"$f":"IFERROR(MID($R235,FIND(CHAR(160),SUBSTITUTE($R235,\"{\",CHAR(160),FS$1)),FIND(CHAR(160),SUBSTITUTE($R235,\"}\",CHAR(160),FS$1))-FIND(CHAR(160),SUBSTITUTE($R235,\"{\",CHAR(160),FS$1))+1),\"\")","v":""},{"$f":"IFERROR(MID($R235,FIND(CHAR(160),SUBSTITUTE($R235,\"{\",CHAR(160),FT$1)),FIND(CHAR(160),SUBSTITUTE($R235,\"}\",CHAR(160),FT$1))-FIND(CHAR(160),SUBSTITUTE($R235,\"{\",CHAR(160),FT$1))+1),\"\")","v":""},{"$f":"IFERROR(MID($R235,FIND(CHAR(160),SUBSTITUTE($R235,\"{\",CHAR(160),FU$1)),FIND(CHAR(160),SUBSTITUTE($R235,\"}\",CHAR(160),FU$1))-FIND(CHAR(160),SUBSTITUTE($R235,\"{\",CHAR(160),FU$1))+1),\"\")","v":"{Measure:Quantity}"},{"$f":"IFERROR(MID($R235,FIND(CHAR(160),SUBSTITUTE($R235,\"{\",CHAR(160),FV$1)),FIND(CHAR(160),SUBSTITUTE($R235,\"}\",CHAR(160),FV$1))-FIND(CHAR(160),SUBSTITUTE($R235,\"{\",CHAR(160),FV$1))+1),\"\")","v":"{Package Size}"},{"$f":"IFERROR(MID($U235,FIND(CHAR(160),SUBSTITUTE($U235,\"{\",CHAR(160),FW$1)),FIND(CHAR(160),SUBSTITUTE($U235,\"}\",CHAR(160),FW$1))-FIND(CHAR(160),SUBSTITUTE($U235,\"{\",CHAR(160),FW$1))+1),\"\")","v":""},{"$f":"IFERROR(MID($U235,FIND(CHAR(160),SUBSTITUTE($U235,\"{\",CHAR(160),FX$1)),FIND(CHAR(160),SUBSTITUTE($U235,\"}\",CHAR(160),FX$1))-FIND(CHAR(160),SUBSTITUTE($U235,\"{\",CHAR(160),FX$1))+1),\"\")","v":""},{"$f":"IFERROR(MID($U235,FIND(CHAR(160),SUBSTITUTE($U235,\"{\",CHAR(160),FY$1)),FIND(CHAR(160),SUBSTITUTE($U235,\"}\",CHAR(160),FY$1))-FIND(CHAR(160),SUBSTITUTE($U235,\"{\",CHAR(160),FY$1))+1),\"\")","v":""},{"$f":"IFERROR(MID($U235,FIND(CHAR(160),SUBSTITUTE($U235,\"{\",CHAR(160),FZ$1)),FIND(CHAR(160),SUBSTITUTE($U235,\"}\",CHAR(160),FZ$1))-FIND(CHAR(160),SUBSTITUTE($U235,\"{\",CHAR(160),FZ$1))+1),\"\")","v":""},{"$f":"IFERROR(MID($U235,FIND(CHAR(160),SUBSTITUTE($U235,\"{\",CHAR(160),GA$1)),FIND(CHAR(160),SUBSTITUTE($U235,\"}\",CHAR(160),GA$1))-FIND(CHAR(160),SUBSTITUTE($U235,\"{\",CHAR(160),GA$1))+1),\"\")","v":""},{"$f":"IFERROR(MID($U235,FIND(CHAR(160),SUBSTITUTE($U235,\"{\",CHAR(160),GB$1)),FIND(CHAR(160),SUBSTITUTE($U235,\"}\",CHAR(160),GB$1))-FIND(CHAR(160),SUBSTITUTE($U235,\"{\",CHAR(160),GB$1))+1),\"\")","v":""},{"$f":"IFERROR(MID($U235,FIND(CHAR(160),SUBSTITUTE($U235,\"{\",CHAR(160),GC$1)),FIND(CHAR(160),SUBSTITUTE($U235,\"}\",CHAR(160),GC$1))-FIND(CHAR(160),SUBSTITUTE($U235,\"{\",CHAR(160),GC$1))+1),\"\")","v":""},{"$f":"IFERROR(MID($U235,FIND(CHAR(160),SUBSTITUTE($U235,\"{\",CHAR(160),GD$1)),FIND(CHAR(160),SUBSTITUTE($U235,\"}\",CHAR(160),GD$1))-FIND(CHAR(160),SUBSTITUTE($U235,\"{\",CHAR(160),GD$1))+1),\"\")","v":""},{"$f":"IFERROR(MID($U235,FIND(CHAR(160),SUBSTITUTE($U235,\"{\",CHAR(160),GE$1)),FIND(CHAR(160),SUBSTITUTE($U235,\"}\",CHAR(160),GE$1))-FIND(CHAR(160),SUBSTITUTE($U235,\"{\",CHAR(160),GE$1))+1),\"\")","v":"{Measure:Quantity}"},{"$f":"IFERROR(MID($U235,FIND(CHAR(160),SUBSTITUTE($U235,\"{\",CHAR(160),GF$1)),FIND(CHAR(160),SUBSTITUTE($U235,\"}\",CHAR(160),GF$1))-FIND(CHAR(160),SUBSTITUTE($U235,\"{\",CHAR(160),GF$1))+1),\"\")","v":"{Package Size}"},{"$f":"IFERROR(MID($V235,FIND(CHAR(160),SUBSTITUTE($V235,\"{\",CHAR(160),GG$1)),FIND(CHAR(160),SUBSTITUTE($V235,\"}\",CHAR(160),GG$1))-FIND(CHAR(160),SUBSTITUTE($V235,\"{\",CHAR(160),GG$1))+1),\"\")","v":""},{"$f":"IFERROR(MID($V235,FIND(CHAR(160),SUBSTITUTE($V235,\"{\",CHAR(160),GH$1)),FIND(CHAR(160),SUBSTITUTE($V235,\"}\",CHAR(160),GH$1))-FIND(CHAR(160),SUBSTITUTE($V235,\"{\",CHAR(160),GH$1))+1),\"\")","v":""},{"$f":"IFERROR(MID($V235,FIND(CHAR(160),SUBSTITUTE($V235,\"{\",CHAR(160),GI$1)),FIND(CHAR(160),SUBSTITUTE($V235,\"}\",CHAR(160),GI$1))-FIND(CHAR(160),SUBSTITUTE($V235,\"{\",CHAR(160),GI$1))+1),\"\")","v":""},{"$f":"IFERROR(MID($V235,FIND(CHAR(160),SUBSTITUTE($V235,\"{\",CHAR(160),GJ$1)),FIND(CHAR(160),SUBSTITUTE($V235,\"}\",CHAR(160),GJ$1))-FIND(CHAR(160),SUBSTITUTE($V235,\"{\",CHAR(160),GJ$1))+1),\"\")","v":""},{"$f":"IFERROR(MID($V235,FIND(CHAR(160),SUBSTITUTE($V235,\"{\",CHAR(160),GK$1)),FIND(CHAR(160),SUBSTITUTE($V235,\"}\",CHAR(160),GK$1))-FIND(CHAR(160),SUBSTITUTE($V235,\"{\",CHAR(160),GK$1))+1),\"\")","v":""},{"$f":"IFERROR(MID($V235,FIND(CHAR(160),SUBSTITUTE($V235,\"{\",CHAR(160),GL$1)),FIND(CHAR(160),SUBSTITUTE($V235,\"}\",CHAR(160),GL$1))-FIND(CHAR(160),SUBSTITUTE($V235,\"{\",CHAR(160),GL$1))+1),\"\")","v":""},{"$f":"IFERROR(MID($V235,FIND(CHAR(160),SUBSTITUTE($V235,\"{\",CHAR(160),GM$1)),FIND(CHAR(160),SUBSTITUTE($V235,\"}\",CHAR(160),GM$1))-FIND(CHAR(160),SUBSTITUTE($V235,\"{\",CHAR(160),GM$1))+1),\"\")","v":""},{"$f":"IFERROR(MID($V235,FIND(CHAR(160),SUBSTITUTE($V235,\"{\",CHAR(160),GN$1)),FIND(CHAR(160),SUBSTITUTE($V235,\"}\",CHAR(160),GN$1))-FIND(CHAR(160),SUBSTITUTE($V235,\"{\",CHAR(160),GN$1))+1),\"\")","v":""},{"$f":"IFERROR(MID($V235,FIND(CHAR(160),SUBSTITUTE($V235,\"{\",CHAR(160),GO$1)),FIND(CHAR(160),SUBSTITUTE($V235,\"}\",CHAR(160),GO$1))-FIND(CHAR(160),SUBSTITUTE($V235,\"{\",CHAR(160),GO$1))+1),\"\")","v":"{Measure:Quantity}"},{"$f":"IFERROR(MID($V235,FIND(CHAR(160),SUBSTITUTE($V235,\"{\",CHAR(160),GP$1)),FIND(CHAR(160),SUBSTITUTE($V235,\"}\",CHAR(160),GP$1))-FIND(CHAR(160),SUBSTITUTE($V235,\"{\",CHAR(160),GP$1))+1),\"\")","v":"{Package Size}"},{"$f":"IFERROR(MID($W235,FIND(CHAR(160),SUBSTITUTE($W235,\"{\",CHAR(160),GQ$1)),FIND(CHAR(160),SUBSTITUTE($W235,\"}\",CHAR(160),GQ$1))-FIND(CHAR(160),SUBSTITUTE($W235,\"{\",CHAR(160),GQ$1))+1),\"\")","v":""},{"$f":"IFERROR(MID($W235,FIND(CHAR(160),SUBSTITUTE($W235,\"{\",CHAR(160),GR$1)),FIND(CHAR(160),SUBSTITUTE($W235,\"}\",CHAR(160),GR$1))-FIND(CHAR(160),SUBSTITUTE($W235,\"{\",CHAR(160),GR$1))+1),\"\")","v":""},{"$f":"IFERROR(MID($W235,FIND(CHAR(160),SUBSTITUTE($W235,\"{\",CHAR(160),GS$1)),FIND(CHAR(160),SUBSTITUTE($W235,\"}\",CHAR(160),GS$1))-FIND(CHAR(160),SUBSTITUTE($W235,\"{\",CHAR(160),GS$1))+1),\"\")","v":""},{"$f":"IFERROR(MID($W235,FIND(CHAR(160),SUBSTITUTE($W235,\"{\",CHAR(160),GT$1)),FIND(CHAR(160),SUBSTITUTE($W235,\"}\",CHAR(160),GT$1))-FIND(CHAR(160),SUBSTITUTE($W235,\"{\",CHAR(160),GT$1))+1),\"\")","v":""},{"$f":"IFERROR(MID($W235,FIND(CHAR(160),SUBSTITUTE($W235,\"{\",CHAR(160),GU$1)),FIND(CHAR(160),SUBSTITUTE($W235,\"}\",CHAR(160),GU$1))-FIND(CHAR(160),SUBSTITUTE($W235,\"{\",CHAR(160),GU$1))+1),\"\")","v":""},{"$f":"IFERROR(MID($W235,FIND(CHAR(160),SUBSTITUTE($W235,\"{\",CHAR(160),GV$1)),FIND(CHAR(160),SUBSTITUTE($W235,\"}\",CHAR(160),GV$1))-FIND(CHAR(160),SUBSTITUTE($W235,\"{\",CHAR(160),GV$1))+1),\"\")","v":""},{"$f":"IFERROR(MID($W235,FIND(CHAR(160),SUBSTITUTE($W235,\"{\",CHAR(160),GW$1)),FIND(CHAR(160),SUBSTITUTE($W235,\"}\",CHAR(160),GW$1))-FIND(CHAR(160),SUBSTITUTE($W235,\"{\",CHAR(160),GW$1))+1),\"\")","v":""},{"$f":"IFERROR(MID($W235,FIND(CHAR(160),SUBSTITUTE($W235,\"{\",CHAR(160),GX$1)),FIND(CHAR(160),SUBSTITUTE($W235,\"}\",CHAR(160),GX$1))-FIND(CHAR(160),SUBSTITUTE($W235,\"{\",CHAR(160),GX$1))+1),\"\")","v":""},{"$f":"IFERROR(MID($W235,FIND(CHAR(160),SUBSTITUTE($W235,\"{\",CHAR(160),GY$1)),FIND(CHAR(160),SUBSTITUTE($W235,\"}\",CHAR(160),GY$1))-FIND(CHAR(160),SUBSTITUTE($W235,\"{\",CHAR(160),GY$1))+1),\"\")","v":"{Measure:Quantity}"},{"$f":"IFERROR(MID($W235,FIND(CHAR(160),SUBSTITUTE($W235,\"{\",CHAR(160),GZ$1)),FIND(CHAR(160),SUBSTITUTE($W235,\"}\",CHAR(160),GZ$1))-FIND(CHAR(160),SUBSTITUTE($W235,\"{\",CHAR(160),GZ$1))+1),\"\")","v":"{Package Size}"},{"$f":"IFERROR(MID($X235,FIND(CHAR(160),SUBSTITUTE($X235,\"{\",CHAR(160),HA$1)),FIND(CHAR(160),SUBSTITUTE($X235,\"}\",CHAR(160),HA$1))-FIND(CHAR(160),SUBSTITUTE($X235,\"{\",CHAR(160),HA$1))+1),\"\")","v":""},{"$f":"IFERROR(MID($X235,FIND(CHAR(160),SUBSTITUTE($X235,\"{\",CHAR(160),HB$1)),FIND(CHAR(160),SUBSTITUTE($X235,\"}\",CHAR(160),HB$1))-FIND(CHAR(160),SUBSTITUTE($X235,\"{\",CHAR(160),HB$1))+1),\"\")","v":""},{"$f":"IFERROR(MID($X235,FIND(CHAR(160),SUBSTITUTE($X235,\"{\",CHAR(160),HC$1)),FIND(CHAR(160),SUBSTITUTE($X235,\"}\",CHAR(160),HC$1))-FIND(CHAR(160),SUBSTITUTE($X235,\"{\",CHAR(160),HC$1))+1),\"\")","v":""},{"$f":"IFERROR(MID($X235,FIND(CHAR(160),SUBSTITUTE($X235,\"{\",CHAR(160),HD$1)),FIND(CHAR(160),SUBSTITUTE($X235,\"}\",CHAR(160),HD$1))-FIND(CHAR(160),SUBSTITUTE($X235,\"{\",CHAR(160),HD$1))+1),\"\")","v":""},{"$f":"IFERROR(MID($X235,FIND(CHAR(160),SUBSTITUTE($X235,\"{\",CHAR(160),HE$1)),FIND(CHAR(160),SUBSTITUTE($X235,\"}\",CHAR(160),HE$1))-FIND(CHAR(160),SUBSTITUTE($X235,\"{\",CHAR(160),HE$1))+1),\"\")","v":""},{"$f":"IFERROR(MID($X235,FIND(CHAR(160),SUBSTITUTE($X235,\"{\",CHAR(160),HF$1)),FIND(CHAR(160),SUBSTITUTE($X235,\"}\",CHAR(160),HF$1))-FIND(CHAR(160),SUBSTITUTE($X235,\"{\",CHAR(160),HF$1))+1),\"\")","v":""},{"$f":"IFERROR(MID($X235,FIND(CHAR(160),SUBSTITUTE($X235,\"{\",CHAR(160),HG$1)),FIND(CHAR(160),SUBSTITUTE($X235,\"}\",CHAR(160),HG$1))-FIND(CHAR(160),SUBSTITUTE($X235,\"{\",CHAR(160),HG$1))+1),\"\")","v":""},{"$f":"IFERROR(MID($X235,FIND(CHAR(160),SUBSTITUTE($X235,\"{\",CHAR(160),HH$1)),FIND(CHAR(160),SUBSTITUTE($X235,\"}\",CHAR(160),HH$1))-FIND(CHAR(160),SUBSTITUTE($X235,\"{\",CHAR(160),HH$1))+1),\"\")","v":""},{"$f":"IFERROR(MID($X235,FIND(CHAR(160),SUBSTITUTE($X235,\"{\",CHAR(160),HI$1)),FIND(CHAR(160),SUBSTITUTE($X235,\"}\",CHAR(160),HI$1))-FIND(CHAR(160),SUBSTITUTE($X235,\"{\",CHAR(160),HI$1))+1),\"\")","v":"{Measure:Quantity}"},{"$f":"IFERROR(MID($X235,FIND(CHAR(160),SUBSTITUTE($X235,\"{\",CHAR(160),HJ$1)),FIND(CHAR(160),SUBSTITUTE($X235,\"}\",CHAR(160),HJ$1))-FIND(CHAR(160),SUBSTITUTE($X235,\"{\",CHAR(160),HJ$1))+1),\"\")","v":"{Package Size}"},{"$f":"IFERROR(MID($Y235,FIND(CHAR(160),SUBSTITUTE($Y235,\"{\",CHAR(160),HK$1)),FIND(CHAR(160),SUBSTITUTE($Y235,\"}\",CHAR(160),HK$1))-FIND(CHAR(160),SUBSTITUTE($Y235,\"{\",CHAR(160),HK$1))+1),\"\")","v":""},{"$f":"IFERROR(MID($Y235,FIND(CHAR(160),SUBSTITUTE($Y235,\"{\",CHAR(160),HL$1)),FIND(CHAR(160),SUBSTITUTE($Y235,\"}\",CHAR(160),HL$1))-FIND(CHAR(160),SUBSTITUTE($Y235,\"{\",CHAR(160),HL$1))+1),\"\")","v":""},{"$f":"IFERROR(MID($Y235,FIND(CHAR(160),SUBSTITUTE($Y235,\"{\",CHAR(160),HM$1)),FIND(CHAR(160),SUBSTITUTE($Y235,\"}\",CHAR(160),HM$1))-FIND(CHAR(160),SUBSTITUTE($Y235,\"{\",CHAR(160),HM$1))+1),\"\")","v":""},{"$f":"IFERROR(MID($Y235,FIND(CHAR(160),SUBSTITUTE($Y235,\"{\",CHAR(160),HN$1)),FIND(CHAR(160),SUBSTITUTE($Y235,\"}\",CHAR(160),HN$1))-FIND(CHAR(160),SUBSTITUTE($Y235,\"{\",CHAR(160),HN$1))+1),\"\")","v":""},{"$f":"IFERROR(MID($Y235,FIND(CHAR(160),SUBSTITUTE($Y235,\"{\",CHAR(160),HO$1)),FIND(CHAR(160),SUBSTITUTE($Y235,\"}\",CHAR(160),HO$1))-FIND(CHAR(160),SUBSTITUTE($Y235,\"{\",CHAR(160),HO$1))+1),\"\")","v":""},{"$f":"IFERROR(MID($Y235,FIND(CHAR(160),SUBSTITUTE($Y235,\"{\",CHAR(160),HP$1)),FIND(CHAR(160),SUBSTITUTE($Y235,\"}\",CHAR(160),HP$1))-FIND(CHAR(160),SUBSTITUTE($Y235,\"{\",CHAR(160),HP$1))+1),\"\")","v":""},{"$f":"IFERROR(MID($Y235,FIND(CHAR(160),SUBSTITUTE($Y235,\"{\",CHAR(160),HQ$1)),FIND(CHAR(160),SUBSTITUTE($Y235,\"}\",CHAR(160),HQ$1))-FIND(CHAR(160),SUBSTITUTE($Y235,\"{\",CHAR(160),HQ$1))+1),\"\")","v":""},{"$f":"IFERROR(MID($Y235,FIND(CHAR(160),SUBSTITUTE($Y235,\"{\",CHAR(160),HR$1)),FIND(CHAR(160),SUBSTITUTE($Y235,\"}\",CHAR(160),HR$1))-FIND(CHAR(160),SUBSTITUTE($Y235,\"{\",CHAR(160),HR$1))+1),\"\")","v":""},{"$f":"IFERROR(MID($Y235,FIND(CHAR(160),SUBSTITUTE($Y235,\"{\",CHAR(160),HS$1)),FIND(CHAR(160),SUBSTITUTE($Y235,\"}\",CHAR(160),HS$1))-FIND(CHAR(160),SUBSTITUTE($Y235,\"{\",CHAR(160),HS$1))+1),\"\")","v":"{Measure:Quantity}"},{"$f":"IFERROR(MID($Y235,FIND(CHAR(160),SUBSTITUTE($Y235,\"{\",CHAR(160),HT$1)),FIND(CHAR(160),SUBSTITUTE($Y235,\"}\",CHAR(160),HT$1))-FIND(CHAR(160),SUBSTITUTE($Y235,\"{\",CHAR(160),HT$1))+1),\"\")","v":"{Package Size}"},{"$f":"IFERROR(MID($Z235,FIND(CHAR(160),SUBSTITUTE($Z235,\"{\",CHAR(160),HU$1)),FIND(CHAR(160),SUBSTITUTE($Z235,\"}\",CHAR(160),HU$1))-FIND(CHAR(160),SUBSTITUTE($Z235,\"{\",CHAR(160),HU$1))+1),\"\")","v":""},{"$f":"IFERROR(MID($Z235,FIND(CHAR(160),SUBSTITUTE($Z235,\"{\",CHAR(160),HV$1)),FIND(CHAR(160),SUBSTITUTE($Z235,\"}\",CHAR(160),HV$1))-FIND(CHAR(160),SUBSTITUTE($Z235,\"{\",CHAR(160),HV$1))+1),\"\")","v":""},{"$f":"IFERROR(MID($Z235,FIND(CHAR(160),SUBSTITUTE($Z235,\"{\",CHAR(160),HW$1)),FIND(CHAR(160),SUBSTITUTE($Z235,\"}\",CHAR(160),HW$1))-FIND(CHAR(160),SUBSTITUTE($Z235,\"{\",CHAR(160),HW$1))+1),\"\")","v":""},{"$f":"IFERROR(MID($Z235,FIND(CHAR(160),SUBSTITUTE($Z235,\"{\",CHAR(160),HX$1)),FIND(CHAR(160),SUBSTITUTE($Z235,\"}\",CHAR(160),HX$1))-FIND(CHAR(160),SUBSTITUTE($Z235,\"{\",CHAR(160),HX$1))+1),\"\")","v":""},{"$f":"IFERROR(MID($Z235,FIND(CHAR(160),SUBSTITUTE($Z235,\"{\",CHAR(160),HY$1)),FIND(CHAR(160),SUBSTITUTE($Z235,\"}\",CHAR(160),HY$1))-FIND(CHAR(160),SUBSTITUTE($Z235,\"{\",CHAR(160),HY$1))+1),\"\")","v":""},{"$f":"IFERROR(MID($Z235,FIND(CHAR(160),SUBSTITUTE($Z235,\"{\",CHAR(160),HZ$1)),FIND(CHAR(160),SUBSTITUTE($Z235,\"}\",CHAR(160),HZ$1))-FIND(CHAR(160),SUBSTITUTE($Z235,\"{\",CHAR(160),HZ$1))+1),\"\")","v":""},{"$f":"IFERROR(MID($Z235,FIND(CHAR(160),SUBSTITUTE($Z235,\"{\",CHAR(160),IA$1)),FIND(CHAR(160),SUBSTITUTE($Z235,\"}\",CHAR(160),IA$1))-FIND(CHAR(160),SUBSTITUTE($Z235,\"{\",CHAR(160),IA$1))+1),\"\")","v":""},{"$f":"IFERROR(MID($Z235,FIND(CHAR(160),SUBSTITUTE($Z235,\"{\",CHAR(160),IB$1)),FIND(CHAR(160),SUBSTITUTE($Z235,\"}\",CHAR(160),IB$1))-FIND(CHAR(160),SUBSTITUTE($Z235,\"{\",CHAR(160),IB$1))+1),\"\")","v":""},{"$f":"IFERROR(MID($Z235,FIND(CHAR(160),SUBSTITUTE($Z235,\"{\",CHAR(160),IC$1)),FIND(CHAR(160),SUBSTITUTE($Z235,\"}\",CHAR(160),IC$1))-FIND(CHAR(160),SUBSTITUTE($Z235,\"{\",CHAR(160),IC$1))+1),\"\")","v":"{Measure:Quantity}"},{"$f":"IFERROR(MID($Z235,FIND(CHAR(160),SUBSTITUTE($Z235,\"{\",CHAR(160),ID$1)),FIND(CHAR(160),SUBSTITUTE($Z235,\"}\",CHAR(160),ID$1))-FIND(CHAR(160),SUBSTITUTE($Z235,\"{\",CHAR(160),ID$1))+1),\"\")","v":"{Package Size}"},{"$f":"IFERROR(MID($AA235,FIND(CHAR(160),SUBSTITUTE($AA235,\"{\",CHAR(160),IE$1)),FIND(CHAR(160),SUBSTITUTE($AA235,\"}\",CHAR(160),IE$1))-FIND(CHAR(160),SUBSTITUTE($AA235,\"{\",CHAR(160),IE$1))+1),\"\")","v":""},{"$f":"IFERROR(MID($AA235,FIND(CHAR(160),SUBSTITUTE($AA235,\"{\",CHAR(160),IF$1)),FIND(CHAR(160),SUBSTITUTE($AA235,\"}\",CHAR(160),IF$1))-FIND(CHAR(160),SUBSTITUTE($AA235,\"{\",CHAR(160),IF$1))+1),\"\")","v":""},{"$f":"IFERROR(MID($AA235,FIND(CHAR(160),SUBSTITUTE($AA235,\"{\",CHAR(160),IG$1)),FIND(CHAR(160),SUBSTITUTE($AA235,\"}\",CHAR(160),IG$1))-FIND(CHAR(160),SUBSTITUTE($AA235,\"{\",CHAR(160),IG$1))+1),\"\")","v":""},{"$f":"IFERROR(MID($AA235,FIND(CHAR(160),SUBSTITUTE($AA235,\"{\",CHAR(160),IH$1)),FIND(CHAR(160),SUBSTITUTE($AA235,\"}\",CHAR(160),IH$1))-FIND(CHAR(160),SUBSTITUTE($AA235,\"{\",CHAR(160),IH$1))+1),\"\")","v":""},{"$f":"IFERROR(MID($AA235,FIND(CHAR(160),SUBSTITUTE($AA235,\"{\",CHAR(160),II$1)),FIND(CHAR(160),SUBSTITUTE($AA235,\"}\",CHAR(160),II$1))-FIND(CHAR(160),SUBSTITUTE($AA235,\"{\",CHAR(160),II$1))+1),\"\")","v":""},{"$f":"IFERROR(MID($AA235,FIND(CHAR(160),SUBSTITUTE($AA235,\"{\",CHAR(160),IJ$1)),FIND(CHAR(160),SUBSTITUTE($AA235,\"}\",CHAR(160),IJ$1))-FIND(CHAR(160),SUBSTITUTE($AA235,\"{\",CHAR(160),IJ$1))+1),\"\")","v":""},{"$f":"IFERROR(MID($AA235,FIND(CHAR(160),SUBSTITUTE($AA235,\"{\",CHAR(160),IK$1)),FIND(CHAR(160),SUBSTITUTE($AA235,\"}\",CHAR(160),IK$1))-FIND(CHAR(160),SUBSTITUTE($AA235,\"{\",CHAR(160),IK$1))+1),\"\")","v":""},{"$f":"IFERROR(MID($AA235,FIND(CHAR(160),SUBSTITUTE($AA235,\"{\",CHAR(160),IL$1)),FIND(CHAR(160),SUBSTITUTE($AA235,\"}\",CHAR(160),IL$1))-FIND(CHAR(160),SUBSTITUTE($AA235,\"{\",CHAR(160),IL$1))+1),\"\")","v":""},{"$f":"IFERROR(MID($AA235,FIND(CHAR(160),SUBSTITUTE($AA235,\"{\",CHAR(160),IM$1)),FIND(CHAR(160),SUBSTITUTE($AA235,\"}\",CHAR(160),IM$1))-FIND(CHAR(160),SUBSTITUTE($AA235,\"{\",CHAR(160),IM$1))+1),\"\")","v":"{Measure:Quantity}"},{"$f":"IFERROR(MID($AA235,FIND(CHAR(160),SUBSTITUTE($AA235,\"{\",CHAR(160),IN$1)),FIND(CHAR(160),SUBSTITUTE($AA235,\"}\",CHAR(160),IN$1))-FIND(CHAR(160),SUBSTITUTE($AA235,\"{\",CHAR(160),IN$1))+1),\"\")","v":"{Package Size}"},{"$f":"IFERROR(MID($AB235,FIND(CHAR(160),SUBSTITUTE($AB235,\"{\",CHAR(160),IO$1)),FIND(CHAR(160),SUBSTITUTE($AB235,\"}\",CHAR(160),IO$1))-FIND(CHAR(160),SUBSTITUTE($AB235,\"{\",CHAR(160),IO$1))+1),\"\")","v":""},{"$f":"IFERROR(MID($AB235,FIND(CHAR(160),SUBSTITUTE($AB235,\"{\",CHAR(160),IP$1)),FIND(CHAR(160),SUBSTITUTE($AB235,\"}\",CHAR(160),IP$1))-FIND(CHAR(160),SUBSTITUTE($AB235,\"{\",CHAR(160),IP$1))+1),\"\")","v":""},{"$f":"IFERROR(MID($AB235,FIND(CHAR(160),SUBSTITUTE($AB235,\"{\",CHAR(160),IQ$1)),FIND(CHAR(160),SUBSTITUTE($AB235,\"}\",CHAR(160),IQ$1))-FIND(CHAR(160),SUBSTITUTE($AB235,\"{\",CHAR(160),IQ$1))+1),\"\")","v":""},{"$f":"IFERROR(MID($AB235,FIND(CHAR(160),SUBSTITUTE($AB235,\"{\",CHAR(160),IR$1)),FIND(CHAR(160),SUBSTITUTE($AB235,\"}\",CHAR(160),IR$1))-FIND(CHAR(160),SUBSTITUTE($AB235,\"{\",CHAR(160),IR$1))+1),\"\")","v":""},{"$f":"IFERROR(MID($AB235,FIND(CHAR(160),SUBSTITUTE($AB235,\"{\",CHAR(160),IS$1)),FIND(CHAR(160),SUBSTITUTE($AB235,\"}\",CHAR(160),IS$1))-FIND(CHAR(160),SUBSTITUTE($AB235,\"{\",CHAR(160),IS$1))+1),\"\")","v":""},{"$f":"IFERROR(MID($AB235,FIND(CHAR(160),SUBSTITUTE($AB235,\"{\",CHAR(160),IT$1)),FIND(CHAR(160),SUBSTITUTE($AB235,\"}\",CHAR(160),IT$1))-FIND(CHAR(160),SUBSTITUTE($AB235,\"{\",CHAR(160),IT$1))+1),\"\")","v":""},{"$f":"IFERROR(MID($AB235,FIND(CHAR(160),SUBSTITUTE($AB235,\"{\",CHAR(160),IU$1)),FIND(CHAR(160),SUBSTITUTE($AB235,\"}\",CHAR(160),IU$1))-FIND(CHAR(160),SUBSTITUTE($AB235,\"{\",CHAR(160),IU$1))+1),\"\")","v":""},{"$f":"IFERROR(MID($AB235,FIND(CHAR(160),SUBSTITUTE($AB235,\"{\",CHAR(160),IV$1)),FIND(CHAR(160),SUBSTITUTE($AB235,\"}\",CHAR(160),IV$1))-FIND(CHAR(160),SUBSTITUTE($AB235,\"{\",CHAR(160),IV$1))+1),\"\")","v":""},{"$f":"IFERROR(MID($AB235,FIND(CHAR(160),SUBSTITUTE($AB235,\"{\",CHAR(160),IW$1)),FIND(CHAR(160),SUBSTITUTE($AB235,\"}\",CHAR(160),IW$1))-FIND(CHAR(160),SUBSTITUTE($AB235,\"{\",CHAR(160),IW$1))+1),\"\")","v":""},{"$f":"IFERROR(MID($AB235,FIND(CHAR(160),SUBSTITUTE($AB235,\"{\",CHAR(160),IX$1)),FIND(CHAR(160),SUBSTITUTE($AB235,\"}\",CHAR(160),IX$1))-FIND(CHAR(160),SUBSTITUTE($AB235,\"{\",CHAR(160),IX$1))+1),\"\")","v":""},null,{"$f":"10-COUNTIF(DU235:ED235,\"\")","v":4}]
["Retail Lighting","LED Standard Bulb Short Life","LEDSTDSL","2021-07-01","2022-06-30","Calculated","{Measure:Quantity}*{Package Size}*1.25",0,"Calculated","{Measure:Quantity}*({Rebate per Package}+{Marketing Fee})",0,"2021-07-01","2022-06-30","Calculated","{Measure:Quantity}*{Package Size}*30",null,null,"{Measure:Quantity}*{Package Size}*1.062*0.033",null,null,"{Measure:Quantity}*{Package Size}*0.006","{Measure:Quantity}*{Package Size}*0.004","{Measure:Quantity}*{Package Size}*10*-0.004","{Measure:Quantity}*{Package Size}*-0.003","{Measure:Quantity}*{Package Size}*-0.025","{Measure:Quantity}*{Package Size}*-0.001","{Measure:Quantity}*{Package Size}*-0.005",null,"2021-07-01","2022-06-30",3,0.185,0.109,0.37,0.31,0.17100000000000001,0.14899999999999999,0.99,1,1,0.76300000000000001,0,null,{"$f":"DU236","v":"{Measure:Quantity}"},1,{"$f":"DV236","v":"{Package Size}"},1,{"$f":"DW236","v":"{Rebate per Package}"},{"$f":"CO236","v":1.25},{"$f":"DX236","v":"{Marketing Fee}"},1,{"$f":"DY236","v":""},null,{"$f":"DZ236","v":""},null,{"$f":"EA236","v":""},null,{"$f":"EB236","v":""},null,{"$f":"EC236","v":""},null,{"$f":"ED236","v":""},null,{"$f":"AS236*AU236*30","v":30},0,0,{"$f":"AS236*AU236*1.062*0.033","v":3.5046000000000001E-2},0,0,{"$f":"AS236*AU236*0.006","v":6.0000000000000001E-3},{"$f":"AS236*AU236*0.004","v":4.0000000000000001E-3},{"$f":"AS236*AU236*10*-0.004","v":-0.04},{"$f":"AS236*AU236*-0.003","v":-3.0000000000000001E-3},{"$f":"AS236*AU236*-0.025","v":-2.5000000000000001E-2},{"$f":"AS236*AU236*-0.001","v":-1E-3},{"$f":"AS236*AU236*-0.005","v":-5.0000000000000001E-3},0,null,"Res","Default DR",{"$f":"Benefits(BL236,BR236,BS236,BT236,BU236,BV236,BW236,BX236,BY236,BZ236,AE236,AH236,AI236,AJ236,AK236,AL236,AM236,AN236,AO236,AP236,CA236,CB236)","v":10.380598801546208},7.000750195579899,-0.20566837276351041,-2.4060544536949839,-0.10981721743903769,-0.40197552918727009,-0.2635954876897455,0,0,{"$f":"SUMPRODUCT(CC236:CK236,--(CC236:CK236>0))","v":17.381348997126107},{"$f":"-SUMPRODUCT(CC236:CK236,--(CC236:CK236<0))","v":3.3871110607745476},null,{"$f":"AS236*AU236*1.25","v":1.25},null,null,{"$f":"CM236+CO236","v":4.6371110607745472},{"$f":"IF(NetOrGross=\"Net\",(1-AO236+AP236),1)","v":1},{"$f":"(SUMPRODUCT(CC236:CJ236,--(CC236:CJ236>0))+CN236)*CS236/((-SUMPRODUCT(CC236:CJ236,--(CC236:CJ236<0))+MAX(CO236,CV236)+CP236+CQ236)*CS236+IF(FRIncentives=\"Yes\",CV236*(1-CS236),0))","v":3.0833788459611942},1,{"$f":"AS236*(AW236+AY236)","v":2.25},1,"Electric","y",null,{"$f":"IF(F236=\"Manual Entry\",\"Manual\",IF(G236=\"\",0,\"X=\"&SUBSTITUTE(SUBSTITUTE(SUBSTITUTE(SUBSTITUTE(SUBSTITUTE(SUBSTITUTE(SUBSTITUTE(SUBSTITUTE(SUBSTITUTE(SUBSTITUTE(SUBSTITUTE(SUBSTITUTE(G236,$ED236,$ED$2&ROW($ED236)),$EC236,$EC$2&ROW($EC236)),$EB236,$EB$2&ROW($EB236)),$EA236,$EA$2&ROW($EA236)),$DZ236,$DZ$2&ROW($DZ236)),$DY236,$DY$2&ROW($DY236)),$DX236,$DX$2&ROW($DX236)),$DW236,$DW$2&ROW($DW236)),$DV236,$DV$2&ROW($DV236)),$DU236,$DU$2&ROW($DU236)),$DT236,$DT$2&ROW($DT236)),$DS236,$DS$2&ROW($DS236))))","v":"X=AS236*AU236*1.25"},{"$f":"IF(I236=\"Manual Entry\",\"Manual\",IF(J236=\"\",0,\"X=\"&SUBSTITUTE(SUBSTITUTE(SUBSTITUTE(SUBSTITUTE(SUBSTITUTE(SUBSTITUTE(SUBSTITUTE(SUBSTITUTE(SUBSTITUTE(SUBSTITUTE(SUBSTITUTE(SUBSTITUTE(J236,$ED236,$ED$2&ROW($ED236)),$EC236,$EC$2&ROW($EC236)),$EB236,$EB$2&ROW($EB236)),$EA236,$EA$2&ROW($EA236)),$DZ236,$DZ$2&ROW($DZ236)),$DY236,$DY$2&ROW($DY236)),$DX236,$DX$2&ROW($DX236)),$DW236,$DW$2&ROW($DW236)),$DV236,$DV$2&ROW($DV236)),$DU236,$DU$2&ROW($DU236)),$DT236,$DT$2&ROW($DT236)),$DS236,$DS$2&ROW($DS236))))","v":"X=AS236*(AW236+AY236)"},{"$f":"IF(O236=\"\",0,\"X=\"&SUBSTITUTE(SUBSTITUTE(SUBSTITUTE(SUBSTITUTE(SUBSTITUTE(SUBSTITUTE(SUBSTITUTE(SUBSTITUTE(SUBSTITUTE(SUBSTITUTE(SUBSTITUTE(SUBSTITUTE(O236,$ED236,$ED$2&ROW($ED236)),$EC236,$EC$2&ROW($EC236)),$EB236,$EB$2&ROW($EB236)),$EA236,$EA$2&ROW($EA236)),$DZ236,$DZ$2&ROW($DZ236)),$DY236,$DY$2&ROW($DY236)),$DX236,$DX$2&ROW($DX236)),$DW236,$DW$2&ROW($DW236)),$DV236,$DV$2&ROW($DV236)),$DU236,$DU$2&ROW($DU236)),$DT236,$DT$2&ROW($DT236)),$DS236,$DS$2&ROW($DS236)))","v":"X=AS236*AU236*30"},{"$f":"IF(P236=\"\",0,\"X=\"&SUBSTITUTE(SUBSTITUTE(SUBSTITUTE(SUBSTITUTE(SUBSTITUTE(SUBSTITUTE(SUBSTITUTE(SUBSTITUTE(SUBSTITUTE(SUBSTITUTE(SUBSTITUTE(SUBSTITUTE(P236,$ED236,$ED$2&ROW($ED236)),$EC236,$EC$2&ROW($EC236)),$EB236,$EB$2&ROW($EB236)),$EA236,$EA$2&ROW($EA236)),$DZ236,$DZ$2&ROW($DZ236)),$DY236,$DY$2&ROW($DY236)),$DX236,$DX$2&ROW($DX236)),$DW236,$DW$2&ROW($DW236)),$DV236,$DV$2&ROW($DV236)),$DU236,$DU$2&ROW($DU236)),$DT236,$DT$2&ROW($DT236)),$DS236,$DS$2&ROW($DS236)))","v":0},{"$f":"IF(Q236=\"\",0,\"X=\"&SUBSTITUTE(SUBSTITUTE(SUBSTITUTE(SUBSTITUTE(SUBSTITUTE(SUBSTITUTE(SUBSTITUTE(SUBSTITUTE(SUBSTITUTE(SUBSTITUTE(SUBSTITUTE(SUBSTITUTE(Q236,$ED236,$ED$2&ROW($ED236)),$EC236,$EC$2&ROW($EC236)),$EB236,$EB$2&ROW($EB236)),$EA236,$EA$2&ROW($EA236)),$DZ236,$DZ$2&ROW($DZ236)),$DY236,$DY$2&ROW($DY236)),$DX236,$DX$2&ROW($DX236)),$DW236,$DW$2&ROW($DW236)),$DV236,$DV$2&ROW($DV236)),$DU236,$DU$2&ROW($DU236)),$DT236,$DT$2&ROW($DT236)),$DS236,$DS$2&ROW($DS236)))","v":0},{"$f":"IF(R236=\"\",0,\"X=\"&SUBSTITUTE(SUBSTITUTE(SUBSTITUTE(SUBSTITUTE(SUBSTITUTE(SUBSTITUTE(SUBSTITUTE(SUBSTITUTE(SUBSTITUTE(SUBSTITUTE(SUBSTITUTE(SUBSTITUTE(R236,$ED236,$ED$2&ROW($ED236)),$EC236,$EC$2&ROW($EC236)),$EB236,$EB$2&ROW($EB236)),$EA236,$EA$2&ROW($EA236)),$DZ236,$DZ$2&ROW($DZ236)),$DY236,$DY$2&ROW($DY236)),$DX236,$DX$2&ROW($DX236)),$DW236,$DW$2&ROW($DW236)),$DV236,$DV$2&ROW($DV236)),$DU236,$DU$2&ROW($DU236)),$DT236,$DT$2&ROW($DT236)),$DS236,$DS$2&ROW($DS236)))","v":"X=AS236*AU236*1.062*0.033"},{"$f":"IF(S236=\"\",0,\"X=\"&SUBSTITUTE(SUBSTITUTE(SUBSTITUTE(SUBSTITUTE(SUBSTITUTE(SUBSTITUTE(SUBSTITUTE(SUBSTITUTE(SUBSTITUTE(SUBSTITUTE(SUBSTITUTE(SUBSTITUTE(S236,$ED236,$ED$2&ROW($ED236)),$EC236,$EC$2&ROW($EC236)),$EB236,$EB$2&ROW($EB236)),$EA236,$EA$2&ROW($EA236)),$DZ236,$DZ$2&ROW($DZ236)),$DY236,$DY$2&ROW($DY236)),$DX236,$DX$2&ROW($DX236)),$DW236,$DW$2&ROW($DW236)),$DV236,$DV$2&ROW($DV236)),$DU236,$DU$2&ROW($DU236)),$DT236,$DT$2&ROW($DT236)),$DS236,$DS$2&ROW($DS236)))","v":0},{"$f":"IF(T236=\"\",0,\"X=\"&SUBSTITUTE(SUBSTITUTE(SUBSTITUTE(SUBSTITUTE(SUBSTITUTE(SUBSTITUTE(SUBSTITUTE(SUBSTITUTE(SUBSTITUTE(SUBSTITUTE(SUBSTITUTE(SUBSTITUTE(T236,$ED236,$ED$2&ROW($ED236)),$EC236,$EC$2&ROW($EC236)),$EB236,$EB$2&ROW($EB236)),$EA236,$EA$2&ROW($EA236)),$DZ236,$DZ$2&ROW($DZ236)),$DY236,$DY$2&ROW($DY236)),$DX236,$DX$2&ROW($DX236)),$DW236,$DW$2&ROW($DW236)),$DV236,$DV$2&ROW($DV236)),$DU236,$DU$2&ROW($DU236)),$DT236,$DT$2&ROW($DT236)),$DS236,$DS$2&ROW($DS236)))","v":0},{"$f":"IF(U236=\"\",0,\"X=\"&SUBSTITUTE(SUBSTITUTE(SUBSTITUTE(SUBSTITUTE(SUBSTITUTE(SUBSTITUTE(SUBSTITUTE(SUBSTITUTE(SUBSTITUTE(SUBSTITUTE(SUBSTITUTE(SUBSTITUTE(U236,$ED236,$ED$2&ROW($ED236)),$EC236,$EC$2&ROW($EC236)),$EB236,$EB$2&ROW($EB236)),$EA236,$EA$2&ROW($EA236)),$DZ236,$DZ$2&ROW($DZ236)),$DY236,$DY$2&ROW($DY236)),$DX236,$DX$2&ROW($DX236)),$DW236,$DW$2&ROW($DW236)),$DV236,$DV$2&ROW($DV236)),$DU236,$DU$2&ROW($DU236)),$DT236,$DT$2&ROW($DT236)),$DS236,$DS$2&ROW($DS236)))","v":"X=AS236*AU236*0.006"},{"$f":"IF(V236=\"\",0,\"X=\"&SUBSTITUTE(SUBSTITUTE(SUBSTITUTE(SUBSTITUTE(SUBSTITUTE(SUBSTITUTE(SUBSTITUTE(SUBSTITUTE(SUBSTITUTE(SUBSTITUTE(SUBSTITUTE(SUBSTITUTE(V236,$ED236,$ED$2&ROW($ED236)),$EC236,$EC$2&ROW($EC236)),$EB236,$EB$2&ROW($EB236)),$EA236,$EA$2&ROW($EA236)),$DZ236,$DZ$2&ROW($DZ236)),$DY236,$DY$2&ROW($DY236)),$DX236,$DX$2&ROW($DX236)),$DW236,$DW$2&ROW($DW236)),$DV236,$DV$2&ROW($DV236)),$DU236,$DU$2&ROW($DU236)),$DT236,$DT$2&ROW($DT236)),$DS236,$DS$2&ROW($DS236)))","v":"X=AS236*AU236*0.004"},{"$f":"IF(W236=\"\",0,\"X=\"&SUBSTITUTE(SUBSTITUTE(SUBSTITUTE(SUBSTITUTE(SUBSTITUTE(SUBSTITUTE(SUBSTITUTE(SUBSTITUTE(SUBSTITUTE(SUBSTITUTE(SUBSTITUTE(SUBSTITUTE(W236,$ED236,$ED$2&ROW($ED236)),$EC236,$EC$2&ROW($EC236)),$EB236,$EB$2&ROW($EB236)),$EA236,$EA$2&ROW($EA236)),$DZ236,$DZ$2&ROW($DZ236)),$DY236,$DY$2&ROW($DY236)),$DX236,$DX$2&ROW($DX236)),$DW236,$DW$2&ROW($DW236)),$DV236,$DV$2&ROW($DV236)),$DU236,$DU$2&ROW($DU236)),$DT236,$DT$2&ROW($DT236)),$DS236,$DS$2&ROW($DS236)))","v":"X=AS236*AU236*10*-0.004"},{"$f":"IF(X236=\"\",0,\"X=\"&SUBSTITUTE(SUBSTITUTE(SUBSTITUTE(SUBSTITUTE(SUBSTITUTE(SUBSTITUTE(SUBSTITUTE(SUBSTITUTE(SUBSTITUTE(SUBSTITUTE(SUBSTITUTE(SUBSTITUTE(X236,$ED236,$ED$2&ROW($ED236)),$EC236,$EC$2&ROW($EC236)),$EB236,$EB$2&ROW($EB236)),$EA236,$EA$2&ROW($EA236)),$DZ236,$DZ$2&ROW($DZ236)),$DY236,$DY$2&ROW($DY236)),$DX236,$DX$2&ROW($DX236)),$DW236,$DW$2&ROW($DW236)),$DV236,$DV$2&ROW($DV236)),$DU236,$DU$2&ROW($DU236)),$DT236,$DT$2&ROW($DT236)),$DS236,$DS$2&ROW($DS236)))","v":"X=AS236*AU236*-0.003"},{"$f":"IF(Y236=\"\",0,\"X=\"&SUBSTITUTE(SUBSTITUTE(SUBSTITUTE(SUBSTITUTE(SUBSTITUTE(SUBSTITUTE(SUBSTITUTE(SUBSTITUTE(SUBSTITUTE(SUBSTITUTE(SUBSTITUTE(SUBSTITUTE(Y236,$ED236,$ED$2&ROW($ED236)),$EC236,$EC$2&ROW($EC236)),$EB236,$EB$2&ROW($EB236)),$EA236,$EA$2&ROW($EA236)),$DZ236,$DZ$2&ROW($DZ236)),$DY236,$DY$2&ROW($DY236)),$DX236,$DX$2&ROW($DX236)),$DW236,$DW$2&ROW($DW236)),$DV236,$DV$2&ROW($DV236)),$DU236,$DU$2&ROW($DU236)),$DT236,$DT$2&ROW($DT236)),$DS236,$DS$2&ROW($DS236)))","v":"X=AS236*AU236*-0.025"},{"$f":"IF(Z236=\"\",0,\"X=\"&SUBSTITUTE(SUBSTITUTE(SUBSTITUTE(SUBSTITUTE(SUBSTITUTE(SUBSTITUTE(SUBSTITUTE(SUBSTITUTE(SUBSTITUTE(SUBSTITUTE(SUBSTITUTE(SUBSTITUTE(Z236,$ED236,$ED$2&ROW($ED236)),$EC236,$EC$2&ROW($EC236)),$EB236,$EB$2&ROW($EB236)),$EA236,$EA$2&ROW($EA236)),$DZ236,$DZ$2&ROW($DZ236)),$DY236,$DY$2&ROW($DY236)),$DX236,$DX$2&ROW($DX236)),$DW236,$DW$2&ROW($DW236)),$DV236,$DV$2&ROW($DV236)),$DU236,$DU$2&ROW($DU236)),$DT236,$DT$2&ROW($DT236)),$DS236,$DS$2&ROW($DS236)))","v":"X=AS236*AU236*-0.001"},{"$f":"IF(AA236=\"\",0,\"X=\"&SUBSTITUTE(SUBSTITUTE(SUBSTITUTE(SUBSTITUTE(SUBSTITUTE(SUBSTITUTE(SUBSTITUTE(SUBSTITUTE(SUBSTITUTE(SUBSTITUTE(SUBSTITUTE(SUBSTITUTE(AA236,$ED236,$ED$2&ROW($ED236)),$EC236,$EC$2&ROW($EC236)),$EB236,$EB$2&ROW($EB236)),$EA236,$EA$2&ROW($EA236)),$DZ236,$DZ$2&ROW($DZ236)),$DY236,$DY$2&ROW($DY236)),$DX236,$DX$2&ROW($DX236)),$DW236,$DW$2&ROW($DW236)),$DV236,$DV$2&ROW($DV236)),$DU236,$DU$2&ROW($DU236)),$DT236,$DT$2&ROW($DT236)),$DS236,$DS$2&ROW($DS236)))","v":"X=AS236*AU236*-0.005"},{"$f":"IF(AB236=\"\",0,\"X=\"&SUBSTITUTE(SUBSTITUTE(SUBSTITUTE(SUBSTITUTE(SUBSTITUTE(SUBSTITUTE(SUBSTITUTE(SUBSTITUTE(SUBSTITUTE(SUBSTITUTE(SUBSTITUTE(SUBSTITUTE(AB236,$ED236,$ED$2&ROW($ED236)),$EC236,$EC$2&ROW($EC236)),$EB236,$EB$2&ROW($EB236)),$EA236,$EA$2&ROW($EA236)),$DZ236,$DZ$2&ROW($DZ236)),$DY236,$DY$2&ROW($DY236)),$DX236,$DX$2&ROW($DX236)),$DW236,$DW$2&ROW($DW236)),$DV236,$DV$2&ROW($DV236)),$DU236,$DU$2&ROW($DU236)),$DT236,$DT$2&ROW($DT236)),$DS236,$DS$2&ROW($DS236)))","v":0},null,null,"{Factor:WinterCF}","{Factor:SummerCF}",{"$f":"IFERROR(INDEX($EG236:$IV236,MATCH(0,COUNTIF($DR236:DT236,$EG236:$IV236),0)),\"\")","v":"{Measure:Quantity}"},{"$f":"IFERROR(INDEX($EG236:$IV236,MATCH(0,COUNTIF($DR236:DU236,$EG236:$IV236),0)),\"\")","v":"{Package Size}"},{"$f":"IFERROR(INDEX($EG236:$IV236,MATCH(0,COUNTIF($DR236:DV236,$EG236:$IV236),0)),\"\")","v":"{Rebate per Package}"},{"$f":"IFERROR(INDEX($EG236:$IV236,MATCH(0,COUNTIF($DR236:DW236,$EG236:$IV236),0)),\"\")","v":"{Marketing Fee}"},{"$f":"IFERROR(INDEX($EG236:$IV236,MATCH(0,COUNTIF($DR236:DX236,$EG236:$IV236),0)),\"\")","v":""},{"$f":"IFERROR(INDEX($EG236:$IV236,MATCH(0,COUNTIF($DR236:DY236,$EG236:$IV236),0)),\"\")","v":""},{"$f":"IFERROR(INDEX($EG236:$IV236,MATCH(0,COUNTIF($DR236:DZ236,$EG236:$IV236),0)),\"\")","v":""},{"$f":"IFERROR(INDEX($EG236:$IV236,MATCH(0,COUNTIF($DR236:EA236,$EG236:$IV236),0)),\"\")","v":""},{"$f":"IFERROR(INDEX($EG236:$IV236,MATCH(0,COUNTIF($DR236:EB236,$EG236:$IV236),0)),\"\")","v":""},{"$f":"IFERROR(INDEX($EG236:$IV236,MATCH(0,COUNTIF($DR236:EC236,$EG236:$IV236),0)),\"\")","v":""},null,null,{"$f":"IFERROR(MID($G236,FIND(CHAR(160),SUBSTITUTE($G236,\"{\",CHAR(160),EG$1)),FIND(CHAR(160),SUBSTITUTE($G236,\"}\",CHAR(160),EG$1))-FIND(CHAR(160),SUBSTITUTE($G236,\"{\",CHAR(160),EG$1))+1),\"\")","v":"{Measure:Quantity}"},{"$f":"IFERROR(MID($G236,FIND(CHAR(160),SUBSTITUTE($G236,\"{\",CHAR(160),EH$1)),FIND(CHAR(160),SUBSTITUTE($G236,\"}\",CHAR(160),EH$1))-FIND(CHAR(160),SUBSTITUTE($G236,\"{\",CHAR(160),EH$1))+1),\"\")","v":"{Package Size}"},{"$f":"IFERROR(MID($G236,FIND(CHAR(160),SUBSTITUTE($G236,\"{\",CHAR(160),EI$1)),FIND(CHAR(160),SUBSTITUTE($G236,\"}\",CHAR(160),EI$1))-FIND(CHAR(160),SUBSTITUTE($G236,\"{\",CHAR(160),EI$1))+1),\"\")","v":""},{"$f":"IFERROR(MID($G236,FIND(CHAR(160),SUBSTITUTE($G236,\"{\",CHAR(160),EJ$1)),FIND(CHAR(160),SUBSTITUTE($G236,\"}\",CHAR(160),EJ$1))-FIND(CHAR(160),SUBSTITUTE($G236,\"{\",CHAR(160),EJ$1))+1),\"\")","v":""},{"$f":"IFERROR(MID($G236,FIND(CHAR(160),SUBSTITUTE($G236,\"{\",CHAR(160),EK$1)),FIND(CHAR(160),SUBSTITUTE($G236,\"}\",CHAR(160),EK$1))-FIND(CHAR(160),SUBSTITUTE($G236,\"{\",CHAR(160),EK$1))+1),\"\")","v":""},{"$f":"IFERROR(MID($G236,FIND(CHAR(160),SUBSTITUTE($G236,\"{\",CHAR(160),EL$1)),FIND(CHAR(160),SUBSTITUTE($G236,\"}\",CHAR(160),EL$1))-FIND(CHAR(160),SUBSTITUTE($G236,\"{\",CHAR(160),EL$1))+1),\"\")","v":""},{"$f":"IFERROR(MID($G236,FIND(CHAR(160),SUBSTITUTE($G236,\"{\",CHAR(160),EM$1)),FIND(CHAR(160),SUBSTITUTE($G236,\"}\",CHAR(160),EM$1))-FIND(CHAR(160),SUBSTITUTE($G236,\"{\",CHAR(160),EM$1))+1),\"\")","v":""},{"$f":"IFERROR(MID($G236,FIND(CHAR(160),SUBSTITUTE($G236,\"{\",CHAR(160),EN$1)),FIND(CHAR(160),SUBSTITUTE($G236,\"}\",CHAR(160),EN$1))-FIND(CHAR(160),SUBSTITUTE($G236,\"{\",CHAR(160),EN$1))+1),\"\")","v":""},{"$f":"IFERROR(MID($G236,FIND(CHAR(160),SUBSTITUTE($G236,\"{\",CHAR(160),EO$1)),FIND(CHAR(160),SUBSTITUTE($G236,\"}\",CHAR(160),EO$1))-FIND(CHAR(160),SUBSTITUTE($G236,\"{\",CHAR(160),EO$1))+1),\"\")","v":""},{"$f":"IFERROR(MID($G236,FIND(CHAR(160),SUBSTITUTE($G236,\"{\",CHAR(160),EP$1)),FIND(CHAR(160),SUBSTITUTE($G236,\"}\",CHAR(160),EP$1))-FIND(CHAR(160),SUBSTITUTE($G236,\"{\",CHAR(160),EP$1))+1),\"\")","v":""},{"$f":"IFERROR(MID($J236,FIND(CHAR(160),SUBSTITUTE($J236,\"{\",CHAR(160),EQ$1)),FIND(CHAR(160),SUBSTITUTE($J236,\"}\",CHAR(160),EQ$1))-FIND(CHAR(160),SUBSTITUTE($J236,\"{\",CHAR(160),EQ$1))+1),\"\")","v":"{Measure:Quantity}"},{"$f":"IFERROR(MID($J236,FIND(CHAR(160),SUBSTITUTE($J236,\"{\",CHAR(160),ER$1)),FIND(CHAR(160),SUBSTITUTE($J236,\"}\",CHAR(160),ER$1))-FIND(CHAR(160),SUBSTITUTE($J236,\"{\",CHAR(160),ER$1))+1),\"\")","v":"{Rebate per Package}"},{"$f":"IFERROR(MID($J236,FIND(CHAR(160),SUBSTITUTE($J236,\"{\",CHAR(160),ES$1)),FIND(CHAR(160),SUBSTITUTE($J236,\"}\",CHAR(160),ES$1))-FIND(CHAR(160),SUBSTITUTE($J236,\"{\",CHAR(160),ES$1))+1),\"\")","v":"{Marketing Fee}"},{"$f":"IFERROR(MID($J236,FIND(CHAR(160),SUBSTITUTE($J236,\"{\",CHAR(160),ET$1)),FIND(CHAR(160),SUBSTITUTE($J236,\"}\",CHAR(160),ET$1))-FIND(CHAR(160),SUBSTITUTE($J236,\"{\",CHAR(160),ET$1))+1),\"\")","v":""},{"$f":"IFERROR(MID($J236,FIND(CHAR(160),SUBSTITUTE($J236,\"{\",CHAR(160),EU$1)),FIND(CHAR(160),SUBSTITUTE($J236,\"}\",CHAR(160),EU$1))-FIND(CHAR(160),SUBSTITUTE($J236,\"{\",CHAR(160),EU$1))+1),\"\")","v":""},{"$f":"IFERROR(MID($J236,FIND(CHAR(160),SUBSTITUTE($J236,\"{\",CHAR(160),EV$1)),FIND(CHAR(160),SUBSTITUTE($J236,\"}\",CHAR(160),EV$1))-FIND(CHAR(160),SUBSTITUTE($J236,\"{\",CHAR(160),EV$1))+1),\"\")","v":""},{"$f":"IFERROR(MID($J236,FIND(CHAR(160),SUBSTITUTE($J236,\"{\",CHAR(160),EW$1)),FIND(CHAR(160),SUBSTITUTE($J236,\"}\",CHAR(160),EW$1))-FIND(CHAR(160),SUBSTITUTE($J236,\"{\",CHAR(160),EW$1))+1),\"\")","v":""},{"$f":"IFERROR(MID($J236,FIND(CHAR(160),SUBSTITUTE($J236,\"{\",CHAR(160),EX$1)),FIND(CHAR(160),SUBSTITUTE($J236,\"}\",CHAR(160),EX$1))-FIND(CHAR(160),SUBSTITUTE($J236,\"{\",CHAR(160),EX$1))+1),\"\")","v":""},{"$f":"IFERROR(MID($J236,FIND(CHAR(160),SUBSTITUTE($J236,\"{\",CHAR(160),EY$1)),FIND(CHAR(160),SUBSTITUTE($J236,\"}\",CHAR(160),EY$1))-FIND(CHAR(160),SUBSTITUTE($J236,\"{\",CHAR(160),EY$1))+1),\"\")","v":""},{"$f":"IFERROR(MID($J236,FIND(CHAR(160),SUBSTITUTE($J236,\"{\",CHAR(160),EZ$1)),FIND(CHAR(160),SUBSTITUTE($J236,\"}\",CHAR(160),EZ$1))-FIND(CHAR(160),SUBSTITUTE($J236,\"{\",CHAR(160),EZ$1))+1),\"\")","v":""},{"$f":"IFERROR(MID($J236,FIND(CHAR(160),SUBSTITUTE($J236,\"{\",CHAR(160),FA$1)),FIND(CHAR(160),SUBSTITUTE($J236,\"}\",CHAR(160),FA$1))-FIND(CHAR(160),SUBSTITUTE($J236,\"{\",CHAR(160),FA$1))+1),\"\")","v":"{Measure:Quantity}"},{"$f":"IFERROR(MID($J236,FIND(CHAR(160),SUBSTITUTE($J236,\"{\",CHAR(160),FB$1)),FIND(CHAR(160),SUBSTITUTE($J236,\"}\",CHAR(160),FB$1))-FIND(CHAR(160),SUBSTITUTE($J236,\"{\",CHAR(160),FB$1))+1),\"\")","v":"{Rebate per Package}"},{"$f":"IFERROR(MID($O236,FIND(CHAR(160),SUBSTITUTE($O236,\"{\",CHAR(160),FC$1)),FIND(CHAR(160),SUBSTITUTE($O236,\"}\",CHAR(160),FC$1))-FIND(CHAR(160),SUBSTITUTE($O236,\"{\",CHAR(160),FC$1))+1),\"\")","v":""},{"$f":"IFERROR(MID($O236,FIND(CHAR(160),SUBSTITUTE($O236,\"{\",CHAR(160),FD$1)),FIND(CHAR(160),SUBSTITUTE($O236,\"}\",CHAR(160),FD$1))-FIND(CHAR(160),SUBSTITUTE($O236,\"{\",CHAR(160),FD$1))+1),\"\")","v":""},{"$f":"IFERROR(MID($O236,FIND(CHAR(160),SUBSTITUTE($O236,\"{\",CHAR(160),FE$1)),FIND(CHAR(160),SUBSTITUTE($O236,\"}\",CHAR(160),FE$1))-FIND(CHAR(160),SUBSTITUTE($O236,\"{\",CHAR(160),FE$1))+1),\"\")","v":""},{"$f":"IFERROR(MID($O236,FIND(CHAR(160),SUBSTITUTE($O236,\"{\",CHAR(160),FF$1)),FIND(CHAR(160),SUBSTITUTE($O236,\"}\",CHAR(160),FF$1))-FIND(CHAR(160),SUBSTITUTE($O236,\"{\",CHAR(160),FF$1))+1),\"\")","v":""},{"$f":"IFERROR(MID($O236,FIND(CHAR(160),SUBSTITUTE($O236,\"{\",CHAR(160),FG$1)),FIND(CHAR(160),SUBSTITUTE($O236,\"}\",CHAR(160),FG$1))-FIND(CHAR(160),SUBSTITUTE($O236,\"{\",CHAR(160),FG$1))+1),\"\")","v":""},{"$f":"IFERROR(MID($O236,FIND(CHAR(160),SUBSTITUTE($O236,\"{\",CHAR(160),FH$1)),FIND(CHAR(160),SUBSTITUTE($O236,\"}\",CHAR(160),FH$1))-FIND(CHAR(160),SUBSTITUTE($O236,\"{\",CHAR(160),FH$1))+1),\"\")","v":""},{"$f":"IFERROR(MID($O236,FIND(CHAR(160),SUBSTITUTE($O236,\"{\",CHAR(160),FI$1)),FIND(CHAR(160),SUBSTITUTE($O236,\"}\",CHAR(160),FI$1))-FIND(CHAR(160),SUBSTITUTE($O236,\"{\",CHAR(160),FI$1))+1),\"\")","v":""},{"$f":"IFERROR(MID($O236,FIND(CHAR(160),SUBSTITUTE($O236,\"{\",CHAR(160),FJ$1)),FIND(CHAR(160),SUBSTITUTE($O236,\"}\",CHAR(160),FJ$1))-FIND(CHAR(160),SUBSTITUTE($O236,\"{\",CHAR(160),FJ$1))+1),\"\")","v":""},{"$f":"IFERROR(MID($O236,FIND(CHAR(160),SUBSTITUTE($O236,\"{\",CHAR(160),FK$1)),FIND(CHAR(160),SUBSTITUTE($O236,\"}\",CHAR(160),FK$1))-FIND(CHAR(160),SUBSTITUTE($O236,\"{\",CHAR(160),FK$1))+1),\"\")","v":"{Measure:Quantity}"},{"$f":"IFERROR(MID($O236,FIND(CHAR(160),SUBSTITUTE($O236,\"{\",CHAR(160),FL$1)),FIND(CHAR(160),SUBSTITUTE($O236,\"}\",CHAR(160),FL$1))-FIND(CHAR(160),SUBSTITUTE($O236,\"{\",CHAR(160),FL$1))+1),\"\")","v":"{Package Size}"},{"$f":"IFERROR(MID($R236,FIND(CHAR(160),SUBSTITUTE($R236,\"{\",CHAR(160),FM$1)),FIND(CHAR(160),SUBSTITUTE($R236,\"}\",CHAR(160),FM$1))-FIND(CHAR(160),SUBSTITUTE($R236,\"{\",CHAR(160),FM$1))+1),\"\")","v":""},{"$f":"IFERROR(MID($R236,FIND(CHAR(160),SUBSTITUTE($R236,\"{\",CHAR(160),FN$1)),FIND(CHAR(160),SUBSTITUTE($R236,\"}\",CHAR(160),FN$1))-FIND(CHAR(160),SUBSTITUTE($R236,\"{\",CHAR(160),FN$1))+1),\"\")","v":""},{"$f":"IFERROR(MID($R236,FIND(CHAR(160),SUBSTITUTE($R236,\"{\",CHAR(160),FO$1)),FIND(CHAR(160),SUBSTITUTE($R236,\"}\",CHAR(160),FO$1))-FIND(CHAR(160),SUBSTITUTE($R236,\"{\",CHAR(160),FO$1))+1),\"\")","v":""},{"$f":"IFERROR(MID($R236,FIND(CHAR(160),SUBSTITUTE($R236,\"{\",CHAR(160),FP$1)),FIND(CHAR(160),SUBSTITUTE($R236,\"}\",CHAR(160),FP$1))-FIND(CHAR(160),SUBSTITUTE($R236,\"{\",CHAR(160),FP$1))+1),\"\")","v":""},{"$f":"IFERROR(MID($R236,FIND(CHAR(160),SUBSTITUTE($R236,\"{\",CHAR(160),FQ$1)),FIND(CHAR(160),SUBSTITUTE($R236,\"}\",CHAR(160),FQ$1))-FIND(CHAR(160),SUBSTITUTE($R236,\"{\",CHAR(160),FQ$1))+1),\"\")","v":""},{"$f":"IFERROR(MID($R236,FIND(CHAR(160),SUBSTITUTE($R236,\"{\",CHAR(160),FR$1)),FIND(CHAR(160),SUBSTITUTE($R236,\"}\",CHAR(160),FR$1))-FIND(CHAR(160),SUBSTITUTE($R236,\"{\",CHAR(160),FR$1))+1),\"\")","v":""},{"$f":"IFERROR(MID($R236,FIND(CHAR(160),SUBSTITUTE($R236,\"{\",CHAR(160),FS$1)),FIND(CHAR(160),SUBSTITUTE($R236,\"}\",CHAR(160),FS$1))-FIND(CHAR(160),SUBSTITUTE($R236,\"{\",CHAR(160),FS$1))+1),\"\")","v":""},{"$f":"IFERROR(MID($R236,FIND(CHAR(160),SUBSTITUTE($R236,\"{\",CHAR(160),FT$1)),FIND(CHAR(160),SUBSTITUTE($R236,\"}\",CHAR(160),FT$1))-FIND(CHAR(160),SUBSTITUTE($R236,\"{\",CHAR(160),FT$1))+1),\"\")","v":""},{"$f":"IFERROR(MID($R236,FIND(CHAR(160),SUBSTITUTE($R236,\"{\",CHAR(160),FU$1)),FIND(CHAR(160),SUBSTITUTE($R236,\"}\",CHAR(160),FU$1))-FIND(CHAR(160),SUBSTITUTE($R236,\"{\",CHAR(160),FU$1))+1),\"\")","v":"{Measure:Quantity}"},{"$f":"IFERROR(MID($R236,FIND(CHAR(160),SUBSTITUTE($R236,\"{\",CHAR(160),FV$1)),FIND(CHAR(160),SUBSTITUTE($R236,\"}\",CHAR(160),FV$1))-FIND(CHAR(160),SUBSTITUTE($R236,\"{\",CHAR(160),FV$1))+1),\"\")","v":"{Package Size}"},{"$f":"IFERROR(MID($U236,FIND(CHAR(160),SUBSTITUTE($U236,\"{\",CHAR(160),FW$1)),FIND(CHAR(160),SUBSTITUTE($U236,\"}\",CHAR(160),FW$1))-FIND(CHAR(160),SUBSTITUTE($U236,\"{\",CHAR(160),FW$1))+1),\"\")","v":""},{"$f":"IFERROR(MID($U236,FIND(CHAR(160),SUBSTITUTE($U236,\"{\",CHAR(160),FX$1)),FIND(CHAR(160),SUBSTITUTE($U236,\"}\",CHAR(160),FX$1))-FIND(CHAR(160),SUBSTITUTE($U236,\"{\",CHAR(160),FX$1))+1),\"\")","v":""},{"$f":"IFERROR(MID($U236,FIND(CHAR(160),SUBSTITUTE($U236,\"{\",CHAR(160),FY$1)),FIND(CHAR(160),SUBSTITUTE($U236,\"}\",CHAR(160),FY$1))-FIND(CHAR(160),SUBSTITUTE($U236,\"{\",CHAR(160),FY$1))+1),\"\")","v":""},{"$f":"IFERROR(MID($U236,FIND(CHAR(160),SUBSTITUTE($U236,\"{\",CHAR(160),FZ$1)),FIND(CHAR(160),SUBSTITUTE($U236,\"}\",CHAR(160),FZ$1))-FIND(CHAR(160),SUBSTITUTE($U236,\"{\",CHAR(160),FZ$1))+1),\"\")","v":""},{"$f":"IFERROR(MID($U236,FIND(CHAR(160),SUBSTITUTE($U236,\"{\",CHAR(160),GA$1)),FIND(CHAR(160),SUBSTITUTE($U236,\"}\",CHAR(160),GA$1))-FIND(CHAR(160),SUBSTITUTE($U236,\"{\",CHAR(160),GA$1))+1),\"\")","v":""},{"$f":"IFERROR(MID($U236,FIND(CHAR(160),SUBSTITUTE($U236,\"{\",CHAR(160),GB$1)),FIND(CHAR(160),SUBSTITUTE($U236,\"}\",CHAR(160),GB$1))-FIND(CHAR(160),SUBSTITUTE($U236,\"{\",CHAR(160),GB$1))+1),\"\")","v":""},{"$f":"IFERROR(MID($U236,FIND(CHAR(160),SUBSTITUTE($U236,\"{\",CHAR(160),GC$1)),FIND(CHAR(160),SUBSTITUTE($U236,\"}\",CHAR(160),GC$1))-FIND(CHAR(160),SUBSTITUTE($U236,\"{\",CHAR(160),GC$1))+1),\"\")","v":""},{"$f":"IFERROR(MID($U236,FIND(CHAR(160),SUBSTITUTE($U236,\"{\",CHAR(160),GD$1)),FIND(CHAR(160),SUBSTITUTE($U236,\"}\",CHAR(160),GD$1))-FIND(CHAR(160),SUBSTITUTE($U236,\"{\",CHAR(160),GD$1))+1),\"\")","v":""},{"$f":"IFERROR(MID($U236,FIND(CHAR(160),SUBSTITUTE($U236,\"{\",CHAR(160),GE$1)),FIND(CHAR(160),SUBSTITUTE($U236,\"}\",CHAR(160),GE$1))-FIND(CHAR(160),SUBSTITUTE($U236,\"{\",CHAR(160),GE$1))+1),\"\")","v":"{Measure:Quantity}"},{"$f":"IFERROR(MID($U236,FIND(CHAR(160),SUBSTITUTE($U236,\"{\",CHAR(160),GF$1)),FIND(CHAR(160),SUBSTITUTE($U236,\"}\",CHAR(160),GF$1))-FIND(CHAR(160),SUBSTITUTE($U236,\"{\",CHAR(160),GF$1))+1),\"\")","v":"{Package Size}"},{"$f":"IFERROR(MID($V236,FIND(CHAR(160),SUBSTITUTE($V236,\"{\",CHAR(160),GG$1)),FIND(CHAR(160),SUBSTITUTE($V236,\"}\",CHAR(160),GG$1))-FIND(CHAR(160),SUBSTITUTE($V236,\"{\",CHAR(160),GG$1))+1),\"\")","v":""},{"$f":"IFERROR(MID($V236,FIND(CHAR(160),SUBSTITUTE($V236,\"{\",CHAR(160),GH$1)),FIND(CHAR(160),SUBSTITUTE($V236,\"}\",CHAR(160),GH$1))-FIND(CHAR(160),SUBSTITUTE($V236,\"{\",CHAR(160),GH$1))+1),\"\")","v":""},{"$f":"IFERROR(MID($V236,FIND(CHAR(160),SUBSTITUTE($V236,\"{\",CHAR(160),GI$1)),FIND(CHAR(160),SUBSTITUTE($V236,\"}\",CHAR(160),GI$1))-FIND(CHAR(160),SUBSTITUTE($V236,\"{\",CHAR(160),GI$1))+1),\"\")","v":""},{"$f":"IFERROR(MID($V236,FIND(CHAR(160),SUBSTITUTE($V236,\"{\",CHAR(160),GJ$1)),FIND(CHAR(160),SUBSTITUTE($V236,\"}\",CHAR(160),GJ$1))-FIND(CHAR(160),SUBSTITUTE($V236,\"{\",CHAR(160),GJ$1))+1),\"\")","v":""},{"$f":"IFERROR(MID($V236,FIND(CHAR(160),SUBSTITUTE($V236,\"{\",CHAR(160),GK$1)),FIND(CHAR(160),SUBSTITUTE($V236,\"}\",CHAR(160),GK$1))-FIND(CHAR(160),SUBSTITUTE($V236,\"{\",CHAR(160),GK$1))+1),\"\")","v":""},{"$f":"IFERROR(MID($V236,FIND(CHAR(160),SUBSTITUTE($V236,\"{\",CHAR(160),GL$1)),FIND(CHAR(160),SUBSTITUTE($V236,\"}\",CHAR(160),GL$1))-FIND(CHAR(160),SUBSTITUTE($V236,\"{\",CHAR(160),GL$1))+1),\"\")","v":""},{"$f":"IFERROR(MID($V236,FIND(CHAR(160),SUBSTITUTE($V236,\"{\",CHAR(160),GM$1)),FIND(CHAR(160),SUBSTITUTE($V236,\"}\",CHAR(160),GM$1))-FIND(CHAR(160),SUBSTITUTE($V236,\"{\",CHAR(160),GM$1))+1),\"\")","v":""},{"$f":"IFERROR(MID($V236,FIND(CHAR(160),SUBSTITUTE($V236,\"{\",CHAR(160),GN$1)),FIND(CHAR(160),SUBSTITUTE($V236,\"}\",CHAR(160),GN$1))-FIND(CHAR(160),SUBSTITUTE($V236,\"{\",CHAR(160),GN$1))+1),\"\")","v":""},{"$f":"IFERROR(MID($V236,FIND(CHAR(160),SUBSTITUTE($V236,\"{\",CHAR(160),GO$1)),FIND(CHAR(160),SUBSTITUTE($V236,\"}\",CHAR(160),GO$1))-FIND(CHAR(160),SUBSTITUTE($V236,\"{\",CHAR(160),GO$1))+1),\"\")","v":"{Measure:Quantity}"},{"$f":"IFERROR(MID($V236,FIND(CHAR(160),SUBSTITUTE($V236,\"{\",CHAR(160),GP$1)),FIND(CHAR(160),SUBSTITUTE($V236,\"}\",CHAR(160),GP$1))-FIND(CHAR(160),SUBSTITUTE($V236,\"{\",CHAR(160),GP$1))+1),\"\")","v":"{Package Size}"},{"$f":"IFERROR(MID($W236,FIND(CHAR(160),SUBSTITUTE($W236,\"{\",CHAR(160),GQ$1)),FIND(CHAR(160),SUBSTITUTE($W236,\"}\",CHAR(160),GQ$1))-FIND(CHAR(160),SUBSTITUTE($W236,\"{\",CHAR(160),GQ$1))+1),\"\")","v":""},{"$f":"IFERROR(MID($W236,FIND(CHAR(160),SUBSTITUTE($W236,\"{\",CHAR(160),GR$1)),FIND(CHAR(160),SUBSTITUTE($W236,\"}\",CHAR(160),GR$1))-FIND(CHAR(160),SUBSTITUTE($W236,\"{\",CHAR(160),GR$1))+1),\"\")","v":""},{"$f":"IFERROR(MID($W236,FIND(CHAR(160),SUBSTITUTE($W236,\"{\",CHAR(160),GS$1)),FIND(CHAR(160),SUBSTITUTE($W236,\"}\",CHAR(160),GS$1))-FIND(CHAR(160),SUBSTITUTE($W236,\"{\",CHAR(160),GS$1))+1),\"\")","v":""},{"$f":"IFERROR(MID($W236,FIND(CHAR(160),SUBSTITUTE($W236,\"{\",CHAR(160),GT$1)),FIND(CHAR(160),SUBSTITUTE($W236,\"}\",CHAR(160),GT$1))-FIND(CHAR(160),SUBSTITUTE($W236,\"{\",CHAR(160),GT$1))+1),\"\")","v":""},{"$f":"IFERROR(MID($W236,FIND(CHAR(160),SUBSTITUTE($W236,\"{\",CHAR(160),GU$1)),FIND(CHAR(160),SUBSTITUTE($W236,\"}\",CHAR(160),GU$1))-FIND(CHAR(160),SUBSTITUTE($W236,\"{\",CHAR(160),GU$1))+1),\"\")","v":""},{"$f":"IFERROR(MID($W236,FIND(CHAR(160),SUBSTITUTE($W236,\"{\",CHAR(160),GV$1)),FIND(CHAR(160),SUBSTITUTE($W236,\"}\",CHAR(160),GV$1))-FIND(CHAR(160),SUBSTITUTE($W236,\"{\",CHAR(160),GV$1))+1),\"\")","v":""},{"$f":"IFERROR(MID($W236,FIND(CHAR(160),SUBSTITUTE($W236,\"{\",CHAR(160),GW$1)),FIND(CHAR(160),SUBSTITUTE($W236,\"}\",CHAR(160),GW$1))-FIND(CHAR(160),SUBSTITUTE($W236,\"{\",CHAR(160),GW$1))+1),\"\")","v":""},{"$f":"IFERROR(MID($W236,FIND(CHAR(160),SUBSTITUTE($W236,\"{\",CHAR(160),GX$1)),FIND(CHAR(160),SUBSTITUTE($W236,\"}\",CHAR(160),GX$1))-FIND(CHAR(160),SUBSTITUTE($W236,\"{\",CHAR(160),GX$1))+1),\"\")","v":""},{"$f":"IFERROR(MID($W236,FIND(CHAR(160),SUBSTITUTE($W236,\"{\",CHAR(160),GY$1)),FIND(CHAR(160),SUBSTITUTE($W236,\"}\",CHAR(160),GY$1))-FIND(CHAR(160),SUBSTITUTE($W236,\"{\",CHAR(160),GY$1))+1),\"\")","v":"{Measure:Quantity}"},{"$f":"IFERROR(MID($W236,FIND(CHAR(160),SUBSTITUTE($W236,\"{\",CHAR(160),GZ$1)),FIND(CHAR(160),SUBSTITUTE($W236,\"}\",CHAR(160),GZ$1))-FIND(CHAR(160),SUBSTITUTE($W236,\"{\",CHAR(160),GZ$1))+1),\"\")","v":"{Package Size}"},{"$f":"IFERROR(MID($X236,FIND(CHAR(160),SUBSTITUTE($X236,\"{\",CHAR(160),HA$1)),FIND(CHAR(160),SUBSTITUTE($X236,\"}\",CHAR(160),HA$1))-FIND(CHAR(160),SUBSTITUTE($X236,\"{\",CHAR(160),HA$1))+1),\"\")","v":""},{"$f":"IFERROR(MID($X236,FIND(CHAR(160),SUBSTITUTE($X236,\"{\",CHAR(160),HB$1)),FIND(CHAR(160),SUBSTITUTE($X236,\"}\",CHAR(160),HB$1))-FIND(CHAR(160),SUBSTITUTE($X236,\"{\",CHAR(160),HB$1))+1),\"\")","v":""},{"$f":"IFERROR(MID($X236,FIND(CHAR(160),SUBSTITUTE($X236,\"{\",CHAR(160),HC$1)),FIND(CHAR(160),SUBSTITUTE($X236,\"}\",CHAR(160),HC$1))-FIND(CHAR(160),SUBSTITUTE($X236,\"{\",CHAR(160),HC$1))+1),\"\")","v":""},{"$f":"IFERROR(MID($X236,FIND(CHAR(160),SUBSTITUTE($X236,\"{\",CHAR(160),HD$1)),FIND(CHAR(160),SUBSTITUTE($X236,\"}\",CHAR(160),HD$1))-FIND(CHAR(160),SUBSTITUTE($X236,\"{\",CHAR(160),HD$1))+1),\"\")","v":""},{"$f":"IFERROR(MID($X236,FIND(CHAR(160),SUBSTITUTE($X236,\"{\",CHAR(160),HE$1)),FIND(CHAR(160),SUBSTITUTE($X236,\"}\",CHAR(160),HE$1))-FIND(CHAR(160),SUBSTITUTE($X236,\"{\",CHAR(160),HE$1))+1),\"\")","v":""},{"$f":"IFERROR(MID($X236,FIND(CHAR(160),SUBSTITUTE($X236,\"{\",CHAR(160),HF$1)),FIND(CHAR(160),SUBSTITUTE($X236,\"}\",CHAR(160),HF$1))-FIND(CHAR(160),SUBSTITUTE($X236,\"{\",CHAR(160),HF$1))+1),\"\")","v":""},{"$f":"IFERROR(MID($X236,FIND(CHAR(160),SUBSTITUTE($X236,\"{\",CHAR(160),HG$1)),FIND(CHAR(160),SUBSTITUTE($X236,\"}\",CHAR(160),HG$1))-FIND(CHAR(160),SUBSTITUTE($X236,\"{\",CHAR(160),HG$1))+1),\"\")","v":""},{"$f":"IFERROR(MID($X236,FIND(CHAR(160),SUBSTITUTE($X236,\"{\",CHAR(160),HH$1)),FIND(CHAR(160),SUBSTITUTE($X236,\"}\",CHAR(160),HH$1))-FIND(CHAR(160),SUBSTITUTE($X236,\"{\",CHAR(160),HH$1))+1),\"\")","v":""},{"$f":"IFERROR(MID($X236,FIND(CHAR(160),SUBSTITUTE($X236,\"{\",CHAR(160),HI$1)),FIND(CHAR(160),SUBSTITUTE($X236,\"}\",CHAR(160),HI$1))-FIND(CHAR(160),SUBSTITUTE($X236,\"{\",CHAR(160),HI$1))+1),\"\")","v":"{Measure:Quantity}"},{"$f":"IFERROR(MID($X236,FIND(CHAR(160),SUBSTITUTE($X236,\"{\",CHAR(160),HJ$1)),FIND(CHAR(160),SUBSTITUTE($X236,\"}\",CHAR(160),HJ$1))-FIND(CHAR(160),SUBSTITUTE($X236,\"{\",CHAR(160),HJ$1))+1),\"\")","v":"{Package Size}"},{"$f":"IFERROR(MID($Y236,FIND(CHAR(160),SUBSTITUTE($Y236,\"{\",CHAR(160),HK$1)),FIND(CHAR(160),SUBSTITUTE($Y236,\"}\",CHAR(160),HK$1))-FIND(CHAR(160),SUBSTITUTE($Y236,\"{\",CHAR(160),HK$1))+1),\"\")","v":""},{"$f":"IFERROR(MID($Y236,FIND(CHAR(160),SUBSTITUTE($Y236,\"{\",CHAR(160),HL$1)),FIND(CHAR(160),SUBSTITUTE($Y236,\"}\",CHAR(160),HL$1))-FIND(CHAR(160),SUBSTITUTE($Y236,\"{\",CHAR(160),HL$1))+1),\"\")","v":""},{"$f":"IFERROR(MID($Y236,FIND(CHAR(160),SUBSTITUTE($Y236,\"{\",CHAR(160),HM$1)),FIND(CHAR(160),SUBSTITUTE($Y236,\"}\",CHAR(160),HM$1))-FIND(CHAR(160),SUBSTITUTE($Y236,\"{\",CHAR(160),HM$1))+1),\"\")","v":""},{"$f":"IFERROR(MID($Y236,FIND(CHAR(160),SUBSTITUTE($Y236,\"{\",CHAR(160),HN$1)),FIND(CHAR(160),SUBSTITUTE($Y236,\"}\",CHAR(160),HN$1))-FIND(CHAR(160),SUBSTITUTE($Y236,\"{\",CHAR(160),HN$1))+1),\"\")","v":""},{"$f":"IFERROR(MID($Y236,FIND(CHAR(160),SUBSTITUTE($Y236,\"{\",CHAR(160),HO$1)),FIND(CHAR(160),SUBSTITUTE($Y236,\"}\",CHAR(160),HO$1))-FIND(CHAR(160),SUBSTITUTE($Y236,\"{\",CHAR(160),HO$1))+1),\"\")","v":""},{"$f":"IFERROR(MID($Y236,FIND(CHAR(160),SUBSTITUTE($Y236,\"{\",CHAR(160),HP$1)),FIND(CHAR(160),SUBSTITUTE($Y236,\"}\",CHAR(160),HP$1))-FIND(CHAR(160),SUBSTITUTE($Y236,\"{\",CHAR(160),HP$1))+1),\"\")","v":""},{"$f":"IFERROR(MID($Y236,FIND(CHAR(160),SUBSTITUTE($Y236,\"{\",CHAR(160),HQ$1)),FIND(CHAR(160),SUBSTITUTE($Y236,\"}\",CHAR(160),HQ$1))-FIND(CHAR(160),SUBSTITUTE($Y236,\"{\",CHAR(160),HQ$1))+1),\"\")","v":""},{"$f":"IFERROR(MID($Y236,FIND(CHAR(160),SUBSTITUTE($Y236,\"{\",CHAR(160),HR$1)),FIND(CHAR(160),SUBSTITUTE($Y236,\"}\",CHAR(160),HR$1))-FIND(CHAR(160),SUBSTITUTE($Y236,\"{\",CHAR(160),HR$1))+1),\"\")","v":""},{"$f":"IFERROR(MID($Y236,FIND(CHAR(160),SUBSTITUTE($Y236,\"{\",CHAR(160),HS$1)),FIND(CHAR(160),SUBSTITUTE($Y236,\"}\",CHAR(160),HS$1))-FIND(CHAR(160),SUBSTITUTE($Y236,\"{\",CHAR(160),HS$1))+1),\"\")","v":"{Measure:Quantity}"},{"$f":"IFERROR(MID($Y236,FIND(CHAR(160),SUBSTITUTE($Y236,\"{\",CHAR(160),HT$1)),FIND(CHAR(160),SUBSTITUTE($Y236,\"}\",CHAR(160),HT$1))-FIND(CHAR(160),SUBSTITUTE($Y236,\"{\",CHAR(160),HT$1))+1),\"\")","v":"{Package Size}"},{"$f":"IFERROR(MID($Z236,FIND(CHAR(160),SUBSTITUTE($Z236,\"{\",CHAR(160),HU$1)),FIND(CHAR(160),SUBSTITUTE($Z236,\"}\",CHAR(160),HU$1))-FIND(CHAR(160),SUBSTITUTE($Z236,\"{\",CHAR(160),HU$1))+1),\"\")","v":""},{"$f":"IFERROR(MID($Z236,FIND(CHAR(160),SUBSTITUTE($Z236,\"{\",CHAR(160),HV$1)),FIND(CHAR(160),SUBSTITUTE($Z236,\"}\",CHAR(160),HV$1))-FIND(CHAR(160),SUBSTITUTE($Z236,\"{\",CHAR(160),HV$1))+1),\"\")","v":""},{"$f":"IFERROR(MID($Z236,FIND(CHAR(160),SUBSTITUTE($Z236,\"{\",CHAR(160),HW$1)),FIND(CHAR(160),SUBSTITUTE($Z236,\"}\",CHAR(160),HW$1))-FIND(CHAR(160),SUBSTITUTE($Z236,\"{\",CHAR(160),HW$1))+1),\"\")","v":""},{"$f":"IFERROR(MID($Z236,FIND(CHAR(160),SUBSTITUTE($Z236,\"{\",CHAR(160),HX$1)),FIND(CHAR(160),SUBSTITUTE($Z236,\"}\",CHAR(160),HX$1))-FIND(CHAR(160),SUBSTITUTE($Z236,\"{\",CHAR(160),HX$1))+1),\"\")","v":""},{"$f":"IFERROR(MID($Z236,FIND(CHAR(160),SUBSTITUTE($Z236,\"{\",CHAR(160),HY$1)),FIND(CHAR(160),SUBSTITUTE($Z236,\"}\",CHAR(160),HY$1))-FIND(CHAR(160),SUBSTITUTE($Z236,\"{\",CHAR(160),HY$1))+1),\"\")","v":""},{"$f":"IFERROR(MID($Z236,FIND(CHAR(160),SUBSTITUTE($Z236,\"{\",CHAR(160),HZ$1)),FIND(CHAR(160),SUBSTITUTE($Z236,\"}\",CHAR(160),HZ$1))-FIND(CHAR(160),SUBSTITUTE($Z236,\"{\",CHAR(160),HZ$1))+1),\"\")","v":""},{"$f":"IFERROR(MID($Z236,FIND(CHAR(160),SUBSTITUTE($Z236,\"{\",CHAR(160),IA$1)),FIND(CHAR(160),SUBSTITUTE($Z236,\"}\",CHAR(160),IA$1))-FIND(CHAR(160),SUBSTITUTE($Z236,\"{\",CHAR(160),IA$1))+1),\"\")","v":""},{"$f":"IFERROR(MID($Z236,FIND(CHAR(160),SUBSTITUTE($Z236,\"{\",CHAR(160),IB$1)),FIND(CHAR(160),SUBSTITUTE($Z236,\"}\",CHAR(160),IB$1))-FIND(CHAR(160),SUBSTITUTE($Z236,\"{\",CHAR(160),IB$1))+1),\"\")","v":""},{"$f":"IFERROR(MID($Z236,FIND(CHAR(160),SUBSTITUTE($Z236,\"{\",CHAR(160),IC$1)),FIND(CHAR(160),SUBSTITUTE($Z236,\"}\",CHAR(160),IC$1))-FIND(CHAR(160),SUBSTITUTE($Z236,\"{\",CHAR(160),IC$1))+1),\"\")","v":"{Measure:Quantity}"},{"$f":"IFERROR(MID($Z236,FIND(CHAR(160),SUBSTITUTE($Z236,\"{\",CHAR(160),ID$1)),FIND(CHAR(160),SUBSTITUTE($Z236,\"}\",CHAR(160),ID$1))-FIND(CHAR(160),SUBSTITUTE($Z236,\"{\",CHAR(160),ID$1))+1),\"\")","v":"{Package Size}"},{"$f":"IFERROR(MID($AA236,FIND(CHAR(160),SUBSTITUTE($AA236,\"{\",CHAR(160),IE$1)),FIND(CHAR(160),SUBSTITUTE($AA236,\"}\",CHAR(160),IE$1))-FIND(CHAR(160),SUBSTITUTE($AA236,\"{\",CHAR(160),IE$1))+1),\"\")","v":""},{"$f":"IFERROR(MID($AA236,FIND(CHAR(160),SUBSTITUTE($AA236,\"{\",CHAR(160),IF$1)),FIND(CHAR(160),SUBSTITUTE($AA236,\"}\",CHAR(160),IF$1))-FIND(CHAR(160),SUBSTITUTE($AA236,\"{\",CHAR(160),IF$1))+1),\"\")","v":""},{"$f":"IFERROR(MID($AA236,FIND(CHAR(160),SUBSTITUTE($AA236,\"{\",CHAR(160),IG$1)),FIND(CHAR(160),SUBSTITUTE($AA236,\"}\",CHAR(160),IG$1))-FIND(CHAR(160),SUBSTITUTE($AA236,\"{\",CHAR(160),IG$1))+1),\"\")","v":""},{"$f":"IFERROR(MID($AA236,FIND(CHAR(160),SUBSTITUTE($AA236,\"{\",CHAR(160),IH$1)),FIND(CHAR(160),SUBSTITUTE($AA236,\"}\",CHAR(160),IH$1))-FIND(CHAR(160),SUBSTITUTE($AA236,\"{\",CHAR(160),IH$1))+1),\"\")","v":""},{"$f":"IFERROR(MID($AA236,FIND(CHAR(160),SUBSTITUTE($AA236,\"{\",CHAR(160),II$1)),FIND(CHAR(160),SUBSTITUTE($AA236,\"}\",CHAR(160),II$1))-FIND(CHAR(160),SUBSTITUTE($AA236,\"{\",CHAR(160),II$1))+1),\"\")","v":""},{"$f":"IFERROR(MID($AA236,FIND(CHAR(160),SUBSTITUTE($AA236,\"{\",CHAR(160),IJ$1)),FIND(CHAR(160),SUBSTITUTE($AA236,\"}\",CHAR(160),IJ$1))-FIND(CHAR(160),SUBSTITUTE($AA236,\"{\",CHAR(160),IJ$1))+1),\"\")","v":""},{"$f":"IFERROR(MID($AA236,FIND(CHAR(160),SUBSTITUTE($AA236,\"{\",CHAR(160),IK$1)),FIND(CHAR(160),SUBSTITUTE($AA236,\"}\",CHAR(160),IK$1))-FIND(CHAR(160),SUBSTITUTE($AA236,\"{\",CHAR(160),IK$1))+1),\"\")","v":""},{"$f":"IFERROR(MID($AA236,FIND(CHAR(160),SUBSTITUTE($AA236,\"{\",CHAR(160),IL$1)),FIND(CHAR(160),SUBSTITUTE($AA236,\"}\",CHAR(160),IL$1))-FIND(CHAR(160),SUBSTITUTE($AA236,\"{\",CHAR(160),IL$1))+1),\"\")","v":""},{"$f":"IFERROR(MID($AA236,FIND(CHAR(160),SUBSTITUTE($AA236,\"{\",CHAR(160),IM$1)),FIND(CHAR(160),SUBSTITUTE($AA236,\"}\",CHAR(160),IM$1))-FIND(CHAR(160),SUBSTITUTE($AA236,\"{\",CHAR(160),IM$1))+1),\"\")","v":"{Measure:Quantity}"},{"$f":"IFERROR(MID($AA236,FIND(CHAR(160),SUBSTITUTE($AA236,\"{\",CHAR(160),IN$1)),FIND(CHAR(160),SUBSTITUTE($AA236,\"}\",CHAR(160),IN$1))-FIND(CHAR(160),SUBSTITUTE($AA236,\"{\",CHAR(160),IN$1))+1),\"\")","v":"{Package Size}"},{"$f":"IFERROR(MID($AB236,FIND(CHAR(160),SUBSTITUTE($AB236,\"{\",CHAR(160),IO$1)),FIND(CHAR(160),SUBSTITUTE($AB236,\"}\",CHAR(160),IO$1))-FIND(CHAR(160),SUBSTITUTE($AB236,\"{\",CHAR(160),IO$1))+1),\"\")","v":""},{"$f":"IFERROR(MID($AB236,FIND(CHAR(160),SUBSTITUTE($AB236,\"{\",CHAR(160),IP$1)),FIND(CHAR(160),SUBSTITUTE($AB236,\"}\",CHAR(160),IP$1))-FIND(CHAR(160),SUBSTITUTE($AB236,\"{\",CHAR(160),IP$1))+1),\"\")","v":""},{"$f":"IFERROR(MID($AB236,FIND(CHAR(160),SUBSTITUTE($AB236,\"{\",CHAR(160),IQ$1)),FIND(CHAR(160),SUBSTITUTE($AB236,\"}\",CHAR(160),IQ$1))-FIND(CHAR(160),SUBSTITUTE($AB236,\"{\",CHAR(160),IQ$1))+1),\"\")","v":""},{"$f":"IFERROR(MID($AB236,FIND(CHAR(160),SUBSTITUTE($AB236,\"{\",CHAR(160),IR$1)),FIND(CHAR(160),SUBSTITUTE($AB236,\"}\",CHAR(160),IR$1))-FIND(CHAR(160),SUBSTITUTE($AB236,\"{\",CHAR(160),IR$1))+1),\"\")","v":""},{"$f":"IFERROR(MID($AB236,FIND(CHAR(160),SUBSTITUTE($AB236,\"{\",CHAR(160),IS$1)),FIND(CHAR(160),SUBSTITUTE($AB236,\"}\",CHAR(160),IS$1))-FIND(CHAR(160),SUBSTITUTE($AB236,\"{\",CHAR(160),IS$1))+1),\"\")","v":""},{"$f":"IFERROR(MID($AB236,FIND(CHAR(160),SUBSTITUTE($AB236,\"{\",CHAR(160),IT$1)),FIND(CHAR(160),SUBSTITUTE($AB236,\"}\",CHAR(160),IT$1))-FIND(CHAR(160),SUBSTITUTE($AB236,\"{\",CHAR(160),IT$1))+1),\"\")","v":""},{"$f":"IFERROR(MID($AB236,FIND(CHAR(160),SUBSTITUTE($AB236,\"{\",CHAR(160),IU$1)),FIND(CHAR(160),SUBSTITUTE($AB236,\"}\",CHAR(160),IU$1))-FIND(CHAR(160),SUBSTITUTE($AB236,\"{\",CHAR(160),IU$1))+1),\"\")","v":""},{"$f":"IFERROR(MID($AB236,FIND(CHAR(160),SUBSTITUTE($AB236,\"{\",CHAR(160),IV$1)),FIND(CHAR(160),SUBSTITUTE($AB236,\"}\",CHAR(160),IV$1))-FIND(CHAR(160),SUBSTITUTE($AB236,\"{\",CHAR(160),IV$1))+1),\"\")","v":""},{"$f":"IFERROR(MID($AB236,FIND(CHAR(160),SUBSTITUTE($AB236,\"{\",CHAR(160),IW$1)),FIND(CHAR(160),SUBSTITUTE($AB236,\"}\",CHAR(160),IW$1))-FIND(CHAR(160),SUBSTITUTE($AB236,\"{\",CHAR(160),IW$1))+1),\"\")","v":""},{"$f":"IFERROR(MID($AB236,FIND(CHAR(160),SUBSTITUTE($AB236,\"{\",CHAR(160),IX$1)),FIND(CHAR(160),SUBSTITUTE($AB236,\"}\",CHAR(160),IX$1))-FIND(CHAR(160),SUBSTITUTE($AB236,\"{\",CHAR(160),IX$1))+1),\"\")","v":""},null,{"$f":"10-COUNTIF(DU236:ED236,\"\")","v":4}]
["Retail Lighting","LED Specialty Bulb Candelabra Short Life","LEDSPCCDS","2021-07-01","2022-06-30","Calculated","{Measure:Quantity}*{Package Size}*2.32",0,"Calculated","{Measure:Quantity}*({Rebate per Package}+{Marketing Fee})",0,"2021-07-01","2022-06-30","Calculated","{Measure:Quantity}*{Package Size}*34",null,null,"{Measure:Quantity}*{Package Size}*1.062*0.037",null,null,"{Measure:Quantity}*{Package Size}*0.007","{Measure:Quantity}*{Package Size}*0.004","{Measure:Quantity}*{Package Size}*10*-0.004","{Measure:Quantity}*{Package Size}*-0.003","{Measure:Quantity}*{Package Size}*-0.028","{Measure:Quantity}*{Package Size}*-0.001","{Measure:Quantity}*{Package Size}*-0.006",null,"2021-07-01","2022-06-30",4,0.185,0.109,0.37,0.31,0.17100000000000001,0.14899999999999999,0.99,1,1,0.76300000000000001,0,null,{"$f":"DU237","v":"{Measure:Quantity}"},1,{"$f":"DV237","v":"{Package Size}"},1,{"$f":"DW237","v":"{Rebate per Package}"},{"$f":"CO237","v":2.3199999999999998},{"$f":"DX237","v":"{Marketing Fee}"},1,{"$f":"DY237","v":""},null,{"$f":"DZ237","v":""},null,{"$f":"EA237","v":""},null,{"$f":"EB237","v":""},null,{"$f":"EC237","v":""},null,{"$f":"ED237","v":""},null,{"$f":"AS237*AU237*34","v":34},0,0,{"$f":"AS237*AU237*1.062*0.037","v":3.9294000000000003E-2},0,0,{"$f":"AS237*AU237*0.007","v":7.0000000000000001E-3},{"$f":"AS237*AU237*0.004","v":4.0000000000000001E-3},{"$f":"AS237*AU237*10*-0.004","v":-0.04},{"$f":"AS237*AU237*-0.003","v":-3.0000000000000001E-3},{"$f":"AS237*AU237*-0.028","v":-2.8000000000000001E-2},{"$f":"AS237*AU237*-0.001","v":-1E-3},{"$f":"AS237*AU237*-0.006","v":-6.0000000000000001E-3},0,null,"Res","Default DR",{"$f":"Benefits(BL237,BR237,BS237,BT237,BU237,BV237,BW237,BX237,BY237,BZ237,AE237,AH237,AI237,AJ237,AK237,AL237,AM237,AN237,AO237,AP237,CA237,CB237)","v":15.279148140210799},10.303617907999239,-0.26597057468281271,-3.5577066006994613,-0.14543538089809677,-0.53083326067308545,-0.42729693875157582,0,0,{"$f":"SUMPRODUCT(CC237:CK237,--(CC237:CK237>0))","v":25.58276604821004},{"$f":"-SUMPRODUCT(CC237:CK237,--(CC237:CK237<0))","v":4.9272427557050325},null,{"$f":"AS237*AU237*2.32","v":2.3199999999999998},null,null,{"$f":"CM237+CO237","v":7.2472427557050327},{"$f":"IF(NetOrGross=\"Net\",(1-AO237+AP237),1)","v":1},{"$f":"(SUMPRODUCT(CC237:CJ237,--(CC237:CJ237>0))+CN237)*CS237/((-SUMPRODUCT(CC237:CJ237,--(CC237:CJ237<0))+MAX(CO237,CV237)+CP237+CQ237)*CS237+IF(FRIncentives=\"Yes\",CV237*(1-CS237),0))","v":3.1019780556978458},1,{"$f":"AS237*(AW237+AY237)","v":3.32},1,"Electric","y",null,{"$f":"IF(F237=\"Manual Entry\",\"Manual\",IF(G237=\"\",0,\"X=\"&SUBSTITUTE(SUBSTITUTE(SUBSTITUTE(SUBSTITUTE(SUBSTITUTE(SUBSTITUTE(SUBSTITUTE(SUBSTITUTE(SUBSTITUTE(SUBSTITUTE(SUBSTITUTE(SUBSTITUTE(G237,$ED237,$ED$2&ROW($ED237)),$EC237,$EC$2&ROW($EC237)),$EB237,$EB$2&ROW($EB237)),$EA237,$EA$2&ROW($EA237)),$DZ237,$DZ$2&ROW($DZ237)),$DY237,$DY$2&ROW($DY237)),$DX237,$DX$2&ROW($DX237)),$DW237,$DW$2&ROW($DW237)),$DV237,$DV$2&ROW($DV237)),$DU237,$DU$2&ROW($DU237)),$DT237,$DT$2&ROW($DT237)),$DS237,$DS$2&ROW($DS237))))","v":"X=AS237*AU237*2.32"},{"$f":"IF(I237=\"Manual Entry\",\"Manual\",IF(J237=\"\",0,\"X=\"&SUBSTITUTE(SUBSTITUTE(SUBSTITUTE(SUBSTITUTE(SUBSTITUTE(SUBSTITUTE(SUBSTITUTE(SUBSTITUTE(SUBSTITUTE(SUBSTITUTE(SUBSTITUTE(SUBSTITUTE(J237,$ED237,$ED$2&ROW($ED237)),$EC237,$EC$2&ROW($EC237)),$EB237,$EB$2&ROW($EB237)),$EA237,$EA$2&ROW($EA237)),$DZ237,$DZ$2&ROW($DZ237)),$DY237,$DY$2&ROW($DY237)),$DX237,$DX$2&ROW($DX237)),$DW237,$DW$2&ROW($DW237)),$DV237,$DV$2&ROW($DV237)),$DU237,$DU$2&ROW($DU237)),$DT237,$DT$2&ROW($DT237)),$DS237,$DS$2&ROW($DS237))))","v":"X=AS237*(AW237+AY237)"},{"$f":"IF(O237=\"\",0,\"X=\"&SUBSTITUTE(SUBSTITUTE(SUBSTITUTE(SUBSTITUTE(SUBSTITUTE(SUBSTITUTE(SUBSTITUTE(SUBSTITUTE(SUBSTITUTE(SUBSTITUTE(SUBSTITUTE(SUBSTITUTE(O237,$ED237,$ED$2&ROW($ED237)),$EC237,$EC$2&ROW($EC237)),$EB237,$EB$2&ROW($EB237)),$EA237,$EA$2&ROW($EA237)),$DZ237,$DZ$2&ROW($DZ237)),$DY237,$DY$2&ROW($DY237)),$DX237,$DX$2&ROW($DX237)),$DW237,$DW$2&ROW($DW237)),$DV237,$DV$2&ROW($DV237)),$DU237,$DU$2&ROW($DU237)),$DT237,$DT$2&ROW($DT237)),$DS237,$DS$2&ROW($DS237)))","v":"X=AS237*AU237*34"},{"$f":"IF(P237=\"\",0,\"X=\"&SUBSTITUTE(SUBSTITUTE(SUBSTITUTE(SUBSTITUTE(SUBSTITUTE(SUBSTITUTE(SUBSTITUTE(SUBSTITUTE(SUBSTITUTE(SUBSTITUTE(SUBSTITUTE(SUBSTITUTE(P237,$ED237,$ED$2&ROW($ED237)),$EC237,$EC$2&ROW($EC237)),$EB237,$EB$2&ROW($EB237)),$EA237,$EA$2&ROW($EA237)),$DZ237,$DZ$2&ROW($DZ237)),$DY237,$DY$2&ROW($DY237)),$DX237,$DX$2&ROW($DX237)),$DW237,$DW$2&ROW($DW237)),$DV237,$DV$2&ROW($DV237)),$DU237,$DU$2&ROW($DU237)),$DT237,$DT$2&ROW($DT237)),$DS237,$DS$2&ROW($DS237)))","v":0},{"$f":"IF(Q237=\"\",0,\"X=\"&SUBSTITUTE(SUBSTITUTE(SUBSTITUTE(SUBSTITUTE(SUBSTITUTE(SUBSTITUTE(SUBSTITUTE(SUBSTITUTE(SUBSTITUTE(SUBSTITUTE(SUBSTITUTE(SUBSTITUTE(Q237,$ED237,$ED$2&ROW($ED237)),$EC237,$EC$2&ROW($EC237)),$EB237,$EB$2&ROW($EB237)),$EA237,$EA$2&ROW($EA237)),$DZ237,$DZ$2&ROW($DZ237)),$DY237,$DY$2&ROW($DY237)),$DX237,$DX$2&ROW($DX237)),$DW237,$DW$2&ROW($DW237)),$DV237,$DV$2&ROW($DV237)),$DU237,$DU$2&ROW($DU237)),$DT237,$DT$2&ROW($DT237)),$DS237,$DS$2&ROW($DS237)))","v":0},{"$f":"IF(R237=\"\",0,\"X=\"&SUBSTITUTE(SUBSTITUTE(SUBSTITUTE(SUBSTITUTE(SUBSTITUTE(SUBSTITUTE(SUBSTITUTE(SUBSTITUTE(SUBSTITUTE(SUBSTITUTE(SUBSTITUTE(SUBSTITUTE(R237,$ED237,$ED$2&ROW($ED237)),$EC237,$EC$2&ROW($EC237)),$EB237,$EB$2&ROW($EB237)),$EA237,$EA$2&ROW($EA237)),$DZ237,$DZ$2&ROW($DZ237)),$DY237,$DY$2&ROW($DY237)),$DX237,$DX$2&ROW($DX237)),$DW237,$DW$2&ROW($DW237)),$DV237,$DV$2&ROW($DV237)),$DU237,$DU$2&ROW($DU237)),$DT237,$DT$2&ROW($DT237)),$DS237,$DS$2&ROW($DS237)))","v":"X=AS237*AU237*1.062*0.037"},{"$f":"IF(S237=\"\",0,\"X=\"&SUBSTITUTE(SUBSTITUTE(SUBSTITUTE(SUBSTITUTE(SUBSTITUTE(SUBSTITUTE(SUBSTITUTE(SUBSTITUTE(SUBSTITUTE(SUBSTITUTE(SUBSTITUTE(SUBSTITUTE(S237,$ED237,$ED$2&ROW($ED237)),$EC237,$EC$2&ROW($EC237)),$EB237,$EB$2&ROW($EB237)),$EA237,$EA$2&ROW($EA237)),$DZ237,$DZ$2&ROW($DZ237)),$DY237,$DY$2&ROW($DY237)),$DX237,$DX$2&ROW($DX237)),$DW237,$DW$2&ROW($DW237)),$DV237,$DV$2&ROW($DV237)),$DU237,$DU$2&ROW($DU237)),$DT237,$DT$2&ROW($DT237)),$DS237,$DS$2&ROW($DS237)))","v":0},{"$f":"IF(T237=\"\",0,\"X=\"&SUBSTITUTE(SUBSTITUTE(SUBSTITUTE(SUBSTITUTE(SUBSTITUTE(SUBSTITUTE(SUBSTITUTE(SUBSTITUTE(SUBSTITUTE(SUBSTITUTE(SUBSTITUTE(SUBSTITUTE(T237,$ED237,$ED$2&ROW($ED237)),$EC237,$EC$2&ROW($EC237)),$EB237,$EB$2&ROW($EB237)),$EA237,$EA$2&ROW($EA237)),$DZ237,$DZ$2&ROW($DZ237)),$DY237,$DY$2&ROW($DY237)),$DX237,$DX$2&ROW($DX237)),$DW237,$DW$2&ROW($DW237)),$DV237,$DV$2&ROW($DV237)),$DU237,$DU$2&ROW($DU237)),$DT237,$DT$2&ROW($DT237)),$DS237,$DS$2&ROW($DS237)))","v":0},{"$f":"IF(U237=\"\",0,\"X=\"&SUBSTITUTE(SUBSTITUTE(SUBSTITUTE(SUBSTITUTE(SUBSTITUTE(SUBSTITUTE(SUBSTITUTE(SUBSTITUTE(SUBSTITUTE(SUBSTITUTE(SUBSTITUTE(SUBSTITUTE(U237,$ED237,$ED$2&ROW($ED237)),$EC237,$EC$2&ROW($EC237)),$EB237,$EB$2&ROW($EB237)),$EA237,$EA$2&ROW($EA237)),$DZ237,$DZ$2&ROW($DZ237)),$DY237,$DY$2&ROW($DY237)),$DX237,$DX$2&ROW($DX237)),$DW237,$DW$2&ROW($DW237)),$DV237,$DV$2&ROW($DV237)),$DU237,$DU$2&ROW($DU237)),$DT237,$DT$2&ROW($DT237)),$DS237,$DS$2&ROW($DS237)))","v":"X=AS237*AU237*0.007"},{"$f":"IF(V237=\"\",0,\"X=\"&SUBSTITUTE(SUBSTITUTE(SUBSTITUTE(SUBSTITUTE(SUBSTITUTE(SUBSTITUTE(SUBSTITUTE(SUBSTITUTE(SUBSTITUTE(SUBSTITUTE(SUBSTITUTE(SUBSTITUTE(V237,$ED237,$ED$2&ROW($ED237)),$EC237,$EC$2&ROW($EC237)),$EB237,$EB$2&ROW($EB237)),$EA237,$EA$2&ROW($EA237)),$DZ237,$DZ$2&ROW($DZ237)),$DY237,$DY$2&ROW($DY237)),$DX237,$DX$2&ROW($DX237)),$DW237,$DW$2&ROW($DW237)),$DV237,$DV$2&ROW($DV237)),$DU237,$DU$2&ROW($DU237)),$DT237,$DT$2&ROW($DT237)),$DS237,$DS$2&ROW($DS237)))","v":"X=AS237*AU237*0.004"},{"$f":"IF(W237=\"\",0,\"X=\"&SUBSTITUTE(SUBSTITUTE(SUBSTITUTE(SUBSTITUTE(SUBSTITUTE(SUBSTITUTE(SUBSTITUTE(SUBSTITUTE(SUBSTITUTE(SUBSTITUTE(SUBSTITUTE(SUBSTITUTE(W237,$ED237,$ED$2&ROW($ED237)),$EC237,$EC$2&ROW($EC237)),$EB237,$EB$2&ROW($EB237)),$EA237,$EA$2&ROW($EA237)),$DZ237,$DZ$2&ROW($DZ237)),$DY237,$DY$2&ROW($DY237)),$DX237,$DX$2&ROW($DX237)),$DW237,$DW$2&ROW($DW237)),$DV237,$DV$2&ROW($DV237)),$DU237,$DU$2&ROW($DU237)),$DT237,$DT$2&ROW($DT237)),$DS237,$DS$2&ROW($DS237)))","v":"X=AS237*AU237*10*-0.004"},{"$f":"IF(X237=\"\",0,\"X=\"&SUBSTITUTE(SUBSTITUTE(SUBSTITUTE(SUBSTITUTE(SUBSTITUTE(SUBSTITUTE(SUBSTITUTE(SUBSTITUTE(SUBSTITUTE(SUBSTITUTE(SUBSTITUTE(SUBSTITUTE(X237,$ED237,$ED$2&ROW($ED237)),$EC237,$EC$2&ROW($EC237)),$EB237,$EB$2&ROW($EB237)),$EA237,$EA$2&ROW($EA237)),$DZ237,$DZ$2&ROW($DZ237)),$DY237,$DY$2&ROW($DY237)),$DX237,$DX$2&ROW($DX237)),$DW237,$DW$2&ROW($DW237)),$DV237,$DV$2&ROW($DV237)),$DU237,$DU$2&ROW($DU237)),$DT237,$DT$2&ROW($DT237)),$DS237,$DS$2&ROW($DS237)))","v":"X=AS237*AU237*-0.003"},{"$f":"IF(Y237=\"\",0,\"X=\"&SUBSTITUTE(SUBSTITUTE(SUBSTITUTE(SUBSTITUTE(SUBSTITUTE(SUBSTITUTE(SUBSTITUTE(SUBSTITUTE(SUBSTITUTE(SUBSTITUTE(SUBSTITUTE(SUBSTITUTE(Y237,$ED237,$ED$2&ROW($ED237)),$EC237,$EC$2&ROW($EC237)),$EB237,$EB$2&ROW($EB237)),$EA237,$EA$2&ROW($EA237)),$DZ237,$DZ$2&ROW($DZ237)),$DY237,$DY$2&ROW($DY237)),$DX237,$DX$2&ROW($DX237)),$DW237,$DW$2&ROW($DW237)),$DV237,$DV$2&ROW($DV237)),$DU237,$DU$2&ROW($DU237)),$DT237,$DT$2&ROW($DT237)),$DS237,$DS$2&ROW($DS237)))","v":"X=AS237*AU237*-0.028"},{"$f":"IF(Z237=\"\",0,\"X=\"&SUBSTITUTE(SUBSTITUTE(SUBSTITUTE(SUBSTITUTE(SUBSTITUTE(SUBSTITUTE(SUBSTITUTE(SUBSTITUTE(SUBSTITUTE(SUBSTITUTE(SUBSTITUTE(SUBSTITUTE(Z237,$ED237,$ED$2&ROW($ED237)),$EC237,$EC$2&ROW($EC237)),$EB237,$EB$2&ROW($EB237)),$EA237,$EA$2&ROW($EA237)),$DZ237,$DZ$2&ROW($DZ237)),$DY237,$DY$2&ROW($DY237)),$DX237,$DX$2&ROW($DX237)),$DW237,$DW$2&ROW($DW237)),$DV237,$DV$2&ROW($DV237)),$DU237,$DU$2&ROW($DU237)),$DT237,$DT$2&ROW($DT237)),$DS237,$DS$2&ROW($DS237)))","v":"X=AS237*AU237*-0.001"},{"$f":"IF(AA237=\"\",0,\"X=\"&SUBSTITUTE(SUBSTITUTE(SUBSTITUTE(SUBSTITUTE(SUBSTITUTE(SUBSTITUTE(SUBSTITUTE(SUBSTITUTE(SUBSTITUTE(SUBSTITUTE(SUBSTITUTE(SUBSTITUTE(AA237,$ED237,$ED$2&ROW($ED237)),$EC237,$EC$2&ROW($EC237)),$EB237,$EB$2&ROW($EB237)),$EA237,$EA$2&ROW($EA237)),$DZ237,$DZ$2&ROW($DZ237)),$DY237,$DY$2&ROW($DY237)),$DX237,$DX$2&ROW($DX237)),$DW237,$DW$2&ROW($DW237)),$DV237,$DV$2&ROW($DV237)),$DU237,$DU$2&ROW($DU237)),$DT237,$DT$2&ROW($DT237)),$DS237,$DS$2&ROW($DS237)))","v":"X=AS237*AU237*-0.006"},{"$f":"IF(AB237=\"\",0,\"X=\"&SUBSTITUTE(SUBSTITUTE(SUBSTITUTE(SUBSTITUTE(SUBSTITUTE(SUBSTITUTE(SUBSTITUTE(SUBSTITUTE(SUBSTITUTE(SUBSTITUTE(SUBSTITUTE(SUBSTITUTE(AB237,$ED237,$ED$2&ROW($ED237)),$EC237,$EC$2&ROW($EC237)),$EB237,$EB$2&ROW($EB237)),$EA237,$EA$2&ROW($EA237)),$DZ237,$DZ$2&ROW($DZ237)),$DY237,$DY$2&ROW($DY237)),$DX237,$DX$2&ROW($DX237)),$DW237,$DW$2&ROW($DW237)),$DV237,$DV$2&ROW($DV237)),$DU237,$DU$2&ROW($DU237)),$DT237,$DT$2&ROW($DT237)),$DS237,$DS$2&ROW($DS237)))","v":0},null,null,"{Factor:WinterCF}","{Factor:SummerCF}",{"$f":"IFERROR(INDEX($EG237:$IV237,MATCH(0,COUNTIF($DR237:DT237,$EG237:$IV237),0)),\"\")","v":"{Measure:Quantity}"},{"$f":"IFERROR(INDEX($EG237:$IV237,MATCH(0,COUNTIF($DR237:DU237,$EG237:$IV237),0)),\"\")","v":"{Package Size}"},{"$f":"IFERROR(INDEX($EG237:$IV237,MATCH(0,COUNTIF($DR237:DV237,$EG237:$IV237),0)),\"\")","v":"{Rebate per Package}"},{"$f":"IFERROR(INDEX($EG237:$IV237,MATCH(0,COUNTIF($DR237:DW237,$EG237:$IV237),0)),\"\")","v":"{Marketing Fee}"},{"$f":"IFERROR(INDEX($EG237:$IV237,MATCH(0,COUNTIF($DR237:DX237,$EG237:$IV237),0)),\"\")","v":""},{"$f":"IFERROR(INDEX($EG237:$IV237,MATCH(0,COUNTIF($DR237:DY237,$EG237:$IV237),0)),\"\")","v":""},{"$f":"IFERROR(INDEX($EG237:$IV237,MATCH(0,COUNTIF($DR237:DZ237,$EG237:$IV237),0)),\"\")","v":""},{"$f":"IFERROR(INDEX($EG237:$IV237,MATCH(0,COUNTIF($DR237:EA237,$EG237:$IV237),0)),\"\")","v":""},{"$f":"IFERROR(INDEX($EG237:$IV237,MATCH(0,COUNTIF($DR237:EB237,$EG237:$IV237),0)),\"\")","v":""},{"$f":"IFERROR(INDEX($EG237:$IV237,MATCH(0,COUNTIF($DR237:EC237,$EG237:$IV237),0)),\"\")","v":""},null,null,{"$f":"IFERROR(MID($G237,FIND(CHAR(160),SUBSTITUTE($G237,\"{\",CHAR(160),EG$1)),FIND(CHAR(160),SUBSTITUTE($G237,\"}\",CHAR(160),EG$1))-FIND(CHAR(160),SUBSTITUTE($G237,\"{\",CHAR(160),EG$1))+1),\"\")","v":"{Measure:Quantity}"},{"$f":"IFERROR(MID($G237,FIND(CHAR(160),SUBSTITUTE($G237,\"{\",CHAR(160),EH$1)),FIND(CHAR(160),SUBSTITUTE($G237,\"}\",CHAR(160),EH$1))-FIND(CHAR(160),SUBSTITUTE($G237,\"{\",CHAR(160),EH$1))+1),\"\")","v":"{Package Size}"},{"$f":"IFERROR(MID($G237,FIND(CHAR(160),SUBSTITUTE($G237,\"{\",CHAR(160),EI$1)),FIND(CHAR(160),SUBSTITUTE($G237,\"}\",CHAR(160),EI$1))-FIND(CHAR(160),SUBSTITUTE($G237,\"{\",CHAR(160),EI$1))+1),\"\")","v":""},{"$f":"IFERROR(MID($G237,FIND(CHAR(160),SUBSTITUTE($G237,\"{\",CHAR(160),EJ$1)),FIND(CHAR(160),SUBSTITUTE($G237,\"}\",CHAR(160),EJ$1))-FIND(CHAR(160),SUBSTITUTE($G237,\"{\",CHAR(160),EJ$1))+1),\"\")","v":""},{"$f":"IFERROR(MID($G237,FIND(CHAR(160),SUBSTITUTE($G237,\"{\",CHAR(160),EK$1)),FIND(CHAR(160),SUBSTITUTE($G237,\"}\",CHAR(160),EK$1))-FIND(CHAR(160),SUBSTITUTE($G237,\"{\",CHAR(160),EK$1))+1),\"\")","v":""},{"$f":"IFERROR(MID($G237,FIND(CHAR(160),SUBSTITUTE($G237,\"{\",CHAR(160),EL$1)),FIND(CHAR(160),SUBSTITUTE($G237,\"}\",CHAR(160),EL$1))-FIND(CHAR(160),SUBSTITUTE($G237,\"{\",CHAR(160),EL$1))+1),\"\")","v":""},{"$f":"IFERROR(MID($G237,FIND(CHAR(160),SUBSTITUTE($G237,\"{\",CHAR(160),EM$1)),FIND(CHAR(160),SUBSTITUTE($G237,\"}\",CHAR(160),EM$1))-FIND(CHAR(160),SUBSTITUTE($G237,\"{\",CHAR(160),EM$1))+1),\"\")","v":""},{"$f":"IFERROR(MID($G237,FIND(CHAR(160),SUBSTITUTE($G237,\"{\",CHAR(160),EN$1)),FIND(CHAR(160),SUBSTITUTE($G237,\"}\",CHAR(160),EN$1))-FIND(CHAR(160),SUBSTITUTE($G237,\"{\",CHAR(160),EN$1))+1),\"\")","v":""},{"$f":"IFERROR(MID($G237,FIND(CHAR(160),SUBSTITUTE($G237,\"{\",CHAR(160),EO$1)),FIND(CHAR(160),SUBSTITUTE($G237,\"}\",CHAR(160),EO$1))-FIND(CHAR(160),SUBSTITUTE($G237,\"{\",CHAR(160),EO$1))+1),\"\")","v":""},{"$f":"IFERROR(MID($G237,FIND(CHAR(160),SUBSTITUTE($G237,\"{\",CHAR(160),EP$1)),FIND(CHAR(160),SUBSTITUTE($G237,\"}\",CHAR(160),EP$1))-FIND(CHAR(160),SUBSTITUTE($G237,\"{\",CHAR(160),EP$1))+1),\"\")","v":""},{"$f":"IFERROR(MID($J237,FIND(CHAR(160),SUBSTITUTE($J237,\"{\",CHAR(160),EQ$1)),FIND(CHAR(160),SUBSTITUTE($J237,\"}\",CHAR(160),EQ$1))-FIND(CHAR(160),SUBSTITUTE($J237,\"{\",CHAR(160),EQ$1))+1),\"\")","v":"{Measure:Quantity}"},{"$f":"IFERROR(MID($J237,FIND(CHAR(160),SUBSTITUTE($J237,\"{\",CHAR(160),ER$1)),FIND(CHAR(160),SUBSTITUTE($J237,\"}\",CHAR(160),ER$1))-FIND(CHAR(160),SUBSTITUTE($J237,\"{\",CHAR(160),ER$1))+1),\"\")","v":"{Rebate per Package}"},{"$f":"IFERROR(MID($J237,FIND(CHAR(160),SUBSTITUTE($J237,\"{\",CHAR(160),ES$1)),FIND(CHAR(160),SUBSTITUTE($J237,\"}\",CHAR(160),ES$1))-FIND(CHAR(160),SUBSTITUTE($J237,\"{\",CHAR(160),ES$1))+1),\"\")","v":"{Marketing Fee}"},{"$f":"IFERROR(MID($J237,FIND(CHAR(160),SUBSTITUTE($J237,\"{\",CHAR(160),ET$1)),FIND(CHAR(160),SUBSTITUTE($J237,\"}\",CHAR(160),ET$1))-FIND(CHAR(160),SUBSTITUTE($J237,\"{\",CHAR(160),ET$1))+1),\"\")","v":""},{"$f":"IFERROR(MID($J237,FIND(CHAR(160),SUBSTITUTE($J237,\"{\",CHAR(160),EU$1)),FIND(CHAR(160),SUBSTITUTE($J237,\"}\",CHAR(160),EU$1))-FIND(CHAR(160),SUBSTITUTE($J237,\"{\",CHAR(160),EU$1))+1),\"\")","v":""},{"$f":"IFERROR(MID($J237,FIND(CHAR(160),SUBSTITUTE($J237,\"{\",CHAR(160),EV$1)),FIND(CHAR(160),SUBSTITUTE($J237,\"}\",CHAR(160),EV$1))-FIND(CHAR(160),SUBSTITUTE($J237,\"{\",CHAR(160),EV$1))+1),\"\")","v":""},{"$f":"IFERROR(MID($J237,FIND(CHAR(160),SUBSTITUTE($J237,\"{\",CHAR(160),EW$1)),FIND(CHAR(160),SUBSTITUTE($J237,\"}\",CHAR(160),EW$1))-FIND(CHAR(160),SUBSTITUTE($J237,\"{\",CHAR(160),EW$1))+1),\"\")","v":""},{"$f":"IFERROR(MID($J237,FIND(CHAR(160),SUBSTITUTE($J237,\"{\",CHAR(160),EX$1)),FIND(CHAR(160),SUBSTITUTE($J237,\"}\",CHAR(160),EX$1))-FIND(CHAR(160),SUBSTITUTE($J237,\"{\",CHAR(160),EX$1))+1),\"\")","v":""},{"$f":"IFERROR(MID($J237,FIND(CHAR(160),SUBSTITUTE($J237,\"{\",CHAR(160),EY$1)),FIND(CHAR(160),SUBSTITUTE($J237,\"}\",CHAR(160),EY$1))-FIND(CHAR(160),SUBSTITUTE($J237,\"{\",CHAR(160),EY$1))+1),\"\")","v":""},{"$f":"IFERROR(MID($J237,FIND(CHAR(160),SUBSTITUTE($J237,\"{\",CHAR(160),EZ$1)),FIND(CHAR(160),SUBSTITUTE($J237,\"}\",CHAR(160),EZ$1))-FIND(CHAR(160),SUBSTITUTE($J237,\"{\",CHAR(160),EZ$1))+1),\"\")","v":""},{"$f":"IFERROR(MID($J237,FIND(CHAR(160),SUBSTITUTE($J237,\"{\",CHAR(160),FA$1)),FIND(CHAR(160),SUBSTITUTE($J237,\"}\",CHAR(160),FA$1))-FIND(CHAR(160),SUBSTITUTE($J237,\"{\",CHAR(160),FA$1))+1),\"\")","v":"{Measure:Quantity}"},{"$f":"IFERROR(MID($J237,FIND(CHAR(160),SUBSTITUTE($J237,\"{\",CHAR(160),FB$1)),FIND(CHAR(160),SUBSTITUTE($J237,\"}\",CHAR(160),FB$1))-FIND(CHAR(160),SUBSTITUTE($J237,\"{\",CHAR(160),FB$1))+1),\"\")","v":"{Rebate per Package}"},{"$f":"IFERROR(MID($O237,FIND(CHAR(160),SUBSTITUTE($O237,\"{\",CHAR(160),FC$1)),FIND(CHAR(160),SUBSTITUTE($O237,\"}\",CHAR(160),FC$1))-FIND(CHAR(160),SUBSTITUTE($O237,\"{\",CHAR(160),FC$1))+1),\"\")","v":""},{"$f":"IFERROR(MID($O237,FIND(CHAR(160),SUBSTITUTE($O237,\"{\",CHAR(160),FD$1)),FIND(CHAR(160),SUBSTITUTE($O237,\"}\",CHAR(160),FD$1))-FIND(CHAR(160),SUBSTITUTE($O237,\"{\",CHAR(160),FD$1))+1),\"\")","v":""},{"$f":"IFERROR(MID($O237,FIND(CHAR(160),SUBSTITUTE($O237,\"{\",CHAR(160),FE$1)),FIND(CHAR(160),SUBSTITUTE($O237,\"}\",CHAR(160),FE$1))-FIND(CHAR(160),SUBSTITUTE($O237,\"{\",CHAR(160),FE$1))+1),\"\")","v":""},{"$f":"IFERROR(MID($O237,FIND(CHAR(160),SUBSTITUTE($O237,\"{\",CHAR(160),FF$1)),FIND(CHAR(160),SUBSTITUTE($O237,\"}\",CHAR(160),FF$1))-FIND(CHAR(160),SUBSTITUTE($O237,\"{\",CHAR(160),FF$1))+1),\"\")","v":""},{"$f":"IFERROR(MID($O237,FIND(CHAR(160),SUBSTITUTE($O237,\"{\",CHAR(160),FG$1)),FIND(CHAR(160),SUBSTITUTE($O237,\"}\",CHAR(160),FG$1))-FIND(CHAR(160),SUBSTITUTE($O237,\"{\",CHAR(160),FG$1))+1),\"\")","v":""},{"$f":"IFERROR(MID($O237,FIND(CHAR(160),SUBSTITUTE($O237,\"{\",CHAR(160),FH$1)),FIND(CHAR(160),SUBSTITUTE($O237,\"}\",CHAR(160),FH$1))-FIND(CHAR(160),SUBSTITUTE($O237,\"{\",CHAR(160),FH$1))+1),\"\")","v":""},{"$f":"IFERROR(MID($O237,FIND(CHAR(160),SUBSTITUTE($O237,\"{\",CHAR(160),FI$1)),FIND(CHAR(160),SUBSTITUTE($O237,\"}\",CHAR(160),FI$1))-FIND(CHAR(160),SUBSTITUTE($O237,\"{\",CHAR(160),FI$1))+1),\"\")","v":""},{"$f":"IFERROR(MID($O237,FIND(CHAR(160),SUBSTITUTE($O237,\"{\",CHAR(160),FJ$1)),FIND(CHAR(160),SUBSTITUTE($O237,\"}\",CHAR(160),FJ$1))-FIND(CHAR(160),SUBSTITUTE($O237,\"{\",CHAR(160),FJ$1))+1),\"\")","v":""},{"$f":"IFERROR(MID($O237,FIND(CHAR(160),SUBSTITUTE($O237,\"{\",CHAR(160),FK$1)),FIND(CHAR(160),SUBSTITUTE($O237,\"}\",CHAR(160),FK$1))-FIND(CHAR(160),SUBSTITUTE($O237,\"{\",CHAR(160),FK$1))+1),\"\")","v":"{Measure:Quantity}"},{"$f":"IFERROR(MID($O237,FIND(CHAR(160),SUBSTITUTE($O237,\"{\",CHAR(160),FL$1)),FIND(CHAR(160),SUBSTITUTE($O237,\"}\",CHAR(160),FL$1))-FIND(CHAR(160),SUBSTITUTE($O237,\"{\",CHAR(160),FL$1))+1),\"\")","v":"{Package Size}"},{"$f":"IFERROR(MID($R237,FIND(CHAR(160),SUBSTITUTE($R237,\"{\",CHAR(160),FM$1)),FIND(CHAR(160),SUBSTITUTE($R237,\"}\",CHAR(160),FM$1))-FIND(CHAR(160),SUBSTITUTE($R237,\"{\",CHAR(160),FM$1))+1),\"\")","v":""},{"$f":"IFERROR(MID($R237,FIND(CHAR(160),SUBSTITUTE($R237,\"{\",CHAR(160),FN$1)),FIND(CHAR(160),SUBSTITUTE($R237,\"}\",CHAR(160),FN$1))-FIND(CHAR(160),SUBSTITUTE($R237,\"{\",CHAR(160),FN$1))+1),\"\")","v":""},{"$f":"IFERROR(MID($R237,FIND(CHAR(160),SUBSTITUTE($R237,\"{\",CHAR(160),FO$1)),FIND(CHAR(160),SUBSTITUTE($R237,\"}\",CHAR(160),FO$1))-FIND(CHAR(160),SUBSTITUTE($R237,\"{\",CHAR(160),FO$1))+1),\"\")","v":""},{"$f":"IFERROR(MID($R237,FIND(CHAR(160),SUBSTITUTE($R237,\"{\",CHAR(160),FP$1)),FIND(CHAR(160),SUBSTITUTE($R237,\"}\",CHAR(160),FP$1))-FIND(CHAR(160),SUBSTITUTE($R237,\"{\",CHAR(160),FP$1))+1),\"\")","v":""},{"$f":"IFERROR(MID($R237,FIND(CHAR(160),SUBSTITUTE($R237,\"{\",CHAR(160),FQ$1)),FIND(CHAR(160),SUBSTITUTE($R237,\"}\",CHAR(160),FQ$1))-FIND(CHAR(160),SUBSTITUTE($R237,\"{\",CHAR(160),FQ$1))+1),\"\")","v":""},{"$f":"IFERROR(MID($R237,FIND(CHAR(160),SUBSTITUTE($R237,\"{\",CHAR(160),FR$1)),FIND(CHAR(160),SUBSTITUTE($R237,\"}\",CHAR(160),FR$1))-FIND(CHAR(160),SUBSTITUTE($R237,\"{\",CHAR(160),FR$1))+1),\"\")","v":""},{"$f":"IFERROR(MID($R237,FIND(CHAR(160),SUBSTITUTE($R237,\"{\",CHAR(160),FS$1)),FIND(CHAR(160),SUBSTITUTE($R237,\"}\",CHAR(160),FS$1))-FIND(CHAR(160),SUBSTITUTE($R237,\"{\",CHAR(160),FS$1))+1),\"\")","v":""},{"$f":"IFERROR(MID($R237,FIND(CHAR(160),SUBSTITUTE($R237,\"{\",CHAR(160),FT$1)),FIND(CHAR(160),SUBSTITUTE($R237,\"}\",CHAR(160),FT$1))-FIND(CHAR(160),SUBSTITUTE($R237,\"{\",CHAR(160),FT$1))+1),\"\")","v":""},{"$f":"IFERROR(MID($R237,FIND(CHAR(160),SUBSTITUTE($R237,\"{\",CHAR(160),FU$1)),FIND(CHAR(160),SUBSTITUTE($R237,\"}\",CHAR(160),FU$1))-FIND(CHAR(160),SUBSTITUTE($R237,\"{\",CHAR(160),FU$1))+1),\"\")","v":"{Measure:Quantity}"},{"$f":"IFERROR(MID($R237,FIND(CHAR(160),SUBSTITUTE($R237,\"{\",CHAR(160),FV$1)),FIND(CHAR(160),SUBSTITUTE($R237,\"}\",CHAR(160),FV$1))-FIND(CHAR(160),SUBSTITUTE($R237,\"{\",CHAR(160),FV$1))+1),\"\")","v":"{Package Size}"},{"$f":"IFERROR(MID($U237,FIND(CHAR(160),SUBSTITUTE($U237,\"{\",CHAR(160),FW$1)),FIND(CHAR(160),SUBSTITUTE($U237,\"}\",CHAR(160),FW$1))-FIND(CHAR(160),SUBSTITUTE($U237,\"{\",CHAR(160),FW$1))+1),\"\")","v":""},{"$f":"IFERROR(MID($U237,FIND(CHAR(160),SUBSTITUTE($U237,\"{\",CHAR(160),FX$1)),FIND(CHAR(160),SUBSTITUTE($U237,\"}\",CHAR(160),FX$1))-FIND(CHAR(160),SUBSTITUTE($U237,\"{\",CHAR(160),FX$1))+1),\"\")","v":""},{"$f":"IFERROR(MID($U237,FIND(CHAR(160),SUBSTITUTE($U237,\"{\",CHAR(160),FY$1)),FIND(CHAR(160),SUBSTITUTE($U237,\"}\",CHAR(160),FY$1))-FIND(CHAR(160),SUBSTITUTE($U237,\"{\",CHAR(160),FY$1))+1),\"\")","v":""},{"$f":"IFERROR(MID($U237,FIND(CHAR(160),SUBSTITUTE($U237,\"{\",CHAR(160),FZ$1)),FIND(CHAR(160),SUBSTITUTE($U237,\"}\",CHAR(160),FZ$1))-FIND(CHAR(160),SUBSTITUTE($U237,\"{\",CHAR(160),FZ$1))+1),\"\")","v":""},{"$f":"IFERROR(MID($U237,FIND(CHAR(160),SUBSTITUTE($U237,\"{\",CHAR(160),GA$1)),FIND(CHAR(160),SUBSTITUTE($U237,\"}\",CHAR(160),GA$1))-FIND(CHAR(160),SUBSTITUTE($U237,\"{\",CHAR(160),GA$1))+1),\"\")","v":""},{"$f":"IFERROR(MID($U237,FIND(CHAR(160),SUBSTITUTE($U237,\"{\",CHAR(160),GB$1)),FIND(CHAR(160),SUBSTITUTE($U237,\"}\",CHAR(160),GB$1))-FIND(CHAR(160),SUBSTITUTE($U237,\"{\",CHAR(160),GB$1))+1),\"\")","v":""},{"$f":"IFERROR(MID($U237,FIND(CHAR(160),SUBSTITUTE($U237,\"{\",CHAR(160),GC$1)),FIND(CHAR(160),SUBSTITUTE($U237,\"}\",CHAR(160),GC$1))-FIND(CHAR(160),SUBSTITUTE($U237,\"{\",CHAR(160),GC$1))+1),\"\")","v":""},{"$f":"IFERROR(MID($U237,FIND(CHAR(160),SUBSTITUTE($U237,\"{\",CHAR(160),GD$1)),FIND(CHAR(160),SUBSTITUTE($U237,\"}\",CHAR(160),GD$1))-FIND(CHAR(160),SUBSTITUTE($U237,\"{\",CHAR(160),GD$1))+1),\"\")","v":""},{"$f":"IFERROR(MID($U237,FIND(CHAR(160),SUBSTITUTE($U237,\"{\",CHAR(160),GE$1)),FIND(CHAR(160),SUBSTITUTE($U237,\"}\",CHAR(160),GE$1))-FIND(CHAR(160),SUBSTITUTE($U237,\"{\",CHAR(160),GE$1))+1),\"\")","v":"{Measure:Quantity}"},{"$f":"IFERROR(MID($U237,FIND(CHAR(160),SUBSTITUTE($U237,\"{\",CHAR(160),GF$1)),FIND(CHAR(160),SUBSTITUTE($U237,\"}\",CHAR(160),GF$1))-FIND(CHAR(160),SUBSTITUTE($U237,\"{\",CHAR(160),GF$1))+1),\"\")","v":"{Package Size}"},{"$f":"IFERROR(MID($V237,FIND(CHAR(160),SUBSTITUTE($V237,\"{\",CHAR(160),GG$1)),FIND(CHAR(160),SUBSTITUTE($V237,\"}\",CHAR(160),GG$1))-FIND(CHAR(160),SUBSTITUTE($V237,\"{\",CHAR(160),GG$1))+1),\"\")","v":""},{"$f":"IFERROR(MID($V237,FIND(CHAR(160),SUBSTITUTE($V237,\"{\",CHAR(160),GH$1)),FIND(CHAR(160),SUBSTITUTE($V237,\"}\",CHAR(160),GH$1))-FIND(CHAR(160),SUBSTITUTE($V237,\"{\",CHAR(160),GH$1))+1),\"\")","v":""},{"$f":"IFERROR(MID($V237,FIND(CHAR(160),SUBSTITUTE($V237,\"{\",CHAR(160),GI$1)),FIND(CHAR(160),SUBSTITUTE($V237,\"}\",CHAR(160),GI$1))-FIND(CHAR(160),SUBSTITUTE($V237,\"{\",CHAR(160),GI$1))+1),\"\")","v":""},{"$f":"IFERROR(MID($V237,FIND(CHAR(160),SUBSTITUTE($V237,\"{\",CHAR(160),GJ$1)),FIND(CHAR(160),SUBSTITUTE($V237,\"}\",CHAR(160),GJ$1))-FIND(CHAR(160),SUBSTITUTE($V237,\"{\",CHAR(160),GJ$1))+1),\"\")","v":""},{"$f":"IFERROR(MID($V237,FIND(CHAR(160),SUBSTITUTE($V237,\"{\",CHAR(160),GK$1)),FIND(CHAR(160),SUBSTITUTE($V237,\"}\",CHAR(160),GK$1))-FIND(CHAR(160),SUBSTITUTE($V237,\"{\",CHAR(160),GK$1))+1),\"\")","v":""},{"$f":"IFERROR(MID($V237,FIND(CHAR(160),SUBSTITUTE($V237,\"{\",CHAR(160),GL$1)),FIND(CHAR(160),SUBSTITUTE($V237,\"}\",CHAR(160),GL$1))-FIND(CHAR(160),SUBSTITUTE($V237,\"{\",CHAR(160),GL$1))+1),\"\")","v":""},{"$f":"IFERROR(MID($V237,FIND(CHAR(160),SUBSTITUTE($V237,\"{\",CHAR(160),GM$1)),FIND(CHAR(160),SUBSTITUTE($V237,\"}\",CHAR(160),GM$1))-FIND(CHAR(160),SUBSTITUTE($V237,\"{\",CHAR(160),GM$1))+1),\"\")","v":""},{"$f":"IFERROR(MID($V237,FIND(CHAR(160),SUBSTITUTE($V237,\"{\",CHAR(160),GN$1)),FIND(CHAR(160),SUBSTITUTE($V237,\"}\",CHAR(160),GN$1))-FIND(CHAR(160),SUBSTITUTE($V237,\"{\",CHAR(160),GN$1))+1),\"\")","v":""},{"$f":"IFERROR(MID($V237,FIND(CHAR(160),SUBSTITUTE($V237,\"{\",CHAR(160),GO$1)),FIND(CHAR(160),SUBSTITUTE($V237,\"}\",CHAR(160),GO$1))-FIND(CHAR(160),SUBSTITUTE($V237,\"{\",CHAR(160),GO$1))+1),\"\")","v":"{Measure:Quantity}"},{"$f":"IFERROR(MID($V237,FIND(CHAR(160),SUBSTITUTE($V237,\"{\",CHAR(160),GP$1)),FIND(CHAR(160),SUBSTITUTE($V237,\"}\",CHAR(160),GP$1))-FIND(CHAR(160),SUBSTITUTE($V237,\"{\",CHAR(160),GP$1))+1),\"\")","v":"{Package Size}"},{"$f":"IFERROR(MID($W237,FIND(CHAR(160),SUBSTITUTE($W237,\"{\",CHAR(160),GQ$1)),FIND(CHAR(160),SUBSTITUTE($W237,\"}\",CHAR(160),GQ$1))-FIND(CHAR(160),SUBSTITUTE($W237,\"{\",CHAR(160),GQ$1))+1),\"\")","v":""},{"$f":"IFERROR(MID($W237,FIND(CHAR(160),SUBSTITUTE($W237,\"{\",CHAR(160),GR$1)),FIND(CHAR(160),SUBSTITUTE($W237,\"}\",CHAR(160),GR$1))-FIND(CHAR(160),SUBSTITUTE($W237,\"{\",CHAR(160),GR$1))+1),\"\")","v":""},{"$f":"IFERROR(MID($W237,FIND(CHAR(160),SUBSTITUTE($W237,\"{\",CHAR(160),GS$1)),FIND(CHAR(160),SUBSTITUTE($W237,\"}\",CHAR(160),GS$1))-FIND(CHAR(160),SUBSTITUTE($W237,\"{\",CHAR(160),GS$1))+1),\"\")","v":""},{"$f":"IFERROR(MID($W237,FIND(CHAR(160),SUBSTITUTE($W237,\"{\",CHAR(160),GT$1)),FIND(CHAR(160),SUBSTITUTE($W237,\"}\",CHAR(160),GT$1))-FIND(CHAR(160),SUBSTITUTE($W237,\"{\",CHAR(160),GT$1))+1),\"\")","v":""},{"$f":"IFERROR(MID($W237,FIND(CHAR(160),SUBSTITUTE($W237,\"{\",CHAR(160),GU$1)),FIND(CHAR(160),SUBSTITUTE($W237,\"}\",CHAR(160),GU$1))-FIND(CHAR(160),SUBSTITUTE($W237,\"{\",CHAR(160),GU$1))+1),\"\")","v":""},{"$f":"IFERROR(MID($W237,FIND(CHAR(160),SUBSTITUTE($W237,\"{\",CHAR(160),GV$1)),FIND(CHAR(160),SUBSTITUTE($W237,\"}\",CHAR(160),GV$1))-FIND(CHAR(160),SUBSTITUTE($W237,\"{\",CHAR(160),GV$1))+1),\"\")","v":""},{"$f":"IFERROR(MID($W237,FIND(CHAR(160),SUBSTITUTE($W237,\"{\",CHAR(160),GW$1)),FIND(CHAR(160),SUBSTITUTE($W237,\"}\",CHAR(160),GW$1))-FIND(CHAR(160),SUBSTITUTE($W237,\"{\",CHAR(160),GW$1))+1),\"\")","v":""},{"$f":"IFERROR(MID($W237,FIND(CHAR(160),SUBSTITUTE($W237,\"{\",CHAR(160),GX$1)),FIND(CHAR(160),SUBSTITUTE($W237,\"}\",CHAR(160),GX$1))-FIND(CHAR(160),SUBSTITUTE($W237,\"{\",CHAR(160),GX$1))+1),\"\")","v":""},{"$f":"IFERROR(MID($W237,FIND(CHAR(160),SUBSTITUTE($W237,\"{\",CHAR(160),GY$1)),FIND(CHAR(160),SUBSTITUTE($W237,\"}\",CHAR(160),GY$1))-FIND(CHAR(160),SUBSTITUTE($W237,\"{\",CHAR(160),GY$1))+1),\"\")","v":"{Measure:Quantity}"},{"$f":"IFERROR(MID($W237,FIND(CHAR(160),SUBSTITUTE($W237,\"{\",CHAR(160),GZ$1)),FIND(CHAR(160),SUBSTITUTE($W237,\"}\",CHAR(160),GZ$1))-FIND(CHAR(160),SUBSTITUTE($W237,\"{\",CHAR(160),GZ$1))+1),\"\")","v":"{Package Size}"},{"$f":"IFERROR(MID($X237,FIND(CHAR(160),SUBSTITUTE($X237,\"{\",CHAR(160),HA$1)),FIND(CHAR(160),SUBSTITUTE($X237,\"}\",CHAR(160),HA$1))-FIND(CHAR(160),SUBSTITUTE($X237,\"{\",CHAR(160),HA$1))+1),\"\")","v":""},{"$f":"IFERROR(MID($X237,FIND(CHAR(160),SUBSTITUTE($X237,\"{\",CHAR(160),HB$1)),FIND(CHAR(160),SUBSTITUTE($X237,\"}\",CHAR(160),HB$1))-FIND(CHAR(160),SUBSTITUTE($X237,\"{\",CHAR(160),HB$1))+1),\"\")","v":""},{"$f":"IFERROR(MID($X237,FIND(CHAR(160),SUBSTITUTE($X237,\"{\",CHAR(160),HC$1)),FIND(CHAR(160),SUBSTITUTE($X237,\"}\",CHAR(160),HC$1))-FIND(CHAR(160),SUBSTITUTE($X237,\"{\",CHAR(160),HC$1))+1),\"\")","v":""},{"$f":"IFERROR(MID($X237,FIND(CHAR(160),SUBSTITUTE($X237,\"{\",CHAR(160),HD$1)),FIND(CHAR(160),SUBSTITUTE($X237,\"}\",CHAR(160),HD$1))-FIND(CHAR(160),SUBSTITUTE($X237,\"{\",CHAR(160),HD$1))+1),\"\")","v":""},{"$f":"IFERROR(MID($X237,FIND(CHAR(160),SUBSTITUTE($X237,\"{\",CHAR(160),HE$1)),FIND(CHAR(160),SUBSTITUTE($X237,\"}\",CHAR(160),HE$1))-FIND(CHAR(160),SUBSTITUTE($X237,\"{\",CHAR(160),HE$1))+1),\"\")","v":""},{"$f":"IFERROR(MID($X237,FIND(CHAR(160),SUBSTITUTE($X237,\"{\",CHAR(160),HF$1)),FIND(CHAR(160),SUBSTITUTE($X237,\"}\",CHAR(160),HF$1))-FIND(CHAR(160),SUBSTITUTE($X237,\"{\",CHAR(160),HF$1))+1),\"\")","v":""},{"$f":"IFERROR(MID($X237,FIND(CHAR(160),SUBSTITUTE($X237,\"{\",CHAR(160),HG$1)),FIND(CHAR(160),SUBSTITUTE($X237,\"}\",CHAR(160),HG$1))-FIND(CHAR(160),SUBSTITUTE($X237,\"{\",CHAR(160),HG$1))+1),\"\")","v":""},{"$f":"IFERROR(MID($X237,FIND(CHAR(160),SUBSTITUTE($X237,\"{\",CHAR(160),HH$1)),FIND(CHAR(160),SUBSTITUTE($X237,\"}\",CHAR(160),HH$1))-FIND(CHAR(160),SUBSTITUTE($X237,\"{\",CHAR(160),HH$1))+1),\"\")","v":""},{"$f":"IFERROR(MID($X237,FIND(CHAR(160),SUBSTITUTE($X237,\"{\",CHAR(160),HI$1)),FIND(CHAR(160),SUBSTITUTE($X237,\"}\",CHAR(160),HI$1))-FIND(CHAR(160),SUBSTITUTE($X237,\"{\",CHAR(160),HI$1))+1),\"\")","v":"{Measure:Quantity}"},{"$f":"IFERROR(MID($X237,FIND(CHAR(160),SUBSTITUTE($X237,\"{\",CHAR(160),HJ$1)),FIND(CHAR(160),SUBSTITUTE($X237,\"}\",CHAR(160),HJ$1))-FIND(CHAR(160),SUBSTITUTE($X237,\"{\",CHAR(160),HJ$1))+1),\"\")","v":"{Package Size}"},{"$f":"IFERROR(MID($Y237,FIND(CHAR(160),SUBSTITUTE($Y237,\"{\",CHAR(160),HK$1)),FIND(CHAR(160),SUBSTITUTE($Y237,\"}\",CHAR(160),HK$1))-FIND(CHAR(160),SUBSTITUTE($Y237,\"{\",CHAR(160),HK$1))+1),\"\")","v":""},{"$f":"IFERROR(MID($Y237,FIND(CHAR(160),SUBSTITUTE($Y237,\"{\",CHAR(160),HL$1)),FIND(CHAR(160),SUBSTITUTE($Y237,\"}\",CHAR(160),HL$1))-FIND(CHAR(160),SUBSTITUTE($Y237,\"{\",CHAR(160),HL$1))+1),\"\")","v":""},{"$f":"IFERROR(MID($Y237,FIND(CHAR(160),SUBSTITUTE($Y237,\"{\",CHAR(160),HM$1)),FIND(CHAR(160),SUBSTITUTE($Y237,\"}\",CHAR(160),HM$1))-FIND(CHAR(160),SUBSTITUTE($Y237,\"{\",CHAR(160),HM$1))+1),\"\")","v":""},{"$f":"IFERROR(MID($Y237,FIND(CHAR(160),SUBSTITUTE($Y237,\"{\",CHAR(160),HN$1)),FIND(CHAR(160),SUBSTITUTE($Y237,\"}\",CHAR(160),HN$1))-FIND(CHAR(160),SUBSTITUTE($Y237,\"{\",CHAR(160),HN$1))+1),\"\")","v":""},{"$f":"IFERROR(MID($Y237,FIND(CHAR(160),SUBSTITUTE($Y237,\"{\",CHAR(160),HO$1)),FIND(CHAR(160),SUBSTITUTE($Y237,\"}\",CHAR(160),HO$1))-FIND(CHAR(160),SUBSTITUTE($Y237,\"{\",CHAR(160),HO$1))+1),\"\")","v":""},{"$f":"IFERROR(MID($Y237,FIND(CHAR(160),SUBSTITUTE($Y237,\"{\",CHAR(160),HP$1)),FIND(CHAR(160),SUBSTITUTE($Y237,\"}\",CHAR(160),HP$1))-FIND(CHAR(160),SUBSTITUTE($Y237,\"{\",CHAR(160),HP$1))+1),\"\")","v":""},{"$f":"IFERROR(MID($Y237,FIND(CHAR(160),SUBSTITUTE($Y237,\"{\",CHAR(160),HQ$1)),FIND(CHAR(160),SUBSTITUTE($Y237,\"}\",CHAR(160),HQ$1))-FIND(CHAR(160),SUBSTITUTE($Y237,\"{\",CHAR(160),HQ$1))+1),\"\")","v":""},{"$f":"IFERROR(MID($Y237,FIND(CHAR(160),SUBSTITUTE($Y237,\"{\",CHAR(160),HR$1)),FIND(CHAR(160),SUBSTITUTE($Y237,\"}\",CHAR(160),HR$1))-FIND(CHAR(160),SUBSTITUTE($Y237,\"{\",CHAR(160),HR$1))+1),\"\")","v":""},{"$f":"IFERROR(MID($Y237,FIND(CHAR(160),SUBSTITUTE($Y237,\"{\",CHAR(160),HS$1)),FIND(CHAR(160),SUBSTITUTE($Y237,\"}\",CHAR(160),HS$1))-FIND(CHAR(160),SUBSTITUTE($Y237,\"{\",CHAR(160),HS$1))+1),\"\")","v":"{Measure:Quantity}"},{"$f":"IFERROR(MID($Y237,FIND(CHAR(160),SUBSTITUTE($Y237,\"{\",CHAR(160),HT$1)),FIND(CHAR(160),SUBSTITUTE($Y237,\"}\",CHAR(160),HT$1))-FIND(CHAR(160),SUBSTITUTE($Y237,\"{\",CHAR(160),HT$1))+1),\"\")","v":"{Package Size}"},{"$f":"IFERROR(MID($Z237,FIND(CHAR(160),SUBSTITUTE($Z237,\"{\",CHAR(160),HU$1)),FIND(CHAR(160),SUBSTITUTE($Z237,\"}\",CHAR(160),HU$1))-FIND(CHAR(160),SUBSTITUTE($Z237,\"{\",CHAR(160),HU$1))+1),\"\")","v":""},{"$f":"IFERROR(MID($Z237,FIND(CHAR(160),SUBSTITUTE($Z237,\"{\",CHAR(160),HV$1)),FIND(CHAR(160),SUBSTITUTE($Z237,\"}\",CHAR(160),HV$1))-FIND(CHAR(160),SUBSTITUTE($Z237,\"{\",CHAR(160),HV$1))+1),\"\")","v":""},{"$f":"IFERROR(MID($Z237,FIND(CHAR(160),SUBSTITUTE($Z237,\"{\",CHAR(160),HW$1)),FIND(CHAR(160),SUBSTITUTE($Z237,\"}\",CHAR(160),HW$1))-FIND(CHAR(160),SUBSTITUTE($Z237,\"{\",CHAR(160),HW$1))+1),\"\")","v":""},{"$f":"IFERROR(MID($Z237,FIND(CHAR(160),SUBSTITUTE($Z237,\"{\",CHAR(160),HX$1)),FIND(CHAR(160),SUBSTITUTE($Z237,\"}\",CHAR(160),HX$1))-FIND(CHAR(160),SUBSTITUTE($Z237,\"{\",CHAR(160),HX$1))+1),\"\")","v":""},{"$f":"IFERROR(MID($Z237,FIND(CHAR(160),SUBSTITUTE($Z237,\"{\",CHAR(160),HY$1)),FIND(CHAR(160),SUBSTITUTE($Z237,\"}\",CHAR(160),HY$1))-FIND(CHAR(160),SUBSTITUTE($Z237,\"{\",CHAR(160),HY$1))+1),\"\")","v":""},{"$f":"IFERROR(MID($Z237,FIND(CHAR(160),SUBSTITUTE($Z237,\"{\",CHAR(160),HZ$1)),FIND(CHAR(160),SUBSTITUTE($Z237,\"}\",CHAR(160),HZ$1))-FIND(CHAR(160),SUBSTITUTE($Z237,\"{\",CHAR(160),HZ$1))+1),\"\")","v":""},{"$f":"IFERROR(MID($Z237,FIND(CHAR(160),SUBSTITUTE($Z237,\"{\",CHAR(160),IA$1)),FIND(CHAR(160),SUBSTITUTE($Z237,\"}\",CHAR(160),IA$1))-FIND(CHAR(160),SUBSTITUTE($Z237,\"{\",CHAR(160),IA$1))+1),\"\")","v":""},{"$f":"IFERROR(MID($Z237,FIND(CHAR(160),SUBSTITUTE($Z237,\"{\",CHAR(160),IB$1)),FIND(CHAR(160),SUBSTITUTE($Z237,\"}\",CHAR(160),IB$1))-FIND(CHAR(160),SUBSTITUTE($Z237,\"{\",CHAR(160),IB$1))+1),\"\")","v":""},{"$f":"IFERROR(MID($Z237,FIND(CHAR(160),SUBSTITUTE($Z237,\"{\",CHAR(160),IC$1)),FIND(CHAR(160),SUBSTITUTE($Z237,\"}\",CHAR(160),IC$1))-FIND(CHAR(160),SUBSTITUTE($Z237,\"{\",CHAR(160),IC$1))+1),\"\")","v":"{Measure:Quantity}"},{"$f":"IFERROR(MID($Z237,FIND(CHAR(160),SUBSTITUTE($Z237,\"{\",CHAR(160),ID$1)),FIND(CHAR(160),SUBSTITUTE($Z237,\"}\",CHAR(160),ID$1))-FIND(CHAR(160),SUBSTITUTE($Z237,\"{\",CHAR(160),ID$1))+1),\"\")","v":"{Package Size}"},{"$f":"IFERROR(MID($AA237,FIND(CHAR(160),SUBSTITUTE($AA237,\"{\",CHAR(160),IE$1)),FIND(CHAR(160),SUBSTITUTE($AA237,\"}\",CHAR(160),IE$1))-FIND(CHAR(160),SUBSTITUTE($AA237,\"{\",CHAR(160),IE$1))+1),\"\")","v":""},{"$f":"IFERROR(MID($AA237,FIND(CHAR(160),SUBSTITUTE($AA237,\"{\",CHAR(160),IF$1)),FIND(CHAR(160),SUBSTITUTE($AA237,\"}\",CHAR(160),IF$1))-FIND(CHAR(160),SUBSTITUTE($AA237,\"{\",CHAR(160),IF$1))+1),\"\")","v":""},{"$f":"IFERROR(MID($AA237,FIND(CHAR(160),SUBSTITUTE($AA237,\"{\",CHAR(160),IG$1)),FIND(CHAR(160),SUBSTITUTE($AA237,\"}\",CHAR(160),IG$1))-FIND(CHAR(160),SUBSTITUTE($AA237,\"{\",CHAR(160),IG$1))+1),\"\")","v":""},{"$f":"IFERROR(MID($AA237,FIND(CHAR(160),SUBSTITUTE($AA237,\"{\",CHAR(160),IH$1)),FIND(CHAR(160),SUBSTITUTE($AA237,\"}\",CHAR(160),IH$1))-FIND(CHAR(160),SUBSTITUTE($AA237,\"{\",CHAR(160),IH$1))+1),\"\")","v":""},{"$f":"IFERROR(MID($AA237,FIND(CHAR(160),SUBSTITUTE($AA237,\"{\",CHAR(160),II$1)),FIND(CHAR(160),SUBSTITUTE($AA237,\"}\",CHAR(160),II$1))-FIND(CHAR(160),SUBSTITUTE($AA237,\"{\",CHAR(160),II$1))+1),\"\")","v":""},{"$f":"IFERROR(MID($AA237,FIND(CHAR(160),SUBSTITUTE($AA237,\"{\",CHAR(160),IJ$1)),FIND(CHAR(160),SUBSTITUTE($AA237,\"}\",CHAR(160),IJ$1))-FIND(CHAR(160),SUBSTITUTE($AA237,\"{\",CHAR(160),IJ$1))+1),\"\")","v":""},{"$f":"IFERROR(MID($AA237,FIND(CHAR(160),SUBSTITUTE($AA237,\"{\",CHAR(160),IK$1)),FIND(CHAR(160),SUBSTITUTE($AA237,\"}\",CHAR(160),IK$1))-FIND(CHAR(160),SUBSTITUTE($AA237,\"{\",CHAR(160),IK$1))+1),\"\")","v":""},{"$f":"IFERROR(MID($AA237,FIND(CHAR(160),SUBSTITUTE($AA237,\"{\",CHAR(160),IL$1)),FIND(CHAR(160),SUBSTITUTE($AA237,\"}\",CHAR(160),IL$1))-FIND(CHAR(160),SUBSTITUTE($AA237,\"{\",CHAR(160),IL$1))+1),\"\")","v":""},{"$f":"IFERROR(MID($AA237,FIND(CHAR(160),SUBSTITUTE($AA237,\"{\",CHAR(160),IM$1)),FIND(CHAR(160),SUBSTITUTE($AA237,\"}\",CHAR(160),IM$1))-FIND(CHAR(160),SUBSTITUTE($AA237,\"{\",CHAR(160),IM$1))+1),\"\")","v":"{Measure:Quantity}"},{"$f":"IFERROR(MID($AA237,FIND(CHAR(160),SUBSTITUTE($AA237,\"{\",CHAR(160),IN$1)),FIND(CHAR(160),SUBSTITUTE($AA237,\"}\",CHAR(160),IN$1))-FIND(CHAR(160),SUBSTITUTE($AA237,\"{\",CHAR(160),IN$1))+1),\"\")","v":"{Package Size}"},{"$f":"IFERROR(MID($AB237,FIND(CHAR(160),SUBSTITUTE($AB237,\"{\",CHAR(160),IO$1)),FIND(CHAR(160),SUBSTITUTE($AB237,\"}\",CHAR(160),IO$1))-FIND(CHAR(160),SUBSTITUTE($AB237,\"{\",CHAR(160),IO$1))+1),\"\")","v":""},{"$f":"IFERROR(MID($AB237,FIND(CHAR(160),SUBSTITUTE($AB237,\"{\",CHAR(160),IP$1)),FIND(CHAR(160),SUBSTITUTE($AB237,\"}\",CHAR(160),IP$1))-FIND(CHAR(160),SUBSTITUTE($AB237,\"{\",CHAR(160),IP$1))+1),\"\")","v":""},{"$f":"IFERROR(MID($AB237,FIND(CHAR(160),SUBSTITUTE($AB237,\"{\",CHAR(160),IQ$1)),FIND(CHAR(160),SUBSTITUTE($AB237,\"}\",CHAR(160),IQ$1))-FIND(CHAR(160),SUBSTITUTE($AB237,\"{\",CHAR(160),IQ$1))+1),\"\")","v":""},{"$f":"IFERROR(MID($AB237,FIND(CHAR(160),SUBSTITUTE($AB237,\"{\",CHAR(160),IR$1)),FIND(CHAR(160),SUBSTITUTE($AB237,\"}\",CHAR(160),IR$1))-FIND(CHAR(160),SUBSTITUTE($AB237,\"{\",CHAR(160),IR$1))+1),\"\")","v":""},{"$f":"IFERROR(MID($AB237,FIND(CHAR(160),SUBSTITUTE($AB237,\"{\",CHAR(160),IS$1)),FIND(CHAR(160),SUBSTITUTE($AB237,\"}\",CHAR(160),IS$1))-FIND(CHAR(160),SUBSTITUTE($AB237,\"{\",CHAR(160),IS$1))+1),\"\")","v":""},{"$f":"IFERROR(MID($AB237,FIND(CHAR(160),SUBSTITUTE($AB237,\"{\",CHAR(160),IT$1)),FIND(CHAR(160),SUBSTITUTE($AB237,\"}\",CHAR(160),IT$1))-FIND(CHAR(160),SUBSTITUTE($AB237,\"{\",CHAR(160),IT$1))+1),\"\")","v":""},{"$f":"IFERROR(MID($AB237,FIND(CHAR(160),SUBSTITUTE($AB237,\"{\",CHAR(160),IU$1)),FIND(CHAR(160),SUBSTITUTE($AB237,\"}\",CHAR(160),IU$1))-FIND(CHAR(160),SUBSTITUTE($AB237,\"{\",CHAR(160),IU$1))+1),\"\")","v":""},{"$f":"IFERROR(MID($AB237,FIND(CHAR(160),SUBSTITUTE($AB237,\"{\",CHAR(160),IV$1)),FIND(CHAR(160),SUBSTITUTE($AB237,\"}\",CHAR(160),IV$1))-FIND(CHAR(160),SUBSTITUTE($AB237,\"{\",CHAR(160),IV$1))+1),\"\")","v":""},{"$f":"IFERROR(MID($AB237,FIND(CHAR(160),SUBSTITUTE($AB237,\"{\",CHAR(160),IW$1)),FIND(CHAR(160),SUBSTITUTE($AB237,\"}\",CHAR(160),IW$1))-FIND(CHAR(160),SUBSTITUTE($AB237,\"{\",CHAR(160),IW$1))+1),\"\")","v":""},{"$f":"IFERROR(MID($AB237,FIND(CHAR(160),SUBSTITUTE($AB237,\"{\",CHAR(160),IX$1)),FIND(CHAR(160),SUBSTITUTE($AB237,\"}\",CHAR(160),IX$1))-FIND(CHAR(160),SUBSTITUTE($AB237,\"{\",CHAR(160),IX$1))+1),\"\")","v":""},null,{"$f":"10-COUNTIF(DU237:ED237,\"\")","v":4}]
["Retail Lighting","LED Specialty Bulb Candelabra Long Life","LEDSPCCDL","2021-07-01","2022-06-30","Calculated","{Measure:Quantity}*{Package Size}*2.17",0,"Calculated","{Measure:Quantity}*({Rebate per Package}+{Marketing Fee})",0,"2021-07-01","2022-06-30","Calculated","{Measure:Quantity}*{Package Size}*34",null,null,"{Measure:Quantity}*{Package Size}*1.062*0.037",null,null,"{Measure:Quantity}*{Package Size}*0.007","{Measure:Quantity}*{Package Size}*0.004","{Measure:Quantity}*{Package Size}*10*-0.004","{Measure:Quantity}*{Package Size}*-0.003","{Measure:Quantity}*{Package Size}*-0.028","{Measure:Quantity}*{Package Size}*-0.001","{Measure:Quantity}*{Package Size}*-0.006",null,"2021-07-01","2022-06-30",4,0.185,0.109,0.37,0.31,0.17100000000000001,0.14899999999999999,0.99,1,1,0.76300000000000001,0,null,{"$f":"DU238","v":"{Measure:Quantity}"},1,{"$f":"DV238","v":"{Package Size}"},1,{"$f":"DW238","v":"{Rebate per Package}"},{"$f":"CO238","v":2.17},{"$f":"DX238","v":"{Marketing Fee}"},1,{"$f":"DY238","v":""},null,{"$f":"DZ238","v":""},null,{"$f":"EA238","v":""},null,{"$f":"EB238","v":""},null,{"$f":"EC238","v":""},null,{"$f":"ED238","v":""},null,{"$f":"AS238*AU238*34","v":34},0,0,{"$f":"AS238*AU238*1.062*0.037","v":3.9294000000000003E-2},0,0,{"$f":"AS238*AU238*0.007","v":7.0000000000000001E-3},{"$f":"AS238*AU238*0.004","v":4.0000000000000001E-3},{"$f":"AS238*AU238*10*-0.004","v":-0.04},{"$f":"AS238*AU238*-0.003","v":-3.0000000000000001E-3},{"$f":"AS238*AU238*-0.028","v":-2.8000000000000001E-2},{"$f":"AS238*AU238*-0.001","v":-1E-3},{"$f":"AS238*AU238*-0.006","v":-6.0000000000000001E-3},0,null,"Res","Default DR",{"$f":"Benefits(BL238,BR238,BS238,BT238,BU238,BV238,BW238,BX238,BY238,BZ238,AE238,AH238,AI238,AJ238,AK238,AL238,AM238,AN238,AO238,AP238,CA238,CB238)","v":15.279148140210799},10.303617907999239,-0.26597057468281271,-3.5577066006994613,-0.14543538089809677,-0.53083326067308545,-0.42729693875157582,0,0,{"$f":"SUMPRODUCT(CC238:CK238,--(CC238:CK238>0))","v":25.58276604821004},{"$f":"-SUMPRODUCT(CC238:CK238,--(CC238:CK238<0))","v":4.9272427557050325},null,{"$f":"AS238*AU238*2.17","v":2.17},null,null,{"$f":"CM238+CO238","v":7.0972427557050324},{"$f":"IF(NetOrGross=\"Net\",(1-AO238+AP238),1)","v":1},{"$f":"(SUMPRODUCT(CC238:CJ238,--(CC238:CJ238>0))+CN238)*CS238/((-SUMPRODUCT(CC238:CJ238,--(CC238:CJ238<0))+MAX(CO238,CV238)+CP238+CQ238)*CS238+IF(FRIncentives=\"Yes\",CV238*(1-CS238),0))","v":3.1594416544057942},1,{"$f":"AS238*(AW238+AY238)","v":3.17},1,"Electric","y",null,{"$f":"IF(F238=\"Manual Entry\",\"Manual\",IF(G238=\"\",0,\"X=\"&SUBSTITUTE(SUBSTITUTE(SUBSTITUTE(SUBSTITUTE(SUBSTITUTE(SUBSTITUTE(SUBSTITUTE(SUBSTITUTE(SUBSTITUTE(SUBSTITUTE(SUBSTITUTE(SUBSTITUTE(G238,$ED238,$ED$2&ROW($ED238)),$EC238,$EC$2&ROW($EC238)),$EB238,$EB$2&ROW($EB238)),$EA238,$EA$2&ROW($EA238)),$DZ238,$DZ$2&ROW($DZ238)),$DY238,$DY$2&ROW($DY238)),$DX238,$DX$2&ROW($DX238)),$DW238,$DW$2&ROW($DW238)),$DV238,$DV$2&ROW($DV238)),$DU238,$DU$2&ROW($DU238)),$DT238,$DT$2&ROW($DT238)),$DS238,$DS$2&ROW($DS238))))","v":"X=AS238*AU238*2.17"},{"$f":"IF(I238=\"Manual Entry\",\"Manual\",IF(J238=\"\",0,\"X=\"&SUBSTITUTE(SUBSTITUTE(SUBSTITUTE(SUBSTITUTE(SUBSTITUTE(SUBSTITUTE(SUBSTITUTE(SUBSTITUTE(SUBSTITUTE(SUBSTITUTE(SUBSTITUTE(SUBSTITUTE(J238,$ED238,$ED$2&ROW($ED238)),$EC238,$EC$2&ROW($EC238)),$EB238,$EB$2&ROW($EB238)),$EA238,$EA$2&ROW($EA238)),$DZ238,$DZ$2&ROW($DZ238)),$DY238,$DY$2&ROW($DY238)),$DX238,$DX$2&ROW($DX238)),$DW238,$DW$2&ROW($DW238)),$DV238,$DV$2&ROW($DV238)),$DU238,$DU$2&ROW($DU238)),$DT238,$DT$2&ROW($DT238)),$DS238,$DS$2&ROW($DS238))))","v":"X=AS238*(AW238+AY238)"},{"$f":"IF(O238=\"\",0,\"X=\"&SUBSTITUTE(SUBSTITUTE(SUBSTITUTE(SUBSTITUTE(SUBSTITUTE(SUBSTITUTE(SUBSTITUTE(SUBSTITUTE(SUBSTITUTE(SUBSTITUTE(SUBSTITUTE(SUBSTITUTE(O238,$ED238,$ED$2&ROW($ED238)),$EC238,$EC$2&ROW($EC238)),$EB238,$EB$2&ROW($EB238)),$EA238,$EA$2&ROW($EA238)),$DZ238,$DZ$2&ROW($DZ238)),$DY238,$DY$2&ROW($DY238)),$DX238,$DX$2&ROW($DX238)),$DW238,$DW$2&ROW($DW238)),$DV238,$DV$2&ROW($DV238)),$DU238,$DU$2&ROW($DU238)),$DT238,$DT$2&ROW($DT238)),$DS238,$DS$2&ROW($DS238)))","v":"X=AS238*AU238*34"},{"$f":"IF(P238=\"\",0,\"X=\"&SUBSTITUTE(SUBSTITUTE(SUBSTITUTE(SUBSTITUTE(SUBSTITUTE(SUBSTITUTE(SUBSTITUTE(SUBSTITUTE(SUBSTITUTE(SUBSTITUTE(SUBSTITUTE(SUBSTITUTE(P238,$ED238,$ED$2&ROW($ED238)),$EC238,$EC$2&ROW($EC238)),$EB238,$EB$2&ROW($EB238)),$EA238,$EA$2&ROW($EA238)),$DZ238,$DZ$2&ROW($DZ238)),$DY238,$DY$2&ROW($DY238)),$DX238,$DX$2&ROW($DX238)),$DW238,$DW$2&ROW($DW238)),$DV238,$DV$2&ROW($DV238)),$DU238,$DU$2&ROW($DU238)),$DT238,$DT$2&ROW($DT238)),$DS238,$DS$2&ROW($DS238)))","v":0},{"$f":"IF(Q238=\"\",0,\"X=\"&SUBSTITUTE(SUBSTITUTE(SUBSTITUTE(SUBSTITUTE(SUBSTITUTE(SUBSTITUTE(SUBSTITUTE(SUBSTITUTE(SUBSTITUTE(SUBSTITUTE(SUBSTITUTE(SUBSTITUTE(Q238,$ED238,$ED$2&ROW($ED238)),$EC238,$EC$2&ROW($EC238)),$EB238,$EB$2&ROW($EB238)),$EA238,$EA$2&ROW($EA238)),$DZ238,$DZ$2&ROW($DZ238)),$DY238,$DY$2&ROW($DY238)),$DX238,$DX$2&ROW($DX238)),$DW238,$DW$2&ROW($DW238)),$DV238,$DV$2&ROW($DV238)),$DU238,$DU$2&ROW($DU238)),$DT238,$DT$2&ROW($DT238)),$DS238,$DS$2&ROW($DS238)))","v":0},{"$f":"IF(R238=\"\",0,\"X=\"&SUBSTITUTE(SUBSTITUTE(SUBSTITUTE(SUBSTITUTE(SUBSTITUTE(SUBSTITUTE(SUBSTITUTE(SUBSTITUTE(SUBSTITUTE(SUBSTITUTE(SUBSTITUTE(SUBSTITUTE(R238,$ED238,$ED$2&ROW($ED238)),$EC238,$EC$2&ROW($EC238)),$EB238,$EB$2&ROW($EB238)),$EA238,$EA$2&ROW($EA238)),$DZ238,$DZ$2&ROW($DZ238)),$DY238,$DY$2&ROW($DY238)),$DX238,$DX$2&ROW($DX238)),$DW238,$DW$2&ROW($DW238)),$DV238,$DV$2&ROW($DV238)),$DU238,$DU$2&ROW($DU238)),$DT238,$DT$2&ROW($DT238)),$DS238,$DS$2&ROW($DS238)))","v":"X=AS238*AU238*1.062*0.037"},{"$f":"IF(S238=\"\",0,\"X=\"&SUBSTITUTE(SUBSTITUTE(SUBSTITUTE(SUBSTITUTE(SUBSTITUTE(SUBSTITUTE(SUBSTITUTE(SUBSTITUTE(SUBSTITUTE(SUBSTITUTE(SUBSTITUTE(SUBSTITUTE(S238,$ED238,$ED$2&ROW($ED238)),$EC238,$EC$2&ROW($EC238)),$EB238,$EB$2&ROW($EB238)),$EA238,$EA$2&ROW($EA238)),$DZ238,$DZ$2&ROW($DZ238)),$DY238,$DY$2&ROW($DY238)),$DX238,$DX$2&ROW($DX238)),$DW238,$DW$2&ROW($DW238)),$DV238,$DV$2&ROW($DV238)),$DU238,$DU$2&ROW($DU238)),$DT238,$DT$2&ROW($DT238)),$DS238,$DS$2&ROW($DS238)))","v":0},{"$f":"IF(T238=\"\",0,\"X=\"&SUBSTITUTE(SUBSTITUTE(SUBSTITUTE(SUBSTITUTE(SUBSTITUTE(SUBSTITUTE(SUBSTITUTE(SUBSTITUTE(SUBSTITUTE(SUBSTITUTE(SUBSTITUTE(SUBSTITUTE(T238,$ED238,$ED$2&ROW($ED238)),$EC238,$EC$2&ROW($EC238)),$EB238,$EB$2&ROW($EB238)),$EA238,$EA$2&ROW($EA238)),$DZ238,$DZ$2&ROW($DZ238)),$DY238,$DY$2&ROW($DY238)),$DX238,$DX$2&ROW($DX238)),$DW238,$DW$2&ROW($DW238)),$DV238,$DV$2&ROW($DV238)),$DU238,$DU$2&ROW($DU238)),$DT238,$DT$2&ROW($DT238)),$DS238,$DS$2&ROW($DS238)))","v":0},{"$f":"IF(U238=\"\",0,\"X=\"&SUBSTITUTE(SUBSTITUTE(SUBSTITUTE(SUBSTITUTE(SUBSTITUTE(SUBSTITUTE(SUBSTITUTE(SUBSTITUTE(SUBSTITUTE(SUBSTITUTE(SUBSTITUTE(SUBSTITUTE(U238,$ED238,$ED$2&ROW($ED238)),$EC238,$EC$2&ROW($EC238)),$EB238,$EB$2&ROW($EB238)),$EA238,$EA$2&ROW($EA238)),$DZ238,$DZ$2&ROW($DZ238)),$DY238,$DY$2&ROW($DY238)),$DX238,$DX$2&ROW($DX238)),$DW238,$DW$2&ROW($DW238)),$DV238,$DV$2&ROW($DV238)),$DU238,$DU$2&ROW($DU238)),$DT238,$DT$2&ROW($DT238)),$DS238,$DS$2&ROW($DS238)))","v":"X=AS238*AU238*0.007"},{"$f":"IF(V238=\"\",0,\"X=\"&SUBSTITUTE(SUBSTITUTE(SUBSTITUTE(SUBSTITUTE(SUBSTITUTE(SUBSTITUTE(SUBSTITUTE(SUBSTITUTE(SUBSTITUTE(SUBSTITUTE(SUBSTITUTE(SUBSTITUTE(V238,$ED238,$ED$2&ROW($ED238)),$EC238,$EC$2&ROW($EC238)),$EB238,$EB$2&ROW($EB238)),$EA238,$EA$2&ROW($EA238)),$DZ238,$DZ$2&ROW($DZ238)),$DY238,$DY$2&ROW($DY238)),$DX238,$DX$2&ROW($DX238)),$DW238,$DW$2&ROW($DW238)),$DV238,$DV$2&ROW($DV238)),$DU238,$DU$2&ROW($DU238)),$DT238,$DT$2&ROW($DT238)),$DS238,$DS$2&ROW($DS238)))","v":"X=AS238*AU238*0.004"},{"$f":"IF(W238=\"\",0,\"X=\"&SUBSTITUTE(SUBSTITUTE(SUBSTITUTE(SUBSTITUTE(SUBSTITUTE(SUBSTITUTE(SUBSTITUTE(SUBSTITUTE(SUBSTITUTE(SUBSTITUTE(SUBSTITUTE(SUBSTITUTE(W238,$ED238,$ED$2&ROW($ED238)),$EC238,$EC$2&ROW($EC238)),$EB238,$EB$2&ROW($EB238)),$EA238,$EA$2&ROW($EA238)),$DZ238,$DZ$2&ROW($DZ238)),$DY238,$DY$2&ROW($DY238)),$DX238,$DX$2&ROW($DX238)),$DW238,$DW$2&ROW($DW238)),$DV238,$DV$2&ROW($DV238)),$DU238,$DU$2&ROW($DU238)),$DT238,$DT$2&ROW($DT238)),$DS238,$DS$2&ROW($DS238)))","v":"X=AS238*AU238*10*-0.004"},{"$f":"IF(X238=\"\",0,\"X=\"&SUBSTITUTE(SUBSTITUTE(SUBSTITUTE(SUBSTITUTE(SUBSTITUTE(SUBSTITUTE(SUBSTITUTE(SUBSTITUTE(SUBSTITUTE(SUBSTITUTE(SUBSTITUTE(SUBSTITUTE(X238,$ED238,$ED$2&ROW($ED238)),$EC238,$EC$2&ROW($EC238)),$EB238,$EB$2&ROW($EB238)),$EA238,$EA$2&ROW($EA238)),$DZ238,$DZ$2&ROW($DZ238)),$DY238,$DY$2&ROW($DY238)),$DX238,$DX$2&ROW($DX238)),$DW238,$DW$2&ROW($DW238)),$DV238,$DV$2&ROW($DV238)),$DU238,$DU$2&ROW($DU238)),$DT238,$DT$2&ROW($DT238)),$DS238,$DS$2&ROW($DS238)))","v":"X=AS238*AU238*-0.003"},{"$f":"IF(Y238=\"\",0,\"X=\"&SUBSTITUTE(SUBSTITUTE(SUBSTITUTE(SUBSTITUTE(SUBSTITUTE(SUBSTITUTE(SUBSTITUTE(SUBSTITUTE(SUBSTITUTE(SUBSTITUTE(SUBSTITUTE(SUBSTITUTE(Y238,$ED238,$ED$2&ROW($ED238)),$EC238,$EC$2&ROW($EC238)),$EB238,$EB$2&ROW($EB238)),$EA238,$EA$2&ROW($EA238)),$DZ238,$DZ$2&ROW($DZ238)),$DY238,$DY$2&ROW($DY238)),$DX238,$DX$2&ROW($DX238)),$DW238,$DW$2&ROW($DW238)),$DV238,$DV$2&ROW($DV238)),$DU238,$DU$2&ROW($DU238)),$DT238,$DT$2&ROW($DT238)),$DS238,$DS$2&ROW($DS238)))","v":"X=AS238*AU238*-0.028"},{"$f":"IF(Z238=\"\",0,\"X=\"&SUBSTITUTE(SUBSTITUTE(SUBSTITUTE(SUBSTITUTE(SUBSTITUTE(SUBSTITUTE(SUBSTITUTE(SUBSTITUTE(SUBSTITUTE(SUBSTITUTE(SUBSTITUTE(SUBSTITUTE(Z238,$ED238,$ED$2&ROW($ED238)),$EC238,$EC$2&ROW($EC238)),$EB238,$EB$2&ROW($EB238)),$EA238,$EA$2&ROW($EA238)),$DZ238,$DZ$2&ROW($DZ238)),$DY238,$DY$2&ROW($DY238)),$DX238,$DX$2&ROW($DX238)),$DW238,$DW$2&ROW($DW238)),$DV238,$DV$2&ROW($DV238)),$DU238,$DU$2&ROW($DU238)),$DT238,$DT$2&ROW($DT238)),$DS238,$DS$2&ROW($DS238)))","v":"X=AS238*AU238*-0.001"},{"$f":"IF(AA238=\"\",0,\"X=\"&SUBSTITUTE(SUBSTITUTE(SUBSTITUTE(SUBSTITUTE(SUBSTITUTE(SUBSTITUTE(SUBSTITUTE(SUBSTITUTE(SUBSTITUTE(SUBSTITUTE(SUBSTITUTE(SUBSTITUTE(AA238,$ED238,$ED$2&ROW($ED238)),$EC238,$EC$2&ROW($EC238)),$EB238,$EB$2&ROW($EB238)),$EA238,$EA$2&ROW($EA238)),$DZ238,$DZ$2&ROW($DZ238)),$DY238,$DY$2&ROW($DY238)),$DX238,$DX$2&ROW($DX238)),$DW238,$DW$2&ROW($DW238)),$DV238,$DV$2&ROW($DV238)),$DU238,$DU$2&ROW($DU238)),$DT238,$DT$2&ROW($DT238)),$DS238,$DS$2&ROW($DS238)))","v":"X=AS238*AU238*-0.006"},{"$f":"IF(AB238=\"\",0,\"X=\"&SUBSTITUTE(SUBSTITUTE(SUBSTITUTE(SUBSTITUTE(SUBSTITUTE(SUBSTITUTE(SUBSTITUTE(SUBSTITUTE(SUBSTITUTE(SUBSTITUTE(SUBSTITUTE(SUBSTITUTE(AB238,$ED238,$ED$2&ROW($ED238)),$EC238,$EC$2&ROW($EC238)),$EB238,$EB$2&ROW($EB238)),$EA238,$EA$2&ROW($EA238)),$DZ238,$DZ$2&ROW($DZ238)),$DY238,$DY$2&ROW($DY238)),$DX238,$DX$2&ROW($DX238)),$DW238,$DW$2&ROW($DW238)),$DV238,$DV$2&ROW($DV238)),$DU238,$DU$2&ROW($DU238)),$DT238,$DT$2&ROW($DT238)),$DS238,$DS$2&ROW($DS238)))","v":0},null,null,"{Factor:WinterCF}","{Factor:SummerCF}",{"$f":"IFERROR(INDEX($EG238:$IV238,MATCH(0,COUNTIF($DR238:DT238,$EG238:$IV238),0)),\"\")","v":"{Measure:Quantity}"},{"$f":"IFERROR(INDEX($EG238:$IV238,MATCH(0,COUNTIF($DR238:DU238,$EG238:$IV238),0)),\"\")","v":"{Package Size}"},{"$f":"IFERROR(INDEX($EG238:$IV238,MATCH(0,COUNTIF($DR238:DV238,$EG238:$IV238),0)),\"\")","v":"{Rebate per Package}"},{"$f":"IFERROR(INDEX($EG238:$IV238,MATCH(0,COUNTIF($DR238:DW238,$EG238:$IV238),0)),\"\")","v":"{Marketing Fee}"},{"$f":"IFERROR(INDEX($EG238:$IV238,MATCH(0,COUNTIF($DR238:DX238,$EG238:$IV238),0)),\"\")","v":""},{"$f":"IFERROR(INDEX($EG238:$IV238,MATCH(0,COUNTIF($DR238:DY238,$EG238:$IV238),0)),\"\")","v":""},{"$f":"IFERROR(INDEX($EG238:$IV238,MATCH(0,COUNTIF($DR238:DZ238,$EG238:$IV238),0)),\"\")","v":""},{"$f":"IFERROR(INDEX($EG238:$IV238,MATCH(0,COUNTIF($DR238:EA238,$EG238:$IV238),0)),\"\")","v":""},{"$f":"IFERROR(INDEX($EG238:$IV238,MATCH(0,COUNTIF($DR238:EB238,$EG238:$IV238),0)),\"\")","v":""},{"$f":"IFERROR(INDEX($EG238:$IV238,MATCH(0,COUNTIF($DR238:EC238,$EG238:$IV238),0)),\"\")","v":""},null,null,{"$f":"IFERROR(MID($G238,FIND(CHAR(160),SUBSTITUTE($G238,\"{\",CHAR(160),EG$1)),FIND(CHAR(160),SUBSTITUTE($G238,\"}\",CHAR(160),EG$1))-FIND(CHAR(160),SUBSTITUTE($G238,\"{\",CHAR(160),EG$1))+1),\"\")","v":"{Measure:Quantity}"},{"$f":"IFERROR(MID($G238,FIND(CHAR(160),SUBSTITUTE($G238,\"{\",CHAR(160),EH$1)),FIND(CHAR(160),SUBSTITUTE($G238,\"}\",CHAR(160),EH$1))-FIND(CHAR(160),SUBSTITUTE($G238,\"{\",CHAR(160),EH$1))+1),\"\")","v":"{Package Size}"},{"$f":"IFERROR(MID($G238,FIND(CHAR(160),SUBSTITUTE($G238,\"{\",CHAR(160),EI$1)),FIND(CHAR(160),SUBSTITUTE($G238,\"}\",CHAR(160),EI$1))-FIND(CHAR(160),SUBSTITUTE($G238,\"{\",CHAR(160),EI$1))+1),\"\")","v":""},{"$f":"IFERROR(MID($G238,FIND(CHAR(160),SUBSTITUTE($G238,\"{\",CHAR(160),EJ$1)),FIND(CHAR(160),SUBSTITUTE($G238,\"}\",CHAR(160),EJ$1))-FIND(CHAR(160),SUBSTITUTE($G238,\"{\",CHAR(160),EJ$1))+1),\"\")","v":""},{"$f":"IFERROR(MID($G238,FIND(CHAR(160),SUBSTITUTE($G238,\"{\",CHAR(160),EK$1)),FIND(CHAR(160),SUBSTITUTE($G238,\"}\",CHAR(160),EK$1))-FIND(CHAR(160),SUBSTITUTE($G238,\"{\",CHAR(160),EK$1))+1),\"\")","v":""},{"$f":"IFERROR(MID($G238,FIND(CHAR(160),SUBSTITUTE($G238,\"{\",CHAR(160),EL$1)),FIND(CHAR(160),SUBSTITUTE($G238,\"}\",CHAR(160),EL$1))-FIND(CHAR(160),SUBSTITUTE($G238,\"{\",CHAR(160),EL$1))+1),\"\")","v":""},{"$f":"IFERROR(MID($G238,FIND(CHAR(160),SUBSTITUTE($G238,\"{\",CHAR(160),EM$1)),FIND(CHAR(160),SUBSTITUTE($G238,\"}\",CHAR(160),EM$1))-FIND(CHAR(160),SUBSTITUTE($G238,\"{\",CHAR(160),EM$1))+1),\"\")","v":""},{"$f":"IFERROR(MID($G238,FIND(CHAR(160),SUBSTITUTE($G238,\"{\",CHAR(160),EN$1)),FIND(CHAR(160),SUBSTITUTE($G238,\"}\",CHAR(160),EN$1))-FIND(CHAR(160),SUBSTITUTE($G238,\"{\",CHAR(160),EN$1))+1),\"\")","v":""},{"$f":"IFERROR(MID($G238,FIND(CHAR(160),SUBSTITUTE($G238,\"{\",CHAR(160),EO$1)),FIND(CHAR(160),SUBSTITUTE($G238,\"}\",CHAR(160),EO$1))-FIND(CHAR(160),SUBSTITUTE($G238,\"{\",CHAR(160),EO$1))+1),\"\")","v":""},{"$f":"IFERROR(MID($G238,FIND(CHAR(160),SUBSTITUTE($G238,\"{\",CHAR(160),EP$1)),FIND(CHAR(160),SUBSTITUTE($G238,\"}\",CHAR(160),EP$1))-FIND(CHAR(160),SUBSTITUTE($G238,\"{\",CHAR(160),EP$1))+1),\"\")","v":""},{"$f":"IFERROR(MID($J238,FIND(CHAR(160),SUBSTITUTE($J238,\"{\",CHAR(160),EQ$1)),FIND(CHAR(160),SUBSTITUTE($J238,\"}\",CHAR(160),EQ$1))-FIND(CHAR(160),SUBSTITUTE($J238,\"{\",CHAR(160),EQ$1))+1),\"\")","v":"{Measure:Quantity}"},{"$f":"IFERROR(MID($J238,FIND(CHAR(160),SUBSTITUTE($J238,\"{\",CHAR(160),ER$1)),FIND(CHAR(160),SUBSTITUTE($J238,\"}\",CHAR(160),ER$1))-FIND(CHAR(160),SUBSTITUTE($J238,\"{\",CHAR(160),ER$1))+1),\"\")","v":"{Rebate per Package}"},{"$f":"IFERROR(MID($J238,FIND(CHAR(160),SUBSTITUTE($J238,\"{\",CHAR(160),ES$1)),FIND(CHAR(160),SUBSTITUTE($J238,\"}\",CHAR(160),ES$1))-FIND(CHAR(160),SUBSTITUTE($J238,\"{\",CHAR(160),ES$1))+1),\"\")","v":"{Marketing Fee}"},{"$f":"IFERROR(MID($J238,FIND(CHAR(160),SUBSTITUTE($J238,\"{\",CHAR(160),ET$1)),FIND(CHAR(160),SUBSTITUTE($J238,\"}\",CHAR(160),ET$1))-FIND(CHAR(160),SUBSTITUTE($J238,\"{\",CHAR(160),ET$1))+1),\"\")","v":""},{"$f":"IFERROR(MID($J238,FIND(CHAR(160),SUBSTITUTE($J238,\"{\",CHAR(160),EU$1)),FIND(CHAR(160),SUBSTITUTE($J238,\"}\",CHAR(160),EU$1))-FIND(CHAR(160),SUBSTITUTE($J238,\"{\",CHAR(160),EU$1))+1),\"\")","v":""},{"$f":"IFERROR(MID($J238,FIND(CHAR(160),SUBSTITUTE($J238,\"{\",CHAR(160),EV$1)),FIND(CHAR(160),SUBSTITUTE($J238,\"}\",CHAR(160),EV$1))-FIND(CHAR(160),SUBSTITUTE($J238,\"{\",CHAR(160),EV$1))+1),\"\")","v":""},{"$f":"IFERROR(MID($J238,FIND(CHAR(160),SUBSTITUTE($J238,\"{\",CHAR(160),EW$1)),FIND(CHAR(160),SUBSTITUTE($J238,\"}\",CHAR(160),EW$1))-FIND(CHAR(160),SUBSTITUTE($J238,\"{\",CHAR(160),EW$1))+1),\"\")","v":""},{"$f":"IFERROR(MID($J238,FIND(CHAR(160),SUBSTITUTE($J238,\"{\",CHAR(160),EX$1)),FIND(CHAR(160),SUBSTITUTE($J238,\"}\",CHAR(160),EX$1))-FIND(CHAR(160),SUBSTITUTE($J238,\"{\",CHAR(160),EX$1))+1),\"\")","v":""},{"$f":"IFERROR(MID($J238,FIND(CHAR(160),SUBSTITUTE($J238,\"{\",CHAR(160),EY$1)),FIND(CHAR(160),SUBSTITUTE($J238,\"}\",CHAR(160),EY$1))-FIND(CHAR(160),SUBSTITUTE($J238,\"{\",CHAR(160),EY$1))+1),\"\")","v":""},{"$f":"IFERROR(MID($J238,FIND(CHAR(160),SUBSTITUTE($J238,\"{\",CHAR(160),EZ$1)),FIND(CHAR(160),SUBSTITUTE($J238,\"}\",CHAR(160),EZ$1))-FIND(CHAR(160),SUBSTITUTE($J238,\"{\",CHAR(160),EZ$1))+1),\"\")","v":""},{"$f":"IFERROR(MID($J238,FIND(CHAR(160),SUBSTITUTE($J238,\"{\",CHAR(160),FA$1)),FIND(CHAR(160),SUBSTITUTE($J238,\"}\",CHAR(160),FA$1))-FIND(CHAR(160),SUBSTITUTE($J238,\"{\",CHAR(160),FA$1))+1),\"\")","v":"{Measure:Quantity}"},{"$f":"IFERROR(MID($J238,FIND(CHAR(160),SUBSTITUTE($J238,\"{\",CHAR(160),FB$1)),FIND(CHAR(160),SUBSTITUTE($J238,\"}\",CHAR(160),FB$1))-FIND(CHAR(160),SUBSTITUTE($J238,\"{\",CHAR(160),FB$1))+1),\"\")","v":"{Rebate per Package}"},{"$f":"IFERROR(MID($O238,FIND(CHAR(160),SUBSTITUTE($O238,\"{\",CHAR(160),FC$1)),FIND(CHAR(160),SUBSTITUTE($O238,\"}\",CHAR(160),FC$1))-FIND(CHAR(160),SUBSTITUTE($O238,\"{\",CHAR(160),FC$1))+1),\"\")","v":""},{"$f":"IFERROR(MID($O238,FIND(CHAR(160),SUBSTITUTE($O238,\"{\",CHAR(160),FD$1)),FIND(CHAR(160),SUBSTITUTE($O238,\"}\",CHAR(160),FD$1))-FIND(CHAR(160),SUBSTITUTE($O238,\"{\",CHAR(160),FD$1))+1),\"\")","v":""},{"$f":"IFERROR(MID($O238,FIND(CHAR(160),SUBSTITUTE($O238,\"{\",CHAR(160),FE$1)),FIND(CHAR(160),SUBSTITUTE($O238,\"}\",CHAR(160),FE$1))-FIND(CHAR(160),SUBSTITUTE($O238,\"{\",CHAR(160),FE$1))+1),\"\")","v":""},{"$f":"IFERROR(MID($O238,FIND(CHAR(160),SUBSTITUTE($O238,\"{\",CHAR(160),FF$1)),FIND(CHAR(160),SUBSTITUTE($O238,\"}\",CHAR(160),FF$1))-FIND(CHAR(160),SUBSTITUTE($O238,\"{\",CHAR(160),FF$1))+1),\"\")","v":""},{"$f":"IFERROR(MID($O238,FIND(CHAR(160),SUBSTITUTE($O238,\"{\",CHAR(160),FG$1)),FIND(CHAR(160),SUBSTITUTE($O238,\"}\",CHAR(160),FG$1))-FIND(CHAR(160),SUBSTITUTE($O238,\"{\",CHAR(160),FG$1))+1),\"\")","v":""},{"$f":"IFERROR(MID($O238,FIND(CHAR(160),SUBSTITUTE($O238,\"{\",CHAR(160),FH$1)),FIND(CHAR(160),SUBSTITUTE($O238,\"}\",CHAR(160),FH$1))-FIND(CHAR(160),SUBSTITUTE($O238,\"{\",CHAR(160),FH$1))+1),\"\")","v":""},{"$f":"IFERROR(MID($O238,FIND(CHAR(160),SUBSTITUTE($O238,\"{\",CHAR(160),FI$1)),FIND(CHAR(160),SUBSTITUTE($O238,\"}\",CHAR(160),FI$1))-FIND(CHAR(160),SUBSTITUTE($O238,\"{\",CHAR(160),FI$1))+1),\"\")","v":""},{"$f":"IFERROR(MID($O238,FIND(CHAR(160),SUBSTITUTE($O238,\"{\",CHAR(160),FJ$1)),FIND(CHAR(160),SUBSTITUTE($O238,\"}\",CHAR(160),FJ$1))-FIND(CHAR(160),SUBSTITUTE($O238,\"{\",CHAR(160),FJ$1))+1),\"\")","v":""},{"$f":"IFERROR(MID($O238,FIND(CHAR(160),SUBSTITUTE($O238,\"{\",CHAR(160),FK$1)),FIND(CHAR(160),SUBSTITUTE($O238,\"}\",CHAR(160),FK$1))-FIND(CHAR(160),SUBSTITUTE($O238,\"{\",CHAR(160),FK$1))+1),\"\")","v":"{Measure:Quantity}"},{"$f":"IFERROR(MID($O238,FIND(CHAR(160),SUBSTITUTE($O238,\"{\",CHAR(160),FL$1)),FIND(CHAR(160),SUBSTITUTE($O238,\"}\",CHAR(160),FL$1))-FIND(CHAR(160),SUBSTITUTE($O238,\"{\",CHAR(160),FL$1))+1),\"\")","v":"{Package Size}"},{"$f":"IFERROR(MID($R238,FIND(CHAR(160),SUBSTITUTE($R238,\"{\",CHAR(160),FM$1)),FIND(CHAR(160),SUBSTITUTE($R238,\"}\",CHAR(160),FM$1))-FIND(CHAR(160),SUBSTITUTE($R238,\"{\",CHAR(160),FM$1))+1),\"\")","v":""},{"$f":"IFERROR(MID($R238,FIND(CHAR(160),SUBSTITUTE($R238,\"{\",CHAR(160),FN$1)),FIND(CHAR(160),SUBSTITUTE($R238,\"}\",CHAR(160),FN$1))-FIND(CHAR(160),SUBSTITUTE($R238,\"{\",CHAR(160),FN$1))+1),\"\")","v":""},{"$f":"IFERROR(MID($R238,FIND(CHAR(160),SUBSTITUTE($R238,\"{\",CHAR(160),FO$1)),FIND(CHAR(160),SUBSTITUTE($R238,\"}\",CHAR(160),FO$1))-FIND(CHAR(160),SUBSTITUTE($R238,\"{\",CHAR(160),FO$1))+1),\"\")","v":""},{"$f":"IFERROR(MID($R238,FIND(CHAR(160),SUBSTITUTE($R238,\"{\",CHAR(160),FP$1)),FIND(CHAR(160),SUBSTITUTE($R238,\"}\",CHAR(160),FP$1))-FIND(CHAR(160),SUBSTITUTE($R238,\"{\",CHAR(160),FP$1))+1),\"\")","v":""},{"$f":"IFERROR(MID($R238,FIND(CHAR(160),SUBSTITUTE($R238,\"{\",CHAR(160),FQ$1)),FIND(CHAR(160),SUBSTITUTE($R238,\"}\",CHAR(160),FQ$1))-FIND(CHAR(160),SUBSTITUTE($R238,\"{\",CHAR(160),FQ$1))+1),\"\")","v":""},{"$f":"IFERROR(MID($R238,FIND(CHAR(160),SUBSTITUTE($R238,\"{\",CHAR(160),FR$1)),FIND(CHAR(160),SUBSTITUTE($R238,\"}\",CHAR(160),FR$1))-FIND(CHAR(160),SUBSTITUTE($R238,\"{\",CHAR(160),FR$1))+1),\"\")","v":""},{"$f":"IFERROR(MID($R238,FIND(CHAR(160),SUBSTITUTE($R238,\"{\",CHAR(160),FS$1)),FIND(CHAR(160),SUBSTITUTE($R238,\"}\",CHAR(160),FS$1))-FIND(CHAR(160),SUBSTITUTE($R238,\"{\",CHAR(160),FS$1))+1),\"\")","v":""},{"$f":"IFERROR(MID($R238,FIND(CHAR(160),SUBSTITUTE($R238,\"{\",CHAR(160),FT$1)),FIND(CHAR(160),SUBSTITUTE($R238,\"}\",CHAR(160),FT$1))-FIND(CHAR(160),SUBSTITUTE($R238,\"{\",CHAR(160),FT$1))+1),\"\")","v":""},{"$f":"IFERROR(MID($R238,FIND(CHAR(160),SUBSTITUTE($R238,\"{\",CHAR(160),FU$1)),FIND(CHAR(160),SUBSTITUTE($R238,\"}\",CHAR(160),FU$1))-FIND(CHAR(160),SUBSTITUTE($R238,\"{\",CHAR(160),FU$1))+1),\"\")","v":"{Measure:Quantity}"},{"$f":"IFERROR(MID($R238,FIND(CHAR(160),SUBSTITUTE($R238,\"{\",CHAR(160),FV$1)),FIND(CHAR(160),SUBSTITUTE($R238,\"}\",CHAR(160),FV$1))-FIND(CHAR(160),SUBSTITUTE($R238,\"{\",CHAR(160),FV$1))+1),\"\")","v":"{Package Size}"},{"$f":"IFERROR(MID($U238,FIND(CHAR(160),SUBSTITUTE($U238,\"{\",CHAR(160),FW$1)),FIND(CHAR(160),SUBSTITUTE($U238,\"}\",CHAR(160),FW$1))-FIND(CHAR(160),SUBSTITUTE($U238,\"{\",CHAR(160),FW$1))+1),\"\")","v":""},{"$f":"IFERROR(MID($U238,FIND(CHAR(160),SUBSTITUTE($U238,\"{\",CHAR(160),FX$1)),FIND(CHAR(160),SUBSTITUTE($U238,\"}\",CHAR(160),FX$1))-FIND(CHAR(160),SUBSTITUTE($U238,\"{\",CHAR(160),FX$1))+1),\"\")","v":""},{"$f":"IFERROR(MID($U238,FIND(CHAR(160),SUBSTITUTE($U238,\"{\",CHAR(160),FY$1)),FIND(CHAR(160),SUBSTITUTE($U238,\"}\",CHAR(160),FY$1))-FIND(CHAR(160),SUBSTITUTE($U238,\"{\",CHAR(160),FY$1))+1),\"\")","v":""},{"$f":"IFERROR(MID($U238,FIND(CHAR(160),SUBSTITUTE($U238,\"{\",CHAR(160),FZ$1)),FIND(CHAR(160),SUBSTITUTE($U238,\"}\",CHAR(160),FZ$1))-FIND(CHAR(160),SUBSTITUTE($U238,\"{\",CHAR(160),FZ$1))+1),\"\")","v":""},{"$f":"IFERROR(MID($U238,FIND(CHAR(160),SUBSTITUTE($U238,\"{\",CHAR(160),GA$1)),FIND(CHAR(160),SUBSTITUTE($U238,\"}\",CHAR(160),GA$1))-FIND(CHAR(160),SUBSTITUTE($U238,\"{\",CHAR(160),GA$1))+1),\"\")","v":""},{"$f":"IFERROR(MID($U238,FIND(CHAR(160),SUBSTITUTE($U238,\"{\",CHAR(160),GB$1)),FIND(CHAR(160),SUBSTITUTE($U238,\"}\",CHAR(160),GB$1))-FIND(CHAR(160),SUBSTITUTE($U238,\"{\",CHAR(160),GB$1))+1),\"\")","v":""},{"$f":"IFERROR(MID($U238,FIND(CHAR(160),SUBSTITUTE($U238,\"{\",CHAR(160),GC$1)),FIND(CHAR(160),SUBSTITUTE($U238,\"}\",CHAR(160),GC$1))-FIND(CHAR(160),SUBSTITUTE($U238,\"{\",CHAR(160),GC$1))+1),\"\")","v":""},{"$f":"IFERROR(MID($U238,FIND(CHAR(160),SUBSTITUTE($U238,\"{\",CHAR(160),GD$1)),FIND(CHAR(160),SUBSTITUTE($U238,\"}\",CHAR(160),GD$1))-FIND(CHAR(160),SUBSTITUTE($U238,\"{\",CHAR(160),GD$1))+1),\"\")","v":""},{"$f":"IFERROR(MID($U238,FIND(CHAR(160),SUBSTITUTE($U238,\"{\",CHAR(160),GE$1)),FIND(CHAR(160),SUBSTITUTE($U238,\"}\",CHAR(160),GE$1))-FIND(CHAR(160),SUBSTITUTE($U238,\"{\",CHAR(160),GE$1))+1),\"\")","v":"{Measure:Quantity}"},{"$f":"IFERROR(MID($U238,FIND(CHAR(160),SUBSTITUTE($U238,\"{\",CHAR(160),GF$1)),FIND(CHAR(160),SUBSTITUTE($U238,\"}\",CHAR(160),GF$1))-FIND(CHAR(160),SUBSTITUTE($U238,\"{\",CHAR(160),GF$1))+1),\"\")","v":"{Package Size}"},{"$f":"IFERROR(MID($V238,FIND(CHAR(160),SUBSTITUTE($V238,\"{\",CHAR(160),GG$1)),FIND(CHAR(160),SUBSTITUTE($V238,\"}\",CHAR(160),GG$1))-FIND(CHAR(160),SUBSTITUTE($V238,\"{\",CHAR(160),GG$1))+1),\"\")","v":""},{"$f":"IFERROR(MID($V238,FIND(CHAR(160),SUBSTITUTE($V238,\"{\",CHAR(160),GH$1)),FIND(CHAR(160),SUBSTITUTE($V238,\"}\",CHAR(160),GH$1))-FIND(CHAR(160),SUBSTITUTE($V238,\"{\",CHAR(160),GH$1))+1),\"\")","v":""},{"$f":"IFERROR(MID($V238,FIND(CHAR(160),SUBSTITUTE($V238,\"{\",CHAR(160),GI$1)),FIND(CHAR(160),SUBSTITUTE($V238,\"}\",CHAR(160),GI$1))-FIND(CHAR(160),SUBSTITUTE($V238,\"{\",CHAR(160),GI$1))+1),\"\")","v":""},{"$f":"IFERROR(MID($V238,FIND(CHAR(160),SUBSTITUTE($V238,\"{\",CHAR(160),GJ$1)),FIND(CHAR(160),SUBSTITUTE($V238,\"}\",CHAR(160),GJ$1))-FIND(CHAR(160),SUBSTITUTE($V238,\"{\",CHAR(160),GJ$1))+1),\"\")","v":""},{"$f":"IFERROR(MID($V238,FIND(CHAR(160),SUBSTITUTE($V238,\"{\",CHAR(160),GK$1)),FIND(CHAR(160),SUBSTITUTE($V238,\"}\",CHAR(160),GK$1))-FIND(CHAR(160),SUBSTITUTE($V238,\"{\",CHAR(160),GK$1))+1),\"\")","v":""},{"$f":"IFERROR(MID($V238,FIND(CHAR(160),SUBSTITUTE($V238,\"{\",CHAR(160),GL$1)),FIND(CHAR(160),SUBSTITUTE($V238,\"}\",CHAR(160),GL$1))-FIND(CHAR(160),SUBSTITUTE($V238,\"{\",CHAR(160),GL$1))+1),\"\")","v":""},{"$f":"IFERROR(MID($V238,FIND(CHAR(160),SUBSTITUTE($V238,\"{\",CHAR(160),GM$1)),FIND(CHAR(160),SUBSTITUTE($V238,\"}\",CHAR(160),GM$1))-FIND(CHAR(160),SUBSTITUTE($V238,\"{\",CHAR(160),GM$1))+1),\"\")","v":""},{"$f":"IFERROR(MID($V238,FIND(CHAR(160),SUBSTITUTE($V238,\"{\",CHAR(160),GN$1)),FIND(CHAR(160),SUBSTITUTE($V238,\"}\",CHAR(160),GN$1))-FIND(CHAR(160),SUBSTITUTE($V238,\"{\",CHAR(160),GN$1))+1),\"\")","v":""},{"$f":"IFERROR(MID($V238,FIND(CHAR(160),SUBSTITUTE($V238,\"{\",CHAR(160),GO$1)),FIND(CHAR(160),SUBSTITUTE($V238,\"}\",CHAR(160),GO$1))-FIND(CHAR(160),SUBSTITUTE($V238,\"{\",CHAR(160),GO$1))+1),\"\")","v":"{Measure:Quantity}"},{"$f":"IFERROR(MID($V238,FIND(CHAR(160),SUBSTITUTE($V238,\"{\",CHAR(160),GP$1)),FIND(CHAR(160),SUBSTITUTE($V238,\"}\",CHAR(160),GP$1))-FIND(CHAR(160),SUBSTITUTE($V238,\"{\",CHAR(160),GP$1))+1),\"\")","v":"{Package Size}"},{"$f":"IFERROR(MID($W238,FIND(CHAR(160),SUBSTITUTE($W238,\"{\",CHAR(160),GQ$1)),FIND(CHAR(160),SUBSTITUTE($W238,\"}\",CHAR(160),GQ$1))-FIND(CHAR(160),SUBSTITUTE($W238,\"{\",CHAR(160),GQ$1))+1),\"\")","v":""},{"$f":"IFERROR(MID($W238,FIND(CHAR(160),SUBSTITUTE($W238,\"{\",CHAR(160),GR$1)),FIND(CHAR(160),SUBSTITUTE($W238,\"}\",CHAR(160),GR$1))-FIND(CHAR(160),SUBSTITUTE($W238,\"{\",CHAR(160),GR$1))+1),\"\")","v":""},{"$f":"IFERROR(MID($W238,FIND(CHAR(160),SUBSTITUTE($W238,\"{\",CHAR(160),GS$1)),FIND(CHAR(160),SUBSTITUTE($W238,\"}\",CHAR(160),GS$1))-FIND(CHAR(160),SUBSTITUTE($W238,\"{\",CHAR(160),GS$1))+1),\"\")","v":""},{"$f":"IFERROR(MID($W238,FIND(CHAR(160),SUBSTITUTE($W238,\"{\",CHAR(160),GT$1)),FIND(CHAR(160),SUBSTITUTE($W238,\"}\",CHAR(160),GT$1))-FIND(CHAR(160),SUBSTITUTE($W238,\"{\",CHAR(160),GT$1))+1),\"\")","v":""},{"$f":"IFERROR(MID($W238,FIND(CHAR(160),SUBSTITUTE($W238,\"{\",CHAR(160),GU$1)),FIND(CHAR(160),SUBSTITUTE($W238,\"}\",CHAR(160),GU$1))-FIND(CHAR(160),SUBSTITUTE($W238,\"{\",CHAR(160),GU$1))+1),\"\")","v":""},{"$f":"IFERROR(MID($W238,FIND(CHAR(160),SUBSTITUTE($W238,\"{\",CHAR(160),GV$1)),FIND(CHAR(160),SUBSTITUTE($W238,\"}\",CHAR(160),GV$1))-FIND(CHAR(160),SUBSTITUTE($W238,\"{\",CHAR(160),GV$1))+1),\"\")","v":""},{"$f":"IFERROR(MID($W238,FIND(CHAR(160),SUBSTITUTE($W238,\"{\",CHAR(160),GW$1)),FIND(CHAR(160),SUBSTITUTE($W238,\"}\",CHAR(160),GW$1))-FIND(CHAR(160),SUBSTITUTE($W238,\"{\",CHAR(160),GW$1))+1),\"\")","v":""},{"$f":"IFERROR(MID($W238,FIND(CHAR(160),SUBSTITUTE($W238,\"{\",CHAR(160),GX$1)),FIND(CHAR(160),SUBSTITUTE($W238,\"}\",CHAR(160),GX$1))-FIND(CHAR(160),SUBSTITUTE($W238,\"{\",CHAR(160),GX$1))+1),\"\")","v":""},{"$f":"IFERROR(MID($W238,FIND(CHAR(160),SUBSTITUTE($W238,\"{\",CHAR(160),GY$1)),FIND(CHAR(160),SUBSTITUTE($W238,\"}\",CHAR(160),GY$1))-FIND(CHAR(160),SUBSTITUTE($W238,\"{\",CHAR(160),GY$1))+1),\"\")","v":"{Measure:Quantity}"},{"$f":"IFERROR(MID($W238,FIND(CHAR(160),SUBSTITUTE($W238,\"{\",CHAR(160),GZ$1)),FIND(CHAR(160),SUBSTITUTE($W238,\"}\",CHAR(160),GZ$1))-FIND(CHAR(160),SUBSTITUTE($W238,\"{\",CHAR(160),GZ$1))+1),\"\")","v":"{Package Size}"},{"$f":"IFERROR(MID($X238,FIND(CHAR(160),SUBSTITUTE($X238,\"{\",CHAR(160),HA$1)),FIND(CHAR(160),SUBSTITUTE($X238,\"}\",CHAR(160),HA$1))-FIND(CHAR(160),SUBSTITUTE($X238,\"{\",CHAR(160),HA$1))+1),\"\")","v":""},{"$f":"IFERROR(MID($X238,FIND(CHAR(160),SUBSTITUTE($X238,\"{\",CHAR(160),HB$1)),FIND(CHAR(160),SUBSTITUTE($X238,\"}\",CHAR(160),HB$1))-FIND(CHAR(160),SUBSTITUTE($X238,\"{\",CHAR(160),HB$1))+1),\"\")","v":""},{"$f":"IFERROR(MID($X238,FIND(CHAR(160),SUBSTITUTE($X238,\"{\",CHAR(160),HC$1)),FIND(CHAR(160),SUBSTITUTE($X238,\"}\",CHAR(160),HC$1))-FIND(CHAR(160),SUBSTITUTE($X238,\"{\",CHAR(160),HC$1))+1),\"\")","v":""},{"$f":"IFERROR(MID($X238,FIND(CHAR(160),SUBSTITUTE($X238,\"{\",CHAR(160),HD$1)),FIND(CHAR(160),SUBSTITUTE($X238,\"}\",CHAR(160),HD$1))-FIND(CHAR(160),SUBSTITUTE($X238,\"{\",CHAR(160),HD$1))+1),\"\")","v":""},{"$f":"IFERROR(MID($X238,FIND(CHAR(160),SUBSTITUTE($X238,\"{\",CHAR(160),HE$1)),FIND(CHAR(160),SUBSTITUTE($X238,\"}\",CHAR(160),HE$1))-FIND(CHAR(160),SUBSTITUTE($X238,\"{\",CHAR(160),HE$1))+1),\"\")","v":""},{"$f":"IFERROR(MID($X238,FIND(CHAR(160),SUBSTITUTE($X238,\"{\",CHAR(160),HF$1)),FIND(CHAR(160),SUBSTITUTE($X238,\"}\",CHAR(160),HF$1))-FIND(CHAR(160),SUBSTITUTE($X238,\"{\",CHAR(160),HF$1))+1),\"\")","v":""},{"$f":"IFERROR(MID($X238,FIND(CHAR(160),SUBSTITUTE($X238,\"{\",CHAR(160),HG$1)),FIND(CHAR(160),SUBSTITUTE($X238,\"}\",CHAR(160),HG$1))-FIND(CHAR(160),SUBSTITUTE($X238,\"{\",CHAR(160),HG$1))+1),\"\")","v":""},{"$f":"IFERROR(MID($X238,FIND(CHAR(160),SUBSTITUTE($X238,\"{\",CHAR(160),HH$1)),FIND(CHAR(160),SUBSTITUTE($X238,\"}\",CHAR(160),HH$1))-FIND(CHAR(160),SUBSTITUTE($X238,\"{\",CHAR(160),HH$1))+1),\"\")","v":""},{"$f":"IFERROR(MID($X238,FIND(CHAR(160),SUBSTITUTE($X238,\"{\",CHAR(160),HI$1)),FIND(CHAR(160),SUBSTITUTE($X238,\"}\",CHAR(160),HI$1))-FIND(CHAR(160),SUBSTITUTE($X238,\"{\",CHAR(160),HI$1))+1),\"\")","v":"{Measure:Quantity}"},{"$f":"IFERROR(MID($X238,FIND(CHAR(160),SUBSTITUTE($X238,\"{\",CHAR(160),HJ$1)),FIND(CHAR(160),SUBSTITUTE($X238,\"}\",CHAR(160),HJ$1))-FIND(CHAR(160),SUBSTITUTE($X238,\"{\",CHAR(160),HJ$1))+1),\"\")","v":"{Package Size}"},{"$f":"IFERROR(MID($Y238,FIND(CHAR(160),SUBSTITUTE($Y238,\"{\",CHAR(160),HK$1)),FIND(CHAR(160),SUBSTITUTE($Y238,\"}\",CHAR(160),HK$1))-FIND(CHAR(160),SUBSTITUTE($Y238,\"{\",CHAR(160),HK$1))+1),\"\")","v":""},{"$f":"IFERROR(MID($Y238,FIND(CHAR(160),SUBSTITUTE($Y238,\"{\",CHAR(160),HL$1)),FIND(CHAR(160),SUBSTITUTE($Y238,\"}\",CHAR(160),HL$1))-FIND(CHAR(160),SUBSTITUTE($Y238,\"{\",CHAR(160),HL$1))+1),\"\")","v":""},{"$f":"IFERROR(MID($Y238,FIND(CHAR(160),SUBSTITUTE($Y238,\"{\",CHAR(160),HM$1)),FIND(CHAR(160),SUBSTITUTE($Y238,\"}\",CHAR(160),HM$1))-FIND(CHAR(160),SUBSTITUTE($Y238,\"{\",CHAR(160),HM$1))+1),\"\")","v":""},{"$f":"IFERROR(MID($Y238,FIND(CHAR(160),SUBSTITUTE($Y238,\"{\",CHAR(160),HN$1)),FIND(CHAR(160),SUBSTITUTE($Y238,\"}\",CHAR(160),HN$1))-FIND(CHAR(160),SUBSTITUTE($Y238,\"{\",CHAR(160),HN$1))+1),\"\")","v":""},{"$f":"IFERROR(MID($Y238,FIND(CHAR(160),SUBSTITUTE($Y238,\"{\",CHAR(160),HO$1)),FIND(CHAR(160),SUBSTITUTE($Y238,\"}\",CHAR(160),HO$1))-FIND(CHAR(160),SUBSTITUTE($Y238,\"{\",CHAR(160),HO$1))+1),\"\")","v":""},{"$f":"IFERROR(MID($Y238,FIND(CHAR(160),SUBSTITUTE($Y238,\"{\",CHAR(160),HP$1)),FIND(CHAR(160),SUBSTITUTE($Y238,\"}\",CHAR(160),HP$1))-FIND(CHAR(160),SUBSTITUTE($Y238,\"{\",CHAR(160),HP$1))+1),\"\")","v":""},{"$f":"IFERROR(MID($Y238,FIND(CHAR(160),SUBSTITUTE($Y238,\"{\",CHAR(160),HQ$1)),FIND(CHAR(160),SUBSTITUTE($Y238,\"}\",CHAR(160),HQ$1))-FIND(CHAR(160),SUBSTITUTE($Y238,\"{\",CHAR(160),HQ$1))+1),\"\")","v":""},{"$f":"IFERROR(MID($Y238,FIND(CHAR(160),SUBSTITUTE($Y238,\"{\",CHAR(160),HR$1)),FIND(CHAR(160),SUBSTITUTE($Y238,\"}\",CHAR(160),HR$1))-FIND(CHAR(160),SUBSTITUTE($Y238,\"{\",CHAR(160),HR$1))+1),\"\")","v":""},{"$f":"IFERROR(MID($Y238,FIND(CHAR(160),SUBSTITUTE($Y238,\"{\",CHAR(160),HS$1)),FIND(CHAR(160),SUBSTITUTE($Y238,\"}\",CHAR(160),HS$1))-FIND(CHAR(160),SUBSTITUTE($Y238,\"{\",CHAR(160),HS$1))+1),\"\")","v":"{Measure:Quantity}"},{"$f":"IFERROR(MID($Y238,FIND(CHAR(160),SUBSTITUTE($Y238,\"{\",CHAR(160),HT$1)),FIND(CHAR(160),SUBSTITUTE($Y238,\"}\",CHAR(160),HT$1))-FIND(CHAR(160),SUBSTITUTE($Y238,\"{\",CHAR(160),HT$1))+1),\"\")","v":"{Package Size}"},{"$f":"IFERROR(MID($Z238,FIND(CHAR(160),SUBSTITUTE($Z238,\"{\",CHAR(160),HU$1)),FIND(CHAR(160),SUBSTITUTE($Z238,\"}\",CHAR(160),HU$1))-FIND(CHAR(160),SUBSTITUTE($Z238,\"{\",CHAR(160),HU$1))+1),\"\")","v":""},{"$f":"IFERROR(MID($Z238,FIND(CHAR(160),SUBSTITUTE($Z238,\"{\",CHAR(160),HV$1)),FIND(CHAR(160),SUBSTITUTE($Z238,\"}\",CHAR(160),HV$1))-FIND(CHAR(160),SUBSTITUTE($Z238,\"{\",CHAR(160),HV$1))+1),\"\")","v":""},{"$f":"IFERROR(MID($Z238,FIND(CHAR(160),SUBSTITUTE($Z238,\"{\",CHAR(160),HW$1)),FIND(CHAR(160),SUBSTITUTE($Z238,\"}\",CHAR(160),HW$1))-FIND(CHAR(160),SUBSTITUTE($Z238,\"{\",CHAR(160),HW$1))+1),\"\")","v":""},{"$f":"IFERROR(MID($Z238,FIND(CHAR(160),SUBSTITUTE($Z238,\"{\",CHAR(160),HX$1)),FIND(CHAR(160),SUBSTITUTE($Z238,\"}\",CHAR(160),HX$1))-FIND(CHAR(160),SUBSTITUTE($Z238,\"{\",CHAR(160),HX$1))+1),\"\")","v":""},{"$f":"IFERROR(MID($Z238,FIND(CHAR(160),SUBSTITUTE($Z238,\"{\",CHAR(160),HY$1)),FIND(CHAR(160),SUBSTITUTE($Z238,\"}\",CHAR(160),HY$1))-FIND(CHAR(160),SUBSTITUTE($Z238,\"{\",CHAR(160),HY$1))+1),\"\")","v":""},{"$f":"IFERROR(MID($Z238,FIND(CHAR(160),SUBSTITUTE($Z238,\"{\",CHAR(160),HZ$1)),FIND(CHAR(160),SUBSTITUTE($Z238,\"}\",CHAR(160),HZ$1))-FIND(CHAR(160),SUBSTITUTE($Z238,\"{\",CHAR(160),HZ$1))+1),\"\")","v":""},{"$f":"IFERROR(MID($Z238,FIND(CHAR(160),SUBSTITUTE($Z238,\"{\",CHAR(160),IA$1)),FIND(CHAR(160),SUBSTITUTE($Z238,\"}\",CHAR(160),IA$1))-FIND(CHAR(160),SUBSTITUTE($Z238,\"{\",CHAR(160),IA$1))+1),\"\")","v":""},{"$f":"IFERROR(MID($Z238,FIND(CHAR(160),SUBSTITUTE($Z238,\"{\",CHAR(160),IB$1)),FIND(CHAR(160),SUBSTITUTE($Z238,\"}\",CHAR(160),IB$1))-FIND(CHAR(160),SUBSTITUTE($Z238,\"{\",CHAR(160),IB$1))+1),\"\")","v":""},{"$f":"IFERROR(MID($Z238,FIND(CHAR(160),SUBSTITUTE($Z238,\"{\",CHAR(160),IC$1)),FIND(CHAR(160),SUBSTITUTE($Z238,\"}\",CHAR(160),IC$1))-FIND(CHAR(160),SUBSTITUTE($Z238,\"{\",CHAR(160),IC$1))+1),\"\")","v":"{Measure:Quantity}"},{"$f":"IFERROR(MID($Z238,FIND(CHAR(160),SUBSTITUTE($Z238,\"{\",CHAR(160),ID$1)),FIND(CHAR(160),SUBSTITUTE($Z238,\"}\",CHAR(160),ID$1))-FIND(CHAR(160),SUBSTITUTE($Z238,\"{\",CHAR(160),ID$1))+1),\"\")","v":"{Package Size}"},{"$f":"IFERROR(MID($AA238,FIND(CHAR(160),SUBSTITUTE($AA238,\"{\",CHAR(160),IE$1)),FIND(CHAR(160),SUBSTITUTE($AA238,\"}\",CHAR(160),IE$1))-FIND(CHAR(160),SUBSTITUTE($AA238,\"{\",CHAR(160),IE$1))+1),\"\")","v":""},{"$f":"IFERROR(MID($AA238,FIND(CHAR(160),SUBSTITUTE($AA238,\"{\",CHAR(160),IF$1)),FIND(CHAR(160),SUBSTITUTE($AA238,\"}\",CHAR(160),IF$1))-FIND(CHAR(160),SUBSTITUTE($AA238,\"{\",CHAR(160),IF$1))+1),\"\")","v":""},{"$f":"IFERROR(MID($AA238,FIND(CHAR(160),SUBSTITUTE($AA238,\"{\",CHAR(160),IG$1)),FIND(CHAR(160),SUBSTITUTE($AA238,\"}\",CHAR(160),IG$1))-FIND(CHAR(160),SUBSTITUTE($AA238,\"{\",CHAR(160),IG$1))+1),\"\")","v":""},{"$f":"IFERROR(MID($AA238,FIND(CHAR(160),SUBSTITUTE($AA238,\"{\",CHAR(160),IH$1)),FIND(CHAR(160),SUBSTITUTE($AA238,\"}\",CHAR(160),IH$1))-FIND(CHAR(160),SUBSTITUTE($AA238,\"{\",CHAR(160),IH$1))+1),\"\")","v":""},{"$f":"IFERROR(MID($AA238,FIND(CHAR(160),SUBSTITUTE($AA238,\"{\",CHAR(160),II$1)),FIND(CHAR(160),SUBSTITUTE($AA238,\"}\",CHAR(160),II$1))-FIND(CHAR(160),SUBSTITUTE($AA238,\"{\",CHAR(160),II$1))+1),\"\")","v":""},{"$f":"IFERROR(MID($AA238,FIND(CHAR(160),SUBSTITUTE($AA238,\"{\",CHAR(160),IJ$1)),FIND(CHAR(160),SUBSTITUTE($AA238,\"}\",CHAR(160),IJ$1))-FIND(CHAR(160),SUBSTITUTE($AA238,\"{\",CHAR(160),IJ$1))+1),\"\")","v":""},{"$f":"IFERROR(MID($AA238,FIND(CHAR(160),SUBSTITUTE($AA238,\"{\",CHAR(160),IK$1)),FIND(CHAR(160),SUBSTITUTE($AA238,\"}\",CHAR(160),IK$1))-FIND(CHAR(160),SUBSTITUTE($AA238,\"{\",CHAR(160),IK$1))+1),\"\")","v":""},{"$f":"IFERROR(MID($AA238,FIND(CHAR(160),SUBSTITUTE($AA238,\"{\",CHAR(160),IL$1)),FIND(CHAR(160),SUBSTITUTE($AA238,\"}\",CHAR(160),IL$1))-FIND(CHAR(160),SUBSTITUTE($AA238,\"{\",CHAR(160),IL$1))+1),\"\")","v":""},{"$f":"IFERROR(MID($AA238,FIND(CHAR(160),SUBSTITUTE($AA238,\"{\",CHAR(160),IM$1)),FIND(CHAR(160),SUBSTITUTE($AA238,\"}\",CHAR(160),IM$1))-FIND(CHAR(160),SUBSTITUTE($AA238,\"{\",CHAR(160),IM$1))+1),\"\")","v":"{Measure:Quantity}"},{"$f":"IFERROR(MID($AA238,FIND(CHAR(160),SUBSTITUTE($AA238,\"{\",CHAR(160),IN$1)),FIND(CHAR(160),SUBSTITUTE($AA238,\"}\",CHAR(160),IN$1))-FIND(CHAR(160),SUBSTITUTE($AA238,\"{\",CHAR(160),IN$1))+1),\"\")","v":"{Package Size}"},{"$f":"IFERROR(MID($AB238,FIND(CHAR(160),SUBSTITUTE($AB238,\"{\",CHAR(160),IO$1)),FIND(CHAR(160),SUBSTITUTE($AB238,\"}\",CHAR(160),IO$1))-FIND(CHAR(160),SUBSTITUTE($AB238,\"{\",CHAR(160),IO$1))+1),\"\")","v":""},{"$f":"IFERROR(MID($AB238,FIND(CHAR(160),SUBSTITUTE($AB238,\"{\",CHAR(160),IP$1)),FIND(CHAR(160),SUBSTITUTE($AB238,\"}\",CHAR(160),IP$1))-FIND(CHAR(160),SUBSTITUTE($AB238,\"{\",CHAR(160),IP$1))+1),\"\")","v":""},{"$f":"IFERROR(MID($AB238,FIND(CHAR(160),SUBSTITUTE($AB238,\"{\",CHAR(160),IQ$1)),FIND(CHAR(160),SUBSTITUTE($AB238,\"}\",CHAR(160),IQ$1))-FIND(CHAR(160),SUBSTITUTE($AB238,\"{\",CHAR(160),IQ$1))+1),\"\")","v":""},{"$f":"IFERROR(MID($AB238,FIND(CHAR(160),SUBSTITUTE($AB238,\"{\",CHAR(160),IR$1)),FIND(CHAR(160),SUBSTITUTE($AB238,\"}\",CHAR(160),IR$1))-FIND(CHAR(160),SUBSTITUTE($AB238,\"{\",CHAR(160),IR$1))+1),\"\")","v":""},{"$f":"IFERROR(MID($AB238,FIND(CHAR(160),SUBSTITUTE($AB238,\"{\",CHAR(160),IS$1)),FIND(CHAR(160),SUBSTITUTE($AB238,\"}\",CHAR(160),IS$1))-FIND(CHAR(160),SUBSTITUTE($AB238,\"{\",CHAR(160),IS$1))+1),\"\")","v":""},{"$f":"IFERROR(MID($AB238,FIND(CHAR(160),SUBSTITUTE($AB238,\"{\",CHAR(160),IT$1)),FIND(CHAR(160),SUBSTITUTE($AB238,\"}\",CHAR(160),IT$1))-FIND(CHAR(160),SUBSTITUTE($AB238,\"{\",CHAR(160),IT$1))+1),\"\")","v":""},{"$f":"IFERROR(MID($AB238,FIND(CHAR(160),SUBSTITUTE($AB238,\"{\",CHAR(160),IU$1)),FIND(CHAR(160),SUBSTITUTE($AB238,\"}\",CHAR(160),IU$1))-FIND(CHAR(160),SUBSTITUTE($AB238,\"{\",CHAR(160),IU$1))+1),\"\")","v":""},{"$f":"IFERROR(MID($AB238,FIND(CHAR(160),SUBSTITUTE($AB238,\"{\",CHAR(160),IV$1)),FIND(CHAR(160),SUBSTITUTE($AB238,\"}\",CHAR(160),IV$1))-FIND(CHAR(160),SUBSTITUTE($AB238,\"{\",CHAR(160),IV$1))+1),\"\")","v":""},{"$f":"IFERROR(MID($AB238,FIND(CHAR(160),SUBSTITUTE($AB238,\"{\",CHAR(160),IW$1)),FIND(CHAR(160),SUBSTITUTE($AB238,\"}\",CHAR(160),IW$1))-FIND(CHAR(160),SUBSTITUTE($AB238,\"{\",CHAR(160),IW$1))+1),\"\")","v":""},{"$f":"IFERROR(MID($AB238,FIND(CHAR(160),SUBSTITUTE($AB238,\"{\",CHAR(160),IX$1)),FIND(CHAR(160),SUBSTITUTE($AB238,\"}\",CHAR(160),IX$1))-FIND(CHAR(160),SUBSTITUTE($AB238,\"{\",CHAR(160),IX$1))+1),\"\")","v":""},null,{"$f":"10-COUNTIF(DU238:ED238,\"\")","v":4}]
["Retail Lighting","LED Standard Bulb Long Life","LEDSTDLL","2021-07-01","2022-06-30","Calculated","{Measure:Quantity}*{Package Size}*1.09",0,"Calculated","{Measure:Quantity}*({Rebate per Package}+{Marketing Fee})",0,"2021-07-01","2022-06-30","Calculated","{Measure:Quantity}*{Package Size}*30",null,null,"{Measure:Quantity}*{Package Size}*1.062*0.033",null,null,"{Measure:Quantity}*{Package Size}*0.006","{Measure:Quantity}*{Package Size}*0.004","{Measure:Quantity}*{Package Size}*10*-0.004","{Measure:Quantity}*{Package Size}*-0.003","{Measure:Quantity}*{Package Size}*-0.025","{Measure:Quantity}*{Package Size}*-0.001","{Measure:Quantity}*{Package Size}*-0.005",null,"2021-07-01","2022-06-30",3,0.185,0.109,0.37,0.31,0.17100000000000001,0.14899999999999999,0.99,1,1,0.76300000000000001,0,null,{"$f":"DU239","v":"{Measure:Quantity}"},1,{"$f":"DV239","v":"{Package Size}"},1,{"$f":"DW239","v":"{Rebate per Package}"},{"$f":"CO239","v":1.0900000000000001},{"$f":"DX239","v":"{Marketing Fee}"},1,{"$f":"DY239","v":""},null,{"$f":"DZ239","v":""},null,{"$f":"EA239","v":""},null,{"$f":"EB239","v":""},null,{"$f":"EC239","v":""},null,{"$f":"ED239","v":""},null,{"$f":"AS239*AU239*30","v":30},0,0,{"$f":"AS239*AU239*1.062*0.033","v":3.5046000000000001E-2},0,0,{"$f":"AS239*AU239*0.006","v":6.0000000000000001E-3},{"$f":"AS239*AU239*0.004","v":4.0000000000000001E-3},{"$f":"AS239*AU239*10*-0.004","v":-0.04},{"$f":"AS239*AU239*-0.003","v":-3.0000000000000001E-3},{"$f":"AS239*AU239*-0.025","v":-2.5000000000000001E-2},{"$f":"AS239*AU239*-0.001","v":-1E-3},{"$f":"AS239*AU239*-0.005","v":-5.0000000000000001E-3},0,null,"Res","Default DR",{"$f":"Benefits(BL239,BR239,BS239,BT239,BU239,BV239,BW239,BX239,BY239,BZ239,AE239,AH239,AI239,AJ239,AK239,AL239,AM239,AN239,AO239,AP239,CA239,CB239)","v":10.380598801546208},7.000750195579899,-0.20566837276351041,-2.4060544536949839,-0.10981721743903769,-0.40197552918727009,-0.2635954876897455,0,0,{"$f":"SUMPRODUCT(CC239:CK239,--(CC239:CK239>0))","v":17.381348997126107},{"$f":"-SUMPRODUCT(CC239:CK239,--(CC239:CK239<0))","v":3.3871110607745476},null,{"$f":"AS239*AU239*1.09","v":1.0900000000000001},null,null,{"$f":"CM239+CO239","v":4.4771110607745479},{"$f":"IF(NetOrGross=\"Net\",(1-AO239+AP239),1)","v":1},{"$f":"(SUMPRODUCT(CC239:CJ239,--(CC239:CJ239>0))+CN239)*CS239/((-SUMPRODUCT(CC239:CJ239,--(CC239:CJ239<0))+MAX(CO239,CV239)+CP239+CQ239)*CS239+IF(FRIncentives=\"Yes\",CV239*(1-CS239),0))","v":3.1734519903396152},1,{"$f":"AS239*(AW239+AY239)","v":2.09},1,"Electric","y",null,{"$f":"IF(F239=\"Manual Entry\",\"Manual\",IF(G239=\"\",0,\"X=\"&SUBSTITUTE(SUBSTITUTE(SUBSTITUTE(SUBSTITUTE(SUBSTITUTE(SUBSTITUTE(SUBSTITUTE(SUBSTITUTE(SUBSTITUTE(SUBSTITUTE(SUBSTITUTE(SUBSTITUTE(G239,$ED239,$ED$2&ROW($ED239)),$EC239,$EC$2&ROW($EC239)),$EB239,$EB$2&ROW($EB239)),$EA239,$EA$2&ROW($EA239)),$DZ239,$DZ$2&ROW($DZ239)),$DY239,$DY$2&ROW($DY239)),$DX239,$DX$2&ROW($DX239)),$DW239,$DW$2&ROW($DW239)),$DV239,$DV$2&ROW($DV239)),$DU239,$DU$2&ROW($DU239)),$DT239,$DT$2&ROW($DT239)),$DS239,$DS$2&ROW($DS239))))","v":"X=AS239*AU239*1.09"},{"$f":"IF(I239=\"Manual Entry\",\"Manual\",IF(J239=\"\",0,\"X=\"&SUBSTITUTE(SUBSTITUTE(SUBSTITUTE(SUBSTITUTE(SUBSTITUTE(SUBSTITUTE(SUBSTITUTE(SUBSTITUTE(SUBSTITUTE(SUBSTITUTE(SUBSTITUTE(SUBSTITUTE(J239,$ED239,$ED$2&ROW($ED239)),$EC239,$EC$2&ROW($EC239)),$EB239,$EB$2&ROW($EB239)),$EA239,$EA$2&ROW($EA239)),$DZ239,$DZ$2&ROW($DZ239)),$DY239,$DY$2&ROW($DY239)),$DX239,$DX$2&ROW($DX239)),$DW239,$DW$2&ROW($DW239)),$DV239,$DV$2&ROW($DV239)),$DU239,$DU$2&ROW($DU239)),$DT239,$DT$2&ROW($DT239)),$DS239,$DS$2&ROW($DS239))))","v":"X=AS239*(AW239+AY239)"},{"$f":"IF(O239=\"\",0,\"X=\"&SUBSTITUTE(SUBSTITUTE(SUBSTITUTE(SUBSTITUTE(SUBSTITUTE(SUBSTITUTE(SUBSTITUTE(SUBSTITUTE(SUBSTITUTE(SUBSTITUTE(SUBSTITUTE(SUBSTITUTE(O239,$ED239,$ED$2&ROW($ED239)),$EC239,$EC$2&ROW($EC239)),$EB239,$EB$2&ROW($EB239)),$EA239,$EA$2&ROW($EA239)),$DZ239,$DZ$2&ROW($DZ239)),$DY239,$DY$2&ROW($DY239)),$DX239,$DX$2&ROW($DX239)),$DW239,$DW$2&ROW($DW239)),$DV239,$DV$2&ROW($DV239)),$DU239,$DU$2&ROW($DU239)),$DT239,$DT$2&ROW($DT239)),$DS239,$DS$2&ROW($DS239)))","v":"X=AS239*AU239*30"},{"$f":"IF(P239=\"\",0,\"X=\"&SUBSTITUTE(SUBSTITUTE(SUBSTITUTE(SUBSTITUTE(SUBSTITUTE(SUBSTITUTE(SUBSTITUTE(SUBSTITUTE(SUBSTITUTE(SUBSTITUTE(SUBSTITUTE(SUBSTITUTE(P239,$ED239,$ED$2&ROW($ED239)),$EC239,$EC$2&ROW($EC239)),$EB239,$EB$2&ROW($EB239)),$EA239,$EA$2&ROW($EA239)),$DZ239,$DZ$2&ROW($DZ239)),$DY239,$DY$2&ROW($DY239)),$DX239,$DX$2&ROW($DX239)),$DW239,$DW$2&ROW($DW239)),$DV239,$DV$2&ROW($DV239)),$DU239,$DU$2&ROW($DU239)),$DT239,$DT$2&ROW($DT239)),$DS239,$DS$2&ROW($DS239)))","v":0},{"$f":"IF(Q239=\"\",0,\"X=\"&SUBSTITUTE(SUBSTITUTE(SUBSTITUTE(SUBSTITUTE(SUBSTITUTE(SUBSTITUTE(SUBSTITUTE(SUBSTITUTE(SUBSTITUTE(SUBSTITUTE(SUBSTITUTE(SUBSTITUTE(Q239,$ED239,$ED$2&ROW($ED239)),$EC239,$EC$2&ROW($EC239)),$EB239,$EB$2&ROW($EB239)),$EA239,$EA$2&ROW($EA239)),$DZ239,$DZ$2&ROW($DZ239)),$DY239,$DY$2&ROW($DY239)),$DX239,$DX$2&ROW($DX239)),$DW239,$DW$2&ROW($DW239)),$DV239,$DV$2&ROW($DV239)),$DU239,$DU$2&ROW($DU239)),$DT239,$DT$2&ROW($DT239)),$DS239,$DS$2&ROW($DS239)))","v":0},{"$f":"IF(R239=\"\",0,\"X=\"&SUBSTITUTE(SUBSTITUTE(SUBSTITUTE(SUBSTITUTE(SUBSTITUTE(SUBSTITUTE(SUBSTITUTE(SUBSTITUTE(SUBSTITUTE(SUBSTITUTE(SUBSTITUTE(SUBSTITUTE(R239,$ED239,$ED$2&ROW($ED239)),$EC239,$EC$2&ROW($EC239)),$EB239,$EB$2&ROW($EB239)),$EA239,$EA$2&ROW($EA239)),$DZ239,$DZ$2&ROW($DZ239)),$DY239,$DY$2&ROW($DY239)),$DX239,$DX$2&ROW($DX239)),$DW239,$DW$2&ROW($DW239)),$DV239,$DV$2&ROW($DV239)),$DU239,$DU$2&ROW($DU239)),$DT239,$DT$2&ROW($DT239)),$DS239,$DS$2&ROW($DS239)))","v":"X=AS239*AU239*1.062*0.033"},{"$f":"IF(S239=\"\",0,\"X=\"&SUBSTITUTE(SUBSTITUTE(SUBSTITUTE(SUBSTITUTE(SUBSTITUTE(SUBSTITUTE(SUBSTITUTE(SUBSTITUTE(SUBSTITUTE(SUBSTITUTE(SUBSTITUTE(SUBSTITUTE(S239,$ED239,$ED$2&ROW($ED239)),$EC239,$EC$2&ROW($EC239)),$EB239,$EB$2&ROW($EB239)),$EA239,$EA$2&ROW($EA239)),$DZ239,$DZ$2&ROW($DZ239)),$DY239,$DY$2&ROW($DY239)),$DX239,$DX$2&ROW($DX239)),$DW239,$DW$2&ROW($DW239)),$DV239,$DV$2&ROW($DV239)),$DU239,$DU$2&ROW($DU239)),$DT239,$DT$2&ROW($DT239)),$DS239,$DS$2&ROW($DS239)))","v":0},{"$f":"IF(T239=\"\",0,\"X=\"&SUBSTITUTE(SUBSTITUTE(SUBSTITUTE(SUBSTITUTE(SUBSTITUTE(SUBSTITUTE(SUBSTITUTE(SUBSTITUTE(SUBSTITUTE(SUBSTITUTE(SUBSTITUTE(SUBSTITUTE(T239,$ED239,$ED$2&ROW($ED239)),$EC239,$EC$2&ROW($EC239)),$EB239,$EB$2&ROW($EB239)),$EA239,$EA$2&ROW($EA239)),$DZ239,$DZ$2&ROW($DZ239)),$DY239,$DY$2&ROW($DY239)),$DX239,$DX$2&ROW($DX239)),$DW239,$DW$2&ROW($DW239)),$DV239,$DV$2&ROW($DV239)),$DU239,$DU$2&ROW($DU239)),$DT239,$DT$2&ROW($DT239)),$DS239,$DS$2&ROW($DS239)))","v":0},{"$f":"IF(U239=\"\",0,\"X=\"&SUBSTITUTE(SUBSTITUTE(SUBSTITUTE(SUBSTITUTE(SUBSTITUTE(SUBSTITUTE(SUBSTITUTE(SUBSTITUTE(SUBSTITUTE(SUBSTITUTE(SUBSTITUTE(SUBSTITUTE(U239,$ED239,$ED$2&ROW($ED239)),$EC239,$EC$2&ROW($EC239)),$EB239,$EB$2&ROW($EB239)),$EA239,$EA$2&ROW($EA239)),$DZ239,$DZ$2&ROW($DZ239)),$DY239,$DY$2&ROW($DY239)),$DX239,$DX$2&ROW($DX239)),$DW239,$DW$2&ROW($DW239)),$DV239,$DV$2&ROW($DV239)),$DU239,$DU$2&ROW($DU239)),$DT239,$DT$2&ROW($DT239)),$DS239,$DS$2&ROW($DS239)))","v":"X=AS239*AU239*0.006"},{"$f":"IF(V239=\"\",0,\"X=\"&SUBSTITUTE(SUBSTITUTE(SUBSTITUTE(SUBSTITUTE(SUBSTITUTE(SUBSTITUTE(SUBSTITUTE(SUBSTITUTE(SUBSTITUTE(SUBSTITUTE(SUBSTITUTE(SUBSTITUTE(V239,$ED239,$ED$2&ROW($ED239)),$EC239,$EC$2&ROW($EC239)),$EB239,$EB$2&ROW($EB239)),$EA239,$EA$2&ROW($EA239)),$DZ239,$DZ$2&ROW($DZ239)),$DY239,$DY$2&ROW($DY239)),$DX239,$DX$2&ROW($DX239)),$DW239,$DW$2&ROW($DW239)),$DV239,$DV$2&ROW($DV239)),$DU239,$DU$2&ROW($DU239)),$DT239,$DT$2&ROW($DT239)),$DS239,$DS$2&ROW($DS239)))","v":"X=AS239*AU239*0.004"},{"$f":"IF(W239=\"\",0,\"X=\"&SUBSTITUTE(SUBSTITUTE(SUBSTITUTE(SUBSTITUTE(SUBSTITUTE(SUBSTITUTE(SUBSTITUTE(SUBSTITUTE(SUBSTITUTE(SUBSTITUTE(SUBSTITUTE(SUBSTITUTE(W239,$ED239,$ED$2&ROW($ED239)),$EC239,$EC$2&ROW($EC239)),$EB239,$EB$2&ROW($EB239)),$EA239,$EA$2&ROW($EA239)),$DZ239,$DZ$2&ROW($DZ239)),$DY239,$DY$2&ROW($DY239)),$DX239,$DX$2&ROW($DX239)),$DW239,$DW$2&ROW($DW239)),$DV239,$DV$2&ROW($DV239)),$DU239,$DU$2&ROW($DU239)),$DT239,$DT$2&ROW($DT239)),$DS239,$DS$2&ROW($DS239)))","v":"X=AS239*AU239*10*-0.004"},{"$f":"IF(X239=\"\",0,\"X=\"&SUBSTITUTE(SUBSTITUTE(SUBSTITUTE(SUBSTITUTE(SUBSTITUTE(SUBSTITUTE(SUBSTITUTE(SUBSTITUTE(SUBSTITUTE(SUBSTITUTE(SUBSTITUTE(SUBSTITUTE(X239,$ED239,$ED$2&ROW($ED239)),$EC239,$EC$2&ROW($EC239)),$EB239,$EB$2&ROW($EB239)),$EA239,$EA$2&ROW($EA239)),$DZ239,$DZ$2&ROW($DZ239)),$DY239,$DY$2&ROW($DY239)),$DX239,$DX$2&ROW($DX239)),$DW239,$DW$2&ROW($DW239)),$DV239,$DV$2&ROW($DV239)),$DU239,$DU$2&ROW($DU239)),$DT239,$DT$2&ROW($DT239)),$DS239,$DS$2&ROW($DS239)))","v":"X=AS239*AU239*-0.003"},{"$f":"IF(Y239=\"\",0,\"X=\"&SUBSTITUTE(SUBSTITUTE(SUBSTITUTE(SUBSTITUTE(SUBSTITUTE(SUBSTITUTE(SUBSTITUTE(SUBSTITUTE(SUBSTITUTE(SUBSTITUTE(SUBSTITUTE(SUBSTITUTE(Y239,$ED239,$ED$2&ROW($ED239)),$EC239,$EC$2&ROW($EC239)),$EB239,$EB$2&ROW($EB239)),$EA239,$EA$2&ROW($EA239)),$DZ239,$DZ$2&ROW($DZ239)),$DY239,$DY$2&ROW($DY239)),$DX239,$DX$2&ROW($DX239)),$DW239,$DW$2&ROW($DW239)),$DV239,$DV$2&ROW($DV239)),$DU239,$DU$2&ROW($DU239)),$DT239,$DT$2&ROW($DT239)),$DS239,$DS$2&ROW($DS239)))","v":"X=AS239*AU239*-0.025"},{"$f":"IF(Z239=\"\",0,\"X=\"&SUBSTITUTE(SUBSTITUTE(SUBSTITUTE(SUBSTITUTE(SUBSTITUTE(SUBSTITUTE(SUBSTITUTE(SUBSTITUTE(SUBSTITUTE(SUBSTITUTE(SUBSTITUTE(SUBSTITUTE(Z239,$ED239,$ED$2&ROW($ED239)),$EC239,$EC$2&ROW($EC239)),$EB239,$EB$2&ROW($EB239)),$EA239,$EA$2&ROW($EA239)),$DZ239,$DZ$2&ROW($DZ239)),$DY239,$DY$2&ROW($DY239)),$DX239,$DX$2&ROW($DX239)),$DW239,$DW$2&ROW($DW239)),$DV239,$DV$2&ROW($DV239)),$DU239,$DU$2&ROW($DU239)),$DT239,$DT$2&ROW($DT239)),$DS239,$DS$2&ROW($DS239)))","v":"X=AS239*AU239*-0.001"},{"$f":"IF(AA239=\"\",0,\"X=\"&SUBSTITUTE(SUBSTITUTE(SUBSTITUTE(SUBSTITUTE(SUBSTITUTE(SUBSTITUTE(SUBSTITUTE(SUBSTITUTE(SUBSTITUTE(SUBSTITUTE(SUBSTITUTE(SUBSTITUTE(AA239,$ED239,$ED$2&ROW($ED239)),$EC239,$EC$2&ROW($EC239)),$EB239,$EB$2&ROW($EB239)),$EA239,$EA$2&ROW($EA239)),$DZ239,$DZ$2&ROW($DZ239)),$DY239,$DY$2&ROW($DY239)),$DX239,$DX$2&ROW($DX239)),$DW239,$DW$2&ROW($DW239)),$DV239,$DV$2&ROW($DV239)),$DU239,$DU$2&ROW($DU239)),$DT239,$DT$2&ROW($DT239)),$DS239,$DS$2&ROW($DS239)))","v":"X=AS239*AU239*-0.005"},{"$f":"IF(AB239=\"\",0,\"X=\"&SUBSTITUTE(SUBSTITUTE(SUBSTITUTE(SUBSTITUTE(SUBSTITUTE(SUBSTITUTE(SUBSTITUTE(SUBSTITUTE(SUBSTITUTE(SUBSTITUTE(SUBSTITUTE(SUBSTITUTE(AB239,$ED239,$ED$2&ROW($ED239)),$EC239,$EC$2&ROW($EC239)),$EB239,$EB$2&ROW($EB239)),$EA239,$EA$2&ROW($EA239)),$DZ239,$DZ$2&ROW($DZ239)),$DY239,$DY$2&ROW($DY239)),$DX239,$DX$2&ROW($DX239)),$DW239,$DW$2&ROW($DW239)),$DV239,$DV$2&ROW($DV239)),$DU239,$DU$2&ROW($DU239)),$DT239,$DT$2&ROW($DT239)),$DS239,$DS$2&ROW($DS239)))","v":0},null,null,"{Factor:WinterCF}","{Factor:SummerCF}",{"$f":"IFERROR(INDEX($EG239:$IV239,MATCH(0,COUNTIF($DR239:DT239,$EG239:$IV239),0)),\"\")","v":"{Measure:Quantity}"},{"$f":"IFERROR(INDEX($EG239:$IV239,MATCH(0,COUNTIF($DR239:DU239,$EG239:$IV239),0)),\"\")","v":"{Package Size}"},{"$f":"IFERROR(INDEX($EG239:$IV239,MATCH(0,COUNTIF($DR239:DV239,$EG239:$IV239),0)),\"\")","v":"{Rebate per Package}"},{"$f":"IFERROR(INDEX($EG239:$IV239,MATCH(0,COUNTIF($DR239:DW239,$EG239:$IV239),0)),\"\")","v":"{Marketing Fee}"},{"$f":"IFERROR(INDEX($EG239:$IV239,MATCH(0,COUNTIF($DR239:DX239,$EG239:$IV239),0)),\"\")","v":""},{"$f":"IFERROR(INDEX($EG239:$IV239,MATCH(0,COUNTIF($DR239:DY239,$EG239:$IV239),0)),\"\")","v":""},{"$f":"IFERROR(INDEX($EG239:$IV239,MATCH(0,COUNTIF($DR239:DZ239,$EG239:$IV239),0)),\"\")","v":""},{"$f":"IFERROR(INDEX($EG239:$IV239,MATCH(0,COUNTIF($DR239:EA239,$EG239:$IV239),0)),\"\")","v":""},{"$f":"IFERROR(INDEX($EG239:$IV239,MATCH(0,COUNTIF($DR239:EB239,$EG239:$IV239),0)),\"\")","v":""},{"$f":"IFERROR(INDEX($EG239:$IV239,MATCH(0,COUNTIF($DR239:EC239,$EG239:$IV239),0)),\"\")","v":""},null,null,{"$f":"IFERROR(MID($G239,FIND(CHAR(160),SUBSTITUTE($G239,\"{\",CHAR(160),EG$1)),FIND(CHAR(160),SUBSTITUTE($G239,\"}\",CHAR(160),EG$1))-FIND(CHAR(160),SUBSTITUTE($G239,\"{\",CHAR(160),EG$1))+1),\"\")","v":"{Measure:Quantity}"},{"$f":"IFERROR(MID($G239,FIND(CHAR(160),SUBSTITUTE($G239,\"{\",CHAR(160),EH$1)),FIND(CHAR(160),SUBSTITUTE($G239,\"}\",CHAR(160),EH$1))-FIND(CHAR(160),SUBSTITUTE($G239,\"{\",CHAR(160),EH$1))+1),\"\")","v":"{Package Size}"},{"$f":"IFERROR(MID($G239,FIND(CHAR(160),SUBSTITUTE($G239,\"{\",CHAR(160),EI$1)),FIND(CHAR(160),SUBSTITUTE($G239,\"}\",CHAR(160),EI$1))-FIND(CHAR(160),SUBSTITUTE($G239,\"{\",CHAR(160),EI$1))+1),\"\")","v":""},{"$f":"IFERROR(MID($G239,FIND(CHAR(160),SUBSTITUTE($G239,\"{\",CHAR(160),EJ$1)),FIND(CHAR(160),SUBSTITUTE($G239,\"}\",CHAR(160),EJ$1))-FIND(CHAR(160),SUBSTITUTE($G239,\"{\",CHAR(160),EJ$1))+1),\"\")","v":""},{"$f":"IFERROR(MID($G239,FIND(CHAR(160),SUBSTITUTE($G239,\"{\",CHAR(160),EK$1)),FIND(CHAR(160),SUBSTITUTE($G239,\"}\",CHAR(160),EK$1))-FIND(CHAR(160),SUBSTITUTE($G239,\"{\",CHAR(160),EK$1))+1),\"\")","v":""},{"$f":"IFERROR(MID($G239,FIND(CHAR(160),SUBSTITUTE($G239,\"{\",CHAR(160),EL$1)),FIND(CHAR(160),SUBSTITUTE($G239,\"}\",CHAR(160),EL$1))-FIND(CHAR(160),SUBSTITUTE($G239,\"{\",CHAR(160),EL$1))+1),\"\")","v":""},{"$f":"IFERROR(MID($G239,FIND(CHAR(160),SUBSTITUTE($G239,\"{\",CHAR(160),EM$1)),FIND(CHAR(160),SUBSTITUTE($G239,\"}\",CHAR(160),EM$1))-FIND(CHAR(160),SUBSTITUTE($G239,\"{\",CHAR(160),EM$1))+1),\"\")","v":""},{"$f":"IFERROR(MID($G239,FIND(CHAR(160),SUBSTITUTE($G239,\"{\",CHAR(160),EN$1)),FIND(CHAR(160),SUBSTITUTE($G239,\"}\",CHAR(160),EN$1))-FIND(CHAR(160),SUBSTITUTE($G239,\"{\",CHAR(160),EN$1))+1),\"\")","v":""},{"$f":"IFERROR(MID($G239,FIND(CHAR(160),SUBSTITUTE($G239,\"{\",CHAR(160),EO$1)),FIND(CHAR(160),SUBSTITUTE($G239,\"}\",CHAR(160),EO$1))-FIND(CHAR(160),SUBSTITUTE($G239,\"{\",CHAR(160),EO$1))+1),\"\")","v":""},{"$f":"IFERROR(MID($G239,FIND(CHAR(160),SUBSTITUTE($G239,\"{\",CHAR(160),EP$1)),FIND(CHAR(160),SUBSTITUTE($G239,\"}\",CHAR(160),EP$1))-FIND(CHAR(160),SUBSTITUTE($G239,\"{\",CHAR(160),EP$1))+1),\"\")","v":""},{"$f":"IFERROR(MID($J239,FIND(CHAR(160),SUBSTITUTE($J239,\"{\",CHAR(160),EQ$1)),FIND(CHAR(160),SUBSTITUTE($J239,\"}\",CHAR(160),EQ$1))-FIND(CHAR(160),SUBSTITUTE($J239,\"{\",CHAR(160),EQ$1))+1),\"\")","v":"{Measure:Quantity}"},{"$f":"IFERROR(MID($J239,FIND(CHAR(160),SUBSTITUTE($J239,\"{\",CHAR(160),ER$1)),FIND(CHAR(160),SUBSTITUTE($J239,\"}\",CHAR(160),ER$1))-FIND(CHAR(160),SUBSTITUTE($J239,\"{\",CHAR(160),ER$1))+1),\"\")","v":"{Rebate per Package}"},{"$f":"IFERROR(MID($J239,FIND(CHAR(160),SUBSTITUTE($J239,\"{\",CHAR(160),ES$1)),FIND(CHAR(160),SUBSTITUTE($J239,\"}\",CHAR(160),ES$1))-FIND(CHAR(160),SUBSTITUTE($J239,\"{\",CHAR(160),ES$1))+1),\"\")","v":"{Marketing Fee}"},{"$f":"IFERROR(MID($J239,FIND(CHAR(160),SUBSTITUTE($J239,\"{\",CHAR(160),ET$1)),FIND(CHAR(160),SUBSTITUTE($J239,\"}\",CHAR(160),ET$1))-FIND(CHAR(160),SUBSTITUTE($J239,\"{\",CHAR(160),ET$1))+1),\"\")","v":""},{"$f":"IFERROR(MID($J239,FIND(CHAR(160),SUBSTITUTE($J239,\"{\",CHAR(160),EU$1)),FIND(CHAR(160),SUBSTITUTE($J239,\"}\",CHAR(160),EU$1))-FIND(CHAR(160),SUBSTITUTE($J239,\"{\",CHAR(160),EU$1))+1),\"\")","v":""},{"$f":"IFERROR(MID($J239,FIND(CHAR(160),SUBSTITUTE($J239,\"{\",CHAR(160),EV$1)),FIND(CHAR(160),SUBSTITUTE($J239,\"}\",CHAR(160),EV$1))-FIND(CHAR(160),SUBSTITUTE($J239,\"{\",CHAR(160),EV$1))+1),\"\")","v":""},{"$f":"IFERROR(MID($J239,FIND(CHAR(160),SUBSTITUTE($J239,\"{\",CHAR(160),EW$1)),FIND(CHAR(160),SUBSTITUTE($J239,\"}\",CHAR(160),EW$1))-FIND(CHAR(160),SUBSTITUTE($J239,\"{\",CHAR(160),EW$1))+1),\"\")","v":""},{"$f":"IFERROR(MID($J239,FIND(CHAR(160),SUBSTITUTE($J239,\"{\",CHAR(160),EX$1)),FIND(CHAR(160),SUBSTITUTE($J239,\"}\",CHAR(160),EX$1))-FIND(CHAR(160),SUBSTITUTE($J239,\"{\",CHAR(160),EX$1))+1),\"\")","v":""},{"$f":"IFERROR(MID($J239,FIND(CHAR(160),SUBSTITUTE($J239,\"{\",CHAR(160),EY$1)),FIND(CHAR(160),SUBSTITUTE($J239,\"}\",CHAR(160),EY$1))-FIND(CHAR(160),SUBSTITUTE($J239,\"{\",CHAR(160),EY$1))+1),\"\")","v":""},{"$f":"IFERROR(MID($J239,FIND(CHAR(160),SUBSTITUTE($J239,\"{\",CHAR(160),EZ$1)),FIND(CHAR(160),SUBSTITUTE($J239,\"}\",CHAR(160),EZ$1))-FIND(CHAR(160),SUBSTITUTE($J239,\"{\",CHAR(160),EZ$1))+1),\"\")","v":""},{"$f":"IFERROR(MID($J239,FIND(CHAR(160),SUBSTITUTE($J239,\"{\",CHAR(160),FA$1)),FIND(CHAR(160),SUBSTITUTE($J239,\"}\",CHAR(160),FA$1))-FIND(CHAR(160),SUBSTITUTE($J239,\"{\",CHAR(160),FA$1))+1),\"\")","v":"{Measure:Quantity}"},{"$f":"IFERROR(MID($J239,FIND(CHAR(160),SUBSTITUTE($J239,\"{\",CHAR(160),FB$1)),FIND(CHAR(160),SUBSTITUTE($J239,\"}\",CHAR(160),FB$1))-FIND(CHAR(160),SUBSTITUTE($J239,\"{\",CHAR(160),FB$1))+1),\"\")","v":"{Rebate per Package}"},{"$f":"IFERROR(MID($O239,FIND(CHAR(160),SUBSTITUTE($O239,\"{\",CHAR(160),FC$1)),FIND(CHAR(160),SUBSTITUTE($O239,\"}\",CHAR(160),FC$1))-FIND(CHAR(160),SUBSTITUTE($O239,\"{\",CHAR(160),FC$1))+1),\"\")","v":""},{"$f":"IFERROR(MID($O239,FIND(CHAR(160),SUBSTITUTE($O239,\"{\",CHAR(160),FD$1)),FIND(CHAR(160),SUBSTITUTE($O239,\"}\",CHAR(160),FD$1))-FIND(CHAR(160),SUBSTITUTE($O239,\"{\",CHAR(160),FD$1))+1),\"\")","v":""},{"$f":"IFERROR(MID($O239,FIND(CHAR(160),SUBSTITUTE($O239,\"{\",CHAR(160),FE$1)),FIND(CHAR(160),SUBSTITUTE($O239,\"}\",CHAR(160),FE$1))-FIND(CHAR(160),SUBSTITUTE($O239,\"{\",CHAR(160),FE$1))+1),\"\")","v":""},{"$f":"IFERROR(MID($O239,FIND(CHAR(160),SUBSTITUTE($O239,\"{\",CHAR(160),FF$1)),FIND(CHAR(160),SUBSTITUTE($O239,\"}\",CHAR(160),FF$1))-FIND(CHAR(160),SUBSTITUTE($O239,\"{\",CHAR(160),FF$1))+1),\"\")","v":""},{"$f":"IFERROR(MID($O239,FIND(CHAR(160),SUBSTITUTE($O239,\"{\",CHAR(160),FG$1)),FIND(CHAR(160),SUBSTITUTE($O239,\"}\",CHAR(160),FG$1))-FIND(CHAR(160),SUBSTITUTE($O239,\"{\",CHAR(160),FG$1))+1),\"\")","v":""},{"$f":"IFERROR(MID($O239,FIND(CHAR(160),SUBSTITUTE($O239,\"{\",CHAR(160),FH$1)),FIND(CHAR(160),SUBSTITUTE($O239,\"}\",CHAR(160),FH$1))-FIND(CHAR(160),SUBSTITUTE($O239,\"{\",CHAR(160),FH$1))+1),\"\")","v":""},{"$f":"IFERROR(MID($O239,FIND(CHAR(160),SUBSTITUTE($O239,\"{\",CHAR(160),FI$1)),FIND(CHAR(160),SUBSTITUTE($O239,\"}\",CHAR(160),FI$1))-FIND(CHAR(160),SUBSTITUTE($O239,\"{\",CHAR(160),FI$1))+1),\"\")","v":""},{"$f":"IFERROR(MID($O239,FIND(CHAR(160),SUBSTITUTE($O239,\"{\",CHAR(160),FJ$1)),FIND(CHAR(160),SUBSTITUTE($O239,\"}\",CHAR(160),FJ$1))-FIND(CHAR(160),SUBSTITUTE($O239,\"{\",CHAR(160),FJ$1))+1),\"\")","v":""},{"$f":"IFERROR(MID($O239,FIND(CHAR(160),SUBSTITUTE($O239,\"{\",CHAR(160),FK$1)),FIND(CHAR(160),SUBSTITUTE($O239,\"}\",CHAR(160),FK$1))-FIND(CHAR(160),SUBSTITUTE($O239,\"{\",CHAR(160),FK$1))+1),\"\")","v":"{Measure:Quantity}"},{"$f":"IFERROR(MID($O239,FIND(CHAR(160),SUBSTITUTE($O239,\"{\",CHAR(160),FL$1)),FIND(CHAR(160),SUBSTITUTE($O239,\"}\",CHAR(160),FL$1))-FIND(CHAR(160),SUBSTITUTE($O239,\"{\",CHAR(160),FL$1))+1),\"\")","v":"{Package Size}"},{"$f":"IFERROR(MID($R239,FIND(CHAR(160),SUBSTITUTE($R239,\"{\",CHAR(160),FM$1)),FIND(CHAR(160),SUBSTITUTE($R239,\"}\",CHAR(160),FM$1))-FIND(CHAR(160),SUBSTITUTE($R239,\"{\",CHAR(160),FM$1))+1),\"\")","v":""},{"$f":"IFERROR(MID($R239,FIND(CHAR(160),SUBSTITUTE($R239,\"{\",CHAR(160),FN$1)),FIND(CHAR(160),SUBSTITUTE($R239,\"}\",CHAR(160),FN$1))-FIND(CHAR(160),SUBSTITUTE($R239,\"{\",CHAR(160),FN$1))+1),\"\")","v":""},{"$f":"IFERROR(MID($R239,FIND(CHAR(160),SUBSTITUTE($R239,\"{\",CHAR(160),FO$1)),FIND(CHAR(160),SUBSTITUTE($R239,\"}\",CHAR(160),FO$1))-FIND(CHAR(160),SUBSTITUTE($R239,\"{\",CHAR(160),FO$1))+1),\"\")","v":""},{"$f":"IFERROR(MID($R239,FIND(CHAR(160),SUBSTITUTE($R239,\"{\",CHAR(160),FP$1)),FIND(CHAR(160),SUBSTITUTE($R239,\"}\",CHAR(160),FP$1))-FIND(CHAR(160),SUBSTITUTE($R239,\"{\",CHAR(160),FP$1))+1),\"\")","v":""},{"$f":"IFERROR(MID($R239,FIND(CHAR(160),SUBSTITUTE($R239,\"{\",CHAR(160),FQ$1)),FIND(CHAR(160),SUBSTITUTE($R239,\"}\",CHAR(160),FQ$1))-FIND(CHAR(160),SUBSTITUTE($R239,\"{\",CHAR(160),FQ$1))+1),\"\")","v":""},{"$f":"IFERROR(MID($R239,FIND(CHAR(160),SUBSTITUTE($R239,\"{\",CHAR(160),FR$1)),FIND(CHAR(160),SUBSTITUTE($R239,\"}\",CHAR(160),FR$1))-FIND(CHAR(160),SUBSTITUTE($R239,\"{\",CHAR(160),FR$1))+1),\"\")","v":""},{"$f":"IFERROR(MID($R239,FIND(CHAR(160),SUBSTITUTE($R239,\"{\",CHAR(160),FS$1)),FIND(CHAR(160),SUBSTITUTE($R239,\"}\",CHAR(160),FS$1))-FIND(CHAR(160),SUBSTITUTE($R239,\"{\",CHAR(160),FS$1))+1),\"\")","v":""},{"$f":"IFERROR(MID($R239,FIND(CHAR(160),SUBSTITUTE($R239,\"{\",CHAR(160),FT$1)),FIND(CHAR(160),SUBSTITUTE($R239,\"}\",CHAR(160),FT$1))-FIND(CHAR(160),SUBSTITUTE($R239,\"{\",CHAR(160),FT$1))+1),\"\")","v":""},{"$f":"IFERROR(MID($R239,FIND(CHAR(160),SUBSTITUTE($R239,\"{\",CHAR(160),FU$1)),FIND(CHAR(160),SUBSTITUTE($R239,\"}\",CHAR(160),FU$1))-FIND(CHAR(160),SUBSTITUTE($R239,\"{\",CHAR(160),FU$1))+1),\"\")","v":"{Measure:Quantity}"},{"$f":"IFERROR(MID($R239,FIND(CHAR(160),SUBSTITUTE($R239,\"{\",CHAR(160),FV$1)),FIND(CHAR(160),SUBSTITUTE($R239,\"}\",CHAR(160),FV$1))-FIND(CHAR(160),SUBSTITUTE($R239,\"{\",CHAR(160),FV$1))+1),\"\")","v":"{Package Size}"},{"$f":"IFERROR(MID($U239,FIND(CHAR(160),SUBSTITUTE($U239,\"{\",CHAR(160),FW$1)),FIND(CHAR(160),SUBSTITUTE($U239,\"}\",CHAR(160),FW$1))-FIND(CHAR(160),SUBSTITUTE($U239,\"{\",CHAR(160),FW$1))+1),\"\")","v":""},{"$f":"IFERROR(MID($U239,FIND(CHAR(160),SUBSTITUTE($U239,\"{\",CHAR(160),FX$1)),FIND(CHAR(160),SUBSTITUTE($U239,\"}\",CHAR(160),FX$1))-FIND(CHAR(160),SUBSTITUTE($U239,\"{\",CHAR(160),FX$1))+1),\"\")","v":""},{"$f":"IFERROR(MID($U239,FIND(CHAR(160),SUBSTITUTE($U239,\"{\",CHAR(160),FY$1)),FIND(CHAR(160),SUBSTITUTE($U239,\"}\",CHAR(160),FY$1))-FIND(CHAR(160),SUBSTITUTE($U239,\"{\",CHAR(160),FY$1))+1),\"\")","v":""},{"$f":"IFERROR(MID($U239,FIND(CHAR(160),SUBSTITUTE($U239,\"{\",CHAR(160),FZ$1)),FIND(CHAR(160),SUBSTITUTE($U239,\"}\",CHAR(160),FZ$1))-FIND(CHAR(160),SUBSTITUTE($U239,\"{\",CHAR(160),FZ$1))+1),\"\")","v":""},{"$f":"IFERROR(MID($U239,FIND(CHAR(160),SUBSTITUTE($U239,\"{\",CHAR(160),GA$1)),FIND(CHAR(160),SUBSTITUTE($U239,\"}\",CHAR(160),GA$1))-FIND(CHAR(160),SUBSTITUTE($U239,\"{\",CHAR(160),GA$1))+1),\"\")","v":""},{"$f":"IFERROR(MID($U239,FIND(CHAR(160),SUBSTITUTE($U239,\"{\",CHAR(160),GB$1)),FIND(CHAR(160),SUBSTITUTE($U239,\"}\",CHAR(160),GB$1))-FIND(CHAR(160),SUBSTITUTE($U239,\"{\",CHAR(160),GB$1))+1),\"\")","v":""},{"$f":"IFERROR(MID($U239,FIND(CHAR(160),SUBSTITUTE($U239,\"{\",CHAR(160),GC$1)),FIND(CHAR(160),SUBSTITUTE($U239,\"}\",CHAR(160),GC$1))-FIND(CHAR(160),SUBSTITUTE($U239,\"{\",CHAR(160),GC$1))+1),\"\")","v":""},{"$f":"IFERROR(MID($U239,FIND(CHAR(160),SUBSTITUTE($U239,\"{\",CHAR(160),GD$1)),FIND(CHAR(160),SUBSTITUTE($U239,\"}\",CHAR(160),GD$1))-FIND(CHAR(160),SUBSTITUTE($U239,\"{\",CHAR(160),GD$1))+1),\"\")","v":""},{"$f":"IFERROR(MID($U239,FIND(CHAR(160),SUBSTITUTE($U239,\"{\",CHAR(160),GE$1)),FIND(CHAR(160),SUBSTITUTE($U239,\"}\",CHAR(160),GE$1))-FIND(CHAR(160),SUBSTITUTE($U239,\"{\",CHAR(160),GE$1))+1),\"\")","v":"{Measure:Quantity}"},{"$f":"IFERROR(MID($U239,FIND(CHAR(160),SUBSTITUTE($U239,\"{\",CHAR(160),GF$1)),FIND(CHAR(160),SUBSTITUTE($U239,\"}\",CHAR(160),GF$1))-FIND(CHAR(160),SUBSTITUTE($U239,\"{\",CHAR(160),GF$1))+1),\"\")","v":"{Package Size}"},{"$f":"IFERROR(MID($V239,FIND(CHAR(160),SUBSTITUTE($V239,\"{\",CHAR(160),GG$1)),FIND(CHAR(160),SUBSTITUTE($V239,\"}\",CHAR(160),GG$1))-FIND(CHAR(160),SUBSTITUTE($V239,\"{\",CHAR(160),GG$1))+1),\"\")","v":""},{"$f":"IFERROR(MID($V239,FIND(CHAR(160),SUBSTITUTE($V239,\"{\",CHAR(160),GH$1)),FIND(CHAR(160),SUBSTITUTE($V239,\"}\",CHAR(160),GH$1))-FIND(CHAR(160),SUBSTITUTE($V239,\"{\",CHAR(160),GH$1))+1),\"\")","v":""},{"$f":"IFERROR(MID($V239,FIND(CHAR(160),SUBSTITUTE($V239,\"{\",CHAR(160),GI$1)),FIND(CHAR(160),SUBSTITUTE($V239,\"}\",CHAR(160),GI$1))-FIND(CHAR(160),SUBSTITUTE($V239,\"{\",CHAR(160),GI$1))+1),\"\")","v":""},{"$f":"IFERROR(MID($V239,FIND(CHAR(160),SUBSTITUTE($V239,\"{\",CHAR(160),GJ$1)),FIND(CHAR(160),SUBSTITUTE($V239,\"}\",CHAR(160),GJ$1))-FIND(CHAR(160),SUBSTITUTE($V239,\"{\",CHAR(160),GJ$1))+1),\"\")","v":""},{"$f":"IFERROR(MID($V239,FIND(CHAR(160),SUBSTITUTE($V239,\"{\",CHAR(160),GK$1)),FIND(CHAR(160),SUBSTITUTE($V239,\"}\",CHAR(160),GK$1))-FIND(CHAR(160),SUBSTITUTE($V239,\"{\",CHAR(160),GK$1))+1),\"\")","v":""},{"$f":"IFERROR(MID($V239,FIND(CHAR(160),SUBSTITUTE($V239,\"{\",CHAR(160),GL$1)),FIND(CHAR(160),SUBSTITUTE($V239,\"}\",CHAR(160),GL$1))-FIND(CHAR(160),SUBSTITUTE($V239,\"{\",CHAR(160),GL$1))+1),\"\")","v":""},{"$f":"IFERROR(MID($V239,FIND(CHAR(160),SUBSTITUTE($V239,\"{\",CHAR(160),GM$1)),FIND(CHAR(160),SUBSTITUTE($V239,\"}\",CHAR(160),GM$1))-FIND(CHAR(160),SUBSTITUTE($V239,\"{\",CHAR(160),GM$1))+1),\"\")","v":""},{"$f":"IFERROR(MID($V239,FIND(CHAR(160),SUBSTITUTE($V239,\"{\",CHAR(160),GN$1)),FIND(CHAR(160),SUBSTITUTE($V239,\"}\",CHAR(160),GN$1))-FIND(CHAR(160),SUBSTITUTE($V239,\"{\",CHAR(160),GN$1))+1),\"\")","v":""},{"$f":"IFERROR(MID($V239,FIND(CHAR(160),SUBSTITUTE($V239,\"{\",CHAR(160),GO$1)),FIND(CHAR(160),SUBSTITUTE($V239,\"}\",CHAR(160),GO$1))-FIND(CHAR(160),SUBSTITUTE($V239,\"{\",CHAR(160),GO$1))+1),\"\")","v":"{Measure:Quantity}"},{"$f":"IFERROR(MID($V239,FIND(CHAR(160),SUBSTITUTE($V239,\"{\",CHAR(160),GP$1)),FIND(CHAR(160),SUBSTITUTE($V239,\"}\",CHAR(160),GP$1))-FIND(CHAR(160),SUBSTITUTE($V239,\"{\",CHAR(160),GP$1))+1),\"\")","v":"{Package Size}"},{"$f":"IFERROR(MID($W239,FIND(CHAR(160),SUBSTITUTE($W239,\"{\",CHAR(160),GQ$1)),FIND(CHAR(160),SUBSTITUTE($W239,\"}\",CHAR(160),GQ$1))-FIND(CHAR(160),SUBSTITUTE($W239,\"{\",CHAR(160),GQ$1))+1),\"\")","v":""},{"$f":"IFERROR(MID($W239,FIND(CHAR(160),SUBSTITUTE($W239,\"{\",CHAR(160),GR$1)),FIND(CHAR(160),SUBSTITUTE($W239,\"}\",CHAR(160),GR$1))-FIND(CHAR(160),SUBSTITUTE($W239,\"{\",CHAR(160),GR$1))+1),\"\")","v":""},{"$f":"IFERROR(MID($W239,FIND(CHAR(160),SUBSTITUTE($W239,\"{\",CHAR(160),GS$1)),FIND(CHAR(160),SUBSTITUTE($W239,\"}\",CHAR(160),GS$1))-FIND(CHAR(160),SUBSTITUTE($W239,\"{\",CHAR(160),GS$1))+1),\"\")","v":""},{"$f":"IFERROR(MID($W239,FIND(CHAR(160),SUBSTITUTE($W239,\"{\",CHAR(160),GT$1)),FIND(CHAR(160),SUBSTITUTE($W239,\"}\",CHAR(160),GT$1))-FIND(CHAR(160),SUBSTITUTE($W239,\"{\",CHAR(160),GT$1))+1),\"\")","v":""},{"$f":"IFERROR(MID($W239,FIND(CHAR(160),SUBSTITUTE($W239,\"{\",CHAR(160),GU$1)),FIND(CHAR(160),SUBSTITUTE($W239,\"}\",CHAR(160),GU$1))-FIND(CHAR(160),SUBSTITUTE($W239,\"{\",CHAR(160),GU$1))+1),\"\")","v":""},{"$f":"IFERROR(MID($W239,FIND(CHAR(160),SUBSTITUTE($W239,\"{\",CHAR(160),GV$1)),FIND(CHAR(160),SUBSTITUTE($W239,\"}\",CHAR(160),GV$1))-FIND(CHAR(160),SUBSTITUTE($W239,\"{\",CHAR(160),GV$1))+1),\"\")","v":""},{"$f":"IFERROR(MID($W239,FIND(CHAR(160),SUBSTITUTE($W239,\"{\",CHAR(160),GW$1)),FIND(CHAR(160),SUBSTITUTE($W239,\"}\",CHAR(160),GW$1))-FIND(CHAR(160),SUBSTITUTE($W239,\"{\",CHAR(160),GW$1))+1),\"\")","v":""},{"$f":"IFERROR(MID($W239,FIND(CHAR(160),SUBSTITUTE($W239,\"{\",CHAR(160),GX$1)),FIND(CHAR(160),SUBSTITUTE($W239,\"}\",CHAR(160),GX$1))-FIND(CHAR(160),SUBSTITUTE($W239,\"{\",CHAR(160),GX$1))+1),\"\")","v":""},{"$f":"IFERROR(MID($W239,FIND(CHAR(160),SUBSTITUTE($W239,\"{\",CHAR(160),GY$1)),FIND(CHAR(160),SUBSTITUTE($W239,\"}\",CHAR(160),GY$1))-FIND(CHAR(160),SUBSTITUTE($W239,\"{\",CHAR(160),GY$1))+1),\"\")","v":"{Measure:Quantity}"},{"$f":"IFERROR(MID($W239,FIND(CHAR(160),SUBSTITUTE($W239,\"{\",CHAR(160),GZ$1)),FIND(CHAR(160),SUBSTITUTE($W239,\"}\",CHAR(160),GZ$1))-FIND(CHAR(160),SUBSTITUTE($W239,\"{\",CHAR(160),GZ$1))+1),\"\")","v":"{Package Size}"},{"$f":"IFERROR(MID($X239,FIND(CHAR(160),SUBSTITUTE($X239,\"{\",CHAR(160),HA$1)),FIND(CHAR(160),SUBSTITUTE($X239,\"}\",CHAR(160),HA$1))-FIND(CHAR(160),SUBSTITUTE($X239,\"{\",CHAR(160),HA$1))+1),\"\")","v":""},{"$f":"IFERROR(MID($X239,FIND(CHAR(160),SUBSTITUTE($X239,\"{\",CHAR(160),HB$1)),FIND(CHAR(160),SUBSTITUTE($X239,\"}\",CHAR(160),HB$1))-FIND(CHAR(160),SUBSTITUTE($X239,\"{\",CHAR(160),HB$1))+1),\"\")","v":""},{"$f":"IFERROR(MID($X239,FIND(CHAR(160),SUBSTITUTE($X239,\"{\",CHAR(160),HC$1)),FIND(CHAR(160),SUBSTITUTE($X239,\"}\",CHAR(160),HC$1))-FIND(CHAR(160),SUBSTITUTE($X239,\"{\",CHAR(160),HC$1))+1),\"\")","v":""},{"$f":"IFERROR(MID($X239,FIND(CHAR(160),SUBSTITUTE($X239,\"{\",CHAR(160),HD$1)),FIND(CHAR(160),SUBSTITUTE($X239,\"}\",CHAR(160),HD$1))-FIND(CHAR(160),SUBSTITUTE($X239,\"{\",CHAR(160),HD$1))+1),\"\")","v":""},{"$f":"IFERROR(MID($X239,FIND(CHAR(160),SUBSTITUTE($X239,\"{\",CHAR(160),HE$1)),FIND(CHAR(160),SUBSTITUTE($X239,\"}\",CHAR(160),HE$1))-FIND(CHAR(160),SUBSTITUTE($X239,\"{\",CHAR(160),HE$1))+1),\"\")","v":""},{"$f":"IFERROR(MID($X239,FIND(CHAR(160),SUBSTITUTE($X239,\"{\",CHAR(160),HF$1)),FIND(CHAR(160),SUBSTITUTE($X239,\"}\",CHAR(160),HF$1))-FIND(CHAR(160),SUBSTITUTE($X239,\"{\",CHAR(160),HF$1))+1),\"\")","v":""},{"$f":"IFERROR(MID($X239,FIND(CHAR(160),SUBSTITUTE($X239,\"{\",CHAR(160),HG$1)),FIND(CHAR(160),SUBSTITUTE($X239,\"}\",CHAR(160),HG$1))-FIND(CHAR(160),SUBSTITUTE($X239,\"{\",CHAR(160),HG$1))+1),\"\")","v":""},{"$f":"IFERROR(MID($X239,FIND(CHAR(160),SUBSTITUTE($X239,\"{\",CHAR(160),HH$1)),FIND(CHAR(160),SUBSTITUTE($X239,\"}\",CHAR(160),HH$1))-FIND(CHAR(160),SUBSTITUTE($X239,\"{\",CHAR(160),HH$1))+1),\"\")","v":""},{"$f":"IFERROR(MID($X239,FIND(CHAR(160),SUBSTITUTE($X239,\"{\",CHAR(160),HI$1)),FIND(CHAR(160),SUBSTITUTE($X239,\"}\",CHAR(160),HI$1))-FIND(CHAR(160),SUBSTITUTE($X239,\"{\",CHAR(160),HI$1))+1),\"\")","v":"{Measure:Quantity}"},{"$f":"IFERROR(MID($X239,FIND(CHAR(160),SUBSTITUTE($X239,\"{\",CHAR(160),HJ$1)),FIND(CHAR(160),SUBSTITUTE($X239,\"}\",CHAR(160),HJ$1))-FIND(CHAR(160),SUBSTITUTE($X239,\"{\",CHAR(160),HJ$1))+1),\"\")","v":"{Package Size}"},{"$f":"IFERROR(MID($Y239,FIND(CHAR(160),SUBSTITUTE($Y239,\"{\",CHAR(160),HK$1)),FIND(CHAR(160),SUBSTITUTE($Y239,\"}\",CHAR(160),HK$1))-FIND(CHAR(160),SUBSTITUTE($Y239,\"{\",CHAR(160),HK$1))+1),\"\")","v":""},{"$f":"IFERROR(MID($Y239,FIND(CHAR(160),SUBSTITUTE($Y239,\"{\",CHAR(160),HL$1)),FIND(CHAR(160),SUBSTITUTE($Y239,\"}\",CHAR(160),HL$1))-FIND(CHAR(160),SUBSTITUTE($Y239,\"{\",CHAR(160),HL$1))+1),\"\")","v":""},{"$f":"IFERROR(MID($Y239,FIND(CHAR(160),SUBSTITUTE($Y239,\"{\",CHAR(160),HM$1)),FIND(CHAR(160),SUBSTITUTE($Y239,\"}\",CHAR(160),HM$1))-FIND(CHAR(160),SUBSTITUTE($Y239,\"{\",CHAR(160),HM$1))+1),\"\")","v":""},{"$f":"IFERROR(MID($Y239,FIND(CHAR(160),SUBSTITUTE($Y239,\"{\",CHAR(160),HN$1)),FIND(CHAR(160),SUBSTITUTE($Y239,\"}\",CHAR(160),HN$1))-FIND(CHAR(160),SUBSTITUTE($Y239,\"{\",CHAR(160),HN$1))+1),\"\")","v":""},{"$f":"IFERROR(MID($Y239,FIND(CHAR(160),SUBSTITUTE($Y239,\"{\",CHAR(160),HO$1)),FIND(CHAR(160),SUBSTITUTE($Y239,\"}\",CHAR(160),HO$1))-FIND(CHAR(160),SUBSTITUTE($Y239,\"{\",CHAR(160),HO$1))+1),\"\")","v":""},{"$f":"IFERROR(MID($Y239,FIND(CHAR(160),SUBSTITUTE($Y239,\"{\",CHAR(160),HP$1)),FIND(CHAR(160),SUBSTITUTE($Y239,\"}\",CHAR(160),HP$1))-FIND(CHAR(160),SUBSTITUTE($Y239,\"{\",CHAR(160),HP$1))+1),\"\")","v":""},{"$f":"IFERROR(MID($Y239,FIND(CHAR(160),SUBSTITUTE($Y239,\"{\",CHAR(160),HQ$1)),FIND(CHAR(160),SUBSTITUTE($Y239,\"}\",CHAR(160),HQ$1))-FIND(CHAR(160),SUBSTITUTE($Y239,\"{\",CHAR(160),HQ$1))+1),\"\")","v":""},{"$f":"IFERROR(MID($Y239,FIND(CHAR(160),SUBSTITUTE($Y239,\"{\",CHAR(160),HR$1)),FIND(CHAR(160),SUBSTITUTE($Y239,\"}\",CHAR(160),HR$1))-FIND(CHAR(160),SUBSTITUTE($Y239,\"{\",CHAR(160),HR$1))+1),\"\")","v":""},{"$f":"IFERROR(MID($Y239,FIND(CHAR(160),SUBSTITUTE($Y239,\"{\",CHAR(160),HS$1)),FIND(CHAR(160),SUBSTITUTE($Y239,\"}\",CHAR(160),HS$1))-FIND(CHAR(160),SUBSTITUTE($Y239,\"{\",CHAR(160),HS$1))+1),\"\")","v":"{Measure:Quantity}"},{"$f":"IFERROR(MID($Y239,FIND(CHAR(160),SUBSTITUTE($Y239,\"{\",CHAR(160),HT$1)),FIND(CHAR(160),SUBSTITUTE($Y239,\"}\",CHAR(160),HT$1))-FIND(CHAR(160),SUBSTITUTE($Y239,\"{\",CHAR(160),HT$1))+1),\"\")","v":"{Package Size}"},{"$f":"IFERROR(MID($Z239,FIND(CHAR(160),SUBSTITUTE($Z239,\"{\",CHAR(160),HU$1)),FIND(CHAR(160),SUBSTITUTE($Z239,\"}\",CHAR(160),HU$1))-FIND(CHAR(160),SUBSTITUTE($Z239,\"{\",CHAR(160),HU$1))+1),\"\")","v":""},{"$f":"IFERROR(MID($Z239,FIND(CHAR(160),SUBSTITUTE($Z239,\"{\",CHAR(160),HV$1)),FIND(CHAR(160),SUBSTITUTE($Z239,\"}\",CHAR(160),HV$1))-FIND(CHAR(160),SUBSTITUTE($Z239,\"{\",CHAR(160),HV$1))+1),\"\")","v":""},{"$f":"IFERROR(MID($Z239,FIND(CHAR(160),SUBSTITUTE($Z239,\"{\",CHAR(160),HW$1)),FIND(CHAR(160),SUBSTITUTE($Z239,\"}\",CHAR(160),HW$1))-FIND(CHAR(160),SUBSTITUTE($Z239,\"{\",CHAR(160),HW$1))+1),\"\")","v":""},{"$f":"IFERROR(MID($Z239,FIND(CHAR(160),SUBSTITUTE($Z239,\"{\",CHAR(160),HX$1)),FIND(CHAR(160),SUBSTITUTE($Z239,\"}\",CHAR(160),HX$1))-FIND(CHAR(160),SUBSTITUTE($Z239,\"{\",CHAR(160),HX$1))+1),\"\")","v":""},{"$f":"IFERROR(MID($Z239,FIND(CHAR(160),SUBSTITUTE($Z239,\"{\",CHAR(160),HY$1)),FIND(CHAR(160),SUBSTITUTE($Z239,\"}\",CHAR(160),HY$1))-FIND(CHAR(160),SUBSTITUTE($Z239,\"{\",CHAR(160),HY$1))+1),\"\")","v":""},{"$f":"IFERROR(MID($Z239,FIND(CHAR(160),SUBSTITUTE($Z239,\"{\",CHAR(160),HZ$1)),FIND(CHAR(160),SUBSTITUTE($Z239,\"}\",CHAR(160),HZ$1))-FIND(CHAR(160),SUBSTITUTE($Z239,\"{\",CHAR(160),HZ$1))+1),\"\")","v":""},{"$f":"IFERROR(MID($Z239,FIND(CHAR(160),SUBSTITUTE($Z239,\"{\",CHAR(160),IA$1)),FIND(CHAR(160),SUBSTITUTE($Z239,\"}\",CHAR(160),IA$1))-FIND(CHAR(160),SUBSTITUTE($Z239,\"{\",CHAR(160),IA$1))+1),\"\")","v":""},{"$f":"IFERROR(MID($Z239,FIND(CHAR(160),SUBSTITUTE($Z239,\"{\",CHAR(160),IB$1)),FIND(CHAR(160),SUBSTITUTE($Z239,\"}\",CHAR(160),IB$1))-FIND(CHAR(160),SUBSTITUTE($Z239,\"{\",CHAR(160),IB$1))+1),\"\")","v":""},{"$f":"IFERROR(MID($Z239,FIND(CHAR(160),SUBSTITUTE($Z239,\"{\",CHAR(160),IC$1)),FIND(CHAR(160),SUBSTITUTE($Z239,\"}\",CHAR(160),IC$1))-FIND(CHAR(160),SUBSTITUTE($Z239,\"{\",CHAR(160),IC$1))+1),\"\")","v":"{Measure:Quantity}"},{"$f":"IFERROR(MID($Z239,FIND(CHAR(160),SUBSTITUTE($Z239,\"{\",CHAR(160),ID$1)),FIND(CHAR(160),SUBSTITUTE($Z239,\"}\",CHAR(160),ID$1))-FIND(CHAR(160),SUBSTITUTE($Z239,\"{\",CHAR(160),ID$1))+1),\"\")","v":"{Package Size}"},{"$f":"IFERROR(MID($AA239,FIND(CHAR(160),SUBSTITUTE($AA239,\"{\",CHAR(160),IE$1)),FIND(CHAR(160),SUBSTITUTE($AA239,\"}\",CHAR(160),IE$1))-FIND(CHAR(160),SUBSTITUTE($AA239,\"{\",CHAR(160),IE$1))+1),\"\")","v":""},{"$f":"IFERROR(MID($AA239,FIND(CHAR(160),SUBSTITUTE($AA239,\"{\",CHAR(160),IF$1)),FIND(CHAR(160),SUBSTITUTE($AA239,\"}\",CHAR(160),IF$1))-FIND(CHAR(160),SUBSTITUTE($AA239,\"{\",CHAR(160),IF$1))+1),\"\")","v":""},{"$f":"IFERROR(MID($AA239,FIND(CHAR(160),SUBSTITUTE($AA239,\"{\",CHAR(160),IG$1)),FIND(CHAR(160),SUBSTITUTE($AA239,\"}\",CHAR(160),IG$1))-FIND(CHAR(160),SUBSTITUTE($AA239,\"{\",CHAR(160),IG$1))+1),\"\")","v":""},{"$f":"IFERROR(MID($AA239,FIND(CHAR(160),SUBSTITUTE($AA239,\"{\",CHAR(160),IH$1)),FIND(CHAR(160),SUBSTITUTE($AA239,\"}\",CHAR(160),IH$1))-FIND(CHAR(160),SUBSTITUTE($AA239,\"{\",CHAR(160),IH$1))+1),\"\")","v":""},{"$f":"IFERROR(MID($AA239,FIND(CHAR(160),SUBSTITUTE($AA239,\"{\",CHAR(160),II$1)),FIND(CHAR(160),SUBSTITUTE($AA239,\"}\",CHAR(160),II$1))-FIND(CHAR(160),SUBSTITUTE($AA239,\"{\",CHAR(160),II$1))+1),\"\")","v":""},{"$f":"IFERROR(MID($AA239,FIND(CHAR(160),SUBSTITUTE($AA239,\"{\",CHAR(160),IJ$1)),FIND(CHAR(160),SUBSTITUTE($AA239,\"}\",CHAR(160),IJ$1))-FIND(CHAR(160),SUBSTITUTE($AA239,\"{\",CHAR(160),IJ$1))+1),\"\")","v":""},{"$f":"IFERROR(MID($AA239,FIND(CHAR(160),SUBSTITUTE($AA239,\"{\",CHAR(160),IK$1)),FIND(CHAR(160),SUBSTITUTE($AA239,\"}\",CHAR(160),IK$1))-FIND(CHAR(160),SUBSTITUTE($AA239,\"{\",CHAR(160),IK$1))+1),\"\")","v":""},{"$f":"IFERROR(MID($AA239,FIND(CHAR(160),SUBSTITUTE($AA239,\"{\",CHAR(160),IL$1)),FIND(CHAR(160),SUBSTITUTE($AA239,\"}\",CHAR(160),IL$1))-FIND(CHAR(160),SUBSTITUTE($AA239,\"{\",CHAR(160),IL$1))+1),\"\")","v":""},{"$f":"IFERROR(MID($AA239,FIND(CHAR(160),SUBSTITUTE($AA239,\"{\",CHAR(160),IM$1)),FIND(CHAR(160),SUBSTITUTE($AA239,\"}\",CHAR(160),IM$1))-FIND(CHAR(160),SUBSTITUTE($AA239,\"{\",CHAR(160),IM$1))+1),\"\")","v":"{Measure:Quantity}"},{"$f":"IFERROR(MID($AA239,FIND(CHAR(160),SUBSTITUTE($AA239,\"{\",CHAR(160),IN$1)),FIND(CHAR(160),SUBSTITUTE($AA239,\"}\",CHAR(160),IN$1))-FIND(CHAR(160),SUBSTITUTE($AA239,\"{\",CHAR(160),IN$1))+1),\"\")","v":"{Package Size}"},{"$f":"IFERROR(MID($AB239,FIND(CHAR(160),SUBSTITUTE($AB239,\"{\",CHAR(160),IO$1)),FIND(CHAR(160),SUBSTITUTE($AB239,\"}\",CHAR(160),IO$1))-FIND(CHAR(160),SUBSTITUTE($AB239,\"{\",CHAR(160),IO$1))+1),\"\")","v":""},{"$f":"IFERROR(MID($AB239,FIND(CHAR(160),SUBSTITUTE($AB239,\"{\",CHAR(160),IP$1)),FIND(CHAR(160),SUBSTITUTE($AB239,\"}\",CHAR(160),IP$1))-FIND(CHAR(160),SUBSTITUTE($AB239,\"{\",CHAR(160),IP$1))+1),\"\")","v":""},{"$f":"IFERROR(MID($AB239,FIND(CHAR(160),SUBSTITUTE($AB239,\"{\",CHAR(160),IQ$1)),FIND(CHAR(160),SUBSTITUTE($AB239,\"}\",CHAR(160),IQ$1))-FIND(CHAR(160),SUBSTITUTE($AB239,\"{\",CHAR(160),IQ$1))+1),\"\")","v":""},{"$f":"IFERROR(MID($AB239,FIND(CHAR(160),SUBSTITUTE($AB239,\"{\",CHAR(160),IR$1)),FIND(CHAR(160),SUBSTITUTE($AB239,\"}\",CHAR(160),IR$1))-FIND(CHAR(160),SUBSTITUTE($AB239,\"{\",CHAR(160),IR$1))+1),\"\")","v":""},{"$f":"IFERROR(MID($AB239,FIND(CHAR(160),SUBSTITUTE($AB239,\"{\",CHAR(160),IS$1)),FIND(CHAR(160),SUBSTITUTE($AB239,\"}\",CHAR(160),IS$1))-FIND(CHAR(160),SUBSTITUTE($AB239,\"{\",CHAR(160),IS$1))+1),\"\")","v":""},{"$f":"IFERROR(MID($AB239,FIND(CHAR(160),SUBSTITUTE($AB239,\"{\",CHAR(160),IT$1)),FIND(CHAR(160),SUBSTITUTE($AB239,\"}\",CHAR(160),IT$1))-FIND(CHAR(160),SUBSTITUTE($AB239,\"{\",CHAR(160),IT$1))+1),\"\")","v":""},{"$f":"IFERROR(MID($AB239,FIND(CHAR(160),SUBSTITUTE($AB239,\"{\",CHAR(160),IU$1)),FIND(CHAR(160),SUBSTITUTE($AB239,\"}\",CHAR(160),IU$1))-FIND(CHAR(160),SUBSTITUTE($AB239,\"{\",CHAR(160),IU$1))+1),\"\")","v":""},{"$f":"IFERROR(MID($AB239,FIND(CHAR(160),SUBSTITUTE($AB239,\"{\",CHAR(160),IV$1)),FIND(CHAR(160),SUBSTITUTE($AB239,\"}\",CHAR(160),IV$1))-FIND(CHAR(160),SUBSTITUTE($AB239,\"{\",CHAR(160),IV$1))+1),\"\")","v":""},{"$f":"IFERROR(MID($AB239,FIND(CHAR(160),SUBSTITUTE($AB239,\"{\",CHAR(160),IW$1)),FIND(CHAR(160),SUBSTITUTE($AB239,\"}\",CHAR(160),IW$1))-FIND(CHAR(160),SUBSTITUTE($AB239,\"{\",CHAR(160),IW$1))+1),\"\")","v":""},{"$f":"IFERROR(MID($AB239,FIND(CHAR(160),SUBSTITUTE($AB239,\"{\",CHAR(160),IX$1)),FIND(CHAR(160),SUBSTITUTE($AB239,\"}\",CHAR(160),IX$1))-FIND(CHAR(160),SUBSTITUTE($AB239,\"{\",CHAR(160),IX$1))+1),\"\")","v":""},null,{"$f":"10-COUNTIF(DU239:ED239,\"\")","v":4}]
["Retail Lighting","LED Specialty Bulb Reflector Long Life","LEDSPCRFL","2021-07-01","2022-06-30","Calculated","{Measure:Quantity}*{Package Size}*0",0,"Calculated","{Measure:Quantity}*({Rebate per Package}+{Marketing Fee})",0,"2021-07-01","2022-06-30","Calculated","{Measure:Quantity}*{Package Size}*45",null,null,"{Measure:Quantity}*{Package Size}*1.062*0.05",null,null,"{Measure:Quantity}*{Package Size}*0.009","{Measure:Quantity}*{Package Size}*0.006","{Measure:Quantity}*{Package Size}*10*-0.005","{Measure:Quantity}*{Package Size}*-0.005","{Measure:Quantity}*{Package Size}*-0.038","{Measure:Quantity}*{Package Size}*-0.001","{Measure:Quantity}*{Package Size}*-0.008",null,"2021-07-01","2022-06-30",2,0.185,0.109,0.37,0.31,0.17100000000000001,0.14899999999999999,0.99,1,1,0.76300000000000001,0,null,{"$f":"DU240","v":"{Measure:Quantity}"},1,{"$f":"DV240","v":"{Package Size}"},1,{"$f":"DW240","v":"{Rebate per Package}"},{"$f":"CO240","v":0},{"$f":"DX240","v":"{Marketing Fee}"},1,{"$f":"DY240","v":""},null,{"$f":"DZ240","v":""},null,{"$f":"EA240","v":""},null,{"$f":"EB240","v":""},null,{"$f":"EC240","v":""},null,{"$f":"ED240","v":""},null,{"$f":"AS240*AU240*45","v":45},0,0,{"$f":"AS240*AU240*1.062*0.05","v":5.3100000000000008E-2},0,0,{"$f":"AS240*AU240*0.009","v":8.9999999999999993E-3},{"$f":"AS240*AU240*0.006","v":6.0000000000000001E-3},{"$f":"AS240*AU240*10*-0.005","v":-0.05},{"$f":"AS240*AU240*-0.005","v":-5.0000000000000001E-3},{"$f":"AS240*AU240*-0.038","v":-3.7999999999999999E-2},{"$f":"AS240*AU240*-0.001","v":-1E-3},{"$f":"AS240*AU240*-0.008","v":-8.0000000000000002E-3},0,null,"Res","Default DR",{"$f":"Benefits(BL240,BR240,BS240,BT240,BU240,BV240,BW240,BX240,BY240,BZ240,AE240,AH240,AI240,AJ240,AK240,AL240,AM240,AN240,AO240,AP240,CA240,CB240)","v":10.782239872221769},7.1337601555913066,-0.17973982519086751,-2.488095867922179,-7.431345129571984E-2,-0.45371663404669266,-0.27555956768871592,0,0,{"$f":"SUMPRODUCT(CC240:CK240,--(CC240:CK240>0))","v":17.916000027813077},{"$f":"-SUMPRODUCT(CC240:CK240,--(CC240:CK240<0))","v":3.4714253461441746},null,{"$f":"AS240*AU240*0","v":0},null,null,{"$f":"CM240+CO240","v":3.4714253461441746},{"$f":"IF(NetOrGross=\"Net\",(1-AO240+AP240),1)","v":1},{"$f":"(SUMPRODUCT(CC240:CJ240,--(CC240:CJ240>0))+CN240)*CS240/((-SUMPRODUCT(CC240:CJ240,--(CC240:CJ240<0))+MAX(CO240,CV240)+CP240+CQ240)*CS240+IF(FRIncentives=\"Yes\",CV240*(1-CS240),0))","v":4.0067760592855484},1,{"$f":"AS240*(AW240+AY240)","v":1},1,"Electric","y",null,{"$f":"IF(F240=\"Manual Entry\",\"Manual\",IF(G240=\"\",0,\"X=\"&SUBSTITUTE(SUBSTITUTE(SUBSTITUTE(SUBSTITUTE(SUBSTITUTE(SUBSTITUTE(SUBSTITUTE(SUBSTITUTE(SUBSTITUTE(SUBSTITUTE(SUBSTITUTE(SUBSTITUTE(G240,$ED240,$ED$2&ROW($ED240)),$EC240,$EC$2&ROW($EC240)),$EB240,$EB$2&ROW($EB240)),$EA240,$EA$2&ROW($EA240)),$DZ240,$DZ$2&ROW($DZ240)),$DY240,$DY$2&ROW($DY240)),$DX240,$DX$2&ROW($DX240)),$DW240,$DW$2&ROW($DW240)),$DV240,$DV$2&ROW($DV240)),$DU240,$DU$2&ROW($DU240)),$DT240,$DT$2&ROW($DT240)),$DS240,$DS$2&ROW($DS240))))","v":"X=AS240*AU240*0"},{"$f":"IF(I240=\"Manual Entry\",\"Manual\",IF(J240=\"\",0,\"X=\"&SUBSTITUTE(SUBSTITUTE(SUBSTITUTE(SUBSTITUTE(SUBSTITUTE(SUBSTITUTE(SUBSTITUTE(SUBSTITUTE(SUBSTITUTE(SUBSTITUTE(SUBSTITUTE(SUBSTITUTE(J240,$ED240,$ED$2&ROW($ED240)),$EC240,$EC$2&ROW($EC240)),$EB240,$EB$2&ROW($EB240)),$EA240,$EA$2&ROW($EA240)),$DZ240,$DZ$2&ROW($DZ240)),$DY240,$DY$2&ROW($DY240)),$DX240,$DX$2&ROW($DX240)),$DW240,$DW$2&ROW($DW240)),$DV240,$DV$2&ROW($DV240)),$DU240,$DU$2&ROW($DU240)),$DT240,$DT$2&ROW($DT240)),$DS240,$DS$2&ROW($DS240))))","v":"X=AS240*(AW240+AY240)"},{"$f":"IF(O240=\"\",0,\"X=\"&SUBSTITUTE(SUBSTITUTE(SUBSTITUTE(SUBSTITUTE(SUBSTITUTE(SUBSTITUTE(SUBSTITUTE(SUBSTITUTE(SUBSTITUTE(SUBSTITUTE(SUBSTITUTE(SUBSTITUTE(O240,$ED240,$ED$2&ROW($ED240)),$EC240,$EC$2&ROW($EC240)),$EB240,$EB$2&ROW($EB240)),$EA240,$EA$2&ROW($EA240)),$DZ240,$DZ$2&ROW($DZ240)),$DY240,$DY$2&ROW($DY240)),$DX240,$DX$2&ROW($DX240)),$DW240,$DW$2&ROW($DW240)),$DV240,$DV$2&ROW($DV240)),$DU240,$DU$2&ROW($DU240)),$DT240,$DT$2&ROW($DT240)),$DS240,$DS$2&ROW($DS240)))","v":"X=AS240*AU240*45"},{"$f":"IF(P240=\"\",0,\"X=\"&SUBSTITUTE(SUBSTITUTE(SUBSTITUTE(SUBSTITUTE(SUBSTITUTE(SUBSTITUTE(SUBSTITUTE(SUBSTITUTE(SUBSTITUTE(SUBSTITUTE(SUBSTITUTE(SUBSTITUTE(P240,$ED240,$ED$2&ROW($ED240)),$EC240,$EC$2&ROW($EC240)),$EB240,$EB$2&ROW($EB240)),$EA240,$EA$2&ROW($EA240)),$DZ240,$DZ$2&ROW($DZ240)),$DY240,$DY$2&ROW($DY240)),$DX240,$DX$2&ROW($DX240)),$DW240,$DW$2&ROW($DW240)),$DV240,$DV$2&ROW($DV240)),$DU240,$DU$2&ROW($DU240)),$DT240,$DT$2&ROW($DT240)),$DS240,$DS$2&ROW($DS240)))","v":0},{"$f":"IF(Q240=\"\",0,\"X=\"&SUBSTITUTE(SUBSTITUTE(SUBSTITUTE(SUBSTITUTE(SUBSTITUTE(SUBSTITUTE(SUBSTITUTE(SUBSTITUTE(SUBSTITUTE(SUBSTITUTE(SUBSTITUTE(SUBSTITUTE(Q240,$ED240,$ED$2&ROW($ED240)),$EC240,$EC$2&ROW($EC240)),$EB240,$EB$2&ROW($EB240)),$EA240,$EA$2&ROW($EA240)),$DZ240,$DZ$2&ROW($DZ240)),$DY240,$DY$2&ROW($DY240)),$DX240,$DX$2&ROW($DX240)),$DW240,$DW$2&ROW($DW240)),$DV240,$DV$2&ROW($DV240)),$DU240,$DU$2&ROW($DU240)),$DT240,$DT$2&ROW($DT240)),$DS240,$DS$2&ROW($DS240)))","v":0},{"$f":"IF(R240=\"\",0,\"X=\"&SUBSTITUTE(SUBSTITUTE(SUBSTITUTE(SUBSTITUTE(SUBSTITUTE(SUBSTITUTE(SUBSTITUTE(SUBSTITUTE(SUBSTITUTE(SUBSTITUTE(SUBSTITUTE(SUBSTITUTE(R240,$ED240,$ED$2&ROW($ED240)),$EC240,$EC$2&ROW($EC240)),$EB240,$EB$2&ROW($EB240)),$EA240,$EA$2&ROW($EA240)),$DZ240,$DZ$2&ROW($DZ240)),$DY240,$DY$2&ROW($DY240)),$DX240,$DX$2&ROW($DX240)),$DW240,$DW$2&ROW($DW240)),$DV240,$DV$2&ROW($DV240)),$DU240,$DU$2&ROW($DU240)),$DT240,$DT$2&ROW($DT240)),$DS240,$DS$2&ROW($DS240)))","v":"X=AS240*AU240*1.062*0.05"},{"$f":"IF(S240=\"\",0,\"X=\"&SUBSTITUTE(SUBSTITUTE(SUBSTITUTE(SUBSTITUTE(SUBSTITUTE(SUBSTITUTE(SUBSTITUTE(SUBSTITUTE(SUBSTITUTE(SUBSTITUTE(SUBSTITUTE(SUBSTITUTE(S240,$ED240,$ED$2&ROW($ED240)),$EC240,$EC$2&ROW($EC240)),$EB240,$EB$2&ROW($EB240)),$EA240,$EA$2&ROW($EA240)),$DZ240,$DZ$2&ROW($DZ240)),$DY240,$DY$2&ROW($DY240)),$DX240,$DX$2&ROW($DX240)),$DW240,$DW$2&ROW($DW240)),$DV240,$DV$2&ROW($DV240)),$DU240,$DU$2&ROW($DU240)),$DT240,$DT$2&ROW($DT240)),$DS240,$DS$2&ROW($DS240)))","v":0},{"$f":"IF(T240=\"\",0,\"X=\"&SUBSTITUTE(SUBSTITUTE(SUBSTITUTE(SUBSTITUTE(SUBSTITUTE(SUBSTITUTE(SUBSTITUTE(SUBSTITUTE(SUBSTITUTE(SUBSTITUTE(SUBSTITUTE(SUBSTITUTE(T240,$ED240,$ED$2&ROW($ED240)),$EC240,$EC$2&ROW($EC240)),$EB240,$EB$2&ROW($EB240)),$EA240,$EA$2&ROW($EA240)),$DZ240,$DZ$2&ROW($DZ240)),$DY240,$DY$2&ROW($DY240)),$DX240,$DX$2&ROW($DX240)),$DW240,$DW$2&ROW($DW240)),$DV240,$DV$2&ROW($DV240)),$DU240,$DU$2&ROW($DU240)),$DT240,$DT$2&ROW($DT240)),$DS240,$DS$2&ROW($DS240)))","v":0},{"$f":"IF(U240=\"\",0,\"X=\"&SUBSTITUTE(SUBSTITUTE(SUBSTITUTE(SUBSTITUTE(SUBSTITUTE(SUBSTITUTE(SUBSTITUTE(SUBSTITUTE(SUBSTITUTE(SUBSTITUTE(SUBSTITUTE(SUBSTITUTE(U240,$ED240,$ED$2&ROW($ED240)),$EC240,$EC$2&ROW($EC240)),$EB240,$EB$2&ROW($EB240)),$EA240,$EA$2&ROW($EA240)),$DZ240,$DZ$2&ROW($DZ240)),$DY240,$DY$2&ROW($DY240)),$DX240,$DX$2&ROW($DX240)),$DW240,$DW$2&ROW($DW240)),$DV240,$DV$2&ROW($DV240)),$DU240,$DU$2&ROW($DU240)),$DT240,$DT$2&ROW($DT240)),$DS240,$DS$2&ROW($DS240)))","v":"X=AS240*AU240*0.009"},{"$f":"IF(V240=\"\",0,\"X=\"&SUBSTITUTE(SUBSTITUTE(SUBSTITUTE(SUBSTITUTE(SUBSTITUTE(SUBSTITUTE(SUBSTITUTE(SUBSTITUTE(SUBSTITUTE(SUBSTITUTE(SUBSTITUTE(SUBSTITUTE(V240,$ED240,$ED$2&ROW($ED240)),$EC240,$EC$2&ROW($EC240)),$EB240,$EB$2&ROW($EB240)),$EA240,$EA$2&ROW($EA240)),$DZ240,$DZ$2&ROW($DZ240)),$DY240,$DY$2&ROW($DY240)),$DX240,$DX$2&ROW($DX240)),$DW240,$DW$2&ROW($DW240)),$DV240,$DV$2&ROW($DV240)),$DU240,$DU$2&ROW($DU240)),$DT240,$DT$2&ROW($DT240)),$DS240,$DS$2&ROW($DS240)))","v":"X=AS240*AU240*0.006"},{"$f":"IF(W240=\"\",0,\"X=\"&SUBSTITUTE(SUBSTITUTE(SUBSTITUTE(SUBSTITUTE(SUBSTITUTE(SUBSTITUTE(SUBSTITUTE(SUBSTITUTE(SUBSTITUTE(SUBSTITUTE(SUBSTITUTE(SUBSTITUTE(W240,$ED240,$ED$2&ROW($ED240)),$EC240,$EC$2&ROW($EC240)),$EB240,$EB$2&ROW($EB240)),$EA240,$EA$2&ROW($EA240)),$DZ240,$DZ$2&ROW($DZ240)),$DY240,$DY$2&ROW($DY240)),$DX240,$DX$2&ROW($DX240)),$DW240,$DW$2&ROW($DW240)),$DV240,$DV$2&ROW($DV240)),$DU240,$DU$2&ROW($DU240)),$DT240,$DT$2&ROW($DT240)),$DS240,$DS$2&ROW($DS240)))","v":"X=AS240*AU240*10*-0.005"},{"$f":"IF(X240=\"\",0,\"X=\"&SUBSTITUTE(SUBSTITUTE(SUBSTITUTE(SUBSTITUTE(SUBSTITUTE(SUBSTITUTE(SUBSTITUTE(SUBSTITUTE(SUBSTITUTE(SUBSTITUTE(SUBSTITUTE(SUBSTITUTE(X240,$ED240,$ED$2&ROW($ED240)),$EC240,$EC$2&ROW($EC240)),$EB240,$EB$2&ROW($EB240)),$EA240,$EA$2&ROW($EA240)),$DZ240,$DZ$2&ROW($DZ240)),$DY240,$DY$2&ROW($DY240)),$DX240,$DX$2&ROW($DX240)),$DW240,$DW$2&ROW($DW240)),$DV240,$DV$2&ROW($DV240)),$DU240,$DU$2&ROW($DU240)),$DT240,$DT$2&ROW($DT240)),$DS240,$DS$2&ROW($DS240)))","v":"X=AS240*AU240*-0.005"},{"$f":"IF(Y240=\"\",0,\"X=\"&SUBSTITUTE(SUBSTITUTE(SUBSTITUTE(SUBSTITUTE(SUBSTITUTE(SUBSTITUTE(SUBSTITUTE(SUBSTITUTE(SUBSTITUTE(SUBSTITUTE(SUBSTITUTE(SUBSTITUTE(Y240,$ED240,$ED$2&ROW($ED240)),$EC240,$EC$2&ROW($EC240)),$EB240,$EB$2&ROW($EB240)),$EA240,$EA$2&ROW($EA240)),$DZ240,$DZ$2&ROW($DZ240)),$DY240,$DY$2&ROW($DY240)),$DX240,$DX$2&ROW($DX240)),$DW240,$DW$2&ROW($DW240)),$DV240,$DV$2&ROW($DV240)),$DU240,$DU$2&ROW($DU240)),$DT240,$DT$2&ROW($DT240)),$DS240,$DS$2&ROW($DS240)))","v":"X=AS240*AU240*-0.038"},{"$f":"IF(Z240=\"\",0,\"X=\"&SUBSTITUTE(SUBSTITUTE(SUBSTITUTE(SUBSTITUTE(SUBSTITUTE(SUBSTITUTE(SUBSTITUTE(SUBSTITUTE(SUBSTITUTE(SUBSTITUTE(SUBSTITUTE(SUBSTITUTE(Z240,$ED240,$ED$2&ROW($ED240)),$EC240,$EC$2&ROW($EC240)),$EB240,$EB$2&ROW($EB240)),$EA240,$EA$2&ROW($EA240)),$DZ240,$DZ$2&ROW($DZ240)),$DY240,$DY$2&ROW($DY240)),$DX240,$DX$2&ROW($DX240)),$DW240,$DW$2&ROW($DW240)),$DV240,$DV$2&ROW($DV240)),$DU240,$DU$2&ROW($DU240)),$DT240,$DT$2&ROW($DT240)),$DS240,$DS$2&ROW($DS240)))","v":"X=AS240*AU240*-0.001"},{"$f":"IF(AA240=\"\",0,\"X=\"&SUBSTITUTE(SUBSTITUTE(SUBSTITUTE(SUBSTITUTE(SUBSTITUTE(SUBSTITUTE(SUBSTITUTE(SUBSTITUTE(SUBSTITUTE(SUBSTITUTE(SUBSTITUTE(SUBSTITUTE(AA240,$ED240,$ED$2&ROW($ED240)),$EC240,$EC$2&ROW($EC240)),$EB240,$EB$2&ROW($EB240)),$EA240,$EA$2&ROW($EA240)),$DZ240,$DZ$2&ROW($DZ240)),$DY240,$DY$2&ROW($DY240)),$DX240,$DX$2&ROW($DX240)),$DW240,$DW$2&ROW($DW240)),$DV240,$DV$2&ROW($DV240)),$DU240,$DU$2&ROW($DU240)),$DT240,$DT$2&ROW($DT240)),$DS240,$DS$2&ROW($DS240)))","v":"X=AS240*AU240*-0.008"},{"$f":"IF(AB240=\"\",0,\"X=\"&SUBSTITUTE(SUBSTITUTE(SUBSTITUTE(SUBSTITUTE(SUBSTITUTE(SUBSTITUTE(SUBSTITUTE(SUBSTITUTE(SUBSTITUTE(SUBSTITUTE(SUBSTITUTE(SUBSTITUTE(AB240,$ED240,$ED$2&ROW($ED240)),$EC240,$EC$2&ROW($EC240)),$EB240,$EB$2&ROW($EB240)),$EA240,$EA$2&ROW($EA240)),$DZ240,$DZ$2&ROW($DZ240)),$DY240,$DY$2&ROW($DY240)),$DX240,$DX$2&ROW($DX240)),$DW240,$DW$2&ROW($DW240)),$DV240,$DV$2&ROW($DV240)),$DU240,$DU$2&ROW($DU240)),$DT240,$DT$2&ROW($DT240)),$DS240,$DS$2&ROW($DS240)))","v":0},null,null,"{Factor:WinterCF}","{Factor:SummerCF}",{"$f":"IFERROR(INDEX($EG240:$IV240,MATCH(0,COUNTIF($DR240:DT240,$EG240:$IV240),0)),\"\")","v":"{Measure:Quantity}"},{"$f":"IFERROR(INDEX($EG240:$IV240,MATCH(0,COUNTIF($DR240:DU240,$EG240:$IV240),0)),\"\")","v":"{Package Size}"},{"$f":"IFERROR(INDEX($EG240:$IV240,MATCH(0,COUNTIF($DR240:DV240,$EG240:$IV240),0)),\"\")","v":"{Rebate per Package}"},{"$f":"IFERROR(INDEX($EG240:$IV240,MATCH(0,COUNTIF($DR240:DW240,$EG240:$IV240),0)),\"\")","v":"{Marketing Fee}"},{"$f":"IFERROR(INDEX($EG240:$IV240,MATCH(0,COUNTIF($DR240:DX240,$EG240:$IV240),0)),\"\")","v":""},{"$f":"IFERROR(INDEX($EG240:$IV240,MATCH(0,COUNTIF($DR240:DY240,$EG240:$IV240),0)),\"\")","v":""},{"$f":"IFERROR(INDEX($EG240:$IV240,MATCH(0,COUNTIF($DR240:DZ240,$EG240:$IV240),0)),\"\")","v":""},{"$f":"IFERROR(INDEX($EG240:$IV240,MATCH(0,COUNTIF($DR240:EA240,$EG240:$IV240),0)),\"\")","v":""},{"$f":"IFERROR(INDEX($EG240:$IV240,MATCH(0,COUNTIF($DR240:EB240,$EG240:$IV240),0)),\"\")","v":""},{"$f":"IFERROR(INDEX($EG240:$IV240,MATCH(0,COUNTIF($DR240:EC240,$EG240:$IV240),0)),\"\")","v":""},null,null,{"$f":"IFERROR(MID($G240,FIND(CHAR(160),SUBSTITUTE($G240,\"{\",CHAR(160),EG$1)),FIND(CHAR(160),SUBSTITUTE($G240,\"}\",CHAR(160),EG$1))-FIND(CHAR(160),SUBSTITUTE($G240,\"{\",CHAR(160),EG$1))+1),\"\")","v":"{Measure:Quantity}"},{"$f":"IFERROR(MID($G240,FIND(CHAR(160),SUBSTITUTE($G240,\"{\",CHAR(160),EH$1)),FIND(CHAR(160),SUBSTITUTE($G240,\"}\",CHAR(160),EH$1))-FIND(CHAR(160),SUBSTITUTE($G240,\"{\",CHAR(160),EH$1))+1),\"\")","v":"{Package Size}"},{"$f":"IFERROR(MID($G240,FIND(CHAR(160),SUBSTITUTE($G240,\"{\",CHAR(160),EI$1)),FIND(CHAR(160),SUBSTITUTE($G240,\"}\",CHAR(160),EI$1))-FIND(CHAR(160),SUBSTITUTE($G240,\"{\",CHAR(160),EI$1))+1),\"\")","v":""},{"$f":"IFERROR(MID($G240,FIND(CHAR(160),SUBSTITUTE($G240,\"{\",CHAR(160),EJ$1)),FIND(CHAR(160),SUBSTITUTE($G240,\"}\",CHAR(160),EJ$1))-FIND(CHAR(160),SUBSTITUTE($G240,\"{\",CHAR(160),EJ$1))+1),\"\")","v":""},{"$f":"IFERROR(MID($G240,FIND(CHAR(160),SUBSTITUTE($G240,\"{\",CHAR(160),EK$1)),FIND(CHAR(160),SUBSTITUTE($G240,\"}\",CHAR(160),EK$1))-FIND(CHAR(160),SUBSTITUTE($G240,\"{\",CHAR(160),EK$1))+1),\"\")","v":""},{"$f":"IFERROR(MID($G240,FIND(CHAR(160),SUBSTITUTE($G240,\"{\",CHAR(160),EL$1)),FIND(CHAR(160),SUBSTITUTE($G240,\"}\",CHAR(160),EL$1))-FIND(CHAR(160),SUBSTITUTE($G240,\"{\",CHAR(160),EL$1))+1),\"\")","v":""},{"$f":"IFERROR(MID($G240,FIND(CHAR(160),SUBSTITUTE($G240,\"{\",CHAR(160),EM$1)),FIND(CHAR(160),SUBSTITUTE($G240,\"}\",CHAR(160),EM$1))-FIND(CHAR(160),SUBSTITUTE($G240,\"{\",CHAR(160),EM$1))+1),\"\")","v":""},{"$f":"IFERROR(MID($G240,FIND(CHAR(160),SUBSTITUTE($G240,\"{\",CHAR(160),EN$1)),FIND(CHAR(160),SUBSTITUTE($G240,\"}\",CHAR(160),EN$1))-FIND(CHAR(160),SUBSTITUTE($G240,\"{\",CHAR(160),EN$1))+1),\"\")","v":""},{"$f":"IFERROR(MID($G240,FIND(CHAR(160),SUBSTITUTE($G240,\"{\",CHAR(160),EO$1)),FIND(CHAR(160),SUBSTITUTE($G240,\"}\",CHAR(160),EO$1))-FIND(CHAR(160),SUBSTITUTE($G240,\"{\",CHAR(160),EO$1))+1),\"\")","v":""},{"$f":"IFERROR(MID($G240,FIND(CHAR(160),SUBSTITUTE($G240,\"{\",CHAR(160),EP$1)),FIND(CHAR(160),SUBSTITUTE($G240,\"}\",CHAR(160),EP$1))-FIND(CHAR(160),SUBSTITUTE($G240,\"{\",CHAR(160),EP$1))+1),\"\")","v":""},{"$f":"IFERROR(MID($J240,FIND(CHAR(160),SUBSTITUTE($J240,\"{\",CHAR(160),EQ$1)),FIND(CHAR(160),SUBSTITUTE($J240,\"}\",CHAR(160),EQ$1))-FIND(CHAR(160),SUBSTITUTE($J240,\"{\",CHAR(160),EQ$1))+1),\"\")","v":"{Measure:Quantity}"},{"$f":"IFERROR(MID($J240,FIND(CHAR(160),SUBSTITUTE($J240,\"{\",CHAR(160),ER$1)),FIND(CHAR(160),SUBSTITUTE($J240,\"}\",CHAR(160),ER$1))-FIND(CHAR(160),SUBSTITUTE($J240,\"{\",CHAR(160),ER$1))+1),\"\")","v":"{Rebate per Package}"},{"$f":"IFERROR(MID($J240,FIND(CHAR(160),SUBSTITUTE($J240,\"{\",CHAR(160),ES$1)),FIND(CHAR(160),SUBSTITUTE($J240,\"}\",CHAR(160),ES$1))-FIND(CHAR(160),SUBSTITUTE($J240,\"{\",CHAR(160),ES$1))+1),\"\")","v":"{Marketing Fee}"},{"$f":"IFERROR(MID($J240,FIND(CHAR(160),SUBSTITUTE($J240,\"{\",CHAR(160),ET$1)),FIND(CHAR(160),SUBSTITUTE($J240,\"}\",CHAR(160),ET$1))-FIND(CHAR(160),SUBSTITUTE($J240,\"{\",CHAR(160),ET$1))+1),\"\")","v":""},{"$f":"IFERROR(MID($J240,FIND(CHAR(160),SUBSTITUTE($J240,\"{\",CHAR(160),EU$1)),FIND(CHAR(160),SUBSTITUTE($J240,\"}\",CHAR(160),EU$1))-FIND(CHAR(160),SUBSTITUTE($J240,\"{\",CHAR(160),EU$1))+1),\"\")","v":""},{"$f":"IFERROR(MID($J240,FIND(CHAR(160),SUBSTITUTE($J240,\"{\",CHAR(160),EV$1)),FIND(CHAR(160),SUBSTITUTE($J240,\"}\",CHAR(160),EV$1))-FIND(CHAR(160),SUBSTITUTE($J240,\"{\",CHAR(160),EV$1))+1),\"\")","v":""},{"$f":"IFERROR(MID($J240,FIND(CHAR(160),SUBSTITUTE($J240,\"{\",CHAR(160),EW$1)),FIND(CHAR(160),SUBSTITUTE($J240,\"}\",CHAR(160),EW$1))-FIND(CHAR(160),SUBSTITUTE($J240,\"{\",CHAR(160),EW$1))+1),\"\")","v":""},{"$f":"IFERROR(MID($J240,FIND(CHAR(160),SUBSTITUTE($J240,\"{\",CHAR(160),EX$1)),FIND(CHAR(160),SUBSTITUTE($J240,\"}\",CHAR(160),EX$1))-FIND(CHAR(160),SUBSTITUTE($J240,\"{\",CHAR(160),EX$1))+1),\"\")","v":""},{"$f":"IFERROR(MID($J240,FIND(CHAR(160),SUBSTITUTE($J240,\"{\",CHAR(160),EY$1)),FIND(CHAR(160),SUBSTITUTE($J240,\"}\",CHAR(160),EY$1))-FIND(CHAR(160),SUBSTITUTE($J240,\"{\",CHAR(160),EY$1))+1),\"\")","v":""},{"$f":"IFERROR(MID($J240,FIND(CHAR(160),SUBSTITUTE($J240,\"{\",CHAR(160),EZ$1)),FIND(CHAR(160),SUBSTITUTE($J240,\"}\",CHAR(160),EZ$1))-FIND(CHAR(160),SUBSTITUTE($J240,\"{\",CHAR(160),EZ$1))+1),\"\")","v":""},{"$f":"IFERROR(MID($J240,FIND(CHAR(160),SUBSTITUTE($J240,\"{\",CHAR(160),FA$1)),FIND(CHAR(160),SUBSTITUTE($J240,\"}\",CHAR(160),FA$1))-FIND(CHAR(160),SUBSTITUTE($J240,\"{\",CHAR(160),FA$1))+1),\"\")","v":"{Measure:Quantity}"},{"$f":"IFERROR(MID($J240,FIND(CHAR(160),SUBSTITUTE($J240,\"{\",CHAR(160),FB$1)),FIND(CHAR(160),SUBSTITUTE($J240,\"}\",CHAR(160),FB$1))-FIND(CHAR(160),SUBSTITUTE($J240,\"{\",CHAR(160),FB$1))+1),\"\")","v":"{Rebate per Package}"},{"$f":"IFERROR(MID($O240,FIND(CHAR(160),SUBSTITUTE($O240,\"{\",CHAR(160),FC$1)),FIND(CHAR(160),SUBSTITUTE($O240,\"}\",CHAR(160),FC$1))-FIND(CHAR(160),SUBSTITUTE($O240,\"{\",CHAR(160),FC$1))+1),\"\")","v":""},{"$f":"IFERROR(MID($O240,FIND(CHAR(160),SUBSTITUTE($O240,\"{\",CHAR(160),FD$1)),FIND(CHAR(160),SUBSTITUTE($O240,\"}\",CHAR(160),FD$1))-FIND(CHAR(160),SUBSTITUTE($O240,\"{\",CHAR(160),FD$1))+1),\"\")","v":""},{"$f":"IFERROR(MID($O240,FIND(CHAR(160),SUBSTITUTE($O240,\"{\",CHAR(160),FE$1)),FIND(CHAR(160),SUBSTITUTE($O240,\"}\",CHAR(160),FE$1))-FIND(CHAR(160),SUBSTITUTE($O240,\"{\",CHAR(160),FE$1))+1),\"\")","v":""},{"$f":"IFERROR(MID($O240,FIND(CHAR(160),SUBSTITUTE($O240,\"{\",CHAR(160),FF$1)),FIND(CHAR(160),SUBSTITUTE($O240,\"}\",CHAR(160),FF$1))-FIND(CHAR(160),SUBSTITUTE($O240,\"{\",CHAR(160),FF$1))+1),\"\")","v":""},{"$f":"IFERROR(MID($O240,FIND(CHAR(160),SUBSTITUTE($O240,\"{\",CHAR(160),FG$1)),FIND(CHAR(160),SUBSTITUTE($O240,\"}\",CHAR(160),FG$1))-FIND(CHAR(160),SUBSTITUTE($O240,\"{\",CHAR(160),FG$1))+1),\"\")","v":""},{"$f":"IFERROR(MID($O240,FIND(CHAR(160),SUBSTITUTE($O240,\"{\",CHAR(160),FH$1)),FIND(CHAR(160),SUBSTITUTE($O240,\"}\",CHAR(160),FH$1))-FIND(CHAR(160),SUBSTITUTE($O240,\"{\",CHAR(160),FH$1))+1),\"\")","v":""},{"$f":"IFERROR(MID($O240,FIND(CHAR(160),SUBSTITUTE($O240,\"{\",CHAR(160),FI$1)),FIND(CHAR(160),SUBSTITUTE($O240,\"}\",CHAR(160),FI$1))-FIND(CHAR(160),SUBSTITUTE($O240,\"{\",CHAR(160),FI$1))+1),\"\")","v":""},{"$f":"IFERROR(MID($O240,FIND(CHAR(160),SUBSTITUTE($O240,\"{\",CHAR(160),FJ$1)),FIND(CHAR(160),SUBSTITUTE($O240,\"}\",CHAR(160),FJ$1))-FIND(CHAR(160),SUBSTITUTE($O240,\"{\",CHAR(160),FJ$1))+1),\"\")","v":""},{"$f":"IFERROR(MID($O240,FIND(CHAR(160),SUBSTITUTE($O240,\"{\",CHAR(160),FK$1)),FIND(CHAR(160),SUBSTITUTE($O240,\"}\",CHAR(160),FK$1))-FIND(CHAR(160),SUBSTITUTE($O240,\"{\",CHAR(160),FK$1))+1),\"\")","v":"{Measure:Quantity}"},{"$f":"IFERROR(MID($O240,FIND(CHAR(160),SUBSTITUTE($O240,\"{\",CHAR(160),FL$1)),FIND(CHAR(160),SUBSTITUTE($O240,\"}\",CHAR(160),FL$1))-FIND(CHAR(160),SUBSTITUTE($O240,\"{\",CHAR(160),FL$1))+1),\"\")","v":"{Package Size}"},{"$f":"IFERROR(MID($R240,FIND(CHAR(160),SUBSTITUTE($R240,\"{\",CHAR(160),FM$1)),FIND(CHAR(160),SUBSTITUTE($R240,\"}\",CHAR(160),FM$1))-FIND(CHAR(160),SUBSTITUTE($R240,\"{\",CHAR(160),FM$1))+1),\"\")","v":""},{"$f":"IFERROR(MID($R240,FIND(CHAR(160),SUBSTITUTE($R240,\"{\",CHAR(160),FN$1)),FIND(CHAR(160),SUBSTITUTE($R240,\"}\",CHAR(160),FN$1))-FIND(CHAR(160),SUBSTITUTE($R240,\"{\",CHAR(160),FN$1))+1),\"\")","v":""},{"$f":"IFERROR(MID($R240,FIND(CHAR(160),SUBSTITUTE($R240,\"{\",CHAR(160),FO$1)),FIND(CHAR(160),SUBSTITUTE($R240,\"}\",CHAR(160),FO$1))-FIND(CHAR(160),SUBSTITUTE($R240,\"{\",CHAR(160),FO$1))+1),\"\")","v":""},{"$f":"IFERROR(MID($R240,FIND(CHAR(160),SUBSTITUTE($R240,\"{\",CHAR(160),FP$1)),FIND(CHAR(160),SUBSTITUTE($R240,\"}\",CHAR(160),FP$1))-FIND(CHAR(160),SUBSTITUTE($R240,\"{\",CHAR(160),FP$1))+1),\"\")","v":""},{"$f":"IFERROR(MID($R240,FIND(CHAR(160),SUBSTITUTE($R240,\"{\",CHAR(160),FQ$1)),FIND(CHAR(160),SUBSTITUTE($R240,\"}\",CHAR(160),FQ$1))-FIND(CHAR(160),SUBSTITUTE($R240,\"{\",CHAR(160),FQ$1))+1),\"\")","v":""},{"$f":"IFERROR(MID($R240,FIND(CHAR(160),SUBSTITUTE($R240,\"{\",CHAR(160),FR$1)),FIND(CHAR(160),SUBSTITUTE($R240,\"}\",CHAR(160),FR$1))-FIND(CHAR(160),SUBSTITUTE($R240,\"{\",CHAR(160),FR$1))+1),\"\")","v":""},{"$f":"IFERROR(MID($R240,FIND(CHAR(160),SUBSTITUTE($R240,\"{\",CHAR(160),FS$1)),FIND(CHAR(160),SUBSTITUTE($R240,\"}\",CHAR(160),FS$1))-FIND(CHAR(160),SUBSTITUTE($R240,\"{\",CHAR(160),FS$1))+1),\"\")","v":""},{"$f":"IFERROR(MID($R240,FIND(CHAR(160),SUBSTITUTE($R240,\"{\",CHAR(160),FT$1)),FIND(CHAR(160),SUBSTITUTE($R240,\"}\",CHAR(160),FT$1))-FIND(CHAR(160),SUBSTITUTE($R240,\"{\",CHAR(160),FT$1))+1),\"\")","v":""},{"$f":"IFERROR(MID($R240,FIND(CHAR(160),SUBSTITUTE($R240,\"{\",CHAR(160),FU$1)),FIND(CHAR(160),SUBSTITUTE($R240,\"}\",CHAR(160),FU$1))-FIND(CHAR(160),SUBSTITUTE($R240,\"{\",CHAR(160),FU$1))+1),\"\")","v":"{Measure:Quantity}"},{"$f":"IFERROR(MID($R240,FIND(CHAR(160),SUBSTITUTE($R240,\"{\",CHAR(160),FV$1)),FIND(CHAR(160),SUBSTITUTE($R240,\"}\",CHAR(160),FV$1))-FIND(CHAR(160),SUBSTITUTE($R240,\"{\",CHAR(160),FV$1))+1),\"\")","v":"{Package Size}"},{"$f":"IFERROR(MID($U240,FIND(CHAR(160),SUBSTITUTE($U240,\"{\",CHAR(160),FW$1)),FIND(CHAR(160),SUBSTITUTE($U240,\"}\",CHAR(160),FW$1))-FIND(CHAR(160),SUBSTITUTE($U240,\"{\",CHAR(160),FW$1))+1),\"\")","v":""},{"$f":"IFERROR(MID($U240,FIND(CHAR(160),SUBSTITUTE($U240,\"{\",CHAR(160),FX$1)),FIND(CHAR(160),SUBSTITUTE($U240,\"}\",CHAR(160),FX$1))-FIND(CHAR(160),SUBSTITUTE($U240,\"{\",CHAR(160),FX$1))+1),\"\")","v":""},{"$f":"IFERROR(MID($U240,FIND(CHAR(160),SUBSTITUTE($U240,\"{\",CHAR(160),FY$1)),FIND(CHAR(160),SUBSTITUTE($U240,\"}\",CHAR(160),FY$1))-FIND(CHAR(160),SUBSTITUTE($U240,\"{\",CHAR(160),FY$1))+1),\"\")","v":""},{"$f":"IFERROR(MID($U240,FIND(CHAR(160),SUBSTITUTE($U240,\"{\",CHAR(160),FZ$1)),FIND(CHAR(160),SUBSTITUTE($U240,\"}\",CHAR(160),FZ$1))-FIND(CHAR(160),SUBSTITUTE($U240,\"{\",CHAR(160),FZ$1))+1),\"\")","v":""},{"$f":"IFERROR(MID($U240,FIND(CHAR(160),SUBSTITUTE($U240,\"{\",CHAR(160),GA$1)),FIND(CHAR(160),SUBSTITUTE($U240,\"}\",CHAR(160),GA$1))-FIND(CHAR(160),SUBSTITUTE($U240,\"{\",CHAR(160),GA$1))+1),\"\")","v":""},{"$f":"IFERROR(MID($U240,FIND(CHAR(160),SUBSTITUTE($U240,\"{\",CHAR(160),GB$1)),FIND(CHAR(160),SUBSTITUTE($U240,\"}\",CHAR(160),GB$1))-FIND(CHAR(160),SUBSTITUTE($U240,\"{\",CHAR(160),GB$1))+1),\"\")","v":""},{"$f":"IFERROR(MID($U240,FIND(CHAR(160),SUBSTITUTE($U240,\"{\",CHAR(160),GC$1)),FIND(CHAR(160),SUBSTITUTE($U240,\"}\",CHAR(160),GC$1))-FIND(CHAR(160),SUBSTITUTE($U240,\"{\",CHAR(160),GC$1))+1),\"\")","v":""},{"$f":"IFERROR(MID($U240,FIND(CHAR(160),SUBSTITUTE($U240,\"{\",CHAR(160),GD$1)),FIND(CHAR(160),SUBSTITUTE($U240,\"}\",CHAR(160),GD$1))-FIND(CHAR(160),SUBSTITUTE($U240,\"{\",CHAR(160),GD$1))+1),\"\")","v":""},{"$f":"IFERROR(MID($U240,FIND(CHAR(160),SUBSTITUTE($U240,\"{\",CHAR(160),GE$1)),FIND(CHAR(160),SUBSTITUTE($U240,\"}\",CHAR(160),GE$1))-FIND(CHAR(160),SUBSTITUTE($U240,\"{\",CHAR(160),GE$1))+1),\"\")","v":"{Measure:Quantity}"},{"$f":"IFERROR(MID($U240,FIND(CHAR(160),SUBSTITUTE($U240,\"{\",CHAR(160),GF$1)),FIND(CHAR(160),SUBSTITUTE($U240,\"}\",CHAR(160),GF$1))-FIND(CHAR(160),SUBSTITUTE($U240,\"{\",CHAR(160),GF$1))+1),\"\")","v":"{Package Size}"},{"$f":"IFERROR(MID($V240,FIND(CHAR(160),SUBSTITUTE($V240,\"{\",CHAR(160),GG$1)),FIND(CHAR(160),SUBSTITUTE($V240,\"}\",CHAR(160),GG$1))-FIND(CHAR(160),SUBSTITUTE($V240,\"{\",CHAR(160),GG$1))+1),\"\")","v":""},{"$f":"IFERROR(MID($V240,FIND(CHAR(160),SUBSTITUTE($V240,\"{\",CHAR(160),GH$1)),FIND(CHAR(160),SUBSTITUTE($V240,\"}\",CHAR(160),GH$1))-FIND(CHAR(160),SUBSTITUTE($V240,\"{\",CHAR(160),GH$1))+1),\"\")","v":""},{"$f":"IFERROR(MID($V240,FIND(CHAR(160),SUBSTITUTE($V240,\"{\",CHAR(160),GI$1)),FIND(CHAR(160),SUBSTITUTE($V240,\"}\",CHAR(160),GI$1))-FIND(CHAR(160),SUBSTITUTE($V240,\"{\",CHAR(160),GI$1))+1),\"\")","v":""},{"$f":"IFERROR(MID($V240,FIND(CHAR(160),SUBSTITUTE($V240,\"{\",CHAR(160),GJ$1)),FIND(CHAR(160),SUBSTITUTE($V240,\"}\",CHAR(160),GJ$1))-FIND(CHAR(160),SUBSTITUTE($V240,\"{\",CHAR(160),GJ$1))+1),\"\")","v":""},{"$f":"IFERROR(MID($V240,FIND(CHAR(160),SUBSTITUTE($V240,\"{\",CHAR(160),GK$1)),FIND(CHAR(160),SUBSTITUTE($V240,\"}\",CHAR(160),GK$1))-FIND(CHAR(160),SUBSTITUTE($V240,\"{\",CHAR(160),GK$1))+1),\"\")","v":""},{"$f":"IFERROR(MID($V240,FIND(CHAR(160),SUBSTITUTE($V240,\"{\",CHAR(160),GL$1)),FIND(CHAR(160),SUBSTITUTE($V240,\"}\",CHAR(160),GL$1))-FIND(CHAR(160),SUBSTITUTE($V240,\"{\",CHAR(160),GL$1))+1),\"\")","v":""},{"$f":"IFERROR(MID($V240,FIND(CHAR(160),SUBSTITUTE($V240,\"{\",CHAR(160),GM$1)),FIND(CHAR(160),SUBSTITUTE($V240,\"}\",CHAR(160),GM$1))-FIND(CHAR(160),SUBSTITUTE($V240,\"{\",CHAR(160),GM$1))+1),\"\")","v":""},{"$f":"IFERROR(MID($V240,FIND(CHAR(160),SUBSTITUTE($V240,\"{\",CHAR(160),GN$1)),FIND(CHAR(160),SUBSTITUTE($V240,\"}\",CHAR(160),GN$1))-FIND(CHAR(160),SUBSTITUTE($V240,\"{\",CHAR(160),GN$1))+1),\"\")","v":""},{"$f":"IFERROR(MID($V240,FIND(CHAR(160),SUBSTITUTE($V240,\"{\",CHAR(160),GO$1)),FIND(CHAR(160),SUBSTITUTE($V240,\"}\",CHAR(160),GO$1))-FIND(CHAR(160),SUBSTITUTE($V240,\"{\",CHAR(160),GO$1))+1),\"\")","v":"{Measure:Quantity}"},{"$f":"IFERROR(MID($V240,FIND(CHAR(160),SUBSTITUTE($V240,\"{\",CHAR(160),GP$1)),FIND(CHAR(160),SUBSTITUTE($V240,\"}\",CHAR(160),GP$1))-FIND(CHAR(160),SUBSTITUTE($V240,\"{\",CHAR(160),GP$1))+1),\"\")","v":"{Package Size}"},{"$f":"IFERROR(MID($W240,FIND(CHAR(160),SUBSTITUTE($W240,\"{\",CHAR(160),GQ$1)),FIND(CHAR(160),SUBSTITUTE($W240,\"}\",CHAR(160),GQ$1))-FIND(CHAR(160),SUBSTITUTE($W240,\"{\",CHAR(160),GQ$1))+1),\"\")","v":""},{"$f":"IFERROR(MID($W240,FIND(CHAR(160),SUBSTITUTE($W240,\"{\",CHAR(160),GR$1)),FIND(CHAR(160),SUBSTITUTE($W240,\"}\",CHAR(160),GR$1))-FIND(CHAR(160),SUBSTITUTE($W240,\"{\",CHAR(160),GR$1))+1),\"\")","v":""},{"$f":"IFERROR(MID($W240,FIND(CHAR(160),SUBSTITUTE($W240,\"{\",CHAR(160),GS$1)),FIND(CHAR(160),SUBSTITUTE($W240,\"}\",CHAR(160),GS$1))-FIND(CHAR(160),SUBSTITUTE($W240,\"{\",CHAR(160),GS$1))+1),\"\")","v":""},{"$f":"IFERROR(MID($W240,FIND(CHAR(160),SUBSTITUTE($W240,\"{\",CHAR(160),GT$1)),FIND(CHAR(160),SUBSTITUTE($W240,\"}\",CHAR(160),GT$1))-FIND(CHAR(160),SUBSTITUTE($W240,\"{\",CHAR(160),GT$1))+1),\"\")","v":""},{"$f":"IFERROR(MID($W240,FIND(CHAR(160),SUBSTITUTE($W240,\"{\",CHAR(160),GU$1)),FIND(CHAR(160),SUBSTITUTE($W240,\"}\",CHAR(160),GU$1))-FIND(CHAR(160),SUBSTITUTE($W240,\"{\",CHAR(160),GU$1))+1),\"\")","v":""},{"$f":"IFERROR(MID($W240,FIND(CHAR(160),SUBSTITUTE($W240,\"{\",CHAR(160),GV$1)),FIND(CHAR(160),SUBSTITUTE($W240,\"}\",CHAR(160),GV$1))-FIND(CHAR(160),SUBSTITUTE($W240,\"{\",CHAR(160),GV$1))+1),\"\")","v":""},{"$f":"IFERROR(MID($W240,FIND(CHAR(160),SUBSTITUTE($W240,\"{\",CHAR(160),GW$1)),FIND(CHAR(160),SUBSTITUTE($W240,\"}\",CHAR(160),GW$1))-FIND(CHAR(160),SUBSTITUTE($W240,\"{\",CHAR(160),GW$1))+1),\"\")","v":""},{"$f":"IFERROR(MID($W240,FIND(CHAR(160),SUBSTITUTE($W240,\"{\",CHAR(160),GX$1)),FIND(CHAR(160),SUBSTITUTE($W240,\"}\",CHAR(160),GX$1))-FIND(CHAR(160),SUBSTITUTE($W240,\"{\",CHAR(160),GX$1))+1),\"\")","v":""},{"$f":"IFERROR(MID($W240,FIND(CHAR(160),SUBSTITUTE($W240,\"{\",CHAR(160),GY$1)),FIND(CHAR(160),SUBSTITUTE($W240,\"}\",CHAR(160),GY$1))-FIND(CHAR(160),SUBSTITUTE($W240,\"{\",CHAR(160),GY$1))+1),\"\")","v":"{Measure:Quantity}"},{"$f":"IFERROR(MID($W240,FIND(CHAR(160),SUBSTITUTE($W240,\"{\",CHAR(160),GZ$1)),FIND(CHAR(160),SUBSTITUTE($W240,\"}\",CHAR(160),GZ$1))-FIND(CHAR(160),SUBSTITUTE($W240,\"{\",CHAR(160),GZ$1))+1),\"\")","v":"{Package Size}"},{"$f":"IFERROR(MID($X240,FIND(CHAR(160),SUBSTITUTE($X240,\"{\",CHAR(160),HA$1)),FIND(CHAR(160),SUBSTITUTE($X240,\"}\",CHAR(160),HA$1))-FIND(CHAR(160),SUBSTITUTE($X240,\"{\",CHAR(160),HA$1))+1),\"\")","v":""},{"$f":"IFERROR(MID($X240,FIND(CHAR(160),SUBSTITUTE($X240,\"{\",CHAR(160),HB$1)),FIND(CHAR(160),SUBSTITUTE($X240,\"}\",CHAR(160),HB$1))-FIND(CHAR(160),SUBSTITUTE($X240,\"{\",CHAR(160),HB$1))+1),\"\")","v":""},{"$f":"IFERROR(MID($X240,FIND(CHAR(160),SUBSTITUTE($X240,\"{\",CHAR(160),HC$1)),FIND(CHAR(160),SUBSTITUTE($X240,\"}\",CHAR(160),HC$1))-FIND(CHAR(160),SUBSTITUTE($X240,\"{\",CHAR(160),HC$1))+1),\"\")","v":""},{"$f":"IFERROR(MID($X240,FIND(CHAR(160),SUBSTITUTE($X240,\"{\",CHAR(160),HD$1)),FIND(CHAR(160),SUBSTITUTE($X240,\"}\",CHAR(160),HD$1))-FIND(CHAR(160),SUBSTITUTE($X240,\"{\",CHAR(160),HD$1))+1),\"\")","v":""},{"$f":"IFERROR(MID($X240,FIND(CHAR(160),SUBSTITUTE($X240,\"{\",CHAR(160),HE$1)),FIND(CHAR(160),SUBSTITUTE($X240,\"}\",CHAR(160),HE$1))-FIND(CHAR(160),SUBSTITUTE($X240,\"{\",CHAR(160),HE$1))+1),\"\")","v":""},{"$f":"IFERROR(MID($X240,FIND(CHAR(160),SUBSTITUTE($X240,\"{\",CHAR(160),HF$1)),FIND(CHAR(160),SUBSTITUTE($X240,\"}\",CHAR(160),HF$1))-FIND(CHAR(160),SUBSTITUTE($X240,\"{\",CHAR(160),HF$1))+1),\"\")","v":""},{"$f":"IFERROR(MID($X240,FIND(CHAR(160),SUBSTITUTE($X240,\"{\",CHAR(160),HG$1)),FIND(CHAR(160),SUBSTITUTE($X240,\"}\",CHAR(160),HG$1))-FIND(CHAR(160),SUBSTITUTE($X240,\"{\",CHAR(160),HG$1))+1),\"\")","v":""},{"$f":"IFERROR(MID($X240,FIND(CHAR(160),SUBSTITUTE($X240,\"{\",CHAR(160),HH$1)),FIND(CHAR(160),SUBSTITUTE($X240,\"}\",CHAR(160),HH$1))-FIND(CHAR(160),SUBSTITUTE($X240,\"{\",CHAR(160),HH$1))+1),\"\")","v":""},{"$f":"IFERROR(MID($X240,FIND(CHAR(160),SUBSTITUTE($X240,\"{\",CHAR(160),HI$1)),FIND(CHAR(160),SUBSTITUTE($X240,\"}\",CHAR(160),HI$1))-FIND(CHAR(160),SUBSTITUTE($X240,\"{\",CHAR(160),HI$1))+1),\"\")","v":"{Measure:Quantity}"},{"$f":"IFERROR(MID($X240,FIND(CHAR(160),SUBSTITUTE($X240,\"{\",CHAR(160),HJ$1)),FIND(CHAR(160),SUBSTITUTE($X240,\"}\",CHAR(160),HJ$1))-FIND(CHAR(160),SUBSTITUTE($X240,\"{\",CHAR(160),HJ$1))+1),\"\")","v":"{Package Size}"},{"$f":"IFERROR(MID($Y240,FIND(CHAR(160),SUBSTITUTE($Y240,\"{\",CHAR(160),HK$1)),FIND(CHAR(160),SUBSTITUTE($Y240,\"}\",CHAR(160),HK$1))-FIND(CHAR(160),SUBSTITUTE($Y240,\"{\",CHAR(160),HK$1))+1),\"\")","v":""},{"$f":"IFERROR(MID($Y240,FIND(CHAR(160),SUBSTITUTE($Y240,\"{\",CHAR(160),HL$1)),FIND(CHAR(160),SUBSTITUTE($Y240,\"}\",CHAR(160),HL$1))-FIND(CHAR(160),SUBSTITUTE($Y240,\"{\",CHAR(160),HL$1))+1),\"\")","v":""},{"$f":"IFERROR(MID($Y240,FIND(CHAR(160),SUBSTITUTE($Y240,\"{\",CHAR(160),HM$1)),FIND(CHAR(160),SUBSTITUTE($Y240,\"}\",CHAR(160),HM$1))-FIND(CHAR(160),SUBSTITUTE($Y240,\"{\",CHAR(160),HM$1))+1),\"\")","v":""},{"$f":"IFERROR(MID($Y240,FIND(CHAR(160),SUBSTITUTE($Y240,\"{\",CHAR(160),HN$1)),FIND(CHAR(160),SUBSTITUTE($Y240,\"}\",CHAR(160),HN$1))-FIND(CHAR(160),SUBSTITUTE($Y240,\"{\",CHAR(160),HN$1))+1),\"\")","v":""},{"$f":"IFERROR(MID($Y240,FIND(CHAR(160),SUBSTITUTE($Y240,\"{\",CHAR(160),HO$1)),FIND(CHAR(160),SUBSTITUTE($Y240,\"}\",CHAR(160),HO$1))-FIND(CHAR(160),SUBSTITUTE($Y240,\"{\",CHAR(160),HO$1))+1),\"\")","v":""},{"$f":"IFERROR(MID($Y240,FIND(CHAR(160),SUBSTITUTE($Y240,\"{\",CHAR(160),HP$1)),FIND(CHAR(160),SUBSTITUTE($Y240,\"}\",CHAR(160),HP$1))-FIND(CHAR(160),SUBSTITUTE($Y240,\"{\",CHAR(160),HP$1))+1),\"\")","v":""},{"$f":"IFERROR(MID($Y240,FIND(CHAR(160),SUBSTITUTE($Y240,\"{\",CHAR(160),HQ$1)),FIND(CHAR(160),SUBSTITUTE($Y240,\"}\",CHAR(160),HQ$1))-FIND(CHAR(160),SUBSTITUTE($Y240,\"{\",CHAR(160),HQ$1))+1),\"\")","v":""},{"$f":"IFERROR(MID($Y240,FIND(CHAR(160),SUBSTITUTE($Y240,\"{\",CHAR(160),HR$1)),FIND(CHAR(160),SUBSTITUTE($Y240,\"}\",CHAR(160),HR$1))-FIND(CHAR(160),SUBSTITUTE($Y240,\"{\",CHAR(160),HR$1))+1),\"\")","v":""},{"$f":"IFERROR(MID($Y240,FIND(CHAR(160),SUBSTITUTE($Y240,\"{\",CHAR(160),HS$1)),FIND(CHAR(160),SUBSTITUTE($Y240,\"}\",CHAR(160),HS$1))-FIND(CHAR(160),SUBSTITUTE($Y240,\"{\",CHAR(160),HS$1))+1),\"\")","v":"{Measure:Quantity}"},{"$f":"IFERROR(MID($Y240,FIND(CHAR(160),SUBSTITUTE($Y240,\"{\",CHAR(160),HT$1)),FIND(CHAR(160),SUBSTITUTE($Y240,\"}\",CHAR(160),HT$1))-FIND(CHAR(160),SUBSTITUTE($Y240,\"{\",CHAR(160),HT$1))+1),\"\")","v":"{Package Size}"},{"$f":"IFERROR(MID($Z240,FIND(CHAR(160),SUBSTITUTE($Z240,\"{\",CHAR(160),HU$1)),FIND(CHAR(160),SUBSTITUTE($Z240,\"}\",CHAR(160),HU$1))-FIND(CHAR(160),SUBSTITUTE($Z240,\"{\",CHAR(160),HU$1))+1),\"\")","v":""},{"$f":"IFERROR(MID($Z240,FIND(CHAR(160),SUBSTITUTE($Z240,\"{\",CHAR(160),HV$1)),FIND(CHAR(160),SUBSTITUTE($Z240,\"}\",CHAR(160),HV$1))-FIND(CHAR(160),SUBSTITUTE($Z240,\"{\",CHAR(160),HV$1))+1),\"\")","v":""},{"$f":"IFERROR(MID($Z240,FIND(CHAR(160),SUBSTITUTE($Z240,\"{\",CHAR(160),HW$1)),FIND(CHAR(160),SUBSTITUTE($Z240,\"}\",CHAR(160),HW$1))-FIND(CHAR(160),SUBSTITUTE($Z240,\"{\",CHAR(160),HW$1))+1),\"\")","v":""},{"$f":"IFERROR(MID($Z240,FIND(CHAR(160),SUBSTITUTE($Z240,\"{\",CHAR(160),HX$1)),FIND(CHAR(160),SUBSTITUTE($Z240,\"}\",CHAR(160),HX$1))-FIND(CHAR(160),SUBSTITUTE($Z240,\"{\",CHAR(160),HX$1))+1),\"\")","v":""},{"$f":"IFERROR(MID($Z240,FIND(CHAR(160),SUBSTITUTE($Z240,\"{\",CHAR(160),HY$1)),FIND(CHAR(160),SUBSTITUTE($Z240,\"}\",CHAR(160),HY$1))-FIND(CHAR(160),SUBSTITUTE($Z240,\"{\",CHAR(160),HY$1))+1),\"\")","v":""},{"$f":"IFERROR(MID($Z240,FIND(CHAR(160),SUBSTITUTE($Z240,\"{\",CHAR(160),HZ$1)),FIND(CHAR(160),SUBSTITUTE($Z240,\"}\",CHAR(160),HZ$1))-FIND(CHAR(160),SUBSTITUTE($Z240,\"{\",CHAR(160),HZ$1))+1),\"\")","v":""},{"$f":"IFERROR(MID($Z240,FIND(CHAR(160),SUBSTITUTE($Z240,\"{\",CHAR(160),IA$1)),FIND(CHAR(160),SUBSTITUTE($Z240,\"}\",CHAR(160),IA$1))-FIND(CHAR(160),SUBSTITUTE($Z240,\"{\",CHAR(160),IA$1))+1),\"\")","v":""},{"$f":"IFERROR(MID($Z240,FIND(CHAR(160),SUBSTITUTE($Z240,\"{\",CHAR(160),IB$1)),FIND(CHAR(160),SUBSTITUTE($Z240,\"}\",CHAR(160),IB$1))-FIND(CHAR(160),SUBSTITUTE($Z240,\"{\",CHAR(160),IB$1))+1),\"\")","v":""},{"$f":"IFERROR(MID($Z240,FIND(CHAR(160),SUBSTITUTE($Z240,\"{\",CHAR(160),IC$1)),FIND(CHAR(160),SUBSTITUTE($Z240,\"}\",CHAR(160),IC$1))-FIND(CHAR(160),SUBSTITUTE($Z240,\"{\",CHAR(160),IC$1))+1),\"\")","v":"{Measure:Quantity}"},{"$f":"IFERROR(MID($Z240,FIND(CHAR(160),SUBSTITUTE($Z240,\"{\",CHAR(160),ID$1)),FIND(CHAR(160),SUBSTITUTE($Z240,\"}\",CHAR(160),ID$1))-FIND(CHAR(160),SUBSTITUTE($Z240,\"{\",CHAR(160),ID$1))+1),\"\")","v":"{Package Size}"},{"$f":"IFERROR(MID($AA240,FIND(CHAR(160),SUBSTITUTE($AA240,\"{\",CHAR(160),IE$1)),FIND(CHAR(160),SUBSTITUTE($AA240,\"}\",CHAR(160),IE$1))-FIND(CHAR(160),SUBSTITUTE($AA240,\"{\",CHAR(160),IE$1))+1),\"\")","v":""},{"$f":"IFERROR(MID($AA240,FIND(CHAR(160),SUBSTITUTE($AA240,\"{\",CHAR(160),IF$1)),FIND(CHAR(160),SUBSTITUTE($AA240,\"}\",CHAR(160),IF$1))-FIND(CHAR(160),SUBSTITUTE($AA240,\"{\",CHAR(160),IF$1))+1),\"\")","v":""},{"$f":"IFERROR(MID($AA240,FIND(CHAR(160),SUBSTITUTE($AA240,\"{\",CHAR(160),IG$1)),FIND(CHAR(160),SUBSTITUTE($AA240,\"}\",CHAR(160),IG$1))-FIND(CHAR(160),SUBSTITUTE($AA240,\"{\",CHAR(160),IG$1))+1),\"\")","v":""},{"$f":"IFERROR(MID($AA240,FIND(CHAR(160),SUBSTITUTE($AA240,\"{\",CHAR(160),IH$1)),FIND(CHAR(160),SUBSTITUTE($AA240,\"}\",CHAR(160),IH$1))-FIND(CHAR(160),SUBSTITUTE($AA240,\"{\",CHAR(160),IH$1))+1),\"\")","v":""},{"$f":"IFERROR(MID($AA240,FIND(CHAR(160),SUBSTITUTE($AA240,\"{\",CHAR(160),II$1)),FIND(CHAR(160),SUBSTITUTE($AA240,\"}\",CHAR(160),II$1))-FIND(CHAR(160),SUBSTITUTE($AA240,\"{\",CHAR(160),II$1))+1),\"\")","v":""},{"$f":"IFERROR(MID($AA240,FIND(CHAR(160),SUBSTITUTE($AA240,\"{\",CHAR(160),IJ$1)),FIND(CHAR(160),SUBSTITUTE($AA240,\"}\",CHAR(160),IJ$1))-FIND(CHAR(160),SUBSTITUTE($AA240,\"{\",CHAR(160),IJ$1))+1),\"\")","v":""},{"$f":"IFERROR(MID($AA240,FIND(CHAR(160),SUBSTITUTE($AA240,\"{\",CHAR(160),IK$1)),FIND(CHAR(160),SUBSTITUTE($AA240,\"}\",CHAR(160),IK$1))-FIND(CHAR(160),SUBSTITUTE($AA240,\"{\",CHAR(160),IK$1))+1),\"\")","v":""},{"$f":"IFERROR(MID($AA240,FIND(CHAR(160),SUBSTITUTE($AA240,\"{\",CHAR(160),IL$1)),FIND(CHAR(160),SUBSTITUTE($AA240,\"}\",CHAR(160),IL$1))-FIND(CHAR(160),SUBSTITUTE($AA240,\"{\",CHAR(160),IL$1))+1),\"\")","v":""},{"$f":"IFERROR(MID($AA240,FIND(CHAR(160),SUBSTITUTE($AA240,\"{\",CHAR(160),IM$1)),FIND(CHAR(160),SUBSTITUTE($AA240,\"}\",CHAR(160),IM$1))-FIND(CHAR(160),SUBSTITUTE($AA240,\"{\",CHAR(160),IM$1))+1),\"\")","v":"{Measure:Quantity}"},{"$f":"IFERROR(MID($AA240,FIND(CHAR(160),SUBSTITUTE($AA240,\"{\",CHAR(160),IN$1)),FIND(CHAR(160),SUBSTITUTE($AA240,\"}\",CHAR(160),IN$1))-FIND(CHAR(160),SUBSTITUTE($AA240,\"{\",CHAR(160),IN$1))+1),\"\")","v":"{Package Size}"},{"$f":"IFERROR(MID($AB240,FIND(CHAR(160),SUBSTITUTE($AB240,\"{\",CHAR(160),IO$1)),FIND(CHAR(160),SUBSTITUTE($AB240,\"}\",CHAR(160),IO$1))-FIND(CHAR(160),SUBSTITUTE($AB240,\"{\",CHAR(160),IO$1))+1),\"\")","v":""},{"$f":"IFERROR(MID($AB240,FIND(CHAR(160),SUBSTITUTE($AB240,\"{\",CHAR(160),IP$1)),FIND(CHAR(160),SUBSTITUTE($AB240,\"}\",CHAR(160),IP$1))-FIND(CHAR(160),SUBSTITUTE($AB240,\"{\",CHAR(160),IP$1))+1),\"\")","v":""},{"$f":"IFERROR(MID($AB240,FIND(CHAR(160),SUBSTITUTE($AB240,\"{\",CHAR(160),IQ$1)),FIND(CHAR(160),SUBSTITUTE($AB240,\"}\",CHAR(160),IQ$1))-FIND(CHAR(160),SUBSTITUTE($AB240,\"{\",CHAR(160),IQ$1))+1),\"\")","v":""},{"$f":"IFERROR(MID($AB240,FIND(CHAR(160),SUBSTITUTE($AB240,\"{\",CHAR(160),IR$1)),FIND(CHAR(160),SUBSTITUTE($AB240,\"}\",CHAR(160),IR$1))-FIND(CHAR(160),SUBSTITUTE($AB240,\"{\",CHAR(160),IR$1))+1),\"\")","v":""},{"$f":"IFERROR(MID($AB240,FIND(CHAR(160),SUBSTITUTE($AB240,\"{\",CHAR(160),IS$1)),FIND(CHAR(160),SUBSTITUTE($AB240,\"}\",CHAR(160),IS$1))-FIND(CHAR(160),SUBSTITUTE($AB240,\"{\",CHAR(160),IS$1))+1),\"\")","v":""},{"$f":"IFERROR(MID($AB240,FIND(CHAR(160),SUBSTITUTE($AB240,\"{\",CHAR(160),IT$1)),FIND(CHAR(160),SUBSTITUTE($AB240,\"}\",CHAR(160),IT$1))-FIND(CHAR(160),SUBSTITUTE($AB240,\"{\",CHAR(160),IT$1))+1),\"\")","v":""},{"$f":"IFERROR(MID($AB240,FIND(CHAR(160),SUBSTITUTE($AB240,\"{\",CHAR(160),IU$1)),FIND(CHAR(160),SUBSTITUTE($AB240,\"}\",CHAR(160),IU$1))-FIND(CHAR(160),SUBSTITUTE($AB240,\"{\",CHAR(160),IU$1))+1),\"\")","v":""},{"$f":"IFERROR(MID($AB240,FIND(CHAR(160),SUBSTITUTE($AB240,\"{\",CHAR(160),IV$1)),FIND(CHAR(160),SUBSTITUTE($AB240,\"}\",CHAR(160),IV$1))-FIND(CHAR(160),SUBSTITUTE($AB240,\"{\",CHAR(160),IV$1))+1),\"\")","v":""},{"$f":"IFERROR(MID($AB240,FIND(CHAR(160),SUBSTITUTE($AB240,\"{\",CHAR(160),IW$1)),FIND(CHAR(160),SUBSTITUTE($AB240,\"}\",CHAR(160),IW$1))-FIND(CHAR(160),SUBSTITUTE($AB240,\"{\",CHAR(160),IW$1))+1),\"\")","v":""},{"$f":"IFERROR(MID($AB240,FIND(CHAR(160),SUBSTITUTE($AB240,\"{\",CHAR(160),IX$1)),FIND(CHAR(160),SUBSTITUTE($AB240,\"}\",CHAR(160),IX$1))-FIND(CHAR(160),SUBSTITUTE($AB240,\"{\",CHAR(160),IX$1))+1),\"\")","v":""},null,{"$f":"10-COUNTIF(DU240:ED240,\"\")","v":4}]
["Retail Other - Electric","Smart Thermostat","STSTAT","2021-07-01","2022-06-30","Per Measure",249,0,"Manual Entry",0,0,"2019-07-01","2022-06-30","Calculated","{Measure:Quantity}*if({Fuel Type}=6,2674,if({Fuel Type} = 0,100,2))",null,null,0,null,null,0,0,"{Measure:Quantity}*if({Fuel Type}=0,1.59,0)*10","{Measure:Quantity}*if({Fuel Type} = 0,1.08,0)","{Measure:Quantity}*if({Fuel Type} = 0,5.96,0)","{Measure:Quantity}*if({Fuel Type} = 0,0.15,0)",null,null,"2019-07-01","2022-06-30",10,1,1,0.38600000000000001,0.54100000000000004,3.3000000000000002E-2,0.04,1,1,1,0.25,0,null,{"$f":"DU241","v":"{Fuel Type}"},1,{"$f":"DV241","v":"{Measure:Quantity}"},6,{"$f":"DW241","v":""},null,{"$f":"DX241","v":""},null,{"$f":"DY241","v":""},null,{"$f":"DZ241","v":""},null,{"$f":"EA241","v":""},null,{"$f":"EB241","v":""},null,{"$f":"EC241","v":""},null,{"$f":"ED241","v":""},null,{"$f":"AS241*IF(AU241=6,2674,IF(AU241 = 0,100,2))","v":2674},0,0,{"$f":"0","v":0},0,0,{"$f":"0","v":0},{"$f":"0","v":0},{"$f":"AS241*IF(AU241=0,1.59,0)*10","v":0},{"$f":"AS241*IF(AU241 = 0,1.08,0)","v":0},{"$f":"AS241*IF(AU241 = 0,5.96,0)","v":0},{"$f":"AS241*IF(AU241 = 0,0.15,0)","v":0},0,0,null,"Res","Default DR",{"$f":"Benefits(BL241,BR241,BS241,BT241,BU241,BV241,BW241,BX241,BY241,BZ241,AE241,AH241,AI241,AJ241,AK241,AL241,AM241,AN241,AO241,AP241,CA241,CB241)","v":2758.5824566974798},0,0,0,0,0,0,0,0,{"$f":"SUMPRODUCT(CC241:CK241,--(CC241:CK241>0))","v":2758.5824566974798},{"$f":"-SUMPRODUCT(CC241:CK241,--(CC241:CK241<0))","v":0},null,{"$f":"249","v":249},null,null,{"$f":"CM241+CO241","v":249},{"$f":"IF(NetOrGross=\"Net\",(1-AO241+AP241),1)","v":1},{"$f":"(SUMPRODUCT(CC241:CJ241,--(CC241:CJ241>0))+CN241)*CS241/((-SUMPRODUCT(CC241:CJ241,--(CC241:CJ241<0))+MAX(CO241,CV241)+CP241+CQ241)*CS241+IF(FRIncentives=\"Yes\",CV241*(1-CS241),0))","v":11.07864440440755},1,100,null,"Electric","y",null,{"$f":"IF(F241=\"Manual Entry\",\"Manual\",IF(G241=\"\",0,\"X=\"&SUBSTITUTE(SUBSTITUTE(SUBSTITUTE(SUBSTITUTE(SUBSTITUTE(SUBSTITUTE(SUBSTITUTE(SUBSTITUTE(SUBSTITUTE(SUBSTITUTE(SUBSTITUTE(SUBSTITUTE(G241,$ED241,$ED$2&ROW($ED241)),$EC241,$EC$2&ROW($EC241)),$EB241,$EB$2&ROW($EB241)),$EA241,$EA$2&ROW($EA241)),$DZ241,$DZ$2&ROW($DZ241)),$DY241,$DY$2&ROW($DY241)),$DX241,$DX$2&ROW($DX241)),$DW241,$DW$2&ROW($DW241)),$DV241,$DV$2&ROW($DV241)),$DU241,$DU$2&ROW($DU241)),$DT241,$DT$2&ROW($DT241)),$DS241,$DS$2&ROW($DS241))))","v":"X=249"},{"$f":"IF(I241=\"Manual Entry\",\"Manual\",IF(J241=\"\",0,\"X=\"&SUBSTITUTE(SUBSTITUTE(SUBSTITUTE(SUBSTITUTE(SUBSTITUTE(SUBSTITUTE(SUBSTITUTE(SUBSTITUTE(SUBSTITUTE(SUBSTITUTE(SUBSTITUTE(SUBSTITUTE(J241,$ED241,$ED$2&ROW($ED241)),$EC241,$EC$2&ROW($EC241)),$EB241,$EB$2&ROW($EB241)),$EA241,$EA$2&ROW($EA241)),$DZ241,$DZ$2&ROW($DZ241)),$DY241,$DY$2&ROW($DY241)),$DX241,$DX$2&ROW($DX241)),$DW241,$DW$2&ROW($DW241)),$DV241,$DV$2&ROW($DV241)),$DU241,$DU$2&ROW($DU241)),$DT241,$DT$2&ROW($DT241)),$DS241,$DS$2&ROW($DS241))))","v":"Manual"},{"$f":"IF(O241=\"\",0,\"X=\"&SUBSTITUTE(SUBSTITUTE(SUBSTITUTE(SUBSTITUTE(SUBSTITUTE(SUBSTITUTE(SUBSTITUTE(SUBSTITUTE(SUBSTITUTE(SUBSTITUTE(SUBSTITUTE(SUBSTITUTE(O241,$ED241,$ED$2&ROW($ED241)),$EC241,$EC$2&ROW($EC241)),$EB241,$EB$2&ROW($EB241)),$EA241,$EA$2&ROW($EA241)),$DZ241,$DZ$2&ROW($DZ241)),$DY241,$DY$2&ROW($DY241)),$DX241,$DX$2&ROW($DX241)),$DW241,$DW$2&ROW($DW241)),$DV241,$DV$2&ROW($DV241)),$DU241,$DU$2&ROW($DU241)),$DT241,$DT$2&ROW($DT241)),$DS241,$DS$2&ROW($DS241)))","v":"X=AU241*if(AS241=6,2674,if(AS241 = 0,100,2))"},{"$f":"IF(P241=\"\",0,\"X=\"&SUBSTITUTE(SUBSTITUTE(SUBSTITUTE(SUBSTITUTE(SUBSTITUTE(SUBSTITUTE(SUBSTITUTE(SUBSTITUTE(SUBSTITUTE(SUBSTITUTE(SUBSTITUTE(SUBSTITUTE(P241,$ED241,$ED$2&ROW($ED241)),$EC241,$EC$2&ROW($EC241)),$EB241,$EB$2&ROW($EB241)),$EA241,$EA$2&ROW($EA241)),$DZ241,$DZ$2&ROW($DZ241)),$DY241,$DY$2&ROW($DY241)),$DX241,$DX$2&ROW($DX241)),$DW241,$DW$2&ROW($DW241)),$DV241,$DV$2&ROW($DV241)),$DU241,$DU$2&ROW($DU241)),$DT241,$DT$2&ROW($DT241)),$DS241,$DS$2&ROW($DS241)))","v":0},{"$f":"IF(Q241=\"\",0,\"X=\"&SUBSTITUTE(SUBSTITUTE(SUBSTITUTE(SUBSTITUTE(SUBSTITUTE(SUBSTITUTE(SUBSTITUTE(SUBSTITUTE(SUBSTITUTE(SUBSTITUTE(SUBSTITUTE(SUBSTITUTE(Q241,$ED241,$ED$2&ROW($ED241)),$EC241,$EC$2&ROW($EC241)),$EB241,$EB$2&ROW($EB241)),$EA241,$EA$2&ROW($EA241)),$DZ241,$DZ$2&ROW($DZ241)),$DY241,$DY$2&ROW($DY241)),$DX241,$DX$2&ROW($DX241)),$DW241,$DW$2&ROW($DW241)),$DV241,$DV$2&ROW($DV241)),$DU241,$DU$2&ROW($DU241)),$DT241,$DT$2&ROW($DT241)),$DS241,$DS$2&ROW($DS241)))","v":0},{"$f":"IF(R241=\"\",0,\"X=\"&SUBSTITUTE(SUBSTITUTE(SUBSTITUTE(SUBSTITUTE(SUBSTITUTE(SUBSTITUTE(SUBSTITUTE(SUBSTITUTE(SUBSTITUTE(SUBSTITUTE(SUBSTITUTE(SUBSTITUTE(R241,$ED241,$ED$2&ROW($ED241)),$EC241,$EC$2&ROW($EC241)),$EB241,$EB$2&ROW($EB241)),$EA241,$EA$2&ROW($EA241)),$DZ241,$DZ$2&ROW($DZ241)),$DY241,$DY$2&ROW($DY241)),$DX241,$DX$2&ROW($DX241)),$DW241,$DW$2&ROW($DW241)),$DV241,$DV$2&ROW($DV241)),$DU241,$DU$2&ROW($DU241)),$DT241,$DT$2&ROW($DT241)),$DS241,$DS$2&ROW($DS241)))","v":"X=0"},{"$f":"IF(S241=\"\",0,\"X=\"&SUBSTITUTE(SUBSTITUTE(SUBSTITUTE(SUBSTITUTE(SUBSTITUTE(SUBSTITUTE(SUBSTITUTE(SUBSTITUTE(SUBSTITUTE(SUBSTITUTE(SUBSTITUTE(SUBSTITUTE(S241,$ED241,$ED$2&ROW($ED241)),$EC241,$EC$2&ROW($EC241)),$EB241,$EB$2&ROW($EB241)),$EA241,$EA$2&ROW($EA241)),$DZ241,$DZ$2&ROW($DZ241)),$DY241,$DY$2&ROW($DY241)),$DX241,$DX$2&ROW($DX241)),$DW241,$DW$2&ROW($DW241)),$DV241,$DV$2&ROW($DV241)),$DU241,$DU$2&ROW($DU241)),$DT241,$DT$2&ROW($DT241)),$DS241,$DS$2&ROW($DS241)))","v":0},{"$f":"IF(T241=\"\",0,\"X=\"&SUBSTITUTE(SUBSTITUTE(SUBSTITUTE(SUBSTITUTE(SUBSTITUTE(SUBSTITUTE(SUBSTITUTE(SUBSTITUTE(SUBSTITUTE(SUBSTITUTE(SUBSTITUTE(SUBSTITUTE(T241,$ED241,$ED$2&ROW($ED241)),$EC241,$EC$2&ROW($EC241)),$EB241,$EB$2&ROW($EB241)),$EA241,$EA$2&ROW($EA241)),$DZ241,$DZ$2&ROW($DZ241)),$DY241,$DY$2&ROW($DY241)),$DX241,$DX$2&ROW($DX241)),$DW241,$DW$2&ROW($DW241)),$DV241,$DV$2&ROW($DV241)),$DU241,$DU$2&ROW($DU241)),$DT241,$DT$2&ROW($DT241)),$DS241,$DS$2&ROW($DS241)))","v":0},{"$f":"IF(U241=\"\",0,\"X=\"&SUBSTITUTE(SUBSTITUTE(SUBSTITUTE(SUBSTITUTE(SUBSTITUTE(SUBSTITUTE(SUBSTITUTE(SUBSTITUTE(SUBSTITUTE(SUBSTITUTE(SUBSTITUTE(SUBSTITUTE(U241,$ED241,$ED$2&ROW($ED241)),$EC241,$EC$2&ROW($EC241)),$EB241,$EB$2&ROW($EB241)),$EA241,$EA$2&ROW($EA241)),$DZ241,$DZ$2&ROW($DZ241)),$DY241,$DY$2&ROW($DY241)),$DX241,$DX$2&ROW($DX241)),$DW241,$DW$2&ROW($DW241)),$DV241,$DV$2&ROW($DV241)),$DU241,$DU$2&ROW($DU241)),$DT241,$DT$2&ROW($DT241)),$DS241,$DS$2&ROW($DS241)))","v":"X=0"},{"$f":"IF(V241=\"\",0,\"X=\"&SUBSTITUTE(SUBSTITUTE(SUBSTITUTE(SUBSTITUTE(SUBSTITUTE(SUBSTITUTE(SUBSTITUTE(SUBSTITUTE(SUBSTITUTE(SUBSTITUTE(SUBSTITUTE(SUBSTITUTE(V241,$ED241,$ED$2&ROW($ED241)),$EC241,$EC$2&ROW($EC241)),$EB241,$EB$2&ROW($EB241)),$EA241,$EA$2&ROW($EA241)),$DZ241,$DZ$2&ROW($DZ241)),$DY241,$DY$2&ROW($DY241)),$DX241,$DX$2&ROW($DX241)),$DW241,$DW$2&ROW($DW241)),$DV241,$DV$2&ROW($DV241)),$DU241,$DU$2&ROW($DU241)),$DT241,$DT$2&ROW($DT241)),$DS241,$DS$2&ROW($DS241)))","v":"X=0"},{"$f":"IF(W241=\"\",0,\"X=\"&SUBSTITUTE(SUBSTITUTE(SUBSTITUTE(SUBSTITUTE(SUBSTITUTE(SUBSTITUTE(SUBSTITUTE(SUBSTITUTE(SUBSTITUTE(SUBSTITUTE(SUBSTITUTE(SUBSTITUTE(W241,$ED241,$ED$2&ROW($ED241)),$EC241,$EC$2&ROW($EC241)),$EB241,$EB$2&ROW($EB241)),$EA241,$EA$2&ROW($EA241)),$DZ241,$DZ$2&ROW($DZ241)),$DY241,$DY$2&ROW($DY241)),$DX241,$DX$2&ROW($DX241)),$DW241,$DW$2&ROW($DW241)),$DV241,$DV$2&ROW($DV241)),$DU241,$DU$2&ROW($DU241)),$DT241,$DT$2&ROW($DT241)),$DS241,$DS$2&ROW($DS241)))","v":"X=AU241*if(AS241=0,1.59,0)*10"},{"$f":"IF(X241=\"\",0,\"X=\"&SUBSTITUTE(SUBSTITUTE(SUBSTITUTE(SUBSTITUTE(SUBSTITUTE(SUBSTITUTE(SUBSTITUTE(SUBSTITUTE(SUBSTITUTE(SUBSTITUTE(SUBSTITUTE(SUBSTITUTE(X241,$ED241,$ED$2&ROW($ED241)),$EC241,$EC$2&ROW($EC241)),$EB241,$EB$2&ROW($EB241)),$EA241,$EA$2&ROW($EA241)),$DZ241,$DZ$2&ROW($DZ241)),$DY241,$DY$2&ROW($DY241)),$DX241,$DX$2&ROW($DX241)),$DW241,$DW$2&ROW($DW241)),$DV241,$DV$2&ROW($DV241)),$DU241,$DU$2&ROW($DU241)),$DT241,$DT$2&ROW($DT241)),$DS241,$DS$2&ROW($DS241)))","v":"X=AU241*if(AS241 = 0,1.08,0)"},{"$f":"IF(Y241=\"\",0,\"X=\"&SUBSTITUTE(SUBSTITUTE(SUBSTITUTE(SUBSTITUTE(SUBSTITUTE(SUBSTITUTE(SUBSTITUTE(SUBSTITUTE(SUBSTITUTE(SUBSTITUTE(SUBSTITUTE(SUBSTITUTE(Y241,$ED241,$ED$2&ROW($ED241)),$EC241,$EC$2&ROW($EC241)),$EB241,$EB$2&ROW($EB241)),$EA241,$EA$2&ROW($EA241)),$DZ241,$DZ$2&ROW($DZ241)),$DY241,$DY$2&ROW($DY241)),$DX241,$DX$2&ROW($DX241)),$DW241,$DW$2&ROW($DW241)),$DV241,$DV$2&ROW($DV241)),$DU241,$DU$2&ROW($DU241)),$DT241,$DT$2&ROW($DT241)),$DS241,$DS$2&ROW($DS241)))","v":"X=AU241*if(AS241 = 0,5.96,0)"},{"$f":"IF(Z241=\"\",0,\"X=\"&SUBSTITUTE(SUBSTITUTE(SUBSTITUTE(SUBSTITUTE(SUBSTITUTE(SUBSTITUTE(SUBSTITUTE(SUBSTITUTE(SUBSTITUTE(SUBSTITUTE(SUBSTITUTE(SUBSTITUTE(Z241,$ED241,$ED$2&ROW($ED241)),$EC241,$EC$2&ROW($EC241)),$EB241,$EB$2&ROW($EB241)),$EA241,$EA$2&ROW($EA241)),$DZ241,$DZ$2&ROW($DZ241)),$DY241,$DY$2&ROW($DY241)),$DX241,$DX$2&ROW($DX241)),$DW241,$DW$2&ROW($DW241)),$DV241,$DV$2&ROW($DV241)),$DU241,$DU$2&ROW($DU241)),$DT241,$DT$2&ROW($DT241)),$DS241,$DS$2&ROW($DS241)))","v":"X=AU241*if(AS241 = 0,0.15,0)"},{"$f":"IF(AA241=\"\",0,\"X=\"&SUBSTITUTE(SUBSTITUTE(SUBSTITUTE(SUBSTITUTE(SUBSTITUTE(SUBSTITUTE(SUBSTITUTE(SUBSTITUTE(SUBSTITUTE(SUBSTITUTE(SUBSTITUTE(SUBSTITUTE(AA241,$ED241,$ED$2&ROW($ED241)),$EC241,$EC$2&ROW($EC241)),$EB241,$EB$2&ROW($EB241)),$EA241,$EA$2&ROW($EA241)),$DZ241,$DZ$2&ROW($DZ241)),$DY241,$DY$2&ROW($DY241)),$DX241,$DX$2&ROW($DX241)),$DW241,$DW$2&ROW($DW241)),$DV241,$DV$2&ROW($DV241)),$DU241,$DU$2&ROW($DU241)),$DT241,$DT$2&ROW($DT241)),$DS241,$DS$2&ROW($DS241)))","v":0},{"$f":"IF(AB241=\"\",0,\"X=\"&SUBSTITUTE(SUBSTITUTE(SUBSTITUTE(SUBSTITUTE(SUBSTITUTE(SUBSTITUTE(SUBSTITUTE(SUBSTITUTE(SUBSTITUTE(SUBSTITUTE(SUBSTITUTE(SUBSTITUTE(AB241,$ED241,$ED$2&ROW($ED241)),$EC241,$EC$2&ROW($EC241)),$EB241,$EB$2&ROW($EB241)),$EA241,$EA$2&ROW($EA241)),$DZ241,$DZ$2&ROW($DZ241)),$DY241,$DY$2&ROW($DY241)),$DX241,$DX$2&ROW($DX241)),$DW241,$DW$2&ROW($DW241)),$DV241,$DV$2&ROW($DV241)),$DU241,$DU$2&ROW($DU241)),$DT241,$DT$2&ROW($DT241)),$DS241,$DS$2&ROW($DS241)))","v":0},null,null,"{Factor:WinterCF}","{Factor:SummerCF}",{"$f":"IFERROR(INDEX($EG241:$IV241,MATCH(0,COUNTIF($DR241:DT241,$EG241:$IV241),0)),\"\")","v":"{Fuel Type}"},{"$f":"IFERROR(INDEX($EG241:$IV241,MATCH(0,COUNTIF($DR241:DU241,$EG241:$IV241),0)),\"\")","v":"{Measure:Quantity}"},{"$f":"IFERROR(INDEX($EG241:$IV241,MATCH(0,COUNTIF($DR241:DV241,$EG241:$IV241),0)),\"\")","v":""},{"$f":"IFERROR(INDEX($EG241:$IV241,MATCH(0,COUNTIF($DR241:DW241,$EG241:$IV241),0)),\"\")","v":""},{"$f":"IFERROR(INDEX($EG241:$IV241,MATCH(0,COUNTIF($DR241:DX241,$EG241:$IV241),0)),\"\")","v":""},{"$f":"IFERROR(INDEX($EG241:$IV241,MATCH(0,COUNTIF($DR241:DY241,$EG241:$IV241),0)),\"\")","v":""},{"$f":"IFERROR(INDEX($EG241:$IV241,MATCH(0,COUNTIF($DR241:DZ241,$EG241:$IV241),0)),\"\")","v":""},{"$f":"IFERROR(INDEX($EG241:$IV241,MATCH(0,COUNTIF($DR241:EA241,$EG241:$IV241),0)),\"\")","v":""},{"$f":"IFERROR(INDEX($EG241:$IV241,MATCH(0,COUNTIF($DR241:EB241,$EG241:$IV241),0)),\"\")","v":""},{"$f":"IFERROR(INDEX($EG241:$IV241,MATCH(0,COUNTIF($DR241:EC241,$EG241:$IV241),0)),\"\")","v":""},null,null,{"$f":"IFERROR(MID($G241,FIND(CHAR(160),SUBSTITUTE($G241,\"{\",CHAR(160),EG$1)),FIND(CHAR(160),SUBSTITUTE($G241,\"}\",CHAR(160),EG$1))-FIND(CHAR(160),SUBSTITUTE($G241,\"{\",CHAR(160),EG$1))+1),\"\")","v":""},{"$f":"IFERROR(MID($G241,FIND(CHAR(160),SUBSTITUTE($G241,\"{\",CHAR(160),EH$1)),FIND(CHAR(160),SUBSTITUTE($G241,\"}\",CHAR(160),EH$1))-FIND(CHAR(160),SUBSTITUTE($G241,\"{\",CHAR(160),EH$1))+1),\"\")","v":""},{"$f":"IFERROR(MID($G241,FIND(CHAR(160),SUBSTITUTE($G241,\"{\",CHAR(160),EI$1)),FIND(CHAR(160),SUBSTITUTE($G241,\"}\",CHAR(160),EI$1))-FIND(CHAR(160),SUBSTITUTE($G241,\"{\",CHAR(160),EI$1))+1),\"\")","v":""},{"$f":"IFERROR(MID($G241,FIND(CHAR(160),SUBSTITUTE($G241,\"{\",CHAR(160),EJ$1)),FIND(CHAR(160),SUBSTITUTE($G241,\"}\",CHAR(160),EJ$1))-FIND(CHAR(160),SUBSTITUTE($G241,\"{\",CHAR(160),EJ$1))+1),\"\")","v":""},{"$f":"IFERROR(MID($G241,FIND(CHAR(160),SUBSTITUTE($G241,\"{\",CHAR(160),EK$1)),FIND(CHAR(160),SUBSTITUTE($G241,\"}\",CHAR(160),EK$1))-FIND(CHAR(160),SUBSTITUTE($G241,\"{\",CHAR(160),EK$1))+1),\"\")","v":""},{"$f":"IFERROR(MID($G241,FIND(CHAR(160),SUBSTITUTE($G241,\"{\",CHAR(160),EL$1)),FIND(CHAR(160),SUBSTITUTE($G241,\"}\",CHAR(160),EL$1))-FIND(CHAR(160),SUBSTITUTE($G241,\"{\",CHAR(160),EL$1))+1),\"\")","v":""},{"$f":"IFERROR(MID($G241,FIND(CHAR(160),SUBSTITUTE($G241,\"{\",CHAR(160),EM$1)),FIND(CHAR(160),SUBSTITUTE($G241,\"}\",CHAR(160),EM$1))-FIND(CHAR(160),SUBSTITUTE($G241,\"{\",CHAR(160),EM$1))+1),\"\")","v":""},{"$f":"IFERROR(MID($G241,FIND(CHAR(160),SUBSTITUTE($G241,\"{\",CHAR(160),EN$1)),FIND(CHAR(160),SUBSTITUTE($G241,\"}\",CHAR(160),EN$1))-FIND(CHAR(160),SUBSTITUTE($G241,\"{\",CHAR(160),EN$1))+1),\"\")","v":""},{"$f":"IFERROR(MID($G241,FIND(CHAR(160),SUBSTITUTE($G241,\"{\",CHAR(160),EO$1)),FIND(CHAR(160),SUBSTITUTE($G241,\"}\",CHAR(160),EO$1))-FIND(CHAR(160),SUBSTITUTE($G241,\"{\",CHAR(160),EO$1))+1),\"\")","v":""},{"$f":"IFERROR(MID($G241,FIND(CHAR(160),SUBSTITUTE($G241,\"{\",CHAR(160),EP$1)),FIND(CHAR(160),SUBSTITUTE($G241,\"}\",CHAR(160),EP$1))-FIND(CHAR(160),SUBSTITUTE($G241,\"{\",CHAR(160),EP$1))+1),\"\")","v":""},{"$f":"IFERROR(MID($J241,FIND(CHAR(160),SUBSTITUTE($J241,\"{\",CHAR(160),EQ$1)),FIND(CHAR(160),SUBSTITUTE($J241,\"}\",CHAR(160),EQ$1))-FIND(CHAR(160),SUBSTITUTE($J241,\"{\",CHAR(160),EQ$1))+1),\"\")","v":""},{"$f":"IFERROR(MID($J241,FIND(CHAR(160),SUBSTITUTE($J241,\"{\",CHAR(160),ER$1)),FIND(CHAR(160),SUBSTITUTE($J241,\"}\",CHAR(160),ER$1))-FIND(CHAR(160),SUBSTITUTE($J241,\"{\",CHAR(160),ER$1))+1),\"\")","v":""},{"$f":"IFERROR(MID($J241,FIND(CHAR(160),SUBSTITUTE($J241,\"{\",CHAR(160),ES$1)),FIND(CHAR(160),SUBSTITUTE($J241,\"}\",CHAR(160),ES$1))-FIND(CHAR(160),SUBSTITUTE($J241,\"{\",CHAR(160),ES$1))+1),\"\")","v":""},{"$f":"IFERROR(MID($J241,FIND(CHAR(160),SUBSTITUTE($J241,\"{\",CHAR(160),ET$1)),FIND(CHAR(160),SUBSTITUTE($J241,\"}\",CHAR(160),ET$1))-FIND(CHAR(160),SUBSTITUTE($J241,\"{\",CHAR(160),ET$1))+1),\"\")","v":""},{"$f":"IFERROR(MID($J241,FIND(CHAR(160),SUBSTITUTE($J241,\"{\",CHAR(160),EU$1)),FIND(CHAR(160),SUBSTITUTE($J241,\"}\",CHAR(160),EU$1))-FIND(CHAR(160),SUBSTITUTE($J241,\"{\",CHAR(160),EU$1))+1),\"\")","v":""},{"$f":"IFERROR(MID($J241,FIND(CHAR(160),SUBSTITUTE($J241,\"{\",CHAR(160),EV$1)),FIND(CHAR(160),SUBSTITUTE($J241,\"}\",CHAR(160),EV$1))-FIND(CHAR(160),SUBSTITUTE($J241,\"{\",CHAR(160),EV$1))+1),\"\")","v":""},{"$f":"IFERROR(MID($J241,FIND(CHAR(160),SUBSTITUTE($J241,\"{\",CHAR(160),EW$1)),FIND(CHAR(160),SUBSTITUTE($J241,\"}\",CHAR(160),EW$1))-FIND(CHAR(160),SUBSTITUTE($J241,\"{\",CHAR(160),EW$1))+1),\"\")","v":""},{"$f":"IFERROR(MID($J241,FIND(CHAR(160),SUBSTITUTE($J241,\"{\",CHAR(160),EX$1)),FIND(CHAR(160),SUBSTITUTE($J241,\"}\",CHAR(160),EX$1))-FIND(CHAR(160),SUBSTITUTE($J241,\"{\",CHAR(160),EX$1))+1),\"\")","v":""},{"$f":"IFERROR(MID($J241,FIND(CHAR(160),SUBSTITUTE($J241,\"{\",CHAR(160),EY$1)),FIND(CHAR(160),SUBSTITUTE($J241,\"}\",CHAR(160),EY$1))-FIND(CHAR(160),SUBSTITUTE($J241,\"{\",CHAR(160),EY$1))+1),\"\")","v":""},{"$f":"IFERROR(MID($J241,FIND(CHAR(160),SUBSTITUTE($J241,\"{\",CHAR(160),EZ$1)),FIND(CHAR(160),SUBSTITUTE($J241,\"}\",CHAR(160),EZ$1))-FIND(CHAR(160),SUBSTITUTE($J241,\"{\",CHAR(160),EZ$1))+1),\"\")","v":""},{"$f":"IFERROR(MID($J241,FIND(CHAR(160),SUBSTITUTE($J241,\"{\",CHAR(160),FA$1)),FIND(CHAR(160),SUBSTITUTE($J241,\"}\",CHAR(160),FA$1))-FIND(CHAR(160),SUBSTITUTE($J241,\"{\",CHAR(160),FA$1))+1),\"\")","v":""},{"$f":"IFERROR(MID($J241,FIND(CHAR(160),SUBSTITUTE($J241,\"{\",CHAR(160),FB$1)),FIND(CHAR(160),SUBSTITUTE($J241,\"}\",CHAR(160),FB$1))-FIND(CHAR(160),SUBSTITUTE($J241,\"{\",CHAR(160),FB$1))+1),\"\")","v":""},{"$f":"IFERROR(MID($O241,FIND(CHAR(160),SUBSTITUTE($O241,\"{\",CHAR(160),FC$1)),FIND(CHAR(160),SUBSTITUTE($O241,\"}\",CHAR(160),FC$1))-FIND(CHAR(160),SUBSTITUTE($O241,\"{\",CHAR(160),FC$1))+1),\"\")","v":"{Fuel Type}"},{"$f":"IFERROR(MID($O241,FIND(CHAR(160),SUBSTITUTE($O241,\"{\",CHAR(160),FD$1)),FIND(CHAR(160),SUBSTITUTE($O241,\"}\",CHAR(160),FD$1))-FIND(CHAR(160),SUBSTITUTE($O241,\"{\",CHAR(160),FD$1))+1),\"\")","v":""},{"$f":"IFERROR(MID($O241,FIND(CHAR(160),SUBSTITUTE($O241,\"{\",CHAR(160),FE$1)),FIND(CHAR(160),SUBSTITUTE($O241,\"}\",CHAR(160),FE$1))-FIND(CHAR(160),SUBSTITUTE($O241,\"{\",CHAR(160),FE$1))+1),\"\")","v":""},{"$f":"IFERROR(MID($O241,FIND(CHAR(160),SUBSTITUTE($O241,\"{\",CHAR(160),FF$1)),FIND(CHAR(160),SUBSTITUTE($O241,\"}\",CHAR(160),FF$1))-FIND(CHAR(160),SUBSTITUTE($O241,\"{\",CHAR(160),FF$1))+1),\"\")","v":""},{"$f":"IFERROR(MID($O241,FIND(CHAR(160),SUBSTITUTE($O241,\"{\",CHAR(160),FG$1)),FIND(CHAR(160),SUBSTITUTE($O241,\"}\",CHAR(160),FG$1))-FIND(CHAR(160),SUBSTITUTE($O241,\"{\",CHAR(160),FG$1))+1),\"\")","v":""},{"$f":"IFERROR(MID($O241,FIND(CHAR(160),SUBSTITUTE($O241,\"{\",CHAR(160),FH$1)),FIND(CHAR(160),SUBSTITUTE($O241,\"}\",CHAR(160),FH$1))-FIND(CHAR(160),SUBSTITUTE($O241,\"{\",CHAR(160),FH$1))+1),\"\")","v":""},{"$f":"IFERROR(MID($O241,FIND(CHAR(160),SUBSTITUTE($O241,\"{\",CHAR(160),FI$1)),FIND(CHAR(160),SUBSTITUTE($O241,\"}\",CHAR(160),FI$1))-FIND(CHAR(160),SUBSTITUTE($O241,\"{\",CHAR(160),FI$1))+1),\"\")","v":""},{"$f":"IFERROR(MID($O241,FIND(CHAR(160),SUBSTITUTE($O241,\"{\",CHAR(160),FJ$1)),FIND(CHAR(160),SUBSTITUTE($O241,\"}\",CHAR(160),FJ$1))-FIND(CHAR(160),SUBSTITUTE($O241,\"{\",CHAR(160),FJ$1))+1),\"\")","v":""},{"$f":"IFERROR(MID($O241,FIND(CHAR(160),SUBSTITUTE($O241,\"{\",CHAR(160),FK$1)),FIND(CHAR(160),SUBSTITUTE($O241,\"}\",CHAR(160),FK$1))-FIND(CHAR(160),SUBSTITUTE($O241,\"{\",CHAR(160),FK$1))+1),\"\")","v":"{Measure:Quantity}"},{"$f":"IFERROR(MID($O241,FIND(CHAR(160),SUBSTITUTE($O241,\"{\",CHAR(160),FL$1)),FIND(CHAR(160),SUBSTITUTE($O241,\"}\",CHAR(160),FL$1))-FIND(CHAR(160),SUBSTITUTE($O241,\"{\",CHAR(160),FL$1))+1),\"\")","v":"{Fuel Type}"},{"$f":"IFERROR(MID($R241,FIND(CHAR(160),SUBSTITUTE($R241,\"{\",CHAR(160),FM$1)),FIND(CHAR(160),SUBSTITUTE($R241,\"}\",CHAR(160),FM$1))-FIND(CHAR(160),SUBSTITUTE($R241,\"{\",CHAR(160),FM$1))+1),\"\")","v":""},{"$f":"IFERROR(MID($R241,FIND(CHAR(160),SUBSTITUTE($R241,\"{\",CHAR(160),FN$1)),FIND(CHAR(160),SUBSTITUTE($R241,\"}\",CHAR(160),FN$1))-FIND(CHAR(160),SUBSTITUTE($R241,\"{\",CHAR(160),FN$1))+1),\"\")","v":""},{"$f":"IFERROR(MID($R241,FIND(CHAR(160),SUBSTITUTE($R241,\"{\",CHAR(160),FO$1)),FIND(CHAR(160),SUBSTITUTE($R241,\"}\",CHAR(160),FO$1))-FIND(CHAR(160),SUBSTITUTE($R241,\"{\",CHAR(160),FO$1))+1),\"\")","v":""},{"$f":"IFERROR(MID($R241,FIND(CHAR(160),SUBSTITUTE($R241,\"{\",CHAR(160),FP$1)),FIND(CHAR(160),SUBSTITUTE($R241,\"}\",CHAR(160),FP$1))-FIND(CHAR(160),SUBSTITUTE($R241,\"{\",CHAR(160),FP$1))+1),\"\")","v":""},{"$f":"IFERROR(MID($R241,FIND(CHAR(160),SUBSTITUTE($R241,\"{\",CHAR(160),FQ$1)),FIND(CHAR(160),SUBSTITUTE($R241,\"}\",CHAR(160),FQ$1))-FIND(CHAR(160),SUBSTITUTE($R241,\"{\",CHAR(160),FQ$1))+1),\"\")","v":""},{"$f":"IFERROR(MID($R241,FIND(CHAR(160),SUBSTITUTE($R241,\"{\",CHAR(160),FR$1)),FIND(CHAR(160),SUBSTITUTE($R241,\"}\",CHAR(160),FR$1))-FIND(CHAR(160),SUBSTITUTE($R241,\"{\",CHAR(160),FR$1))+1),\"\")","v":""},{"$f":"IFERROR(MID($R241,FIND(CHAR(160),SUBSTITUTE($R241,\"{\",CHAR(160),FS$1)),FIND(CHAR(160),SUBSTITUTE($R241,\"}\",CHAR(160),FS$1))-FIND(CHAR(160),SUBSTITUTE($R241,\"{\",CHAR(160),FS$1))+1),\"\")","v":""},{"$f":"IFERROR(MID($R241,FIND(CHAR(160),SUBSTITUTE($R241,\"{\",CHAR(160),FT$1)),FIND(CHAR(160),SUBSTITUTE($R241,\"}\",CHAR(160),FT$1))-FIND(CHAR(160),SUBSTITUTE($R241,\"{\",CHAR(160),FT$1))+1),\"\")","v":""},{"$f":"IFERROR(MID($R241,FIND(CHAR(160),SUBSTITUTE($R241,\"{\",CHAR(160),FU$1)),FIND(CHAR(160),SUBSTITUTE($R241,\"}\",CHAR(160),FU$1))-FIND(CHAR(160),SUBSTITUTE($R241,\"{\",CHAR(160),FU$1))+1),\"\")","v":""},{"$f":"IFERROR(MID($R241,FIND(CHAR(160),SUBSTITUTE($R241,\"{\",CHAR(160),FV$1)),FIND(CHAR(160),SUBSTITUTE($R241,\"}\",CHAR(160),FV$1))-FIND(CHAR(160),SUBSTITUTE($R241,\"{\",CHAR(160),FV$1))+1),\"\")","v":""},{"$f":"IFERROR(MID($U241,FIND(CHAR(160),SUBSTITUTE($U241,\"{\",CHAR(160),FW$1)),FIND(CHAR(160),SUBSTITUTE($U241,\"}\",CHAR(160),FW$1))-FIND(CHAR(160),SUBSTITUTE($U241,\"{\",CHAR(160),FW$1))+1),\"\")","v":""},{"$f":"IFERROR(MID($U241,FIND(CHAR(160),SUBSTITUTE($U241,\"{\",CHAR(160),FX$1)),FIND(CHAR(160),SUBSTITUTE($U241,\"}\",CHAR(160),FX$1))-FIND(CHAR(160),SUBSTITUTE($U241,\"{\",CHAR(160),FX$1))+1),\"\")","v":""},{"$f":"IFERROR(MID($U241,FIND(CHAR(160),SUBSTITUTE($U241,\"{\",CHAR(160),FY$1)),FIND(CHAR(160),SUBSTITUTE($U241,\"}\",CHAR(160),FY$1))-FIND(CHAR(160),SUBSTITUTE($U241,\"{\",CHAR(160),FY$1))+1),\"\")","v":""},{"$f":"IFERROR(MID($U241,FIND(CHAR(160),SUBSTITUTE($U241,\"{\",CHAR(160),FZ$1)),FIND(CHAR(160),SUBSTITUTE($U241,\"}\",CHAR(160),FZ$1))-FIND(CHAR(160),SUBSTITUTE($U241,\"{\",CHAR(160),FZ$1))+1),\"\")","v":""},{"$f":"IFERROR(MID($U241,FIND(CHAR(160),SUBSTITUTE($U241,\"{\",CHAR(160),GA$1)),FIND(CHAR(160),SUBSTITUTE($U241,\"}\",CHAR(160),GA$1))-FIND(CHAR(160),SUBSTITUTE($U241,\"{\",CHAR(160),GA$1))+1),\"\")","v":""},{"$f":"IFERROR(MID($U241,FIND(CHAR(160),SUBSTITUTE($U241,\"{\",CHAR(160),GB$1)),FIND(CHAR(160),SUBSTITUTE($U241,\"}\",CHAR(160),GB$1))-FIND(CHAR(160),SUBSTITUTE($U241,\"{\",CHAR(160),GB$1))+1),\"\")","v":""},{"$f":"IFERROR(MID($U241,FIND(CHAR(160),SUBSTITUTE($U241,\"{\",CHAR(160),GC$1)),FIND(CHAR(160),SUBSTITUTE($U241,\"}\",CHAR(160),GC$1))-FIND(CHAR(160),SUBSTITUTE($U241,\"{\",CHAR(160),GC$1))+1),\"\")","v":""},{"$f":"IFERROR(MID($U241,FIND(CHAR(160),SUBSTITUTE($U241,\"{\",CHAR(160),GD$1)),FIND(CHAR(160),SUBSTITUTE($U241,\"}\",CHAR(160),GD$1))-FIND(CHAR(160),SUBSTITUTE($U241,\"{\",CHAR(160),GD$1))+1),\"\")","v":""},{"$f":"IFERROR(MID($U241,FIND(CHAR(160),SUBSTITUTE($U241,\"{\",CHAR(160),GE$1)),FIND(CHAR(160),SUBSTITUTE($U241,\"}\",CHAR(160),GE$1))-FIND(CHAR(160),SUBSTITUTE($U241,\"{\",CHAR(160),GE$1))+1),\"\")","v":""},{"$f":"IFERROR(MID($U241,FIND(CHAR(160),SUBSTITUTE($U241,\"{\",CHAR(160),GF$1)),FIND(CHAR(160),SUBSTITUTE($U241,\"}\",CHAR(160),GF$1))-FIND(CHAR(160),SUBSTITUTE($U241,\"{\",CHAR(160),GF$1))+1),\"\")","v":""},{"$f":"IFERROR(MID($V241,FIND(CHAR(160),SUBSTITUTE($V241,\"{\",CHAR(160),GG$1)),FIND(CHAR(160),SUBSTITUTE($V241,\"}\",CHAR(160),GG$1))-FIND(CHAR(160),SUBSTITUTE($V241,\"{\",CHAR(160),GG$1))+1),\"\")","v":""},{"$f":"IFERROR(MID($V241,FIND(CHAR(160),SUBSTITUTE($V241,\"{\",CHAR(160),GH$1)),FIND(CHAR(160),SUBSTITUTE($V241,\"}\",CHAR(160),GH$1))-FIND(CHAR(160),SUBSTITUTE($V241,\"{\",CHAR(160),GH$1))+1),\"\")","v":""},{"$f":"IFERROR(MID($V241,FIND(CHAR(160),SUBSTITUTE($V241,\"{\",CHAR(160),GI$1)),FIND(CHAR(160),SUBSTITUTE($V241,\"}\",CHAR(160),GI$1))-FIND(CHAR(160),SUBSTITUTE($V241,\"{\",CHAR(160),GI$1))+1),\"\")","v":""},{"$f":"IFERROR(MID($V241,FIND(CHAR(160),SUBSTITUTE($V241,\"{\",CHAR(160),GJ$1)),FIND(CHAR(160),SUBSTITUTE($V241,\"}\",CHAR(160),GJ$1))-FIND(CHAR(160),SUBSTITUTE($V241,\"{\",CHAR(160),GJ$1))+1),\"\")","v":""},{"$f":"IFERROR(MID($V241,FIND(CHAR(160),SUBSTITUTE($V241,\"{\",CHAR(160),GK$1)),FIND(CHAR(160),SUBSTITUTE($V241,\"}\",CHAR(160),GK$1))-FIND(CHAR(160),SUBSTITUTE($V241,\"{\",CHAR(160),GK$1))+1),\"\")","v":""},{"$f":"IFERROR(MID($V241,FIND(CHAR(160),SUBSTITUTE($V241,\"{\",CHAR(160),GL$1)),FIND(CHAR(160),SUBSTITUTE($V241,\"}\",CHAR(160),GL$1))-FIND(CHAR(160),SUBSTITUTE($V241,\"{\",CHAR(160),GL$1))+1),\"\")","v":""},{"$f":"IFERROR(MID($V241,FIND(CHAR(160),SUBSTITUTE($V241,\"{\",CHAR(160),GM$1)),FIND(CHAR(160),SUBSTITUTE($V241,\"}\",CHAR(160),GM$1))-FIND(CHAR(160),SUBSTITUTE($V241,\"{\",CHAR(160),GM$1))+1),\"\")","v":""},{"$f":"IFERROR(MID($V241,FIND(CHAR(160),SUBSTITUTE($V241,\"{\",CHAR(160),GN$1)),FIND(CHAR(160),SUBSTITUTE($V241,\"}\",CHAR(160),GN$1))-FIND(CHAR(160),SUBSTITUTE($V241,\"{\",CHAR(160),GN$1))+1),\"\")","v":""},{"$f":"IFERROR(MID($V241,FIND(CHAR(160),SUBSTITUTE($V241,\"{\",CHAR(160),GO$1)),FIND(CHAR(160),SUBSTITUTE($V241,\"}\",CHAR(160),GO$1))-FIND(CHAR(160),SUBSTITUTE($V241,\"{\",CHAR(160),GO$1))+1),\"\")","v":""},{"$f":"IFERROR(MID($V241,FIND(CHAR(160),SUBSTITUTE($V241,\"{\",CHAR(160),GP$1)),FIND(CHAR(160),SUBSTITUTE($V241,\"}\",CHAR(160),GP$1))-FIND(CHAR(160),SUBSTITUTE($V241,\"{\",CHAR(160),GP$1))+1),\"\")","v":""},{"$f":"IFERROR(MID($W241,FIND(CHAR(160),SUBSTITUTE($W241,\"{\",CHAR(160),GQ$1)),FIND(CHAR(160),SUBSTITUTE($W241,\"}\",CHAR(160),GQ$1))-FIND(CHAR(160),SUBSTITUTE($W241,\"{\",CHAR(160),GQ$1))+1),\"\")","v":""},{"$f":"IFERROR(MID($W241,FIND(CHAR(160),SUBSTITUTE($W241,\"{\",CHAR(160),GR$1)),FIND(CHAR(160),SUBSTITUTE($W241,\"}\",CHAR(160),GR$1))-FIND(CHAR(160),SUBSTITUTE($W241,\"{\",CHAR(160),GR$1))+1),\"\")","v":""},{"$f":"IFERROR(MID($W241,FIND(CHAR(160),SUBSTITUTE($W241,\"{\",CHAR(160),GS$1)),FIND(CHAR(160),SUBSTITUTE($W241,\"}\",CHAR(160),GS$1))-FIND(CHAR(160),SUBSTITUTE($W241,\"{\",CHAR(160),GS$1))+1),\"\")","v":""},{"$f":"IFERROR(MID($W241,FIND(CHAR(160),SUBSTITUTE($W241,\"{\",CHAR(160),GT$1)),FIND(CHAR(160),SUBSTITUTE($W241,\"}\",CHAR(160),GT$1))-FIND(CHAR(160),SUBSTITUTE($W241,\"{\",CHAR(160),GT$1))+1),\"\")","v":""},{"$f":"IFERROR(MID($W241,FIND(CHAR(160),SUBSTITUTE($W241,\"{\",CHAR(160),GU$1)),FIND(CHAR(160),SUBSTITUTE($W241,\"}\",CHAR(160),GU$1))-FIND(CHAR(160),SUBSTITUTE($W241,\"{\",CHAR(160),GU$1))+1),\"\")","v":""},{"$f":"IFERROR(MID($W241,FIND(CHAR(160),SUBSTITUTE($W241,\"{\",CHAR(160),GV$1)),FIND(CHAR(160),SUBSTITUTE($W241,\"}\",CHAR(160),GV$1))-FIND(CHAR(160),SUBSTITUTE($W241,\"{\",CHAR(160),GV$1))+1),\"\")","v":""},{"$f":"IFERROR(MID($W241,FIND(CHAR(160),SUBSTITUTE($W241,\"{\",CHAR(160),GW$1)),FIND(CHAR(160),SUBSTITUTE($W241,\"}\",CHAR(160),GW$1))-FIND(CHAR(160),SUBSTITUTE($W241,\"{\",CHAR(160),GW$1))+1),\"\")","v":""},{"$f":"IFERROR(MID($W241,FIND(CHAR(160),SUBSTITUTE($W241,\"{\",CHAR(160),GX$1)),FIND(CHAR(160),SUBSTITUTE($W241,\"}\",CHAR(160),GX$1))-FIND(CHAR(160),SUBSTITUTE($W241,\"{\",CHAR(160),GX$1))+1),\"\")","v":""},{"$f":"IFERROR(MID($W241,FIND(CHAR(160),SUBSTITUTE($W241,\"{\",CHAR(160),GY$1)),FIND(CHAR(160),SUBSTITUTE($W241,\"}\",CHAR(160),GY$1))-FIND(CHAR(160),SUBSTITUTE($W241,\"{\",CHAR(160),GY$1))+1),\"\")","v":"{Measure:Quantity}"},{"$f":"IFERROR(MID($W241,FIND(CHAR(160),SUBSTITUTE($W241,\"{\",CHAR(160),GZ$1)),FIND(CHAR(160),SUBSTITUTE($W241,\"}\",CHAR(160),GZ$1))-FIND(CHAR(160),SUBSTITUTE($W241,\"{\",CHAR(160),GZ$1))+1),\"\")","v":"{Fuel Type}"},{"$f":"IFERROR(MID($X241,FIND(CHAR(160),SUBSTITUTE($X241,\"{\",CHAR(160),HA$1)),FIND(CHAR(160),SUBSTITUTE($X241,\"}\",CHAR(160),HA$1))-FIND(CHAR(160),SUBSTITUTE($X241,\"{\",CHAR(160),HA$1))+1),\"\")","v":""},{"$f":"IFERROR(MID($X241,FIND(CHAR(160),SUBSTITUTE($X241,\"{\",CHAR(160),HB$1)),FIND(CHAR(160),SUBSTITUTE($X241,\"}\",CHAR(160),HB$1))-FIND(CHAR(160),SUBSTITUTE($X241,\"{\",CHAR(160),HB$1))+1),\"\")","v":""},{"$f":"IFERROR(MID($X241,FIND(CHAR(160),SUBSTITUTE($X241,\"{\",CHAR(160),HC$1)),FIND(CHAR(160),SUBSTITUTE($X241,\"}\",CHAR(160),HC$1))-FIND(CHAR(160),SUBSTITUTE($X241,\"{\",CHAR(160),HC$1))+1),\"\")","v":""},{"$f":"IFERROR(MID($X241,FIND(CHAR(160),SUBSTITUTE($X241,\"{\",CHAR(160),HD$1)),FIND(CHAR(160),SUBSTITUTE($X241,\"}\",CHAR(160),HD$1))-FIND(CHAR(160),SUBSTITUTE($X241,\"{\",CHAR(160),HD$1))+1),\"\")","v":""},{"$f":"IFERROR(MID($X241,FIND(CHAR(160),SUBSTITUTE($X241,\"{\",CHAR(160),HE$1)),FIND(CHAR(160),SUBSTITUTE($X241,\"}\",CHAR(160),HE$1))-FIND(CHAR(160),SUBSTITUTE($X241,\"{\",CHAR(160),HE$1))+1),\"\")","v":""},{"$f":"IFERROR(MID($X241,FIND(CHAR(160),SUBSTITUTE($X241,\"{\",CHAR(160),HF$1)),FIND(CHAR(160),SUBSTITUTE($X241,\"}\",CHAR(160),HF$1))-FIND(CHAR(160),SUBSTITUTE($X241,\"{\",CHAR(160),HF$1))+1),\"\")","v":""},{"$f":"IFERROR(MID($X241,FIND(CHAR(160),SUBSTITUTE($X241,\"{\",CHAR(160),HG$1)),FIND(CHAR(160),SUBSTITUTE($X241,\"}\",CHAR(160),HG$1))-FIND(CHAR(160),SUBSTITUTE($X241,\"{\",CHAR(160),HG$1))+1),\"\")","v":""},{"$f":"IFERROR(MID($X241,FIND(CHAR(160),SUBSTITUTE($X241,\"{\",CHAR(160),HH$1)),FIND(CHAR(160),SUBSTITUTE($X241,\"}\",CHAR(160),HH$1))-FIND(CHAR(160),SUBSTITUTE($X241,\"{\",CHAR(160),HH$1))+1),\"\")","v":""},{"$f":"IFERROR(MID($X241,FIND(CHAR(160),SUBSTITUTE($X241,\"{\",CHAR(160),HI$1)),FIND(CHAR(160),SUBSTITUTE($X241,\"}\",CHAR(160),HI$1))-FIND(CHAR(160),SUBSTITUTE($X241,\"{\",CHAR(160),HI$1))+1),\"\")","v":"{Measure:Quantity}"},{"$f":"IFERROR(MID($X241,FIND(CHAR(160),SUBSTITUTE($X241,\"{\",CHAR(160),HJ$1)),FIND(CHAR(160),SUBSTITUTE($X241,\"}\",CHAR(160),HJ$1))-FIND(CHAR(160),SUBSTITUTE($X241,\"{\",CHAR(160),HJ$1))+1),\"\")","v":"{Fuel Type}"},{"$f":"IFERROR(MID($Y241,FIND(CHAR(160),SUBSTITUTE($Y241,\"{\",CHAR(160),HK$1)),FIND(CHAR(160),SUBSTITUTE($Y241,\"}\",CHAR(160),HK$1))-FIND(CHAR(160),SUBSTITUTE($Y241,\"{\",CHAR(160),HK$1))+1),\"\")","v":""},{"$f":"IFERROR(MID($Y241,FIND(CHAR(160),SUBSTITUTE($Y241,\"{\",CHAR(160),HL$1)),FIND(CHAR(160),SUBSTITUTE($Y241,\"}\",CHAR(160),HL$1))-FIND(CHAR(160),SUBSTITUTE($Y241,\"{\",CHAR(160),HL$1))+1),\"\")","v":""},{"$f":"IFERROR(MID($Y241,FIND(CHAR(160),SUBSTITUTE($Y241,\"{\",CHAR(160),HM$1)),FIND(CHAR(160),SUBSTITUTE($Y241,\"}\",CHAR(160),HM$1))-FIND(CHAR(160),SUBSTITUTE($Y241,\"{\",CHAR(160),HM$1))+1),\"\")","v":""},{"$f":"IFERROR(MID($Y241,FIND(CHAR(160),SUBSTITUTE($Y241,\"{\",CHAR(160),HN$1)),FIND(CHAR(160),SUBSTITUTE($Y241,\"}\",CHAR(160),HN$1))-FIND(CHAR(160),SUBSTITUTE($Y241,\"{\",CHAR(160),HN$1))+1),\"\")","v":""},{"$f":"IFERROR(MID($Y241,FIND(CHAR(160),SUBSTITUTE($Y241,\"{\",CHAR(160),HO$1)),FIND(CHAR(160),SUBSTITUTE($Y241,\"}\",CHAR(160),HO$1))-FIND(CHAR(160),SUBSTITUTE($Y241,\"{\",CHAR(160),HO$1))+1),\"\")","v":""},{"$f":"IFERROR(MID($Y241,FIND(CHAR(160),SUBSTITUTE($Y241,\"{\",CHAR(160),HP$1)),FIND(CHAR(160),SUBSTITUTE($Y241,\"}\",CHAR(160),HP$1))-FIND(CHAR(160),SUBSTITUTE($Y241,\"{\",CHAR(160),HP$1))+1),\"\")","v":""},{"$f":"IFERROR(MID($Y241,FIND(CHAR(160),SUBSTITUTE($Y241,\"{\",CHAR(160),HQ$1)),FIND(CHAR(160),SUBSTITUTE($Y241,\"}\",CHAR(160),HQ$1))-FIND(CHAR(160),SUBSTITUTE($Y241,\"{\",CHAR(160),HQ$1))+1),\"\")","v":""},{"$f":"IFERROR(MID($Y241,FIND(CHAR(160),SUBSTITUTE($Y241,\"{\",CHAR(160),HR$1)),FIND(CHAR(160),SUBSTITUTE($Y241,\"}\",CHAR(160),HR$1))-FIND(CHAR(160),SUBSTITUTE($Y241,\"{\",CHAR(160),HR$1))+1),\"\")","v":""},{"$f":"IFERROR(MID($Y241,FIND(CHAR(160),SUBSTITUTE($Y241,\"{\",CHAR(160),HS$1)),FIND(CHAR(160),SUBSTITUTE($Y241,\"}\",CHAR(160),HS$1))-FIND(CHAR(160),SUBSTITUTE($Y241,\"{\",CHAR(160),HS$1))+1),\"\")","v":"{Measure:Quantity}"},{"$f":"IFERROR(MID($Y241,FIND(CHAR(160),SUBSTITUTE($Y241,\"{\",CHAR(160),HT$1)),FIND(CHAR(160),SUBSTITUTE($Y241,\"}\",CHAR(160),HT$1))-FIND(CHAR(160),SUBSTITUTE($Y241,\"{\",CHAR(160),HT$1))+1),\"\")","v":"{Fuel Type}"},{"$f":"IFERROR(MID($Z241,FIND(CHAR(160),SUBSTITUTE($Z241,\"{\",CHAR(160),HU$1)),FIND(CHAR(160),SUBSTITUTE($Z241,\"}\",CHAR(160),HU$1))-FIND(CHAR(160),SUBSTITUTE($Z241,\"{\",CHAR(160),HU$1))+1),\"\")","v":""},{"$f":"IFERROR(MID($Z241,FIND(CHAR(160),SUBSTITUTE($Z241,\"{\",CHAR(160),HV$1)),FIND(CHAR(160),SUBSTITUTE($Z241,\"}\",CHAR(160),HV$1))-FIND(CHAR(160),SUBSTITUTE($Z241,\"{\",CHAR(160),HV$1))+1),\"\")","v":""},{"$f":"IFERROR(MID($Z241,FIND(CHAR(160),SUBSTITUTE($Z241,\"{\",CHAR(160),HW$1)),FIND(CHAR(160),SUBSTITUTE($Z241,\"}\",CHAR(160),HW$1))-FIND(CHAR(160),SUBSTITUTE($Z241,\"{\",CHAR(160),HW$1))+1),\"\")","v":""},{"$f":"IFERROR(MID($Z241,FIND(CHAR(160),SUBSTITUTE($Z241,\"{\",CHAR(160),HX$1)),FIND(CHAR(160),SUBSTITUTE($Z241,\"}\",CHAR(160),HX$1))-FIND(CHAR(160),SUBSTITUTE($Z241,\"{\",CHAR(160),HX$1))+1),\"\")","v":""},{"$f":"IFERROR(MID($Z241,FIND(CHAR(160),SUBSTITUTE($Z241,\"{\",CHAR(160),HY$1)),FIND(CHAR(160),SUBSTITUTE($Z241,\"}\",CHAR(160),HY$1))-FIND(CHAR(160),SUBSTITUTE($Z241,\"{\",CHAR(160),HY$1))+1),\"\")","v":""},{"$f":"IFERROR(MID($Z241,FIND(CHAR(160),SUBSTITUTE($Z241,\"{\",CHAR(160),HZ$1)),FIND(CHAR(160),SUBSTITUTE($Z241,\"}\",CHAR(160),HZ$1))-FIND(CHAR(160),SUBSTITUTE($Z241,\"{\",CHAR(160),HZ$1))+1),\"\")","v":""},{"$f":"IFERROR(MID($Z241,FIND(CHAR(160),SUBSTITUTE($Z241,\"{\",CHAR(160),IA$1)),FIND(CHAR(160),SUBSTITUTE($Z241,\"}\",CHAR(160),IA$1))-FIND(CHAR(160),SUBSTITUTE($Z241,\"{\",CHAR(160),IA$1))+1),\"\")","v":""},{"$f":"IFERROR(MID($Z241,FIND(CHAR(160),SUBSTITUTE($Z241,\"{\",CHAR(160),IB$1)),FIND(CHAR(160),SUBSTITUTE($Z241,\"}\",CHAR(160),IB$1))-FIND(CHAR(160),SUBSTITUTE($Z241,\"{\",CHAR(160),IB$1))+1),\"\")","v":""},{"$f":"IFERROR(MID($Z241,FIND(CHAR(160),SUBSTITUTE($Z241,\"{\",CHAR(160),IC$1)),FIND(CHAR(160),SUBSTITUTE($Z241,\"}\",CHAR(160),IC$1))-FIND(CHAR(160),SUBSTITUTE($Z241,\"{\",CHAR(160),IC$1))+1),\"\")","v":"{Measure:Quantity}"},{"$f":"IFERROR(MID($Z241,FIND(CHAR(160),SUBSTITUTE($Z241,\"{\",CHAR(160),ID$1)),FIND(CHAR(160),SUBSTITUTE($Z241,\"}\",CHAR(160),ID$1))-FIND(CHAR(160),SUBSTITUTE($Z241,\"{\",CHAR(160),ID$1))+1),\"\")","v":"{Fuel Type}"},{"$f":"IFERROR(MID($AA241,FIND(CHAR(160),SUBSTITUTE($AA241,\"{\",CHAR(160),IE$1)),FIND(CHAR(160),SUBSTITUTE($AA241,\"}\",CHAR(160),IE$1))-FIND(CHAR(160),SUBSTITUTE($AA241,\"{\",CHAR(160),IE$1))+1),\"\")","v":""},{"$f":"IFERROR(MID($AA241,FIND(CHAR(160),SUBSTITUTE($AA241,\"{\",CHAR(160),IF$1)),FIND(CHAR(160),SUBSTITUTE($AA241,\"}\",CHAR(160),IF$1))-FIND(CHAR(160),SUBSTITUTE($AA241,\"{\",CHAR(160),IF$1))+1),\"\")","v":""},{"$f":"IFERROR(MID($AA241,FIND(CHAR(160),SUBSTITUTE($AA241,\"{\",CHAR(160),IG$1)),FIND(CHAR(160),SUBSTITUTE($AA241,\"}\",CHAR(160),IG$1))-FIND(CHAR(160),SUBSTITUTE($AA241,\"{\",CHAR(160),IG$1))+1),\"\")","v":""},{"$f":"IFERROR(MID($AA241,FIND(CHAR(160),SUBSTITUTE($AA241,\"{\",CHAR(160),IH$1)),FIND(CHAR(160),SUBSTITUTE($AA241,\"}\",CHAR(160),IH$1))-FIND(CHAR(160),SUBSTITUTE($AA241,\"{\",CHAR(160),IH$1))+1),\"\")","v":""},{"$f":"IFERROR(MID($AA241,FIND(CHAR(160),SUBSTITUTE($AA241,\"{\",CHAR(160),II$1)),FIND(CHAR(160),SUBSTITUTE($AA241,\"}\",CHAR(160),II$1))-FIND(CHAR(160),SUBSTITUTE($AA241,\"{\",CHAR(160),II$1))+1),\"\")","v":""},{"$f":"IFERROR(MID($AA241,FIND(CHAR(160),SUBSTITUTE($AA241,\"{\",CHAR(160),IJ$1)),FIND(CHAR(160),SUBSTITUTE($AA241,\"}\",CHAR(160),IJ$1))-FIND(CHAR(160),SUBSTITUTE($AA241,\"{\",CHAR(160),IJ$1))+1),\"\")","v":""},{"$f":"IFERROR(MID($AA241,FIND(CHAR(160),SUBSTITUTE($AA241,\"{\",CHAR(160),IK$1)),FIND(CHAR(160),SUBSTITUTE($AA241,\"}\",CHAR(160),IK$1))-FIND(CHAR(160),SUBSTITUTE($AA241,\"{\",CHAR(160),IK$1))+1),\"\")","v":""},{"$f":"IFERROR(MID($AA241,FIND(CHAR(160),SUBSTITUTE($AA241,\"{\",CHAR(160),IL$1)),FIND(CHAR(160),SUBSTITUTE($AA241,\"}\",CHAR(160),IL$1))-FIND(CHAR(160),SUBSTITUTE($AA241,\"{\",CHAR(160),IL$1))+1),\"\")","v":""},{"$f":"IFERROR(MID($AA241,FIND(CHAR(160),SUBSTITUTE($AA241,\"{\",CHAR(160),IM$1)),FIND(CHAR(160),SUBSTITUTE($AA241,\"}\",CHAR(160),IM$1))-FIND(CHAR(160),SUBSTITUTE($AA241,\"{\",CHAR(160),IM$1))+1),\"\")","v":""},{"$f":"IFERROR(MID($AA241,FIND(CHAR(160),SUBSTITUTE($AA241,\"{\",CHAR(160),IN$1)),FIND(CHAR(160),SUBSTITUTE($AA241,\"}\",CHAR(160),IN$1))-FIND(CHAR(160),SUBSTITUTE($AA241,\"{\",CHAR(160),IN$1))+1),\"\")","v":""},{"$f":"IFERROR(MID($AB241,FIND(CHAR(160),SUBSTITUTE($AB241,\"{\",CHAR(160),IO$1)),FIND(CHAR(160),SUBSTITUTE($AB241,\"}\",CHAR(160),IO$1))-FIND(CHAR(160),SUBSTITUTE($AB241,\"{\",CHAR(160),IO$1))+1),\"\")","v":""},{"$f":"IFERROR(MID($AB241,FIND(CHAR(160),SUBSTITUTE($AB241,\"{\",CHAR(160),IP$1)),FIND(CHAR(160),SUBSTITUTE($AB241,\"}\",CHAR(160),IP$1))-FIND(CHAR(160),SUBSTITUTE($AB241,\"{\",CHAR(160),IP$1))+1),\"\")","v":""},{"$f":"IFERROR(MID($AB241,FIND(CHAR(160),SUBSTITUTE($AB241,\"{\",CHAR(160),IQ$1)),FIND(CHAR(160),SUBSTITUTE($AB241,\"}\",CHAR(160),IQ$1))-FIND(CHAR(160),SUBSTITUTE($AB241,\"{\",CHAR(160),IQ$1))+1),\"\")","v":""},{"$f":"IFERROR(MID($AB241,FIND(CHAR(160),SUBSTITUTE($AB241,\"{\",CHAR(160),IR$1)),FIND(CHAR(160),SUBSTITUTE($AB241,\"}\",CHAR(160),IR$1))-FIND(CHAR(160),SUBSTITUTE($AB241,\"{\",CHAR(160),IR$1))+1),\"\")","v":""},{"$f":"IFERROR(MID($AB241,FIND(CHAR(160),SUBSTITUTE($AB241,\"{\",CHAR(160),IS$1)),FIND(CHAR(160),SUBSTITUTE($AB241,\"}\",CHAR(160),IS$1))-FIND(CHAR(160),SUBSTITUTE($AB241,\"{\",CHAR(160),IS$1))+1),\"\")","v":""},{"$f":"IFERROR(MID($AB241,FIND(CHAR(160),SUBSTITUTE($AB241,\"{\",CHAR(160),IT$1)),FIND(CHAR(160),SUBSTITUTE($AB241,\"}\",CHAR(160),IT$1))-FIND(CHAR(160),SUBSTITUTE($AB241,\"{\",CHAR(160),IT$1))+1),\"\")","v":""},{"$f":"IFERROR(MID($AB241,FIND(CHAR(160),SUBSTITUTE($AB241,\"{\",CHAR(160),IU$1)),FIND(CHAR(160),SUBSTITUTE($AB241,\"}\",CHAR(160),IU$1))-FIND(CHAR(160),SUBSTITUTE($AB241,\"{\",CHAR(160),IU$1))+1),\"\")","v":""},{"$f":"IFERROR(MID($AB241,FIND(CHAR(160),SUBSTITUTE($AB241,\"{\",CHAR(160),IV$1)),FIND(CHAR(160),SUBSTITUTE($AB241,\"}\",CHAR(160),IV$1))-FIND(CHAR(160),SUBSTITUTE($AB241,\"{\",CHAR(160),IV$1))+1),\"\")","v":""},{"$f":"IFERROR(MID($AB241,FIND(CHAR(160),SUBSTITUTE($AB241,\"{\",CHAR(160),IW$1)),FIND(CHAR(160),SUBSTITUTE($AB241,\"}\",CHAR(160),IW$1))-FIND(CHAR(160),SUBSTITUTE($AB241,\"{\",CHAR(160),IW$1))+1),\"\")","v":""},{"$f":"IFERROR(MID($AB241,FIND(CHAR(160),SUBSTITUTE($AB241,\"{\",CHAR(160),IX$1)),FIND(CHAR(160),SUBSTITUTE($AB241,\"}\",CHAR(160),IX$1))-FIND(CHAR(160),SUBSTITUTE($AB241,\"{\",CHAR(160),IX$1))+1),\"\")","v":""},null,{"$f":"10-COUNTIF(DU241:ED241,\"\")","v":2}]
["Retail Other - Electric","Thermostatic Low-Flow Shower Valve","TSV","2021-07-01","2022-06-30","Calculated","{Retail Price}*{Measure:Quantity}",0,"Manual Entry",0,0,"2019-07-01","2022-06-30","Calculated","if({Measure:Quantity}=0,0,{Measure:Quantity}*(if({Water Heating Fuel}=0,(0.25*442)+(0.05*123),if({Water Heating Fuel}=6,442,if({Water Heating Fuel}=7,123,0)))))",null,null,null,null,null,"if({Measure:Quantity}=0,0,{Measure:Quantity}*(if({Water Heating Fuel}=0,(0.25*0.044)+(0.05*0.012),if({Water Heating Fuel}=6,0.044,if({Water Heating Fuel}=7,0.012,0)))))","if({Measure:Quantity}=0,0,{Measure:Quantity}*(if({Water Heating Fuel}=0,(0.25*0.035)+(0.05*0.010),if({Water Heating Fuel}=6,0.035,if({Water Heating Fuel}=7,0.010,0)))))","if({Water Heating Fuel}=1,2.19,if({Water Heating Fuel}=0,0.05*2.19,0))*10","if({Water Heating Fuel}=2,2.19,if({Water Heating Fuel} = 0,0.05*2.19,0))","if({Water Heating Fuel}=3,2.5,if({Water Heating Fuel} = 0,0.6*2.5,0))","if({Water Heating Fuel}=4,2.5,if({Water Heating Fuel} = 0,0*2.5,0))",null,"if({Measure:Quantity}=0,0,{Measure:Quantity}*3153)","2019-07-01","2022-06-30",10,8.0000000000000002E-3,5.0000000000000001E-3,0.35499999999999998,0.311,0.18099999999999999,0.153,0.7,1,1,0.25,0,null,{"$f":"DU242","v":"{Retail Price}"},24,{"$f":"DV242","v":"{Measure:Quantity}"},1,{"$f":"DW242","v":"{Water Heating Fuel}"},0,{"$f":"DX242","v":""},null,{"$f":"DY242","v":""},null,{"$f":"DZ242","v":""},null,{"$f":"EA242","v":""},null,{"$f":"EB242","v":""},null,{"$f":"EC242","v":""},null,{"$f":"ED242","v":""},null,{"$f":"IF(AU242=0,0,AU242*(IF(AW242=0,(0.25*442)+(0.05*123),IF(AW242=6,442,IF(AW242=7,123,0)))))","v":116.65},0,0,0,0,0,{"$f":"IF(AU242=0,0,AU242*(IF(AW242=0,(0.25*0.044)+(0.05*0.012),IF(AW242=6,0.044,IF(AW242=7,0.012,0)))))","v":1.1599999999999999E-2},{"$f":"IF(AU242=0,0,AU242*(IF(AW242=0,(0.25*0.035)+(0.05*0.01),IF(AW242=6,0.035,IF(AW242=7,0.01,0)))))","v":9.2500000000000013E-3},{"$f":"IF(AW242=1,2.19,IF(AW242=0,0.05*2.19,0))*10","v":1.095},{"$f":"IF(AW242=2,2.19,IF(AW242 = 0,0.05*2.19,0))","v":0.1095},{"$f":"IF(AW242=3,2.5,IF(AW242 = 0,0.6*2.5,0))","v":1.5},{"$f":"IF(AW242=4,2.5,IF(AW242 = 0,0*2.5,0))","v":0},0,{"$f":"IF(AU242=0,0,AU242*3153)","v":3153},null,"Res","Default DR",{"$f":"Benefits(BL242,BR242,BS242,BT242,BU242,BV242,BW242,BX242,BY242,BZ242,AE242,AH242,AI242,AJ242,AK242,AL242,AM242,AN242,AO242,AP242,CA242,CB242)","v":80.67633346020267},30.296541831294366,11.296136665694313,317.84839590537189,0,32.226953709122107,0,187.20144922985645,0,{"$f":"SUMPRODUCT(CC242:CK242,--(CC242:CK242>0))","v":659.54581080154185},{"$f":"-SUMPRODUCT(CC242:CK242,--(CC242:CK242<0))","v":0},null,{"$f":"AS242*AU242","v":24},null,null,{"$f":"CM242+CO242","v":24},{"$f":"IF(NetOrGross=\"Net\",(1-AO242+AP242),1)","v":1},{"$f":"(SUMPRODUCT(CC242:CJ242,--(CC242:CJ242>0))+CN242)*CS242/((-SUMPRODUCT(CC242:CJ242,--(CC242:CJ242<0))+MAX(CO242,CV242)+CP242+CQ242)*CS242+IF(FRIncentives=\"Yes\",CV242*(1-CS242),0))","v":27.481075450064242},1,23,null,"Electric","y",null,{"$f":"IF(F242=\"Manual Entry\",\"Manual\",IF(G242=\"\",0,\"X=\"&SUBSTITUTE(SUBSTITUTE(SUBSTITUTE(SUBSTITUTE(SUBSTITUTE(SUBSTITUTE(SUBSTITUTE(SUBSTITUTE(SUBSTITUTE(SUBSTITUTE(SUBSTITUTE(SUBSTITUTE(G242,$ED242,$ED$2&ROW($ED242)),$EC242,$EC$2&ROW($EC242)),$EB242,$EB$2&ROW($EB242)),$EA242,$EA$2&ROW($EA242)),$DZ242,$DZ$2&ROW($DZ242)),$DY242,$DY$2&ROW($DY242)),$DX242,$DX$2&ROW($DX242)),$DW242,$DW$2&ROW($DW242)),$DV242,$DV$2&ROW($DV242)),$DU242,$DU$2&ROW($DU242)),$DT242,$DT$2&ROW($DT242)),$DS242,$DS$2&ROW($DS242))))","v":"X=AS242*AU242"},{"$f":"IF(I242=\"Manual Entry\",\"Manual\",IF(J242=\"\",0,\"X=\"&SUBSTITUTE(SUBSTITUTE(SUBSTITUTE(SUBSTITUTE(SUBSTITUTE(SUBSTITUTE(SUBSTITUTE(SUBSTITUTE(SUBSTITUTE(SUBSTITUTE(SUBSTITUTE(SUBSTITUTE(J242,$ED242,$ED$2&ROW($ED242)),$EC242,$EC$2&ROW($EC242)),$EB242,$EB$2&ROW($EB242)),$EA242,$EA$2&ROW($EA242)),$DZ242,$DZ$2&ROW($DZ242)),$DY242,$DY$2&ROW($DY242)),$DX242,$DX$2&ROW($DX242)),$DW242,$DW$2&ROW($DW242)),$DV242,$DV$2&ROW($DV242)),$DU242,$DU$2&ROW($DU242)),$DT242,$DT$2&ROW($DT242)),$DS242,$DS$2&ROW($DS242))))","v":"Manual"},{"$f":"IF(O242=\"\",0,\"X=\"&SUBSTITUTE(SUBSTITUTE(SUBSTITUTE(SUBSTITUTE(SUBSTITUTE(SUBSTITUTE(SUBSTITUTE(SUBSTITUTE(SUBSTITUTE(SUBSTITUTE(SUBSTITUTE(SUBSTITUTE(O242,$ED242,$ED$2&ROW($ED242)),$EC242,$EC$2&ROW($EC242)),$EB242,$EB$2&ROW($EB242)),$EA242,$EA$2&ROW($EA242)),$DZ242,$DZ$2&ROW($DZ242)),$DY242,$DY$2&ROW($DY242)),$DX242,$DX$2&ROW($DX242)),$DW242,$DW$2&ROW($DW242)),$DV242,$DV$2&ROW($DV242)),$DU242,$DU$2&ROW($DU242)),$DT242,$DT$2&ROW($DT242)),$DS242,$DS$2&ROW($DS242)))","v":"X=if(AU242=0,0,AU242*(if(AW242=0,(0.25*442)+(0.05*123),if(AW242=6,442,if(AW242=7,123,0)))))"},{"$f":"IF(P242=\"\",0,\"X=\"&SUBSTITUTE(SUBSTITUTE(SUBSTITUTE(SUBSTITUTE(SUBSTITUTE(SUBSTITUTE(SUBSTITUTE(SUBSTITUTE(SUBSTITUTE(SUBSTITUTE(SUBSTITUTE(SUBSTITUTE(P242,$ED242,$ED$2&ROW($ED242)),$EC242,$EC$2&ROW($EC242)),$EB242,$EB$2&ROW($EB242)),$EA242,$EA$2&ROW($EA242)),$DZ242,$DZ$2&ROW($DZ242)),$DY242,$DY$2&ROW($DY242)),$DX242,$DX$2&ROW($DX242)),$DW242,$DW$2&ROW($DW242)),$DV242,$DV$2&ROW($DV242)),$DU242,$DU$2&ROW($DU242)),$DT242,$DT$2&ROW($DT242)),$DS242,$DS$2&ROW($DS242)))","v":0},{"$f":"IF(Q242=\"\",0,\"X=\"&SUBSTITUTE(SUBSTITUTE(SUBSTITUTE(SUBSTITUTE(SUBSTITUTE(SUBSTITUTE(SUBSTITUTE(SUBSTITUTE(SUBSTITUTE(SUBSTITUTE(SUBSTITUTE(SUBSTITUTE(Q242,$ED242,$ED$2&ROW($ED242)),$EC242,$EC$2&ROW($EC242)),$EB242,$EB$2&ROW($EB242)),$EA242,$EA$2&ROW($EA242)),$DZ242,$DZ$2&ROW($DZ242)),$DY242,$DY$2&ROW($DY242)),$DX242,$DX$2&ROW($DX242)),$DW242,$DW$2&ROW($DW242)),$DV242,$DV$2&ROW($DV242)),$DU242,$DU$2&ROW($DU242)),$DT242,$DT$2&ROW($DT242)),$DS242,$DS$2&ROW($DS242)))","v":0},{"$f":"IF(R242=\"\",0,\"X=\"&SUBSTITUTE(SUBSTITUTE(SUBSTITUTE(SUBSTITUTE(SUBSTITUTE(SUBSTITUTE(SUBSTITUTE(SUBSTITUTE(SUBSTITUTE(SUBSTITUTE(SUBSTITUTE(SUBSTITUTE(R242,$ED242,$ED$2&ROW($ED242)),$EC242,$EC$2&ROW($EC242)),$EB242,$EB$2&ROW($EB242)),$EA242,$EA$2&ROW($EA242)),$DZ242,$DZ$2&ROW($DZ242)),$DY242,$DY$2&ROW($DY242)),$DX242,$DX$2&ROW($DX242)),$DW242,$DW$2&ROW($DW242)),$DV242,$DV$2&ROW($DV242)),$DU242,$DU$2&ROW($DU242)),$DT242,$DT$2&ROW($DT242)),$DS242,$DS$2&ROW($DS242)))","v":0},{"$f":"IF(S242=\"\",0,\"X=\"&SUBSTITUTE(SUBSTITUTE(SUBSTITUTE(SUBSTITUTE(SUBSTITUTE(SUBSTITUTE(SUBSTITUTE(SUBSTITUTE(SUBSTITUTE(SUBSTITUTE(SUBSTITUTE(SUBSTITUTE(S242,$ED242,$ED$2&ROW($ED242)),$EC242,$EC$2&ROW($EC242)),$EB242,$EB$2&ROW($EB242)),$EA242,$EA$2&ROW($EA242)),$DZ242,$DZ$2&ROW($DZ242)),$DY242,$DY$2&ROW($DY242)),$DX242,$DX$2&ROW($DX242)),$DW242,$DW$2&ROW($DW242)),$DV242,$DV$2&ROW($DV242)),$DU242,$DU$2&ROW($DU242)),$DT242,$DT$2&ROW($DT242)),$DS242,$DS$2&ROW($DS242)))","v":0},{"$f":"IF(T242=\"\",0,\"X=\"&SUBSTITUTE(SUBSTITUTE(SUBSTITUTE(SUBSTITUTE(SUBSTITUTE(SUBSTITUTE(SUBSTITUTE(SUBSTITUTE(SUBSTITUTE(SUBSTITUTE(SUBSTITUTE(SUBSTITUTE(T242,$ED242,$ED$2&ROW($ED242)),$EC242,$EC$2&ROW($EC242)),$EB242,$EB$2&ROW($EB242)),$EA242,$EA$2&ROW($EA242)),$DZ242,$DZ$2&ROW($DZ242)),$DY242,$DY$2&ROW($DY242)),$DX242,$DX$2&ROW($DX242)),$DW242,$DW$2&ROW($DW242)),$DV242,$DV$2&ROW($DV242)),$DU242,$DU$2&ROW($DU242)),$DT242,$DT$2&ROW($DT242)),$DS242,$DS$2&ROW($DS242)))","v":0},{"$f":"IF(U242=\"\",0,\"X=\"&SUBSTITUTE(SUBSTITUTE(SUBSTITUTE(SUBSTITUTE(SUBSTITUTE(SUBSTITUTE(SUBSTITUTE(SUBSTITUTE(SUBSTITUTE(SUBSTITUTE(SUBSTITUTE(SUBSTITUTE(U242,$ED242,$ED$2&ROW($ED242)),$EC242,$EC$2&ROW($EC242)),$EB242,$EB$2&ROW($EB242)),$EA242,$EA$2&ROW($EA242)),$DZ242,$DZ$2&ROW($DZ242)),$DY242,$DY$2&ROW($DY242)),$DX242,$DX$2&ROW($DX242)),$DW242,$DW$2&ROW($DW242)),$DV242,$DV$2&ROW($DV242)),$DU242,$DU$2&ROW($DU242)),$DT242,$DT$2&ROW($DT242)),$DS242,$DS$2&ROW($DS242)))","v":"X=if(AU242=0,0,AU242*(if(AW242=0,(0.25*0.044)+(0.05*0.012),if(AW242=6,0.044,if(AW242=7,0.012,0)))))"},{"$f":"IF(V242=\"\",0,\"X=\"&SUBSTITUTE(SUBSTITUTE(SUBSTITUTE(SUBSTITUTE(SUBSTITUTE(SUBSTITUTE(SUBSTITUTE(SUBSTITUTE(SUBSTITUTE(SUBSTITUTE(SUBSTITUTE(SUBSTITUTE(V242,$ED242,$ED$2&ROW($ED242)),$EC242,$EC$2&ROW($EC242)),$EB242,$EB$2&ROW($EB242)),$EA242,$EA$2&ROW($EA242)),$DZ242,$DZ$2&ROW($DZ242)),$DY242,$DY$2&ROW($DY242)),$DX242,$DX$2&ROW($DX242)),$DW242,$DW$2&ROW($DW242)),$DV242,$DV$2&ROW($DV242)),$DU242,$DU$2&ROW($DU242)),$DT242,$DT$2&ROW($DT242)),$DS242,$DS$2&ROW($DS242)))","v":"X=if(AU242=0,0,AU242*(if(AW242=0,(0.25*0.035)+(0.05*0.010),if(AW242=6,0.035,if(AW242=7,0.010,0)))))"},{"$f":"IF(W242=\"\",0,\"X=\"&SUBSTITUTE(SUBSTITUTE(SUBSTITUTE(SUBSTITUTE(SUBSTITUTE(SUBSTITUTE(SUBSTITUTE(SUBSTITUTE(SUBSTITUTE(SUBSTITUTE(SUBSTITUTE(SUBSTITUTE(W242,$ED242,$ED$2&ROW($ED242)),$EC242,$EC$2&ROW($EC242)),$EB242,$EB$2&ROW($EB242)),$EA242,$EA$2&ROW($EA242)),$DZ242,$DZ$2&ROW($DZ242)),$DY242,$DY$2&ROW($DY242)),$DX242,$DX$2&ROW($DX242)),$DW242,$DW$2&ROW($DW242)),$DV242,$DV$2&ROW($DV242)),$DU242,$DU$2&ROW($DU242)),$DT242,$DT$2&ROW($DT242)),$DS242,$DS$2&ROW($DS242)))","v":"X=if(AW242=1,2.19,if(AW242=0,0.05*2.19,0))*10"},{"$f":"IF(X242=\"\",0,\"X=\"&SUBSTITUTE(SUBSTITUTE(SUBSTITUTE(SUBSTITUTE(SUBSTITUTE(SUBSTITUTE(SUBSTITUTE(SUBSTITUTE(SUBSTITUTE(SUBSTITUTE(SUBSTITUTE(SUBSTITUTE(X242,$ED242,$ED$2&ROW($ED242)),$EC242,$EC$2&ROW($EC242)),$EB242,$EB$2&ROW($EB242)),$EA242,$EA$2&ROW($EA242)),$DZ242,$DZ$2&ROW($DZ242)),$DY242,$DY$2&ROW($DY242)),$DX242,$DX$2&ROW($DX242)),$DW242,$DW$2&ROW($DW242)),$DV242,$DV$2&ROW($DV242)),$DU242,$DU$2&ROW($DU242)),$DT242,$DT$2&ROW($DT242)),$DS242,$DS$2&ROW($DS242)))","v":"X=if(AW242=2,2.19,if(AW242 = 0,0.05*2.19,0))"},{"$f":"IF(Y242=\"\",0,\"X=\"&SUBSTITUTE(SUBSTITUTE(SUBSTITUTE(SUBSTITUTE(SUBSTITUTE(SUBSTITUTE(SUBSTITUTE(SUBSTITUTE(SUBSTITUTE(SUBSTITUTE(SUBSTITUTE(SUBSTITUTE(Y242,$ED242,$ED$2&ROW($ED242)),$EC242,$EC$2&ROW($EC242)),$EB242,$EB$2&ROW($EB242)),$EA242,$EA$2&ROW($EA242)),$DZ242,$DZ$2&ROW($DZ242)),$DY242,$DY$2&ROW($DY242)),$DX242,$DX$2&ROW($DX242)),$DW242,$DW$2&ROW($DW242)),$DV242,$DV$2&ROW($DV242)),$DU242,$DU$2&ROW($DU242)),$DT242,$DT$2&ROW($DT242)),$DS242,$DS$2&ROW($DS242)))","v":"X=if(AW242=3,2.5,if(AW242 = 0,0.6*2.5,0))"},{"$f":"IF(Z242=\"\",0,\"X=\"&SUBSTITUTE(SUBSTITUTE(SUBSTITUTE(SUBSTITUTE(SUBSTITUTE(SUBSTITUTE(SUBSTITUTE(SUBSTITUTE(SUBSTITUTE(SUBSTITUTE(SUBSTITUTE(SUBSTITUTE(Z242,$ED242,$ED$2&ROW($ED242)),$EC242,$EC$2&ROW($EC242)),$EB242,$EB$2&ROW($EB242)),$EA242,$EA$2&ROW($EA242)),$DZ242,$DZ$2&ROW($DZ242)),$DY242,$DY$2&ROW($DY242)),$DX242,$DX$2&ROW($DX242)),$DW242,$DW$2&ROW($DW242)),$DV242,$DV$2&ROW($DV242)),$DU242,$DU$2&ROW($DU242)),$DT242,$DT$2&ROW($DT242)),$DS242,$DS$2&ROW($DS242)))","v":"X=if(AW242=4,2.5,if(AW242 = 0,0*2.5,0))"},{"$f":"IF(AA242=\"\",0,\"X=\"&SUBSTITUTE(SUBSTITUTE(SUBSTITUTE(SUBSTITUTE(SUBSTITUTE(SUBSTITUTE(SUBSTITUTE(SUBSTITUTE(SUBSTITUTE(SUBSTITUTE(SUBSTITUTE(SUBSTITUTE(AA242,$ED242,$ED$2&ROW($ED242)),$EC242,$EC$2&ROW($EC242)),$EB242,$EB$2&ROW($EB242)),$EA242,$EA$2&ROW($EA242)),$DZ242,$DZ$2&ROW($DZ242)),$DY242,$DY$2&ROW($DY242)),$DX242,$DX$2&ROW($DX242)),$DW242,$DW$2&ROW($DW242)),$DV242,$DV$2&ROW($DV242)),$DU242,$DU$2&ROW($DU242)),$DT242,$DT$2&ROW($DT242)),$DS242,$DS$2&ROW($DS242)))","v":0},{"$f":"IF(AB242=\"\",0,\"X=\"&SUBSTITUTE(SUBSTITUTE(SUBSTITUTE(SUBSTITUTE(SUBSTITUTE(SUBSTITUTE(SUBSTITUTE(SUBSTITUTE(SUBSTITUTE(SUBSTITUTE(SUBSTITUTE(SUBSTITUTE(AB242,$ED242,$ED$2&ROW($ED242)),$EC242,$EC$2&ROW($EC242)),$EB242,$EB$2&ROW($EB242)),$EA242,$EA$2&ROW($EA242)),$DZ242,$DZ$2&ROW($DZ242)),$DY242,$DY$2&ROW($DY242)),$DX242,$DX$2&ROW($DX242)),$DW242,$DW$2&ROW($DW242)),$DV242,$DV$2&ROW($DV242)),$DU242,$DU$2&ROW($DU242)),$DT242,$DT$2&ROW($DT242)),$DS242,$DS$2&ROW($DS242)))","v":"X=if(AU242=0,0,AU242*3153)"},null,null,"{Factor:WinterCF}","{Factor:SummerCF}",{"$f":"IFERROR(INDEX($EG242:$IV242,MATCH(0,COUNTIF($DR242:DT242,$EG242:$IV242),0)),\"\")","v":"{Retail Price}"},{"$f":"IFERROR(INDEX($EG242:$IV242,MATCH(0,COUNTIF($DR242:DU242,$EG242:$IV242),0)),\"\")","v":"{Measure:Quantity}"},{"$f":"IFERROR(INDEX($EG242:$IV242,MATCH(0,COUNTIF($DR242:DV242,$EG242:$IV242),0)),\"\")","v":"{Water Heating Fuel}"},{"$f":"IFERROR(INDEX($EG242:$IV242,MATCH(0,COUNTIF($DR242:DW242,$EG242:$IV242),0)),\"\")","v":""},{"$f":"IFERROR(INDEX($EG242:$IV242,MATCH(0,COUNTIF($DR242:DX242,$EG242:$IV242),0)),\"\")","v":""},{"$f":"IFERROR(INDEX($EG242:$IV242,MATCH(0,COUNTIF($DR242:DY242,$EG242:$IV242),0)),\"\")","v":""},{"$f":"IFERROR(INDEX($EG242:$IV242,MATCH(0,COUNTIF($DR242:DZ242,$EG242:$IV242),0)),\"\")","v":""},{"$f":"IFERROR(INDEX($EG242:$IV242,MATCH(0,COUNTIF($DR242:EA242,$EG242:$IV242),0)),\"\")","v":""},{"$f":"IFERROR(INDEX($EG242:$IV242,MATCH(0,COUNTIF($DR242:EB242,$EG242:$IV242),0)),\"\")","v":""},{"$f":"IFERROR(INDEX($EG242:$IV242,MATCH(0,COUNTIF($DR242:EC242,$EG242:$IV242),0)),\"\")","v":""},null,null,{"$f":"IFERROR(MID($G242,FIND(CHAR(160),SUBSTITUTE($G242,\"{\",CHAR(160),EG$1)),FIND(CHAR(160),SUBSTITUTE($G242,\"}\",CHAR(160),EG$1))-FIND(CHAR(160),SUBSTITUTE($G242,\"{\",CHAR(160),EG$1))+1),\"\")","v":"{Retail Price}"},{"$f":"IFERROR(MID($G242,FIND(CHAR(160),SUBSTITUTE($G242,\"{\",CHAR(160),EH$1)),FIND(CHAR(160),SUBSTITUTE($G242,\"}\",CHAR(160),EH$1))-FIND(CHAR(160),SUBSTITUTE($G242,\"{\",CHAR(160),EH$1))+1),\"\")","v":"{Measure:Quantity}"},{"$f":"IFERROR(MID($G242,FIND(CHAR(160),SUBSTITUTE($G242,\"{\",CHAR(160),EI$1)),FIND(CHAR(160),SUBSTITUTE($G242,\"}\",CHAR(160),EI$1))-FIND(CHAR(160),SUBSTITUTE($G242,\"{\",CHAR(160),EI$1))+1),\"\")","v":""},{"$f":"IFERROR(MID($G242,FIND(CHAR(160),SUBSTITUTE($G242,\"{\",CHAR(160),EJ$1)),FIND(CHAR(160),SUBSTITUTE($G242,\"}\",CHAR(160),EJ$1))-FIND(CHAR(160),SUBSTITUTE($G242,\"{\",CHAR(160),EJ$1))+1),\"\")","v":""},{"$f":"IFERROR(MID($G242,FIND(CHAR(160),SUBSTITUTE($G242,\"{\",CHAR(160),EK$1)),FIND(CHAR(160),SUBSTITUTE($G242,\"}\",CHAR(160),EK$1))-FIND(CHAR(160),SUBSTITUTE($G242,\"{\",CHAR(160),EK$1))+1),\"\")","v":""},{"$f":"IFERROR(MID($G242,FIND(CHAR(160),SUBSTITUTE($G242,\"{\",CHAR(160),EL$1)),FIND(CHAR(160),SUBSTITUTE($G242,\"}\",CHAR(160),EL$1))-FIND(CHAR(160),SUBSTITUTE($G242,\"{\",CHAR(160),EL$1))+1),\"\")","v":""},{"$f":"IFERROR(MID($G242,FIND(CHAR(160),SUBSTITUTE($G242,\"{\",CHAR(160),EM$1)),FIND(CHAR(160),SUBSTITUTE($G242,\"}\",CHAR(160),EM$1))-FIND(CHAR(160),SUBSTITUTE($G242,\"{\",CHAR(160),EM$1))+1),\"\")","v":""},{"$f":"IFERROR(MID($G242,FIND(CHAR(160),SUBSTITUTE($G242,\"{\",CHAR(160),EN$1)),FIND(CHAR(160),SUBSTITUTE($G242,\"}\",CHAR(160),EN$1))-FIND(CHAR(160),SUBSTITUTE($G242,\"{\",CHAR(160),EN$1))+1),\"\")","v":""},{"$f":"IFERROR(MID($G242,FIND(CHAR(160),SUBSTITUTE($G242,\"{\",CHAR(160),EO$1)),FIND(CHAR(160),SUBSTITUTE($G242,\"}\",CHAR(160),EO$1))-FIND(CHAR(160),SUBSTITUTE($G242,\"{\",CHAR(160),EO$1))+1),\"\")","v":""},{"$f":"IFERROR(MID($G242,FIND(CHAR(160),SUBSTITUTE($G242,\"{\",CHAR(160),EP$1)),FIND(CHAR(160),SUBSTITUTE($G242,\"}\",CHAR(160),EP$1))-FIND(CHAR(160),SUBSTITUTE($G242,\"{\",CHAR(160),EP$1))+1),\"\")","v":""},{"$f":"IFERROR(MID($J242,FIND(CHAR(160),SUBSTITUTE($J242,\"{\",CHAR(160),EQ$1)),FIND(CHAR(160),SUBSTITUTE($J242,\"}\",CHAR(160),EQ$1))-FIND(CHAR(160),SUBSTITUTE($J242,\"{\",CHAR(160),EQ$1))+1),\"\")","v":""},{"$f":"IFERROR(MID($J242,FIND(CHAR(160),SUBSTITUTE($J242,\"{\",CHAR(160),ER$1)),FIND(CHAR(160),SUBSTITUTE($J242,\"}\",CHAR(160),ER$1))-FIND(CHAR(160),SUBSTITUTE($J242,\"{\",CHAR(160),ER$1))+1),\"\")","v":""},{"$f":"IFERROR(MID($J242,FIND(CHAR(160),SUBSTITUTE($J242,\"{\",CHAR(160),ES$1)),FIND(CHAR(160),SUBSTITUTE($J242,\"}\",CHAR(160),ES$1))-FIND(CHAR(160),SUBSTITUTE($J242,\"{\",CHAR(160),ES$1))+1),\"\")","v":""},{"$f":"IFERROR(MID($J242,FIND(CHAR(160),SUBSTITUTE($J242,\"{\",CHAR(160),ET$1)),FIND(CHAR(160),SUBSTITUTE($J242,\"}\",CHAR(160),ET$1))-FIND(CHAR(160),SUBSTITUTE($J242,\"{\",CHAR(160),ET$1))+1),\"\")","v":""},{"$f":"IFERROR(MID($J242,FIND(CHAR(160),SUBSTITUTE($J242,\"{\",CHAR(160),EU$1)),FIND(CHAR(160),SUBSTITUTE($J242,\"}\",CHAR(160),EU$1))-FIND(CHAR(160),SUBSTITUTE($J242,\"{\",CHAR(160),EU$1))+1),\"\")","v":""},{"$f":"IFERROR(MID($J242,FIND(CHAR(160),SUBSTITUTE($J242,\"{\",CHAR(160),EV$1)),FIND(CHAR(160),SUBSTITUTE($J242,\"}\",CHAR(160),EV$1))-FIND(CHAR(160),SUBSTITUTE($J242,\"{\",CHAR(160),EV$1))+1),\"\")","v":""},{"$f":"IFERROR(MID($J242,FIND(CHAR(160),SUBSTITUTE($J242,\"{\",CHAR(160),EW$1)),FIND(CHAR(160),SUBSTITUTE($J242,\"}\",CHAR(160),EW$1))-FIND(CHAR(160),SUBSTITUTE($J242,\"{\",CHAR(160),EW$1))+1),\"\")","v":""},{"$f":"IFERROR(MID($J242,FIND(CHAR(160),SUBSTITUTE($J242,\"{\",CHAR(160),EX$1)),FIND(CHAR(160),SUBSTITUTE($J242,\"}\",CHAR(160),EX$1))-FIND(CHAR(160),SUBSTITUTE($J242,\"{\",CHAR(160),EX$1))+1),\"\")","v":""},{"$f":"IFERROR(MID($J242,FIND(CHAR(160),SUBSTITUTE($J242,\"{\",CHAR(160),EY$1)),FIND(CHAR(160),SUBSTITUTE($J242,\"}\",CHAR(160),EY$1))-FIND(CHAR(160),SUBSTITUTE($J242,\"{\",CHAR(160),EY$1))+1),\"\")","v":""},{"$f":"IFERROR(MID($J242,FIND(CHAR(160),SUBSTITUTE($J242,\"{\",CHAR(160),EZ$1)),FIND(CHAR(160),SUBSTITUTE($J242,\"}\",CHAR(160),EZ$1))-FIND(CHAR(160),SUBSTITUTE($J242,\"{\",CHAR(160),EZ$1))+1),\"\")","v":""},{"$f":"IFERROR(MID($J242,FIND(CHAR(160),SUBSTITUTE($J242,\"{\",CHAR(160),FA$1)),FIND(CHAR(160),SUBSTITUTE($J242,\"}\",CHAR(160),FA$1))-FIND(CHAR(160),SUBSTITUTE($J242,\"{\",CHAR(160),FA$1))+1),\"\")","v":""},{"$f":"IFERROR(MID($J242,FIND(CHAR(160),SUBSTITUTE($J242,\"{\",CHAR(160),FB$1)),FIND(CHAR(160),SUBSTITUTE($J242,\"}\",CHAR(160),FB$1))-FIND(CHAR(160),SUBSTITUTE($J242,\"{\",CHAR(160),FB$1))+1),\"\")","v":""},{"$f":"IFERROR(MID($O242,FIND(CHAR(160),SUBSTITUTE($O242,\"{\",CHAR(160),FC$1)),FIND(CHAR(160),SUBSTITUTE($O242,\"}\",CHAR(160),FC$1))-FIND(CHAR(160),SUBSTITUTE($O242,\"{\",CHAR(160),FC$1))+1),\"\")","v":"{Water Heating Fuel}"},{"$f":"IFERROR(MID($O242,FIND(CHAR(160),SUBSTITUTE($O242,\"{\",CHAR(160),FD$1)),FIND(CHAR(160),SUBSTITUTE($O242,\"}\",CHAR(160),FD$1))-FIND(CHAR(160),SUBSTITUTE($O242,\"{\",CHAR(160),FD$1))+1),\"\")","v":"{Water Heating Fuel}"},{"$f":"IFERROR(MID($O242,FIND(CHAR(160),SUBSTITUTE($O242,\"{\",CHAR(160),FE$1)),FIND(CHAR(160),SUBSTITUTE($O242,\"}\",CHAR(160),FE$1))-FIND(CHAR(160),SUBSTITUTE($O242,\"{\",CHAR(160),FE$1))+1),\"\")","v":"{Water Heating Fuel}"},{"$f":"IFERROR(MID($O242,FIND(CHAR(160),SUBSTITUTE($O242,\"{\",CHAR(160),FF$1)),FIND(CHAR(160),SUBSTITUTE($O242,\"}\",CHAR(160),FF$1))-FIND(CHAR(160),SUBSTITUTE($O242,\"{\",CHAR(160),FF$1))+1),\"\")","v":""},{"$f":"IFERROR(MID($O242,FIND(CHAR(160),SUBSTITUTE($O242,\"{\",CHAR(160),FG$1)),FIND(CHAR(160),SUBSTITUTE($O242,\"}\",CHAR(160),FG$1))-FIND(CHAR(160),SUBSTITUTE($O242,\"{\",CHAR(160),FG$1))+1),\"\")","v":""},{"$f":"IFERROR(MID($O242,FIND(CHAR(160),SUBSTITUTE($O242,\"{\",CHAR(160),FH$1)),FIND(CHAR(160),SUBSTITUTE($O242,\"}\",CHAR(160),FH$1))-FIND(CHAR(160),SUBSTITUTE($O242,\"{\",CHAR(160),FH$1))+1),\"\")","v":""},{"$f":"IFERROR(MID($O242,FIND(CHAR(160),SUBSTITUTE($O242,\"{\",CHAR(160),FI$1)),FIND(CHAR(160),SUBSTITUTE($O242,\"}\",CHAR(160),FI$1))-FIND(CHAR(160),SUBSTITUTE($O242,\"{\",CHAR(160),FI$1))+1),\"\")","v":""},{"$f":"IFERROR(MID($O242,FIND(CHAR(160),SUBSTITUTE($O242,\"{\",CHAR(160),FJ$1)),FIND(CHAR(160),SUBSTITUTE($O242,\"}\",CHAR(160),FJ$1))-FIND(CHAR(160),SUBSTITUTE($O242,\"{\",CHAR(160),FJ$1))+1),\"\")","v":""},{"$f":"IFERROR(MID($O242,FIND(CHAR(160),SUBSTITUTE($O242,\"{\",CHAR(160),FK$1)),FIND(CHAR(160),SUBSTITUTE($O242,\"}\",CHAR(160),FK$1))-FIND(CHAR(160),SUBSTITUTE($O242,\"{\",CHAR(160),FK$1))+1),\"\")","v":"{Measure:Quantity}"},{"$f":"IFERROR(MID($O242,FIND(CHAR(160),SUBSTITUTE($O242,\"{\",CHAR(160),FL$1)),FIND(CHAR(160),SUBSTITUTE($O242,\"}\",CHAR(160),FL$1))-FIND(CHAR(160),SUBSTITUTE($O242,\"{\",CHAR(160),FL$1))+1),\"\")","v":"{Measure:Quantity}"},{"$f":"IFERROR(MID($R242,FIND(CHAR(160),SUBSTITUTE($R242,\"{\",CHAR(160),FM$1)),FIND(CHAR(160),SUBSTITUTE($R242,\"}\",CHAR(160),FM$1))-FIND(CHAR(160),SUBSTITUTE($R242,\"{\",CHAR(160),FM$1))+1),\"\")","v":""},{"$f":"IFERROR(MID($R242,FIND(CHAR(160),SUBSTITUTE($R242,\"{\",CHAR(160),FN$1)),FIND(CHAR(160),SUBSTITUTE($R242,\"}\",CHAR(160),FN$1))-FIND(CHAR(160),SUBSTITUTE($R242,\"{\",CHAR(160),FN$1))+1),\"\")","v":""},{"$f":"IFERROR(MID($R242,FIND(CHAR(160),SUBSTITUTE($R242,\"{\",CHAR(160),FO$1)),FIND(CHAR(160),SUBSTITUTE($R242,\"}\",CHAR(160),FO$1))-FIND(CHAR(160),SUBSTITUTE($R242,\"{\",CHAR(160),FO$1))+1),\"\")","v":""},{"$f":"IFERROR(MID($R242,FIND(CHAR(160),SUBSTITUTE($R242,\"{\",CHAR(160),FP$1)),FIND(CHAR(160),SUBSTITUTE($R242,\"}\",CHAR(160),FP$1))-FIND(CHAR(160),SUBSTITUTE($R242,\"{\",CHAR(160),FP$1))+1),\"\")","v":""},{"$f":"IFERROR(MID($R242,FIND(CHAR(160),SUBSTITUTE($R242,\"{\",CHAR(160),FQ$1)),FIND(CHAR(160),SUBSTITUTE($R242,\"}\",CHAR(160),FQ$1))-FIND(CHAR(160),SUBSTITUTE($R242,\"{\",CHAR(160),FQ$1))+1),\"\")","v":""},{"$f":"IFERROR(MID($R242,FIND(CHAR(160),SUBSTITUTE($R242,\"{\",CHAR(160),FR$1)),FIND(CHAR(160),SUBSTITUTE($R242,\"}\",CHAR(160),FR$1))-FIND(CHAR(160),SUBSTITUTE($R242,\"{\",CHAR(160),FR$1))+1),\"\")","v":""},{"$f":"IFERROR(MID($R242,FIND(CHAR(160),SUBSTITUTE($R242,\"{\",CHAR(160),FS$1)),FIND(CHAR(160),SUBSTITUTE($R242,\"}\",CHAR(160),FS$1))-FIND(CHAR(160),SUBSTITUTE($R242,\"{\",CHAR(160),FS$1))+1),\"\")","v":""},{"$f":"IFERROR(MID($R242,FIND(CHAR(160),SUBSTITUTE($R242,\"{\",CHAR(160),FT$1)),FIND(CHAR(160),SUBSTITUTE($R242,\"}\",CHAR(160),FT$1))-FIND(CHAR(160),SUBSTITUTE($R242,\"{\",CHAR(160),FT$1))+1),\"\")","v":""},{"$f":"IFERROR(MID($R242,FIND(CHAR(160),SUBSTITUTE($R242,\"{\",CHAR(160),FU$1)),FIND(CHAR(160),SUBSTITUTE($R242,\"}\",CHAR(160),FU$1))-FIND(CHAR(160),SUBSTITUTE($R242,\"{\",CHAR(160),FU$1))+1),\"\")","v":""},{"$f":"IFERROR(MID($R242,FIND(CHAR(160),SUBSTITUTE($R242,\"{\",CHAR(160),FV$1)),FIND(CHAR(160),SUBSTITUTE($R242,\"}\",CHAR(160),FV$1))-FIND(CHAR(160),SUBSTITUTE($R242,\"{\",CHAR(160),FV$1))+1),\"\")","v":""},{"$f":"IFERROR(MID($U242,FIND(CHAR(160),SUBSTITUTE($U242,\"{\",CHAR(160),FW$1)),FIND(CHAR(160),SUBSTITUTE($U242,\"}\",CHAR(160),FW$1))-FIND(CHAR(160),SUBSTITUTE($U242,\"{\",CHAR(160),FW$1))+1),\"\")","v":"{Water Heating Fuel}"},{"$f":"IFERROR(MID($U242,FIND(CHAR(160),SUBSTITUTE($U242,\"{\",CHAR(160),FX$1)),FIND(CHAR(160),SUBSTITUTE($U242,\"}\",CHAR(160),FX$1))-FIND(CHAR(160),SUBSTITUTE($U242,\"{\",CHAR(160),FX$1))+1),\"\")","v":"{Water Heating Fuel}"},{"$f":"IFERROR(MID($U242,FIND(CHAR(160),SUBSTITUTE($U242,\"{\",CHAR(160),FY$1)),FIND(CHAR(160),SUBSTITUTE($U242,\"}\",CHAR(160),FY$1))-FIND(CHAR(160),SUBSTITUTE($U242,\"{\",CHAR(160),FY$1))+1),\"\")","v":"{Water Heating Fuel}"},{"$f":"IFERROR(MID($U242,FIND(CHAR(160),SUBSTITUTE($U242,\"{\",CHAR(160),FZ$1)),FIND(CHAR(160),SUBSTITUTE($U242,\"}\",CHAR(160),FZ$1))-FIND(CHAR(160),SUBSTITUTE($U242,\"{\",CHAR(160),FZ$1))+1),\"\")","v":""},{"$f":"IFERROR(MID($U242,FIND(CHAR(160),SUBSTITUTE($U242,\"{\",CHAR(160),GA$1)),FIND(CHAR(160),SUBSTITUTE($U242,\"}\",CHAR(160),GA$1))-FIND(CHAR(160),SUBSTITUTE($U242,\"{\",CHAR(160),GA$1))+1),\"\")","v":""},{"$f":"IFERROR(MID($U242,FIND(CHAR(160),SUBSTITUTE($U242,\"{\",CHAR(160),GB$1)),FIND(CHAR(160),SUBSTITUTE($U242,\"}\",CHAR(160),GB$1))-FIND(CHAR(160),SUBSTITUTE($U242,\"{\",CHAR(160),GB$1))+1),\"\")","v":""},{"$f":"IFERROR(MID($U242,FIND(CHAR(160),SUBSTITUTE($U242,\"{\",CHAR(160),GC$1)),FIND(CHAR(160),SUBSTITUTE($U242,\"}\",CHAR(160),GC$1))-FIND(CHAR(160),SUBSTITUTE($U242,\"{\",CHAR(160),GC$1))+1),\"\")","v":""},{"$f":"IFERROR(MID($U242,FIND(CHAR(160),SUBSTITUTE($U242,\"{\",CHAR(160),GD$1)),FIND(CHAR(160),SUBSTITUTE($U242,\"}\",CHAR(160),GD$1))-FIND(CHAR(160),SUBSTITUTE($U242,\"{\",CHAR(160),GD$1))+1),\"\")","v":""},{"$f":"IFERROR(MID($U242,FIND(CHAR(160),SUBSTITUTE($U242,\"{\",CHAR(160),GE$1)),FIND(CHAR(160),SUBSTITUTE($U242,\"}\",CHAR(160),GE$1))-FIND(CHAR(160),SUBSTITUTE($U242,\"{\",CHAR(160),GE$1))+1),\"\")","v":"{Measure:Quantity}"},{"$f":"IFERROR(MID($U242,FIND(CHAR(160),SUBSTITUTE($U242,\"{\",CHAR(160),GF$1)),FIND(CHAR(160),SUBSTITUTE($U242,\"}\",CHAR(160),GF$1))-FIND(CHAR(160),SUBSTITUTE($U242,\"{\",CHAR(160),GF$1))+1),\"\")","v":"{Measure:Quantity}"},{"$f":"IFERROR(MID($V242,FIND(CHAR(160),SUBSTITUTE($V242,\"{\",CHAR(160),GG$1)),FIND(CHAR(160),SUBSTITUTE($V242,\"}\",CHAR(160),GG$1))-FIND(CHAR(160),SUBSTITUTE($V242,\"{\",CHAR(160),GG$1))+1),\"\")","v":"{Water Heating Fuel}"},{"$f":"IFERROR(MID($V242,FIND(CHAR(160),SUBSTITUTE($V242,\"{\",CHAR(160),GH$1)),FIND(CHAR(160),SUBSTITUTE($V242,\"}\",CHAR(160),GH$1))-FIND(CHAR(160),SUBSTITUTE($V242,\"{\",CHAR(160),GH$1))+1),\"\")","v":"{Water Heating Fuel}"},{"$f":"IFERROR(MID($V242,FIND(CHAR(160),SUBSTITUTE($V242,\"{\",CHAR(160),GI$1)),FIND(CHAR(160),SUBSTITUTE($V242,\"}\",CHAR(160),GI$1))-FIND(CHAR(160),SUBSTITUTE($V242,\"{\",CHAR(160),GI$1))+1),\"\")","v":"{Water Heating Fuel}"},{"$f":"IFERROR(MID($V242,FIND(CHAR(160),SUBSTITUTE($V242,\"{\",CHAR(160),GJ$1)),FIND(CHAR(160),SUBSTITUTE($V242,\"}\",CHAR(160),GJ$1))-FIND(CHAR(160),SUBSTITUTE($V242,\"{\",CHAR(160),GJ$1))+1),\"\")","v":""},{"$f":"IFERROR(MID($V242,FIND(CHAR(160),SUBSTITUTE($V242,\"{\",CHAR(160),GK$1)),FIND(CHAR(160),SUBSTITUTE($V242,\"}\",CHAR(160),GK$1))-FIND(CHAR(160),SUBSTITUTE($V242,\"{\",CHAR(160),GK$1))+1),\"\")","v":""},{"$f":"IFERROR(MID($V242,FIND(CHAR(160),SUBSTITUTE($V242,\"{\",CHAR(160),GL$1)),FIND(CHAR(160),SUBSTITUTE($V242,\"}\",CHAR(160),GL$1))-FIND(CHAR(160),SUBSTITUTE($V242,\"{\",CHAR(160),GL$1))+1),\"\")","v":""},{"$f":"IFERROR(MID($V242,FIND(CHAR(160),SUBSTITUTE($V242,\"{\",CHAR(160),GM$1)),FIND(CHAR(160),SUBSTITUTE($V242,\"}\",CHAR(160),GM$1))-FIND(CHAR(160),SUBSTITUTE($V242,\"{\",CHAR(160),GM$1))+1),\"\")","v":""},{"$f":"IFERROR(MID($V242,FIND(CHAR(160),SUBSTITUTE($V242,\"{\",CHAR(160),GN$1)),FIND(CHAR(160),SUBSTITUTE($V242,\"}\",CHAR(160),GN$1))-FIND(CHAR(160),SUBSTITUTE($V242,\"{\",CHAR(160),GN$1))+1),\"\")","v":""},{"$f":"IFERROR(MID($V242,FIND(CHAR(160),SUBSTITUTE($V242,\"{\",CHAR(160),GO$1)),FIND(CHAR(160),SUBSTITUTE($V242,\"}\",CHAR(160),GO$1))-FIND(CHAR(160),SUBSTITUTE($V242,\"{\",CHAR(160),GO$1))+1),\"\")","v":"{Measure:Quantity}"},{"$f":"IFERROR(MID($V242,FIND(CHAR(160),SUBSTITUTE($V242,\"{\",CHAR(160),GP$1)),FIND(CHAR(160),SUBSTITUTE($V242,\"}\",CHAR(160),GP$1))-FIND(CHAR(160),SUBSTITUTE($V242,\"{\",CHAR(160),GP$1))+1),\"\")","v":"{Measure:Quantity}"},{"$f":"IFERROR(MID($W242,FIND(CHAR(160),SUBSTITUTE($W242,\"{\",CHAR(160),GQ$1)),FIND(CHAR(160),SUBSTITUTE($W242,\"}\",CHAR(160),GQ$1))-FIND(CHAR(160),SUBSTITUTE($W242,\"{\",CHAR(160),GQ$1))+1),\"\")","v":""},{"$f":"IFERROR(MID($W242,FIND(CHAR(160),SUBSTITUTE($W242,\"{\",CHAR(160),GR$1)),FIND(CHAR(160),SUBSTITUTE($W242,\"}\",CHAR(160),GR$1))-FIND(CHAR(160),SUBSTITUTE($W242,\"{\",CHAR(160),GR$1))+1),\"\")","v":""},{"$f":"IFERROR(MID($W242,FIND(CHAR(160),SUBSTITUTE($W242,\"{\",CHAR(160),GS$1)),FIND(CHAR(160),SUBSTITUTE($W242,\"}\",CHAR(160),GS$1))-FIND(CHAR(160),SUBSTITUTE($W242,\"{\",CHAR(160),GS$1))+1),\"\")","v":""},{"$f":"IFERROR(MID($W242,FIND(CHAR(160),SUBSTITUTE($W242,\"{\",CHAR(160),GT$1)),FIND(CHAR(160),SUBSTITUTE($W242,\"}\",CHAR(160),GT$1))-FIND(CHAR(160),SUBSTITUTE($W242,\"{\",CHAR(160),GT$1))+1),\"\")","v":""},{"$f":"IFERROR(MID($W242,FIND(CHAR(160),SUBSTITUTE($W242,\"{\",CHAR(160),GU$1)),FIND(CHAR(160),SUBSTITUTE($W242,\"}\",CHAR(160),GU$1))-FIND(CHAR(160),SUBSTITUTE($W242,\"{\",CHAR(160),GU$1))+1),\"\")","v":""},{"$f":"IFERROR(MID($W242,FIND(CHAR(160),SUBSTITUTE($W242,\"{\",CHAR(160),GV$1)),FIND(CHAR(160),SUBSTITUTE($W242,\"}\",CHAR(160),GV$1))-FIND(CHAR(160),SUBSTITUTE($W242,\"{\",CHAR(160),GV$1))+1),\"\")","v":""},{"$f":"IFERROR(MID($W242,FIND(CHAR(160),SUBSTITUTE($W242,\"{\",CHAR(160),GW$1)),FIND(CHAR(160),SUBSTITUTE($W242,\"}\",CHAR(160),GW$1))-FIND(CHAR(160),SUBSTITUTE($W242,\"{\",CHAR(160),GW$1))+1),\"\")","v":""},{"$f":"IFERROR(MID($W242,FIND(CHAR(160),SUBSTITUTE($W242,\"{\",CHAR(160),GX$1)),FIND(CHAR(160),SUBSTITUTE($W242,\"}\",CHAR(160),GX$1))-FIND(CHAR(160),SUBSTITUTE($W242,\"{\",CHAR(160),GX$1))+1),\"\")","v":""},{"$f":"IFERROR(MID($W242,FIND(CHAR(160),SUBSTITUTE($W242,\"{\",CHAR(160),GY$1)),FIND(CHAR(160),SUBSTITUTE($W242,\"}\",CHAR(160),GY$1))-FIND(CHAR(160),SUBSTITUTE($W242,\"{\",CHAR(160),GY$1))+1),\"\")","v":"{Water Heating Fuel}"},{"$f":"IFERROR(MID($W242,FIND(CHAR(160),SUBSTITUTE($W242,\"{\",CHAR(160),GZ$1)),FIND(CHAR(160),SUBSTITUTE($W242,\"}\",CHAR(160),GZ$1))-FIND(CHAR(160),SUBSTITUTE($W242,\"{\",CHAR(160),GZ$1))+1),\"\")","v":"{Water Heating Fuel}"},{"$f":"IFERROR(MID($X242,FIND(CHAR(160),SUBSTITUTE($X242,\"{\",CHAR(160),HA$1)),FIND(CHAR(160),SUBSTITUTE($X242,\"}\",CHAR(160),HA$1))-FIND(CHAR(160),SUBSTITUTE($X242,\"{\",CHAR(160),HA$1))+1),\"\")","v":""},{"$f":"IFERROR(MID($X242,FIND(CHAR(160),SUBSTITUTE($X242,\"{\",CHAR(160),HB$1)),FIND(CHAR(160),SUBSTITUTE($X242,\"}\",CHAR(160),HB$1))-FIND(CHAR(160),SUBSTITUTE($X242,\"{\",CHAR(160),HB$1))+1),\"\")","v":""},{"$f":"IFERROR(MID($X242,FIND(CHAR(160),SUBSTITUTE($X242,\"{\",CHAR(160),HC$1)),FIND(CHAR(160),SUBSTITUTE($X242,\"}\",CHAR(160),HC$1))-FIND(CHAR(160),SUBSTITUTE($X242,\"{\",CHAR(160),HC$1))+1),\"\")","v":""},{"$f":"IFERROR(MID($X242,FIND(CHAR(160),SUBSTITUTE($X242,\"{\",CHAR(160),HD$1)),FIND(CHAR(160),SUBSTITUTE($X242,\"}\",CHAR(160),HD$1))-FIND(CHAR(160),SUBSTITUTE($X242,\"{\",CHAR(160),HD$1))+1),\"\")","v":""},{"$f":"IFERROR(MID($X242,FIND(CHAR(160),SUBSTITUTE($X242,\"{\",CHAR(160),HE$1)),FIND(CHAR(160),SUBSTITUTE($X242,\"}\",CHAR(160),HE$1))-FIND(CHAR(160),SUBSTITUTE($X242,\"{\",CHAR(160),HE$1))+1),\"\")","v":""},{"$f":"IFERROR(MID($X242,FIND(CHAR(160),SUBSTITUTE($X242,\"{\",CHAR(160),HF$1)),FIND(CHAR(160),SUBSTITUTE($X242,\"}\",CHAR(160),HF$1))-FIND(CHAR(160),SUBSTITUTE($X242,\"{\",CHAR(160),HF$1))+1),\"\")","v":""},{"$f":"IFERROR(MID($X242,FIND(CHAR(160),SUBSTITUTE($X242,\"{\",CHAR(160),HG$1)),FIND(CHAR(160),SUBSTITUTE($X242,\"}\",CHAR(160),HG$1))-FIND(CHAR(160),SUBSTITUTE($X242,\"{\",CHAR(160),HG$1))+1),\"\")","v":""},{"$f":"IFERROR(MID($X242,FIND(CHAR(160),SUBSTITUTE($X242,\"{\",CHAR(160),HH$1)),FIND(CHAR(160),SUBSTITUTE($X242,\"}\",CHAR(160),HH$1))-FIND(CHAR(160),SUBSTITUTE($X242,\"{\",CHAR(160),HH$1))+1),\"\")","v":""},{"$f":"IFERROR(MID($X242,FIND(CHAR(160),SUBSTITUTE($X242,\"{\",CHAR(160),HI$1)),FIND(CHAR(160),SUBSTITUTE($X242,\"}\",CHAR(160),HI$1))-FIND(CHAR(160),SUBSTITUTE($X242,\"{\",CHAR(160),HI$1))+1),\"\")","v":"{Water Heating Fuel}"},{"$f":"IFERROR(MID($X242,FIND(CHAR(160),SUBSTITUTE($X242,\"{\",CHAR(160),HJ$1)),FIND(CHAR(160),SUBSTITUTE($X242,\"}\",CHAR(160),HJ$1))-FIND(CHAR(160),SUBSTITUTE($X242,\"{\",CHAR(160),HJ$1))+1),\"\")","v":"{Water Heating Fuel}"},{"$f":"IFERROR(MID($Y242,FIND(CHAR(160),SUBSTITUTE($Y242,\"{\",CHAR(160),HK$1)),FIND(CHAR(160),SUBSTITUTE($Y242,\"}\",CHAR(160),HK$1))-FIND(CHAR(160),SUBSTITUTE($Y242,\"{\",CHAR(160),HK$1))+1),\"\")","v":""},{"$f":"IFERROR(MID($Y242,FIND(CHAR(160),SUBSTITUTE($Y242,\"{\",CHAR(160),HL$1)),FIND(CHAR(160),SUBSTITUTE($Y242,\"}\",CHAR(160),HL$1))-FIND(CHAR(160),SUBSTITUTE($Y242,\"{\",CHAR(160),HL$1))+1),\"\")","v":""},{"$f":"IFERROR(MID($Y242,FIND(CHAR(160),SUBSTITUTE($Y242,\"{\",CHAR(160),HM$1)),FIND(CHAR(160),SUBSTITUTE($Y242,\"}\",CHAR(160),HM$1))-FIND(CHAR(160),SUBSTITUTE($Y242,\"{\",CHAR(160),HM$1))+1),\"\")","v":""},{"$f":"IFERROR(MID($Y242,FIND(CHAR(160),SUBSTITUTE($Y242,\"{\",CHAR(160),HN$1)),FIND(CHAR(160),SUBSTITUTE($Y242,\"}\",CHAR(160),HN$1))-FIND(CHAR(160),SUBSTITUTE($Y242,\"{\",CHAR(160),HN$1))+1),\"\")","v":""},{"$f":"IFERROR(MID($Y242,FIND(CHAR(160),SUBSTITUTE($Y242,\"{\",CHAR(160),HO$1)),FIND(CHAR(160),SUBSTITUTE($Y242,\"}\",CHAR(160),HO$1))-FIND(CHAR(160),SUBSTITUTE($Y242,\"{\",CHAR(160),HO$1))+1),\"\")","v":""},{"$f":"IFERROR(MID($Y242,FIND(CHAR(160),SUBSTITUTE($Y242,\"{\",CHAR(160),HP$1)),FIND(CHAR(160),SUBSTITUTE($Y242,\"}\",CHAR(160),HP$1))-FIND(CHAR(160),SUBSTITUTE($Y242,\"{\",CHAR(160),HP$1))+1),\"\")","v":""},{"$f":"IFERROR(MID($Y242,FIND(CHAR(160),SUBSTITUTE($Y242,\"{\",CHAR(160),HQ$1)),FIND(CHAR(160),SUBSTITUTE($Y242,\"}\",CHAR(160),HQ$1))-FIND(CHAR(160),SUBSTITUTE($Y242,\"{\",CHAR(160),HQ$1))+1),\"\")","v":""},{"$f":"IFERROR(MID($Y242,FIND(CHAR(160),SUBSTITUTE($Y242,\"{\",CHAR(160),HR$1)),FIND(CHAR(160),SUBSTITUTE($Y242,\"}\",CHAR(160),HR$1))-FIND(CHAR(160),SUBSTITUTE($Y242,\"{\",CHAR(160),HR$1))+1),\"\")","v":""},{"$f":"IFERROR(MID($Y242,FIND(CHAR(160),SUBSTITUTE($Y242,\"{\",CHAR(160),HS$1)),FIND(CHAR(160),SUBSTITUTE($Y242,\"}\",CHAR(160),HS$1))-FIND(CHAR(160),SUBSTITUTE($Y242,\"{\",CHAR(160),HS$1))+1),\"\")","v":"{Water Heating Fuel}"},{"$f":"IFERROR(MID($Y242,FIND(CHAR(160),SUBSTITUTE($Y242,\"{\",CHAR(160),HT$1)),FIND(CHAR(160),SUBSTITUTE($Y242,\"}\",CHAR(160),HT$1))-FIND(CHAR(160),SUBSTITUTE($Y242,\"{\",CHAR(160),HT$1))+1),\"\")","v":"{Water Heating Fuel}"},{"$f":"IFERROR(MID($Z242,FIND(CHAR(160),SUBSTITUTE($Z242,\"{\",CHAR(160),HU$1)),FIND(CHAR(160),SUBSTITUTE($Z242,\"}\",CHAR(160),HU$1))-FIND(CHAR(160),SUBSTITUTE($Z242,\"{\",CHAR(160),HU$1))+1),\"\")","v":""},{"$f":"IFERROR(MID($Z242,FIND(CHAR(160),SUBSTITUTE($Z242,\"{\",CHAR(160),HV$1)),FIND(CHAR(160),SUBSTITUTE($Z242,\"}\",CHAR(160),HV$1))-FIND(CHAR(160),SUBSTITUTE($Z242,\"{\",CHAR(160),HV$1))+1),\"\")","v":""},{"$f":"IFERROR(MID($Z242,FIND(CHAR(160),SUBSTITUTE($Z242,\"{\",CHAR(160),HW$1)),FIND(CHAR(160),SUBSTITUTE($Z242,\"}\",CHAR(160),HW$1))-FIND(CHAR(160),SUBSTITUTE($Z242,\"{\",CHAR(160),HW$1))+1),\"\")","v":""},{"$f":"IFERROR(MID($Z242,FIND(CHAR(160),SUBSTITUTE($Z242,\"{\",CHAR(160),HX$1)),FIND(CHAR(160),SUBSTITUTE($Z242,\"}\",CHAR(160),HX$1))-FIND(CHAR(160),SUBSTITUTE($Z242,\"{\",CHAR(160),HX$1))+1),\"\")","v":""},{"$f":"IFERROR(MID($Z242,FIND(CHAR(160),SUBSTITUTE($Z242,\"{\",CHAR(160),HY$1)),FIND(CHAR(160),SUBSTITUTE($Z242,\"}\",CHAR(160),HY$1))-FIND(CHAR(160),SUBSTITUTE($Z242,\"{\",CHAR(160),HY$1))+1),\"\")","v":""},{"$f":"IFERROR(MID($Z242,FIND(CHAR(160),SUBSTITUTE($Z242,\"{\",CHAR(160),HZ$1)),FIND(CHAR(160),SUBSTITUTE($Z242,\"}\",CHAR(160),HZ$1))-FIND(CHAR(160),SUBSTITUTE($Z242,\"{\",CHAR(160),HZ$1))+1),\"\")","v":""},{"$f":"IFERROR(MID($Z242,FIND(CHAR(160),SUBSTITUTE($Z242,\"{\",CHAR(160),IA$1)),FIND(CHAR(160),SUBSTITUTE($Z242,\"}\",CHAR(160),IA$1))-FIND(CHAR(160),SUBSTITUTE($Z242,\"{\",CHAR(160),IA$1))+1),\"\")","v":""},{"$f":"IFERROR(MID($Z242,FIND(CHAR(160),SUBSTITUTE($Z242,\"{\",CHAR(160),IB$1)),FIND(CHAR(160),SUBSTITUTE($Z242,\"}\",CHAR(160),IB$1))-FIND(CHAR(160),SUBSTITUTE($Z242,\"{\",CHAR(160),IB$1))+1),\"\")","v":""},{"$f":"IFERROR(MID($Z242,FIND(CHAR(160),SUBSTITUTE($Z242,\"{\",CHAR(160),IC$1)),FIND(CHAR(160),SUBSTITUTE($Z242,\"}\",CHAR(160),IC$1))-FIND(CHAR(160),SUBSTITUTE($Z242,\"{\",CHAR(160),IC$1))+1),\"\")","v":"{Water Heating Fuel}"},{"$f":"IFERROR(MID($Z242,FIND(CHAR(160),SUBSTITUTE($Z242,\"{\",CHAR(160),ID$1)),FIND(CHAR(160),SUBSTITUTE($Z242,\"}\",CHAR(160),ID$1))-FIND(CHAR(160),SUBSTITUTE($Z242,\"{\",CHAR(160),ID$1))+1),\"\")","v":"{Water Heating Fuel}"},{"$f":"IFERROR(MID($AA242,FIND(CHAR(160),SUBSTITUTE($AA242,\"{\",CHAR(160),IE$1)),FIND(CHAR(160),SUBSTITUTE($AA242,\"}\",CHAR(160),IE$1))-FIND(CHAR(160),SUBSTITUTE($AA242,\"{\",CHAR(160),IE$1))+1),\"\")","v":""},{"$f":"IFERROR(MID($AA242,FIND(CHAR(160),SUBSTITUTE($AA242,\"{\",CHAR(160),IF$1)),FIND(CHAR(160),SUBSTITUTE($AA242,\"}\",CHAR(160),IF$1))-FIND(CHAR(160),SUBSTITUTE($AA242,\"{\",CHAR(160),IF$1))+1),\"\")","v":""},{"$f":"IFERROR(MID($AA242,FIND(CHAR(160),SUBSTITUTE($AA242,\"{\",CHAR(160),IG$1)),FIND(CHAR(160),SUBSTITUTE($AA242,\"}\",CHAR(160),IG$1))-FIND(CHAR(160),SUBSTITUTE($AA242,\"{\",CHAR(160),IG$1))+1),\"\")","v":""},{"$f":"IFERROR(MID($AA242,FIND(CHAR(160),SUBSTITUTE($AA242,\"{\",CHAR(160),IH$1)),FIND(CHAR(160),SUBSTITUTE($AA242,\"}\",CHAR(160),IH$1))-FIND(CHAR(160),SUBSTITUTE($AA242,\"{\",CHAR(160),IH$1))+1),\"\")","v":""},{"$f":"IFERROR(MID($AA242,FIND(CHAR(160),SUBSTITUTE($AA242,\"{\",CHAR(160),II$1)),FIND(CHAR(160),SUBSTITUTE($AA242,\"}\",CHAR(160),II$1))-FIND(CHAR(160),SUBSTITUTE($AA242,\"{\",CHAR(160),II$1))+1),\"\")","v":""},{"$f":"IFERROR(MID($AA242,FIND(CHAR(160),SUBSTITUTE($AA242,\"{\",CHAR(160),IJ$1)),FIND(CHAR(160),SUBSTITUTE($AA242,\"}\",CHAR(160),IJ$1))-FIND(CHAR(160),SUBSTITUTE($AA242,\"{\",CHAR(160),IJ$1))+1),\"\")","v":""},{"$f":"IFERROR(MID($AA242,FIND(CHAR(160),SUBSTITUTE($AA242,\"{\",CHAR(160),IK$1)),FIND(CHAR(160),SUBSTITUTE($AA242,\"}\",CHAR(160),IK$1))-FIND(CHAR(160),SUBSTITUTE($AA242,\"{\",CHAR(160),IK$1))+1),\"\")","v":""},{"$f":"IFERROR(MID($AA242,FIND(CHAR(160),SUBSTITUTE($AA242,\"{\",CHAR(160),IL$1)),FIND(CHAR(160),SUBSTITUTE($AA242,\"}\",CHAR(160),IL$1))-FIND(CHAR(160),SUBSTITUTE($AA242,\"{\",CHAR(160),IL$1))+1),\"\")","v":""},{"$f":"IFERROR(MID($AA242,FIND(CHAR(160),SUBSTITUTE($AA242,\"{\",CHAR(160),IM$1)),FIND(CHAR(160),SUBSTITUTE($AA242,\"}\",CHAR(160),IM$1))-FIND(CHAR(160),SUBSTITUTE($AA242,\"{\",CHAR(160),IM$1))+1),\"\")","v":""},{"$f":"IFERROR(MID($AA242,FIND(CHAR(160),SUBSTITUTE($AA242,\"{\",CHAR(160),IN$1)),FIND(CHAR(160),SUBSTITUTE($AA242,\"}\",CHAR(160),IN$1))-FIND(CHAR(160),SUBSTITUTE($AA242,\"{\",CHAR(160),IN$1))+1),\"\")","v":""},{"$f":"IFERROR(MID($AB242,FIND(CHAR(160),SUBSTITUTE($AB242,\"{\",CHAR(160),IO$1)),FIND(CHAR(160),SUBSTITUTE($AB242,\"}\",CHAR(160),IO$1))-FIND(CHAR(160),SUBSTITUTE($AB242,\"{\",CHAR(160),IO$1))+1),\"\")","v":""},{"$f":"IFERROR(MID($AB242,FIND(CHAR(160),SUBSTITUTE($AB242,\"{\",CHAR(160),IP$1)),FIND(CHAR(160),SUBSTITUTE($AB242,\"}\",CHAR(160),IP$1))-FIND(CHAR(160),SUBSTITUTE($AB242,\"{\",CHAR(160),IP$1))+1),\"\")","v":""},{"$f":"IFERROR(MID($AB242,FIND(CHAR(160),SUBSTITUTE($AB242,\"{\",CHAR(160),IQ$1)),FIND(CHAR(160),SUBSTITUTE($AB242,\"}\",CHAR(160),IQ$1))-FIND(CHAR(160),SUBSTITUTE($AB242,\"{\",CHAR(160),IQ$1))+1),\"\")","v":""},{"$f":"IFERROR(MID($AB242,FIND(CHAR(160),SUBSTITUTE($AB242,\"{\",CHAR(160),IR$1)),FIND(CHAR(160),SUBSTITUTE($AB242,\"}\",CHAR(160),IR$1))-FIND(CHAR(160),SUBSTITUTE($AB242,\"{\",CHAR(160),IR$1))+1),\"\")","v":""},{"$f":"IFERROR(MID($AB242,FIND(CHAR(160),SUBSTITUTE($AB242,\"{\",CHAR(160),IS$1)),FIND(CHAR(160),SUBSTITUTE($AB242,\"}\",CHAR(160),IS$1))-FIND(CHAR(160),SUBSTITUTE($AB242,\"{\",CHAR(160),IS$1))+1),\"\")","v":""},{"$f":"IFERROR(MID($AB242,FIND(CHAR(160),SUBSTITUTE($AB242,\"{\",CHAR(160),IT$1)),FIND(CHAR(160),SUBSTITUTE($AB242,\"}\",CHAR(160),IT$1))-FIND(CHAR(160),SUBSTITUTE($AB242,\"{\",CHAR(160),IT$1))+1),\"\")","v":""},{"$f":"IFERROR(MID($AB242,FIND(CHAR(160),SUBSTITUTE($AB242,\"{\",CHAR(160),IU$1)),FIND(CHAR(160),SUBSTITUTE($AB242,\"}\",CHAR(160),IU$1))-FIND(CHAR(160),SUBSTITUTE($AB242,\"{\",CHAR(160),IU$1))+1),\"\")","v":""},{"$f":"IFERROR(MID($AB242,FIND(CHAR(160),SUBSTITUTE($AB242,\"{\",CHAR(160),IV$1)),FIND(CHAR(160),SUBSTITUTE($AB242,\"}\",CHAR(160),IV$1))-FIND(CHAR(160),SUBSTITUTE($AB242,\"{\",CHAR(160),IV$1))+1),\"\")","v":""},{"$f":"IFERROR(MID($AB242,FIND(CHAR(160),SUBSTITUTE($AB242,\"{\",CHAR(160),IW$1)),FIND(CHAR(160),SUBSTITUTE($AB242,\"}\",CHAR(160),IW$1))-FIND(CHAR(160),SUBSTITUTE($AB242,\"{\",CHAR(160),IW$1))+1),\"\")","v":""},{"$f":"IFERROR(MID($AB242,FIND(CHAR(160),SUBSTITUTE($AB242,\"{\",CHAR(160),IX$1)),FIND(CHAR(160),SUBSTITUTE($AB242,\"}\",CHAR(160),IX$1))-FIND(CHAR(160),SUBSTITUTE($AB242,\"{\",CHAR(160),IX$1))+1),\"\")","v":""}]
["Retail Other - Electric","Low Flow Bathroom Aerator","LFBA","2021-07-01","2022-06-30","Calculated","{Retail Price}*{Measure:Quantity}",0,"Manual Entry",0,0,"2019-07-01","2022-06-30","Calculated","if({Measure:Quantity}=0,0,{Measure:Quantity}*(if({Water Heating Fuel}=0,(0.25*29)+(0.05*8),if({Water Heating Fuel}=6,29,if({Water Heating Fuel}=7,8,0)))))",null,null,null,null,null,"if({Measure:Quantity}=0,0,{Measure:Quantity}*(if({Water Heating Fuel}=0,(0.25*0.0044)+(0.05*0.0012),if({Water Heating Fuel}=6,0.0044,if({Water Heating Fuel}=7,0.0012,0)))))","if({Measure:Quantity}=0,0,{Measure:Quantity}*(if({Water Heating Fuel}=0,(0.25*0.0035)+(0.05*0.00098),if({Water Heating Fuel}=6,0.0035,if({Water Heating Fuel}=7,0.00098,0)))))","if({Water Heating Fuel}=1,0.15,if({Water Heating Fuel}=0,0.05*0.15,0))*10","if({Water Heating Fuel}=2,0.15,if({Water Heating Fuel} = 0,0.05*0.15,0))","if({Water Heating Fuel}=3,0.17,if({Water Heating Fuel} = 0,0.6*0.17,0))","if({Water Heating Fuel}=4,0.17,if({Water Heating Fuel} = 0,0*0.17,0))",null,"if({Measure:Quantity}=0,0,{Measure:Quantity}*333)","2019-07-01","2022-06-30",10,4.0000000000000001E-3,3.0000000000000001E-3,0.39700000000000002,0.26800000000000002,0.20300000000000001,0.13100000000000001,1,1,1,0.25,0,null,{"$f":"DU243","v":"{Retail Price}"},1,{"$f":"DV243","v":"{Measure:Quantity}"},1,{"$f":"DW243","v":"{Water Heating Fuel}"},0,{"$f":"DX243","v":""},null,{"$f":"DY243","v":""},null,{"$f":"DZ243","v":""},null,{"$f":"EA243","v":""},null,{"$f":"EB243","v":""},null,{"$f":"EC243","v":""},null,{"$f":"ED243","v":""},null,{"$f":"IF(AU243=0,0,AU243*(IF(AW243=0,(0.25*29)+(0.05*8),IF(AW243=6,29,IF(AW243=7,8,0)))))","v":7.65},0,0,0,0,0,{"$f":"IF(AU243=0,0,AU243*(IF(AW243=0,(0.25*0.0044)+(0.05*0.0012),IF(AW243=6,0.0044,IF(AW243=7,0.0012,0)))))","v":1.16E-3},{"$f":"IF(AU243=0,0,AU243*(IF(AW243=0,(0.25*0.0035)+(0.05*0.00098),IF(AW243=6,0.0035,IF(AW243=7,0.00098,0)))))","v":9.2400000000000002E-4},{"$f":"IF(AW243=1,0.15,IF(AW243=0,0.05*0.15,0))*10","v":7.4999999999999997E-2},{"$f":"IF(AW243=2,0.15,IF(AW243 = 0,0.05*0.15,0))","v":7.4999999999999997E-3},{"$f":"IF(AW243=3,0.17,IF(AW243 = 0,0.6*0.17,0))","v":0.10200000000000001},{"$f":"IF(AW243=4,0.17,IF(AW243 = 0,0*0.17,0))","v":0},0,{"$f":"IF(AU243=0,0,AU243*333)","v":333},null,"Res","Default DR",{"$f":"Benefits(BL243,BR243,BS243,BT243,BU243,BV243,BW243,BX243,BY243,BZ243,AE243,AH243,AI243,AJ243,AK243,AL243,AM243,AN243,AO243,AP243,CA243,CB243)","v":7.5356716916212214},4.3267436363952871,1.1052971297156862,30.876701316521846,0,3.1533222807360186,0,19.771037930079988,0,{"$f":"SUMPRODUCT(CC243:CK243,--(CC243:CK243>0))","v":66.768773985070041},{"$f":"-SUMPRODUCT(CC243:CK243,--(CC243:CK243<0))","v":0},null,{"$f":"AS243*AU243","v":1},null,null,{"$f":"CM243+CO243","v":1},{"$f":"IF(NetOrGross=\"Net\",(1-AO243+AP243),1)","v":1},{"$f":"(SUMPRODUCT(CC243:CJ243,--(CC243:CJ243>0))+CN243)*CS243/((-SUMPRODUCT(CC243:CJ243,--(CC243:CJ243<0))+MAX(CO243,CV243)+CP243+CQ243)*CS243+IF(FRIncentives=\"Yes\",CV243*(1-CS243),0))","v":66.768773985070041},0,{"$f":"CO243*CW243","v":1},1,"Electric","y",null,{"$f":"IF(F243=\"Manual Entry\",\"Manual\",IF(G243=\"\",0,\"X=\"&SUBSTITUTE(SUBSTITUTE(SUBSTITUTE(SUBSTITUTE(SUBSTITUTE(SUBSTITUTE(SUBSTITUTE(SUBSTITUTE(SUBSTITUTE(SUBSTITUTE(SUBSTITUTE(SUBSTITUTE(G243,$ED243,$ED$2&ROW($ED243)),$EC243,$EC$2&ROW($EC243)),$EB243,$EB$2&ROW($EB243)),$EA243,$EA$2&ROW($EA243)),$DZ243,$DZ$2&ROW($DZ243)),$DY243,$DY$2&ROW($DY243)),$DX243,$DX$2&ROW($DX243)),$DW243,$DW$2&ROW($DW243)),$DV243,$DV$2&ROW($DV243)),$DU243,$DU$2&ROW($DU243)),$DT243,$DT$2&ROW($DT243)),$DS243,$DS$2&ROW($DS243))))","v":"X=AS243*AU243"},{"$f":"IF(I243=\"Manual Entry\",\"Manual\",IF(J243=\"\",0,\"X=\"&SUBSTITUTE(SUBSTITUTE(SUBSTITUTE(SUBSTITUTE(SUBSTITUTE(SUBSTITUTE(SUBSTITUTE(SUBSTITUTE(SUBSTITUTE(SUBSTITUTE(SUBSTITUTE(SUBSTITUTE(J243,$ED243,$ED$2&ROW($ED243)),$EC243,$EC$2&ROW($EC243)),$EB243,$EB$2&ROW($EB243)),$EA243,$EA$2&ROW($EA243)),$DZ243,$DZ$2&ROW($DZ243)),$DY243,$DY$2&ROW($DY243)),$DX243,$DX$2&ROW($DX243)),$DW243,$DW$2&ROW($DW243)),$DV243,$DV$2&ROW($DV243)),$DU243,$DU$2&ROW($DU243)),$DT243,$DT$2&ROW($DT243)),$DS243,$DS$2&ROW($DS243))))","v":"Manual"},{"$f":"IF(O243=\"\",0,\"X=\"&SUBSTITUTE(SUBSTITUTE(SUBSTITUTE(SUBSTITUTE(SUBSTITUTE(SUBSTITUTE(SUBSTITUTE(SUBSTITUTE(SUBSTITUTE(SUBSTITUTE(SUBSTITUTE(SUBSTITUTE(O243,$ED243,$ED$2&ROW($ED243)),$EC243,$EC$2&ROW($EC243)),$EB243,$EB$2&ROW($EB243)),$EA243,$EA$2&ROW($EA243)),$DZ243,$DZ$2&ROW($DZ243)),$DY243,$DY$2&ROW($DY243)),$DX243,$DX$2&ROW($DX243)),$DW243,$DW$2&ROW($DW243)),$DV243,$DV$2&ROW($DV243)),$DU243,$DU$2&ROW($DU243)),$DT243,$DT$2&ROW($DT243)),$DS243,$DS$2&ROW($DS243)))","v":"X=if(AU243=0,0,AU243*(if(AW243=0,(0.25*29)+(0.05*8),if(AW243=6,29,if(AW243=7,8,0)))))"},{"$f":"IF(P243=\"\",0,\"X=\"&SUBSTITUTE(SUBSTITUTE(SUBSTITUTE(SUBSTITUTE(SUBSTITUTE(SUBSTITUTE(SUBSTITUTE(SUBSTITUTE(SUBSTITUTE(SUBSTITUTE(SUBSTITUTE(SUBSTITUTE(P243,$ED243,$ED$2&ROW($ED243)),$EC243,$EC$2&ROW($EC243)),$EB243,$EB$2&ROW($EB243)),$EA243,$EA$2&ROW($EA243)),$DZ243,$DZ$2&ROW($DZ243)),$DY243,$DY$2&ROW($DY243)),$DX243,$DX$2&ROW($DX243)),$DW243,$DW$2&ROW($DW243)),$DV243,$DV$2&ROW($DV243)),$DU243,$DU$2&ROW($DU243)),$DT243,$DT$2&ROW($DT243)),$DS243,$DS$2&ROW($DS243)))","v":0},{"$f":"IF(Q243=\"\",0,\"X=\"&SUBSTITUTE(SUBSTITUTE(SUBSTITUTE(SUBSTITUTE(SUBSTITUTE(SUBSTITUTE(SUBSTITUTE(SUBSTITUTE(SUBSTITUTE(SUBSTITUTE(SUBSTITUTE(SUBSTITUTE(Q243,$ED243,$ED$2&ROW($ED243)),$EC243,$EC$2&ROW($EC243)),$EB243,$EB$2&ROW($EB243)),$EA243,$EA$2&ROW($EA243)),$DZ243,$DZ$2&ROW($DZ243)),$DY243,$DY$2&ROW($DY243)),$DX243,$DX$2&ROW($DX243)),$DW243,$DW$2&ROW($DW243)),$DV243,$DV$2&ROW($DV243)),$DU243,$DU$2&ROW($DU243)),$DT243,$DT$2&ROW($DT243)),$DS243,$DS$2&ROW($DS243)))","v":0},{"$f":"IF(R243=\"\",0,\"X=\"&SUBSTITUTE(SUBSTITUTE(SUBSTITUTE(SUBSTITUTE(SUBSTITUTE(SUBSTITUTE(SUBSTITUTE(SUBSTITUTE(SUBSTITUTE(SUBSTITUTE(SUBSTITUTE(SUBSTITUTE(R243,$ED243,$ED$2&ROW($ED243)),$EC243,$EC$2&ROW($EC243)),$EB243,$EB$2&ROW($EB243)),$EA243,$EA$2&ROW($EA243)),$DZ243,$DZ$2&ROW($DZ243)),$DY243,$DY$2&ROW($DY243)),$DX243,$DX$2&ROW($DX243)),$DW243,$DW$2&ROW($DW243)),$DV243,$DV$2&ROW($DV243)),$DU243,$DU$2&ROW($DU243)),$DT243,$DT$2&ROW($DT243)),$DS243,$DS$2&ROW($DS243)))","v":0},{"$f":"IF(S243=\"\",0,\"X=\"&SUBSTITUTE(SUBSTITUTE(SUBSTITUTE(SUBSTITUTE(SUBSTITUTE(SUBSTITUTE(SUBSTITUTE(SUBSTITUTE(SUBSTITUTE(SUBSTITUTE(SUBSTITUTE(SUBSTITUTE(S243,$ED243,$ED$2&ROW($ED243)),$EC243,$EC$2&ROW($EC243)),$EB243,$EB$2&ROW($EB243)),$EA243,$EA$2&ROW($EA243)),$DZ243,$DZ$2&ROW($DZ243)),$DY243,$DY$2&ROW($DY243)),$DX243,$DX$2&ROW($DX243)),$DW243,$DW$2&ROW($DW243)),$DV243,$DV$2&ROW($DV243)),$DU243,$DU$2&ROW($DU243)),$DT243,$DT$2&ROW($DT243)),$DS243,$DS$2&ROW($DS243)))","v":0},{"$f":"IF(T243=\"\",0,\"X=\"&SUBSTITUTE(SUBSTITUTE(SUBSTITUTE(SUBSTITUTE(SUBSTITUTE(SUBSTITUTE(SUBSTITUTE(SUBSTITUTE(SUBSTITUTE(SUBSTITUTE(SUBSTITUTE(SUBSTITUTE(T243,$ED243,$ED$2&ROW($ED243)),$EC243,$EC$2&ROW($EC243)),$EB243,$EB$2&ROW($EB243)),$EA243,$EA$2&ROW($EA243)),$DZ243,$DZ$2&ROW($DZ243)),$DY243,$DY$2&ROW($DY243)),$DX243,$DX$2&ROW($DX243)),$DW243,$DW$2&ROW($DW243)),$DV243,$DV$2&ROW($DV243)),$DU243,$DU$2&ROW($DU243)),$DT243,$DT$2&ROW($DT243)),$DS243,$DS$2&ROW($DS243)))","v":0},{"$f":"IF(U243=\"\",0,\"X=\"&SUBSTITUTE(SUBSTITUTE(SUBSTITUTE(SUBSTITUTE(SUBSTITUTE(SUBSTITUTE(SUBSTITUTE(SUBSTITUTE(SUBSTITUTE(SUBSTITUTE(SUBSTITUTE(SUBSTITUTE(U243,$ED243,$ED$2&ROW($ED243)),$EC243,$EC$2&ROW($EC243)),$EB243,$EB$2&ROW($EB243)),$EA243,$EA$2&ROW($EA243)),$DZ243,$DZ$2&ROW($DZ243)),$DY243,$DY$2&ROW($DY243)),$DX243,$DX$2&ROW($DX243)),$DW243,$DW$2&ROW($DW243)),$DV243,$DV$2&ROW($DV243)),$DU243,$DU$2&ROW($DU243)),$DT243,$DT$2&ROW($DT243)),$DS243,$DS$2&ROW($DS243)))","v":"X=if(AU243=0,0,AU243*(if(AW243=0,(0.25*0.0044)+(0.05*0.0012),if(AW243=6,0.0044,if(AW243=7,0.0012,0)))))"},{"$f":"IF(V243=\"\",0,\"X=\"&SUBSTITUTE(SUBSTITUTE(SUBSTITUTE(SUBSTITUTE(SUBSTITUTE(SUBSTITUTE(SUBSTITUTE(SUBSTITUTE(SUBSTITUTE(SUBSTITUTE(SUBSTITUTE(SUBSTITUTE(V243,$ED243,$ED$2&ROW($ED243)),$EC243,$EC$2&ROW($EC243)),$EB243,$EB$2&ROW($EB243)),$EA243,$EA$2&ROW($EA243)),$DZ243,$DZ$2&ROW($DZ243)),$DY243,$DY$2&ROW($DY243)),$DX243,$DX$2&ROW($DX243)),$DW243,$DW$2&ROW($DW243)),$DV243,$DV$2&ROW($DV243)),$DU243,$DU$2&ROW($DU243)),$DT243,$DT$2&ROW($DT243)),$DS243,$DS$2&ROW($DS243)))","v":"X=if(AU243=0,0,AU243*(if(AW243=0,(0.25*0.0035)+(0.05*0.00098),if(AW243=6,0.0035,if(AW243=7,0.00098,0)))))"},{"$f":"IF(W243=\"\",0,\"X=\"&SUBSTITUTE(SUBSTITUTE(SUBSTITUTE(SUBSTITUTE(SUBSTITUTE(SUBSTITUTE(SUBSTITUTE(SUBSTITUTE(SUBSTITUTE(SUBSTITUTE(SUBSTITUTE(SUBSTITUTE(W243,$ED243,$ED$2&ROW($ED243)),$EC243,$EC$2&ROW($EC243)),$EB243,$EB$2&ROW($EB243)),$EA243,$EA$2&ROW($EA243)),$DZ243,$DZ$2&ROW($DZ243)),$DY243,$DY$2&ROW($DY243)),$DX243,$DX$2&ROW($DX243)),$DW243,$DW$2&ROW($DW243)),$DV243,$DV$2&ROW($DV243)),$DU243,$DU$2&ROW($DU243)),$DT243,$DT$2&ROW($DT243)),$DS243,$DS$2&ROW($DS243)))","v":"X=if(AW243=1,0.15,if(AW243=0,0.05*0.15,0))*10"},{"$f":"IF(X243=\"\",0,\"X=\"&SUBSTITUTE(SUBSTITUTE(SUBSTITUTE(SUBSTITUTE(SUBSTITUTE(SUBSTITUTE(SUBSTITUTE(SUBSTITUTE(SUBSTITUTE(SUBSTITUTE(SUBSTITUTE(SUBSTITUTE(X243,$ED243,$ED$2&ROW($ED243)),$EC243,$EC$2&ROW($EC243)),$EB243,$EB$2&ROW($EB243)),$EA243,$EA$2&ROW($EA243)),$DZ243,$DZ$2&ROW($DZ243)),$DY243,$DY$2&ROW($DY243)),$DX243,$DX$2&ROW($DX243)),$DW243,$DW$2&ROW($DW243)),$DV243,$DV$2&ROW($DV243)),$DU243,$DU$2&ROW($DU243)),$DT243,$DT$2&ROW($DT243)),$DS243,$DS$2&ROW($DS243)))","v":"X=if(AW243=2,0.15,if(AW243 = 0,0.05*0.15,0))"},{"$f":"IF(Y243=\"\",0,\"X=\"&SUBSTITUTE(SUBSTITUTE(SUBSTITUTE(SUBSTITUTE(SUBSTITUTE(SUBSTITUTE(SUBSTITUTE(SUBSTITUTE(SUBSTITUTE(SUBSTITUTE(SUBSTITUTE(SUBSTITUTE(Y243,$ED243,$ED$2&ROW($ED243)),$EC243,$EC$2&ROW($EC243)),$EB243,$EB$2&ROW($EB243)),$EA243,$EA$2&ROW($EA243)),$DZ243,$DZ$2&ROW($DZ243)),$DY243,$DY$2&ROW($DY243)),$DX243,$DX$2&ROW($DX243)),$DW243,$DW$2&ROW($DW243)),$DV243,$DV$2&ROW($DV243)),$DU243,$DU$2&ROW($DU243)),$DT243,$DT$2&ROW($DT243)),$DS243,$DS$2&ROW($DS243)))","v":"X=if(AW243=3,0.17,if(AW243 = 0,0.6*0.17,0))"},{"$f":"IF(Z243=\"\",0,\"X=\"&SUBSTITUTE(SUBSTITUTE(SUBSTITUTE(SUBSTITUTE(SUBSTITUTE(SUBSTITUTE(SUBSTITUTE(SUBSTITUTE(SUBSTITUTE(SUBSTITUTE(SUBSTITUTE(SUBSTITUTE(Z243,$ED243,$ED$2&ROW($ED243)),$EC243,$EC$2&ROW($EC243)),$EB243,$EB$2&ROW($EB243)),$EA243,$EA$2&ROW($EA243)),$DZ243,$DZ$2&ROW($DZ243)),$DY243,$DY$2&ROW($DY243)),$DX243,$DX$2&ROW($DX243)),$DW243,$DW$2&ROW($DW243)),$DV243,$DV$2&ROW($DV243)),$DU243,$DU$2&ROW($DU243)),$DT243,$DT$2&ROW($DT243)),$DS243,$DS$2&ROW($DS243)))","v":"X=if(AW243=4,0.17,if(AW243 = 0,0*0.17,0))"},{"$f":"IF(AA243=\"\",0,\"X=\"&SUBSTITUTE(SUBSTITUTE(SUBSTITUTE(SUBSTITUTE(SUBSTITUTE(SUBSTITUTE(SUBSTITUTE(SUBSTITUTE(SUBSTITUTE(SUBSTITUTE(SUBSTITUTE(SUBSTITUTE(AA243,$ED243,$ED$2&ROW($ED243)),$EC243,$EC$2&ROW($EC243)),$EB243,$EB$2&ROW($EB243)),$EA243,$EA$2&ROW($EA243)),$DZ243,$DZ$2&ROW($DZ243)),$DY243,$DY$2&ROW($DY243)),$DX243,$DX$2&ROW($DX243)),$DW243,$DW$2&ROW($DW243)),$DV243,$DV$2&ROW($DV243)),$DU243,$DU$2&ROW($DU243)),$DT243,$DT$2&ROW($DT243)),$DS243,$DS$2&ROW($DS243)))","v":0},{"$f":"IF(AB243=\"\",0,\"X=\"&SUBSTITUTE(SUBSTITUTE(SUBSTITUTE(SUBSTITUTE(SUBSTITUTE(SUBSTITUTE(SUBSTITUTE(SUBSTITUTE(SUBSTITUTE(SUBSTITUTE(SUBSTITUTE(SUBSTITUTE(AB243,$ED243,$ED$2&ROW($ED243)),$EC243,$EC$2&ROW($EC243)),$EB243,$EB$2&ROW($EB243)),$EA243,$EA$2&ROW($EA243)),$DZ243,$DZ$2&ROW($DZ243)),$DY243,$DY$2&ROW($DY243)),$DX243,$DX$2&ROW($DX243)),$DW243,$DW$2&ROW($DW243)),$DV243,$DV$2&ROW($DV243)),$DU243,$DU$2&ROW($DU243)),$DT243,$DT$2&ROW($DT243)),$DS243,$DS$2&ROW($DS243)))","v":"X=if(AU243=0,0,AU243*333)"},null,null,"{Factor:WinterCF}","{Factor:SummerCF}",{"$f":"IFERROR(INDEX($EG243:$IV243,MATCH(0,COUNTIF($DR243:DT243,$EG243:$IV243),0)),\"\")","v":"{Retail Price}"},{"$f":"IFERROR(INDEX($EG243:$IV243,MATCH(0,COUNTIF($DR243:DU243,$EG243:$IV243),0)),\"\")","v":"{Measure:Quantity}"},{"$f":"IFERROR(INDEX($EG243:$IV243,MATCH(0,COUNTIF($DR243:DV243,$EG243:$IV243),0)),\"\")","v":"{Water Heating Fuel}"},{"$f":"IFERROR(INDEX($EG243:$IV243,MATCH(0,COUNTIF($DR243:DW243,$EG243:$IV243),0)),\"\")","v":""},{"$f":"IFERROR(INDEX($EG243:$IV243,MATCH(0,COUNTIF($DR243:DX243,$EG243:$IV243),0)),\"\")","v":""},{"$f":"IFERROR(INDEX($EG243:$IV243,MATCH(0,COUNTIF($DR243:DY243,$EG243:$IV243),0)),\"\")","v":""},{"$f":"IFERROR(INDEX($EG243:$IV243,MATCH(0,COUNTIF($DR243:DZ243,$EG243:$IV243),0)),\"\")","v":""},{"$f":"IFERROR(INDEX($EG243:$IV243,MATCH(0,COUNTIF($DR243:EA243,$EG243:$IV243),0)),\"\")","v":""},{"$f":"IFERROR(INDEX($EG243:$IV243,MATCH(0,COUNTIF($DR243:EB243,$EG243:$IV243),0)),\"\")","v":""},{"$f":"IFERROR(INDEX($EG243:$IV243,MATCH(0,COUNTIF($DR243:EC243,$EG243:$IV243),0)),\"\")","v":""},null,null,{"$f":"IFERROR(MID($G243,FIND(CHAR(160),SUBSTITUTE($G243,\"{\",CHAR(160),EG$1)),FIND(CHAR(160),SUBSTITUTE($G243,\"}\",CHAR(160),EG$1))-FIND(CHAR(160),SUBSTITUTE($G243,\"{\",CHAR(160),EG$1))+1),\"\")","v":"{Retail Price}"},{"$f":"IFERROR(MID($G243,FIND(CHAR(160),SUBSTITUTE($G243,\"{\",CHAR(160),EH$1)),FIND(CHAR(160),SUBSTITUTE($G243,\"}\",CHAR(160),EH$1))-FIND(CHAR(160),SUBSTITUTE($G243,\"{\",CHAR(160),EH$1))+1),\"\")","v":"{Measure:Quantity}"},{"$f":"IFERROR(MID($G243,FIND(CHAR(160),SUBSTITUTE($G243,\"{\",CHAR(160),EI$1)),FIND(CHAR(160),SUBSTITUTE($G243,\"}\",CHAR(160),EI$1))-FIND(CHAR(160),SUBSTITUTE($G243,\"{\",CHAR(160),EI$1))+1),\"\")","v":""},{"$f":"IFERROR(MID($G243,FIND(CHAR(160),SUBSTITUTE($G243,\"{\",CHAR(160),EJ$1)),FIND(CHAR(160),SUBSTITUTE($G243,\"}\",CHAR(160),EJ$1))-FIND(CHAR(160),SUBSTITUTE($G243,\"{\",CHAR(160),EJ$1))+1),\"\")","v":""},{"$f":"IFERROR(MID($G243,FIND(CHAR(160),SUBSTITUTE($G243,\"{\",CHAR(160),EK$1)),FIND(CHAR(160),SUBSTITUTE($G243,\"}\",CHAR(160),EK$1))-FIND(CHAR(160),SUBSTITUTE($G243,\"{\",CHAR(160),EK$1))+1),\"\")","v":""},{"$f":"IFERROR(MID($G243,FIND(CHAR(160),SUBSTITUTE($G243,\"{\",CHAR(160),EL$1)),FIND(CHAR(160),SUBSTITUTE($G243,\"}\",CHAR(160),EL$1))-FIND(CHAR(160),SUBSTITUTE($G243,\"{\",CHAR(160),EL$1))+1),\"\")","v":""},{"$f":"IFERROR(MID($G243,FIND(CHAR(160),SUBSTITUTE($G243,\"{\",CHAR(160),EM$1)),FIND(CHAR(160),SUBSTITUTE($G243,\"}\",CHAR(160),EM$1))-FIND(CHAR(160),SUBSTITUTE($G243,\"{\",CHAR(160),EM$1))+1),\"\")","v":""},{"$f":"IFERROR(MID($G243,FIND(CHAR(160),SUBSTITUTE($G243,\"{\",CHAR(160),EN$1)),FIND(CHAR(160),SUBSTITUTE($G243,\"}\",CHAR(160),EN$1))-FIND(CHAR(160),SUBSTITUTE($G243,\"{\",CHAR(160),EN$1))+1),\"\")","v":""},{"$f":"IFERROR(MID($G243,FIND(CHAR(160),SUBSTITUTE($G243,\"{\",CHAR(160),EO$1)),FIND(CHAR(160),SUBSTITUTE($G243,\"}\",CHAR(160),EO$1))-FIND(CHAR(160),SUBSTITUTE($G243,\"{\",CHAR(160),EO$1))+1),\"\")","v":""},{"$f":"IFERROR(MID($G243,FIND(CHAR(160),SUBSTITUTE($G243,\"{\",CHAR(160),EP$1)),FIND(CHAR(160),SUBSTITUTE($G243,\"}\",CHAR(160),EP$1))-FIND(CHAR(160),SUBSTITUTE($G243,\"{\",CHAR(160),EP$1))+1),\"\")","v":""},{"$f":"IFERROR(MID($J243,FIND(CHAR(160),SUBSTITUTE($J243,\"{\",CHAR(160),EQ$1)),FIND(CHAR(160),SUBSTITUTE($J243,\"}\",CHAR(160),EQ$1))-FIND(CHAR(160),SUBSTITUTE($J243,\"{\",CHAR(160),EQ$1))+1),\"\")","v":""},{"$f":"IFERROR(MID($J243,FIND(CHAR(160),SUBSTITUTE($J243,\"{\",CHAR(160),ER$1)),FIND(CHAR(160),SUBSTITUTE($J243,\"}\",CHAR(160),ER$1))-FIND(CHAR(160),SUBSTITUTE($J243,\"{\",CHAR(160),ER$1))+1),\"\")","v":""},{"$f":"IFERROR(MID($J243,FIND(CHAR(160),SUBSTITUTE($J243,\"{\",CHAR(160),ES$1)),FIND(CHAR(160),SUBSTITUTE($J243,\"}\",CHAR(160),ES$1))-FIND(CHAR(160),SUBSTITUTE($J243,\"{\",CHAR(160),ES$1))+1),\"\")","v":""},{"$f":"IFERROR(MID($J243,FIND(CHAR(160),SUBSTITUTE($J243,\"{\",CHAR(160),ET$1)),FIND(CHAR(160),SUBSTITUTE($J243,\"}\",CHAR(160),ET$1))-FIND(CHAR(160),SUBSTITUTE($J243,\"{\",CHAR(160),ET$1))+1),\"\")","v":""},{"$f":"IFERROR(MID($J243,FIND(CHAR(160),SUBSTITUTE($J243,\"{\",CHAR(160),EU$1)),FIND(CHAR(160),SUBSTITUTE($J243,\"}\",CHAR(160),EU$1))-FIND(CHAR(160),SUBSTITUTE($J243,\"{\",CHAR(160),EU$1))+1),\"\")","v":""},{"$f":"IFERROR(MID($J243,FIND(CHAR(160),SUBSTITUTE($J243,\"{\",CHAR(160),EV$1)),FIND(CHAR(160),SUBSTITUTE($J243,\"}\",CHAR(160),EV$1))-FIND(CHAR(160),SUBSTITUTE($J243,\"{\",CHAR(160),EV$1))+1),\"\")","v":""},{"$f":"IFERROR(MID($J243,FIND(CHAR(160),SUBSTITUTE($J243,\"{\",CHAR(160),EW$1)),FIND(CHAR(160),SUBSTITUTE($J243,\"}\",CHAR(160),EW$1))-FIND(CHAR(160),SUBSTITUTE($J243,\"{\",CHAR(160),EW$1))+1),\"\")","v":""},{"$f":"IFERROR(MID($J243,FIND(CHAR(160),SUBSTITUTE($J243,\"{\",CHAR(160),EX$1)),FIND(CHAR(160),SUBSTITUTE($J243,\"}\",CHAR(160),EX$1))-FIND(CHAR(160),SUBSTITUTE($J243,\"{\",CHAR(160),EX$1))+1),\"\")","v":""},{"$f":"IFERROR(MID($J243,FIND(CHAR(160),SUBSTITUTE($J243,\"{\",CHAR(160),EY$1)),FIND(CHAR(160),SUBSTITUTE($J243,\"}\",CHAR(160),EY$1))-FIND(CHAR(160),SUBSTITUTE($J243,\"{\",CHAR(160),EY$1))+1),\"\")","v":""},{"$f":"IFERROR(MID($J243,FIND(CHAR(160),SUBSTITUTE($J243,\"{\",CHAR(160),EZ$1)),FIND(CHAR(160),SUBSTITUTE($J243,\"}\",CHAR(160),EZ$1))-FIND(CHAR(160),SUBSTITUTE($J243,\"{\",CHAR(160),EZ$1))+1),\"\")","v":""},{"$f":"IFERROR(MID($J243,FIND(CHAR(160),SUBSTITUTE($J243,\"{\",CHAR(160),FA$1)),FIND(CHAR(160),SUBSTITUTE($J243,\"}\",CHAR(160),FA$1))-FIND(CHAR(160),SUBSTITUTE($J243,\"{\",CHAR(160),FA$1))+1),\"\")","v":""},{"$f":"IFERROR(MID($J243,FIND(CHAR(160),SUBSTITUTE($J243,\"{\",CHAR(160),FB$1)),FIND(CHAR(160),SUBSTITUTE($J243,\"}\",CHAR(160),FB$1))-FIND(CHAR(160),SUBSTITUTE($J243,\"{\",CHAR(160),FB$1))+1),\"\")","v":""},{"$f":"IFERROR(MID($O243,FIND(CHAR(160),SUBSTITUTE($O243,\"{\",CHAR(160),FC$1)),FIND(CHAR(160),SUBSTITUTE($O243,\"}\",CHAR(160),FC$1))-FIND(CHAR(160),SUBSTITUTE($O243,\"{\",CHAR(160),FC$1))+1),\"\")","v":"{Water Heating Fuel}"},{"$f":"IFERROR(MID($O243,FIND(CHAR(160),SUBSTITUTE($O243,\"{\",CHAR(160),FD$1)),FIND(CHAR(160),SUBSTITUTE($O243,\"}\",CHAR(160),FD$1))-FIND(CHAR(160),SUBSTITUTE($O243,\"{\",CHAR(160),FD$1))+1),\"\")","v":"{Water Heating Fuel}"},{"$f":"IFERROR(MID($O243,FIND(CHAR(160),SUBSTITUTE($O243,\"{\",CHAR(160),FE$1)),FIND(CHAR(160),SUBSTITUTE($O243,\"}\",CHAR(160),FE$1))-FIND(CHAR(160),SUBSTITUTE($O243,\"{\",CHAR(160),FE$1))+1),\"\")","v":"{Water Heating Fuel}"},{"$f":"IFERROR(MID($O243,FIND(CHAR(160),SUBSTITUTE($O243,\"{\",CHAR(160),FF$1)),FIND(CHAR(160),SUBSTITUTE($O243,\"}\",CHAR(160),FF$1))-FIND(CHAR(160),SUBSTITUTE($O243,\"{\",CHAR(160),FF$1))+1),\"\")","v":""},{"$f":"IFERROR(MID($O243,FIND(CHAR(160),SUBSTITUTE($O243,\"{\",CHAR(160),FG$1)),FIND(CHAR(160),SUBSTITUTE($O243,\"}\",CHAR(160),FG$1))-FIND(CHAR(160),SUBSTITUTE($O243,\"{\",CHAR(160),FG$1))+1),\"\")","v":""},{"$f":"IFERROR(MID($O243,FIND(CHAR(160),SUBSTITUTE($O243,\"{\",CHAR(160),FH$1)),FIND(CHAR(160),SUBSTITUTE($O243,\"}\",CHAR(160),FH$1))-FIND(CHAR(160),SUBSTITUTE($O243,\"{\",CHAR(160),FH$1))+1),\"\")","v":""},{"$f":"IFERROR(MID($O243,FIND(CHAR(160),SUBSTITUTE($O243,\"{\",CHAR(160),FI$1)),FIND(CHAR(160),SUBSTITUTE($O243,\"}\",CHAR(160),FI$1))-FIND(CHAR(160),SUBSTITUTE($O243,\"{\",CHAR(160),FI$1))+1),\"\")","v":""},{"$f":"IFERROR(MID($O243,FIND(CHAR(160),SUBSTITUTE($O243,\"{\",CHAR(160),FJ$1)),FIND(CHAR(160),SUBSTITUTE($O243,\"}\",CHAR(160),FJ$1))-FIND(CHAR(160),SUBSTITUTE($O243,\"{\",CHAR(160),FJ$1))+1),\"\")","v":""},{"$f":"IFERROR(MID($O243,FIND(CHAR(160),SUBSTITUTE($O243,\"{\",CHAR(160),FK$1)),FIND(CHAR(160),SUBSTITUTE($O243,\"}\",CHAR(160),FK$1))-FIND(CHAR(160),SUBSTITUTE($O243,\"{\",CHAR(160),FK$1))+1),\"\")","v":"{Measure:Quantity}"},{"$f":"IFERROR(MID($O243,FIND(CHAR(160),SUBSTITUTE($O243,\"{\",CHAR(160),FL$1)),FIND(CHAR(160),SUBSTITUTE($O243,\"}\",CHAR(160),FL$1))-FIND(CHAR(160),SUBSTITUTE($O243,\"{\",CHAR(160),FL$1))+1),\"\")","v":"{Measure:Quantity}"},{"$f":"IFERROR(MID($R243,FIND(CHAR(160),SUBSTITUTE($R243,\"{\",CHAR(160),FM$1)),FIND(CHAR(160),SUBSTITUTE($R243,\"}\",CHAR(160),FM$1))-FIND(CHAR(160),SUBSTITUTE($R243,\"{\",CHAR(160),FM$1))+1),\"\")","v":""},{"$f":"IFERROR(MID($R243,FIND(CHAR(160),SUBSTITUTE($R243,\"{\",CHAR(160),FN$1)),FIND(CHAR(160),SUBSTITUTE($R243,\"}\",CHAR(160),FN$1))-FIND(CHAR(160),SUBSTITUTE($R243,\"{\",CHAR(160),FN$1))+1),\"\")","v":""},{"$f":"IFERROR(MID($R243,FIND(CHAR(160),SUBSTITUTE($R243,\"{\",CHAR(160),FO$1)),FIND(CHAR(160),SUBSTITUTE($R243,\"}\",CHAR(160),FO$1))-FIND(CHAR(160),SUBSTITUTE($R243,\"{\",CHAR(160),FO$1))+1),\"\")","v":""},{"$f":"IFERROR(MID($R243,FIND(CHAR(160),SUBSTITUTE($R243,\"{\",CHAR(160),FP$1)),FIND(CHAR(160),SUBSTITUTE($R243,\"}\",CHAR(160),FP$1))-FIND(CHAR(160),SUBSTITUTE($R243,\"{\",CHAR(160),FP$1))+1),\"\")","v":""},{"$f":"IFERROR(MID($R243,FIND(CHAR(160),SUBSTITUTE($R243,\"{\",CHAR(160),FQ$1)),FIND(CHAR(160),SUBSTITUTE($R243,\"}\",CHAR(160),FQ$1))-FIND(CHAR(160),SUBSTITUTE($R243,\"{\",CHAR(160),FQ$1))+1),\"\")","v":""},{"$f":"IFERROR(MID($R243,FIND(CHAR(160),SUBSTITUTE($R243,\"{\",CHAR(160),FR$1)),FIND(CHAR(160),SUBSTITUTE($R243,\"}\",CHAR(160),FR$1))-FIND(CHAR(160),SUBSTITUTE($R243,\"{\",CHAR(160),FR$1))+1),\"\")","v":""},{"$f":"IFERROR(MID($R243,FIND(CHAR(160),SUBSTITUTE($R243,\"{\",CHAR(160),FS$1)),FIND(CHAR(160),SUBSTITUTE($R243,\"}\",CHAR(160),FS$1))-FIND(CHAR(160),SUBSTITUTE($R243,\"{\",CHAR(160),FS$1))+1),\"\")","v":""},{"$f":"IFERROR(MID($R243,FIND(CHAR(160),SUBSTITUTE($R243,\"{\",CHAR(160),FT$1)),FIND(CHAR(160),SUBSTITUTE($R243,\"}\",CHAR(160),FT$1))-FIND(CHAR(160),SUBSTITUTE($R243,\"{\",CHAR(160),FT$1))+1),\"\")","v":""},{"$f":"IFERROR(MID($R243,FIND(CHAR(160),SUBSTITUTE($R243,\"{\",CHAR(160),FU$1)),FIND(CHAR(160),SUBSTITUTE($R243,\"}\",CHAR(160),FU$1))-FIND(CHAR(160),SUBSTITUTE($R243,\"{\",CHAR(160),FU$1))+1),\"\")","v":""},{"$f":"IFERROR(MID($R243,FIND(CHAR(160),SUBSTITUTE($R243,\"{\",CHAR(160),FV$1)),FIND(CHAR(160),SUBSTITUTE($R243,\"}\",CHAR(160),FV$1))-FIND(CHAR(160),SUBSTITUTE($R243,\"{\",CHAR(160),FV$1))+1),\"\")","v":""},{"$f":"IFERROR(MID($U243,FIND(CHAR(160),SUBSTITUTE($U243,\"{\",CHAR(160),FW$1)),FIND(CHAR(160),SUBSTITUTE($U243,\"}\",CHAR(160),FW$1))-FIND(CHAR(160),SUBSTITUTE($U243,\"{\",CHAR(160),FW$1))+1),\"\")","v":"{Water Heating Fuel}"},{"$f":"IFERROR(MID($U243,FIND(CHAR(160),SUBSTITUTE($U243,\"{\",CHAR(160),FX$1)),FIND(CHAR(160),SUBSTITUTE($U243,\"}\",CHAR(160),FX$1))-FIND(CHAR(160),SUBSTITUTE($U243,\"{\",CHAR(160),FX$1))+1),\"\")","v":"{Water Heating Fuel}"},{"$f":"IFERROR(MID($U243,FIND(CHAR(160),SUBSTITUTE($U243,\"{\",CHAR(160),FY$1)),FIND(CHAR(160),SUBSTITUTE($U243,\"}\",CHAR(160),FY$1))-FIND(CHAR(160),SUBSTITUTE($U243,\"{\",CHAR(160),FY$1))+1),\"\")","v":"{Water Heating Fuel}"},{"$f":"IFERROR(MID($U243,FIND(CHAR(160),SUBSTITUTE($U243,\"{\",CHAR(160),FZ$1)),FIND(CHAR(160),SUBSTITUTE($U243,\"}\",CHAR(160),FZ$1))-FIND(CHAR(160),SUBSTITUTE($U243,\"{\",CHAR(160),FZ$1))+1),\"\")","v":""},{"$f":"IFERROR(MID($U243,FIND(CHAR(160),SUBSTITUTE($U243,\"{\",CHAR(160),GA$1)),FIND(CHAR(160),SUBSTITUTE($U243,\"}\",CHAR(160),GA$1))-FIND(CHAR(160),SUBSTITUTE($U243,\"{\",CHAR(160),GA$1))+1),\"\")","v":""},{"$f":"IFERROR(MID($U243,FIND(CHAR(160),SUBSTITUTE($U243,\"{\",CHAR(160),GB$1)),FIND(CHAR(160),SUBSTITUTE($U243,\"}\",CHAR(160),GB$1))-FIND(CHAR(160),SUBSTITUTE($U243,\"{\",CHAR(160),GB$1))+1),\"\")","v":""},{"$f":"IFERROR(MID($U243,FIND(CHAR(160),SUBSTITUTE($U243,\"{\",CHAR(160),GC$1)),FIND(CHAR(160),SUBSTITUTE($U243,\"}\",CHAR(160),GC$1))-FIND(CHAR(160),SUBSTITUTE($U243,\"{\",CHAR(160),GC$1))+1),\"\")","v":""},{"$f":"IFERROR(MID($U243,FIND(CHAR(160),SUBSTITUTE($U243,\"{\",CHAR(160),GD$1)),FIND(CHAR(160),SUBSTITUTE($U243,\"}\",CHAR(160),GD$1))-FIND(CHAR(160),SUBSTITUTE($U243,\"{\",CHAR(160),GD$1))+1),\"\")","v":""},{"$f":"IFERROR(MID($U243,FIND(CHAR(160),SUBSTITUTE($U243,\"{\",CHAR(160),GE$1)),FIND(CHAR(160),SUBSTITUTE($U243,\"}\",CHAR(160),GE$1))-FIND(CHAR(160),SUBSTITUTE($U243,\"{\",CHAR(160),GE$1))+1),\"\")","v":"{Measure:Quantity}"},{"$f":"IFERROR(MID($U243,FIND(CHAR(160),SUBSTITUTE($U243,\"{\",CHAR(160),GF$1)),FIND(CHAR(160),SUBSTITUTE($U243,\"}\",CHAR(160),GF$1))-FIND(CHAR(160),SUBSTITUTE($U243,\"{\",CHAR(160),GF$1))+1),\"\")","v":"{Measure:Quantity}"},{"$f":"IFERROR(MID($V243,FIND(CHAR(160),SUBSTITUTE($V243,\"{\",CHAR(160),GG$1)),FIND(CHAR(160),SUBSTITUTE($V243,\"}\",CHAR(160),GG$1))-FIND(CHAR(160),SUBSTITUTE($V243,\"{\",CHAR(160),GG$1))+1),\"\")","v":"{Water Heating Fuel}"},{"$f":"IFERROR(MID($V243,FIND(CHAR(160),SUBSTITUTE($V243,\"{\",CHAR(160),GH$1)),FIND(CHAR(160),SUBSTITUTE($V243,\"}\",CHAR(160),GH$1))-FIND(CHAR(160),SUBSTITUTE($V243,\"{\",CHAR(160),GH$1))+1),\"\")","v":"{Water Heating Fuel}"},{"$f":"IFERROR(MID($V243,FIND(CHAR(160),SUBSTITUTE($V243,\"{\",CHAR(160),GI$1)),FIND(CHAR(160),SUBSTITUTE($V243,\"}\",CHAR(160),GI$1))-FIND(CHAR(160),SUBSTITUTE($V243,\"{\",CHAR(160),GI$1))+1),\"\")","v":"{Water Heating Fuel}"},{"$f":"IFERROR(MID($V243,FIND(CHAR(160),SUBSTITUTE($V243,\"{\",CHAR(160),GJ$1)),FIND(CHAR(160),SUBSTITUTE($V243,\"}\",CHAR(160),GJ$1))-FIND(CHAR(160),SUBSTITUTE($V243,\"{\",CHAR(160),GJ$1))+1),\"\")","v":""},{"$f":"IFERROR(MID($V243,FIND(CHAR(160),SUBSTITUTE($V243,\"{\",CHAR(160),GK$1)),FIND(CHAR(160),SUBSTITUTE($V243,\"}\",CHAR(160),GK$1))-FIND(CHAR(160),SUBSTITUTE($V243,\"{\",CHAR(160),GK$1))+1),\"\")","v":""},{"$f":"IFERROR(MID($V243,FIND(CHAR(160),SUBSTITUTE($V243,\"{\",CHAR(160),GL$1)),FIND(CHAR(160),SUBSTITUTE($V243,\"}\",CHAR(160),GL$1))-FIND(CHAR(160),SUBSTITUTE($V243,\"{\",CHAR(160),GL$1))+1),\"\")","v":""},{"$f":"IFERROR(MID($V243,FIND(CHAR(160),SUBSTITUTE($V243,\"{\",CHAR(160),GM$1)),FIND(CHAR(160),SUBSTITUTE($V243,\"}\",CHAR(160),GM$1))-FIND(CHAR(160),SUBSTITUTE($V243,\"{\",CHAR(160),GM$1))+1),\"\")","v":""},{"$f":"IFERROR(MID($V243,FIND(CHAR(160),SUBSTITUTE($V243,\"{\",CHAR(160),GN$1)),FIND(CHAR(160),SUBSTITUTE($V243,\"}\",CHAR(160),GN$1))-FIND(CHAR(160),SUBSTITUTE($V243,\"{\",CHAR(160),GN$1))+1),\"\")","v":""},{"$f":"IFERROR(MID($V243,FIND(CHAR(160),SUBSTITUTE($V243,\"{\",CHAR(160),GO$1)),FIND(CHAR(160),SUBSTITUTE($V243,\"}\",CHAR(160),GO$1))-FIND(CHAR(160),SUBSTITUTE($V243,\"{\",CHAR(160),GO$1))+1),\"\")","v":"{Measure:Quantity}"},{"$f":"IFERROR(MID($V243,FIND(CHAR(160),SUBSTITUTE($V243,\"{\",CHAR(160),GP$1)),FIND(CHAR(160),SUBSTITUTE($V243,\"}\",CHAR(160),GP$1))-FIND(CHAR(160),SUBSTITUTE($V243,\"{\",CHAR(160),GP$1))+1),\"\")","v":"{Measure:Quantity}"},{"$f":"IFERROR(MID($W243,FIND(CHAR(160),SUBSTITUTE($W243,\"{\",CHAR(160),GQ$1)),FIND(CHAR(160),SUBSTITUTE($W243,\"}\",CHAR(160),GQ$1))-FIND(CHAR(160),SUBSTITUTE($W243,\"{\",CHAR(160),GQ$1))+1),\"\")","v":""},{"$f":"IFERROR(MID($W243,FIND(CHAR(160),SUBSTITUTE($W243,\"{\",CHAR(160),GR$1)),FIND(CHAR(160),SUBSTITUTE($W243,\"}\",CHAR(160),GR$1))-FIND(CHAR(160),SUBSTITUTE($W243,\"{\",CHAR(160),GR$1))+1),\"\")","v":""},{"$f":"IFERROR(MID($W243,FIND(CHAR(160),SUBSTITUTE($W243,\"{\",CHAR(160),GS$1)),FIND(CHAR(160),SUBSTITUTE($W243,\"}\",CHAR(160),GS$1))-FIND(CHAR(160),SUBSTITUTE($W243,\"{\",CHAR(160),GS$1))+1),\"\")","v":""},{"$f":"IFERROR(MID($W243,FIND(CHAR(160),SUBSTITUTE($W243,\"{\",CHAR(160),GT$1)),FIND(CHAR(160),SUBSTITUTE($W243,\"}\",CHAR(160),GT$1))-FIND(CHAR(160),SUBSTITUTE($W243,\"{\",CHAR(160),GT$1))+1),\"\")","v":""},{"$f":"IFERROR(MID($W243,FIND(CHAR(160),SUBSTITUTE($W243,\"{\",CHAR(160),GU$1)),FIND(CHAR(160),SUBSTITUTE($W243,\"}\",CHAR(160),GU$1))-FIND(CHAR(160),SUBSTITUTE($W243,\"{\",CHAR(160),GU$1))+1),\"\")","v":""},{"$f":"IFERROR(MID($W243,FIND(CHAR(160),SUBSTITUTE($W243,\"{\",CHAR(160),GV$1)),FIND(CHAR(160),SUBSTITUTE($W243,\"}\",CHAR(160),GV$1))-FIND(CHAR(160),SUBSTITUTE($W243,\"{\",CHAR(160),GV$1))+1),\"\")","v":""},{"$f":"IFERROR(MID($W243,FIND(CHAR(160),SUBSTITUTE($W243,\"{\",CHAR(160),GW$1)),FIND(CHAR(160),SUBSTITUTE($W243,\"}\",CHAR(160),GW$1))-FIND(CHAR(160),SUBSTITUTE($W243,\"{\",CHAR(160),GW$1))+1),\"\")","v":""},{"$f":"IFERROR(MID($W243,FIND(CHAR(160),SUBSTITUTE($W243,\"{\",CHAR(160),GX$1)),FIND(CHAR(160),SUBSTITUTE($W243,\"}\",CHAR(160),GX$1))-FIND(CHAR(160),SUBSTITUTE($W243,\"{\",CHAR(160),GX$1))+1),\"\")","v":""},{"$f":"IFERROR(MID($W243,FIND(CHAR(160),SUBSTITUTE($W243,\"{\",CHAR(160),GY$1)),FIND(CHAR(160),SUBSTITUTE($W243,\"}\",CHAR(160),GY$1))-FIND(CHAR(160),SUBSTITUTE($W243,\"{\",CHAR(160),GY$1))+1),\"\")","v":"{Water Heating Fuel}"},{"$f":"IFERROR(MID($W243,FIND(CHAR(160),SUBSTITUTE($W243,\"{\",CHAR(160),GZ$1)),FIND(CHAR(160),SUBSTITUTE($W243,\"}\",CHAR(160),GZ$1))-FIND(CHAR(160),SUBSTITUTE($W243,\"{\",CHAR(160),GZ$1))+1),\"\")","v":"{Water Heating Fuel}"},{"$f":"IFERROR(MID($X243,FIND(CHAR(160),SUBSTITUTE($X243,\"{\",CHAR(160),HA$1)),FIND(CHAR(160),SUBSTITUTE($X243,\"}\",CHAR(160),HA$1))-FIND(CHAR(160),SUBSTITUTE($X243,\"{\",CHAR(160),HA$1))+1),\"\")","v":""},{"$f":"IFERROR(MID($X243,FIND(CHAR(160),SUBSTITUTE($X243,\"{\",CHAR(160),HB$1)),FIND(CHAR(160),SUBSTITUTE($X243,\"}\",CHAR(160),HB$1))-FIND(CHAR(160),SUBSTITUTE($X243,\"{\",CHAR(160),HB$1))+1),\"\")","v":""},{"$f":"IFERROR(MID($X243,FIND(CHAR(160),SUBSTITUTE($X243,\"{\",CHAR(160),HC$1)),FIND(CHAR(160),SUBSTITUTE($X243,\"}\",CHAR(160),HC$1))-FIND(CHAR(160),SUBSTITUTE($X243,\"{\",CHAR(160),HC$1))+1),\"\")","v":""},{"$f":"IFERROR(MID($X243,FIND(CHAR(160),SUBSTITUTE($X243,\"{\",CHAR(160),HD$1)),FIND(CHAR(160),SUBSTITUTE($X243,\"}\",CHAR(160),HD$1))-FIND(CHAR(160),SUBSTITUTE($X243,\"{\",CHAR(160),HD$1))+1),\"\")","v":""},{"$f":"IFERROR(MID($X243,FIND(CHAR(160),SUBSTITUTE($X243,\"{\",CHAR(160),HE$1)),FIND(CHAR(160),SUBSTITUTE($X243,\"}\",CHAR(160),HE$1))-FIND(CHAR(160),SUBSTITUTE($X243,\"{\",CHAR(160),HE$1))+1),\"\")","v":""},{"$f":"IFERROR(MID($X243,FIND(CHAR(160),SUBSTITUTE($X243,\"{\",CHAR(160),HF$1)),FIND(CHAR(160),SUBSTITUTE($X243,\"}\",CHAR(160),HF$1))-FIND(CHAR(160),SUBSTITUTE($X243,\"{\",CHAR(160),HF$1))+1),\"\")","v":""},{"$f":"IFERROR(MID($X243,FIND(CHAR(160),SUBSTITUTE($X243,\"{\",CHAR(160),HG$1)),FIND(CHAR(160),SUBSTITUTE($X243,\"}\",CHAR(160),HG$1))-FIND(CHAR(160),SUBSTITUTE($X243,\"{\",CHAR(160),HG$1))+1),\"\")","v":""},{"$f":"IFERROR(MID($X243,FIND(CHAR(160),SUBSTITUTE($X243,\"{\",CHAR(160),HH$1)),FIND(CHAR(160),SUBSTITUTE($X243,\"}\",CHAR(160),HH$1))-FIND(CHAR(160),SUBSTITUTE($X243,\"{\",CHAR(160),HH$1))+1),\"\")","v":""},{"$f":"IFERROR(MID($X243,FIND(CHAR(160),SUBSTITUTE($X243,\"{\",CHAR(160),HI$1)),FIND(CHAR(160),SUBSTITUTE($X243,\"}\",CHAR(160),HI$1))-FIND(CHAR(160),SUBSTITUTE($X243,\"{\",CHAR(160),HI$1))+1),\"\")","v":"{Water Heating Fuel}"},{"$f":"IFERROR(MID($X243,FIND(CHAR(160),SUBSTITUTE($X243,\"{\",CHAR(160),HJ$1)),FIND(CHAR(160),SUBSTITUTE($X243,\"}\",CHAR(160),HJ$1))-FIND(CHAR(160),SUBSTITUTE($X243,\"{\",CHAR(160),HJ$1))+1),\"\")","v":"{Water Heating Fuel}"},{"$f":"IFERROR(MID($Y243,FIND(CHAR(160),SUBSTITUTE($Y243,\"{\",CHAR(160),HK$1)),FIND(CHAR(160),SUBSTITUTE($Y243,\"}\",CHAR(160),HK$1))-FIND(CHAR(160),SUBSTITUTE($Y243,\"{\",CHAR(160),HK$1))+1),\"\")","v":""},{"$f":"IFERROR(MID($Y243,FIND(CHAR(160),SUBSTITUTE($Y243,\"{\",CHAR(160),HL$1)),FIND(CHAR(160),SUBSTITUTE($Y243,\"}\",CHAR(160),HL$1))-FIND(CHAR(160),SUBSTITUTE($Y243,\"{\",CHAR(160),HL$1))+1),\"\")","v":""},{"$f":"IFERROR(MID($Y243,FIND(CHAR(160),SUBSTITUTE($Y243,\"{\",CHAR(160),HM$1)),FIND(CHAR(160),SUBSTITUTE($Y243,\"}\",CHAR(160),HM$1))-FIND(CHAR(160),SUBSTITUTE($Y243,\"{\",CHAR(160),HM$1))+1),\"\")","v":""},{"$f":"IFERROR(MID($Y243,FIND(CHAR(160),SUBSTITUTE($Y243,\"{\",CHAR(160),HN$1)),FIND(CHAR(160),SUBSTITUTE($Y243,\"}\",CHAR(160),HN$1))-FIND(CHAR(160),SUBSTITUTE($Y243,\"{\",CHAR(160),HN$1))+1),\"\")","v":""},{"$f":"IFERROR(MID($Y243,FIND(CHAR(160),SUBSTITUTE($Y243,\"{\",CHAR(160),HO$1)),FIND(CHAR(160),SUBSTITUTE($Y243,\"}\",CHAR(160),HO$1))-FIND(CHAR(160),SUBSTITUTE($Y243,\"{\",CHAR(160),HO$1))+1),\"\")","v":""},{"$f":"IFERROR(MID($Y243,FIND(CHAR(160),SUBSTITUTE($Y243,\"{\",CHAR(160),HP$1)),FIND(CHAR(160),SUBSTITUTE($Y243,\"}\",CHAR(160),HP$1))-FIND(CHAR(160),SUBSTITUTE($Y243,\"{\",CHAR(160),HP$1))+1),\"\")","v":""},{"$f":"IFERROR(MID($Y243,FIND(CHAR(160),SUBSTITUTE($Y243,\"{\",CHAR(160),HQ$1)),FIND(CHAR(160),SUBSTITUTE($Y243,\"}\",CHAR(160),HQ$1))-FIND(CHAR(160),SUBSTITUTE($Y243,\"{\",CHAR(160),HQ$1))+1),\"\")","v":""},{"$f":"IFERROR(MID($Y243,FIND(CHAR(160),SUBSTITUTE($Y243,\"{\",CHAR(160),HR$1)),FIND(CHAR(160),SUBSTITUTE($Y243,\"}\",CHAR(160),HR$1))-FIND(CHAR(160),SUBSTITUTE($Y243,\"{\",CHAR(160),HR$1))+1),\"\")","v":""},{"$f":"IFERROR(MID($Y243,FIND(CHAR(160),SUBSTITUTE($Y243,\"{\",CHAR(160),HS$1)),FIND(CHAR(160),SUBSTITUTE($Y243,\"}\",CHAR(160),HS$1))-FIND(CHAR(160),SUBSTITUTE($Y243,\"{\",CHAR(160),HS$1))+1),\"\")","v":"{Water Heating Fuel}"},{"$f":"IFERROR(MID($Y243,FIND(CHAR(160),SUBSTITUTE($Y243,\"{\",CHAR(160),HT$1)),FIND(CHAR(160),SUBSTITUTE($Y243,\"}\",CHAR(160),HT$1))-FIND(CHAR(160),SUBSTITUTE($Y243,\"{\",CHAR(160),HT$1))+1),\"\")","v":"{Water Heating Fuel}"},{"$f":"IFERROR(MID($Z243,FIND(CHAR(160),SUBSTITUTE($Z243,\"{\",CHAR(160),HU$1)),FIND(CHAR(160),SUBSTITUTE($Z243,\"}\",CHAR(160),HU$1))-FIND(CHAR(160),SUBSTITUTE($Z243,\"{\",CHAR(160),HU$1))+1),\"\")","v":""},{"$f":"IFERROR(MID($Z243,FIND(CHAR(160),SUBSTITUTE($Z243,\"{\",CHAR(160),HV$1)),FIND(CHAR(160),SUBSTITUTE($Z243,\"}\",CHAR(160),HV$1))-FIND(CHAR(160),SUBSTITUTE($Z243,\"{\",CHAR(160),HV$1))+1),\"\")","v":""},{"$f":"IFERROR(MID($Z243,FIND(CHAR(160),SUBSTITUTE($Z243,\"{\",CHAR(160),HW$1)),FIND(CHAR(160),SUBSTITUTE($Z243,\"}\",CHAR(160),HW$1))-FIND(CHAR(160),SUBSTITUTE($Z243,\"{\",CHAR(160),HW$1))+1),\"\")","v":""},{"$f":"IFERROR(MID($Z243,FIND(CHAR(160),SUBSTITUTE($Z243,\"{\",CHAR(160),HX$1)),FIND(CHAR(160),SUBSTITUTE($Z243,\"}\",CHAR(160),HX$1))-FIND(CHAR(160),SUBSTITUTE($Z243,\"{\",CHAR(160),HX$1))+1),\"\")","v":""},{"$f":"IFERROR(MID($Z243,FIND(CHAR(160),SUBSTITUTE($Z243,\"{\",CHAR(160),HY$1)),FIND(CHAR(160),SUBSTITUTE($Z243,\"}\",CHAR(160),HY$1))-FIND(CHAR(160),SUBSTITUTE($Z243,\"{\",CHAR(160),HY$1))+1),\"\")","v":""},{"$f":"IFERROR(MID($Z243,FIND(CHAR(160),SUBSTITUTE($Z243,\"{\",CHAR(160),HZ$1)),FIND(CHAR(160),SUBSTITUTE($Z243,\"}\",CHAR(160),HZ$1))-FIND(CHAR(160),SUBSTITUTE($Z243,\"{\",CHAR(160),HZ$1))+1),\"\")","v":""},{"$f":"IFERROR(MID($Z243,FIND(CHAR(160),SUBSTITUTE($Z243,\"{\",CHAR(160),IA$1)),FIND(CHAR(160),SUBSTITUTE($Z243,\"}\",CHAR(160),IA$1))-FIND(CHAR(160),SUBSTITUTE($Z243,\"{\",CHAR(160),IA$1))+1),\"\")","v":""},{"$f":"IFERROR(MID($Z243,FIND(CHAR(160),SUBSTITUTE($Z243,\"{\",CHAR(160),IB$1)),FIND(CHAR(160),SUBSTITUTE($Z243,\"}\",CHAR(160),IB$1))-FIND(CHAR(160),SUBSTITUTE($Z243,\"{\",CHAR(160),IB$1))+1),\"\")","v":""},{"$f":"IFERROR(MID($Z243,FIND(CHAR(160),SUBSTITUTE($Z243,\"{\",CHAR(160),IC$1)),FIND(CHAR(160),SUBSTITUTE($Z243,\"}\",CHAR(160),IC$1))-FIND(CHAR(160),SUBSTITUTE($Z243,\"{\",CHAR(160),IC$1))+1),\"\")","v":"{Water Heating Fuel}"},{"$f":"IFERROR(MID($Z243,FIND(CHAR(160),SUBSTITUTE($Z243,\"{\",CHAR(160),ID$1)),FIND(CHAR(160),SUBSTITUTE($Z243,\"}\",CHAR(160),ID$1))-FIND(CHAR(160),SUBSTITUTE($Z243,\"{\",CHAR(160),ID$1))+1),\"\")","v":"{Water Heating Fuel}"},{"$f":"IFERROR(MID($AA243,FIND(CHAR(160),SUBSTITUTE($AA243,\"{\",CHAR(160),IE$1)),FIND(CHAR(160),SUBSTITUTE($AA243,\"}\",CHAR(160),IE$1))-FIND(CHAR(160),SUBSTITUTE($AA243,\"{\",CHAR(160),IE$1))+1),\"\")","v":""},{"$f":"IFERROR(MID($AA243,FIND(CHAR(160),SUBSTITUTE($AA243,\"{\",CHAR(160),IF$1)),FIND(CHAR(160),SUBSTITUTE($AA243,\"}\",CHAR(160),IF$1))-FIND(CHAR(160),SUBSTITUTE($AA243,\"{\",CHAR(160),IF$1))+1),\"\")","v":""},{"$f":"IFERROR(MID($AA243,FIND(CHAR(160),SUBSTITUTE($AA243,\"{\",CHAR(160),IG$1)),FIND(CHAR(160),SUBSTITUTE($AA243,\"}\",CHAR(160),IG$1))-FIND(CHAR(160),SUBSTITUTE($AA243,\"{\",CHAR(160),IG$1))+1),\"\")","v":""},{"$f":"IFERROR(MID($AA243,FIND(CHAR(160),SUBSTITUTE($AA243,\"{\",CHAR(160),IH$1)),FIND(CHAR(160),SUBSTITUTE($AA243,\"}\",CHAR(160),IH$1))-FIND(CHAR(160),SUBSTITUTE($AA243,\"{\",CHAR(160),IH$1))+1),\"\")","v":""},{"$f":"IFERROR(MID($AA243,FIND(CHAR(160),SUBSTITUTE($AA243,\"{\",CHAR(160),II$1)),FIND(CHAR(160),SUBSTITUTE($AA243,\"}\",CHAR(160),II$1))-FIND(CHAR(160),SUBSTITUTE($AA243,\"{\",CHAR(160),II$1))+1),\"\")","v":""},{"$f":"IFERROR(MID($AA243,FIND(CHAR(160),SUBSTITUTE($AA243,\"{\",CHAR(160),IJ$1)),FIND(CHAR(160),SUBSTITUTE($AA243,\"}\",CHAR(160),IJ$1))-FIND(CHAR(160),SUBSTITUTE($AA243,\"{\",CHAR(160),IJ$1))+1),\"\")","v":""},{"$f":"IFERROR(MID($AA243,FIND(CHAR(160),SUBSTITUTE($AA243,\"{\",CHAR(160),IK$1)),FIND(CHAR(160),SUBSTITUTE($AA243,\"}\",CHAR(160),IK$1))-FIND(CHAR(160),SUBSTITUTE($AA243,\"{\",CHAR(160),IK$1))+1),\"\")","v":""},{"$f":"IFERROR(MID($AA243,FIND(CHAR(160),SUBSTITUTE($AA243,\"{\",CHAR(160),IL$1)),FIND(CHAR(160),SUBSTITUTE($AA243,\"}\",CHAR(160),IL$1))-FIND(CHAR(160),SUBSTITUTE($AA243,\"{\",CHAR(160),IL$1))+1),\"\")","v":""},{"$f":"IFERROR(MID($AA243,FIND(CHAR(160),SUBSTITUTE($AA243,\"{\",CHAR(160),IM$1)),FIND(CHAR(160),SUBSTITUTE($AA243,\"}\",CHAR(160),IM$1))-FIND(CHAR(160),SUBSTITUTE($AA243,\"{\",CHAR(160),IM$1))+1),\"\")","v":""},{"$f":"IFERROR(MID($AA243,FIND(CHAR(160),SUBSTITUTE($AA243,\"{\",CHAR(160),IN$1)),FIND(CHAR(160),SUBSTITUTE($AA243,\"}\",CHAR(160),IN$1))-FIND(CHAR(160),SUBSTITUTE($AA243,\"{\",CHAR(160),IN$1))+1),\"\")","v":""},{"$f":"IFERROR(MID($AB243,FIND(CHAR(160),SUBSTITUTE($AB243,\"{\",CHAR(160),IO$1)),FIND(CHAR(160),SUBSTITUTE($AB243,\"}\",CHAR(160),IO$1))-FIND(CHAR(160),SUBSTITUTE($AB243,\"{\",CHAR(160),IO$1))+1),\"\")","v":""},{"$f":"IFERROR(MID($AB243,FIND(CHAR(160),SUBSTITUTE($AB243,\"{\",CHAR(160),IP$1)),FIND(CHAR(160),SUBSTITUTE($AB243,\"}\",CHAR(160),IP$1))-FIND(CHAR(160),SUBSTITUTE($AB243,\"{\",CHAR(160),IP$1))+1),\"\")","v":""},{"$f":"IFERROR(MID($AB243,FIND(CHAR(160),SUBSTITUTE($AB243,\"{\",CHAR(160),IQ$1)),FIND(CHAR(160),SUBSTITUTE($AB243,\"}\",CHAR(160),IQ$1))-FIND(CHAR(160),SUBSTITUTE($AB243,\"{\",CHAR(160),IQ$1))+1),\"\")","v":""},{"$f":"IFERROR(MID($AB243,FIND(CHAR(160),SUBSTITUTE($AB243,\"{\",CHAR(160),IR$1)),FIND(CHAR(160),SUBSTITUTE($AB243,\"}\",CHAR(160),IR$1))-FIND(CHAR(160),SUBSTITUTE($AB243,\"{\",CHAR(160),IR$1))+1),\"\")","v":""},{"$f":"IFERROR(MID($AB243,FIND(CHAR(160),SUBSTITUTE($AB243,\"{\",CHAR(160),IS$1)),FIND(CHAR(160),SUBSTITUTE($AB243,\"}\",CHAR(160),IS$1))-FIND(CHAR(160),SUBSTITUTE($AB243,\"{\",CHAR(160),IS$1))+1),\"\")","v":""},{"$f":"IFERROR(MID($AB243,FIND(CHAR(160),SUBSTITUTE($AB243,\"{\",CHAR(160),IT$1)),FIND(CHAR(160),SUBSTITUTE($AB243,\"}\",CHAR(160),IT$1))-FIND(CHAR(160),SUBSTITUTE($AB243,\"{\",CHAR(160),IT$1))+1),\"\")","v":""},{"$f":"IFERROR(MID($AB243,FIND(CHAR(160),SUBSTITUTE($AB243,\"{\",CHAR(160),IU$1)),FIND(CHAR(160),SUBSTITUTE($AB243,\"}\",CHAR(160),IU$1))-FIND(CHAR(160),SUBSTITUTE($AB243,\"{\",CHAR(160),IU$1))+1),\"\")","v":""},{"$f":"IFERROR(MID($AB243,FIND(CHAR(160),SUBSTITUTE($AB243,\"{\",CHAR(160),IV$1)),FIND(CHAR(160),SUBSTITUTE($AB243,\"}\",CHAR(160),IV$1))-FIND(CHAR(160),SUBSTITUTE($AB243,\"{\",CHAR(160),IV$1))+1),\"\")","v":""},{"$f":"IFERROR(MID($AB243,FIND(CHAR(160),SUBSTITUTE($AB243,\"{\",CHAR(160),IW$1)),FIND(CHAR(160),SUBSTITUTE($AB243,\"}\",CHAR(160),IW$1))-FIND(CHAR(160),SUBSTITUTE($AB243,\"{\",CHAR(160),IW$1))+1),\"\")","v":""},{"$f":"IFERROR(MID($AB243,FIND(CHAR(160),SUBSTITUTE($AB243,\"{\",CHAR(160),IX$1)),FIND(CHAR(160),SUBSTITUTE($AB243,\"}\",CHAR(160),IX$1))-FIND(CHAR(160),SUBSTITUTE($AB243,\"{\",CHAR(160),IX$1))+1),\"\")","v":""},null,{"$f":"10-COUNTIF(DU243:ED243,\"\")","v":3}]
["Retail Other - Electric","Low Flow Kitchen Aerator","LFKA","2021-07-01","2022-06-30","Calculated","{Retail Price}*{Measure:Quantity}",0,"Manual Entry",0,0,"2019-07-01","2022-06-30","Calculated","if({Measure:Quantity}=0,0,{Measure:Quantity}*(if({Water Heating Fuel}=0,(0.25*283)+(0.05*79),if({Water Heating Fuel}=6,283,if({Water Heating Fuel}=7,79,0)))))",null,null,null,null,null,"if({Measure:Quantity}=0,0,{Measure:Quantity}*(if({Water Heating Fuel}=0,(0.25*0.043)+(0.05*0.0012),if({Water Heating Fuel}=6,0.043,if({Water Heating Fuel}=7,0.0012,0)))))","if({Measure:Quantity}=0,0,{Measure:Quantity}*(if({Water Heating Fuel}=0,(0.25*0.034)+(0.05*0.010),if({Water Heating Fuel}=6,0.034,if({Water Heating Fuel}=7,0.010,0)))))","if({Water Heating Fuel}=1,1.40,if({Water Heating Fuel}=0,0.05*1.40,0))*10","if({Water Heating Fuel}=2,1.40,if({Water Heating Fuel} = 0,0.05*1.40,0))","if({Water Heating Fuel}=3,1.61,if({Water Heating Fuel} = 0,0.6*1.61,0))","if({Water Heating Fuel}=4,1.61,if({Water Heating Fuel} = 0,0*1.61,0))",null,"if({Measure:Quantity}=0,0,{Measure:Quantity}*2696)","2019-07-01","2022-06-30",10,1.2E-2,8.0000000000000002E-3,0.39700000000000002,0.26800000000000002,0.20300000000000001,0.13100000000000001,1,1,1,0.25,0,null,{"$f":"DU244","v":"{Retail Price}"},2,{"$f":"DV244","v":"{Measure:Quantity}"},1,{"$f":"DW244","v":"{Water Heating Fuel}"},0,{"$f":"DX244","v":""},null,{"$f":"DY244","v":""},null,{"$f":"DZ244","v":""},null,{"$f":"EA244","v":""},null,{"$f":"EB244","v":""},null,{"$f":"EC244","v":""},null,{"$f":"ED244","v":""},null,{"$f":"IF(AU244=0,0,AU244*(IF(AW244=0,(0.25*283)+(0.05*79),IF(AW244=6,283,IF(AW244=7,79,0)))))","v":74.7},0,0,0,0,0,{"$f":"IF(AU244=0,0,AU244*(IF(AW244=0,(0.25*0.043)+(0.05*0.0012),IF(AW244=6,0.043,IF(AW244=7,0.0012,0)))))","v":1.0809999999999998E-2},{"$f":"IF(AU244=0,0,AU244*(IF(AW244=0,(0.25*0.034)+(0.05*0.01),IF(AW244=6,0.034,IF(AW244=7,0.01,0)))))","v":9.0000000000000011E-3},{"$f":"IF(AW244=1,1.4,IF(AW244=0,0.05*1.4,0))*10","v":0.7},{"$f":"IF(AW244=2,1.4,IF(AW244 = 0,0.05*1.4,0))","v":6.9999999999999993E-2},{"$f":"IF(AW244=3,1.61,IF(AW244 = 0,0.6*1.61,0))","v":0.96599999999999997},{"$f":"IF(AW244=4,1.61,IF(AW244 = 0,0*1.61,0))","v":0},0,{"$f":"IF(AU244=0,0,AU244*2696)","v":2696},null,"Res","Default DR",{"$f":"Benefits(BL244,BR244,BS244,BT244,BU244,BV244,BW244,BX244,BY244,BZ244,AE244,AH244,AI244,AJ244,AK244,AL244,AM244,AN244,AO244,AP244,CA244,CB244)","v":73.583617694654265},40.839978466838375,10.316106544013069,292.42052423294217,0,29.431007953536167,0,160.06822300148838,0,{"$f":"SUMPRODUCT(CC244:CK244,--(CC244:CK244>0))","v":606.65945789347234},{"$f":"-SUMPRODUCT(CC244:CK244,--(CC244:CK244<0))","v":0},null,{"$f":"AS244*AU244","v":2},null,null,{"$f":"CM244+CO244","v":2},{"$f":"IF(NetOrGross=\"Net\",(1-AO244+AP244),1)","v":1},{"$f":"(SUMPRODUCT(CC244:CJ244,--(CC244:CJ244>0))+CN244)*CS244/((-SUMPRODUCT(CC244:CJ244,--(CC244:CJ244<0))+MAX(CO244,CV244)+CP244+CQ244)*CS244+IF(FRIncentives=\"Yes\",CV244*(1-CS244),0))","v":303.32972894673617},0,{"$f":"CO244*CW244","v":2},1,"Electric","y",null,{"$f":"IF(F244=\"Manual Entry\",\"Manual\",IF(G244=\"\",0,\"X=\"&SUBSTITUTE(SUBSTITUTE(SUBSTITUTE(SUBSTITUTE(SUBSTITUTE(SUBSTITUTE(SUBSTITUTE(SUBSTITUTE(SUBSTITUTE(SUBSTITUTE(SUBSTITUTE(SUBSTITUTE(G244,$ED244,$ED$2&ROW($ED244)),$EC244,$EC$2&ROW($EC244)),$EB244,$EB$2&ROW($EB244)),$EA244,$EA$2&ROW($EA244)),$DZ244,$DZ$2&ROW($DZ244)),$DY244,$DY$2&ROW($DY244)),$DX244,$DX$2&ROW($DX244)),$DW244,$DW$2&ROW($DW244)),$DV244,$DV$2&ROW($DV244)),$DU244,$DU$2&ROW($DU244)),$DT244,$DT$2&ROW($DT244)),$DS244,$DS$2&ROW($DS244))))","v":"X=AS244*AU244"},{"$f":"IF(I244=\"Manual Entry\",\"Manual\",IF(J244=\"\",0,\"X=\"&SUBSTITUTE(SUBSTITUTE(SUBSTITUTE(SUBSTITUTE(SUBSTITUTE(SUBSTITUTE(SUBSTITUTE(SUBSTITUTE(SUBSTITUTE(SUBSTITUTE(SUBSTITUTE(SUBSTITUTE(J244,$ED244,$ED$2&ROW($ED244)),$EC244,$EC$2&ROW($EC244)),$EB244,$EB$2&ROW($EB244)),$EA244,$EA$2&ROW($EA244)),$DZ244,$DZ$2&ROW($DZ244)),$DY244,$DY$2&ROW($DY244)),$DX244,$DX$2&ROW($DX244)),$DW244,$DW$2&ROW($DW244)),$DV244,$DV$2&ROW($DV244)),$DU244,$DU$2&ROW($DU244)),$DT244,$DT$2&ROW($DT244)),$DS244,$DS$2&ROW($DS244))))","v":"Manual"},{"$f":"IF(O244=\"\",0,\"X=\"&SUBSTITUTE(SUBSTITUTE(SUBSTITUTE(SUBSTITUTE(SUBSTITUTE(SUBSTITUTE(SUBSTITUTE(SUBSTITUTE(SUBSTITUTE(SUBSTITUTE(SUBSTITUTE(SUBSTITUTE(O244,$ED244,$ED$2&ROW($ED244)),$EC244,$EC$2&ROW($EC244)),$EB244,$EB$2&ROW($EB244)),$EA244,$EA$2&ROW($EA244)),$DZ244,$DZ$2&ROW($DZ244)),$DY244,$DY$2&ROW($DY244)),$DX244,$DX$2&ROW($DX244)),$DW244,$DW$2&ROW($DW244)),$DV244,$DV$2&ROW($DV244)),$DU244,$DU$2&ROW($DU244)),$DT244,$DT$2&ROW($DT244)),$DS244,$DS$2&ROW($DS244)))","v":"X=if(AU244=0,0,AU244*(if(AW244=0,(0.25*283)+(0.05*79),if(AW244=6,283,if(AW244=7,79,0)))))"},{"$f":"IF(P244=\"\",0,\"X=\"&SUBSTITUTE(SUBSTITUTE(SUBSTITUTE(SUBSTITUTE(SUBSTITUTE(SUBSTITUTE(SUBSTITUTE(SUBSTITUTE(SUBSTITUTE(SUBSTITUTE(SUBSTITUTE(SUBSTITUTE(P244,$ED244,$ED$2&ROW($ED244)),$EC244,$EC$2&ROW($EC244)),$EB244,$EB$2&ROW($EB244)),$EA244,$EA$2&ROW($EA244)),$DZ244,$DZ$2&ROW($DZ244)),$DY244,$DY$2&ROW($DY244)),$DX244,$DX$2&ROW($DX244)),$DW244,$DW$2&ROW($DW244)),$DV244,$DV$2&ROW($DV244)),$DU244,$DU$2&ROW($DU244)),$DT244,$DT$2&ROW($DT244)),$DS244,$DS$2&ROW($DS244)))","v":0},{"$f":"IF(Q244=\"\",0,\"X=\"&SUBSTITUTE(SUBSTITUTE(SUBSTITUTE(SUBSTITUTE(SUBSTITUTE(SUBSTITUTE(SUBSTITUTE(SUBSTITUTE(SUBSTITUTE(SUBSTITUTE(SUBSTITUTE(SUBSTITUTE(Q244,$ED244,$ED$2&ROW($ED244)),$EC244,$EC$2&ROW($EC244)),$EB244,$EB$2&ROW($EB244)),$EA244,$EA$2&ROW($EA244)),$DZ244,$DZ$2&ROW($DZ244)),$DY244,$DY$2&ROW($DY244)),$DX244,$DX$2&ROW($DX244)),$DW244,$DW$2&ROW($DW244)),$DV244,$DV$2&ROW($DV244)),$DU244,$DU$2&ROW($DU244)),$DT244,$DT$2&ROW($DT244)),$DS244,$DS$2&ROW($DS244)))","v":0},{"$f":"IF(R244=\"\",0,\"X=\"&SUBSTITUTE(SUBSTITUTE(SUBSTITUTE(SUBSTITUTE(SUBSTITUTE(SUBSTITUTE(SUBSTITUTE(SUBSTITUTE(SUBSTITUTE(SUBSTITUTE(SUBSTITUTE(SUBSTITUTE(R244,$ED244,$ED$2&ROW($ED244)),$EC244,$EC$2&ROW($EC244)),$EB244,$EB$2&ROW($EB244)),$EA244,$EA$2&ROW($EA244)),$DZ244,$DZ$2&ROW($DZ244)),$DY244,$DY$2&ROW($DY244)),$DX244,$DX$2&ROW($DX244)),$DW244,$DW$2&ROW($DW244)),$DV244,$DV$2&ROW($DV244)),$DU244,$DU$2&ROW($DU244)),$DT244,$DT$2&ROW($DT244)),$DS244,$DS$2&ROW($DS244)))","v":0},{"$f":"IF(S244=\"\",0,\"X=\"&SUBSTITUTE(SUBSTITUTE(SUBSTITUTE(SUBSTITUTE(SUBSTITUTE(SUBSTITUTE(SUBSTITUTE(SUBSTITUTE(SUBSTITUTE(SUBSTITUTE(SUBSTITUTE(SUBSTITUTE(S244,$ED244,$ED$2&ROW($ED244)),$EC244,$EC$2&ROW($EC244)),$EB244,$EB$2&ROW($EB244)),$EA244,$EA$2&ROW($EA244)),$DZ244,$DZ$2&ROW($DZ244)),$DY244,$DY$2&ROW($DY244)),$DX244,$DX$2&ROW($DX244)),$DW244,$DW$2&ROW($DW244)),$DV244,$DV$2&ROW($DV244)),$DU244,$DU$2&ROW($DU244)),$DT244,$DT$2&ROW($DT244)),$DS244,$DS$2&ROW($DS244)))","v":0},{"$f":"IF(T244=\"\",0,\"X=\"&SUBSTITUTE(SUBSTITUTE(SUBSTITUTE(SUBSTITUTE(SUBSTITUTE(SUBSTITUTE(SUBSTITUTE(SUBSTITUTE(SUBSTITUTE(SUBSTITUTE(SUBSTITUTE(SUBSTITUTE(T244,$ED244,$ED$2&ROW($ED244)),$EC244,$EC$2&ROW($EC244)),$EB244,$EB$2&ROW($EB244)),$EA244,$EA$2&ROW($EA244)),$DZ244,$DZ$2&ROW($DZ244)),$DY244,$DY$2&ROW($DY244)),$DX244,$DX$2&ROW($DX244)),$DW244,$DW$2&ROW($DW244)),$DV244,$DV$2&ROW($DV244)),$DU244,$DU$2&ROW($DU244)),$DT244,$DT$2&ROW($DT244)),$DS244,$DS$2&ROW($DS244)))","v":0},{"$f":"IF(U244=\"\",0,\"X=\"&SUBSTITUTE(SUBSTITUTE(SUBSTITUTE(SUBSTITUTE(SUBSTITUTE(SUBSTITUTE(SUBSTITUTE(SUBSTITUTE(SUBSTITUTE(SUBSTITUTE(SUBSTITUTE(SUBSTITUTE(U244,$ED244,$ED$2&ROW($ED244)),$EC244,$EC$2&ROW($EC244)),$EB244,$EB$2&ROW($EB244)),$EA244,$EA$2&ROW($EA244)),$DZ244,$DZ$2&ROW($DZ244)),$DY244,$DY$2&ROW($DY244)),$DX244,$DX$2&ROW($DX244)),$DW244,$DW$2&ROW($DW244)),$DV244,$DV$2&ROW($DV244)),$DU244,$DU$2&ROW($DU244)),$DT244,$DT$2&ROW($DT244)),$DS244,$DS$2&ROW($DS244)))","v":"X=if(AU244=0,0,AU244*(if(AW244=0,(0.25*0.043)+(0.05*0.0012),if(AW244=6,0.043,if(AW244=7,0.0012,0)))))"},{"$f":"IF(V244=\"\",0,\"X=\"&SUBSTITUTE(SUBSTITUTE(SUBSTITUTE(SUBSTITUTE(SUBSTITUTE(SUBSTITUTE(SUBSTITUTE(SUBSTITUTE(SUBSTITUTE(SUBSTITUTE(SUBSTITUTE(SUBSTITUTE(V244,$ED244,$ED$2&ROW($ED244)),$EC244,$EC$2&ROW($EC244)),$EB244,$EB$2&ROW($EB244)),$EA244,$EA$2&ROW($EA244)),$DZ244,$DZ$2&ROW($DZ244)),$DY244,$DY$2&ROW($DY244)),$DX244,$DX$2&ROW($DX244)),$DW244,$DW$2&ROW($DW244)),$DV244,$DV$2&ROW($DV244)),$DU244,$DU$2&ROW($DU244)),$DT244,$DT$2&ROW($DT244)),$DS244,$DS$2&ROW($DS244)))","v":"X=if(AU244=0,0,AU244*(if(AW244=0,(0.25*0.034)+(0.05*0.010),if(AW244=6,0.034,if(AW244=7,0.010,0)))))"},{"$f":"IF(W244=\"\",0,\"X=\"&SUBSTITUTE(SUBSTITUTE(SUBSTITUTE(SUBSTITUTE(SUBSTITUTE(SUBSTITUTE(SUBSTITUTE(SUBSTITUTE(SUBSTITUTE(SUBSTITUTE(SUBSTITUTE(SUBSTITUTE(W244,$ED244,$ED$2&ROW($ED244)),$EC244,$EC$2&ROW($EC244)),$EB244,$EB$2&ROW($EB244)),$EA244,$EA$2&ROW($EA244)),$DZ244,$DZ$2&ROW($DZ244)),$DY244,$DY$2&ROW($DY244)),$DX244,$DX$2&ROW($DX244)),$DW244,$DW$2&ROW($DW244)),$DV244,$DV$2&ROW($DV244)),$DU244,$DU$2&ROW($DU244)),$DT244,$DT$2&ROW($DT244)),$DS244,$DS$2&ROW($DS244)))","v":"X=if(AW244=1,1.40,if(AW244=0,0.05*1.40,0))*10"},{"$f":"IF(X244=\"\",0,\"X=\"&SUBSTITUTE(SUBSTITUTE(SUBSTITUTE(SUBSTITUTE(SUBSTITUTE(SUBSTITUTE(SUBSTITUTE(SUBSTITUTE(SUBSTITUTE(SUBSTITUTE(SUBSTITUTE(SUBSTITUTE(X244,$ED244,$ED$2&ROW($ED244)),$EC244,$EC$2&ROW($EC244)),$EB244,$EB$2&ROW($EB244)),$EA244,$EA$2&ROW($EA244)),$DZ244,$DZ$2&ROW($DZ244)),$DY244,$DY$2&ROW($DY244)),$DX244,$DX$2&ROW($DX244)),$DW244,$DW$2&ROW($DW244)),$DV244,$DV$2&ROW($DV244)),$DU244,$DU$2&ROW($DU244)),$DT244,$DT$2&ROW($DT244)),$DS244,$DS$2&ROW($DS244)))","v":"X=if(AW244=2,1.40,if(AW244 = 0,0.05*1.40,0))"},{"$f":"IF(Y244=\"\",0,\"X=\"&SUBSTITUTE(SUBSTITUTE(SUBSTITUTE(SUBSTITUTE(SUBSTITUTE(SUBSTITUTE(SUBSTITUTE(SUBSTITUTE(SUBSTITUTE(SUBSTITUTE(SUBSTITUTE(SUBSTITUTE(Y244,$ED244,$ED$2&ROW($ED244)),$EC244,$EC$2&ROW($EC244)),$EB244,$EB$2&ROW($EB244)),$EA244,$EA$2&ROW($EA244)),$DZ244,$DZ$2&ROW($DZ244)),$DY244,$DY$2&ROW($DY244)),$DX244,$DX$2&ROW($DX244)),$DW244,$DW$2&ROW($DW244)),$DV244,$DV$2&ROW($DV244)),$DU244,$DU$2&ROW($DU244)),$DT244,$DT$2&ROW($DT244)),$DS244,$DS$2&ROW($DS244)))","v":"X=if(AW244=3,1.61,if(AW244 = 0,0.6*1.61,0))"},{"$f":"IF(Z244=\"\",0,\"X=\"&SUBSTITUTE(SUBSTITUTE(SUBSTITUTE(SUBSTITUTE(SUBSTITUTE(SUBSTITUTE(SUBSTITUTE(SUBSTITUTE(SUBSTITUTE(SUBSTITUTE(SUBSTITUTE(SUBSTITUTE(Z244,$ED244,$ED$2&ROW($ED244)),$EC244,$EC$2&ROW($EC244)),$EB244,$EB$2&ROW($EB244)),$EA244,$EA$2&ROW($EA244)),$DZ244,$DZ$2&ROW($DZ244)),$DY244,$DY$2&ROW($DY244)),$DX244,$DX$2&ROW($DX244)),$DW244,$DW$2&ROW($DW244)),$DV244,$DV$2&ROW($DV244)),$DU244,$DU$2&ROW($DU244)),$DT244,$DT$2&ROW($DT244)),$DS244,$DS$2&ROW($DS244)))","v":"X=if(AW244=4,1.61,if(AW244 = 0,0*1.61,0))"},{"$f":"IF(AA244=\"\",0,\"X=\"&SUBSTITUTE(SUBSTITUTE(SUBSTITUTE(SUBSTITUTE(SUBSTITUTE(SUBSTITUTE(SUBSTITUTE(SUBSTITUTE(SUBSTITUTE(SUBSTITUTE(SUBSTITUTE(SUBSTITUTE(AA244,$ED244,$ED$2&ROW($ED244)),$EC244,$EC$2&ROW($EC244)),$EB244,$EB$2&ROW($EB244)),$EA244,$EA$2&ROW($EA244)),$DZ244,$DZ$2&ROW($DZ244)),$DY244,$DY$2&ROW($DY244)),$DX244,$DX$2&ROW($DX244)),$DW244,$DW$2&ROW($DW244)),$DV244,$DV$2&ROW($DV244)),$DU244,$DU$2&ROW($DU244)),$DT244,$DT$2&ROW($DT244)),$DS244,$DS$2&ROW($DS244)))","v":0},{"$f":"IF(AB244=\"\",0,\"X=\"&SUBSTITUTE(SUBSTITUTE(SUBSTITUTE(SUBSTITUTE(SUBSTITUTE(SUBSTITUTE(SUBSTITUTE(SUBSTITUTE(SUBSTITUTE(SUBSTITUTE(SUBSTITUTE(SUBSTITUTE(AB244,$ED244,$ED$2&ROW($ED244)),$EC244,$EC$2&ROW($EC244)),$EB244,$EB$2&ROW($EB244)),$EA244,$EA$2&ROW($EA244)),$DZ244,$DZ$2&ROW($DZ244)),$DY244,$DY$2&ROW($DY244)),$DX244,$DX$2&ROW($DX244)),$DW244,$DW$2&ROW($DW244)),$DV244,$DV$2&ROW($DV244)),$DU244,$DU$2&ROW($DU244)),$DT244,$DT$2&ROW($DT244)),$DS244,$DS$2&ROW($DS244)))","v":"X=if(AU244=0,0,AU244*2696)"},null,null,"{Factor:WinterCF}","{Factor:SummerCF}",{"$f":"IFERROR(INDEX($EG244:$IV244,MATCH(0,COUNTIF($DR244:DT244,$EG244:$IV244),0)),\"\")","v":"{Retail Price}"},{"$f":"IFERROR(INDEX($EG244:$IV244,MATCH(0,COUNTIF($DR244:DU244,$EG244:$IV244),0)),\"\")","v":"{Measure:Quantity}"},{"$f":"IFERROR(INDEX($EG244:$IV244,MATCH(0,COUNTIF($DR244:DV244,$EG244:$IV244),0)),\"\")","v":"{Water Heating Fuel}"},{"$f":"IFERROR(INDEX($EG244:$IV244,MATCH(0,COUNTIF($DR244:DW244,$EG244:$IV244),0)),\"\")","v":""},{"$f":"IFERROR(INDEX($EG244:$IV244,MATCH(0,COUNTIF($DR244:DX244,$EG244:$IV244),0)),\"\")","v":""},{"$f":"IFERROR(INDEX($EG244:$IV244,MATCH(0,COUNTIF($DR244:DY244,$EG244:$IV244),0)),\"\")","v":""},{"$f":"IFERROR(INDEX($EG244:$IV244,MATCH(0,COUNTIF($DR244:DZ244,$EG244:$IV244),0)),\"\")","v":""},{"$f":"IFERROR(INDEX($EG244:$IV244,MATCH(0,COUNTIF($DR244:EA244,$EG244:$IV244),0)),\"\")","v":""},{"$f":"IFERROR(INDEX($EG244:$IV244,MATCH(0,COUNTIF($DR244:EB244,$EG244:$IV244),0)),\"\")","v":""},{"$f":"IFERROR(INDEX($EG244:$IV244,MATCH(0,COUNTIF($DR244:EC244,$EG244:$IV244),0)),\"\")","v":""},null,null,{"$f":"IFERROR(MID($G244,FIND(CHAR(160),SUBSTITUTE($G244,\"{\",CHAR(160),EG$1)),FIND(CHAR(160),SUBSTITUTE($G244,\"}\",CHAR(160),EG$1))-FIND(CHAR(160),SUBSTITUTE($G244,\"{\",CHAR(160),EG$1))+1),\"\")","v":"{Retail Price}"},{"$f":"IFERROR(MID($G244,FIND(CHAR(160),SUBSTITUTE($G244,\"{\",CHAR(160),EH$1)),FIND(CHAR(160),SUBSTITUTE($G244,\"}\",CHAR(160),EH$1))-FIND(CHAR(160),SUBSTITUTE($G244,\"{\",CHAR(160),EH$1))+1),\"\")","v":"{Measure:Quantity}"},{"$f":"IFERROR(MID($G244,FIND(CHAR(160),SUBSTITUTE($G244,\"{\",CHAR(160),EI$1)),FIND(CHAR(160),SUBSTITUTE($G244,\"}\",CHAR(160),EI$1))-FIND(CHAR(160),SUBSTITUTE($G244,\"{\",CHAR(160),EI$1))+1),\"\")","v":""},{"$f":"IFERROR(MID($G244,FIND(CHAR(160),SUBSTITUTE($G244,\"{\",CHAR(160),EJ$1)),FIND(CHAR(160),SUBSTITUTE($G244,\"}\",CHAR(160),EJ$1))-FIND(CHAR(160),SUBSTITUTE($G244,\"{\",CHAR(160),EJ$1))+1),\"\")","v":""},{"$f":"IFERROR(MID($G244,FIND(CHAR(160),SUBSTITUTE($G244,\"{\",CHAR(160),EK$1)),FIND(CHAR(160),SUBSTITUTE($G244,\"}\",CHAR(160),EK$1))-FIND(CHAR(160),SUBSTITUTE($G244,\"{\",CHAR(160),EK$1))+1),\"\")","v":""},{"$f":"IFERROR(MID($G244,FIND(CHAR(160),SUBSTITUTE($G244,\"{\",CHAR(160),EL$1)),FIND(CHAR(160),SUBSTITUTE($G244,\"}\",CHAR(160),EL$1))-FIND(CHAR(160),SUBSTITUTE($G244,\"{\",CHAR(160),EL$1))+1),\"\")","v":""},{"$f":"IFERROR(MID($G244,FIND(CHAR(160),SUBSTITUTE($G244,\"{\",CHAR(160),EM$1)),FIND(CHAR(160),SUBSTITUTE($G244,\"}\",CHAR(160),EM$1))-FIND(CHAR(160),SUBSTITUTE($G244,\"{\",CHAR(160),EM$1))+1),\"\")","v":""},{"$f":"IFERROR(MID($G244,FIND(CHAR(160),SUBSTITUTE($G244,\"{\",CHAR(160),EN$1)),FIND(CHAR(160),SUBSTITUTE($G244,\"}\",CHAR(160),EN$1))-FIND(CHAR(160),SUBSTITUTE($G244,\"{\",CHAR(160),EN$1))+1),\"\")","v":""},{"$f":"IFERROR(MID($G244,FIND(CHAR(160),SUBSTITUTE($G244,\"{\",CHAR(160),EO$1)),FIND(CHAR(160),SUBSTITUTE($G244,\"}\",CHAR(160),EO$1))-FIND(CHAR(160),SUBSTITUTE($G244,\"{\",CHAR(160),EO$1))+1),\"\")","v":""},{"$f":"IFERROR(MID($G244,FIND(CHAR(160),SUBSTITUTE($G244,\"{\",CHAR(160),EP$1)),FIND(CHAR(160),SUBSTITUTE($G244,\"}\",CHAR(160),EP$1))-FIND(CHAR(160),SUBSTITUTE($G244,\"{\",CHAR(160),EP$1))+1),\"\")","v":""},{"$f":"IFERROR(MID($J244,FIND(CHAR(160),SUBSTITUTE($J244,\"{\",CHAR(160),EQ$1)),FIND(CHAR(160),SUBSTITUTE($J244,\"}\",CHAR(160),EQ$1))-FIND(CHAR(160),SUBSTITUTE($J244,\"{\",CHAR(160),EQ$1))+1),\"\")","v":""},{"$f":"IFERROR(MID($J244,FIND(CHAR(160),SUBSTITUTE($J244,\"{\",CHAR(160),ER$1)),FIND(CHAR(160),SUBSTITUTE($J244,\"}\",CHAR(160),ER$1))-FIND(CHAR(160),SUBSTITUTE($J244,\"{\",CHAR(160),ER$1))+1),\"\")","v":""},{"$f":"IFERROR(MID($J244,FIND(CHAR(160),SUBSTITUTE($J244,\"{\",CHAR(160),ES$1)),FIND(CHAR(160),SUBSTITUTE($J244,\"}\",CHAR(160),ES$1))-FIND(CHAR(160),SUBSTITUTE($J244,\"{\",CHAR(160),ES$1))+1),\"\")","v":""},{"$f":"IFERROR(MID($J244,FIND(CHAR(160),SUBSTITUTE($J244,\"{\",CHAR(160),ET$1)),FIND(CHAR(160),SUBSTITUTE($J244,\"}\",CHAR(160),ET$1))-FIND(CHAR(160),SUBSTITUTE($J244,\"{\",CHAR(160),ET$1))+1),\"\")","v":""},{"$f":"IFERROR(MID($J244,FIND(CHAR(160),SUBSTITUTE($J244,\"{\",CHAR(160),EU$1)),FIND(CHAR(160),SUBSTITUTE($J244,\"}\",CHAR(160),EU$1))-FIND(CHAR(160),SUBSTITUTE($J244,\"{\",CHAR(160),EU$1))+1),\"\")","v":""},{"$f":"IFERROR(MID($J244,FIND(CHAR(160),SUBSTITUTE($J244,\"{\",CHAR(160),EV$1)),FIND(CHAR(160),SUBSTITUTE($J244,\"}\",CHAR(160),EV$1))-FIND(CHAR(160),SUBSTITUTE($J244,\"{\",CHAR(160),EV$1))+1),\"\")","v":""},{"$f":"IFERROR(MID($J244,FIND(CHAR(160),SUBSTITUTE($J244,\"{\",CHAR(160),EW$1)),FIND(CHAR(160),SUBSTITUTE($J244,\"}\",CHAR(160),EW$1))-FIND(CHAR(160),SUBSTITUTE($J244,\"{\",CHAR(160),EW$1))+1),\"\")","v":""},{"$f":"IFERROR(MID($J244,FIND(CHAR(160),SUBSTITUTE($J244,\"{\",CHAR(160),EX$1)),FIND(CHAR(160),SUBSTITUTE($J244,\"}\",CHAR(160),EX$1))-FIND(CHAR(160),SUBSTITUTE($J244,\"{\",CHAR(160),EX$1))+1),\"\")","v":""},{"$f":"IFERROR(MID($J244,FIND(CHAR(160),SUBSTITUTE($J244,\"{\",CHAR(160),EY$1)),FIND(CHAR(160),SUBSTITUTE($J244,\"}\",CHAR(160),EY$1))-FIND(CHAR(160),SUBSTITUTE($J244,\"{\",CHAR(160),EY$1))+1),\"\")","v":""},{"$f":"IFERROR(MID($J244,FIND(CHAR(160),SUBSTITUTE($J244,\"{\",CHAR(160),EZ$1)),FIND(CHAR(160),SUBSTITUTE($J244,\"}\",CHAR(160),EZ$1))-FIND(CHAR(160),SUBSTITUTE($J244,\"{\",CHAR(160),EZ$1))+1),\"\")","v":""},{"$f":"IFERROR(MID($J244,FIND(CHAR(160),SUBSTITUTE($J244,\"{\",CHAR(160),FA$1)),FIND(CHAR(160),SUBSTITUTE($J244,\"}\",CHAR(160),FA$1))-FIND(CHAR(160),SUBSTITUTE($J244,\"{\",CHAR(160),FA$1))+1),\"\")","v":""},{"$f":"IFERROR(MID($J244,FIND(CHAR(160),SUBSTITUTE($J244,\"{\",CHAR(160),FB$1)),FIND(CHAR(160),SUBSTITUTE($J244,\"}\",CHAR(160),FB$1))-FIND(CHAR(160),SUBSTITUTE($J244,\"{\",CHAR(160),FB$1))+1),\"\")","v":""},{"$f":"IFERROR(MID($O244,FIND(CHAR(160),SUBSTITUTE($O244,\"{\",CHAR(160),FC$1)),FIND(CHAR(160),SUBSTITUTE($O244,\"}\",CHAR(160),FC$1))-FIND(CHAR(160),SUBSTITUTE($O244,\"{\",CHAR(160),FC$1))+1),\"\")","v":"{Water Heating Fuel}"},{"$f":"IFERROR(MID($O244,FIND(CHAR(160),SUBSTITUTE($O244,\"{\",CHAR(160),FD$1)),FIND(CHAR(160),SUBSTITUTE($O244,\"}\",CHAR(160),FD$1))-FIND(CHAR(160),SUBSTITUTE($O244,\"{\",CHAR(160),FD$1))+1),\"\")","v":"{Water Heating Fuel}"},{"$f":"IFERROR(MID($O244,FIND(CHAR(160),SUBSTITUTE($O244,\"{\",CHAR(160),FE$1)),FIND(CHAR(160),SUBSTITUTE($O244,\"}\",CHAR(160),FE$1))-FIND(CHAR(160),SUBSTITUTE($O244,\"{\",CHAR(160),FE$1))+1),\"\")","v":"{Water Heating Fuel}"},{"$f":"IFERROR(MID($O244,FIND(CHAR(160),SUBSTITUTE($O244,\"{\",CHAR(160),FF$1)),FIND(CHAR(160),SUBSTITUTE($O244,\"}\",CHAR(160),FF$1))-FIND(CHAR(160),SUBSTITUTE($O244,\"{\",CHAR(160),FF$1))+1),\"\")","v":""},{"$f":"IFERROR(MID($O244,FIND(CHAR(160),SUBSTITUTE($O244,\"{\",CHAR(160),FG$1)),FIND(CHAR(160),SUBSTITUTE($O244,\"}\",CHAR(160),FG$1))-FIND(CHAR(160),SUBSTITUTE($O244,\"{\",CHAR(160),FG$1))+1),\"\")","v":""},{"$f":"IFERROR(MID($O244,FIND(CHAR(160),SUBSTITUTE($O244,\"{\",CHAR(160),FH$1)),FIND(CHAR(160),SUBSTITUTE($O244,\"}\",CHAR(160),FH$1))-FIND(CHAR(160),SUBSTITUTE($O244,\"{\",CHAR(160),FH$1))+1),\"\")","v":""},{"$f":"IFERROR(MID($O244,FIND(CHAR(160),SUBSTITUTE($O244,\"{\",CHAR(160),FI$1)),FIND(CHAR(160),SUBSTITUTE($O244,\"}\",CHAR(160),FI$1))-FIND(CHAR(160),SUBSTITUTE($O244,\"{\",CHAR(160),FI$1))+1),\"\")","v":""},{"$f":"IFERROR(MID($O244,FIND(CHAR(160),SUBSTITUTE($O244,\"{\",CHAR(160),FJ$1)),FIND(CHAR(160),SUBSTITUTE($O244,\"}\",CHAR(160),FJ$1))-FIND(CHAR(160),SUBSTITUTE($O244,\"{\",CHAR(160),FJ$1))+1),\"\")","v":""},{"$f":"IFERROR(MID($O244,FIND(CHAR(160),SUBSTITUTE($O244,\"{\",CHAR(160),FK$1)),FIND(CHAR(160),SUBSTITUTE($O244,\"}\",CHAR(160),FK$1))-FIND(CHAR(160),SUBSTITUTE($O244,\"{\",CHAR(160),FK$1))+1),\"\")","v":"{Measure:Quantity}"},{"$f":"IFERROR(MID($O244,FIND(CHAR(160),SUBSTITUTE($O244,\"{\",CHAR(160),FL$1)),FIND(CHAR(160),SUBSTITUTE($O244,\"}\",CHAR(160),FL$1))-FIND(CHAR(160),SUBSTITUTE($O244,\"{\",CHAR(160),FL$1))+1),\"\")","v":"{Measure:Quantity}"},{"$f":"IFERROR(MID($R244,FIND(CHAR(160),SUBSTITUTE($R244,\"{\",CHAR(160),FM$1)),FIND(CHAR(160),SUBSTITUTE($R244,\"}\",CHAR(160),FM$1))-FIND(CHAR(160),SUBSTITUTE($R244,\"{\",CHAR(160),FM$1))+1),\"\")","v":""},{"$f":"IFERROR(MID($R244,FIND(CHAR(160),SUBSTITUTE($R244,\"{\",CHAR(160),FN$1)),FIND(CHAR(160),SUBSTITUTE($R244,\"}\",CHAR(160),FN$1))-FIND(CHAR(160),SUBSTITUTE($R244,\"{\",CHAR(160),FN$1))+1),\"\")","v":""},{"$f":"IFERROR(MID($R244,FIND(CHAR(160),SUBSTITUTE($R244,\"{\",CHAR(160),FO$1)),FIND(CHAR(160),SUBSTITUTE($R244,\"}\",CHAR(160),FO$1))-FIND(CHAR(160),SUBSTITUTE($R244,\"{\",CHAR(160),FO$1))+1),\"\")","v":""},{"$f":"IFERROR(MID($R244,FIND(CHAR(160),SUBSTITUTE($R244,\"{\",CHAR(160),FP$1)),FIND(CHAR(160),SUBSTITUTE($R244,\"}\",CHAR(160),FP$1))-FIND(CHAR(160),SUBSTITUTE($R244,\"{\",CHAR(160),FP$1))+1),\"\")","v":""},{"$f":"IFERROR(MID($R244,FIND(CHAR(160),SUBSTITUTE($R244,\"{\",CHAR(160),FQ$1)),FIND(CHAR(160),SUBSTITUTE($R244,\"}\",CHAR(160),FQ$1))-FIND(CHAR(160),SUBSTITUTE($R244,\"{\",CHAR(160),FQ$1))+1),\"\")","v":""},{"$f":"IFERROR(MID($R244,FIND(CHAR(160),SUBSTITUTE($R244,\"{\",CHAR(160),FR$1)),FIND(CHAR(160),SUBSTITUTE($R244,\"}\",CHAR(160),FR$1))-FIND(CHAR(160),SUBSTITUTE($R244,\"{\",CHAR(160),FR$1))+1),\"\")","v":""},{"$f":"IFERROR(MID($R244,FIND(CHAR(160),SUBSTITUTE($R244,\"{\",CHAR(160),FS$1)),FIND(CHAR(160),SUBSTITUTE($R244,\"}\",CHAR(160),FS$1))-FIND(CHAR(160),SUBSTITUTE($R244,\"{\",CHAR(160),FS$1))+1),\"\")","v":""},{"$f":"IFERROR(MID($R244,FIND(CHAR(160),SUBSTITUTE($R244,\"{\",CHAR(160),FT$1)),FIND(CHAR(160),SUBSTITUTE($R244,\"}\",CHAR(160),FT$1))-FIND(CHAR(160),SUBSTITUTE($R244,\"{\",CHAR(160),FT$1))+1),\"\")","v":""},{"$f":"IFERROR(MID($R244,FIND(CHAR(160),SUBSTITUTE($R244,\"{\",CHAR(160),FU$1)),FIND(CHAR(160),SUBSTITUTE($R244,\"}\",CHAR(160),FU$1))-FIND(CHAR(160),SUBSTITUTE($R244,\"{\",CHAR(160),FU$1))+1),\"\")","v":""},{"$f":"IFERROR(MID($R244,FIND(CHAR(160),SUBSTITUTE($R244,\"{\",CHAR(160),FV$1)),FIND(CHAR(160),SUBSTITUTE($R244,\"}\",CHAR(160),FV$1))-FIND(CHAR(160),SUBSTITUTE($R244,\"{\",CHAR(160),FV$1))+1),\"\")","v":""},{"$f":"IFERROR(MID($U244,FIND(CHAR(160),SUBSTITUTE($U244,\"{\",CHAR(160),FW$1)),FIND(CHAR(160),SUBSTITUTE($U244,\"}\",CHAR(160),FW$1))-FIND(CHAR(160),SUBSTITUTE($U244,\"{\",CHAR(160),FW$1))+1),\"\")","v":"{Water Heating Fuel}"},{"$f":"IFERROR(MID($U244,FIND(CHAR(160),SUBSTITUTE($U244,\"{\",CHAR(160),FX$1)),FIND(CHAR(160),SUBSTITUTE($U244,\"}\",CHAR(160),FX$1))-FIND(CHAR(160),SUBSTITUTE($U244,\"{\",CHAR(160),FX$1))+1),\"\")","v":"{Water Heating Fuel}"},{"$f":"IFERROR(MID($U244,FIND(CHAR(160),SUBSTITUTE($U244,\"{\",CHAR(160),FY$1)),FIND(CHAR(160),SUBSTITUTE($U244,\"}\",CHAR(160),FY$1))-FIND(CHAR(160),SUBSTITUTE($U244,\"{\",CHAR(160),FY$1))+1),\"\")","v":"{Water Heating Fuel}"},{"$f":"IFERROR(MID($U244,FIND(CHAR(160),SUBSTITUTE($U244,\"{\",CHAR(160),FZ$1)),FIND(CHAR(160),SUBSTITUTE($U244,\"}\",CHAR(160),FZ$1))-FIND(CHAR(160),SUBSTITUTE($U244,\"{\",CHAR(160),FZ$1))+1),\"\")","v":""},{"$f":"IFERROR(MID($U244,FIND(CHAR(160),SUBSTITUTE($U244,\"{\",CHAR(160),GA$1)),FIND(CHAR(160),SUBSTITUTE($U244,\"}\",CHAR(160),GA$1))-FIND(CHAR(160),SUBSTITUTE($U244,\"{\",CHAR(160),GA$1))+1),\"\")","v":""},{"$f":"IFERROR(MID($U244,FIND(CHAR(160),SUBSTITUTE($U244,\"{\",CHAR(160),GB$1)),FIND(CHAR(160),SUBSTITUTE($U244,\"}\",CHAR(160),GB$1))-FIND(CHAR(160),SUBSTITUTE($U244,\"{\",CHAR(160),GB$1))+1),\"\")","v":""},{"$f":"IFERROR(MID($U244,FIND(CHAR(160),SUBSTITUTE($U244,\"{\",CHAR(160),GC$1)),FIND(CHAR(160),SUBSTITUTE($U244,\"}\",CHAR(160),GC$1))-FIND(CHAR(160),SUBSTITUTE($U244,\"{\",CHAR(160),GC$1))+1),\"\")","v":""},{"$f":"IFERROR(MID($U244,FIND(CHAR(160),SUBSTITUTE($U244,\"{\",CHAR(160),GD$1)),FIND(CHAR(160),SUBSTITUTE($U244,\"}\",CHAR(160),GD$1))-FIND(CHAR(160),SUBSTITUTE($U244,\"{\",CHAR(160),GD$1))+1),\"\")","v":""},{"$f":"IFERROR(MID($U244,FIND(CHAR(160),SUBSTITUTE($U244,\"{\",CHAR(160),GE$1)),FIND(CHAR(160),SUBSTITUTE($U244,\"}\",CHAR(160),GE$1))-FIND(CHAR(160),SUBSTITUTE($U244,\"{\",CHAR(160),GE$1))+1),\"\")","v":"{Measure:Quantity}"},{"$f":"IFERROR(MID($U244,FIND(CHAR(160),SUBSTITUTE($U244,\"{\",CHAR(160),GF$1)),FIND(CHAR(160),SUBSTITUTE($U244,\"}\",CHAR(160),GF$1))-FIND(CHAR(160),SUBSTITUTE($U244,\"{\",CHAR(160),GF$1))+1),\"\")","v":"{Measure:Quantity}"},{"$f":"IFERROR(MID($V244,FIND(CHAR(160),SUBSTITUTE($V244,\"{\",CHAR(160),GG$1)),FIND(CHAR(160),SUBSTITUTE($V244,\"}\",CHAR(160),GG$1))-FIND(CHAR(160),SUBSTITUTE($V244,\"{\",CHAR(160),GG$1))+1),\"\")","v":"{Water Heating Fuel}"},{"$f":"IFERROR(MID($V244,FIND(CHAR(160),SUBSTITUTE($V244,\"{\",CHAR(160),GH$1)),FIND(CHAR(160),SUBSTITUTE($V244,\"}\",CHAR(160),GH$1))-FIND(CHAR(160),SUBSTITUTE($V244,\"{\",CHAR(160),GH$1))+1),\"\")","v":"{Water Heating Fuel}"},{"$f":"IFERROR(MID($V244,FIND(CHAR(160),SUBSTITUTE($V244,\"{\",CHAR(160),GI$1)),FIND(CHAR(160),SUBSTITUTE($V244,\"}\",CHAR(160),GI$1))-FIND(CHAR(160),SUBSTITUTE($V244,\"{\",CHAR(160),GI$1))+1),\"\")","v":"{Water Heating Fuel}"},{"$f":"IFERROR(MID($V244,FIND(CHAR(160),SUBSTITUTE($V244,\"{\",CHAR(160),GJ$1)),FIND(CHAR(160),SUBSTITUTE($V244,\"}\",CHAR(160),GJ$1))-FIND(CHAR(160),SUBSTITUTE($V244,\"{\",CHAR(160),GJ$1))+1),\"\")","v":""},{"$f":"IFERROR(MID($V244,FIND(CHAR(160),SUBSTITUTE($V244,\"{\",CHAR(160),GK$1)),FIND(CHAR(160),SUBSTITUTE($V244,\"}\",CHAR(160),GK$1))-FIND(CHAR(160),SUBSTITUTE($V244,\"{\",CHAR(160),GK$1))+1),\"\")","v":""},{"$f":"IFERROR(MID($V244,FIND(CHAR(160),SUBSTITUTE($V244,\"{\",CHAR(160),GL$1)),FIND(CHAR(160),SUBSTITUTE($V244,\"}\",CHAR(160),GL$1))-FIND(CHAR(160),SUBSTITUTE($V244,\"{\",CHAR(160),GL$1))+1),\"\")","v":""},{"$f":"IFERROR(MID($V244,FIND(CHAR(160),SUBSTITUTE($V244,\"{\",CHAR(160),GM$1)),FIND(CHAR(160),SUBSTITUTE($V244,\"}\",CHAR(160),GM$1))-FIND(CHAR(160),SUBSTITUTE($V244,\"{\",CHAR(160),GM$1))+1),\"\")","v":""},{"$f":"IFERROR(MID($V244,FIND(CHAR(160),SUBSTITUTE($V244,\"{\",CHAR(160),GN$1)),FIND(CHAR(160),SUBSTITUTE($V244,\"}\",CHAR(160),GN$1))-FIND(CHAR(160),SUBSTITUTE($V244,\"{\",CHAR(160),GN$1))+1),\"\")","v":""},{"$f":"IFERROR(MID($V244,FIND(CHAR(160),SUBSTITUTE($V244,\"{\",CHAR(160),GO$1)),FIND(CHAR(160),SUBSTITUTE($V244,\"}\",CHAR(160),GO$1))-FIND(CHAR(160),SUBSTITUTE($V244,\"{\",CHAR(160),GO$1))+1),\"\")","v":"{Measure:Quantity}"},{"$f":"IFERROR(MID($V244,FIND(CHAR(160),SUBSTITUTE($V244,\"{\",CHAR(160),GP$1)),FIND(CHAR(160),SUBSTITUTE($V244,\"}\",CHAR(160),GP$1))-FIND(CHAR(160),SUBSTITUTE($V244,\"{\",CHAR(160),GP$1))+1),\"\")","v":"{Measure:Quantity}"},{"$f":"IFERROR(MID($W244,FIND(CHAR(160),SUBSTITUTE($W244,\"{\",CHAR(160),GQ$1)),FIND(CHAR(160),SUBSTITUTE($W244,\"}\",CHAR(160),GQ$1))-FIND(CHAR(160),SUBSTITUTE($W244,\"{\",CHAR(160),GQ$1))+1),\"\")","v":""},{"$f":"IFERROR(MID($W244,FIND(CHAR(160),SUBSTITUTE($W244,\"{\",CHAR(160),GR$1)),FIND(CHAR(160),SUBSTITUTE($W244,\"}\",CHAR(160),GR$1))-FIND(CHAR(160),SUBSTITUTE($W244,\"{\",CHAR(160),GR$1))+1),\"\")","v":""},{"$f":"IFERROR(MID($W244,FIND(CHAR(160),SUBSTITUTE($W244,\"{\",CHAR(160),GS$1)),FIND(CHAR(160),SUBSTITUTE($W244,\"}\",CHAR(160),GS$1))-FIND(CHAR(160),SUBSTITUTE($W244,\"{\",CHAR(160),GS$1))+1),\"\")","v":""},{"$f":"IFERROR(MID($W244,FIND(CHAR(160),SUBSTITUTE($W244,\"{\",CHAR(160),GT$1)),FIND(CHAR(160),SUBSTITUTE($W244,\"}\",CHAR(160),GT$1))-FIND(CHAR(160),SUBSTITUTE($W244,\"{\",CHAR(160),GT$1))+1),\"\")","v":""},{"$f":"IFERROR(MID($W244,FIND(CHAR(160),SUBSTITUTE($W244,\"{\",CHAR(160),GU$1)),FIND(CHAR(160),SUBSTITUTE($W244,\"}\",CHAR(160),GU$1))-FIND(CHAR(160),SUBSTITUTE($W244,\"{\",CHAR(160),GU$1))+1),\"\")","v":""},{"$f":"IFERROR(MID($W244,FIND(CHAR(160),SUBSTITUTE($W244,\"{\",CHAR(160),GV$1)),FIND(CHAR(160),SUBSTITUTE($W244,\"}\",CHAR(160),GV$1))-FIND(CHAR(160),SUBSTITUTE($W244,\"{\",CHAR(160),GV$1))+1),\"\")","v":""},{"$f":"IFERROR(MID($W244,FIND(CHAR(160),SUBSTITUTE($W244,\"{\",CHAR(160),GW$1)),FIND(CHAR(160),SUBSTITUTE($W244,\"}\",CHAR(160),GW$1))-FIND(CHAR(160),SUBSTITUTE($W244,\"{\",CHAR(160),GW$1))+1),\"\")","v":""},{"$f":"IFERROR(MID($W244,FIND(CHAR(160),SUBSTITUTE($W244,\"{\",CHAR(160),GX$1)),FIND(CHAR(160),SUBSTITUTE($W244,\"}\",CHAR(160),GX$1))-FIND(CHAR(160),SUBSTITUTE($W244,\"{\",CHAR(160),GX$1))+1),\"\")","v":""},{"$f":"IFERROR(MID($W244,FIND(CHAR(160),SUBSTITUTE($W244,\"{\",CHAR(160),GY$1)),FIND(CHAR(160),SUBSTITUTE($W244,\"}\",CHAR(160),GY$1))-FIND(CHAR(160),SUBSTITUTE($W244,\"{\",CHAR(160),GY$1))+1),\"\")","v":"{Water Heating Fuel}"},{"$f":"IFERROR(MID($W244,FIND(CHAR(160),SUBSTITUTE($W244,\"{\",CHAR(160),GZ$1)),FIND(CHAR(160),SUBSTITUTE($W244,\"}\",CHAR(160),GZ$1))-FIND(CHAR(160),SUBSTITUTE($W244,\"{\",CHAR(160),GZ$1))+1),\"\")","v":"{Water Heating Fuel}"},{"$f":"IFERROR(MID($X244,FIND(CHAR(160),SUBSTITUTE($X244,\"{\",CHAR(160),HA$1)),FIND(CHAR(160),SUBSTITUTE($X244,\"}\",CHAR(160),HA$1))-FIND(CHAR(160),SUBSTITUTE($X244,\"{\",CHAR(160),HA$1))+1),\"\")","v":""},{"$f":"IFERROR(MID($X244,FIND(CHAR(160),SUBSTITUTE($X244,\"{\",CHAR(160),HB$1)),FIND(CHAR(160),SUBSTITUTE($X244,\"}\",CHAR(160),HB$1))-FIND(CHAR(160),SUBSTITUTE($X244,\"{\",CHAR(160),HB$1))+1),\"\")","v":""},{"$f":"IFERROR(MID($X244,FIND(CHAR(160),SUBSTITUTE($X244,\"{\",CHAR(160),HC$1)),FIND(CHAR(160),SUBSTITUTE($X244,\"}\",CHAR(160),HC$1))-FIND(CHAR(160),SUBSTITUTE($X244,\"{\",CHAR(160),HC$1))+1),\"\")","v":""},{"$f":"IFERROR(MID($X244,FIND(CHAR(160),SUBSTITUTE($X244,\"{\",CHAR(160),HD$1)),FIND(CHAR(160),SUBSTITUTE($X244,\"}\",CHAR(160),HD$1))-FIND(CHAR(160),SUBSTITUTE($X244,\"{\",CHAR(160),HD$1))+1),\"\")","v":""},{"$f":"IFERROR(MID($X244,FIND(CHAR(160),SUBSTITUTE($X244,\"{\",CHAR(160),HE$1)),FIND(CHAR(160),SUBSTITUTE($X244,\"}\",CHAR(160),HE$1))-FIND(CHAR(160),SUBSTITUTE($X244,\"{\",CHAR(160),HE$1))+1),\"\")","v":""},{"$f":"IFERROR(MID($X244,FIND(CHAR(160),SUBSTITUTE($X244,\"{\",CHAR(160),HF$1)),FIND(CHAR(160),SUBSTITUTE($X244,\"}\",CHAR(160),HF$1))-FIND(CHAR(160),SUBSTITUTE($X244,\"{\",CHAR(160),HF$1))+1),\"\")","v":""},{"$f":"IFERROR(MID($X244,FIND(CHAR(160),SUBSTITUTE($X244,\"{\",CHAR(160),HG$1)),FIND(CHAR(160),SUBSTITUTE($X244,\"}\",CHAR(160),HG$1))-FIND(CHAR(160),SUBSTITUTE($X244,\"{\",CHAR(160),HG$1))+1),\"\")","v":""},{"$f":"IFERROR(MID($X244,FIND(CHAR(160),SUBSTITUTE($X244,\"{\",CHAR(160),HH$1)),FIND(CHAR(160),SUBSTITUTE($X244,\"}\",CHAR(160),HH$1))-FIND(CHAR(160),SUBSTITUTE($X244,\"{\",CHAR(160),HH$1))+1),\"\")","v":""},{"$f":"IFERROR(MID($X244,FIND(CHAR(160),SUBSTITUTE($X244,\"{\",CHAR(160),HI$1)),FIND(CHAR(160),SUBSTITUTE($X244,\"}\",CHAR(160),HI$1))-FIND(CHAR(160),SUBSTITUTE($X244,\"{\",CHAR(160),HI$1))+1),\"\")","v":"{Water Heating Fuel}"},{"$f":"IFERROR(MID($X244,FIND(CHAR(160),SUBSTITUTE($X244,\"{\",CHAR(160),HJ$1)),FIND(CHAR(160),SUBSTITUTE($X244,\"}\",CHAR(160),HJ$1))-FIND(CHAR(160),SUBSTITUTE($X244,\"{\",CHAR(160),HJ$1))+1),\"\")","v":"{Water Heating Fuel}"},{"$f":"IFERROR(MID($Y244,FIND(CHAR(160),SUBSTITUTE($Y244,\"{\",CHAR(160),HK$1)),FIND(CHAR(160),SUBSTITUTE($Y244,\"}\",CHAR(160),HK$1))-FIND(CHAR(160),SUBSTITUTE($Y244,\"{\",CHAR(160),HK$1))+1),\"\")","v":""},{"$f":"IFERROR(MID($Y244,FIND(CHAR(160),SUBSTITUTE($Y244,\"{\",CHAR(160),HL$1)),FIND(CHAR(160),SUBSTITUTE($Y244,\"}\",CHAR(160),HL$1))-FIND(CHAR(160),SUBSTITUTE($Y244,\"{\",CHAR(160),HL$1))+1),\"\")","v":""},{"$f":"IFERROR(MID($Y244,FIND(CHAR(160),SUBSTITUTE($Y244,\"{\",CHAR(160),HM$1)),FIND(CHAR(160),SUBSTITUTE($Y244,\"}\",CHAR(160),HM$1))-FIND(CHAR(160),SUBSTITUTE($Y244,\"{\",CHAR(160),HM$1))+1),\"\")","v":""},{"$f":"IFERROR(MID($Y244,FIND(CHAR(160),SUBSTITUTE($Y244,\"{\",CHAR(160),HN$1)),FIND(CHAR(160),SUBSTITUTE($Y244,\"}\",CHAR(160),HN$1))-FIND(CHAR(160),SUBSTITUTE($Y244,\"{\",CHAR(160),HN$1))+1),\"\")","v":""},{"$f":"IFERROR(MID($Y244,FIND(CHAR(160),SUBSTITUTE($Y244,\"{\",CHAR(160),HO$1)),FIND(CHAR(160),SUBSTITUTE($Y244,\"}\",CHAR(160),HO$1))-FIND(CHAR(160),SUBSTITUTE($Y244,\"{\",CHAR(160),HO$1))+1),\"\")","v":""},{"$f":"IFERROR(MID($Y244,FIND(CHAR(160),SUBSTITUTE($Y244,\"{\",CHAR(160),HP$1)),FIND(CHAR(160),SUBSTITUTE($Y244,\"}\",CHAR(160),HP$1))-FIND(CHAR(160),SUBSTITUTE($Y244,\"{\",CHAR(160),HP$1))+1),\"\")","v":""},{"$f":"IFERROR(MID($Y244,FIND(CHAR(160),SUBSTITUTE($Y244,\"{\",CHAR(160),HQ$1)),FIND(CHAR(160),SUBSTITUTE($Y244,\"}\",CHAR(160),HQ$1))-FIND(CHAR(160),SUBSTITUTE($Y244,\"{\",CHAR(160),HQ$1))+1),\"\")","v":""},{"$f":"IFERROR(MID($Y244,FIND(CHAR(160),SUBSTITUTE($Y244,\"{\",CHAR(160),HR$1)),FIND(CHAR(160),SUBSTITUTE($Y244,\"}\",CHAR(160),HR$1))-FIND(CHAR(160),SUBSTITUTE($Y244,\"{\",CHAR(160),HR$1))+1),\"\")","v":""},{"$f":"IFERROR(MID($Y244,FIND(CHAR(160),SUBSTITUTE($Y244,\"{\",CHAR(160),HS$1)),FIND(CHAR(160),SUBSTITUTE($Y244,\"}\",CHAR(160),HS$1))-FIND(CHAR(160),SUBSTITUTE($Y244,\"{\",CHAR(160),HS$1))+1),\"\")","v":"{Water Heating Fuel}"},{"$f":"IFERROR(MID($Y244,FIND(CHAR(160),SUBSTITUTE($Y244,\"{\",CHAR(160),HT$1)),FIND(CHAR(160),SUBSTITUTE($Y244,\"}\",CHAR(160),HT$1))-FIND(CHAR(160),SUBSTITUTE($Y244,\"{\",CHAR(160),HT$1))+1),\"\")","v":"{Water Heating Fuel}"},{"$f":"IFERROR(MID($Z244,FIND(CHAR(160),SUBSTITUTE($Z244,\"{\",CHAR(160),HU$1)),FIND(CHAR(160),SUBSTITUTE($Z244,\"}\",CHAR(160),HU$1))-FIND(CHAR(160),SUBSTITUTE($Z244,\"{\",CHAR(160),HU$1))+1),\"\")","v":""},{"$f":"IFERROR(MID($Z244,FIND(CHAR(160),SUBSTITUTE($Z244,\"{\",CHAR(160),HV$1)),FIND(CHAR(160),SUBSTITUTE($Z244,\"}\",CHAR(160),HV$1))-FIND(CHAR(160),SUBSTITUTE($Z244,\"{\",CHAR(160),HV$1))+1),\"\")","v":""},{"$f":"IFERROR(MID($Z244,FIND(CHAR(160),SUBSTITUTE($Z244,\"{\",CHAR(160),HW$1)),FIND(CHAR(160),SUBSTITUTE($Z244,\"}\",CHAR(160),HW$1))-FIND(CHAR(160),SUBSTITUTE($Z244,\"{\",CHAR(160),HW$1))+1),\"\")","v":""},{"$f":"IFERROR(MID($Z244,FIND(CHAR(160),SUBSTITUTE($Z244,\"{\",CHAR(160),HX$1)),FIND(CHAR(160),SUBSTITUTE($Z244,\"}\",CHAR(160),HX$1))-FIND(CHAR(160),SUBSTITUTE($Z244,\"{\",CHAR(160),HX$1))+1),\"\")","v":""},{"$f":"IFERROR(MID($Z244,FIND(CHAR(160),SUBSTITUTE($Z244,\"{\",CHAR(160),HY$1)),FIND(CHAR(160),SUBSTITUTE($Z244,\"}\",CHAR(160),HY$1))-FIND(CHAR(160),SUBSTITUTE($Z244,\"{\",CHAR(160),HY$1))+1),\"\")","v":""},{"$f":"IFERROR(MID($Z244,FIND(CHAR(160),SUBSTITUTE($Z244,\"{\",CHAR(160),HZ$1)),FIND(CHAR(160),SUBSTITUTE($Z244,\"}\",CHAR(160),HZ$1))-FIND(CHAR(160),SUBSTITUTE($Z244,\"{\",CHAR(160),HZ$1))+1),\"\")","v":""},{"$f":"IFERROR(MID($Z244,FIND(CHAR(160),SUBSTITUTE($Z244,\"{\",CHAR(160),IA$1)),FIND(CHAR(160),SUBSTITUTE($Z244,\"}\",CHAR(160),IA$1))-FIND(CHAR(160),SUBSTITUTE($Z244,\"{\",CHAR(160),IA$1))+1),\"\")","v":""},{"$f":"IFERROR(MID($Z244,FIND(CHAR(160),SUBSTITUTE($Z244,\"{\",CHAR(160),IB$1)),FIND(CHAR(160),SUBSTITUTE($Z244,\"}\",CHAR(160),IB$1))-FIND(CHAR(160),SUBSTITUTE($Z244,\"{\",CHAR(160),IB$1))+1),\"\")","v":""},{"$f":"IFERROR(MID($Z244,FIND(CHAR(160),SUBSTITUTE($Z244,\"{\",CHAR(160),IC$1)),FIND(CHAR(160),SUBSTITUTE($Z244,\"}\",CHAR(160),IC$1))-FIND(CHAR(160),SUBSTITUTE($Z244,\"{\",CHAR(160),IC$1))+1),\"\")","v":"{Water Heating Fuel}"},{"$f":"IFERROR(MID($Z244,FIND(CHAR(160),SUBSTITUTE($Z244,\"{\",CHAR(160),ID$1)),FIND(CHAR(160),SUBSTITUTE($Z244,\"}\",CHAR(160),ID$1))-FIND(CHAR(160),SUBSTITUTE($Z244,\"{\",CHAR(160),ID$1))+1),\"\")","v":"{Water Heating Fuel}"},{"$f":"IFERROR(MID($AA244,FIND(CHAR(160),SUBSTITUTE($AA244,\"{\",CHAR(160),IE$1)),FIND(CHAR(160),SUBSTITUTE($AA244,\"}\",CHAR(160),IE$1))-FIND(CHAR(160),SUBSTITUTE($AA244,\"{\",CHAR(160),IE$1))+1),\"\")","v":""},{"$f":"IFERROR(MID($AA244,FIND(CHAR(160),SUBSTITUTE($AA244,\"{\",CHAR(160),IF$1)),FIND(CHAR(160),SUBSTITUTE($AA244,\"}\",CHAR(160),IF$1))-FIND(CHAR(160),SUBSTITUTE($AA244,\"{\",CHAR(160),IF$1))+1),\"\")","v":""},{"$f":"IFERROR(MID($AA244,FIND(CHAR(160),SUBSTITUTE($AA244,\"{\",CHAR(160),IG$1)),FIND(CHAR(160),SUBSTITUTE($AA244,\"}\",CHAR(160),IG$1))-FIND(CHAR(160),SUBSTITUTE($AA244,\"{\",CHAR(160),IG$1))+1),\"\")","v":""},{"$f":"IFERROR(MID($AA244,FIND(CHAR(160),SUBSTITUTE($AA244,\"{\",CHAR(160),IH$1)),FIND(CHAR(160),SUBSTITUTE($AA244,\"}\",CHAR(160),IH$1))-FIND(CHAR(160),SUBSTITUTE($AA244,\"{\",CHAR(160),IH$1))+1),\"\")","v":""},{"$f":"IFERROR(MID($AA244,FIND(CHAR(160),SUBSTITUTE($AA244,\"{\",CHAR(160),II$1)),FIND(CHAR(160),SUBSTITUTE($AA244,\"}\",CHAR(160),II$1))-FIND(CHAR(160),SUBSTITUTE($AA244,\"{\",CHAR(160),II$1))+1),\"\")","v":""},{"$f":"IFERROR(MID($AA244,FIND(CHAR(160),SUBSTITUTE($AA244,\"{\",CHAR(160),IJ$1)),FIND(CHAR(160),SUBSTITUTE($AA244,\"}\",CHAR(160),IJ$1))-FIND(CHAR(160),SUBSTITUTE($AA244,\"{\",CHAR(160),IJ$1))+1),\"\")","v":""},{"$f":"IFERROR(MID($AA244,FIND(CHAR(160),SUBSTITUTE($AA244,\"{\",CHAR(160),IK$1)),FIND(CHAR(160),SUBSTITUTE($AA244,\"}\",CHAR(160),IK$1))-FIND(CHAR(160),SUBSTITUTE($AA244,\"{\",CHAR(160),IK$1))+1),\"\")","v":""},{"$f":"IFERROR(MID($AA244,FIND(CHAR(160),SUBSTITUTE($AA244,\"{\",CHAR(160),IL$1)),FIND(CHAR(160),SUBSTITUTE($AA244,\"}\",CHAR(160),IL$1))-FIND(CHAR(160),SUBSTITUTE($AA244,\"{\",CHAR(160),IL$1))+1),\"\")","v":""},{"$f":"IFERROR(MID($AA244,FIND(CHAR(160),SUBSTITUTE($AA244,\"{\",CHAR(160),IM$1)),FIND(CHAR(160),SUBSTITUTE($AA244,\"}\",CHAR(160),IM$1))-FIND(CHAR(160),SUBSTITUTE($AA244,\"{\",CHAR(160),IM$1))+1),\"\")","v":""},{"$f":"IFERROR(MID($AA244,FIND(CHAR(160),SUBSTITUTE($AA244,\"{\",CHAR(160),IN$1)),FIND(CHAR(160),SUBSTITUTE($AA244,\"}\",CHAR(160),IN$1))-FIND(CHAR(160),SUBSTITUTE($AA244,\"{\",CHAR(160),IN$1))+1),\"\")","v":""},{"$f":"IFERROR(MID($AB244,FIND(CHAR(160),SUBSTITUTE($AB244,\"{\",CHAR(160),IO$1)),FIND(CHAR(160),SUBSTITUTE($AB244,\"}\",CHAR(160),IO$1))-FIND(CHAR(160),SUBSTITUTE($AB244,\"{\",CHAR(160),IO$1))+1),\"\")","v":""},{"$f":"IFERROR(MID($AB244,FIND(CHAR(160),SUBSTITUTE($AB244,\"{\",CHAR(160),IP$1)),FIND(CHAR(160),SUBSTITUTE($AB244,\"}\",CHAR(160),IP$1))-FIND(CHAR(160),SUBSTITUTE($AB244,\"{\",CHAR(160),IP$1))+1),\"\")","v":""},{"$f":"IFERROR(MID($AB244,FIND(CHAR(160),SUBSTITUTE($AB244,\"{\",CHAR(160),IQ$1)),FIND(CHAR(160),SUBSTITUTE($AB244,\"}\",CHAR(160),IQ$1))-FIND(CHAR(160),SUBSTITUTE($AB244,\"{\",CHAR(160),IQ$1))+1),\"\")","v":""},{"$f":"IFERROR(MID($AB244,FIND(CHAR(160),SUBSTITUTE($AB244,\"{\",CHAR(160),IR$1)),FIND(CHAR(160),SUBSTITUTE($AB244,\"}\",CHAR(160),IR$1))-FIND(CHAR(160),SUBSTITUTE($AB244,\"{\",CHAR(160),IR$1))+1),\"\")","v":""},{"$f":"IFERROR(MID($AB244,FIND(CHAR(160),SUBSTITUTE($AB244,\"{\",CHAR(160),IS$1)),FIND(CHAR(160),SUBSTITUTE($AB244,\"}\",CHAR(160),IS$1))-FIND(CHAR(160),SUBSTITUTE($AB244,\"{\",CHAR(160),IS$1))+1),\"\")","v":""},{"$f":"IFERROR(MID($AB244,FIND(CHAR(160),SUBSTITUTE($AB244,\"{\",CHAR(160),IT$1)),FIND(CHAR(160),SUBSTITUTE($AB244,\"}\",CHAR(160),IT$1))-FIND(CHAR(160),SUBSTITUTE($AB244,\"{\",CHAR(160),IT$1))+1),\"\")","v":""},{"$f":"IFERROR(MID($AB244,FIND(CHAR(160),SUBSTITUTE($AB244,\"{\",CHAR(160),IU$1)),FIND(CHAR(160),SUBSTITUTE($AB244,\"}\",CHAR(160),IU$1))-FIND(CHAR(160),SUBSTITUTE($AB244,\"{\",CHAR(160),IU$1))+1),\"\")","v":""},{"$f":"IFERROR(MID($AB244,FIND(CHAR(160),SUBSTITUTE($AB244,\"{\",CHAR(160),IV$1)),FIND(CHAR(160),SUBSTITUTE($AB244,\"}\",CHAR(160),IV$1))-FIND(CHAR(160),SUBSTITUTE($AB244,\"{\",CHAR(160),IV$1))+1),\"\")","v":""},{"$f":"IFERROR(MID($AB244,FIND(CHAR(160),SUBSTITUTE($AB244,\"{\",CHAR(160),IW$1)),FIND(CHAR(160),SUBSTITUTE($AB244,\"}\",CHAR(160),IW$1))-FIND(CHAR(160),SUBSTITUTE($AB244,\"{\",CHAR(160),IW$1))+1),\"\")","v":""},{"$f":"IFERROR(MID($AB244,FIND(CHAR(160),SUBSTITUTE($AB244,\"{\",CHAR(160),IX$1)),FIND(CHAR(160),SUBSTITUTE($AB244,\"}\",CHAR(160),IX$1))-FIND(CHAR(160),SUBSTITUTE($AB244,\"{\",CHAR(160),IX$1))+1),\"\")","v":""},null,{"$f":"10-COUNTIF(DU244:ED244,\"\")","v":3}]

{"sheet":"Sheet1","index":2,"n_rows":242,"n_cols":2,"rows_kept":242,"cut":false,"hidden":false,"merged":[]}
["Energy & Water Benefits","BCR_Gross"]
[96.325050634100648,9.6325050634100648]
[15153.447386468284,1.6952948817591111]
[15153.447386468284,1.6952948817591111]
[1283.3707894351962,2.0632970891241098]
[5814.3327134278852,2.9634723310029996]
[2939.7680855847125,1.2638727797010803]
[5602.1154133353957,2.1764240145048159]
[21494.27313154536,2.3018908198858128]
[21494.27313154536,2.3018908198858128]
[2659.8774584992607,4.2763303191306443]
[7790.0685434812995,3.9704732637519364]
[6478.4403816193399,2.7852280230521669]
[12294.660369494402,4.7764803300289049]
[84.058586475599242,1.6811717295119848]
[724.67879452464808,7.8769434187461744]
[3666.4930344966556,3.5910803472053434]
[3666.4930344966556,3.5910803472053434]
[24.158916748129052,3.2271775799743532]
[12.118424499591804,2.5448782827686873]
[54.399436270151995,111.01925769418774]
[533.06757654468333,301.16812234162899]
[715.8666706995698,22.067406618359119]
[715.8666706995698,27.013836630172445]
[59624.528238852508,34.168784091032954]
[89436.792358278763,35.420511825060899]
[119249.05647770502,43.7611216431945]
[23849.811295541003,24.766159185400834]
[44718.396179139381,30.482887647675106]
[11235.328989817561,5.4779761042503949]
[2247.0657979635121,5.6176644949087802]
[3370.5986969452679,6.4201879941814628]
[5617.6644949087804,5.6176644949087802]
[6741.1973938905357,5.1855364568388733]
[8426.4967423631715,5.4788665424988112]
[11249.279827941864,2.1137316474900159]
[21097.699713144928,3.9642427119776262]
[50794.204079937132,8.4657006799895225]
[6109.532076404912,1.1479767148449667]
[15005.620998897546,12.880361372444245]
[1337.2176357324313,33.338759305221423]
[2917.0966053195552,1.3890936215807406]
[2303.4467270632981,14.671635204224829]
[3800.8684960734145,7.6017369921468285]
[4596.2320297567276,9.1924640595134548]
[6739.220802509325,8.4240260031366567]
[6924.2988451830424,2.8553809670857908]
[11995.480581515647,4.9465899305219159]
[2917.0966053195557,3.4318783591994775]
[309197.10492286773,8.9524255713865042]
[12167.842601026068,5.0176670519695126]
[7551.4485883150546,8.3904984314611717]
[14883.648523826349,6.1375870201345766]
[14883.648523826349,6.1375870201345766]
[15623.363675656345,6.4426241961469461]
[15623.363675656345,6.4426241961469461]
[7710.4360134754861,4.8190225084221785]
[55938.469936375739,10.170630897522862]
[200027.24843443462,2.5195502878292118]
[200027.24843443462,2.6241664949491428]
[1163.3225272476886,3.8777417574922954]
[12970.920199936141,2.2127674051841626]
[1592.523903956275,2.3350790380590545]
[2498.2712419320965,3.3310283225761288]
[3403.0751820813093,3.4030751820813094]
[4307.8791222305226,3.4463032977844179]
[930.54403568609303,1.3644340699209576]
[55938.469936375739,2.4685997324084616]
[205027.92964529549,1.5273241568587326]
[205027.92964529549,1.6655510410701493]
[11419.915878218078,5.3364092888869523]
[18505.71779042502,12.33714519361668]
[32925.373092724207,53.799629236477465]
[13617.223621925048,0.68086118109625238]
[3238.5006133243796,215.90004088829198]
[2910.9547547197744,18.5411130873871]
[6924.2988451830424,2.8553809670857908]
[16850.331302600578,3.438959593181063]
[179314.48824580168,19.126878746218846]
[379885.03457186266,30.390802765749012]
[127926.95247709098,25.585390495418196]
[12167.842601026068,5.0176670519695126]
[14883.648523826349,6.1375870201345766]
[14883.648523826349,6.1375870201345766]
[15623.363675656345,6.4426241961469461]
[15623.363675656345,6.4426241961469461]
[91718.477993930879,11.8134238881816]
[40737.035472087802,27.158023648058535]
[13035.851351068097,21.300410704359635]
[29052.799899524962,1.4526399949762481]
[1425.7962415230734,95.053082768204888]
[2634.2426802411069,16.778615797714057]
[6924.2988451830424,2.8553809670857908]
[55443.515624426,7.9140301570761418]
[81295.331891231661,78.243822801955403]
[19189.401832760301,22.365270201352331]
[12167.842601026068,5.0176670519695126]
[14883.648523826349,6.1375870201345766]
[14883.648523826349,6.1375870201345766]
[15623.363675656345,6.4426241961469461]
[15623.363675656345,6.4426241961469461]
[233313.7855125693,16.634899819513038]
[114582.02451092329,54.048124769303442]
[91665.619608738649,149.78042419728538]
[40575.152346759991,2.0287576173379995]
[10025.927144705787,668.3951429803858]
[3660.0716164380806,23.312558066484591]
[6924.2988451830424,2.8553809670857908]
[516433.59977560013,5.4784414920537792]
[243152.28226085735,25.936243441158116]
[2211870.7710437193,139.44463315116121]
[462655.02850497421,92.531005700994839]
[12167.842601026068,5.0176670519695126]
[14883.648523826349,6.1375870201345766]
[14883.648523826349,6.1375870201345766]
[15623.363675656345,6.4426241961469461]
[15623.363675656345,6.4426241961469461]
[31049.889962431662,12.621906488793359]
[38192.822395103743,11.644153169238946]
[69777.217505558481,10.636770961213184]
[90428.552770086564,9.1898935741957892]
[2879.0390927606832,5.8696005968617397]
[2907.3840627316035,4.4455413803235526]
[4361.0760940974051,4.4455413803235526]
[5118.291720463435,3.9130670645744914]
[6397.8646505792949,3.9130670645744923]
[7045.7496784860577,3.5911058504006412]
[8811.2363795319907,3.3682096252033604]
[194.72680459892126,4.2331914043243755]
[389.45360919784252,4.2331914043243755]
[584.18041379676379,3.8945360919784253]
[973.6340229946062,4.2331914043243755]
[834.991992978844,59.642285212774574]
[1639.2211230584676,4.5533920084957433]
[2185.6281640779562,3.4692510540919939]
[2732.0352050974457,2.5822638989578883]
[3278.4422461169352,2.3120185092503069]
[3824.8492871364242,2.6143877560741107]
[4371.2563281559123,1.9914607417566799]
[4917.6633691754032,0.9231581320021407]
[5464.0704101948913,0.72932066340027912]
[1380.5014191344594,2.6548104214124217]
[892.78624478079087,2.9759541492693029]
[1612.1868210420332,7.5118200589042639]
[1764.2793639101913,12.251940027154106]
[1764.2793639101913,12.251940027154106]
[1764.2793639101913,15.079310802651207]
[4816.2441690182877,9.2977686660584702]
[4816.2441690182877,6.5616405572456236]
[4816.2441690182877,4.8945570823356581]
[1496.1581485654083,3.7403953714135207]
[2244.2372228481127,4.2747375673297388]
[2992.3162971308166,4.9871938285513613]
[3740.3953714135209,3.7403953714135207]
[4488.4744456962253,3.4526726505355581]
[5088.2299729301558,4.8925288201251496]
[342.83330731060244,4.2854163413825308]
[3518.1978226172473,1.9709791723345924]
[1344.0413097342739,224.00688495571231]
[3842.5570676131183,4.9263552148886136]
[21.827261379318578,3.5532093306820887]
[47.048362751519406,3.3742173774885034]
[37.665379501863697,2.8069816315774632]
[19.886304479206604,2.3644129539477796]
[23.768218279430545,2.0998697530473849]
[35.164253611804128,3.8873017027609782]
[31.043972072536739,2.6061060862047998]
[46.321921205134267,2.3619421583610301]
[19.159862932821465,3.9220246940900987]
[53.748696248899591,3.5088485009944348]
[50.611365070342998,3.1730686538275981]
[108.25382581029811,4.7101589257322933]
[244.63203429904468,4.4152610000406751]
[337.5552108957026,3.7231678914254482]
[501.93256455425541,4.6083283207621486]
[115.28492147991022,4.3417957671894083]
[215.11395623753799,4.6670991504809569]
[115.28492147991022,3.5855820155416547]
[2394.0759932756564,4.9612365709068209]
[1400.2495154582307,4.3884547049296776]
[2009.9150682028269,4.6061058847008329]
[1914.4336176724578,5.5014071156455495]
[2542.8243359288149,25.651410631784678]
[838.01080921251366,18.217626287228558]
[1825.6664057844043,50.72704656250081]
[2542.8243359288149,25.651410631784678]
[838.01080921251366,18.217626287228558]
[1825.6664057844043,50.72704656250081]
[24223.608835311537,1.3731611416043747]
[17912.72127032248,1.5346421883677521]
[938.61400123918827,1.3762668639870796]
[2167.9719922916593,1.5894222817387531]
[1230.3372474300656,1.8040135592816211]
[15525.337674054226,1.8957612107390411]
[938.61400123918827,1.3762668639870796]
[4251.5576546763896,1.6323351084193611]
[1283.3707894351962,1.513408949805656]
[5814.3327134278852,1.4226407422138208]
[2939.7680855847125,0.78122989252849118]
[5602.1154133353957,1.4931011229571951]
[2659.8774584992607,3.136647946343468]
[53527.050694963618,1.3391725020643548]
[7790.0685434812995,1.9060603238270857]
[6478.4403816193399,1.7216158335422109]
[12294.660369494402,3.2768284566882735]
[66236.331102525204,1.1971641343298949]
[53527.050694963618,1.3391725020643548]
[12.118424499591804,2.5448782827686873]
[24.158916748129052,3.2271775799743532]
[29.310242281174201,59.816820981988165]
[264.76057189408783,149.58224400795922]
[334.05049206750067,10.297487425015435]
[334.05049206750067,12.605678945943421]
[7683.6888616134356,1.8783373615395553]
[12.118424499591804,2.5448782827686873]
[24.158916748129052,3.2271775799743532]
[29.310242281174201,59.816820981988165]
[264.76057189408783,149.58224400795922]
[334.05049206750067,10.297487425015435]
[334.05049206750067,12.605678945943421]
[3224.731046851427,1.7130045401601206]
[2669.5689262443434,4.4492815437405726]
[7838.0632344822261,3.9190316172411133]
[6643.9532293592456,3.321976614679623]
[24.158916748129052,3.2271775799743532]
[12.118424499591804,2.5448782827686873]
[54.399436270151995,111.01925769418774]
[533.06757654468333,301.16812234162899]
[715.8666706995698,22.067406618359119]
[715.8666706995698,27.013836630172445]
[25.58276604821004,3.1594416544057942]
[25.58276604821004,3.1019780556978458]
[29.097582539568048,2.1569518939301702]
[29.097582539568048,2.6284747191932052]
[17.916000027813077,4.0067760592855484]
[17.916000027813077,2.6035303918325345]
[17.381348997126107,3.1734519903396152]
[17.381348997126107,3.0833788459611942]
[66.768773985070041,66.768773985070041]
[606.65945789347234,303.32972894673617]
[2758.5824566974798,11.07864440440755]
[659.54581080154185,27.481075450064242]

{"sheet":"HESP Summary","index":3,"n_rows":19,"n_cols":11,"rows_kept":19,"cut":false,"hidden":false,"merged":[[1,10,2,10],[1,7,2,7],[1,9,2,9],[1,0,2,0],[1,1,2,1],[1,2,2,2],[1,3,1,4],[1,5,2,5],[1,6,2,6],[1,8,2,8]]}
[null,null,"Home Energy Savings Program"]
["Row","Fuel","Measure Name","Adjusted Gross Benefits & Costs",null,"NTG",{"$f":"IF(OR('M&A'!A5=\"Gross\",'M&A'!A8=\"No\"),\"BCR_Gross\",\"BCR_Net\")","v":"BCR_Gross"},"Incentive Per Unit","Net Benefit of Net Savings","Program","Active"]
[null,null,null,"Energy & Water Benefits","Fuel + Measure Cost"]
[{"$f":"ROW(B4)-ROW($B$3)","v":1},{"$f":"RIGHT(J4,LEN(J4)-FIND(\"-\",J4)-1)","v":"Electric"},"Heat Pump Single Zone 1st Unit Tier 2",{"$f":"SUMIFS(Measures!$CL:$CL,Measures!$B:$B,$C4,Measures!$A:$A,$J4)","v":15525.337674054226},{"$f":"SUMIFS(Measures!$CR:$CR,Measures!$B:$B,$C4,Measures!$A:$A,$J4)","v":8189.5006534086897},{"$f":"1-SUMIFS(Measures!$AO:$AO,Measures!$B:$B,$C4,Measures!$A:$A,$J4)+SUMIFS(Measures!$AP:$AP,Measures!$B:$B,$C4,Measures!$A:$A,$J4)","v":0.69000000000000006},{"$f":"D4*IF('M&A'!$A$5=\"Gross\",1,F4)/(MAX(E4,H4)*IF('M&A'!$A$5=\"Gross\",1,F4)+IF(OR('M&A'!$A$5=\"Gross\",'M&A'!$A$8=\"No\"),0,(1-F4)*H4))","v":1.8957612107390411},{"$f":"SUMIFS(Measures!$CV:$CV,Measures!$B:$B,$C4,Measures!$A:$A,$J4)","v":1000},{"$f":"D4*F4-(MAX(E4,H4)*F4)","v":5061.7275442454202},"Home Energy Savings Program - Electric","y"]
[2,"Electric","Heat Pump Single Zone 1st Unit Tier 1",{"$f":"SUMIFS(Measures!$CL:$CL,Measures!$B:$B,$C5,Measures!$A:$A,$J5)","v":1230.3372474300656},{"$f":"SUMIFS(Measures!$CR:$CR,Measures!$B:$B,$C5,Measures!$A:$A,$J5)","v":682},{"$f":"1-SUMIFS(Measures!$AO:$AO,Measures!$B:$B,$C5,Measures!$A:$A,$J5)+SUMIFS(Measures!$AP:$AP,Measures!$B:$B,$C5,Measures!$A:$A,$J5)","v":0.69000000000000006},{"$f":"D5*IF('M&A'!$A$5=\"Gross\",1,F5)/(MAX(E5,H5)*IF('M&A'!$A$5=\"Gross\",1,F5)+IF(OR('M&A'!$A$5=\"Gross\",'M&A'!$A$8=\"No\"),0,(1-F5)*H5))","v":1.8040135592816211},{"$f":"SUMIFS(Measures!$CV:$CV,Measures!$B:$B,$C5,Measures!$A:$A,$J5)","v":500},378.3527007267453,"Home Energy Savings Program - Electric","y"]
[3,"Electric","Heat Pump Single Zone 2nd Unit Tier 2",{"$f":"SUMIFS(Measures!$CL:$CL,Measures!$B:$B,$C6,Measures!$A:$A,$J6)","v":4251.5576546763896},{"$f":"SUMIFS(Measures!$CR:$CR,Measures!$B:$B,$C6,Measures!$A:$A,$J6)","v":2604.5862964947805},{"$f":"1-SUMIFS(Measures!$AO:$AO,Measures!$B:$B,$C6,Measures!$A:$A,$J6)+SUMIFS(Measures!$AP:$AP,Measures!$B:$B,$C6,Measures!$A:$A,$J6)","v":0.69000000000000006},{"$f":"D6*IF('M&A'!$A$5=\"Gross\",1,F6)/(MAX(E6,H6)*IF('M&A'!$A$5=\"Gross\",1,F6)+IF(OR('M&A'!$A$5=\"Gross\",'M&A'!$A$8=\"No\"),0,(1-F6)*H6))","v":1.6323351084193611},{"$f":"SUMIFS(Measures!$CV:$CV,Measures!$B:$B,$C6,Measures!$A:$A,$J6)","v":500},1136.4102371453105,"Home Energy Savings Program - Electric","y"]
[4,"Electric","Heat Pump Multi-zone 2 or more zones",{"$f":"SUMIFS(Measures!$CL:$CL,Measures!$B:$B,$C7,Measures!$A:$A,$J7)","v":2167.9719922916593},{"$f":"SUMIFS(Measures!$CR:$CR,Measures!$B:$B,$C7,Measures!$A:$A,$J7)","v":1364},{"$f":"1-SUMIFS(Measures!$AO:$AO,Measures!$B:$B,$C7,Measures!$A:$A,$J7)+SUMIFS(Measures!$AP:$AP,Measures!$B:$B,$C7,Measures!$A:$A,$J7)","v":0.69000000000000006},{"$f":"D7*IF('M&A'!$A$5=\"Gross\",1,F7)/(MAX(E7,H7)*IF('M&A'!$A$5=\"Gross\",1,F7)+IF(OR('M&A'!$A$5=\"Gross\",'M&A'!$A$8=\"No\"),0,(1-F7)*H7))","v":1.5894222817387531},{"$f":"SUMIFS(Measures!$CV:$CV,Measures!$B:$B,$C7,Measures!$A:$A,$J7)","v":750},554.74067468124485,"Home Energy Savings Program - Electric","y"]
[5,"Electric","Heat Pump Multi-zone add on",{"$f":"SUMIFS(Measures!$CL:$CL,Measures!$B:$B,$C8,Measures!$A:$A,$J8)","v":938.61400123918827},{"$f":"SUMIFS(Measures!$CR:$CR,Measures!$B:$B,$C8,Measures!$A:$A,$J8)","v":682},{"$f":"1-SUMIFS(Measures!$AO:$AO,Measures!$B:$B,$C8,Measures!$A:$A,$J8)+SUMIFS(Measures!$AP:$AP,Measures!$B:$B,$C8,Measures!$A:$A,$J8)","v":0.69000000000000006},{"$f":"D8*IF('M&A'!$A$5=\"Gross\",1,F8)/(MAX(E8,H8)*IF('M&A'!$A$5=\"Gross\",1,F8)+IF(OR('M&A'!$A$5=\"Gross\",'M&A'!$A$8=\"No\"),0,(1-F8)*H8))","v":1.3762668639870796},{"$f":"SUMIFS(Measures!$CV:$CV,Measures!$B:$B,$C8,Measures!$A:$A,$J8)","v":250},177.06366085503987,"Home Energy Savings Program - Electric","y"]
[6,"Electric","Heat Pump Single Zone 2nd Unit Tier 1",{"$f":"SUMIFS(Measures!$CL:$CL,Measures!$B:$B,$C9,Measures!$A:$A,$J9)","v":938.61400123918827},{"$f":"SUMIFS(Measures!$CR:$CR,Measures!$B:$B,$C9,Measures!$A:$A,$J9)","v":682},{"$f":"1-SUMIFS(Measures!$AO:$AO,Measures!$B:$B,$C9,Measures!$A:$A,$J9)+SUMIFS(Measures!$AP:$AP,Measures!$B:$B,$C9,Measures!$A:$A,$J9)","v":0.69000000000000006},{"$f":"D9*IF('M&A'!$A$5=\"Gross\",1,F9)/(MAX(E9,H9)*IF('M&A'!$A$5=\"Gross\",1,F9)+IF(OR('M&A'!$A$5=\"Gross\",'M&A'!$A$8=\"No\"),0,(1-F9)*H9))","v":1.3762668639870796},{"$f":"SUMIFS(Measures!$CV:$CV,Measures!$B:$B,$C9,Measures!$A:$A,$J9)","v":250},177.06366085503987,"Home Energy Savings Program - Electric","y"]
[7,{"$f":"RIGHT(J10,LEN(J10)-FIND(\"-\",J10)-1)","v":"Other Fuels"},"Wall Insulation",{"$f":"SUMIFS(Measures!$CL:$CL,Measures!$B:$B,$C10,Measures!$A:$A,$J10)","v":12294.660369494402},{"$f":"SUMIFS(Measures!$CR:$CR,Measures!$B:$B,$C10,Measures!$A:$A,$J10)","v":3752},{"$f":"1-SUMIFS(Measures!$AO:$AO,Measures!$B:$B,$C10,Measures!$A:$A,$J10)+SUMIFS(Measures!$AP:$AP,Measures!$B:$B,$C10,Measures!$A:$A,$J10)","v":0.72899999999999998},{"$f":"D10*IF('M&A'!$A$5=\"Gross\",1,F10)/(MAX(E10,H10)*IF('M&A'!$A$5=\"Gross\",1,F10)+IF(OR('M&A'!$A$5=\"Gross\",'M&A'!$A$8=\"No\"),0,(1-F10)*H10))","v":3.2768284566882735},{"$f":"SUMIFS(Measures!$CV:$CV,Measures!$B:$B,$C10,Measures!$A:$A,$J10)","v":1000},6227.599409361419,"Home Energy Savings Program - Other Fuels","y"]
[8,"Other Fuels","Air Sealing",{"$f":"SUMIFS(Measures!$CL:$CL,Measures!$B:$B,$C11,Measures!$A:$A,$J11)","v":2659.8774584992607},{"$f":"SUMIFS(Measures!$CR:$CR,Measures!$B:$B,$C11,Measures!$A:$A,$J11)","v":848},{"$f":"1-SUMIFS(Measures!$AO:$AO,Measures!$B:$B,$C11,Measures!$A:$A,$J11)+SUMIFS(Measures!$AP:$AP,Measures!$B:$B,$C11,Measures!$A:$A,$J11)","v":0.72899999999999998},{"$f":"D11*IF('M&A'!$A$5=\"Gross\",1,F11)/(MAX(E11,H11)*IF('M&A'!$A$5=\"Gross\",1,F11)+IF(OR('M&A'!$A$5=\"Gross\",'M&A'!$A$8=\"No\"),0,(1-F11)*H11))","v":3.136647946343468},{"$f":"SUMIFS(Measures!$CV:$CV,Measures!$B:$B,$C11,Measures!$A:$A,$J11)","v":400},1320.858667245961,"Home Energy Savings Program - Other Fuels","y"]
[9,"Other Fuels","Attic Insulation",{"$f":"SUMIFS(Measures!$CL:$CL,Measures!$B:$B,$C12,Measures!$A:$A,$J12)","v":7790.0685434812995},{"$f":"SUMIFS(Measures!$CR:$CR,Measures!$B:$B,$C12,Measures!$A:$A,$J12)","v":4087},{"$f":"1-SUMIFS(Measures!$AO:$AO,Measures!$B:$B,$C12,Measures!$A:$A,$J12)+SUMIFS(Measures!$AP:$AP,Measures!$B:$B,$C12,Measures!$A:$A,$J12)","v":0.72899999999999998},{"$f":"D12*IF('M&A'!$A$5=\"Gross\",1,F12)/(MAX(E12,H12)*IF('M&A'!$A$5=\"Gross\",1,F12)+IF(OR('M&A'!$A$5=\"Gross\",'M&A'!$A$8=\"No\"),0,(1-F12)*H12))","v":1.9060603238270857},{"$f":"SUMIFS(Measures!$CV:$CV,Measures!$B:$B,$C12,Measures!$A:$A,$J12)","v":1000},2699.5369681978673,"Home Energy Savings Program - Other Fuels","y"]
[10,"Other Fuels","Basement Insulation",{"$f":"SUMIFS(Measures!$CL:$CL,Measures!$B:$B,$C13,Measures!$A:$A,$J13)","v":6478.4403816193399},{"$f":"SUMIFS(Measures!$CR:$CR,Measures!$B:$B,$C13,Measures!$A:$A,$J13)","v":3763},{"$f":"1-SUMIFS(Measures!$AO:$AO,Measures!$B:$B,$C13,Measures!$A:$A,$J13)+SUMIFS(Measures!$AP:$AP,Measures!$B:$B,$C13,Measures!$A:$A,$J13)","v":0.72899999999999998},{"$f":"D13*IF('M&A'!$A$5=\"Gross\",1,F13)/(MAX(E13,H13)*IF('M&A'!$A$5=\"Gross\",1,F13)+IF(OR('M&A'!$A$5=\"Gross\",'M&A'!$A$8=\"No\"),0,(1-F13)*H13))","v":1.7216158335422109},{"$f":"SUMIFS(Measures!$CV:$CV,Measures!$B:$B,$C13,Measures!$A:$A,$J13)","v":1000},1979.5560382004987,"Home Energy Savings Program - Other Fuels","y"]
[11,"Other Fuels","Geothermal Heat Pump",{"$f":"SUMIFS(Measures!$CL:$CL,Measures!$B:$B,$C14,Measures!$A:$A,$J14)","v":66236.331102525204},{"$f":"SUMIFS(Measures!$CR:$CR,Measures!$B:$B,$C14,Measures!$A:$A,$J14)","v":55327.694175870522},{"$f":"1-SUMIFS(Measures!$AO:$AO,Measures!$B:$B,$C14,Measures!$A:$A,$J14)+SUMIFS(Measures!$AP:$AP,Measures!$B:$B,$C14,Measures!$A:$A,$J14)","v":0.71},{"$f":"D14*IF('M&A'!$A$5=\"Gross\",1,F14)/(MAX(E14,H14)*IF('M&A'!$A$5=\"Gross\",1,F14)+IF(OR('M&A'!$A$5=\"Gross\",'M&A'!$A$8=\"No\"),0,(1-F14)*H14))","v":1.1971641343298949},{"$f":"SUMIFS(Measures!$CV:$CV,Measures!$B:$B,$C14,Measures!$A:$A,$J14)","v":3000},7745.1322179248236,"Home Energy Savings Program - Other Fuels","y"]
[12,"Other Fuels","Pellet Boiler",{"$f":"SUMIFS(Measures!$CL:$CL,Measures!$B:$B,$C15,Measures!$A:$A,$J15)","v":53527.050694963618},{"$f":"SUMIFS(Measures!$CR:$CR,Measures!$B:$B,$C15,Measures!$A:$A,$J15)","v":39970.243275194836},{"$f":"1-SUMIFS(Measures!$AO:$AO,Measures!$B:$B,$C15,Measures!$A:$A,$J15)+SUMIFS(Measures!$AP:$AP,Measures!$B:$B,$C15,Measures!$A:$A,$J15)","v":0.71},{"$f":"D15*IF('M&A'!$A$5=\"Gross\",1,F15)/(MAX(E15,H15)*IF('M&A'!$A$5=\"Gross\",1,F15)+IF(OR('M&A'!$A$5=\"Gross\",'M&A'!$A$8=\"No\"),0,(1-F15)*H15))","v":1.3391725020643548},{"$f":"SUMIFS(Measures!$CV:$CV,Measures!$B:$B,$C15,Measures!$A:$A,$J15)","v":5333.33},9625.3332680358362,"Home Energy Savings Program - Other Fuels","y"]
[{"$f":"ROW(B16)-ROW($B$3)","v":13},"Natural Gas","Wall Insulation",{"$f":"SUMIFS(Measures!$CL:$CL,Measures!$B:$B,$C16,Measures!$A:$A,$J16)","v":5602.1154133353957},{"$f":"SUMIFS(Measures!$CR:$CR,Measures!$B:$B,$C16,Measures!$A:$A,$J16)","v":3752},{"$f":"1-SUMIFS(Measures!$AO:$AO,Measures!$B:$B,$C16,Measures!$A:$A,$J16)+SUMIFS(Measures!$AP:$AP,Measures!$B:$B,$C16,Measures!$A:$A,$J16)","v":0.72899999999999998},{"$f":"D16*IF('M&A'!$A$5=\"Gross\",1,F16)/(MAX(E16,H16)*IF('M&A'!$A$5=\"Gross\",1,F16)+IF(OR('M&A'!$A$5=\"Gross\",'M&A'!$A$8=\"No\"),0,(1-F16)*H16))","v":1.4931011229571951},{"$f":"SUMIFS(Measures!$CV:$CV,Measures!$B:$B,$C16,Measures!$A:$A,$J16)","v":1000},{"$f":"D16*F16-(MAX(E16,H16)*F16)","v":1348.7341363215032},"Home Energy Savings Program - Natural Gas","y"]
[{"$f":"ROW(B17)-ROW($B$3)","v":14},"Natural Gas","Air Sealing",{"$f":"SUMIFS(Measures!$CL:$CL,Measures!$B:$B,$C17,Measures!$A:$A,$J17)","v":1283.3707894351962},{"$f":"SUMIFS(Measures!$CR:$CR,Measures!$B:$B,$C17,Measures!$A:$A,$J17)","v":848},{"$f":"1-SUMIFS(Measures!$AO:$AO,Measures!$B:$B,$C17,Measures!$A:$A,$J17)+SUMIFS(Measures!$AP:$AP,Measures!$B:$B,$C17,Measures!$A:$A,$J17)","v":0.72899999999999998},{"$f":"D17*IF('M&A'!$A$5=\"Gross\",1,F17)/(MAX(E17,H17)*IF('M&A'!$A$5=\"Gross\",1,F17)+IF(OR('M&A'!$A$5=\"Gross\",'M&A'!$A$8=\"No\"),0,(1-F17)*H17))","v":1.513408949805656},{"$f":"SUMIFS(Measures!$CV:$CV,Measures!$B:$B,$C17,Measures!$A:$A,$J17)","v":400},{"$f":"D17*F17-(MAX(E17,H17)*F17)","v":317.38530549825805},"Home Energy Savings Program - Natural Gas","y"]
[15,"Natural Gas","Attic Insulation",{"$f":"SUMIFS(Measures!$CL:$CL,Measures!$B:$B,$C18,Measures!$A:$A,$J18)","v":5814.3327134278852},{"$f":"SUMIFS(Measures!$CR:$CR,Measures!$B:$B,$C18,Measures!$A:$A,$J18)","v":4087},{"$f":"1-SUMIFS(Measures!$AO:$AO,Measures!$B:$B,$C18,Measures!$A:$A,$J18)+SUMIFS(Measures!$AP:$AP,Measures!$B:$B,$C18,Measures!$A:$A,$J18)","v":0.72899999999999998},{"$f":"D18*IF('M&A'!$A$5=\"Gross\",1,F18)/(MAX(E18,H18)*IF('M&A'!$A$5=\"Gross\",1,F18)+IF(OR('M&A'!$A$5=\"Gross\",'M&A'!$A$8=\"No\"),0,(1-F18)*H18))","v":1.4226407422138208},{"$f":"SUMIFS(Measures!$CV:$CV,Measures!$B:$B,$C18,Measures!$A:$A,$J18)","v":1000},1259.225548088928,"Home Energy Savings Program - Natural Gas","y"]
[16,"Natural Gas","Basement Insulation",{"$f":"SUMIFS(Measures!$CL:$CL,Measures!$B:$B,$C19,Measures!$A:$A,$J19)","v":2939.7680855847125},{"$f":"SUMIFS(Measures!$CR:$CR,Measures!$B:$B,$C19,Measures!$A:$A,$J19)","v":3763},{"$f":"1-SUMIFS(Measures!$AO:$AO,Measures!$B:$B,$C19,Measures!$A:$A,$J19)+SUMIFS(Measures!$AP:$AP,Measures!$B:$B,$C19,Measures!$A:$A,$J19)","v":0.72899999999999998},{"$f":"D19*IF('M&A'!$A$5=\"Gross\",1,F19)/(MAX(E19,H19)*IF('M&A'!$A$5=\"Gross\",1,F19)+IF(OR('M&A'!$A$5=\"Gross\",'M&A'!$A$8=\"No\"),0,(1-F19)*H19))","v":0.78122989252849118},{"$f":"SUMIFS(Measures!$CV:$CV,Measures!$B:$B,$C19,Measures!$A:$A,$J19)","v":1000},-600.1360656087445,"Home Energy Savings Program - Natural Gas","y"]

{"sheet":"RIP Summary","index":4,"n_rows":18,"n_cols":10,"rows_kept":18,"cut":false,"hidden":false,"merged":[[1,7,2,7],[1,9,2,9],[1,10,2,10],[1,8,2,8],[1,0,2,0],[1,1,2,1],[1,2,2,2],[1,3,1,4],[1,5,2,5],[1,6,2,6]]}
[null,null,"Home Energy Savings Program"]
["Row","Fuel","Measure Name","Adjusted Gross Benefits & Costs",null,"NTG",{"$f":"IF(OR('M&A'!A5=\"Gross\",'M&A'!A8=\"No\"),\"BCR_Gross\",\"BCR_Net\")","v":"BCR_Gross"},"Incentive Per Unit","Net Benefit of Net Savings","Program"]
[null,null,null,"Energy & Water Benefits","Fuel + Measure Cost"]
[{"$f":"ROW(B4)-ROW($B$3)","v":1},"Electric","Low Flow Kitchen Aerator",{"$f":"SUMIFS(Measures!$CL:$CL,Measures!$B:$B,$C4,Measures!$A:$A,$J4)","v":606.65945789347234},{"$f":"SUMIFS(Measures!$CR:$CR,Measures!$B:$B,$C4,Measures!$A:$A,$J4)","v":2},{"$f":"1-SUMIFS(Measures!$AO:$AO,Measures!$B:$B,$C4,Measures!$A:$A,$J4)+SUMIFS(Measures!$AP:$AP,Measures!$B:$B,$C4,Measures!$A:$A,$J4)","v":0.75},{"$f":"D4*IF('M&A'!$A$5=\"Gross\",1,F4)/(MAX(E4,H4)*IF('M&A'!$A$5=\"Gross\",1,F4)+IF(OR('M&A'!$A$5=\"Gross\",'M&A'!$A$8=\"No\"),0,(1-F4)*H4))","v":303.32972894673617},{"$f":"SUMIFS(Measures!$CV:$CV,Measures!$B:$B,$C4,Measures!$A:$A,$J4)","v":2},{"$f":"D4*F4-(MAX(E4,H4)*F4)","v":453.49459342010425},"Retail Other - Electric"]
[2,"Electric","Low Flow Bathroom Aerator",{"$f":"SUMIFS(Measures!$CL:$CL,Measures!$B:$B,$C5,Measures!$A:$A,$J5)","v":66.768773985070041},{"$f":"SUMIFS(Measures!$CR:$CR,Measures!$B:$B,$C5,Measures!$A:$A,$J5)","v":1},{"$f":"1-SUMIFS(Measures!$AO:$AO,Measures!$B:$B,$C5,Measures!$A:$A,$J5)+SUMIFS(Measures!$AP:$AP,Measures!$B:$B,$C5,Measures!$A:$A,$J5)","v":0.75},{"$f":"D5*IF('M&A'!$A$5=\"Gross\",1,F5)/(MAX(E5,H5)*IF('M&A'!$A$5=\"Gross\",1,F5)+IF(OR('M&A'!$A$5=\"Gross\",'M&A'!$A$8=\"No\"),0,(1-F5)*H5))","v":66.768773985070041},{"$f":"SUMIFS(Measures!$CV:$CV,Measures!$B:$B,$C5,Measures!$A:$A,$J5)","v":1},49.326580488802534,"Retail Other - Electric"]
[3,"Electric","Thermostatic Low-Flow Shower Valve",{"$f":"SUMIFS(Measures!$CL:$CL,Measures!$B:$B,$C6,Measures!$A:$A,$J6)","v":659.54581080154185},{"$f":"SUMIFS(Measures!$CR:$CR,Measures!$B:$B,$C6,Measures!$A:$A,$J6)","v":24},{"$f":"1-SUMIFS(Measures!$AO:$AO,Measures!$B:$B,$C6,Measures!$A:$A,$J6)+SUMIFS(Measures!$AP:$AP,Measures!$B:$B,$C6,Measures!$A:$A,$J6)","v":0.75},{"$f":"D6*IF('M&A'!$A$5=\"Gross\",1,F6)/(MAX(E6,H6)*IF('M&A'!$A$5=\"Gross\",1,F6)+IF(OR('M&A'!$A$5=\"Gross\",'M&A'!$A$8=\"No\"),0,(1-F6)*H6))","v":27.481075450064242},{"$f":"SUMIFS(Measures!$CV:$CV,Measures!$B:$B,$C6,Measures!$A:$A,$J6)","v":23},476.65935810115639,"Retail Other - Electric"]
[4,"Electric","Room Air Purifier",{"$f":"SUMIFS(Measures!$CL:$CL,Measures!$B:$B,$C7,Measures!$A:$A,$J7)","v":84.058586475599242},{"$f":"SUMIFS(Measures!$CR:$CR,Measures!$B:$B,$C7,Measures!$A:$A,$J7)","v":24.82},{"$f":"1-SUMIFS(Measures!$AO:$AO,Measures!$B:$B,$C7,Measures!$A:$A,$J7)+SUMIFS(Measures!$AP:$AP,Measures!$B:$B,$C7,Measures!$A:$A,$J7)","v":0.378},{"$f":"D7*IF('M&A'!$A$5=\"Gross\",1,F7)/(MAX(E7,H7)*IF('M&A'!$A$5=\"Gross\",1,F7)+IF(OR('M&A'!$A$5=\"Gross\",'M&A'!$A$8=\"No\"),0,(1-F7)*H7))","v":1.6811717295119848},{"$f":"SUMIFS(Measures!$CV:$CV,Measures!$B:$B,$C7,Measures!$A:$A,$J7)","v":50},12.874145687776515,"Appliance Rebate"]
[5,"Electric","Smart Thermostat",{"$f":"SUMIFS(Measures!$CL:$CL,Measures!$B:$B,$C8,Measures!$A:$A,$J8)","v":2758.5824566974798},{"$f":"SUMIFS(Measures!$CR:$CR,Measures!$B:$B,$C8,Measures!$A:$A,$J8)","v":249},{"$f":"1-SUMIFS(Measures!$AO:$AO,Measures!$B:$B,$C8,Measures!$A:$A,$J8)+SUMIFS(Measures!$AP:$AP,Measures!$B:$B,$C8,Measures!$A:$A,$J8)","v":0.75},{"$f":"D8*IF('M&A'!$A$5=\"Gross\",1,F8)/(MAX(E8,H8)*IF('M&A'!$A$5=\"Gross\",1,F8)+IF(OR('M&A'!$A$5=\"Gross\",'M&A'!$A$8=\"No\"),0,(1-F8)*H8))","v":11.07864440440755},{"$f":"SUMIFS(Measures!$CV:$CV,Measures!$B:$B,$C8,Measures!$A:$A,$J8)","v":100},1882.1868425231096,"Retail Other - Electric"]
[6,"Electric","Clothes Washer",{"$f":"SUMIFS(Measures!$CL:$CL,Measures!$B:$B,$C9,Measures!$A:$A,$J9)","v":724.67879452464808},{"$f":"SUMIFS(Measures!$CR:$CR,Measures!$B:$B,$C9,Measures!$A:$A,$J9)","v":92},{"$f":"1-SUMIFS(Measures!$AO:$AO,Measures!$B:$B,$C9,Measures!$A:$A,$J9)+SUMIFS(Measures!$AP:$AP,Measures!$B:$B,$C9,Measures!$A:$A,$J9)","v":0.46600000000000008},{"$f":"D9*IF('M&A'!$A$5=\"Gross\",1,F9)/(MAX(E9,H9)*IF('M&A'!$A$5=\"Gross\",1,F9)+IF(OR('M&A'!$A$5=\"Gross\",'M&A'!$A$8=\"No\"),0,(1-F9)*H9))","v":7.8769434187461744},{"$f":"SUMIFS(Measures!$CV:$CV,Measures!$B:$B,$C9,Measures!$A:$A,$J9)","v":50},294.82831824848603,"Appliance Rebate"]
[7,"Electric","LED Specialty Bulb Reflector Long Life",{"$f":"SUMIFS(Measures!$CL:$CL,Measures!$B:$B,$C10,Measures!$A:$A,$J10)","v":17.916000027813077},{"$f":"SUMIFS(Measures!$CR:$CR,Measures!$B:$B,$C10,Measures!$A:$A,$J10)","v":3.4714253461441746},{"$f":"1-SUMIFS(Measures!$AO:$AO,Measures!$B:$B,$C10,Measures!$A:$A,$J10)+SUMIFS(Measures!$AP:$AP,Measures!$B:$B,$C10,Measures!$A:$A,$J10)","v":0.23699999999999999},{"$f":"D10*IF('M&A'!$A$5=\"Gross\",1,F10)/(MAX(E10,H10)*IF('M&A'!$A$5=\"Gross\",1,F10)+IF(OR('M&A'!$A$5=\"Gross\",'M&A'!$A$8=\"No\"),0,(1-F10)*H10))","v":5.160992457381508},{"$f":"SUMIFS(Measures!$CV:$CV,Measures!$B:$B,$C10,Measures!$A:$A,$J10)","v":1},3.4233641995555293,"Retail Lighting"]
[8,"Electric","LED Standard Bulb Long Life",{"$f":"SUMIFS(Measures!$CL:$CL,Measures!$B:$B,$C11,Measures!$A:$A,$J11)","v":17.381348997126107},{"$f":"SUMIFS(Measures!$CR:$CR,Measures!$B:$B,$C11,Measures!$A:$A,$J11)","v":4.4771110607745479},{"$f":"1-SUMIFS(Measures!$AO:$AO,Measures!$B:$B,$C11,Measures!$A:$A,$J11)+SUMIFS(Measures!$AP:$AP,Measures!$B:$B,$C11,Measures!$A:$A,$J11)","v":0.23699999999999999},{"$f":"D11*IF('M&A'!$A$5=\"Gross\",1,F11)/(MAX(E11,H11)*IF('M&A'!$A$5=\"Gross\",1,F11)+IF(OR('M&A'!$A$5=\"Gross\",'M&A'!$A$8=\"No\"),0,(1-F11)*H11))","v":3.8822688919669335},{"$f":"SUMIFS(Measures!$CV:$CV,Measures!$B:$B,$C11,Measures!$A:$A,$J11)","v":2.09},3.0583043909153194,"Retail Lighting"]
[9,"Electric","Heat Pump Water Heater",{"$f":"SUMIFS(Measures!$CL:$CL,Measures!$B:$B,$C12,Measures!$A:$A,$J12)","v":3666.4930344966556},{"$f":"SUMIFS(Measures!$CR:$CR,Measures!$B:$B,$C12,Measures!$A:$A,$J12)","v":1021},{"$f":"1-SUMIFS(Measures!$AO:$AO,Measures!$B:$B,$C12,Measures!$A:$A,$J12)+SUMIFS(Measures!$AP:$AP,Measures!$B:$B,$C12,Measures!$A:$A,$J12)","v":0.92},{"$f":"D12*IF('M&A'!$A$5=\"Gross\",1,F12)/(MAX(E12,H12)*IF('M&A'!$A$5=\"Gross\",1,F12)+IF(OR('M&A'!$A$5=\"Gross\",'M&A'!$A$8=\"No\"),0,(1-F12)*H12))","v":3.5910803472053434},{"$f":"SUMIFS(Measures!$CV:$CV,Measures!$B:$B,$C12,Measures!$A:$A,$J12)","v":750},2433.8535917369231,"Appliance Rebate"]
[10,"Electric","LED Specialty Bulb Reflector Short Life",{"$f":"SUMIFS(Measures!$CL:$CL,Measures!$B:$B,$C13,Measures!$A:$A,$J13)","v":17.916000027813077},{"$f":"SUMIFS(Measures!$CR:$CR,Measures!$B:$B,$C13,Measures!$A:$A,$J13)","v":5.8814253461441748},{"$f":"1-SUMIFS(Measures!$AO:$AO,Measures!$B:$B,$C13,Measures!$A:$A,$J13)+SUMIFS(Measures!$AP:$AP,Measures!$B:$B,$C13,Measures!$A:$A,$J13)","v":0.23699999999999999},{"$f":"D13*IF('M&A'!$A$5=\"Gross\",1,F13)/(MAX(E13,H13)*IF('M&A'!$A$5=\"Gross\",1,F13)+IF(OR('M&A'!$A$5=\"Gross\",'M&A'!$A$8=\"No\"),0,(1-F13)*H13))","v":3.0462003635834116},{"$f":"SUMIFS(Measures!$CV:$CV,Measures!$B:$B,$C13,Measures!$A:$A,$J13)","v":3.41},2.8521941995555293,"Retail Lighting"]
[11,"Electric","LED Standard Bulb Short Life",{"$f":"SUMIFS(Measures!$CL:$CL,Measures!$B:$B,$C14,Measures!$A:$A,$J14)","v":17.381348997126107},{"$f":"SUMIFS(Measures!$CR:$CR,Measures!$B:$B,$C14,Measures!$A:$A,$J14)","v":4.6371110607745472},{"$f":"1-SUMIFS(Measures!$AO:$AO,Measures!$B:$B,$C14,Measures!$A:$A,$J14)+SUMIFS(Measures!$AP:$AP,Measures!$B:$B,$C14,Measures!$A:$A,$J14)","v":0.23699999999999999},{"$f":"D14*IF('M&A'!$A$5=\"Gross\",1,F14)/(MAX(E14,H14)*IF('M&A'!$A$5=\"Gross\",1,F14)+IF(OR('M&A'!$A$5=\"Gross\",'M&A'!$A$8=\"No\"),0,(1-F14)*H14))","v":3.7483141484695994},{"$f":"SUMIFS(Measures!$CV:$CV,Measures!$B:$B,$C14,Measures!$A:$A,$J14)","v":2.25},3.0203843909153192,"Retail Lighting"]
[12,"Electric","LED Specialty Bulb Candelabra Short Life",{"$f":"SUMIFS(Measures!$CL:$CL,Measures!$B:$B,$C15,Measures!$A:$A,$J15)","v":25.58276604821004},{"$f":"SUMIFS(Measures!$CR:$CR,Measures!$B:$B,$C15,Measures!$A:$A,$J15)","v":7.2472427557050327},{"$f":"1-SUMIFS(Measures!$AO:$AO,Measures!$B:$B,$C15,Measures!$A:$A,$J15)+SUMIFS(Measures!$AP:$AP,Measures!$B:$B,$C15,Measures!$A:$A,$J15)","v":0.23699999999999999},{"$f":"D15*IF('M&A'!$A$5=\"Gross\",1,F15)/(MAX(E15,H15)*IF('M&A'!$A$5=\"Gross\",1,F15)+IF(OR('M&A'!$A$5=\"Gross\",'M&A'!$A$8=\"No\"),0,(1-F15)*H15))","v":3.5299998786533369},{"$f":"SUMIFS(Measures!$CV:$CV,Measures!$B:$B,$C15,Measures!$A:$A,$J15)","v":3.32},4.3455190203236862,"Retail Lighting"]
[13,"Electric","LED Specialty Bulb Other (Globe & 3-Way) Short Life",{"$f":"SUMIFS(Measures!$CL:$CL,Measures!$B:$B,$C16,Measures!$A:$A,$J16)","v":29.097582539568048},{"$f":"SUMIFS(Measures!$CR:$CR,Measures!$B:$B,$C16,Measures!$A:$A,$J16)","v":10.070139776158616},{"$f":"1-SUMIFS(Measures!$AO:$AO,Measures!$B:$B,$C16,Measures!$A:$A,$J16)+SUMIFS(Measures!$AP:$AP,Measures!$B:$B,$C16,Measures!$A:$A,$J16)","v":0.23699999999999999},{"$f":"D16*IF('M&A'!$A$5=\"Gross\",1,F16)/(MAX(E16,H16)*IF('M&A'!$A$5=\"Gross\",1,F16)+IF(OR('M&A'!$A$5=\"Gross\",'M&A'!$A$8=\"No\"),0,(1-F16)*H16))","v":2.8894914257751938},{"$f":"SUMIFS(Measures!$CV:$CV,Measures!$B:$B,$C16,Measures!$A:$A,$J16)","v":5.32},4.5095039349280359,"Retail Lighting"]
[14,"Electric","LED Specialty Bulb Candelabra Long Life",{"$f":"SUMIFS(Measures!$CL:$CL,Measures!$B:$B,$C17,Measures!$A:$A,$J17)","v":25.58276604821004},{"$f":"SUMIFS(Measures!$CR:$CR,Measures!$B:$B,$C17,Measures!$A:$A,$J17)","v":7.0972427557050324},{"$f":"1-SUMIFS(Measures!$AO:$AO,Measures!$B:$B,$C17,Measures!$A:$A,$J17)+SUMIFS(Measures!$AP:$AP,Measures!$B:$B,$C17,Measures!$A:$A,$J17)","v":0.23699999999999999},{"$f":"D17*IF('M&A'!$A$5=\"Gross\",1,F17)/(MAX(E17,H17)*IF('M&A'!$A$5=\"Gross\",1,F17)+IF(OR('M&A'!$A$5=\"Gross\",'M&A'!$A$8=\"No\"),0,(1-F17)*H17))","v":3.6046063138597937},{"$f":"SUMIFS(Measures!$CV:$CV,Measures!$B:$B,$C17,Measures!$A:$A,$J17)","v":3.17},4.3810690203236859,"Retail Lighting"]
[15,"Electric","LED Specialty Bulb Other (Globe & 3-Way) Long Life",{"$f":"SUMIFS(Measures!$CL:$CL,Measures!$B:$B,$C18,Measures!$A:$A,$J18)","v":29.097582539568048},{"$f":"SUMIFS(Measures!$CR:$CR,Measures!$B:$B,$C18,Measures!$A:$A,$J18)","v":12.490139776158616},{"$f":"1-SUMIFS(Measures!$AO:$AO,Measures!$B:$B,$C18,Measures!$A:$A,$J18)+SUMIFS(Measures!$AP:$AP,Measures!$B:$B,$C18,Measures!$A:$A,$J18)","v":0.23699999999999999},{"$f":"D18*IF('M&A'!$A$5=\"Gross\",1,F18)/(MAX(E18,H18)*IF('M&A'!$A$5=\"Gross\",1,F18)+IF(OR('M&A'!$A$5=\"Gross\",'M&A'!$A$8=\"No\"),0,(1-F18)*H18))","v":2.3296442682819283},{"$f":"SUMIFS(Measures!$CV:$CV,Measures!$B:$B,$C18,Measures!$A:$A,$J18)","v":7.74},3.9359639349280355,"Retail Lighting"]

{"sheet":"DIP non-lighting Summary","index":5,"n_rows":7,"n_cols":10,"rows_kept":7,"cut":false,"hidden":false,"merged":[[1,7,2,7],[1,9,2,9],[1,10,2,10],[1,8,2,8],[1,0,2,0],[1,1,2,1],[1,2,2,2],[1,3,1,4],[1,5,2,5],[1,6,2,6]]}
[null,null,"Home Energy Savings Program"]
["Row","Fuel","Measure Name","Adjusted Gross Benefits & Costs",null,"NTG",{"$f":"IF(OR('M&A'!A5=\"Gross\",'M&A'!A8=\"No\"),\"BCR_Gross\",\"BCR_Net\")","v":"BCR_Gross"},"Incentive Per Unit","Net Benefit of Net Savings","Program"]
[null,null,null,"Energy & Water Benefits","Fuel + Measure Cost"]
[{"$f":"ROW(B4)-ROW($B$3)","v":1},"Electric","Heat Pump Water Heater",{"$f":"SUMIFS(Measures!$CL:$CL,Measures!$B:$B,$C4,Measures!$A:$A,$J4)","v":5088.2299729301558},{"$f":"SUMIFS(Measures!$CR:$CR,Measures!$B:$B,$C4,Measures!$A:$A,$J4)","v":1040},{"$f":"1-SUMIFS(Measures!$AO:$AO,Measures!$B:$B,$C4,Measures!$A:$A,$J4)+SUMIFS(Measures!$AP:$AP,Measures!$B:$B,$C4,Measures!$A:$A,$J4)","v":0.77},{"$f":"D4*IF('M&A'!$A$5=\"Gross\",1,F4)/(MAX(E4,H4)*IF('M&A'!$A$5=\"Gross\",1,F4)+IF(OR('M&A'!$A$5=\"Gross\",'M&A'!$A$8=\"No\"),0,(1-F4)*H4))","v":4.8925288201251496},{"$f":"SUMIFS(Measures!$CV:$CV,Measures!$B:$B,$C4,Measures!$A:$A,$J4)","v":51},{"$f":"D4*F4-(MAX(E4,H4)*F4)","v":3117.1370791562199},"Distributor Domestic Hot Water - Electric"]
[2,"Electric","ECMHW Electronically Commuted Pump",{"$f":"SUMIFS(Measures!$CL:$CL,Measures!$B:$B,$C5,Measures!$A:$A,$J5)","v":342.83330731060244},{"$f":"SUMIFS(Measures!$CR:$CR,Measures!$B:$B,$C5,Measures!$A:$A,$J5)","v":56.84},{"$f":"1-SUMIFS(Measures!$AO:$AO,Measures!$B:$B,$C5,Measures!$A:$A,$J5)+SUMIFS(Measures!$AP:$AP,Measures!$B:$B,$C5,Measures!$A:$A,$J5)","v":0.75},{"$f":"D5*IF('M&A'!$A$5=\"Gross\",1,F5)/(MAX(E5,H5)*IF('M&A'!$A$5=\"Gross\",1,F5)+IF(OR('M&A'!$A$5=\"Gross\",'M&A'!$A$8=\"No\"),0,(1-F5)*H5))","v":4.2854163413825308},{"$f":"SUMIFS(Measures!$CV:$CV,Measures!$B:$B,$C5,Measures!$A:$A,$J5)","v":80},197.12498048295186,"Distributor HVAC – Electric"]
[3,"Natural Gas","Tankless Water Heater",{"$f":"SUMIFS(Measures!$CL:$CL,Measures!$B:$B,$C6,Measures!$A:$A,$J6)","v":3842.5570676131183},{"$f":"SUMIFS(Measures!$CR:$CR,Measures!$B:$B,$C6,Measures!$A:$A,$J6)","v":780},{"$f":"1-SUMIFS(Measures!$AO:$AO,Measures!$B:$B,$C6,Measures!$A:$A,$J6)+SUMIFS(Measures!$AP:$AP,Measures!$B:$B,$C6,Measures!$A:$A,$J6)","v":0.75},{"$f":"D6*IF('M&A'!$A$5=\"Gross\",1,F6)/(MAX(E6,H6)*IF('M&A'!$A$5=\"Gross\",1,F6)+IF(OR('M&A'!$A$5=\"Gross\",'M&A'!$A$8=\"No\"),0,(1-F6)*H6))","v":4.9263552148886136},{"$f":"SUMIFS(Measures!$CV:$CV,Measures!$B:$B,$C6,Measures!$A:$A,$J6)","v":320},2296.917800709839,"Distributor HVAC – Natural Gas"]
[4,"Natural Gas","BOILM Hot Water Boiler",{"$f":"SUMIFS(Measures!$CL:$CL,Measures!$B:$B,$C7,Measures!$A:$A,$J7)","v":3518.1978226172473},{"$f":"SUMIFS(Measures!$CR:$CR,Measures!$B:$B,$C7,Measures!$A:$A,$J7)","v":1785},{"$f":"1-SUMIFS(Measures!$AO:$AO,Measures!$B:$B,$C7,Measures!$A:$A,$J7)+SUMIFS(Measures!$AP:$AP,Measures!$B:$B,$C7,Measures!$A:$A,$J7)","v":0.75},{"$f":"D7*IF('M&A'!$A$5=\"Gross\",1,F7)/(MAX(E7,H7)*IF('M&A'!$A$5=\"Gross\",1,F7)+IF(OR('M&A'!$A$5=\"Gross\",'M&A'!$A$8=\"No\"),0,(1-F7)*H7))","v":1.9709791723345924},{"$f":"SUMIFS(Measures!$CV:$CV,Measures!$B:$B,$C7,Measures!$A:$A,$J7)","v":350},1299.8983669629356,"Distributor HVAC – Natural Gas"]

{"sheet":"LI Summary","index":6,"n_rows":28,"n_cols":10,"rows_kept":28,"cut":false,"hidden":false,"merged":[[1,3,1,4]]}
[null,null,"Low Income Initiatives"]
[null,null,null,"Adjusted Gross Benefits & Costs"]
["Row","Fuel","Measure Name","Energy & Water Benefits","Fuel + Measure Cost","NTG",{"$f":"IF(OR('M&A'!A5=\"Gross\",'M&A'!A8=\"No\"),\"BCR_Gross\",\"BCR_Net\")","v":"BCR_Gross"},"Incentive Per Unit","Net Benefit of Net Savings","Program"]
[{"$f":"ROW(B4)-ROW(A$3)","v":1},"Electric","Low Flow Wall Mounted Shower Head Direct Install",{"$f":"SUMIFS(Measures!$CL:$CL,Measures!$B:$B,$C4,Measures!$A:$A,$J4)","v":715.8666706995698},{"$f":"SUMIFS(Measures!$CR:$CR,Measures!$B:$B,$C4,Measures!$A:$A,$J4)","v":26.5},{"$f":"1-SUMIFS(Measures!$AO:$AO,Measures!$B:$B,$C4,Measures!$A:$A,$J4)+SUMIFS(Measures!$AP:$AP,Measures!$B:$B,$C4,Measures!$A:$A,$J4)","v":1},{"$f":"D4*IF('M&A'!$A$5=\"Gross\",1,F4)/(MAX(E4,H4)*IF('M&A'!$A$5=\"Gross\",1,F4)+IF(OR('M&A'!$A$5=\"Gross\",'M&A'!$A$8=\"No\"),0,(1-F4)*H4))","v":27.013836630172445},{"$f":"SUMIFS(Measures!$CV:$CV,Measures!$B:$B,$C4,Measures!$A:$A,$J4)","v":26.5},{"$f":"D4*F4-(MAX(E4,H4)*F4)","v":689.3666706995698},"Arrearage Management Program"]
[2,"Electric","Low Flow Handheld Shower Head Direct Install",{"$f":"SUMIFS(Measures!$CL:$CL,Measures!$B:$B,$C5,Measures!$A:$A,$J5)","v":715.8666706995698},{"$f":"SUMIFS(Measures!$CR:$CR,Measures!$B:$B,$C5,Measures!$A:$A,$J5)","v":32.44},{"$f":"1-SUMIFS(Measures!$AO:$AO,Measures!$B:$B,$C5,Measures!$A:$A,$J5)+SUMIFS(Measures!$AP:$AP,Measures!$B:$B,$C5,Measures!$A:$A,$J5)","v":1},{"$f":"D5*IF('M&A'!$A$5=\"Gross\",1,F5)/(MAX(E5,H5)*IF('M&A'!$A$5=\"Gross\",1,F5)+IF(OR('M&A'!$A$5=\"Gross\",'M&A'!$A$8=\"No\"),0,(1-F5)*H5))","v":22.067406618359119},{"$f":"SUMIFS(Measures!$CV:$CV,Measures!$B:$B,$C5,Measures!$A:$A,$J5)","v":32.44},683.42667069956974,"Low Income Direct Mailing"]
[3,"Electric","Low Flow Kitchen Aerator Direct Install",{"$f":"SUMIFS(Measures!$CL:$CL,Measures!$B:$B,$C6,Measures!$A:$A,$J6)","v":533.06757654468333},{"$f":"SUMIFS(Measures!$CR:$CR,Measures!$B:$B,$C6,Measures!$A:$A,$J6)","v":1.77},{"$f":"1-SUMIFS(Measures!$AO:$AO,Measures!$B:$B,$C6,Measures!$A:$A,$J6)+SUMIFS(Measures!$AP:$AP,Measures!$B:$B,$C6,Measures!$A:$A,$J6)","v":1},{"$f":"D6*IF('M&A'!$A$5=\"Gross\",1,F6)/(MAX(E6,H6)*IF('M&A'!$A$5=\"Gross\",1,F6)+IF(OR('M&A'!$A$5=\"Gross\",'M&A'!$A$8=\"No\"),0,(1-F6)*H6))","v":301.16812234162899},{"$f":"SUMIFS(Measures!$CV:$CV,Measures!$B:$B,$C6,Measures!$A:$A,$J6)","v":1.77},531.29757654468335,"Arrearage Management Program"]
[4,"Electric","Low Flow Kitchen Aerator Direct Install",{"$f":"SUMIFS(Measures!$CL:$CL,Measures!$B:$B,$C7,Measures!$A:$A,$J7)","v":533.06757654468333},{"$f":"SUMIFS(Measures!$CR:$CR,Measures!$B:$B,$C7,Measures!$A:$A,$J7)","v":1.77},{"$f":"1-SUMIFS(Measures!$AO:$AO,Measures!$B:$B,$C7,Measures!$A:$A,$J7)+SUMIFS(Measures!$AP:$AP,Measures!$B:$B,$C7,Measures!$A:$A,$J7)","v":1},{"$f":"D7*IF('M&A'!$A$5=\"Gross\",1,F7)/(MAX(E7,H7)*IF('M&A'!$A$5=\"Gross\",1,F7)+IF(OR('M&A'!$A$5=\"Gross\",'M&A'!$A$8=\"No\"),0,(1-F7)*H7))","v":301.16812234162899},{"$f":"SUMIFS(Measures!$CV:$CV,Measures!$B:$B,$C7,Measures!$A:$A,$J7)","v":1.77},531.29757654468335,"Low Income Direct Mailing"]
[5,"Electric","Low Flow Wall Mounted Shower Head Direct Install",{"$f":"SUMIFS(Measures!$CL:$CL,Measures!$B:$B,$C8,Measures!$A:$A,$J8)","v":334.05049206750067},{"$f":"SUMIFS(Measures!$CR:$CR,Measures!$B:$B,$C8,Measures!$A:$A,$J8)","v":26.5},{"$f":"1-SUMIFS(Measures!$AO:$AO,Measures!$B:$B,$C8,Measures!$A:$A,$J8)+SUMIFS(Measures!$AP:$AP,Measures!$B:$B,$C8,Measures!$A:$A,$J8)","v":1},{"$f":"D8*IF('M&A'!$A$5=\"Gross\",1,F8)/(MAX(E8,H8)*IF('M&A'!$A$5=\"Gross\",1,F8)+IF(OR('M&A'!$A$5=\"Gross\",'M&A'!$A$8=\"No\"),0,(1-F8)*H8))","v":12.605678945943421},{"$f":"SUMIFS(Measures!$CV:$CV,Measures!$B:$B,$C8,Measures!$A:$A,$J8)","v":26.5},307.55049206750067,"Low Income Direct Install - Electric"]
[6,"Electric","Low Flow Kitchen Aerator Direct Install",{"$f":"SUMIFS(Measures!$CL:$CL,Measures!$B:$B,$C9,Measures!$A:$A,$J9)","v":264.76057189408783},{"$f":"SUMIFS(Measures!$CR:$CR,Measures!$B:$B,$C9,Measures!$A:$A,$J9)","v":1.77},{"$f":"1-SUMIFS(Measures!$AO:$AO,Measures!$B:$B,$C9,Measures!$A:$A,$J9)+SUMIFS(Measures!$AP:$AP,Measures!$B:$B,$C9,Measures!$A:$A,$J9)","v":1},{"$f":"D9*IF('M&A'!$A$5=\"Gross\",1,F9)/(MAX(E9,H9)*IF('M&A'!$A$5=\"Gross\",1,F9)+IF(OR('M&A'!$A$5=\"Gross\",'M&A'!$A$8=\"No\"),0,(1-F9)*H9))","v":149.58224400795922},{"$f":"SUMIFS(Measures!$CV:$CV,Measures!$B:$B,$C9,Measures!$A:$A,$J9)","v":1.77},262.99057189408785,"Low Income Direct Install - Electric"]
[7,"Electric","Low Flow Bathroom Aerator Direct Install",{"$f":"SUMIFS(Measures!$CL:$CL,Measures!$B:$B,$C10,Measures!$A:$A,$J10)","v":54.399436270151995},{"$f":"SUMIFS(Measures!$CR:$CR,Measures!$B:$B,$C10,Measures!$A:$A,$J10)","v":0.49},{"$f":"1-SUMIFS(Measures!$AO:$AO,Measures!$B:$B,$C10,Measures!$A:$A,$J10)+SUMIFS(Measures!$AP:$AP,Measures!$B:$B,$C10,Measures!$A:$A,$J10)","v":1},{"$f":"D10*IF('M&A'!$A$5=\"Gross\",1,F10)/(MAX(E10,H10)*IF('M&A'!$A$5=\"Gross\",1,F10)+IF(OR('M&A'!$A$5=\"Gross\",'M&A'!$A$8=\"No\"),0,(1-F10)*H10))","v":111.01925769418774},{"$f":"SUMIFS(Measures!$CV:$CV,Measures!$B:$B,$C10,Measures!$A:$A,$J10)","v":0.49},53.909436270151993,"Arrearage Management Program"]
[8,"Electric","Low Flow Bathroom Aerator Direct Install",{"$f":"SUMIFS(Measures!$CL:$CL,Measures!$B:$B,$C11,Measures!$A:$A,$J11)","v":54.399436270151995},{"$f":"SUMIFS(Measures!$CR:$CR,Measures!$B:$B,$C11,Measures!$A:$A,$J11)","v":0.49},{"$f":"1-SUMIFS(Measures!$AO:$AO,Measures!$B:$B,$C11,Measures!$A:$A,$J11)+SUMIFS(Measures!$AP:$AP,Measures!$B:$B,$C11,Measures!$A:$A,$J11)","v":1},{"$f":"D11*IF('M&A'!$A$5=\"Gross\",1,F11)/(MAX(E11,H11)*IF('M&A'!$A$5=\"Gross\",1,F11)+IF(OR('M&A'!$A$5=\"Gross\",'M&A'!$A$8=\"No\"),0,(1-F11)*H11))","v":111.01925769418774},{"$f":"SUMIFS(Measures!$CV:$CV,Measures!$B:$B,$C11,Measures!$A:$A,$J11)","v":0.49},53.909436270151993,"Low Income Direct Mailing"]
[9,"Electric","Low Flow Bathroom Aerator Direct Install",{"$f":"SUMIFS(Measures!$CL:$CL,Measures!$B:$B,$C12,Measures!$A:$A,$J12)","v":29.310242281174201},{"$f":"SUMIFS(Measures!$CR:$CR,Measures!$B:$B,$C12,Measures!$A:$A,$J12)","v":0.49},{"$f":"1-SUMIFS(Measures!$AO:$AO,Measures!$B:$B,$C12,Measures!$A:$A,$J12)+SUMIFS(Measures!$AP:$AP,Measures!$B:$B,$C12,Measures!$A:$A,$J12)","v":1},{"$f":"D12*IF('M&A'!$A$5=\"Gross\",1,F12)/(MAX(E12,H12)*IF('M&A'!$A$5=\"Gross\",1,F12)+IF(OR('M&A'!$A$5=\"Gross\",'M&A'!$A$8=\"No\"),0,(1-F12)*H12))","v":59.816820981988165},{"$f":"SUMIFS(Measures!$CV:$CV,Measures!$B:$B,$C12,Measures!$A:$A,$J12)","v":0.49},28.820242281174203,"Low Income Direct Install - Electric"]
[10,"Electric","LED Low Income Specialty Bulb Short Life",{"$f":"SUMIFS(Measures!$CL:$CL,Measures!$B:$B,$C13,Measures!$A:$A,$J13)","v":24.158916748129052},{"$f":"SUMIFS(Measures!$CR:$CR,Measures!$B:$B,$C13,Measures!$A:$A,$J13)","v":7.4860822342230842},{"$f":"1-SUMIFS(Measures!$AO:$AO,Measures!$B:$B,$C13,Measures!$A:$A,$J13)+SUMIFS(Measures!$AP:$AP,Measures!$B:$B,$C13,Measures!$A:$A,$J13)","v":1},{"$f":"D13*IF('M&A'!$A$5=\"Gross\",1,F13)/(MAX(E13,H13)*IF('M&A'!$A$5=\"Gross\",1,F13)+IF(OR('M&A'!$A$5=\"Gross\",'M&A'!$A$8=\"No\"),0,(1-F13)*H13))","v":3.2271775799743532},{"$f":"SUMIFS(Measures!$CV:$CV,Measures!$B:$B,$C13,Measures!$A:$A,$J13)","v":2.95},16.672834513905968,"Arrearage Management Program"]
[11,"Electric","LED Low Income Specialty Bulb Short Life",{"$f":"SUMIFS(Measures!$CL:$CL,Measures!$B:$B,$C14,Measures!$A:$A,$J14)","v":24.158916748129052},{"$f":"SUMIFS(Measures!$CR:$CR,Measures!$B:$B,$C14,Measures!$A:$A,$J14)","v":7.4860822342230842},{"$f":"1-SUMIFS(Measures!$AO:$AO,Measures!$B:$B,$C14,Measures!$A:$A,$J14)+SUMIFS(Measures!$AP:$AP,Measures!$B:$B,$C14,Measures!$A:$A,$J14)","v":1},{"$f":"D14*IF('M&A'!$A$5=\"Gross\",1,F14)/(MAX(E14,H14)*IF('M&A'!$A$5=\"Gross\",1,F14)+IF(OR('M&A'!$A$5=\"Gross\",'M&A'!$A$8=\"No\"),0,(1-F14)*H14))","v":3.2271775799743532},{"$f":"SUMIFS(Measures!$CV:$CV,Measures!$B:$B,$C14,Measures!$A:$A,$J14)","v":2.95},16.672834513905968,"Low Income Direct Install - Electric"]
[12,"Electric","LED Low Income Specialty Bulb Short Life",{"$f":"SUMIFS(Measures!$CL:$CL,Measures!$B:$B,$C15,Measures!$A:$A,$J15)","v":24.158916748129052},{"$f":"SUMIFS(Measures!$CR:$CR,Measures!$B:$B,$C15,Measures!$A:$A,$J15)","v":7.4860822342230842},{"$f":"1-SUMIFS(Measures!$AO:$AO,Measures!$B:$B,$C15,Measures!$A:$A,$J15)+SUMIFS(Measures!$AP:$AP,Measures!$B:$B,$C15,Measures!$A:$A,$J15)","v":1},{"$f":"D15*IF('M&A'!$A$5=\"Gross\",1,F15)/(MAX(E15,H15)*IF('M&A'!$A$5=\"Gross\",1,F15)+IF(OR('M&A'!$A$5=\"Gross\",'M&A'!$A$8=\"No\"),0,(1-F15)*H15))","v":3.2271775799743532},{"$f":"SUMIFS(Measures!$CV:$CV,Measures!$B:$B,$C15,Measures!$A:$A,$J15)","v":2.95},16.672834513905968,"Low Income Direct Mailing"]
[13,"Electric","LED Low Income Standard Bulb Short Life",{"$f":"SUMIFS(Measures!$CL:$CL,Measures!$B:$B,$C16,Measures!$A:$A,$J16)","v":12.118424499591804},{"$f":"SUMIFS(Measures!$CR:$CR,Measures!$B:$B,$C16,Measures!$A:$A,$J16)","v":4.7618876634082579},{"$f":"1-SUMIFS(Measures!$AO:$AO,Measures!$B:$B,$C16,Measures!$A:$A,$J16)+SUMIFS(Measures!$AP:$AP,Measures!$B:$B,$C16,Measures!$A:$A,$J16)","v":1},{"$f":"D16*IF('M&A'!$A$5=\"Gross\",1,F16)/(MAX(E16,H16)*IF('M&A'!$A$5=\"Gross\",1,F16)+IF(OR('M&A'!$A$5=\"Gross\",'M&A'!$A$8=\"No\"),0,(1-F16)*H16))","v":2.5448782827686873},{"$f":"SUMIFS(Measures!$CV:$CV,Measures!$B:$B,$C16,Measures!$A:$A,$J16)","v":2.5},7.3565368361835457,"Arrearage Management Program"]
[14,"Electric","LED Low Income Standard Bulb Short Life",{"$f":"SUMIFS(Measures!$CL:$CL,Measures!$B:$B,$C17,Measures!$A:$A,$J17)","v":12.118424499591804},{"$f":"SUMIFS(Measures!$CR:$CR,Measures!$B:$B,$C17,Measures!$A:$A,$J17)","v":4.7618876634082579},{"$f":"1-SUMIFS(Measures!$AO:$AO,Measures!$B:$B,$C17,Measures!$A:$A,$J17)+SUMIFS(Measures!$AP:$AP,Measures!$B:$B,$C17,Measures!$A:$A,$J17)","v":1},{"$f":"D17*IF('M&A'!$A$5=\"Gross\",1,F17)/(MAX(E17,H17)*IF('M&A'!$A$5=\"Gross\",1,F17)+IF(OR('M&A'!$A$5=\"Gross\",'M&A'!$A$8=\"No\"),0,(1-F17)*H17))","v":2.5448782827686873},{"$f":"SUMIFS(Measures!$CV:$CV,Measures!$B:$B,$C17,Measures!$A:$A,$J17)","v":2.5},7.3565368361835457,"Low Income Direct Install - Electric"]
[15,"Electric","LED Low Income Standard Bulb Short Life",{"$f":"SUMIFS(Measures!$CL:$CL,Measures!$B:$B,$C18,Measures!$A:$A,$J18)","v":12.118424499591804},{"$f":"SUMIFS(Measures!$CR:$CR,Measures!$B:$B,$C18,Measures!$A:$A,$J18)","v":4.7618876634082579},{"$f":"1-SUMIFS(Measures!$AO:$AO,Measures!$B:$B,$C18,Measures!$A:$A,$J18)+SUMIFS(Measures!$AP:$AP,Measures!$B:$B,$C18,Measures!$A:$A,$J18)","v":1},{"$f":"D18*IF('M&A'!$A$5=\"Gross\",1,F18)/(MAX(E18,H18)*IF('M&A'!$A$5=\"Gross\",1,F18)+IF(OR('M&A'!$A$5=\"Gross\",'M&A'!$A$8=\"No\"),0,(1-F18)*H18))","v":2.5448782827686873},{"$f":"SUMIFS(Measures!$CV:$CV,Measures!$B:$B,$C18,Measures!$A:$A,$J18)","v":2.5},7.3565368361835457,"Low Income Direct Mailing"]
[16,"Electric","Heat Pump Water Heater Direct Install",{"$f":"SUMIFS(Measures!$CL:$CL,Measures!$B:$B,$C19,Measures!$A:$A,$J19)","v":3224.731046851427},{"$f":"SUMIFS(Measures!$CR:$CR,Measures!$B:$B,$C19,Measures!$A:$A,$J19)","v":1882.5},{"$f":"1-SUMIFS(Measures!$AO:$AO,Measures!$B:$B,$C19,Measures!$A:$A,$J19)+SUMIFS(Measures!$AP:$AP,Measures!$B:$B,$C19,Measures!$A:$A,$J19)","v":1},{"$f":"D19*IF('M&A'!$A$5=\"Gross\",1,F19)/(MAX(E19,H19)*IF('M&A'!$A$5=\"Gross\",1,F19)+IF(OR('M&A'!$A$5=\"Gross\",'M&A'!$A$8=\"No\"),0,(1-F19)*H19))","v":1.7130045401601206},{"$f":"SUMIFS(Measures!$CV:$CV,Measures!$B:$B,$C19,Measures!$A:$A,$J19)","v":1882.5},1342.231046851427,"Low Income Direct Install - Electric"]
[17,"Unregulated Fuels","Wall Insulation LIHESP",{"$f":"SUMIFS(Measures!$CL:$CL,Measures!$B:$B,$C20,Measures!$A:$A,$J20)","v":12294.660369494402},{"$f":"SUMIFS(Measures!$CR:$CR,Measures!$B:$B,$C20,Measures!$A:$A,$J20)","v":2574},{"$f":"1-SUMIFS(Measures!$AO:$AO,Measures!$B:$B,$C20,Measures!$A:$A,$J20)+SUMIFS(Measures!$AP:$AP,Measures!$B:$B,$C20,Measures!$A:$A,$J20)","v":1},{"$f":"D20*IF('M&A'!$A$5=\"Gross\",1,F20)/(MAX(E20,H20)*IF('M&A'!$A$5=\"Gross\",1,F20)+IF(OR('M&A'!$A$5=\"Gross\",'M&A'!$A$8=\"No\"),0,(1-F20)*H20))","v":4.7764803300289049},{"$f":"SUMIFS(Measures!$CV:$CV,Measures!$B:$B,$C20,Measures!$A:$A,$J20)","v":2000},9720.6603694944024,"Affordable Heat Initiative - Other Fuels"]
[18,"Unregulated Fuels","Air Sealing LIHESP",{"$f":"SUMIFS(Measures!$CL:$CL,Measures!$B:$B,$C21,Measures!$A:$A,$J21)","v":2659.8774584992607},{"$f":"SUMIFS(Measures!$CR:$CR,Measures!$B:$B,$C21,Measures!$A:$A,$J21)","v":622},{"$f":"1-SUMIFS(Measures!$AO:$AO,Measures!$B:$B,$C21,Measures!$A:$A,$J21)+SUMIFS(Measures!$AP:$AP,Measures!$B:$B,$C21,Measures!$A:$A,$J21)","v":1},{"$f":"D21*IF('M&A'!$A$5=\"Gross\",1,F21)/(MAX(E21,H21)*IF('M&A'!$A$5=\"Gross\",1,F21)+IF(OR('M&A'!$A$5=\"Gross\",'M&A'!$A$8=\"No\"),0,(1-F21)*H21))","v":4.2763303191306443},{"$f":"SUMIFS(Measures!$CV:$CV,Measures!$B:$B,$C21,Measures!$A:$A,$J21)","v":600},2037.8774584992607,"Affordable Heat Initiative - Other Fuels"]
[19,"Unregulated Fuels","Attic Insulation LIHESP",{"$f":"SUMIFS(Measures!$CL:$CL,Measures!$B:$B,$C22,Measures!$A:$A,$J22)","v":7790.0685434812995},{"$f":"SUMIFS(Measures!$CR:$CR,Measures!$B:$B,$C22,Measures!$A:$A,$J22)","v":1962},{"$f":"1-SUMIFS(Measures!$AO:$AO,Measures!$B:$B,$C22,Measures!$A:$A,$J22)+SUMIFS(Measures!$AP:$AP,Measures!$B:$B,$C22,Measures!$A:$A,$J22)","v":1},{"$f":"D22*IF('M&A'!$A$5=\"Gross\",1,F22)/(MAX(E22,H22)*IF('M&A'!$A$5=\"Gross\",1,F22)+IF(OR('M&A'!$A$5=\"Gross\",'M&A'!$A$8=\"No\"),0,(1-F22)*H22))","v":3.9704732637519364},{"$f":"SUMIFS(Measures!$CV:$CV,Measures!$B:$B,$C22,Measures!$A:$A,$J22)","v":1569.6},5828.0685434812995,"Affordable Heat Initiative - Other Fuels"]
[20,"Unregulated Fuels","Basement Insulation LIHESP",{"$f":"SUMIFS(Measures!$CL:$CL,Measures!$B:$B,$C23,Measures!$A:$A,$J23)","v":6478.4403816193399},{"$f":"SUMIFS(Measures!$CR:$CR,Measures!$B:$B,$C23,Measures!$A:$A,$J23)","v":2326},{"$f":"1-SUMIFS(Measures!$AO:$AO,Measures!$B:$B,$C23,Measures!$A:$A,$J23)+SUMIFS(Measures!$AP:$AP,Measures!$B:$B,$C23,Measures!$A:$A,$J23)","v":1},{"$f":"D23*IF('M&A'!$A$5=\"Gross\",1,F23)/(MAX(E23,H23)*IF('M&A'!$A$5=\"Gross\",1,F23)+IF(OR('M&A'!$A$5=\"Gross\",'M&A'!$A$8=\"No\"),0,(1-F23)*H23))","v":2.7852280230521669},{"$f":"SUMIFS(Measures!$CV:$CV,Measures!$B:$B,$C23,Measures!$A:$A,$J23)","v":1860.8},4152.4403816193399,"Affordable Heat Initiative - Other Fuels"]
[21,"Unregulated Fuels","MiniSplit HP LIHEAP",{"$f":"SUMIFS(Measures!$CL:$CL,Measures!$B:$B,$C24,Measures!$A:$A,$J24)","v":15153.447386468284},{"$f":"SUMIFS(Measures!$CR:$CR,Measures!$B:$B,$C24,Measures!$A:$A,$J24)","v":8938.5319035142802},{"$f":"1-SUMIFS(Measures!$AO:$AO,Measures!$B:$B,$C24,Measures!$A:$A,$J24)+SUMIFS(Measures!$AP:$AP,Measures!$B:$B,$C24,Measures!$A:$A,$J24)","v":1},{"$f":"D24*IF('M&A'!$A$5=\"Gross\",1,F24)/(MAX(E24,H24)*IF('M&A'!$A$5=\"Gross\",1,F24)+IF(OR('M&A'!$A$5=\"Gross\",'M&A'!$A$8=\"No\"),0,(1-F24)*H24))","v":1.6952948817591111},{"$f":"SUMIFS(Measures!$CV:$CV,Measures!$B:$B,$C24,Measures!$A:$A,$J24)","v":2000},6214.9154829540039,"Affordable Heat Initiative - Heat Pumps"]
[22,"Natural Gas","Wall Insulation LIHESP",{"$f":"SUMIFS(Measures!$CL:$CL,Measures!$B:$B,$C25,Measures!$A:$A,$J25)","v":5602.1154133353957},{"$f":"SUMIFS(Measures!$CR:$CR,Measures!$B:$B,$C25,Measures!$A:$A,$J25)","v":2574},{"$f":"1-SUMIFS(Measures!$AO:$AO,Measures!$B:$B,$C25,Measures!$A:$A,$J25)+SUMIFS(Measures!$AP:$AP,Measures!$B:$B,$C25,Measures!$A:$A,$J25)","v":1},{"$f":"D25*IF('M&A'!$A$5=\"Gross\",1,F25)/(MAX(E25,H25)*IF('M&A'!$A$5=\"Gross\",1,F25)+IF(OR('M&A'!$A$5=\"Gross\",'M&A'!$A$8=\"No\"),0,(1-F25)*H25))","v":2.1764240145048159},{"$f":"SUMIFS(Measures!$CV:$CV,Measures!$B:$B,$C25,Measures!$A:$A,$J25)","v":2000},{"$f":"D25*F25-(MAX(E25,H25)*F25)","v":3028.1154133353957},"Affordable Heat Initiative - Natural Gas"]
[23,"Natural Gas","Air Sealing LIHESP",{"$f":"SUMIFS(Measures!$CL:$CL,Measures!$B:$B,$C26,Measures!$A:$A,$J26)","v":1283.3707894351962},{"$f":"SUMIFS(Measures!$CR:$CR,Measures!$B:$B,$C26,Measures!$A:$A,$J26)","v":622},{"$f":"1-SUMIFS(Measures!$AO:$AO,Measures!$B:$B,$C26,Measures!$A:$A,$J26)+SUMIFS(Measures!$AP:$AP,Measures!$B:$B,$C26,Measures!$A:$A,$J26)","v":1},{"$f":"D26*IF('M&A'!$A$5=\"Gross\",1,F26)/(MAX(E26,H26)*IF('M&A'!$A$5=\"Gross\",1,F26)+IF(OR('M&A'!$A$5=\"Gross\",'M&A'!$A$8=\"No\"),0,(1-F26)*H26))","v":2.0632970891241098},{"$f":"SUMIFS(Measures!$CV:$CV,Measures!$B:$B,$C26,Measures!$A:$A,$J26)","v":600},{"$f":"D26*F26-(MAX(E26,H26)*F26)","v":661.37078943519623},"Affordable Heat Initiative - Natural Gas"]
[24,"Natural Gas","Attic Insulation LIHESP",{"$f":"SUMIFS(Measures!$CL:$CL,Measures!$B:$B,$C27,Measures!$A:$A,$J27)","v":5814.3327134278852},{"$f":"SUMIFS(Measures!$CR:$CR,Measures!$B:$B,$C27,Measures!$A:$A,$J27)","v":1962},{"$f":"1-SUMIFS(Measures!$AO:$AO,Measures!$B:$B,$C27,Measures!$A:$A,$J27)+SUMIFS(Measures!$AP:$AP,Measures!$B:$B,$C27,Measures!$A:$A,$J27)","v":1},{"$f":"D27*IF('M&A'!$A$5=\"Gross\",1,F27)/(MAX(E27,H27)*IF('M&A'!$A$5=\"Gross\",1,F27)+IF(OR('M&A'!$A$5=\"Gross\",'M&A'!$A$8=\"No\"),0,(1-F27)*H27))","v":2.9634723310029996},{"$f":"SUMIFS(Measures!$CV:$CV,Measures!$B:$B,$C27,Measures!$A:$A,$J27)","v":1569.6},3852.3327134278852,"Affordable Heat Initiative - Natural Gas"]
[25,"Natural Gas","Basement Insulation LIHESP",{"$f":"SUMIFS(Measures!$CL:$CL,Measures!$B:$B,$C28,Measures!$A:$A,$J28)","v":2939.7680855847125},{"$f":"SUMIFS(Measures!$CR:$CR,Measures!$B:$B,$C28,Measures!$A:$A,$J28)","v":2326},{"$f":"1-SUMIFS(Measures!$AO:$AO,Measures!$B:$B,$C28,Measures!$A:$A,$J28)+SUMIFS(Measures!$AP:$AP,Measures!$B:$B,$C28,Measures!$A:$A,$J28)","v":1},{"$f":"D28*IF('M&A'!$A$5=\"Gross\",1,F28)/(MAX(E28,H28)*IF('M&A'!$A$5=\"Gross\",1,F28)+IF(OR('M&A'!$A$5=\"Gross\",'M&A'!$A$8=\"No\"),0,(1-F28)*H28))","v":1.2638727797010803},{"$f":"SUMIFS(Measures!$CV:$CV,Measures!$B:$B,$C28,Measures!$A:$A,$J28)","v":1860.8},613.76808558471248,"Affordable Heat Initiative - Natural Gas"]

{"sheet":"DIP Lighting Summary","index":7,"n_rows":31,"n_cols":10,"rows_kept":31,"cut":false,"hidden":false,"merged":[[1,7,2,7],[1,9,2,9],[1,10,2,10],[1,8,2,8],[1,0,2,0],[1,1,2,1],[1,2,2,2],[1,3,1,4],[1,5,2,5],[1,6,2,6]]}
[null,null,"Home Energy Savings Program"]
["Row","Fuel","Measure Name","Adjusted Gross Benefits & Costs",null,"NTG",{"$f":"IF(OR('M&A'!A5=\"Gross\",'M&A'!A8=\"No\"),\"BCR_Gross\",\"BCR_Net\")","v":"BCR_Gross"},"Incentive Per Unit","Net Benefit of Net Savings","Program"]
[null,null,null,"Energy & Water Benefits","Fuel + Measure Cost"]
[{"$f":"ROW(B4)-ROW($B$3)","v":1},"Electric","Outdoor_Type_B 5k_10k lm - long life",{"$f":"SUMIFS(Measures!$CL:$CL,Measures!$B:$B,$C4,Measures!$A:$A,$J4)","v":1825.6664057844043},{"$f":"SUMIFS(Measures!$CR:$CR,Measures!$B:$B,$C4,Measures!$A:$A,$J4)","v":35.99},{"$f":"1-SUMIFS(Measures!$AO:$AO,Measures!$B:$B,$C4,Measures!$A:$A,$J4)+SUMIFS(Measures!$AP:$AP,Measures!$B:$B,$C4,Measures!$A:$A,$J4)","v":0.49},{"$f":"D4*IF('M&A'!$A$5=\"Gross\",1,F4)/(MAX(E4,H4)*IF('M&A'!$A$5=\"Gross\",1,F4)+IF(OR('M&A'!$A$5=\"Gross\",'M&A'!$A$8=\"No\"),0,(1-F4)*H4))","v":50.72704656250081},{"$f":"SUMIFS(Measures!$CV:$CV,Measures!$B:$B,$C4,Measures!$A:$A,$J4)","v":26.9925},{"$f":"D4*F4-(MAX(E4,H4)*F4)","v":876.94143883435811},"Distributor Lighting"]
[2,"Electric","Outdoor_Type_C 5k_10k lm - long life",{"$f":"SUMIFS(Measures!$CL:$CL,Measures!$B:$B,$C5,Measures!$A:$A,$J5)","v":1825.6664057844043},{"$f":"SUMIFS(Measures!$CR:$CR,Measures!$B:$B,$C5,Measures!$A:$A,$J5)","v":35.99},{"$f":"1-SUMIFS(Measures!$AO:$AO,Measures!$B:$B,$C5,Measures!$A:$A,$J5)+SUMIFS(Measures!$AP:$AP,Measures!$B:$B,$C5,Measures!$A:$A,$J5)","v":0.49},{"$f":"D5*IF('M&A'!$A$5=\"Gross\",1,F5)/(MAX(E5,H5)*IF('M&A'!$A$5=\"Gross\",1,F5)+IF(OR('M&A'!$A$5=\"Gross\",'M&A'!$A$8=\"No\"),0,(1-F5)*H5))","v":50.72704656250081},{"$f":"SUMIFS(Measures!$CV:$CV,Measures!$B:$B,$C5,Measures!$A:$A,$J5)","v":26.9925},876.94143883435811,"Distributor Lighting"]
[3,"Electric","Outdoor_Type_B <5000 lm - long life",{"$f":"SUMIFS(Measures!$CL:$CL,Measures!$B:$B,$C6,Measures!$A:$A,$J6)","v":838.01080921251366},{"$f":"SUMIFS(Measures!$CR:$CR,Measures!$B:$B,$C6,Measures!$A:$A,$J6)","v":46},{"$f":"1-SUMIFS(Measures!$AO:$AO,Measures!$B:$B,$C6,Measures!$A:$A,$J6)+SUMIFS(Measures!$AP:$AP,Measures!$B:$B,$C6,Measures!$A:$A,$J6)","v":0.49},{"$f":"D6*IF('M&A'!$A$5=\"Gross\",1,F6)/(MAX(E6,H6)*IF('M&A'!$A$5=\"Gross\",1,F6)+IF(OR('M&A'!$A$5=\"Gross\",'M&A'!$A$8=\"No\"),0,(1-F6)*H6))","v":18.217626287228558},{"$f":"SUMIFS(Measures!$CV:$CV,Measures!$B:$B,$C6,Measures!$A:$A,$J6)","v":34.5},388.08529651413164,"Distributor Lighting"]
[4,"Electric","Outdoor_Type_C <5000 lm - long life",{"$f":"SUMIFS(Measures!$CL:$CL,Measures!$B:$B,$C7,Measures!$A:$A,$J7)","v":838.01080921251366},{"$f":"SUMIFS(Measures!$CR:$CR,Measures!$B:$B,$C7,Measures!$A:$A,$J7)","v":46},{"$f":"1-SUMIFS(Measures!$AO:$AO,Measures!$B:$B,$C7,Measures!$A:$A,$J7)+SUMIFS(Measures!$AP:$AP,Measures!$B:$B,$C7,Measures!$A:$A,$J7)","v":0.49},{"$f":"D7*IF('M&A'!$A$5=\"Gross\",1,F7)/(MAX(E7,H7)*IF('M&A'!$A$5=\"Gross\",1,F7)+IF(OR('M&A'!$A$5=\"Gross\",'M&A'!$A$8=\"No\"),0,(1-F7)*H7))","v":18.217626287228558},{"$f":"SUMIFS(Measures!$CV:$CV,Measures!$B:$B,$C7,Measures!$A:$A,$J7)","v":34.5},388.08529651413164,"Distributor Lighting"]
[5,"Electric","Outdoor_Type_C >10000 lm - long life",{"$f":"SUMIFS(Measures!$CL:$CL,Measures!$B:$B,$C8,Measures!$A:$A,$J8)","v":2542.8243359288149},{"$f":"SUMIFS(Measures!$CR:$CR,Measures!$B:$B,$C8,Measures!$A:$A,$J8)","v":99.13},{"$f":"1-SUMIFS(Measures!$AO:$AO,Measures!$B:$B,$C8,Measures!$A:$A,$J8)+SUMIFS(Measures!$AP:$AP,Measures!$B:$B,$C8,Measures!$A:$A,$J8)","v":0.49},{"$f":"D8*IF('M&A'!$A$5=\"Gross\",1,F8)/(MAX(E8,H8)*IF('M&A'!$A$5=\"Gross\",1,F8)+IF(OR('M&A'!$A$5=\"Gross\",'M&A'!$A$8=\"No\"),0,(1-F8)*H8))","v":25.651410631784678},{"$f":"SUMIFS(Measures!$CV:$CV,Measures!$B:$B,$C8,Measures!$A:$A,$J8)","v":74.347499999999997},1197.4102246051193,"Distributor Lighting"]
[6,"Electric","Outdoor_Type_B >10000 lm - long life",{"$f":"SUMIFS(Measures!$CL:$CL,Measures!$B:$B,$C9,Measures!$A:$A,$J9)","v":2542.8243359288149},{"$f":"SUMIFS(Measures!$CR:$CR,Measures!$B:$B,$C9,Measures!$A:$A,$J9)","v":99.13},{"$f":"1-SUMIFS(Measures!$AO:$AO,Measures!$B:$B,$C9,Measures!$A:$A,$J9)+SUMIFS(Measures!$AP:$AP,Measures!$B:$B,$C9,Measures!$A:$A,$J9)","v":0.49},{"$f":"D9*IF('M&A'!$A$5=\"Gross\",1,F9)/(MAX(E9,H9)*IF('M&A'!$A$5=\"Gross\",1,F9)+IF(OR('M&A'!$A$5=\"Gross\",'M&A'!$A$8=\"No\"),0,(1-F9)*H9))","v":25.651410631784678},{"$f":"SUMIFS(Measures!$CV:$CV,Measures!$B:$B,$C9,Measures!$A:$A,$J9)","v":74.347499999999997},1197.4102246051193,"Distributor Lighting"]
[7,"Electric","Bay_Low_Type_BC<80 W - long life",{"$f":"SUMIFS(Measures!$CL:$CL,Measures!$B:$B,$C10,Measures!$A:$A,$J10)","v":1914.4336176724578},{"$f":"SUMIFS(Measures!$CR:$CR,Measures!$B:$B,$C10,Measures!$A:$A,$J10)","v":347.98981013929438},{"$f":"1-SUMIFS(Measures!$AO:$AO,Measures!$B:$B,$C10,Measures!$A:$A,$J10)+SUMIFS(Measures!$AP:$AP,Measures!$B:$B,$C10,Measures!$A:$A,$J10)","v":0.49},{"$f":"D10*IF('M&A'!$A$5=\"Gross\",1,F10)/(MAX(E10,H10)*IF('M&A'!$A$5=\"Gross\",1,F10)+IF(OR('M&A'!$A$5=\"Gross\",'M&A'!$A$8=\"No\"),0,(1-F10)*H10))","v":5.5014071156455495},{"$f":"SUMIFS(Measures!$CV:$CV,Measures!$B:$B,$C10,Measures!$A:$A,$J10)","v":31.192500000000003},767.55746569125006,"Distributor Lighting"]
[8,"Electric","Specialty LED - BR30",{"$f":"SUMIFS(Measures!$CL:$CL,Measures!$B:$B,$C11,Measures!$A:$A,$J11)","v":21.827261379318578},{"$f":"SUMIFS(Measures!$CR:$CR,Measures!$B:$B,$C11,Measures!$A:$A,$J11)","v":6.1429708604104469},{"$f":"1-SUMIFS(Measures!$AO:$AO,Measures!$B:$B,$C11,Measures!$A:$A,$J11)+SUMIFS(Measures!$AP:$AP,Measures!$B:$B,$C11,Measures!$A:$A,$J11)","v":0.49},{"$f":"D11*IF('M&A'!$A$5=\"Gross\",1,F11)/(MAX(E11,H11)*IF('M&A'!$A$5=\"Gross\",1,F11)+IF(OR('M&A'!$A$5=\"Gross\",'M&A'!$A$8=\"No\"),0,(1-F11)*H11))","v":3.5532093306820887},{"$f":"SUMIFS(Measures!$CV:$CV,Measures!$B:$B,$C11,Measures!$A:$A,$J11)","v":1.9650000000000001},7.6853023542649845,"Distributor Lighting"]
[9,"Electric","Bay_High_Type_BC>120 W - long life",{"$f":"SUMIFS(Measures!$CL:$CL,Measures!$B:$B,$C12,Measures!$A:$A,$J12)","v":2394.0759932756564},{"$f":"SUMIFS(Measures!$CR:$CR,Measures!$B:$B,$C12,Measures!$A:$A,$J12)","v":482.55630608601763},{"$f":"1-SUMIFS(Measures!$AO:$AO,Measures!$B:$B,$C12,Measures!$A:$A,$J12)+SUMIFS(Measures!$AP:$AP,Measures!$B:$B,$C12,Measures!$A:$A,$J12)","v":0.49},{"$f":"D12*IF('M&A'!$A$5=\"Gross\",1,F12)/(MAX(E12,H12)*IF('M&A'!$A$5=\"Gross\",1,F12)+IF(OR('M&A'!$A$5=\"Gross\",'M&A'!$A$8=\"No\"),0,(1-F12)*H12))","v":4.9612365709068209},{"$f":"SUMIFS(Measures!$CV:$CV,Measures!$B:$B,$C12,Measures!$A:$A,$J12)","v":71.107500000000002},936.64464672292286,"Distributor Lighting"]
[10,"Electric","Bay_Low_Type_BC>80 W - long life",{"$f":"SUMIFS(Measures!$CL:$CL,Measures!$B:$B,$C13,Measures!$A:$A,$J13)","v":2009.9150682028269},{"$f":"SUMIFS(Measures!$CR:$CR,Measures!$B:$B,$C13,Measures!$A:$A,$J13)","v":436.35885029885088},{"$f":"1-SUMIFS(Measures!$AO:$AO,Measures!$B:$B,$C13,Measures!$A:$A,$J13)+SUMIFS(Measures!$AP:$AP,Measures!$B:$B,$C13,Measures!$A:$A,$J13)","v":0.49},{"$f":"D13*IF('M&A'!$A$5=\"Gross\",1,F13)/(MAX(E13,H13)*IF('M&A'!$A$5=\"Gross\",1,F13)+IF(OR('M&A'!$A$5=\"Gross\",'M&A'!$A$8=\"No\"),0,(1-F13)*H13))","v":4.6061058847008329},{"$f":"SUMIFS(Measures!$CV:$CV,Measures!$B:$B,$C13,Measures!$A:$A,$J13)","v":83.144999999999996},771.0425467729483,"Distributor Lighting"]
[11,"Electric","Specialty LED - R20",{"$f":"SUMIFS(Measures!$CL:$CL,Measures!$B:$B,$C14,Measures!$A:$A,$J14)","v":19.159862932821465},{"$f":"SUMIFS(Measures!$CR:$CR,Measures!$B:$B,$C14,Measures!$A:$A,$J14)","v":4.8851969141582652},{"$f":"1-SUMIFS(Measures!$AO:$AO,Measures!$B:$B,$C14,Measures!$A:$A,$J14)+SUMIFS(Measures!$AP:$AP,Measures!$B:$B,$C14,Measures!$A:$A,$J14)","v":0.49},{"$f":"D14*IF('M&A'!$A$5=\"Gross\",1,F14)/(MAX(E14,H14)*IF('M&A'!$A$5=\"Gross\",1,F14)+IF(OR('M&A'!$A$5=\"Gross\",'M&A'!$A$8=\"No\"),0,(1-F14)*H14))","v":3.9220246940900987},{"$f":"SUMIFS(Measures!$CV:$CV,Measures!$B:$B,$C14,Measures!$A:$A,$J14)","v":1.32},6.9945863491449671,"Distributor Lighting"]
[12,"Electric","Bay_High_Type_BC<120 W - long life",{"$f":"SUMIFS(Measures!$CL:$CL,Measures!$B:$B,$C15,Measures!$A:$A,$J15)","v":1400.2495154582307},{"$f":"SUMIFS(Measures!$CR:$CR,Measures!$B:$B,$C15,Measures!$A:$A,$J15)","v":319.07575891925921},{"$f":"1-SUMIFS(Measures!$AO:$AO,Measures!$B:$B,$C15,Measures!$A:$A,$J15)+SUMIFS(Measures!$AP:$AP,Measures!$B:$B,$C15,Measures!$A:$A,$J15)","v":0.49},{"$f":"D15*IF('M&A'!$A$5=\"Gross\",1,F15)/(MAX(E15,H15)*IF('M&A'!$A$5=\"Gross\",1,F15)+IF(OR('M&A'!$A$5=\"Gross\",'M&A'!$A$8=\"No\"),0,(1-F15)*H15))","v":4.3884547049296776},{"$f":"SUMIFS(Measures!$CV:$CV,Measures!$B:$B,$C15,Measures!$A:$A,$J15)","v":69.322500000000005},529.77514070409597,"Distributor Lighting"]
[13,"Electric","Specialty LED - PAR20",{"$f":"SUMIFS(Measures!$CL:$CL,Measures!$B:$B,$C16,Measures!$A:$A,$J16)","v":35.164253611804128},{"$f":"SUMIFS(Measures!$CR:$CR,Measures!$B:$B,$C16,Measures!$A:$A,$J16)","v":9.0459285902168372},{"$f":"1-SUMIFS(Measures!$AO:$AO,Measures!$B:$B,$C16,Measures!$A:$A,$J16)+SUMIFS(Measures!$AP:$AP,Measures!$B:$B,$C16,Measures!$A:$A,$J16)","v":0.49},{"$f":"D16*IF('M&A'!$A$5=\"Gross\",1,F16)/(MAX(E16,H16)*IF('M&A'!$A$5=\"Gross\",1,F16)+IF(OR('M&A'!$A$5=\"Gross\",'M&A'!$A$8=\"No\"),0,(1-F16)*H16))","v":3.8873017027609782},{"$f":"SUMIFS(Measures!$CV:$CV,Measures!$B:$B,$C16,Measures!$A:$A,$J16)","v":2.4899999999999998},12.797979260577772,"Distributor Lighting"]
[14,"Electric","Specialty LED - BR40",{"$f":"SUMIFS(Measures!$CL:$CL,Measures!$B:$B,$C17,Measures!$A:$A,$J17)","v":47.048362751519406},{"$f":"SUMIFS(Measures!$CR:$CR,Measures!$B:$B,$C17,Measures!$A:$A,$J17)","v":13.943488959960971},{"$f":"1-SUMIFS(Measures!$AO:$AO,Measures!$B:$B,$C17,Measures!$A:$A,$J17)+SUMIFS(Measures!$AP:$AP,Measures!$B:$B,$C17,Measures!$A:$A,$J17)","v":0.49},{"$f":"D17*IF('M&A'!$A$5=\"Gross\",1,F17)/(MAX(E17,H17)*IF('M&A'!$A$5=\"Gross\",1,F17)+IF(OR('M&A'!$A$5=\"Gross\",'M&A'!$A$8=\"No\"),0,(1-F17)*H17))","v":3.3742173774885034},{"$f":"SUMIFS(Measures!$CV:$CV,Measures!$B:$B,$C17,Measures!$A:$A,$J17)","v":0},16.221388157863633,"Distributor Lighting"]
[15,"Electric","LED Specialty Bulb Candelabra Long Life",{"$f":"SUMIFS(Measures!$CL:$CL,Measures!$B:$B,$C18,Measures!$A:$A,$J18)","v":53.748696248899591},{"$f":"SUMIFS(Measures!$CR:$CR,Measures!$B:$B,$C18,Measures!$A:$A,$J18)","v":15.318044148576604},{"$f":"1-SUMIFS(Measures!$AO:$AO,Measures!$B:$B,$C18,Measures!$A:$A,$J18)+SUMIFS(Measures!$AP:$AP,Measures!$B:$B,$C18,Measures!$A:$A,$J18)","v":0.49},{"$f":"D18*IF('M&A'!$A$5=\"Gross\",1,F18)/(MAX(E18,H18)*IF('M&A'!$A$5=\"Gross\",1,F18)+IF(OR('M&A'!$A$5=\"Gross\",'M&A'!$A$8=\"No\"),0,(1-F18)*H18))","v":3.5088485009944348},{"$f":"SUMIFS(Measures!$CV:$CV,Measures!$B:$B,$C18,Measures!$A:$A,$J18)","v":0},18.831019529158265,"Distributor Lighting"]
[16,"Electric","TLED_TYPE_A_4ft - long life",{"$f":"SUMIFS(Measures!$CL:$CL,Measures!$B:$B,$C19,Measures!$A:$A,$J19)","v":108.25382581029811},{"$f":"SUMIFS(Measures!$CR:$CR,Measures!$B:$B,$C19,Measures!$A:$A,$J19)","v":22.983051637364397},{"$f":"1-SUMIFS(Measures!$AO:$AO,Measures!$B:$B,$C19,Measures!$A:$A,$J19)+SUMIFS(Measures!$AP:$AP,Measures!$B:$B,$C19,Measures!$A:$A,$J19)","v":0.49},{"$f":"D19*IF('M&A'!$A$5=\"Gross\",1,F19)/(MAX(E19,H19)*IF('M&A'!$A$5=\"Gross\",1,F19)+IF(OR('M&A'!$A$5=\"Gross\",'M&A'!$A$8=\"No\"),0,(1-F19)*H19))","v":4.7101589257322933},{"$f":"SUMIFS(Measures!$CV:$CV,Measures!$B:$B,$C19,Measures!$A:$A,$J19)","v":3.7425000000000002},41.782679344737524,"Distributor Lighting"]
[17,"Electric","LED Replacement Lamps T5HO (Type A)",{"$f":"SUMIFS(Measures!$CL:$CL,Measures!$B:$B,$C20,Measures!$A:$A,$J20)","v":215.11395623753799},{"$f":"SUMIFS(Measures!$CR:$CR,Measures!$B:$B,$C20,Measures!$A:$A,$J20)","v":46.091576223609891},{"$f":"1-SUMIFS(Measures!$AO:$AO,Measures!$B:$B,$C20,Measures!$A:$A,$J20)+SUMIFS(Measures!$AP:$AP,Measures!$B:$B,$C20,Measures!$A:$A,$J20)","v":0.49},{"$f":"D20*IF('M&A'!$A$5=\"Gross\",1,F20)/(MAX(E20,H20)*IF('M&A'!$A$5=\"Gross\",1,F20)+IF(OR('M&A'!$A$5=\"Gross\",'M&A'!$A$8=\"No\"),0,(1-F20)*H20))","v":4.6670991504809569},{"$f":"SUMIFS(Measures!$CV:$CV,Measures!$B:$B,$C20,Measures!$A:$A,$J20)","v":8.4075000000000006},82.820966206824778,"Distributor Lighting"]
[18,"Electric","Specialty LED - Globe",{"$f":"SUMIFS(Measures!$CL:$CL,Measures!$B:$B,$C21,Measures!$A:$A,$J21)","v":37.665379501863697},{"$f":"SUMIFS(Measures!$CR:$CR,Measures!$B:$B,$C21,Measures!$A:$A,$J21)","v":13.418463120008578},{"$f":"1-SUMIFS(Measures!$AO:$AO,Measures!$B:$B,$C21,Measures!$A:$A,$J21)+SUMIFS(Measures!$AP:$AP,Measures!$B:$B,$C21,Measures!$A:$A,$J21)","v":0.49},{"$f":"D21*IF('M&A'!$A$5=\"Gross\",1,F21)/(MAX(E21,H21)*IF('M&A'!$A$5=\"Gross\",1,F21)+IF(OR('M&A'!$A$5=\"Gross\",'M&A'!$A$8=\"No\"),0,(1-F21)*H21))","v":2.8069816315774632},{"$f":"SUMIFS(Measures!$CV:$CV,Measures!$B:$B,$C21,Measures!$A:$A,$J21)","v":0},11.88098902710901,"Distributor Lighting"]
[19,"Electric","Specialty LED - PAR38",{"$f":"SUMIFS(Measures!$CL:$CL,Measures!$B:$B,$C22,Measures!$A:$A,$J22)","v":46.321921205134267},{"$f":"SUMIFS(Measures!$CR:$CR,Measures!$B:$B,$C22,Measures!$A:$A,$J22)","v":19.611793219050465},{"$f":"1-SUMIFS(Measures!$AO:$AO,Measures!$B:$B,$C22,Measures!$A:$A,$J22)+SUMIFS(Measures!$AP:$AP,Measures!$B:$B,$C22,Measures!$A:$A,$J22)","v":0.49},{"$f":"D22*IF('M&A'!$A$5=\"Gross\",1,F22)/(MAX(E22,H22)*IF('M&A'!$A$5=\"Gross\",1,F22)+IF(OR('M&A'!$A$5=\"Gross\",'M&A'!$A$8=\"No\"),0,(1-F22)*H22))","v":2.3619421583610301},{"$f":"SUMIFS(Measures!$CV:$CV,Measures!$B:$B,$C22,Measures!$A:$A,$J22)","v":0},13.087962713181064,"Distributor Lighting"]
[20,"Electric","4' LED Lamp T8/Type C Kit (3 Lamp/1 external driver)",{"$f":"SUMIFS(Measures!$CL:$CL,Measures!$B:$B,$C23,Measures!$A:$A,$J23)","v":337.5552108957026},{"$f":"SUMIFS(Measures!$CR:$CR,Measures!$B:$B,$C23,Measures!$A:$A,$J23)","v":90.663440580560703},{"$f":"1-SUMIFS(Measures!$AO:$AO,Measures!$B:$B,$C23,Measures!$A:$A,$J23)+SUMIFS(Measures!$AP:$AP,Measures!$B:$B,$C23,Measures!$A:$A,$J23)","v":0.49},{"$f":"D23*IF('M&A'!$A$5=\"Gross\",1,F23)/(MAX(E23,H23)*IF('M&A'!$A$5=\"Gross\",1,F23)+IF(OR('M&A'!$A$5=\"Gross\",'M&A'!$A$8=\"No\"),0,(1-F23)*H23))","v":3.7231678914254482},{"$f":"SUMIFS(Measures!$CV:$CV,Measures!$B:$B,$C23,Measures!$A:$A,$J23)","v":16.184999999999999},120.97696745441951,"Distributor Lighting"]
[21,"Electric","4' LED Lamp T8/Type C Kit (4 Lamp/1 external driver)",{"$f":"SUMIFS(Measures!$CL:$CL,Measures!$B:$B,$C24,Measures!$A:$A,$J24)","v":501.93256455425541},{"$f":"SUMIFS(Measures!$CR:$CR,Measures!$B:$B,$C24,Measures!$A:$A,$J24)","v":108.91857732724287},{"$f":"1-SUMIFS(Measures!$AO:$AO,Measures!$B:$B,$C24,Measures!$A:$A,$J24)+SUMIFS(Measures!$AP:$AP,Measures!$B:$B,$C24,Measures!$A:$A,$J24)","v":0.49},{"$f":"D24*IF('M&A'!$A$5=\"Gross\",1,F24)/(MAX(E24,H24)*IF('M&A'!$A$5=\"Gross\",1,F24)+IF(OR('M&A'!$A$5=\"Gross\",'M&A'!$A$8=\"No\"),0,(1-F24)*H24))","v":4.6083283207621486},{"$f":"SUMIFS(Measures!$CV:$CV,Measures!$B:$B,$C24,Measures!$A:$A,$J24)","v":20.549999999999997},192.57685374123614,"Distributor Lighting"]
[22,"Electric","Specialty LED - PAR30",{"$f":"SUMIFS(Measures!$CL:$CL,Measures!$B:$B,$C25,Measures!$A:$A,$J25)","v":31.043972072536739},{"$f":"SUMIFS(Measures!$CR:$CR,Measures!$B:$B,$C25,Measures!$A:$A,$J25)","v":11.912013957093059},{"$f":"1-SUMIFS(Measures!$AO:$AO,Measures!$B:$B,$C25,Measures!$A:$A,$J25)+SUMIFS(Measures!$AP:$AP,Measures!$B:$B,$C25,Measures!$A:$A,$J25)","v":0.49},{"$f":"D25*IF('M&A'!$A$5=\"Gross\",1,F25)/(MAX(E25,H25)*IF('M&A'!$A$5=\"Gross\",1,F25)+IF(OR('M&A'!$A$5=\"Gross\",'M&A'!$A$8=\"No\"),0,(1-F25)*H25))","v":2.6061060862047998},{"$f":"SUMIFS(Measures!$CV:$CV,Measures!$B:$B,$C25,Measures!$A:$A,$J25)","v":0},9.3746594765674018,"Distributor Lighting"]
[23,"Electric","LED Replacement Lamps T5 (Type A)",{"$f":"SUMIFS(Measures!$CL:$CL,Measures!$B:$B,$C26,Measures!$A:$A,$J26)","v":115.28492147991022},{"$f":"SUMIFS(Measures!$CR:$CR,Measures!$B:$B,$C26,Measures!$A:$A,$J26)","v":26.552359360407703},{"$f":"1-SUMIFS(Measures!$AO:$AO,Measures!$B:$B,$C26,Measures!$A:$A,$J26)+SUMIFS(Measures!$AP:$AP,Measures!$B:$B,$C26,Measures!$A:$A,$J26)","v":0.49},{"$f":"D26*IF('M&A'!$A$5=\"Gross\",1,F26)/(MAX(E26,H26)*IF('M&A'!$A$5=\"Gross\",1,F26)+IF(OR('M&A'!$A$5=\"Gross\",'M&A'!$A$8=\"No\"),0,(1-F26)*H26))","v":4.3417957671894083},{"$f":"SUMIFS(Measures!$CV:$CV,Measures!$B:$B,$C26,Measures!$A:$A,$J26)","v":5.9325000000000001},43.478955438556234,"Distributor Lighting"]
[24,"Electric","Specialty LED  - MR16",{"$f":"SUMIFS(Measures!$CL:$CL,Measures!$B:$B,$C27,Measures!$A:$A,$J27)","v":19.886304479206604},{"$f":"SUMIFS(Measures!$CR:$CR,Measures!$B:$B,$C27,Measures!$A:$A,$J27)","v":8.4106731212088484},{"$f":"1-SUMIFS(Measures!$AO:$AO,Measures!$B:$B,$C27,Measures!$A:$A,$J27)+SUMIFS(Measures!$AP:$AP,Measures!$B:$B,$C27,Measures!$A:$A,$J27)","v":0.49},{"$f":"D27*IF('M&A'!$A$5=\"Gross\",1,F27)/(MAX(E27,H27)*IF('M&A'!$A$5=\"Gross\",1,F27)+IF(OR('M&A'!$A$5=\"Gross\",'M&A'!$A$8=\"No\"),0,(1-F27)*H27))","v":2.3644129539477796},{"$f":"SUMIFS(Measures!$CV:$CV,Measures!$B:$B,$C27,Measures!$A:$A,$J27)","v":0},5.6230593654189001,"Distributor Lighting"]
[25,"Electric","4' LED Lamp T8/Type C Kit (2 Lamp/1 external driver)",{"$f":"SUMIFS(Measures!$CL:$CL,Measures!$B:$B,$C28,Measures!$A:$A,$J28)","v":244.63203429904468},{"$f":"SUMIFS(Measures!$CR:$CR,Measures!$B:$B,$C28,Measures!$A:$A,$J28)","v":55.406018873355627},{"$f":"1-SUMIFS(Measures!$AO:$AO,Measures!$B:$B,$C28,Measures!$A:$A,$J28)+SUMIFS(Measures!$AP:$AP,Measures!$B:$B,$C28,Measures!$A:$A,$J28)","v":0.49},{"$f":"D28*IF('M&A'!$A$5=\"Gross\",1,F28)/(MAX(E28,H28)*IF('M&A'!$A$5=\"Gross\",1,F28)+IF(OR('M&A'!$A$5=\"Gross\",'M&A'!$A$8=\"No\"),0,(1-F28)*H28))","v":4.4152610000406751},{"$f":"SUMIFS(Measures!$CV:$CV,Measures!$B:$B,$C28,Measures!$A:$A,$J28)","v":11.82},92.720747558587632,"Distributor Lighting"]
[26,"Electric","Specialty LED - PAR16",{"$f":"SUMIFS(Measures!$CL:$CL,Measures!$B:$B,$C29,Measures!$A:$A,$J29)","v":23.768218279430545},{"$f":"SUMIFS(Measures!$CR:$CR,Measures!$B:$B,$C29,Measures!$A:$A,$J29)","v":11.318901205628347},{"$f":"1-SUMIFS(Measures!$AO:$AO,Measures!$B:$B,$C29,Measures!$A:$A,$J29)+SUMIFS(Measures!$AP:$AP,Measures!$B:$B,$C29,Measures!$A:$A,$J29)","v":0.49},{"$f":"D29*IF('M&A'!$A$5=\"Gross\",1,F29)/(MAX(E29,H29)*IF('M&A'!$A$5=\"Gross\",1,F29)+IF(OR('M&A'!$A$5=\"Gross\",'M&A'!$A$8=\"No\"),0,(1-F29)*H29))","v":2.0998697530473849},{"$f":"SUMIFS(Measures!$CV:$CV,Measures!$B:$B,$C29,Measures!$A:$A,$J29)","v":0},6.1001653661630773,"Distributor Lighting"]
[27,"Electric","LED Replacement Lamps T8 U-Bend (Type A)",{"$f":"SUMIFS(Measures!$CL:$CL,Measures!$B:$B,$C30,Measures!$A:$A,$J30)","v":115.28492147991022},{"$f":"SUMIFS(Measures!$CR:$CR,Measures!$B:$B,$C30,Measures!$A:$A,$J30)","v":32.152359360407701},{"$f":"1-SUMIFS(Measures!$AO:$AO,Measures!$B:$B,$C30,Measures!$A:$A,$J30)+SUMIFS(Measures!$AP:$AP,Measures!$B:$B,$C30,Measures!$A:$A,$J30)","v":0.49},{"$f":"D30*IF('M&A'!$A$5=\"Gross\",1,F30)/(MAX(E30,H30)*IF('M&A'!$A$5=\"Gross\",1,F30)+IF(OR('M&A'!$A$5=\"Gross\",'M&A'!$A$8=\"No\"),0,(1-F30)*H30))","v":3.5855820155416547},{"$f":"SUMIFS(Measures!$CV:$CV,Measures!$B:$B,$C30,Measures!$A:$A,$J30)","v":10.1325},40.734955438556234,"Distributor Lighting"]
[28,"Electric","TLED_TYPE_A_2ft - long life",{"$f":"SUMIFS(Measures!$CL:$CL,Measures!$B:$B,$C31,Measures!$A:$A,$J31)","v":50.611365070342998},{"$f":"SUMIFS(Measures!$CR:$CR,Measures!$B:$B,$C31,Measures!$A:$A,$J31)","v":15.950289953320645},{"$f":"1-SUMIFS(Measures!$AO:$AO,Measures!$B:$B,$C31,Measures!$A:$A,$J31)+SUMIFS(Measures!$AP:$AP,Measures!$B:$B,$C31,Measures!$A:$A,$J31)","v":0.49},{"$f":"D31*IF('M&A'!$A$5=\"Gross\",1,F31)/(MAX(E31,H31)*IF('M&A'!$A$5=\"Gross\",1,F31)+IF(OR('M&A'!$A$5=\"Gross\",'M&A'!$A$8=\"No\"),0,(1-F31)*H31))","v":3.1730686538275981},{"$f":"SUMIFS(Measures!$CV:$CV,Measures!$B:$B,$C31,Measures!$A:$A,$J31)","v":0},16.983926807340954,"Distributor Lighting"]

{"sheet":"C&I Non-Lighting","index":8,"n_rows":124,"n_cols":10,"rows_kept":124,"cut":false,"hidden":false,"merged":[[1,3,1,4]]}
["Note about C&I screening: assumed inputs for required project specific data were used to calculate the savings.  Program performance will differ from screening due to reported project actuals."]
[null,null,null,"Adjusted Gross Benefits & Costs",null,null,null,"Incentive","Net Benefit"]
["Row","Fuel","Measure Name","Energy & Water Benefits","Fuel + Measure Cost","NTG",{"$f":"IF(OR('M&A'!A6=\"Gross\",'M&A'!A9=\"No\"),\"BCR_Gross\",\"BCR_Net\")","v":"BCR_Net"},"Per Unit","of Net Savings","Program"]
[{"$f":"ROW(B4)-ROW($B$3)","v":1},"Heating Oil","Boiler Reset/Lockout Controls",{"$f":"SUMIFS(Measures!$CL:$CL,Measures!$B:$B,$C4,Measures!$A:$A,$J4)","v":91665.619608738649},{"$f":"SUMIFS(Measures!$CR:$CR,Measures!$B:$B,$C4,Measures!$A:$A,$J4)","v":612},{"$f":"1-SUMIFS(Measures!$AO:$AO,Measures!$B:$B,$C4,Measures!$A:$A,$J4)+SUMIFS(Measures!$AP:$AP,Measures!$B:$B,$C4,Measures!$A:$A,$J4)","v":0.496},{"$f":"D4*IF('M&A'!$A$5=\"Gross\",1,F4)/(MAX(E4,H4)*IF('M&A'!$A$5=\"Gross\",1,F4)+IF(OR('M&A'!$A$5=\"Gross\",'M&A'!$A$8=\"No\"),0,(1-F4)*H4))","v":149.78042419728538},{"$f":"SUMIFS(Measures!$CV:$CV,Measures!$B:$B,$C4,Measures!$A:$A,$J4)","v":375},{"$f":"D4*F4-(MAX(E4,H4)*F4)","v":45162.595325934366},"C&I HVAC - Propane and Compressed NG"]
[2,"Natural Gas","Boiler Reset/Lockout Controls",{"$f":"SUMIFS(Measures!$CL:$CL,Measures!$B:$B,$C5,Measures!$A:$A,$J5)","v":32925.373092724207},{"$f":"SUMIFS(Measures!$CR:$CR,Measures!$B:$B,$C5,Measures!$A:$A,$J5)","v":612},{"$f":"1-SUMIFS(Measures!$AO:$AO,Measures!$B:$B,$C5,Measures!$A:$A,$J5)+SUMIFS(Measures!$AP:$AP,Measures!$B:$B,$C5,Measures!$A:$A,$J5)","v":0.496},{"$f":"D5*IF('M&A'!$A$5=\"Gross\",1,F5)/(MAX(E5,H5)*IF('M&A'!$A$5=\"Gross\",1,F5)+IF(OR('M&A'!$A$5=\"Gross\",'M&A'!$A$8=\"No\"),0,(1-F5)*H5))","v":53.799629236477465},{"$f":"SUMIFS(Measures!$CV:$CV,Measures!$B:$B,$C5,Measures!$A:$A,$J5)","v":375},16027.433053991206,"C&I HVAC - Natural Gas"]
[3,"Heating Oil","Boiler Reset/Lockout Controls",{"$f":"SUMIFS(Measures!$CL:$CL,Measures!$B:$B,$C6,Measures!$A:$A,$J6)","v":13035.851351068097},{"$f":"SUMIFS(Measures!$CR:$CR,Measures!$B:$B,$C6,Measures!$A:$A,$J6)","v":612},{"$f":"1-SUMIFS(Measures!$AO:$AO,Measures!$B:$B,$C6,Measures!$A:$A,$J6)+SUMIFS(Measures!$AP:$AP,Measures!$B:$B,$C6,Measures!$A:$A,$J6)","v":0.496},{"$f":"D6*IF('M&A'!$A$5=\"Gross\",1,F6)/(MAX(E6,H6)*IF('M&A'!$A$5=\"Gross\",1,F6)+IF(OR('M&A'!$A$5=\"Gross\",'M&A'!$A$8=\"No\"),0,(1-F6)*H6))","v":21.300410704359635},{"$f":"SUMIFS(Measures!$CV:$CV,Measures!$B:$B,$C6,Measures!$A:$A,$J6)","v":375},6162.2302701297767,"C&I HVAC - Oil"]
[4,"Heating Oil","Boiler Stack Heat Exchanger (Economizer)",{"$f":"SUMIFS(Measures!$CL:$CL,Measures!$B:$B,$C7,Measures!$A:$A,$J7)","v":114582.02451092329},{"$f":"SUMIFS(Measures!$CR:$CR,Measures!$B:$B,$C7,Measures!$A:$A,$J7)","v":2120},{"$f":"1-SUMIFS(Measures!$AO:$AO,Measures!$B:$B,$C7,Measures!$A:$A,$J7)+SUMIFS(Measures!$AP:$AP,Measures!$B:$B,$C7,Measures!$A:$A,$J7)","v":0.496},{"$f":"D7*IF('M&A'!$A$5=\"Gross\",1,F7)/(MAX(E7,H7)*IF('M&A'!$A$5=\"Gross\",1,F7)+IF(OR('M&A'!$A$5=\"Gross\",'M&A'!$A$8=\"No\"),0,(1-F7)*H7))","v":54.048124769303442},{"$f":"SUMIFS(Measures!$CV:$CV,Measures!$B:$B,$C7,Measures!$A:$A,$J7)","v":1325},55781.164157417959,"C&I HVAC - Propane and Compressed NG"]
[5,"Heating Oil","Boiler Stack Heat Exchanger (Economizer)",{"$f":"SUMIFS(Measures!$CL:$CL,Measures!$B:$B,$C8,Measures!$A:$A,$J8)","v":40737.035472087802},{"$f":"SUMIFS(Measures!$CR:$CR,Measures!$B:$B,$C8,Measures!$A:$A,$J8)","v":1500},{"$f":"1-SUMIFS(Measures!$AO:$AO,Measures!$B:$B,$C8,Measures!$A:$A,$J8)+SUMIFS(Measures!$AP:$AP,Measures!$B:$B,$C8,Measures!$A:$A,$J8)","v":0.496},{"$f":"D8*IF('M&A'!$A$5=\"Gross\",1,F8)/(MAX(E8,H8)*IF('M&A'!$A$5=\"Gross\",1,F8)+IF(OR('M&A'!$A$5=\"Gross\",'M&A'!$A$8=\"No\"),0,(1-F8)*H8))","v":27.158023648058535},{"$f":"SUMIFS(Measures!$CV:$CV,Measures!$B:$B,$C8,Measures!$A:$A,$J8)","v":950},19461.56959415555,"C&I HVAC - Oil"]
[6,"Natural Gas","Boiler Stack Heat Exchanger (Economizer)",{"$f":"SUMIFS(Measures!$CL:$CL,Measures!$B:$B,$C9,Measures!$A:$A,$J9)","v":18505.71779042502},{"$f":"SUMIFS(Measures!$CR:$CR,Measures!$B:$B,$C9,Measures!$A:$A,$J9)","v":1500},{"$f":"1-SUMIFS(Measures!$AO:$AO,Measures!$B:$B,$C9,Measures!$A:$A,$J9)+SUMIFS(Measures!$AP:$AP,Measures!$B:$B,$C9,Measures!$A:$A,$J9)","v":0.496},{"$f":"D9*IF('M&A'!$A$5=\"Gross\",1,F9)/(MAX(E9,H9)*IF('M&A'!$A$5=\"Gross\",1,F9)+IF(OR('M&A'!$A$5=\"Gross\",'M&A'!$A$8=\"No\"),0,(1-F9)*H9))","v":12.33714519361668},{"$f":"SUMIFS(Measures!$CV:$CV,Measures!$B:$B,$C9,Measures!$A:$A,$J9)","v":950},8434.83602405081,"C&I HVAC - Natural Gas"]
[7,"Heating Oil","Boiler Turbulator",{"$f":"SUMIFS(Measures!$CL:$CL,Measures!$B:$B,$C10,Measures!$A:$A,$J10)","v":10025.927144705787},{"$f":"SUMIFS(Measures!$CR:$CR,Measures!$B:$B,$C10,Measures!$A:$A,$J10)","v":15},{"$f":"1-SUMIFS(Measures!$AO:$AO,Measures!$B:$B,$C10,Measures!$A:$A,$J10)+SUMIFS(Measures!$AP:$AP,Measures!$B:$B,$C10,Measures!$A:$A,$J10)","v":0.496},{"$f":"D10*IF('M&A'!$A$5=\"Gross\",1,F10)/(MAX(E10,H10)*IF('M&A'!$A$5=\"Gross\",1,F10)+IF(OR('M&A'!$A$5=\"Gross\",'M&A'!$A$8=\"No\"),0,(1-F10)*H10))","v":668.3951429803858},{"$f":"SUMIFS(Measures!$CV:$CV,Measures!$B:$B,$C10,Measures!$A:$A,$J10)","v":9.5},4965.419863774071,"C&I HVAC - Propane and Compressed NG"]
[8,"Natural Gas","Boiler Turbulator",{"$f":"SUMIFS(Measures!$CL:$CL,Measures!$B:$B,$C11,Measures!$A:$A,$J11)","v":3238.5006133243796},{"$f":"SUMIFS(Measures!$CR:$CR,Measures!$B:$B,$C11,Measures!$A:$A,$J11)","v":15},{"$f":"1-SUMIFS(Measures!$AO:$AO,Measures!$B:$B,$C11,Measures!$A:$A,$J11)+SUMIFS(Measures!$AP:$AP,Measures!$B:$B,$C11,Measures!$A:$A,$J11)","v":0.496},{"$f":"D11*IF('M&A'!$A$5=\"Gross\",1,F11)/(MAX(E11,H11)*IF('M&A'!$A$5=\"Gross\",1,F11)+IF(OR('M&A'!$A$5=\"Gross\",'M&A'!$A$8=\"No\"),0,(1-F11)*H11))","v":215.90004088829198},{"$f":"SUMIFS(Measures!$CV:$CV,Measures!$B:$B,$C11,Measures!$A:$A,$J11)","v":9.5},1598.8563042088922,"C&I HVAC - Natural Gas"]
[9,"Heating Oil","Boiler Turbulator",{"$f":"SUMIFS(Measures!$CL:$CL,Measures!$B:$B,$C12,Measures!$A:$A,$J12)","v":1425.7962415230734},{"$f":"SUMIFS(Measures!$CR:$CR,Measures!$B:$B,$C12,Measures!$A:$A,$J12)","v":15},{"$f":"1-SUMIFS(Measures!$AO:$AO,Measures!$B:$B,$C12,Measures!$A:$A,$J12)+SUMIFS(Measures!$AP:$AP,Measures!$B:$B,$C12,Measures!$A:$A,$J12)","v":0.496},{"$f":"D12*IF('M&A'!$A$5=\"Gross\",1,F12)/(MAX(E12,H12)*IF('M&A'!$A$5=\"Gross\",1,F12)+IF(OR('M&A'!$A$5=\"Gross\",'M&A'!$A$8=\"No\"),0,(1-F12)*H12))","v":95.053082768204888},{"$f":"SUMIFS(Measures!$CV:$CV,Measures!$B:$B,$C12,Measures!$A:$A,$J12)","v":9.5},699.75493579544434,"C&I HVAC - Oil"]
[10,"Electric","Demand Control Ventilation - Existing Equipment Install",{"$f":"SUMIFS(Measures!$CL:$CL,Measures!$B:$B,$C13,Measures!$A:$A,$J13)","v":2917.0966053195552},{"$f":"SUMIFS(Measures!$CR:$CR,Measures!$B:$B,$C13,Measures!$A:$A,$J13)","v":2100},{"$f":"1-SUMIFS(Measures!$AO:$AO,Measures!$B:$B,$C13,Measures!$A:$A,$J13)+SUMIFS(Measures!$AP:$AP,Measures!$B:$B,$C13,Measures!$A:$A,$J13)","v":0.496},{"$f":"D13*IF('M&A'!$A$5=\"Gross\",1,F13)/(MAX(E13,H13)*IF('M&A'!$A$5=\"Gross\",1,F13)+IF(OR('M&A'!$A$5=\"Gross\",'M&A'!$A$8=\"No\"),0,(1-F13)*H13))","v":1.3890936215807406},{"$f":"SUMIFS(Measures!$CV:$CV,Measures!$B:$B,$C13,Measures!$A:$A,$J13)","v":500},405.27991623849948,"C&I HVAC - Electric"]
[11,"Electric","Demand Control Ventilation - New Equipment Install",{"$f":"SUMIFS(Measures!$CL:$CL,Measures!$B:$B,$C14,Measures!$A:$A,$J14)","v":2917.0966053195557},{"$f":"SUMIFS(Measures!$CR:$CR,Measures!$B:$B,$C14,Measures!$A:$A,$J14)","v":850},{"$f":"1-SUMIFS(Measures!$AO:$AO,Measures!$B:$B,$C14,Measures!$A:$A,$J14)+SUMIFS(Measures!$AP:$AP,Measures!$B:$B,$C14,Measures!$A:$A,$J14)","v":0.496},{"$f":"D14*IF('M&A'!$A$5=\"Gross\",1,F14)/(MAX(E14,H14)*IF('M&A'!$A$5=\"Gross\",1,F14)+IF(OR('M&A'!$A$5=\"Gross\",'M&A'!$A$8=\"No\"),0,(1-F14)*H14))","v":3.4318783591994775},{"$f":"SUMIFS(Measures!$CV:$CV,Measures!$B:$B,$C14,Measures!$A:$A,$J14)","v":500},1025.2799162384995,"C&I HVAC - Electric"]
[12,"Electric","DHP Lost Opportunity 2 Zones",{"$f":"SUMIFS(Measures!$CL:$CL,Measures!$B:$B,$C15,Measures!$A:$A,$J15)","v":2498.2712419320965},{"$f":"SUMIFS(Measures!$CR:$CR,Measures!$B:$B,$C15,Measures!$A:$A,$J15)","v":682},{"$f":"1-SUMIFS(Measures!$AO:$AO,Measures!$B:$B,$C15,Measures!$A:$A,$J15)+SUMIFS(Measures!$AP:$AP,Measures!$B:$B,$C15,Measures!$A:$A,$J15)","v":0.68599999999999994},{"$f":"D15*IF('M&A'!$A$5=\"Gross\",1,F15)/(MAX(E15,H15)*IF('M&A'!$A$5=\"Gross\",1,F15)+IF(OR('M&A'!$A$5=\"Gross\",'M&A'!$A$8=\"No\"),0,(1-F15)*H15))","v":3.3310283225761288},{"$f":"SUMIFS(Measures!$CV:$CV,Measures!$B:$B,$C15,Measures!$A:$A,$J15)","v":750},1199.314071965418,"C&I HVAC - High Performance Heat Pumps"]
[13,"Electric","DHP Lost Opportunity 3 Zones",{"$f":"SUMIFS(Measures!$CL:$CL,Measures!$B:$B,$C16,Measures!$A:$A,$J16)","v":3403.0751820813093},{"$f":"SUMIFS(Measures!$CR:$CR,Measures!$B:$B,$C16,Measures!$A:$A,$J16)","v":682},{"$f":"1-SUMIFS(Measures!$AO:$AO,Measures!$B:$B,$C16,Measures!$A:$A,$J16)+SUMIFS(Measures!$AP:$AP,Measures!$B:$B,$C16,Measures!$A:$A,$J16)","v":0.68599999999999994},{"$f":"D16*IF('M&A'!$A$5=\"Gross\",1,F16)/(MAX(E16,H16)*IF('M&A'!$A$5=\"Gross\",1,F16)+IF(OR('M&A'!$A$5=\"Gross\",'M&A'!$A$8=\"No\"),0,(1-F16)*H16))","v":3.4030751820813094},{"$f":"SUMIFS(Measures!$CV:$CV,Measures!$B:$B,$C16,Measures!$A:$A,$J16)","v":1000},1648.5095749077782,"C&I HVAC - High Performance Heat Pumps"]
[14,"Electric","DHP Lost Opportunity 4 Zones",{"$f":"SUMIFS(Measures!$CL:$CL,Measures!$B:$B,$C17,Measures!$A:$A,$J17)","v":4307.8791222305226},{"$f":"SUMIFS(Measures!$CR:$CR,Measures!$B:$B,$C17,Measures!$A:$A,$J17)","v":682},{"$f":"1-SUMIFS(Measures!$AO:$AO,Measures!$B:$B,$C17,Measures!$A:$A,$J17)+SUMIFS(Measures!$AP:$AP,Measures!$B:$B,$C17,Measures!$A:$A,$J17)","v":0.68599999999999994},{"$f":"D17*IF('M&A'!$A$5=\"Gross\",1,F17)/(MAX(E17,H17)*IF('M&A'!$A$5=\"Gross\",1,F17)+IF(OR('M&A'!$A$5=\"Gross\",'M&A'!$A$8=\"No\"),0,(1-F17)*H17))","v":3.4463032977844179},{"$f":"SUMIFS(Measures!$CV:$CV,Measures!$B:$B,$C17,Measures!$A:$A,$J17)","v":1250},2097.7050778501384,"C&I HVAC - High Performance Heat Pumps"]
[15,"Electric","DHP Lost Opportunity Single Zone",{"$f":"SUMIFS(Measures!$CL:$CL,Measures!$B:$B,$C18,Measures!$A:$A,$J18)","v":1592.523903956275},{"$f":"SUMIFS(Measures!$CR:$CR,Measures!$B:$B,$C18,Measures!$A:$A,$J18)","v":682},{"$f":"1-SUMIFS(Measures!$AO:$AO,Measures!$B:$B,$C18,Measures!$A:$A,$J18)+SUMIFS(Measures!$AP:$AP,Measures!$B:$B,$C18,Measures!$A:$A,$J18)","v":0.68599999999999994},{"$f":"D18*IF('M&A'!$A$5=\"Gross\",1,F18)/(MAX(E18,H18)*IF('M&A'!$A$5=\"Gross\",1,F18)+IF(OR('M&A'!$A$5=\"Gross\",'M&A'!$A$8=\"No\"),0,(1-F18)*H18))","v":2.3350790380590545},{"$f":"SUMIFS(Measures!$CV:$CV,Measures!$B:$B,$C18,Measures!$A:$A,$J18)","v":500},624.61939811400464,"C&I HVAC - High Performance Heat Pumps"]
[16,"Electric","Dryer - C10 - Dryer Size 75",{"$f":"SUMIFS(Measures!$CL:$CL,Measures!$B:$B,$C19,Measures!$A:$A,$J19)","v":2879.0390927606832},{"$f":"SUMIFS(Measures!$CR:$CR,Measures!$B:$B,$C19,Measures!$A:$A,$J19)","v":490.5},{"$f":"1-SUMIFS(Measures!$AO:$AO,Measures!$B:$B,$C19,Measures!$A:$A,$J19)+SUMIFS(Measures!$AP:$AP,Measures!$B:$B,$C19,Measures!$A:$A,$J19)","v":0.496},{"$f":"D19*IF('M&A'!$A$5=\"Gross\",1,F19)/(MAX(E19,H19)*IF('M&A'!$A$5=\"Gross\",1,F19)+IF(OR('M&A'!$A$5=\"Gross\",'M&A'!$A$8=\"No\"),0,(1-F19)*H19))","v":5.8696005968617397},{"$f":"SUMIFS(Measures!$CV:$CV,Measures!$B:$B,$C19,Measures!$A:$A,$J19)","v":250},1184.7153900092987,"C&I Prescriptive Compressed Air Solutions"]
[17,"Electric","Dryer - C11 - Dryer Size 100",{"$f":"SUMIFS(Measures!$CL:$CL,Measures!$B:$B,$C20,Measures!$A:$A,$J20)","v":2907.3840627316035},{"$f":"SUMIFS(Measures!$CR:$CR,Measures!$B:$B,$C20,Measures!$A:$A,$J20)","v":654},{"$f":"1-SUMIFS(Measures!$AO:$AO,Measures!$B:$B,$C20,Measures!$A:$A,$J20)+SUMIFS(Measures!$AP:$AP,Measures!$B:$B,$C20,Measures!$A:$A,$J20)","v":0.496},{"$f":"D20*IF('M&A'!$A$5=\"Gross\",1,F20)/(MAX(E20,H20)*IF('M&A'!$A$5=\"Gross\",1,F20)+IF(OR('M&A'!$A$5=\"Gross\",'M&A'!$A$8=\"No\"),0,(1-F20)*H20))","v":4.4455413803235526},{"$f":"SUMIFS(Measures!$CV:$CV,Measures!$B:$B,$C20,Measures!$A:$A,$J20)","v":350},1117.6784951148754,"C&I Prescriptive Compressed Air Solutions"]
[18,"Electric","Dryer - C12 - Dryer Size 150",{"$f":"SUMIFS(Measures!$CL:$CL,Measures!$B:$B,$C21,Measures!$A:$A,$J21)","v":4361.0760940974051},{"$f":"SUMIFS(Measures!$CR:$CR,Measures!$B:$B,$C21,Measures!$A:$A,$J21)","v":981},{"$f":"1-SUMIFS(Measures!$AO:$AO,Measures!$B:$B,$C21,Measures!$A:$A,$J21)+SUMIFS(Measures!$AP:$AP,Measures!$B:$B,$C21,Measures!$A:$A,$J21)","v":0.496},{"$f":"D21*IF('M&A'!$A$5=\"Gross\",1,F21)/(MAX(E21,H21)*IF('M&A'!$A$5=\"Gross\",1,F21)+IF(OR('M&A'!$A$5=\"Gross\",'M&A'!$A$8=\"No\"),0,(1-F21)*H21))","v":4.4455413803235526},{"$f":"SUMIFS(Measures!$CV:$CV,Measures!$B:$B,$C21,Measures!$A:$A,$J21)","v":500},1676.517742672313,"C&I Prescriptive Compressed Air Solutions"]
[19,"Electric","Dryer - C13 - Dryer Size 200",{"$f":"SUMIFS(Measures!$CL:$CL,Measures!$B:$B,$C22,Measures!$A:$A,$J22)","v":5118.291720463435},{"$f":"SUMIFS(Measures!$CR:$CR,Measures!$B:$B,$C22,Measures!$A:$A,$J22)","v":1308},{"$f":"1-SUMIFS(Measures!$AO:$AO,Measures!$B:$B,$C22,Measures!$A:$A,$J22)+SUMIFS(Measures!$AP:$AP,Measures!$B:$B,$C22,Measures!$A:$A,$J22)","v":0.496},{"$f":"D22*IF('M&A'!$A$5=\"Gross\",1,F22)/(MAX(E22,H22)*IF('M&A'!$A$5=\"Gross\",1,F22)+IF(OR('M&A'!$A$5=\"Gross\",'M&A'!$A$8=\"No\"),0,(1-F22)*H22))","v":3.9130670645744914},{"$f":"SUMIFS(Measures!$CV:$CV,Measures!$B:$B,$C22,Measures!$A:$A,$J22)","v":650},1889.9046933498639,"C&I Prescriptive Compressed Air Solutions"]
[20,"Electric","Dryer - C14 - Dryer Size 250",{"$f":"SUMIFS(Measures!$CL:$CL,Measures!$B:$B,$C23,Measures!$A:$A,$J23)","v":6397.8646505792949},{"$f":"SUMIFS(Measures!$CR:$CR,Measures!$B:$B,$C23,Measures!$A:$A,$J23)","v":1635},{"$f":"1-SUMIFS(Measures!$AO:$AO,Measures!$B:$B,$C23,Measures!$A:$A,$J23)+SUMIFS(Measures!$AP:$AP,Measures!$B:$B,$C23,Measures!$A:$A,$J23)","v":0.496},{"$f":"D23*IF('M&A'!$A$5=\"Gross\",1,F23)/(MAX(E23,H23)*IF('M&A'!$A$5=\"Gross\",1,F23)+IF(OR('M&A'!$A$5=\"Gross\",'M&A'!$A$8=\"No\"),0,(1-F23)*H23))","v":3.9130670645744923},{"$f":"SUMIFS(Measures!$CV:$CV,Measures!$B:$B,$C23,Measures!$A:$A,$J23)","v":800},2362.3808666873301,"C&I Prescriptive Compressed Air Solutions"]
[21,"Electric","Dryer - C15 - Dryer Size 300",{"$f":"SUMIFS(Measures!$CL:$CL,Measures!$B:$B,$C24,Measures!$A:$A,$J24)","v":7045.7496784860577},{"$f":"SUMIFS(Measures!$CR:$CR,Measures!$B:$B,$C24,Measures!$A:$A,$J24)","v":1962},{"$f":"1-SUMIFS(Measures!$AO:$AO,Measures!$B:$B,$C24,Measures!$A:$A,$J24)+SUMIFS(Measures!$AP:$AP,Measures!$B:$B,$C24,Measures!$A:$A,$J24)","v":0.496},{"$f":"D24*IF('M&A'!$A$5=\"Gross\",1,F24)/(MAX(E24,H24)*IF('M&A'!$A$5=\"Gross\",1,F24)+IF(OR('M&A'!$A$5=\"Gross\",'M&A'!$A$8=\"No\"),0,(1-F24)*H24))","v":3.5911058504006412},{"$f":"SUMIFS(Measures!$CV:$CV,Measures!$B:$B,$C24,Measures!$A:$A,$J24)","v":1000},2521.5398405290844,"C&I Prescriptive Compressed Air Solutions"]
[22,"Electric","Dryer - C16 - Dryer Size 400",{"$f":"SUMIFS(Measures!$CL:$CL,Measures!$B:$B,$C25,Measures!$A:$A,$J25)","v":8811.2363795319907},{"$f":"SUMIFS(Measures!$CR:$CR,Measures!$B:$B,$C25,Measures!$A:$A,$J25)","v":2616},{"$f":"1-SUMIFS(Measures!$AO:$AO,Measures!$B:$B,$C25,Measures!$A:$A,$J25)+SUMIFS(Measures!$AP:$AP,Measures!$B:$B,$C25,Measures!$A:$A,$J25)","v":0.496},{"$f":"D25*IF('M&A'!$A$5=\"Gross\",1,F25)/(MAX(E25,H25)*IF('M&A'!$A$5=\"Gross\",1,F25)+IF(OR('M&A'!$A$5=\"Gross\",'M&A'!$A$8=\"No\"),0,(1-F25)*H25))","v":3.3682096252033604},{"$f":"SUMIFS(Measures!$CV:$CV,Measures!$B:$B,$C25,Measures!$A:$A,$J25)","v":1300},3072.8372442478676,"C&I Prescriptive Compressed Air Solutions"]
[23,"Electric","Ductless Heat Pump Multi-Family",{"$f":"SUMIFS(Measures!$CL:$CL,Measures!$B:$B,$C26,Measures!$A:$A,$J26)","v":930.54403568609303},{"$f":"SUMIFS(Measures!$CR:$CR,Measures!$B:$B,$C26,Measures!$A:$A,$J26)","v":682},{"$f":"1-SUMIFS(Measures!$AO:$AO,Measures!$B:$B,$C26,Measures!$A:$A,$J26)+SUMIFS(Measures!$AP:$AP,Measures!$B:$B,$C26,Measures!$A:$A,$J26)","v":0.9},{"$f":"D26*IF('M&A'!$A$5=\"Gross\",1,F26)/(MAX(E26,H26)*IF('M&A'!$A$5=\"Gross\",1,F26)+IF(OR('M&A'!$A$5=\"Gross\",'M&A'!$A$8=\"No\"),0,(1-F26)*H26))","v":1.3644340699209576},{"$f":"SUMIFS(Measures!$CV:$CV,Measures!$B:$B,$C26,Measures!$A:$A,$J26)","v":500},223.68963211748371,"C&I HVAC - High Performance Heat Pumps"]
[24,"Electric","Engineered Nozzles - C40",{"$f":"SUMIFS(Measures!$CL:$CL,Measures!$B:$B,$C27,Measures!$A:$A,$J27)","v":834.991992978844},{"$f":"SUMIFS(Measures!$CR:$CR,Measures!$B:$B,$C27,Measures!$A:$A,$J27)","v":14},{"$f":"1-SUMIFS(Measures!$AO:$AO,Measures!$B:$B,$C27,Measures!$A:$A,$J27)+SUMIFS(Measures!$AP:$AP,Measures!$B:$B,$C27,Measures!$A:$A,$J27)","v":0.496},{"$f":"D27*IF('M&A'!$A$5=\"Gross\",1,F27)/(MAX(E27,H27)*IF('M&A'!$A$5=\"Gross\",1,F27)+IF(OR('M&A'!$A$5=\"Gross\",'M&A'!$A$8=\"No\"),0,(1-F27)*H27))","v":59.642285212774574},{"$f":"SUMIFS(Measures!$CV:$CV,Measures!$B:$B,$C27,Measures!$A:$A,$J27)","v":7},407.21202851750661,"C&I Prescriptive Compressed Air Solutions"]
[25,"Electric","Fast Track Compressor - C1 - Compressor HP 15 and below",{"$f":"SUMIFS(Measures!$CL:$CL,Measures!$B:$B,$C28,Measures!$A:$A,$J28)","v":31049.889962431662},{"$f":"SUMIFS(Measures!$CR:$CR,Measures!$B:$B,$C28,Measures!$A:$A,$J28)","v":2460},{"$f":"1-SUMIFS(Measures!$AO:$AO,Measures!$B:$B,$C28,Measures!$A:$A,$J28)+SUMIFS(Measures!$AP:$AP,Measures!$B:$B,$C28,Measures!$A:$A,$J28)","v":0.496},{"$f":"D28*IF('M&A'!$A$5=\"Gross\",1,F28)/(MAX(E28,H28)*IF('M&A'!$A$5=\"Gross\",1,F28)+IF(OR('M&A'!$A$5=\"Gross\",'M&A'!$A$8=\"No\"),0,(1-F28)*H28))","v":12.621906488793359},{"$f":"SUMIFS(Measures!$CV:$CV,Measures!$B:$B,$C28,Measures!$A:$A,$J28)","v":1200},14180.585421366104,"C&I Prescriptive Compressed Air Solutions"]
[26,"Electric","Fast Track Compressor - C2 - Compressor HP 16-30",{"$f":"SUMIFS(Measures!$CL:$CL,Measures!$B:$B,$C29,Measures!$A:$A,$J29)","v":38192.822395103743},{"$f":"SUMIFS(Measures!$CR:$CR,Measures!$B:$B,$C29,Measures!$A:$A,$J29)","v":3280},{"$f":"1-SUMIFS(Measures!$AO:$AO,Measures!$B:$B,$C29,Measures!$A:$A,$J29)+SUMIFS(Measures!$AP:$AP,Measures!$B:$B,$C29,Measures!$A:$A,$J29)","v":0.496},{"$f":"D29*IF('M&A'!$A$5=\"Gross\",1,F29)/(MAX(E29,H29)*IF('M&A'!$A$5=\"Gross\",1,F29)+IF(OR('M&A'!$A$5=\"Gross\",'M&A'!$A$8=\"No\"),0,(1-F29)*H29))","v":11.644153169238946},{"$f":"SUMIFS(Measures!$CV:$CV,Measures!$B:$B,$C29,Measures!$A:$A,$J29)","v":1800},17316.759907971456,"C&I Prescriptive Compressed Air Solutions"]
[27,"Electric","Fast Track Compressor - C3 - Compressor HP 31-60",{"$f":"SUMIFS(Measures!$CL:$CL,Measures!$B:$B,$C30,Measures!$A:$A,$J30)","v":69777.217505558481},{"$f":"SUMIFS(Measures!$CR:$CR,Measures!$B:$B,$C30,Measures!$A:$A,$J30)","v":6560},{"$f":"1-SUMIFS(Measures!$AO:$AO,Measures!$B:$B,$C30,Measures!$A:$A,$J30)+SUMIFS(Measures!$AP:$AP,Measures!$B:$B,$C30,Measures!$A:$A,$J30)","v":0.496},{"$f":"D30*IF('M&A'!$A$5=\"Gross\",1,F30)/(MAX(E30,H30)*IF('M&A'!$A$5=\"Gross\",1,F30)+IF(OR('M&A'!$A$5=\"Gross\",'M&A'!$A$8=\"No\"),0,(1-F30)*H30))","v":10.636770961213184},{"$f":"SUMIFS(Measures!$CV:$CV,Measures!$B:$B,$C30,Measures!$A:$A,$J30)","v":4000},31355.73988275701,"C&I Prescriptive Compressed Air Solutions"]
[28,"Electric","Fast Track Compressor - C4 - Compressor HP 60 and above",{"$f":"SUMIFS(Measures!$CL:$CL,Measures!$B:$B,$C31,Measures!$A:$A,$J31)","v":90428.552770086564},{"$f":"SUMIFS(Measures!$CR:$CR,Measures!$B:$B,$C31,Measures!$A:$A,$J31)","v":9840},{"$f":"1-SUMIFS(Measures!$AO:$AO,Measures!$B:$B,$C31,Measures!$A:$A,$J31)+SUMIFS(Measures!$AP:$AP,Measures!$B:$B,$C31,Measures!$A:$A,$J31)","v":0.496},{"$f":"D31*IF('M&A'!$A$5=\"Gross\",1,F31)/(MAX(E31,H31)*IF('M&A'!$A$5=\"Gross\",1,F31)+IF(OR('M&A'!$A$5=\"Gross\",'M&A'!$A$8=\"No\"),0,(1-F31)*H31))","v":9.1898935741957892},{"$f":"SUMIFS(Measures!$CV:$CV,Measures!$B:$B,$C31,Measures!$A:$A,$J31)","v":6600},39971.922173962936,"C&I Prescriptive Compressed Air Solutions"]
[29,"Heating Oil","G10 Gas-fired condensing hot water boiler >1000 MBtu/h and <=2500 MBtu/h",{"$f":"SUMIFS(Measures!$CL:$CL,Measures!$B:$B,$C32,Measures!$A:$A,$J32)","v":243152.28226085735},{"$f":"SUMIFS(Measures!$CR:$CR,Measures!$B:$B,$C32,Measures!$A:$A,$J32)","v":5452},{"$f":"1-SUMIFS(Measures!$AO:$AO,Measures!$B:$B,$C32,Measures!$A:$A,$J32)+SUMIFS(Measures!$AP:$AP,Measures!$B:$B,$C32,Measures!$A:$A,$J32)","v":0.496},{"$f":"D32*IF('M&A'!$A$5=\"Gross\",1,F32)/(MAX(E32,H32)*IF('M&A'!$A$5=\"Gross\",1,F32)+IF(OR('M&A'!$A$5=\"Gross\",'M&A'!$A$8=\"No\"),0,(1-F32)*H32))","v":25.936243441158116},{"$f":"SUMIFS(Measures!$CV:$CV,Measures!$B:$B,$C32,Measures!$A:$A,$J32)","v":9375},115953.53200138525,"C&I HVAC - Propane and Compressed NG"]
[30,"Natural Gas","G10 Gas-fired condensing hot water boiler >1000 MBtu/h and <=2500 MBtu/h",{"$f":"SUMIFS(Measures!$CL:$CL,Measures!$B:$B,$C33,Measures!$A:$A,$J33)","v":179314.48824580168},{"$f":"SUMIFS(Measures!$CR:$CR,Measures!$B:$B,$C33,Measures!$A:$A,$J33)","v":7034.3200000000006},{"$f":"1-SUMIFS(Measures!$AO:$AO,Measures!$B:$B,$C33,Measures!$A:$A,$J33)+SUMIFS(Measures!$AP:$AP,Measures!$B:$B,$C33,Measures!$A:$A,$J33)","v":0.496},{"$f":"D33*IF('M&A'!$A$5=\"Gross\",1,F33)/(MAX(E33,H33)*IF('M&A'!$A$5=\"Gross\",1,F33)+IF(OR('M&A'!$A$5=\"Gross\",'M&A'!$A$8=\"No\"),0,(1-F33)*H33))","v":19.126878746218846},{"$f":"SUMIFS(Measures!$CV:$CV,Measures!$B:$B,$C33,Measures!$A:$A,$J33)","v":9375},84289.986169917625,"C&I HVAC - Natural Gas"]
[31,"Heating Oil","G11 Gas-fired condensing hot water boiler > 2500 MBtu/h",{"$f":"SUMIFS(Measures!$CL:$CL,Measures!$B:$B,$C34,Measures!$A:$A,$J34)","v":2211870.7710437193},{"$f":"SUMIFS(Measures!$CR:$CR,Measures!$B:$B,$C34,Measures!$A:$A,$J34)","v":15862},{"$f":"1-SUMIFS(Measures!$AO:$AO,Measures!$B:$B,$C34,Measures!$A:$A,$J34)+SUMIFS(Measures!$AP:$AP,Measures!$B:$B,$C34,Measures!$A:$A,$J34)","v":0.496},{"$f":"D34*IF('M&A'!$A$5=\"Gross\",1,F34)/(MAX(E34,H34)*IF('M&A'!$A$5=\"Gross\",1,F34)+IF(OR('M&A'!$A$5=\"Gross\",'M&A'!$A$8=\"No\"),0,(1-F34)*H34))","v":139.44463315116121},{"$f":"SUMIFS(Measures!$CV:$CV,Measures!$B:$B,$C34,Measures!$A:$A,$J34)","v":12500},1089220.3504376849,"C&I HVAC - Propane and Compressed NG"]
[32,"Natural Gas","G11 Gas-fired condensing hot water boiler > 2500 MBtu/h",{"$f":"SUMIFS(Measures!$CL:$CL,Measures!$B:$B,$C35,Measures!$A:$A,$J35)","v":379885.03457186266},{"$f":"SUMIFS(Measures!$CR:$CR,Measures!$B:$B,$C35,Measures!$A:$A,$J35)","v":10657},{"$f":"1-SUMIFS(Measures!$AO:$AO,Measures!$B:$B,$C35,Measures!$A:$A,$J35)+SUMIFS(Measures!$AP:$AP,Measures!$B:$B,$C35,Measures!$A:$A,$J35)","v":0.496},{"$f":"D35*IF('M&A'!$A$5=\"Gross\",1,F35)/(MAX(E35,H35)*IF('M&A'!$A$5=\"Gross\",1,F35)+IF(OR('M&A'!$A$5=\"Gross\",'M&A'!$A$8=\"No\"),0,(1-F35)*H35))","v":30.390802765749012},{"$f":"SUMIFS(Measures!$CV:$CV,Measures!$B:$B,$C35,Measures!$A:$A,$J35)","v":12500},182222.97714764389,"C&I HVAC - Natural Gas"]
[{"$f":"ROW(B36)-ROW($B$3)","v":33},"Heating Oil","G9 Gas-fired condensing hot water boiler >500 MBtu/h and <=1000 MBtu/h",{"$f":"SUMIFS(Measures!$CL:$CL,Measures!$B:$B,$C36,Measures!$A:$A,$J36)","v":462655.02850497421},{"$f":"SUMIFS(Measures!$CR:$CR,Measures!$B:$B,$C36,Measures!$A:$A,$J36)","v":4393.6499999999996},{"$f":"1-SUMIFS(Measures!$AO:$AO,Measures!$B:$B,$C36,Measures!$A:$A,$J36)+SUMIFS(Measures!$AP:$AP,Measures!$B:$B,$C36,Measures!$A:$A,$J36)","v":0.496},{"$f":"D36*IF('M&A'!$A$5=\"Gross\",1,F36)/(MAX(E36,H36)*IF('M&A'!$A$5=\"Gross\",1,F36)+IF(OR('M&A'!$A$5=\"Gross\",'M&A'!$A$8=\"No\"),0,(1-F36)*H36))","v":92.531005700994839},{"$f":"SUMIFS(Measures!$CV:$CV,Measures!$B:$B,$C36,Measures!$A:$A,$J36)","v":5000},{"$f":"D36*F36-(MAX(E36,H36)*F36)","v":226996.89413846721},"C&I HVAC - Propane and Compressed NG"]
[34,"Natural Gas","G9 Gas-fired condensing hot water boiler >500 MBtu/h and <=1000 MBtu/h",{"$f":"SUMIFS(Measures!$CL:$CL,Measures!$B:$B,$C37,Measures!$A:$A,$J37)","v":127926.95247709098},{"$f":"SUMIFS(Measures!$CR:$CR,Measures!$B:$B,$C37,Measures!$A:$A,$J37)","v":4775.3500000000004},{"$f":"1-SUMIFS(Measures!$AO:$AO,Measures!$B:$B,$C37,Measures!$A:$A,$J37)+SUMIFS(Measures!$AP:$AP,Measures!$B:$B,$C37,Measures!$A:$A,$J37)","v":0.496},{"$f":"D37*IF('M&A'!$A$5=\"Gross\",1,F37)/(MAX(E37,H37)*IF('M&A'!$A$5=\"Gross\",1,F37)+IF(OR('M&A'!$A$5=\"Gross\",'M&A'!$A$8=\"No\"),0,(1-F37)*H37))","v":25.585390495418196},{"$f":"SUMIFS(Measures!$CV:$CV,Measures!$B:$B,$C37,Measures!$A:$A,$J37)","v":5000},60971.768428637122,"C&I HVAC - Natural Gas"]
[35,"Heating Oil","H2L Hot Water Boiler >500MBtu/h",{"$f":"SUMIFS(Measures!$CL:$CL,Measures!$B:$B,$C38,Measures!$A:$A,$J38)","v":81295.331891231661},{"$f":"SUMIFS(Measures!$CR:$CR,Measures!$B:$B,$C38,Measures!$A:$A,$J38)","v":1039},{"$f":"1-SUMIFS(Measures!$AO:$AO,Measures!$B:$B,$C38,Measures!$A:$A,$J38)+SUMIFS(Measures!$AP:$AP,Measures!$B:$B,$C38,Measures!$A:$A,$J38)","v":0.496},{"$f":"D38*IF('M&A'!$A$5=\"Gross\",1,F38)/(MAX(E38,H38)*IF('M&A'!$A$5=\"Gross\",1,F38)+IF(OR('M&A'!$A$5=\"Gross\",'M&A'!$A$8=\"No\"),0,(1-F38)*H38))","v":78.243822801955403},{"$f":"SUMIFS(Measures!$CV:$CV,Measures!$B:$B,$C38,Measures!$A:$A,$J38)","v":800},39807.140618050908,"C&I HVAC - Oil"]
[36,"Heating Oil","H3L Steam Boiler >500 MBtu/h",{"$f":"SUMIFS(Measures!$CL:$CL,Measures!$B:$B,$C39,Measures!$A:$A,$J39)","v":19189.401832760301},{"$f":"SUMIFS(Measures!$CR:$CR,Measures!$B:$B,$C39,Measures!$A:$A,$J39)","v":858},{"$f":"1-SUMIFS(Measures!$AO:$AO,Measures!$B:$B,$C39,Measures!$A:$A,$J39)+SUMIFS(Measures!$AP:$AP,Measures!$B:$B,$C39,Measures!$A:$A,$J39)","v":0.496},{"$f":"D39*IF('M&A'!$A$5=\"Gross\",1,F39)/(MAX(E39,H39)*IF('M&A'!$A$5=\"Gross\",1,F39)+IF(OR('M&A'!$A$5=\"Gross\",'M&A'!$A$8=\"No\"),0,(1-F39)*H39))","v":22.365270201352331},{"$f":"SUMIFS(Measures!$CV:$CV,Measures!$B:$B,$C39,Measures!$A:$A,$J39)","v":650},9092.37530904911,"C&I HVAC - Oil"]
[37,"Electric","High Efficiency Pre-Rinse Spray Valves",{"$f":"SUMIFS(Measures!$CL:$CL,Measures!$B:$B,$C40,Measures!$A:$A,$J40)","v":1337.2176357324313},{"$f":"SUMIFS(Measures!$CR:$CR,Measures!$B:$B,$C40,Measures!$A:$A,$J40)","v":40},{"$f":"1-SUMIFS(Measures!$AO:$AO,Measures!$B:$B,$C40,Measures!$A:$A,$J40)+SUMIFS(Measures!$AP:$AP,Measures!$B:$B,$C40,Measures!$A:$A,$J40)","v":0.75},{"$f":"D40*IF('M&A'!$A$5=\"Gross\",1,F40)/(MAX(E40,H40)*IF('M&A'!$A$5=\"Gross\",1,F40)+IF(OR('M&A'!$A$5=\"Gross\",'M&A'!$A$8=\"No\"),0,(1-F40)*H40))","v":33.338759305221423},{"$f":"SUMIFS(Measures!$CV:$CV,Measures!$B:$B,$C40,Measures!$A:$A,$J40)","v":40.11},972.83072679932343,"C&I Do It Yourself"]
[38,"Electric","HVAC AIR-TO-AIR HEAT PUMP: < 5.4 Packaged",{"$f":"SUMIFS(Measures!$CL:$CL,Measures!$B:$B,$C41,Measures!$A:$A,$J41)","v":4596.2320297567276},{"$f":"SUMIFS(Measures!$CR:$CR,Measures!$B:$B,$C41,Measures!$A:$A,$J41)","v":500},{"$f":"1-SUMIFS(Measures!$AO:$AO,Measures!$B:$B,$C41,Measures!$A:$A,$J41)+SUMIFS(Measures!$AP:$AP,Measures!$B:$B,$C41,Measures!$A:$A,$J41)","v":0.496},{"$f":"D41*IF('M&A'!$A$5=\"Gross\",1,F41)/(MAX(E41,H41)*IF('M&A'!$A$5=\"Gross\",1,F41)+IF(OR('M&A'!$A$5=\"Gross\",'M&A'!$A$8=\"No\"),0,(1-F41)*H41))","v":9.1924640595134548},{"$f":"SUMIFS(Measures!$CV:$CV,Measures!$B:$B,$C41,Measures!$A:$A,$J41)","v":250},2031.7310867593369,"C&I HVAC - Electric"]
[39,"Electric","HVAC AIR-TO-AIR HEAT PUMP: < 5.4 Split",{"$f":"SUMIFS(Measures!$CL:$CL,Measures!$B:$B,$C42,Measures!$A:$A,$J42)","v":3800.8684960734145},{"$f":"SUMIFS(Measures!$CR:$CR,Measures!$B:$B,$C42,Measures!$A:$A,$J42)","v":500},{"$f":"1-SUMIFS(Measures!$AO:$AO,Measures!$B:$B,$C42,Measures!$A:$A,$J42)+SUMIFS(Measures!$AP:$AP,Measures!$B:$B,$C42,Measures!$A:$A,$J42)","v":0.496},{"$f":"D42*IF('M&A'!$A$5=\"Gross\",1,F42)/(MAX(E42,H42)*IF('M&A'!$A$5=\"Gross\",1,F42)+IF(OR('M&A'!$A$5=\"Gross\",'M&A'!$A$8=\"No\"),0,(1-F42)*H42))","v":7.6017369921468285},{"$f":"SUMIFS(Measures!$CV:$CV,Measures!$B:$B,$C42,Measures!$A:$A,$J42)","v":250},1637.2307740524136,"C&I HVAC - Electric"]
[40,"Electric","HVAC AIR-TO-AIR HEAT PUMP: > = 5.4 to < 11.25",{"$f":"SUMIFS(Measures!$CL:$CL,Measures!$B:$B,$C43,Measures!$A:$A,$J43)","v":6739.220802509325},{"$f":"SUMIFS(Measures!$CR:$CR,Measures!$B:$B,$C43,Measures!$A:$A,$J43)","v":800},{"$f":"1-SUMIFS(Measures!$AO:$AO,Measures!$B:$B,$C43,Measures!$A:$A,$J43)+SUMIFS(Measures!$AP:$AP,Measures!$B:$B,$C43,Measures!$A:$A,$J43)","v":0.496},{"$f":"D43*IF('M&A'!$A$5=\"Gross\",1,F43)/(MAX(E43,H43)*IF('M&A'!$A$5=\"Gross\",1,F43)+IF(OR('M&A'!$A$5=\"Gross\",'M&A'!$A$8=\"No\"),0,(1-F43)*H43))","v":8.4240260031366567},{"$f":"SUMIFS(Measures!$CV:$CV,Measures!$B:$B,$C43,Measures!$A:$A,$J43)","v":400},2945.8535180446252,"C&I HVAC - Electric"]
[41,"Electric","HVAC WATER SOURCE HEAT PUMP: < 11.25",{"$f":"SUMIFS(Measures!$CL:$CL,Measures!$B:$B,$C44,Measures!$A:$A,$J44)","v":1163.3225272476886},{"$f":"SUMIFS(Measures!$CR:$CR,Measures!$B:$B,$C44,Measures!$A:$A,$J44)","v":300},{"$f":"1-SUMIFS(Measures!$AO:$AO,Measures!$B:$B,$C44,Measures!$A:$A,$J44)+SUMIFS(Measures!$AP:$AP,Measures!$B:$B,$C44,Measures!$A:$A,$J44)","v":0.496},{"$f":"D44*IF('M&A'!$A$5=\"Gross\",1,F44)/(MAX(E44,H44)*IF('M&A'!$A$5=\"Gross\",1,F44)+IF(OR('M&A'!$A$5=\"Gross\",'M&A'!$A$8=\"No\"),0,(1-F44)*H44))","v":3.8777417574922954},{"$f":"SUMIFS(Measures!$CV:$CV,Measures!$B:$B,$C44,Measures!$A:$A,$J44)","v":300},428.20797351485356,"C&I HVAC - Electric"]
[42,"Electric","LPD Filter - C30 - System Compressor Size (hp) - <=15",{"$f":"SUMIFS(Measures!$CL:$CL,Measures!$B:$B,$C45,Measures!$A:$A,$J45)","v":194.72680459892126},{"$f":"SUMIFS(Measures!$CR:$CR,Measures!$B:$B,$C45,Measures!$A:$A,$J45)","v":46},{"$f":"1-SUMIFS(Measures!$AO:$AO,Measures!$B:$B,$C45,Measures!$A:$A,$J45)+SUMIFS(Measures!$AP:$AP,Measures!$B:$B,$C45,Measures!$A:$A,$J45)","v":0.496},{"$f":"D45*IF('M&A'!$A$5=\"Gross\",1,F45)/(MAX(E45,H45)*IF('M&A'!$A$5=\"Gross\",1,F45)+IF(OR('M&A'!$A$5=\"Gross\",'M&A'!$A$8=\"No\"),0,(1-F45)*H45))","v":4.2331914043243755},{"$f":"SUMIFS(Measures!$CV:$CV,Measures!$B:$B,$C45,Measures!$A:$A,$J45)","v":40},73.768495081064941,"C&I Prescriptive Compressed Air Solutions"]
[43,"Electric","LPD Filter - C31 - System Compressor Size (hp) - 16-25",{"$f":"SUMIFS(Measures!$CL:$CL,Measures!$B:$B,$C46,Measures!$A:$A,$J46)","v":389.45360919784252},{"$f":"SUMIFS(Measures!$CR:$CR,Measures!$B:$B,$C46,Measures!$A:$A,$J46)","v":92},{"$f":"1-SUMIFS(Measures!$AO:$AO,Measures!$B:$B,$C46,Measures!$A:$A,$J46)+SUMIFS(Measures!$AP:$AP,Measures!$B:$B,$C46,Measures!$A:$A,$J46)","v":0.496},{"$f":"D46*IF('M&A'!$A$5=\"Gross\",1,F46)/(MAX(E46,H46)*IF('M&A'!$A$5=\"Gross\",1,F46)+IF(OR('M&A'!$A$5=\"Gross\",'M&A'!$A$8=\"No\"),0,(1-F46)*H46))","v":4.2331914043243755},{"$f":"SUMIFS(Measures!$CV:$CV,Measures!$B:$B,$C46,Measures!$A:$A,$J46)","v":75},147.53699016212988,"C&I Prescriptive Compressed Air Solutions"]
[44,"Electric","LPD Filter - C32 - System Compressor Size (hp) - 26-50",{"$f":"SUMIFS(Measures!$CL:$CL,Measures!$B:$B,$C47,Measures!$A:$A,$J47)","v":584.18041379676379},{"$f":"SUMIFS(Measures!$CR:$CR,Measures!$B:$B,$C47,Measures!$A:$A,$J47)","v":138},{"$f":"1-SUMIFS(Measures!$AO:$AO,Measures!$B:$B,$C47,Measures!$A:$A,$J47)+SUMIFS(Measures!$AP:$AP,Measures!$B:$B,$C47,Measures!$A:$A,$J47)","v":0.496},{"$f":"D47*IF('M&A'!$A$5=\"Gross\",1,F47)/(MAX(E47,H47)*IF('M&A'!$A$5=\"Gross\",1,F47)+IF(OR('M&A'!$A$5=\"Gross\",'M&A'!$A$8=\"No\"),0,(1-F47)*H47))","v":3.8945360919784253},{"$f":"SUMIFS(Measures!$CV:$CV,Measures!$B:$B,$C47,Measures!$A:$A,$J47)","v":150},215.35348524319485,"C&I Prescriptive Compressed Air Solutions"]
[45,"Electric","LPD Filter - C33 - System Compressor Size (hp) - >50",{"$f":"SUMIFS(Measures!$CL:$CL,Measures!$B:$B,$C48,Measures!$A:$A,$J48)","v":973.6340229946062},{"$f":"SUMIFS(Measures!$CR:$CR,Measures!$B:$B,$C48,Measures!$A:$A,$J48)","v":229.99999999999997},{"$f":"1-SUMIFS(Measures!$AO:$AO,Measures!$B:$B,$C48,Measures!$A:$A,$J48)+SUMIFS(Measures!$AP:$AP,Measures!$B:$B,$C48,Measures!$A:$A,$J48)","v":0.496},{"$f":"D48*IF('M&A'!$A$5=\"Gross\",1,F48)/(MAX(E48,H48)*IF('M&A'!$A$5=\"Gross\",1,F48)+IF(OR('M&A'!$A$5=\"Gross\",'M&A'!$A$8=\"No\"),0,(1-F48)*H48))","v":4.2331914043243755},{"$f":"SUMIFS(Measures!$CV:$CV,Measures!$B:$B,$C48,Measures!$A:$A,$J48)","v":200},368.84247540532471,"C&I Prescriptive Compressed Air Solutions"]
[46,"Electric","MILK: Scroll Compressor - 10 HP",{"$f":"SUMIFS(Measures!$CL:$CL,Measures!$B:$B,$C49,Measures!$A:$A,$J49)","v":11235.328989817561},{"$f":"SUMIFS(Measures!$CR:$CR,Measures!$B:$B,$C49,Measures!$A:$A,$J49)","v":2051},{"$f":"1-SUMIFS(Measures!$AO:$AO,Measures!$B:$B,$C49,Measures!$A:$A,$J49)+SUMIFS(Measures!$AP:$AP,Measures!$B:$B,$C49,Measures!$A:$A,$J49)","v":0.496},{"$f":"D49*IF('M&A'!$A$5=\"Gross\",1,F49)/(MAX(E49,H49)*IF('M&A'!$A$5=\"Gross\",1,F49)+IF(OR('M&A'!$A$5=\"Gross\",'M&A'!$A$8=\"No\"),0,(1-F49)*H49))","v":5.4779761042503949},{"$f":"SUMIFS(Measures!$CV:$CV,Measures!$B:$B,$C49,Measures!$A:$A,$J49)","v":1100},4555.4271789495097,"C&I Agricultural Solutions"]
[47,"Electric","MILK: Scroll Compressor - 2 HP",{"$f":"SUMIFS(Measures!$CL:$CL,Measures!$B:$B,$C50,Measures!$A:$A,$J50)","v":2247.0657979635121},{"$f":"SUMIFS(Measures!$CR:$CR,Measures!$B:$B,$C50,Measures!$A:$A,$J50)","v":400},{"$f":"1-SUMIFS(Measures!$AO:$AO,Measures!$B:$B,$C50,Measures!$A:$A,$J50)+SUMIFS(Measures!$AP:$AP,Measures!$B:$B,$C50,Measures!$A:$A,$J50)","v":0.496},{"$f":"D50*IF('M&A'!$A$5=\"Gross\",1,F50)/(MAX(E50,H50)*IF('M&A'!$A$5=\"Gross\",1,F50)+IF(OR('M&A'!$A$5=\"Gross\",'M&A'!$A$8=\"No\"),0,(1-F50)*H50))","v":5.6176644949087802},{"$f":"SUMIFS(Measures!$CV:$CV,Measures!$B:$B,$C50,Measures!$A:$A,$J50)","v":220},916.14463578990205,"C&I Agricultural Solutions"]
[48,"Electric","MILK: Scroll Compressor - 3 HP",{"$f":"SUMIFS(Measures!$CL:$CL,Measures!$B:$B,$C51,Measures!$A:$A,$J51)","v":3370.5986969452679},{"$f":"SUMIFS(Measures!$CR:$CR,Measures!$B:$B,$C51,Measures!$A:$A,$J51)","v":525},{"$f":"1-SUMIFS(Measures!$AO:$AO,Measures!$B:$B,$C51,Measures!$A:$A,$J51)+SUMIFS(Measures!$AP:$AP,Measures!$B:$B,$C51,Measures!$A:$A,$J51)","v":0.496},{"$f":"D51*IF('M&A'!$A$5=\"Gross\",1,F51)/(MAX(E51,H51)*IF('M&A'!$A$5=\"Gross\",1,F51)+IF(OR('M&A'!$A$5=\"Gross\",'M&A'!$A$8=\"No\"),0,(1-F51)*H51))","v":6.4201879941814628},{"$f":"SUMIFS(Measures!$CV:$CV,Measures!$B:$B,$C51,Measures!$A:$A,$J51)","v":330},1411.4169536848531,"C&I Agricultural Solutions"]
[49,"Electric","MILK: Scroll Compressor - 5 HP",{"$f":"SUMIFS(Measures!$CL:$CL,Measures!$B:$B,$C52,Measures!$A:$A,$J52)","v":5617.6644949087804},{"$f":"SUMIFS(Measures!$CR:$CR,Measures!$B:$B,$C52,Measures!$A:$A,$J52)","v":1000},{"$f":"1-SUMIFS(Measures!$AO:$AO,Measures!$B:$B,$C52,Measures!$A:$A,$J52)+SUMIFS(Measures!$AP:$AP,Measures!$B:$B,$C52,Measures!$A:$A,$J52)","v":0.496},{"$f":"D52*IF('M&A'!$A$5=\"Gross\",1,F52)/(MAX(E52,H52)*IF('M&A'!$A$5=\"Gross\",1,F52)+IF(OR('M&A'!$A$5=\"Gross\",'M&A'!$A$8=\"No\"),0,(1-F52)*H52))","v":5.6176644949087802},{"$f":"SUMIFS(Measures!$CV:$CV,Measures!$B:$B,$C52,Measures!$A:$A,$J52)","v":550},2290.361589474755,"C&I Agricultural Solutions"]
[{"$f":"ROW(B53)-ROW($B$3)","v":50},"Electric","MILK: Scroll Compressor - 6 HP",{"$f":"SUMIFS(Measures!$CL:$CL,Measures!$B:$B,$C53,Measures!$A:$A,$J53)","v":6741.1973938905357},{"$f":"SUMIFS(Measures!$CR:$CR,Measures!$B:$B,$C53,Measures!$A:$A,$J53)","v":1300},{"$f":"1-SUMIFS(Measures!$AO:$AO,Measures!$B:$B,$C53,Measures!$A:$A,$J53)+SUMIFS(Measures!$AP:$AP,Measures!$B:$B,$C53,Measures!$A:$A,$J53)","v":0.496},{"$f":"D53*IF('M&A'!$A$5=\"Gross\",1,F53)/(MAX(E53,H53)*IF('M&A'!$A$5=\"Gross\",1,F53)+IF(OR('M&A'!$A$5=\"Gross\",'M&A'!$A$8=\"No\"),0,(1-F53)*H53))","v":5.1855364568388733},{"$f":"SUMIFS(Measures!$CV:$CV,Measures!$B:$B,$C53,Measures!$A:$A,$J53)","v":660},{"$f":"D53*F53-(MAX(E53,H53)*F53)","v":2698.8339073697061},"C&I Agricultural Solutions"]
[51,"Electric","MILK: Scroll Compressor - 7.5 HP",{"$f":"SUMIFS(Measures!$CL:$CL,Measures!$B:$B,$C54,Measures!$A:$A,$J54)","v":8426.4967423631715},{"$f":"SUMIFS(Measures!$CR:$CR,Measures!$B:$B,$C54,Measures!$A:$A,$J54)","v":1538},{"$f":"1-SUMIFS(Measures!$AO:$AO,Measures!$B:$B,$C54,Measures!$A:$A,$J54)+SUMIFS(Measures!$AP:$AP,Measures!$B:$B,$C54,Measures!$A:$A,$J54)","v":0.496},{"$f":"D54*IF('M&A'!$A$5=\"Gross\",1,F54)/(MAX(E54,H54)*IF('M&A'!$A$5=\"Gross\",1,F54)+IF(OR('M&A'!$A$5=\"Gross\",'M&A'!$A$8=\"No\"),0,(1-F54)*H54))","v":5.4788665424988112},{"$f":"SUMIFS(Measures!$CV:$CV,Measures!$B:$B,$C54,Measures!$A:$A,$J54)","v":825},3416.6943842121327,"C&I Agricultural Solutions"]
[52,"Electric","MILK: Vacuum Pump with Adjustable Speed Drive Package - 10 HP",{"$f":"SUMIFS(Measures!$CL:$CL,Measures!$B:$B,$C55,Measures!$A:$A,$J55)","v":11249.279827941864},{"$f":"SUMIFS(Measures!$CR:$CR,Measures!$B:$B,$C55,Measures!$A:$A,$J55)","v":5322},{"$f":"1-SUMIFS(Measures!$AO:$AO,Measures!$B:$B,$C55,Measures!$A:$A,$J55)+SUMIFS(Measures!$AP:$AP,Measures!$B:$B,$C55,Measures!$A:$A,$J55)","v":0.496},{"$f":"D55*IF('M&A'!$A$5=\"Gross\",1,F55)/(MAX(E55,H55)*IF('M&A'!$A$5=\"Gross\",1,F55)+IF(OR('M&A'!$A$5=\"Gross\",'M&A'!$A$8=\"No\"),0,(1-F55)*H55))","v":2.1137316474900159},{"$f":"SUMIFS(Measures!$CV:$CV,Measures!$B:$B,$C55,Measures!$A:$A,$J55)","v":2500},2939.9307946591648,"C&I Agricultural Solutions"]
[53,"Electric","MILK: Vacuum Pump with Adjustable Speed Drive Package - 15 HP",{"$f":"SUMIFS(Measures!$CL:$CL,Measures!$B:$B,$C56,Measures!$A:$A,$J56)","v":21097.699713144928},{"$f":"SUMIFS(Measures!$CR:$CR,Measures!$B:$B,$C56,Measures!$A:$A,$J56)","v":5322},{"$f":"1-SUMIFS(Measures!$AO:$AO,Measures!$B:$B,$C56,Measures!$A:$A,$J56)+SUMIFS(Measures!$AP:$AP,Measures!$B:$B,$C56,Measures!$A:$A,$J56)","v":0.496},{"$f":"D56*IF('M&A'!$A$5=\"Gross\",1,F56)/(MAX(E56,H56)*IF('M&A'!$A$5=\"Gross\",1,F56)+IF(OR('M&A'!$A$5=\"Gross\",'M&A'!$A$8=\"No\"),0,(1-F56)*H56))","v":3.9642427119776262},{"$f":"SUMIFS(Measures!$CV:$CV,Measures!$B:$B,$C56,Measures!$A:$A,$J56)","v":3000},7824.7470577198856,"C&I Agricultural Solutions"]
[54,"Electric","MILK: Vacuum Pump with Adjustable Speed Drive Package - 30 HP",{"$f":"SUMIFS(Measures!$CL:$CL,Measures!$B:$B,$C57,Measures!$A:$A,$J57)","v":50794.204079937132},{"$f":"SUMIFS(Measures!$CR:$CR,Measures!$B:$B,$C57,Measures!$A:$A,$J57)","v":5322},{"$f":"1-SUMIFS(Measures!$AO:$AO,Measures!$B:$B,$C57,Measures!$A:$A,$J57)+SUMIFS(Measures!$AP:$AP,Measures!$B:$B,$C57,Measures!$A:$A,$J57)","v":0.496},{"$f":"D57*IF('M&A'!$A$5=\"Gross\",1,F57)/(MAX(E57,H57)*IF('M&A'!$A$5=\"Gross\",1,F57)+IF(OR('M&A'!$A$5=\"Gross\",'M&A'!$A$8=\"No\"),0,(1-F57)*H57))","v":8.4657006799895225},{"$f":"SUMIFS(Measures!$CV:$CV,Measures!$B:$B,$C57,Measures!$A:$A,$J57)","v":6000},22217.925223648817,"C&I Agricultural Solutions"]
[55,"Electric","MILK: Vacuum Pump with Adjustable Speed Drive Package - 7.5 HP",{"$f":"SUMIFS(Measures!$CL:$CL,Measures!$B:$B,$C58,Measures!$A:$A,$J58)","v":6109.532076404912},{"$f":"SUMIFS(Measures!$CR:$CR,Measures!$B:$B,$C58,Measures!$A:$A,$J58)","v":5322},{"$f":"1-SUMIFS(Measures!$AO:$AO,Measures!$B:$B,$C58,Measures!$A:$A,$J58)+SUMIFS(Measures!$AP:$AP,Measures!$B:$B,$C58,Measures!$A:$A,$J58)","v":0.496},{"$f":"D58*IF('M&A'!$A$5=\"Gross\",1,F58)/(MAX(E58,H58)*IF('M&A'!$A$5=\"Gross\",1,F58)+IF(OR('M&A'!$A$5=\"Gross\",'M&A'!$A$8=\"No\"),0,(1-F58)*H58))","v":1.1479767148449667},{"$f":"SUMIFS(Measures!$CV:$CV,Measures!$B:$B,$C58,Measures!$A:$A,$J58)","v":2000},390.61590989683646,"C&I Agricultural Solutions"]
[56,"Heating Oil","Modulating Burner Controls for Boilers and Heaters",{"$f":"SUMIFS(Measures!$CL:$CL,Measures!$B:$B,$C59,Measures!$A:$A,$J59)","v":233313.7855125693},{"$f":"SUMIFS(Measures!$CR:$CR,Measures!$B:$B,$C59,Measures!$A:$A,$J59)","v":14025.560000000001},{"$f":"1-SUMIFS(Measures!$AO:$AO,Measures!$B:$B,$C59,Measures!$A:$A,$J59)+SUMIFS(Measures!$AP:$AP,Measures!$B:$B,$C59,Measures!$A:$A,$J59)","v":0.496},{"$f":"D59*IF('M&A'!$A$5=\"Gross\",1,F59)/(MAX(E59,H59)*IF('M&A'!$A$5=\"Gross\",1,F59)+IF(OR('M&A'!$A$5=\"Gross\",'M&A'!$A$8=\"No\"),0,(1-F59)*H59))","v":16.634899819513038},{"$f":"SUMIFS(Measures!$CV:$CV,Measures!$B:$B,$C59,Measures!$A:$A,$J59)","v":8192.5},108766.95985423437,"C&I HVAC - Propane and Compressed NG"]
[57,"Heating Oil","Modulating Burner Controls for Boilers and Heaters",{"$f":"SUMIFS(Measures!$CL:$CL,Measures!$B:$B,$C60,Measures!$A:$A,$J60)","v":91718.477993930879},{"$f":"SUMIFS(Measures!$CR:$CR,Measures!$B:$B,$C60,Measures!$A:$A,$J60)","v":7763.92},{"$f":"1-SUMIFS(Measures!$AO:$AO,Measures!$B:$B,$C60,Measures!$A:$A,$J60)+SUMIFS(Measures!$AP:$AP,Measures!$B:$B,$C60,Measures!$A:$A,$J60)","v":0.496},{"$f":"D60*IF('M&A'!$A$5=\"Gross\",1,F60)/(MAX(E60,H60)*IF('M&A'!$A$5=\"Gross\",1,F60)+IF(OR('M&A'!$A$5=\"Gross\",'M&A'!$A$8=\"No\"),0,(1-F60)*H60))","v":11.8134238881816},{"$f":"SUMIFS(Measures!$CV:$CV,Measures!$B:$B,$C60,Measures!$A:$A,$J60)","v":4535},41641.460764989715,"C&I HVAC - Oil"]
[58,"Natural Gas","Modulating Burner Controls for Boilers and Heaters",{"$f":"SUMIFS(Measures!$CL:$CL,Measures!$B:$B,$C61,Measures!$A:$A,$J61)","v":11419.915878218078},{"$f":"SUMIFS(Measures!$CR:$CR,Measures!$B:$B,$C61,Measures!$A:$A,$J61)","v":2140},{"$f":"1-SUMIFS(Measures!$AO:$AO,Measures!$B:$B,$C61,Measures!$A:$A,$J61)+SUMIFS(Measures!$AP:$AP,Measures!$B:$B,$C61,Measures!$A:$A,$J61)","v":0.496},{"$f":"D61*IF('M&A'!$A$5=\"Gross\",1,F61)/(MAX(E61,H61)*IF('M&A'!$A$5=\"Gross\",1,F61)+IF(OR('M&A'!$A$5=\"Gross\",'M&A'!$A$8=\"No\"),0,(1-F61)*H61))","v":5.3364092888869523},{"$f":"SUMIFS(Measures!$CV:$CV,Measures!$B:$B,$C61,Measures!$A:$A,$J61)","v":1250},4602.8382755961666,"C&I HVAC - Natural Gas"]
[59,"Electric","OTHER: High Volume Low Speed Fans (14,16,18, 20 & 24 foot diameters)",{"$f":"SUMIFS(Measures!$CL:$CL,Measures!$B:$B,$C62,Measures!$A:$A,$J62)","v":15005.620998897546},{"$f":"SUMIFS(Measures!$CR:$CR,Measures!$B:$B,$C62,Measures!$A:$A,$J62)","v":1165},{"$f":"1-SUMIFS(Measures!$AO:$AO,Measures!$B:$B,$C62,Measures!$A:$A,$J62)+SUMIFS(Measures!$AP:$AP,Measures!$B:$B,$C62,Measures!$A:$A,$J62)","v":0.496},{"$f":"D62*IF('M&A'!$A$5=\"Gross\",1,F62)/(MAX(E62,H62)*IF('M&A'!$A$5=\"Gross\",1,F62)+IF(OR('M&A'!$A$5=\"Gross\",'M&A'!$A$8=\"No\"),0,(1-F62)*H62))","v":12.880361372444245},{"$f":"SUMIFS(Measures!$CV:$CV,Measures!$B:$B,$C62,Measures!$A:$A,$J62)","v":1000},6864.948015453183,"C&I Agricultural Solutions"]
[60,"Propane","Oxygen Trim for Boilers and Heaters",{"$f":"SUMIFS(Measures!$CL:$CL,Measures!$B:$B,$C63,Measures!$A:$A,$J63)","v":40575.152346759991},{"$f":"SUMIFS(Measures!$CR:$CR,Measures!$B:$B,$C63,Measures!$A:$A,$J63)","v":20000},{"$f":"1-SUMIFS(Measures!$AO:$AO,Measures!$B:$B,$C63,Measures!$A:$A,$J63)+SUMIFS(Measures!$AP:$AP,Measures!$B:$B,$C63,Measures!$A:$A,$J63)","v":0.496},{"$f":"D63*IF('M&A'!$A$5=\"Gross\",1,F63)/(MAX(E63,H63)*IF('M&A'!$A$5=\"Gross\",1,F63)+IF(OR('M&A'!$A$5=\"Gross\",'M&A'!$A$8=\"No\"),0,(1-F63)*H63))","v":2.0287576173379995},{"$f":"SUMIFS(Measures!$CV:$CV,Measures!$B:$B,$C63,Measures!$A:$A,$J63)","v":1650},10205.275563992956,"C&I HVAC - Propane and Compressed NG"]
[61,"Heating Oil","Oxygen Trim for Boilers and Heaters",{"$f":"SUMIFS(Measures!$CL:$CL,Measures!$B:$B,$C64,Measures!$A:$A,$J64)","v":29052.799899524962},{"$f":"SUMIFS(Measures!$CR:$CR,Measures!$B:$B,$C64,Measures!$A:$A,$J64)","v":20000},{"$f":"1-SUMIFS(Measures!$AO:$AO,Measures!$B:$B,$C64,Measures!$A:$A,$J64)+SUMIFS(Measures!$AP:$AP,Measures!$B:$B,$C64,Measures!$A:$A,$J64)","v":0.496},{"$f":"D64*IF('M&A'!$A$5=\"Gross\",1,F64)/(MAX(E64,H64)*IF('M&A'!$A$5=\"Gross\",1,F64)+IF(OR('M&A'!$A$5=\"Gross\",'M&A'!$A$8=\"No\"),0,(1-F64)*H64))","v":1.4526399949762481},{"$f":"SUMIFS(Measures!$CV:$CV,Measures!$B:$B,$C64,Measures!$A:$A,$J64)","v":1650},4490.1887501643814,"C&I HVAC - Oil"]
[62,"Natural Gas","Oxygen Trim for Boilers and Heaters",{"$f":"SUMIFS(Measures!$CL:$CL,Measures!$B:$B,$C65,Measures!$A:$A,$J65)","v":13617.223621925048},{"$f":"SUMIFS(Measures!$CR:$CR,Measures!$B:$B,$C65,Measures!$A:$A,$J65)","v":20000},{"$f":"1-SUMIFS(Measures!$AO:$AO,Measures!$B:$B,$C65,Measures!$A:$A,$J65)+SUMIFS(Measures!$AP:$AP,Measures!$B:$B,$C65,Measures!$A:$A,$J65)","v":0.496},{"$f":"D65*IF('M&A'!$A$5=\"Gross\",1,F65)/(MAX(E65,H65)*IF('M&A'!$A$5=\"Gross\",1,F65)+IF(OR('M&A'!$A$5=\"Gross\",'M&A'!$A$8=\"No\"),0,(1-F65)*H65))","v":0.68086118109625238},{"$f":"SUMIFS(Measures!$CV:$CV,Measures!$B:$B,$C65,Measures!$A:$A,$J65)","v":1650},-3165.8570835251758,"C&I HVAC - Natural Gas"]
[63,"Electric","POTATO: Adjustable Speed Drive - 10 HP Ventilation Fan Motor",{"$f":"SUMIFS(Measures!$CL:$CL,Measures!$B:$B,$C66,Measures!$A:$A,$J66)","v":59624.528238852508},{"$f":"SUMIFS(Measures!$CR:$CR,Measures!$B:$B,$C66,Measures!$A:$A,$J66)","v":1745},{"$f":"1-SUMIFS(Measures!$AO:$AO,Measures!$B:$B,$C66,Measures!$A:$A,$J66)+SUMIFS(Measures!$AP:$AP,Measures!$B:$B,$C66,Measures!$A:$A,$J66)","v":0.496},{"$f":"D66*IF('M&A'!$A$5=\"Gross\",1,F66)/(MAX(E66,H66)*IF('M&A'!$A$5=\"Gross\",1,F66)+IF(OR('M&A'!$A$5=\"Gross\",'M&A'!$A$8=\"No\"),0,(1-F66)*H66))","v":34.168784091032954},{"$f":"SUMIFS(Measures!$CV:$CV,Measures!$B:$B,$C66,Measures!$A:$A,$J66)","v":1200},28708.246006470843,"C&I Agricultural Solutions"]
[64,"Electric","POTATO: Adjustable Speed Drive - 15 HP Ventilation Fan Motor",{"$f":"SUMIFS(Measures!$CL:$CL,Measures!$B:$B,$C67,Measures!$A:$A,$J67)","v":89436.792358278763},{"$f":"SUMIFS(Measures!$CR:$CR,Measures!$B:$B,$C67,Measures!$A:$A,$J67)","v":2525},{"$f":"1-SUMIFS(Measures!$AO:$AO,Measures!$B:$B,$C67,Measures!$A:$A,$J67)+SUMIFS(Measures!$AP:$AP,Measures!$B:$B,$C67,Measures!$A:$A,$J67)","v":0.496},{"$f":"D67*IF('M&A'!$A$5=\"Gross\",1,F67)/(MAX(E67,H67)*IF('M&A'!$A$5=\"Gross\",1,F67)+IF(OR('M&A'!$A$5=\"Gross\",'M&A'!$A$8=\"No\"),0,(1-F67)*H67))","v":35.420511825060899},{"$f":"SUMIFS(Measures!$CV:$CV,Measures!$B:$B,$C67,Measures!$A:$A,$J67)","v":1800},43108.249009706262,"C&I Agricultural Solutions"]
[65,"Electric","POTATO: Adjustable Speed Drive - 20 HP Ventilation Fan Motor",{"$f":"SUMIFS(Measures!$CL:$CL,Measures!$B:$B,$C68,Measures!$A:$A,$J68)","v":119249.05647770502},{"$f":"SUMIFS(Measures!$CR:$CR,Measures!$B:$B,$C68,Measures!$A:$A,$J68)","v":2725},{"$f":"1-SUMIFS(Measures!$AO:$AO,Measures!$B:$B,$C68,Measures!$A:$A,$J68)+SUMIFS(Measures!$AP:$AP,Measures!$B:$B,$C68,Measures!$A:$A,$J68)","v":0.496},{"$f":"D68*IF('M&A'!$A$5=\"Gross\",1,F68)/(MAX(E68,H68)*IF('M&A'!$A$5=\"Gross\",1,F68)+IF(OR('M&A'!$A$5=\"Gross\",'M&A'!$A$8=\"No\"),0,(1-F68)*H68))","v":43.7611216431945},{"$f":"SUMIFS(Measures!$CV:$CV,Measures!$B:$B,$C68,Measures!$A:$A,$J68)","v":2000},57795.932012941688,"C&I Agricultural Solutions"]
[66,"Electric","POTATO: Adjustable Speed Drive - 3 to 5 HP Ventilation Fan Motor",{"$f":"SUMIFS(Measures!$CL:$CL,Measures!$B:$B,$C69,Measures!$A:$A,$J69)","v":23849.811295541003},{"$f":"SUMIFS(Measures!$CR:$CR,Measures!$B:$B,$C69,Measures!$A:$A,$J69)","v":963},{"$f":"1-SUMIFS(Measures!$AO:$AO,Measures!$B:$B,$C69,Measures!$A:$A,$J69)+SUMIFS(Measures!$AP:$AP,Measures!$B:$B,$C69,Measures!$A:$A,$J69)","v":0.496},{"$f":"D69*IF('M&A'!$A$5=\"Gross\",1,F69)/(MAX(E69,H69)*IF('M&A'!$A$5=\"Gross\",1,F69)+IF(OR('M&A'!$A$5=\"Gross\",'M&A'!$A$8=\"No\"),0,(1-F69)*H69))","v":24.766159185400834},{"$f":"SUMIFS(Measures!$CV:$CV,Measures!$B:$B,$C69,Measures!$A:$A,$J69)","v":800},11351.858402588339,"C&I Agricultural Solutions"]
[67,"Electric","POTATO: Adjustable Speed Drive - 7.5 HP Ventilation Fan Motor",{"$f":"SUMIFS(Measures!$CL:$CL,Measures!$B:$B,$C70,Measures!$A:$A,$J70)","v":44718.396179139381},{"$f":"SUMIFS(Measures!$CR:$CR,Measures!$B:$B,$C70,Measures!$A:$A,$J70)","v":1467},{"$f":"1-SUMIFS(Measures!$AO:$AO,Measures!$B:$B,$C70,Measures!$A:$A,$J70)+SUMIFS(Measures!$AP:$AP,Measures!$B:$B,$C70,Measures!$A:$A,$J70)","v":0.496},{"$f":"D70*IF('M&A'!$A$5=\"Gross\",1,F70)/(MAX(E70,H70)*IF('M&A'!$A$5=\"Gross\",1,F70)+IF(OR('M&A'!$A$5=\"Gross\",'M&A'!$A$8=\"No\"),0,(1-F70)*H70))","v":30.482887647675106},{"$f":"SUMIFS(Measures!$CV:$CV,Measures!$B:$B,$C70,Measures!$A:$A,$J70)","v":1000},21452.69250485313,"C&I Agricultural Solutions"]
[68,"Heating Oil","Programmable Thermostat",{"$f":"SUMIFS(Measures!$CL:$CL,Measures!$B:$B,$C71,Measures!$A:$A,$J71)","v":3660.0716164380806},{"$f":"SUMIFS(Measures!$CR:$CR,Measures!$B:$B,$C71,Measures!$A:$A,$J71)","v":157},{"$f":"1-SUMIFS(Measures!$AO:$AO,Measures!$B:$B,$C71,Measures!$A:$A,$J71)+SUMIFS(Measures!$AP:$AP,Measures!$B:$B,$C71,Measures!$A:$A,$J71)","v":0.496},{"$f":"D71*IF('M&A'!$A$5=\"Gross\",1,F71)/(MAX(E71,H71)*IF('M&A'!$A$5=\"Gross\",1,F71)+IF(OR('M&A'!$A$5=\"Gross\",'M&A'!$A$8=\"No\"),0,(1-F71)*H71))","v":23.312558066484591},{"$f":"SUMIFS(Measures!$CV:$CV,Measures!$B:$B,$C71,Measures!$A:$A,$J71)","v":100},1737.5235217532879,"C&I HVAC - Propane and Compressed NG"]
[69,"Heating Oil","Programmable Thermostat",{"$f":"SUMIFS(Measures!$CL:$CL,Measures!$B:$B,$C72,Measures!$A:$A,$J72)","v":2634.2426802411069},{"$f":"SUMIFS(Measures!$CR:$CR,Measures!$B:$B,$C72,Measures!$A:$A,$J72)","v":157},{"$f":"1-SUMIFS(Measures!$AO:$AO,Measures!$B:$B,$C72,Measures!$A:$A,$J72)+SUMIFS(Measures!$AP:$AP,Measures!$B:$B,$C72,Measures!$A:$A,$J72)","v":0.496},{"$f":"D72*IF('M&A'!$A$5=\"Gross\",1,F72)/(MAX(E72,H72)*IF('M&A'!$A$5=\"Gross\",1,F72)+IF(OR('M&A'!$A$5=\"Gross\",'M&A'!$A$8=\"No\"),0,(1-F72)*H72))","v":16.778615797714057},{"$f":"SUMIFS(Measures!$CV:$CV,Measures!$B:$B,$C72,Measures!$A:$A,$J72)","v":100},1228.7123693995889,"C&I HVAC - Oil"]
[70,"Natural Gas","Programmable Thermostat",{"$f":"SUMIFS(Measures!$CL:$CL,Measures!$B:$B,$C73,Measures!$A:$A,$J73)","v":2910.9547547197744},{"$f":"SUMIFS(Measures!$CR:$CR,Measures!$B:$B,$C73,Measures!$A:$A,$J73)","v":157},{"$f":"1-SUMIFS(Measures!$AO:$AO,Measures!$B:$B,$C73,Measures!$A:$A,$J73)+SUMIFS(Measures!$AP:$AP,Measures!$B:$B,$C73,Measures!$A:$A,$J73)","v":0.496},{"$f":"D73*IF('M&A'!$A$5=\"Gross\",1,F73)/(MAX(E73,H73)*IF('M&A'!$A$5=\"Gross\",1,F73)+IF(OR('M&A'!$A$5=\"Gross\",'M&A'!$A$8=\"No\"),0,(1-F73)*H73))","v":18.5411130873871},{"$f":"SUMIFS(Measures!$CV:$CV,Measures!$B:$B,$C73,Measures!$A:$A,$J73)","v":100},1365.961558341008,"C&I HVAC - Natural Gas"]
[71,"Electric","Programmable Thermostat",{"$f":"SUMIFS(Measures!$CL:$CL,Measures!$B:$B,$C74,Measures!$A:$A,$J74)","v":2303.4467270632981},{"$f":"SUMIFS(Measures!$CR:$CR,Measures!$B:$B,$C74,Measures!$A:$A,$J74)","v":157},{"$f":"1-SUMIFS(Measures!$AO:$AO,Measures!$B:$B,$C74,Measures!$A:$A,$J74)+SUMIFS(Measures!$AP:$AP,Measures!$B:$B,$C74,Measures!$A:$A,$J74)","v":0.496},{"$f":"D74*IF('M&A'!$A$5=\"Gross\",1,F74)/(MAX(E74,H74)*IF('M&A'!$A$5=\"Gross\",1,F74)+IF(OR('M&A'!$A$5=\"Gross\",'M&A'!$A$8=\"No\"),0,(1-F74)*H74))","v":14.671635204224829},{"$f":"SUMIFS(Measures!$CV:$CV,Measures!$B:$B,$C74,Measures!$A:$A,$J74)","v":100},1064.6375766233957,"C&I HVAC - Electric"]
[72,"Electric","R10 Evaporator Fan Motor Control for Cooler or Freezer",{"$f":"SUMIFS(Measures!$CL:$CL,Measures!$B:$B,$C75,Measures!$A:$A,$J75)","v":1380.5014191344594},{"$f":"SUMIFS(Measures!$CR:$CR,Measures!$B:$B,$C75,Measures!$A:$A,$J75)","v":520},{"$f":"1-SUMIFS(Measures!$AO:$AO,Measures!$B:$B,$C75,Measures!$A:$A,$J75)+SUMIFS(Measures!$AP:$AP,Measures!$B:$B,$C75,Measures!$A:$A,$J75)","v":0.496},{"$f":"D75*IF('M&A'!$A$5=\"Gross\",1,F75)/(MAX(E75,H75)*IF('M&A'!$A$5=\"Gross\",1,F75)+IF(OR('M&A'!$A$5=\"Gross\",'M&A'!$A$8=\"No\"),0,(1-F75)*H75))","v":2.6548104214124217},{"$f":"SUMIFS(Measures!$CV:$CV,Measures!$B:$B,$C75,Measures!$A:$A,$J75)","v":250},426.8087038906919,"C&I Refrigeration Solutions"]
[73,"Electric","R20 Door Heater Controls for Cooler or Freezer",{"$f":"SUMIFS(Measures!$CL:$CL,Measures!$B:$B,$C76,Measures!$A:$A,$J76)","v":892.78624478079087},{"$f":"SUMIFS(Measures!$CR:$CR,Measures!$B:$B,$C76,Measures!$A:$A,$J76)","v":300},{"$f":"1-SUMIFS(Measures!$AO:$AO,Measures!$B:$B,$C76,Measures!$A:$A,$J76)+SUMIFS(Measures!$AP:$AP,Measures!$B:$B,$C76,Measures!$A:$A,$J76)","v":0.496},{"$f":"D76*IF('M&A'!$A$5=\"Gross\",1,F76)/(MAX(E76,H76)*IF('M&A'!$A$5=\"Gross\",1,F76)+IF(OR('M&A'!$A$5=\"Gross\",'M&A'!$A$8=\"No\"),0,(1-F76)*H76))","v":2.9759541492693029},{"$f":"SUMIFS(Measures!$CV:$CV,Measures!$B:$B,$C76,Measures!$A:$A,$J76)","v":150},294.02197741127225,"C&I Refrigeration Solutions"]
[{"$f":"ROW(B77)-ROW($B$3)","v":74},"Electric","R25 Strip Curtains",{"$f":"SUMIFS(Measures!$CL:$CL,Measures!$B:$B,$C77,Measures!$A:$A,$J77)","v":1612.1868210420332},{"$f":"SUMIFS(Measures!$CR:$CR,Measures!$B:$B,$C77,Measures!$A:$A,$J77)","v":214.62},{"$f":"1-SUMIFS(Measures!$AO:$AO,Measures!$B:$B,$C77,Measures!$A:$A,$J77)+SUMIFS(Measures!$AP:$AP,Measures!$B:$B,$C77,Measures!$A:$A,$J77)","v":0.496},{"$f":"D77*IF('M&A'!$A$5=\"Gross\",1,F77)/(MAX(E77,H77)*IF('M&A'!$A$5=\"Gross\",1,F77)+IF(OR('M&A'!$A$5=\"Gross\",'M&A'!$A$8=\"No\"),0,(1-F77)*H77))","v":7.5118200589042639},{"$f":"SUMIFS(Measures!$CV:$CV,Measures!$B:$B,$C77,Measures!$A:$A,$J77)","v":210},{"$f":"D77*F77-(MAX(E77,H77)*F77)","v":693.19314323684853},"C&I Refrigeration Solutions"]
[75,"Electric","R40 High-Efficiency Evaporator Fan Motors - Walk-in Coolers/Freezers",{"$f":"SUMIFS(Measures!$CL:$CL,Measures!$B:$B,$C78,Measures!$A:$A,$J78)","v":1764.2793639101913},{"$f":"SUMIFS(Measures!$CR:$CR,Measures!$B:$B,$C78,Measures!$A:$A,$J78)","v":144},{"$f":"1-SUMIFS(Measures!$AO:$AO,Measures!$B:$B,$C78,Measures!$A:$A,$J78)+SUMIFS(Measures!$AP:$AP,Measures!$B:$B,$C78,Measures!$A:$A,$J78)","v":0.496},{"$f":"D78*IF('M&A'!$A$5=\"Gross\",1,F78)/(MAX(E78,H78)*IF('M&A'!$A$5=\"Gross\",1,F78)+IF(OR('M&A'!$A$5=\"Gross\",'M&A'!$A$8=\"No\"),0,(1-F78)*H78))","v":12.251940027154106},{"$f":"SUMIFS(Measures!$CV:$CV,Measures!$B:$B,$C78,Measures!$A:$A,$J78)","v":50},803.65856449945488,"C&I Refrigeration Solutions"]
[76,"Electric","R41 High-Efficiency Evaporator Fan Motors - Refrigerated Warehouses",{"$f":"SUMIFS(Measures!$CL:$CL,Measures!$B:$B,$C79,Measures!$A:$A,$J79)","v":1764.2793639101913},{"$f":"SUMIFS(Measures!$CR:$CR,Measures!$B:$B,$C79,Measures!$A:$A,$J79)","v":144},{"$f":"1-SUMIFS(Measures!$AO:$AO,Measures!$B:$B,$C79,Measures!$A:$A,$J79)+SUMIFS(Measures!$AP:$AP,Measures!$B:$B,$C79,Measures!$A:$A,$J79)","v":0.496},{"$f":"D79*IF('M&A'!$A$5=\"Gross\",1,F79)/(MAX(E79,H79)*IF('M&A'!$A$5=\"Gross\",1,F79)+IF(OR('M&A'!$A$5=\"Gross\",'M&A'!$A$8=\"No\"),0,(1-F79)*H79))","v":12.251940027154106},{"$f":"SUMIFS(Measures!$CV:$CV,Measures!$B:$B,$C79,Measures!$A:$A,$J79)","v":100},803.65856449945488,"C&I Refrigeration Solutions"]
[77,"Electric","R42 High-Efficiency Evaporator Fan Motors - Merchandise Cases",{"$f":"SUMIFS(Measures!$CL:$CL,Measures!$B:$B,$C80,Measures!$A:$A,$J80)","v":1764.2793639101913},{"$f":"SUMIFS(Measures!$CR:$CR,Measures!$B:$B,$C80,Measures!$A:$A,$J80)","v":117},{"$f":"1-SUMIFS(Measures!$AO:$AO,Measures!$B:$B,$C80,Measures!$A:$A,$J80)+SUMIFS(Measures!$AP:$AP,Measures!$B:$B,$C80,Measures!$A:$A,$J80)","v":0.496},{"$f":"D80*IF('M&A'!$A$5=\"Gross\",1,F80)/(MAX(E80,H80)*IF('M&A'!$A$5=\"Gross\",1,F80)+IF(OR('M&A'!$A$5=\"Gross\",'M&A'!$A$8=\"No\"),0,(1-F80)*H80))","v":15.079310802651207},{"$f":"SUMIFS(Measures!$CV:$CV,Measures!$B:$B,$C80,Measures!$A:$A,$J80)","v":20},817.05056449945482,"C&I Refrigeration Solutions"]
[78,"Electric","R50 Floating-Head Pressure Controls - Controlling 1 Coil",{"$f":"SUMIFS(Measures!$CL:$CL,Measures!$B:$B,$C81,Measures!$A:$A,$J81)","v":4816.2441690182877},{"$f":"SUMIFS(Measures!$CR:$CR,Measures!$B:$B,$C81,Measures!$A:$A,$J81)","v":518},{"$f":"1-SUMIFS(Measures!$AO:$AO,Measures!$B:$B,$C81,Measures!$A:$A,$J81)+SUMIFS(Measures!$AP:$AP,Measures!$B:$B,$C81,Measures!$A:$A,$J81)","v":0.496},{"$f":"D81*IF('M&A'!$A$5=\"Gross\",1,F81)/(MAX(E81,H81)*IF('M&A'!$A$5=\"Gross\",1,F81)+IF(OR('M&A'!$A$5=\"Gross\",'M&A'!$A$8=\"No\"),0,(1-F81)*H81))","v":9.2977686660584702},{"$f":"SUMIFS(Measures!$CV:$CV,Measures!$B:$B,$C81,Measures!$A:$A,$J81)","v":250},2131.9291078330707,"C&I Refrigeration Solutions"]
[79,"Electric","R51 Floating-Head Pressure Controls - Controlling 2 Coils",{"$f":"SUMIFS(Measures!$CL:$CL,Measures!$B:$B,$C82,Measures!$A:$A,$J82)","v":4816.2441690182877},{"$f":"SUMIFS(Measures!$CR:$CR,Measures!$B:$B,$C82,Measures!$A:$A,$J82)","v":734},{"$f":"1-SUMIFS(Measures!$AO:$AO,Measures!$B:$B,$C82,Measures!$A:$A,$J82)+SUMIFS(Measures!$AP:$AP,Measures!$B:$B,$C82,Measures!$A:$A,$J82)","v":0.496},{"$f":"D82*IF('M&A'!$A$5=\"Gross\",1,F82)/(MAX(E82,H82)*IF('M&A'!$A$5=\"Gross\",1,F82)+IF(OR('M&A'!$A$5=\"Gross\",'M&A'!$A$8=\"No\"),0,(1-F82)*H82))","v":6.5616405572456236},{"$f":"SUMIFS(Measures!$CV:$CV,Measures!$B:$B,$C82,Measures!$A:$A,$J82)","v":375},2024.7931078330705,"C&I Refrigeration Solutions"]
[80,"Electric","R52 Floating-Head Pressure Controls - Controlling 3 Coils",{"$f":"SUMIFS(Measures!$CL:$CL,Measures!$B:$B,$C83,Measures!$A:$A,$J83)","v":4816.2441690182877},{"$f":"SUMIFS(Measures!$CR:$CR,Measures!$B:$B,$C83,Measures!$A:$A,$J83)","v":984},{"$f":"1-SUMIFS(Measures!$AO:$AO,Measures!$B:$B,$C83,Measures!$A:$A,$J83)+SUMIFS(Measures!$AP:$AP,Measures!$B:$B,$C83,Measures!$A:$A,$J83)","v":0.496},{"$f":"D83*IF('M&A'!$A$5=\"Gross\",1,F83)/(MAX(E83,H83)*IF('M&A'!$A$5=\"Gross\",1,F83)+IF(OR('M&A'!$A$5=\"Gross\",'M&A'!$A$8=\"No\"),0,(1-F83)*H83))","v":4.8945570823356581},{"$f":"SUMIFS(Measures!$CV:$CV,Measures!$B:$B,$C83,Measures!$A:$A,$J83)","v":500},1900.7931078330705,"C&I Refrigeration Solutions"]
[81,"Electric","R70 New Scroll Compressors - 2 HP",{"$f":"SUMIFS(Measures!$CL:$CL,Measures!$B:$B,$C84,Measures!$A:$A,$J84)","v":1496.1581485654083},{"$f":"SUMIFS(Measures!$CR:$CR,Measures!$B:$B,$C84,Measures!$A:$A,$J84)","v":400},{"$f":"1-SUMIFS(Measures!$AO:$AO,Measures!$B:$B,$C84,Measures!$A:$A,$J84)+SUMIFS(Measures!$AP:$AP,Measures!$B:$B,$C84,Measures!$A:$A,$J84)","v":0.496},{"$f":"D84*IF('M&A'!$A$5=\"Gross\",1,F84)/(MAX(E84,H84)*IF('M&A'!$A$5=\"Gross\",1,F84)+IF(OR('M&A'!$A$5=\"Gross\",'M&A'!$A$8=\"No\"),0,(1-F84)*H84))","v":3.7403953714135207},{"$f":"SUMIFS(Measures!$CV:$CV,Measures!$B:$B,$C84,Measures!$A:$A,$J84)","v":220},543.69444168844257,"C&I Refrigeration Solutions"]
[82,"Electric","R71 New Scroll Compressors - 3 HP",{"$f":"SUMIFS(Measures!$CL:$CL,Measures!$B:$B,$C85,Measures!$A:$A,$J85)","v":2244.2372228481127},{"$f":"SUMIFS(Measures!$CR:$CR,Measures!$B:$B,$C85,Measures!$A:$A,$J85)","v":525},{"$f":"1-SUMIFS(Measures!$AO:$AO,Measures!$B:$B,$C85,Measures!$A:$A,$J85)+SUMIFS(Measures!$AP:$AP,Measures!$B:$B,$C85,Measures!$A:$A,$J85)","v":0.496},{"$f":"D85*IF('M&A'!$A$5=\"Gross\",1,F85)/(MAX(E85,H85)*IF('M&A'!$A$5=\"Gross\",1,F85)+IF(OR('M&A'!$A$5=\"Gross\",'M&A'!$A$8=\"No\"),0,(1-F85)*H85))","v":4.2747375673297388},{"$f":"SUMIFS(Measures!$CV:$CV,Measures!$B:$B,$C85,Measures!$A:$A,$J85)","v":330},852.74166253266378,"C&I Refrigeration Solutions"]
[83,"Electric","R72 New Scroll Compressors - 4 HP",{"$f":"SUMIFS(Measures!$CL:$CL,Measures!$B:$B,$C86,Measures!$A:$A,$J86)","v":2992.3162971308166},{"$f":"SUMIFS(Measures!$CR:$CR,Measures!$B:$B,$C86,Measures!$A:$A,$J86)","v":600},{"$f":"1-SUMIFS(Measures!$AO:$AO,Measures!$B:$B,$C86,Measures!$A:$A,$J86)+SUMIFS(Measures!$AP:$AP,Measures!$B:$B,$C86,Measures!$A:$A,$J86)","v":0.496},{"$f":"D86*IF('M&A'!$A$5=\"Gross\",1,F86)/(MAX(E86,H86)*IF('M&A'!$A$5=\"Gross\",1,F86)+IF(OR('M&A'!$A$5=\"Gross\",'M&A'!$A$8=\"No\"),0,(1-F86)*H86))","v":4.9871938285513613},{"$f":"SUMIFS(Measures!$CV:$CV,Measures!$B:$B,$C86,Measures!$A:$A,$J86)","v":440},1186.588883376885,"C&I Refrigeration Solutions"]
[84,"Electric","R73 New Scroll Compressors - 5 HP",{"$f":"SUMIFS(Measures!$CL:$CL,Measures!$B:$B,$C87,Measures!$A:$A,$J87)","v":3740.3953714135209},{"$f":"SUMIFS(Measures!$CR:$CR,Measures!$B:$B,$C87,Measures!$A:$A,$J87)","v":1000},{"$f":"1-SUMIFS(Measures!$AO:$AO,Measures!$B:$B,$C87,Measures!$A:$A,$J87)+SUMIFS(Measures!$AP:$AP,Measures!$B:$B,$C87,Measures!$A:$A,$J87)","v":0.496},{"$f":"D87*IF('M&A'!$A$5=\"Gross\",1,F87)/(MAX(E87,H87)*IF('M&A'!$A$5=\"Gross\",1,F87)+IF(OR('M&A'!$A$5=\"Gross\",'M&A'!$A$8=\"No\"),0,(1-F87)*H87))","v":3.7403953714135207},{"$f":"SUMIFS(Measures!$CV:$CV,Measures!$B:$B,$C87,Measures!$A:$A,$J87)","v":550},1359.2361042211064,"C&I Refrigeration Solutions"]
[85,"Electric","R74 New Scroll Compressors - 6 HP",{"$f":"SUMIFS(Measures!$CL:$CL,Measures!$B:$B,$C88,Measures!$A:$A,$J88)","v":4488.4744456962253},{"$f":"SUMIFS(Measures!$CR:$CR,Measures!$B:$B,$C88,Measures!$A:$A,$J88)","v":1300},{"$f":"1-SUMIFS(Measures!$AO:$AO,Measures!$B:$B,$C88,Measures!$A:$A,$J88)+SUMIFS(Measures!$AP:$AP,Measures!$B:$B,$C88,Measures!$A:$A,$J88)","v":0.496},{"$f":"D88*IF('M&A'!$A$5=\"Gross\",1,F88)/(MAX(E88,H88)*IF('M&A'!$A$5=\"Gross\",1,F88)+IF(OR('M&A'!$A$5=\"Gross\",'M&A'!$A$8=\"No\"),0,(1-F88)*H88))","v":3.4526726505355581},{"$f":"SUMIFS(Measures!$CV:$CV,Measures!$B:$B,$C88,Measures!$A:$A,$J88)","v":660},1581.4833250653276,"C&I Refrigeration Solutions"]
[{"$f":"ROW(B89)-ROW($B$3)","v":86},"Electric","Receiver - C20 - Standard Receiver Size 60 Gallons",{"$f":"SUMIFS(Measures!$CL:$CL,Measures!$B:$B,$C89,Measures!$A:$A,$J89)","v":1639.2211230584676},{"$f":"SUMIFS(Measures!$CR:$CR,Measures!$B:$B,$C89,Measures!$A:$A,$J89)","v":360},{"$f":"1-SUMIFS(Measures!$AO:$AO,Measures!$B:$B,$C89,Measures!$A:$A,$J89)+SUMIFS(Measures!$AP:$AP,Measures!$B:$B,$C89,Measures!$A:$A,$J89)","v":0.496},{"$f":"D89*IF('M&A'!$A$5=\"Gross\",1,F89)/(MAX(E89,H89)*IF('M&A'!$A$5=\"Gross\",1,F89)+IF(OR('M&A'!$A$5=\"Gross\",'M&A'!$A$8=\"No\"),0,(1-F89)*H89))","v":4.5533920084957433},{"$f":"SUMIFS(Measures!$CV:$CV,Measures!$B:$B,$C89,Measures!$A:$A,$J89)","v":180},{"$f":"D89*F89-(MAX(E89,H89)*F89)","v":634.493677037},"C&I Prescriptive Compressed Air Solutions"]
[87,"Electric","Receiver - C21 - Standard Receiver Size 80 Gallons",{"$f":"SUMIFS(Measures!$CL:$CL,Measures!$B:$B,$C90,Measures!$A:$A,$J90)","v":2185.6281640779562},{"$f":"SUMIFS(Measures!$CR:$CR,Measures!$B:$B,$C90,Measures!$A:$A,$J90)","v":630},{"$f":"1-SUMIFS(Measures!$AO:$AO,Measures!$B:$B,$C90,Measures!$A:$A,$J90)+SUMIFS(Measures!$AP:$AP,Measures!$B:$B,$C90,Measures!$A:$A,$J90)","v":0.496},{"$f":"D90*IF('M&A'!$A$5=\"Gross\",1,F90)/(MAX(E90,H90)*IF('M&A'!$A$5=\"Gross\",1,F90)+IF(OR('M&A'!$A$5=\"Gross\",'M&A'!$A$8=\"No\"),0,(1-F90)*H90))","v":3.4692510540919939},{"$f":"SUMIFS(Measures!$CV:$CV,Measures!$B:$B,$C90,Measures!$A:$A,$J90)","v":350},771.59156938266619,"C&I Prescriptive Compressed Air Solutions"]
[88,"Electric","Receiver - C22 - Standard Receiver Size 120 Gallons",{"$f":"SUMIFS(Measures!$CL:$CL,Measures!$B:$B,$C91,Measures!$A:$A,$J91)","v":2732.0352050974457},{"$f":"SUMIFS(Measures!$CR:$CR,Measures!$B:$B,$C91,Measures!$A:$A,$J91)","v":1058},{"$f":"1-SUMIFS(Measures!$AO:$AO,Measures!$B:$B,$C91,Measures!$A:$A,$J91)+SUMIFS(Measures!$AP:$AP,Measures!$B:$B,$C91,Measures!$A:$A,$J91)","v":0.496},{"$f":"D91*IF('M&A'!$A$5=\"Gross\",1,F91)/(MAX(E91,H91)*IF('M&A'!$A$5=\"Gross\",1,F91)+IF(OR('M&A'!$A$5=\"Gross\",'M&A'!$A$8=\"No\"),0,(1-F91)*H91))","v":2.5822638989578883},{"$f":"SUMIFS(Measures!$CV:$CV,Measures!$B:$B,$C91,Measures!$A:$A,$J91)","v":500},830.32146172833291,"C&I Prescriptive Compressed Air Solutions"]
[89,"Electric","Receiver - C23 - Standard Receiver Size 200 Gallons",{"$f":"SUMIFS(Measures!$CL:$CL,Measures!$B:$B,$C92,Measures!$A:$A,$J92)","v":3278.4422461169352},{"$f":"SUMIFS(Measures!$CR:$CR,Measures!$B:$B,$C92,Measures!$A:$A,$J92)","v":1418},{"$f":"1-SUMIFS(Measures!$AO:$AO,Measures!$B:$B,$C92,Measures!$A:$A,$J92)+SUMIFS(Measures!$AP:$AP,Measures!$B:$B,$C92,Measures!$A:$A,$J92)","v":0.496},{"$f":"D92*IF('M&A'!$A$5=\"Gross\",1,F92)/(MAX(E92,H92)*IF('M&A'!$A$5=\"Gross\",1,F92)+IF(OR('M&A'!$A$5=\"Gross\",'M&A'!$A$8=\"No\"),0,(1-F92)*H92))","v":2.3120185092503069},{"$f":"SUMIFS(Measures!$CV:$CV,Measures!$B:$B,$C92,Measures!$A:$A,$J92)","v":750},922.77935407399991,"C&I Prescriptive Compressed Air Solutions"]
[90,"Electric","Receiver - C24 - Standard Receiver Size 240 Gallons",{"$f":"SUMIFS(Measures!$CL:$CL,Measures!$B:$B,$C93,Measures!$A:$A,$J93)","v":3824.8492871364242},{"$f":"SUMIFS(Measures!$CR:$CR,Measures!$B:$B,$C93,Measures!$A:$A,$J93)","v":1463},{"$f":"1-SUMIFS(Measures!$AO:$AO,Measures!$B:$B,$C93,Measures!$A:$A,$J93)+SUMIFS(Measures!$AP:$AP,Measures!$B:$B,$C93,Measures!$A:$A,$J93)","v":0.496},{"$f":"D93*IF('M&A'!$A$5=\"Gross\",1,F93)/(MAX(E93,H93)*IF('M&A'!$A$5=\"Gross\",1,F93)+IF(OR('M&A'!$A$5=\"Gross\",'M&A'!$A$8=\"No\"),0,(1-F93)*H93))","v":2.6143877560741107},{"$f":"SUMIFS(Measures!$CV:$CV,Measures!$B:$B,$C93,Measures!$A:$A,$J93)","v":750},1171.4772464196662,"C&I Prescriptive Compressed Air Solutions"]
[91,"Electric","Receiver - C25 - Standard Receiver Size 400 Gallons",{"$f":"SUMIFS(Measures!$CL:$CL,Measures!$B:$B,$C94,Measures!$A:$A,$J94)","v":4371.2563281559123},{"$f":"SUMIFS(Measures!$CR:$CR,Measures!$B:$B,$C94,Measures!$A:$A,$J94)","v":2195},{"$f":"1-SUMIFS(Measures!$AO:$AO,Measures!$B:$B,$C94,Measures!$A:$A,$J94)+SUMIFS(Measures!$AP:$AP,Measures!$B:$B,$C94,Measures!$A:$A,$J94)","v":0.496},{"$f":"D94*IF('M&A'!$A$5=\"Gross\",1,F94)/(MAX(E94,H94)*IF('M&A'!$A$5=\"Gross\",1,F94)+IF(OR('M&A'!$A$5=\"Gross\",'M&A'!$A$8=\"No\"),0,(1-F94)*H94))","v":1.9914607417566799},{"$f":"SUMIFS(Measures!$CV:$CV,Measures!$B:$B,$C94,Measures!$A:$A,$J94)","v":1000},1079.4231387653324,"C&I Prescriptive Compressed Air Solutions"]
[92,"Electric","Receiver - C26 - Standard Receiver Size 660 Gallons",{"$f":"SUMIFS(Measures!$CL:$CL,Measures!$B:$B,$C95,Measures!$A:$A,$J95)","v":4917.6633691754032},{"$f":"SUMIFS(Measures!$CR:$CR,Measures!$B:$B,$C95,Measures!$A:$A,$J95)","v":5327},{"$f":"1-SUMIFS(Measures!$AO:$AO,Measures!$B:$B,$C95,Measures!$A:$A,$J95)+SUMIFS(Measures!$AP:$AP,Measures!$B:$B,$C95,Measures!$A:$A,$J95)","v":0.496},{"$f":"D95*IF('M&A'!$A$5=\"Gross\",1,F95)/(MAX(E95,H95)*IF('M&A'!$A$5=\"Gross\",1,F95)+IF(OR('M&A'!$A$5=\"Gross\",'M&A'!$A$8=\"No\"),0,(1-F95)*H95))","v":0.9231581320021407},{"$f":"SUMIFS(Measures!$CV:$CV,Measures!$B:$B,$C95,Measures!$A:$A,$J95)","v":2500},-203.03096888900018,"C&I Prescriptive Compressed Air Solutions"]
[93,"Electric","Receiver - C27 - Standard Receiver Size 1060 Gallons",{"$f":"SUMIFS(Measures!$CL:$CL,Measures!$B:$B,$C96,Measures!$A:$A,$J96)","v":5464.0704101948913},{"$f":"SUMIFS(Measures!$CR:$CR,Measures!$B:$B,$C96,Measures!$A:$A,$J96)","v":7492},{"$f":"1-SUMIFS(Measures!$AO:$AO,Measures!$B:$B,$C96,Measures!$A:$A,$J96)+SUMIFS(Measures!$AP:$AP,Measures!$B:$B,$C96,Measures!$A:$A,$J96)","v":0.496},{"$f":"D96*IF('M&A'!$A$5=\"Gross\",1,F96)/(MAX(E96,H96)*IF('M&A'!$A$5=\"Gross\",1,F96)+IF(OR('M&A'!$A$5=\"Gross\",'M&A'!$A$8=\"No\"),0,(1-F96)*H96))","v":0.72932066340027912},{"$f":"SUMIFS(Measures!$CV:$CV,Measures!$B:$B,$C96,Measures!$A:$A,$J96)","v":3500},-1005.8530765433343,"C&I Prescriptive Compressed Air Solutions"]
[94,"Electric","Variable Refrigerant Flow - With Heat Recovery",{"$f":"SUMIFS(Measures!$CL:$CL,Measures!$B:$B,$C97,Measures!$A:$A,$J97)","v":200027.24843443462},{"$f":"SUMIFS(Measures!$CR:$CR,Measures!$B:$B,$C97,Measures!$A:$A,$J97)","v":70021.659964539795},{"$f":"1-SUMIFS(Measures!$AO:$AO,Measures!$B:$B,$C97,Measures!$A:$A,$J97)+SUMIFS(Measures!$AP:$AP,Measures!$B:$B,$C97,Measures!$A:$A,$J97)","v":0.496},{"$f":"D97*IF('M&A'!$A$5=\"Gross\",1,F97)/(MAX(E97,H97)*IF('M&A'!$A$5=\"Gross\",1,F97)+IF(OR('M&A'!$A$5=\"Gross\",'M&A'!$A$8=\"No\"),0,(1-F97)*H97))","v":2.8566481933694794},{"$f":"SUMIFS(Measures!$CV:$CV,Measures!$B:$B,$C97,Measures!$A:$A,$J97)","v":20572.5},64482.771881067827,"C&I HVAC - Electric"]
[95,"Electric","Variable Refrigerant Flow - Without Heat Recovery",{"$f":"SUMIFS(Measures!$CL:$CL,Measures!$B:$B,$C98,Measures!$A:$A,$J98)","v":200027.24843443462},{"$f":"SUMIFS(Measures!$CR:$CR,Measures!$B:$B,$C98,Measures!$A:$A,$J98)","v":71983.959964539783},{"$f":"1-SUMIFS(Measures!$AO:$AO,Measures!$B:$B,$C98,Measures!$A:$A,$J98)+SUMIFS(Measures!$AP:$AP,Measures!$B:$B,$C98,Measures!$A:$A,$J98)","v":0.496},{"$f":"D98*IF('M&A'!$A$5=\"Gross\",1,F98)/(MAX(E98,H98)*IF('M&A'!$A$5=\"Gross\",1,F98)+IF(OR('M&A'!$A$5=\"Gross\",'M&A'!$A$8=\"No\"),0,(1-F98)*H98))","v":2.7787752790061924},{"$f":"SUMIFS(Measures!$CV:$CV,Measures!$B:$B,$C98,Measures!$A:$A,$J98)","v":17407.5},63509.471081067837,"C&I HVAC - Electric"]
[96,"Electric","VFD: Building Exhaust Fan",{"$f":"SUMIFS(Measures!$CL:$CL,Measures!$B:$B,$C99,Measures!$A:$A,$J99)","v":6924.2988451830424},{"$f":"SUMIFS(Measures!$CR:$CR,Measures!$B:$B,$C99,Measures!$A:$A,$J99)","v":2425},{"$f":"1-SUMIFS(Measures!$AO:$AO,Measures!$B:$B,$C99,Measures!$A:$A,$J99)+SUMIFS(Measures!$AP:$AP,Measures!$B:$B,$C99,Measures!$A:$A,$J99)","v":0.496},{"$f":"D99*IF('M&A'!$A$5=\"Gross\",1,F99)/(MAX(E99,H99)*IF('M&A'!$A$5=\"Gross\",1,F99)+IF(OR('M&A'!$A$5=\"Gross\",'M&A'!$A$8=\"No\"),0,(1-F99)*H99))","v":2.8553809670857908},{"$f":"SUMIFS(Measures!$CV:$CV,Measures!$B:$B,$C99,Measures!$A:$A,$J99)","v":400},2231.6522272107886,"C&I HVAC - Electric"]
[97,"Heating Oil","VFD: Building Exhaust Fan",{"$f":"SUMIFS(Measures!$CL:$CL,Measures!$B:$B,$C100,Measures!$A:$A,$J100)","v":6924.2988451830424},{"$f":"SUMIFS(Measures!$CR:$CR,Measures!$B:$B,$C100,Measures!$A:$A,$J100)","v":2425},{"$f":"1-SUMIFS(Measures!$AO:$AO,Measures!$B:$B,$C100,Measures!$A:$A,$J100)+SUMIFS(Measures!$AP:$AP,Measures!$B:$B,$C100,Measures!$A:$A,$J100)","v":0.496},{"$f":"D100*IF('M&A'!$A$5=\"Gross\",1,F100)/(MAX(E100,H100)*IF('M&A'!$A$5=\"Gross\",1,F100)+IF(OR('M&A'!$A$5=\"Gross\",'M&A'!$A$8=\"No\"),0,(1-F100)*H100))","v":2.8553809670857908},{"$f":"SUMIFS(Measures!$CV:$CV,Measures!$B:$B,$C100,Measures!$A:$A,$J100)","v":400},2231.6522272107886,"C&I HVAC - Oil"]
[98,"Heating Oil","VFD: Building Exhaust Fan",{"$f":"SUMIFS(Measures!$CL:$CL,Measures!$B:$B,$C101,Measures!$A:$A,$J101)","v":6924.2988451830424},{"$f":"SUMIFS(Measures!$CR:$CR,Measures!$B:$B,$C101,Measures!$A:$A,$J101)","v":2425},{"$f":"1-SUMIFS(Measures!$AO:$AO,Measures!$B:$B,$C101,Measures!$A:$A,$J101)+SUMIFS(Measures!$AP:$AP,Measures!$B:$B,$C101,Measures!$A:$A,$J101)","v":0.496},{"$f":"D101*IF('M&A'!$A$5=\"Gross\",1,F101)/(MAX(E101,H101)*IF('M&A'!$A$5=\"Gross\",1,F101)+IF(OR('M&A'!$A$5=\"Gross\",'M&A'!$A$8=\"No\"),0,(1-F101)*H101))","v":2.8553809670857908},{"$f":"SUMIFS(Measures!$CV:$CV,Measures!$B:$B,$C101,Measures!$A:$A,$J101)","v":400},2231.6522272107886,"C&I HVAC - Propane and Compressed NG"]
[99,"Natural Gas","VFD: Building Exhaust Fan",{"$f":"SUMIFS(Measures!$CL:$CL,Measures!$B:$B,$C102,Measures!$A:$A,$J102)","v":6924.2988451830424},{"$f":"SUMIFS(Measures!$CR:$CR,Measures!$B:$B,$C102,Measures!$A:$A,$J102)","v":2425},{"$f":"1-SUMIFS(Measures!$AO:$AO,Measures!$B:$B,$C102,Measures!$A:$A,$J102)+SUMIFS(Measures!$AP:$AP,Measures!$B:$B,$C102,Measures!$A:$A,$J102)","v":0.496},{"$f":"D102*IF('M&A'!$A$5=\"Gross\",1,F102)/(MAX(E102,H102)*IF('M&A'!$A$5=\"Gross\",1,F102)+IF(OR('M&A'!$A$5=\"Gross\",'M&A'!$A$8=\"No\"),0,(1-F102)*H102))","v":2.8553809670857908},{"$f":"SUMIFS(Measures!$CV:$CV,Measures!$B:$B,$C102,Measures!$A:$A,$J102)","v":400},2231.6522272107886,"C&I HVAC - Natural Gas"]
[100,"Electric","VFD: Chilled Water Pumps",{"$f":"SUMIFS(Measures!$CL:$CL,Measures!$B:$B,$C103,Measures!$A:$A,$J103)","v":11995.480581515647},{"$f":"SUMIFS(Measures!$CR:$CR,Measures!$B:$B,$C103,Measures!$A:$A,$J103)","v":2425},{"$f":"1-SUMIFS(Measures!$AO:$AO,Measures!$B:$B,$C103,Measures!$A:$A,$J103)+SUMIFS(Measures!$AP:$AP,Measures!$B:$B,$C103,Measures!$A:$A,$J103)","v":0.496},{"$f":"D103*IF('M&A'!$A$5=\"Gross\",1,F103)/(MAX(E103,H103)*IF('M&A'!$A$5=\"Gross\",1,F103)+IF(OR('M&A'!$A$5=\"Gross\",'M&A'!$A$8=\"No\"),0,(1-F103)*H103))","v":4.9465899305219159},{"$f":"SUMIFS(Measures!$CV:$CV,Measures!$B:$B,$C103,Measures!$A:$A,$J103)","v":400},4746.9583684317604,"C&I HVAC - Electric"]
[101,"Electric","VFD: Heating Hot Water Circulation Pump",{"$f":"SUMIFS(Measures!$CL:$CL,Measures!$B:$B,$C104,Measures!$A:$A,$J104)","v":12167.842601026068},{"$f":"SUMIFS(Measures!$CR:$CR,Measures!$B:$B,$C104,Measures!$A:$A,$J104)","v":2425},{"$f":"1-SUMIFS(Measures!$AO:$AO,Measures!$B:$B,$C104,Measures!$A:$A,$J104)+SUMIFS(Measures!$AP:$AP,Measures!$B:$B,$C104,Measures!$A:$A,$J104)","v":0.496},{"$f":"D104*IF('M&A'!$A$5=\"Gross\",1,F104)/(MAX(E104,H104)*IF('M&A'!$A$5=\"Gross\",1,F104)+IF(OR('M&A'!$A$5=\"Gross\",'M&A'!$A$8=\"No\"),0,(1-F104)*H104))","v":5.0176670519695126},{"$f":"SUMIFS(Measures!$CV:$CV,Measures!$B:$B,$C104,Measures!$A:$A,$J104)","v":400},4832.4499301089299,"C&I HVAC - Electric"]
[102,"Heating Oil","VFD: Heating Hot Water Circulation Pump",{"$f":"SUMIFS(Measures!$CL:$CL,Measures!$B:$B,$C105,Measures!$A:$A,$J105)","v":12167.842601026068},{"$f":"SUMIFS(Measures!$CR:$CR,Measures!$B:$B,$C105,Measures!$A:$A,$J105)","v":2425},{"$f":"1-SUMIFS(Measures!$AO:$AO,Measures!$B:$B,$C105,Measures!$A:$A,$J105)+SUMIFS(Measures!$AP:$AP,Measures!$B:$B,$C105,Measures!$A:$A,$J105)","v":0.496},{"$f":"D105*IF('M&A'!$A$5=\"Gross\",1,F105)/(MAX(E105,H105)*IF('M&A'!$A$5=\"Gross\",1,F105)+IF(OR('M&A'!$A$5=\"Gross\",'M&A'!$A$8=\"No\"),0,(1-F105)*H105))","v":5.0176670519695126},{"$f":"SUMIFS(Measures!$CV:$CV,Measures!$B:$B,$C105,Measures!$A:$A,$J105)","v":400},4832.4499301089299,"C&I HVAC - Oil"]
[103,"Heating Oil","VFD: Heating Hot Water Circulation Pump",{"$f":"SUMIFS(Measures!$CL:$CL,Measures!$B:$B,$C106,Measures!$A:$A,$J106)","v":12167.842601026068},{"$f":"SUMIFS(Measures!$CR:$CR,Measures!$B:$B,$C106,Measures!$A:$A,$J106)","v":2425},{"$f":"1-SUMIFS(Measures!$AO:$AO,Measures!$B:$B,$C106,Measures!$A:$A,$J106)+SUMIFS(Measures!$AP:$AP,Measures!$B:$B,$C106,Measures!$A:$A,$J106)","v":0.496},{"$f":"D106*IF('M&A'!$A$5=\"Gross\",1,F106)/(MAX(E106,H106)*IF('M&A'!$A$5=\"Gross\",1,F106)+IF(OR('M&A'!$A$5=\"Gross\",'M&A'!$A$8=\"No\"),0,(1-F106)*H106))","v":5.0176670519695126},{"$f":"SUMIFS(Measures!$CV:$CV,Measures!$B:$B,$C106,Measures!$A:$A,$J106)","v":400},4832.4499301089299,"C&I HVAC - Propane and Compressed NG"]
[104,"Natural Gas","VFD: Heating Hot Water Circulation Pump",{"$f":"SUMIFS(Measures!$CL:$CL,Measures!$B:$B,$C107,Measures!$A:$A,$J107)","v":12167.842601026068},{"$f":"SUMIFS(Measures!$CR:$CR,Measures!$B:$B,$C107,Measures!$A:$A,$J107)","v":2425},{"$f":"1-SUMIFS(Measures!$AO:$AO,Measures!$B:$B,$C107,Measures!$A:$A,$J107)+SUMIFS(Measures!$AP:$AP,Measures!$B:$B,$C107,Measures!$A:$A,$J107)","v":0.496},{"$f":"D107*IF('M&A'!$A$5=\"Gross\",1,F107)/(MAX(E107,H107)*IF('M&A'!$A$5=\"Gross\",1,F107)+IF(OR('M&A'!$A$5=\"Gross\",'M&A'!$A$8=\"No\"),0,(1-F107)*H107))","v":5.0176670519695126},{"$f":"SUMIFS(Measures!$CV:$CV,Measures!$B:$B,$C107,Measures!$A:$A,$J107)","v":400},4832.4499301089299,"C&I HVAC - Natural Gas"]
[105,"Electric","VFD: Return Fan on VAV Air Handler",{"$f":"SUMIFS(Measures!$CL:$CL,Measures!$B:$B,$C108,Measures!$A:$A,$J108)","v":14883.648523826349},{"$f":"SUMIFS(Measures!$CR:$CR,Measures!$B:$B,$C108,Measures!$A:$A,$J108)","v":2425},{"$f":"1-SUMIFS(Measures!$AO:$AO,Measures!$B:$B,$C108,Measures!$A:$A,$J108)+SUMIFS(Measures!$AP:$AP,Measures!$B:$B,$C108,Measures!$A:$A,$J108)","v":0.496},{"$f":"D108*IF('M&A'!$A$5=\"Gross\",1,F108)/(MAX(E108,H108)*IF('M&A'!$A$5=\"Gross\",1,F108)+IF(OR('M&A'!$A$5=\"Gross\",'M&A'!$A$8=\"No\"),0,(1-F108)*H108))","v":6.1375870201345766},{"$f":"SUMIFS(Measures!$CV:$CV,Measures!$B:$B,$C108,Measures!$A:$A,$J108)","v":400},6179.4896678178684,"C&I HVAC - Electric"]
[106,"Heating Oil","VFD: Return Fan on VAV Air Handler",{"$f":"SUMIFS(Measures!$CL:$CL,Measures!$B:$B,$C109,Measures!$A:$A,$J109)","v":14883.648523826349},{"$f":"SUMIFS(Measures!$CR:$CR,Measures!$B:$B,$C109,Measures!$A:$A,$J109)","v":2425},{"$f":"1-SUMIFS(Measures!$AO:$AO,Measures!$B:$B,$C109,Measures!$A:$A,$J109)+SUMIFS(Measures!$AP:$AP,Measures!$B:$B,$C109,Measures!$A:$A,$J109)","v":0.496},{"$f":"D109*IF('M&A'!$A$5=\"Gross\",1,F109)/(MAX(E109,H109)*IF('M&A'!$A$5=\"Gross\",1,F109)+IF(OR('M&A'!$A$5=\"Gross\",'M&A'!$A$8=\"No\"),0,(1-F109)*H109))","v":6.1375870201345766},{"$f":"SUMIFS(Measures!$CV:$CV,Measures!$B:$B,$C109,Measures!$A:$A,$J109)","v":400},6179.4896678178684,"C&I HVAC - Oil"]
[107,"Heating Oil","VFD: Return Fan on VAV Air Handler",{"$f":"SUMIFS(Measures!$CL:$CL,Measures!$B:$B,$C110,Measures!$A:$A,$J110)","v":14883.648523826349},{"$f":"SUMIFS(Measures!$CR:$CR,Measures!$B:$B,$C110,Measures!$A:$A,$J110)","v":2425},{"$f":"1-SUMIFS(Measures!$AO:$AO,Measures!$B:$B,$C110,Measures!$A:$A,$J110)+SUMIFS(Measures!$AP:$AP,Measures!$B:$B,$C110,Measures!$A:$A,$J110)","v":0.496},{"$f":"D110*IF('M&A'!$A$5=\"Gross\",1,F110)/(MAX(E110,H110)*IF('M&A'!$A$5=\"Gross\",1,F110)+IF(OR('M&A'!$A$5=\"Gross\",'M&A'!$A$8=\"No\"),0,(1-F110)*H110))","v":6.1375870201345766},{"$f":"SUMIFS(Measures!$CV:$CV,Measures!$B:$B,$C110,Measures!$A:$A,$J110)","v":400},6179.4896678178684,"C&I HVAC - Propane and Compressed NG"]
[108,"Natural Gas","VFD: Return Fan on VAV Air Handler",{"$f":"SUMIFS(Measures!$CL:$CL,Measures!$B:$B,$C111,Measures!$A:$A,$J111)","v":14883.648523826349},{"$f":"SUMIFS(Measures!$CR:$CR,Measures!$B:$B,$C111,Measures!$A:$A,$J111)","v":2425},{"$f":"1-SUMIFS(Measures!$AO:$AO,Measures!$B:$B,$C111,Measures!$A:$A,$J111)+SUMIFS(Measures!$AP:$AP,Measures!$B:$B,$C111,Measures!$A:$A,$J111)","v":0.496},{"$f":"D111*IF('M&A'!$A$5=\"Gross\",1,F111)/(MAX(E111,H111)*IF('M&A'!$A$5=\"Gross\",1,F111)+IF(OR('M&A'!$A$5=\"Gross\",'M&A'!$A$8=\"No\"),0,(1-F111)*H111))","v":6.1375870201345766},{"$f":"SUMIFS(Measures!$CV:$CV,Measures!$B:$B,$C111,Measures!$A:$A,$J111)","v":400},6179.4896678178684,"C&I HVAC - Natural Gas"]
[109,"Electric","VFD: Return Fan on VAV Packaged or Rooftop HVAC Unit",{"$f":"SUMIFS(Measures!$CL:$CL,Measures!$B:$B,$C112,Measures!$A:$A,$J112)","v":14883.648523826349},{"$f":"SUMIFS(Measures!$CR:$CR,Measures!$B:$B,$C112,Measures!$A:$A,$J112)","v":2425},{"$f":"1-SUMIFS(Measures!$AO:$AO,Measures!$B:$B,$C112,Measures!$A:$A,$J112)+SUMIFS(Measures!$AP:$AP,Measures!$B:$B,$C112,Measures!$A:$A,$J112)","v":0.496},{"$f":"D112*IF('M&A'!$A$5=\"Gross\",1,F112)/(MAX(E112,H112)*IF('M&A'!$A$5=\"Gross\",1,F112)+IF(OR('M&A'!$A$5=\"Gross\",'M&A'!$A$8=\"No\"),0,(1-F112)*H112))","v":6.1375870201345766},{"$f":"SUMIFS(Measures!$CV:$CV,Measures!$B:$B,$C112,Measures!$A:$A,$J112)","v":400},6179.4896678178684,"C&I HVAC - Electric"]
[110,"Heating Oil","VFD: Return Fan on VAV Packaged or Rooftop HVAC Unit",{"$f":"SUMIFS(Measures!$CL:$CL,Measures!$B:$B,$C113,Measures!$A:$A,$J113)","v":14883.648523826349},{"$f":"SUMIFS(Measures!$CR:$CR,Measures!$B:$B,$C113,Measures!$A:$A,$J113)","v":2425},{"$f":"1-SUMIFS(Measures!$AO:$AO,Measures!$B:$B,$C113,Measures!$A:$A,$J113)+SUMIFS(Measures!$AP:$AP,Measures!$B:$B,$C113,Measures!$A:$A,$J113)","v":0.496},{"$f":"D113*IF('M&A'!$A$5=\"Gross\",1,F113)/(MAX(E113,H113)*IF('M&A'!$A$5=\"Gross\",1,F113)+IF(OR('M&A'!$A$5=\"Gross\",'M&A'!$A$8=\"No\"),0,(1-F113)*H113))","v":6.1375870201345766},{"$f":"SUMIFS(Measures!$CV:$CV,Measures!$B:$B,$C113,Measures!$A:$A,$J113)","v":400},6179.4896678178684,"C&I HVAC - Oil"]
[111,"Heating Oil","VFD: Return Fan on VAV Packaged or Rooftop HVAC Unit",{"$f":"SUMIFS(Measures!$CL:$CL,Measures!$B:$B,$C114,Measures!$A:$A,$J114)","v":14883.648523826349},{"$f":"SUMIFS(Measures!$CR:$CR,Measures!$B:$B,$C114,Measures!$A:$A,$J114)","v":2425},{"$f":"1-SUMIFS(Measures!$AO:$AO,Measures!$B:$B,$C114,Measures!$A:$A,$J114)+SUMIFS(Measures!$AP:$AP,Measures!$B:$B,$C114,Measures!$A:$A,$J114)","v":0.496},{"$f":"D114*IF('M&A'!$A$5=\"Gross\",1,F114)/(MAX(E114,H114)*IF('M&A'!$A$5=\"Gross\",1,F114)+IF(OR('M&A'!$A$5=\"Gross\",'M&A'!$A$8=\"No\"),0,(1-F114)*H114))","v":6.1375870201345766},{"$f":"SUMIFS(Measures!$CV:$CV,Measures!$B:$B,$C114,Measures!$A:$A,$J114)","v":400},6179.4896678178684,"C&I HVAC - Propane and Compressed NG"]
[{"$f":"ROW(B115)-ROW($B$3)","v":112},"Natural Gas","VFD: Return Fan on VAV Packaged or Rooftop HVAC Unit",{"$f":"SUMIFS(Measures!$CL:$CL,Measures!$B:$B,$C115,Measures!$A:$A,$J115)","v":14883.648523826349},{"$f":"SUMIFS(Measures!$CR:$CR,Measures!$B:$B,$C115,Measures!$A:$A,$J115)","v":2425},{"$f":"1-SUMIFS(Measures!$AO:$AO,Measures!$B:$B,$C115,Measures!$A:$A,$J115)+SUMIFS(Measures!$AP:$AP,Measures!$B:$B,$C115,Measures!$A:$A,$J115)","v":0.496},{"$f":"D115*IF('M&A'!$A$5=\"Gross\",1,F115)/(MAX(E115,H115)*IF('M&A'!$A$5=\"Gross\",1,F115)+IF(OR('M&A'!$A$5=\"Gross\",'M&A'!$A$8=\"No\"),0,(1-F115)*H115))","v":6.1375870201345766},{"$f":"SUMIFS(Measures!$CV:$CV,Measures!$B:$B,$C115,Measures!$A:$A,$J115)","v":400},{"$f":"D115*F115-(MAX(E115,H115)*F115)","v":6179.4896678178684},"C&I HVAC - Natural Gas"]
[113,"Electric","VFD: Supply Fan on VAV Air Handler",{"$f":"SUMIFS(Measures!$CL:$CL,Measures!$B:$B,$C116,Measures!$A:$A,$J116)","v":15623.363675656345},{"$f":"SUMIFS(Measures!$CR:$CR,Measures!$B:$B,$C116,Measures!$A:$A,$J116)","v":2425},{"$f":"1-SUMIFS(Measures!$AO:$AO,Measures!$B:$B,$C116,Measures!$A:$A,$J116)+SUMIFS(Measures!$AP:$AP,Measures!$B:$B,$C116,Measures!$A:$A,$J116)","v":0.496},{"$f":"D116*IF('M&A'!$A$5=\"Gross\",1,F116)/(MAX(E116,H116)*IF('M&A'!$A$5=\"Gross\",1,F116)+IF(OR('M&A'!$A$5=\"Gross\",'M&A'!$A$8=\"No\"),0,(1-F116)*H116))","v":6.4426241961469461},{"$f":"SUMIFS(Measures!$CV:$CV,Measures!$B:$B,$C116,Measures!$A:$A,$J116)","v":400},6546.3883831255471,"C&I HVAC - Electric"]
[114,"Heating Oil","VFD: Supply Fan on VAV Air Handler",{"$f":"SUMIFS(Measures!$CL:$CL,Measures!$B:$B,$C117,Measures!$A:$A,$J117)","v":15623.363675656345},{"$f":"SUMIFS(Measures!$CR:$CR,Measures!$B:$B,$C117,Measures!$A:$A,$J117)","v":2425},{"$f":"1-SUMIFS(Measures!$AO:$AO,Measures!$B:$B,$C117,Measures!$A:$A,$J117)+SUMIFS(Measures!$AP:$AP,Measures!$B:$B,$C117,Measures!$A:$A,$J117)","v":0.496},{"$f":"D117*IF('M&A'!$A$5=\"Gross\",1,F117)/(MAX(E117,H117)*IF('M&A'!$A$5=\"Gross\",1,F117)+IF(OR('M&A'!$A$5=\"Gross\",'M&A'!$A$8=\"No\"),0,(1-F117)*H117))","v":6.4426241961469461},{"$f":"SUMIFS(Measures!$CV:$CV,Measures!$B:$B,$C117,Measures!$A:$A,$J117)","v":400},6546.3883831255471,"C&I HVAC - Oil"]
[115,"Heating Oil","VFD: Supply Fan on VAV Air Handler",{"$f":"SUMIFS(Measures!$CL:$CL,Measures!$B:$B,$C118,Measures!$A:$A,$J118)","v":15623.363675656345},{"$f":"SUMIFS(Measures!$CR:$CR,Measures!$B:$B,$C118,Measures!$A:$A,$J118)","v":2425},{"$f":"1-SUMIFS(Measures!$AO:$AO,Measures!$B:$B,$C118,Measures!$A:$A,$J118)+SUMIFS(Measures!$AP:$AP,Measures!$B:$B,$C118,Measures!$A:$A,$J118)","v":0.496},{"$f":"D118*IF('M&A'!$A$5=\"Gross\",1,F118)/(MAX(E118,H118)*IF('M&A'!$A$5=\"Gross\",1,F118)+IF(OR('M&A'!$A$5=\"Gross\",'M&A'!$A$8=\"No\"),0,(1-F118)*H118))","v":6.4426241961469461},{"$f":"SUMIFS(Measures!$CV:$CV,Measures!$B:$B,$C118,Measures!$A:$A,$J118)","v":400},6546.3883831255471,"C&I HVAC - Propane and Compressed NG"]
[116,"Natural Gas","VFD: Supply Fan on VAV Air Handler",{"$f":"SUMIFS(Measures!$CL:$CL,Measures!$B:$B,$C119,Measures!$A:$A,$J119)","v":15623.363675656345},{"$f":"SUMIFS(Measures!$CR:$CR,Measures!$B:$B,$C119,Measures!$A:$A,$J119)","v":2425},{"$f":"1-SUMIFS(Measures!$AO:$AO,Measures!$B:$B,$C119,Measures!$A:$A,$J119)+SUMIFS(Measures!$AP:$AP,Measures!$B:$B,$C119,Measures!$A:$A,$J119)","v":0.496},{"$f":"D119*IF('M&A'!$A$5=\"Gross\",1,F119)/(MAX(E119,H119)*IF('M&A'!$A$5=\"Gross\",1,F119)+IF(OR('M&A'!$A$5=\"Gross\",'M&A'!$A$8=\"No\"),0,(1-F119)*H119))","v":6.4426241961469461},{"$f":"SUMIFS(Measures!$CV:$CV,Measures!$B:$B,$C119,Measures!$A:$A,$J119)","v":400},6546.3883831255471,"C&I HVAC - Natural Gas"]
[117,"Electric","VFD: Supply Fan on VAV Packaged or Rooftop HVAC Unit",{"$f":"SUMIFS(Measures!$CL:$CL,Measures!$B:$B,$C120,Measures!$A:$A,$J120)","v":15623.363675656345},{"$f":"SUMIFS(Measures!$CR:$CR,Measures!$B:$B,$C120,Measures!$A:$A,$J120)","v":2425},{"$f":"1-SUMIFS(Measures!$AO:$AO,Measures!$B:$B,$C120,Measures!$A:$A,$J120)+SUMIFS(Measures!$AP:$AP,Measures!$B:$B,$C120,Measures!$A:$A,$J120)","v":0.496},{"$f":"D120*IF('M&A'!$A$5=\"Gross\",1,F120)/(MAX(E120,H120)*IF('M&A'!$A$5=\"Gross\",1,F120)+IF(OR('M&A'!$A$5=\"Gross\",'M&A'!$A$8=\"No\"),0,(1-F120)*H120))","v":6.4426241961469461},{"$f":"SUMIFS(Measures!$CV:$CV,Measures!$B:$B,$C120,Measures!$A:$A,$J120)","v":400},6546.3883831255471,"C&I HVAC - Electric"]
[118,"Heating Oil","VFD: Supply Fan on VAV Packaged or Rooftop HVAC Unit",{"$f":"SUMIFS(Measures!$CL:$CL,Measures!$B:$B,$C121,Measures!$A:$A,$J121)","v":15623.363675656345},{"$f":"SUMIFS(Measures!$CR:$CR,Measures!$B:$B,$C121,Measures!$A:$A,$J121)","v":2425},{"$f":"1-SUMIFS(Measures!$AO:$AO,Measures!$B:$B,$C121,Measures!$A:$A,$J121)+SUMIFS(Measures!$AP:$AP,Measures!$B:$B,$C121,Measures!$A:$A,$J121)","v":0.496},{"$f":"D121*IF('M&A'!$A$5=\"Gross\",1,F121)/(MAX(E121,H121)*IF('M&A'!$A$5=\"Gross\",1,F121)+IF(OR('M&A'!$A$5=\"Gross\",'M&A'!$A$8=\"No\"),0,(1-F121)*H121))","v":6.4426241961469461},{"$f":"SUMIFS(Measures!$CV:$CV,Measures!$B:$B,$C121,Measures!$A:$A,$J121)","v":400},6546.3883831255471,"C&I HVAC - Oil"]
[119,"Heating Oil","VFD: Supply Fan on VAV Packaged or Rooftop HVAC Unit",{"$f":"SUMIFS(Measures!$CL:$CL,Measures!$B:$B,$C122,Measures!$A:$A,$J122)","v":15623.363675656345},{"$f":"SUMIFS(Measures!$CR:$CR,Measures!$B:$B,$C122,Measures!$A:$A,$J122)","v":2425},{"$f":"1-SUMIFS(Measures!$AO:$AO,Measures!$B:$B,$C122,Measures!$A:$A,$J122)+SUMIFS(Measures!$AP:$AP,Measures!$B:$B,$C122,Measures!$A:$A,$J122)","v":0.496},{"$f":"D122*IF('M&A'!$A$5=\"Gross\",1,F122)/(MAX(E122,H122)*IF('M&A'!$A$5=\"Gross\",1,F122)+IF(OR('M&A'!$A$5=\"Gross\",'M&A'!$A$8=\"No\"),0,(1-F122)*H122))","v":6.4426241961469461},{"$f":"SUMIFS(Measures!$CV:$CV,Measures!$B:$B,$C122,Measures!$A:$A,$J122)","v":400},6546.3883831255471,"C&I HVAC - Propane and Compressed NG"]
[120,"Natural Gas","VFD: Supply Fan on VAV Packaged or Rooftop HVAC Unit",{"$f":"SUMIFS(Measures!$CL:$CL,Measures!$B:$B,$C123,Measures!$A:$A,$J123)","v":15623.363675656345},{"$f":"SUMIFS(Measures!$CR:$CR,Measures!$B:$B,$C123,Measures!$A:$A,$J123)","v":2425},{"$f":"1-SUMIFS(Measures!$AO:$AO,Measures!$B:$B,$C123,Measures!$A:$A,$J123)+SUMIFS(Measures!$AP:$AP,Measures!$B:$B,$C123,Measures!$A:$A,$J123)","v":0.496},{"$f":"D123*IF('M&A'!$A$5=\"Gross\",1,F123)/(MAX(E123,H123)*IF('M&A'!$A$5=\"Gross\",1,F123)+IF(OR('M&A'!$A$5=\"Gross\",'M&A'!$A$8=\"No\"),0,(1-F123)*H123))","v":6.4426241961469461},{"$f":"SUMIFS(Measures!$CV:$CV,Measures!$B:$B,$C123,Measures!$A:$A,$J123)","v":400},6546.3883831255471,"C&I HVAC - Natural Gas"]
[121,"Electric","Vertical Packaged Terminal Heat Pump Retrofit",{"$f":"SUMIFS(Measures!$CL:$CL,Measures!$B:$B,$C124,Measures!$A:$A,$J124)","v":7710.4360134754861},{"$f":"SUMIFS(Measures!$CR:$CR,Measures!$B:$B,$C124,Measures!$A:$A,$J124)","v":1300},{"$f":"1-SUMIFS(Measures!$AO:$AO,Measures!$B:$B,$C124,Measures!$A:$A,$J124)+SUMIFS(Measures!$AP:$AP,Measures!$B:$B,$C124,Measures!$A:$A,$J124)","v":0.75},{"$f":"D124*IF('M&A'!$A$5=\"Gross\",1,F124)/(MAX(E124,H124)*IF('M&A'!$A$5=\"Gross\",1,F124)+IF(OR('M&A'!$A$5=\"Gross\",'M&A'!$A$8=\"No\"),0,(1-F124)*H124))","v":4.8190225084221785},{"$f":"SUMIFS(Measures!$CV:$CV,Measures!$B:$B,$C124,Measures!$A:$A,$J124)","v":1600},{"$f":"D124*F124-(MAX(E124,H124)*F124)","v":4582.8270101066146},"C&I HVAC - Electric"]

{"sheet":"EV Summary","index":9,"n_rows":5,"n_cols":10,"rows_kept":5,"cut":false,"hidden":false,"merged":[[1,3,1,4]]}
[null,null,"Low Income Initiatives"]
[null,null,null,"Adjusted Gross Benefits & Costs"]
["Row","Fuel","Measure Name","Energy & Water Benefits","Fuel + Measure Cost","NTG",{"$f":"IF(OR('M&A'!A5=\"Gross\",'M&A'!A8=\"No\"),\"BCR_Gross\",\"BCR_Net\")","v":"BCR_Gross"},"Incentive Per Unit","Net Benefit of Net Savings","Program"]
[{"$f":"ROW(B4)-ROW(A$3)","v":1},null,"Battery Electric Vehicle",{"$f":"SUMIFS(Measures!$CL:$CL,Measures!$B:$B,$C4,Measures!$A:$A,$J4)","v":24223.608835311537},{"$f":"SUMIFS(Measures!$CR:$CR,Measures!$B:$B,$C4,Measures!$A:$A,$J4)","v":21419.799350385438},{"$f":"1-SUMIFS(Measures!$AO:$AO,Measures!$B:$B,$C4,Measures!$A:$A,$J4)+SUMIFS(Measures!$AP:$AP,Measures!$B:$B,$C4,Measures!$A:$A,$J4)","v":0.75},{"$f":"D4*IF('M&A'!$A$5=\"Gross\",1,F4)/(MAX(E4,H4)*IF('M&A'!$A$5=\"Gross\",1,F4)+IF(OR('M&A'!$A$5=\"Gross\",'M&A'!$A$8=\"No\"),0,(1-F4)*H4))","v":1.1308980275240368},{"$f":"SUMIFS(Measures!$CV:$CV,Measures!$B:$B,$C4,Measures!$A:$A,$J4)","v":0},{"$f":"D4*F4-(MAX(E4,H4)*F4)","v":2102.8571136945757},"E.V. Accelerator "]
[2,null,"Plug-In Hybrid Electric Vehicle",{"$f":"SUMIFS(Measures!$CL:$CL,Measures!$B:$B,$C5,Measures!$A:$A,$J5)","v":17912.72127032248},{"$f":"SUMIFS(Measures!$CR:$CR,Measures!$B:$B,$C5,Measures!$A:$A,$J5)","v":11672.2460819186},{"$f":"1-SUMIFS(Measures!$AO:$AO,Measures!$B:$B,$C5,Measures!$A:$A,$J5)+SUMIFS(Measures!$AP:$AP,Measures!$B:$B,$C5,Measures!$A:$A,$J5)","v":0.75},{"$f":"D5*IF('M&A'!$A$5=\"Gross\",1,F5)/(MAX(E5,H5)*IF('M&A'!$A$5=\"Gross\",1,F5)+IF(OR('M&A'!$A$5=\"Gross\",'M&A'!$A$8=\"No\"),0,(1-F5)*H5))","v":1.5346421883677521},{"$f":"SUMIFS(Measures!$CV:$CV,Measures!$B:$B,$C5,Measures!$A:$A,$J5)","v":0},4680.3563913029102,"E.V. Accelerator "]

{"sheet":"AESC 2018 Avoided Costs Res","index":10,"n_rows":34,"n_cols":16,"rows_kept":34,"cut":false,"hidden":true,"merged":[]}
["EffectiveDate","Year","Electric+DripeSeasonalWinterOnPeak","Electric+DripeSeasonalWinterOffPeak","Electric+DripeSeasonalSummerOnPeak","Electric+DripeSeasonalSummerOffPeak","Capacity+T&D","NaturalGasResidential","HeatingOilResidential","KeroseneResidential","PropaneResidential","WoodSeasoned","WaterResidential","Gasoline","DefaultDiscountRate","DefaultGenerationMarkUp"]
["2018-01-01",1,5.3888666176366354E-2,4.9171967241554641E-2,3.7052883039638031E-2,3.0623523672106075E-2,198.4975,8.0433107237413459,17.302398515425292,15.515002803459362,26.981523059531973,16.861875000000001,5.7000000000000002E-3,19.350000000000001,{"$f":"DefaultDR","v":2.8},8]
["2019-01-01",2,5.7728632875869552E-2,5.3045410977807746E-2,3.8526800357185573E-2,3.4126451396147402E-2,221.37427257042035,8.010045417101189,16.259227445047383,14.579594798206678,24.121274315837709,15.845263333319975,5.7999999999999996E-3,19.350000000000001,"Default DR",{"$f":"DefaultDR","v":2.8}]
["2020-01-01",3,6.4362448886627469E-2,5.9751366559242867E-2,4.7159667194087124E-2,4.1058106487155722E-2,199.82822575015899,8.78459515466837,17.711095700769306,15.881480200840153,25.620682817398883,17.260166649910783,6.0000000000000001E-3,19.353259999999999,"RGGI DR",{"$f":"RGGI_DR","v":2.8}]
["2021-01-01",4,6.7439318948392446E-2,6.2402568478673953E-2,5.5876398629268687E-2,4.7119557622041924E-2,159.82957104097153,9.7401069017001252,19.374895772898348,17.373404153491261,27.571923069740158,18.881605944365809,6.1000000000000004E-3,20.088446000000001,"Blended DR",{"$f":"ROUND((P3+P4)/2,2)","v":2.8}]
["2022-01-01",5,6.6689018293911953E-2,6.0206007174253007E-2,5.5618785169836822E-2,4.5202143056660635E-2,156.05270552388455,9.5865289508995328,20.946665442249419,18.782804752179,30.082490272151009,20.413357953762734,6.1999999999999998E-3,20.263729000000001]
["2023-01-01",6,6.746408569543226E-2,5.8829937039787721E-2,5.1033035460825854E-2,3.998770259093086E-2,155.77208436392669,9.4079372727306847,22.90925134392322,20.542648957556235,32.860087608768353,22.325975913711076,6.3E-3,20.633908999999999]
["2024-01-01",7,6.8893160279343141E-2,6.3959000750245049E-2,4.8850794680059234E-2,4.3951170783810702E-2,155.34,9.3018837013976867,23.231756182769882,20.831837966488976,33.006039657938217,22.640269696430245,6.4000000000000003E-3,20.494205000000001]
["2025-01-01",8,6.3932091959009688E-2,5.9818170472549989E-2,5.0015163946847414E-2,4.4453925926947947E-2,159.65,9.2391304398831444,23.709829560038905,21.2605247628297,32.937850210208325,23.106171202579894,6.4999999999999997E-3,20.719427]
["2026-01-01",9,6.2908193770349577E-2,5.8642455454823279E-2,5.3059715446128558E-2,4.6176100467808699E-2,165.16,9.2335309608657106,24.080866267592636,21.593232135899992,32.998204529206255,23.467761220149132,6.7000000000000002E-3,20.750011000000001]
["2027-01-01",10,6.6058434135208899E-2,6.1716054838525367E-2,4.9465354841090402E-2,4.2959775531273996E-2,170.85,9.1858804899206312,24.278414777390061,21.770373223050065,33.309592884267438,23.660280094088531,6.7999999999999996E-3,20.978608999999999]
["2028-01-01",11,6.7351577343824826E-2,5.9053084592813151E-2,5.3257858679083066E-2,4.357396503272979E-2,176.49,9.2284308709031162,24.319762372602359,21.807449473204816,33.400750425525274,23.700574968894401,6.8999999999999999E-3,21.519165000000001]
["2029-01-01",12,6.8544459571338506E-2,6.2673448751347852E-2,5.1298945738341747E-2,4.3420156554752988E-2,182.13,9.3328771935788701,24.539037806447887,22.004073020385871,33.437725505301522,23.914267593808674,7.0000000000000001E-3,21.882142999999999]
["2030-01-01",13,6.2776187953431054E-2,5.9218975954277817E-2,5.4044942247276455E-2,4.9536672954748465E-2,177.9,9.3911402038334781,24.999461685085411,22.416933570411484,33.696951307838674,24.36296896210046,7.1999999999999998E-3,22.505281]
["2031-01-01",14,6.1315530963624305E-2,5.7125309707108878E-2,4.8923415550630761E-2,4.2811723268342691E-2,176.49,9.5533666300755886,25.409502593906485,22.784615880134059,34.367464524797107,24.762570123943046,7.3000000000000001E-3,22.605267999999999]
["2032-01-01",15,5.9578445168952603E-2,5.5485706413128284E-2,5.0063382959556577E-2,4.3771726206936354E-2,182.13,9.5643298633855913,25.904716166853134,23.228672232536802,34.870462346844704,25.245175431980858,7.4999999999999997E-3,23.056577999999998]
["2033-01-01",16,6.1536156963759921E-2,5.3684109095332076E-2,4.9806279542239047E-2,4.0478697930455311E-2,177.9,9.5040247975239343,25.82210702761525,23.154596894038242,34.967425763656657,25.164669542670481,7.6E-3,23.243198]
["2034-01-01",17,6.000894403801197E-2,5.0263006565839818E-2,5.3000211365006093E-2,4.1070142068221217E-2,176.49,9.4094631399197972,26.131528083701813,23.43205371878728,35.339302371540256,25.46621265910305,7.7000000000000002E-3,23.588684000000001]
["2035-01-01",18,6.2039028959438337E-2,5.5071550524260042E-2,5.7263569489773923E-2,4.899179585941698E-2,182.13,9.4335277191947622,26.347753703395245,23.625942507831908,35.509075953026596,25.676933118917784,7.9000000000000008E-3,23.779820999999998]
["2036-01-01",19,6.2221403179309707E-2,5.4569808333828386E-2,5.9563563312774237E-2,5.0672753434152673E-2,183.59925255457892,9.4703037845225655,26.877691931963405,24.101136342638412,36.037894970537522,26.193378983915714,8.0000000000000002E-3,24.119619]
["2037-01-01",20,6.2404378607129829E-2,5.407265914798929E-2,6.1956542177893634E-2,5.2411866602259438E-2,185.09299964074913,9.5072232192262014,26.952889662597425,24.168565895862521,36.280824452849807,26.266662160991082,8.2000000000000007E-3,24.408279]
["2038-01-01",21,6.2587955944972032E-2,5.3580060650306516E-2,6.4446256417629966E-2,5.4211140101246648E-2,186.61164961722056,9.5442865822229361,27.119378696969903,24.317856055416492,36.7643364608059,26.428912341736641,8.3000000000000001E-3,24.750076]
["2039-01-01",22,6.2772135918492164E-2,5.3091970919509658E-2,6.7036607799589518E-2,5.6072647917778343E-2,188.15561765062432,9.5814944346089437,27.491575094353781,24.6516033184737,37.449006171537654,26.791632523134741,8.5000000000000006E-3,24.801081]
["2040-01-01",23,6.2956919276577775E-2,5.2608348425701314E-2,6.973165563788275E-2,5.7998535676943359E-2,189.7253258290101,9.6188473396678003,27.690087177323274,24.829608438460184,37.704313631023787,26.985090437425473,8.6E-3,25.245667999999998]
["2041-01-01",24,6.3142306791004743E-2,5.2129152026602732E-2,7.2535623151221626E-2,5.9991023114016079E-2,191.32120327723629,9.6563458628790073,27.733628077201384,24.868651417563441,38.116532352736208,27.027522774796367,8.8000000000000005E-3,25.502766000000001]
["2042-01-01",25,6.3328299256100701E-2,5.1654340963837357E-2,7.5452904077676339E-2,6.2052406631554355E-2,192.94368627428355,9.6939905719265589,27.786050260023721,24.915658213339583,38.333459984659122,27.078610275363953,8.9999999999999993E-3,25.672461999999999]
["2043-01-01",26,6.3514897488415628E-2,5.1183874859251861E-2,7.8488069556450324E-2,6.4185061944780172E-2,194.59321837252423,9.7317820367075321,27.847363731742227,24.970637798092206,38.645145797400254,27.138362690326062,9.1000000000000004E-3,25.835726000000001]
["2044-01-01",27,6.3702102326399085E-2,5.0717713711274308E-2,8.1645875287451555E-2,6.6391446818289651E-2,196.27025051897999,9.7697208293407147,27.945380035781291,25.058528689669753,38.913550739024309,27.233883474059901,9.2999999999999992E-3,25.921430999999998]
["2045-01-01",28,6.3889914630084157E-2,5.0255817891309056E-2,8.4931268979872188E-2,6.8674103897244779E-2,197.97524117860149,9.8078075241752654,28.037274698421886,25.140930325906528,39.040667954784439,27.323438474959428,9.4999999999999998E-3,25.770641000000001]
[null,null,null,null,null,null,null,null,null,null,null,null,null,26.114412000000002]
[null,null,null,null,null,null,null,null,null,null,null,null,null,26.240431000000001]
[null,null,null,null,null,null,null,null,null,null,null,null,null,26.352903000000001]
[null,null,null,null,null,null,null,null,null,null,null,null,null,26.277000000000001]
[null,null,null,null,null,null,null,null,null,null,null,null,null,26.314919]

{"sheet":"AESC 2018 Avoided Costs Com","index":11,"n_rows":34,"n_cols":16,"rows_kept":34,"cut":false,"hidden":true,"merged":[]}
["EffectiveDate","Year","Electric+DripeSeasonalWinterOnPeak","Electric+DripeSeasonalWinterOffPeak","Electric+DripeSeasonalSummerOnPeak","Electric+DripeSeasonalSummerOffPeak","Capacity+T&D","NaturalGasCommercial","HeatingOilCommercial","KeroseneCommercial","PropaneCommercial","WoodGreenwood","WaterCommercial","Gasoline","DefaultDiscountRate","DefaultGenerationMarkUp"]
["2018-01-01",1,5.3888666176366354E-2,4.9171967241554641E-2,3.7052883039638031E-2,3.0623523672106075E-2,198.4975,7.0636203222140308,14.159084390031158,14.630957571097738,26.981523059531973,16.861875000000001,5.7000000000000002E-3,19.350000000000001,{"$f":"DefaultDR","v":2.8},8]
["2019-01-01",2,5.7728632875869552E-2,5.3045410977807746E-2,3.8526800357185573E-2,3.4126451396147402E-2,221.37427257042035,7.0238000965254761,13.355723712610157,13.842616741033183,24.121274315837709,15.845263333319975,5.7999999999999996E-3,19.350000000000001,"Default DR",{"$f":"DefaultDR","v":2.8}]
["2020-01-01",3,6.4362448886627469E-2,5.9751366559242867E-2,4.7159667194087124E-2,4.1058106487155722E-2,199.82822575015899,7.8398457333059319,14.589701381720829,15.151411544876579,25.620682817398883,17.260166649910783,6.0000000000000001E-3,19.353259999999999,"RGGI DR",{"$f":"RGGI_DR","v":2.8}]
["2021-01-01",4,6.7439318948392446E-2,6.2402568478673953E-2,5.5876398629268687E-2,4.7119557622041924E-2,159.82957104097153,8.7885267079974199,15.960102465511172,16.594716599566222,27.571923069740158,18.881605944365809,6.1000000000000004E-3,20.088446000000001,"Blended DR",{"$f":"ROUND((P3+P4)/2,2)","v":2.8}]
["2022-01-01",5,6.6689018293911953E-2,6.0206007174253007E-2,5.5618785169836822E-2,4.5202143056660635E-2,156.05270552388455,8.6371587376351489,17.377375438781634,18.113723831923682,30.082490272151009,20.413357953762734,6.1999999999999998E-3,20.263729000000001]
["2023-01-01",6,6.746408569543226E-2,5.8829937039787721E-2,5.1033035460825854E-2,3.998770259093086E-2,155.77208436392669,8.4599876026987726,19.027318911415243,19.844170974366882,32.860087608768353,22.325975913711076,6.3E-3,20.633908999999999]
["2024-01-01",7,6.8893160279343141E-2,6.3959000750245049E-2,4.8850794680059234E-2,4.3951170783810702E-2,155.34,8.3545612427506306,19.296032585522326,20.130326333555814,33.006039657938217,22.640269696430245,6.4000000000000003E-3,20.494205000000001]
["2025-01-01",8,6.3932091959009688E-2,5.9818170472549989E-2,5.0015163946847414E-2,4.4453925926947947E-2,159.65,8.2931818501097592,19.794178682552349,20.679551180009746,32.937850210208325,23.106171202579894,6.4999999999999997E-3,20.719427]
["2026-01-01",9,6.2908193770349577E-2,5.8642455454823279E-2,5.3059715446128558E-2,4.6176100467808699E-2,165.16,8.2883384279854848,20.114400305098631,21.022633447833073,32.998204529206255,23.467761220149132,6.7000000000000002E-3,20.750011000000001]
["2027-01-01",10,6.6058434135208899E-2,6.1716054838525367E-2,4.9465354841090402E-2,4.2959775531273996E-2,170.85,8.2418110926359773,20.332082048288687,21.264413431083039,33.309592884267438,23.660280094088531,6.7999999999999996E-3,20.978608999999999]
["2028-01-01",11,6.7351577343824826E-2,5.9053084592813151E-2,5.3257858679083066E-2,4.357396503272979E-2,176.49,8.284468352846508,20.391878406692715,21.332854952401313,33.400750425525274,23.700574968894401,6.8999999999999999E-3,21.519165000000001]
["2029-01-01",12,6.8544459571338506E-2,6.2673448751347852E-2,5.1298945738341747E-2,4.3420156554752988E-2,182.13,8.3893742838041945,20.633484933174447,21.601208891280752,33.437725505301522,23.914267593808674,7.0000000000000001E-3,21.882142999999999]
["2030-01-01",13,6.2776187953431054E-2,5.9218975954277817E-2,5.4044942247276455E-2,4.9536672954748465E-2,177.9,8.4484569629215329,21.050781147757714,22.051910974858956,33.696951307838674,24.36296896210046,7.1999999999999998E-3,22.505281]
["2031-01-01",14,6.1315530963624305E-2,5.7125309707108878E-2,4.8923415550630761E-2,4.2811723268342691E-2,176.49,8.6104295265241149,21.401140741104264,22.426643305812775,34.367464524797107,24.762570123943046,7.3000000000000001E-3,22.605267999999999]
["2032-01-01",15,5.9578445168952603E-2,5.5485706413128284E-2,5.0063382959556577E-2,4.3771726206936354E-2,182.13,8.6226263370947382,21.81202765609115,22.863869269685249,34.870462346844704,25.245175431980858,7.4999999999999997E-3,23.056577999999998]
["2033-01-01",16,6.1536156963759921E-2,5.3684109095332076E-2,4.9806279542239047E-2,4.0478697930455311E-2,177.9,8.5641641152604038,21.797818443912252,22.85900150629767,34.967425763656657,25.164669542670481,7.6E-3,23.243198]
["2034-01-01",17,6.000894403801197E-2,5.0263006565839818E-2,5.3000211365006093E-2,4.1070142068221217E-2,176.49,8.4714789135607695,22.070810035788877,23.152559322235764,35.339302371540256,25.46621265910305,7.7000000000000002E-3,23.588684000000001]
["2035-01-01",18,6.2039028959438337E-2,5.5071550524260042E-2,5.7263569489773923E-2,4.899179585941698E-2,182.13,8.4965354871334373,22.236686096733727,23.326515135618784,35.509075953026596,25.676933118917784,7.9000000000000008E-3,23.779820999999998]
["2036-01-01",19,6.2221403179309707E-2,5.4569808333828386E-2,5.9563563312774237E-2,5.0672753434152673E-2,183.59925255457892,8.5342603100273244,22.690031278726931,23.811498946912366,36.037894970537522,26.193378983915714,8.0000000000000002E-3,24.119619]
["2037-01-01",20,6.2404378607129829E-2,5.407265914798929E-2,6.1956542177893634E-2,5.2411866602259438E-2,185.09299964074913,8.5721526320465351,22.736377913582963,23.8577878243171,36.280824452849807,26.266662160991082,8.2000000000000007E-3,24.408279]
["2038-01-01",21,6.2587955944972032E-2,5.3580060650306516E-2,6.4446256417629966E-2,5.4211140101246648E-2,186.61164961722056,8.6102131968912339,22.836735600253249,23.957448318872167,36.7643364608059,26.428912341736641,8.3000000000000001E-3,24.750076]
["2039-01-01",22,6.2772135918492164E-2,5.3091970919509658E-2,6.7036607799589518E-2,5.6072647917778343E-2,188.15561765062432,8.648442751563632,23.140322460662123,24.279513754239062,37.449006171537654,26.791632523134741,8.5000000000000006E-3,24.801081]
["2040-01-01",23,6.2956919276577775E-2,5.2608348425701314E-2,6.973165563788275E-2,5.7998535676943359E-2,189.7253258290101,8.6868420463826475,23.272018858961086,24.413423332731355,37.704313631023787,26.985090437425473,8.6E-3,25.245667999999998]
["2041-01-01",24,6.3142306791004743E-2,5.2129152026602732E-2,7.2535623151221626E-2,5.9991023114016079E-2,191.32120327723629,8.7254118349986332,23.317408110261269,24.463470085066856,38.116532352736208,27.027522774796367,8.8000000000000005E-3,25.502766000000001]
["2042-01-01",25,6.3328299256100701E-2,5.1654340963837357E-2,7.5452904077676339E-2,6.2052406631554355E-2,192.94368627428355,8.7641528744081683,23.298156143170456,24.431146023928857,38.333459984659122,27.078610275363953,8.9999999999999993E-3,25.672461999999999]
["2043-01-01",26,6.3514897488415628E-2,5.1183874859251861E-2,7.8488069556450324E-2,6.4185061944780172E-2,194.59321837252423,8.803065924968914,23.311712836948164,24.43852831834446,38.645145797400254,27.138362690326062,9.1000000000000004E-3,25.835726000000001]
["2044-01-01",27,6.3702102326399085E-2,5.0717713711274308E-2,8.1645875287451555E-2,6.6391446818289651E-2,196.27025051897999,8.8421517504145406,23.357386450775646,24.480407405366716,38.913550739024309,27.233883474059901,9.2999999999999992E-3,25.921430999999998]
["2045-01-01",28,6.3889914630084157E-2,5.0255817891309056E-2,8.4931268979872188E-2,6.8674103897244779E-2,197.97524117860149,8.8814111178697104,23.454191834401207,24.587290815891162,39.040667954784439,27.323438474959428,9.4999999999999998E-3,25.770641000000001]
[null,null,null,null,null,null,null,null,null,null,null,null,null,26.114412000000002]
[null,null,null,null,null,null,null,null,null,null,null,null,null,26.240431000000001]
[null,null,null,null,null,null,null,null,null,null,null,null,null,26.352903000000001]
[null,null,null,null,null,null,null,null,null,null,null,null,null,26.277000000000001]
[null,null,null,null,null,null,null,null,null,null,null,null,null,26.314919]

{"sheet":"AESC 2021 Avoided Costs Res","index":12,"n_rows":39,"n_cols":16,"rows_kept":39,"cut":false,"hidden":false,"merged":[]}
["EffectiveDate","Year","Electric+DripeSeasonalWinterOnPeak","Electric+DripeSeasonalWinterOffPeak","Electric+DripeSeasonalSummerOnPeak","Electric+DripeSeasonalSummerOffPeak","Capacity+T&D","NaturalGasResidential","HeatingOilResidential","KeroseneResidential","PropaneResidential","WoodSeasoned","WaterResidential","Gasoline","DefaultDiscountRate","DefaultGenerationMarkUp"]
["2018-01-01",null,null,null,null,null,null,null,null,null,null,null,null,null,{"$f":"DefaultDR","v":2.8},0]
["2019-01-01",null,null,null,null,null,null,null,null,null,null,null,null,null,"Default DR",{"$f":"DefaultDR","v":2.8}]
["2020-01-01",null,null,null,null,null,null,null,null,null,null,null,null,null,"RGGI DR",{"$f":"RGGI_DR","v":2.8}]
["2021-01-01",1,5.7333070245747124E-2,4.9541481430566199E-2,4.3339670163215764E-2,3.6006838210115709E-2,480.71276363080517,8.7469753005714903,19.149204827849001,23.55935827954773,33.886814743623795,16.587476851398964,6.1000000000000004E-3,19.685273343423095,"Blended DR",{"$f":"ROUND((P3+P4)/2,2)","v":2.8}]
["2022-01-01",2,6.6688353910129242E-2,6.2008336103542644E-2,4.5152715025812397E-2,4.0176976782758465E-2,465.8504174813346,8.9124975400929465,19.353065108827803,23.809268304393878,34.089823704846054,16.76343142125101,6.1999999999999998E-3,20.681028448263767]
["2023-01-01",3,6.4995636498068332E-2,6.3002826150744803E-2,4.1879155175210826E-2,3.9707387323695956E-2,447.05342738826164,8.7647428781074534,21.397385471656872,26.324424634301675,36.132956124846061,18.534281751933108,6.3E-3,21.059790181804939]
["2024-01-01",4,6.6185578826689392E-2,6.4351780115489338E-2,4.4429000705784247E-2,4.179078773160954E-2,449.31535350532295,9.0121986984496161,22.520332775124917,27.705910980350232,37.255176444846057,19.506947157913089,6.4000000000000003E-3,20.918013082298803]
["2025-01-01",5,6.4703640418455277E-2,6.304725859946568E-2,4.3544460703910819E-2,4.0668237014609435E-2,444.01858039681588,8.9958444437963614,23.433274182388843,28.829030991949921,38.167518504846058,20.297704145972716,6.4999999999999997E-3,21.14833392052839]
["2026-01-01",6,6.6473447614651598E-2,6.299840913593438E-2,4.5164700058459496E-2,4.0303354940030366E-2,442.85144231482309,8.9582459918082371,24.288664638585008,29.881626159235264,39.022571244846056,21.038806588750088,6.7000000000000002E-3,21.179864528075711]
["2027-01-01",7,6.751743446870026E-2,6.2043504584610401E-2,4.7590766342506231E-2,4.0460405735834468E-2,449.35796855990685,8.881940703668386,24.578227939869699,30.237591665760942,39.311732064846055,21.289431819256347,6.7999999999999996E-3,21.413433645922023]
["2028-01-01",8,6.5642002363791946E-2,6.467649178271985E-2,4.6068267184612495E-2,4.3697078696300087E-2,451.88209725608237,8.9597091945249598,25.036938578411267,30.801771585524079,39.770031324846059,21.686654920499272,6.8999999999999999E-3,21.965208747557234]
["2029-01-01",9,6.7443185246374326E-2,6.7188484054526806E-2,4.7726955505784638E-2,4.5124143130003888E-2,456.02770904901308,9.0242457185649236,25.254533783443591,31.06937950481348,39.987416784846054,21.875070076540151,7.0000000000000001E-3,22.335654320646444]
["2030-01-01",10,7.4545084470807849E-2,7.4049018726605478E-2,5.7474170523443766E-2,5.347742731431844E-2,456.412480450418,9.025775030532861,25.676503639834234,31.588411269070317,40.409040924846053,22.24050564030188,7.1999999999999998E-3,22.971597942327644]
["2031-01-01",11,7.3709111971020758E-2,7.3527365104644402E-2,5.6430593983140778E-2,5.2844558045220077E-2,453.94065448069597,8.9946279178708686,25.899237074282709,31.862423003942155,40.631628384846053,22.433429541507795,7.3000000000000001E-3,23.07372945141055]
["2032-01-01",12,7.3583291828818884E-2,7.021218568488069E-2,5.792749707619118E-2,5.0399799518842492E-2,457.09547018060982,9.0507854221783752,26.171800072074195,32.197704186136555,40.903986744846058,22.669491525130983,7.4999999999999997E-3,23.534268599431314]
["2033-01-01",13,7.0652069267823803E-2,6.8457756943497858E-2,5.514912963770302E-2,4.9812403879278738E-2,456.12379185824341,9.1054136891948829,26.296308522257487,32.350914846121327,41.028444084846058,22.777362811170686,7.6E-3,23.724671687578716]
["2034-01-01",14,7.3018645322628611E-2,7.2673794029152708E-2,5.8139944539925659E-2,5.3868567688614359E-2,471.93527336726362,9.1178744507789489,26.408119297203193,32.488483872633459,41.140195284846058,22.874221266127858,7.7000000000000002E-3,24.077126490591841]
["2035-01-01",15,7.7264166663174233E-2,7.6687353846426984E-2,6.2071401873715938E-2,5.803476564457976E-2,453.09935620494628,9.1129446817191457,26.523788705785599,32.630844459981397,41.25583880484605,22.974453323349696,7.9000000000000008E-3,24.272111905402543]
["2036-01-01",16,7.8468797171106788E-2,7.782879015129103E-2,6.3375879892601406E-2,5.9186245165337888E-2,454.05867298491307,9.1430639098568136,26.694891683435191,32.841354860759445,41.425796394535368,23.122667733880387,8.0000000000000002E-3,24.558897820468029]
["2037-01-01",17,7.9692455748543931E-2,7.8987372753775431E-2,6.4709500789626936E-2,6.0361906311773232E-2,455.03569756291802,9.1732826851699869,26.867098438575553,33.053223321053544,41.596454141660089,23.271838315649621,8.2000000000000007E-3,24.849072823182809]
["2038-01-01",18,8.0935446121875143E-2,8.0163361214423218E-2,6.6072939688932894E-2,6.1562275507489383E-2,456.03075680295228,9.2036013366724152,27.04041609165423,33.266458602072845,41.767814930589395,23.421971237176596,8.3000000000000001E-3,25.14267696747817]
["2039-01-01",19,8.2198076905628831E-2,8.1357019048129101E-2,6.7466887669505662E-2,6.2787890880908678E-2,457.04418360251066,9.2340201944652716,27.214851809052824,33.481069521547425,41.939881657574922,23.573072706775299,8.5000000000000006E-3,25.439750780683138]
["2040-01-01",20,8.3480661681643323E-2,8.256861378469732E-2,6.8892052146205918E-2,6.4039302528632686E-2,458.07631700396314,9.2645395897407461,27.39041280338331,33.697064954092923,42.112657230799712,23.725148972811233,8.6E-3,25.740335269119679]
["2041-01-01",21,8.4783519079526443E-2,8.3798417030330849E-2,7.0349157259945894E-2,6.5317072784767061E-2,459.1275023079811,9.2951598547856573,27.567106333786246,33.914453831577525,42.286144570427346,23.878206323959791,8.8000000000000005E-3,26.044471923764053]
["2042-01-01",22,8.6106972858424585E-2,8.5046704530066172E-2,7.183894427723557E-2,6.6621776496346125E-2,460.19809118905835,9.3258813229850617,27.744939706230966,34.133245143491308,42.460346608651321,24.032251089466314,8.9999999999999993E-3,26.352202725975069]
["2043-01-01",23,8.7451351990122994E-2,8.6313756231168423E-2,7.3362171999323642E-2,6.7954001304995959E-2,461.28844181316344,9.3567043288258915,27.923920273817643,34.353447937317988,42.6352662897446,24.187289639407815,9.1000000000000004E-3,26.663570153290038]
["2044-01-01",24,8.8816990743498317E-2,8.7599856347501573E-2,7.4919617181163939E-2,6.9314347934977857E-2,462.39891895756477,9.3876292079005932,28.10405543708135,34.575071318909032,42.810906570109374,24.343328384956397,9.2999999999999992E-3,26.978617185289252]
["2045-01-01",25,9.020422877034652E-2,8.890529342488869E-2,7.6512074960444487E-2,7.0703430487757027E-2,463.52989413286662,9.4186562969107772,28.285352644298055,34.798124452860236,42.987270418327043,24.50037377864437,9.4999999999999998E-3,27.297387309529761]
["2046-01-01",26,9.1613411192607658E-2,9.0230360407477769E-2,7.8140359296920828E-2,7.2121876743244828E-2,464.68174570729821,9.449785933670892,28.467819391792599,35.022616562890661,43.164360815208362,24.658432314631071,9.4940000000000007E-3,27.619924527549284]
["2047-01-01",27,9.3044888691010991E-2,9.1575354705128287E-2,7.9805303422302146E-2,7.3570328467866486E-2,465.85485903329709,9.4810184571118938,28.651463224248669,35.248556932224091,43.342180753843842,24.817510528971415,9.6353846153846203E-3,27.946273360941092]
["2048-01-01",28,9.4499017595163257E-2,9.2940578261834536E-2,8.1507760300944324E-2,7.504944172960909E-2,467.04962657642909,9.512354207284945,28.836291735020751,35.475954903972891,43.520733239654326,24.977614999886175,9.7767692307692295E-3,28.276478857500685]
["2049-01-01",29,9.5976159975104031E-2,9.432633762520172E-2,8.3248603101609975E-2,7.6559887220208955E-2,468.26644804668729,9.5437935253651087,29.022312566448115,35.704819881524365,43.700021290441811,25.138752348034007,9.9181538461538508E-3,28.610586597445121]
["2050-01-01",30,9.747668373435181E-2,9.5732944016990798E-2,8.5028725680562064E-2,7.810235058464024E-2,469.50573053221581,9.5753367536550709,29.209533410170817,35.935161328929617,43.880047936440413,25.300929236785226,1.00595384615385E-2,28.948642699705843]
[null,null,9.9000962704465234E-2,9.7160713404749022E-2,8.6849043076264246E-2,7.967753275807124E-2,470.76788863550087,9.6069842355888593,29.397962007447731,36.166988771294896,44.060816220367613,25.464152372497345,1.02009230769231E-2,29.290693828295918]
[null,null,0.10054937674114466,9.8609966574542379E-2,8.871049201596716E-2,8.1286150310457592E-2,472.05334461207667,9.6387363157355903,29.587606149476652,36.400311795175497,44.242329197475669,25.628428504792414,1.0342307692307699E-2,29.636787198752494]
[null,null,0.1021223118218985,0.10008102920480738,9.061403143446714E-2,8.2928935798946737E-2,473.36252851179063,9.6705933398032151,29.778473677716448,36.635140048972168,44.424589935603265,25.793764426836105,1.04836923076923E-2,29.986970584655406]
[null,null,0.10372016014530053,0.10157423194133944,9.2560643005330442E-2,8.4606638128270559E-2,474.69587832267723,9.7025556546422855,29.970572484211292,36.871483243330104,44.607601515227351,25.960166975618652,1.06250769230769E-2,30.341292324222866]
[null,null,0.10534332023186385,0.10308991047343502,9.4551331684883347E-2,8.6320022919308348E-2,476.05384011748657,9.7346236082497306,30.163910511916999,37.109351151540494,44.791367029515214,26.127643032237554,1.0766461538461501E-2,30.69980132698506]

{"sheet":"AESC 2021 Avoided Costs Com","index":13,"n_rows":39,"n_cols":16,"rows_kept":39,"cut":false,"hidden":false,"merged":[]}
["EffectiveDate","Year","Electric+DripeSeasonalWinterOnPeak","Electric+DripeSeasonalWinterOffPeak","Electric+DripeSeasonalSummerOnPeak","Electric+DripeSeasonalSummerOffPeak","Capacity+T&D","NaturalGasResidential","HeatingOilCommercial","KeroseneCommercial","PropaneCommercial","WoodGreenwood","WaterCommercial","Gasoline","DefaultDiscountRate","DefaultGenerationMarkUp"]
["2018-01-01",null,null,null,null,null,null,null,null,null,null,null,null,null,{"$f":"DefaultDR","v":2.8},0]
["2019-01-01",null,null,null,null,null,null,null,null,null,null,null,null,null,"Default DR",{"$f":"DefaultDR","v":2.8}]
["2020-01-01",null,null,null,null,null,null,null,null,null,null,null,null,null,"RGGI DR",{"$f":"RGGI_DR","v":2.8}]
["2021-01-01",1,5.7333070245747124E-2,4.9541481430566199E-2,4.3339670163215764E-2,3.6006838210115709E-2,480.71276363080517,8.2078724190578409,20.883179497539306,16.846692813484704,33.886814743623795,16.587476851398964,6.1000000000000004E-3,19.685273343423095,"Blended DR",{"$f":"ROUND((P3+P4)/2,2)","v":2.8}]
["2022-01-01",2,6.6688353910129242E-2,6.2008336103542644E-2,4.5152715025812397E-2,4.0176976782758465E-2,465.8504174813346,8.3230822873992185,20.171945588827803,16.290511560149692,34.089823704846054,16.76343142125101,6.1999999999999998E-3,20.681028448263767]
["2023-01-01",3,6.4995636498068332E-2,6.3002826150744803E-2,4.1879155175210826E-2,3.9707387323695956E-2,447.05342738826164,8.1849627695817322,21.203266211656867,17.217614725395929,36.132956124846061,18.534281751933108,6.3E-3,21.059790181804939]
["2024-01-01",4,6.6185578826689392E-2,6.4351780115489338E-2,4.4429000705784247E-2,4.179078773160954E-2,449.31535350532295,8.4302790419600928,21.483252875124915,17.463749991723191,37.255176444846057,19.506947157913089,6.4000000000000003E-3,20.918013082298803]
["2025-01-01",5,6.4703640418455277E-2,6.304725859946568E-2,4.3544460703910819E-2,4.0668237014609435E-2,444.01858039681588,8.4170442057594617,21.556882182388843,17.534368470701295,38.167518504846058,20.297704145972716,6.4999999999999997E-3,21.14833392052839]
["2026-01-01",6,6.6473447614651598E-2,6.299840913593438E-2,4.5164700058459496E-2,4.0303354940030366E-2,442.85144231482309,8.3816248386269727,21.554593398585006,17.546755805898563,39.022571244846056,21.038806588750088,6.7000000000000002E-3,21.179864528075711]
["2027-01-01",7,6.751743446870026E-2,6.2043504584610401E-2,4.7590766342506231E-2,4.0460405735834468E-2,449.35796855990685,8.3082963017565845,21.864740299869698,17.802671543577581,39.311732064846055,21.289431819256347,6.7999999999999996E-3,21.413433645922023]
["2028-01-01",8,6.5642002363791946E-2,6.467649178271985E-2,4.6068267184612495E-2,4.3697078696300087E-2,451.88209725608237,8.3873564256126016,22.331265158411266,18.193073064098691,39.770031324846059,21.686654920499272,6.8999999999999999E-3,21.965208747557234]
["2029-01-01",9,6.7443185246374326E-2,6.7188484054526806E-2,4.7726955505784638E-2,4.5124143130003888E-2,456.02770904901308,8.4535541976326645,22.549265303443594,18.377047963152556,39.987416784846054,21.875070076540151,7.0000000000000001E-3,22.335654320646444]
["2030-01-01",10,7.4545084470807849E-2,7.4049018726605478E-2,5.7474170523443766E-2,5.347742731431844E-2,456.412480450418,8.4578115803471565,22.964472559834235,18.728372336524078,40.409040924846053,22.24050564030188,7.1999999999999998E-3,22.971597942327644]
["2031-01-01",11,7.3709111971020758E-2,7.3527365104644402E-2,5.6430593983140778E-2,5.2844558045220077E-2,453.94065448069597,8.4300382726753895,23.193708494282706,18.919851217908167,40.631628384846053,22.433429541507795,7.3000000000000001E-3,23.07372945141055]
["2032-01-01",12,7.3583291828818884E-2,7.021218568488069E-2,5.792749707619118E-2,5.0399799518842492E-2,457.09547018060982,8.4883878007732907,23.471038972074194,19.152010080548841,40.903986744846058,22.669491525130983,7.4999999999999997E-3,23.534268599431314]
["2033-01-01",13,7.0652069267823803E-2,6.8457756943497858E-2,5.514912963770302E-2,4.9812403879278738E-2,456.12379185824341,8.5454050694371428,23.627469342257484,19.275053193706007,41.028444084846058,22.777362811170686,7.6E-3,23.724671687578716]
["2034-01-01",14,7.3018645322628611E-2,7.2673794029152708E-2,5.8139944539925659E-2,5.3868567688614359E-2,471.93527336726362,8.5609073009026861,23.750558257203195,19.375451865802468,41.140195284846058,22.874221266127858,7.7000000000000002E-3,24.077126490591841]
["2035-01-01",15,7.7264166663174233E-2,7.6687353846426984E-2,6.2071401873715938E-2,5.803476564457976E-2,453.09935620494628,8.5592512530913396,23.8720977657856,19.476464828587279,41.25583880484605,22.974453323349696,7.9000000000000008E-3,24.272111905402543]
["2036-01-01",16,7.8468797171106788E-2,7.782879015129103E-2,6.3375879892601406E-2,5.9186245165337888E-2,454.05867298491307,8.5921612305000785,24.057737123974285,19.629027480403565,41.425796394535368,23.122667733880387,8.0000000000000002E-3,24.558897820468029]
["2037-01-01",17,7.9692455748543931E-2,7.8987372753775431E-2,6.4709500789626936E-2,6.0361906311773232E-2,455.03569756291802,8.6251977454505973,24.244820149844905,19.782785182909702,41.596454141660089,23.271838315649621,8.2000000000000007E-3,24.849072823182809]
["2038-01-01",18,8.0935446121875143E-2,8.0163361214423218E-2,6.6072939688932894E-2,6.1562275507489383E-2,456.03075680295228,8.6583612844746636,24.433358070762914,19.937747297152669,41.767814930589395,23.421971237176596,8.3000000000000001E-3,25.14267696747817]
["2039-01-01",19,8.2198076905628831E-2,8.1357019048129101E-2,6.7466887669505662E-2,6.2787890880908678E-2,457.04418360251066,8.6916523359747409,24.623362201410753,20.093923257506212,41.939881657574922,23.573072706775299,8.5000000000000006E-3,25.439750780683138]
["2040-01-01",20,8.3480661681643323E-2,8.256861378469732E-2,6.8892052146205918E-2,6.4039302528632686E-2,458.07631700396314,8.7250713902311787,24.814843944466933,20.251322572245225,42.112657230799712,23.725148972811233,8.6E-3,25.740335269119679]
["2041-01-01",21,8.4783519079526443E-2,8.3798417030330849E-2,7.0349157259945894E-2,6.5317072784767061E-2,459.1275023079811,8.7586189394094358,25.007814791290397,20.409954824124629,42.286144570427346,23.878206323959791,8.8000000000000005E-3,26.044471923764053]
["2042-01-01",22,8.6106972858424585E-2,8.5046704530066172E-2,7.183894427723557E-2,6.6621776496346125E-2,460.19809118905835,8.792295477567329,25.202286322610234,20.569829670962783,42.460346608651321,24.032251089466314,8.9999999999999993E-3,26.352202725975069]
["2043-01-01",23,8.7451351990122994E-2,8.6313756231168423E-2,7.3362171999323642E-2,6.7954001304995959E-2,461.28844181316344,8.826101500662304,25.398270209220716,20.730956846229478,42.6352662897446,24.187289639407815,9.1000000000000004E-3,26.663570153290038]
["2044-01-01",24,8.8816990743498317E-2,8.7599856347501573E-2,7.4919617181163939E-2,6.9314347934977857E-2,462.39891895756477,8.8600375065587453,25.595778212681775,20.893346159638529,42.810906570109374,24.343328384956397,9.2999999999999992E-3,26.978617185289252]
["2045-01-01",25,9.020422877034652E-2,8.890529342488869E-2,7.6512074960444487E-2,7.0703430487757027E-2,463.52989413286662,8.8941039950353069,25.794822186024916,21.057007497744994,42.987270418327043,24.50037377864437,9.4999999999999998E-3,27.297387309529761]
["2046-01-01",26,9.1613411192607658E-2,9.0230360407477769E-2,7.8140359296920828E-2,7.2121876743244828E-2,464.68174570729821,8.9283014677922701,25.995414074464609,21.2219508245471,43.164360815208362,24.658432314631071,9.4940000000000007E-3,27.619924527549284]
["2047-01-01",27,9.3044888691010991E-2,9.1575354705128287E-2,7.9805303422302146E-2,7.3570328467866486E-2,465.85485903329709,8.9626304284589331,26.197565916115227,21.388186182092866,43.342180753843842,24.817510528971415,9.6353846153846203E-3,27.946273360941092]
["2048-01-01",28,9.4499017595163257E-2,9.2940578261834536E-2,8.1507760300944324E-2,7.504944172960909E-2,467.04962657642909,8.9970913826010293,26.401289842713563,21.555723691091476,43.520733239654326,24.977614999886175,9.7767692307692295E-3,28.276478857500685]
["2049-01-01",29,9.5976159975104031E-2,9.432633762520172E-2,8.3248603101609975E-2,7.6559887220208955E-2,468.26644804668729,9.0316848377281733,26.606598080346952,21.724573551529453,43.700021290441811,25.138752348034007,9.9181538461538508E-3,28.610586597445121]
["2050-01-01",30,9.747668373435181E-2,9.5732944016990798E-2,8.5028725680562064E-2,7.810235058464024E-2,469.50573053221581,9.0664113033013312,26.813502950187075,21.89474604329164,43.880047936440413,25.300929236785226,1.00595384615385E-2,28.948642699705843]
[null,null,9.9000962704465234E-2,9.7160713404749022E-2,8.6849043076264246E-2,7.967753275807124E-2,470.76788863550087,9.1012712907403284,27.022016869229439,22.066251526787077,44.060816220367613,25.464152372497345,1.02009230769231E-2,29.290693828295918]
[null,null,0.10054937674114466,9.8609966574542379E-2,8.871049201596716E-2,8.1286150310457592E-2,472.05334461207667,9.1362653134313767,27.232152351038653,22.239100443579748,44.242329197475669,25.628428504792414,1.0342307692307699E-2,29.636787198752494]
[null,null,0.1021223118218985,0.10008102920480738,9.061403143446714E-2,8.2928935798946737E-2,473.36252851179063,9.1713938867346414,27.443922006499456,22.413303317024283,44.424589935603265,25.793764426836105,1.04836923076923E-2,29.986970584655406]
[null,null,0.10372016014530053,0.10157423194133944,9.2560643005330442E-2,8.4606638128270559E-2,474.69587832267723,9.2066575279918226,27.657338544573609,22.588870752906644,44.607601515227351,25.960166975618652,1.06250769230769E-2,30.341292324222866]
[null,null,0.10534332023186385,0.10308991047343502,9.4551331684883347E-2,8.6320022919308348E-2,476.05384011748657,9.2420567565337794,27.872414773062676,22.765813440089818,44.791367029515214,26.127643032237554,1.0766461538461501E-2,30.69980132698506]

{"sheet":"NECoC","index":14,"n_rows":39,"n_cols":16,"rows_kept":39,"cut":false,"hidden":false,"merged":[]}
["EffectiveDate","Year","Electric+DripeSeasonalWinterOnPeak","Electric+DripeSeasonalWinterOffPeak","Electric+DripeSeasonalSummerOnPeak","Electric+DripeSeasonalSummerOffPeak","Capacity+T&D","NaturalGasResidential","HeatingOilResidential","KeroseneResidential","PropaneResidential","WoodSeasoned","WaterResidential","Gasoline","DefaultDiscountRate","DefaultGenerationMarkUp"]
["2018-01-01",null,null,null,null,null,null,null,null,null,null,null,null,null,{"$f":"DefaultDR","v":2.8},0]
["2019-01-01",null,null,null,null,null,null,null,null,null,null,null,null,null,"Default DR",{"$f":"DefaultDR","v":2.8}]
["2020-01-01",null,null,null,null,null,null,null,null,null,null,null,null,null,"RGGI DR",{"$f":"RGGI_DR","v":2.8}]
["2021-01-01",1,7.6006719518979332E-2,7.9544831916828165E-2,7.8363759452651463E-2,8.032657545458774E-2,null,11.147225799964545,15.339344904224715,15.148794035849253,13.243285352094629,0,null,14.958243167473791,"Blended DR",{"$f":"ROUND((P3+P4)/2,2)","v":2.8}]
["2022-01-01",2,6.2581186200227887E-2,6.3620660900241308E-2,6.1716742326502948E-2,6.8755948396031441E-2,null,9.4510777098537471,13.005329156294474,12.843772272365349,11.228203433074112,0,null,12.682215388436227]
["2023-01-01",3,6.3375904573706371E-2,7.1529679316515257E-2,5.7418584596817861E-2,8.0719385541391867E-2,null,9.6852876833739767,13.327618094215474,13.162057620995405,11.506452888794726,0,null,12.996497147775337]
["2024-01-01",4,5.2270923341856908E-2,5.7432818249202433E-2,5.0682758332777737E-2,6.389356053242945E-2,null,7.5004549639011424,10.321138881949436,10.192925976583604,8.9107969229252877,0,null,10.064713071217771]
["2025-01-01",5,5.2828221382926754E-2,5.8479451511644208E-2,5.3894053075125917E-2,6.4077952023696122E-2,null,7.5472720747325317,10.3855624276234,10.256549229764722,8.9664172511779654,0,null,10.127536031906047]
["2026-01-01",6,4.8346451007519123E-2,5.6118559478888677E-2,4.9339463274089244E-2,6.000380385166814E-2,null,7.3057663658546907,10.053234058996626,9.9283491638538113,8.6795002124256584,0,null,9.8034642687109947]
["2027-01-01",7,4.3373164511385405E-2,5.2421422603635991E-2,4.8325164024849231E-2,5.9107586841032594E-2,null,7.2930298334755461,10.035707719568915,9.9110405429283048,8.6643687765222293,0,null,9.7863733662876982]
["2028-01-01",8,4.353842819972991E-2,4.6599620235290018E-2,4.8491700130488653E-2,5.2163145690856665E-2,null,7.3003695100451793,10.045807616386956,9.9210149751896033,8.6730885632160675,0,null,9.7962223339922492]
["2029-01-01",9,4.1281402124475203E-2,4.2246998748622089E-2,4.4283022970124014E-2,4.6715032587819387E-2,null,6.8300511759125691,9.398617430101913,9.2818644185478512,8.1143343030072419,0,null,9.1651114069937911]
["2030-01-01",10,3.7672347324370824E-2,3.9623151720700765E-2,4.3349414663285395E-2,4.5003514287862666E-2,null,6.8979189698309735,9.4920081550665554,9.3740950102831189,8.1949635624487644,0,null,9.2561818654996841]
["2031-01-01",11,3.4733046908076257E-2,3.7116122032289416E-2,3.8764940774216446E-2,4.1165448229408895E-2,null,6.3198804824683359,8.6965876724564275,8.5885555274569683,7.5082340774623813,0,null,8.480523382457509]
["2032-01-01",12,3.1037546289623377E-2,3.4679531522590852E-2,3.3066703031197242E-2,3.7316945962986833E-2,null,5.7659093540902244,7.9342855214403931,7.8357229683790219,6.8500974377653083,0,null,7.7371604153176508]
["2033-01-01",13,2.8672980756344044E-2,3.085615154265663E-2,3.2418524931856839E-2,3.4654594445038024E-2,null,5.3420229100050101,7.3509887906906553,7.2596721597503979,6.3465058503478327,0,null,7.1683555288101424]
["2034-01-01",14,2.6727924337118954E-2,2.7316968364143386E-2,2.9626786570110974E-2,3.0336866228857565E-2,null,4.8841213507261836,6.7208849356146629,6.6373956817560957,5.8025031431704228,0,null,6.5539064278975285]
["2035-01-01",15,2.4102229190794536E-2,2.4076725577302303E-2,2.6534256886411329E-2,2.7654707996255808E-2,null,4.4288954007401404,6.094462901873186,6.0187552881853197,5.2616791513066641,0,null,5.9430476744974543]
["2036-01-01",16,2.2032717282620424E-2,2.1779863870336199E-2,2.4101681833990158E-2,2.5057263737868499E-2,null,4.0540376068384374,5.5786329461622959,5.509333158011211,4.816335276500368,0,null,5.4400333698601262]
["2037-01-01",17,2.014090178186867E-2,1.9702117245443407E-2,2.1892117413108186E-2,2.2703782159410504E-2,null,3.7109074454352053,5.1064623821800703,5.0430280668734859,4.4086849138076403,0,null,4.9795937515669007]
["2038-01-01",18,1.8411524978213425E-2,1.7822582650844025E-2,1.9885118728661347E-2,2.0571349279568805E-2,null,3.3968195177463336,4.6742559175825633,4.6161906266809165,4.0355377176644511,0,null,4.5581253357792697]
["2039-01-01",19,1.6830639248166076E-2,1.6122351135618659E-2,1.806211520755853E-2,1.8639203292681865E-2,null,3.109315714768317,4.2786310263051215,4.2254803303261763,3.6939733705367224,0,null,4.1723296343472303]
["2040-01-01",20,1.5385494565882271E-2,1.4584317617282851E-2,1.6406238766927362E-2,1.6888532427524108E-2,null,2.8461459796720296,3.9164914763008287,3.8678394082722471,3.3813187279864323,0,null,3.8191873402436651]
["2041-01-01",21,1.4064435672732155E-2,1.3193008797077349E-2,1.4902167735304433E-2,1.5302291792027266E-2,null,2.6052506984504951,3.5850030978677765,3.540468897894264,3.0951268981591391,0,null,3.4959346979207511]
["2042-01-01",22,1.2856808076294531E-2,1.1934427491725729E-2,1.3535985082627176E-2,1.3865037420701059E-2,null,2.3847445810066699,3.2815716029237092,3.2408067382911168,2.8331580919651929,0,null,3.2000418736585239]
["2043-01-01",23,1.1752872120645963E-2,1.0795911815567921E-2,1.229504964724264E-2,1.2562775909004713E-2,null,2.1829019065317188,3.0038222816376652,2.9665077191328497,2.5933620940846951,0,null,2.9291931566280338]
["2044-01-01",24,1.0743724434911813E-2,9.7660077963794747E-3,1.1167879168408583E-2,1.1382828170678615E-2,null,1.9981430177014354,2.7495814175207793,2.7154251266199005,2.3738622176111104,0,null,2.6812688357190209]
["2045-01-01",25,9.8212261265527168E-3,8.8343541433352733E-3,1.0144044041997436E-2,1.0313705991549424E-2,null,1.8290219579919471,2.5168592755273811,2.4855939429121343,2.172940616759667,0,null,2.4543286102968871]
["2046-01-01",26,8.9779371402570248E-3,7.9915780078323138E-3,9.2140708163345152E-3,9.3450001779110427E-3,null,1.6742151553620961,2.3038345300281842,2.275215467543362,1.9890248426951429,0,null,2.2465964050585399]
["2047-01-01",27,8.2070562530361501E-3,7.2292006884792726E-3,8.3693545352263813E-3,8.4672792104710775E-3,null,1.5325110637389452,2.1088400107860705,2.0826432404657469,1.8206755372625107,0,null,2.0564464701454228]
["2048-01-01",28,7.5023662215763171E-3,6.5395523316032671E-3,7.6020791170975282E-3,7.67199741713672E-3,null,1.402800681238801,1.9303496553798891,1.9063701565552944,1.6665751683093479,0,null,1.8823906577306995]
["2049-01-01",29,6.8581836394537724E-3,5.915694769123069E-3,6.9051450335108951E-3,6.9514117705914008E-3,null,1.2840688709176304,1.7669665659635776,1.7450166707342165,1.5255177184406068,0,null,1.7230667755048552]
["2050-01-01",30,6.2693130998061255E-3,5.3513517175036353E-3,6.2721036178882581E-3,6.2985065005862649E-3,null,1.1753864161254959,1.6174120768906401,1.5973200014013156,1.3963992465080706,0,null,1.5772279259119908]
[null,null,5.7310052937764623E-3,4.8408456355624636E-3,5.697097396595169E-3,5.706924786956241E-3,null,1.0759027482887706,1.4805157476452317,1.4621242476744838,1.2782092479670037,0,null,1.4437327477037354]
[null,null,5.2389187067893479E-3,4.3790406058893542E-3,5.1748058902794884E-3,5.1709068683098158E-3,null,0.98483929020644434,1.3552062027627143,1.338371343101066,1.1700227464845818,0,null,1.3215364834394172]
[null,null,4.7890846037347817E-3,3.9612906652413257E-3,4.7003963839683249E-3,4.6852339638059869E-3,null,0.90148336276394669,1.2405027470512431,1.2250927750381846,1.0709930549075974,0,null,1.2096828030251254]
[null,null,4.3778750206615365E-3,3.5833930640935814E-3,4.2694792104036264E-3,4.2451774620292648E-3,null,0.82518260737733085,1.1355076904935921,1.1214020048973989,0.98034514893546398,0,null,1.1072963193012049]
[null,null,4.0019735048292416E-3,3.2415459851168776E-3,3.8780671328572801E-3,3.8464528822551441E-3,null,0.75533988051685275,1.0393993227625069,1.0264875299331595,0.89736960163968227,0,null,1.0135757371038112]